{"text_format":"1","workbook":"xlsx","n_sheets":10,"sheets":["Menu","TSA Input","Exhibit B","Exhibit C","Exhibit D","Exh D (2)","Exhibit D.1","Exh D.1 (2)","Summary","Standards"],"not_rendered":{"charts":0,"images":1,"macros":1,"external_links":0,"defined_names":54,"comments":0,"pivot_tables":0},"unopened":[],"bounds":{"document_bytes":16777216,"sheet_cells":100000,"rows_first":2000,"rows_last":500,"rows_between":2000,"halvings":0,"cell_chars":16384,"cell_head_chars":4096},"cells_cut":0,"cells_raw":0,"read":"whole","date_system":"1900"}

{"sheet":"Menu","index":0,"n_rows":74,"n_cols":16,"rows_kept":74,"cut":false,"hidden":false,"merged":[[41,9,41,14],[42,9,42,14],[37,9,37,14],[38,9,38,14],[40,9,40,14],[33,9,33,14],[35,9,35,14],[32,1,32,8],[33,1,33,8],[35,1,35,8],[34,1,34,8],[31,1,31,8],[36,1,36,8],[40,1,40,8],[41,1,41,8],[46,1,46,8],[37,1,37,8],[38,1,38,8],[39,1,39,8],[47,1,47,8],[44,1,44,8],[45,1,45,8],[49,9,49,14],[48,9,48,14],[46,9,46,14],[45,9,45,14],[3,0,3,15],[6,0,6,15],[10,1,10,6],[8,1,8,3],[11,2,11,6],[50,9,50,14],[50,1,50,8],[47,9,47,14],[29,1,29,8],[30,1,30,8],[36,9,36,14],[48,1,48,8],[49,1,49,8],[42,1,42,8],[43,1,43,8],[43,9,43,14],[44,9,44,14],[29,9,29,14],[30,9,30,14],[31,9,31,14],[32,9,32,14],[28,1,28,8],[27,1,27,8],[27,9,27,14],[25,1,25,14],[23,2,23,3],[26,1,26,8],[26,9,26,14],[28,9,28,14],[63,1,63,8],[53,1,53,14],[55,1,55,8],[56,1,56,8],[57,1,57,8],[59,1,59,8],[54,1,54,8],[54,9,54,14],[59,9,59,14],[58,1,58,8],[58,9,58,14],[51,1,51,8],[51,9,51,14],[65,1,65,8],[65,9,65,14],[55,9,55,14],[56,9,56,14],[57,9,57,14],[64,1,64,8],[60,9,60,14],[62,9,62,14],[63,9,63,14],[64,9,64,14],[61,1,61,8],[61,9,61,14],[60,1,60,8],[62,1,62,8],[68,1,68,8],[68,9,68,14],[66,1,66,8],[66,9,66,14],[67,1,67,8],[67,9,67,14]]}
[]
[]
[null,null,null,null,null,null,null,null,null,null,null,null,null,null,null,"S T A T E   O F   I O W A"]
[]
["KIM REYNOLDS, GOVERNOR",null,null,null,null,null,null,null,null,null,null,null,null,null,null,"ANNETTE DUNN"]
["ADAM GREGG, LT. GOVERNOR",null,null,null,null,null,null,null,null,null,null,null,null,null,null,"CHIEF INFORMATION OFFICER"]
["Broadband Grants Core Application Menu"]
[]
[null,"Press Ctrl+Shift+H To Return To This Page"]
[]
[null,"General Application Information"]
[null,"Applicant Name:","Required"]
[null,"Application #:","Created By OCIO"]
[]
[null,"Project Overview"]
[null,"Delivery Platfrom:  (Yes and/or Populate Other)"]
[null,"   - FTTH","Yes"]
[null,"   - DSL"]
[null,"   - Cable Modem"]
[null,"   - Wireless Spectrum"]
[null,"   - Fixed Wireless"]
[null,"   - Other"]
[null,"Infrastructure Type","Required"]
[null,"Will you be seeking or have you previously obtained in relation to this Project, in whole or in part, a Property Tax Exemption pursuant to Iowa Code section 427.1(40)?:","Required"]
[]
[null,"Follow The Steps Below"]
[null,"Instructions",null,null,null,null,null,null,null,"Hot Buttons"]
[null,"1) Populate the Targeted Service Area data.  Detailed directions in Exhibit L."]
[null,"1a) Populate your exported TSA data on the TSA Input tab."]
[null,"2) Refresh Exhibit B - Project Worksheet with the Targeted Service Area data."]
[null,"2a) The \"Hot Button\" to the right will transfer your TSA data to Exhibit B."]
[null,"3) Populate data in Exhibit B - Broadband Grants Program Project Worksheet."]
[null,"3a) Check the Delivery Platforms that apply."]
[null,"3b) Select the appropriate Infrastructure Type."]
[null,"3c) Respond to all Prospective Product Attributes subcategories. See Section 3.1.6. of the NOFA for detailed instructions/questions related to this aspect of the Application."]
[null,"3d) Review the Homes, Schools, and Businesses in the \"Total Number of HSB's (i.e., Broadband Units) New Service Will Be Available To\" section.  If you are not planning on fully serving a TSA, update those figures to the correct counts."]
[null,"3e) Define the Download and Upload Speeds in the \"Facilitated Speeds in Project Area upon Project Completion\" section for each TSA."]
[null,"3f) Review to confirm worksheet is correct."]
[null,"4) Populate all defined fields in Exhibit C - Qualitative Attributes Form."]
[null,"4a) For Budget questions, please check the box if the dollar amount is zero for that area."]
[null,"4b) For answers to questions in this Exhibit, please limit to 1200 characters for each question. Please upload supplemental materials to the appropriate section of the Iowa Grants System."]
[null,"4c) Review the form to ensure it is complete and accurate."]
[null,"5) Populate costs in Exhibit D - Broadband Grants Program Budget Plan."]
[null,"5a)  Update/Populate Description, Unit, Quantity, Est Cost and Grant Request %."]
[null,"5b)  Review the form to ensure it is complete and accurate."]
[null,"5c)  If grant funds are Awarded, the Grantee will be required to submit a revised Exhibit D with actual costs."]
[null,"6) IF APPLICABLE, Populate costs in Exhibit D.1 -  Outside Targeted Service Areas Infrastructure Worksheet."]
[null,"6a)  Answer questions as necessary.  Please limit to 1200 characters for each question."]
[null,"6b)  Update/Populate Description, Unit, Quantity, Est Cost, Proportional Allocation Cost and Grant Request %."]
[null,"6c)  Review the form to ensure it is complete and accurate."]
[null,"6d)  If grant funds are Awarded, the Grantee will be required to submit a revised Exhibit D.1 with actual costs."]
[null,"7) Core Application Checklist Below."]
[]
[null,"Core Application Checklist"]
[null,"Check",null,null,null,null,null,null,null,"Status\n(Expect all Checks to be Yes or Not Applicable)"]
[null,"Did you populate an Applicant Name?",null,null,null,null,null,null,null,{"$f":"IF(ApplicantName=\"Required\",\"Populate Applicant Name.\",IF(ApplicantName=\"\",\"Populate Applicant Name.\",\"Yes\"))","v":"Populate Applicant Name."}]
[null,"Did you choose at least one Delivery Platform in Exhibit B?",null,null,null,null,null,null,null,{"$f":"IF(COUNTIF(Summary!K8:O8,\"TRUE\")=0,\"Select a Delivery Platform.\",\"Yes\")","v":"Select a Delivery Platform."}]
[null,"Did you define the Infrastructure Type in Exhibit B?",null,null,null,null,null,null,null,{"$f":"IF(Infrastructure_Type=\"Required\",\"Populate Infrastructure Type.\",\"Yes\")","v":"Populate Infrastructure Type."}]
[null,"Have you responded to all Prospective Product Attributes subcategories in Exhibit B?",null,null,null,null,null,null,null,{"$f":"IF(OR(AND(Summary!R8=TRUE,Summary!S8=TRUE),AND(Summary!T8=TRUE,Summary!U8=TRUE),AND(Summary!V8=TRUE,Summary!W8=TRUE)),\"Too many checkboxes selected.\",IF(OR('Exhibit B'!N25=0,'Exhibit B'!N26=0,'Exhibit B'!N27=0,AND(Summary!T8=FALSE,Summary!U8=FALSE),AND(Summary!V8=FALSE,Summary!W8=FALSE)),\"Ensure all Product Attributes have a response.\",\"Yes\"))","v":"Ensure all Product Attributes have a response."}]
[null,"Have you included at least one eligible TSA?",null,null,null,null,null,null,null,{"$f":"IF('Exhibit B'!C40=0,\"Populate Census Blocks through TSA Input.\",\"Yes\")","v":"Populate Census Blocks through TSA Input."}]
[null,"Have you defined all of your Facilitated Speeds in Exhibit B?",null,null,null,null,null,null,null,{"$f":"IF(COUNTIF('Exhibit B'!A40:A5030,\"1\")=2,\"Ensure Facilitated Speeds are Defined in Exhibit B.\",IF((COUNTIFS('Exhibit B'!N40:N5030,\"Required\",'Exhibit B'!A40:A5030,\"1\")+COUNTIFS('Exhibit B'!O40:O5030,\"Required\",'Exhibit B'!A40:A5030,\"1\"))>0,\"Ensure Facilitated Speeds are Defined in Exhibit B.\",\"Yes\"))","v":"Ensure Facilitated Speeds are Defined in Exhibit B."}]
[null,"Did you answer all Budget questions in Exhibit C?",null,null,null,null,null,null,null,{"$f":"IF(OR(AND('Exhibit C'!C18=0,Summary!X8=FALSE),AND('Exhibit C'!C21=0,Summary!Y8=FALSE),AND('Exhibit C'!C28=0,Summary!Z8=FALSE),AND('Exhibit C'!C31=0,Summary!AA8=FALSE)),\"Ensure all Budget questions have been answered or the box is checked for zero dollars.\",IF(OR(AND('Exhibit C'!C18<>0,Summary!X8=TRUE),AND('Exhibit C'!C21<>0,Summary!Y8=TRUE),AND('Exhibit C'!C28<>0,Summary!Z8=TRUE),AND('Exhibit C'!C31<>0,Summary!AA8=TRUE)),\"If a box is checked for zero, ensure zero is also keyed.\",\"Yes\"))","v":"Ensure all Budget questions have been answered or the box is checked for zero dollars."}]
[null,"Have you responded to all questions related to Relative Need in Exhibit C?",null,null,null,null,null,null,null,{"$f":"IF(OR(LEN('Exhibit C'!A24)=0,LEN('Exhibit C'!A42)=0,LEN('Exhibit C'!A46)=0,LEN('Exhibit C'!A68)=0,LEN('Exhibit C'!A72)=0),\"Ensure you have answered all Relative Need questions in Exhibit C.\",\"Yes\")","v":"Ensure you have answered all Relative Need questions in Exhibit C."}]
[null,"Did you answer all Yes / No questions in Exhibit C?",null,null,null,null,null,null,null,{"$f":"IF(OR(AND(Summary!AB8=TRUE,Summary!AC8=TRUE),AND(Summary!AD8=TRUE,Summary!AE8=TRUE),AND(Summary!AF8=TRUE,Summary!AG8=TRUE)),\"Ensure you have checked one answer, but not both.\",IF(OR(AND(Summary!AB8=FALSE,Summary!AC8=FALSE),AND(Summary!AD8=FALSE,Summary!AE8=FALSE),AND(Summary!AF8=FALSE,Summary!AG8=FALSE)),\"Ensure you have checked one answer, but not both.\",IF(AND(Summary!AF8=TRUE,'Exhibit C'!D58=0),\"Ensure you have entered a TSA count.\",\"Yes\")))","v":"Ensure you have checked one answer, but not both."}]
[null,"Have you responded to all questions related to Economic Impact in Exhibit C?",null,null,null,null,null,null,null,{"$f":"IF(OR(LEN('Exhibit C'!A80)=0,LEN('Exhibit C'!A84)=0,LEN('Exhibit C'!A88)=0),\"Ensure you have answered all Economic Impact questions in Exhibit C.\",\"Yes\")","v":"Ensure you have answered all Economic Impact questions in Exhibit C."}]
[null,"Have you submitted grant request dollars in Exhibit D (Column E)?",null,null,null,null,null,null,null,{"$f":"IF('Exhibit D'!I30=0,\"Please ensure Exhibit D is populated with costs and support percentages.\",\"Yes\")","v":"Please ensure Exhibit D is populated with costs and support percentages."}]
[null,"Did you answer the Yes / No question in Exhibit D.1?",null,null,null,null,null,null,null,{"$f":"IF(OR(AND(Summary!AH8=TRUE,Summary!AI8=TRUE),AND(Summary!AH8=FALSE,Summary!AI8=FALSE)),\"Ensure you have checked one answer, but not both.\",\"Yes\")","v":"Ensure you have checked one answer, but not both."}]
[null,"If you are requesting reimbursment for costs/expenses incurred outside of TSAs forming the basis of your Project, have you answered all questions Exhibit D.1?",null,null,null,null,null,null,null,{"$f":"IF(OR(Summary!AH8=TRUE,AND(Summary!AH8=FALSE,Summary!AI8=FALSE)),IF(OR(LEN('Exhibit D.1'!B16)=0,LEN('Exhibit D.1'!B20)=0,LEN('Exhibit D.1'!B24)=0,LEN('Exhibit D.1'!B28)=0),\"Ensure you have answered all questions in Exhibit D.1.\",\"Yes\"),\"N/A - Yes\")","v":"Ensure you have answered all questions in Exhibit D.1."}]
[null,"If you are requesting reimbursment for costs/expenses incurred outside of TSAs forming the basis of your Project, have you fully completed Exhibit D.1?",null,null,null,null,null,null,null,{"$f":"IF(OR(Summary!AH8=TRUE,AND(Summary!AH8=FALSE,Summary!AI8=FALSE)),IF('Exhibit D.1'!J52=0,\"Ensure you have fully completed Exhibit D.1.\",\"Yes\"),\"N/A - Yes\")","v":"Ensure you have fully completed Exhibit D.1."}]
[]
["Version 02.19.03"]
[]
[]
["Hoover State Office Building, Level B, 1305 E. Walnut, Des Moines, Iowa 50319",null,null,null,null,null,null,null,null,"515.281.5503",null,null,null,null,null,"CIO@IOWA.GOV"]

{"sheet":"TSA Input","index":1,"n_rows":4986,"n_cols":14,"rows_kept":4986,"cut":false,"hidden":false,"merged":[[0,0,0,2]]}
["Paste Your TSA Data Below in Row 3"]
["OBJECTID","blockid","areasqmiles","households","population","businesses","schools","effectivedate","county","tsa","aland","awater","Shape__Area","Shape__Length"]
[]
[]
[]
[]
[]
[]
[]
[]
[]
[]
[]
[]
[]
[]
[]
[]
[]
[]
[]
[]
[]
[]
[]
[]
[]
[]
[]
[]
[]
[]
[]
[]
[]
[]
[]
[]
[]
[]
[]
[]
[]
[]
[]
[]
[]
[]
[]
[]
[]
[]
[]
[]
[]
[]
[]
[]
[]
[]
[]
[]
[]
[]
[]
[]
[]
[]
[]
[]
[]
[]
[]
[]
[]
[]
[]
[]
[]
[]
[]
[]
[]
[]
[]
[]
[]
[]
[]
[]
[]
[]
[]
[]
[]
[]
[]
[]
[]
[]
[]
[]
[]
[]
[]
[]
[]
[]
[]
[]
[]
[]
[]
[]
[]
[]
[]
[]
[]
[]
[]
[]
[]
[]
[]
[]
[]
[]
[]
[]
[]
[]
[]
[]
[]
[]
[]
[]
[]
[]
[]
[]
[]
[]
[]
[]
[]
[]
[]
[]
[]
[]
[]
[]
[]
[]
[]
[]
[]
[]
[]
[]
[]
[]
[]
[]
[]
[]
[]
[]
[]
[]
[]
[]
[]
[]
[]
[]
[]
[]
[]
[]
[]
[]
[]
[]
[]
[]
[]
[]
[]
[]
[]
[]
[]
[]
[]
[]
[]
[]
[]
[]
[]
[]
[]
[]
[]
[]
[]
[]
[]
[]
[]
[]
[]
[]
[]
[]
[]
[]
[]
[]
[]
[]
[]
[]
[]
[]
[]
[]
[]
[]
[]
[]
[]
[]
[]
[]
[]
[]
[]
[]
[]
[]
[]
[]
[]
[]
[]
[]
[]
[]
[]
[]
[]
[]
[]
[]
[]
[]
[]
[]
[]
[]
[]
[]
[]
[]
[]
[]
[]
[]
[]
[]
[]
[]
[]
[]
[]
[]
[]
[]
[]
[]
[]
[]
[]
[]
[]
[]
[]
[]
[]
[]
[]
[]
[]
[]
[]
[]
[]
[]
[]
[]
[]
[]
[]
[]
[]
[]
[]
[]
[]
[]
[]
[]
[]
[]
[]
[]
[]
[]
[]
[]
[]
[]
[]
[]
[]
[]
[]
[]
[]
[]
[]
[]
[]
[]
[]
[]
[]
[]
[]
[]
[]
[]
[]
[]
[]
[]
[]
[]
[]
[]
[]
[]
[]
[]
[]
[]
[]
[]
[]
[]
[]
[]
[]
[]
[]
[]
[]
[]
[]
[]
[]
[]
[]
[]
[]
[]
[]
[]
[]
[]
[]
[]
[]
[]
[]
[]
[]
[]
[]
[]
[]
[]
[]
[]
[]
[]
[]
[]
[]
[]
[]
[]
[]
[]
[]
[]
[]
[]
[]
[]
[]
[]
[]
[]
[]
[]
[]
[]
[]
[]
[]
[]
[]
[]
[]
[]
[]
[]
[]
[]
[]
[]
[]
[]
[]
[]
[]
[]
[]
[]
[]
[]
[]
[]
[]
[]
[]
[]
[]
[]
[]
[]
[]
[]
[]
[]
[]
[]
[]
[]
[]
[]
[]
[]
[]
[]
[]
[]
[]
[]
[]
[]
[]
[]
[]
[]
[]
[]
[]
[]
[]
[]
[]
[]
[]
[]
[]
[]
[]
[]
[]
[]
[]
[]
[]
[]
[]
[]
[]
[]
[]
[]
[]
[]
[]
[]
[]
[]
[]
[]
[]
[]
[]
[]
[]
[]
[]
[]
[]
[]
[]
[]
[]
[]
[]
[]
[]
[]
[]
[]
[]
[]
[]
[]
[]
[]
[]
[]
[]
[]
[]
[]
[]
[]
[]
[]
[]
[]
[]
[]
[]
[]
[]
[]
[]
[]
[]
[]
[]
[]
[]
[]
[]
[]
[]
[]
[]
[]
[]
[]
[]
[]
[]
[]
[]
[]
[]
[]
[]
[]
[]
[]
[]
[]
[]
[]
[]
[]
[]
[]
[]
[]
[]
[]
[]
[]
[]
[]
[]
[]
[]
[]
[]
[]
[]
[]
[]
[]
[]
[]
[]
[]
[]
[]
[]
[]
[]
[]
[]
[]
[]
[]
[]
[]
[]
[]
[]
[]
[]
[]
[]
[]
[]
[]
[]
[]
[]
[]
[]
[]
[]
[]
[]
[]
[]
[]
[]
[]
[]
[]
[]
[]
[]
[]
[]
[]
[]
[]
[]
[]
[]
[]
[]
[]
[]
[]
[]
[]
[]
[]
[]
[]
[]
[]
[]
[]
[]
[]
[]
[]
[]
[]
[]
[]
[]
[]
[]
[]
[]
[]
[]
[]
[]
[]
[]
[]
[]
[]
[]
[]
[]
[]
[]
[]
[]
[]
[]
[]
[]
[]
[]
[]
[]
[]
[]
[]
[]
[]
[]
[]
[]
[]
[]
[]
[]
[]
[]
[]
[]
[]
[]
[]
[]
[]
[]
[]
[]
[]
[]
[]
[]
[]
[]
[]
[]
[]
[]
[]
[]
[]
[]
[]
[]
[]
[]
[]
[]
[]
[]
[]
[]
[]
[]
[]
[]
[]
[]
[]
[]
[]
[]
[]
[]
[]
[]
[]
[]
[]
[]
[]
[]
[]
[]
[]
[]
[]
[]
[]
[]
[]
[]
[]
[]
[]
[]
[]
[]
[]
[]
[]
[]
[]
[]
[]
[]
[]
[]
[]
[]
[]
[]
[]
[]
[]
[]
[]
[]
[]
[]
[]
[]
[]
[]
[]
[]
[]
[]
[]
[]
[]
[]
[]
[]
[]
[]
[]
[]
[]
[]
[]
[]
[]
[]
[]
[]
[]
[]
[]
[]
[]
[]
[]
[]
[]
[]
[]
[]
[]
[]
[]
[]
[]
[]
[]
[]
[]
[]
[]
[]
[]
[]
[]
[]
[]
[]
[]
[]
[]
[]
[]
[]
[]
[]
[]
[]
[]
[]
[]
[]
[]
[]
[]
[]
[]
[]
[]
[]
[]
[]
[]
[]
[]
[]
[]
[]
[]
[]
[]
[]
[]
[]
[]
[]
[]
[]
[]
[]
[]
[]
[]
[]
[]
[]
[]
[]
[]
[]
[]
[]
[]
[]
[]
[]
[]
[]
[]
[]
[]
[]
[]
[]
[]
[]
[]
[]
[]
[]
[]
[]
[]
[]
[]
[]
[]
[]
[]
[]
[]
[]
[]
[]
[]
[]
[]
[]
[]
[]
[]
[]
[]
[]
[]
[]
[]
[]
[]
[]
[]
[]
[]
[]
[]
[]
[]
[]
[]
[]
[]
[]
[]
[]
[]
[]
[]
[]
[]
[]
[]
[]
[]
[]
[]
[]
[]
[]
[]
[]
[]
[]
[]
[]
[]
[]
[]
[]
[]
[]
[]
[]
[]
[]
[]
[]
[]
[]
[]
[]
[]
[]
[]
[]
[]
[]
[]
[]
[]
[]
[]
[]
[]
[]
[]
[]
[]
[]
[]
[]
[]
[]
[]
[]
[]
[]
[]
[]
[]
[]
[]
[]
[]
[]
[]
[]
[]
[]
[]
[]
[]
[]
[]
[]
[]
[]
[]
[]
[]
[]
[]
[]
[]
[]
[]
[]
[]
[]
[]
[]
[]
[]
[]
[]
[]
[]
[]
[]
[]
[]
[]
[]
[]
[]
[]
[]
[]
[]
[]
[]
[]
[]
[]
[]
[]
[]
[]
[]
[]
[]
[]
[]
[]
[]
[]
[]
[]
[]
[]
[]
[]
[]
[]
[]
[]
[]
[]
[]
[]
[]
[]
[]
[]
[]
[]
[]
[]
[]
[]
[]
[]
[]
[]
[]
[]
[]
[]
[]
[]
[]
[]
[]
[]
[]
[]
[]
[]
[]
[]
[]
[]
[]
[]
[]
[]
[]
[]
[]
[]
[]
[]
[]
[]
[]
[]
[]
[]
[]
[]
[]
[]
[]
[]
[]
[]
[]
[]
[]
[]
[]
[]
[]
[]
[]
[]
[]
[]
[]
[]
[]
[]
[]
[]
[]
[]
[]
[]
[]
[]
[]
[]
[]
[]
[]
[]
[]
[]
[]
[]
[]
[]
[]
[]
[]
[]
[]
[]
[]
[]
[]
[]
[]
[]
[]
[]
[]
[]
[]
[]
[]
[]
[]
[]
[]
[]
[]
[]
[]
[]
[]
[]
[]
[]
[]
[]
[]
[]
[]
[]
[]
[]
[]
[]
[]
[]
[]
[]
[]
[]
[]
[]
[]
[]
[]
[]
[]
[]
[]
[]
[]
[]
[]
[]
[]
[]
[]
[]
[]
[]
[]
[]
[]
[]
[]
[]
[]
[]
[]
[]
[]
[]
[]
[]
[]
[]
[]
[]
[]
[]
[]
[]
[]
[]
[]
[]
[]
[]
[]
[]
[]
[]
[]
[]
[]
[]
[]
[]
[]
[]
[]
[]
[]
[]
[]
[]
[]
[]
[]
[]
[]
[]
[]
[]
[]
[]
[]
[]
[]
[]
[]
[]
[]
[]
[]
[]
[]
[]
[]
[]
[]
[]
[]
[]
[]
[]
[]
[]
[]
[]
[]
[]
[]
[]
[]
[]
[]
[]
[]
[]
[]
[]
[]
[]
[]
[]
[]
[]
[]
[]
[]
[]
[]
[]
[]
[]
[]
[]
[]
[]
[]
[]
[]
[]
[]
[]
[]
[]
[]
[]
[]
[]
[]
[]
[]
[]
[]
[]
[]
[]
[]
[]
[]
[]
[]
[]
[]
[]
[]
[]
[]
[]
[]
[]
[]
[]
[]
[]
[]
[]
[]
[]
[]
[]
[]
[]
[]
[]
[]
[]
[]
[]
[]
[]
[]
[]
[]
[]
[]
[]
[]
[]
[]
[]
[]
[]
[]
[]
[]
[]
[]
[]
[]
[]
[]
[]
[]
[]
[]
[]
[]
[]
[]
[]
[]
[]
[]
[]
[]
[]
[]
[]
[]
[]
[]
[]
[]
[]
[]
[]
[]
[]
[]
[]
[]
[]
[]
[]
[]
[]
[]
[]
[]
[]
[]
[]
[]
[]
[]
[]
[]
[]
[]
[]
[]
[]
[]
[]
[]
[]
[]
[]
[]
[]
[]
[]
[]
[]
[]
[]
[]
[]
[]
[]
[]
[]
[]
[]
[]
[]
[]
[]
[]
[]
[]
[]
[]
[]
[]
[]
[]
[]
[]
[]
[]
[]
[]
[]
[]
[]
[]
[]
[]
[]
[]
[]
[]
[]
[]
[]
[]
[]
[]
[]
[]
[]
[]
[]
[]
[]
[]
[]
[]
[]
[]
[]
[]
[]
[]
[]
[]
[]
[]
[]
[]
[]
[]
[]
[]
[]
[]
[]
[]
[]
[]
[]
[]
[]
[]
[]
[]
[]
[]
[]
[]
[]
[]
[]
[]
[]
[]
[]
[]
[]
[]
[]
[]
[]
[]
[]
[]
[]
[]
[]
[]
[]
[]
[]
[]
[]
[]
[]
[]
[]
[]
[]
[]
[]
[]
[]
[]
[]
[]
[]
[]
[]
[]
[]
[]
[]
[]
[]
[]
[]
[]
[]
[]
[]
[]
[]
[]
[]
[]
[]
[]
[]
[]
[]
[]
[]
[]
[]
[]
[]
[]
[]
[]
[]
[]
[]
[]
[]
[]
[]
[]
[]
[]
[]
[]
[]
[]
[]
[]
[]
[]
[]
[]
[]
[]
[]
[]
[]
[]
[]
[]
[]
[]
[]
[]
[]
[]
[]
[]
[]
[]
[]
[]
[]
[]
[]
[]
[]
[]
[]
[]
[]
[]
[]
[]
[]
[]
[]
[]
[]
[]
[]
[]
[]
[]
[]
[]
[]
[]
[]
[]
[]
[]
[]
[]
[]
[]
[]
[]
[]
[]
[]
[]
[]
[]
[]
[]
[]
[]
[]
[]
[]
[]
[]
[]
[]
[]
[]
[]
[]
[]
[]
[]
[]
[]
[]
[]
[]
[]
[]
[]
[]
[]
[]
[]
[]
[]
[]
[]
[]
[]
[]
[]
[]
[]
[]
[]
[]
[]
[]
[]
[]
[]
[]
[]
[]
[]
[]
[]
[]
[]
[]
[]
[]
[]
[]
[]
[]
[]
[]
[]
[]
[]
[]
[]
[]
[]
[]
[]
[]
[]
[]
[]
[]
[]
[]
[]
[]
[]
[]
[]
[]
[]
[]
[]
[]
[]
[]
[]
[]
[]
[]
[]
[]
[]
[]
[]
[]
[]
[]
[]
[]
[]
[]
[]
[]
[]
[]
[]
[]
[]
[]
[]
[]
[]
[]
[]
[]
[]
[]
[]
[]
[]
[]
[]
[]
[]
[]
[]
[]
[]
[]
[]
[]
[]
[]
[]
[]
[]
[]
[]
[]
[]
[]
[]
[]
[]
[]
[]
[]
[]
[]
[]
[]
[]
[]
[]
[]
[]
[]
[]
[]
[]
[]
[]
[]
[]
[]
[]
[]
[]
[]
[]
[]
[]
[]
[]
[]
[]
[]
[]
[]
[]
[]
[]
[]
[]
[]
[]
[]
[]
[]
[]
[]
[]
[]
[]
[]
[]
[]
[]
[]
[]
[]
[]
[]
[]
[]
[]
[]
[]
[]
[]
[]
[]
[]
[]
[]
[]
[]
[]
[]
[]
[]
[]
[]
[]
[]
[]
[]
[]
[]
[]
[]
[]
[]
[]
[]
[]
[]
[]
[]
[]
[]
[]
[]
[]
[]
[]
[]
[]
[]
[]
[]
[]
[]
[]
[]
[]
[]
[]
[]
[]
[]
[]
[]
[]
[]
[]
[]
[]
[]
[]
[]
[]
[]
[]
[]
[]
[]
[]
[]
[]
[]
[]
[]
[]
[]
[]
[]
[]
[]
[]
[]
[]
[]
[]
[]
[]
[]
[]
[]
[]
[]
[]
[]
[]
[]
[]
[]
[]
[]
[]
[]
[]
[]
[]
[]
[]
[]
[]
[]
[]
[]
[]
[]
[]
[]
[]
[]
[]
[]
[]
[]
[]
[]
[]
[]
[]
[]
[]
[]
[]
[]
[]
[]
[]
[]
[]
[]
[]
[]
[]
[]
[]
[]
[]
[]
[]
[]
[]
[]
[]
[]
[]
[]
[]
[]
[]
[]
[]
[]
[]
[]
[]
[]
[]
[]
[]
[]
[]
[]
[]
[]
[]
[]
[]
[]
[]
[]
[]
[]
[]
[]
[]
[]
[]
[]
[]
[]
[]
[]
[]
[]
[]
[]
[]
[]
[]
[]
[]
[]
[]
[]
[]
[]
[]
[]
[]
[]
[]
[]
[]
[]
[]
[]
[]
[]
[]
[]
[]
[]
[]
[]
[]
[]
[]
[]
[]
[]
[]
[]
[]
[]
[]
[]
[]
[]
[]
[]
[]
[]
[]
[]
[]
[]
[]
[]
[]
[]
[]
[]
[]
[]
[]
[]
[]
[]
[]
[]
[]
[]
[]
[]
[]
[]
[]
[]
[]
[]
[]
[]
[]
[]
[]
[]
[]
[]
[]
[]
[]
[]
[]
[]
[]
[]
[]
[]
[]
[]
[]
[]
[]
[]
[]
[]
[]
[]
[]
[]
[]
[]
[]
[]
[]
[]
[]
[]
[]
[]
[]
[]
[]
[]
[]
[]
[]
[]
[]
[]
[]
[]
[]
[]
[]
[]
[]
[]
[]
[]
[]
[]
[]
[]
[]
[]
[]
[]
[]
[]
[]
[]
[]
[]
[]
[]
[]
[]
[]
[]
[]
[]
[]
[]
[]
[]
[]
[]
[]
[]
[]
[]
[]
[]
[]
[]
[]
[]
[]
[]
[]
[]
[]
[]
[]
[]
[]
[]
[]
[]
[]
[]
[]
[]
[]
[]
[]
[]
[]
[]
[]
[]
[]
[]
[]
[]
[]
[]
[]
[]
[]
[]
[]
[]
[]
[]
[]
[]
[]
[]
[]
[]
[]
[]
[]
[]
[]
[]
[]
[]
[]
[]
[]
[]
[]
[]
[]
[]
[]
[]
[]
[]
[]
[]
[]
[]
[]
[]
[]
[]
[]
[]
[]
[]
[]
[]
[]
[]
[]
[]
[]
[]
[]
[]
[]
[]
[]
[]
[]
[]
[]
[]
[]
[]
[]
[]
[]
[]
[]
[]
[]
[]
[]
[]
[]
[]
[]
[]
[]
[]
[]
[]
[]
[]
[]
[]
[]
[]
[]
[]
[]
[]
[]
[]
[]
[]
[]
[]
[]
[]
[]
[]
[]
[]
[]
[]
[]
[]
[]
[]
[]
[]
[]
[]
[]
[]
[]
[]
[]
[]
[]
[]
[]
[]
[]
[]
[]
[]
[]
[]
[]
[]
[]
[]
[]
[]
[]
[]
[]
[]
[]
[]
[]
[]
[]
[]
[]
[]
[]
[]
[]
[]
[]
[]
[]
[]
[]
[]
[]
[]
[]
[]
[]
[]
[]
[]
[]
[]
[]
[]
[]
[]
[]
[]
[]
[]
[]
[]
[]
[]
[]
[]
[]
[]
[]
[]
[]
[]
[]
[]
[]
[]
[]
[]
[]
[]
[]
[]
[]
[]
[]
[]
[]
[]
[]
[]
[]
[]
[]
[]
[]
[]
[]
[]
[]
[]
[]
[]
[]
[]
[]
[]
[]
[]
[]
[]
[]
[]
[]
[]
[]
[]
[]
[]
[]
[]
[]
[]
[]
[]
[]
[]
[]
[]
[]
[]
[]
[]
[]
[]
[]
[]
[]
[]
[]
[]
[]
[]
[]
[]
[]
[]
[]
[]
[]
[]
[]
[]
[]
[]
[]
[]
[]
[]
[]
[]
[]
[]
[]
[]
[]
[]
[]
[]
[]
[]
[]
[]
[]
[]
[]
[]
[]
[]
[]
[]
[]
[]
[]
[]
[]
[]
[]
[]
[]
[]
[]
[]
[]
[]
[]
[]
[]
[]
[]
[]
[]
[]
[]
[]
[]
[]
[]
[]
[]
[]
[]
[]
[]
[]
[]
[]
[]
[]
[]
[]
[]
[]
[]
[]
[]
[]
[]
[]
[]
[]
[]
[]
[]
[]
[]
[]
[]
[]
[]
[]
[]
[]
[]
[]
[]
[]
[]
[]
[]
[]
[]
[]
[]
[]
[]
[]
[]
[]
[]
[]
[]
[]
[]
[]
[]
[]
[]
[]
[]
[]
[]
[]
[]
[]
[]
[]
[]
[]
[]
[]
[]
[]
[]
[]
[]
[]
[]
[]
[]
[]
[]
[]
[]
[]
[]
[]
[]
[]
[]
[]
[]
[]
[]
[]
[]
[]
[]
[]
[]
[]
[]
[]
[]
[]
[]
[]
[]
[]
[]
[]
[]
[]
[]
[]
[]
[]
[]
[]
[]
[]
[]
[]
[]
[]
[]
[]
[]
[]
[]
[]
[]
[]
[]
[]
[]
[]
[]
[]
[]
[]
[]
[]
[]
[]
[]
[]
[]
[]
[]
[]
[]
[]
[]
[]
[]
[]
[]
[]
[]
[]
[]
[]
[]
[]
[]
[]
[]
[]
[]
[]
[]
[]
[]
[]
[]
[]
[]
[]
[]
[]
[]
[]
[]
[]
[]
[]
[]
[]
[]
[]
[]
[]
[]
[]
[]
[]
[]
[]
[]
[]
[]
[]
[]
[]
[]
[]
[]
[]
[]
[]
[]
[]
[]
[]
[]
[]
[]
[]
[]
[]
[]
[]
[]
[]
[]
[]
[]
[]
[]
[]
[]
[]
[]
[]
[]
[]
[]
[]
[]
[]
[]
[]
[]
[]
[]
[]
[]
[]
[]
[]
[]
[]
[]
[]
[]
[]
[]
[]
[]
[]
[]
[]
[]
[]
[]
[]
[]
[]
[]
[]
[]
[]
[]
[]
[]
[]
[]
[]
[]
[]
[]
[]
[]
[]
[]
[]
[]
[]
[]
[]
[]
[]
[]
[]
[]
[]
[]
[]
[]
[]
[]
[]
[]
[]
[]
[]
[]
[]
[]
[]
[]
[]
[]
[]
[]
[]
[]
[]
[]
[]
[]
[]
[]
[]
[]
[]
[]
[]
[]
[]
[]
[]
[]
[]
[]
[]
[]
[]
[]
[]
[]
[]
[]
[]
[]
[]
[]
[]
[]
[]
[]
[]
[]
[]
[]
[]
[]
[]
[]
[]
[]
[]
[]
[]
[]
[]
[]
[]
[]
[]
[]
[]
[]
[]
[]
[]
[]
[]
[]
[]
[]
[]
[]
[]
[]
[]
[]
[]
[]
[]
[]
[]
[]
[]
[]
[]
[]
[]
[]
[]
[]
[]
[]
[]
[]
[]
[]
[]
[]
[]
[]
[]
[]
[]
[]
[]
[]
[]
[]
[]
[]
[]
[]
[]
[]
[]
[]
[]
[]
[]
[]
[]
[]
[]
[]
[]
[]
[]
[]
[]
[]
[]
[]
[]
[]
[]
[]
[]
[]
[]
[]
[]
[]
[]
[]
[]
[]
[]
[]
[]
[]
[]
[]
[]
[]
[]
[]
[]
[]
[]
[]
[]
[]
[]
[]
[]
[]
[]
[]
[]
[]
[]
[]
[]
[]
[]
[]
[]
[]
[]
[]
[]
[]
[]
[]
[]
[]
[]
[]
[]
[]
[]
[]
[]
[]
[]
[]
[]
[]
[]
[]
[]
[]
[]
[]
[]
[]
[]
[]
[]
[]
[]
[]
[]
[]
[]
[]
[]
[]
[]
[]
[]
[]
[]
[]
[]
[]
[]
[]
[]
[]
[]
[]
[]
[]
[]
[]
[]
[]
[]
[]
[]
[]
[]
[]
[]
[]
[]
[]
[]
[]
[]
[]
[]
[]
[]
[]
[]
[]
[]
[]
[]
[]
[]
[]
[]
[]
[]
[]
[]
[]
[]
[]
[]
[]
[]
[]
[]
[]
[]
[]
[]
[]
[]
[]
[]
[]
[]
[]
[]
[]
[]
[]
[]
[]
[]
[]
[]
[]
[]
[]
[]
[]
[]
[]
[]
[]
[]
[]
[]
[]
[]
[]
[]
[]
[]
[]
[]
[]
[]
[]
[]
[]
[]
[]
[]
[]
[]
[]
[]
[]
[]
[]
[]
[]
[]
[]
[]
[]
[]
[]
[]
[]
[]
[]
[]
[]
[]
[]
[]
[]
[]
[]
[]
[]
[]
[]
[]
[]
[]
[]
[]
[]
[]
[]
[]
[]
[]
[]
[]
[]
[]
[]
[]
[]
[]
[]
[]
[]
[]
[]
[]
[]
[]
[]
[]
[]
[]
[]
[]
[]
[]
[]
[]
[]
[]
[]
[]
[]
[]
[]
[]
[]
[]
[]
[]
[]
[]
[]
[]
[]
[]
[]
[]
[]
[]
[]
[]
[]
[]
[]
[]
[]
[]
[]
[]
[]
[]
[]
[]
[]
[]
[]
[]
[]
[]
[]
[]
[]
[]
[]
[]
[]
[]
[]
[]
[]
[]
[]
[]
[]
[]
[]
[]
[]
[]
[]
[]
[]
[]
[]
[]
[]
[]
[]
[]
[]
[]
[]
[]
[]
[]
[]
[]
[]
[]
[]
[]
[]
[]
[]
[]
[]
[]
[]
[]
[]
[]
[]
[]
[]
[]
[]
[]
[]
[]
[]
[]
[]
[]
[]
[]
[]
[]
[]
[]
[]
[]
[]
[]
[]
[]
[]
[]
[]
[]
[]
[]
[]
[]
[]
[]
[]
[]
[]
[]
[]
[]
[]
[]
[]
[]
[]
[]
[]
[]
[]
[]
[]
[]
[]
[]
[]
[]
[]
[]
[]
[]
[]
[]
[]
[]
[]
[]
[]
[]
[]
[]
[]
[]
[]
[]
[]
[]
[]
[]
[]
[]
[]
[]
[]
[]
[]
[]
[]
[]
[]
[]
[]
[]
[]
[]
[]
[]
[]
[]
[]
[]
[]
[]
[]
[]
[]
[]
[]
[]
[]
[]
[]
[]
[]
[]
[]
[]
[]
[]
[]
[]
[]
[]
[]
[]
[]
[]
[]
[]
[]
[]
[]
[]
[]
[]
[]
[]
[]
[]
[]
[]
[]
[]
[]
[]
[]
[]
[]
[]
[]
[]
[]
[]
[]
[]
[]
[]
[]
[]
[]
[]
[]
[]
[]
[]
[]
[]
[]
[]
[]
[]
[]
[]
[]
[]
[]
[]
[]
[]
[]
[]
[]
[]
[]
[]
[]
[]
[]
[]
[]
[]
[]
[]
[]
[]
[]
[]
[]
[]
[]
[]
[]
[]
[]
[]
[]
[]
[]
[]
[]
[]
[]
[]
[]
[]
[]
[]
[]
[]
[]
[]
[]
[]
[]
[]
[]
[]
[]
[]
[]
[]
[]
[]
[]
[]
[]
[]
[]
[]
[]
[]
[]
[]
[]
[]
[]
[]
[]
[]
[]
[]
[]
[]
[]
[]
[]
[]
[]
[]
[]
[]
[]
[]
[]
[]
[]
[]
[]
[]
[]
[]
[]
[]
[]
[]
[]
[]
[]
[]
[]
[]
[]
[]
[]
[]
[]
[]
[]
[]
[]
[]
[]
[]
[]
[]
[]
[]
[]
[]
[]
[]
[]
[]
[]
[]
[]
[]
[]
[]
[]
[]
[]
[]
[]
[]
[]
[]
[]
[]
[]
[]
[]
[]
[]
[]
[]
[]
[]
[]
[]
[]
[]
[]
[]
[]
[]
[]
[]
[]
[]
[]
[]
[]
[]
[]
[]
[]
[]
[]
[]
[]
[]
[]
[]
[]
[]
[]
[]
[]
[]
[]
[]
[]
[]
[]
[]
[]
[]
[]
[]
[]
[]
[]
[]
[]
[]
[]
[]
[]
[]
[]
[]
[]
[]
[]
[]
[]
[]
[]
[]
[]
[]
[]
[]
[]
[]
[]
[]
[]
[]
[]
[]
[]
[]
[]
[]
[]
[]
[]
[]
[]
[]
[]
[]
[]
[]
[]
[]
[]
[]
[]
[]
[]
[]
[]
[]
[]
[]
[]
[]
[]
[]
[]
[]
[]
[]
[]
[]
[]
[]
[]
[]
[]
[]
[]
[]
[]
[]
[]
[]
[]
[]
[]
[]
[]
[]
[]
[]
[]
[]
[]
[]
[]
[]
[]
[]
[]
[]
[]
[]
[]
[]
[]
[]
[]
[]
[]
[]
[]
[]
[]
[]
[]
[]
[]
[]
[]
[]
[]
[]
[]
[]
[]
[]
[]
[]
[]
[]
[]
[]
[]
[]
[]
[]
[]
[]
[]
[]
[]
[]
[]
[]
[]
[]
[]
[]
[]
[]
[]
[]
[]
[]
[]
[]
[]
[]
[]
[]
[]
[]
[]
[]
[]
[]
[]
[]
[]
[]
[]
[]
[]
[]
[]
[]
[]
[]
[]
[]
[]
[]
[]
[]
[]
[]
[]
[]
[]
[]
[]
[]
[]
[]
[]
[]
[]
[]
[]
[]
[]
[]
[]
[]
[]
[]
[]
[]
[]
[]
[]
[]
[]
[]
[]
[]
[]
[]
[]
[]
[]
[]
[]
[]
[]
[]
[]
[]
[]
[]
[]
[]
[]
[]
[]
[]
[]
[]
[]
[]
[]
[]
[]
[]
[]
[]
[]
[]
[]
[]
[]
[]
[]
[]
[]
[]
[]
[]
[]
[]
[]
[]
[]
[]
[]
[]
[]
[]
[]
[]
[]
[]
[]
[]
[]
[]
[]
[]
[]
[]
[]
[]
[]
[]
[]
[]
[]
[]
[]
[]
[]
[]
[]
[]
[]
[]
[]
[]
[]
[]
[]
[]
[]
[]
[]
[]
[]
[]
[]
[]
[]
[]
[]
[]
[]
[]
[]
[]
[]
[]
[]
[]
[]
[]
[]
[]
[]
[]
[]
[]
[]
[]
[]
[]
[]
[]
[]
[]
[]
[]
[]
[]
[]
[]
[]
[]
[]
[]
[]
[]
[]
[]
[]
[]
[]
[]
[]
[]
[]
[]
[]
[]
[]
[]
[]
[]
[]
[]
[]
[]
[]
[]
[]
[]
[]
[]
[]
[]
[]
[]
[]
[]
[]
[]
[]
[]
[]
[]
[]
[]
[]
[]
[]
[]
[]
[]
[]
[]
[]
[]
[]
[]
[]
[]
[]
[]
[]
[]
[]
[]
[]
[]
[]
[]
[]
[]
[]
[]
[]
[]
[]
[]
[]
[]
[]
[]
[]
[]
[]
[]
[]
[]
[]
[]
[]
[]
[]
[]
[]
[]
[]
[]
[]
[]
[]
[]
[]
[]
[]
[]
[]
[]
[]
[]
[]
[]
[]
[]
[]
[]
[]
[]
[]
[]
[]
[]
[]
[]
[]
[]
[]
[]
[]
[]
[]
[]
[]
[]
[]
[]
[]
[]
[]
[]
[]
[]
[]
[]
[]
[]
[]
[]
[]
[]
[]
[]
[]
[]
[]
[]
[]
[]
[]
[]
[]
[]
[]
[]
[]
[]
[]
[]
[]
[]
[]
[]
[]
[]
[]
[]
[]
[]
[]
[]
[]
[]
[]
[]
[]
[]
[]
[]
[]
[]
[]
[]
[]
[]
[]
[]
[]
[]
[]
[]
[]
[]
[]
[]
[]
[]
[]
[]
[]
[]
[]
[]
[]
[]
[]
[]
[]
[]
[]
[]
[]
[]
[]
[]
[]
[]
[]
[]
[]
[]
[]
[]
[]
[]
[]
[]
[]
[]
[]
[]
[]
[]
[]
[]
[]
[]
[]
[]
[]
[]
[]
[]
[]
[]
[]
[]
[]
[]
[]
[]
[]
[]
[]
[]
[]
[]
[]
[]
[]
[]
[]
[]
[]
[]
[]
[]
[]
[]
[]
[]
[]
[]
[]
[]
[]
[]
[]
[]
[]
[]
[]
[]
[]
[]
[]
[]
[]
[]
[]
[]
[]
[]
[]
[]
[]
[]
[]
[]
[]
[]
[]
[]
[]
[]
[]
[]
[]
[]
[]
[]
[]
[]
[]
[]
[]
[]
[]
[]
[]
[]
[]
[]
[]
[]
[]
[]
[]
[]
[]
[]
[]
[]
[]
[]
[]
[]
[]
[]
[]
[]
[]
[]
[]
[]
[]
[]
[]
[]
[]
[]
[]
[]
[]
[]
[]
[]
[]
[]
[]
[]
[]
[]
[]
[]
[]
[]
[]
[]
[]
[]
[]
[]
[]
[]
[]
[]
[]
[]
[]
[]
[]
[]
[]
[]
[]
[]
[]
[]
[]
[]
[]
[]
[]
[]
[]
[]
[]
[]
[]
[]
[]
[]
[]
[]
[]
[]
[]
[]
[]
[]
[]
[]
[]
[]
[]
[]
[]
[]
[]
[]
[]
[]
[]
[]
[]
[]
[]
[]
[]
[]
[]
[]
[]
[]
[]
[]
[]
[]
[]
[]
[]
[]
[]
[]
[]
[]
[]
[]
[]
[]
[]
[]
[]
[]
[]
[]
[]
[]
[]
[]
[]
[]
[]
[]
[]
[]
[]
[]
[]
[]
[]
[]
[]
[]
[]
[]
[]
[]
[]
[]
[]
[]
[]
[]
[]
[]
[]
[]
[]
[]
[]
[]
[]
[]
[]
[]
[]
[]
[]
[]
[]
[]
[]
[]
[]
[]
[]
[]
[]
[]
[]
[]
[]
[]
[]
[]
[]
[]
[]
[]
[]
[]
[]
[]
[]
[]
[]
[]
[]
[]
[]
[]
[]
[]
[]
[]
[]
[]
[]
[]
[]
[]
[]
[]
[]
[]
[]
[]
[]
[]
[]
[]
[]
[]
[]
[]
[]
[]
[]
[]
[]
[]
[]
[]
[]
[]
[]
[]
[]
[]
[]
[]
[]
[]
[]
[]
[]
[]
[]
[]
[]
[]
[]
[]
[]
[]
[]
[]
[]
[]
[]
[]
[]
[]
[]
[]
[]
[]
[]
[]
[]
[]
[]
[]
[]
[]
[]
[]
[]
[]
[]
[]
[]
[]
[]
[]
[]
[]
[]
[]
[]
[]
[]
[]
[]
[]
[]
[]
[]
[]
[]
[]
[]
[]
[]
[]
[]
[]
[]
[]
[]
[]
[]
[]
[]
[]
[]
[]
[]
[]
[]
[]
[]
[]
[]
[]
[]
[]
[]
[]
[]
[]
[]
[]
[]
[]
[]
[]
[]
[]
[]
[]
[]
[]
[]
[]
[]
[]
[]
[]
[]
[]
[]
[]
[]
[]
[]
[]
[]
[]
[]
[]
[]
[]
[]
[]
[]
[]
[]
[]
[]
[]
[]
[]
[]
[]
[]
[]
[]
[]
[]
[]
[]
[]
[]
[]
[]
[]
[]
[]
[]
[]
[]
[]
[]
[]
[]
[]
[]
[]
[]
[]
[]
[]
[]
[]
["Max number of rows allowed for this form ends on Row 4985.  If additional information is necessary, please submit a second form."]

{"sheet":"Exhibit B","index":2,"n_rows":5036,"n_cols":16,"rows_kept":5036,"cut":false,"hidden":false,"merged":[[3,1,3,15],[12,2,12,14],[30,4,30,7],[29,4,29,7],[25,4,25,7],[26,4,26,7],[27,4,27,7],[28,4,28,7],[24,2,24,3],[14,2,21,14],[23,9,23,14],[8,1,8,15],[23,2,23,7],[24,4,24,7],[25,2,25,3],[26,2,26,3],[6,2,6,14],[30,2,30,3],[32,11,32,13],[33,11,33,13],[29,2,29,3],[27,2,27,3],[28,2,28,3],[5034,1,5034,15],[34,11,34,13],[36,5,36,8],[36,9,36,12],[5032,1,5032,2],[5030,1,5030,15],[5024,2,5024,14],[36,13,36,14],[39,13,39,14],[36,2,36,4]]}
[]
[]
[null,null,null,null,null,null,null,null,null,null,null,null,null,null,null,"S T A T E   O F   I O W A"]
[]
[null,"KIM REYNOLDS, GOVERNOR",null,null,null,null,null,null,null,null,null,null,null,null,null,"ANNETTE DUNN"]
[null,"ADAM GREGG, LT. GOVERNOR",null,null,null,null,null,null,null,null,null,null,null,null,null,"CHIEF INFORMATION OFFICER"]
[null,null,"Exhibit B — Broadband Grants Program Project Worksheet"]
[null,{"$f":"\"Applicant Name:  \"&ApplicantName","v":"Applicant Name:  Required"},null,null,null,null,null,null,null,null,null,null,null,null,null,{"$f":"\"Application #:  \"&ApplicationNbr","v":"Application #:  Created By OCIO"}]
[]
[]
[null,null,{"$f":"\"Delivery Platform:    FTTH: \"&FTTH&\"    DSL: \"&DSL&\"    \"","v":"Delivery Platform:    FTTH: Yes    DSL:     "}]
[null,null,{"$f":"\"Insfrastructure Type:    \"&Infrastructure_Type","v":"Insfrastructure Type:    Required"}]
[null,null,{"$f":"\"Will you be seeking or have you previously obtained in relation to this Project, in whole or in part, a Property Tax Exemption pursuant to Iowa Code section 427.1(40)?   \"&PTE","v":"Will you be seeking or have you previously obtained in relation to this Project, in whole or in part, a Property Tax Exemption pursuant to Iowa Code section 427.1(40)?   Required"}]
[null,null,"% of Baseline to be Served:"]
[null,null,"Applicants should identify all Delivery Platforms forming the basis of their Project by selecting all Delivery Platform types that are projected to be deployed as part of the Project. Consistent with the definition of Facilitates, Applicants must identify the upload/download speeds on an individual census block basis that their Project will Facilitate in the “Facilitated Speeds” column below; this may be based on the most favorable product offering that will be made available within each of the census blocks forming the basis of a Project and that will be made available within a commercially reasonable time and at a commercially reasonable price. In identifying Prospective Product Attributes, Applicants may use the most favorable product offering that will be made available within a majority of the census blocks forming the basis of their Project and that will be made available within a commercially reasonable time and at a commercially reasonable price within the Project area upon request by a consumer as a result of the Project. Refer to NOFA #002 Section 3.1.6 for more information on Prospective Product Attributes."]
[]
[]
[]
[]
[]
[]
[]
[]
[null,null,"Delivery Platform:  (Check and/or Populate Other)",null,null,null,null,null,null,"Prospective Product Attributes:  (Populate Responses)"]
[null,null,"   - FTTH",null,null,null,null,null,null,"   - Availability",null,null,null,0," percent"]
[null,null,"   - DSL",null,null,null,null,null,null,"   - Latency",null,null,null,0," milliseconds"]
[null,null,"   - Cable Modem",null,null,null,null,null,null,"   - Hop Count",null,null,null,0," hops"]
[null,null,"   - Wireless Spectrum",null,null,null,null,null,null,"   - Performance Credits"]
[null,null,"   - Fixed Wireless",null,null,null,null,null,null,"   - Data Cap"]
[null,null,"   - Other",null,null,null,null,null,null,"   - Symmetry"]
[null,null,"Infrastructure Type",null,"Required"]
[]
[null,null,null,null,null,null,null,null,null,null,null,"Total Units To Be Served",null,null,{"$f":"Total_HSBs_Served","v":0}]
[null,null,null,null,null,null,null,null,null,null,null,"% of Baseline To Be Served",null,null,{"$f":"Baseline","v":0}]
[null,null,null,null,null,null,null,null,null,null,null,"Units Served Per Square Mile",null,null,{"$f":"IFERROR(UnitsPerSqMile,0)","v":0}]
[]
[null,null,"Target Service Area",null,null,"Total Number of HSB's (i.e., Broadband Units) in Project Area",null,null,null,"Total Number of HSB's (i.e., Broadband Units) New Service Will Be Available To",null,null,null,"Facilitated Speeds in Project Area Upon Project Completion"]
[null,null,"Census Block #","County","Sq. Miles","H","S","B","Total Units","H","S","B","Total Units","Down (Mbps)","Up (Mbps)"]
["Include","?","Census Block #","County","Sq. Miles","H","S","B","Total Units","H","S","B","Total Units","Down (Mbps)","Up (Mbps)"]
["1",null,{"$f":"COUNTIF(A41:A5023,1)","v":0},{"$f":"SUMPRODUCT((D41:D5023<>\"\")/COUNTIF(D41:D5023,D41:D5023&\"\"))","v":0},{"$f":"SUM(E41:E5023)","v":0},0,0,0,0,0,0,0,{"$f":"SUM(M41:M5023)","v":0},"TOTAL"]
[{"$f":"IF(C41=\"\",\"\",LEFT(C41,1))","v":""},null,{"$f":"IF('TSA Input'!J3=\"\",\"\",IF(OR('TSA Input'!J3=\"Yes\",'TSA Input'!J3=\"Contingent\"),'TSA Input'!B3,\"Ineligible\"))","v":""},{"$f":"IF('TSA Input'!J3=\"\",\"\",IF(OR('TSA Input'!J3=\"Yes\",'TSA Input'!J3=\"Contingent\"),'TSA Input'!I3,\"\"))","v":""},{"$f":"IF('TSA Input'!J3=\"\",\"\",IF(OR('TSA Input'!J3=\"Yes\",'TSA Input'!J3=\"Contingent\"),'TSA Input'!C3,\"\"))","v":""},{"$f":"IF('TSA Input'!J3=\"\",\"\",IF(OR('TSA Input'!J3=\"Yes\",'TSA Input'!J3=\"Contingent\"),'TSA Input'!D3,\"\"))","v":""},{"$f":"IF('TSA Input'!J3=\"\",\"\",IF(OR('TSA Input'!J3=\"Yes\",'TSA Input'!J3=\"Contingent\"),'TSA Input'!G3,\"\"))","v":""},{"$f":"IF('TSA Input'!J3=\"\",\"\",IF(OR('TSA Input'!J3=\"Yes\",'TSA Input'!J3=\"Contingent\"),'TSA Input'!F3,\"\"))","v":""},{"$f":"IF($C41=\"\",\"\",SUM(F41:H41))","v":""},{"$f":"IF('TSA Input'!J3=\"\",\"\",IF(OR('TSA Input'!J3=\"Yes\",'TSA Input'!J3=\"Contingent\"),'TSA Input'!D3,\"\"))","v":""},{"$f":"IF('TSA Input'!J3=\"\",\"\",IF(OR('TSA Input'!J3=\"Yes\",'TSA Input'!J3=\"Contingent\"),'TSA Input'!G3,\"\"))","v":""},{"$f":"IF('TSA Input'!J3=\"\",\"\",IF(OR('TSA Input'!J3=\"Yes\",'TSA Input'!J3=\"Contingent\"),'TSA Input'!F3,\"\"))","v":""},{"$f":"IF($C41=\"\",\"\",SUM(J41:L41))","v":""},"Required","Required"]
["",null,{"$f":"IF('TSA Input'!J4=\"\",\"\",IF(OR('TSA Input'!J4=\"Yes\",'TSA Input'!J4=\"Contingent\"),'TSA Input'!B4,\"Ineligible\"))","v":""},{"$f":"IF('TSA Input'!J4=\"\",\"\",IF(OR('TSA Input'!J4=\"Yes\",'TSA Input'!J4=\"Contingent\"),'TSA Input'!I4,\"\"))","v":""},{"$f":"IF('TSA Input'!J4=\"\",\"\",IF(OR('TSA Input'!J4=\"Yes\",'TSA Input'!J4=\"Contingent\"),'TSA Input'!C4,\"\"))","v":""},{"$f":"IF('TSA Input'!J4=\"\",\"\",IF(OR('TSA Input'!J4=\"Yes\",'TSA Input'!J4=\"Contingent\"),'TSA Input'!D4,\"\"))","v":""},{"$f":"IF('TSA Input'!J4=\"\",\"\",IF(OR('TSA Input'!J4=\"Yes\",'TSA Input'!J4=\"Contingent\"),'TSA Input'!G4,\"\"))","v":""},{"$f":"IF('TSA Input'!J4=\"\",\"\",IF(OR('TSA Input'!J4=\"Yes\",'TSA Input'!J4=\"Contingent\"),'TSA Input'!F4,\"\"))","v":""},{"$f":"IF($C42=\"\",\"\",SUM(F42:H42))","v":""},{"$f":"IF('TSA Input'!J4=\"\",\"\",IF(OR('TSA Input'!J4=\"Yes\",'TSA Input'!J4=\"Contingent\"),'TSA Input'!D4,\"\"))","v":""},{"$f":"IF('TSA Input'!J4=\"\",\"\",IF(OR('TSA Input'!J4=\"Yes\",'TSA Input'!J4=\"Contingent\"),'TSA Input'!G4,\"\"))","v":""},{"$f":"IF('TSA Input'!J4=\"\",\"\",IF(OR('TSA Input'!J4=\"Yes\",'TSA Input'!J4=\"Contingent\"),'TSA Input'!F4,\"\"))","v":""},{"$f":"IF($C42=\"\",\"\",SUM(J42:L42))","v":""},"Required","Required"]
["",null,{"$f":"IF('TSA Input'!J5=\"\",\"\",IF(OR('TSA Input'!J5=\"Yes\",'TSA Input'!J5=\"Contingent\"),'TSA Input'!B5,\"Ineligible\"))","v":""},{"$f":"IF('TSA Input'!J5=\"\",\"\",IF(OR('TSA Input'!J5=\"Yes\",'TSA Input'!J5=\"Contingent\"),'TSA Input'!I5,\"\"))","v":""},{"$f":"IF('TSA Input'!J5=\"\",\"\",IF(OR('TSA Input'!J5=\"Yes\",'TSA Input'!J5=\"Contingent\"),'TSA Input'!C5,\"\"))","v":""},{"$f":"IF('TSA Input'!J5=\"\",\"\",IF(OR('TSA Input'!J5=\"Yes\",'TSA Input'!J5=\"Contingent\"),'TSA Input'!D5,\"\"))","v":""},{"$f":"IF('TSA Input'!J5=\"\",\"\",IF(OR('TSA Input'!J5=\"Yes\",'TSA Input'!J5=\"Contingent\"),'TSA Input'!G5,\"\"))","v":""},{"$f":"IF('TSA Input'!J5=\"\",\"\",IF(OR('TSA Input'!J5=\"Yes\",'TSA Input'!J5=\"Contingent\"),'TSA Input'!F5,\"\"))","v":""},"",{"$f":"IF('TSA Input'!J5=\"\",\"\",IF(OR('TSA Input'!J5=\"Yes\",'TSA Input'!J5=\"Contingent\"),'TSA Input'!D5,\"\"))","v":""},{"$f":"IF('TSA Input'!J5=\"\",\"\",IF(OR('TSA Input'!J5=\"Yes\",'TSA Input'!J5=\"Contingent\"),'TSA Input'!G5,\"\"))","v":""},{"$f":"IF('TSA Input'!J5=\"\",\"\",IF(OR('TSA Input'!J5=\"Yes\",'TSA Input'!J5=\"Contingent\"),'TSA Input'!F5,\"\"))","v":""},"","Required","Required"]
["",null,{"$f":"IF('TSA Input'!J6=\"\",\"\",IF(OR('TSA Input'!J6=\"Yes\",'TSA Input'!J6=\"Contingent\"),'TSA Input'!B6,\"Ineligible\"))","v":""},{"$f":"IF('TSA Input'!J6=\"\",\"\",IF(OR('TSA Input'!J6=\"Yes\",'TSA Input'!J6=\"Contingent\"),'TSA Input'!I6,\"\"))","v":""},{"$f":"IF('TSA Input'!J6=\"\",\"\",IF(OR('TSA Input'!J6=\"Yes\",'TSA Input'!J6=\"Contingent\"),'TSA Input'!C6,\"\"))","v":""},{"$f":"IF('TSA Input'!J6=\"\",\"\",IF(OR('TSA Input'!J6=\"Yes\",'TSA Input'!J6=\"Contingent\"),'TSA Input'!D6,\"\"))","v":""},{"$f":"IF('TSA Input'!J6=\"\",\"\",IF(OR('TSA Input'!J6=\"Yes\",'TSA Input'!J6=\"Contingent\"),'TSA Input'!G6,\"\"))","v":""},{"$f":"IF('TSA Input'!J6=\"\",\"\",IF(OR('TSA Input'!J6=\"Yes\",'TSA Input'!J6=\"Contingent\"),'TSA Input'!F6,\"\"))","v":""},"",{"$f":"IF('TSA Input'!J6=\"\",\"\",IF(OR('TSA Input'!J6=\"Yes\",'TSA Input'!J6=\"Contingent\"),'TSA Input'!D6,\"\"))","v":""},{"$f":"IF('TSA Input'!J6=\"\",\"\",IF(OR('TSA Input'!J6=\"Yes\",'TSA Input'!J6=\"Contingent\"),'TSA Input'!G6,\"\"))","v":""},{"$f":"IF('TSA Input'!J6=\"\",\"\",IF(OR('TSA Input'!J6=\"Yes\",'TSA Input'!J6=\"Contingent\"),'TSA Input'!F6,\"\"))","v":""},"","Required","Required"]
["",null,{"$f":"IF('TSA Input'!J7=\"\",\"\",IF(OR('TSA Input'!J7=\"Yes\",'TSA Input'!J7=\"Contingent\"),'TSA Input'!B7,\"Ineligible\"))","v":""},{"$f":"IF('TSA Input'!J7=\"\",\"\",IF(OR('TSA Input'!J7=\"Yes\",'TSA Input'!J7=\"Contingent\"),'TSA Input'!I7,\"\"))","v":""},{"$f":"IF('TSA Input'!J7=\"\",\"\",IF(OR('TSA Input'!J7=\"Yes\",'TSA Input'!J7=\"Contingent\"),'TSA Input'!C7,\"\"))","v":""},{"$f":"IF('TSA Input'!J7=\"\",\"\",IF(OR('TSA Input'!J7=\"Yes\",'TSA Input'!J7=\"Contingent\"),'TSA Input'!D7,\"\"))","v":""},{"$f":"IF('TSA Input'!J7=\"\",\"\",IF(OR('TSA Input'!J7=\"Yes\",'TSA Input'!J7=\"Contingent\"),'TSA Input'!G7,\"\"))","v":""},{"$f":"IF('TSA Input'!J7=\"\",\"\",IF(OR('TSA Input'!J7=\"Yes\",'TSA Input'!J7=\"Contingent\"),'TSA Input'!F7,\"\"))","v":""},"",{"$f":"IF('TSA Input'!J7=\"\",\"\",IF(OR('TSA Input'!J7=\"Yes\",'TSA Input'!J7=\"Contingent\"),'TSA Input'!D7,\"\"))","v":""},{"$f":"IF('TSA Input'!J7=\"\",\"\",IF(OR('TSA Input'!J7=\"Yes\",'TSA Input'!J7=\"Contingent\"),'TSA Input'!G7,\"\"))","v":""},{"$f":"IF('TSA Input'!J7=\"\",\"\",IF(OR('TSA Input'!J7=\"Yes\",'TSA Input'!J7=\"Contingent\"),'TSA Input'!F7,\"\"))","v":""},"","Required","Required"]
["",null,{"$f":"IF('TSA Input'!J8=\"\",\"\",IF(OR('TSA Input'!J8=\"Yes\",'TSA Input'!J8=\"Contingent\"),'TSA Input'!B8,\"Ineligible\"))","v":""},{"$f":"IF('TSA Input'!J8=\"\",\"\",IF(OR('TSA Input'!J8=\"Yes\",'TSA Input'!J8=\"Contingent\"),'TSA Input'!I8,\"\"))","v":""},{"$f":"IF('TSA Input'!J8=\"\",\"\",IF(OR('TSA Input'!J8=\"Yes\",'TSA Input'!J8=\"Contingent\"),'TSA Input'!C8,\"\"))","v":""},{"$f":"IF('TSA Input'!J8=\"\",\"\",IF(OR('TSA Input'!J8=\"Yes\",'TSA Input'!J8=\"Contingent\"),'TSA Input'!D8,\"\"))","v":""},{"$f":"IF('TSA Input'!J8=\"\",\"\",IF(OR('TSA Input'!J8=\"Yes\",'TSA Input'!J8=\"Contingent\"),'TSA Input'!G8,\"\"))","v":""},{"$f":"IF('TSA Input'!J8=\"\",\"\",IF(OR('TSA Input'!J8=\"Yes\",'TSA Input'!J8=\"Contingent\"),'TSA Input'!F8,\"\"))","v":""},"",{"$f":"IF('TSA Input'!J8=\"\",\"\",IF(OR('TSA Input'!J8=\"Yes\",'TSA Input'!J8=\"Contingent\"),'TSA Input'!D8,\"\"))","v":""},{"$f":"IF('TSA Input'!J8=\"\",\"\",IF(OR('TSA Input'!J8=\"Yes\",'TSA Input'!J8=\"Contingent\"),'TSA Input'!G8,\"\"))","v":""},{"$f":"IF('TSA Input'!J8=\"\",\"\",IF(OR('TSA Input'!J8=\"Yes\",'TSA Input'!J8=\"Contingent\"),'TSA Input'!F8,\"\"))","v":""},"","Required","Required"]
["",null,{"$f":"IF('TSA Input'!J9=\"\",\"\",IF(OR('TSA Input'!J9=\"Yes\",'TSA Input'!J9=\"Contingent\"),'TSA Input'!B9,\"Ineligible\"))","v":""},{"$f":"IF('TSA Input'!J9=\"\",\"\",IF(OR('TSA Input'!J9=\"Yes\",'TSA Input'!J9=\"Contingent\"),'TSA Input'!I9,\"\"))","v":""},{"$f":"IF('TSA Input'!J9=\"\",\"\",IF(OR('TSA Input'!J9=\"Yes\",'TSA Input'!J9=\"Contingent\"),'TSA Input'!C9,\"\"))","v":""},{"$f":"IF('TSA Input'!J9=\"\",\"\",IF(OR('TSA Input'!J9=\"Yes\",'TSA Input'!J9=\"Contingent\"),'TSA Input'!D9,\"\"))","v":""},{"$f":"IF('TSA Input'!J9=\"\",\"\",IF(OR('TSA Input'!J9=\"Yes\",'TSA Input'!J9=\"Contingent\"),'TSA Input'!G9,\"\"))","v":""},{"$f":"IF('TSA Input'!J9=\"\",\"\",IF(OR('TSA Input'!J9=\"Yes\",'TSA Input'!J9=\"Contingent\"),'TSA Input'!F9,\"\"))","v":""},"",{"$f":"IF('TSA Input'!J9=\"\",\"\",IF(OR('TSA Input'!J9=\"Yes\",'TSA Input'!J9=\"Contingent\"),'TSA Input'!D9,\"\"))","v":""},{"$f":"IF('TSA Input'!J9=\"\",\"\",IF(OR('TSA Input'!J9=\"Yes\",'TSA Input'!J9=\"Contingent\"),'TSA Input'!G9,\"\"))","v":""},{"$f":"IF('TSA Input'!J9=\"\",\"\",IF(OR('TSA Input'!J9=\"Yes\",'TSA Input'!J9=\"Contingent\"),'TSA Input'!F9,\"\"))","v":""},"","Required","Required"]
["",null,{"$f":"IF('TSA Input'!J10=\"\",\"\",IF(OR('TSA Input'!J10=\"Yes\",'TSA Input'!J10=\"Contingent\"),'TSA Input'!B10,\"Ineligible\"))","v":""},{"$f":"IF('TSA Input'!J10=\"\",\"\",IF(OR('TSA Input'!J10=\"Yes\",'TSA Input'!J10=\"Contingent\"),'TSA Input'!I10,\"\"))","v":""},{"$f":"IF('TSA Input'!J10=\"\",\"\",IF(OR('TSA Input'!J10=\"Yes\",'TSA Input'!J10=\"Contingent\"),'TSA Input'!C10,\"\"))","v":""},{"$f":"IF('TSA Input'!J10=\"\",\"\",IF(OR('TSA Input'!J10=\"Yes\",'TSA Input'!J10=\"Contingent\"),'TSA Input'!D10,\"\"))","v":""},{"$f":"IF('TSA Input'!J10=\"\",\"\",IF(OR('TSA Input'!J10=\"Yes\",'TSA Input'!J10=\"Contingent\"),'TSA Input'!G10,\"\"))","v":""},{"$f":"IF('TSA Input'!J10=\"\",\"\",IF(OR('TSA Input'!J10=\"Yes\",'TSA Input'!J10=\"Contingent\"),'TSA Input'!F10,\"\"))","v":""},"",{"$f":"IF('TSA Input'!J10=\"\",\"\",IF(OR('TSA Input'!J10=\"Yes\",'TSA Input'!J10=\"Contingent\"),'TSA Input'!D10,\"\"))","v":""},{"$f":"IF('TSA Input'!J10=\"\",\"\",IF(OR('TSA Input'!J10=\"Yes\",'TSA Input'!J10=\"Contingent\"),'TSA Input'!G10,\"\"))","v":""},{"$f":"IF('TSA Input'!J10=\"\",\"\",IF(OR('TSA Input'!J10=\"Yes\",'TSA Input'!J10=\"Contingent\"),'TSA Input'!F10,\"\"))","v":""},"","Required","Required"]
["",null,{"$f":"IF('TSA Input'!J11=\"\",\"\",IF(OR('TSA Input'!J11=\"Yes\",'TSA Input'!J11=\"Contingent\"),'TSA Input'!B11,\"Ineligible\"))","v":""},{"$f":"IF('TSA Input'!J11=\"\",\"\",IF(OR('TSA Input'!J11=\"Yes\",'TSA Input'!J11=\"Contingent\"),'TSA Input'!I11,\"\"))","v":""},{"$f":"IF('TSA Input'!J11=\"\",\"\",IF(OR('TSA Input'!J11=\"Yes\",'TSA Input'!J11=\"Contingent\"),'TSA Input'!C11,\"\"))","v":""},{"$f":"IF('TSA Input'!J11=\"\",\"\",IF(OR('TSA Input'!J11=\"Yes\",'TSA Input'!J11=\"Contingent\"),'TSA Input'!D11,\"\"))","v":""},{"$f":"IF('TSA Input'!J11=\"\",\"\",IF(OR('TSA Input'!J11=\"Yes\",'TSA Input'!J11=\"Contingent\"),'TSA Input'!G11,\"\"))","v":""},{"$f":"IF('TSA Input'!J11=\"\",\"\",IF(OR('TSA Input'!J11=\"Yes\",'TSA Input'!J11=\"Contingent\"),'TSA Input'!F11,\"\"))","v":""},"",{"$f":"IF('TSA Input'!J11=\"\",\"\",IF(OR('TSA Input'!J11=\"Yes\",'TSA Input'!J11=\"Contingent\"),'TSA Input'!D11,\"\"))","v":""},{"$f":"IF('TSA Input'!J11=\"\",\"\",IF(OR('TSA Input'!J11=\"Yes\",'TSA Input'!J11=\"Contingent\"),'TSA Input'!G11,\"\"))","v":""},{"$f":"IF('TSA Input'!J11=\"\",\"\",IF(OR('TSA Input'!J11=\"Yes\",'TSA Input'!J11=\"Contingent\"),'TSA Input'!F11,\"\"))","v":""},"","Required","Required"]
["",null,{"$f":"IF('TSA Input'!J12=\"\",\"\",IF(OR('TSA Input'!J12=\"Yes\",'TSA Input'!J12=\"Contingent\"),'TSA Input'!B12,\"Ineligible\"))","v":""},{"$f":"IF('TSA Input'!J12=\"\",\"\",IF(OR('TSA Input'!J12=\"Yes\",'TSA Input'!J12=\"Contingent\"),'TSA Input'!I12,\"\"))","v":""},{"$f":"IF('TSA Input'!J12=\"\",\"\",IF(OR('TSA Input'!J12=\"Yes\",'TSA Input'!J12=\"Contingent\"),'TSA Input'!C12,\"\"))","v":""},{"$f":"IF('TSA Input'!J12=\"\",\"\",IF(OR('TSA Input'!J12=\"Yes\",'TSA Input'!J12=\"Contingent\"),'TSA Input'!D12,\"\"))","v":""},{"$f":"IF('TSA Input'!J12=\"\",\"\",IF(OR('TSA Input'!J12=\"Yes\",'TSA Input'!J12=\"Contingent\"),'TSA Input'!G12,\"\"))","v":""},{"$f":"IF('TSA Input'!J12=\"\",\"\",IF(OR('TSA Input'!J12=\"Yes\",'TSA Input'!J12=\"Contingent\"),'TSA Input'!F12,\"\"))","v":""},"",{"$f":"IF('TSA Input'!J12=\"\",\"\",IF(OR('TSA Input'!J12=\"Yes\",'TSA Input'!J12=\"Contingent\"),'TSA Input'!D12,\"\"))","v":""},{"$f":"IF('TSA Input'!J12=\"\",\"\",IF(OR('TSA Input'!J12=\"Yes\",'TSA Input'!J12=\"Contingent\"),'TSA Input'!G12,\"\"))","v":""},{"$f":"IF('TSA Input'!J12=\"\",\"\",IF(OR('TSA Input'!J12=\"Yes\",'TSA Input'!J12=\"Contingent\"),'TSA Input'!F12,\"\"))","v":""},"","Required","Required"]
["",null,{"$f":"IF('TSA Input'!J13=\"\",\"\",IF(OR('TSA Input'!J13=\"Yes\",'TSA Input'!J13=\"Contingent\"),'TSA Input'!B13,\"Ineligible\"))","v":""},{"$f":"IF('TSA Input'!J13=\"\",\"\",IF(OR('TSA Input'!J13=\"Yes\",'TSA Input'!J13=\"Contingent\"),'TSA Input'!I13,\"\"))","v":""},{"$f":"IF('TSA Input'!J13=\"\",\"\",IF(OR('TSA Input'!J13=\"Yes\",'TSA Input'!J13=\"Contingent\"),'TSA Input'!C13,\"\"))","v":""},{"$f":"IF('TSA Input'!J13=\"\",\"\",IF(OR('TSA Input'!J13=\"Yes\",'TSA Input'!J13=\"Contingent\"),'TSA Input'!D13,\"\"))","v":""},{"$f":"IF('TSA Input'!J13=\"\",\"\",IF(OR('TSA Input'!J13=\"Yes\",'TSA Input'!J13=\"Contingent\"),'TSA Input'!G13,\"\"))","v":""},{"$f":"IF('TSA Input'!J13=\"\",\"\",IF(OR('TSA Input'!J13=\"Yes\",'TSA Input'!J13=\"Contingent\"),'TSA Input'!F13,\"\"))","v":""},"",{"$f":"IF('TSA Input'!J13=\"\",\"\",IF(OR('TSA Input'!J13=\"Yes\",'TSA Input'!J13=\"Contingent\"),'TSA Input'!D13,\"\"))","v":""},{"$f":"IF('TSA Input'!J13=\"\",\"\",IF(OR('TSA Input'!J13=\"Yes\",'TSA Input'!J13=\"Contingent\"),'TSA Input'!G13,\"\"))","v":""},{"$f":"IF('TSA Input'!J13=\"\",\"\",IF(OR('TSA Input'!J13=\"Yes\",'TSA Input'!J13=\"Contingent\"),'TSA Input'!F13,\"\"))","v":""},"","Required","Required"]
["",null,{"$f":"IF('TSA Input'!J14=\"\",\"\",IF(OR('TSA Input'!J14=\"Yes\",'TSA Input'!J14=\"Contingent\"),'TSA Input'!B14,\"Ineligible\"))","v":""},{"$f":"IF('TSA Input'!J14=\"\",\"\",IF(OR('TSA Input'!J14=\"Yes\",'TSA Input'!J14=\"Contingent\"),'TSA Input'!I14,\"\"))","v":""},{"$f":"IF('TSA Input'!J14=\"\",\"\",IF(OR('TSA Input'!J14=\"Yes\",'TSA Input'!J14=\"Contingent\"),'TSA Input'!C14,\"\"))","v":""},{"$f":"IF('TSA Input'!J14=\"\",\"\",IF(OR('TSA Input'!J14=\"Yes\",'TSA Input'!J14=\"Contingent\"),'TSA Input'!D14,\"\"))","v":""},{"$f":"IF('TSA Input'!J14=\"\",\"\",IF(OR('TSA Input'!J14=\"Yes\",'TSA Input'!J14=\"Contingent\"),'TSA Input'!G14,\"\"))","v":""},{"$f":"IF('TSA Input'!J14=\"\",\"\",IF(OR('TSA Input'!J14=\"Yes\",'TSA Input'!J14=\"Contingent\"),'TSA Input'!F14,\"\"))","v":""},"",{"$f":"IF('TSA Input'!J14=\"\",\"\",IF(OR('TSA Input'!J14=\"Yes\",'TSA Input'!J14=\"Contingent\"),'TSA Input'!D14,\"\"))","v":""},{"$f":"IF('TSA Input'!J14=\"\",\"\",IF(OR('TSA Input'!J14=\"Yes\",'TSA Input'!J14=\"Contingent\"),'TSA Input'!G14,\"\"))","v":""},{"$f":"IF('TSA Input'!J14=\"\",\"\",IF(OR('TSA Input'!J14=\"Yes\",'TSA Input'!J14=\"Contingent\"),'TSA Input'!F14,\"\"))","v":""},"","Required","Required"]
["",null,{"$f":"IF('TSA Input'!J15=\"\",\"\",IF(OR('TSA Input'!J15=\"Yes\",'TSA Input'!J15=\"Contingent\"),'TSA Input'!B15,\"Ineligible\"))","v":""},{"$f":"IF('TSA Input'!J15=\"\",\"\",IF(OR('TSA Input'!J15=\"Yes\",'TSA Input'!J15=\"Contingent\"),'TSA Input'!I15,\"\"))","v":""},{"$f":"IF('TSA Input'!J15=\"\",\"\",IF(OR('TSA Input'!J15=\"Yes\",'TSA Input'!J15=\"Contingent\"),'TSA Input'!C15,\"\"))","v":""},{"$f":"IF('TSA Input'!J15=\"\",\"\",IF(OR('TSA Input'!J15=\"Yes\",'TSA Input'!J15=\"Contingent\"),'TSA Input'!D15,\"\"))","v":""},{"$f":"IF('TSA Input'!J15=\"\",\"\",IF(OR('TSA Input'!J15=\"Yes\",'TSA Input'!J15=\"Contingent\"),'TSA Input'!G15,\"\"))","v":""},{"$f":"IF('TSA Input'!J15=\"\",\"\",IF(OR('TSA Input'!J15=\"Yes\",'TSA Input'!J15=\"Contingent\"),'TSA Input'!F15,\"\"))","v":""},"",{"$f":"IF('TSA Input'!J15=\"\",\"\",IF(OR('TSA Input'!J15=\"Yes\",'TSA Input'!J15=\"Contingent\"),'TSA Input'!D15,\"\"))","v":""},{"$f":"IF('TSA Input'!J15=\"\",\"\",IF(OR('TSA Input'!J15=\"Yes\",'TSA Input'!J15=\"Contingent\"),'TSA Input'!G15,\"\"))","v":""},{"$f":"IF('TSA Input'!J15=\"\",\"\",IF(OR('TSA Input'!J15=\"Yes\",'TSA Input'!J15=\"Contingent\"),'TSA Input'!F15,\"\"))","v":""},"","Required","Required"]
["",null,{"$f":"IF('TSA Input'!J16=\"\",\"\",IF(OR('TSA Input'!J16=\"Yes\",'TSA Input'!J16=\"Contingent\"),'TSA Input'!B16,\"Ineligible\"))","v":""},{"$f":"IF('TSA Input'!J16=\"\",\"\",IF(OR('TSA Input'!J16=\"Yes\",'TSA Input'!J16=\"Contingent\"),'TSA Input'!I16,\"\"))","v":""},{"$f":"IF('TSA Input'!J16=\"\",\"\",IF(OR('TSA Input'!J16=\"Yes\",'TSA Input'!J16=\"Contingent\"),'TSA Input'!C16,\"\"))","v":""},{"$f":"IF('TSA Input'!J16=\"\",\"\",IF(OR('TSA Input'!J16=\"Yes\",'TSA Input'!J16=\"Contingent\"),'TSA Input'!D16,\"\"))","v":""},{"$f":"IF('TSA Input'!J16=\"\",\"\",IF(OR('TSA Input'!J16=\"Yes\",'TSA Input'!J16=\"Contingent\"),'TSA Input'!G16,\"\"))","v":""},{"$f":"IF('TSA Input'!J16=\"\",\"\",IF(OR('TSA Input'!J16=\"Yes\",'TSA Input'!J16=\"Contingent\"),'TSA Input'!F16,\"\"))","v":""},"",{"$f":"IF('TSA Input'!J16=\"\",\"\",IF(OR('TSA Input'!J16=\"Yes\",'TSA Input'!J16=\"Contingent\"),'TSA Input'!D16,\"\"))","v":""},{"$f":"IF('TSA Input'!J16=\"\",\"\",IF(OR('TSA Input'!J16=\"Yes\",'TSA Input'!J16=\"Contingent\"),'TSA Input'!G16,\"\"))","v":""},{"$f":"IF('TSA Input'!J16=\"\",\"\",IF(OR('TSA Input'!J16=\"Yes\",'TSA Input'!J16=\"Contingent\"),'TSA Input'!F16,\"\"))","v":""},"","Required","Required"]
["",null,{"$f":"IF('TSA Input'!J17=\"\",\"\",IF(OR('TSA Input'!J17=\"Yes\",'TSA Input'!J17=\"Contingent\"),'TSA Input'!B17,\"Ineligible\"))","v":""},{"$f":"IF('TSA Input'!J17=\"\",\"\",IF(OR('TSA Input'!J17=\"Yes\",'TSA Input'!J17=\"Contingent\"),'TSA Input'!I17,\"\"))","v":""},{"$f":"IF('TSA Input'!J17=\"\",\"\",IF(OR('TSA Input'!J17=\"Yes\",'TSA Input'!J17=\"Contingent\"),'TSA Input'!C17,\"\"))","v":""},{"$f":"IF('TSA Input'!J17=\"\",\"\",IF(OR('TSA Input'!J17=\"Yes\",'TSA Input'!J17=\"Contingent\"),'TSA Input'!D17,\"\"))","v":""},{"$f":"IF('TSA Input'!J17=\"\",\"\",IF(OR('TSA Input'!J17=\"Yes\",'TSA Input'!J17=\"Contingent\"),'TSA Input'!G17,\"\"))","v":""},{"$f":"IF('TSA Input'!J17=\"\",\"\",IF(OR('TSA Input'!J17=\"Yes\",'TSA Input'!J17=\"Contingent\"),'TSA Input'!F17,\"\"))","v":""},"",{"$f":"IF('TSA Input'!J17=\"\",\"\",IF(OR('TSA Input'!J17=\"Yes\",'TSA Input'!J17=\"Contingent\"),'TSA Input'!D17,\"\"))","v":""},{"$f":"IF('TSA Input'!J17=\"\",\"\",IF(OR('TSA Input'!J17=\"Yes\",'TSA Input'!J17=\"Contingent\"),'TSA Input'!G17,\"\"))","v":""},{"$f":"IF('TSA Input'!J17=\"\",\"\",IF(OR('TSA Input'!J17=\"Yes\",'TSA Input'!J17=\"Contingent\"),'TSA Input'!F17,\"\"))","v":""},"","Required","Required"]
["",null,{"$f":"IF('TSA Input'!J18=\"\",\"\",IF(OR('TSA Input'!J18=\"Yes\",'TSA Input'!J18=\"Contingent\"),'TSA Input'!B18,\"Ineligible\"))","v":""},{"$f":"IF('TSA Input'!J18=\"\",\"\",IF(OR('TSA Input'!J18=\"Yes\",'TSA Input'!J18=\"Contingent\"),'TSA Input'!I18,\"\"))","v":""},{"$f":"IF('TSA Input'!J18=\"\",\"\",IF(OR('TSA Input'!J18=\"Yes\",'TSA Input'!J18=\"Contingent\"),'TSA Input'!C18,\"\"))","v":""},{"$f":"IF('TSA Input'!J18=\"\",\"\",IF(OR('TSA Input'!J18=\"Yes\",'TSA Input'!J18=\"Contingent\"),'TSA Input'!D18,\"\"))","v":""},{"$f":"IF('TSA Input'!J18=\"\",\"\",IF(OR('TSA Input'!J18=\"Yes\",'TSA Input'!J18=\"Contingent\"),'TSA Input'!G18,\"\"))","v":""},{"$f":"IF('TSA Input'!J18=\"\",\"\",IF(OR('TSA Input'!J18=\"Yes\",'TSA Input'!J18=\"Contingent\"),'TSA Input'!F18,\"\"))","v":""},"",{"$f":"IF('TSA Input'!J18=\"\",\"\",IF(OR('TSA Input'!J18=\"Yes\",'TSA Input'!J18=\"Contingent\"),'TSA Input'!D18,\"\"))","v":""},{"$f":"IF('TSA Input'!J18=\"\",\"\",IF(OR('TSA Input'!J18=\"Yes\",'TSA Input'!J18=\"Contingent\"),'TSA Input'!G18,\"\"))","v":""},{"$f":"IF('TSA Input'!J18=\"\",\"\",IF(OR('TSA Input'!J18=\"Yes\",'TSA Input'!J18=\"Contingent\"),'TSA Input'!F18,\"\"))","v":""},"","Required","Required"]
["",null,{"$f":"IF('TSA Input'!J19=\"\",\"\",IF(OR('TSA Input'!J19=\"Yes\",'TSA Input'!J19=\"Contingent\"),'TSA Input'!B19,\"Ineligible\"))","v":""},{"$f":"IF('TSA Input'!J19=\"\",\"\",IF(OR('TSA Input'!J19=\"Yes\",'TSA Input'!J19=\"Contingent\"),'TSA Input'!I19,\"\"))","v":""},{"$f":"IF('TSA Input'!J19=\"\",\"\",IF(OR('TSA Input'!J19=\"Yes\",'TSA Input'!J19=\"Contingent\"),'TSA Input'!C19,\"\"))","v":""},{"$f":"IF('TSA Input'!J19=\"\",\"\",IF(OR('TSA Input'!J19=\"Yes\",'TSA Input'!J19=\"Contingent\"),'TSA Input'!D19,\"\"))","v":""},{"$f":"IF('TSA Input'!J19=\"\",\"\",IF(OR('TSA Input'!J19=\"Yes\",'TSA Input'!J19=\"Contingent\"),'TSA Input'!G19,\"\"))","v":""},{"$f":"IF('TSA Input'!J19=\"\",\"\",IF(OR('TSA Input'!J19=\"Yes\",'TSA Input'!J19=\"Contingent\"),'TSA Input'!F19,\"\"))","v":""},"",{"$f":"IF('TSA Input'!J19=\"\",\"\",IF(OR('TSA Input'!J19=\"Yes\",'TSA Input'!J19=\"Contingent\"),'TSA Input'!D19,\"\"))","v":""},{"$f":"IF('TSA Input'!J19=\"\",\"\",IF(OR('TSA Input'!J19=\"Yes\",'TSA Input'!J19=\"Contingent\"),'TSA Input'!G19,\"\"))","v":""},{"$f":"IF('TSA Input'!J19=\"\",\"\",IF(OR('TSA Input'!J19=\"Yes\",'TSA Input'!J19=\"Contingent\"),'TSA Input'!F19,\"\"))","v":""},"","Required","Required"]
["",null,{"$f":"IF('TSA Input'!J20=\"\",\"\",IF(OR('TSA Input'!J20=\"Yes\",'TSA Input'!J20=\"Contingent\"),'TSA Input'!B20,\"Ineligible\"))","v":""},{"$f":"IF('TSA Input'!J20=\"\",\"\",IF(OR('TSA Input'!J20=\"Yes\",'TSA Input'!J20=\"Contingent\"),'TSA Input'!I20,\"\"))","v":""},{"$f":"IF('TSA Input'!J20=\"\",\"\",IF(OR('TSA Input'!J20=\"Yes\",'TSA Input'!J20=\"Contingent\"),'TSA Input'!C20,\"\"))","v":""},{"$f":"IF('TSA Input'!J20=\"\",\"\",IF(OR('TSA Input'!J20=\"Yes\",'TSA Input'!J20=\"Contingent\"),'TSA Input'!D20,\"\"))","v":""},{"$f":"IF('TSA Input'!J20=\"\",\"\",IF(OR('TSA Input'!J20=\"Yes\",'TSA Input'!J20=\"Contingent\"),'TSA Input'!G20,\"\"))","v":""},{"$f":"IF('TSA Input'!J20=\"\",\"\",IF(OR('TSA Input'!J20=\"Yes\",'TSA Input'!J20=\"Contingent\"),'TSA Input'!F20,\"\"))","v":""},"",{"$f":"IF('TSA Input'!J20=\"\",\"\",IF(OR('TSA Input'!J20=\"Yes\",'TSA Input'!J20=\"Contingent\"),'TSA Input'!D20,\"\"))","v":""},{"$f":"IF('TSA Input'!J20=\"\",\"\",IF(OR('TSA Input'!J20=\"Yes\",'TSA Input'!J20=\"Contingent\"),'TSA Input'!G20,\"\"))","v":""},{"$f":"IF('TSA Input'!J20=\"\",\"\",IF(OR('TSA Input'!J20=\"Yes\",'TSA Input'!J20=\"Contingent\"),'TSA Input'!F20,\"\"))","v":""},"","Required","Required"]
["",null,{"$f":"IF('TSA Input'!J21=\"\",\"\",IF(OR('TSA Input'!J21=\"Yes\",'TSA Input'!J21=\"Contingent\"),'TSA Input'!B21,\"Ineligible\"))","v":""},{"$f":"IF('TSA Input'!J21=\"\",\"\",IF(OR('TSA Input'!J21=\"Yes\",'TSA Input'!J21=\"Contingent\"),'TSA Input'!I21,\"\"))","v":""},{"$f":"IF('TSA Input'!J21=\"\",\"\",IF(OR('TSA Input'!J21=\"Yes\",'TSA Input'!J21=\"Contingent\"),'TSA Input'!C21,\"\"))","v":""},{"$f":"IF('TSA Input'!J21=\"\",\"\",IF(OR('TSA Input'!J21=\"Yes\",'TSA Input'!J21=\"Contingent\"),'TSA Input'!D21,\"\"))","v":""},{"$f":"IF('TSA Input'!J21=\"\",\"\",IF(OR('TSA Input'!J21=\"Yes\",'TSA Input'!J21=\"Contingent\"),'TSA Input'!G21,\"\"))","v":""},{"$f":"IF('TSA Input'!J21=\"\",\"\",IF(OR('TSA Input'!J21=\"Yes\",'TSA Input'!J21=\"Contingent\"),'TSA Input'!F21,\"\"))","v":""},"",{"$f":"IF('TSA Input'!J21=\"\",\"\",IF(OR('TSA Input'!J21=\"Yes\",'TSA Input'!J21=\"Contingent\"),'TSA Input'!D21,\"\"))","v":""},{"$f":"IF('TSA Input'!J21=\"\",\"\",IF(OR('TSA Input'!J21=\"Yes\",'TSA Input'!J21=\"Contingent\"),'TSA Input'!G21,\"\"))","v":""},{"$f":"IF('TSA Input'!J21=\"\",\"\",IF(OR('TSA Input'!J21=\"Yes\",'TSA Input'!J21=\"Contingent\"),'TSA Input'!F21,\"\"))","v":""},"","Required","Required"]
["",null,{"$f":"IF('TSA Input'!J22=\"\",\"\",IF(OR('TSA Input'!J22=\"Yes\",'TSA Input'!J22=\"Contingent\"),'TSA Input'!B22,\"Ineligible\"))","v":""},{"$f":"IF('TSA Input'!J22=\"\",\"\",IF(OR('TSA Input'!J22=\"Yes\",'TSA Input'!J22=\"Contingent\"),'TSA Input'!I22,\"\"))","v":""},{"$f":"IF('TSA Input'!J22=\"\",\"\",IF(OR('TSA Input'!J22=\"Yes\",'TSA Input'!J22=\"Contingent\"),'TSA Input'!C22,\"\"))","v":""},{"$f":"IF('TSA Input'!J22=\"\",\"\",IF(OR('TSA Input'!J22=\"Yes\",'TSA Input'!J22=\"Contingent\"),'TSA Input'!D22,\"\"))","v":""},{"$f":"IF('TSA Input'!J22=\"\",\"\",IF(OR('TSA Input'!J22=\"Yes\",'TSA Input'!J22=\"Contingent\"),'TSA Input'!G22,\"\"))","v":""},{"$f":"IF('TSA Input'!J22=\"\",\"\",IF(OR('TSA Input'!J22=\"Yes\",'TSA Input'!J22=\"Contingent\"),'TSA Input'!F22,\"\"))","v":""},"",{"$f":"IF('TSA Input'!J22=\"\",\"\",IF(OR('TSA Input'!J22=\"Yes\",'TSA Input'!J22=\"Contingent\"),'TSA Input'!D22,\"\"))","v":""},{"$f":"IF('TSA Input'!J22=\"\",\"\",IF(OR('TSA Input'!J22=\"Yes\",'TSA Input'!J22=\"Contingent\"),'TSA Input'!G22,\"\"))","v":""},{"$f":"IF('TSA Input'!J22=\"\",\"\",IF(OR('TSA Input'!J22=\"Yes\",'TSA Input'!J22=\"Contingent\"),'TSA Input'!F22,\"\"))","v":""},"","Required","Required"]
["",null,{"$f":"IF('TSA Input'!J23=\"\",\"\",IF(OR('TSA Input'!J23=\"Yes\",'TSA Input'!J23=\"Contingent\"),'TSA Input'!B23,\"Ineligible\"))","v":""},{"$f":"IF('TSA Input'!J23=\"\",\"\",IF(OR('TSA Input'!J23=\"Yes\",'TSA Input'!J23=\"Contingent\"),'TSA Input'!I23,\"\"))","v":""},{"$f":"IF('TSA Input'!J23=\"\",\"\",IF(OR('TSA Input'!J23=\"Yes\",'TSA Input'!J23=\"Contingent\"),'TSA Input'!C23,\"\"))","v":""},{"$f":"IF('TSA Input'!J23=\"\",\"\",IF(OR('TSA Input'!J23=\"Yes\",'TSA Input'!J23=\"Contingent\"),'TSA Input'!D23,\"\"))","v":""},{"$f":"IF('TSA Input'!J23=\"\",\"\",IF(OR('TSA Input'!J23=\"Yes\",'TSA Input'!J23=\"Contingent\"),'TSA Input'!G23,\"\"))","v":""},{"$f":"IF('TSA Input'!J23=\"\",\"\",IF(OR('TSA Input'!J23=\"Yes\",'TSA Input'!J23=\"Contingent\"),'TSA Input'!F23,\"\"))","v":""},"",{"$f":"IF('TSA Input'!J23=\"\",\"\",IF(OR('TSA Input'!J23=\"Yes\",'TSA Input'!J23=\"Contingent\"),'TSA Input'!D23,\"\"))","v":""},{"$f":"IF('TSA Input'!J23=\"\",\"\",IF(OR('TSA Input'!J23=\"Yes\",'TSA Input'!J23=\"Contingent\"),'TSA Input'!G23,\"\"))","v":""},{"$f":"IF('TSA Input'!J23=\"\",\"\",IF(OR('TSA Input'!J23=\"Yes\",'TSA Input'!J23=\"Contingent\"),'TSA Input'!F23,\"\"))","v":""},"","Required","Required"]
["",null,{"$f":"IF('TSA Input'!J24=\"\",\"\",IF(OR('TSA Input'!J24=\"Yes\",'TSA Input'!J24=\"Contingent\"),'TSA Input'!B24,\"Ineligible\"))","v":""},{"$f":"IF('TSA Input'!J24=\"\",\"\",IF(OR('TSA Input'!J24=\"Yes\",'TSA Input'!J24=\"Contingent\"),'TSA Input'!I24,\"\"))","v":""},{"$f":"IF('TSA Input'!J24=\"\",\"\",IF(OR('TSA Input'!J24=\"Yes\",'TSA Input'!J24=\"Contingent\"),'TSA Input'!C24,\"\"))","v":""},{"$f":"IF('TSA Input'!J24=\"\",\"\",IF(OR('TSA Input'!J24=\"Yes\",'TSA Input'!J24=\"Contingent\"),'TSA Input'!D24,\"\"))","v":""},{"$f":"IF('TSA Input'!J24=\"\",\"\",IF(OR('TSA Input'!J24=\"Yes\",'TSA Input'!J24=\"Contingent\"),'TSA Input'!G24,\"\"))","v":""},{"$f":"IF('TSA Input'!J24=\"\",\"\",IF(OR('TSA Input'!J24=\"Yes\",'TSA Input'!J24=\"Contingent\"),'TSA Input'!F24,\"\"))","v":""},"",{"$f":"IF('TSA Input'!J24=\"\",\"\",IF(OR('TSA Input'!J24=\"Yes\",'TSA Input'!J24=\"Contingent\"),'TSA Input'!D24,\"\"))","v":""},{"$f":"IF('TSA Input'!J24=\"\",\"\",IF(OR('TSA Input'!J24=\"Yes\",'TSA Input'!J24=\"Contingent\"),'TSA Input'!G24,\"\"))","v":""},{"$f":"IF('TSA Input'!J24=\"\",\"\",IF(OR('TSA Input'!J24=\"Yes\",'TSA Input'!J24=\"Contingent\"),'TSA Input'!F24,\"\"))","v":""},"","Required","Required"]
["",null,{"$f":"IF('TSA Input'!J25=\"\",\"\",IF(OR('TSA Input'!J25=\"Yes\",'TSA Input'!J25=\"Contingent\"),'TSA Input'!B25,\"Ineligible\"))","v":""},{"$f":"IF('TSA Input'!J25=\"\",\"\",IF(OR('TSA Input'!J25=\"Yes\",'TSA Input'!J25=\"Contingent\"),'TSA Input'!I25,\"\"))","v":""},{"$f":"IF('TSA Input'!J25=\"\",\"\",IF(OR('TSA Input'!J25=\"Yes\",'TSA Input'!J25=\"Contingent\"),'TSA Input'!C25,\"\"))","v":""},{"$f":"IF('TSA Input'!J25=\"\",\"\",IF(OR('TSA Input'!J25=\"Yes\",'TSA Input'!J25=\"Contingent\"),'TSA Input'!D25,\"\"))","v":""},{"$f":"IF('TSA Input'!J25=\"\",\"\",IF(OR('TSA Input'!J25=\"Yes\",'TSA Input'!J25=\"Contingent\"),'TSA Input'!G25,\"\"))","v":""},{"$f":"IF('TSA Input'!J25=\"\",\"\",IF(OR('TSA Input'!J25=\"Yes\",'TSA Input'!J25=\"Contingent\"),'TSA Input'!F25,\"\"))","v":""},"",{"$f":"IF('TSA Input'!J25=\"\",\"\",IF(OR('TSA Input'!J25=\"Yes\",'TSA Input'!J25=\"Contingent\"),'TSA Input'!D25,\"\"))","v":""},{"$f":"IF('TSA Input'!J25=\"\",\"\",IF(OR('TSA Input'!J25=\"Yes\",'TSA Input'!J25=\"Contingent\"),'TSA Input'!G25,\"\"))","v":""},{"$f":"IF('TSA Input'!J25=\"\",\"\",IF(OR('TSA Input'!J25=\"Yes\",'TSA Input'!J25=\"Contingent\"),'TSA Input'!F25,\"\"))","v":""},"","Required","Required"]
["",null,{"$f":"IF('TSA Input'!J26=\"\",\"\",IF(OR('TSA Input'!J26=\"Yes\",'TSA Input'!J26=\"Contingent\"),'TSA Input'!B26,\"Ineligible\"))","v":""},{"$f":"IF('TSA Input'!J26=\"\",\"\",IF(OR('TSA Input'!J26=\"Yes\",'TSA Input'!J26=\"Contingent\"),'TSA Input'!I26,\"\"))","v":""},{"$f":"IF('TSA Input'!J26=\"\",\"\",IF(OR('TSA Input'!J26=\"Yes\",'TSA Input'!J26=\"Contingent\"),'TSA Input'!C26,\"\"))","v":""},{"$f":"IF('TSA Input'!J26=\"\",\"\",IF(OR('TSA Input'!J26=\"Yes\",'TSA Input'!J26=\"Contingent\"),'TSA Input'!D26,\"\"))","v":""},{"$f":"IF('TSA Input'!J26=\"\",\"\",IF(OR('TSA Input'!J26=\"Yes\",'TSA Input'!J26=\"Contingent\"),'TSA Input'!G26,\"\"))","v":""},{"$f":"IF('TSA Input'!J26=\"\",\"\",IF(OR('TSA Input'!J26=\"Yes\",'TSA Input'!J26=\"Contingent\"),'TSA Input'!F26,\"\"))","v":""},"",{"$f":"IF('TSA Input'!J26=\"\",\"\",IF(OR('TSA Input'!J26=\"Yes\",'TSA Input'!J26=\"Contingent\"),'TSA Input'!D26,\"\"))","v":""},{"$f":"IF('TSA Input'!J26=\"\",\"\",IF(OR('TSA Input'!J26=\"Yes\",'TSA Input'!J26=\"Contingent\"),'TSA Input'!G26,\"\"))","v":""},{"$f":"IF('TSA Input'!J26=\"\",\"\",IF(OR('TSA Input'!J26=\"Yes\",'TSA Input'!J26=\"Contingent\"),'TSA Input'!F26,\"\"))","v":""},"","Required","Required"]
["",null,{"$f":"IF('TSA Input'!J27=\"\",\"\",IF(OR('TSA Input'!J27=\"Yes\",'TSA Input'!J27=\"Contingent\"),'TSA Input'!B27,\"Ineligible\"))","v":""},{"$f":"IF('TSA Input'!J27=\"\",\"\",IF(OR('TSA Input'!J27=\"Yes\",'TSA Input'!J27=\"Contingent\"),'TSA Input'!I27,\"\"))","v":""},{"$f":"IF('TSA Input'!J27=\"\",\"\",IF(OR('TSA Input'!J27=\"Yes\",'TSA Input'!J27=\"Contingent\"),'TSA Input'!C27,\"\"))","v":""},{"$f":"IF('TSA Input'!J27=\"\",\"\",IF(OR('TSA Input'!J27=\"Yes\",'TSA Input'!J27=\"Contingent\"),'TSA Input'!D27,\"\"))","v":""},{"$f":"IF('TSA Input'!J27=\"\",\"\",IF(OR('TSA Input'!J27=\"Yes\",'TSA Input'!J27=\"Contingent\"),'TSA Input'!G27,\"\"))","v":""},{"$f":"IF('TSA Input'!J27=\"\",\"\",IF(OR('TSA Input'!J27=\"Yes\",'TSA Input'!J27=\"Contingent\"),'TSA Input'!F27,\"\"))","v":""},"",{"$f":"IF('TSA Input'!J27=\"\",\"\",IF(OR('TSA Input'!J27=\"Yes\",'TSA Input'!J27=\"Contingent\"),'TSA Input'!D27,\"\"))","v":""},{"$f":"IF('TSA Input'!J27=\"\",\"\",IF(OR('TSA Input'!J27=\"Yes\",'TSA Input'!J27=\"Contingent\"),'TSA Input'!G27,\"\"))","v":""},{"$f":"IF('TSA Input'!J27=\"\",\"\",IF(OR('TSA Input'!J27=\"Yes\",'TSA Input'!J27=\"Contingent\"),'TSA Input'!F27,\"\"))","v":""},"","Required","Required"]
["",null,{"$f":"IF('TSA Input'!J28=\"\",\"\",IF(OR('TSA Input'!J28=\"Yes\",'TSA Input'!J28=\"Contingent\"),'TSA Input'!B28,\"Ineligible\"))","v":""},{"$f":"IF('TSA Input'!J28=\"\",\"\",IF(OR('TSA Input'!J28=\"Yes\",'TSA Input'!J28=\"Contingent\"),'TSA Input'!I28,\"\"))","v":""},{"$f":"IF('TSA Input'!J28=\"\",\"\",IF(OR('TSA Input'!J28=\"Yes\",'TSA Input'!J28=\"Contingent\"),'TSA Input'!C28,\"\"))","v":""},{"$f":"IF('TSA Input'!J28=\"\",\"\",IF(OR('TSA Input'!J28=\"Yes\",'TSA Input'!J28=\"Contingent\"),'TSA Input'!D28,\"\"))","v":""},{"$f":"IF('TSA Input'!J28=\"\",\"\",IF(OR('TSA Input'!J28=\"Yes\",'TSA Input'!J28=\"Contingent\"),'TSA Input'!G28,\"\"))","v":""},{"$f":"IF('TSA Input'!J28=\"\",\"\",IF(OR('TSA Input'!J28=\"Yes\",'TSA Input'!J28=\"Contingent\"),'TSA Input'!F28,\"\"))","v":""},"",{"$f":"IF('TSA Input'!J28=\"\",\"\",IF(OR('TSA Input'!J28=\"Yes\",'TSA Input'!J28=\"Contingent\"),'TSA Input'!D28,\"\"))","v":""},{"$f":"IF('TSA Input'!J28=\"\",\"\",IF(OR('TSA Input'!J28=\"Yes\",'TSA Input'!J28=\"Contingent\"),'TSA Input'!G28,\"\"))","v":""},{"$f":"IF('TSA Input'!J28=\"\",\"\",IF(OR('TSA Input'!J28=\"Yes\",'TSA Input'!J28=\"Contingent\"),'TSA Input'!F28,\"\"))","v":""},"","Required","Required"]
["",null,{"$f":"IF('TSA Input'!J29=\"\",\"\",IF(OR('TSA Input'!J29=\"Yes\",'TSA Input'!J29=\"Contingent\"),'TSA Input'!B29,\"Ineligible\"))","v":""},{"$f":"IF('TSA Input'!J29=\"\",\"\",IF(OR('TSA Input'!J29=\"Yes\",'TSA Input'!J29=\"Contingent\"),'TSA Input'!I29,\"\"))","v":""},{"$f":"IF('TSA Input'!J29=\"\",\"\",IF(OR('TSA Input'!J29=\"Yes\",'TSA Input'!J29=\"Contingent\"),'TSA Input'!C29,\"\"))","v":""},{"$f":"IF('TSA Input'!J29=\"\",\"\",IF(OR('TSA Input'!J29=\"Yes\",'TSA Input'!J29=\"Contingent\"),'TSA Input'!D29,\"\"))","v":""},{"$f":"IF('TSA Input'!J29=\"\",\"\",IF(OR('TSA Input'!J29=\"Yes\",'TSA Input'!J29=\"Contingent\"),'TSA Input'!G29,\"\"))","v":""},{"$f":"IF('TSA Input'!J29=\"\",\"\",IF(OR('TSA Input'!J29=\"Yes\",'TSA Input'!J29=\"Contingent\"),'TSA Input'!F29,\"\"))","v":""},"",{"$f":"IF('TSA Input'!J29=\"\",\"\",IF(OR('TSA Input'!J29=\"Yes\",'TSA Input'!J29=\"Contingent\"),'TSA Input'!D29,\"\"))","v":""},{"$f":"IF('TSA Input'!J29=\"\",\"\",IF(OR('TSA Input'!J29=\"Yes\",'TSA Input'!J29=\"Contingent\"),'TSA Input'!G29,\"\"))","v":""},{"$f":"IF('TSA Input'!J29=\"\",\"\",IF(OR('TSA Input'!J29=\"Yes\",'TSA Input'!J29=\"Contingent\"),'TSA Input'!F29,\"\"))","v":""},"","Required","Required"]
["",null,{"$f":"IF('TSA Input'!J30=\"\",\"\",IF(OR('TSA Input'!J30=\"Yes\",'TSA Input'!J30=\"Contingent\"),'TSA Input'!B30,\"Ineligible\"))","v":""},{"$f":"IF('TSA Input'!J30=\"\",\"\",IF(OR('TSA Input'!J30=\"Yes\",'TSA Input'!J30=\"Contingent\"),'TSA Input'!I30,\"\"))","v":""},{"$f":"IF('TSA Input'!J30=\"\",\"\",IF(OR('TSA Input'!J30=\"Yes\",'TSA Input'!J30=\"Contingent\"),'TSA Input'!C30,\"\"))","v":""},{"$f":"IF('TSA Input'!J30=\"\",\"\",IF(OR('TSA Input'!J30=\"Yes\",'TSA Input'!J30=\"Contingent\"),'TSA Input'!D30,\"\"))","v":""},{"$f":"IF('TSA Input'!J30=\"\",\"\",IF(OR('TSA Input'!J30=\"Yes\",'TSA Input'!J30=\"Contingent\"),'TSA Input'!G30,\"\"))","v":""},{"$f":"IF('TSA Input'!J30=\"\",\"\",IF(OR('TSA Input'!J30=\"Yes\",'TSA Input'!J30=\"Contingent\"),'TSA Input'!F30,\"\"))","v":""},"",{"$f":"IF('TSA Input'!J30=\"\",\"\",IF(OR('TSA Input'!J30=\"Yes\",'TSA Input'!J30=\"Contingent\"),'TSA Input'!D30,\"\"))","v":""},{"$f":"IF('TSA Input'!J30=\"\",\"\",IF(OR('TSA Input'!J30=\"Yes\",'TSA Input'!J30=\"Contingent\"),'TSA Input'!G30,\"\"))","v":""},{"$f":"IF('TSA Input'!J30=\"\",\"\",IF(OR('TSA Input'!J30=\"Yes\",'TSA Input'!J30=\"Contingent\"),'TSA Input'!F30,\"\"))","v":""},"","Required","Required"]
["",null,{"$f":"IF('TSA Input'!J31=\"\",\"\",IF(OR('TSA Input'!J31=\"Yes\",'TSA Input'!J31=\"Contingent\"),'TSA Input'!B31,\"Ineligible\"))","v":""},{"$f":"IF('TSA Input'!J31=\"\",\"\",IF(OR('TSA Input'!J31=\"Yes\",'TSA Input'!J31=\"Contingent\"),'TSA Input'!I31,\"\"))","v":""},{"$f":"IF('TSA Input'!J31=\"\",\"\",IF(OR('TSA Input'!J31=\"Yes\",'TSA Input'!J31=\"Contingent\"),'TSA Input'!C31,\"\"))","v":""},{"$f":"IF('TSA Input'!J31=\"\",\"\",IF(OR('TSA Input'!J31=\"Yes\",'TSA Input'!J31=\"Contingent\"),'TSA Input'!D31,\"\"))","v":""},{"$f":"IF('TSA Input'!J31=\"\",\"\",IF(OR('TSA Input'!J31=\"Yes\",'TSA Input'!J31=\"Contingent\"),'TSA Input'!G31,\"\"))","v":""},{"$f":"IF('TSA Input'!J31=\"\",\"\",IF(OR('TSA Input'!J31=\"Yes\",'TSA Input'!J31=\"Contingent\"),'TSA Input'!F31,\"\"))","v":""},"",{"$f":"IF('TSA Input'!J31=\"\",\"\",IF(OR('TSA Input'!J31=\"Yes\",'TSA Input'!J31=\"Contingent\"),'TSA Input'!D31,\"\"))","v":""},{"$f":"IF('TSA Input'!J31=\"\",\"\",IF(OR('TSA Input'!J31=\"Yes\",'TSA Input'!J31=\"Contingent\"),'TSA Input'!G31,\"\"))","v":""},{"$f":"IF('TSA Input'!J31=\"\",\"\",IF(OR('TSA Input'!J31=\"Yes\",'TSA Input'!J31=\"Contingent\"),'TSA Input'!F31,\"\"))","v":""},"","Required","Required"]
["",null,{"$f":"IF('TSA Input'!J32=\"\",\"\",IF(OR('TSA Input'!J32=\"Yes\",'TSA Input'!J32=\"Contingent\"),'TSA Input'!B32,\"Ineligible\"))","v":""},{"$f":"IF('TSA Input'!J32=\"\",\"\",IF(OR('TSA Input'!J32=\"Yes\",'TSA Input'!J32=\"Contingent\"),'TSA Input'!I32,\"\"))","v":""},{"$f":"IF('TSA Input'!J32=\"\",\"\",IF(OR('TSA Input'!J32=\"Yes\",'TSA Input'!J32=\"Contingent\"),'TSA Input'!C32,\"\"))","v":""},{"$f":"IF('TSA Input'!J32=\"\",\"\",IF(OR('TSA Input'!J32=\"Yes\",'TSA Input'!J32=\"Contingent\"),'TSA Input'!D32,\"\"))","v":""},{"$f":"IF('TSA Input'!J32=\"\",\"\",IF(OR('TSA Input'!J32=\"Yes\",'TSA Input'!J32=\"Contingent\"),'TSA Input'!G32,\"\"))","v":""},{"$f":"IF('TSA Input'!J32=\"\",\"\",IF(OR('TSA Input'!J32=\"Yes\",'TSA Input'!J32=\"Contingent\"),'TSA Input'!F32,\"\"))","v":""},"",{"$f":"IF('TSA Input'!J32=\"\",\"\",IF(OR('TSA Input'!J32=\"Yes\",'TSA Input'!J32=\"Contingent\"),'TSA Input'!D32,\"\"))","v":""},{"$f":"IF('TSA Input'!J32=\"\",\"\",IF(OR('TSA Input'!J32=\"Yes\",'TSA Input'!J32=\"Contingent\"),'TSA Input'!G32,\"\"))","v":""},{"$f":"IF('TSA Input'!J32=\"\",\"\",IF(OR('TSA Input'!J32=\"Yes\",'TSA Input'!J32=\"Contingent\"),'TSA Input'!F32,\"\"))","v":""},"","Required","Required"]
["",null,{"$f":"IF('TSA Input'!J33=\"\",\"\",IF(OR('TSA Input'!J33=\"Yes\",'TSA Input'!J33=\"Contingent\"),'TSA Input'!B33,\"Ineligible\"))","v":""},{"$f":"IF('TSA Input'!J33=\"\",\"\",IF(OR('TSA Input'!J33=\"Yes\",'TSA Input'!J33=\"Contingent\"),'TSA Input'!I33,\"\"))","v":""},{"$f":"IF('TSA Input'!J33=\"\",\"\",IF(OR('TSA Input'!J33=\"Yes\",'TSA Input'!J33=\"Contingent\"),'TSA Input'!C33,\"\"))","v":""},{"$f":"IF('TSA Input'!J33=\"\",\"\",IF(OR('TSA Input'!J33=\"Yes\",'TSA Input'!J33=\"Contingent\"),'TSA Input'!D33,\"\"))","v":""},{"$f":"IF('TSA Input'!J33=\"\",\"\",IF(OR('TSA Input'!J33=\"Yes\",'TSA Input'!J33=\"Contingent\"),'TSA Input'!G33,\"\"))","v":""},{"$f":"IF('TSA Input'!J33=\"\",\"\",IF(OR('TSA Input'!J33=\"Yes\",'TSA Input'!J33=\"Contingent\"),'TSA Input'!F33,\"\"))","v":""},"",{"$f":"IF('TSA Input'!J33=\"\",\"\",IF(OR('TSA Input'!J33=\"Yes\",'TSA Input'!J33=\"Contingent\"),'TSA Input'!D33,\"\"))","v":""},{"$f":"IF('TSA Input'!J33=\"\",\"\",IF(OR('TSA Input'!J33=\"Yes\",'TSA Input'!J33=\"Contingent\"),'TSA Input'!G33,\"\"))","v":""},{"$f":"IF('TSA Input'!J33=\"\",\"\",IF(OR('TSA Input'!J33=\"Yes\",'TSA Input'!J33=\"Contingent\"),'TSA Input'!F33,\"\"))","v":""},"","Required","Required"]
["",null,{"$f":"IF('TSA Input'!J34=\"\",\"\",IF(OR('TSA Input'!J34=\"Yes\",'TSA Input'!J34=\"Contingent\"),'TSA Input'!B34,\"Ineligible\"))","v":""},{"$f":"IF('TSA Input'!J34=\"\",\"\",IF(OR('TSA Input'!J34=\"Yes\",'TSA Input'!J34=\"Contingent\"),'TSA Input'!I34,\"\"))","v":""},{"$f":"IF('TSA Input'!J34=\"\",\"\",IF(OR('TSA Input'!J34=\"Yes\",'TSA Input'!J34=\"Contingent\"),'TSA Input'!C34,\"\"))","v":""},{"$f":"IF('TSA Input'!J34=\"\",\"\",IF(OR('TSA Input'!J34=\"Yes\",'TSA Input'!J34=\"Contingent\"),'TSA Input'!D34,\"\"))","v":""},{"$f":"IF('TSA Input'!J34=\"\",\"\",IF(OR('TSA Input'!J34=\"Yes\",'TSA Input'!J34=\"Contingent\"),'TSA Input'!G34,\"\"))","v":""},{"$f":"IF('TSA Input'!J34=\"\",\"\",IF(OR('TSA Input'!J34=\"Yes\",'TSA Input'!J34=\"Contingent\"),'TSA Input'!F34,\"\"))","v":""},"",{"$f":"IF('TSA Input'!J34=\"\",\"\",IF(OR('TSA Input'!J34=\"Yes\",'TSA Input'!J34=\"Contingent\"),'TSA Input'!D34,\"\"))","v":""},{"$f":"IF('TSA Input'!J34=\"\",\"\",IF(OR('TSA Input'!J34=\"Yes\",'TSA Input'!J34=\"Contingent\"),'TSA Input'!G34,\"\"))","v":""},{"$f":"IF('TSA Input'!J34=\"\",\"\",IF(OR('TSA Input'!J34=\"Yes\",'TSA Input'!J34=\"Contingent\"),'TSA Input'!F34,\"\"))","v":""},"","Required","Required"]
["",null,{"$f":"IF('TSA Input'!J35=\"\",\"\",IF(OR('TSA Input'!J35=\"Yes\",'TSA Input'!J35=\"Contingent\"),'TSA Input'!B35,\"Ineligible\"))","v":""},{"$f":"IF('TSA Input'!J35=\"\",\"\",IF(OR('TSA Input'!J35=\"Yes\",'TSA Input'!J35=\"Contingent\"),'TSA Input'!I35,\"\"))","v":""},{"$f":"IF('TSA Input'!J35=\"\",\"\",IF(OR('TSA Input'!J35=\"Yes\",'TSA Input'!J35=\"Contingent\"),'TSA Input'!C35,\"\"))","v":""},{"$f":"IF('TSA Input'!J35=\"\",\"\",IF(OR('TSA Input'!J35=\"Yes\",'TSA Input'!J35=\"Contingent\"),'TSA Input'!D35,\"\"))","v":""},{"$f":"IF('TSA Input'!J35=\"\",\"\",IF(OR('TSA Input'!J35=\"Yes\",'TSA Input'!J35=\"Contingent\"),'TSA Input'!G35,\"\"))","v":""},{"$f":"IF('TSA Input'!J35=\"\",\"\",IF(OR('TSA Input'!J35=\"Yes\",'TSA Input'!J35=\"Contingent\"),'TSA Input'!F35,\"\"))","v":""},"",{"$f":"IF('TSA Input'!J35=\"\",\"\",IF(OR('TSA Input'!J35=\"Yes\",'TSA Input'!J35=\"Contingent\"),'TSA Input'!D35,\"\"))","v":""},{"$f":"IF('TSA Input'!J35=\"\",\"\",IF(OR('TSA Input'!J35=\"Yes\",'TSA Input'!J35=\"Contingent\"),'TSA Input'!G35,\"\"))","v":""},{"$f":"IF('TSA Input'!J35=\"\",\"\",IF(OR('TSA Input'!J35=\"Yes\",'TSA Input'!J35=\"Contingent\"),'TSA Input'!F35,\"\"))","v":""},"","Required","Required"]
["",null,{"$f":"IF('TSA Input'!J36=\"\",\"\",IF(OR('TSA Input'!J36=\"Yes\",'TSA Input'!J36=\"Contingent\"),'TSA Input'!B36,\"Ineligible\"))","v":""},{"$f":"IF('TSA Input'!J36=\"\",\"\",IF(OR('TSA Input'!J36=\"Yes\",'TSA Input'!J36=\"Contingent\"),'TSA Input'!I36,\"\"))","v":""},{"$f":"IF('TSA Input'!J36=\"\",\"\",IF(OR('TSA Input'!J36=\"Yes\",'TSA Input'!J36=\"Contingent\"),'TSA Input'!C36,\"\"))","v":""},{"$f":"IF('TSA Input'!J36=\"\",\"\",IF(OR('TSA Input'!J36=\"Yes\",'TSA Input'!J36=\"Contingent\"),'TSA Input'!D36,\"\"))","v":""},{"$f":"IF('TSA Input'!J36=\"\",\"\",IF(OR('TSA Input'!J36=\"Yes\",'TSA Input'!J36=\"Contingent\"),'TSA Input'!G36,\"\"))","v":""},{"$f":"IF('TSA Input'!J36=\"\",\"\",IF(OR('TSA Input'!J36=\"Yes\",'TSA Input'!J36=\"Contingent\"),'TSA Input'!F36,\"\"))","v":""},"",{"$f":"IF('TSA Input'!J36=\"\",\"\",IF(OR('TSA Input'!J36=\"Yes\",'TSA Input'!J36=\"Contingent\"),'TSA Input'!D36,\"\"))","v":""},{"$f":"IF('TSA Input'!J36=\"\",\"\",IF(OR('TSA Input'!J36=\"Yes\",'TSA Input'!J36=\"Contingent\"),'TSA Input'!G36,\"\"))","v":""},{"$f":"IF('TSA Input'!J36=\"\",\"\",IF(OR('TSA Input'!J36=\"Yes\",'TSA Input'!J36=\"Contingent\"),'TSA Input'!F36,\"\"))","v":""},"","Required","Required"]
["",null,{"$f":"IF('TSA Input'!J37=\"\",\"\",IF(OR('TSA Input'!J37=\"Yes\",'TSA Input'!J37=\"Contingent\"),'TSA Input'!B37,\"Ineligible\"))","v":""},{"$f":"IF('TSA Input'!J37=\"\",\"\",IF(OR('TSA Input'!J37=\"Yes\",'TSA Input'!J37=\"Contingent\"),'TSA Input'!I37,\"\"))","v":""},{"$f":"IF('TSA Input'!J37=\"\",\"\",IF(OR('TSA Input'!J37=\"Yes\",'TSA Input'!J37=\"Contingent\"),'TSA Input'!C37,\"\"))","v":""},{"$f":"IF('TSA Input'!J37=\"\",\"\",IF(OR('TSA Input'!J37=\"Yes\",'TSA Input'!J37=\"Contingent\"),'TSA Input'!D37,\"\"))","v":""},{"$f":"IF('TSA Input'!J37=\"\",\"\",IF(OR('TSA Input'!J37=\"Yes\",'TSA Input'!J37=\"Contingent\"),'TSA Input'!G37,\"\"))","v":""},{"$f":"IF('TSA Input'!J37=\"\",\"\",IF(OR('TSA Input'!J37=\"Yes\",'TSA Input'!J37=\"Contingent\"),'TSA Input'!F37,\"\"))","v":""},"",{"$f":"IF('TSA Input'!J37=\"\",\"\",IF(OR('TSA Input'!J37=\"Yes\",'TSA Input'!J37=\"Contingent\"),'TSA Input'!D37,\"\"))","v":""},{"$f":"IF('TSA Input'!J37=\"\",\"\",IF(OR('TSA Input'!J37=\"Yes\",'TSA Input'!J37=\"Contingent\"),'TSA Input'!G37,\"\"))","v":""},{"$f":"IF('TSA Input'!J37=\"\",\"\",IF(OR('TSA Input'!J37=\"Yes\",'TSA Input'!J37=\"Contingent\"),'TSA Input'!F37,\"\"))","v":""},"","Required","Required"]
["",null,{"$f":"IF('TSA Input'!J38=\"\",\"\",IF(OR('TSA Input'!J38=\"Yes\",'TSA Input'!J38=\"Contingent\"),'TSA Input'!B38,\"Ineligible\"))","v":""},{"$f":"IF('TSA Input'!J38=\"\",\"\",IF(OR('TSA Input'!J38=\"Yes\",'TSA Input'!J38=\"Contingent\"),'TSA Input'!I38,\"\"))","v":""},{"$f":"IF('TSA Input'!J38=\"\",\"\",IF(OR('TSA Input'!J38=\"Yes\",'TSA Input'!J38=\"Contingent\"),'TSA Input'!C38,\"\"))","v":""},{"$f":"IF('TSA Input'!J38=\"\",\"\",IF(OR('TSA Input'!J38=\"Yes\",'TSA Input'!J38=\"Contingent\"),'TSA Input'!D38,\"\"))","v":""},{"$f":"IF('TSA Input'!J38=\"\",\"\",IF(OR('TSA Input'!J38=\"Yes\",'TSA Input'!J38=\"Contingent\"),'TSA Input'!G38,\"\"))","v":""},{"$f":"IF('TSA Input'!J38=\"\",\"\",IF(OR('TSA Input'!J38=\"Yes\",'TSA Input'!J38=\"Contingent\"),'TSA Input'!F38,\"\"))","v":""},"",{"$f":"IF('TSA Input'!J38=\"\",\"\",IF(OR('TSA Input'!J38=\"Yes\",'TSA Input'!J38=\"Contingent\"),'TSA Input'!D38,\"\"))","v":""},{"$f":"IF('TSA Input'!J38=\"\",\"\",IF(OR('TSA Input'!J38=\"Yes\",'TSA Input'!J38=\"Contingent\"),'TSA Input'!G38,\"\"))","v":""},{"$f":"IF('TSA Input'!J38=\"\",\"\",IF(OR('TSA Input'!J38=\"Yes\",'TSA Input'!J38=\"Contingent\"),'TSA Input'!F38,\"\"))","v":""},"","Required","Required"]
["",null,{"$f":"IF('TSA Input'!J39=\"\",\"\",IF(OR('TSA Input'!J39=\"Yes\",'TSA Input'!J39=\"Contingent\"),'TSA Input'!B39,\"Ineligible\"))","v":""},{"$f":"IF('TSA Input'!J39=\"\",\"\",IF(OR('TSA Input'!J39=\"Yes\",'TSA Input'!J39=\"Contingent\"),'TSA Input'!I39,\"\"))","v":""},{"$f":"IF('TSA Input'!J39=\"\",\"\",IF(OR('TSA Input'!J39=\"Yes\",'TSA Input'!J39=\"Contingent\"),'TSA Input'!C39,\"\"))","v":""},{"$f":"IF('TSA Input'!J39=\"\",\"\",IF(OR('TSA Input'!J39=\"Yes\",'TSA Input'!J39=\"Contingent\"),'TSA Input'!D39,\"\"))","v":""},{"$f":"IF('TSA Input'!J39=\"\",\"\",IF(OR('TSA Input'!J39=\"Yes\",'TSA Input'!J39=\"Contingent\"),'TSA Input'!G39,\"\"))","v":""},{"$f":"IF('TSA Input'!J39=\"\",\"\",IF(OR('TSA Input'!J39=\"Yes\",'TSA Input'!J39=\"Contingent\"),'TSA Input'!F39,\"\"))","v":""},"",{"$f":"IF('TSA Input'!J39=\"\",\"\",IF(OR('TSA Input'!J39=\"Yes\",'TSA Input'!J39=\"Contingent\"),'TSA Input'!D39,\"\"))","v":""},{"$f":"IF('TSA Input'!J39=\"\",\"\",IF(OR('TSA Input'!J39=\"Yes\",'TSA Input'!J39=\"Contingent\"),'TSA Input'!G39,\"\"))","v":""},{"$f":"IF('TSA Input'!J39=\"\",\"\",IF(OR('TSA Input'!J39=\"Yes\",'TSA Input'!J39=\"Contingent\"),'TSA Input'!F39,\"\"))","v":""},"","Required","Required"]
["",null,{"$f":"IF('TSA Input'!J40=\"\",\"\",IF(OR('TSA Input'!J40=\"Yes\",'TSA Input'!J40=\"Contingent\"),'TSA Input'!B40,\"Ineligible\"))","v":""},{"$f":"IF('TSA Input'!J40=\"\",\"\",IF(OR('TSA Input'!J40=\"Yes\",'TSA Input'!J40=\"Contingent\"),'TSA Input'!I40,\"\"))","v":""},{"$f":"IF('TSA Input'!J40=\"\",\"\",IF(OR('TSA Input'!J40=\"Yes\",'TSA Input'!J40=\"Contingent\"),'TSA Input'!C40,\"\"))","v":""},{"$f":"IF('TSA Input'!J40=\"\",\"\",IF(OR('TSA Input'!J40=\"Yes\",'TSA Input'!J40=\"Contingent\"),'TSA Input'!D40,\"\"))","v":""},{"$f":"IF('TSA Input'!J40=\"\",\"\",IF(OR('TSA Input'!J40=\"Yes\",'TSA Input'!J40=\"Contingent\"),'TSA Input'!G40,\"\"))","v":""},{"$f":"IF('TSA Input'!J40=\"\",\"\",IF(OR('TSA Input'!J40=\"Yes\",'TSA Input'!J40=\"Contingent\"),'TSA Input'!F40,\"\"))","v":""},"",{"$f":"IF('TSA Input'!J40=\"\",\"\",IF(OR('TSA Input'!J40=\"Yes\",'TSA Input'!J40=\"Contingent\"),'TSA Input'!D40,\"\"))","v":""},{"$f":"IF('TSA Input'!J40=\"\",\"\",IF(OR('TSA Input'!J40=\"Yes\",'TSA Input'!J40=\"Contingent\"),'TSA Input'!G40,\"\"))","v":""},{"$f":"IF('TSA Input'!J40=\"\",\"\",IF(OR('TSA Input'!J40=\"Yes\",'TSA Input'!J40=\"Contingent\"),'TSA Input'!F40,\"\"))","v":""},"","Required","Required"]
["",null,{"$f":"IF('TSA Input'!J41=\"\",\"\",IF(OR('TSA Input'!J41=\"Yes\",'TSA Input'!J41=\"Contingent\"),'TSA Input'!B41,\"Ineligible\"))","v":""},{"$f":"IF('TSA Input'!J41=\"\",\"\",IF(OR('TSA Input'!J41=\"Yes\",'TSA Input'!J41=\"Contingent\"),'TSA Input'!I41,\"\"))","v":""},{"$f":"IF('TSA Input'!J41=\"\",\"\",IF(OR('TSA Input'!J41=\"Yes\",'TSA Input'!J41=\"Contingent\"),'TSA Input'!C41,\"\"))","v":""},{"$f":"IF('TSA Input'!J41=\"\",\"\",IF(OR('TSA Input'!J41=\"Yes\",'TSA Input'!J41=\"Contingent\"),'TSA Input'!D41,\"\"))","v":""},{"$f":"IF('TSA Input'!J41=\"\",\"\",IF(OR('TSA Input'!J41=\"Yes\",'TSA Input'!J41=\"Contingent\"),'TSA Input'!G41,\"\"))","v":""},{"$f":"IF('TSA Input'!J41=\"\",\"\",IF(OR('TSA Input'!J41=\"Yes\",'TSA Input'!J41=\"Contingent\"),'TSA Input'!F41,\"\"))","v":""},"",{"$f":"IF('TSA Input'!J41=\"\",\"\",IF(OR('TSA Input'!J41=\"Yes\",'TSA Input'!J41=\"Contingent\"),'TSA Input'!D41,\"\"))","v":""},{"$f":"IF('TSA Input'!J41=\"\",\"\",IF(OR('TSA Input'!J41=\"Yes\",'TSA Input'!J41=\"Contingent\"),'TSA Input'!G41,\"\"))","v":""},{"$f":"IF('TSA Input'!J41=\"\",\"\",IF(OR('TSA Input'!J41=\"Yes\",'TSA Input'!J41=\"Contingent\"),'TSA Input'!F41,\"\"))","v":""},"","Required","Required"]
["",null,{"$f":"IF('TSA Input'!J42=\"\",\"\",IF(OR('TSA Input'!J42=\"Yes\",'TSA Input'!J42=\"Contingent\"),'TSA Input'!B42,\"Ineligible\"))","v":""},{"$f":"IF('TSA Input'!J42=\"\",\"\",IF(OR('TSA Input'!J42=\"Yes\",'TSA Input'!J42=\"Contingent\"),'TSA Input'!I42,\"\"))","v":""},{"$f":"IF('TSA Input'!J42=\"\",\"\",IF(OR('TSA Input'!J42=\"Yes\",'TSA Input'!J42=\"Contingent\"),'TSA Input'!C42,\"\"))","v":""},{"$f":"IF('TSA Input'!J42=\"\",\"\",IF(OR('TSA Input'!J42=\"Yes\",'TSA Input'!J42=\"Contingent\"),'TSA Input'!D42,\"\"))","v":""},{"$f":"IF('TSA Input'!J42=\"\",\"\",IF(OR('TSA Input'!J42=\"Yes\",'TSA Input'!J42=\"Contingent\"),'TSA Input'!G42,\"\"))","v":""},{"$f":"IF('TSA Input'!J42=\"\",\"\",IF(OR('TSA Input'!J42=\"Yes\",'TSA Input'!J42=\"Contingent\"),'TSA Input'!F42,\"\"))","v":""},"",{"$f":"IF('TSA Input'!J42=\"\",\"\",IF(OR('TSA Input'!J42=\"Yes\",'TSA Input'!J42=\"Contingent\"),'TSA Input'!D42,\"\"))","v":""},{"$f":"IF('TSA Input'!J42=\"\",\"\",IF(OR('TSA Input'!J42=\"Yes\",'TSA Input'!J42=\"Contingent\"),'TSA Input'!G42,\"\"))","v":""},{"$f":"IF('TSA Input'!J42=\"\",\"\",IF(OR('TSA Input'!J42=\"Yes\",'TSA Input'!J42=\"Contingent\"),'TSA Input'!F42,\"\"))","v":""},"","Required","Required"]
["",null,{"$f":"IF('TSA Input'!J43=\"\",\"\",IF(OR('TSA Input'!J43=\"Yes\",'TSA Input'!J43=\"Contingent\"),'TSA Input'!B43,\"Ineligible\"))","v":""},{"$f":"IF('TSA Input'!J43=\"\",\"\",IF(OR('TSA Input'!J43=\"Yes\",'TSA Input'!J43=\"Contingent\"),'TSA Input'!I43,\"\"))","v":""},{"$f":"IF('TSA Input'!J43=\"\",\"\",IF(OR('TSA Input'!J43=\"Yes\",'TSA Input'!J43=\"Contingent\"),'TSA Input'!C43,\"\"))","v":""},{"$f":"IF('TSA Input'!J43=\"\",\"\",IF(OR('TSA Input'!J43=\"Yes\",'TSA Input'!J43=\"Contingent\"),'TSA Input'!D43,\"\"))","v":""},{"$f":"IF('TSA Input'!J43=\"\",\"\",IF(OR('TSA Input'!J43=\"Yes\",'TSA Input'!J43=\"Contingent\"),'TSA Input'!G43,\"\"))","v":""},{"$f":"IF('TSA Input'!J43=\"\",\"\",IF(OR('TSA Input'!J43=\"Yes\",'TSA Input'!J43=\"Contingent\"),'TSA Input'!F43,\"\"))","v":""},"",{"$f":"IF('TSA Input'!J43=\"\",\"\",IF(OR('TSA Input'!J43=\"Yes\",'TSA Input'!J43=\"Contingent\"),'TSA Input'!D43,\"\"))","v":""},{"$f":"IF('TSA Input'!J43=\"\",\"\",IF(OR('TSA Input'!J43=\"Yes\",'TSA Input'!J43=\"Contingent\"),'TSA Input'!G43,\"\"))","v":""},{"$f":"IF('TSA Input'!J43=\"\",\"\",IF(OR('TSA Input'!J43=\"Yes\",'TSA Input'!J43=\"Contingent\"),'TSA Input'!F43,\"\"))","v":""},"","Required","Required"]
["",null,{"$f":"IF('TSA Input'!J44=\"\",\"\",IF(OR('TSA Input'!J44=\"Yes\",'TSA Input'!J44=\"Contingent\"),'TSA Input'!B44,\"Ineligible\"))","v":""},{"$f":"IF('TSA Input'!J44=\"\",\"\",IF(OR('TSA Input'!J44=\"Yes\",'TSA Input'!J44=\"Contingent\"),'TSA Input'!I44,\"\"))","v":""},{"$f":"IF('TSA Input'!J44=\"\",\"\",IF(OR('TSA Input'!J44=\"Yes\",'TSA Input'!J44=\"Contingent\"),'TSA Input'!C44,\"\"))","v":""},{"$f":"IF('TSA Input'!J44=\"\",\"\",IF(OR('TSA Input'!J44=\"Yes\",'TSA Input'!J44=\"Contingent\"),'TSA Input'!D44,\"\"))","v":""},{"$f":"IF('TSA Input'!J44=\"\",\"\",IF(OR('TSA Input'!J44=\"Yes\",'TSA Input'!J44=\"Contingent\"),'TSA Input'!G44,\"\"))","v":""},{"$f":"IF('TSA Input'!J44=\"\",\"\",IF(OR('TSA Input'!J44=\"Yes\",'TSA Input'!J44=\"Contingent\"),'TSA Input'!F44,\"\"))","v":""},"",{"$f":"IF('TSA Input'!J44=\"\",\"\",IF(OR('TSA Input'!J44=\"Yes\",'TSA Input'!J44=\"Contingent\"),'TSA Input'!D44,\"\"))","v":""},{"$f":"IF('TSA Input'!J44=\"\",\"\",IF(OR('TSA Input'!J44=\"Yes\",'TSA Input'!J44=\"Contingent\"),'TSA Input'!G44,\"\"))","v":""},{"$f":"IF('TSA Input'!J44=\"\",\"\",IF(OR('TSA Input'!J44=\"Yes\",'TSA Input'!J44=\"Contingent\"),'TSA Input'!F44,\"\"))","v":""},"","Required","Required"]
["",null,{"$f":"IF('TSA Input'!J45=\"\",\"\",IF(OR('TSA Input'!J45=\"Yes\",'TSA Input'!J45=\"Contingent\"),'TSA Input'!B45,\"Ineligible\"))","v":""},{"$f":"IF('TSA Input'!J45=\"\",\"\",IF(OR('TSA Input'!J45=\"Yes\",'TSA Input'!J45=\"Contingent\"),'TSA Input'!I45,\"\"))","v":""},{"$f":"IF('TSA Input'!J45=\"\",\"\",IF(OR('TSA Input'!J45=\"Yes\",'TSA Input'!J45=\"Contingent\"),'TSA Input'!C45,\"\"))","v":""},{"$f":"IF('TSA Input'!J45=\"\",\"\",IF(OR('TSA Input'!J45=\"Yes\",'TSA Input'!J45=\"Contingent\"),'TSA Input'!D45,\"\"))","v":""},{"$f":"IF('TSA Input'!J45=\"\",\"\",IF(OR('TSA Input'!J45=\"Yes\",'TSA Input'!J45=\"Contingent\"),'TSA Input'!G45,\"\"))","v":""},{"$f":"IF('TSA Input'!J45=\"\",\"\",IF(OR('TSA Input'!J45=\"Yes\",'TSA Input'!J45=\"Contingent\"),'TSA Input'!F45,\"\"))","v":""},"",{"$f":"IF('TSA Input'!J45=\"\",\"\",IF(OR('TSA Input'!J45=\"Yes\",'TSA Input'!J45=\"Contingent\"),'TSA Input'!D45,\"\"))","v":""},{"$f":"IF('TSA Input'!J45=\"\",\"\",IF(OR('TSA Input'!J45=\"Yes\",'TSA Input'!J45=\"Contingent\"),'TSA Input'!G45,\"\"))","v":""},{"$f":"IF('TSA Input'!J45=\"\",\"\",IF(OR('TSA Input'!J45=\"Yes\",'TSA Input'!J45=\"Contingent\"),'TSA Input'!F45,\"\"))","v":""},"","Required","Required"]
["",null,{"$f":"IF('TSA Input'!J46=\"\",\"\",IF(OR('TSA Input'!J46=\"Yes\",'TSA Input'!J46=\"Contingent\"),'TSA Input'!B46,\"Ineligible\"))","v":""},{"$f":"IF('TSA Input'!J46=\"\",\"\",IF(OR('TSA Input'!J46=\"Yes\",'TSA Input'!J46=\"Contingent\"),'TSA Input'!I46,\"\"))","v":""},{"$f":"IF('TSA Input'!J46=\"\",\"\",IF(OR('TSA Input'!J46=\"Yes\",'TSA Input'!J46=\"Contingent\"),'TSA Input'!C46,\"\"))","v":""},{"$f":"IF('TSA Input'!J46=\"\",\"\",IF(OR('TSA Input'!J46=\"Yes\",'TSA Input'!J46=\"Contingent\"),'TSA Input'!D46,\"\"))","v":""},{"$f":"IF('TSA Input'!J46=\"\",\"\",IF(OR('TSA Input'!J46=\"Yes\",'TSA Input'!J46=\"Contingent\"),'TSA Input'!G46,\"\"))","v":""},{"$f":"IF('TSA Input'!J46=\"\",\"\",IF(OR('TSA Input'!J46=\"Yes\",'TSA Input'!J46=\"Contingent\"),'TSA Input'!F46,\"\"))","v":""},"",{"$f":"IF('TSA Input'!J46=\"\",\"\",IF(OR('TSA Input'!J46=\"Yes\",'TSA Input'!J46=\"Contingent\"),'TSA Input'!D46,\"\"))","v":""},{"$f":"IF('TSA Input'!J46=\"\",\"\",IF(OR('TSA Input'!J46=\"Yes\",'TSA Input'!J46=\"Contingent\"),'TSA Input'!G46,\"\"))","v":""},{"$f":"IF('TSA Input'!J46=\"\",\"\",IF(OR('TSA Input'!J46=\"Yes\",'TSA Input'!J46=\"Contingent\"),'TSA Input'!F46,\"\"))","v":""},"","Required","Required"]
["",null,{"$f":"IF('TSA Input'!J47=\"\",\"\",IF(OR('TSA Input'!J47=\"Yes\",'TSA Input'!J47=\"Contingent\"),'TSA Input'!B47,\"Ineligible\"))","v":""},{"$f":"IF('TSA Input'!J47=\"\",\"\",IF(OR('TSA Input'!J47=\"Yes\",'TSA Input'!J47=\"Contingent\"),'TSA Input'!I47,\"\"))","v":""},{"$f":"IF('TSA Input'!J47=\"\",\"\",IF(OR('TSA Input'!J47=\"Yes\",'TSA Input'!J47=\"Contingent\"),'TSA Input'!C47,\"\"))","v":""},{"$f":"IF('TSA Input'!J47=\"\",\"\",IF(OR('TSA Input'!J47=\"Yes\",'TSA Input'!J47=\"Contingent\"),'TSA Input'!D47,\"\"))","v":""},{"$f":"IF('TSA Input'!J47=\"\",\"\",IF(OR('TSA Input'!J47=\"Yes\",'TSA Input'!J47=\"Contingent\"),'TSA Input'!G47,\"\"))","v":""},{"$f":"IF('TSA Input'!J47=\"\",\"\",IF(OR('TSA Input'!J47=\"Yes\",'TSA Input'!J47=\"Contingent\"),'TSA Input'!F47,\"\"))","v":""},"",{"$f":"IF('TSA Input'!J47=\"\",\"\",IF(OR('TSA Input'!J47=\"Yes\",'TSA Input'!J47=\"Contingent\"),'TSA Input'!D47,\"\"))","v":""},{"$f":"IF('TSA Input'!J47=\"\",\"\",IF(OR('TSA Input'!J47=\"Yes\",'TSA Input'!J47=\"Contingent\"),'TSA Input'!G47,\"\"))","v":""},{"$f":"IF('TSA Input'!J47=\"\",\"\",IF(OR('TSA Input'!J47=\"Yes\",'TSA Input'!J47=\"Contingent\"),'TSA Input'!F47,\"\"))","v":""},"","Required","Required"]
["",null,{"$f":"IF('TSA Input'!J48=\"\",\"\",IF(OR('TSA Input'!J48=\"Yes\",'TSA Input'!J48=\"Contingent\"),'TSA Input'!B48,\"Ineligible\"))","v":""},{"$f":"IF('TSA Input'!J48=\"\",\"\",IF(OR('TSA Input'!J48=\"Yes\",'TSA Input'!J48=\"Contingent\"),'TSA Input'!I48,\"\"))","v":""},{"$f":"IF('TSA Input'!J48=\"\",\"\",IF(OR('TSA Input'!J48=\"Yes\",'TSA Input'!J48=\"Contingent\"),'TSA Input'!C48,\"\"))","v":""},{"$f":"IF('TSA Input'!J48=\"\",\"\",IF(OR('TSA Input'!J48=\"Yes\",'TSA Input'!J48=\"Contingent\"),'TSA Input'!D48,\"\"))","v":""},{"$f":"IF('TSA Input'!J48=\"\",\"\",IF(OR('TSA Input'!J48=\"Yes\",'TSA Input'!J48=\"Contingent\"),'TSA Input'!G48,\"\"))","v":""},{"$f":"IF('TSA Input'!J48=\"\",\"\",IF(OR('TSA Input'!J48=\"Yes\",'TSA Input'!J48=\"Contingent\"),'TSA Input'!F48,\"\"))","v":""},"",{"$f":"IF('TSA Input'!J48=\"\",\"\",IF(OR('TSA Input'!J48=\"Yes\",'TSA Input'!J48=\"Contingent\"),'TSA Input'!D48,\"\"))","v":""},{"$f":"IF('TSA Input'!J48=\"\",\"\",IF(OR('TSA Input'!J48=\"Yes\",'TSA Input'!J48=\"Contingent\"),'TSA Input'!G48,\"\"))","v":""},{"$f":"IF('TSA Input'!J48=\"\",\"\",IF(OR('TSA Input'!J48=\"Yes\",'TSA Input'!J48=\"Contingent\"),'TSA Input'!F48,\"\"))","v":""},"","Required","Required"]
["",null,{"$f":"IF('TSA Input'!J49=\"\",\"\",IF(OR('TSA Input'!J49=\"Yes\",'TSA Input'!J49=\"Contingent\"),'TSA Input'!B49,\"Ineligible\"))","v":""},{"$f":"IF('TSA Input'!J49=\"\",\"\",IF(OR('TSA Input'!J49=\"Yes\",'TSA Input'!J49=\"Contingent\"),'TSA Input'!I49,\"\"))","v":""},{"$f":"IF('TSA Input'!J49=\"\",\"\",IF(OR('TSA Input'!J49=\"Yes\",'TSA Input'!J49=\"Contingent\"),'TSA Input'!C49,\"\"))","v":""},{"$f":"IF('TSA Input'!J49=\"\",\"\",IF(OR('TSA Input'!J49=\"Yes\",'TSA Input'!J49=\"Contingent\"),'TSA Input'!D49,\"\"))","v":""},{"$f":"IF('TSA Input'!J49=\"\",\"\",IF(OR('TSA Input'!J49=\"Yes\",'TSA Input'!J49=\"Contingent\"),'TSA Input'!G49,\"\"))","v":""},{"$f":"IF('TSA Input'!J49=\"\",\"\",IF(OR('TSA Input'!J49=\"Yes\",'TSA Input'!J49=\"Contingent\"),'TSA Input'!F49,\"\"))","v":""},"",{"$f":"IF('TSA Input'!J49=\"\",\"\",IF(OR('TSA Input'!J49=\"Yes\",'TSA Input'!J49=\"Contingent\"),'TSA Input'!D49,\"\"))","v":""},{"$f":"IF('TSA Input'!J49=\"\",\"\",IF(OR('TSA Input'!J49=\"Yes\",'TSA Input'!J49=\"Contingent\"),'TSA Input'!G49,\"\"))","v":""},{"$f":"IF('TSA Input'!J49=\"\",\"\",IF(OR('TSA Input'!J49=\"Yes\",'TSA Input'!J49=\"Contingent\"),'TSA Input'!F49,\"\"))","v":""},"","Required","Required"]
["",null,{"$f":"IF('TSA Input'!J50=\"\",\"\",IF(OR('TSA Input'!J50=\"Yes\",'TSA Input'!J50=\"Contingent\"),'TSA Input'!B50,\"Ineligible\"))","v":""},{"$f":"IF('TSA Input'!J50=\"\",\"\",IF(OR('TSA Input'!J50=\"Yes\",'TSA Input'!J50=\"Contingent\"),'TSA Input'!I50,\"\"))","v":""},{"$f":"IF('TSA Input'!J50=\"\",\"\",IF(OR('TSA Input'!J50=\"Yes\",'TSA Input'!J50=\"Contingent\"),'TSA Input'!C50,\"\"))","v":""},{"$f":"IF('TSA Input'!J50=\"\",\"\",IF(OR('TSA Input'!J50=\"Yes\",'TSA Input'!J50=\"Contingent\"),'TSA Input'!D50,\"\"))","v":""},{"$f":"IF('TSA Input'!J50=\"\",\"\",IF(OR('TSA Input'!J50=\"Yes\",'TSA Input'!J50=\"Contingent\"),'TSA Input'!G50,\"\"))","v":""},{"$f":"IF('TSA Input'!J50=\"\",\"\",IF(OR('TSA Input'!J50=\"Yes\",'TSA Input'!J50=\"Contingent\"),'TSA Input'!F50,\"\"))","v":""},"",{"$f":"IF('TSA Input'!J50=\"\",\"\",IF(OR('TSA Input'!J50=\"Yes\",'TSA Input'!J50=\"Contingent\"),'TSA Input'!D50,\"\"))","v":""},{"$f":"IF('TSA Input'!J50=\"\",\"\",IF(OR('TSA Input'!J50=\"Yes\",'TSA Input'!J50=\"Contingent\"),'TSA Input'!G50,\"\"))","v":""},{"$f":"IF('TSA Input'!J50=\"\",\"\",IF(OR('TSA Input'!J50=\"Yes\",'TSA Input'!J50=\"Contingent\"),'TSA Input'!F50,\"\"))","v":""},"","Required","Required"]
["",null,{"$f":"IF('TSA Input'!J51=\"\",\"\",IF(OR('TSA Input'!J51=\"Yes\",'TSA Input'!J51=\"Contingent\"),'TSA Input'!B51,\"Ineligible\"))","v":""},{"$f":"IF('TSA Input'!J51=\"\",\"\",IF(OR('TSA Input'!J51=\"Yes\",'TSA Input'!J51=\"Contingent\"),'TSA Input'!I51,\"\"))","v":""},{"$f":"IF('TSA Input'!J51=\"\",\"\",IF(OR('TSA Input'!J51=\"Yes\",'TSA Input'!J51=\"Contingent\"),'TSA Input'!C51,\"\"))","v":""},{"$f":"IF('TSA Input'!J51=\"\",\"\",IF(OR('TSA Input'!J51=\"Yes\",'TSA Input'!J51=\"Contingent\"),'TSA Input'!D51,\"\"))","v":""},{"$f":"IF('TSA Input'!J51=\"\",\"\",IF(OR('TSA Input'!J51=\"Yes\",'TSA Input'!J51=\"Contingent\"),'TSA Input'!G51,\"\"))","v":""},{"$f":"IF('TSA Input'!J51=\"\",\"\",IF(OR('TSA Input'!J51=\"Yes\",'TSA Input'!J51=\"Contingent\"),'TSA Input'!F51,\"\"))","v":""},"",{"$f":"IF('TSA Input'!J51=\"\",\"\",IF(OR('TSA Input'!J51=\"Yes\",'TSA Input'!J51=\"Contingent\"),'TSA Input'!D51,\"\"))","v":""},{"$f":"IF('TSA Input'!J51=\"\",\"\",IF(OR('TSA Input'!J51=\"Yes\",'TSA Input'!J51=\"Contingent\"),'TSA Input'!G51,\"\"))","v":""},{"$f":"IF('TSA Input'!J51=\"\",\"\",IF(OR('TSA Input'!J51=\"Yes\",'TSA Input'!J51=\"Contingent\"),'TSA Input'!F51,\"\"))","v":""},"","Required","Required"]
["",null,{"$f":"IF('TSA Input'!J52=\"\",\"\",IF(OR('TSA Input'!J52=\"Yes\",'TSA Input'!J52=\"Contingent\"),'TSA Input'!B52,\"Ineligible\"))","v":""},{"$f":"IF('TSA Input'!J52=\"\",\"\",IF(OR('TSA Input'!J52=\"Yes\",'TSA Input'!J52=\"Contingent\"),'TSA Input'!I52,\"\"))","v":""},{"$f":"IF('TSA Input'!J52=\"\",\"\",IF(OR('TSA Input'!J52=\"Yes\",'TSA Input'!J52=\"Contingent\"),'TSA Input'!C52,\"\"))","v":""},{"$f":"IF('TSA Input'!J52=\"\",\"\",IF(OR('TSA Input'!J52=\"Yes\",'TSA Input'!J52=\"Contingent\"),'TSA Input'!D52,\"\"))","v":""},{"$f":"IF('TSA Input'!J52=\"\",\"\",IF(OR('TSA Input'!J52=\"Yes\",'TSA Input'!J52=\"Contingent\"),'TSA Input'!G52,\"\"))","v":""},{"$f":"IF('TSA Input'!J52=\"\",\"\",IF(OR('TSA Input'!J52=\"Yes\",'TSA Input'!J52=\"Contingent\"),'TSA Input'!F52,\"\"))","v":""},"",{"$f":"IF('TSA Input'!J52=\"\",\"\",IF(OR('TSA Input'!J52=\"Yes\",'TSA Input'!J52=\"Contingent\"),'TSA Input'!D52,\"\"))","v":""},{"$f":"IF('TSA Input'!J52=\"\",\"\",IF(OR('TSA Input'!J52=\"Yes\",'TSA Input'!J52=\"Contingent\"),'TSA Input'!G52,\"\"))","v":""},{"$f":"IF('TSA Input'!J52=\"\",\"\",IF(OR('TSA Input'!J52=\"Yes\",'TSA Input'!J52=\"Contingent\"),'TSA Input'!F52,\"\"))","v":""},"","Required","Required"]
["",null,{"$f":"IF('TSA Input'!J53=\"\",\"\",IF(OR('TSA Input'!J53=\"Yes\",'TSA Input'!J53=\"Contingent\"),'TSA Input'!B53,\"Ineligible\"))","v":""},{"$f":"IF('TSA Input'!J53=\"\",\"\",IF(OR('TSA Input'!J53=\"Yes\",'TSA Input'!J53=\"Contingent\"),'TSA Input'!I53,\"\"))","v":""},{"$f":"IF('TSA Input'!J53=\"\",\"\",IF(OR('TSA Input'!J53=\"Yes\",'TSA Input'!J53=\"Contingent\"),'TSA Input'!C53,\"\"))","v":""},{"$f":"IF('TSA Input'!J53=\"\",\"\",IF(OR('TSA Input'!J53=\"Yes\",'TSA Input'!J53=\"Contingent\"),'TSA Input'!D53,\"\"))","v":""},{"$f":"IF('TSA Input'!J53=\"\",\"\",IF(OR('TSA Input'!J53=\"Yes\",'TSA Input'!J53=\"Contingent\"),'TSA Input'!G53,\"\"))","v":""},{"$f":"IF('TSA Input'!J53=\"\",\"\",IF(OR('TSA Input'!J53=\"Yes\",'TSA Input'!J53=\"Contingent\"),'TSA Input'!F53,\"\"))","v":""},"",{"$f":"IF('TSA Input'!J53=\"\",\"\",IF(OR('TSA Input'!J53=\"Yes\",'TSA Input'!J53=\"Contingent\"),'TSA Input'!D53,\"\"))","v":""},{"$f":"IF('TSA Input'!J53=\"\",\"\",IF(OR('TSA Input'!J53=\"Yes\",'TSA Input'!J53=\"Contingent\"),'TSA Input'!G53,\"\"))","v":""},{"$f":"IF('TSA Input'!J53=\"\",\"\",IF(OR('TSA Input'!J53=\"Yes\",'TSA Input'!J53=\"Contingent\"),'TSA Input'!F53,\"\"))","v":""},"","Required","Required"]
["",null,{"$f":"IF('TSA Input'!J54=\"\",\"\",IF(OR('TSA Input'!J54=\"Yes\",'TSA Input'!J54=\"Contingent\"),'TSA Input'!B54,\"Ineligible\"))","v":""},{"$f":"IF('TSA Input'!J54=\"\",\"\",IF(OR('TSA Input'!J54=\"Yes\",'TSA Input'!J54=\"Contingent\"),'TSA Input'!I54,\"\"))","v":""},{"$f":"IF('TSA Input'!J54=\"\",\"\",IF(OR('TSA Input'!J54=\"Yes\",'TSA Input'!J54=\"Contingent\"),'TSA Input'!C54,\"\"))","v":""},{"$f":"IF('TSA Input'!J54=\"\",\"\",IF(OR('TSA Input'!J54=\"Yes\",'TSA Input'!J54=\"Contingent\"),'TSA Input'!D54,\"\"))","v":""},{"$f":"IF('TSA Input'!J54=\"\",\"\",IF(OR('TSA Input'!J54=\"Yes\",'TSA Input'!J54=\"Contingent\"),'TSA Input'!G54,\"\"))","v":""},{"$f":"IF('TSA Input'!J54=\"\",\"\",IF(OR('TSA Input'!J54=\"Yes\",'TSA Input'!J54=\"Contingent\"),'TSA Input'!F54,\"\"))","v":""},"",{"$f":"IF('TSA Input'!J54=\"\",\"\",IF(OR('TSA Input'!J54=\"Yes\",'TSA Input'!J54=\"Contingent\"),'TSA Input'!D54,\"\"))","v":""},{"$f":"IF('TSA Input'!J54=\"\",\"\",IF(OR('TSA Input'!J54=\"Yes\",'TSA Input'!J54=\"Contingent\"),'TSA Input'!G54,\"\"))","v":""},{"$f":"IF('TSA Input'!J54=\"\",\"\",IF(OR('TSA Input'!J54=\"Yes\",'TSA Input'!J54=\"Contingent\"),'TSA Input'!F54,\"\"))","v":""},"","Required","Required"]
["",null,{"$f":"IF('TSA Input'!J55=\"\",\"\",IF(OR('TSA Input'!J55=\"Yes\",'TSA Input'!J55=\"Contingent\"),'TSA Input'!B55,\"Ineligible\"))","v":""},{"$f":"IF('TSA Input'!J55=\"\",\"\",IF(OR('TSA Input'!J55=\"Yes\",'TSA Input'!J55=\"Contingent\"),'TSA Input'!I55,\"\"))","v":""},{"$f":"IF('TSA Input'!J55=\"\",\"\",IF(OR('TSA Input'!J55=\"Yes\",'TSA Input'!J55=\"Contingent\"),'TSA Input'!C55,\"\"))","v":""},{"$f":"IF('TSA Input'!J55=\"\",\"\",IF(OR('TSA Input'!J55=\"Yes\",'TSA Input'!J55=\"Contingent\"),'TSA Input'!D55,\"\"))","v":""},{"$f":"IF('TSA Input'!J55=\"\",\"\",IF(OR('TSA Input'!J55=\"Yes\",'TSA Input'!J55=\"Contingent\"),'TSA Input'!G55,\"\"))","v":""},{"$f":"IF('TSA Input'!J55=\"\",\"\",IF(OR('TSA Input'!J55=\"Yes\",'TSA Input'!J55=\"Contingent\"),'TSA Input'!F55,\"\"))","v":""},"",{"$f":"IF('TSA Input'!J55=\"\",\"\",IF(OR('TSA Input'!J55=\"Yes\",'TSA Input'!J55=\"Contingent\"),'TSA Input'!D55,\"\"))","v":""},{"$f":"IF('TSA Input'!J55=\"\",\"\",IF(OR('TSA Input'!J55=\"Yes\",'TSA Input'!J55=\"Contingent\"),'TSA Input'!G55,\"\"))","v":""},{"$f":"IF('TSA Input'!J55=\"\",\"\",IF(OR('TSA Input'!J55=\"Yes\",'TSA Input'!J55=\"Contingent\"),'TSA Input'!F55,\"\"))","v":""},"","Required","Required"]
["",null,{"$f":"IF('TSA Input'!J56=\"\",\"\",IF(OR('TSA Input'!J56=\"Yes\",'TSA Input'!J56=\"Contingent\"),'TSA Input'!B56,\"Ineligible\"))","v":""},{"$f":"IF('TSA Input'!J56=\"\",\"\",IF(OR('TSA Input'!J56=\"Yes\",'TSA Input'!J56=\"Contingent\"),'TSA Input'!I56,\"\"))","v":""},{"$f":"IF('TSA Input'!J56=\"\",\"\",IF(OR('TSA Input'!J56=\"Yes\",'TSA Input'!J56=\"Contingent\"),'TSA Input'!C56,\"\"))","v":""},{"$f":"IF('TSA Input'!J56=\"\",\"\",IF(OR('TSA Input'!J56=\"Yes\",'TSA Input'!J56=\"Contingent\"),'TSA Input'!D56,\"\"))","v":""},{"$f":"IF('TSA Input'!J56=\"\",\"\",IF(OR('TSA Input'!J56=\"Yes\",'TSA Input'!J56=\"Contingent\"),'TSA Input'!G56,\"\"))","v":""},{"$f":"IF('TSA Input'!J56=\"\",\"\",IF(OR('TSA Input'!J56=\"Yes\",'TSA Input'!J56=\"Contingent\"),'TSA Input'!F56,\"\"))","v":""},"",{"$f":"IF('TSA Input'!J56=\"\",\"\",IF(OR('TSA Input'!J56=\"Yes\",'TSA Input'!J56=\"Contingent\"),'TSA Input'!D56,\"\"))","v":""},{"$f":"IF('TSA Input'!J56=\"\",\"\",IF(OR('TSA Input'!J56=\"Yes\",'TSA Input'!J56=\"Contingent\"),'TSA Input'!G56,\"\"))","v":""},{"$f":"IF('TSA Input'!J56=\"\",\"\",IF(OR('TSA Input'!J56=\"Yes\",'TSA Input'!J56=\"Contingent\"),'TSA Input'!F56,\"\"))","v":""},"","Required","Required"]
["",null,{"$f":"IF('TSA Input'!J57=\"\",\"\",IF(OR('TSA Input'!J57=\"Yes\",'TSA Input'!J57=\"Contingent\"),'TSA Input'!B57,\"Ineligible\"))","v":""},{"$f":"IF('TSA Input'!J57=\"\",\"\",IF(OR('TSA Input'!J57=\"Yes\",'TSA Input'!J57=\"Contingent\"),'TSA Input'!I57,\"\"))","v":""},{"$f":"IF('TSA Input'!J57=\"\",\"\",IF(OR('TSA Input'!J57=\"Yes\",'TSA Input'!J57=\"Contingent\"),'TSA Input'!C57,\"\"))","v":""},{"$f":"IF('TSA Input'!J57=\"\",\"\",IF(OR('TSA Input'!J57=\"Yes\",'TSA Input'!J57=\"Contingent\"),'TSA Input'!D57,\"\"))","v":""},{"$f":"IF('TSA Input'!J57=\"\",\"\",IF(OR('TSA Input'!J57=\"Yes\",'TSA Input'!J57=\"Contingent\"),'TSA Input'!G57,\"\"))","v":""},{"$f":"IF('TSA Input'!J57=\"\",\"\",IF(OR('TSA Input'!J57=\"Yes\",'TSA Input'!J57=\"Contingent\"),'TSA Input'!F57,\"\"))","v":""},"",{"$f":"IF('TSA Input'!J57=\"\",\"\",IF(OR('TSA Input'!J57=\"Yes\",'TSA Input'!J57=\"Contingent\"),'TSA Input'!D57,\"\"))","v":""},{"$f":"IF('TSA Input'!J57=\"\",\"\",IF(OR('TSA Input'!J57=\"Yes\",'TSA Input'!J57=\"Contingent\"),'TSA Input'!G57,\"\"))","v":""},{"$f":"IF('TSA Input'!J57=\"\",\"\",IF(OR('TSA Input'!J57=\"Yes\",'TSA Input'!J57=\"Contingent\"),'TSA Input'!F57,\"\"))","v":""},"","Required","Required"]
["",null,{"$f":"IF('TSA Input'!J58=\"\",\"\",IF(OR('TSA Input'!J58=\"Yes\",'TSA Input'!J58=\"Contingent\"),'TSA Input'!B58,\"Ineligible\"))","v":""},{"$f":"IF('TSA Input'!J58=\"\",\"\",IF(OR('TSA Input'!J58=\"Yes\",'TSA Input'!J58=\"Contingent\"),'TSA Input'!I58,\"\"))","v":""},{"$f":"IF('TSA Input'!J58=\"\",\"\",IF(OR('TSA Input'!J58=\"Yes\",'TSA Input'!J58=\"Contingent\"),'TSA Input'!C58,\"\"))","v":""},{"$f":"IF('TSA Input'!J58=\"\",\"\",IF(OR('TSA Input'!J58=\"Yes\",'TSA Input'!J58=\"Contingent\"),'TSA Input'!D58,\"\"))","v":""},{"$f":"IF('TSA Input'!J58=\"\",\"\",IF(OR('TSA Input'!J58=\"Yes\",'TSA Input'!J58=\"Contingent\"),'TSA Input'!G58,\"\"))","v":""},{"$f":"IF('TSA Input'!J58=\"\",\"\",IF(OR('TSA Input'!J58=\"Yes\",'TSA Input'!J58=\"Contingent\"),'TSA Input'!F58,\"\"))","v":""},"",{"$f":"IF('TSA Input'!J58=\"\",\"\",IF(OR('TSA Input'!J58=\"Yes\",'TSA Input'!J58=\"Contingent\"),'TSA Input'!D58,\"\"))","v":""},{"$f":"IF('TSA Input'!J58=\"\",\"\",IF(OR('TSA Input'!J58=\"Yes\",'TSA Input'!J58=\"Contingent\"),'TSA Input'!G58,\"\"))","v":""},{"$f":"IF('TSA Input'!J58=\"\",\"\",IF(OR('TSA Input'!J58=\"Yes\",'TSA Input'!J58=\"Contingent\"),'TSA Input'!F58,\"\"))","v":""},"","Required","Required"]
["",null,{"$f":"IF('TSA Input'!J59=\"\",\"\",IF(OR('TSA Input'!J59=\"Yes\",'TSA Input'!J59=\"Contingent\"),'TSA Input'!B59,\"Ineligible\"))","v":""},{"$f":"IF('TSA Input'!J59=\"\",\"\",IF(OR('TSA Input'!J59=\"Yes\",'TSA Input'!J59=\"Contingent\"),'TSA Input'!I59,\"\"))","v":""},{"$f":"IF('TSA Input'!J59=\"\",\"\",IF(OR('TSA Input'!J59=\"Yes\",'TSA Input'!J59=\"Contingent\"),'TSA Input'!C59,\"\"))","v":""},{"$f":"IF('TSA Input'!J59=\"\",\"\",IF(OR('TSA Input'!J59=\"Yes\",'TSA Input'!J59=\"Contingent\"),'TSA Input'!D59,\"\"))","v":""},{"$f":"IF('TSA Input'!J59=\"\",\"\",IF(OR('TSA Input'!J59=\"Yes\",'TSA Input'!J59=\"Contingent\"),'TSA Input'!G59,\"\"))","v":""},{"$f":"IF('TSA Input'!J59=\"\",\"\",IF(OR('TSA Input'!J59=\"Yes\",'TSA Input'!J59=\"Contingent\"),'TSA Input'!F59,\"\"))","v":""},"",{"$f":"IF('TSA Input'!J59=\"\",\"\",IF(OR('TSA Input'!J59=\"Yes\",'TSA Input'!J59=\"Contingent\"),'TSA Input'!D59,\"\"))","v":""},{"$f":"IF('TSA Input'!J59=\"\",\"\",IF(OR('TSA Input'!J59=\"Yes\",'TSA Input'!J59=\"Contingent\"),'TSA Input'!G59,\"\"))","v":""},{"$f":"IF('TSA Input'!J59=\"\",\"\",IF(OR('TSA Input'!J59=\"Yes\",'TSA Input'!J59=\"Contingent\"),'TSA Input'!F59,\"\"))","v":""},"","Required","Required"]
["",null,{"$f":"IF('TSA Input'!J60=\"\",\"\",IF(OR('TSA Input'!J60=\"Yes\",'TSA Input'!J60=\"Contingent\"),'TSA Input'!B60,\"Ineligible\"))","v":""},{"$f":"IF('TSA Input'!J60=\"\",\"\",IF(OR('TSA Input'!J60=\"Yes\",'TSA Input'!J60=\"Contingent\"),'TSA Input'!I60,\"\"))","v":""},{"$f":"IF('TSA Input'!J60=\"\",\"\",IF(OR('TSA Input'!J60=\"Yes\",'TSA Input'!J60=\"Contingent\"),'TSA Input'!C60,\"\"))","v":""},{"$f":"IF('TSA Input'!J60=\"\",\"\",IF(OR('TSA Input'!J60=\"Yes\",'TSA Input'!J60=\"Contingent\"),'TSA Input'!D60,\"\"))","v":""},{"$f":"IF('TSA Input'!J60=\"\",\"\",IF(OR('TSA Input'!J60=\"Yes\",'TSA Input'!J60=\"Contingent\"),'TSA Input'!G60,\"\"))","v":""},{"$f":"IF('TSA Input'!J60=\"\",\"\",IF(OR('TSA Input'!J60=\"Yes\",'TSA Input'!J60=\"Contingent\"),'TSA Input'!F60,\"\"))","v":""},"",{"$f":"IF('TSA Input'!J60=\"\",\"\",IF(OR('TSA Input'!J60=\"Yes\",'TSA Input'!J60=\"Contingent\"),'TSA Input'!D60,\"\"))","v":""},{"$f":"IF('TSA Input'!J60=\"\",\"\",IF(OR('TSA Input'!J60=\"Yes\",'TSA Input'!J60=\"Contingent\"),'TSA Input'!G60,\"\"))","v":""},{"$f":"IF('TSA Input'!J60=\"\",\"\",IF(OR('TSA Input'!J60=\"Yes\",'TSA Input'!J60=\"Contingent\"),'TSA Input'!F60,\"\"))","v":""},"","Required","Required"]
["",null,{"$f":"IF('TSA Input'!J61=\"\",\"\",IF(OR('TSA Input'!J61=\"Yes\",'TSA Input'!J61=\"Contingent\"),'TSA Input'!B61,\"Ineligible\"))","v":""},{"$f":"IF('TSA Input'!J61=\"\",\"\",IF(OR('TSA Input'!J61=\"Yes\",'TSA Input'!J61=\"Contingent\"),'TSA Input'!I61,\"\"))","v":""},{"$f":"IF('TSA Input'!J61=\"\",\"\",IF(OR('TSA Input'!J61=\"Yes\",'TSA Input'!J61=\"Contingent\"),'TSA Input'!C61,\"\"))","v":""},{"$f":"IF('TSA Input'!J61=\"\",\"\",IF(OR('TSA Input'!J61=\"Yes\",'TSA Input'!J61=\"Contingent\"),'TSA Input'!D61,\"\"))","v":""},{"$f":"IF('TSA Input'!J61=\"\",\"\",IF(OR('TSA Input'!J61=\"Yes\",'TSA Input'!J61=\"Contingent\"),'TSA Input'!G61,\"\"))","v":""},{"$f":"IF('TSA Input'!J61=\"\",\"\",IF(OR('TSA Input'!J61=\"Yes\",'TSA Input'!J61=\"Contingent\"),'TSA Input'!F61,\"\"))","v":""},"",{"$f":"IF('TSA Input'!J61=\"\",\"\",IF(OR('TSA Input'!J61=\"Yes\",'TSA Input'!J61=\"Contingent\"),'TSA Input'!D61,\"\"))","v":""},{"$f":"IF('TSA Input'!J61=\"\",\"\",IF(OR('TSA Input'!J61=\"Yes\",'TSA Input'!J61=\"Contingent\"),'TSA Input'!G61,\"\"))","v":""},{"$f":"IF('TSA Input'!J61=\"\",\"\",IF(OR('TSA Input'!J61=\"Yes\",'TSA Input'!J61=\"Contingent\"),'TSA Input'!F61,\"\"))","v":""},"","Required","Required"]
["",null,{"$f":"IF('TSA Input'!J62=\"\",\"\",IF(OR('TSA Input'!J62=\"Yes\",'TSA Input'!J62=\"Contingent\"),'TSA Input'!B62,\"Ineligible\"))","v":""},{"$f":"IF('TSA Input'!J62=\"\",\"\",IF(OR('TSA Input'!J62=\"Yes\",'TSA Input'!J62=\"Contingent\"),'TSA Input'!I62,\"\"))","v":""},{"$f":"IF('TSA Input'!J62=\"\",\"\",IF(OR('TSA Input'!J62=\"Yes\",'TSA Input'!J62=\"Contingent\"),'TSA Input'!C62,\"\"))","v":""},{"$f":"IF('TSA Input'!J62=\"\",\"\",IF(OR('TSA Input'!J62=\"Yes\",'TSA Input'!J62=\"Contingent\"),'TSA Input'!D62,\"\"))","v":""},{"$f":"IF('TSA Input'!J62=\"\",\"\",IF(OR('TSA Input'!J62=\"Yes\",'TSA Input'!J62=\"Contingent\"),'TSA Input'!G62,\"\"))","v":""},{"$f":"IF('TSA Input'!J62=\"\",\"\",IF(OR('TSA Input'!J62=\"Yes\",'TSA Input'!J62=\"Contingent\"),'TSA Input'!F62,\"\"))","v":""},"",{"$f":"IF('TSA Input'!J62=\"\",\"\",IF(OR('TSA Input'!J62=\"Yes\",'TSA Input'!J62=\"Contingent\"),'TSA Input'!D62,\"\"))","v":""},{"$f":"IF('TSA Input'!J62=\"\",\"\",IF(OR('TSA Input'!J62=\"Yes\",'TSA Input'!J62=\"Contingent\"),'TSA Input'!G62,\"\"))","v":""},{"$f":"IF('TSA Input'!J62=\"\",\"\",IF(OR('TSA Input'!J62=\"Yes\",'TSA Input'!J62=\"Contingent\"),'TSA Input'!F62,\"\"))","v":""},"","Required","Required"]
["",null,{"$f":"IF('TSA Input'!J63=\"\",\"\",IF(OR('TSA Input'!J63=\"Yes\",'TSA Input'!J63=\"Contingent\"),'TSA Input'!B63,\"Ineligible\"))","v":""},{"$f":"IF('TSA Input'!J63=\"\",\"\",IF(OR('TSA Input'!J63=\"Yes\",'TSA Input'!J63=\"Contingent\"),'TSA Input'!I63,\"\"))","v":""},{"$f":"IF('TSA Input'!J63=\"\",\"\",IF(OR('TSA Input'!J63=\"Yes\",'TSA Input'!J63=\"Contingent\"),'TSA Input'!C63,\"\"))","v":""},{"$f":"IF('TSA Input'!J63=\"\",\"\",IF(OR('TSA Input'!J63=\"Yes\",'TSA Input'!J63=\"Contingent\"),'TSA Input'!D63,\"\"))","v":""},{"$f":"IF('TSA Input'!J63=\"\",\"\",IF(OR('TSA Input'!J63=\"Yes\",'TSA Input'!J63=\"Contingent\"),'TSA Input'!G63,\"\"))","v":""},{"$f":"IF('TSA Input'!J63=\"\",\"\",IF(OR('TSA Input'!J63=\"Yes\",'TSA Input'!J63=\"Contingent\"),'TSA Input'!F63,\"\"))","v":""},"",{"$f":"IF('TSA Input'!J63=\"\",\"\",IF(OR('TSA Input'!J63=\"Yes\",'TSA Input'!J63=\"Contingent\"),'TSA Input'!D63,\"\"))","v":""},{"$f":"IF('TSA Input'!J63=\"\",\"\",IF(OR('TSA Input'!J63=\"Yes\",'TSA Input'!J63=\"Contingent\"),'TSA Input'!G63,\"\"))","v":""},{"$f":"IF('TSA Input'!J63=\"\",\"\",IF(OR('TSA Input'!J63=\"Yes\",'TSA Input'!J63=\"Contingent\"),'TSA Input'!F63,\"\"))","v":""},"","Required","Required"]
["",null,{"$f":"IF('TSA Input'!J64=\"\",\"\",IF(OR('TSA Input'!J64=\"Yes\",'TSA Input'!J64=\"Contingent\"),'TSA Input'!B64,\"Ineligible\"))","v":""},{"$f":"IF('TSA Input'!J64=\"\",\"\",IF(OR('TSA Input'!J64=\"Yes\",'TSA Input'!J64=\"Contingent\"),'TSA Input'!I64,\"\"))","v":""},{"$f":"IF('TSA Input'!J64=\"\",\"\",IF(OR('TSA Input'!J64=\"Yes\",'TSA Input'!J64=\"Contingent\"),'TSA Input'!C64,\"\"))","v":""},{"$f":"IF('TSA Input'!J64=\"\",\"\",IF(OR('TSA Input'!J64=\"Yes\",'TSA Input'!J64=\"Contingent\"),'TSA Input'!D64,\"\"))","v":""},{"$f":"IF('TSA Input'!J64=\"\",\"\",IF(OR('TSA Input'!J64=\"Yes\",'TSA Input'!J64=\"Contingent\"),'TSA Input'!G64,\"\"))","v":""},{"$f":"IF('TSA Input'!J64=\"\",\"\",IF(OR('TSA Input'!J64=\"Yes\",'TSA Input'!J64=\"Contingent\"),'TSA Input'!F64,\"\"))","v":""},"",{"$f":"IF('TSA Input'!J64=\"\",\"\",IF(OR('TSA Input'!J64=\"Yes\",'TSA Input'!J64=\"Contingent\"),'TSA Input'!D64,\"\"))","v":""},{"$f":"IF('TSA Input'!J64=\"\",\"\",IF(OR('TSA Input'!J64=\"Yes\",'TSA Input'!J64=\"Contingent\"),'TSA Input'!G64,\"\"))","v":""},{"$f":"IF('TSA Input'!J64=\"\",\"\",IF(OR('TSA Input'!J64=\"Yes\",'TSA Input'!J64=\"Contingent\"),'TSA Input'!F64,\"\"))","v":""},"","Required","Required"]
["",null,{"$f":"IF('TSA Input'!J65=\"\",\"\",IF(OR('TSA Input'!J65=\"Yes\",'TSA Input'!J65=\"Contingent\"),'TSA Input'!B65,\"Ineligible\"))","v":""},{"$f":"IF('TSA Input'!J65=\"\",\"\",IF(OR('TSA Input'!J65=\"Yes\",'TSA Input'!J65=\"Contingent\"),'TSA Input'!I65,\"\"))","v":""},{"$f":"IF('TSA Input'!J65=\"\",\"\",IF(OR('TSA Input'!J65=\"Yes\",'TSA Input'!J65=\"Contingent\"),'TSA Input'!C65,\"\"))","v":""},{"$f":"IF('TSA Input'!J65=\"\",\"\",IF(OR('TSA Input'!J65=\"Yes\",'TSA Input'!J65=\"Contingent\"),'TSA Input'!D65,\"\"))","v":""},{"$f":"IF('TSA Input'!J65=\"\",\"\",IF(OR('TSA Input'!J65=\"Yes\",'TSA Input'!J65=\"Contingent\"),'TSA Input'!G65,\"\"))","v":""},{"$f":"IF('TSA Input'!J65=\"\",\"\",IF(OR('TSA Input'!J65=\"Yes\",'TSA Input'!J65=\"Contingent\"),'TSA Input'!F65,\"\"))","v":""},"",{"$f":"IF('TSA Input'!J65=\"\",\"\",IF(OR('TSA Input'!J65=\"Yes\",'TSA Input'!J65=\"Contingent\"),'TSA Input'!D65,\"\"))","v":""},{"$f":"IF('TSA Input'!J65=\"\",\"\",IF(OR('TSA Input'!J65=\"Yes\",'TSA Input'!J65=\"Contingent\"),'TSA Input'!G65,\"\"))","v":""},{"$f":"IF('TSA Input'!J65=\"\",\"\",IF(OR('TSA Input'!J65=\"Yes\",'TSA Input'!J65=\"Contingent\"),'TSA Input'!F65,\"\"))","v":""},"","Required","Required"]
["",null,{"$f":"IF('TSA Input'!J66=\"\",\"\",IF(OR('TSA Input'!J66=\"Yes\",'TSA Input'!J66=\"Contingent\"),'TSA Input'!B66,\"Ineligible\"))","v":""},{"$f":"IF('TSA Input'!J66=\"\",\"\",IF(OR('TSA Input'!J66=\"Yes\",'TSA Input'!J66=\"Contingent\"),'TSA Input'!I66,\"\"))","v":""},{"$f":"IF('TSA Input'!J66=\"\",\"\",IF(OR('TSA Input'!J66=\"Yes\",'TSA Input'!J66=\"Contingent\"),'TSA Input'!C66,\"\"))","v":""},{"$f":"IF('TSA Input'!J66=\"\",\"\",IF(OR('TSA Input'!J66=\"Yes\",'TSA Input'!J66=\"Contingent\"),'TSA Input'!D66,\"\"))","v":""},{"$f":"IF('TSA Input'!J66=\"\",\"\",IF(OR('TSA Input'!J66=\"Yes\",'TSA Input'!J66=\"Contingent\"),'TSA Input'!G66,\"\"))","v":""},{"$f":"IF('TSA Input'!J66=\"\",\"\",IF(OR('TSA Input'!J66=\"Yes\",'TSA Input'!J66=\"Contingent\"),'TSA Input'!F66,\"\"))","v":""},"",{"$f":"IF('TSA Input'!J66=\"\",\"\",IF(OR('TSA Input'!J66=\"Yes\",'TSA Input'!J66=\"Contingent\"),'TSA Input'!D66,\"\"))","v":""},{"$f":"IF('TSA Input'!J66=\"\",\"\",IF(OR('TSA Input'!J66=\"Yes\",'TSA Input'!J66=\"Contingent\"),'TSA Input'!G66,\"\"))","v":""},{"$f":"IF('TSA Input'!J66=\"\",\"\",IF(OR('TSA Input'!J66=\"Yes\",'TSA Input'!J66=\"Contingent\"),'TSA Input'!F66,\"\"))","v":""},"","Required","Required"]
["",null,{"$f":"IF('TSA Input'!J67=\"\",\"\",IF(OR('TSA Input'!J67=\"Yes\",'TSA Input'!J67=\"Contingent\"),'TSA Input'!B67,\"Ineligible\"))","v":""},{"$f":"IF('TSA Input'!J67=\"\",\"\",IF(OR('TSA Input'!J67=\"Yes\",'TSA Input'!J67=\"Contingent\"),'TSA Input'!I67,\"\"))","v":""},{"$f":"IF('TSA Input'!J67=\"\",\"\",IF(OR('TSA Input'!J67=\"Yes\",'TSA Input'!J67=\"Contingent\"),'TSA Input'!C67,\"\"))","v":""},{"$f":"IF('TSA Input'!J67=\"\",\"\",IF(OR('TSA Input'!J67=\"Yes\",'TSA Input'!J67=\"Contingent\"),'TSA Input'!D67,\"\"))","v":""},{"$f":"IF('TSA Input'!J67=\"\",\"\",IF(OR('TSA Input'!J67=\"Yes\",'TSA Input'!J67=\"Contingent\"),'TSA Input'!G67,\"\"))","v":""},{"$f":"IF('TSA Input'!J67=\"\",\"\",IF(OR('TSA Input'!J67=\"Yes\",'TSA Input'!J67=\"Contingent\"),'TSA Input'!F67,\"\"))","v":""},"",{"$f":"IF('TSA Input'!J67=\"\",\"\",IF(OR('TSA Input'!J67=\"Yes\",'TSA Input'!J67=\"Contingent\"),'TSA Input'!D67,\"\"))","v":""},{"$f":"IF('TSA Input'!J67=\"\",\"\",IF(OR('TSA Input'!J67=\"Yes\",'TSA Input'!J67=\"Contingent\"),'TSA Input'!G67,\"\"))","v":""},{"$f":"IF('TSA Input'!J67=\"\",\"\",IF(OR('TSA Input'!J67=\"Yes\",'TSA Input'!J67=\"Contingent\"),'TSA Input'!F67,\"\"))","v":""},"","Required","Required"]
["",null,{"$f":"IF('TSA Input'!J68=\"\",\"\",IF(OR('TSA Input'!J68=\"Yes\",'TSA Input'!J68=\"Contingent\"),'TSA Input'!B68,\"Ineligible\"))","v":""},{"$f":"IF('TSA Input'!J68=\"\",\"\",IF(OR('TSA Input'!J68=\"Yes\",'TSA Input'!J68=\"Contingent\"),'TSA Input'!I68,\"\"))","v":""},{"$f":"IF('TSA Input'!J68=\"\",\"\",IF(OR('TSA Input'!J68=\"Yes\",'TSA Input'!J68=\"Contingent\"),'TSA Input'!C68,\"\"))","v":""},{"$f":"IF('TSA Input'!J68=\"\",\"\",IF(OR('TSA Input'!J68=\"Yes\",'TSA Input'!J68=\"Contingent\"),'TSA Input'!D68,\"\"))","v":""},{"$f":"IF('TSA Input'!J68=\"\",\"\",IF(OR('TSA Input'!J68=\"Yes\",'TSA Input'!J68=\"Contingent\"),'TSA Input'!G68,\"\"))","v":""},{"$f":"IF('TSA Input'!J68=\"\",\"\",IF(OR('TSA Input'!J68=\"Yes\",'TSA Input'!J68=\"Contingent\"),'TSA Input'!F68,\"\"))","v":""},{"$f":"IF($C106=\"\",\"\",SUM(F106:H106))","v":""},{"$f":"IF('TSA Input'!J68=\"\",\"\",IF(OR('TSA Input'!J68=\"Yes\",'TSA Input'!J68=\"Contingent\"),'TSA Input'!D68,\"\"))","v":""},{"$f":"IF('TSA Input'!J68=\"\",\"\",IF(OR('TSA Input'!J68=\"Yes\",'TSA Input'!J68=\"Contingent\"),'TSA Input'!G68,\"\"))","v":""},{"$f":"IF('TSA Input'!J68=\"\",\"\",IF(OR('TSA Input'!J68=\"Yes\",'TSA Input'!J68=\"Contingent\"),'TSA Input'!F68,\"\"))","v":""},{"$f":"IF($C106=\"\",\"\",SUM(J106:L106))","v":""},"Required","Required"]
["",null,{"$f":"IF('TSA Input'!J69=\"\",\"\",IF(OR('TSA Input'!J69=\"Yes\",'TSA Input'!J69=\"Contingent\"),'TSA Input'!B69,\"Ineligible\"))","v":""},{"$f":"IF('TSA Input'!J69=\"\",\"\",IF(OR('TSA Input'!J69=\"Yes\",'TSA Input'!J69=\"Contingent\"),'TSA Input'!I69,\"\"))","v":""},{"$f":"IF('TSA Input'!J69=\"\",\"\",IF(OR('TSA Input'!J69=\"Yes\",'TSA Input'!J69=\"Contingent\"),'TSA Input'!C69,\"\"))","v":""},{"$f":"IF('TSA Input'!J69=\"\",\"\",IF(OR('TSA Input'!J69=\"Yes\",'TSA Input'!J69=\"Contingent\"),'TSA Input'!D69,\"\"))","v":""},{"$f":"IF('TSA Input'!J69=\"\",\"\",IF(OR('TSA Input'!J69=\"Yes\",'TSA Input'!J69=\"Contingent\"),'TSA Input'!G69,\"\"))","v":""},{"$f":"IF('TSA Input'!J69=\"\",\"\",IF(OR('TSA Input'!J69=\"Yes\",'TSA Input'!J69=\"Contingent\"),'TSA Input'!F69,\"\"))","v":""},"",{"$f":"IF('TSA Input'!J69=\"\",\"\",IF(OR('TSA Input'!J69=\"Yes\",'TSA Input'!J69=\"Contingent\"),'TSA Input'!D69,\"\"))","v":""},{"$f":"IF('TSA Input'!J69=\"\",\"\",IF(OR('TSA Input'!J69=\"Yes\",'TSA Input'!J69=\"Contingent\"),'TSA Input'!G69,\"\"))","v":""},{"$f":"IF('TSA Input'!J69=\"\",\"\",IF(OR('TSA Input'!J69=\"Yes\",'TSA Input'!J69=\"Contingent\"),'TSA Input'!F69,\"\"))","v":""},"","Required","Required"]
["",null,{"$f":"IF('TSA Input'!J70=\"\",\"\",IF(OR('TSA Input'!J70=\"Yes\",'TSA Input'!J70=\"Contingent\"),'TSA Input'!B70,\"Ineligible\"))","v":""},{"$f":"IF('TSA Input'!J70=\"\",\"\",IF(OR('TSA Input'!J70=\"Yes\",'TSA Input'!J70=\"Contingent\"),'TSA Input'!I70,\"\"))","v":""},{"$f":"IF('TSA Input'!J70=\"\",\"\",IF(OR('TSA Input'!J70=\"Yes\",'TSA Input'!J70=\"Contingent\"),'TSA Input'!C70,\"\"))","v":""},{"$f":"IF('TSA Input'!J70=\"\",\"\",IF(OR('TSA Input'!J70=\"Yes\",'TSA Input'!J70=\"Contingent\"),'TSA Input'!D70,\"\"))","v":""},{"$f":"IF('TSA Input'!J70=\"\",\"\",IF(OR('TSA Input'!J70=\"Yes\",'TSA Input'!J70=\"Contingent\"),'TSA Input'!G70,\"\"))","v":""},{"$f":"IF('TSA Input'!J70=\"\",\"\",IF(OR('TSA Input'!J70=\"Yes\",'TSA Input'!J70=\"Contingent\"),'TSA Input'!F70,\"\"))","v":""},"",{"$f":"IF('TSA Input'!J70=\"\",\"\",IF(OR('TSA Input'!J70=\"Yes\",'TSA Input'!J70=\"Contingent\"),'TSA Input'!D70,\"\"))","v":""},{"$f":"IF('TSA Input'!J70=\"\",\"\",IF(OR('TSA Input'!J70=\"Yes\",'TSA Input'!J70=\"Contingent\"),'TSA Input'!G70,\"\"))","v":""},{"$f":"IF('TSA Input'!J70=\"\",\"\",IF(OR('TSA Input'!J70=\"Yes\",'TSA Input'!J70=\"Contingent\"),'TSA Input'!F70,\"\"))","v":""},"","Required","Required"]
["",null,{"$f":"IF('TSA Input'!J71=\"\",\"\",IF(OR('TSA Input'!J71=\"Yes\",'TSA Input'!J71=\"Contingent\"),'TSA Input'!B71,\"Ineligible\"))","v":""},{"$f":"IF('TSA Input'!J71=\"\",\"\",IF(OR('TSA Input'!J71=\"Yes\",'TSA Input'!J71=\"Contingent\"),'TSA Input'!I71,\"\"))","v":""},{"$f":"IF('TSA Input'!J71=\"\",\"\",IF(OR('TSA Input'!J71=\"Yes\",'TSA Input'!J71=\"Contingent\"),'TSA Input'!C71,\"\"))","v":""},{"$f":"IF('TSA Input'!J71=\"\",\"\",IF(OR('TSA Input'!J71=\"Yes\",'TSA Input'!J71=\"Contingent\"),'TSA Input'!D71,\"\"))","v":""},{"$f":"IF('TSA Input'!J71=\"\",\"\",IF(OR('TSA Input'!J71=\"Yes\",'TSA Input'!J71=\"Contingent\"),'TSA Input'!G71,\"\"))","v":""},{"$f":"IF('TSA Input'!J71=\"\",\"\",IF(OR('TSA Input'!J71=\"Yes\",'TSA Input'!J71=\"Contingent\"),'TSA Input'!F71,\"\"))","v":""},"",{"$f":"IF('TSA Input'!J71=\"\",\"\",IF(OR('TSA Input'!J71=\"Yes\",'TSA Input'!J71=\"Contingent\"),'TSA Input'!D71,\"\"))","v":""},{"$f":"IF('TSA Input'!J71=\"\",\"\",IF(OR('TSA Input'!J71=\"Yes\",'TSA Input'!J71=\"Contingent\"),'TSA Input'!G71,\"\"))","v":""},{"$f":"IF('TSA Input'!J71=\"\",\"\",IF(OR('TSA Input'!J71=\"Yes\",'TSA Input'!J71=\"Contingent\"),'TSA Input'!F71,\"\"))","v":""},"","Required","Required"]
["",null,{"$f":"IF('TSA Input'!J72=\"\",\"\",IF(OR('TSA Input'!J72=\"Yes\",'TSA Input'!J72=\"Contingent\"),'TSA Input'!B72,\"Ineligible\"))","v":""},{"$f":"IF('TSA Input'!J72=\"\",\"\",IF(OR('TSA Input'!J72=\"Yes\",'TSA Input'!J72=\"Contingent\"),'TSA Input'!I72,\"\"))","v":""},{"$f":"IF('TSA Input'!J72=\"\",\"\",IF(OR('TSA Input'!J72=\"Yes\",'TSA Input'!J72=\"Contingent\"),'TSA Input'!C72,\"\"))","v":""},{"$f":"IF('TSA Input'!J72=\"\",\"\",IF(OR('TSA Input'!J72=\"Yes\",'TSA Input'!J72=\"Contingent\"),'TSA Input'!D72,\"\"))","v":""},{"$f":"IF('TSA Input'!J72=\"\",\"\",IF(OR('TSA Input'!J72=\"Yes\",'TSA Input'!J72=\"Contingent\"),'TSA Input'!G72,\"\"))","v":""},{"$f":"IF('TSA Input'!J72=\"\",\"\",IF(OR('TSA Input'!J72=\"Yes\",'TSA Input'!J72=\"Contingent\"),'TSA Input'!F72,\"\"))","v":""},"",{"$f":"IF('TSA Input'!J72=\"\",\"\",IF(OR('TSA Input'!J72=\"Yes\",'TSA Input'!J72=\"Contingent\"),'TSA Input'!D72,\"\"))","v":""},{"$f":"IF('TSA Input'!J72=\"\",\"\",IF(OR('TSA Input'!J72=\"Yes\",'TSA Input'!J72=\"Contingent\"),'TSA Input'!G72,\"\"))","v":""},{"$f":"IF('TSA Input'!J72=\"\",\"\",IF(OR('TSA Input'!J72=\"Yes\",'TSA Input'!J72=\"Contingent\"),'TSA Input'!F72,\"\"))","v":""},"","Required","Required"]
["",null,{"$f":"IF('TSA Input'!J73=\"\",\"\",IF(OR('TSA Input'!J73=\"Yes\",'TSA Input'!J73=\"Contingent\"),'TSA Input'!B73,\"Ineligible\"))","v":""},{"$f":"IF('TSA Input'!J73=\"\",\"\",IF(OR('TSA Input'!J73=\"Yes\",'TSA Input'!J73=\"Contingent\"),'TSA Input'!I73,\"\"))","v":""},{"$f":"IF('TSA Input'!J73=\"\",\"\",IF(OR('TSA Input'!J73=\"Yes\",'TSA Input'!J73=\"Contingent\"),'TSA Input'!C73,\"\"))","v":""},{"$f":"IF('TSA Input'!J73=\"\",\"\",IF(OR('TSA Input'!J73=\"Yes\",'TSA Input'!J73=\"Contingent\"),'TSA Input'!D73,\"\"))","v":""},{"$f":"IF('TSA Input'!J73=\"\",\"\",IF(OR('TSA Input'!J73=\"Yes\",'TSA Input'!J73=\"Contingent\"),'TSA Input'!G73,\"\"))","v":""},{"$f":"IF('TSA Input'!J73=\"\",\"\",IF(OR('TSA Input'!J73=\"Yes\",'TSA Input'!J73=\"Contingent\"),'TSA Input'!F73,\"\"))","v":""},"",{"$f":"IF('TSA Input'!J73=\"\",\"\",IF(OR('TSA Input'!J73=\"Yes\",'TSA Input'!J73=\"Contingent\"),'TSA Input'!D73,\"\"))","v":""},{"$f":"IF('TSA Input'!J73=\"\",\"\",IF(OR('TSA Input'!J73=\"Yes\",'TSA Input'!J73=\"Contingent\"),'TSA Input'!G73,\"\"))","v":""},{"$f":"IF('TSA Input'!J73=\"\",\"\",IF(OR('TSA Input'!J73=\"Yes\",'TSA Input'!J73=\"Contingent\"),'TSA Input'!F73,\"\"))","v":""},"","Required","Required"]
["",null,{"$f":"IF('TSA Input'!J74=\"\",\"\",IF(OR('TSA Input'!J74=\"Yes\",'TSA Input'!J74=\"Contingent\"),'TSA Input'!B74,\"Ineligible\"))","v":""},{"$f":"IF('TSA Input'!J74=\"\",\"\",IF(OR('TSA Input'!J74=\"Yes\",'TSA Input'!J74=\"Contingent\"),'TSA Input'!I74,\"\"))","v":""},{"$f":"IF('TSA Input'!J74=\"\",\"\",IF(OR('TSA Input'!J74=\"Yes\",'TSA Input'!J74=\"Contingent\"),'TSA Input'!C74,\"\"))","v":""},{"$f":"IF('TSA Input'!J74=\"\",\"\",IF(OR('TSA Input'!J74=\"Yes\",'TSA Input'!J74=\"Contingent\"),'TSA Input'!D74,\"\"))","v":""},{"$f":"IF('TSA Input'!J74=\"\",\"\",IF(OR('TSA Input'!J74=\"Yes\",'TSA Input'!J74=\"Contingent\"),'TSA Input'!G74,\"\"))","v":""},{"$f":"IF('TSA Input'!J74=\"\",\"\",IF(OR('TSA Input'!J74=\"Yes\",'TSA Input'!J74=\"Contingent\"),'TSA Input'!F74,\"\"))","v":""},"",{"$f":"IF('TSA Input'!J74=\"\",\"\",IF(OR('TSA Input'!J74=\"Yes\",'TSA Input'!J74=\"Contingent\"),'TSA Input'!D74,\"\"))","v":""},{"$f":"IF('TSA Input'!J74=\"\",\"\",IF(OR('TSA Input'!J74=\"Yes\",'TSA Input'!J74=\"Contingent\"),'TSA Input'!G74,\"\"))","v":""},{"$f":"IF('TSA Input'!J74=\"\",\"\",IF(OR('TSA Input'!J74=\"Yes\",'TSA Input'!J74=\"Contingent\"),'TSA Input'!F74,\"\"))","v":""},"","Required","Required"]
["",null,{"$f":"IF('TSA Input'!J75=\"\",\"\",IF(OR('TSA Input'!J75=\"Yes\",'TSA Input'!J75=\"Contingent\"),'TSA Input'!B75,\"Ineligible\"))","v":""},{"$f":"IF('TSA Input'!J75=\"\",\"\",IF(OR('TSA Input'!J75=\"Yes\",'TSA Input'!J75=\"Contingent\"),'TSA Input'!I75,\"\"))","v":""},{"$f":"IF('TSA Input'!J75=\"\",\"\",IF(OR('TSA Input'!J75=\"Yes\",'TSA Input'!J75=\"Contingent\"),'TSA Input'!C75,\"\"))","v":""},{"$f":"IF('TSA Input'!J75=\"\",\"\",IF(OR('TSA Input'!J75=\"Yes\",'TSA Input'!J75=\"Contingent\"),'TSA Input'!D75,\"\"))","v":""},{"$f":"IF('TSA Input'!J75=\"\",\"\",IF(OR('TSA Input'!J75=\"Yes\",'TSA Input'!J75=\"Contingent\"),'TSA Input'!G75,\"\"))","v":""},{"$f":"IF('TSA Input'!J75=\"\",\"\",IF(OR('TSA Input'!J75=\"Yes\",'TSA Input'!J75=\"Contingent\"),'TSA Input'!F75,\"\"))","v":""},"",{"$f":"IF('TSA Input'!J75=\"\",\"\",IF(OR('TSA Input'!J75=\"Yes\",'TSA Input'!J75=\"Contingent\"),'TSA Input'!D75,\"\"))","v":""},{"$f":"IF('TSA Input'!J75=\"\",\"\",IF(OR('TSA Input'!J75=\"Yes\",'TSA Input'!J75=\"Contingent\"),'TSA Input'!G75,\"\"))","v":""},{"$f":"IF('TSA Input'!J75=\"\",\"\",IF(OR('TSA Input'!J75=\"Yes\",'TSA Input'!J75=\"Contingent\"),'TSA Input'!F75,\"\"))","v":""},"","Required","Required"]
["",null,{"$f":"IF('TSA Input'!J76=\"\",\"\",IF(OR('TSA Input'!J76=\"Yes\",'TSA Input'!J76=\"Contingent\"),'TSA Input'!B76,\"Ineligible\"))","v":""},{"$f":"IF('TSA Input'!J76=\"\",\"\",IF(OR('TSA Input'!J76=\"Yes\",'TSA Input'!J76=\"Contingent\"),'TSA Input'!I76,\"\"))","v":""},{"$f":"IF('TSA Input'!J76=\"\",\"\",IF(OR('TSA Input'!J76=\"Yes\",'TSA Input'!J76=\"Contingent\"),'TSA Input'!C76,\"\"))","v":""},{"$f":"IF('TSA Input'!J76=\"\",\"\",IF(OR('TSA Input'!J76=\"Yes\",'TSA Input'!J76=\"Contingent\"),'TSA Input'!D76,\"\"))","v":""},{"$f":"IF('TSA Input'!J76=\"\",\"\",IF(OR('TSA Input'!J76=\"Yes\",'TSA Input'!J76=\"Contingent\"),'TSA Input'!G76,\"\"))","v":""},{"$f":"IF('TSA Input'!J76=\"\",\"\",IF(OR('TSA Input'!J76=\"Yes\",'TSA Input'!J76=\"Contingent\"),'TSA Input'!F76,\"\"))","v":""},"",{"$f":"IF('TSA Input'!J76=\"\",\"\",IF(OR('TSA Input'!J76=\"Yes\",'TSA Input'!J76=\"Contingent\"),'TSA Input'!D76,\"\"))","v":""},{"$f":"IF('TSA Input'!J76=\"\",\"\",IF(OR('TSA Input'!J76=\"Yes\",'TSA Input'!J76=\"Contingent\"),'TSA Input'!G76,\"\"))","v":""},{"$f":"IF('TSA Input'!J76=\"\",\"\",IF(OR('TSA Input'!J76=\"Yes\",'TSA Input'!J76=\"Contingent\"),'TSA Input'!F76,\"\"))","v":""},"","Required","Required"]
["",null,{"$f":"IF('TSA Input'!J77=\"\",\"\",IF(OR('TSA Input'!J77=\"Yes\",'TSA Input'!J77=\"Contingent\"),'TSA Input'!B77,\"Ineligible\"))","v":""},{"$f":"IF('TSA Input'!J77=\"\",\"\",IF(OR('TSA Input'!J77=\"Yes\",'TSA Input'!J77=\"Contingent\"),'TSA Input'!I77,\"\"))","v":""},{"$f":"IF('TSA Input'!J77=\"\",\"\",IF(OR('TSA Input'!J77=\"Yes\",'TSA Input'!J77=\"Contingent\"),'TSA Input'!C77,\"\"))","v":""},{"$f":"IF('TSA Input'!J77=\"\",\"\",IF(OR('TSA Input'!J77=\"Yes\",'TSA Input'!J77=\"Contingent\"),'TSA Input'!D77,\"\"))","v":""},{"$f":"IF('TSA Input'!J77=\"\",\"\",IF(OR('TSA Input'!J77=\"Yes\",'TSA Input'!J77=\"Contingent\"),'TSA Input'!G77,\"\"))","v":""},{"$f":"IF('TSA Input'!J77=\"\",\"\",IF(OR('TSA Input'!J77=\"Yes\",'TSA Input'!J77=\"Contingent\"),'TSA Input'!F77,\"\"))","v":""},"",{"$f":"IF('TSA Input'!J77=\"\",\"\",IF(OR('TSA Input'!J77=\"Yes\",'TSA Input'!J77=\"Contingent\"),'TSA Input'!D77,\"\"))","v":""},{"$f":"IF('TSA Input'!J77=\"\",\"\",IF(OR('TSA Input'!J77=\"Yes\",'TSA Input'!J77=\"Contingent\"),'TSA Input'!G77,\"\"))","v":""},{"$f":"IF('TSA Input'!J77=\"\",\"\",IF(OR('TSA Input'!J77=\"Yes\",'TSA Input'!J77=\"Contingent\"),'TSA Input'!F77,\"\"))","v":""},"","Required","Required"]
["",null,{"$f":"IF('TSA Input'!J78=\"\",\"\",IF(OR('TSA Input'!J78=\"Yes\",'TSA Input'!J78=\"Contingent\"),'TSA Input'!B78,\"Ineligible\"))","v":""},{"$f":"IF('TSA Input'!J78=\"\",\"\",IF(OR('TSA Input'!J78=\"Yes\",'TSA Input'!J78=\"Contingent\"),'TSA Input'!I78,\"\"))","v":""},{"$f":"IF('TSA Input'!J78=\"\",\"\",IF(OR('TSA Input'!J78=\"Yes\",'TSA Input'!J78=\"Contingent\"),'TSA Input'!C78,\"\"))","v":""},{"$f":"IF('TSA Input'!J78=\"\",\"\",IF(OR('TSA Input'!J78=\"Yes\",'TSA Input'!J78=\"Contingent\"),'TSA Input'!D78,\"\"))","v":""},{"$f":"IF('TSA Input'!J78=\"\",\"\",IF(OR('TSA Input'!J78=\"Yes\",'TSA Input'!J78=\"Contingent\"),'TSA Input'!G78,\"\"))","v":""},{"$f":"IF('TSA Input'!J78=\"\",\"\",IF(OR('TSA Input'!J78=\"Yes\",'TSA Input'!J78=\"Contingent\"),'TSA Input'!F78,\"\"))","v":""},"",{"$f":"IF('TSA Input'!J78=\"\",\"\",IF(OR('TSA Input'!J78=\"Yes\",'TSA Input'!J78=\"Contingent\"),'TSA Input'!D78,\"\"))","v":""},{"$f":"IF('TSA Input'!J78=\"\",\"\",IF(OR('TSA Input'!J78=\"Yes\",'TSA Input'!J78=\"Contingent\"),'TSA Input'!G78,\"\"))","v":""},{"$f":"IF('TSA Input'!J78=\"\",\"\",IF(OR('TSA Input'!J78=\"Yes\",'TSA Input'!J78=\"Contingent\"),'TSA Input'!F78,\"\"))","v":""},"","Required","Required"]
["",null,{"$f":"IF('TSA Input'!J79=\"\",\"\",IF(OR('TSA Input'!J79=\"Yes\",'TSA Input'!J79=\"Contingent\"),'TSA Input'!B79,\"Ineligible\"))","v":""},{"$f":"IF('TSA Input'!J79=\"\",\"\",IF(OR('TSA Input'!J79=\"Yes\",'TSA Input'!J79=\"Contingent\"),'TSA Input'!I79,\"\"))","v":""},{"$f":"IF('TSA Input'!J79=\"\",\"\",IF(OR('TSA Input'!J79=\"Yes\",'TSA Input'!J79=\"Contingent\"),'TSA Input'!C79,\"\"))","v":""},{"$f":"IF('TSA Input'!J79=\"\",\"\",IF(OR('TSA Input'!J79=\"Yes\",'TSA Input'!J79=\"Contingent\"),'TSA Input'!D79,\"\"))","v":""},{"$f":"IF('TSA Input'!J79=\"\",\"\",IF(OR('TSA Input'!J79=\"Yes\",'TSA Input'!J79=\"Contingent\"),'TSA Input'!G79,\"\"))","v":""},{"$f":"IF('TSA Input'!J79=\"\",\"\",IF(OR('TSA Input'!J79=\"Yes\",'TSA Input'!J79=\"Contingent\"),'TSA Input'!F79,\"\"))","v":""},"",{"$f":"IF('TSA Input'!J79=\"\",\"\",IF(OR('TSA Input'!J79=\"Yes\",'TSA Input'!J79=\"Contingent\"),'TSA Input'!D79,\"\"))","v":""},{"$f":"IF('TSA Input'!J79=\"\",\"\",IF(OR('TSA Input'!J79=\"Yes\",'TSA Input'!J79=\"Contingent\"),'TSA Input'!G79,\"\"))","v":""},{"$f":"IF('TSA Input'!J79=\"\",\"\",IF(OR('TSA Input'!J79=\"Yes\",'TSA Input'!J79=\"Contingent\"),'TSA Input'!F79,\"\"))","v":""},"","Required","Required"]
["",null,{"$f":"IF('TSA Input'!J80=\"\",\"\",IF(OR('TSA Input'!J80=\"Yes\",'TSA Input'!J80=\"Contingent\"),'TSA Input'!B80,\"Ineligible\"))","v":""},{"$f":"IF('TSA Input'!J80=\"\",\"\",IF(OR('TSA Input'!J80=\"Yes\",'TSA Input'!J80=\"Contingent\"),'TSA Input'!I80,\"\"))","v":""},{"$f":"IF('TSA Input'!J80=\"\",\"\",IF(OR('TSA Input'!J80=\"Yes\",'TSA Input'!J80=\"Contingent\"),'TSA Input'!C80,\"\"))","v":""},{"$f":"IF('TSA Input'!J80=\"\",\"\",IF(OR('TSA Input'!J80=\"Yes\",'TSA Input'!J80=\"Contingent\"),'TSA Input'!D80,\"\"))","v":""},{"$f":"IF('TSA Input'!J80=\"\",\"\",IF(OR('TSA Input'!J80=\"Yes\",'TSA Input'!J80=\"Contingent\"),'TSA Input'!G80,\"\"))","v":""},{"$f":"IF('TSA Input'!J80=\"\",\"\",IF(OR('TSA Input'!J80=\"Yes\",'TSA Input'!J80=\"Contingent\"),'TSA Input'!F80,\"\"))","v":""},"",{"$f":"IF('TSA Input'!J80=\"\",\"\",IF(OR('TSA Input'!J80=\"Yes\",'TSA Input'!J80=\"Contingent\"),'TSA Input'!D80,\"\"))","v":""},{"$f":"IF('TSA Input'!J80=\"\",\"\",IF(OR('TSA Input'!J80=\"Yes\",'TSA Input'!J80=\"Contingent\"),'TSA Input'!G80,\"\"))","v":""},{"$f":"IF('TSA Input'!J80=\"\",\"\",IF(OR('TSA Input'!J80=\"Yes\",'TSA Input'!J80=\"Contingent\"),'TSA Input'!F80,\"\"))","v":""},"","Required","Required"]
["",null,{"$f":"IF('TSA Input'!J81=\"\",\"\",IF(OR('TSA Input'!J81=\"Yes\",'TSA Input'!J81=\"Contingent\"),'TSA Input'!B81,\"Ineligible\"))","v":""},{"$f":"IF('TSA Input'!J81=\"\",\"\",IF(OR('TSA Input'!J81=\"Yes\",'TSA Input'!J81=\"Contingent\"),'TSA Input'!I81,\"\"))","v":""},{"$f":"IF('TSA Input'!J81=\"\",\"\",IF(OR('TSA Input'!J81=\"Yes\",'TSA Input'!J81=\"Contingent\"),'TSA Input'!C81,\"\"))","v":""},{"$f":"IF('TSA Input'!J81=\"\",\"\",IF(OR('TSA Input'!J81=\"Yes\",'TSA Input'!J81=\"Contingent\"),'TSA Input'!D81,\"\"))","v":""},{"$f":"IF('TSA Input'!J81=\"\",\"\",IF(OR('TSA Input'!J81=\"Yes\",'TSA Input'!J81=\"Contingent\"),'TSA Input'!G81,\"\"))","v":""},{"$f":"IF('TSA Input'!J81=\"\",\"\",IF(OR('TSA Input'!J81=\"Yes\",'TSA Input'!J81=\"Contingent\"),'TSA Input'!F81,\"\"))","v":""},"",{"$f":"IF('TSA Input'!J81=\"\",\"\",IF(OR('TSA Input'!J81=\"Yes\",'TSA Input'!J81=\"Contingent\"),'TSA Input'!D81,\"\"))","v":""},{"$f":"IF('TSA Input'!J81=\"\",\"\",IF(OR('TSA Input'!J81=\"Yes\",'TSA Input'!J81=\"Contingent\"),'TSA Input'!G81,\"\"))","v":""},{"$f":"IF('TSA Input'!J81=\"\",\"\",IF(OR('TSA Input'!J81=\"Yes\",'TSA Input'!J81=\"Contingent\"),'TSA Input'!F81,\"\"))","v":""},"","Required","Required"]
["",null,{"$f":"IF('TSA Input'!J82=\"\",\"\",IF(OR('TSA Input'!J82=\"Yes\",'TSA Input'!J82=\"Contingent\"),'TSA Input'!B82,\"Ineligible\"))","v":""},{"$f":"IF('TSA Input'!J82=\"\",\"\",IF(OR('TSA Input'!J82=\"Yes\",'TSA Input'!J82=\"Contingent\"),'TSA Input'!I82,\"\"))","v":""},{"$f":"IF('TSA Input'!J82=\"\",\"\",IF(OR('TSA Input'!J82=\"Yes\",'TSA Input'!J82=\"Contingent\"),'TSA Input'!C82,\"\"))","v":""},{"$f":"IF('TSA Input'!J82=\"\",\"\",IF(OR('TSA Input'!J82=\"Yes\",'TSA Input'!J82=\"Contingent\"),'TSA Input'!D82,\"\"))","v":""},{"$f":"IF('TSA Input'!J82=\"\",\"\",IF(OR('TSA Input'!J82=\"Yes\",'TSA Input'!J82=\"Contingent\"),'TSA Input'!G82,\"\"))","v":""},{"$f":"IF('TSA Input'!J82=\"\",\"\",IF(OR('TSA Input'!J82=\"Yes\",'TSA Input'!J82=\"Contingent\"),'TSA Input'!F82,\"\"))","v":""},"",{"$f":"IF('TSA Input'!J82=\"\",\"\",IF(OR('TSA Input'!J82=\"Yes\",'TSA Input'!J82=\"Contingent\"),'TSA Input'!D82,\"\"))","v":""},{"$f":"IF('TSA Input'!J82=\"\",\"\",IF(OR('TSA Input'!J82=\"Yes\",'TSA Input'!J82=\"Contingent\"),'TSA Input'!G82,\"\"))","v":""},{"$f":"IF('TSA Input'!J82=\"\",\"\",IF(OR('TSA Input'!J82=\"Yes\",'TSA Input'!J82=\"Contingent\"),'TSA Input'!F82,\"\"))","v":""},"","Required","Required"]
["",null,{"$f":"IF('TSA Input'!J83=\"\",\"\",IF(OR('TSA Input'!J83=\"Yes\",'TSA Input'!J83=\"Contingent\"),'TSA Input'!B83,\"Ineligible\"))","v":""},{"$f":"IF('TSA Input'!J83=\"\",\"\",IF(OR('TSA Input'!J83=\"Yes\",'TSA Input'!J83=\"Contingent\"),'TSA Input'!I83,\"\"))","v":""},{"$f":"IF('TSA Input'!J83=\"\",\"\",IF(OR('TSA Input'!J83=\"Yes\",'TSA Input'!J83=\"Contingent\"),'TSA Input'!C83,\"\"))","v":""},{"$f":"IF('TSA Input'!J83=\"\",\"\",IF(OR('TSA Input'!J83=\"Yes\",'TSA Input'!J83=\"Contingent\"),'TSA Input'!D83,\"\"))","v":""},{"$f":"IF('TSA Input'!J83=\"\",\"\",IF(OR('TSA Input'!J83=\"Yes\",'TSA Input'!J83=\"Contingent\"),'TSA Input'!G83,\"\"))","v":""},{"$f":"IF('TSA Input'!J83=\"\",\"\",IF(OR('TSA Input'!J83=\"Yes\",'TSA Input'!J83=\"Contingent\"),'TSA Input'!F83,\"\"))","v":""},"",{"$f":"IF('TSA Input'!J83=\"\",\"\",IF(OR('TSA Input'!J83=\"Yes\",'TSA Input'!J83=\"Contingent\"),'TSA Input'!D83,\"\"))","v":""},{"$f":"IF('TSA Input'!J83=\"\",\"\",IF(OR('TSA Input'!J83=\"Yes\",'TSA Input'!J83=\"Contingent\"),'TSA Input'!G83,\"\"))","v":""},{"$f":"IF('TSA Input'!J83=\"\",\"\",IF(OR('TSA Input'!J83=\"Yes\",'TSA Input'!J83=\"Contingent\"),'TSA Input'!F83,\"\"))","v":""},"","Required","Required"]
["",null,{"$f":"IF('TSA Input'!J84=\"\",\"\",IF(OR('TSA Input'!J84=\"Yes\",'TSA Input'!J84=\"Contingent\"),'TSA Input'!B84,\"Ineligible\"))","v":""},{"$f":"IF('TSA Input'!J84=\"\",\"\",IF(OR('TSA Input'!J84=\"Yes\",'TSA Input'!J84=\"Contingent\"),'TSA Input'!I84,\"\"))","v":""},{"$f":"IF('TSA Input'!J84=\"\",\"\",IF(OR('TSA Input'!J84=\"Yes\",'TSA Input'!J84=\"Contingent\"),'TSA Input'!C84,\"\"))","v":""},{"$f":"IF('TSA Input'!J84=\"\",\"\",IF(OR('TSA Input'!J84=\"Yes\",'TSA Input'!J84=\"Contingent\"),'TSA Input'!D84,\"\"))","v":""},{"$f":"IF('TSA Input'!J84=\"\",\"\",IF(OR('TSA Input'!J84=\"Yes\",'TSA Input'!J84=\"Contingent\"),'TSA Input'!G84,\"\"))","v":""},{"$f":"IF('TSA Input'!J84=\"\",\"\",IF(OR('TSA Input'!J84=\"Yes\",'TSA Input'!J84=\"Contingent\"),'TSA Input'!F84,\"\"))","v":""},"",{"$f":"IF('TSA Input'!J84=\"\",\"\",IF(OR('TSA Input'!J84=\"Yes\",'TSA Input'!J84=\"Contingent\"),'TSA Input'!D84,\"\"))","v":""},{"$f":"IF('TSA Input'!J84=\"\",\"\",IF(OR('TSA Input'!J84=\"Yes\",'TSA Input'!J84=\"Contingent\"),'TSA Input'!G84,\"\"))","v":""},{"$f":"IF('TSA Input'!J84=\"\",\"\",IF(OR('TSA Input'!J84=\"Yes\",'TSA Input'!J84=\"Contingent\"),'TSA Input'!F84,\"\"))","v":""},"","Required","Required"]
["",null,{"$f":"IF('TSA Input'!J85=\"\",\"\",IF(OR('TSA Input'!J85=\"Yes\",'TSA Input'!J85=\"Contingent\"),'TSA Input'!B85,\"Ineligible\"))","v":""},{"$f":"IF('TSA Input'!J85=\"\",\"\",IF(OR('TSA Input'!J85=\"Yes\",'TSA Input'!J85=\"Contingent\"),'TSA Input'!I85,\"\"))","v":""},{"$f":"IF('TSA Input'!J85=\"\",\"\",IF(OR('TSA Input'!J85=\"Yes\",'TSA Input'!J85=\"Contingent\"),'TSA Input'!C85,\"\"))","v":""},{"$f":"IF('TSA Input'!J85=\"\",\"\",IF(OR('TSA Input'!J85=\"Yes\",'TSA Input'!J85=\"Contingent\"),'TSA Input'!D85,\"\"))","v":""},{"$f":"IF('TSA Input'!J85=\"\",\"\",IF(OR('TSA Input'!J85=\"Yes\",'TSA Input'!J85=\"Contingent\"),'TSA Input'!G85,\"\"))","v":""},{"$f":"IF('TSA Input'!J85=\"\",\"\",IF(OR('TSA Input'!J85=\"Yes\",'TSA Input'!J85=\"Contingent\"),'TSA Input'!F85,\"\"))","v":""},"",{"$f":"IF('TSA Input'!J85=\"\",\"\",IF(OR('TSA Input'!J85=\"Yes\",'TSA Input'!J85=\"Contingent\"),'TSA Input'!D85,\"\"))","v":""},{"$f":"IF('TSA Input'!J85=\"\",\"\",IF(OR('TSA Input'!J85=\"Yes\",'TSA Input'!J85=\"Contingent\"),'TSA Input'!G85,\"\"))","v":""},{"$f":"IF('TSA Input'!J85=\"\",\"\",IF(OR('TSA Input'!J85=\"Yes\",'TSA Input'!J85=\"Contingent\"),'TSA Input'!F85,\"\"))","v":""},"","Required","Required"]
["",null,{"$f":"IF('TSA Input'!J86=\"\",\"\",IF(OR('TSA Input'!J86=\"Yes\",'TSA Input'!J86=\"Contingent\"),'TSA Input'!B86,\"Ineligible\"))","v":""},{"$f":"IF('TSA Input'!J86=\"\",\"\",IF(OR('TSA Input'!J86=\"Yes\",'TSA Input'!J86=\"Contingent\"),'TSA Input'!I86,\"\"))","v":""},{"$f":"IF('TSA Input'!J86=\"\",\"\",IF(OR('TSA Input'!J86=\"Yes\",'TSA Input'!J86=\"Contingent\"),'TSA Input'!C86,\"\"))","v":""},{"$f":"IF('TSA Input'!J86=\"\",\"\",IF(OR('TSA Input'!J86=\"Yes\",'TSA Input'!J86=\"Contingent\"),'TSA Input'!D86,\"\"))","v":""},{"$f":"IF('TSA Input'!J86=\"\",\"\",IF(OR('TSA Input'!J86=\"Yes\",'TSA Input'!J86=\"Contingent\"),'TSA Input'!G86,\"\"))","v":""},{"$f":"IF('TSA Input'!J86=\"\",\"\",IF(OR('TSA Input'!J86=\"Yes\",'TSA Input'!J86=\"Contingent\"),'TSA Input'!F86,\"\"))","v":""},"",{"$f":"IF('TSA Input'!J86=\"\",\"\",IF(OR('TSA Input'!J86=\"Yes\",'TSA Input'!J86=\"Contingent\"),'TSA Input'!D86,\"\"))","v":""},{"$f":"IF('TSA Input'!J86=\"\",\"\",IF(OR('TSA Input'!J86=\"Yes\",'TSA Input'!J86=\"Contingent\"),'TSA Input'!G86,\"\"))","v":""},{"$f":"IF('TSA Input'!J86=\"\",\"\",IF(OR('TSA Input'!J86=\"Yes\",'TSA Input'!J86=\"Contingent\"),'TSA Input'!F86,\"\"))","v":""},"","Required","Required"]
["",null,{"$f":"IF('TSA Input'!J87=\"\",\"\",IF(OR('TSA Input'!J87=\"Yes\",'TSA Input'!J87=\"Contingent\"),'TSA Input'!B87,\"Ineligible\"))","v":""},{"$f":"IF('TSA Input'!J87=\"\",\"\",IF(OR('TSA Input'!J87=\"Yes\",'TSA Input'!J87=\"Contingent\"),'TSA Input'!I87,\"\"))","v":""},{"$f":"IF('TSA Input'!J87=\"\",\"\",IF(OR('TSA Input'!J87=\"Yes\",'TSA Input'!J87=\"Contingent\"),'TSA Input'!C87,\"\"))","v":""},{"$f":"IF('TSA Input'!J87=\"\",\"\",IF(OR('TSA Input'!J87=\"Yes\",'TSA Input'!J87=\"Contingent\"),'TSA Input'!D87,\"\"))","v":""},{"$f":"IF('TSA Input'!J87=\"\",\"\",IF(OR('TSA Input'!J87=\"Yes\",'TSA Input'!J87=\"Contingent\"),'TSA Input'!G87,\"\"))","v":""},{"$f":"IF('TSA Input'!J87=\"\",\"\",IF(OR('TSA Input'!J87=\"Yes\",'TSA Input'!J87=\"Contingent\"),'TSA Input'!F87,\"\"))","v":""},"",{"$f":"IF('TSA Input'!J87=\"\",\"\",IF(OR('TSA Input'!J87=\"Yes\",'TSA Input'!J87=\"Contingent\"),'TSA Input'!D87,\"\"))","v":""},{"$f":"IF('TSA Input'!J87=\"\",\"\",IF(OR('TSA Input'!J87=\"Yes\",'TSA Input'!J87=\"Contingent\"),'TSA Input'!G87,\"\"))","v":""},{"$f":"IF('TSA Input'!J87=\"\",\"\",IF(OR('TSA Input'!J87=\"Yes\",'TSA Input'!J87=\"Contingent\"),'TSA Input'!F87,\"\"))","v":""},"","Required","Required"]
["",null,{"$f":"IF('TSA Input'!J88=\"\",\"\",IF(OR('TSA Input'!J88=\"Yes\",'TSA Input'!J88=\"Contingent\"),'TSA Input'!B88,\"Ineligible\"))","v":""},{"$f":"IF('TSA Input'!J88=\"\",\"\",IF(OR('TSA Input'!J88=\"Yes\",'TSA Input'!J88=\"Contingent\"),'TSA Input'!I88,\"\"))","v":""},{"$f":"IF('TSA Input'!J88=\"\",\"\",IF(OR('TSA Input'!J88=\"Yes\",'TSA Input'!J88=\"Contingent\"),'TSA Input'!C88,\"\"))","v":""},{"$f":"IF('TSA Input'!J88=\"\",\"\",IF(OR('TSA Input'!J88=\"Yes\",'TSA Input'!J88=\"Contingent\"),'TSA Input'!D88,\"\"))","v":""},{"$f":"IF('TSA Input'!J88=\"\",\"\",IF(OR('TSA Input'!J88=\"Yes\",'TSA Input'!J88=\"Contingent\"),'TSA Input'!G88,\"\"))","v":""},{"$f":"IF('TSA Input'!J88=\"\",\"\",IF(OR('TSA Input'!J88=\"Yes\",'TSA Input'!J88=\"Contingent\"),'TSA Input'!F88,\"\"))","v":""},"",{"$f":"IF('TSA Input'!J88=\"\",\"\",IF(OR('TSA Input'!J88=\"Yes\",'TSA Input'!J88=\"Contingent\"),'TSA Input'!D88,\"\"))","v":""},{"$f":"IF('TSA Input'!J88=\"\",\"\",IF(OR('TSA Input'!J88=\"Yes\",'TSA Input'!J88=\"Contingent\"),'TSA Input'!G88,\"\"))","v":""},{"$f":"IF('TSA Input'!J88=\"\",\"\",IF(OR('TSA Input'!J88=\"Yes\",'TSA Input'!J88=\"Contingent\"),'TSA Input'!F88,\"\"))","v":""},"","Required","Required"]
["",null,{"$f":"IF('TSA Input'!J89=\"\",\"\",IF(OR('TSA Input'!J89=\"Yes\",'TSA Input'!J89=\"Contingent\"),'TSA Input'!B89,\"Ineligible\"))","v":""},{"$f":"IF('TSA Input'!J89=\"\",\"\",IF(OR('TSA Input'!J89=\"Yes\",'TSA Input'!J89=\"Contingent\"),'TSA Input'!I89,\"\"))","v":""},{"$f":"IF('TSA Input'!J89=\"\",\"\",IF(OR('TSA Input'!J89=\"Yes\",'TSA Input'!J89=\"Contingent\"),'TSA Input'!C89,\"\"))","v":""},{"$f":"IF('TSA Input'!J89=\"\",\"\",IF(OR('TSA Input'!J89=\"Yes\",'TSA Input'!J89=\"Contingent\"),'TSA Input'!D89,\"\"))","v":""},{"$f":"IF('TSA Input'!J89=\"\",\"\",IF(OR('TSA Input'!J89=\"Yes\",'TSA Input'!J89=\"Contingent\"),'TSA Input'!G89,\"\"))","v":""},{"$f":"IF('TSA Input'!J89=\"\",\"\",IF(OR('TSA Input'!J89=\"Yes\",'TSA Input'!J89=\"Contingent\"),'TSA Input'!F89,\"\"))","v":""},"",{"$f":"IF('TSA Input'!J89=\"\",\"\",IF(OR('TSA Input'!J89=\"Yes\",'TSA Input'!J89=\"Contingent\"),'TSA Input'!D89,\"\"))","v":""},{"$f":"IF('TSA Input'!J89=\"\",\"\",IF(OR('TSA Input'!J89=\"Yes\",'TSA Input'!J89=\"Contingent\"),'TSA Input'!G89,\"\"))","v":""},{"$f":"IF('TSA Input'!J89=\"\",\"\",IF(OR('TSA Input'!J89=\"Yes\",'TSA Input'!J89=\"Contingent\"),'TSA Input'!F89,\"\"))","v":""},"","Required","Required"]
["",null,{"$f":"IF('TSA Input'!J90=\"\",\"\",IF(OR('TSA Input'!J90=\"Yes\",'TSA Input'!J90=\"Contingent\"),'TSA Input'!B90,\"Ineligible\"))","v":""},{"$f":"IF('TSA Input'!J90=\"\",\"\",IF(OR('TSA Input'!J90=\"Yes\",'TSA Input'!J90=\"Contingent\"),'TSA Input'!I90,\"\"))","v":""},{"$f":"IF('TSA Input'!J90=\"\",\"\",IF(OR('TSA Input'!J90=\"Yes\",'TSA Input'!J90=\"Contingent\"),'TSA Input'!C90,\"\"))","v":""},{"$f":"IF('TSA Input'!J90=\"\",\"\",IF(OR('TSA Input'!J90=\"Yes\",'TSA Input'!J90=\"Contingent\"),'TSA Input'!D90,\"\"))","v":""},{"$f":"IF('TSA Input'!J90=\"\",\"\",IF(OR('TSA Input'!J90=\"Yes\",'TSA Input'!J90=\"Contingent\"),'TSA Input'!G90,\"\"))","v":""},{"$f":"IF('TSA Input'!J90=\"\",\"\",IF(OR('TSA Input'!J90=\"Yes\",'TSA Input'!J90=\"Contingent\"),'TSA Input'!F90,\"\"))","v":""},"",{"$f":"IF('TSA Input'!J90=\"\",\"\",IF(OR('TSA Input'!J90=\"Yes\",'TSA Input'!J90=\"Contingent\"),'TSA Input'!D90,\"\"))","v":""},{"$f":"IF('TSA Input'!J90=\"\",\"\",IF(OR('TSA Input'!J90=\"Yes\",'TSA Input'!J90=\"Contingent\"),'TSA Input'!G90,\"\"))","v":""},{"$f":"IF('TSA Input'!J90=\"\",\"\",IF(OR('TSA Input'!J90=\"Yes\",'TSA Input'!J90=\"Contingent\"),'TSA Input'!F90,\"\"))","v":""},"","Required","Required"]
["",null,{"$f":"IF('TSA Input'!J91=\"\",\"\",IF(OR('TSA Input'!J91=\"Yes\",'TSA Input'!J91=\"Contingent\"),'TSA Input'!B91,\"Ineligible\"))","v":""},{"$f":"IF('TSA Input'!J91=\"\",\"\",IF(OR('TSA Input'!J91=\"Yes\",'TSA Input'!J91=\"Contingent\"),'TSA Input'!I91,\"\"))","v":""},{"$f":"IF('TSA Input'!J91=\"\",\"\",IF(OR('TSA Input'!J91=\"Yes\",'TSA Input'!J91=\"Contingent\"),'TSA Input'!C91,\"\"))","v":""},{"$f":"IF('TSA Input'!J91=\"\",\"\",IF(OR('TSA Input'!J91=\"Yes\",'TSA Input'!J91=\"Contingent\"),'TSA Input'!D91,\"\"))","v":""},{"$f":"IF('TSA Input'!J91=\"\",\"\",IF(OR('TSA Input'!J91=\"Yes\",'TSA Input'!J91=\"Contingent\"),'TSA Input'!G91,\"\"))","v":""},{"$f":"IF('TSA Input'!J91=\"\",\"\",IF(OR('TSA Input'!J91=\"Yes\",'TSA Input'!J91=\"Contingent\"),'TSA Input'!F91,\"\"))","v":""},"",{"$f":"IF('TSA Input'!J91=\"\",\"\",IF(OR('TSA Input'!J91=\"Yes\",'TSA Input'!J91=\"Contingent\"),'TSA Input'!D91,\"\"))","v":""},{"$f":"IF('TSA Input'!J91=\"\",\"\",IF(OR('TSA Input'!J91=\"Yes\",'TSA Input'!J91=\"Contingent\"),'TSA Input'!G91,\"\"))","v":""},{"$f":"IF('TSA Input'!J91=\"\",\"\",IF(OR('TSA Input'!J91=\"Yes\",'TSA Input'!J91=\"Contingent\"),'TSA Input'!F91,\"\"))","v":""},"","Required","Required"]
["",null,{"$f":"IF('TSA Input'!J92=\"\",\"\",IF(OR('TSA Input'!J92=\"Yes\",'TSA Input'!J92=\"Contingent\"),'TSA Input'!B92,\"Ineligible\"))","v":""},{"$f":"IF('TSA Input'!J92=\"\",\"\",IF(OR('TSA Input'!J92=\"Yes\",'TSA Input'!J92=\"Contingent\"),'TSA Input'!I92,\"\"))","v":""},{"$f":"IF('TSA Input'!J92=\"\",\"\",IF(OR('TSA Input'!J92=\"Yes\",'TSA Input'!J92=\"Contingent\"),'TSA Input'!C92,\"\"))","v":""},{"$f":"IF('TSA Input'!J92=\"\",\"\",IF(OR('TSA Input'!J92=\"Yes\",'TSA Input'!J92=\"Contingent\"),'TSA Input'!D92,\"\"))","v":""},{"$f":"IF('TSA Input'!J92=\"\",\"\",IF(OR('TSA Input'!J92=\"Yes\",'TSA Input'!J92=\"Contingent\"),'TSA Input'!G92,\"\"))","v":""},{"$f":"IF('TSA Input'!J92=\"\",\"\",IF(OR('TSA Input'!J92=\"Yes\",'TSA Input'!J92=\"Contingent\"),'TSA Input'!F92,\"\"))","v":""},"",{"$f":"IF('TSA Input'!J92=\"\",\"\",IF(OR('TSA Input'!J92=\"Yes\",'TSA Input'!J92=\"Contingent\"),'TSA Input'!D92,\"\"))","v":""},{"$f":"IF('TSA Input'!J92=\"\",\"\",IF(OR('TSA Input'!J92=\"Yes\",'TSA Input'!J92=\"Contingent\"),'TSA Input'!G92,\"\"))","v":""},{"$f":"IF('TSA Input'!J92=\"\",\"\",IF(OR('TSA Input'!J92=\"Yes\",'TSA Input'!J92=\"Contingent\"),'TSA Input'!F92,\"\"))","v":""},"","Required","Required"]
["",null,{"$f":"IF('TSA Input'!J93=\"\",\"\",IF(OR('TSA Input'!J93=\"Yes\",'TSA Input'!J93=\"Contingent\"),'TSA Input'!B93,\"Ineligible\"))","v":""},{"$f":"IF('TSA Input'!J93=\"\",\"\",IF(OR('TSA Input'!J93=\"Yes\",'TSA Input'!J93=\"Contingent\"),'TSA Input'!I93,\"\"))","v":""},{"$f":"IF('TSA Input'!J93=\"\",\"\",IF(OR('TSA Input'!J93=\"Yes\",'TSA Input'!J93=\"Contingent\"),'TSA Input'!C93,\"\"))","v":""},{"$f":"IF('TSA Input'!J93=\"\",\"\",IF(OR('TSA Input'!J93=\"Yes\",'TSA Input'!J93=\"Contingent\"),'TSA Input'!D93,\"\"))","v":""},{"$f":"IF('TSA Input'!J93=\"\",\"\",IF(OR('TSA Input'!J93=\"Yes\",'TSA Input'!J93=\"Contingent\"),'TSA Input'!G93,\"\"))","v":""},{"$f":"IF('TSA Input'!J93=\"\",\"\",IF(OR('TSA Input'!J93=\"Yes\",'TSA Input'!J93=\"Contingent\"),'TSA Input'!F93,\"\"))","v":""},"",{"$f":"IF('TSA Input'!J93=\"\",\"\",IF(OR('TSA Input'!J93=\"Yes\",'TSA Input'!J93=\"Contingent\"),'TSA Input'!D93,\"\"))","v":""},{"$f":"IF('TSA Input'!J93=\"\",\"\",IF(OR('TSA Input'!J93=\"Yes\",'TSA Input'!J93=\"Contingent\"),'TSA Input'!G93,\"\"))","v":""},{"$f":"IF('TSA Input'!J93=\"\",\"\",IF(OR('TSA Input'!J93=\"Yes\",'TSA Input'!J93=\"Contingent\"),'TSA Input'!F93,\"\"))","v":""},"","Required","Required"]
["",null,{"$f":"IF('TSA Input'!J94=\"\",\"\",IF(OR('TSA Input'!J94=\"Yes\",'TSA Input'!J94=\"Contingent\"),'TSA Input'!B94,\"Ineligible\"))","v":""},{"$f":"IF('TSA Input'!J94=\"\",\"\",IF(OR('TSA Input'!J94=\"Yes\",'TSA Input'!J94=\"Contingent\"),'TSA Input'!I94,\"\"))","v":""},{"$f":"IF('TSA Input'!J94=\"\",\"\",IF(OR('TSA Input'!J94=\"Yes\",'TSA Input'!J94=\"Contingent\"),'TSA Input'!C94,\"\"))","v":""},{"$f":"IF('TSA Input'!J94=\"\",\"\",IF(OR('TSA Input'!J94=\"Yes\",'TSA Input'!J94=\"Contingent\"),'TSA Input'!D94,\"\"))","v":""},{"$f":"IF('TSA Input'!J94=\"\",\"\",IF(OR('TSA Input'!J94=\"Yes\",'TSA Input'!J94=\"Contingent\"),'TSA Input'!G94,\"\"))","v":""},{"$f":"IF('TSA Input'!J94=\"\",\"\",IF(OR('TSA Input'!J94=\"Yes\",'TSA Input'!J94=\"Contingent\"),'TSA Input'!F94,\"\"))","v":""},"",{"$f":"IF('TSA Input'!J94=\"\",\"\",IF(OR('TSA Input'!J94=\"Yes\",'TSA Input'!J94=\"Contingent\"),'TSA Input'!D94,\"\"))","v":""},{"$f":"IF('TSA Input'!J94=\"\",\"\",IF(OR('TSA Input'!J94=\"Yes\",'TSA Input'!J94=\"Contingent\"),'TSA Input'!G94,\"\"))","v":""},{"$f":"IF('TSA Input'!J94=\"\",\"\",IF(OR('TSA Input'!J94=\"Yes\",'TSA Input'!J94=\"Contingent\"),'TSA Input'!F94,\"\"))","v":""},"","Required","Required"]
["",null,{"$f":"IF('TSA Input'!J95=\"\",\"\",IF(OR('TSA Input'!J95=\"Yes\",'TSA Input'!J95=\"Contingent\"),'TSA Input'!B95,\"Ineligible\"))","v":""},{"$f":"IF('TSA Input'!J95=\"\",\"\",IF(OR('TSA Input'!J95=\"Yes\",'TSA Input'!J95=\"Contingent\"),'TSA Input'!I95,\"\"))","v":""},{"$f":"IF('TSA Input'!J95=\"\",\"\",IF(OR('TSA Input'!J95=\"Yes\",'TSA Input'!J95=\"Contingent\"),'TSA Input'!C95,\"\"))","v":""},{"$f":"IF('TSA Input'!J95=\"\",\"\",IF(OR('TSA Input'!J95=\"Yes\",'TSA Input'!J95=\"Contingent\"),'TSA Input'!D95,\"\"))","v":""},{"$f":"IF('TSA Input'!J95=\"\",\"\",IF(OR('TSA Input'!J95=\"Yes\",'TSA Input'!J95=\"Contingent\"),'TSA Input'!G95,\"\"))","v":""},{"$f":"IF('TSA Input'!J95=\"\",\"\",IF(OR('TSA Input'!J95=\"Yes\",'TSA Input'!J95=\"Contingent\"),'TSA Input'!F95,\"\"))","v":""},"",{"$f":"IF('TSA Input'!J95=\"\",\"\",IF(OR('TSA Input'!J95=\"Yes\",'TSA Input'!J95=\"Contingent\"),'TSA Input'!D95,\"\"))","v":""},{"$f":"IF('TSA Input'!J95=\"\",\"\",IF(OR('TSA Input'!J95=\"Yes\",'TSA Input'!J95=\"Contingent\"),'TSA Input'!G95,\"\"))","v":""},{"$f":"IF('TSA Input'!J95=\"\",\"\",IF(OR('TSA Input'!J95=\"Yes\",'TSA Input'!J95=\"Contingent\"),'TSA Input'!F95,\"\"))","v":""},"","Required","Required"]
["",null,{"$f":"IF('TSA Input'!J96=\"\",\"\",IF(OR('TSA Input'!J96=\"Yes\",'TSA Input'!J96=\"Contingent\"),'TSA Input'!B96,\"Ineligible\"))","v":""},{"$f":"IF('TSA Input'!J96=\"\",\"\",IF(OR('TSA Input'!J96=\"Yes\",'TSA Input'!J96=\"Contingent\"),'TSA Input'!I96,\"\"))","v":""},{"$f":"IF('TSA Input'!J96=\"\",\"\",IF(OR('TSA Input'!J96=\"Yes\",'TSA Input'!J96=\"Contingent\"),'TSA Input'!C96,\"\"))","v":""},{"$f":"IF('TSA Input'!J96=\"\",\"\",IF(OR('TSA Input'!J96=\"Yes\",'TSA Input'!J96=\"Contingent\"),'TSA Input'!D96,\"\"))","v":""},{"$f":"IF('TSA Input'!J96=\"\",\"\",IF(OR('TSA Input'!J96=\"Yes\",'TSA Input'!J96=\"Contingent\"),'TSA Input'!G96,\"\"))","v":""},{"$f":"IF('TSA Input'!J96=\"\",\"\",IF(OR('TSA Input'!J96=\"Yes\",'TSA Input'!J96=\"Contingent\"),'TSA Input'!F96,\"\"))","v":""},"",{"$f":"IF('TSA Input'!J96=\"\",\"\",IF(OR('TSA Input'!J96=\"Yes\",'TSA Input'!J96=\"Contingent\"),'TSA Input'!D96,\"\"))","v":""},{"$f":"IF('TSA Input'!J96=\"\",\"\",IF(OR('TSA Input'!J96=\"Yes\",'TSA Input'!J96=\"Contingent\"),'TSA Input'!G96,\"\"))","v":""},{"$f":"IF('TSA Input'!J96=\"\",\"\",IF(OR('TSA Input'!J96=\"Yes\",'TSA Input'!J96=\"Contingent\"),'TSA Input'!F96,\"\"))","v":""},"","Required","Required"]
["",null,{"$f":"IF('TSA Input'!J97=\"\",\"\",IF(OR('TSA Input'!J97=\"Yes\",'TSA Input'!J97=\"Contingent\"),'TSA Input'!B97,\"Ineligible\"))","v":""},{"$f":"IF('TSA Input'!J97=\"\",\"\",IF(OR('TSA Input'!J97=\"Yes\",'TSA Input'!J97=\"Contingent\"),'TSA Input'!I97,\"\"))","v":""},{"$f":"IF('TSA Input'!J97=\"\",\"\",IF(OR('TSA Input'!J97=\"Yes\",'TSA Input'!J97=\"Contingent\"),'TSA Input'!C97,\"\"))","v":""},{"$f":"IF('TSA Input'!J97=\"\",\"\",IF(OR('TSA Input'!J97=\"Yes\",'TSA Input'!J97=\"Contingent\"),'TSA Input'!D97,\"\"))","v":""},{"$f":"IF('TSA Input'!J97=\"\",\"\",IF(OR('TSA Input'!J97=\"Yes\",'TSA Input'!J97=\"Contingent\"),'TSA Input'!G97,\"\"))","v":""},{"$f":"IF('TSA Input'!J97=\"\",\"\",IF(OR('TSA Input'!J97=\"Yes\",'TSA Input'!J97=\"Contingent\"),'TSA Input'!F97,\"\"))","v":""},"",{"$f":"IF('TSA Input'!J97=\"\",\"\",IF(OR('TSA Input'!J97=\"Yes\",'TSA Input'!J97=\"Contingent\"),'TSA Input'!D97,\"\"))","v":""},{"$f":"IF('TSA Input'!J97=\"\",\"\",IF(OR('TSA Input'!J97=\"Yes\",'TSA Input'!J97=\"Contingent\"),'TSA Input'!G97,\"\"))","v":""},{"$f":"IF('TSA Input'!J97=\"\",\"\",IF(OR('TSA Input'!J97=\"Yes\",'TSA Input'!J97=\"Contingent\"),'TSA Input'!F97,\"\"))","v":""},"","Required","Required"]
["",null,{"$f":"IF('TSA Input'!J98=\"\",\"\",IF(OR('TSA Input'!J98=\"Yes\",'TSA Input'!J98=\"Contingent\"),'TSA Input'!B98,\"Ineligible\"))","v":""},{"$f":"IF('TSA Input'!J98=\"\",\"\",IF(OR('TSA Input'!J98=\"Yes\",'TSA Input'!J98=\"Contingent\"),'TSA Input'!I98,\"\"))","v":""},{"$f":"IF('TSA Input'!J98=\"\",\"\",IF(OR('TSA Input'!J98=\"Yes\",'TSA Input'!J98=\"Contingent\"),'TSA Input'!C98,\"\"))","v":""},{"$f":"IF('TSA Input'!J98=\"\",\"\",IF(OR('TSA Input'!J98=\"Yes\",'TSA Input'!J98=\"Contingent\"),'TSA Input'!D98,\"\"))","v":""},{"$f":"IF('TSA Input'!J98=\"\",\"\",IF(OR('TSA Input'!J98=\"Yes\",'TSA Input'!J98=\"Contingent\"),'TSA Input'!G98,\"\"))","v":""},{"$f":"IF('TSA Input'!J98=\"\",\"\",IF(OR('TSA Input'!J98=\"Yes\",'TSA Input'!J98=\"Contingent\"),'TSA Input'!F98,\"\"))","v":""},"",{"$f":"IF('TSA Input'!J98=\"\",\"\",IF(OR('TSA Input'!J98=\"Yes\",'TSA Input'!J98=\"Contingent\"),'TSA Input'!D98,\"\"))","v":""},{"$f":"IF('TSA Input'!J98=\"\",\"\",IF(OR('TSA Input'!J98=\"Yes\",'TSA Input'!J98=\"Contingent\"),'TSA Input'!G98,\"\"))","v":""},{"$f":"IF('TSA Input'!J98=\"\",\"\",IF(OR('TSA Input'!J98=\"Yes\",'TSA Input'!J98=\"Contingent\"),'TSA Input'!F98,\"\"))","v":""},"","Required","Required"]
["",null,{"$f":"IF('TSA Input'!J99=\"\",\"\",IF(OR('TSA Input'!J99=\"Yes\",'TSA Input'!J99=\"Contingent\"),'TSA Input'!B99,\"Ineligible\"))","v":""},{"$f":"IF('TSA Input'!J99=\"\",\"\",IF(OR('TSA Input'!J99=\"Yes\",'TSA Input'!J99=\"Contingent\"),'TSA Input'!I99,\"\"))","v":""},{"$f":"IF('TSA Input'!J99=\"\",\"\",IF(OR('TSA Input'!J99=\"Yes\",'TSA Input'!J99=\"Contingent\"),'TSA Input'!C99,\"\"))","v":""},{"$f":"IF('TSA Input'!J99=\"\",\"\",IF(OR('TSA Input'!J99=\"Yes\",'TSA Input'!J99=\"Contingent\"),'TSA Input'!D99,\"\"))","v":""},{"$f":"IF('TSA Input'!J99=\"\",\"\",IF(OR('TSA Input'!J99=\"Yes\",'TSA Input'!J99=\"Contingent\"),'TSA Input'!G99,\"\"))","v":""},{"$f":"IF('TSA Input'!J99=\"\",\"\",IF(OR('TSA Input'!J99=\"Yes\",'TSA Input'!J99=\"Contingent\"),'TSA Input'!F99,\"\"))","v":""},"",{"$f":"IF('TSA Input'!J99=\"\",\"\",IF(OR('TSA Input'!J99=\"Yes\",'TSA Input'!J99=\"Contingent\"),'TSA Input'!D99,\"\"))","v":""},{"$f":"IF('TSA Input'!J99=\"\",\"\",IF(OR('TSA Input'!J99=\"Yes\",'TSA Input'!J99=\"Contingent\"),'TSA Input'!G99,\"\"))","v":""},{"$f":"IF('TSA Input'!J99=\"\",\"\",IF(OR('TSA Input'!J99=\"Yes\",'TSA Input'!J99=\"Contingent\"),'TSA Input'!F99,\"\"))","v":""},"","Required","Required"]
["",null,{"$f":"IF('TSA Input'!J100=\"\",\"\",IF(OR('TSA Input'!J100=\"Yes\",'TSA Input'!J100=\"Contingent\"),'TSA Input'!B100,\"Ineligible\"))","v":""},{"$f":"IF('TSA Input'!J100=\"\",\"\",IF(OR('TSA Input'!J100=\"Yes\",'TSA Input'!J100=\"Contingent\"),'TSA Input'!I100,\"\"))","v":""},{"$f":"IF('TSA Input'!J100=\"\",\"\",IF(OR('TSA Input'!J100=\"Yes\",'TSA Input'!J100=\"Contingent\"),'TSA Input'!C100,\"\"))","v":""},{"$f":"IF('TSA Input'!J100=\"\",\"\",IF(OR('TSA Input'!J100=\"Yes\",'TSA Input'!J100=\"Contingent\"),'TSA Input'!D100,\"\"))","v":""},{"$f":"IF('TSA Input'!J100=\"\",\"\",IF(OR('TSA Input'!J100=\"Yes\",'TSA Input'!J100=\"Contingent\"),'TSA Input'!G100,\"\"))","v":""},{"$f":"IF('TSA Input'!J100=\"\",\"\",IF(OR('TSA Input'!J100=\"Yes\",'TSA Input'!J100=\"Contingent\"),'TSA Input'!F100,\"\"))","v":""},"",{"$f":"IF('TSA Input'!J100=\"\",\"\",IF(OR('TSA Input'!J100=\"Yes\",'TSA Input'!J100=\"Contingent\"),'TSA Input'!D100,\"\"))","v":""},{"$f":"IF('TSA Input'!J100=\"\",\"\",IF(OR('TSA Input'!J100=\"Yes\",'TSA Input'!J100=\"Contingent\"),'TSA Input'!G100,\"\"))","v":""},{"$f":"IF('TSA Input'!J100=\"\",\"\",IF(OR('TSA Input'!J100=\"Yes\",'TSA Input'!J100=\"Contingent\"),'TSA Input'!F100,\"\"))","v":""},"","Required","Required"]
["",null,{"$f":"IF('TSA Input'!J101=\"\",\"\",IF(OR('TSA Input'!J101=\"Yes\",'TSA Input'!J101=\"Contingent\"),'TSA Input'!B101,\"Ineligible\"))","v":""},{"$f":"IF('TSA Input'!J101=\"\",\"\",IF(OR('TSA Input'!J101=\"Yes\",'TSA Input'!J101=\"Contingent\"),'TSA Input'!I101,\"\"))","v":""},{"$f":"IF('TSA Input'!J101=\"\",\"\",IF(OR('TSA Input'!J101=\"Yes\",'TSA Input'!J101=\"Contingent\"),'TSA Input'!C101,\"\"))","v":""},{"$f":"IF('TSA Input'!J101=\"\",\"\",IF(OR('TSA Input'!J101=\"Yes\",'TSA Input'!J101=\"Contingent\"),'TSA Input'!D101,\"\"))","v":""},{"$f":"IF('TSA Input'!J101=\"\",\"\",IF(OR('TSA Input'!J101=\"Yes\",'TSA Input'!J101=\"Contingent\"),'TSA Input'!G101,\"\"))","v":""},{"$f":"IF('TSA Input'!J101=\"\",\"\",IF(OR('TSA Input'!J101=\"Yes\",'TSA Input'!J101=\"Contingent\"),'TSA Input'!F101,\"\"))","v":""},"",{"$f":"IF('TSA Input'!J101=\"\",\"\",IF(OR('TSA Input'!J101=\"Yes\",'TSA Input'!J101=\"Contingent\"),'TSA Input'!D101,\"\"))","v":""},{"$f":"IF('TSA Input'!J101=\"\",\"\",IF(OR('TSA Input'!J101=\"Yes\",'TSA Input'!J101=\"Contingent\"),'TSA Input'!G101,\"\"))","v":""},{"$f":"IF('TSA Input'!J101=\"\",\"\",IF(OR('TSA Input'!J101=\"Yes\",'TSA Input'!J101=\"Contingent\"),'TSA Input'!F101,\"\"))","v":""},"","Required","Required"]
["",null,{"$f":"IF('TSA Input'!J102=\"\",\"\",IF(OR('TSA Input'!J102=\"Yes\",'TSA Input'!J102=\"Contingent\"),'TSA Input'!B102,\"Ineligible\"))","v":""},{"$f":"IF('TSA Input'!J102=\"\",\"\",IF(OR('TSA Input'!J102=\"Yes\",'TSA Input'!J102=\"Contingent\"),'TSA Input'!I102,\"\"))","v":""},{"$f":"IF('TSA Input'!J102=\"\",\"\",IF(OR('TSA Input'!J102=\"Yes\",'TSA Input'!J102=\"Contingent\"),'TSA Input'!C102,\"\"))","v":""},{"$f":"IF('TSA Input'!J102=\"\",\"\",IF(OR('TSA Input'!J102=\"Yes\",'TSA Input'!J102=\"Contingent\"),'TSA Input'!D102,\"\"))","v":""},{"$f":"IF('TSA Input'!J102=\"\",\"\",IF(OR('TSA Input'!J102=\"Yes\",'TSA Input'!J102=\"Contingent\"),'TSA Input'!G102,\"\"))","v":""},{"$f":"IF('TSA Input'!J102=\"\",\"\",IF(OR('TSA Input'!J102=\"Yes\",'TSA Input'!J102=\"Contingent\"),'TSA Input'!F102,\"\"))","v":""},"",{"$f":"IF('TSA Input'!J102=\"\",\"\",IF(OR('TSA Input'!J102=\"Yes\",'TSA Input'!J102=\"Contingent\"),'TSA Input'!D102,\"\"))","v":""},{"$f":"IF('TSA Input'!J102=\"\",\"\",IF(OR('TSA Input'!J102=\"Yes\",'TSA Input'!J102=\"Contingent\"),'TSA Input'!G102,\"\"))","v":""},{"$f":"IF('TSA Input'!J102=\"\",\"\",IF(OR('TSA Input'!J102=\"Yes\",'TSA Input'!J102=\"Contingent\"),'TSA Input'!F102,\"\"))","v":""},"","Required","Required"]
["",null,{"$f":"IF('TSA Input'!J103=\"\",\"\",IF(OR('TSA Input'!J103=\"Yes\",'TSA Input'!J103=\"Contingent\"),'TSA Input'!B103,\"Ineligible\"))","v":""},{"$f":"IF('TSA Input'!J103=\"\",\"\",IF(OR('TSA Input'!J103=\"Yes\",'TSA Input'!J103=\"Contingent\"),'TSA Input'!I103,\"\"))","v":""},{"$f":"IF('TSA Input'!J103=\"\",\"\",IF(OR('TSA Input'!J103=\"Yes\",'TSA Input'!J103=\"Contingent\"),'TSA Input'!C103,\"\"))","v":""},{"$f":"IF('TSA Input'!J103=\"\",\"\",IF(OR('TSA Input'!J103=\"Yes\",'TSA Input'!J103=\"Contingent\"),'TSA Input'!D103,\"\"))","v":""},{"$f":"IF('TSA Input'!J103=\"\",\"\",IF(OR('TSA Input'!J103=\"Yes\",'TSA Input'!J103=\"Contingent\"),'TSA Input'!G103,\"\"))","v":""},{"$f":"IF('TSA Input'!J103=\"\",\"\",IF(OR('TSA Input'!J103=\"Yes\",'TSA Input'!J103=\"Contingent\"),'TSA Input'!F103,\"\"))","v":""},"",{"$f":"IF('TSA Input'!J103=\"\",\"\",IF(OR('TSA Input'!J103=\"Yes\",'TSA Input'!J103=\"Contingent\"),'TSA Input'!D103,\"\"))","v":""},{"$f":"IF('TSA Input'!J103=\"\",\"\",IF(OR('TSA Input'!J103=\"Yes\",'TSA Input'!J103=\"Contingent\"),'TSA Input'!G103,\"\"))","v":""},{"$f":"IF('TSA Input'!J103=\"\",\"\",IF(OR('TSA Input'!J103=\"Yes\",'TSA Input'!J103=\"Contingent\"),'TSA Input'!F103,\"\"))","v":""},"","Required","Required"]
["",null,{"$f":"IF('TSA Input'!J104=\"\",\"\",IF(OR('TSA Input'!J104=\"Yes\",'TSA Input'!J104=\"Contingent\"),'TSA Input'!B104,\"Ineligible\"))","v":""},{"$f":"IF('TSA Input'!J104=\"\",\"\",IF(OR('TSA Input'!J104=\"Yes\",'TSA Input'!J104=\"Contingent\"),'TSA Input'!I104,\"\"))","v":""},{"$f":"IF('TSA Input'!J104=\"\",\"\",IF(OR('TSA Input'!J104=\"Yes\",'TSA Input'!J104=\"Contingent\"),'TSA Input'!C104,\"\"))","v":""},{"$f":"IF('TSA Input'!J104=\"\",\"\",IF(OR('TSA Input'!J104=\"Yes\",'TSA Input'!J104=\"Contingent\"),'TSA Input'!D104,\"\"))","v":""},{"$f":"IF('TSA Input'!J104=\"\",\"\",IF(OR('TSA Input'!J104=\"Yes\",'TSA Input'!J104=\"Contingent\"),'TSA Input'!G104,\"\"))","v":""},{"$f":"IF('TSA Input'!J104=\"\",\"\",IF(OR('TSA Input'!J104=\"Yes\",'TSA Input'!J104=\"Contingent\"),'TSA Input'!F104,\"\"))","v":""},"",{"$f":"IF('TSA Input'!J104=\"\",\"\",IF(OR('TSA Input'!J104=\"Yes\",'TSA Input'!J104=\"Contingent\"),'TSA Input'!D104,\"\"))","v":""},{"$f":"IF('TSA Input'!J104=\"\",\"\",IF(OR('TSA Input'!J104=\"Yes\",'TSA Input'!J104=\"Contingent\"),'TSA Input'!G104,\"\"))","v":""},{"$f":"IF('TSA Input'!J104=\"\",\"\",IF(OR('TSA Input'!J104=\"Yes\",'TSA Input'!J104=\"Contingent\"),'TSA Input'!F104,\"\"))","v":""},"","Required","Required"]
["",null,{"$f":"IF('TSA Input'!J105=\"\",\"\",IF(OR('TSA Input'!J105=\"Yes\",'TSA Input'!J105=\"Contingent\"),'TSA Input'!B105,\"Ineligible\"))","v":""},{"$f":"IF('TSA Input'!J105=\"\",\"\",IF(OR('TSA Input'!J105=\"Yes\",'TSA Input'!J105=\"Contingent\"),'TSA Input'!I105,\"\"))","v":""},{"$f":"IF('TSA Input'!J105=\"\",\"\",IF(OR('TSA Input'!J105=\"Yes\",'TSA Input'!J105=\"Contingent\"),'TSA Input'!C105,\"\"))","v":""},{"$f":"IF('TSA Input'!J105=\"\",\"\",IF(OR('TSA Input'!J105=\"Yes\",'TSA Input'!J105=\"Contingent\"),'TSA Input'!D105,\"\"))","v":""},{"$f":"IF('TSA Input'!J105=\"\",\"\",IF(OR('TSA Input'!J105=\"Yes\",'TSA Input'!J105=\"Contingent\"),'TSA Input'!G105,\"\"))","v":""},{"$f":"IF('TSA Input'!J105=\"\",\"\",IF(OR('TSA Input'!J105=\"Yes\",'TSA Input'!J105=\"Contingent\"),'TSA Input'!F105,\"\"))","v":""},"",{"$f":"IF('TSA Input'!J105=\"\",\"\",IF(OR('TSA Input'!J105=\"Yes\",'TSA Input'!J105=\"Contingent\"),'TSA Input'!D105,\"\"))","v":""},{"$f":"IF('TSA Input'!J105=\"\",\"\",IF(OR('TSA Input'!J105=\"Yes\",'TSA Input'!J105=\"Contingent\"),'TSA Input'!G105,\"\"))","v":""},{"$f":"IF('TSA Input'!J105=\"\",\"\",IF(OR('TSA Input'!J105=\"Yes\",'TSA Input'!J105=\"Contingent\"),'TSA Input'!F105,\"\"))","v":""},"","Required","Required"]
["",null,{"$f":"IF('TSA Input'!J106=\"\",\"\",IF(OR('TSA Input'!J106=\"Yes\",'TSA Input'!J106=\"Contingent\"),'TSA Input'!B106,\"Ineligible\"))","v":""},{"$f":"IF('TSA Input'!J106=\"\",\"\",IF(OR('TSA Input'!J106=\"Yes\",'TSA Input'!J106=\"Contingent\"),'TSA Input'!I106,\"\"))","v":""},{"$f":"IF('TSA Input'!J106=\"\",\"\",IF(OR('TSA Input'!J106=\"Yes\",'TSA Input'!J106=\"Contingent\"),'TSA Input'!C106,\"\"))","v":""},{"$f":"IF('TSA Input'!J106=\"\",\"\",IF(OR('TSA Input'!J106=\"Yes\",'TSA Input'!J106=\"Contingent\"),'TSA Input'!D106,\"\"))","v":""},{"$f":"IF('TSA Input'!J106=\"\",\"\",IF(OR('TSA Input'!J106=\"Yes\",'TSA Input'!J106=\"Contingent\"),'TSA Input'!G106,\"\"))","v":""},{"$f":"IF('TSA Input'!J106=\"\",\"\",IF(OR('TSA Input'!J106=\"Yes\",'TSA Input'!J106=\"Contingent\"),'TSA Input'!F106,\"\"))","v":""},"",{"$f":"IF('TSA Input'!J106=\"\",\"\",IF(OR('TSA Input'!J106=\"Yes\",'TSA Input'!J106=\"Contingent\"),'TSA Input'!D106,\"\"))","v":""},{"$f":"IF('TSA Input'!J106=\"\",\"\",IF(OR('TSA Input'!J106=\"Yes\",'TSA Input'!J106=\"Contingent\"),'TSA Input'!G106,\"\"))","v":""},{"$f":"IF('TSA Input'!J106=\"\",\"\",IF(OR('TSA Input'!J106=\"Yes\",'TSA Input'!J106=\"Contingent\"),'TSA Input'!F106,\"\"))","v":""},"","Required","Required"]
["",null,{"$f":"IF('TSA Input'!J107=\"\",\"\",IF(OR('TSA Input'!J107=\"Yes\",'TSA Input'!J107=\"Contingent\"),'TSA Input'!B107,\"Ineligible\"))","v":""},{"$f":"IF('TSA Input'!J107=\"\",\"\",IF(OR('TSA Input'!J107=\"Yes\",'TSA Input'!J107=\"Contingent\"),'TSA Input'!I107,\"\"))","v":""},{"$f":"IF('TSA Input'!J107=\"\",\"\",IF(OR('TSA Input'!J107=\"Yes\",'TSA Input'!J107=\"Contingent\"),'TSA Input'!C107,\"\"))","v":""},{"$f":"IF('TSA Input'!J107=\"\",\"\",IF(OR('TSA Input'!J107=\"Yes\",'TSA Input'!J107=\"Contingent\"),'TSA Input'!D107,\"\"))","v":""},{"$f":"IF('TSA Input'!J107=\"\",\"\",IF(OR('TSA Input'!J107=\"Yes\",'TSA Input'!J107=\"Contingent\"),'TSA Input'!G107,\"\"))","v":""},{"$f":"IF('TSA Input'!J107=\"\",\"\",IF(OR('TSA Input'!J107=\"Yes\",'TSA Input'!J107=\"Contingent\"),'TSA Input'!F107,\"\"))","v":""},"",{"$f":"IF('TSA Input'!J107=\"\",\"\",IF(OR('TSA Input'!J107=\"Yes\",'TSA Input'!J107=\"Contingent\"),'TSA Input'!D107,\"\"))","v":""},{"$f":"IF('TSA Input'!J107=\"\",\"\",IF(OR('TSA Input'!J107=\"Yes\",'TSA Input'!J107=\"Contingent\"),'TSA Input'!G107,\"\"))","v":""},{"$f":"IF('TSA Input'!J107=\"\",\"\",IF(OR('TSA Input'!J107=\"Yes\",'TSA Input'!J107=\"Contingent\"),'TSA Input'!F107,\"\"))","v":""},"","Required","Required"]
["",null,{"$f":"IF('TSA Input'!J108=\"\",\"\",IF(OR('TSA Input'!J108=\"Yes\",'TSA Input'!J108=\"Contingent\"),'TSA Input'!B108,\"Ineligible\"))","v":""},{"$f":"IF('TSA Input'!J108=\"\",\"\",IF(OR('TSA Input'!J108=\"Yes\",'TSA Input'!J108=\"Contingent\"),'TSA Input'!I108,\"\"))","v":""},{"$f":"IF('TSA Input'!J108=\"\",\"\",IF(OR('TSA Input'!J108=\"Yes\",'TSA Input'!J108=\"Contingent\"),'TSA Input'!C108,\"\"))","v":""},{"$f":"IF('TSA Input'!J108=\"\",\"\",IF(OR('TSA Input'!J108=\"Yes\",'TSA Input'!J108=\"Contingent\"),'TSA Input'!D108,\"\"))","v":""},{"$f":"IF('TSA Input'!J108=\"\",\"\",IF(OR('TSA Input'!J108=\"Yes\",'TSA Input'!J108=\"Contingent\"),'TSA Input'!G108,\"\"))","v":""},{"$f":"IF('TSA Input'!J108=\"\",\"\",IF(OR('TSA Input'!J108=\"Yes\",'TSA Input'!J108=\"Contingent\"),'TSA Input'!F108,\"\"))","v":""},"",{"$f":"IF('TSA Input'!J108=\"\",\"\",IF(OR('TSA Input'!J108=\"Yes\",'TSA Input'!J108=\"Contingent\"),'TSA Input'!D108,\"\"))","v":""},{"$f":"IF('TSA Input'!J108=\"\",\"\",IF(OR('TSA Input'!J108=\"Yes\",'TSA Input'!J108=\"Contingent\"),'TSA Input'!G108,\"\"))","v":""},{"$f":"IF('TSA Input'!J108=\"\",\"\",IF(OR('TSA Input'!J108=\"Yes\",'TSA Input'!J108=\"Contingent\"),'TSA Input'!F108,\"\"))","v":""},"","Required","Required"]
["",null,{"$f":"IF('TSA Input'!J109=\"\",\"\",IF(OR('TSA Input'!J109=\"Yes\",'TSA Input'!J109=\"Contingent\"),'TSA Input'!B109,\"Ineligible\"))","v":""},{"$f":"IF('TSA Input'!J109=\"\",\"\",IF(OR('TSA Input'!J109=\"Yes\",'TSA Input'!J109=\"Contingent\"),'TSA Input'!I109,\"\"))","v":""},{"$f":"IF('TSA Input'!J109=\"\",\"\",IF(OR('TSA Input'!J109=\"Yes\",'TSA Input'!J109=\"Contingent\"),'TSA Input'!C109,\"\"))","v":""},{"$f":"IF('TSA Input'!J109=\"\",\"\",IF(OR('TSA Input'!J109=\"Yes\",'TSA Input'!J109=\"Contingent\"),'TSA Input'!D109,\"\"))","v":""},{"$f":"IF('TSA Input'!J109=\"\",\"\",IF(OR('TSA Input'!J109=\"Yes\",'TSA Input'!J109=\"Contingent\"),'TSA Input'!G109,\"\"))","v":""},{"$f":"IF('TSA Input'!J109=\"\",\"\",IF(OR('TSA Input'!J109=\"Yes\",'TSA Input'!J109=\"Contingent\"),'TSA Input'!F109,\"\"))","v":""},"",{"$f":"IF('TSA Input'!J109=\"\",\"\",IF(OR('TSA Input'!J109=\"Yes\",'TSA Input'!J109=\"Contingent\"),'TSA Input'!D109,\"\"))","v":""},{"$f":"IF('TSA Input'!J109=\"\",\"\",IF(OR('TSA Input'!J109=\"Yes\",'TSA Input'!J109=\"Contingent\"),'TSA Input'!G109,\"\"))","v":""},{"$f":"IF('TSA Input'!J109=\"\",\"\",IF(OR('TSA Input'!J109=\"Yes\",'TSA Input'!J109=\"Contingent\"),'TSA Input'!F109,\"\"))","v":""},"","Required","Required"]
["",null,{"$f":"IF('TSA Input'!J110=\"\",\"\",IF(OR('TSA Input'!J110=\"Yes\",'TSA Input'!J110=\"Contingent\"),'TSA Input'!B110,\"Ineligible\"))","v":""},{"$f":"IF('TSA Input'!J110=\"\",\"\",IF(OR('TSA Input'!J110=\"Yes\",'TSA Input'!J110=\"Contingent\"),'TSA Input'!I110,\"\"))","v":""},{"$f":"IF('TSA Input'!J110=\"\",\"\",IF(OR('TSA Input'!J110=\"Yes\",'TSA Input'!J110=\"Contingent\"),'TSA Input'!C110,\"\"))","v":""},{"$f":"IF('TSA Input'!J110=\"\",\"\",IF(OR('TSA Input'!J110=\"Yes\",'TSA Input'!J110=\"Contingent\"),'TSA Input'!D110,\"\"))","v":""},{"$f":"IF('TSA Input'!J110=\"\",\"\",IF(OR('TSA Input'!J110=\"Yes\",'TSA Input'!J110=\"Contingent\"),'TSA Input'!G110,\"\"))","v":""},{"$f":"IF('TSA Input'!J110=\"\",\"\",IF(OR('TSA Input'!J110=\"Yes\",'TSA Input'!J110=\"Contingent\"),'TSA Input'!F110,\"\"))","v":""},"",{"$f":"IF('TSA Input'!J110=\"\",\"\",IF(OR('TSA Input'!J110=\"Yes\",'TSA Input'!J110=\"Contingent\"),'TSA Input'!D110,\"\"))","v":""},{"$f":"IF('TSA Input'!J110=\"\",\"\",IF(OR('TSA Input'!J110=\"Yes\",'TSA Input'!J110=\"Contingent\"),'TSA Input'!G110,\"\"))","v":""},{"$f":"IF('TSA Input'!J110=\"\",\"\",IF(OR('TSA Input'!J110=\"Yes\",'TSA Input'!J110=\"Contingent\"),'TSA Input'!F110,\"\"))","v":""},"","Required","Required"]
["",null,{"$f":"IF('TSA Input'!J111=\"\",\"\",IF(OR('TSA Input'!J111=\"Yes\",'TSA Input'!J111=\"Contingent\"),'TSA Input'!B111,\"Ineligible\"))","v":""},{"$f":"IF('TSA Input'!J111=\"\",\"\",IF(OR('TSA Input'!J111=\"Yes\",'TSA Input'!J111=\"Contingent\"),'TSA Input'!I111,\"\"))","v":""},{"$f":"IF('TSA Input'!J111=\"\",\"\",IF(OR('TSA Input'!J111=\"Yes\",'TSA Input'!J111=\"Contingent\"),'TSA Input'!C111,\"\"))","v":""},{"$f":"IF('TSA Input'!J111=\"\",\"\",IF(OR('TSA Input'!J111=\"Yes\",'TSA Input'!J111=\"Contingent\"),'TSA Input'!D111,\"\"))","v":""},{"$f":"IF('TSA Input'!J111=\"\",\"\",IF(OR('TSA Input'!J111=\"Yes\",'TSA Input'!J111=\"Contingent\"),'TSA Input'!G111,\"\"))","v":""},{"$f":"IF('TSA Input'!J111=\"\",\"\",IF(OR('TSA Input'!J111=\"Yes\",'TSA Input'!J111=\"Contingent\"),'TSA Input'!F111,\"\"))","v":""},"",{"$f":"IF('TSA Input'!J111=\"\",\"\",IF(OR('TSA Input'!J111=\"Yes\",'TSA Input'!J111=\"Contingent\"),'TSA Input'!D111,\"\"))","v":""},{"$f":"IF('TSA Input'!J111=\"\",\"\",IF(OR('TSA Input'!J111=\"Yes\",'TSA Input'!J111=\"Contingent\"),'TSA Input'!G111,\"\"))","v":""},{"$f":"IF('TSA Input'!J111=\"\",\"\",IF(OR('TSA Input'!J111=\"Yes\",'TSA Input'!J111=\"Contingent\"),'TSA Input'!F111,\"\"))","v":""},"","Required","Required"]
["",null,{"$f":"IF('TSA Input'!J112=\"\",\"\",IF(OR('TSA Input'!J112=\"Yes\",'TSA Input'!J112=\"Contingent\"),'TSA Input'!B112,\"Ineligible\"))","v":""},{"$f":"IF('TSA Input'!J112=\"\",\"\",IF(OR('TSA Input'!J112=\"Yes\",'TSA Input'!J112=\"Contingent\"),'TSA Input'!I112,\"\"))","v":""},{"$f":"IF('TSA Input'!J112=\"\",\"\",IF(OR('TSA Input'!J112=\"Yes\",'TSA Input'!J112=\"Contingent\"),'TSA Input'!C112,\"\"))","v":""},{"$f":"IF('TSA Input'!J112=\"\",\"\",IF(OR('TSA Input'!J112=\"Yes\",'TSA Input'!J112=\"Contingent\"),'TSA Input'!D112,\"\"))","v":""},{"$f":"IF('TSA Input'!J112=\"\",\"\",IF(OR('TSA Input'!J112=\"Yes\",'TSA Input'!J112=\"Contingent\"),'TSA Input'!G112,\"\"))","v":""},{"$f":"IF('TSA Input'!J112=\"\",\"\",IF(OR('TSA Input'!J112=\"Yes\",'TSA Input'!J112=\"Contingent\"),'TSA Input'!F112,\"\"))","v":""},"",{"$f":"IF('TSA Input'!J112=\"\",\"\",IF(OR('TSA Input'!J112=\"Yes\",'TSA Input'!J112=\"Contingent\"),'TSA Input'!D112,\"\"))","v":""},{"$f":"IF('TSA Input'!J112=\"\",\"\",IF(OR('TSA Input'!J112=\"Yes\",'TSA Input'!J112=\"Contingent\"),'TSA Input'!G112,\"\"))","v":""},{"$f":"IF('TSA Input'!J112=\"\",\"\",IF(OR('TSA Input'!J112=\"Yes\",'TSA Input'!J112=\"Contingent\"),'TSA Input'!F112,\"\"))","v":""},"","Required","Required"]
["",null,{"$f":"IF('TSA Input'!J113=\"\",\"\",IF(OR('TSA Input'!J113=\"Yes\",'TSA Input'!J113=\"Contingent\"),'TSA Input'!B113,\"Ineligible\"))","v":""},{"$f":"IF('TSA Input'!J113=\"\",\"\",IF(OR('TSA Input'!J113=\"Yes\",'TSA Input'!J113=\"Contingent\"),'TSA Input'!I113,\"\"))","v":""},{"$f":"IF('TSA Input'!J113=\"\",\"\",IF(OR('TSA Input'!J113=\"Yes\",'TSA Input'!J113=\"Contingent\"),'TSA Input'!C113,\"\"))","v":""},{"$f":"IF('TSA Input'!J113=\"\",\"\",IF(OR('TSA Input'!J113=\"Yes\",'TSA Input'!J113=\"Contingent\"),'TSA Input'!D113,\"\"))","v":""},{"$f":"IF('TSA Input'!J113=\"\",\"\",IF(OR('TSA Input'!J113=\"Yes\",'TSA Input'!J113=\"Contingent\"),'TSA Input'!G113,\"\"))","v":""},{"$f":"IF('TSA Input'!J113=\"\",\"\",IF(OR('TSA Input'!J113=\"Yes\",'TSA Input'!J113=\"Contingent\"),'TSA Input'!F113,\"\"))","v":""},"",{"$f":"IF('TSA Input'!J113=\"\",\"\",IF(OR('TSA Input'!J113=\"Yes\",'TSA Input'!J113=\"Contingent\"),'TSA Input'!D113,\"\"))","v":""},{"$f":"IF('TSA Input'!J113=\"\",\"\",IF(OR('TSA Input'!J113=\"Yes\",'TSA Input'!J113=\"Contingent\"),'TSA Input'!G113,\"\"))","v":""},{"$f":"IF('TSA Input'!J113=\"\",\"\",IF(OR('TSA Input'!J113=\"Yes\",'TSA Input'!J113=\"Contingent\"),'TSA Input'!F113,\"\"))","v":""},"","Required","Required"]
["",null,{"$f":"IF('TSA Input'!J114=\"\",\"\",IF(OR('TSA Input'!J114=\"Yes\",'TSA Input'!J114=\"Contingent\"),'TSA Input'!B114,\"Ineligible\"))","v":""},{"$f":"IF('TSA Input'!J114=\"\",\"\",IF(OR('TSA Input'!J114=\"Yes\",'TSA Input'!J114=\"Contingent\"),'TSA Input'!I114,\"\"))","v":""},{"$f":"IF('TSA Input'!J114=\"\",\"\",IF(OR('TSA Input'!J114=\"Yes\",'TSA Input'!J114=\"Contingent\"),'TSA Input'!C114,\"\"))","v":""},{"$f":"IF('TSA Input'!J114=\"\",\"\",IF(OR('TSA Input'!J114=\"Yes\",'TSA Input'!J114=\"Contingent\"),'TSA Input'!D114,\"\"))","v":""},{"$f":"IF('TSA Input'!J114=\"\",\"\",IF(OR('TSA Input'!J114=\"Yes\",'TSA Input'!J114=\"Contingent\"),'TSA Input'!G114,\"\"))","v":""},{"$f":"IF('TSA Input'!J114=\"\",\"\",IF(OR('TSA Input'!J114=\"Yes\",'TSA Input'!J114=\"Contingent\"),'TSA Input'!F114,\"\"))","v":""},"",{"$f":"IF('TSA Input'!J114=\"\",\"\",IF(OR('TSA Input'!J114=\"Yes\",'TSA Input'!J114=\"Contingent\"),'TSA Input'!D114,\"\"))","v":""},{"$f":"IF('TSA Input'!J114=\"\",\"\",IF(OR('TSA Input'!J114=\"Yes\",'TSA Input'!J114=\"Contingent\"),'TSA Input'!G114,\"\"))","v":""},{"$f":"IF('TSA Input'!J114=\"\",\"\",IF(OR('TSA Input'!J114=\"Yes\",'TSA Input'!J114=\"Contingent\"),'TSA Input'!F114,\"\"))","v":""},"","Required","Required"]
["",null,{"$f":"IF('TSA Input'!J115=\"\",\"\",IF(OR('TSA Input'!J115=\"Yes\",'TSA Input'!J115=\"Contingent\"),'TSA Input'!B115,\"Ineligible\"))","v":""},{"$f":"IF('TSA Input'!J115=\"\",\"\",IF(OR('TSA Input'!J115=\"Yes\",'TSA Input'!J115=\"Contingent\"),'TSA Input'!I115,\"\"))","v":""},{"$f":"IF('TSA Input'!J115=\"\",\"\",IF(OR('TSA Input'!J115=\"Yes\",'TSA Input'!J115=\"Contingent\"),'TSA Input'!C115,\"\"))","v":""},{"$f":"IF('TSA Input'!J115=\"\",\"\",IF(OR('TSA Input'!J115=\"Yes\",'TSA Input'!J115=\"Contingent\"),'TSA Input'!D115,\"\"))","v":""},{"$f":"IF('TSA Input'!J115=\"\",\"\",IF(OR('TSA Input'!J115=\"Yes\",'TSA Input'!J115=\"Contingent\"),'TSA Input'!G115,\"\"))","v":""},{"$f":"IF('TSA Input'!J115=\"\",\"\",IF(OR('TSA Input'!J115=\"Yes\",'TSA Input'!J115=\"Contingent\"),'TSA Input'!F115,\"\"))","v":""},"",{"$f":"IF('TSA Input'!J115=\"\",\"\",IF(OR('TSA Input'!J115=\"Yes\",'TSA Input'!J115=\"Contingent\"),'TSA Input'!D115,\"\"))","v":""},{"$f":"IF('TSA Input'!J115=\"\",\"\",IF(OR('TSA Input'!J115=\"Yes\",'TSA Input'!J115=\"Contingent\"),'TSA Input'!G115,\"\"))","v":""},{"$f":"IF('TSA Input'!J115=\"\",\"\",IF(OR('TSA Input'!J115=\"Yes\",'TSA Input'!J115=\"Contingent\"),'TSA Input'!F115,\"\"))","v":""},"","Required","Required"]
["",null,{"$f":"IF('TSA Input'!J116=\"\",\"\",IF(OR('TSA Input'!J116=\"Yes\",'TSA Input'!J116=\"Contingent\"),'TSA Input'!B116,\"Ineligible\"))","v":""},{"$f":"IF('TSA Input'!J116=\"\",\"\",IF(OR('TSA Input'!J116=\"Yes\",'TSA Input'!J116=\"Contingent\"),'TSA Input'!I116,\"\"))","v":""},{"$f":"IF('TSA Input'!J116=\"\",\"\",IF(OR('TSA Input'!J116=\"Yes\",'TSA Input'!J116=\"Contingent\"),'TSA Input'!C116,\"\"))","v":""},{"$f":"IF('TSA Input'!J116=\"\",\"\",IF(OR('TSA Input'!J116=\"Yes\",'TSA Input'!J116=\"Contingent\"),'TSA Input'!D116,\"\"))","v":""},{"$f":"IF('TSA Input'!J116=\"\",\"\",IF(OR('TSA Input'!J116=\"Yes\",'TSA Input'!J116=\"Contingent\"),'TSA Input'!G116,\"\"))","v":""},{"$f":"IF('TSA Input'!J116=\"\",\"\",IF(OR('TSA Input'!J116=\"Yes\",'TSA Input'!J116=\"Contingent\"),'TSA Input'!F116,\"\"))","v":""},"",{"$f":"IF('TSA Input'!J116=\"\",\"\",IF(OR('TSA Input'!J116=\"Yes\",'TSA Input'!J116=\"Contingent\"),'TSA Input'!D116,\"\"))","v":""},{"$f":"IF('TSA Input'!J116=\"\",\"\",IF(OR('TSA Input'!J116=\"Yes\",'TSA Input'!J116=\"Contingent\"),'TSA Input'!G116,\"\"))","v":""},{"$f":"IF('TSA Input'!J116=\"\",\"\",IF(OR('TSA Input'!J116=\"Yes\",'TSA Input'!J116=\"Contingent\"),'TSA Input'!F116,\"\"))","v":""},"","Required","Required"]
["",null,{"$f":"IF('TSA Input'!J117=\"\",\"\",IF(OR('TSA Input'!J117=\"Yes\",'TSA Input'!J117=\"Contingent\"),'TSA Input'!B117,\"Ineligible\"))","v":""},{"$f":"IF('TSA Input'!J117=\"\",\"\",IF(OR('TSA Input'!J117=\"Yes\",'TSA Input'!J117=\"Contingent\"),'TSA Input'!I117,\"\"))","v":""},{"$f":"IF('TSA Input'!J117=\"\",\"\",IF(OR('TSA Input'!J117=\"Yes\",'TSA Input'!J117=\"Contingent\"),'TSA Input'!C117,\"\"))","v":""},{"$f":"IF('TSA Input'!J117=\"\",\"\",IF(OR('TSA Input'!J117=\"Yes\",'TSA Input'!J117=\"Contingent\"),'TSA Input'!D117,\"\"))","v":""},{"$f":"IF('TSA Input'!J117=\"\",\"\",IF(OR('TSA Input'!J117=\"Yes\",'TSA Input'!J117=\"Contingent\"),'TSA Input'!G117,\"\"))","v":""},{"$f":"IF('TSA Input'!J117=\"\",\"\",IF(OR('TSA Input'!J117=\"Yes\",'TSA Input'!J117=\"Contingent\"),'TSA Input'!F117,\"\"))","v":""},"",{"$f":"IF('TSA Input'!J117=\"\",\"\",IF(OR('TSA Input'!J117=\"Yes\",'TSA Input'!J117=\"Contingent\"),'TSA Input'!D117,\"\"))","v":""},{"$f":"IF('TSA Input'!J117=\"\",\"\",IF(OR('TSA Input'!J117=\"Yes\",'TSA Input'!J117=\"Contingent\"),'TSA Input'!G117,\"\"))","v":""},{"$f":"IF('TSA Input'!J117=\"\",\"\",IF(OR('TSA Input'!J117=\"Yes\",'TSA Input'!J117=\"Contingent\"),'TSA Input'!F117,\"\"))","v":""},"","Required","Required"]
["",null,{"$f":"IF('TSA Input'!J118=\"\",\"\",IF(OR('TSA Input'!J118=\"Yes\",'TSA Input'!J118=\"Contingent\"),'TSA Input'!B118,\"Ineligible\"))","v":""},{"$f":"IF('TSA Input'!J118=\"\",\"\",IF(OR('TSA Input'!J118=\"Yes\",'TSA Input'!J118=\"Contingent\"),'TSA Input'!I118,\"\"))","v":""},{"$f":"IF('TSA Input'!J118=\"\",\"\",IF(OR('TSA Input'!J118=\"Yes\",'TSA Input'!J118=\"Contingent\"),'TSA Input'!C118,\"\"))","v":""},{"$f":"IF('TSA Input'!J118=\"\",\"\",IF(OR('TSA Input'!J118=\"Yes\",'TSA Input'!J118=\"Contingent\"),'TSA Input'!D118,\"\"))","v":""},{"$f":"IF('TSA Input'!J118=\"\",\"\",IF(OR('TSA Input'!J118=\"Yes\",'TSA Input'!J118=\"Contingent\"),'TSA Input'!G118,\"\"))","v":""},{"$f":"IF('TSA Input'!J118=\"\",\"\",IF(OR('TSA Input'!J118=\"Yes\",'TSA Input'!J118=\"Contingent\"),'TSA Input'!F118,\"\"))","v":""},"",{"$f":"IF('TSA Input'!J118=\"\",\"\",IF(OR('TSA Input'!J118=\"Yes\",'TSA Input'!J118=\"Contingent\"),'TSA Input'!D118,\"\"))","v":""},{"$f":"IF('TSA Input'!J118=\"\",\"\",IF(OR('TSA Input'!J118=\"Yes\",'TSA Input'!J118=\"Contingent\"),'TSA Input'!G118,\"\"))","v":""},{"$f":"IF('TSA Input'!J118=\"\",\"\",IF(OR('TSA Input'!J118=\"Yes\",'TSA Input'!J118=\"Contingent\"),'TSA Input'!F118,\"\"))","v":""},"","Required","Required"]
["",null,{"$f":"IF('TSA Input'!J119=\"\",\"\",IF(OR('TSA Input'!J119=\"Yes\",'TSA Input'!J119=\"Contingent\"),'TSA Input'!B119,\"Ineligible\"))","v":""},{"$f":"IF('TSA Input'!J119=\"\",\"\",IF(OR('TSA Input'!J119=\"Yes\",'TSA Input'!J119=\"Contingent\"),'TSA Input'!I119,\"\"))","v":""},{"$f":"IF('TSA Input'!J119=\"\",\"\",IF(OR('TSA Input'!J119=\"Yes\",'TSA Input'!J119=\"Contingent\"),'TSA Input'!C119,\"\"))","v":""},{"$f":"IF('TSA Input'!J119=\"\",\"\",IF(OR('TSA Input'!J119=\"Yes\",'TSA Input'!J119=\"Contingent\"),'TSA Input'!D119,\"\"))","v":""},{"$f":"IF('TSA Input'!J119=\"\",\"\",IF(OR('TSA Input'!J119=\"Yes\",'TSA Input'!J119=\"Contingent\"),'TSA Input'!G119,\"\"))","v":""},{"$f":"IF('TSA Input'!J119=\"\",\"\",IF(OR('TSA Input'!J119=\"Yes\",'TSA Input'!J119=\"Contingent\"),'TSA Input'!F119,\"\"))","v":""},"",{"$f":"IF('TSA Input'!J119=\"\",\"\",IF(OR('TSA Input'!J119=\"Yes\",'TSA Input'!J119=\"Contingent\"),'TSA Input'!D119,\"\"))","v":""},{"$f":"IF('TSA Input'!J119=\"\",\"\",IF(OR('TSA Input'!J119=\"Yes\",'TSA Input'!J119=\"Contingent\"),'TSA Input'!G119,\"\"))","v":""},{"$f":"IF('TSA Input'!J119=\"\",\"\",IF(OR('TSA Input'!J119=\"Yes\",'TSA Input'!J119=\"Contingent\"),'TSA Input'!F119,\"\"))","v":""},"","Required","Required"]
["",null,{"$f":"IF('TSA Input'!J120=\"\",\"\",IF(OR('TSA Input'!J120=\"Yes\",'TSA Input'!J120=\"Contingent\"),'TSA Input'!B120,\"Ineligible\"))","v":""},{"$f":"IF('TSA Input'!J120=\"\",\"\",IF(OR('TSA Input'!J120=\"Yes\",'TSA Input'!J120=\"Contingent\"),'TSA Input'!I120,\"\"))","v":""},{"$f":"IF('TSA Input'!J120=\"\",\"\",IF(OR('TSA Input'!J120=\"Yes\",'TSA Input'!J120=\"Contingent\"),'TSA Input'!C120,\"\"))","v":""},{"$f":"IF('TSA Input'!J120=\"\",\"\",IF(OR('TSA Input'!J120=\"Yes\",'TSA Input'!J120=\"Contingent\"),'TSA Input'!D120,\"\"))","v":""},{"$f":"IF('TSA Input'!J120=\"\",\"\",IF(OR('TSA Input'!J120=\"Yes\",'TSA Input'!J120=\"Contingent\"),'TSA Input'!G120,\"\"))","v":""},{"$f":"IF('TSA Input'!J120=\"\",\"\",IF(OR('TSA Input'!J120=\"Yes\",'TSA Input'!J120=\"Contingent\"),'TSA Input'!F120,\"\"))","v":""},"",{"$f":"IF('TSA Input'!J120=\"\",\"\",IF(OR('TSA Input'!J120=\"Yes\",'TSA Input'!J120=\"Contingent\"),'TSA Input'!D120,\"\"))","v":""},{"$f":"IF('TSA Input'!J120=\"\",\"\",IF(OR('TSA Input'!J120=\"Yes\",'TSA Input'!J120=\"Contingent\"),'TSA Input'!G120,\"\"))","v":""},{"$f":"IF('TSA Input'!J120=\"\",\"\",IF(OR('TSA Input'!J120=\"Yes\",'TSA Input'!J120=\"Contingent\"),'TSA Input'!F120,\"\"))","v":""},"","Required","Required"]
["",null,{"$f":"IF('TSA Input'!J121=\"\",\"\",IF(OR('TSA Input'!J121=\"Yes\",'TSA Input'!J121=\"Contingent\"),'TSA Input'!B121,\"Ineligible\"))","v":""},{"$f":"IF('TSA Input'!J121=\"\",\"\",IF(OR('TSA Input'!J121=\"Yes\",'TSA Input'!J121=\"Contingent\"),'TSA Input'!I121,\"\"))","v":""},{"$f":"IF('TSA Input'!J121=\"\",\"\",IF(OR('TSA Input'!J121=\"Yes\",'TSA Input'!J121=\"Contingent\"),'TSA Input'!C121,\"\"))","v":""},{"$f":"IF('TSA Input'!J121=\"\",\"\",IF(OR('TSA Input'!J121=\"Yes\",'TSA Input'!J121=\"Contingent\"),'TSA Input'!D121,\"\"))","v":""},{"$f":"IF('TSA Input'!J121=\"\",\"\",IF(OR('TSA Input'!J121=\"Yes\",'TSA Input'!J121=\"Contingent\"),'TSA Input'!G121,\"\"))","v":""},{"$f":"IF('TSA Input'!J121=\"\",\"\",IF(OR('TSA Input'!J121=\"Yes\",'TSA Input'!J121=\"Contingent\"),'TSA Input'!F121,\"\"))","v":""},"",{"$f":"IF('TSA Input'!J121=\"\",\"\",IF(OR('TSA Input'!J121=\"Yes\",'TSA Input'!J121=\"Contingent\"),'TSA Input'!D121,\"\"))","v":""},{"$f":"IF('TSA Input'!J121=\"\",\"\",IF(OR('TSA Input'!J121=\"Yes\",'TSA Input'!J121=\"Contingent\"),'TSA Input'!G121,\"\"))","v":""},{"$f":"IF('TSA Input'!J121=\"\",\"\",IF(OR('TSA Input'!J121=\"Yes\",'TSA Input'!J121=\"Contingent\"),'TSA Input'!F121,\"\"))","v":""},"","Required","Required"]
["",null,{"$f":"IF('TSA Input'!J122=\"\",\"\",IF(OR('TSA Input'!J122=\"Yes\",'TSA Input'!J122=\"Contingent\"),'TSA Input'!B122,\"Ineligible\"))","v":""},{"$f":"IF('TSA Input'!J122=\"\",\"\",IF(OR('TSA Input'!J122=\"Yes\",'TSA Input'!J122=\"Contingent\"),'TSA Input'!I122,\"\"))","v":""},{"$f":"IF('TSA Input'!J122=\"\",\"\",IF(OR('TSA Input'!J122=\"Yes\",'TSA Input'!J122=\"Contingent\"),'TSA Input'!C122,\"\"))","v":""},{"$f":"IF('TSA Input'!J122=\"\",\"\",IF(OR('TSA Input'!J122=\"Yes\",'TSA Input'!J122=\"Contingent\"),'TSA Input'!D122,\"\"))","v":""},{"$f":"IF('TSA Input'!J122=\"\",\"\",IF(OR('TSA Input'!J122=\"Yes\",'TSA Input'!J122=\"Contingent\"),'TSA Input'!G122,\"\"))","v":""},{"$f":"IF('TSA Input'!J122=\"\",\"\",IF(OR('TSA Input'!J122=\"Yes\",'TSA Input'!J122=\"Contingent\"),'TSA Input'!F122,\"\"))","v":""},"",{"$f":"IF('TSA Input'!J122=\"\",\"\",IF(OR('TSA Input'!J122=\"Yes\",'TSA Input'!J122=\"Contingent\"),'TSA Input'!D122,\"\"))","v":""},{"$f":"IF('TSA Input'!J122=\"\",\"\",IF(OR('TSA Input'!J122=\"Yes\",'TSA Input'!J122=\"Contingent\"),'TSA Input'!G122,\"\"))","v":""},{"$f":"IF('TSA Input'!J122=\"\",\"\",IF(OR('TSA Input'!J122=\"Yes\",'TSA Input'!J122=\"Contingent\"),'TSA Input'!F122,\"\"))","v":""},"","Required","Required"]
["",null,{"$f":"IF('TSA Input'!J123=\"\",\"\",IF(OR('TSA Input'!J123=\"Yes\",'TSA Input'!J123=\"Contingent\"),'TSA Input'!B123,\"Ineligible\"))","v":""},{"$f":"IF('TSA Input'!J123=\"\",\"\",IF(OR('TSA Input'!J123=\"Yes\",'TSA Input'!J123=\"Contingent\"),'TSA Input'!I123,\"\"))","v":""},{"$f":"IF('TSA Input'!J123=\"\",\"\",IF(OR('TSA Input'!J123=\"Yes\",'TSA Input'!J123=\"Contingent\"),'TSA Input'!C123,\"\"))","v":""},{"$f":"IF('TSA Input'!J123=\"\",\"\",IF(OR('TSA Input'!J123=\"Yes\",'TSA Input'!J123=\"Contingent\"),'TSA Input'!D123,\"\"))","v":""},{"$f":"IF('TSA Input'!J123=\"\",\"\",IF(OR('TSA Input'!J123=\"Yes\",'TSA Input'!J123=\"Contingent\"),'TSA Input'!G123,\"\"))","v":""},{"$f":"IF('TSA Input'!J123=\"\",\"\",IF(OR('TSA Input'!J123=\"Yes\",'TSA Input'!J123=\"Contingent\"),'TSA Input'!F123,\"\"))","v":""},"",{"$f":"IF('TSA Input'!J123=\"\",\"\",IF(OR('TSA Input'!J123=\"Yes\",'TSA Input'!J123=\"Contingent\"),'TSA Input'!D123,\"\"))","v":""},{"$f":"IF('TSA Input'!J123=\"\",\"\",IF(OR('TSA Input'!J123=\"Yes\",'TSA Input'!J123=\"Contingent\"),'TSA Input'!G123,\"\"))","v":""},{"$f":"IF('TSA Input'!J123=\"\",\"\",IF(OR('TSA Input'!J123=\"Yes\",'TSA Input'!J123=\"Contingent\"),'TSA Input'!F123,\"\"))","v":""},"","Required","Required"]
["",null,{"$f":"IF('TSA Input'!J124=\"\",\"\",IF(OR('TSA Input'!J124=\"Yes\",'TSA Input'!J124=\"Contingent\"),'TSA Input'!B124,\"Ineligible\"))","v":""},{"$f":"IF('TSA Input'!J124=\"\",\"\",IF(OR('TSA Input'!J124=\"Yes\",'TSA Input'!J124=\"Contingent\"),'TSA Input'!I124,\"\"))","v":""},{"$f":"IF('TSA Input'!J124=\"\",\"\",IF(OR('TSA Input'!J124=\"Yes\",'TSA Input'!J124=\"Contingent\"),'TSA Input'!C124,\"\"))","v":""},{"$f":"IF('TSA Input'!J124=\"\",\"\",IF(OR('TSA Input'!J124=\"Yes\",'TSA Input'!J124=\"Contingent\"),'TSA Input'!D124,\"\"))","v":""},{"$f":"IF('TSA Input'!J124=\"\",\"\",IF(OR('TSA Input'!J124=\"Yes\",'TSA Input'!J124=\"Contingent\"),'TSA Input'!G124,\"\"))","v":""},{"$f":"IF('TSA Input'!J124=\"\",\"\",IF(OR('TSA Input'!J124=\"Yes\",'TSA Input'!J124=\"Contingent\"),'TSA Input'!F124,\"\"))","v":""},"",{"$f":"IF('TSA Input'!J124=\"\",\"\",IF(OR('TSA Input'!J124=\"Yes\",'TSA Input'!J124=\"Contingent\"),'TSA Input'!D124,\"\"))","v":""},{"$f":"IF('TSA Input'!J124=\"\",\"\",IF(OR('TSA Input'!J124=\"Yes\",'TSA Input'!J124=\"Contingent\"),'TSA Input'!G124,\"\"))","v":""},{"$f":"IF('TSA Input'!J124=\"\",\"\",IF(OR('TSA Input'!J124=\"Yes\",'TSA Input'!J124=\"Contingent\"),'TSA Input'!F124,\"\"))","v":""},"","Required","Required"]
["",null,{"$f":"IF('TSA Input'!J125=\"\",\"\",IF(OR('TSA Input'!J125=\"Yes\",'TSA Input'!J125=\"Contingent\"),'TSA Input'!B125,\"Ineligible\"))","v":""},{"$f":"IF('TSA Input'!J125=\"\",\"\",IF(OR('TSA Input'!J125=\"Yes\",'TSA Input'!J125=\"Contingent\"),'TSA Input'!I125,\"\"))","v":""},{"$f":"IF('TSA Input'!J125=\"\",\"\",IF(OR('TSA Input'!J125=\"Yes\",'TSA Input'!J125=\"Contingent\"),'TSA Input'!C125,\"\"))","v":""},{"$f":"IF('TSA Input'!J125=\"\",\"\",IF(OR('TSA Input'!J125=\"Yes\",'TSA Input'!J125=\"Contingent\"),'TSA Input'!D125,\"\"))","v":""},{"$f":"IF('TSA Input'!J125=\"\",\"\",IF(OR('TSA Input'!J125=\"Yes\",'TSA Input'!J125=\"Contingent\"),'TSA Input'!G125,\"\"))","v":""},{"$f":"IF('TSA Input'!J125=\"\",\"\",IF(OR('TSA Input'!J125=\"Yes\",'TSA Input'!J125=\"Contingent\"),'TSA Input'!F125,\"\"))","v":""},"",{"$f":"IF('TSA Input'!J125=\"\",\"\",IF(OR('TSA Input'!J125=\"Yes\",'TSA Input'!J125=\"Contingent\"),'TSA Input'!D125,\"\"))","v":""},{"$f":"IF('TSA Input'!J125=\"\",\"\",IF(OR('TSA Input'!J125=\"Yes\",'TSA Input'!J125=\"Contingent\"),'TSA Input'!G125,\"\"))","v":""},{"$f":"IF('TSA Input'!J125=\"\",\"\",IF(OR('TSA Input'!J125=\"Yes\",'TSA Input'!J125=\"Contingent\"),'TSA Input'!F125,\"\"))","v":""},"","Required","Required"]
["",null,{"$f":"IF('TSA Input'!J126=\"\",\"\",IF(OR('TSA Input'!J126=\"Yes\",'TSA Input'!J126=\"Contingent\"),'TSA Input'!B126,\"Ineligible\"))","v":""},{"$f":"IF('TSA Input'!J126=\"\",\"\",IF(OR('TSA Input'!J126=\"Yes\",'TSA Input'!J126=\"Contingent\"),'TSA Input'!I126,\"\"))","v":""},{"$f":"IF('TSA Input'!J126=\"\",\"\",IF(OR('TSA Input'!J126=\"Yes\",'TSA Input'!J126=\"Contingent\"),'TSA Input'!C126,\"\"))","v":""},{"$f":"IF('TSA Input'!J126=\"\",\"\",IF(OR('TSA Input'!J126=\"Yes\",'TSA Input'!J126=\"Contingent\"),'TSA Input'!D126,\"\"))","v":""},{"$f":"IF('TSA Input'!J126=\"\",\"\",IF(OR('TSA Input'!J126=\"Yes\",'TSA Input'!J126=\"Contingent\"),'TSA Input'!G126,\"\"))","v":""},{"$f":"IF('TSA Input'!J126=\"\",\"\",IF(OR('TSA Input'!J126=\"Yes\",'TSA Input'!J126=\"Contingent\"),'TSA Input'!F126,\"\"))","v":""},"",{"$f":"IF('TSA Input'!J126=\"\",\"\",IF(OR('TSA Input'!J126=\"Yes\",'TSA Input'!J126=\"Contingent\"),'TSA Input'!D126,\"\"))","v":""},{"$f":"IF('TSA Input'!J126=\"\",\"\",IF(OR('TSA Input'!J126=\"Yes\",'TSA Input'!J126=\"Contingent\"),'TSA Input'!G126,\"\"))","v":""},{"$f":"IF('TSA Input'!J126=\"\",\"\",IF(OR('TSA Input'!J126=\"Yes\",'TSA Input'!J126=\"Contingent\"),'TSA Input'!F126,\"\"))","v":""},"","Required","Required"]
["",null,{"$f":"IF('TSA Input'!J127=\"\",\"\",IF(OR('TSA Input'!J127=\"Yes\",'TSA Input'!J127=\"Contingent\"),'TSA Input'!B127,\"Ineligible\"))","v":""},{"$f":"IF('TSA Input'!J127=\"\",\"\",IF(OR('TSA Input'!J127=\"Yes\",'TSA Input'!J127=\"Contingent\"),'TSA Input'!I127,\"\"))","v":""},{"$f":"IF('TSA Input'!J127=\"\",\"\",IF(OR('TSA Input'!J127=\"Yes\",'TSA Input'!J127=\"Contingent\"),'TSA Input'!C127,\"\"))","v":""},{"$f":"IF('TSA Input'!J127=\"\",\"\",IF(OR('TSA Input'!J127=\"Yes\",'TSA Input'!J127=\"Contingent\"),'TSA Input'!D127,\"\"))","v":""},{"$f":"IF('TSA Input'!J127=\"\",\"\",IF(OR('TSA Input'!J127=\"Yes\",'TSA Input'!J127=\"Contingent\"),'TSA Input'!G127,\"\"))","v":""},{"$f":"IF('TSA Input'!J127=\"\",\"\",IF(OR('TSA Input'!J127=\"Yes\",'TSA Input'!J127=\"Contingent\"),'TSA Input'!F127,\"\"))","v":""},"",{"$f":"IF('TSA Input'!J127=\"\",\"\",IF(OR('TSA Input'!J127=\"Yes\",'TSA Input'!J127=\"Contingent\"),'TSA Input'!D127,\"\"))","v":""},{"$f":"IF('TSA Input'!J127=\"\",\"\",IF(OR('TSA Input'!J127=\"Yes\",'TSA Input'!J127=\"Contingent\"),'TSA Input'!G127,\"\"))","v":""},{"$f":"IF('TSA Input'!J127=\"\",\"\",IF(OR('TSA Input'!J127=\"Yes\",'TSA Input'!J127=\"Contingent\"),'TSA Input'!F127,\"\"))","v":""},"","Required","Required"]
["",null,{"$f":"IF('TSA Input'!J128=\"\",\"\",IF(OR('TSA Input'!J128=\"Yes\",'TSA Input'!J128=\"Contingent\"),'TSA Input'!B128,\"Ineligible\"))","v":""},{"$f":"IF('TSA Input'!J128=\"\",\"\",IF(OR('TSA Input'!J128=\"Yes\",'TSA Input'!J128=\"Contingent\"),'TSA Input'!I128,\"\"))","v":""},{"$f":"IF('TSA Input'!J128=\"\",\"\",IF(OR('TSA Input'!J128=\"Yes\",'TSA Input'!J128=\"Contingent\"),'TSA Input'!C128,\"\"))","v":""},{"$f":"IF('TSA Input'!J128=\"\",\"\",IF(OR('TSA Input'!J128=\"Yes\",'TSA Input'!J128=\"Contingent\"),'TSA Input'!D128,\"\"))","v":""},{"$f":"IF('TSA Input'!J128=\"\",\"\",IF(OR('TSA Input'!J128=\"Yes\",'TSA Input'!J128=\"Contingent\"),'TSA Input'!G128,\"\"))","v":""},{"$f":"IF('TSA Input'!J128=\"\",\"\",IF(OR('TSA Input'!J128=\"Yes\",'TSA Input'!J128=\"Contingent\"),'TSA Input'!F128,\"\"))","v":""},"",{"$f":"IF('TSA Input'!J128=\"\",\"\",IF(OR('TSA Input'!J128=\"Yes\",'TSA Input'!J128=\"Contingent\"),'TSA Input'!D128,\"\"))","v":""},{"$f":"IF('TSA Input'!J128=\"\",\"\",IF(OR('TSA Input'!J128=\"Yes\",'TSA Input'!J128=\"Contingent\"),'TSA Input'!G128,\"\"))","v":""},{"$f":"IF('TSA Input'!J128=\"\",\"\",IF(OR('TSA Input'!J128=\"Yes\",'TSA Input'!J128=\"Contingent\"),'TSA Input'!F128,\"\"))","v":""},"","Required","Required"]
["",null,{"$f":"IF('TSA Input'!J129=\"\",\"\",IF(OR('TSA Input'!J129=\"Yes\",'TSA Input'!J129=\"Contingent\"),'TSA Input'!B129,\"Ineligible\"))","v":""},{"$f":"IF('TSA Input'!J129=\"\",\"\",IF(OR('TSA Input'!J129=\"Yes\",'TSA Input'!J129=\"Contingent\"),'TSA Input'!I129,\"\"))","v":""},{"$f":"IF('TSA Input'!J129=\"\",\"\",IF(OR('TSA Input'!J129=\"Yes\",'TSA Input'!J129=\"Contingent\"),'TSA Input'!C129,\"\"))","v":""},{"$f":"IF('TSA Input'!J129=\"\",\"\",IF(OR('TSA Input'!J129=\"Yes\",'TSA Input'!J129=\"Contingent\"),'TSA Input'!D129,\"\"))","v":""},{"$f":"IF('TSA Input'!J129=\"\",\"\",IF(OR('TSA Input'!J129=\"Yes\",'TSA Input'!J129=\"Contingent\"),'TSA Input'!G129,\"\"))","v":""},{"$f":"IF('TSA Input'!J129=\"\",\"\",IF(OR('TSA Input'!J129=\"Yes\",'TSA Input'!J129=\"Contingent\"),'TSA Input'!F129,\"\"))","v":""},"",{"$f":"IF('TSA Input'!J129=\"\",\"\",IF(OR('TSA Input'!J129=\"Yes\",'TSA Input'!J129=\"Contingent\"),'TSA Input'!D129,\"\"))","v":""},{"$f":"IF('TSA Input'!J129=\"\",\"\",IF(OR('TSA Input'!J129=\"Yes\",'TSA Input'!J129=\"Contingent\"),'TSA Input'!G129,\"\"))","v":""},{"$f":"IF('TSA Input'!J129=\"\",\"\",IF(OR('TSA Input'!J129=\"Yes\",'TSA Input'!J129=\"Contingent\"),'TSA Input'!F129,\"\"))","v":""},"","Required","Required"]
["",null,{"$f":"IF('TSA Input'!J130=\"\",\"\",IF(OR('TSA Input'!J130=\"Yes\",'TSA Input'!J130=\"Contingent\"),'TSA Input'!B130,\"Ineligible\"))","v":""},{"$f":"IF('TSA Input'!J130=\"\",\"\",IF(OR('TSA Input'!J130=\"Yes\",'TSA Input'!J130=\"Contingent\"),'TSA Input'!I130,\"\"))","v":""},{"$f":"IF('TSA Input'!J130=\"\",\"\",IF(OR('TSA Input'!J130=\"Yes\",'TSA Input'!J130=\"Contingent\"),'TSA Input'!C130,\"\"))","v":""},{"$f":"IF('TSA Input'!J130=\"\",\"\",IF(OR('TSA Input'!J130=\"Yes\",'TSA Input'!J130=\"Contingent\"),'TSA Input'!D130,\"\"))","v":""},{"$f":"IF('TSA Input'!J130=\"\",\"\",IF(OR('TSA Input'!J130=\"Yes\",'TSA Input'!J130=\"Contingent\"),'TSA Input'!G130,\"\"))","v":""},{"$f":"IF('TSA Input'!J130=\"\",\"\",IF(OR('TSA Input'!J130=\"Yes\",'TSA Input'!J130=\"Contingent\"),'TSA Input'!F130,\"\"))","v":""},"",{"$f":"IF('TSA Input'!J130=\"\",\"\",IF(OR('TSA Input'!J130=\"Yes\",'TSA Input'!J130=\"Contingent\"),'TSA Input'!D130,\"\"))","v":""},{"$f":"IF('TSA Input'!J130=\"\",\"\",IF(OR('TSA Input'!J130=\"Yes\",'TSA Input'!J130=\"Contingent\"),'TSA Input'!G130,\"\"))","v":""},{"$f":"IF('TSA Input'!J130=\"\",\"\",IF(OR('TSA Input'!J130=\"Yes\",'TSA Input'!J130=\"Contingent\"),'TSA Input'!F130,\"\"))","v":""},"","Required","Required"]
["",null,{"$f":"IF('TSA Input'!J131=\"\",\"\",IF(OR('TSA Input'!J131=\"Yes\",'TSA Input'!J131=\"Contingent\"),'TSA Input'!B131,\"Ineligible\"))","v":""},{"$f":"IF('TSA Input'!J131=\"\",\"\",IF(OR('TSA Input'!J131=\"Yes\",'TSA Input'!J131=\"Contingent\"),'TSA Input'!I131,\"\"))","v":""},{"$f":"IF('TSA Input'!J131=\"\",\"\",IF(OR('TSA Input'!J131=\"Yes\",'TSA Input'!J131=\"Contingent\"),'TSA Input'!C131,\"\"))","v":""},{"$f":"IF('TSA Input'!J131=\"\",\"\",IF(OR('TSA Input'!J131=\"Yes\",'TSA Input'!J131=\"Contingent\"),'TSA Input'!D131,\"\"))","v":""},{"$f":"IF('TSA Input'!J131=\"\",\"\",IF(OR('TSA Input'!J131=\"Yes\",'TSA Input'!J131=\"Contingent\"),'TSA Input'!G131,\"\"))","v":""},{"$f":"IF('TSA Input'!J131=\"\",\"\",IF(OR('TSA Input'!J131=\"Yes\",'TSA Input'!J131=\"Contingent\"),'TSA Input'!F131,\"\"))","v":""},"",{"$f":"IF('TSA Input'!J131=\"\",\"\",IF(OR('TSA Input'!J131=\"Yes\",'TSA Input'!J131=\"Contingent\"),'TSA Input'!D131,\"\"))","v":""},{"$f":"IF('TSA Input'!J131=\"\",\"\",IF(OR('TSA Input'!J131=\"Yes\",'TSA Input'!J131=\"Contingent\"),'TSA Input'!G131,\"\"))","v":""},{"$f":"IF('TSA Input'!J131=\"\",\"\",IF(OR('TSA Input'!J131=\"Yes\",'TSA Input'!J131=\"Contingent\"),'TSA Input'!F131,\"\"))","v":""},"","Required","Required"]
["",null,{"$f":"IF('TSA Input'!J132=\"\",\"\",IF(OR('TSA Input'!J132=\"Yes\",'TSA Input'!J132=\"Contingent\"),'TSA Input'!B132,\"Ineligible\"))","v":""},{"$f":"IF('TSA Input'!J132=\"\",\"\",IF(OR('TSA Input'!J132=\"Yes\",'TSA Input'!J132=\"Contingent\"),'TSA Input'!I132,\"\"))","v":""},{"$f":"IF('TSA Input'!J132=\"\",\"\",IF(OR('TSA Input'!J132=\"Yes\",'TSA Input'!J132=\"Contingent\"),'TSA Input'!C132,\"\"))","v":""},{"$f":"IF('TSA Input'!J132=\"\",\"\",IF(OR('TSA Input'!J132=\"Yes\",'TSA Input'!J132=\"Contingent\"),'TSA Input'!D132,\"\"))","v":""},{"$f":"IF('TSA Input'!J132=\"\",\"\",IF(OR('TSA Input'!J132=\"Yes\",'TSA Input'!J132=\"Contingent\"),'TSA Input'!G132,\"\"))","v":""},{"$f":"IF('TSA Input'!J132=\"\",\"\",IF(OR('TSA Input'!J132=\"Yes\",'TSA Input'!J132=\"Contingent\"),'TSA Input'!F132,\"\"))","v":""},{"$f":"IF($C170=\"\",\"\",SUM(F170:H170))","v":""},{"$f":"IF('TSA Input'!J132=\"\",\"\",IF(OR('TSA Input'!J132=\"Yes\",'TSA Input'!J132=\"Contingent\"),'TSA Input'!D132,\"\"))","v":""},{"$f":"IF('TSA Input'!J132=\"\",\"\",IF(OR('TSA Input'!J132=\"Yes\",'TSA Input'!J132=\"Contingent\"),'TSA Input'!G132,\"\"))","v":""},{"$f":"IF('TSA Input'!J132=\"\",\"\",IF(OR('TSA Input'!J132=\"Yes\",'TSA Input'!J132=\"Contingent\"),'TSA Input'!F132,\"\"))","v":""},{"$f":"IF($C170=\"\",\"\",SUM(J170:L170))","v":""},"Required","Required"]
["",null,{"$f":"IF('TSA Input'!J133=\"\",\"\",IF(OR('TSA Input'!J133=\"Yes\",'TSA Input'!J133=\"Contingent\"),'TSA Input'!B133,\"Ineligible\"))","v":""},{"$f":"IF('TSA Input'!J133=\"\",\"\",IF(OR('TSA Input'!J133=\"Yes\",'TSA Input'!J133=\"Contingent\"),'TSA Input'!I133,\"\"))","v":""},{"$f":"IF('TSA Input'!J133=\"\",\"\",IF(OR('TSA Input'!J133=\"Yes\",'TSA Input'!J133=\"Contingent\"),'TSA Input'!C133,\"\"))","v":""},{"$f":"IF('TSA Input'!J133=\"\",\"\",IF(OR('TSA Input'!J133=\"Yes\",'TSA Input'!J133=\"Contingent\"),'TSA Input'!D133,\"\"))","v":""},{"$f":"IF('TSA Input'!J133=\"\",\"\",IF(OR('TSA Input'!J133=\"Yes\",'TSA Input'!J133=\"Contingent\"),'TSA Input'!G133,\"\"))","v":""},{"$f":"IF('TSA Input'!J133=\"\",\"\",IF(OR('TSA Input'!J133=\"Yes\",'TSA Input'!J133=\"Contingent\"),'TSA Input'!F133,\"\"))","v":""},"",{"$f":"IF('TSA Input'!J133=\"\",\"\",IF(OR('TSA Input'!J133=\"Yes\",'TSA Input'!J133=\"Contingent\"),'TSA Input'!D133,\"\"))","v":""},{"$f":"IF('TSA Input'!J133=\"\",\"\",IF(OR('TSA Input'!J133=\"Yes\",'TSA Input'!J133=\"Contingent\"),'TSA Input'!G133,\"\"))","v":""},{"$f":"IF('TSA Input'!J133=\"\",\"\",IF(OR('TSA Input'!J133=\"Yes\",'TSA Input'!J133=\"Contingent\"),'TSA Input'!F133,\"\"))","v":""},"","Required","Required"]
["",null,{"$f":"IF('TSA Input'!J134=\"\",\"\",IF(OR('TSA Input'!J134=\"Yes\",'TSA Input'!J134=\"Contingent\"),'TSA Input'!B134,\"Ineligible\"))","v":""},{"$f":"IF('TSA Input'!J134=\"\",\"\",IF(OR('TSA Input'!J134=\"Yes\",'TSA Input'!J134=\"Contingent\"),'TSA Input'!I134,\"\"))","v":""},{"$f":"IF('TSA Input'!J134=\"\",\"\",IF(OR('TSA Input'!J134=\"Yes\",'TSA Input'!J134=\"Contingent\"),'TSA Input'!C134,\"\"))","v":""},{"$f":"IF('TSA Input'!J134=\"\",\"\",IF(OR('TSA Input'!J134=\"Yes\",'TSA Input'!J134=\"Contingent\"),'TSA Input'!D134,\"\"))","v":""},{"$f":"IF('TSA Input'!J134=\"\",\"\",IF(OR('TSA Input'!J134=\"Yes\",'TSA Input'!J134=\"Contingent\"),'TSA Input'!G134,\"\"))","v":""},{"$f":"IF('TSA Input'!J134=\"\",\"\",IF(OR('TSA Input'!J134=\"Yes\",'TSA Input'!J134=\"Contingent\"),'TSA Input'!F134,\"\"))","v":""},"",{"$f":"IF('TSA Input'!J134=\"\",\"\",IF(OR('TSA Input'!J134=\"Yes\",'TSA Input'!J134=\"Contingent\"),'TSA Input'!D134,\"\"))","v":""},{"$f":"IF('TSA Input'!J134=\"\",\"\",IF(OR('TSA Input'!J134=\"Yes\",'TSA Input'!J134=\"Contingent\"),'TSA Input'!G134,\"\"))","v":""},{"$f":"IF('TSA Input'!J134=\"\",\"\",IF(OR('TSA Input'!J134=\"Yes\",'TSA Input'!J134=\"Contingent\"),'TSA Input'!F134,\"\"))","v":""},"","Required","Required"]
["",null,{"$f":"IF('TSA Input'!J135=\"\",\"\",IF(OR('TSA Input'!J135=\"Yes\",'TSA Input'!J135=\"Contingent\"),'TSA Input'!B135,\"Ineligible\"))","v":""},{"$f":"IF('TSA Input'!J135=\"\",\"\",IF(OR('TSA Input'!J135=\"Yes\",'TSA Input'!J135=\"Contingent\"),'TSA Input'!I135,\"\"))","v":""},{"$f":"IF('TSA Input'!J135=\"\",\"\",IF(OR('TSA Input'!J135=\"Yes\",'TSA Input'!J135=\"Contingent\"),'TSA Input'!C135,\"\"))","v":""},{"$f":"IF('TSA Input'!J135=\"\",\"\",IF(OR('TSA Input'!J135=\"Yes\",'TSA Input'!J135=\"Contingent\"),'TSA Input'!D135,\"\"))","v":""},{"$f":"IF('TSA Input'!J135=\"\",\"\",IF(OR('TSA Input'!J135=\"Yes\",'TSA Input'!J135=\"Contingent\"),'TSA Input'!G135,\"\"))","v":""},{"$f":"IF('TSA Input'!J135=\"\",\"\",IF(OR('TSA Input'!J135=\"Yes\",'TSA Input'!J135=\"Contingent\"),'TSA Input'!F135,\"\"))","v":""},"",{"$f":"IF('TSA Input'!J135=\"\",\"\",IF(OR('TSA Input'!J135=\"Yes\",'TSA Input'!J135=\"Contingent\"),'TSA Input'!D135,\"\"))","v":""},{"$f":"IF('TSA Input'!J135=\"\",\"\",IF(OR('TSA Input'!J135=\"Yes\",'TSA Input'!J135=\"Contingent\"),'TSA Input'!G135,\"\"))","v":""},{"$f":"IF('TSA Input'!J135=\"\",\"\",IF(OR('TSA Input'!J135=\"Yes\",'TSA Input'!J135=\"Contingent\"),'TSA Input'!F135,\"\"))","v":""},"","Required","Required"]
["",null,{"$f":"IF('TSA Input'!J136=\"\",\"\",IF(OR('TSA Input'!J136=\"Yes\",'TSA Input'!J136=\"Contingent\"),'TSA Input'!B136,\"Ineligible\"))","v":""},{"$f":"IF('TSA Input'!J136=\"\",\"\",IF(OR('TSA Input'!J136=\"Yes\",'TSA Input'!J136=\"Contingent\"),'TSA Input'!I136,\"\"))","v":""},{"$f":"IF('TSA Input'!J136=\"\",\"\",IF(OR('TSA Input'!J136=\"Yes\",'TSA Input'!J136=\"Contingent\"),'TSA Input'!C136,\"\"))","v":""},{"$f":"IF('TSA Input'!J136=\"\",\"\",IF(OR('TSA Input'!J136=\"Yes\",'TSA Input'!J136=\"Contingent\"),'TSA Input'!D136,\"\"))","v":""},{"$f":"IF('TSA Input'!J136=\"\",\"\",IF(OR('TSA Input'!J136=\"Yes\",'TSA Input'!J136=\"Contingent\"),'TSA Input'!G136,\"\"))","v":""},{"$f":"IF('TSA Input'!J136=\"\",\"\",IF(OR('TSA Input'!J136=\"Yes\",'TSA Input'!J136=\"Contingent\"),'TSA Input'!F136,\"\"))","v":""},"",{"$f":"IF('TSA Input'!J136=\"\",\"\",IF(OR('TSA Input'!J136=\"Yes\",'TSA Input'!J136=\"Contingent\"),'TSA Input'!D136,\"\"))","v":""},{"$f":"IF('TSA Input'!J136=\"\",\"\",IF(OR('TSA Input'!J136=\"Yes\",'TSA Input'!J136=\"Contingent\"),'TSA Input'!G136,\"\"))","v":""},{"$f":"IF('TSA Input'!J136=\"\",\"\",IF(OR('TSA Input'!J136=\"Yes\",'TSA Input'!J136=\"Contingent\"),'TSA Input'!F136,\"\"))","v":""},"","Required","Required"]
["",null,{"$f":"IF('TSA Input'!J137=\"\",\"\",IF(OR('TSA Input'!J137=\"Yes\",'TSA Input'!J137=\"Contingent\"),'TSA Input'!B137,\"Ineligible\"))","v":""},{"$f":"IF('TSA Input'!J137=\"\",\"\",IF(OR('TSA Input'!J137=\"Yes\",'TSA Input'!J137=\"Contingent\"),'TSA Input'!I137,\"\"))","v":""},{"$f":"IF('TSA Input'!J137=\"\",\"\",IF(OR('TSA Input'!J137=\"Yes\",'TSA Input'!J137=\"Contingent\"),'TSA Input'!C137,\"\"))","v":""},{"$f":"IF('TSA Input'!J137=\"\",\"\",IF(OR('TSA Input'!J137=\"Yes\",'TSA Input'!J137=\"Contingent\"),'TSA Input'!D137,\"\"))","v":""},{"$f":"IF('TSA Input'!J137=\"\",\"\",IF(OR('TSA Input'!J137=\"Yes\",'TSA Input'!J137=\"Contingent\"),'TSA Input'!G137,\"\"))","v":""},{"$f":"IF('TSA Input'!J137=\"\",\"\",IF(OR('TSA Input'!J137=\"Yes\",'TSA Input'!J137=\"Contingent\"),'TSA Input'!F137,\"\"))","v":""},"",{"$f":"IF('TSA Input'!J137=\"\",\"\",IF(OR('TSA Input'!J137=\"Yes\",'TSA Input'!J137=\"Contingent\"),'TSA Input'!D137,\"\"))","v":""},{"$f":"IF('TSA Input'!J137=\"\",\"\",IF(OR('TSA Input'!J137=\"Yes\",'TSA Input'!J137=\"Contingent\"),'TSA Input'!G137,\"\"))","v":""},{"$f":"IF('TSA Input'!J137=\"\",\"\",IF(OR('TSA Input'!J137=\"Yes\",'TSA Input'!J137=\"Contingent\"),'TSA Input'!F137,\"\"))","v":""},"","Required","Required"]
["",null,{"$f":"IF('TSA Input'!J138=\"\",\"\",IF(OR('TSA Input'!J138=\"Yes\",'TSA Input'!J138=\"Contingent\"),'TSA Input'!B138,\"Ineligible\"))","v":""},{"$f":"IF('TSA Input'!J138=\"\",\"\",IF(OR('TSA Input'!J138=\"Yes\",'TSA Input'!J138=\"Contingent\"),'TSA Input'!I138,\"\"))","v":""},{"$f":"IF('TSA Input'!J138=\"\",\"\",IF(OR('TSA Input'!J138=\"Yes\",'TSA Input'!J138=\"Contingent\"),'TSA Input'!C138,\"\"))","v":""},{"$f":"IF('TSA Input'!J138=\"\",\"\",IF(OR('TSA Input'!J138=\"Yes\",'TSA Input'!J138=\"Contingent\"),'TSA Input'!D138,\"\"))","v":""},{"$f":"IF('TSA Input'!J138=\"\",\"\",IF(OR('TSA Input'!J138=\"Yes\",'TSA Input'!J138=\"Contingent\"),'TSA Input'!G138,\"\"))","v":""},{"$f":"IF('TSA Input'!J138=\"\",\"\",IF(OR('TSA Input'!J138=\"Yes\",'TSA Input'!J138=\"Contingent\"),'TSA Input'!F138,\"\"))","v":""},"",{"$f":"IF('TSA Input'!J138=\"\",\"\",IF(OR('TSA Input'!J138=\"Yes\",'TSA Input'!J138=\"Contingent\"),'TSA Input'!D138,\"\"))","v":""},{"$f":"IF('TSA Input'!J138=\"\",\"\",IF(OR('TSA Input'!J138=\"Yes\",'TSA Input'!J138=\"Contingent\"),'TSA Input'!G138,\"\"))","v":""},{"$f":"IF('TSA Input'!J138=\"\",\"\",IF(OR('TSA Input'!J138=\"Yes\",'TSA Input'!J138=\"Contingent\"),'TSA Input'!F138,\"\"))","v":""},"","Required","Required"]
["",null,{"$f":"IF('TSA Input'!J139=\"\",\"\",IF(OR('TSA Input'!J139=\"Yes\",'TSA Input'!J139=\"Contingent\"),'TSA Input'!B139,\"Ineligible\"))","v":""},{"$f":"IF('TSA Input'!J139=\"\",\"\",IF(OR('TSA Input'!J139=\"Yes\",'TSA Input'!J139=\"Contingent\"),'TSA Input'!I139,\"\"))","v":""},{"$f":"IF('TSA Input'!J139=\"\",\"\",IF(OR('TSA Input'!J139=\"Yes\",'TSA Input'!J139=\"Contingent\"),'TSA Input'!C139,\"\"))","v":""},{"$f":"IF('TSA Input'!J139=\"\",\"\",IF(OR('TSA Input'!J139=\"Yes\",'TSA Input'!J139=\"Contingent\"),'TSA Input'!D139,\"\"))","v":""},{"$f":"IF('TSA Input'!J139=\"\",\"\",IF(OR('TSA Input'!J139=\"Yes\",'TSA Input'!J139=\"Contingent\"),'TSA Input'!G139,\"\"))","v":""},{"$f":"IF('TSA Input'!J139=\"\",\"\",IF(OR('TSA Input'!J139=\"Yes\",'TSA Input'!J139=\"Contingent\"),'TSA Input'!F139,\"\"))","v":""},"",{"$f":"IF('TSA Input'!J139=\"\",\"\",IF(OR('TSA Input'!J139=\"Yes\",'TSA Input'!J139=\"Contingent\"),'TSA Input'!D139,\"\"))","v":""},{"$f":"IF('TSA Input'!J139=\"\",\"\",IF(OR('TSA Input'!J139=\"Yes\",'TSA Input'!J139=\"Contingent\"),'TSA Input'!G139,\"\"))","v":""},{"$f":"IF('TSA Input'!J139=\"\",\"\",IF(OR('TSA Input'!J139=\"Yes\",'TSA Input'!J139=\"Contingent\"),'TSA Input'!F139,\"\"))","v":""},"","Required","Required"]
["",null,{"$f":"IF('TSA Input'!J140=\"\",\"\",IF(OR('TSA Input'!J140=\"Yes\",'TSA Input'!J140=\"Contingent\"),'TSA Input'!B140,\"Ineligible\"))","v":""},{"$f":"IF('TSA Input'!J140=\"\",\"\",IF(OR('TSA Input'!J140=\"Yes\",'TSA Input'!J140=\"Contingent\"),'TSA Input'!I140,\"\"))","v":""},{"$f":"IF('TSA Input'!J140=\"\",\"\",IF(OR('TSA Input'!J140=\"Yes\",'TSA Input'!J140=\"Contingent\"),'TSA Input'!C140,\"\"))","v":""},{"$f":"IF('TSA Input'!J140=\"\",\"\",IF(OR('TSA Input'!J140=\"Yes\",'TSA Input'!J140=\"Contingent\"),'TSA Input'!D140,\"\"))","v":""},{"$f":"IF('TSA Input'!J140=\"\",\"\",IF(OR('TSA Input'!J140=\"Yes\",'TSA Input'!J140=\"Contingent\"),'TSA Input'!G140,\"\"))","v":""},{"$f":"IF('TSA Input'!J140=\"\",\"\",IF(OR('TSA Input'!J140=\"Yes\",'TSA Input'!J140=\"Contingent\"),'TSA Input'!F140,\"\"))","v":""},"",{"$f":"IF('TSA Input'!J140=\"\",\"\",IF(OR('TSA Input'!J140=\"Yes\",'TSA Input'!J140=\"Contingent\"),'TSA Input'!D140,\"\"))","v":""},{"$f":"IF('TSA Input'!J140=\"\",\"\",IF(OR('TSA Input'!J140=\"Yes\",'TSA Input'!J140=\"Contingent\"),'TSA Input'!G140,\"\"))","v":""},{"$f":"IF('TSA Input'!J140=\"\",\"\",IF(OR('TSA Input'!J140=\"Yes\",'TSA Input'!J140=\"Contingent\"),'TSA Input'!F140,\"\"))","v":""},"","Required","Required"]
["",null,{"$f":"IF('TSA Input'!J141=\"\",\"\",IF(OR('TSA Input'!J141=\"Yes\",'TSA Input'!J141=\"Contingent\"),'TSA Input'!B141,\"Ineligible\"))","v":""},{"$f":"IF('TSA Input'!J141=\"\",\"\",IF(OR('TSA Input'!J141=\"Yes\",'TSA Input'!J141=\"Contingent\"),'TSA Input'!I141,\"\"))","v":""},{"$f":"IF('TSA Input'!J141=\"\",\"\",IF(OR('TSA Input'!J141=\"Yes\",'TSA Input'!J141=\"Contingent\"),'TSA Input'!C141,\"\"))","v":""},{"$f":"IF('TSA Input'!J141=\"\",\"\",IF(OR('TSA Input'!J141=\"Yes\",'TSA Input'!J141=\"Contingent\"),'TSA Input'!D141,\"\"))","v":""},{"$f":"IF('TSA Input'!J141=\"\",\"\",IF(OR('TSA Input'!J141=\"Yes\",'TSA Input'!J141=\"Contingent\"),'TSA Input'!G141,\"\"))","v":""},{"$f":"IF('TSA Input'!J141=\"\",\"\",IF(OR('TSA Input'!J141=\"Yes\",'TSA Input'!J141=\"Contingent\"),'TSA Input'!F141,\"\"))","v":""},"",{"$f":"IF('TSA Input'!J141=\"\",\"\",IF(OR('TSA Input'!J141=\"Yes\",'TSA Input'!J141=\"Contingent\"),'TSA Input'!D141,\"\"))","v":""},{"$f":"IF('TSA Input'!J141=\"\",\"\",IF(OR('TSA Input'!J141=\"Yes\",'TSA Input'!J141=\"Contingent\"),'TSA Input'!G141,\"\"))","v":""},{"$f":"IF('TSA Input'!J141=\"\",\"\",IF(OR('TSA Input'!J141=\"Yes\",'TSA Input'!J141=\"Contingent\"),'TSA Input'!F141,\"\"))","v":""},"","Required","Required"]
["",null,{"$f":"IF('TSA Input'!J142=\"\",\"\",IF(OR('TSA Input'!J142=\"Yes\",'TSA Input'!J142=\"Contingent\"),'TSA Input'!B142,\"Ineligible\"))","v":""},{"$f":"IF('TSA Input'!J142=\"\",\"\",IF(OR('TSA Input'!J142=\"Yes\",'TSA Input'!J142=\"Contingent\"),'TSA Input'!I142,\"\"))","v":""},{"$f":"IF('TSA Input'!J142=\"\",\"\",IF(OR('TSA Input'!J142=\"Yes\",'TSA Input'!J142=\"Contingent\"),'TSA Input'!C142,\"\"))","v":""},{"$f":"IF('TSA Input'!J142=\"\",\"\",IF(OR('TSA Input'!J142=\"Yes\",'TSA Input'!J142=\"Contingent\"),'TSA Input'!D142,\"\"))","v":""},{"$f":"IF('TSA Input'!J142=\"\",\"\",IF(OR('TSA Input'!J142=\"Yes\",'TSA Input'!J142=\"Contingent\"),'TSA Input'!G142,\"\"))","v":""},{"$f":"IF('TSA Input'!J142=\"\",\"\",IF(OR('TSA Input'!J142=\"Yes\",'TSA Input'!J142=\"Contingent\"),'TSA Input'!F142,\"\"))","v":""},"",{"$f":"IF('TSA Input'!J142=\"\",\"\",IF(OR('TSA Input'!J142=\"Yes\",'TSA Input'!J142=\"Contingent\"),'TSA Input'!D142,\"\"))","v":""},{"$f":"IF('TSA Input'!J142=\"\",\"\",IF(OR('TSA Input'!J142=\"Yes\",'TSA Input'!J142=\"Contingent\"),'TSA Input'!G142,\"\"))","v":""},{"$f":"IF('TSA Input'!J142=\"\",\"\",IF(OR('TSA Input'!J142=\"Yes\",'TSA Input'!J142=\"Contingent\"),'TSA Input'!F142,\"\"))","v":""},"","Required","Required"]
["",null,{"$f":"IF('TSA Input'!J143=\"\",\"\",IF(OR('TSA Input'!J143=\"Yes\",'TSA Input'!J143=\"Contingent\"),'TSA Input'!B143,\"Ineligible\"))","v":""},{"$f":"IF('TSA Input'!J143=\"\",\"\",IF(OR('TSA Input'!J143=\"Yes\",'TSA Input'!J143=\"Contingent\"),'TSA Input'!I143,\"\"))","v":""},{"$f":"IF('TSA Input'!J143=\"\",\"\",IF(OR('TSA Input'!J143=\"Yes\",'TSA Input'!J143=\"Contingent\"),'TSA Input'!C143,\"\"))","v":""},{"$f":"IF('TSA Input'!J143=\"\",\"\",IF(OR('TSA Input'!J143=\"Yes\",'TSA Input'!J143=\"Contingent\"),'TSA Input'!D143,\"\"))","v":""},{"$f":"IF('TSA Input'!J143=\"\",\"\",IF(OR('TSA Input'!J143=\"Yes\",'TSA Input'!J143=\"Contingent\"),'TSA Input'!G143,\"\"))","v":""},{"$f":"IF('TSA Input'!J143=\"\",\"\",IF(OR('TSA Input'!J143=\"Yes\",'TSA Input'!J143=\"Contingent\"),'TSA Input'!F143,\"\"))","v":""},"",{"$f":"IF('TSA Input'!J143=\"\",\"\",IF(OR('TSA Input'!J143=\"Yes\",'TSA Input'!J143=\"Contingent\"),'TSA Input'!D143,\"\"))","v":""},{"$f":"IF('TSA Input'!J143=\"\",\"\",IF(OR('TSA Input'!J143=\"Yes\",'TSA Input'!J143=\"Contingent\"),'TSA Input'!G143,\"\"))","v":""},{"$f":"IF('TSA Input'!J143=\"\",\"\",IF(OR('TSA Input'!J143=\"Yes\",'TSA Input'!J143=\"Contingent\"),'TSA Input'!F143,\"\"))","v":""},"","Required","Required"]
["",null,{"$f":"IF('TSA Input'!J144=\"\",\"\",IF(OR('TSA Input'!J144=\"Yes\",'TSA Input'!J144=\"Contingent\"),'TSA Input'!B144,\"Ineligible\"))","v":""},{"$f":"IF('TSA Input'!J144=\"\",\"\",IF(OR('TSA Input'!J144=\"Yes\",'TSA Input'!J144=\"Contingent\"),'TSA Input'!I144,\"\"))","v":""},{"$f":"IF('TSA Input'!J144=\"\",\"\",IF(OR('TSA Input'!J144=\"Yes\",'TSA Input'!J144=\"Contingent\"),'TSA Input'!C144,\"\"))","v":""},{"$f":"IF('TSA Input'!J144=\"\",\"\",IF(OR('TSA Input'!J144=\"Yes\",'TSA Input'!J144=\"Contingent\"),'TSA Input'!D144,\"\"))","v":""},{"$f":"IF('TSA Input'!J144=\"\",\"\",IF(OR('TSA Input'!J144=\"Yes\",'TSA Input'!J144=\"Contingent\"),'TSA Input'!G144,\"\"))","v":""},{"$f":"IF('TSA Input'!J144=\"\",\"\",IF(OR('TSA Input'!J144=\"Yes\",'TSA Input'!J144=\"Contingent\"),'TSA Input'!F144,\"\"))","v":""},"",{"$f":"IF('TSA Input'!J144=\"\",\"\",IF(OR('TSA Input'!J144=\"Yes\",'TSA Input'!J144=\"Contingent\"),'TSA Input'!D144,\"\"))","v":""},{"$f":"IF('TSA Input'!J144=\"\",\"\",IF(OR('TSA Input'!J144=\"Yes\",'TSA Input'!J144=\"Contingent\"),'TSA Input'!G144,\"\"))","v":""},{"$f":"IF('TSA Input'!J144=\"\",\"\",IF(OR('TSA Input'!J144=\"Yes\",'TSA Input'!J144=\"Contingent\"),'TSA Input'!F144,\"\"))","v":""},"","Required","Required"]
["",null,{"$f":"IF('TSA Input'!J145=\"\",\"\",IF(OR('TSA Input'!J145=\"Yes\",'TSA Input'!J145=\"Contingent\"),'TSA Input'!B145,\"Ineligible\"))","v":""},{"$f":"IF('TSA Input'!J145=\"\",\"\",IF(OR('TSA Input'!J145=\"Yes\",'TSA Input'!J145=\"Contingent\"),'TSA Input'!I145,\"\"))","v":""},{"$f":"IF('TSA Input'!J145=\"\",\"\",IF(OR('TSA Input'!J145=\"Yes\",'TSA Input'!J145=\"Contingent\"),'TSA Input'!C145,\"\"))","v":""},{"$f":"IF('TSA Input'!J145=\"\",\"\",IF(OR('TSA Input'!J145=\"Yes\",'TSA Input'!J145=\"Contingent\"),'TSA Input'!D145,\"\"))","v":""},{"$f":"IF('TSA Input'!J145=\"\",\"\",IF(OR('TSA Input'!J145=\"Yes\",'TSA Input'!J145=\"Contingent\"),'TSA Input'!G145,\"\"))","v":""},{"$f":"IF('TSA Input'!J145=\"\",\"\",IF(OR('TSA Input'!J145=\"Yes\",'TSA Input'!J145=\"Contingent\"),'TSA Input'!F145,\"\"))","v":""},"",{"$f":"IF('TSA Input'!J145=\"\",\"\",IF(OR('TSA Input'!J145=\"Yes\",'TSA Input'!J145=\"Contingent\"),'TSA Input'!D145,\"\"))","v":""},{"$f":"IF('TSA Input'!J145=\"\",\"\",IF(OR('TSA Input'!J145=\"Yes\",'TSA Input'!J145=\"Contingent\"),'TSA Input'!G145,\"\"))","v":""},{"$f":"IF('TSA Input'!J145=\"\",\"\",IF(OR('TSA Input'!J145=\"Yes\",'TSA Input'!J145=\"Contingent\"),'TSA Input'!F145,\"\"))","v":""},"","Required","Required"]
["",null,{"$f":"IF('TSA Input'!J146=\"\",\"\",IF(OR('TSA Input'!J146=\"Yes\",'TSA Input'!J146=\"Contingent\"),'TSA Input'!B146,\"Ineligible\"))","v":""},{"$f":"IF('TSA Input'!J146=\"\",\"\",IF(OR('TSA Input'!J146=\"Yes\",'TSA Input'!J146=\"Contingent\"),'TSA Input'!I146,\"\"))","v":""},{"$f":"IF('TSA Input'!J146=\"\",\"\",IF(OR('TSA Input'!J146=\"Yes\",'TSA Input'!J146=\"Contingent\"),'TSA Input'!C146,\"\"))","v":""},{"$f":"IF('TSA Input'!J146=\"\",\"\",IF(OR('TSA Input'!J146=\"Yes\",'TSA Input'!J146=\"Contingent\"),'TSA Input'!D146,\"\"))","v":""},{"$f":"IF('TSA Input'!J146=\"\",\"\",IF(OR('TSA Input'!J146=\"Yes\",'TSA Input'!J146=\"Contingent\"),'TSA Input'!G146,\"\"))","v":""},{"$f":"IF('TSA Input'!J146=\"\",\"\",IF(OR('TSA Input'!J146=\"Yes\",'TSA Input'!J146=\"Contingent\"),'TSA Input'!F146,\"\"))","v":""},"",{"$f":"IF('TSA Input'!J146=\"\",\"\",IF(OR('TSA Input'!J146=\"Yes\",'TSA Input'!J146=\"Contingent\"),'TSA Input'!D146,\"\"))","v":""},{"$f":"IF('TSA Input'!J146=\"\",\"\",IF(OR('TSA Input'!J146=\"Yes\",'TSA Input'!J146=\"Contingent\"),'TSA Input'!G146,\"\"))","v":""},{"$f":"IF('TSA Input'!J146=\"\",\"\",IF(OR('TSA Input'!J146=\"Yes\",'TSA Input'!J146=\"Contingent\"),'TSA Input'!F146,\"\"))","v":""},"","Required","Required"]
["",null,{"$f":"IF('TSA Input'!J147=\"\",\"\",IF(OR('TSA Input'!J147=\"Yes\",'TSA Input'!J147=\"Contingent\"),'TSA Input'!B147,\"Ineligible\"))","v":""},{"$f":"IF('TSA Input'!J147=\"\",\"\",IF(OR('TSA Input'!J147=\"Yes\",'TSA Input'!J147=\"Contingent\"),'TSA Input'!I147,\"\"))","v":""},{"$f":"IF('TSA Input'!J147=\"\",\"\",IF(OR('TSA Input'!J147=\"Yes\",'TSA Input'!J147=\"Contingent\"),'TSA Input'!C147,\"\"))","v":""},{"$f":"IF('TSA Input'!J147=\"\",\"\",IF(OR('TSA Input'!J147=\"Yes\",'TSA Input'!J147=\"Contingent\"),'TSA Input'!D147,\"\"))","v":""},{"$f":"IF('TSA Input'!J147=\"\",\"\",IF(OR('TSA Input'!J147=\"Yes\",'TSA Input'!J147=\"Contingent\"),'TSA Input'!G147,\"\"))","v":""},{"$f":"IF('TSA Input'!J147=\"\",\"\",IF(OR('TSA Input'!J147=\"Yes\",'TSA Input'!J147=\"Contingent\"),'TSA Input'!F147,\"\"))","v":""},"",{"$f":"IF('TSA Input'!J147=\"\",\"\",IF(OR('TSA Input'!J147=\"Yes\",'TSA Input'!J147=\"Contingent\"),'TSA Input'!D147,\"\"))","v":""},{"$f":"IF('TSA Input'!J147=\"\",\"\",IF(OR('TSA Input'!J147=\"Yes\",'TSA Input'!J147=\"Contingent\"),'TSA Input'!G147,\"\"))","v":""},{"$f":"IF('TSA Input'!J147=\"\",\"\",IF(OR('TSA Input'!J147=\"Yes\",'TSA Input'!J147=\"Contingent\"),'TSA Input'!F147,\"\"))","v":""},"","Required","Required"]
["",null,{"$f":"IF('TSA Input'!J148=\"\",\"\",IF(OR('TSA Input'!J148=\"Yes\",'TSA Input'!J148=\"Contingent\"),'TSA Input'!B148,\"Ineligible\"))","v":""},{"$f":"IF('TSA Input'!J148=\"\",\"\",IF(OR('TSA Input'!J148=\"Yes\",'TSA Input'!J148=\"Contingent\"),'TSA Input'!I148,\"\"))","v":""},{"$f":"IF('TSA Input'!J148=\"\",\"\",IF(OR('TSA Input'!J148=\"Yes\",'TSA Input'!J148=\"Contingent\"),'TSA Input'!C148,\"\"))","v":""},{"$f":"IF('TSA Input'!J148=\"\",\"\",IF(OR('TSA Input'!J148=\"Yes\",'TSA Input'!J148=\"Contingent\"),'TSA Input'!D148,\"\"))","v":""},{"$f":"IF('TSA Input'!J148=\"\",\"\",IF(OR('TSA Input'!J148=\"Yes\",'TSA Input'!J148=\"Contingent\"),'TSA Input'!G148,\"\"))","v":""},{"$f":"IF('TSA Input'!J148=\"\",\"\",IF(OR('TSA Input'!J148=\"Yes\",'TSA Input'!J148=\"Contingent\"),'TSA Input'!F148,\"\"))","v":""},"",{"$f":"IF('TSA Input'!J148=\"\",\"\",IF(OR('TSA Input'!J148=\"Yes\",'TSA Input'!J148=\"Contingent\"),'TSA Input'!D148,\"\"))","v":""},{"$f":"IF('TSA Input'!J148=\"\",\"\",IF(OR('TSA Input'!J148=\"Yes\",'TSA Input'!J148=\"Contingent\"),'TSA Input'!G148,\"\"))","v":""},{"$f":"IF('TSA Input'!J148=\"\",\"\",IF(OR('TSA Input'!J148=\"Yes\",'TSA Input'!J148=\"Contingent\"),'TSA Input'!F148,\"\"))","v":""},"","Required","Required"]
["",null,{"$f":"IF('TSA Input'!J149=\"\",\"\",IF(OR('TSA Input'!J149=\"Yes\",'TSA Input'!J149=\"Contingent\"),'TSA Input'!B149,\"Ineligible\"))","v":""},{"$f":"IF('TSA Input'!J149=\"\",\"\",IF(OR('TSA Input'!J149=\"Yes\",'TSA Input'!J149=\"Contingent\"),'TSA Input'!I149,\"\"))","v":""},{"$f":"IF('TSA Input'!J149=\"\",\"\",IF(OR('TSA Input'!J149=\"Yes\",'TSA Input'!J149=\"Contingent\"),'TSA Input'!C149,\"\"))","v":""},{"$f":"IF('TSA Input'!J149=\"\",\"\",IF(OR('TSA Input'!J149=\"Yes\",'TSA Input'!J149=\"Contingent\"),'TSA Input'!D149,\"\"))","v":""},{"$f":"IF('TSA Input'!J149=\"\",\"\",IF(OR('TSA Input'!J149=\"Yes\",'TSA Input'!J149=\"Contingent\"),'TSA Input'!G149,\"\"))","v":""},{"$f":"IF('TSA Input'!J149=\"\",\"\",IF(OR('TSA Input'!J149=\"Yes\",'TSA Input'!J149=\"Contingent\"),'TSA Input'!F149,\"\"))","v":""},"",{"$f":"IF('TSA Input'!J149=\"\",\"\",IF(OR('TSA Input'!J149=\"Yes\",'TSA Input'!J149=\"Contingent\"),'TSA Input'!D149,\"\"))","v":""},{"$f":"IF('TSA Input'!J149=\"\",\"\",IF(OR('TSA Input'!J149=\"Yes\",'TSA Input'!J149=\"Contingent\"),'TSA Input'!G149,\"\"))","v":""},{"$f":"IF('TSA Input'!J149=\"\",\"\",IF(OR('TSA Input'!J149=\"Yes\",'TSA Input'!J149=\"Contingent\"),'TSA Input'!F149,\"\"))","v":""},"","Required","Required"]
["",null,{"$f":"IF('TSA Input'!J150=\"\",\"\",IF(OR('TSA Input'!J150=\"Yes\",'TSA Input'!J150=\"Contingent\"),'TSA Input'!B150,\"Ineligible\"))","v":""},{"$f":"IF('TSA Input'!J150=\"\",\"\",IF(OR('TSA Input'!J150=\"Yes\",'TSA Input'!J150=\"Contingent\"),'TSA Input'!I150,\"\"))","v":""},{"$f":"IF('TSA Input'!J150=\"\",\"\",IF(OR('TSA Input'!J150=\"Yes\",'TSA Input'!J150=\"Contingent\"),'TSA Input'!C150,\"\"))","v":""},{"$f":"IF('TSA Input'!J150=\"\",\"\",IF(OR('TSA Input'!J150=\"Yes\",'TSA Input'!J150=\"Contingent\"),'TSA Input'!D150,\"\"))","v":""},{"$f":"IF('TSA Input'!J150=\"\",\"\",IF(OR('TSA Input'!J150=\"Yes\",'TSA Input'!J150=\"Contingent\"),'TSA Input'!G150,\"\"))","v":""},{"$f":"IF('TSA Input'!J150=\"\",\"\",IF(OR('TSA Input'!J150=\"Yes\",'TSA Input'!J150=\"Contingent\"),'TSA Input'!F150,\"\"))","v":""},"",{"$f":"IF('TSA Input'!J150=\"\",\"\",IF(OR('TSA Input'!J150=\"Yes\",'TSA Input'!J150=\"Contingent\"),'TSA Input'!D150,\"\"))","v":""},{"$f":"IF('TSA Input'!J150=\"\",\"\",IF(OR('TSA Input'!J150=\"Yes\",'TSA Input'!J150=\"Contingent\"),'TSA Input'!G150,\"\"))","v":""},{"$f":"IF('TSA Input'!J150=\"\",\"\",IF(OR('TSA Input'!J150=\"Yes\",'TSA Input'!J150=\"Contingent\"),'TSA Input'!F150,\"\"))","v":""},"","Required","Required"]
["",null,{"$f":"IF('TSA Input'!J151=\"\",\"\",IF(OR('TSA Input'!J151=\"Yes\",'TSA Input'!J151=\"Contingent\"),'TSA Input'!B151,\"Ineligible\"))","v":""},{"$f":"IF('TSA Input'!J151=\"\",\"\",IF(OR('TSA Input'!J151=\"Yes\",'TSA Input'!J151=\"Contingent\"),'TSA Input'!I151,\"\"))","v":""},{"$f":"IF('TSA Input'!J151=\"\",\"\",IF(OR('TSA Input'!J151=\"Yes\",'TSA Input'!J151=\"Contingent\"),'TSA Input'!C151,\"\"))","v":""},{"$f":"IF('TSA Input'!J151=\"\",\"\",IF(OR('TSA Input'!J151=\"Yes\",'TSA Input'!J151=\"Contingent\"),'TSA Input'!D151,\"\"))","v":""},{"$f":"IF('TSA Input'!J151=\"\",\"\",IF(OR('TSA Input'!J151=\"Yes\",'TSA Input'!J151=\"Contingent\"),'TSA Input'!G151,\"\"))","v":""},{"$f":"IF('TSA Input'!J151=\"\",\"\",IF(OR('TSA Input'!J151=\"Yes\",'TSA Input'!J151=\"Contingent\"),'TSA Input'!F151,\"\"))","v":""},"",{"$f":"IF('TSA Input'!J151=\"\",\"\",IF(OR('TSA Input'!J151=\"Yes\",'TSA Input'!J151=\"Contingent\"),'TSA Input'!D151,\"\"))","v":""},{"$f":"IF('TSA Input'!J151=\"\",\"\",IF(OR('TSA Input'!J151=\"Yes\",'TSA Input'!J151=\"Contingent\"),'TSA Input'!G151,\"\"))","v":""},{"$f":"IF('TSA Input'!J151=\"\",\"\",IF(OR('TSA Input'!J151=\"Yes\",'TSA Input'!J151=\"Contingent\"),'TSA Input'!F151,\"\"))","v":""},"","Required","Required"]
["",null,{"$f":"IF('TSA Input'!J152=\"\",\"\",IF(OR('TSA Input'!J152=\"Yes\",'TSA Input'!J152=\"Contingent\"),'TSA Input'!B152,\"Ineligible\"))","v":""},{"$f":"IF('TSA Input'!J152=\"\",\"\",IF(OR('TSA Input'!J152=\"Yes\",'TSA Input'!J152=\"Contingent\"),'TSA Input'!I152,\"\"))","v":""},{"$f":"IF('TSA Input'!J152=\"\",\"\",IF(OR('TSA Input'!J152=\"Yes\",'TSA Input'!J152=\"Contingent\"),'TSA Input'!C152,\"\"))","v":""},{"$f":"IF('TSA Input'!J152=\"\",\"\",IF(OR('TSA Input'!J152=\"Yes\",'TSA Input'!J152=\"Contingent\"),'TSA Input'!D152,\"\"))","v":""},{"$f":"IF('TSA Input'!J152=\"\",\"\",IF(OR('TSA Input'!J152=\"Yes\",'TSA Input'!J152=\"Contingent\"),'TSA Input'!G152,\"\"))","v":""},{"$f":"IF('TSA Input'!J152=\"\",\"\",IF(OR('TSA Input'!J152=\"Yes\",'TSA Input'!J152=\"Contingent\"),'TSA Input'!F152,\"\"))","v":""},"",{"$f":"IF('TSA Input'!J152=\"\",\"\",IF(OR('TSA Input'!J152=\"Yes\",'TSA Input'!J152=\"Contingent\"),'TSA Input'!D152,\"\"))","v":""},{"$f":"IF('TSA Input'!J152=\"\",\"\",IF(OR('TSA Input'!J152=\"Yes\",'TSA Input'!J152=\"Contingent\"),'TSA Input'!G152,\"\"))","v":""},{"$f":"IF('TSA Input'!J152=\"\",\"\",IF(OR('TSA Input'!J152=\"Yes\",'TSA Input'!J152=\"Contingent\"),'TSA Input'!F152,\"\"))","v":""},"","Required","Required"]
["",null,{"$f":"IF('TSA Input'!J153=\"\",\"\",IF(OR('TSA Input'!J153=\"Yes\",'TSA Input'!J153=\"Contingent\"),'TSA Input'!B153,\"Ineligible\"))","v":""},{"$f":"IF('TSA Input'!J153=\"\",\"\",IF(OR('TSA Input'!J153=\"Yes\",'TSA Input'!J153=\"Contingent\"),'TSA Input'!I153,\"\"))","v":""},{"$f":"IF('TSA Input'!J153=\"\",\"\",IF(OR('TSA Input'!J153=\"Yes\",'TSA Input'!J153=\"Contingent\"),'TSA Input'!C153,\"\"))","v":""},{"$f":"IF('TSA Input'!J153=\"\",\"\",IF(OR('TSA Input'!J153=\"Yes\",'TSA Input'!J153=\"Contingent\"),'TSA Input'!D153,\"\"))","v":""},{"$f":"IF('TSA Input'!J153=\"\",\"\",IF(OR('TSA Input'!J153=\"Yes\",'TSA Input'!J153=\"Contingent\"),'TSA Input'!G153,\"\"))","v":""},{"$f":"IF('TSA Input'!J153=\"\",\"\",IF(OR('TSA Input'!J153=\"Yes\",'TSA Input'!J153=\"Contingent\"),'TSA Input'!F153,\"\"))","v":""},"",{"$f":"IF('TSA Input'!J153=\"\",\"\",IF(OR('TSA Input'!J153=\"Yes\",'TSA Input'!J153=\"Contingent\"),'TSA Input'!D153,\"\"))","v":""},{"$f":"IF('TSA Input'!J153=\"\",\"\",IF(OR('TSA Input'!J153=\"Yes\",'TSA Input'!J153=\"Contingent\"),'TSA Input'!G153,\"\"))","v":""},{"$f":"IF('TSA Input'!J153=\"\",\"\",IF(OR('TSA Input'!J153=\"Yes\",'TSA Input'!J153=\"Contingent\"),'TSA Input'!F153,\"\"))","v":""},"","Required","Required"]
["",null,{"$f":"IF('TSA Input'!J154=\"\",\"\",IF(OR('TSA Input'!J154=\"Yes\",'TSA Input'!J154=\"Contingent\"),'TSA Input'!B154,\"Ineligible\"))","v":""},{"$f":"IF('TSA Input'!J154=\"\",\"\",IF(OR('TSA Input'!J154=\"Yes\",'TSA Input'!J154=\"Contingent\"),'TSA Input'!I154,\"\"))","v":""},{"$f":"IF('TSA Input'!J154=\"\",\"\",IF(OR('TSA Input'!J154=\"Yes\",'TSA Input'!J154=\"Contingent\"),'TSA Input'!C154,\"\"))","v":""},{"$f":"IF('TSA Input'!J154=\"\",\"\",IF(OR('TSA Input'!J154=\"Yes\",'TSA Input'!J154=\"Contingent\"),'TSA Input'!D154,\"\"))","v":""},{"$f":"IF('TSA Input'!J154=\"\",\"\",IF(OR('TSA Input'!J154=\"Yes\",'TSA Input'!J154=\"Contingent\"),'TSA Input'!G154,\"\"))","v":""},{"$f":"IF('TSA Input'!J154=\"\",\"\",IF(OR('TSA Input'!J154=\"Yes\",'TSA Input'!J154=\"Contingent\"),'TSA Input'!F154,\"\"))","v":""},"",{"$f":"IF('TSA Input'!J154=\"\",\"\",IF(OR('TSA Input'!J154=\"Yes\",'TSA Input'!J154=\"Contingent\"),'TSA Input'!D154,\"\"))","v":""},{"$f":"IF('TSA Input'!J154=\"\",\"\",IF(OR('TSA Input'!J154=\"Yes\",'TSA Input'!J154=\"Contingent\"),'TSA Input'!G154,\"\"))","v":""},{"$f":"IF('TSA Input'!J154=\"\",\"\",IF(OR('TSA Input'!J154=\"Yes\",'TSA Input'!J154=\"Contingent\"),'TSA Input'!F154,\"\"))","v":""},"","Required","Required"]
["",null,{"$f":"IF('TSA Input'!J155=\"\",\"\",IF(OR('TSA Input'!J155=\"Yes\",'TSA Input'!J155=\"Contingent\"),'TSA Input'!B155,\"Ineligible\"))","v":""},{"$f":"IF('TSA Input'!J155=\"\",\"\",IF(OR('TSA Input'!J155=\"Yes\",'TSA Input'!J155=\"Contingent\"),'TSA Input'!I155,\"\"))","v":""},{"$f":"IF('TSA Input'!J155=\"\",\"\",IF(OR('TSA Input'!J155=\"Yes\",'TSA Input'!J155=\"Contingent\"),'TSA Input'!C155,\"\"))","v":""},{"$f":"IF('TSA Input'!J155=\"\",\"\",IF(OR('TSA Input'!J155=\"Yes\",'TSA Input'!J155=\"Contingent\"),'TSA Input'!D155,\"\"))","v":""},{"$f":"IF('TSA Input'!J155=\"\",\"\",IF(OR('TSA Input'!J155=\"Yes\",'TSA Input'!J155=\"Contingent\"),'TSA Input'!G155,\"\"))","v":""},{"$f":"IF('TSA Input'!J155=\"\",\"\",IF(OR('TSA Input'!J155=\"Yes\",'TSA Input'!J155=\"Contingent\"),'TSA Input'!F155,\"\"))","v":""},"",{"$f":"IF('TSA Input'!J155=\"\",\"\",IF(OR('TSA Input'!J155=\"Yes\",'TSA Input'!J155=\"Contingent\"),'TSA Input'!D155,\"\"))","v":""},{"$f":"IF('TSA Input'!J155=\"\",\"\",IF(OR('TSA Input'!J155=\"Yes\",'TSA Input'!J155=\"Contingent\"),'TSA Input'!G155,\"\"))","v":""},{"$f":"IF('TSA Input'!J155=\"\",\"\",IF(OR('TSA Input'!J155=\"Yes\",'TSA Input'!J155=\"Contingent\"),'TSA Input'!F155,\"\"))","v":""},"","Required","Required"]
["",null,{"$f":"IF('TSA Input'!J156=\"\",\"\",IF(OR('TSA Input'!J156=\"Yes\",'TSA Input'!J156=\"Contingent\"),'TSA Input'!B156,\"Ineligible\"))","v":""},{"$f":"IF('TSA Input'!J156=\"\",\"\",IF(OR('TSA Input'!J156=\"Yes\",'TSA Input'!J156=\"Contingent\"),'TSA Input'!I156,\"\"))","v":""},{"$f":"IF('TSA Input'!J156=\"\",\"\",IF(OR('TSA Input'!J156=\"Yes\",'TSA Input'!J156=\"Contingent\"),'TSA Input'!C156,\"\"))","v":""},{"$f":"IF('TSA Input'!J156=\"\",\"\",IF(OR('TSA Input'!J156=\"Yes\",'TSA Input'!J156=\"Contingent\"),'TSA Input'!D156,\"\"))","v":""},{"$f":"IF('TSA Input'!J156=\"\",\"\",IF(OR('TSA Input'!J156=\"Yes\",'TSA Input'!J156=\"Contingent\"),'TSA Input'!G156,\"\"))","v":""},{"$f":"IF('TSA Input'!J156=\"\",\"\",IF(OR('TSA Input'!J156=\"Yes\",'TSA Input'!J156=\"Contingent\"),'TSA Input'!F156,\"\"))","v":""},"",{"$f":"IF('TSA Input'!J156=\"\",\"\",IF(OR('TSA Input'!J156=\"Yes\",'TSA Input'!J156=\"Contingent\"),'TSA Input'!D156,\"\"))","v":""},{"$f":"IF('TSA Input'!J156=\"\",\"\",IF(OR('TSA Input'!J156=\"Yes\",'TSA Input'!J156=\"Contingent\"),'TSA Input'!G156,\"\"))","v":""},{"$f":"IF('TSA Input'!J156=\"\",\"\",IF(OR('TSA Input'!J156=\"Yes\",'TSA Input'!J156=\"Contingent\"),'TSA Input'!F156,\"\"))","v":""},"","Required","Required"]
["",null,{"$f":"IF('TSA Input'!J157=\"\",\"\",IF(OR('TSA Input'!J157=\"Yes\",'TSA Input'!J157=\"Contingent\"),'TSA Input'!B157,\"Ineligible\"))","v":""},{"$f":"IF('TSA Input'!J157=\"\",\"\",IF(OR('TSA Input'!J157=\"Yes\",'TSA Input'!J157=\"Contingent\"),'TSA Input'!I157,\"\"))","v":""},{"$f":"IF('TSA Input'!J157=\"\",\"\",IF(OR('TSA Input'!J157=\"Yes\",'TSA Input'!J157=\"Contingent\"),'TSA Input'!C157,\"\"))","v":""},{"$f":"IF('TSA Input'!J157=\"\",\"\",IF(OR('TSA Input'!J157=\"Yes\",'TSA Input'!J157=\"Contingent\"),'TSA Input'!D157,\"\"))","v":""},{"$f":"IF('TSA Input'!J157=\"\",\"\",IF(OR('TSA Input'!J157=\"Yes\",'TSA Input'!J157=\"Contingent\"),'TSA Input'!G157,\"\"))","v":""},{"$f":"IF('TSA Input'!J157=\"\",\"\",IF(OR('TSA Input'!J157=\"Yes\",'TSA Input'!J157=\"Contingent\"),'TSA Input'!F157,\"\"))","v":""},"",{"$f":"IF('TSA Input'!J157=\"\",\"\",IF(OR('TSA Input'!J157=\"Yes\",'TSA Input'!J157=\"Contingent\"),'TSA Input'!D157,\"\"))","v":""},{"$f":"IF('TSA Input'!J157=\"\",\"\",IF(OR('TSA Input'!J157=\"Yes\",'TSA Input'!J157=\"Contingent\"),'TSA Input'!G157,\"\"))","v":""},{"$f":"IF('TSA Input'!J157=\"\",\"\",IF(OR('TSA Input'!J157=\"Yes\",'TSA Input'!J157=\"Contingent\"),'TSA Input'!F157,\"\"))","v":""},"","Required","Required"]
["",null,{"$f":"IF('TSA Input'!J158=\"\",\"\",IF(OR('TSA Input'!J158=\"Yes\",'TSA Input'!J158=\"Contingent\"),'TSA Input'!B158,\"Ineligible\"))","v":""},{"$f":"IF('TSA Input'!J158=\"\",\"\",IF(OR('TSA Input'!J158=\"Yes\",'TSA Input'!J158=\"Contingent\"),'TSA Input'!I158,\"\"))","v":""},{"$f":"IF('TSA Input'!J158=\"\",\"\",IF(OR('TSA Input'!J158=\"Yes\",'TSA Input'!J158=\"Contingent\"),'TSA Input'!C158,\"\"))","v":""},{"$f":"IF('TSA Input'!J158=\"\",\"\",IF(OR('TSA Input'!J158=\"Yes\",'TSA Input'!J158=\"Contingent\"),'TSA Input'!D158,\"\"))","v":""},{"$f":"IF('TSA Input'!J158=\"\",\"\",IF(OR('TSA Input'!J158=\"Yes\",'TSA Input'!J158=\"Contingent\"),'TSA Input'!G158,\"\"))","v":""},{"$f":"IF('TSA Input'!J158=\"\",\"\",IF(OR('TSA Input'!J158=\"Yes\",'TSA Input'!J158=\"Contingent\"),'TSA Input'!F158,\"\"))","v":""},"",{"$f":"IF('TSA Input'!J158=\"\",\"\",IF(OR('TSA Input'!J158=\"Yes\",'TSA Input'!J158=\"Contingent\"),'TSA Input'!D158,\"\"))","v":""},{"$f":"IF('TSA Input'!J158=\"\",\"\",IF(OR('TSA Input'!J158=\"Yes\",'TSA Input'!J158=\"Contingent\"),'TSA Input'!G158,\"\"))","v":""},{"$f":"IF('TSA Input'!J158=\"\",\"\",IF(OR('TSA Input'!J158=\"Yes\",'TSA Input'!J158=\"Contingent\"),'TSA Input'!F158,\"\"))","v":""},"","Required","Required"]
["",null,{"$f":"IF('TSA Input'!J159=\"\",\"\",IF(OR('TSA Input'!J159=\"Yes\",'TSA Input'!J159=\"Contingent\"),'TSA Input'!B159,\"Ineligible\"))","v":""},{"$f":"IF('TSA Input'!J159=\"\",\"\",IF(OR('TSA Input'!J159=\"Yes\",'TSA Input'!J159=\"Contingent\"),'TSA Input'!I159,\"\"))","v":""},{"$f":"IF('TSA Input'!J159=\"\",\"\",IF(OR('TSA Input'!J159=\"Yes\",'TSA Input'!J159=\"Contingent\"),'TSA Input'!C159,\"\"))","v":""},{"$f":"IF('TSA Input'!J159=\"\",\"\",IF(OR('TSA Input'!J159=\"Yes\",'TSA Input'!J159=\"Contingent\"),'TSA Input'!D159,\"\"))","v":""},{"$f":"IF('TSA Input'!J159=\"\",\"\",IF(OR('TSA Input'!J159=\"Yes\",'TSA Input'!J159=\"Contingent\"),'TSA Input'!G159,\"\"))","v":""},{"$f":"IF('TSA Input'!J159=\"\",\"\",IF(OR('TSA Input'!J159=\"Yes\",'TSA Input'!J159=\"Contingent\"),'TSA Input'!F159,\"\"))","v":""},"",{"$f":"IF('TSA Input'!J159=\"\",\"\",IF(OR('TSA Input'!J159=\"Yes\",'TSA Input'!J159=\"Contingent\"),'TSA Input'!D159,\"\"))","v":""},{"$f":"IF('TSA Input'!J159=\"\",\"\",IF(OR('TSA Input'!J159=\"Yes\",'TSA Input'!J159=\"Contingent\"),'TSA Input'!G159,\"\"))","v":""},{"$f":"IF('TSA Input'!J159=\"\",\"\",IF(OR('TSA Input'!J159=\"Yes\",'TSA Input'!J159=\"Contingent\"),'TSA Input'!F159,\"\"))","v":""},"","Required","Required"]
["",null,{"$f":"IF('TSA Input'!J160=\"\",\"\",IF(OR('TSA Input'!J160=\"Yes\",'TSA Input'!J160=\"Contingent\"),'TSA Input'!B160,\"Ineligible\"))","v":""},{"$f":"IF('TSA Input'!J160=\"\",\"\",IF(OR('TSA Input'!J160=\"Yes\",'TSA Input'!J160=\"Contingent\"),'TSA Input'!I160,\"\"))","v":""},{"$f":"IF('TSA Input'!J160=\"\",\"\",IF(OR('TSA Input'!J160=\"Yes\",'TSA Input'!J160=\"Contingent\"),'TSA Input'!C160,\"\"))","v":""},{"$f":"IF('TSA Input'!J160=\"\",\"\",IF(OR('TSA Input'!J160=\"Yes\",'TSA Input'!J160=\"Contingent\"),'TSA Input'!D160,\"\"))","v":""},{"$f":"IF('TSA Input'!J160=\"\",\"\",IF(OR('TSA Input'!J160=\"Yes\",'TSA Input'!J160=\"Contingent\"),'TSA Input'!G160,\"\"))","v":""},{"$f":"IF('TSA Input'!J160=\"\",\"\",IF(OR('TSA Input'!J160=\"Yes\",'TSA Input'!J160=\"Contingent\"),'TSA Input'!F160,\"\"))","v":""},"",{"$f":"IF('TSA Input'!J160=\"\",\"\",IF(OR('TSA Input'!J160=\"Yes\",'TSA Input'!J160=\"Contingent\"),'TSA Input'!D160,\"\"))","v":""},{"$f":"IF('TSA Input'!J160=\"\",\"\",IF(OR('TSA Input'!J160=\"Yes\",'TSA Input'!J160=\"Contingent\"),'TSA Input'!G160,\"\"))","v":""},{"$f":"IF('TSA Input'!J160=\"\",\"\",IF(OR('TSA Input'!J160=\"Yes\",'TSA Input'!J160=\"Contingent\"),'TSA Input'!F160,\"\"))","v":""},"","Required","Required"]
["",null,{"$f":"IF('TSA Input'!J161=\"\",\"\",IF(OR('TSA Input'!J161=\"Yes\",'TSA Input'!J161=\"Contingent\"),'TSA Input'!B161,\"Ineligible\"))","v":""},{"$f":"IF('TSA Input'!J161=\"\",\"\",IF(OR('TSA Input'!J161=\"Yes\",'TSA Input'!J161=\"Contingent\"),'TSA Input'!I161,\"\"))","v":""},{"$f":"IF('TSA Input'!J161=\"\",\"\",IF(OR('TSA Input'!J161=\"Yes\",'TSA Input'!J161=\"Contingent\"),'TSA Input'!C161,\"\"))","v":""},{"$f":"IF('TSA Input'!J161=\"\",\"\",IF(OR('TSA Input'!J161=\"Yes\",'TSA Input'!J161=\"Contingent\"),'TSA Input'!D161,\"\"))","v":""},{"$f":"IF('TSA Input'!J161=\"\",\"\",IF(OR('TSA Input'!J161=\"Yes\",'TSA Input'!J161=\"Contingent\"),'TSA Input'!G161,\"\"))","v":""},{"$f":"IF('TSA Input'!J161=\"\",\"\",IF(OR('TSA Input'!J161=\"Yes\",'TSA Input'!J161=\"Contingent\"),'TSA Input'!F161,\"\"))","v":""},"",{"$f":"IF('TSA Input'!J161=\"\",\"\",IF(OR('TSA Input'!J161=\"Yes\",'TSA Input'!J161=\"Contingent\"),'TSA Input'!D161,\"\"))","v":""},{"$f":"IF('TSA Input'!J161=\"\",\"\",IF(OR('TSA Input'!J161=\"Yes\",'TSA Input'!J161=\"Contingent\"),'TSA Input'!G161,\"\"))","v":""},{"$f":"IF('TSA Input'!J161=\"\",\"\",IF(OR('TSA Input'!J161=\"Yes\",'TSA Input'!J161=\"Contingent\"),'TSA Input'!F161,\"\"))","v":""},"","Required","Required"]
["",null,{"$f":"IF('TSA Input'!J162=\"\",\"\",IF(OR('TSA Input'!J162=\"Yes\",'TSA Input'!J162=\"Contingent\"),'TSA Input'!B162,\"Ineligible\"))","v":""},{"$f":"IF('TSA Input'!J162=\"\",\"\",IF(OR('TSA Input'!J162=\"Yes\",'TSA Input'!J162=\"Contingent\"),'TSA Input'!I162,\"\"))","v":""},{"$f":"IF('TSA Input'!J162=\"\",\"\",IF(OR('TSA Input'!J162=\"Yes\",'TSA Input'!J162=\"Contingent\"),'TSA Input'!C162,\"\"))","v":""},{"$f":"IF('TSA Input'!J162=\"\",\"\",IF(OR('TSA Input'!J162=\"Yes\",'TSA Input'!J162=\"Contingent\"),'TSA Input'!D162,\"\"))","v":""},{"$f":"IF('TSA Input'!J162=\"\",\"\",IF(OR('TSA Input'!J162=\"Yes\",'TSA Input'!J162=\"Contingent\"),'TSA Input'!G162,\"\"))","v":""},{"$f":"IF('TSA Input'!J162=\"\",\"\",IF(OR('TSA Input'!J162=\"Yes\",'TSA Input'!J162=\"Contingent\"),'TSA Input'!F162,\"\"))","v":""},"",{"$f":"IF('TSA Input'!J162=\"\",\"\",IF(OR('TSA Input'!J162=\"Yes\",'TSA Input'!J162=\"Contingent\"),'TSA Input'!D162,\"\"))","v":""},{"$f":"IF('TSA Input'!J162=\"\",\"\",IF(OR('TSA Input'!J162=\"Yes\",'TSA Input'!J162=\"Contingent\"),'TSA Input'!G162,\"\"))","v":""},{"$f":"IF('TSA Input'!J162=\"\",\"\",IF(OR('TSA Input'!J162=\"Yes\",'TSA Input'!J162=\"Contingent\"),'TSA Input'!F162,\"\"))","v":""},"","Required","Required"]
["",null,{"$f":"IF('TSA Input'!J163=\"\",\"\",IF(OR('TSA Input'!J163=\"Yes\",'TSA Input'!J163=\"Contingent\"),'TSA Input'!B163,\"Ineligible\"))","v":""},{"$f":"IF('TSA Input'!J163=\"\",\"\",IF(OR('TSA Input'!J163=\"Yes\",'TSA Input'!J163=\"Contingent\"),'TSA Input'!I163,\"\"))","v":""},{"$f":"IF('TSA Input'!J163=\"\",\"\",IF(OR('TSA Input'!J163=\"Yes\",'TSA Input'!J163=\"Contingent\"),'TSA Input'!C163,\"\"))","v":""},{"$f":"IF('TSA Input'!J163=\"\",\"\",IF(OR('TSA Input'!J163=\"Yes\",'TSA Input'!J163=\"Contingent\"),'TSA Input'!D163,\"\"))","v":""},{"$f":"IF('TSA Input'!J163=\"\",\"\",IF(OR('TSA Input'!J163=\"Yes\",'TSA Input'!J163=\"Contingent\"),'TSA Input'!G163,\"\"))","v":""},{"$f":"IF('TSA Input'!J163=\"\",\"\",IF(OR('TSA Input'!J163=\"Yes\",'TSA Input'!J163=\"Contingent\"),'TSA Input'!F163,\"\"))","v":""},"",{"$f":"IF('TSA Input'!J163=\"\",\"\",IF(OR('TSA Input'!J163=\"Yes\",'TSA Input'!J163=\"Contingent\"),'TSA Input'!D163,\"\"))","v":""},{"$f":"IF('TSA Input'!J163=\"\",\"\",IF(OR('TSA Input'!J163=\"Yes\",'TSA Input'!J163=\"Contingent\"),'TSA Input'!G163,\"\"))","v":""},{"$f":"IF('TSA Input'!J163=\"\",\"\",IF(OR('TSA Input'!J163=\"Yes\",'TSA Input'!J163=\"Contingent\"),'TSA Input'!F163,\"\"))","v":""},"","Required","Required"]
["",null,{"$f":"IF('TSA Input'!J164=\"\",\"\",IF(OR('TSA Input'!J164=\"Yes\",'TSA Input'!J164=\"Contingent\"),'TSA Input'!B164,\"Ineligible\"))","v":""},{"$f":"IF('TSA Input'!J164=\"\",\"\",IF(OR('TSA Input'!J164=\"Yes\",'TSA Input'!J164=\"Contingent\"),'TSA Input'!I164,\"\"))","v":""},{"$f":"IF('TSA Input'!J164=\"\",\"\",IF(OR('TSA Input'!J164=\"Yes\",'TSA Input'!J164=\"Contingent\"),'TSA Input'!C164,\"\"))","v":""},{"$f":"IF('TSA Input'!J164=\"\",\"\",IF(OR('TSA Input'!J164=\"Yes\",'TSA Input'!J164=\"Contingent\"),'TSA Input'!D164,\"\"))","v":""},{"$f":"IF('TSA Input'!J164=\"\",\"\",IF(OR('TSA Input'!J164=\"Yes\",'TSA Input'!J164=\"Contingent\"),'TSA Input'!G164,\"\"))","v":""},{"$f":"IF('TSA Input'!J164=\"\",\"\",IF(OR('TSA Input'!J164=\"Yes\",'TSA Input'!J164=\"Contingent\"),'TSA Input'!F164,\"\"))","v":""},"",{"$f":"IF('TSA Input'!J164=\"\",\"\",IF(OR('TSA Input'!J164=\"Yes\",'TSA Input'!J164=\"Contingent\"),'TSA Input'!D164,\"\"))","v":""},{"$f":"IF('TSA Input'!J164=\"\",\"\",IF(OR('TSA Input'!J164=\"Yes\",'TSA Input'!J164=\"Contingent\"),'TSA Input'!G164,\"\"))","v":""},{"$f":"IF('TSA Input'!J164=\"\",\"\",IF(OR('TSA Input'!J164=\"Yes\",'TSA Input'!J164=\"Contingent\"),'TSA Input'!F164,\"\"))","v":""},"","Required","Required"]
["",null,{"$f":"IF('TSA Input'!J165=\"\",\"\",IF(OR('TSA Input'!J165=\"Yes\",'TSA Input'!J165=\"Contingent\"),'TSA Input'!B165,\"Ineligible\"))","v":""},{"$f":"IF('TSA Input'!J165=\"\",\"\",IF(OR('TSA Input'!J165=\"Yes\",'TSA Input'!J165=\"Contingent\"),'TSA Input'!I165,\"\"))","v":""},{"$f":"IF('TSA Input'!J165=\"\",\"\",IF(OR('TSA Input'!J165=\"Yes\",'TSA Input'!J165=\"Contingent\"),'TSA Input'!C165,\"\"))","v":""},{"$f":"IF('TSA Input'!J165=\"\",\"\",IF(OR('TSA Input'!J165=\"Yes\",'TSA Input'!J165=\"Contingent\"),'TSA Input'!D165,\"\"))","v":""},{"$f":"IF('TSA Input'!J165=\"\",\"\",IF(OR('TSA Input'!J165=\"Yes\",'TSA Input'!J165=\"Contingent\"),'TSA Input'!G165,\"\"))","v":""},{"$f":"IF('TSA Input'!J165=\"\",\"\",IF(OR('TSA Input'!J165=\"Yes\",'TSA Input'!J165=\"Contingent\"),'TSA Input'!F165,\"\"))","v":""},"",{"$f":"IF('TSA Input'!J165=\"\",\"\",IF(OR('TSA Input'!J165=\"Yes\",'TSA Input'!J165=\"Contingent\"),'TSA Input'!D165,\"\"))","v":""},{"$f":"IF('TSA Input'!J165=\"\",\"\",IF(OR('TSA Input'!J165=\"Yes\",'TSA Input'!J165=\"Contingent\"),'TSA Input'!G165,\"\"))","v":""},{"$f":"IF('TSA Input'!J165=\"\",\"\",IF(OR('TSA Input'!J165=\"Yes\",'TSA Input'!J165=\"Contingent\"),'TSA Input'!F165,\"\"))","v":""},"","Required","Required"]
["",null,{"$f":"IF('TSA Input'!J166=\"\",\"\",IF(OR('TSA Input'!J166=\"Yes\",'TSA Input'!J166=\"Contingent\"),'TSA Input'!B166,\"Ineligible\"))","v":""},{"$f":"IF('TSA Input'!J166=\"\",\"\",IF(OR('TSA Input'!J166=\"Yes\",'TSA Input'!J166=\"Contingent\"),'TSA Input'!I166,\"\"))","v":""},{"$f":"IF('TSA Input'!J166=\"\",\"\",IF(OR('TSA Input'!J166=\"Yes\",'TSA Input'!J166=\"Contingent\"),'TSA Input'!C166,\"\"))","v":""},{"$f":"IF('TSA Input'!J166=\"\",\"\",IF(OR('TSA Input'!J166=\"Yes\",'TSA Input'!J166=\"Contingent\"),'TSA Input'!D166,\"\"))","v":""},{"$f":"IF('TSA Input'!J166=\"\",\"\",IF(OR('TSA Input'!J166=\"Yes\",'TSA Input'!J166=\"Contingent\"),'TSA Input'!G166,\"\"))","v":""},{"$f":"IF('TSA Input'!J166=\"\",\"\",IF(OR('TSA Input'!J166=\"Yes\",'TSA Input'!J166=\"Contingent\"),'TSA Input'!F166,\"\"))","v":""},"",{"$f":"IF('TSA Input'!J166=\"\",\"\",IF(OR('TSA Input'!J166=\"Yes\",'TSA Input'!J166=\"Contingent\"),'TSA Input'!D166,\"\"))","v":""},{"$f":"IF('TSA Input'!J166=\"\",\"\",IF(OR('TSA Input'!J166=\"Yes\",'TSA Input'!J166=\"Contingent\"),'TSA Input'!G166,\"\"))","v":""},{"$f":"IF('TSA Input'!J166=\"\",\"\",IF(OR('TSA Input'!J166=\"Yes\",'TSA Input'!J166=\"Contingent\"),'TSA Input'!F166,\"\"))","v":""},"","Required","Required"]
["",null,{"$f":"IF('TSA Input'!J167=\"\",\"\",IF(OR('TSA Input'!J167=\"Yes\",'TSA Input'!J167=\"Contingent\"),'TSA Input'!B167,\"Ineligible\"))","v":""},{"$f":"IF('TSA Input'!J167=\"\",\"\",IF(OR('TSA Input'!J167=\"Yes\",'TSA Input'!J167=\"Contingent\"),'TSA Input'!I167,\"\"))","v":""},{"$f":"IF('TSA Input'!J167=\"\",\"\",IF(OR('TSA Input'!J167=\"Yes\",'TSA Input'!J167=\"Contingent\"),'TSA Input'!C167,\"\"))","v":""},{"$f":"IF('TSA Input'!J167=\"\",\"\",IF(OR('TSA Input'!J167=\"Yes\",'TSA Input'!J167=\"Contingent\"),'TSA Input'!D167,\"\"))","v":""},{"$f":"IF('TSA Input'!J167=\"\",\"\",IF(OR('TSA Input'!J167=\"Yes\",'TSA Input'!J167=\"Contingent\"),'TSA Input'!G167,\"\"))","v":""},{"$f":"IF('TSA Input'!J167=\"\",\"\",IF(OR('TSA Input'!J167=\"Yes\",'TSA Input'!J167=\"Contingent\"),'TSA Input'!F167,\"\"))","v":""},"",{"$f":"IF('TSA Input'!J167=\"\",\"\",IF(OR('TSA Input'!J167=\"Yes\",'TSA Input'!J167=\"Contingent\"),'TSA Input'!D167,\"\"))","v":""},{"$f":"IF('TSA Input'!J167=\"\",\"\",IF(OR('TSA Input'!J167=\"Yes\",'TSA Input'!J167=\"Contingent\"),'TSA Input'!G167,\"\"))","v":""},{"$f":"IF('TSA Input'!J167=\"\",\"\",IF(OR('TSA Input'!J167=\"Yes\",'TSA Input'!J167=\"Contingent\"),'TSA Input'!F167,\"\"))","v":""},"","Required","Required"]
["",null,{"$f":"IF('TSA Input'!J168=\"\",\"\",IF(OR('TSA Input'!J168=\"Yes\",'TSA Input'!J168=\"Contingent\"),'TSA Input'!B168,\"Ineligible\"))","v":""},{"$f":"IF('TSA Input'!J168=\"\",\"\",IF(OR('TSA Input'!J168=\"Yes\",'TSA Input'!J168=\"Contingent\"),'TSA Input'!I168,\"\"))","v":""},{"$f":"IF('TSA Input'!J168=\"\",\"\",IF(OR('TSA Input'!J168=\"Yes\",'TSA Input'!J168=\"Contingent\"),'TSA Input'!C168,\"\"))","v":""},{"$f":"IF('TSA Input'!J168=\"\",\"\",IF(OR('TSA Input'!J168=\"Yes\",'TSA Input'!J168=\"Contingent\"),'TSA Input'!D168,\"\"))","v":""},{"$f":"IF('TSA Input'!J168=\"\",\"\",IF(OR('TSA Input'!J168=\"Yes\",'TSA Input'!J168=\"Contingent\"),'TSA Input'!G168,\"\"))","v":""},{"$f":"IF('TSA Input'!J168=\"\",\"\",IF(OR('TSA Input'!J168=\"Yes\",'TSA Input'!J168=\"Contingent\"),'TSA Input'!F168,\"\"))","v":""},"",{"$f":"IF('TSA Input'!J168=\"\",\"\",IF(OR('TSA Input'!J168=\"Yes\",'TSA Input'!J168=\"Contingent\"),'TSA Input'!D168,\"\"))","v":""},{"$f":"IF('TSA Input'!J168=\"\",\"\",IF(OR('TSA Input'!J168=\"Yes\",'TSA Input'!J168=\"Contingent\"),'TSA Input'!G168,\"\"))","v":""},{"$f":"IF('TSA Input'!J168=\"\",\"\",IF(OR('TSA Input'!J168=\"Yes\",'TSA Input'!J168=\"Contingent\"),'TSA Input'!F168,\"\"))","v":""},"","Required","Required"]
["",null,{"$f":"IF('TSA Input'!J169=\"\",\"\",IF(OR('TSA Input'!J169=\"Yes\",'TSA Input'!J169=\"Contingent\"),'TSA Input'!B169,\"Ineligible\"))","v":""},{"$f":"IF('TSA Input'!J169=\"\",\"\",IF(OR('TSA Input'!J169=\"Yes\",'TSA Input'!J169=\"Contingent\"),'TSA Input'!I169,\"\"))","v":""},{"$f":"IF('TSA Input'!J169=\"\",\"\",IF(OR('TSA Input'!J169=\"Yes\",'TSA Input'!J169=\"Contingent\"),'TSA Input'!C169,\"\"))","v":""},{"$f":"IF('TSA Input'!J169=\"\",\"\",IF(OR('TSA Input'!J169=\"Yes\",'TSA Input'!J169=\"Contingent\"),'TSA Input'!D169,\"\"))","v":""},{"$f":"IF('TSA Input'!J169=\"\",\"\",IF(OR('TSA Input'!J169=\"Yes\",'TSA Input'!J169=\"Contingent\"),'TSA Input'!G169,\"\"))","v":""},{"$f":"IF('TSA Input'!J169=\"\",\"\",IF(OR('TSA Input'!J169=\"Yes\",'TSA Input'!J169=\"Contingent\"),'TSA Input'!F169,\"\"))","v":""},"",{"$f":"IF('TSA Input'!J169=\"\",\"\",IF(OR('TSA Input'!J169=\"Yes\",'TSA Input'!J169=\"Contingent\"),'TSA Input'!D169,\"\"))","v":""},{"$f":"IF('TSA Input'!J169=\"\",\"\",IF(OR('TSA Input'!J169=\"Yes\",'TSA Input'!J169=\"Contingent\"),'TSA Input'!G169,\"\"))","v":""},{"$f":"IF('TSA Input'!J169=\"\",\"\",IF(OR('TSA Input'!J169=\"Yes\",'TSA Input'!J169=\"Contingent\"),'TSA Input'!F169,\"\"))","v":""},"","Required","Required"]
["",null,{"$f":"IF('TSA Input'!J170=\"\",\"\",IF(OR('TSA Input'!J170=\"Yes\",'TSA Input'!J170=\"Contingent\"),'TSA Input'!B170,\"Ineligible\"))","v":""},{"$f":"IF('TSA Input'!J170=\"\",\"\",IF(OR('TSA Input'!J170=\"Yes\",'TSA Input'!J170=\"Contingent\"),'TSA Input'!I170,\"\"))","v":""},{"$f":"IF('TSA Input'!J170=\"\",\"\",IF(OR('TSA Input'!J170=\"Yes\",'TSA Input'!J170=\"Contingent\"),'TSA Input'!C170,\"\"))","v":""},{"$f":"IF('TSA Input'!J170=\"\",\"\",IF(OR('TSA Input'!J170=\"Yes\",'TSA Input'!J170=\"Contingent\"),'TSA Input'!D170,\"\"))","v":""},{"$f":"IF('TSA Input'!J170=\"\",\"\",IF(OR('TSA Input'!J170=\"Yes\",'TSA Input'!J170=\"Contingent\"),'TSA Input'!G170,\"\"))","v":""},{"$f":"IF('TSA Input'!J170=\"\",\"\",IF(OR('TSA Input'!J170=\"Yes\",'TSA Input'!J170=\"Contingent\"),'TSA Input'!F170,\"\"))","v":""},"",{"$f":"IF('TSA Input'!J170=\"\",\"\",IF(OR('TSA Input'!J170=\"Yes\",'TSA Input'!J170=\"Contingent\"),'TSA Input'!D170,\"\"))","v":""},{"$f":"IF('TSA Input'!J170=\"\",\"\",IF(OR('TSA Input'!J170=\"Yes\",'TSA Input'!J170=\"Contingent\"),'TSA Input'!G170,\"\"))","v":""},{"$f":"IF('TSA Input'!J170=\"\",\"\",IF(OR('TSA Input'!J170=\"Yes\",'TSA Input'!J170=\"Contingent\"),'TSA Input'!F170,\"\"))","v":""},"","Required","Required"]
["",null,{"$f":"IF('TSA Input'!J171=\"\",\"\",IF(OR('TSA Input'!J171=\"Yes\",'TSA Input'!J171=\"Contingent\"),'TSA Input'!B171,\"Ineligible\"))","v":""},{"$f":"IF('TSA Input'!J171=\"\",\"\",IF(OR('TSA Input'!J171=\"Yes\",'TSA Input'!J171=\"Contingent\"),'TSA Input'!I171,\"\"))","v":""},{"$f":"IF('TSA Input'!J171=\"\",\"\",IF(OR('TSA Input'!J171=\"Yes\",'TSA Input'!J171=\"Contingent\"),'TSA Input'!C171,\"\"))","v":""},{"$f":"IF('TSA Input'!J171=\"\",\"\",IF(OR('TSA Input'!J171=\"Yes\",'TSA Input'!J171=\"Contingent\"),'TSA Input'!D171,\"\"))","v":""},{"$f":"IF('TSA Input'!J171=\"\",\"\",IF(OR('TSA Input'!J171=\"Yes\",'TSA Input'!J171=\"Contingent\"),'TSA Input'!G171,\"\"))","v":""},{"$f":"IF('TSA Input'!J171=\"\",\"\",IF(OR('TSA Input'!J171=\"Yes\",'TSA Input'!J171=\"Contingent\"),'TSA Input'!F171,\"\"))","v":""},"",{"$f":"IF('TSA Input'!J171=\"\",\"\",IF(OR('TSA Input'!J171=\"Yes\",'TSA Input'!J171=\"Contingent\"),'TSA Input'!D171,\"\"))","v":""},{"$f":"IF('TSA Input'!J171=\"\",\"\",IF(OR('TSA Input'!J171=\"Yes\",'TSA Input'!J171=\"Contingent\"),'TSA Input'!G171,\"\"))","v":""},{"$f":"IF('TSA Input'!J171=\"\",\"\",IF(OR('TSA Input'!J171=\"Yes\",'TSA Input'!J171=\"Contingent\"),'TSA Input'!F171,\"\"))","v":""},"","Required","Required"]
["",null,{"$f":"IF('TSA Input'!J172=\"\",\"\",IF(OR('TSA Input'!J172=\"Yes\",'TSA Input'!J172=\"Contingent\"),'TSA Input'!B172,\"Ineligible\"))","v":""},{"$f":"IF('TSA Input'!J172=\"\",\"\",IF(OR('TSA Input'!J172=\"Yes\",'TSA Input'!J172=\"Contingent\"),'TSA Input'!I172,\"\"))","v":""},{"$f":"IF('TSA Input'!J172=\"\",\"\",IF(OR('TSA Input'!J172=\"Yes\",'TSA Input'!J172=\"Contingent\"),'TSA Input'!C172,\"\"))","v":""},{"$f":"IF('TSA Input'!J172=\"\",\"\",IF(OR('TSA Input'!J172=\"Yes\",'TSA Input'!J172=\"Contingent\"),'TSA Input'!D172,\"\"))","v":""},{"$f":"IF('TSA Input'!J172=\"\",\"\",IF(OR('TSA Input'!J172=\"Yes\",'TSA Input'!J172=\"Contingent\"),'TSA Input'!G172,\"\"))","v":""},{"$f":"IF('TSA Input'!J172=\"\",\"\",IF(OR('TSA Input'!J172=\"Yes\",'TSA Input'!J172=\"Contingent\"),'TSA Input'!F172,\"\"))","v":""},"",{"$f":"IF('TSA Input'!J172=\"\",\"\",IF(OR('TSA Input'!J172=\"Yes\",'TSA Input'!J172=\"Contingent\"),'TSA Input'!D172,\"\"))","v":""},{"$f":"IF('TSA Input'!J172=\"\",\"\",IF(OR('TSA Input'!J172=\"Yes\",'TSA Input'!J172=\"Contingent\"),'TSA Input'!G172,\"\"))","v":""},{"$f":"IF('TSA Input'!J172=\"\",\"\",IF(OR('TSA Input'!J172=\"Yes\",'TSA Input'!J172=\"Contingent\"),'TSA Input'!F172,\"\"))","v":""},"","Required","Required"]
["",null,{"$f":"IF('TSA Input'!J173=\"\",\"\",IF(OR('TSA Input'!J173=\"Yes\",'TSA Input'!J173=\"Contingent\"),'TSA Input'!B173,\"Ineligible\"))","v":""},{"$f":"IF('TSA Input'!J173=\"\",\"\",IF(OR('TSA Input'!J173=\"Yes\",'TSA Input'!J173=\"Contingent\"),'TSA Input'!I173,\"\"))","v":""},{"$f":"IF('TSA Input'!J173=\"\",\"\",IF(OR('TSA Input'!J173=\"Yes\",'TSA Input'!J173=\"Contingent\"),'TSA Input'!C173,\"\"))","v":""},{"$f":"IF('TSA Input'!J173=\"\",\"\",IF(OR('TSA Input'!J173=\"Yes\",'TSA Input'!J173=\"Contingent\"),'TSA Input'!D173,\"\"))","v":""},{"$f":"IF('TSA Input'!J173=\"\",\"\",IF(OR('TSA Input'!J173=\"Yes\",'TSA Input'!J173=\"Contingent\"),'TSA Input'!G173,\"\"))","v":""},{"$f":"IF('TSA Input'!J173=\"\",\"\",IF(OR('TSA Input'!J173=\"Yes\",'TSA Input'!J173=\"Contingent\"),'TSA Input'!F173,\"\"))","v":""},"",{"$f":"IF('TSA Input'!J173=\"\",\"\",IF(OR('TSA Input'!J173=\"Yes\",'TSA Input'!J173=\"Contingent\"),'TSA Input'!D173,\"\"))","v":""},{"$f":"IF('TSA Input'!J173=\"\",\"\",IF(OR('TSA Input'!J173=\"Yes\",'TSA Input'!J173=\"Contingent\"),'TSA Input'!G173,\"\"))","v":""},{"$f":"IF('TSA Input'!J173=\"\",\"\",IF(OR('TSA Input'!J173=\"Yes\",'TSA Input'!J173=\"Contingent\"),'TSA Input'!F173,\"\"))","v":""},"","Required","Required"]
["",null,{"$f":"IF('TSA Input'!J174=\"\",\"\",IF(OR('TSA Input'!J174=\"Yes\",'TSA Input'!J174=\"Contingent\"),'TSA Input'!B174,\"Ineligible\"))","v":""},{"$f":"IF('TSA Input'!J174=\"\",\"\",IF(OR('TSA Input'!J174=\"Yes\",'TSA Input'!J174=\"Contingent\"),'TSA Input'!I174,\"\"))","v":""},{"$f":"IF('TSA Input'!J174=\"\",\"\",IF(OR('TSA Input'!J174=\"Yes\",'TSA Input'!J174=\"Contingent\"),'TSA Input'!C174,\"\"))","v":""},{"$f":"IF('TSA Input'!J174=\"\",\"\",IF(OR('TSA Input'!J174=\"Yes\",'TSA Input'!J174=\"Contingent\"),'TSA Input'!D174,\"\"))","v":""},{"$f":"IF('TSA Input'!J174=\"\",\"\",IF(OR('TSA Input'!J174=\"Yes\",'TSA Input'!J174=\"Contingent\"),'TSA Input'!G174,\"\"))","v":""},{"$f":"IF('TSA Input'!J174=\"\",\"\",IF(OR('TSA Input'!J174=\"Yes\",'TSA Input'!J174=\"Contingent\"),'TSA Input'!F174,\"\"))","v":""},"",{"$f":"IF('TSA Input'!J174=\"\",\"\",IF(OR('TSA Input'!J174=\"Yes\",'TSA Input'!J174=\"Contingent\"),'TSA Input'!D174,\"\"))","v":""},{"$f":"IF('TSA Input'!J174=\"\",\"\",IF(OR('TSA Input'!J174=\"Yes\",'TSA Input'!J174=\"Contingent\"),'TSA Input'!G174,\"\"))","v":""},{"$f":"IF('TSA Input'!J174=\"\",\"\",IF(OR('TSA Input'!J174=\"Yes\",'TSA Input'!J174=\"Contingent\"),'TSA Input'!F174,\"\"))","v":""},"","Required","Required"]
["",null,{"$f":"IF('TSA Input'!J175=\"\",\"\",IF(OR('TSA Input'!J175=\"Yes\",'TSA Input'!J175=\"Contingent\"),'TSA Input'!B175,\"Ineligible\"))","v":""},{"$f":"IF('TSA Input'!J175=\"\",\"\",IF(OR('TSA Input'!J175=\"Yes\",'TSA Input'!J175=\"Contingent\"),'TSA Input'!I175,\"\"))","v":""},{"$f":"IF('TSA Input'!J175=\"\",\"\",IF(OR('TSA Input'!J175=\"Yes\",'TSA Input'!J175=\"Contingent\"),'TSA Input'!C175,\"\"))","v":""},{"$f":"IF('TSA Input'!J175=\"\",\"\",IF(OR('TSA Input'!J175=\"Yes\",'TSA Input'!J175=\"Contingent\"),'TSA Input'!D175,\"\"))","v":""},{"$f":"IF('TSA Input'!J175=\"\",\"\",IF(OR('TSA Input'!J175=\"Yes\",'TSA Input'!J175=\"Contingent\"),'TSA Input'!G175,\"\"))","v":""},{"$f":"IF('TSA Input'!J175=\"\",\"\",IF(OR('TSA Input'!J175=\"Yes\",'TSA Input'!J175=\"Contingent\"),'TSA Input'!F175,\"\"))","v":""},"",{"$f":"IF('TSA Input'!J175=\"\",\"\",IF(OR('TSA Input'!J175=\"Yes\",'TSA Input'!J175=\"Contingent\"),'TSA Input'!D175,\"\"))","v":""},{"$f":"IF('TSA Input'!J175=\"\",\"\",IF(OR('TSA Input'!J175=\"Yes\",'TSA Input'!J175=\"Contingent\"),'TSA Input'!G175,\"\"))","v":""},{"$f":"IF('TSA Input'!J175=\"\",\"\",IF(OR('TSA Input'!J175=\"Yes\",'TSA Input'!J175=\"Contingent\"),'TSA Input'!F175,\"\"))","v":""},"","Required","Required"]
["",null,{"$f":"IF('TSA Input'!J176=\"\",\"\",IF(OR('TSA Input'!J176=\"Yes\",'TSA Input'!J176=\"Contingent\"),'TSA Input'!B176,\"Ineligible\"))","v":""},{"$f":"IF('TSA Input'!J176=\"\",\"\",IF(OR('TSA Input'!J176=\"Yes\",'TSA Input'!J176=\"Contingent\"),'TSA Input'!I176,\"\"))","v":""},{"$f":"IF('TSA Input'!J176=\"\",\"\",IF(OR('TSA Input'!J176=\"Yes\",'TSA Input'!J176=\"Contingent\"),'TSA Input'!C176,\"\"))","v":""},{"$f":"IF('TSA Input'!J176=\"\",\"\",IF(OR('TSA Input'!J176=\"Yes\",'TSA Input'!J176=\"Contingent\"),'TSA Input'!D176,\"\"))","v":""},{"$f":"IF('TSA Input'!J176=\"\",\"\",IF(OR('TSA Input'!J176=\"Yes\",'TSA Input'!J176=\"Contingent\"),'TSA Input'!G176,\"\"))","v":""},{"$f":"IF('TSA Input'!J176=\"\",\"\",IF(OR('TSA Input'!J176=\"Yes\",'TSA Input'!J176=\"Contingent\"),'TSA Input'!F176,\"\"))","v":""},"",{"$f":"IF('TSA Input'!J176=\"\",\"\",IF(OR('TSA Input'!J176=\"Yes\",'TSA Input'!J176=\"Contingent\"),'TSA Input'!D176,\"\"))","v":""},{"$f":"IF('TSA Input'!J176=\"\",\"\",IF(OR('TSA Input'!J176=\"Yes\",'TSA Input'!J176=\"Contingent\"),'TSA Input'!G176,\"\"))","v":""},{"$f":"IF('TSA Input'!J176=\"\",\"\",IF(OR('TSA Input'!J176=\"Yes\",'TSA Input'!J176=\"Contingent\"),'TSA Input'!F176,\"\"))","v":""},"","Required","Required"]
["",null,{"$f":"IF('TSA Input'!J177=\"\",\"\",IF(OR('TSA Input'!J177=\"Yes\",'TSA Input'!J177=\"Contingent\"),'TSA Input'!B177,\"Ineligible\"))","v":""},{"$f":"IF('TSA Input'!J177=\"\",\"\",IF(OR('TSA Input'!J177=\"Yes\",'TSA Input'!J177=\"Contingent\"),'TSA Input'!I177,\"\"))","v":""},{"$f":"IF('TSA Input'!J177=\"\",\"\",IF(OR('TSA Input'!J177=\"Yes\",'TSA Input'!J177=\"Contingent\"),'TSA Input'!C177,\"\"))","v":""},{"$f":"IF('TSA Input'!J177=\"\",\"\",IF(OR('TSA Input'!J177=\"Yes\",'TSA Input'!J177=\"Contingent\"),'TSA Input'!D177,\"\"))","v":""},{"$f":"IF('TSA Input'!J177=\"\",\"\",IF(OR('TSA Input'!J177=\"Yes\",'TSA Input'!J177=\"Contingent\"),'TSA Input'!G177,\"\"))","v":""},{"$f":"IF('TSA Input'!J177=\"\",\"\",IF(OR('TSA Input'!J177=\"Yes\",'TSA Input'!J177=\"Contingent\"),'TSA Input'!F177,\"\"))","v":""},"",{"$f":"IF('TSA Input'!J177=\"\",\"\",IF(OR('TSA Input'!J177=\"Yes\",'TSA Input'!J177=\"Contingent\"),'TSA Input'!D177,\"\"))","v":""},{"$f":"IF('TSA Input'!J177=\"\",\"\",IF(OR('TSA Input'!J177=\"Yes\",'TSA Input'!J177=\"Contingent\"),'TSA Input'!G177,\"\"))","v":""},{"$f":"IF('TSA Input'!J177=\"\",\"\",IF(OR('TSA Input'!J177=\"Yes\",'TSA Input'!J177=\"Contingent\"),'TSA Input'!F177,\"\"))","v":""},"","Required","Required"]
["",null,{"$f":"IF('TSA Input'!J178=\"\",\"\",IF(OR('TSA Input'!J178=\"Yes\",'TSA Input'!J178=\"Contingent\"),'TSA Input'!B178,\"Ineligible\"))","v":""},{"$f":"IF('TSA Input'!J178=\"\",\"\",IF(OR('TSA Input'!J178=\"Yes\",'TSA Input'!J178=\"Contingent\"),'TSA Input'!I178,\"\"))","v":""},{"$f":"IF('TSA Input'!J178=\"\",\"\",IF(OR('TSA Input'!J178=\"Yes\",'TSA Input'!J178=\"Contingent\"),'TSA Input'!C178,\"\"))","v":""},{"$f":"IF('TSA Input'!J178=\"\",\"\",IF(OR('TSA Input'!J178=\"Yes\",'TSA Input'!J178=\"Contingent\"),'TSA Input'!D178,\"\"))","v":""},{"$f":"IF('TSA Input'!J178=\"\",\"\",IF(OR('TSA Input'!J178=\"Yes\",'TSA Input'!J178=\"Contingent\"),'TSA Input'!G178,\"\"))","v":""},{"$f":"IF('TSA Input'!J178=\"\",\"\",IF(OR('TSA Input'!J178=\"Yes\",'TSA Input'!J178=\"Contingent\"),'TSA Input'!F178,\"\"))","v":""},"",{"$f":"IF('TSA Input'!J178=\"\",\"\",IF(OR('TSA Input'!J178=\"Yes\",'TSA Input'!J178=\"Contingent\"),'TSA Input'!D178,\"\"))","v":""},{"$f":"IF('TSA Input'!J178=\"\",\"\",IF(OR('TSA Input'!J178=\"Yes\",'TSA Input'!J178=\"Contingent\"),'TSA Input'!G178,\"\"))","v":""},{"$f":"IF('TSA Input'!J178=\"\",\"\",IF(OR('TSA Input'!J178=\"Yes\",'TSA Input'!J178=\"Contingent\"),'TSA Input'!F178,\"\"))","v":""},"","Required","Required"]
["",null,{"$f":"IF('TSA Input'!J179=\"\",\"\",IF(OR('TSA Input'!J179=\"Yes\",'TSA Input'!J179=\"Contingent\"),'TSA Input'!B179,\"Ineligible\"))","v":""},{"$f":"IF('TSA Input'!J179=\"\",\"\",IF(OR('TSA Input'!J179=\"Yes\",'TSA Input'!J179=\"Contingent\"),'TSA Input'!I179,\"\"))","v":""},{"$f":"IF('TSA Input'!J179=\"\",\"\",IF(OR('TSA Input'!J179=\"Yes\",'TSA Input'!J179=\"Contingent\"),'TSA Input'!C179,\"\"))","v":""},{"$f":"IF('TSA Input'!J179=\"\",\"\",IF(OR('TSA Input'!J179=\"Yes\",'TSA Input'!J179=\"Contingent\"),'TSA Input'!D179,\"\"))","v":""},{"$f":"IF('TSA Input'!J179=\"\",\"\",IF(OR('TSA Input'!J179=\"Yes\",'TSA Input'!J179=\"Contingent\"),'TSA Input'!G179,\"\"))","v":""},{"$f":"IF('TSA Input'!J179=\"\",\"\",IF(OR('TSA Input'!J179=\"Yes\",'TSA Input'!J179=\"Contingent\"),'TSA Input'!F179,\"\"))","v":""},"",{"$f":"IF('TSA Input'!J179=\"\",\"\",IF(OR('TSA Input'!J179=\"Yes\",'TSA Input'!J179=\"Contingent\"),'TSA Input'!D179,\"\"))","v":""},{"$f":"IF('TSA Input'!J179=\"\",\"\",IF(OR('TSA Input'!J179=\"Yes\",'TSA Input'!J179=\"Contingent\"),'TSA Input'!G179,\"\"))","v":""},{"$f":"IF('TSA Input'!J179=\"\",\"\",IF(OR('TSA Input'!J179=\"Yes\",'TSA Input'!J179=\"Contingent\"),'TSA Input'!F179,\"\"))","v":""},"","Required","Required"]
["",null,{"$f":"IF('TSA Input'!J180=\"\",\"\",IF(OR('TSA Input'!J180=\"Yes\",'TSA Input'!J180=\"Contingent\"),'TSA Input'!B180,\"Ineligible\"))","v":""},{"$f":"IF('TSA Input'!J180=\"\",\"\",IF(OR('TSA Input'!J180=\"Yes\",'TSA Input'!J180=\"Contingent\"),'TSA Input'!I180,\"\"))","v":""},{"$f":"IF('TSA Input'!J180=\"\",\"\",IF(OR('TSA Input'!J180=\"Yes\",'TSA Input'!J180=\"Contingent\"),'TSA Input'!C180,\"\"))","v":""},{"$f":"IF('TSA Input'!J180=\"\",\"\",IF(OR('TSA Input'!J180=\"Yes\",'TSA Input'!J180=\"Contingent\"),'TSA Input'!D180,\"\"))","v":""},{"$f":"IF('TSA Input'!J180=\"\",\"\",IF(OR('TSA Input'!J180=\"Yes\",'TSA Input'!J180=\"Contingent\"),'TSA Input'!G180,\"\"))","v":""},{"$f":"IF('TSA Input'!J180=\"\",\"\",IF(OR('TSA Input'!J180=\"Yes\",'TSA Input'!J180=\"Contingent\"),'TSA Input'!F180,\"\"))","v":""},"",{"$f":"IF('TSA Input'!J180=\"\",\"\",IF(OR('TSA Input'!J180=\"Yes\",'TSA Input'!J180=\"Contingent\"),'TSA Input'!D180,\"\"))","v":""},{"$f":"IF('TSA Input'!J180=\"\",\"\",IF(OR('TSA Input'!J180=\"Yes\",'TSA Input'!J180=\"Contingent\"),'TSA Input'!G180,\"\"))","v":""},{"$f":"IF('TSA Input'!J180=\"\",\"\",IF(OR('TSA Input'!J180=\"Yes\",'TSA Input'!J180=\"Contingent\"),'TSA Input'!F180,\"\"))","v":""},"","Required","Required"]
["",null,{"$f":"IF('TSA Input'!J181=\"\",\"\",IF(OR('TSA Input'!J181=\"Yes\",'TSA Input'!J181=\"Contingent\"),'TSA Input'!B181,\"Ineligible\"))","v":""},{"$f":"IF('TSA Input'!J181=\"\",\"\",IF(OR('TSA Input'!J181=\"Yes\",'TSA Input'!J181=\"Contingent\"),'TSA Input'!I181,\"\"))","v":""},{"$f":"IF('TSA Input'!J181=\"\",\"\",IF(OR('TSA Input'!J181=\"Yes\",'TSA Input'!J181=\"Contingent\"),'TSA Input'!C181,\"\"))","v":""},{"$f":"IF('TSA Input'!J181=\"\",\"\",IF(OR('TSA Input'!J181=\"Yes\",'TSA Input'!J181=\"Contingent\"),'TSA Input'!D181,\"\"))","v":""},{"$f":"IF('TSA Input'!J181=\"\",\"\",IF(OR('TSA Input'!J181=\"Yes\",'TSA Input'!J181=\"Contingent\"),'TSA Input'!G181,\"\"))","v":""},{"$f":"IF('TSA Input'!J181=\"\",\"\",IF(OR('TSA Input'!J181=\"Yes\",'TSA Input'!J181=\"Contingent\"),'TSA Input'!F181,\"\"))","v":""},"",{"$f":"IF('TSA Input'!J181=\"\",\"\",IF(OR('TSA Input'!J181=\"Yes\",'TSA Input'!J181=\"Contingent\"),'TSA Input'!D181,\"\"))","v":""},{"$f":"IF('TSA Input'!J181=\"\",\"\",IF(OR('TSA Input'!J181=\"Yes\",'TSA Input'!J181=\"Contingent\"),'TSA Input'!G181,\"\"))","v":""},{"$f":"IF('TSA Input'!J181=\"\",\"\",IF(OR('TSA Input'!J181=\"Yes\",'TSA Input'!J181=\"Contingent\"),'TSA Input'!F181,\"\"))","v":""},"","Required","Required"]
["",null,{"$f":"IF('TSA Input'!J182=\"\",\"\",IF(OR('TSA Input'!J182=\"Yes\",'TSA Input'!J182=\"Contingent\"),'TSA Input'!B182,\"Ineligible\"))","v":""},{"$f":"IF('TSA Input'!J182=\"\",\"\",IF(OR('TSA Input'!J182=\"Yes\",'TSA Input'!J182=\"Contingent\"),'TSA Input'!I182,\"\"))","v":""},{"$f":"IF('TSA Input'!J182=\"\",\"\",IF(OR('TSA Input'!J182=\"Yes\",'TSA Input'!J182=\"Contingent\"),'TSA Input'!C182,\"\"))","v":""},{"$f":"IF('TSA Input'!J182=\"\",\"\",IF(OR('TSA Input'!J182=\"Yes\",'TSA Input'!J182=\"Contingent\"),'TSA Input'!D182,\"\"))","v":""},{"$f":"IF('TSA Input'!J182=\"\",\"\",IF(OR('TSA Input'!J182=\"Yes\",'TSA Input'!J182=\"Contingent\"),'TSA Input'!G182,\"\"))","v":""},{"$f":"IF('TSA Input'!J182=\"\",\"\",IF(OR('TSA Input'!J182=\"Yes\",'TSA Input'!J182=\"Contingent\"),'TSA Input'!F182,\"\"))","v":""},"",{"$f":"IF('TSA Input'!J182=\"\",\"\",IF(OR('TSA Input'!J182=\"Yes\",'TSA Input'!J182=\"Contingent\"),'TSA Input'!D182,\"\"))","v":""},{"$f":"IF('TSA Input'!J182=\"\",\"\",IF(OR('TSA Input'!J182=\"Yes\",'TSA Input'!J182=\"Contingent\"),'TSA Input'!G182,\"\"))","v":""},{"$f":"IF('TSA Input'!J182=\"\",\"\",IF(OR('TSA Input'!J182=\"Yes\",'TSA Input'!J182=\"Contingent\"),'TSA Input'!F182,\"\"))","v":""},"","Required","Required"]
["",null,{"$f":"IF('TSA Input'!J183=\"\",\"\",IF(OR('TSA Input'!J183=\"Yes\",'TSA Input'!J183=\"Contingent\"),'TSA Input'!B183,\"Ineligible\"))","v":""},{"$f":"IF('TSA Input'!J183=\"\",\"\",IF(OR('TSA Input'!J183=\"Yes\",'TSA Input'!J183=\"Contingent\"),'TSA Input'!I183,\"\"))","v":""},{"$f":"IF('TSA Input'!J183=\"\",\"\",IF(OR('TSA Input'!J183=\"Yes\",'TSA Input'!J183=\"Contingent\"),'TSA Input'!C183,\"\"))","v":""},{"$f":"IF('TSA Input'!J183=\"\",\"\",IF(OR('TSA Input'!J183=\"Yes\",'TSA Input'!J183=\"Contingent\"),'TSA Input'!D183,\"\"))","v":""},{"$f":"IF('TSA Input'!J183=\"\",\"\",IF(OR('TSA Input'!J183=\"Yes\",'TSA Input'!J183=\"Contingent\"),'TSA Input'!G183,\"\"))","v":""},{"$f":"IF('TSA Input'!J183=\"\",\"\",IF(OR('TSA Input'!J183=\"Yes\",'TSA Input'!J183=\"Contingent\"),'TSA Input'!F183,\"\"))","v":""},"",{"$f":"IF('TSA Input'!J183=\"\",\"\",IF(OR('TSA Input'!J183=\"Yes\",'TSA Input'!J183=\"Contingent\"),'TSA Input'!D183,\"\"))","v":""},{"$f":"IF('TSA Input'!J183=\"\",\"\",IF(OR('TSA Input'!J183=\"Yes\",'TSA Input'!J183=\"Contingent\"),'TSA Input'!G183,\"\"))","v":""},{"$f":"IF('TSA Input'!J183=\"\",\"\",IF(OR('TSA Input'!J183=\"Yes\",'TSA Input'!J183=\"Contingent\"),'TSA Input'!F183,\"\"))","v":""},"","Required","Required"]
["",null,{"$f":"IF('TSA Input'!J184=\"\",\"\",IF(OR('TSA Input'!J184=\"Yes\",'TSA Input'!J184=\"Contingent\"),'TSA Input'!B184,\"Ineligible\"))","v":""},{"$f":"IF('TSA Input'!J184=\"\",\"\",IF(OR('TSA Input'!J184=\"Yes\",'TSA Input'!J184=\"Contingent\"),'TSA Input'!I184,\"\"))","v":""},{"$f":"IF('TSA Input'!J184=\"\",\"\",IF(OR('TSA Input'!J184=\"Yes\",'TSA Input'!J184=\"Contingent\"),'TSA Input'!C184,\"\"))","v":""},{"$f":"IF('TSA Input'!J184=\"\",\"\",IF(OR('TSA Input'!J184=\"Yes\",'TSA Input'!J184=\"Contingent\"),'TSA Input'!D184,\"\"))","v":""},{"$f":"IF('TSA Input'!J184=\"\",\"\",IF(OR('TSA Input'!J184=\"Yes\",'TSA Input'!J184=\"Contingent\"),'TSA Input'!G184,\"\"))","v":""},{"$f":"IF('TSA Input'!J184=\"\",\"\",IF(OR('TSA Input'!J184=\"Yes\",'TSA Input'!J184=\"Contingent\"),'TSA Input'!F184,\"\"))","v":""},"",{"$f":"IF('TSA Input'!J184=\"\",\"\",IF(OR('TSA Input'!J184=\"Yes\",'TSA Input'!J184=\"Contingent\"),'TSA Input'!D184,\"\"))","v":""},{"$f":"IF('TSA Input'!J184=\"\",\"\",IF(OR('TSA Input'!J184=\"Yes\",'TSA Input'!J184=\"Contingent\"),'TSA Input'!G184,\"\"))","v":""},{"$f":"IF('TSA Input'!J184=\"\",\"\",IF(OR('TSA Input'!J184=\"Yes\",'TSA Input'!J184=\"Contingent\"),'TSA Input'!F184,\"\"))","v":""},"","Required","Required"]
["",null,{"$f":"IF('TSA Input'!J185=\"\",\"\",IF(OR('TSA Input'!J185=\"Yes\",'TSA Input'!J185=\"Contingent\"),'TSA Input'!B185,\"Ineligible\"))","v":""},{"$f":"IF('TSA Input'!J185=\"\",\"\",IF(OR('TSA Input'!J185=\"Yes\",'TSA Input'!J185=\"Contingent\"),'TSA Input'!I185,\"\"))","v":""},{"$f":"IF('TSA Input'!J185=\"\",\"\",IF(OR('TSA Input'!J185=\"Yes\",'TSA Input'!J185=\"Contingent\"),'TSA Input'!C185,\"\"))","v":""},{"$f":"IF('TSA Input'!J185=\"\",\"\",IF(OR('TSA Input'!J185=\"Yes\",'TSA Input'!J185=\"Contingent\"),'TSA Input'!D185,\"\"))","v":""},{"$f":"IF('TSA Input'!J185=\"\",\"\",IF(OR('TSA Input'!J185=\"Yes\",'TSA Input'!J185=\"Contingent\"),'TSA Input'!G185,\"\"))","v":""},{"$f":"IF('TSA Input'!J185=\"\",\"\",IF(OR('TSA Input'!J185=\"Yes\",'TSA Input'!J185=\"Contingent\"),'TSA Input'!F185,\"\"))","v":""},"",{"$f":"IF('TSA Input'!J185=\"\",\"\",IF(OR('TSA Input'!J185=\"Yes\",'TSA Input'!J185=\"Contingent\"),'TSA Input'!D185,\"\"))","v":""},{"$f":"IF('TSA Input'!J185=\"\",\"\",IF(OR('TSA Input'!J185=\"Yes\",'TSA Input'!J185=\"Contingent\"),'TSA Input'!G185,\"\"))","v":""},{"$f":"IF('TSA Input'!J185=\"\",\"\",IF(OR('TSA Input'!J185=\"Yes\",'TSA Input'!J185=\"Contingent\"),'TSA Input'!F185,\"\"))","v":""},"","Required","Required"]
["",null,{"$f":"IF('TSA Input'!J186=\"\",\"\",IF(OR('TSA Input'!J186=\"Yes\",'TSA Input'!J186=\"Contingent\"),'TSA Input'!B186,\"Ineligible\"))","v":""},{"$f":"IF('TSA Input'!J186=\"\",\"\",IF(OR('TSA Input'!J186=\"Yes\",'TSA Input'!J186=\"Contingent\"),'TSA Input'!I186,\"\"))","v":""},{"$f":"IF('TSA Input'!J186=\"\",\"\",IF(OR('TSA Input'!J186=\"Yes\",'TSA Input'!J186=\"Contingent\"),'TSA Input'!C186,\"\"))","v":""},{"$f":"IF('TSA Input'!J186=\"\",\"\",IF(OR('TSA Input'!J186=\"Yes\",'TSA Input'!J186=\"Contingent\"),'TSA Input'!D186,\"\"))","v":""},{"$f":"IF('TSA Input'!J186=\"\",\"\",IF(OR('TSA Input'!J186=\"Yes\",'TSA Input'!J186=\"Contingent\"),'TSA Input'!G186,\"\"))","v":""},{"$f":"IF('TSA Input'!J186=\"\",\"\",IF(OR('TSA Input'!J186=\"Yes\",'TSA Input'!J186=\"Contingent\"),'TSA Input'!F186,\"\"))","v":""},"",{"$f":"IF('TSA Input'!J186=\"\",\"\",IF(OR('TSA Input'!J186=\"Yes\",'TSA Input'!J186=\"Contingent\"),'TSA Input'!D186,\"\"))","v":""},{"$f":"IF('TSA Input'!J186=\"\",\"\",IF(OR('TSA Input'!J186=\"Yes\",'TSA Input'!J186=\"Contingent\"),'TSA Input'!G186,\"\"))","v":""},{"$f":"IF('TSA Input'!J186=\"\",\"\",IF(OR('TSA Input'!J186=\"Yes\",'TSA Input'!J186=\"Contingent\"),'TSA Input'!F186,\"\"))","v":""},"","Required","Required"]
["",null,{"$f":"IF('TSA Input'!J187=\"\",\"\",IF(OR('TSA Input'!J187=\"Yes\",'TSA Input'!J187=\"Contingent\"),'TSA Input'!B187,\"Ineligible\"))","v":""},{"$f":"IF('TSA Input'!J187=\"\",\"\",IF(OR('TSA Input'!J187=\"Yes\",'TSA Input'!J187=\"Contingent\"),'TSA Input'!I187,\"\"))","v":""},{"$f":"IF('TSA Input'!J187=\"\",\"\",IF(OR('TSA Input'!J187=\"Yes\",'TSA Input'!J187=\"Contingent\"),'TSA Input'!C187,\"\"))","v":""},{"$f":"IF('TSA Input'!J187=\"\",\"\",IF(OR('TSA Input'!J187=\"Yes\",'TSA Input'!J187=\"Contingent\"),'TSA Input'!D187,\"\"))","v":""},{"$f":"IF('TSA Input'!J187=\"\",\"\",IF(OR('TSA Input'!J187=\"Yes\",'TSA Input'!J187=\"Contingent\"),'TSA Input'!G187,\"\"))","v":""},{"$f":"IF('TSA Input'!J187=\"\",\"\",IF(OR('TSA Input'!J187=\"Yes\",'TSA Input'!J187=\"Contingent\"),'TSA Input'!F187,\"\"))","v":""},"",{"$f":"IF('TSA Input'!J187=\"\",\"\",IF(OR('TSA Input'!J187=\"Yes\",'TSA Input'!J187=\"Contingent\"),'TSA Input'!D187,\"\"))","v":""},{"$f":"IF('TSA Input'!J187=\"\",\"\",IF(OR('TSA Input'!J187=\"Yes\",'TSA Input'!J187=\"Contingent\"),'TSA Input'!G187,\"\"))","v":""},{"$f":"IF('TSA Input'!J187=\"\",\"\",IF(OR('TSA Input'!J187=\"Yes\",'TSA Input'!J187=\"Contingent\"),'TSA Input'!F187,\"\"))","v":""},"","Required","Required"]
["",null,{"$f":"IF('TSA Input'!J188=\"\",\"\",IF(OR('TSA Input'!J188=\"Yes\",'TSA Input'!J188=\"Contingent\"),'TSA Input'!B188,\"Ineligible\"))","v":""},{"$f":"IF('TSA Input'!J188=\"\",\"\",IF(OR('TSA Input'!J188=\"Yes\",'TSA Input'!J188=\"Contingent\"),'TSA Input'!I188,\"\"))","v":""},{"$f":"IF('TSA Input'!J188=\"\",\"\",IF(OR('TSA Input'!J188=\"Yes\",'TSA Input'!J188=\"Contingent\"),'TSA Input'!C188,\"\"))","v":""},{"$f":"IF('TSA Input'!J188=\"\",\"\",IF(OR('TSA Input'!J188=\"Yes\",'TSA Input'!J188=\"Contingent\"),'TSA Input'!D188,\"\"))","v":""},{"$f":"IF('TSA Input'!J188=\"\",\"\",IF(OR('TSA Input'!J188=\"Yes\",'TSA Input'!J188=\"Contingent\"),'TSA Input'!G188,\"\"))","v":""},{"$f":"IF('TSA Input'!J188=\"\",\"\",IF(OR('TSA Input'!J188=\"Yes\",'TSA Input'!J188=\"Contingent\"),'TSA Input'!F188,\"\"))","v":""},"",{"$f":"IF('TSA Input'!J188=\"\",\"\",IF(OR('TSA Input'!J188=\"Yes\",'TSA Input'!J188=\"Contingent\"),'TSA Input'!D188,\"\"))","v":""},{"$f":"IF('TSA Input'!J188=\"\",\"\",IF(OR('TSA Input'!J188=\"Yes\",'TSA Input'!J188=\"Contingent\"),'TSA Input'!G188,\"\"))","v":""},{"$f":"IF('TSA Input'!J188=\"\",\"\",IF(OR('TSA Input'!J188=\"Yes\",'TSA Input'!J188=\"Contingent\"),'TSA Input'!F188,\"\"))","v":""},"","Required","Required"]
["",null,{"$f":"IF('TSA Input'!J189=\"\",\"\",IF(OR('TSA Input'!J189=\"Yes\",'TSA Input'!J189=\"Contingent\"),'TSA Input'!B189,\"Ineligible\"))","v":""},{"$f":"IF('TSA Input'!J189=\"\",\"\",IF(OR('TSA Input'!J189=\"Yes\",'TSA Input'!J189=\"Contingent\"),'TSA Input'!I189,\"\"))","v":""},{"$f":"IF('TSA Input'!J189=\"\",\"\",IF(OR('TSA Input'!J189=\"Yes\",'TSA Input'!J189=\"Contingent\"),'TSA Input'!C189,\"\"))","v":""},{"$f":"IF('TSA Input'!J189=\"\",\"\",IF(OR('TSA Input'!J189=\"Yes\",'TSA Input'!J189=\"Contingent\"),'TSA Input'!D189,\"\"))","v":""},{"$f":"IF('TSA Input'!J189=\"\",\"\",IF(OR('TSA Input'!J189=\"Yes\",'TSA Input'!J189=\"Contingent\"),'TSA Input'!G189,\"\"))","v":""},{"$f":"IF('TSA Input'!J189=\"\",\"\",IF(OR('TSA Input'!J189=\"Yes\",'TSA Input'!J189=\"Contingent\"),'TSA Input'!F189,\"\"))","v":""},"",{"$f":"IF('TSA Input'!J189=\"\",\"\",IF(OR('TSA Input'!J189=\"Yes\",'TSA Input'!J189=\"Contingent\"),'TSA Input'!D189,\"\"))","v":""},{"$f":"IF('TSA Input'!J189=\"\",\"\",IF(OR('TSA Input'!J189=\"Yes\",'TSA Input'!J189=\"Contingent\"),'TSA Input'!G189,\"\"))","v":""},{"$f":"IF('TSA Input'!J189=\"\",\"\",IF(OR('TSA Input'!J189=\"Yes\",'TSA Input'!J189=\"Contingent\"),'TSA Input'!F189,\"\"))","v":""},"","Required","Required"]
["",null,{"$f":"IF('TSA Input'!J190=\"\",\"\",IF(OR('TSA Input'!J190=\"Yes\",'TSA Input'!J190=\"Contingent\"),'TSA Input'!B190,\"Ineligible\"))","v":""},{"$f":"IF('TSA Input'!J190=\"\",\"\",IF(OR('TSA Input'!J190=\"Yes\",'TSA Input'!J190=\"Contingent\"),'TSA Input'!I190,\"\"))","v":""},{"$f":"IF('TSA Input'!J190=\"\",\"\",IF(OR('TSA Input'!J190=\"Yes\",'TSA Input'!J190=\"Contingent\"),'TSA Input'!C190,\"\"))","v":""},{"$f":"IF('TSA Input'!J190=\"\",\"\",IF(OR('TSA Input'!J190=\"Yes\",'TSA Input'!J190=\"Contingent\"),'TSA Input'!D190,\"\"))","v":""},{"$f":"IF('TSA Input'!J190=\"\",\"\",IF(OR('TSA Input'!J190=\"Yes\",'TSA Input'!J190=\"Contingent\"),'TSA Input'!G190,\"\"))","v":""},{"$f":"IF('TSA Input'!J190=\"\",\"\",IF(OR('TSA Input'!J190=\"Yes\",'TSA Input'!J190=\"Contingent\"),'TSA Input'!F190,\"\"))","v":""},"",{"$f":"IF('TSA Input'!J190=\"\",\"\",IF(OR('TSA Input'!J190=\"Yes\",'TSA Input'!J190=\"Contingent\"),'TSA Input'!D190,\"\"))","v":""},{"$f":"IF('TSA Input'!J190=\"\",\"\",IF(OR('TSA Input'!J190=\"Yes\",'TSA Input'!J190=\"Contingent\"),'TSA Input'!G190,\"\"))","v":""},{"$f":"IF('TSA Input'!J190=\"\",\"\",IF(OR('TSA Input'!J190=\"Yes\",'TSA Input'!J190=\"Contingent\"),'TSA Input'!F190,\"\"))","v":""},"","Required","Required"]
["",null,{"$f":"IF('TSA Input'!J191=\"\",\"\",IF(OR('TSA Input'!J191=\"Yes\",'TSA Input'!J191=\"Contingent\"),'TSA Input'!B191,\"Ineligible\"))","v":""},{"$f":"IF('TSA Input'!J191=\"\",\"\",IF(OR('TSA Input'!J191=\"Yes\",'TSA Input'!J191=\"Contingent\"),'TSA Input'!I191,\"\"))","v":""},{"$f":"IF('TSA Input'!J191=\"\",\"\",IF(OR('TSA Input'!J191=\"Yes\",'TSA Input'!J191=\"Contingent\"),'TSA Input'!C191,\"\"))","v":""},{"$f":"IF('TSA Input'!J191=\"\",\"\",IF(OR('TSA Input'!J191=\"Yes\",'TSA Input'!J191=\"Contingent\"),'TSA Input'!D191,\"\"))","v":""},{"$f":"IF('TSA Input'!J191=\"\",\"\",IF(OR('TSA Input'!J191=\"Yes\",'TSA Input'!J191=\"Contingent\"),'TSA Input'!G191,\"\"))","v":""},{"$f":"IF('TSA Input'!J191=\"\",\"\",IF(OR('TSA Input'!J191=\"Yes\",'TSA Input'!J191=\"Contingent\"),'TSA Input'!F191,\"\"))","v":""},"",{"$f":"IF('TSA Input'!J191=\"\",\"\",IF(OR('TSA Input'!J191=\"Yes\",'TSA Input'!J191=\"Contingent\"),'TSA Input'!D191,\"\"))","v":""},{"$f":"IF('TSA Input'!J191=\"\",\"\",IF(OR('TSA Input'!J191=\"Yes\",'TSA Input'!J191=\"Contingent\"),'TSA Input'!G191,\"\"))","v":""},{"$f":"IF('TSA Input'!J191=\"\",\"\",IF(OR('TSA Input'!J191=\"Yes\",'TSA Input'!J191=\"Contingent\"),'TSA Input'!F191,\"\"))","v":""},"","Required","Required"]
["",null,{"$f":"IF('TSA Input'!J192=\"\",\"\",IF(OR('TSA Input'!J192=\"Yes\",'TSA Input'!J192=\"Contingent\"),'TSA Input'!B192,\"Ineligible\"))","v":""},{"$f":"IF('TSA Input'!J192=\"\",\"\",IF(OR('TSA Input'!J192=\"Yes\",'TSA Input'!J192=\"Contingent\"),'TSA Input'!I192,\"\"))","v":""},{"$f":"IF('TSA Input'!J192=\"\",\"\",IF(OR('TSA Input'!J192=\"Yes\",'TSA Input'!J192=\"Contingent\"),'TSA Input'!C192,\"\"))","v":""},{"$f":"IF('TSA Input'!J192=\"\",\"\",IF(OR('TSA Input'!J192=\"Yes\",'TSA Input'!J192=\"Contingent\"),'TSA Input'!D192,\"\"))","v":""},{"$f":"IF('TSA Input'!J192=\"\",\"\",IF(OR('TSA Input'!J192=\"Yes\",'TSA Input'!J192=\"Contingent\"),'TSA Input'!G192,\"\"))","v":""},{"$f":"IF('TSA Input'!J192=\"\",\"\",IF(OR('TSA Input'!J192=\"Yes\",'TSA Input'!J192=\"Contingent\"),'TSA Input'!F192,\"\"))","v":""},"",{"$f":"IF('TSA Input'!J192=\"\",\"\",IF(OR('TSA Input'!J192=\"Yes\",'TSA Input'!J192=\"Contingent\"),'TSA Input'!D192,\"\"))","v":""},{"$f":"IF('TSA Input'!J192=\"\",\"\",IF(OR('TSA Input'!J192=\"Yes\",'TSA Input'!J192=\"Contingent\"),'TSA Input'!G192,\"\"))","v":""},{"$f":"IF('TSA Input'!J192=\"\",\"\",IF(OR('TSA Input'!J192=\"Yes\",'TSA Input'!J192=\"Contingent\"),'TSA Input'!F192,\"\"))","v":""},"","Required","Required"]
["",null,{"$f":"IF('TSA Input'!J193=\"\",\"\",IF(OR('TSA Input'!J193=\"Yes\",'TSA Input'!J193=\"Contingent\"),'TSA Input'!B193,\"Ineligible\"))","v":""},{"$f":"IF('TSA Input'!J193=\"\",\"\",IF(OR('TSA Input'!J193=\"Yes\",'TSA Input'!J193=\"Contingent\"),'TSA Input'!I193,\"\"))","v":""},{"$f":"IF('TSA Input'!J193=\"\",\"\",IF(OR('TSA Input'!J193=\"Yes\",'TSA Input'!J193=\"Contingent\"),'TSA Input'!C193,\"\"))","v":""},{"$f":"IF('TSA Input'!J193=\"\",\"\",IF(OR('TSA Input'!J193=\"Yes\",'TSA Input'!J193=\"Contingent\"),'TSA Input'!D193,\"\"))","v":""},{"$f":"IF('TSA Input'!J193=\"\",\"\",IF(OR('TSA Input'!J193=\"Yes\",'TSA Input'!J193=\"Contingent\"),'TSA Input'!G193,\"\"))","v":""},{"$f":"IF('TSA Input'!J193=\"\",\"\",IF(OR('TSA Input'!J193=\"Yes\",'TSA Input'!J193=\"Contingent\"),'TSA Input'!F193,\"\"))","v":""},"",{"$f":"IF('TSA Input'!J193=\"\",\"\",IF(OR('TSA Input'!J193=\"Yes\",'TSA Input'!J193=\"Contingent\"),'TSA Input'!D193,\"\"))","v":""},{"$f":"IF('TSA Input'!J193=\"\",\"\",IF(OR('TSA Input'!J193=\"Yes\",'TSA Input'!J193=\"Contingent\"),'TSA Input'!G193,\"\"))","v":""},{"$f":"IF('TSA Input'!J193=\"\",\"\",IF(OR('TSA Input'!J193=\"Yes\",'TSA Input'!J193=\"Contingent\"),'TSA Input'!F193,\"\"))","v":""},"","Required","Required"]
["",null,{"$f":"IF('TSA Input'!J194=\"\",\"\",IF(OR('TSA Input'!J194=\"Yes\",'TSA Input'!J194=\"Contingent\"),'TSA Input'!B194,\"Ineligible\"))","v":""},{"$f":"IF('TSA Input'!J194=\"\",\"\",IF(OR('TSA Input'!J194=\"Yes\",'TSA Input'!J194=\"Contingent\"),'TSA Input'!I194,\"\"))","v":""},{"$f":"IF('TSA Input'!J194=\"\",\"\",IF(OR('TSA Input'!J194=\"Yes\",'TSA Input'!J194=\"Contingent\"),'TSA Input'!C194,\"\"))","v":""},{"$f":"IF('TSA Input'!J194=\"\",\"\",IF(OR('TSA Input'!J194=\"Yes\",'TSA Input'!J194=\"Contingent\"),'TSA Input'!D194,\"\"))","v":""},{"$f":"IF('TSA Input'!J194=\"\",\"\",IF(OR('TSA Input'!J194=\"Yes\",'TSA Input'!J194=\"Contingent\"),'TSA Input'!G194,\"\"))","v":""},{"$f":"IF('TSA Input'!J194=\"\",\"\",IF(OR('TSA Input'!J194=\"Yes\",'TSA Input'!J194=\"Contingent\"),'TSA Input'!F194,\"\"))","v":""},"",{"$f":"IF('TSA Input'!J194=\"\",\"\",IF(OR('TSA Input'!J194=\"Yes\",'TSA Input'!J194=\"Contingent\"),'TSA Input'!D194,\"\"))","v":""},{"$f":"IF('TSA Input'!J194=\"\",\"\",IF(OR('TSA Input'!J194=\"Yes\",'TSA Input'!J194=\"Contingent\"),'TSA Input'!G194,\"\"))","v":""},{"$f":"IF('TSA Input'!J194=\"\",\"\",IF(OR('TSA Input'!J194=\"Yes\",'TSA Input'!J194=\"Contingent\"),'TSA Input'!F194,\"\"))","v":""},"","Required","Required"]
["",null,{"$f":"IF('TSA Input'!J195=\"\",\"\",IF(OR('TSA Input'!J195=\"Yes\",'TSA Input'!J195=\"Contingent\"),'TSA Input'!B195,\"Ineligible\"))","v":""},{"$f":"IF('TSA Input'!J195=\"\",\"\",IF(OR('TSA Input'!J195=\"Yes\",'TSA Input'!J195=\"Contingent\"),'TSA Input'!I195,\"\"))","v":""},{"$f":"IF('TSA Input'!J195=\"\",\"\",IF(OR('TSA Input'!J195=\"Yes\",'TSA Input'!J195=\"Contingent\"),'TSA Input'!C195,\"\"))","v":""},{"$f":"IF('TSA Input'!J195=\"\",\"\",IF(OR('TSA Input'!J195=\"Yes\",'TSA Input'!J195=\"Contingent\"),'TSA Input'!D195,\"\"))","v":""},{"$f":"IF('TSA Input'!J195=\"\",\"\",IF(OR('TSA Input'!J195=\"Yes\",'TSA Input'!J195=\"Contingent\"),'TSA Input'!G195,\"\"))","v":""},{"$f":"IF('TSA Input'!J195=\"\",\"\",IF(OR('TSA Input'!J195=\"Yes\",'TSA Input'!J195=\"Contingent\"),'TSA Input'!F195,\"\"))","v":""},"",{"$f":"IF('TSA Input'!J195=\"\",\"\",IF(OR('TSA Input'!J195=\"Yes\",'TSA Input'!J195=\"Contingent\"),'TSA Input'!D195,\"\"))","v":""},{"$f":"IF('TSA Input'!J195=\"\",\"\",IF(OR('TSA Input'!J195=\"Yes\",'TSA Input'!J195=\"Contingent\"),'TSA Input'!G195,\"\"))","v":""},{"$f":"IF('TSA Input'!J195=\"\",\"\",IF(OR('TSA Input'!J195=\"Yes\",'TSA Input'!J195=\"Contingent\"),'TSA Input'!F195,\"\"))","v":""},"","Required","Required"]
["",null,{"$f":"IF('TSA Input'!J196=\"\",\"\",IF(OR('TSA Input'!J196=\"Yes\",'TSA Input'!J196=\"Contingent\"),'TSA Input'!B196,\"Ineligible\"))","v":""},{"$f":"IF('TSA Input'!J196=\"\",\"\",IF(OR('TSA Input'!J196=\"Yes\",'TSA Input'!J196=\"Contingent\"),'TSA Input'!I196,\"\"))","v":""},{"$f":"IF('TSA Input'!J196=\"\",\"\",IF(OR('TSA Input'!J196=\"Yes\",'TSA Input'!J196=\"Contingent\"),'TSA Input'!C196,\"\"))","v":""},{"$f":"IF('TSA Input'!J196=\"\",\"\",IF(OR('TSA Input'!J196=\"Yes\",'TSA Input'!J196=\"Contingent\"),'TSA Input'!D196,\"\"))","v":""},{"$f":"IF('TSA Input'!J196=\"\",\"\",IF(OR('TSA Input'!J196=\"Yes\",'TSA Input'!J196=\"Contingent\"),'TSA Input'!G196,\"\"))","v":""},{"$f":"IF('TSA Input'!J196=\"\",\"\",IF(OR('TSA Input'!J196=\"Yes\",'TSA Input'!J196=\"Contingent\"),'TSA Input'!F196,\"\"))","v":""},{"$f":"IF($C234=\"\",\"\",SUM(F234:H234))","v":""},{"$f":"IF('TSA Input'!J196=\"\",\"\",IF(OR('TSA Input'!J196=\"Yes\",'TSA Input'!J196=\"Contingent\"),'TSA Input'!D196,\"\"))","v":""},{"$f":"IF('TSA Input'!J196=\"\",\"\",IF(OR('TSA Input'!J196=\"Yes\",'TSA Input'!J196=\"Contingent\"),'TSA Input'!G196,\"\"))","v":""},{"$f":"IF('TSA Input'!J196=\"\",\"\",IF(OR('TSA Input'!J196=\"Yes\",'TSA Input'!J196=\"Contingent\"),'TSA Input'!F196,\"\"))","v":""},{"$f":"IF($C234=\"\",\"\",SUM(J234:L234))","v":""},"Required","Required"]
["",null,{"$f":"IF('TSA Input'!J197=\"\",\"\",IF(OR('TSA Input'!J197=\"Yes\",'TSA Input'!J197=\"Contingent\"),'TSA Input'!B197,\"Ineligible\"))","v":""},{"$f":"IF('TSA Input'!J197=\"\",\"\",IF(OR('TSA Input'!J197=\"Yes\",'TSA Input'!J197=\"Contingent\"),'TSA Input'!I197,\"\"))","v":""},{"$f":"IF('TSA Input'!J197=\"\",\"\",IF(OR('TSA Input'!J197=\"Yes\",'TSA Input'!J197=\"Contingent\"),'TSA Input'!C197,\"\"))","v":""},{"$f":"IF('TSA Input'!J197=\"\",\"\",IF(OR('TSA Input'!J197=\"Yes\",'TSA Input'!J197=\"Contingent\"),'TSA Input'!D197,\"\"))","v":""},{"$f":"IF('TSA Input'!J197=\"\",\"\",IF(OR('TSA Input'!J197=\"Yes\",'TSA Input'!J197=\"Contingent\"),'TSA Input'!G197,\"\"))","v":""},{"$f":"IF('TSA Input'!J197=\"\",\"\",IF(OR('TSA Input'!J197=\"Yes\",'TSA Input'!J197=\"Contingent\"),'TSA Input'!F197,\"\"))","v":""},"",{"$f":"IF('TSA Input'!J197=\"\",\"\",IF(OR('TSA Input'!J197=\"Yes\",'TSA Input'!J197=\"Contingent\"),'TSA Input'!D197,\"\"))","v":""},{"$f":"IF('TSA Input'!J197=\"\",\"\",IF(OR('TSA Input'!J197=\"Yes\",'TSA Input'!J197=\"Contingent\"),'TSA Input'!G197,\"\"))","v":""},{"$f":"IF('TSA Input'!J197=\"\",\"\",IF(OR('TSA Input'!J197=\"Yes\",'TSA Input'!J197=\"Contingent\"),'TSA Input'!F197,\"\"))","v":""},"","Required","Required"]
["",null,{"$f":"IF('TSA Input'!J198=\"\",\"\",IF(OR('TSA Input'!J198=\"Yes\",'TSA Input'!J198=\"Contingent\"),'TSA Input'!B198,\"Ineligible\"))","v":""},{"$f":"IF('TSA Input'!J198=\"\",\"\",IF(OR('TSA Input'!J198=\"Yes\",'TSA Input'!J198=\"Contingent\"),'TSA Input'!I198,\"\"))","v":""},{"$f":"IF('TSA Input'!J198=\"\",\"\",IF(OR('TSA Input'!J198=\"Yes\",'TSA Input'!J198=\"Contingent\"),'TSA Input'!C198,\"\"))","v":""},{"$f":"IF('TSA Input'!J198=\"\",\"\",IF(OR('TSA Input'!J198=\"Yes\",'TSA Input'!J198=\"Contingent\"),'TSA Input'!D198,\"\"))","v":""},{"$f":"IF('TSA Input'!J198=\"\",\"\",IF(OR('TSA Input'!J198=\"Yes\",'TSA Input'!J198=\"Contingent\"),'TSA Input'!G198,\"\"))","v":""},{"$f":"IF('TSA Input'!J198=\"\",\"\",IF(OR('TSA Input'!J198=\"Yes\",'TSA Input'!J198=\"Contingent\"),'TSA Input'!F198,\"\"))","v":""},"",{"$f":"IF('TSA Input'!J198=\"\",\"\",IF(OR('TSA Input'!J198=\"Yes\",'TSA Input'!J198=\"Contingent\"),'TSA Input'!D198,\"\"))","v":""},{"$f":"IF('TSA Input'!J198=\"\",\"\",IF(OR('TSA Input'!J198=\"Yes\",'TSA Input'!J198=\"Contingent\"),'TSA Input'!G198,\"\"))","v":""},{"$f":"IF('TSA Input'!J198=\"\",\"\",IF(OR('TSA Input'!J198=\"Yes\",'TSA Input'!J198=\"Contingent\"),'TSA Input'!F198,\"\"))","v":""},"","Required","Required"]
["",null,{"$f":"IF('TSA Input'!J199=\"\",\"\",IF(OR('TSA Input'!J199=\"Yes\",'TSA Input'!J199=\"Contingent\"),'TSA Input'!B199,\"Ineligible\"))","v":""},{"$f":"IF('TSA Input'!J199=\"\",\"\",IF(OR('TSA Input'!J199=\"Yes\",'TSA Input'!J199=\"Contingent\"),'TSA Input'!I199,\"\"))","v":""},{"$f":"IF('TSA Input'!J199=\"\",\"\",IF(OR('TSA Input'!J199=\"Yes\",'TSA Input'!J199=\"Contingent\"),'TSA Input'!C199,\"\"))","v":""},{"$f":"IF('TSA Input'!J199=\"\",\"\",IF(OR('TSA Input'!J199=\"Yes\",'TSA Input'!J199=\"Contingent\"),'TSA Input'!D199,\"\"))","v":""},{"$f":"IF('TSA Input'!J199=\"\",\"\",IF(OR('TSA Input'!J199=\"Yes\",'TSA Input'!J199=\"Contingent\"),'TSA Input'!G199,\"\"))","v":""},{"$f":"IF('TSA Input'!J199=\"\",\"\",IF(OR('TSA Input'!J199=\"Yes\",'TSA Input'!J199=\"Contingent\"),'TSA Input'!F199,\"\"))","v":""},"",{"$f":"IF('TSA Input'!J199=\"\",\"\",IF(OR('TSA Input'!J199=\"Yes\",'TSA Input'!J199=\"Contingent\"),'TSA Input'!D199,\"\"))","v":""},{"$f":"IF('TSA Input'!J199=\"\",\"\",IF(OR('TSA Input'!J199=\"Yes\",'TSA Input'!J199=\"Contingent\"),'TSA Input'!G199,\"\"))","v":""},{"$f":"IF('TSA Input'!J199=\"\",\"\",IF(OR('TSA Input'!J199=\"Yes\",'TSA Input'!J199=\"Contingent\"),'TSA Input'!F199,\"\"))","v":""},"","Required","Required"]
["",null,{"$f":"IF('TSA Input'!J200=\"\",\"\",IF(OR('TSA Input'!J200=\"Yes\",'TSA Input'!J200=\"Contingent\"),'TSA Input'!B200,\"Ineligible\"))","v":""},{"$f":"IF('TSA Input'!J200=\"\",\"\",IF(OR('TSA Input'!J200=\"Yes\",'TSA Input'!J200=\"Contingent\"),'TSA Input'!I200,\"\"))","v":""},{"$f":"IF('TSA Input'!J200=\"\",\"\",IF(OR('TSA Input'!J200=\"Yes\",'TSA Input'!J200=\"Contingent\"),'TSA Input'!C200,\"\"))","v":""},{"$f":"IF('TSA Input'!J200=\"\",\"\",IF(OR('TSA Input'!J200=\"Yes\",'TSA Input'!J200=\"Contingent\"),'TSA Input'!D200,\"\"))","v":""},{"$f":"IF('TSA Input'!J200=\"\",\"\",IF(OR('TSA Input'!J200=\"Yes\",'TSA Input'!J200=\"Contingent\"),'TSA Input'!G200,\"\"))","v":""},{"$f":"IF('TSA Input'!J200=\"\",\"\",IF(OR('TSA Input'!J200=\"Yes\",'TSA Input'!J200=\"Contingent\"),'TSA Input'!F200,\"\"))","v":""},"",{"$f":"IF('TSA Input'!J200=\"\",\"\",IF(OR('TSA Input'!J200=\"Yes\",'TSA Input'!J200=\"Contingent\"),'TSA Input'!D200,\"\"))","v":""},{"$f":"IF('TSA Input'!J200=\"\",\"\",IF(OR('TSA Input'!J200=\"Yes\",'TSA Input'!J200=\"Contingent\"),'TSA Input'!G200,\"\"))","v":""},{"$f":"IF('TSA Input'!J200=\"\",\"\",IF(OR('TSA Input'!J200=\"Yes\",'TSA Input'!J200=\"Contingent\"),'TSA Input'!F200,\"\"))","v":""},"","Required","Required"]
["",null,{"$f":"IF('TSA Input'!J201=\"\",\"\",IF(OR('TSA Input'!J201=\"Yes\",'TSA Input'!J201=\"Contingent\"),'TSA Input'!B201,\"Ineligible\"))","v":""},{"$f":"IF('TSA Input'!J201=\"\",\"\",IF(OR('TSA Input'!J201=\"Yes\",'TSA Input'!J201=\"Contingent\"),'TSA Input'!I201,\"\"))","v":""},{"$f":"IF('TSA Input'!J201=\"\",\"\",IF(OR('TSA Input'!J201=\"Yes\",'TSA Input'!J201=\"Contingent\"),'TSA Input'!C201,\"\"))","v":""},{"$f":"IF('TSA Input'!J201=\"\",\"\",IF(OR('TSA Input'!J201=\"Yes\",'TSA Input'!J201=\"Contingent\"),'TSA Input'!D201,\"\"))","v":""},{"$f":"IF('TSA Input'!J201=\"\",\"\",IF(OR('TSA Input'!J201=\"Yes\",'TSA Input'!J201=\"Contingent\"),'TSA Input'!G201,\"\"))","v":""},{"$f":"IF('TSA Input'!J201=\"\",\"\",IF(OR('TSA Input'!J201=\"Yes\",'TSA Input'!J201=\"Contingent\"),'TSA Input'!F201,\"\"))","v":""},"",{"$f":"IF('TSA Input'!J201=\"\",\"\",IF(OR('TSA Input'!J201=\"Yes\",'TSA Input'!J201=\"Contingent\"),'TSA Input'!D201,\"\"))","v":""},{"$f":"IF('TSA Input'!J201=\"\",\"\",IF(OR('TSA Input'!J201=\"Yes\",'TSA Input'!J201=\"Contingent\"),'TSA Input'!G201,\"\"))","v":""},{"$f":"IF('TSA Input'!J201=\"\",\"\",IF(OR('TSA Input'!J201=\"Yes\",'TSA Input'!J201=\"Contingent\"),'TSA Input'!F201,\"\"))","v":""},"","Required","Required"]
["",null,{"$f":"IF('TSA Input'!J202=\"\",\"\",IF(OR('TSA Input'!J202=\"Yes\",'TSA Input'!J202=\"Contingent\"),'TSA Input'!B202,\"Ineligible\"))","v":""},{"$f":"IF('TSA Input'!J202=\"\",\"\",IF(OR('TSA Input'!J202=\"Yes\",'TSA Input'!J202=\"Contingent\"),'TSA Input'!I202,\"\"))","v":""},{"$f":"IF('TSA Input'!J202=\"\",\"\",IF(OR('TSA Input'!J202=\"Yes\",'TSA Input'!J202=\"Contingent\"),'TSA Input'!C202,\"\"))","v":""},{"$f":"IF('TSA Input'!J202=\"\",\"\",IF(OR('TSA Input'!J202=\"Yes\",'TSA Input'!J202=\"Contingent\"),'TSA Input'!D202,\"\"))","v":""},{"$f":"IF('TSA Input'!J202=\"\",\"\",IF(OR('TSA Input'!J202=\"Yes\",'TSA Input'!J202=\"Contingent\"),'TSA Input'!G202,\"\"))","v":""},{"$f":"IF('TSA Input'!J202=\"\",\"\",IF(OR('TSA Input'!J202=\"Yes\",'TSA Input'!J202=\"Contingent\"),'TSA Input'!F202,\"\"))","v":""},"",{"$f":"IF('TSA Input'!J202=\"\",\"\",IF(OR('TSA Input'!J202=\"Yes\",'TSA Input'!J202=\"Contingent\"),'TSA Input'!D202,\"\"))","v":""},{"$f":"IF('TSA Input'!J202=\"\",\"\",IF(OR('TSA Input'!J202=\"Yes\",'TSA Input'!J202=\"Contingent\"),'TSA Input'!G202,\"\"))","v":""},{"$f":"IF('TSA Input'!J202=\"\",\"\",IF(OR('TSA Input'!J202=\"Yes\",'TSA Input'!J202=\"Contingent\"),'TSA Input'!F202,\"\"))","v":""},"","Required","Required"]
["",null,{"$f":"IF('TSA Input'!J203=\"\",\"\",IF(OR('TSA Input'!J203=\"Yes\",'TSA Input'!J203=\"Contingent\"),'TSA Input'!B203,\"Ineligible\"))","v":""},{"$f":"IF('TSA Input'!J203=\"\",\"\",IF(OR('TSA Input'!J203=\"Yes\",'TSA Input'!J203=\"Contingent\"),'TSA Input'!I203,\"\"))","v":""},{"$f":"IF('TSA Input'!J203=\"\",\"\",IF(OR('TSA Input'!J203=\"Yes\",'TSA Input'!J203=\"Contingent\"),'TSA Input'!C203,\"\"))","v":""},{"$f":"IF('TSA Input'!J203=\"\",\"\",IF(OR('TSA Input'!J203=\"Yes\",'TSA Input'!J203=\"Contingent\"),'TSA Input'!D203,\"\"))","v":""},{"$f":"IF('TSA Input'!J203=\"\",\"\",IF(OR('TSA Input'!J203=\"Yes\",'TSA Input'!J203=\"Contingent\"),'TSA Input'!G203,\"\"))","v":""},{"$f":"IF('TSA Input'!J203=\"\",\"\",IF(OR('TSA Input'!J203=\"Yes\",'TSA Input'!J203=\"Contingent\"),'TSA Input'!F203,\"\"))","v":""},"",{"$f":"IF('TSA Input'!J203=\"\",\"\",IF(OR('TSA Input'!J203=\"Yes\",'TSA Input'!J203=\"Contingent\"),'TSA Input'!D203,\"\"))","v":""},{"$f":"IF('TSA Input'!J203=\"\",\"\",IF(OR('TSA Input'!J203=\"Yes\",'TSA Input'!J203=\"Contingent\"),'TSA Input'!G203,\"\"))","v":""},{"$f":"IF('TSA Input'!J203=\"\",\"\",IF(OR('TSA Input'!J203=\"Yes\",'TSA Input'!J203=\"Contingent\"),'TSA Input'!F203,\"\"))","v":""},"","Required","Required"]
["",null,{"$f":"IF('TSA Input'!J204=\"\",\"\",IF(OR('TSA Input'!J204=\"Yes\",'TSA Input'!J204=\"Contingent\"),'TSA Input'!B204,\"Ineligible\"))","v":""},{"$f":"IF('TSA Input'!J204=\"\",\"\",IF(OR('TSA Input'!J204=\"Yes\",'TSA Input'!J204=\"Contingent\"),'TSA Input'!I204,\"\"))","v":""},{"$f":"IF('TSA Input'!J204=\"\",\"\",IF(OR('TSA Input'!J204=\"Yes\",'TSA Input'!J204=\"Contingent\"),'TSA Input'!C204,\"\"))","v":""},{"$f":"IF('TSA Input'!J204=\"\",\"\",IF(OR('TSA Input'!J204=\"Yes\",'TSA Input'!J204=\"Contingent\"),'TSA Input'!D204,\"\"))","v":""},{"$f":"IF('TSA Input'!J204=\"\",\"\",IF(OR('TSA Input'!J204=\"Yes\",'TSA Input'!J204=\"Contingent\"),'TSA Input'!G204,\"\"))","v":""},{"$f":"IF('TSA Input'!J204=\"\",\"\",IF(OR('TSA Input'!J204=\"Yes\",'TSA Input'!J204=\"Contingent\"),'TSA Input'!F204,\"\"))","v":""},"",{"$f":"IF('TSA Input'!J204=\"\",\"\",IF(OR('TSA Input'!J204=\"Yes\",'TSA Input'!J204=\"Contingent\"),'TSA Input'!D204,\"\"))","v":""},{"$f":"IF('TSA Input'!J204=\"\",\"\",IF(OR('TSA Input'!J204=\"Yes\",'TSA Input'!J204=\"Contingent\"),'TSA Input'!G204,\"\"))","v":""},{"$f":"IF('TSA Input'!J204=\"\",\"\",IF(OR('TSA Input'!J204=\"Yes\",'TSA Input'!J204=\"Contingent\"),'TSA Input'!F204,\"\"))","v":""},"","Required","Required"]
["",null,{"$f":"IF('TSA Input'!J205=\"\",\"\",IF(OR('TSA Input'!J205=\"Yes\",'TSA Input'!J205=\"Contingent\"),'TSA Input'!B205,\"Ineligible\"))","v":""},{"$f":"IF('TSA Input'!J205=\"\",\"\",IF(OR('TSA Input'!J205=\"Yes\",'TSA Input'!J205=\"Contingent\"),'TSA Input'!I205,\"\"))","v":""},{"$f":"IF('TSA Input'!J205=\"\",\"\",IF(OR('TSA Input'!J205=\"Yes\",'TSA Input'!J205=\"Contingent\"),'TSA Input'!C205,\"\"))","v":""},{"$f":"IF('TSA Input'!J205=\"\",\"\",IF(OR('TSA Input'!J205=\"Yes\",'TSA Input'!J205=\"Contingent\"),'TSA Input'!D205,\"\"))","v":""},{"$f":"IF('TSA Input'!J205=\"\",\"\",IF(OR('TSA Input'!J205=\"Yes\",'TSA Input'!J205=\"Contingent\"),'TSA Input'!G205,\"\"))","v":""},{"$f":"IF('TSA Input'!J205=\"\",\"\",IF(OR('TSA Input'!J205=\"Yes\",'TSA Input'!J205=\"Contingent\"),'TSA Input'!F205,\"\"))","v":""},"",{"$f":"IF('TSA Input'!J205=\"\",\"\",IF(OR('TSA Input'!J205=\"Yes\",'TSA Input'!J205=\"Contingent\"),'TSA Input'!D205,\"\"))","v":""},{"$f":"IF('TSA Input'!J205=\"\",\"\",IF(OR('TSA Input'!J205=\"Yes\",'TSA Input'!J205=\"Contingent\"),'TSA Input'!G205,\"\"))","v":""},{"$f":"IF('TSA Input'!J205=\"\",\"\",IF(OR('TSA Input'!J205=\"Yes\",'TSA Input'!J205=\"Contingent\"),'TSA Input'!F205,\"\"))","v":""},"","Required","Required"]
["",null,{"$f":"IF('TSA Input'!J206=\"\",\"\",IF(OR('TSA Input'!J206=\"Yes\",'TSA Input'!J206=\"Contingent\"),'TSA Input'!B206,\"Ineligible\"))","v":""},{"$f":"IF('TSA Input'!J206=\"\",\"\",IF(OR('TSA Input'!J206=\"Yes\",'TSA Input'!J206=\"Contingent\"),'TSA Input'!I206,\"\"))","v":""},{"$f":"IF('TSA Input'!J206=\"\",\"\",IF(OR('TSA Input'!J206=\"Yes\",'TSA Input'!J206=\"Contingent\"),'TSA Input'!C206,\"\"))","v":""},{"$f":"IF('TSA Input'!J206=\"\",\"\",IF(OR('TSA Input'!J206=\"Yes\",'TSA Input'!J206=\"Contingent\"),'TSA Input'!D206,\"\"))","v":""},{"$f":"IF('TSA Input'!J206=\"\",\"\",IF(OR('TSA Input'!J206=\"Yes\",'TSA Input'!J206=\"Contingent\"),'TSA Input'!G206,\"\"))","v":""},{"$f":"IF('TSA Input'!J206=\"\",\"\",IF(OR('TSA Input'!J206=\"Yes\",'TSA Input'!J206=\"Contingent\"),'TSA Input'!F206,\"\"))","v":""},"",{"$f":"IF('TSA Input'!J206=\"\",\"\",IF(OR('TSA Input'!J206=\"Yes\",'TSA Input'!J206=\"Contingent\"),'TSA Input'!D206,\"\"))","v":""},{"$f":"IF('TSA Input'!J206=\"\",\"\",IF(OR('TSA Input'!J206=\"Yes\",'TSA Input'!J206=\"Contingent\"),'TSA Input'!G206,\"\"))","v":""},{"$f":"IF('TSA Input'!J206=\"\",\"\",IF(OR('TSA Input'!J206=\"Yes\",'TSA Input'!J206=\"Contingent\"),'TSA Input'!F206,\"\"))","v":""},"","Required","Required"]
["",null,{"$f":"IF('TSA Input'!J207=\"\",\"\",IF(OR('TSA Input'!J207=\"Yes\",'TSA Input'!J207=\"Contingent\"),'TSA Input'!B207,\"Ineligible\"))","v":""},{"$f":"IF('TSA Input'!J207=\"\",\"\",IF(OR('TSA Input'!J207=\"Yes\",'TSA Input'!J207=\"Contingent\"),'TSA Input'!I207,\"\"))","v":""},{"$f":"IF('TSA Input'!J207=\"\",\"\",IF(OR('TSA Input'!J207=\"Yes\",'TSA Input'!J207=\"Contingent\"),'TSA Input'!C207,\"\"))","v":""},{"$f":"IF('TSA Input'!J207=\"\",\"\",IF(OR('TSA Input'!J207=\"Yes\",'TSA Input'!J207=\"Contingent\"),'TSA Input'!D207,\"\"))","v":""},{"$f":"IF('TSA Input'!J207=\"\",\"\",IF(OR('TSA Input'!J207=\"Yes\",'TSA Input'!J207=\"Contingent\"),'TSA Input'!G207,\"\"))","v":""},{"$f":"IF('TSA Input'!J207=\"\",\"\",IF(OR('TSA Input'!J207=\"Yes\",'TSA Input'!J207=\"Contingent\"),'TSA Input'!F207,\"\"))","v":""},"",{"$f":"IF('TSA Input'!J207=\"\",\"\",IF(OR('TSA Input'!J207=\"Yes\",'TSA Input'!J207=\"Contingent\"),'TSA Input'!D207,\"\"))","v":""},{"$f":"IF('TSA Input'!J207=\"\",\"\",IF(OR('TSA Input'!J207=\"Yes\",'TSA Input'!J207=\"Contingent\"),'TSA Input'!G207,\"\"))","v":""},{"$f":"IF('TSA Input'!J207=\"\",\"\",IF(OR('TSA Input'!J207=\"Yes\",'TSA Input'!J207=\"Contingent\"),'TSA Input'!F207,\"\"))","v":""},"","Required","Required"]
["",null,{"$f":"IF('TSA Input'!J208=\"\",\"\",IF(OR('TSA Input'!J208=\"Yes\",'TSA Input'!J208=\"Contingent\"),'TSA Input'!B208,\"Ineligible\"))","v":""},{"$f":"IF('TSA Input'!J208=\"\",\"\",IF(OR('TSA Input'!J208=\"Yes\",'TSA Input'!J208=\"Contingent\"),'TSA Input'!I208,\"\"))","v":""},{"$f":"IF('TSA Input'!J208=\"\",\"\",IF(OR('TSA Input'!J208=\"Yes\",'TSA Input'!J208=\"Contingent\"),'TSA Input'!C208,\"\"))","v":""},{"$f":"IF('TSA Input'!J208=\"\",\"\",IF(OR('TSA Input'!J208=\"Yes\",'TSA Input'!J208=\"Contingent\"),'TSA Input'!D208,\"\"))","v":""},{"$f":"IF('TSA Input'!J208=\"\",\"\",IF(OR('TSA Input'!J208=\"Yes\",'TSA Input'!J208=\"Contingent\"),'TSA Input'!G208,\"\"))","v":""},{"$f":"IF('TSA Input'!J208=\"\",\"\",IF(OR('TSA Input'!J208=\"Yes\",'TSA Input'!J208=\"Contingent\"),'TSA Input'!F208,\"\"))","v":""},"",{"$f":"IF('TSA Input'!J208=\"\",\"\",IF(OR('TSA Input'!J208=\"Yes\",'TSA Input'!J208=\"Contingent\"),'TSA Input'!D208,\"\"))","v":""},{"$f":"IF('TSA Input'!J208=\"\",\"\",IF(OR('TSA Input'!J208=\"Yes\",'TSA Input'!J208=\"Contingent\"),'TSA Input'!G208,\"\"))","v":""},{"$f":"IF('TSA Input'!J208=\"\",\"\",IF(OR('TSA Input'!J208=\"Yes\",'TSA Input'!J208=\"Contingent\"),'TSA Input'!F208,\"\"))","v":""},"","Required","Required"]
["",null,{"$f":"IF('TSA Input'!J209=\"\",\"\",IF(OR('TSA Input'!J209=\"Yes\",'TSA Input'!J209=\"Contingent\"),'TSA Input'!B209,\"Ineligible\"))","v":""},{"$f":"IF('TSA Input'!J209=\"\",\"\",IF(OR('TSA Input'!J209=\"Yes\",'TSA Input'!J209=\"Contingent\"),'TSA Input'!I209,\"\"))","v":""},{"$f":"IF('TSA Input'!J209=\"\",\"\",IF(OR('TSA Input'!J209=\"Yes\",'TSA Input'!J209=\"Contingent\"),'TSA Input'!C209,\"\"))","v":""},{"$f":"IF('TSA Input'!J209=\"\",\"\",IF(OR('TSA Input'!J209=\"Yes\",'TSA Input'!J209=\"Contingent\"),'TSA Input'!D209,\"\"))","v":""},{"$f":"IF('TSA Input'!J209=\"\",\"\",IF(OR('TSA Input'!J209=\"Yes\",'TSA Input'!J209=\"Contingent\"),'TSA Input'!G209,\"\"))","v":""},{"$f":"IF('TSA Input'!J209=\"\",\"\",IF(OR('TSA Input'!J209=\"Yes\",'TSA Input'!J209=\"Contingent\"),'TSA Input'!F209,\"\"))","v":""},"",{"$f":"IF('TSA Input'!J209=\"\",\"\",IF(OR('TSA Input'!J209=\"Yes\",'TSA Input'!J209=\"Contingent\"),'TSA Input'!D209,\"\"))","v":""},{"$f":"IF('TSA Input'!J209=\"\",\"\",IF(OR('TSA Input'!J209=\"Yes\",'TSA Input'!J209=\"Contingent\"),'TSA Input'!G209,\"\"))","v":""},{"$f":"IF('TSA Input'!J209=\"\",\"\",IF(OR('TSA Input'!J209=\"Yes\",'TSA Input'!J209=\"Contingent\"),'TSA Input'!F209,\"\"))","v":""},"","Required","Required"]
["",null,{"$f":"IF('TSA Input'!J210=\"\",\"\",IF(OR('TSA Input'!J210=\"Yes\",'TSA Input'!J210=\"Contingent\"),'TSA Input'!B210,\"Ineligible\"))","v":""},{"$f":"IF('TSA Input'!J210=\"\",\"\",IF(OR('TSA Input'!J210=\"Yes\",'TSA Input'!J210=\"Contingent\"),'TSA Input'!I210,\"\"))","v":""},{"$f":"IF('TSA Input'!J210=\"\",\"\",IF(OR('TSA Input'!J210=\"Yes\",'TSA Input'!J210=\"Contingent\"),'TSA Input'!C210,\"\"))","v":""},{"$f":"IF('TSA Input'!J210=\"\",\"\",IF(OR('TSA Input'!J210=\"Yes\",'TSA Input'!J210=\"Contingent\"),'TSA Input'!D210,\"\"))","v":""},{"$f":"IF('TSA Input'!J210=\"\",\"\",IF(OR('TSA Input'!J210=\"Yes\",'TSA Input'!J210=\"Contingent\"),'TSA Input'!G210,\"\"))","v":""},{"$f":"IF('TSA Input'!J210=\"\",\"\",IF(OR('TSA Input'!J210=\"Yes\",'TSA Input'!J210=\"Contingent\"),'TSA Input'!F210,\"\"))","v":""},"",{"$f":"IF('TSA Input'!J210=\"\",\"\",IF(OR('TSA Input'!J210=\"Yes\",'TSA Input'!J210=\"Contingent\"),'TSA Input'!D210,\"\"))","v":""},{"$f":"IF('TSA Input'!J210=\"\",\"\",IF(OR('TSA Input'!J210=\"Yes\",'TSA Input'!J210=\"Contingent\"),'TSA Input'!G210,\"\"))","v":""},{"$f":"IF('TSA Input'!J210=\"\",\"\",IF(OR('TSA Input'!J210=\"Yes\",'TSA Input'!J210=\"Contingent\"),'TSA Input'!F210,\"\"))","v":""},"","Required","Required"]
["",null,{"$f":"IF('TSA Input'!J211=\"\",\"\",IF(OR('TSA Input'!J211=\"Yes\",'TSA Input'!J211=\"Contingent\"),'TSA Input'!B211,\"Ineligible\"))","v":""},{"$f":"IF('TSA Input'!J211=\"\",\"\",IF(OR('TSA Input'!J211=\"Yes\",'TSA Input'!J211=\"Contingent\"),'TSA Input'!I211,\"\"))","v":""},{"$f":"IF('TSA Input'!J211=\"\",\"\",IF(OR('TSA Input'!J211=\"Yes\",'TSA Input'!J211=\"Contingent\"),'TSA Input'!C211,\"\"))","v":""},{"$f":"IF('TSA Input'!J211=\"\",\"\",IF(OR('TSA Input'!J211=\"Yes\",'TSA Input'!J211=\"Contingent\"),'TSA Input'!D211,\"\"))","v":""},{"$f":"IF('TSA Input'!J211=\"\",\"\",IF(OR('TSA Input'!J211=\"Yes\",'TSA Input'!J211=\"Contingent\"),'TSA Input'!G211,\"\"))","v":""},{"$f":"IF('TSA Input'!J211=\"\",\"\",IF(OR('TSA Input'!J211=\"Yes\",'TSA Input'!J211=\"Contingent\"),'TSA Input'!F211,\"\"))","v":""},"",{"$f":"IF('TSA Input'!J211=\"\",\"\",IF(OR('TSA Input'!J211=\"Yes\",'TSA Input'!J211=\"Contingent\"),'TSA Input'!D211,\"\"))","v":""},{"$f":"IF('TSA Input'!J211=\"\",\"\",IF(OR('TSA Input'!J211=\"Yes\",'TSA Input'!J211=\"Contingent\"),'TSA Input'!G211,\"\"))","v":""},{"$f":"IF('TSA Input'!J211=\"\",\"\",IF(OR('TSA Input'!J211=\"Yes\",'TSA Input'!J211=\"Contingent\"),'TSA Input'!F211,\"\"))","v":""},"","Required","Required"]
["",null,{"$f":"IF('TSA Input'!J212=\"\",\"\",IF(OR('TSA Input'!J212=\"Yes\",'TSA Input'!J212=\"Contingent\"),'TSA Input'!B212,\"Ineligible\"))","v":""},{"$f":"IF('TSA Input'!J212=\"\",\"\",IF(OR('TSA Input'!J212=\"Yes\",'TSA Input'!J212=\"Contingent\"),'TSA Input'!I212,\"\"))","v":""},{"$f":"IF('TSA Input'!J212=\"\",\"\",IF(OR('TSA Input'!J212=\"Yes\",'TSA Input'!J212=\"Contingent\"),'TSA Input'!C212,\"\"))","v":""},{"$f":"IF('TSA Input'!J212=\"\",\"\",IF(OR('TSA Input'!J212=\"Yes\",'TSA Input'!J212=\"Contingent\"),'TSA Input'!D212,\"\"))","v":""},{"$f":"IF('TSA Input'!J212=\"\",\"\",IF(OR('TSA Input'!J212=\"Yes\",'TSA Input'!J212=\"Contingent\"),'TSA Input'!G212,\"\"))","v":""},{"$f":"IF('TSA Input'!J212=\"\",\"\",IF(OR('TSA Input'!J212=\"Yes\",'TSA Input'!J212=\"Contingent\"),'TSA Input'!F212,\"\"))","v":""},"",{"$f":"IF('TSA Input'!J212=\"\",\"\",IF(OR('TSA Input'!J212=\"Yes\",'TSA Input'!J212=\"Contingent\"),'TSA Input'!D212,\"\"))","v":""},{"$f":"IF('TSA Input'!J212=\"\",\"\",IF(OR('TSA Input'!J212=\"Yes\",'TSA Input'!J212=\"Contingent\"),'TSA Input'!G212,\"\"))","v":""},{"$f":"IF('TSA Input'!J212=\"\",\"\",IF(OR('TSA Input'!J212=\"Yes\",'TSA Input'!J212=\"Contingent\"),'TSA Input'!F212,\"\"))","v":""},"","Required","Required"]
["",null,{"$f":"IF('TSA Input'!J213=\"\",\"\",IF(OR('TSA Input'!J213=\"Yes\",'TSA Input'!J213=\"Contingent\"),'TSA Input'!B213,\"Ineligible\"))","v":""},{"$f":"IF('TSA Input'!J213=\"\",\"\",IF(OR('TSA Input'!J213=\"Yes\",'TSA Input'!J213=\"Contingent\"),'TSA Input'!I213,\"\"))","v":""},{"$f":"IF('TSA Input'!J213=\"\",\"\",IF(OR('TSA Input'!J213=\"Yes\",'TSA Input'!J213=\"Contingent\"),'TSA Input'!C213,\"\"))","v":""},{"$f":"IF('TSA Input'!J213=\"\",\"\",IF(OR('TSA Input'!J213=\"Yes\",'TSA Input'!J213=\"Contingent\"),'TSA Input'!D213,\"\"))","v":""},{"$f":"IF('TSA Input'!J213=\"\",\"\",IF(OR('TSA Input'!J213=\"Yes\",'TSA Input'!J213=\"Contingent\"),'TSA Input'!G213,\"\"))","v":""},{"$f":"IF('TSA Input'!J213=\"\",\"\",IF(OR('TSA Input'!J213=\"Yes\",'TSA Input'!J213=\"Contingent\"),'TSA Input'!F213,\"\"))","v":""},"",{"$f":"IF('TSA Input'!J213=\"\",\"\",IF(OR('TSA Input'!J213=\"Yes\",'TSA Input'!J213=\"Contingent\"),'TSA Input'!D213,\"\"))","v":""},{"$f":"IF('TSA Input'!J213=\"\",\"\",IF(OR('TSA Input'!J213=\"Yes\",'TSA Input'!J213=\"Contingent\"),'TSA Input'!G213,\"\"))","v":""},{"$f":"IF('TSA Input'!J213=\"\",\"\",IF(OR('TSA Input'!J213=\"Yes\",'TSA Input'!J213=\"Contingent\"),'TSA Input'!F213,\"\"))","v":""},"","Required","Required"]
["",null,{"$f":"IF('TSA Input'!J214=\"\",\"\",IF(OR('TSA Input'!J214=\"Yes\",'TSA Input'!J214=\"Contingent\"),'TSA Input'!B214,\"Ineligible\"))","v":""},{"$f":"IF('TSA Input'!J214=\"\",\"\",IF(OR('TSA Input'!J214=\"Yes\",'TSA Input'!J214=\"Contingent\"),'TSA Input'!I214,\"\"))","v":""},{"$f":"IF('TSA Input'!J214=\"\",\"\",IF(OR('TSA Input'!J214=\"Yes\",'TSA Input'!J214=\"Contingent\"),'TSA Input'!C214,\"\"))","v":""},{"$f":"IF('TSA Input'!J214=\"\",\"\",IF(OR('TSA Input'!J214=\"Yes\",'TSA Input'!J214=\"Contingent\"),'TSA Input'!D214,\"\"))","v":""},{"$f":"IF('TSA Input'!J214=\"\",\"\",IF(OR('TSA Input'!J214=\"Yes\",'TSA Input'!J214=\"Contingent\"),'TSA Input'!G214,\"\"))","v":""},{"$f":"IF('TSA Input'!J214=\"\",\"\",IF(OR('TSA Input'!J214=\"Yes\",'TSA Input'!J214=\"Contingent\"),'TSA Input'!F214,\"\"))","v":""},"",{"$f":"IF('TSA Input'!J214=\"\",\"\",IF(OR('TSA Input'!J214=\"Yes\",'TSA Input'!J214=\"Contingent\"),'TSA Input'!D214,\"\"))","v":""},{"$f":"IF('TSA Input'!J214=\"\",\"\",IF(OR('TSA Input'!J214=\"Yes\",'TSA Input'!J214=\"Contingent\"),'TSA Input'!G214,\"\"))","v":""},{"$f":"IF('TSA Input'!J214=\"\",\"\",IF(OR('TSA Input'!J214=\"Yes\",'TSA Input'!J214=\"Contingent\"),'TSA Input'!F214,\"\"))","v":""},"","Required","Required"]
["",null,{"$f":"IF('TSA Input'!J215=\"\",\"\",IF(OR('TSA Input'!J215=\"Yes\",'TSA Input'!J215=\"Contingent\"),'TSA Input'!B215,\"Ineligible\"))","v":""},{"$f":"IF('TSA Input'!J215=\"\",\"\",IF(OR('TSA Input'!J215=\"Yes\",'TSA Input'!J215=\"Contingent\"),'TSA Input'!I215,\"\"))","v":""},{"$f":"IF('TSA Input'!J215=\"\",\"\",IF(OR('TSA Input'!J215=\"Yes\",'TSA Input'!J215=\"Contingent\"),'TSA Input'!C215,\"\"))","v":""},{"$f":"IF('TSA Input'!J215=\"\",\"\",IF(OR('TSA Input'!J215=\"Yes\",'TSA Input'!J215=\"Contingent\"),'TSA Input'!D215,\"\"))","v":""},{"$f":"IF('TSA Input'!J215=\"\",\"\",IF(OR('TSA Input'!J215=\"Yes\",'TSA Input'!J215=\"Contingent\"),'TSA Input'!G215,\"\"))","v":""},{"$f":"IF('TSA Input'!J215=\"\",\"\",IF(OR('TSA Input'!J215=\"Yes\",'TSA Input'!J215=\"Contingent\"),'TSA Input'!F215,\"\"))","v":""},"",{"$f":"IF('TSA Input'!J215=\"\",\"\",IF(OR('TSA Input'!J215=\"Yes\",'TSA Input'!J215=\"Contingent\"),'TSA Input'!D215,\"\"))","v":""},{"$f":"IF('TSA Input'!J215=\"\",\"\",IF(OR('TSA Input'!J215=\"Yes\",'TSA Input'!J215=\"Contingent\"),'TSA Input'!G215,\"\"))","v":""},{"$f":"IF('TSA Input'!J215=\"\",\"\",IF(OR('TSA Input'!J215=\"Yes\",'TSA Input'!J215=\"Contingent\"),'TSA Input'!F215,\"\"))","v":""},"","Required","Required"]
["",null,{"$f":"IF('TSA Input'!J216=\"\",\"\",IF(OR('TSA Input'!J216=\"Yes\",'TSA Input'!J216=\"Contingent\"),'TSA Input'!B216,\"Ineligible\"))","v":""},{"$f":"IF('TSA Input'!J216=\"\",\"\",IF(OR('TSA Input'!J216=\"Yes\",'TSA Input'!J216=\"Contingent\"),'TSA Input'!I216,\"\"))","v":""},{"$f":"IF('TSA Input'!J216=\"\",\"\",IF(OR('TSA Input'!J216=\"Yes\",'TSA Input'!J216=\"Contingent\"),'TSA Input'!C216,\"\"))","v":""},{"$f":"IF('TSA Input'!J216=\"\",\"\",IF(OR('TSA Input'!J216=\"Yes\",'TSA Input'!J216=\"Contingent\"),'TSA Input'!D216,\"\"))","v":""},{"$f":"IF('TSA Input'!J216=\"\",\"\",IF(OR('TSA Input'!J216=\"Yes\",'TSA Input'!J216=\"Contingent\"),'TSA Input'!G216,\"\"))","v":""},{"$f":"IF('TSA Input'!J216=\"\",\"\",IF(OR('TSA Input'!J216=\"Yes\",'TSA Input'!J216=\"Contingent\"),'TSA Input'!F216,\"\"))","v":""},"",{"$f":"IF('TSA Input'!J216=\"\",\"\",IF(OR('TSA Input'!J216=\"Yes\",'TSA Input'!J216=\"Contingent\"),'TSA Input'!D216,\"\"))","v":""},{"$f":"IF('TSA Input'!J216=\"\",\"\",IF(OR('TSA Input'!J216=\"Yes\",'TSA Input'!J216=\"Contingent\"),'TSA Input'!G216,\"\"))","v":""},{"$f":"IF('TSA Input'!J216=\"\",\"\",IF(OR('TSA Input'!J216=\"Yes\",'TSA Input'!J216=\"Contingent\"),'TSA Input'!F216,\"\"))","v":""},"","Required","Required"]
["",null,{"$f":"IF('TSA Input'!J217=\"\",\"\",IF(OR('TSA Input'!J217=\"Yes\",'TSA Input'!J217=\"Contingent\"),'TSA Input'!B217,\"Ineligible\"))","v":""},{"$f":"IF('TSA Input'!J217=\"\",\"\",IF(OR('TSA Input'!J217=\"Yes\",'TSA Input'!J217=\"Contingent\"),'TSA Input'!I217,\"\"))","v":""},{"$f":"IF('TSA Input'!J217=\"\",\"\",IF(OR('TSA Input'!J217=\"Yes\",'TSA Input'!J217=\"Contingent\"),'TSA Input'!C217,\"\"))","v":""},{"$f":"IF('TSA Input'!J217=\"\",\"\",IF(OR('TSA Input'!J217=\"Yes\",'TSA Input'!J217=\"Contingent\"),'TSA Input'!D217,\"\"))","v":""},{"$f":"IF('TSA Input'!J217=\"\",\"\",IF(OR('TSA Input'!J217=\"Yes\",'TSA Input'!J217=\"Contingent\"),'TSA Input'!G217,\"\"))","v":""},{"$f":"IF('TSA Input'!J217=\"\",\"\",IF(OR('TSA Input'!J217=\"Yes\",'TSA Input'!J217=\"Contingent\"),'TSA Input'!F217,\"\"))","v":""},"",{"$f":"IF('TSA Input'!J217=\"\",\"\",IF(OR('TSA Input'!J217=\"Yes\",'TSA Input'!J217=\"Contingent\"),'TSA Input'!D217,\"\"))","v":""},{"$f":"IF('TSA Input'!J217=\"\",\"\",IF(OR('TSA Input'!J217=\"Yes\",'TSA Input'!J217=\"Contingent\"),'TSA Input'!G217,\"\"))","v":""},{"$f":"IF('TSA Input'!J217=\"\",\"\",IF(OR('TSA Input'!J217=\"Yes\",'TSA Input'!J217=\"Contingent\"),'TSA Input'!F217,\"\"))","v":""},"","Required","Required"]
["",null,{"$f":"IF('TSA Input'!J218=\"\",\"\",IF(OR('TSA Input'!J218=\"Yes\",'TSA Input'!J218=\"Contingent\"),'TSA Input'!B218,\"Ineligible\"))","v":""},{"$f":"IF('TSA Input'!J218=\"\",\"\",IF(OR('TSA Input'!J218=\"Yes\",'TSA Input'!J218=\"Contingent\"),'TSA Input'!I218,\"\"))","v":""},{"$f":"IF('TSA Input'!J218=\"\",\"\",IF(OR('TSA Input'!J218=\"Yes\",'TSA Input'!J218=\"Contingent\"),'TSA Input'!C218,\"\"))","v":""},{"$f":"IF('TSA Input'!J218=\"\",\"\",IF(OR('TSA Input'!J218=\"Yes\",'TSA Input'!J218=\"Contingent\"),'TSA Input'!D218,\"\"))","v":""},{"$f":"IF('TSA Input'!J218=\"\",\"\",IF(OR('TSA Input'!J218=\"Yes\",'TSA Input'!J218=\"Contingent\"),'TSA Input'!G218,\"\"))","v":""},{"$f":"IF('TSA Input'!J218=\"\",\"\",IF(OR('TSA Input'!J218=\"Yes\",'TSA Input'!J218=\"Contingent\"),'TSA Input'!F218,\"\"))","v":""},"",{"$f":"IF('TSA Input'!J218=\"\",\"\",IF(OR('TSA Input'!J218=\"Yes\",'TSA Input'!J218=\"Contingent\"),'TSA Input'!D218,\"\"))","v":""},{"$f":"IF('TSA Input'!J218=\"\",\"\",IF(OR('TSA Input'!J218=\"Yes\",'TSA Input'!J218=\"Contingent\"),'TSA Input'!G218,\"\"))","v":""},{"$f":"IF('TSA Input'!J218=\"\",\"\",IF(OR('TSA Input'!J218=\"Yes\",'TSA Input'!J218=\"Contingent\"),'TSA Input'!F218,\"\"))","v":""},"","Required","Required"]
["",null,{"$f":"IF('TSA Input'!J219=\"\",\"\",IF(OR('TSA Input'!J219=\"Yes\",'TSA Input'!J219=\"Contingent\"),'TSA Input'!B219,\"Ineligible\"))","v":""},{"$f":"IF('TSA Input'!J219=\"\",\"\",IF(OR('TSA Input'!J219=\"Yes\",'TSA Input'!J219=\"Contingent\"),'TSA Input'!I219,\"\"))","v":""},{"$f":"IF('TSA Input'!J219=\"\",\"\",IF(OR('TSA Input'!J219=\"Yes\",'TSA Input'!J219=\"Contingent\"),'TSA Input'!C219,\"\"))","v":""},{"$f":"IF('TSA Input'!J219=\"\",\"\",IF(OR('TSA Input'!J219=\"Yes\",'TSA Input'!J219=\"Contingent\"),'TSA Input'!D219,\"\"))","v":""},{"$f":"IF('TSA Input'!J219=\"\",\"\",IF(OR('TSA Input'!J219=\"Yes\",'TSA Input'!J219=\"Contingent\"),'TSA Input'!G219,\"\"))","v":""},{"$f":"IF('TSA Input'!J219=\"\",\"\",IF(OR('TSA Input'!J219=\"Yes\",'TSA Input'!J219=\"Contingent\"),'TSA Input'!F219,\"\"))","v":""},"",{"$f":"IF('TSA Input'!J219=\"\",\"\",IF(OR('TSA Input'!J219=\"Yes\",'TSA Input'!J219=\"Contingent\"),'TSA Input'!D219,\"\"))","v":""},{"$f":"IF('TSA Input'!J219=\"\",\"\",IF(OR('TSA Input'!J219=\"Yes\",'TSA Input'!J219=\"Contingent\"),'TSA Input'!G219,\"\"))","v":""},{"$f":"IF('TSA Input'!J219=\"\",\"\",IF(OR('TSA Input'!J219=\"Yes\",'TSA Input'!J219=\"Contingent\"),'TSA Input'!F219,\"\"))","v":""},"","Required","Required"]
["",null,{"$f":"IF('TSA Input'!J220=\"\",\"\",IF(OR('TSA Input'!J220=\"Yes\",'TSA Input'!J220=\"Contingent\"),'TSA Input'!B220,\"Ineligible\"))","v":""},{"$f":"IF('TSA Input'!J220=\"\",\"\",IF(OR('TSA Input'!J220=\"Yes\",'TSA Input'!J220=\"Contingent\"),'TSA Input'!I220,\"\"))","v":""},{"$f":"IF('TSA Input'!J220=\"\",\"\",IF(OR('TSA Input'!J220=\"Yes\",'TSA Input'!J220=\"Contingent\"),'TSA Input'!C220,\"\"))","v":""},{"$f":"IF('TSA Input'!J220=\"\",\"\",IF(OR('TSA Input'!J220=\"Yes\",'TSA Input'!J220=\"Contingent\"),'TSA Input'!D220,\"\"))","v":""},{"$f":"IF('TSA Input'!J220=\"\",\"\",IF(OR('TSA Input'!J220=\"Yes\",'TSA Input'!J220=\"Contingent\"),'TSA Input'!G220,\"\"))","v":""},{"$f":"IF('TSA Input'!J220=\"\",\"\",IF(OR('TSA Input'!J220=\"Yes\",'TSA Input'!J220=\"Contingent\"),'TSA Input'!F220,\"\"))","v":""},"",{"$f":"IF('TSA Input'!J220=\"\",\"\",IF(OR('TSA Input'!J220=\"Yes\",'TSA Input'!J220=\"Contingent\"),'TSA Input'!D220,\"\"))","v":""},{"$f":"IF('TSA Input'!J220=\"\",\"\",IF(OR('TSA Input'!J220=\"Yes\",'TSA Input'!J220=\"Contingent\"),'TSA Input'!G220,\"\"))","v":""},{"$f":"IF('TSA Input'!J220=\"\",\"\",IF(OR('TSA Input'!J220=\"Yes\",'TSA Input'!J220=\"Contingent\"),'TSA Input'!F220,\"\"))","v":""},"","Required","Required"]
["",null,{"$f":"IF('TSA Input'!J221=\"\",\"\",IF(OR('TSA Input'!J221=\"Yes\",'TSA Input'!J221=\"Contingent\"),'TSA Input'!B221,\"Ineligible\"))","v":""},{"$f":"IF('TSA Input'!J221=\"\",\"\",IF(OR('TSA Input'!J221=\"Yes\",'TSA Input'!J221=\"Contingent\"),'TSA Input'!I221,\"\"))","v":""},{"$f":"IF('TSA Input'!J221=\"\",\"\",IF(OR('TSA Input'!J221=\"Yes\",'TSA Input'!J221=\"Contingent\"),'TSA Input'!C221,\"\"))","v":""},{"$f":"IF('TSA Input'!J221=\"\",\"\",IF(OR('TSA Input'!J221=\"Yes\",'TSA Input'!J221=\"Contingent\"),'TSA Input'!D221,\"\"))","v":""},{"$f":"IF('TSA Input'!J221=\"\",\"\",IF(OR('TSA Input'!J221=\"Yes\",'TSA Input'!J221=\"Contingent\"),'TSA Input'!G221,\"\"))","v":""},{"$f":"IF('TSA Input'!J221=\"\",\"\",IF(OR('TSA Input'!J221=\"Yes\",'TSA Input'!J221=\"Contingent\"),'TSA Input'!F221,\"\"))","v":""},"",{"$f":"IF('TSA Input'!J221=\"\",\"\",IF(OR('TSA Input'!J221=\"Yes\",'TSA Input'!J221=\"Contingent\"),'TSA Input'!D221,\"\"))","v":""},{"$f":"IF('TSA Input'!J221=\"\",\"\",IF(OR('TSA Input'!J221=\"Yes\",'TSA Input'!J221=\"Contingent\"),'TSA Input'!G221,\"\"))","v":""},{"$f":"IF('TSA Input'!J221=\"\",\"\",IF(OR('TSA Input'!J221=\"Yes\",'TSA Input'!J221=\"Contingent\"),'TSA Input'!F221,\"\"))","v":""},"","Required","Required"]
["",null,{"$f":"IF('TSA Input'!J222=\"\",\"\",IF(OR('TSA Input'!J222=\"Yes\",'TSA Input'!J222=\"Contingent\"),'TSA Input'!B222,\"Ineligible\"))","v":""},{"$f":"IF('TSA Input'!J222=\"\",\"\",IF(OR('TSA Input'!J222=\"Yes\",'TSA Input'!J222=\"Contingent\"),'TSA Input'!I222,\"\"))","v":""},{"$f":"IF('TSA Input'!J222=\"\",\"\",IF(OR('TSA Input'!J222=\"Yes\",'TSA Input'!J222=\"Contingent\"),'TSA Input'!C222,\"\"))","v":""},{"$f":"IF('TSA Input'!J222=\"\",\"\",IF(OR('TSA Input'!J222=\"Yes\",'TSA Input'!J222=\"Contingent\"),'TSA Input'!D222,\"\"))","v":""},{"$f":"IF('TSA Input'!J222=\"\",\"\",IF(OR('TSA Input'!J222=\"Yes\",'TSA Input'!J222=\"Contingent\"),'TSA Input'!G222,\"\"))","v":""},{"$f":"IF('TSA Input'!J222=\"\",\"\",IF(OR('TSA Input'!J222=\"Yes\",'TSA Input'!J222=\"Contingent\"),'TSA Input'!F222,\"\"))","v":""},"",{"$f":"IF('TSA Input'!J222=\"\",\"\",IF(OR('TSA Input'!J222=\"Yes\",'TSA Input'!J222=\"Contingent\"),'TSA Input'!D222,\"\"))","v":""},{"$f":"IF('TSA Input'!J222=\"\",\"\",IF(OR('TSA Input'!J222=\"Yes\",'TSA Input'!J222=\"Contingent\"),'TSA Input'!G222,\"\"))","v":""},{"$f":"IF('TSA Input'!J222=\"\",\"\",IF(OR('TSA Input'!J222=\"Yes\",'TSA Input'!J222=\"Contingent\"),'TSA Input'!F222,\"\"))","v":""},"","Required","Required"]
["",null,{"$f":"IF('TSA Input'!J223=\"\",\"\",IF(OR('TSA Input'!J223=\"Yes\",'TSA Input'!J223=\"Contingent\"),'TSA Input'!B223,\"Ineligible\"))","v":""},{"$f":"IF('TSA Input'!J223=\"\",\"\",IF(OR('TSA Input'!J223=\"Yes\",'TSA Input'!J223=\"Contingent\"),'TSA Input'!I223,\"\"))","v":""},{"$f":"IF('TSA Input'!J223=\"\",\"\",IF(OR('TSA Input'!J223=\"Yes\",'TSA Input'!J223=\"Contingent\"),'TSA Input'!C223,\"\"))","v":""},{"$f":"IF('TSA Input'!J223=\"\",\"\",IF(OR('TSA Input'!J223=\"Yes\",'TSA Input'!J223=\"Contingent\"),'TSA Input'!D223,\"\"))","v":""},{"$f":"IF('TSA Input'!J223=\"\",\"\",IF(OR('TSA Input'!J223=\"Yes\",'TSA Input'!J223=\"Contingent\"),'TSA Input'!G223,\"\"))","v":""},{"$f":"IF('TSA Input'!J223=\"\",\"\",IF(OR('TSA Input'!J223=\"Yes\",'TSA Input'!J223=\"Contingent\"),'TSA Input'!F223,\"\"))","v":""},"",{"$f":"IF('TSA Input'!J223=\"\",\"\",IF(OR('TSA Input'!J223=\"Yes\",'TSA Input'!J223=\"Contingent\"),'TSA Input'!D223,\"\"))","v":""},{"$f":"IF('TSA Input'!J223=\"\",\"\",IF(OR('TSA Input'!J223=\"Yes\",'TSA Input'!J223=\"Contingent\"),'TSA Input'!G223,\"\"))","v":""},{"$f":"IF('TSA Input'!J223=\"\",\"\",IF(OR('TSA Input'!J223=\"Yes\",'TSA Input'!J223=\"Contingent\"),'TSA Input'!F223,\"\"))","v":""},"","Required","Required"]
["",null,{"$f":"IF('TSA Input'!J224=\"\",\"\",IF(OR('TSA Input'!J224=\"Yes\",'TSA Input'!J224=\"Contingent\"),'TSA Input'!B224,\"Ineligible\"))","v":""},{"$f":"IF('TSA Input'!J224=\"\",\"\",IF(OR('TSA Input'!J224=\"Yes\",'TSA Input'!J224=\"Contingent\"),'TSA Input'!I224,\"\"))","v":""},{"$f":"IF('TSA Input'!J224=\"\",\"\",IF(OR('TSA Input'!J224=\"Yes\",'TSA Input'!J224=\"Contingent\"),'TSA Input'!C224,\"\"))","v":""},{"$f":"IF('TSA Input'!J224=\"\",\"\",IF(OR('TSA Input'!J224=\"Yes\",'TSA Input'!J224=\"Contingent\"),'TSA Input'!D224,\"\"))","v":""},{"$f":"IF('TSA Input'!J224=\"\",\"\",IF(OR('TSA Input'!J224=\"Yes\",'TSA Input'!J224=\"Contingent\"),'TSA Input'!G224,\"\"))","v":""},{"$f":"IF('TSA Input'!J224=\"\",\"\",IF(OR('TSA Input'!J224=\"Yes\",'TSA Input'!J224=\"Contingent\"),'TSA Input'!F224,\"\"))","v":""},"",{"$f":"IF('TSA Input'!J224=\"\",\"\",IF(OR('TSA Input'!J224=\"Yes\",'TSA Input'!J224=\"Contingent\"),'TSA Input'!D224,\"\"))","v":""},{"$f":"IF('TSA Input'!J224=\"\",\"\",IF(OR('TSA Input'!J224=\"Yes\",'TSA Input'!J224=\"Contingent\"),'TSA Input'!G224,\"\"))","v":""},{"$f":"IF('TSA Input'!J224=\"\",\"\",IF(OR('TSA Input'!J224=\"Yes\",'TSA Input'!J224=\"Contingent\"),'TSA Input'!F224,\"\"))","v":""},"","Required","Required"]
["",null,{"$f":"IF('TSA Input'!J225=\"\",\"\",IF(OR('TSA Input'!J225=\"Yes\",'TSA Input'!J225=\"Contingent\"),'TSA Input'!B225,\"Ineligible\"))","v":""},{"$f":"IF('TSA Input'!J225=\"\",\"\",IF(OR('TSA Input'!J225=\"Yes\",'TSA Input'!J225=\"Contingent\"),'TSA Input'!I225,\"\"))","v":""},{"$f":"IF('TSA Input'!J225=\"\",\"\",IF(OR('TSA Input'!J225=\"Yes\",'TSA Input'!J225=\"Contingent\"),'TSA Input'!C225,\"\"))","v":""},{"$f":"IF('TSA Input'!J225=\"\",\"\",IF(OR('TSA Input'!J225=\"Yes\",'TSA Input'!J225=\"Contingent\"),'TSA Input'!D225,\"\"))","v":""},{"$f":"IF('TSA Input'!J225=\"\",\"\",IF(OR('TSA Input'!J225=\"Yes\",'TSA Input'!J225=\"Contingent\"),'TSA Input'!G225,\"\"))","v":""},{"$f":"IF('TSA Input'!J225=\"\",\"\",IF(OR('TSA Input'!J225=\"Yes\",'TSA Input'!J225=\"Contingent\"),'TSA Input'!F225,\"\"))","v":""},"",{"$f":"IF('TSA Input'!J225=\"\",\"\",IF(OR('TSA Input'!J225=\"Yes\",'TSA Input'!J225=\"Contingent\"),'TSA Input'!D225,\"\"))","v":""},{"$f":"IF('TSA Input'!J225=\"\",\"\",IF(OR('TSA Input'!J225=\"Yes\",'TSA Input'!J225=\"Contingent\"),'TSA Input'!G225,\"\"))","v":""},{"$f":"IF('TSA Input'!J225=\"\",\"\",IF(OR('TSA Input'!J225=\"Yes\",'TSA Input'!J225=\"Contingent\"),'TSA Input'!F225,\"\"))","v":""},"","Required","Required"]
["",null,{"$f":"IF('TSA Input'!J226=\"\",\"\",IF(OR('TSA Input'!J226=\"Yes\",'TSA Input'!J226=\"Contingent\"),'TSA Input'!B226,\"Ineligible\"))","v":""},{"$f":"IF('TSA Input'!J226=\"\",\"\",IF(OR('TSA Input'!J226=\"Yes\",'TSA Input'!J226=\"Contingent\"),'TSA Input'!I226,\"\"))","v":""},{"$f":"IF('TSA Input'!J226=\"\",\"\",IF(OR('TSA Input'!J226=\"Yes\",'TSA Input'!J226=\"Contingent\"),'TSA Input'!C226,\"\"))","v":""},{"$f":"IF('TSA Input'!J226=\"\",\"\",IF(OR('TSA Input'!J226=\"Yes\",'TSA Input'!J226=\"Contingent\"),'TSA Input'!D226,\"\"))","v":""},{"$f":"IF('TSA Input'!J226=\"\",\"\",IF(OR('TSA Input'!J226=\"Yes\",'TSA Input'!J226=\"Contingent\"),'TSA Input'!G226,\"\"))","v":""},{"$f":"IF('TSA Input'!J226=\"\",\"\",IF(OR('TSA Input'!J226=\"Yes\",'TSA Input'!J226=\"Contingent\"),'TSA Input'!F226,\"\"))","v":""},"",{"$f":"IF('TSA Input'!J226=\"\",\"\",IF(OR('TSA Input'!J226=\"Yes\",'TSA Input'!J226=\"Contingent\"),'TSA Input'!D226,\"\"))","v":""},{"$f":"IF('TSA Input'!J226=\"\",\"\",IF(OR('TSA Input'!J226=\"Yes\",'TSA Input'!J226=\"Contingent\"),'TSA Input'!G226,\"\"))","v":""},{"$f":"IF('TSA Input'!J226=\"\",\"\",IF(OR('TSA Input'!J226=\"Yes\",'TSA Input'!J226=\"Contingent\"),'TSA Input'!F226,\"\"))","v":""},"","Required","Required"]
["",null,{"$f":"IF('TSA Input'!J227=\"\",\"\",IF(OR('TSA Input'!J227=\"Yes\",'TSA Input'!J227=\"Contingent\"),'TSA Input'!B227,\"Ineligible\"))","v":""},{"$f":"IF('TSA Input'!J227=\"\",\"\",IF(OR('TSA Input'!J227=\"Yes\",'TSA Input'!J227=\"Contingent\"),'TSA Input'!I227,\"\"))","v":""},{"$f":"IF('TSA Input'!J227=\"\",\"\",IF(OR('TSA Input'!J227=\"Yes\",'TSA Input'!J227=\"Contingent\"),'TSA Input'!C227,\"\"))","v":""},{"$f":"IF('TSA Input'!J227=\"\",\"\",IF(OR('TSA Input'!J227=\"Yes\",'TSA Input'!J227=\"Contingent\"),'TSA Input'!D227,\"\"))","v":""},{"$f":"IF('TSA Input'!J227=\"\",\"\",IF(OR('TSA Input'!J227=\"Yes\",'TSA Input'!J227=\"Contingent\"),'TSA Input'!G227,\"\"))","v":""},{"$f":"IF('TSA Input'!J227=\"\",\"\",IF(OR('TSA Input'!J227=\"Yes\",'TSA Input'!J227=\"Contingent\"),'TSA Input'!F227,\"\"))","v":""},"",{"$f":"IF('TSA Input'!J227=\"\",\"\",IF(OR('TSA Input'!J227=\"Yes\",'TSA Input'!J227=\"Contingent\"),'TSA Input'!D227,\"\"))","v":""},{"$f":"IF('TSA Input'!J227=\"\",\"\",IF(OR('TSA Input'!J227=\"Yes\",'TSA Input'!J227=\"Contingent\"),'TSA Input'!G227,\"\"))","v":""},{"$f":"IF('TSA Input'!J227=\"\",\"\",IF(OR('TSA Input'!J227=\"Yes\",'TSA Input'!J227=\"Contingent\"),'TSA Input'!F227,\"\"))","v":""},"","Required","Required"]
["",null,{"$f":"IF('TSA Input'!J228=\"\",\"\",IF(OR('TSA Input'!J228=\"Yes\",'TSA Input'!J228=\"Contingent\"),'TSA Input'!B228,\"Ineligible\"))","v":""},{"$f":"IF('TSA Input'!J228=\"\",\"\",IF(OR('TSA Input'!J228=\"Yes\",'TSA Input'!J228=\"Contingent\"),'TSA Input'!I228,\"\"))","v":""},{"$f":"IF('TSA Input'!J228=\"\",\"\",IF(OR('TSA Input'!J228=\"Yes\",'TSA Input'!J228=\"Contingent\"),'TSA Input'!C228,\"\"))","v":""},{"$f":"IF('TSA Input'!J228=\"\",\"\",IF(OR('TSA Input'!J228=\"Yes\",'TSA Input'!J228=\"Contingent\"),'TSA Input'!D228,\"\"))","v":""},{"$f":"IF('TSA Input'!J228=\"\",\"\",IF(OR('TSA Input'!J228=\"Yes\",'TSA Input'!J228=\"Contingent\"),'TSA Input'!G228,\"\"))","v":""},{"$f":"IF('TSA Input'!J228=\"\",\"\",IF(OR('TSA Input'!J228=\"Yes\",'TSA Input'!J228=\"Contingent\"),'TSA Input'!F228,\"\"))","v":""},"",{"$f":"IF('TSA Input'!J228=\"\",\"\",IF(OR('TSA Input'!J228=\"Yes\",'TSA Input'!J228=\"Contingent\"),'TSA Input'!D228,\"\"))","v":""},{"$f":"IF('TSA Input'!J228=\"\",\"\",IF(OR('TSA Input'!J228=\"Yes\",'TSA Input'!J228=\"Contingent\"),'TSA Input'!G228,\"\"))","v":""},{"$f":"IF('TSA Input'!J228=\"\",\"\",IF(OR('TSA Input'!J228=\"Yes\",'TSA Input'!J228=\"Contingent\"),'TSA Input'!F228,\"\"))","v":""},"","Required","Required"]
["",null,{"$f":"IF('TSA Input'!J229=\"\",\"\",IF(OR('TSA Input'!J229=\"Yes\",'TSA Input'!J229=\"Contingent\"),'TSA Input'!B229,\"Ineligible\"))","v":""},{"$f":"IF('TSA Input'!J229=\"\",\"\",IF(OR('TSA Input'!J229=\"Yes\",'TSA Input'!J229=\"Contingent\"),'TSA Input'!I229,\"\"))","v":""},{"$f":"IF('TSA Input'!J229=\"\",\"\",IF(OR('TSA Input'!J229=\"Yes\",'TSA Input'!J229=\"Contingent\"),'TSA Input'!C229,\"\"))","v":""},{"$f":"IF('TSA Input'!J229=\"\",\"\",IF(OR('TSA Input'!J229=\"Yes\",'TSA Input'!J229=\"Contingent\"),'TSA Input'!D229,\"\"))","v":""},{"$f":"IF('TSA Input'!J229=\"\",\"\",IF(OR('TSA Input'!J229=\"Yes\",'TSA Input'!J229=\"Contingent\"),'TSA Input'!G229,\"\"))","v":""},{"$f":"IF('TSA Input'!J229=\"\",\"\",IF(OR('TSA Input'!J229=\"Yes\",'TSA Input'!J229=\"Contingent\"),'TSA Input'!F229,\"\"))","v":""},"",{"$f":"IF('TSA Input'!J229=\"\",\"\",IF(OR('TSA Input'!J229=\"Yes\",'TSA Input'!J229=\"Contingent\"),'TSA Input'!D229,\"\"))","v":""},{"$f":"IF('TSA Input'!J229=\"\",\"\",IF(OR('TSA Input'!J229=\"Yes\",'TSA Input'!J229=\"Contingent\"),'TSA Input'!G229,\"\"))","v":""},{"$f":"IF('TSA Input'!J229=\"\",\"\",IF(OR('TSA Input'!J229=\"Yes\",'TSA Input'!J229=\"Contingent\"),'TSA Input'!F229,\"\"))","v":""},"","Required","Required"]
["",null,{"$f":"IF('TSA Input'!J230=\"\",\"\",IF(OR('TSA Input'!J230=\"Yes\",'TSA Input'!J230=\"Contingent\"),'TSA Input'!B230,\"Ineligible\"))","v":""},{"$f":"IF('TSA Input'!J230=\"\",\"\",IF(OR('TSA Input'!J230=\"Yes\",'TSA Input'!J230=\"Contingent\"),'TSA Input'!I230,\"\"))","v":""},{"$f":"IF('TSA Input'!J230=\"\",\"\",IF(OR('TSA Input'!J230=\"Yes\",'TSA Input'!J230=\"Contingent\"),'TSA Input'!C230,\"\"))","v":""},{"$f":"IF('TSA Input'!J230=\"\",\"\",IF(OR('TSA Input'!J230=\"Yes\",'TSA Input'!J230=\"Contingent\"),'TSA Input'!D230,\"\"))","v":""},{"$f":"IF('TSA Input'!J230=\"\",\"\",IF(OR('TSA Input'!J230=\"Yes\",'TSA Input'!J230=\"Contingent\"),'TSA Input'!G230,\"\"))","v":""},{"$f":"IF('TSA Input'!J230=\"\",\"\",IF(OR('TSA Input'!J230=\"Yes\",'TSA Input'!J230=\"Contingent\"),'TSA Input'!F230,\"\"))","v":""},"",{"$f":"IF('TSA Input'!J230=\"\",\"\",IF(OR('TSA Input'!J230=\"Yes\",'TSA Input'!J230=\"Contingent\"),'TSA Input'!D230,\"\"))","v":""},{"$f":"IF('TSA Input'!J230=\"\",\"\",IF(OR('TSA Input'!J230=\"Yes\",'TSA Input'!J230=\"Contingent\"),'TSA Input'!G230,\"\"))","v":""},{"$f":"IF('TSA Input'!J230=\"\",\"\",IF(OR('TSA Input'!J230=\"Yes\",'TSA Input'!J230=\"Contingent\"),'TSA Input'!F230,\"\"))","v":""},"","Required","Required"]
["",null,{"$f":"IF('TSA Input'!J231=\"\",\"\",IF(OR('TSA Input'!J231=\"Yes\",'TSA Input'!J231=\"Contingent\"),'TSA Input'!B231,\"Ineligible\"))","v":""},{"$f":"IF('TSA Input'!J231=\"\",\"\",IF(OR('TSA Input'!J231=\"Yes\",'TSA Input'!J231=\"Contingent\"),'TSA Input'!I231,\"\"))","v":""},{"$f":"IF('TSA Input'!J231=\"\",\"\",IF(OR('TSA Input'!J231=\"Yes\",'TSA Input'!J231=\"Contingent\"),'TSA Input'!C231,\"\"))","v":""},{"$f":"IF('TSA Input'!J231=\"\",\"\",IF(OR('TSA Input'!J231=\"Yes\",'TSA Input'!J231=\"Contingent\"),'TSA Input'!D231,\"\"))","v":""},{"$f":"IF('TSA Input'!J231=\"\",\"\",IF(OR('TSA Input'!J231=\"Yes\",'TSA Input'!J231=\"Contingent\"),'TSA Input'!G231,\"\"))","v":""},{"$f":"IF('TSA Input'!J231=\"\",\"\",IF(OR('TSA Input'!J231=\"Yes\",'TSA Input'!J231=\"Contingent\"),'TSA Input'!F231,\"\"))","v":""},"",{"$f":"IF('TSA Input'!J231=\"\",\"\",IF(OR('TSA Input'!J231=\"Yes\",'TSA Input'!J231=\"Contingent\"),'TSA Input'!D231,\"\"))","v":""},{"$f":"IF('TSA Input'!J231=\"\",\"\",IF(OR('TSA Input'!J231=\"Yes\",'TSA Input'!J231=\"Contingent\"),'TSA Input'!G231,\"\"))","v":""},{"$f":"IF('TSA Input'!J231=\"\",\"\",IF(OR('TSA Input'!J231=\"Yes\",'TSA Input'!J231=\"Contingent\"),'TSA Input'!F231,\"\"))","v":""},"","Required","Required"]
["",null,{"$f":"IF('TSA Input'!J232=\"\",\"\",IF(OR('TSA Input'!J232=\"Yes\",'TSA Input'!J232=\"Contingent\"),'TSA Input'!B232,\"Ineligible\"))","v":""},{"$f":"IF('TSA Input'!J232=\"\",\"\",IF(OR('TSA Input'!J232=\"Yes\",'TSA Input'!J232=\"Contingent\"),'TSA Input'!I232,\"\"))","v":""},{"$f":"IF('TSA Input'!J232=\"\",\"\",IF(OR('TSA Input'!J232=\"Yes\",'TSA Input'!J232=\"Contingent\"),'TSA Input'!C232,\"\"))","v":""},{"$f":"IF('TSA Input'!J232=\"\",\"\",IF(OR('TSA Input'!J232=\"Yes\",'TSA Input'!J232=\"Contingent\"),'TSA Input'!D232,\"\"))","v":""},{"$f":"IF('TSA Input'!J232=\"\",\"\",IF(OR('TSA Input'!J232=\"Yes\",'TSA Input'!J232=\"Contingent\"),'TSA Input'!G232,\"\"))","v":""},{"$f":"IF('TSA Input'!J232=\"\",\"\",IF(OR('TSA Input'!J232=\"Yes\",'TSA Input'!J232=\"Contingent\"),'TSA Input'!F232,\"\"))","v":""},"",{"$f":"IF('TSA Input'!J232=\"\",\"\",IF(OR('TSA Input'!J232=\"Yes\",'TSA Input'!J232=\"Contingent\"),'TSA Input'!D232,\"\"))","v":""},{"$f":"IF('TSA Input'!J232=\"\",\"\",IF(OR('TSA Input'!J232=\"Yes\",'TSA Input'!J232=\"Contingent\"),'TSA Input'!G232,\"\"))","v":""},{"$f":"IF('TSA Input'!J232=\"\",\"\",IF(OR('TSA Input'!J232=\"Yes\",'TSA Input'!J232=\"Contingent\"),'TSA Input'!F232,\"\"))","v":""},"","Required","Required"]
["",null,{"$f":"IF('TSA Input'!J233=\"\",\"\",IF(OR('TSA Input'!J233=\"Yes\",'TSA Input'!J233=\"Contingent\"),'TSA Input'!B233,\"Ineligible\"))","v":""},{"$f":"IF('TSA Input'!J233=\"\",\"\",IF(OR('TSA Input'!J233=\"Yes\",'TSA Input'!J233=\"Contingent\"),'TSA Input'!I233,\"\"))","v":""},{"$f":"IF('TSA Input'!J233=\"\",\"\",IF(OR('TSA Input'!J233=\"Yes\",'TSA Input'!J233=\"Contingent\"),'TSA Input'!C233,\"\"))","v":""},{"$f":"IF('TSA Input'!J233=\"\",\"\",IF(OR('TSA Input'!J233=\"Yes\",'TSA Input'!J233=\"Contingent\"),'TSA Input'!D233,\"\"))","v":""},{"$f":"IF('TSA Input'!J233=\"\",\"\",IF(OR('TSA Input'!J233=\"Yes\",'TSA Input'!J233=\"Contingent\"),'TSA Input'!G233,\"\"))","v":""},{"$f":"IF('TSA Input'!J233=\"\",\"\",IF(OR('TSA Input'!J233=\"Yes\",'TSA Input'!J233=\"Contingent\"),'TSA Input'!F233,\"\"))","v":""},"",{"$f":"IF('TSA Input'!J233=\"\",\"\",IF(OR('TSA Input'!J233=\"Yes\",'TSA Input'!J233=\"Contingent\"),'TSA Input'!D233,\"\"))","v":""},{"$f":"IF('TSA Input'!J233=\"\",\"\",IF(OR('TSA Input'!J233=\"Yes\",'TSA Input'!J233=\"Contingent\"),'TSA Input'!G233,\"\"))","v":""},{"$f":"IF('TSA Input'!J233=\"\",\"\",IF(OR('TSA Input'!J233=\"Yes\",'TSA Input'!J233=\"Contingent\"),'TSA Input'!F233,\"\"))","v":""},"","Required","Required"]
["",null,{"$f":"IF('TSA Input'!J234=\"\",\"\",IF(OR('TSA Input'!J234=\"Yes\",'TSA Input'!J234=\"Contingent\"),'TSA Input'!B234,\"Ineligible\"))","v":""},{"$f":"IF('TSA Input'!J234=\"\",\"\",IF(OR('TSA Input'!J234=\"Yes\",'TSA Input'!J234=\"Contingent\"),'TSA Input'!I234,\"\"))","v":""},{"$f":"IF('TSA Input'!J234=\"\",\"\",IF(OR('TSA Input'!J234=\"Yes\",'TSA Input'!J234=\"Contingent\"),'TSA Input'!C234,\"\"))","v":""},{"$f":"IF('TSA Input'!J234=\"\",\"\",IF(OR('TSA Input'!J234=\"Yes\",'TSA Input'!J234=\"Contingent\"),'TSA Input'!D234,\"\"))","v":""},{"$f":"IF('TSA Input'!J234=\"\",\"\",IF(OR('TSA Input'!J234=\"Yes\",'TSA Input'!J234=\"Contingent\"),'TSA Input'!G234,\"\"))","v":""},{"$f":"IF('TSA Input'!J234=\"\",\"\",IF(OR('TSA Input'!J234=\"Yes\",'TSA Input'!J234=\"Contingent\"),'TSA Input'!F234,\"\"))","v":""},"",{"$f":"IF('TSA Input'!J234=\"\",\"\",IF(OR('TSA Input'!J234=\"Yes\",'TSA Input'!J234=\"Contingent\"),'TSA Input'!D234,\"\"))","v":""},{"$f":"IF('TSA Input'!J234=\"\",\"\",IF(OR('TSA Input'!J234=\"Yes\",'TSA Input'!J234=\"Contingent\"),'TSA Input'!G234,\"\"))","v":""},{"$f":"IF('TSA Input'!J234=\"\",\"\",IF(OR('TSA Input'!J234=\"Yes\",'TSA Input'!J234=\"Contingent\"),'TSA Input'!F234,\"\"))","v":""},"","Required","Required"]
["",null,{"$f":"IF('TSA Input'!J235=\"\",\"\",IF(OR('TSA Input'!J235=\"Yes\",'TSA Input'!J235=\"Contingent\"),'TSA Input'!B235,\"Ineligible\"))","v":""},{"$f":"IF('TSA Input'!J235=\"\",\"\",IF(OR('TSA Input'!J235=\"Yes\",'TSA Input'!J235=\"Contingent\"),'TSA Input'!I235,\"\"))","v":""},{"$f":"IF('TSA Input'!J235=\"\",\"\",IF(OR('TSA Input'!J235=\"Yes\",'TSA Input'!J235=\"Contingent\"),'TSA Input'!C235,\"\"))","v":""},{"$f":"IF('TSA Input'!J235=\"\",\"\",IF(OR('TSA Input'!J235=\"Yes\",'TSA Input'!J235=\"Contingent\"),'TSA Input'!D235,\"\"))","v":""},{"$f":"IF('TSA Input'!J235=\"\",\"\",IF(OR('TSA Input'!J235=\"Yes\",'TSA Input'!J235=\"Contingent\"),'TSA Input'!G235,\"\"))","v":""},{"$f":"IF('TSA Input'!J235=\"\",\"\",IF(OR('TSA Input'!J235=\"Yes\",'TSA Input'!J235=\"Contingent\"),'TSA Input'!F235,\"\"))","v":""},"",{"$f":"IF('TSA Input'!J235=\"\",\"\",IF(OR('TSA Input'!J235=\"Yes\",'TSA Input'!J235=\"Contingent\"),'TSA Input'!D235,\"\"))","v":""},{"$f":"IF('TSA Input'!J235=\"\",\"\",IF(OR('TSA Input'!J235=\"Yes\",'TSA Input'!J235=\"Contingent\"),'TSA Input'!G235,\"\"))","v":""},{"$f":"IF('TSA Input'!J235=\"\",\"\",IF(OR('TSA Input'!J235=\"Yes\",'TSA Input'!J235=\"Contingent\"),'TSA Input'!F235,\"\"))","v":""},"","Required","Required"]
["",null,{"$f":"IF('TSA Input'!J236=\"\",\"\",IF(OR('TSA Input'!J236=\"Yes\",'TSA Input'!J236=\"Contingent\"),'TSA Input'!B236,\"Ineligible\"))","v":""},{"$f":"IF('TSA Input'!J236=\"\",\"\",IF(OR('TSA Input'!J236=\"Yes\",'TSA Input'!J236=\"Contingent\"),'TSA Input'!I236,\"\"))","v":""},{"$f":"IF('TSA Input'!J236=\"\",\"\",IF(OR('TSA Input'!J236=\"Yes\",'TSA Input'!J236=\"Contingent\"),'TSA Input'!C236,\"\"))","v":""},{"$f":"IF('TSA Input'!J236=\"\",\"\",IF(OR('TSA Input'!J236=\"Yes\",'TSA Input'!J236=\"Contingent\"),'TSA Input'!D236,\"\"))","v":""},{"$f":"IF('TSA Input'!J236=\"\",\"\",IF(OR('TSA Input'!J236=\"Yes\",'TSA Input'!J236=\"Contingent\"),'TSA Input'!G236,\"\"))","v":""},{"$f":"IF('TSA Input'!J236=\"\",\"\",IF(OR('TSA Input'!J236=\"Yes\",'TSA Input'!J236=\"Contingent\"),'TSA Input'!F236,\"\"))","v":""},"",{"$f":"IF('TSA Input'!J236=\"\",\"\",IF(OR('TSA Input'!J236=\"Yes\",'TSA Input'!J236=\"Contingent\"),'TSA Input'!D236,\"\"))","v":""},{"$f":"IF('TSA Input'!J236=\"\",\"\",IF(OR('TSA Input'!J236=\"Yes\",'TSA Input'!J236=\"Contingent\"),'TSA Input'!G236,\"\"))","v":""},{"$f":"IF('TSA Input'!J236=\"\",\"\",IF(OR('TSA Input'!J236=\"Yes\",'TSA Input'!J236=\"Contingent\"),'TSA Input'!F236,\"\"))","v":""},"","Required","Required"]
["",null,{"$f":"IF('TSA Input'!J237=\"\",\"\",IF(OR('TSA Input'!J237=\"Yes\",'TSA Input'!J237=\"Contingent\"),'TSA Input'!B237,\"Ineligible\"))","v":""},{"$f":"IF('TSA Input'!J237=\"\",\"\",IF(OR('TSA Input'!J237=\"Yes\",'TSA Input'!J237=\"Contingent\"),'TSA Input'!I237,\"\"))","v":""},{"$f":"IF('TSA Input'!J237=\"\",\"\",IF(OR('TSA Input'!J237=\"Yes\",'TSA Input'!J237=\"Contingent\"),'TSA Input'!C237,\"\"))","v":""},{"$f":"IF('TSA Input'!J237=\"\",\"\",IF(OR('TSA Input'!J237=\"Yes\",'TSA Input'!J237=\"Contingent\"),'TSA Input'!D237,\"\"))","v":""},{"$f":"IF('TSA Input'!J237=\"\",\"\",IF(OR('TSA Input'!J237=\"Yes\",'TSA Input'!J237=\"Contingent\"),'TSA Input'!G237,\"\"))","v":""},{"$f":"IF('TSA Input'!J237=\"\",\"\",IF(OR('TSA Input'!J237=\"Yes\",'TSA Input'!J237=\"Contingent\"),'TSA Input'!F237,\"\"))","v":""},"",{"$f":"IF('TSA Input'!J237=\"\",\"\",IF(OR('TSA Input'!J237=\"Yes\",'TSA Input'!J237=\"Contingent\"),'TSA Input'!D237,\"\"))","v":""},{"$f":"IF('TSA Input'!J237=\"\",\"\",IF(OR('TSA Input'!J237=\"Yes\",'TSA Input'!J237=\"Contingent\"),'TSA Input'!G237,\"\"))","v":""},{"$f":"IF('TSA Input'!J237=\"\",\"\",IF(OR('TSA Input'!J237=\"Yes\",'TSA Input'!J237=\"Contingent\"),'TSA Input'!F237,\"\"))","v":""},"","Required","Required"]
["",null,{"$f":"IF('TSA Input'!J238=\"\",\"\",IF(OR('TSA Input'!J238=\"Yes\",'TSA Input'!J238=\"Contingent\"),'TSA Input'!B238,\"Ineligible\"))","v":""},{"$f":"IF('TSA Input'!J238=\"\",\"\",IF(OR('TSA Input'!J238=\"Yes\",'TSA Input'!J238=\"Contingent\"),'TSA Input'!I238,\"\"))","v":""},{"$f":"IF('TSA Input'!J238=\"\",\"\",IF(OR('TSA Input'!J238=\"Yes\",'TSA Input'!J238=\"Contingent\"),'TSA Input'!C238,\"\"))","v":""},{"$f":"IF('TSA Input'!J238=\"\",\"\",IF(OR('TSA Input'!J238=\"Yes\",'TSA Input'!J238=\"Contingent\"),'TSA Input'!D238,\"\"))","v":""},{"$f":"IF('TSA Input'!J238=\"\",\"\",IF(OR('TSA Input'!J238=\"Yes\",'TSA Input'!J238=\"Contingent\"),'TSA Input'!G238,\"\"))","v":""},{"$f":"IF('TSA Input'!J238=\"\",\"\",IF(OR('TSA Input'!J238=\"Yes\",'TSA Input'!J238=\"Contingent\"),'TSA Input'!F238,\"\"))","v":""},"",{"$f":"IF('TSA Input'!J238=\"\",\"\",IF(OR('TSA Input'!J238=\"Yes\",'TSA Input'!J238=\"Contingent\"),'TSA Input'!D238,\"\"))","v":""},{"$f":"IF('TSA Input'!J238=\"\",\"\",IF(OR('TSA Input'!J238=\"Yes\",'TSA Input'!J238=\"Contingent\"),'TSA Input'!G238,\"\"))","v":""},{"$f":"IF('TSA Input'!J238=\"\",\"\",IF(OR('TSA Input'!J238=\"Yes\",'TSA Input'!J238=\"Contingent\"),'TSA Input'!F238,\"\"))","v":""},"","Required","Required"]
["",null,{"$f":"IF('TSA Input'!J239=\"\",\"\",IF(OR('TSA Input'!J239=\"Yes\",'TSA Input'!J239=\"Contingent\"),'TSA Input'!B239,\"Ineligible\"))","v":""},{"$f":"IF('TSA Input'!J239=\"\",\"\",IF(OR('TSA Input'!J239=\"Yes\",'TSA Input'!J239=\"Contingent\"),'TSA Input'!I239,\"\"))","v":""},{"$f":"IF('TSA Input'!J239=\"\",\"\",IF(OR('TSA Input'!J239=\"Yes\",'TSA Input'!J239=\"Contingent\"),'TSA Input'!C239,\"\"))","v":""},{"$f":"IF('TSA Input'!J239=\"\",\"\",IF(OR('TSA Input'!J239=\"Yes\",'TSA Input'!J239=\"Contingent\"),'TSA Input'!D239,\"\"))","v":""},{"$f":"IF('TSA Input'!J239=\"\",\"\",IF(OR('TSA Input'!J239=\"Yes\",'TSA Input'!J239=\"Contingent\"),'TSA Input'!G239,\"\"))","v":""},{"$f":"IF('TSA Input'!J239=\"\",\"\",IF(OR('TSA Input'!J239=\"Yes\",'TSA Input'!J239=\"Contingent\"),'TSA Input'!F239,\"\"))","v":""},"",{"$f":"IF('TSA Input'!J239=\"\",\"\",IF(OR('TSA Input'!J239=\"Yes\",'TSA Input'!J239=\"Contingent\"),'TSA Input'!D239,\"\"))","v":""},{"$f":"IF('TSA Input'!J239=\"\",\"\",IF(OR('TSA Input'!J239=\"Yes\",'TSA Input'!J239=\"Contingent\"),'TSA Input'!G239,\"\"))","v":""},{"$f":"IF('TSA Input'!J239=\"\",\"\",IF(OR('TSA Input'!J239=\"Yes\",'TSA Input'!J239=\"Contingent\"),'TSA Input'!F239,\"\"))","v":""},"","Required","Required"]
["",null,{"$f":"IF('TSA Input'!J240=\"\",\"\",IF(OR('TSA Input'!J240=\"Yes\",'TSA Input'!J240=\"Contingent\"),'TSA Input'!B240,\"Ineligible\"))","v":""},{"$f":"IF('TSA Input'!J240=\"\",\"\",IF(OR('TSA Input'!J240=\"Yes\",'TSA Input'!J240=\"Contingent\"),'TSA Input'!I240,\"\"))","v":""},{"$f":"IF('TSA Input'!J240=\"\",\"\",IF(OR('TSA Input'!J240=\"Yes\",'TSA Input'!J240=\"Contingent\"),'TSA Input'!C240,\"\"))","v":""},{"$f":"IF('TSA Input'!J240=\"\",\"\",IF(OR('TSA Input'!J240=\"Yes\",'TSA Input'!J240=\"Contingent\"),'TSA Input'!D240,\"\"))","v":""},{"$f":"IF('TSA Input'!J240=\"\",\"\",IF(OR('TSA Input'!J240=\"Yes\",'TSA Input'!J240=\"Contingent\"),'TSA Input'!G240,\"\"))","v":""},{"$f":"IF('TSA Input'!J240=\"\",\"\",IF(OR('TSA Input'!J240=\"Yes\",'TSA Input'!J240=\"Contingent\"),'TSA Input'!F240,\"\"))","v":""},"",{"$f":"IF('TSA Input'!J240=\"\",\"\",IF(OR('TSA Input'!J240=\"Yes\",'TSA Input'!J240=\"Contingent\"),'TSA Input'!D240,\"\"))","v":""},{"$f":"IF('TSA Input'!J240=\"\",\"\",IF(OR('TSA Input'!J240=\"Yes\",'TSA Input'!J240=\"Contingent\"),'TSA Input'!G240,\"\"))","v":""},{"$f":"IF('TSA Input'!J240=\"\",\"\",IF(OR('TSA Input'!J240=\"Yes\",'TSA Input'!J240=\"Contingent\"),'TSA Input'!F240,\"\"))","v":""},"","Required","Required"]
["",null,{"$f":"IF('TSA Input'!J241=\"\",\"\",IF(OR('TSA Input'!J241=\"Yes\",'TSA Input'!J241=\"Contingent\"),'TSA Input'!B241,\"Ineligible\"))","v":""},{"$f":"IF('TSA Input'!J241=\"\",\"\",IF(OR('TSA Input'!J241=\"Yes\",'TSA Input'!J241=\"Contingent\"),'TSA Input'!I241,\"\"))","v":""},{"$f":"IF('TSA Input'!J241=\"\",\"\",IF(OR('TSA Input'!J241=\"Yes\",'TSA Input'!J241=\"Contingent\"),'TSA Input'!C241,\"\"))","v":""},{"$f":"IF('TSA Input'!J241=\"\",\"\",IF(OR('TSA Input'!J241=\"Yes\",'TSA Input'!J241=\"Contingent\"),'TSA Input'!D241,\"\"))","v":""},{"$f":"IF('TSA Input'!J241=\"\",\"\",IF(OR('TSA Input'!J241=\"Yes\",'TSA Input'!J241=\"Contingent\"),'TSA Input'!G241,\"\"))","v":""},{"$f":"IF('TSA Input'!J241=\"\",\"\",IF(OR('TSA Input'!J241=\"Yes\",'TSA Input'!J241=\"Contingent\"),'TSA Input'!F241,\"\"))","v":""},"",{"$f":"IF('TSA Input'!J241=\"\",\"\",IF(OR('TSA Input'!J241=\"Yes\",'TSA Input'!J241=\"Contingent\"),'TSA Input'!D241,\"\"))","v":""},{"$f":"IF('TSA Input'!J241=\"\",\"\",IF(OR('TSA Input'!J241=\"Yes\",'TSA Input'!J241=\"Contingent\"),'TSA Input'!G241,\"\"))","v":""},{"$f":"IF('TSA Input'!J241=\"\",\"\",IF(OR('TSA Input'!J241=\"Yes\",'TSA Input'!J241=\"Contingent\"),'TSA Input'!F241,\"\"))","v":""},"","Required","Required"]
["",null,{"$f":"IF('TSA Input'!J242=\"\",\"\",IF(OR('TSA Input'!J242=\"Yes\",'TSA Input'!J242=\"Contingent\"),'TSA Input'!B242,\"Ineligible\"))","v":""},{"$f":"IF('TSA Input'!J242=\"\",\"\",IF(OR('TSA Input'!J242=\"Yes\",'TSA Input'!J242=\"Contingent\"),'TSA Input'!I242,\"\"))","v":""},{"$f":"IF('TSA Input'!J242=\"\",\"\",IF(OR('TSA Input'!J242=\"Yes\",'TSA Input'!J242=\"Contingent\"),'TSA Input'!C242,\"\"))","v":""},{"$f":"IF('TSA Input'!J242=\"\",\"\",IF(OR('TSA Input'!J242=\"Yes\",'TSA Input'!J242=\"Contingent\"),'TSA Input'!D242,\"\"))","v":""},{"$f":"IF('TSA Input'!J242=\"\",\"\",IF(OR('TSA Input'!J242=\"Yes\",'TSA Input'!J242=\"Contingent\"),'TSA Input'!G242,\"\"))","v":""},{"$f":"IF('TSA Input'!J242=\"\",\"\",IF(OR('TSA Input'!J242=\"Yes\",'TSA Input'!J242=\"Contingent\"),'TSA Input'!F242,\"\"))","v":""},"",{"$f":"IF('TSA Input'!J242=\"\",\"\",IF(OR('TSA Input'!J242=\"Yes\",'TSA Input'!J242=\"Contingent\"),'TSA Input'!D242,\"\"))","v":""},{"$f":"IF('TSA Input'!J242=\"\",\"\",IF(OR('TSA Input'!J242=\"Yes\",'TSA Input'!J242=\"Contingent\"),'TSA Input'!G242,\"\"))","v":""},{"$f":"IF('TSA Input'!J242=\"\",\"\",IF(OR('TSA Input'!J242=\"Yes\",'TSA Input'!J242=\"Contingent\"),'TSA Input'!F242,\"\"))","v":""},"","Required","Required"]
["",null,{"$f":"IF('TSA Input'!J243=\"\",\"\",IF(OR('TSA Input'!J243=\"Yes\",'TSA Input'!J243=\"Contingent\"),'TSA Input'!B243,\"Ineligible\"))","v":""},{"$f":"IF('TSA Input'!J243=\"\",\"\",IF(OR('TSA Input'!J243=\"Yes\",'TSA Input'!J243=\"Contingent\"),'TSA Input'!I243,\"\"))","v":""},{"$f":"IF('TSA Input'!J243=\"\",\"\",IF(OR('TSA Input'!J243=\"Yes\",'TSA Input'!J243=\"Contingent\"),'TSA Input'!C243,\"\"))","v":""},{"$f":"IF('TSA Input'!J243=\"\",\"\",IF(OR('TSA Input'!J243=\"Yes\",'TSA Input'!J243=\"Contingent\"),'TSA Input'!D243,\"\"))","v":""},{"$f":"IF('TSA Input'!J243=\"\",\"\",IF(OR('TSA Input'!J243=\"Yes\",'TSA Input'!J243=\"Contingent\"),'TSA Input'!G243,\"\"))","v":""},{"$f":"IF('TSA Input'!J243=\"\",\"\",IF(OR('TSA Input'!J243=\"Yes\",'TSA Input'!J243=\"Contingent\"),'TSA Input'!F243,\"\"))","v":""},"",{"$f":"IF('TSA Input'!J243=\"\",\"\",IF(OR('TSA Input'!J243=\"Yes\",'TSA Input'!J243=\"Contingent\"),'TSA Input'!D243,\"\"))","v":""},{"$f":"IF('TSA Input'!J243=\"\",\"\",IF(OR('TSA Input'!J243=\"Yes\",'TSA Input'!J243=\"Contingent\"),'TSA Input'!G243,\"\"))","v":""},{"$f":"IF('TSA Input'!J243=\"\",\"\",IF(OR('TSA Input'!J243=\"Yes\",'TSA Input'!J243=\"Contingent\"),'TSA Input'!F243,\"\"))","v":""},"","Required","Required"]
["",null,{"$f":"IF('TSA Input'!J244=\"\",\"\",IF(OR('TSA Input'!J244=\"Yes\",'TSA Input'!J244=\"Contingent\"),'TSA Input'!B244,\"Ineligible\"))","v":""},{"$f":"IF('TSA Input'!J244=\"\",\"\",IF(OR('TSA Input'!J244=\"Yes\",'TSA Input'!J244=\"Contingent\"),'TSA Input'!I244,\"\"))","v":""},{"$f":"IF('TSA Input'!J244=\"\",\"\",IF(OR('TSA Input'!J244=\"Yes\",'TSA Input'!J244=\"Contingent\"),'TSA Input'!C244,\"\"))","v":""},{"$f":"IF('TSA Input'!J244=\"\",\"\",IF(OR('TSA Input'!J244=\"Yes\",'TSA Input'!J244=\"Contingent\"),'TSA Input'!D244,\"\"))","v":""},{"$f":"IF('TSA Input'!J244=\"\",\"\",IF(OR('TSA Input'!J244=\"Yes\",'TSA Input'!J244=\"Contingent\"),'TSA Input'!G244,\"\"))","v":""},{"$f":"IF('TSA Input'!J244=\"\",\"\",IF(OR('TSA Input'!J244=\"Yes\",'TSA Input'!J244=\"Contingent\"),'TSA Input'!F244,\"\"))","v":""},"",{"$f":"IF('TSA Input'!J244=\"\",\"\",IF(OR('TSA Input'!J244=\"Yes\",'TSA Input'!J244=\"Contingent\"),'TSA Input'!D244,\"\"))","v":""},{"$f":"IF('TSA Input'!J244=\"\",\"\",IF(OR('TSA Input'!J244=\"Yes\",'TSA Input'!J244=\"Contingent\"),'TSA Input'!G244,\"\"))","v":""},{"$f":"IF('TSA Input'!J244=\"\",\"\",IF(OR('TSA Input'!J244=\"Yes\",'TSA Input'!J244=\"Contingent\"),'TSA Input'!F244,\"\"))","v":""},"","Required","Required"]
["",null,{"$f":"IF('TSA Input'!J245=\"\",\"\",IF(OR('TSA Input'!J245=\"Yes\",'TSA Input'!J245=\"Contingent\"),'TSA Input'!B245,\"Ineligible\"))","v":""},{"$f":"IF('TSA Input'!J245=\"\",\"\",IF(OR('TSA Input'!J245=\"Yes\",'TSA Input'!J245=\"Contingent\"),'TSA Input'!I245,\"\"))","v":""},{"$f":"IF('TSA Input'!J245=\"\",\"\",IF(OR('TSA Input'!J245=\"Yes\",'TSA Input'!J245=\"Contingent\"),'TSA Input'!C245,\"\"))","v":""},{"$f":"IF('TSA Input'!J245=\"\",\"\",IF(OR('TSA Input'!J245=\"Yes\",'TSA Input'!J245=\"Contingent\"),'TSA Input'!D245,\"\"))","v":""},{"$f":"IF('TSA Input'!J245=\"\",\"\",IF(OR('TSA Input'!J245=\"Yes\",'TSA Input'!J245=\"Contingent\"),'TSA Input'!G245,\"\"))","v":""},{"$f":"IF('TSA Input'!J245=\"\",\"\",IF(OR('TSA Input'!J245=\"Yes\",'TSA Input'!J245=\"Contingent\"),'TSA Input'!F245,\"\"))","v":""},"",{"$f":"IF('TSA Input'!J245=\"\",\"\",IF(OR('TSA Input'!J245=\"Yes\",'TSA Input'!J245=\"Contingent\"),'TSA Input'!D245,\"\"))","v":""},{"$f":"IF('TSA Input'!J245=\"\",\"\",IF(OR('TSA Input'!J245=\"Yes\",'TSA Input'!J245=\"Contingent\"),'TSA Input'!G245,\"\"))","v":""},{"$f":"IF('TSA Input'!J245=\"\",\"\",IF(OR('TSA Input'!J245=\"Yes\",'TSA Input'!J245=\"Contingent\"),'TSA Input'!F245,\"\"))","v":""},"","Required","Required"]
["",null,{"$f":"IF('TSA Input'!J246=\"\",\"\",IF(OR('TSA Input'!J246=\"Yes\",'TSA Input'!J246=\"Contingent\"),'TSA Input'!B246,\"Ineligible\"))","v":""},{"$f":"IF('TSA Input'!J246=\"\",\"\",IF(OR('TSA Input'!J246=\"Yes\",'TSA Input'!J246=\"Contingent\"),'TSA Input'!I246,\"\"))","v":""},{"$f":"IF('TSA Input'!J246=\"\",\"\",IF(OR('TSA Input'!J246=\"Yes\",'TSA Input'!J246=\"Contingent\"),'TSA Input'!C246,\"\"))","v":""},{"$f":"IF('TSA Input'!J246=\"\",\"\",IF(OR('TSA Input'!J246=\"Yes\",'TSA Input'!J246=\"Contingent\"),'TSA Input'!D246,\"\"))","v":""},{"$f":"IF('TSA Input'!J246=\"\",\"\",IF(OR('TSA Input'!J246=\"Yes\",'TSA Input'!J246=\"Contingent\"),'TSA Input'!G246,\"\"))","v":""},{"$f":"IF('TSA Input'!J246=\"\",\"\",IF(OR('TSA Input'!J246=\"Yes\",'TSA Input'!J246=\"Contingent\"),'TSA Input'!F246,\"\"))","v":""},"",{"$f":"IF('TSA Input'!J246=\"\",\"\",IF(OR('TSA Input'!J246=\"Yes\",'TSA Input'!J246=\"Contingent\"),'TSA Input'!D246,\"\"))","v":""},{"$f":"IF('TSA Input'!J246=\"\",\"\",IF(OR('TSA Input'!J246=\"Yes\",'TSA Input'!J246=\"Contingent\"),'TSA Input'!G246,\"\"))","v":""},{"$f":"IF('TSA Input'!J246=\"\",\"\",IF(OR('TSA Input'!J246=\"Yes\",'TSA Input'!J246=\"Contingent\"),'TSA Input'!F246,\"\"))","v":""},"","Required","Required"]
["",null,{"$f":"IF('TSA Input'!J247=\"\",\"\",IF(OR('TSA Input'!J247=\"Yes\",'TSA Input'!J247=\"Contingent\"),'TSA Input'!B247,\"Ineligible\"))","v":""},{"$f":"IF('TSA Input'!J247=\"\",\"\",IF(OR('TSA Input'!J247=\"Yes\",'TSA Input'!J247=\"Contingent\"),'TSA Input'!I247,\"\"))","v":""},{"$f":"IF('TSA Input'!J247=\"\",\"\",IF(OR('TSA Input'!J247=\"Yes\",'TSA Input'!J247=\"Contingent\"),'TSA Input'!C247,\"\"))","v":""},{"$f":"IF('TSA Input'!J247=\"\",\"\",IF(OR('TSA Input'!J247=\"Yes\",'TSA Input'!J247=\"Contingent\"),'TSA Input'!D247,\"\"))","v":""},{"$f":"IF('TSA Input'!J247=\"\",\"\",IF(OR('TSA Input'!J247=\"Yes\",'TSA Input'!J247=\"Contingent\"),'TSA Input'!G247,\"\"))","v":""},{"$f":"IF('TSA Input'!J247=\"\",\"\",IF(OR('TSA Input'!J247=\"Yes\",'TSA Input'!J247=\"Contingent\"),'TSA Input'!F247,\"\"))","v":""},"",{"$f":"IF('TSA Input'!J247=\"\",\"\",IF(OR('TSA Input'!J247=\"Yes\",'TSA Input'!J247=\"Contingent\"),'TSA Input'!D247,\"\"))","v":""},{"$f":"IF('TSA Input'!J247=\"\",\"\",IF(OR('TSA Input'!J247=\"Yes\",'TSA Input'!J247=\"Contingent\"),'TSA Input'!G247,\"\"))","v":""},{"$f":"IF('TSA Input'!J247=\"\",\"\",IF(OR('TSA Input'!J247=\"Yes\",'TSA Input'!J247=\"Contingent\"),'TSA Input'!F247,\"\"))","v":""},"","Required","Required"]
["",null,{"$f":"IF('TSA Input'!J248=\"\",\"\",IF(OR('TSA Input'!J248=\"Yes\",'TSA Input'!J248=\"Contingent\"),'TSA Input'!B248,\"Ineligible\"))","v":""},{"$f":"IF('TSA Input'!J248=\"\",\"\",IF(OR('TSA Input'!J248=\"Yes\",'TSA Input'!J248=\"Contingent\"),'TSA Input'!I248,\"\"))","v":""},{"$f":"IF('TSA Input'!J248=\"\",\"\",IF(OR('TSA Input'!J248=\"Yes\",'TSA Input'!J248=\"Contingent\"),'TSA Input'!C248,\"\"))","v":""},{"$f":"IF('TSA Input'!J248=\"\",\"\",IF(OR('TSA Input'!J248=\"Yes\",'TSA Input'!J248=\"Contingent\"),'TSA Input'!D248,\"\"))","v":""},{"$f":"IF('TSA Input'!J248=\"\",\"\",IF(OR('TSA Input'!J248=\"Yes\",'TSA Input'!J248=\"Contingent\"),'TSA Input'!G248,\"\"))","v":""},{"$f":"IF('TSA Input'!J248=\"\",\"\",IF(OR('TSA Input'!J248=\"Yes\",'TSA Input'!J248=\"Contingent\"),'TSA Input'!F248,\"\"))","v":""},"",{"$f":"IF('TSA Input'!J248=\"\",\"\",IF(OR('TSA Input'!J248=\"Yes\",'TSA Input'!J248=\"Contingent\"),'TSA Input'!D248,\"\"))","v":""},{"$f":"IF('TSA Input'!J248=\"\",\"\",IF(OR('TSA Input'!J248=\"Yes\",'TSA Input'!J248=\"Contingent\"),'TSA Input'!G248,\"\"))","v":""},{"$f":"IF('TSA Input'!J248=\"\",\"\",IF(OR('TSA Input'!J248=\"Yes\",'TSA Input'!J248=\"Contingent\"),'TSA Input'!F248,\"\"))","v":""},"","Required","Required"]
["",null,{"$f":"IF('TSA Input'!J249=\"\",\"\",IF(OR('TSA Input'!J249=\"Yes\",'TSA Input'!J249=\"Contingent\"),'TSA Input'!B249,\"Ineligible\"))","v":""},{"$f":"IF('TSA Input'!J249=\"\",\"\",IF(OR('TSA Input'!J249=\"Yes\",'TSA Input'!J249=\"Contingent\"),'TSA Input'!I249,\"\"))","v":""},{"$f":"IF('TSA Input'!J249=\"\",\"\",IF(OR('TSA Input'!J249=\"Yes\",'TSA Input'!J249=\"Contingent\"),'TSA Input'!C249,\"\"))","v":""},{"$f":"IF('TSA Input'!J249=\"\",\"\",IF(OR('TSA Input'!J249=\"Yes\",'TSA Input'!J249=\"Contingent\"),'TSA Input'!D249,\"\"))","v":""},{"$f":"IF('TSA Input'!J249=\"\",\"\",IF(OR('TSA Input'!J249=\"Yes\",'TSA Input'!J249=\"Contingent\"),'TSA Input'!G249,\"\"))","v":""},{"$f":"IF('TSA Input'!J249=\"\",\"\",IF(OR('TSA Input'!J249=\"Yes\",'TSA Input'!J249=\"Contingent\"),'TSA Input'!F249,\"\"))","v":""},"",{"$f":"IF('TSA Input'!J249=\"\",\"\",IF(OR('TSA Input'!J249=\"Yes\",'TSA Input'!J249=\"Contingent\"),'TSA Input'!D249,\"\"))","v":""},{"$f":"IF('TSA Input'!J249=\"\",\"\",IF(OR('TSA Input'!J249=\"Yes\",'TSA Input'!J249=\"Contingent\"),'TSA Input'!G249,\"\"))","v":""},{"$f":"IF('TSA Input'!J249=\"\",\"\",IF(OR('TSA Input'!J249=\"Yes\",'TSA Input'!J249=\"Contingent\"),'TSA Input'!F249,\"\"))","v":""},"","Required","Required"]
["",null,{"$f":"IF('TSA Input'!J250=\"\",\"\",IF(OR('TSA Input'!J250=\"Yes\",'TSA Input'!J250=\"Contingent\"),'TSA Input'!B250,\"Ineligible\"))","v":""},{"$f":"IF('TSA Input'!J250=\"\",\"\",IF(OR('TSA Input'!J250=\"Yes\",'TSA Input'!J250=\"Contingent\"),'TSA Input'!I250,\"\"))","v":""},{"$f":"IF('TSA Input'!J250=\"\",\"\",IF(OR('TSA Input'!J250=\"Yes\",'TSA Input'!J250=\"Contingent\"),'TSA Input'!C250,\"\"))","v":""},{"$f":"IF('TSA Input'!J250=\"\",\"\",IF(OR('TSA Input'!J250=\"Yes\",'TSA Input'!J250=\"Contingent\"),'TSA Input'!D250,\"\"))","v":""},{"$f":"IF('TSA Input'!J250=\"\",\"\",IF(OR('TSA Input'!J250=\"Yes\",'TSA Input'!J250=\"Contingent\"),'TSA Input'!G250,\"\"))","v":""},{"$f":"IF('TSA Input'!J250=\"\",\"\",IF(OR('TSA Input'!J250=\"Yes\",'TSA Input'!J250=\"Contingent\"),'TSA Input'!F250,\"\"))","v":""},"",{"$f":"IF('TSA Input'!J250=\"\",\"\",IF(OR('TSA Input'!J250=\"Yes\",'TSA Input'!J250=\"Contingent\"),'TSA Input'!D250,\"\"))","v":""},{"$f":"IF('TSA Input'!J250=\"\",\"\",IF(OR('TSA Input'!J250=\"Yes\",'TSA Input'!J250=\"Contingent\"),'TSA Input'!G250,\"\"))","v":""},{"$f":"IF('TSA Input'!J250=\"\",\"\",IF(OR('TSA Input'!J250=\"Yes\",'TSA Input'!J250=\"Contingent\"),'TSA Input'!F250,\"\"))","v":""},"","Required","Required"]
["",null,{"$f":"IF('TSA Input'!J251=\"\",\"\",IF(OR('TSA Input'!J251=\"Yes\",'TSA Input'!J251=\"Contingent\"),'TSA Input'!B251,\"Ineligible\"))","v":""},{"$f":"IF('TSA Input'!J251=\"\",\"\",IF(OR('TSA Input'!J251=\"Yes\",'TSA Input'!J251=\"Contingent\"),'TSA Input'!I251,\"\"))","v":""},{"$f":"IF('TSA Input'!J251=\"\",\"\",IF(OR('TSA Input'!J251=\"Yes\",'TSA Input'!J251=\"Contingent\"),'TSA Input'!C251,\"\"))","v":""},{"$f":"IF('TSA Input'!J251=\"\",\"\",IF(OR('TSA Input'!J251=\"Yes\",'TSA Input'!J251=\"Contingent\"),'TSA Input'!D251,\"\"))","v":""},{"$f":"IF('TSA Input'!J251=\"\",\"\",IF(OR('TSA Input'!J251=\"Yes\",'TSA Input'!J251=\"Contingent\"),'TSA Input'!G251,\"\"))","v":""},{"$f":"IF('TSA Input'!J251=\"\",\"\",IF(OR('TSA Input'!J251=\"Yes\",'TSA Input'!J251=\"Contingent\"),'TSA Input'!F251,\"\"))","v":""},"",{"$f":"IF('TSA Input'!J251=\"\",\"\",IF(OR('TSA Input'!J251=\"Yes\",'TSA Input'!J251=\"Contingent\"),'TSA Input'!D251,\"\"))","v":""},{"$f":"IF('TSA Input'!J251=\"\",\"\",IF(OR('TSA Input'!J251=\"Yes\",'TSA Input'!J251=\"Contingent\"),'TSA Input'!G251,\"\"))","v":""},{"$f":"IF('TSA Input'!J251=\"\",\"\",IF(OR('TSA Input'!J251=\"Yes\",'TSA Input'!J251=\"Contingent\"),'TSA Input'!F251,\"\"))","v":""},"","Required","Required"]
["",null,{"$f":"IF('TSA Input'!J252=\"\",\"\",IF(OR('TSA Input'!J252=\"Yes\",'TSA Input'!J252=\"Contingent\"),'TSA Input'!B252,\"Ineligible\"))","v":""},{"$f":"IF('TSA Input'!J252=\"\",\"\",IF(OR('TSA Input'!J252=\"Yes\",'TSA Input'!J252=\"Contingent\"),'TSA Input'!I252,\"\"))","v":""},{"$f":"IF('TSA Input'!J252=\"\",\"\",IF(OR('TSA Input'!J252=\"Yes\",'TSA Input'!J252=\"Contingent\"),'TSA Input'!C252,\"\"))","v":""},{"$f":"IF('TSA Input'!J252=\"\",\"\",IF(OR('TSA Input'!J252=\"Yes\",'TSA Input'!J252=\"Contingent\"),'TSA Input'!D252,\"\"))","v":""},{"$f":"IF('TSA Input'!J252=\"\",\"\",IF(OR('TSA Input'!J252=\"Yes\",'TSA Input'!J252=\"Contingent\"),'TSA Input'!G252,\"\"))","v":""},{"$f":"IF('TSA Input'!J252=\"\",\"\",IF(OR('TSA Input'!J252=\"Yes\",'TSA Input'!J252=\"Contingent\"),'TSA Input'!F252,\"\"))","v":""},"",{"$f":"IF('TSA Input'!J252=\"\",\"\",IF(OR('TSA Input'!J252=\"Yes\",'TSA Input'!J252=\"Contingent\"),'TSA Input'!D252,\"\"))","v":""},{"$f":"IF('TSA Input'!J252=\"\",\"\",IF(OR('TSA Input'!J252=\"Yes\",'TSA Input'!J252=\"Contingent\"),'TSA Input'!G252,\"\"))","v":""},{"$f":"IF('TSA Input'!J252=\"\",\"\",IF(OR('TSA Input'!J252=\"Yes\",'TSA Input'!J252=\"Contingent\"),'TSA Input'!F252,\"\"))","v":""},"","Required","Required"]
["",null,{"$f":"IF('TSA Input'!J253=\"\",\"\",IF(OR('TSA Input'!J253=\"Yes\",'TSA Input'!J253=\"Contingent\"),'TSA Input'!B253,\"Ineligible\"))","v":""},{"$f":"IF('TSA Input'!J253=\"\",\"\",IF(OR('TSA Input'!J253=\"Yes\",'TSA Input'!J253=\"Contingent\"),'TSA Input'!I253,\"\"))","v":""},{"$f":"IF('TSA Input'!J253=\"\",\"\",IF(OR('TSA Input'!J253=\"Yes\",'TSA Input'!J253=\"Contingent\"),'TSA Input'!C253,\"\"))","v":""},{"$f":"IF('TSA Input'!J253=\"\",\"\",IF(OR('TSA Input'!J253=\"Yes\",'TSA Input'!J253=\"Contingent\"),'TSA Input'!D253,\"\"))","v":""},{"$f":"IF('TSA Input'!J253=\"\",\"\",IF(OR('TSA Input'!J253=\"Yes\",'TSA Input'!J253=\"Contingent\"),'TSA Input'!G253,\"\"))","v":""},{"$f":"IF('TSA Input'!J253=\"\",\"\",IF(OR('TSA Input'!J253=\"Yes\",'TSA Input'!J253=\"Contingent\"),'TSA Input'!F253,\"\"))","v":""},"",{"$f":"IF('TSA Input'!J253=\"\",\"\",IF(OR('TSA Input'!J253=\"Yes\",'TSA Input'!J253=\"Contingent\"),'TSA Input'!D253,\"\"))","v":""},{"$f":"IF('TSA Input'!J253=\"\",\"\",IF(OR('TSA Input'!J253=\"Yes\",'TSA Input'!J253=\"Contingent\"),'TSA Input'!G253,\"\"))","v":""},{"$f":"IF('TSA Input'!J253=\"\",\"\",IF(OR('TSA Input'!J253=\"Yes\",'TSA Input'!J253=\"Contingent\"),'TSA Input'!F253,\"\"))","v":""},"","Required","Required"]
["",null,{"$f":"IF('TSA Input'!J254=\"\",\"\",IF(OR('TSA Input'!J254=\"Yes\",'TSA Input'!J254=\"Contingent\"),'TSA Input'!B254,\"Ineligible\"))","v":""},{"$f":"IF('TSA Input'!J254=\"\",\"\",IF(OR('TSA Input'!J254=\"Yes\",'TSA Input'!J254=\"Contingent\"),'TSA Input'!I254,\"\"))","v":""},{"$f":"IF('TSA Input'!J254=\"\",\"\",IF(OR('TSA Input'!J254=\"Yes\",'TSA Input'!J254=\"Contingent\"),'TSA Input'!C254,\"\"))","v":""},{"$f":"IF('TSA Input'!J254=\"\",\"\",IF(OR('TSA Input'!J254=\"Yes\",'TSA Input'!J254=\"Contingent\"),'TSA Input'!D254,\"\"))","v":""},{"$f":"IF('TSA Input'!J254=\"\",\"\",IF(OR('TSA Input'!J254=\"Yes\",'TSA Input'!J254=\"Contingent\"),'TSA Input'!G254,\"\"))","v":""},{"$f":"IF('TSA Input'!J254=\"\",\"\",IF(OR('TSA Input'!J254=\"Yes\",'TSA Input'!J254=\"Contingent\"),'TSA Input'!F254,\"\"))","v":""},"",{"$f":"IF('TSA Input'!J254=\"\",\"\",IF(OR('TSA Input'!J254=\"Yes\",'TSA Input'!J254=\"Contingent\"),'TSA Input'!D254,\"\"))","v":""},{"$f":"IF('TSA Input'!J254=\"\",\"\",IF(OR('TSA Input'!J254=\"Yes\",'TSA Input'!J254=\"Contingent\"),'TSA Input'!G254,\"\"))","v":""},{"$f":"IF('TSA Input'!J254=\"\",\"\",IF(OR('TSA Input'!J254=\"Yes\",'TSA Input'!J254=\"Contingent\"),'TSA Input'!F254,\"\"))","v":""},"","Required","Required"]
["",null,{"$f":"IF('TSA Input'!J255=\"\",\"\",IF(OR('TSA Input'!J255=\"Yes\",'TSA Input'!J255=\"Contingent\"),'TSA Input'!B255,\"Ineligible\"))","v":""},{"$f":"IF('TSA Input'!J255=\"\",\"\",IF(OR('TSA Input'!J255=\"Yes\",'TSA Input'!J255=\"Contingent\"),'TSA Input'!I255,\"\"))","v":""},{"$f":"IF('TSA Input'!J255=\"\",\"\",IF(OR('TSA Input'!J255=\"Yes\",'TSA Input'!J255=\"Contingent\"),'TSA Input'!C255,\"\"))","v":""},{"$f":"IF('TSA Input'!J255=\"\",\"\",IF(OR('TSA Input'!J255=\"Yes\",'TSA Input'!J255=\"Contingent\"),'TSA Input'!D255,\"\"))","v":""},{"$f":"IF('TSA Input'!J255=\"\",\"\",IF(OR('TSA Input'!J255=\"Yes\",'TSA Input'!J255=\"Contingent\"),'TSA Input'!G255,\"\"))","v":""},{"$f":"IF('TSA Input'!J255=\"\",\"\",IF(OR('TSA Input'!J255=\"Yes\",'TSA Input'!J255=\"Contingent\"),'TSA Input'!F255,\"\"))","v":""},"",{"$f":"IF('TSA Input'!J255=\"\",\"\",IF(OR('TSA Input'!J255=\"Yes\",'TSA Input'!J255=\"Contingent\"),'TSA Input'!D255,\"\"))","v":""},{"$f":"IF('TSA Input'!J255=\"\",\"\",IF(OR('TSA Input'!J255=\"Yes\",'TSA Input'!J255=\"Contingent\"),'TSA Input'!G255,\"\"))","v":""},{"$f":"IF('TSA Input'!J255=\"\",\"\",IF(OR('TSA Input'!J255=\"Yes\",'TSA Input'!J255=\"Contingent\"),'TSA Input'!F255,\"\"))","v":""},"","Required","Required"]
["",null,{"$f":"IF('TSA Input'!J256=\"\",\"\",IF(OR('TSA Input'!J256=\"Yes\",'TSA Input'!J256=\"Contingent\"),'TSA Input'!B256,\"Ineligible\"))","v":""},{"$f":"IF('TSA Input'!J256=\"\",\"\",IF(OR('TSA Input'!J256=\"Yes\",'TSA Input'!J256=\"Contingent\"),'TSA Input'!I256,\"\"))","v":""},{"$f":"IF('TSA Input'!J256=\"\",\"\",IF(OR('TSA Input'!J256=\"Yes\",'TSA Input'!J256=\"Contingent\"),'TSA Input'!C256,\"\"))","v":""},{"$f":"IF('TSA Input'!J256=\"\",\"\",IF(OR('TSA Input'!J256=\"Yes\",'TSA Input'!J256=\"Contingent\"),'TSA Input'!D256,\"\"))","v":""},{"$f":"IF('TSA Input'!J256=\"\",\"\",IF(OR('TSA Input'!J256=\"Yes\",'TSA Input'!J256=\"Contingent\"),'TSA Input'!G256,\"\"))","v":""},{"$f":"IF('TSA Input'!J256=\"\",\"\",IF(OR('TSA Input'!J256=\"Yes\",'TSA Input'!J256=\"Contingent\"),'TSA Input'!F256,\"\"))","v":""},"",{"$f":"IF('TSA Input'!J256=\"\",\"\",IF(OR('TSA Input'!J256=\"Yes\",'TSA Input'!J256=\"Contingent\"),'TSA Input'!D256,\"\"))","v":""},{"$f":"IF('TSA Input'!J256=\"\",\"\",IF(OR('TSA Input'!J256=\"Yes\",'TSA Input'!J256=\"Contingent\"),'TSA Input'!G256,\"\"))","v":""},{"$f":"IF('TSA Input'!J256=\"\",\"\",IF(OR('TSA Input'!J256=\"Yes\",'TSA Input'!J256=\"Contingent\"),'TSA Input'!F256,\"\"))","v":""},"","Required","Required"]
["",null,{"$f":"IF('TSA Input'!J257=\"\",\"\",IF(OR('TSA Input'!J257=\"Yes\",'TSA Input'!J257=\"Contingent\"),'TSA Input'!B257,\"Ineligible\"))","v":""},{"$f":"IF('TSA Input'!J257=\"\",\"\",IF(OR('TSA Input'!J257=\"Yes\",'TSA Input'!J257=\"Contingent\"),'TSA Input'!I257,\"\"))","v":""},{"$f":"IF('TSA Input'!J257=\"\",\"\",IF(OR('TSA Input'!J257=\"Yes\",'TSA Input'!J257=\"Contingent\"),'TSA Input'!C257,\"\"))","v":""},{"$f":"IF('TSA Input'!J257=\"\",\"\",IF(OR('TSA Input'!J257=\"Yes\",'TSA Input'!J257=\"Contingent\"),'TSA Input'!D257,\"\"))","v":""},{"$f":"IF('TSA Input'!J257=\"\",\"\",IF(OR('TSA Input'!J257=\"Yes\",'TSA Input'!J257=\"Contingent\"),'TSA Input'!G257,\"\"))","v":""},{"$f":"IF('TSA Input'!J257=\"\",\"\",IF(OR('TSA Input'!J257=\"Yes\",'TSA Input'!J257=\"Contingent\"),'TSA Input'!F257,\"\"))","v":""},"",{"$f":"IF('TSA Input'!J257=\"\",\"\",IF(OR('TSA Input'!J257=\"Yes\",'TSA Input'!J257=\"Contingent\"),'TSA Input'!D257,\"\"))","v":""},{"$f":"IF('TSA Input'!J257=\"\",\"\",IF(OR('TSA Input'!J257=\"Yes\",'TSA Input'!J257=\"Contingent\"),'TSA Input'!G257,\"\"))","v":""},{"$f":"IF('TSA Input'!J257=\"\",\"\",IF(OR('TSA Input'!J257=\"Yes\",'TSA Input'!J257=\"Contingent\"),'TSA Input'!F257,\"\"))","v":""},"","Required","Required"]
["",null,{"$f":"IF('TSA Input'!J258=\"\",\"\",IF(OR('TSA Input'!J258=\"Yes\",'TSA Input'!J258=\"Contingent\"),'TSA Input'!B258,\"Ineligible\"))","v":""},{"$f":"IF('TSA Input'!J258=\"\",\"\",IF(OR('TSA Input'!J258=\"Yes\",'TSA Input'!J258=\"Contingent\"),'TSA Input'!I258,\"\"))","v":""},{"$f":"IF('TSA Input'!J258=\"\",\"\",IF(OR('TSA Input'!J258=\"Yes\",'TSA Input'!J258=\"Contingent\"),'TSA Input'!C258,\"\"))","v":""},{"$f":"IF('TSA Input'!J258=\"\",\"\",IF(OR('TSA Input'!J258=\"Yes\",'TSA Input'!J258=\"Contingent\"),'TSA Input'!D258,\"\"))","v":""},{"$f":"IF('TSA Input'!J258=\"\",\"\",IF(OR('TSA Input'!J258=\"Yes\",'TSA Input'!J258=\"Contingent\"),'TSA Input'!G258,\"\"))","v":""},{"$f":"IF('TSA Input'!J258=\"\",\"\",IF(OR('TSA Input'!J258=\"Yes\",'TSA Input'!J258=\"Contingent\"),'TSA Input'!F258,\"\"))","v":""},"",{"$f":"IF('TSA Input'!J258=\"\",\"\",IF(OR('TSA Input'!J258=\"Yes\",'TSA Input'!J258=\"Contingent\"),'TSA Input'!D258,\"\"))","v":""},{"$f":"IF('TSA Input'!J258=\"\",\"\",IF(OR('TSA Input'!J258=\"Yes\",'TSA Input'!J258=\"Contingent\"),'TSA Input'!G258,\"\"))","v":""},{"$f":"IF('TSA Input'!J258=\"\",\"\",IF(OR('TSA Input'!J258=\"Yes\",'TSA Input'!J258=\"Contingent\"),'TSA Input'!F258,\"\"))","v":""},"","Required","Required"]
["",null,{"$f":"IF('TSA Input'!J259=\"\",\"\",IF(OR('TSA Input'!J259=\"Yes\",'TSA Input'!J259=\"Contingent\"),'TSA Input'!B259,\"Ineligible\"))","v":""},{"$f":"IF('TSA Input'!J259=\"\",\"\",IF(OR('TSA Input'!J259=\"Yes\",'TSA Input'!J259=\"Contingent\"),'TSA Input'!I259,\"\"))","v":""},{"$f":"IF('TSA Input'!J259=\"\",\"\",IF(OR('TSA Input'!J259=\"Yes\",'TSA Input'!J259=\"Contingent\"),'TSA Input'!C259,\"\"))","v":""},{"$f":"IF('TSA Input'!J259=\"\",\"\",IF(OR('TSA Input'!J259=\"Yes\",'TSA Input'!J259=\"Contingent\"),'TSA Input'!D259,\"\"))","v":""},{"$f":"IF('TSA Input'!J259=\"\",\"\",IF(OR('TSA Input'!J259=\"Yes\",'TSA Input'!J259=\"Contingent\"),'TSA Input'!G259,\"\"))","v":""},{"$f":"IF('TSA Input'!J259=\"\",\"\",IF(OR('TSA Input'!J259=\"Yes\",'TSA Input'!J259=\"Contingent\"),'TSA Input'!F259,\"\"))","v":""},"",{"$f":"IF('TSA Input'!J259=\"\",\"\",IF(OR('TSA Input'!J259=\"Yes\",'TSA Input'!J259=\"Contingent\"),'TSA Input'!D259,\"\"))","v":""},{"$f":"IF('TSA Input'!J259=\"\",\"\",IF(OR('TSA Input'!J259=\"Yes\",'TSA Input'!J259=\"Contingent\"),'TSA Input'!G259,\"\"))","v":""},{"$f":"IF('TSA Input'!J259=\"\",\"\",IF(OR('TSA Input'!J259=\"Yes\",'TSA Input'!J259=\"Contingent\"),'TSA Input'!F259,\"\"))","v":""},"","Required","Required"]
["",null,{"$f":"IF('TSA Input'!J260=\"\",\"\",IF(OR('TSA Input'!J260=\"Yes\",'TSA Input'!J260=\"Contingent\"),'TSA Input'!B260,\"Ineligible\"))","v":""},{"$f":"IF('TSA Input'!J260=\"\",\"\",IF(OR('TSA Input'!J260=\"Yes\",'TSA Input'!J260=\"Contingent\"),'TSA Input'!I260,\"\"))","v":""},{"$f":"IF('TSA Input'!J260=\"\",\"\",IF(OR('TSA Input'!J260=\"Yes\",'TSA Input'!J260=\"Contingent\"),'TSA Input'!C260,\"\"))","v":""},{"$f":"IF('TSA Input'!J260=\"\",\"\",IF(OR('TSA Input'!J260=\"Yes\",'TSA Input'!J260=\"Contingent\"),'TSA Input'!D260,\"\"))","v":""},{"$f":"IF('TSA Input'!J260=\"\",\"\",IF(OR('TSA Input'!J260=\"Yes\",'TSA Input'!J260=\"Contingent\"),'TSA Input'!G260,\"\"))","v":""},{"$f":"IF('TSA Input'!J260=\"\",\"\",IF(OR('TSA Input'!J260=\"Yes\",'TSA Input'!J260=\"Contingent\"),'TSA Input'!F260,\"\"))","v":""},{"$f":"IF($C298=\"\",\"\",SUM(F298:H298))","v":""},{"$f":"IF('TSA Input'!J260=\"\",\"\",IF(OR('TSA Input'!J260=\"Yes\",'TSA Input'!J260=\"Contingent\"),'TSA Input'!D260,\"\"))","v":""},{"$f":"IF('TSA Input'!J260=\"\",\"\",IF(OR('TSA Input'!J260=\"Yes\",'TSA Input'!J260=\"Contingent\"),'TSA Input'!G260,\"\"))","v":""},{"$f":"IF('TSA Input'!J260=\"\",\"\",IF(OR('TSA Input'!J260=\"Yes\",'TSA Input'!J260=\"Contingent\"),'TSA Input'!F260,\"\"))","v":""},{"$f":"IF($C298=\"\",\"\",SUM(J298:L298))","v":""},"Required","Required"]
["",null,{"$f":"IF('TSA Input'!J261=\"\",\"\",IF(OR('TSA Input'!J261=\"Yes\",'TSA Input'!J261=\"Contingent\"),'TSA Input'!B261,\"Ineligible\"))","v":""},{"$f":"IF('TSA Input'!J261=\"\",\"\",IF(OR('TSA Input'!J261=\"Yes\",'TSA Input'!J261=\"Contingent\"),'TSA Input'!I261,\"\"))","v":""},{"$f":"IF('TSA Input'!J261=\"\",\"\",IF(OR('TSA Input'!J261=\"Yes\",'TSA Input'!J261=\"Contingent\"),'TSA Input'!C261,\"\"))","v":""},{"$f":"IF('TSA Input'!J261=\"\",\"\",IF(OR('TSA Input'!J261=\"Yes\",'TSA Input'!J261=\"Contingent\"),'TSA Input'!D261,\"\"))","v":""},{"$f":"IF('TSA Input'!J261=\"\",\"\",IF(OR('TSA Input'!J261=\"Yes\",'TSA Input'!J261=\"Contingent\"),'TSA Input'!G261,\"\"))","v":""},{"$f":"IF('TSA Input'!J261=\"\",\"\",IF(OR('TSA Input'!J261=\"Yes\",'TSA Input'!J261=\"Contingent\"),'TSA Input'!F261,\"\"))","v":""},"",{"$f":"IF('TSA Input'!J261=\"\",\"\",IF(OR('TSA Input'!J261=\"Yes\",'TSA Input'!J261=\"Contingent\"),'TSA Input'!D261,\"\"))","v":""},{"$f":"IF('TSA Input'!J261=\"\",\"\",IF(OR('TSA Input'!J261=\"Yes\",'TSA Input'!J261=\"Contingent\"),'TSA Input'!G261,\"\"))","v":""},{"$f":"IF('TSA Input'!J261=\"\",\"\",IF(OR('TSA Input'!J261=\"Yes\",'TSA Input'!J261=\"Contingent\"),'TSA Input'!F261,\"\"))","v":""},"","Required","Required"]
["",null,{"$f":"IF('TSA Input'!J262=\"\",\"\",IF(OR('TSA Input'!J262=\"Yes\",'TSA Input'!J262=\"Contingent\"),'TSA Input'!B262,\"Ineligible\"))","v":""},{"$f":"IF('TSA Input'!J262=\"\",\"\",IF(OR('TSA Input'!J262=\"Yes\",'TSA Input'!J262=\"Contingent\"),'TSA Input'!I262,\"\"))","v":""},{"$f":"IF('TSA Input'!J262=\"\",\"\",IF(OR('TSA Input'!J262=\"Yes\",'TSA Input'!J262=\"Contingent\"),'TSA Input'!C262,\"\"))","v":""},{"$f":"IF('TSA Input'!J262=\"\",\"\",IF(OR('TSA Input'!J262=\"Yes\",'TSA Input'!J262=\"Contingent\"),'TSA Input'!D262,\"\"))","v":""},{"$f":"IF('TSA Input'!J262=\"\",\"\",IF(OR('TSA Input'!J262=\"Yes\",'TSA Input'!J262=\"Contingent\"),'TSA Input'!G262,\"\"))","v":""},{"$f":"IF('TSA Input'!J262=\"\",\"\",IF(OR('TSA Input'!J262=\"Yes\",'TSA Input'!J262=\"Contingent\"),'TSA Input'!F262,\"\"))","v":""},"",{"$f":"IF('TSA Input'!J262=\"\",\"\",IF(OR('TSA Input'!J262=\"Yes\",'TSA Input'!J262=\"Contingent\"),'TSA Input'!D262,\"\"))","v":""},{"$f":"IF('TSA Input'!J262=\"\",\"\",IF(OR('TSA Input'!J262=\"Yes\",'TSA Input'!J262=\"Contingent\"),'TSA Input'!G262,\"\"))","v":""},{"$f":"IF('TSA Input'!J262=\"\",\"\",IF(OR('TSA Input'!J262=\"Yes\",'TSA Input'!J262=\"Contingent\"),'TSA Input'!F262,\"\"))","v":""},"","Required","Required"]
["",null,{"$f":"IF('TSA Input'!J263=\"\",\"\",IF(OR('TSA Input'!J263=\"Yes\",'TSA Input'!J263=\"Contingent\"),'TSA Input'!B263,\"Ineligible\"))","v":""},{"$f":"IF('TSA Input'!J263=\"\",\"\",IF(OR('TSA Input'!J263=\"Yes\",'TSA Input'!J263=\"Contingent\"),'TSA Input'!I263,\"\"))","v":""},{"$f":"IF('TSA Input'!J263=\"\",\"\",IF(OR('TSA Input'!J263=\"Yes\",'TSA Input'!J263=\"Contingent\"),'TSA Input'!C263,\"\"))","v":""},{"$f":"IF('TSA Input'!J263=\"\",\"\",IF(OR('TSA Input'!J263=\"Yes\",'TSA Input'!J263=\"Contingent\"),'TSA Input'!D263,\"\"))","v":""},{"$f":"IF('TSA Input'!J263=\"\",\"\",IF(OR('TSA Input'!J263=\"Yes\",'TSA Input'!J263=\"Contingent\"),'TSA Input'!G263,\"\"))","v":""},{"$f":"IF('TSA Input'!J263=\"\",\"\",IF(OR('TSA Input'!J263=\"Yes\",'TSA Input'!J263=\"Contingent\"),'TSA Input'!F263,\"\"))","v":""},"",{"$f":"IF('TSA Input'!J263=\"\",\"\",IF(OR('TSA Input'!J263=\"Yes\",'TSA Input'!J263=\"Contingent\"),'TSA Input'!D263,\"\"))","v":""},{"$f":"IF('TSA Input'!J263=\"\",\"\",IF(OR('TSA Input'!J263=\"Yes\",'TSA Input'!J263=\"Contingent\"),'TSA Input'!G263,\"\"))","v":""},{"$f":"IF('TSA Input'!J263=\"\",\"\",IF(OR('TSA Input'!J263=\"Yes\",'TSA Input'!J263=\"Contingent\"),'TSA Input'!F263,\"\"))","v":""},"","Required","Required"]
["",null,{"$f":"IF('TSA Input'!J264=\"\",\"\",IF(OR('TSA Input'!J264=\"Yes\",'TSA Input'!J264=\"Contingent\"),'TSA Input'!B264,\"Ineligible\"))","v":""},{"$f":"IF('TSA Input'!J264=\"\",\"\",IF(OR('TSA Input'!J264=\"Yes\",'TSA Input'!J264=\"Contingent\"),'TSA Input'!I264,\"\"))","v":""},{"$f":"IF('TSA Input'!J264=\"\",\"\",IF(OR('TSA Input'!J264=\"Yes\",'TSA Input'!J264=\"Contingent\"),'TSA Input'!C264,\"\"))","v":""},{"$f":"IF('TSA Input'!J264=\"\",\"\",IF(OR('TSA Input'!J264=\"Yes\",'TSA Input'!J264=\"Contingent\"),'TSA Input'!D264,\"\"))","v":""},{"$f":"IF('TSA Input'!J264=\"\",\"\",IF(OR('TSA Input'!J264=\"Yes\",'TSA Input'!J264=\"Contingent\"),'TSA Input'!G264,\"\"))","v":""},{"$f":"IF('TSA Input'!J264=\"\",\"\",IF(OR('TSA Input'!J264=\"Yes\",'TSA Input'!J264=\"Contingent\"),'TSA Input'!F264,\"\"))","v":""},"",{"$f":"IF('TSA Input'!J264=\"\",\"\",IF(OR('TSA Input'!J264=\"Yes\",'TSA Input'!J264=\"Contingent\"),'TSA Input'!D264,\"\"))","v":""},{"$f":"IF('TSA Input'!J264=\"\",\"\",IF(OR('TSA Input'!J264=\"Yes\",'TSA Input'!J264=\"Contingent\"),'TSA Input'!G264,\"\"))","v":""},{"$f":"IF('TSA Input'!J264=\"\",\"\",IF(OR('TSA Input'!J264=\"Yes\",'TSA Input'!J264=\"Contingent\"),'TSA Input'!F264,\"\"))","v":""},"","Required","Required"]
["",null,{"$f":"IF('TSA Input'!J265=\"\",\"\",IF(OR('TSA Input'!J265=\"Yes\",'TSA Input'!J265=\"Contingent\"),'TSA Input'!B265,\"Ineligible\"))","v":""},{"$f":"IF('TSA Input'!J265=\"\",\"\",IF(OR('TSA Input'!J265=\"Yes\",'TSA Input'!J265=\"Contingent\"),'TSA Input'!I265,\"\"))","v":""},{"$f":"IF('TSA Input'!J265=\"\",\"\",IF(OR('TSA Input'!J265=\"Yes\",'TSA Input'!J265=\"Contingent\"),'TSA Input'!C265,\"\"))","v":""},{"$f":"IF('TSA Input'!J265=\"\",\"\",IF(OR('TSA Input'!J265=\"Yes\",'TSA Input'!J265=\"Contingent\"),'TSA Input'!D265,\"\"))","v":""},{"$f":"IF('TSA Input'!J265=\"\",\"\",IF(OR('TSA Input'!J265=\"Yes\",'TSA Input'!J265=\"Contingent\"),'TSA Input'!G265,\"\"))","v":""},{"$f":"IF('TSA Input'!J265=\"\",\"\",IF(OR('TSA Input'!J265=\"Yes\",'TSA Input'!J265=\"Contingent\"),'TSA Input'!F265,\"\"))","v":""},"",{"$f":"IF('TSA Input'!J265=\"\",\"\",IF(OR('TSA Input'!J265=\"Yes\",'TSA Input'!J265=\"Contingent\"),'TSA Input'!D265,\"\"))","v":""},{"$f":"IF('TSA Input'!J265=\"\",\"\",IF(OR('TSA Input'!J265=\"Yes\",'TSA Input'!J265=\"Contingent\"),'TSA Input'!G265,\"\"))","v":""},{"$f":"IF('TSA Input'!J265=\"\",\"\",IF(OR('TSA Input'!J265=\"Yes\",'TSA Input'!J265=\"Contingent\"),'TSA Input'!F265,\"\"))","v":""},"","Required","Required"]
["",null,{"$f":"IF('TSA Input'!J266=\"\",\"\",IF(OR('TSA Input'!J266=\"Yes\",'TSA Input'!J266=\"Contingent\"),'TSA Input'!B266,\"Ineligible\"))","v":""},{"$f":"IF('TSA Input'!J266=\"\",\"\",IF(OR('TSA Input'!J266=\"Yes\",'TSA Input'!J266=\"Contingent\"),'TSA Input'!I266,\"\"))","v":""},{"$f":"IF('TSA Input'!J266=\"\",\"\",IF(OR('TSA Input'!J266=\"Yes\",'TSA Input'!J266=\"Contingent\"),'TSA Input'!C266,\"\"))","v":""},{"$f":"IF('TSA Input'!J266=\"\",\"\",IF(OR('TSA Input'!J266=\"Yes\",'TSA Input'!J266=\"Contingent\"),'TSA Input'!D266,\"\"))","v":""},{"$f":"IF('TSA Input'!J266=\"\",\"\",IF(OR('TSA Input'!J266=\"Yes\",'TSA Input'!J266=\"Contingent\"),'TSA Input'!G266,\"\"))","v":""},{"$f":"IF('TSA Input'!J266=\"\",\"\",IF(OR('TSA Input'!J266=\"Yes\",'TSA Input'!J266=\"Contingent\"),'TSA Input'!F266,\"\"))","v":""},"",{"$f":"IF('TSA Input'!J266=\"\",\"\",IF(OR('TSA Input'!J266=\"Yes\",'TSA Input'!J266=\"Contingent\"),'TSA Input'!D266,\"\"))","v":""},{"$f":"IF('TSA Input'!J266=\"\",\"\",IF(OR('TSA Input'!J266=\"Yes\",'TSA Input'!J266=\"Contingent\"),'TSA Input'!G266,\"\"))","v":""},{"$f":"IF('TSA Input'!J266=\"\",\"\",IF(OR('TSA Input'!J266=\"Yes\",'TSA Input'!J266=\"Contingent\"),'TSA Input'!F266,\"\"))","v":""},"","Required","Required"]
["",null,{"$f":"IF('TSA Input'!J267=\"\",\"\",IF(OR('TSA Input'!J267=\"Yes\",'TSA Input'!J267=\"Contingent\"),'TSA Input'!B267,\"Ineligible\"))","v":""},{"$f":"IF('TSA Input'!J267=\"\",\"\",IF(OR('TSA Input'!J267=\"Yes\",'TSA Input'!J267=\"Contingent\"),'TSA Input'!I267,\"\"))","v":""},{"$f":"IF('TSA Input'!J267=\"\",\"\",IF(OR('TSA Input'!J267=\"Yes\",'TSA Input'!J267=\"Contingent\"),'TSA Input'!C267,\"\"))","v":""},{"$f":"IF('TSA Input'!J267=\"\",\"\",IF(OR('TSA Input'!J267=\"Yes\",'TSA Input'!J267=\"Contingent\"),'TSA Input'!D267,\"\"))","v":""},{"$f":"IF('TSA Input'!J267=\"\",\"\",IF(OR('TSA Input'!J267=\"Yes\",'TSA Input'!J267=\"Contingent\"),'TSA Input'!G267,\"\"))","v":""},{"$f":"IF('TSA Input'!J267=\"\",\"\",IF(OR('TSA Input'!J267=\"Yes\",'TSA Input'!J267=\"Contingent\"),'TSA Input'!F267,\"\"))","v":""},"",{"$f":"IF('TSA Input'!J267=\"\",\"\",IF(OR('TSA Input'!J267=\"Yes\",'TSA Input'!J267=\"Contingent\"),'TSA Input'!D267,\"\"))","v":""},{"$f":"IF('TSA Input'!J267=\"\",\"\",IF(OR('TSA Input'!J267=\"Yes\",'TSA Input'!J267=\"Contingent\"),'TSA Input'!G267,\"\"))","v":""},{"$f":"IF('TSA Input'!J267=\"\",\"\",IF(OR('TSA Input'!J267=\"Yes\",'TSA Input'!J267=\"Contingent\"),'TSA Input'!F267,\"\"))","v":""},"","Required","Required"]
["",null,{"$f":"IF('TSA Input'!J268=\"\",\"\",IF(OR('TSA Input'!J268=\"Yes\",'TSA Input'!J268=\"Contingent\"),'TSA Input'!B268,\"Ineligible\"))","v":""},{"$f":"IF('TSA Input'!J268=\"\",\"\",IF(OR('TSA Input'!J268=\"Yes\",'TSA Input'!J268=\"Contingent\"),'TSA Input'!I268,\"\"))","v":""},{"$f":"IF('TSA Input'!J268=\"\",\"\",IF(OR('TSA Input'!J268=\"Yes\",'TSA Input'!J268=\"Contingent\"),'TSA Input'!C268,\"\"))","v":""},{"$f":"IF('TSA Input'!J268=\"\",\"\",IF(OR('TSA Input'!J268=\"Yes\",'TSA Input'!J268=\"Contingent\"),'TSA Input'!D268,\"\"))","v":""},{"$f":"IF('TSA Input'!J268=\"\",\"\",IF(OR('TSA Input'!J268=\"Yes\",'TSA Input'!J268=\"Contingent\"),'TSA Input'!G268,\"\"))","v":""},{"$f":"IF('TSA Input'!J268=\"\",\"\",IF(OR('TSA Input'!J268=\"Yes\",'TSA Input'!J268=\"Contingent\"),'TSA Input'!F268,\"\"))","v":""},"",{"$f":"IF('TSA Input'!J268=\"\",\"\",IF(OR('TSA Input'!J268=\"Yes\",'TSA Input'!J268=\"Contingent\"),'TSA Input'!D268,\"\"))","v":""},{"$f":"IF('TSA Input'!J268=\"\",\"\",IF(OR('TSA Input'!J268=\"Yes\",'TSA Input'!J268=\"Contingent\"),'TSA Input'!G268,\"\"))","v":""},{"$f":"IF('TSA Input'!J268=\"\",\"\",IF(OR('TSA Input'!J268=\"Yes\",'TSA Input'!J268=\"Contingent\"),'TSA Input'!F268,\"\"))","v":""},"","Required","Required"]
["",null,{"$f":"IF('TSA Input'!J269=\"\",\"\",IF(OR('TSA Input'!J269=\"Yes\",'TSA Input'!J269=\"Contingent\"),'TSA Input'!B269,\"Ineligible\"))","v":""},{"$f":"IF('TSA Input'!J269=\"\",\"\",IF(OR('TSA Input'!J269=\"Yes\",'TSA Input'!J269=\"Contingent\"),'TSA Input'!I269,\"\"))","v":""},{"$f":"IF('TSA Input'!J269=\"\",\"\",IF(OR('TSA Input'!J269=\"Yes\",'TSA Input'!J269=\"Contingent\"),'TSA Input'!C269,\"\"))","v":""},{"$f":"IF('TSA Input'!J269=\"\",\"\",IF(OR('TSA Input'!J269=\"Yes\",'TSA Input'!J269=\"Contingent\"),'TSA Input'!D269,\"\"))","v":""},{"$f":"IF('TSA Input'!J269=\"\",\"\",IF(OR('TSA Input'!J269=\"Yes\",'TSA Input'!J269=\"Contingent\"),'TSA Input'!G269,\"\"))","v":""},{"$f":"IF('TSA Input'!J269=\"\",\"\",IF(OR('TSA Input'!J269=\"Yes\",'TSA Input'!J269=\"Contingent\"),'TSA Input'!F269,\"\"))","v":""},"",{"$f":"IF('TSA Input'!J269=\"\",\"\",IF(OR('TSA Input'!J269=\"Yes\",'TSA Input'!J269=\"Contingent\"),'TSA Input'!D269,\"\"))","v":""},{"$f":"IF('TSA Input'!J269=\"\",\"\",IF(OR('TSA Input'!J269=\"Yes\",'TSA Input'!J269=\"Contingent\"),'TSA Input'!G269,\"\"))","v":""},{"$f":"IF('TSA Input'!J269=\"\",\"\",IF(OR('TSA Input'!J269=\"Yes\",'TSA Input'!J269=\"Contingent\"),'TSA Input'!F269,\"\"))","v":""},"","Required","Required"]
["",null,{"$f":"IF('TSA Input'!J270=\"\",\"\",IF(OR('TSA Input'!J270=\"Yes\",'TSA Input'!J270=\"Contingent\"),'TSA Input'!B270,\"Ineligible\"))","v":""},{"$f":"IF('TSA Input'!J270=\"\",\"\",IF(OR('TSA Input'!J270=\"Yes\",'TSA Input'!J270=\"Contingent\"),'TSA Input'!I270,\"\"))","v":""},{"$f":"IF('TSA Input'!J270=\"\",\"\",IF(OR('TSA Input'!J270=\"Yes\",'TSA Input'!J270=\"Contingent\"),'TSA Input'!C270,\"\"))","v":""},{"$f":"IF('TSA Input'!J270=\"\",\"\",IF(OR('TSA Input'!J270=\"Yes\",'TSA Input'!J270=\"Contingent\"),'TSA Input'!D270,\"\"))","v":""},{"$f":"IF('TSA Input'!J270=\"\",\"\",IF(OR('TSA Input'!J270=\"Yes\",'TSA Input'!J270=\"Contingent\"),'TSA Input'!G270,\"\"))","v":""},{"$f":"IF('TSA Input'!J270=\"\",\"\",IF(OR('TSA Input'!J270=\"Yes\",'TSA Input'!J270=\"Contingent\"),'TSA Input'!F270,\"\"))","v":""},"",{"$f":"IF('TSA Input'!J270=\"\",\"\",IF(OR('TSA Input'!J270=\"Yes\",'TSA Input'!J270=\"Contingent\"),'TSA Input'!D270,\"\"))","v":""},{"$f":"IF('TSA Input'!J270=\"\",\"\",IF(OR('TSA Input'!J270=\"Yes\",'TSA Input'!J270=\"Contingent\"),'TSA Input'!G270,\"\"))","v":""},{"$f":"IF('TSA Input'!J270=\"\",\"\",IF(OR('TSA Input'!J270=\"Yes\",'TSA Input'!J270=\"Contingent\"),'TSA Input'!F270,\"\"))","v":""},"","Required","Required"]
["",null,{"$f":"IF('TSA Input'!J271=\"\",\"\",IF(OR('TSA Input'!J271=\"Yes\",'TSA Input'!J271=\"Contingent\"),'TSA Input'!B271,\"Ineligible\"))","v":""},{"$f":"IF('TSA Input'!J271=\"\",\"\",IF(OR('TSA Input'!J271=\"Yes\",'TSA Input'!J271=\"Contingent\"),'TSA Input'!I271,\"\"))","v":""},{"$f":"IF('TSA Input'!J271=\"\",\"\",IF(OR('TSA Input'!J271=\"Yes\",'TSA Input'!J271=\"Contingent\"),'TSA Input'!C271,\"\"))","v":""},{"$f":"IF('TSA Input'!J271=\"\",\"\",IF(OR('TSA Input'!J271=\"Yes\",'TSA Input'!J271=\"Contingent\"),'TSA Input'!D271,\"\"))","v":""},{"$f":"IF('TSA Input'!J271=\"\",\"\",IF(OR('TSA Input'!J271=\"Yes\",'TSA Input'!J271=\"Contingent\"),'TSA Input'!G271,\"\"))","v":""},{"$f":"IF('TSA Input'!J271=\"\",\"\",IF(OR('TSA Input'!J271=\"Yes\",'TSA Input'!J271=\"Contingent\"),'TSA Input'!F271,\"\"))","v":""},"",{"$f":"IF('TSA Input'!J271=\"\",\"\",IF(OR('TSA Input'!J271=\"Yes\",'TSA Input'!J271=\"Contingent\"),'TSA Input'!D271,\"\"))","v":""},{"$f":"IF('TSA Input'!J271=\"\",\"\",IF(OR('TSA Input'!J271=\"Yes\",'TSA Input'!J271=\"Contingent\"),'TSA Input'!G271,\"\"))","v":""},{"$f":"IF('TSA Input'!J271=\"\",\"\",IF(OR('TSA Input'!J271=\"Yes\",'TSA Input'!J271=\"Contingent\"),'TSA Input'!F271,\"\"))","v":""},"","Required","Required"]
["",null,{"$f":"IF('TSA Input'!J272=\"\",\"\",IF(OR('TSA Input'!J272=\"Yes\",'TSA Input'!J272=\"Contingent\"),'TSA Input'!B272,\"Ineligible\"))","v":""},{"$f":"IF('TSA Input'!J272=\"\",\"\",IF(OR('TSA Input'!J272=\"Yes\",'TSA Input'!J272=\"Contingent\"),'TSA Input'!I272,\"\"))","v":""},{"$f":"IF('TSA Input'!J272=\"\",\"\",IF(OR('TSA Input'!J272=\"Yes\",'TSA Input'!J272=\"Contingent\"),'TSA Input'!C272,\"\"))","v":""},{"$f":"IF('TSA Input'!J272=\"\",\"\",IF(OR('TSA Input'!J272=\"Yes\",'TSA Input'!J272=\"Contingent\"),'TSA Input'!D272,\"\"))","v":""},{"$f":"IF('TSA Input'!J272=\"\",\"\",IF(OR('TSA Input'!J272=\"Yes\",'TSA Input'!J272=\"Contingent\"),'TSA Input'!G272,\"\"))","v":""},{"$f":"IF('TSA Input'!J272=\"\",\"\",IF(OR('TSA Input'!J272=\"Yes\",'TSA Input'!J272=\"Contingent\"),'TSA Input'!F272,\"\"))","v":""},"",{"$f":"IF('TSA Input'!J272=\"\",\"\",IF(OR('TSA Input'!J272=\"Yes\",'TSA Input'!J272=\"Contingent\"),'TSA Input'!D272,\"\"))","v":""},{"$f":"IF('TSA Input'!J272=\"\",\"\",IF(OR('TSA Input'!J272=\"Yes\",'TSA Input'!J272=\"Contingent\"),'TSA Input'!G272,\"\"))","v":""},{"$f":"IF('TSA Input'!J272=\"\",\"\",IF(OR('TSA Input'!J272=\"Yes\",'TSA Input'!J272=\"Contingent\"),'TSA Input'!F272,\"\"))","v":""},"","Required","Required"]
["",null,{"$f":"IF('TSA Input'!J273=\"\",\"\",IF(OR('TSA Input'!J273=\"Yes\",'TSA Input'!J273=\"Contingent\"),'TSA Input'!B273,\"Ineligible\"))","v":""},{"$f":"IF('TSA Input'!J273=\"\",\"\",IF(OR('TSA Input'!J273=\"Yes\",'TSA Input'!J273=\"Contingent\"),'TSA Input'!I273,\"\"))","v":""},{"$f":"IF('TSA Input'!J273=\"\",\"\",IF(OR('TSA Input'!J273=\"Yes\",'TSA Input'!J273=\"Contingent\"),'TSA Input'!C273,\"\"))","v":""},{"$f":"IF('TSA Input'!J273=\"\",\"\",IF(OR('TSA Input'!J273=\"Yes\",'TSA Input'!J273=\"Contingent\"),'TSA Input'!D273,\"\"))","v":""},{"$f":"IF('TSA Input'!J273=\"\",\"\",IF(OR('TSA Input'!J273=\"Yes\",'TSA Input'!J273=\"Contingent\"),'TSA Input'!G273,\"\"))","v":""},{"$f":"IF('TSA Input'!J273=\"\",\"\",IF(OR('TSA Input'!J273=\"Yes\",'TSA Input'!J273=\"Contingent\"),'TSA Input'!F273,\"\"))","v":""},"",{"$f":"IF('TSA Input'!J273=\"\",\"\",IF(OR('TSA Input'!J273=\"Yes\",'TSA Input'!J273=\"Contingent\"),'TSA Input'!D273,\"\"))","v":""},{"$f":"IF('TSA Input'!J273=\"\",\"\",IF(OR('TSA Input'!J273=\"Yes\",'TSA Input'!J273=\"Contingent\"),'TSA Input'!G273,\"\"))","v":""},{"$f":"IF('TSA Input'!J273=\"\",\"\",IF(OR('TSA Input'!J273=\"Yes\",'TSA Input'!J273=\"Contingent\"),'TSA Input'!F273,\"\"))","v":""},"","Required","Required"]
["",null,{"$f":"IF('TSA Input'!J274=\"\",\"\",IF(OR('TSA Input'!J274=\"Yes\",'TSA Input'!J274=\"Contingent\"),'TSA Input'!B274,\"Ineligible\"))","v":""},{"$f":"IF('TSA Input'!J274=\"\",\"\",IF(OR('TSA Input'!J274=\"Yes\",'TSA Input'!J274=\"Contingent\"),'TSA Input'!I274,\"\"))","v":""},{"$f":"IF('TSA Input'!J274=\"\",\"\",IF(OR('TSA Input'!J274=\"Yes\",'TSA Input'!J274=\"Contingent\"),'TSA Input'!C274,\"\"))","v":""},{"$f":"IF('TSA Input'!J274=\"\",\"\",IF(OR('TSA Input'!J274=\"Yes\",'TSA Input'!J274=\"Contingent\"),'TSA Input'!D274,\"\"))","v":""},{"$f":"IF('TSA Input'!J274=\"\",\"\",IF(OR('TSA Input'!J274=\"Yes\",'TSA Input'!J274=\"Contingent\"),'TSA Input'!G274,\"\"))","v":""},{"$f":"IF('TSA Input'!J274=\"\",\"\",IF(OR('TSA Input'!J274=\"Yes\",'TSA Input'!J274=\"Contingent\"),'TSA Input'!F274,\"\"))","v":""},"",{"$f":"IF('TSA Input'!J274=\"\",\"\",IF(OR('TSA Input'!J274=\"Yes\",'TSA Input'!J274=\"Contingent\"),'TSA Input'!D274,\"\"))","v":""},{"$f":"IF('TSA Input'!J274=\"\",\"\",IF(OR('TSA Input'!J274=\"Yes\",'TSA Input'!J274=\"Contingent\"),'TSA Input'!G274,\"\"))","v":""},{"$f":"IF('TSA Input'!J274=\"\",\"\",IF(OR('TSA Input'!J274=\"Yes\",'TSA Input'!J274=\"Contingent\"),'TSA Input'!F274,\"\"))","v":""},"","Required","Required"]
["",null,{"$f":"IF('TSA Input'!J275=\"\",\"\",IF(OR('TSA Input'!J275=\"Yes\",'TSA Input'!J275=\"Contingent\"),'TSA Input'!B275,\"Ineligible\"))","v":""},{"$f":"IF('TSA Input'!J275=\"\",\"\",IF(OR('TSA Input'!J275=\"Yes\",'TSA Input'!J275=\"Contingent\"),'TSA Input'!I275,\"\"))","v":""},{"$f":"IF('TSA Input'!J275=\"\",\"\",IF(OR('TSA Input'!J275=\"Yes\",'TSA Input'!J275=\"Contingent\"),'TSA Input'!C275,\"\"))","v":""},{"$f":"IF('TSA Input'!J275=\"\",\"\",IF(OR('TSA Input'!J275=\"Yes\",'TSA Input'!J275=\"Contingent\"),'TSA Input'!D275,\"\"))","v":""},{"$f":"IF('TSA Input'!J275=\"\",\"\",IF(OR('TSA Input'!J275=\"Yes\",'TSA Input'!J275=\"Contingent\"),'TSA Input'!G275,\"\"))","v":""},{"$f":"IF('TSA Input'!J275=\"\",\"\",IF(OR('TSA Input'!J275=\"Yes\",'TSA Input'!J275=\"Contingent\"),'TSA Input'!F275,\"\"))","v":""},"",{"$f":"IF('TSA Input'!J275=\"\",\"\",IF(OR('TSA Input'!J275=\"Yes\",'TSA Input'!J275=\"Contingent\"),'TSA Input'!D275,\"\"))","v":""},{"$f":"IF('TSA Input'!J275=\"\",\"\",IF(OR('TSA Input'!J275=\"Yes\",'TSA Input'!J275=\"Contingent\"),'TSA Input'!G275,\"\"))","v":""},{"$f":"IF('TSA Input'!J275=\"\",\"\",IF(OR('TSA Input'!J275=\"Yes\",'TSA Input'!J275=\"Contingent\"),'TSA Input'!F275,\"\"))","v":""},"","Required","Required"]
["",null,{"$f":"IF('TSA Input'!J276=\"\",\"\",IF(OR('TSA Input'!J276=\"Yes\",'TSA Input'!J276=\"Contingent\"),'TSA Input'!B276,\"Ineligible\"))","v":""},{"$f":"IF('TSA Input'!J276=\"\",\"\",IF(OR('TSA Input'!J276=\"Yes\",'TSA Input'!J276=\"Contingent\"),'TSA Input'!I276,\"\"))","v":""},{"$f":"IF('TSA Input'!J276=\"\",\"\",IF(OR('TSA Input'!J276=\"Yes\",'TSA Input'!J276=\"Contingent\"),'TSA Input'!C276,\"\"))","v":""},{"$f":"IF('TSA Input'!J276=\"\",\"\",IF(OR('TSA Input'!J276=\"Yes\",'TSA Input'!J276=\"Contingent\"),'TSA Input'!D276,\"\"))","v":""},{"$f":"IF('TSA Input'!J276=\"\",\"\",IF(OR('TSA Input'!J276=\"Yes\",'TSA Input'!J276=\"Contingent\"),'TSA Input'!G276,\"\"))","v":""},{"$f":"IF('TSA Input'!J276=\"\",\"\",IF(OR('TSA Input'!J276=\"Yes\",'TSA Input'!J276=\"Contingent\"),'TSA Input'!F276,\"\"))","v":""},"",{"$f":"IF('TSA Input'!J276=\"\",\"\",IF(OR('TSA Input'!J276=\"Yes\",'TSA Input'!J276=\"Contingent\"),'TSA Input'!D276,\"\"))","v":""},{"$f":"IF('TSA Input'!J276=\"\",\"\",IF(OR('TSA Input'!J276=\"Yes\",'TSA Input'!J276=\"Contingent\"),'TSA Input'!G276,\"\"))","v":""},{"$f":"IF('TSA Input'!J276=\"\",\"\",IF(OR('TSA Input'!J276=\"Yes\",'TSA Input'!J276=\"Contingent\"),'TSA Input'!F276,\"\"))","v":""},"","Required","Required"]
["",null,{"$f":"IF('TSA Input'!J277=\"\",\"\",IF(OR('TSA Input'!J277=\"Yes\",'TSA Input'!J277=\"Contingent\"),'TSA Input'!B277,\"Ineligible\"))","v":""},{"$f":"IF('TSA Input'!J277=\"\",\"\",IF(OR('TSA Input'!J277=\"Yes\",'TSA Input'!J277=\"Contingent\"),'TSA Input'!I277,\"\"))","v":""},{"$f":"IF('TSA Input'!J277=\"\",\"\",IF(OR('TSA Input'!J277=\"Yes\",'TSA Input'!J277=\"Contingent\"),'TSA Input'!C277,\"\"))","v":""},{"$f":"IF('TSA Input'!J277=\"\",\"\",IF(OR('TSA Input'!J277=\"Yes\",'TSA Input'!J277=\"Contingent\"),'TSA Input'!D277,\"\"))","v":""},{"$f":"IF('TSA Input'!J277=\"\",\"\",IF(OR('TSA Input'!J277=\"Yes\",'TSA Input'!J277=\"Contingent\"),'TSA Input'!G277,\"\"))","v":""},{"$f":"IF('TSA Input'!J277=\"\",\"\",IF(OR('TSA Input'!J277=\"Yes\",'TSA Input'!J277=\"Contingent\"),'TSA Input'!F277,\"\"))","v":""},"",{"$f":"IF('TSA Input'!J277=\"\",\"\",IF(OR('TSA Input'!J277=\"Yes\",'TSA Input'!J277=\"Contingent\"),'TSA Input'!D277,\"\"))","v":""},{"$f":"IF('TSA Input'!J277=\"\",\"\",IF(OR('TSA Input'!J277=\"Yes\",'TSA Input'!J277=\"Contingent\"),'TSA Input'!G277,\"\"))","v":""},{"$f":"IF('TSA Input'!J277=\"\",\"\",IF(OR('TSA Input'!J277=\"Yes\",'TSA Input'!J277=\"Contingent\"),'TSA Input'!F277,\"\"))","v":""},"","Required","Required"]
["",null,{"$f":"IF('TSA Input'!J278=\"\",\"\",IF(OR('TSA Input'!J278=\"Yes\",'TSA Input'!J278=\"Contingent\"),'TSA Input'!B278,\"Ineligible\"))","v":""},{"$f":"IF('TSA Input'!J278=\"\",\"\",IF(OR('TSA Input'!J278=\"Yes\",'TSA Input'!J278=\"Contingent\"),'TSA Input'!I278,\"\"))","v":""},{"$f":"IF('TSA Input'!J278=\"\",\"\",IF(OR('TSA Input'!J278=\"Yes\",'TSA Input'!J278=\"Contingent\"),'TSA Input'!C278,\"\"))","v":""},{"$f":"IF('TSA Input'!J278=\"\",\"\",IF(OR('TSA Input'!J278=\"Yes\",'TSA Input'!J278=\"Contingent\"),'TSA Input'!D278,\"\"))","v":""},{"$f":"IF('TSA Input'!J278=\"\",\"\",IF(OR('TSA Input'!J278=\"Yes\",'TSA Input'!J278=\"Contingent\"),'TSA Input'!G278,\"\"))","v":""},{"$f":"IF('TSA Input'!J278=\"\",\"\",IF(OR('TSA Input'!J278=\"Yes\",'TSA Input'!J278=\"Contingent\"),'TSA Input'!F278,\"\"))","v":""},"",{"$f":"IF('TSA Input'!J278=\"\",\"\",IF(OR('TSA Input'!J278=\"Yes\",'TSA Input'!J278=\"Contingent\"),'TSA Input'!D278,\"\"))","v":""},{"$f":"IF('TSA Input'!J278=\"\",\"\",IF(OR('TSA Input'!J278=\"Yes\",'TSA Input'!J278=\"Contingent\"),'TSA Input'!G278,\"\"))","v":""},{"$f":"IF('TSA Input'!J278=\"\",\"\",IF(OR('TSA Input'!J278=\"Yes\",'TSA Input'!J278=\"Contingent\"),'TSA Input'!F278,\"\"))","v":""},"","Required","Required"]
["",null,{"$f":"IF('TSA Input'!J279=\"\",\"\",IF(OR('TSA Input'!J279=\"Yes\",'TSA Input'!J279=\"Contingent\"),'TSA Input'!B279,\"Ineligible\"))","v":""},{"$f":"IF('TSA Input'!J279=\"\",\"\",IF(OR('TSA Input'!J279=\"Yes\",'TSA Input'!J279=\"Contingent\"),'TSA Input'!I279,\"\"))","v":""},{"$f":"IF('TSA Input'!J279=\"\",\"\",IF(OR('TSA Input'!J279=\"Yes\",'TSA Input'!J279=\"Contingent\"),'TSA Input'!C279,\"\"))","v":""},{"$f":"IF('TSA Input'!J279=\"\",\"\",IF(OR('TSA Input'!J279=\"Yes\",'TSA Input'!J279=\"Contingent\"),'TSA Input'!D279,\"\"))","v":""},{"$f":"IF('TSA Input'!J279=\"\",\"\",IF(OR('TSA Input'!J279=\"Yes\",'TSA Input'!J279=\"Contingent\"),'TSA Input'!G279,\"\"))","v":""},{"$f":"IF('TSA Input'!J279=\"\",\"\",IF(OR('TSA Input'!J279=\"Yes\",'TSA Input'!J279=\"Contingent\"),'TSA Input'!F279,\"\"))","v":""},"",{"$f":"IF('TSA Input'!J279=\"\",\"\",IF(OR('TSA Input'!J279=\"Yes\",'TSA Input'!J279=\"Contingent\"),'TSA Input'!D279,\"\"))","v":""},{"$f":"IF('TSA Input'!J279=\"\",\"\",IF(OR('TSA Input'!J279=\"Yes\",'TSA Input'!J279=\"Contingent\"),'TSA Input'!G279,\"\"))","v":""},{"$f":"IF('TSA Input'!J279=\"\",\"\",IF(OR('TSA Input'!J279=\"Yes\",'TSA Input'!J279=\"Contingent\"),'TSA Input'!F279,\"\"))","v":""},"","Required","Required"]
["",null,{"$f":"IF('TSA Input'!J280=\"\",\"\",IF(OR('TSA Input'!J280=\"Yes\",'TSA Input'!J280=\"Contingent\"),'TSA Input'!B280,\"Ineligible\"))","v":""},{"$f":"IF('TSA Input'!J280=\"\",\"\",IF(OR('TSA Input'!J280=\"Yes\",'TSA Input'!J280=\"Contingent\"),'TSA Input'!I280,\"\"))","v":""},{"$f":"IF('TSA Input'!J280=\"\",\"\",IF(OR('TSA Input'!J280=\"Yes\",'TSA Input'!J280=\"Contingent\"),'TSA Input'!C280,\"\"))","v":""},{"$f":"IF('TSA Input'!J280=\"\",\"\",IF(OR('TSA Input'!J280=\"Yes\",'TSA Input'!J280=\"Contingent\"),'TSA Input'!D280,\"\"))","v":""},{"$f":"IF('TSA Input'!J280=\"\",\"\",IF(OR('TSA Input'!J280=\"Yes\",'TSA Input'!J280=\"Contingent\"),'TSA Input'!G280,\"\"))","v":""},{"$f":"IF('TSA Input'!J280=\"\",\"\",IF(OR('TSA Input'!J280=\"Yes\",'TSA Input'!J280=\"Contingent\"),'TSA Input'!F280,\"\"))","v":""},"",{"$f":"IF('TSA Input'!J280=\"\",\"\",IF(OR('TSA Input'!J280=\"Yes\",'TSA Input'!J280=\"Contingent\"),'TSA Input'!D280,\"\"))","v":""},{"$f":"IF('TSA Input'!J280=\"\",\"\",IF(OR('TSA Input'!J280=\"Yes\",'TSA Input'!J280=\"Contingent\"),'TSA Input'!G280,\"\"))","v":""},{"$f":"IF('TSA Input'!J280=\"\",\"\",IF(OR('TSA Input'!J280=\"Yes\",'TSA Input'!J280=\"Contingent\"),'TSA Input'!F280,\"\"))","v":""},"","Required","Required"]
["",null,{"$f":"IF('TSA Input'!J281=\"\",\"\",IF(OR('TSA Input'!J281=\"Yes\",'TSA Input'!J281=\"Contingent\"),'TSA Input'!B281,\"Ineligible\"))","v":""},{"$f":"IF('TSA Input'!J281=\"\",\"\",IF(OR('TSA Input'!J281=\"Yes\",'TSA Input'!J281=\"Contingent\"),'TSA Input'!I281,\"\"))","v":""},{"$f":"IF('TSA Input'!J281=\"\",\"\",IF(OR('TSA Input'!J281=\"Yes\",'TSA Input'!J281=\"Contingent\"),'TSA Input'!C281,\"\"))","v":""},{"$f":"IF('TSA Input'!J281=\"\",\"\",IF(OR('TSA Input'!J281=\"Yes\",'TSA Input'!J281=\"Contingent\"),'TSA Input'!D281,\"\"))","v":""},{"$f":"IF('TSA Input'!J281=\"\",\"\",IF(OR('TSA Input'!J281=\"Yes\",'TSA Input'!J281=\"Contingent\"),'TSA Input'!G281,\"\"))","v":""},{"$f":"IF('TSA Input'!J281=\"\",\"\",IF(OR('TSA Input'!J281=\"Yes\",'TSA Input'!J281=\"Contingent\"),'TSA Input'!F281,\"\"))","v":""},"",{"$f":"IF('TSA Input'!J281=\"\",\"\",IF(OR('TSA Input'!J281=\"Yes\",'TSA Input'!J281=\"Contingent\"),'TSA Input'!D281,\"\"))","v":""},{"$f":"IF('TSA Input'!J281=\"\",\"\",IF(OR('TSA Input'!J281=\"Yes\",'TSA Input'!J281=\"Contingent\"),'TSA Input'!G281,\"\"))","v":""},{"$f":"IF('TSA Input'!J281=\"\",\"\",IF(OR('TSA Input'!J281=\"Yes\",'TSA Input'!J281=\"Contingent\"),'TSA Input'!F281,\"\"))","v":""},"","Required","Required"]
["",null,{"$f":"IF('TSA Input'!J282=\"\",\"\",IF(OR('TSA Input'!J282=\"Yes\",'TSA Input'!J282=\"Contingent\"),'TSA Input'!B282,\"Ineligible\"))","v":""},{"$f":"IF('TSA Input'!J282=\"\",\"\",IF(OR('TSA Input'!J282=\"Yes\",'TSA Input'!J282=\"Contingent\"),'TSA Input'!I282,\"\"))","v":""},{"$f":"IF('TSA Input'!J282=\"\",\"\",IF(OR('TSA Input'!J282=\"Yes\",'TSA Input'!J282=\"Contingent\"),'TSA Input'!C282,\"\"))","v":""},{"$f":"IF('TSA Input'!J282=\"\",\"\",IF(OR('TSA Input'!J282=\"Yes\",'TSA Input'!J282=\"Contingent\"),'TSA Input'!D282,\"\"))","v":""},{"$f":"IF('TSA Input'!J282=\"\",\"\",IF(OR('TSA Input'!J282=\"Yes\",'TSA Input'!J282=\"Contingent\"),'TSA Input'!G282,\"\"))","v":""},{"$f":"IF('TSA Input'!J282=\"\",\"\",IF(OR('TSA Input'!J282=\"Yes\",'TSA Input'!J282=\"Contingent\"),'TSA Input'!F282,\"\"))","v":""},"",{"$f":"IF('TSA Input'!J282=\"\",\"\",IF(OR('TSA Input'!J282=\"Yes\",'TSA Input'!J282=\"Contingent\"),'TSA Input'!D282,\"\"))","v":""},{"$f":"IF('TSA Input'!J282=\"\",\"\",IF(OR('TSA Input'!J282=\"Yes\",'TSA Input'!J282=\"Contingent\"),'TSA Input'!G282,\"\"))","v":""},{"$f":"IF('TSA Input'!J282=\"\",\"\",IF(OR('TSA Input'!J282=\"Yes\",'TSA Input'!J282=\"Contingent\"),'TSA Input'!F282,\"\"))","v":""},"","Required","Required"]
["",null,{"$f":"IF('TSA Input'!J283=\"\",\"\",IF(OR('TSA Input'!J283=\"Yes\",'TSA Input'!J283=\"Contingent\"),'TSA Input'!B283,\"Ineligible\"))","v":""},{"$f":"IF('TSA Input'!J283=\"\",\"\",IF(OR('TSA Input'!J283=\"Yes\",'TSA Input'!J283=\"Contingent\"),'TSA Input'!I283,\"\"))","v":""},{"$f":"IF('TSA Input'!J283=\"\",\"\",IF(OR('TSA Input'!J283=\"Yes\",'TSA Input'!J283=\"Contingent\"),'TSA Input'!C283,\"\"))","v":""},{"$f":"IF('TSA Input'!J283=\"\",\"\",IF(OR('TSA Input'!J283=\"Yes\",'TSA Input'!J283=\"Contingent\"),'TSA Input'!D283,\"\"))","v":""},{"$f":"IF('TSA Input'!J283=\"\",\"\",IF(OR('TSA Input'!J283=\"Yes\",'TSA Input'!J283=\"Contingent\"),'TSA Input'!G283,\"\"))","v":""},{"$f":"IF('TSA Input'!J283=\"\",\"\",IF(OR('TSA Input'!J283=\"Yes\",'TSA Input'!J283=\"Contingent\"),'TSA Input'!F283,\"\"))","v":""},"",{"$f":"IF('TSA Input'!J283=\"\",\"\",IF(OR('TSA Input'!J283=\"Yes\",'TSA Input'!J283=\"Contingent\"),'TSA Input'!D283,\"\"))","v":""},{"$f":"IF('TSA Input'!J283=\"\",\"\",IF(OR('TSA Input'!J283=\"Yes\",'TSA Input'!J283=\"Contingent\"),'TSA Input'!G283,\"\"))","v":""},{"$f":"IF('TSA Input'!J283=\"\",\"\",IF(OR('TSA Input'!J283=\"Yes\",'TSA Input'!J283=\"Contingent\"),'TSA Input'!F283,\"\"))","v":""},"","Required","Required"]
["",null,{"$f":"IF('TSA Input'!J284=\"\",\"\",IF(OR('TSA Input'!J284=\"Yes\",'TSA Input'!J284=\"Contingent\"),'TSA Input'!B284,\"Ineligible\"))","v":""},{"$f":"IF('TSA Input'!J284=\"\",\"\",IF(OR('TSA Input'!J284=\"Yes\",'TSA Input'!J284=\"Contingent\"),'TSA Input'!I284,\"\"))","v":""},{"$f":"IF('TSA Input'!J284=\"\",\"\",IF(OR('TSA Input'!J284=\"Yes\",'TSA Input'!J284=\"Contingent\"),'TSA Input'!C284,\"\"))","v":""},{"$f":"IF('TSA Input'!J284=\"\",\"\",IF(OR('TSA Input'!J284=\"Yes\",'TSA Input'!J284=\"Contingent\"),'TSA Input'!D284,\"\"))","v":""},{"$f":"IF('TSA Input'!J284=\"\",\"\",IF(OR('TSA Input'!J284=\"Yes\",'TSA Input'!J284=\"Contingent\"),'TSA Input'!G284,\"\"))","v":""},{"$f":"IF('TSA Input'!J284=\"\",\"\",IF(OR('TSA Input'!J284=\"Yes\",'TSA Input'!J284=\"Contingent\"),'TSA Input'!F284,\"\"))","v":""},"",{"$f":"IF('TSA Input'!J284=\"\",\"\",IF(OR('TSA Input'!J284=\"Yes\",'TSA Input'!J284=\"Contingent\"),'TSA Input'!D284,\"\"))","v":""},{"$f":"IF('TSA Input'!J284=\"\",\"\",IF(OR('TSA Input'!J284=\"Yes\",'TSA Input'!J284=\"Contingent\"),'TSA Input'!G284,\"\"))","v":""},{"$f":"IF('TSA Input'!J284=\"\",\"\",IF(OR('TSA Input'!J284=\"Yes\",'TSA Input'!J284=\"Contingent\"),'TSA Input'!F284,\"\"))","v":""},"","Required","Required"]
["",null,{"$f":"IF('TSA Input'!J285=\"\",\"\",IF(OR('TSA Input'!J285=\"Yes\",'TSA Input'!J285=\"Contingent\"),'TSA Input'!B285,\"Ineligible\"))","v":""},{"$f":"IF('TSA Input'!J285=\"\",\"\",IF(OR('TSA Input'!J285=\"Yes\",'TSA Input'!J285=\"Contingent\"),'TSA Input'!I285,\"\"))","v":""},{"$f":"IF('TSA Input'!J285=\"\",\"\",IF(OR('TSA Input'!J285=\"Yes\",'TSA Input'!J285=\"Contingent\"),'TSA Input'!C285,\"\"))","v":""},{"$f":"IF('TSA Input'!J285=\"\",\"\",IF(OR('TSA Input'!J285=\"Yes\",'TSA Input'!J285=\"Contingent\"),'TSA Input'!D285,\"\"))","v":""},{"$f":"IF('TSA Input'!J285=\"\",\"\",IF(OR('TSA Input'!J285=\"Yes\",'TSA Input'!J285=\"Contingent\"),'TSA Input'!G285,\"\"))","v":""},{"$f":"IF('TSA Input'!J285=\"\",\"\",IF(OR('TSA Input'!J285=\"Yes\",'TSA Input'!J285=\"Contingent\"),'TSA Input'!F285,\"\"))","v":""},"",{"$f":"IF('TSA Input'!J285=\"\",\"\",IF(OR('TSA Input'!J285=\"Yes\",'TSA Input'!J285=\"Contingent\"),'TSA Input'!D285,\"\"))","v":""},{"$f":"IF('TSA Input'!J285=\"\",\"\",IF(OR('TSA Input'!J285=\"Yes\",'TSA Input'!J285=\"Contingent\"),'TSA Input'!G285,\"\"))","v":""},{"$f":"IF('TSA Input'!J285=\"\",\"\",IF(OR('TSA Input'!J285=\"Yes\",'TSA Input'!J285=\"Contingent\"),'TSA Input'!F285,\"\"))","v":""},"","Required","Required"]
["",null,{"$f":"IF('TSA Input'!J286=\"\",\"\",IF(OR('TSA Input'!J286=\"Yes\",'TSA Input'!J286=\"Contingent\"),'TSA Input'!B286,\"Ineligible\"))","v":""},{"$f":"IF('TSA Input'!J286=\"\",\"\",IF(OR('TSA Input'!J286=\"Yes\",'TSA Input'!J286=\"Contingent\"),'TSA Input'!I286,\"\"))","v":""},{"$f":"IF('TSA Input'!J286=\"\",\"\",IF(OR('TSA Input'!J286=\"Yes\",'TSA Input'!J286=\"Contingent\"),'TSA Input'!C286,\"\"))","v":""},{"$f":"IF('TSA Input'!J286=\"\",\"\",IF(OR('TSA Input'!J286=\"Yes\",'TSA Input'!J286=\"Contingent\"),'TSA Input'!D286,\"\"))","v":""},{"$f":"IF('TSA Input'!J286=\"\",\"\",IF(OR('TSA Input'!J286=\"Yes\",'TSA Input'!J286=\"Contingent\"),'TSA Input'!G286,\"\"))","v":""},{"$f":"IF('TSA Input'!J286=\"\",\"\",IF(OR('TSA Input'!J286=\"Yes\",'TSA Input'!J286=\"Contingent\"),'TSA Input'!F286,\"\"))","v":""},"",{"$f":"IF('TSA Input'!J286=\"\",\"\",IF(OR('TSA Input'!J286=\"Yes\",'TSA Input'!J286=\"Contingent\"),'TSA Input'!D286,\"\"))","v":""},{"$f":"IF('TSA Input'!J286=\"\",\"\",IF(OR('TSA Input'!J286=\"Yes\",'TSA Input'!J286=\"Contingent\"),'TSA Input'!G286,\"\"))","v":""},{"$f":"IF('TSA Input'!J286=\"\",\"\",IF(OR('TSA Input'!J286=\"Yes\",'TSA Input'!J286=\"Contingent\"),'TSA Input'!F286,\"\"))","v":""},"","Required","Required"]
["",null,{"$f":"IF('TSA Input'!J287=\"\",\"\",IF(OR('TSA Input'!J287=\"Yes\",'TSA Input'!J287=\"Contingent\"),'TSA Input'!B287,\"Ineligible\"))","v":""},{"$f":"IF('TSA Input'!J287=\"\",\"\",IF(OR('TSA Input'!J287=\"Yes\",'TSA Input'!J287=\"Contingent\"),'TSA Input'!I287,\"\"))","v":""},{"$f":"IF('TSA Input'!J287=\"\",\"\",IF(OR('TSA Input'!J287=\"Yes\",'TSA Input'!J287=\"Contingent\"),'TSA Input'!C287,\"\"))","v":""},{"$f":"IF('TSA Input'!J287=\"\",\"\",IF(OR('TSA Input'!J287=\"Yes\",'TSA Input'!J287=\"Contingent\"),'TSA Input'!D287,\"\"))","v":""},{"$f":"IF('TSA Input'!J287=\"\",\"\",IF(OR('TSA Input'!J287=\"Yes\",'TSA Input'!J287=\"Contingent\"),'TSA Input'!G287,\"\"))","v":""},{"$f":"IF('TSA Input'!J287=\"\",\"\",IF(OR('TSA Input'!J287=\"Yes\",'TSA Input'!J287=\"Contingent\"),'TSA Input'!F287,\"\"))","v":""},"",{"$f":"IF('TSA Input'!J287=\"\",\"\",IF(OR('TSA Input'!J287=\"Yes\",'TSA Input'!J287=\"Contingent\"),'TSA Input'!D287,\"\"))","v":""},{"$f":"IF('TSA Input'!J287=\"\",\"\",IF(OR('TSA Input'!J287=\"Yes\",'TSA Input'!J287=\"Contingent\"),'TSA Input'!G287,\"\"))","v":""},{"$f":"IF('TSA Input'!J287=\"\",\"\",IF(OR('TSA Input'!J287=\"Yes\",'TSA Input'!J287=\"Contingent\"),'TSA Input'!F287,\"\"))","v":""},"","Required","Required"]
["",null,{"$f":"IF('TSA Input'!J288=\"\",\"\",IF(OR('TSA Input'!J288=\"Yes\",'TSA Input'!J288=\"Contingent\"),'TSA Input'!B288,\"Ineligible\"))","v":""},{"$f":"IF('TSA Input'!J288=\"\",\"\",IF(OR('TSA Input'!J288=\"Yes\",'TSA Input'!J288=\"Contingent\"),'TSA Input'!I288,\"\"))","v":""},{"$f":"IF('TSA Input'!J288=\"\",\"\",IF(OR('TSA Input'!J288=\"Yes\",'TSA Input'!J288=\"Contingent\"),'TSA Input'!C288,\"\"))","v":""},{"$f":"IF('TSA Input'!J288=\"\",\"\",IF(OR('TSA Input'!J288=\"Yes\",'TSA Input'!J288=\"Contingent\"),'TSA Input'!D288,\"\"))","v":""},{"$f":"IF('TSA Input'!J288=\"\",\"\",IF(OR('TSA Input'!J288=\"Yes\",'TSA Input'!J288=\"Contingent\"),'TSA Input'!G288,\"\"))","v":""},{"$f":"IF('TSA Input'!J288=\"\",\"\",IF(OR('TSA Input'!J288=\"Yes\",'TSA Input'!J288=\"Contingent\"),'TSA Input'!F288,\"\"))","v":""},"",{"$f":"IF('TSA Input'!J288=\"\",\"\",IF(OR('TSA Input'!J288=\"Yes\",'TSA Input'!J288=\"Contingent\"),'TSA Input'!D288,\"\"))","v":""},{"$f":"IF('TSA Input'!J288=\"\",\"\",IF(OR('TSA Input'!J288=\"Yes\",'TSA Input'!J288=\"Contingent\"),'TSA Input'!G288,\"\"))","v":""},{"$f":"IF('TSA Input'!J288=\"\",\"\",IF(OR('TSA Input'!J288=\"Yes\",'TSA Input'!J288=\"Contingent\"),'TSA Input'!F288,\"\"))","v":""},"","Required","Required"]
["",null,{"$f":"IF('TSA Input'!J289=\"\",\"\",IF(OR('TSA Input'!J289=\"Yes\",'TSA Input'!J289=\"Contingent\"),'TSA Input'!B289,\"Ineligible\"))","v":""},{"$f":"IF('TSA Input'!J289=\"\",\"\",IF(OR('TSA Input'!J289=\"Yes\",'TSA Input'!J289=\"Contingent\"),'TSA Input'!I289,\"\"))","v":""},{"$f":"IF('TSA Input'!J289=\"\",\"\",IF(OR('TSA Input'!J289=\"Yes\",'TSA Input'!J289=\"Contingent\"),'TSA Input'!C289,\"\"))","v":""},{"$f":"IF('TSA Input'!J289=\"\",\"\",IF(OR('TSA Input'!J289=\"Yes\",'TSA Input'!J289=\"Contingent\"),'TSA Input'!D289,\"\"))","v":""},{"$f":"IF('TSA Input'!J289=\"\",\"\",IF(OR('TSA Input'!J289=\"Yes\",'TSA Input'!J289=\"Contingent\"),'TSA Input'!G289,\"\"))","v":""},{"$f":"IF('TSA Input'!J289=\"\",\"\",IF(OR('TSA Input'!J289=\"Yes\",'TSA Input'!J289=\"Contingent\"),'TSA Input'!F289,\"\"))","v":""},"",{"$f":"IF('TSA Input'!J289=\"\",\"\",IF(OR('TSA Input'!J289=\"Yes\",'TSA Input'!J289=\"Contingent\"),'TSA Input'!D289,\"\"))","v":""},{"$f":"IF('TSA Input'!J289=\"\",\"\",IF(OR('TSA Input'!J289=\"Yes\",'TSA Input'!J289=\"Contingent\"),'TSA Input'!G289,\"\"))","v":""},{"$f":"IF('TSA Input'!J289=\"\",\"\",IF(OR('TSA Input'!J289=\"Yes\",'TSA Input'!J289=\"Contingent\"),'TSA Input'!F289,\"\"))","v":""},"","Required","Required"]
["",null,{"$f":"IF('TSA Input'!J290=\"\",\"\",IF(OR('TSA Input'!J290=\"Yes\",'TSA Input'!J290=\"Contingent\"),'TSA Input'!B290,\"Ineligible\"))","v":""},{"$f":"IF('TSA Input'!J290=\"\",\"\",IF(OR('TSA Input'!J290=\"Yes\",'TSA Input'!J290=\"Contingent\"),'TSA Input'!I290,\"\"))","v":""},{"$f":"IF('TSA Input'!J290=\"\",\"\",IF(OR('TSA Input'!J290=\"Yes\",'TSA Input'!J290=\"Contingent\"),'TSA Input'!C290,\"\"))","v":""},{"$f":"IF('TSA Input'!J290=\"\",\"\",IF(OR('TSA Input'!J290=\"Yes\",'TSA Input'!J290=\"Contingent\"),'TSA Input'!D290,\"\"))","v":""},{"$f":"IF('TSA Input'!J290=\"\",\"\",IF(OR('TSA Input'!J290=\"Yes\",'TSA Input'!J290=\"Contingent\"),'TSA Input'!G290,\"\"))","v":""},{"$f":"IF('TSA Input'!J290=\"\",\"\",IF(OR('TSA Input'!J290=\"Yes\",'TSA Input'!J290=\"Contingent\"),'TSA Input'!F290,\"\"))","v":""},"",{"$f":"IF('TSA Input'!J290=\"\",\"\",IF(OR('TSA Input'!J290=\"Yes\",'TSA Input'!J290=\"Contingent\"),'TSA Input'!D290,\"\"))","v":""},{"$f":"IF('TSA Input'!J290=\"\",\"\",IF(OR('TSA Input'!J290=\"Yes\",'TSA Input'!J290=\"Contingent\"),'TSA Input'!G290,\"\"))","v":""},{"$f":"IF('TSA Input'!J290=\"\",\"\",IF(OR('TSA Input'!J290=\"Yes\",'TSA Input'!J290=\"Contingent\"),'TSA Input'!F290,\"\"))","v":""},"","Required","Required"]
["",null,{"$f":"IF('TSA Input'!J291=\"\",\"\",IF(OR('TSA Input'!J291=\"Yes\",'TSA Input'!J291=\"Contingent\"),'TSA Input'!B291,\"Ineligible\"))","v":""},{"$f":"IF('TSA Input'!J291=\"\",\"\",IF(OR('TSA Input'!J291=\"Yes\",'TSA Input'!J291=\"Contingent\"),'TSA Input'!I291,\"\"))","v":""},{"$f":"IF('TSA Input'!J291=\"\",\"\",IF(OR('TSA Input'!J291=\"Yes\",'TSA Input'!J291=\"Contingent\"),'TSA Input'!C291,\"\"))","v":""},{"$f":"IF('TSA Input'!J291=\"\",\"\",IF(OR('TSA Input'!J291=\"Yes\",'TSA Input'!J291=\"Contingent\"),'TSA Input'!D291,\"\"))","v":""},{"$f":"IF('TSA Input'!J291=\"\",\"\",IF(OR('TSA Input'!J291=\"Yes\",'TSA Input'!J291=\"Contingent\"),'TSA Input'!G291,\"\"))","v":""},{"$f":"IF('TSA Input'!J291=\"\",\"\",IF(OR('TSA Input'!J291=\"Yes\",'TSA Input'!J291=\"Contingent\"),'TSA Input'!F291,\"\"))","v":""},"",{"$f":"IF('TSA Input'!J291=\"\",\"\",IF(OR('TSA Input'!J291=\"Yes\",'TSA Input'!J291=\"Contingent\"),'TSA Input'!D291,\"\"))","v":""},{"$f":"IF('TSA Input'!J291=\"\",\"\",IF(OR('TSA Input'!J291=\"Yes\",'TSA Input'!J291=\"Contingent\"),'TSA Input'!G291,\"\"))","v":""},{"$f":"IF('TSA Input'!J291=\"\",\"\",IF(OR('TSA Input'!J291=\"Yes\",'TSA Input'!J291=\"Contingent\"),'TSA Input'!F291,\"\"))","v":""},"","Required","Required"]
["",null,{"$f":"IF('TSA Input'!J292=\"\",\"\",IF(OR('TSA Input'!J292=\"Yes\",'TSA Input'!J292=\"Contingent\"),'TSA Input'!B292,\"Ineligible\"))","v":""},{"$f":"IF('TSA Input'!J292=\"\",\"\",IF(OR('TSA Input'!J292=\"Yes\",'TSA Input'!J292=\"Contingent\"),'TSA Input'!I292,\"\"))","v":""},{"$f":"IF('TSA Input'!J292=\"\",\"\",IF(OR('TSA Input'!J292=\"Yes\",'TSA Input'!J292=\"Contingent\"),'TSA Input'!C292,\"\"))","v":""},{"$f":"IF('TSA Input'!J292=\"\",\"\",IF(OR('TSA Input'!J292=\"Yes\",'TSA Input'!J292=\"Contingent\"),'TSA Input'!D292,\"\"))","v":""},{"$f":"IF('TSA Input'!J292=\"\",\"\",IF(OR('TSA Input'!J292=\"Yes\",'TSA Input'!J292=\"Contingent\"),'TSA Input'!G292,\"\"))","v":""},{"$f":"IF('TSA Input'!J292=\"\",\"\",IF(OR('TSA Input'!J292=\"Yes\",'TSA Input'!J292=\"Contingent\"),'TSA Input'!F292,\"\"))","v":""},"",{"$f":"IF('TSA Input'!J292=\"\",\"\",IF(OR('TSA Input'!J292=\"Yes\",'TSA Input'!J292=\"Contingent\"),'TSA Input'!D292,\"\"))","v":""},{"$f":"IF('TSA Input'!J292=\"\",\"\",IF(OR('TSA Input'!J292=\"Yes\",'TSA Input'!J292=\"Contingent\"),'TSA Input'!G292,\"\"))","v":""},{"$f":"IF('TSA Input'!J292=\"\",\"\",IF(OR('TSA Input'!J292=\"Yes\",'TSA Input'!J292=\"Contingent\"),'TSA Input'!F292,\"\"))","v":""},"","Required","Required"]
["",null,{"$f":"IF('TSA Input'!J293=\"\",\"\",IF(OR('TSA Input'!J293=\"Yes\",'TSA Input'!J293=\"Contingent\"),'TSA Input'!B293,\"Ineligible\"))","v":""},{"$f":"IF('TSA Input'!J293=\"\",\"\",IF(OR('TSA Input'!J293=\"Yes\",'TSA Input'!J293=\"Contingent\"),'TSA Input'!I293,\"\"))","v":""},{"$f":"IF('TSA Input'!J293=\"\",\"\",IF(OR('TSA Input'!J293=\"Yes\",'TSA Input'!J293=\"Contingent\"),'TSA Input'!C293,\"\"))","v":""},{"$f":"IF('TSA Input'!J293=\"\",\"\",IF(OR('TSA Input'!J293=\"Yes\",'TSA Input'!J293=\"Contingent\"),'TSA Input'!D293,\"\"))","v":""},{"$f":"IF('TSA Input'!J293=\"\",\"\",IF(OR('TSA Input'!J293=\"Yes\",'TSA Input'!J293=\"Contingent\"),'TSA Input'!G293,\"\"))","v":""},{"$f":"IF('TSA Input'!J293=\"\",\"\",IF(OR('TSA Input'!J293=\"Yes\",'TSA Input'!J293=\"Contingent\"),'TSA Input'!F293,\"\"))","v":""},"",{"$f":"IF('TSA Input'!J293=\"\",\"\",IF(OR('TSA Input'!J293=\"Yes\",'TSA Input'!J293=\"Contingent\"),'TSA Input'!D293,\"\"))","v":""},{"$f":"IF('TSA Input'!J293=\"\",\"\",IF(OR('TSA Input'!J293=\"Yes\",'TSA Input'!J293=\"Contingent\"),'TSA Input'!G293,\"\"))","v":""},{"$f":"IF('TSA Input'!J293=\"\",\"\",IF(OR('TSA Input'!J293=\"Yes\",'TSA Input'!J293=\"Contingent\"),'TSA Input'!F293,\"\"))","v":""},"","Required","Required"]
["",null,{"$f":"IF('TSA Input'!J294=\"\",\"\",IF(OR('TSA Input'!J294=\"Yes\",'TSA Input'!J294=\"Contingent\"),'TSA Input'!B294,\"Ineligible\"))","v":""},{"$f":"IF('TSA Input'!J294=\"\",\"\",IF(OR('TSA Input'!J294=\"Yes\",'TSA Input'!J294=\"Contingent\"),'TSA Input'!I294,\"\"))","v":""},{"$f":"IF('TSA Input'!J294=\"\",\"\",IF(OR('TSA Input'!J294=\"Yes\",'TSA Input'!J294=\"Contingent\"),'TSA Input'!C294,\"\"))","v":""},{"$f":"IF('TSA Input'!J294=\"\",\"\",IF(OR('TSA Input'!J294=\"Yes\",'TSA Input'!J294=\"Contingent\"),'TSA Input'!D294,\"\"))","v":""},{"$f":"IF('TSA Input'!J294=\"\",\"\",IF(OR('TSA Input'!J294=\"Yes\",'TSA Input'!J294=\"Contingent\"),'TSA Input'!G294,\"\"))","v":""},{"$f":"IF('TSA Input'!J294=\"\",\"\",IF(OR('TSA Input'!J294=\"Yes\",'TSA Input'!J294=\"Contingent\"),'TSA Input'!F294,\"\"))","v":""},"",{"$f":"IF('TSA Input'!J294=\"\",\"\",IF(OR('TSA Input'!J294=\"Yes\",'TSA Input'!J294=\"Contingent\"),'TSA Input'!D294,\"\"))","v":""},{"$f":"IF('TSA Input'!J294=\"\",\"\",IF(OR('TSA Input'!J294=\"Yes\",'TSA Input'!J294=\"Contingent\"),'TSA Input'!G294,\"\"))","v":""},{"$f":"IF('TSA Input'!J294=\"\",\"\",IF(OR('TSA Input'!J294=\"Yes\",'TSA Input'!J294=\"Contingent\"),'TSA Input'!F294,\"\"))","v":""},"","Required","Required"]
["",null,{"$f":"IF('TSA Input'!J295=\"\",\"\",IF(OR('TSA Input'!J295=\"Yes\",'TSA Input'!J295=\"Contingent\"),'TSA Input'!B295,\"Ineligible\"))","v":""},{"$f":"IF('TSA Input'!J295=\"\",\"\",IF(OR('TSA Input'!J295=\"Yes\",'TSA Input'!J295=\"Contingent\"),'TSA Input'!I295,\"\"))","v":""},{"$f":"IF('TSA Input'!J295=\"\",\"\",IF(OR('TSA Input'!J295=\"Yes\",'TSA Input'!J295=\"Contingent\"),'TSA Input'!C295,\"\"))","v":""},{"$f":"IF('TSA Input'!J295=\"\",\"\",IF(OR('TSA Input'!J295=\"Yes\",'TSA Input'!J295=\"Contingent\"),'TSA Input'!D295,\"\"))","v":""},{"$f":"IF('TSA Input'!J295=\"\",\"\",IF(OR('TSA Input'!J295=\"Yes\",'TSA Input'!J295=\"Contingent\"),'TSA Input'!G295,\"\"))","v":""},{"$f":"IF('TSA Input'!J295=\"\",\"\",IF(OR('TSA Input'!J295=\"Yes\",'TSA Input'!J295=\"Contingent\"),'TSA Input'!F295,\"\"))","v":""},"",{"$f":"IF('TSA Input'!J295=\"\",\"\",IF(OR('TSA Input'!J295=\"Yes\",'TSA Input'!J295=\"Contingent\"),'TSA Input'!D295,\"\"))","v":""},{"$f":"IF('TSA Input'!J295=\"\",\"\",IF(OR('TSA Input'!J295=\"Yes\",'TSA Input'!J295=\"Contingent\"),'TSA Input'!G295,\"\"))","v":""},{"$f":"IF('TSA Input'!J295=\"\",\"\",IF(OR('TSA Input'!J295=\"Yes\",'TSA Input'!J295=\"Contingent\"),'TSA Input'!F295,\"\"))","v":""},"","Required","Required"]
["",null,{"$f":"IF('TSA Input'!J296=\"\",\"\",IF(OR('TSA Input'!J296=\"Yes\",'TSA Input'!J296=\"Contingent\"),'TSA Input'!B296,\"Ineligible\"))","v":""},{"$f":"IF('TSA Input'!J296=\"\",\"\",IF(OR('TSA Input'!J296=\"Yes\",'TSA Input'!J296=\"Contingent\"),'TSA Input'!I296,\"\"))","v":""},{"$f":"IF('TSA Input'!J296=\"\",\"\",IF(OR('TSA Input'!J296=\"Yes\",'TSA Input'!J296=\"Contingent\"),'TSA Input'!C296,\"\"))","v":""},{"$f":"IF('TSA Input'!J296=\"\",\"\",IF(OR('TSA Input'!J296=\"Yes\",'TSA Input'!J296=\"Contingent\"),'TSA Input'!D296,\"\"))","v":""},{"$f":"IF('TSA Input'!J296=\"\",\"\",IF(OR('TSA Input'!J296=\"Yes\",'TSA Input'!J296=\"Contingent\"),'TSA Input'!G296,\"\"))","v":""},{"$f":"IF('TSA Input'!J296=\"\",\"\",IF(OR('TSA Input'!J296=\"Yes\",'TSA Input'!J296=\"Contingent\"),'TSA Input'!F296,\"\"))","v":""},"",{"$f":"IF('TSA Input'!J296=\"\",\"\",IF(OR('TSA Input'!J296=\"Yes\",'TSA Input'!J296=\"Contingent\"),'TSA Input'!D296,\"\"))","v":""},{"$f":"IF('TSA Input'!J296=\"\",\"\",IF(OR('TSA Input'!J296=\"Yes\",'TSA Input'!J296=\"Contingent\"),'TSA Input'!G296,\"\"))","v":""},{"$f":"IF('TSA Input'!J296=\"\",\"\",IF(OR('TSA Input'!J296=\"Yes\",'TSA Input'!J296=\"Contingent\"),'TSA Input'!F296,\"\"))","v":""},"","Required","Required"]
["",null,{"$f":"IF('TSA Input'!J297=\"\",\"\",IF(OR('TSA Input'!J297=\"Yes\",'TSA Input'!J297=\"Contingent\"),'TSA Input'!B297,\"Ineligible\"))","v":""},{"$f":"IF('TSA Input'!J297=\"\",\"\",IF(OR('TSA Input'!J297=\"Yes\",'TSA Input'!J297=\"Contingent\"),'TSA Input'!I297,\"\"))","v":""},{"$f":"IF('TSA Input'!J297=\"\",\"\",IF(OR('TSA Input'!J297=\"Yes\",'TSA Input'!J297=\"Contingent\"),'TSA Input'!C297,\"\"))","v":""},{"$f":"IF('TSA Input'!J297=\"\",\"\",IF(OR('TSA Input'!J297=\"Yes\",'TSA Input'!J297=\"Contingent\"),'TSA Input'!D297,\"\"))","v":""},{"$f":"IF('TSA Input'!J297=\"\",\"\",IF(OR('TSA Input'!J297=\"Yes\",'TSA Input'!J297=\"Contingent\"),'TSA Input'!G297,\"\"))","v":""},{"$f":"IF('TSA Input'!J297=\"\",\"\",IF(OR('TSA Input'!J297=\"Yes\",'TSA Input'!J297=\"Contingent\"),'TSA Input'!F297,\"\"))","v":""},"",{"$f":"IF('TSA Input'!J297=\"\",\"\",IF(OR('TSA Input'!J297=\"Yes\",'TSA Input'!J297=\"Contingent\"),'TSA Input'!D297,\"\"))","v":""},{"$f":"IF('TSA Input'!J297=\"\",\"\",IF(OR('TSA Input'!J297=\"Yes\",'TSA Input'!J297=\"Contingent\"),'TSA Input'!G297,\"\"))","v":""},{"$f":"IF('TSA Input'!J297=\"\",\"\",IF(OR('TSA Input'!J297=\"Yes\",'TSA Input'!J297=\"Contingent\"),'TSA Input'!F297,\"\"))","v":""},"","Required","Required"]
["",null,{"$f":"IF('TSA Input'!J298=\"\",\"\",IF(OR('TSA Input'!J298=\"Yes\",'TSA Input'!J298=\"Contingent\"),'TSA Input'!B298,\"Ineligible\"))","v":""},{"$f":"IF('TSA Input'!J298=\"\",\"\",IF(OR('TSA Input'!J298=\"Yes\",'TSA Input'!J298=\"Contingent\"),'TSA Input'!I298,\"\"))","v":""},{"$f":"IF('TSA Input'!J298=\"\",\"\",IF(OR('TSA Input'!J298=\"Yes\",'TSA Input'!J298=\"Contingent\"),'TSA Input'!C298,\"\"))","v":""},{"$f":"IF('TSA Input'!J298=\"\",\"\",IF(OR('TSA Input'!J298=\"Yes\",'TSA Input'!J298=\"Contingent\"),'TSA Input'!D298,\"\"))","v":""},{"$f":"IF('TSA Input'!J298=\"\",\"\",IF(OR('TSA Input'!J298=\"Yes\",'TSA Input'!J298=\"Contingent\"),'TSA Input'!G298,\"\"))","v":""},{"$f":"IF('TSA Input'!J298=\"\",\"\",IF(OR('TSA Input'!J298=\"Yes\",'TSA Input'!J298=\"Contingent\"),'TSA Input'!F298,\"\"))","v":""},"",{"$f":"IF('TSA Input'!J298=\"\",\"\",IF(OR('TSA Input'!J298=\"Yes\",'TSA Input'!J298=\"Contingent\"),'TSA Input'!D298,\"\"))","v":""},{"$f":"IF('TSA Input'!J298=\"\",\"\",IF(OR('TSA Input'!J298=\"Yes\",'TSA Input'!J298=\"Contingent\"),'TSA Input'!G298,\"\"))","v":""},{"$f":"IF('TSA Input'!J298=\"\",\"\",IF(OR('TSA Input'!J298=\"Yes\",'TSA Input'!J298=\"Contingent\"),'TSA Input'!F298,\"\"))","v":""},"","Required","Required"]
["",null,{"$f":"IF('TSA Input'!J299=\"\",\"\",IF(OR('TSA Input'!J299=\"Yes\",'TSA Input'!J299=\"Contingent\"),'TSA Input'!B299,\"Ineligible\"))","v":""},{"$f":"IF('TSA Input'!J299=\"\",\"\",IF(OR('TSA Input'!J299=\"Yes\",'TSA Input'!J299=\"Contingent\"),'TSA Input'!I299,\"\"))","v":""},{"$f":"IF('TSA Input'!J299=\"\",\"\",IF(OR('TSA Input'!J299=\"Yes\",'TSA Input'!J299=\"Contingent\"),'TSA Input'!C299,\"\"))","v":""},{"$f":"IF('TSA Input'!J299=\"\",\"\",IF(OR('TSA Input'!J299=\"Yes\",'TSA Input'!J299=\"Contingent\"),'TSA Input'!D299,\"\"))","v":""},{"$f":"IF('TSA Input'!J299=\"\",\"\",IF(OR('TSA Input'!J299=\"Yes\",'TSA Input'!J299=\"Contingent\"),'TSA Input'!G299,\"\"))","v":""},{"$f":"IF('TSA Input'!J299=\"\",\"\",IF(OR('TSA Input'!J299=\"Yes\",'TSA Input'!J299=\"Contingent\"),'TSA Input'!F299,\"\"))","v":""},"",{"$f":"IF('TSA Input'!J299=\"\",\"\",IF(OR('TSA Input'!J299=\"Yes\",'TSA Input'!J299=\"Contingent\"),'TSA Input'!D299,\"\"))","v":""},{"$f":"IF('TSA Input'!J299=\"\",\"\",IF(OR('TSA Input'!J299=\"Yes\",'TSA Input'!J299=\"Contingent\"),'TSA Input'!G299,\"\"))","v":""},{"$f":"IF('TSA Input'!J299=\"\",\"\",IF(OR('TSA Input'!J299=\"Yes\",'TSA Input'!J299=\"Contingent\"),'TSA Input'!F299,\"\"))","v":""},"","Required","Required"]
["",null,{"$f":"IF('TSA Input'!J300=\"\",\"\",IF(OR('TSA Input'!J300=\"Yes\",'TSA Input'!J300=\"Contingent\"),'TSA Input'!B300,\"Ineligible\"))","v":""},{"$f":"IF('TSA Input'!J300=\"\",\"\",IF(OR('TSA Input'!J300=\"Yes\",'TSA Input'!J300=\"Contingent\"),'TSA Input'!I300,\"\"))","v":""},{"$f":"IF('TSA Input'!J300=\"\",\"\",IF(OR('TSA Input'!J300=\"Yes\",'TSA Input'!J300=\"Contingent\"),'TSA Input'!C300,\"\"))","v":""},{"$f":"IF('TSA Input'!J300=\"\",\"\",IF(OR('TSA Input'!J300=\"Yes\",'TSA Input'!J300=\"Contingent\"),'TSA Input'!D300,\"\"))","v":""},{"$f":"IF('TSA Input'!J300=\"\",\"\",IF(OR('TSA Input'!J300=\"Yes\",'TSA Input'!J300=\"Contingent\"),'TSA Input'!G300,\"\"))","v":""},{"$f":"IF('TSA Input'!J300=\"\",\"\",IF(OR('TSA Input'!J300=\"Yes\",'TSA Input'!J300=\"Contingent\"),'TSA Input'!F300,\"\"))","v":""},"",{"$f":"IF('TSA Input'!J300=\"\",\"\",IF(OR('TSA Input'!J300=\"Yes\",'TSA Input'!J300=\"Contingent\"),'TSA Input'!D300,\"\"))","v":""},{"$f":"IF('TSA Input'!J300=\"\",\"\",IF(OR('TSA Input'!J300=\"Yes\",'TSA Input'!J300=\"Contingent\"),'TSA Input'!G300,\"\"))","v":""},{"$f":"IF('TSA Input'!J300=\"\",\"\",IF(OR('TSA Input'!J300=\"Yes\",'TSA Input'!J300=\"Contingent\"),'TSA Input'!F300,\"\"))","v":""},"","Required","Required"]
["",null,{"$f":"IF('TSA Input'!J301=\"\",\"\",IF(OR('TSA Input'!J301=\"Yes\",'TSA Input'!J301=\"Contingent\"),'TSA Input'!B301,\"Ineligible\"))","v":""},{"$f":"IF('TSA Input'!J301=\"\",\"\",IF(OR('TSA Input'!J301=\"Yes\",'TSA Input'!J301=\"Contingent\"),'TSA Input'!I301,\"\"))","v":""},{"$f":"IF('TSA Input'!J301=\"\",\"\",IF(OR('TSA Input'!J301=\"Yes\",'TSA Input'!J301=\"Contingent\"),'TSA Input'!C301,\"\"))","v":""},{"$f":"IF('TSA Input'!J301=\"\",\"\",IF(OR('TSA Input'!J301=\"Yes\",'TSA Input'!J301=\"Contingent\"),'TSA Input'!D301,\"\"))","v":""},{"$f":"IF('TSA Input'!J301=\"\",\"\",IF(OR('TSA Input'!J301=\"Yes\",'TSA Input'!J301=\"Contingent\"),'TSA Input'!G301,\"\"))","v":""},{"$f":"IF('TSA Input'!J301=\"\",\"\",IF(OR('TSA Input'!J301=\"Yes\",'TSA Input'!J301=\"Contingent\"),'TSA Input'!F301,\"\"))","v":""},"",{"$f":"IF('TSA Input'!J301=\"\",\"\",IF(OR('TSA Input'!J301=\"Yes\",'TSA Input'!J301=\"Contingent\"),'TSA Input'!D301,\"\"))","v":""},{"$f":"IF('TSA Input'!J301=\"\",\"\",IF(OR('TSA Input'!J301=\"Yes\",'TSA Input'!J301=\"Contingent\"),'TSA Input'!G301,\"\"))","v":""},{"$f":"IF('TSA Input'!J301=\"\",\"\",IF(OR('TSA Input'!J301=\"Yes\",'TSA Input'!J301=\"Contingent\"),'TSA Input'!F301,\"\"))","v":""},"","Required","Required"]
["",null,{"$f":"IF('TSA Input'!J302=\"\",\"\",IF(OR('TSA Input'!J302=\"Yes\",'TSA Input'!J302=\"Contingent\"),'TSA Input'!B302,\"Ineligible\"))","v":""},{"$f":"IF('TSA Input'!J302=\"\",\"\",IF(OR('TSA Input'!J302=\"Yes\",'TSA Input'!J302=\"Contingent\"),'TSA Input'!I302,\"\"))","v":""},{"$f":"IF('TSA Input'!J302=\"\",\"\",IF(OR('TSA Input'!J302=\"Yes\",'TSA Input'!J302=\"Contingent\"),'TSA Input'!C302,\"\"))","v":""},{"$f":"IF('TSA Input'!J302=\"\",\"\",IF(OR('TSA Input'!J302=\"Yes\",'TSA Input'!J302=\"Contingent\"),'TSA Input'!D302,\"\"))","v":""},{"$f":"IF('TSA Input'!J302=\"\",\"\",IF(OR('TSA Input'!J302=\"Yes\",'TSA Input'!J302=\"Contingent\"),'TSA Input'!G302,\"\"))","v":""},{"$f":"IF('TSA Input'!J302=\"\",\"\",IF(OR('TSA Input'!J302=\"Yes\",'TSA Input'!J302=\"Contingent\"),'TSA Input'!F302,\"\"))","v":""},"",{"$f":"IF('TSA Input'!J302=\"\",\"\",IF(OR('TSA Input'!J302=\"Yes\",'TSA Input'!J302=\"Contingent\"),'TSA Input'!D302,\"\"))","v":""},{"$f":"IF('TSA Input'!J302=\"\",\"\",IF(OR('TSA Input'!J302=\"Yes\",'TSA Input'!J302=\"Contingent\"),'TSA Input'!G302,\"\"))","v":""},{"$f":"IF('TSA Input'!J302=\"\",\"\",IF(OR('TSA Input'!J302=\"Yes\",'TSA Input'!J302=\"Contingent\"),'TSA Input'!F302,\"\"))","v":""},"","Required","Required"]
["",null,{"$f":"IF('TSA Input'!J303=\"\",\"\",IF(OR('TSA Input'!J303=\"Yes\",'TSA Input'!J303=\"Contingent\"),'TSA Input'!B303,\"Ineligible\"))","v":""},{"$f":"IF('TSA Input'!J303=\"\",\"\",IF(OR('TSA Input'!J303=\"Yes\",'TSA Input'!J303=\"Contingent\"),'TSA Input'!I303,\"\"))","v":""},{"$f":"IF('TSA Input'!J303=\"\",\"\",IF(OR('TSA Input'!J303=\"Yes\",'TSA Input'!J303=\"Contingent\"),'TSA Input'!C303,\"\"))","v":""},{"$f":"IF('TSA Input'!J303=\"\",\"\",IF(OR('TSA Input'!J303=\"Yes\",'TSA Input'!J303=\"Contingent\"),'TSA Input'!D303,\"\"))","v":""},{"$f":"IF('TSA Input'!J303=\"\",\"\",IF(OR('TSA Input'!J303=\"Yes\",'TSA Input'!J303=\"Contingent\"),'TSA Input'!G303,\"\"))","v":""},{"$f":"IF('TSA Input'!J303=\"\",\"\",IF(OR('TSA Input'!J303=\"Yes\",'TSA Input'!J303=\"Contingent\"),'TSA Input'!F303,\"\"))","v":""},"",{"$f":"IF('TSA Input'!J303=\"\",\"\",IF(OR('TSA Input'!J303=\"Yes\",'TSA Input'!J303=\"Contingent\"),'TSA Input'!D303,\"\"))","v":""},{"$f":"IF('TSA Input'!J303=\"\",\"\",IF(OR('TSA Input'!J303=\"Yes\",'TSA Input'!J303=\"Contingent\"),'TSA Input'!G303,\"\"))","v":""},{"$f":"IF('TSA Input'!J303=\"\",\"\",IF(OR('TSA Input'!J303=\"Yes\",'TSA Input'!J303=\"Contingent\"),'TSA Input'!F303,\"\"))","v":""},"","Required","Required"]
["",null,{"$f":"IF('TSA Input'!J304=\"\",\"\",IF(OR('TSA Input'!J304=\"Yes\",'TSA Input'!J304=\"Contingent\"),'TSA Input'!B304,\"Ineligible\"))","v":""},{"$f":"IF('TSA Input'!J304=\"\",\"\",IF(OR('TSA Input'!J304=\"Yes\",'TSA Input'!J304=\"Contingent\"),'TSA Input'!I304,\"\"))","v":""},{"$f":"IF('TSA Input'!J304=\"\",\"\",IF(OR('TSA Input'!J304=\"Yes\",'TSA Input'!J304=\"Contingent\"),'TSA Input'!C304,\"\"))","v":""},{"$f":"IF('TSA Input'!J304=\"\",\"\",IF(OR('TSA Input'!J304=\"Yes\",'TSA Input'!J304=\"Contingent\"),'TSA Input'!D304,\"\"))","v":""},{"$f":"IF('TSA Input'!J304=\"\",\"\",IF(OR('TSA Input'!J304=\"Yes\",'TSA Input'!J304=\"Contingent\"),'TSA Input'!G304,\"\"))","v":""},{"$f":"IF('TSA Input'!J304=\"\",\"\",IF(OR('TSA Input'!J304=\"Yes\",'TSA Input'!J304=\"Contingent\"),'TSA Input'!F304,\"\"))","v":""},"",{"$f":"IF('TSA Input'!J304=\"\",\"\",IF(OR('TSA Input'!J304=\"Yes\",'TSA Input'!J304=\"Contingent\"),'TSA Input'!D304,\"\"))","v":""},{"$f":"IF('TSA Input'!J304=\"\",\"\",IF(OR('TSA Input'!J304=\"Yes\",'TSA Input'!J304=\"Contingent\"),'TSA Input'!G304,\"\"))","v":""},{"$f":"IF('TSA Input'!J304=\"\",\"\",IF(OR('TSA Input'!J304=\"Yes\",'TSA Input'!J304=\"Contingent\"),'TSA Input'!F304,\"\"))","v":""},"","Required","Required"]
["",null,{"$f":"IF('TSA Input'!J305=\"\",\"\",IF(OR('TSA Input'!J305=\"Yes\",'TSA Input'!J305=\"Contingent\"),'TSA Input'!B305,\"Ineligible\"))","v":""},{"$f":"IF('TSA Input'!J305=\"\",\"\",IF(OR('TSA Input'!J305=\"Yes\",'TSA Input'!J305=\"Contingent\"),'TSA Input'!I305,\"\"))","v":""},{"$f":"IF('TSA Input'!J305=\"\",\"\",IF(OR('TSA Input'!J305=\"Yes\",'TSA Input'!J305=\"Contingent\"),'TSA Input'!C305,\"\"))","v":""},{"$f":"IF('TSA Input'!J305=\"\",\"\",IF(OR('TSA Input'!J305=\"Yes\",'TSA Input'!J305=\"Contingent\"),'TSA Input'!D305,\"\"))","v":""},{"$f":"IF('TSA Input'!J305=\"\",\"\",IF(OR('TSA Input'!J305=\"Yes\",'TSA Input'!J305=\"Contingent\"),'TSA Input'!G305,\"\"))","v":""},{"$f":"IF('TSA Input'!J305=\"\",\"\",IF(OR('TSA Input'!J305=\"Yes\",'TSA Input'!J305=\"Contingent\"),'TSA Input'!F305,\"\"))","v":""},"",{"$f":"IF('TSA Input'!J305=\"\",\"\",IF(OR('TSA Input'!J305=\"Yes\",'TSA Input'!J305=\"Contingent\"),'TSA Input'!D305,\"\"))","v":""},{"$f":"IF('TSA Input'!J305=\"\",\"\",IF(OR('TSA Input'!J305=\"Yes\",'TSA Input'!J305=\"Contingent\"),'TSA Input'!G305,\"\"))","v":""},{"$f":"IF('TSA Input'!J305=\"\",\"\",IF(OR('TSA Input'!J305=\"Yes\",'TSA Input'!J305=\"Contingent\"),'TSA Input'!F305,\"\"))","v":""},"","Required","Required"]
["",null,{"$f":"IF('TSA Input'!J306=\"\",\"\",IF(OR('TSA Input'!J306=\"Yes\",'TSA Input'!J306=\"Contingent\"),'TSA Input'!B306,\"Ineligible\"))","v":""},{"$f":"IF('TSA Input'!J306=\"\",\"\",IF(OR('TSA Input'!J306=\"Yes\",'TSA Input'!J306=\"Contingent\"),'TSA Input'!I306,\"\"))","v":""},{"$f":"IF('TSA Input'!J306=\"\",\"\",IF(OR('TSA Input'!J306=\"Yes\",'TSA Input'!J306=\"Contingent\"),'TSA Input'!C306,\"\"))","v":""},{"$f":"IF('TSA Input'!J306=\"\",\"\",IF(OR('TSA Input'!J306=\"Yes\",'TSA Input'!J306=\"Contingent\"),'TSA Input'!D306,\"\"))","v":""},{"$f":"IF('TSA Input'!J306=\"\",\"\",IF(OR('TSA Input'!J306=\"Yes\",'TSA Input'!J306=\"Contingent\"),'TSA Input'!G306,\"\"))","v":""},{"$f":"IF('TSA Input'!J306=\"\",\"\",IF(OR('TSA Input'!J306=\"Yes\",'TSA Input'!J306=\"Contingent\"),'TSA Input'!F306,\"\"))","v":""},"",{"$f":"IF('TSA Input'!J306=\"\",\"\",IF(OR('TSA Input'!J306=\"Yes\",'TSA Input'!J306=\"Contingent\"),'TSA Input'!D306,\"\"))","v":""},{"$f":"IF('TSA Input'!J306=\"\",\"\",IF(OR('TSA Input'!J306=\"Yes\",'TSA Input'!J306=\"Contingent\"),'TSA Input'!G306,\"\"))","v":""},{"$f":"IF('TSA Input'!J306=\"\",\"\",IF(OR('TSA Input'!J306=\"Yes\",'TSA Input'!J306=\"Contingent\"),'TSA Input'!F306,\"\"))","v":""},"","Required","Required"]
["",null,{"$f":"IF('TSA Input'!J307=\"\",\"\",IF(OR('TSA Input'!J307=\"Yes\",'TSA Input'!J307=\"Contingent\"),'TSA Input'!B307,\"Ineligible\"))","v":""},{"$f":"IF('TSA Input'!J307=\"\",\"\",IF(OR('TSA Input'!J307=\"Yes\",'TSA Input'!J307=\"Contingent\"),'TSA Input'!I307,\"\"))","v":""},{"$f":"IF('TSA Input'!J307=\"\",\"\",IF(OR('TSA Input'!J307=\"Yes\",'TSA Input'!J307=\"Contingent\"),'TSA Input'!C307,\"\"))","v":""},{"$f":"IF('TSA Input'!J307=\"\",\"\",IF(OR('TSA Input'!J307=\"Yes\",'TSA Input'!J307=\"Contingent\"),'TSA Input'!D307,\"\"))","v":""},{"$f":"IF('TSA Input'!J307=\"\",\"\",IF(OR('TSA Input'!J307=\"Yes\",'TSA Input'!J307=\"Contingent\"),'TSA Input'!G307,\"\"))","v":""},{"$f":"IF('TSA Input'!J307=\"\",\"\",IF(OR('TSA Input'!J307=\"Yes\",'TSA Input'!J307=\"Contingent\"),'TSA Input'!F307,\"\"))","v":""},"",{"$f":"IF('TSA Input'!J307=\"\",\"\",IF(OR('TSA Input'!J307=\"Yes\",'TSA Input'!J307=\"Contingent\"),'TSA Input'!D307,\"\"))","v":""},{"$f":"IF('TSA Input'!J307=\"\",\"\",IF(OR('TSA Input'!J307=\"Yes\",'TSA Input'!J307=\"Contingent\"),'TSA Input'!G307,\"\"))","v":""},{"$f":"IF('TSA Input'!J307=\"\",\"\",IF(OR('TSA Input'!J307=\"Yes\",'TSA Input'!J307=\"Contingent\"),'TSA Input'!F307,\"\"))","v":""},"","Required","Required"]
["",null,{"$f":"IF('TSA Input'!J308=\"\",\"\",IF(OR('TSA Input'!J308=\"Yes\",'TSA Input'!J308=\"Contingent\"),'TSA Input'!B308,\"Ineligible\"))","v":""},{"$f":"IF('TSA Input'!J308=\"\",\"\",IF(OR('TSA Input'!J308=\"Yes\",'TSA Input'!J308=\"Contingent\"),'TSA Input'!I308,\"\"))","v":""},{"$f":"IF('TSA Input'!J308=\"\",\"\",IF(OR('TSA Input'!J308=\"Yes\",'TSA Input'!J308=\"Contingent\"),'TSA Input'!C308,\"\"))","v":""},{"$f":"IF('TSA Input'!J308=\"\",\"\",IF(OR('TSA Input'!J308=\"Yes\",'TSA Input'!J308=\"Contingent\"),'TSA Input'!D308,\"\"))","v":""},{"$f":"IF('TSA Input'!J308=\"\",\"\",IF(OR('TSA Input'!J308=\"Yes\",'TSA Input'!J308=\"Contingent\"),'TSA Input'!G308,\"\"))","v":""},{"$f":"IF('TSA Input'!J308=\"\",\"\",IF(OR('TSA Input'!J308=\"Yes\",'TSA Input'!J308=\"Contingent\"),'TSA Input'!F308,\"\"))","v":""},"",{"$f":"IF('TSA Input'!J308=\"\",\"\",IF(OR('TSA Input'!J308=\"Yes\",'TSA Input'!J308=\"Contingent\"),'TSA Input'!D308,\"\"))","v":""},{"$f":"IF('TSA Input'!J308=\"\",\"\",IF(OR('TSA Input'!J308=\"Yes\",'TSA Input'!J308=\"Contingent\"),'TSA Input'!G308,\"\"))","v":""},{"$f":"IF('TSA Input'!J308=\"\",\"\",IF(OR('TSA Input'!J308=\"Yes\",'TSA Input'!J308=\"Contingent\"),'TSA Input'!F308,\"\"))","v":""},"","Required","Required"]
["",null,{"$f":"IF('TSA Input'!J309=\"\",\"\",IF(OR('TSA Input'!J309=\"Yes\",'TSA Input'!J309=\"Contingent\"),'TSA Input'!B309,\"Ineligible\"))","v":""},{"$f":"IF('TSA Input'!J309=\"\",\"\",IF(OR('TSA Input'!J309=\"Yes\",'TSA Input'!J309=\"Contingent\"),'TSA Input'!I309,\"\"))","v":""},{"$f":"IF('TSA Input'!J309=\"\",\"\",IF(OR('TSA Input'!J309=\"Yes\",'TSA Input'!J309=\"Contingent\"),'TSA Input'!C309,\"\"))","v":""},{"$f":"IF('TSA Input'!J309=\"\",\"\",IF(OR('TSA Input'!J309=\"Yes\",'TSA Input'!J309=\"Contingent\"),'TSA Input'!D309,\"\"))","v":""},{"$f":"IF('TSA Input'!J309=\"\",\"\",IF(OR('TSA Input'!J309=\"Yes\",'TSA Input'!J309=\"Contingent\"),'TSA Input'!G309,\"\"))","v":""},{"$f":"IF('TSA Input'!J309=\"\",\"\",IF(OR('TSA Input'!J309=\"Yes\",'TSA Input'!J309=\"Contingent\"),'TSA Input'!F309,\"\"))","v":""},"",{"$f":"IF('TSA Input'!J309=\"\",\"\",IF(OR('TSA Input'!J309=\"Yes\",'TSA Input'!J309=\"Contingent\"),'TSA Input'!D309,\"\"))","v":""},{"$f":"IF('TSA Input'!J309=\"\",\"\",IF(OR('TSA Input'!J309=\"Yes\",'TSA Input'!J309=\"Contingent\"),'TSA Input'!G309,\"\"))","v":""},{"$f":"IF('TSA Input'!J309=\"\",\"\",IF(OR('TSA Input'!J309=\"Yes\",'TSA Input'!J309=\"Contingent\"),'TSA Input'!F309,\"\"))","v":""},"","Required","Required"]
["",null,{"$f":"IF('TSA Input'!J310=\"\",\"\",IF(OR('TSA Input'!J310=\"Yes\",'TSA Input'!J310=\"Contingent\"),'TSA Input'!B310,\"Ineligible\"))","v":""},{"$f":"IF('TSA Input'!J310=\"\",\"\",IF(OR('TSA Input'!J310=\"Yes\",'TSA Input'!J310=\"Contingent\"),'TSA Input'!I310,\"\"))","v":""},{"$f":"IF('TSA Input'!J310=\"\",\"\",IF(OR('TSA Input'!J310=\"Yes\",'TSA Input'!J310=\"Contingent\"),'TSA Input'!C310,\"\"))","v":""},{"$f":"IF('TSA Input'!J310=\"\",\"\",IF(OR('TSA Input'!J310=\"Yes\",'TSA Input'!J310=\"Contingent\"),'TSA Input'!D310,\"\"))","v":""},{"$f":"IF('TSA Input'!J310=\"\",\"\",IF(OR('TSA Input'!J310=\"Yes\",'TSA Input'!J310=\"Contingent\"),'TSA Input'!G310,\"\"))","v":""},{"$f":"IF('TSA Input'!J310=\"\",\"\",IF(OR('TSA Input'!J310=\"Yes\",'TSA Input'!J310=\"Contingent\"),'TSA Input'!F310,\"\"))","v":""},"",{"$f":"IF('TSA Input'!J310=\"\",\"\",IF(OR('TSA Input'!J310=\"Yes\",'TSA Input'!J310=\"Contingent\"),'TSA Input'!D310,\"\"))","v":""},{"$f":"IF('TSA Input'!J310=\"\",\"\",IF(OR('TSA Input'!J310=\"Yes\",'TSA Input'!J310=\"Contingent\"),'TSA Input'!G310,\"\"))","v":""},{"$f":"IF('TSA Input'!J310=\"\",\"\",IF(OR('TSA Input'!J310=\"Yes\",'TSA Input'!J310=\"Contingent\"),'TSA Input'!F310,\"\"))","v":""},"","Required","Required"]
["",null,{"$f":"IF('TSA Input'!J311=\"\",\"\",IF(OR('TSA Input'!J311=\"Yes\",'TSA Input'!J311=\"Contingent\"),'TSA Input'!B311,\"Ineligible\"))","v":""},{"$f":"IF('TSA Input'!J311=\"\",\"\",IF(OR('TSA Input'!J311=\"Yes\",'TSA Input'!J311=\"Contingent\"),'TSA Input'!I311,\"\"))","v":""},{"$f":"IF('TSA Input'!J311=\"\",\"\",IF(OR('TSA Input'!J311=\"Yes\",'TSA Input'!J311=\"Contingent\"),'TSA Input'!C311,\"\"))","v":""},{"$f":"IF('TSA Input'!J311=\"\",\"\",IF(OR('TSA Input'!J311=\"Yes\",'TSA Input'!J311=\"Contingent\"),'TSA Input'!D311,\"\"))","v":""},{"$f":"IF('TSA Input'!J311=\"\",\"\",IF(OR('TSA Input'!J311=\"Yes\",'TSA Input'!J311=\"Contingent\"),'TSA Input'!G311,\"\"))","v":""},{"$f":"IF('TSA Input'!J311=\"\",\"\",IF(OR('TSA Input'!J311=\"Yes\",'TSA Input'!J311=\"Contingent\"),'TSA Input'!F311,\"\"))","v":""},"",{"$f":"IF('TSA Input'!J311=\"\",\"\",IF(OR('TSA Input'!J311=\"Yes\",'TSA Input'!J311=\"Contingent\"),'TSA Input'!D311,\"\"))","v":""},{"$f":"IF('TSA Input'!J311=\"\",\"\",IF(OR('TSA Input'!J311=\"Yes\",'TSA Input'!J311=\"Contingent\"),'TSA Input'!G311,\"\"))","v":""},{"$f":"IF('TSA Input'!J311=\"\",\"\",IF(OR('TSA Input'!J311=\"Yes\",'TSA Input'!J311=\"Contingent\"),'TSA Input'!F311,\"\"))","v":""},"","Required","Required"]
["",null,{"$f":"IF('TSA Input'!J312=\"\",\"\",IF(OR('TSA Input'!J312=\"Yes\",'TSA Input'!J312=\"Contingent\"),'TSA Input'!B312,\"Ineligible\"))","v":""},{"$f":"IF('TSA Input'!J312=\"\",\"\",IF(OR('TSA Input'!J312=\"Yes\",'TSA Input'!J312=\"Contingent\"),'TSA Input'!I312,\"\"))","v":""},{"$f":"IF('TSA Input'!J312=\"\",\"\",IF(OR('TSA Input'!J312=\"Yes\",'TSA Input'!J312=\"Contingent\"),'TSA Input'!C312,\"\"))","v":""},{"$f":"IF('TSA Input'!J312=\"\",\"\",IF(OR('TSA Input'!J312=\"Yes\",'TSA Input'!J312=\"Contingent\"),'TSA Input'!D312,\"\"))","v":""},{"$f":"IF('TSA Input'!J312=\"\",\"\",IF(OR('TSA Input'!J312=\"Yes\",'TSA Input'!J312=\"Contingent\"),'TSA Input'!G312,\"\"))","v":""},{"$f":"IF('TSA Input'!J312=\"\",\"\",IF(OR('TSA Input'!J312=\"Yes\",'TSA Input'!J312=\"Contingent\"),'TSA Input'!F312,\"\"))","v":""},"",{"$f":"IF('TSA Input'!J312=\"\",\"\",IF(OR('TSA Input'!J312=\"Yes\",'TSA Input'!J312=\"Contingent\"),'TSA Input'!D312,\"\"))","v":""},{"$f":"IF('TSA Input'!J312=\"\",\"\",IF(OR('TSA Input'!J312=\"Yes\",'TSA Input'!J312=\"Contingent\"),'TSA Input'!G312,\"\"))","v":""},{"$f":"IF('TSA Input'!J312=\"\",\"\",IF(OR('TSA Input'!J312=\"Yes\",'TSA Input'!J312=\"Contingent\"),'TSA Input'!F312,\"\"))","v":""},"","Required","Required"]
["",null,{"$f":"IF('TSA Input'!J313=\"\",\"\",IF(OR('TSA Input'!J313=\"Yes\",'TSA Input'!J313=\"Contingent\"),'TSA Input'!B313,\"Ineligible\"))","v":""},{"$f":"IF('TSA Input'!J313=\"\",\"\",IF(OR('TSA Input'!J313=\"Yes\",'TSA Input'!J313=\"Contingent\"),'TSA Input'!I313,\"\"))","v":""},{"$f":"IF('TSA Input'!J313=\"\",\"\",IF(OR('TSA Input'!J313=\"Yes\",'TSA Input'!J313=\"Contingent\"),'TSA Input'!C313,\"\"))","v":""},{"$f":"IF('TSA Input'!J313=\"\",\"\",IF(OR('TSA Input'!J313=\"Yes\",'TSA Input'!J313=\"Contingent\"),'TSA Input'!D313,\"\"))","v":""},{"$f":"IF('TSA Input'!J313=\"\",\"\",IF(OR('TSA Input'!J313=\"Yes\",'TSA Input'!J313=\"Contingent\"),'TSA Input'!G313,\"\"))","v":""},{"$f":"IF('TSA Input'!J313=\"\",\"\",IF(OR('TSA Input'!J313=\"Yes\",'TSA Input'!J313=\"Contingent\"),'TSA Input'!F313,\"\"))","v":""},"",{"$f":"IF('TSA Input'!J313=\"\",\"\",IF(OR('TSA Input'!J313=\"Yes\",'TSA Input'!J313=\"Contingent\"),'TSA Input'!D313,\"\"))","v":""},{"$f":"IF('TSA Input'!J313=\"\",\"\",IF(OR('TSA Input'!J313=\"Yes\",'TSA Input'!J313=\"Contingent\"),'TSA Input'!G313,\"\"))","v":""},{"$f":"IF('TSA Input'!J313=\"\",\"\",IF(OR('TSA Input'!J313=\"Yes\",'TSA Input'!J313=\"Contingent\"),'TSA Input'!F313,\"\"))","v":""},"","Required","Required"]
["",null,{"$f":"IF('TSA Input'!J314=\"\",\"\",IF(OR('TSA Input'!J314=\"Yes\",'TSA Input'!J314=\"Contingent\"),'TSA Input'!B314,\"Ineligible\"))","v":""},{"$f":"IF('TSA Input'!J314=\"\",\"\",IF(OR('TSA Input'!J314=\"Yes\",'TSA Input'!J314=\"Contingent\"),'TSA Input'!I314,\"\"))","v":""},{"$f":"IF('TSA Input'!J314=\"\",\"\",IF(OR('TSA Input'!J314=\"Yes\",'TSA Input'!J314=\"Contingent\"),'TSA Input'!C314,\"\"))","v":""},{"$f":"IF('TSA Input'!J314=\"\",\"\",IF(OR('TSA Input'!J314=\"Yes\",'TSA Input'!J314=\"Contingent\"),'TSA Input'!D314,\"\"))","v":""},{"$f":"IF('TSA Input'!J314=\"\",\"\",IF(OR('TSA Input'!J314=\"Yes\",'TSA Input'!J314=\"Contingent\"),'TSA Input'!G314,\"\"))","v":""},{"$f":"IF('TSA Input'!J314=\"\",\"\",IF(OR('TSA Input'!J314=\"Yes\",'TSA Input'!J314=\"Contingent\"),'TSA Input'!F314,\"\"))","v":""},"",{"$f":"IF('TSA Input'!J314=\"\",\"\",IF(OR('TSA Input'!J314=\"Yes\",'TSA Input'!J314=\"Contingent\"),'TSA Input'!D314,\"\"))","v":""},{"$f":"IF('TSA Input'!J314=\"\",\"\",IF(OR('TSA Input'!J314=\"Yes\",'TSA Input'!J314=\"Contingent\"),'TSA Input'!G314,\"\"))","v":""},{"$f":"IF('TSA Input'!J314=\"\",\"\",IF(OR('TSA Input'!J314=\"Yes\",'TSA Input'!J314=\"Contingent\"),'TSA Input'!F314,\"\"))","v":""},"","Required","Required"]
["",null,{"$f":"IF('TSA Input'!J315=\"\",\"\",IF(OR('TSA Input'!J315=\"Yes\",'TSA Input'!J315=\"Contingent\"),'TSA Input'!B315,\"Ineligible\"))","v":""},{"$f":"IF('TSA Input'!J315=\"\",\"\",IF(OR('TSA Input'!J315=\"Yes\",'TSA Input'!J315=\"Contingent\"),'TSA Input'!I315,\"\"))","v":""},{"$f":"IF('TSA Input'!J315=\"\",\"\",IF(OR('TSA Input'!J315=\"Yes\",'TSA Input'!J315=\"Contingent\"),'TSA Input'!C315,\"\"))","v":""},{"$f":"IF('TSA Input'!J315=\"\",\"\",IF(OR('TSA Input'!J315=\"Yes\",'TSA Input'!J315=\"Contingent\"),'TSA Input'!D315,\"\"))","v":""},{"$f":"IF('TSA Input'!J315=\"\",\"\",IF(OR('TSA Input'!J315=\"Yes\",'TSA Input'!J315=\"Contingent\"),'TSA Input'!G315,\"\"))","v":""},{"$f":"IF('TSA Input'!J315=\"\",\"\",IF(OR('TSA Input'!J315=\"Yes\",'TSA Input'!J315=\"Contingent\"),'TSA Input'!F315,\"\"))","v":""},"",{"$f":"IF('TSA Input'!J315=\"\",\"\",IF(OR('TSA Input'!J315=\"Yes\",'TSA Input'!J315=\"Contingent\"),'TSA Input'!D315,\"\"))","v":""},{"$f":"IF('TSA Input'!J315=\"\",\"\",IF(OR('TSA Input'!J315=\"Yes\",'TSA Input'!J315=\"Contingent\"),'TSA Input'!G315,\"\"))","v":""},{"$f":"IF('TSA Input'!J315=\"\",\"\",IF(OR('TSA Input'!J315=\"Yes\",'TSA Input'!J315=\"Contingent\"),'TSA Input'!F315,\"\"))","v":""},"","Required","Required"]
["",null,{"$f":"IF('TSA Input'!J316=\"\",\"\",IF(OR('TSA Input'!J316=\"Yes\",'TSA Input'!J316=\"Contingent\"),'TSA Input'!B316,\"Ineligible\"))","v":""},{"$f":"IF('TSA Input'!J316=\"\",\"\",IF(OR('TSA Input'!J316=\"Yes\",'TSA Input'!J316=\"Contingent\"),'TSA Input'!I316,\"\"))","v":""},{"$f":"IF('TSA Input'!J316=\"\",\"\",IF(OR('TSA Input'!J316=\"Yes\",'TSA Input'!J316=\"Contingent\"),'TSA Input'!C316,\"\"))","v":""},{"$f":"IF('TSA Input'!J316=\"\",\"\",IF(OR('TSA Input'!J316=\"Yes\",'TSA Input'!J316=\"Contingent\"),'TSA Input'!D316,\"\"))","v":""},{"$f":"IF('TSA Input'!J316=\"\",\"\",IF(OR('TSA Input'!J316=\"Yes\",'TSA Input'!J316=\"Contingent\"),'TSA Input'!G316,\"\"))","v":""},{"$f":"IF('TSA Input'!J316=\"\",\"\",IF(OR('TSA Input'!J316=\"Yes\",'TSA Input'!J316=\"Contingent\"),'TSA Input'!F316,\"\"))","v":""},"",{"$f":"IF('TSA Input'!J316=\"\",\"\",IF(OR('TSA Input'!J316=\"Yes\",'TSA Input'!J316=\"Contingent\"),'TSA Input'!D316,\"\"))","v":""},{"$f":"IF('TSA Input'!J316=\"\",\"\",IF(OR('TSA Input'!J316=\"Yes\",'TSA Input'!J316=\"Contingent\"),'TSA Input'!G316,\"\"))","v":""},{"$f":"IF('TSA Input'!J316=\"\",\"\",IF(OR('TSA Input'!J316=\"Yes\",'TSA Input'!J316=\"Contingent\"),'TSA Input'!F316,\"\"))","v":""},"","Required","Required"]
["",null,{"$f":"IF('TSA Input'!J317=\"\",\"\",IF(OR('TSA Input'!J317=\"Yes\",'TSA Input'!J317=\"Contingent\"),'TSA Input'!B317,\"Ineligible\"))","v":""},{"$f":"IF('TSA Input'!J317=\"\",\"\",IF(OR('TSA Input'!J317=\"Yes\",'TSA Input'!J317=\"Contingent\"),'TSA Input'!I317,\"\"))","v":""},{"$f":"IF('TSA Input'!J317=\"\",\"\",IF(OR('TSA Input'!J317=\"Yes\",'TSA Input'!J317=\"Contingent\"),'TSA Input'!C317,\"\"))","v":""},{"$f":"IF('TSA Input'!J317=\"\",\"\",IF(OR('TSA Input'!J317=\"Yes\",'TSA Input'!J317=\"Contingent\"),'TSA Input'!D317,\"\"))","v":""},{"$f":"IF('TSA Input'!J317=\"\",\"\",IF(OR('TSA Input'!J317=\"Yes\",'TSA Input'!J317=\"Contingent\"),'TSA Input'!G317,\"\"))","v":""},{"$f":"IF('TSA Input'!J317=\"\",\"\",IF(OR('TSA Input'!J317=\"Yes\",'TSA Input'!J317=\"Contingent\"),'TSA Input'!F317,\"\"))","v":""},"",{"$f":"IF('TSA Input'!J317=\"\",\"\",IF(OR('TSA Input'!J317=\"Yes\",'TSA Input'!J317=\"Contingent\"),'TSA Input'!D317,\"\"))","v":""},{"$f":"IF('TSA Input'!J317=\"\",\"\",IF(OR('TSA Input'!J317=\"Yes\",'TSA Input'!J317=\"Contingent\"),'TSA Input'!G317,\"\"))","v":""},{"$f":"IF('TSA Input'!J317=\"\",\"\",IF(OR('TSA Input'!J317=\"Yes\",'TSA Input'!J317=\"Contingent\"),'TSA Input'!F317,\"\"))","v":""},"","Required","Required"]
["",null,{"$f":"IF('TSA Input'!J318=\"\",\"\",IF(OR('TSA Input'!J318=\"Yes\",'TSA Input'!J318=\"Contingent\"),'TSA Input'!B318,\"Ineligible\"))","v":""},{"$f":"IF('TSA Input'!J318=\"\",\"\",IF(OR('TSA Input'!J318=\"Yes\",'TSA Input'!J318=\"Contingent\"),'TSA Input'!I318,\"\"))","v":""},{"$f":"IF('TSA Input'!J318=\"\",\"\",IF(OR('TSA Input'!J318=\"Yes\",'TSA Input'!J318=\"Contingent\"),'TSA Input'!C318,\"\"))","v":""},{"$f":"IF('TSA Input'!J318=\"\",\"\",IF(OR('TSA Input'!J318=\"Yes\",'TSA Input'!J318=\"Contingent\"),'TSA Input'!D318,\"\"))","v":""},{"$f":"IF('TSA Input'!J318=\"\",\"\",IF(OR('TSA Input'!J318=\"Yes\",'TSA Input'!J318=\"Contingent\"),'TSA Input'!G318,\"\"))","v":""},{"$f":"IF('TSA Input'!J318=\"\",\"\",IF(OR('TSA Input'!J318=\"Yes\",'TSA Input'!J318=\"Contingent\"),'TSA Input'!F318,\"\"))","v":""},"",{"$f":"IF('TSA Input'!J318=\"\",\"\",IF(OR('TSA Input'!J318=\"Yes\",'TSA Input'!J318=\"Contingent\"),'TSA Input'!D318,\"\"))","v":""},{"$f":"IF('TSA Input'!J318=\"\",\"\",IF(OR('TSA Input'!J318=\"Yes\",'TSA Input'!J318=\"Contingent\"),'TSA Input'!G318,\"\"))","v":""},{"$f":"IF('TSA Input'!J318=\"\",\"\",IF(OR('TSA Input'!J318=\"Yes\",'TSA Input'!J318=\"Contingent\"),'TSA Input'!F318,\"\"))","v":""},"","Required","Required"]
["",null,{"$f":"IF('TSA Input'!J319=\"\",\"\",IF(OR('TSA Input'!J319=\"Yes\",'TSA Input'!J319=\"Contingent\"),'TSA Input'!B319,\"Ineligible\"))","v":""},{"$f":"IF('TSA Input'!J319=\"\",\"\",IF(OR('TSA Input'!J319=\"Yes\",'TSA Input'!J319=\"Contingent\"),'TSA Input'!I319,\"\"))","v":""},{"$f":"IF('TSA Input'!J319=\"\",\"\",IF(OR('TSA Input'!J319=\"Yes\",'TSA Input'!J319=\"Contingent\"),'TSA Input'!C319,\"\"))","v":""},{"$f":"IF('TSA Input'!J319=\"\",\"\",IF(OR('TSA Input'!J319=\"Yes\",'TSA Input'!J319=\"Contingent\"),'TSA Input'!D319,\"\"))","v":""},{"$f":"IF('TSA Input'!J319=\"\",\"\",IF(OR('TSA Input'!J319=\"Yes\",'TSA Input'!J319=\"Contingent\"),'TSA Input'!G319,\"\"))","v":""},{"$f":"IF('TSA Input'!J319=\"\",\"\",IF(OR('TSA Input'!J319=\"Yes\",'TSA Input'!J319=\"Contingent\"),'TSA Input'!F319,\"\"))","v":""},"",{"$f":"IF('TSA Input'!J319=\"\",\"\",IF(OR('TSA Input'!J319=\"Yes\",'TSA Input'!J319=\"Contingent\"),'TSA Input'!D319,\"\"))","v":""},{"$f":"IF('TSA Input'!J319=\"\",\"\",IF(OR('TSA Input'!J319=\"Yes\",'TSA Input'!J319=\"Contingent\"),'TSA Input'!G319,\"\"))","v":""},{"$f":"IF('TSA Input'!J319=\"\",\"\",IF(OR('TSA Input'!J319=\"Yes\",'TSA Input'!J319=\"Contingent\"),'TSA Input'!F319,\"\"))","v":""},"","Required","Required"]
["",null,{"$f":"IF('TSA Input'!J320=\"\",\"\",IF(OR('TSA Input'!J320=\"Yes\",'TSA Input'!J320=\"Contingent\"),'TSA Input'!B320,\"Ineligible\"))","v":""},{"$f":"IF('TSA Input'!J320=\"\",\"\",IF(OR('TSA Input'!J320=\"Yes\",'TSA Input'!J320=\"Contingent\"),'TSA Input'!I320,\"\"))","v":""},{"$f":"IF('TSA Input'!J320=\"\",\"\",IF(OR('TSA Input'!J320=\"Yes\",'TSA Input'!J320=\"Contingent\"),'TSA Input'!C320,\"\"))","v":""},{"$f":"IF('TSA Input'!J320=\"\",\"\",IF(OR('TSA Input'!J320=\"Yes\",'TSA Input'!J320=\"Contingent\"),'TSA Input'!D320,\"\"))","v":""},{"$f":"IF('TSA Input'!J320=\"\",\"\",IF(OR('TSA Input'!J320=\"Yes\",'TSA Input'!J320=\"Contingent\"),'TSA Input'!G320,\"\"))","v":""},{"$f":"IF('TSA Input'!J320=\"\",\"\",IF(OR('TSA Input'!J320=\"Yes\",'TSA Input'!J320=\"Contingent\"),'TSA Input'!F320,\"\"))","v":""},"",{"$f":"IF('TSA Input'!J320=\"\",\"\",IF(OR('TSA Input'!J320=\"Yes\",'TSA Input'!J320=\"Contingent\"),'TSA Input'!D320,\"\"))","v":""},{"$f":"IF('TSA Input'!J320=\"\",\"\",IF(OR('TSA Input'!J320=\"Yes\",'TSA Input'!J320=\"Contingent\"),'TSA Input'!G320,\"\"))","v":""},{"$f":"IF('TSA Input'!J320=\"\",\"\",IF(OR('TSA Input'!J320=\"Yes\",'TSA Input'!J320=\"Contingent\"),'TSA Input'!F320,\"\"))","v":""},"","Required","Required"]
["",null,{"$f":"IF('TSA Input'!J321=\"\",\"\",IF(OR('TSA Input'!J321=\"Yes\",'TSA Input'!J321=\"Contingent\"),'TSA Input'!B321,\"Ineligible\"))","v":""},{"$f":"IF('TSA Input'!J321=\"\",\"\",IF(OR('TSA Input'!J321=\"Yes\",'TSA Input'!J321=\"Contingent\"),'TSA Input'!I321,\"\"))","v":""},{"$f":"IF('TSA Input'!J321=\"\",\"\",IF(OR('TSA Input'!J321=\"Yes\",'TSA Input'!J321=\"Contingent\"),'TSA Input'!C321,\"\"))","v":""},{"$f":"IF('TSA Input'!J321=\"\",\"\",IF(OR('TSA Input'!J321=\"Yes\",'TSA Input'!J321=\"Contingent\"),'TSA Input'!D321,\"\"))","v":""},{"$f":"IF('TSA Input'!J321=\"\",\"\",IF(OR('TSA Input'!J321=\"Yes\",'TSA Input'!J321=\"Contingent\"),'TSA Input'!G321,\"\"))","v":""},{"$f":"IF('TSA Input'!J321=\"\",\"\",IF(OR('TSA Input'!J321=\"Yes\",'TSA Input'!J321=\"Contingent\"),'TSA Input'!F321,\"\"))","v":""},"",{"$f":"IF('TSA Input'!J321=\"\",\"\",IF(OR('TSA Input'!J321=\"Yes\",'TSA Input'!J321=\"Contingent\"),'TSA Input'!D321,\"\"))","v":""},{"$f":"IF('TSA Input'!J321=\"\",\"\",IF(OR('TSA Input'!J321=\"Yes\",'TSA Input'!J321=\"Contingent\"),'TSA Input'!G321,\"\"))","v":""},{"$f":"IF('TSA Input'!J321=\"\",\"\",IF(OR('TSA Input'!J321=\"Yes\",'TSA Input'!J321=\"Contingent\"),'TSA Input'!F321,\"\"))","v":""},"","Required","Required"]
["",null,{"$f":"IF('TSA Input'!J322=\"\",\"\",IF(OR('TSA Input'!J322=\"Yes\",'TSA Input'!J322=\"Contingent\"),'TSA Input'!B322,\"Ineligible\"))","v":""},{"$f":"IF('TSA Input'!J322=\"\",\"\",IF(OR('TSA Input'!J322=\"Yes\",'TSA Input'!J322=\"Contingent\"),'TSA Input'!I322,\"\"))","v":""},{"$f":"IF('TSA Input'!J322=\"\",\"\",IF(OR('TSA Input'!J322=\"Yes\",'TSA Input'!J322=\"Contingent\"),'TSA Input'!C322,\"\"))","v":""},{"$f":"IF('TSA Input'!J322=\"\",\"\",IF(OR('TSA Input'!J322=\"Yes\",'TSA Input'!J322=\"Contingent\"),'TSA Input'!D322,\"\"))","v":""},{"$f":"IF('TSA Input'!J322=\"\",\"\",IF(OR('TSA Input'!J322=\"Yes\",'TSA Input'!J322=\"Contingent\"),'TSA Input'!G322,\"\"))","v":""},{"$f":"IF('TSA Input'!J322=\"\",\"\",IF(OR('TSA Input'!J322=\"Yes\",'TSA Input'!J322=\"Contingent\"),'TSA Input'!F322,\"\"))","v":""},"",{"$f":"IF('TSA Input'!J322=\"\",\"\",IF(OR('TSA Input'!J322=\"Yes\",'TSA Input'!J322=\"Contingent\"),'TSA Input'!D322,\"\"))","v":""},{"$f":"IF('TSA Input'!J322=\"\",\"\",IF(OR('TSA Input'!J322=\"Yes\",'TSA Input'!J322=\"Contingent\"),'TSA Input'!G322,\"\"))","v":""},{"$f":"IF('TSA Input'!J322=\"\",\"\",IF(OR('TSA Input'!J322=\"Yes\",'TSA Input'!J322=\"Contingent\"),'TSA Input'!F322,\"\"))","v":""},"","Required","Required"]
["",null,{"$f":"IF('TSA Input'!J323=\"\",\"\",IF(OR('TSA Input'!J323=\"Yes\",'TSA Input'!J323=\"Contingent\"),'TSA Input'!B323,\"Ineligible\"))","v":""},{"$f":"IF('TSA Input'!J323=\"\",\"\",IF(OR('TSA Input'!J323=\"Yes\",'TSA Input'!J323=\"Contingent\"),'TSA Input'!I323,\"\"))","v":""},{"$f":"IF('TSA Input'!J323=\"\",\"\",IF(OR('TSA Input'!J323=\"Yes\",'TSA Input'!J323=\"Contingent\"),'TSA Input'!C323,\"\"))","v":""},{"$f":"IF('TSA Input'!J323=\"\",\"\",IF(OR('TSA Input'!J323=\"Yes\",'TSA Input'!J323=\"Contingent\"),'TSA Input'!D323,\"\"))","v":""},{"$f":"IF('TSA Input'!J323=\"\",\"\",IF(OR('TSA Input'!J323=\"Yes\",'TSA Input'!J323=\"Contingent\"),'TSA Input'!G323,\"\"))","v":""},{"$f":"IF('TSA Input'!J323=\"\",\"\",IF(OR('TSA Input'!J323=\"Yes\",'TSA Input'!J323=\"Contingent\"),'TSA Input'!F323,\"\"))","v":""},"",{"$f":"IF('TSA Input'!J323=\"\",\"\",IF(OR('TSA Input'!J323=\"Yes\",'TSA Input'!J323=\"Contingent\"),'TSA Input'!D323,\"\"))","v":""},{"$f":"IF('TSA Input'!J323=\"\",\"\",IF(OR('TSA Input'!J323=\"Yes\",'TSA Input'!J323=\"Contingent\"),'TSA Input'!G323,\"\"))","v":""},{"$f":"IF('TSA Input'!J323=\"\",\"\",IF(OR('TSA Input'!J323=\"Yes\",'TSA Input'!J323=\"Contingent\"),'TSA Input'!F323,\"\"))","v":""},"","Required","Required"]
["",null,{"$f":"IF('TSA Input'!J324=\"\",\"\",IF(OR('TSA Input'!J324=\"Yes\",'TSA Input'!J324=\"Contingent\"),'TSA Input'!B324,\"Ineligible\"))","v":""},{"$f":"IF('TSA Input'!J324=\"\",\"\",IF(OR('TSA Input'!J324=\"Yes\",'TSA Input'!J324=\"Contingent\"),'TSA Input'!I324,\"\"))","v":""},{"$f":"IF('TSA Input'!J324=\"\",\"\",IF(OR('TSA Input'!J324=\"Yes\",'TSA Input'!J324=\"Contingent\"),'TSA Input'!C324,\"\"))","v":""},{"$f":"IF('TSA Input'!J324=\"\",\"\",IF(OR('TSA Input'!J324=\"Yes\",'TSA Input'!J324=\"Contingent\"),'TSA Input'!D324,\"\"))","v":""},{"$f":"IF('TSA Input'!J324=\"\",\"\",IF(OR('TSA Input'!J324=\"Yes\",'TSA Input'!J324=\"Contingent\"),'TSA Input'!G324,\"\"))","v":""},{"$f":"IF('TSA Input'!J324=\"\",\"\",IF(OR('TSA Input'!J324=\"Yes\",'TSA Input'!J324=\"Contingent\"),'TSA Input'!F324,\"\"))","v":""},{"$f":"IF($C362=\"\",\"\",SUM(F362:H362))","v":""},{"$f":"IF('TSA Input'!J324=\"\",\"\",IF(OR('TSA Input'!J324=\"Yes\",'TSA Input'!J324=\"Contingent\"),'TSA Input'!D324,\"\"))","v":""},{"$f":"IF('TSA Input'!J324=\"\",\"\",IF(OR('TSA Input'!J324=\"Yes\",'TSA Input'!J324=\"Contingent\"),'TSA Input'!G324,\"\"))","v":""},{"$f":"IF('TSA Input'!J324=\"\",\"\",IF(OR('TSA Input'!J324=\"Yes\",'TSA Input'!J324=\"Contingent\"),'TSA Input'!F324,\"\"))","v":""},{"$f":"IF($C362=\"\",\"\",SUM(J362:L362))","v":""},"Required","Required"]
["",null,{"$f":"IF('TSA Input'!J325=\"\",\"\",IF(OR('TSA Input'!J325=\"Yes\",'TSA Input'!J325=\"Contingent\"),'TSA Input'!B325,\"Ineligible\"))","v":""},{"$f":"IF('TSA Input'!J325=\"\",\"\",IF(OR('TSA Input'!J325=\"Yes\",'TSA Input'!J325=\"Contingent\"),'TSA Input'!I325,\"\"))","v":""},{"$f":"IF('TSA Input'!J325=\"\",\"\",IF(OR('TSA Input'!J325=\"Yes\",'TSA Input'!J325=\"Contingent\"),'TSA Input'!C325,\"\"))","v":""},{"$f":"IF('TSA Input'!J325=\"\",\"\",IF(OR('TSA Input'!J325=\"Yes\",'TSA Input'!J325=\"Contingent\"),'TSA Input'!D325,\"\"))","v":""},{"$f":"IF('TSA Input'!J325=\"\",\"\",IF(OR('TSA Input'!J325=\"Yes\",'TSA Input'!J325=\"Contingent\"),'TSA Input'!G325,\"\"))","v":""},{"$f":"IF('TSA Input'!J325=\"\",\"\",IF(OR('TSA Input'!J325=\"Yes\",'TSA Input'!J325=\"Contingent\"),'TSA Input'!F325,\"\"))","v":""},"",{"$f":"IF('TSA Input'!J325=\"\",\"\",IF(OR('TSA Input'!J325=\"Yes\",'TSA Input'!J325=\"Contingent\"),'TSA Input'!D325,\"\"))","v":""},{"$f":"IF('TSA Input'!J325=\"\",\"\",IF(OR('TSA Input'!J325=\"Yes\",'TSA Input'!J325=\"Contingent\"),'TSA Input'!G325,\"\"))","v":""},{"$f":"IF('TSA Input'!J325=\"\",\"\",IF(OR('TSA Input'!J325=\"Yes\",'TSA Input'!J325=\"Contingent\"),'TSA Input'!F325,\"\"))","v":""},"","Required","Required"]
["",null,{"$f":"IF('TSA Input'!J326=\"\",\"\",IF(OR('TSA Input'!J326=\"Yes\",'TSA Input'!J326=\"Contingent\"),'TSA Input'!B326,\"Ineligible\"))","v":""},{"$f":"IF('TSA Input'!J326=\"\",\"\",IF(OR('TSA Input'!J326=\"Yes\",'TSA Input'!J326=\"Contingent\"),'TSA Input'!I326,\"\"))","v":""},{"$f":"IF('TSA Input'!J326=\"\",\"\",IF(OR('TSA Input'!J326=\"Yes\",'TSA Input'!J326=\"Contingent\"),'TSA Input'!C326,\"\"))","v":""},{"$f":"IF('TSA Input'!J326=\"\",\"\",IF(OR('TSA Input'!J326=\"Yes\",'TSA Input'!J326=\"Contingent\"),'TSA Input'!D326,\"\"))","v":""},{"$f":"IF('TSA Input'!J326=\"\",\"\",IF(OR('TSA Input'!J326=\"Yes\",'TSA Input'!J326=\"Contingent\"),'TSA Input'!G326,\"\"))","v":""},{"$f":"IF('TSA Input'!J326=\"\",\"\",IF(OR('TSA Input'!J326=\"Yes\",'TSA Input'!J326=\"Contingent\"),'TSA Input'!F326,\"\"))","v":""},"",{"$f":"IF('TSA Input'!J326=\"\",\"\",IF(OR('TSA Input'!J326=\"Yes\",'TSA Input'!J326=\"Contingent\"),'TSA Input'!D326,\"\"))","v":""},{"$f":"IF('TSA Input'!J326=\"\",\"\",IF(OR('TSA Input'!J326=\"Yes\",'TSA Input'!J326=\"Contingent\"),'TSA Input'!G326,\"\"))","v":""},{"$f":"IF('TSA Input'!J326=\"\",\"\",IF(OR('TSA Input'!J326=\"Yes\",'TSA Input'!J326=\"Contingent\"),'TSA Input'!F326,\"\"))","v":""},"","Required","Required"]
["",null,{"$f":"IF('TSA Input'!J327=\"\",\"\",IF(OR('TSA Input'!J327=\"Yes\",'TSA Input'!J327=\"Contingent\"),'TSA Input'!B327,\"Ineligible\"))","v":""},{"$f":"IF('TSA Input'!J327=\"\",\"\",IF(OR('TSA Input'!J327=\"Yes\",'TSA Input'!J327=\"Contingent\"),'TSA Input'!I327,\"\"))","v":""},{"$f":"IF('TSA Input'!J327=\"\",\"\",IF(OR('TSA Input'!J327=\"Yes\",'TSA Input'!J327=\"Contingent\"),'TSA Input'!C327,\"\"))","v":""},{"$f":"IF('TSA Input'!J327=\"\",\"\",IF(OR('TSA Input'!J327=\"Yes\",'TSA Input'!J327=\"Contingent\"),'TSA Input'!D327,\"\"))","v":""},{"$f":"IF('TSA Input'!J327=\"\",\"\",IF(OR('TSA Input'!J327=\"Yes\",'TSA Input'!J327=\"Contingent\"),'TSA Input'!G327,\"\"))","v":""},{"$f":"IF('TSA Input'!J327=\"\",\"\",IF(OR('TSA Input'!J327=\"Yes\",'TSA Input'!J327=\"Contingent\"),'TSA Input'!F327,\"\"))","v":""},"",{"$f":"IF('TSA Input'!J327=\"\",\"\",IF(OR('TSA Input'!J327=\"Yes\",'TSA Input'!J327=\"Contingent\"),'TSA Input'!D327,\"\"))","v":""},{"$f":"IF('TSA Input'!J327=\"\",\"\",IF(OR('TSA Input'!J327=\"Yes\",'TSA Input'!J327=\"Contingent\"),'TSA Input'!G327,\"\"))","v":""},{"$f":"IF('TSA Input'!J327=\"\",\"\",IF(OR('TSA Input'!J327=\"Yes\",'TSA Input'!J327=\"Contingent\"),'TSA Input'!F327,\"\"))","v":""},"","Required","Required"]
["",null,{"$f":"IF('TSA Input'!J328=\"\",\"\",IF(OR('TSA Input'!J328=\"Yes\",'TSA Input'!J328=\"Contingent\"),'TSA Input'!B328,\"Ineligible\"))","v":""},{"$f":"IF('TSA Input'!J328=\"\",\"\",IF(OR('TSA Input'!J328=\"Yes\",'TSA Input'!J328=\"Contingent\"),'TSA Input'!I328,\"\"))","v":""},{"$f":"IF('TSA Input'!J328=\"\",\"\",IF(OR('TSA Input'!J328=\"Yes\",'TSA Input'!J328=\"Contingent\"),'TSA Input'!C328,\"\"))","v":""},{"$f":"IF('TSA Input'!J328=\"\",\"\",IF(OR('TSA Input'!J328=\"Yes\",'TSA Input'!J328=\"Contingent\"),'TSA Input'!D328,\"\"))","v":""},{"$f":"IF('TSA Input'!J328=\"\",\"\",IF(OR('TSA Input'!J328=\"Yes\",'TSA Input'!J328=\"Contingent\"),'TSA Input'!G328,\"\"))","v":""},{"$f":"IF('TSA Input'!J328=\"\",\"\",IF(OR('TSA Input'!J328=\"Yes\",'TSA Input'!J328=\"Contingent\"),'TSA Input'!F328,\"\"))","v":""},"",{"$f":"IF('TSA Input'!J328=\"\",\"\",IF(OR('TSA Input'!J328=\"Yes\",'TSA Input'!J328=\"Contingent\"),'TSA Input'!D328,\"\"))","v":""},{"$f":"IF('TSA Input'!J328=\"\",\"\",IF(OR('TSA Input'!J328=\"Yes\",'TSA Input'!J328=\"Contingent\"),'TSA Input'!G328,\"\"))","v":""},{"$f":"IF('TSA Input'!J328=\"\",\"\",IF(OR('TSA Input'!J328=\"Yes\",'TSA Input'!J328=\"Contingent\"),'TSA Input'!F328,\"\"))","v":""},"","Required","Required"]
["",null,{"$f":"IF('TSA Input'!J329=\"\",\"\",IF(OR('TSA Input'!J329=\"Yes\",'TSA Input'!J329=\"Contingent\"),'TSA Input'!B329,\"Ineligible\"))","v":""},{"$f":"IF('TSA Input'!J329=\"\",\"\",IF(OR('TSA Input'!J329=\"Yes\",'TSA Input'!J329=\"Contingent\"),'TSA Input'!I329,\"\"))","v":""},{"$f":"IF('TSA Input'!J329=\"\",\"\",IF(OR('TSA Input'!J329=\"Yes\",'TSA Input'!J329=\"Contingent\"),'TSA Input'!C329,\"\"))","v":""},{"$f":"IF('TSA Input'!J329=\"\",\"\",IF(OR('TSA Input'!J329=\"Yes\",'TSA Input'!J329=\"Contingent\"),'TSA Input'!D329,\"\"))","v":""},{"$f":"IF('TSA Input'!J329=\"\",\"\",IF(OR('TSA Input'!J329=\"Yes\",'TSA Input'!J329=\"Contingent\"),'TSA Input'!G329,\"\"))","v":""},{"$f":"IF('TSA Input'!J329=\"\",\"\",IF(OR('TSA Input'!J329=\"Yes\",'TSA Input'!J329=\"Contingent\"),'TSA Input'!F329,\"\"))","v":""},"",{"$f":"IF('TSA Input'!J329=\"\",\"\",IF(OR('TSA Input'!J329=\"Yes\",'TSA Input'!J329=\"Contingent\"),'TSA Input'!D329,\"\"))","v":""},{"$f":"IF('TSA Input'!J329=\"\",\"\",IF(OR('TSA Input'!J329=\"Yes\",'TSA Input'!J329=\"Contingent\"),'TSA Input'!G329,\"\"))","v":""},{"$f":"IF('TSA Input'!J329=\"\",\"\",IF(OR('TSA Input'!J329=\"Yes\",'TSA Input'!J329=\"Contingent\"),'TSA Input'!F329,\"\"))","v":""},"","Required","Required"]
["",null,{"$f":"IF('TSA Input'!J330=\"\",\"\",IF(OR('TSA Input'!J330=\"Yes\",'TSA Input'!J330=\"Contingent\"),'TSA Input'!B330,\"Ineligible\"))","v":""},{"$f":"IF('TSA Input'!J330=\"\",\"\",IF(OR('TSA Input'!J330=\"Yes\",'TSA Input'!J330=\"Contingent\"),'TSA Input'!I330,\"\"))","v":""},{"$f":"IF('TSA Input'!J330=\"\",\"\",IF(OR('TSA Input'!J330=\"Yes\",'TSA Input'!J330=\"Contingent\"),'TSA Input'!C330,\"\"))","v":""},{"$f":"IF('TSA Input'!J330=\"\",\"\",IF(OR('TSA Input'!J330=\"Yes\",'TSA Input'!J330=\"Contingent\"),'TSA Input'!D330,\"\"))","v":""},{"$f":"IF('TSA Input'!J330=\"\",\"\",IF(OR('TSA Input'!J330=\"Yes\",'TSA Input'!J330=\"Contingent\"),'TSA Input'!G330,\"\"))","v":""},{"$f":"IF('TSA Input'!J330=\"\",\"\",IF(OR('TSA Input'!J330=\"Yes\",'TSA Input'!J330=\"Contingent\"),'TSA Input'!F330,\"\"))","v":""},"",{"$f":"IF('TSA Input'!J330=\"\",\"\",IF(OR('TSA Input'!J330=\"Yes\",'TSA Input'!J330=\"Contingent\"),'TSA Input'!D330,\"\"))","v":""},{"$f":"IF('TSA Input'!J330=\"\",\"\",IF(OR('TSA Input'!J330=\"Yes\",'TSA Input'!J330=\"Contingent\"),'TSA Input'!G330,\"\"))","v":""},{"$f":"IF('TSA Input'!J330=\"\",\"\",IF(OR('TSA Input'!J330=\"Yes\",'TSA Input'!J330=\"Contingent\"),'TSA Input'!F330,\"\"))","v":""},"","Required","Required"]
["",null,{"$f":"IF('TSA Input'!J331=\"\",\"\",IF(OR('TSA Input'!J331=\"Yes\",'TSA Input'!J331=\"Contingent\"),'TSA Input'!B331,\"Ineligible\"))","v":""},{"$f":"IF('TSA Input'!J331=\"\",\"\",IF(OR('TSA Input'!J331=\"Yes\",'TSA Input'!J331=\"Contingent\"),'TSA Input'!I331,\"\"))","v":""},{"$f":"IF('TSA Input'!J331=\"\",\"\",IF(OR('TSA Input'!J331=\"Yes\",'TSA Input'!J331=\"Contingent\"),'TSA Input'!C331,\"\"))","v":""},{"$f":"IF('TSA Input'!J331=\"\",\"\",IF(OR('TSA Input'!J331=\"Yes\",'TSA Input'!J331=\"Contingent\"),'TSA Input'!D331,\"\"))","v":""},{"$f":"IF('TSA Input'!J331=\"\",\"\",IF(OR('TSA Input'!J331=\"Yes\",'TSA Input'!J331=\"Contingent\"),'TSA Input'!G331,\"\"))","v":""},{"$f":"IF('TSA Input'!J331=\"\",\"\",IF(OR('TSA Input'!J331=\"Yes\",'TSA Input'!J331=\"Contingent\"),'TSA Input'!F331,\"\"))","v":""},"",{"$f":"IF('TSA Input'!J331=\"\",\"\",IF(OR('TSA Input'!J331=\"Yes\",'TSA Input'!J331=\"Contingent\"),'TSA Input'!D331,\"\"))","v":""},{"$f":"IF('TSA Input'!J331=\"\",\"\",IF(OR('TSA Input'!J331=\"Yes\",'TSA Input'!J331=\"Contingent\"),'TSA Input'!G331,\"\"))","v":""},{"$f":"IF('TSA Input'!J331=\"\",\"\",IF(OR('TSA Input'!J331=\"Yes\",'TSA Input'!J331=\"Contingent\"),'TSA Input'!F331,\"\"))","v":""},"","Required","Required"]
["",null,{"$f":"IF('TSA Input'!J332=\"\",\"\",IF(OR('TSA Input'!J332=\"Yes\",'TSA Input'!J332=\"Contingent\"),'TSA Input'!B332,\"Ineligible\"))","v":""},{"$f":"IF('TSA Input'!J332=\"\",\"\",IF(OR('TSA Input'!J332=\"Yes\",'TSA Input'!J332=\"Contingent\"),'TSA Input'!I332,\"\"))","v":""},{"$f":"IF('TSA Input'!J332=\"\",\"\",IF(OR('TSA Input'!J332=\"Yes\",'TSA Input'!J332=\"Contingent\"),'TSA Input'!C332,\"\"))","v":""},{"$f":"IF('TSA Input'!J332=\"\",\"\",IF(OR('TSA Input'!J332=\"Yes\",'TSA Input'!J332=\"Contingent\"),'TSA Input'!D332,\"\"))","v":""},{"$f":"IF('TSA Input'!J332=\"\",\"\",IF(OR('TSA Input'!J332=\"Yes\",'TSA Input'!J332=\"Contingent\"),'TSA Input'!G332,\"\"))","v":""},{"$f":"IF('TSA Input'!J332=\"\",\"\",IF(OR('TSA Input'!J332=\"Yes\",'TSA Input'!J332=\"Contingent\"),'TSA Input'!F332,\"\"))","v":""},"",{"$f":"IF('TSA Input'!J332=\"\",\"\",IF(OR('TSA Input'!J332=\"Yes\",'TSA Input'!J332=\"Contingent\"),'TSA Input'!D332,\"\"))","v":""},{"$f":"IF('TSA Input'!J332=\"\",\"\",IF(OR('TSA Input'!J332=\"Yes\",'TSA Input'!J332=\"Contingent\"),'TSA Input'!G332,\"\"))","v":""},{"$f":"IF('TSA Input'!J332=\"\",\"\",IF(OR('TSA Input'!J332=\"Yes\",'TSA Input'!J332=\"Contingent\"),'TSA Input'!F332,\"\"))","v":""},"","Required","Required"]
["",null,{"$f":"IF('TSA Input'!J333=\"\",\"\",IF(OR('TSA Input'!J333=\"Yes\",'TSA Input'!J333=\"Contingent\"),'TSA Input'!B333,\"Ineligible\"))","v":""},{"$f":"IF('TSA Input'!J333=\"\",\"\",IF(OR('TSA Input'!J333=\"Yes\",'TSA Input'!J333=\"Contingent\"),'TSA Input'!I333,\"\"))","v":""},{"$f":"IF('TSA Input'!J333=\"\",\"\",IF(OR('TSA Input'!J333=\"Yes\",'TSA Input'!J333=\"Contingent\"),'TSA Input'!C333,\"\"))","v":""},{"$f":"IF('TSA Input'!J333=\"\",\"\",IF(OR('TSA Input'!J333=\"Yes\",'TSA Input'!J333=\"Contingent\"),'TSA Input'!D333,\"\"))","v":""},{"$f":"IF('TSA Input'!J333=\"\",\"\",IF(OR('TSA Input'!J333=\"Yes\",'TSA Input'!J333=\"Contingent\"),'TSA Input'!G333,\"\"))","v":""},{"$f":"IF('TSA Input'!J333=\"\",\"\",IF(OR('TSA Input'!J333=\"Yes\",'TSA Input'!J333=\"Contingent\"),'TSA Input'!F333,\"\"))","v":""},"",{"$f":"IF('TSA Input'!J333=\"\",\"\",IF(OR('TSA Input'!J333=\"Yes\",'TSA Input'!J333=\"Contingent\"),'TSA Input'!D333,\"\"))","v":""},{"$f":"IF('TSA Input'!J333=\"\",\"\",IF(OR('TSA Input'!J333=\"Yes\",'TSA Input'!J333=\"Contingent\"),'TSA Input'!G333,\"\"))","v":""},{"$f":"IF('TSA Input'!J333=\"\",\"\",IF(OR('TSA Input'!J333=\"Yes\",'TSA Input'!J333=\"Contingent\"),'TSA Input'!F333,\"\"))","v":""},"","Required","Required"]
["",null,{"$f":"IF('TSA Input'!J334=\"\",\"\",IF(OR('TSA Input'!J334=\"Yes\",'TSA Input'!J334=\"Contingent\"),'TSA Input'!B334,\"Ineligible\"))","v":""},{"$f":"IF('TSA Input'!J334=\"\",\"\",IF(OR('TSA Input'!J334=\"Yes\",'TSA Input'!J334=\"Contingent\"),'TSA Input'!I334,\"\"))","v":""},{"$f":"IF('TSA Input'!J334=\"\",\"\",IF(OR('TSA Input'!J334=\"Yes\",'TSA Input'!J334=\"Contingent\"),'TSA Input'!C334,\"\"))","v":""},{"$f":"IF('TSA Input'!J334=\"\",\"\",IF(OR('TSA Input'!J334=\"Yes\",'TSA Input'!J334=\"Contingent\"),'TSA Input'!D334,\"\"))","v":""},{"$f":"IF('TSA Input'!J334=\"\",\"\",IF(OR('TSA Input'!J334=\"Yes\",'TSA Input'!J334=\"Contingent\"),'TSA Input'!G334,\"\"))","v":""},{"$f":"IF('TSA Input'!J334=\"\",\"\",IF(OR('TSA Input'!J334=\"Yes\",'TSA Input'!J334=\"Contingent\"),'TSA Input'!F334,\"\"))","v":""},"",{"$f":"IF('TSA Input'!J334=\"\",\"\",IF(OR('TSA Input'!J334=\"Yes\",'TSA Input'!J334=\"Contingent\"),'TSA Input'!D334,\"\"))","v":""},{"$f":"IF('TSA Input'!J334=\"\",\"\",IF(OR('TSA Input'!J334=\"Yes\",'TSA Input'!J334=\"Contingent\"),'TSA Input'!G334,\"\"))","v":""},{"$f":"IF('TSA Input'!J334=\"\",\"\",IF(OR('TSA Input'!J334=\"Yes\",'TSA Input'!J334=\"Contingent\"),'TSA Input'!F334,\"\"))","v":""},"","Required","Required"]
["",null,{"$f":"IF('TSA Input'!J335=\"\",\"\",IF(OR('TSA Input'!J335=\"Yes\",'TSA Input'!J335=\"Contingent\"),'TSA Input'!B335,\"Ineligible\"))","v":""},{"$f":"IF('TSA Input'!J335=\"\",\"\",IF(OR('TSA Input'!J335=\"Yes\",'TSA Input'!J335=\"Contingent\"),'TSA Input'!I335,\"\"))","v":""},{"$f":"IF('TSA Input'!J335=\"\",\"\",IF(OR('TSA Input'!J335=\"Yes\",'TSA Input'!J335=\"Contingent\"),'TSA Input'!C335,\"\"))","v":""},{"$f":"IF('TSA Input'!J335=\"\",\"\",IF(OR('TSA Input'!J335=\"Yes\",'TSA Input'!J335=\"Contingent\"),'TSA Input'!D335,\"\"))","v":""},{"$f":"IF('TSA Input'!J335=\"\",\"\",IF(OR('TSA Input'!J335=\"Yes\",'TSA Input'!J335=\"Contingent\"),'TSA Input'!G335,\"\"))","v":""},{"$f":"IF('TSA Input'!J335=\"\",\"\",IF(OR('TSA Input'!J335=\"Yes\",'TSA Input'!J335=\"Contingent\"),'TSA Input'!F335,\"\"))","v":""},"",{"$f":"IF('TSA Input'!J335=\"\",\"\",IF(OR('TSA Input'!J335=\"Yes\",'TSA Input'!J335=\"Contingent\"),'TSA Input'!D335,\"\"))","v":""},{"$f":"IF('TSA Input'!J335=\"\",\"\",IF(OR('TSA Input'!J335=\"Yes\",'TSA Input'!J335=\"Contingent\"),'TSA Input'!G335,\"\"))","v":""},{"$f":"IF('TSA Input'!J335=\"\",\"\",IF(OR('TSA Input'!J335=\"Yes\",'TSA Input'!J335=\"Contingent\"),'TSA Input'!F335,\"\"))","v":""},"","Required","Required"]
["",null,{"$f":"IF('TSA Input'!J336=\"\",\"\",IF(OR('TSA Input'!J336=\"Yes\",'TSA Input'!J336=\"Contingent\"),'TSA Input'!B336,\"Ineligible\"))","v":""},{"$f":"IF('TSA Input'!J336=\"\",\"\",IF(OR('TSA Input'!J336=\"Yes\",'TSA Input'!J336=\"Contingent\"),'TSA Input'!I336,\"\"))","v":""},{"$f":"IF('TSA Input'!J336=\"\",\"\",IF(OR('TSA Input'!J336=\"Yes\",'TSA Input'!J336=\"Contingent\"),'TSA Input'!C336,\"\"))","v":""},{"$f":"IF('TSA Input'!J336=\"\",\"\",IF(OR('TSA Input'!J336=\"Yes\",'TSA Input'!J336=\"Contingent\"),'TSA Input'!D336,\"\"))","v":""},{"$f":"IF('TSA Input'!J336=\"\",\"\",IF(OR('TSA Input'!J336=\"Yes\",'TSA Input'!J336=\"Contingent\"),'TSA Input'!G336,\"\"))","v":""},{"$f":"IF('TSA Input'!J336=\"\",\"\",IF(OR('TSA Input'!J336=\"Yes\",'TSA Input'!J336=\"Contingent\"),'TSA Input'!F336,\"\"))","v":""},"",{"$f":"IF('TSA Input'!J336=\"\",\"\",IF(OR('TSA Input'!J336=\"Yes\",'TSA Input'!J336=\"Contingent\"),'TSA Input'!D336,\"\"))","v":""},{"$f":"IF('TSA Input'!J336=\"\",\"\",IF(OR('TSA Input'!J336=\"Yes\",'TSA Input'!J336=\"Contingent\"),'TSA Input'!G336,\"\"))","v":""},{"$f":"IF('TSA Input'!J336=\"\",\"\",IF(OR('TSA Input'!J336=\"Yes\",'TSA Input'!J336=\"Contingent\"),'TSA Input'!F336,\"\"))","v":""},"","Required","Required"]
["",null,{"$f":"IF('TSA Input'!J337=\"\",\"\",IF(OR('TSA Input'!J337=\"Yes\",'TSA Input'!J337=\"Contingent\"),'TSA Input'!B337,\"Ineligible\"))","v":""},{"$f":"IF('TSA Input'!J337=\"\",\"\",IF(OR('TSA Input'!J337=\"Yes\",'TSA Input'!J337=\"Contingent\"),'TSA Input'!I337,\"\"))","v":""},{"$f":"IF('TSA Input'!J337=\"\",\"\",IF(OR('TSA Input'!J337=\"Yes\",'TSA Input'!J337=\"Contingent\"),'TSA Input'!C337,\"\"))","v":""},{"$f":"IF('TSA Input'!J337=\"\",\"\",IF(OR('TSA Input'!J337=\"Yes\",'TSA Input'!J337=\"Contingent\"),'TSA Input'!D337,\"\"))","v":""},{"$f":"IF('TSA Input'!J337=\"\",\"\",IF(OR('TSA Input'!J337=\"Yes\",'TSA Input'!J337=\"Contingent\"),'TSA Input'!G337,\"\"))","v":""},{"$f":"IF('TSA Input'!J337=\"\",\"\",IF(OR('TSA Input'!J337=\"Yes\",'TSA Input'!J337=\"Contingent\"),'TSA Input'!F337,\"\"))","v":""},"",{"$f":"IF('TSA Input'!J337=\"\",\"\",IF(OR('TSA Input'!J337=\"Yes\",'TSA Input'!J337=\"Contingent\"),'TSA Input'!D337,\"\"))","v":""},{"$f":"IF('TSA Input'!J337=\"\",\"\",IF(OR('TSA Input'!J337=\"Yes\",'TSA Input'!J337=\"Contingent\"),'TSA Input'!G337,\"\"))","v":""},{"$f":"IF('TSA Input'!J337=\"\",\"\",IF(OR('TSA Input'!J337=\"Yes\",'TSA Input'!J337=\"Contingent\"),'TSA Input'!F337,\"\"))","v":""},"","Required","Required"]
["",null,{"$f":"IF('TSA Input'!J338=\"\",\"\",IF(OR('TSA Input'!J338=\"Yes\",'TSA Input'!J338=\"Contingent\"),'TSA Input'!B338,\"Ineligible\"))","v":""},{"$f":"IF('TSA Input'!J338=\"\",\"\",IF(OR('TSA Input'!J338=\"Yes\",'TSA Input'!J338=\"Contingent\"),'TSA Input'!I338,\"\"))","v":""},{"$f":"IF('TSA Input'!J338=\"\",\"\",IF(OR('TSA Input'!J338=\"Yes\",'TSA Input'!J338=\"Contingent\"),'TSA Input'!C338,\"\"))","v":""},{"$f":"IF('TSA Input'!J338=\"\",\"\",IF(OR('TSA Input'!J338=\"Yes\",'TSA Input'!J338=\"Contingent\"),'TSA Input'!D338,\"\"))","v":""},{"$f":"IF('TSA Input'!J338=\"\",\"\",IF(OR('TSA Input'!J338=\"Yes\",'TSA Input'!J338=\"Contingent\"),'TSA Input'!G338,\"\"))","v":""},{"$f":"IF('TSA Input'!J338=\"\",\"\",IF(OR('TSA Input'!J338=\"Yes\",'TSA Input'!J338=\"Contingent\"),'TSA Input'!F338,\"\"))","v":""},"",{"$f":"IF('TSA Input'!J338=\"\",\"\",IF(OR('TSA Input'!J338=\"Yes\",'TSA Input'!J338=\"Contingent\"),'TSA Input'!D338,\"\"))","v":""},{"$f":"IF('TSA Input'!J338=\"\",\"\",IF(OR('TSA Input'!J338=\"Yes\",'TSA Input'!J338=\"Contingent\"),'TSA Input'!G338,\"\"))","v":""},{"$f":"IF('TSA Input'!J338=\"\",\"\",IF(OR('TSA Input'!J338=\"Yes\",'TSA Input'!J338=\"Contingent\"),'TSA Input'!F338,\"\"))","v":""},"","Required","Required"]
["",null,{"$f":"IF('TSA Input'!J339=\"\",\"\",IF(OR('TSA Input'!J339=\"Yes\",'TSA Input'!J339=\"Contingent\"),'TSA Input'!B339,\"Ineligible\"))","v":""},{"$f":"IF('TSA Input'!J339=\"\",\"\",IF(OR('TSA Input'!J339=\"Yes\",'TSA Input'!J339=\"Contingent\"),'TSA Input'!I339,\"\"))","v":""},{"$f":"IF('TSA Input'!J339=\"\",\"\",IF(OR('TSA Input'!J339=\"Yes\",'TSA Input'!J339=\"Contingent\"),'TSA Input'!C339,\"\"))","v":""},{"$f":"IF('TSA Input'!J339=\"\",\"\",IF(OR('TSA Input'!J339=\"Yes\",'TSA Input'!J339=\"Contingent\"),'TSA Input'!D339,\"\"))","v":""},{"$f":"IF('TSA Input'!J339=\"\",\"\",IF(OR('TSA Input'!J339=\"Yes\",'TSA Input'!J339=\"Contingent\"),'TSA Input'!G339,\"\"))","v":""},{"$f":"IF('TSA Input'!J339=\"\",\"\",IF(OR('TSA Input'!J339=\"Yes\",'TSA Input'!J339=\"Contingent\"),'TSA Input'!F339,\"\"))","v":""},"",{"$f":"IF('TSA Input'!J339=\"\",\"\",IF(OR('TSA Input'!J339=\"Yes\",'TSA Input'!J339=\"Contingent\"),'TSA Input'!D339,\"\"))","v":""},{"$f":"IF('TSA Input'!J339=\"\",\"\",IF(OR('TSA Input'!J339=\"Yes\",'TSA Input'!J339=\"Contingent\"),'TSA Input'!G339,\"\"))","v":""},{"$f":"IF('TSA Input'!J339=\"\",\"\",IF(OR('TSA Input'!J339=\"Yes\",'TSA Input'!J339=\"Contingent\"),'TSA Input'!F339,\"\"))","v":""},"","Required","Required"]
["",null,{"$f":"IF('TSA Input'!J340=\"\",\"\",IF(OR('TSA Input'!J340=\"Yes\",'TSA Input'!J340=\"Contingent\"),'TSA Input'!B340,\"Ineligible\"))","v":""},{"$f":"IF('TSA Input'!J340=\"\",\"\",IF(OR('TSA Input'!J340=\"Yes\",'TSA Input'!J340=\"Contingent\"),'TSA Input'!I340,\"\"))","v":""},{"$f":"IF('TSA Input'!J340=\"\",\"\",IF(OR('TSA Input'!J340=\"Yes\",'TSA Input'!J340=\"Contingent\"),'TSA Input'!C340,\"\"))","v":""},{"$f":"IF('TSA Input'!J340=\"\",\"\",IF(OR('TSA Input'!J340=\"Yes\",'TSA Input'!J340=\"Contingent\"),'TSA Input'!D340,\"\"))","v":""},{"$f":"IF('TSA Input'!J340=\"\",\"\",IF(OR('TSA Input'!J340=\"Yes\",'TSA Input'!J340=\"Contingent\"),'TSA Input'!G340,\"\"))","v":""},{"$f":"IF('TSA Input'!J340=\"\",\"\",IF(OR('TSA Input'!J340=\"Yes\",'TSA Input'!J340=\"Contingent\"),'TSA Input'!F340,\"\"))","v":""},"",{"$f":"IF('TSA Input'!J340=\"\",\"\",IF(OR('TSA Input'!J340=\"Yes\",'TSA Input'!J340=\"Contingent\"),'TSA Input'!D340,\"\"))","v":""},{"$f":"IF('TSA Input'!J340=\"\",\"\",IF(OR('TSA Input'!J340=\"Yes\",'TSA Input'!J340=\"Contingent\"),'TSA Input'!G340,\"\"))","v":""},{"$f":"IF('TSA Input'!J340=\"\",\"\",IF(OR('TSA Input'!J340=\"Yes\",'TSA Input'!J340=\"Contingent\"),'TSA Input'!F340,\"\"))","v":""},"","Required","Required"]
["",null,{"$f":"IF('TSA Input'!J341=\"\",\"\",IF(OR('TSA Input'!J341=\"Yes\",'TSA Input'!J341=\"Contingent\"),'TSA Input'!B341,\"Ineligible\"))","v":""},{"$f":"IF('TSA Input'!J341=\"\",\"\",IF(OR('TSA Input'!J341=\"Yes\",'TSA Input'!J341=\"Contingent\"),'TSA Input'!I341,\"\"))","v":""},{"$f":"IF('TSA Input'!J341=\"\",\"\",IF(OR('TSA Input'!J341=\"Yes\",'TSA Input'!J341=\"Contingent\"),'TSA Input'!C341,\"\"))","v":""},{"$f":"IF('TSA Input'!J341=\"\",\"\",IF(OR('TSA Input'!J341=\"Yes\",'TSA Input'!J341=\"Contingent\"),'TSA Input'!D341,\"\"))","v":""},{"$f":"IF('TSA Input'!J341=\"\",\"\",IF(OR('TSA Input'!J341=\"Yes\",'TSA Input'!J341=\"Contingent\"),'TSA Input'!G341,\"\"))","v":""},{"$f":"IF('TSA Input'!J341=\"\",\"\",IF(OR('TSA Input'!J341=\"Yes\",'TSA Input'!J341=\"Contingent\"),'TSA Input'!F341,\"\"))","v":""},"",{"$f":"IF('TSA Input'!J341=\"\",\"\",IF(OR('TSA Input'!J341=\"Yes\",'TSA Input'!J341=\"Contingent\"),'TSA Input'!D341,\"\"))","v":""},{"$f":"IF('TSA Input'!J341=\"\",\"\",IF(OR('TSA Input'!J341=\"Yes\",'TSA Input'!J341=\"Contingent\"),'TSA Input'!G341,\"\"))","v":""},{"$f":"IF('TSA Input'!J341=\"\",\"\",IF(OR('TSA Input'!J341=\"Yes\",'TSA Input'!J341=\"Contingent\"),'TSA Input'!F341,\"\"))","v":""},"","Required","Required"]
["",null,{"$f":"IF('TSA Input'!J342=\"\",\"\",IF(OR('TSA Input'!J342=\"Yes\",'TSA Input'!J342=\"Contingent\"),'TSA Input'!B342,\"Ineligible\"))","v":""},{"$f":"IF('TSA Input'!J342=\"\",\"\",IF(OR('TSA Input'!J342=\"Yes\",'TSA Input'!J342=\"Contingent\"),'TSA Input'!I342,\"\"))","v":""},{"$f":"IF('TSA Input'!J342=\"\",\"\",IF(OR('TSA Input'!J342=\"Yes\",'TSA Input'!J342=\"Contingent\"),'TSA Input'!C342,\"\"))","v":""},{"$f":"IF('TSA Input'!J342=\"\",\"\",IF(OR('TSA Input'!J342=\"Yes\",'TSA Input'!J342=\"Contingent\"),'TSA Input'!D342,\"\"))","v":""},{"$f":"IF('TSA Input'!J342=\"\",\"\",IF(OR('TSA Input'!J342=\"Yes\",'TSA Input'!J342=\"Contingent\"),'TSA Input'!G342,\"\"))","v":""},{"$f":"IF('TSA Input'!J342=\"\",\"\",IF(OR('TSA Input'!J342=\"Yes\",'TSA Input'!J342=\"Contingent\"),'TSA Input'!F342,\"\"))","v":""},"",{"$f":"IF('TSA Input'!J342=\"\",\"\",IF(OR('TSA Input'!J342=\"Yes\",'TSA Input'!J342=\"Contingent\"),'TSA Input'!D342,\"\"))","v":""},{"$f":"IF('TSA Input'!J342=\"\",\"\",IF(OR('TSA Input'!J342=\"Yes\",'TSA Input'!J342=\"Contingent\"),'TSA Input'!G342,\"\"))","v":""},{"$f":"IF('TSA Input'!J342=\"\",\"\",IF(OR('TSA Input'!J342=\"Yes\",'TSA Input'!J342=\"Contingent\"),'TSA Input'!F342,\"\"))","v":""},"","Required","Required"]
["",null,{"$f":"IF('TSA Input'!J343=\"\",\"\",IF(OR('TSA Input'!J343=\"Yes\",'TSA Input'!J343=\"Contingent\"),'TSA Input'!B343,\"Ineligible\"))","v":""},{"$f":"IF('TSA Input'!J343=\"\",\"\",IF(OR('TSA Input'!J343=\"Yes\",'TSA Input'!J343=\"Contingent\"),'TSA Input'!I343,\"\"))","v":""},{"$f":"IF('TSA Input'!J343=\"\",\"\",IF(OR('TSA Input'!J343=\"Yes\",'TSA Input'!J343=\"Contingent\"),'TSA Input'!C343,\"\"))","v":""},{"$f":"IF('TSA Input'!J343=\"\",\"\",IF(OR('TSA Input'!J343=\"Yes\",'TSA Input'!J343=\"Contingent\"),'TSA Input'!D343,\"\"))","v":""},{"$f":"IF('TSA Input'!J343=\"\",\"\",IF(OR('TSA Input'!J343=\"Yes\",'TSA Input'!J343=\"Contingent\"),'TSA Input'!G343,\"\"))","v":""},{"$f":"IF('TSA Input'!J343=\"\",\"\",IF(OR('TSA Input'!J343=\"Yes\",'TSA Input'!J343=\"Contingent\"),'TSA Input'!F343,\"\"))","v":""},"",{"$f":"IF('TSA Input'!J343=\"\",\"\",IF(OR('TSA Input'!J343=\"Yes\",'TSA Input'!J343=\"Contingent\"),'TSA Input'!D343,\"\"))","v":""},{"$f":"IF('TSA Input'!J343=\"\",\"\",IF(OR('TSA Input'!J343=\"Yes\",'TSA Input'!J343=\"Contingent\"),'TSA Input'!G343,\"\"))","v":""},{"$f":"IF('TSA Input'!J343=\"\",\"\",IF(OR('TSA Input'!J343=\"Yes\",'TSA Input'!J343=\"Contingent\"),'TSA Input'!F343,\"\"))","v":""},"","Required","Required"]
["",null,{"$f":"IF('TSA Input'!J344=\"\",\"\",IF(OR('TSA Input'!J344=\"Yes\",'TSA Input'!J344=\"Contingent\"),'TSA Input'!B344,\"Ineligible\"))","v":""},{"$f":"IF('TSA Input'!J344=\"\",\"\",IF(OR('TSA Input'!J344=\"Yes\",'TSA Input'!J344=\"Contingent\"),'TSA Input'!I344,\"\"))","v":""},{"$f":"IF('TSA Input'!J344=\"\",\"\",IF(OR('TSA Input'!J344=\"Yes\",'TSA Input'!J344=\"Contingent\"),'TSA Input'!C344,\"\"))","v":""},{"$f":"IF('TSA Input'!J344=\"\",\"\",IF(OR('TSA Input'!J344=\"Yes\",'TSA Input'!J344=\"Contingent\"),'TSA Input'!D344,\"\"))","v":""},{"$f":"IF('TSA Input'!J344=\"\",\"\",IF(OR('TSA Input'!J344=\"Yes\",'TSA Input'!J344=\"Contingent\"),'TSA Input'!G344,\"\"))","v":""},{"$f":"IF('TSA Input'!J344=\"\",\"\",IF(OR('TSA Input'!J344=\"Yes\",'TSA Input'!J344=\"Contingent\"),'TSA Input'!F344,\"\"))","v":""},"",{"$f":"IF('TSA Input'!J344=\"\",\"\",IF(OR('TSA Input'!J344=\"Yes\",'TSA Input'!J344=\"Contingent\"),'TSA Input'!D344,\"\"))","v":""},{"$f":"IF('TSA Input'!J344=\"\",\"\",IF(OR('TSA Input'!J344=\"Yes\",'TSA Input'!J344=\"Contingent\"),'TSA Input'!G344,\"\"))","v":""},{"$f":"IF('TSA Input'!J344=\"\",\"\",IF(OR('TSA Input'!J344=\"Yes\",'TSA Input'!J344=\"Contingent\"),'TSA Input'!F344,\"\"))","v":""},"","Required","Required"]
["",null,{"$f":"IF('TSA Input'!J345=\"\",\"\",IF(OR('TSA Input'!J345=\"Yes\",'TSA Input'!J345=\"Contingent\"),'TSA Input'!B345,\"Ineligible\"))","v":""},{"$f":"IF('TSA Input'!J345=\"\",\"\",IF(OR('TSA Input'!J345=\"Yes\",'TSA Input'!J345=\"Contingent\"),'TSA Input'!I345,\"\"))","v":""},{"$f":"IF('TSA Input'!J345=\"\",\"\",IF(OR('TSA Input'!J345=\"Yes\",'TSA Input'!J345=\"Contingent\"),'TSA Input'!C345,\"\"))","v":""},{"$f":"IF('TSA Input'!J345=\"\",\"\",IF(OR('TSA Input'!J345=\"Yes\",'TSA Input'!J345=\"Contingent\"),'TSA Input'!D345,\"\"))","v":""},{"$f":"IF('TSA Input'!J345=\"\",\"\",IF(OR('TSA Input'!J345=\"Yes\",'TSA Input'!J345=\"Contingent\"),'TSA Input'!G345,\"\"))","v":""},{"$f":"IF('TSA Input'!J345=\"\",\"\",IF(OR('TSA Input'!J345=\"Yes\",'TSA Input'!J345=\"Contingent\"),'TSA Input'!F345,\"\"))","v":""},"",{"$f":"IF('TSA Input'!J345=\"\",\"\",IF(OR('TSA Input'!J345=\"Yes\",'TSA Input'!J345=\"Contingent\"),'TSA Input'!D345,\"\"))","v":""},{"$f":"IF('TSA Input'!J345=\"\",\"\",IF(OR('TSA Input'!J345=\"Yes\",'TSA Input'!J345=\"Contingent\"),'TSA Input'!G345,\"\"))","v":""},{"$f":"IF('TSA Input'!J345=\"\",\"\",IF(OR('TSA Input'!J345=\"Yes\",'TSA Input'!J345=\"Contingent\"),'TSA Input'!F345,\"\"))","v":""},"","Required","Required"]
["",null,{"$f":"IF('TSA Input'!J346=\"\",\"\",IF(OR('TSA Input'!J346=\"Yes\",'TSA Input'!J346=\"Contingent\"),'TSA Input'!B346,\"Ineligible\"))","v":""},{"$f":"IF('TSA Input'!J346=\"\",\"\",IF(OR('TSA Input'!J346=\"Yes\",'TSA Input'!J346=\"Contingent\"),'TSA Input'!I346,\"\"))","v":""},{"$f":"IF('TSA Input'!J346=\"\",\"\",IF(OR('TSA Input'!J346=\"Yes\",'TSA Input'!J346=\"Contingent\"),'TSA Input'!C346,\"\"))","v":""},{"$f":"IF('TSA Input'!J346=\"\",\"\",IF(OR('TSA Input'!J346=\"Yes\",'TSA Input'!J346=\"Contingent\"),'TSA Input'!D346,\"\"))","v":""},{"$f":"IF('TSA Input'!J346=\"\",\"\",IF(OR('TSA Input'!J346=\"Yes\",'TSA Input'!J346=\"Contingent\"),'TSA Input'!G346,\"\"))","v":""},{"$f":"IF('TSA Input'!J346=\"\",\"\",IF(OR('TSA Input'!J346=\"Yes\",'TSA Input'!J346=\"Contingent\"),'TSA Input'!F346,\"\"))","v":""},"",{"$f":"IF('TSA Input'!J346=\"\",\"\",IF(OR('TSA Input'!J346=\"Yes\",'TSA Input'!J346=\"Contingent\"),'TSA Input'!D346,\"\"))","v":""},{"$f":"IF('TSA Input'!J346=\"\",\"\",IF(OR('TSA Input'!J346=\"Yes\",'TSA Input'!J346=\"Contingent\"),'TSA Input'!G346,\"\"))","v":""},{"$f":"IF('TSA Input'!J346=\"\",\"\",IF(OR('TSA Input'!J346=\"Yes\",'TSA Input'!J346=\"Contingent\"),'TSA Input'!F346,\"\"))","v":""},"","Required","Required"]
["",null,{"$f":"IF('TSA Input'!J347=\"\",\"\",IF(OR('TSA Input'!J347=\"Yes\",'TSA Input'!J347=\"Contingent\"),'TSA Input'!B347,\"Ineligible\"))","v":""},{"$f":"IF('TSA Input'!J347=\"\",\"\",IF(OR('TSA Input'!J347=\"Yes\",'TSA Input'!J347=\"Contingent\"),'TSA Input'!I347,\"\"))","v":""},{"$f":"IF('TSA Input'!J347=\"\",\"\",IF(OR('TSA Input'!J347=\"Yes\",'TSA Input'!J347=\"Contingent\"),'TSA Input'!C347,\"\"))","v":""},{"$f":"IF('TSA Input'!J347=\"\",\"\",IF(OR('TSA Input'!J347=\"Yes\",'TSA Input'!J347=\"Contingent\"),'TSA Input'!D347,\"\"))","v":""},{"$f":"IF('TSA Input'!J347=\"\",\"\",IF(OR('TSA Input'!J347=\"Yes\",'TSA Input'!J347=\"Contingent\"),'TSA Input'!G347,\"\"))","v":""},{"$f":"IF('TSA Input'!J347=\"\",\"\",IF(OR('TSA Input'!J347=\"Yes\",'TSA Input'!J347=\"Contingent\"),'TSA Input'!F347,\"\"))","v":""},"",{"$f":"IF('TSA Input'!J347=\"\",\"\",IF(OR('TSA Input'!J347=\"Yes\",'TSA Input'!J347=\"Contingent\"),'TSA Input'!D347,\"\"))","v":""},{"$f":"IF('TSA Input'!J347=\"\",\"\",IF(OR('TSA Input'!J347=\"Yes\",'TSA Input'!J347=\"Contingent\"),'TSA Input'!G347,\"\"))","v":""},{"$f":"IF('TSA Input'!J347=\"\",\"\",IF(OR('TSA Input'!J347=\"Yes\",'TSA Input'!J347=\"Contingent\"),'TSA Input'!F347,\"\"))","v":""},"","Required","Required"]
["",null,{"$f":"IF('TSA Input'!J348=\"\",\"\",IF(OR('TSA Input'!J348=\"Yes\",'TSA Input'!J348=\"Contingent\"),'TSA Input'!B348,\"Ineligible\"))","v":""},{"$f":"IF('TSA Input'!J348=\"\",\"\",IF(OR('TSA Input'!J348=\"Yes\",'TSA Input'!J348=\"Contingent\"),'TSA Input'!I348,\"\"))","v":""},{"$f":"IF('TSA Input'!J348=\"\",\"\",IF(OR('TSA Input'!J348=\"Yes\",'TSA Input'!J348=\"Contingent\"),'TSA Input'!C348,\"\"))","v":""},{"$f":"IF('TSA Input'!J348=\"\",\"\",IF(OR('TSA Input'!J348=\"Yes\",'TSA Input'!J348=\"Contingent\"),'TSA Input'!D348,\"\"))","v":""},{"$f":"IF('TSA Input'!J348=\"\",\"\",IF(OR('TSA Input'!J348=\"Yes\",'TSA Input'!J348=\"Contingent\"),'TSA Input'!G348,\"\"))","v":""},{"$f":"IF('TSA Input'!J348=\"\",\"\",IF(OR('TSA Input'!J348=\"Yes\",'TSA Input'!J348=\"Contingent\"),'TSA Input'!F348,\"\"))","v":""},"",{"$f":"IF('TSA Input'!J348=\"\",\"\",IF(OR('TSA Input'!J348=\"Yes\",'TSA Input'!J348=\"Contingent\"),'TSA Input'!D348,\"\"))","v":""},{"$f":"IF('TSA Input'!J348=\"\",\"\",IF(OR('TSA Input'!J348=\"Yes\",'TSA Input'!J348=\"Contingent\"),'TSA Input'!G348,\"\"))","v":""},{"$f":"IF('TSA Input'!J348=\"\",\"\",IF(OR('TSA Input'!J348=\"Yes\",'TSA Input'!J348=\"Contingent\"),'TSA Input'!F348,\"\"))","v":""},"","Required","Required"]
["",null,{"$f":"IF('TSA Input'!J349=\"\",\"\",IF(OR('TSA Input'!J349=\"Yes\",'TSA Input'!J349=\"Contingent\"),'TSA Input'!B349,\"Ineligible\"))","v":""},{"$f":"IF('TSA Input'!J349=\"\",\"\",IF(OR('TSA Input'!J349=\"Yes\",'TSA Input'!J349=\"Contingent\"),'TSA Input'!I349,\"\"))","v":""},{"$f":"IF('TSA Input'!J349=\"\",\"\",IF(OR('TSA Input'!J349=\"Yes\",'TSA Input'!J349=\"Contingent\"),'TSA Input'!C349,\"\"))","v":""},{"$f":"IF('TSA Input'!J349=\"\",\"\",IF(OR('TSA Input'!J349=\"Yes\",'TSA Input'!J349=\"Contingent\"),'TSA Input'!D349,\"\"))","v":""},{"$f":"IF('TSA Input'!J349=\"\",\"\",IF(OR('TSA Input'!J349=\"Yes\",'TSA Input'!J349=\"Contingent\"),'TSA Input'!G349,\"\"))","v":""},{"$f":"IF('TSA Input'!J349=\"\",\"\",IF(OR('TSA Input'!J349=\"Yes\",'TSA Input'!J349=\"Contingent\"),'TSA Input'!F349,\"\"))","v":""},"",{"$f":"IF('TSA Input'!J349=\"\",\"\",IF(OR('TSA Input'!J349=\"Yes\",'TSA Input'!J349=\"Contingent\"),'TSA Input'!D349,\"\"))","v":""},{"$f":"IF('TSA Input'!J349=\"\",\"\",IF(OR('TSA Input'!J349=\"Yes\",'TSA Input'!J349=\"Contingent\"),'TSA Input'!G349,\"\"))","v":""},{"$f":"IF('TSA Input'!J349=\"\",\"\",IF(OR('TSA Input'!J349=\"Yes\",'TSA Input'!J349=\"Contingent\"),'TSA Input'!F349,\"\"))","v":""},"","Required","Required"]
["",null,{"$f":"IF('TSA Input'!J350=\"\",\"\",IF(OR('TSA Input'!J350=\"Yes\",'TSA Input'!J350=\"Contingent\"),'TSA Input'!B350,\"Ineligible\"))","v":""},{"$f":"IF('TSA Input'!J350=\"\",\"\",IF(OR('TSA Input'!J350=\"Yes\",'TSA Input'!J350=\"Contingent\"),'TSA Input'!I350,\"\"))","v":""},{"$f":"IF('TSA Input'!J350=\"\",\"\",IF(OR('TSA Input'!J350=\"Yes\",'TSA Input'!J350=\"Contingent\"),'TSA Input'!C350,\"\"))","v":""},{"$f":"IF('TSA Input'!J350=\"\",\"\",IF(OR('TSA Input'!J350=\"Yes\",'TSA Input'!J350=\"Contingent\"),'TSA Input'!D350,\"\"))","v":""},{"$f":"IF('TSA Input'!J350=\"\",\"\",IF(OR('TSA Input'!J350=\"Yes\",'TSA Input'!J350=\"Contingent\"),'TSA Input'!G350,\"\"))","v":""},{"$f":"IF('TSA Input'!J350=\"\",\"\",IF(OR('TSA Input'!J350=\"Yes\",'TSA Input'!J350=\"Contingent\"),'TSA Input'!F350,\"\"))","v":""},"",{"$f":"IF('TSA Input'!J350=\"\",\"\",IF(OR('TSA Input'!J350=\"Yes\",'TSA Input'!J350=\"Contingent\"),'TSA Input'!D350,\"\"))","v":""},{"$f":"IF('TSA Input'!J350=\"\",\"\",IF(OR('TSA Input'!J350=\"Yes\",'TSA Input'!J350=\"Contingent\"),'TSA Input'!G350,\"\"))","v":""},{"$f":"IF('TSA Input'!J350=\"\",\"\",IF(OR('TSA Input'!J350=\"Yes\",'TSA Input'!J350=\"Contingent\"),'TSA Input'!F350,\"\"))","v":""},"","Required","Required"]
["",null,{"$f":"IF('TSA Input'!J351=\"\",\"\",IF(OR('TSA Input'!J351=\"Yes\",'TSA Input'!J351=\"Contingent\"),'TSA Input'!B351,\"Ineligible\"))","v":""},{"$f":"IF('TSA Input'!J351=\"\",\"\",IF(OR('TSA Input'!J351=\"Yes\",'TSA Input'!J351=\"Contingent\"),'TSA Input'!I351,\"\"))","v":""},{"$f":"IF('TSA Input'!J351=\"\",\"\",IF(OR('TSA Input'!J351=\"Yes\",'TSA Input'!J351=\"Contingent\"),'TSA Input'!C351,\"\"))","v":""},{"$f":"IF('TSA Input'!J351=\"\",\"\",IF(OR('TSA Input'!J351=\"Yes\",'TSA Input'!J351=\"Contingent\"),'TSA Input'!D351,\"\"))","v":""},{"$f":"IF('TSA Input'!J351=\"\",\"\",IF(OR('TSA Input'!J351=\"Yes\",'TSA Input'!J351=\"Contingent\"),'TSA Input'!G351,\"\"))","v":""},{"$f":"IF('TSA Input'!J351=\"\",\"\",IF(OR('TSA Input'!J351=\"Yes\",'TSA Input'!J351=\"Contingent\"),'TSA Input'!F351,\"\"))","v":""},"",{"$f":"IF('TSA Input'!J351=\"\",\"\",IF(OR('TSA Input'!J351=\"Yes\",'TSA Input'!J351=\"Contingent\"),'TSA Input'!D351,\"\"))","v":""},{"$f":"IF('TSA Input'!J351=\"\",\"\",IF(OR('TSA Input'!J351=\"Yes\",'TSA Input'!J351=\"Contingent\"),'TSA Input'!G351,\"\"))","v":""},{"$f":"IF('TSA Input'!J351=\"\",\"\",IF(OR('TSA Input'!J351=\"Yes\",'TSA Input'!J351=\"Contingent\"),'TSA Input'!F351,\"\"))","v":""},"","Required","Required"]
["",null,{"$f":"IF('TSA Input'!J352=\"\",\"\",IF(OR('TSA Input'!J352=\"Yes\",'TSA Input'!J352=\"Contingent\"),'TSA Input'!B352,\"Ineligible\"))","v":""},{"$f":"IF('TSA Input'!J352=\"\",\"\",IF(OR('TSA Input'!J352=\"Yes\",'TSA Input'!J352=\"Contingent\"),'TSA Input'!I352,\"\"))","v":""},{"$f":"IF('TSA Input'!J352=\"\",\"\",IF(OR('TSA Input'!J352=\"Yes\",'TSA Input'!J352=\"Contingent\"),'TSA Input'!C352,\"\"))","v":""},{"$f":"IF('TSA Input'!J352=\"\",\"\",IF(OR('TSA Input'!J352=\"Yes\",'TSA Input'!J352=\"Contingent\"),'TSA Input'!D352,\"\"))","v":""},{"$f":"IF('TSA Input'!J352=\"\",\"\",IF(OR('TSA Input'!J352=\"Yes\",'TSA Input'!J352=\"Contingent\"),'TSA Input'!G352,\"\"))","v":""},{"$f":"IF('TSA Input'!J352=\"\",\"\",IF(OR('TSA Input'!J352=\"Yes\",'TSA Input'!J352=\"Contingent\"),'TSA Input'!F352,\"\"))","v":""},"",{"$f":"IF('TSA Input'!J352=\"\",\"\",IF(OR('TSA Input'!J352=\"Yes\",'TSA Input'!J352=\"Contingent\"),'TSA Input'!D352,\"\"))","v":""},{"$f":"IF('TSA Input'!J352=\"\",\"\",IF(OR('TSA Input'!J352=\"Yes\",'TSA Input'!J352=\"Contingent\"),'TSA Input'!G352,\"\"))","v":""},{"$f":"IF('TSA Input'!J352=\"\",\"\",IF(OR('TSA Input'!J352=\"Yes\",'TSA Input'!J352=\"Contingent\"),'TSA Input'!F352,\"\"))","v":""},"","Required","Required"]
["",null,{"$f":"IF('TSA Input'!J353=\"\",\"\",IF(OR('TSA Input'!J353=\"Yes\",'TSA Input'!J353=\"Contingent\"),'TSA Input'!B353,\"Ineligible\"))","v":""},{"$f":"IF('TSA Input'!J353=\"\",\"\",IF(OR('TSA Input'!J353=\"Yes\",'TSA Input'!J353=\"Contingent\"),'TSA Input'!I353,\"\"))","v":""},{"$f":"IF('TSA Input'!J353=\"\",\"\",IF(OR('TSA Input'!J353=\"Yes\",'TSA Input'!J353=\"Contingent\"),'TSA Input'!C353,\"\"))","v":""},{"$f":"IF('TSA Input'!J353=\"\",\"\",IF(OR('TSA Input'!J353=\"Yes\",'TSA Input'!J353=\"Contingent\"),'TSA Input'!D353,\"\"))","v":""},{"$f":"IF('TSA Input'!J353=\"\",\"\",IF(OR('TSA Input'!J353=\"Yes\",'TSA Input'!J353=\"Contingent\"),'TSA Input'!G353,\"\"))","v":""},{"$f":"IF('TSA Input'!J353=\"\",\"\",IF(OR('TSA Input'!J353=\"Yes\",'TSA Input'!J353=\"Contingent\"),'TSA Input'!F353,\"\"))","v":""},"",{"$f":"IF('TSA Input'!J353=\"\",\"\",IF(OR('TSA Input'!J353=\"Yes\",'TSA Input'!J353=\"Contingent\"),'TSA Input'!D353,\"\"))","v":""},{"$f":"IF('TSA Input'!J353=\"\",\"\",IF(OR('TSA Input'!J353=\"Yes\",'TSA Input'!J353=\"Contingent\"),'TSA Input'!G353,\"\"))","v":""},{"$f":"IF('TSA Input'!J353=\"\",\"\",IF(OR('TSA Input'!J353=\"Yes\",'TSA Input'!J353=\"Contingent\"),'TSA Input'!F353,\"\"))","v":""},"","Required","Required"]
["",null,{"$f":"IF('TSA Input'!J354=\"\",\"\",IF(OR('TSA Input'!J354=\"Yes\",'TSA Input'!J354=\"Contingent\"),'TSA Input'!B354,\"Ineligible\"))","v":""},{"$f":"IF('TSA Input'!J354=\"\",\"\",IF(OR('TSA Input'!J354=\"Yes\",'TSA Input'!J354=\"Contingent\"),'TSA Input'!I354,\"\"))","v":""},{"$f":"IF('TSA Input'!J354=\"\",\"\",IF(OR('TSA Input'!J354=\"Yes\",'TSA Input'!J354=\"Contingent\"),'TSA Input'!C354,\"\"))","v":""},{"$f":"IF('TSA Input'!J354=\"\",\"\",IF(OR('TSA Input'!J354=\"Yes\",'TSA Input'!J354=\"Contingent\"),'TSA Input'!D354,\"\"))","v":""},{"$f":"IF('TSA Input'!J354=\"\",\"\",IF(OR('TSA Input'!J354=\"Yes\",'TSA Input'!J354=\"Contingent\"),'TSA Input'!G354,\"\"))","v":""},{"$f":"IF('TSA Input'!J354=\"\",\"\",IF(OR('TSA Input'!J354=\"Yes\",'TSA Input'!J354=\"Contingent\"),'TSA Input'!F354,\"\"))","v":""},"",{"$f":"IF('TSA Input'!J354=\"\",\"\",IF(OR('TSA Input'!J354=\"Yes\",'TSA Input'!J354=\"Contingent\"),'TSA Input'!D354,\"\"))","v":""},{"$f":"IF('TSA Input'!J354=\"\",\"\",IF(OR('TSA Input'!J354=\"Yes\",'TSA Input'!J354=\"Contingent\"),'TSA Input'!G354,\"\"))","v":""},{"$f":"IF('TSA Input'!J354=\"\",\"\",IF(OR('TSA Input'!J354=\"Yes\",'TSA Input'!J354=\"Contingent\"),'TSA Input'!F354,\"\"))","v":""},"","Required","Required"]
["",null,{"$f":"IF('TSA Input'!J355=\"\",\"\",IF(OR('TSA Input'!J355=\"Yes\",'TSA Input'!J355=\"Contingent\"),'TSA Input'!B355,\"Ineligible\"))","v":""},{"$f":"IF('TSA Input'!J355=\"\",\"\",IF(OR('TSA Input'!J355=\"Yes\",'TSA Input'!J355=\"Contingent\"),'TSA Input'!I355,\"\"))","v":""},{"$f":"IF('TSA Input'!J355=\"\",\"\",IF(OR('TSA Input'!J355=\"Yes\",'TSA Input'!J355=\"Contingent\"),'TSA Input'!C355,\"\"))","v":""},{"$f":"IF('TSA Input'!J355=\"\",\"\",IF(OR('TSA Input'!J355=\"Yes\",'TSA Input'!J355=\"Contingent\"),'TSA Input'!D355,\"\"))","v":""},{"$f":"IF('TSA Input'!J355=\"\",\"\",IF(OR('TSA Input'!J355=\"Yes\",'TSA Input'!J355=\"Contingent\"),'TSA Input'!G355,\"\"))","v":""},{"$f":"IF('TSA Input'!J355=\"\",\"\",IF(OR('TSA Input'!J355=\"Yes\",'TSA Input'!J355=\"Contingent\"),'TSA Input'!F355,\"\"))","v":""},"",{"$f":"IF('TSA Input'!J355=\"\",\"\",IF(OR('TSA Input'!J355=\"Yes\",'TSA Input'!J355=\"Contingent\"),'TSA Input'!D355,\"\"))","v":""},{"$f":"IF('TSA Input'!J355=\"\",\"\",IF(OR('TSA Input'!J355=\"Yes\",'TSA Input'!J355=\"Contingent\"),'TSA Input'!G355,\"\"))","v":""},{"$f":"IF('TSA Input'!J355=\"\",\"\",IF(OR('TSA Input'!J355=\"Yes\",'TSA Input'!J355=\"Contingent\"),'TSA Input'!F355,\"\"))","v":""},"","Required","Required"]
["",null,{"$f":"IF('TSA Input'!J356=\"\",\"\",IF(OR('TSA Input'!J356=\"Yes\",'TSA Input'!J356=\"Contingent\"),'TSA Input'!B356,\"Ineligible\"))","v":""},{"$f":"IF('TSA Input'!J356=\"\",\"\",IF(OR('TSA Input'!J356=\"Yes\",'TSA Input'!J356=\"Contingent\"),'TSA Input'!I356,\"\"))","v":""},{"$f":"IF('TSA Input'!J356=\"\",\"\",IF(OR('TSA Input'!J356=\"Yes\",'TSA Input'!J356=\"Contingent\"),'TSA Input'!C356,\"\"))","v":""},{"$f":"IF('TSA Input'!J356=\"\",\"\",IF(OR('TSA Input'!J356=\"Yes\",'TSA Input'!J356=\"Contingent\"),'TSA Input'!D356,\"\"))","v":""},{"$f":"IF('TSA Input'!J356=\"\",\"\",IF(OR('TSA Input'!J356=\"Yes\",'TSA Input'!J356=\"Contingent\"),'TSA Input'!G356,\"\"))","v":""},{"$f":"IF('TSA Input'!J356=\"\",\"\",IF(OR('TSA Input'!J356=\"Yes\",'TSA Input'!J356=\"Contingent\"),'TSA Input'!F356,\"\"))","v":""},"",{"$f":"IF('TSA Input'!J356=\"\",\"\",IF(OR('TSA Input'!J356=\"Yes\",'TSA Input'!J356=\"Contingent\"),'TSA Input'!D356,\"\"))","v":""},{"$f":"IF('TSA Input'!J356=\"\",\"\",IF(OR('TSA Input'!J356=\"Yes\",'TSA Input'!J356=\"Contingent\"),'TSA Input'!G356,\"\"))","v":""},{"$f":"IF('TSA Input'!J356=\"\",\"\",IF(OR('TSA Input'!J356=\"Yes\",'TSA Input'!J356=\"Contingent\"),'TSA Input'!F356,\"\"))","v":""},"","Required","Required"]
["",null,{"$f":"IF('TSA Input'!J357=\"\",\"\",IF(OR('TSA Input'!J357=\"Yes\",'TSA Input'!J357=\"Contingent\"),'TSA Input'!B357,\"Ineligible\"))","v":""},{"$f":"IF('TSA Input'!J357=\"\",\"\",IF(OR('TSA Input'!J357=\"Yes\",'TSA Input'!J357=\"Contingent\"),'TSA Input'!I357,\"\"))","v":""},{"$f":"IF('TSA Input'!J357=\"\",\"\",IF(OR('TSA Input'!J357=\"Yes\",'TSA Input'!J357=\"Contingent\"),'TSA Input'!C357,\"\"))","v":""},{"$f":"IF('TSA Input'!J357=\"\",\"\",IF(OR('TSA Input'!J357=\"Yes\",'TSA Input'!J357=\"Contingent\"),'TSA Input'!D357,\"\"))","v":""},{"$f":"IF('TSA Input'!J357=\"\",\"\",IF(OR('TSA Input'!J357=\"Yes\",'TSA Input'!J357=\"Contingent\"),'TSA Input'!G357,\"\"))","v":""},{"$f":"IF('TSA Input'!J357=\"\",\"\",IF(OR('TSA Input'!J357=\"Yes\",'TSA Input'!J357=\"Contingent\"),'TSA Input'!F357,\"\"))","v":""},"",{"$f":"IF('TSA Input'!J357=\"\",\"\",IF(OR('TSA Input'!J357=\"Yes\",'TSA Input'!J357=\"Contingent\"),'TSA Input'!D357,\"\"))","v":""},{"$f":"IF('TSA Input'!J357=\"\",\"\",IF(OR('TSA Input'!J357=\"Yes\",'TSA Input'!J357=\"Contingent\"),'TSA Input'!G357,\"\"))","v":""},{"$f":"IF('TSA Input'!J357=\"\",\"\",IF(OR('TSA Input'!J357=\"Yes\",'TSA Input'!J357=\"Contingent\"),'TSA Input'!F357,\"\"))","v":""},"","Required","Required"]
["",null,{"$f":"IF('TSA Input'!J358=\"\",\"\",IF(OR('TSA Input'!J358=\"Yes\",'TSA Input'!J358=\"Contingent\"),'TSA Input'!B358,\"Ineligible\"))","v":""},{"$f":"IF('TSA Input'!J358=\"\",\"\",IF(OR('TSA Input'!J358=\"Yes\",'TSA Input'!J358=\"Contingent\"),'TSA Input'!I358,\"\"))","v":""},{"$f":"IF('TSA Input'!J358=\"\",\"\",IF(OR('TSA Input'!J358=\"Yes\",'TSA Input'!J358=\"Contingent\"),'TSA Input'!C358,\"\"))","v":""},{"$f":"IF('TSA Input'!J358=\"\",\"\",IF(OR('TSA Input'!J358=\"Yes\",'TSA Input'!J358=\"Contingent\"),'TSA Input'!D358,\"\"))","v":""},{"$f":"IF('TSA Input'!J358=\"\",\"\",IF(OR('TSA Input'!J358=\"Yes\",'TSA Input'!J358=\"Contingent\"),'TSA Input'!G358,\"\"))","v":""},{"$f":"IF('TSA Input'!J358=\"\",\"\",IF(OR('TSA Input'!J358=\"Yes\",'TSA Input'!J358=\"Contingent\"),'TSA Input'!F358,\"\"))","v":""},"",{"$f":"IF('TSA Input'!J358=\"\",\"\",IF(OR('TSA Input'!J358=\"Yes\",'TSA Input'!J358=\"Contingent\"),'TSA Input'!D358,\"\"))","v":""},{"$f":"IF('TSA Input'!J358=\"\",\"\",IF(OR('TSA Input'!J358=\"Yes\",'TSA Input'!J358=\"Contingent\"),'TSA Input'!G358,\"\"))","v":""},{"$f":"IF('TSA Input'!J358=\"\",\"\",IF(OR('TSA Input'!J358=\"Yes\",'TSA Input'!J358=\"Contingent\"),'TSA Input'!F358,\"\"))","v":""},"","Required","Required"]
["",null,{"$f":"IF('TSA Input'!J359=\"\",\"\",IF(OR('TSA Input'!J359=\"Yes\",'TSA Input'!J359=\"Contingent\"),'TSA Input'!B359,\"Ineligible\"))","v":""},{"$f":"IF('TSA Input'!J359=\"\",\"\",IF(OR('TSA Input'!J359=\"Yes\",'TSA Input'!J359=\"Contingent\"),'TSA Input'!I359,\"\"))","v":""},{"$f":"IF('TSA Input'!J359=\"\",\"\",IF(OR('TSA Input'!J359=\"Yes\",'TSA Input'!J359=\"Contingent\"),'TSA Input'!C359,\"\"))","v":""},{"$f":"IF('TSA Input'!J359=\"\",\"\",IF(OR('TSA Input'!J359=\"Yes\",'TSA Input'!J359=\"Contingent\"),'TSA Input'!D359,\"\"))","v":""},{"$f":"IF('TSA Input'!J359=\"\",\"\",IF(OR('TSA Input'!J359=\"Yes\",'TSA Input'!J359=\"Contingent\"),'TSA Input'!G359,\"\"))","v":""},{"$f":"IF('TSA Input'!J359=\"\",\"\",IF(OR('TSA Input'!J359=\"Yes\",'TSA Input'!J359=\"Contingent\"),'TSA Input'!F359,\"\"))","v":""},"",{"$f":"IF('TSA Input'!J359=\"\",\"\",IF(OR('TSA Input'!J359=\"Yes\",'TSA Input'!J359=\"Contingent\"),'TSA Input'!D359,\"\"))","v":""},{"$f":"IF('TSA Input'!J359=\"\",\"\",IF(OR('TSA Input'!J359=\"Yes\",'TSA Input'!J359=\"Contingent\"),'TSA Input'!G359,\"\"))","v":""},{"$f":"IF('TSA Input'!J359=\"\",\"\",IF(OR('TSA Input'!J359=\"Yes\",'TSA Input'!J359=\"Contingent\"),'TSA Input'!F359,\"\"))","v":""},"","Required","Required"]
["",null,{"$f":"IF('TSA Input'!J360=\"\",\"\",IF(OR('TSA Input'!J360=\"Yes\",'TSA Input'!J360=\"Contingent\"),'TSA Input'!B360,\"Ineligible\"))","v":""},{"$f":"IF('TSA Input'!J360=\"\",\"\",IF(OR('TSA Input'!J360=\"Yes\",'TSA Input'!J360=\"Contingent\"),'TSA Input'!I360,\"\"))","v":""},{"$f":"IF('TSA Input'!J360=\"\",\"\",IF(OR('TSA Input'!J360=\"Yes\",'TSA Input'!J360=\"Contingent\"),'TSA Input'!C360,\"\"))","v":""},{"$f":"IF('TSA Input'!J360=\"\",\"\",IF(OR('TSA Input'!J360=\"Yes\",'TSA Input'!J360=\"Contingent\"),'TSA Input'!D360,\"\"))","v":""},{"$f":"IF('TSA Input'!J360=\"\",\"\",IF(OR('TSA Input'!J360=\"Yes\",'TSA Input'!J360=\"Contingent\"),'TSA Input'!G360,\"\"))","v":""},{"$f":"IF('TSA Input'!J360=\"\",\"\",IF(OR('TSA Input'!J360=\"Yes\",'TSA Input'!J360=\"Contingent\"),'TSA Input'!F360,\"\"))","v":""},"",{"$f":"IF('TSA Input'!J360=\"\",\"\",IF(OR('TSA Input'!J360=\"Yes\",'TSA Input'!J360=\"Contingent\"),'TSA Input'!D360,\"\"))","v":""},{"$f":"IF('TSA Input'!J360=\"\",\"\",IF(OR('TSA Input'!J360=\"Yes\",'TSA Input'!J360=\"Contingent\"),'TSA Input'!G360,\"\"))","v":""},{"$f":"IF('TSA Input'!J360=\"\",\"\",IF(OR('TSA Input'!J360=\"Yes\",'TSA Input'!J360=\"Contingent\"),'TSA Input'!F360,\"\"))","v":""},"","Required","Required"]
["",null,{"$f":"IF('TSA Input'!J361=\"\",\"\",IF(OR('TSA Input'!J361=\"Yes\",'TSA Input'!J361=\"Contingent\"),'TSA Input'!B361,\"Ineligible\"))","v":""},{"$f":"IF('TSA Input'!J361=\"\",\"\",IF(OR('TSA Input'!J361=\"Yes\",'TSA Input'!J361=\"Contingent\"),'TSA Input'!I361,\"\"))","v":""},{"$f":"IF('TSA Input'!J361=\"\",\"\",IF(OR('TSA Input'!J361=\"Yes\",'TSA Input'!J361=\"Contingent\"),'TSA Input'!C361,\"\"))","v":""},{"$f":"IF('TSA Input'!J361=\"\",\"\",IF(OR('TSA Input'!J361=\"Yes\",'TSA Input'!J361=\"Contingent\"),'TSA Input'!D361,\"\"))","v":""},{"$f":"IF('TSA Input'!J361=\"\",\"\",IF(OR('TSA Input'!J361=\"Yes\",'TSA Input'!J361=\"Contingent\"),'TSA Input'!G361,\"\"))","v":""},{"$f":"IF('TSA Input'!J361=\"\",\"\",IF(OR('TSA Input'!J361=\"Yes\",'TSA Input'!J361=\"Contingent\"),'TSA Input'!F361,\"\"))","v":""},"",{"$f":"IF('TSA Input'!J361=\"\",\"\",IF(OR('TSA Input'!J361=\"Yes\",'TSA Input'!J361=\"Contingent\"),'TSA Input'!D361,\"\"))","v":""},{"$f":"IF('TSA Input'!J361=\"\",\"\",IF(OR('TSA Input'!J361=\"Yes\",'TSA Input'!J361=\"Contingent\"),'TSA Input'!G361,\"\"))","v":""},{"$f":"IF('TSA Input'!J361=\"\",\"\",IF(OR('TSA Input'!J361=\"Yes\",'TSA Input'!J361=\"Contingent\"),'TSA Input'!F361,\"\"))","v":""},"","Required","Required"]
["",null,{"$f":"IF('TSA Input'!J362=\"\",\"\",IF(OR('TSA Input'!J362=\"Yes\",'TSA Input'!J362=\"Contingent\"),'TSA Input'!B362,\"Ineligible\"))","v":""},{"$f":"IF('TSA Input'!J362=\"\",\"\",IF(OR('TSA Input'!J362=\"Yes\",'TSA Input'!J362=\"Contingent\"),'TSA Input'!I362,\"\"))","v":""},{"$f":"IF('TSA Input'!J362=\"\",\"\",IF(OR('TSA Input'!J362=\"Yes\",'TSA Input'!J362=\"Contingent\"),'TSA Input'!C362,\"\"))","v":""},{"$f":"IF('TSA Input'!J362=\"\",\"\",IF(OR('TSA Input'!J362=\"Yes\",'TSA Input'!J362=\"Contingent\"),'TSA Input'!D362,\"\"))","v":""},{"$f":"IF('TSA Input'!J362=\"\",\"\",IF(OR('TSA Input'!J362=\"Yes\",'TSA Input'!J362=\"Contingent\"),'TSA Input'!G362,\"\"))","v":""},{"$f":"IF('TSA Input'!J362=\"\",\"\",IF(OR('TSA Input'!J362=\"Yes\",'TSA Input'!J362=\"Contingent\"),'TSA Input'!F362,\"\"))","v":""},"",{"$f":"IF('TSA Input'!J362=\"\",\"\",IF(OR('TSA Input'!J362=\"Yes\",'TSA Input'!J362=\"Contingent\"),'TSA Input'!D362,\"\"))","v":""},{"$f":"IF('TSA Input'!J362=\"\",\"\",IF(OR('TSA Input'!J362=\"Yes\",'TSA Input'!J362=\"Contingent\"),'TSA Input'!G362,\"\"))","v":""},{"$f":"IF('TSA Input'!J362=\"\",\"\",IF(OR('TSA Input'!J362=\"Yes\",'TSA Input'!J362=\"Contingent\"),'TSA Input'!F362,\"\"))","v":""},"","Required","Required"]
["",null,{"$f":"IF('TSA Input'!J363=\"\",\"\",IF(OR('TSA Input'!J363=\"Yes\",'TSA Input'!J363=\"Contingent\"),'TSA Input'!B363,\"Ineligible\"))","v":""},{"$f":"IF('TSA Input'!J363=\"\",\"\",IF(OR('TSA Input'!J363=\"Yes\",'TSA Input'!J363=\"Contingent\"),'TSA Input'!I363,\"\"))","v":""},{"$f":"IF('TSA Input'!J363=\"\",\"\",IF(OR('TSA Input'!J363=\"Yes\",'TSA Input'!J363=\"Contingent\"),'TSA Input'!C363,\"\"))","v":""},{"$f":"IF('TSA Input'!J363=\"\",\"\",IF(OR('TSA Input'!J363=\"Yes\",'TSA Input'!J363=\"Contingent\"),'TSA Input'!D363,\"\"))","v":""},{"$f":"IF('TSA Input'!J363=\"\",\"\",IF(OR('TSA Input'!J363=\"Yes\",'TSA Input'!J363=\"Contingent\"),'TSA Input'!G363,\"\"))","v":""},{"$f":"IF('TSA Input'!J363=\"\",\"\",IF(OR('TSA Input'!J363=\"Yes\",'TSA Input'!J363=\"Contingent\"),'TSA Input'!F363,\"\"))","v":""},"",{"$f":"IF('TSA Input'!J363=\"\",\"\",IF(OR('TSA Input'!J363=\"Yes\",'TSA Input'!J363=\"Contingent\"),'TSA Input'!D363,\"\"))","v":""},{"$f":"IF('TSA Input'!J363=\"\",\"\",IF(OR('TSA Input'!J363=\"Yes\",'TSA Input'!J363=\"Contingent\"),'TSA Input'!G363,\"\"))","v":""},{"$f":"IF('TSA Input'!J363=\"\",\"\",IF(OR('TSA Input'!J363=\"Yes\",'TSA Input'!J363=\"Contingent\"),'TSA Input'!F363,\"\"))","v":""},"","Required","Required"]
["",null,{"$f":"IF('TSA Input'!J364=\"\",\"\",IF(OR('TSA Input'!J364=\"Yes\",'TSA Input'!J364=\"Contingent\"),'TSA Input'!B364,\"Ineligible\"))","v":""},{"$f":"IF('TSA Input'!J364=\"\",\"\",IF(OR('TSA Input'!J364=\"Yes\",'TSA Input'!J364=\"Contingent\"),'TSA Input'!I364,\"\"))","v":""},{"$f":"IF('TSA Input'!J364=\"\",\"\",IF(OR('TSA Input'!J364=\"Yes\",'TSA Input'!J364=\"Contingent\"),'TSA Input'!C364,\"\"))","v":""},{"$f":"IF('TSA Input'!J364=\"\",\"\",IF(OR('TSA Input'!J364=\"Yes\",'TSA Input'!J364=\"Contingent\"),'TSA Input'!D364,\"\"))","v":""},{"$f":"IF('TSA Input'!J364=\"\",\"\",IF(OR('TSA Input'!J364=\"Yes\",'TSA Input'!J364=\"Contingent\"),'TSA Input'!G364,\"\"))","v":""},{"$f":"IF('TSA Input'!J364=\"\",\"\",IF(OR('TSA Input'!J364=\"Yes\",'TSA Input'!J364=\"Contingent\"),'TSA Input'!F364,\"\"))","v":""},"",{"$f":"IF('TSA Input'!J364=\"\",\"\",IF(OR('TSA Input'!J364=\"Yes\",'TSA Input'!J364=\"Contingent\"),'TSA Input'!D364,\"\"))","v":""},{"$f":"IF('TSA Input'!J364=\"\",\"\",IF(OR('TSA Input'!J364=\"Yes\",'TSA Input'!J364=\"Contingent\"),'TSA Input'!G364,\"\"))","v":""},{"$f":"IF('TSA Input'!J364=\"\",\"\",IF(OR('TSA Input'!J364=\"Yes\",'TSA Input'!J364=\"Contingent\"),'TSA Input'!F364,\"\"))","v":""},"","Required","Required"]
["",null,{"$f":"IF('TSA Input'!J365=\"\",\"\",IF(OR('TSA Input'!J365=\"Yes\",'TSA Input'!J365=\"Contingent\"),'TSA Input'!B365,\"Ineligible\"))","v":""},{"$f":"IF('TSA Input'!J365=\"\",\"\",IF(OR('TSA Input'!J365=\"Yes\",'TSA Input'!J365=\"Contingent\"),'TSA Input'!I365,\"\"))","v":""},{"$f":"IF('TSA Input'!J365=\"\",\"\",IF(OR('TSA Input'!J365=\"Yes\",'TSA Input'!J365=\"Contingent\"),'TSA Input'!C365,\"\"))","v":""},{"$f":"IF('TSA Input'!J365=\"\",\"\",IF(OR('TSA Input'!J365=\"Yes\",'TSA Input'!J365=\"Contingent\"),'TSA Input'!D365,\"\"))","v":""},{"$f":"IF('TSA Input'!J365=\"\",\"\",IF(OR('TSA Input'!J365=\"Yes\",'TSA Input'!J365=\"Contingent\"),'TSA Input'!G365,\"\"))","v":""},{"$f":"IF('TSA Input'!J365=\"\",\"\",IF(OR('TSA Input'!J365=\"Yes\",'TSA Input'!J365=\"Contingent\"),'TSA Input'!F365,\"\"))","v":""},"",{"$f":"IF('TSA Input'!J365=\"\",\"\",IF(OR('TSA Input'!J365=\"Yes\",'TSA Input'!J365=\"Contingent\"),'TSA Input'!D365,\"\"))","v":""},{"$f":"IF('TSA Input'!J365=\"\",\"\",IF(OR('TSA Input'!J365=\"Yes\",'TSA Input'!J365=\"Contingent\"),'TSA Input'!G365,\"\"))","v":""},{"$f":"IF('TSA Input'!J365=\"\",\"\",IF(OR('TSA Input'!J365=\"Yes\",'TSA Input'!J365=\"Contingent\"),'TSA Input'!F365,\"\"))","v":""},"","Required","Required"]
["",null,{"$f":"IF('TSA Input'!J366=\"\",\"\",IF(OR('TSA Input'!J366=\"Yes\",'TSA Input'!J366=\"Contingent\"),'TSA Input'!B366,\"Ineligible\"))","v":""},{"$f":"IF('TSA Input'!J366=\"\",\"\",IF(OR('TSA Input'!J366=\"Yes\",'TSA Input'!J366=\"Contingent\"),'TSA Input'!I366,\"\"))","v":""},{"$f":"IF('TSA Input'!J366=\"\",\"\",IF(OR('TSA Input'!J366=\"Yes\",'TSA Input'!J366=\"Contingent\"),'TSA Input'!C366,\"\"))","v":""},{"$f":"IF('TSA Input'!J366=\"\",\"\",IF(OR('TSA Input'!J366=\"Yes\",'TSA Input'!J366=\"Contingent\"),'TSA Input'!D366,\"\"))","v":""},{"$f":"IF('TSA Input'!J366=\"\",\"\",IF(OR('TSA Input'!J366=\"Yes\",'TSA Input'!J366=\"Contingent\"),'TSA Input'!G366,\"\"))","v":""},{"$f":"IF('TSA Input'!J366=\"\",\"\",IF(OR('TSA Input'!J366=\"Yes\",'TSA Input'!J366=\"Contingent\"),'TSA Input'!F366,\"\"))","v":""},"",{"$f":"IF('TSA Input'!J366=\"\",\"\",IF(OR('TSA Input'!J366=\"Yes\",'TSA Input'!J366=\"Contingent\"),'TSA Input'!D366,\"\"))","v":""},{"$f":"IF('TSA Input'!J366=\"\",\"\",IF(OR('TSA Input'!J366=\"Yes\",'TSA Input'!J366=\"Contingent\"),'TSA Input'!G366,\"\"))","v":""},{"$f":"IF('TSA Input'!J366=\"\",\"\",IF(OR('TSA Input'!J366=\"Yes\",'TSA Input'!J366=\"Contingent\"),'TSA Input'!F366,\"\"))","v":""},"","Required","Required"]
["",null,{"$f":"IF('TSA Input'!J367=\"\",\"\",IF(OR('TSA Input'!J367=\"Yes\",'TSA Input'!J367=\"Contingent\"),'TSA Input'!B367,\"Ineligible\"))","v":""},{"$f":"IF('TSA Input'!J367=\"\",\"\",IF(OR('TSA Input'!J367=\"Yes\",'TSA Input'!J367=\"Contingent\"),'TSA Input'!I367,\"\"))","v":""},{"$f":"IF('TSA Input'!J367=\"\",\"\",IF(OR('TSA Input'!J367=\"Yes\",'TSA Input'!J367=\"Contingent\"),'TSA Input'!C367,\"\"))","v":""},{"$f":"IF('TSA Input'!J367=\"\",\"\",IF(OR('TSA Input'!J367=\"Yes\",'TSA Input'!J367=\"Contingent\"),'TSA Input'!D367,\"\"))","v":""},{"$f":"IF('TSA Input'!J367=\"\",\"\",IF(OR('TSA Input'!J367=\"Yes\",'TSA Input'!J367=\"Contingent\"),'TSA Input'!G367,\"\"))","v":""},{"$f":"IF('TSA Input'!J367=\"\",\"\",IF(OR('TSA Input'!J367=\"Yes\",'TSA Input'!J367=\"Contingent\"),'TSA Input'!F367,\"\"))","v":""},"",{"$f":"IF('TSA Input'!J367=\"\",\"\",IF(OR('TSA Input'!J367=\"Yes\",'TSA Input'!J367=\"Contingent\"),'TSA Input'!D367,\"\"))","v":""},{"$f":"IF('TSA Input'!J367=\"\",\"\",IF(OR('TSA Input'!J367=\"Yes\",'TSA Input'!J367=\"Contingent\"),'TSA Input'!G367,\"\"))","v":""},{"$f":"IF('TSA Input'!J367=\"\",\"\",IF(OR('TSA Input'!J367=\"Yes\",'TSA Input'!J367=\"Contingent\"),'TSA Input'!F367,\"\"))","v":""},"","Required","Required"]
["",null,{"$f":"IF('TSA Input'!J368=\"\",\"\",IF(OR('TSA Input'!J368=\"Yes\",'TSA Input'!J368=\"Contingent\"),'TSA Input'!B368,\"Ineligible\"))","v":""},{"$f":"IF('TSA Input'!J368=\"\",\"\",IF(OR('TSA Input'!J368=\"Yes\",'TSA Input'!J368=\"Contingent\"),'TSA Input'!I368,\"\"))","v":""},{"$f":"IF('TSA Input'!J368=\"\",\"\",IF(OR('TSA Input'!J368=\"Yes\",'TSA Input'!J368=\"Contingent\"),'TSA Input'!C368,\"\"))","v":""},{"$f":"IF('TSA Input'!J368=\"\",\"\",IF(OR('TSA Input'!J368=\"Yes\",'TSA Input'!J368=\"Contingent\"),'TSA Input'!D368,\"\"))","v":""},{"$f":"IF('TSA Input'!J368=\"\",\"\",IF(OR('TSA Input'!J368=\"Yes\",'TSA Input'!J368=\"Contingent\"),'TSA Input'!G368,\"\"))","v":""},{"$f":"IF('TSA Input'!J368=\"\",\"\",IF(OR('TSA Input'!J368=\"Yes\",'TSA Input'!J368=\"Contingent\"),'TSA Input'!F368,\"\"))","v":""},"",{"$f":"IF('TSA Input'!J368=\"\",\"\",IF(OR('TSA Input'!J368=\"Yes\",'TSA Input'!J368=\"Contingent\"),'TSA Input'!D368,\"\"))","v":""},{"$f":"IF('TSA Input'!J368=\"\",\"\",IF(OR('TSA Input'!J368=\"Yes\",'TSA Input'!J368=\"Contingent\"),'TSA Input'!G368,\"\"))","v":""},{"$f":"IF('TSA Input'!J368=\"\",\"\",IF(OR('TSA Input'!J368=\"Yes\",'TSA Input'!J368=\"Contingent\"),'TSA Input'!F368,\"\"))","v":""},"","Required","Required"]
["",null,{"$f":"IF('TSA Input'!J369=\"\",\"\",IF(OR('TSA Input'!J369=\"Yes\",'TSA Input'!J369=\"Contingent\"),'TSA Input'!B369,\"Ineligible\"))","v":""},{"$f":"IF('TSA Input'!J369=\"\",\"\",IF(OR('TSA Input'!J369=\"Yes\",'TSA Input'!J369=\"Contingent\"),'TSA Input'!I369,\"\"))","v":""},{"$f":"IF('TSA Input'!J369=\"\",\"\",IF(OR('TSA Input'!J369=\"Yes\",'TSA Input'!J369=\"Contingent\"),'TSA Input'!C369,\"\"))","v":""},{"$f":"IF('TSA Input'!J369=\"\",\"\",IF(OR('TSA Input'!J369=\"Yes\",'TSA Input'!J369=\"Contingent\"),'TSA Input'!D369,\"\"))","v":""},{"$f":"IF('TSA Input'!J369=\"\",\"\",IF(OR('TSA Input'!J369=\"Yes\",'TSA Input'!J369=\"Contingent\"),'TSA Input'!G369,\"\"))","v":""},{"$f":"IF('TSA Input'!J369=\"\",\"\",IF(OR('TSA Input'!J369=\"Yes\",'TSA Input'!J369=\"Contingent\"),'TSA Input'!F369,\"\"))","v":""},"",{"$f":"IF('TSA Input'!J369=\"\",\"\",IF(OR('TSA Input'!J369=\"Yes\",'TSA Input'!J369=\"Contingent\"),'TSA Input'!D369,\"\"))","v":""},{"$f":"IF('TSA Input'!J369=\"\",\"\",IF(OR('TSA Input'!J369=\"Yes\",'TSA Input'!J369=\"Contingent\"),'TSA Input'!G369,\"\"))","v":""},{"$f":"IF('TSA Input'!J369=\"\",\"\",IF(OR('TSA Input'!J369=\"Yes\",'TSA Input'!J369=\"Contingent\"),'TSA Input'!F369,\"\"))","v":""},"","Required","Required"]
["",null,{"$f":"IF('TSA Input'!J370=\"\",\"\",IF(OR('TSA Input'!J370=\"Yes\",'TSA Input'!J370=\"Contingent\"),'TSA Input'!B370,\"Ineligible\"))","v":""},{"$f":"IF('TSA Input'!J370=\"\",\"\",IF(OR('TSA Input'!J370=\"Yes\",'TSA Input'!J370=\"Contingent\"),'TSA Input'!I370,\"\"))","v":""},{"$f":"IF('TSA Input'!J370=\"\",\"\",IF(OR('TSA Input'!J370=\"Yes\",'TSA Input'!J370=\"Contingent\"),'TSA Input'!C370,\"\"))","v":""},{"$f":"IF('TSA Input'!J370=\"\",\"\",IF(OR('TSA Input'!J370=\"Yes\",'TSA Input'!J370=\"Contingent\"),'TSA Input'!D370,\"\"))","v":""},{"$f":"IF('TSA Input'!J370=\"\",\"\",IF(OR('TSA Input'!J370=\"Yes\",'TSA Input'!J370=\"Contingent\"),'TSA Input'!G370,\"\"))","v":""},{"$f":"IF('TSA Input'!J370=\"\",\"\",IF(OR('TSA Input'!J370=\"Yes\",'TSA Input'!J370=\"Contingent\"),'TSA Input'!F370,\"\"))","v":""},"",{"$f":"IF('TSA Input'!J370=\"\",\"\",IF(OR('TSA Input'!J370=\"Yes\",'TSA Input'!J370=\"Contingent\"),'TSA Input'!D370,\"\"))","v":""},{"$f":"IF('TSA Input'!J370=\"\",\"\",IF(OR('TSA Input'!J370=\"Yes\",'TSA Input'!J370=\"Contingent\"),'TSA Input'!G370,\"\"))","v":""},{"$f":"IF('TSA Input'!J370=\"\",\"\",IF(OR('TSA Input'!J370=\"Yes\",'TSA Input'!J370=\"Contingent\"),'TSA Input'!F370,\"\"))","v":""},"","Required","Required"]
["",null,{"$f":"IF('TSA Input'!J371=\"\",\"\",IF(OR('TSA Input'!J371=\"Yes\",'TSA Input'!J371=\"Contingent\"),'TSA Input'!B371,\"Ineligible\"))","v":""},{"$f":"IF('TSA Input'!J371=\"\",\"\",IF(OR('TSA Input'!J371=\"Yes\",'TSA Input'!J371=\"Contingent\"),'TSA Input'!I371,\"\"))","v":""},{"$f":"IF('TSA Input'!J371=\"\",\"\",IF(OR('TSA Input'!J371=\"Yes\",'TSA Input'!J371=\"Contingent\"),'TSA Input'!C371,\"\"))","v":""},{"$f":"IF('TSA Input'!J371=\"\",\"\",IF(OR('TSA Input'!J371=\"Yes\",'TSA Input'!J371=\"Contingent\"),'TSA Input'!D371,\"\"))","v":""},{"$f":"IF('TSA Input'!J371=\"\",\"\",IF(OR('TSA Input'!J371=\"Yes\",'TSA Input'!J371=\"Contingent\"),'TSA Input'!G371,\"\"))","v":""},{"$f":"IF('TSA Input'!J371=\"\",\"\",IF(OR('TSA Input'!J371=\"Yes\",'TSA Input'!J371=\"Contingent\"),'TSA Input'!F371,\"\"))","v":""},"",{"$f":"IF('TSA Input'!J371=\"\",\"\",IF(OR('TSA Input'!J371=\"Yes\",'TSA Input'!J371=\"Contingent\"),'TSA Input'!D371,\"\"))","v":""},{"$f":"IF('TSA Input'!J371=\"\",\"\",IF(OR('TSA Input'!J371=\"Yes\",'TSA Input'!J371=\"Contingent\"),'TSA Input'!G371,\"\"))","v":""},{"$f":"IF('TSA Input'!J371=\"\",\"\",IF(OR('TSA Input'!J371=\"Yes\",'TSA Input'!J371=\"Contingent\"),'TSA Input'!F371,\"\"))","v":""},"","Required","Required"]
["",null,{"$f":"IF('TSA Input'!J372=\"\",\"\",IF(OR('TSA Input'!J372=\"Yes\",'TSA Input'!J372=\"Contingent\"),'TSA Input'!B372,\"Ineligible\"))","v":""},{"$f":"IF('TSA Input'!J372=\"\",\"\",IF(OR('TSA Input'!J372=\"Yes\",'TSA Input'!J372=\"Contingent\"),'TSA Input'!I372,\"\"))","v":""},{"$f":"IF('TSA Input'!J372=\"\",\"\",IF(OR('TSA Input'!J372=\"Yes\",'TSA Input'!J372=\"Contingent\"),'TSA Input'!C372,\"\"))","v":""},{"$f":"IF('TSA Input'!J372=\"\",\"\",IF(OR('TSA Input'!J372=\"Yes\",'TSA Input'!J372=\"Contingent\"),'TSA Input'!D372,\"\"))","v":""},{"$f":"IF('TSA Input'!J372=\"\",\"\",IF(OR('TSA Input'!J372=\"Yes\",'TSA Input'!J372=\"Contingent\"),'TSA Input'!G372,\"\"))","v":""},{"$f":"IF('TSA Input'!J372=\"\",\"\",IF(OR('TSA Input'!J372=\"Yes\",'TSA Input'!J372=\"Contingent\"),'TSA Input'!F372,\"\"))","v":""},"",{"$f":"IF('TSA Input'!J372=\"\",\"\",IF(OR('TSA Input'!J372=\"Yes\",'TSA Input'!J372=\"Contingent\"),'TSA Input'!D372,\"\"))","v":""},{"$f":"IF('TSA Input'!J372=\"\",\"\",IF(OR('TSA Input'!J372=\"Yes\",'TSA Input'!J372=\"Contingent\"),'TSA Input'!G372,\"\"))","v":""},{"$f":"IF('TSA Input'!J372=\"\",\"\",IF(OR('TSA Input'!J372=\"Yes\",'TSA Input'!J372=\"Contingent\"),'TSA Input'!F372,\"\"))","v":""},"","Required","Required"]
["",null,{"$f":"IF('TSA Input'!J373=\"\",\"\",IF(OR('TSA Input'!J373=\"Yes\",'TSA Input'!J373=\"Contingent\"),'TSA Input'!B373,\"Ineligible\"))","v":""},{"$f":"IF('TSA Input'!J373=\"\",\"\",IF(OR('TSA Input'!J373=\"Yes\",'TSA Input'!J373=\"Contingent\"),'TSA Input'!I373,\"\"))","v":""},{"$f":"IF('TSA Input'!J373=\"\",\"\",IF(OR('TSA Input'!J373=\"Yes\",'TSA Input'!J373=\"Contingent\"),'TSA Input'!C373,\"\"))","v":""},{"$f":"IF('TSA Input'!J373=\"\",\"\",IF(OR('TSA Input'!J373=\"Yes\",'TSA Input'!J373=\"Contingent\"),'TSA Input'!D373,\"\"))","v":""},{"$f":"IF('TSA Input'!J373=\"\",\"\",IF(OR('TSA Input'!J373=\"Yes\",'TSA Input'!J373=\"Contingent\"),'TSA Input'!G373,\"\"))","v":""},{"$f":"IF('TSA Input'!J373=\"\",\"\",IF(OR('TSA Input'!J373=\"Yes\",'TSA Input'!J373=\"Contingent\"),'TSA Input'!F373,\"\"))","v":""},"",{"$f":"IF('TSA Input'!J373=\"\",\"\",IF(OR('TSA Input'!J373=\"Yes\",'TSA Input'!J373=\"Contingent\"),'TSA Input'!D373,\"\"))","v":""},{"$f":"IF('TSA Input'!J373=\"\",\"\",IF(OR('TSA Input'!J373=\"Yes\",'TSA Input'!J373=\"Contingent\"),'TSA Input'!G373,\"\"))","v":""},{"$f":"IF('TSA Input'!J373=\"\",\"\",IF(OR('TSA Input'!J373=\"Yes\",'TSA Input'!J373=\"Contingent\"),'TSA Input'!F373,\"\"))","v":""},"","Required","Required"]
["",null,{"$f":"IF('TSA Input'!J374=\"\",\"\",IF(OR('TSA Input'!J374=\"Yes\",'TSA Input'!J374=\"Contingent\"),'TSA Input'!B374,\"Ineligible\"))","v":""},{"$f":"IF('TSA Input'!J374=\"\",\"\",IF(OR('TSA Input'!J374=\"Yes\",'TSA Input'!J374=\"Contingent\"),'TSA Input'!I374,\"\"))","v":""},{"$f":"IF('TSA Input'!J374=\"\",\"\",IF(OR('TSA Input'!J374=\"Yes\",'TSA Input'!J374=\"Contingent\"),'TSA Input'!C374,\"\"))","v":""},{"$f":"IF('TSA Input'!J374=\"\",\"\",IF(OR('TSA Input'!J374=\"Yes\",'TSA Input'!J374=\"Contingent\"),'TSA Input'!D374,\"\"))","v":""},{"$f":"IF('TSA Input'!J374=\"\",\"\",IF(OR('TSA Input'!J374=\"Yes\",'TSA Input'!J374=\"Contingent\"),'TSA Input'!G374,\"\"))","v":""},{"$f":"IF('TSA Input'!J374=\"\",\"\",IF(OR('TSA Input'!J374=\"Yes\",'TSA Input'!J374=\"Contingent\"),'TSA Input'!F374,\"\"))","v":""},"",{"$f":"IF('TSA Input'!J374=\"\",\"\",IF(OR('TSA Input'!J374=\"Yes\",'TSA Input'!J374=\"Contingent\"),'TSA Input'!D374,\"\"))","v":""},{"$f":"IF('TSA Input'!J374=\"\",\"\",IF(OR('TSA Input'!J374=\"Yes\",'TSA Input'!J374=\"Contingent\"),'TSA Input'!G374,\"\"))","v":""},{"$f":"IF('TSA Input'!J374=\"\",\"\",IF(OR('TSA Input'!J374=\"Yes\",'TSA Input'!J374=\"Contingent\"),'TSA Input'!F374,\"\"))","v":""},"","Required","Required"]
["",null,{"$f":"IF('TSA Input'!J375=\"\",\"\",IF(OR('TSA Input'!J375=\"Yes\",'TSA Input'!J375=\"Contingent\"),'TSA Input'!B375,\"Ineligible\"))","v":""},{"$f":"IF('TSA Input'!J375=\"\",\"\",IF(OR('TSA Input'!J375=\"Yes\",'TSA Input'!J375=\"Contingent\"),'TSA Input'!I375,\"\"))","v":""},{"$f":"IF('TSA Input'!J375=\"\",\"\",IF(OR('TSA Input'!J375=\"Yes\",'TSA Input'!J375=\"Contingent\"),'TSA Input'!C375,\"\"))","v":""},{"$f":"IF('TSA Input'!J375=\"\",\"\",IF(OR('TSA Input'!J375=\"Yes\",'TSA Input'!J375=\"Contingent\"),'TSA Input'!D375,\"\"))","v":""},{"$f":"IF('TSA Input'!J375=\"\",\"\",IF(OR('TSA Input'!J375=\"Yes\",'TSA Input'!J375=\"Contingent\"),'TSA Input'!G375,\"\"))","v":""},{"$f":"IF('TSA Input'!J375=\"\",\"\",IF(OR('TSA Input'!J375=\"Yes\",'TSA Input'!J375=\"Contingent\"),'TSA Input'!F375,\"\"))","v":""},"",{"$f":"IF('TSA Input'!J375=\"\",\"\",IF(OR('TSA Input'!J375=\"Yes\",'TSA Input'!J375=\"Contingent\"),'TSA Input'!D375,\"\"))","v":""},{"$f":"IF('TSA Input'!J375=\"\",\"\",IF(OR('TSA Input'!J375=\"Yes\",'TSA Input'!J375=\"Contingent\"),'TSA Input'!G375,\"\"))","v":""},{"$f":"IF('TSA Input'!J375=\"\",\"\",IF(OR('TSA Input'!J375=\"Yes\",'TSA Input'!J375=\"Contingent\"),'TSA Input'!F375,\"\"))","v":""},"","Required","Required"]
["",null,{"$f":"IF('TSA Input'!J376=\"\",\"\",IF(OR('TSA Input'!J376=\"Yes\",'TSA Input'!J376=\"Contingent\"),'TSA Input'!B376,\"Ineligible\"))","v":""},{"$f":"IF('TSA Input'!J376=\"\",\"\",IF(OR('TSA Input'!J376=\"Yes\",'TSA Input'!J376=\"Contingent\"),'TSA Input'!I376,\"\"))","v":""},{"$f":"IF('TSA Input'!J376=\"\",\"\",IF(OR('TSA Input'!J376=\"Yes\",'TSA Input'!J376=\"Contingent\"),'TSA Input'!C376,\"\"))","v":""},{"$f":"IF('TSA Input'!J376=\"\",\"\",IF(OR('TSA Input'!J376=\"Yes\",'TSA Input'!J376=\"Contingent\"),'TSA Input'!D376,\"\"))","v":""},{"$f":"IF('TSA Input'!J376=\"\",\"\",IF(OR('TSA Input'!J376=\"Yes\",'TSA Input'!J376=\"Contingent\"),'TSA Input'!G376,\"\"))","v":""},{"$f":"IF('TSA Input'!J376=\"\",\"\",IF(OR('TSA Input'!J376=\"Yes\",'TSA Input'!J376=\"Contingent\"),'TSA Input'!F376,\"\"))","v":""},"",{"$f":"IF('TSA Input'!J376=\"\",\"\",IF(OR('TSA Input'!J376=\"Yes\",'TSA Input'!J376=\"Contingent\"),'TSA Input'!D376,\"\"))","v":""},{"$f":"IF('TSA Input'!J376=\"\",\"\",IF(OR('TSA Input'!J376=\"Yes\",'TSA Input'!J376=\"Contingent\"),'TSA Input'!G376,\"\"))","v":""},{"$f":"IF('TSA Input'!J376=\"\",\"\",IF(OR('TSA Input'!J376=\"Yes\",'TSA Input'!J376=\"Contingent\"),'TSA Input'!F376,\"\"))","v":""},"","Required","Required"]
["",null,{"$f":"IF('TSA Input'!J377=\"\",\"\",IF(OR('TSA Input'!J377=\"Yes\",'TSA Input'!J377=\"Contingent\"),'TSA Input'!B377,\"Ineligible\"))","v":""},{"$f":"IF('TSA Input'!J377=\"\",\"\",IF(OR('TSA Input'!J377=\"Yes\",'TSA Input'!J377=\"Contingent\"),'TSA Input'!I377,\"\"))","v":""},{"$f":"IF('TSA Input'!J377=\"\",\"\",IF(OR('TSA Input'!J377=\"Yes\",'TSA Input'!J377=\"Contingent\"),'TSA Input'!C377,\"\"))","v":""},{"$f":"IF('TSA Input'!J377=\"\",\"\",IF(OR('TSA Input'!J377=\"Yes\",'TSA Input'!J377=\"Contingent\"),'TSA Input'!D377,\"\"))","v":""},{"$f":"IF('TSA Input'!J377=\"\",\"\",IF(OR('TSA Input'!J377=\"Yes\",'TSA Input'!J377=\"Contingent\"),'TSA Input'!G377,\"\"))","v":""},{"$f":"IF('TSA Input'!J377=\"\",\"\",IF(OR('TSA Input'!J377=\"Yes\",'TSA Input'!J377=\"Contingent\"),'TSA Input'!F377,\"\"))","v":""},"",{"$f":"IF('TSA Input'!J377=\"\",\"\",IF(OR('TSA Input'!J377=\"Yes\",'TSA Input'!J377=\"Contingent\"),'TSA Input'!D377,\"\"))","v":""},{"$f":"IF('TSA Input'!J377=\"\",\"\",IF(OR('TSA Input'!J377=\"Yes\",'TSA Input'!J377=\"Contingent\"),'TSA Input'!G377,\"\"))","v":""},{"$f":"IF('TSA Input'!J377=\"\",\"\",IF(OR('TSA Input'!J377=\"Yes\",'TSA Input'!J377=\"Contingent\"),'TSA Input'!F377,\"\"))","v":""},"","Required","Required"]
["",null,{"$f":"IF('TSA Input'!J378=\"\",\"\",IF(OR('TSA Input'!J378=\"Yes\",'TSA Input'!J378=\"Contingent\"),'TSA Input'!B378,\"Ineligible\"))","v":""},{"$f":"IF('TSA Input'!J378=\"\",\"\",IF(OR('TSA Input'!J378=\"Yes\",'TSA Input'!J378=\"Contingent\"),'TSA Input'!I378,\"\"))","v":""},{"$f":"IF('TSA Input'!J378=\"\",\"\",IF(OR('TSA Input'!J378=\"Yes\",'TSA Input'!J378=\"Contingent\"),'TSA Input'!C378,\"\"))","v":""},{"$f":"IF('TSA Input'!J378=\"\",\"\",IF(OR('TSA Input'!J378=\"Yes\",'TSA Input'!J378=\"Contingent\"),'TSA Input'!D378,\"\"))","v":""},{"$f":"IF('TSA Input'!J378=\"\",\"\",IF(OR('TSA Input'!J378=\"Yes\",'TSA Input'!J378=\"Contingent\"),'TSA Input'!G378,\"\"))","v":""},{"$f":"IF('TSA Input'!J378=\"\",\"\",IF(OR('TSA Input'!J378=\"Yes\",'TSA Input'!J378=\"Contingent\"),'TSA Input'!F378,\"\"))","v":""},"",{"$f":"IF('TSA Input'!J378=\"\",\"\",IF(OR('TSA Input'!J378=\"Yes\",'TSA Input'!J378=\"Contingent\"),'TSA Input'!D378,\"\"))","v":""},{"$f":"IF('TSA Input'!J378=\"\",\"\",IF(OR('TSA Input'!J378=\"Yes\",'TSA Input'!J378=\"Contingent\"),'TSA Input'!G378,\"\"))","v":""},{"$f":"IF('TSA Input'!J378=\"\",\"\",IF(OR('TSA Input'!J378=\"Yes\",'TSA Input'!J378=\"Contingent\"),'TSA Input'!F378,\"\"))","v":""},"","Required","Required"]
["",null,{"$f":"IF('TSA Input'!J379=\"\",\"\",IF(OR('TSA Input'!J379=\"Yes\",'TSA Input'!J379=\"Contingent\"),'TSA Input'!B379,\"Ineligible\"))","v":""},{"$f":"IF('TSA Input'!J379=\"\",\"\",IF(OR('TSA Input'!J379=\"Yes\",'TSA Input'!J379=\"Contingent\"),'TSA Input'!I379,\"\"))","v":""},{"$f":"IF('TSA Input'!J379=\"\",\"\",IF(OR('TSA Input'!J379=\"Yes\",'TSA Input'!J379=\"Contingent\"),'TSA Input'!C379,\"\"))","v":""},{"$f":"IF('TSA Input'!J379=\"\",\"\",IF(OR('TSA Input'!J379=\"Yes\",'TSA Input'!J379=\"Contingent\"),'TSA Input'!D379,\"\"))","v":""},{"$f":"IF('TSA Input'!J379=\"\",\"\",IF(OR('TSA Input'!J379=\"Yes\",'TSA Input'!J379=\"Contingent\"),'TSA Input'!G379,\"\"))","v":""},{"$f":"IF('TSA Input'!J379=\"\",\"\",IF(OR('TSA Input'!J379=\"Yes\",'TSA Input'!J379=\"Contingent\"),'TSA Input'!F379,\"\"))","v":""},"",{"$f":"IF('TSA Input'!J379=\"\",\"\",IF(OR('TSA Input'!J379=\"Yes\",'TSA Input'!J379=\"Contingent\"),'TSA Input'!D379,\"\"))","v":""},{"$f":"IF('TSA Input'!J379=\"\",\"\",IF(OR('TSA Input'!J379=\"Yes\",'TSA Input'!J379=\"Contingent\"),'TSA Input'!G379,\"\"))","v":""},{"$f":"IF('TSA Input'!J379=\"\",\"\",IF(OR('TSA Input'!J379=\"Yes\",'TSA Input'!J379=\"Contingent\"),'TSA Input'!F379,\"\"))","v":""},"","Required","Required"]
["",null,{"$f":"IF('TSA Input'!J380=\"\",\"\",IF(OR('TSA Input'!J380=\"Yes\",'TSA Input'!J380=\"Contingent\"),'TSA Input'!B380,\"Ineligible\"))","v":""},{"$f":"IF('TSA Input'!J380=\"\",\"\",IF(OR('TSA Input'!J380=\"Yes\",'TSA Input'!J380=\"Contingent\"),'TSA Input'!I380,\"\"))","v":""},{"$f":"IF('TSA Input'!J380=\"\",\"\",IF(OR('TSA Input'!J380=\"Yes\",'TSA Input'!J380=\"Contingent\"),'TSA Input'!C380,\"\"))","v":""},{"$f":"IF('TSA Input'!J380=\"\",\"\",IF(OR('TSA Input'!J380=\"Yes\",'TSA Input'!J380=\"Contingent\"),'TSA Input'!D380,\"\"))","v":""},{"$f":"IF('TSA Input'!J380=\"\",\"\",IF(OR('TSA Input'!J380=\"Yes\",'TSA Input'!J380=\"Contingent\"),'TSA Input'!G380,\"\"))","v":""},{"$f":"IF('TSA Input'!J380=\"\",\"\",IF(OR('TSA Input'!J380=\"Yes\",'TSA Input'!J380=\"Contingent\"),'TSA Input'!F380,\"\"))","v":""},"",{"$f":"IF('TSA Input'!J380=\"\",\"\",IF(OR('TSA Input'!J380=\"Yes\",'TSA Input'!J380=\"Contingent\"),'TSA Input'!D380,\"\"))","v":""},{"$f":"IF('TSA Input'!J380=\"\",\"\",IF(OR('TSA Input'!J380=\"Yes\",'TSA Input'!J380=\"Contingent\"),'TSA Input'!G380,\"\"))","v":""},{"$f":"IF('TSA Input'!J380=\"\",\"\",IF(OR('TSA Input'!J380=\"Yes\",'TSA Input'!J380=\"Contingent\"),'TSA Input'!F380,\"\"))","v":""},"","Required","Required"]
["",null,{"$f":"IF('TSA Input'!J381=\"\",\"\",IF(OR('TSA Input'!J381=\"Yes\",'TSA Input'!J381=\"Contingent\"),'TSA Input'!B381,\"Ineligible\"))","v":""},{"$f":"IF('TSA Input'!J381=\"\",\"\",IF(OR('TSA Input'!J381=\"Yes\",'TSA Input'!J381=\"Contingent\"),'TSA Input'!I381,\"\"))","v":""},{"$f":"IF('TSA Input'!J381=\"\",\"\",IF(OR('TSA Input'!J381=\"Yes\",'TSA Input'!J381=\"Contingent\"),'TSA Input'!C381,\"\"))","v":""},{"$f":"IF('TSA Input'!J381=\"\",\"\",IF(OR('TSA Input'!J381=\"Yes\",'TSA Input'!J381=\"Contingent\"),'TSA Input'!D381,\"\"))","v":""},{"$f":"IF('TSA Input'!J381=\"\",\"\",IF(OR('TSA Input'!J381=\"Yes\",'TSA Input'!J381=\"Contingent\"),'TSA Input'!G381,\"\"))","v":""},{"$f":"IF('TSA Input'!J381=\"\",\"\",IF(OR('TSA Input'!J381=\"Yes\",'TSA Input'!J381=\"Contingent\"),'TSA Input'!F381,\"\"))","v":""},"",{"$f":"IF('TSA Input'!J381=\"\",\"\",IF(OR('TSA Input'!J381=\"Yes\",'TSA Input'!J381=\"Contingent\"),'TSA Input'!D381,\"\"))","v":""},{"$f":"IF('TSA Input'!J381=\"\",\"\",IF(OR('TSA Input'!J381=\"Yes\",'TSA Input'!J381=\"Contingent\"),'TSA Input'!G381,\"\"))","v":""},{"$f":"IF('TSA Input'!J381=\"\",\"\",IF(OR('TSA Input'!J381=\"Yes\",'TSA Input'!J381=\"Contingent\"),'TSA Input'!F381,\"\"))","v":""},"","Required","Required"]
["",null,{"$f":"IF('TSA Input'!J382=\"\",\"\",IF(OR('TSA Input'!J382=\"Yes\",'TSA Input'!J382=\"Contingent\"),'TSA Input'!B382,\"Ineligible\"))","v":""},{"$f":"IF('TSA Input'!J382=\"\",\"\",IF(OR('TSA Input'!J382=\"Yes\",'TSA Input'!J382=\"Contingent\"),'TSA Input'!I382,\"\"))","v":""},{"$f":"IF('TSA Input'!J382=\"\",\"\",IF(OR('TSA Input'!J382=\"Yes\",'TSA Input'!J382=\"Contingent\"),'TSA Input'!C382,\"\"))","v":""},{"$f":"IF('TSA Input'!J382=\"\",\"\",IF(OR('TSA Input'!J382=\"Yes\",'TSA Input'!J382=\"Contingent\"),'TSA Input'!D382,\"\"))","v":""},{"$f":"IF('TSA Input'!J382=\"\",\"\",IF(OR('TSA Input'!J382=\"Yes\",'TSA Input'!J382=\"Contingent\"),'TSA Input'!G382,\"\"))","v":""},{"$f":"IF('TSA Input'!J382=\"\",\"\",IF(OR('TSA Input'!J382=\"Yes\",'TSA Input'!J382=\"Contingent\"),'TSA Input'!F382,\"\"))","v":""},"",{"$f":"IF('TSA Input'!J382=\"\",\"\",IF(OR('TSA Input'!J382=\"Yes\",'TSA Input'!J382=\"Contingent\"),'TSA Input'!D382,\"\"))","v":""},{"$f":"IF('TSA Input'!J382=\"\",\"\",IF(OR('TSA Input'!J382=\"Yes\",'TSA Input'!J382=\"Contingent\"),'TSA Input'!G382,\"\"))","v":""},{"$f":"IF('TSA Input'!J382=\"\",\"\",IF(OR('TSA Input'!J382=\"Yes\",'TSA Input'!J382=\"Contingent\"),'TSA Input'!F382,\"\"))","v":""},"","Required","Required"]
["",null,{"$f":"IF('TSA Input'!J383=\"\",\"\",IF(OR('TSA Input'!J383=\"Yes\",'TSA Input'!J383=\"Contingent\"),'TSA Input'!B383,\"Ineligible\"))","v":""},{"$f":"IF('TSA Input'!J383=\"\",\"\",IF(OR('TSA Input'!J383=\"Yes\",'TSA Input'!J383=\"Contingent\"),'TSA Input'!I383,\"\"))","v":""},{"$f":"IF('TSA Input'!J383=\"\",\"\",IF(OR('TSA Input'!J383=\"Yes\",'TSA Input'!J383=\"Contingent\"),'TSA Input'!C383,\"\"))","v":""},{"$f":"IF('TSA Input'!J383=\"\",\"\",IF(OR('TSA Input'!J383=\"Yes\",'TSA Input'!J383=\"Contingent\"),'TSA Input'!D383,\"\"))","v":""},{"$f":"IF('TSA Input'!J383=\"\",\"\",IF(OR('TSA Input'!J383=\"Yes\",'TSA Input'!J383=\"Contingent\"),'TSA Input'!G383,\"\"))","v":""},{"$f":"IF('TSA Input'!J383=\"\",\"\",IF(OR('TSA Input'!J383=\"Yes\",'TSA Input'!J383=\"Contingent\"),'TSA Input'!F383,\"\"))","v":""},"",{"$f":"IF('TSA Input'!J383=\"\",\"\",IF(OR('TSA Input'!J383=\"Yes\",'TSA Input'!J383=\"Contingent\"),'TSA Input'!D383,\"\"))","v":""},{"$f":"IF('TSA Input'!J383=\"\",\"\",IF(OR('TSA Input'!J383=\"Yes\",'TSA Input'!J383=\"Contingent\"),'TSA Input'!G383,\"\"))","v":""},{"$f":"IF('TSA Input'!J383=\"\",\"\",IF(OR('TSA Input'!J383=\"Yes\",'TSA Input'!J383=\"Contingent\"),'TSA Input'!F383,\"\"))","v":""},"","Required","Required"]
["",null,{"$f":"IF('TSA Input'!J384=\"\",\"\",IF(OR('TSA Input'!J384=\"Yes\",'TSA Input'!J384=\"Contingent\"),'TSA Input'!B384,\"Ineligible\"))","v":""},{"$f":"IF('TSA Input'!J384=\"\",\"\",IF(OR('TSA Input'!J384=\"Yes\",'TSA Input'!J384=\"Contingent\"),'TSA Input'!I384,\"\"))","v":""},{"$f":"IF('TSA Input'!J384=\"\",\"\",IF(OR('TSA Input'!J384=\"Yes\",'TSA Input'!J384=\"Contingent\"),'TSA Input'!C384,\"\"))","v":""},{"$f":"IF('TSA Input'!J384=\"\",\"\",IF(OR('TSA Input'!J384=\"Yes\",'TSA Input'!J384=\"Contingent\"),'TSA Input'!D384,\"\"))","v":""},{"$f":"IF('TSA Input'!J384=\"\",\"\",IF(OR('TSA Input'!J384=\"Yes\",'TSA Input'!J384=\"Contingent\"),'TSA Input'!G384,\"\"))","v":""},{"$f":"IF('TSA Input'!J384=\"\",\"\",IF(OR('TSA Input'!J384=\"Yes\",'TSA Input'!J384=\"Contingent\"),'TSA Input'!F384,\"\"))","v":""},"",{"$f":"IF('TSA Input'!J384=\"\",\"\",IF(OR('TSA Input'!J384=\"Yes\",'TSA Input'!J384=\"Contingent\"),'TSA Input'!D384,\"\"))","v":""},{"$f":"IF('TSA Input'!J384=\"\",\"\",IF(OR('TSA Input'!J384=\"Yes\",'TSA Input'!J384=\"Contingent\"),'TSA Input'!G384,\"\"))","v":""},{"$f":"IF('TSA Input'!J384=\"\",\"\",IF(OR('TSA Input'!J384=\"Yes\",'TSA Input'!J384=\"Contingent\"),'TSA Input'!F384,\"\"))","v":""},"","Required","Required"]
["",null,{"$f":"IF('TSA Input'!J385=\"\",\"\",IF(OR('TSA Input'!J385=\"Yes\",'TSA Input'!J385=\"Contingent\"),'TSA Input'!B385,\"Ineligible\"))","v":""},{"$f":"IF('TSA Input'!J385=\"\",\"\",IF(OR('TSA Input'!J385=\"Yes\",'TSA Input'!J385=\"Contingent\"),'TSA Input'!I385,\"\"))","v":""},{"$f":"IF('TSA Input'!J385=\"\",\"\",IF(OR('TSA Input'!J385=\"Yes\",'TSA Input'!J385=\"Contingent\"),'TSA Input'!C385,\"\"))","v":""},{"$f":"IF('TSA Input'!J385=\"\",\"\",IF(OR('TSA Input'!J385=\"Yes\",'TSA Input'!J385=\"Contingent\"),'TSA Input'!D385,\"\"))","v":""},{"$f":"IF('TSA Input'!J385=\"\",\"\",IF(OR('TSA Input'!J385=\"Yes\",'TSA Input'!J385=\"Contingent\"),'TSA Input'!G385,\"\"))","v":""},{"$f":"IF('TSA Input'!J385=\"\",\"\",IF(OR('TSA Input'!J385=\"Yes\",'TSA Input'!J385=\"Contingent\"),'TSA Input'!F385,\"\"))","v":""},"",{"$f":"IF('TSA Input'!J385=\"\",\"\",IF(OR('TSA Input'!J385=\"Yes\",'TSA Input'!J385=\"Contingent\"),'TSA Input'!D385,\"\"))","v":""},{"$f":"IF('TSA Input'!J385=\"\",\"\",IF(OR('TSA Input'!J385=\"Yes\",'TSA Input'!J385=\"Contingent\"),'TSA Input'!G385,\"\"))","v":""},{"$f":"IF('TSA Input'!J385=\"\",\"\",IF(OR('TSA Input'!J385=\"Yes\",'TSA Input'!J385=\"Contingent\"),'TSA Input'!F385,\"\"))","v":""},"","Required","Required"]
["",null,{"$f":"IF('TSA Input'!J386=\"\",\"\",IF(OR('TSA Input'!J386=\"Yes\",'TSA Input'!J386=\"Contingent\"),'TSA Input'!B386,\"Ineligible\"))","v":""},{"$f":"IF('TSA Input'!J386=\"\",\"\",IF(OR('TSA Input'!J386=\"Yes\",'TSA Input'!J386=\"Contingent\"),'TSA Input'!I386,\"\"))","v":""},{"$f":"IF('TSA Input'!J386=\"\",\"\",IF(OR('TSA Input'!J386=\"Yes\",'TSA Input'!J386=\"Contingent\"),'TSA Input'!C386,\"\"))","v":""},{"$f":"IF('TSA Input'!J386=\"\",\"\",IF(OR('TSA Input'!J386=\"Yes\",'TSA Input'!J386=\"Contingent\"),'TSA Input'!D386,\"\"))","v":""},{"$f":"IF('TSA Input'!J386=\"\",\"\",IF(OR('TSA Input'!J386=\"Yes\",'TSA Input'!J386=\"Contingent\"),'TSA Input'!G386,\"\"))","v":""},{"$f":"IF('TSA Input'!J386=\"\",\"\",IF(OR('TSA Input'!J386=\"Yes\",'TSA Input'!J386=\"Contingent\"),'TSA Input'!F386,\"\"))","v":""},"",{"$f":"IF('TSA Input'!J386=\"\",\"\",IF(OR('TSA Input'!J386=\"Yes\",'TSA Input'!J386=\"Contingent\"),'TSA Input'!D386,\"\"))","v":""},{"$f":"IF('TSA Input'!J386=\"\",\"\",IF(OR('TSA Input'!J386=\"Yes\",'TSA Input'!J386=\"Contingent\"),'TSA Input'!G386,\"\"))","v":""},{"$f":"IF('TSA Input'!J386=\"\",\"\",IF(OR('TSA Input'!J386=\"Yes\",'TSA Input'!J386=\"Contingent\"),'TSA Input'!F386,\"\"))","v":""},"","Required","Required"]
["",null,{"$f":"IF('TSA Input'!J387=\"\",\"\",IF(OR('TSA Input'!J387=\"Yes\",'TSA Input'!J387=\"Contingent\"),'TSA Input'!B387,\"Ineligible\"))","v":""},{"$f":"IF('TSA Input'!J387=\"\",\"\",IF(OR('TSA Input'!J387=\"Yes\",'TSA Input'!J387=\"Contingent\"),'TSA Input'!I387,\"\"))","v":""},{"$f":"IF('TSA Input'!J387=\"\",\"\",IF(OR('TSA Input'!J387=\"Yes\",'TSA Input'!J387=\"Contingent\"),'TSA Input'!C387,\"\"))","v":""},{"$f":"IF('TSA Input'!J387=\"\",\"\",IF(OR('TSA Input'!J387=\"Yes\",'TSA Input'!J387=\"Contingent\"),'TSA Input'!D387,\"\"))","v":""},{"$f":"IF('TSA Input'!J387=\"\",\"\",IF(OR('TSA Input'!J387=\"Yes\",'TSA Input'!J387=\"Contingent\"),'TSA Input'!G387,\"\"))","v":""},{"$f":"IF('TSA Input'!J387=\"\",\"\",IF(OR('TSA Input'!J387=\"Yes\",'TSA Input'!J387=\"Contingent\"),'TSA Input'!F387,\"\"))","v":""},"",{"$f":"IF('TSA Input'!J387=\"\",\"\",IF(OR('TSA Input'!J387=\"Yes\",'TSA Input'!J387=\"Contingent\"),'TSA Input'!D387,\"\"))","v":""},{"$f":"IF('TSA Input'!J387=\"\",\"\",IF(OR('TSA Input'!J387=\"Yes\",'TSA Input'!J387=\"Contingent\"),'TSA Input'!G387,\"\"))","v":""},{"$f":"IF('TSA Input'!J387=\"\",\"\",IF(OR('TSA Input'!J387=\"Yes\",'TSA Input'!J387=\"Contingent\"),'TSA Input'!F387,\"\"))","v":""},"","Required","Required"]
["",null,{"$f":"IF('TSA Input'!J388=\"\",\"\",IF(OR('TSA Input'!J388=\"Yes\",'TSA Input'!J388=\"Contingent\"),'TSA Input'!B388,\"Ineligible\"))","v":""},{"$f":"IF('TSA Input'!J388=\"\",\"\",IF(OR('TSA Input'!J388=\"Yes\",'TSA Input'!J388=\"Contingent\"),'TSA Input'!I388,\"\"))","v":""},{"$f":"IF('TSA Input'!J388=\"\",\"\",IF(OR('TSA Input'!J388=\"Yes\",'TSA Input'!J388=\"Contingent\"),'TSA Input'!C388,\"\"))","v":""},{"$f":"IF('TSA Input'!J388=\"\",\"\",IF(OR('TSA Input'!J388=\"Yes\",'TSA Input'!J388=\"Contingent\"),'TSA Input'!D388,\"\"))","v":""},{"$f":"IF('TSA Input'!J388=\"\",\"\",IF(OR('TSA Input'!J388=\"Yes\",'TSA Input'!J388=\"Contingent\"),'TSA Input'!G388,\"\"))","v":""},{"$f":"IF('TSA Input'!J388=\"\",\"\",IF(OR('TSA Input'!J388=\"Yes\",'TSA Input'!J388=\"Contingent\"),'TSA Input'!F388,\"\"))","v":""},{"$f":"IF($C426=\"\",\"\",SUM(F426:H426))","v":""},{"$f":"IF('TSA Input'!J388=\"\",\"\",IF(OR('TSA Input'!J388=\"Yes\",'TSA Input'!J388=\"Contingent\"),'TSA Input'!D388,\"\"))","v":""},{"$f":"IF('TSA Input'!J388=\"\",\"\",IF(OR('TSA Input'!J388=\"Yes\",'TSA Input'!J388=\"Contingent\"),'TSA Input'!G388,\"\"))","v":""},{"$f":"IF('TSA Input'!J388=\"\",\"\",IF(OR('TSA Input'!J388=\"Yes\",'TSA Input'!J388=\"Contingent\"),'TSA Input'!F388,\"\"))","v":""},{"$f":"IF($C426=\"\",\"\",SUM(J426:L426))","v":""},"Required","Required"]
["",null,{"$f":"IF('TSA Input'!J389=\"\",\"\",IF(OR('TSA Input'!J389=\"Yes\",'TSA Input'!J389=\"Contingent\"),'TSA Input'!B389,\"Ineligible\"))","v":""},{"$f":"IF('TSA Input'!J389=\"\",\"\",IF(OR('TSA Input'!J389=\"Yes\",'TSA Input'!J389=\"Contingent\"),'TSA Input'!I389,\"\"))","v":""},{"$f":"IF('TSA Input'!J389=\"\",\"\",IF(OR('TSA Input'!J389=\"Yes\",'TSA Input'!J389=\"Contingent\"),'TSA Input'!C389,\"\"))","v":""},{"$f":"IF('TSA Input'!J389=\"\",\"\",IF(OR('TSA Input'!J389=\"Yes\",'TSA Input'!J389=\"Contingent\"),'TSA Input'!D389,\"\"))","v":""},{"$f":"IF('TSA Input'!J389=\"\",\"\",IF(OR('TSA Input'!J389=\"Yes\",'TSA Input'!J389=\"Contingent\"),'TSA Input'!G389,\"\"))","v":""},{"$f":"IF('TSA Input'!J389=\"\",\"\",IF(OR('TSA Input'!J389=\"Yes\",'TSA Input'!J389=\"Contingent\"),'TSA Input'!F389,\"\"))","v":""},"",{"$f":"IF('TSA Input'!J389=\"\",\"\",IF(OR('TSA Input'!J389=\"Yes\",'TSA Input'!J389=\"Contingent\"),'TSA Input'!D389,\"\"))","v":""},{"$f":"IF('TSA Input'!J389=\"\",\"\",IF(OR('TSA Input'!J389=\"Yes\",'TSA Input'!J389=\"Contingent\"),'TSA Input'!G389,\"\"))","v":""},{"$f":"IF('TSA Input'!J389=\"\",\"\",IF(OR('TSA Input'!J389=\"Yes\",'TSA Input'!J389=\"Contingent\"),'TSA Input'!F389,\"\"))","v":""},"","Required","Required"]
["",null,{"$f":"IF('TSA Input'!J390=\"\",\"\",IF(OR('TSA Input'!J390=\"Yes\",'TSA Input'!J390=\"Contingent\"),'TSA Input'!B390,\"Ineligible\"))","v":""},{"$f":"IF('TSA Input'!J390=\"\",\"\",IF(OR('TSA Input'!J390=\"Yes\",'TSA Input'!J390=\"Contingent\"),'TSA Input'!I390,\"\"))","v":""},{"$f":"IF('TSA Input'!J390=\"\",\"\",IF(OR('TSA Input'!J390=\"Yes\",'TSA Input'!J390=\"Contingent\"),'TSA Input'!C390,\"\"))","v":""},{"$f":"IF('TSA Input'!J390=\"\",\"\",IF(OR('TSA Input'!J390=\"Yes\",'TSA Input'!J390=\"Contingent\"),'TSA Input'!D390,\"\"))","v":""},{"$f":"IF('TSA Input'!J390=\"\",\"\",IF(OR('TSA Input'!J390=\"Yes\",'TSA Input'!J390=\"Contingent\"),'TSA Input'!G390,\"\"))","v":""},{"$f":"IF('TSA Input'!J390=\"\",\"\",IF(OR('TSA Input'!J390=\"Yes\",'TSA Input'!J390=\"Contingent\"),'TSA Input'!F390,\"\"))","v":""},"",{"$f":"IF('TSA Input'!J390=\"\",\"\",IF(OR('TSA Input'!J390=\"Yes\",'TSA Input'!J390=\"Contingent\"),'TSA Input'!D390,\"\"))","v":""},{"$f":"IF('TSA Input'!J390=\"\",\"\",IF(OR('TSA Input'!J390=\"Yes\",'TSA Input'!J390=\"Contingent\"),'TSA Input'!G390,\"\"))","v":""},{"$f":"IF('TSA Input'!J390=\"\",\"\",IF(OR('TSA Input'!J390=\"Yes\",'TSA Input'!J390=\"Contingent\"),'TSA Input'!F390,\"\"))","v":""},"","Required","Required"]
["",null,{"$f":"IF('TSA Input'!J391=\"\",\"\",IF(OR('TSA Input'!J391=\"Yes\",'TSA Input'!J391=\"Contingent\"),'TSA Input'!B391,\"Ineligible\"))","v":""},{"$f":"IF('TSA Input'!J391=\"\",\"\",IF(OR('TSA Input'!J391=\"Yes\",'TSA Input'!J391=\"Contingent\"),'TSA Input'!I391,\"\"))","v":""},{"$f":"IF('TSA Input'!J391=\"\",\"\",IF(OR('TSA Input'!J391=\"Yes\",'TSA Input'!J391=\"Contingent\"),'TSA Input'!C391,\"\"))","v":""},{"$f":"IF('TSA Input'!J391=\"\",\"\",IF(OR('TSA Input'!J391=\"Yes\",'TSA Input'!J391=\"Contingent\"),'TSA Input'!D391,\"\"))","v":""},{"$f":"IF('TSA Input'!J391=\"\",\"\",IF(OR('TSA Input'!J391=\"Yes\",'TSA Input'!J391=\"Contingent\"),'TSA Input'!G391,\"\"))","v":""},{"$f":"IF('TSA Input'!J391=\"\",\"\",IF(OR('TSA Input'!J391=\"Yes\",'TSA Input'!J391=\"Contingent\"),'TSA Input'!F391,\"\"))","v":""},"",{"$f":"IF('TSA Input'!J391=\"\",\"\",IF(OR('TSA Input'!J391=\"Yes\",'TSA Input'!J391=\"Contingent\"),'TSA Input'!D391,\"\"))","v":""},{"$f":"IF('TSA Input'!J391=\"\",\"\",IF(OR('TSA Input'!J391=\"Yes\",'TSA Input'!J391=\"Contingent\"),'TSA Input'!G391,\"\"))","v":""},{"$f":"IF('TSA Input'!J391=\"\",\"\",IF(OR('TSA Input'!J391=\"Yes\",'TSA Input'!J391=\"Contingent\"),'TSA Input'!F391,\"\"))","v":""},"","Required","Required"]
["",null,{"$f":"IF('TSA Input'!J392=\"\",\"\",IF(OR('TSA Input'!J392=\"Yes\",'TSA Input'!J392=\"Contingent\"),'TSA Input'!B392,\"Ineligible\"))","v":""},{"$f":"IF('TSA Input'!J392=\"\",\"\",IF(OR('TSA Input'!J392=\"Yes\",'TSA Input'!J392=\"Contingent\"),'TSA Input'!I392,\"\"))","v":""},{"$f":"IF('TSA Input'!J392=\"\",\"\",IF(OR('TSA Input'!J392=\"Yes\",'TSA Input'!J392=\"Contingent\"),'TSA Input'!C392,\"\"))","v":""},{"$f":"IF('TSA Input'!J392=\"\",\"\",IF(OR('TSA Input'!J392=\"Yes\",'TSA Input'!J392=\"Contingent\"),'TSA Input'!D392,\"\"))","v":""},{"$f":"IF('TSA Input'!J392=\"\",\"\",IF(OR('TSA Input'!J392=\"Yes\",'TSA Input'!J392=\"Contingent\"),'TSA Input'!G392,\"\"))","v":""},{"$f":"IF('TSA Input'!J392=\"\",\"\",IF(OR('TSA Input'!J392=\"Yes\",'TSA Input'!J392=\"Contingent\"),'TSA Input'!F392,\"\"))","v":""},"",{"$f":"IF('TSA Input'!J392=\"\",\"\",IF(OR('TSA Input'!J392=\"Yes\",'TSA Input'!J392=\"Contingent\"),'TSA Input'!D392,\"\"))","v":""},{"$f":"IF('TSA Input'!J392=\"\",\"\",IF(OR('TSA Input'!J392=\"Yes\",'TSA Input'!J392=\"Contingent\"),'TSA Input'!G392,\"\"))","v":""},{"$f":"IF('TSA Input'!J392=\"\",\"\",IF(OR('TSA Input'!J392=\"Yes\",'TSA Input'!J392=\"Contingent\"),'TSA Input'!F392,\"\"))","v":""},"","Required","Required"]
["",null,{"$f":"IF('TSA Input'!J393=\"\",\"\",IF(OR('TSA Input'!J393=\"Yes\",'TSA Input'!J393=\"Contingent\"),'TSA Input'!B393,\"Ineligible\"))","v":""},{"$f":"IF('TSA Input'!J393=\"\",\"\",IF(OR('TSA Input'!J393=\"Yes\",'TSA Input'!J393=\"Contingent\"),'TSA Input'!I393,\"\"))","v":""},{"$f":"IF('TSA Input'!J393=\"\",\"\",IF(OR('TSA Input'!J393=\"Yes\",'TSA Input'!J393=\"Contingent\"),'TSA Input'!C393,\"\"))","v":""},{"$f":"IF('TSA Input'!J393=\"\",\"\",IF(OR('TSA Input'!J393=\"Yes\",'TSA Input'!J393=\"Contingent\"),'TSA Input'!D393,\"\"))","v":""},{"$f":"IF('TSA Input'!J393=\"\",\"\",IF(OR('TSA Input'!J393=\"Yes\",'TSA Input'!J393=\"Contingent\"),'TSA Input'!G393,\"\"))","v":""},{"$f":"IF('TSA Input'!J393=\"\",\"\",IF(OR('TSA Input'!J393=\"Yes\",'TSA Input'!J393=\"Contingent\"),'TSA Input'!F393,\"\"))","v":""},"",{"$f":"IF('TSA Input'!J393=\"\",\"\",IF(OR('TSA Input'!J393=\"Yes\",'TSA Input'!J393=\"Contingent\"),'TSA Input'!D393,\"\"))","v":""},{"$f":"IF('TSA Input'!J393=\"\",\"\",IF(OR('TSA Input'!J393=\"Yes\",'TSA Input'!J393=\"Contingent\"),'TSA Input'!G393,\"\"))","v":""},{"$f":"IF('TSA Input'!J393=\"\",\"\",IF(OR('TSA Input'!J393=\"Yes\",'TSA Input'!J393=\"Contingent\"),'TSA Input'!F393,\"\"))","v":""},"","Required","Required"]
["",null,{"$f":"IF('TSA Input'!J394=\"\",\"\",IF(OR('TSA Input'!J394=\"Yes\",'TSA Input'!J394=\"Contingent\"),'TSA Input'!B394,\"Ineligible\"))","v":""},{"$f":"IF('TSA Input'!J394=\"\",\"\",IF(OR('TSA Input'!J394=\"Yes\",'TSA Input'!J394=\"Contingent\"),'TSA Input'!I394,\"\"))","v":""},{"$f":"IF('TSA Input'!J394=\"\",\"\",IF(OR('TSA Input'!J394=\"Yes\",'TSA Input'!J394=\"Contingent\"),'TSA Input'!C394,\"\"))","v":""},{"$f":"IF('TSA Input'!J394=\"\",\"\",IF(OR('TSA Input'!J394=\"Yes\",'TSA Input'!J394=\"Contingent\"),'TSA Input'!D394,\"\"))","v":""},{"$f":"IF('TSA Input'!J394=\"\",\"\",IF(OR('TSA Input'!J394=\"Yes\",'TSA Input'!J394=\"Contingent\"),'TSA Input'!G394,\"\"))","v":""},{"$f":"IF('TSA Input'!J394=\"\",\"\",IF(OR('TSA Input'!J394=\"Yes\",'TSA Input'!J394=\"Contingent\"),'TSA Input'!F394,\"\"))","v":""},"",{"$f":"IF('TSA Input'!J394=\"\",\"\",IF(OR('TSA Input'!J394=\"Yes\",'TSA Input'!J394=\"Contingent\"),'TSA Input'!D394,\"\"))","v":""},{"$f":"IF('TSA Input'!J394=\"\",\"\",IF(OR('TSA Input'!J394=\"Yes\",'TSA Input'!J394=\"Contingent\"),'TSA Input'!G394,\"\"))","v":""},{"$f":"IF('TSA Input'!J394=\"\",\"\",IF(OR('TSA Input'!J394=\"Yes\",'TSA Input'!J394=\"Contingent\"),'TSA Input'!F394,\"\"))","v":""},"","Required","Required"]
["",null,{"$f":"IF('TSA Input'!J395=\"\",\"\",IF(OR('TSA Input'!J395=\"Yes\",'TSA Input'!J395=\"Contingent\"),'TSA Input'!B395,\"Ineligible\"))","v":""},{"$f":"IF('TSA Input'!J395=\"\",\"\",IF(OR('TSA Input'!J395=\"Yes\",'TSA Input'!J395=\"Contingent\"),'TSA Input'!I395,\"\"))","v":""},{"$f":"IF('TSA Input'!J395=\"\",\"\",IF(OR('TSA Input'!J395=\"Yes\",'TSA Input'!J395=\"Contingent\"),'TSA Input'!C395,\"\"))","v":""},{"$f":"IF('TSA Input'!J395=\"\",\"\",IF(OR('TSA Input'!J395=\"Yes\",'TSA Input'!J395=\"Contingent\"),'TSA Input'!D395,\"\"))","v":""},{"$f":"IF('TSA Input'!J395=\"\",\"\",IF(OR('TSA Input'!J395=\"Yes\",'TSA Input'!J395=\"Contingent\"),'TSA Input'!G395,\"\"))","v":""},{"$f":"IF('TSA Input'!J395=\"\",\"\",IF(OR('TSA Input'!J395=\"Yes\",'TSA Input'!J395=\"Contingent\"),'TSA Input'!F395,\"\"))","v":""},"",{"$f":"IF('TSA Input'!J395=\"\",\"\",IF(OR('TSA Input'!J395=\"Yes\",'TSA Input'!J395=\"Contingent\"),'TSA Input'!D395,\"\"))","v":""},{"$f":"IF('TSA Input'!J395=\"\",\"\",IF(OR('TSA Input'!J395=\"Yes\",'TSA Input'!J395=\"Contingent\"),'TSA Input'!G395,\"\"))","v":""},{"$f":"IF('TSA Input'!J395=\"\",\"\",IF(OR('TSA Input'!J395=\"Yes\",'TSA Input'!J395=\"Contingent\"),'TSA Input'!F395,\"\"))","v":""},"","Required","Required"]
["",null,{"$f":"IF('TSA Input'!J396=\"\",\"\",IF(OR('TSA Input'!J396=\"Yes\",'TSA Input'!J396=\"Contingent\"),'TSA Input'!B396,\"Ineligible\"))","v":""},{"$f":"IF('TSA Input'!J396=\"\",\"\",IF(OR('TSA Input'!J396=\"Yes\",'TSA Input'!J396=\"Contingent\"),'TSA Input'!I396,\"\"))","v":""},{"$f":"IF('TSA Input'!J396=\"\",\"\",IF(OR('TSA Input'!J396=\"Yes\",'TSA Input'!J396=\"Contingent\"),'TSA Input'!C396,\"\"))","v":""},{"$f":"IF('TSA Input'!J396=\"\",\"\",IF(OR('TSA Input'!J396=\"Yes\",'TSA Input'!J396=\"Contingent\"),'TSA Input'!D396,\"\"))","v":""},{"$f":"IF('TSA Input'!J396=\"\",\"\",IF(OR('TSA Input'!J396=\"Yes\",'TSA Input'!J396=\"Contingent\"),'TSA Input'!G396,\"\"))","v":""},{"$f":"IF('TSA Input'!J396=\"\",\"\",IF(OR('TSA Input'!J396=\"Yes\",'TSA Input'!J396=\"Contingent\"),'TSA Input'!F396,\"\"))","v":""},"",{"$f":"IF('TSA Input'!J396=\"\",\"\",IF(OR('TSA Input'!J396=\"Yes\",'TSA Input'!J396=\"Contingent\"),'TSA Input'!D396,\"\"))","v":""},{"$f":"IF('TSA Input'!J396=\"\",\"\",IF(OR('TSA Input'!J396=\"Yes\",'TSA Input'!J396=\"Contingent\"),'TSA Input'!G396,\"\"))","v":""},{"$f":"IF('TSA Input'!J396=\"\",\"\",IF(OR('TSA Input'!J396=\"Yes\",'TSA Input'!J396=\"Contingent\"),'TSA Input'!F396,\"\"))","v":""},"","Required","Required"]
["",null,{"$f":"IF('TSA Input'!J397=\"\",\"\",IF(OR('TSA Input'!J397=\"Yes\",'TSA Input'!J397=\"Contingent\"),'TSA Input'!B397,\"Ineligible\"))","v":""},{"$f":"IF('TSA Input'!J397=\"\",\"\",IF(OR('TSA Input'!J397=\"Yes\",'TSA Input'!J397=\"Contingent\"),'TSA Input'!I397,\"\"))","v":""},{"$f":"IF('TSA Input'!J397=\"\",\"\",IF(OR('TSA Input'!J397=\"Yes\",'TSA Input'!J397=\"Contingent\"),'TSA Input'!C397,\"\"))","v":""},{"$f":"IF('TSA Input'!J397=\"\",\"\",IF(OR('TSA Input'!J397=\"Yes\",'TSA Input'!J397=\"Contingent\"),'TSA Input'!D397,\"\"))","v":""},{"$f":"IF('TSA Input'!J397=\"\",\"\",IF(OR('TSA Input'!J397=\"Yes\",'TSA Input'!J397=\"Contingent\"),'TSA Input'!G397,\"\"))","v":""},{"$f":"IF('TSA Input'!J397=\"\",\"\",IF(OR('TSA Input'!J397=\"Yes\",'TSA Input'!J397=\"Contingent\"),'TSA Input'!F397,\"\"))","v":""},"",{"$f":"IF('TSA Input'!J397=\"\",\"\",IF(OR('TSA Input'!J397=\"Yes\",'TSA Input'!J397=\"Contingent\"),'TSA Input'!D397,\"\"))","v":""},{"$f":"IF('TSA Input'!J397=\"\",\"\",IF(OR('TSA Input'!J397=\"Yes\",'TSA Input'!J397=\"Contingent\"),'TSA Input'!G397,\"\"))","v":""},{"$f":"IF('TSA Input'!J397=\"\",\"\",IF(OR('TSA Input'!J397=\"Yes\",'TSA Input'!J397=\"Contingent\"),'TSA Input'!F397,\"\"))","v":""},"","Required","Required"]
["",null,{"$f":"IF('TSA Input'!J398=\"\",\"\",IF(OR('TSA Input'!J398=\"Yes\",'TSA Input'!J398=\"Contingent\"),'TSA Input'!B398,\"Ineligible\"))","v":""},{"$f":"IF('TSA Input'!J398=\"\",\"\",IF(OR('TSA Input'!J398=\"Yes\",'TSA Input'!J398=\"Contingent\"),'TSA Input'!I398,\"\"))","v":""},{"$f":"IF('TSA Input'!J398=\"\",\"\",IF(OR('TSA Input'!J398=\"Yes\",'TSA Input'!J398=\"Contingent\"),'TSA Input'!C398,\"\"))","v":""},{"$f":"IF('TSA Input'!J398=\"\",\"\",IF(OR('TSA Input'!J398=\"Yes\",'TSA Input'!J398=\"Contingent\"),'TSA Input'!D398,\"\"))","v":""},{"$f":"IF('TSA Input'!J398=\"\",\"\",IF(OR('TSA Input'!J398=\"Yes\",'TSA Input'!J398=\"Contingent\"),'TSA Input'!G398,\"\"))","v":""},{"$f":"IF('TSA Input'!J398=\"\",\"\",IF(OR('TSA Input'!J398=\"Yes\",'TSA Input'!J398=\"Contingent\"),'TSA Input'!F398,\"\"))","v":""},"",{"$f":"IF('TSA Input'!J398=\"\",\"\",IF(OR('TSA Input'!J398=\"Yes\",'TSA Input'!J398=\"Contingent\"),'TSA Input'!D398,\"\"))","v":""},{"$f":"IF('TSA Input'!J398=\"\",\"\",IF(OR('TSA Input'!J398=\"Yes\",'TSA Input'!J398=\"Contingent\"),'TSA Input'!G398,\"\"))","v":""},{"$f":"IF('TSA Input'!J398=\"\",\"\",IF(OR('TSA Input'!J398=\"Yes\",'TSA Input'!J398=\"Contingent\"),'TSA Input'!F398,\"\"))","v":""},"","Required","Required"]
["",null,{"$f":"IF('TSA Input'!J399=\"\",\"\",IF(OR('TSA Input'!J399=\"Yes\",'TSA Input'!J399=\"Contingent\"),'TSA Input'!B399,\"Ineligible\"))","v":""},{"$f":"IF('TSA Input'!J399=\"\",\"\",IF(OR('TSA Input'!J399=\"Yes\",'TSA Input'!J399=\"Contingent\"),'TSA Input'!I399,\"\"))","v":""},{"$f":"IF('TSA Input'!J399=\"\",\"\",IF(OR('TSA Input'!J399=\"Yes\",'TSA Input'!J399=\"Contingent\"),'TSA Input'!C399,\"\"))","v":""},{"$f":"IF('TSA Input'!J399=\"\",\"\",IF(OR('TSA Input'!J399=\"Yes\",'TSA Input'!J399=\"Contingent\"),'TSA Input'!D399,\"\"))","v":""},{"$f":"IF('TSA Input'!J399=\"\",\"\",IF(OR('TSA Input'!J399=\"Yes\",'TSA Input'!J399=\"Contingent\"),'TSA Input'!G399,\"\"))","v":""},{"$f":"IF('TSA Input'!J399=\"\",\"\",IF(OR('TSA Input'!J399=\"Yes\",'TSA Input'!J399=\"Contingent\"),'TSA Input'!F399,\"\"))","v":""},"",{"$f":"IF('TSA Input'!J399=\"\",\"\",IF(OR('TSA Input'!J399=\"Yes\",'TSA Input'!J399=\"Contingent\"),'TSA Input'!D399,\"\"))","v":""},{"$f":"IF('TSA Input'!J399=\"\",\"\",IF(OR('TSA Input'!J399=\"Yes\",'TSA Input'!J399=\"Contingent\"),'TSA Input'!G399,\"\"))","v":""},{"$f":"IF('TSA Input'!J399=\"\",\"\",IF(OR('TSA Input'!J399=\"Yes\",'TSA Input'!J399=\"Contingent\"),'TSA Input'!F399,\"\"))","v":""},"","Required","Required"]
["",null,{"$f":"IF('TSA Input'!J400=\"\",\"\",IF(OR('TSA Input'!J400=\"Yes\",'TSA Input'!J400=\"Contingent\"),'TSA Input'!B400,\"Ineligible\"))","v":""},{"$f":"IF('TSA Input'!J400=\"\",\"\",IF(OR('TSA Input'!J400=\"Yes\",'TSA Input'!J400=\"Contingent\"),'TSA Input'!I400,\"\"))","v":""},{"$f":"IF('TSA Input'!J400=\"\",\"\",IF(OR('TSA Input'!J400=\"Yes\",'TSA Input'!J400=\"Contingent\"),'TSA Input'!C400,\"\"))","v":""},{"$f":"IF('TSA Input'!J400=\"\",\"\",IF(OR('TSA Input'!J400=\"Yes\",'TSA Input'!J400=\"Contingent\"),'TSA Input'!D400,\"\"))","v":""},{"$f":"IF('TSA Input'!J400=\"\",\"\",IF(OR('TSA Input'!J400=\"Yes\",'TSA Input'!J400=\"Contingent\"),'TSA Input'!G400,\"\"))","v":""},{"$f":"IF('TSA Input'!J400=\"\",\"\",IF(OR('TSA Input'!J400=\"Yes\",'TSA Input'!J400=\"Contingent\"),'TSA Input'!F400,\"\"))","v":""},"",{"$f":"IF('TSA Input'!J400=\"\",\"\",IF(OR('TSA Input'!J400=\"Yes\",'TSA Input'!J400=\"Contingent\"),'TSA Input'!D400,\"\"))","v":""},{"$f":"IF('TSA Input'!J400=\"\",\"\",IF(OR('TSA Input'!J400=\"Yes\",'TSA Input'!J400=\"Contingent\"),'TSA Input'!G400,\"\"))","v":""},{"$f":"IF('TSA Input'!J400=\"\",\"\",IF(OR('TSA Input'!J400=\"Yes\",'TSA Input'!J400=\"Contingent\"),'TSA Input'!F400,\"\"))","v":""},"","Required","Required"]
["",null,{"$f":"IF('TSA Input'!J401=\"\",\"\",IF(OR('TSA Input'!J401=\"Yes\",'TSA Input'!J401=\"Contingent\"),'TSA Input'!B401,\"Ineligible\"))","v":""},{"$f":"IF('TSA Input'!J401=\"\",\"\",IF(OR('TSA Input'!J401=\"Yes\",'TSA Input'!J401=\"Contingent\"),'TSA Input'!I401,\"\"))","v":""},{"$f":"IF('TSA Input'!J401=\"\",\"\",IF(OR('TSA Input'!J401=\"Yes\",'TSA Input'!J401=\"Contingent\"),'TSA Input'!C401,\"\"))","v":""},{"$f":"IF('TSA Input'!J401=\"\",\"\",IF(OR('TSA Input'!J401=\"Yes\",'TSA Input'!J401=\"Contingent\"),'TSA Input'!D401,\"\"))","v":""},{"$f":"IF('TSA Input'!J401=\"\",\"\",IF(OR('TSA Input'!J401=\"Yes\",'TSA Input'!J401=\"Contingent\"),'TSA Input'!G401,\"\"))","v":""},{"$f":"IF('TSA Input'!J401=\"\",\"\",IF(OR('TSA Input'!J401=\"Yes\",'TSA Input'!J401=\"Contingent\"),'TSA Input'!F401,\"\"))","v":""},"",{"$f":"IF('TSA Input'!J401=\"\",\"\",IF(OR('TSA Input'!J401=\"Yes\",'TSA Input'!J401=\"Contingent\"),'TSA Input'!D401,\"\"))","v":""},{"$f":"IF('TSA Input'!J401=\"\",\"\",IF(OR('TSA Input'!J401=\"Yes\",'TSA Input'!J401=\"Contingent\"),'TSA Input'!G401,\"\"))","v":""},{"$f":"IF('TSA Input'!J401=\"\",\"\",IF(OR('TSA Input'!J401=\"Yes\",'TSA Input'!J401=\"Contingent\"),'TSA Input'!F401,\"\"))","v":""},"","Required","Required"]
["",null,{"$f":"IF('TSA Input'!J402=\"\",\"\",IF(OR('TSA Input'!J402=\"Yes\",'TSA Input'!J402=\"Contingent\"),'TSA Input'!B402,\"Ineligible\"))","v":""},{"$f":"IF('TSA Input'!J402=\"\",\"\",IF(OR('TSA Input'!J402=\"Yes\",'TSA Input'!J402=\"Contingent\"),'TSA Input'!I402,\"\"))","v":""},{"$f":"IF('TSA Input'!J402=\"\",\"\",IF(OR('TSA Input'!J402=\"Yes\",'TSA Input'!J402=\"Contingent\"),'TSA Input'!C402,\"\"))","v":""},{"$f":"IF('TSA Input'!J402=\"\",\"\",IF(OR('TSA Input'!J402=\"Yes\",'TSA Input'!J402=\"Contingent\"),'TSA Input'!D402,\"\"))","v":""},{"$f":"IF('TSA Input'!J402=\"\",\"\",IF(OR('TSA Input'!J402=\"Yes\",'TSA Input'!J402=\"Contingent\"),'TSA Input'!G402,\"\"))","v":""},{"$f":"IF('TSA Input'!J402=\"\",\"\",IF(OR('TSA Input'!J402=\"Yes\",'TSA Input'!J402=\"Contingent\"),'TSA Input'!F402,\"\"))","v":""},"",{"$f":"IF('TSA Input'!J402=\"\",\"\",IF(OR('TSA Input'!J402=\"Yes\",'TSA Input'!J402=\"Contingent\"),'TSA Input'!D402,\"\"))","v":""},{"$f":"IF('TSA Input'!J402=\"\",\"\",IF(OR('TSA Input'!J402=\"Yes\",'TSA Input'!J402=\"Contingent\"),'TSA Input'!G402,\"\"))","v":""},{"$f":"IF('TSA Input'!J402=\"\",\"\",IF(OR('TSA Input'!J402=\"Yes\",'TSA Input'!J402=\"Contingent\"),'TSA Input'!F402,\"\"))","v":""},"","Required","Required"]
["",null,{"$f":"IF('TSA Input'!J403=\"\",\"\",IF(OR('TSA Input'!J403=\"Yes\",'TSA Input'!J403=\"Contingent\"),'TSA Input'!B403,\"Ineligible\"))","v":""},{"$f":"IF('TSA Input'!J403=\"\",\"\",IF(OR('TSA Input'!J403=\"Yes\",'TSA Input'!J403=\"Contingent\"),'TSA Input'!I403,\"\"))","v":""},{"$f":"IF('TSA Input'!J403=\"\",\"\",IF(OR('TSA Input'!J403=\"Yes\",'TSA Input'!J403=\"Contingent\"),'TSA Input'!C403,\"\"))","v":""},{"$f":"IF('TSA Input'!J403=\"\",\"\",IF(OR('TSA Input'!J403=\"Yes\",'TSA Input'!J403=\"Contingent\"),'TSA Input'!D403,\"\"))","v":""},{"$f":"IF('TSA Input'!J403=\"\",\"\",IF(OR('TSA Input'!J403=\"Yes\",'TSA Input'!J403=\"Contingent\"),'TSA Input'!G403,\"\"))","v":""},{"$f":"IF('TSA Input'!J403=\"\",\"\",IF(OR('TSA Input'!J403=\"Yes\",'TSA Input'!J403=\"Contingent\"),'TSA Input'!F403,\"\"))","v":""},"",{"$f":"IF('TSA Input'!J403=\"\",\"\",IF(OR('TSA Input'!J403=\"Yes\",'TSA Input'!J403=\"Contingent\"),'TSA Input'!D403,\"\"))","v":""},{"$f":"IF('TSA Input'!J403=\"\",\"\",IF(OR('TSA Input'!J403=\"Yes\",'TSA Input'!J403=\"Contingent\"),'TSA Input'!G403,\"\"))","v":""},{"$f":"IF('TSA Input'!J403=\"\",\"\",IF(OR('TSA Input'!J403=\"Yes\",'TSA Input'!J403=\"Contingent\"),'TSA Input'!F403,\"\"))","v":""},"","Required","Required"]
["",null,{"$f":"IF('TSA Input'!J404=\"\",\"\",IF(OR('TSA Input'!J404=\"Yes\",'TSA Input'!J404=\"Contingent\"),'TSA Input'!B404,\"Ineligible\"))","v":""},{"$f":"IF('TSA Input'!J404=\"\",\"\",IF(OR('TSA Input'!J404=\"Yes\",'TSA Input'!J404=\"Contingent\"),'TSA Input'!I404,\"\"))","v":""},{"$f":"IF('TSA Input'!J404=\"\",\"\",IF(OR('TSA Input'!J404=\"Yes\",'TSA Input'!J404=\"Contingent\"),'TSA Input'!C404,\"\"))","v":""},{"$f":"IF('TSA Input'!J404=\"\",\"\",IF(OR('TSA Input'!J404=\"Yes\",'TSA Input'!J404=\"Contingent\"),'TSA Input'!D404,\"\"))","v":""},{"$f":"IF('TSA Input'!J404=\"\",\"\",IF(OR('TSA Input'!J404=\"Yes\",'TSA Input'!J404=\"Contingent\"),'TSA Input'!G404,\"\"))","v":""},{"$f":"IF('TSA Input'!J404=\"\",\"\",IF(OR('TSA Input'!J404=\"Yes\",'TSA Input'!J404=\"Contingent\"),'TSA Input'!F404,\"\"))","v":""},"",{"$f":"IF('TSA Input'!J404=\"\",\"\",IF(OR('TSA Input'!J404=\"Yes\",'TSA Input'!J404=\"Contingent\"),'TSA Input'!D404,\"\"))","v":""},{"$f":"IF('TSA Input'!J404=\"\",\"\",IF(OR('TSA Input'!J404=\"Yes\",'TSA Input'!J404=\"Contingent\"),'TSA Input'!G404,\"\"))","v":""},{"$f":"IF('TSA Input'!J404=\"\",\"\",IF(OR('TSA Input'!J404=\"Yes\",'TSA Input'!J404=\"Contingent\"),'TSA Input'!F404,\"\"))","v":""},"","Required","Required"]
["",null,{"$f":"IF('TSA Input'!J405=\"\",\"\",IF(OR('TSA Input'!J405=\"Yes\",'TSA Input'!J405=\"Contingent\"),'TSA Input'!B405,\"Ineligible\"))","v":""},{"$f":"IF('TSA Input'!J405=\"\",\"\",IF(OR('TSA Input'!J405=\"Yes\",'TSA Input'!J405=\"Contingent\"),'TSA Input'!I405,\"\"))","v":""},{"$f":"IF('TSA Input'!J405=\"\",\"\",IF(OR('TSA Input'!J405=\"Yes\",'TSA Input'!J405=\"Contingent\"),'TSA Input'!C405,\"\"))","v":""},{"$f":"IF('TSA Input'!J405=\"\",\"\",IF(OR('TSA Input'!J405=\"Yes\",'TSA Input'!J405=\"Contingent\"),'TSA Input'!D405,\"\"))","v":""},{"$f":"IF('TSA Input'!J405=\"\",\"\",IF(OR('TSA Input'!J405=\"Yes\",'TSA Input'!J405=\"Contingent\"),'TSA Input'!G405,\"\"))","v":""},{"$f":"IF('TSA Input'!J405=\"\",\"\",IF(OR('TSA Input'!J405=\"Yes\",'TSA Input'!J405=\"Contingent\"),'TSA Input'!F405,\"\"))","v":""},"",{"$f":"IF('TSA Input'!J405=\"\",\"\",IF(OR('TSA Input'!J405=\"Yes\",'TSA Input'!J405=\"Contingent\"),'TSA Input'!D405,\"\"))","v":""},{"$f":"IF('TSA Input'!J405=\"\",\"\",IF(OR('TSA Input'!J405=\"Yes\",'TSA Input'!J405=\"Contingent\"),'TSA Input'!G405,\"\"))","v":""},{"$f":"IF('TSA Input'!J405=\"\",\"\",IF(OR('TSA Input'!J405=\"Yes\",'TSA Input'!J405=\"Contingent\"),'TSA Input'!F405,\"\"))","v":""},"","Required","Required"]
["",null,{"$f":"IF('TSA Input'!J406=\"\",\"\",IF(OR('TSA Input'!J406=\"Yes\",'TSA Input'!J406=\"Contingent\"),'TSA Input'!B406,\"Ineligible\"))","v":""},{"$f":"IF('TSA Input'!J406=\"\",\"\",IF(OR('TSA Input'!J406=\"Yes\",'TSA Input'!J406=\"Contingent\"),'TSA Input'!I406,\"\"))","v":""},{"$f":"IF('TSA Input'!J406=\"\",\"\",IF(OR('TSA Input'!J406=\"Yes\",'TSA Input'!J406=\"Contingent\"),'TSA Input'!C406,\"\"))","v":""},{"$f":"IF('TSA Input'!J406=\"\",\"\",IF(OR('TSA Input'!J406=\"Yes\",'TSA Input'!J406=\"Contingent\"),'TSA Input'!D406,\"\"))","v":""},{"$f":"IF('TSA Input'!J406=\"\",\"\",IF(OR('TSA Input'!J406=\"Yes\",'TSA Input'!J406=\"Contingent\"),'TSA Input'!G406,\"\"))","v":""},{"$f":"IF('TSA Input'!J406=\"\",\"\",IF(OR('TSA Input'!J406=\"Yes\",'TSA Input'!J406=\"Contingent\"),'TSA Input'!F406,\"\"))","v":""},"",{"$f":"IF('TSA Input'!J406=\"\",\"\",IF(OR('TSA Input'!J406=\"Yes\",'TSA Input'!J406=\"Contingent\"),'TSA Input'!D406,\"\"))","v":""},{"$f":"IF('TSA Input'!J406=\"\",\"\",IF(OR('TSA Input'!J406=\"Yes\",'TSA Input'!J406=\"Contingent\"),'TSA Input'!G406,\"\"))","v":""},{"$f":"IF('TSA Input'!J406=\"\",\"\",IF(OR('TSA Input'!J406=\"Yes\",'TSA Input'!J406=\"Contingent\"),'TSA Input'!F406,\"\"))","v":""},"","Required","Required"]
["",null,{"$f":"IF('TSA Input'!J407=\"\",\"\",IF(OR('TSA Input'!J407=\"Yes\",'TSA Input'!J407=\"Contingent\"),'TSA Input'!B407,\"Ineligible\"))","v":""},{"$f":"IF('TSA Input'!J407=\"\",\"\",IF(OR('TSA Input'!J407=\"Yes\",'TSA Input'!J407=\"Contingent\"),'TSA Input'!I407,\"\"))","v":""},{"$f":"IF('TSA Input'!J407=\"\",\"\",IF(OR('TSA Input'!J407=\"Yes\",'TSA Input'!J407=\"Contingent\"),'TSA Input'!C407,\"\"))","v":""},{"$f":"IF('TSA Input'!J407=\"\",\"\",IF(OR('TSA Input'!J407=\"Yes\",'TSA Input'!J407=\"Contingent\"),'TSA Input'!D407,\"\"))","v":""},{"$f":"IF('TSA Input'!J407=\"\",\"\",IF(OR('TSA Input'!J407=\"Yes\",'TSA Input'!J407=\"Contingent\"),'TSA Input'!G407,\"\"))","v":""},{"$f":"IF('TSA Input'!J407=\"\",\"\",IF(OR('TSA Input'!J407=\"Yes\",'TSA Input'!J407=\"Contingent\"),'TSA Input'!F407,\"\"))","v":""},"",{"$f":"IF('TSA Input'!J407=\"\",\"\",IF(OR('TSA Input'!J407=\"Yes\",'TSA Input'!J407=\"Contingent\"),'TSA Input'!D407,\"\"))","v":""},{"$f":"IF('TSA Input'!J407=\"\",\"\",IF(OR('TSA Input'!J407=\"Yes\",'TSA Input'!J407=\"Contingent\"),'TSA Input'!G407,\"\"))","v":""},{"$f":"IF('TSA Input'!J407=\"\",\"\",IF(OR('TSA Input'!J407=\"Yes\",'TSA Input'!J407=\"Contingent\"),'TSA Input'!F407,\"\"))","v":""},"","Required","Required"]
["",null,{"$f":"IF('TSA Input'!J408=\"\",\"\",IF(OR('TSA Input'!J408=\"Yes\",'TSA Input'!J408=\"Contingent\"),'TSA Input'!B408,\"Ineligible\"))","v":""},{"$f":"IF('TSA Input'!J408=\"\",\"\",IF(OR('TSA Input'!J408=\"Yes\",'TSA Input'!J408=\"Contingent\"),'TSA Input'!I408,\"\"))","v":""},{"$f":"IF('TSA Input'!J408=\"\",\"\",IF(OR('TSA Input'!J408=\"Yes\",'TSA Input'!J408=\"Contingent\"),'TSA Input'!C408,\"\"))","v":""},{"$f":"IF('TSA Input'!J408=\"\",\"\",IF(OR('TSA Input'!J408=\"Yes\",'TSA Input'!J408=\"Contingent\"),'TSA Input'!D408,\"\"))","v":""},{"$f":"IF('TSA Input'!J408=\"\",\"\",IF(OR('TSA Input'!J408=\"Yes\",'TSA Input'!J408=\"Contingent\"),'TSA Input'!G408,\"\"))","v":""},{"$f":"IF('TSA Input'!J408=\"\",\"\",IF(OR('TSA Input'!J408=\"Yes\",'TSA Input'!J408=\"Contingent\"),'TSA Input'!F408,\"\"))","v":""},"",{"$f":"IF('TSA Input'!J408=\"\",\"\",IF(OR('TSA Input'!J408=\"Yes\",'TSA Input'!J408=\"Contingent\"),'TSA Input'!D408,\"\"))","v":""},{"$f":"IF('TSA Input'!J408=\"\",\"\",IF(OR('TSA Input'!J408=\"Yes\",'TSA Input'!J408=\"Contingent\"),'TSA Input'!G408,\"\"))","v":""},{"$f":"IF('TSA Input'!J408=\"\",\"\",IF(OR('TSA Input'!J408=\"Yes\",'TSA Input'!J408=\"Contingent\"),'TSA Input'!F408,\"\"))","v":""},"","Required","Required"]
["",null,{"$f":"IF('TSA Input'!J409=\"\",\"\",IF(OR('TSA Input'!J409=\"Yes\",'TSA Input'!J409=\"Contingent\"),'TSA Input'!B409,\"Ineligible\"))","v":""},{"$f":"IF('TSA Input'!J409=\"\",\"\",IF(OR('TSA Input'!J409=\"Yes\",'TSA Input'!J409=\"Contingent\"),'TSA Input'!I409,\"\"))","v":""},{"$f":"IF('TSA Input'!J409=\"\",\"\",IF(OR('TSA Input'!J409=\"Yes\",'TSA Input'!J409=\"Contingent\"),'TSA Input'!C409,\"\"))","v":""},{"$f":"IF('TSA Input'!J409=\"\",\"\",IF(OR('TSA Input'!J409=\"Yes\",'TSA Input'!J409=\"Contingent\"),'TSA Input'!D409,\"\"))","v":""},{"$f":"IF('TSA Input'!J409=\"\",\"\",IF(OR('TSA Input'!J409=\"Yes\",'TSA Input'!J409=\"Contingent\"),'TSA Input'!G409,\"\"))","v":""},{"$f":"IF('TSA Input'!J409=\"\",\"\",IF(OR('TSA Input'!J409=\"Yes\",'TSA Input'!J409=\"Contingent\"),'TSA Input'!F409,\"\"))","v":""},"",{"$f":"IF('TSA Input'!J409=\"\",\"\",IF(OR('TSA Input'!J409=\"Yes\",'TSA Input'!J409=\"Contingent\"),'TSA Input'!D409,\"\"))","v":""},{"$f":"IF('TSA Input'!J409=\"\",\"\",IF(OR('TSA Input'!J409=\"Yes\",'TSA Input'!J409=\"Contingent\"),'TSA Input'!G409,\"\"))","v":""},{"$f":"IF('TSA Input'!J409=\"\",\"\",IF(OR('TSA Input'!J409=\"Yes\",'TSA Input'!J409=\"Contingent\"),'TSA Input'!F409,\"\"))","v":""},"","Required","Required"]
["",null,{"$f":"IF('TSA Input'!J410=\"\",\"\",IF(OR('TSA Input'!J410=\"Yes\",'TSA Input'!J410=\"Contingent\"),'TSA Input'!B410,\"Ineligible\"))","v":""},{"$f":"IF('TSA Input'!J410=\"\",\"\",IF(OR('TSA Input'!J410=\"Yes\",'TSA Input'!J410=\"Contingent\"),'TSA Input'!I410,\"\"))","v":""},{"$f":"IF('TSA Input'!J410=\"\",\"\",IF(OR('TSA Input'!J410=\"Yes\",'TSA Input'!J410=\"Contingent\"),'TSA Input'!C410,\"\"))","v":""},{"$f":"IF('TSA Input'!J410=\"\",\"\",IF(OR('TSA Input'!J410=\"Yes\",'TSA Input'!J410=\"Contingent\"),'TSA Input'!D410,\"\"))","v":""},{"$f":"IF('TSA Input'!J410=\"\",\"\",IF(OR('TSA Input'!J410=\"Yes\",'TSA Input'!J410=\"Contingent\"),'TSA Input'!G410,\"\"))","v":""},{"$f":"IF('TSA Input'!J410=\"\",\"\",IF(OR('TSA Input'!J410=\"Yes\",'TSA Input'!J410=\"Contingent\"),'TSA Input'!F410,\"\"))","v":""},"",{"$f":"IF('TSA Input'!J410=\"\",\"\",IF(OR('TSA Input'!J410=\"Yes\",'TSA Input'!J410=\"Contingent\"),'TSA Input'!D410,\"\"))","v":""},{"$f":"IF('TSA Input'!J410=\"\",\"\",IF(OR('TSA Input'!J410=\"Yes\",'TSA Input'!J410=\"Contingent\"),'TSA Input'!G410,\"\"))","v":""},{"$f":"IF('TSA Input'!J410=\"\",\"\",IF(OR('TSA Input'!J410=\"Yes\",'TSA Input'!J410=\"Contingent\"),'TSA Input'!F410,\"\"))","v":""},"","Required","Required"]
["",null,{"$f":"IF('TSA Input'!J411=\"\",\"\",IF(OR('TSA Input'!J411=\"Yes\",'TSA Input'!J411=\"Contingent\"),'TSA Input'!B411,\"Ineligible\"))","v":""},{"$f":"IF('TSA Input'!J411=\"\",\"\",IF(OR('TSA Input'!J411=\"Yes\",'TSA Input'!J411=\"Contingent\"),'TSA Input'!I411,\"\"))","v":""},{"$f":"IF('TSA Input'!J411=\"\",\"\",IF(OR('TSA Input'!J411=\"Yes\",'TSA Input'!J411=\"Contingent\"),'TSA Input'!C411,\"\"))","v":""},{"$f":"IF('TSA Input'!J411=\"\",\"\",IF(OR('TSA Input'!J411=\"Yes\",'TSA Input'!J411=\"Contingent\"),'TSA Input'!D411,\"\"))","v":""},{"$f":"IF('TSA Input'!J411=\"\",\"\",IF(OR('TSA Input'!J411=\"Yes\",'TSA Input'!J411=\"Contingent\"),'TSA Input'!G411,\"\"))","v":""},{"$f":"IF('TSA Input'!J411=\"\",\"\",IF(OR('TSA Input'!J411=\"Yes\",'TSA Input'!J411=\"Contingent\"),'TSA Input'!F411,\"\"))","v":""},"",{"$f":"IF('TSA Input'!J411=\"\",\"\",IF(OR('TSA Input'!J411=\"Yes\",'TSA Input'!J411=\"Contingent\"),'TSA Input'!D411,\"\"))","v":""},{"$f":"IF('TSA Input'!J411=\"\",\"\",IF(OR('TSA Input'!J411=\"Yes\",'TSA Input'!J411=\"Contingent\"),'TSA Input'!G411,\"\"))","v":""},{"$f":"IF('TSA Input'!J411=\"\",\"\",IF(OR('TSA Input'!J411=\"Yes\",'TSA Input'!J411=\"Contingent\"),'TSA Input'!F411,\"\"))","v":""},"","Required","Required"]
["",null,{"$f":"IF('TSA Input'!J412=\"\",\"\",IF(OR('TSA Input'!J412=\"Yes\",'TSA Input'!J412=\"Contingent\"),'TSA Input'!B412,\"Ineligible\"))","v":""},{"$f":"IF('TSA Input'!J412=\"\",\"\",IF(OR('TSA Input'!J412=\"Yes\",'TSA Input'!J412=\"Contingent\"),'TSA Input'!I412,\"\"))","v":""},{"$f":"IF('TSA Input'!J412=\"\",\"\",IF(OR('TSA Input'!J412=\"Yes\",'TSA Input'!J412=\"Contingent\"),'TSA Input'!C412,\"\"))","v":""},{"$f":"IF('TSA Input'!J412=\"\",\"\",IF(OR('TSA Input'!J412=\"Yes\",'TSA Input'!J412=\"Contingent\"),'TSA Input'!D412,\"\"))","v":""},{"$f":"IF('TSA Input'!J412=\"\",\"\",IF(OR('TSA Input'!J412=\"Yes\",'TSA Input'!J412=\"Contingent\"),'TSA Input'!G412,\"\"))","v":""},{"$f":"IF('TSA Input'!J412=\"\",\"\",IF(OR('TSA Input'!J412=\"Yes\",'TSA Input'!J412=\"Contingent\"),'TSA Input'!F412,\"\"))","v":""},"",{"$f":"IF('TSA Input'!J412=\"\",\"\",IF(OR('TSA Input'!J412=\"Yes\",'TSA Input'!J412=\"Contingent\"),'TSA Input'!D412,\"\"))","v":""},{"$f":"IF('TSA Input'!J412=\"\",\"\",IF(OR('TSA Input'!J412=\"Yes\",'TSA Input'!J412=\"Contingent\"),'TSA Input'!G412,\"\"))","v":""},{"$f":"IF('TSA Input'!J412=\"\",\"\",IF(OR('TSA Input'!J412=\"Yes\",'TSA Input'!J412=\"Contingent\"),'TSA Input'!F412,\"\"))","v":""},"","Required","Required"]
["",null,{"$f":"IF('TSA Input'!J413=\"\",\"\",IF(OR('TSA Input'!J413=\"Yes\",'TSA Input'!J413=\"Contingent\"),'TSA Input'!B413,\"Ineligible\"))","v":""},{"$f":"IF('TSA Input'!J413=\"\",\"\",IF(OR('TSA Input'!J413=\"Yes\",'TSA Input'!J413=\"Contingent\"),'TSA Input'!I413,\"\"))","v":""},{"$f":"IF('TSA Input'!J413=\"\",\"\",IF(OR('TSA Input'!J413=\"Yes\",'TSA Input'!J413=\"Contingent\"),'TSA Input'!C413,\"\"))","v":""},{"$f":"IF('TSA Input'!J413=\"\",\"\",IF(OR('TSA Input'!J413=\"Yes\",'TSA Input'!J413=\"Contingent\"),'TSA Input'!D413,\"\"))","v":""},{"$f":"IF('TSA Input'!J413=\"\",\"\",IF(OR('TSA Input'!J413=\"Yes\",'TSA Input'!J413=\"Contingent\"),'TSA Input'!G413,\"\"))","v":""},{"$f":"IF('TSA Input'!J413=\"\",\"\",IF(OR('TSA Input'!J413=\"Yes\",'TSA Input'!J413=\"Contingent\"),'TSA Input'!F413,\"\"))","v":""},"",{"$f":"IF('TSA Input'!J413=\"\",\"\",IF(OR('TSA Input'!J413=\"Yes\",'TSA Input'!J413=\"Contingent\"),'TSA Input'!D413,\"\"))","v":""},{"$f":"IF('TSA Input'!J413=\"\",\"\",IF(OR('TSA Input'!J413=\"Yes\",'TSA Input'!J413=\"Contingent\"),'TSA Input'!G413,\"\"))","v":""},{"$f":"IF('TSA Input'!J413=\"\",\"\",IF(OR('TSA Input'!J413=\"Yes\",'TSA Input'!J413=\"Contingent\"),'TSA Input'!F413,\"\"))","v":""},"","Required","Required"]
["",null,{"$f":"IF('TSA Input'!J414=\"\",\"\",IF(OR('TSA Input'!J414=\"Yes\",'TSA Input'!J414=\"Contingent\"),'TSA Input'!B414,\"Ineligible\"))","v":""},{"$f":"IF('TSA Input'!J414=\"\",\"\",IF(OR('TSA Input'!J414=\"Yes\",'TSA Input'!J414=\"Contingent\"),'TSA Input'!I414,\"\"))","v":""},{"$f":"IF('TSA Input'!J414=\"\",\"\",IF(OR('TSA Input'!J414=\"Yes\",'TSA Input'!J414=\"Contingent\"),'TSA Input'!C414,\"\"))","v":""},{"$f":"IF('TSA Input'!J414=\"\",\"\",IF(OR('TSA Input'!J414=\"Yes\",'TSA Input'!J414=\"Contingent\"),'TSA Input'!D414,\"\"))","v":""},{"$f":"IF('TSA Input'!J414=\"\",\"\",IF(OR('TSA Input'!J414=\"Yes\",'TSA Input'!J414=\"Contingent\"),'TSA Input'!G414,\"\"))","v":""},{"$f":"IF('TSA Input'!J414=\"\",\"\",IF(OR('TSA Input'!J414=\"Yes\",'TSA Input'!J414=\"Contingent\"),'TSA Input'!F414,\"\"))","v":""},"",{"$f":"IF('TSA Input'!J414=\"\",\"\",IF(OR('TSA Input'!J414=\"Yes\",'TSA Input'!J414=\"Contingent\"),'TSA Input'!D414,\"\"))","v":""},{"$f":"IF('TSA Input'!J414=\"\",\"\",IF(OR('TSA Input'!J414=\"Yes\",'TSA Input'!J414=\"Contingent\"),'TSA Input'!G414,\"\"))","v":""},{"$f":"IF('TSA Input'!J414=\"\",\"\",IF(OR('TSA Input'!J414=\"Yes\",'TSA Input'!J414=\"Contingent\"),'TSA Input'!F414,\"\"))","v":""},"","Required","Required"]
["",null,{"$f":"IF('TSA Input'!J415=\"\",\"\",IF(OR('TSA Input'!J415=\"Yes\",'TSA Input'!J415=\"Contingent\"),'TSA Input'!B415,\"Ineligible\"))","v":""},{"$f":"IF('TSA Input'!J415=\"\",\"\",IF(OR('TSA Input'!J415=\"Yes\",'TSA Input'!J415=\"Contingent\"),'TSA Input'!I415,\"\"))","v":""},{"$f":"IF('TSA Input'!J415=\"\",\"\",IF(OR('TSA Input'!J415=\"Yes\",'TSA Input'!J415=\"Contingent\"),'TSA Input'!C415,\"\"))","v":""},{"$f":"IF('TSA Input'!J415=\"\",\"\",IF(OR('TSA Input'!J415=\"Yes\",'TSA Input'!J415=\"Contingent\"),'TSA Input'!D415,\"\"))","v":""},{"$f":"IF('TSA Input'!J415=\"\",\"\",IF(OR('TSA Input'!J415=\"Yes\",'TSA Input'!J415=\"Contingent\"),'TSA Input'!G415,\"\"))","v":""},{"$f":"IF('TSA Input'!J415=\"\",\"\",IF(OR('TSA Input'!J415=\"Yes\",'TSA Input'!J415=\"Contingent\"),'TSA Input'!F415,\"\"))","v":""},"",{"$f":"IF('TSA Input'!J415=\"\",\"\",IF(OR('TSA Input'!J415=\"Yes\",'TSA Input'!J415=\"Contingent\"),'TSA Input'!D415,\"\"))","v":""},{"$f":"IF('TSA Input'!J415=\"\",\"\",IF(OR('TSA Input'!J415=\"Yes\",'TSA Input'!J415=\"Contingent\"),'TSA Input'!G415,\"\"))","v":""},{"$f":"IF('TSA Input'!J415=\"\",\"\",IF(OR('TSA Input'!J415=\"Yes\",'TSA Input'!J415=\"Contingent\"),'TSA Input'!F415,\"\"))","v":""},"","Required","Required"]
["",null,{"$f":"IF('TSA Input'!J416=\"\",\"\",IF(OR('TSA Input'!J416=\"Yes\",'TSA Input'!J416=\"Contingent\"),'TSA Input'!B416,\"Ineligible\"))","v":""},{"$f":"IF('TSA Input'!J416=\"\",\"\",IF(OR('TSA Input'!J416=\"Yes\",'TSA Input'!J416=\"Contingent\"),'TSA Input'!I416,\"\"))","v":""},{"$f":"IF('TSA Input'!J416=\"\",\"\",IF(OR('TSA Input'!J416=\"Yes\",'TSA Input'!J416=\"Contingent\"),'TSA Input'!C416,\"\"))","v":""},{"$f":"IF('TSA Input'!J416=\"\",\"\",IF(OR('TSA Input'!J416=\"Yes\",'TSA Input'!J416=\"Contingent\"),'TSA Input'!D416,\"\"))","v":""},{"$f":"IF('TSA Input'!J416=\"\",\"\",IF(OR('TSA Input'!J416=\"Yes\",'TSA Input'!J416=\"Contingent\"),'TSA Input'!G416,\"\"))","v":""},{"$f":"IF('TSA Input'!J416=\"\",\"\",IF(OR('TSA Input'!J416=\"Yes\",'TSA Input'!J416=\"Contingent\"),'TSA Input'!F416,\"\"))","v":""},"",{"$f":"IF('TSA Input'!J416=\"\",\"\",IF(OR('TSA Input'!J416=\"Yes\",'TSA Input'!J416=\"Contingent\"),'TSA Input'!D416,\"\"))","v":""},{"$f":"IF('TSA Input'!J416=\"\",\"\",IF(OR('TSA Input'!J416=\"Yes\",'TSA Input'!J416=\"Contingent\"),'TSA Input'!G416,\"\"))","v":""},{"$f":"IF('TSA Input'!J416=\"\",\"\",IF(OR('TSA Input'!J416=\"Yes\",'TSA Input'!J416=\"Contingent\"),'TSA Input'!F416,\"\"))","v":""},"","Required","Required"]
["",null,{"$f":"IF('TSA Input'!J417=\"\",\"\",IF(OR('TSA Input'!J417=\"Yes\",'TSA Input'!J417=\"Contingent\"),'TSA Input'!B417,\"Ineligible\"))","v":""},{"$f":"IF('TSA Input'!J417=\"\",\"\",IF(OR('TSA Input'!J417=\"Yes\",'TSA Input'!J417=\"Contingent\"),'TSA Input'!I417,\"\"))","v":""},{"$f":"IF('TSA Input'!J417=\"\",\"\",IF(OR('TSA Input'!J417=\"Yes\",'TSA Input'!J417=\"Contingent\"),'TSA Input'!C417,\"\"))","v":""},{"$f":"IF('TSA Input'!J417=\"\",\"\",IF(OR('TSA Input'!J417=\"Yes\",'TSA Input'!J417=\"Contingent\"),'TSA Input'!D417,\"\"))","v":""},{"$f":"IF('TSA Input'!J417=\"\",\"\",IF(OR('TSA Input'!J417=\"Yes\",'TSA Input'!J417=\"Contingent\"),'TSA Input'!G417,\"\"))","v":""},{"$f":"IF('TSA Input'!J417=\"\",\"\",IF(OR('TSA Input'!J417=\"Yes\",'TSA Input'!J417=\"Contingent\"),'TSA Input'!F417,\"\"))","v":""},"",{"$f":"IF('TSA Input'!J417=\"\",\"\",IF(OR('TSA Input'!J417=\"Yes\",'TSA Input'!J417=\"Contingent\"),'TSA Input'!D417,\"\"))","v":""},{"$f":"IF('TSA Input'!J417=\"\",\"\",IF(OR('TSA Input'!J417=\"Yes\",'TSA Input'!J417=\"Contingent\"),'TSA Input'!G417,\"\"))","v":""},{"$f":"IF('TSA Input'!J417=\"\",\"\",IF(OR('TSA Input'!J417=\"Yes\",'TSA Input'!J417=\"Contingent\"),'TSA Input'!F417,\"\"))","v":""},"","Required","Required"]
["",null,{"$f":"IF('TSA Input'!J418=\"\",\"\",IF(OR('TSA Input'!J418=\"Yes\",'TSA Input'!J418=\"Contingent\"),'TSA Input'!B418,\"Ineligible\"))","v":""},{"$f":"IF('TSA Input'!J418=\"\",\"\",IF(OR('TSA Input'!J418=\"Yes\",'TSA Input'!J418=\"Contingent\"),'TSA Input'!I418,\"\"))","v":""},{"$f":"IF('TSA Input'!J418=\"\",\"\",IF(OR('TSA Input'!J418=\"Yes\",'TSA Input'!J418=\"Contingent\"),'TSA Input'!C418,\"\"))","v":""},{"$f":"IF('TSA Input'!J418=\"\",\"\",IF(OR('TSA Input'!J418=\"Yes\",'TSA Input'!J418=\"Contingent\"),'TSA Input'!D418,\"\"))","v":""},{"$f":"IF('TSA Input'!J418=\"\",\"\",IF(OR('TSA Input'!J418=\"Yes\",'TSA Input'!J418=\"Contingent\"),'TSA Input'!G418,\"\"))","v":""},{"$f":"IF('TSA Input'!J418=\"\",\"\",IF(OR('TSA Input'!J418=\"Yes\",'TSA Input'!J418=\"Contingent\"),'TSA Input'!F418,\"\"))","v":""},"",{"$f":"IF('TSA Input'!J418=\"\",\"\",IF(OR('TSA Input'!J418=\"Yes\",'TSA Input'!J418=\"Contingent\"),'TSA Input'!D418,\"\"))","v":""},{"$f":"IF('TSA Input'!J418=\"\",\"\",IF(OR('TSA Input'!J418=\"Yes\",'TSA Input'!J418=\"Contingent\"),'TSA Input'!G418,\"\"))","v":""},{"$f":"IF('TSA Input'!J418=\"\",\"\",IF(OR('TSA Input'!J418=\"Yes\",'TSA Input'!J418=\"Contingent\"),'TSA Input'!F418,\"\"))","v":""},"","Required","Required"]
["",null,{"$f":"IF('TSA Input'!J419=\"\",\"\",IF(OR('TSA Input'!J419=\"Yes\",'TSA Input'!J419=\"Contingent\"),'TSA Input'!B419,\"Ineligible\"))","v":""},{"$f":"IF('TSA Input'!J419=\"\",\"\",IF(OR('TSA Input'!J419=\"Yes\",'TSA Input'!J419=\"Contingent\"),'TSA Input'!I419,\"\"))","v":""},{"$f":"IF('TSA Input'!J419=\"\",\"\",IF(OR('TSA Input'!J419=\"Yes\",'TSA Input'!J419=\"Contingent\"),'TSA Input'!C419,\"\"))","v":""},{"$f":"IF('TSA Input'!J419=\"\",\"\",IF(OR('TSA Input'!J419=\"Yes\",'TSA Input'!J419=\"Contingent\"),'TSA Input'!D419,\"\"))","v":""},{"$f":"IF('TSA Input'!J419=\"\",\"\",IF(OR('TSA Input'!J419=\"Yes\",'TSA Input'!J419=\"Contingent\"),'TSA Input'!G419,\"\"))","v":""},{"$f":"IF('TSA Input'!J419=\"\",\"\",IF(OR('TSA Input'!J419=\"Yes\",'TSA Input'!J419=\"Contingent\"),'TSA Input'!F419,\"\"))","v":""},"",{"$f":"IF('TSA Input'!J419=\"\",\"\",IF(OR('TSA Input'!J419=\"Yes\",'TSA Input'!J419=\"Contingent\"),'TSA Input'!D419,\"\"))","v":""},{"$f":"IF('TSA Input'!J419=\"\",\"\",IF(OR('TSA Input'!J419=\"Yes\",'TSA Input'!J419=\"Contingent\"),'TSA Input'!G419,\"\"))","v":""},{"$f":"IF('TSA Input'!J419=\"\",\"\",IF(OR('TSA Input'!J419=\"Yes\",'TSA Input'!J419=\"Contingent\"),'TSA Input'!F419,\"\"))","v":""},"","Required","Required"]
["",null,{"$f":"IF('TSA Input'!J420=\"\",\"\",IF(OR('TSA Input'!J420=\"Yes\",'TSA Input'!J420=\"Contingent\"),'TSA Input'!B420,\"Ineligible\"))","v":""},{"$f":"IF('TSA Input'!J420=\"\",\"\",IF(OR('TSA Input'!J420=\"Yes\",'TSA Input'!J420=\"Contingent\"),'TSA Input'!I420,\"\"))","v":""},{"$f":"IF('TSA Input'!J420=\"\",\"\",IF(OR('TSA Input'!J420=\"Yes\",'TSA Input'!J420=\"Contingent\"),'TSA Input'!C420,\"\"))","v":""},{"$f":"IF('TSA Input'!J420=\"\",\"\",IF(OR('TSA Input'!J420=\"Yes\",'TSA Input'!J420=\"Contingent\"),'TSA Input'!D420,\"\"))","v":""},{"$f":"IF('TSA Input'!J420=\"\",\"\",IF(OR('TSA Input'!J420=\"Yes\",'TSA Input'!J420=\"Contingent\"),'TSA Input'!G420,\"\"))","v":""},{"$f":"IF('TSA Input'!J420=\"\",\"\",IF(OR('TSA Input'!J420=\"Yes\",'TSA Input'!J420=\"Contingent\"),'TSA Input'!F420,\"\"))","v":""},"",{"$f":"IF('TSA Input'!J420=\"\",\"\",IF(OR('TSA Input'!J420=\"Yes\",'TSA Input'!J420=\"Contingent\"),'TSA Input'!D420,\"\"))","v":""},{"$f":"IF('TSA Input'!J420=\"\",\"\",IF(OR('TSA Input'!J420=\"Yes\",'TSA Input'!J420=\"Contingent\"),'TSA Input'!G420,\"\"))","v":""},{"$f":"IF('TSA Input'!J420=\"\",\"\",IF(OR('TSA Input'!J420=\"Yes\",'TSA Input'!J420=\"Contingent\"),'TSA Input'!F420,\"\"))","v":""},"","Required","Required"]
["",null,{"$f":"IF('TSA Input'!J421=\"\",\"\",IF(OR('TSA Input'!J421=\"Yes\",'TSA Input'!J421=\"Contingent\"),'TSA Input'!B421,\"Ineligible\"))","v":""},{"$f":"IF('TSA Input'!J421=\"\",\"\",IF(OR('TSA Input'!J421=\"Yes\",'TSA Input'!J421=\"Contingent\"),'TSA Input'!I421,\"\"))","v":""},{"$f":"IF('TSA Input'!J421=\"\",\"\",IF(OR('TSA Input'!J421=\"Yes\",'TSA Input'!J421=\"Contingent\"),'TSA Input'!C421,\"\"))","v":""},{"$f":"IF('TSA Input'!J421=\"\",\"\",IF(OR('TSA Input'!J421=\"Yes\",'TSA Input'!J421=\"Contingent\"),'TSA Input'!D421,\"\"))","v":""},{"$f":"IF('TSA Input'!J421=\"\",\"\",IF(OR('TSA Input'!J421=\"Yes\",'TSA Input'!J421=\"Contingent\"),'TSA Input'!G421,\"\"))","v":""},{"$f":"IF('TSA Input'!J421=\"\",\"\",IF(OR('TSA Input'!J421=\"Yes\",'TSA Input'!J421=\"Contingent\"),'TSA Input'!F421,\"\"))","v":""},"",{"$f":"IF('TSA Input'!J421=\"\",\"\",IF(OR('TSA Input'!J421=\"Yes\",'TSA Input'!J421=\"Contingent\"),'TSA Input'!D421,\"\"))","v":""},{"$f":"IF('TSA Input'!J421=\"\",\"\",IF(OR('TSA Input'!J421=\"Yes\",'TSA Input'!J421=\"Contingent\"),'TSA Input'!G421,\"\"))","v":""},{"$f":"IF('TSA Input'!J421=\"\",\"\",IF(OR('TSA Input'!J421=\"Yes\",'TSA Input'!J421=\"Contingent\"),'TSA Input'!F421,\"\"))","v":""},"","Required","Required"]
["",null,{"$f":"IF('TSA Input'!J422=\"\",\"\",IF(OR('TSA Input'!J422=\"Yes\",'TSA Input'!J422=\"Contingent\"),'TSA Input'!B422,\"Ineligible\"))","v":""},{"$f":"IF('TSA Input'!J422=\"\",\"\",IF(OR('TSA Input'!J422=\"Yes\",'TSA Input'!J422=\"Contingent\"),'TSA Input'!I422,\"\"))","v":""},{"$f":"IF('TSA Input'!J422=\"\",\"\",IF(OR('TSA Input'!J422=\"Yes\",'TSA Input'!J422=\"Contingent\"),'TSA Input'!C422,\"\"))","v":""},{"$f":"IF('TSA Input'!J422=\"\",\"\",IF(OR('TSA Input'!J422=\"Yes\",'TSA Input'!J422=\"Contingent\"),'TSA Input'!D422,\"\"))","v":""},{"$f":"IF('TSA Input'!J422=\"\",\"\",IF(OR('TSA Input'!J422=\"Yes\",'TSA Input'!J422=\"Contingent\"),'TSA Input'!G422,\"\"))","v":""},{"$f":"IF('TSA Input'!J422=\"\",\"\",IF(OR('TSA Input'!J422=\"Yes\",'TSA Input'!J422=\"Contingent\"),'TSA Input'!F422,\"\"))","v":""},"",{"$f":"IF('TSA Input'!J422=\"\",\"\",IF(OR('TSA Input'!J422=\"Yes\",'TSA Input'!J422=\"Contingent\"),'TSA Input'!D422,\"\"))","v":""},{"$f":"IF('TSA Input'!J422=\"\",\"\",IF(OR('TSA Input'!J422=\"Yes\",'TSA Input'!J422=\"Contingent\"),'TSA Input'!G422,\"\"))","v":""},{"$f":"IF('TSA Input'!J422=\"\",\"\",IF(OR('TSA Input'!J422=\"Yes\",'TSA Input'!J422=\"Contingent\"),'TSA Input'!F422,\"\"))","v":""},"","Required","Required"]
["",null,{"$f":"IF('TSA Input'!J423=\"\",\"\",IF(OR('TSA Input'!J423=\"Yes\",'TSA Input'!J423=\"Contingent\"),'TSA Input'!B423,\"Ineligible\"))","v":""},{"$f":"IF('TSA Input'!J423=\"\",\"\",IF(OR('TSA Input'!J423=\"Yes\",'TSA Input'!J423=\"Contingent\"),'TSA Input'!I423,\"\"))","v":""},{"$f":"IF('TSA Input'!J423=\"\",\"\",IF(OR('TSA Input'!J423=\"Yes\",'TSA Input'!J423=\"Contingent\"),'TSA Input'!C423,\"\"))","v":""},{"$f":"IF('TSA Input'!J423=\"\",\"\",IF(OR('TSA Input'!J423=\"Yes\",'TSA Input'!J423=\"Contingent\"),'TSA Input'!D423,\"\"))","v":""},{"$f":"IF('TSA Input'!J423=\"\",\"\",IF(OR('TSA Input'!J423=\"Yes\",'TSA Input'!J423=\"Contingent\"),'TSA Input'!G423,\"\"))","v":""},{"$f":"IF('TSA Input'!J423=\"\",\"\",IF(OR('TSA Input'!J423=\"Yes\",'TSA Input'!J423=\"Contingent\"),'TSA Input'!F423,\"\"))","v":""},"",{"$f":"IF('TSA Input'!J423=\"\",\"\",IF(OR('TSA Input'!J423=\"Yes\",'TSA Input'!J423=\"Contingent\"),'TSA Input'!D423,\"\"))","v":""},{"$f":"IF('TSA Input'!J423=\"\",\"\",IF(OR('TSA Input'!J423=\"Yes\",'TSA Input'!J423=\"Contingent\"),'TSA Input'!G423,\"\"))","v":""},{"$f":"IF('TSA Input'!J423=\"\",\"\",IF(OR('TSA Input'!J423=\"Yes\",'TSA Input'!J423=\"Contingent\"),'TSA Input'!F423,\"\"))","v":""},"","Required","Required"]
["",null,{"$f":"IF('TSA Input'!J424=\"\",\"\",IF(OR('TSA Input'!J424=\"Yes\",'TSA Input'!J424=\"Contingent\"),'TSA Input'!B424,\"Ineligible\"))","v":""},{"$f":"IF('TSA Input'!J424=\"\",\"\",IF(OR('TSA Input'!J424=\"Yes\",'TSA Input'!J424=\"Contingent\"),'TSA Input'!I424,\"\"))","v":""},{"$f":"IF('TSA Input'!J424=\"\",\"\",IF(OR('TSA Input'!J424=\"Yes\",'TSA Input'!J424=\"Contingent\"),'TSA Input'!C424,\"\"))","v":""},{"$f":"IF('TSA Input'!J424=\"\",\"\",IF(OR('TSA Input'!J424=\"Yes\",'TSA Input'!J424=\"Contingent\"),'TSA Input'!D424,\"\"))","v":""},{"$f":"IF('TSA Input'!J424=\"\",\"\",IF(OR('TSA Input'!J424=\"Yes\",'TSA Input'!J424=\"Contingent\"),'TSA Input'!G424,\"\"))","v":""},{"$f":"IF('TSA Input'!J424=\"\",\"\",IF(OR('TSA Input'!J424=\"Yes\",'TSA Input'!J424=\"Contingent\"),'TSA Input'!F424,\"\"))","v":""},"",{"$f":"IF('TSA Input'!J424=\"\",\"\",IF(OR('TSA Input'!J424=\"Yes\",'TSA Input'!J424=\"Contingent\"),'TSA Input'!D424,\"\"))","v":""},{"$f":"IF('TSA Input'!J424=\"\",\"\",IF(OR('TSA Input'!J424=\"Yes\",'TSA Input'!J424=\"Contingent\"),'TSA Input'!G424,\"\"))","v":""},{"$f":"IF('TSA Input'!J424=\"\",\"\",IF(OR('TSA Input'!J424=\"Yes\",'TSA Input'!J424=\"Contingent\"),'TSA Input'!F424,\"\"))","v":""},"","Required","Required"]
["",null,{"$f":"IF('TSA Input'!J425=\"\",\"\",IF(OR('TSA Input'!J425=\"Yes\",'TSA Input'!J425=\"Contingent\"),'TSA Input'!B425,\"Ineligible\"))","v":""},{"$f":"IF('TSA Input'!J425=\"\",\"\",IF(OR('TSA Input'!J425=\"Yes\",'TSA Input'!J425=\"Contingent\"),'TSA Input'!I425,\"\"))","v":""},{"$f":"IF('TSA Input'!J425=\"\",\"\",IF(OR('TSA Input'!J425=\"Yes\",'TSA Input'!J425=\"Contingent\"),'TSA Input'!C425,\"\"))","v":""},{"$f":"IF('TSA Input'!J425=\"\",\"\",IF(OR('TSA Input'!J425=\"Yes\",'TSA Input'!J425=\"Contingent\"),'TSA Input'!D425,\"\"))","v":""},{"$f":"IF('TSA Input'!J425=\"\",\"\",IF(OR('TSA Input'!J425=\"Yes\",'TSA Input'!J425=\"Contingent\"),'TSA Input'!G425,\"\"))","v":""},{"$f":"IF('TSA Input'!J425=\"\",\"\",IF(OR('TSA Input'!J425=\"Yes\",'TSA Input'!J425=\"Contingent\"),'TSA Input'!F425,\"\"))","v":""},"",{"$f":"IF('TSA Input'!J425=\"\",\"\",IF(OR('TSA Input'!J425=\"Yes\",'TSA Input'!J425=\"Contingent\"),'TSA Input'!D425,\"\"))","v":""},{"$f":"IF('TSA Input'!J425=\"\",\"\",IF(OR('TSA Input'!J425=\"Yes\",'TSA Input'!J425=\"Contingent\"),'TSA Input'!G425,\"\"))","v":""},{"$f":"IF('TSA Input'!J425=\"\",\"\",IF(OR('TSA Input'!J425=\"Yes\",'TSA Input'!J425=\"Contingent\"),'TSA Input'!F425,\"\"))","v":""},"","Required","Required"]
["",null,{"$f":"IF('TSA Input'!J426=\"\",\"\",IF(OR('TSA Input'!J426=\"Yes\",'TSA Input'!J426=\"Contingent\"),'TSA Input'!B426,\"Ineligible\"))","v":""},{"$f":"IF('TSA Input'!J426=\"\",\"\",IF(OR('TSA Input'!J426=\"Yes\",'TSA Input'!J426=\"Contingent\"),'TSA Input'!I426,\"\"))","v":""},{"$f":"IF('TSA Input'!J426=\"\",\"\",IF(OR('TSA Input'!J426=\"Yes\",'TSA Input'!J426=\"Contingent\"),'TSA Input'!C426,\"\"))","v":""},{"$f":"IF('TSA Input'!J426=\"\",\"\",IF(OR('TSA Input'!J426=\"Yes\",'TSA Input'!J426=\"Contingent\"),'TSA Input'!D426,\"\"))","v":""},{"$f":"IF('TSA Input'!J426=\"\",\"\",IF(OR('TSA Input'!J426=\"Yes\",'TSA Input'!J426=\"Contingent\"),'TSA Input'!G426,\"\"))","v":""},{"$f":"IF('TSA Input'!J426=\"\",\"\",IF(OR('TSA Input'!J426=\"Yes\",'TSA Input'!J426=\"Contingent\"),'TSA Input'!F426,\"\"))","v":""},"",{"$f":"IF('TSA Input'!J426=\"\",\"\",IF(OR('TSA Input'!J426=\"Yes\",'TSA Input'!J426=\"Contingent\"),'TSA Input'!D426,\"\"))","v":""},{"$f":"IF('TSA Input'!J426=\"\",\"\",IF(OR('TSA Input'!J426=\"Yes\",'TSA Input'!J426=\"Contingent\"),'TSA Input'!G426,\"\"))","v":""},{"$f":"IF('TSA Input'!J426=\"\",\"\",IF(OR('TSA Input'!J426=\"Yes\",'TSA Input'!J426=\"Contingent\"),'TSA Input'!F426,\"\"))","v":""},"","Required","Required"]
["",null,{"$f":"IF('TSA Input'!J427=\"\",\"\",IF(OR('TSA Input'!J427=\"Yes\",'TSA Input'!J427=\"Contingent\"),'TSA Input'!B427,\"Ineligible\"))","v":""},{"$f":"IF('TSA Input'!J427=\"\",\"\",IF(OR('TSA Input'!J427=\"Yes\",'TSA Input'!J427=\"Contingent\"),'TSA Input'!I427,\"\"))","v":""},{"$f":"IF('TSA Input'!J427=\"\",\"\",IF(OR('TSA Input'!J427=\"Yes\",'TSA Input'!J427=\"Contingent\"),'TSA Input'!C427,\"\"))","v":""},{"$f":"IF('TSA Input'!J427=\"\",\"\",IF(OR('TSA Input'!J427=\"Yes\",'TSA Input'!J427=\"Contingent\"),'TSA Input'!D427,\"\"))","v":""},{"$f":"IF('TSA Input'!J427=\"\",\"\",IF(OR('TSA Input'!J427=\"Yes\",'TSA Input'!J427=\"Contingent\"),'TSA Input'!G427,\"\"))","v":""},{"$f":"IF('TSA Input'!J427=\"\",\"\",IF(OR('TSA Input'!J427=\"Yes\",'TSA Input'!J427=\"Contingent\"),'TSA Input'!F427,\"\"))","v":""},"",{"$f":"IF('TSA Input'!J427=\"\",\"\",IF(OR('TSA Input'!J427=\"Yes\",'TSA Input'!J427=\"Contingent\"),'TSA Input'!D427,\"\"))","v":""},{"$f":"IF('TSA Input'!J427=\"\",\"\",IF(OR('TSA Input'!J427=\"Yes\",'TSA Input'!J427=\"Contingent\"),'TSA Input'!G427,\"\"))","v":""},{"$f":"IF('TSA Input'!J427=\"\",\"\",IF(OR('TSA Input'!J427=\"Yes\",'TSA Input'!J427=\"Contingent\"),'TSA Input'!F427,\"\"))","v":""},"","Required","Required"]
["",null,{"$f":"IF('TSA Input'!J428=\"\",\"\",IF(OR('TSA Input'!J428=\"Yes\",'TSA Input'!J428=\"Contingent\"),'TSA Input'!B428,\"Ineligible\"))","v":""},{"$f":"IF('TSA Input'!J428=\"\",\"\",IF(OR('TSA Input'!J428=\"Yes\",'TSA Input'!J428=\"Contingent\"),'TSA Input'!I428,\"\"))","v":""},{"$f":"IF('TSA Input'!J428=\"\",\"\",IF(OR('TSA Input'!J428=\"Yes\",'TSA Input'!J428=\"Contingent\"),'TSA Input'!C428,\"\"))","v":""},{"$f":"IF('TSA Input'!J428=\"\",\"\",IF(OR('TSA Input'!J428=\"Yes\",'TSA Input'!J428=\"Contingent\"),'TSA Input'!D428,\"\"))","v":""},{"$f":"IF('TSA Input'!J428=\"\",\"\",IF(OR('TSA Input'!J428=\"Yes\",'TSA Input'!J428=\"Contingent\"),'TSA Input'!G428,\"\"))","v":""},{"$f":"IF('TSA Input'!J428=\"\",\"\",IF(OR('TSA Input'!J428=\"Yes\",'TSA Input'!J428=\"Contingent\"),'TSA Input'!F428,\"\"))","v":""},"",{"$f":"IF('TSA Input'!J428=\"\",\"\",IF(OR('TSA Input'!J428=\"Yes\",'TSA Input'!J428=\"Contingent\"),'TSA Input'!D428,\"\"))","v":""},{"$f":"IF('TSA Input'!J428=\"\",\"\",IF(OR('TSA Input'!J428=\"Yes\",'TSA Input'!J428=\"Contingent\"),'TSA Input'!G428,\"\"))","v":""},{"$f":"IF('TSA Input'!J428=\"\",\"\",IF(OR('TSA Input'!J428=\"Yes\",'TSA Input'!J428=\"Contingent\"),'TSA Input'!F428,\"\"))","v":""},"","Required","Required"]
["",null,{"$f":"IF('TSA Input'!J429=\"\",\"\",IF(OR('TSA Input'!J429=\"Yes\",'TSA Input'!J429=\"Contingent\"),'TSA Input'!B429,\"Ineligible\"))","v":""},{"$f":"IF('TSA Input'!J429=\"\",\"\",IF(OR('TSA Input'!J429=\"Yes\",'TSA Input'!J429=\"Contingent\"),'TSA Input'!I429,\"\"))","v":""},{"$f":"IF('TSA Input'!J429=\"\",\"\",IF(OR('TSA Input'!J429=\"Yes\",'TSA Input'!J429=\"Contingent\"),'TSA Input'!C429,\"\"))","v":""},{"$f":"IF('TSA Input'!J429=\"\",\"\",IF(OR('TSA Input'!J429=\"Yes\",'TSA Input'!J429=\"Contingent\"),'TSA Input'!D429,\"\"))","v":""},{"$f":"IF('TSA Input'!J429=\"\",\"\",IF(OR('TSA Input'!J429=\"Yes\",'TSA Input'!J429=\"Contingent\"),'TSA Input'!G429,\"\"))","v":""},{"$f":"IF('TSA Input'!J429=\"\",\"\",IF(OR('TSA Input'!J429=\"Yes\",'TSA Input'!J429=\"Contingent\"),'TSA Input'!F429,\"\"))","v":""},"",{"$f":"IF('TSA Input'!J429=\"\",\"\",IF(OR('TSA Input'!J429=\"Yes\",'TSA Input'!J429=\"Contingent\"),'TSA Input'!D429,\"\"))","v":""},{"$f":"IF('TSA Input'!J429=\"\",\"\",IF(OR('TSA Input'!J429=\"Yes\",'TSA Input'!J429=\"Contingent\"),'TSA Input'!G429,\"\"))","v":""},{"$f":"IF('TSA Input'!J429=\"\",\"\",IF(OR('TSA Input'!J429=\"Yes\",'TSA Input'!J429=\"Contingent\"),'TSA Input'!F429,\"\"))","v":""},"","Required","Required"]
["",null,{"$f":"IF('TSA Input'!J430=\"\",\"\",IF(OR('TSA Input'!J430=\"Yes\",'TSA Input'!J430=\"Contingent\"),'TSA Input'!B430,\"Ineligible\"))","v":""},{"$f":"IF('TSA Input'!J430=\"\",\"\",IF(OR('TSA Input'!J430=\"Yes\",'TSA Input'!J430=\"Contingent\"),'TSA Input'!I430,\"\"))","v":""},{"$f":"IF('TSA Input'!J430=\"\",\"\",IF(OR('TSA Input'!J430=\"Yes\",'TSA Input'!J430=\"Contingent\"),'TSA Input'!C430,\"\"))","v":""},{"$f":"IF('TSA Input'!J430=\"\",\"\",IF(OR('TSA Input'!J430=\"Yes\",'TSA Input'!J430=\"Contingent\"),'TSA Input'!D430,\"\"))","v":""},{"$f":"IF('TSA Input'!J430=\"\",\"\",IF(OR('TSA Input'!J430=\"Yes\",'TSA Input'!J430=\"Contingent\"),'TSA Input'!G430,\"\"))","v":""},{"$f":"IF('TSA Input'!J430=\"\",\"\",IF(OR('TSA Input'!J430=\"Yes\",'TSA Input'!J430=\"Contingent\"),'TSA Input'!F430,\"\"))","v":""},"",{"$f":"IF('TSA Input'!J430=\"\",\"\",IF(OR('TSA Input'!J430=\"Yes\",'TSA Input'!J430=\"Contingent\"),'TSA Input'!D430,\"\"))","v":""},{"$f":"IF('TSA Input'!J430=\"\",\"\",IF(OR('TSA Input'!J430=\"Yes\",'TSA Input'!J430=\"Contingent\"),'TSA Input'!G430,\"\"))","v":""},{"$f":"IF('TSA Input'!J430=\"\",\"\",IF(OR('TSA Input'!J430=\"Yes\",'TSA Input'!J430=\"Contingent\"),'TSA Input'!F430,\"\"))","v":""},"","Required","Required"]
["",null,{"$f":"IF('TSA Input'!J431=\"\",\"\",IF(OR('TSA Input'!J431=\"Yes\",'TSA Input'!J431=\"Contingent\"),'TSA Input'!B431,\"Ineligible\"))","v":""},{"$f":"IF('TSA Input'!J431=\"\",\"\",IF(OR('TSA Input'!J431=\"Yes\",'TSA Input'!J431=\"Contingent\"),'TSA Input'!I431,\"\"))","v":""},{"$f":"IF('TSA Input'!J431=\"\",\"\",IF(OR('TSA Input'!J431=\"Yes\",'TSA Input'!J431=\"Contingent\"),'TSA Input'!C431,\"\"))","v":""},{"$f":"IF('TSA Input'!J431=\"\",\"\",IF(OR('TSA Input'!J431=\"Yes\",'TSA Input'!J431=\"Contingent\"),'TSA Input'!D431,\"\"))","v":""},{"$f":"IF('TSA Input'!J431=\"\",\"\",IF(OR('TSA Input'!J431=\"Yes\",'TSA Input'!J431=\"Contingent\"),'TSA Input'!G431,\"\"))","v":""},{"$f":"IF('TSA Input'!J431=\"\",\"\",IF(OR('TSA Input'!J431=\"Yes\",'TSA Input'!J431=\"Contingent\"),'TSA Input'!F431,\"\"))","v":""},"",{"$f":"IF('TSA Input'!J431=\"\",\"\",IF(OR('TSA Input'!J431=\"Yes\",'TSA Input'!J431=\"Contingent\"),'TSA Input'!D431,\"\"))","v":""},{"$f":"IF('TSA Input'!J431=\"\",\"\",IF(OR('TSA Input'!J431=\"Yes\",'TSA Input'!J431=\"Contingent\"),'TSA Input'!G431,\"\"))","v":""},{"$f":"IF('TSA Input'!J431=\"\",\"\",IF(OR('TSA Input'!J431=\"Yes\",'TSA Input'!J431=\"Contingent\"),'TSA Input'!F431,\"\"))","v":""},"","Required","Required"]
["",null,{"$f":"IF('TSA Input'!J432=\"\",\"\",IF(OR('TSA Input'!J432=\"Yes\",'TSA Input'!J432=\"Contingent\"),'TSA Input'!B432,\"Ineligible\"))","v":""},{"$f":"IF('TSA Input'!J432=\"\",\"\",IF(OR('TSA Input'!J432=\"Yes\",'TSA Input'!J432=\"Contingent\"),'TSA Input'!I432,\"\"))","v":""},{"$f":"IF('TSA Input'!J432=\"\",\"\",IF(OR('TSA Input'!J432=\"Yes\",'TSA Input'!J432=\"Contingent\"),'TSA Input'!C432,\"\"))","v":""},{"$f":"IF('TSA Input'!J432=\"\",\"\",IF(OR('TSA Input'!J432=\"Yes\",'TSA Input'!J432=\"Contingent\"),'TSA Input'!D432,\"\"))","v":""},{"$f":"IF('TSA Input'!J432=\"\",\"\",IF(OR('TSA Input'!J432=\"Yes\",'TSA Input'!J432=\"Contingent\"),'TSA Input'!G432,\"\"))","v":""},{"$f":"IF('TSA Input'!J432=\"\",\"\",IF(OR('TSA Input'!J432=\"Yes\",'TSA Input'!J432=\"Contingent\"),'TSA Input'!F432,\"\"))","v":""},"",{"$f":"IF('TSA Input'!J432=\"\",\"\",IF(OR('TSA Input'!J432=\"Yes\",'TSA Input'!J432=\"Contingent\"),'TSA Input'!D432,\"\"))","v":""},{"$f":"IF('TSA Input'!J432=\"\",\"\",IF(OR('TSA Input'!J432=\"Yes\",'TSA Input'!J432=\"Contingent\"),'TSA Input'!G432,\"\"))","v":""},{"$f":"IF('TSA Input'!J432=\"\",\"\",IF(OR('TSA Input'!J432=\"Yes\",'TSA Input'!J432=\"Contingent\"),'TSA Input'!F432,\"\"))","v":""},"","Required","Required"]
["",null,{"$f":"IF('TSA Input'!J433=\"\",\"\",IF(OR('TSA Input'!J433=\"Yes\",'TSA Input'!J433=\"Contingent\"),'TSA Input'!B433,\"Ineligible\"))","v":""},{"$f":"IF('TSA Input'!J433=\"\",\"\",IF(OR('TSA Input'!J433=\"Yes\",'TSA Input'!J433=\"Contingent\"),'TSA Input'!I433,\"\"))","v":""},{"$f":"IF('TSA Input'!J433=\"\",\"\",IF(OR('TSA Input'!J433=\"Yes\",'TSA Input'!J433=\"Contingent\"),'TSA Input'!C433,\"\"))","v":""},{"$f":"IF('TSA Input'!J433=\"\",\"\",IF(OR('TSA Input'!J433=\"Yes\",'TSA Input'!J433=\"Contingent\"),'TSA Input'!D433,\"\"))","v":""},{"$f":"IF('TSA Input'!J433=\"\",\"\",IF(OR('TSA Input'!J433=\"Yes\",'TSA Input'!J433=\"Contingent\"),'TSA Input'!G433,\"\"))","v":""},{"$f":"IF('TSA Input'!J433=\"\",\"\",IF(OR('TSA Input'!J433=\"Yes\",'TSA Input'!J433=\"Contingent\"),'TSA Input'!F433,\"\"))","v":""},"",{"$f":"IF('TSA Input'!J433=\"\",\"\",IF(OR('TSA Input'!J433=\"Yes\",'TSA Input'!J433=\"Contingent\"),'TSA Input'!D433,\"\"))","v":""},{"$f":"IF('TSA Input'!J433=\"\",\"\",IF(OR('TSA Input'!J433=\"Yes\",'TSA Input'!J433=\"Contingent\"),'TSA Input'!G433,\"\"))","v":""},{"$f":"IF('TSA Input'!J433=\"\",\"\",IF(OR('TSA Input'!J433=\"Yes\",'TSA Input'!J433=\"Contingent\"),'TSA Input'!F433,\"\"))","v":""},"","Required","Required"]
["",null,{"$f":"IF('TSA Input'!J434=\"\",\"\",IF(OR('TSA Input'!J434=\"Yes\",'TSA Input'!J434=\"Contingent\"),'TSA Input'!B434,\"Ineligible\"))","v":""},{"$f":"IF('TSA Input'!J434=\"\",\"\",IF(OR('TSA Input'!J434=\"Yes\",'TSA Input'!J434=\"Contingent\"),'TSA Input'!I434,\"\"))","v":""},{"$f":"IF('TSA Input'!J434=\"\",\"\",IF(OR('TSA Input'!J434=\"Yes\",'TSA Input'!J434=\"Contingent\"),'TSA Input'!C434,\"\"))","v":""},{"$f":"IF('TSA Input'!J434=\"\",\"\",IF(OR('TSA Input'!J434=\"Yes\",'TSA Input'!J434=\"Contingent\"),'TSA Input'!D434,\"\"))","v":""},{"$f":"IF('TSA Input'!J434=\"\",\"\",IF(OR('TSA Input'!J434=\"Yes\",'TSA Input'!J434=\"Contingent\"),'TSA Input'!G434,\"\"))","v":""},{"$f":"IF('TSA Input'!J434=\"\",\"\",IF(OR('TSA Input'!J434=\"Yes\",'TSA Input'!J434=\"Contingent\"),'TSA Input'!F434,\"\"))","v":""},"",{"$f":"IF('TSA Input'!J434=\"\",\"\",IF(OR('TSA Input'!J434=\"Yes\",'TSA Input'!J434=\"Contingent\"),'TSA Input'!D434,\"\"))","v":""},{"$f":"IF('TSA Input'!J434=\"\",\"\",IF(OR('TSA Input'!J434=\"Yes\",'TSA Input'!J434=\"Contingent\"),'TSA Input'!G434,\"\"))","v":""},{"$f":"IF('TSA Input'!J434=\"\",\"\",IF(OR('TSA Input'!J434=\"Yes\",'TSA Input'!J434=\"Contingent\"),'TSA Input'!F434,\"\"))","v":""},"","Required","Required"]
["",null,{"$f":"IF('TSA Input'!J435=\"\",\"\",IF(OR('TSA Input'!J435=\"Yes\",'TSA Input'!J435=\"Contingent\"),'TSA Input'!B435,\"Ineligible\"))","v":""},{"$f":"IF('TSA Input'!J435=\"\",\"\",IF(OR('TSA Input'!J435=\"Yes\",'TSA Input'!J435=\"Contingent\"),'TSA Input'!I435,\"\"))","v":""},{"$f":"IF('TSA Input'!J435=\"\",\"\",IF(OR('TSA Input'!J435=\"Yes\",'TSA Input'!J435=\"Contingent\"),'TSA Input'!C435,\"\"))","v":""},{"$f":"IF('TSA Input'!J435=\"\",\"\",IF(OR('TSA Input'!J435=\"Yes\",'TSA Input'!J435=\"Contingent\"),'TSA Input'!D435,\"\"))","v":""},{"$f":"IF('TSA Input'!J435=\"\",\"\",IF(OR('TSA Input'!J435=\"Yes\",'TSA Input'!J435=\"Contingent\"),'TSA Input'!G435,\"\"))","v":""},{"$f":"IF('TSA Input'!J435=\"\",\"\",IF(OR('TSA Input'!J435=\"Yes\",'TSA Input'!J435=\"Contingent\"),'TSA Input'!F435,\"\"))","v":""},"",{"$f":"IF('TSA Input'!J435=\"\",\"\",IF(OR('TSA Input'!J435=\"Yes\",'TSA Input'!J435=\"Contingent\"),'TSA Input'!D435,\"\"))","v":""},{"$f":"IF('TSA Input'!J435=\"\",\"\",IF(OR('TSA Input'!J435=\"Yes\",'TSA Input'!J435=\"Contingent\"),'TSA Input'!G435,\"\"))","v":""},{"$f":"IF('TSA Input'!J435=\"\",\"\",IF(OR('TSA Input'!J435=\"Yes\",'TSA Input'!J435=\"Contingent\"),'TSA Input'!F435,\"\"))","v":""},"","Required","Required"]
["",null,{"$f":"IF('TSA Input'!J436=\"\",\"\",IF(OR('TSA Input'!J436=\"Yes\",'TSA Input'!J436=\"Contingent\"),'TSA Input'!B436,\"Ineligible\"))","v":""},{"$f":"IF('TSA Input'!J436=\"\",\"\",IF(OR('TSA Input'!J436=\"Yes\",'TSA Input'!J436=\"Contingent\"),'TSA Input'!I436,\"\"))","v":""},{"$f":"IF('TSA Input'!J436=\"\",\"\",IF(OR('TSA Input'!J436=\"Yes\",'TSA Input'!J436=\"Contingent\"),'TSA Input'!C436,\"\"))","v":""},{"$f":"IF('TSA Input'!J436=\"\",\"\",IF(OR('TSA Input'!J436=\"Yes\",'TSA Input'!J436=\"Contingent\"),'TSA Input'!D436,\"\"))","v":""},{"$f":"IF('TSA Input'!J436=\"\",\"\",IF(OR('TSA Input'!J436=\"Yes\",'TSA Input'!J436=\"Contingent\"),'TSA Input'!G436,\"\"))","v":""},{"$f":"IF('TSA Input'!J436=\"\",\"\",IF(OR('TSA Input'!J436=\"Yes\",'TSA Input'!J436=\"Contingent\"),'TSA Input'!F436,\"\"))","v":""},"",{"$f":"IF('TSA Input'!J436=\"\",\"\",IF(OR('TSA Input'!J436=\"Yes\",'TSA Input'!J436=\"Contingent\"),'TSA Input'!D436,\"\"))","v":""},{"$f":"IF('TSA Input'!J436=\"\",\"\",IF(OR('TSA Input'!J436=\"Yes\",'TSA Input'!J436=\"Contingent\"),'TSA Input'!G436,\"\"))","v":""},{"$f":"IF('TSA Input'!J436=\"\",\"\",IF(OR('TSA Input'!J436=\"Yes\",'TSA Input'!J436=\"Contingent\"),'TSA Input'!F436,\"\"))","v":""},"","Required","Required"]
["",null,{"$f":"IF('TSA Input'!J437=\"\",\"\",IF(OR('TSA Input'!J437=\"Yes\",'TSA Input'!J437=\"Contingent\"),'TSA Input'!B437,\"Ineligible\"))","v":""},{"$f":"IF('TSA Input'!J437=\"\",\"\",IF(OR('TSA Input'!J437=\"Yes\",'TSA Input'!J437=\"Contingent\"),'TSA Input'!I437,\"\"))","v":""},{"$f":"IF('TSA Input'!J437=\"\",\"\",IF(OR('TSA Input'!J437=\"Yes\",'TSA Input'!J437=\"Contingent\"),'TSA Input'!C437,\"\"))","v":""},{"$f":"IF('TSA Input'!J437=\"\",\"\",IF(OR('TSA Input'!J437=\"Yes\",'TSA Input'!J437=\"Contingent\"),'TSA Input'!D437,\"\"))","v":""},{"$f":"IF('TSA Input'!J437=\"\",\"\",IF(OR('TSA Input'!J437=\"Yes\",'TSA Input'!J437=\"Contingent\"),'TSA Input'!G437,\"\"))","v":""},{"$f":"IF('TSA Input'!J437=\"\",\"\",IF(OR('TSA Input'!J437=\"Yes\",'TSA Input'!J437=\"Contingent\"),'TSA Input'!F437,\"\"))","v":""},"",{"$f":"IF('TSA Input'!J437=\"\",\"\",IF(OR('TSA Input'!J437=\"Yes\",'TSA Input'!J437=\"Contingent\"),'TSA Input'!D437,\"\"))","v":""},{"$f":"IF('TSA Input'!J437=\"\",\"\",IF(OR('TSA Input'!J437=\"Yes\",'TSA Input'!J437=\"Contingent\"),'TSA Input'!G437,\"\"))","v":""},{"$f":"IF('TSA Input'!J437=\"\",\"\",IF(OR('TSA Input'!J437=\"Yes\",'TSA Input'!J437=\"Contingent\"),'TSA Input'!F437,\"\"))","v":""},"","Required","Required"]
["",null,{"$f":"IF('TSA Input'!J438=\"\",\"\",IF(OR('TSA Input'!J438=\"Yes\",'TSA Input'!J438=\"Contingent\"),'TSA Input'!B438,\"Ineligible\"))","v":""},{"$f":"IF('TSA Input'!J438=\"\",\"\",IF(OR('TSA Input'!J438=\"Yes\",'TSA Input'!J438=\"Contingent\"),'TSA Input'!I438,\"\"))","v":""},{"$f":"IF('TSA Input'!J438=\"\",\"\",IF(OR('TSA Input'!J438=\"Yes\",'TSA Input'!J438=\"Contingent\"),'TSA Input'!C438,\"\"))","v":""},{"$f":"IF('TSA Input'!J438=\"\",\"\",IF(OR('TSA Input'!J438=\"Yes\",'TSA Input'!J438=\"Contingent\"),'TSA Input'!D438,\"\"))","v":""},{"$f":"IF('TSA Input'!J438=\"\",\"\",IF(OR('TSA Input'!J438=\"Yes\",'TSA Input'!J438=\"Contingent\"),'TSA Input'!G438,\"\"))","v":""},{"$f":"IF('TSA Input'!J438=\"\",\"\",IF(OR('TSA Input'!J438=\"Yes\",'TSA Input'!J438=\"Contingent\"),'TSA Input'!F438,\"\"))","v":""},"",{"$f":"IF('TSA Input'!J438=\"\",\"\",IF(OR('TSA Input'!J438=\"Yes\",'TSA Input'!J438=\"Contingent\"),'TSA Input'!D438,\"\"))","v":""},{"$f":"IF('TSA Input'!J438=\"\",\"\",IF(OR('TSA Input'!J438=\"Yes\",'TSA Input'!J438=\"Contingent\"),'TSA Input'!G438,\"\"))","v":""},{"$f":"IF('TSA Input'!J438=\"\",\"\",IF(OR('TSA Input'!J438=\"Yes\",'TSA Input'!J438=\"Contingent\"),'TSA Input'!F438,\"\"))","v":""},"","Required","Required"]
["",null,{"$f":"IF('TSA Input'!J439=\"\",\"\",IF(OR('TSA Input'!J439=\"Yes\",'TSA Input'!J439=\"Contingent\"),'TSA Input'!B439,\"Ineligible\"))","v":""},{"$f":"IF('TSA Input'!J439=\"\",\"\",IF(OR('TSA Input'!J439=\"Yes\",'TSA Input'!J439=\"Contingent\"),'TSA Input'!I439,\"\"))","v":""},{"$f":"IF('TSA Input'!J439=\"\",\"\",IF(OR('TSA Input'!J439=\"Yes\",'TSA Input'!J439=\"Contingent\"),'TSA Input'!C439,\"\"))","v":""},{"$f":"IF('TSA Input'!J439=\"\",\"\",IF(OR('TSA Input'!J439=\"Yes\",'TSA Input'!J439=\"Contingent\"),'TSA Input'!D439,\"\"))","v":""},{"$f":"IF('TSA Input'!J439=\"\",\"\",IF(OR('TSA Input'!J439=\"Yes\",'TSA Input'!J439=\"Contingent\"),'TSA Input'!G439,\"\"))","v":""},{"$f":"IF('TSA Input'!J439=\"\",\"\",IF(OR('TSA Input'!J439=\"Yes\",'TSA Input'!J439=\"Contingent\"),'TSA Input'!F439,\"\"))","v":""},"",{"$f":"IF('TSA Input'!J439=\"\",\"\",IF(OR('TSA Input'!J439=\"Yes\",'TSA Input'!J439=\"Contingent\"),'TSA Input'!D439,\"\"))","v":""},{"$f":"IF('TSA Input'!J439=\"\",\"\",IF(OR('TSA Input'!J439=\"Yes\",'TSA Input'!J439=\"Contingent\"),'TSA Input'!G439,\"\"))","v":""},{"$f":"IF('TSA Input'!J439=\"\",\"\",IF(OR('TSA Input'!J439=\"Yes\",'TSA Input'!J439=\"Contingent\"),'TSA Input'!F439,\"\"))","v":""},"","Required","Required"]
["",null,{"$f":"IF('TSA Input'!J440=\"\",\"\",IF(OR('TSA Input'!J440=\"Yes\",'TSA Input'!J440=\"Contingent\"),'TSA Input'!B440,\"Ineligible\"))","v":""},{"$f":"IF('TSA Input'!J440=\"\",\"\",IF(OR('TSA Input'!J440=\"Yes\",'TSA Input'!J440=\"Contingent\"),'TSA Input'!I440,\"\"))","v":""},{"$f":"IF('TSA Input'!J440=\"\",\"\",IF(OR('TSA Input'!J440=\"Yes\",'TSA Input'!J440=\"Contingent\"),'TSA Input'!C440,\"\"))","v":""},{"$f":"IF('TSA Input'!J440=\"\",\"\",IF(OR('TSA Input'!J440=\"Yes\",'TSA Input'!J440=\"Contingent\"),'TSA Input'!D440,\"\"))","v":""},{"$f":"IF('TSA Input'!J440=\"\",\"\",IF(OR('TSA Input'!J440=\"Yes\",'TSA Input'!J440=\"Contingent\"),'TSA Input'!G440,\"\"))","v":""},{"$f":"IF('TSA Input'!J440=\"\",\"\",IF(OR('TSA Input'!J440=\"Yes\",'TSA Input'!J440=\"Contingent\"),'TSA Input'!F440,\"\"))","v":""},"",{"$f":"IF('TSA Input'!J440=\"\",\"\",IF(OR('TSA Input'!J440=\"Yes\",'TSA Input'!J440=\"Contingent\"),'TSA Input'!D440,\"\"))","v":""},{"$f":"IF('TSA Input'!J440=\"\",\"\",IF(OR('TSA Input'!J440=\"Yes\",'TSA Input'!J440=\"Contingent\"),'TSA Input'!G440,\"\"))","v":""},{"$f":"IF('TSA Input'!J440=\"\",\"\",IF(OR('TSA Input'!J440=\"Yes\",'TSA Input'!J440=\"Contingent\"),'TSA Input'!F440,\"\"))","v":""},"","Required","Required"]
["",null,{"$f":"IF('TSA Input'!J441=\"\",\"\",IF(OR('TSA Input'!J441=\"Yes\",'TSA Input'!J441=\"Contingent\"),'TSA Input'!B441,\"Ineligible\"))","v":""},{"$f":"IF('TSA Input'!J441=\"\",\"\",IF(OR('TSA Input'!J441=\"Yes\",'TSA Input'!J441=\"Contingent\"),'TSA Input'!I441,\"\"))","v":""},{"$f":"IF('TSA Input'!J441=\"\",\"\",IF(OR('TSA Input'!J441=\"Yes\",'TSA Input'!J441=\"Contingent\"),'TSA Input'!C441,\"\"))","v":""},{"$f":"IF('TSA Input'!J441=\"\",\"\",IF(OR('TSA Input'!J441=\"Yes\",'TSA Input'!J441=\"Contingent\"),'TSA Input'!D441,\"\"))","v":""},{"$f":"IF('TSA Input'!J441=\"\",\"\",IF(OR('TSA Input'!J441=\"Yes\",'TSA Input'!J441=\"Contingent\"),'TSA Input'!G441,\"\"))","v":""},{"$f":"IF('TSA Input'!J441=\"\",\"\",IF(OR('TSA Input'!J441=\"Yes\",'TSA Input'!J441=\"Contingent\"),'TSA Input'!F441,\"\"))","v":""},"",{"$f":"IF('TSA Input'!J441=\"\",\"\",IF(OR('TSA Input'!J441=\"Yes\",'TSA Input'!J441=\"Contingent\"),'TSA Input'!D441,\"\"))","v":""},{"$f":"IF('TSA Input'!J441=\"\",\"\",IF(OR('TSA Input'!J441=\"Yes\",'TSA Input'!J441=\"Contingent\"),'TSA Input'!G441,\"\"))","v":""},{"$f":"IF('TSA Input'!J441=\"\",\"\",IF(OR('TSA Input'!J441=\"Yes\",'TSA Input'!J441=\"Contingent\"),'TSA Input'!F441,\"\"))","v":""},"","Required","Required"]
["",null,{"$f":"IF('TSA Input'!J442=\"\",\"\",IF(OR('TSA Input'!J442=\"Yes\",'TSA Input'!J442=\"Contingent\"),'TSA Input'!B442,\"Ineligible\"))","v":""},{"$f":"IF('TSA Input'!J442=\"\",\"\",IF(OR('TSA Input'!J442=\"Yes\",'TSA Input'!J442=\"Contingent\"),'TSA Input'!I442,\"\"))","v":""},{"$f":"IF('TSA Input'!J442=\"\",\"\",IF(OR('TSA Input'!J442=\"Yes\",'TSA Input'!J442=\"Contingent\"),'TSA Input'!C442,\"\"))","v":""},{"$f":"IF('TSA Input'!J442=\"\",\"\",IF(OR('TSA Input'!J442=\"Yes\",'TSA Input'!J442=\"Contingent\"),'TSA Input'!D442,\"\"))","v":""},{"$f":"IF('TSA Input'!J442=\"\",\"\",IF(OR('TSA Input'!J442=\"Yes\",'TSA Input'!J442=\"Contingent\"),'TSA Input'!G442,\"\"))","v":""},{"$f":"IF('TSA Input'!J442=\"\",\"\",IF(OR('TSA Input'!J442=\"Yes\",'TSA Input'!J442=\"Contingent\"),'TSA Input'!F442,\"\"))","v":""},"",{"$f":"IF('TSA Input'!J442=\"\",\"\",IF(OR('TSA Input'!J442=\"Yes\",'TSA Input'!J442=\"Contingent\"),'TSA Input'!D442,\"\"))","v":""},{"$f":"IF('TSA Input'!J442=\"\",\"\",IF(OR('TSA Input'!J442=\"Yes\",'TSA Input'!J442=\"Contingent\"),'TSA Input'!G442,\"\"))","v":""},{"$f":"IF('TSA Input'!J442=\"\",\"\",IF(OR('TSA Input'!J442=\"Yes\",'TSA Input'!J442=\"Contingent\"),'TSA Input'!F442,\"\"))","v":""},"","Required","Required"]
["",null,{"$f":"IF('TSA Input'!J443=\"\",\"\",IF(OR('TSA Input'!J443=\"Yes\",'TSA Input'!J443=\"Contingent\"),'TSA Input'!B443,\"Ineligible\"))","v":""},{"$f":"IF('TSA Input'!J443=\"\",\"\",IF(OR('TSA Input'!J443=\"Yes\",'TSA Input'!J443=\"Contingent\"),'TSA Input'!I443,\"\"))","v":""},{"$f":"IF('TSA Input'!J443=\"\",\"\",IF(OR('TSA Input'!J443=\"Yes\",'TSA Input'!J443=\"Contingent\"),'TSA Input'!C443,\"\"))","v":""},{"$f":"IF('TSA Input'!J443=\"\",\"\",IF(OR('TSA Input'!J443=\"Yes\",'TSA Input'!J443=\"Contingent\"),'TSA Input'!D443,\"\"))","v":""},{"$f":"IF('TSA Input'!J443=\"\",\"\",IF(OR('TSA Input'!J443=\"Yes\",'TSA Input'!J443=\"Contingent\"),'TSA Input'!G443,\"\"))","v":""},{"$f":"IF('TSA Input'!J443=\"\",\"\",IF(OR('TSA Input'!J443=\"Yes\",'TSA Input'!J443=\"Contingent\"),'TSA Input'!F443,\"\"))","v":""},"",{"$f":"IF('TSA Input'!J443=\"\",\"\",IF(OR('TSA Input'!J443=\"Yes\",'TSA Input'!J443=\"Contingent\"),'TSA Input'!D443,\"\"))","v":""},{"$f":"IF('TSA Input'!J443=\"\",\"\",IF(OR('TSA Input'!J443=\"Yes\",'TSA Input'!J443=\"Contingent\"),'TSA Input'!G443,\"\"))","v":""},{"$f":"IF('TSA Input'!J443=\"\",\"\",IF(OR('TSA Input'!J443=\"Yes\",'TSA Input'!J443=\"Contingent\"),'TSA Input'!F443,\"\"))","v":""},"","Required","Required"]
["",null,{"$f":"IF('TSA Input'!J444=\"\",\"\",IF(OR('TSA Input'!J444=\"Yes\",'TSA Input'!J444=\"Contingent\"),'TSA Input'!B444,\"Ineligible\"))","v":""},{"$f":"IF('TSA Input'!J444=\"\",\"\",IF(OR('TSA Input'!J444=\"Yes\",'TSA Input'!J444=\"Contingent\"),'TSA Input'!I444,\"\"))","v":""},{"$f":"IF('TSA Input'!J444=\"\",\"\",IF(OR('TSA Input'!J444=\"Yes\",'TSA Input'!J444=\"Contingent\"),'TSA Input'!C444,\"\"))","v":""},{"$f":"IF('TSA Input'!J444=\"\",\"\",IF(OR('TSA Input'!J444=\"Yes\",'TSA Input'!J444=\"Contingent\"),'TSA Input'!D444,\"\"))","v":""},{"$f":"IF('TSA Input'!J444=\"\",\"\",IF(OR('TSA Input'!J444=\"Yes\",'TSA Input'!J444=\"Contingent\"),'TSA Input'!G444,\"\"))","v":""},{"$f":"IF('TSA Input'!J444=\"\",\"\",IF(OR('TSA Input'!J444=\"Yes\",'TSA Input'!J444=\"Contingent\"),'TSA Input'!F444,\"\"))","v":""},"",{"$f":"IF('TSA Input'!J444=\"\",\"\",IF(OR('TSA Input'!J444=\"Yes\",'TSA Input'!J444=\"Contingent\"),'TSA Input'!D444,\"\"))","v":""},{"$f":"IF('TSA Input'!J444=\"\",\"\",IF(OR('TSA Input'!J444=\"Yes\",'TSA Input'!J444=\"Contingent\"),'TSA Input'!G444,\"\"))","v":""},{"$f":"IF('TSA Input'!J444=\"\",\"\",IF(OR('TSA Input'!J444=\"Yes\",'TSA Input'!J444=\"Contingent\"),'TSA Input'!F444,\"\"))","v":""},"","Required","Required"]
["",null,{"$f":"IF('TSA Input'!J445=\"\",\"\",IF(OR('TSA Input'!J445=\"Yes\",'TSA Input'!J445=\"Contingent\"),'TSA Input'!B445,\"Ineligible\"))","v":""},{"$f":"IF('TSA Input'!J445=\"\",\"\",IF(OR('TSA Input'!J445=\"Yes\",'TSA Input'!J445=\"Contingent\"),'TSA Input'!I445,\"\"))","v":""},{"$f":"IF('TSA Input'!J445=\"\",\"\",IF(OR('TSA Input'!J445=\"Yes\",'TSA Input'!J445=\"Contingent\"),'TSA Input'!C445,\"\"))","v":""},{"$f":"IF('TSA Input'!J445=\"\",\"\",IF(OR('TSA Input'!J445=\"Yes\",'TSA Input'!J445=\"Contingent\"),'TSA Input'!D445,\"\"))","v":""},{"$f":"IF('TSA Input'!J445=\"\",\"\",IF(OR('TSA Input'!J445=\"Yes\",'TSA Input'!J445=\"Contingent\"),'TSA Input'!G445,\"\"))","v":""},{"$f":"IF('TSA Input'!J445=\"\",\"\",IF(OR('TSA Input'!J445=\"Yes\",'TSA Input'!J445=\"Contingent\"),'TSA Input'!F445,\"\"))","v":""},"",{"$f":"IF('TSA Input'!J445=\"\",\"\",IF(OR('TSA Input'!J445=\"Yes\",'TSA Input'!J445=\"Contingent\"),'TSA Input'!D445,\"\"))","v":""},{"$f":"IF('TSA Input'!J445=\"\",\"\",IF(OR('TSA Input'!J445=\"Yes\",'TSA Input'!J445=\"Contingent\"),'TSA Input'!G445,\"\"))","v":""},{"$f":"IF('TSA Input'!J445=\"\",\"\",IF(OR('TSA Input'!J445=\"Yes\",'TSA Input'!J445=\"Contingent\"),'TSA Input'!F445,\"\"))","v":""},"","Required","Required"]
["",null,{"$f":"IF('TSA Input'!J446=\"\",\"\",IF(OR('TSA Input'!J446=\"Yes\",'TSA Input'!J446=\"Contingent\"),'TSA Input'!B446,\"Ineligible\"))","v":""},{"$f":"IF('TSA Input'!J446=\"\",\"\",IF(OR('TSA Input'!J446=\"Yes\",'TSA Input'!J446=\"Contingent\"),'TSA Input'!I446,\"\"))","v":""},{"$f":"IF('TSA Input'!J446=\"\",\"\",IF(OR('TSA Input'!J446=\"Yes\",'TSA Input'!J446=\"Contingent\"),'TSA Input'!C446,\"\"))","v":""},{"$f":"IF('TSA Input'!J446=\"\",\"\",IF(OR('TSA Input'!J446=\"Yes\",'TSA Input'!J446=\"Contingent\"),'TSA Input'!D446,\"\"))","v":""},{"$f":"IF('TSA Input'!J446=\"\",\"\",IF(OR('TSA Input'!J446=\"Yes\",'TSA Input'!J446=\"Contingent\"),'TSA Input'!G446,\"\"))","v":""},{"$f":"IF('TSA Input'!J446=\"\",\"\",IF(OR('TSA Input'!J446=\"Yes\",'TSA Input'!J446=\"Contingent\"),'TSA Input'!F446,\"\"))","v":""},"",{"$f":"IF('TSA Input'!J446=\"\",\"\",IF(OR('TSA Input'!J446=\"Yes\",'TSA Input'!J446=\"Contingent\"),'TSA Input'!D446,\"\"))","v":""},{"$f":"IF('TSA Input'!J446=\"\",\"\",IF(OR('TSA Input'!J446=\"Yes\",'TSA Input'!J446=\"Contingent\"),'TSA Input'!G446,\"\"))","v":""},{"$f":"IF('TSA Input'!J446=\"\",\"\",IF(OR('TSA Input'!J446=\"Yes\",'TSA Input'!J446=\"Contingent\"),'TSA Input'!F446,\"\"))","v":""},"","Required","Required"]
["",null,{"$f":"IF('TSA Input'!J447=\"\",\"\",IF(OR('TSA Input'!J447=\"Yes\",'TSA Input'!J447=\"Contingent\"),'TSA Input'!B447,\"Ineligible\"))","v":""},{"$f":"IF('TSA Input'!J447=\"\",\"\",IF(OR('TSA Input'!J447=\"Yes\",'TSA Input'!J447=\"Contingent\"),'TSA Input'!I447,\"\"))","v":""},{"$f":"IF('TSA Input'!J447=\"\",\"\",IF(OR('TSA Input'!J447=\"Yes\",'TSA Input'!J447=\"Contingent\"),'TSA Input'!C447,\"\"))","v":""},{"$f":"IF('TSA Input'!J447=\"\",\"\",IF(OR('TSA Input'!J447=\"Yes\",'TSA Input'!J447=\"Contingent\"),'TSA Input'!D447,\"\"))","v":""},{"$f":"IF('TSA Input'!J447=\"\",\"\",IF(OR('TSA Input'!J447=\"Yes\",'TSA Input'!J447=\"Contingent\"),'TSA Input'!G447,\"\"))","v":""},{"$f":"IF('TSA Input'!J447=\"\",\"\",IF(OR('TSA Input'!J447=\"Yes\",'TSA Input'!J447=\"Contingent\"),'TSA Input'!F447,\"\"))","v":""},"",{"$f":"IF('TSA Input'!J447=\"\",\"\",IF(OR('TSA Input'!J447=\"Yes\",'TSA Input'!J447=\"Contingent\"),'TSA Input'!D447,\"\"))","v":""},{"$f":"IF('TSA Input'!J447=\"\",\"\",IF(OR('TSA Input'!J447=\"Yes\",'TSA Input'!J447=\"Contingent\"),'TSA Input'!G447,\"\"))","v":""},{"$f":"IF('TSA Input'!J447=\"\",\"\",IF(OR('TSA Input'!J447=\"Yes\",'TSA Input'!J447=\"Contingent\"),'TSA Input'!F447,\"\"))","v":""},"","Required","Required"]
["",null,{"$f":"IF('TSA Input'!J448=\"\",\"\",IF(OR('TSA Input'!J448=\"Yes\",'TSA Input'!J448=\"Contingent\"),'TSA Input'!B448,\"Ineligible\"))","v":""},{"$f":"IF('TSA Input'!J448=\"\",\"\",IF(OR('TSA Input'!J448=\"Yes\",'TSA Input'!J448=\"Contingent\"),'TSA Input'!I448,\"\"))","v":""},{"$f":"IF('TSA Input'!J448=\"\",\"\",IF(OR('TSA Input'!J448=\"Yes\",'TSA Input'!J448=\"Contingent\"),'TSA Input'!C448,\"\"))","v":""},{"$f":"IF('TSA Input'!J448=\"\",\"\",IF(OR('TSA Input'!J448=\"Yes\",'TSA Input'!J448=\"Contingent\"),'TSA Input'!D448,\"\"))","v":""},{"$f":"IF('TSA Input'!J448=\"\",\"\",IF(OR('TSA Input'!J448=\"Yes\",'TSA Input'!J448=\"Contingent\"),'TSA Input'!G448,\"\"))","v":""},{"$f":"IF('TSA Input'!J448=\"\",\"\",IF(OR('TSA Input'!J448=\"Yes\",'TSA Input'!J448=\"Contingent\"),'TSA Input'!F448,\"\"))","v":""},"",{"$f":"IF('TSA Input'!J448=\"\",\"\",IF(OR('TSA Input'!J448=\"Yes\",'TSA Input'!J448=\"Contingent\"),'TSA Input'!D448,\"\"))","v":""},{"$f":"IF('TSA Input'!J448=\"\",\"\",IF(OR('TSA Input'!J448=\"Yes\",'TSA Input'!J448=\"Contingent\"),'TSA Input'!G448,\"\"))","v":""},{"$f":"IF('TSA Input'!J448=\"\",\"\",IF(OR('TSA Input'!J448=\"Yes\",'TSA Input'!J448=\"Contingent\"),'TSA Input'!F448,\"\"))","v":""},"","Required","Required"]
["",null,{"$f":"IF('TSA Input'!J449=\"\",\"\",IF(OR('TSA Input'!J449=\"Yes\",'TSA Input'!J449=\"Contingent\"),'TSA Input'!B449,\"Ineligible\"))","v":""},{"$f":"IF('TSA Input'!J449=\"\",\"\",IF(OR('TSA Input'!J449=\"Yes\",'TSA Input'!J449=\"Contingent\"),'TSA Input'!I449,\"\"))","v":""},{"$f":"IF('TSA Input'!J449=\"\",\"\",IF(OR('TSA Input'!J449=\"Yes\",'TSA Input'!J449=\"Contingent\"),'TSA Input'!C449,\"\"))","v":""},{"$f":"IF('TSA Input'!J449=\"\",\"\",IF(OR('TSA Input'!J449=\"Yes\",'TSA Input'!J449=\"Contingent\"),'TSA Input'!D449,\"\"))","v":""},{"$f":"IF('TSA Input'!J449=\"\",\"\",IF(OR('TSA Input'!J449=\"Yes\",'TSA Input'!J449=\"Contingent\"),'TSA Input'!G449,\"\"))","v":""},{"$f":"IF('TSA Input'!J449=\"\",\"\",IF(OR('TSA Input'!J449=\"Yes\",'TSA Input'!J449=\"Contingent\"),'TSA Input'!F449,\"\"))","v":""},"",{"$f":"IF('TSA Input'!J449=\"\",\"\",IF(OR('TSA Input'!J449=\"Yes\",'TSA Input'!J449=\"Contingent\"),'TSA Input'!D449,\"\"))","v":""},{"$f":"IF('TSA Input'!J449=\"\",\"\",IF(OR('TSA Input'!J449=\"Yes\",'TSA Input'!J449=\"Contingent\"),'TSA Input'!G449,\"\"))","v":""},{"$f":"IF('TSA Input'!J449=\"\",\"\",IF(OR('TSA Input'!J449=\"Yes\",'TSA Input'!J449=\"Contingent\"),'TSA Input'!F449,\"\"))","v":""},"","Required","Required"]
["",null,{"$f":"IF('TSA Input'!J450=\"\",\"\",IF(OR('TSA Input'!J450=\"Yes\",'TSA Input'!J450=\"Contingent\"),'TSA Input'!B450,\"Ineligible\"))","v":""},{"$f":"IF('TSA Input'!J450=\"\",\"\",IF(OR('TSA Input'!J450=\"Yes\",'TSA Input'!J450=\"Contingent\"),'TSA Input'!I450,\"\"))","v":""},{"$f":"IF('TSA Input'!J450=\"\",\"\",IF(OR('TSA Input'!J450=\"Yes\",'TSA Input'!J450=\"Contingent\"),'TSA Input'!C450,\"\"))","v":""},{"$f":"IF('TSA Input'!J450=\"\",\"\",IF(OR('TSA Input'!J450=\"Yes\",'TSA Input'!J450=\"Contingent\"),'TSA Input'!D450,\"\"))","v":""},{"$f":"IF('TSA Input'!J450=\"\",\"\",IF(OR('TSA Input'!J450=\"Yes\",'TSA Input'!J450=\"Contingent\"),'TSA Input'!G450,\"\"))","v":""},{"$f":"IF('TSA Input'!J450=\"\",\"\",IF(OR('TSA Input'!J450=\"Yes\",'TSA Input'!J450=\"Contingent\"),'TSA Input'!F450,\"\"))","v":""},"",{"$f":"IF('TSA Input'!J450=\"\",\"\",IF(OR('TSA Input'!J450=\"Yes\",'TSA Input'!J450=\"Contingent\"),'TSA Input'!D450,\"\"))","v":""},{"$f":"IF('TSA Input'!J450=\"\",\"\",IF(OR('TSA Input'!J450=\"Yes\",'TSA Input'!J450=\"Contingent\"),'TSA Input'!G450,\"\"))","v":""},{"$f":"IF('TSA Input'!J450=\"\",\"\",IF(OR('TSA Input'!J450=\"Yes\",'TSA Input'!J450=\"Contingent\"),'TSA Input'!F450,\"\"))","v":""},"","Required","Required"]
["",null,{"$f":"IF('TSA Input'!J451=\"\",\"\",IF(OR('TSA Input'!J451=\"Yes\",'TSA Input'!J451=\"Contingent\"),'TSA Input'!B451,\"Ineligible\"))","v":""},{"$f":"IF('TSA Input'!J451=\"\",\"\",IF(OR('TSA Input'!J451=\"Yes\",'TSA Input'!J451=\"Contingent\"),'TSA Input'!I451,\"\"))","v":""},{"$f":"IF('TSA Input'!J451=\"\",\"\",IF(OR('TSA Input'!J451=\"Yes\",'TSA Input'!J451=\"Contingent\"),'TSA Input'!C451,\"\"))","v":""},{"$f":"IF('TSA Input'!J451=\"\",\"\",IF(OR('TSA Input'!J451=\"Yes\",'TSA Input'!J451=\"Contingent\"),'TSA Input'!D451,\"\"))","v":""},{"$f":"IF('TSA Input'!J451=\"\",\"\",IF(OR('TSA Input'!J451=\"Yes\",'TSA Input'!J451=\"Contingent\"),'TSA Input'!G451,\"\"))","v":""},{"$f":"IF('TSA Input'!J451=\"\",\"\",IF(OR('TSA Input'!J451=\"Yes\",'TSA Input'!J451=\"Contingent\"),'TSA Input'!F451,\"\"))","v":""},"",{"$f":"IF('TSA Input'!J451=\"\",\"\",IF(OR('TSA Input'!J451=\"Yes\",'TSA Input'!J451=\"Contingent\"),'TSA Input'!D451,\"\"))","v":""},{"$f":"IF('TSA Input'!J451=\"\",\"\",IF(OR('TSA Input'!J451=\"Yes\",'TSA Input'!J451=\"Contingent\"),'TSA Input'!G451,\"\"))","v":""},{"$f":"IF('TSA Input'!J451=\"\",\"\",IF(OR('TSA Input'!J451=\"Yes\",'TSA Input'!J451=\"Contingent\"),'TSA Input'!F451,\"\"))","v":""},"","Required","Required"]
["",null,{"$f":"IF('TSA Input'!J452=\"\",\"\",IF(OR('TSA Input'!J452=\"Yes\",'TSA Input'!J452=\"Contingent\"),'TSA Input'!B452,\"Ineligible\"))","v":""},{"$f":"IF('TSA Input'!J452=\"\",\"\",IF(OR('TSA Input'!J452=\"Yes\",'TSA Input'!J452=\"Contingent\"),'TSA Input'!I452,\"\"))","v":""},{"$f":"IF('TSA Input'!J452=\"\",\"\",IF(OR('TSA Input'!J452=\"Yes\",'TSA Input'!J452=\"Contingent\"),'TSA Input'!C452,\"\"))","v":""},{"$f":"IF('TSA Input'!J452=\"\",\"\",IF(OR('TSA Input'!J452=\"Yes\",'TSA Input'!J452=\"Contingent\"),'TSA Input'!D452,\"\"))","v":""},{"$f":"IF('TSA Input'!J452=\"\",\"\",IF(OR('TSA Input'!J452=\"Yes\",'TSA Input'!J452=\"Contingent\"),'TSA Input'!G452,\"\"))","v":""},{"$f":"IF('TSA Input'!J452=\"\",\"\",IF(OR('TSA Input'!J452=\"Yes\",'TSA Input'!J452=\"Contingent\"),'TSA Input'!F452,\"\"))","v":""},{"$f":"IF($C490=\"\",\"\",SUM(F490:H490))","v":""},{"$f":"IF('TSA Input'!J452=\"\",\"\",IF(OR('TSA Input'!J452=\"Yes\",'TSA Input'!J452=\"Contingent\"),'TSA Input'!D452,\"\"))","v":""},{"$f":"IF('TSA Input'!J452=\"\",\"\",IF(OR('TSA Input'!J452=\"Yes\",'TSA Input'!J452=\"Contingent\"),'TSA Input'!G452,\"\"))","v":""},{"$f":"IF('TSA Input'!J452=\"\",\"\",IF(OR('TSA Input'!J452=\"Yes\",'TSA Input'!J452=\"Contingent\"),'TSA Input'!F452,\"\"))","v":""},{"$f":"IF($C490=\"\",\"\",SUM(J490:L490))","v":""},"Required","Required"]
["",null,{"$f":"IF('TSA Input'!J453=\"\",\"\",IF(OR('TSA Input'!J453=\"Yes\",'TSA Input'!J453=\"Contingent\"),'TSA Input'!B453,\"Ineligible\"))","v":""},{"$f":"IF('TSA Input'!J453=\"\",\"\",IF(OR('TSA Input'!J453=\"Yes\",'TSA Input'!J453=\"Contingent\"),'TSA Input'!I453,\"\"))","v":""},{"$f":"IF('TSA Input'!J453=\"\",\"\",IF(OR('TSA Input'!J453=\"Yes\",'TSA Input'!J453=\"Contingent\"),'TSA Input'!C453,\"\"))","v":""},{"$f":"IF('TSA Input'!J453=\"\",\"\",IF(OR('TSA Input'!J453=\"Yes\",'TSA Input'!J453=\"Contingent\"),'TSA Input'!D453,\"\"))","v":""},{"$f":"IF('TSA Input'!J453=\"\",\"\",IF(OR('TSA Input'!J453=\"Yes\",'TSA Input'!J453=\"Contingent\"),'TSA Input'!G453,\"\"))","v":""},{"$f":"IF('TSA Input'!J453=\"\",\"\",IF(OR('TSA Input'!J453=\"Yes\",'TSA Input'!J453=\"Contingent\"),'TSA Input'!F453,\"\"))","v":""},"",{"$f":"IF('TSA Input'!J453=\"\",\"\",IF(OR('TSA Input'!J453=\"Yes\",'TSA Input'!J453=\"Contingent\"),'TSA Input'!D453,\"\"))","v":""},{"$f":"IF('TSA Input'!J453=\"\",\"\",IF(OR('TSA Input'!J453=\"Yes\",'TSA Input'!J453=\"Contingent\"),'TSA Input'!G453,\"\"))","v":""},{"$f":"IF('TSA Input'!J453=\"\",\"\",IF(OR('TSA Input'!J453=\"Yes\",'TSA Input'!J453=\"Contingent\"),'TSA Input'!F453,\"\"))","v":""},"","Required","Required"]
["",null,{"$f":"IF('TSA Input'!J454=\"\",\"\",IF(OR('TSA Input'!J454=\"Yes\",'TSA Input'!J454=\"Contingent\"),'TSA Input'!B454,\"Ineligible\"))","v":""},{"$f":"IF('TSA Input'!J454=\"\",\"\",IF(OR('TSA Input'!J454=\"Yes\",'TSA Input'!J454=\"Contingent\"),'TSA Input'!I454,\"\"))","v":""},{"$f":"IF('TSA Input'!J454=\"\",\"\",IF(OR('TSA Input'!J454=\"Yes\",'TSA Input'!J454=\"Contingent\"),'TSA Input'!C454,\"\"))","v":""},{"$f":"IF('TSA Input'!J454=\"\",\"\",IF(OR('TSA Input'!J454=\"Yes\",'TSA Input'!J454=\"Contingent\"),'TSA Input'!D454,\"\"))","v":""},{"$f":"IF('TSA Input'!J454=\"\",\"\",IF(OR('TSA Input'!J454=\"Yes\",'TSA Input'!J454=\"Contingent\"),'TSA Input'!G454,\"\"))","v":""},{"$f":"IF('TSA Input'!J454=\"\",\"\",IF(OR('TSA Input'!J454=\"Yes\",'TSA Input'!J454=\"Contingent\"),'TSA Input'!F454,\"\"))","v":""},"",{"$f":"IF('TSA Input'!J454=\"\",\"\",IF(OR('TSA Input'!J454=\"Yes\",'TSA Input'!J454=\"Contingent\"),'TSA Input'!D454,\"\"))","v":""},{"$f":"IF('TSA Input'!J454=\"\",\"\",IF(OR('TSA Input'!J454=\"Yes\",'TSA Input'!J454=\"Contingent\"),'TSA Input'!G454,\"\"))","v":""},{"$f":"IF('TSA Input'!J454=\"\",\"\",IF(OR('TSA Input'!J454=\"Yes\",'TSA Input'!J454=\"Contingent\"),'TSA Input'!F454,\"\"))","v":""},"","Required","Required"]
["",null,{"$f":"IF('TSA Input'!J455=\"\",\"\",IF(OR('TSA Input'!J455=\"Yes\",'TSA Input'!J455=\"Contingent\"),'TSA Input'!B455,\"Ineligible\"))","v":""},{"$f":"IF('TSA Input'!J455=\"\",\"\",IF(OR('TSA Input'!J455=\"Yes\",'TSA Input'!J455=\"Contingent\"),'TSA Input'!I455,\"\"))","v":""},{"$f":"IF('TSA Input'!J455=\"\",\"\",IF(OR('TSA Input'!J455=\"Yes\",'TSA Input'!J455=\"Contingent\"),'TSA Input'!C455,\"\"))","v":""},{"$f":"IF('TSA Input'!J455=\"\",\"\",IF(OR('TSA Input'!J455=\"Yes\",'TSA Input'!J455=\"Contingent\"),'TSA Input'!D455,\"\"))","v":""},{"$f":"IF('TSA Input'!J455=\"\",\"\",IF(OR('TSA Input'!J455=\"Yes\",'TSA Input'!J455=\"Contingent\"),'TSA Input'!G455,\"\"))","v":""},{"$f":"IF('TSA Input'!J455=\"\",\"\",IF(OR('TSA Input'!J455=\"Yes\",'TSA Input'!J455=\"Contingent\"),'TSA Input'!F455,\"\"))","v":""},"",{"$f":"IF('TSA Input'!J455=\"\",\"\",IF(OR('TSA Input'!J455=\"Yes\",'TSA Input'!J455=\"Contingent\"),'TSA Input'!D455,\"\"))","v":""},{"$f":"IF('TSA Input'!J455=\"\",\"\",IF(OR('TSA Input'!J455=\"Yes\",'TSA Input'!J455=\"Contingent\"),'TSA Input'!G455,\"\"))","v":""},{"$f":"IF('TSA Input'!J455=\"\",\"\",IF(OR('TSA Input'!J455=\"Yes\",'TSA Input'!J455=\"Contingent\"),'TSA Input'!F455,\"\"))","v":""},"","Required","Required"]
["",null,{"$f":"IF('TSA Input'!J456=\"\",\"\",IF(OR('TSA Input'!J456=\"Yes\",'TSA Input'!J456=\"Contingent\"),'TSA Input'!B456,\"Ineligible\"))","v":""},{"$f":"IF('TSA Input'!J456=\"\",\"\",IF(OR('TSA Input'!J456=\"Yes\",'TSA Input'!J456=\"Contingent\"),'TSA Input'!I456,\"\"))","v":""},{"$f":"IF('TSA Input'!J456=\"\",\"\",IF(OR('TSA Input'!J456=\"Yes\",'TSA Input'!J456=\"Contingent\"),'TSA Input'!C456,\"\"))","v":""},{"$f":"IF('TSA Input'!J456=\"\",\"\",IF(OR('TSA Input'!J456=\"Yes\",'TSA Input'!J456=\"Contingent\"),'TSA Input'!D456,\"\"))","v":""},{"$f":"IF('TSA Input'!J456=\"\",\"\",IF(OR('TSA Input'!J456=\"Yes\",'TSA Input'!J456=\"Contingent\"),'TSA Input'!G456,\"\"))","v":""},{"$f":"IF('TSA Input'!J456=\"\",\"\",IF(OR('TSA Input'!J456=\"Yes\",'TSA Input'!J456=\"Contingent\"),'TSA Input'!F456,\"\"))","v":""},"",{"$f":"IF('TSA Input'!J456=\"\",\"\",IF(OR('TSA Input'!J456=\"Yes\",'TSA Input'!J456=\"Contingent\"),'TSA Input'!D456,\"\"))","v":""},{"$f":"IF('TSA Input'!J456=\"\",\"\",IF(OR('TSA Input'!J456=\"Yes\",'TSA Input'!J456=\"Contingent\"),'TSA Input'!G456,\"\"))","v":""},{"$f":"IF('TSA Input'!J456=\"\",\"\",IF(OR('TSA Input'!J456=\"Yes\",'TSA Input'!J456=\"Contingent\"),'TSA Input'!F456,\"\"))","v":""},"","Required","Required"]
["",null,{"$f":"IF('TSA Input'!J457=\"\",\"\",IF(OR('TSA Input'!J457=\"Yes\",'TSA Input'!J457=\"Contingent\"),'TSA Input'!B457,\"Ineligible\"))","v":""},{"$f":"IF('TSA Input'!J457=\"\",\"\",IF(OR('TSA Input'!J457=\"Yes\",'TSA Input'!J457=\"Contingent\"),'TSA Input'!I457,\"\"))","v":""},{"$f":"IF('TSA Input'!J457=\"\",\"\",IF(OR('TSA Input'!J457=\"Yes\",'TSA Input'!J457=\"Contingent\"),'TSA Input'!C457,\"\"))","v":""},{"$f":"IF('TSA Input'!J457=\"\",\"\",IF(OR('TSA Input'!J457=\"Yes\",'TSA Input'!J457=\"Contingent\"),'TSA Input'!D457,\"\"))","v":""},{"$f":"IF('TSA Input'!J457=\"\",\"\",IF(OR('TSA Input'!J457=\"Yes\",'TSA Input'!J457=\"Contingent\"),'TSA Input'!G457,\"\"))","v":""},{"$f":"IF('TSA Input'!J457=\"\",\"\",IF(OR('TSA Input'!J457=\"Yes\",'TSA Input'!J457=\"Contingent\"),'TSA Input'!F457,\"\"))","v":""},"",{"$f":"IF('TSA Input'!J457=\"\",\"\",IF(OR('TSA Input'!J457=\"Yes\",'TSA Input'!J457=\"Contingent\"),'TSA Input'!D457,\"\"))","v":""},{"$f":"IF('TSA Input'!J457=\"\",\"\",IF(OR('TSA Input'!J457=\"Yes\",'TSA Input'!J457=\"Contingent\"),'TSA Input'!G457,\"\"))","v":""},{"$f":"IF('TSA Input'!J457=\"\",\"\",IF(OR('TSA Input'!J457=\"Yes\",'TSA Input'!J457=\"Contingent\"),'TSA Input'!F457,\"\"))","v":""},"","Required","Required"]
["",null,{"$f":"IF('TSA Input'!J458=\"\",\"\",IF(OR('TSA Input'!J458=\"Yes\",'TSA Input'!J458=\"Contingent\"),'TSA Input'!B458,\"Ineligible\"))","v":""},{"$f":"IF('TSA Input'!J458=\"\",\"\",IF(OR('TSA Input'!J458=\"Yes\",'TSA Input'!J458=\"Contingent\"),'TSA Input'!I458,\"\"))","v":""},{"$f":"IF('TSA Input'!J458=\"\",\"\",IF(OR('TSA Input'!J458=\"Yes\",'TSA Input'!J458=\"Contingent\"),'TSA Input'!C458,\"\"))","v":""},{"$f":"IF('TSA Input'!J458=\"\",\"\",IF(OR('TSA Input'!J458=\"Yes\",'TSA Input'!J458=\"Contingent\"),'TSA Input'!D458,\"\"))","v":""},{"$f":"IF('TSA Input'!J458=\"\",\"\",IF(OR('TSA Input'!J458=\"Yes\",'TSA Input'!J458=\"Contingent\"),'TSA Input'!G458,\"\"))","v":""},{"$f":"IF('TSA Input'!J458=\"\",\"\",IF(OR('TSA Input'!J458=\"Yes\",'TSA Input'!J458=\"Contingent\"),'TSA Input'!F458,\"\"))","v":""},"",{"$f":"IF('TSA Input'!J458=\"\",\"\",IF(OR('TSA Input'!J458=\"Yes\",'TSA Input'!J458=\"Contingent\"),'TSA Input'!D458,\"\"))","v":""},{"$f":"IF('TSA Input'!J458=\"\",\"\",IF(OR('TSA Input'!J458=\"Yes\",'TSA Input'!J458=\"Contingent\"),'TSA Input'!G458,\"\"))","v":""},{"$f":"IF('TSA Input'!J458=\"\",\"\",IF(OR('TSA Input'!J458=\"Yes\",'TSA Input'!J458=\"Contingent\"),'TSA Input'!F458,\"\"))","v":""},"","Required","Required"]
["",null,{"$f":"IF('TSA Input'!J459=\"\",\"\",IF(OR('TSA Input'!J459=\"Yes\",'TSA Input'!J459=\"Contingent\"),'TSA Input'!B459,\"Ineligible\"))","v":""},{"$f":"IF('TSA Input'!J459=\"\",\"\",IF(OR('TSA Input'!J459=\"Yes\",'TSA Input'!J459=\"Contingent\"),'TSA Input'!I459,\"\"))","v":""},{"$f":"IF('TSA Input'!J459=\"\",\"\",IF(OR('TSA Input'!J459=\"Yes\",'TSA Input'!J459=\"Contingent\"),'TSA Input'!C459,\"\"))","v":""},{"$f":"IF('TSA Input'!J459=\"\",\"\",IF(OR('TSA Input'!J459=\"Yes\",'TSA Input'!J459=\"Contingent\"),'TSA Input'!D459,\"\"))","v":""},{"$f":"IF('TSA Input'!J459=\"\",\"\",IF(OR('TSA Input'!J459=\"Yes\",'TSA Input'!J459=\"Contingent\"),'TSA Input'!G459,\"\"))","v":""},{"$f":"IF('TSA Input'!J459=\"\",\"\",IF(OR('TSA Input'!J459=\"Yes\",'TSA Input'!J459=\"Contingent\"),'TSA Input'!F459,\"\"))","v":""},"",{"$f":"IF('TSA Input'!J459=\"\",\"\",IF(OR('TSA Input'!J459=\"Yes\",'TSA Input'!J459=\"Contingent\"),'TSA Input'!D459,\"\"))","v":""},{"$f":"IF('TSA Input'!J459=\"\",\"\",IF(OR('TSA Input'!J459=\"Yes\",'TSA Input'!J459=\"Contingent\"),'TSA Input'!G459,\"\"))","v":""},{"$f":"IF('TSA Input'!J459=\"\",\"\",IF(OR('TSA Input'!J459=\"Yes\",'TSA Input'!J459=\"Contingent\"),'TSA Input'!F459,\"\"))","v":""},"","Required","Required"]
["",null,{"$f":"IF('TSA Input'!J460=\"\",\"\",IF(OR('TSA Input'!J460=\"Yes\",'TSA Input'!J460=\"Contingent\"),'TSA Input'!B460,\"Ineligible\"))","v":""},{"$f":"IF('TSA Input'!J460=\"\",\"\",IF(OR('TSA Input'!J460=\"Yes\",'TSA Input'!J460=\"Contingent\"),'TSA Input'!I460,\"\"))","v":""},{"$f":"IF('TSA Input'!J460=\"\",\"\",IF(OR('TSA Input'!J460=\"Yes\",'TSA Input'!J460=\"Contingent\"),'TSA Input'!C460,\"\"))","v":""},{"$f":"IF('TSA Input'!J460=\"\",\"\",IF(OR('TSA Input'!J460=\"Yes\",'TSA Input'!J460=\"Contingent\"),'TSA Input'!D460,\"\"))","v":""},{"$f":"IF('TSA Input'!J460=\"\",\"\",IF(OR('TSA Input'!J460=\"Yes\",'TSA Input'!J460=\"Contingent\"),'TSA Input'!G460,\"\"))","v":""},{"$f":"IF('TSA Input'!J460=\"\",\"\",IF(OR('TSA Input'!J460=\"Yes\",'TSA Input'!J460=\"Contingent\"),'TSA Input'!F460,\"\"))","v":""},"",{"$f":"IF('TSA Input'!J460=\"\",\"\",IF(OR('TSA Input'!J460=\"Yes\",'TSA Input'!J460=\"Contingent\"),'TSA Input'!D460,\"\"))","v":""},{"$f":"IF('TSA Input'!J460=\"\",\"\",IF(OR('TSA Input'!J460=\"Yes\",'TSA Input'!J460=\"Contingent\"),'TSA Input'!G460,\"\"))","v":""},{"$f":"IF('TSA Input'!J460=\"\",\"\",IF(OR('TSA Input'!J460=\"Yes\",'TSA Input'!J460=\"Contingent\"),'TSA Input'!F460,\"\"))","v":""},"","Required","Required"]
["",null,{"$f":"IF('TSA Input'!J461=\"\",\"\",IF(OR('TSA Input'!J461=\"Yes\",'TSA Input'!J461=\"Contingent\"),'TSA Input'!B461,\"Ineligible\"))","v":""},{"$f":"IF('TSA Input'!J461=\"\",\"\",IF(OR('TSA Input'!J461=\"Yes\",'TSA Input'!J461=\"Contingent\"),'TSA Input'!I461,\"\"))","v":""},{"$f":"IF('TSA Input'!J461=\"\",\"\",IF(OR('TSA Input'!J461=\"Yes\",'TSA Input'!J461=\"Contingent\"),'TSA Input'!C461,\"\"))","v":""},{"$f":"IF('TSA Input'!J461=\"\",\"\",IF(OR('TSA Input'!J461=\"Yes\",'TSA Input'!J461=\"Contingent\"),'TSA Input'!D461,\"\"))","v":""},{"$f":"IF('TSA Input'!J461=\"\",\"\",IF(OR('TSA Input'!J461=\"Yes\",'TSA Input'!J461=\"Contingent\"),'TSA Input'!G461,\"\"))","v":""},{"$f":"IF('TSA Input'!J461=\"\",\"\",IF(OR('TSA Input'!J461=\"Yes\",'TSA Input'!J461=\"Contingent\"),'TSA Input'!F461,\"\"))","v":""},"",{"$f":"IF('TSA Input'!J461=\"\",\"\",IF(OR('TSA Input'!J461=\"Yes\",'TSA Input'!J461=\"Contingent\"),'TSA Input'!D461,\"\"))","v":""},{"$f":"IF('TSA Input'!J461=\"\",\"\",IF(OR('TSA Input'!J461=\"Yes\",'TSA Input'!J461=\"Contingent\"),'TSA Input'!G461,\"\"))","v":""},{"$f":"IF('TSA Input'!J461=\"\",\"\",IF(OR('TSA Input'!J461=\"Yes\",'TSA Input'!J461=\"Contingent\"),'TSA Input'!F461,\"\"))","v":""},"","Required","Required"]
["",null,{"$f":"IF('TSA Input'!J462=\"\",\"\",IF(OR('TSA Input'!J462=\"Yes\",'TSA Input'!J462=\"Contingent\"),'TSA Input'!B462,\"Ineligible\"))","v":""},{"$f":"IF('TSA Input'!J462=\"\",\"\",IF(OR('TSA Input'!J462=\"Yes\",'TSA Input'!J462=\"Contingent\"),'TSA Input'!I462,\"\"))","v":""},{"$f":"IF('TSA Input'!J462=\"\",\"\",IF(OR('TSA Input'!J462=\"Yes\",'TSA Input'!J462=\"Contingent\"),'TSA Input'!C462,\"\"))","v":""},{"$f":"IF('TSA Input'!J462=\"\",\"\",IF(OR('TSA Input'!J462=\"Yes\",'TSA Input'!J462=\"Contingent\"),'TSA Input'!D462,\"\"))","v":""},{"$f":"IF('TSA Input'!J462=\"\",\"\",IF(OR('TSA Input'!J462=\"Yes\",'TSA Input'!J462=\"Contingent\"),'TSA Input'!G462,\"\"))","v":""},{"$f":"IF('TSA Input'!J462=\"\",\"\",IF(OR('TSA Input'!J462=\"Yes\",'TSA Input'!J462=\"Contingent\"),'TSA Input'!F462,\"\"))","v":""},"",{"$f":"IF('TSA Input'!J462=\"\",\"\",IF(OR('TSA Input'!J462=\"Yes\",'TSA Input'!J462=\"Contingent\"),'TSA Input'!D462,\"\"))","v":""},{"$f":"IF('TSA Input'!J462=\"\",\"\",IF(OR('TSA Input'!J462=\"Yes\",'TSA Input'!J462=\"Contingent\"),'TSA Input'!G462,\"\"))","v":""},{"$f":"IF('TSA Input'!J462=\"\",\"\",IF(OR('TSA Input'!J462=\"Yes\",'TSA Input'!J462=\"Contingent\"),'TSA Input'!F462,\"\"))","v":""},"","Required","Required"]
["",null,{"$f":"IF('TSA Input'!J463=\"\",\"\",IF(OR('TSA Input'!J463=\"Yes\",'TSA Input'!J463=\"Contingent\"),'TSA Input'!B463,\"Ineligible\"))","v":""},{"$f":"IF('TSA Input'!J463=\"\",\"\",IF(OR('TSA Input'!J463=\"Yes\",'TSA Input'!J463=\"Contingent\"),'TSA Input'!I463,\"\"))","v":""},{"$f":"IF('TSA Input'!J463=\"\",\"\",IF(OR('TSA Input'!J463=\"Yes\",'TSA Input'!J463=\"Contingent\"),'TSA Input'!C463,\"\"))","v":""},{"$f":"IF('TSA Input'!J463=\"\",\"\",IF(OR('TSA Input'!J463=\"Yes\",'TSA Input'!J463=\"Contingent\"),'TSA Input'!D463,\"\"))","v":""},{"$f":"IF('TSA Input'!J463=\"\",\"\",IF(OR('TSA Input'!J463=\"Yes\",'TSA Input'!J463=\"Contingent\"),'TSA Input'!G463,\"\"))","v":""},{"$f":"IF('TSA Input'!J463=\"\",\"\",IF(OR('TSA Input'!J463=\"Yes\",'TSA Input'!J463=\"Contingent\"),'TSA Input'!F463,\"\"))","v":""},"",{"$f":"IF('TSA Input'!J463=\"\",\"\",IF(OR('TSA Input'!J463=\"Yes\",'TSA Input'!J463=\"Contingent\"),'TSA Input'!D463,\"\"))","v":""},{"$f":"IF('TSA Input'!J463=\"\",\"\",IF(OR('TSA Input'!J463=\"Yes\",'TSA Input'!J463=\"Contingent\"),'TSA Input'!G463,\"\"))","v":""},{"$f":"IF('TSA Input'!J463=\"\",\"\",IF(OR('TSA Input'!J463=\"Yes\",'TSA Input'!J463=\"Contingent\"),'TSA Input'!F463,\"\"))","v":""},"","Required","Required"]
["",null,{"$f":"IF('TSA Input'!J464=\"\",\"\",IF(OR('TSA Input'!J464=\"Yes\",'TSA Input'!J464=\"Contingent\"),'TSA Input'!B464,\"Ineligible\"))","v":""},{"$f":"IF('TSA Input'!J464=\"\",\"\",IF(OR('TSA Input'!J464=\"Yes\",'TSA Input'!J464=\"Contingent\"),'TSA Input'!I464,\"\"))","v":""},{"$f":"IF('TSA Input'!J464=\"\",\"\",IF(OR('TSA Input'!J464=\"Yes\",'TSA Input'!J464=\"Contingent\"),'TSA Input'!C464,\"\"))","v":""},{"$f":"IF('TSA Input'!J464=\"\",\"\",IF(OR('TSA Input'!J464=\"Yes\",'TSA Input'!J464=\"Contingent\"),'TSA Input'!D464,\"\"))","v":""},{"$f":"IF('TSA Input'!J464=\"\",\"\",IF(OR('TSA Input'!J464=\"Yes\",'TSA Input'!J464=\"Contingent\"),'TSA Input'!G464,\"\"))","v":""},{"$f":"IF('TSA Input'!J464=\"\",\"\",IF(OR('TSA Input'!J464=\"Yes\",'TSA Input'!J464=\"Contingent\"),'TSA Input'!F464,\"\"))","v":""},"",{"$f":"IF('TSA Input'!J464=\"\",\"\",IF(OR('TSA Input'!J464=\"Yes\",'TSA Input'!J464=\"Contingent\"),'TSA Input'!D464,\"\"))","v":""},{"$f":"IF('TSA Input'!J464=\"\",\"\",IF(OR('TSA Input'!J464=\"Yes\",'TSA Input'!J464=\"Contingent\"),'TSA Input'!G464,\"\"))","v":""},{"$f":"IF('TSA Input'!J464=\"\",\"\",IF(OR('TSA Input'!J464=\"Yes\",'TSA Input'!J464=\"Contingent\"),'TSA Input'!F464,\"\"))","v":""},"","Required","Required"]
["",null,{"$f":"IF('TSA Input'!J465=\"\",\"\",IF(OR('TSA Input'!J465=\"Yes\",'TSA Input'!J465=\"Contingent\"),'TSA Input'!B465,\"Ineligible\"))","v":""},{"$f":"IF('TSA Input'!J465=\"\",\"\",IF(OR('TSA Input'!J465=\"Yes\",'TSA Input'!J465=\"Contingent\"),'TSA Input'!I465,\"\"))","v":""},{"$f":"IF('TSA Input'!J465=\"\",\"\",IF(OR('TSA Input'!J465=\"Yes\",'TSA Input'!J465=\"Contingent\"),'TSA Input'!C465,\"\"))","v":""},{"$f":"IF('TSA Input'!J465=\"\",\"\",IF(OR('TSA Input'!J465=\"Yes\",'TSA Input'!J465=\"Contingent\"),'TSA Input'!D465,\"\"))","v":""},{"$f":"IF('TSA Input'!J465=\"\",\"\",IF(OR('TSA Input'!J465=\"Yes\",'TSA Input'!J465=\"Contingent\"),'TSA Input'!G465,\"\"))","v":""},{"$f":"IF('TSA Input'!J465=\"\",\"\",IF(OR('TSA Input'!J465=\"Yes\",'TSA Input'!J465=\"Contingent\"),'TSA Input'!F465,\"\"))","v":""},"",{"$f":"IF('TSA Input'!J465=\"\",\"\",IF(OR('TSA Input'!J465=\"Yes\",'TSA Input'!J465=\"Contingent\"),'TSA Input'!D465,\"\"))","v":""},{"$f":"IF('TSA Input'!J465=\"\",\"\",IF(OR('TSA Input'!J465=\"Yes\",'TSA Input'!J465=\"Contingent\"),'TSA Input'!G465,\"\"))","v":""},{"$f":"IF('TSA Input'!J465=\"\",\"\",IF(OR('TSA Input'!J465=\"Yes\",'TSA Input'!J465=\"Contingent\"),'TSA Input'!F465,\"\"))","v":""},"","Required","Required"]
["",null,{"$f":"IF('TSA Input'!J466=\"\",\"\",IF(OR('TSA Input'!J466=\"Yes\",'TSA Input'!J466=\"Contingent\"),'TSA Input'!B466,\"Ineligible\"))","v":""},{"$f":"IF('TSA Input'!J466=\"\",\"\",IF(OR('TSA Input'!J466=\"Yes\",'TSA Input'!J466=\"Contingent\"),'TSA Input'!I466,\"\"))","v":""},{"$f":"IF('TSA Input'!J466=\"\",\"\",IF(OR('TSA Input'!J466=\"Yes\",'TSA Input'!J466=\"Contingent\"),'TSA Input'!C466,\"\"))","v":""},{"$f":"IF('TSA Input'!J466=\"\",\"\",IF(OR('TSA Input'!J466=\"Yes\",'TSA Input'!J466=\"Contingent\"),'TSA Input'!D466,\"\"))","v":""},{"$f":"IF('TSA Input'!J466=\"\",\"\",IF(OR('TSA Input'!J466=\"Yes\",'TSA Input'!J466=\"Contingent\"),'TSA Input'!G466,\"\"))","v":""},{"$f":"IF('TSA Input'!J466=\"\",\"\",IF(OR('TSA Input'!J466=\"Yes\",'TSA Input'!J466=\"Contingent\"),'TSA Input'!F466,\"\"))","v":""},"",{"$f":"IF('TSA Input'!J466=\"\",\"\",IF(OR('TSA Input'!J466=\"Yes\",'TSA Input'!J466=\"Contingent\"),'TSA Input'!D466,\"\"))","v":""},{"$f":"IF('TSA Input'!J466=\"\",\"\",IF(OR('TSA Input'!J466=\"Yes\",'TSA Input'!J466=\"Contingent\"),'TSA Input'!G466,\"\"))","v":""},{"$f":"IF('TSA Input'!J466=\"\",\"\",IF(OR('TSA Input'!J466=\"Yes\",'TSA Input'!J466=\"Contingent\"),'TSA Input'!F466,\"\"))","v":""},"","Required","Required"]
["",null,{"$f":"IF('TSA Input'!J467=\"\",\"\",IF(OR('TSA Input'!J467=\"Yes\",'TSA Input'!J467=\"Contingent\"),'TSA Input'!B467,\"Ineligible\"))","v":""},{"$f":"IF('TSA Input'!J467=\"\",\"\",IF(OR('TSA Input'!J467=\"Yes\",'TSA Input'!J467=\"Contingent\"),'TSA Input'!I467,\"\"))","v":""},{"$f":"IF('TSA Input'!J467=\"\",\"\",IF(OR('TSA Input'!J467=\"Yes\",'TSA Input'!J467=\"Contingent\"),'TSA Input'!C467,\"\"))","v":""},{"$f":"IF('TSA Input'!J467=\"\",\"\",IF(OR('TSA Input'!J467=\"Yes\",'TSA Input'!J467=\"Contingent\"),'TSA Input'!D467,\"\"))","v":""},{"$f":"IF('TSA Input'!J467=\"\",\"\",IF(OR('TSA Input'!J467=\"Yes\",'TSA Input'!J467=\"Contingent\"),'TSA Input'!G467,\"\"))","v":""},{"$f":"IF('TSA Input'!J467=\"\",\"\",IF(OR('TSA Input'!J467=\"Yes\",'TSA Input'!J467=\"Contingent\"),'TSA Input'!F467,\"\"))","v":""},"",{"$f":"IF('TSA Input'!J467=\"\",\"\",IF(OR('TSA Input'!J467=\"Yes\",'TSA Input'!J467=\"Contingent\"),'TSA Input'!D467,\"\"))","v":""},{"$f":"IF('TSA Input'!J467=\"\",\"\",IF(OR('TSA Input'!J467=\"Yes\",'TSA Input'!J467=\"Contingent\"),'TSA Input'!G467,\"\"))","v":""},{"$f":"IF('TSA Input'!J467=\"\",\"\",IF(OR('TSA Input'!J467=\"Yes\",'TSA Input'!J467=\"Contingent\"),'TSA Input'!F467,\"\"))","v":""},"","Required","Required"]
["",null,{"$f":"IF('TSA Input'!J468=\"\",\"\",IF(OR('TSA Input'!J468=\"Yes\",'TSA Input'!J468=\"Contingent\"),'TSA Input'!B468,\"Ineligible\"))","v":""},{"$f":"IF('TSA Input'!J468=\"\",\"\",IF(OR('TSA Input'!J468=\"Yes\",'TSA Input'!J468=\"Contingent\"),'TSA Input'!I468,\"\"))","v":""},{"$f":"IF('TSA Input'!J468=\"\",\"\",IF(OR('TSA Input'!J468=\"Yes\",'TSA Input'!J468=\"Contingent\"),'TSA Input'!C468,\"\"))","v":""},{"$f":"IF('TSA Input'!J468=\"\",\"\",IF(OR('TSA Input'!J468=\"Yes\",'TSA Input'!J468=\"Contingent\"),'TSA Input'!D468,\"\"))","v":""},{"$f":"IF('TSA Input'!J468=\"\",\"\",IF(OR('TSA Input'!J468=\"Yes\",'TSA Input'!J468=\"Contingent\"),'TSA Input'!G468,\"\"))","v":""},{"$f":"IF('TSA Input'!J468=\"\",\"\",IF(OR('TSA Input'!J468=\"Yes\",'TSA Input'!J468=\"Contingent\"),'TSA Input'!F468,\"\"))","v":""},"",{"$f":"IF('TSA Input'!J468=\"\",\"\",IF(OR('TSA Input'!J468=\"Yes\",'TSA Input'!J468=\"Contingent\"),'TSA Input'!D468,\"\"))","v":""},{"$f":"IF('TSA Input'!J468=\"\",\"\",IF(OR('TSA Input'!J468=\"Yes\",'TSA Input'!J468=\"Contingent\"),'TSA Input'!G468,\"\"))","v":""},{"$f":"IF('TSA Input'!J468=\"\",\"\",IF(OR('TSA Input'!J468=\"Yes\",'TSA Input'!J468=\"Contingent\"),'TSA Input'!F468,\"\"))","v":""},"","Required","Required"]
["",null,{"$f":"IF('TSA Input'!J469=\"\",\"\",IF(OR('TSA Input'!J469=\"Yes\",'TSA Input'!J469=\"Contingent\"),'TSA Input'!B469,\"Ineligible\"))","v":""},{"$f":"IF('TSA Input'!J469=\"\",\"\",IF(OR('TSA Input'!J469=\"Yes\",'TSA Input'!J469=\"Contingent\"),'TSA Input'!I469,\"\"))","v":""},{"$f":"IF('TSA Input'!J469=\"\",\"\",IF(OR('TSA Input'!J469=\"Yes\",'TSA Input'!J469=\"Contingent\"),'TSA Input'!C469,\"\"))","v":""},{"$f":"IF('TSA Input'!J469=\"\",\"\",IF(OR('TSA Input'!J469=\"Yes\",'TSA Input'!J469=\"Contingent\"),'TSA Input'!D469,\"\"))","v":""},{"$f":"IF('TSA Input'!J469=\"\",\"\",IF(OR('TSA Input'!J469=\"Yes\",'TSA Input'!J469=\"Contingent\"),'TSA Input'!G469,\"\"))","v":""},{"$f":"IF('TSA Input'!J469=\"\",\"\",IF(OR('TSA Input'!J469=\"Yes\",'TSA Input'!J469=\"Contingent\"),'TSA Input'!F469,\"\"))","v":""},"",{"$f":"IF('TSA Input'!J469=\"\",\"\",IF(OR('TSA Input'!J469=\"Yes\",'TSA Input'!J469=\"Contingent\"),'TSA Input'!D469,\"\"))","v":""},{"$f":"IF('TSA Input'!J469=\"\",\"\",IF(OR('TSA Input'!J469=\"Yes\",'TSA Input'!J469=\"Contingent\"),'TSA Input'!G469,\"\"))","v":""},{"$f":"IF('TSA Input'!J469=\"\",\"\",IF(OR('TSA Input'!J469=\"Yes\",'TSA Input'!J469=\"Contingent\"),'TSA Input'!F469,\"\"))","v":""},"","Required","Required"]
["",null,{"$f":"IF('TSA Input'!J470=\"\",\"\",IF(OR('TSA Input'!J470=\"Yes\",'TSA Input'!J470=\"Contingent\"),'TSA Input'!B470,\"Ineligible\"))","v":""},{"$f":"IF('TSA Input'!J470=\"\",\"\",IF(OR('TSA Input'!J470=\"Yes\",'TSA Input'!J470=\"Contingent\"),'TSA Input'!I470,\"\"))","v":""},{"$f":"IF('TSA Input'!J470=\"\",\"\",IF(OR('TSA Input'!J470=\"Yes\",'TSA Input'!J470=\"Contingent\"),'TSA Input'!C470,\"\"))","v":""},{"$f":"IF('TSA Input'!J470=\"\",\"\",IF(OR('TSA Input'!J470=\"Yes\",'TSA Input'!J470=\"Contingent\"),'TSA Input'!D470,\"\"))","v":""},{"$f":"IF('TSA Input'!J470=\"\",\"\",IF(OR('TSA Input'!J470=\"Yes\",'TSA Input'!J470=\"Contingent\"),'TSA Input'!G470,\"\"))","v":""},{"$f":"IF('TSA Input'!J470=\"\",\"\",IF(OR('TSA Input'!J470=\"Yes\",'TSA Input'!J470=\"Contingent\"),'TSA Input'!F470,\"\"))","v":""},"",{"$f":"IF('TSA Input'!J470=\"\",\"\",IF(OR('TSA Input'!J470=\"Yes\",'TSA Input'!J470=\"Contingent\"),'TSA Input'!D470,\"\"))","v":""},{"$f":"IF('TSA Input'!J470=\"\",\"\",IF(OR('TSA Input'!J470=\"Yes\",'TSA Input'!J470=\"Contingent\"),'TSA Input'!G470,\"\"))","v":""},{"$f":"IF('TSA Input'!J470=\"\",\"\",IF(OR('TSA Input'!J470=\"Yes\",'TSA Input'!J470=\"Contingent\"),'TSA Input'!F470,\"\"))","v":""},"","Required","Required"]
["",null,{"$f":"IF('TSA Input'!J471=\"\",\"\",IF(OR('TSA Input'!J471=\"Yes\",'TSA Input'!J471=\"Contingent\"),'TSA Input'!B471,\"Ineligible\"))","v":""},{"$f":"IF('TSA Input'!J471=\"\",\"\",IF(OR('TSA Input'!J471=\"Yes\",'TSA Input'!J471=\"Contingent\"),'TSA Input'!I471,\"\"))","v":""},{"$f":"IF('TSA Input'!J471=\"\",\"\",IF(OR('TSA Input'!J471=\"Yes\",'TSA Input'!J471=\"Contingent\"),'TSA Input'!C471,\"\"))","v":""},{"$f":"IF('TSA Input'!J471=\"\",\"\",IF(OR('TSA Input'!J471=\"Yes\",'TSA Input'!J471=\"Contingent\"),'TSA Input'!D471,\"\"))","v":""},{"$f":"IF('TSA Input'!J471=\"\",\"\",IF(OR('TSA Input'!J471=\"Yes\",'TSA Input'!J471=\"Contingent\"),'TSA Input'!G471,\"\"))","v":""},{"$f":"IF('TSA Input'!J471=\"\",\"\",IF(OR('TSA Input'!J471=\"Yes\",'TSA Input'!J471=\"Contingent\"),'TSA Input'!F471,\"\"))","v":""},"",{"$f":"IF('TSA Input'!J471=\"\",\"\",IF(OR('TSA Input'!J471=\"Yes\",'TSA Input'!J471=\"Contingent\"),'TSA Input'!D471,\"\"))","v":""},{"$f":"IF('TSA Input'!J471=\"\",\"\",IF(OR('TSA Input'!J471=\"Yes\",'TSA Input'!J471=\"Contingent\"),'TSA Input'!G471,\"\"))","v":""},{"$f":"IF('TSA Input'!J471=\"\",\"\",IF(OR('TSA Input'!J471=\"Yes\",'TSA Input'!J471=\"Contingent\"),'TSA Input'!F471,\"\"))","v":""},"","Required","Required"]
["",null,{"$f":"IF('TSA Input'!J472=\"\",\"\",IF(OR('TSA Input'!J472=\"Yes\",'TSA Input'!J472=\"Contingent\"),'TSA Input'!B472,\"Ineligible\"))","v":""},{"$f":"IF('TSA Input'!J472=\"\",\"\",IF(OR('TSA Input'!J472=\"Yes\",'TSA Input'!J472=\"Contingent\"),'TSA Input'!I472,\"\"))","v":""},{"$f":"IF('TSA Input'!J472=\"\",\"\",IF(OR('TSA Input'!J472=\"Yes\",'TSA Input'!J472=\"Contingent\"),'TSA Input'!C472,\"\"))","v":""},{"$f":"IF('TSA Input'!J472=\"\",\"\",IF(OR('TSA Input'!J472=\"Yes\",'TSA Input'!J472=\"Contingent\"),'TSA Input'!D472,\"\"))","v":""},{"$f":"IF('TSA Input'!J472=\"\",\"\",IF(OR('TSA Input'!J472=\"Yes\",'TSA Input'!J472=\"Contingent\"),'TSA Input'!G472,\"\"))","v":""},{"$f":"IF('TSA Input'!J472=\"\",\"\",IF(OR('TSA Input'!J472=\"Yes\",'TSA Input'!J472=\"Contingent\"),'TSA Input'!F472,\"\"))","v":""},"",{"$f":"IF('TSA Input'!J472=\"\",\"\",IF(OR('TSA Input'!J472=\"Yes\",'TSA Input'!J472=\"Contingent\"),'TSA Input'!D472,\"\"))","v":""},{"$f":"IF('TSA Input'!J472=\"\",\"\",IF(OR('TSA Input'!J472=\"Yes\",'TSA Input'!J472=\"Contingent\"),'TSA Input'!G472,\"\"))","v":""},{"$f":"IF('TSA Input'!J472=\"\",\"\",IF(OR('TSA Input'!J472=\"Yes\",'TSA Input'!J472=\"Contingent\"),'TSA Input'!F472,\"\"))","v":""},"","Required","Required"]
["",null,{"$f":"IF('TSA Input'!J473=\"\",\"\",IF(OR('TSA Input'!J473=\"Yes\",'TSA Input'!J473=\"Contingent\"),'TSA Input'!B473,\"Ineligible\"))","v":""},{"$f":"IF('TSA Input'!J473=\"\",\"\",IF(OR('TSA Input'!J473=\"Yes\",'TSA Input'!J473=\"Contingent\"),'TSA Input'!I473,\"\"))","v":""},{"$f":"IF('TSA Input'!J473=\"\",\"\",IF(OR('TSA Input'!J473=\"Yes\",'TSA Input'!J473=\"Contingent\"),'TSA Input'!C473,\"\"))","v":""},{"$f":"IF('TSA Input'!J473=\"\",\"\",IF(OR('TSA Input'!J473=\"Yes\",'TSA Input'!J473=\"Contingent\"),'TSA Input'!D473,\"\"))","v":""},{"$f":"IF('TSA Input'!J473=\"\",\"\",IF(OR('TSA Input'!J473=\"Yes\",'TSA Input'!J473=\"Contingent\"),'TSA Input'!G473,\"\"))","v":""},{"$f":"IF('TSA Input'!J473=\"\",\"\",IF(OR('TSA Input'!J473=\"Yes\",'TSA Input'!J473=\"Contingent\"),'TSA Input'!F473,\"\"))","v":""},"",{"$f":"IF('TSA Input'!J473=\"\",\"\",IF(OR('TSA Input'!J473=\"Yes\",'TSA Input'!J473=\"Contingent\"),'TSA Input'!D473,\"\"))","v":""},{"$f":"IF('TSA Input'!J473=\"\",\"\",IF(OR('TSA Input'!J473=\"Yes\",'TSA Input'!J473=\"Contingent\"),'TSA Input'!G473,\"\"))","v":""},{"$f":"IF('TSA Input'!J473=\"\",\"\",IF(OR('TSA Input'!J473=\"Yes\",'TSA Input'!J473=\"Contingent\"),'TSA Input'!F473,\"\"))","v":""},"","Required","Required"]
["",null,{"$f":"IF('TSA Input'!J474=\"\",\"\",IF(OR('TSA Input'!J474=\"Yes\",'TSA Input'!J474=\"Contingent\"),'TSA Input'!B474,\"Ineligible\"))","v":""},{"$f":"IF('TSA Input'!J474=\"\",\"\",IF(OR('TSA Input'!J474=\"Yes\",'TSA Input'!J474=\"Contingent\"),'TSA Input'!I474,\"\"))","v":""},{"$f":"IF('TSA Input'!J474=\"\",\"\",IF(OR('TSA Input'!J474=\"Yes\",'TSA Input'!J474=\"Contingent\"),'TSA Input'!C474,\"\"))","v":""},{"$f":"IF('TSA Input'!J474=\"\",\"\",IF(OR('TSA Input'!J474=\"Yes\",'TSA Input'!J474=\"Contingent\"),'TSA Input'!D474,\"\"))","v":""},{"$f":"IF('TSA Input'!J474=\"\",\"\",IF(OR('TSA Input'!J474=\"Yes\",'TSA Input'!J474=\"Contingent\"),'TSA Input'!G474,\"\"))","v":""},{"$f":"IF('TSA Input'!J474=\"\",\"\",IF(OR('TSA Input'!J474=\"Yes\",'TSA Input'!J474=\"Contingent\"),'TSA Input'!F474,\"\"))","v":""},"",{"$f":"IF('TSA Input'!J474=\"\",\"\",IF(OR('TSA Input'!J474=\"Yes\",'TSA Input'!J474=\"Contingent\"),'TSA Input'!D474,\"\"))","v":""},{"$f":"IF('TSA Input'!J474=\"\",\"\",IF(OR('TSA Input'!J474=\"Yes\",'TSA Input'!J474=\"Contingent\"),'TSA Input'!G474,\"\"))","v":""},{"$f":"IF('TSA Input'!J474=\"\",\"\",IF(OR('TSA Input'!J474=\"Yes\",'TSA Input'!J474=\"Contingent\"),'TSA Input'!F474,\"\"))","v":""},"","Required","Required"]
["",null,{"$f":"IF('TSA Input'!J475=\"\",\"\",IF(OR('TSA Input'!J475=\"Yes\",'TSA Input'!J475=\"Contingent\"),'TSA Input'!B475,\"Ineligible\"))","v":""},{"$f":"IF('TSA Input'!J475=\"\",\"\",IF(OR('TSA Input'!J475=\"Yes\",'TSA Input'!J475=\"Contingent\"),'TSA Input'!I475,\"\"))","v":""},{"$f":"IF('TSA Input'!J475=\"\",\"\",IF(OR('TSA Input'!J475=\"Yes\",'TSA Input'!J475=\"Contingent\"),'TSA Input'!C475,\"\"))","v":""},{"$f":"IF('TSA Input'!J475=\"\",\"\",IF(OR('TSA Input'!J475=\"Yes\",'TSA Input'!J475=\"Contingent\"),'TSA Input'!D475,\"\"))","v":""},{"$f":"IF('TSA Input'!J475=\"\",\"\",IF(OR('TSA Input'!J475=\"Yes\",'TSA Input'!J475=\"Contingent\"),'TSA Input'!G475,\"\"))","v":""},{"$f":"IF('TSA Input'!J475=\"\",\"\",IF(OR('TSA Input'!J475=\"Yes\",'TSA Input'!J475=\"Contingent\"),'TSA Input'!F475,\"\"))","v":""},"",{"$f":"IF('TSA Input'!J475=\"\",\"\",IF(OR('TSA Input'!J475=\"Yes\",'TSA Input'!J475=\"Contingent\"),'TSA Input'!D475,\"\"))","v":""},{"$f":"IF('TSA Input'!J475=\"\",\"\",IF(OR('TSA Input'!J475=\"Yes\",'TSA Input'!J475=\"Contingent\"),'TSA Input'!G475,\"\"))","v":""},{"$f":"IF('TSA Input'!J475=\"\",\"\",IF(OR('TSA Input'!J475=\"Yes\",'TSA Input'!J475=\"Contingent\"),'TSA Input'!F475,\"\"))","v":""},"","Required","Required"]
["",null,{"$f":"IF('TSA Input'!J476=\"\",\"\",IF(OR('TSA Input'!J476=\"Yes\",'TSA Input'!J476=\"Contingent\"),'TSA Input'!B476,\"Ineligible\"))","v":""},{"$f":"IF('TSA Input'!J476=\"\",\"\",IF(OR('TSA Input'!J476=\"Yes\",'TSA Input'!J476=\"Contingent\"),'TSA Input'!I476,\"\"))","v":""},{"$f":"IF('TSA Input'!J476=\"\",\"\",IF(OR('TSA Input'!J476=\"Yes\",'TSA Input'!J476=\"Contingent\"),'TSA Input'!C476,\"\"))","v":""},{"$f":"IF('TSA Input'!J476=\"\",\"\",IF(OR('TSA Input'!J476=\"Yes\",'TSA Input'!J476=\"Contingent\"),'TSA Input'!D476,\"\"))","v":""},{"$f":"IF('TSA Input'!J476=\"\",\"\",IF(OR('TSA Input'!J476=\"Yes\",'TSA Input'!J476=\"Contingent\"),'TSA Input'!G476,\"\"))","v":""},{"$f":"IF('TSA Input'!J476=\"\",\"\",IF(OR('TSA Input'!J476=\"Yes\",'TSA Input'!J476=\"Contingent\"),'TSA Input'!F476,\"\"))","v":""},"",{"$f":"IF('TSA Input'!J476=\"\",\"\",IF(OR('TSA Input'!J476=\"Yes\",'TSA Input'!J476=\"Contingent\"),'TSA Input'!D476,\"\"))","v":""},{"$f":"IF('TSA Input'!J476=\"\",\"\",IF(OR('TSA Input'!J476=\"Yes\",'TSA Input'!J476=\"Contingent\"),'TSA Input'!G476,\"\"))","v":""},{"$f":"IF('TSA Input'!J476=\"\",\"\",IF(OR('TSA Input'!J476=\"Yes\",'TSA Input'!J476=\"Contingent\"),'TSA Input'!F476,\"\"))","v":""},"","Required","Required"]
["",null,{"$f":"IF('TSA Input'!J477=\"\",\"\",IF(OR('TSA Input'!J477=\"Yes\",'TSA Input'!J477=\"Contingent\"),'TSA Input'!B477,\"Ineligible\"))","v":""},{"$f":"IF('TSA Input'!J477=\"\",\"\",IF(OR('TSA Input'!J477=\"Yes\",'TSA Input'!J477=\"Contingent\"),'TSA Input'!I477,\"\"))","v":""},{"$f":"IF('TSA Input'!J477=\"\",\"\",IF(OR('TSA Input'!J477=\"Yes\",'TSA Input'!J477=\"Contingent\"),'TSA Input'!C477,\"\"))","v":""},{"$f":"IF('TSA Input'!J477=\"\",\"\",IF(OR('TSA Input'!J477=\"Yes\",'TSA Input'!J477=\"Contingent\"),'TSA Input'!D477,\"\"))","v":""},{"$f":"IF('TSA Input'!J477=\"\",\"\",IF(OR('TSA Input'!J477=\"Yes\",'TSA Input'!J477=\"Contingent\"),'TSA Input'!G477,\"\"))","v":""},{"$f":"IF('TSA Input'!J477=\"\",\"\",IF(OR('TSA Input'!J477=\"Yes\",'TSA Input'!J477=\"Contingent\"),'TSA Input'!F477,\"\"))","v":""},"",{"$f":"IF('TSA Input'!J477=\"\",\"\",IF(OR('TSA Input'!J477=\"Yes\",'TSA Input'!J477=\"Contingent\"),'TSA Input'!D477,\"\"))","v":""},{"$f":"IF('TSA Input'!J477=\"\",\"\",IF(OR('TSA Input'!J477=\"Yes\",'TSA Input'!J477=\"Contingent\"),'TSA Input'!G477,\"\"))","v":""},{"$f":"IF('TSA Input'!J477=\"\",\"\",IF(OR('TSA Input'!J477=\"Yes\",'TSA Input'!J477=\"Contingent\"),'TSA Input'!F477,\"\"))","v":""},"","Required","Required"]
["",null,{"$f":"IF('TSA Input'!J478=\"\",\"\",IF(OR('TSA Input'!J478=\"Yes\",'TSA Input'!J478=\"Contingent\"),'TSA Input'!B478,\"Ineligible\"))","v":""},{"$f":"IF('TSA Input'!J478=\"\",\"\",IF(OR('TSA Input'!J478=\"Yes\",'TSA Input'!J478=\"Contingent\"),'TSA Input'!I478,\"\"))","v":""},{"$f":"IF('TSA Input'!J478=\"\",\"\",IF(OR('TSA Input'!J478=\"Yes\",'TSA Input'!J478=\"Contingent\"),'TSA Input'!C478,\"\"))","v":""},{"$f":"IF('TSA Input'!J478=\"\",\"\",IF(OR('TSA Input'!J478=\"Yes\",'TSA Input'!J478=\"Contingent\"),'TSA Input'!D478,\"\"))","v":""},{"$f":"IF('TSA Input'!J478=\"\",\"\",IF(OR('TSA Input'!J478=\"Yes\",'TSA Input'!J478=\"Contingent\"),'TSA Input'!G478,\"\"))","v":""},{"$f":"IF('TSA Input'!J478=\"\",\"\",IF(OR('TSA Input'!J478=\"Yes\",'TSA Input'!J478=\"Contingent\"),'TSA Input'!F478,\"\"))","v":""},"",{"$f":"IF('TSA Input'!J478=\"\",\"\",IF(OR('TSA Input'!J478=\"Yes\",'TSA Input'!J478=\"Contingent\"),'TSA Input'!D478,\"\"))","v":""},{"$f":"IF('TSA Input'!J478=\"\",\"\",IF(OR('TSA Input'!J478=\"Yes\",'TSA Input'!J478=\"Contingent\"),'TSA Input'!G478,\"\"))","v":""},{"$f":"IF('TSA Input'!J478=\"\",\"\",IF(OR('TSA Input'!J478=\"Yes\",'TSA Input'!J478=\"Contingent\"),'TSA Input'!F478,\"\"))","v":""},"","Required","Required"]
["",null,{"$f":"IF('TSA Input'!J479=\"\",\"\",IF(OR('TSA Input'!J479=\"Yes\",'TSA Input'!J479=\"Contingent\"),'TSA Input'!B479,\"Ineligible\"))","v":""},{"$f":"IF('TSA Input'!J479=\"\",\"\",IF(OR('TSA Input'!J479=\"Yes\",'TSA Input'!J479=\"Contingent\"),'TSA Input'!I479,\"\"))","v":""},{"$f":"IF('TSA Input'!J479=\"\",\"\",IF(OR('TSA Input'!J479=\"Yes\",'TSA Input'!J479=\"Contingent\"),'TSA Input'!C479,\"\"))","v":""},{"$f":"IF('TSA Input'!J479=\"\",\"\",IF(OR('TSA Input'!J479=\"Yes\",'TSA Input'!J479=\"Contingent\"),'TSA Input'!D479,\"\"))","v":""},{"$f":"IF('TSA Input'!J479=\"\",\"\",IF(OR('TSA Input'!J479=\"Yes\",'TSA Input'!J479=\"Contingent\"),'TSA Input'!G479,\"\"))","v":""},{"$f":"IF('TSA Input'!J479=\"\",\"\",IF(OR('TSA Input'!J479=\"Yes\",'TSA Input'!J479=\"Contingent\"),'TSA Input'!F479,\"\"))","v":""},"",{"$f":"IF('TSA Input'!J479=\"\",\"\",IF(OR('TSA Input'!J479=\"Yes\",'TSA Input'!J479=\"Contingent\"),'TSA Input'!D479,\"\"))","v":""},{"$f":"IF('TSA Input'!J479=\"\",\"\",IF(OR('TSA Input'!J479=\"Yes\",'TSA Input'!J479=\"Contingent\"),'TSA Input'!G479,\"\"))","v":""},{"$f":"IF('TSA Input'!J479=\"\",\"\",IF(OR('TSA Input'!J479=\"Yes\",'TSA Input'!J479=\"Contingent\"),'TSA Input'!F479,\"\"))","v":""},"","Required","Required"]
["",null,{"$f":"IF('TSA Input'!J480=\"\",\"\",IF(OR('TSA Input'!J480=\"Yes\",'TSA Input'!J480=\"Contingent\"),'TSA Input'!B480,\"Ineligible\"))","v":""},{"$f":"IF('TSA Input'!J480=\"\",\"\",IF(OR('TSA Input'!J480=\"Yes\",'TSA Input'!J480=\"Contingent\"),'TSA Input'!I480,\"\"))","v":""},{"$f":"IF('TSA Input'!J480=\"\",\"\",IF(OR('TSA Input'!J480=\"Yes\",'TSA Input'!J480=\"Contingent\"),'TSA Input'!C480,\"\"))","v":""},{"$f":"IF('TSA Input'!J480=\"\",\"\",IF(OR('TSA Input'!J480=\"Yes\",'TSA Input'!J480=\"Contingent\"),'TSA Input'!D480,\"\"))","v":""},{"$f":"IF('TSA Input'!J480=\"\",\"\",IF(OR('TSA Input'!J480=\"Yes\",'TSA Input'!J480=\"Contingent\"),'TSA Input'!G480,\"\"))","v":""},{"$f":"IF('TSA Input'!J480=\"\",\"\",IF(OR('TSA Input'!J480=\"Yes\",'TSA Input'!J480=\"Contingent\"),'TSA Input'!F480,\"\"))","v":""},"",{"$f":"IF('TSA Input'!J480=\"\",\"\",IF(OR('TSA Input'!J480=\"Yes\",'TSA Input'!J480=\"Contingent\"),'TSA Input'!D480,\"\"))","v":""},{"$f":"IF('TSA Input'!J480=\"\",\"\",IF(OR('TSA Input'!J480=\"Yes\",'TSA Input'!J480=\"Contingent\"),'TSA Input'!G480,\"\"))","v":""},{"$f":"IF('TSA Input'!J480=\"\",\"\",IF(OR('TSA Input'!J480=\"Yes\",'TSA Input'!J480=\"Contingent\"),'TSA Input'!F480,\"\"))","v":""},"","Required","Required"]
["",null,{"$f":"IF('TSA Input'!J481=\"\",\"\",IF(OR('TSA Input'!J481=\"Yes\",'TSA Input'!J481=\"Contingent\"),'TSA Input'!B481,\"Ineligible\"))","v":""},{"$f":"IF('TSA Input'!J481=\"\",\"\",IF(OR('TSA Input'!J481=\"Yes\",'TSA Input'!J481=\"Contingent\"),'TSA Input'!I481,\"\"))","v":""},{"$f":"IF('TSA Input'!J481=\"\",\"\",IF(OR('TSA Input'!J481=\"Yes\",'TSA Input'!J481=\"Contingent\"),'TSA Input'!C481,\"\"))","v":""},{"$f":"IF('TSA Input'!J481=\"\",\"\",IF(OR('TSA Input'!J481=\"Yes\",'TSA Input'!J481=\"Contingent\"),'TSA Input'!D481,\"\"))","v":""},{"$f":"IF('TSA Input'!J481=\"\",\"\",IF(OR('TSA Input'!J481=\"Yes\",'TSA Input'!J481=\"Contingent\"),'TSA Input'!G481,\"\"))","v":""},{"$f":"IF('TSA Input'!J481=\"\",\"\",IF(OR('TSA Input'!J481=\"Yes\",'TSA Input'!J481=\"Contingent\"),'TSA Input'!F481,\"\"))","v":""},"",{"$f":"IF('TSA Input'!J481=\"\",\"\",IF(OR('TSA Input'!J481=\"Yes\",'TSA Input'!J481=\"Contingent\"),'TSA Input'!D481,\"\"))","v":""},{"$f":"IF('TSA Input'!J481=\"\",\"\",IF(OR('TSA Input'!J481=\"Yes\",'TSA Input'!J481=\"Contingent\"),'TSA Input'!G481,\"\"))","v":""},{"$f":"IF('TSA Input'!J481=\"\",\"\",IF(OR('TSA Input'!J481=\"Yes\",'TSA Input'!J481=\"Contingent\"),'TSA Input'!F481,\"\"))","v":""},"","Required","Required"]
["",null,{"$f":"IF('TSA Input'!J482=\"\",\"\",IF(OR('TSA Input'!J482=\"Yes\",'TSA Input'!J482=\"Contingent\"),'TSA Input'!B482,\"Ineligible\"))","v":""},{"$f":"IF('TSA Input'!J482=\"\",\"\",IF(OR('TSA Input'!J482=\"Yes\",'TSA Input'!J482=\"Contingent\"),'TSA Input'!I482,\"\"))","v":""},{"$f":"IF('TSA Input'!J482=\"\",\"\",IF(OR('TSA Input'!J482=\"Yes\",'TSA Input'!J482=\"Contingent\"),'TSA Input'!C482,\"\"))","v":""},{"$f":"IF('TSA Input'!J482=\"\",\"\",IF(OR('TSA Input'!J482=\"Yes\",'TSA Input'!J482=\"Contingent\"),'TSA Input'!D482,\"\"))","v":""},{"$f":"IF('TSA Input'!J482=\"\",\"\",IF(OR('TSA Input'!J482=\"Yes\",'TSA Input'!J482=\"Contingent\"),'TSA Input'!G482,\"\"))","v":""},{"$f":"IF('TSA Input'!J482=\"\",\"\",IF(OR('TSA Input'!J482=\"Yes\",'TSA Input'!J482=\"Contingent\"),'TSA Input'!F482,\"\"))","v":""},"",{"$f":"IF('TSA Input'!J482=\"\",\"\",IF(OR('TSA Input'!J482=\"Yes\",'TSA Input'!J482=\"Contingent\"),'TSA Input'!D482,\"\"))","v":""},{"$f":"IF('TSA Input'!J482=\"\",\"\",IF(OR('TSA Input'!J482=\"Yes\",'TSA Input'!J482=\"Contingent\"),'TSA Input'!G482,\"\"))","v":""},{"$f":"IF('TSA Input'!J482=\"\",\"\",IF(OR('TSA Input'!J482=\"Yes\",'TSA Input'!J482=\"Contingent\"),'TSA Input'!F482,\"\"))","v":""},"","Required","Required"]
["",null,{"$f":"IF('TSA Input'!J483=\"\",\"\",IF(OR('TSA Input'!J483=\"Yes\",'TSA Input'!J483=\"Contingent\"),'TSA Input'!B483,\"Ineligible\"))","v":""},{"$f":"IF('TSA Input'!J483=\"\",\"\",IF(OR('TSA Input'!J483=\"Yes\",'TSA Input'!J483=\"Contingent\"),'TSA Input'!I483,\"\"))","v":""},{"$f":"IF('TSA Input'!J483=\"\",\"\",IF(OR('TSA Input'!J483=\"Yes\",'TSA Input'!J483=\"Contingent\"),'TSA Input'!C483,\"\"))","v":""},{"$f":"IF('TSA Input'!J483=\"\",\"\",IF(OR('TSA Input'!J483=\"Yes\",'TSA Input'!J483=\"Contingent\"),'TSA Input'!D483,\"\"))","v":""},{"$f":"IF('TSA Input'!J483=\"\",\"\",IF(OR('TSA Input'!J483=\"Yes\",'TSA Input'!J483=\"Contingent\"),'TSA Input'!G483,\"\"))","v":""},{"$f":"IF('TSA Input'!J483=\"\",\"\",IF(OR('TSA Input'!J483=\"Yes\",'TSA Input'!J483=\"Contingent\"),'TSA Input'!F483,\"\"))","v":""},"",{"$f":"IF('TSA Input'!J483=\"\",\"\",IF(OR('TSA Input'!J483=\"Yes\",'TSA Input'!J483=\"Contingent\"),'TSA Input'!D483,\"\"))","v":""},{"$f":"IF('TSA Input'!J483=\"\",\"\",IF(OR('TSA Input'!J483=\"Yes\",'TSA Input'!J483=\"Contingent\"),'TSA Input'!G483,\"\"))","v":""},{"$f":"IF('TSA Input'!J483=\"\",\"\",IF(OR('TSA Input'!J483=\"Yes\",'TSA Input'!J483=\"Contingent\"),'TSA Input'!F483,\"\"))","v":""},"","Required","Required"]
["",null,{"$f":"IF('TSA Input'!J484=\"\",\"\",IF(OR('TSA Input'!J484=\"Yes\",'TSA Input'!J484=\"Contingent\"),'TSA Input'!B484,\"Ineligible\"))","v":""},{"$f":"IF('TSA Input'!J484=\"\",\"\",IF(OR('TSA Input'!J484=\"Yes\",'TSA Input'!J484=\"Contingent\"),'TSA Input'!I484,\"\"))","v":""},{"$f":"IF('TSA Input'!J484=\"\",\"\",IF(OR('TSA Input'!J484=\"Yes\",'TSA Input'!J484=\"Contingent\"),'TSA Input'!C484,\"\"))","v":""},{"$f":"IF('TSA Input'!J484=\"\",\"\",IF(OR('TSA Input'!J484=\"Yes\",'TSA Input'!J484=\"Contingent\"),'TSA Input'!D484,\"\"))","v":""},{"$f":"IF('TSA Input'!J484=\"\",\"\",IF(OR('TSA Input'!J484=\"Yes\",'TSA Input'!J484=\"Contingent\"),'TSA Input'!G484,\"\"))","v":""},{"$f":"IF('TSA Input'!J484=\"\",\"\",IF(OR('TSA Input'!J484=\"Yes\",'TSA Input'!J484=\"Contingent\"),'TSA Input'!F484,\"\"))","v":""},"",{"$f":"IF('TSA Input'!J484=\"\",\"\",IF(OR('TSA Input'!J484=\"Yes\",'TSA Input'!J484=\"Contingent\"),'TSA Input'!D484,\"\"))","v":""},{"$f":"IF('TSA Input'!J484=\"\",\"\",IF(OR('TSA Input'!J484=\"Yes\",'TSA Input'!J484=\"Contingent\"),'TSA Input'!G484,\"\"))","v":""},{"$f":"IF('TSA Input'!J484=\"\",\"\",IF(OR('TSA Input'!J484=\"Yes\",'TSA Input'!J484=\"Contingent\"),'TSA Input'!F484,\"\"))","v":""},"","Required","Required"]
["",null,{"$f":"IF('TSA Input'!J485=\"\",\"\",IF(OR('TSA Input'!J485=\"Yes\",'TSA Input'!J485=\"Contingent\"),'TSA Input'!B485,\"Ineligible\"))","v":""},{"$f":"IF('TSA Input'!J485=\"\",\"\",IF(OR('TSA Input'!J485=\"Yes\",'TSA Input'!J485=\"Contingent\"),'TSA Input'!I485,\"\"))","v":""},{"$f":"IF('TSA Input'!J485=\"\",\"\",IF(OR('TSA Input'!J485=\"Yes\",'TSA Input'!J485=\"Contingent\"),'TSA Input'!C485,\"\"))","v":""},{"$f":"IF('TSA Input'!J485=\"\",\"\",IF(OR('TSA Input'!J485=\"Yes\",'TSA Input'!J485=\"Contingent\"),'TSA Input'!D485,\"\"))","v":""},{"$f":"IF('TSA Input'!J485=\"\",\"\",IF(OR('TSA Input'!J485=\"Yes\",'TSA Input'!J485=\"Contingent\"),'TSA Input'!G485,\"\"))","v":""},{"$f":"IF('TSA Input'!J485=\"\",\"\",IF(OR('TSA Input'!J485=\"Yes\",'TSA Input'!J485=\"Contingent\"),'TSA Input'!F485,\"\"))","v":""},"",{"$f":"IF('TSA Input'!J485=\"\",\"\",IF(OR('TSA Input'!J485=\"Yes\",'TSA Input'!J485=\"Contingent\"),'TSA Input'!D485,\"\"))","v":""},{"$f":"IF('TSA Input'!J485=\"\",\"\",IF(OR('TSA Input'!J485=\"Yes\",'TSA Input'!J485=\"Contingent\"),'TSA Input'!G485,\"\"))","v":""},{"$f":"IF('TSA Input'!J485=\"\",\"\",IF(OR('TSA Input'!J485=\"Yes\",'TSA Input'!J485=\"Contingent\"),'TSA Input'!F485,\"\"))","v":""},"","Required","Required"]
["",null,{"$f":"IF('TSA Input'!J486=\"\",\"\",IF(OR('TSA Input'!J486=\"Yes\",'TSA Input'!J486=\"Contingent\"),'TSA Input'!B486,\"Ineligible\"))","v":""},{"$f":"IF('TSA Input'!J486=\"\",\"\",IF(OR('TSA Input'!J486=\"Yes\",'TSA Input'!J486=\"Contingent\"),'TSA Input'!I486,\"\"))","v":""},{"$f":"IF('TSA Input'!J486=\"\",\"\",IF(OR('TSA Input'!J486=\"Yes\",'TSA Input'!J486=\"Contingent\"),'TSA Input'!C486,\"\"))","v":""},{"$f":"IF('TSA Input'!J486=\"\",\"\",IF(OR('TSA Input'!J486=\"Yes\",'TSA Input'!J486=\"Contingent\"),'TSA Input'!D486,\"\"))","v":""},{"$f":"IF('TSA Input'!J486=\"\",\"\",IF(OR('TSA Input'!J486=\"Yes\",'TSA Input'!J486=\"Contingent\"),'TSA Input'!G486,\"\"))","v":""},{"$f":"IF('TSA Input'!J486=\"\",\"\",IF(OR('TSA Input'!J486=\"Yes\",'TSA Input'!J486=\"Contingent\"),'TSA Input'!F486,\"\"))","v":""},"",{"$f":"IF('TSA Input'!J486=\"\",\"\",IF(OR('TSA Input'!J486=\"Yes\",'TSA Input'!J486=\"Contingent\"),'TSA Input'!D486,\"\"))","v":""},{"$f":"IF('TSA Input'!J486=\"\",\"\",IF(OR('TSA Input'!J486=\"Yes\",'TSA Input'!J486=\"Contingent\"),'TSA Input'!G486,\"\"))","v":""},{"$f":"IF('TSA Input'!J486=\"\",\"\",IF(OR('TSA Input'!J486=\"Yes\",'TSA Input'!J486=\"Contingent\"),'TSA Input'!F486,\"\"))","v":""},"","Required","Required"]
["",null,{"$f":"IF('TSA Input'!J487=\"\",\"\",IF(OR('TSA Input'!J487=\"Yes\",'TSA Input'!J487=\"Contingent\"),'TSA Input'!B487,\"Ineligible\"))","v":""},{"$f":"IF('TSA Input'!J487=\"\",\"\",IF(OR('TSA Input'!J487=\"Yes\",'TSA Input'!J487=\"Contingent\"),'TSA Input'!I487,\"\"))","v":""},{"$f":"IF('TSA Input'!J487=\"\",\"\",IF(OR('TSA Input'!J487=\"Yes\",'TSA Input'!J487=\"Contingent\"),'TSA Input'!C487,\"\"))","v":""},{"$f":"IF('TSA Input'!J487=\"\",\"\",IF(OR('TSA Input'!J487=\"Yes\",'TSA Input'!J487=\"Contingent\"),'TSA Input'!D487,\"\"))","v":""},{"$f":"IF('TSA Input'!J487=\"\",\"\",IF(OR('TSA Input'!J487=\"Yes\",'TSA Input'!J487=\"Contingent\"),'TSA Input'!G487,\"\"))","v":""},{"$f":"IF('TSA Input'!J487=\"\",\"\",IF(OR('TSA Input'!J487=\"Yes\",'TSA Input'!J487=\"Contingent\"),'TSA Input'!F487,\"\"))","v":""},"",{"$f":"IF('TSA Input'!J487=\"\",\"\",IF(OR('TSA Input'!J487=\"Yes\",'TSA Input'!J487=\"Contingent\"),'TSA Input'!D487,\"\"))","v":""},{"$f":"IF('TSA Input'!J487=\"\",\"\",IF(OR('TSA Input'!J487=\"Yes\",'TSA Input'!J487=\"Contingent\"),'TSA Input'!G487,\"\"))","v":""},{"$f":"IF('TSA Input'!J487=\"\",\"\",IF(OR('TSA Input'!J487=\"Yes\",'TSA Input'!J487=\"Contingent\"),'TSA Input'!F487,\"\"))","v":""},"","Required","Required"]
["",null,{"$f":"IF('TSA Input'!J488=\"\",\"\",IF(OR('TSA Input'!J488=\"Yes\",'TSA Input'!J488=\"Contingent\"),'TSA Input'!B488,\"Ineligible\"))","v":""},{"$f":"IF('TSA Input'!J488=\"\",\"\",IF(OR('TSA Input'!J488=\"Yes\",'TSA Input'!J488=\"Contingent\"),'TSA Input'!I488,\"\"))","v":""},{"$f":"IF('TSA Input'!J488=\"\",\"\",IF(OR('TSA Input'!J488=\"Yes\",'TSA Input'!J488=\"Contingent\"),'TSA Input'!C488,\"\"))","v":""},{"$f":"IF('TSA Input'!J488=\"\",\"\",IF(OR('TSA Input'!J488=\"Yes\",'TSA Input'!J488=\"Contingent\"),'TSA Input'!D488,\"\"))","v":""},{"$f":"IF('TSA Input'!J488=\"\",\"\",IF(OR('TSA Input'!J488=\"Yes\",'TSA Input'!J488=\"Contingent\"),'TSA Input'!G488,\"\"))","v":""},{"$f":"IF('TSA Input'!J488=\"\",\"\",IF(OR('TSA Input'!J488=\"Yes\",'TSA Input'!J488=\"Contingent\"),'TSA Input'!F488,\"\"))","v":""},"",{"$f":"IF('TSA Input'!J488=\"\",\"\",IF(OR('TSA Input'!J488=\"Yes\",'TSA Input'!J488=\"Contingent\"),'TSA Input'!D488,\"\"))","v":""},{"$f":"IF('TSA Input'!J488=\"\",\"\",IF(OR('TSA Input'!J488=\"Yes\",'TSA Input'!J488=\"Contingent\"),'TSA Input'!G488,\"\"))","v":""},{"$f":"IF('TSA Input'!J488=\"\",\"\",IF(OR('TSA Input'!J488=\"Yes\",'TSA Input'!J488=\"Contingent\"),'TSA Input'!F488,\"\"))","v":""},"","Required","Required"]
["",null,{"$f":"IF('TSA Input'!J489=\"\",\"\",IF(OR('TSA Input'!J489=\"Yes\",'TSA Input'!J489=\"Contingent\"),'TSA Input'!B489,\"Ineligible\"))","v":""},{"$f":"IF('TSA Input'!J489=\"\",\"\",IF(OR('TSA Input'!J489=\"Yes\",'TSA Input'!J489=\"Contingent\"),'TSA Input'!I489,\"\"))","v":""},{"$f":"IF('TSA Input'!J489=\"\",\"\",IF(OR('TSA Input'!J489=\"Yes\",'TSA Input'!J489=\"Contingent\"),'TSA Input'!C489,\"\"))","v":""},{"$f":"IF('TSA Input'!J489=\"\",\"\",IF(OR('TSA Input'!J489=\"Yes\",'TSA Input'!J489=\"Contingent\"),'TSA Input'!D489,\"\"))","v":""},{"$f":"IF('TSA Input'!J489=\"\",\"\",IF(OR('TSA Input'!J489=\"Yes\",'TSA Input'!J489=\"Contingent\"),'TSA Input'!G489,\"\"))","v":""},{"$f":"IF('TSA Input'!J489=\"\",\"\",IF(OR('TSA Input'!J489=\"Yes\",'TSA Input'!J489=\"Contingent\"),'TSA Input'!F489,\"\"))","v":""},"",{"$f":"IF('TSA Input'!J489=\"\",\"\",IF(OR('TSA Input'!J489=\"Yes\",'TSA Input'!J489=\"Contingent\"),'TSA Input'!D489,\"\"))","v":""},{"$f":"IF('TSA Input'!J489=\"\",\"\",IF(OR('TSA Input'!J489=\"Yes\",'TSA Input'!J489=\"Contingent\"),'TSA Input'!G489,\"\"))","v":""},{"$f":"IF('TSA Input'!J489=\"\",\"\",IF(OR('TSA Input'!J489=\"Yes\",'TSA Input'!J489=\"Contingent\"),'TSA Input'!F489,\"\"))","v":""},"","Required","Required"]
["",null,{"$f":"IF('TSA Input'!J490=\"\",\"\",IF(OR('TSA Input'!J490=\"Yes\",'TSA Input'!J490=\"Contingent\"),'TSA Input'!B490,\"Ineligible\"))","v":""},{"$f":"IF('TSA Input'!J490=\"\",\"\",IF(OR('TSA Input'!J490=\"Yes\",'TSA Input'!J490=\"Contingent\"),'TSA Input'!I490,\"\"))","v":""},{"$f":"IF('TSA Input'!J490=\"\",\"\",IF(OR('TSA Input'!J490=\"Yes\",'TSA Input'!J490=\"Contingent\"),'TSA Input'!C490,\"\"))","v":""},{"$f":"IF('TSA Input'!J490=\"\",\"\",IF(OR('TSA Input'!J490=\"Yes\",'TSA Input'!J490=\"Contingent\"),'TSA Input'!D490,\"\"))","v":""},{"$f":"IF('TSA Input'!J490=\"\",\"\",IF(OR('TSA Input'!J490=\"Yes\",'TSA Input'!J490=\"Contingent\"),'TSA Input'!G490,\"\"))","v":""},{"$f":"IF('TSA Input'!J490=\"\",\"\",IF(OR('TSA Input'!J490=\"Yes\",'TSA Input'!J490=\"Contingent\"),'TSA Input'!F490,\"\"))","v":""},"",{"$f":"IF('TSA Input'!J490=\"\",\"\",IF(OR('TSA Input'!J490=\"Yes\",'TSA Input'!J490=\"Contingent\"),'TSA Input'!D490,\"\"))","v":""},{"$f":"IF('TSA Input'!J490=\"\",\"\",IF(OR('TSA Input'!J490=\"Yes\",'TSA Input'!J490=\"Contingent\"),'TSA Input'!G490,\"\"))","v":""},{"$f":"IF('TSA Input'!J490=\"\",\"\",IF(OR('TSA Input'!J490=\"Yes\",'TSA Input'!J490=\"Contingent\"),'TSA Input'!F490,\"\"))","v":""},"","Required","Required"]
["",null,{"$f":"IF('TSA Input'!J491=\"\",\"\",IF(OR('TSA Input'!J491=\"Yes\",'TSA Input'!J491=\"Contingent\"),'TSA Input'!B491,\"Ineligible\"))","v":""},{"$f":"IF('TSA Input'!J491=\"\",\"\",IF(OR('TSA Input'!J491=\"Yes\",'TSA Input'!J491=\"Contingent\"),'TSA Input'!I491,\"\"))","v":""},{"$f":"IF('TSA Input'!J491=\"\",\"\",IF(OR('TSA Input'!J491=\"Yes\",'TSA Input'!J491=\"Contingent\"),'TSA Input'!C491,\"\"))","v":""},{"$f":"IF('TSA Input'!J491=\"\",\"\",IF(OR('TSA Input'!J491=\"Yes\",'TSA Input'!J491=\"Contingent\"),'TSA Input'!D491,\"\"))","v":""},{"$f":"IF('TSA Input'!J491=\"\",\"\",IF(OR('TSA Input'!J491=\"Yes\",'TSA Input'!J491=\"Contingent\"),'TSA Input'!G491,\"\"))","v":""},{"$f":"IF('TSA Input'!J491=\"\",\"\",IF(OR('TSA Input'!J491=\"Yes\",'TSA Input'!J491=\"Contingent\"),'TSA Input'!F491,\"\"))","v":""},"",{"$f":"IF('TSA Input'!J491=\"\",\"\",IF(OR('TSA Input'!J491=\"Yes\",'TSA Input'!J491=\"Contingent\"),'TSA Input'!D491,\"\"))","v":""},{"$f":"IF('TSA Input'!J491=\"\",\"\",IF(OR('TSA Input'!J491=\"Yes\",'TSA Input'!J491=\"Contingent\"),'TSA Input'!G491,\"\"))","v":""},{"$f":"IF('TSA Input'!J491=\"\",\"\",IF(OR('TSA Input'!J491=\"Yes\",'TSA Input'!J491=\"Contingent\"),'TSA Input'!F491,\"\"))","v":""},"","Required","Required"]
["",null,{"$f":"IF('TSA Input'!J492=\"\",\"\",IF(OR('TSA Input'!J492=\"Yes\",'TSA Input'!J492=\"Contingent\"),'TSA Input'!B492,\"Ineligible\"))","v":""},{"$f":"IF('TSA Input'!J492=\"\",\"\",IF(OR('TSA Input'!J492=\"Yes\",'TSA Input'!J492=\"Contingent\"),'TSA Input'!I492,\"\"))","v":""},{"$f":"IF('TSA Input'!J492=\"\",\"\",IF(OR('TSA Input'!J492=\"Yes\",'TSA Input'!J492=\"Contingent\"),'TSA Input'!C492,\"\"))","v":""},{"$f":"IF('TSA Input'!J492=\"\",\"\",IF(OR('TSA Input'!J492=\"Yes\",'TSA Input'!J492=\"Contingent\"),'TSA Input'!D492,\"\"))","v":""},{"$f":"IF('TSA Input'!J492=\"\",\"\",IF(OR('TSA Input'!J492=\"Yes\",'TSA Input'!J492=\"Contingent\"),'TSA Input'!G492,\"\"))","v":""},{"$f":"IF('TSA Input'!J492=\"\",\"\",IF(OR('TSA Input'!J492=\"Yes\",'TSA Input'!J492=\"Contingent\"),'TSA Input'!F492,\"\"))","v":""},"",{"$f":"IF('TSA Input'!J492=\"\",\"\",IF(OR('TSA Input'!J492=\"Yes\",'TSA Input'!J492=\"Contingent\"),'TSA Input'!D492,\"\"))","v":""},{"$f":"IF('TSA Input'!J492=\"\",\"\",IF(OR('TSA Input'!J492=\"Yes\",'TSA Input'!J492=\"Contingent\"),'TSA Input'!G492,\"\"))","v":""},{"$f":"IF('TSA Input'!J492=\"\",\"\",IF(OR('TSA Input'!J492=\"Yes\",'TSA Input'!J492=\"Contingent\"),'TSA Input'!F492,\"\"))","v":""},"","Required","Required"]
["",null,{"$f":"IF('TSA Input'!J493=\"\",\"\",IF(OR('TSA Input'!J493=\"Yes\",'TSA Input'!J493=\"Contingent\"),'TSA Input'!B493,\"Ineligible\"))","v":""},{"$f":"IF('TSA Input'!J493=\"\",\"\",IF(OR('TSA Input'!J493=\"Yes\",'TSA Input'!J493=\"Contingent\"),'TSA Input'!I493,\"\"))","v":""},{"$f":"IF('TSA Input'!J493=\"\",\"\",IF(OR('TSA Input'!J493=\"Yes\",'TSA Input'!J493=\"Contingent\"),'TSA Input'!C493,\"\"))","v":""},{"$f":"IF('TSA Input'!J493=\"\",\"\",IF(OR('TSA Input'!J493=\"Yes\",'TSA Input'!J493=\"Contingent\"),'TSA Input'!D493,\"\"))","v":""},{"$f":"IF('TSA Input'!J493=\"\",\"\",IF(OR('TSA Input'!J493=\"Yes\",'TSA Input'!J493=\"Contingent\"),'TSA Input'!G493,\"\"))","v":""},{"$f":"IF('TSA Input'!J493=\"\",\"\",IF(OR('TSA Input'!J493=\"Yes\",'TSA Input'!J493=\"Contingent\"),'TSA Input'!F493,\"\"))","v":""},"",{"$f":"IF('TSA Input'!J493=\"\",\"\",IF(OR('TSA Input'!J493=\"Yes\",'TSA Input'!J493=\"Contingent\"),'TSA Input'!D493,\"\"))","v":""},{"$f":"IF('TSA Input'!J493=\"\",\"\",IF(OR('TSA Input'!J493=\"Yes\",'TSA Input'!J493=\"Contingent\"),'TSA Input'!G493,\"\"))","v":""},{"$f":"IF('TSA Input'!J493=\"\",\"\",IF(OR('TSA Input'!J493=\"Yes\",'TSA Input'!J493=\"Contingent\"),'TSA Input'!F493,\"\"))","v":""},"","Required","Required"]
["",null,{"$f":"IF('TSA Input'!J494=\"\",\"\",IF(OR('TSA Input'!J494=\"Yes\",'TSA Input'!J494=\"Contingent\"),'TSA Input'!B494,\"Ineligible\"))","v":""},{"$f":"IF('TSA Input'!J494=\"\",\"\",IF(OR('TSA Input'!J494=\"Yes\",'TSA Input'!J494=\"Contingent\"),'TSA Input'!I494,\"\"))","v":""},{"$f":"IF('TSA Input'!J494=\"\",\"\",IF(OR('TSA Input'!J494=\"Yes\",'TSA Input'!J494=\"Contingent\"),'TSA Input'!C494,\"\"))","v":""},{"$f":"IF('TSA Input'!J494=\"\",\"\",IF(OR('TSA Input'!J494=\"Yes\",'TSA Input'!J494=\"Contingent\"),'TSA Input'!D494,\"\"))","v":""},{"$f":"IF('TSA Input'!J494=\"\",\"\",IF(OR('TSA Input'!J494=\"Yes\",'TSA Input'!J494=\"Contingent\"),'TSA Input'!G494,\"\"))","v":""},{"$f":"IF('TSA Input'!J494=\"\",\"\",IF(OR('TSA Input'!J494=\"Yes\",'TSA Input'!J494=\"Contingent\"),'TSA Input'!F494,\"\"))","v":""},"",{"$f":"IF('TSA Input'!J494=\"\",\"\",IF(OR('TSA Input'!J494=\"Yes\",'TSA Input'!J494=\"Contingent\"),'TSA Input'!D494,\"\"))","v":""},{"$f":"IF('TSA Input'!J494=\"\",\"\",IF(OR('TSA Input'!J494=\"Yes\",'TSA Input'!J494=\"Contingent\"),'TSA Input'!G494,\"\"))","v":""},{"$f":"IF('TSA Input'!J494=\"\",\"\",IF(OR('TSA Input'!J494=\"Yes\",'TSA Input'!J494=\"Contingent\"),'TSA Input'!F494,\"\"))","v":""},"","Required","Required"]
["",null,{"$f":"IF('TSA Input'!J495=\"\",\"\",IF(OR('TSA Input'!J495=\"Yes\",'TSA Input'!J495=\"Contingent\"),'TSA Input'!B495,\"Ineligible\"))","v":""},{"$f":"IF('TSA Input'!J495=\"\",\"\",IF(OR('TSA Input'!J495=\"Yes\",'TSA Input'!J495=\"Contingent\"),'TSA Input'!I495,\"\"))","v":""},{"$f":"IF('TSA Input'!J495=\"\",\"\",IF(OR('TSA Input'!J495=\"Yes\",'TSA Input'!J495=\"Contingent\"),'TSA Input'!C495,\"\"))","v":""},{"$f":"IF('TSA Input'!J495=\"\",\"\",IF(OR('TSA Input'!J495=\"Yes\",'TSA Input'!J495=\"Contingent\"),'TSA Input'!D495,\"\"))","v":""},{"$f":"IF('TSA Input'!J495=\"\",\"\",IF(OR('TSA Input'!J495=\"Yes\",'TSA Input'!J495=\"Contingent\"),'TSA Input'!G495,\"\"))","v":""},{"$f":"IF('TSA Input'!J495=\"\",\"\",IF(OR('TSA Input'!J495=\"Yes\",'TSA Input'!J495=\"Contingent\"),'TSA Input'!F495,\"\"))","v":""},"",{"$f":"IF('TSA Input'!J495=\"\",\"\",IF(OR('TSA Input'!J495=\"Yes\",'TSA Input'!J495=\"Contingent\"),'TSA Input'!D495,\"\"))","v":""},{"$f":"IF('TSA Input'!J495=\"\",\"\",IF(OR('TSA Input'!J495=\"Yes\",'TSA Input'!J495=\"Contingent\"),'TSA Input'!G495,\"\"))","v":""},{"$f":"IF('TSA Input'!J495=\"\",\"\",IF(OR('TSA Input'!J495=\"Yes\",'TSA Input'!J495=\"Contingent\"),'TSA Input'!F495,\"\"))","v":""},"","Required","Required"]
["",null,{"$f":"IF('TSA Input'!J496=\"\",\"\",IF(OR('TSA Input'!J496=\"Yes\",'TSA Input'!J496=\"Contingent\"),'TSA Input'!B496,\"Ineligible\"))","v":""},{"$f":"IF('TSA Input'!J496=\"\",\"\",IF(OR('TSA Input'!J496=\"Yes\",'TSA Input'!J496=\"Contingent\"),'TSA Input'!I496,\"\"))","v":""},{"$f":"IF('TSA Input'!J496=\"\",\"\",IF(OR('TSA Input'!J496=\"Yes\",'TSA Input'!J496=\"Contingent\"),'TSA Input'!C496,\"\"))","v":""},{"$f":"IF('TSA Input'!J496=\"\",\"\",IF(OR('TSA Input'!J496=\"Yes\",'TSA Input'!J496=\"Contingent\"),'TSA Input'!D496,\"\"))","v":""},{"$f":"IF('TSA Input'!J496=\"\",\"\",IF(OR('TSA Input'!J496=\"Yes\",'TSA Input'!J496=\"Contingent\"),'TSA Input'!G496,\"\"))","v":""},{"$f":"IF('TSA Input'!J496=\"\",\"\",IF(OR('TSA Input'!J496=\"Yes\",'TSA Input'!J496=\"Contingent\"),'TSA Input'!F496,\"\"))","v":""},"",{"$f":"IF('TSA Input'!J496=\"\",\"\",IF(OR('TSA Input'!J496=\"Yes\",'TSA Input'!J496=\"Contingent\"),'TSA Input'!D496,\"\"))","v":""},{"$f":"IF('TSA Input'!J496=\"\",\"\",IF(OR('TSA Input'!J496=\"Yes\",'TSA Input'!J496=\"Contingent\"),'TSA Input'!G496,\"\"))","v":""},{"$f":"IF('TSA Input'!J496=\"\",\"\",IF(OR('TSA Input'!J496=\"Yes\",'TSA Input'!J496=\"Contingent\"),'TSA Input'!F496,\"\"))","v":""},"","Required","Required"]
["",null,{"$f":"IF('TSA Input'!J497=\"\",\"\",IF(OR('TSA Input'!J497=\"Yes\",'TSA Input'!J497=\"Contingent\"),'TSA Input'!B497,\"Ineligible\"))","v":""},{"$f":"IF('TSA Input'!J497=\"\",\"\",IF(OR('TSA Input'!J497=\"Yes\",'TSA Input'!J497=\"Contingent\"),'TSA Input'!I497,\"\"))","v":""},{"$f":"IF('TSA Input'!J497=\"\",\"\",IF(OR('TSA Input'!J497=\"Yes\",'TSA Input'!J497=\"Contingent\"),'TSA Input'!C497,\"\"))","v":""},{"$f":"IF('TSA Input'!J497=\"\",\"\",IF(OR('TSA Input'!J497=\"Yes\",'TSA Input'!J497=\"Contingent\"),'TSA Input'!D497,\"\"))","v":""},{"$f":"IF('TSA Input'!J497=\"\",\"\",IF(OR('TSA Input'!J497=\"Yes\",'TSA Input'!J497=\"Contingent\"),'TSA Input'!G497,\"\"))","v":""},{"$f":"IF('TSA Input'!J497=\"\",\"\",IF(OR('TSA Input'!J497=\"Yes\",'TSA Input'!J497=\"Contingent\"),'TSA Input'!F497,\"\"))","v":""},"",{"$f":"IF('TSA Input'!J497=\"\",\"\",IF(OR('TSA Input'!J497=\"Yes\",'TSA Input'!J497=\"Contingent\"),'TSA Input'!D497,\"\"))","v":""},{"$f":"IF('TSA Input'!J497=\"\",\"\",IF(OR('TSA Input'!J497=\"Yes\",'TSA Input'!J497=\"Contingent\"),'TSA Input'!G497,\"\"))","v":""},{"$f":"IF('TSA Input'!J497=\"\",\"\",IF(OR('TSA Input'!J497=\"Yes\",'TSA Input'!J497=\"Contingent\"),'TSA Input'!F497,\"\"))","v":""},"","Required","Required"]
["",null,{"$f":"IF('TSA Input'!J498=\"\",\"\",IF(OR('TSA Input'!J498=\"Yes\",'TSA Input'!J498=\"Contingent\"),'TSA Input'!B498,\"Ineligible\"))","v":""},{"$f":"IF('TSA Input'!J498=\"\",\"\",IF(OR('TSA Input'!J498=\"Yes\",'TSA Input'!J498=\"Contingent\"),'TSA Input'!I498,\"\"))","v":""},{"$f":"IF('TSA Input'!J498=\"\",\"\",IF(OR('TSA Input'!J498=\"Yes\",'TSA Input'!J498=\"Contingent\"),'TSA Input'!C498,\"\"))","v":""},{"$f":"IF('TSA Input'!J498=\"\",\"\",IF(OR('TSA Input'!J498=\"Yes\",'TSA Input'!J498=\"Contingent\"),'TSA Input'!D498,\"\"))","v":""},{"$f":"IF('TSA Input'!J498=\"\",\"\",IF(OR('TSA Input'!J498=\"Yes\",'TSA Input'!J498=\"Contingent\"),'TSA Input'!G498,\"\"))","v":""},{"$f":"IF('TSA Input'!J498=\"\",\"\",IF(OR('TSA Input'!J498=\"Yes\",'TSA Input'!J498=\"Contingent\"),'TSA Input'!F498,\"\"))","v":""},"",{"$f":"IF('TSA Input'!J498=\"\",\"\",IF(OR('TSA Input'!J498=\"Yes\",'TSA Input'!J498=\"Contingent\"),'TSA Input'!D498,\"\"))","v":""},{"$f":"IF('TSA Input'!J498=\"\",\"\",IF(OR('TSA Input'!J498=\"Yes\",'TSA Input'!J498=\"Contingent\"),'TSA Input'!G498,\"\"))","v":""},{"$f":"IF('TSA Input'!J498=\"\",\"\",IF(OR('TSA Input'!J498=\"Yes\",'TSA Input'!J498=\"Contingent\"),'TSA Input'!F498,\"\"))","v":""},"","Required","Required"]
["",null,{"$f":"IF('TSA Input'!J499=\"\",\"\",IF(OR('TSA Input'!J499=\"Yes\",'TSA Input'!J499=\"Contingent\"),'TSA Input'!B499,\"Ineligible\"))","v":""},{"$f":"IF('TSA Input'!J499=\"\",\"\",IF(OR('TSA Input'!J499=\"Yes\",'TSA Input'!J499=\"Contingent\"),'TSA Input'!I499,\"\"))","v":""},{"$f":"IF('TSA Input'!J499=\"\",\"\",IF(OR('TSA Input'!J499=\"Yes\",'TSA Input'!J499=\"Contingent\"),'TSA Input'!C499,\"\"))","v":""},{"$f":"IF('TSA Input'!J499=\"\",\"\",IF(OR('TSA Input'!J499=\"Yes\",'TSA Input'!J499=\"Contingent\"),'TSA Input'!D499,\"\"))","v":""},{"$f":"IF('TSA Input'!J499=\"\",\"\",IF(OR('TSA Input'!J499=\"Yes\",'TSA Input'!J499=\"Contingent\"),'TSA Input'!G499,\"\"))","v":""},{"$f":"IF('TSA Input'!J499=\"\",\"\",IF(OR('TSA Input'!J499=\"Yes\",'TSA Input'!J499=\"Contingent\"),'TSA Input'!F499,\"\"))","v":""},"",{"$f":"IF('TSA Input'!J499=\"\",\"\",IF(OR('TSA Input'!J499=\"Yes\",'TSA Input'!J499=\"Contingent\"),'TSA Input'!D499,\"\"))","v":""},{"$f":"IF('TSA Input'!J499=\"\",\"\",IF(OR('TSA Input'!J499=\"Yes\",'TSA Input'!J499=\"Contingent\"),'TSA Input'!G499,\"\"))","v":""},{"$f":"IF('TSA Input'!J499=\"\",\"\",IF(OR('TSA Input'!J499=\"Yes\",'TSA Input'!J499=\"Contingent\"),'TSA Input'!F499,\"\"))","v":""},"","Required","Required"]
["",null,{"$f":"IF('TSA Input'!J500=\"\",\"\",IF(OR('TSA Input'!J500=\"Yes\",'TSA Input'!J500=\"Contingent\"),'TSA Input'!B500,\"Ineligible\"))","v":""},{"$f":"IF('TSA Input'!J500=\"\",\"\",IF(OR('TSA Input'!J500=\"Yes\",'TSA Input'!J500=\"Contingent\"),'TSA Input'!I500,\"\"))","v":""},{"$f":"IF('TSA Input'!J500=\"\",\"\",IF(OR('TSA Input'!J500=\"Yes\",'TSA Input'!J500=\"Contingent\"),'TSA Input'!C500,\"\"))","v":""},{"$f":"IF('TSA Input'!J500=\"\",\"\",IF(OR('TSA Input'!J500=\"Yes\",'TSA Input'!J500=\"Contingent\"),'TSA Input'!D500,\"\"))","v":""},{"$f":"IF('TSA Input'!J500=\"\",\"\",IF(OR('TSA Input'!J500=\"Yes\",'TSA Input'!J500=\"Contingent\"),'TSA Input'!G500,\"\"))","v":""},{"$f":"IF('TSA Input'!J500=\"\",\"\",IF(OR('TSA Input'!J500=\"Yes\",'TSA Input'!J500=\"Contingent\"),'TSA Input'!F500,\"\"))","v":""},"",{"$f":"IF('TSA Input'!J500=\"\",\"\",IF(OR('TSA Input'!J500=\"Yes\",'TSA Input'!J500=\"Contingent\"),'TSA Input'!D500,\"\"))","v":""},{"$f":"IF('TSA Input'!J500=\"\",\"\",IF(OR('TSA Input'!J500=\"Yes\",'TSA Input'!J500=\"Contingent\"),'TSA Input'!G500,\"\"))","v":""},{"$f":"IF('TSA Input'!J500=\"\",\"\",IF(OR('TSA Input'!J500=\"Yes\",'TSA Input'!J500=\"Contingent\"),'TSA Input'!F500,\"\"))","v":""},"","Required","Required"]
["",null,{"$f":"IF('TSA Input'!J501=\"\",\"\",IF(OR('TSA Input'!J501=\"Yes\",'TSA Input'!J501=\"Contingent\"),'TSA Input'!B501,\"Ineligible\"))","v":""},{"$f":"IF('TSA Input'!J501=\"\",\"\",IF(OR('TSA Input'!J501=\"Yes\",'TSA Input'!J501=\"Contingent\"),'TSA Input'!I501,\"\"))","v":""},{"$f":"IF('TSA Input'!J501=\"\",\"\",IF(OR('TSA Input'!J501=\"Yes\",'TSA Input'!J501=\"Contingent\"),'TSA Input'!C501,\"\"))","v":""},{"$f":"IF('TSA Input'!J501=\"\",\"\",IF(OR('TSA Input'!J501=\"Yes\",'TSA Input'!J501=\"Contingent\"),'TSA Input'!D501,\"\"))","v":""},{"$f":"IF('TSA Input'!J501=\"\",\"\",IF(OR('TSA Input'!J501=\"Yes\",'TSA Input'!J501=\"Contingent\"),'TSA Input'!G501,\"\"))","v":""},{"$f":"IF('TSA Input'!J501=\"\",\"\",IF(OR('TSA Input'!J501=\"Yes\",'TSA Input'!J501=\"Contingent\"),'TSA Input'!F501,\"\"))","v":""},"",{"$f":"IF('TSA Input'!J501=\"\",\"\",IF(OR('TSA Input'!J501=\"Yes\",'TSA Input'!J501=\"Contingent\"),'TSA Input'!D501,\"\"))","v":""},{"$f":"IF('TSA Input'!J501=\"\",\"\",IF(OR('TSA Input'!J501=\"Yes\",'TSA Input'!J501=\"Contingent\"),'TSA Input'!G501,\"\"))","v":""},{"$f":"IF('TSA Input'!J501=\"\",\"\",IF(OR('TSA Input'!J501=\"Yes\",'TSA Input'!J501=\"Contingent\"),'TSA Input'!F501,\"\"))","v":""},"","Required","Required"]
["",null,{"$f":"IF('TSA Input'!J502=\"\",\"\",IF(OR('TSA Input'!J502=\"Yes\",'TSA Input'!J502=\"Contingent\"),'TSA Input'!B502,\"Ineligible\"))","v":""},{"$f":"IF('TSA Input'!J502=\"\",\"\",IF(OR('TSA Input'!J502=\"Yes\",'TSA Input'!J502=\"Contingent\"),'TSA Input'!I502,\"\"))","v":""},{"$f":"IF('TSA Input'!J502=\"\",\"\",IF(OR('TSA Input'!J502=\"Yes\",'TSA Input'!J502=\"Contingent\"),'TSA Input'!C502,\"\"))","v":""},{"$f":"IF('TSA Input'!J502=\"\",\"\",IF(OR('TSA Input'!J502=\"Yes\",'TSA Input'!J502=\"Contingent\"),'TSA Input'!D502,\"\"))","v":""},{"$f":"IF('TSA Input'!J502=\"\",\"\",IF(OR('TSA Input'!J502=\"Yes\",'TSA Input'!J502=\"Contingent\"),'TSA Input'!G502,\"\"))","v":""},{"$f":"IF('TSA Input'!J502=\"\",\"\",IF(OR('TSA Input'!J502=\"Yes\",'TSA Input'!J502=\"Contingent\"),'TSA Input'!F502,\"\"))","v":""},"",{"$f":"IF('TSA Input'!J502=\"\",\"\",IF(OR('TSA Input'!J502=\"Yes\",'TSA Input'!J502=\"Contingent\"),'TSA Input'!D502,\"\"))","v":""},{"$f":"IF('TSA Input'!J502=\"\",\"\",IF(OR('TSA Input'!J502=\"Yes\",'TSA Input'!J502=\"Contingent\"),'TSA Input'!G502,\"\"))","v":""},{"$f":"IF('TSA Input'!J502=\"\",\"\",IF(OR('TSA Input'!J502=\"Yes\",'TSA Input'!J502=\"Contingent\"),'TSA Input'!F502,\"\"))","v":""},"","Required","Required"]
["",null,{"$f":"IF('TSA Input'!J503=\"\",\"\",IF(OR('TSA Input'!J503=\"Yes\",'TSA Input'!J503=\"Contingent\"),'TSA Input'!B503,\"Ineligible\"))","v":""},{"$f":"IF('TSA Input'!J503=\"\",\"\",IF(OR('TSA Input'!J503=\"Yes\",'TSA Input'!J503=\"Contingent\"),'TSA Input'!I503,\"\"))","v":""},{"$f":"IF('TSA Input'!J503=\"\",\"\",IF(OR('TSA Input'!J503=\"Yes\",'TSA Input'!J503=\"Contingent\"),'TSA Input'!C503,\"\"))","v":""},{"$f":"IF('TSA Input'!J503=\"\",\"\",IF(OR('TSA Input'!J503=\"Yes\",'TSA Input'!J503=\"Contingent\"),'TSA Input'!D503,\"\"))","v":""},{"$f":"IF('TSA Input'!J503=\"\",\"\",IF(OR('TSA Input'!J503=\"Yes\",'TSA Input'!J503=\"Contingent\"),'TSA Input'!G503,\"\"))","v":""},{"$f":"IF('TSA Input'!J503=\"\",\"\",IF(OR('TSA Input'!J503=\"Yes\",'TSA Input'!J503=\"Contingent\"),'TSA Input'!F503,\"\"))","v":""},"",{"$f":"IF('TSA Input'!J503=\"\",\"\",IF(OR('TSA Input'!J503=\"Yes\",'TSA Input'!J503=\"Contingent\"),'TSA Input'!D503,\"\"))","v":""},{"$f":"IF('TSA Input'!J503=\"\",\"\",IF(OR('TSA Input'!J503=\"Yes\",'TSA Input'!J503=\"Contingent\"),'TSA Input'!G503,\"\"))","v":""},{"$f":"IF('TSA Input'!J503=\"\",\"\",IF(OR('TSA Input'!J503=\"Yes\",'TSA Input'!J503=\"Contingent\"),'TSA Input'!F503,\"\"))","v":""},"","Required","Required"]
["",null,{"$f":"IF('TSA Input'!J504=\"\",\"\",IF(OR('TSA Input'!J504=\"Yes\",'TSA Input'!J504=\"Contingent\"),'TSA Input'!B504,\"Ineligible\"))","v":""},{"$f":"IF('TSA Input'!J504=\"\",\"\",IF(OR('TSA Input'!J504=\"Yes\",'TSA Input'!J504=\"Contingent\"),'TSA Input'!I504,\"\"))","v":""},{"$f":"IF('TSA Input'!J504=\"\",\"\",IF(OR('TSA Input'!J504=\"Yes\",'TSA Input'!J504=\"Contingent\"),'TSA Input'!C504,\"\"))","v":""},{"$f":"IF('TSA Input'!J504=\"\",\"\",IF(OR('TSA Input'!J504=\"Yes\",'TSA Input'!J504=\"Contingent\"),'TSA Input'!D504,\"\"))","v":""},{"$f":"IF('TSA Input'!J504=\"\",\"\",IF(OR('TSA Input'!J504=\"Yes\",'TSA Input'!J504=\"Contingent\"),'TSA Input'!G504,\"\"))","v":""},{"$f":"IF('TSA Input'!J504=\"\",\"\",IF(OR('TSA Input'!J504=\"Yes\",'TSA Input'!J504=\"Contingent\"),'TSA Input'!F504,\"\"))","v":""},"",{"$f":"IF('TSA Input'!J504=\"\",\"\",IF(OR('TSA Input'!J504=\"Yes\",'TSA Input'!J504=\"Contingent\"),'TSA Input'!D504,\"\"))","v":""},{"$f":"IF('TSA Input'!J504=\"\",\"\",IF(OR('TSA Input'!J504=\"Yes\",'TSA Input'!J504=\"Contingent\"),'TSA Input'!G504,\"\"))","v":""},{"$f":"IF('TSA Input'!J504=\"\",\"\",IF(OR('TSA Input'!J504=\"Yes\",'TSA Input'!J504=\"Contingent\"),'TSA Input'!F504,\"\"))","v":""},"","Required","Required"]
["",null,{"$f":"IF('TSA Input'!J505=\"\",\"\",IF(OR('TSA Input'!J505=\"Yes\",'TSA Input'!J505=\"Contingent\"),'TSA Input'!B505,\"Ineligible\"))","v":""},{"$f":"IF('TSA Input'!J505=\"\",\"\",IF(OR('TSA Input'!J505=\"Yes\",'TSA Input'!J505=\"Contingent\"),'TSA Input'!I505,\"\"))","v":""},{"$f":"IF('TSA Input'!J505=\"\",\"\",IF(OR('TSA Input'!J505=\"Yes\",'TSA Input'!J505=\"Contingent\"),'TSA Input'!C505,\"\"))","v":""},{"$f":"IF('TSA Input'!J505=\"\",\"\",IF(OR('TSA Input'!J505=\"Yes\",'TSA Input'!J505=\"Contingent\"),'TSA Input'!D505,\"\"))","v":""},{"$f":"IF('TSA Input'!J505=\"\",\"\",IF(OR('TSA Input'!J505=\"Yes\",'TSA Input'!J505=\"Contingent\"),'TSA Input'!G505,\"\"))","v":""},{"$f":"IF('TSA Input'!J505=\"\",\"\",IF(OR('TSA Input'!J505=\"Yes\",'TSA Input'!J505=\"Contingent\"),'TSA Input'!F505,\"\"))","v":""},"",{"$f":"IF('TSA Input'!J505=\"\",\"\",IF(OR('TSA Input'!J505=\"Yes\",'TSA Input'!J505=\"Contingent\"),'TSA Input'!D505,\"\"))","v":""},{"$f":"IF('TSA Input'!J505=\"\",\"\",IF(OR('TSA Input'!J505=\"Yes\",'TSA Input'!J505=\"Contingent\"),'TSA Input'!G505,\"\"))","v":""},{"$f":"IF('TSA Input'!J505=\"\",\"\",IF(OR('TSA Input'!J505=\"Yes\",'TSA Input'!J505=\"Contingent\"),'TSA Input'!F505,\"\"))","v":""},"","Required","Required"]
["",null,{"$f":"IF('TSA Input'!J506=\"\",\"\",IF(OR('TSA Input'!J506=\"Yes\",'TSA Input'!J506=\"Contingent\"),'TSA Input'!B506,\"Ineligible\"))","v":""},{"$f":"IF('TSA Input'!J506=\"\",\"\",IF(OR('TSA Input'!J506=\"Yes\",'TSA Input'!J506=\"Contingent\"),'TSA Input'!I506,\"\"))","v":""},{"$f":"IF('TSA Input'!J506=\"\",\"\",IF(OR('TSA Input'!J506=\"Yes\",'TSA Input'!J506=\"Contingent\"),'TSA Input'!C506,\"\"))","v":""},{"$f":"IF('TSA Input'!J506=\"\",\"\",IF(OR('TSA Input'!J506=\"Yes\",'TSA Input'!J506=\"Contingent\"),'TSA Input'!D506,\"\"))","v":""},{"$f":"IF('TSA Input'!J506=\"\",\"\",IF(OR('TSA Input'!J506=\"Yes\",'TSA Input'!J506=\"Contingent\"),'TSA Input'!G506,\"\"))","v":""},{"$f":"IF('TSA Input'!J506=\"\",\"\",IF(OR('TSA Input'!J506=\"Yes\",'TSA Input'!J506=\"Contingent\"),'TSA Input'!F506,\"\"))","v":""},"",{"$f":"IF('TSA Input'!J506=\"\",\"\",IF(OR('TSA Input'!J506=\"Yes\",'TSA Input'!J506=\"Contingent\"),'TSA Input'!D506,\"\"))","v":""},{"$f":"IF('TSA Input'!J506=\"\",\"\",IF(OR('TSA Input'!J506=\"Yes\",'TSA Input'!J506=\"Contingent\"),'TSA Input'!G506,\"\"))","v":""},{"$f":"IF('TSA Input'!J506=\"\",\"\",IF(OR('TSA Input'!J506=\"Yes\",'TSA Input'!J506=\"Contingent\"),'TSA Input'!F506,\"\"))","v":""},"","Required","Required"]
["",null,{"$f":"IF('TSA Input'!J507=\"\",\"\",IF(OR('TSA Input'!J507=\"Yes\",'TSA Input'!J507=\"Contingent\"),'TSA Input'!B507,\"Ineligible\"))","v":""},{"$f":"IF('TSA Input'!J507=\"\",\"\",IF(OR('TSA Input'!J507=\"Yes\",'TSA Input'!J507=\"Contingent\"),'TSA Input'!I507,\"\"))","v":""},{"$f":"IF('TSA Input'!J507=\"\",\"\",IF(OR('TSA Input'!J507=\"Yes\",'TSA Input'!J507=\"Contingent\"),'TSA Input'!C507,\"\"))","v":""},{"$f":"IF('TSA Input'!J507=\"\",\"\",IF(OR('TSA Input'!J507=\"Yes\",'TSA Input'!J507=\"Contingent\"),'TSA Input'!D507,\"\"))","v":""},{"$f":"IF('TSA Input'!J507=\"\",\"\",IF(OR('TSA Input'!J507=\"Yes\",'TSA Input'!J507=\"Contingent\"),'TSA Input'!G507,\"\"))","v":""},{"$f":"IF('TSA Input'!J507=\"\",\"\",IF(OR('TSA Input'!J507=\"Yes\",'TSA Input'!J507=\"Contingent\"),'TSA Input'!F507,\"\"))","v":""},"",{"$f":"IF('TSA Input'!J507=\"\",\"\",IF(OR('TSA Input'!J507=\"Yes\",'TSA Input'!J507=\"Contingent\"),'TSA Input'!D507,\"\"))","v":""},{"$f":"IF('TSA Input'!J507=\"\",\"\",IF(OR('TSA Input'!J507=\"Yes\",'TSA Input'!J507=\"Contingent\"),'TSA Input'!G507,\"\"))","v":""},{"$f":"IF('TSA Input'!J507=\"\",\"\",IF(OR('TSA Input'!J507=\"Yes\",'TSA Input'!J507=\"Contingent\"),'TSA Input'!F507,\"\"))","v":""},"","Required","Required"]
["",null,{"$f":"IF('TSA Input'!J508=\"\",\"\",IF(OR('TSA Input'!J508=\"Yes\",'TSA Input'!J508=\"Contingent\"),'TSA Input'!B508,\"Ineligible\"))","v":""},{"$f":"IF('TSA Input'!J508=\"\",\"\",IF(OR('TSA Input'!J508=\"Yes\",'TSA Input'!J508=\"Contingent\"),'TSA Input'!I508,\"\"))","v":""},{"$f":"IF('TSA Input'!J508=\"\",\"\",IF(OR('TSA Input'!J508=\"Yes\",'TSA Input'!J508=\"Contingent\"),'TSA Input'!C508,\"\"))","v":""},{"$f":"IF('TSA Input'!J508=\"\",\"\",IF(OR('TSA Input'!J508=\"Yes\",'TSA Input'!J508=\"Contingent\"),'TSA Input'!D508,\"\"))","v":""},{"$f":"IF('TSA Input'!J508=\"\",\"\",IF(OR('TSA Input'!J508=\"Yes\",'TSA Input'!J508=\"Contingent\"),'TSA Input'!G508,\"\"))","v":""},{"$f":"IF('TSA Input'!J508=\"\",\"\",IF(OR('TSA Input'!J508=\"Yes\",'TSA Input'!J508=\"Contingent\"),'TSA Input'!F508,\"\"))","v":""},"",{"$f":"IF('TSA Input'!J508=\"\",\"\",IF(OR('TSA Input'!J508=\"Yes\",'TSA Input'!J508=\"Contingent\"),'TSA Input'!D508,\"\"))","v":""},{"$f":"IF('TSA Input'!J508=\"\",\"\",IF(OR('TSA Input'!J508=\"Yes\",'TSA Input'!J508=\"Contingent\"),'TSA Input'!G508,\"\"))","v":""},{"$f":"IF('TSA Input'!J508=\"\",\"\",IF(OR('TSA Input'!J508=\"Yes\",'TSA Input'!J508=\"Contingent\"),'TSA Input'!F508,\"\"))","v":""},"","Required","Required"]
["",null,{"$f":"IF('TSA Input'!J509=\"\",\"\",IF(OR('TSA Input'!J509=\"Yes\",'TSA Input'!J509=\"Contingent\"),'TSA Input'!B509,\"Ineligible\"))","v":""},{"$f":"IF('TSA Input'!J509=\"\",\"\",IF(OR('TSA Input'!J509=\"Yes\",'TSA Input'!J509=\"Contingent\"),'TSA Input'!I509,\"\"))","v":""},{"$f":"IF('TSA Input'!J509=\"\",\"\",IF(OR('TSA Input'!J509=\"Yes\",'TSA Input'!J509=\"Contingent\"),'TSA Input'!C509,\"\"))","v":""},{"$f":"IF('TSA Input'!J509=\"\",\"\",IF(OR('TSA Input'!J509=\"Yes\",'TSA Input'!J509=\"Contingent\"),'TSA Input'!D509,\"\"))","v":""},{"$f":"IF('TSA Input'!J509=\"\",\"\",IF(OR('TSA Input'!J509=\"Yes\",'TSA Input'!J509=\"Contingent\"),'TSA Input'!G509,\"\"))","v":""},{"$f":"IF('TSA Input'!J509=\"\",\"\",IF(OR('TSA Input'!J509=\"Yes\",'TSA Input'!J509=\"Contingent\"),'TSA Input'!F509,\"\"))","v":""},"",{"$f":"IF('TSA Input'!J509=\"\",\"\",IF(OR('TSA Input'!J509=\"Yes\",'TSA Input'!J509=\"Contingent\"),'TSA Input'!D509,\"\"))","v":""},{"$f":"IF('TSA Input'!J509=\"\",\"\",IF(OR('TSA Input'!J509=\"Yes\",'TSA Input'!J509=\"Contingent\"),'TSA Input'!G509,\"\"))","v":""},{"$f":"IF('TSA Input'!J509=\"\",\"\",IF(OR('TSA Input'!J509=\"Yes\",'TSA Input'!J509=\"Contingent\"),'TSA Input'!F509,\"\"))","v":""},"","Required","Required"]
["",null,{"$f":"IF('TSA Input'!J510=\"\",\"\",IF(OR('TSA Input'!J510=\"Yes\",'TSA Input'!J510=\"Contingent\"),'TSA Input'!B510,\"Ineligible\"))","v":""},{"$f":"IF('TSA Input'!J510=\"\",\"\",IF(OR('TSA Input'!J510=\"Yes\",'TSA Input'!J510=\"Contingent\"),'TSA Input'!I510,\"\"))","v":""},{"$f":"IF('TSA Input'!J510=\"\",\"\",IF(OR('TSA Input'!J510=\"Yes\",'TSA Input'!J510=\"Contingent\"),'TSA Input'!C510,\"\"))","v":""},{"$f":"IF('TSA Input'!J510=\"\",\"\",IF(OR('TSA Input'!J510=\"Yes\",'TSA Input'!J510=\"Contingent\"),'TSA Input'!D510,\"\"))","v":""},{"$f":"IF('TSA Input'!J510=\"\",\"\",IF(OR('TSA Input'!J510=\"Yes\",'TSA Input'!J510=\"Contingent\"),'TSA Input'!G510,\"\"))","v":""},{"$f":"IF('TSA Input'!J510=\"\",\"\",IF(OR('TSA Input'!J510=\"Yes\",'TSA Input'!J510=\"Contingent\"),'TSA Input'!F510,\"\"))","v":""},"",{"$f":"IF('TSA Input'!J510=\"\",\"\",IF(OR('TSA Input'!J510=\"Yes\",'TSA Input'!J510=\"Contingent\"),'TSA Input'!D510,\"\"))","v":""},{"$f":"IF('TSA Input'!J510=\"\",\"\",IF(OR('TSA Input'!J510=\"Yes\",'TSA Input'!J510=\"Contingent\"),'TSA Input'!G510,\"\"))","v":""},{"$f":"IF('TSA Input'!J510=\"\",\"\",IF(OR('TSA Input'!J510=\"Yes\",'TSA Input'!J510=\"Contingent\"),'TSA Input'!F510,\"\"))","v":""},"","Required","Required"]
["",null,{"$f":"IF('TSA Input'!J511=\"\",\"\",IF(OR('TSA Input'!J511=\"Yes\",'TSA Input'!J511=\"Contingent\"),'TSA Input'!B511,\"Ineligible\"))","v":""},{"$f":"IF('TSA Input'!J511=\"\",\"\",IF(OR('TSA Input'!J511=\"Yes\",'TSA Input'!J511=\"Contingent\"),'TSA Input'!I511,\"\"))","v":""},{"$f":"IF('TSA Input'!J511=\"\",\"\",IF(OR('TSA Input'!J511=\"Yes\",'TSA Input'!J511=\"Contingent\"),'TSA Input'!C511,\"\"))","v":""},{"$f":"IF('TSA Input'!J511=\"\",\"\",IF(OR('TSA Input'!J511=\"Yes\",'TSA Input'!J511=\"Contingent\"),'TSA Input'!D511,\"\"))","v":""},{"$f":"IF('TSA Input'!J511=\"\",\"\",IF(OR('TSA Input'!J511=\"Yes\",'TSA Input'!J511=\"Contingent\"),'TSA Input'!G511,\"\"))","v":""},{"$f":"IF('TSA Input'!J511=\"\",\"\",IF(OR('TSA Input'!J511=\"Yes\",'TSA Input'!J511=\"Contingent\"),'TSA Input'!F511,\"\"))","v":""},"",{"$f":"IF('TSA Input'!J511=\"\",\"\",IF(OR('TSA Input'!J511=\"Yes\",'TSA Input'!J511=\"Contingent\"),'TSA Input'!D511,\"\"))","v":""},{"$f":"IF('TSA Input'!J511=\"\",\"\",IF(OR('TSA Input'!J511=\"Yes\",'TSA Input'!J511=\"Contingent\"),'TSA Input'!G511,\"\"))","v":""},{"$f":"IF('TSA Input'!J511=\"\",\"\",IF(OR('TSA Input'!J511=\"Yes\",'TSA Input'!J511=\"Contingent\"),'TSA Input'!F511,\"\"))","v":""},"","Required","Required"]
["",null,{"$f":"IF('TSA Input'!J512=\"\",\"\",IF(OR('TSA Input'!J512=\"Yes\",'TSA Input'!J512=\"Contingent\"),'TSA Input'!B512,\"Ineligible\"))","v":""},{"$f":"IF('TSA Input'!J512=\"\",\"\",IF(OR('TSA Input'!J512=\"Yes\",'TSA Input'!J512=\"Contingent\"),'TSA Input'!I512,\"\"))","v":""},{"$f":"IF('TSA Input'!J512=\"\",\"\",IF(OR('TSA Input'!J512=\"Yes\",'TSA Input'!J512=\"Contingent\"),'TSA Input'!C512,\"\"))","v":""},{"$f":"IF('TSA Input'!J512=\"\",\"\",IF(OR('TSA Input'!J512=\"Yes\",'TSA Input'!J512=\"Contingent\"),'TSA Input'!D512,\"\"))","v":""},{"$f":"IF('TSA Input'!J512=\"\",\"\",IF(OR('TSA Input'!J512=\"Yes\",'TSA Input'!J512=\"Contingent\"),'TSA Input'!G512,\"\"))","v":""},{"$f":"IF('TSA Input'!J512=\"\",\"\",IF(OR('TSA Input'!J512=\"Yes\",'TSA Input'!J512=\"Contingent\"),'TSA Input'!F512,\"\"))","v":""},"",{"$f":"IF('TSA Input'!J512=\"\",\"\",IF(OR('TSA Input'!J512=\"Yes\",'TSA Input'!J512=\"Contingent\"),'TSA Input'!D512,\"\"))","v":""},{"$f":"IF('TSA Input'!J512=\"\",\"\",IF(OR('TSA Input'!J512=\"Yes\",'TSA Input'!J512=\"Contingent\"),'TSA Input'!G512,\"\"))","v":""},{"$f":"IF('TSA Input'!J512=\"\",\"\",IF(OR('TSA Input'!J512=\"Yes\",'TSA Input'!J512=\"Contingent\"),'TSA Input'!F512,\"\"))","v":""},"","Required","Required"]
["",null,{"$f":"IF('TSA Input'!J513=\"\",\"\",IF(OR('TSA Input'!J513=\"Yes\",'TSA Input'!J513=\"Contingent\"),'TSA Input'!B513,\"Ineligible\"))","v":""},{"$f":"IF('TSA Input'!J513=\"\",\"\",IF(OR('TSA Input'!J513=\"Yes\",'TSA Input'!J513=\"Contingent\"),'TSA Input'!I513,\"\"))","v":""},{"$f":"IF('TSA Input'!J513=\"\",\"\",IF(OR('TSA Input'!J513=\"Yes\",'TSA Input'!J513=\"Contingent\"),'TSA Input'!C513,\"\"))","v":""},{"$f":"IF('TSA Input'!J513=\"\",\"\",IF(OR('TSA Input'!J513=\"Yes\",'TSA Input'!J513=\"Contingent\"),'TSA Input'!D513,\"\"))","v":""},{"$f":"IF('TSA Input'!J513=\"\",\"\",IF(OR('TSA Input'!J513=\"Yes\",'TSA Input'!J513=\"Contingent\"),'TSA Input'!G513,\"\"))","v":""},{"$f":"IF('TSA Input'!J513=\"\",\"\",IF(OR('TSA Input'!J513=\"Yes\",'TSA Input'!J513=\"Contingent\"),'TSA Input'!F513,\"\"))","v":""},"",{"$f":"IF('TSA Input'!J513=\"\",\"\",IF(OR('TSA Input'!J513=\"Yes\",'TSA Input'!J513=\"Contingent\"),'TSA Input'!D513,\"\"))","v":""},{"$f":"IF('TSA Input'!J513=\"\",\"\",IF(OR('TSA Input'!J513=\"Yes\",'TSA Input'!J513=\"Contingent\"),'TSA Input'!G513,\"\"))","v":""},{"$f":"IF('TSA Input'!J513=\"\",\"\",IF(OR('TSA Input'!J513=\"Yes\",'TSA Input'!J513=\"Contingent\"),'TSA Input'!F513,\"\"))","v":""},"","Required","Required"]
["",null,{"$f":"IF('TSA Input'!J514=\"\",\"\",IF(OR('TSA Input'!J514=\"Yes\",'TSA Input'!J514=\"Contingent\"),'TSA Input'!B514,\"Ineligible\"))","v":""},{"$f":"IF('TSA Input'!J514=\"\",\"\",IF(OR('TSA Input'!J514=\"Yes\",'TSA Input'!J514=\"Contingent\"),'TSA Input'!I514,\"\"))","v":""},{"$f":"IF('TSA Input'!J514=\"\",\"\",IF(OR('TSA Input'!J514=\"Yes\",'TSA Input'!J514=\"Contingent\"),'TSA Input'!C514,\"\"))","v":""},{"$f":"IF('TSA Input'!J514=\"\",\"\",IF(OR('TSA Input'!J514=\"Yes\",'TSA Input'!J514=\"Contingent\"),'TSA Input'!D514,\"\"))","v":""},{"$f":"IF('TSA Input'!J514=\"\",\"\",IF(OR('TSA Input'!J514=\"Yes\",'TSA Input'!J514=\"Contingent\"),'TSA Input'!G514,\"\"))","v":""},{"$f":"IF('TSA Input'!J514=\"\",\"\",IF(OR('TSA Input'!J514=\"Yes\",'TSA Input'!J514=\"Contingent\"),'TSA Input'!F514,\"\"))","v":""},"",{"$f":"IF('TSA Input'!J514=\"\",\"\",IF(OR('TSA Input'!J514=\"Yes\",'TSA Input'!J514=\"Contingent\"),'TSA Input'!D514,\"\"))","v":""},{"$f":"IF('TSA Input'!J514=\"\",\"\",IF(OR('TSA Input'!J514=\"Yes\",'TSA Input'!J514=\"Contingent\"),'TSA Input'!G514,\"\"))","v":""},{"$f":"IF('TSA Input'!J514=\"\",\"\",IF(OR('TSA Input'!J514=\"Yes\",'TSA Input'!J514=\"Contingent\"),'TSA Input'!F514,\"\"))","v":""},"","Required","Required"]
["",null,{"$f":"IF('TSA Input'!J515=\"\",\"\",IF(OR('TSA Input'!J515=\"Yes\",'TSA Input'!J515=\"Contingent\"),'TSA Input'!B515,\"Ineligible\"))","v":""},{"$f":"IF('TSA Input'!J515=\"\",\"\",IF(OR('TSA Input'!J515=\"Yes\",'TSA Input'!J515=\"Contingent\"),'TSA Input'!I515,\"\"))","v":""},{"$f":"IF('TSA Input'!J515=\"\",\"\",IF(OR('TSA Input'!J515=\"Yes\",'TSA Input'!J515=\"Contingent\"),'TSA Input'!C515,\"\"))","v":""},{"$f":"IF('TSA Input'!J515=\"\",\"\",IF(OR('TSA Input'!J515=\"Yes\",'TSA Input'!J515=\"Contingent\"),'TSA Input'!D515,\"\"))","v":""},{"$f":"IF('TSA Input'!J515=\"\",\"\",IF(OR('TSA Input'!J515=\"Yes\",'TSA Input'!J515=\"Contingent\"),'TSA Input'!G515,\"\"))","v":""},{"$f":"IF('TSA Input'!J515=\"\",\"\",IF(OR('TSA Input'!J515=\"Yes\",'TSA Input'!J515=\"Contingent\"),'TSA Input'!F515,\"\"))","v":""},"",{"$f":"IF('TSA Input'!J515=\"\",\"\",IF(OR('TSA Input'!J515=\"Yes\",'TSA Input'!J515=\"Contingent\"),'TSA Input'!D515,\"\"))","v":""},{"$f":"IF('TSA Input'!J515=\"\",\"\",IF(OR('TSA Input'!J515=\"Yes\",'TSA Input'!J515=\"Contingent\"),'TSA Input'!G515,\"\"))","v":""},{"$f":"IF('TSA Input'!J515=\"\",\"\",IF(OR('TSA Input'!J515=\"Yes\",'TSA Input'!J515=\"Contingent\"),'TSA Input'!F515,\"\"))","v":""},"","Required","Required"]
["",null,{"$f":"IF('TSA Input'!J516=\"\",\"\",IF(OR('TSA Input'!J516=\"Yes\",'TSA Input'!J516=\"Contingent\"),'TSA Input'!B516,\"Ineligible\"))","v":""},{"$f":"IF('TSA Input'!J516=\"\",\"\",IF(OR('TSA Input'!J516=\"Yes\",'TSA Input'!J516=\"Contingent\"),'TSA Input'!I516,\"\"))","v":""},{"$f":"IF('TSA Input'!J516=\"\",\"\",IF(OR('TSA Input'!J516=\"Yes\",'TSA Input'!J516=\"Contingent\"),'TSA Input'!C516,\"\"))","v":""},{"$f":"IF('TSA Input'!J516=\"\",\"\",IF(OR('TSA Input'!J516=\"Yes\",'TSA Input'!J516=\"Contingent\"),'TSA Input'!D516,\"\"))","v":""},{"$f":"IF('TSA Input'!J516=\"\",\"\",IF(OR('TSA Input'!J516=\"Yes\",'TSA Input'!J516=\"Contingent\"),'TSA Input'!G516,\"\"))","v":""},{"$f":"IF('TSA Input'!J516=\"\",\"\",IF(OR('TSA Input'!J516=\"Yes\",'TSA Input'!J516=\"Contingent\"),'TSA Input'!F516,\"\"))","v":""},{"$f":"IF($C554=\"\",\"\",SUM(F554:H554))","v":""},{"$f":"IF('TSA Input'!J516=\"\",\"\",IF(OR('TSA Input'!J516=\"Yes\",'TSA Input'!J516=\"Contingent\"),'TSA Input'!D516,\"\"))","v":""},{"$f":"IF('TSA Input'!J516=\"\",\"\",IF(OR('TSA Input'!J516=\"Yes\",'TSA Input'!J516=\"Contingent\"),'TSA Input'!G516,\"\"))","v":""},{"$f":"IF('TSA Input'!J516=\"\",\"\",IF(OR('TSA Input'!J516=\"Yes\",'TSA Input'!J516=\"Contingent\"),'TSA Input'!F516,\"\"))","v":""},{"$f":"IF($C554=\"\",\"\",SUM(J554:L554))","v":""},"Required","Required"]
["",null,{"$f":"IF('TSA Input'!J517=\"\",\"\",IF(OR('TSA Input'!J517=\"Yes\",'TSA Input'!J517=\"Contingent\"),'TSA Input'!B517,\"Ineligible\"))","v":""},{"$f":"IF('TSA Input'!J517=\"\",\"\",IF(OR('TSA Input'!J517=\"Yes\",'TSA Input'!J517=\"Contingent\"),'TSA Input'!I517,\"\"))","v":""},{"$f":"IF('TSA Input'!J517=\"\",\"\",IF(OR('TSA Input'!J517=\"Yes\",'TSA Input'!J517=\"Contingent\"),'TSA Input'!C517,\"\"))","v":""},{"$f":"IF('TSA Input'!J517=\"\",\"\",IF(OR('TSA Input'!J517=\"Yes\",'TSA Input'!J517=\"Contingent\"),'TSA Input'!D517,\"\"))","v":""},{"$f":"IF('TSA Input'!J517=\"\",\"\",IF(OR('TSA Input'!J517=\"Yes\",'TSA Input'!J517=\"Contingent\"),'TSA Input'!G517,\"\"))","v":""},{"$f":"IF('TSA Input'!J517=\"\",\"\",IF(OR('TSA Input'!J517=\"Yes\",'TSA Input'!J517=\"Contingent\"),'TSA Input'!F517,\"\"))","v":""},"",{"$f":"IF('TSA Input'!J517=\"\",\"\",IF(OR('TSA Input'!J517=\"Yes\",'TSA Input'!J517=\"Contingent\"),'TSA Input'!D517,\"\"))","v":""},{"$f":"IF('TSA Input'!J517=\"\",\"\",IF(OR('TSA Input'!J517=\"Yes\",'TSA Input'!J517=\"Contingent\"),'TSA Input'!G517,\"\"))","v":""},{"$f":"IF('TSA Input'!J517=\"\",\"\",IF(OR('TSA Input'!J517=\"Yes\",'TSA Input'!J517=\"Contingent\"),'TSA Input'!F517,\"\"))","v":""},"","Required","Required"]
["",null,{"$f":"IF('TSA Input'!J518=\"\",\"\",IF(OR('TSA Input'!J518=\"Yes\",'TSA Input'!J518=\"Contingent\"),'TSA Input'!B518,\"Ineligible\"))","v":""},{"$f":"IF('TSA Input'!J518=\"\",\"\",IF(OR('TSA Input'!J518=\"Yes\",'TSA Input'!J518=\"Contingent\"),'TSA Input'!I518,\"\"))","v":""},{"$f":"IF('TSA Input'!J518=\"\",\"\",IF(OR('TSA Input'!J518=\"Yes\",'TSA Input'!J518=\"Contingent\"),'TSA Input'!C518,\"\"))","v":""},{"$f":"IF('TSA Input'!J518=\"\",\"\",IF(OR('TSA Input'!J518=\"Yes\",'TSA Input'!J518=\"Contingent\"),'TSA Input'!D518,\"\"))","v":""},{"$f":"IF('TSA Input'!J518=\"\",\"\",IF(OR('TSA Input'!J518=\"Yes\",'TSA Input'!J518=\"Contingent\"),'TSA Input'!G518,\"\"))","v":""},{"$f":"IF('TSA Input'!J518=\"\",\"\",IF(OR('TSA Input'!J518=\"Yes\",'TSA Input'!J518=\"Contingent\"),'TSA Input'!F518,\"\"))","v":""},"",{"$f":"IF('TSA Input'!J518=\"\",\"\",IF(OR('TSA Input'!J518=\"Yes\",'TSA Input'!J518=\"Contingent\"),'TSA Input'!D518,\"\"))","v":""},{"$f":"IF('TSA Input'!J518=\"\",\"\",IF(OR('TSA Input'!J518=\"Yes\",'TSA Input'!J518=\"Contingent\"),'TSA Input'!G518,\"\"))","v":""},{"$f":"IF('TSA Input'!J518=\"\",\"\",IF(OR('TSA Input'!J518=\"Yes\",'TSA Input'!J518=\"Contingent\"),'TSA Input'!F518,\"\"))","v":""},"","Required","Required"]
["",null,{"$f":"IF('TSA Input'!J519=\"\",\"\",IF(OR('TSA Input'!J519=\"Yes\",'TSA Input'!J519=\"Contingent\"),'TSA Input'!B519,\"Ineligible\"))","v":""},{"$f":"IF('TSA Input'!J519=\"\",\"\",IF(OR('TSA Input'!J519=\"Yes\",'TSA Input'!J519=\"Contingent\"),'TSA Input'!I519,\"\"))","v":""},{"$f":"IF('TSA Input'!J519=\"\",\"\",IF(OR('TSA Input'!J519=\"Yes\",'TSA Input'!J519=\"Contingent\"),'TSA Input'!C519,\"\"))","v":""},{"$f":"IF('TSA Input'!J519=\"\",\"\",IF(OR('TSA Input'!J519=\"Yes\",'TSA Input'!J519=\"Contingent\"),'TSA Input'!D519,\"\"))","v":""},{"$f":"IF('TSA Input'!J519=\"\",\"\",IF(OR('TSA Input'!J519=\"Yes\",'TSA Input'!J519=\"Contingent\"),'TSA Input'!G519,\"\"))","v":""},{"$f":"IF('TSA Input'!J519=\"\",\"\",IF(OR('TSA Input'!J519=\"Yes\",'TSA Input'!J519=\"Contingent\"),'TSA Input'!F519,\"\"))","v":""},"",{"$f":"IF('TSA Input'!J519=\"\",\"\",IF(OR('TSA Input'!J519=\"Yes\",'TSA Input'!J519=\"Contingent\"),'TSA Input'!D519,\"\"))","v":""},{"$f":"IF('TSA Input'!J519=\"\",\"\",IF(OR('TSA Input'!J519=\"Yes\",'TSA Input'!J519=\"Contingent\"),'TSA Input'!G519,\"\"))","v":""},{"$f":"IF('TSA Input'!J519=\"\",\"\",IF(OR('TSA Input'!J519=\"Yes\",'TSA Input'!J519=\"Contingent\"),'TSA Input'!F519,\"\"))","v":""},"","Required","Required"]
["",null,{"$f":"IF('TSA Input'!J520=\"\",\"\",IF(OR('TSA Input'!J520=\"Yes\",'TSA Input'!J520=\"Contingent\"),'TSA Input'!B520,\"Ineligible\"))","v":""},{"$f":"IF('TSA Input'!J520=\"\",\"\",IF(OR('TSA Input'!J520=\"Yes\",'TSA Input'!J520=\"Contingent\"),'TSA Input'!I520,\"\"))","v":""},{"$f":"IF('TSA Input'!J520=\"\",\"\",IF(OR('TSA Input'!J520=\"Yes\",'TSA Input'!J520=\"Contingent\"),'TSA Input'!C520,\"\"))","v":""},{"$f":"IF('TSA Input'!J520=\"\",\"\",IF(OR('TSA Input'!J520=\"Yes\",'TSA Input'!J520=\"Contingent\"),'TSA Input'!D520,\"\"))","v":""},{"$f":"IF('TSA Input'!J520=\"\",\"\",IF(OR('TSA Input'!J520=\"Yes\",'TSA Input'!J520=\"Contingent\"),'TSA Input'!G520,\"\"))","v":""},{"$f":"IF('TSA Input'!J520=\"\",\"\",IF(OR('TSA Input'!J520=\"Yes\",'TSA Input'!J520=\"Contingent\"),'TSA Input'!F520,\"\"))","v":""},"",{"$f":"IF('TSA Input'!J520=\"\",\"\",IF(OR('TSA Input'!J520=\"Yes\",'TSA Input'!J520=\"Contingent\"),'TSA Input'!D520,\"\"))","v":""},{"$f":"IF('TSA Input'!J520=\"\",\"\",IF(OR('TSA Input'!J520=\"Yes\",'TSA Input'!J520=\"Contingent\"),'TSA Input'!G520,\"\"))","v":""},{"$f":"IF('TSA Input'!J520=\"\",\"\",IF(OR('TSA Input'!J520=\"Yes\",'TSA Input'!J520=\"Contingent\"),'TSA Input'!F520,\"\"))","v":""},"","Required","Required"]
["",null,{"$f":"IF('TSA Input'!J521=\"\",\"\",IF(OR('TSA Input'!J521=\"Yes\",'TSA Input'!J521=\"Contingent\"),'TSA Input'!B521,\"Ineligible\"))","v":""},{"$f":"IF('TSA Input'!J521=\"\",\"\",IF(OR('TSA Input'!J521=\"Yes\",'TSA Input'!J521=\"Contingent\"),'TSA Input'!I521,\"\"))","v":""},{"$f":"IF('TSA Input'!J521=\"\",\"\",IF(OR('TSA Input'!J521=\"Yes\",'TSA Input'!J521=\"Contingent\"),'TSA Input'!C521,\"\"))","v":""},{"$f":"IF('TSA Input'!J521=\"\",\"\",IF(OR('TSA Input'!J521=\"Yes\",'TSA Input'!J521=\"Contingent\"),'TSA Input'!D521,\"\"))","v":""},{"$f":"IF('TSA Input'!J521=\"\",\"\",IF(OR('TSA Input'!J521=\"Yes\",'TSA Input'!J521=\"Contingent\"),'TSA Input'!G521,\"\"))","v":""},{"$f":"IF('TSA Input'!J521=\"\",\"\",IF(OR('TSA Input'!J521=\"Yes\",'TSA Input'!J521=\"Contingent\"),'TSA Input'!F521,\"\"))","v":""},"",{"$f":"IF('TSA Input'!J521=\"\",\"\",IF(OR('TSA Input'!J521=\"Yes\",'TSA Input'!J521=\"Contingent\"),'TSA Input'!D521,\"\"))","v":""},{"$f":"IF('TSA Input'!J521=\"\",\"\",IF(OR('TSA Input'!J521=\"Yes\",'TSA Input'!J521=\"Contingent\"),'TSA Input'!G521,\"\"))","v":""},{"$f":"IF('TSA Input'!J521=\"\",\"\",IF(OR('TSA Input'!J521=\"Yes\",'TSA Input'!J521=\"Contingent\"),'TSA Input'!F521,\"\"))","v":""},"","Required","Required"]
["",null,{"$f":"IF('TSA Input'!J522=\"\",\"\",IF(OR('TSA Input'!J522=\"Yes\",'TSA Input'!J522=\"Contingent\"),'TSA Input'!B522,\"Ineligible\"))","v":""},{"$f":"IF('TSA Input'!J522=\"\",\"\",IF(OR('TSA Input'!J522=\"Yes\",'TSA Input'!J522=\"Contingent\"),'TSA Input'!I522,\"\"))","v":""},{"$f":"IF('TSA Input'!J522=\"\",\"\",IF(OR('TSA Input'!J522=\"Yes\",'TSA Input'!J522=\"Contingent\"),'TSA Input'!C522,\"\"))","v":""},{"$f":"IF('TSA Input'!J522=\"\",\"\",IF(OR('TSA Input'!J522=\"Yes\",'TSA Input'!J522=\"Contingent\"),'TSA Input'!D522,\"\"))","v":""},{"$f":"IF('TSA Input'!J522=\"\",\"\",IF(OR('TSA Input'!J522=\"Yes\",'TSA Input'!J522=\"Contingent\"),'TSA Input'!G522,\"\"))","v":""},{"$f":"IF('TSA Input'!J522=\"\",\"\",IF(OR('TSA Input'!J522=\"Yes\",'TSA Input'!J522=\"Contingent\"),'TSA Input'!F522,\"\"))","v":""},"",{"$f":"IF('TSA Input'!J522=\"\",\"\",IF(OR('TSA Input'!J522=\"Yes\",'TSA Input'!J522=\"Contingent\"),'TSA Input'!D522,\"\"))","v":""},{"$f":"IF('TSA Input'!J522=\"\",\"\",IF(OR('TSA Input'!J522=\"Yes\",'TSA Input'!J522=\"Contingent\"),'TSA Input'!G522,\"\"))","v":""},{"$f":"IF('TSA Input'!J522=\"\",\"\",IF(OR('TSA Input'!J522=\"Yes\",'TSA Input'!J522=\"Contingent\"),'TSA Input'!F522,\"\"))","v":""},"","Required","Required"]
["",null,{"$f":"IF('TSA Input'!J523=\"\",\"\",IF(OR('TSA Input'!J523=\"Yes\",'TSA Input'!J523=\"Contingent\"),'TSA Input'!B523,\"Ineligible\"))","v":""},{"$f":"IF('TSA Input'!J523=\"\",\"\",IF(OR('TSA Input'!J523=\"Yes\",'TSA Input'!J523=\"Contingent\"),'TSA Input'!I523,\"\"))","v":""},{"$f":"IF('TSA Input'!J523=\"\",\"\",IF(OR('TSA Input'!J523=\"Yes\",'TSA Input'!J523=\"Contingent\"),'TSA Input'!C523,\"\"))","v":""},{"$f":"IF('TSA Input'!J523=\"\",\"\",IF(OR('TSA Input'!J523=\"Yes\",'TSA Input'!J523=\"Contingent\"),'TSA Input'!D523,\"\"))","v":""},{"$f":"IF('TSA Input'!J523=\"\",\"\",IF(OR('TSA Input'!J523=\"Yes\",'TSA Input'!J523=\"Contingent\"),'TSA Input'!G523,\"\"))","v":""},{"$f":"IF('TSA Input'!J523=\"\",\"\",IF(OR('TSA Input'!J523=\"Yes\",'TSA Input'!J523=\"Contingent\"),'TSA Input'!F523,\"\"))","v":""},"",{"$f":"IF('TSA Input'!J523=\"\",\"\",IF(OR('TSA Input'!J523=\"Yes\",'TSA Input'!J523=\"Contingent\"),'TSA Input'!D523,\"\"))","v":""},{"$f":"IF('TSA Input'!J523=\"\",\"\",IF(OR('TSA Input'!J523=\"Yes\",'TSA Input'!J523=\"Contingent\"),'TSA Input'!G523,\"\"))","v":""},{"$f":"IF('TSA Input'!J523=\"\",\"\",IF(OR('TSA Input'!J523=\"Yes\",'TSA Input'!J523=\"Contingent\"),'TSA Input'!F523,\"\"))","v":""},"","Required","Required"]
["",null,{"$f":"IF('TSA Input'!J524=\"\",\"\",IF(OR('TSA Input'!J524=\"Yes\",'TSA Input'!J524=\"Contingent\"),'TSA Input'!B524,\"Ineligible\"))","v":""},{"$f":"IF('TSA Input'!J524=\"\",\"\",IF(OR('TSA Input'!J524=\"Yes\",'TSA Input'!J524=\"Contingent\"),'TSA Input'!I524,\"\"))","v":""},{"$f":"IF('TSA Input'!J524=\"\",\"\",IF(OR('TSA Input'!J524=\"Yes\",'TSA Input'!J524=\"Contingent\"),'TSA Input'!C524,\"\"))","v":""},{"$f":"IF('TSA Input'!J524=\"\",\"\",IF(OR('TSA Input'!J524=\"Yes\",'TSA Input'!J524=\"Contingent\"),'TSA Input'!D524,\"\"))","v":""},{"$f":"IF('TSA Input'!J524=\"\",\"\",IF(OR('TSA Input'!J524=\"Yes\",'TSA Input'!J524=\"Contingent\"),'TSA Input'!G524,\"\"))","v":""},{"$f":"IF('TSA Input'!J524=\"\",\"\",IF(OR('TSA Input'!J524=\"Yes\",'TSA Input'!J524=\"Contingent\"),'TSA Input'!F524,\"\"))","v":""},"",{"$f":"IF('TSA Input'!J524=\"\",\"\",IF(OR('TSA Input'!J524=\"Yes\",'TSA Input'!J524=\"Contingent\"),'TSA Input'!D524,\"\"))","v":""},{"$f":"IF('TSA Input'!J524=\"\",\"\",IF(OR('TSA Input'!J524=\"Yes\",'TSA Input'!J524=\"Contingent\"),'TSA Input'!G524,\"\"))","v":""},{"$f":"IF('TSA Input'!J524=\"\",\"\",IF(OR('TSA Input'!J524=\"Yes\",'TSA Input'!J524=\"Contingent\"),'TSA Input'!F524,\"\"))","v":""},"","Required","Required"]
["",null,{"$f":"IF('TSA Input'!J525=\"\",\"\",IF(OR('TSA Input'!J525=\"Yes\",'TSA Input'!J525=\"Contingent\"),'TSA Input'!B525,\"Ineligible\"))","v":""},{"$f":"IF('TSA Input'!J525=\"\",\"\",IF(OR('TSA Input'!J525=\"Yes\",'TSA Input'!J525=\"Contingent\"),'TSA Input'!I525,\"\"))","v":""},{"$f":"IF('TSA Input'!J525=\"\",\"\",IF(OR('TSA Input'!J525=\"Yes\",'TSA Input'!J525=\"Contingent\"),'TSA Input'!C525,\"\"))","v":""},{"$f":"IF('TSA Input'!J525=\"\",\"\",IF(OR('TSA Input'!J525=\"Yes\",'TSA Input'!J525=\"Contingent\"),'TSA Input'!D525,\"\"))","v":""},{"$f":"IF('TSA Input'!J525=\"\",\"\",IF(OR('TSA Input'!J525=\"Yes\",'TSA Input'!J525=\"Contingent\"),'TSA Input'!G525,\"\"))","v":""},{"$f":"IF('TSA Input'!J525=\"\",\"\",IF(OR('TSA Input'!J525=\"Yes\",'TSA Input'!J525=\"Contingent\"),'TSA Input'!F525,\"\"))","v":""},"",{"$f":"IF('TSA Input'!J525=\"\",\"\",IF(OR('TSA Input'!J525=\"Yes\",'TSA Input'!J525=\"Contingent\"),'TSA Input'!D525,\"\"))","v":""},{"$f":"IF('TSA Input'!J525=\"\",\"\",IF(OR('TSA Input'!J525=\"Yes\",'TSA Input'!J525=\"Contingent\"),'TSA Input'!G525,\"\"))","v":""},{"$f":"IF('TSA Input'!J525=\"\",\"\",IF(OR('TSA Input'!J525=\"Yes\",'TSA Input'!J525=\"Contingent\"),'TSA Input'!F525,\"\"))","v":""},"","Required","Required"]
["",null,{"$f":"IF('TSA Input'!J526=\"\",\"\",IF(OR('TSA Input'!J526=\"Yes\",'TSA Input'!J526=\"Contingent\"),'TSA Input'!B526,\"Ineligible\"))","v":""},{"$f":"IF('TSA Input'!J526=\"\",\"\",IF(OR('TSA Input'!J526=\"Yes\",'TSA Input'!J526=\"Contingent\"),'TSA Input'!I526,\"\"))","v":""},{"$f":"IF('TSA Input'!J526=\"\",\"\",IF(OR('TSA Input'!J526=\"Yes\",'TSA Input'!J526=\"Contingent\"),'TSA Input'!C526,\"\"))","v":""},{"$f":"IF('TSA Input'!J526=\"\",\"\",IF(OR('TSA Input'!J526=\"Yes\",'TSA Input'!J526=\"Contingent\"),'TSA Input'!D526,\"\"))","v":""},{"$f":"IF('TSA Input'!J526=\"\",\"\",IF(OR('TSA Input'!J526=\"Yes\",'TSA Input'!J526=\"Contingent\"),'TSA Input'!G526,\"\"))","v":""},{"$f":"IF('TSA Input'!J526=\"\",\"\",IF(OR('TSA Input'!J526=\"Yes\",'TSA Input'!J526=\"Contingent\"),'TSA Input'!F526,\"\"))","v":""},"",{"$f":"IF('TSA Input'!J526=\"\",\"\",IF(OR('TSA Input'!J526=\"Yes\",'TSA Input'!J526=\"Contingent\"),'TSA Input'!D526,\"\"))","v":""},{"$f":"IF('TSA Input'!J526=\"\",\"\",IF(OR('TSA Input'!J526=\"Yes\",'TSA Input'!J526=\"Contingent\"),'TSA Input'!G526,\"\"))","v":""},{"$f":"IF('TSA Input'!J526=\"\",\"\",IF(OR('TSA Input'!J526=\"Yes\",'TSA Input'!J526=\"Contingent\"),'TSA Input'!F526,\"\"))","v":""},"","Required","Required"]
["",null,{"$f":"IF('TSA Input'!J527=\"\",\"\",IF(OR('TSA Input'!J527=\"Yes\",'TSA Input'!J527=\"Contingent\"),'TSA Input'!B527,\"Ineligible\"))","v":""},{"$f":"IF('TSA Input'!J527=\"\",\"\",IF(OR('TSA Input'!J527=\"Yes\",'TSA Input'!J527=\"Contingent\"),'TSA Input'!I527,\"\"))","v":""},{"$f":"IF('TSA Input'!J527=\"\",\"\",IF(OR('TSA Input'!J527=\"Yes\",'TSA Input'!J527=\"Contingent\"),'TSA Input'!C527,\"\"))","v":""},{"$f":"IF('TSA Input'!J527=\"\",\"\",IF(OR('TSA Input'!J527=\"Yes\",'TSA Input'!J527=\"Contingent\"),'TSA Input'!D527,\"\"))","v":""},{"$f":"IF('TSA Input'!J527=\"\",\"\",IF(OR('TSA Input'!J527=\"Yes\",'TSA Input'!J527=\"Contingent\"),'TSA Input'!G527,\"\"))","v":""},{"$f":"IF('TSA Input'!J527=\"\",\"\",IF(OR('TSA Input'!J527=\"Yes\",'TSA Input'!J527=\"Contingent\"),'TSA Input'!F527,\"\"))","v":""},"",{"$f":"IF('TSA Input'!J527=\"\",\"\",IF(OR('TSA Input'!J527=\"Yes\",'TSA Input'!J527=\"Contingent\"),'TSA Input'!D527,\"\"))","v":""},{"$f":"IF('TSA Input'!J527=\"\",\"\",IF(OR('TSA Input'!J527=\"Yes\",'TSA Input'!J527=\"Contingent\"),'TSA Input'!G527,\"\"))","v":""},{"$f":"IF('TSA Input'!J527=\"\",\"\",IF(OR('TSA Input'!J527=\"Yes\",'TSA Input'!J527=\"Contingent\"),'TSA Input'!F527,\"\"))","v":""},"","Required","Required"]
["",null,{"$f":"IF('TSA Input'!J528=\"\",\"\",IF(OR('TSA Input'!J528=\"Yes\",'TSA Input'!J528=\"Contingent\"),'TSA Input'!B528,\"Ineligible\"))","v":""},{"$f":"IF('TSA Input'!J528=\"\",\"\",IF(OR('TSA Input'!J528=\"Yes\",'TSA Input'!J528=\"Contingent\"),'TSA Input'!I528,\"\"))","v":""},{"$f":"IF('TSA Input'!J528=\"\",\"\",IF(OR('TSA Input'!J528=\"Yes\",'TSA Input'!J528=\"Contingent\"),'TSA Input'!C528,\"\"))","v":""},{"$f":"IF('TSA Input'!J528=\"\",\"\",IF(OR('TSA Input'!J528=\"Yes\",'TSA Input'!J528=\"Contingent\"),'TSA Input'!D528,\"\"))","v":""},{"$f":"IF('TSA Input'!J528=\"\",\"\",IF(OR('TSA Input'!J528=\"Yes\",'TSA Input'!J528=\"Contingent\"),'TSA Input'!G528,\"\"))","v":""},{"$f":"IF('TSA Input'!J528=\"\",\"\",IF(OR('TSA Input'!J528=\"Yes\",'TSA Input'!J528=\"Contingent\"),'TSA Input'!F528,\"\"))","v":""},"",{"$f":"IF('TSA Input'!J528=\"\",\"\",IF(OR('TSA Input'!J528=\"Yes\",'TSA Input'!J528=\"Contingent\"),'TSA Input'!D528,\"\"))","v":""},{"$f":"IF('TSA Input'!J528=\"\",\"\",IF(OR('TSA Input'!J528=\"Yes\",'TSA Input'!J528=\"Contingent\"),'TSA Input'!G528,\"\"))","v":""},{"$f":"IF('TSA Input'!J528=\"\",\"\",IF(OR('TSA Input'!J528=\"Yes\",'TSA Input'!J528=\"Contingent\"),'TSA Input'!F528,\"\"))","v":""},"","Required","Required"]
["",null,{"$f":"IF('TSA Input'!J529=\"\",\"\",IF(OR('TSA Input'!J529=\"Yes\",'TSA Input'!J529=\"Contingent\"),'TSA Input'!B529,\"Ineligible\"))","v":""},{"$f":"IF('TSA Input'!J529=\"\",\"\",IF(OR('TSA Input'!J529=\"Yes\",'TSA Input'!J529=\"Contingent\"),'TSA Input'!I529,\"\"))","v":""},{"$f":"IF('TSA Input'!J529=\"\",\"\",IF(OR('TSA Input'!J529=\"Yes\",'TSA Input'!J529=\"Contingent\"),'TSA Input'!C529,\"\"))","v":""},{"$f":"IF('TSA Input'!J529=\"\",\"\",IF(OR('TSA Input'!J529=\"Yes\",'TSA Input'!J529=\"Contingent\"),'TSA Input'!D529,\"\"))","v":""},{"$f":"IF('TSA Input'!J529=\"\",\"\",IF(OR('TSA Input'!J529=\"Yes\",'TSA Input'!J529=\"Contingent\"),'TSA Input'!G529,\"\"))","v":""},{"$f":"IF('TSA Input'!J529=\"\",\"\",IF(OR('TSA Input'!J529=\"Yes\",'TSA Input'!J529=\"Contingent\"),'TSA Input'!F529,\"\"))","v":""},"",{"$f":"IF('TSA Input'!J529=\"\",\"\",IF(OR('TSA Input'!J529=\"Yes\",'TSA Input'!J529=\"Contingent\"),'TSA Input'!D529,\"\"))","v":""},{"$f":"IF('TSA Input'!J529=\"\",\"\",IF(OR('TSA Input'!J529=\"Yes\",'TSA Input'!J529=\"Contingent\"),'TSA Input'!G529,\"\"))","v":""},{"$f":"IF('TSA Input'!J529=\"\",\"\",IF(OR('TSA Input'!J529=\"Yes\",'TSA Input'!J529=\"Contingent\"),'TSA Input'!F529,\"\"))","v":""},"","Required","Required"]
["",null,{"$f":"IF('TSA Input'!J530=\"\",\"\",IF(OR('TSA Input'!J530=\"Yes\",'TSA Input'!J530=\"Contingent\"),'TSA Input'!B530,\"Ineligible\"))","v":""},{"$f":"IF('TSA Input'!J530=\"\",\"\",IF(OR('TSA Input'!J530=\"Yes\",'TSA Input'!J530=\"Contingent\"),'TSA Input'!I530,\"\"))","v":""},{"$f":"IF('TSA Input'!J530=\"\",\"\",IF(OR('TSA Input'!J530=\"Yes\",'TSA Input'!J530=\"Contingent\"),'TSA Input'!C530,\"\"))","v":""},{"$f":"IF('TSA Input'!J530=\"\",\"\",IF(OR('TSA Input'!J530=\"Yes\",'TSA Input'!J530=\"Contingent\"),'TSA Input'!D530,\"\"))","v":""},{"$f":"IF('TSA Input'!J530=\"\",\"\",IF(OR('TSA Input'!J530=\"Yes\",'TSA Input'!J530=\"Contingent\"),'TSA Input'!G530,\"\"))","v":""},{"$f":"IF('TSA Input'!J530=\"\",\"\",IF(OR('TSA Input'!J530=\"Yes\",'TSA Input'!J530=\"Contingent\"),'TSA Input'!F530,\"\"))","v":""},"",{"$f":"IF('TSA Input'!J530=\"\",\"\",IF(OR('TSA Input'!J530=\"Yes\",'TSA Input'!J530=\"Contingent\"),'TSA Input'!D530,\"\"))","v":""},{"$f":"IF('TSA Input'!J530=\"\",\"\",IF(OR('TSA Input'!J530=\"Yes\",'TSA Input'!J530=\"Contingent\"),'TSA Input'!G530,\"\"))","v":""},{"$f":"IF('TSA Input'!J530=\"\",\"\",IF(OR('TSA Input'!J530=\"Yes\",'TSA Input'!J530=\"Contingent\"),'TSA Input'!F530,\"\"))","v":""},"","Required","Required"]
["",null,{"$f":"IF('TSA Input'!J531=\"\",\"\",IF(OR('TSA Input'!J531=\"Yes\",'TSA Input'!J531=\"Contingent\"),'TSA Input'!B531,\"Ineligible\"))","v":""},{"$f":"IF('TSA Input'!J531=\"\",\"\",IF(OR('TSA Input'!J531=\"Yes\",'TSA Input'!J531=\"Contingent\"),'TSA Input'!I531,\"\"))","v":""},{"$f":"IF('TSA Input'!J531=\"\",\"\",IF(OR('TSA Input'!J531=\"Yes\",'TSA Input'!J531=\"Contingent\"),'TSA Input'!C531,\"\"))","v":""},{"$f":"IF('TSA Input'!J531=\"\",\"\",IF(OR('TSA Input'!J531=\"Yes\",'TSA Input'!J531=\"Contingent\"),'TSA Input'!D531,\"\"))","v":""},{"$f":"IF('TSA Input'!J531=\"\",\"\",IF(OR('TSA Input'!J531=\"Yes\",'TSA Input'!J531=\"Contingent\"),'TSA Input'!G531,\"\"))","v":""},{"$f":"IF('TSA Input'!J531=\"\",\"\",IF(OR('TSA Input'!J531=\"Yes\",'TSA Input'!J531=\"Contingent\"),'TSA Input'!F531,\"\"))","v":""},"",{"$f":"IF('TSA Input'!J531=\"\",\"\",IF(OR('TSA Input'!J531=\"Yes\",'TSA Input'!J531=\"Contingent\"),'TSA Input'!D531,\"\"))","v":""},{"$f":"IF('TSA Input'!J531=\"\",\"\",IF(OR('TSA Input'!J531=\"Yes\",'TSA Input'!J531=\"Contingent\"),'TSA Input'!G531,\"\"))","v":""},{"$f":"IF('TSA Input'!J531=\"\",\"\",IF(OR('TSA Input'!J531=\"Yes\",'TSA Input'!J531=\"Contingent\"),'TSA Input'!F531,\"\"))","v":""},"","Required","Required"]
["",null,{"$f":"IF('TSA Input'!J532=\"\",\"\",IF(OR('TSA Input'!J532=\"Yes\",'TSA Input'!J532=\"Contingent\"),'TSA Input'!B532,\"Ineligible\"))","v":""},{"$f":"IF('TSA Input'!J532=\"\",\"\",IF(OR('TSA Input'!J532=\"Yes\",'TSA Input'!J532=\"Contingent\"),'TSA Input'!I532,\"\"))","v":""},{"$f":"IF('TSA Input'!J532=\"\",\"\",IF(OR('TSA Input'!J532=\"Yes\",'TSA Input'!J532=\"Contingent\"),'TSA Input'!C532,\"\"))","v":""},{"$f":"IF('TSA Input'!J532=\"\",\"\",IF(OR('TSA Input'!J532=\"Yes\",'TSA Input'!J532=\"Contingent\"),'TSA Input'!D532,\"\"))","v":""},{"$f":"IF('TSA Input'!J532=\"\",\"\",IF(OR('TSA Input'!J532=\"Yes\",'TSA Input'!J532=\"Contingent\"),'TSA Input'!G532,\"\"))","v":""},{"$f":"IF('TSA Input'!J532=\"\",\"\",IF(OR('TSA Input'!J532=\"Yes\",'TSA Input'!J532=\"Contingent\"),'TSA Input'!F532,\"\"))","v":""},"",{"$f":"IF('TSA Input'!J532=\"\",\"\",IF(OR('TSA Input'!J532=\"Yes\",'TSA Input'!J532=\"Contingent\"),'TSA Input'!D532,\"\"))","v":""},{"$f":"IF('TSA Input'!J532=\"\",\"\",IF(OR('TSA Input'!J532=\"Yes\",'TSA Input'!J532=\"Contingent\"),'TSA Input'!G532,\"\"))","v":""},{"$f":"IF('TSA Input'!J532=\"\",\"\",IF(OR('TSA Input'!J532=\"Yes\",'TSA Input'!J532=\"Contingent\"),'TSA Input'!F532,\"\"))","v":""},"","Required","Required"]
["",null,{"$f":"IF('TSA Input'!J533=\"\",\"\",IF(OR('TSA Input'!J533=\"Yes\",'TSA Input'!J533=\"Contingent\"),'TSA Input'!B533,\"Ineligible\"))","v":""},{"$f":"IF('TSA Input'!J533=\"\",\"\",IF(OR('TSA Input'!J533=\"Yes\",'TSA Input'!J533=\"Contingent\"),'TSA Input'!I533,\"\"))","v":""},{"$f":"IF('TSA Input'!J533=\"\",\"\",IF(OR('TSA Input'!J533=\"Yes\",'TSA Input'!J533=\"Contingent\"),'TSA Input'!C533,\"\"))","v":""},{"$f":"IF('TSA Input'!J533=\"\",\"\",IF(OR('TSA Input'!J533=\"Yes\",'TSA Input'!J533=\"Contingent\"),'TSA Input'!D533,\"\"))","v":""},{"$f":"IF('TSA Input'!J533=\"\",\"\",IF(OR('TSA Input'!J533=\"Yes\",'TSA Input'!J533=\"Contingent\"),'TSA Input'!G533,\"\"))","v":""},{"$f":"IF('TSA Input'!J533=\"\",\"\",IF(OR('TSA Input'!J533=\"Yes\",'TSA Input'!J533=\"Contingent\"),'TSA Input'!F533,\"\"))","v":""},"",{"$f":"IF('TSA Input'!J533=\"\",\"\",IF(OR('TSA Input'!J533=\"Yes\",'TSA Input'!J533=\"Contingent\"),'TSA Input'!D533,\"\"))","v":""},{"$f":"IF('TSA Input'!J533=\"\",\"\",IF(OR('TSA Input'!J533=\"Yes\",'TSA Input'!J533=\"Contingent\"),'TSA Input'!G533,\"\"))","v":""},{"$f":"IF('TSA Input'!J533=\"\",\"\",IF(OR('TSA Input'!J533=\"Yes\",'TSA Input'!J533=\"Contingent\"),'TSA Input'!F533,\"\"))","v":""},"","Required","Required"]
["",null,{"$f":"IF('TSA Input'!J534=\"\",\"\",IF(OR('TSA Input'!J534=\"Yes\",'TSA Input'!J534=\"Contingent\"),'TSA Input'!B534,\"Ineligible\"))","v":""},{"$f":"IF('TSA Input'!J534=\"\",\"\",IF(OR('TSA Input'!J534=\"Yes\",'TSA Input'!J534=\"Contingent\"),'TSA Input'!I534,\"\"))","v":""},{"$f":"IF('TSA Input'!J534=\"\",\"\",IF(OR('TSA Input'!J534=\"Yes\",'TSA Input'!J534=\"Contingent\"),'TSA Input'!C534,\"\"))","v":""},{"$f":"IF('TSA Input'!J534=\"\",\"\",IF(OR('TSA Input'!J534=\"Yes\",'TSA Input'!J534=\"Contingent\"),'TSA Input'!D534,\"\"))","v":""},{"$f":"IF('TSA Input'!J534=\"\",\"\",IF(OR('TSA Input'!J534=\"Yes\",'TSA Input'!J534=\"Contingent\"),'TSA Input'!G534,\"\"))","v":""},{"$f":"IF('TSA Input'!J534=\"\",\"\",IF(OR('TSA Input'!J534=\"Yes\",'TSA Input'!J534=\"Contingent\"),'TSA Input'!F534,\"\"))","v":""},"",{"$f":"IF('TSA Input'!J534=\"\",\"\",IF(OR('TSA Input'!J534=\"Yes\",'TSA Input'!J534=\"Contingent\"),'TSA Input'!D534,\"\"))","v":""},{"$f":"IF('TSA Input'!J534=\"\",\"\",IF(OR('TSA Input'!J534=\"Yes\",'TSA Input'!J534=\"Contingent\"),'TSA Input'!G534,\"\"))","v":""},{"$f":"IF('TSA Input'!J534=\"\",\"\",IF(OR('TSA Input'!J534=\"Yes\",'TSA Input'!J534=\"Contingent\"),'TSA Input'!F534,\"\"))","v":""},"","Required","Required"]
["",null,{"$f":"IF('TSA Input'!J535=\"\",\"\",IF(OR('TSA Input'!J535=\"Yes\",'TSA Input'!J535=\"Contingent\"),'TSA Input'!B535,\"Ineligible\"))","v":""},{"$f":"IF('TSA Input'!J535=\"\",\"\",IF(OR('TSA Input'!J535=\"Yes\",'TSA Input'!J535=\"Contingent\"),'TSA Input'!I535,\"\"))","v":""},{"$f":"IF('TSA Input'!J535=\"\",\"\",IF(OR('TSA Input'!J535=\"Yes\",'TSA Input'!J535=\"Contingent\"),'TSA Input'!C535,\"\"))","v":""},{"$f":"IF('TSA Input'!J535=\"\",\"\",IF(OR('TSA Input'!J535=\"Yes\",'TSA Input'!J535=\"Contingent\"),'TSA Input'!D535,\"\"))","v":""},{"$f":"IF('TSA Input'!J535=\"\",\"\",IF(OR('TSA Input'!J535=\"Yes\",'TSA Input'!J535=\"Contingent\"),'TSA Input'!G535,\"\"))","v":""},{"$f":"IF('TSA Input'!J535=\"\",\"\",IF(OR('TSA Input'!J535=\"Yes\",'TSA Input'!J535=\"Contingent\"),'TSA Input'!F535,\"\"))","v":""},"",{"$f":"IF('TSA Input'!J535=\"\",\"\",IF(OR('TSA Input'!J535=\"Yes\",'TSA Input'!J535=\"Contingent\"),'TSA Input'!D535,\"\"))","v":""},{"$f":"IF('TSA Input'!J535=\"\",\"\",IF(OR('TSA Input'!J535=\"Yes\",'TSA Input'!J535=\"Contingent\"),'TSA Input'!G535,\"\"))","v":""},{"$f":"IF('TSA Input'!J535=\"\",\"\",IF(OR('TSA Input'!J535=\"Yes\",'TSA Input'!J535=\"Contingent\"),'TSA Input'!F535,\"\"))","v":""},"","Required","Required"]
["",null,{"$f":"IF('TSA Input'!J536=\"\",\"\",IF(OR('TSA Input'!J536=\"Yes\",'TSA Input'!J536=\"Contingent\"),'TSA Input'!B536,\"Ineligible\"))","v":""},{"$f":"IF('TSA Input'!J536=\"\",\"\",IF(OR('TSA Input'!J536=\"Yes\",'TSA Input'!J536=\"Contingent\"),'TSA Input'!I536,\"\"))","v":""},{"$f":"IF('TSA Input'!J536=\"\",\"\",IF(OR('TSA Input'!J536=\"Yes\",'TSA Input'!J536=\"Contingent\"),'TSA Input'!C536,\"\"))","v":""},{"$f":"IF('TSA Input'!J536=\"\",\"\",IF(OR('TSA Input'!J536=\"Yes\",'TSA Input'!J536=\"Contingent\"),'TSA Input'!D536,\"\"))","v":""},{"$f":"IF('TSA Input'!J536=\"\",\"\",IF(OR('TSA Input'!J536=\"Yes\",'TSA Input'!J536=\"Contingent\"),'TSA Input'!G536,\"\"))","v":""},{"$f":"IF('TSA Input'!J536=\"\",\"\",IF(OR('TSA Input'!J536=\"Yes\",'TSA Input'!J536=\"Contingent\"),'TSA Input'!F536,\"\"))","v":""},"",{"$f":"IF('TSA Input'!J536=\"\",\"\",IF(OR('TSA Input'!J536=\"Yes\",'TSA Input'!J536=\"Contingent\"),'TSA Input'!D536,\"\"))","v":""},{"$f":"IF('TSA Input'!J536=\"\",\"\",IF(OR('TSA Input'!J536=\"Yes\",'TSA Input'!J536=\"Contingent\"),'TSA Input'!G536,\"\"))","v":""},{"$f":"IF('TSA Input'!J536=\"\",\"\",IF(OR('TSA Input'!J536=\"Yes\",'TSA Input'!J536=\"Contingent\"),'TSA Input'!F536,\"\"))","v":""},"","Required","Required"]
["",null,{"$f":"IF('TSA Input'!J537=\"\",\"\",IF(OR('TSA Input'!J537=\"Yes\",'TSA Input'!J537=\"Contingent\"),'TSA Input'!B537,\"Ineligible\"))","v":""},{"$f":"IF('TSA Input'!J537=\"\",\"\",IF(OR('TSA Input'!J537=\"Yes\",'TSA Input'!J537=\"Contingent\"),'TSA Input'!I537,\"\"))","v":""},{"$f":"IF('TSA Input'!J537=\"\",\"\",IF(OR('TSA Input'!J537=\"Yes\",'TSA Input'!J537=\"Contingent\"),'TSA Input'!C537,\"\"))","v":""},{"$f":"IF('TSA Input'!J537=\"\",\"\",IF(OR('TSA Input'!J537=\"Yes\",'TSA Input'!J537=\"Contingent\"),'TSA Input'!D537,\"\"))","v":""},{"$f":"IF('TSA Input'!J537=\"\",\"\",IF(OR('TSA Input'!J537=\"Yes\",'TSA Input'!J537=\"Contingent\"),'TSA Input'!G537,\"\"))","v":""},{"$f":"IF('TSA Input'!J537=\"\",\"\",IF(OR('TSA Input'!J537=\"Yes\",'TSA Input'!J537=\"Contingent\"),'TSA Input'!F537,\"\"))","v":""},"",{"$f":"IF('TSA Input'!J537=\"\",\"\",IF(OR('TSA Input'!J537=\"Yes\",'TSA Input'!J537=\"Contingent\"),'TSA Input'!D537,\"\"))","v":""},{"$f":"IF('TSA Input'!J537=\"\",\"\",IF(OR('TSA Input'!J537=\"Yes\",'TSA Input'!J537=\"Contingent\"),'TSA Input'!G537,\"\"))","v":""},{"$f":"IF('TSA Input'!J537=\"\",\"\",IF(OR('TSA Input'!J537=\"Yes\",'TSA Input'!J537=\"Contingent\"),'TSA Input'!F537,\"\"))","v":""},"","Required","Required"]
["",null,{"$f":"IF('TSA Input'!J538=\"\",\"\",IF(OR('TSA Input'!J538=\"Yes\",'TSA Input'!J538=\"Contingent\"),'TSA Input'!B538,\"Ineligible\"))","v":""},{"$f":"IF('TSA Input'!J538=\"\",\"\",IF(OR('TSA Input'!J538=\"Yes\",'TSA Input'!J538=\"Contingent\"),'TSA Input'!I538,\"\"))","v":""},{"$f":"IF('TSA Input'!J538=\"\",\"\",IF(OR('TSA Input'!J538=\"Yes\",'TSA Input'!J538=\"Contingent\"),'TSA Input'!C538,\"\"))","v":""},{"$f":"IF('TSA Input'!J538=\"\",\"\",IF(OR('TSA Input'!J538=\"Yes\",'TSA Input'!J538=\"Contingent\"),'TSA Input'!D538,\"\"))","v":""},{"$f":"IF('TSA Input'!J538=\"\",\"\",IF(OR('TSA Input'!J538=\"Yes\",'TSA Input'!J538=\"Contingent\"),'TSA Input'!G538,\"\"))","v":""},{"$f":"IF('TSA Input'!J538=\"\",\"\",IF(OR('TSA Input'!J538=\"Yes\",'TSA Input'!J538=\"Contingent\"),'TSA Input'!F538,\"\"))","v":""},"",{"$f":"IF('TSA Input'!J538=\"\",\"\",IF(OR('TSA Input'!J538=\"Yes\",'TSA Input'!J538=\"Contingent\"),'TSA Input'!D538,\"\"))","v":""},{"$f":"IF('TSA Input'!J538=\"\",\"\",IF(OR('TSA Input'!J538=\"Yes\",'TSA Input'!J538=\"Contingent\"),'TSA Input'!G538,\"\"))","v":""},{"$f":"IF('TSA Input'!J538=\"\",\"\",IF(OR('TSA Input'!J538=\"Yes\",'TSA Input'!J538=\"Contingent\"),'TSA Input'!F538,\"\"))","v":""},"","Required","Required"]
["",null,{"$f":"IF('TSA Input'!J539=\"\",\"\",IF(OR('TSA Input'!J539=\"Yes\",'TSA Input'!J539=\"Contingent\"),'TSA Input'!B539,\"Ineligible\"))","v":""},{"$f":"IF('TSA Input'!J539=\"\",\"\",IF(OR('TSA Input'!J539=\"Yes\",'TSA Input'!J539=\"Contingent\"),'TSA Input'!I539,\"\"))","v":""},{"$f":"IF('TSA Input'!J539=\"\",\"\",IF(OR('TSA Input'!J539=\"Yes\",'TSA Input'!J539=\"Contingent\"),'TSA Input'!C539,\"\"))","v":""},{"$f":"IF('TSA Input'!J539=\"\",\"\",IF(OR('TSA Input'!J539=\"Yes\",'TSA Input'!J539=\"Contingent\"),'TSA Input'!D539,\"\"))","v":""},{"$f":"IF('TSA Input'!J539=\"\",\"\",IF(OR('TSA Input'!J539=\"Yes\",'TSA Input'!J539=\"Contingent\"),'TSA Input'!G539,\"\"))","v":""},{"$f":"IF('TSA Input'!J539=\"\",\"\",IF(OR('TSA Input'!J539=\"Yes\",'TSA Input'!J539=\"Contingent\"),'TSA Input'!F539,\"\"))","v":""},"",{"$f":"IF('TSA Input'!J539=\"\",\"\",IF(OR('TSA Input'!J539=\"Yes\",'TSA Input'!J539=\"Contingent\"),'TSA Input'!D539,\"\"))","v":""},{"$f":"IF('TSA Input'!J539=\"\",\"\",IF(OR('TSA Input'!J539=\"Yes\",'TSA Input'!J539=\"Contingent\"),'TSA Input'!G539,\"\"))","v":""},{"$f":"IF('TSA Input'!J539=\"\",\"\",IF(OR('TSA Input'!J539=\"Yes\",'TSA Input'!J539=\"Contingent\"),'TSA Input'!F539,\"\"))","v":""},"","Required","Required"]
["",null,{"$f":"IF('TSA Input'!J540=\"\",\"\",IF(OR('TSA Input'!J540=\"Yes\",'TSA Input'!J540=\"Contingent\"),'TSA Input'!B540,\"Ineligible\"))","v":""},{"$f":"IF('TSA Input'!J540=\"\",\"\",IF(OR('TSA Input'!J540=\"Yes\",'TSA Input'!J540=\"Contingent\"),'TSA Input'!I540,\"\"))","v":""},{"$f":"IF('TSA Input'!J540=\"\",\"\",IF(OR('TSA Input'!J540=\"Yes\",'TSA Input'!J540=\"Contingent\"),'TSA Input'!C540,\"\"))","v":""},{"$f":"IF('TSA Input'!J540=\"\",\"\",IF(OR('TSA Input'!J540=\"Yes\",'TSA Input'!J540=\"Contingent\"),'TSA Input'!D540,\"\"))","v":""},{"$f":"IF('TSA Input'!J540=\"\",\"\",IF(OR('TSA Input'!J540=\"Yes\",'TSA Input'!J540=\"Contingent\"),'TSA Input'!G540,\"\"))","v":""},{"$f":"IF('TSA Input'!J540=\"\",\"\",IF(OR('TSA Input'!J540=\"Yes\",'TSA Input'!J540=\"Contingent\"),'TSA Input'!F540,\"\"))","v":""},"",{"$f":"IF('TSA Input'!J540=\"\",\"\",IF(OR('TSA Input'!J540=\"Yes\",'TSA Input'!J540=\"Contingent\"),'TSA Input'!D540,\"\"))","v":""},{"$f":"IF('TSA Input'!J540=\"\",\"\",IF(OR('TSA Input'!J540=\"Yes\",'TSA Input'!J540=\"Contingent\"),'TSA Input'!G540,\"\"))","v":""},{"$f":"IF('TSA Input'!J540=\"\",\"\",IF(OR('TSA Input'!J540=\"Yes\",'TSA Input'!J540=\"Contingent\"),'TSA Input'!F540,\"\"))","v":""},"","Required","Required"]
["",null,{"$f":"IF('TSA Input'!J541=\"\",\"\",IF(OR('TSA Input'!J541=\"Yes\",'TSA Input'!J541=\"Contingent\"),'TSA Input'!B541,\"Ineligible\"))","v":""},{"$f":"IF('TSA Input'!J541=\"\",\"\",IF(OR('TSA Input'!J541=\"Yes\",'TSA Input'!J541=\"Contingent\"),'TSA Input'!I541,\"\"))","v":""},{"$f":"IF('TSA Input'!J541=\"\",\"\",IF(OR('TSA Input'!J541=\"Yes\",'TSA Input'!J541=\"Contingent\"),'TSA Input'!C541,\"\"))","v":""},{"$f":"IF('TSA Input'!J541=\"\",\"\",IF(OR('TSA Input'!J541=\"Yes\",'TSA Input'!J541=\"Contingent\"),'TSA Input'!D541,\"\"))","v":""},{"$f":"IF('TSA Input'!J541=\"\",\"\",IF(OR('TSA Input'!J541=\"Yes\",'TSA Input'!J541=\"Contingent\"),'TSA Input'!G541,\"\"))","v":""},{"$f":"IF('TSA Input'!J541=\"\",\"\",IF(OR('TSA Input'!J541=\"Yes\",'TSA Input'!J541=\"Contingent\"),'TSA Input'!F541,\"\"))","v":""},"",{"$f":"IF('TSA Input'!J541=\"\",\"\",IF(OR('TSA Input'!J541=\"Yes\",'TSA Input'!J541=\"Contingent\"),'TSA Input'!D541,\"\"))","v":""},{"$f":"IF('TSA Input'!J541=\"\",\"\",IF(OR('TSA Input'!J541=\"Yes\",'TSA Input'!J541=\"Contingent\"),'TSA Input'!G541,\"\"))","v":""},{"$f":"IF('TSA Input'!J541=\"\",\"\",IF(OR('TSA Input'!J541=\"Yes\",'TSA Input'!J541=\"Contingent\"),'TSA Input'!F541,\"\"))","v":""},"","Required","Required"]
["",null,{"$f":"IF('TSA Input'!J542=\"\",\"\",IF(OR('TSA Input'!J542=\"Yes\",'TSA Input'!J542=\"Contingent\"),'TSA Input'!B542,\"Ineligible\"))","v":""},{"$f":"IF('TSA Input'!J542=\"\",\"\",IF(OR('TSA Input'!J542=\"Yes\",'TSA Input'!J542=\"Contingent\"),'TSA Input'!I542,\"\"))","v":""},{"$f":"IF('TSA Input'!J542=\"\",\"\",IF(OR('TSA Input'!J542=\"Yes\",'TSA Input'!J542=\"Contingent\"),'TSA Input'!C542,\"\"))","v":""},{"$f":"IF('TSA Input'!J542=\"\",\"\",IF(OR('TSA Input'!J542=\"Yes\",'TSA Input'!J542=\"Contingent\"),'TSA Input'!D542,\"\"))","v":""},{"$f":"IF('TSA Input'!J542=\"\",\"\",IF(OR('TSA Input'!J542=\"Yes\",'TSA Input'!J542=\"Contingent\"),'TSA Input'!G542,\"\"))","v":""},{"$f":"IF('TSA Input'!J542=\"\",\"\",IF(OR('TSA Input'!J542=\"Yes\",'TSA Input'!J542=\"Contingent\"),'TSA Input'!F542,\"\"))","v":""},"",{"$f":"IF('TSA Input'!J542=\"\",\"\",IF(OR('TSA Input'!J542=\"Yes\",'TSA Input'!J542=\"Contingent\"),'TSA Input'!D542,\"\"))","v":""},{"$f":"IF('TSA Input'!J542=\"\",\"\",IF(OR('TSA Input'!J542=\"Yes\",'TSA Input'!J542=\"Contingent\"),'TSA Input'!G542,\"\"))","v":""},{"$f":"IF('TSA Input'!J542=\"\",\"\",IF(OR('TSA Input'!J542=\"Yes\",'TSA Input'!J542=\"Contingent\"),'TSA Input'!F542,\"\"))","v":""},"","Required","Required"]
["",null,{"$f":"IF('TSA Input'!J543=\"\",\"\",IF(OR('TSA Input'!J543=\"Yes\",'TSA Input'!J543=\"Contingent\"),'TSA Input'!B543,\"Ineligible\"))","v":""},{"$f":"IF('TSA Input'!J543=\"\",\"\",IF(OR('TSA Input'!J543=\"Yes\",'TSA Input'!J543=\"Contingent\"),'TSA Input'!I543,\"\"))","v":""},{"$f":"IF('TSA Input'!J543=\"\",\"\",IF(OR('TSA Input'!J543=\"Yes\",'TSA Input'!J543=\"Contingent\"),'TSA Input'!C543,\"\"))","v":""},{"$f":"IF('TSA Input'!J543=\"\",\"\",IF(OR('TSA Input'!J543=\"Yes\",'TSA Input'!J543=\"Contingent\"),'TSA Input'!D543,\"\"))","v":""},{"$f":"IF('TSA Input'!J543=\"\",\"\",IF(OR('TSA Input'!J543=\"Yes\",'TSA Input'!J543=\"Contingent\"),'TSA Input'!G543,\"\"))","v":""},{"$f":"IF('TSA Input'!J543=\"\",\"\",IF(OR('TSA Input'!J543=\"Yes\",'TSA Input'!J543=\"Contingent\"),'TSA Input'!F543,\"\"))","v":""},"",{"$f":"IF('TSA Input'!J543=\"\",\"\",IF(OR('TSA Input'!J543=\"Yes\",'TSA Input'!J543=\"Contingent\"),'TSA Input'!D543,\"\"))","v":""},{"$f":"IF('TSA Input'!J543=\"\",\"\",IF(OR('TSA Input'!J543=\"Yes\",'TSA Input'!J543=\"Contingent\"),'TSA Input'!G543,\"\"))","v":""},{"$f":"IF('TSA Input'!J543=\"\",\"\",IF(OR('TSA Input'!J543=\"Yes\",'TSA Input'!J543=\"Contingent\"),'TSA Input'!F543,\"\"))","v":""},"","Required","Required"]
["",null,{"$f":"IF('TSA Input'!J544=\"\",\"\",IF(OR('TSA Input'!J544=\"Yes\",'TSA Input'!J544=\"Contingent\"),'TSA Input'!B544,\"Ineligible\"))","v":""},{"$f":"IF('TSA Input'!J544=\"\",\"\",IF(OR('TSA Input'!J544=\"Yes\",'TSA Input'!J544=\"Contingent\"),'TSA Input'!I544,\"\"))","v":""},{"$f":"IF('TSA Input'!J544=\"\",\"\",IF(OR('TSA Input'!J544=\"Yes\",'TSA Input'!J544=\"Contingent\"),'TSA Input'!C544,\"\"))","v":""},{"$f":"IF('TSA Input'!J544=\"\",\"\",IF(OR('TSA Input'!J544=\"Yes\",'TSA Input'!J544=\"Contingent\"),'TSA Input'!D544,\"\"))","v":""},{"$f":"IF('TSA Input'!J544=\"\",\"\",IF(OR('TSA Input'!J544=\"Yes\",'TSA Input'!J544=\"Contingent\"),'TSA Input'!G544,\"\"))","v":""},{"$f":"IF('TSA Input'!J544=\"\",\"\",IF(OR('TSA Input'!J544=\"Yes\",'TSA Input'!J544=\"Contingent\"),'TSA Input'!F544,\"\"))","v":""},"",{"$f":"IF('TSA Input'!J544=\"\",\"\",IF(OR('TSA Input'!J544=\"Yes\",'TSA Input'!J544=\"Contingent\"),'TSA Input'!D544,\"\"))","v":""},{"$f":"IF('TSA Input'!J544=\"\",\"\",IF(OR('TSA Input'!J544=\"Yes\",'TSA Input'!J544=\"Contingent\"),'TSA Input'!G544,\"\"))","v":""},{"$f":"IF('TSA Input'!J544=\"\",\"\",IF(OR('TSA Input'!J544=\"Yes\",'TSA Input'!J544=\"Contingent\"),'TSA Input'!F544,\"\"))","v":""},"","Required","Required"]
["",null,{"$f":"IF('TSA Input'!J545=\"\",\"\",IF(OR('TSA Input'!J545=\"Yes\",'TSA Input'!J545=\"Contingent\"),'TSA Input'!B545,\"Ineligible\"))","v":""},{"$f":"IF('TSA Input'!J545=\"\",\"\",IF(OR('TSA Input'!J545=\"Yes\",'TSA Input'!J545=\"Contingent\"),'TSA Input'!I545,\"\"))","v":""},{"$f":"IF('TSA Input'!J545=\"\",\"\",IF(OR('TSA Input'!J545=\"Yes\",'TSA Input'!J545=\"Contingent\"),'TSA Input'!C545,\"\"))","v":""},{"$f":"IF('TSA Input'!J545=\"\",\"\",IF(OR('TSA Input'!J545=\"Yes\",'TSA Input'!J545=\"Contingent\"),'TSA Input'!D545,\"\"))","v":""},{"$f":"IF('TSA Input'!J545=\"\",\"\",IF(OR('TSA Input'!J545=\"Yes\",'TSA Input'!J545=\"Contingent\"),'TSA Input'!G545,\"\"))","v":""},{"$f":"IF('TSA Input'!J545=\"\",\"\",IF(OR('TSA Input'!J545=\"Yes\",'TSA Input'!J545=\"Contingent\"),'TSA Input'!F545,\"\"))","v":""},"",{"$f":"IF('TSA Input'!J545=\"\",\"\",IF(OR('TSA Input'!J545=\"Yes\",'TSA Input'!J545=\"Contingent\"),'TSA Input'!D545,\"\"))","v":""},{"$f":"IF('TSA Input'!J545=\"\",\"\",IF(OR('TSA Input'!J545=\"Yes\",'TSA Input'!J545=\"Contingent\"),'TSA Input'!G545,\"\"))","v":""},{"$f":"IF('TSA Input'!J545=\"\",\"\",IF(OR('TSA Input'!J545=\"Yes\",'TSA Input'!J545=\"Contingent\"),'TSA Input'!F545,\"\"))","v":""},"","Required","Required"]
["",null,{"$f":"IF('TSA Input'!J546=\"\",\"\",IF(OR('TSA Input'!J546=\"Yes\",'TSA Input'!J546=\"Contingent\"),'TSA Input'!B546,\"Ineligible\"))","v":""},{"$f":"IF('TSA Input'!J546=\"\",\"\",IF(OR('TSA Input'!J546=\"Yes\",'TSA Input'!J546=\"Contingent\"),'TSA Input'!I546,\"\"))","v":""},{"$f":"IF('TSA Input'!J546=\"\",\"\",IF(OR('TSA Input'!J546=\"Yes\",'TSA Input'!J546=\"Contingent\"),'TSA Input'!C546,\"\"))","v":""},{"$f":"IF('TSA Input'!J546=\"\",\"\",IF(OR('TSA Input'!J546=\"Yes\",'TSA Input'!J546=\"Contingent\"),'TSA Input'!D546,\"\"))","v":""},{"$f":"IF('TSA Input'!J546=\"\",\"\",IF(OR('TSA Input'!J546=\"Yes\",'TSA Input'!J546=\"Contingent\"),'TSA Input'!G546,\"\"))","v":""},{"$f":"IF('TSA Input'!J546=\"\",\"\",IF(OR('TSA Input'!J546=\"Yes\",'TSA Input'!J546=\"Contingent\"),'TSA Input'!F546,\"\"))","v":""},"",{"$f":"IF('TSA Input'!J546=\"\",\"\",IF(OR('TSA Input'!J546=\"Yes\",'TSA Input'!J546=\"Contingent\"),'TSA Input'!D546,\"\"))","v":""},{"$f":"IF('TSA Input'!J546=\"\",\"\",IF(OR('TSA Input'!J546=\"Yes\",'TSA Input'!J546=\"Contingent\"),'TSA Input'!G546,\"\"))","v":""},{"$f":"IF('TSA Input'!J546=\"\",\"\",IF(OR('TSA Input'!J546=\"Yes\",'TSA Input'!J546=\"Contingent\"),'TSA Input'!F546,\"\"))","v":""},"","Required","Required"]
["",null,{"$f":"IF('TSA Input'!J547=\"\",\"\",IF(OR('TSA Input'!J547=\"Yes\",'TSA Input'!J547=\"Contingent\"),'TSA Input'!B547,\"Ineligible\"))","v":""},{"$f":"IF('TSA Input'!J547=\"\",\"\",IF(OR('TSA Input'!J547=\"Yes\",'TSA Input'!J547=\"Contingent\"),'TSA Input'!I547,\"\"))","v":""},{"$f":"IF('TSA Input'!J547=\"\",\"\",IF(OR('TSA Input'!J547=\"Yes\",'TSA Input'!J547=\"Contingent\"),'TSA Input'!C547,\"\"))","v":""},{"$f":"IF('TSA Input'!J547=\"\",\"\",IF(OR('TSA Input'!J547=\"Yes\",'TSA Input'!J547=\"Contingent\"),'TSA Input'!D547,\"\"))","v":""},{"$f":"IF('TSA Input'!J547=\"\",\"\",IF(OR('TSA Input'!J547=\"Yes\",'TSA Input'!J547=\"Contingent\"),'TSA Input'!G547,\"\"))","v":""},{"$f":"IF('TSA Input'!J547=\"\",\"\",IF(OR('TSA Input'!J547=\"Yes\",'TSA Input'!J547=\"Contingent\"),'TSA Input'!F547,\"\"))","v":""},"",{"$f":"IF('TSA Input'!J547=\"\",\"\",IF(OR('TSA Input'!J547=\"Yes\",'TSA Input'!J547=\"Contingent\"),'TSA Input'!D547,\"\"))","v":""},{"$f":"IF('TSA Input'!J547=\"\",\"\",IF(OR('TSA Input'!J547=\"Yes\",'TSA Input'!J547=\"Contingent\"),'TSA Input'!G547,\"\"))","v":""},{"$f":"IF('TSA Input'!J547=\"\",\"\",IF(OR('TSA Input'!J547=\"Yes\",'TSA Input'!J547=\"Contingent\"),'TSA Input'!F547,\"\"))","v":""},"","Required","Required"]
["",null,{"$f":"IF('TSA Input'!J548=\"\",\"\",IF(OR('TSA Input'!J548=\"Yes\",'TSA Input'!J548=\"Contingent\"),'TSA Input'!B548,\"Ineligible\"))","v":""},{"$f":"IF('TSA Input'!J548=\"\",\"\",IF(OR('TSA Input'!J548=\"Yes\",'TSA Input'!J548=\"Contingent\"),'TSA Input'!I548,\"\"))","v":""},{"$f":"IF('TSA Input'!J548=\"\",\"\",IF(OR('TSA Input'!J548=\"Yes\",'TSA Input'!J548=\"Contingent\"),'TSA Input'!C548,\"\"))","v":""},{"$f":"IF('TSA Input'!J548=\"\",\"\",IF(OR('TSA Input'!J548=\"Yes\",'TSA Input'!J548=\"Contingent\"),'TSA Input'!D548,\"\"))","v":""},{"$f":"IF('TSA Input'!J548=\"\",\"\",IF(OR('TSA Input'!J548=\"Yes\",'TSA Input'!J548=\"Contingent\"),'TSA Input'!G548,\"\"))","v":""},{"$f":"IF('TSA Input'!J548=\"\",\"\",IF(OR('TSA Input'!J548=\"Yes\",'TSA Input'!J548=\"Contingent\"),'TSA Input'!F548,\"\"))","v":""},"",{"$f":"IF('TSA Input'!J548=\"\",\"\",IF(OR('TSA Input'!J548=\"Yes\",'TSA Input'!J548=\"Contingent\"),'TSA Input'!D548,\"\"))","v":""},{"$f":"IF('TSA Input'!J548=\"\",\"\",IF(OR('TSA Input'!J548=\"Yes\",'TSA Input'!J548=\"Contingent\"),'TSA Input'!G548,\"\"))","v":""},{"$f":"IF('TSA Input'!J548=\"\",\"\",IF(OR('TSA Input'!J548=\"Yes\",'TSA Input'!J548=\"Contingent\"),'TSA Input'!F548,\"\"))","v":""},"","Required","Required"]
["",null,{"$f":"IF('TSA Input'!J549=\"\",\"\",IF(OR('TSA Input'!J549=\"Yes\",'TSA Input'!J549=\"Contingent\"),'TSA Input'!B549,\"Ineligible\"))","v":""},{"$f":"IF('TSA Input'!J549=\"\",\"\",IF(OR('TSA Input'!J549=\"Yes\",'TSA Input'!J549=\"Contingent\"),'TSA Input'!I549,\"\"))","v":""},{"$f":"IF('TSA Input'!J549=\"\",\"\",IF(OR('TSA Input'!J549=\"Yes\",'TSA Input'!J549=\"Contingent\"),'TSA Input'!C549,\"\"))","v":""},{"$f":"IF('TSA Input'!J549=\"\",\"\",IF(OR('TSA Input'!J549=\"Yes\",'TSA Input'!J549=\"Contingent\"),'TSA Input'!D549,\"\"))","v":""},{"$f":"IF('TSA Input'!J549=\"\",\"\",IF(OR('TSA Input'!J549=\"Yes\",'TSA Input'!J549=\"Contingent\"),'TSA Input'!G549,\"\"))","v":""},{"$f":"IF('TSA Input'!J549=\"\",\"\",IF(OR('TSA Input'!J549=\"Yes\",'TSA Input'!J549=\"Contingent\"),'TSA Input'!F549,\"\"))","v":""},"",{"$f":"IF('TSA Input'!J549=\"\",\"\",IF(OR('TSA Input'!J549=\"Yes\",'TSA Input'!J549=\"Contingent\"),'TSA Input'!D549,\"\"))","v":""},{"$f":"IF('TSA Input'!J549=\"\",\"\",IF(OR('TSA Input'!J549=\"Yes\",'TSA Input'!J549=\"Contingent\"),'TSA Input'!G549,\"\"))","v":""},{"$f":"IF('TSA Input'!J549=\"\",\"\",IF(OR('TSA Input'!J549=\"Yes\",'TSA Input'!J549=\"Contingent\"),'TSA Input'!F549,\"\"))","v":""},"","Required","Required"]
["",null,{"$f":"IF('TSA Input'!J550=\"\",\"\",IF(OR('TSA Input'!J550=\"Yes\",'TSA Input'!J550=\"Contingent\"),'TSA Input'!B550,\"Ineligible\"))","v":""},{"$f":"IF('TSA Input'!J550=\"\",\"\",IF(OR('TSA Input'!J550=\"Yes\",'TSA Input'!J550=\"Contingent\"),'TSA Input'!I550,\"\"))","v":""},{"$f":"IF('TSA Input'!J550=\"\",\"\",IF(OR('TSA Input'!J550=\"Yes\",'TSA Input'!J550=\"Contingent\"),'TSA Input'!C550,\"\"))","v":""},{"$f":"IF('TSA Input'!J550=\"\",\"\",IF(OR('TSA Input'!J550=\"Yes\",'TSA Input'!J550=\"Contingent\"),'TSA Input'!D550,\"\"))","v":""},{"$f":"IF('TSA Input'!J550=\"\",\"\",IF(OR('TSA Input'!J550=\"Yes\",'TSA Input'!J550=\"Contingent\"),'TSA Input'!G550,\"\"))","v":""},{"$f":"IF('TSA Input'!J550=\"\",\"\",IF(OR('TSA Input'!J550=\"Yes\",'TSA Input'!J550=\"Contingent\"),'TSA Input'!F550,\"\"))","v":""},"",{"$f":"IF('TSA Input'!J550=\"\",\"\",IF(OR('TSA Input'!J550=\"Yes\",'TSA Input'!J550=\"Contingent\"),'TSA Input'!D550,\"\"))","v":""},{"$f":"IF('TSA Input'!J550=\"\",\"\",IF(OR('TSA Input'!J550=\"Yes\",'TSA Input'!J550=\"Contingent\"),'TSA Input'!G550,\"\"))","v":""},{"$f":"IF('TSA Input'!J550=\"\",\"\",IF(OR('TSA Input'!J550=\"Yes\",'TSA Input'!J550=\"Contingent\"),'TSA Input'!F550,\"\"))","v":""},"","Required","Required"]
["",null,{"$f":"IF('TSA Input'!J551=\"\",\"\",IF(OR('TSA Input'!J551=\"Yes\",'TSA Input'!J551=\"Contingent\"),'TSA Input'!B551,\"Ineligible\"))","v":""},{"$f":"IF('TSA Input'!J551=\"\",\"\",IF(OR('TSA Input'!J551=\"Yes\",'TSA Input'!J551=\"Contingent\"),'TSA Input'!I551,\"\"))","v":""},{"$f":"IF('TSA Input'!J551=\"\",\"\",IF(OR('TSA Input'!J551=\"Yes\",'TSA Input'!J551=\"Contingent\"),'TSA Input'!C551,\"\"))","v":""},{"$f":"IF('TSA Input'!J551=\"\",\"\",IF(OR('TSA Input'!J551=\"Yes\",'TSA Input'!J551=\"Contingent\"),'TSA Input'!D551,\"\"))","v":""},{"$f":"IF('TSA Input'!J551=\"\",\"\",IF(OR('TSA Input'!J551=\"Yes\",'TSA Input'!J551=\"Contingent\"),'TSA Input'!G551,\"\"))","v":""},{"$f":"IF('TSA Input'!J551=\"\",\"\",IF(OR('TSA Input'!J551=\"Yes\",'TSA Input'!J551=\"Contingent\"),'TSA Input'!F551,\"\"))","v":""},"",{"$f":"IF('TSA Input'!J551=\"\",\"\",IF(OR('TSA Input'!J551=\"Yes\",'TSA Input'!J551=\"Contingent\"),'TSA Input'!D551,\"\"))","v":""},{"$f":"IF('TSA Input'!J551=\"\",\"\",IF(OR('TSA Input'!J551=\"Yes\",'TSA Input'!J551=\"Contingent\"),'TSA Input'!G551,\"\"))","v":""},{"$f":"IF('TSA Input'!J551=\"\",\"\",IF(OR('TSA Input'!J551=\"Yes\",'TSA Input'!J551=\"Contingent\"),'TSA Input'!F551,\"\"))","v":""},"","Required","Required"]
["",null,{"$f":"IF('TSA Input'!J552=\"\",\"\",IF(OR('TSA Input'!J552=\"Yes\",'TSA Input'!J552=\"Contingent\"),'TSA Input'!B552,\"Ineligible\"))","v":""},{"$f":"IF('TSA Input'!J552=\"\",\"\",IF(OR('TSA Input'!J552=\"Yes\",'TSA Input'!J552=\"Contingent\"),'TSA Input'!I552,\"\"))","v":""},{"$f":"IF('TSA Input'!J552=\"\",\"\",IF(OR('TSA Input'!J552=\"Yes\",'TSA Input'!J552=\"Contingent\"),'TSA Input'!C552,\"\"))","v":""},{"$f":"IF('TSA Input'!J552=\"\",\"\",IF(OR('TSA Input'!J552=\"Yes\",'TSA Input'!J552=\"Contingent\"),'TSA Input'!D552,\"\"))","v":""},{"$f":"IF('TSA Input'!J552=\"\",\"\",IF(OR('TSA Input'!J552=\"Yes\",'TSA Input'!J552=\"Contingent\"),'TSA Input'!G552,\"\"))","v":""},{"$f":"IF('TSA Input'!J552=\"\",\"\",IF(OR('TSA Input'!J552=\"Yes\",'TSA Input'!J552=\"Contingent\"),'TSA Input'!F552,\"\"))","v":""},"",{"$f":"IF('TSA Input'!J552=\"\",\"\",IF(OR('TSA Input'!J552=\"Yes\",'TSA Input'!J552=\"Contingent\"),'TSA Input'!D552,\"\"))","v":""},{"$f":"IF('TSA Input'!J552=\"\",\"\",IF(OR('TSA Input'!J552=\"Yes\",'TSA Input'!J552=\"Contingent\"),'TSA Input'!G552,\"\"))","v":""},{"$f":"IF('TSA Input'!J552=\"\",\"\",IF(OR('TSA Input'!J552=\"Yes\",'TSA Input'!J552=\"Contingent\"),'TSA Input'!F552,\"\"))","v":""},"","Required","Required"]
["",null,{"$f":"IF('TSA Input'!J553=\"\",\"\",IF(OR('TSA Input'!J553=\"Yes\",'TSA Input'!J553=\"Contingent\"),'TSA Input'!B553,\"Ineligible\"))","v":""},{"$f":"IF('TSA Input'!J553=\"\",\"\",IF(OR('TSA Input'!J553=\"Yes\",'TSA Input'!J553=\"Contingent\"),'TSA Input'!I553,\"\"))","v":""},{"$f":"IF('TSA Input'!J553=\"\",\"\",IF(OR('TSA Input'!J553=\"Yes\",'TSA Input'!J553=\"Contingent\"),'TSA Input'!C553,\"\"))","v":""},{"$f":"IF('TSA Input'!J553=\"\",\"\",IF(OR('TSA Input'!J553=\"Yes\",'TSA Input'!J553=\"Contingent\"),'TSA Input'!D553,\"\"))","v":""},{"$f":"IF('TSA Input'!J553=\"\",\"\",IF(OR('TSA Input'!J553=\"Yes\",'TSA Input'!J553=\"Contingent\"),'TSA Input'!G553,\"\"))","v":""},{"$f":"IF('TSA Input'!J553=\"\",\"\",IF(OR('TSA Input'!J553=\"Yes\",'TSA Input'!J553=\"Contingent\"),'TSA Input'!F553,\"\"))","v":""},"",{"$f":"IF('TSA Input'!J553=\"\",\"\",IF(OR('TSA Input'!J553=\"Yes\",'TSA Input'!J553=\"Contingent\"),'TSA Input'!D553,\"\"))","v":""},{"$f":"IF('TSA Input'!J553=\"\",\"\",IF(OR('TSA Input'!J553=\"Yes\",'TSA Input'!J553=\"Contingent\"),'TSA Input'!G553,\"\"))","v":""},{"$f":"IF('TSA Input'!J553=\"\",\"\",IF(OR('TSA Input'!J553=\"Yes\",'TSA Input'!J553=\"Contingent\"),'TSA Input'!F553,\"\"))","v":""},"","Required","Required"]
["",null,{"$f":"IF('TSA Input'!J554=\"\",\"\",IF(OR('TSA Input'!J554=\"Yes\",'TSA Input'!J554=\"Contingent\"),'TSA Input'!B554,\"Ineligible\"))","v":""},{"$f":"IF('TSA Input'!J554=\"\",\"\",IF(OR('TSA Input'!J554=\"Yes\",'TSA Input'!J554=\"Contingent\"),'TSA Input'!I554,\"\"))","v":""},{"$f":"IF('TSA Input'!J554=\"\",\"\",IF(OR('TSA Input'!J554=\"Yes\",'TSA Input'!J554=\"Contingent\"),'TSA Input'!C554,\"\"))","v":""},{"$f":"IF('TSA Input'!J554=\"\",\"\",IF(OR('TSA Input'!J554=\"Yes\",'TSA Input'!J554=\"Contingent\"),'TSA Input'!D554,\"\"))","v":""},{"$f":"IF('TSA Input'!J554=\"\",\"\",IF(OR('TSA Input'!J554=\"Yes\",'TSA Input'!J554=\"Contingent\"),'TSA Input'!G554,\"\"))","v":""},{"$f":"IF('TSA Input'!J554=\"\",\"\",IF(OR('TSA Input'!J554=\"Yes\",'TSA Input'!J554=\"Contingent\"),'TSA Input'!F554,\"\"))","v":""},"",{"$f":"IF('TSA Input'!J554=\"\",\"\",IF(OR('TSA Input'!J554=\"Yes\",'TSA Input'!J554=\"Contingent\"),'TSA Input'!D554,\"\"))","v":""},{"$f":"IF('TSA Input'!J554=\"\",\"\",IF(OR('TSA Input'!J554=\"Yes\",'TSA Input'!J554=\"Contingent\"),'TSA Input'!G554,\"\"))","v":""},{"$f":"IF('TSA Input'!J554=\"\",\"\",IF(OR('TSA Input'!J554=\"Yes\",'TSA Input'!J554=\"Contingent\"),'TSA Input'!F554,\"\"))","v":""},"","Required","Required"]
["",null,{"$f":"IF('TSA Input'!J555=\"\",\"\",IF(OR('TSA Input'!J555=\"Yes\",'TSA Input'!J555=\"Contingent\"),'TSA Input'!B555,\"Ineligible\"))","v":""},{"$f":"IF('TSA Input'!J555=\"\",\"\",IF(OR('TSA Input'!J555=\"Yes\",'TSA Input'!J555=\"Contingent\"),'TSA Input'!I555,\"\"))","v":""},{"$f":"IF('TSA Input'!J555=\"\",\"\",IF(OR('TSA Input'!J555=\"Yes\",'TSA Input'!J555=\"Contingent\"),'TSA Input'!C555,\"\"))","v":""},{"$f":"IF('TSA Input'!J555=\"\",\"\",IF(OR('TSA Input'!J555=\"Yes\",'TSA Input'!J555=\"Contingent\"),'TSA Input'!D555,\"\"))","v":""},{"$f":"IF('TSA Input'!J555=\"\",\"\",IF(OR('TSA Input'!J555=\"Yes\",'TSA Input'!J555=\"Contingent\"),'TSA Input'!G555,\"\"))","v":""},{"$f":"IF('TSA Input'!J555=\"\",\"\",IF(OR('TSA Input'!J555=\"Yes\",'TSA Input'!J555=\"Contingent\"),'TSA Input'!F555,\"\"))","v":""},"",{"$f":"IF('TSA Input'!J555=\"\",\"\",IF(OR('TSA Input'!J555=\"Yes\",'TSA Input'!J555=\"Contingent\"),'TSA Input'!D555,\"\"))","v":""},{"$f":"IF('TSA Input'!J555=\"\",\"\",IF(OR('TSA Input'!J555=\"Yes\",'TSA Input'!J555=\"Contingent\"),'TSA Input'!G555,\"\"))","v":""},{"$f":"IF('TSA Input'!J555=\"\",\"\",IF(OR('TSA Input'!J555=\"Yes\",'TSA Input'!J555=\"Contingent\"),'TSA Input'!F555,\"\"))","v":""},"","Required","Required"]
["",null,{"$f":"IF('TSA Input'!J556=\"\",\"\",IF(OR('TSA Input'!J556=\"Yes\",'TSA Input'!J556=\"Contingent\"),'TSA Input'!B556,\"Ineligible\"))","v":""},{"$f":"IF('TSA Input'!J556=\"\",\"\",IF(OR('TSA Input'!J556=\"Yes\",'TSA Input'!J556=\"Contingent\"),'TSA Input'!I556,\"\"))","v":""},{"$f":"IF('TSA Input'!J556=\"\",\"\",IF(OR('TSA Input'!J556=\"Yes\",'TSA Input'!J556=\"Contingent\"),'TSA Input'!C556,\"\"))","v":""},{"$f":"IF('TSA Input'!J556=\"\",\"\",IF(OR('TSA Input'!J556=\"Yes\",'TSA Input'!J556=\"Contingent\"),'TSA Input'!D556,\"\"))","v":""},{"$f":"IF('TSA Input'!J556=\"\",\"\",IF(OR('TSA Input'!J556=\"Yes\",'TSA Input'!J556=\"Contingent\"),'TSA Input'!G556,\"\"))","v":""},{"$f":"IF('TSA Input'!J556=\"\",\"\",IF(OR('TSA Input'!J556=\"Yes\",'TSA Input'!J556=\"Contingent\"),'TSA Input'!F556,\"\"))","v":""},"",{"$f":"IF('TSA Input'!J556=\"\",\"\",IF(OR('TSA Input'!J556=\"Yes\",'TSA Input'!J556=\"Contingent\"),'TSA Input'!D556,\"\"))","v":""},{"$f":"IF('TSA Input'!J556=\"\",\"\",IF(OR('TSA Input'!J556=\"Yes\",'TSA Input'!J556=\"Contingent\"),'TSA Input'!G556,\"\"))","v":""},{"$f":"IF('TSA Input'!J556=\"\",\"\",IF(OR('TSA Input'!J556=\"Yes\",'TSA Input'!J556=\"Contingent\"),'TSA Input'!F556,\"\"))","v":""},"","Required","Required"]
["",null,{"$f":"IF('TSA Input'!J557=\"\",\"\",IF(OR('TSA Input'!J557=\"Yes\",'TSA Input'!J557=\"Contingent\"),'TSA Input'!B557,\"Ineligible\"))","v":""},{"$f":"IF('TSA Input'!J557=\"\",\"\",IF(OR('TSA Input'!J557=\"Yes\",'TSA Input'!J557=\"Contingent\"),'TSA Input'!I557,\"\"))","v":""},{"$f":"IF('TSA Input'!J557=\"\",\"\",IF(OR('TSA Input'!J557=\"Yes\",'TSA Input'!J557=\"Contingent\"),'TSA Input'!C557,\"\"))","v":""},{"$f":"IF('TSA Input'!J557=\"\",\"\",IF(OR('TSA Input'!J557=\"Yes\",'TSA Input'!J557=\"Contingent\"),'TSA Input'!D557,\"\"))","v":""},{"$f":"IF('TSA Input'!J557=\"\",\"\",IF(OR('TSA Input'!J557=\"Yes\",'TSA Input'!J557=\"Contingent\"),'TSA Input'!G557,\"\"))","v":""},{"$f":"IF('TSA Input'!J557=\"\",\"\",IF(OR('TSA Input'!J557=\"Yes\",'TSA Input'!J557=\"Contingent\"),'TSA Input'!F557,\"\"))","v":""},"",{"$f":"IF('TSA Input'!J557=\"\",\"\",IF(OR('TSA Input'!J557=\"Yes\",'TSA Input'!J557=\"Contingent\"),'TSA Input'!D557,\"\"))","v":""},{"$f":"IF('TSA Input'!J557=\"\",\"\",IF(OR('TSA Input'!J557=\"Yes\",'TSA Input'!J557=\"Contingent\"),'TSA Input'!G557,\"\"))","v":""},{"$f":"IF('TSA Input'!J557=\"\",\"\",IF(OR('TSA Input'!J557=\"Yes\",'TSA Input'!J557=\"Contingent\"),'TSA Input'!F557,\"\"))","v":""},"","Required","Required"]
["",null,{"$f":"IF('TSA Input'!J558=\"\",\"\",IF(OR('TSA Input'!J558=\"Yes\",'TSA Input'!J558=\"Contingent\"),'TSA Input'!B558,\"Ineligible\"))","v":""},{"$f":"IF('TSA Input'!J558=\"\",\"\",IF(OR('TSA Input'!J558=\"Yes\",'TSA Input'!J558=\"Contingent\"),'TSA Input'!I558,\"\"))","v":""},{"$f":"IF('TSA Input'!J558=\"\",\"\",IF(OR('TSA Input'!J558=\"Yes\",'TSA Input'!J558=\"Contingent\"),'TSA Input'!C558,\"\"))","v":""},{"$f":"IF('TSA Input'!J558=\"\",\"\",IF(OR('TSA Input'!J558=\"Yes\",'TSA Input'!J558=\"Contingent\"),'TSA Input'!D558,\"\"))","v":""},{"$f":"IF('TSA Input'!J558=\"\",\"\",IF(OR('TSA Input'!J558=\"Yes\",'TSA Input'!J558=\"Contingent\"),'TSA Input'!G558,\"\"))","v":""},{"$f":"IF('TSA Input'!J558=\"\",\"\",IF(OR('TSA Input'!J558=\"Yes\",'TSA Input'!J558=\"Contingent\"),'TSA Input'!F558,\"\"))","v":""},"",{"$f":"IF('TSA Input'!J558=\"\",\"\",IF(OR('TSA Input'!J558=\"Yes\",'TSA Input'!J558=\"Contingent\"),'TSA Input'!D558,\"\"))","v":""},{"$f":"IF('TSA Input'!J558=\"\",\"\",IF(OR('TSA Input'!J558=\"Yes\",'TSA Input'!J558=\"Contingent\"),'TSA Input'!G558,\"\"))","v":""},{"$f":"IF('TSA Input'!J558=\"\",\"\",IF(OR('TSA Input'!J558=\"Yes\",'TSA Input'!J558=\"Contingent\"),'TSA Input'!F558,\"\"))","v":""},"","Required","Required"]
["",null,{"$f":"IF('TSA Input'!J559=\"\",\"\",IF(OR('TSA Input'!J559=\"Yes\",'TSA Input'!J559=\"Contingent\"),'TSA Input'!B559,\"Ineligible\"))","v":""},{"$f":"IF('TSA Input'!J559=\"\",\"\",IF(OR('TSA Input'!J559=\"Yes\",'TSA Input'!J559=\"Contingent\"),'TSA Input'!I559,\"\"))","v":""},{"$f":"IF('TSA Input'!J559=\"\",\"\",IF(OR('TSA Input'!J559=\"Yes\",'TSA Input'!J559=\"Contingent\"),'TSA Input'!C559,\"\"))","v":""},{"$f":"IF('TSA Input'!J559=\"\",\"\",IF(OR('TSA Input'!J559=\"Yes\",'TSA Input'!J559=\"Contingent\"),'TSA Input'!D559,\"\"))","v":""},{"$f":"IF('TSA Input'!J559=\"\",\"\",IF(OR('TSA Input'!J559=\"Yes\",'TSA Input'!J559=\"Contingent\"),'TSA Input'!G559,\"\"))","v":""},{"$f":"IF('TSA Input'!J559=\"\",\"\",IF(OR('TSA Input'!J559=\"Yes\",'TSA Input'!J559=\"Contingent\"),'TSA Input'!F559,\"\"))","v":""},"",{"$f":"IF('TSA Input'!J559=\"\",\"\",IF(OR('TSA Input'!J559=\"Yes\",'TSA Input'!J559=\"Contingent\"),'TSA Input'!D559,\"\"))","v":""},{"$f":"IF('TSA Input'!J559=\"\",\"\",IF(OR('TSA Input'!J559=\"Yes\",'TSA Input'!J559=\"Contingent\"),'TSA Input'!G559,\"\"))","v":""},{"$f":"IF('TSA Input'!J559=\"\",\"\",IF(OR('TSA Input'!J559=\"Yes\",'TSA Input'!J559=\"Contingent\"),'TSA Input'!F559,\"\"))","v":""},"","Required","Required"]
["",null,{"$f":"IF('TSA Input'!J560=\"\",\"\",IF(OR('TSA Input'!J560=\"Yes\",'TSA Input'!J560=\"Contingent\"),'TSA Input'!B560,\"Ineligible\"))","v":""},{"$f":"IF('TSA Input'!J560=\"\",\"\",IF(OR('TSA Input'!J560=\"Yes\",'TSA Input'!J560=\"Contingent\"),'TSA Input'!I560,\"\"))","v":""},{"$f":"IF('TSA Input'!J560=\"\",\"\",IF(OR('TSA Input'!J560=\"Yes\",'TSA Input'!J560=\"Contingent\"),'TSA Input'!C560,\"\"))","v":""},{"$f":"IF('TSA Input'!J560=\"\",\"\",IF(OR('TSA Input'!J560=\"Yes\",'TSA Input'!J560=\"Contingent\"),'TSA Input'!D560,\"\"))","v":""},{"$f":"IF('TSA Input'!J560=\"\",\"\",IF(OR('TSA Input'!J560=\"Yes\",'TSA Input'!J560=\"Contingent\"),'TSA Input'!G560,\"\"))","v":""},{"$f":"IF('TSA Input'!J560=\"\",\"\",IF(OR('TSA Input'!J560=\"Yes\",'TSA Input'!J560=\"Contingent\"),'TSA Input'!F560,\"\"))","v":""},"",{"$f":"IF('TSA Input'!J560=\"\",\"\",IF(OR('TSA Input'!J560=\"Yes\",'TSA Input'!J560=\"Contingent\"),'TSA Input'!D560,\"\"))","v":""},{"$f":"IF('TSA Input'!J560=\"\",\"\",IF(OR('TSA Input'!J560=\"Yes\",'TSA Input'!J560=\"Contingent\"),'TSA Input'!G560,\"\"))","v":""},{"$f":"IF('TSA Input'!J560=\"\",\"\",IF(OR('TSA Input'!J560=\"Yes\",'TSA Input'!J560=\"Contingent\"),'TSA Input'!F560,\"\"))","v":""},"","Required","Required"]
["",null,{"$f":"IF('TSA Input'!J561=\"\",\"\",IF(OR('TSA Input'!J561=\"Yes\",'TSA Input'!J561=\"Contingent\"),'TSA Input'!B561,\"Ineligible\"))","v":""},{"$f":"IF('TSA Input'!J561=\"\",\"\",IF(OR('TSA Input'!J561=\"Yes\",'TSA Input'!J561=\"Contingent\"),'TSA Input'!I561,\"\"))","v":""},{"$f":"IF('TSA Input'!J561=\"\",\"\",IF(OR('TSA Input'!J561=\"Yes\",'TSA Input'!J561=\"Contingent\"),'TSA Input'!C561,\"\"))","v":""},{"$f":"IF('TSA Input'!J561=\"\",\"\",IF(OR('TSA Input'!J561=\"Yes\",'TSA Input'!J561=\"Contingent\"),'TSA Input'!D561,\"\"))","v":""},{"$f":"IF('TSA Input'!J561=\"\",\"\",IF(OR('TSA Input'!J561=\"Yes\",'TSA Input'!J561=\"Contingent\"),'TSA Input'!G561,\"\"))","v":""},{"$f":"IF('TSA Input'!J561=\"\",\"\",IF(OR('TSA Input'!J561=\"Yes\",'TSA Input'!J561=\"Contingent\"),'TSA Input'!F561,\"\"))","v":""},"",{"$f":"IF('TSA Input'!J561=\"\",\"\",IF(OR('TSA Input'!J561=\"Yes\",'TSA Input'!J561=\"Contingent\"),'TSA Input'!D561,\"\"))","v":""},{"$f":"IF('TSA Input'!J561=\"\",\"\",IF(OR('TSA Input'!J561=\"Yes\",'TSA Input'!J561=\"Contingent\"),'TSA Input'!G561,\"\"))","v":""},{"$f":"IF('TSA Input'!J561=\"\",\"\",IF(OR('TSA Input'!J561=\"Yes\",'TSA Input'!J561=\"Contingent\"),'TSA Input'!F561,\"\"))","v":""},"","Required","Required"]
["",null,{"$f":"IF('TSA Input'!J562=\"\",\"\",IF(OR('TSA Input'!J562=\"Yes\",'TSA Input'!J562=\"Contingent\"),'TSA Input'!B562,\"Ineligible\"))","v":""},{"$f":"IF('TSA Input'!J562=\"\",\"\",IF(OR('TSA Input'!J562=\"Yes\",'TSA Input'!J562=\"Contingent\"),'TSA Input'!I562,\"\"))","v":""},{"$f":"IF('TSA Input'!J562=\"\",\"\",IF(OR('TSA Input'!J562=\"Yes\",'TSA Input'!J562=\"Contingent\"),'TSA Input'!C562,\"\"))","v":""},{"$f":"IF('TSA Input'!J562=\"\",\"\",IF(OR('TSA Input'!J562=\"Yes\",'TSA Input'!J562=\"Contingent\"),'TSA Input'!D562,\"\"))","v":""},{"$f":"IF('TSA Input'!J562=\"\",\"\",IF(OR('TSA Input'!J562=\"Yes\",'TSA Input'!J562=\"Contingent\"),'TSA Input'!G562,\"\"))","v":""},{"$f":"IF('TSA Input'!J562=\"\",\"\",IF(OR('TSA Input'!J562=\"Yes\",'TSA Input'!J562=\"Contingent\"),'TSA Input'!F562,\"\"))","v":""},"",{"$f":"IF('TSA Input'!J562=\"\",\"\",IF(OR('TSA Input'!J562=\"Yes\",'TSA Input'!J562=\"Contingent\"),'TSA Input'!D562,\"\"))","v":""},{"$f":"IF('TSA Input'!J562=\"\",\"\",IF(OR('TSA Input'!J562=\"Yes\",'TSA Input'!J562=\"Contingent\"),'TSA Input'!G562,\"\"))","v":""},{"$f":"IF('TSA Input'!J562=\"\",\"\",IF(OR('TSA Input'!J562=\"Yes\",'TSA Input'!J562=\"Contingent\"),'TSA Input'!F562,\"\"))","v":""},"","Required","Required"]
["",null,{"$f":"IF('TSA Input'!J563=\"\",\"\",IF(OR('TSA Input'!J563=\"Yes\",'TSA Input'!J563=\"Contingent\"),'TSA Input'!B563,\"Ineligible\"))","v":""},{"$f":"IF('TSA Input'!J563=\"\",\"\",IF(OR('TSA Input'!J563=\"Yes\",'TSA Input'!J563=\"Contingent\"),'TSA Input'!I563,\"\"))","v":""},{"$f":"IF('TSA Input'!J563=\"\",\"\",IF(OR('TSA Input'!J563=\"Yes\",'TSA Input'!J563=\"Contingent\"),'TSA Input'!C563,\"\"))","v":""},{"$f":"IF('TSA Input'!J563=\"\",\"\",IF(OR('TSA Input'!J563=\"Yes\",'TSA Input'!J563=\"Contingent\"),'TSA Input'!D563,\"\"))","v":""},{"$f":"IF('TSA Input'!J563=\"\",\"\",IF(OR('TSA Input'!J563=\"Yes\",'TSA Input'!J563=\"Contingent\"),'TSA Input'!G563,\"\"))","v":""},{"$f":"IF('TSA Input'!J563=\"\",\"\",IF(OR('TSA Input'!J563=\"Yes\",'TSA Input'!J563=\"Contingent\"),'TSA Input'!F563,\"\"))","v":""},"",{"$f":"IF('TSA Input'!J563=\"\",\"\",IF(OR('TSA Input'!J563=\"Yes\",'TSA Input'!J563=\"Contingent\"),'TSA Input'!D563,\"\"))","v":""},{"$f":"IF('TSA Input'!J563=\"\",\"\",IF(OR('TSA Input'!J563=\"Yes\",'TSA Input'!J563=\"Contingent\"),'TSA Input'!G563,\"\"))","v":""},{"$f":"IF('TSA Input'!J563=\"\",\"\",IF(OR('TSA Input'!J563=\"Yes\",'TSA Input'!J563=\"Contingent\"),'TSA Input'!F563,\"\"))","v":""},"","Required","Required"]
["",null,{"$f":"IF('TSA Input'!J564=\"\",\"\",IF(OR('TSA Input'!J564=\"Yes\",'TSA Input'!J564=\"Contingent\"),'TSA Input'!B564,\"Ineligible\"))","v":""},{"$f":"IF('TSA Input'!J564=\"\",\"\",IF(OR('TSA Input'!J564=\"Yes\",'TSA Input'!J564=\"Contingent\"),'TSA Input'!I564,\"\"))","v":""},{"$f":"IF('TSA Input'!J564=\"\",\"\",IF(OR('TSA Input'!J564=\"Yes\",'TSA Input'!J564=\"Contingent\"),'TSA Input'!C564,\"\"))","v":""},{"$f":"IF('TSA Input'!J564=\"\",\"\",IF(OR('TSA Input'!J564=\"Yes\",'TSA Input'!J564=\"Contingent\"),'TSA Input'!D564,\"\"))","v":""},{"$f":"IF('TSA Input'!J564=\"\",\"\",IF(OR('TSA Input'!J564=\"Yes\",'TSA Input'!J564=\"Contingent\"),'TSA Input'!G564,\"\"))","v":""},{"$f":"IF('TSA Input'!J564=\"\",\"\",IF(OR('TSA Input'!J564=\"Yes\",'TSA Input'!J564=\"Contingent\"),'TSA Input'!F564,\"\"))","v":""},"",{"$f":"IF('TSA Input'!J564=\"\",\"\",IF(OR('TSA Input'!J564=\"Yes\",'TSA Input'!J564=\"Contingent\"),'TSA Input'!D564,\"\"))","v":""},{"$f":"IF('TSA Input'!J564=\"\",\"\",IF(OR('TSA Input'!J564=\"Yes\",'TSA Input'!J564=\"Contingent\"),'TSA Input'!G564,\"\"))","v":""},{"$f":"IF('TSA Input'!J564=\"\",\"\",IF(OR('TSA Input'!J564=\"Yes\",'TSA Input'!J564=\"Contingent\"),'TSA Input'!F564,\"\"))","v":""},"","Required","Required"]
["",null,{"$f":"IF('TSA Input'!J565=\"\",\"\",IF(OR('TSA Input'!J565=\"Yes\",'TSA Input'!J565=\"Contingent\"),'TSA Input'!B565,\"Ineligible\"))","v":""},{"$f":"IF('TSA Input'!J565=\"\",\"\",IF(OR('TSA Input'!J565=\"Yes\",'TSA Input'!J565=\"Contingent\"),'TSA Input'!I565,\"\"))","v":""},{"$f":"IF('TSA Input'!J565=\"\",\"\",IF(OR('TSA Input'!J565=\"Yes\",'TSA Input'!J565=\"Contingent\"),'TSA Input'!C565,\"\"))","v":""},{"$f":"IF('TSA Input'!J565=\"\",\"\",IF(OR('TSA Input'!J565=\"Yes\",'TSA Input'!J565=\"Contingent\"),'TSA Input'!D565,\"\"))","v":""},{"$f":"IF('TSA Input'!J565=\"\",\"\",IF(OR('TSA Input'!J565=\"Yes\",'TSA Input'!J565=\"Contingent\"),'TSA Input'!G565,\"\"))","v":""},{"$f":"IF('TSA Input'!J565=\"\",\"\",IF(OR('TSA Input'!J565=\"Yes\",'TSA Input'!J565=\"Contingent\"),'TSA Input'!F565,\"\"))","v":""},"",{"$f":"IF('TSA Input'!J565=\"\",\"\",IF(OR('TSA Input'!J565=\"Yes\",'TSA Input'!J565=\"Contingent\"),'TSA Input'!D565,\"\"))","v":""},{"$f":"IF('TSA Input'!J565=\"\",\"\",IF(OR('TSA Input'!J565=\"Yes\",'TSA Input'!J565=\"Contingent\"),'TSA Input'!G565,\"\"))","v":""},{"$f":"IF('TSA Input'!J565=\"\",\"\",IF(OR('TSA Input'!J565=\"Yes\",'TSA Input'!J565=\"Contingent\"),'TSA Input'!F565,\"\"))","v":""},"","Required","Required"]
["",null,{"$f":"IF('TSA Input'!J566=\"\",\"\",IF(OR('TSA Input'!J566=\"Yes\",'TSA Input'!J566=\"Contingent\"),'TSA Input'!B566,\"Ineligible\"))","v":""},{"$f":"IF('TSA Input'!J566=\"\",\"\",IF(OR('TSA Input'!J566=\"Yes\",'TSA Input'!J566=\"Contingent\"),'TSA Input'!I566,\"\"))","v":""},{"$f":"IF('TSA Input'!J566=\"\",\"\",IF(OR('TSA Input'!J566=\"Yes\",'TSA Input'!J566=\"Contingent\"),'TSA Input'!C566,\"\"))","v":""},{"$f":"IF('TSA Input'!J566=\"\",\"\",IF(OR('TSA Input'!J566=\"Yes\",'TSA Input'!J566=\"Contingent\"),'TSA Input'!D566,\"\"))","v":""},{"$f":"IF('TSA Input'!J566=\"\",\"\",IF(OR('TSA Input'!J566=\"Yes\",'TSA Input'!J566=\"Contingent\"),'TSA Input'!G566,\"\"))","v":""},{"$f":"IF('TSA Input'!J566=\"\",\"\",IF(OR('TSA Input'!J566=\"Yes\",'TSA Input'!J566=\"Contingent\"),'TSA Input'!F566,\"\"))","v":""},"",{"$f":"IF('TSA Input'!J566=\"\",\"\",IF(OR('TSA Input'!J566=\"Yes\",'TSA Input'!J566=\"Contingent\"),'TSA Input'!D566,\"\"))","v":""},{"$f":"IF('TSA Input'!J566=\"\",\"\",IF(OR('TSA Input'!J566=\"Yes\",'TSA Input'!J566=\"Contingent\"),'TSA Input'!G566,\"\"))","v":""},{"$f":"IF('TSA Input'!J566=\"\",\"\",IF(OR('TSA Input'!J566=\"Yes\",'TSA Input'!J566=\"Contingent\"),'TSA Input'!F566,\"\"))","v":""},"","Required","Required"]
["",null,{"$f":"IF('TSA Input'!J567=\"\",\"\",IF(OR('TSA Input'!J567=\"Yes\",'TSA Input'!J567=\"Contingent\"),'TSA Input'!B567,\"Ineligible\"))","v":""},{"$f":"IF('TSA Input'!J567=\"\",\"\",IF(OR('TSA Input'!J567=\"Yes\",'TSA Input'!J567=\"Contingent\"),'TSA Input'!I567,\"\"))","v":""},{"$f":"IF('TSA Input'!J567=\"\",\"\",IF(OR('TSA Input'!J567=\"Yes\",'TSA Input'!J567=\"Contingent\"),'TSA Input'!C567,\"\"))","v":""},{"$f":"IF('TSA Input'!J567=\"\",\"\",IF(OR('TSA Input'!J567=\"Yes\",'TSA Input'!J567=\"Contingent\"),'TSA Input'!D567,\"\"))","v":""},{"$f":"IF('TSA Input'!J567=\"\",\"\",IF(OR('TSA Input'!J567=\"Yes\",'TSA Input'!J567=\"Contingent\"),'TSA Input'!G567,\"\"))","v":""},{"$f":"IF('TSA Input'!J567=\"\",\"\",IF(OR('TSA Input'!J567=\"Yes\",'TSA Input'!J567=\"Contingent\"),'TSA Input'!F567,\"\"))","v":""},"",{"$f":"IF('TSA Input'!J567=\"\",\"\",IF(OR('TSA Input'!J567=\"Yes\",'TSA Input'!J567=\"Contingent\"),'TSA Input'!D567,\"\"))","v":""},{"$f":"IF('TSA Input'!J567=\"\",\"\",IF(OR('TSA Input'!J567=\"Yes\",'TSA Input'!J567=\"Contingent\"),'TSA Input'!G567,\"\"))","v":""},{"$f":"IF('TSA Input'!J567=\"\",\"\",IF(OR('TSA Input'!J567=\"Yes\",'TSA Input'!J567=\"Contingent\"),'TSA Input'!F567,\"\"))","v":""},"","Required","Required"]
["",null,{"$f":"IF('TSA Input'!J568=\"\",\"\",IF(OR('TSA Input'!J568=\"Yes\",'TSA Input'!J568=\"Contingent\"),'TSA Input'!B568,\"Ineligible\"))","v":""},{"$f":"IF('TSA Input'!J568=\"\",\"\",IF(OR('TSA Input'!J568=\"Yes\",'TSA Input'!J568=\"Contingent\"),'TSA Input'!I568,\"\"))","v":""},{"$f":"IF('TSA Input'!J568=\"\",\"\",IF(OR('TSA Input'!J568=\"Yes\",'TSA Input'!J568=\"Contingent\"),'TSA Input'!C568,\"\"))","v":""},{"$f":"IF('TSA Input'!J568=\"\",\"\",IF(OR('TSA Input'!J568=\"Yes\",'TSA Input'!J568=\"Contingent\"),'TSA Input'!D568,\"\"))","v":""},{"$f":"IF('TSA Input'!J568=\"\",\"\",IF(OR('TSA Input'!J568=\"Yes\",'TSA Input'!J568=\"Contingent\"),'TSA Input'!G568,\"\"))","v":""},{"$f":"IF('TSA Input'!J568=\"\",\"\",IF(OR('TSA Input'!J568=\"Yes\",'TSA Input'!J568=\"Contingent\"),'TSA Input'!F568,\"\"))","v":""},"",{"$f":"IF('TSA Input'!J568=\"\",\"\",IF(OR('TSA Input'!J568=\"Yes\",'TSA Input'!J568=\"Contingent\"),'TSA Input'!D568,\"\"))","v":""},{"$f":"IF('TSA Input'!J568=\"\",\"\",IF(OR('TSA Input'!J568=\"Yes\",'TSA Input'!J568=\"Contingent\"),'TSA Input'!G568,\"\"))","v":""},{"$f":"IF('TSA Input'!J568=\"\",\"\",IF(OR('TSA Input'!J568=\"Yes\",'TSA Input'!J568=\"Contingent\"),'TSA Input'!F568,\"\"))","v":""},"","Required","Required"]
["",null,{"$f":"IF('TSA Input'!J569=\"\",\"\",IF(OR('TSA Input'!J569=\"Yes\",'TSA Input'!J569=\"Contingent\"),'TSA Input'!B569,\"Ineligible\"))","v":""},{"$f":"IF('TSA Input'!J569=\"\",\"\",IF(OR('TSA Input'!J569=\"Yes\",'TSA Input'!J569=\"Contingent\"),'TSA Input'!I569,\"\"))","v":""},{"$f":"IF('TSA Input'!J569=\"\",\"\",IF(OR('TSA Input'!J569=\"Yes\",'TSA Input'!J569=\"Contingent\"),'TSA Input'!C569,\"\"))","v":""},{"$f":"IF('TSA Input'!J569=\"\",\"\",IF(OR('TSA Input'!J569=\"Yes\",'TSA Input'!J569=\"Contingent\"),'TSA Input'!D569,\"\"))","v":""},{"$f":"IF('TSA Input'!J569=\"\",\"\",IF(OR('TSA Input'!J569=\"Yes\",'TSA Input'!J569=\"Contingent\"),'TSA Input'!G569,\"\"))","v":""},{"$f":"IF('TSA Input'!J569=\"\",\"\",IF(OR('TSA Input'!J569=\"Yes\",'TSA Input'!J569=\"Contingent\"),'TSA Input'!F569,\"\"))","v":""},"",{"$f":"IF('TSA Input'!J569=\"\",\"\",IF(OR('TSA Input'!J569=\"Yes\",'TSA Input'!J569=\"Contingent\"),'TSA Input'!D569,\"\"))","v":""},{"$f":"IF('TSA Input'!J569=\"\",\"\",IF(OR('TSA Input'!J569=\"Yes\",'TSA Input'!J569=\"Contingent\"),'TSA Input'!G569,\"\"))","v":""},{"$f":"IF('TSA Input'!J569=\"\",\"\",IF(OR('TSA Input'!J569=\"Yes\",'TSA Input'!J569=\"Contingent\"),'TSA Input'!F569,\"\"))","v":""},"","Required","Required"]
["",null,{"$f":"IF('TSA Input'!J570=\"\",\"\",IF(OR('TSA Input'!J570=\"Yes\",'TSA Input'!J570=\"Contingent\"),'TSA Input'!B570,\"Ineligible\"))","v":""},{"$f":"IF('TSA Input'!J570=\"\",\"\",IF(OR('TSA Input'!J570=\"Yes\",'TSA Input'!J570=\"Contingent\"),'TSA Input'!I570,\"\"))","v":""},{"$f":"IF('TSA Input'!J570=\"\",\"\",IF(OR('TSA Input'!J570=\"Yes\",'TSA Input'!J570=\"Contingent\"),'TSA Input'!C570,\"\"))","v":""},{"$f":"IF('TSA Input'!J570=\"\",\"\",IF(OR('TSA Input'!J570=\"Yes\",'TSA Input'!J570=\"Contingent\"),'TSA Input'!D570,\"\"))","v":""},{"$f":"IF('TSA Input'!J570=\"\",\"\",IF(OR('TSA Input'!J570=\"Yes\",'TSA Input'!J570=\"Contingent\"),'TSA Input'!G570,\"\"))","v":""},{"$f":"IF('TSA Input'!J570=\"\",\"\",IF(OR('TSA Input'!J570=\"Yes\",'TSA Input'!J570=\"Contingent\"),'TSA Input'!F570,\"\"))","v":""},"",{"$f":"IF('TSA Input'!J570=\"\",\"\",IF(OR('TSA Input'!J570=\"Yes\",'TSA Input'!J570=\"Contingent\"),'TSA Input'!D570,\"\"))","v":""},{"$f":"IF('TSA Input'!J570=\"\",\"\",IF(OR('TSA Input'!J570=\"Yes\",'TSA Input'!J570=\"Contingent\"),'TSA Input'!G570,\"\"))","v":""},{"$f":"IF('TSA Input'!J570=\"\",\"\",IF(OR('TSA Input'!J570=\"Yes\",'TSA Input'!J570=\"Contingent\"),'TSA Input'!F570,\"\"))","v":""},"","Required","Required"]
["",null,{"$f":"IF('TSA Input'!J571=\"\",\"\",IF(OR('TSA Input'!J571=\"Yes\",'TSA Input'!J571=\"Contingent\"),'TSA Input'!B571,\"Ineligible\"))","v":""},{"$f":"IF('TSA Input'!J571=\"\",\"\",IF(OR('TSA Input'!J571=\"Yes\",'TSA Input'!J571=\"Contingent\"),'TSA Input'!I571,\"\"))","v":""},{"$f":"IF('TSA Input'!J571=\"\",\"\",IF(OR('TSA Input'!J571=\"Yes\",'TSA Input'!J571=\"Contingent\"),'TSA Input'!C571,\"\"))","v":""},{"$f":"IF('TSA Input'!J571=\"\",\"\",IF(OR('TSA Input'!J571=\"Yes\",'TSA Input'!J571=\"Contingent\"),'TSA Input'!D571,\"\"))","v":""},{"$f":"IF('TSA Input'!J571=\"\",\"\",IF(OR('TSA Input'!J571=\"Yes\",'TSA Input'!J571=\"Contingent\"),'TSA Input'!G571,\"\"))","v":""},{"$f":"IF('TSA Input'!J571=\"\",\"\",IF(OR('TSA Input'!J571=\"Yes\",'TSA Input'!J571=\"Contingent\"),'TSA Input'!F571,\"\"))","v":""},"",{"$f":"IF('TSA Input'!J571=\"\",\"\",IF(OR('TSA Input'!J571=\"Yes\",'TSA Input'!J571=\"Contingent\"),'TSA Input'!D571,\"\"))","v":""},{"$f":"IF('TSA Input'!J571=\"\",\"\",IF(OR('TSA Input'!J571=\"Yes\",'TSA Input'!J571=\"Contingent\"),'TSA Input'!G571,\"\"))","v":""},{"$f":"IF('TSA Input'!J571=\"\",\"\",IF(OR('TSA Input'!J571=\"Yes\",'TSA Input'!J571=\"Contingent\"),'TSA Input'!F571,\"\"))","v":""},"","Required","Required"]
["",null,{"$f":"IF('TSA Input'!J572=\"\",\"\",IF(OR('TSA Input'!J572=\"Yes\",'TSA Input'!J572=\"Contingent\"),'TSA Input'!B572,\"Ineligible\"))","v":""},{"$f":"IF('TSA Input'!J572=\"\",\"\",IF(OR('TSA Input'!J572=\"Yes\",'TSA Input'!J572=\"Contingent\"),'TSA Input'!I572,\"\"))","v":""},{"$f":"IF('TSA Input'!J572=\"\",\"\",IF(OR('TSA Input'!J572=\"Yes\",'TSA Input'!J572=\"Contingent\"),'TSA Input'!C572,\"\"))","v":""},{"$f":"IF('TSA Input'!J572=\"\",\"\",IF(OR('TSA Input'!J572=\"Yes\",'TSA Input'!J572=\"Contingent\"),'TSA Input'!D572,\"\"))","v":""},{"$f":"IF('TSA Input'!J572=\"\",\"\",IF(OR('TSA Input'!J572=\"Yes\",'TSA Input'!J572=\"Contingent\"),'TSA Input'!G572,\"\"))","v":""},{"$f":"IF('TSA Input'!J572=\"\",\"\",IF(OR('TSA Input'!J572=\"Yes\",'TSA Input'!J572=\"Contingent\"),'TSA Input'!F572,\"\"))","v":""},"",{"$f":"IF('TSA Input'!J572=\"\",\"\",IF(OR('TSA Input'!J572=\"Yes\",'TSA Input'!J572=\"Contingent\"),'TSA Input'!D572,\"\"))","v":""},{"$f":"IF('TSA Input'!J572=\"\",\"\",IF(OR('TSA Input'!J572=\"Yes\",'TSA Input'!J572=\"Contingent\"),'TSA Input'!G572,\"\"))","v":""},{"$f":"IF('TSA Input'!J572=\"\",\"\",IF(OR('TSA Input'!J572=\"Yes\",'TSA Input'!J572=\"Contingent\"),'TSA Input'!F572,\"\"))","v":""},"","Required","Required"]
["",null,{"$f":"IF('TSA Input'!J573=\"\",\"\",IF(OR('TSA Input'!J573=\"Yes\",'TSA Input'!J573=\"Contingent\"),'TSA Input'!B573,\"Ineligible\"))","v":""},{"$f":"IF('TSA Input'!J573=\"\",\"\",IF(OR('TSA Input'!J573=\"Yes\",'TSA Input'!J573=\"Contingent\"),'TSA Input'!I573,\"\"))","v":""},{"$f":"IF('TSA Input'!J573=\"\",\"\",IF(OR('TSA Input'!J573=\"Yes\",'TSA Input'!J573=\"Contingent\"),'TSA Input'!C573,\"\"))","v":""},{"$f":"IF('TSA Input'!J573=\"\",\"\",IF(OR('TSA Input'!J573=\"Yes\",'TSA Input'!J573=\"Contingent\"),'TSA Input'!D573,\"\"))","v":""},{"$f":"IF('TSA Input'!J573=\"\",\"\",IF(OR('TSA Input'!J573=\"Yes\",'TSA Input'!J573=\"Contingent\"),'TSA Input'!G573,\"\"))","v":""},{"$f":"IF('TSA Input'!J573=\"\",\"\",IF(OR('TSA Input'!J573=\"Yes\",'TSA Input'!J573=\"Contingent\"),'TSA Input'!F573,\"\"))","v":""},"",{"$f":"IF('TSA Input'!J573=\"\",\"\",IF(OR('TSA Input'!J573=\"Yes\",'TSA Input'!J573=\"Contingent\"),'TSA Input'!D573,\"\"))","v":""},{"$f":"IF('TSA Input'!J573=\"\",\"\",IF(OR('TSA Input'!J573=\"Yes\",'TSA Input'!J573=\"Contingent\"),'TSA Input'!G573,\"\"))","v":""},{"$f":"IF('TSA Input'!J573=\"\",\"\",IF(OR('TSA Input'!J573=\"Yes\",'TSA Input'!J573=\"Contingent\"),'TSA Input'!F573,\"\"))","v":""},"","Required","Required"]
["",null,{"$f":"IF('TSA Input'!J574=\"\",\"\",IF(OR('TSA Input'!J574=\"Yes\",'TSA Input'!J574=\"Contingent\"),'TSA Input'!B574,\"Ineligible\"))","v":""},{"$f":"IF('TSA Input'!J574=\"\",\"\",IF(OR('TSA Input'!J574=\"Yes\",'TSA Input'!J574=\"Contingent\"),'TSA Input'!I574,\"\"))","v":""},{"$f":"IF('TSA Input'!J574=\"\",\"\",IF(OR('TSA Input'!J574=\"Yes\",'TSA Input'!J574=\"Contingent\"),'TSA Input'!C574,\"\"))","v":""},{"$f":"IF('TSA Input'!J574=\"\",\"\",IF(OR('TSA Input'!J574=\"Yes\",'TSA Input'!J574=\"Contingent\"),'TSA Input'!D574,\"\"))","v":""},{"$f":"IF('TSA Input'!J574=\"\",\"\",IF(OR('TSA Input'!J574=\"Yes\",'TSA Input'!J574=\"Contingent\"),'TSA Input'!G574,\"\"))","v":""},{"$f":"IF('TSA Input'!J574=\"\",\"\",IF(OR('TSA Input'!J574=\"Yes\",'TSA Input'!J574=\"Contingent\"),'TSA Input'!F574,\"\"))","v":""},"",{"$f":"IF('TSA Input'!J574=\"\",\"\",IF(OR('TSA Input'!J574=\"Yes\",'TSA Input'!J574=\"Contingent\"),'TSA Input'!D574,\"\"))","v":""},{"$f":"IF('TSA Input'!J574=\"\",\"\",IF(OR('TSA Input'!J574=\"Yes\",'TSA Input'!J574=\"Contingent\"),'TSA Input'!G574,\"\"))","v":""},{"$f":"IF('TSA Input'!J574=\"\",\"\",IF(OR('TSA Input'!J574=\"Yes\",'TSA Input'!J574=\"Contingent\"),'TSA Input'!F574,\"\"))","v":""},"","Required","Required"]
["",null,{"$f":"IF('TSA Input'!J575=\"\",\"\",IF(OR('TSA Input'!J575=\"Yes\",'TSA Input'!J575=\"Contingent\"),'TSA Input'!B575,\"Ineligible\"))","v":""},{"$f":"IF('TSA Input'!J575=\"\",\"\",IF(OR('TSA Input'!J575=\"Yes\",'TSA Input'!J575=\"Contingent\"),'TSA Input'!I575,\"\"))","v":""},{"$f":"IF('TSA Input'!J575=\"\",\"\",IF(OR('TSA Input'!J575=\"Yes\",'TSA Input'!J575=\"Contingent\"),'TSA Input'!C575,\"\"))","v":""},{"$f":"IF('TSA Input'!J575=\"\",\"\",IF(OR('TSA Input'!J575=\"Yes\",'TSA Input'!J575=\"Contingent\"),'TSA Input'!D575,\"\"))","v":""},{"$f":"IF('TSA Input'!J575=\"\",\"\",IF(OR('TSA Input'!J575=\"Yes\",'TSA Input'!J575=\"Contingent\"),'TSA Input'!G575,\"\"))","v":""},{"$f":"IF('TSA Input'!J575=\"\",\"\",IF(OR('TSA Input'!J575=\"Yes\",'TSA Input'!J575=\"Contingent\"),'TSA Input'!F575,\"\"))","v":""},"",{"$f":"IF('TSA Input'!J575=\"\",\"\",IF(OR('TSA Input'!J575=\"Yes\",'TSA Input'!J575=\"Contingent\"),'TSA Input'!D575,\"\"))","v":""},{"$f":"IF('TSA Input'!J575=\"\",\"\",IF(OR('TSA Input'!J575=\"Yes\",'TSA Input'!J575=\"Contingent\"),'TSA Input'!G575,\"\"))","v":""},{"$f":"IF('TSA Input'!J575=\"\",\"\",IF(OR('TSA Input'!J575=\"Yes\",'TSA Input'!J575=\"Contingent\"),'TSA Input'!F575,\"\"))","v":""},"","Required","Required"]
["",null,{"$f":"IF('TSA Input'!J576=\"\",\"\",IF(OR('TSA Input'!J576=\"Yes\",'TSA Input'!J576=\"Contingent\"),'TSA Input'!B576,\"Ineligible\"))","v":""},{"$f":"IF('TSA Input'!J576=\"\",\"\",IF(OR('TSA Input'!J576=\"Yes\",'TSA Input'!J576=\"Contingent\"),'TSA Input'!I576,\"\"))","v":""},{"$f":"IF('TSA Input'!J576=\"\",\"\",IF(OR('TSA Input'!J576=\"Yes\",'TSA Input'!J576=\"Contingent\"),'TSA Input'!C576,\"\"))","v":""},{"$f":"IF('TSA Input'!J576=\"\",\"\",IF(OR('TSA Input'!J576=\"Yes\",'TSA Input'!J576=\"Contingent\"),'TSA Input'!D576,\"\"))","v":""},{"$f":"IF('TSA Input'!J576=\"\",\"\",IF(OR('TSA Input'!J576=\"Yes\",'TSA Input'!J576=\"Contingent\"),'TSA Input'!G576,\"\"))","v":""},{"$f":"IF('TSA Input'!J576=\"\",\"\",IF(OR('TSA Input'!J576=\"Yes\",'TSA Input'!J576=\"Contingent\"),'TSA Input'!F576,\"\"))","v":""},"",{"$f":"IF('TSA Input'!J576=\"\",\"\",IF(OR('TSA Input'!J576=\"Yes\",'TSA Input'!J576=\"Contingent\"),'TSA Input'!D576,\"\"))","v":""},{"$f":"IF('TSA Input'!J576=\"\",\"\",IF(OR('TSA Input'!J576=\"Yes\",'TSA Input'!J576=\"Contingent\"),'TSA Input'!G576,\"\"))","v":""},{"$f":"IF('TSA Input'!J576=\"\",\"\",IF(OR('TSA Input'!J576=\"Yes\",'TSA Input'!J576=\"Contingent\"),'TSA Input'!F576,\"\"))","v":""},"","Required","Required"]
["",null,{"$f":"IF('TSA Input'!J577=\"\",\"\",IF(OR('TSA Input'!J577=\"Yes\",'TSA Input'!J577=\"Contingent\"),'TSA Input'!B577,\"Ineligible\"))","v":""},{"$f":"IF('TSA Input'!J577=\"\",\"\",IF(OR('TSA Input'!J577=\"Yes\",'TSA Input'!J577=\"Contingent\"),'TSA Input'!I577,\"\"))","v":""},{"$f":"IF('TSA Input'!J577=\"\",\"\",IF(OR('TSA Input'!J577=\"Yes\",'TSA Input'!J577=\"Contingent\"),'TSA Input'!C577,\"\"))","v":""},{"$f":"IF('TSA Input'!J577=\"\",\"\",IF(OR('TSA Input'!J577=\"Yes\",'TSA Input'!J577=\"Contingent\"),'TSA Input'!D577,\"\"))","v":""},{"$f":"IF('TSA Input'!J577=\"\",\"\",IF(OR('TSA Input'!J577=\"Yes\",'TSA Input'!J577=\"Contingent\"),'TSA Input'!G577,\"\"))","v":""},{"$f":"IF('TSA Input'!J577=\"\",\"\",IF(OR('TSA Input'!J577=\"Yes\",'TSA Input'!J577=\"Contingent\"),'TSA Input'!F577,\"\"))","v":""},"",{"$f":"IF('TSA Input'!J577=\"\",\"\",IF(OR('TSA Input'!J577=\"Yes\",'TSA Input'!J577=\"Contingent\"),'TSA Input'!D577,\"\"))","v":""},{"$f":"IF('TSA Input'!J577=\"\",\"\",IF(OR('TSA Input'!J577=\"Yes\",'TSA Input'!J577=\"Contingent\"),'TSA Input'!G577,\"\"))","v":""},{"$f":"IF('TSA Input'!J577=\"\",\"\",IF(OR('TSA Input'!J577=\"Yes\",'TSA Input'!J577=\"Contingent\"),'TSA Input'!F577,\"\"))","v":""},"","Required","Required"]
["",null,{"$f":"IF('TSA Input'!J578=\"\",\"\",IF(OR('TSA Input'!J578=\"Yes\",'TSA Input'!J578=\"Contingent\"),'TSA Input'!B578,\"Ineligible\"))","v":""},{"$f":"IF('TSA Input'!J578=\"\",\"\",IF(OR('TSA Input'!J578=\"Yes\",'TSA Input'!J578=\"Contingent\"),'TSA Input'!I578,\"\"))","v":""},{"$f":"IF('TSA Input'!J578=\"\",\"\",IF(OR('TSA Input'!J578=\"Yes\",'TSA Input'!J578=\"Contingent\"),'TSA Input'!C578,\"\"))","v":""},{"$f":"IF('TSA Input'!J578=\"\",\"\",IF(OR('TSA Input'!J578=\"Yes\",'TSA Input'!J578=\"Contingent\"),'TSA Input'!D578,\"\"))","v":""},{"$f":"IF('TSA Input'!J578=\"\",\"\",IF(OR('TSA Input'!J578=\"Yes\",'TSA Input'!J578=\"Contingent\"),'TSA Input'!G578,\"\"))","v":""},{"$f":"IF('TSA Input'!J578=\"\",\"\",IF(OR('TSA Input'!J578=\"Yes\",'TSA Input'!J578=\"Contingent\"),'TSA Input'!F578,\"\"))","v":""},"",{"$f":"IF('TSA Input'!J578=\"\",\"\",IF(OR('TSA Input'!J578=\"Yes\",'TSA Input'!J578=\"Contingent\"),'TSA Input'!D578,\"\"))","v":""},{"$f":"IF('TSA Input'!J578=\"\",\"\",IF(OR('TSA Input'!J578=\"Yes\",'TSA Input'!J578=\"Contingent\"),'TSA Input'!G578,\"\"))","v":""},{"$f":"IF('TSA Input'!J578=\"\",\"\",IF(OR('TSA Input'!J578=\"Yes\",'TSA Input'!J578=\"Contingent\"),'TSA Input'!F578,\"\"))","v":""},"","Required","Required"]
["",null,{"$f":"IF('TSA Input'!J579=\"\",\"\",IF(OR('TSA Input'!J579=\"Yes\",'TSA Input'!J579=\"Contingent\"),'TSA Input'!B579,\"Ineligible\"))","v":""},{"$f":"IF('TSA Input'!J579=\"\",\"\",IF(OR('TSA Input'!J579=\"Yes\",'TSA Input'!J579=\"Contingent\"),'TSA Input'!I579,\"\"))","v":""},{"$f":"IF('TSA Input'!J579=\"\",\"\",IF(OR('TSA Input'!J579=\"Yes\",'TSA Input'!J579=\"Contingent\"),'TSA Input'!C579,\"\"))","v":""},{"$f":"IF('TSA Input'!J579=\"\",\"\",IF(OR('TSA Input'!J579=\"Yes\",'TSA Input'!J579=\"Contingent\"),'TSA Input'!D579,\"\"))","v":""},{"$f":"IF('TSA Input'!J579=\"\",\"\",IF(OR('TSA Input'!J579=\"Yes\",'TSA Input'!J579=\"Contingent\"),'TSA Input'!G579,\"\"))","v":""},{"$f":"IF('TSA Input'!J579=\"\",\"\",IF(OR('TSA Input'!J579=\"Yes\",'TSA Input'!J579=\"Contingent\"),'TSA Input'!F579,\"\"))","v":""},"",{"$f":"IF('TSA Input'!J579=\"\",\"\",IF(OR('TSA Input'!J579=\"Yes\",'TSA Input'!J579=\"Contingent\"),'TSA Input'!D579,\"\"))","v":""},{"$f":"IF('TSA Input'!J579=\"\",\"\",IF(OR('TSA Input'!J579=\"Yes\",'TSA Input'!J579=\"Contingent\"),'TSA Input'!G579,\"\"))","v":""},{"$f":"IF('TSA Input'!J579=\"\",\"\",IF(OR('TSA Input'!J579=\"Yes\",'TSA Input'!J579=\"Contingent\"),'TSA Input'!F579,\"\"))","v":""},"","Required","Required"]
["",null,{"$f":"IF('TSA Input'!J580=\"\",\"\",IF(OR('TSA Input'!J580=\"Yes\",'TSA Input'!J580=\"Contingent\"),'TSA Input'!B580,\"Ineligible\"))","v":""},{"$f":"IF('TSA Input'!J580=\"\",\"\",IF(OR('TSA Input'!J580=\"Yes\",'TSA Input'!J580=\"Contingent\"),'TSA Input'!I580,\"\"))","v":""},{"$f":"IF('TSA Input'!J580=\"\",\"\",IF(OR('TSA Input'!J580=\"Yes\",'TSA Input'!J580=\"Contingent\"),'TSA Input'!C580,\"\"))","v":""},{"$f":"IF('TSA Input'!J580=\"\",\"\",IF(OR('TSA Input'!J580=\"Yes\",'TSA Input'!J580=\"Contingent\"),'TSA Input'!D580,\"\"))","v":""},{"$f":"IF('TSA Input'!J580=\"\",\"\",IF(OR('TSA Input'!J580=\"Yes\",'TSA Input'!J580=\"Contingent\"),'TSA Input'!G580,\"\"))","v":""},{"$f":"IF('TSA Input'!J580=\"\",\"\",IF(OR('TSA Input'!J580=\"Yes\",'TSA Input'!J580=\"Contingent\"),'TSA Input'!F580,\"\"))","v":""},{"$f":"IF($C618=\"\",\"\",SUM(F618:H618))","v":""},{"$f":"IF('TSA Input'!J580=\"\",\"\",IF(OR('TSA Input'!J580=\"Yes\",'TSA Input'!J580=\"Contingent\"),'TSA Input'!D580,\"\"))","v":""},{"$f":"IF('TSA Input'!J580=\"\",\"\",IF(OR('TSA Input'!J580=\"Yes\",'TSA Input'!J580=\"Contingent\"),'TSA Input'!G580,\"\"))","v":""},{"$f":"IF('TSA Input'!J580=\"\",\"\",IF(OR('TSA Input'!J580=\"Yes\",'TSA Input'!J580=\"Contingent\"),'TSA Input'!F580,\"\"))","v":""},{"$f":"IF($C618=\"\",\"\",SUM(J618:L618))","v":""},"Required","Required"]
["",null,{"$f":"IF('TSA Input'!J581=\"\",\"\",IF(OR('TSA Input'!J581=\"Yes\",'TSA Input'!J581=\"Contingent\"),'TSA Input'!B581,\"Ineligible\"))","v":""},{"$f":"IF('TSA Input'!J581=\"\",\"\",IF(OR('TSA Input'!J581=\"Yes\",'TSA Input'!J581=\"Contingent\"),'TSA Input'!I581,\"\"))","v":""},{"$f":"IF('TSA Input'!J581=\"\",\"\",IF(OR('TSA Input'!J581=\"Yes\",'TSA Input'!J581=\"Contingent\"),'TSA Input'!C581,\"\"))","v":""},{"$f":"IF('TSA Input'!J581=\"\",\"\",IF(OR('TSA Input'!J581=\"Yes\",'TSA Input'!J581=\"Contingent\"),'TSA Input'!D581,\"\"))","v":""},{"$f":"IF('TSA Input'!J581=\"\",\"\",IF(OR('TSA Input'!J581=\"Yes\",'TSA Input'!J581=\"Contingent\"),'TSA Input'!G581,\"\"))","v":""},{"$f":"IF('TSA Input'!J581=\"\",\"\",IF(OR('TSA Input'!J581=\"Yes\",'TSA Input'!J581=\"Contingent\"),'TSA Input'!F581,\"\"))","v":""},"",{"$f":"IF('TSA Input'!J581=\"\",\"\",IF(OR('TSA Input'!J581=\"Yes\",'TSA Input'!J581=\"Contingent\"),'TSA Input'!D581,\"\"))","v":""},{"$f":"IF('TSA Input'!J581=\"\",\"\",IF(OR('TSA Input'!J581=\"Yes\",'TSA Input'!J581=\"Contingent\"),'TSA Input'!G581,\"\"))","v":""},{"$f":"IF('TSA Input'!J581=\"\",\"\",IF(OR('TSA Input'!J581=\"Yes\",'TSA Input'!J581=\"Contingent\"),'TSA Input'!F581,\"\"))","v":""},"","Required","Required"]
["",null,{"$f":"IF('TSA Input'!J582=\"\",\"\",IF(OR('TSA Input'!J582=\"Yes\",'TSA Input'!J582=\"Contingent\"),'TSA Input'!B582,\"Ineligible\"))","v":""},{"$f":"IF('TSA Input'!J582=\"\",\"\",IF(OR('TSA Input'!J582=\"Yes\",'TSA Input'!J582=\"Contingent\"),'TSA Input'!I582,\"\"))","v":""},{"$f":"IF('TSA Input'!J582=\"\",\"\",IF(OR('TSA Input'!J582=\"Yes\",'TSA Input'!J582=\"Contingent\"),'TSA Input'!C582,\"\"))","v":""},{"$f":"IF('TSA Input'!J582=\"\",\"\",IF(OR('TSA Input'!J582=\"Yes\",'TSA Input'!J582=\"Contingent\"),'TSA Input'!D582,\"\"))","v":""},{"$f":"IF('TSA Input'!J582=\"\",\"\",IF(OR('TSA Input'!J582=\"Yes\",'TSA Input'!J582=\"Contingent\"),'TSA Input'!G582,\"\"))","v":""},{"$f":"IF('TSA Input'!J582=\"\",\"\",IF(OR('TSA Input'!J582=\"Yes\",'TSA Input'!J582=\"Contingent\"),'TSA Input'!F582,\"\"))","v":""},"",{"$f":"IF('TSA Input'!J582=\"\",\"\",IF(OR('TSA Input'!J582=\"Yes\",'TSA Input'!J582=\"Contingent\"),'TSA Input'!D582,\"\"))","v":""},{"$f":"IF('TSA Input'!J582=\"\",\"\",IF(OR('TSA Input'!J582=\"Yes\",'TSA Input'!J582=\"Contingent\"),'TSA Input'!G582,\"\"))","v":""},{"$f":"IF('TSA Input'!J582=\"\",\"\",IF(OR('TSA Input'!J582=\"Yes\",'TSA Input'!J582=\"Contingent\"),'TSA Input'!F582,\"\"))","v":""},"","Required","Required"]
["",null,{"$f":"IF('TSA Input'!J583=\"\",\"\",IF(OR('TSA Input'!J583=\"Yes\",'TSA Input'!J583=\"Contingent\"),'TSA Input'!B583,\"Ineligible\"))","v":""},{"$f":"IF('TSA Input'!J583=\"\",\"\",IF(OR('TSA Input'!J583=\"Yes\",'TSA Input'!J583=\"Contingent\"),'TSA Input'!I583,\"\"))","v":""},{"$f":"IF('TSA Input'!J583=\"\",\"\",IF(OR('TSA Input'!J583=\"Yes\",'TSA Input'!J583=\"Contingent\"),'TSA Input'!C583,\"\"))","v":""},{"$f":"IF('TSA Input'!J583=\"\",\"\",IF(OR('TSA Input'!J583=\"Yes\",'TSA Input'!J583=\"Contingent\"),'TSA Input'!D583,\"\"))","v":""},{"$f":"IF('TSA Input'!J583=\"\",\"\",IF(OR('TSA Input'!J583=\"Yes\",'TSA Input'!J583=\"Contingent\"),'TSA Input'!G583,\"\"))","v":""},{"$f":"IF('TSA Input'!J583=\"\",\"\",IF(OR('TSA Input'!J583=\"Yes\",'TSA Input'!J583=\"Contingent\"),'TSA Input'!F583,\"\"))","v":""},"",{"$f":"IF('TSA Input'!J583=\"\",\"\",IF(OR('TSA Input'!J583=\"Yes\",'TSA Input'!J583=\"Contingent\"),'TSA Input'!D583,\"\"))","v":""},{"$f":"IF('TSA Input'!J583=\"\",\"\",IF(OR('TSA Input'!J583=\"Yes\",'TSA Input'!J583=\"Contingent\"),'TSA Input'!G583,\"\"))","v":""},{"$f":"IF('TSA Input'!J583=\"\",\"\",IF(OR('TSA Input'!J583=\"Yes\",'TSA Input'!J583=\"Contingent\"),'TSA Input'!F583,\"\"))","v":""},"","Required","Required"]
["",null,{"$f":"IF('TSA Input'!J584=\"\",\"\",IF(OR('TSA Input'!J584=\"Yes\",'TSA Input'!J584=\"Contingent\"),'TSA Input'!B584,\"Ineligible\"))","v":""},{"$f":"IF('TSA Input'!J584=\"\",\"\",IF(OR('TSA Input'!J584=\"Yes\",'TSA Input'!J584=\"Contingent\"),'TSA Input'!I584,\"\"))","v":""},{"$f":"IF('TSA Input'!J584=\"\",\"\",IF(OR('TSA Input'!J584=\"Yes\",'TSA Input'!J584=\"Contingent\"),'TSA Input'!C584,\"\"))","v":""},{"$f":"IF('TSA Input'!J584=\"\",\"\",IF(OR('TSA Input'!J584=\"Yes\",'TSA Input'!J584=\"Contingent\"),'TSA Input'!D584,\"\"))","v":""},{"$f":"IF('TSA Input'!J584=\"\",\"\",IF(OR('TSA Input'!J584=\"Yes\",'TSA Input'!J584=\"Contingent\"),'TSA Input'!G584,\"\"))","v":""},{"$f":"IF('TSA Input'!J584=\"\",\"\",IF(OR('TSA Input'!J584=\"Yes\",'TSA Input'!J584=\"Contingent\"),'TSA Input'!F584,\"\"))","v":""},"",{"$f":"IF('TSA Input'!J584=\"\",\"\",IF(OR('TSA Input'!J584=\"Yes\",'TSA Input'!J584=\"Contingent\"),'TSA Input'!D584,\"\"))","v":""},{"$f":"IF('TSA Input'!J584=\"\",\"\",IF(OR('TSA Input'!J584=\"Yes\",'TSA Input'!J584=\"Contingent\"),'TSA Input'!G584,\"\"))","v":""},{"$f":"IF('TSA Input'!J584=\"\",\"\",IF(OR('TSA Input'!J584=\"Yes\",'TSA Input'!J584=\"Contingent\"),'TSA Input'!F584,\"\"))","v":""},"","Required","Required"]
["",null,{"$f":"IF('TSA Input'!J585=\"\",\"\",IF(OR('TSA Input'!J585=\"Yes\",'TSA Input'!J585=\"Contingent\"),'TSA Input'!B585,\"Ineligible\"))","v":""},{"$f":"IF('TSA Input'!J585=\"\",\"\",IF(OR('TSA Input'!J585=\"Yes\",'TSA Input'!J585=\"Contingent\"),'TSA Input'!I585,\"\"))","v":""},{"$f":"IF('TSA Input'!J585=\"\",\"\",IF(OR('TSA Input'!J585=\"Yes\",'TSA Input'!J585=\"Contingent\"),'TSA Input'!C585,\"\"))","v":""},{"$f":"IF('TSA Input'!J585=\"\",\"\",IF(OR('TSA Input'!J585=\"Yes\",'TSA Input'!J585=\"Contingent\"),'TSA Input'!D585,\"\"))","v":""},{"$f":"IF('TSA Input'!J585=\"\",\"\",IF(OR('TSA Input'!J585=\"Yes\",'TSA Input'!J585=\"Contingent\"),'TSA Input'!G585,\"\"))","v":""},{"$f":"IF('TSA Input'!J585=\"\",\"\",IF(OR('TSA Input'!J585=\"Yes\",'TSA Input'!J585=\"Contingent\"),'TSA Input'!F585,\"\"))","v":""},"",{"$f":"IF('TSA Input'!J585=\"\",\"\",IF(OR('TSA Input'!J585=\"Yes\",'TSA Input'!J585=\"Contingent\"),'TSA Input'!D585,\"\"))","v":""},{"$f":"IF('TSA Input'!J585=\"\",\"\",IF(OR('TSA Input'!J585=\"Yes\",'TSA Input'!J585=\"Contingent\"),'TSA Input'!G585,\"\"))","v":""},{"$f":"IF('TSA Input'!J585=\"\",\"\",IF(OR('TSA Input'!J585=\"Yes\",'TSA Input'!J585=\"Contingent\"),'TSA Input'!F585,\"\"))","v":""},"","Required","Required"]
["",null,{"$f":"IF('TSA Input'!J586=\"\",\"\",IF(OR('TSA Input'!J586=\"Yes\",'TSA Input'!J586=\"Contingent\"),'TSA Input'!B586,\"Ineligible\"))","v":""},{"$f":"IF('TSA Input'!J586=\"\",\"\",IF(OR('TSA Input'!J586=\"Yes\",'TSA Input'!J586=\"Contingent\"),'TSA Input'!I586,\"\"))","v":""},{"$f":"IF('TSA Input'!J586=\"\",\"\",IF(OR('TSA Input'!J586=\"Yes\",'TSA Input'!J586=\"Contingent\"),'TSA Input'!C586,\"\"))","v":""},{"$f":"IF('TSA Input'!J586=\"\",\"\",IF(OR('TSA Input'!J586=\"Yes\",'TSA Input'!J586=\"Contingent\"),'TSA Input'!D586,\"\"))","v":""},{"$f":"IF('TSA Input'!J586=\"\",\"\",IF(OR('TSA Input'!J586=\"Yes\",'TSA Input'!J586=\"Contingent\"),'TSA Input'!G586,\"\"))","v":""},{"$f":"IF('TSA Input'!J586=\"\",\"\",IF(OR('TSA Input'!J586=\"Yes\",'TSA Input'!J586=\"Contingent\"),'TSA Input'!F586,\"\"))","v":""},"",{"$f":"IF('TSA Input'!J586=\"\",\"\",IF(OR('TSA Input'!J586=\"Yes\",'TSA Input'!J586=\"Contingent\"),'TSA Input'!D586,\"\"))","v":""},{"$f":"IF('TSA Input'!J586=\"\",\"\",IF(OR('TSA Input'!J586=\"Yes\",'TSA Input'!J586=\"Contingent\"),'TSA Input'!G586,\"\"))","v":""},{"$f":"IF('TSA Input'!J586=\"\",\"\",IF(OR('TSA Input'!J586=\"Yes\",'TSA Input'!J586=\"Contingent\"),'TSA Input'!F586,\"\"))","v":""},"","Required","Required"]
["",null,{"$f":"IF('TSA Input'!J587=\"\",\"\",IF(OR('TSA Input'!J587=\"Yes\",'TSA Input'!J587=\"Contingent\"),'TSA Input'!B587,\"Ineligible\"))","v":""},{"$f":"IF('TSA Input'!J587=\"\",\"\",IF(OR('TSA Input'!J587=\"Yes\",'TSA Input'!J587=\"Contingent\"),'TSA Input'!I587,\"\"))","v":""},{"$f":"IF('TSA Input'!J587=\"\",\"\",IF(OR('TSA Input'!J587=\"Yes\",'TSA Input'!J587=\"Contingent\"),'TSA Input'!C587,\"\"))","v":""},{"$f":"IF('TSA Input'!J587=\"\",\"\",IF(OR('TSA Input'!J587=\"Yes\",'TSA Input'!J587=\"Contingent\"),'TSA Input'!D587,\"\"))","v":""},{"$f":"IF('TSA Input'!J587=\"\",\"\",IF(OR('TSA Input'!J587=\"Yes\",'TSA Input'!J587=\"Contingent\"),'TSA Input'!G587,\"\"))","v":""},{"$f":"IF('TSA Input'!J587=\"\",\"\",IF(OR('TSA Input'!J587=\"Yes\",'TSA Input'!J587=\"Contingent\"),'TSA Input'!F587,\"\"))","v":""},"",{"$f":"IF('TSA Input'!J587=\"\",\"\",IF(OR('TSA Input'!J587=\"Yes\",'TSA Input'!J587=\"Contingent\"),'TSA Input'!D587,\"\"))","v":""},{"$f":"IF('TSA Input'!J587=\"\",\"\",IF(OR('TSA Input'!J587=\"Yes\",'TSA Input'!J587=\"Contingent\"),'TSA Input'!G587,\"\"))","v":""},{"$f":"IF('TSA Input'!J587=\"\",\"\",IF(OR('TSA Input'!J587=\"Yes\",'TSA Input'!J587=\"Contingent\"),'TSA Input'!F587,\"\"))","v":""},"","Required","Required"]
["",null,{"$f":"IF('TSA Input'!J588=\"\",\"\",IF(OR('TSA Input'!J588=\"Yes\",'TSA Input'!J588=\"Contingent\"),'TSA Input'!B588,\"Ineligible\"))","v":""},{"$f":"IF('TSA Input'!J588=\"\",\"\",IF(OR('TSA Input'!J588=\"Yes\",'TSA Input'!J588=\"Contingent\"),'TSA Input'!I588,\"\"))","v":""},{"$f":"IF('TSA Input'!J588=\"\",\"\",IF(OR('TSA Input'!J588=\"Yes\",'TSA Input'!J588=\"Contingent\"),'TSA Input'!C588,\"\"))","v":""},{"$f":"IF('TSA Input'!J588=\"\",\"\",IF(OR('TSA Input'!J588=\"Yes\",'TSA Input'!J588=\"Contingent\"),'TSA Input'!D588,\"\"))","v":""},{"$f":"IF('TSA Input'!J588=\"\",\"\",IF(OR('TSA Input'!J588=\"Yes\",'TSA Input'!J588=\"Contingent\"),'TSA Input'!G588,\"\"))","v":""},{"$f":"IF('TSA Input'!J588=\"\",\"\",IF(OR('TSA Input'!J588=\"Yes\",'TSA Input'!J588=\"Contingent\"),'TSA Input'!F588,\"\"))","v":""},"",{"$f":"IF('TSA Input'!J588=\"\",\"\",IF(OR('TSA Input'!J588=\"Yes\",'TSA Input'!J588=\"Contingent\"),'TSA Input'!D588,\"\"))","v":""},{"$f":"IF('TSA Input'!J588=\"\",\"\",IF(OR('TSA Input'!J588=\"Yes\",'TSA Input'!J588=\"Contingent\"),'TSA Input'!G588,\"\"))","v":""},{"$f":"IF('TSA Input'!J588=\"\",\"\",IF(OR('TSA Input'!J588=\"Yes\",'TSA Input'!J588=\"Contingent\"),'TSA Input'!F588,\"\"))","v":""},"","Required","Required"]
["",null,{"$f":"IF('TSA Input'!J589=\"\",\"\",IF(OR('TSA Input'!J589=\"Yes\",'TSA Input'!J589=\"Contingent\"),'TSA Input'!B589,\"Ineligible\"))","v":""},{"$f":"IF('TSA Input'!J589=\"\",\"\",IF(OR('TSA Input'!J589=\"Yes\",'TSA Input'!J589=\"Contingent\"),'TSA Input'!I589,\"\"))","v":""},{"$f":"IF('TSA Input'!J589=\"\",\"\",IF(OR('TSA Input'!J589=\"Yes\",'TSA Input'!J589=\"Contingent\"),'TSA Input'!C589,\"\"))","v":""},{"$f":"IF('TSA Input'!J589=\"\",\"\",IF(OR('TSA Input'!J589=\"Yes\",'TSA Input'!J589=\"Contingent\"),'TSA Input'!D589,\"\"))","v":""},{"$f":"IF('TSA Input'!J589=\"\",\"\",IF(OR('TSA Input'!J589=\"Yes\",'TSA Input'!J589=\"Contingent\"),'TSA Input'!G589,\"\"))","v":""},{"$f":"IF('TSA Input'!J589=\"\",\"\",IF(OR('TSA Input'!J589=\"Yes\",'TSA Input'!J589=\"Contingent\"),'TSA Input'!F589,\"\"))","v":""},"",{"$f":"IF('TSA Input'!J589=\"\",\"\",IF(OR('TSA Input'!J589=\"Yes\",'TSA Input'!J589=\"Contingent\"),'TSA Input'!D589,\"\"))","v":""},{"$f":"IF('TSA Input'!J589=\"\",\"\",IF(OR('TSA Input'!J589=\"Yes\",'TSA Input'!J589=\"Contingent\"),'TSA Input'!G589,\"\"))","v":""},{"$f":"IF('TSA Input'!J589=\"\",\"\",IF(OR('TSA Input'!J589=\"Yes\",'TSA Input'!J589=\"Contingent\"),'TSA Input'!F589,\"\"))","v":""},"","Required","Required"]
["",null,{"$f":"IF('TSA Input'!J590=\"\",\"\",IF(OR('TSA Input'!J590=\"Yes\",'TSA Input'!J590=\"Contingent\"),'TSA Input'!B590,\"Ineligible\"))","v":""},{"$f":"IF('TSA Input'!J590=\"\",\"\",IF(OR('TSA Input'!J590=\"Yes\",'TSA Input'!J590=\"Contingent\"),'TSA Input'!I590,\"\"))","v":""},{"$f":"IF('TSA Input'!J590=\"\",\"\",IF(OR('TSA Input'!J590=\"Yes\",'TSA Input'!J590=\"Contingent\"),'TSA Input'!C590,\"\"))","v":""},{"$f":"IF('TSA Input'!J590=\"\",\"\",IF(OR('TSA Input'!J590=\"Yes\",'TSA Input'!J590=\"Contingent\"),'TSA Input'!D590,\"\"))","v":""},{"$f":"IF('TSA Input'!J590=\"\",\"\",IF(OR('TSA Input'!J590=\"Yes\",'TSA Input'!J590=\"Contingent\"),'TSA Input'!G590,\"\"))","v":""},{"$f":"IF('TSA Input'!J590=\"\",\"\",IF(OR('TSA Input'!J590=\"Yes\",'TSA Input'!J590=\"Contingent\"),'TSA Input'!F590,\"\"))","v":""},"",{"$f":"IF('TSA Input'!J590=\"\",\"\",IF(OR('TSA Input'!J590=\"Yes\",'TSA Input'!J590=\"Contingent\"),'TSA Input'!D590,\"\"))","v":""},{"$f":"IF('TSA Input'!J590=\"\",\"\",IF(OR('TSA Input'!J590=\"Yes\",'TSA Input'!J590=\"Contingent\"),'TSA Input'!G590,\"\"))","v":""},{"$f":"IF('TSA Input'!J590=\"\",\"\",IF(OR('TSA Input'!J590=\"Yes\",'TSA Input'!J590=\"Contingent\"),'TSA Input'!F590,\"\"))","v":""},"","Required","Required"]
["",null,{"$f":"IF('TSA Input'!J591=\"\",\"\",IF(OR('TSA Input'!J591=\"Yes\",'TSA Input'!J591=\"Contingent\"),'TSA Input'!B591,\"Ineligible\"))","v":""},{"$f":"IF('TSA Input'!J591=\"\",\"\",IF(OR('TSA Input'!J591=\"Yes\",'TSA Input'!J591=\"Contingent\"),'TSA Input'!I591,\"\"))","v":""},{"$f":"IF('TSA Input'!J591=\"\",\"\",IF(OR('TSA Input'!J591=\"Yes\",'TSA Input'!J591=\"Contingent\"),'TSA Input'!C591,\"\"))","v":""},{"$f":"IF('TSA Input'!J591=\"\",\"\",IF(OR('TSA Input'!J591=\"Yes\",'TSA Input'!J591=\"Contingent\"),'TSA Input'!D591,\"\"))","v":""},{"$f":"IF('TSA Input'!J591=\"\",\"\",IF(OR('TSA Input'!J591=\"Yes\",'TSA Input'!J591=\"Contingent\"),'TSA Input'!G591,\"\"))","v":""},{"$f":"IF('TSA Input'!J591=\"\",\"\",IF(OR('TSA Input'!J591=\"Yes\",'TSA Input'!J591=\"Contingent\"),'TSA Input'!F591,\"\"))","v":""},"",{"$f":"IF('TSA Input'!J591=\"\",\"\",IF(OR('TSA Input'!J591=\"Yes\",'TSA Input'!J591=\"Contingent\"),'TSA Input'!D591,\"\"))","v":""},{"$f":"IF('TSA Input'!J591=\"\",\"\",IF(OR('TSA Input'!J591=\"Yes\",'TSA Input'!J591=\"Contingent\"),'TSA Input'!G591,\"\"))","v":""},{"$f":"IF('TSA Input'!J591=\"\",\"\",IF(OR('TSA Input'!J591=\"Yes\",'TSA Input'!J591=\"Contingent\"),'TSA Input'!F591,\"\"))","v":""},"","Required","Required"]
["",null,{"$f":"IF('TSA Input'!J592=\"\",\"\",IF(OR('TSA Input'!J592=\"Yes\",'TSA Input'!J592=\"Contingent\"),'TSA Input'!B592,\"Ineligible\"))","v":""},{"$f":"IF('TSA Input'!J592=\"\",\"\",IF(OR('TSA Input'!J592=\"Yes\",'TSA Input'!J592=\"Contingent\"),'TSA Input'!I592,\"\"))","v":""},{"$f":"IF('TSA Input'!J592=\"\",\"\",IF(OR('TSA Input'!J592=\"Yes\",'TSA Input'!J592=\"Contingent\"),'TSA Input'!C592,\"\"))","v":""},{"$f":"IF('TSA Input'!J592=\"\",\"\",IF(OR('TSA Input'!J592=\"Yes\",'TSA Input'!J592=\"Contingent\"),'TSA Input'!D592,\"\"))","v":""},{"$f":"IF('TSA Input'!J592=\"\",\"\",IF(OR('TSA Input'!J592=\"Yes\",'TSA Input'!J592=\"Contingent\"),'TSA Input'!G592,\"\"))","v":""},{"$f":"IF('TSA Input'!J592=\"\",\"\",IF(OR('TSA Input'!J592=\"Yes\",'TSA Input'!J592=\"Contingent\"),'TSA Input'!F592,\"\"))","v":""},"",{"$f":"IF('TSA Input'!J592=\"\",\"\",IF(OR('TSA Input'!J592=\"Yes\",'TSA Input'!J592=\"Contingent\"),'TSA Input'!D592,\"\"))","v":""},{"$f":"IF('TSA Input'!J592=\"\",\"\",IF(OR('TSA Input'!J592=\"Yes\",'TSA Input'!J592=\"Contingent\"),'TSA Input'!G592,\"\"))","v":""},{"$f":"IF('TSA Input'!J592=\"\",\"\",IF(OR('TSA Input'!J592=\"Yes\",'TSA Input'!J592=\"Contingent\"),'TSA Input'!F592,\"\"))","v":""},"","Required","Required"]
["",null,{"$f":"IF('TSA Input'!J593=\"\",\"\",IF(OR('TSA Input'!J593=\"Yes\",'TSA Input'!J593=\"Contingent\"),'TSA Input'!B593,\"Ineligible\"))","v":""},{"$f":"IF('TSA Input'!J593=\"\",\"\",IF(OR('TSA Input'!J593=\"Yes\",'TSA Input'!J593=\"Contingent\"),'TSA Input'!I593,\"\"))","v":""},{"$f":"IF('TSA Input'!J593=\"\",\"\",IF(OR('TSA Input'!J593=\"Yes\",'TSA Input'!J593=\"Contingent\"),'TSA Input'!C593,\"\"))","v":""},{"$f":"IF('TSA Input'!J593=\"\",\"\",IF(OR('TSA Input'!J593=\"Yes\",'TSA Input'!J593=\"Contingent\"),'TSA Input'!D593,\"\"))","v":""},{"$f":"IF('TSA Input'!J593=\"\",\"\",IF(OR('TSA Input'!J593=\"Yes\",'TSA Input'!J593=\"Contingent\"),'TSA Input'!G593,\"\"))","v":""},{"$f":"IF('TSA Input'!J593=\"\",\"\",IF(OR('TSA Input'!J593=\"Yes\",'TSA Input'!J593=\"Contingent\"),'TSA Input'!F593,\"\"))","v":""},"",{"$f":"IF('TSA Input'!J593=\"\",\"\",IF(OR('TSA Input'!J593=\"Yes\",'TSA Input'!J593=\"Contingent\"),'TSA Input'!D593,\"\"))","v":""},{"$f":"IF('TSA Input'!J593=\"\",\"\",IF(OR('TSA Input'!J593=\"Yes\",'TSA Input'!J593=\"Contingent\"),'TSA Input'!G593,\"\"))","v":""},{"$f":"IF('TSA Input'!J593=\"\",\"\",IF(OR('TSA Input'!J593=\"Yes\",'TSA Input'!J593=\"Contingent\"),'TSA Input'!F593,\"\"))","v":""},"","Required","Required"]
["",null,{"$f":"IF('TSA Input'!J594=\"\",\"\",IF(OR('TSA Input'!J594=\"Yes\",'TSA Input'!J594=\"Contingent\"),'TSA Input'!B594,\"Ineligible\"))","v":""},{"$f":"IF('TSA Input'!J594=\"\",\"\",IF(OR('TSA Input'!J594=\"Yes\",'TSA Input'!J594=\"Contingent\"),'TSA Input'!I594,\"\"))","v":""},{"$f":"IF('TSA Input'!J594=\"\",\"\",IF(OR('TSA Input'!J594=\"Yes\",'TSA Input'!J594=\"Contingent\"),'TSA Input'!C594,\"\"))","v":""},{"$f":"IF('TSA Input'!J594=\"\",\"\",IF(OR('TSA Input'!J594=\"Yes\",'TSA Input'!J594=\"Contingent\"),'TSA Input'!D594,\"\"))","v":""},{"$f":"IF('TSA Input'!J594=\"\",\"\",IF(OR('TSA Input'!J594=\"Yes\",'TSA Input'!J594=\"Contingent\"),'TSA Input'!G594,\"\"))","v":""},{"$f":"IF('TSA Input'!J594=\"\",\"\",IF(OR('TSA Input'!J594=\"Yes\",'TSA Input'!J594=\"Contingent\"),'TSA Input'!F594,\"\"))","v":""},"",{"$f":"IF('TSA Input'!J594=\"\",\"\",IF(OR('TSA Input'!J594=\"Yes\",'TSA Input'!J594=\"Contingent\"),'TSA Input'!D594,\"\"))","v":""},{"$f":"IF('TSA Input'!J594=\"\",\"\",IF(OR('TSA Input'!J594=\"Yes\",'TSA Input'!J594=\"Contingent\"),'TSA Input'!G594,\"\"))","v":""},{"$f":"IF('TSA Input'!J594=\"\",\"\",IF(OR('TSA Input'!J594=\"Yes\",'TSA Input'!J594=\"Contingent\"),'TSA Input'!F594,\"\"))","v":""},"","Required","Required"]
["",null,{"$f":"IF('TSA Input'!J595=\"\",\"\",IF(OR('TSA Input'!J595=\"Yes\",'TSA Input'!J595=\"Contingent\"),'TSA Input'!B595,\"Ineligible\"))","v":""},{"$f":"IF('TSA Input'!J595=\"\",\"\",IF(OR('TSA Input'!J595=\"Yes\",'TSA Input'!J595=\"Contingent\"),'TSA Input'!I595,\"\"))","v":""},{"$f":"IF('TSA Input'!J595=\"\",\"\",IF(OR('TSA Input'!J595=\"Yes\",'TSA Input'!J595=\"Contingent\"),'TSA Input'!C595,\"\"))","v":""},{"$f":"IF('TSA Input'!J595=\"\",\"\",IF(OR('TSA Input'!J595=\"Yes\",'TSA Input'!J595=\"Contingent\"),'TSA Input'!D595,\"\"))","v":""},{"$f":"IF('TSA Input'!J595=\"\",\"\",IF(OR('TSA Input'!J595=\"Yes\",'TSA Input'!J595=\"Contingent\"),'TSA Input'!G595,\"\"))","v":""},{"$f":"IF('TSA Input'!J595=\"\",\"\",IF(OR('TSA Input'!J595=\"Yes\",'TSA Input'!J595=\"Contingent\"),'TSA Input'!F595,\"\"))","v":""},"",{"$f":"IF('TSA Input'!J595=\"\",\"\",IF(OR('TSA Input'!J595=\"Yes\",'TSA Input'!J595=\"Contingent\"),'TSA Input'!D595,\"\"))","v":""},{"$f":"IF('TSA Input'!J595=\"\",\"\",IF(OR('TSA Input'!J595=\"Yes\",'TSA Input'!J595=\"Contingent\"),'TSA Input'!G595,\"\"))","v":""},{"$f":"IF('TSA Input'!J595=\"\",\"\",IF(OR('TSA Input'!J595=\"Yes\",'TSA Input'!J595=\"Contingent\"),'TSA Input'!F595,\"\"))","v":""},"","Required","Required"]
["",null,{"$f":"IF('TSA Input'!J596=\"\",\"\",IF(OR('TSA Input'!J596=\"Yes\",'TSA Input'!J596=\"Contingent\"),'TSA Input'!B596,\"Ineligible\"))","v":""},{"$f":"IF('TSA Input'!J596=\"\",\"\",IF(OR('TSA Input'!J596=\"Yes\",'TSA Input'!J596=\"Contingent\"),'TSA Input'!I596,\"\"))","v":""},{"$f":"IF('TSA Input'!J596=\"\",\"\",IF(OR('TSA Input'!J596=\"Yes\",'TSA Input'!J596=\"Contingent\"),'TSA Input'!C596,\"\"))","v":""},{"$f":"IF('TSA Input'!J596=\"\",\"\",IF(OR('TSA Input'!J596=\"Yes\",'TSA Input'!J596=\"Contingent\"),'TSA Input'!D596,\"\"))","v":""},{"$f":"IF('TSA Input'!J596=\"\",\"\",IF(OR('TSA Input'!J596=\"Yes\",'TSA Input'!J596=\"Contingent\"),'TSA Input'!G596,\"\"))","v":""},{"$f":"IF('TSA Input'!J596=\"\",\"\",IF(OR('TSA Input'!J596=\"Yes\",'TSA Input'!J596=\"Contingent\"),'TSA Input'!F596,\"\"))","v":""},"",{"$f":"IF('TSA Input'!J596=\"\",\"\",IF(OR('TSA Input'!J596=\"Yes\",'TSA Input'!J596=\"Contingent\"),'TSA Input'!D596,\"\"))","v":""},{"$f":"IF('TSA Input'!J596=\"\",\"\",IF(OR('TSA Input'!J596=\"Yes\",'TSA Input'!J596=\"Contingent\"),'TSA Input'!G596,\"\"))","v":""},{"$f":"IF('TSA Input'!J596=\"\",\"\",IF(OR('TSA Input'!J596=\"Yes\",'TSA Input'!J596=\"Contingent\"),'TSA Input'!F596,\"\"))","v":""},"","Required","Required"]
["",null,{"$f":"IF('TSA Input'!J597=\"\",\"\",IF(OR('TSA Input'!J597=\"Yes\",'TSA Input'!J597=\"Contingent\"),'TSA Input'!B597,\"Ineligible\"))","v":""},{"$f":"IF('TSA Input'!J597=\"\",\"\",IF(OR('TSA Input'!J597=\"Yes\",'TSA Input'!J597=\"Contingent\"),'TSA Input'!I597,\"\"))","v":""},{"$f":"IF('TSA Input'!J597=\"\",\"\",IF(OR('TSA Input'!J597=\"Yes\",'TSA Input'!J597=\"Contingent\"),'TSA Input'!C597,\"\"))","v":""},{"$f":"IF('TSA Input'!J597=\"\",\"\",IF(OR('TSA Input'!J597=\"Yes\",'TSA Input'!J597=\"Contingent\"),'TSA Input'!D597,\"\"))","v":""},{"$f":"IF('TSA Input'!J597=\"\",\"\",IF(OR('TSA Input'!J597=\"Yes\",'TSA Input'!J597=\"Contingent\"),'TSA Input'!G597,\"\"))","v":""},{"$f":"IF('TSA Input'!J597=\"\",\"\",IF(OR('TSA Input'!J597=\"Yes\",'TSA Input'!J597=\"Contingent\"),'TSA Input'!F597,\"\"))","v":""},"",{"$f":"IF('TSA Input'!J597=\"\",\"\",IF(OR('TSA Input'!J597=\"Yes\",'TSA Input'!J597=\"Contingent\"),'TSA Input'!D597,\"\"))","v":""},{"$f":"IF('TSA Input'!J597=\"\",\"\",IF(OR('TSA Input'!J597=\"Yes\",'TSA Input'!J597=\"Contingent\"),'TSA Input'!G597,\"\"))","v":""},{"$f":"IF('TSA Input'!J597=\"\",\"\",IF(OR('TSA Input'!J597=\"Yes\",'TSA Input'!J597=\"Contingent\"),'TSA Input'!F597,\"\"))","v":""},"","Required","Required"]
["",null,{"$f":"IF('TSA Input'!J598=\"\",\"\",IF(OR('TSA Input'!J598=\"Yes\",'TSA Input'!J598=\"Contingent\"),'TSA Input'!B598,\"Ineligible\"))","v":""},{"$f":"IF('TSA Input'!J598=\"\",\"\",IF(OR('TSA Input'!J598=\"Yes\",'TSA Input'!J598=\"Contingent\"),'TSA Input'!I598,\"\"))","v":""},{"$f":"IF('TSA Input'!J598=\"\",\"\",IF(OR('TSA Input'!J598=\"Yes\",'TSA Input'!J598=\"Contingent\"),'TSA Input'!C598,\"\"))","v":""},{"$f":"IF('TSA Input'!J598=\"\",\"\",IF(OR('TSA Input'!J598=\"Yes\",'TSA Input'!J598=\"Contingent\"),'TSA Input'!D598,\"\"))","v":""},{"$f":"IF('TSA Input'!J598=\"\",\"\",IF(OR('TSA Input'!J598=\"Yes\",'TSA Input'!J598=\"Contingent\"),'TSA Input'!G598,\"\"))","v":""},{"$f":"IF('TSA Input'!J598=\"\",\"\",IF(OR('TSA Input'!J598=\"Yes\",'TSA Input'!J598=\"Contingent\"),'TSA Input'!F598,\"\"))","v":""},"",{"$f":"IF('TSA Input'!J598=\"\",\"\",IF(OR('TSA Input'!J598=\"Yes\",'TSA Input'!J598=\"Contingent\"),'TSA Input'!D598,\"\"))","v":""},{"$f":"IF('TSA Input'!J598=\"\",\"\",IF(OR('TSA Input'!J598=\"Yes\",'TSA Input'!J598=\"Contingent\"),'TSA Input'!G598,\"\"))","v":""},{"$f":"IF('TSA Input'!J598=\"\",\"\",IF(OR('TSA Input'!J598=\"Yes\",'TSA Input'!J598=\"Contingent\"),'TSA Input'!F598,\"\"))","v":""},"","Required","Required"]
["",null,{"$f":"IF('TSA Input'!J599=\"\",\"\",IF(OR('TSA Input'!J599=\"Yes\",'TSA Input'!J599=\"Contingent\"),'TSA Input'!B599,\"Ineligible\"))","v":""},{"$f":"IF('TSA Input'!J599=\"\",\"\",IF(OR('TSA Input'!J599=\"Yes\",'TSA Input'!J599=\"Contingent\"),'TSA Input'!I599,\"\"))","v":""},{"$f":"IF('TSA Input'!J599=\"\",\"\",IF(OR('TSA Input'!J599=\"Yes\",'TSA Input'!J599=\"Contingent\"),'TSA Input'!C599,\"\"))","v":""},{"$f":"IF('TSA Input'!J599=\"\",\"\",IF(OR('TSA Input'!J599=\"Yes\",'TSA Input'!J599=\"Contingent\"),'TSA Input'!D599,\"\"))","v":""},{"$f":"IF('TSA Input'!J599=\"\",\"\",IF(OR('TSA Input'!J599=\"Yes\",'TSA Input'!J599=\"Contingent\"),'TSA Input'!G599,\"\"))","v":""},{"$f":"IF('TSA Input'!J599=\"\",\"\",IF(OR('TSA Input'!J599=\"Yes\",'TSA Input'!J599=\"Contingent\"),'TSA Input'!F599,\"\"))","v":""},"",{"$f":"IF('TSA Input'!J599=\"\",\"\",IF(OR('TSA Input'!J599=\"Yes\",'TSA Input'!J599=\"Contingent\"),'TSA Input'!D599,\"\"))","v":""},{"$f":"IF('TSA Input'!J599=\"\",\"\",IF(OR('TSA Input'!J599=\"Yes\",'TSA Input'!J599=\"Contingent\"),'TSA Input'!G599,\"\"))","v":""},{"$f":"IF('TSA Input'!J599=\"\",\"\",IF(OR('TSA Input'!J599=\"Yes\",'TSA Input'!J599=\"Contingent\"),'TSA Input'!F599,\"\"))","v":""},"","Required","Required"]
["",null,{"$f":"IF('TSA Input'!J600=\"\",\"\",IF(OR('TSA Input'!J600=\"Yes\",'TSA Input'!J600=\"Contingent\"),'TSA Input'!B600,\"Ineligible\"))","v":""},{"$f":"IF('TSA Input'!J600=\"\",\"\",IF(OR('TSA Input'!J600=\"Yes\",'TSA Input'!J600=\"Contingent\"),'TSA Input'!I600,\"\"))","v":""},{"$f":"IF('TSA Input'!J600=\"\",\"\",IF(OR('TSA Input'!J600=\"Yes\",'TSA Input'!J600=\"Contingent\"),'TSA Input'!C600,\"\"))","v":""},{"$f":"IF('TSA Input'!J600=\"\",\"\",IF(OR('TSA Input'!J600=\"Yes\",'TSA Input'!J600=\"Contingent\"),'TSA Input'!D600,\"\"))","v":""},{"$f":"IF('TSA Input'!J600=\"\",\"\",IF(OR('TSA Input'!J600=\"Yes\",'TSA Input'!J600=\"Contingent\"),'TSA Input'!G600,\"\"))","v":""},{"$f":"IF('TSA Input'!J600=\"\",\"\",IF(OR('TSA Input'!J600=\"Yes\",'TSA Input'!J600=\"Contingent\"),'TSA Input'!F600,\"\"))","v":""},"",{"$f":"IF('TSA Input'!J600=\"\",\"\",IF(OR('TSA Input'!J600=\"Yes\",'TSA Input'!J600=\"Contingent\"),'TSA Input'!D600,\"\"))","v":""},{"$f":"IF('TSA Input'!J600=\"\",\"\",IF(OR('TSA Input'!J600=\"Yes\",'TSA Input'!J600=\"Contingent\"),'TSA Input'!G600,\"\"))","v":""},{"$f":"IF('TSA Input'!J600=\"\",\"\",IF(OR('TSA Input'!J600=\"Yes\",'TSA Input'!J600=\"Contingent\"),'TSA Input'!F600,\"\"))","v":""},"","Required","Required"]
["",null,{"$f":"IF('TSA Input'!J601=\"\",\"\",IF(OR('TSA Input'!J601=\"Yes\",'TSA Input'!J601=\"Contingent\"),'TSA Input'!B601,\"Ineligible\"))","v":""},{"$f":"IF('TSA Input'!J601=\"\",\"\",IF(OR('TSA Input'!J601=\"Yes\",'TSA Input'!J601=\"Contingent\"),'TSA Input'!I601,\"\"))","v":""},{"$f":"IF('TSA Input'!J601=\"\",\"\",IF(OR('TSA Input'!J601=\"Yes\",'TSA Input'!J601=\"Contingent\"),'TSA Input'!C601,\"\"))","v":""},{"$f":"IF('TSA Input'!J601=\"\",\"\",IF(OR('TSA Input'!J601=\"Yes\",'TSA Input'!J601=\"Contingent\"),'TSA Input'!D601,\"\"))","v":""},{"$f":"IF('TSA Input'!J601=\"\",\"\",IF(OR('TSA Input'!J601=\"Yes\",'TSA Input'!J601=\"Contingent\"),'TSA Input'!G601,\"\"))","v":""},{"$f":"IF('TSA Input'!J601=\"\",\"\",IF(OR('TSA Input'!J601=\"Yes\",'TSA Input'!J601=\"Contingent\"),'TSA Input'!F601,\"\"))","v":""},"",{"$f":"IF('TSA Input'!J601=\"\",\"\",IF(OR('TSA Input'!J601=\"Yes\",'TSA Input'!J601=\"Contingent\"),'TSA Input'!D601,\"\"))","v":""},{"$f":"IF('TSA Input'!J601=\"\",\"\",IF(OR('TSA Input'!J601=\"Yes\",'TSA Input'!J601=\"Contingent\"),'TSA Input'!G601,\"\"))","v":""},{"$f":"IF('TSA Input'!J601=\"\",\"\",IF(OR('TSA Input'!J601=\"Yes\",'TSA Input'!J601=\"Contingent\"),'TSA Input'!F601,\"\"))","v":""},"","Required","Required"]
["",null,{"$f":"IF('TSA Input'!J602=\"\",\"\",IF(OR('TSA Input'!J602=\"Yes\",'TSA Input'!J602=\"Contingent\"),'TSA Input'!B602,\"Ineligible\"))","v":""},{"$f":"IF('TSA Input'!J602=\"\",\"\",IF(OR('TSA Input'!J602=\"Yes\",'TSA Input'!J602=\"Contingent\"),'TSA Input'!I602,\"\"))","v":""},{"$f":"IF('TSA Input'!J602=\"\",\"\",IF(OR('TSA Input'!J602=\"Yes\",'TSA Input'!J602=\"Contingent\"),'TSA Input'!C602,\"\"))","v":""},{"$f":"IF('TSA Input'!J602=\"\",\"\",IF(OR('TSA Input'!J602=\"Yes\",'TSA Input'!J602=\"Contingent\"),'TSA Input'!D602,\"\"))","v":""},{"$f":"IF('TSA Input'!J602=\"\",\"\",IF(OR('TSA Input'!J602=\"Yes\",'TSA Input'!J602=\"Contingent\"),'TSA Input'!G602,\"\"))","v":""},{"$f":"IF('TSA Input'!J602=\"\",\"\",IF(OR('TSA Input'!J602=\"Yes\",'TSA Input'!J602=\"Contingent\"),'TSA Input'!F602,\"\"))","v":""},"",{"$f":"IF('TSA Input'!J602=\"\",\"\",IF(OR('TSA Input'!J602=\"Yes\",'TSA Input'!J602=\"Contingent\"),'TSA Input'!D602,\"\"))","v":""},{"$f":"IF('TSA Input'!J602=\"\",\"\",IF(OR('TSA Input'!J602=\"Yes\",'TSA Input'!J602=\"Contingent\"),'TSA Input'!G602,\"\"))","v":""},{"$f":"IF('TSA Input'!J602=\"\",\"\",IF(OR('TSA Input'!J602=\"Yes\",'TSA Input'!J602=\"Contingent\"),'TSA Input'!F602,\"\"))","v":""},"","Required","Required"]
["",null,{"$f":"IF('TSA Input'!J603=\"\",\"\",IF(OR('TSA Input'!J603=\"Yes\",'TSA Input'!J603=\"Contingent\"),'TSA Input'!B603,\"Ineligible\"))","v":""},{"$f":"IF('TSA Input'!J603=\"\",\"\",IF(OR('TSA Input'!J603=\"Yes\",'TSA Input'!J603=\"Contingent\"),'TSA Input'!I603,\"\"))","v":""},{"$f":"IF('TSA Input'!J603=\"\",\"\",IF(OR('TSA Input'!J603=\"Yes\",'TSA Input'!J603=\"Contingent\"),'TSA Input'!C603,\"\"))","v":""},{"$f":"IF('TSA Input'!J603=\"\",\"\",IF(OR('TSA Input'!J603=\"Yes\",'TSA Input'!J603=\"Contingent\"),'TSA Input'!D603,\"\"))","v":""},{"$f":"IF('TSA Input'!J603=\"\",\"\",IF(OR('TSA Input'!J603=\"Yes\",'TSA Input'!J603=\"Contingent\"),'TSA Input'!G603,\"\"))","v":""},{"$f":"IF('TSA Input'!J603=\"\",\"\",IF(OR('TSA Input'!J603=\"Yes\",'TSA Input'!J603=\"Contingent\"),'TSA Input'!F603,\"\"))","v":""},"",{"$f":"IF('TSA Input'!J603=\"\",\"\",IF(OR('TSA Input'!J603=\"Yes\",'TSA Input'!J603=\"Contingent\"),'TSA Input'!D603,\"\"))","v":""},{"$f":"IF('TSA Input'!J603=\"\",\"\",IF(OR('TSA Input'!J603=\"Yes\",'TSA Input'!J603=\"Contingent\"),'TSA Input'!G603,\"\"))","v":""},{"$f":"IF('TSA Input'!J603=\"\",\"\",IF(OR('TSA Input'!J603=\"Yes\",'TSA Input'!J603=\"Contingent\"),'TSA Input'!F603,\"\"))","v":""},"","Required","Required"]
["",null,{"$f":"IF('TSA Input'!J604=\"\",\"\",IF(OR('TSA Input'!J604=\"Yes\",'TSA Input'!J604=\"Contingent\"),'TSA Input'!B604,\"Ineligible\"))","v":""},{"$f":"IF('TSA Input'!J604=\"\",\"\",IF(OR('TSA Input'!J604=\"Yes\",'TSA Input'!J604=\"Contingent\"),'TSA Input'!I604,\"\"))","v":""},{"$f":"IF('TSA Input'!J604=\"\",\"\",IF(OR('TSA Input'!J604=\"Yes\",'TSA Input'!J604=\"Contingent\"),'TSA Input'!C604,\"\"))","v":""},{"$f":"IF('TSA Input'!J604=\"\",\"\",IF(OR('TSA Input'!J604=\"Yes\",'TSA Input'!J604=\"Contingent\"),'TSA Input'!D604,\"\"))","v":""},{"$f":"IF('TSA Input'!J604=\"\",\"\",IF(OR('TSA Input'!J604=\"Yes\",'TSA Input'!J604=\"Contingent\"),'TSA Input'!G604,\"\"))","v":""},{"$f":"IF('TSA Input'!J604=\"\",\"\",IF(OR('TSA Input'!J604=\"Yes\",'TSA Input'!J604=\"Contingent\"),'TSA Input'!F604,\"\"))","v":""},"",{"$f":"IF('TSA Input'!J604=\"\",\"\",IF(OR('TSA Input'!J604=\"Yes\",'TSA Input'!J604=\"Contingent\"),'TSA Input'!D604,\"\"))","v":""},{"$f":"IF('TSA Input'!J604=\"\",\"\",IF(OR('TSA Input'!J604=\"Yes\",'TSA Input'!J604=\"Contingent\"),'TSA Input'!G604,\"\"))","v":""},{"$f":"IF('TSA Input'!J604=\"\",\"\",IF(OR('TSA Input'!J604=\"Yes\",'TSA Input'!J604=\"Contingent\"),'TSA Input'!F604,\"\"))","v":""},"","Required","Required"]
["",null,{"$f":"IF('TSA Input'!J605=\"\",\"\",IF(OR('TSA Input'!J605=\"Yes\",'TSA Input'!J605=\"Contingent\"),'TSA Input'!B605,\"Ineligible\"))","v":""},{"$f":"IF('TSA Input'!J605=\"\",\"\",IF(OR('TSA Input'!J605=\"Yes\",'TSA Input'!J605=\"Contingent\"),'TSA Input'!I605,\"\"))","v":""},{"$f":"IF('TSA Input'!J605=\"\",\"\",IF(OR('TSA Input'!J605=\"Yes\",'TSA Input'!J605=\"Contingent\"),'TSA Input'!C605,\"\"))","v":""},{"$f":"IF('TSA Input'!J605=\"\",\"\",IF(OR('TSA Input'!J605=\"Yes\",'TSA Input'!J605=\"Contingent\"),'TSA Input'!D605,\"\"))","v":""},{"$f":"IF('TSA Input'!J605=\"\",\"\",IF(OR('TSA Input'!J605=\"Yes\",'TSA Input'!J605=\"Contingent\"),'TSA Input'!G605,\"\"))","v":""},{"$f":"IF('TSA Input'!J605=\"\",\"\",IF(OR('TSA Input'!J605=\"Yes\",'TSA Input'!J605=\"Contingent\"),'TSA Input'!F605,\"\"))","v":""},"",{"$f":"IF('TSA Input'!J605=\"\",\"\",IF(OR('TSA Input'!J605=\"Yes\",'TSA Input'!J605=\"Contingent\"),'TSA Input'!D605,\"\"))","v":""},{"$f":"IF('TSA Input'!J605=\"\",\"\",IF(OR('TSA Input'!J605=\"Yes\",'TSA Input'!J605=\"Contingent\"),'TSA Input'!G605,\"\"))","v":""},{"$f":"IF('TSA Input'!J605=\"\",\"\",IF(OR('TSA Input'!J605=\"Yes\",'TSA Input'!J605=\"Contingent\"),'TSA Input'!F605,\"\"))","v":""},"","Required","Required"]
["",null,{"$f":"IF('TSA Input'!J606=\"\",\"\",IF(OR('TSA Input'!J606=\"Yes\",'TSA Input'!J606=\"Contingent\"),'TSA Input'!B606,\"Ineligible\"))","v":""},{"$f":"IF('TSA Input'!J606=\"\",\"\",IF(OR('TSA Input'!J606=\"Yes\",'TSA Input'!J606=\"Contingent\"),'TSA Input'!I606,\"\"))","v":""},{"$f":"IF('TSA Input'!J606=\"\",\"\",IF(OR('TSA Input'!J606=\"Yes\",'TSA Input'!J606=\"Contingent\"),'TSA Input'!C606,\"\"))","v":""},{"$f":"IF('TSA Input'!J606=\"\",\"\",IF(OR('TSA Input'!J606=\"Yes\",'TSA Input'!J606=\"Contingent\"),'TSA Input'!D606,\"\"))","v":""},{"$f":"IF('TSA Input'!J606=\"\",\"\",IF(OR('TSA Input'!J606=\"Yes\",'TSA Input'!J606=\"Contingent\"),'TSA Input'!G606,\"\"))","v":""},{"$f":"IF('TSA Input'!J606=\"\",\"\",IF(OR('TSA Input'!J606=\"Yes\",'TSA Input'!J606=\"Contingent\"),'TSA Input'!F606,\"\"))","v":""},"",{"$f":"IF('TSA Input'!J606=\"\",\"\",IF(OR('TSA Input'!J606=\"Yes\",'TSA Input'!J606=\"Contingent\"),'TSA Input'!D606,\"\"))","v":""},{"$f":"IF('TSA Input'!J606=\"\",\"\",IF(OR('TSA Input'!J606=\"Yes\",'TSA Input'!J606=\"Contingent\"),'TSA Input'!G606,\"\"))","v":""},{"$f":"IF('TSA Input'!J606=\"\",\"\",IF(OR('TSA Input'!J606=\"Yes\",'TSA Input'!J606=\"Contingent\"),'TSA Input'!F606,\"\"))","v":""},"","Required","Required"]
["",null,{"$f":"IF('TSA Input'!J607=\"\",\"\",IF(OR('TSA Input'!J607=\"Yes\",'TSA Input'!J607=\"Contingent\"),'TSA Input'!B607,\"Ineligible\"))","v":""},{"$f":"IF('TSA Input'!J607=\"\",\"\",IF(OR('TSA Input'!J607=\"Yes\",'TSA Input'!J607=\"Contingent\"),'TSA Input'!I607,\"\"))","v":""},{"$f":"IF('TSA Input'!J607=\"\",\"\",IF(OR('TSA Input'!J607=\"Yes\",'TSA Input'!J607=\"Contingent\"),'TSA Input'!C607,\"\"))","v":""},{"$f":"IF('TSA Input'!J607=\"\",\"\",IF(OR('TSA Input'!J607=\"Yes\",'TSA Input'!J607=\"Contingent\"),'TSA Input'!D607,\"\"))","v":""},{"$f":"IF('TSA Input'!J607=\"\",\"\",IF(OR('TSA Input'!J607=\"Yes\",'TSA Input'!J607=\"Contingent\"),'TSA Input'!G607,\"\"))","v":""},{"$f":"IF('TSA Input'!J607=\"\",\"\",IF(OR('TSA Input'!J607=\"Yes\",'TSA Input'!J607=\"Contingent\"),'TSA Input'!F607,\"\"))","v":""},"",{"$f":"IF('TSA Input'!J607=\"\",\"\",IF(OR('TSA Input'!J607=\"Yes\",'TSA Input'!J607=\"Contingent\"),'TSA Input'!D607,\"\"))","v":""},{"$f":"IF('TSA Input'!J607=\"\",\"\",IF(OR('TSA Input'!J607=\"Yes\",'TSA Input'!J607=\"Contingent\"),'TSA Input'!G607,\"\"))","v":""},{"$f":"IF('TSA Input'!J607=\"\",\"\",IF(OR('TSA Input'!J607=\"Yes\",'TSA Input'!J607=\"Contingent\"),'TSA Input'!F607,\"\"))","v":""},"","Required","Required"]
["",null,{"$f":"IF('TSA Input'!J608=\"\",\"\",IF(OR('TSA Input'!J608=\"Yes\",'TSA Input'!J608=\"Contingent\"),'TSA Input'!B608,\"Ineligible\"))","v":""},{"$f":"IF('TSA Input'!J608=\"\",\"\",IF(OR('TSA Input'!J608=\"Yes\",'TSA Input'!J608=\"Contingent\"),'TSA Input'!I608,\"\"))","v":""},{"$f":"IF('TSA Input'!J608=\"\",\"\",IF(OR('TSA Input'!J608=\"Yes\",'TSA Input'!J608=\"Contingent\"),'TSA Input'!C608,\"\"))","v":""},{"$f":"IF('TSA Input'!J608=\"\",\"\",IF(OR('TSA Input'!J608=\"Yes\",'TSA Input'!J608=\"Contingent\"),'TSA Input'!D608,\"\"))","v":""},{"$f":"IF('TSA Input'!J608=\"\",\"\",IF(OR('TSA Input'!J608=\"Yes\",'TSA Input'!J608=\"Contingent\"),'TSA Input'!G608,\"\"))","v":""},{"$f":"IF('TSA Input'!J608=\"\",\"\",IF(OR('TSA Input'!J608=\"Yes\",'TSA Input'!J608=\"Contingent\"),'TSA Input'!F608,\"\"))","v":""},"",{"$f":"IF('TSA Input'!J608=\"\",\"\",IF(OR('TSA Input'!J608=\"Yes\",'TSA Input'!J608=\"Contingent\"),'TSA Input'!D608,\"\"))","v":""},{"$f":"IF('TSA Input'!J608=\"\",\"\",IF(OR('TSA Input'!J608=\"Yes\",'TSA Input'!J608=\"Contingent\"),'TSA Input'!G608,\"\"))","v":""},{"$f":"IF('TSA Input'!J608=\"\",\"\",IF(OR('TSA Input'!J608=\"Yes\",'TSA Input'!J608=\"Contingent\"),'TSA Input'!F608,\"\"))","v":""},"","Required","Required"]
["",null,{"$f":"IF('TSA Input'!J609=\"\",\"\",IF(OR('TSA Input'!J609=\"Yes\",'TSA Input'!J609=\"Contingent\"),'TSA Input'!B609,\"Ineligible\"))","v":""},{"$f":"IF('TSA Input'!J609=\"\",\"\",IF(OR('TSA Input'!J609=\"Yes\",'TSA Input'!J609=\"Contingent\"),'TSA Input'!I609,\"\"))","v":""},{"$f":"IF('TSA Input'!J609=\"\",\"\",IF(OR('TSA Input'!J609=\"Yes\",'TSA Input'!J609=\"Contingent\"),'TSA Input'!C609,\"\"))","v":""},{"$f":"IF('TSA Input'!J609=\"\",\"\",IF(OR('TSA Input'!J609=\"Yes\",'TSA Input'!J609=\"Contingent\"),'TSA Input'!D609,\"\"))","v":""},{"$f":"IF('TSA Input'!J609=\"\",\"\",IF(OR('TSA Input'!J609=\"Yes\",'TSA Input'!J609=\"Contingent\"),'TSA Input'!G609,\"\"))","v":""},{"$f":"IF('TSA Input'!J609=\"\",\"\",IF(OR('TSA Input'!J609=\"Yes\",'TSA Input'!J609=\"Contingent\"),'TSA Input'!F609,\"\"))","v":""},"",{"$f":"IF('TSA Input'!J609=\"\",\"\",IF(OR('TSA Input'!J609=\"Yes\",'TSA Input'!J609=\"Contingent\"),'TSA Input'!D609,\"\"))","v":""},{"$f":"IF('TSA Input'!J609=\"\",\"\",IF(OR('TSA Input'!J609=\"Yes\",'TSA Input'!J609=\"Contingent\"),'TSA Input'!G609,\"\"))","v":""},{"$f":"IF('TSA Input'!J609=\"\",\"\",IF(OR('TSA Input'!J609=\"Yes\",'TSA Input'!J609=\"Contingent\"),'TSA Input'!F609,\"\"))","v":""},"","Required","Required"]
["",null,{"$f":"IF('TSA Input'!J610=\"\",\"\",IF(OR('TSA Input'!J610=\"Yes\",'TSA Input'!J610=\"Contingent\"),'TSA Input'!B610,\"Ineligible\"))","v":""},{"$f":"IF('TSA Input'!J610=\"\",\"\",IF(OR('TSA Input'!J610=\"Yes\",'TSA Input'!J610=\"Contingent\"),'TSA Input'!I610,\"\"))","v":""},{"$f":"IF('TSA Input'!J610=\"\",\"\",IF(OR('TSA Input'!J610=\"Yes\",'TSA Input'!J610=\"Contingent\"),'TSA Input'!C610,\"\"))","v":""},{"$f":"IF('TSA Input'!J610=\"\",\"\",IF(OR('TSA Input'!J610=\"Yes\",'TSA Input'!J610=\"Contingent\"),'TSA Input'!D610,\"\"))","v":""},{"$f":"IF('TSA Input'!J610=\"\",\"\",IF(OR('TSA Input'!J610=\"Yes\",'TSA Input'!J610=\"Contingent\"),'TSA Input'!G610,\"\"))","v":""},{"$f":"IF('TSA Input'!J610=\"\",\"\",IF(OR('TSA Input'!J610=\"Yes\",'TSA Input'!J610=\"Contingent\"),'TSA Input'!F610,\"\"))","v":""},"",{"$f":"IF('TSA Input'!J610=\"\",\"\",IF(OR('TSA Input'!J610=\"Yes\",'TSA Input'!J610=\"Contingent\"),'TSA Input'!D610,\"\"))","v":""},{"$f":"IF('TSA Input'!J610=\"\",\"\",IF(OR('TSA Input'!J610=\"Yes\",'TSA Input'!J610=\"Contingent\"),'TSA Input'!G610,\"\"))","v":""},{"$f":"IF('TSA Input'!J610=\"\",\"\",IF(OR('TSA Input'!J610=\"Yes\",'TSA Input'!J610=\"Contingent\"),'TSA Input'!F610,\"\"))","v":""},"","Required","Required"]
["",null,{"$f":"IF('TSA Input'!J611=\"\",\"\",IF(OR('TSA Input'!J611=\"Yes\",'TSA Input'!J611=\"Contingent\"),'TSA Input'!B611,\"Ineligible\"))","v":""},{"$f":"IF('TSA Input'!J611=\"\",\"\",IF(OR('TSA Input'!J611=\"Yes\",'TSA Input'!J611=\"Contingent\"),'TSA Input'!I611,\"\"))","v":""},{"$f":"IF('TSA Input'!J611=\"\",\"\",IF(OR('TSA Input'!J611=\"Yes\",'TSA Input'!J611=\"Contingent\"),'TSA Input'!C611,\"\"))","v":""},{"$f":"IF('TSA Input'!J611=\"\",\"\",IF(OR('TSA Input'!J611=\"Yes\",'TSA Input'!J611=\"Contingent\"),'TSA Input'!D611,\"\"))","v":""},{"$f":"IF('TSA Input'!J611=\"\",\"\",IF(OR('TSA Input'!J611=\"Yes\",'TSA Input'!J611=\"Contingent\"),'TSA Input'!G611,\"\"))","v":""},{"$f":"IF('TSA Input'!J611=\"\",\"\",IF(OR('TSA Input'!J611=\"Yes\",'TSA Input'!J611=\"Contingent\"),'TSA Input'!F611,\"\"))","v":""},"",{"$f":"IF('TSA Input'!J611=\"\",\"\",IF(OR('TSA Input'!J611=\"Yes\",'TSA Input'!J611=\"Contingent\"),'TSA Input'!D611,\"\"))","v":""},{"$f":"IF('TSA Input'!J611=\"\",\"\",IF(OR('TSA Input'!J611=\"Yes\",'TSA Input'!J611=\"Contingent\"),'TSA Input'!G611,\"\"))","v":""},{"$f":"IF('TSA Input'!J611=\"\",\"\",IF(OR('TSA Input'!J611=\"Yes\",'TSA Input'!J611=\"Contingent\"),'TSA Input'!F611,\"\"))","v":""},"","Required","Required"]
["",null,{"$f":"IF('TSA Input'!J612=\"\",\"\",IF(OR('TSA Input'!J612=\"Yes\",'TSA Input'!J612=\"Contingent\"),'TSA Input'!B612,\"Ineligible\"))","v":""},{"$f":"IF('TSA Input'!J612=\"\",\"\",IF(OR('TSA Input'!J612=\"Yes\",'TSA Input'!J612=\"Contingent\"),'TSA Input'!I612,\"\"))","v":""},{"$f":"IF('TSA Input'!J612=\"\",\"\",IF(OR('TSA Input'!J612=\"Yes\",'TSA Input'!J612=\"Contingent\"),'TSA Input'!C612,\"\"))","v":""},{"$f":"IF('TSA Input'!J612=\"\",\"\",IF(OR('TSA Input'!J612=\"Yes\",'TSA Input'!J612=\"Contingent\"),'TSA Input'!D612,\"\"))","v":""},{"$f":"IF('TSA Input'!J612=\"\",\"\",IF(OR('TSA Input'!J612=\"Yes\",'TSA Input'!J612=\"Contingent\"),'TSA Input'!G612,\"\"))","v":""},{"$f":"IF('TSA Input'!J612=\"\",\"\",IF(OR('TSA Input'!J612=\"Yes\",'TSA Input'!J612=\"Contingent\"),'TSA Input'!F612,\"\"))","v":""},"",{"$f":"IF('TSA Input'!J612=\"\",\"\",IF(OR('TSA Input'!J612=\"Yes\",'TSA Input'!J612=\"Contingent\"),'TSA Input'!D612,\"\"))","v":""},{"$f":"IF('TSA Input'!J612=\"\",\"\",IF(OR('TSA Input'!J612=\"Yes\",'TSA Input'!J612=\"Contingent\"),'TSA Input'!G612,\"\"))","v":""},{"$f":"IF('TSA Input'!J612=\"\",\"\",IF(OR('TSA Input'!J612=\"Yes\",'TSA Input'!J612=\"Contingent\"),'TSA Input'!F612,\"\"))","v":""},"","Required","Required"]
["",null,{"$f":"IF('TSA Input'!J613=\"\",\"\",IF(OR('TSA Input'!J613=\"Yes\",'TSA Input'!J613=\"Contingent\"),'TSA Input'!B613,\"Ineligible\"))","v":""},{"$f":"IF('TSA Input'!J613=\"\",\"\",IF(OR('TSA Input'!J613=\"Yes\",'TSA Input'!J613=\"Contingent\"),'TSA Input'!I613,\"\"))","v":""},{"$f":"IF('TSA Input'!J613=\"\",\"\",IF(OR('TSA Input'!J613=\"Yes\",'TSA Input'!J613=\"Contingent\"),'TSA Input'!C613,\"\"))","v":""},{"$f":"IF('TSA Input'!J613=\"\",\"\",IF(OR('TSA Input'!J613=\"Yes\",'TSA Input'!J613=\"Contingent\"),'TSA Input'!D613,\"\"))","v":""},{"$f":"IF('TSA Input'!J613=\"\",\"\",IF(OR('TSA Input'!J613=\"Yes\",'TSA Input'!J613=\"Contingent\"),'TSA Input'!G613,\"\"))","v":""},{"$f":"IF('TSA Input'!J613=\"\",\"\",IF(OR('TSA Input'!J613=\"Yes\",'TSA Input'!J613=\"Contingent\"),'TSA Input'!F613,\"\"))","v":""},"",{"$f":"IF('TSA Input'!J613=\"\",\"\",IF(OR('TSA Input'!J613=\"Yes\",'TSA Input'!J613=\"Contingent\"),'TSA Input'!D613,\"\"))","v":""},{"$f":"IF('TSA Input'!J613=\"\",\"\",IF(OR('TSA Input'!J613=\"Yes\",'TSA Input'!J613=\"Contingent\"),'TSA Input'!G613,\"\"))","v":""},{"$f":"IF('TSA Input'!J613=\"\",\"\",IF(OR('TSA Input'!J613=\"Yes\",'TSA Input'!J613=\"Contingent\"),'TSA Input'!F613,\"\"))","v":""},"","Required","Required"]
["",null,{"$f":"IF('TSA Input'!J614=\"\",\"\",IF(OR('TSA Input'!J614=\"Yes\",'TSA Input'!J614=\"Contingent\"),'TSA Input'!B614,\"Ineligible\"))","v":""},{"$f":"IF('TSA Input'!J614=\"\",\"\",IF(OR('TSA Input'!J614=\"Yes\",'TSA Input'!J614=\"Contingent\"),'TSA Input'!I614,\"\"))","v":""},{"$f":"IF('TSA Input'!J614=\"\",\"\",IF(OR('TSA Input'!J614=\"Yes\",'TSA Input'!J614=\"Contingent\"),'TSA Input'!C614,\"\"))","v":""},{"$f":"IF('TSA Input'!J614=\"\",\"\",IF(OR('TSA Input'!J614=\"Yes\",'TSA Input'!J614=\"Contingent\"),'TSA Input'!D614,\"\"))","v":""},{"$f":"IF('TSA Input'!J614=\"\",\"\",IF(OR('TSA Input'!J614=\"Yes\",'TSA Input'!J614=\"Contingent\"),'TSA Input'!G614,\"\"))","v":""},{"$f":"IF('TSA Input'!J614=\"\",\"\",IF(OR('TSA Input'!J614=\"Yes\",'TSA Input'!J614=\"Contingent\"),'TSA Input'!F614,\"\"))","v":""},"",{"$f":"IF('TSA Input'!J614=\"\",\"\",IF(OR('TSA Input'!J614=\"Yes\",'TSA Input'!J614=\"Contingent\"),'TSA Input'!D614,\"\"))","v":""},{"$f":"IF('TSA Input'!J614=\"\",\"\",IF(OR('TSA Input'!J614=\"Yes\",'TSA Input'!J614=\"Contingent\"),'TSA Input'!G614,\"\"))","v":""},{"$f":"IF('TSA Input'!J614=\"\",\"\",IF(OR('TSA Input'!J614=\"Yes\",'TSA Input'!J614=\"Contingent\"),'TSA Input'!F614,\"\"))","v":""},"","Required","Required"]
["",null,{"$f":"IF('TSA Input'!J615=\"\",\"\",IF(OR('TSA Input'!J615=\"Yes\",'TSA Input'!J615=\"Contingent\"),'TSA Input'!B615,\"Ineligible\"))","v":""},{"$f":"IF('TSA Input'!J615=\"\",\"\",IF(OR('TSA Input'!J615=\"Yes\",'TSA Input'!J615=\"Contingent\"),'TSA Input'!I615,\"\"))","v":""},{"$f":"IF('TSA Input'!J615=\"\",\"\",IF(OR('TSA Input'!J615=\"Yes\",'TSA Input'!J615=\"Contingent\"),'TSA Input'!C615,\"\"))","v":""},{"$f":"IF('TSA Input'!J615=\"\",\"\",IF(OR('TSA Input'!J615=\"Yes\",'TSA Input'!J615=\"Contingent\"),'TSA Input'!D615,\"\"))","v":""},{"$f":"IF('TSA Input'!J615=\"\",\"\",IF(OR('TSA Input'!J615=\"Yes\",'TSA Input'!J615=\"Contingent\"),'TSA Input'!G615,\"\"))","v":""},{"$f":"IF('TSA Input'!J615=\"\",\"\",IF(OR('TSA Input'!J615=\"Yes\",'TSA Input'!J615=\"Contingent\"),'TSA Input'!F615,\"\"))","v":""},"",{"$f":"IF('TSA Input'!J615=\"\",\"\",IF(OR('TSA Input'!J615=\"Yes\",'TSA Input'!J615=\"Contingent\"),'TSA Input'!D615,\"\"))","v":""},{"$f":"IF('TSA Input'!J615=\"\",\"\",IF(OR('TSA Input'!J615=\"Yes\",'TSA Input'!J615=\"Contingent\"),'TSA Input'!G615,\"\"))","v":""},{"$f":"IF('TSA Input'!J615=\"\",\"\",IF(OR('TSA Input'!J615=\"Yes\",'TSA Input'!J615=\"Contingent\"),'TSA Input'!F615,\"\"))","v":""},"","Required","Required"]
["",null,{"$f":"IF('TSA Input'!J616=\"\",\"\",IF(OR('TSA Input'!J616=\"Yes\",'TSA Input'!J616=\"Contingent\"),'TSA Input'!B616,\"Ineligible\"))","v":""},{"$f":"IF('TSA Input'!J616=\"\",\"\",IF(OR('TSA Input'!J616=\"Yes\",'TSA Input'!J616=\"Contingent\"),'TSA Input'!I616,\"\"))","v":""},{"$f":"IF('TSA Input'!J616=\"\",\"\",IF(OR('TSA Input'!J616=\"Yes\",'TSA Input'!J616=\"Contingent\"),'TSA Input'!C616,\"\"))","v":""},{"$f":"IF('TSA Input'!J616=\"\",\"\",IF(OR('TSA Input'!J616=\"Yes\",'TSA Input'!J616=\"Contingent\"),'TSA Input'!D616,\"\"))","v":""},{"$f":"IF('TSA Input'!J616=\"\",\"\",IF(OR('TSA Input'!J616=\"Yes\",'TSA Input'!J616=\"Contingent\"),'TSA Input'!G616,\"\"))","v":""},{"$f":"IF('TSA Input'!J616=\"\",\"\",IF(OR('TSA Input'!J616=\"Yes\",'TSA Input'!J616=\"Contingent\"),'TSA Input'!F616,\"\"))","v":""},"",{"$f":"IF('TSA Input'!J616=\"\",\"\",IF(OR('TSA Input'!J616=\"Yes\",'TSA Input'!J616=\"Contingent\"),'TSA Input'!D616,\"\"))","v":""},{"$f":"IF('TSA Input'!J616=\"\",\"\",IF(OR('TSA Input'!J616=\"Yes\",'TSA Input'!J616=\"Contingent\"),'TSA Input'!G616,\"\"))","v":""},{"$f":"IF('TSA Input'!J616=\"\",\"\",IF(OR('TSA Input'!J616=\"Yes\",'TSA Input'!J616=\"Contingent\"),'TSA Input'!F616,\"\"))","v":""},"","Required","Required"]
["",null,{"$f":"IF('TSA Input'!J617=\"\",\"\",IF(OR('TSA Input'!J617=\"Yes\",'TSA Input'!J617=\"Contingent\"),'TSA Input'!B617,\"Ineligible\"))","v":""},{"$f":"IF('TSA Input'!J617=\"\",\"\",IF(OR('TSA Input'!J617=\"Yes\",'TSA Input'!J617=\"Contingent\"),'TSA Input'!I617,\"\"))","v":""},{"$f":"IF('TSA Input'!J617=\"\",\"\",IF(OR('TSA Input'!J617=\"Yes\",'TSA Input'!J617=\"Contingent\"),'TSA Input'!C617,\"\"))","v":""},{"$f":"IF('TSA Input'!J617=\"\",\"\",IF(OR('TSA Input'!J617=\"Yes\",'TSA Input'!J617=\"Contingent\"),'TSA Input'!D617,\"\"))","v":""},{"$f":"IF('TSA Input'!J617=\"\",\"\",IF(OR('TSA Input'!J617=\"Yes\",'TSA Input'!J617=\"Contingent\"),'TSA Input'!G617,\"\"))","v":""},{"$f":"IF('TSA Input'!J617=\"\",\"\",IF(OR('TSA Input'!J617=\"Yes\",'TSA Input'!J617=\"Contingent\"),'TSA Input'!F617,\"\"))","v":""},"",{"$f":"IF('TSA Input'!J617=\"\",\"\",IF(OR('TSA Input'!J617=\"Yes\",'TSA Input'!J617=\"Contingent\"),'TSA Input'!D617,\"\"))","v":""},{"$f":"IF('TSA Input'!J617=\"\",\"\",IF(OR('TSA Input'!J617=\"Yes\",'TSA Input'!J617=\"Contingent\"),'TSA Input'!G617,\"\"))","v":""},{"$f":"IF('TSA Input'!J617=\"\",\"\",IF(OR('TSA Input'!J617=\"Yes\",'TSA Input'!J617=\"Contingent\"),'TSA Input'!F617,\"\"))","v":""},"","Required","Required"]
["",null,{"$f":"IF('TSA Input'!J618=\"\",\"\",IF(OR('TSA Input'!J618=\"Yes\",'TSA Input'!J618=\"Contingent\"),'TSA Input'!B618,\"Ineligible\"))","v":""},{"$f":"IF('TSA Input'!J618=\"\",\"\",IF(OR('TSA Input'!J618=\"Yes\",'TSA Input'!J618=\"Contingent\"),'TSA Input'!I618,\"\"))","v":""},{"$f":"IF('TSA Input'!J618=\"\",\"\",IF(OR('TSA Input'!J618=\"Yes\",'TSA Input'!J618=\"Contingent\"),'TSA Input'!C618,\"\"))","v":""},{"$f":"IF('TSA Input'!J618=\"\",\"\",IF(OR('TSA Input'!J618=\"Yes\",'TSA Input'!J618=\"Contingent\"),'TSA Input'!D618,\"\"))","v":""},{"$f":"IF('TSA Input'!J618=\"\",\"\",IF(OR('TSA Input'!J618=\"Yes\",'TSA Input'!J618=\"Contingent\"),'TSA Input'!G618,\"\"))","v":""},{"$f":"IF('TSA Input'!J618=\"\",\"\",IF(OR('TSA Input'!J618=\"Yes\",'TSA Input'!J618=\"Contingent\"),'TSA Input'!F618,\"\"))","v":""},"",{"$f":"IF('TSA Input'!J618=\"\",\"\",IF(OR('TSA Input'!J618=\"Yes\",'TSA Input'!J618=\"Contingent\"),'TSA Input'!D618,\"\"))","v":""},{"$f":"IF('TSA Input'!J618=\"\",\"\",IF(OR('TSA Input'!J618=\"Yes\",'TSA Input'!J618=\"Contingent\"),'TSA Input'!G618,\"\"))","v":""},{"$f":"IF('TSA Input'!J618=\"\",\"\",IF(OR('TSA Input'!J618=\"Yes\",'TSA Input'!J618=\"Contingent\"),'TSA Input'!F618,\"\"))","v":""},"","Required","Required"]
["",null,{"$f":"IF('TSA Input'!J619=\"\",\"\",IF(OR('TSA Input'!J619=\"Yes\",'TSA Input'!J619=\"Contingent\"),'TSA Input'!B619,\"Ineligible\"))","v":""},{"$f":"IF('TSA Input'!J619=\"\",\"\",IF(OR('TSA Input'!J619=\"Yes\",'TSA Input'!J619=\"Contingent\"),'TSA Input'!I619,\"\"))","v":""},{"$f":"IF('TSA Input'!J619=\"\",\"\",IF(OR('TSA Input'!J619=\"Yes\",'TSA Input'!J619=\"Contingent\"),'TSA Input'!C619,\"\"))","v":""},{"$f":"IF('TSA Input'!J619=\"\",\"\",IF(OR('TSA Input'!J619=\"Yes\",'TSA Input'!J619=\"Contingent\"),'TSA Input'!D619,\"\"))","v":""},{"$f":"IF('TSA Input'!J619=\"\",\"\",IF(OR('TSA Input'!J619=\"Yes\",'TSA Input'!J619=\"Contingent\"),'TSA Input'!G619,\"\"))","v":""},{"$f":"IF('TSA Input'!J619=\"\",\"\",IF(OR('TSA Input'!J619=\"Yes\",'TSA Input'!J619=\"Contingent\"),'TSA Input'!F619,\"\"))","v":""},"",{"$f":"IF('TSA Input'!J619=\"\",\"\",IF(OR('TSA Input'!J619=\"Yes\",'TSA Input'!J619=\"Contingent\"),'TSA Input'!D619,\"\"))","v":""},{"$f":"IF('TSA Input'!J619=\"\",\"\",IF(OR('TSA Input'!J619=\"Yes\",'TSA Input'!J619=\"Contingent\"),'TSA Input'!G619,\"\"))","v":""},{"$f":"IF('TSA Input'!J619=\"\",\"\",IF(OR('TSA Input'!J619=\"Yes\",'TSA Input'!J619=\"Contingent\"),'TSA Input'!F619,\"\"))","v":""},"","Required","Required"]
["",null,{"$f":"IF('TSA Input'!J620=\"\",\"\",IF(OR('TSA Input'!J620=\"Yes\",'TSA Input'!J620=\"Contingent\"),'TSA Input'!B620,\"Ineligible\"))","v":""},{"$f":"IF('TSA Input'!J620=\"\",\"\",IF(OR('TSA Input'!J620=\"Yes\",'TSA Input'!J620=\"Contingent\"),'TSA Input'!I620,\"\"))","v":""},{"$f":"IF('TSA Input'!J620=\"\",\"\",IF(OR('TSA Input'!J620=\"Yes\",'TSA Input'!J620=\"Contingent\"),'TSA Input'!C620,\"\"))","v":""},{"$f":"IF('TSA Input'!J620=\"\",\"\",IF(OR('TSA Input'!J620=\"Yes\",'TSA Input'!J620=\"Contingent\"),'TSA Input'!D620,\"\"))","v":""},{"$f":"IF('TSA Input'!J620=\"\",\"\",IF(OR('TSA Input'!J620=\"Yes\",'TSA Input'!J620=\"Contingent\"),'TSA Input'!G620,\"\"))","v":""},{"$f":"IF('TSA Input'!J620=\"\",\"\",IF(OR('TSA Input'!J620=\"Yes\",'TSA Input'!J620=\"Contingent\"),'TSA Input'!F620,\"\"))","v":""},"",{"$f":"IF('TSA Input'!J620=\"\",\"\",IF(OR('TSA Input'!J620=\"Yes\",'TSA Input'!J620=\"Contingent\"),'TSA Input'!D620,\"\"))","v":""},{"$f":"IF('TSA Input'!J620=\"\",\"\",IF(OR('TSA Input'!J620=\"Yes\",'TSA Input'!J620=\"Contingent\"),'TSA Input'!G620,\"\"))","v":""},{"$f":"IF('TSA Input'!J620=\"\",\"\",IF(OR('TSA Input'!J620=\"Yes\",'TSA Input'!J620=\"Contingent\"),'TSA Input'!F620,\"\"))","v":""},"","Required","Required"]
["",null,{"$f":"IF('TSA Input'!J621=\"\",\"\",IF(OR('TSA Input'!J621=\"Yes\",'TSA Input'!J621=\"Contingent\"),'TSA Input'!B621,\"Ineligible\"))","v":""},{"$f":"IF('TSA Input'!J621=\"\",\"\",IF(OR('TSA Input'!J621=\"Yes\",'TSA Input'!J621=\"Contingent\"),'TSA Input'!I621,\"\"))","v":""},{"$f":"IF('TSA Input'!J621=\"\",\"\",IF(OR('TSA Input'!J621=\"Yes\",'TSA Input'!J621=\"Contingent\"),'TSA Input'!C621,\"\"))","v":""},{"$f":"IF('TSA Input'!J621=\"\",\"\",IF(OR('TSA Input'!J621=\"Yes\",'TSA Input'!J621=\"Contingent\"),'TSA Input'!D621,\"\"))","v":""},{"$f":"IF('TSA Input'!J621=\"\",\"\",IF(OR('TSA Input'!J621=\"Yes\",'TSA Input'!J621=\"Contingent\"),'TSA Input'!G621,\"\"))","v":""},{"$f":"IF('TSA Input'!J621=\"\",\"\",IF(OR('TSA Input'!J621=\"Yes\",'TSA Input'!J621=\"Contingent\"),'TSA Input'!F621,\"\"))","v":""},"",{"$f":"IF('TSA Input'!J621=\"\",\"\",IF(OR('TSA Input'!J621=\"Yes\",'TSA Input'!J621=\"Contingent\"),'TSA Input'!D621,\"\"))","v":""},{"$f":"IF('TSA Input'!J621=\"\",\"\",IF(OR('TSA Input'!J621=\"Yes\",'TSA Input'!J621=\"Contingent\"),'TSA Input'!G621,\"\"))","v":""},{"$f":"IF('TSA Input'!J621=\"\",\"\",IF(OR('TSA Input'!J621=\"Yes\",'TSA Input'!J621=\"Contingent\"),'TSA Input'!F621,\"\"))","v":""},"","Required","Required"]
["",null,{"$f":"IF('TSA Input'!J622=\"\",\"\",IF(OR('TSA Input'!J622=\"Yes\",'TSA Input'!J622=\"Contingent\"),'TSA Input'!B622,\"Ineligible\"))","v":""},{"$f":"IF('TSA Input'!J622=\"\",\"\",IF(OR('TSA Input'!J622=\"Yes\",'TSA Input'!J622=\"Contingent\"),'TSA Input'!I622,\"\"))","v":""},{"$f":"IF('TSA Input'!J622=\"\",\"\",IF(OR('TSA Input'!J622=\"Yes\",'TSA Input'!J622=\"Contingent\"),'TSA Input'!C622,\"\"))","v":""},{"$f":"IF('TSA Input'!J622=\"\",\"\",IF(OR('TSA Input'!J622=\"Yes\",'TSA Input'!J622=\"Contingent\"),'TSA Input'!D622,\"\"))","v":""},{"$f":"IF('TSA Input'!J622=\"\",\"\",IF(OR('TSA Input'!J622=\"Yes\",'TSA Input'!J622=\"Contingent\"),'TSA Input'!G622,\"\"))","v":""},{"$f":"IF('TSA Input'!J622=\"\",\"\",IF(OR('TSA Input'!J622=\"Yes\",'TSA Input'!J622=\"Contingent\"),'TSA Input'!F622,\"\"))","v":""},"",{"$f":"IF('TSA Input'!J622=\"\",\"\",IF(OR('TSA Input'!J622=\"Yes\",'TSA Input'!J622=\"Contingent\"),'TSA Input'!D622,\"\"))","v":""},{"$f":"IF('TSA Input'!J622=\"\",\"\",IF(OR('TSA Input'!J622=\"Yes\",'TSA Input'!J622=\"Contingent\"),'TSA Input'!G622,\"\"))","v":""},{"$f":"IF('TSA Input'!J622=\"\",\"\",IF(OR('TSA Input'!J622=\"Yes\",'TSA Input'!J622=\"Contingent\"),'TSA Input'!F622,\"\"))","v":""},"","Required","Required"]
["",null,{"$f":"IF('TSA Input'!J623=\"\",\"\",IF(OR('TSA Input'!J623=\"Yes\",'TSA Input'!J623=\"Contingent\"),'TSA Input'!B623,\"Ineligible\"))","v":""},{"$f":"IF('TSA Input'!J623=\"\",\"\",IF(OR('TSA Input'!J623=\"Yes\",'TSA Input'!J623=\"Contingent\"),'TSA Input'!I623,\"\"))","v":""},{"$f":"IF('TSA Input'!J623=\"\",\"\",IF(OR('TSA Input'!J623=\"Yes\",'TSA Input'!J623=\"Contingent\"),'TSA Input'!C623,\"\"))","v":""},{"$f":"IF('TSA Input'!J623=\"\",\"\",IF(OR('TSA Input'!J623=\"Yes\",'TSA Input'!J623=\"Contingent\"),'TSA Input'!D623,\"\"))","v":""},{"$f":"IF('TSA Input'!J623=\"\",\"\",IF(OR('TSA Input'!J623=\"Yes\",'TSA Input'!J623=\"Contingent\"),'TSA Input'!G623,\"\"))","v":""},{"$f":"IF('TSA Input'!J623=\"\",\"\",IF(OR('TSA Input'!J623=\"Yes\",'TSA Input'!J623=\"Contingent\"),'TSA Input'!F623,\"\"))","v":""},"",{"$f":"IF('TSA Input'!J623=\"\",\"\",IF(OR('TSA Input'!J623=\"Yes\",'TSA Input'!J623=\"Contingent\"),'TSA Input'!D623,\"\"))","v":""},{"$f":"IF('TSA Input'!J623=\"\",\"\",IF(OR('TSA Input'!J623=\"Yes\",'TSA Input'!J623=\"Contingent\"),'TSA Input'!G623,\"\"))","v":""},{"$f":"IF('TSA Input'!J623=\"\",\"\",IF(OR('TSA Input'!J623=\"Yes\",'TSA Input'!J623=\"Contingent\"),'TSA Input'!F623,\"\"))","v":""},"","Required","Required"]
["",null,{"$f":"IF('TSA Input'!J624=\"\",\"\",IF(OR('TSA Input'!J624=\"Yes\",'TSA Input'!J624=\"Contingent\"),'TSA Input'!B624,\"Ineligible\"))","v":""},{"$f":"IF('TSA Input'!J624=\"\",\"\",IF(OR('TSA Input'!J624=\"Yes\",'TSA Input'!J624=\"Contingent\"),'TSA Input'!I624,\"\"))","v":""},{"$f":"IF('TSA Input'!J624=\"\",\"\",IF(OR('TSA Input'!J624=\"Yes\",'TSA Input'!J624=\"Contingent\"),'TSA Input'!C624,\"\"))","v":""},{"$f":"IF('TSA Input'!J624=\"\",\"\",IF(OR('TSA Input'!J624=\"Yes\",'TSA Input'!J624=\"Contingent\"),'TSA Input'!D624,\"\"))","v":""},{"$f":"IF('TSA Input'!J624=\"\",\"\",IF(OR('TSA Input'!J624=\"Yes\",'TSA Input'!J624=\"Contingent\"),'TSA Input'!G624,\"\"))","v":""},{"$f":"IF('TSA Input'!J624=\"\",\"\",IF(OR('TSA Input'!J624=\"Yes\",'TSA Input'!J624=\"Contingent\"),'TSA Input'!F624,\"\"))","v":""},"",{"$f":"IF('TSA Input'!J624=\"\",\"\",IF(OR('TSA Input'!J624=\"Yes\",'TSA Input'!J624=\"Contingent\"),'TSA Input'!D624,\"\"))","v":""},{"$f":"IF('TSA Input'!J624=\"\",\"\",IF(OR('TSA Input'!J624=\"Yes\",'TSA Input'!J624=\"Contingent\"),'TSA Input'!G624,\"\"))","v":""},{"$f":"IF('TSA Input'!J624=\"\",\"\",IF(OR('TSA Input'!J624=\"Yes\",'TSA Input'!J624=\"Contingent\"),'TSA Input'!F624,\"\"))","v":""},"","Required","Required"]
["",null,{"$f":"IF('TSA Input'!J625=\"\",\"\",IF(OR('TSA Input'!J625=\"Yes\",'TSA Input'!J625=\"Contingent\"),'TSA Input'!B625,\"Ineligible\"))","v":""},{"$f":"IF('TSA Input'!J625=\"\",\"\",IF(OR('TSA Input'!J625=\"Yes\",'TSA Input'!J625=\"Contingent\"),'TSA Input'!I625,\"\"))","v":""},{"$f":"IF('TSA Input'!J625=\"\",\"\",IF(OR('TSA Input'!J625=\"Yes\",'TSA Input'!J625=\"Contingent\"),'TSA Input'!C625,\"\"))","v":""},{"$f":"IF('TSA Input'!J625=\"\",\"\",IF(OR('TSA Input'!J625=\"Yes\",'TSA Input'!J625=\"Contingent\"),'TSA Input'!D625,\"\"))","v":""},{"$f":"IF('TSA Input'!J625=\"\",\"\",IF(OR('TSA Input'!J625=\"Yes\",'TSA Input'!J625=\"Contingent\"),'TSA Input'!G625,\"\"))","v":""},{"$f":"IF('TSA Input'!J625=\"\",\"\",IF(OR('TSA Input'!J625=\"Yes\",'TSA Input'!J625=\"Contingent\"),'TSA Input'!F625,\"\"))","v":""},"",{"$f":"IF('TSA Input'!J625=\"\",\"\",IF(OR('TSA Input'!J625=\"Yes\",'TSA Input'!J625=\"Contingent\"),'TSA Input'!D625,\"\"))","v":""},{"$f":"IF('TSA Input'!J625=\"\",\"\",IF(OR('TSA Input'!J625=\"Yes\",'TSA Input'!J625=\"Contingent\"),'TSA Input'!G625,\"\"))","v":""},{"$f":"IF('TSA Input'!J625=\"\",\"\",IF(OR('TSA Input'!J625=\"Yes\",'TSA Input'!J625=\"Contingent\"),'TSA Input'!F625,\"\"))","v":""},"","Required","Required"]
["",null,{"$f":"IF('TSA Input'!J626=\"\",\"\",IF(OR('TSA Input'!J626=\"Yes\",'TSA Input'!J626=\"Contingent\"),'TSA Input'!B626,\"Ineligible\"))","v":""},{"$f":"IF('TSA Input'!J626=\"\",\"\",IF(OR('TSA Input'!J626=\"Yes\",'TSA Input'!J626=\"Contingent\"),'TSA Input'!I626,\"\"))","v":""},{"$f":"IF('TSA Input'!J626=\"\",\"\",IF(OR('TSA Input'!J626=\"Yes\",'TSA Input'!J626=\"Contingent\"),'TSA Input'!C626,\"\"))","v":""},{"$f":"IF('TSA Input'!J626=\"\",\"\",IF(OR('TSA Input'!J626=\"Yes\",'TSA Input'!J626=\"Contingent\"),'TSA Input'!D626,\"\"))","v":""},{"$f":"IF('TSA Input'!J626=\"\",\"\",IF(OR('TSA Input'!J626=\"Yes\",'TSA Input'!J626=\"Contingent\"),'TSA Input'!G626,\"\"))","v":""},{"$f":"IF('TSA Input'!J626=\"\",\"\",IF(OR('TSA Input'!J626=\"Yes\",'TSA Input'!J626=\"Contingent\"),'TSA Input'!F626,\"\"))","v":""},"",{"$f":"IF('TSA Input'!J626=\"\",\"\",IF(OR('TSA Input'!J626=\"Yes\",'TSA Input'!J626=\"Contingent\"),'TSA Input'!D626,\"\"))","v":""},{"$f":"IF('TSA Input'!J626=\"\",\"\",IF(OR('TSA Input'!J626=\"Yes\",'TSA Input'!J626=\"Contingent\"),'TSA Input'!G626,\"\"))","v":""},{"$f":"IF('TSA Input'!J626=\"\",\"\",IF(OR('TSA Input'!J626=\"Yes\",'TSA Input'!J626=\"Contingent\"),'TSA Input'!F626,\"\"))","v":""},"","Required","Required"]
["",null,{"$f":"IF('TSA Input'!J627=\"\",\"\",IF(OR('TSA Input'!J627=\"Yes\",'TSA Input'!J627=\"Contingent\"),'TSA Input'!B627,\"Ineligible\"))","v":""},{"$f":"IF('TSA Input'!J627=\"\",\"\",IF(OR('TSA Input'!J627=\"Yes\",'TSA Input'!J627=\"Contingent\"),'TSA Input'!I627,\"\"))","v":""},{"$f":"IF('TSA Input'!J627=\"\",\"\",IF(OR('TSA Input'!J627=\"Yes\",'TSA Input'!J627=\"Contingent\"),'TSA Input'!C627,\"\"))","v":""},{"$f":"IF('TSA Input'!J627=\"\",\"\",IF(OR('TSA Input'!J627=\"Yes\",'TSA Input'!J627=\"Contingent\"),'TSA Input'!D627,\"\"))","v":""},{"$f":"IF('TSA Input'!J627=\"\",\"\",IF(OR('TSA Input'!J627=\"Yes\",'TSA Input'!J627=\"Contingent\"),'TSA Input'!G627,\"\"))","v":""},{"$f":"IF('TSA Input'!J627=\"\",\"\",IF(OR('TSA Input'!J627=\"Yes\",'TSA Input'!J627=\"Contingent\"),'TSA Input'!F627,\"\"))","v":""},"",{"$f":"IF('TSA Input'!J627=\"\",\"\",IF(OR('TSA Input'!J627=\"Yes\",'TSA Input'!J627=\"Contingent\"),'TSA Input'!D627,\"\"))","v":""},{"$f":"IF('TSA Input'!J627=\"\",\"\",IF(OR('TSA Input'!J627=\"Yes\",'TSA Input'!J627=\"Contingent\"),'TSA Input'!G627,\"\"))","v":""},{"$f":"IF('TSA Input'!J627=\"\",\"\",IF(OR('TSA Input'!J627=\"Yes\",'TSA Input'!J627=\"Contingent\"),'TSA Input'!F627,\"\"))","v":""},"","Required","Required"]
["",null,{"$f":"IF('TSA Input'!J628=\"\",\"\",IF(OR('TSA Input'!J628=\"Yes\",'TSA Input'!J628=\"Contingent\"),'TSA Input'!B628,\"Ineligible\"))","v":""},{"$f":"IF('TSA Input'!J628=\"\",\"\",IF(OR('TSA Input'!J628=\"Yes\",'TSA Input'!J628=\"Contingent\"),'TSA Input'!I628,\"\"))","v":""},{"$f":"IF('TSA Input'!J628=\"\",\"\",IF(OR('TSA Input'!J628=\"Yes\",'TSA Input'!J628=\"Contingent\"),'TSA Input'!C628,\"\"))","v":""},{"$f":"IF('TSA Input'!J628=\"\",\"\",IF(OR('TSA Input'!J628=\"Yes\",'TSA Input'!J628=\"Contingent\"),'TSA Input'!D628,\"\"))","v":""},{"$f":"IF('TSA Input'!J628=\"\",\"\",IF(OR('TSA Input'!J628=\"Yes\",'TSA Input'!J628=\"Contingent\"),'TSA Input'!G628,\"\"))","v":""},{"$f":"IF('TSA Input'!J628=\"\",\"\",IF(OR('TSA Input'!J628=\"Yes\",'TSA Input'!J628=\"Contingent\"),'TSA Input'!F628,\"\"))","v":""},"",{"$f":"IF('TSA Input'!J628=\"\",\"\",IF(OR('TSA Input'!J628=\"Yes\",'TSA Input'!J628=\"Contingent\"),'TSA Input'!D628,\"\"))","v":""},{"$f":"IF('TSA Input'!J628=\"\",\"\",IF(OR('TSA Input'!J628=\"Yes\",'TSA Input'!J628=\"Contingent\"),'TSA Input'!G628,\"\"))","v":""},{"$f":"IF('TSA Input'!J628=\"\",\"\",IF(OR('TSA Input'!J628=\"Yes\",'TSA Input'!J628=\"Contingent\"),'TSA Input'!F628,\"\"))","v":""},"","Required","Required"]
["",null,{"$f":"IF('TSA Input'!J629=\"\",\"\",IF(OR('TSA Input'!J629=\"Yes\",'TSA Input'!J629=\"Contingent\"),'TSA Input'!B629,\"Ineligible\"))","v":""},{"$f":"IF('TSA Input'!J629=\"\",\"\",IF(OR('TSA Input'!J629=\"Yes\",'TSA Input'!J629=\"Contingent\"),'TSA Input'!I629,\"\"))","v":""},{"$f":"IF('TSA Input'!J629=\"\",\"\",IF(OR('TSA Input'!J629=\"Yes\",'TSA Input'!J629=\"Contingent\"),'TSA Input'!C629,\"\"))","v":""},{"$f":"IF('TSA Input'!J629=\"\",\"\",IF(OR('TSA Input'!J629=\"Yes\",'TSA Input'!J629=\"Contingent\"),'TSA Input'!D629,\"\"))","v":""},{"$f":"IF('TSA Input'!J629=\"\",\"\",IF(OR('TSA Input'!J629=\"Yes\",'TSA Input'!J629=\"Contingent\"),'TSA Input'!G629,\"\"))","v":""},{"$f":"IF('TSA Input'!J629=\"\",\"\",IF(OR('TSA Input'!J629=\"Yes\",'TSA Input'!J629=\"Contingent\"),'TSA Input'!F629,\"\"))","v":""},"",{"$f":"IF('TSA Input'!J629=\"\",\"\",IF(OR('TSA Input'!J629=\"Yes\",'TSA Input'!J629=\"Contingent\"),'TSA Input'!D629,\"\"))","v":""},{"$f":"IF('TSA Input'!J629=\"\",\"\",IF(OR('TSA Input'!J629=\"Yes\",'TSA Input'!J629=\"Contingent\"),'TSA Input'!G629,\"\"))","v":""},{"$f":"IF('TSA Input'!J629=\"\",\"\",IF(OR('TSA Input'!J629=\"Yes\",'TSA Input'!J629=\"Contingent\"),'TSA Input'!F629,\"\"))","v":""},"","Required","Required"]
["",null,{"$f":"IF('TSA Input'!J630=\"\",\"\",IF(OR('TSA Input'!J630=\"Yes\",'TSA Input'!J630=\"Contingent\"),'TSA Input'!B630,\"Ineligible\"))","v":""},{"$f":"IF('TSA Input'!J630=\"\",\"\",IF(OR('TSA Input'!J630=\"Yes\",'TSA Input'!J630=\"Contingent\"),'TSA Input'!I630,\"\"))","v":""},{"$f":"IF('TSA Input'!J630=\"\",\"\",IF(OR('TSA Input'!J630=\"Yes\",'TSA Input'!J630=\"Contingent\"),'TSA Input'!C630,\"\"))","v":""},{"$f":"IF('TSA Input'!J630=\"\",\"\",IF(OR('TSA Input'!J630=\"Yes\",'TSA Input'!J630=\"Contingent\"),'TSA Input'!D630,\"\"))","v":""},{"$f":"IF('TSA Input'!J630=\"\",\"\",IF(OR('TSA Input'!J630=\"Yes\",'TSA Input'!J630=\"Contingent\"),'TSA Input'!G630,\"\"))","v":""},{"$f":"IF('TSA Input'!J630=\"\",\"\",IF(OR('TSA Input'!J630=\"Yes\",'TSA Input'!J630=\"Contingent\"),'TSA Input'!F630,\"\"))","v":""},"",{"$f":"IF('TSA Input'!J630=\"\",\"\",IF(OR('TSA Input'!J630=\"Yes\",'TSA Input'!J630=\"Contingent\"),'TSA Input'!D630,\"\"))","v":""},{"$f":"IF('TSA Input'!J630=\"\",\"\",IF(OR('TSA Input'!J630=\"Yes\",'TSA Input'!J630=\"Contingent\"),'TSA Input'!G630,\"\"))","v":""},{"$f":"IF('TSA Input'!J630=\"\",\"\",IF(OR('TSA Input'!J630=\"Yes\",'TSA Input'!J630=\"Contingent\"),'TSA Input'!F630,\"\"))","v":""},"","Required","Required"]
["",null,{"$f":"IF('TSA Input'!J631=\"\",\"\",IF(OR('TSA Input'!J631=\"Yes\",'TSA Input'!J631=\"Contingent\"),'TSA Input'!B631,\"Ineligible\"))","v":""},{"$f":"IF('TSA Input'!J631=\"\",\"\",IF(OR('TSA Input'!J631=\"Yes\",'TSA Input'!J631=\"Contingent\"),'TSA Input'!I631,\"\"))","v":""},{"$f":"IF('TSA Input'!J631=\"\",\"\",IF(OR('TSA Input'!J631=\"Yes\",'TSA Input'!J631=\"Contingent\"),'TSA Input'!C631,\"\"))","v":""},{"$f":"IF('TSA Input'!J631=\"\",\"\",IF(OR('TSA Input'!J631=\"Yes\",'TSA Input'!J631=\"Contingent\"),'TSA Input'!D631,\"\"))","v":""},{"$f":"IF('TSA Input'!J631=\"\",\"\",IF(OR('TSA Input'!J631=\"Yes\",'TSA Input'!J631=\"Contingent\"),'TSA Input'!G631,\"\"))","v":""},{"$f":"IF('TSA Input'!J631=\"\",\"\",IF(OR('TSA Input'!J631=\"Yes\",'TSA Input'!J631=\"Contingent\"),'TSA Input'!F631,\"\"))","v":""},"",{"$f":"IF('TSA Input'!J631=\"\",\"\",IF(OR('TSA Input'!J631=\"Yes\",'TSA Input'!J631=\"Contingent\"),'TSA Input'!D631,\"\"))","v":""},{"$f":"IF('TSA Input'!J631=\"\",\"\",IF(OR('TSA Input'!J631=\"Yes\",'TSA Input'!J631=\"Contingent\"),'TSA Input'!G631,\"\"))","v":""},{"$f":"IF('TSA Input'!J631=\"\",\"\",IF(OR('TSA Input'!J631=\"Yes\",'TSA Input'!J631=\"Contingent\"),'TSA Input'!F631,\"\"))","v":""},"","Required","Required"]
["",null,{"$f":"IF('TSA Input'!J632=\"\",\"\",IF(OR('TSA Input'!J632=\"Yes\",'TSA Input'!J632=\"Contingent\"),'TSA Input'!B632,\"Ineligible\"))","v":""},{"$f":"IF('TSA Input'!J632=\"\",\"\",IF(OR('TSA Input'!J632=\"Yes\",'TSA Input'!J632=\"Contingent\"),'TSA Input'!I632,\"\"))","v":""},{"$f":"IF('TSA Input'!J632=\"\",\"\",IF(OR('TSA Input'!J632=\"Yes\",'TSA Input'!J632=\"Contingent\"),'TSA Input'!C632,\"\"))","v":""},{"$f":"IF('TSA Input'!J632=\"\",\"\",IF(OR('TSA Input'!J632=\"Yes\",'TSA Input'!J632=\"Contingent\"),'TSA Input'!D632,\"\"))","v":""},{"$f":"IF('TSA Input'!J632=\"\",\"\",IF(OR('TSA Input'!J632=\"Yes\",'TSA Input'!J632=\"Contingent\"),'TSA Input'!G632,\"\"))","v":""},{"$f":"IF('TSA Input'!J632=\"\",\"\",IF(OR('TSA Input'!J632=\"Yes\",'TSA Input'!J632=\"Contingent\"),'TSA Input'!F632,\"\"))","v":""},"",{"$f":"IF('TSA Input'!J632=\"\",\"\",IF(OR('TSA Input'!J632=\"Yes\",'TSA Input'!J632=\"Contingent\"),'TSA Input'!D632,\"\"))","v":""},{"$f":"IF('TSA Input'!J632=\"\",\"\",IF(OR('TSA Input'!J632=\"Yes\",'TSA Input'!J632=\"Contingent\"),'TSA Input'!G632,\"\"))","v":""},{"$f":"IF('TSA Input'!J632=\"\",\"\",IF(OR('TSA Input'!J632=\"Yes\",'TSA Input'!J632=\"Contingent\"),'TSA Input'!F632,\"\"))","v":""},"","Required","Required"]
["",null,{"$f":"IF('TSA Input'!J633=\"\",\"\",IF(OR('TSA Input'!J633=\"Yes\",'TSA Input'!J633=\"Contingent\"),'TSA Input'!B633,\"Ineligible\"))","v":""},{"$f":"IF('TSA Input'!J633=\"\",\"\",IF(OR('TSA Input'!J633=\"Yes\",'TSA Input'!J633=\"Contingent\"),'TSA Input'!I633,\"\"))","v":""},{"$f":"IF('TSA Input'!J633=\"\",\"\",IF(OR('TSA Input'!J633=\"Yes\",'TSA Input'!J633=\"Contingent\"),'TSA Input'!C633,\"\"))","v":""},{"$f":"IF('TSA Input'!J633=\"\",\"\",IF(OR('TSA Input'!J633=\"Yes\",'TSA Input'!J633=\"Contingent\"),'TSA Input'!D633,\"\"))","v":""},{"$f":"IF('TSA Input'!J633=\"\",\"\",IF(OR('TSA Input'!J633=\"Yes\",'TSA Input'!J633=\"Contingent\"),'TSA Input'!G633,\"\"))","v":""},{"$f":"IF('TSA Input'!J633=\"\",\"\",IF(OR('TSA Input'!J633=\"Yes\",'TSA Input'!J633=\"Contingent\"),'TSA Input'!F633,\"\"))","v":""},"",{"$f":"IF('TSA Input'!J633=\"\",\"\",IF(OR('TSA Input'!J633=\"Yes\",'TSA Input'!J633=\"Contingent\"),'TSA Input'!D633,\"\"))","v":""},{"$f":"IF('TSA Input'!J633=\"\",\"\",IF(OR('TSA Input'!J633=\"Yes\",'TSA Input'!J633=\"Contingent\"),'TSA Input'!G633,\"\"))","v":""},{"$f":"IF('TSA Input'!J633=\"\",\"\",IF(OR('TSA Input'!J633=\"Yes\",'TSA Input'!J633=\"Contingent\"),'TSA Input'!F633,\"\"))","v":""},"","Required","Required"]
["",null,{"$f":"IF('TSA Input'!J634=\"\",\"\",IF(OR('TSA Input'!J634=\"Yes\",'TSA Input'!J634=\"Contingent\"),'TSA Input'!B634,\"Ineligible\"))","v":""},{"$f":"IF('TSA Input'!J634=\"\",\"\",IF(OR('TSA Input'!J634=\"Yes\",'TSA Input'!J634=\"Contingent\"),'TSA Input'!I634,\"\"))","v":""},{"$f":"IF('TSA Input'!J634=\"\",\"\",IF(OR('TSA Input'!J634=\"Yes\",'TSA Input'!J634=\"Contingent\"),'TSA Input'!C634,\"\"))","v":""},{"$f":"IF('TSA Input'!J634=\"\",\"\",IF(OR('TSA Input'!J634=\"Yes\",'TSA Input'!J634=\"Contingent\"),'TSA Input'!D634,\"\"))","v":""},{"$f":"IF('TSA Input'!J634=\"\",\"\",IF(OR('TSA Input'!J634=\"Yes\",'TSA Input'!J634=\"Contingent\"),'TSA Input'!G634,\"\"))","v":""},{"$f":"IF('TSA Input'!J634=\"\",\"\",IF(OR('TSA Input'!J634=\"Yes\",'TSA Input'!J634=\"Contingent\"),'TSA Input'!F634,\"\"))","v":""},"",{"$f":"IF('TSA Input'!J634=\"\",\"\",IF(OR('TSA Input'!J634=\"Yes\",'TSA Input'!J634=\"Contingent\"),'TSA Input'!D634,\"\"))","v":""},{"$f":"IF('TSA Input'!J634=\"\",\"\",IF(OR('TSA Input'!J634=\"Yes\",'TSA Input'!J634=\"Contingent\"),'TSA Input'!G634,\"\"))","v":""},{"$f":"IF('TSA Input'!J634=\"\",\"\",IF(OR('TSA Input'!J634=\"Yes\",'TSA Input'!J634=\"Contingent\"),'TSA Input'!F634,\"\"))","v":""},"","Required","Required"]
["",null,{"$f":"IF('TSA Input'!J635=\"\",\"\",IF(OR('TSA Input'!J635=\"Yes\",'TSA Input'!J635=\"Contingent\"),'TSA Input'!B635,\"Ineligible\"))","v":""},{"$f":"IF('TSA Input'!J635=\"\",\"\",IF(OR('TSA Input'!J635=\"Yes\",'TSA Input'!J635=\"Contingent\"),'TSA Input'!I635,\"\"))","v":""},{"$f":"IF('TSA Input'!J635=\"\",\"\",IF(OR('TSA Input'!J635=\"Yes\",'TSA Input'!J635=\"Contingent\"),'TSA Input'!C635,\"\"))","v":""},{"$f":"IF('TSA Input'!J635=\"\",\"\",IF(OR('TSA Input'!J635=\"Yes\",'TSA Input'!J635=\"Contingent\"),'TSA Input'!D635,\"\"))","v":""},{"$f":"IF('TSA Input'!J635=\"\",\"\",IF(OR('TSA Input'!J635=\"Yes\",'TSA Input'!J635=\"Contingent\"),'TSA Input'!G635,\"\"))","v":""},{"$f":"IF('TSA Input'!J635=\"\",\"\",IF(OR('TSA Input'!J635=\"Yes\",'TSA Input'!J635=\"Contingent\"),'TSA Input'!F635,\"\"))","v":""},"",{"$f":"IF('TSA Input'!J635=\"\",\"\",IF(OR('TSA Input'!J635=\"Yes\",'TSA Input'!J635=\"Contingent\"),'TSA Input'!D635,\"\"))","v":""},{"$f":"IF('TSA Input'!J635=\"\",\"\",IF(OR('TSA Input'!J635=\"Yes\",'TSA Input'!J635=\"Contingent\"),'TSA Input'!G635,\"\"))","v":""},{"$f":"IF('TSA Input'!J635=\"\",\"\",IF(OR('TSA Input'!J635=\"Yes\",'TSA Input'!J635=\"Contingent\"),'TSA Input'!F635,\"\"))","v":""},"","Required","Required"]
["",null,{"$f":"IF('TSA Input'!J636=\"\",\"\",IF(OR('TSA Input'!J636=\"Yes\",'TSA Input'!J636=\"Contingent\"),'TSA Input'!B636,\"Ineligible\"))","v":""},{"$f":"IF('TSA Input'!J636=\"\",\"\",IF(OR('TSA Input'!J636=\"Yes\",'TSA Input'!J636=\"Contingent\"),'TSA Input'!I636,\"\"))","v":""},{"$f":"IF('TSA Input'!J636=\"\",\"\",IF(OR('TSA Input'!J636=\"Yes\",'TSA Input'!J636=\"Contingent\"),'TSA Input'!C636,\"\"))","v":""},{"$f":"IF('TSA Input'!J636=\"\",\"\",IF(OR('TSA Input'!J636=\"Yes\",'TSA Input'!J636=\"Contingent\"),'TSA Input'!D636,\"\"))","v":""},{"$f":"IF('TSA Input'!J636=\"\",\"\",IF(OR('TSA Input'!J636=\"Yes\",'TSA Input'!J636=\"Contingent\"),'TSA Input'!G636,\"\"))","v":""},{"$f":"IF('TSA Input'!J636=\"\",\"\",IF(OR('TSA Input'!J636=\"Yes\",'TSA Input'!J636=\"Contingent\"),'TSA Input'!F636,\"\"))","v":""},"",{"$f":"IF('TSA Input'!J636=\"\",\"\",IF(OR('TSA Input'!J636=\"Yes\",'TSA Input'!J636=\"Contingent\"),'TSA Input'!D636,\"\"))","v":""},{"$f":"IF('TSA Input'!J636=\"\",\"\",IF(OR('TSA Input'!J636=\"Yes\",'TSA Input'!J636=\"Contingent\"),'TSA Input'!G636,\"\"))","v":""},{"$f":"IF('TSA Input'!J636=\"\",\"\",IF(OR('TSA Input'!J636=\"Yes\",'TSA Input'!J636=\"Contingent\"),'TSA Input'!F636,\"\"))","v":""},"","Required","Required"]
["",null,{"$f":"IF('TSA Input'!J637=\"\",\"\",IF(OR('TSA Input'!J637=\"Yes\",'TSA Input'!J637=\"Contingent\"),'TSA Input'!B637,\"Ineligible\"))","v":""},{"$f":"IF('TSA Input'!J637=\"\",\"\",IF(OR('TSA Input'!J637=\"Yes\",'TSA Input'!J637=\"Contingent\"),'TSA Input'!I637,\"\"))","v":""},{"$f":"IF('TSA Input'!J637=\"\",\"\",IF(OR('TSA Input'!J637=\"Yes\",'TSA Input'!J637=\"Contingent\"),'TSA Input'!C637,\"\"))","v":""},{"$f":"IF('TSA Input'!J637=\"\",\"\",IF(OR('TSA Input'!J637=\"Yes\",'TSA Input'!J637=\"Contingent\"),'TSA Input'!D637,\"\"))","v":""},{"$f":"IF('TSA Input'!J637=\"\",\"\",IF(OR('TSA Input'!J637=\"Yes\",'TSA Input'!J637=\"Contingent\"),'TSA Input'!G637,\"\"))","v":""},{"$f":"IF('TSA Input'!J637=\"\",\"\",IF(OR('TSA Input'!J637=\"Yes\",'TSA Input'!J637=\"Contingent\"),'TSA Input'!F637,\"\"))","v":""},"",{"$f":"IF('TSA Input'!J637=\"\",\"\",IF(OR('TSA Input'!J637=\"Yes\",'TSA Input'!J637=\"Contingent\"),'TSA Input'!D637,\"\"))","v":""},{"$f":"IF('TSA Input'!J637=\"\",\"\",IF(OR('TSA Input'!J637=\"Yes\",'TSA Input'!J637=\"Contingent\"),'TSA Input'!G637,\"\"))","v":""},{"$f":"IF('TSA Input'!J637=\"\",\"\",IF(OR('TSA Input'!J637=\"Yes\",'TSA Input'!J637=\"Contingent\"),'TSA Input'!F637,\"\"))","v":""},"","Required","Required"]
["",null,{"$f":"IF('TSA Input'!J638=\"\",\"\",IF(OR('TSA Input'!J638=\"Yes\",'TSA Input'!J638=\"Contingent\"),'TSA Input'!B638,\"Ineligible\"))","v":""},{"$f":"IF('TSA Input'!J638=\"\",\"\",IF(OR('TSA Input'!J638=\"Yes\",'TSA Input'!J638=\"Contingent\"),'TSA Input'!I638,\"\"))","v":""},{"$f":"IF('TSA Input'!J638=\"\",\"\",IF(OR('TSA Input'!J638=\"Yes\",'TSA Input'!J638=\"Contingent\"),'TSA Input'!C638,\"\"))","v":""},{"$f":"IF('TSA Input'!J638=\"\",\"\",IF(OR('TSA Input'!J638=\"Yes\",'TSA Input'!J638=\"Contingent\"),'TSA Input'!D638,\"\"))","v":""},{"$f":"IF('TSA Input'!J638=\"\",\"\",IF(OR('TSA Input'!J638=\"Yes\",'TSA Input'!J638=\"Contingent\"),'TSA Input'!G638,\"\"))","v":""},{"$f":"IF('TSA Input'!J638=\"\",\"\",IF(OR('TSA Input'!J638=\"Yes\",'TSA Input'!J638=\"Contingent\"),'TSA Input'!F638,\"\"))","v":""},"",{"$f":"IF('TSA Input'!J638=\"\",\"\",IF(OR('TSA Input'!J638=\"Yes\",'TSA Input'!J638=\"Contingent\"),'TSA Input'!D638,\"\"))","v":""},{"$f":"IF('TSA Input'!J638=\"\",\"\",IF(OR('TSA Input'!J638=\"Yes\",'TSA Input'!J638=\"Contingent\"),'TSA Input'!G638,\"\"))","v":""},{"$f":"IF('TSA Input'!J638=\"\",\"\",IF(OR('TSA Input'!J638=\"Yes\",'TSA Input'!J638=\"Contingent\"),'TSA Input'!F638,\"\"))","v":""},"","Required","Required"]
["",null,{"$f":"IF('TSA Input'!J639=\"\",\"\",IF(OR('TSA Input'!J639=\"Yes\",'TSA Input'!J639=\"Contingent\"),'TSA Input'!B639,\"Ineligible\"))","v":""},{"$f":"IF('TSA Input'!J639=\"\",\"\",IF(OR('TSA Input'!J639=\"Yes\",'TSA Input'!J639=\"Contingent\"),'TSA Input'!I639,\"\"))","v":""},{"$f":"IF('TSA Input'!J639=\"\",\"\",IF(OR('TSA Input'!J639=\"Yes\",'TSA Input'!J639=\"Contingent\"),'TSA Input'!C639,\"\"))","v":""},{"$f":"IF('TSA Input'!J639=\"\",\"\",IF(OR('TSA Input'!J639=\"Yes\",'TSA Input'!J639=\"Contingent\"),'TSA Input'!D639,\"\"))","v":""},{"$f":"IF('TSA Input'!J639=\"\",\"\",IF(OR('TSA Input'!J639=\"Yes\",'TSA Input'!J639=\"Contingent\"),'TSA Input'!G639,\"\"))","v":""},{"$f":"IF('TSA Input'!J639=\"\",\"\",IF(OR('TSA Input'!J639=\"Yes\",'TSA Input'!J639=\"Contingent\"),'TSA Input'!F639,\"\"))","v":""},"",{"$f":"IF('TSA Input'!J639=\"\",\"\",IF(OR('TSA Input'!J639=\"Yes\",'TSA Input'!J639=\"Contingent\"),'TSA Input'!D639,\"\"))","v":""},{"$f":"IF('TSA Input'!J639=\"\",\"\",IF(OR('TSA Input'!J639=\"Yes\",'TSA Input'!J639=\"Contingent\"),'TSA Input'!G639,\"\"))","v":""},{"$f":"IF('TSA Input'!J639=\"\",\"\",IF(OR('TSA Input'!J639=\"Yes\",'TSA Input'!J639=\"Contingent\"),'TSA Input'!F639,\"\"))","v":""},"","Required","Required"]
["",null,{"$f":"IF('TSA Input'!J640=\"\",\"\",IF(OR('TSA Input'!J640=\"Yes\",'TSA Input'!J640=\"Contingent\"),'TSA Input'!B640,\"Ineligible\"))","v":""},{"$f":"IF('TSA Input'!J640=\"\",\"\",IF(OR('TSA Input'!J640=\"Yes\",'TSA Input'!J640=\"Contingent\"),'TSA Input'!I640,\"\"))","v":""},{"$f":"IF('TSA Input'!J640=\"\",\"\",IF(OR('TSA Input'!J640=\"Yes\",'TSA Input'!J640=\"Contingent\"),'TSA Input'!C640,\"\"))","v":""},{"$f":"IF('TSA Input'!J640=\"\",\"\",IF(OR('TSA Input'!J640=\"Yes\",'TSA Input'!J640=\"Contingent\"),'TSA Input'!D640,\"\"))","v":""},{"$f":"IF('TSA Input'!J640=\"\",\"\",IF(OR('TSA Input'!J640=\"Yes\",'TSA Input'!J640=\"Contingent\"),'TSA Input'!G640,\"\"))","v":""},{"$f":"IF('TSA Input'!J640=\"\",\"\",IF(OR('TSA Input'!J640=\"Yes\",'TSA Input'!J640=\"Contingent\"),'TSA Input'!F640,\"\"))","v":""},"",{"$f":"IF('TSA Input'!J640=\"\",\"\",IF(OR('TSA Input'!J640=\"Yes\",'TSA Input'!J640=\"Contingent\"),'TSA Input'!D640,\"\"))","v":""},{"$f":"IF('TSA Input'!J640=\"\",\"\",IF(OR('TSA Input'!J640=\"Yes\",'TSA Input'!J640=\"Contingent\"),'TSA Input'!G640,\"\"))","v":""},{"$f":"IF('TSA Input'!J640=\"\",\"\",IF(OR('TSA Input'!J640=\"Yes\",'TSA Input'!J640=\"Contingent\"),'TSA Input'!F640,\"\"))","v":""},"","Required","Required"]
["",null,{"$f":"IF('TSA Input'!J641=\"\",\"\",IF(OR('TSA Input'!J641=\"Yes\",'TSA Input'!J641=\"Contingent\"),'TSA Input'!B641,\"Ineligible\"))","v":""},{"$f":"IF('TSA Input'!J641=\"\",\"\",IF(OR('TSA Input'!J641=\"Yes\",'TSA Input'!J641=\"Contingent\"),'TSA Input'!I641,\"\"))","v":""},{"$f":"IF('TSA Input'!J641=\"\",\"\",IF(OR('TSA Input'!J641=\"Yes\",'TSA Input'!J641=\"Contingent\"),'TSA Input'!C641,\"\"))","v":""},{"$f":"IF('TSA Input'!J641=\"\",\"\",IF(OR('TSA Input'!J641=\"Yes\",'TSA Input'!J641=\"Contingent\"),'TSA Input'!D641,\"\"))","v":""},{"$f":"IF('TSA Input'!J641=\"\",\"\",IF(OR('TSA Input'!J641=\"Yes\",'TSA Input'!J641=\"Contingent\"),'TSA Input'!G641,\"\"))","v":""},{"$f":"IF('TSA Input'!J641=\"\",\"\",IF(OR('TSA Input'!J641=\"Yes\",'TSA Input'!J641=\"Contingent\"),'TSA Input'!F641,\"\"))","v":""},"",{"$f":"IF('TSA Input'!J641=\"\",\"\",IF(OR('TSA Input'!J641=\"Yes\",'TSA Input'!J641=\"Contingent\"),'TSA Input'!D641,\"\"))","v":""},{"$f":"IF('TSA Input'!J641=\"\",\"\",IF(OR('TSA Input'!J641=\"Yes\",'TSA Input'!J641=\"Contingent\"),'TSA Input'!G641,\"\"))","v":""},{"$f":"IF('TSA Input'!J641=\"\",\"\",IF(OR('TSA Input'!J641=\"Yes\",'TSA Input'!J641=\"Contingent\"),'TSA Input'!F641,\"\"))","v":""},"","Required","Required"]
["",null,{"$f":"IF('TSA Input'!J642=\"\",\"\",IF(OR('TSA Input'!J642=\"Yes\",'TSA Input'!J642=\"Contingent\"),'TSA Input'!B642,\"Ineligible\"))","v":""},{"$f":"IF('TSA Input'!J642=\"\",\"\",IF(OR('TSA Input'!J642=\"Yes\",'TSA Input'!J642=\"Contingent\"),'TSA Input'!I642,\"\"))","v":""},{"$f":"IF('TSA Input'!J642=\"\",\"\",IF(OR('TSA Input'!J642=\"Yes\",'TSA Input'!J642=\"Contingent\"),'TSA Input'!C642,\"\"))","v":""},{"$f":"IF('TSA Input'!J642=\"\",\"\",IF(OR('TSA Input'!J642=\"Yes\",'TSA Input'!J642=\"Contingent\"),'TSA Input'!D642,\"\"))","v":""},{"$f":"IF('TSA Input'!J642=\"\",\"\",IF(OR('TSA Input'!J642=\"Yes\",'TSA Input'!J642=\"Contingent\"),'TSA Input'!G642,\"\"))","v":""},{"$f":"IF('TSA Input'!J642=\"\",\"\",IF(OR('TSA Input'!J642=\"Yes\",'TSA Input'!J642=\"Contingent\"),'TSA Input'!F642,\"\"))","v":""},"",{"$f":"IF('TSA Input'!J642=\"\",\"\",IF(OR('TSA Input'!J642=\"Yes\",'TSA Input'!J642=\"Contingent\"),'TSA Input'!D642,\"\"))","v":""},{"$f":"IF('TSA Input'!J642=\"\",\"\",IF(OR('TSA Input'!J642=\"Yes\",'TSA Input'!J642=\"Contingent\"),'TSA Input'!G642,\"\"))","v":""},{"$f":"IF('TSA Input'!J642=\"\",\"\",IF(OR('TSA Input'!J642=\"Yes\",'TSA Input'!J642=\"Contingent\"),'TSA Input'!F642,\"\"))","v":""},"","Required","Required"]
["",null,{"$f":"IF('TSA Input'!J643=\"\",\"\",IF(OR('TSA Input'!J643=\"Yes\",'TSA Input'!J643=\"Contingent\"),'TSA Input'!B643,\"Ineligible\"))","v":""},{"$f":"IF('TSA Input'!J643=\"\",\"\",IF(OR('TSA Input'!J643=\"Yes\",'TSA Input'!J643=\"Contingent\"),'TSA Input'!I643,\"\"))","v":""},{"$f":"IF('TSA Input'!J643=\"\",\"\",IF(OR('TSA Input'!J643=\"Yes\",'TSA Input'!J643=\"Contingent\"),'TSA Input'!C643,\"\"))","v":""},{"$f":"IF('TSA Input'!J643=\"\",\"\",IF(OR('TSA Input'!J643=\"Yes\",'TSA Input'!J643=\"Contingent\"),'TSA Input'!D643,\"\"))","v":""},{"$f":"IF('TSA Input'!J643=\"\",\"\",IF(OR('TSA Input'!J643=\"Yes\",'TSA Input'!J643=\"Contingent\"),'TSA Input'!G643,\"\"))","v":""},{"$f":"IF('TSA Input'!J643=\"\",\"\",IF(OR('TSA Input'!J643=\"Yes\",'TSA Input'!J643=\"Contingent\"),'TSA Input'!F643,\"\"))","v":""},"",{"$f":"IF('TSA Input'!J643=\"\",\"\",IF(OR('TSA Input'!J643=\"Yes\",'TSA Input'!J643=\"Contingent\"),'TSA Input'!D643,\"\"))","v":""},{"$f":"IF('TSA Input'!J643=\"\",\"\",IF(OR('TSA Input'!J643=\"Yes\",'TSA Input'!J643=\"Contingent\"),'TSA Input'!G643,\"\"))","v":""},{"$f":"IF('TSA Input'!J643=\"\",\"\",IF(OR('TSA Input'!J643=\"Yes\",'TSA Input'!J643=\"Contingent\"),'TSA Input'!F643,\"\"))","v":""},"","Required","Required"]
["",null,{"$f":"IF('TSA Input'!J644=\"\",\"\",IF(OR('TSA Input'!J644=\"Yes\",'TSA Input'!J644=\"Contingent\"),'TSA Input'!B644,\"Ineligible\"))","v":""},{"$f":"IF('TSA Input'!J644=\"\",\"\",IF(OR('TSA Input'!J644=\"Yes\",'TSA Input'!J644=\"Contingent\"),'TSA Input'!I644,\"\"))","v":""},{"$f":"IF('TSA Input'!J644=\"\",\"\",IF(OR('TSA Input'!J644=\"Yes\",'TSA Input'!J644=\"Contingent\"),'TSA Input'!C644,\"\"))","v":""},{"$f":"IF('TSA Input'!J644=\"\",\"\",IF(OR('TSA Input'!J644=\"Yes\",'TSA Input'!J644=\"Contingent\"),'TSA Input'!D644,\"\"))","v":""},{"$f":"IF('TSA Input'!J644=\"\",\"\",IF(OR('TSA Input'!J644=\"Yes\",'TSA Input'!J644=\"Contingent\"),'TSA Input'!G644,\"\"))","v":""},{"$f":"IF('TSA Input'!J644=\"\",\"\",IF(OR('TSA Input'!J644=\"Yes\",'TSA Input'!J644=\"Contingent\"),'TSA Input'!F644,\"\"))","v":""},{"$f":"IF($C682=\"\",\"\",SUM(F682:H682))","v":""},{"$f":"IF('TSA Input'!J644=\"\",\"\",IF(OR('TSA Input'!J644=\"Yes\",'TSA Input'!J644=\"Contingent\"),'TSA Input'!D644,\"\"))","v":""},{"$f":"IF('TSA Input'!J644=\"\",\"\",IF(OR('TSA Input'!J644=\"Yes\",'TSA Input'!J644=\"Contingent\"),'TSA Input'!G644,\"\"))","v":""},{"$f":"IF('TSA Input'!J644=\"\",\"\",IF(OR('TSA Input'!J644=\"Yes\",'TSA Input'!J644=\"Contingent\"),'TSA Input'!F644,\"\"))","v":""},{"$f":"IF($C682=\"\",\"\",SUM(J682:L682))","v":""},"Required","Required"]
["",null,{"$f":"IF('TSA Input'!J645=\"\",\"\",IF(OR('TSA Input'!J645=\"Yes\",'TSA Input'!J645=\"Contingent\"),'TSA Input'!B645,\"Ineligible\"))","v":""},{"$f":"IF('TSA Input'!J645=\"\",\"\",IF(OR('TSA Input'!J645=\"Yes\",'TSA Input'!J645=\"Contingent\"),'TSA Input'!I645,\"\"))","v":""},{"$f":"IF('TSA Input'!J645=\"\",\"\",IF(OR('TSA Input'!J645=\"Yes\",'TSA Input'!J645=\"Contingent\"),'TSA Input'!C645,\"\"))","v":""},{"$f":"IF('TSA Input'!J645=\"\",\"\",IF(OR('TSA Input'!J645=\"Yes\",'TSA Input'!J645=\"Contingent\"),'TSA Input'!D645,\"\"))","v":""},{"$f":"IF('TSA Input'!J645=\"\",\"\",IF(OR('TSA Input'!J645=\"Yes\",'TSA Input'!J645=\"Contingent\"),'TSA Input'!G645,\"\"))","v":""},{"$f":"IF('TSA Input'!J645=\"\",\"\",IF(OR('TSA Input'!J645=\"Yes\",'TSA Input'!J645=\"Contingent\"),'TSA Input'!F645,\"\"))","v":""},"",{"$f":"IF('TSA Input'!J645=\"\",\"\",IF(OR('TSA Input'!J645=\"Yes\",'TSA Input'!J645=\"Contingent\"),'TSA Input'!D645,\"\"))","v":""},{"$f":"IF('TSA Input'!J645=\"\",\"\",IF(OR('TSA Input'!J645=\"Yes\",'TSA Input'!J645=\"Contingent\"),'TSA Input'!G645,\"\"))","v":""},{"$f":"IF('TSA Input'!J645=\"\",\"\",IF(OR('TSA Input'!J645=\"Yes\",'TSA Input'!J645=\"Contingent\"),'TSA Input'!F645,\"\"))","v":""},"","Required","Required"]
["",null,{"$f":"IF('TSA Input'!J646=\"\",\"\",IF(OR('TSA Input'!J646=\"Yes\",'TSA Input'!J646=\"Contingent\"),'TSA Input'!B646,\"Ineligible\"))","v":""},{"$f":"IF('TSA Input'!J646=\"\",\"\",IF(OR('TSA Input'!J646=\"Yes\",'TSA Input'!J646=\"Contingent\"),'TSA Input'!I646,\"\"))","v":""},{"$f":"IF('TSA Input'!J646=\"\",\"\",IF(OR('TSA Input'!J646=\"Yes\",'TSA Input'!J646=\"Contingent\"),'TSA Input'!C646,\"\"))","v":""},{"$f":"IF('TSA Input'!J646=\"\",\"\",IF(OR('TSA Input'!J646=\"Yes\",'TSA Input'!J646=\"Contingent\"),'TSA Input'!D646,\"\"))","v":""},{"$f":"IF('TSA Input'!J646=\"\",\"\",IF(OR('TSA Input'!J646=\"Yes\",'TSA Input'!J646=\"Contingent\"),'TSA Input'!G646,\"\"))","v":""},{"$f":"IF('TSA Input'!J646=\"\",\"\",IF(OR('TSA Input'!J646=\"Yes\",'TSA Input'!J646=\"Contingent\"),'TSA Input'!F646,\"\"))","v":""},"",{"$f":"IF('TSA Input'!J646=\"\",\"\",IF(OR('TSA Input'!J646=\"Yes\",'TSA Input'!J646=\"Contingent\"),'TSA Input'!D646,\"\"))","v":""},{"$f":"IF('TSA Input'!J646=\"\",\"\",IF(OR('TSA Input'!J646=\"Yes\",'TSA Input'!J646=\"Contingent\"),'TSA Input'!G646,\"\"))","v":""},{"$f":"IF('TSA Input'!J646=\"\",\"\",IF(OR('TSA Input'!J646=\"Yes\",'TSA Input'!J646=\"Contingent\"),'TSA Input'!F646,\"\"))","v":""},"","Required","Required"]
["",null,{"$f":"IF('TSA Input'!J647=\"\",\"\",IF(OR('TSA Input'!J647=\"Yes\",'TSA Input'!J647=\"Contingent\"),'TSA Input'!B647,\"Ineligible\"))","v":""},{"$f":"IF('TSA Input'!J647=\"\",\"\",IF(OR('TSA Input'!J647=\"Yes\",'TSA Input'!J647=\"Contingent\"),'TSA Input'!I647,\"\"))","v":""},{"$f":"IF('TSA Input'!J647=\"\",\"\",IF(OR('TSA Input'!J647=\"Yes\",'TSA Input'!J647=\"Contingent\"),'TSA Input'!C647,\"\"))","v":""},{"$f":"IF('TSA Input'!J647=\"\",\"\",IF(OR('TSA Input'!J647=\"Yes\",'TSA Input'!J647=\"Contingent\"),'TSA Input'!D647,\"\"))","v":""},{"$f":"IF('TSA Input'!J647=\"\",\"\",IF(OR('TSA Input'!J647=\"Yes\",'TSA Input'!J647=\"Contingent\"),'TSA Input'!G647,\"\"))","v":""},{"$f":"IF('TSA Input'!J647=\"\",\"\",IF(OR('TSA Input'!J647=\"Yes\",'TSA Input'!J647=\"Contingent\"),'TSA Input'!F647,\"\"))","v":""},"",{"$f":"IF('TSA Input'!J647=\"\",\"\",IF(OR('TSA Input'!J647=\"Yes\",'TSA Input'!J647=\"Contingent\"),'TSA Input'!D647,\"\"))","v":""},{"$f":"IF('TSA Input'!J647=\"\",\"\",IF(OR('TSA Input'!J647=\"Yes\",'TSA Input'!J647=\"Contingent\"),'TSA Input'!G647,\"\"))","v":""},{"$f":"IF('TSA Input'!J647=\"\",\"\",IF(OR('TSA Input'!J647=\"Yes\",'TSA Input'!J647=\"Contingent\"),'TSA Input'!F647,\"\"))","v":""},"","Required","Required"]
["",null,{"$f":"IF('TSA Input'!J648=\"\",\"\",IF(OR('TSA Input'!J648=\"Yes\",'TSA Input'!J648=\"Contingent\"),'TSA Input'!B648,\"Ineligible\"))","v":""},{"$f":"IF('TSA Input'!J648=\"\",\"\",IF(OR('TSA Input'!J648=\"Yes\",'TSA Input'!J648=\"Contingent\"),'TSA Input'!I648,\"\"))","v":""},{"$f":"IF('TSA Input'!J648=\"\",\"\",IF(OR('TSA Input'!J648=\"Yes\",'TSA Input'!J648=\"Contingent\"),'TSA Input'!C648,\"\"))","v":""},{"$f":"IF('TSA Input'!J648=\"\",\"\",IF(OR('TSA Input'!J648=\"Yes\",'TSA Input'!J648=\"Contingent\"),'TSA Input'!D648,\"\"))","v":""},{"$f":"IF('TSA Input'!J648=\"\",\"\",IF(OR('TSA Input'!J648=\"Yes\",'TSA Input'!J648=\"Contingent\"),'TSA Input'!G648,\"\"))","v":""},{"$f":"IF('TSA Input'!J648=\"\",\"\",IF(OR('TSA Input'!J648=\"Yes\",'TSA Input'!J648=\"Contingent\"),'TSA Input'!F648,\"\"))","v":""},"",{"$f":"IF('TSA Input'!J648=\"\",\"\",IF(OR('TSA Input'!J648=\"Yes\",'TSA Input'!J648=\"Contingent\"),'TSA Input'!D648,\"\"))","v":""},{"$f":"IF('TSA Input'!J648=\"\",\"\",IF(OR('TSA Input'!J648=\"Yes\",'TSA Input'!J648=\"Contingent\"),'TSA Input'!G648,\"\"))","v":""},{"$f":"IF('TSA Input'!J648=\"\",\"\",IF(OR('TSA Input'!J648=\"Yes\",'TSA Input'!J648=\"Contingent\"),'TSA Input'!F648,\"\"))","v":""},"","Required","Required"]
["",null,{"$f":"IF('TSA Input'!J649=\"\",\"\",IF(OR('TSA Input'!J649=\"Yes\",'TSA Input'!J649=\"Contingent\"),'TSA Input'!B649,\"Ineligible\"))","v":""},{"$f":"IF('TSA Input'!J649=\"\",\"\",IF(OR('TSA Input'!J649=\"Yes\",'TSA Input'!J649=\"Contingent\"),'TSA Input'!I649,\"\"))","v":""},{"$f":"IF('TSA Input'!J649=\"\",\"\",IF(OR('TSA Input'!J649=\"Yes\",'TSA Input'!J649=\"Contingent\"),'TSA Input'!C649,\"\"))","v":""},{"$f":"IF('TSA Input'!J649=\"\",\"\",IF(OR('TSA Input'!J649=\"Yes\",'TSA Input'!J649=\"Contingent\"),'TSA Input'!D649,\"\"))","v":""},{"$f":"IF('TSA Input'!J649=\"\",\"\",IF(OR('TSA Input'!J649=\"Yes\",'TSA Input'!J649=\"Contingent\"),'TSA Input'!G649,\"\"))","v":""},{"$f":"IF('TSA Input'!J649=\"\",\"\",IF(OR('TSA Input'!J649=\"Yes\",'TSA Input'!J649=\"Contingent\"),'TSA Input'!F649,\"\"))","v":""},"",{"$f":"IF('TSA Input'!J649=\"\",\"\",IF(OR('TSA Input'!J649=\"Yes\",'TSA Input'!J649=\"Contingent\"),'TSA Input'!D649,\"\"))","v":""},{"$f":"IF('TSA Input'!J649=\"\",\"\",IF(OR('TSA Input'!J649=\"Yes\",'TSA Input'!J649=\"Contingent\"),'TSA Input'!G649,\"\"))","v":""},{"$f":"IF('TSA Input'!J649=\"\",\"\",IF(OR('TSA Input'!J649=\"Yes\",'TSA Input'!J649=\"Contingent\"),'TSA Input'!F649,\"\"))","v":""},"","Required","Required"]
["",null,{"$f":"IF('TSA Input'!J650=\"\",\"\",IF(OR('TSA Input'!J650=\"Yes\",'TSA Input'!J650=\"Contingent\"),'TSA Input'!B650,\"Ineligible\"))","v":""},{"$f":"IF('TSA Input'!J650=\"\",\"\",IF(OR('TSA Input'!J650=\"Yes\",'TSA Input'!J650=\"Contingent\"),'TSA Input'!I650,\"\"))","v":""},{"$f":"IF('TSA Input'!J650=\"\",\"\",IF(OR('TSA Input'!J650=\"Yes\",'TSA Input'!J650=\"Contingent\"),'TSA Input'!C650,\"\"))","v":""},{"$f":"IF('TSA Input'!J650=\"\",\"\",IF(OR('TSA Input'!J650=\"Yes\",'TSA Input'!J650=\"Contingent\"),'TSA Input'!D650,\"\"))","v":""},{"$f":"IF('TSA Input'!J650=\"\",\"\",IF(OR('TSA Input'!J650=\"Yes\",'TSA Input'!J650=\"Contingent\"),'TSA Input'!G650,\"\"))","v":""},{"$f":"IF('TSA Input'!J650=\"\",\"\",IF(OR('TSA Input'!J650=\"Yes\",'TSA Input'!J650=\"Contingent\"),'TSA Input'!F650,\"\"))","v":""},"",{"$f":"IF('TSA Input'!J650=\"\",\"\",IF(OR('TSA Input'!J650=\"Yes\",'TSA Input'!J650=\"Contingent\"),'TSA Input'!D650,\"\"))","v":""},{"$f":"IF('TSA Input'!J650=\"\",\"\",IF(OR('TSA Input'!J650=\"Yes\",'TSA Input'!J650=\"Contingent\"),'TSA Input'!G650,\"\"))","v":""},{"$f":"IF('TSA Input'!J650=\"\",\"\",IF(OR('TSA Input'!J650=\"Yes\",'TSA Input'!J650=\"Contingent\"),'TSA Input'!F650,\"\"))","v":""},"","Required","Required"]
["",null,{"$f":"IF('TSA Input'!J651=\"\",\"\",IF(OR('TSA Input'!J651=\"Yes\",'TSA Input'!J651=\"Contingent\"),'TSA Input'!B651,\"Ineligible\"))","v":""},{"$f":"IF('TSA Input'!J651=\"\",\"\",IF(OR('TSA Input'!J651=\"Yes\",'TSA Input'!J651=\"Contingent\"),'TSA Input'!I651,\"\"))","v":""},{"$f":"IF('TSA Input'!J651=\"\",\"\",IF(OR('TSA Input'!J651=\"Yes\",'TSA Input'!J651=\"Contingent\"),'TSA Input'!C651,\"\"))","v":""},{"$f":"IF('TSA Input'!J651=\"\",\"\",IF(OR('TSA Input'!J651=\"Yes\",'TSA Input'!J651=\"Contingent\"),'TSA Input'!D651,\"\"))","v":""},{"$f":"IF('TSA Input'!J651=\"\",\"\",IF(OR('TSA Input'!J651=\"Yes\",'TSA Input'!J651=\"Contingent\"),'TSA Input'!G651,\"\"))","v":""},{"$f":"IF('TSA Input'!J651=\"\",\"\",IF(OR('TSA Input'!J651=\"Yes\",'TSA Input'!J651=\"Contingent\"),'TSA Input'!F651,\"\"))","v":""},"",{"$f":"IF('TSA Input'!J651=\"\",\"\",IF(OR('TSA Input'!J651=\"Yes\",'TSA Input'!J651=\"Contingent\"),'TSA Input'!D651,\"\"))","v":""},{"$f":"IF('TSA Input'!J651=\"\",\"\",IF(OR('TSA Input'!J651=\"Yes\",'TSA Input'!J651=\"Contingent\"),'TSA Input'!G651,\"\"))","v":""},{"$f":"IF('TSA Input'!J651=\"\",\"\",IF(OR('TSA Input'!J651=\"Yes\",'TSA Input'!J651=\"Contingent\"),'TSA Input'!F651,\"\"))","v":""},"","Required","Required"]
["",null,{"$f":"IF('TSA Input'!J652=\"\",\"\",IF(OR('TSA Input'!J652=\"Yes\",'TSA Input'!J652=\"Contingent\"),'TSA Input'!B652,\"Ineligible\"))","v":""},{"$f":"IF('TSA Input'!J652=\"\",\"\",IF(OR('TSA Input'!J652=\"Yes\",'TSA Input'!J652=\"Contingent\"),'TSA Input'!I652,\"\"))","v":""},{"$f":"IF('TSA Input'!J652=\"\",\"\",IF(OR('TSA Input'!J652=\"Yes\",'TSA Input'!J652=\"Contingent\"),'TSA Input'!C652,\"\"))","v":""},{"$f":"IF('TSA Input'!J652=\"\",\"\",IF(OR('TSA Input'!J652=\"Yes\",'TSA Input'!J652=\"Contingent\"),'TSA Input'!D652,\"\"))","v":""},{"$f":"IF('TSA Input'!J652=\"\",\"\",IF(OR('TSA Input'!J652=\"Yes\",'TSA Input'!J652=\"Contingent\"),'TSA Input'!G652,\"\"))","v":""},{"$f":"IF('TSA Input'!J652=\"\",\"\",IF(OR('TSA Input'!J652=\"Yes\",'TSA Input'!J652=\"Contingent\"),'TSA Input'!F652,\"\"))","v":""},"",{"$f":"IF('TSA Input'!J652=\"\",\"\",IF(OR('TSA Input'!J652=\"Yes\",'TSA Input'!J652=\"Contingent\"),'TSA Input'!D652,\"\"))","v":""},{"$f":"IF('TSA Input'!J652=\"\",\"\",IF(OR('TSA Input'!J652=\"Yes\",'TSA Input'!J652=\"Contingent\"),'TSA Input'!G652,\"\"))","v":""},{"$f":"IF('TSA Input'!J652=\"\",\"\",IF(OR('TSA Input'!J652=\"Yes\",'TSA Input'!J652=\"Contingent\"),'TSA Input'!F652,\"\"))","v":""},"","Required","Required"]
["",null,{"$f":"IF('TSA Input'!J653=\"\",\"\",IF(OR('TSA Input'!J653=\"Yes\",'TSA Input'!J653=\"Contingent\"),'TSA Input'!B653,\"Ineligible\"))","v":""},{"$f":"IF('TSA Input'!J653=\"\",\"\",IF(OR('TSA Input'!J653=\"Yes\",'TSA Input'!J653=\"Contingent\"),'TSA Input'!I653,\"\"))","v":""},{"$f":"IF('TSA Input'!J653=\"\",\"\",IF(OR('TSA Input'!J653=\"Yes\",'TSA Input'!J653=\"Contingent\"),'TSA Input'!C653,\"\"))","v":""},{"$f":"IF('TSA Input'!J653=\"\",\"\",IF(OR('TSA Input'!J653=\"Yes\",'TSA Input'!J653=\"Contingent\"),'TSA Input'!D653,\"\"))","v":""},{"$f":"IF('TSA Input'!J653=\"\",\"\",IF(OR('TSA Input'!J653=\"Yes\",'TSA Input'!J653=\"Contingent\"),'TSA Input'!G653,\"\"))","v":""},{"$f":"IF('TSA Input'!J653=\"\",\"\",IF(OR('TSA Input'!J653=\"Yes\",'TSA Input'!J653=\"Contingent\"),'TSA Input'!F653,\"\"))","v":""},"",{"$f":"IF('TSA Input'!J653=\"\",\"\",IF(OR('TSA Input'!J653=\"Yes\",'TSA Input'!J653=\"Contingent\"),'TSA Input'!D653,\"\"))","v":""},{"$f":"IF('TSA Input'!J653=\"\",\"\",IF(OR('TSA Input'!J653=\"Yes\",'TSA Input'!J653=\"Contingent\"),'TSA Input'!G653,\"\"))","v":""},{"$f":"IF('TSA Input'!J653=\"\",\"\",IF(OR('TSA Input'!J653=\"Yes\",'TSA Input'!J653=\"Contingent\"),'TSA Input'!F653,\"\"))","v":""},"","Required","Required"]
["",null,{"$f":"IF('TSA Input'!J654=\"\",\"\",IF(OR('TSA Input'!J654=\"Yes\",'TSA Input'!J654=\"Contingent\"),'TSA Input'!B654,\"Ineligible\"))","v":""},{"$f":"IF('TSA Input'!J654=\"\",\"\",IF(OR('TSA Input'!J654=\"Yes\",'TSA Input'!J654=\"Contingent\"),'TSA Input'!I654,\"\"))","v":""},{"$f":"IF('TSA Input'!J654=\"\",\"\",IF(OR('TSA Input'!J654=\"Yes\",'TSA Input'!J654=\"Contingent\"),'TSA Input'!C654,\"\"))","v":""},{"$f":"IF('TSA Input'!J654=\"\",\"\",IF(OR('TSA Input'!J654=\"Yes\",'TSA Input'!J654=\"Contingent\"),'TSA Input'!D654,\"\"))","v":""},{"$f":"IF('TSA Input'!J654=\"\",\"\",IF(OR('TSA Input'!J654=\"Yes\",'TSA Input'!J654=\"Contingent\"),'TSA Input'!G654,\"\"))","v":""},{"$f":"IF('TSA Input'!J654=\"\",\"\",IF(OR('TSA Input'!J654=\"Yes\",'TSA Input'!J654=\"Contingent\"),'TSA Input'!F654,\"\"))","v":""},"",{"$f":"IF('TSA Input'!J654=\"\",\"\",IF(OR('TSA Input'!J654=\"Yes\",'TSA Input'!J654=\"Contingent\"),'TSA Input'!D654,\"\"))","v":""},{"$f":"IF('TSA Input'!J654=\"\",\"\",IF(OR('TSA Input'!J654=\"Yes\",'TSA Input'!J654=\"Contingent\"),'TSA Input'!G654,\"\"))","v":""},{"$f":"IF('TSA Input'!J654=\"\",\"\",IF(OR('TSA Input'!J654=\"Yes\",'TSA Input'!J654=\"Contingent\"),'TSA Input'!F654,\"\"))","v":""},"","Required","Required"]
["",null,{"$f":"IF('TSA Input'!J655=\"\",\"\",IF(OR('TSA Input'!J655=\"Yes\",'TSA Input'!J655=\"Contingent\"),'TSA Input'!B655,\"Ineligible\"))","v":""},{"$f":"IF('TSA Input'!J655=\"\",\"\",IF(OR('TSA Input'!J655=\"Yes\",'TSA Input'!J655=\"Contingent\"),'TSA Input'!I655,\"\"))","v":""},{"$f":"IF('TSA Input'!J655=\"\",\"\",IF(OR('TSA Input'!J655=\"Yes\",'TSA Input'!J655=\"Contingent\"),'TSA Input'!C655,\"\"))","v":""},{"$f":"IF('TSA Input'!J655=\"\",\"\",IF(OR('TSA Input'!J655=\"Yes\",'TSA Input'!J655=\"Contingent\"),'TSA Input'!D655,\"\"))","v":""},{"$f":"IF('TSA Input'!J655=\"\",\"\",IF(OR('TSA Input'!J655=\"Yes\",'TSA Input'!J655=\"Contingent\"),'TSA Input'!G655,\"\"))","v":""},{"$f":"IF('TSA Input'!J655=\"\",\"\",IF(OR('TSA Input'!J655=\"Yes\",'TSA Input'!J655=\"Contingent\"),'TSA Input'!F655,\"\"))","v":""},"",{"$f":"IF('TSA Input'!J655=\"\",\"\",IF(OR('TSA Input'!J655=\"Yes\",'TSA Input'!J655=\"Contingent\"),'TSA Input'!D655,\"\"))","v":""},{"$f":"IF('TSA Input'!J655=\"\",\"\",IF(OR('TSA Input'!J655=\"Yes\",'TSA Input'!J655=\"Contingent\"),'TSA Input'!G655,\"\"))","v":""},{"$f":"IF('TSA Input'!J655=\"\",\"\",IF(OR('TSA Input'!J655=\"Yes\",'TSA Input'!J655=\"Contingent\"),'TSA Input'!F655,\"\"))","v":""},"","Required","Required"]
["",null,{"$f":"IF('TSA Input'!J656=\"\",\"\",IF(OR('TSA Input'!J656=\"Yes\",'TSA Input'!J656=\"Contingent\"),'TSA Input'!B656,\"Ineligible\"))","v":""},{"$f":"IF('TSA Input'!J656=\"\",\"\",IF(OR('TSA Input'!J656=\"Yes\",'TSA Input'!J656=\"Contingent\"),'TSA Input'!I656,\"\"))","v":""},{"$f":"IF('TSA Input'!J656=\"\",\"\",IF(OR('TSA Input'!J656=\"Yes\",'TSA Input'!J656=\"Contingent\"),'TSA Input'!C656,\"\"))","v":""},{"$f":"IF('TSA Input'!J656=\"\",\"\",IF(OR('TSA Input'!J656=\"Yes\",'TSA Input'!J656=\"Contingent\"),'TSA Input'!D656,\"\"))","v":""},{"$f":"IF('TSA Input'!J656=\"\",\"\",IF(OR('TSA Input'!J656=\"Yes\",'TSA Input'!J656=\"Contingent\"),'TSA Input'!G656,\"\"))","v":""},{"$f":"IF('TSA Input'!J656=\"\",\"\",IF(OR('TSA Input'!J656=\"Yes\",'TSA Input'!J656=\"Contingent\"),'TSA Input'!F656,\"\"))","v":""},"",{"$f":"IF('TSA Input'!J656=\"\",\"\",IF(OR('TSA Input'!J656=\"Yes\",'TSA Input'!J656=\"Contingent\"),'TSA Input'!D656,\"\"))","v":""},{"$f":"IF('TSA Input'!J656=\"\",\"\",IF(OR('TSA Input'!J656=\"Yes\",'TSA Input'!J656=\"Contingent\"),'TSA Input'!G656,\"\"))","v":""},{"$f":"IF('TSA Input'!J656=\"\",\"\",IF(OR('TSA Input'!J656=\"Yes\",'TSA Input'!J656=\"Contingent\"),'TSA Input'!F656,\"\"))","v":""},"","Required","Required"]
["",null,{"$f":"IF('TSA Input'!J657=\"\",\"\",IF(OR('TSA Input'!J657=\"Yes\",'TSA Input'!J657=\"Contingent\"),'TSA Input'!B657,\"Ineligible\"))","v":""},{"$f":"IF('TSA Input'!J657=\"\",\"\",IF(OR('TSA Input'!J657=\"Yes\",'TSA Input'!J657=\"Contingent\"),'TSA Input'!I657,\"\"))","v":""},{"$f":"IF('TSA Input'!J657=\"\",\"\",IF(OR('TSA Input'!J657=\"Yes\",'TSA Input'!J657=\"Contingent\"),'TSA Input'!C657,\"\"))","v":""},{"$f":"IF('TSA Input'!J657=\"\",\"\",IF(OR('TSA Input'!J657=\"Yes\",'TSA Input'!J657=\"Contingent\"),'TSA Input'!D657,\"\"))","v":""},{"$f":"IF('TSA Input'!J657=\"\",\"\",IF(OR('TSA Input'!J657=\"Yes\",'TSA Input'!J657=\"Contingent\"),'TSA Input'!G657,\"\"))","v":""},{"$f":"IF('TSA Input'!J657=\"\",\"\",IF(OR('TSA Input'!J657=\"Yes\",'TSA Input'!J657=\"Contingent\"),'TSA Input'!F657,\"\"))","v":""},"",{"$f":"IF('TSA Input'!J657=\"\",\"\",IF(OR('TSA Input'!J657=\"Yes\",'TSA Input'!J657=\"Contingent\"),'TSA Input'!D657,\"\"))","v":""},{"$f":"IF('TSA Input'!J657=\"\",\"\",IF(OR('TSA Input'!J657=\"Yes\",'TSA Input'!J657=\"Contingent\"),'TSA Input'!G657,\"\"))","v":""},{"$f":"IF('TSA Input'!J657=\"\",\"\",IF(OR('TSA Input'!J657=\"Yes\",'TSA Input'!J657=\"Contingent\"),'TSA Input'!F657,\"\"))","v":""},"","Required","Required"]
["",null,{"$f":"IF('TSA Input'!J658=\"\",\"\",IF(OR('TSA Input'!J658=\"Yes\",'TSA Input'!J658=\"Contingent\"),'TSA Input'!B658,\"Ineligible\"))","v":""},{"$f":"IF('TSA Input'!J658=\"\",\"\",IF(OR('TSA Input'!J658=\"Yes\",'TSA Input'!J658=\"Contingent\"),'TSA Input'!I658,\"\"))","v":""},{"$f":"IF('TSA Input'!J658=\"\",\"\",IF(OR('TSA Input'!J658=\"Yes\",'TSA Input'!J658=\"Contingent\"),'TSA Input'!C658,\"\"))","v":""},{"$f":"IF('TSA Input'!J658=\"\",\"\",IF(OR('TSA Input'!J658=\"Yes\",'TSA Input'!J658=\"Contingent\"),'TSA Input'!D658,\"\"))","v":""},{"$f":"IF('TSA Input'!J658=\"\",\"\",IF(OR('TSA Input'!J658=\"Yes\",'TSA Input'!J658=\"Contingent\"),'TSA Input'!G658,\"\"))","v":""},{"$f":"IF('TSA Input'!J658=\"\",\"\",IF(OR('TSA Input'!J658=\"Yes\",'TSA Input'!J658=\"Contingent\"),'TSA Input'!F658,\"\"))","v":""},"",{"$f":"IF('TSA Input'!J658=\"\",\"\",IF(OR('TSA Input'!J658=\"Yes\",'TSA Input'!J658=\"Contingent\"),'TSA Input'!D658,\"\"))","v":""},{"$f":"IF('TSA Input'!J658=\"\",\"\",IF(OR('TSA Input'!J658=\"Yes\",'TSA Input'!J658=\"Contingent\"),'TSA Input'!G658,\"\"))","v":""},{"$f":"IF('TSA Input'!J658=\"\",\"\",IF(OR('TSA Input'!J658=\"Yes\",'TSA Input'!J658=\"Contingent\"),'TSA Input'!F658,\"\"))","v":""},"","Required","Required"]
["",null,{"$f":"IF('TSA Input'!J659=\"\",\"\",IF(OR('TSA Input'!J659=\"Yes\",'TSA Input'!J659=\"Contingent\"),'TSA Input'!B659,\"Ineligible\"))","v":""},{"$f":"IF('TSA Input'!J659=\"\",\"\",IF(OR('TSA Input'!J659=\"Yes\",'TSA Input'!J659=\"Contingent\"),'TSA Input'!I659,\"\"))","v":""},{"$f":"IF('TSA Input'!J659=\"\",\"\",IF(OR('TSA Input'!J659=\"Yes\",'TSA Input'!J659=\"Contingent\"),'TSA Input'!C659,\"\"))","v":""},{"$f":"IF('TSA Input'!J659=\"\",\"\",IF(OR('TSA Input'!J659=\"Yes\",'TSA Input'!J659=\"Contingent\"),'TSA Input'!D659,\"\"))","v":""},{"$f":"IF('TSA Input'!J659=\"\",\"\",IF(OR('TSA Input'!J659=\"Yes\",'TSA Input'!J659=\"Contingent\"),'TSA Input'!G659,\"\"))","v":""},{"$f":"IF('TSA Input'!J659=\"\",\"\",IF(OR('TSA Input'!J659=\"Yes\",'TSA Input'!J659=\"Contingent\"),'TSA Input'!F659,\"\"))","v":""},"",{"$f":"IF('TSA Input'!J659=\"\",\"\",IF(OR('TSA Input'!J659=\"Yes\",'TSA Input'!J659=\"Contingent\"),'TSA Input'!D659,\"\"))","v":""},{"$f":"IF('TSA Input'!J659=\"\",\"\",IF(OR('TSA Input'!J659=\"Yes\",'TSA Input'!J659=\"Contingent\"),'TSA Input'!G659,\"\"))","v":""},{"$f":"IF('TSA Input'!J659=\"\",\"\",IF(OR('TSA Input'!J659=\"Yes\",'TSA Input'!J659=\"Contingent\"),'TSA Input'!F659,\"\"))","v":""},"","Required","Required"]
["",null,{"$f":"IF('TSA Input'!J660=\"\",\"\",IF(OR('TSA Input'!J660=\"Yes\",'TSA Input'!J660=\"Contingent\"),'TSA Input'!B660,\"Ineligible\"))","v":""},{"$f":"IF('TSA Input'!J660=\"\",\"\",IF(OR('TSA Input'!J660=\"Yes\",'TSA Input'!J660=\"Contingent\"),'TSA Input'!I660,\"\"))","v":""},{"$f":"IF('TSA Input'!J660=\"\",\"\",IF(OR('TSA Input'!J660=\"Yes\",'TSA Input'!J660=\"Contingent\"),'TSA Input'!C660,\"\"))","v":""},{"$f":"IF('TSA Input'!J660=\"\",\"\",IF(OR('TSA Input'!J660=\"Yes\",'TSA Input'!J660=\"Contingent\"),'TSA Input'!D660,\"\"))","v":""},{"$f":"IF('TSA Input'!J660=\"\",\"\",IF(OR('TSA Input'!J660=\"Yes\",'TSA Input'!J660=\"Contingent\"),'TSA Input'!G660,\"\"))","v":""},{"$f":"IF('TSA Input'!J660=\"\",\"\",IF(OR('TSA Input'!J660=\"Yes\",'TSA Input'!J660=\"Contingent\"),'TSA Input'!F660,\"\"))","v":""},"",{"$f":"IF('TSA Input'!J660=\"\",\"\",IF(OR('TSA Input'!J660=\"Yes\",'TSA Input'!J660=\"Contingent\"),'TSA Input'!D660,\"\"))","v":""},{"$f":"IF('TSA Input'!J660=\"\",\"\",IF(OR('TSA Input'!J660=\"Yes\",'TSA Input'!J660=\"Contingent\"),'TSA Input'!G660,\"\"))","v":""},{"$f":"IF('TSA Input'!J660=\"\",\"\",IF(OR('TSA Input'!J660=\"Yes\",'TSA Input'!J660=\"Contingent\"),'TSA Input'!F660,\"\"))","v":""},"","Required","Required"]
["",null,{"$f":"IF('TSA Input'!J661=\"\",\"\",IF(OR('TSA Input'!J661=\"Yes\",'TSA Input'!J661=\"Contingent\"),'TSA Input'!B661,\"Ineligible\"))","v":""},{"$f":"IF('TSA Input'!J661=\"\",\"\",IF(OR('TSA Input'!J661=\"Yes\",'TSA Input'!J661=\"Contingent\"),'TSA Input'!I661,\"\"))","v":""},{"$f":"IF('TSA Input'!J661=\"\",\"\",IF(OR('TSA Input'!J661=\"Yes\",'TSA Input'!J661=\"Contingent\"),'TSA Input'!C661,\"\"))","v":""},{"$f":"IF('TSA Input'!J661=\"\",\"\",IF(OR('TSA Input'!J661=\"Yes\",'TSA Input'!J661=\"Contingent\"),'TSA Input'!D661,\"\"))","v":""},{"$f":"IF('TSA Input'!J661=\"\",\"\",IF(OR('TSA Input'!J661=\"Yes\",'TSA Input'!J661=\"Contingent\"),'TSA Input'!G661,\"\"))","v":""},{"$f":"IF('TSA Input'!J661=\"\",\"\",IF(OR('TSA Input'!J661=\"Yes\",'TSA Input'!J661=\"Contingent\"),'TSA Input'!F661,\"\"))","v":""},"",{"$f":"IF('TSA Input'!J661=\"\",\"\",IF(OR('TSA Input'!J661=\"Yes\",'TSA Input'!J661=\"Contingent\"),'TSA Input'!D661,\"\"))","v":""},{"$f":"IF('TSA Input'!J661=\"\",\"\",IF(OR('TSA Input'!J661=\"Yes\",'TSA Input'!J661=\"Contingent\"),'TSA Input'!G661,\"\"))","v":""},{"$f":"IF('TSA Input'!J661=\"\",\"\",IF(OR('TSA Input'!J661=\"Yes\",'TSA Input'!J661=\"Contingent\"),'TSA Input'!F661,\"\"))","v":""},"","Required","Required"]
["",null,{"$f":"IF('TSA Input'!J662=\"\",\"\",IF(OR('TSA Input'!J662=\"Yes\",'TSA Input'!J662=\"Contingent\"),'TSA Input'!B662,\"Ineligible\"))","v":""},{"$f":"IF('TSA Input'!J662=\"\",\"\",IF(OR('TSA Input'!J662=\"Yes\",'TSA Input'!J662=\"Contingent\"),'TSA Input'!I662,\"\"))","v":""},{"$f":"IF('TSA Input'!J662=\"\",\"\",IF(OR('TSA Input'!J662=\"Yes\",'TSA Input'!J662=\"Contingent\"),'TSA Input'!C662,\"\"))","v":""},{"$f":"IF('TSA Input'!J662=\"\",\"\",IF(OR('TSA Input'!J662=\"Yes\",'TSA Input'!J662=\"Contingent\"),'TSA Input'!D662,\"\"))","v":""},{"$f":"IF('TSA Input'!J662=\"\",\"\",IF(OR('TSA Input'!J662=\"Yes\",'TSA Input'!J662=\"Contingent\"),'TSA Input'!G662,\"\"))","v":""},{"$f":"IF('TSA Input'!J662=\"\",\"\",IF(OR('TSA Input'!J662=\"Yes\",'TSA Input'!J662=\"Contingent\"),'TSA Input'!F662,\"\"))","v":""},"",{"$f":"IF('TSA Input'!J662=\"\",\"\",IF(OR('TSA Input'!J662=\"Yes\",'TSA Input'!J662=\"Contingent\"),'TSA Input'!D662,\"\"))","v":""},{"$f":"IF('TSA Input'!J662=\"\",\"\",IF(OR('TSA Input'!J662=\"Yes\",'TSA Input'!J662=\"Contingent\"),'TSA Input'!G662,\"\"))","v":""},{"$f":"IF('TSA Input'!J662=\"\",\"\",IF(OR('TSA Input'!J662=\"Yes\",'TSA Input'!J662=\"Contingent\"),'TSA Input'!F662,\"\"))","v":""},"","Required","Required"]
["",null,{"$f":"IF('TSA Input'!J663=\"\",\"\",IF(OR('TSA Input'!J663=\"Yes\",'TSA Input'!J663=\"Contingent\"),'TSA Input'!B663,\"Ineligible\"))","v":""},{"$f":"IF('TSA Input'!J663=\"\",\"\",IF(OR('TSA Input'!J663=\"Yes\",'TSA Input'!J663=\"Contingent\"),'TSA Input'!I663,\"\"))","v":""},{"$f":"IF('TSA Input'!J663=\"\",\"\",IF(OR('TSA Input'!J663=\"Yes\",'TSA Input'!J663=\"Contingent\"),'TSA Input'!C663,\"\"))","v":""},{"$f":"IF('TSA Input'!J663=\"\",\"\",IF(OR('TSA Input'!J663=\"Yes\",'TSA Input'!J663=\"Contingent\"),'TSA Input'!D663,\"\"))","v":""},{"$f":"IF('TSA Input'!J663=\"\",\"\",IF(OR('TSA Input'!J663=\"Yes\",'TSA Input'!J663=\"Contingent\"),'TSA Input'!G663,\"\"))","v":""},{"$f":"IF('TSA Input'!J663=\"\",\"\",IF(OR('TSA Input'!J663=\"Yes\",'TSA Input'!J663=\"Contingent\"),'TSA Input'!F663,\"\"))","v":""},"",{"$f":"IF('TSA Input'!J663=\"\",\"\",IF(OR('TSA Input'!J663=\"Yes\",'TSA Input'!J663=\"Contingent\"),'TSA Input'!D663,\"\"))","v":""},{"$f":"IF('TSA Input'!J663=\"\",\"\",IF(OR('TSA Input'!J663=\"Yes\",'TSA Input'!J663=\"Contingent\"),'TSA Input'!G663,\"\"))","v":""},{"$f":"IF('TSA Input'!J663=\"\",\"\",IF(OR('TSA Input'!J663=\"Yes\",'TSA Input'!J663=\"Contingent\"),'TSA Input'!F663,\"\"))","v":""},"","Required","Required"]
["",null,{"$f":"IF('TSA Input'!J664=\"\",\"\",IF(OR('TSA Input'!J664=\"Yes\",'TSA Input'!J664=\"Contingent\"),'TSA Input'!B664,\"Ineligible\"))","v":""},{"$f":"IF('TSA Input'!J664=\"\",\"\",IF(OR('TSA Input'!J664=\"Yes\",'TSA Input'!J664=\"Contingent\"),'TSA Input'!I664,\"\"))","v":""},{"$f":"IF('TSA Input'!J664=\"\",\"\",IF(OR('TSA Input'!J664=\"Yes\",'TSA Input'!J664=\"Contingent\"),'TSA Input'!C664,\"\"))","v":""},{"$f":"IF('TSA Input'!J664=\"\",\"\",IF(OR('TSA Input'!J664=\"Yes\",'TSA Input'!J664=\"Contingent\"),'TSA Input'!D664,\"\"))","v":""},{"$f":"IF('TSA Input'!J664=\"\",\"\",IF(OR('TSA Input'!J664=\"Yes\",'TSA Input'!J664=\"Contingent\"),'TSA Input'!G664,\"\"))","v":""},{"$f":"IF('TSA Input'!J664=\"\",\"\",IF(OR('TSA Input'!J664=\"Yes\",'TSA Input'!J664=\"Contingent\"),'TSA Input'!F664,\"\"))","v":""},"",{"$f":"IF('TSA Input'!J664=\"\",\"\",IF(OR('TSA Input'!J664=\"Yes\",'TSA Input'!J664=\"Contingent\"),'TSA Input'!D664,\"\"))","v":""},{"$f":"IF('TSA Input'!J664=\"\",\"\",IF(OR('TSA Input'!J664=\"Yes\",'TSA Input'!J664=\"Contingent\"),'TSA Input'!G664,\"\"))","v":""},{"$f":"IF('TSA Input'!J664=\"\",\"\",IF(OR('TSA Input'!J664=\"Yes\",'TSA Input'!J664=\"Contingent\"),'TSA Input'!F664,\"\"))","v":""},"","Required","Required"]
["",null,{"$f":"IF('TSA Input'!J665=\"\",\"\",IF(OR('TSA Input'!J665=\"Yes\",'TSA Input'!J665=\"Contingent\"),'TSA Input'!B665,\"Ineligible\"))","v":""},{"$f":"IF('TSA Input'!J665=\"\",\"\",IF(OR('TSA Input'!J665=\"Yes\",'TSA Input'!J665=\"Contingent\"),'TSA Input'!I665,\"\"))","v":""},{"$f":"IF('TSA Input'!J665=\"\",\"\",IF(OR('TSA Input'!J665=\"Yes\",'TSA Input'!J665=\"Contingent\"),'TSA Input'!C665,\"\"))","v":""},{"$f":"IF('TSA Input'!J665=\"\",\"\",IF(OR('TSA Input'!J665=\"Yes\",'TSA Input'!J665=\"Contingent\"),'TSA Input'!D665,\"\"))","v":""},{"$f":"IF('TSA Input'!J665=\"\",\"\",IF(OR('TSA Input'!J665=\"Yes\",'TSA Input'!J665=\"Contingent\"),'TSA Input'!G665,\"\"))","v":""},{"$f":"IF('TSA Input'!J665=\"\",\"\",IF(OR('TSA Input'!J665=\"Yes\",'TSA Input'!J665=\"Contingent\"),'TSA Input'!F665,\"\"))","v":""},"",{"$f":"IF('TSA Input'!J665=\"\",\"\",IF(OR('TSA Input'!J665=\"Yes\",'TSA Input'!J665=\"Contingent\"),'TSA Input'!D665,\"\"))","v":""},{"$f":"IF('TSA Input'!J665=\"\",\"\",IF(OR('TSA Input'!J665=\"Yes\",'TSA Input'!J665=\"Contingent\"),'TSA Input'!G665,\"\"))","v":""},{"$f":"IF('TSA Input'!J665=\"\",\"\",IF(OR('TSA Input'!J665=\"Yes\",'TSA Input'!J665=\"Contingent\"),'TSA Input'!F665,\"\"))","v":""},"","Required","Required"]
["",null,{"$f":"IF('TSA Input'!J666=\"\",\"\",IF(OR('TSA Input'!J666=\"Yes\",'TSA Input'!J666=\"Contingent\"),'TSA Input'!B666,\"Ineligible\"))","v":""},{"$f":"IF('TSA Input'!J666=\"\",\"\",IF(OR('TSA Input'!J666=\"Yes\",'TSA Input'!J666=\"Contingent\"),'TSA Input'!I666,\"\"))","v":""},{"$f":"IF('TSA Input'!J666=\"\",\"\",IF(OR('TSA Input'!J666=\"Yes\",'TSA Input'!J666=\"Contingent\"),'TSA Input'!C666,\"\"))","v":""},{"$f":"IF('TSA Input'!J666=\"\",\"\",IF(OR('TSA Input'!J666=\"Yes\",'TSA Input'!J666=\"Contingent\"),'TSA Input'!D666,\"\"))","v":""},{"$f":"IF('TSA Input'!J666=\"\",\"\",IF(OR('TSA Input'!J666=\"Yes\",'TSA Input'!J666=\"Contingent\"),'TSA Input'!G666,\"\"))","v":""},{"$f":"IF('TSA Input'!J666=\"\",\"\",IF(OR('TSA Input'!J666=\"Yes\",'TSA Input'!J666=\"Contingent\"),'TSA Input'!F666,\"\"))","v":""},"",{"$f":"IF('TSA Input'!J666=\"\",\"\",IF(OR('TSA Input'!J666=\"Yes\",'TSA Input'!J666=\"Contingent\"),'TSA Input'!D666,\"\"))","v":""},{"$f":"IF('TSA Input'!J666=\"\",\"\",IF(OR('TSA Input'!J666=\"Yes\",'TSA Input'!J666=\"Contingent\"),'TSA Input'!G666,\"\"))","v":""},{"$f":"IF('TSA Input'!J666=\"\",\"\",IF(OR('TSA Input'!J666=\"Yes\",'TSA Input'!J666=\"Contingent\"),'TSA Input'!F666,\"\"))","v":""},"","Required","Required"]
["",null,{"$f":"IF('TSA Input'!J667=\"\",\"\",IF(OR('TSA Input'!J667=\"Yes\",'TSA Input'!J667=\"Contingent\"),'TSA Input'!B667,\"Ineligible\"))","v":""},{"$f":"IF('TSA Input'!J667=\"\",\"\",IF(OR('TSA Input'!J667=\"Yes\",'TSA Input'!J667=\"Contingent\"),'TSA Input'!I667,\"\"))","v":""},{"$f":"IF('TSA Input'!J667=\"\",\"\",IF(OR('TSA Input'!J667=\"Yes\",'TSA Input'!J667=\"Contingent\"),'TSA Input'!C667,\"\"))","v":""},{"$f":"IF('TSA Input'!J667=\"\",\"\",IF(OR('TSA Input'!J667=\"Yes\",'TSA Input'!J667=\"Contingent\"),'TSA Input'!D667,\"\"))","v":""},{"$f":"IF('TSA Input'!J667=\"\",\"\",IF(OR('TSA Input'!J667=\"Yes\",'TSA Input'!J667=\"Contingent\"),'TSA Input'!G667,\"\"))","v":""},{"$f":"IF('TSA Input'!J667=\"\",\"\",IF(OR('TSA Input'!J667=\"Yes\",'TSA Input'!J667=\"Contingent\"),'TSA Input'!F667,\"\"))","v":""},"",{"$f":"IF('TSA Input'!J667=\"\",\"\",IF(OR('TSA Input'!J667=\"Yes\",'TSA Input'!J667=\"Contingent\"),'TSA Input'!D667,\"\"))","v":""},{"$f":"IF('TSA Input'!J667=\"\",\"\",IF(OR('TSA Input'!J667=\"Yes\",'TSA Input'!J667=\"Contingent\"),'TSA Input'!G667,\"\"))","v":""},{"$f":"IF('TSA Input'!J667=\"\",\"\",IF(OR('TSA Input'!J667=\"Yes\",'TSA Input'!J667=\"Contingent\"),'TSA Input'!F667,\"\"))","v":""},"","Required","Required"]
["",null,{"$f":"IF('TSA Input'!J668=\"\",\"\",IF(OR('TSA Input'!J668=\"Yes\",'TSA Input'!J668=\"Contingent\"),'TSA Input'!B668,\"Ineligible\"))","v":""},{"$f":"IF('TSA Input'!J668=\"\",\"\",IF(OR('TSA Input'!J668=\"Yes\",'TSA Input'!J668=\"Contingent\"),'TSA Input'!I668,\"\"))","v":""},{"$f":"IF('TSA Input'!J668=\"\",\"\",IF(OR('TSA Input'!J668=\"Yes\",'TSA Input'!J668=\"Contingent\"),'TSA Input'!C668,\"\"))","v":""},{"$f":"IF('TSA Input'!J668=\"\",\"\",IF(OR('TSA Input'!J668=\"Yes\",'TSA Input'!J668=\"Contingent\"),'TSA Input'!D668,\"\"))","v":""},{"$f":"IF('TSA Input'!J668=\"\",\"\",IF(OR('TSA Input'!J668=\"Yes\",'TSA Input'!J668=\"Contingent\"),'TSA Input'!G668,\"\"))","v":""},{"$f":"IF('TSA Input'!J668=\"\",\"\",IF(OR('TSA Input'!J668=\"Yes\",'TSA Input'!J668=\"Contingent\"),'TSA Input'!F668,\"\"))","v":""},"",{"$f":"IF('TSA Input'!J668=\"\",\"\",IF(OR('TSA Input'!J668=\"Yes\",'TSA Input'!J668=\"Contingent\"),'TSA Input'!D668,\"\"))","v":""},{"$f":"IF('TSA Input'!J668=\"\",\"\",IF(OR('TSA Input'!J668=\"Yes\",'TSA Input'!J668=\"Contingent\"),'TSA Input'!G668,\"\"))","v":""},{"$f":"IF('TSA Input'!J668=\"\",\"\",IF(OR('TSA Input'!J668=\"Yes\",'TSA Input'!J668=\"Contingent\"),'TSA Input'!F668,\"\"))","v":""},"","Required","Required"]
["",null,{"$f":"IF('TSA Input'!J669=\"\",\"\",IF(OR('TSA Input'!J669=\"Yes\",'TSA Input'!J669=\"Contingent\"),'TSA Input'!B669,\"Ineligible\"))","v":""},{"$f":"IF('TSA Input'!J669=\"\",\"\",IF(OR('TSA Input'!J669=\"Yes\",'TSA Input'!J669=\"Contingent\"),'TSA Input'!I669,\"\"))","v":""},{"$f":"IF('TSA Input'!J669=\"\",\"\",IF(OR('TSA Input'!J669=\"Yes\",'TSA Input'!J669=\"Contingent\"),'TSA Input'!C669,\"\"))","v":""},{"$f":"IF('TSA Input'!J669=\"\",\"\",IF(OR('TSA Input'!J669=\"Yes\",'TSA Input'!J669=\"Contingent\"),'TSA Input'!D669,\"\"))","v":""},{"$f":"IF('TSA Input'!J669=\"\",\"\",IF(OR('TSA Input'!J669=\"Yes\",'TSA Input'!J669=\"Contingent\"),'TSA Input'!G669,\"\"))","v":""},{"$f":"IF('TSA Input'!J669=\"\",\"\",IF(OR('TSA Input'!J669=\"Yes\",'TSA Input'!J669=\"Contingent\"),'TSA Input'!F669,\"\"))","v":""},"",{"$f":"IF('TSA Input'!J669=\"\",\"\",IF(OR('TSA Input'!J669=\"Yes\",'TSA Input'!J669=\"Contingent\"),'TSA Input'!D669,\"\"))","v":""},{"$f":"IF('TSA Input'!J669=\"\",\"\",IF(OR('TSA Input'!J669=\"Yes\",'TSA Input'!J669=\"Contingent\"),'TSA Input'!G669,\"\"))","v":""},{"$f":"IF('TSA Input'!J669=\"\",\"\",IF(OR('TSA Input'!J669=\"Yes\",'TSA Input'!J669=\"Contingent\"),'TSA Input'!F669,\"\"))","v":""},"","Required","Required"]
["",null,{"$f":"IF('TSA Input'!J670=\"\",\"\",IF(OR('TSA Input'!J670=\"Yes\",'TSA Input'!J670=\"Contingent\"),'TSA Input'!B670,\"Ineligible\"))","v":""},{"$f":"IF('TSA Input'!J670=\"\",\"\",IF(OR('TSA Input'!J670=\"Yes\",'TSA Input'!J670=\"Contingent\"),'TSA Input'!I670,\"\"))","v":""},{"$f":"IF('TSA Input'!J670=\"\",\"\",IF(OR('TSA Input'!J670=\"Yes\",'TSA Input'!J670=\"Contingent\"),'TSA Input'!C670,\"\"))","v":""},{"$f":"IF('TSA Input'!J670=\"\",\"\",IF(OR('TSA Input'!J670=\"Yes\",'TSA Input'!J670=\"Contingent\"),'TSA Input'!D670,\"\"))","v":""},{"$f":"IF('TSA Input'!J670=\"\",\"\",IF(OR('TSA Input'!J670=\"Yes\",'TSA Input'!J670=\"Contingent\"),'TSA Input'!G670,\"\"))","v":""},{"$f":"IF('TSA Input'!J670=\"\",\"\",IF(OR('TSA Input'!J670=\"Yes\",'TSA Input'!J670=\"Contingent\"),'TSA Input'!F670,\"\"))","v":""},"",{"$f":"IF('TSA Input'!J670=\"\",\"\",IF(OR('TSA Input'!J670=\"Yes\",'TSA Input'!J670=\"Contingent\"),'TSA Input'!D670,\"\"))","v":""},{"$f":"IF('TSA Input'!J670=\"\",\"\",IF(OR('TSA Input'!J670=\"Yes\",'TSA Input'!J670=\"Contingent\"),'TSA Input'!G670,\"\"))","v":""},{"$f":"IF('TSA Input'!J670=\"\",\"\",IF(OR('TSA Input'!J670=\"Yes\",'TSA Input'!J670=\"Contingent\"),'TSA Input'!F670,\"\"))","v":""},"","Required","Required"]
["",null,{"$f":"IF('TSA Input'!J671=\"\",\"\",IF(OR('TSA Input'!J671=\"Yes\",'TSA Input'!J671=\"Contingent\"),'TSA Input'!B671,\"Ineligible\"))","v":""},{"$f":"IF('TSA Input'!J671=\"\",\"\",IF(OR('TSA Input'!J671=\"Yes\",'TSA Input'!J671=\"Contingent\"),'TSA Input'!I671,\"\"))","v":""},{"$f":"IF('TSA Input'!J671=\"\",\"\",IF(OR('TSA Input'!J671=\"Yes\",'TSA Input'!J671=\"Contingent\"),'TSA Input'!C671,\"\"))","v":""},{"$f":"IF('TSA Input'!J671=\"\",\"\",IF(OR('TSA Input'!J671=\"Yes\",'TSA Input'!J671=\"Contingent\"),'TSA Input'!D671,\"\"))","v":""},{"$f":"IF('TSA Input'!J671=\"\",\"\",IF(OR('TSA Input'!J671=\"Yes\",'TSA Input'!J671=\"Contingent\"),'TSA Input'!G671,\"\"))","v":""},{"$f":"IF('TSA Input'!J671=\"\",\"\",IF(OR('TSA Input'!J671=\"Yes\",'TSA Input'!J671=\"Contingent\"),'TSA Input'!F671,\"\"))","v":""},"",{"$f":"IF('TSA Input'!J671=\"\",\"\",IF(OR('TSA Input'!J671=\"Yes\",'TSA Input'!J671=\"Contingent\"),'TSA Input'!D671,\"\"))","v":""},{"$f":"IF('TSA Input'!J671=\"\",\"\",IF(OR('TSA Input'!J671=\"Yes\",'TSA Input'!J671=\"Contingent\"),'TSA Input'!G671,\"\"))","v":""},{"$f":"IF('TSA Input'!J671=\"\",\"\",IF(OR('TSA Input'!J671=\"Yes\",'TSA Input'!J671=\"Contingent\"),'TSA Input'!F671,\"\"))","v":""},"","Required","Required"]
["",null,{"$f":"IF('TSA Input'!J672=\"\",\"\",IF(OR('TSA Input'!J672=\"Yes\",'TSA Input'!J672=\"Contingent\"),'TSA Input'!B672,\"Ineligible\"))","v":""},{"$f":"IF('TSA Input'!J672=\"\",\"\",IF(OR('TSA Input'!J672=\"Yes\",'TSA Input'!J672=\"Contingent\"),'TSA Input'!I672,\"\"))","v":""},{"$f":"IF('TSA Input'!J672=\"\",\"\",IF(OR('TSA Input'!J672=\"Yes\",'TSA Input'!J672=\"Contingent\"),'TSA Input'!C672,\"\"))","v":""},{"$f":"IF('TSA Input'!J672=\"\",\"\",IF(OR('TSA Input'!J672=\"Yes\",'TSA Input'!J672=\"Contingent\"),'TSA Input'!D672,\"\"))","v":""},{"$f":"IF('TSA Input'!J672=\"\",\"\",IF(OR('TSA Input'!J672=\"Yes\",'TSA Input'!J672=\"Contingent\"),'TSA Input'!G672,\"\"))","v":""},{"$f":"IF('TSA Input'!J672=\"\",\"\",IF(OR('TSA Input'!J672=\"Yes\",'TSA Input'!J672=\"Contingent\"),'TSA Input'!F672,\"\"))","v":""},"",{"$f":"IF('TSA Input'!J672=\"\",\"\",IF(OR('TSA Input'!J672=\"Yes\",'TSA Input'!J672=\"Contingent\"),'TSA Input'!D672,\"\"))","v":""},{"$f":"IF('TSA Input'!J672=\"\",\"\",IF(OR('TSA Input'!J672=\"Yes\",'TSA Input'!J672=\"Contingent\"),'TSA Input'!G672,\"\"))","v":""},{"$f":"IF('TSA Input'!J672=\"\",\"\",IF(OR('TSA Input'!J672=\"Yes\",'TSA Input'!J672=\"Contingent\"),'TSA Input'!F672,\"\"))","v":""},"","Required","Required"]
["",null,{"$f":"IF('TSA Input'!J673=\"\",\"\",IF(OR('TSA Input'!J673=\"Yes\",'TSA Input'!J673=\"Contingent\"),'TSA Input'!B673,\"Ineligible\"))","v":""},{"$f":"IF('TSA Input'!J673=\"\",\"\",IF(OR('TSA Input'!J673=\"Yes\",'TSA Input'!J673=\"Contingent\"),'TSA Input'!I673,\"\"))","v":""},{"$f":"IF('TSA Input'!J673=\"\",\"\",IF(OR('TSA Input'!J673=\"Yes\",'TSA Input'!J673=\"Contingent\"),'TSA Input'!C673,\"\"))","v":""},{"$f":"IF('TSA Input'!J673=\"\",\"\",IF(OR('TSA Input'!J673=\"Yes\",'TSA Input'!J673=\"Contingent\"),'TSA Input'!D673,\"\"))","v":""},{"$f":"IF('TSA Input'!J673=\"\",\"\",IF(OR('TSA Input'!J673=\"Yes\",'TSA Input'!J673=\"Contingent\"),'TSA Input'!G673,\"\"))","v":""},{"$f":"IF('TSA Input'!J673=\"\",\"\",IF(OR('TSA Input'!J673=\"Yes\",'TSA Input'!J673=\"Contingent\"),'TSA Input'!F673,\"\"))","v":""},"",{"$f":"IF('TSA Input'!J673=\"\",\"\",IF(OR('TSA Input'!J673=\"Yes\",'TSA Input'!J673=\"Contingent\"),'TSA Input'!D673,\"\"))","v":""},{"$f":"IF('TSA Input'!J673=\"\",\"\",IF(OR('TSA Input'!J673=\"Yes\",'TSA Input'!J673=\"Contingent\"),'TSA Input'!G673,\"\"))","v":""},{"$f":"IF('TSA Input'!J673=\"\",\"\",IF(OR('TSA Input'!J673=\"Yes\",'TSA Input'!J673=\"Contingent\"),'TSA Input'!F673,\"\"))","v":""},"","Required","Required"]
["",null,{"$f":"IF('TSA Input'!J674=\"\",\"\",IF(OR('TSA Input'!J674=\"Yes\",'TSA Input'!J674=\"Contingent\"),'TSA Input'!B674,\"Ineligible\"))","v":""},{"$f":"IF('TSA Input'!J674=\"\",\"\",IF(OR('TSA Input'!J674=\"Yes\",'TSA Input'!J674=\"Contingent\"),'TSA Input'!I674,\"\"))","v":""},{"$f":"IF('TSA Input'!J674=\"\",\"\",IF(OR('TSA Input'!J674=\"Yes\",'TSA Input'!J674=\"Contingent\"),'TSA Input'!C674,\"\"))","v":""},{"$f":"IF('TSA Input'!J674=\"\",\"\",IF(OR('TSA Input'!J674=\"Yes\",'TSA Input'!J674=\"Contingent\"),'TSA Input'!D674,\"\"))","v":""},{"$f":"IF('TSA Input'!J674=\"\",\"\",IF(OR('TSA Input'!J674=\"Yes\",'TSA Input'!J674=\"Contingent\"),'TSA Input'!G674,\"\"))","v":""},{"$f":"IF('TSA Input'!J674=\"\",\"\",IF(OR('TSA Input'!J674=\"Yes\",'TSA Input'!J674=\"Contingent\"),'TSA Input'!F674,\"\"))","v":""},"",{"$f":"IF('TSA Input'!J674=\"\",\"\",IF(OR('TSA Input'!J674=\"Yes\",'TSA Input'!J674=\"Contingent\"),'TSA Input'!D674,\"\"))","v":""},{"$f":"IF('TSA Input'!J674=\"\",\"\",IF(OR('TSA Input'!J674=\"Yes\",'TSA Input'!J674=\"Contingent\"),'TSA Input'!G674,\"\"))","v":""},{"$f":"IF('TSA Input'!J674=\"\",\"\",IF(OR('TSA Input'!J674=\"Yes\",'TSA Input'!J674=\"Contingent\"),'TSA Input'!F674,\"\"))","v":""},"","Required","Required"]
["",null,{"$f":"IF('TSA Input'!J675=\"\",\"\",IF(OR('TSA Input'!J675=\"Yes\",'TSA Input'!J675=\"Contingent\"),'TSA Input'!B675,\"Ineligible\"))","v":""},{"$f":"IF('TSA Input'!J675=\"\",\"\",IF(OR('TSA Input'!J675=\"Yes\",'TSA Input'!J675=\"Contingent\"),'TSA Input'!I675,\"\"))","v":""},{"$f":"IF('TSA Input'!J675=\"\",\"\",IF(OR('TSA Input'!J675=\"Yes\",'TSA Input'!J675=\"Contingent\"),'TSA Input'!C675,\"\"))","v":""},{"$f":"IF('TSA Input'!J675=\"\",\"\",IF(OR('TSA Input'!J675=\"Yes\",'TSA Input'!J675=\"Contingent\"),'TSA Input'!D675,\"\"))","v":""},{"$f":"IF('TSA Input'!J675=\"\",\"\",IF(OR('TSA Input'!J675=\"Yes\",'TSA Input'!J675=\"Contingent\"),'TSA Input'!G675,\"\"))","v":""},{"$f":"IF('TSA Input'!J675=\"\",\"\",IF(OR('TSA Input'!J675=\"Yes\",'TSA Input'!J675=\"Contingent\"),'TSA Input'!F675,\"\"))","v":""},"",{"$f":"IF('TSA Input'!J675=\"\",\"\",IF(OR('TSA Input'!J675=\"Yes\",'TSA Input'!J675=\"Contingent\"),'TSA Input'!D675,\"\"))","v":""},{"$f":"IF('TSA Input'!J675=\"\",\"\",IF(OR('TSA Input'!J675=\"Yes\",'TSA Input'!J675=\"Contingent\"),'TSA Input'!G675,\"\"))","v":""},{"$f":"IF('TSA Input'!J675=\"\",\"\",IF(OR('TSA Input'!J675=\"Yes\",'TSA Input'!J675=\"Contingent\"),'TSA Input'!F675,\"\"))","v":""},"","Required","Required"]
["",null,{"$f":"IF('TSA Input'!J676=\"\",\"\",IF(OR('TSA Input'!J676=\"Yes\",'TSA Input'!J676=\"Contingent\"),'TSA Input'!B676,\"Ineligible\"))","v":""},{"$f":"IF('TSA Input'!J676=\"\",\"\",IF(OR('TSA Input'!J676=\"Yes\",'TSA Input'!J676=\"Contingent\"),'TSA Input'!I676,\"\"))","v":""},{"$f":"IF('TSA Input'!J676=\"\",\"\",IF(OR('TSA Input'!J676=\"Yes\",'TSA Input'!J676=\"Contingent\"),'TSA Input'!C676,\"\"))","v":""},{"$f":"IF('TSA Input'!J676=\"\",\"\",IF(OR('TSA Input'!J676=\"Yes\",'TSA Input'!J676=\"Contingent\"),'TSA Input'!D676,\"\"))","v":""},{"$f":"IF('TSA Input'!J676=\"\",\"\",IF(OR('TSA Input'!J676=\"Yes\",'TSA Input'!J676=\"Contingent\"),'TSA Input'!G676,\"\"))","v":""},{"$f":"IF('TSA Input'!J676=\"\",\"\",IF(OR('TSA Input'!J676=\"Yes\",'TSA Input'!J676=\"Contingent\"),'TSA Input'!F676,\"\"))","v":""},"",{"$f":"IF('TSA Input'!J676=\"\",\"\",IF(OR('TSA Input'!J676=\"Yes\",'TSA Input'!J676=\"Contingent\"),'TSA Input'!D676,\"\"))","v":""},{"$f":"IF('TSA Input'!J676=\"\",\"\",IF(OR('TSA Input'!J676=\"Yes\",'TSA Input'!J676=\"Contingent\"),'TSA Input'!G676,\"\"))","v":""},{"$f":"IF('TSA Input'!J676=\"\",\"\",IF(OR('TSA Input'!J676=\"Yes\",'TSA Input'!J676=\"Contingent\"),'TSA Input'!F676,\"\"))","v":""},"","Required","Required"]
["",null,{"$f":"IF('TSA Input'!J677=\"\",\"\",IF(OR('TSA Input'!J677=\"Yes\",'TSA Input'!J677=\"Contingent\"),'TSA Input'!B677,\"Ineligible\"))","v":""},{"$f":"IF('TSA Input'!J677=\"\",\"\",IF(OR('TSA Input'!J677=\"Yes\",'TSA Input'!J677=\"Contingent\"),'TSA Input'!I677,\"\"))","v":""},{"$f":"IF('TSA Input'!J677=\"\",\"\",IF(OR('TSA Input'!J677=\"Yes\",'TSA Input'!J677=\"Contingent\"),'TSA Input'!C677,\"\"))","v":""},{"$f":"IF('TSA Input'!J677=\"\",\"\",IF(OR('TSA Input'!J677=\"Yes\",'TSA Input'!J677=\"Contingent\"),'TSA Input'!D677,\"\"))","v":""},{"$f":"IF('TSA Input'!J677=\"\",\"\",IF(OR('TSA Input'!J677=\"Yes\",'TSA Input'!J677=\"Contingent\"),'TSA Input'!G677,\"\"))","v":""},{"$f":"IF('TSA Input'!J677=\"\",\"\",IF(OR('TSA Input'!J677=\"Yes\",'TSA Input'!J677=\"Contingent\"),'TSA Input'!F677,\"\"))","v":""},"",{"$f":"IF('TSA Input'!J677=\"\",\"\",IF(OR('TSA Input'!J677=\"Yes\",'TSA Input'!J677=\"Contingent\"),'TSA Input'!D677,\"\"))","v":""},{"$f":"IF('TSA Input'!J677=\"\",\"\",IF(OR('TSA Input'!J677=\"Yes\",'TSA Input'!J677=\"Contingent\"),'TSA Input'!G677,\"\"))","v":""},{"$f":"IF('TSA Input'!J677=\"\",\"\",IF(OR('TSA Input'!J677=\"Yes\",'TSA Input'!J677=\"Contingent\"),'TSA Input'!F677,\"\"))","v":""},"","Required","Required"]
["",null,{"$f":"IF('TSA Input'!J678=\"\",\"\",IF(OR('TSA Input'!J678=\"Yes\",'TSA Input'!J678=\"Contingent\"),'TSA Input'!B678,\"Ineligible\"))","v":""},{"$f":"IF('TSA Input'!J678=\"\",\"\",IF(OR('TSA Input'!J678=\"Yes\",'TSA Input'!J678=\"Contingent\"),'TSA Input'!I678,\"\"))","v":""},{"$f":"IF('TSA Input'!J678=\"\",\"\",IF(OR('TSA Input'!J678=\"Yes\",'TSA Input'!J678=\"Contingent\"),'TSA Input'!C678,\"\"))","v":""},{"$f":"IF('TSA Input'!J678=\"\",\"\",IF(OR('TSA Input'!J678=\"Yes\",'TSA Input'!J678=\"Contingent\"),'TSA Input'!D678,\"\"))","v":""},{"$f":"IF('TSA Input'!J678=\"\",\"\",IF(OR('TSA Input'!J678=\"Yes\",'TSA Input'!J678=\"Contingent\"),'TSA Input'!G678,\"\"))","v":""},{"$f":"IF('TSA Input'!J678=\"\",\"\",IF(OR('TSA Input'!J678=\"Yes\",'TSA Input'!J678=\"Contingent\"),'TSA Input'!F678,\"\"))","v":""},"",{"$f":"IF('TSA Input'!J678=\"\",\"\",IF(OR('TSA Input'!J678=\"Yes\",'TSA Input'!J678=\"Contingent\"),'TSA Input'!D678,\"\"))","v":""},{"$f":"IF('TSA Input'!J678=\"\",\"\",IF(OR('TSA Input'!J678=\"Yes\",'TSA Input'!J678=\"Contingent\"),'TSA Input'!G678,\"\"))","v":""},{"$f":"IF('TSA Input'!J678=\"\",\"\",IF(OR('TSA Input'!J678=\"Yes\",'TSA Input'!J678=\"Contingent\"),'TSA Input'!F678,\"\"))","v":""},"","Required","Required"]
["",null,{"$f":"IF('TSA Input'!J679=\"\",\"\",IF(OR('TSA Input'!J679=\"Yes\",'TSA Input'!J679=\"Contingent\"),'TSA Input'!B679,\"Ineligible\"))","v":""},{"$f":"IF('TSA Input'!J679=\"\",\"\",IF(OR('TSA Input'!J679=\"Yes\",'TSA Input'!J679=\"Contingent\"),'TSA Input'!I679,\"\"))","v":""},{"$f":"IF('TSA Input'!J679=\"\",\"\",IF(OR('TSA Input'!J679=\"Yes\",'TSA Input'!J679=\"Contingent\"),'TSA Input'!C679,\"\"))","v":""},{"$f":"IF('TSA Input'!J679=\"\",\"\",IF(OR('TSA Input'!J679=\"Yes\",'TSA Input'!J679=\"Contingent\"),'TSA Input'!D679,\"\"))","v":""},{"$f":"IF('TSA Input'!J679=\"\",\"\",IF(OR('TSA Input'!J679=\"Yes\",'TSA Input'!J679=\"Contingent\"),'TSA Input'!G679,\"\"))","v":""},{"$f":"IF('TSA Input'!J679=\"\",\"\",IF(OR('TSA Input'!J679=\"Yes\",'TSA Input'!J679=\"Contingent\"),'TSA Input'!F679,\"\"))","v":""},"",{"$f":"IF('TSA Input'!J679=\"\",\"\",IF(OR('TSA Input'!J679=\"Yes\",'TSA Input'!J679=\"Contingent\"),'TSA Input'!D679,\"\"))","v":""},{"$f":"IF('TSA Input'!J679=\"\",\"\",IF(OR('TSA Input'!J679=\"Yes\",'TSA Input'!J679=\"Contingent\"),'TSA Input'!G679,\"\"))","v":""},{"$f":"IF('TSA Input'!J679=\"\",\"\",IF(OR('TSA Input'!J679=\"Yes\",'TSA Input'!J679=\"Contingent\"),'TSA Input'!F679,\"\"))","v":""},"","Required","Required"]
["",null,{"$f":"IF('TSA Input'!J680=\"\",\"\",IF(OR('TSA Input'!J680=\"Yes\",'TSA Input'!J680=\"Contingent\"),'TSA Input'!B680,\"Ineligible\"))","v":""},{"$f":"IF('TSA Input'!J680=\"\",\"\",IF(OR('TSA Input'!J680=\"Yes\",'TSA Input'!J680=\"Contingent\"),'TSA Input'!I680,\"\"))","v":""},{"$f":"IF('TSA Input'!J680=\"\",\"\",IF(OR('TSA Input'!J680=\"Yes\",'TSA Input'!J680=\"Contingent\"),'TSA Input'!C680,\"\"))","v":""},{"$f":"IF('TSA Input'!J680=\"\",\"\",IF(OR('TSA Input'!J680=\"Yes\",'TSA Input'!J680=\"Contingent\"),'TSA Input'!D680,\"\"))","v":""},{"$f":"IF('TSA Input'!J680=\"\",\"\",IF(OR('TSA Input'!J680=\"Yes\",'TSA Input'!J680=\"Contingent\"),'TSA Input'!G680,\"\"))","v":""},{"$f":"IF('TSA Input'!J680=\"\",\"\",IF(OR('TSA Input'!J680=\"Yes\",'TSA Input'!J680=\"Contingent\"),'TSA Input'!F680,\"\"))","v":""},"",{"$f":"IF('TSA Input'!J680=\"\",\"\",IF(OR('TSA Input'!J680=\"Yes\",'TSA Input'!J680=\"Contingent\"),'TSA Input'!D680,\"\"))","v":""},{"$f":"IF('TSA Input'!J680=\"\",\"\",IF(OR('TSA Input'!J680=\"Yes\",'TSA Input'!J680=\"Contingent\"),'TSA Input'!G680,\"\"))","v":""},{"$f":"IF('TSA Input'!J680=\"\",\"\",IF(OR('TSA Input'!J680=\"Yes\",'TSA Input'!J680=\"Contingent\"),'TSA Input'!F680,\"\"))","v":""},"","Required","Required"]
["",null,{"$f":"IF('TSA Input'!J681=\"\",\"\",IF(OR('TSA Input'!J681=\"Yes\",'TSA Input'!J681=\"Contingent\"),'TSA Input'!B681,\"Ineligible\"))","v":""},{"$f":"IF('TSA Input'!J681=\"\",\"\",IF(OR('TSA Input'!J681=\"Yes\",'TSA Input'!J681=\"Contingent\"),'TSA Input'!I681,\"\"))","v":""},{"$f":"IF('TSA Input'!J681=\"\",\"\",IF(OR('TSA Input'!J681=\"Yes\",'TSA Input'!J681=\"Contingent\"),'TSA Input'!C681,\"\"))","v":""},{"$f":"IF('TSA Input'!J681=\"\",\"\",IF(OR('TSA Input'!J681=\"Yes\",'TSA Input'!J681=\"Contingent\"),'TSA Input'!D681,\"\"))","v":""},{"$f":"IF('TSA Input'!J681=\"\",\"\",IF(OR('TSA Input'!J681=\"Yes\",'TSA Input'!J681=\"Contingent\"),'TSA Input'!G681,\"\"))","v":""},{"$f":"IF('TSA Input'!J681=\"\",\"\",IF(OR('TSA Input'!J681=\"Yes\",'TSA Input'!J681=\"Contingent\"),'TSA Input'!F681,\"\"))","v":""},"",{"$f":"IF('TSA Input'!J681=\"\",\"\",IF(OR('TSA Input'!J681=\"Yes\",'TSA Input'!J681=\"Contingent\"),'TSA Input'!D681,\"\"))","v":""},{"$f":"IF('TSA Input'!J681=\"\",\"\",IF(OR('TSA Input'!J681=\"Yes\",'TSA Input'!J681=\"Contingent\"),'TSA Input'!G681,\"\"))","v":""},{"$f":"IF('TSA Input'!J681=\"\",\"\",IF(OR('TSA Input'!J681=\"Yes\",'TSA Input'!J681=\"Contingent\"),'TSA Input'!F681,\"\"))","v":""},"","Required","Required"]
["",null,{"$f":"IF('TSA Input'!J682=\"\",\"\",IF(OR('TSA Input'!J682=\"Yes\",'TSA Input'!J682=\"Contingent\"),'TSA Input'!B682,\"Ineligible\"))","v":""},{"$f":"IF('TSA Input'!J682=\"\",\"\",IF(OR('TSA Input'!J682=\"Yes\",'TSA Input'!J682=\"Contingent\"),'TSA Input'!I682,\"\"))","v":""},{"$f":"IF('TSA Input'!J682=\"\",\"\",IF(OR('TSA Input'!J682=\"Yes\",'TSA Input'!J682=\"Contingent\"),'TSA Input'!C682,\"\"))","v":""},{"$f":"IF('TSA Input'!J682=\"\",\"\",IF(OR('TSA Input'!J682=\"Yes\",'TSA Input'!J682=\"Contingent\"),'TSA Input'!D682,\"\"))","v":""},{"$f":"IF('TSA Input'!J682=\"\",\"\",IF(OR('TSA Input'!J682=\"Yes\",'TSA Input'!J682=\"Contingent\"),'TSA Input'!G682,\"\"))","v":""},{"$f":"IF('TSA Input'!J682=\"\",\"\",IF(OR('TSA Input'!J682=\"Yes\",'TSA Input'!J682=\"Contingent\"),'TSA Input'!F682,\"\"))","v":""},"",{"$f":"IF('TSA Input'!J682=\"\",\"\",IF(OR('TSA Input'!J682=\"Yes\",'TSA Input'!J682=\"Contingent\"),'TSA Input'!D682,\"\"))","v":""},{"$f":"IF('TSA Input'!J682=\"\",\"\",IF(OR('TSA Input'!J682=\"Yes\",'TSA Input'!J682=\"Contingent\"),'TSA Input'!G682,\"\"))","v":""},{"$f":"IF('TSA Input'!J682=\"\",\"\",IF(OR('TSA Input'!J682=\"Yes\",'TSA Input'!J682=\"Contingent\"),'TSA Input'!F682,\"\"))","v":""},"","Required","Required"]
["",null,{"$f":"IF('TSA Input'!J683=\"\",\"\",IF(OR('TSA Input'!J683=\"Yes\",'TSA Input'!J683=\"Contingent\"),'TSA Input'!B683,\"Ineligible\"))","v":""},{"$f":"IF('TSA Input'!J683=\"\",\"\",IF(OR('TSA Input'!J683=\"Yes\",'TSA Input'!J683=\"Contingent\"),'TSA Input'!I683,\"\"))","v":""},{"$f":"IF('TSA Input'!J683=\"\",\"\",IF(OR('TSA Input'!J683=\"Yes\",'TSA Input'!J683=\"Contingent\"),'TSA Input'!C683,\"\"))","v":""},{"$f":"IF('TSA Input'!J683=\"\",\"\",IF(OR('TSA Input'!J683=\"Yes\",'TSA Input'!J683=\"Contingent\"),'TSA Input'!D683,\"\"))","v":""},{"$f":"IF('TSA Input'!J683=\"\",\"\",IF(OR('TSA Input'!J683=\"Yes\",'TSA Input'!J683=\"Contingent\"),'TSA Input'!G683,\"\"))","v":""},{"$f":"IF('TSA Input'!J683=\"\",\"\",IF(OR('TSA Input'!J683=\"Yes\",'TSA Input'!J683=\"Contingent\"),'TSA Input'!F683,\"\"))","v":""},"",{"$f":"IF('TSA Input'!J683=\"\",\"\",IF(OR('TSA Input'!J683=\"Yes\",'TSA Input'!J683=\"Contingent\"),'TSA Input'!D683,\"\"))","v":""},{"$f":"IF('TSA Input'!J683=\"\",\"\",IF(OR('TSA Input'!J683=\"Yes\",'TSA Input'!J683=\"Contingent\"),'TSA Input'!G683,\"\"))","v":""},{"$f":"IF('TSA Input'!J683=\"\",\"\",IF(OR('TSA Input'!J683=\"Yes\",'TSA Input'!J683=\"Contingent\"),'TSA Input'!F683,\"\"))","v":""},"","Required","Required"]
["",null,{"$f":"IF('TSA Input'!J684=\"\",\"\",IF(OR('TSA Input'!J684=\"Yes\",'TSA Input'!J684=\"Contingent\"),'TSA Input'!B684,\"Ineligible\"))","v":""},{"$f":"IF('TSA Input'!J684=\"\",\"\",IF(OR('TSA Input'!J684=\"Yes\",'TSA Input'!J684=\"Contingent\"),'TSA Input'!I684,\"\"))","v":""},{"$f":"IF('TSA Input'!J684=\"\",\"\",IF(OR('TSA Input'!J684=\"Yes\",'TSA Input'!J684=\"Contingent\"),'TSA Input'!C684,\"\"))","v":""},{"$f":"IF('TSA Input'!J684=\"\",\"\",IF(OR('TSA Input'!J684=\"Yes\",'TSA Input'!J684=\"Contingent\"),'TSA Input'!D684,\"\"))","v":""},{"$f":"IF('TSA Input'!J684=\"\",\"\",IF(OR('TSA Input'!J684=\"Yes\",'TSA Input'!J684=\"Contingent\"),'TSA Input'!G684,\"\"))","v":""},{"$f":"IF('TSA Input'!J684=\"\",\"\",IF(OR('TSA Input'!J684=\"Yes\",'TSA Input'!J684=\"Contingent\"),'TSA Input'!F684,\"\"))","v":""},"",{"$f":"IF('TSA Input'!J684=\"\",\"\",IF(OR('TSA Input'!J684=\"Yes\",'TSA Input'!J684=\"Contingent\"),'TSA Input'!D684,\"\"))","v":""},{"$f":"IF('TSA Input'!J684=\"\",\"\",IF(OR('TSA Input'!J684=\"Yes\",'TSA Input'!J684=\"Contingent\"),'TSA Input'!G684,\"\"))","v":""},{"$f":"IF('TSA Input'!J684=\"\",\"\",IF(OR('TSA Input'!J684=\"Yes\",'TSA Input'!J684=\"Contingent\"),'TSA Input'!F684,\"\"))","v":""},"","Required","Required"]
["",null,{"$f":"IF('TSA Input'!J685=\"\",\"\",IF(OR('TSA Input'!J685=\"Yes\",'TSA Input'!J685=\"Contingent\"),'TSA Input'!B685,\"Ineligible\"))","v":""},{"$f":"IF('TSA Input'!J685=\"\",\"\",IF(OR('TSA Input'!J685=\"Yes\",'TSA Input'!J685=\"Contingent\"),'TSA Input'!I685,\"\"))","v":""},{"$f":"IF('TSA Input'!J685=\"\",\"\",IF(OR('TSA Input'!J685=\"Yes\",'TSA Input'!J685=\"Contingent\"),'TSA Input'!C685,\"\"))","v":""},{"$f":"IF('TSA Input'!J685=\"\",\"\",IF(OR('TSA Input'!J685=\"Yes\",'TSA Input'!J685=\"Contingent\"),'TSA Input'!D685,\"\"))","v":""},{"$f":"IF('TSA Input'!J685=\"\",\"\",IF(OR('TSA Input'!J685=\"Yes\",'TSA Input'!J685=\"Contingent\"),'TSA Input'!G685,\"\"))","v":""},{"$f":"IF('TSA Input'!J685=\"\",\"\",IF(OR('TSA Input'!J685=\"Yes\",'TSA Input'!J685=\"Contingent\"),'TSA Input'!F685,\"\"))","v":""},"",{"$f":"IF('TSA Input'!J685=\"\",\"\",IF(OR('TSA Input'!J685=\"Yes\",'TSA Input'!J685=\"Contingent\"),'TSA Input'!D685,\"\"))","v":""},{"$f":"IF('TSA Input'!J685=\"\",\"\",IF(OR('TSA Input'!J685=\"Yes\",'TSA Input'!J685=\"Contingent\"),'TSA Input'!G685,\"\"))","v":""},{"$f":"IF('TSA Input'!J685=\"\",\"\",IF(OR('TSA Input'!J685=\"Yes\",'TSA Input'!J685=\"Contingent\"),'TSA Input'!F685,\"\"))","v":""},"","Required","Required"]
["",null,{"$f":"IF('TSA Input'!J686=\"\",\"\",IF(OR('TSA Input'!J686=\"Yes\",'TSA Input'!J686=\"Contingent\"),'TSA Input'!B686,\"Ineligible\"))","v":""},{"$f":"IF('TSA Input'!J686=\"\",\"\",IF(OR('TSA Input'!J686=\"Yes\",'TSA Input'!J686=\"Contingent\"),'TSA Input'!I686,\"\"))","v":""},{"$f":"IF('TSA Input'!J686=\"\",\"\",IF(OR('TSA Input'!J686=\"Yes\",'TSA Input'!J686=\"Contingent\"),'TSA Input'!C686,\"\"))","v":""},{"$f":"IF('TSA Input'!J686=\"\",\"\",IF(OR('TSA Input'!J686=\"Yes\",'TSA Input'!J686=\"Contingent\"),'TSA Input'!D686,\"\"))","v":""},{"$f":"IF('TSA Input'!J686=\"\",\"\",IF(OR('TSA Input'!J686=\"Yes\",'TSA Input'!J686=\"Contingent\"),'TSA Input'!G686,\"\"))","v":""},{"$f":"IF('TSA Input'!J686=\"\",\"\",IF(OR('TSA Input'!J686=\"Yes\",'TSA Input'!J686=\"Contingent\"),'TSA Input'!F686,\"\"))","v":""},"",{"$f":"IF('TSA Input'!J686=\"\",\"\",IF(OR('TSA Input'!J686=\"Yes\",'TSA Input'!J686=\"Contingent\"),'TSA Input'!D686,\"\"))","v":""},{"$f":"IF('TSA Input'!J686=\"\",\"\",IF(OR('TSA Input'!J686=\"Yes\",'TSA Input'!J686=\"Contingent\"),'TSA Input'!G686,\"\"))","v":""},{"$f":"IF('TSA Input'!J686=\"\",\"\",IF(OR('TSA Input'!J686=\"Yes\",'TSA Input'!J686=\"Contingent\"),'TSA Input'!F686,\"\"))","v":""},"","Required","Required"]
["",null,{"$f":"IF('TSA Input'!J687=\"\",\"\",IF(OR('TSA Input'!J687=\"Yes\",'TSA Input'!J687=\"Contingent\"),'TSA Input'!B687,\"Ineligible\"))","v":""},{"$f":"IF('TSA Input'!J687=\"\",\"\",IF(OR('TSA Input'!J687=\"Yes\",'TSA Input'!J687=\"Contingent\"),'TSA Input'!I687,\"\"))","v":""},{"$f":"IF('TSA Input'!J687=\"\",\"\",IF(OR('TSA Input'!J687=\"Yes\",'TSA Input'!J687=\"Contingent\"),'TSA Input'!C687,\"\"))","v":""},{"$f":"IF('TSA Input'!J687=\"\",\"\",IF(OR('TSA Input'!J687=\"Yes\",'TSA Input'!J687=\"Contingent\"),'TSA Input'!D687,\"\"))","v":""},{"$f":"IF('TSA Input'!J687=\"\",\"\",IF(OR('TSA Input'!J687=\"Yes\",'TSA Input'!J687=\"Contingent\"),'TSA Input'!G687,\"\"))","v":""},{"$f":"IF('TSA Input'!J687=\"\",\"\",IF(OR('TSA Input'!J687=\"Yes\",'TSA Input'!J687=\"Contingent\"),'TSA Input'!F687,\"\"))","v":""},"",{"$f":"IF('TSA Input'!J687=\"\",\"\",IF(OR('TSA Input'!J687=\"Yes\",'TSA Input'!J687=\"Contingent\"),'TSA Input'!D687,\"\"))","v":""},{"$f":"IF('TSA Input'!J687=\"\",\"\",IF(OR('TSA Input'!J687=\"Yes\",'TSA Input'!J687=\"Contingent\"),'TSA Input'!G687,\"\"))","v":""},{"$f":"IF('TSA Input'!J687=\"\",\"\",IF(OR('TSA Input'!J687=\"Yes\",'TSA Input'!J687=\"Contingent\"),'TSA Input'!F687,\"\"))","v":""},"","Required","Required"]
["",null,{"$f":"IF('TSA Input'!J688=\"\",\"\",IF(OR('TSA Input'!J688=\"Yes\",'TSA Input'!J688=\"Contingent\"),'TSA Input'!B688,\"Ineligible\"))","v":""},{"$f":"IF('TSA Input'!J688=\"\",\"\",IF(OR('TSA Input'!J688=\"Yes\",'TSA Input'!J688=\"Contingent\"),'TSA Input'!I688,\"\"))","v":""},{"$f":"IF('TSA Input'!J688=\"\",\"\",IF(OR('TSA Input'!J688=\"Yes\",'TSA Input'!J688=\"Contingent\"),'TSA Input'!C688,\"\"))","v":""},{"$f":"IF('TSA Input'!J688=\"\",\"\",IF(OR('TSA Input'!J688=\"Yes\",'TSA Input'!J688=\"Contingent\"),'TSA Input'!D688,\"\"))","v":""},{"$f":"IF('TSA Input'!J688=\"\",\"\",IF(OR('TSA Input'!J688=\"Yes\",'TSA Input'!J688=\"Contingent\"),'TSA Input'!G688,\"\"))","v":""},{"$f":"IF('TSA Input'!J688=\"\",\"\",IF(OR('TSA Input'!J688=\"Yes\",'TSA Input'!J688=\"Contingent\"),'TSA Input'!F688,\"\"))","v":""},"",{"$f":"IF('TSA Input'!J688=\"\",\"\",IF(OR('TSA Input'!J688=\"Yes\",'TSA Input'!J688=\"Contingent\"),'TSA Input'!D688,\"\"))","v":""},{"$f":"IF('TSA Input'!J688=\"\",\"\",IF(OR('TSA Input'!J688=\"Yes\",'TSA Input'!J688=\"Contingent\"),'TSA Input'!G688,\"\"))","v":""},{"$f":"IF('TSA Input'!J688=\"\",\"\",IF(OR('TSA Input'!J688=\"Yes\",'TSA Input'!J688=\"Contingent\"),'TSA Input'!F688,\"\"))","v":""},"","Required","Required"]
["",null,{"$f":"IF('TSA Input'!J689=\"\",\"\",IF(OR('TSA Input'!J689=\"Yes\",'TSA Input'!J689=\"Contingent\"),'TSA Input'!B689,\"Ineligible\"))","v":""},{"$f":"IF('TSA Input'!J689=\"\",\"\",IF(OR('TSA Input'!J689=\"Yes\",'TSA Input'!J689=\"Contingent\"),'TSA Input'!I689,\"\"))","v":""},{"$f":"IF('TSA Input'!J689=\"\",\"\",IF(OR('TSA Input'!J689=\"Yes\",'TSA Input'!J689=\"Contingent\"),'TSA Input'!C689,\"\"))","v":""},{"$f":"IF('TSA Input'!J689=\"\",\"\",IF(OR('TSA Input'!J689=\"Yes\",'TSA Input'!J689=\"Contingent\"),'TSA Input'!D689,\"\"))","v":""},{"$f":"IF('TSA Input'!J689=\"\",\"\",IF(OR('TSA Input'!J689=\"Yes\",'TSA Input'!J689=\"Contingent\"),'TSA Input'!G689,\"\"))","v":""},{"$f":"IF('TSA Input'!J689=\"\",\"\",IF(OR('TSA Input'!J689=\"Yes\",'TSA Input'!J689=\"Contingent\"),'TSA Input'!F689,\"\"))","v":""},"",{"$f":"IF('TSA Input'!J689=\"\",\"\",IF(OR('TSA Input'!J689=\"Yes\",'TSA Input'!J689=\"Contingent\"),'TSA Input'!D689,\"\"))","v":""},{"$f":"IF('TSA Input'!J689=\"\",\"\",IF(OR('TSA Input'!J689=\"Yes\",'TSA Input'!J689=\"Contingent\"),'TSA Input'!G689,\"\"))","v":""},{"$f":"IF('TSA Input'!J689=\"\",\"\",IF(OR('TSA Input'!J689=\"Yes\",'TSA Input'!J689=\"Contingent\"),'TSA Input'!F689,\"\"))","v":""},"","Required","Required"]
["",null,{"$f":"IF('TSA Input'!J690=\"\",\"\",IF(OR('TSA Input'!J690=\"Yes\",'TSA Input'!J690=\"Contingent\"),'TSA Input'!B690,\"Ineligible\"))","v":""},{"$f":"IF('TSA Input'!J690=\"\",\"\",IF(OR('TSA Input'!J690=\"Yes\",'TSA Input'!J690=\"Contingent\"),'TSA Input'!I690,\"\"))","v":""},{"$f":"IF('TSA Input'!J690=\"\",\"\",IF(OR('TSA Input'!J690=\"Yes\",'TSA Input'!J690=\"Contingent\"),'TSA Input'!C690,\"\"))","v":""},{"$f":"IF('TSA Input'!J690=\"\",\"\",IF(OR('TSA Input'!J690=\"Yes\",'TSA Input'!J690=\"Contingent\"),'TSA Input'!D690,\"\"))","v":""},{"$f":"IF('TSA Input'!J690=\"\",\"\",IF(OR('TSA Input'!J690=\"Yes\",'TSA Input'!J690=\"Contingent\"),'TSA Input'!G690,\"\"))","v":""},{"$f":"IF('TSA Input'!J690=\"\",\"\",IF(OR('TSA Input'!J690=\"Yes\",'TSA Input'!J690=\"Contingent\"),'TSA Input'!F690,\"\"))","v":""},"",{"$f":"IF('TSA Input'!J690=\"\",\"\",IF(OR('TSA Input'!J690=\"Yes\",'TSA Input'!J690=\"Contingent\"),'TSA Input'!D690,\"\"))","v":""},{"$f":"IF('TSA Input'!J690=\"\",\"\",IF(OR('TSA Input'!J690=\"Yes\",'TSA Input'!J690=\"Contingent\"),'TSA Input'!G690,\"\"))","v":""},{"$f":"IF('TSA Input'!J690=\"\",\"\",IF(OR('TSA Input'!J690=\"Yes\",'TSA Input'!J690=\"Contingent\"),'TSA Input'!F690,\"\"))","v":""},"","Required","Required"]
["",null,{"$f":"IF('TSA Input'!J691=\"\",\"\",IF(OR('TSA Input'!J691=\"Yes\",'TSA Input'!J691=\"Contingent\"),'TSA Input'!B691,\"Ineligible\"))","v":""},{"$f":"IF('TSA Input'!J691=\"\",\"\",IF(OR('TSA Input'!J691=\"Yes\",'TSA Input'!J691=\"Contingent\"),'TSA Input'!I691,\"\"))","v":""},{"$f":"IF('TSA Input'!J691=\"\",\"\",IF(OR('TSA Input'!J691=\"Yes\",'TSA Input'!J691=\"Contingent\"),'TSA Input'!C691,\"\"))","v":""},{"$f":"IF('TSA Input'!J691=\"\",\"\",IF(OR('TSA Input'!J691=\"Yes\",'TSA Input'!J691=\"Contingent\"),'TSA Input'!D691,\"\"))","v":""},{"$f":"IF('TSA Input'!J691=\"\",\"\",IF(OR('TSA Input'!J691=\"Yes\",'TSA Input'!J691=\"Contingent\"),'TSA Input'!G691,\"\"))","v":""},{"$f":"IF('TSA Input'!J691=\"\",\"\",IF(OR('TSA Input'!J691=\"Yes\",'TSA Input'!J691=\"Contingent\"),'TSA Input'!F691,\"\"))","v":""},"",{"$f":"IF('TSA Input'!J691=\"\",\"\",IF(OR('TSA Input'!J691=\"Yes\",'TSA Input'!J691=\"Contingent\"),'TSA Input'!D691,\"\"))","v":""},{"$f":"IF('TSA Input'!J691=\"\",\"\",IF(OR('TSA Input'!J691=\"Yes\",'TSA Input'!J691=\"Contingent\"),'TSA Input'!G691,\"\"))","v":""},{"$f":"IF('TSA Input'!J691=\"\",\"\",IF(OR('TSA Input'!J691=\"Yes\",'TSA Input'!J691=\"Contingent\"),'TSA Input'!F691,\"\"))","v":""},"","Required","Required"]
["",null,{"$f":"IF('TSA Input'!J692=\"\",\"\",IF(OR('TSA Input'!J692=\"Yes\",'TSA Input'!J692=\"Contingent\"),'TSA Input'!B692,\"Ineligible\"))","v":""},{"$f":"IF('TSA Input'!J692=\"\",\"\",IF(OR('TSA Input'!J692=\"Yes\",'TSA Input'!J692=\"Contingent\"),'TSA Input'!I692,\"\"))","v":""},{"$f":"IF('TSA Input'!J692=\"\",\"\",IF(OR('TSA Input'!J692=\"Yes\",'TSA Input'!J692=\"Contingent\"),'TSA Input'!C692,\"\"))","v":""},{"$f":"IF('TSA Input'!J692=\"\",\"\",IF(OR('TSA Input'!J692=\"Yes\",'TSA Input'!J692=\"Contingent\"),'TSA Input'!D692,\"\"))","v":""},{"$f":"IF('TSA Input'!J692=\"\",\"\",IF(OR('TSA Input'!J692=\"Yes\",'TSA Input'!J692=\"Contingent\"),'TSA Input'!G692,\"\"))","v":""},{"$f":"IF('TSA Input'!J692=\"\",\"\",IF(OR('TSA Input'!J692=\"Yes\",'TSA Input'!J692=\"Contingent\"),'TSA Input'!F692,\"\"))","v":""},"",{"$f":"IF('TSA Input'!J692=\"\",\"\",IF(OR('TSA Input'!J692=\"Yes\",'TSA Input'!J692=\"Contingent\"),'TSA Input'!D692,\"\"))","v":""},{"$f":"IF('TSA Input'!J692=\"\",\"\",IF(OR('TSA Input'!J692=\"Yes\",'TSA Input'!J692=\"Contingent\"),'TSA Input'!G692,\"\"))","v":""},{"$f":"IF('TSA Input'!J692=\"\",\"\",IF(OR('TSA Input'!J692=\"Yes\",'TSA Input'!J692=\"Contingent\"),'TSA Input'!F692,\"\"))","v":""},"","Required","Required"]
["",null,{"$f":"IF('TSA Input'!J693=\"\",\"\",IF(OR('TSA Input'!J693=\"Yes\",'TSA Input'!J693=\"Contingent\"),'TSA Input'!B693,\"Ineligible\"))","v":""},{"$f":"IF('TSA Input'!J693=\"\",\"\",IF(OR('TSA Input'!J693=\"Yes\",'TSA Input'!J693=\"Contingent\"),'TSA Input'!I693,\"\"))","v":""},{"$f":"IF('TSA Input'!J693=\"\",\"\",IF(OR('TSA Input'!J693=\"Yes\",'TSA Input'!J693=\"Contingent\"),'TSA Input'!C693,\"\"))","v":""},{"$f":"IF('TSA Input'!J693=\"\",\"\",IF(OR('TSA Input'!J693=\"Yes\",'TSA Input'!J693=\"Contingent\"),'TSA Input'!D693,\"\"))","v":""},{"$f":"IF('TSA Input'!J693=\"\",\"\",IF(OR('TSA Input'!J693=\"Yes\",'TSA Input'!J693=\"Contingent\"),'TSA Input'!G693,\"\"))","v":""},{"$f":"IF('TSA Input'!J693=\"\",\"\",IF(OR('TSA Input'!J693=\"Yes\",'TSA Input'!J693=\"Contingent\"),'TSA Input'!F693,\"\"))","v":""},"",{"$f":"IF('TSA Input'!J693=\"\",\"\",IF(OR('TSA Input'!J693=\"Yes\",'TSA Input'!J693=\"Contingent\"),'TSA Input'!D693,\"\"))","v":""},{"$f":"IF('TSA Input'!J693=\"\",\"\",IF(OR('TSA Input'!J693=\"Yes\",'TSA Input'!J693=\"Contingent\"),'TSA Input'!G693,\"\"))","v":""},{"$f":"IF('TSA Input'!J693=\"\",\"\",IF(OR('TSA Input'!J693=\"Yes\",'TSA Input'!J693=\"Contingent\"),'TSA Input'!F693,\"\"))","v":""},"","Required","Required"]
["",null,{"$f":"IF('TSA Input'!J694=\"\",\"\",IF(OR('TSA Input'!J694=\"Yes\",'TSA Input'!J694=\"Contingent\"),'TSA Input'!B694,\"Ineligible\"))","v":""},{"$f":"IF('TSA Input'!J694=\"\",\"\",IF(OR('TSA Input'!J694=\"Yes\",'TSA Input'!J694=\"Contingent\"),'TSA Input'!I694,\"\"))","v":""},{"$f":"IF('TSA Input'!J694=\"\",\"\",IF(OR('TSA Input'!J694=\"Yes\",'TSA Input'!J694=\"Contingent\"),'TSA Input'!C694,\"\"))","v":""},{"$f":"IF('TSA Input'!J694=\"\",\"\",IF(OR('TSA Input'!J694=\"Yes\",'TSA Input'!J694=\"Contingent\"),'TSA Input'!D694,\"\"))","v":""},{"$f":"IF('TSA Input'!J694=\"\",\"\",IF(OR('TSA Input'!J694=\"Yes\",'TSA Input'!J694=\"Contingent\"),'TSA Input'!G694,\"\"))","v":""},{"$f":"IF('TSA Input'!J694=\"\",\"\",IF(OR('TSA Input'!J694=\"Yes\",'TSA Input'!J694=\"Contingent\"),'TSA Input'!F694,\"\"))","v":""},"",{"$f":"IF('TSA Input'!J694=\"\",\"\",IF(OR('TSA Input'!J694=\"Yes\",'TSA Input'!J694=\"Contingent\"),'TSA Input'!D694,\"\"))","v":""},{"$f":"IF('TSA Input'!J694=\"\",\"\",IF(OR('TSA Input'!J694=\"Yes\",'TSA Input'!J694=\"Contingent\"),'TSA Input'!G694,\"\"))","v":""},{"$f":"IF('TSA Input'!J694=\"\",\"\",IF(OR('TSA Input'!J694=\"Yes\",'TSA Input'!J694=\"Contingent\"),'TSA Input'!F694,\"\"))","v":""},"","Required","Required"]
["",null,{"$f":"IF('TSA Input'!J695=\"\",\"\",IF(OR('TSA Input'!J695=\"Yes\",'TSA Input'!J695=\"Contingent\"),'TSA Input'!B695,\"Ineligible\"))","v":""},{"$f":"IF('TSA Input'!J695=\"\",\"\",IF(OR('TSA Input'!J695=\"Yes\",'TSA Input'!J695=\"Contingent\"),'TSA Input'!I695,\"\"))","v":""},{"$f":"IF('TSA Input'!J695=\"\",\"\",IF(OR('TSA Input'!J695=\"Yes\",'TSA Input'!J695=\"Contingent\"),'TSA Input'!C695,\"\"))","v":""},{"$f":"IF('TSA Input'!J695=\"\",\"\",IF(OR('TSA Input'!J695=\"Yes\",'TSA Input'!J695=\"Contingent\"),'TSA Input'!D695,\"\"))","v":""},{"$f":"IF('TSA Input'!J695=\"\",\"\",IF(OR('TSA Input'!J695=\"Yes\",'TSA Input'!J695=\"Contingent\"),'TSA Input'!G695,\"\"))","v":""},{"$f":"IF('TSA Input'!J695=\"\",\"\",IF(OR('TSA Input'!J695=\"Yes\",'TSA Input'!J695=\"Contingent\"),'TSA Input'!F695,\"\"))","v":""},"",{"$f":"IF('TSA Input'!J695=\"\",\"\",IF(OR('TSA Input'!J695=\"Yes\",'TSA Input'!J695=\"Contingent\"),'TSA Input'!D695,\"\"))","v":""},{"$f":"IF('TSA Input'!J695=\"\",\"\",IF(OR('TSA Input'!J695=\"Yes\",'TSA Input'!J695=\"Contingent\"),'TSA Input'!G695,\"\"))","v":""},{"$f":"IF('TSA Input'!J695=\"\",\"\",IF(OR('TSA Input'!J695=\"Yes\",'TSA Input'!J695=\"Contingent\"),'TSA Input'!F695,\"\"))","v":""},"","Required","Required"]
["",null,{"$f":"IF('TSA Input'!J696=\"\",\"\",IF(OR('TSA Input'!J696=\"Yes\",'TSA Input'!J696=\"Contingent\"),'TSA Input'!B696,\"Ineligible\"))","v":""},{"$f":"IF('TSA Input'!J696=\"\",\"\",IF(OR('TSA Input'!J696=\"Yes\",'TSA Input'!J696=\"Contingent\"),'TSA Input'!I696,\"\"))","v":""},{"$f":"IF('TSA Input'!J696=\"\",\"\",IF(OR('TSA Input'!J696=\"Yes\",'TSA Input'!J696=\"Contingent\"),'TSA Input'!C696,\"\"))","v":""},{"$f":"IF('TSA Input'!J696=\"\",\"\",IF(OR('TSA Input'!J696=\"Yes\",'TSA Input'!J696=\"Contingent\"),'TSA Input'!D696,\"\"))","v":""},{"$f":"IF('TSA Input'!J696=\"\",\"\",IF(OR('TSA Input'!J696=\"Yes\",'TSA Input'!J696=\"Contingent\"),'TSA Input'!G696,\"\"))","v":""},{"$f":"IF('TSA Input'!J696=\"\",\"\",IF(OR('TSA Input'!J696=\"Yes\",'TSA Input'!J696=\"Contingent\"),'TSA Input'!F696,\"\"))","v":""},"",{"$f":"IF('TSA Input'!J696=\"\",\"\",IF(OR('TSA Input'!J696=\"Yes\",'TSA Input'!J696=\"Contingent\"),'TSA Input'!D696,\"\"))","v":""},{"$f":"IF('TSA Input'!J696=\"\",\"\",IF(OR('TSA Input'!J696=\"Yes\",'TSA Input'!J696=\"Contingent\"),'TSA Input'!G696,\"\"))","v":""},{"$f":"IF('TSA Input'!J696=\"\",\"\",IF(OR('TSA Input'!J696=\"Yes\",'TSA Input'!J696=\"Contingent\"),'TSA Input'!F696,\"\"))","v":""},"","Required","Required"]
["",null,{"$f":"IF('TSA Input'!J697=\"\",\"\",IF(OR('TSA Input'!J697=\"Yes\",'TSA Input'!J697=\"Contingent\"),'TSA Input'!B697,\"Ineligible\"))","v":""},{"$f":"IF('TSA Input'!J697=\"\",\"\",IF(OR('TSA Input'!J697=\"Yes\",'TSA Input'!J697=\"Contingent\"),'TSA Input'!I697,\"\"))","v":""},{"$f":"IF('TSA Input'!J697=\"\",\"\",IF(OR('TSA Input'!J697=\"Yes\",'TSA Input'!J697=\"Contingent\"),'TSA Input'!C697,\"\"))","v":""},{"$f":"IF('TSA Input'!J697=\"\",\"\",IF(OR('TSA Input'!J697=\"Yes\",'TSA Input'!J697=\"Contingent\"),'TSA Input'!D697,\"\"))","v":""},{"$f":"IF('TSA Input'!J697=\"\",\"\",IF(OR('TSA Input'!J697=\"Yes\",'TSA Input'!J697=\"Contingent\"),'TSA Input'!G697,\"\"))","v":""},{"$f":"IF('TSA Input'!J697=\"\",\"\",IF(OR('TSA Input'!J697=\"Yes\",'TSA Input'!J697=\"Contingent\"),'TSA Input'!F697,\"\"))","v":""},"",{"$f":"IF('TSA Input'!J697=\"\",\"\",IF(OR('TSA Input'!J697=\"Yes\",'TSA Input'!J697=\"Contingent\"),'TSA Input'!D697,\"\"))","v":""},{"$f":"IF('TSA Input'!J697=\"\",\"\",IF(OR('TSA Input'!J697=\"Yes\",'TSA Input'!J697=\"Contingent\"),'TSA Input'!G697,\"\"))","v":""},{"$f":"IF('TSA Input'!J697=\"\",\"\",IF(OR('TSA Input'!J697=\"Yes\",'TSA Input'!J697=\"Contingent\"),'TSA Input'!F697,\"\"))","v":""},"","Required","Required"]
["",null,{"$f":"IF('TSA Input'!J698=\"\",\"\",IF(OR('TSA Input'!J698=\"Yes\",'TSA Input'!J698=\"Contingent\"),'TSA Input'!B698,\"Ineligible\"))","v":""},{"$f":"IF('TSA Input'!J698=\"\",\"\",IF(OR('TSA Input'!J698=\"Yes\",'TSA Input'!J698=\"Contingent\"),'TSA Input'!I698,\"\"))","v":""},{"$f":"IF('TSA Input'!J698=\"\",\"\",IF(OR('TSA Input'!J698=\"Yes\",'TSA Input'!J698=\"Contingent\"),'TSA Input'!C698,\"\"))","v":""},{"$f":"IF('TSA Input'!J698=\"\",\"\",IF(OR('TSA Input'!J698=\"Yes\",'TSA Input'!J698=\"Contingent\"),'TSA Input'!D698,\"\"))","v":""},{"$f":"IF('TSA Input'!J698=\"\",\"\",IF(OR('TSA Input'!J698=\"Yes\",'TSA Input'!J698=\"Contingent\"),'TSA Input'!G698,\"\"))","v":""},{"$f":"IF('TSA Input'!J698=\"\",\"\",IF(OR('TSA Input'!J698=\"Yes\",'TSA Input'!J698=\"Contingent\"),'TSA Input'!F698,\"\"))","v":""},"",{"$f":"IF('TSA Input'!J698=\"\",\"\",IF(OR('TSA Input'!J698=\"Yes\",'TSA Input'!J698=\"Contingent\"),'TSA Input'!D698,\"\"))","v":""},{"$f":"IF('TSA Input'!J698=\"\",\"\",IF(OR('TSA Input'!J698=\"Yes\",'TSA Input'!J698=\"Contingent\"),'TSA Input'!G698,\"\"))","v":""},{"$f":"IF('TSA Input'!J698=\"\",\"\",IF(OR('TSA Input'!J698=\"Yes\",'TSA Input'!J698=\"Contingent\"),'TSA Input'!F698,\"\"))","v":""},"","Required","Required"]
["",null,{"$f":"IF('TSA Input'!J699=\"\",\"\",IF(OR('TSA Input'!J699=\"Yes\",'TSA Input'!J699=\"Contingent\"),'TSA Input'!B699,\"Ineligible\"))","v":""},{"$f":"IF('TSA Input'!J699=\"\",\"\",IF(OR('TSA Input'!J699=\"Yes\",'TSA Input'!J699=\"Contingent\"),'TSA Input'!I699,\"\"))","v":""},{"$f":"IF('TSA Input'!J699=\"\",\"\",IF(OR('TSA Input'!J699=\"Yes\",'TSA Input'!J699=\"Contingent\"),'TSA Input'!C699,\"\"))","v":""},{"$f":"IF('TSA Input'!J699=\"\",\"\",IF(OR('TSA Input'!J699=\"Yes\",'TSA Input'!J699=\"Contingent\"),'TSA Input'!D699,\"\"))","v":""},{"$f":"IF('TSA Input'!J699=\"\",\"\",IF(OR('TSA Input'!J699=\"Yes\",'TSA Input'!J699=\"Contingent\"),'TSA Input'!G699,\"\"))","v":""},{"$f":"IF('TSA Input'!J699=\"\",\"\",IF(OR('TSA Input'!J699=\"Yes\",'TSA Input'!J699=\"Contingent\"),'TSA Input'!F699,\"\"))","v":""},"",{"$f":"IF('TSA Input'!J699=\"\",\"\",IF(OR('TSA Input'!J699=\"Yes\",'TSA Input'!J699=\"Contingent\"),'TSA Input'!D699,\"\"))","v":""},{"$f":"IF('TSA Input'!J699=\"\",\"\",IF(OR('TSA Input'!J699=\"Yes\",'TSA Input'!J699=\"Contingent\"),'TSA Input'!G699,\"\"))","v":""},{"$f":"IF('TSA Input'!J699=\"\",\"\",IF(OR('TSA Input'!J699=\"Yes\",'TSA Input'!J699=\"Contingent\"),'TSA Input'!F699,\"\"))","v":""},"","Required","Required"]
["",null,{"$f":"IF('TSA Input'!J700=\"\",\"\",IF(OR('TSA Input'!J700=\"Yes\",'TSA Input'!J700=\"Contingent\"),'TSA Input'!B700,\"Ineligible\"))","v":""},{"$f":"IF('TSA Input'!J700=\"\",\"\",IF(OR('TSA Input'!J700=\"Yes\",'TSA Input'!J700=\"Contingent\"),'TSA Input'!I700,\"\"))","v":""},{"$f":"IF('TSA Input'!J700=\"\",\"\",IF(OR('TSA Input'!J700=\"Yes\",'TSA Input'!J700=\"Contingent\"),'TSA Input'!C700,\"\"))","v":""},{"$f":"IF('TSA Input'!J700=\"\",\"\",IF(OR('TSA Input'!J700=\"Yes\",'TSA Input'!J700=\"Contingent\"),'TSA Input'!D700,\"\"))","v":""},{"$f":"IF('TSA Input'!J700=\"\",\"\",IF(OR('TSA Input'!J700=\"Yes\",'TSA Input'!J700=\"Contingent\"),'TSA Input'!G700,\"\"))","v":""},{"$f":"IF('TSA Input'!J700=\"\",\"\",IF(OR('TSA Input'!J700=\"Yes\",'TSA Input'!J700=\"Contingent\"),'TSA Input'!F700,\"\"))","v":""},"",{"$f":"IF('TSA Input'!J700=\"\",\"\",IF(OR('TSA Input'!J700=\"Yes\",'TSA Input'!J700=\"Contingent\"),'TSA Input'!D700,\"\"))","v":""},{"$f":"IF('TSA Input'!J700=\"\",\"\",IF(OR('TSA Input'!J700=\"Yes\",'TSA Input'!J700=\"Contingent\"),'TSA Input'!G700,\"\"))","v":""},{"$f":"IF('TSA Input'!J700=\"\",\"\",IF(OR('TSA Input'!J700=\"Yes\",'TSA Input'!J700=\"Contingent\"),'TSA Input'!F700,\"\"))","v":""},"","Required","Required"]
["",null,{"$f":"IF('TSA Input'!J701=\"\",\"\",IF(OR('TSA Input'!J701=\"Yes\",'TSA Input'!J701=\"Contingent\"),'TSA Input'!B701,\"Ineligible\"))","v":""},{"$f":"IF('TSA Input'!J701=\"\",\"\",IF(OR('TSA Input'!J701=\"Yes\",'TSA Input'!J701=\"Contingent\"),'TSA Input'!I701,\"\"))","v":""},{"$f":"IF('TSA Input'!J701=\"\",\"\",IF(OR('TSA Input'!J701=\"Yes\",'TSA Input'!J701=\"Contingent\"),'TSA Input'!C701,\"\"))","v":""},{"$f":"IF('TSA Input'!J701=\"\",\"\",IF(OR('TSA Input'!J701=\"Yes\",'TSA Input'!J701=\"Contingent\"),'TSA Input'!D701,\"\"))","v":""},{"$f":"IF('TSA Input'!J701=\"\",\"\",IF(OR('TSA Input'!J701=\"Yes\",'TSA Input'!J701=\"Contingent\"),'TSA Input'!G701,\"\"))","v":""},{"$f":"IF('TSA Input'!J701=\"\",\"\",IF(OR('TSA Input'!J701=\"Yes\",'TSA Input'!J701=\"Contingent\"),'TSA Input'!F701,\"\"))","v":""},"",{"$f":"IF('TSA Input'!J701=\"\",\"\",IF(OR('TSA Input'!J701=\"Yes\",'TSA Input'!J701=\"Contingent\"),'TSA Input'!D701,\"\"))","v":""},{"$f":"IF('TSA Input'!J701=\"\",\"\",IF(OR('TSA Input'!J701=\"Yes\",'TSA Input'!J701=\"Contingent\"),'TSA Input'!G701,\"\"))","v":""},{"$f":"IF('TSA Input'!J701=\"\",\"\",IF(OR('TSA Input'!J701=\"Yes\",'TSA Input'!J701=\"Contingent\"),'TSA Input'!F701,\"\"))","v":""},"","Required","Required"]
["",null,{"$f":"IF('TSA Input'!J702=\"\",\"\",IF(OR('TSA Input'!J702=\"Yes\",'TSA Input'!J702=\"Contingent\"),'TSA Input'!B702,\"Ineligible\"))","v":""},{"$f":"IF('TSA Input'!J702=\"\",\"\",IF(OR('TSA Input'!J702=\"Yes\",'TSA Input'!J702=\"Contingent\"),'TSA Input'!I702,\"\"))","v":""},{"$f":"IF('TSA Input'!J702=\"\",\"\",IF(OR('TSA Input'!J702=\"Yes\",'TSA Input'!J702=\"Contingent\"),'TSA Input'!C702,\"\"))","v":""},{"$f":"IF('TSA Input'!J702=\"\",\"\",IF(OR('TSA Input'!J702=\"Yes\",'TSA Input'!J702=\"Contingent\"),'TSA Input'!D702,\"\"))","v":""},{"$f":"IF('TSA Input'!J702=\"\",\"\",IF(OR('TSA Input'!J702=\"Yes\",'TSA Input'!J702=\"Contingent\"),'TSA Input'!G702,\"\"))","v":""},{"$f":"IF('TSA Input'!J702=\"\",\"\",IF(OR('TSA Input'!J702=\"Yes\",'TSA Input'!J702=\"Contingent\"),'TSA Input'!F702,\"\"))","v":""},"",{"$f":"IF('TSA Input'!J702=\"\",\"\",IF(OR('TSA Input'!J702=\"Yes\",'TSA Input'!J702=\"Contingent\"),'TSA Input'!D702,\"\"))","v":""},{"$f":"IF('TSA Input'!J702=\"\",\"\",IF(OR('TSA Input'!J702=\"Yes\",'TSA Input'!J702=\"Contingent\"),'TSA Input'!G702,\"\"))","v":""},{"$f":"IF('TSA Input'!J702=\"\",\"\",IF(OR('TSA Input'!J702=\"Yes\",'TSA Input'!J702=\"Contingent\"),'TSA Input'!F702,\"\"))","v":""},"","Required","Required"]
["",null,{"$f":"IF('TSA Input'!J703=\"\",\"\",IF(OR('TSA Input'!J703=\"Yes\",'TSA Input'!J703=\"Contingent\"),'TSA Input'!B703,\"Ineligible\"))","v":""},{"$f":"IF('TSA Input'!J703=\"\",\"\",IF(OR('TSA Input'!J703=\"Yes\",'TSA Input'!J703=\"Contingent\"),'TSA Input'!I703,\"\"))","v":""},{"$f":"IF('TSA Input'!J703=\"\",\"\",IF(OR('TSA Input'!J703=\"Yes\",'TSA Input'!J703=\"Contingent\"),'TSA Input'!C703,\"\"))","v":""},{"$f":"IF('TSA Input'!J703=\"\",\"\",IF(OR('TSA Input'!J703=\"Yes\",'TSA Input'!J703=\"Contingent\"),'TSA Input'!D703,\"\"))","v":""},{"$f":"IF('TSA Input'!J703=\"\",\"\",IF(OR('TSA Input'!J703=\"Yes\",'TSA Input'!J703=\"Contingent\"),'TSA Input'!G703,\"\"))","v":""},{"$f":"IF('TSA Input'!J703=\"\",\"\",IF(OR('TSA Input'!J703=\"Yes\",'TSA Input'!J703=\"Contingent\"),'TSA Input'!F703,\"\"))","v":""},"",{"$f":"IF('TSA Input'!J703=\"\",\"\",IF(OR('TSA Input'!J703=\"Yes\",'TSA Input'!J703=\"Contingent\"),'TSA Input'!D703,\"\"))","v":""},{"$f":"IF('TSA Input'!J703=\"\",\"\",IF(OR('TSA Input'!J703=\"Yes\",'TSA Input'!J703=\"Contingent\"),'TSA Input'!G703,\"\"))","v":""},{"$f":"IF('TSA Input'!J703=\"\",\"\",IF(OR('TSA Input'!J703=\"Yes\",'TSA Input'!J703=\"Contingent\"),'TSA Input'!F703,\"\"))","v":""},"","Required","Required"]
["",null,{"$f":"IF('TSA Input'!J704=\"\",\"\",IF(OR('TSA Input'!J704=\"Yes\",'TSA Input'!J704=\"Contingent\"),'TSA Input'!B704,\"Ineligible\"))","v":""},{"$f":"IF('TSA Input'!J704=\"\",\"\",IF(OR('TSA Input'!J704=\"Yes\",'TSA Input'!J704=\"Contingent\"),'TSA Input'!I704,\"\"))","v":""},{"$f":"IF('TSA Input'!J704=\"\",\"\",IF(OR('TSA Input'!J704=\"Yes\",'TSA Input'!J704=\"Contingent\"),'TSA Input'!C704,\"\"))","v":""},{"$f":"IF('TSA Input'!J704=\"\",\"\",IF(OR('TSA Input'!J704=\"Yes\",'TSA Input'!J704=\"Contingent\"),'TSA Input'!D704,\"\"))","v":""},{"$f":"IF('TSA Input'!J704=\"\",\"\",IF(OR('TSA Input'!J704=\"Yes\",'TSA Input'!J704=\"Contingent\"),'TSA Input'!G704,\"\"))","v":""},{"$f":"IF('TSA Input'!J704=\"\",\"\",IF(OR('TSA Input'!J704=\"Yes\",'TSA Input'!J704=\"Contingent\"),'TSA Input'!F704,\"\"))","v":""},"",{"$f":"IF('TSA Input'!J704=\"\",\"\",IF(OR('TSA Input'!J704=\"Yes\",'TSA Input'!J704=\"Contingent\"),'TSA Input'!D704,\"\"))","v":""},{"$f":"IF('TSA Input'!J704=\"\",\"\",IF(OR('TSA Input'!J704=\"Yes\",'TSA Input'!J704=\"Contingent\"),'TSA Input'!G704,\"\"))","v":""},{"$f":"IF('TSA Input'!J704=\"\",\"\",IF(OR('TSA Input'!J704=\"Yes\",'TSA Input'!J704=\"Contingent\"),'TSA Input'!F704,\"\"))","v":""},"","Required","Required"]
["",null,{"$f":"IF('TSA Input'!J705=\"\",\"\",IF(OR('TSA Input'!J705=\"Yes\",'TSA Input'!J705=\"Contingent\"),'TSA Input'!B705,\"Ineligible\"))","v":""},{"$f":"IF('TSA Input'!J705=\"\",\"\",IF(OR('TSA Input'!J705=\"Yes\",'TSA Input'!J705=\"Contingent\"),'TSA Input'!I705,\"\"))","v":""},{"$f":"IF('TSA Input'!J705=\"\",\"\",IF(OR('TSA Input'!J705=\"Yes\",'TSA Input'!J705=\"Contingent\"),'TSA Input'!C705,\"\"))","v":""},{"$f":"IF('TSA Input'!J705=\"\",\"\",IF(OR('TSA Input'!J705=\"Yes\",'TSA Input'!J705=\"Contingent\"),'TSA Input'!D705,\"\"))","v":""},{"$f":"IF('TSA Input'!J705=\"\",\"\",IF(OR('TSA Input'!J705=\"Yes\",'TSA Input'!J705=\"Contingent\"),'TSA Input'!G705,\"\"))","v":""},{"$f":"IF('TSA Input'!J705=\"\",\"\",IF(OR('TSA Input'!J705=\"Yes\",'TSA Input'!J705=\"Contingent\"),'TSA Input'!F705,\"\"))","v":""},"",{"$f":"IF('TSA Input'!J705=\"\",\"\",IF(OR('TSA Input'!J705=\"Yes\",'TSA Input'!J705=\"Contingent\"),'TSA Input'!D705,\"\"))","v":""},{"$f":"IF('TSA Input'!J705=\"\",\"\",IF(OR('TSA Input'!J705=\"Yes\",'TSA Input'!J705=\"Contingent\"),'TSA Input'!G705,\"\"))","v":""},{"$f":"IF('TSA Input'!J705=\"\",\"\",IF(OR('TSA Input'!J705=\"Yes\",'TSA Input'!J705=\"Contingent\"),'TSA Input'!F705,\"\"))","v":""},"","Required","Required"]
["",null,{"$f":"IF('TSA Input'!J706=\"\",\"\",IF(OR('TSA Input'!J706=\"Yes\",'TSA Input'!J706=\"Contingent\"),'TSA Input'!B706,\"Ineligible\"))","v":""},{"$f":"IF('TSA Input'!J706=\"\",\"\",IF(OR('TSA Input'!J706=\"Yes\",'TSA Input'!J706=\"Contingent\"),'TSA Input'!I706,\"\"))","v":""},{"$f":"IF('TSA Input'!J706=\"\",\"\",IF(OR('TSA Input'!J706=\"Yes\",'TSA Input'!J706=\"Contingent\"),'TSA Input'!C706,\"\"))","v":""},{"$f":"IF('TSA Input'!J706=\"\",\"\",IF(OR('TSA Input'!J706=\"Yes\",'TSA Input'!J706=\"Contingent\"),'TSA Input'!D706,\"\"))","v":""},{"$f":"IF('TSA Input'!J706=\"\",\"\",IF(OR('TSA Input'!J706=\"Yes\",'TSA Input'!J706=\"Contingent\"),'TSA Input'!G706,\"\"))","v":""},{"$f":"IF('TSA Input'!J706=\"\",\"\",IF(OR('TSA Input'!J706=\"Yes\",'TSA Input'!J706=\"Contingent\"),'TSA Input'!F706,\"\"))","v":""},"",{"$f":"IF('TSA Input'!J706=\"\",\"\",IF(OR('TSA Input'!J706=\"Yes\",'TSA Input'!J706=\"Contingent\"),'TSA Input'!D706,\"\"))","v":""},{"$f":"IF('TSA Input'!J706=\"\",\"\",IF(OR('TSA Input'!J706=\"Yes\",'TSA Input'!J706=\"Contingent\"),'TSA Input'!G706,\"\"))","v":""},{"$f":"IF('TSA Input'!J706=\"\",\"\",IF(OR('TSA Input'!J706=\"Yes\",'TSA Input'!J706=\"Contingent\"),'TSA Input'!F706,\"\"))","v":""},"","Required","Required"]
["",null,{"$f":"IF('TSA Input'!J707=\"\",\"\",IF(OR('TSA Input'!J707=\"Yes\",'TSA Input'!J707=\"Contingent\"),'TSA Input'!B707,\"Ineligible\"))","v":""},{"$f":"IF('TSA Input'!J707=\"\",\"\",IF(OR('TSA Input'!J707=\"Yes\",'TSA Input'!J707=\"Contingent\"),'TSA Input'!I707,\"\"))","v":""},{"$f":"IF('TSA Input'!J707=\"\",\"\",IF(OR('TSA Input'!J707=\"Yes\",'TSA Input'!J707=\"Contingent\"),'TSA Input'!C707,\"\"))","v":""},{"$f":"IF('TSA Input'!J707=\"\",\"\",IF(OR('TSA Input'!J707=\"Yes\",'TSA Input'!J707=\"Contingent\"),'TSA Input'!D707,\"\"))","v":""},{"$f":"IF('TSA Input'!J707=\"\",\"\",IF(OR('TSA Input'!J707=\"Yes\",'TSA Input'!J707=\"Contingent\"),'TSA Input'!G707,\"\"))","v":""},{"$f":"IF('TSA Input'!J707=\"\",\"\",IF(OR('TSA Input'!J707=\"Yes\",'TSA Input'!J707=\"Contingent\"),'TSA Input'!F707,\"\"))","v":""},"",{"$f":"IF('TSA Input'!J707=\"\",\"\",IF(OR('TSA Input'!J707=\"Yes\",'TSA Input'!J707=\"Contingent\"),'TSA Input'!D707,\"\"))","v":""},{"$f":"IF('TSA Input'!J707=\"\",\"\",IF(OR('TSA Input'!J707=\"Yes\",'TSA Input'!J707=\"Contingent\"),'TSA Input'!G707,\"\"))","v":""},{"$f":"IF('TSA Input'!J707=\"\",\"\",IF(OR('TSA Input'!J707=\"Yes\",'TSA Input'!J707=\"Contingent\"),'TSA Input'!F707,\"\"))","v":""},"","Required","Required"]
["",null,{"$f":"IF('TSA Input'!J708=\"\",\"\",IF(OR('TSA Input'!J708=\"Yes\",'TSA Input'!J708=\"Contingent\"),'TSA Input'!B708,\"Ineligible\"))","v":""},{"$f":"IF('TSA Input'!J708=\"\",\"\",IF(OR('TSA Input'!J708=\"Yes\",'TSA Input'!J708=\"Contingent\"),'TSA Input'!I708,\"\"))","v":""},{"$f":"IF('TSA Input'!J708=\"\",\"\",IF(OR('TSA Input'!J708=\"Yes\",'TSA Input'!J708=\"Contingent\"),'TSA Input'!C708,\"\"))","v":""},{"$f":"IF('TSA Input'!J708=\"\",\"\",IF(OR('TSA Input'!J708=\"Yes\",'TSA Input'!J708=\"Contingent\"),'TSA Input'!D708,\"\"))","v":""},{"$f":"IF('TSA Input'!J708=\"\",\"\",IF(OR('TSA Input'!J708=\"Yes\",'TSA Input'!J708=\"Contingent\"),'TSA Input'!G708,\"\"))","v":""},{"$f":"IF('TSA Input'!J708=\"\",\"\",IF(OR('TSA Input'!J708=\"Yes\",'TSA Input'!J708=\"Contingent\"),'TSA Input'!F708,\"\"))","v":""},{"$f":"IF($C746=\"\",\"\",SUM(F746:H746))","v":""},{"$f":"IF('TSA Input'!J708=\"\",\"\",IF(OR('TSA Input'!J708=\"Yes\",'TSA Input'!J708=\"Contingent\"),'TSA Input'!D708,\"\"))","v":""},{"$f":"IF('TSA Input'!J708=\"\",\"\",IF(OR('TSA Input'!J708=\"Yes\",'TSA Input'!J708=\"Contingent\"),'TSA Input'!G708,\"\"))","v":""},{"$f":"IF('TSA Input'!J708=\"\",\"\",IF(OR('TSA Input'!J708=\"Yes\",'TSA Input'!J708=\"Contingent\"),'TSA Input'!F708,\"\"))","v":""},{"$f":"IF($C746=\"\",\"\",SUM(J746:L746))","v":""},"Required","Required"]
["",null,{"$f":"IF('TSA Input'!J709=\"\",\"\",IF(OR('TSA Input'!J709=\"Yes\",'TSA Input'!J709=\"Contingent\"),'TSA Input'!B709,\"Ineligible\"))","v":""},{"$f":"IF('TSA Input'!J709=\"\",\"\",IF(OR('TSA Input'!J709=\"Yes\",'TSA Input'!J709=\"Contingent\"),'TSA Input'!I709,\"\"))","v":""},{"$f":"IF('TSA Input'!J709=\"\",\"\",IF(OR('TSA Input'!J709=\"Yes\",'TSA Input'!J709=\"Contingent\"),'TSA Input'!C709,\"\"))","v":""},{"$f":"IF('TSA Input'!J709=\"\",\"\",IF(OR('TSA Input'!J709=\"Yes\",'TSA Input'!J709=\"Contingent\"),'TSA Input'!D709,\"\"))","v":""},{"$f":"IF('TSA Input'!J709=\"\",\"\",IF(OR('TSA Input'!J709=\"Yes\",'TSA Input'!J709=\"Contingent\"),'TSA Input'!G709,\"\"))","v":""},{"$f":"IF('TSA Input'!J709=\"\",\"\",IF(OR('TSA Input'!J709=\"Yes\",'TSA Input'!J709=\"Contingent\"),'TSA Input'!F709,\"\"))","v":""},"",{"$f":"IF('TSA Input'!J709=\"\",\"\",IF(OR('TSA Input'!J709=\"Yes\",'TSA Input'!J709=\"Contingent\"),'TSA Input'!D709,\"\"))","v":""},{"$f":"IF('TSA Input'!J709=\"\",\"\",IF(OR('TSA Input'!J709=\"Yes\",'TSA Input'!J709=\"Contingent\"),'TSA Input'!G709,\"\"))","v":""},{"$f":"IF('TSA Input'!J709=\"\",\"\",IF(OR('TSA Input'!J709=\"Yes\",'TSA Input'!J709=\"Contingent\"),'TSA Input'!F709,\"\"))","v":""},"","Required","Required"]
["",null,{"$f":"IF('TSA Input'!J710=\"\",\"\",IF(OR('TSA Input'!J710=\"Yes\",'TSA Input'!J710=\"Contingent\"),'TSA Input'!B710,\"Ineligible\"))","v":""},{"$f":"IF('TSA Input'!J710=\"\",\"\",IF(OR('TSA Input'!J710=\"Yes\",'TSA Input'!J710=\"Contingent\"),'TSA Input'!I710,\"\"))","v":""},{"$f":"IF('TSA Input'!J710=\"\",\"\",IF(OR('TSA Input'!J710=\"Yes\",'TSA Input'!J710=\"Contingent\"),'TSA Input'!C710,\"\"))","v":""},{"$f":"IF('TSA Input'!J710=\"\",\"\",IF(OR('TSA Input'!J710=\"Yes\",'TSA Input'!J710=\"Contingent\"),'TSA Input'!D710,\"\"))","v":""},{"$f":"IF('TSA Input'!J710=\"\",\"\",IF(OR('TSA Input'!J710=\"Yes\",'TSA Input'!J710=\"Contingent\"),'TSA Input'!G710,\"\"))","v":""},{"$f":"IF('TSA Input'!J710=\"\",\"\",IF(OR('TSA Input'!J710=\"Yes\",'TSA Input'!J710=\"Contingent\"),'TSA Input'!F710,\"\"))","v":""},"",{"$f":"IF('TSA Input'!J710=\"\",\"\",IF(OR('TSA Input'!J710=\"Yes\",'TSA Input'!J710=\"Contingent\"),'TSA Input'!D710,\"\"))","v":""},{"$f":"IF('TSA Input'!J710=\"\",\"\",IF(OR('TSA Input'!J710=\"Yes\",'TSA Input'!J710=\"Contingent\"),'TSA Input'!G710,\"\"))","v":""},{"$f":"IF('TSA Input'!J710=\"\",\"\",IF(OR('TSA Input'!J710=\"Yes\",'TSA Input'!J710=\"Contingent\"),'TSA Input'!F710,\"\"))","v":""},"","Required","Required"]
["",null,{"$f":"IF('TSA Input'!J711=\"\",\"\",IF(OR('TSA Input'!J711=\"Yes\",'TSA Input'!J711=\"Contingent\"),'TSA Input'!B711,\"Ineligible\"))","v":""},{"$f":"IF('TSA Input'!J711=\"\",\"\",IF(OR('TSA Input'!J711=\"Yes\",'TSA Input'!J711=\"Contingent\"),'TSA Input'!I711,\"\"))","v":""},{"$f":"IF('TSA Input'!J711=\"\",\"\",IF(OR('TSA Input'!J711=\"Yes\",'TSA Input'!J711=\"Contingent\"),'TSA Input'!C711,\"\"))","v":""},{"$f":"IF('TSA Input'!J711=\"\",\"\",IF(OR('TSA Input'!J711=\"Yes\",'TSA Input'!J711=\"Contingent\"),'TSA Input'!D711,\"\"))","v":""},{"$f":"IF('TSA Input'!J711=\"\",\"\",IF(OR('TSA Input'!J711=\"Yes\",'TSA Input'!J711=\"Contingent\"),'TSA Input'!G711,\"\"))","v":""},{"$f":"IF('TSA Input'!J711=\"\",\"\",IF(OR('TSA Input'!J711=\"Yes\",'TSA Input'!J711=\"Contingent\"),'TSA Input'!F711,\"\"))","v":""},"",{"$f":"IF('TSA Input'!J711=\"\",\"\",IF(OR('TSA Input'!J711=\"Yes\",'TSA Input'!J711=\"Contingent\"),'TSA Input'!D711,\"\"))","v":""},{"$f":"IF('TSA Input'!J711=\"\",\"\",IF(OR('TSA Input'!J711=\"Yes\",'TSA Input'!J711=\"Contingent\"),'TSA Input'!G711,\"\"))","v":""},{"$f":"IF('TSA Input'!J711=\"\",\"\",IF(OR('TSA Input'!J711=\"Yes\",'TSA Input'!J711=\"Contingent\"),'TSA Input'!F711,\"\"))","v":""},"","Required","Required"]
["",null,{"$f":"IF('TSA Input'!J712=\"\",\"\",IF(OR('TSA Input'!J712=\"Yes\",'TSA Input'!J712=\"Contingent\"),'TSA Input'!B712,\"Ineligible\"))","v":""},{"$f":"IF('TSA Input'!J712=\"\",\"\",IF(OR('TSA Input'!J712=\"Yes\",'TSA Input'!J712=\"Contingent\"),'TSA Input'!I712,\"\"))","v":""},{"$f":"IF('TSA Input'!J712=\"\",\"\",IF(OR('TSA Input'!J712=\"Yes\",'TSA Input'!J712=\"Contingent\"),'TSA Input'!C712,\"\"))","v":""},{"$f":"IF('TSA Input'!J712=\"\",\"\",IF(OR('TSA Input'!J712=\"Yes\",'TSA Input'!J712=\"Contingent\"),'TSA Input'!D712,\"\"))","v":""},{"$f":"IF('TSA Input'!J712=\"\",\"\",IF(OR('TSA Input'!J712=\"Yes\",'TSA Input'!J712=\"Contingent\"),'TSA Input'!G712,\"\"))","v":""},{"$f":"IF('TSA Input'!J712=\"\",\"\",IF(OR('TSA Input'!J712=\"Yes\",'TSA Input'!J712=\"Contingent\"),'TSA Input'!F712,\"\"))","v":""},"",{"$f":"IF('TSA Input'!J712=\"\",\"\",IF(OR('TSA Input'!J712=\"Yes\",'TSA Input'!J712=\"Contingent\"),'TSA Input'!D712,\"\"))","v":""},{"$f":"IF('TSA Input'!J712=\"\",\"\",IF(OR('TSA Input'!J712=\"Yes\",'TSA Input'!J712=\"Contingent\"),'TSA Input'!G712,\"\"))","v":""},{"$f":"IF('TSA Input'!J712=\"\",\"\",IF(OR('TSA Input'!J712=\"Yes\",'TSA Input'!J712=\"Contingent\"),'TSA Input'!F712,\"\"))","v":""},"","Required","Required"]
["",null,{"$f":"IF('TSA Input'!J713=\"\",\"\",IF(OR('TSA Input'!J713=\"Yes\",'TSA Input'!J713=\"Contingent\"),'TSA Input'!B713,\"Ineligible\"))","v":""},{"$f":"IF('TSA Input'!J713=\"\",\"\",IF(OR('TSA Input'!J713=\"Yes\",'TSA Input'!J713=\"Contingent\"),'TSA Input'!I713,\"\"))","v":""},{"$f":"IF('TSA Input'!J713=\"\",\"\",IF(OR('TSA Input'!J713=\"Yes\",'TSA Input'!J713=\"Contingent\"),'TSA Input'!C713,\"\"))","v":""},{"$f":"IF('TSA Input'!J713=\"\",\"\",IF(OR('TSA Input'!J713=\"Yes\",'TSA Input'!J713=\"Contingent\"),'TSA Input'!D713,\"\"))","v":""},{"$f":"IF('TSA Input'!J713=\"\",\"\",IF(OR('TSA Input'!J713=\"Yes\",'TSA Input'!J713=\"Contingent\"),'TSA Input'!G713,\"\"))","v":""},{"$f":"IF('TSA Input'!J713=\"\",\"\",IF(OR('TSA Input'!J713=\"Yes\",'TSA Input'!J713=\"Contingent\"),'TSA Input'!F713,\"\"))","v":""},"",{"$f":"IF('TSA Input'!J713=\"\",\"\",IF(OR('TSA Input'!J713=\"Yes\",'TSA Input'!J713=\"Contingent\"),'TSA Input'!D713,\"\"))","v":""},{"$f":"IF('TSA Input'!J713=\"\",\"\",IF(OR('TSA Input'!J713=\"Yes\",'TSA Input'!J713=\"Contingent\"),'TSA Input'!G713,\"\"))","v":""},{"$f":"IF('TSA Input'!J713=\"\",\"\",IF(OR('TSA Input'!J713=\"Yes\",'TSA Input'!J713=\"Contingent\"),'TSA Input'!F713,\"\"))","v":""},"","Required","Required"]
["",null,{"$f":"IF('TSA Input'!J714=\"\",\"\",IF(OR('TSA Input'!J714=\"Yes\",'TSA Input'!J714=\"Contingent\"),'TSA Input'!B714,\"Ineligible\"))","v":""},{"$f":"IF('TSA Input'!J714=\"\",\"\",IF(OR('TSA Input'!J714=\"Yes\",'TSA Input'!J714=\"Contingent\"),'TSA Input'!I714,\"\"))","v":""},{"$f":"IF('TSA Input'!J714=\"\",\"\",IF(OR('TSA Input'!J714=\"Yes\",'TSA Input'!J714=\"Contingent\"),'TSA Input'!C714,\"\"))","v":""},{"$f":"IF('TSA Input'!J714=\"\",\"\",IF(OR('TSA Input'!J714=\"Yes\",'TSA Input'!J714=\"Contingent\"),'TSA Input'!D714,\"\"))","v":""},{"$f":"IF('TSA Input'!J714=\"\",\"\",IF(OR('TSA Input'!J714=\"Yes\",'TSA Input'!J714=\"Contingent\"),'TSA Input'!G714,\"\"))","v":""},{"$f":"IF('TSA Input'!J714=\"\",\"\",IF(OR('TSA Input'!J714=\"Yes\",'TSA Input'!J714=\"Contingent\"),'TSA Input'!F714,\"\"))","v":""},"",{"$f":"IF('TSA Input'!J714=\"\",\"\",IF(OR('TSA Input'!J714=\"Yes\",'TSA Input'!J714=\"Contingent\"),'TSA Input'!D714,\"\"))","v":""},{"$f":"IF('TSA Input'!J714=\"\",\"\",IF(OR('TSA Input'!J714=\"Yes\",'TSA Input'!J714=\"Contingent\"),'TSA Input'!G714,\"\"))","v":""},{"$f":"IF('TSA Input'!J714=\"\",\"\",IF(OR('TSA Input'!J714=\"Yes\",'TSA Input'!J714=\"Contingent\"),'TSA Input'!F714,\"\"))","v":""},"","Required","Required"]
["",null,{"$f":"IF('TSA Input'!J715=\"\",\"\",IF(OR('TSA Input'!J715=\"Yes\",'TSA Input'!J715=\"Contingent\"),'TSA Input'!B715,\"Ineligible\"))","v":""},{"$f":"IF('TSA Input'!J715=\"\",\"\",IF(OR('TSA Input'!J715=\"Yes\",'TSA Input'!J715=\"Contingent\"),'TSA Input'!I715,\"\"))","v":""},{"$f":"IF('TSA Input'!J715=\"\",\"\",IF(OR('TSA Input'!J715=\"Yes\",'TSA Input'!J715=\"Contingent\"),'TSA Input'!C715,\"\"))","v":""},{"$f":"IF('TSA Input'!J715=\"\",\"\",IF(OR('TSA Input'!J715=\"Yes\",'TSA Input'!J715=\"Contingent\"),'TSA Input'!D715,\"\"))","v":""},{"$f":"IF('TSA Input'!J715=\"\",\"\",IF(OR('TSA Input'!J715=\"Yes\",'TSA Input'!J715=\"Contingent\"),'TSA Input'!G715,\"\"))","v":""},{"$f":"IF('TSA Input'!J715=\"\",\"\",IF(OR('TSA Input'!J715=\"Yes\",'TSA Input'!J715=\"Contingent\"),'TSA Input'!F715,\"\"))","v":""},"",{"$f":"IF('TSA Input'!J715=\"\",\"\",IF(OR('TSA Input'!J715=\"Yes\",'TSA Input'!J715=\"Contingent\"),'TSA Input'!D715,\"\"))","v":""},{"$f":"IF('TSA Input'!J715=\"\",\"\",IF(OR('TSA Input'!J715=\"Yes\",'TSA Input'!J715=\"Contingent\"),'TSA Input'!G715,\"\"))","v":""},{"$f":"IF('TSA Input'!J715=\"\",\"\",IF(OR('TSA Input'!J715=\"Yes\",'TSA Input'!J715=\"Contingent\"),'TSA Input'!F715,\"\"))","v":""},"","Required","Required"]
["",null,{"$f":"IF('TSA Input'!J716=\"\",\"\",IF(OR('TSA Input'!J716=\"Yes\",'TSA Input'!J716=\"Contingent\"),'TSA Input'!B716,\"Ineligible\"))","v":""},{"$f":"IF('TSA Input'!J716=\"\",\"\",IF(OR('TSA Input'!J716=\"Yes\",'TSA Input'!J716=\"Contingent\"),'TSA Input'!I716,\"\"))","v":""},{"$f":"IF('TSA Input'!J716=\"\",\"\",IF(OR('TSA Input'!J716=\"Yes\",'TSA Input'!J716=\"Contingent\"),'TSA Input'!C716,\"\"))","v":""},{"$f":"IF('TSA Input'!J716=\"\",\"\",IF(OR('TSA Input'!J716=\"Yes\",'TSA Input'!J716=\"Contingent\"),'TSA Input'!D716,\"\"))","v":""},{"$f":"IF('TSA Input'!J716=\"\",\"\",IF(OR('TSA Input'!J716=\"Yes\",'TSA Input'!J716=\"Contingent\"),'TSA Input'!G716,\"\"))","v":""},{"$f":"IF('TSA Input'!J716=\"\",\"\",IF(OR('TSA Input'!J716=\"Yes\",'TSA Input'!J716=\"Contingent\"),'TSA Input'!F716,\"\"))","v":""},"",{"$f":"IF('TSA Input'!J716=\"\",\"\",IF(OR('TSA Input'!J716=\"Yes\",'TSA Input'!J716=\"Contingent\"),'TSA Input'!D716,\"\"))","v":""},{"$f":"IF('TSA Input'!J716=\"\",\"\",IF(OR('TSA Input'!J716=\"Yes\",'TSA Input'!J716=\"Contingent\"),'TSA Input'!G716,\"\"))","v":""},{"$f":"IF('TSA Input'!J716=\"\",\"\",IF(OR('TSA Input'!J716=\"Yes\",'TSA Input'!J716=\"Contingent\"),'TSA Input'!F716,\"\"))","v":""},"","Required","Required"]
["",null,{"$f":"IF('TSA Input'!J717=\"\",\"\",IF(OR('TSA Input'!J717=\"Yes\",'TSA Input'!J717=\"Contingent\"),'TSA Input'!B717,\"Ineligible\"))","v":""},{"$f":"IF('TSA Input'!J717=\"\",\"\",IF(OR('TSA Input'!J717=\"Yes\",'TSA Input'!J717=\"Contingent\"),'TSA Input'!I717,\"\"))","v":""},{"$f":"IF('TSA Input'!J717=\"\",\"\",IF(OR('TSA Input'!J717=\"Yes\",'TSA Input'!J717=\"Contingent\"),'TSA Input'!C717,\"\"))","v":""},{"$f":"IF('TSA Input'!J717=\"\",\"\",IF(OR('TSA Input'!J717=\"Yes\",'TSA Input'!J717=\"Contingent\"),'TSA Input'!D717,\"\"))","v":""},{"$f":"IF('TSA Input'!J717=\"\",\"\",IF(OR('TSA Input'!J717=\"Yes\",'TSA Input'!J717=\"Contingent\"),'TSA Input'!G717,\"\"))","v":""},{"$f":"IF('TSA Input'!J717=\"\",\"\",IF(OR('TSA Input'!J717=\"Yes\",'TSA Input'!J717=\"Contingent\"),'TSA Input'!F717,\"\"))","v":""},"",{"$f":"IF('TSA Input'!J717=\"\",\"\",IF(OR('TSA Input'!J717=\"Yes\",'TSA Input'!J717=\"Contingent\"),'TSA Input'!D717,\"\"))","v":""},{"$f":"IF('TSA Input'!J717=\"\",\"\",IF(OR('TSA Input'!J717=\"Yes\",'TSA Input'!J717=\"Contingent\"),'TSA Input'!G717,\"\"))","v":""},{"$f":"IF('TSA Input'!J717=\"\",\"\",IF(OR('TSA Input'!J717=\"Yes\",'TSA Input'!J717=\"Contingent\"),'TSA Input'!F717,\"\"))","v":""},"","Required","Required"]
["",null,{"$f":"IF('TSA Input'!J718=\"\",\"\",IF(OR('TSA Input'!J718=\"Yes\",'TSA Input'!J718=\"Contingent\"),'TSA Input'!B718,\"Ineligible\"))","v":""},{"$f":"IF('TSA Input'!J718=\"\",\"\",IF(OR('TSA Input'!J718=\"Yes\",'TSA Input'!J718=\"Contingent\"),'TSA Input'!I718,\"\"))","v":""},{"$f":"IF('TSA Input'!J718=\"\",\"\",IF(OR('TSA Input'!J718=\"Yes\",'TSA Input'!J718=\"Contingent\"),'TSA Input'!C718,\"\"))","v":""},{"$f":"IF('TSA Input'!J718=\"\",\"\",IF(OR('TSA Input'!J718=\"Yes\",'TSA Input'!J718=\"Contingent\"),'TSA Input'!D718,\"\"))","v":""},{"$f":"IF('TSA Input'!J718=\"\",\"\",IF(OR('TSA Input'!J718=\"Yes\",'TSA Input'!J718=\"Contingent\"),'TSA Input'!G718,\"\"))","v":""},{"$f":"IF('TSA Input'!J718=\"\",\"\",IF(OR('TSA Input'!J718=\"Yes\",'TSA Input'!J718=\"Contingent\"),'TSA Input'!F718,\"\"))","v":""},"",{"$f":"IF('TSA Input'!J718=\"\",\"\",IF(OR('TSA Input'!J718=\"Yes\",'TSA Input'!J718=\"Contingent\"),'TSA Input'!D718,\"\"))","v":""},{"$f":"IF('TSA Input'!J718=\"\",\"\",IF(OR('TSA Input'!J718=\"Yes\",'TSA Input'!J718=\"Contingent\"),'TSA Input'!G718,\"\"))","v":""},{"$f":"IF('TSA Input'!J718=\"\",\"\",IF(OR('TSA Input'!J718=\"Yes\",'TSA Input'!J718=\"Contingent\"),'TSA Input'!F718,\"\"))","v":""},"","Required","Required"]
["",null,{"$f":"IF('TSA Input'!J719=\"\",\"\",IF(OR('TSA Input'!J719=\"Yes\",'TSA Input'!J719=\"Contingent\"),'TSA Input'!B719,\"Ineligible\"))","v":""},{"$f":"IF('TSA Input'!J719=\"\",\"\",IF(OR('TSA Input'!J719=\"Yes\",'TSA Input'!J719=\"Contingent\"),'TSA Input'!I719,\"\"))","v":""},{"$f":"IF('TSA Input'!J719=\"\",\"\",IF(OR('TSA Input'!J719=\"Yes\",'TSA Input'!J719=\"Contingent\"),'TSA Input'!C719,\"\"))","v":""},{"$f":"IF('TSA Input'!J719=\"\",\"\",IF(OR('TSA Input'!J719=\"Yes\",'TSA Input'!J719=\"Contingent\"),'TSA Input'!D719,\"\"))","v":""},{"$f":"IF('TSA Input'!J719=\"\",\"\",IF(OR('TSA Input'!J719=\"Yes\",'TSA Input'!J719=\"Contingent\"),'TSA Input'!G719,\"\"))","v":""},{"$f":"IF('TSA Input'!J719=\"\",\"\",IF(OR('TSA Input'!J719=\"Yes\",'TSA Input'!J719=\"Contingent\"),'TSA Input'!F719,\"\"))","v":""},"",{"$f":"IF('TSA Input'!J719=\"\",\"\",IF(OR('TSA Input'!J719=\"Yes\",'TSA Input'!J719=\"Contingent\"),'TSA Input'!D719,\"\"))","v":""},{"$f":"IF('TSA Input'!J719=\"\",\"\",IF(OR('TSA Input'!J719=\"Yes\",'TSA Input'!J719=\"Contingent\"),'TSA Input'!G719,\"\"))","v":""},{"$f":"IF('TSA Input'!J719=\"\",\"\",IF(OR('TSA Input'!J719=\"Yes\",'TSA Input'!J719=\"Contingent\"),'TSA Input'!F719,\"\"))","v":""},"","Required","Required"]
["",null,{"$f":"IF('TSA Input'!J720=\"\",\"\",IF(OR('TSA Input'!J720=\"Yes\",'TSA Input'!J720=\"Contingent\"),'TSA Input'!B720,\"Ineligible\"))","v":""},{"$f":"IF('TSA Input'!J720=\"\",\"\",IF(OR('TSA Input'!J720=\"Yes\",'TSA Input'!J720=\"Contingent\"),'TSA Input'!I720,\"\"))","v":""},{"$f":"IF('TSA Input'!J720=\"\",\"\",IF(OR('TSA Input'!J720=\"Yes\",'TSA Input'!J720=\"Contingent\"),'TSA Input'!C720,\"\"))","v":""},{"$f":"IF('TSA Input'!J720=\"\",\"\",IF(OR('TSA Input'!J720=\"Yes\",'TSA Input'!J720=\"Contingent\"),'TSA Input'!D720,\"\"))","v":""},{"$f":"IF('TSA Input'!J720=\"\",\"\",IF(OR('TSA Input'!J720=\"Yes\",'TSA Input'!J720=\"Contingent\"),'TSA Input'!G720,\"\"))","v":""},{"$f":"IF('TSA Input'!J720=\"\",\"\",IF(OR('TSA Input'!J720=\"Yes\",'TSA Input'!J720=\"Contingent\"),'TSA Input'!F720,\"\"))","v":""},"",{"$f":"IF('TSA Input'!J720=\"\",\"\",IF(OR('TSA Input'!J720=\"Yes\",'TSA Input'!J720=\"Contingent\"),'TSA Input'!D720,\"\"))","v":""},{"$f":"IF('TSA Input'!J720=\"\",\"\",IF(OR('TSA Input'!J720=\"Yes\",'TSA Input'!J720=\"Contingent\"),'TSA Input'!G720,\"\"))","v":""},{"$f":"IF('TSA Input'!J720=\"\",\"\",IF(OR('TSA Input'!J720=\"Yes\",'TSA Input'!J720=\"Contingent\"),'TSA Input'!F720,\"\"))","v":""},"","Required","Required"]
["",null,{"$f":"IF('TSA Input'!J721=\"\",\"\",IF(OR('TSA Input'!J721=\"Yes\",'TSA Input'!J721=\"Contingent\"),'TSA Input'!B721,\"Ineligible\"))","v":""},{"$f":"IF('TSA Input'!J721=\"\",\"\",IF(OR('TSA Input'!J721=\"Yes\",'TSA Input'!J721=\"Contingent\"),'TSA Input'!I721,\"\"))","v":""},{"$f":"IF('TSA Input'!J721=\"\",\"\",IF(OR('TSA Input'!J721=\"Yes\",'TSA Input'!J721=\"Contingent\"),'TSA Input'!C721,\"\"))","v":""},{"$f":"IF('TSA Input'!J721=\"\",\"\",IF(OR('TSA Input'!J721=\"Yes\",'TSA Input'!J721=\"Contingent\"),'TSA Input'!D721,\"\"))","v":""},{"$f":"IF('TSA Input'!J721=\"\",\"\",IF(OR('TSA Input'!J721=\"Yes\",'TSA Input'!J721=\"Contingent\"),'TSA Input'!G721,\"\"))","v":""},{"$f":"IF('TSA Input'!J721=\"\",\"\",IF(OR('TSA Input'!J721=\"Yes\",'TSA Input'!J721=\"Contingent\"),'TSA Input'!F721,\"\"))","v":""},"",{"$f":"IF('TSA Input'!J721=\"\",\"\",IF(OR('TSA Input'!J721=\"Yes\",'TSA Input'!J721=\"Contingent\"),'TSA Input'!D721,\"\"))","v":""},{"$f":"IF('TSA Input'!J721=\"\",\"\",IF(OR('TSA Input'!J721=\"Yes\",'TSA Input'!J721=\"Contingent\"),'TSA Input'!G721,\"\"))","v":""},{"$f":"IF('TSA Input'!J721=\"\",\"\",IF(OR('TSA Input'!J721=\"Yes\",'TSA Input'!J721=\"Contingent\"),'TSA Input'!F721,\"\"))","v":""},"","Required","Required"]
["",null,{"$f":"IF('TSA Input'!J722=\"\",\"\",IF(OR('TSA Input'!J722=\"Yes\",'TSA Input'!J722=\"Contingent\"),'TSA Input'!B722,\"Ineligible\"))","v":""},{"$f":"IF('TSA Input'!J722=\"\",\"\",IF(OR('TSA Input'!J722=\"Yes\",'TSA Input'!J722=\"Contingent\"),'TSA Input'!I722,\"\"))","v":""},{"$f":"IF('TSA Input'!J722=\"\",\"\",IF(OR('TSA Input'!J722=\"Yes\",'TSA Input'!J722=\"Contingent\"),'TSA Input'!C722,\"\"))","v":""},{"$f":"IF('TSA Input'!J722=\"\",\"\",IF(OR('TSA Input'!J722=\"Yes\",'TSA Input'!J722=\"Contingent\"),'TSA Input'!D722,\"\"))","v":""},{"$f":"IF('TSA Input'!J722=\"\",\"\",IF(OR('TSA Input'!J722=\"Yes\",'TSA Input'!J722=\"Contingent\"),'TSA Input'!G722,\"\"))","v":""},{"$f":"IF('TSA Input'!J722=\"\",\"\",IF(OR('TSA Input'!J722=\"Yes\",'TSA Input'!J722=\"Contingent\"),'TSA Input'!F722,\"\"))","v":""},"",{"$f":"IF('TSA Input'!J722=\"\",\"\",IF(OR('TSA Input'!J722=\"Yes\",'TSA Input'!J722=\"Contingent\"),'TSA Input'!D722,\"\"))","v":""},{"$f":"IF('TSA Input'!J722=\"\",\"\",IF(OR('TSA Input'!J722=\"Yes\",'TSA Input'!J722=\"Contingent\"),'TSA Input'!G722,\"\"))","v":""},{"$f":"IF('TSA Input'!J722=\"\",\"\",IF(OR('TSA Input'!J722=\"Yes\",'TSA Input'!J722=\"Contingent\"),'TSA Input'!F722,\"\"))","v":""},"","Required","Required"]
["",null,{"$f":"IF('TSA Input'!J723=\"\",\"\",IF(OR('TSA Input'!J723=\"Yes\",'TSA Input'!J723=\"Contingent\"),'TSA Input'!B723,\"Ineligible\"))","v":""},{"$f":"IF('TSA Input'!J723=\"\",\"\",IF(OR('TSA Input'!J723=\"Yes\",'TSA Input'!J723=\"Contingent\"),'TSA Input'!I723,\"\"))","v":""},{"$f":"IF('TSA Input'!J723=\"\",\"\",IF(OR('TSA Input'!J723=\"Yes\",'TSA Input'!J723=\"Contingent\"),'TSA Input'!C723,\"\"))","v":""},{"$f":"IF('TSA Input'!J723=\"\",\"\",IF(OR('TSA Input'!J723=\"Yes\",'TSA Input'!J723=\"Contingent\"),'TSA Input'!D723,\"\"))","v":""},{"$f":"IF('TSA Input'!J723=\"\",\"\",IF(OR('TSA Input'!J723=\"Yes\",'TSA Input'!J723=\"Contingent\"),'TSA Input'!G723,\"\"))","v":""},{"$f":"IF('TSA Input'!J723=\"\",\"\",IF(OR('TSA Input'!J723=\"Yes\",'TSA Input'!J723=\"Contingent\"),'TSA Input'!F723,\"\"))","v":""},"",{"$f":"IF('TSA Input'!J723=\"\",\"\",IF(OR('TSA Input'!J723=\"Yes\",'TSA Input'!J723=\"Contingent\"),'TSA Input'!D723,\"\"))","v":""},{"$f":"IF('TSA Input'!J723=\"\",\"\",IF(OR('TSA Input'!J723=\"Yes\",'TSA Input'!J723=\"Contingent\"),'TSA Input'!G723,\"\"))","v":""},{"$f":"IF('TSA Input'!J723=\"\",\"\",IF(OR('TSA Input'!J723=\"Yes\",'TSA Input'!J723=\"Contingent\"),'TSA Input'!F723,\"\"))","v":""},"","Required","Required"]
["",null,{"$f":"IF('TSA Input'!J724=\"\",\"\",IF(OR('TSA Input'!J724=\"Yes\",'TSA Input'!J724=\"Contingent\"),'TSA Input'!B724,\"Ineligible\"))","v":""},{"$f":"IF('TSA Input'!J724=\"\",\"\",IF(OR('TSA Input'!J724=\"Yes\",'TSA Input'!J724=\"Contingent\"),'TSA Input'!I724,\"\"))","v":""},{"$f":"IF('TSA Input'!J724=\"\",\"\",IF(OR('TSA Input'!J724=\"Yes\",'TSA Input'!J724=\"Contingent\"),'TSA Input'!C724,\"\"))","v":""},{"$f":"IF('TSA Input'!J724=\"\",\"\",IF(OR('TSA Input'!J724=\"Yes\",'TSA Input'!J724=\"Contingent\"),'TSA Input'!D724,\"\"))","v":""},{"$f":"IF('TSA Input'!J724=\"\",\"\",IF(OR('TSA Input'!J724=\"Yes\",'TSA Input'!J724=\"Contingent\"),'TSA Input'!G724,\"\"))","v":""},{"$f":"IF('TSA Input'!J724=\"\",\"\",IF(OR('TSA Input'!J724=\"Yes\",'TSA Input'!J724=\"Contingent\"),'TSA Input'!F724,\"\"))","v":""},"",{"$f":"IF('TSA Input'!J724=\"\",\"\",IF(OR('TSA Input'!J724=\"Yes\",'TSA Input'!J724=\"Contingent\"),'TSA Input'!D724,\"\"))","v":""},{"$f":"IF('TSA Input'!J724=\"\",\"\",IF(OR('TSA Input'!J724=\"Yes\",'TSA Input'!J724=\"Contingent\"),'TSA Input'!G724,\"\"))","v":""},{"$f":"IF('TSA Input'!J724=\"\",\"\",IF(OR('TSA Input'!J724=\"Yes\",'TSA Input'!J724=\"Contingent\"),'TSA Input'!F724,\"\"))","v":""},"","Required","Required"]
["",null,{"$f":"IF('TSA Input'!J725=\"\",\"\",IF(OR('TSA Input'!J725=\"Yes\",'TSA Input'!J725=\"Contingent\"),'TSA Input'!B725,\"Ineligible\"))","v":""},{"$f":"IF('TSA Input'!J725=\"\",\"\",IF(OR('TSA Input'!J725=\"Yes\",'TSA Input'!J725=\"Contingent\"),'TSA Input'!I725,\"\"))","v":""},{"$f":"IF('TSA Input'!J725=\"\",\"\",IF(OR('TSA Input'!J725=\"Yes\",'TSA Input'!J725=\"Contingent\"),'TSA Input'!C725,\"\"))","v":""},{"$f":"IF('TSA Input'!J725=\"\",\"\",IF(OR('TSA Input'!J725=\"Yes\",'TSA Input'!J725=\"Contingent\"),'TSA Input'!D725,\"\"))","v":""},{"$f":"IF('TSA Input'!J725=\"\",\"\",IF(OR('TSA Input'!J725=\"Yes\",'TSA Input'!J725=\"Contingent\"),'TSA Input'!G725,\"\"))","v":""},{"$f":"IF('TSA Input'!J725=\"\",\"\",IF(OR('TSA Input'!J725=\"Yes\",'TSA Input'!J725=\"Contingent\"),'TSA Input'!F725,\"\"))","v":""},"",{"$f":"IF('TSA Input'!J725=\"\",\"\",IF(OR('TSA Input'!J725=\"Yes\",'TSA Input'!J725=\"Contingent\"),'TSA Input'!D725,\"\"))","v":""},{"$f":"IF('TSA Input'!J725=\"\",\"\",IF(OR('TSA Input'!J725=\"Yes\",'TSA Input'!J725=\"Contingent\"),'TSA Input'!G725,\"\"))","v":""},{"$f":"IF('TSA Input'!J725=\"\",\"\",IF(OR('TSA Input'!J725=\"Yes\",'TSA Input'!J725=\"Contingent\"),'TSA Input'!F725,\"\"))","v":""},"","Required","Required"]
["",null,{"$f":"IF('TSA Input'!J726=\"\",\"\",IF(OR('TSA Input'!J726=\"Yes\",'TSA Input'!J726=\"Contingent\"),'TSA Input'!B726,\"Ineligible\"))","v":""},{"$f":"IF('TSA Input'!J726=\"\",\"\",IF(OR('TSA Input'!J726=\"Yes\",'TSA Input'!J726=\"Contingent\"),'TSA Input'!I726,\"\"))","v":""},{"$f":"IF('TSA Input'!J726=\"\",\"\",IF(OR('TSA Input'!J726=\"Yes\",'TSA Input'!J726=\"Contingent\"),'TSA Input'!C726,\"\"))","v":""},{"$f":"IF('TSA Input'!J726=\"\",\"\",IF(OR('TSA Input'!J726=\"Yes\",'TSA Input'!J726=\"Contingent\"),'TSA Input'!D726,\"\"))","v":""},{"$f":"IF('TSA Input'!J726=\"\",\"\",IF(OR('TSA Input'!J726=\"Yes\",'TSA Input'!J726=\"Contingent\"),'TSA Input'!G726,\"\"))","v":""},{"$f":"IF('TSA Input'!J726=\"\",\"\",IF(OR('TSA Input'!J726=\"Yes\",'TSA Input'!J726=\"Contingent\"),'TSA Input'!F726,\"\"))","v":""},"",{"$f":"IF('TSA Input'!J726=\"\",\"\",IF(OR('TSA Input'!J726=\"Yes\",'TSA Input'!J726=\"Contingent\"),'TSA Input'!D726,\"\"))","v":""},{"$f":"IF('TSA Input'!J726=\"\",\"\",IF(OR('TSA Input'!J726=\"Yes\",'TSA Input'!J726=\"Contingent\"),'TSA Input'!G726,\"\"))","v":""},{"$f":"IF('TSA Input'!J726=\"\",\"\",IF(OR('TSA Input'!J726=\"Yes\",'TSA Input'!J726=\"Contingent\"),'TSA Input'!F726,\"\"))","v":""},"","Required","Required"]
["",null,{"$f":"IF('TSA Input'!J727=\"\",\"\",IF(OR('TSA Input'!J727=\"Yes\",'TSA Input'!J727=\"Contingent\"),'TSA Input'!B727,\"Ineligible\"))","v":""},{"$f":"IF('TSA Input'!J727=\"\",\"\",IF(OR('TSA Input'!J727=\"Yes\",'TSA Input'!J727=\"Contingent\"),'TSA Input'!I727,\"\"))","v":""},{"$f":"IF('TSA Input'!J727=\"\",\"\",IF(OR('TSA Input'!J727=\"Yes\",'TSA Input'!J727=\"Contingent\"),'TSA Input'!C727,\"\"))","v":""},{"$f":"IF('TSA Input'!J727=\"\",\"\",IF(OR('TSA Input'!J727=\"Yes\",'TSA Input'!J727=\"Contingent\"),'TSA Input'!D727,\"\"))","v":""},{"$f":"IF('TSA Input'!J727=\"\",\"\",IF(OR('TSA Input'!J727=\"Yes\",'TSA Input'!J727=\"Contingent\"),'TSA Input'!G727,\"\"))","v":""},{"$f":"IF('TSA Input'!J727=\"\",\"\",IF(OR('TSA Input'!J727=\"Yes\",'TSA Input'!J727=\"Contingent\"),'TSA Input'!F727,\"\"))","v":""},"",{"$f":"IF('TSA Input'!J727=\"\",\"\",IF(OR('TSA Input'!J727=\"Yes\",'TSA Input'!J727=\"Contingent\"),'TSA Input'!D727,\"\"))","v":""},{"$f":"IF('TSA Input'!J727=\"\",\"\",IF(OR('TSA Input'!J727=\"Yes\",'TSA Input'!J727=\"Contingent\"),'TSA Input'!G727,\"\"))","v":""},{"$f":"IF('TSA Input'!J727=\"\",\"\",IF(OR('TSA Input'!J727=\"Yes\",'TSA Input'!J727=\"Contingent\"),'TSA Input'!F727,\"\"))","v":""},"","Required","Required"]
["",null,{"$f":"IF('TSA Input'!J728=\"\",\"\",IF(OR('TSA Input'!J728=\"Yes\",'TSA Input'!J728=\"Contingent\"),'TSA Input'!B728,\"Ineligible\"))","v":""},{"$f":"IF('TSA Input'!J728=\"\",\"\",IF(OR('TSA Input'!J728=\"Yes\",'TSA Input'!J728=\"Contingent\"),'TSA Input'!I728,\"\"))","v":""},{"$f":"IF('TSA Input'!J728=\"\",\"\",IF(OR('TSA Input'!J728=\"Yes\",'TSA Input'!J728=\"Contingent\"),'TSA Input'!C728,\"\"))","v":""},{"$f":"IF('TSA Input'!J728=\"\",\"\",IF(OR('TSA Input'!J728=\"Yes\",'TSA Input'!J728=\"Contingent\"),'TSA Input'!D728,\"\"))","v":""},{"$f":"IF('TSA Input'!J728=\"\",\"\",IF(OR('TSA Input'!J728=\"Yes\",'TSA Input'!J728=\"Contingent\"),'TSA Input'!G728,\"\"))","v":""},{"$f":"IF('TSA Input'!J728=\"\",\"\",IF(OR('TSA Input'!J728=\"Yes\",'TSA Input'!J728=\"Contingent\"),'TSA Input'!F728,\"\"))","v":""},"",{"$f":"IF('TSA Input'!J728=\"\",\"\",IF(OR('TSA Input'!J728=\"Yes\",'TSA Input'!J728=\"Contingent\"),'TSA Input'!D728,\"\"))","v":""},{"$f":"IF('TSA Input'!J728=\"\",\"\",IF(OR('TSA Input'!J728=\"Yes\",'TSA Input'!J728=\"Contingent\"),'TSA Input'!G728,\"\"))","v":""},{"$f":"IF('TSA Input'!J728=\"\",\"\",IF(OR('TSA Input'!J728=\"Yes\",'TSA Input'!J728=\"Contingent\"),'TSA Input'!F728,\"\"))","v":""},"","Required","Required"]
["",null,{"$f":"IF('TSA Input'!J729=\"\",\"\",IF(OR('TSA Input'!J729=\"Yes\",'TSA Input'!J729=\"Contingent\"),'TSA Input'!B729,\"Ineligible\"))","v":""},{"$f":"IF('TSA Input'!J729=\"\",\"\",IF(OR('TSA Input'!J729=\"Yes\",'TSA Input'!J729=\"Contingent\"),'TSA Input'!I729,\"\"))","v":""},{"$f":"IF('TSA Input'!J729=\"\",\"\",IF(OR('TSA Input'!J729=\"Yes\",'TSA Input'!J729=\"Contingent\"),'TSA Input'!C729,\"\"))","v":""},{"$f":"IF('TSA Input'!J729=\"\",\"\",IF(OR('TSA Input'!J729=\"Yes\",'TSA Input'!J729=\"Contingent\"),'TSA Input'!D729,\"\"))","v":""},{"$f":"IF('TSA Input'!J729=\"\",\"\",IF(OR('TSA Input'!J729=\"Yes\",'TSA Input'!J729=\"Contingent\"),'TSA Input'!G729,\"\"))","v":""},{"$f":"IF('TSA Input'!J729=\"\",\"\",IF(OR('TSA Input'!J729=\"Yes\",'TSA Input'!J729=\"Contingent\"),'TSA Input'!F729,\"\"))","v":""},"",{"$f":"IF('TSA Input'!J729=\"\",\"\",IF(OR('TSA Input'!J729=\"Yes\",'TSA Input'!J729=\"Contingent\"),'TSA Input'!D729,\"\"))","v":""},{"$f":"IF('TSA Input'!J729=\"\",\"\",IF(OR('TSA Input'!J729=\"Yes\",'TSA Input'!J729=\"Contingent\"),'TSA Input'!G729,\"\"))","v":""},{"$f":"IF('TSA Input'!J729=\"\",\"\",IF(OR('TSA Input'!J729=\"Yes\",'TSA Input'!J729=\"Contingent\"),'TSA Input'!F729,\"\"))","v":""},"","Required","Required"]
["",null,{"$f":"IF('TSA Input'!J730=\"\",\"\",IF(OR('TSA Input'!J730=\"Yes\",'TSA Input'!J730=\"Contingent\"),'TSA Input'!B730,\"Ineligible\"))","v":""},{"$f":"IF('TSA Input'!J730=\"\",\"\",IF(OR('TSA Input'!J730=\"Yes\",'TSA Input'!J730=\"Contingent\"),'TSA Input'!I730,\"\"))","v":""},{"$f":"IF('TSA Input'!J730=\"\",\"\",IF(OR('TSA Input'!J730=\"Yes\",'TSA Input'!J730=\"Contingent\"),'TSA Input'!C730,\"\"))","v":""},{"$f":"IF('TSA Input'!J730=\"\",\"\",IF(OR('TSA Input'!J730=\"Yes\",'TSA Input'!J730=\"Contingent\"),'TSA Input'!D730,\"\"))","v":""},{"$f":"IF('TSA Input'!J730=\"\",\"\",IF(OR('TSA Input'!J730=\"Yes\",'TSA Input'!J730=\"Contingent\"),'TSA Input'!G730,\"\"))","v":""},{"$f":"IF('TSA Input'!J730=\"\",\"\",IF(OR('TSA Input'!J730=\"Yes\",'TSA Input'!J730=\"Contingent\"),'TSA Input'!F730,\"\"))","v":""},"",{"$f":"IF('TSA Input'!J730=\"\",\"\",IF(OR('TSA Input'!J730=\"Yes\",'TSA Input'!J730=\"Contingent\"),'TSA Input'!D730,\"\"))","v":""},{"$f":"IF('TSA Input'!J730=\"\",\"\",IF(OR('TSA Input'!J730=\"Yes\",'TSA Input'!J730=\"Contingent\"),'TSA Input'!G730,\"\"))","v":""},{"$f":"IF('TSA Input'!J730=\"\",\"\",IF(OR('TSA Input'!J730=\"Yes\",'TSA Input'!J730=\"Contingent\"),'TSA Input'!F730,\"\"))","v":""},"","Required","Required"]
["",null,{"$f":"IF('TSA Input'!J731=\"\",\"\",IF(OR('TSA Input'!J731=\"Yes\",'TSA Input'!J731=\"Contingent\"),'TSA Input'!B731,\"Ineligible\"))","v":""},{"$f":"IF('TSA Input'!J731=\"\",\"\",IF(OR('TSA Input'!J731=\"Yes\",'TSA Input'!J731=\"Contingent\"),'TSA Input'!I731,\"\"))","v":""},{"$f":"IF('TSA Input'!J731=\"\",\"\",IF(OR('TSA Input'!J731=\"Yes\",'TSA Input'!J731=\"Contingent\"),'TSA Input'!C731,\"\"))","v":""},{"$f":"IF('TSA Input'!J731=\"\",\"\",IF(OR('TSA Input'!J731=\"Yes\",'TSA Input'!J731=\"Contingent\"),'TSA Input'!D731,\"\"))","v":""},{"$f":"IF('TSA Input'!J731=\"\",\"\",IF(OR('TSA Input'!J731=\"Yes\",'TSA Input'!J731=\"Contingent\"),'TSA Input'!G731,\"\"))","v":""},{"$f":"IF('TSA Input'!J731=\"\",\"\",IF(OR('TSA Input'!J731=\"Yes\",'TSA Input'!J731=\"Contingent\"),'TSA Input'!F731,\"\"))","v":""},"",{"$f":"IF('TSA Input'!J731=\"\",\"\",IF(OR('TSA Input'!J731=\"Yes\",'TSA Input'!J731=\"Contingent\"),'TSA Input'!D731,\"\"))","v":""},{"$f":"IF('TSA Input'!J731=\"\",\"\",IF(OR('TSA Input'!J731=\"Yes\",'TSA Input'!J731=\"Contingent\"),'TSA Input'!G731,\"\"))","v":""},{"$f":"IF('TSA Input'!J731=\"\",\"\",IF(OR('TSA Input'!J731=\"Yes\",'TSA Input'!J731=\"Contingent\"),'TSA Input'!F731,\"\"))","v":""},"","Required","Required"]
["",null,{"$f":"IF('TSA Input'!J732=\"\",\"\",IF(OR('TSA Input'!J732=\"Yes\",'TSA Input'!J732=\"Contingent\"),'TSA Input'!B732,\"Ineligible\"))","v":""},{"$f":"IF('TSA Input'!J732=\"\",\"\",IF(OR('TSA Input'!J732=\"Yes\",'TSA Input'!J732=\"Contingent\"),'TSA Input'!I732,\"\"))","v":""},{"$f":"IF('TSA Input'!J732=\"\",\"\",IF(OR('TSA Input'!J732=\"Yes\",'TSA Input'!J732=\"Contingent\"),'TSA Input'!C732,\"\"))","v":""},{"$f":"IF('TSA Input'!J732=\"\",\"\",IF(OR('TSA Input'!J732=\"Yes\",'TSA Input'!J732=\"Contingent\"),'TSA Input'!D732,\"\"))","v":""},{"$f":"IF('TSA Input'!J732=\"\",\"\",IF(OR('TSA Input'!J732=\"Yes\",'TSA Input'!J732=\"Contingent\"),'TSA Input'!G732,\"\"))","v":""},{"$f":"IF('TSA Input'!J732=\"\",\"\",IF(OR('TSA Input'!J732=\"Yes\",'TSA Input'!J732=\"Contingent\"),'TSA Input'!F732,\"\"))","v":""},"",{"$f":"IF('TSA Input'!J732=\"\",\"\",IF(OR('TSA Input'!J732=\"Yes\",'TSA Input'!J732=\"Contingent\"),'TSA Input'!D732,\"\"))","v":""},{"$f":"IF('TSA Input'!J732=\"\",\"\",IF(OR('TSA Input'!J732=\"Yes\",'TSA Input'!J732=\"Contingent\"),'TSA Input'!G732,\"\"))","v":""},{"$f":"IF('TSA Input'!J732=\"\",\"\",IF(OR('TSA Input'!J732=\"Yes\",'TSA Input'!J732=\"Contingent\"),'TSA Input'!F732,\"\"))","v":""},"","Required","Required"]
["",null,{"$f":"IF('TSA Input'!J733=\"\",\"\",IF(OR('TSA Input'!J733=\"Yes\",'TSA Input'!J733=\"Contingent\"),'TSA Input'!B733,\"Ineligible\"))","v":""},{"$f":"IF('TSA Input'!J733=\"\",\"\",IF(OR('TSA Input'!J733=\"Yes\",'TSA Input'!J733=\"Contingent\"),'TSA Input'!I733,\"\"))","v":""},{"$f":"IF('TSA Input'!J733=\"\",\"\",IF(OR('TSA Input'!J733=\"Yes\",'TSA Input'!J733=\"Contingent\"),'TSA Input'!C733,\"\"))","v":""},{"$f":"IF('TSA Input'!J733=\"\",\"\",IF(OR('TSA Input'!J733=\"Yes\",'TSA Input'!J733=\"Contingent\"),'TSA Input'!D733,\"\"))","v":""},{"$f":"IF('TSA Input'!J733=\"\",\"\",IF(OR('TSA Input'!J733=\"Yes\",'TSA Input'!J733=\"Contingent\"),'TSA Input'!G733,\"\"))","v":""},{"$f":"IF('TSA Input'!J733=\"\",\"\",IF(OR('TSA Input'!J733=\"Yes\",'TSA Input'!J733=\"Contingent\"),'TSA Input'!F733,\"\"))","v":""},"",{"$f":"IF('TSA Input'!J733=\"\",\"\",IF(OR('TSA Input'!J733=\"Yes\",'TSA Input'!J733=\"Contingent\"),'TSA Input'!D733,\"\"))","v":""},{"$f":"IF('TSA Input'!J733=\"\",\"\",IF(OR('TSA Input'!J733=\"Yes\",'TSA Input'!J733=\"Contingent\"),'TSA Input'!G733,\"\"))","v":""},{"$f":"IF('TSA Input'!J733=\"\",\"\",IF(OR('TSA Input'!J733=\"Yes\",'TSA Input'!J733=\"Contingent\"),'TSA Input'!F733,\"\"))","v":""},"","Required","Required"]
["",null,{"$f":"IF('TSA Input'!J734=\"\",\"\",IF(OR('TSA Input'!J734=\"Yes\",'TSA Input'!J734=\"Contingent\"),'TSA Input'!B734,\"Ineligible\"))","v":""},{"$f":"IF('TSA Input'!J734=\"\",\"\",IF(OR('TSA Input'!J734=\"Yes\",'TSA Input'!J734=\"Contingent\"),'TSA Input'!I734,\"\"))","v":""},{"$f":"IF('TSA Input'!J734=\"\",\"\",IF(OR('TSA Input'!J734=\"Yes\",'TSA Input'!J734=\"Contingent\"),'TSA Input'!C734,\"\"))","v":""},{"$f":"IF('TSA Input'!J734=\"\",\"\",IF(OR('TSA Input'!J734=\"Yes\",'TSA Input'!J734=\"Contingent\"),'TSA Input'!D734,\"\"))","v":""},{"$f":"IF('TSA Input'!J734=\"\",\"\",IF(OR('TSA Input'!J734=\"Yes\",'TSA Input'!J734=\"Contingent\"),'TSA Input'!G734,\"\"))","v":""},{"$f":"IF('TSA Input'!J734=\"\",\"\",IF(OR('TSA Input'!J734=\"Yes\",'TSA Input'!J734=\"Contingent\"),'TSA Input'!F734,\"\"))","v":""},"",{"$f":"IF('TSA Input'!J734=\"\",\"\",IF(OR('TSA Input'!J734=\"Yes\",'TSA Input'!J734=\"Contingent\"),'TSA Input'!D734,\"\"))","v":""},{"$f":"IF('TSA Input'!J734=\"\",\"\",IF(OR('TSA Input'!J734=\"Yes\",'TSA Input'!J734=\"Contingent\"),'TSA Input'!G734,\"\"))","v":""},{"$f":"IF('TSA Input'!J734=\"\",\"\",IF(OR('TSA Input'!J734=\"Yes\",'TSA Input'!J734=\"Contingent\"),'TSA Input'!F734,\"\"))","v":""},"","Required","Required"]
["",null,{"$f":"IF('TSA Input'!J735=\"\",\"\",IF(OR('TSA Input'!J735=\"Yes\",'TSA Input'!J735=\"Contingent\"),'TSA Input'!B735,\"Ineligible\"))","v":""},{"$f":"IF('TSA Input'!J735=\"\",\"\",IF(OR('TSA Input'!J735=\"Yes\",'TSA Input'!J735=\"Contingent\"),'TSA Input'!I735,\"\"))","v":""},{"$f":"IF('TSA Input'!J735=\"\",\"\",IF(OR('TSA Input'!J735=\"Yes\",'TSA Input'!J735=\"Contingent\"),'TSA Input'!C735,\"\"))","v":""},{"$f":"IF('TSA Input'!J735=\"\",\"\",IF(OR('TSA Input'!J735=\"Yes\",'TSA Input'!J735=\"Contingent\"),'TSA Input'!D735,\"\"))","v":""},{"$f":"IF('TSA Input'!J735=\"\",\"\",IF(OR('TSA Input'!J735=\"Yes\",'TSA Input'!J735=\"Contingent\"),'TSA Input'!G735,\"\"))","v":""},{"$f":"IF('TSA Input'!J735=\"\",\"\",IF(OR('TSA Input'!J735=\"Yes\",'TSA Input'!J735=\"Contingent\"),'TSA Input'!F735,\"\"))","v":""},"",{"$f":"IF('TSA Input'!J735=\"\",\"\",IF(OR('TSA Input'!J735=\"Yes\",'TSA Input'!J735=\"Contingent\"),'TSA Input'!D735,\"\"))","v":""},{"$f":"IF('TSA Input'!J735=\"\",\"\",IF(OR('TSA Input'!J735=\"Yes\",'TSA Input'!J735=\"Contingent\"),'TSA Input'!G735,\"\"))","v":""},{"$f":"IF('TSA Input'!J735=\"\",\"\",IF(OR('TSA Input'!J735=\"Yes\",'TSA Input'!J735=\"Contingent\"),'TSA Input'!F735,\"\"))","v":""},"","Required","Required"]
["",null,{"$f":"IF('TSA Input'!J736=\"\",\"\",IF(OR('TSA Input'!J736=\"Yes\",'TSA Input'!J736=\"Contingent\"),'TSA Input'!B736,\"Ineligible\"))","v":""},{"$f":"IF('TSA Input'!J736=\"\",\"\",IF(OR('TSA Input'!J736=\"Yes\",'TSA Input'!J736=\"Contingent\"),'TSA Input'!I736,\"\"))","v":""},{"$f":"IF('TSA Input'!J736=\"\",\"\",IF(OR('TSA Input'!J736=\"Yes\",'TSA Input'!J736=\"Contingent\"),'TSA Input'!C736,\"\"))","v":""},{"$f":"IF('TSA Input'!J736=\"\",\"\",IF(OR('TSA Input'!J736=\"Yes\",'TSA Input'!J736=\"Contingent\"),'TSA Input'!D736,\"\"))","v":""},{"$f":"IF('TSA Input'!J736=\"\",\"\",IF(OR('TSA Input'!J736=\"Yes\",'TSA Input'!J736=\"Contingent\"),'TSA Input'!G736,\"\"))","v":""},{"$f":"IF('TSA Input'!J736=\"\",\"\",IF(OR('TSA Input'!J736=\"Yes\",'TSA Input'!J736=\"Contingent\"),'TSA Input'!F736,\"\"))","v":""},"",{"$f":"IF('TSA Input'!J736=\"\",\"\",IF(OR('TSA Input'!J736=\"Yes\",'TSA Input'!J736=\"Contingent\"),'TSA Input'!D736,\"\"))","v":""},{"$f":"IF('TSA Input'!J736=\"\",\"\",IF(OR('TSA Input'!J736=\"Yes\",'TSA Input'!J736=\"Contingent\"),'TSA Input'!G736,\"\"))","v":""},{"$f":"IF('TSA Input'!J736=\"\",\"\",IF(OR('TSA Input'!J736=\"Yes\",'TSA Input'!J736=\"Contingent\"),'TSA Input'!F736,\"\"))","v":""},"","Required","Required"]
["",null,{"$f":"IF('TSA Input'!J737=\"\",\"\",IF(OR('TSA Input'!J737=\"Yes\",'TSA Input'!J737=\"Contingent\"),'TSA Input'!B737,\"Ineligible\"))","v":""},{"$f":"IF('TSA Input'!J737=\"\",\"\",IF(OR('TSA Input'!J737=\"Yes\",'TSA Input'!J737=\"Contingent\"),'TSA Input'!I737,\"\"))","v":""},{"$f":"IF('TSA Input'!J737=\"\",\"\",IF(OR('TSA Input'!J737=\"Yes\",'TSA Input'!J737=\"Contingent\"),'TSA Input'!C737,\"\"))","v":""},{"$f":"IF('TSA Input'!J737=\"\",\"\",IF(OR('TSA Input'!J737=\"Yes\",'TSA Input'!J737=\"Contingent\"),'TSA Input'!D737,\"\"))","v":""},{"$f":"IF('TSA Input'!J737=\"\",\"\",IF(OR('TSA Input'!J737=\"Yes\",'TSA Input'!J737=\"Contingent\"),'TSA Input'!G737,\"\"))","v":""},{"$f":"IF('TSA Input'!J737=\"\",\"\",IF(OR('TSA Input'!J737=\"Yes\",'TSA Input'!J737=\"Contingent\"),'TSA Input'!F737,\"\"))","v":""},"",{"$f":"IF('TSA Input'!J737=\"\",\"\",IF(OR('TSA Input'!J737=\"Yes\",'TSA Input'!J737=\"Contingent\"),'TSA Input'!D737,\"\"))","v":""},{"$f":"IF('TSA Input'!J737=\"\",\"\",IF(OR('TSA Input'!J737=\"Yes\",'TSA Input'!J737=\"Contingent\"),'TSA Input'!G737,\"\"))","v":""},{"$f":"IF('TSA Input'!J737=\"\",\"\",IF(OR('TSA Input'!J737=\"Yes\",'TSA Input'!J737=\"Contingent\"),'TSA Input'!F737,\"\"))","v":""},"","Required","Required"]
["",null,{"$f":"IF('TSA Input'!J738=\"\",\"\",IF(OR('TSA Input'!J738=\"Yes\",'TSA Input'!J738=\"Contingent\"),'TSA Input'!B738,\"Ineligible\"))","v":""},{"$f":"IF('TSA Input'!J738=\"\",\"\",IF(OR('TSA Input'!J738=\"Yes\",'TSA Input'!J738=\"Contingent\"),'TSA Input'!I738,\"\"))","v":""},{"$f":"IF('TSA Input'!J738=\"\",\"\",IF(OR('TSA Input'!J738=\"Yes\",'TSA Input'!J738=\"Contingent\"),'TSA Input'!C738,\"\"))","v":""},{"$f":"IF('TSA Input'!J738=\"\",\"\",IF(OR('TSA Input'!J738=\"Yes\",'TSA Input'!J738=\"Contingent\"),'TSA Input'!D738,\"\"))","v":""},{"$f":"IF('TSA Input'!J738=\"\",\"\",IF(OR('TSA Input'!J738=\"Yes\",'TSA Input'!J738=\"Contingent\"),'TSA Input'!G738,\"\"))","v":""},{"$f":"IF('TSA Input'!J738=\"\",\"\",IF(OR('TSA Input'!J738=\"Yes\",'TSA Input'!J738=\"Contingent\"),'TSA Input'!F738,\"\"))","v":""},"",{"$f":"IF('TSA Input'!J738=\"\",\"\",IF(OR('TSA Input'!J738=\"Yes\",'TSA Input'!J738=\"Contingent\"),'TSA Input'!D738,\"\"))","v":""},{"$f":"IF('TSA Input'!J738=\"\",\"\",IF(OR('TSA Input'!J738=\"Yes\",'TSA Input'!J738=\"Contingent\"),'TSA Input'!G738,\"\"))","v":""},{"$f":"IF('TSA Input'!J738=\"\",\"\",IF(OR('TSA Input'!J738=\"Yes\",'TSA Input'!J738=\"Contingent\"),'TSA Input'!F738,\"\"))","v":""},"","Required","Required"]
["",null,{"$f":"IF('TSA Input'!J739=\"\",\"\",IF(OR('TSA Input'!J739=\"Yes\",'TSA Input'!J739=\"Contingent\"),'TSA Input'!B739,\"Ineligible\"))","v":""},{"$f":"IF('TSA Input'!J739=\"\",\"\",IF(OR('TSA Input'!J739=\"Yes\",'TSA Input'!J739=\"Contingent\"),'TSA Input'!I739,\"\"))","v":""},{"$f":"IF('TSA Input'!J739=\"\",\"\",IF(OR('TSA Input'!J739=\"Yes\",'TSA Input'!J739=\"Contingent\"),'TSA Input'!C739,\"\"))","v":""},{"$f":"IF('TSA Input'!J739=\"\",\"\",IF(OR('TSA Input'!J739=\"Yes\",'TSA Input'!J739=\"Contingent\"),'TSA Input'!D739,\"\"))","v":""},{"$f":"IF('TSA Input'!J739=\"\",\"\",IF(OR('TSA Input'!J739=\"Yes\",'TSA Input'!J739=\"Contingent\"),'TSA Input'!G739,\"\"))","v":""},{"$f":"IF('TSA Input'!J739=\"\",\"\",IF(OR('TSA Input'!J739=\"Yes\",'TSA Input'!J739=\"Contingent\"),'TSA Input'!F739,\"\"))","v":""},"",{"$f":"IF('TSA Input'!J739=\"\",\"\",IF(OR('TSA Input'!J739=\"Yes\",'TSA Input'!J739=\"Contingent\"),'TSA Input'!D739,\"\"))","v":""},{"$f":"IF('TSA Input'!J739=\"\",\"\",IF(OR('TSA Input'!J739=\"Yes\",'TSA Input'!J739=\"Contingent\"),'TSA Input'!G739,\"\"))","v":""},{"$f":"IF('TSA Input'!J739=\"\",\"\",IF(OR('TSA Input'!J739=\"Yes\",'TSA Input'!J739=\"Contingent\"),'TSA Input'!F739,\"\"))","v":""},"","Required","Required"]
["",null,{"$f":"IF('TSA Input'!J740=\"\",\"\",IF(OR('TSA Input'!J740=\"Yes\",'TSA Input'!J740=\"Contingent\"),'TSA Input'!B740,\"Ineligible\"))","v":""},{"$f":"IF('TSA Input'!J740=\"\",\"\",IF(OR('TSA Input'!J740=\"Yes\",'TSA Input'!J740=\"Contingent\"),'TSA Input'!I740,\"\"))","v":""},{"$f":"IF('TSA Input'!J740=\"\",\"\",IF(OR('TSA Input'!J740=\"Yes\",'TSA Input'!J740=\"Contingent\"),'TSA Input'!C740,\"\"))","v":""},{"$f":"IF('TSA Input'!J740=\"\",\"\",IF(OR('TSA Input'!J740=\"Yes\",'TSA Input'!J740=\"Contingent\"),'TSA Input'!D740,\"\"))","v":""},{"$f":"IF('TSA Input'!J740=\"\",\"\",IF(OR('TSA Input'!J740=\"Yes\",'TSA Input'!J740=\"Contingent\"),'TSA Input'!G740,\"\"))","v":""},{"$f":"IF('TSA Input'!J740=\"\",\"\",IF(OR('TSA Input'!J740=\"Yes\",'TSA Input'!J740=\"Contingent\"),'TSA Input'!F740,\"\"))","v":""},"",{"$f":"IF('TSA Input'!J740=\"\",\"\",IF(OR('TSA Input'!J740=\"Yes\",'TSA Input'!J740=\"Contingent\"),'TSA Input'!D740,\"\"))","v":""},{"$f":"IF('TSA Input'!J740=\"\",\"\",IF(OR('TSA Input'!J740=\"Yes\",'TSA Input'!J740=\"Contingent\"),'TSA Input'!G740,\"\"))","v":""},{"$f":"IF('TSA Input'!J740=\"\",\"\",IF(OR('TSA Input'!J740=\"Yes\",'TSA Input'!J740=\"Contingent\"),'TSA Input'!F740,\"\"))","v":""},"","Required","Required"]
["",null,{"$f":"IF('TSA Input'!J741=\"\",\"\",IF(OR('TSA Input'!J741=\"Yes\",'TSA Input'!J741=\"Contingent\"),'TSA Input'!B741,\"Ineligible\"))","v":""},{"$f":"IF('TSA Input'!J741=\"\",\"\",IF(OR('TSA Input'!J741=\"Yes\",'TSA Input'!J741=\"Contingent\"),'TSA Input'!I741,\"\"))","v":""},{"$f":"IF('TSA Input'!J741=\"\",\"\",IF(OR('TSA Input'!J741=\"Yes\",'TSA Input'!J741=\"Contingent\"),'TSA Input'!C741,\"\"))","v":""},{"$f":"IF('TSA Input'!J741=\"\",\"\",IF(OR('TSA Input'!J741=\"Yes\",'TSA Input'!J741=\"Contingent\"),'TSA Input'!D741,\"\"))","v":""},{"$f":"IF('TSA Input'!J741=\"\",\"\",IF(OR('TSA Input'!J741=\"Yes\",'TSA Input'!J741=\"Contingent\"),'TSA Input'!G741,\"\"))","v":""},{"$f":"IF('TSA Input'!J741=\"\",\"\",IF(OR('TSA Input'!J741=\"Yes\",'TSA Input'!J741=\"Contingent\"),'TSA Input'!F741,\"\"))","v":""},"",{"$f":"IF('TSA Input'!J741=\"\",\"\",IF(OR('TSA Input'!J741=\"Yes\",'TSA Input'!J741=\"Contingent\"),'TSA Input'!D741,\"\"))","v":""},{"$f":"IF('TSA Input'!J741=\"\",\"\",IF(OR('TSA Input'!J741=\"Yes\",'TSA Input'!J741=\"Contingent\"),'TSA Input'!G741,\"\"))","v":""},{"$f":"IF('TSA Input'!J741=\"\",\"\",IF(OR('TSA Input'!J741=\"Yes\",'TSA Input'!J741=\"Contingent\"),'TSA Input'!F741,\"\"))","v":""},"","Required","Required"]
["",null,{"$f":"IF('TSA Input'!J742=\"\",\"\",IF(OR('TSA Input'!J742=\"Yes\",'TSA Input'!J742=\"Contingent\"),'TSA Input'!B742,\"Ineligible\"))","v":""},{"$f":"IF('TSA Input'!J742=\"\",\"\",IF(OR('TSA Input'!J742=\"Yes\",'TSA Input'!J742=\"Contingent\"),'TSA Input'!I742,\"\"))","v":""},{"$f":"IF('TSA Input'!J742=\"\",\"\",IF(OR('TSA Input'!J742=\"Yes\",'TSA Input'!J742=\"Contingent\"),'TSA Input'!C742,\"\"))","v":""},{"$f":"IF('TSA Input'!J742=\"\",\"\",IF(OR('TSA Input'!J742=\"Yes\",'TSA Input'!J742=\"Contingent\"),'TSA Input'!D742,\"\"))","v":""},{"$f":"IF('TSA Input'!J742=\"\",\"\",IF(OR('TSA Input'!J742=\"Yes\",'TSA Input'!J742=\"Contingent\"),'TSA Input'!G742,\"\"))","v":""},{"$f":"IF('TSA Input'!J742=\"\",\"\",IF(OR('TSA Input'!J742=\"Yes\",'TSA Input'!J742=\"Contingent\"),'TSA Input'!F742,\"\"))","v":""},"",{"$f":"IF('TSA Input'!J742=\"\",\"\",IF(OR('TSA Input'!J742=\"Yes\",'TSA Input'!J742=\"Contingent\"),'TSA Input'!D742,\"\"))","v":""},{"$f":"IF('TSA Input'!J742=\"\",\"\",IF(OR('TSA Input'!J742=\"Yes\",'TSA Input'!J742=\"Contingent\"),'TSA Input'!G742,\"\"))","v":""},{"$f":"IF('TSA Input'!J742=\"\",\"\",IF(OR('TSA Input'!J742=\"Yes\",'TSA Input'!J742=\"Contingent\"),'TSA Input'!F742,\"\"))","v":""},"","Required","Required"]
["",null,{"$f":"IF('TSA Input'!J743=\"\",\"\",IF(OR('TSA Input'!J743=\"Yes\",'TSA Input'!J743=\"Contingent\"),'TSA Input'!B743,\"Ineligible\"))","v":""},{"$f":"IF('TSA Input'!J743=\"\",\"\",IF(OR('TSA Input'!J743=\"Yes\",'TSA Input'!J743=\"Contingent\"),'TSA Input'!I743,\"\"))","v":""},{"$f":"IF('TSA Input'!J743=\"\",\"\",IF(OR('TSA Input'!J743=\"Yes\",'TSA Input'!J743=\"Contingent\"),'TSA Input'!C743,\"\"))","v":""},{"$f":"IF('TSA Input'!J743=\"\",\"\",IF(OR('TSA Input'!J743=\"Yes\",'TSA Input'!J743=\"Contingent\"),'TSA Input'!D743,\"\"))","v":""},{"$f":"IF('TSA Input'!J743=\"\",\"\",IF(OR('TSA Input'!J743=\"Yes\",'TSA Input'!J743=\"Contingent\"),'TSA Input'!G743,\"\"))","v":""},{"$f":"IF('TSA Input'!J743=\"\",\"\",IF(OR('TSA Input'!J743=\"Yes\",'TSA Input'!J743=\"Contingent\"),'TSA Input'!F743,\"\"))","v":""},"",{"$f":"IF('TSA Input'!J743=\"\",\"\",IF(OR('TSA Input'!J743=\"Yes\",'TSA Input'!J743=\"Contingent\"),'TSA Input'!D743,\"\"))","v":""},{"$f":"IF('TSA Input'!J743=\"\",\"\",IF(OR('TSA Input'!J743=\"Yes\",'TSA Input'!J743=\"Contingent\"),'TSA Input'!G743,\"\"))","v":""},{"$f":"IF('TSA Input'!J743=\"\",\"\",IF(OR('TSA Input'!J743=\"Yes\",'TSA Input'!J743=\"Contingent\"),'TSA Input'!F743,\"\"))","v":""},"","Required","Required"]
["",null,{"$f":"IF('TSA Input'!J744=\"\",\"\",IF(OR('TSA Input'!J744=\"Yes\",'TSA Input'!J744=\"Contingent\"),'TSA Input'!B744,\"Ineligible\"))","v":""},{"$f":"IF('TSA Input'!J744=\"\",\"\",IF(OR('TSA Input'!J744=\"Yes\",'TSA Input'!J744=\"Contingent\"),'TSA Input'!I744,\"\"))","v":""},{"$f":"IF('TSA Input'!J744=\"\",\"\",IF(OR('TSA Input'!J744=\"Yes\",'TSA Input'!J744=\"Contingent\"),'TSA Input'!C744,\"\"))","v":""},{"$f":"IF('TSA Input'!J744=\"\",\"\",IF(OR('TSA Input'!J744=\"Yes\",'TSA Input'!J744=\"Contingent\"),'TSA Input'!D744,\"\"))","v":""},{"$f":"IF('TSA Input'!J744=\"\",\"\",IF(OR('TSA Input'!J744=\"Yes\",'TSA Input'!J744=\"Contingent\"),'TSA Input'!G744,\"\"))","v":""},{"$f":"IF('TSA Input'!J744=\"\",\"\",IF(OR('TSA Input'!J744=\"Yes\",'TSA Input'!J744=\"Contingent\"),'TSA Input'!F744,\"\"))","v":""},"",{"$f":"IF('TSA Input'!J744=\"\",\"\",IF(OR('TSA Input'!J744=\"Yes\",'TSA Input'!J744=\"Contingent\"),'TSA Input'!D744,\"\"))","v":""},{"$f":"IF('TSA Input'!J744=\"\",\"\",IF(OR('TSA Input'!J744=\"Yes\",'TSA Input'!J744=\"Contingent\"),'TSA Input'!G744,\"\"))","v":""},{"$f":"IF('TSA Input'!J744=\"\",\"\",IF(OR('TSA Input'!J744=\"Yes\",'TSA Input'!J744=\"Contingent\"),'TSA Input'!F744,\"\"))","v":""},"","Required","Required"]
["",null,{"$f":"IF('TSA Input'!J745=\"\",\"\",IF(OR('TSA Input'!J745=\"Yes\",'TSA Input'!J745=\"Contingent\"),'TSA Input'!B745,\"Ineligible\"))","v":""},{"$f":"IF('TSA Input'!J745=\"\",\"\",IF(OR('TSA Input'!J745=\"Yes\",'TSA Input'!J745=\"Contingent\"),'TSA Input'!I745,\"\"))","v":""},{"$f":"IF('TSA Input'!J745=\"\",\"\",IF(OR('TSA Input'!J745=\"Yes\",'TSA Input'!J745=\"Contingent\"),'TSA Input'!C745,\"\"))","v":""},{"$f":"IF('TSA Input'!J745=\"\",\"\",IF(OR('TSA Input'!J745=\"Yes\",'TSA Input'!J745=\"Contingent\"),'TSA Input'!D745,\"\"))","v":""},{"$f":"IF('TSA Input'!J745=\"\",\"\",IF(OR('TSA Input'!J745=\"Yes\",'TSA Input'!J745=\"Contingent\"),'TSA Input'!G745,\"\"))","v":""},{"$f":"IF('TSA Input'!J745=\"\",\"\",IF(OR('TSA Input'!J745=\"Yes\",'TSA Input'!J745=\"Contingent\"),'TSA Input'!F745,\"\"))","v":""},"",{"$f":"IF('TSA Input'!J745=\"\",\"\",IF(OR('TSA Input'!J745=\"Yes\",'TSA Input'!J745=\"Contingent\"),'TSA Input'!D745,\"\"))","v":""},{"$f":"IF('TSA Input'!J745=\"\",\"\",IF(OR('TSA Input'!J745=\"Yes\",'TSA Input'!J745=\"Contingent\"),'TSA Input'!G745,\"\"))","v":""},{"$f":"IF('TSA Input'!J745=\"\",\"\",IF(OR('TSA Input'!J745=\"Yes\",'TSA Input'!J745=\"Contingent\"),'TSA Input'!F745,\"\"))","v":""},"","Required","Required"]
["",null,{"$f":"IF('TSA Input'!J746=\"\",\"\",IF(OR('TSA Input'!J746=\"Yes\",'TSA Input'!J746=\"Contingent\"),'TSA Input'!B746,\"Ineligible\"))","v":""},{"$f":"IF('TSA Input'!J746=\"\",\"\",IF(OR('TSA Input'!J746=\"Yes\",'TSA Input'!J746=\"Contingent\"),'TSA Input'!I746,\"\"))","v":""},{"$f":"IF('TSA Input'!J746=\"\",\"\",IF(OR('TSA Input'!J746=\"Yes\",'TSA Input'!J746=\"Contingent\"),'TSA Input'!C746,\"\"))","v":""},{"$f":"IF('TSA Input'!J746=\"\",\"\",IF(OR('TSA Input'!J746=\"Yes\",'TSA Input'!J746=\"Contingent\"),'TSA Input'!D746,\"\"))","v":""},{"$f":"IF('TSA Input'!J746=\"\",\"\",IF(OR('TSA Input'!J746=\"Yes\",'TSA Input'!J746=\"Contingent\"),'TSA Input'!G746,\"\"))","v":""},{"$f":"IF('TSA Input'!J746=\"\",\"\",IF(OR('TSA Input'!J746=\"Yes\",'TSA Input'!J746=\"Contingent\"),'TSA Input'!F746,\"\"))","v":""},"",{"$f":"IF('TSA Input'!J746=\"\",\"\",IF(OR('TSA Input'!J746=\"Yes\",'TSA Input'!J746=\"Contingent\"),'TSA Input'!D746,\"\"))","v":""},{"$f":"IF('TSA Input'!J746=\"\",\"\",IF(OR('TSA Input'!J746=\"Yes\",'TSA Input'!J746=\"Contingent\"),'TSA Input'!G746,\"\"))","v":""},{"$f":"IF('TSA Input'!J746=\"\",\"\",IF(OR('TSA Input'!J746=\"Yes\",'TSA Input'!J746=\"Contingent\"),'TSA Input'!F746,\"\"))","v":""},"","Required","Required"]
["",null,{"$f":"IF('TSA Input'!J747=\"\",\"\",IF(OR('TSA Input'!J747=\"Yes\",'TSA Input'!J747=\"Contingent\"),'TSA Input'!B747,\"Ineligible\"))","v":""},{"$f":"IF('TSA Input'!J747=\"\",\"\",IF(OR('TSA Input'!J747=\"Yes\",'TSA Input'!J747=\"Contingent\"),'TSA Input'!I747,\"\"))","v":""},{"$f":"IF('TSA Input'!J747=\"\",\"\",IF(OR('TSA Input'!J747=\"Yes\",'TSA Input'!J747=\"Contingent\"),'TSA Input'!C747,\"\"))","v":""},{"$f":"IF('TSA Input'!J747=\"\",\"\",IF(OR('TSA Input'!J747=\"Yes\",'TSA Input'!J747=\"Contingent\"),'TSA Input'!D747,\"\"))","v":""},{"$f":"IF('TSA Input'!J747=\"\",\"\",IF(OR('TSA Input'!J747=\"Yes\",'TSA Input'!J747=\"Contingent\"),'TSA Input'!G747,\"\"))","v":""},{"$f":"IF('TSA Input'!J747=\"\",\"\",IF(OR('TSA Input'!J747=\"Yes\",'TSA Input'!J747=\"Contingent\"),'TSA Input'!F747,\"\"))","v":""},"",{"$f":"IF('TSA Input'!J747=\"\",\"\",IF(OR('TSA Input'!J747=\"Yes\",'TSA Input'!J747=\"Contingent\"),'TSA Input'!D747,\"\"))","v":""},{"$f":"IF('TSA Input'!J747=\"\",\"\",IF(OR('TSA Input'!J747=\"Yes\",'TSA Input'!J747=\"Contingent\"),'TSA Input'!G747,\"\"))","v":""},{"$f":"IF('TSA Input'!J747=\"\",\"\",IF(OR('TSA Input'!J747=\"Yes\",'TSA Input'!J747=\"Contingent\"),'TSA Input'!F747,\"\"))","v":""},"","Required","Required"]
["",null,{"$f":"IF('TSA Input'!J748=\"\",\"\",IF(OR('TSA Input'!J748=\"Yes\",'TSA Input'!J748=\"Contingent\"),'TSA Input'!B748,\"Ineligible\"))","v":""},{"$f":"IF('TSA Input'!J748=\"\",\"\",IF(OR('TSA Input'!J748=\"Yes\",'TSA Input'!J748=\"Contingent\"),'TSA Input'!I748,\"\"))","v":""},{"$f":"IF('TSA Input'!J748=\"\",\"\",IF(OR('TSA Input'!J748=\"Yes\",'TSA Input'!J748=\"Contingent\"),'TSA Input'!C748,\"\"))","v":""},{"$f":"IF('TSA Input'!J748=\"\",\"\",IF(OR('TSA Input'!J748=\"Yes\",'TSA Input'!J748=\"Contingent\"),'TSA Input'!D748,\"\"))","v":""},{"$f":"IF('TSA Input'!J748=\"\",\"\",IF(OR('TSA Input'!J748=\"Yes\",'TSA Input'!J748=\"Contingent\"),'TSA Input'!G748,\"\"))","v":""},{"$f":"IF('TSA Input'!J748=\"\",\"\",IF(OR('TSA Input'!J748=\"Yes\",'TSA Input'!J748=\"Contingent\"),'TSA Input'!F748,\"\"))","v":""},"",{"$f":"IF('TSA Input'!J748=\"\",\"\",IF(OR('TSA Input'!J748=\"Yes\",'TSA Input'!J748=\"Contingent\"),'TSA Input'!D748,\"\"))","v":""},{"$f":"IF('TSA Input'!J748=\"\",\"\",IF(OR('TSA Input'!J748=\"Yes\",'TSA Input'!J748=\"Contingent\"),'TSA Input'!G748,\"\"))","v":""},{"$f":"IF('TSA Input'!J748=\"\",\"\",IF(OR('TSA Input'!J748=\"Yes\",'TSA Input'!J748=\"Contingent\"),'TSA Input'!F748,\"\"))","v":""},"","Required","Required"]
["",null,{"$f":"IF('TSA Input'!J749=\"\",\"\",IF(OR('TSA Input'!J749=\"Yes\",'TSA Input'!J749=\"Contingent\"),'TSA Input'!B749,\"Ineligible\"))","v":""},{"$f":"IF('TSA Input'!J749=\"\",\"\",IF(OR('TSA Input'!J749=\"Yes\",'TSA Input'!J749=\"Contingent\"),'TSA Input'!I749,\"\"))","v":""},{"$f":"IF('TSA Input'!J749=\"\",\"\",IF(OR('TSA Input'!J749=\"Yes\",'TSA Input'!J749=\"Contingent\"),'TSA Input'!C749,\"\"))","v":""},{"$f":"IF('TSA Input'!J749=\"\",\"\",IF(OR('TSA Input'!J749=\"Yes\",'TSA Input'!J749=\"Contingent\"),'TSA Input'!D749,\"\"))","v":""},{"$f":"IF('TSA Input'!J749=\"\",\"\",IF(OR('TSA Input'!J749=\"Yes\",'TSA Input'!J749=\"Contingent\"),'TSA Input'!G749,\"\"))","v":""},{"$f":"IF('TSA Input'!J749=\"\",\"\",IF(OR('TSA Input'!J749=\"Yes\",'TSA Input'!J749=\"Contingent\"),'TSA Input'!F749,\"\"))","v":""},"",{"$f":"IF('TSA Input'!J749=\"\",\"\",IF(OR('TSA Input'!J749=\"Yes\",'TSA Input'!J749=\"Contingent\"),'TSA Input'!D749,\"\"))","v":""},{"$f":"IF('TSA Input'!J749=\"\",\"\",IF(OR('TSA Input'!J749=\"Yes\",'TSA Input'!J749=\"Contingent\"),'TSA Input'!G749,\"\"))","v":""},{"$f":"IF('TSA Input'!J749=\"\",\"\",IF(OR('TSA Input'!J749=\"Yes\",'TSA Input'!J749=\"Contingent\"),'TSA Input'!F749,\"\"))","v":""},"","Required","Required"]
["",null,{"$f":"IF('TSA Input'!J750=\"\",\"\",IF(OR('TSA Input'!J750=\"Yes\",'TSA Input'!J750=\"Contingent\"),'TSA Input'!B750,\"Ineligible\"))","v":""},{"$f":"IF('TSA Input'!J750=\"\",\"\",IF(OR('TSA Input'!J750=\"Yes\",'TSA Input'!J750=\"Contingent\"),'TSA Input'!I750,\"\"))","v":""},{"$f":"IF('TSA Input'!J750=\"\",\"\",IF(OR('TSA Input'!J750=\"Yes\",'TSA Input'!J750=\"Contingent\"),'TSA Input'!C750,\"\"))","v":""},{"$f":"IF('TSA Input'!J750=\"\",\"\",IF(OR('TSA Input'!J750=\"Yes\",'TSA Input'!J750=\"Contingent\"),'TSA Input'!D750,\"\"))","v":""},{"$f":"IF('TSA Input'!J750=\"\",\"\",IF(OR('TSA Input'!J750=\"Yes\",'TSA Input'!J750=\"Contingent\"),'TSA Input'!G750,\"\"))","v":""},{"$f":"IF('TSA Input'!J750=\"\",\"\",IF(OR('TSA Input'!J750=\"Yes\",'TSA Input'!J750=\"Contingent\"),'TSA Input'!F750,\"\"))","v":""},"",{"$f":"IF('TSA Input'!J750=\"\",\"\",IF(OR('TSA Input'!J750=\"Yes\",'TSA Input'!J750=\"Contingent\"),'TSA Input'!D750,\"\"))","v":""},{"$f":"IF('TSA Input'!J750=\"\",\"\",IF(OR('TSA Input'!J750=\"Yes\",'TSA Input'!J750=\"Contingent\"),'TSA Input'!G750,\"\"))","v":""},{"$f":"IF('TSA Input'!J750=\"\",\"\",IF(OR('TSA Input'!J750=\"Yes\",'TSA Input'!J750=\"Contingent\"),'TSA Input'!F750,\"\"))","v":""},"","Required","Required"]
["",null,{"$f":"IF('TSA Input'!J751=\"\",\"\",IF(OR('TSA Input'!J751=\"Yes\",'TSA Input'!J751=\"Contingent\"),'TSA Input'!B751,\"Ineligible\"))","v":""},{"$f":"IF('TSA Input'!J751=\"\",\"\",IF(OR('TSA Input'!J751=\"Yes\",'TSA Input'!J751=\"Contingent\"),'TSA Input'!I751,\"\"))","v":""},{"$f":"IF('TSA Input'!J751=\"\",\"\",IF(OR('TSA Input'!J751=\"Yes\",'TSA Input'!J751=\"Contingent\"),'TSA Input'!C751,\"\"))","v":""},{"$f":"IF('TSA Input'!J751=\"\",\"\",IF(OR('TSA Input'!J751=\"Yes\",'TSA Input'!J751=\"Contingent\"),'TSA Input'!D751,\"\"))","v":""},{"$f":"IF('TSA Input'!J751=\"\",\"\",IF(OR('TSA Input'!J751=\"Yes\",'TSA Input'!J751=\"Contingent\"),'TSA Input'!G751,\"\"))","v":""},{"$f":"IF('TSA Input'!J751=\"\",\"\",IF(OR('TSA Input'!J751=\"Yes\",'TSA Input'!J751=\"Contingent\"),'TSA Input'!F751,\"\"))","v":""},"",{"$f":"IF('TSA Input'!J751=\"\",\"\",IF(OR('TSA Input'!J751=\"Yes\",'TSA Input'!J751=\"Contingent\"),'TSA Input'!D751,\"\"))","v":""},{"$f":"IF('TSA Input'!J751=\"\",\"\",IF(OR('TSA Input'!J751=\"Yes\",'TSA Input'!J751=\"Contingent\"),'TSA Input'!G751,\"\"))","v":""},{"$f":"IF('TSA Input'!J751=\"\",\"\",IF(OR('TSA Input'!J751=\"Yes\",'TSA Input'!J751=\"Contingent\"),'TSA Input'!F751,\"\"))","v":""},"","Required","Required"]
["",null,{"$f":"IF('TSA Input'!J752=\"\",\"\",IF(OR('TSA Input'!J752=\"Yes\",'TSA Input'!J752=\"Contingent\"),'TSA Input'!B752,\"Ineligible\"))","v":""},{"$f":"IF('TSA Input'!J752=\"\",\"\",IF(OR('TSA Input'!J752=\"Yes\",'TSA Input'!J752=\"Contingent\"),'TSA Input'!I752,\"\"))","v":""},{"$f":"IF('TSA Input'!J752=\"\",\"\",IF(OR('TSA Input'!J752=\"Yes\",'TSA Input'!J752=\"Contingent\"),'TSA Input'!C752,\"\"))","v":""},{"$f":"IF('TSA Input'!J752=\"\",\"\",IF(OR('TSA Input'!J752=\"Yes\",'TSA Input'!J752=\"Contingent\"),'TSA Input'!D752,\"\"))","v":""},{"$f":"IF('TSA Input'!J752=\"\",\"\",IF(OR('TSA Input'!J752=\"Yes\",'TSA Input'!J752=\"Contingent\"),'TSA Input'!G752,\"\"))","v":""},{"$f":"IF('TSA Input'!J752=\"\",\"\",IF(OR('TSA Input'!J752=\"Yes\",'TSA Input'!J752=\"Contingent\"),'TSA Input'!F752,\"\"))","v":""},"",{"$f":"IF('TSA Input'!J752=\"\",\"\",IF(OR('TSA Input'!J752=\"Yes\",'TSA Input'!J752=\"Contingent\"),'TSA Input'!D752,\"\"))","v":""},{"$f":"IF('TSA Input'!J752=\"\",\"\",IF(OR('TSA Input'!J752=\"Yes\",'TSA Input'!J752=\"Contingent\"),'TSA Input'!G752,\"\"))","v":""},{"$f":"IF('TSA Input'!J752=\"\",\"\",IF(OR('TSA Input'!J752=\"Yes\",'TSA Input'!J752=\"Contingent\"),'TSA Input'!F752,\"\"))","v":""},"","Required","Required"]
["",null,{"$f":"IF('TSA Input'!J753=\"\",\"\",IF(OR('TSA Input'!J753=\"Yes\",'TSA Input'!J753=\"Contingent\"),'TSA Input'!B753,\"Ineligible\"))","v":""},{"$f":"IF('TSA Input'!J753=\"\",\"\",IF(OR('TSA Input'!J753=\"Yes\",'TSA Input'!J753=\"Contingent\"),'TSA Input'!I753,\"\"))","v":""},{"$f":"IF('TSA Input'!J753=\"\",\"\",IF(OR('TSA Input'!J753=\"Yes\",'TSA Input'!J753=\"Contingent\"),'TSA Input'!C753,\"\"))","v":""},{"$f":"IF('TSA Input'!J753=\"\",\"\",IF(OR('TSA Input'!J753=\"Yes\",'TSA Input'!J753=\"Contingent\"),'TSA Input'!D753,\"\"))","v":""},{"$f":"IF('TSA Input'!J753=\"\",\"\",IF(OR('TSA Input'!J753=\"Yes\",'TSA Input'!J753=\"Contingent\"),'TSA Input'!G753,\"\"))","v":""},{"$f":"IF('TSA Input'!J753=\"\",\"\",IF(OR('TSA Input'!J753=\"Yes\",'TSA Input'!J753=\"Contingent\"),'TSA Input'!F753,\"\"))","v":""},"",{"$f":"IF('TSA Input'!J753=\"\",\"\",IF(OR('TSA Input'!J753=\"Yes\",'TSA Input'!J753=\"Contingent\"),'TSA Input'!D753,\"\"))","v":""},{"$f":"IF('TSA Input'!J753=\"\",\"\",IF(OR('TSA Input'!J753=\"Yes\",'TSA Input'!J753=\"Contingent\"),'TSA Input'!G753,\"\"))","v":""},{"$f":"IF('TSA Input'!J753=\"\",\"\",IF(OR('TSA Input'!J753=\"Yes\",'TSA Input'!J753=\"Contingent\"),'TSA Input'!F753,\"\"))","v":""},"","Required","Required"]
["",null,{"$f":"IF('TSA Input'!J754=\"\",\"\",IF(OR('TSA Input'!J754=\"Yes\",'TSA Input'!J754=\"Contingent\"),'TSA Input'!B754,\"Ineligible\"))","v":""},{"$f":"IF('TSA Input'!J754=\"\",\"\",IF(OR('TSA Input'!J754=\"Yes\",'TSA Input'!J754=\"Contingent\"),'TSA Input'!I754,\"\"))","v":""},{"$f":"IF('TSA Input'!J754=\"\",\"\",IF(OR('TSA Input'!J754=\"Yes\",'TSA Input'!J754=\"Contingent\"),'TSA Input'!C754,\"\"))","v":""},{"$f":"IF('TSA Input'!J754=\"\",\"\",IF(OR('TSA Input'!J754=\"Yes\",'TSA Input'!J754=\"Contingent\"),'TSA Input'!D754,\"\"))","v":""},{"$f":"IF('TSA Input'!J754=\"\",\"\",IF(OR('TSA Input'!J754=\"Yes\",'TSA Input'!J754=\"Contingent\"),'TSA Input'!G754,\"\"))","v":""},{"$f":"IF('TSA Input'!J754=\"\",\"\",IF(OR('TSA Input'!J754=\"Yes\",'TSA Input'!J754=\"Contingent\"),'TSA Input'!F754,\"\"))","v":""},"",{"$f":"IF('TSA Input'!J754=\"\",\"\",IF(OR('TSA Input'!J754=\"Yes\",'TSA Input'!J754=\"Contingent\"),'TSA Input'!D754,\"\"))","v":""},{"$f":"IF('TSA Input'!J754=\"\",\"\",IF(OR('TSA Input'!J754=\"Yes\",'TSA Input'!J754=\"Contingent\"),'TSA Input'!G754,\"\"))","v":""},{"$f":"IF('TSA Input'!J754=\"\",\"\",IF(OR('TSA Input'!J754=\"Yes\",'TSA Input'!J754=\"Contingent\"),'TSA Input'!F754,\"\"))","v":""},"","Required","Required"]
["",null,{"$f":"IF('TSA Input'!J755=\"\",\"\",IF(OR('TSA Input'!J755=\"Yes\",'TSA Input'!J755=\"Contingent\"),'TSA Input'!B755,\"Ineligible\"))","v":""},{"$f":"IF('TSA Input'!J755=\"\",\"\",IF(OR('TSA Input'!J755=\"Yes\",'TSA Input'!J755=\"Contingent\"),'TSA Input'!I755,\"\"))","v":""},{"$f":"IF('TSA Input'!J755=\"\",\"\",IF(OR('TSA Input'!J755=\"Yes\",'TSA Input'!J755=\"Contingent\"),'TSA Input'!C755,\"\"))","v":""},{"$f":"IF('TSA Input'!J755=\"\",\"\",IF(OR('TSA Input'!J755=\"Yes\",'TSA Input'!J755=\"Contingent\"),'TSA Input'!D755,\"\"))","v":""},{"$f":"IF('TSA Input'!J755=\"\",\"\",IF(OR('TSA Input'!J755=\"Yes\",'TSA Input'!J755=\"Contingent\"),'TSA Input'!G755,\"\"))","v":""},{"$f":"IF('TSA Input'!J755=\"\",\"\",IF(OR('TSA Input'!J755=\"Yes\",'TSA Input'!J755=\"Contingent\"),'TSA Input'!F755,\"\"))","v":""},"",{"$f":"IF('TSA Input'!J755=\"\",\"\",IF(OR('TSA Input'!J755=\"Yes\",'TSA Input'!J755=\"Contingent\"),'TSA Input'!D755,\"\"))","v":""},{"$f":"IF('TSA Input'!J755=\"\",\"\",IF(OR('TSA Input'!J755=\"Yes\",'TSA Input'!J755=\"Contingent\"),'TSA Input'!G755,\"\"))","v":""},{"$f":"IF('TSA Input'!J755=\"\",\"\",IF(OR('TSA Input'!J755=\"Yes\",'TSA Input'!J755=\"Contingent\"),'TSA Input'!F755,\"\"))","v":""},"","Required","Required"]
["",null,{"$f":"IF('TSA Input'!J756=\"\",\"\",IF(OR('TSA Input'!J756=\"Yes\",'TSA Input'!J756=\"Contingent\"),'TSA Input'!B756,\"Ineligible\"))","v":""},{"$f":"IF('TSA Input'!J756=\"\",\"\",IF(OR('TSA Input'!J756=\"Yes\",'TSA Input'!J756=\"Contingent\"),'TSA Input'!I756,\"\"))","v":""},{"$f":"IF('TSA Input'!J756=\"\",\"\",IF(OR('TSA Input'!J756=\"Yes\",'TSA Input'!J756=\"Contingent\"),'TSA Input'!C756,\"\"))","v":""},{"$f":"IF('TSA Input'!J756=\"\",\"\",IF(OR('TSA Input'!J756=\"Yes\",'TSA Input'!J756=\"Contingent\"),'TSA Input'!D756,\"\"))","v":""},{"$f":"IF('TSA Input'!J756=\"\",\"\",IF(OR('TSA Input'!J756=\"Yes\",'TSA Input'!J756=\"Contingent\"),'TSA Input'!G756,\"\"))","v":""},{"$f":"IF('TSA Input'!J756=\"\",\"\",IF(OR('TSA Input'!J756=\"Yes\",'TSA Input'!J756=\"Contingent\"),'TSA Input'!F756,\"\"))","v":""},"",{"$f":"IF('TSA Input'!J756=\"\",\"\",IF(OR('TSA Input'!J756=\"Yes\",'TSA Input'!J756=\"Contingent\"),'TSA Input'!D756,\"\"))","v":""},{"$f":"IF('TSA Input'!J756=\"\",\"\",IF(OR('TSA Input'!J756=\"Yes\",'TSA Input'!J756=\"Contingent\"),'TSA Input'!G756,\"\"))","v":""},{"$f":"IF('TSA Input'!J756=\"\",\"\",IF(OR('TSA Input'!J756=\"Yes\",'TSA Input'!J756=\"Contingent\"),'TSA Input'!F756,\"\"))","v":""},"","Required","Required"]
["",null,{"$f":"IF('TSA Input'!J757=\"\",\"\",IF(OR('TSA Input'!J757=\"Yes\",'TSA Input'!J757=\"Contingent\"),'TSA Input'!B757,\"Ineligible\"))","v":""},{"$f":"IF('TSA Input'!J757=\"\",\"\",IF(OR('TSA Input'!J757=\"Yes\",'TSA Input'!J757=\"Contingent\"),'TSA Input'!I757,\"\"))","v":""},{"$f":"IF('TSA Input'!J757=\"\",\"\",IF(OR('TSA Input'!J757=\"Yes\",'TSA Input'!J757=\"Contingent\"),'TSA Input'!C757,\"\"))","v":""},{"$f":"IF('TSA Input'!J757=\"\",\"\",IF(OR('TSA Input'!J757=\"Yes\",'TSA Input'!J757=\"Contingent\"),'TSA Input'!D757,\"\"))","v":""},{"$f":"IF('TSA Input'!J757=\"\",\"\",IF(OR('TSA Input'!J757=\"Yes\",'TSA Input'!J757=\"Contingent\"),'TSA Input'!G757,\"\"))","v":""},{"$f":"IF('TSA Input'!J757=\"\",\"\",IF(OR('TSA Input'!J757=\"Yes\",'TSA Input'!J757=\"Contingent\"),'TSA Input'!F757,\"\"))","v":""},"",{"$f":"IF('TSA Input'!J757=\"\",\"\",IF(OR('TSA Input'!J757=\"Yes\",'TSA Input'!J757=\"Contingent\"),'TSA Input'!D757,\"\"))","v":""},{"$f":"IF('TSA Input'!J757=\"\",\"\",IF(OR('TSA Input'!J757=\"Yes\",'TSA Input'!J757=\"Contingent\"),'TSA Input'!G757,\"\"))","v":""},{"$f":"IF('TSA Input'!J757=\"\",\"\",IF(OR('TSA Input'!J757=\"Yes\",'TSA Input'!J757=\"Contingent\"),'TSA Input'!F757,\"\"))","v":""},"","Required","Required"]
["",null,{"$f":"IF('TSA Input'!J758=\"\",\"\",IF(OR('TSA Input'!J758=\"Yes\",'TSA Input'!J758=\"Contingent\"),'TSA Input'!B758,\"Ineligible\"))","v":""},{"$f":"IF('TSA Input'!J758=\"\",\"\",IF(OR('TSA Input'!J758=\"Yes\",'TSA Input'!J758=\"Contingent\"),'TSA Input'!I758,\"\"))","v":""},{"$f":"IF('TSA Input'!J758=\"\",\"\",IF(OR('TSA Input'!J758=\"Yes\",'TSA Input'!J758=\"Contingent\"),'TSA Input'!C758,\"\"))","v":""},{"$f":"IF('TSA Input'!J758=\"\",\"\",IF(OR('TSA Input'!J758=\"Yes\",'TSA Input'!J758=\"Contingent\"),'TSA Input'!D758,\"\"))","v":""},{"$f":"IF('TSA Input'!J758=\"\",\"\",IF(OR('TSA Input'!J758=\"Yes\",'TSA Input'!J758=\"Contingent\"),'TSA Input'!G758,\"\"))","v":""},{"$f":"IF('TSA Input'!J758=\"\",\"\",IF(OR('TSA Input'!J758=\"Yes\",'TSA Input'!J758=\"Contingent\"),'TSA Input'!F758,\"\"))","v":""},"",{"$f":"IF('TSA Input'!J758=\"\",\"\",IF(OR('TSA Input'!J758=\"Yes\",'TSA Input'!J758=\"Contingent\"),'TSA Input'!D758,\"\"))","v":""},{"$f":"IF('TSA Input'!J758=\"\",\"\",IF(OR('TSA Input'!J758=\"Yes\",'TSA Input'!J758=\"Contingent\"),'TSA Input'!G758,\"\"))","v":""},{"$f":"IF('TSA Input'!J758=\"\",\"\",IF(OR('TSA Input'!J758=\"Yes\",'TSA Input'!J758=\"Contingent\"),'TSA Input'!F758,\"\"))","v":""},"","Required","Required"]
["",null,{"$f":"IF('TSA Input'!J759=\"\",\"\",IF(OR('TSA Input'!J759=\"Yes\",'TSA Input'!J759=\"Contingent\"),'TSA Input'!B759,\"Ineligible\"))","v":""},{"$f":"IF('TSA Input'!J759=\"\",\"\",IF(OR('TSA Input'!J759=\"Yes\",'TSA Input'!J759=\"Contingent\"),'TSA Input'!I759,\"\"))","v":""},{"$f":"IF('TSA Input'!J759=\"\",\"\",IF(OR('TSA Input'!J759=\"Yes\",'TSA Input'!J759=\"Contingent\"),'TSA Input'!C759,\"\"))","v":""},{"$f":"IF('TSA Input'!J759=\"\",\"\",IF(OR('TSA Input'!J759=\"Yes\",'TSA Input'!J759=\"Contingent\"),'TSA Input'!D759,\"\"))","v":""},{"$f":"IF('TSA Input'!J759=\"\",\"\",IF(OR('TSA Input'!J759=\"Yes\",'TSA Input'!J759=\"Contingent\"),'TSA Input'!G759,\"\"))","v":""},{"$f":"IF('TSA Input'!J759=\"\",\"\",IF(OR('TSA Input'!J759=\"Yes\",'TSA Input'!J759=\"Contingent\"),'TSA Input'!F759,\"\"))","v":""},"",{"$f":"IF('TSA Input'!J759=\"\",\"\",IF(OR('TSA Input'!J759=\"Yes\",'TSA Input'!J759=\"Contingent\"),'TSA Input'!D759,\"\"))","v":""},{"$f":"IF('TSA Input'!J759=\"\",\"\",IF(OR('TSA Input'!J759=\"Yes\",'TSA Input'!J759=\"Contingent\"),'TSA Input'!G759,\"\"))","v":""},{"$f":"IF('TSA Input'!J759=\"\",\"\",IF(OR('TSA Input'!J759=\"Yes\",'TSA Input'!J759=\"Contingent\"),'TSA Input'!F759,\"\"))","v":""},"","Required","Required"]
["",null,{"$f":"IF('TSA Input'!J760=\"\",\"\",IF(OR('TSA Input'!J760=\"Yes\",'TSA Input'!J760=\"Contingent\"),'TSA Input'!B760,\"Ineligible\"))","v":""},{"$f":"IF('TSA Input'!J760=\"\",\"\",IF(OR('TSA Input'!J760=\"Yes\",'TSA Input'!J760=\"Contingent\"),'TSA Input'!I760,\"\"))","v":""},{"$f":"IF('TSA Input'!J760=\"\",\"\",IF(OR('TSA Input'!J760=\"Yes\",'TSA Input'!J760=\"Contingent\"),'TSA Input'!C760,\"\"))","v":""},{"$f":"IF('TSA Input'!J760=\"\",\"\",IF(OR('TSA Input'!J760=\"Yes\",'TSA Input'!J760=\"Contingent\"),'TSA Input'!D760,\"\"))","v":""},{"$f":"IF('TSA Input'!J760=\"\",\"\",IF(OR('TSA Input'!J760=\"Yes\",'TSA Input'!J760=\"Contingent\"),'TSA Input'!G760,\"\"))","v":""},{"$f":"IF('TSA Input'!J760=\"\",\"\",IF(OR('TSA Input'!J760=\"Yes\",'TSA Input'!J760=\"Contingent\"),'TSA Input'!F760,\"\"))","v":""},"",{"$f":"IF('TSA Input'!J760=\"\",\"\",IF(OR('TSA Input'!J760=\"Yes\",'TSA Input'!J760=\"Contingent\"),'TSA Input'!D760,\"\"))","v":""},{"$f":"IF('TSA Input'!J760=\"\",\"\",IF(OR('TSA Input'!J760=\"Yes\",'TSA Input'!J760=\"Contingent\"),'TSA Input'!G760,\"\"))","v":""},{"$f":"IF('TSA Input'!J760=\"\",\"\",IF(OR('TSA Input'!J760=\"Yes\",'TSA Input'!J760=\"Contingent\"),'TSA Input'!F760,\"\"))","v":""},"","Required","Required"]
["",null,{"$f":"IF('TSA Input'!J761=\"\",\"\",IF(OR('TSA Input'!J761=\"Yes\",'TSA Input'!J761=\"Contingent\"),'TSA Input'!B761,\"Ineligible\"))","v":""},{"$f":"IF('TSA Input'!J761=\"\",\"\",IF(OR('TSA Input'!J761=\"Yes\",'TSA Input'!J761=\"Contingent\"),'TSA Input'!I761,\"\"))","v":""},{"$f":"IF('TSA Input'!J761=\"\",\"\",IF(OR('TSA Input'!J761=\"Yes\",'TSA Input'!J761=\"Contingent\"),'TSA Input'!C761,\"\"))","v":""},{"$f":"IF('TSA Input'!J761=\"\",\"\",IF(OR('TSA Input'!J761=\"Yes\",'TSA Input'!J761=\"Contingent\"),'TSA Input'!D761,\"\"))","v":""},{"$f":"IF('TSA Input'!J761=\"\",\"\",IF(OR('TSA Input'!J761=\"Yes\",'TSA Input'!J761=\"Contingent\"),'TSA Input'!G761,\"\"))","v":""},{"$f":"IF('TSA Input'!J761=\"\",\"\",IF(OR('TSA Input'!J761=\"Yes\",'TSA Input'!J761=\"Contingent\"),'TSA Input'!F761,\"\"))","v":""},"",{"$f":"IF('TSA Input'!J761=\"\",\"\",IF(OR('TSA Input'!J761=\"Yes\",'TSA Input'!J761=\"Contingent\"),'TSA Input'!D761,\"\"))","v":""},{"$f":"IF('TSA Input'!J761=\"\",\"\",IF(OR('TSA Input'!J761=\"Yes\",'TSA Input'!J761=\"Contingent\"),'TSA Input'!G761,\"\"))","v":""},{"$f":"IF('TSA Input'!J761=\"\",\"\",IF(OR('TSA Input'!J761=\"Yes\",'TSA Input'!J761=\"Contingent\"),'TSA Input'!F761,\"\"))","v":""},"","Required","Required"]
["",null,{"$f":"IF('TSA Input'!J762=\"\",\"\",IF(OR('TSA Input'!J762=\"Yes\",'TSA Input'!J762=\"Contingent\"),'TSA Input'!B762,\"Ineligible\"))","v":""},{"$f":"IF('TSA Input'!J762=\"\",\"\",IF(OR('TSA Input'!J762=\"Yes\",'TSA Input'!J762=\"Contingent\"),'TSA Input'!I762,\"\"))","v":""},{"$f":"IF('TSA Input'!J762=\"\",\"\",IF(OR('TSA Input'!J762=\"Yes\",'TSA Input'!J762=\"Contingent\"),'TSA Input'!C762,\"\"))","v":""},{"$f":"IF('TSA Input'!J762=\"\",\"\",IF(OR('TSA Input'!J762=\"Yes\",'TSA Input'!J762=\"Contingent\"),'TSA Input'!D762,\"\"))","v":""},{"$f":"IF('TSA Input'!J762=\"\",\"\",IF(OR('TSA Input'!J762=\"Yes\",'TSA Input'!J762=\"Contingent\"),'TSA Input'!G762,\"\"))","v":""},{"$f":"IF('TSA Input'!J762=\"\",\"\",IF(OR('TSA Input'!J762=\"Yes\",'TSA Input'!J762=\"Contingent\"),'TSA Input'!F762,\"\"))","v":""},"",{"$f":"IF('TSA Input'!J762=\"\",\"\",IF(OR('TSA Input'!J762=\"Yes\",'TSA Input'!J762=\"Contingent\"),'TSA Input'!D762,\"\"))","v":""},{"$f":"IF('TSA Input'!J762=\"\",\"\",IF(OR('TSA Input'!J762=\"Yes\",'TSA Input'!J762=\"Contingent\"),'TSA Input'!G762,\"\"))","v":""},{"$f":"IF('TSA Input'!J762=\"\",\"\",IF(OR('TSA Input'!J762=\"Yes\",'TSA Input'!J762=\"Contingent\"),'TSA Input'!F762,\"\"))","v":""},"","Required","Required"]
["",null,{"$f":"IF('TSA Input'!J763=\"\",\"\",IF(OR('TSA Input'!J763=\"Yes\",'TSA Input'!J763=\"Contingent\"),'TSA Input'!B763,\"Ineligible\"))","v":""},{"$f":"IF('TSA Input'!J763=\"\",\"\",IF(OR('TSA Input'!J763=\"Yes\",'TSA Input'!J763=\"Contingent\"),'TSA Input'!I763,\"\"))","v":""},{"$f":"IF('TSA Input'!J763=\"\",\"\",IF(OR('TSA Input'!J763=\"Yes\",'TSA Input'!J763=\"Contingent\"),'TSA Input'!C763,\"\"))","v":""},{"$f":"IF('TSA Input'!J763=\"\",\"\",IF(OR('TSA Input'!J763=\"Yes\",'TSA Input'!J763=\"Contingent\"),'TSA Input'!D763,\"\"))","v":""},{"$f":"IF('TSA Input'!J763=\"\",\"\",IF(OR('TSA Input'!J763=\"Yes\",'TSA Input'!J763=\"Contingent\"),'TSA Input'!G763,\"\"))","v":""},{"$f":"IF('TSA Input'!J763=\"\",\"\",IF(OR('TSA Input'!J763=\"Yes\",'TSA Input'!J763=\"Contingent\"),'TSA Input'!F763,\"\"))","v":""},"",{"$f":"IF('TSA Input'!J763=\"\",\"\",IF(OR('TSA Input'!J763=\"Yes\",'TSA Input'!J763=\"Contingent\"),'TSA Input'!D763,\"\"))","v":""},{"$f":"IF('TSA Input'!J763=\"\",\"\",IF(OR('TSA Input'!J763=\"Yes\",'TSA Input'!J763=\"Contingent\"),'TSA Input'!G763,\"\"))","v":""},{"$f":"IF('TSA Input'!J763=\"\",\"\",IF(OR('TSA Input'!J763=\"Yes\",'TSA Input'!J763=\"Contingent\"),'TSA Input'!F763,\"\"))","v":""},"","Required","Required"]
["",null,{"$f":"IF('TSA Input'!J764=\"\",\"\",IF(OR('TSA Input'!J764=\"Yes\",'TSA Input'!J764=\"Contingent\"),'TSA Input'!B764,\"Ineligible\"))","v":""},{"$f":"IF('TSA Input'!J764=\"\",\"\",IF(OR('TSA Input'!J764=\"Yes\",'TSA Input'!J764=\"Contingent\"),'TSA Input'!I764,\"\"))","v":""},{"$f":"IF('TSA Input'!J764=\"\",\"\",IF(OR('TSA Input'!J764=\"Yes\",'TSA Input'!J764=\"Contingent\"),'TSA Input'!C764,\"\"))","v":""},{"$f":"IF('TSA Input'!J764=\"\",\"\",IF(OR('TSA Input'!J764=\"Yes\",'TSA Input'!J764=\"Contingent\"),'TSA Input'!D764,\"\"))","v":""},{"$f":"IF('TSA Input'!J764=\"\",\"\",IF(OR('TSA Input'!J764=\"Yes\",'TSA Input'!J764=\"Contingent\"),'TSA Input'!G764,\"\"))","v":""},{"$f":"IF('TSA Input'!J764=\"\",\"\",IF(OR('TSA Input'!J764=\"Yes\",'TSA Input'!J764=\"Contingent\"),'TSA Input'!F764,\"\"))","v":""},"",{"$f":"IF('TSA Input'!J764=\"\",\"\",IF(OR('TSA Input'!J764=\"Yes\",'TSA Input'!J764=\"Contingent\"),'TSA Input'!D764,\"\"))","v":""},{"$f":"IF('TSA Input'!J764=\"\",\"\",IF(OR('TSA Input'!J764=\"Yes\",'TSA Input'!J764=\"Contingent\"),'TSA Input'!G764,\"\"))","v":""},{"$f":"IF('TSA Input'!J764=\"\",\"\",IF(OR('TSA Input'!J764=\"Yes\",'TSA Input'!J764=\"Contingent\"),'TSA Input'!F764,\"\"))","v":""},"","Required","Required"]
["",null,{"$f":"IF('TSA Input'!J765=\"\",\"\",IF(OR('TSA Input'!J765=\"Yes\",'TSA Input'!J765=\"Contingent\"),'TSA Input'!B765,\"Ineligible\"))","v":""},{"$f":"IF('TSA Input'!J765=\"\",\"\",IF(OR('TSA Input'!J765=\"Yes\",'TSA Input'!J765=\"Contingent\"),'TSA Input'!I765,\"\"))","v":""},{"$f":"IF('TSA Input'!J765=\"\",\"\",IF(OR('TSA Input'!J765=\"Yes\",'TSA Input'!J765=\"Contingent\"),'TSA Input'!C765,\"\"))","v":""},{"$f":"IF('TSA Input'!J765=\"\",\"\",IF(OR('TSA Input'!J765=\"Yes\",'TSA Input'!J765=\"Contingent\"),'TSA Input'!D765,\"\"))","v":""},{"$f":"IF('TSA Input'!J765=\"\",\"\",IF(OR('TSA Input'!J765=\"Yes\",'TSA Input'!J765=\"Contingent\"),'TSA Input'!G765,\"\"))","v":""},{"$f":"IF('TSA Input'!J765=\"\",\"\",IF(OR('TSA Input'!J765=\"Yes\",'TSA Input'!J765=\"Contingent\"),'TSA Input'!F765,\"\"))","v":""},"",{"$f":"IF('TSA Input'!J765=\"\",\"\",IF(OR('TSA Input'!J765=\"Yes\",'TSA Input'!J765=\"Contingent\"),'TSA Input'!D765,\"\"))","v":""},{"$f":"IF('TSA Input'!J765=\"\",\"\",IF(OR('TSA Input'!J765=\"Yes\",'TSA Input'!J765=\"Contingent\"),'TSA Input'!G765,\"\"))","v":""},{"$f":"IF('TSA Input'!J765=\"\",\"\",IF(OR('TSA Input'!J765=\"Yes\",'TSA Input'!J765=\"Contingent\"),'TSA Input'!F765,\"\"))","v":""},"","Required","Required"]
["",null,{"$f":"IF('TSA Input'!J766=\"\",\"\",IF(OR('TSA Input'!J766=\"Yes\",'TSA Input'!J766=\"Contingent\"),'TSA Input'!B766,\"Ineligible\"))","v":""},{"$f":"IF('TSA Input'!J766=\"\",\"\",IF(OR('TSA Input'!J766=\"Yes\",'TSA Input'!J766=\"Contingent\"),'TSA Input'!I766,\"\"))","v":""},{"$f":"IF('TSA Input'!J766=\"\",\"\",IF(OR('TSA Input'!J766=\"Yes\",'TSA Input'!J766=\"Contingent\"),'TSA Input'!C766,\"\"))","v":""},{"$f":"IF('TSA Input'!J766=\"\",\"\",IF(OR('TSA Input'!J766=\"Yes\",'TSA Input'!J766=\"Contingent\"),'TSA Input'!D766,\"\"))","v":""},{"$f":"IF('TSA Input'!J766=\"\",\"\",IF(OR('TSA Input'!J766=\"Yes\",'TSA Input'!J766=\"Contingent\"),'TSA Input'!G766,\"\"))","v":""},{"$f":"IF('TSA Input'!J766=\"\",\"\",IF(OR('TSA Input'!J766=\"Yes\",'TSA Input'!J766=\"Contingent\"),'TSA Input'!F766,\"\"))","v":""},"",{"$f":"IF('TSA Input'!J766=\"\",\"\",IF(OR('TSA Input'!J766=\"Yes\",'TSA Input'!J766=\"Contingent\"),'TSA Input'!D766,\"\"))","v":""},{"$f":"IF('TSA Input'!J766=\"\",\"\",IF(OR('TSA Input'!J766=\"Yes\",'TSA Input'!J766=\"Contingent\"),'TSA Input'!G766,\"\"))","v":""},{"$f":"IF('TSA Input'!J766=\"\",\"\",IF(OR('TSA Input'!J766=\"Yes\",'TSA Input'!J766=\"Contingent\"),'TSA Input'!F766,\"\"))","v":""},"","Required","Required"]
["",null,{"$f":"IF('TSA Input'!J767=\"\",\"\",IF(OR('TSA Input'!J767=\"Yes\",'TSA Input'!J767=\"Contingent\"),'TSA Input'!B767,\"Ineligible\"))","v":""},{"$f":"IF('TSA Input'!J767=\"\",\"\",IF(OR('TSA Input'!J767=\"Yes\",'TSA Input'!J767=\"Contingent\"),'TSA Input'!I767,\"\"))","v":""},{"$f":"IF('TSA Input'!J767=\"\",\"\",IF(OR('TSA Input'!J767=\"Yes\",'TSA Input'!J767=\"Contingent\"),'TSA Input'!C767,\"\"))","v":""},{"$f":"IF('TSA Input'!J767=\"\",\"\",IF(OR('TSA Input'!J767=\"Yes\",'TSA Input'!J767=\"Contingent\"),'TSA Input'!D767,\"\"))","v":""},{"$f":"IF('TSA Input'!J767=\"\",\"\",IF(OR('TSA Input'!J767=\"Yes\",'TSA Input'!J767=\"Contingent\"),'TSA Input'!G767,\"\"))","v":""},{"$f":"IF('TSA Input'!J767=\"\",\"\",IF(OR('TSA Input'!J767=\"Yes\",'TSA Input'!J767=\"Contingent\"),'TSA Input'!F767,\"\"))","v":""},"",{"$f":"IF('TSA Input'!J767=\"\",\"\",IF(OR('TSA Input'!J767=\"Yes\",'TSA Input'!J767=\"Contingent\"),'TSA Input'!D767,\"\"))","v":""},{"$f":"IF('TSA Input'!J767=\"\",\"\",IF(OR('TSA Input'!J767=\"Yes\",'TSA Input'!J767=\"Contingent\"),'TSA Input'!G767,\"\"))","v":""},{"$f":"IF('TSA Input'!J767=\"\",\"\",IF(OR('TSA Input'!J767=\"Yes\",'TSA Input'!J767=\"Contingent\"),'TSA Input'!F767,\"\"))","v":""},"","Required","Required"]
["",null,{"$f":"IF('TSA Input'!J768=\"\",\"\",IF(OR('TSA Input'!J768=\"Yes\",'TSA Input'!J768=\"Contingent\"),'TSA Input'!B768,\"Ineligible\"))","v":""},{"$f":"IF('TSA Input'!J768=\"\",\"\",IF(OR('TSA Input'!J768=\"Yes\",'TSA Input'!J768=\"Contingent\"),'TSA Input'!I768,\"\"))","v":""},{"$f":"IF('TSA Input'!J768=\"\",\"\",IF(OR('TSA Input'!J768=\"Yes\",'TSA Input'!J768=\"Contingent\"),'TSA Input'!C768,\"\"))","v":""},{"$f":"IF('TSA Input'!J768=\"\",\"\",IF(OR('TSA Input'!J768=\"Yes\",'TSA Input'!J768=\"Contingent\"),'TSA Input'!D768,\"\"))","v":""},{"$f":"IF('TSA Input'!J768=\"\",\"\",IF(OR('TSA Input'!J768=\"Yes\",'TSA Input'!J768=\"Contingent\"),'TSA Input'!G768,\"\"))","v":""},{"$f":"IF('TSA Input'!J768=\"\",\"\",IF(OR('TSA Input'!J768=\"Yes\",'TSA Input'!J768=\"Contingent\"),'TSA Input'!F768,\"\"))","v":""},"",{"$f":"IF('TSA Input'!J768=\"\",\"\",IF(OR('TSA Input'!J768=\"Yes\",'TSA Input'!J768=\"Contingent\"),'TSA Input'!D768,\"\"))","v":""},{"$f":"IF('TSA Input'!J768=\"\",\"\",IF(OR('TSA Input'!J768=\"Yes\",'TSA Input'!J768=\"Contingent\"),'TSA Input'!G768,\"\"))","v":""},{"$f":"IF('TSA Input'!J768=\"\",\"\",IF(OR('TSA Input'!J768=\"Yes\",'TSA Input'!J768=\"Contingent\"),'TSA Input'!F768,\"\"))","v":""},"","Required","Required"]
["",null,{"$f":"IF('TSA Input'!J769=\"\",\"\",IF(OR('TSA Input'!J769=\"Yes\",'TSA Input'!J769=\"Contingent\"),'TSA Input'!B769,\"Ineligible\"))","v":""},{"$f":"IF('TSA Input'!J769=\"\",\"\",IF(OR('TSA Input'!J769=\"Yes\",'TSA Input'!J769=\"Contingent\"),'TSA Input'!I769,\"\"))","v":""},{"$f":"IF('TSA Input'!J769=\"\",\"\",IF(OR('TSA Input'!J769=\"Yes\",'TSA Input'!J769=\"Contingent\"),'TSA Input'!C769,\"\"))","v":""},{"$f":"IF('TSA Input'!J769=\"\",\"\",IF(OR('TSA Input'!J769=\"Yes\",'TSA Input'!J769=\"Contingent\"),'TSA Input'!D769,\"\"))","v":""},{"$f":"IF('TSA Input'!J769=\"\",\"\",IF(OR('TSA Input'!J769=\"Yes\",'TSA Input'!J769=\"Contingent\"),'TSA Input'!G769,\"\"))","v":""},{"$f":"IF('TSA Input'!J769=\"\",\"\",IF(OR('TSA Input'!J769=\"Yes\",'TSA Input'!J769=\"Contingent\"),'TSA Input'!F769,\"\"))","v":""},"",{"$f":"IF('TSA Input'!J769=\"\",\"\",IF(OR('TSA Input'!J769=\"Yes\",'TSA Input'!J769=\"Contingent\"),'TSA Input'!D769,\"\"))","v":""},{"$f":"IF('TSA Input'!J769=\"\",\"\",IF(OR('TSA Input'!J769=\"Yes\",'TSA Input'!J769=\"Contingent\"),'TSA Input'!G769,\"\"))","v":""},{"$f":"IF('TSA Input'!J769=\"\",\"\",IF(OR('TSA Input'!J769=\"Yes\",'TSA Input'!J769=\"Contingent\"),'TSA Input'!F769,\"\"))","v":""},"","Required","Required"]
["",null,{"$f":"IF('TSA Input'!J770=\"\",\"\",IF(OR('TSA Input'!J770=\"Yes\",'TSA Input'!J770=\"Contingent\"),'TSA Input'!B770,\"Ineligible\"))","v":""},{"$f":"IF('TSA Input'!J770=\"\",\"\",IF(OR('TSA Input'!J770=\"Yes\",'TSA Input'!J770=\"Contingent\"),'TSA Input'!I770,\"\"))","v":""},{"$f":"IF('TSA Input'!J770=\"\",\"\",IF(OR('TSA Input'!J770=\"Yes\",'TSA Input'!J770=\"Contingent\"),'TSA Input'!C770,\"\"))","v":""},{"$f":"IF('TSA Input'!J770=\"\",\"\",IF(OR('TSA Input'!J770=\"Yes\",'TSA Input'!J770=\"Contingent\"),'TSA Input'!D770,\"\"))","v":""},{"$f":"IF('TSA Input'!J770=\"\",\"\",IF(OR('TSA Input'!J770=\"Yes\",'TSA Input'!J770=\"Contingent\"),'TSA Input'!G770,\"\"))","v":""},{"$f":"IF('TSA Input'!J770=\"\",\"\",IF(OR('TSA Input'!J770=\"Yes\",'TSA Input'!J770=\"Contingent\"),'TSA Input'!F770,\"\"))","v":""},"",{"$f":"IF('TSA Input'!J770=\"\",\"\",IF(OR('TSA Input'!J770=\"Yes\",'TSA Input'!J770=\"Contingent\"),'TSA Input'!D770,\"\"))","v":""},{"$f":"IF('TSA Input'!J770=\"\",\"\",IF(OR('TSA Input'!J770=\"Yes\",'TSA Input'!J770=\"Contingent\"),'TSA Input'!G770,\"\"))","v":""},{"$f":"IF('TSA Input'!J770=\"\",\"\",IF(OR('TSA Input'!J770=\"Yes\",'TSA Input'!J770=\"Contingent\"),'TSA Input'!F770,\"\"))","v":""},"","Required","Required"]
["",null,{"$f":"IF('TSA Input'!J771=\"\",\"\",IF(OR('TSA Input'!J771=\"Yes\",'TSA Input'!J771=\"Contingent\"),'TSA Input'!B771,\"Ineligible\"))","v":""},{"$f":"IF('TSA Input'!J771=\"\",\"\",IF(OR('TSA Input'!J771=\"Yes\",'TSA Input'!J771=\"Contingent\"),'TSA Input'!I771,\"\"))","v":""},{"$f":"IF('TSA Input'!J771=\"\",\"\",IF(OR('TSA Input'!J771=\"Yes\",'TSA Input'!J771=\"Contingent\"),'TSA Input'!C771,\"\"))","v":""},{"$f":"IF('TSA Input'!J771=\"\",\"\",IF(OR('TSA Input'!J771=\"Yes\",'TSA Input'!J771=\"Contingent\"),'TSA Input'!D771,\"\"))","v":""},{"$f":"IF('TSA Input'!J771=\"\",\"\",IF(OR('TSA Input'!J771=\"Yes\",'TSA Input'!J771=\"Contingent\"),'TSA Input'!G771,\"\"))","v":""},{"$f":"IF('TSA Input'!J771=\"\",\"\",IF(OR('TSA Input'!J771=\"Yes\",'TSA Input'!J771=\"Contingent\"),'TSA Input'!F771,\"\"))","v":""},"",{"$f":"IF('TSA Input'!J771=\"\",\"\",IF(OR('TSA Input'!J771=\"Yes\",'TSA Input'!J771=\"Contingent\"),'TSA Input'!D771,\"\"))","v":""},{"$f":"IF('TSA Input'!J771=\"\",\"\",IF(OR('TSA Input'!J771=\"Yes\",'TSA Input'!J771=\"Contingent\"),'TSA Input'!G771,\"\"))","v":""},{"$f":"IF('TSA Input'!J771=\"\",\"\",IF(OR('TSA Input'!J771=\"Yes\",'TSA Input'!J771=\"Contingent\"),'TSA Input'!F771,\"\"))","v":""},"","Required","Required"]
["",null,{"$f":"IF('TSA Input'!J772=\"\",\"\",IF(OR('TSA Input'!J772=\"Yes\",'TSA Input'!J772=\"Contingent\"),'TSA Input'!B772,\"Ineligible\"))","v":""},{"$f":"IF('TSA Input'!J772=\"\",\"\",IF(OR('TSA Input'!J772=\"Yes\",'TSA Input'!J772=\"Contingent\"),'TSA Input'!I772,\"\"))","v":""},{"$f":"IF('TSA Input'!J772=\"\",\"\",IF(OR('TSA Input'!J772=\"Yes\",'TSA Input'!J772=\"Contingent\"),'TSA Input'!C772,\"\"))","v":""},{"$f":"IF('TSA Input'!J772=\"\",\"\",IF(OR('TSA Input'!J772=\"Yes\",'TSA Input'!J772=\"Contingent\"),'TSA Input'!D772,\"\"))","v":""},{"$f":"IF('TSA Input'!J772=\"\",\"\",IF(OR('TSA Input'!J772=\"Yes\",'TSA Input'!J772=\"Contingent\"),'TSA Input'!G772,\"\"))","v":""},{"$f":"IF('TSA Input'!J772=\"\",\"\",IF(OR('TSA Input'!J772=\"Yes\",'TSA Input'!J772=\"Contingent\"),'TSA Input'!F772,\"\"))","v":""},{"$f":"IF($C810=\"\",\"\",SUM(F810:H810))","v":""},{"$f":"IF('TSA Input'!J772=\"\",\"\",IF(OR('TSA Input'!J772=\"Yes\",'TSA Input'!J772=\"Contingent\"),'TSA Input'!D772,\"\"))","v":""},{"$f":"IF('TSA Input'!J772=\"\",\"\",IF(OR('TSA Input'!J772=\"Yes\",'TSA Input'!J772=\"Contingent\"),'TSA Input'!G772,\"\"))","v":""},{"$f":"IF('TSA Input'!J772=\"\",\"\",IF(OR('TSA Input'!J772=\"Yes\",'TSA Input'!J772=\"Contingent\"),'TSA Input'!F772,\"\"))","v":""},{"$f":"IF($C810=\"\",\"\",SUM(J810:L810))","v":""},"Required","Required"]
["",null,{"$f":"IF('TSA Input'!J773=\"\",\"\",IF(OR('TSA Input'!J773=\"Yes\",'TSA Input'!J773=\"Contingent\"),'TSA Input'!B773,\"Ineligible\"))","v":""},{"$f":"IF('TSA Input'!J773=\"\",\"\",IF(OR('TSA Input'!J773=\"Yes\",'TSA Input'!J773=\"Contingent\"),'TSA Input'!I773,\"\"))","v":""},{"$f":"IF('TSA Input'!J773=\"\",\"\",IF(OR('TSA Input'!J773=\"Yes\",'TSA Input'!J773=\"Contingent\"),'TSA Input'!C773,\"\"))","v":""},{"$f":"IF('TSA Input'!J773=\"\",\"\",IF(OR('TSA Input'!J773=\"Yes\",'TSA Input'!J773=\"Contingent\"),'TSA Input'!D773,\"\"))","v":""},{"$f":"IF('TSA Input'!J773=\"\",\"\",IF(OR('TSA Input'!J773=\"Yes\",'TSA Input'!J773=\"Contingent\"),'TSA Input'!G773,\"\"))","v":""},{"$f":"IF('TSA Input'!J773=\"\",\"\",IF(OR('TSA Input'!J773=\"Yes\",'TSA Input'!J773=\"Contingent\"),'TSA Input'!F773,\"\"))","v":""},"",{"$f":"IF('TSA Input'!J773=\"\",\"\",IF(OR('TSA Input'!J773=\"Yes\",'TSA Input'!J773=\"Contingent\"),'TSA Input'!D773,\"\"))","v":""},{"$f":"IF('TSA Input'!J773=\"\",\"\",IF(OR('TSA Input'!J773=\"Yes\",'TSA Input'!J773=\"Contingent\"),'TSA Input'!G773,\"\"))","v":""},{"$f":"IF('TSA Input'!J773=\"\",\"\",IF(OR('TSA Input'!J773=\"Yes\",'TSA Input'!J773=\"Contingent\"),'TSA Input'!F773,\"\"))","v":""},"","Required","Required"]
["",null,{"$f":"IF('TSA Input'!J774=\"\",\"\",IF(OR('TSA Input'!J774=\"Yes\",'TSA Input'!J774=\"Contingent\"),'TSA Input'!B774,\"Ineligible\"))","v":""},{"$f":"IF('TSA Input'!J774=\"\",\"\",IF(OR('TSA Input'!J774=\"Yes\",'TSA Input'!J774=\"Contingent\"),'TSA Input'!I774,\"\"))","v":""},{"$f":"IF('TSA Input'!J774=\"\",\"\",IF(OR('TSA Input'!J774=\"Yes\",'TSA Input'!J774=\"Contingent\"),'TSA Input'!C774,\"\"))","v":""},{"$f":"IF('TSA Input'!J774=\"\",\"\",IF(OR('TSA Input'!J774=\"Yes\",'TSA Input'!J774=\"Contingent\"),'TSA Input'!D774,\"\"))","v":""},{"$f":"IF('TSA Input'!J774=\"\",\"\",IF(OR('TSA Input'!J774=\"Yes\",'TSA Input'!J774=\"Contingent\"),'TSA Input'!G774,\"\"))","v":""},{"$f":"IF('TSA Input'!J774=\"\",\"\",IF(OR('TSA Input'!J774=\"Yes\",'TSA Input'!J774=\"Contingent\"),'TSA Input'!F774,\"\"))","v":""},"",{"$f":"IF('TSA Input'!J774=\"\",\"\",IF(OR('TSA Input'!J774=\"Yes\",'TSA Input'!J774=\"Contingent\"),'TSA Input'!D774,\"\"))","v":""},{"$f":"IF('TSA Input'!J774=\"\",\"\",IF(OR('TSA Input'!J774=\"Yes\",'TSA Input'!J774=\"Contingent\"),'TSA Input'!G774,\"\"))","v":""},{"$f":"IF('TSA Input'!J774=\"\",\"\",IF(OR('TSA Input'!J774=\"Yes\",'TSA Input'!J774=\"Contingent\"),'TSA Input'!F774,\"\"))","v":""},"","Required","Required"]
["",null,{"$f":"IF('TSA Input'!J775=\"\",\"\",IF(OR('TSA Input'!J775=\"Yes\",'TSA Input'!J775=\"Contingent\"),'TSA Input'!B775,\"Ineligible\"))","v":""},{"$f":"IF('TSA Input'!J775=\"\",\"\",IF(OR('TSA Input'!J775=\"Yes\",'TSA Input'!J775=\"Contingent\"),'TSA Input'!I775,\"\"))","v":""},{"$f":"IF('TSA Input'!J775=\"\",\"\",IF(OR('TSA Input'!J775=\"Yes\",'TSA Input'!J775=\"Contingent\"),'TSA Input'!C775,\"\"))","v":""},{"$f":"IF('TSA Input'!J775=\"\",\"\",IF(OR('TSA Input'!J775=\"Yes\",'TSA Input'!J775=\"Contingent\"),'TSA Input'!D775,\"\"))","v":""},{"$f":"IF('TSA Input'!J775=\"\",\"\",IF(OR('TSA Input'!J775=\"Yes\",'TSA Input'!J775=\"Contingent\"),'TSA Input'!G775,\"\"))","v":""},{"$f":"IF('TSA Input'!J775=\"\",\"\",IF(OR('TSA Input'!J775=\"Yes\",'TSA Input'!J775=\"Contingent\"),'TSA Input'!F775,\"\"))","v":""},"",{"$f":"IF('TSA Input'!J775=\"\",\"\",IF(OR('TSA Input'!J775=\"Yes\",'TSA Input'!J775=\"Contingent\"),'TSA Input'!D775,\"\"))","v":""},{"$f":"IF('TSA Input'!J775=\"\",\"\",IF(OR('TSA Input'!J775=\"Yes\",'TSA Input'!J775=\"Contingent\"),'TSA Input'!G775,\"\"))","v":""},{"$f":"IF('TSA Input'!J775=\"\",\"\",IF(OR('TSA Input'!J775=\"Yes\",'TSA Input'!J775=\"Contingent\"),'TSA Input'!F775,\"\"))","v":""},"","Required","Required"]
["",null,{"$f":"IF('TSA Input'!J776=\"\",\"\",IF(OR('TSA Input'!J776=\"Yes\",'TSA Input'!J776=\"Contingent\"),'TSA Input'!B776,\"Ineligible\"))","v":""},{"$f":"IF('TSA Input'!J776=\"\",\"\",IF(OR('TSA Input'!J776=\"Yes\",'TSA Input'!J776=\"Contingent\"),'TSA Input'!I776,\"\"))","v":""},{"$f":"IF('TSA Input'!J776=\"\",\"\",IF(OR('TSA Input'!J776=\"Yes\",'TSA Input'!J776=\"Contingent\"),'TSA Input'!C776,\"\"))","v":""},{"$f":"IF('TSA Input'!J776=\"\",\"\",IF(OR('TSA Input'!J776=\"Yes\",'TSA Input'!J776=\"Contingent\"),'TSA Input'!D776,\"\"))","v":""},{"$f":"IF('TSA Input'!J776=\"\",\"\",IF(OR('TSA Input'!J776=\"Yes\",'TSA Input'!J776=\"Contingent\"),'TSA Input'!G776,\"\"))","v":""},{"$f":"IF('TSA Input'!J776=\"\",\"\",IF(OR('TSA Input'!J776=\"Yes\",'TSA Input'!J776=\"Contingent\"),'TSA Input'!F776,\"\"))","v":""},"",{"$f":"IF('TSA Input'!J776=\"\",\"\",IF(OR('TSA Input'!J776=\"Yes\",'TSA Input'!J776=\"Contingent\"),'TSA Input'!D776,\"\"))","v":""},{"$f":"IF('TSA Input'!J776=\"\",\"\",IF(OR('TSA Input'!J776=\"Yes\",'TSA Input'!J776=\"Contingent\"),'TSA Input'!G776,\"\"))","v":""},{"$f":"IF('TSA Input'!J776=\"\",\"\",IF(OR('TSA Input'!J776=\"Yes\",'TSA Input'!J776=\"Contingent\"),'TSA Input'!F776,\"\"))","v":""},"","Required","Required"]
["",null,{"$f":"IF('TSA Input'!J777=\"\",\"\",IF(OR('TSA Input'!J777=\"Yes\",'TSA Input'!J777=\"Contingent\"),'TSA Input'!B777,\"Ineligible\"))","v":""},{"$f":"IF('TSA Input'!J777=\"\",\"\",IF(OR('TSA Input'!J777=\"Yes\",'TSA Input'!J777=\"Contingent\"),'TSA Input'!I777,\"\"))","v":""},{"$f":"IF('TSA Input'!J777=\"\",\"\",IF(OR('TSA Input'!J777=\"Yes\",'TSA Input'!J777=\"Contingent\"),'TSA Input'!C777,\"\"))","v":""},{"$f":"IF('TSA Input'!J777=\"\",\"\",IF(OR('TSA Input'!J777=\"Yes\",'TSA Input'!J777=\"Contingent\"),'TSA Input'!D777,\"\"))","v":""},{"$f":"IF('TSA Input'!J777=\"\",\"\",IF(OR('TSA Input'!J777=\"Yes\",'TSA Input'!J777=\"Contingent\"),'TSA Input'!G777,\"\"))","v":""},{"$f":"IF('TSA Input'!J777=\"\",\"\",IF(OR('TSA Input'!J777=\"Yes\",'TSA Input'!J777=\"Contingent\"),'TSA Input'!F777,\"\"))","v":""},"",{"$f":"IF('TSA Input'!J777=\"\",\"\",IF(OR('TSA Input'!J777=\"Yes\",'TSA Input'!J777=\"Contingent\"),'TSA Input'!D777,\"\"))","v":""},{"$f":"IF('TSA Input'!J777=\"\",\"\",IF(OR('TSA Input'!J777=\"Yes\",'TSA Input'!J777=\"Contingent\"),'TSA Input'!G777,\"\"))","v":""},{"$f":"IF('TSA Input'!J777=\"\",\"\",IF(OR('TSA Input'!J777=\"Yes\",'TSA Input'!J777=\"Contingent\"),'TSA Input'!F777,\"\"))","v":""},"","Required","Required"]
["",null,{"$f":"IF('TSA Input'!J778=\"\",\"\",IF(OR('TSA Input'!J778=\"Yes\",'TSA Input'!J778=\"Contingent\"),'TSA Input'!B778,\"Ineligible\"))","v":""},{"$f":"IF('TSA Input'!J778=\"\",\"\",IF(OR('TSA Input'!J778=\"Yes\",'TSA Input'!J778=\"Contingent\"),'TSA Input'!I778,\"\"))","v":""},{"$f":"IF('TSA Input'!J778=\"\",\"\",IF(OR('TSA Input'!J778=\"Yes\",'TSA Input'!J778=\"Contingent\"),'TSA Input'!C778,\"\"))","v":""},{"$f":"IF('TSA Input'!J778=\"\",\"\",IF(OR('TSA Input'!J778=\"Yes\",'TSA Input'!J778=\"Contingent\"),'TSA Input'!D778,\"\"))","v":""},{"$f":"IF('TSA Input'!J778=\"\",\"\",IF(OR('TSA Input'!J778=\"Yes\",'TSA Input'!J778=\"Contingent\"),'TSA Input'!G778,\"\"))","v":""},{"$f":"IF('TSA Input'!J778=\"\",\"\",IF(OR('TSA Input'!J778=\"Yes\",'TSA Input'!J778=\"Contingent\"),'TSA Input'!F778,\"\"))","v":""},"",{"$f":"IF('TSA Input'!J778=\"\",\"\",IF(OR('TSA Input'!J778=\"Yes\",'TSA Input'!J778=\"Contingent\"),'TSA Input'!D778,\"\"))","v":""},{"$f":"IF('TSA Input'!J778=\"\",\"\",IF(OR('TSA Input'!J778=\"Yes\",'TSA Input'!J778=\"Contingent\"),'TSA Input'!G778,\"\"))","v":""},{"$f":"IF('TSA Input'!J778=\"\",\"\",IF(OR('TSA Input'!J778=\"Yes\",'TSA Input'!J778=\"Contingent\"),'TSA Input'!F778,\"\"))","v":""},"","Required","Required"]
["",null,{"$f":"IF('TSA Input'!J779=\"\",\"\",IF(OR('TSA Input'!J779=\"Yes\",'TSA Input'!J779=\"Contingent\"),'TSA Input'!B779,\"Ineligible\"))","v":""},{"$f":"IF('TSA Input'!J779=\"\",\"\",IF(OR('TSA Input'!J779=\"Yes\",'TSA Input'!J779=\"Contingent\"),'TSA Input'!I779,\"\"))","v":""},{"$f":"IF('TSA Input'!J779=\"\",\"\",IF(OR('TSA Input'!J779=\"Yes\",'TSA Input'!J779=\"Contingent\"),'TSA Input'!C779,\"\"))","v":""},{"$f":"IF('TSA Input'!J779=\"\",\"\",IF(OR('TSA Input'!J779=\"Yes\",'TSA Input'!J779=\"Contingent\"),'TSA Input'!D779,\"\"))","v":""},{"$f":"IF('TSA Input'!J779=\"\",\"\",IF(OR('TSA Input'!J779=\"Yes\",'TSA Input'!J779=\"Contingent\"),'TSA Input'!G779,\"\"))","v":""},{"$f":"IF('TSA Input'!J779=\"\",\"\",IF(OR('TSA Input'!J779=\"Yes\",'TSA Input'!J779=\"Contingent\"),'TSA Input'!F779,\"\"))","v":""},"",{"$f":"IF('TSA Input'!J779=\"\",\"\",IF(OR('TSA Input'!J779=\"Yes\",'TSA Input'!J779=\"Contingent\"),'TSA Input'!D779,\"\"))","v":""},{"$f":"IF('TSA Input'!J779=\"\",\"\",IF(OR('TSA Input'!J779=\"Yes\",'TSA Input'!J779=\"Contingent\"),'TSA Input'!G779,\"\"))","v":""},{"$f":"IF('TSA Input'!J779=\"\",\"\",IF(OR('TSA Input'!J779=\"Yes\",'TSA Input'!J779=\"Contingent\"),'TSA Input'!F779,\"\"))","v":""},"","Required","Required"]
["",null,{"$f":"IF('TSA Input'!J780=\"\",\"\",IF(OR('TSA Input'!J780=\"Yes\",'TSA Input'!J780=\"Contingent\"),'TSA Input'!B780,\"Ineligible\"))","v":""},{"$f":"IF('TSA Input'!J780=\"\",\"\",IF(OR('TSA Input'!J780=\"Yes\",'TSA Input'!J780=\"Contingent\"),'TSA Input'!I780,\"\"))","v":""},{"$f":"IF('TSA Input'!J780=\"\",\"\",IF(OR('TSA Input'!J780=\"Yes\",'TSA Input'!J780=\"Contingent\"),'TSA Input'!C780,\"\"))","v":""},{"$f":"IF('TSA Input'!J780=\"\",\"\",IF(OR('TSA Input'!J780=\"Yes\",'TSA Input'!J780=\"Contingent\"),'TSA Input'!D780,\"\"))","v":""},{"$f":"IF('TSA Input'!J780=\"\",\"\",IF(OR('TSA Input'!J780=\"Yes\",'TSA Input'!J780=\"Contingent\"),'TSA Input'!G780,\"\"))","v":""},{"$f":"IF('TSA Input'!J780=\"\",\"\",IF(OR('TSA Input'!J780=\"Yes\",'TSA Input'!J780=\"Contingent\"),'TSA Input'!F780,\"\"))","v":""},"",{"$f":"IF('TSA Input'!J780=\"\",\"\",IF(OR('TSA Input'!J780=\"Yes\",'TSA Input'!J780=\"Contingent\"),'TSA Input'!D780,\"\"))","v":""},{"$f":"IF('TSA Input'!J780=\"\",\"\",IF(OR('TSA Input'!J780=\"Yes\",'TSA Input'!J780=\"Contingent\"),'TSA Input'!G780,\"\"))","v":""},{"$f":"IF('TSA Input'!J780=\"\",\"\",IF(OR('TSA Input'!J780=\"Yes\",'TSA Input'!J780=\"Contingent\"),'TSA Input'!F780,\"\"))","v":""},"","Required","Required"]
["",null,{"$f":"IF('TSA Input'!J781=\"\",\"\",IF(OR('TSA Input'!J781=\"Yes\",'TSA Input'!J781=\"Contingent\"),'TSA Input'!B781,\"Ineligible\"))","v":""},{"$f":"IF('TSA Input'!J781=\"\",\"\",IF(OR('TSA Input'!J781=\"Yes\",'TSA Input'!J781=\"Contingent\"),'TSA Input'!I781,\"\"))","v":""},{"$f":"IF('TSA Input'!J781=\"\",\"\",IF(OR('TSA Input'!J781=\"Yes\",'TSA Input'!J781=\"Contingent\"),'TSA Input'!C781,\"\"))","v":""},{"$f":"IF('TSA Input'!J781=\"\",\"\",IF(OR('TSA Input'!J781=\"Yes\",'TSA Input'!J781=\"Contingent\"),'TSA Input'!D781,\"\"))","v":""},{"$f":"IF('TSA Input'!J781=\"\",\"\",IF(OR('TSA Input'!J781=\"Yes\",'TSA Input'!J781=\"Contingent\"),'TSA Input'!G781,\"\"))","v":""},{"$f":"IF('TSA Input'!J781=\"\",\"\",IF(OR('TSA Input'!J781=\"Yes\",'TSA Input'!J781=\"Contingent\"),'TSA Input'!F781,\"\"))","v":""},"",{"$f":"IF('TSA Input'!J781=\"\",\"\",IF(OR('TSA Input'!J781=\"Yes\",'TSA Input'!J781=\"Contingent\"),'TSA Input'!D781,\"\"))","v":""},{"$f":"IF('TSA Input'!J781=\"\",\"\",IF(OR('TSA Input'!J781=\"Yes\",'TSA Input'!J781=\"Contingent\"),'TSA Input'!G781,\"\"))","v":""},{"$f":"IF('TSA Input'!J781=\"\",\"\",IF(OR('TSA Input'!J781=\"Yes\",'TSA Input'!J781=\"Contingent\"),'TSA Input'!F781,\"\"))","v":""},"","Required","Required"]
["",null,{"$f":"IF('TSA Input'!J782=\"\",\"\",IF(OR('TSA Input'!J782=\"Yes\",'TSA Input'!J782=\"Contingent\"),'TSA Input'!B782,\"Ineligible\"))","v":""},{"$f":"IF('TSA Input'!J782=\"\",\"\",IF(OR('TSA Input'!J782=\"Yes\",'TSA Input'!J782=\"Contingent\"),'TSA Input'!I782,\"\"))","v":""},{"$f":"IF('TSA Input'!J782=\"\",\"\",IF(OR('TSA Input'!J782=\"Yes\",'TSA Input'!J782=\"Contingent\"),'TSA Input'!C782,\"\"))","v":""},{"$f":"IF('TSA Input'!J782=\"\",\"\",IF(OR('TSA Input'!J782=\"Yes\",'TSA Input'!J782=\"Contingent\"),'TSA Input'!D782,\"\"))","v":""},{"$f":"IF('TSA Input'!J782=\"\",\"\",IF(OR('TSA Input'!J782=\"Yes\",'TSA Input'!J782=\"Contingent\"),'TSA Input'!G782,\"\"))","v":""},{"$f":"IF('TSA Input'!J782=\"\",\"\",IF(OR('TSA Input'!J782=\"Yes\",'TSA Input'!J782=\"Contingent\"),'TSA Input'!F782,\"\"))","v":""},"",{"$f":"IF('TSA Input'!J782=\"\",\"\",IF(OR('TSA Input'!J782=\"Yes\",'TSA Input'!J782=\"Contingent\"),'TSA Input'!D782,\"\"))","v":""},{"$f":"IF('TSA Input'!J782=\"\",\"\",IF(OR('TSA Input'!J782=\"Yes\",'TSA Input'!J782=\"Contingent\"),'TSA Input'!G782,\"\"))","v":""},{"$f":"IF('TSA Input'!J782=\"\",\"\",IF(OR('TSA Input'!J782=\"Yes\",'TSA Input'!J782=\"Contingent\"),'TSA Input'!F782,\"\"))","v":""},"","Required","Required"]
["",null,{"$f":"IF('TSA Input'!J783=\"\",\"\",IF(OR('TSA Input'!J783=\"Yes\",'TSA Input'!J783=\"Contingent\"),'TSA Input'!B783,\"Ineligible\"))","v":""},{"$f":"IF('TSA Input'!J783=\"\",\"\",IF(OR('TSA Input'!J783=\"Yes\",'TSA Input'!J783=\"Contingent\"),'TSA Input'!I783,\"\"))","v":""},{"$f":"IF('TSA Input'!J783=\"\",\"\",IF(OR('TSA Input'!J783=\"Yes\",'TSA Input'!J783=\"Contingent\"),'TSA Input'!C783,\"\"))","v":""},{"$f":"IF('TSA Input'!J783=\"\",\"\",IF(OR('TSA Input'!J783=\"Yes\",'TSA Input'!J783=\"Contingent\"),'TSA Input'!D783,\"\"))","v":""},{"$f":"IF('TSA Input'!J783=\"\",\"\",IF(OR('TSA Input'!J783=\"Yes\",'TSA Input'!J783=\"Contingent\"),'TSA Input'!G783,\"\"))","v":""},{"$f":"IF('TSA Input'!J783=\"\",\"\",IF(OR('TSA Input'!J783=\"Yes\",'TSA Input'!J783=\"Contingent\"),'TSA Input'!F783,\"\"))","v":""},"",{"$f":"IF('TSA Input'!J783=\"\",\"\",IF(OR('TSA Input'!J783=\"Yes\",'TSA Input'!J783=\"Contingent\"),'TSA Input'!D783,\"\"))","v":""},{"$f":"IF('TSA Input'!J783=\"\",\"\",IF(OR('TSA Input'!J783=\"Yes\",'TSA Input'!J783=\"Contingent\"),'TSA Input'!G783,\"\"))","v":""},{"$f":"IF('TSA Input'!J783=\"\",\"\",IF(OR('TSA Input'!J783=\"Yes\",'TSA Input'!J783=\"Contingent\"),'TSA Input'!F783,\"\"))","v":""},"","Required","Required"]
["",null,{"$f":"IF('TSA Input'!J784=\"\",\"\",IF(OR('TSA Input'!J784=\"Yes\",'TSA Input'!J784=\"Contingent\"),'TSA Input'!B784,\"Ineligible\"))","v":""},{"$f":"IF('TSA Input'!J784=\"\",\"\",IF(OR('TSA Input'!J784=\"Yes\",'TSA Input'!J784=\"Contingent\"),'TSA Input'!I784,\"\"))","v":""},{"$f":"IF('TSA Input'!J784=\"\",\"\",IF(OR('TSA Input'!J784=\"Yes\",'TSA Input'!J784=\"Contingent\"),'TSA Input'!C784,\"\"))","v":""},{"$f":"IF('TSA Input'!J784=\"\",\"\",IF(OR('TSA Input'!J784=\"Yes\",'TSA Input'!J784=\"Contingent\"),'TSA Input'!D784,\"\"))","v":""},{"$f":"IF('TSA Input'!J784=\"\",\"\",IF(OR('TSA Input'!J784=\"Yes\",'TSA Input'!J784=\"Contingent\"),'TSA Input'!G784,\"\"))","v":""},{"$f":"IF('TSA Input'!J784=\"\",\"\",IF(OR('TSA Input'!J784=\"Yes\",'TSA Input'!J784=\"Contingent\"),'TSA Input'!F784,\"\"))","v":""},"",{"$f":"IF('TSA Input'!J784=\"\",\"\",IF(OR('TSA Input'!J784=\"Yes\",'TSA Input'!J784=\"Contingent\"),'TSA Input'!D784,\"\"))","v":""},{"$f":"IF('TSA Input'!J784=\"\",\"\",IF(OR('TSA Input'!J784=\"Yes\",'TSA Input'!J784=\"Contingent\"),'TSA Input'!G784,\"\"))","v":""},{"$f":"IF('TSA Input'!J784=\"\",\"\",IF(OR('TSA Input'!J784=\"Yes\",'TSA Input'!J784=\"Contingent\"),'TSA Input'!F784,\"\"))","v":""},"","Required","Required"]
["",null,{"$f":"IF('TSA Input'!J785=\"\",\"\",IF(OR('TSA Input'!J785=\"Yes\",'TSA Input'!J785=\"Contingent\"),'TSA Input'!B785,\"Ineligible\"))","v":""},{"$f":"IF('TSA Input'!J785=\"\",\"\",IF(OR('TSA Input'!J785=\"Yes\",'TSA Input'!J785=\"Contingent\"),'TSA Input'!I785,\"\"))","v":""},{"$f":"IF('TSA Input'!J785=\"\",\"\",IF(OR('TSA Input'!J785=\"Yes\",'TSA Input'!J785=\"Contingent\"),'TSA Input'!C785,\"\"))","v":""},{"$f":"IF('TSA Input'!J785=\"\",\"\",IF(OR('TSA Input'!J785=\"Yes\",'TSA Input'!J785=\"Contingent\"),'TSA Input'!D785,\"\"))","v":""},{"$f":"IF('TSA Input'!J785=\"\",\"\",IF(OR('TSA Input'!J785=\"Yes\",'TSA Input'!J785=\"Contingent\"),'TSA Input'!G785,\"\"))","v":""},{"$f":"IF('TSA Input'!J785=\"\",\"\",IF(OR('TSA Input'!J785=\"Yes\",'TSA Input'!J785=\"Contingent\"),'TSA Input'!F785,\"\"))","v":""},"",{"$f":"IF('TSA Input'!J785=\"\",\"\",IF(OR('TSA Input'!J785=\"Yes\",'TSA Input'!J785=\"Contingent\"),'TSA Input'!D785,\"\"))","v":""},{"$f":"IF('TSA Input'!J785=\"\",\"\",IF(OR('TSA Input'!J785=\"Yes\",'TSA Input'!J785=\"Contingent\"),'TSA Input'!G785,\"\"))","v":""},{"$f":"IF('TSA Input'!J785=\"\",\"\",IF(OR('TSA Input'!J785=\"Yes\",'TSA Input'!J785=\"Contingent\"),'TSA Input'!F785,\"\"))","v":""},"","Required","Required"]
["",null,{"$f":"IF('TSA Input'!J786=\"\",\"\",IF(OR('TSA Input'!J786=\"Yes\",'TSA Input'!J786=\"Contingent\"),'TSA Input'!B786,\"Ineligible\"))","v":""},{"$f":"IF('TSA Input'!J786=\"\",\"\",IF(OR('TSA Input'!J786=\"Yes\",'TSA Input'!J786=\"Contingent\"),'TSA Input'!I786,\"\"))","v":""},{"$f":"IF('TSA Input'!J786=\"\",\"\",IF(OR('TSA Input'!J786=\"Yes\",'TSA Input'!J786=\"Contingent\"),'TSA Input'!C786,\"\"))","v":""},{"$f":"IF('TSA Input'!J786=\"\",\"\",IF(OR('TSA Input'!J786=\"Yes\",'TSA Input'!J786=\"Contingent\"),'TSA Input'!D786,\"\"))","v":""},{"$f":"IF('TSA Input'!J786=\"\",\"\",IF(OR('TSA Input'!J786=\"Yes\",'TSA Input'!J786=\"Contingent\"),'TSA Input'!G786,\"\"))","v":""},{"$f":"IF('TSA Input'!J786=\"\",\"\",IF(OR('TSA Input'!J786=\"Yes\",'TSA Input'!J786=\"Contingent\"),'TSA Input'!F786,\"\"))","v":""},"",{"$f":"IF('TSA Input'!J786=\"\",\"\",IF(OR('TSA Input'!J786=\"Yes\",'TSA Input'!J786=\"Contingent\"),'TSA Input'!D786,\"\"))","v":""},{"$f":"IF('TSA Input'!J786=\"\",\"\",IF(OR('TSA Input'!J786=\"Yes\",'TSA Input'!J786=\"Contingent\"),'TSA Input'!G786,\"\"))","v":""},{"$f":"IF('TSA Input'!J786=\"\",\"\",IF(OR('TSA Input'!J786=\"Yes\",'TSA Input'!J786=\"Contingent\"),'TSA Input'!F786,\"\"))","v":""},"","Required","Required"]
["",null,{"$f":"IF('TSA Input'!J787=\"\",\"\",IF(OR('TSA Input'!J787=\"Yes\",'TSA Input'!J787=\"Contingent\"),'TSA Input'!B787,\"Ineligible\"))","v":""},{"$f":"IF('TSA Input'!J787=\"\",\"\",IF(OR('TSA Input'!J787=\"Yes\",'TSA Input'!J787=\"Contingent\"),'TSA Input'!I787,\"\"))","v":""},{"$f":"IF('TSA Input'!J787=\"\",\"\",IF(OR('TSA Input'!J787=\"Yes\",'TSA Input'!J787=\"Contingent\"),'TSA Input'!C787,\"\"))","v":""},{"$f":"IF('TSA Input'!J787=\"\",\"\",IF(OR('TSA Input'!J787=\"Yes\",'TSA Input'!J787=\"Contingent\"),'TSA Input'!D787,\"\"))","v":""},{"$f":"IF('TSA Input'!J787=\"\",\"\",IF(OR('TSA Input'!J787=\"Yes\",'TSA Input'!J787=\"Contingent\"),'TSA Input'!G787,\"\"))","v":""},{"$f":"IF('TSA Input'!J787=\"\",\"\",IF(OR('TSA Input'!J787=\"Yes\",'TSA Input'!J787=\"Contingent\"),'TSA Input'!F787,\"\"))","v":""},"",{"$f":"IF('TSA Input'!J787=\"\",\"\",IF(OR('TSA Input'!J787=\"Yes\",'TSA Input'!J787=\"Contingent\"),'TSA Input'!D787,\"\"))","v":""},{"$f":"IF('TSA Input'!J787=\"\",\"\",IF(OR('TSA Input'!J787=\"Yes\",'TSA Input'!J787=\"Contingent\"),'TSA Input'!G787,\"\"))","v":""},{"$f":"IF('TSA Input'!J787=\"\",\"\",IF(OR('TSA Input'!J787=\"Yes\",'TSA Input'!J787=\"Contingent\"),'TSA Input'!F787,\"\"))","v":""},"","Required","Required"]
["",null,{"$f":"IF('TSA Input'!J788=\"\",\"\",IF(OR('TSA Input'!J788=\"Yes\",'TSA Input'!J788=\"Contingent\"),'TSA Input'!B788,\"Ineligible\"))","v":""},{"$f":"IF('TSA Input'!J788=\"\",\"\",IF(OR('TSA Input'!J788=\"Yes\",'TSA Input'!J788=\"Contingent\"),'TSA Input'!I788,\"\"))","v":""},{"$f":"IF('TSA Input'!J788=\"\",\"\",IF(OR('TSA Input'!J788=\"Yes\",'TSA Input'!J788=\"Contingent\"),'TSA Input'!C788,\"\"))","v":""},{"$f":"IF('TSA Input'!J788=\"\",\"\",IF(OR('TSA Input'!J788=\"Yes\",'TSA Input'!J788=\"Contingent\"),'TSA Input'!D788,\"\"))","v":""},{"$f":"IF('TSA Input'!J788=\"\",\"\",IF(OR('TSA Input'!J788=\"Yes\",'TSA Input'!J788=\"Contingent\"),'TSA Input'!G788,\"\"))","v":""},{"$f":"IF('TSA Input'!J788=\"\",\"\",IF(OR('TSA Input'!J788=\"Yes\",'TSA Input'!J788=\"Contingent\"),'TSA Input'!F788,\"\"))","v":""},"",{"$f":"IF('TSA Input'!J788=\"\",\"\",IF(OR('TSA Input'!J788=\"Yes\",'TSA Input'!J788=\"Contingent\"),'TSA Input'!D788,\"\"))","v":""},{"$f":"IF('TSA Input'!J788=\"\",\"\",IF(OR('TSA Input'!J788=\"Yes\",'TSA Input'!J788=\"Contingent\"),'TSA Input'!G788,\"\"))","v":""},{"$f":"IF('TSA Input'!J788=\"\",\"\",IF(OR('TSA Input'!J788=\"Yes\",'TSA Input'!J788=\"Contingent\"),'TSA Input'!F788,\"\"))","v":""},"","Required","Required"]
["",null,{"$f":"IF('TSA Input'!J789=\"\",\"\",IF(OR('TSA Input'!J789=\"Yes\",'TSA Input'!J789=\"Contingent\"),'TSA Input'!B789,\"Ineligible\"))","v":""},{"$f":"IF('TSA Input'!J789=\"\",\"\",IF(OR('TSA Input'!J789=\"Yes\",'TSA Input'!J789=\"Contingent\"),'TSA Input'!I789,\"\"))","v":""},{"$f":"IF('TSA Input'!J789=\"\",\"\",IF(OR('TSA Input'!J789=\"Yes\",'TSA Input'!J789=\"Contingent\"),'TSA Input'!C789,\"\"))","v":""},{"$f":"IF('TSA Input'!J789=\"\",\"\",IF(OR('TSA Input'!J789=\"Yes\",'TSA Input'!J789=\"Contingent\"),'TSA Input'!D789,\"\"))","v":""},{"$f":"IF('TSA Input'!J789=\"\",\"\",IF(OR('TSA Input'!J789=\"Yes\",'TSA Input'!J789=\"Contingent\"),'TSA Input'!G789,\"\"))","v":""},{"$f":"IF('TSA Input'!J789=\"\",\"\",IF(OR('TSA Input'!J789=\"Yes\",'TSA Input'!J789=\"Contingent\"),'TSA Input'!F789,\"\"))","v":""},"",{"$f":"IF('TSA Input'!J789=\"\",\"\",IF(OR('TSA Input'!J789=\"Yes\",'TSA Input'!J789=\"Contingent\"),'TSA Input'!D789,\"\"))","v":""},{"$f":"IF('TSA Input'!J789=\"\",\"\",IF(OR('TSA Input'!J789=\"Yes\",'TSA Input'!J789=\"Contingent\"),'TSA Input'!G789,\"\"))","v":""},{"$f":"IF('TSA Input'!J789=\"\",\"\",IF(OR('TSA Input'!J789=\"Yes\",'TSA Input'!J789=\"Contingent\"),'TSA Input'!F789,\"\"))","v":""},"","Required","Required"]
["",null,{"$f":"IF('TSA Input'!J790=\"\",\"\",IF(OR('TSA Input'!J790=\"Yes\",'TSA Input'!J790=\"Contingent\"),'TSA Input'!B790,\"Ineligible\"))","v":""},{"$f":"IF('TSA Input'!J790=\"\",\"\",IF(OR('TSA Input'!J790=\"Yes\",'TSA Input'!J790=\"Contingent\"),'TSA Input'!I790,\"\"))","v":""},{"$f":"IF('TSA Input'!J790=\"\",\"\",IF(OR('TSA Input'!J790=\"Yes\",'TSA Input'!J790=\"Contingent\"),'TSA Input'!C790,\"\"))","v":""},{"$f":"IF('TSA Input'!J790=\"\",\"\",IF(OR('TSA Input'!J790=\"Yes\",'TSA Input'!J790=\"Contingent\"),'TSA Input'!D790,\"\"))","v":""},{"$f":"IF('TSA Input'!J790=\"\",\"\",IF(OR('TSA Input'!J790=\"Yes\",'TSA Input'!J790=\"Contingent\"),'TSA Input'!G790,\"\"))","v":""},{"$f":"IF('TSA Input'!J790=\"\",\"\",IF(OR('TSA Input'!J790=\"Yes\",'TSA Input'!J790=\"Contingent\"),'TSA Input'!F790,\"\"))","v":""},"",{"$f":"IF('TSA Input'!J790=\"\",\"\",IF(OR('TSA Input'!J790=\"Yes\",'TSA Input'!J790=\"Contingent\"),'TSA Input'!D790,\"\"))","v":""},{"$f":"IF('TSA Input'!J790=\"\",\"\",IF(OR('TSA Input'!J790=\"Yes\",'TSA Input'!J790=\"Contingent\"),'TSA Input'!G790,\"\"))","v":""},{"$f":"IF('TSA Input'!J790=\"\",\"\",IF(OR('TSA Input'!J790=\"Yes\",'TSA Input'!J790=\"Contingent\"),'TSA Input'!F790,\"\"))","v":""},"","Required","Required"]
["",null,{"$f":"IF('TSA Input'!J791=\"\",\"\",IF(OR('TSA Input'!J791=\"Yes\",'TSA Input'!J791=\"Contingent\"),'TSA Input'!B791,\"Ineligible\"))","v":""},{"$f":"IF('TSA Input'!J791=\"\",\"\",IF(OR('TSA Input'!J791=\"Yes\",'TSA Input'!J791=\"Contingent\"),'TSA Input'!I791,\"\"))","v":""},{"$f":"IF('TSA Input'!J791=\"\",\"\",IF(OR('TSA Input'!J791=\"Yes\",'TSA Input'!J791=\"Contingent\"),'TSA Input'!C791,\"\"))","v":""},{"$f":"IF('TSA Input'!J791=\"\",\"\",IF(OR('TSA Input'!J791=\"Yes\",'TSA Input'!J791=\"Contingent\"),'TSA Input'!D791,\"\"))","v":""},{"$f":"IF('TSA Input'!J791=\"\",\"\",IF(OR('TSA Input'!J791=\"Yes\",'TSA Input'!J791=\"Contingent\"),'TSA Input'!G791,\"\"))","v":""},{"$f":"IF('TSA Input'!J791=\"\",\"\",IF(OR('TSA Input'!J791=\"Yes\",'TSA Input'!J791=\"Contingent\"),'TSA Input'!F791,\"\"))","v":""},"",{"$f":"IF('TSA Input'!J791=\"\",\"\",IF(OR('TSA Input'!J791=\"Yes\",'TSA Input'!J791=\"Contingent\"),'TSA Input'!D791,\"\"))","v":""},{"$f":"IF('TSA Input'!J791=\"\",\"\",IF(OR('TSA Input'!J791=\"Yes\",'TSA Input'!J791=\"Contingent\"),'TSA Input'!G791,\"\"))","v":""},{"$f":"IF('TSA Input'!J791=\"\",\"\",IF(OR('TSA Input'!J791=\"Yes\",'TSA Input'!J791=\"Contingent\"),'TSA Input'!F791,\"\"))","v":""},"","Required","Required"]
["",null,{"$f":"IF('TSA Input'!J792=\"\",\"\",IF(OR('TSA Input'!J792=\"Yes\",'TSA Input'!J792=\"Contingent\"),'TSA Input'!B792,\"Ineligible\"))","v":""},{"$f":"IF('TSA Input'!J792=\"\",\"\",IF(OR('TSA Input'!J792=\"Yes\",'TSA Input'!J792=\"Contingent\"),'TSA Input'!I792,\"\"))","v":""},{"$f":"IF('TSA Input'!J792=\"\",\"\",IF(OR('TSA Input'!J792=\"Yes\",'TSA Input'!J792=\"Contingent\"),'TSA Input'!C792,\"\"))","v":""},{"$f":"IF('TSA Input'!J792=\"\",\"\",IF(OR('TSA Input'!J792=\"Yes\",'TSA Input'!J792=\"Contingent\"),'TSA Input'!D792,\"\"))","v":""},{"$f":"IF('TSA Input'!J792=\"\",\"\",IF(OR('TSA Input'!J792=\"Yes\",'TSA Input'!J792=\"Contingent\"),'TSA Input'!G792,\"\"))","v":""},{"$f":"IF('TSA Input'!J792=\"\",\"\",IF(OR('TSA Input'!J792=\"Yes\",'TSA Input'!J792=\"Contingent\"),'TSA Input'!F792,\"\"))","v":""},"",{"$f":"IF('TSA Input'!J792=\"\",\"\",IF(OR('TSA Input'!J792=\"Yes\",'TSA Input'!J792=\"Contingent\"),'TSA Input'!D792,\"\"))","v":""},{"$f":"IF('TSA Input'!J792=\"\",\"\",IF(OR('TSA Input'!J792=\"Yes\",'TSA Input'!J792=\"Contingent\"),'TSA Input'!G792,\"\"))","v":""},{"$f":"IF('TSA Input'!J792=\"\",\"\",IF(OR('TSA Input'!J792=\"Yes\",'TSA Input'!J792=\"Contingent\"),'TSA Input'!F792,\"\"))","v":""},"","Required","Required"]
["",null,{"$f":"IF('TSA Input'!J793=\"\",\"\",IF(OR('TSA Input'!J793=\"Yes\",'TSA Input'!J793=\"Contingent\"),'TSA Input'!B793,\"Ineligible\"))","v":""},{"$f":"IF('TSA Input'!J793=\"\",\"\",IF(OR('TSA Input'!J793=\"Yes\",'TSA Input'!J793=\"Contingent\"),'TSA Input'!I793,\"\"))","v":""},{"$f":"IF('TSA Input'!J793=\"\",\"\",IF(OR('TSA Input'!J793=\"Yes\",'TSA Input'!J793=\"Contingent\"),'TSA Input'!C793,\"\"))","v":""},{"$f":"IF('TSA Input'!J793=\"\",\"\",IF(OR('TSA Input'!J793=\"Yes\",'TSA Input'!J793=\"Contingent\"),'TSA Input'!D793,\"\"))","v":""},{"$f":"IF('TSA Input'!J793=\"\",\"\",IF(OR('TSA Input'!J793=\"Yes\",'TSA Input'!J793=\"Contingent\"),'TSA Input'!G793,\"\"))","v":""},{"$f":"IF('TSA Input'!J793=\"\",\"\",IF(OR('TSA Input'!J793=\"Yes\",'TSA Input'!J793=\"Contingent\"),'TSA Input'!F793,\"\"))","v":""},"",{"$f":"IF('TSA Input'!J793=\"\",\"\",IF(OR('TSA Input'!J793=\"Yes\",'TSA Input'!J793=\"Contingent\"),'TSA Input'!D793,\"\"))","v":""},{"$f":"IF('TSA Input'!J793=\"\",\"\",IF(OR('TSA Input'!J793=\"Yes\",'TSA Input'!J793=\"Contingent\"),'TSA Input'!G793,\"\"))","v":""},{"$f":"IF('TSA Input'!J793=\"\",\"\",IF(OR('TSA Input'!J793=\"Yes\",'TSA Input'!J793=\"Contingent\"),'TSA Input'!F793,\"\"))","v":""},"","Required","Required"]
["",null,{"$f":"IF('TSA Input'!J794=\"\",\"\",IF(OR('TSA Input'!J794=\"Yes\",'TSA Input'!J794=\"Contingent\"),'TSA Input'!B794,\"Ineligible\"))","v":""},{"$f":"IF('TSA Input'!J794=\"\",\"\",IF(OR('TSA Input'!J794=\"Yes\",'TSA Input'!J794=\"Contingent\"),'TSA Input'!I794,\"\"))","v":""},{"$f":"IF('TSA Input'!J794=\"\",\"\",IF(OR('TSA Input'!J794=\"Yes\",'TSA Input'!J794=\"Contingent\"),'TSA Input'!C794,\"\"))","v":""},{"$f":"IF('TSA Input'!J794=\"\",\"\",IF(OR('TSA Input'!J794=\"Yes\",'TSA Input'!J794=\"Contingent\"),'TSA Input'!D794,\"\"))","v":""},{"$f":"IF('TSA Input'!J794=\"\",\"\",IF(OR('TSA Input'!J794=\"Yes\",'TSA Input'!J794=\"Contingent\"),'TSA Input'!G794,\"\"))","v":""},{"$f":"IF('TSA Input'!J794=\"\",\"\",IF(OR('TSA Input'!J794=\"Yes\",'TSA Input'!J794=\"Contingent\"),'TSA Input'!F794,\"\"))","v":""},"",{"$f":"IF('TSA Input'!J794=\"\",\"\",IF(OR('TSA Input'!J794=\"Yes\",'TSA Input'!J794=\"Contingent\"),'TSA Input'!D794,\"\"))","v":""},{"$f":"IF('TSA Input'!J794=\"\",\"\",IF(OR('TSA Input'!J794=\"Yes\",'TSA Input'!J794=\"Contingent\"),'TSA Input'!G794,\"\"))","v":""},{"$f":"IF('TSA Input'!J794=\"\",\"\",IF(OR('TSA Input'!J794=\"Yes\",'TSA Input'!J794=\"Contingent\"),'TSA Input'!F794,\"\"))","v":""},"","Required","Required"]
["",null,{"$f":"IF('TSA Input'!J795=\"\",\"\",IF(OR('TSA Input'!J795=\"Yes\",'TSA Input'!J795=\"Contingent\"),'TSA Input'!B795,\"Ineligible\"))","v":""},{"$f":"IF('TSA Input'!J795=\"\",\"\",IF(OR('TSA Input'!J795=\"Yes\",'TSA Input'!J795=\"Contingent\"),'TSA Input'!I795,\"\"))","v":""},{"$f":"IF('TSA Input'!J795=\"\",\"\",IF(OR('TSA Input'!J795=\"Yes\",'TSA Input'!J795=\"Contingent\"),'TSA Input'!C795,\"\"))","v":""},{"$f":"IF('TSA Input'!J795=\"\",\"\",IF(OR('TSA Input'!J795=\"Yes\",'TSA Input'!J795=\"Contingent\"),'TSA Input'!D795,\"\"))","v":""},{"$f":"IF('TSA Input'!J795=\"\",\"\",IF(OR('TSA Input'!J795=\"Yes\",'TSA Input'!J795=\"Contingent\"),'TSA Input'!G795,\"\"))","v":""},{"$f":"IF('TSA Input'!J795=\"\",\"\",IF(OR('TSA Input'!J795=\"Yes\",'TSA Input'!J795=\"Contingent\"),'TSA Input'!F795,\"\"))","v":""},"",{"$f":"IF('TSA Input'!J795=\"\",\"\",IF(OR('TSA Input'!J795=\"Yes\",'TSA Input'!J795=\"Contingent\"),'TSA Input'!D795,\"\"))","v":""},{"$f":"IF('TSA Input'!J795=\"\",\"\",IF(OR('TSA Input'!J795=\"Yes\",'TSA Input'!J795=\"Contingent\"),'TSA Input'!G795,\"\"))","v":""},{"$f":"IF('TSA Input'!J795=\"\",\"\",IF(OR('TSA Input'!J795=\"Yes\",'TSA Input'!J795=\"Contingent\"),'TSA Input'!F795,\"\"))","v":""},"","Required","Required"]
["",null,{"$f":"IF('TSA Input'!J796=\"\",\"\",IF(OR('TSA Input'!J796=\"Yes\",'TSA Input'!J796=\"Contingent\"),'TSA Input'!B796,\"Ineligible\"))","v":""},{"$f":"IF('TSA Input'!J796=\"\",\"\",IF(OR('TSA Input'!J796=\"Yes\",'TSA Input'!J796=\"Contingent\"),'TSA Input'!I796,\"\"))","v":""},{"$f":"IF('TSA Input'!J796=\"\",\"\",IF(OR('TSA Input'!J796=\"Yes\",'TSA Input'!J796=\"Contingent\"),'TSA Input'!C796,\"\"))","v":""},{"$f":"IF('TSA Input'!J796=\"\",\"\",IF(OR('TSA Input'!J796=\"Yes\",'TSA Input'!J796=\"Contingent\"),'TSA Input'!D796,\"\"))","v":""},{"$f":"IF('TSA Input'!J796=\"\",\"\",IF(OR('TSA Input'!J796=\"Yes\",'TSA Input'!J796=\"Contingent\"),'TSA Input'!G796,\"\"))","v":""},{"$f":"IF('TSA Input'!J796=\"\",\"\",IF(OR('TSA Input'!J796=\"Yes\",'TSA Input'!J796=\"Contingent\"),'TSA Input'!F796,\"\"))","v":""},"",{"$f":"IF('TSA Input'!J796=\"\",\"\",IF(OR('TSA Input'!J796=\"Yes\",'TSA Input'!J796=\"Contingent\"),'TSA Input'!D796,\"\"))","v":""},{"$f":"IF('TSA Input'!J796=\"\",\"\",IF(OR('TSA Input'!J796=\"Yes\",'TSA Input'!J796=\"Contingent\"),'TSA Input'!G796,\"\"))","v":""},{"$f":"IF('TSA Input'!J796=\"\",\"\",IF(OR('TSA Input'!J796=\"Yes\",'TSA Input'!J796=\"Contingent\"),'TSA Input'!F796,\"\"))","v":""},"","Required","Required"]
["",null,{"$f":"IF('TSA Input'!J797=\"\",\"\",IF(OR('TSA Input'!J797=\"Yes\",'TSA Input'!J797=\"Contingent\"),'TSA Input'!B797,\"Ineligible\"))","v":""},{"$f":"IF('TSA Input'!J797=\"\",\"\",IF(OR('TSA Input'!J797=\"Yes\",'TSA Input'!J797=\"Contingent\"),'TSA Input'!I797,\"\"))","v":""},{"$f":"IF('TSA Input'!J797=\"\",\"\",IF(OR('TSA Input'!J797=\"Yes\",'TSA Input'!J797=\"Contingent\"),'TSA Input'!C797,\"\"))","v":""},{"$f":"IF('TSA Input'!J797=\"\",\"\",IF(OR('TSA Input'!J797=\"Yes\",'TSA Input'!J797=\"Contingent\"),'TSA Input'!D797,\"\"))","v":""},{"$f":"IF('TSA Input'!J797=\"\",\"\",IF(OR('TSA Input'!J797=\"Yes\",'TSA Input'!J797=\"Contingent\"),'TSA Input'!G797,\"\"))","v":""},{"$f":"IF('TSA Input'!J797=\"\",\"\",IF(OR('TSA Input'!J797=\"Yes\",'TSA Input'!J797=\"Contingent\"),'TSA Input'!F797,\"\"))","v":""},"",{"$f":"IF('TSA Input'!J797=\"\",\"\",IF(OR('TSA Input'!J797=\"Yes\",'TSA Input'!J797=\"Contingent\"),'TSA Input'!D797,\"\"))","v":""},{"$f":"IF('TSA Input'!J797=\"\",\"\",IF(OR('TSA Input'!J797=\"Yes\",'TSA Input'!J797=\"Contingent\"),'TSA Input'!G797,\"\"))","v":""},{"$f":"IF('TSA Input'!J797=\"\",\"\",IF(OR('TSA Input'!J797=\"Yes\",'TSA Input'!J797=\"Contingent\"),'TSA Input'!F797,\"\"))","v":""},"","Required","Required"]
["",null,{"$f":"IF('TSA Input'!J798=\"\",\"\",IF(OR('TSA Input'!J798=\"Yes\",'TSA Input'!J798=\"Contingent\"),'TSA Input'!B798,\"Ineligible\"))","v":""},{"$f":"IF('TSA Input'!J798=\"\",\"\",IF(OR('TSA Input'!J798=\"Yes\",'TSA Input'!J798=\"Contingent\"),'TSA Input'!I798,\"\"))","v":""},{"$f":"IF('TSA Input'!J798=\"\",\"\",IF(OR('TSA Input'!J798=\"Yes\",'TSA Input'!J798=\"Contingent\"),'TSA Input'!C798,\"\"))","v":""},{"$f":"IF('TSA Input'!J798=\"\",\"\",IF(OR('TSA Input'!J798=\"Yes\",'TSA Input'!J798=\"Contingent\"),'TSA Input'!D798,\"\"))","v":""},{"$f":"IF('TSA Input'!J798=\"\",\"\",IF(OR('TSA Input'!J798=\"Yes\",'TSA Input'!J798=\"Contingent\"),'TSA Input'!G798,\"\"))","v":""},{"$f":"IF('TSA Input'!J798=\"\",\"\",IF(OR('TSA Input'!J798=\"Yes\",'TSA Input'!J798=\"Contingent\"),'TSA Input'!F798,\"\"))","v":""},"",{"$f":"IF('TSA Input'!J798=\"\",\"\",IF(OR('TSA Input'!J798=\"Yes\",'TSA Input'!J798=\"Contingent\"),'TSA Input'!D798,\"\"))","v":""},{"$f":"IF('TSA Input'!J798=\"\",\"\",IF(OR('TSA Input'!J798=\"Yes\",'TSA Input'!J798=\"Contingent\"),'TSA Input'!G798,\"\"))","v":""},{"$f":"IF('TSA Input'!J798=\"\",\"\",IF(OR('TSA Input'!J798=\"Yes\",'TSA Input'!J798=\"Contingent\"),'TSA Input'!F798,\"\"))","v":""},"","Required","Required"]
["",null,{"$f":"IF('TSA Input'!J799=\"\",\"\",IF(OR('TSA Input'!J799=\"Yes\",'TSA Input'!J799=\"Contingent\"),'TSA Input'!B799,\"Ineligible\"))","v":""},{"$f":"IF('TSA Input'!J799=\"\",\"\",IF(OR('TSA Input'!J799=\"Yes\",'TSA Input'!J799=\"Contingent\"),'TSA Input'!I799,\"\"))","v":""},{"$f":"IF('TSA Input'!J799=\"\",\"\",IF(OR('TSA Input'!J799=\"Yes\",'TSA Input'!J799=\"Contingent\"),'TSA Input'!C799,\"\"))","v":""},{"$f":"IF('TSA Input'!J799=\"\",\"\",IF(OR('TSA Input'!J799=\"Yes\",'TSA Input'!J799=\"Contingent\"),'TSA Input'!D799,\"\"))","v":""},{"$f":"IF('TSA Input'!J799=\"\",\"\",IF(OR('TSA Input'!J799=\"Yes\",'TSA Input'!J799=\"Contingent\"),'TSA Input'!G799,\"\"))","v":""},{"$f":"IF('TSA Input'!J799=\"\",\"\",IF(OR('TSA Input'!J799=\"Yes\",'TSA Input'!J799=\"Contingent\"),'TSA Input'!F799,\"\"))","v":""},"",{"$f":"IF('TSA Input'!J799=\"\",\"\",IF(OR('TSA Input'!J799=\"Yes\",'TSA Input'!J799=\"Contingent\"),'TSA Input'!D799,\"\"))","v":""},{"$f":"IF('TSA Input'!J799=\"\",\"\",IF(OR('TSA Input'!J799=\"Yes\",'TSA Input'!J799=\"Contingent\"),'TSA Input'!G799,\"\"))","v":""},{"$f":"IF('TSA Input'!J799=\"\",\"\",IF(OR('TSA Input'!J799=\"Yes\",'TSA Input'!J799=\"Contingent\"),'TSA Input'!F799,\"\"))","v":""},"","Required","Required"]
["",null,{"$f":"IF('TSA Input'!J800=\"\",\"\",IF(OR('TSA Input'!J800=\"Yes\",'TSA Input'!J800=\"Contingent\"),'TSA Input'!B800,\"Ineligible\"))","v":""},{"$f":"IF('TSA Input'!J800=\"\",\"\",IF(OR('TSA Input'!J800=\"Yes\",'TSA Input'!J800=\"Contingent\"),'TSA Input'!I800,\"\"))","v":""},{"$f":"IF('TSA Input'!J800=\"\",\"\",IF(OR('TSA Input'!J800=\"Yes\",'TSA Input'!J800=\"Contingent\"),'TSA Input'!C800,\"\"))","v":""},{"$f":"IF('TSA Input'!J800=\"\",\"\",IF(OR('TSA Input'!J800=\"Yes\",'TSA Input'!J800=\"Contingent\"),'TSA Input'!D800,\"\"))","v":""},{"$f":"IF('TSA Input'!J800=\"\",\"\",IF(OR('TSA Input'!J800=\"Yes\",'TSA Input'!J800=\"Contingent\"),'TSA Input'!G800,\"\"))","v":""},{"$f":"IF('TSA Input'!J800=\"\",\"\",IF(OR('TSA Input'!J800=\"Yes\",'TSA Input'!J800=\"Contingent\"),'TSA Input'!F800,\"\"))","v":""},"",{"$f":"IF('TSA Input'!J800=\"\",\"\",IF(OR('TSA Input'!J800=\"Yes\",'TSA Input'!J800=\"Contingent\"),'TSA Input'!D800,\"\"))","v":""},{"$f":"IF('TSA Input'!J800=\"\",\"\",IF(OR('TSA Input'!J800=\"Yes\",'TSA Input'!J800=\"Contingent\"),'TSA Input'!G800,\"\"))","v":""},{"$f":"IF('TSA Input'!J800=\"\",\"\",IF(OR('TSA Input'!J800=\"Yes\",'TSA Input'!J800=\"Contingent\"),'TSA Input'!F800,\"\"))","v":""},"","Required","Required"]
["",null,{"$f":"IF('TSA Input'!J801=\"\",\"\",IF(OR('TSA Input'!J801=\"Yes\",'TSA Input'!J801=\"Contingent\"),'TSA Input'!B801,\"Ineligible\"))","v":""},{"$f":"IF('TSA Input'!J801=\"\",\"\",IF(OR('TSA Input'!J801=\"Yes\",'TSA Input'!J801=\"Contingent\"),'TSA Input'!I801,\"\"))","v":""},{"$f":"IF('TSA Input'!J801=\"\",\"\",IF(OR('TSA Input'!J801=\"Yes\",'TSA Input'!J801=\"Contingent\"),'TSA Input'!C801,\"\"))","v":""},{"$f":"IF('TSA Input'!J801=\"\",\"\",IF(OR('TSA Input'!J801=\"Yes\",'TSA Input'!J801=\"Contingent\"),'TSA Input'!D801,\"\"))","v":""},{"$f":"IF('TSA Input'!J801=\"\",\"\",IF(OR('TSA Input'!J801=\"Yes\",'TSA Input'!J801=\"Contingent\"),'TSA Input'!G801,\"\"))","v":""},{"$f":"IF('TSA Input'!J801=\"\",\"\",IF(OR('TSA Input'!J801=\"Yes\",'TSA Input'!J801=\"Contingent\"),'TSA Input'!F801,\"\"))","v":""},"",{"$f":"IF('TSA Input'!J801=\"\",\"\",IF(OR('TSA Input'!J801=\"Yes\",'TSA Input'!J801=\"Contingent\"),'TSA Input'!D801,\"\"))","v":""},{"$f":"IF('TSA Input'!J801=\"\",\"\",IF(OR('TSA Input'!J801=\"Yes\",'TSA Input'!J801=\"Contingent\"),'TSA Input'!G801,\"\"))","v":""},{"$f":"IF('TSA Input'!J801=\"\",\"\",IF(OR('TSA Input'!J801=\"Yes\",'TSA Input'!J801=\"Contingent\"),'TSA Input'!F801,\"\"))","v":""},"","Required","Required"]
["",null,{"$f":"IF('TSA Input'!J802=\"\",\"\",IF(OR('TSA Input'!J802=\"Yes\",'TSA Input'!J802=\"Contingent\"),'TSA Input'!B802,\"Ineligible\"))","v":""},{"$f":"IF('TSA Input'!J802=\"\",\"\",IF(OR('TSA Input'!J802=\"Yes\",'TSA Input'!J802=\"Contingent\"),'TSA Input'!I802,\"\"))","v":""},{"$f":"IF('TSA Input'!J802=\"\",\"\",IF(OR('TSA Input'!J802=\"Yes\",'TSA Input'!J802=\"Contingent\"),'TSA Input'!C802,\"\"))","v":""},{"$f":"IF('TSA Input'!J802=\"\",\"\",IF(OR('TSA Input'!J802=\"Yes\",'TSA Input'!J802=\"Contingent\"),'TSA Input'!D802,\"\"))","v":""},{"$f":"IF('TSA Input'!J802=\"\",\"\",IF(OR('TSA Input'!J802=\"Yes\",'TSA Input'!J802=\"Contingent\"),'TSA Input'!G802,\"\"))","v":""},{"$f":"IF('TSA Input'!J802=\"\",\"\",IF(OR('TSA Input'!J802=\"Yes\",'TSA Input'!J802=\"Contingent\"),'TSA Input'!F802,\"\"))","v":""},"",{"$f":"IF('TSA Input'!J802=\"\",\"\",IF(OR('TSA Input'!J802=\"Yes\",'TSA Input'!J802=\"Contingent\"),'TSA Input'!D802,\"\"))","v":""},{"$f":"IF('TSA Input'!J802=\"\",\"\",IF(OR('TSA Input'!J802=\"Yes\",'TSA Input'!J802=\"Contingent\"),'TSA Input'!G802,\"\"))","v":""},{"$f":"IF('TSA Input'!J802=\"\",\"\",IF(OR('TSA Input'!J802=\"Yes\",'TSA Input'!J802=\"Contingent\"),'TSA Input'!F802,\"\"))","v":""},"","Required","Required"]
["",null,{"$f":"IF('TSA Input'!J803=\"\",\"\",IF(OR('TSA Input'!J803=\"Yes\",'TSA Input'!J803=\"Contingent\"),'TSA Input'!B803,\"Ineligible\"))","v":""},{"$f":"IF('TSA Input'!J803=\"\",\"\",IF(OR('TSA Input'!J803=\"Yes\",'TSA Input'!J803=\"Contingent\"),'TSA Input'!I803,\"\"))","v":""},{"$f":"IF('TSA Input'!J803=\"\",\"\",IF(OR('TSA Input'!J803=\"Yes\",'TSA Input'!J803=\"Contingent\"),'TSA Input'!C803,\"\"))","v":""},{"$f":"IF('TSA Input'!J803=\"\",\"\",IF(OR('TSA Input'!J803=\"Yes\",'TSA Input'!J803=\"Contingent\"),'TSA Input'!D803,\"\"))","v":""},{"$f":"IF('TSA Input'!J803=\"\",\"\",IF(OR('TSA Input'!J803=\"Yes\",'TSA Input'!J803=\"Contingent\"),'TSA Input'!G803,\"\"))","v":""},{"$f":"IF('TSA Input'!J803=\"\",\"\",IF(OR('TSA Input'!J803=\"Yes\",'TSA Input'!J803=\"Contingent\"),'TSA Input'!F803,\"\"))","v":""},"",{"$f":"IF('TSA Input'!J803=\"\",\"\",IF(OR('TSA Input'!J803=\"Yes\",'TSA Input'!J803=\"Contingent\"),'TSA Input'!D803,\"\"))","v":""},{"$f":"IF('TSA Input'!J803=\"\",\"\",IF(OR('TSA Input'!J803=\"Yes\",'TSA Input'!J803=\"Contingent\"),'TSA Input'!G803,\"\"))","v":""},{"$f":"IF('TSA Input'!J803=\"\",\"\",IF(OR('TSA Input'!J803=\"Yes\",'TSA Input'!J803=\"Contingent\"),'TSA Input'!F803,\"\"))","v":""},"","Required","Required"]
["",null,{"$f":"IF('TSA Input'!J804=\"\",\"\",IF(OR('TSA Input'!J804=\"Yes\",'TSA Input'!J804=\"Contingent\"),'TSA Input'!B804,\"Ineligible\"))","v":""},{"$f":"IF('TSA Input'!J804=\"\",\"\",IF(OR('TSA Input'!J804=\"Yes\",'TSA Input'!J804=\"Contingent\"),'TSA Input'!I804,\"\"))","v":""},{"$f":"IF('TSA Input'!J804=\"\",\"\",IF(OR('TSA Input'!J804=\"Yes\",'TSA Input'!J804=\"Contingent\"),'TSA Input'!C804,\"\"))","v":""},{"$f":"IF('TSA Input'!J804=\"\",\"\",IF(OR('TSA Input'!J804=\"Yes\",'TSA Input'!J804=\"Contingent\"),'TSA Input'!D804,\"\"))","v":""},{"$f":"IF('TSA Input'!J804=\"\",\"\",IF(OR('TSA Input'!J804=\"Yes\",'TSA Input'!J804=\"Contingent\"),'TSA Input'!G804,\"\"))","v":""},{"$f":"IF('TSA Input'!J804=\"\",\"\",IF(OR('TSA Input'!J804=\"Yes\",'TSA Input'!J804=\"Contingent\"),'TSA Input'!F804,\"\"))","v":""},"",{"$f":"IF('TSA Input'!J804=\"\",\"\",IF(OR('TSA Input'!J804=\"Yes\",'TSA Input'!J804=\"Contingent\"),'TSA Input'!D804,\"\"))","v":""},{"$f":"IF('TSA Input'!J804=\"\",\"\",IF(OR('TSA Input'!J804=\"Yes\",'TSA Input'!J804=\"Contingent\"),'TSA Input'!G804,\"\"))","v":""},{"$f":"IF('TSA Input'!J804=\"\",\"\",IF(OR('TSA Input'!J804=\"Yes\",'TSA Input'!J804=\"Contingent\"),'TSA Input'!F804,\"\"))","v":""},"","Required","Required"]
["",null,{"$f":"IF('TSA Input'!J805=\"\",\"\",IF(OR('TSA Input'!J805=\"Yes\",'TSA Input'!J805=\"Contingent\"),'TSA Input'!B805,\"Ineligible\"))","v":""},{"$f":"IF('TSA Input'!J805=\"\",\"\",IF(OR('TSA Input'!J805=\"Yes\",'TSA Input'!J805=\"Contingent\"),'TSA Input'!I805,\"\"))","v":""},{"$f":"IF('TSA Input'!J805=\"\",\"\",IF(OR('TSA Input'!J805=\"Yes\",'TSA Input'!J805=\"Contingent\"),'TSA Input'!C805,\"\"))","v":""},{"$f":"IF('TSA Input'!J805=\"\",\"\",IF(OR('TSA Input'!J805=\"Yes\",'TSA Input'!J805=\"Contingent\"),'TSA Input'!D805,\"\"))","v":""},{"$f":"IF('TSA Input'!J805=\"\",\"\",IF(OR('TSA Input'!J805=\"Yes\",'TSA Input'!J805=\"Contingent\"),'TSA Input'!G805,\"\"))","v":""},{"$f":"IF('TSA Input'!J805=\"\",\"\",IF(OR('TSA Input'!J805=\"Yes\",'TSA Input'!J805=\"Contingent\"),'TSA Input'!F805,\"\"))","v":""},"",{"$f":"IF('TSA Input'!J805=\"\",\"\",IF(OR('TSA Input'!J805=\"Yes\",'TSA Input'!J805=\"Contingent\"),'TSA Input'!D805,\"\"))","v":""},{"$f":"IF('TSA Input'!J805=\"\",\"\",IF(OR('TSA Input'!J805=\"Yes\",'TSA Input'!J805=\"Contingent\"),'TSA Input'!G805,\"\"))","v":""},{"$f":"IF('TSA Input'!J805=\"\",\"\",IF(OR('TSA Input'!J805=\"Yes\",'TSA Input'!J805=\"Contingent\"),'TSA Input'!F805,\"\"))","v":""},"","Required","Required"]
["",null,{"$f":"IF('TSA Input'!J806=\"\",\"\",IF(OR('TSA Input'!J806=\"Yes\",'TSA Input'!J806=\"Contingent\"),'TSA Input'!B806,\"Ineligible\"))","v":""},{"$f":"IF('TSA Input'!J806=\"\",\"\",IF(OR('TSA Input'!J806=\"Yes\",'TSA Input'!J806=\"Contingent\"),'TSA Input'!I806,\"\"))","v":""},{"$f":"IF('TSA Input'!J806=\"\",\"\",IF(OR('TSA Input'!J806=\"Yes\",'TSA Input'!J806=\"Contingent\"),'TSA Input'!C806,\"\"))","v":""},{"$f":"IF('TSA Input'!J806=\"\",\"\",IF(OR('TSA Input'!J806=\"Yes\",'TSA Input'!J806=\"Contingent\"),'TSA Input'!D806,\"\"))","v":""},{"$f":"IF('TSA Input'!J806=\"\",\"\",IF(OR('TSA Input'!J806=\"Yes\",'TSA Input'!J806=\"Contingent\"),'TSA Input'!G806,\"\"))","v":""},{"$f":"IF('TSA Input'!J806=\"\",\"\",IF(OR('TSA Input'!J806=\"Yes\",'TSA Input'!J806=\"Contingent\"),'TSA Input'!F806,\"\"))","v":""},"",{"$f":"IF('TSA Input'!J806=\"\",\"\",IF(OR('TSA Input'!J806=\"Yes\",'TSA Input'!J806=\"Contingent\"),'TSA Input'!D806,\"\"))","v":""},{"$f":"IF('TSA Input'!J806=\"\",\"\",IF(OR('TSA Input'!J806=\"Yes\",'TSA Input'!J806=\"Contingent\"),'TSA Input'!G806,\"\"))","v":""},{"$f":"IF('TSA Input'!J806=\"\",\"\",IF(OR('TSA Input'!J806=\"Yes\",'TSA Input'!J806=\"Contingent\"),'TSA Input'!F806,\"\"))","v":""},"","Required","Required"]
["",null,{"$f":"IF('TSA Input'!J807=\"\",\"\",IF(OR('TSA Input'!J807=\"Yes\",'TSA Input'!J807=\"Contingent\"),'TSA Input'!B807,\"Ineligible\"))","v":""},{"$f":"IF('TSA Input'!J807=\"\",\"\",IF(OR('TSA Input'!J807=\"Yes\",'TSA Input'!J807=\"Contingent\"),'TSA Input'!I807,\"\"))","v":""},{"$f":"IF('TSA Input'!J807=\"\",\"\",IF(OR('TSA Input'!J807=\"Yes\",'TSA Input'!J807=\"Contingent\"),'TSA Input'!C807,\"\"))","v":""},{"$f":"IF('TSA Input'!J807=\"\",\"\",IF(OR('TSA Input'!J807=\"Yes\",'TSA Input'!J807=\"Contingent\"),'TSA Input'!D807,\"\"))","v":""},{"$f":"IF('TSA Input'!J807=\"\",\"\",IF(OR('TSA Input'!J807=\"Yes\",'TSA Input'!J807=\"Contingent\"),'TSA Input'!G807,\"\"))","v":""},{"$f":"IF('TSA Input'!J807=\"\",\"\",IF(OR('TSA Input'!J807=\"Yes\",'TSA Input'!J807=\"Contingent\"),'TSA Input'!F807,\"\"))","v":""},"",{"$f":"IF('TSA Input'!J807=\"\",\"\",IF(OR('TSA Input'!J807=\"Yes\",'TSA Input'!J807=\"Contingent\"),'TSA Input'!D807,\"\"))","v":""},{"$f":"IF('TSA Input'!J807=\"\",\"\",IF(OR('TSA Input'!J807=\"Yes\",'TSA Input'!J807=\"Contingent\"),'TSA Input'!G807,\"\"))","v":""},{"$f":"IF('TSA Input'!J807=\"\",\"\",IF(OR('TSA Input'!J807=\"Yes\",'TSA Input'!J807=\"Contingent\"),'TSA Input'!F807,\"\"))","v":""},"","Required","Required"]
["",null,{"$f":"IF('TSA Input'!J808=\"\",\"\",IF(OR('TSA Input'!J808=\"Yes\",'TSA Input'!J808=\"Contingent\"),'TSA Input'!B808,\"Ineligible\"))","v":""},{"$f":"IF('TSA Input'!J808=\"\",\"\",IF(OR('TSA Input'!J808=\"Yes\",'TSA Input'!J808=\"Contingent\"),'TSA Input'!I808,\"\"))","v":""},{"$f":"IF('TSA Input'!J808=\"\",\"\",IF(OR('TSA Input'!J808=\"Yes\",'TSA Input'!J808=\"Contingent\"),'TSA Input'!C808,\"\"))","v":""},{"$f":"IF('TSA Input'!J808=\"\",\"\",IF(OR('TSA Input'!J808=\"Yes\",'TSA Input'!J808=\"Contingent\"),'TSA Input'!D808,\"\"))","v":""},{"$f":"IF('TSA Input'!J808=\"\",\"\",IF(OR('TSA Input'!J808=\"Yes\",'TSA Input'!J808=\"Contingent\"),'TSA Input'!G808,\"\"))","v":""},{"$f":"IF('TSA Input'!J808=\"\",\"\",IF(OR('TSA Input'!J808=\"Yes\",'TSA Input'!J808=\"Contingent\"),'TSA Input'!F808,\"\"))","v":""},"",{"$f":"IF('TSA Input'!J808=\"\",\"\",IF(OR('TSA Input'!J808=\"Yes\",'TSA Input'!J808=\"Contingent\"),'TSA Input'!D808,\"\"))","v":""},{"$f":"IF('TSA Input'!J808=\"\",\"\",IF(OR('TSA Input'!J808=\"Yes\",'TSA Input'!J808=\"Contingent\"),'TSA Input'!G808,\"\"))","v":""},{"$f":"IF('TSA Input'!J808=\"\",\"\",IF(OR('TSA Input'!J808=\"Yes\",'TSA Input'!J808=\"Contingent\"),'TSA Input'!F808,\"\"))","v":""},"","Required","Required"]
["",null,{"$f":"IF('TSA Input'!J809=\"\",\"\",IF(OR('TSA Input'!J809=\"Yes\",'TSA Input'!J809=\"Contingent\"),'TSA Input'!B809,\"Ineligible\"))","v":""},{"$f":"IF('TSA Input'!J809=\"\",\"\",IF(OR('TSA Input'!J809=\"Yes\",'TSA Input'!J809=\"Contingent\"),'TSA Input'!I809,\"\"))","v":""},{"$f":"IF('TSA Input'!J809=\"\",\"\",IF(OR('TSA Input'!J809=\"Yes\",'TSA Input'!J809=\"Contingent\"),'TSA Input'!C809,\"\"))","v":""},{"$f":"IF('TSA Input'!J809=\"\",\"\",IF(OR('TSA Input'!J809=\"Yes\",'TSA Input'!J809=\"Contingent\"),'TSA Input'!D809,\"\"))","v":""},{"$f":"IF('TSA Input'!J809=\"\",\"\",IF(OR('TSA Input'!J809=\"Yes\",'TSA Input'!J809=\"Contingent\"),'TSA Input'!G809,\"\"))","v":""},{"$f":"IF('TSA Input'!J809=\"\",\"\",IF(OR('TSA Input'!J809=\"Yes\",'TSA Input'!J809=\"Contingent\"),'TSA Input'!F809,\"\"))","v":""},"",{"$f":"IF('TSA Input'!J809=\"\",\"\",IF(OR('TSA Input'!J809=\"Yes\",'TSA Input'!J809=\"Contingent\"),'TSA Input'!D809,\"\"))","v":""},{"$f":"IF('TSA Input'!J809=\"\",\"\",IF(OR('TSA Input'!J809=\"Yes\",'TSA Input'!J809=\"Contingent\"),'TSA Input'!G809,\"\"))","v":""},{"$f":"IF('TSA Input'!J809=\"\",\"\",IF(OR('TSA Input'!J809=\"Yes\",'TSA Input'!J809=\"Contingent\"),'TSA Input'!F809,\"\"))","v":""},"","Required","Required"]
["",null,{"$f":"IF('TSA Input'!J810=\"\",\"\",IF(OR('TSA Input'!J810=\"Yes\",'TSA Input'!J810=\"Contingent\"),'TSA Input'!B810,\"Ineligible\"))","v":""},{"$f":"IF('TSA Input'!J810=\"\",\"\",IF(OR('TSA Input'!J810=\"Yes\",'TSA Input'!J810=\"Contingent\"),'TSA Input'!I810,\"\"))","v":""},{"$f":"IF('TSA Input'!J810=\"\",\"\",IF(OR('TSA Input'!J810=\"Yes\",'TSA Input'!J810=\"Contingent\"),'TSA Input'!C810,\"\"))","v":""},{"$f":"IF('TSA Input'!J810=\"\",\"\",IF(OR('TSA Input'!J810=\"Yes\",'TSA Input'!J810=\"Contingent\"),'TSA Input'!D810,\"\"))","v":""},{"$f":"IF('TSA Input'!J810=\"\",\"\",IF(OR('TSA Input'!J810=\"Yes\",'TSA Input'!J810=\"Contingent\"),'TSA Input'!G810,\"\"))","v":""},{"$f":"IF('TSA Input'!J810=\"\",\"\",IF(OR('TSA Input'!J810=\"Yes\",'TSA Input'!J810=\"Contingent\"),'TSA Input'!F810,\"\"))","v":""},"",{"$f":"IF('TSA Input'!J810=\"\",\"\",IF(OR('TSA Input'!J810=\"Yes\",'TSA Input'!J810=\"Contingent\"),'TSA Input'!D810,\"\"))","v":""},{"$f":"IF('TSA Input'!J810=\"\",\"\",IF(OR('TSA Input'!J810=\"Yes\",'TSA Input'!J810=\"Contingent\"),'TSA Input'!G810,\"\"))","v":""},{"$f":"IF('TSA Input'!J810=\"\",\"\",IF(OR('TSA Input'!J810=\"Yes\",'TSA Input'!J810=\"Contingent\"),'TSA Input'!F810,\"\"))","v":""},"","Required","Required"]
["",null,{"$f":"IF('TSA Input'!J811=\"\",\"\",IF(OR('TSA Input'!J811=\"Yes\",'TSA Input'!J811=\"Contingent\"),'TSA Input'!B811,\"Ineligible\"))","v":""},{"$f":"IF('TSA Input'!J811=\"\",\"\",IF(OR('TSA Input'!J811=\"Yes\",'TSA Input'!J811=\"Contingent\"),'TSA Input'!I811,\"\"))","v":""},{"$f":"IF('TSA Input'!J811=\"\",\"\",IF(OR('TSA Input'!J811=\"Yes\",'TSA Input'!J811=\"Contingent\"),'TSA Input'!C811,\"\"))","v":""},{"$f":"IF('TSA Input'!J811=\"\",\"\",IF(OR('TSA Input'!J811=\"Yes\",'TSA Input'!J811=\"Contingent\"),'TSA Input'!D811,\"\"))","v":""},{"$f":"IF('TSA Input'!J811=\"\",\"\",IF(OR('TSA Input'!J811=\"Yes\",'TSA Input'!J811=\"Contingent\"),'TSA Input'!G811,\"\"))","v":""},{"$f":"IF('TSA Input'!J811=\"\",\"\",IF(OR('TSA Input'!J811=\"Yes\",'TSA Input'!J811=\"Contingent\"),'TSA Input'!F811,\"\"))","v":""},"",{"$f":"IF('TSA Input'!J811=\"\",\"\",IF(OR('TSA Input'!J811=\"Yes\",'TSA Input'!J811=\"Contingent\"),'TSA Input'!D811,\"\"))","v":""},{"$f":"IF('TSA Input'!J811=\"\",\"\",IF(OR('TSA Input'!J811=\"Yes\",'TSA Input'!J811=\"Contingent\"),'TSA Input'!G811,\"\"))","v":""},{"$f":"IF('TSA Input'!J811=\"\",\"\",IF(OR('TSA Input'!J811=\"Yes\",'TSA Input'!J811=\"Contingent\"),'TSA Input'!F811,\"\"))","v":""},"","Required","Required"]
["",null,{"$f":"IF('TSA Input'!J812=\"\",\"\",IF(OR('TSA Input'!J812=\"Yes\",'TSA Input'!J812=\"Contingent\"),'TSA Input'!B812,\"Ineligible\"))","v":""},{"$f":"IF('TSA Input'!J812=\"\",\"\",IF(OR('TSA Input'!J812=\"Yes\",'TSA Input'!J812=\"Contingent\"),'TSA Input'!I812,\"\"))","v":""},{"$f":"IF('TSA Input'!J812=\"\",\"\",IF(OR('TSA Input'!J812=\"Yes\",'TSA Input'!J812=\"Contingent\"),'TSA Input'!C812,\"\"))","v":""},{"$f":"IF('TSA Input'!J812=\"\",\"\",IF(OR('TSA Input'!J812=\"Yes\",'TSA Input'!J812=\"Contingent\"),'TSA Input'!D812,\"\"))","v":""},{"$f":"IF('TSA Input'!J812=\"\",\"\",IF(OR('TSA Input'!J812=\"Yes\",'TSA Input'!J812=\"Contingent\"),'TSA Input'!G812,\"\"))","v":""},{"$f":"IF('TSA Input'!J812=\"\",\"\",IF(OR('TSA Input'!J812=\"Yes\",'TSA Input'!J812=\"Contingent\"),'TSA Input'!F812,\"\"))","v":""},"",{"$f":"IF('TSA Input'!J812=\"\",\"\",IF(OR('TSA Input'!J812=\"Yes\",'TSA Input'!J812=\"Contingent\"),'TSA Input'!D812,\"\"))","v":""},{"$f":"IF('TSA Input'!J812=\"\",\"\",IF(OR('TSA Input'!J812=\"Yes\",'TSA Input'!J812=\"Contingent\"),'TSA Input'!G812,\"\"))","v":""},{"$f":"IF('TSA Input'!J812=\"\",\"\",IF(OR('TSA Input'!J812=\"Yes\",'TSA Input'!J812=\"Contingent\"),'TSA Input'!F812,\"\"))","v":""},"","Required","Required"]
["",null,{"$f":"IF('TSA Input'!J813=\"\",\"\",IF(OR('TSA Input'!J813=\"Yes\",'TSA Input'!J813=\"Contingent\"),'TSA Input'!B813,\"Ineligible\"))","v":""},{"$f":"IF('TSA Input'!J813=\"\",\"\",IF(OR('TSA Input'!J813=\"Yes\",'TSA Input'!J813=\"Contingent\"),'TSA Input'!I813,\"\"))","v":""},{"$f":"IF('TSA Input'!J813=\"\",\"\",IF(OR('TSA Input'!J813=\"Yes\",'TSA Input'!J813=\"Contingent\"),'TSA Input'!C813,\"\"))","v":""},{"$f":"IF('TSA Input'!J813=\"\",\"\",IF(OR('TSA Input'!J813=\"Yes\",'TSA Input'!J813=\"Contingent\"),'TSA Input'!D813,\"\"))","v":""},{"$f":"IF('TSA Input'!J813=\"\",\"\",IF(OR('TSA Input'!J813=\"Yes\",'TSA Input'!J813=\"Contingent\"),'TSA Input'!G813,\"\"))","v":""},{"$f":"IF('TSA Input'!J813=\"\",\"\",IF(OR('TSA Input'!J813=\"Yes\",'TSA Input'!J813=\"Contingent\"),'TSA Input'!F813,\"\"))","v":""},"",{"$f":"IF('TSA Input'!J813=\"\",\"\",IF(OR('TSA Input'!J813=\"Yes\",'TSA Input'!J813=\"Contingent\"),'TSA Input'!D813,\"\"))","v":""},{"$f":"IF('TSA Input'!J813=\"\",\"\",IF(OR('TSA Input'!J813=\"Yes\",'TSA Input'!J813=\"Contingent\"),'TSA Input'!G813,\"\"))","v":""},{"$f":"IF('TSA Input'!J813=\"\",\"\",IF(OR('TSA Input'!J813=\"Yes\",'TSA Input'!J813=\"Contingent\"),'TSA Input'!F813,\"\"))","v":""},"","Required","Required"]
["",null,{"$f":"IF('TSA Input'!J814=\"\",\"\",IF(OR('TSA Input'!J814=\"Yes\",'TSA Input'!J814=\"Contingent\"),'TSA Input'!B814,\"Ineligible\"))","v":""},{"$f":"IF('TSA Input'!J814=\"\",\"\",IF(OR('TSA Input'!J814=\"Yes\",'TSA Input'!J814=\"Contingent\"),'TSA Input'!I814,\"\"))","v":""},{"$f":"IF('TSA Input'!J814=\"\",\"\",IF(OR('TSA Input'!J814=\"Yes\",'TSA Input'!J814=\"Contingent\"),'TSA Input'!C814,\"\"))","v":""},{"$f":"IF('TSA Input'!J814=\"\",\"\",IF(OR('TSA Input'!J814=\"Yes\",'TSA Input'!J814=\"Contingent\"),'TSA Input'!D814,\"\"))","v":""},{"$f":"IF('TSA Input'!J814=\"\",\"\",IF(OR('TSA Input'!J814=\"Yes\",'TSA Input'!J814=\"Contingent\"),'TSA Input'!G814,\"\"))","v":""},{"$f":"IF('TSA Input'!J814=\"\",\"\",IF(OR('TSA Input'!J814=\"Yes\",'TSA Input'!J814=\"Contingent\"),'TSA Input'!F814,\"\"))","v":""},"",{"$f":"IF('TSA Input'!J814=\"\",\"\",IF(OR('TSA Input'!J814=\"Yes\",'TSA Input'!J814=\"Contingent\"),'TSA Input'!D814,\"\"))","v":""},{"$f":"IF('TSA Input'!J814=\"\",\"\",IF(OR('TSA Input'!J814=\"Yes\",'TSA Input'!J814=\"Contingent\"),'TSA Input'!G814,\"\"))","v":""},{"$f":"IF('TSA Input'!J814=\"\",\"\",IF(OR('TSA Input'!J814=\"Yes\",'TSA Input'!J814=\"Contingent\"),'TSA Input'!F814,\"\"))","v":""},"","Required","Required"]
["",null,{"$f":"IF('TSA Input'!J815=\"\",\"\",IF(OR('TSA Input'!J815=\"Yes\",'TSA Input'!J815=\"Contingent\"),'TSA Input'!B815,\"Ineligible\"))","v":""},{"$f":"IF('TSA Input'!J815=\"\",\"\",IF(OR('TSA Input'!J815=\"Yes\",'TSA Input'!J815=\"Contingent\"),'TSA Input'!I815,\"\"))","v":""},{"$f":"IF('TSA Input'!J815=\"\",\"\",IF(OR('TSA Input'!J815=\"Yes\",'TSA Input'!J815=\"Contingent\"),'TSA Input'!C815,\"\"))","v":""},{"$f":"IF('TSA Input'!J815=\"\",\"\",IF(OR('TSA Input'!J815=\"Yes\",'TSA Input'!J815=\"Contingent\"),'TSA Input'!D815,\"\"))","v":""},{"$f":"IF('TSA Input'!J815=\"\",\"\",IF(OR('TSA Input'!J815=\"Yes\",'TSA Input'!J815=\"Contingent\"),'TSA Input'!G815,\"\"))","v":""},{"$f":"IF('TSA Input'!J815=\"\",\"\",IF(OR('TSA Input'!J815=\"Yes\",'TSA Input'!J815=\"Contingent\"),'TSA Input'!F815,\"\"))","v":""},"",{"$f":"IF('TSA Input'!J815=\"\",\"\",IF(OR('TSA Input'!J815=\"Yes\",'TSA Input'!J815=\"Contingent\"),'TSA Input'!D815,\"\"))","v":""},{"$f":"IF('TSA Input'!J815=\"\",\"\",IF(OR('TSA Input'!J815=\"Yes\",'TSA Input'!J815=\"Contingent\"),'TSA Input'!G815,\"\"))","v":""},{"$f":"IF('TSA Input'!J815=\"\",\"\",IF(OR('TSA Input'!J815=\"Yes\",'TSA Input'!J815=\"Contingent\"),'TSA Input'!F815,\"\"))","v":""},"","Required","Required"]
["",null,{"$f":"IF('TSA Input'!J816=\"\",\"\",IF(OR('TSA Input'!J816=\"Yes\",'TSA Input'!J816=\"Contingent\"),'TSA Input'!B816,\"Ineligible\"))","v":""},{"$f":"IF('TSA Input'!J816=\"\",\"\",IF(OR('TSA Input'!J816=\"Yes\",'TSA Input'!J816=\"Contingent\"),'TSA Input'!I816,\"\"))","v":""},{"$f":"IF('TSA Input'!J816=\"\",\"\",IF(OR('TSA Input'!J816=\"Yes\",'TSA Input'!J816=\"Contingent\"),'TSA Input'!C816,\"\"))","v":""},{"$f":"IF('TSA Input'!J816=\"\",\"\",IF(OR('TSA Input'!J816=\"Yes\",'TSA Input'!J816=\"Contingent\"),'TSA Input'!D816,\"\"))","v":""},{"$f":"IF('TSA Input'!J816=\"\",\"\",IF(OR('TSA Input'!J816=\"Yes\",'TSA Input'!J816=\"Contingent\"),'TSA Input'!G816,\"\"))","v":""},{"$f":"IF('TSA Input'!J816=\"\",\"\",IF(OR('TSA Input'!J816=\"Yes\",'TSA Input'!J816=\"Contingent\"),'TSA Input'!F816,\"\"))","v":""},"",{"$f":"IF('TSA Input'!J816=\"\",\"\",IF(OR('TSA Input'!J816=\"Yes\",'TSA Input'!J816=\"Contingent\"),'TSA Input'!D816,\"\"))","v":""},{"$f":"IF('TSA Input'!J816=\"\",\"\",IF(OR('TSA Input'!J816=\"Yes\",'TSA Input'!J816=\"Contingent\"),'TSA Input'!G816,\"\"))","v":""},{"$f":"IF('TSA Input'!J816=\"\",\"\",IF(OR('TSA Input'!J816=\"Yes\",'TSA Input'!J816=\"Contingent\"),'TSA Input'!F816,\"\"))","v":""},"","Required","Required"]
["",null,{"$f":"IF('TSA Input'!J817=\"\",\"\",IF(OR('TSA Input'!J817=\"Yes\",'TSA Input'!J817=\"Contingent\"),'TSA Input'!B817,\"Ineligible\"))","v":""},{"$f":"IF('TSA Input'!J817=\"\",\"\",IF(OR('TSA Input'!J817=\"Yes\",'TSA Input'!J817=\"Contingent\"),'TSA Input'!I817,\"\"))","v":""},{"$f":"IF('TSA Input'!J817=\"\",\"\",IF(OR('TSA Input'!J817=\"Yes\",'TSA Input'!J817=\"Contingent\"),'TSA Input'!C817,\"\"))","v":""},{"$f":"IF('TSA Input'!J817=\"\",\"\",IF(OR('TSA Input'!J817=\"Yes\",'TSA Input'!J817=\"Contingent\"),'TSA Input'!D817,\"\"))","v":""},{"$f":"IF('TSA Input'!J817=\"\",\"\",IF(OR('TSA Input'!J817=\"Yes\",'TSA Input'!J817=\"Contingent\"),'TSA Input'!G817,\"\"))","v":""},{"$f":"IF('TSA Input'!J817=\"\",\"\",IF(OR('TSA Input'!J817=\"Yes\",'TSA Input'!J817=\"Contingent\"),'TSA Input'!F817,\"\"))","v":""},"",{"$f":"IF('TSA Input'!J817=\"\",\"\",IF(OR('TSA Input'!J817=\"Yes\",'TSA Input'!J817=\"Contingent\"),'TSA Input'!D817,\"\"))","v":""},{"$f":"IF('TSA Input'!J817=\"\",\"\",IF(OR('TSA Input'!J817=\"Yes\",'TSA Input'!J817=\"Contingent\"),'TSA Input'!G817,\"\"))","v":""},{"$f":"IF('TSA Input'!J817=\"\",\"\",IF(OR('TSA Input'!J817=\"Yes\",'TSA Input'!J817=\"Contingent\"),'TSA Input'!F817,\"\"))","v":""},"","Required","Required"]
["",null,{"$f":"IF('TSA Input'!J818=\"\",\"\",IF(OR('TSA Input'!J818=\"Yes\",'TSA Input'!J818=\"Contingent\"),'TSA Input'!B818,\"Ineligible\"))","v":""},{"$f":"IF('TSA Input'!J818=\"\",\"\",IF(OR('TSA Input'!J818=\"Yes\",'TSA Input'!J818=\"Contingent\"),'TSA Input'!I818,\"\"))","v":""},{"$f":"IF('TSA Input'!J818=\"\",\"\",IF(OR('TSA Input'!J818=\"Yes\",'TSA Input'!J818=\"Contingent\"),'TSA Input'!C818,\"\"))","v":""},{"$f":"IF('TSA Input'!J818=\"\",\"\",IF(OR('TSA Input'!J818=\"Yes\",'TSA Input'!J818=\"Contingent\"),'TSA Input'!D818,\"\"))","v":""},{"$f":"IF('TSA Input'!J818=\"\",\"\",IF(OR('TSA Input'!J818=\"Yes\",'TSA Input'!J818=\"Contingent\"),'TSA Input'!G818,\"\"))","v":""},{"$f":"IF('TSA Input'!J818=\"\",\"\",IF(OR('TSA Input'!J818=\"Yes\",'TSA Input'!J818=\"Contingent\"),'TSA Input'!F818,\"\"))","v":""},"",{"$f":"IF('TSA Input'!J818=\"\",\"\",IF(OR('TSA Input'!J818=\"Yes\",'TSA Input'!J818=\"Contingent\"),'TSA Input'!D818,\"\"))","v":""},{"$f":"IF('TSA Input'!J818=\"\",\"\",IF(OR('TSA Input'!J818=\"Yes\",'TSA Input'!J818=\"Contingent\"),'TSA Input'!G818,\"\"))","v":""},{"$f":"IF('TSA Input'!J818=\"\",\"\",IF(OR('TSA Input'!J818=\"Yes\",'TSA Input'!J818=\"Contingent\"),'TSA Input'!F818,\"\"))","v":""},"","Required","Required"]
["",null,{"$f":"IF('TSA Input'!J819=\"\",\"\",IF(OR('TSA Input'!J819=\"Yes\",'TSA Input'!J819=\"Contingent\"),'TSA Input'!B819,\"Ineligible\"))","v":""},{"$f":"IF('TSA Input'!J819=\"\",\"\",IF(OR('TSA Input'!J819=\"Yes\",'TSA Input'!J819=\"Contingent\"),'TSA Input'!I819,\"\"))","v":""},{"$f":"IF('TSA Input'!J819=\"\",\"\",IF(OR('TSA Input'!J819=\"Yes\",'TSA Input'!J819=\"Contingent\"),'TSA Input'!C819,\"\"))","v":""},{"$f":"IF('TSA Input'!J819=\"\",\"\",IF(OR('TSA Input'!J819=\"Yes\",'TSA Input'!J819=\"Contingent\"),'TSA Input'!D819,\"\"))","v":""},{"$f":"IF('TSA Input'!J819=\"\",\"\",IF(OR('TSA Input'!J819=\"Yes\",'TSA Input'!J819=\"Contingent\"),'TSA Input'!G819,\"\"))","v":""},{"$f":"IF('TSA Input'!J819=\"\",\"\",IF(OR('TSA Input'!J819=\"Yes\",'TSA Input'!J819=\"Contingent\"),'TSA Input'!F819,\"\"))","v":""},"",{"$f":"IF('TSA Input'!J819=\"\",\"\",IF(OR('TSA Input'!J819=\"Yes\",'TSA Input'!J819=\"Contingent\"),'TSA Input'!D819,\"\"))","v":""},{"$f":"IF('TSA Input'!J819=\"\",\"\",IF(OR('TSA Input'!J819=\"Yes\",'TSA Input'!J819=\"Contingent\"),'TSA Input'!G819,\"\"))","v":""},{"$f":"IF('TSA Input'!J819=\"\",\"\",IF(OR('TSA Input'!J819=\"Yes\",'TSA Input'!J819=\"Contingent\"),'TSA Input'!F819,\"\"))","v":""},"","Required","Required"]
["",null,{"$f":"IF('TSA Input'!J820=\"\",\"\",IF(OR('TSA Input'!J820=\"Yes\",'TSA Input'!J820=\"Contingent\"),'TSA Input'!B820,\"Ineligible\"))","v":""},{"$f":"IF('TSA Input'!J820=\"\",\"\",IF(OR('TSA Input'!J820=\"Yes\",'TSA Input'!J820=\"Contingent\"),'TSA Input'!I820,\"\"))","v":""},{"$f":"IF('TSA Input'!J820=\"\",\"\",IF(OR('TSA Input'!J820=\"Yes\",'TSA Input'!J820=\"Contingent\"),'TSA Input'!C820,\"\"))","v":""},{"$f":"IF('TSA Input'!J820=\"\",\"\",IF(OR('TSA Input'!J820=\"Yes\",'TSA Input'!J820=\"Contingent\"),'TSA Input'!D820,\"\"))","v":""},{"$f":"IF('TSA Input'!J820=\"\",\"\",IF(OR('TSA Input'!J820=\"Yes\",'TSA Input'!J820=\"Contingent\"),'TSA Input'!G820,\"\"))","v":""},{"$f":"IF('TSA Input'!J820=\"\",\"\",IF(OR('TSA Input'!J820=\"Yes\",'TSA Input'!J820=\"Contingent\"),'TSA Input'!F820,\"\"))","v":""},"",{"$f":"IF('TSA Input'!J820=\"\",\"\",IF(OR('TSA Input'!J820=\"Yes\",'TSA Input'!J820=\"Contingent\"),'TSA Input'!D820,\"\"))","v":""},{"$f":"IF('TSA Input'!J820=\"\",\"\",IF(OR('TSA Input'!J820=\"Yes\",'TSA Input'!J820=\"Contingent\"),'TSA Input'!G820,\"\"))","v":""},{"$f":"IF('TSA Input'!J820=\"\",\"\",IF(OR('TSA Input'!J820=\"Yes\",'TSA Input'!J820=\"Contingent\"),'TSA Input'!F820,\"\"))","v":""},"","Required","Required"]
["",null,{"$f":"IF('TSA Input'!J821=\"\",\"\",IF(OR('TSA Input'!J821=\"Yes\",'TSA Input'!J821=\"Contingent\"),'TSA Input'!B821,\"Ineligible\"))","v":""},{"$f":"IF('TSA Input'!J821=\"\",\"\",IF(OR('TSA Input'!J821=\"Yes\",'TSA Input'!J821=\"Contingent\"),'TSA Input'!I821,\"\"))","v":""},{"$f":"IF('TSA Input'!J821=\"\",\"\",IF(OR('TSA Input'!J821=\"Yes\",'TSA Input'!J821=\"Contingent\"),'TSA Input'!C821,\"\"))","v":""},{"$f":"IF('TSA Input'!J821=\"\",\"\",IF(OR('TSA Input'!J821=\"Yes\",'TSA Input'!J821=\"Contingent\"),'TSA Input'!D821,\"\"))","v":""},{"$f":"IF('TSA Input'!J821=\"\",\"\",IF(OR('TSA Input'!J821=\"Yes\",'TSA Input'!J821=\"Contingent\"),'TSA Input'!G821,\"\"))","v":""},{"$f":"IF('TSA Input'!J821=\"\",\"\",IF(OR('TSA Input'!J821=\"Yes\",'TSA Input'!J821=\"Contingent\"),'TSA Input'!F821,\"\"))","v":""},"",{"$f":"IF('TSA Input'!J821=\"\",\"\",IF(OR('TSA Input'!J821=\"Yes\",'TSA Input'!J821=\"Contingent\"),'TSA Input'!D821,\"\"))","v":""},{"$f":"IF('TSA Input'!J821=\"\",\"\",IF(OR('TSA Input'!J821=\"Yes\",'TSA Input'!J821=\"Contingent\"),'TSA Input'!G821,\"\"))","v":""},{"$f":"IF('TSA Input'!J821=\"\",\"\",IF(OR('TSA Input'!J821=\"Yes\",'TSA Input'!J821=\"Contingent\"),'TSA Input'!F821,\"\"))","v":""},"","Required","Required"]
["",null,{"$f":"IF('TSA Input'!J822=\"\",\"\",IF(OR('TSA Input'!J822=\"Yes\",'TSA Input'!J822=\"Contingent\"),'TSA Input'!B822,\"Ineligible\"))","v":""},{"$f":"IF('TSA Input'!J822=\"\",\"\",IF(OR('TSA Input'!J822=\"Yes\",'TSA Input'!J822=\"Contingent\"),'TSA Input'!I822,\"\"))","v":""},{"$f":"IF('TSA Input'!J822=\"\",\"\",IF(OR('TSA Input'!J822=\"Yes\",'TSA Input'!J822=\"Contingent\"),'TSA Input'!C822,\"\"))","v":""},{"$f":"IF('TSA Input'!J822=\"\",\"\",IF(OR('TSA Input'!J822=\"Yes\",'TSA Input'!J822=\"Contingent\"),'TSA Input'!D822,\"\"))","v":""},{"$f":"IF('TSA Input'!J822=\"\",\"\",IF(OR('TSA Input'!J822=\"Yes\",'TSA Input'!J822=\"Contingent\"),'TSA Input'!G822,\"\"))","v":""},{"$f":"IF('TSA Input'!J822=\"\",\"\",IF(OR('TSA Input'!J822=\"Yes\",'TSA Input'!J822=\"Contingent\"),'TSA Input'!F822,\"\"))","v":""},"",{"$f":"IF('TSA Input'!J822=\"\",\"\",IF(OR('TSA Input'!J822=\"Yes\",'TSA Input'!J822=\"Contingent\"),'TSA Input'!D822,\"\"))","v":""},{"$f":"IF('TSA Input'!J822=\"\",\"\",IF(OR('TSA Input'!J822=\"Yes\",'TSA Input'!J822=\"Contingent\"),'TSA Input'!G822,\"\"))","v":""},{"$f":"IF('TSA Input'!J822=\"\",\"\",IF(OR('TSA Input'!J822=\"Yes\",'TSA Input'!J822=\"Contingent\"),'TSA Input'!F822,\"\"))","v":""},"","Required","Required"]
["",null,{"$f":"IF('TSA Input'!J823=\"\",\"\",IF(OR('TSA Input'!J823=\"Yes\",'TSA Input'!J823=\"Contingent\"),'TSA Input'!B823,\"Ineligible\"))","v":""},{"$f":"IF('TSA Input'!J823=\"\",\"\",IF(OR('TSA Input'!J823=\"Yes\",'TSA Input'!J823=\"Contingent\"),'TSA Input'!I823,\"\"))","v":""},{"$f":"IF('TSA Input'!J823=\"\",\"\",IF(OR('TSA Input'!J823=\"Yes\",'TSA Input'!J823=\"Contingent\"),'TSA Input'!C823,\"\"))","v":""},{"$f":"IF('TSA Input'!J823=\"\",\"\",IF(OR('TSA Input'!J823=\"Yes\",'TSA Input'!J823=\"Contingent\"),'TSA Input'!D823,\"\"))","v":""},{"$f":"IF('TSA Input'!J823=\"\",\"\",IF(OR('TSA Input'!J823=\"Yes\",'TSA Input'!J823=\"Contingent\"),'TSA Input'!G823,\"\"))","v":""},{"$f":"IF('TSA Input'!J823=\"\",\"\",IF(OR('TSA Input'!J823=\"Yes\",'TSA Input'!J823=\"Contingent\"),'TSA Input'!F823,\"\"))","v":""},"",{"$f":"IF('TSA Input'!J823=\"\",\"\",IF(OR('TSA Input'!J823=\"Yes\",'TSA Input'!J823=\"Contingent\"),'TSA Input'!D823,\"\"))","v":""},{"$f":"IF('TSA Input'!J823=\"\",\"\",IF(OR('TSA Input'!J823=\"Yes\",'TSA Input'!J823=\"Contingent\"),'TSA Input'!G823,\"\"))","v":""},{"$f":"IF('TSA Input'!J823=\"\",\"\",IF(OR('TSA Input'!J823=\"Yes\",'TSA Input'!J823=\"Contingent\"),'TSA Input'!F823,\"\"))","v":""},"","Required","Required"]
["",null,{"$f":"IF('TSA Input'!J824=\"\",\"\",IF(OR('TSA Input'!J824=\"Yes\",'TSA Input'!J824=\"Contingent\"),'TSA Input'!B824,\"Ineligible\"))","v":""},{"$f":"IF('TSA Input'!J824=\"\",\"\",IF(OR('TSA Input'!J824=\"Yes\",'TSA Input'!J824=\"Contingent\"),'TSA Input'!I824,\"\"))","v":""},{"$f":"IF('TSA Input'!J824=\"\",\"\",IF(OR('TSA Input'!J824=\"Yes\",'TSA Input'!J824=\"Contingent\"),'TSA Input'!C824,\"\"))","v":""},{"$f":"IF('TSA Input'!J824=\"\",\"\",IF(OR('TSA Input'!J824=\"Yes\",'TSA Input'!J824=\"Contingent\"),'TSA Input'!D824,\"\"))","v":""},{"$f":"IF('TSA Input'!J824=\"\",\"\",IF(OR('TSA Input'!J824=\"Yes\",'TSA Input'!J824=\"Contingent\"),'TSA Input'!G824,\"\"))","v":""},{"$f":"IF('TSA Input'!J824=\"\",\"\",IF(OR('TSA Input'!J824=\"Yes\",'TSA Input'!J824=\"Contingent\"),'TSA Input'!F824,\"\"))","v":""},"",{"$f":"IF('TSA Input'!J824=\"\",\"\",IF(OR('TSA Input'!J824=\"Yes\",'TSA Input'!J824=\"Contingent\"),'TSA Input'!D824,\"\"))","v":""},{"$f":"IF('TSA Input'!J824=\"\",\"\",IF(OR('TSA Input'!J824=\"Yes\",'TSA Input'!J824=\"Contingent\"),'TSA Input'!G824,\"\"))","v":""},{"$f":"IF('TSA Input'!J824=\"\",\"\",IF(OR('TSA Input'!J824=\"Yes\",'TSA Input'!J824=\"Contingent\"),'TSA Input'!F824,\"\"))","v":""},"","Required","Required"]
["",null,{"$f":"IF('TSA Input'!J825=\"\",\"\",IF(OR('TSA Input'!J825=\"Yes\",'TSA Input'!J825=\"Contingent\"),'TSA Input'!B825,\"Ineligible\"))","v":""},{"$f":"IF('TSA Input'!J825=\"\",\"\",IF(OR('TSA Input'!J825=\"Yes\",'TSA Input'!J825=\"Contingent\"),'TSA Input'!I825,\"\"))","v":""},{"$f":"IF('TSA Input'!J825=\"\",\"\",IF(OR('TSA Input'!J825=\"Yes\",'TSA Input'!J825=\"Contingent\"),'TSA Input'!C825,\"\"))","v":""},{"$f":"IF('TSA Input'!J825=\"\",\"\",IF(OR('TSA Input'!J825=\"Yes\",'TSA Input'!J825=\"Contingent\"),'TSA Input'!D825,\"\"))","v":""},{"$f":"IF('TSA Input'!J825=\"\",\"\",IF(OR('TSA Input'!J825=\"Yes\",'TSA Input'!J825=\"Contingent\"),'TSA Input'!G825,\"\"))","v":""},{"$f":"IF('TSA Input'!J825=\"\",\"\",IF(OR('TSA Input'!J825=\"Yes\",'TSA Input'!J825=\"Contingent\"),'TSA Input'!F825,\"\"))","v":""},"",{"$f":"IF('TSA Input'!J825=\"\",\"\",IF(OR('TSA Input'!J825=\"Yes\",'TSA Input'!J825=\"Contingent\"),'TSA Input'!D825,\"\"))","v":""},{"$f":"IF('TSA Input'!J825=\"\",\"\",IF(OR('TSA Input'!J825=\"Yes\",'TSA Input'!J825=\"Contingent\"),'TSA Input'!G825,\"\"))","v":""},{"$f":"IF('TSA Input'!J825=\"\",\"\",IF(OR('TSA Input'!J825=\"Yes\",'TSA Input'!J825=\"Contingent\"),'TSA Input'!F825,\"\"))","v":""},"","Required","Required"]
["",null,{"$f":"IF('TSA Input'!J826=\"\",\"\",IF(OR('TSA Input'!J826=\"Yes\",'TSA Input'!J826=\"Contingent\"),'TSA Input'!B826,\"Ineligible\"))","v":""},{"$f":"IF('TSA Input'!J826=\"\",\"\",IF(OR('TSA Input'!J826=\"Yes\",'TSA Input'!J826=\"Contingent\"),'TSA Input'!I826,\"\"))","v":""},{"$f":"IF('TSA Input'!J826=\"\",\"\",IF(OR('TSA Input'!J826=\"Yes\",'TSA Input'!J826=\"Contingent\"),'TSA Input'!C826,\"\"))","v":""},{"$f":"IF('TSA Input'!J826=\"\",\"\",IF(OR('TSA Input'!J826=\"Yes\",'TSA Input'!J826=\"Contingent\"),'TSA Input'!D826,\"\"))","v":""},{"$f":"IF('TSA Input'!J826=\"\",\"\",IF(OR('TSA Input'!J826=\"Yes\",'TSA Input'!J826=\"Contingent\"),'TSA Input'!G826,\"\"))","v":""},{"$f":"IF('TSA Input'!J826=\"\",\"\",IF(OR('TSA Input'!J826=\"Yes\",'TSA Input'!J826=\"Contingent\"),'TSA Input'!F826,\"\"))","v":""},"",{"$f":"IF('TSA Input'!J826=\"\",\"\",IF(OR('TSA Input'!J826=\"Yes\",'TSA Input'!J826=\"Contingent\"),'TSA Input'!D826,\"\"))","v":""},{"$f":"IF('TSA Input'!J826=\"\",\"\",IF(OR('TSA Input'!J826=\"Yes\",'TSA Input'!J826=\"Contingent\"),'TSA Input'!G826,\"\"))","v":""},{"$f":"IF('TSA Input'!J826=\"\",\"\",IF(OR('TSA Input'!J826=\"Yes\",'TSA Input'!J826=\"Contingent\"),'TSA Input'!F826,\"\"))","v":""},"","Required","Required"]
["",null,{"$f":"IF('TSA Input'!J827=\"\",\"\",IF(OR('TSA Input'!J827=\"Yes\",'TSA Input'!J827=\"Contingent\"),'TSA Input'!B827,\"Ineligible\"))","v":""},{"$f":"IF('TSA Input'!J827=\"\",\"\",IF(OR('TSA Input'!J827=\"Yes\",'TSA Input'!J827=\"Contingent\"),'TSA Input'!I827,\"\"))","v":""},{"$f":"IF('TSA Input'!J827=\"\",\"\",IF(OR('TSA Input'!J827=\"Yes\",'TSA Input'!J827=\"Contingent\"),'TSA Input'!C827,\"\"))","v":""},{"$f":"IF('TSA Input'!J827=\"\",\"\",IF(OR('TSA Input'!J827=\"Yes\",'TSA Input'!J827=\"Contingent\"),'TSA Input'!D827,\"\"))","v":""},{"$f":"IF('TSA Input'!J827=\"\",\"\",IF(OR('TSA Input'!J827=\"Yes\",'TSA Input'!J827=\"Contingent\"),'TSA Input'!G827,\"\"))","v":""},{"$f":"IF('TSA Input'!J827=\"\",\"\",IF(OR('TSA Input'!J827=\"Yes\",'TSA Input'!J827=\"Contingent\"),'TSA Input'!F827,\"\"))","v":""},"",{"$f":"IF('TSA Input'!J827=\"\",\"\",IF(OR('TSA Input'!J827=\"Yes\",'TSA Input'!J827=\"Contingent\"),'TSA Input'!D827,\"\"))","v":""},{"$f":"IF('TSA Input'!J827=\"\",\"\",IF(OR('TSA Input'!J827=\"Yes\",'TSA Input'!J827=\"Contingent\"),'TSA Input'!G827,\"\"))","v":""},{"$f":"IF('TSA Input'!J827=\"\",\"\",IF(OR('TSA Input'!J827=\"Yes\",'TSA Input'!J827=\"Contingent\"),'TSA Input'!F827,\"\"))","v":""},"","Required","Required"]
["",null,{"$f":"IF('TSA Input'!J828=\"\",\"\",IF(OR('TSA Input'!J828=\"Yes\",'TSA Input'!J828=\"Contingent\"),'TSA Input'!B828,\"Ineligible\"))","v":""},{"$f":"IF('TSA Input'!J828=\"\",\"\",IF(OR('TSA Input'!J828=\"Yes\",'TSA Input'!J828=\"Contingent\"),'TSA Input'!I828,\"\"))","v":""},{"$f":"IF('TSA Input'!J828=\"\",\"\",IF(OR('TSA Input'!J828=\"Yes\",'TSA Input'!J828=\"Contingent\"),'TSA Input'!C828,\"\"))","v":""},{"$f":"IF('TSA Input'!J828=\"\",\"\",IF(OR('TSA Input'!J828=\"Yes\",'TSA Input'!J828=\"Contingent\"),'TSA Input'!D828,\"\"))","v":""},{"$f":"IF('TSA Input'!J828=\"\",\"\",IF(OR('TSA Input'!J828=\"Yes\",'TSA Input'!J828=\"Contingent\"),'TSA Input'!G828,\"\"))","v":""},{"$f":"IF('TSA Input'!J828=\"\",\"\",IF(OR('TSA Input'!J828=\"Yes\",'TSA Input'!J828=\"Contingent\"),'TSA Input'!F828,\"\"))","v":""},"",{"$f":"IF('TSA Input'!J828=\"\",\"\",IF(OR('TSA Input'!J828=\"Yes\",'TSA Input'!J828=\"Contingent\"),'TSA Input'!D828,\"\"))","v":""},{"$f":"IF('TSA Input'!J828=\"\",\"\",IF(OR('TSA Input'!J828=\"Yes\",'TSA Input'!J828=\"Contingent\"),'TSA Input'!G828,\"\"))","v":""},{"$f":"IF('TSA Input'!J828=\"\",\"\",IF(OR('TSA Input'!J828=\"Yes\",'TSA Input'!J828=\"Contingent\"),'TSA Input'!F828,\"\"))","v":""},"","Required","Required"]
["",null,{"$f":"IF('TSA Input'!J829=\"\",\"\",IF(OR('TSA Input'!J829=\"Yes\",'TSA Input'!J829=\"Contingent\"),'TSA Input'!B829,\"Ineligible\"))","v":""},{"$f":"IF('TSA Input'!J829=\"\",\"\",IF(OR('TSA Input'!J829=\"Yes\",'TSA Input'!J829=\"Contingent\"),'TSA Input'!I829,\"\"))","v":""},{"$f":"IF('TSA Input'!J829=\"\",\"\",IF(OR('TSA Input'!J829=\"Yes\",'TSA Input'!J829=\"Contingent\"),'TSA Input'!C829,\"\"))","v":""},{"$f":"IF('TSA Input'!J829=\"\",\"\",IF(OR('TSA Input'!J829=\"Yes\",'TSA Input'!J829=\"Contingent\"),'TSA Input'!D829,\"\"))","v":""},{"$f":"IF('TSA Input'!J829=\"\",\"\",IF(OR('TSA Input'!J829=\"Yes\",'TSA Input'!J829=\"Contingent\"),'TSA Input'!G829,\"\"))","v":""},{"$f":"IF('TSA Input'!J829=\"\",\"\",IF(OR('TSA Input'!J829=\"Yes\",'TSA Input'!J829=\"Contingent\"),'TSA Input'!F829,\"\"))","v":""},"",{"$f":"IF('TSA Input'!J829=\"\",\"\",IF(OR('TSA Input'!J829=\"Yes\",'TSA Input'!J829=\"Contingent\"),'TSA Input'!D829,\"\"))","v":""},{"$f":"IF('TSA Input'!J829=\"\",\"\",IF(OR('TSA Input'!J829=\"Yes\",'TSA Input'!J829=\"Contingent\"),'TSA Input'!G829,\"\"))","v":""},{"$f":"IF('TSA Input'!J829=\"\",\"\",IF(OR('TSA Input'!J829=\"Yes\",'TSA Input'!J829=\"Contingent\"),'TSA Input'!F829,\"\"))","v":""},"","Required","Required"]
["",null,{"$f":"IF('TSA Input'!J830=\"\",\"\",IF(OR('TSA Input'!J830=\"Yes\",'TSA Input'!J830=\"Contingent\"),'TSA Input'!B830,\"Ineligible\"))","v":""},{"$f":"IF('TSA Input'!J830=\"\",\"\",IF(OR('TSA Input'!J830=\"Yes\",'TSA Input'!J830=\"Contingent\"),'TSA Input'!I830,\"\"))","v":""},{"$f":"IF('TSA Input'!J830=\"\",\"\",IF(OR('TSA Input'!J830=\"Yes\",'TSA Input'!J830=\"Contingent\"),'TSA Input'!C830,\"\"))","v":""},{"$f":"IF('TSA Input'!J830=\"\",\"\",IF(OR('TSA Input'!J830=\"Yes\",'TSA Input'!J830=\"Contingent\"),'TSA Input'!D830,\"\"))","v":""},{"$f":"IF('TSA Input'!J830=\"\",\"\",IF(OR('TSA Input'!J830=\"Yes\",'TSA Input'!J830=\"Contingent\"),'TSA Input'!G830,\"\"))","v":""},{"$f":"IF('TSA Input'!J830=\"\",\"\",IF(OR('TSA Input'!J830=\"Yes\",'TSA Input'!J830=\"Contingent\"),'TSA Input'!F830,\"\"))","v":""},"",{"$f":"IF('TSA Input'!J830=\"\",\"\",IF(OR('TSA Input'!J830=\"Yes\",'TSA Input'!J830=\"Contingent\"),'TSA Input'!D830,\"\"))","v":""},{"$f":"IF('TSA Input'!J830=\"\",\"\",IF(OR('TSA Input'!J830=\"Yes\",'TSA Input'!J830=\"Contingent\"),'TSA Input'!G830,\"\"))","v":""},{"$f":"IF('TSA Input'!J830=\"\",\"\",IF(OR('TSA Input'!J830=\"Yes\",'TSA Input'!J830=\"Contingent\"),'TSA Input'!F830,\"\"))","v":""},"","Required","Required"]
["",null,{"$f":"IF('TSA Input'!J831=\"\",\"\",IF(OR('TSA Input'!J831=\"Yes\",'TSA Input'!J831=\"Contingent\"),'TSA Input'!B831,\"Ineligible\"))","v":""},{"$f":"IF('TSA Input'!J831=\"\",\"\",IF(OR('TSA Input'!J831=\"Yes\",'TSA Input'!J831=\"Contingent\"),'TSA Input'!I831,\"\"))","v":""},{"$f":"IF('TSA Input'!J831=\"\",\"\",IF(OR('TSA Input'!J831=\"Yes\",'TSA Input'!J831=\"Contingent\"),'TSA Input'!C831,\"\"))","v":""},{"$f":"IF('TSA Input'!J831=\"\",\"\",IF(OR('TSA Input'!J831=\"Yes\",'TSA Input'!J831=\"Contingent\"),'TSA Input'!D831,\"\"))","v":""},{"$f":"IF('TSA Input'!J831=\"\",\"\",IF(OR('TSA Input'!J831=\"Yes\",'TSA Input'!J831=\"Contingent\"),'TSA Input'!G831,\"\"))","v":""},{"$f":"IF('TSA Input'!J831=\"\",\"\",IF(OR('TSA Input'!J831=\"Yes\",'TSA Input'!J831=\"Contingent\"),'TSA Input'!F831,\"\"))","v":""},"",{"$f":"IF('TSA Input'!J831=\"\",\"\",IF(OR('TSA Input'!J831=\"Yes\",'TSA Input'!J831=\"Contingent\"),'TSA Input'!D831,\"\"))","v":""},{"$f":"IF('TSA Input'!J831=\"\",\"\",IF(OR('TSA Input'!J831=\"Yes\",'TSA Input'!J831=\"Contingent\"),'TSA Input'!G831,\"\"))","v":""},{"$f":"IF('TSA Input'!J831=\"\",\"\",IF(OR('TSA Input'!J831=\"Yes\",'TSA Input'!J831=\"Contingent\"),'TSA Input'!F831,\"\"))","v":""},"","Required","Required"]
["",null,{"$f":"IF('TSA Input'!J832=\"\",\"\",IF(OR('TSA Input'!J832=\"Yes\",'TSA Input'!J832=\"Contingent\"),'TSA Input'!B832,\"Ineligible\"))","v":""},{"$f":"IF('TSA Input'!J832=\"\",\"\",IF(OR('TSA Input'!J832=\"Yes\",'TSA Input'!J832=\"Contingent\"),'TSA Input'!I832,\"\"))","v":""},{"$f":"IF('TSA Input'!J832=\"\",\"\",IF(OR('TSA Input'!J832=\"Yes\",'TSA Input'!J832=\"Contingent\"),'TSA Input'!C832,\"\"))","v":""},{"$f":"IF('TSA Input'!J832=\"\",\"\",IF(OR('TSA Input'!J832=\"Yes\",'TSA Input'!J832=\"Contingent\"),'TSA Input'!D832,\"\"))","v":""},{"$f":"IF('TSA Input'!J832=\"\",\"\",IF(OR('TSA Input'!J832=\"Yes\",'TSA Input'!J832=\"Contingent\"),'TSA Input'!G832,\"\"))","v":""},{"$f":"IF('TSA Input'!J832=\"\",\"\",IF(OR('TSA Input'!J832=\"Yes\",'TSA Input'!J832=\"Contingent\"),'TSA Input'!F832,\"\"))","v":""},"",{"$f":"IF('TSA Input'!J832=\"\",\"\",IF(OR('TSA Input'!J832=\"Yes\",'TSA Input'!J832=\"Contingent\"),'TSA Input'!D832,\"\"))","v":""},{"$f":"IF('TSA Input'!J832=\"\",\"\",IF(OR('TSA Input'!J832=\"Yes\",'TSA Input'!J832=\"Contingent\"),'TSA Input'!G832,\"\"))","v":""},{"$f":"IF('TSA Input'!J832=\"\",\"\",IF(OR('TSA Input'!J832=\"Yes\",'TSA Input'!J832=\"Contingent\"),'TSA Input'!F832,\"\"))","v":""},"","Required","Required"]
["",null,{"$f":"IF('TSA Input'!J833=\"\",\"\",IF(OR('TSA Input'!J833=\"Yes\",'TSA Input'!J833=\"Contingent\"),'TSA Input'!B833,\"Ineligible\"))","v":""},{"$f":"IF('TSA Input'!J833=\"\",\"\",IF(OR('TSA Input'!J833=\"Yes\",'TSA Input'!J833=\"Contingent\"),'TSA Input'!I833,\"\"))","v":""},{"$f":"IF('TSA Input'!J833=\"\",\"\",IF(OR('TSA Input'!J833=\"Yes\",'TSA Input'!J833=\"Contingent\"),'TSA Input'!C833,\"\"))","v":""},{"$f":"IF('TSA Input'!J833=\"\",\"\",IF(OR('TSA Input'!J833=\"Yes\",'TSA Input'!J833=\"Contingent\"),'TSA Input'!D833,\"\"))","v":""},{"$f":"IF('TSA Input'!J833=\"\",\"\",IF(OR('TSA Input'!J833=\"Yes\",'TSA Input'!J833=\"Contingent\"),'TSA Input'!G833,\"\"))","v":""},{"$f":"IF('TSA Input'!J833=\"\",\"\",IF(OR('TSA Input'!J833=\"Yes\",'TSA Input'!J833=\"Contingent\"),'TSA Input'!F833,\"\"))","v":""},"",{"$f":"IF('TSA Input'!J833=\"\",\"\",IF(OR('TSA Input'!J833=\"Yes\",'TSA Input'!J833=\"Contingent\"),'TSA Input'!D833,\"\"))","v":""},{"$f":"IF('TSA Input'!J833=\"\",\"\",IF(OR('TSA Input'!J833=\"Yes\",'TSA Input'!J833=\"Contingent\"),'TSA Input'!G833,\"\"))","v":""},{"$f":"IF('TSA Input'!J833=\"\",\"\",IF(OR('TSA Input'!J833=\"Yes\",'TSA Input'!J833=\"Contingent\"),'TSA Input'!F833,\"\"))","v":""},"","Required","Required"]
["",null,{"$f":"IF('TSA Input'!J834=\"\",\"\",IF(OR('TSA Input'!J834=\"Yes\",'TSA Input'!J834=\"Contingent\"),'TSA Input'!B834,\"Ineligible\"))","v":""},{"$f":"IF('TSA Input'!J834=\"\",\"\",IF(OR('TSA Input'!J834=\"Yes\",'TSA Input'!J834=\"Contingent\"),'TSA Input'!I834,\"\"))","v":""},{"$f":"IF('TSA Input'!J834=\"\",\"\",IF(OR('TSA Input'!J834=\"Yes\",'TSA Input'!J834=\"Contingent\"),'TSA Input'!C834,\"\"))","v":""},{"$f":"IF('TSA Input'!J834=\"\",\"\",IF(OR('TSA Input'!J834=\"Yes\",'TSA Input'!J834=\"Contingent\"),'TSA Input'!D834,\"\"))","v":""},{"$f":"IF('TSA Input'!J834=\"\",\"\",IF(OR('TSA Input'!J834=\"Yes\",'TSA Input'!J834=\"Contingent\"),'TSA Input'!G834,\"\"))","v":""},{"$f":"IF('TSA Input'!J834=\"\",\"\",IF(OR('TSA Input'!J834=\"Yes\",'TSA Input'!J834=\"Contingent\"),'TSA Input'!F834,\"\"))","v":""},"",{"$f":"IF('TSA Input'!J834=\"\",\"\",IF(OR('TSA Input'!J834=\"Yes\",'TSA Input'!J834=\"Contingent\"),'TSA Input'!D834,\"\"))","v":""},{"$f":"IF('TSA Input'!J834=\"\",\"\",IF(OR('TSA Input'!J834=\"Yes\",'TSA Input'!J834=\"Contingent\"),'TSA Input'!G834,\"\"))","v":""},{"$f":"IF('TSA Input'!J834=\"\",\"\",IF(OR('TSA Input'!J834=\"Yes\",'TSA Input'!J834=\"Contingent\"),'TSA Input'!F834,\"\"))","v":""},"","Required","Required"]
["",null,{"$f":"IF('TSA Input'!J835=\"\",\"\",IF(OR('TSA Input'!J835=\"Yes\",'TSA Input'!J835=\"Contingent\"),'TSA Input'!B835,\"Ineligible\"))","v":""},{"$f":"IF('TSA Input'!J835=\"\",\"\",IF(OR('TSA Input'!J835=\"Yes\",'TSA Input'!J835=\"Contingent\"),'TSA Input'!I835,\"\"))","v":""},{"$f":"IF('TSA Input'!J835=\"\",\"\",IF(OR('TSA Input'!J835=\"Yes\",'TSA Input'!J835=\"Contingent\"),'TSA Input'!C835,\"\"))","v":""},{"$f":"IF('TSA Input'!J835=\"\",\"\",IF(OR('TSA Input'!J835=\"Yes\",'TSA Input'!J835=\"Contingent\"),'TSA Input'!D835,\"\"))","v":""},{"$f":"IF('TSA Input'!J835=\"\",\"\",IF(OR('TSA Input'!J835=\"Yes\",'TSA Input'!J835=\"Contingent\"),'TSA Input'!G835,\"\"))","v":""},{"$f":"IF('TSA Input'!J835=\"\",\"\",IF(OR('TSA Input'!J835=\"Yes\",'TSA Input'!J835=\"Contingent\"),'TSA Input'!F835,\"\"))","v":""},"",{"$f":"IF('TSA Input'!J835=\"\",\"\",IF(OR('TSA Input'!J835=\"Yes\",'TSA Input'!J835=\"Contingent\"),'TSA Input'!D835,\"\"))","v":""},{"$f":"IF('TSA Input'!J835=\"\",\"\",IF(OR('TSA Input'!J835=\"Yes\",'TSA Input'!J835=\"Contingent\"),'TSA Input'!G835,\"\"))","v":""},{"$f":"IF('TSA Input'!J835=\"\",\"\",IF(OR('TSA Input'!J835=\"Yes\",'TSA Input'!J835=\"Contingent\"),'TSA Input'!F835,\"\"))","v":""},"","Required","Required"]
["",null,{"$f":"IF('TSA Input'!J836=\"\",\"\",IF(OR('TSA Input'!J836=\"Yes\",'TSA Input'!J836=\"Contingent\"),'TSA Input'!B836,\"Ineligible\"))","v":""},{"$f":"IF('TSA Input'!J836=\"\",\"\",IF(OR('TSA Input'!J836=\"Yes\",'TSA Input'!J836=\"Contingent\"),'TSA Input'!I836,\"\"))","v":""},{"$f":"IF('TSA Input'!J836=\"\",\"\",IF(OR('TSA Input'!J836=\"Yes\",'TSA Input'!J836=\"Contingent\"),'TSA Input'!C836,\"\"))","v":""},{"$f":"IF('TSA Input'!J836=\"\",\"\",IF(OR('TSA Input'!J836=\"Yes\",'TSA Input'!J836=\"Contingent\"),'TSA Input'!D836,\"\"))","v":""},{"$f":"IF('TSA Input'!J836=\"\",\"\",IF(OR('TSA Input'!J836=\"Yes\",'TSA Input'!J836=\"Contingent\"),'TSA Input'!G836,\"\"))","v":""},{"$f":"IF('TSA Input'!J836=\"\",\"\",IF(OR('TSA Input'!J836=\"Yes\",'TSA Input'!J836=\"Contingent\"),'TSA Input'!F836,\"\"))","v":""},{"$f":"IF($C874=\"\",\"\",SUM(F874:H874))","v":""},{"$f":"IF('TSA Input'!J836=\"\",\"\",IF(OR('TSA Input'!J836=\"Yes\",'TSA Input'!J836=\"Contingent\"),'TSA Input'!D836,\"\"))","v":""},{"$f":"IF('TSA Input'!J836=\"\",\"\",IF(OR('TSA Input'!J836=\"Yes\",'TSA Input'!J836=\"Contingent\"),'TSA Input'!G836,\"\"))","v":""},{"$f":"IF('TSA Input'!J836=\"\",\"\",IF(OR('TSA Input'!J836=\"Yes\",'TSA Input'!J836=\"Contingent\"),'TSA Input'!F836,\"\"))","v":""},{"$f":"IF($C874=\"\",\"\",SUM(J874:L874))","v":""},"Required","Required"]
["",null,{"$f":"IF('TSA Input'!J837=\"\",\"\",IF(OR('TSA Input'!J837=\"Yes\",'TSA Input'!J837=\"Contingent\"),'TSA Input'!B837,\"Ineligible\"))","v":""},{"$f":"IF('TSA Input'!J837=\"\",\"\",IF(OR('TSA Input'!J837=\"Yes\",'TSA Input'!J837=\"Contingent\"),'TSA Input'!I837,\"\"))","v":""},{"$f":"IF('TSA Input'!J837=\"\",\"\",IF(OR('TSA Input'!J837=\"Yes\",'TSA Input'!J837=\"Contingent\"),'TSA Input'!C837,\"\"))","v":""},{"$f":"IF('TSA Input'!J837=\"\",\"\",IF(OR('TSA Input'!J837=\"Yes\",'TSA Input'!J837=\"Contingent\"),'TSA Input'!D837,\"\"))","v":""},{"$f":"IF('TSA Input'!J837=\"\",\"\",IF(OR('TSA Input'!J837=\"Yes\",'TSA Input'!J837=\"Contingent\"),'TSA Input'!G837,\"\"))","v":""},{"$f":"IF('TSA Input'!J837=\"\",\"\",IF(OR('TSA Input'!J837=\"Yes\",'TSA Input'!J837=\"Contingent\"),'TSA Input'!F837,\"\"))","v":""},"",{"$f":"IF('TSA Input'!J837=\"\",\"\",IF(OR('TSA Input'!J837=\"Yes\",'TSA Input'!J837=\"Contingent\"),'TSA Input'!D837,\"\"))","v":""},{"$f":"IF('TSA Input'!J837=\"\",\"\",IF(OR('TSA Input'!J837=\"Yes\",'TSA Input'!J837=\"Contingent\"),'TSA Input'!G837,\"\"))","v":""},{"$f":"IF('TSA Input'!J837=\"\",\"\",IF(OR('TSA Input'!J837=\"Yes\",'TSA Input'!J837=\"Contingent\"),'TSA Input'!F837,\"\"))","v":""},"","Required","Required"]
["",null,{"$f":"IF('TSA Input'!J838=\"\",\"\",IF(OR('TSA Input'!J838=\"Yes\",'TSA Input'!J838=\"Contingent\"),'TSA Input'!B838,\"Ineligible\"))","v":""},{"$f":"IF('TSA Input'!J838=\"\",\"\",IF(OR('TSA Input'!J838=\"Yes\",'TSA Input'!J838=\"Contingent\"),'TSA Input'!I838,\"\"))","v":""},{"$f":"IF('TSA Input'!J838=\"\",\"\",IF(OR('TSA Input'!J838=\"Yes\",'TSA Input'!J838=\"Contingent\"),'TSA Input'!C838,\"\"))","v":""},{"$f":"IF('TSA Input'!J838=\"\",\"\",IF(OR('TSA Input'!J838=\"Yes\",'TSA Input'!J838=\"Contingent\"),'TSA Input'!D838,\"\"))","v":""},{"$f":"IF('TSA Input'!J838=\"\",\"\",IF(OR('TSA Input'!J838=\"Yes\",'TSA Input'!J838=\"Contingent\"),'TSA Input'!G838,\"\"))","v":""},{"$f":"IF('TSA Input'!J838=\"\",\"\",IF(OR('TSA Input'!J838=\"Yes\",'TSA Input'!J838=\"Contingent\"),'TSA Input'!F838,\"\"))","v":""},"",{"$f":"IF('TSA Input'!J838=\"\",\"\",IF(OR('TSA Input'!J838=\"Yes\",'TSA Input'!J838=\"Contingent\"),'TSA Input'!D838,\"\"))","v":""},{"$f":"IF('TSA Input'!J838=\"\",\"\",IF(OR('TSA Input'!J838=\"Yes\",'TSA Input'!J838=\"Contingent\"),'TSA Input'!G838,\"\"))","v":""},{"$f":"IF('TSA Input'!J838=\"\",\"\",IF(OR('TSA Input'!J838=\"Yes\",'TSA Input'!J838=\"Contingent\"),'TSA Input'!F838,\"\"))","v":""},"","Required","Required"]
["",null,{"$f":"IF('TSA Input'!J839=\"\",\"\",IF(OR('TSA Input'!J839=\"Yes\",'TSA Input'!J839=\"Contingent\"),'TSA Input'!B839,\"Ineligible\"))","v":""},{"$f":"IF('TSA Input'!J839=\"\",\"\",IF(OR('TSA Input'!J839=\"Yes\",'TSA Input'!J839=\"Contingent\"),'TSA Input'!I839,\"\"))","v":""},{"$f":"IF('TSA Input'!J839=\"\",\"\",IF(OR('TSA Input'!J839=\"Yes\",'TSA Input'!J839=\"Contingent\"),'TSA Input'!C839,\"\"))","v":""},{"$f":"IF('TSA Input'!J839=\"\",\"\",IF(OR('TSA Input'!J839=\"Yes\",'TSA Input'!J839=\"Contingent\"),'TSA Input'!D839,\"\"))","v":""},{"$f":"IF('TSA Input'!J839=\"\",\"\",IF(OR('TSA Input'!J839=\"Yes\",'TSA Input'!J839=\"Contingent\"),'TSA Input'!G839,\"\"))","v":""},{"$f":"IF('TSA Input'!J839=\"\",\"\",IF(OR('TSA Input'!J839=\"Yes\",'TSA Input'!J839=\"Contingent\"),'TSA Input'!F839,\"\"))","v":""},"",{"$f":"IF('TSA Input'!J839=\"\",\"\",IF(OR('TSA Input'!J839=\"Yes\",'TSA Input'!J839=\"Contingent\"),'TSA Input'!D839,\"\"))","v":""},{"$f":"IF('TSA Input'!J839=\"\",\"\",IF(OR('TSA Input'!J839=\"Yes\",'TSA Input'!J839=\"Contingent\"),'TSA Input'!G839,\"\"))","v":""},{"$f":"IF('TSA Input'!J839=\"\",\"\",IF(OR('TSA Input'!J839=\"Yes\",'TSA Input'!J839=\"Contingent\"),'TSA Input'!F839,\"\"))","v":""},"","Required","Required"]
["",null,{"$f":"IF('TSA Input'!J840=\"\",\"\",IF(OR('TSA Input'!J840=\"Yes\",'TSA Input'!J840=\"Contingent\"),'TSA Input'!B840,\"Ineligible\"))","v":""},{"$f":"IF('TSA Input'!J840=\"\",\"\",IF(OR('TSA Input'!J840=\"Yes\",'TSA Input'!J840=\"Contingent\"),'TSA Input'!I840,\"\"))","v":""},{"$f":"IF('TSA Input'!J840=\"\",\"\",IF(OR('TSA Input'!J840=\"Yes\",'TSA Input'!J840=\"Contingent\"),'TSA Input'!C840,\"\"))","v":""},{"$f":"IF('TSA Input'!J840=\"\",\"\",IF(OR('TSA Input'!J840=\"Yes\",'TSA Input'!J840=\"Contingent\"),'TSA Input'!D840,\"\"))","v":""},{"$f":"IF('TSA Input'!J840=\"\",\"\",IF(OR('TSA Input'!J840=\"Yes\",'TSA Input'!J840=\"Contingent\"),'TSA Input'!G840,\"\"))","v":""},{"$f":"IF('TSA Input'!J840=\"\",\"\",IF(OR('TSA Input'!J840=\"Yes\",'TSA Input'!J840=\"Contingent\"),'TSA Input'!F840,\"\"))","v":""},"",{"$f":"IF('TSA Input'!J840=\"\",\"\",IF(OR('TSA Input'!J840=\"Yes\",'TSA Input'!J840=\"Contingent\"),'TSA Input'!D840,\"\"))","v":""},{"$f":"IF('TSA Input'!J840=\"\",\"\",IF(OR('TSA Input'!J840=\"Yes\",'TSA Input'!J840=\"Contingent\"),'TSA Input'!G840,\"\"))","v":""},{"$f":"IF('TSA Input'!J840=\"\",\"\",IF(OR('TSA Input'!J840=\"Yes\",'TSA Input'!J840=\"Contingent\"),'TSA Input'!F840,\"\"))","v":""},"","Required","Required"]
["",null,{"$f":"IF('TSA Input'!J841=\"\",\"\",IF(OR('TSA Input'!J841=\"Yes\",'TSA Input'!J841=\"Contingent\"),'TSA Input'!B841,\"Ineligible\"))","v":""},{"$f":"IF('TSA Input'!J841=\"\",\"\",IF(OR('TSA Input'!J841=\"Yes\",'TSA Input'!J841=\"Contingent\"),'TSA Input'!I841,\"\"))","v":""},{"$f":"IF('TSA Input'!J841=\"\",\"\",IF(OR('TSA Input'!J841=\"Yes\",'TSA Input'!J841=\"Contingent\"),'TSA Input'!C841,\"\"))","v":""},{"$f":"IF('TSA Input'!J841=\"\",\"\",IF(OR('TSA Input'!J841=\"Yes\",'TSA Input'!J841=\"Contingent\"),'TSA Input'!D841,\"\"))","v":""},{"$f":"IF('TSA Input'!J841=\"\",\"\",IF(OR('TSA Input'!J841=\"Yes\",'TSA Input'!J841=\"Contingent\"),'TSA Input'!G841,\"\"))","v":""},{"$f":"IF('TSA Input'!J841=\"\",\"\",IF(OR('TSA Input'!J841=\"Yes\",'TSA Input'!J841=\"Contingent\"),'TSA Input'!F841,\"\"))","v":""},"",{"$f":"IF('TSA Input'!J841=\"\",\"\",IF(OR('TSA Input'!J841=\"Yes\",'TSA Input'!J841=\"Contingent\"),'TSA Input'!D841,\"\"))","v":""},{"$f":"IF('TSA Input'!J841=\"\",\"\",IF(OR('TSA Input'!J841=\"Yes\",'TSA Input'!J841=\"Contingent\"),'TSA Input'!G841,\"\"))","v":""},{"$f":"IF('TSA Input'!J841=\"\",\"\",IF(OR('TSA Input'!J841=\"Yes\",'TSA Input'!J841=\"Contingent\"),'TSA Input'!F841,\"\"))","v":""},"","Required","Required"]
["",null,{"$f":"IF('TSA Input'!J842=\"\",\"\",IF(OR('TSA Input'!J842=\"Yes\",'TSA Input'!J842=\"Contingent\"),'TSA Input'!B842,\"Ineligible\"))","v":""},{"$f":"IF('TSA Input'!J842=\"\",\"\",IF(OR('TSA Input'!J842=\"Yes\",'TSA Input'!J842=\"Contingent\"),'TSA Input'!I842,\"\"))","v":""},{"$f":"IF('TSA Input'!J842=\"\",\"\",IF(OR('TSA Input'!J842=\"Yes\",'TSA Input'!J842=\"Contingent\"),'TSA Input'!C842,\"\"))","v":""},{"$f":"IF('TSA Input'!J842=\"\",\"\",IF(OR('TSA Input'!J842=\"Yes\",'TSA Input'!J842=\"Contingent\"),'TSA Input'!D842,\"\"))","v":""},{"$f":"IF('TSA Input'!J842=\"\",\"\",IF(OR('TSA Input'!J842=\"Yes\",'TSA Input'!J842=\"Contingent\"),'TSA Input'!G842,\"\"))","v":""},{"$f":"IF('TSA Input'!J842=\"\",\"\",IF(OR('TSA Input'!J842=\"Yes\",'TSA Input'!J842=\"Contingent\"),'TSA Input'!F842,\"\"))","v":""},"",{"$f":"IF('TSA Input'!J842=\"\",\"\",IF(OR('TSA Input'!J842=\"Yes\",'TSA Input'!J842=\"Contingent\"),'TSA Input'!D842,\"\"))","v":""},{"$f":"IF('TSA Input'!J842=\"\",\"\",IF(OR('TSA Input'!J842=\"Yes\",'TSA Input'!J842=\"Contingent\"),'TSA Input'!G842,\"\"))","v":""},{"$f":"IF('TSA Input'!J842=\"\",\"\",IF(OR('TSA Input'!J842=\"Yes\",'TSA Input'!J842=\"Contingent\"),'TSA Input'!F842,\"\"))","v":""},"","Required","Required"]
["",null,{"$f":"IF('TSA Input'!J843=\"\",\"\",IF(OR('TSA Input'!J843=\"Yes\",'TSA Input'!J843=\"Contingent\"),'TSA Input'!B843,\"Ineligible\"))","v":""},{"$f":"IF('TSA Input'!J843=\"\",\"\",IF(OR('TSA Input'!J843=\"Yes\",'TSA Input'!J843=\"Contingent\"),'TSA Input'!I843,\"\"))","v":""},{"$f":"IF('TSA Input'!J843=\"\",\"\",IF(OR('TSA Input'!J843=\"Yes\",'TSA Input'!J843=\"Contingent\"),'TSA Input'!C843,\"\"))","v":""},{"$f":"IF('TSA Input'!J843=\"\",\"\",IF(OR('TSA Input'!J843=\"Yes\",'TSA Input'!J843=\"Contingent\"),'TSA Input'!D843,\"\"))","v":""},{"$f":"IF('TSA Input'!J843=\"\",\"\",IF(OR('TSA Input'!J843=\"Yes\",'TSA Input'!J843=\"Contingent\"),'TSA Input'!G843,\"\"))","v":""},{"$f":"IF('TSA Input'!J843=\"\",\"\",IF(OR('TSA Input'!J843=\"Yes\",'TSA Input'!J843=\"Contingent\"),'TSA Input'!F843,\"\"))","v":""},"",{"$f":"IF('TSA Input'!J843=\"\",\"\",IF(OR('TSA Input'!J843=\"Yes\",'TSA Input'!J843=\"Contingent\"),'TSA Input'!D843,\"\"))","v":""},{"$f":"IF('TSA Input'!J843=\"\",\"\",IF(OR('TSA Input'!J843=\"Yes\",'TSA Input'!J843=\"Contingent\"),'TSA Input'!G843,\"\"))","v":""},{"$f":"IF('TSA Input'!J843=\"\",\"\",IF(OR('TSA Input'!J843=\"Yes\",'TSA Input'!J843=\"Contingent\"),'TSA Input'!F843,\"\"))","v":""},"","Required","Required"]
["",null,{"$f":"IF('TSA Input'!J844=\"\",\"\",IF(OR('TSA Input'!J844=\"Yes\",'TSA Input'!J844=\"Contingent\"),'TSA Input'!B844,\"Ineligible\"))","v":""},{"$f":"IF('TSA Input'!J844=\"\",\"\",IF(OR('TSA Input'!J844=\"Yes\",'TSA Input'!J844=\"Contingent\"),'TSA Input'!I844,\"\"))","v":""},{"$f":"IF('TSA Input'!J844=\"\",\"\",IF(OR('TSA Input'!J844=\"Yes\",'TSA Input'!J844=\"Contingent\"),'TSA Input'!C844,\"\"))","v":""},{"$f":"IF('TSA Input'!J844=\"\",\"\",IF(OR('TSA Input'!J844=\"Yes\",'TSA Input'!J844=\"Contingent\"),'TSA Input'!D844,\"\"))","v":""},{"$f":"IF('TSA Input'!J844=\"\",\"\",IF(OR('TSA Input'!J844=\"Yes\",'TSA Input'!J844=\"Contingent\"),'TSA Input'!G844,\"\"))","v":""},{"$f":"IF('TSA Input'!J844=\"\",\"\",IF(OR('TSA Input'!J844=\"Yes\",'TSA Input'!J844=\"Contingent\"),'TSA Input'!F844,\"\"))","v":""},"",{"$f":"IF('TSA Input'!J844=\"\",\"\",IF(OR('TSA Input'!J844=\"Yes\",'TSA Input'!J844=\"Contingent\"),'TSA Input'!D844,\"\"))","v":""},{"$f":"IF('TSA Input'!J844=\"\",\"\",IF(OR('TSA Input'!J844=\"Yes\",'TSA Input'!J844=\"Contingent\"),'TSA Input'!G844,\"\"))","v":""},{"$f":"IF('TSA Input'!J844=\"\",\"\",IF(OR('TSA Input'!J844=\"Yes\",'TSA Input'!J844=\"Contingent\"),'TSA Input'!F844,\"\"))","v":""},"","Required","Required"]
["",null,{"$f":"IF('TSA Input'!J845=\"\",\"\",IF(OR('TSA Input'!J845=\"Yes\",'TSA Input'!J845=\"Contingent\"),'TSA Input'!B845,\"Ineligible\"))","v":""},{"$f":"IF('TSA Input'!J845=\"\",\"\",IF(OR('TSA Input'!J845=\"Yes\",'TSA Input'!J845=\"Contingent\"),'TSA Input'!I845,\"\"))","v":""},{"$f":"IF('TSA Input'!J845=\"\",\"\",IF(OR('TSA Input'!J845=\"Yes\",'TSA Input'!J845=\"Contingent\"),'TSA Input'!C845,\"\"))","v":""},{"$f":"IF('TSA Input'!J845=\"\",\"\",IF(OR('TSA Input'!J845=\"Yes\",'TSA Input'!J845=\"Contingent\"),'TSA Input'!D845,\"\"))","v":""},{"$f":"IF('TSA Input'!J845=\"\",\"\",IF(OR('TSA Input'!J845=\"Yes\",'TSA Input'!J845=\"Contingent\"),'TSA Input'!G845,\"\"))","v":""},{"$f":"IF('TSA Input'!J845=\"\",\"\",IF(OR('TSA Input'!J845=\"Yes\",'TSA Input'!J845=\"Contingent\"),'TSA Input'!F845,\"\"))","v":""},"",{"$f":"IF('TSA Input'!J845=\"\",\"\",IF(OR('TSA Input'!J845=\"Yes\",'TSA Input'!J845=\"Contingent\"),'TSA Input'!D845,\"\"))","v":""},{"$f":"IF('TSA Input'!J845=\"\",\"\",IF(OR('TSA Input'!J845=\"Yes\",'TSA Input'!J845=\"Contingent\"),'TSA Input'!G845,\"\"))","v":""},{"$f":"IF('TSA Input'!J845=\"\",\"\",IF(OR('TSA Input'!J845=\"Yes\",'TSA Input'!J845=\"Contingent\"),'TSA Input'!F845,\"\"))","v":""},"","Required","Required"]
["",null,{"$f":"IF('TSA Input'!J846=\"\",\"\",IF(OR('TSA Input'!J846=\"Yes\",'TSA Input'!J846=\"Contingent\"),'TSA Input'!B846,\"Ineligible\"))","v":""},{"$f":"IF('TSA Input'!J846=\"\",\"\",IF(OR('TSA Input'!J846=\"Yes\",'TSA Input'!J846=\"Contingent\"),'TSA Input'!I846,\"\"))","v":""},{"$f":"IF('TSA Input'!J846=\"\",\"\",IF(OR('TSA Input'!J846=\"Yes\",'TSA Input'!J846=\"Contingent\"),'TSA Input'!C846,\"\"))","v":""},{"$f":"IF('TSA Input'!J846=\"\",\"\",IF(OR('TSA Input'!J846=\"Yes\",'TSA Input'!J846=\"Contingent\"),'TSA Input'!D846,\"\"))","v":""},{"$f":"IF('TSA Input'!J846=\"\",\"\",IF(OR('TSA Input'!J846=\"Yes\",'TSA Input'!J846=\"Contingent\"),'TSA Input'!G846,\"\"))","v":""},{"$f":"IF('TSA Input'!J846=\"\",\"\",IF(OR('TSA Input'!J846=\"Yes\",'TSA Input'!J846=\"Contingent\"),'TSA Input'!F846,\"\"))","v":""},"",{"$f":"IF('TSA Input'!J846=\"\",\"\",IF(OR('TSA Input'!J846=\"Yes\",'TSA Input'!J846=\"Contingent\"),'TSA Input'!D846,\"\"))","v":""},{"$f":"IF('TSA Input'!J846=\"\",\"\",IF(OR('TSA Input'!J846=\"Yes\",'TSA Input'!J846=\"Contingent\"),'TSA Input'!G846,\"\"))","v":""},{"$f":"IF('TSA Input'!J846=\"\",\"\",IF(OR('TSA Input'!J846=\"Yes\",'TSA Input'!J846=\"Contingent\"),'TSA Input'!F846,\"\"))","v":""},"","Required","Required"]
["",null,{"$f":"IF('TSA Input'!J847=\"\",\"\",IF(OR('TSA Input'!J847=\"Yes\",'TSA Input'!J847=\"Contingent\"),'TSA Input'!B847,\"Ineligible\"))","v":""},{"$f":"IF('TSA Input'!J847=\"\",\"\",IF(OR('TSA Input'!J847=\"Yes\",'TSA Input'!J847=\"Contingent\"),'TSA Input'!I847,\"\"))","v":""},{"$f":"IF('TSA Input'!J847=\"\",\"\",IF(OR('TSA Input'!J847=\"Yes\",'TSA Input'!J847=\"Contingent\"),'TSA Input'!C847,\"\"))","v":""},{"$f":"IF('TSA Input'!J847=\"\",\"\",IF(OR('TSA Input'!J847=\"Yes\",'TSA Input'!J847=\"Contingent\"),'TSA Input'!D847,\"\"))","v":""},{"$f":"IF('TSA Input'!J847=\"\",\"\",IF(OR('TSA Input'!J847=\"Yes\",'TSA Input'!J847=\"Contingent\"),'TSA Input'!G847,\"\"))","v":""},{"$f":"IF('TSA Input'!J847=\"\",\"\",IF(OR('TSA Input'!J847=\"Yes\",'TSA Input'!J847=\"Contingent\"),'TSA Input'!F847,\"\"))","v":""},"",{"$f":"IF('TSA Input'!J847=\"\",\"\",IF(OR('TSA Input'!J847=\"Yes\",'TSA Input'!J847=\"Contingent\"),'TSA Input'!D847,\"\"))","v":""},{"$f":"IF('TSA Input'!J847=\"\",\"\",IF(OR('TSA Input'!J847=\"Yes\",'TSA Input'!J847=\"Contingent\"),'TSA Input'!G847,\"\"))","v":""},{"$f":"IF('TSA Input'!J847=\"\",\"\",IF(OR('TSA Input'!J847=\"Yes\",'TSA Input'!J847=\"Contingent\"),'TSA Input'!F847,\"\"))","v":""},"","Required","Required"]
["",null,{"$f":"IF('TSA Input'!J848=\"\",\"\",IF(OR('TSA Input'!J848=\"Yes\",'TSA Input'!J848=\"Contingent\"),'TSA Input'!B848,\"Ineligible\"))","v":""},{"$f":"IF('TSA Input'!J848=\"\",\"\",IF(OR('TSA Input'!J848=\"Yes\",'TSA Input'!J848=\"Contingent\"),'TSA Input'!I848,\"\"))","v":""},{"$f":"IF('TSA Input'!J848=\"\",\"\",IF(OR('TSA Input'!J848=\"Yes\",'TSA Input'!J848=\"Contingent\"),'TSA Input'!C848,\"\"))","v":""},{"$f":"IF('TSA Input'!J848=\"\",\"\",IF(OR('TSA Input'!J848=\"Yes\",'TSA Input'!J848=\"Contingent\"),'TSA Input'!D848,\"\"))","v":""},{"$f":"IF('TSA Input'!J848=\"\",\"\",IF(OR('TSA Input'!J848=\"Yes\",'TSA Input'!J848=\"Contingent\"),'TSA Input'!G848,\"\"))","v":""},{"$f":"IF('TSA Input'!J848=\"\",\"\",IF(OR('TSA Input'!J848=\"Yes\",'TSA Input'!J848=\"Contingent\"),'TSA Input'!F848,\"\"))","v":""},"",{"$f":"IF('TSA Input'!J848=\"\",\"\",IF(OR('TSA Input'!J848=\"Yes\",'TSA Input'!J848=\"Contingent\"),'TSA Input'!D848,\"\"))","v":""},{"$f":"IF('TSA Input'!J848=\"\",\"\",IF(OR('TSA Input'!J848=\"Yes\",'TSA Input'!J848=\"Contingent\"),'TSA Input'!G848,\"\"))","v":""},{"$f":"IF('TSA Input'!J848=\"\",\"\",IF(OR('TSA Input'!J848=\"Yes\",'TSA Input'!J848=\"Contingent\"),'TSA Input'!F848,\"\"))","v":""},"","Required","Required"]
["",null,{"$f":"IF('TSA Input'!J849=\"\",\"\",IF(OR('TSA Input'!J849=\"Yes\",'TSA Input'!J849=\"Contingent\"),'TSA Input'!B849,\"Ineligible\"))","v":""},{"$f":"IF('TSA Input'!J849=\"\",\"\",IF(OR('TSA Input'!J849=\"Yes\",'TSA Input'!J849=\"Contingent\"),'TSA Input'!I849,\"\"))","v":""},{"$f":"IF('TSA Input'!J849=\"\",\"\",IF(OR('TSA Input'!J849=\"Yes\",'TSA Input'!J849=\"Contingent\"),'TSA Input'!C849,\"\"))","v":""},{"$f":"IF('TSA Input'!J849=\"\",\"\",IF(OR('TSA Input'!J849=\"Yes\",'TSA Input'!J849=\"Contingent\"),'TSA Input'!D849,\"\"))","v":""},{"$f":"IF('TSA Input'!J849=\"\",\"\",IF(OR('TSA Input'!J849=\"Yes\",'TSA Input'!J849=\"Contingent\"),'TSA Input'!G849,\"\"))","v":""},{"$f":"IF('TSA Input'!J849=\"\",\"\",IF(OR('TSA Input'!J849=\"Yes\",'TSA Input'!J849=\"Contingent\"),'TSA Input'!F849,\"\"))","v":""},"",{"$f":"IF('TSA Input'!J849=\"\",\"\",IF(OR('TSA Input'!J849=\"Yes\",'TSA Input'!J849=\"Contingent\"),'TSA Input'!D849,\"\"))","v":""},{"$f":"IF('TSA Input'!J849=\"\",\"\",IF(OR('TSA Input'!J849=\"Yes\",'TSA Input'!J849=\"Contingent\"),'TSA Input'!G849,\"\"))","v":""},{"$f":"IF('TSA Input'!J849=\"\",\"\",IF(OR('TSA Input'!J849=\"Yes\",'TSA Input'!J849=\"Contingent\"),'TSA Input'!F849,\"\"))","v":""},"","Required","Required"]
["",null,{"$f":"IF('TSA Input'!J850=\"\",\"\",IF(OR('TSA Input'!J850=\"Yes\",'TSA Input'!J850=\"Contingent\"),'TSA Input'!B850,\"Ineligible\"))","v":""},{"$f":"IF('TSA Input'!J850=\"\",\"\",IF(OR('TSA Input'!J850=\"Yes\",'TSA Input'!J850=\"Contingent\"),'TSA Input'!I850,\"\"))","v":""},{"$f":"IF('TSA Input'!J850=\"\",\"\",IF(OR('TSA Input'!J850=\"Yes\",'TSA Input'!J850=\"Contingent\"),'TSA Input'!C850,\"\"))","v":""},{"$f":"IF('TSA Input'!J850=\"\",\"\",IF(OR('TSA Input'!J850=\"Yes\",'TSA Input'!J850=\"Contingent\"),'TSA Input'!D850,\"\"))","v":""},{"$f":"IF('TSA Input'!J850=\"\",\"\",IF(OR('TSA Input'!J850=\"Yes\",'TSA Input'!J850=\"Contingent\"),'TSA Input'!G850,\"\"))","v":""},{"$f":"IF('TSA Input'!J850=\"\",\"\",IF(OR('TSA Input'!J850=\"Yes\",'TSA Input'!J850=\"Contingent\"),'TSA Input'!F850,\"\"))","v":""},"",{"$f":"IF('TSA Input'!J850=\"\",\"\",IF(OR('TSA Input'!J850=\"Yes\",'TSA Input'!J850=\"Contingent\"),'TSA Input'!D850,\"\"))","v":""},{"$f":"IF('TSA Input'!J850=\"\",\"\",IF(OR('TSA Input'!J850=\"Yes\",'TSA Input'!J850=\"Contingent\"),'TSA Input'!G850,\"\"))","v":""},{"$f":"IF('TSA Input'!J850=\"\",\"\",IF(OR('TSA Input'!J850=\"Yes\",'TSA Input'!J850=\"Contingent\"),'TSA Input'!F850,\"\"))","v":""},"","Required","Required"]
["",null,{"$f":"IF('TSA Input'!J851=\"\",\"\",IF(OR('TSA Input'!J851=\"Yes\",'TSA Input'!J851=\"Contingent\"),'TSA Input'!B851,\"Ineligible\"))","v":""},{"$f":"IF('TSA Input'!J851=\"\",\"\",IF(OR('TSA Input'!J851=\"Yes\",'TSA Input'!J851=\"Contingent\"),'TSA Input'!I851,\"\"))","v":""},{"$f":"IF('TSA Input'!J851=\"\",\"\",IF(OR('TSA Input'!J851=\"Yes\",'TSA Input'!J851=\"Contingent\"),'TSA Input'!C851,\"\"))","v":""},{"$f":"IF('TSA Input'!J851=\"\",\"\",IF(OR('TSA Input'!J851=\"Yes\",'TSA Input'!J851=\"Contingent\"),'TSA Input'!D851,\"\"))","v":""},{"$f":"IF('TSA Input'!J851=\"\",\"\",IF(OR('TSA Input'!J851=\"Yes\",'TSA Input'!J851=\"Contingent\"),'TSA Input'!G851,\"\"))","v":""},{"$f":"IF('TSA Input'!J851=\"\",\"\",IF(OR('TSA Input'!J851=\"Yes\",'TSA Input'!J851=\"Contingent\"),'TSA Input'!F851,\"\"))","v":""},"",{"$f":"IF('TSA Input'!J851=\"\",\"\",IF(OR('TSA Input'!J851=\"Yes\",'TSA Input'!J851=\"Contingent\"),'TSA Input'!D851,\"\"))","v":""},{"$f":"IF('TSA Input'!J851=\"\",\"\",IF(OR('TSA Input'!J851=\"Yes\",'TSA Input'!J851=\"Contingent\"),'TSA Input'!G851,\"\"))","v":""},{"$f":"IF('TSA Input'!J851=\"\",\"\",IF(OR('TSA Input'!J851=\"Yes\",'TSA Input'!J851=\"Contingent\"),'TSA Input'!F851,\"\"))","v":""},"","Required","Required"]
["",null,{"$f":"IF('TSA Input'!J852=\"\",\"\",IF(OR('TSA Input'!J852=\"Yes\",'TSA Input'!J852=\"Contingent\"),'TSA Input'!B852,\"Ineligible\"))","v":""},{"$f":"IF('TSA Input'!J852=\"\",\"\",IF(OR('TSA Input'!J852=\"Yes\",'TSA Input'!J852=\"Contingent\"),'TSA Input'!I852,\"\"))","v":""},{"$f":"IF('TSA Input'!J852=\"\",\"\",IF(OR('TSA Input'!J852=\"Yes\",'TSA Input'!J852=\"Contingent\"),'TSA Input'!C852,\"\"))","v":""},{"$f":"IF('TSA Input'!J852=\"\",\"\",IF(OR('TSA Input'!J852=\"Yes\",'TSA Input'!J852=\"Contingent\"),'TSA Input'!D852,\"\"))","v":""},{"$f":"IF('TSA Input'!J852=\"\",\"\",IF(OR('TSA Input'!J852=\"Yes\",'TSA Input'!J852=\"Contingent\"),'TSA Input'!G852,\"\"))","v":""},{"$f":"IF('TSA Input'!J852=\"\",\"\",IF(OR('TSA Input'!J852=\"Yes\",'TSA Input'!J852=\"Contingent\"),'TSA Input'!F852,\"\"))","v":""},"",{"$f":"IF('TSA Input'!J852=\"\",\"\",IF(OR('TSA Input'!J852=\"Yes\",'TSA Input'!J852=\"Contingent\"),'TSA Input'!D852,\"\"))","v":""},{"$f":"IF('TSA Input'!J852=\"\",\"\",IF(OR('TSA Input'!J852=\"Yes\",'TSA Input'!J852=\"Contingent\"),'TSA Input'!G852,\"\"))","v":""},{"$f":"IF('TSA Input'!J852=\"\",\"\",IF(OR('TSA Input'!J852=\"Yes\",'TSA Input'!J852=\"Contingent\"),'TSA Input'!F852,\"\"))","v":""},"","Required","Required"]
["",null,{"$f":"IF('TSA Input'!J853=\"\",\"\",IF(OR('TSA Input'!J853=\"Yes\",'TSA Input'!J853=\"Contingent\"),'TSA Input'!B853,\"Ineligible\"))","v":""},{"$f":"IF('TSA Input'!J853=\"\",\"\",IF(OR('TSA Input'!J853=\"Yes\",'TSA Input'!J853=\"Contingent\"),'TSA Input'!I853,\"\"))","v":""},{"$f":"IF('TSA Input'!J853=\"\",\"\",IF(OR('TSA Input'!J853=\"Yes\",'TSA Input'!J853=\"Contingent\"),'TSA Input'!C853,\"\"))","v":""},{"$f":"IF('TSA Input'!J853=\"\",\"\",IF(OR('TSA Input'!J853=\"Yes\",'TSA Input'!J853=\"Contingent\"),'TSA Input'!D853,\"\"))","v":""},{"$f":"IF('TSA Input'!J853=\"\",\"\",IF(OR('TSA Input'!J853=\"Yes\",'TSA Input'!J853=\"Contingent\"),'TSA Input'!G853,\"\"))","v":""},{"$f":"IF('TSA Input'!J853=\"\",\"\",IF(OR('TSA Input'!J853=\"Yes\",'TSA Input'!J853=\"Contingent\"),'TSA Input'!F853,\"\"))","v":""},"",{"$f":"IF('TSA Input'!J853=\"\",\"\",IF(OR('TSA Input'!J853=\"Yes\",'TSA Input'!J853=\"Contingent\"),'TSA Input'!D853,\"\"))","v":""},{"$f":"IF('TSA Input'!J853=\"\",\"\",IF(OR('TSA Input'!J853=\"Yes\",'TSA Input'!J853=\"Contingent\"),'TSA Input'!G853,\"\"))","v":""},{"$f":"IF('TSA Input'!J853=\"\",\"\",IF(OR('TSA Input'!J853=\"Yes\",'TSA Input'!J853=\"Contingent\"),'TSA Input'!F853,\"\"))","v":""},"","Required","Required"]
["",null,{"$f":"IF('TSA Input'!J854=\"\",\"\",IF(OR('TSA Input'!J854=\"Yes\",'TSA Input'!J854=\"Contingent\"),'TSA Input'!B854,\"Ineligible\"))","v":""},{"$f":"IF('TSA Input'!J854=\"\",\"\",IF(OR('TSA Input'!J854=\"Yes\",'TSA Input'!J854=\"Contingent\"),'TSA Input'!I854,\"\"))","v":""},{"$f":"IF('TSA Input'!J854=\"\",\"\",IF(OR('TSA Input'!J854=\"Yes\",'TSA Input'!J854=\"Contingent\"),'TSA Input'!C854,\"\"))","v":""},{"$f":"IF('TSA Input'!J854=\"\",\"\",IF(OR('TSA Input'!J854=\"Yes\",'TSA Input'!J854=\"Contingent\"),'TSA Input'!D854,\"\"))","v":""},{"$f":"IF('TSA Input'!J854=\"\",\"\",IF(OR('TSA Input'!J854=\"Yes\",'TSA Input'!J854=\"Contingent\"),'TSA Input'!G854,\"\"))","v":""},{"$f":"IF('TSA Input'!J854=\"\",\"\",IF(OR('TSA Input'!J854=\"Yes\",'TSA Input'!J854=\"Contingent\"),'TSA Input'!F854,\"\"))","v":""},"",{"$f":"IF('TSA Input'!J854=\"\",\"\",IF(OR('TSA Input'!J854=\"Yes\",'TSA Input'!J854=\"Contingent\"),'TSA Input'!D854,\"\"))","v":""},{"$f":"IF('TSA Input'!J854=\"\",\"\",IF(OR('TSA Input'!J854=\"Yes\",'TSA Input'!J854=\"Contingent\"),'TSA Input'!G854,\"\"))","v":""},{"$f":"IF('TSA Input'!J854=\"\",\"\",IF(OR('TSA Input'!J854=\"Yes\",'TSA Input'!J854=\"Contingent\"),'TSA Input'!F854,\"\"))","v":""},"","Required","Required"]
["",null,{"$f":"IF('TSA Input'!J855=\"\",\"\",IF(OR('TSA Input'!J855=\"Yes\",'TSA Input'!J855=\"Contingent\"),'TSA Input'!B855,\"Ineligible\"))","v":""},{"$f":"IF('TSA Input'!J855=\"\",\"\",IF(OR('TSA Input'!J855=\"Yes\",'TSA Input'!J855=\"Contingent\"),'TSA Input'!I855,\"\"))","v":""},{"$f":"IF('TSA Input'!J855=\"\",\"\",IF(OR('TSA Input'!J855=\"Yes\",'TSA Input'!J855=\"Contingent\"),'TSA Input'!C855,\"\"))","v":""},{"$f":"IF('TSA Input'!J855=\"\",\"\",IF(OR('TSA Input'!J855=\"Yes\",'TSA Input'!J855=\"Contingent\"),'TSA Input'!D855,\"\"))","v":""},{"$f":"IF('TSA Input'!J855=\"\",\"\",IF(OR('TSA Input'!J855=\"Yes\",'TSA Input'!J855=\"Contingent\"),'TSA Input'!G855,\"\"))","v":""},{"$f":"IF('TSA Input'!J855=\"\",\"\",IF(OR('TSA Input'!J855=\"Yes\",'TSA Input'!J855=\"Contingent\"),'TSA Input'!F855,\"\"))","v":""},"",{"$f":"IF('TSA Input'!J855=\"\",\"\",IF(OR('TSA Input'!J855=\"Yes\",'TSA Input'!J855=\"Contingent\"),'TSA Input'!D855,\"\"))","v":""},{"$f":"IF('TSA Input'!J855=\"\",\"\",IF(OR('TSA Input'!J855=\"Yes\",'TSA Input'!J855=\"Contingent\"),'TSA Input'!G855,\"\"))","v":""},{"$f":"IF('TSA Input'!J855=\"\",\"\",IF(OR('TSA Input'!J855=\"Yes\",'TSA Input'!J855=\"Contingent\"),'TSA Input'!F855,\"\"))","v":""},"","Required","Required"]
["",null,{"$f":"IF('TSA Input'!J856=\"\",\"\",IF(OR('TSA Input'!J856=\"Yes\",'TSA Input'!J856=\"Contingent\"),'TSA Input'!B856,\"Ineligible\"))","v":""},{"$f":"IF('TSA Input'!J856=\"\",\"\",IF(OR('TSA Input'!J856=\"Yes\",'TSA Input'!J856=\"Contingent\"),'TSA Input'!I856,\"\"))","v":""},{"$f":"IF('TSA Input'!J856=\"\",\"\",IF(OR('TSA Input'!J856=\"Yes\",'TSA Input'!J856=\"Contingent\"),'TSA Input'!C856,\"\"))","v":""},{"$f":"IF('TSA Input'!J856=\"\",\"\",IF(OR('TSA Input'!J856=\"Yes\",'TSA Input'!J856=\"Contingent\"),'TSA Input'!D856,\"\"))","v":""},{"$f":"IF('TSA Input'!J856=\"\",\"\",IF(OR('TSA Input'!J856=\"Yes\",'TSA Input'!J856=\"Contingent\"),'TSA Input'!G856,\"\"))","v":""},{"$f":"IF('TSA Input'!J856=\"\",\"\",IF(OR('TSA Input'!J856=\"Yes\",'TSA Input'!J856=\"Contingent\"),'TSA Input'!F856,\"\"))","v":""},"",{"$f":"IF('TSA Input'!J856=\"\",\"\",IF(OR('TSA Input'!J856=\"Yes\",'TSA Input'!J856=\"Contingent\"),'TSA Input'!D856,\"\"))","v":""},{"$f":"IF('TSA Input'!J856=\"\",\"\",IF(OR('TSA Input'!J856=\"Yes\",'TSA Input'!J856=\"Contingent\"),'TSA Input'!G856,\"\"))","v":""},{"$f":"IF('TSA Input'!J856=\"\",\"\",IF(OR('TSA Input'!J856=\"Yes\",'TSA Input'!J856=\"Contingent\"),'TSA Input'!F856,\"\"))","v":""},"","Required","Required"]
["",null,{"$f":"IF('TSA Input'!J857=\"\",\"\",IF(OR('TSA Input'!J857=\"Yes\",'TSA Input'!J857=\"Contingent\"),'TSA Input'!B857,\"Ineligible\"))","v":""},{"$f":"IF('TSA Input'!J857=\"\",\"\",IF(OR('TSA Input'!J857=\"Yes\",'TSA Input'!J857=\"Contingent\"),'TSA Input'!I857,\"\"))","v":""},{"$f":"IF('TSA Input'!J857=\"\",\"\",IF(OR('TSA Input'!J857=\"Yes\",'TSA Input'!J857=\"Contingent\"),'TSA Input'!C857,\"\"))","v":""},{"$f":"IF('TSA Input'!J857=\"\",\"\",IF(OR('TSA Input'!J857=\"Yes\",'TSA Input'!J857=\"Contingent\"),'TSA Input'!D857,\"\"))","v":""},{"$f":"IF('TSA Input'!J857=\"\",\"\",IF(OR('TSA Input'!J857=\"Yes\",'TSA Input'!J857=\"Contingent\"),'TSA Input'!G857,\"\"))","v":""},{"$f":"IF('TSA Input'!J857=\"\",\"\",IF(OR('TSA Input'!J857=\"Yes\",'TSA Input'!J857=\"Contingent\"),'TSA Input'!F857,\"\"))","v":""},"",{"$f":"IF('TSA Input'!J857=\"\",\"\",IF(OR('TSA Input'!J857=\"Yes\",'TSA Input'!J857=\"Contingent\"),'TSA Input'!D857,\"\"))","v":""},{"$f":"IF('TSA Input'!J857=\"\",\"\",IF(OR('TSA Input'!J857=\"Yes\",'TSA Input'!J857=\"Contingent\"),'TSA Input'!G857,\"\"))","v":""},{"$f":"IF('TSA Input'!J857=\"\",\"\",IF(OR('TSA Input'!J857=\"Yes\",'TSA Input'!J857=\"Contingent\"),'TSA Input'!F857,\"\"))","v":""},"","Required","Required"]
["",null,{"$f":"IF('TSA Input'!J858=\"\",\"\",IF(OR('TSA Input'!J858=\"Yes\",'TSA Input'!J858=\"Contingent\"),'TSA Input'!B858,\"Ineligible\"))","v":""},{"$f":"IF('TSA Input'!J858=\"\",\"\",IF(OR('TSA Input'!J858=\"Yes\",'TSA Input'!J858=\"Contingent\"),'TSA Input'!I858,\"\"))","v":""},{"$f":"IF('TSA Input'!J858=\"\",\"\",IF(OR('TSA Input'!J858=\"Yes\",'TSA Input'!J858=\"Contingent\"),'TSA Input'!C858,\"\"))","v":""},{"$f":"IF('TSA Input'!J858=\"\",\"\",IF(OR('TSA Input'!J858=\"Yes\",'TSA Input'!J858=\"Contingent\"),'TSA Input'!D858,\"\"))","v":""},{"$f":"IF('TSA Input'!J858=\"\",\"\",IF(OR('TSA Input'!J858=\"Yes\",'TSA Input'!J858=\"Contingent\"),'TSA Input'!G858,\"\"))","v":""},{"$f":"IF('TSA Input'!J858=\"\",\"\",IF(OR('TSA Input'!J858=\"Yes\",'TSA Input'!J858=\"Contingent\"),'TSA Input'!F858,\"\"))","v":""},"",{"$f":"IF('TSA Input'!J858=\"\",\"\",IF(OR('TSA Input'!J858=\"Yes\",'TSA Input'!J858=\"Contingent\"),'TSA Input'!D858,\"\"))","v":""},{"$f":"IF('TSA Input'!J858=\"\",\"\",IF(OR('TSA Input'!J858=\"Yes\",'TSA Input'!J858=\"Contingent\"),'TSA Input'!G858,\"\"))","v":""},{"$f":"IF('TSA Input'!J858=\"\",\"\",IF(OR('TSA Input'!J858=\"Yes\",'TSA Input'!J858=\"Contingent\"),'TSA Input'!F858,\"\"))","v":""},"","Required","Required"]
["",null,{"$f":"IF('TSA Input'!J859=\"\",\"\",IF(OR('TSA Input'!J859=\"Yes\",'TSA Input'!J859=\"Contingent\"),'TSA Input'!B859,\"Ineligible\"))","v":""},{"$f":"IF('TSA Input'!J859=\"\",\"\",IF(OR('TSA Input'!J859=\"Yes\",'TSA Input'!J859=\"Contingent\"),'TSA Input'!I859,\"\"))","v":""},{"$f":"IF('TSA Input'!J859=\"\",\"\",IF(OR('TSA Input'!J859=\"Yes\",'TSA Input'!J859=\"Contingent\"),'TSA Input'!C859,\"\"))","v":""},{"$f":"IF('TSA Input'!J859=\"\",\"\",IF(OR('TSA Input'!J859=\"Yes\",'TSA Input'!J859=\"Contingent\"),'TSA Input'!D859,\"\"))","v":""},{"$f":"IF('TSA Input'!J859=\"\",\"\",IF(OR('TSA Input'!J859=\"Yes\",'TSA Input'!J859=\"Contingent\"),'TSA Input'!G859,\"\"))","v":""},{"$f":"IF('TSA Input'!J859=\"\",\"\",IF(OR('TSA Input'!J859=\"Yes\",'TSA Input'!J859=\"Contingent\"),'TSA Input'!F859,\"\"))","v":""},"",{"$f":"IF('TSA Input'!J859=\"\",\"\",IF(OR('TSA Input'!J859=\"Yes\",'TSA Input'!J859=\"Contingent\"),'TSA Input'!D859,\"\"))","v":""},{"$f":"IF('TSA Input'!J859=\"\",\"\",IF(OR('TSA Input'!J859=\"Yes\",'TSA Input'!J859=\"Contingent\"),'TSA Input'!G859,\"\"))","v":""},{"$f":"IF('TSA Input'!J859=\"\",\"\",IF(OR('TSA Input'!J859=\"Yes\",'TSA Input'!J859=\"Contingent\"),'TSA Input'!F859,\"\"))","v":""},"","Required","Required"]
["",null,{"$f":"IF('TSA Input'!J860=\"\",\"\",IF(OR('TSA Input'!J860=\"Yes\",'TSA Input'!J860=\"Contingent\"),'TSA Input'!B860,\"Ineligible\"))","v":""},{"$f":"IF('TSA Input'!J860=\"\",\"\",IF(OR('TSA Input'!J860=\"Yes\",'TSA Input'!J860=\"Contingent\"),'TSA Input'!I860,\"\"))","v":""},{"$f":"IF('TSA Input'!J860=\"\",\"\",IF(OR('TSA Input'!J860=\"Yes\",'TSA Input'!J860=\"Contingent\"),'TSA Input'!C860,\"\"))","v":""},{"$f":"IF('TSA Input'!J860=\"\",\"\",IF(OR('TSA Input'!J860=\"Yes\",'TSA Input'!J860=\"Contingent\"),'TSA Input'!D860,\"\"))","v":""},{"$f":"IF('TSA Input'!J860=\"\",\"\",IF(OR('TSA Input'!J860=\"Yes\",'TSA Input'!J860=\"Contingent\"),'TSA Input'!G860,\"\"))","v":""},{"$f":"IF('TSA Input'!J860=\"\",\"\",IF(OR('TSA Input'!J860=\"Yes\",'TSA Input'!J860=\"Contingent\"),'TSA Input'!F860,\"\"))","v":""},"",{"$f":"IF('TSA Input'!J860=\"\",\"\",IF(OR('TSA Input'!J860=\"Yes\",'TSA Input'!J860=\"Contingent\"),'TSA Input'!D860,\"\"))","v":""},{"$f":"IF('TSA Input'!J860=\"\",\"\",IF(OR('TSA Input'!J860=\"Yes\",'TSA Input'!J860=\"Contingent\"),'TSA Input'!G860,\"\"))","v":""},{"$f":"IF('TSA Input'!J860=\"\",\"\",IF(OR('TSA Input'!J860=\"Yes\",'TSA Input'!J860=\"Contingent\"),'TSA Input'!F860,\"\"))","v":""},"","Required","Required"]
["",null,{"$f":"IF('TSA Input'!J861=\"\",\"\",IF(OR('TSA Input'!J861=\"Yes\",'TSA Input'!J861=\"Contingent\"),'TSA Input'!B861,\"Ineligible\"))","v":""},{"$f":"IF('TSA Input'!J861=\"\",\"\",IF(OR('TSA Input'!J861=\"Yes\",'TSA Input'!J861=\"Contingent\"),'TSA Input'!I861,\"\"))","v":""},{"$f":"IF('TSA Input'!J861=\"\",\"\",IF(OR('TSA Input'!J861=\"Yes\",'TSA Input'!J861=\"Contingent\"),'TSA Input'!C861,\"\"))","v":""},{"$f":"IF('TSA Input'!J861=\"\",\"\",IF(OR('TSA Input'!J861=\"Yes\",'TSA Input'!J861=\"Contingent\"),'TSA Input'!D861,\"\"))","v":""},{"$f":"IF('TSA Input'!J861=\"\",\"\",IF(OR('TSA Input'!J861=\"Yes\",'TSA Input'!J861=\"Contingent\"),'TSA Input'!G861,\"\"))","v":""},{"$f":"IF('TSA Input'!J861=\"\",\"\",IF(OR('TSA Input'!J861=\"Yes\",'TSA Input'!J861=\"Contingent\"),'TSA Input'!F861,\"\"))","v":""},"",{"$f":"IF('TSA Input'!J861=\"\",\"\",IF(OR('TSA Input'!J861=\"Yes\",'TSA Input'!J861=\"Contingent\"),'TSA Input'!D861,\"\"))","v":""},{"$f":"IF('TSA Input'!J861=\"\",\"\",IF(OR('TSA Input'!J861=\"Yes\",'TSA Input'!J861=\"Contingent\"),'TSA Input'!G861,\"\"))","v":""},{"$f":"IF('TSA Input'!J861=\"\",\"\",IF(OR('TSA Input'!J861=\"Yes\",'TSA Input'!J861=\"Contingent\"),'TSA Input'!F861,\"\"))","v":""},"","Required","Required"]
["",null,{"$f":"IF('TSA Input'!J862=\"\",\"\",IF(OR('TSA Input'!J862=\"Yes\",'TSA Input'!J862=\"Contingent\"),'TSA Input'!B862,\"Ineligible\"))","v":""},{"$f":"IF('TSA Input'!J862=\"\",\"\",IF(OR('TSA Input'!J862=\"Yes\",'TSA Input'!J862=\"Contingent\"),'TSA Input'!I862,\"\"))","v":""},{"$f":"IF('TSA Input'!J862=\"\",\"\",IF(OR('TSA Input'!J862=\"Yes\",'TSA Input'!J862=\"Contingent\"),'TSA Input'!C862,\"\"))","v":""},{"$f":"IF('TSA Input'!J862=\"\",\"\",IF(OR('TSA Input'!J862=\"Yes\",'TSA Input'!J862=\"Contingent\"),'TSA Input'!D862,\"\"))","v":""},{"$f":"IF('TSA Input'!J862=\"\",\"\",IF(OR('TSA Input'!J862=\"Yes\",'TSA Input'!J862=\"Contingent\"),'TSA Input'!G862,\"\"))","v":""},{"$f":"IF('TSA Input'!J862=\"\",\"\",IF(OR('TSA Input'!J862=\"Yes\",'TSA Input'!J862=\"Contingent\"),'TSA Input'!F862,\"\"))","v":""},"",{"$f":"IF('TSA Input'!J862=\"\",\"\",IF(OR('TSA Input'!J862=\"Yes\",'TSA Input'!J862=\"Contingent\"),'TSA Input'!D862,\"\"))","v":""},{"$f":"IF('TSA Input'!J862=\"\",\"\",IF(OR('TSA Input'!J862=\"Yes\",'TSA Input'!J862=\"Contingent\"),'TSA Input'!G862,\"\"))","v":""},{"$f":"IF('TSA Input'!J862=\"\",\"\",IF(OR('TSA Input'!J862=\"Yes\",'TSA Input'!J862=\"Contingent\"),'TSA Input'!F862,\"\"))","v":""},"","Required","Required"]
["",null,{"$f":"IF('TSA Input'!J863=\"\",\"\",IF(OR('TSA Input'!J863=\"Yes\",'TSA Input'!J863=\"Contingent\"),'TSA Input'!B863,\"Ineligible\"))","v":""},{"$f":"IF('TSA Input'!J863=\"\",\"\",IF(OR('TSA Input'!J863=\"Yes\",'TSA Input'!J863=\"Contingent\"),'TSA Input'!I863,\"\"))","v":""},{"$f":"IF('TSA Input'!J863=\"\",\"\",IF(OR('TSA Input'!J863=\"Yes\",'TSA Input'!J863=\"Contingent\"),'TSA Input'!C863,\"\"))","v":""},{"$f":"IF('TSA Input'!J863=\"\",\"\",IF(OR('TSA Input'!J863=\"Yes\",'TSA Input'!J863=\"Contingent\"),'TSA Input'!D863,\"\"))","v":""},{"$f":"IF('TSA Input'!J863=\"\",\"\",IF(OR('TSA Input'!J863=\"Yes\",'TSA Input'!J863=\"Contingent\"),'TSA Input'!G863,\"\"))","v":""},{"$f":"IF('TSA Input'!J863=\"\",\"\",IF(OR('TSA Input'!J863=\"Yes\",'TSA Input'!J863=\"Contingent\"),'TSA Input'!F863,\"\"))","v":""},"",{"$f":"IF('TSA Input'!J863=\"\",\"\",IF(OR('TSA Input'!J863=\"Yes\",'TSA Input'!J863=\"Contingent\"),'TSA Input'!D863,\"\"))","v":""},{"$f":"IF('TSA Input'!J863=\"\",\"\",IF(OR('TSA Input'!J863=\"Yes\",'TSA Input'!J863=\"Contingent\"),'TSA Input'!G863,\"\"))","v":""},{"$f":"IF('TSA Input'!J863=\"\",\"\",IF(OR('TSA Input'!J863=\"Yes\",'TSA Input'!J863=\"Contingent\"),'TSA Input'!F863,\"\"))","v":""},"","Required","Required"]
["",null,{"$f":"IF('TSA Input'!J864=\"\",\"\",IF(OR('TSA Input'!J864=\"Yes\",'TSA Input'!J864=\"Contingent\"),'TSA Input'!B864,\"Ineligible\"))","v":""},{"$f":"IF('TSA Input'!J864=\"\",\"\",IF(OR('TSA Input'!J864=\"Yes\",'TSA Input'!J864=\"Contingent\"),'TSA Input'!I864,\"\"))","v":""},{"$f":"IF('TSA Input'!J864=\"\",\"\",IF(OR('TSA Input'!J864=\"Yes\",'TSA Input'!J864=\"Contingent\"),'TSA Input'!C864,\"\"))","v":""},{"$f":"IF('TSA Input'!J864=\"\",\"\",IF(OR('TSA Input'!J864=\"Yes\",'TSA Input'!J864=\"Contingent\"),'TSA Input'!D864,\"\"))","v":""},{"$f":"IF('TSA Input'!J864=\"\",\"\",IF(OR('TSA Input'!J864=\"Yes\",'TSA Input'!J864=\"Contingent\"),'TSA Input'!G864,\"\"))","v":""},{"$f":"IF('TSA Input'!J864=\"\",\"\",IF(OR('TSA Input'!J864=\"Yes\",'TSA Input'!J864=\"Contingent\"),'TSA Input'!F864,\"\"))","v":""},"",{"$f":"IF('TSA Input'!J864=\"\",\"\",IF(OR('TSA Input'!J864=\"Yes\",'TSA Input'!J864=\"Contingent\"),'TSA Input'!D864,\"\"))","v":""},{"$f":"IF('TSA Input'!J864=\"\",\"\",IF(OR('TSA Input'!J864=\"Yes\",'TSA Input'!J864=\"Contingent\"),'TSA Input'!G864,\"\"))","v":""},{"$f":"IF('TSA Input'!J864=\"\",\"\",IF(OR('TSA Input'!J864=\"Yes\",'TSA Input'!J864=\"Contingent\"),'TSA Input'!F864,\"\"))","v":""},"","Required","Required"]
["",null,{"$f":"IF('TSA Input'!J865=\"\",\"\",IF(OR('TSA Input'!J865=\"Yes\",'TSA Input'!J865=\"Contingent\"),'TSA Input'!B865,\"Ineligible\"))","v":""},{"$f":"IF('TSA Input'!J865=\"\",\"\",IF(OR('TSA Input'!J865=\"Yes\",'TSA Input'!J865=\"Contingent\"),'TSA Input'!I865,\"\"))","v":""},{"$f":"IF('TSA Input'!J865=\"\",\"\",IF(OR('TSA Input'!J865=\"Yes\",'TSA Input'!J865=\"Contingent\"),'TSA Input'!C865,\"\"))","v":""},{"$f":"IF('TSA Input'!J865=\"\",\"\",IF(OR('TSA Input'!J865=\"Yes\",'TSA Input'!J865=\"Contingent\"),'TSA Input'!D865,\"\"))","v":""},{"$f":"IF('TSA Input'!J865=\"\",\"\",IF(OR('TSA Input'!J865=\"Yes\",'TSA Input'!J865=\"Contingent\"),'TSA Input'!G865,\"\"))","v":""},{"$f":"IF('TSA Input'!J865=\"\",\"\",IF(OR('TSA Input'!J865=\"Yes\",'TSA Input'!J865=\"Contingent\"),'TSA Input'!F865,\"\"))","v":""},"",{"$f":"IF('TSA Input'!J865=\"\",\"\",IF(OR('TSA Input'!J865=\"Yes\",'TSA Input'!J865=\"Contingent\"),'TSA Input'!D865,\"\"))","v":""},{"$f":"IF('TSA Input'!J865=\"\",\"\",IF(OR('TSA Input'!J865=\"Yes\",'TSA Input'!J865=\"Contingent\"),'TSA Input'!G865,\"\"))","v":""},{"$f":"IF('TSA Input'!J865=\"\",\"\",IF(OR('TSA Input'!J865=\"Yes\",'TSA Input'!J865=\"Contingent\"),'TSA Input'!F865,\"\"))","v":""},"","Required","Required"]
["",null,{"$f":"IF('TSA Input'!J866=\"\",\"\",IF(OR('TSA Input'!J866=\"Yes\",'TSA Input'!J866=\"Contingent\"),'TSA Input'!B866,\"Ineligible\"))","v":""},{"$f":"IF('TSA Input'!J866=\"\",\"\",IF(OR('TSA Input'!J866=\"Yes\",'TSA Input'!J866=\"Contingent\"),'TSA Input'!I866,\"\"))","v":""},{"$f":"IF('TSA Input'!J866=\"\",\"\",IF(OR('TSA Input'!J866=\"Yes\",'TSA Input'!J866=\"Contingent\"),'TSA Input'!C866,\"\"))","v":""},{"$f":"IF('TSA Input'!J866=\"\",\"\",IF(OR('TSA Input'!J866=\"Yes\",'TSA Input'!J866=\"Contingent\"),'TSA Input'!D866,\"\"))","v":""},{"$f":"IF('TSA Input'!J866=\"\",\"\",IF(OR('TSA Input'!J866=\"Yes\",'TSA Input'!J866=\"Contingent\"),'TSA Input'!G866,\"\"))","v":""},{"$f":"IF('TSA Input'!J866=\"\",\"\",IF(OR('TSA Input'!J866=\"Yes\",'TSA Input'!J866=\"Contingent\"),'TSA Input'!F866,\"\"))","v":""},"",{"$f":"IF('TSA Input'!J866=\"\",\"\",IF(OR('TSA Input'!J866=\"Yes\",'TSA Input'!J866=\"Contingent\"),'TSA Input'!D866,\"\"))","v":""},{"$f":"IF('TSA Input'!J866=\"\",\"\",IF(OR('TSA Input'!J866=\"Yes\",'TSA Input'!J866=\"Contingent\"),'TSA Input'!G866,\"\"))","v":""},{"$f":"IF('TSA Input'!J866=\"\",\"\",IF(OR('TSA Input'!J866=\"Yes\",'TSA Input'!J866=\"Contingent\"),'TSA Input'!F866,\"\"))","v":""},"","Required","Required"]
["",null,{"$f":"IF('TSA Input'!J867=\"\",\"\",IF(OR('TSA Input'!J867=\"Yes\",'TSA Input'!J867=\"Contingent\"),'TSA Input'!B867,\"Ineligible\"))","v":""},{"$f":"IF('TSA Input'!J867=\"\",\"\",IF(OR('TSA Input'!J867=\"Yes\",'TSA Input'!J867=\"Contingent\"),'TSA Input'!I867,\"\"))","v":""},{"$f":"IF('TSA Input'!J867=\"\",\"\",IF(OR('TSA Input'!J867=\"Yes\",'TSA Input'!J867=\"Contingent\"),'TSA Input'!C867,\"\"))","v":""},{"$f":"IF('TSA Input'!J867=\"\",\"\",IF(OR('TSA Input'!J867=\"Yes\",'TSA Input'!J867=\"Contingent\"),'TSA Input'!D867,\"\"))","v":""},{"$f":"IF('TSA Input'!J867=\"\",\"\",IF(OR('TSA Input'!J867=\"Yes\",'TSA Input'!J867=\"Contingent\"),'TSA Input'!G867,\"\"))","v":""},{"$f":"IF('TSA Input'!J867=\"\",\"\",IF(OR('TSA Input'!J867=\"Yes\",'TSA Input'!J867=\"Contingent\"),'TSA Input'!F867,\"\"))","v":""},"",{"$f":"IF('TSA Input'!J867=\"\",\"\",IF(OR('TSA Input'!J867=\"Yes\",'TSA Input'!J867=\"Contingent\"),'TSA Input'!D867,\"\"))","v":""},{"$f":"IF('TSA Input'!J867=\"\",\"\",IF(OR('TSA Input'!J867=\"Yes\",'TSA Input'!J867=\"Contingent\"),'TSA Input'!G867,\"\"))","v":""},{"$f":"IF('TSA Input'!J867=\"\",\"\",IF(OR('TSA Input'!J867=\"Yes\",'TSA Input'!J867=\"Contingent\"),'TSA Input'!F867,\"\"))","v":""},"","Required","Required"]
["",null,{"$f":"IF('TSA Input'!J868=\"\",\"\",IF(OR('TSA Input'!J868=\"Yes\",'TSA Input'!J868=\"Contingent\"),'TSA Input'!B868,\"Ineligible\"))","v":""},{"$f":"IF('TSA Input'!J868=\"\",\"\",IF(OR('TSA Input'!J868=\"Yes\",'TSA Input'!J868=\"Contingent\"),'TSA Input'!I868,\"\"))","v":""},{"$f":"IF('TSA Input'!J868=\"\",\"\",IF(OR('TSA Input'!J868=\"Yes\",'TSA Input'!J868=\"Contingent\"),'TSA Input'!C868,\"\"))","v":""},{"$f":"IF('TSA Input'!J868=\"\",\"\",IF(OR('TSA Input'!J868=\"Yes\",'TSA Input'!J868=\"Contingent\"),'TSA Input'!D868,\"\"))","v":""},{"$f":"IF('TSA Input'!J868=\"\",\"\",IF(OR('TSA Input'!J868=\"Yes\",'TSA Input'!J868=\"Contingent\"),'TSA Input'!G868,\"\"))","v":""},{"$f":"IF('TSA Input'!J868=\"\",\"\",IF(OR('TSA Input'!J868=\"Yes\",'TSA Input'!J868=\"Contingent\"),'TSA Input'!F868,\"\"))","v":""},"",{"$f":"IF('TSA Input'!J868=\"\",\"\",IF(OR('TSA Input'!J868=\"Yes\",'TSA Input'!J868=\"Contingent\"),'TSA Input'!D868,\"\"))","v":""},{"$f":"IF('TSA Input'!J868=\"\",\"\",IF(OR('TSA Input'!J868=\"Yes\",'TSA Input'!J868=\"Contingent\"),'TSA Input'!G868,\"\"))","v":""},{"$f":"IF('TSA Input'!J868=\"\",\"\",IF(OR('TSA Input'!J868=\"Yes\",'TSA Input'!J868=\"Contingent\"),'TSA Input'!F868,\"\"))","v":""},"","Required","Required"]
["",null,{"$f":"IF('TSA Input'!J869=\"\",\"\",IF(OR('TSA Input'!J869=\"Yes\",'TSA Input'!J869=\"Contingent\"),'TSA Input'!B869,\"Ineligible\"))","v":""},{"$f":"IF('TSA Input'!J869=\"\",\"\",IF(OR('TSA Input'!J869=\"Yes\",'TSA Input'!J869=\"Contingent\"),'TSA Input'!I869,\"\"))","v":""},{"$f":"IF('TSA Input'!J869=\"\",\"\",IF(OR('TSA Input'!J869=\"Yes\",'TSA Input'!J869=\"Contingent\"),'TSA Input'!C869,\"\"))","v":""},{"$f":"IF('TSA Input'!J869=\"\",\"\",IF(OR('TSA Input'!J869=\"Yes\",'TSA Input'!J869=\"Contingent\"),'TSA Input'!D869,\"\"))","v":""},{"$f":"IF('TSA Input'!J869=\"\",\"\",IF(OR('TSA Input'!J869=\"Yes\",'TSA Input'!J869=\"Contingent\"),'TSA Input'!G869,\"\"))","v":""},{"$f":"IF('TSA Input'!J869=\"\",\"\",IF(OR('TSA Input'!J869=\"Yes\",'TSA Input'!J869=\"Contingent\"),'TSA Input'!F869,\"\"))","v":""},"",{"$f":"IF('TSA Input'!J869=\"\",\"\",IF(OR('TSA Input'!J869=\"Yes\",'TSA Input'!J869=\"Contingent\"),'TSA Input'!D869,\"\"))","v":""},{"$f":"IF('TSA Input'!J869=\"\",\"\",IF(OR('TSA Input'!J869=\"Yes\",'TSA Input'!J869=\"Contingent\"),'TSA Input'!G869,\"\"))","v":""},{"$f":"IF('TSA Input'!J869=\"\",\"\",IF(OR('TSA Input'!J869=\"Yes\",'TSA Input'!J869=\"Contingent\"),'TSA Input'!F869,\"\"))","v":""},"","Required","Required"]
["",null,{"$f":"IF('TSA Input'!J870=\"\",\"\",IF(OR('TSA Input'!J870=\"Yes\",'TSA Input'!J870=\"Contingent\"),'TSA Input'!B870,\"Ineligible\"))","v":""},{"$f":"IF('TSA Input'!J870=\"\",\"\",IF(OR('TSA Input'!J870=\"Yes\",'TSA Input'!J870=\"Contingent\"),'TSA Input'!I870,\"\"))","v":""},{"$f":"IF('TSA Input'!J870=\"\",\"\",IF(OR('TSA Input'!J870=\"Yes\",'TSA Input'!J870=\"Contingent\"),'TSA Input'!C870,\"\"))","v":""},{"$f":"IF('TSA Input'!J870=\"\",\"\",IF(OR('TSA Input'!J870=\"Yes\",'TSA Input'!J870=\"Contingent\"),'TSA Input'!D870,\"\"))","v":""},{"$f":"IF('TSA Input'!J870=\"\",\"\",IF(OR('TSA Input'!J870=\"Yes\",'TSA Input'!J870=\"Contingent\"),'TSA Input'!G870,\"\"))","v":""},{"$f":"IF('TSA Input'!J870=\"\",\"\",IF(OR('TSA Input'!J870=\"Yes\",'TSA Input'!J870=\"Contingent\"),'TSA Input'!F870,\"\"))","v":""},"",{"$f":"IF('TSA Input'!J870=\"\",\"\",IF(OR('TSA Input'!J870=\"Yes\",'TSA Input'!J870=\"Contingent\"),'TSA Input'!D870,\"\"))","v":""},{"$f":"IF('TSA Input'!J870=\"\",\"\",IF(OR('TSA Input'!J870=\"Yes\",'TSA Input'!J870=\"Contingent\"),'TSA Input'!G870,\"\"))","v":""},{"$f":"IF('TSA Input'!J870=\"\",\"\",IF(OR('TSA Input'!J870=\"Yes\",'TSA Input'!J870=\"Contingent\"),'TSA Input'!F870,\"\"))","v":""},"","Required","Required"]
["",null,{"$f":"IF('TSA Input'!J871=\"\",\"\",IF(OR('TSA Input'!J871=\"Yes\",'TSA Input'!J871=\"Contingent\"),'TSA Input'!B871,\"Ineligible\"))","v":""},{"$f":"IF('TSA Input'!J871=\"\",\"\",IF(OR('TSA Input'!J871=\"Yes\",'TSA Input'!J871=\"Contingent\"),'TSA Input'!I871,\"\"))","v":""},{"$f":"IF('TSA Input'!J871=\"\",\"\",IF(OR('TSA Input'!J871=\"Yes\",'TSA Input'!J871=\"Contingent\"),'TSA Input'!C871,\"\"))","v":""},{"$f":"IF('TSA Input'!J871=\"\",\"\",IF(OR('TSA Input'!J871=\"Yes\",'TSA Input'!J871=\"Contingent\"),'TSA Input'!D871,\"\"))","v":""},{"$f":"IF('TSA Input'!J871=\"\",\"\",IF(OR('TSA Input'!J871=\"Yes\",'TSA Input'!J871=\"Contingent\"),'TSA Input'!G871,\"\"))","v":""},{"$f":"IF('TSA Input'!J871=\"\",\"\",IF(OR('TSA Input'!J871=\"Yes\",'TSA Input'!J871=\"Contingent\"),'TSA Input'!F871,\"\"))","v":""},"",{"$f":"IF('TSA Input'!J871=\"\",\"\",IF(OR('TSA Input'!J871=\"Yes\",'TSA Input'!J871=\"Contingent\"),'TSA Input'!D871,\"\"))","v":""},{"$f":"IF('TSA Input'!J871=\"\",\"\",IF(OR('TSA Input'!J871=\"Yes\",'TSA Input'!J871=\"Contingent\"),'TSA Input'!G871,\"\"))","v":""},{"$f":"IF('TSA Input'!J871=\"\",\"\",IF(OR('TSA Input'!J871=\"Yes\",'TSA Input'!J871=\"Contingent\"),'TSA Input'!F871,\"\"))","v":""},"","Required","Required"]
["",null,{"$f":"IF('TSA Input'!J872=\"\",\"\",IF(OR('TSA Input'!J872=\"Yes\",'TSA Input'!J872=\"Contingent\"),'TSA Input'!B872,\"Ineligible\"))","v":""},{"$f":"IF('TSA Input'!J872=\"\",\"\",IF(OR('TSA Input'!J872=\"Yes\",'TSA Input'!J872=\"Contingent\"),'TSA Input'!I872,\"\"))","v":""},{"$f":"IF('TSA Input'!J872=\"\",\"\",IF(OR('TSA Input'!J872=\"Yes\",'TSA Input'!J872=\"Contingent\"),'TSA Input'!C872,\"\"))","v":""},{"$f":"IF('TSA Input'!J872=\"\",\"\",IF(OR('TSA Input'!J872=\"Yes\",'TSA Input'!J872=\"Contingent\"),'TSA Input'!D872,\"\"))","v":""},{"$f":"IF('TSA Input'!J872=\"\",\"\",IF(OR('TSA Input'!J872=\"Yes\",'TSA Input'!J872=\"Contingent\"),'TSA Input'!G872,\"\"))","v":""},{"$f":"IF('TSA Input'!J872=\"\",\"\",IF(OR('TSA Input'!J872=\"Yes\",'TSA Input'!J872=\"Contingent\"),'TSA Input'!F872,\"\"))","v":""},"",{"$f":"IF('TSA Input'!J872=\"\",\"\",IF(OR('TSA Input'!J872=\"Yes\",'TSA Input'!J872=\"Contingent\"),'TSA Input'!D872,\"\"))","v":""},{"$f":"IF('TSA Input'!J872=\"\",\"\",IF(OR('TSA Input'!J872=\"Yes\",'TSA Input'!J872=\"Contingent\"),'TSA Input'!G872,\"\"))","v":""},{"$f":"IF('TSA Input'!J872=\"\",\"\",IF(OR('TSA Input'!J872=\"Yes\",'TSA Input'!J872=\"Contingent\"),'TSA Input'!F872,\"\"))","v":""},"","Required","Required"]
["",null,{"$f":"IF('TSA Input'!J873=\"\",\"\",IF(OR('TSA Input'!J873=\"Yes\",'TSA Input'!J873=\"Contingent\"),'TSA Input'!B873,\"Ineligible\"))","v":""},{"$f":"IF('TSA Input'!J873=\"\",\"\",IF(OR('TSA Input'!J873=\"Yes\",'TSA Input'!J873=\"Contingent\"),'TSA Input'!I873,\"\"))","v":""},{"$f":"IF('TSA Input'!J873=\"\",\"\",IF(OR('TSA Input'!J873=\"Yes\",'TSA Input'!J873=\"Contingent\"),'TSA Input'!C873,\"\"))","v":""},{"$f":"IF('TSA Input'!J873=\"\",\"\",IF(OR('TSA Input'!J873=\"Yes\",'TSA Input'!J873=\"Contingent\"),'TSA Input'!D873,\"\"))","v":""},{"$f":"IF('TSA Input'!J873=\"\",\"\",IF(OR('TSA Input'!J873=\"Yes\",'TSA Input'!J873=\"Contingent\"),'TSA Input'!G873,\"\"))","v":""},{"$f":"IF('TSA Input'!J873=\"\",\"\",IF(OR('TSA Input'!J873=\"Yes\",'TSA Input'!J873=\"Contingent\"),'TSA Input'!F873,\"\"))","v":""},"",{"$f":"IF('TSA Input'!J873=\"\",\"\",IF(OR('TSA Input'!J873=\"Yes\",'TSA Input'!J873=\"Contingent\"),'TSA Input'!D873,\"\"))","v":""},{"$f":"IF('TSA Input'!J873=\"\",\"\",IF(OR('TSA Input'!J873=\"Yes\",'TSA Input'!J873=\"Contingent\"),'TSA Input'!G873,\"\"))","v":""},{"$f":"IF('TSA Input'!J873=\"\",\"\",IF(OR('TSA Input'!J873=\"Yes\",'TSA Input'!J873=\"Contingent\"),'TSA Input'!F873,\"\"))","v":""},"","Required","Required"]
["",null,{"$f":"IF('TSA Input'!J874=\"\",\"\",IF(OR('TSA Input'!J874=\"Yes\",'TSA Input'!J874=\"Contingent\"),'TSA Input'!B874,\"Ineligible\"))","v":""},{"$f":"IF('TSA Input'!J874=\"\",\"\",IF(OR('TSA Input'!J874=\"Yes\",'TSA Input'!J874=\"Contingent\"),'TSA Input'!I874,\"\"))","v":""},{"$f":"IF('TSA Input'!J874=\"\",\"\",IF(OR('TSA Input'!J874=\"Yes\",'TSA Input'!J874=\"Contingent\"),'TSA Input'!C874,\"\"))","v":""},{"$f":"IF('TSA Input'!J874=\"\",\"\",IF(OR('TSA Input'!J874=\"Yes\",'TSA Input'!J874=\"Contingent\"),'TSA Input'!D874,\"\"))","v":""},{"$f":"IF('TSA Input'!J874=\"\",\"\",IF(OR('TSA Input'!J874=\"Yes\",'TSA Input'!J874=\"Contingent\"),'TSA Input'!G874,\"\"))","v":""},{"$f":"IF('TSA Input'!J874=\"\",\"\",IF(OR('TSA Input'!J874=\"Yes\",'TSA Input'!J874=\"Contingent\"),'TSA Input'!F874,\"\"))","v":""},"",{"$f":"IF('TSA Input'!J874=\"\",\"\",IF(OR('TSA Input'!J874=\"Yes\",'TSA Input'!J874=\"Contingent\"),'TSA Input'!D874,\"\"))","v":""},{"$f":"IF('TSA Input'!J874=\"\",\"\",IF(OR('TSA Input'!J874=\"Yes\",'TSA Input'!J874=\"Contingent\"),'TSA Input'!G874,\"\"))","v":""},{"$f":"IF('TSA Input'!J874=\"\",\"\",IF(OR('TSA Input'!J874=\"Yes\",'TSA Input'!J874=\"Contingent\"),'TSA Input'!F874,\"\"))","v":""},"","Required","Required"]
["",null,{"$f":"IF('TSA Input'!J875=\"\",\"\",IF(OR('TSA Input'!J875=\"Yes\",'TSA Input'!J875=\"Contingent\"),'TSA Input'!B875,\"Ineligible\"))","v":""},{"$f":"IF('TSA Input'!J875=\"\",\"\",IF(OR('TSA Input'!J875=\"Yes\",'TSA Input'!J875=\"Contingent\"),'TSA Input'!I875,\"\"))","v":""},{"$f":"IF('TSA Input'!J875=\"\",\"\",IF(OR('TSA Input'!J875=\"Yes\",'TSA Input'!J875=\"Contingent\"),'TSA Input'!C875,\"\"))","v":""},{"$f":"IF('TSA Input'!J875=\"\",\"\",IF(OR('TSA Input'!J875=\"Yes\",'TSA Input'!J875=\"Contingent\"),'TSA Input'!D875,\"\"))","v":""},{"$f":"IF('TSA Input'!J875=\"\",\"\",IF(OR('TSA Input'!J875=\"Yes\",'TSA Input'!J875=\"Contingent\"),'TSA Input'!G875,\"\"))","v":""},{"$f":"IF('TSA Input'!J875=\"\",\"\",IF(OR('TSA Input'!J875=\"Yes\",'TSA Input'!J875=\"Contingent\"),'TSA Input'!F875,\"\"))","v":""},"",{"$f":"IF('TSA Input'!J875=\"\",\"\",IF(OR('TSA Input'!J875=\"Yes\",'TSA Input'!J875=\"Contingent\"),'TSA Input'!D875,\"\"))","v":""},{"$f":"IF('TSA Input'!J875=\"\",\"\",IF(OR('TSA Input'!J875=\"Yes\",'TSA Input'!J875=\"Contingent\"),'TSA Input'!G875,\"\"))","v":""},{"$f":"IF('TSA Input'!J875=\"\",\"\",IF(OR('TSA Input'!J875=\"Yes\",'TSA Input'!J875=\"Contingent\"),'TSA Input'!F875,\"\"))","v":""},"","Required","Required"]
["",null,{"$f":"IF('TSA Input'!J876=\"\",\"\",IF(OR('TSA Input'!J876=\"Yes\",'TSA Input'!J876=\"Contingent\"),'TSA Input'!B876,\"Ineligible\"))","v":""},{"$f":"IF('TSA Input'!J876=\"\",\"\",IF(OR('TSA Input'!J876=\"Yes\",'TSA Input'!J876=\"Contingent\"),'TSA Input'!I876,\"\"))","v":""},{"$f":"IF('TSA Input'!J876=\"\",\"\",IF(OR('TSA Input'!J876=\"Yes\",'TSA Input'!J876=\"Contingent\"),'TSA Input'!C876,\"\"))","v":""},{"$f":"IF('TSA Input'!J876=\"\",\"\",IF(OR('TSA Input'!J876=\"Yes\",'TSA Input'!J876=\"Contingent\"),'TSA Input'!D876,\"\"))","v":""},{"$f":"IF('TSA Input'!J876=\"\",\"\",IF(OR('TSA Input'!J876=\"Yes\",'TSA Input'!J876=\"Contingent\"),'TSA Input'!G876,\"\"))","v":""},{"$f":"IF('TSA Input'!J876=\"\",\"\",IF(OR('TSA Input'!J876=\"Yes\",'TSA Input'!J876=\"Contingent\"),'TSA Input'!F876,\"\"))","v":""},"",{"$f":"IF('TSA Input'!J876=\"\",\"\",IF(OR('TSA Input'!J876=\"Yes\",'TSA Input'!J876=\"Contingent\"),'TSA Input'!D876,\"\"))","v":""},{"$f":"IF('TSA Input'!J876=\"\",\"\",IF(OR('TSA Input'!J876=\"Yes\",'TSA Input'!J876=\"Contingent\"),'TSA Input'!G876,\"\"))","v":""},{"$f":"IF('TSA Input'!J876=\"\",\"\",IF(OR('TSA Input'!J876=\"Yes\",'TSA Input'!J876=\"Contingent\"),'TSA Input'!F876,\"\"))","v":""},"","Required","Required"]
["",null,{"$f":"IF('TSA Input'!J877=\"\",\"\",IF(OR('TSA Input'!J877=\"Yes\",'TSA Input'!J877=\"Contingent\"),'TSA Input'!B877,\"Ineligible\"))","v":""},{"$f":"IF('TSA Input'!J877=\"\",\"\",IF(OR('TSA Input'!J877=\"Yes\",'TSA Input'!J877=\"Contingent\"),'TSA Input'!I877,\"\"))","v":""},{"$f":"IF('TSA Input'!J877=\"\",\"\",IF(OR('TSA Input'!J877=\"Yes\",'TSA Input'!J877=\"Contingent\"),'TSA Input'!C877,\"\"))","v":""},{"$f":"IF('TSA Input'!J877=\"\",\"\",IF(OR('TSA Input'!J877=\"Yes\",'TSA Input'!J877=\"Contingent\"),'TSA Input'!D877,\"\"))","v":""},{"$f":"IF('TSA Input'!J877=\"\",\"\",IF(OR('TSA Input'!J877=\"Yes\",'TSA Input'!J877=\"Contingent\"),'TSA Input'!G877,\"\"))","v":""},{"$f":"IF('TSA Input'!J877=\"\",\"\",IF(OR('TSA Input'!J877=\"Yes\",'TSA Input'!J877=\"Contingent\"),'TSA Input'!F877,\"\"))","v":""},"",{"$f":"IF('TSA Input'!J877=\"\",\"\",IF(OR('TSA Input'!J877=\"Yes\",'TSA Input'!J877=\"Contingent\"),'TSA Input'!D877,\"\"))","v":""},{"$f":"IF('TSA Input'!J877=\"\",\"\",IF(OR('TSA Input'!J877=\"Yes\",'TSA Input'!J877=\"Contingent\"),'TSA Input'!G877,\"\"))","v":""},{"$f":"IF('TSA Input'!J877=\"\",\"\",IF(OR('TSA Input'!J877=\"Yes\",'TSA Input'!J877=\"Contingent\"),'TSA Input'!F877,\"\"))","v":""},"","Required","Required"]
["",null,{"$f":"IF('TSA Input'!J878=\"\",\"\",IF(OR('TSA Input'!J878=\"Yes\",'TSA Input'!J878=\"Contingent\"),'TSA Input'!B878,\"Ineligible\"))","v":""},{"$f":"IF('TSA Input'!J878=\"\",\"\",IF(OR('TSA Input'!J878=\"Yes\",'TSA Input'!J878=\"Contingent\"),'TSA Input'!I878,\"\"))","v":""},{"$f":"IF('TSA Input'!J878=\"\",\"\",IF(OR('TSA Input'!J878=\"Yes\",'TSA Input'!J878=\"Contingent\"),'TSA Input'!C878,\"\"))","v":""},{"$f":"IF('TSA Input'!J878=\"\",\"\",IF(OR('TSA Input'!J878=\"Yes\",'TSA Input'!J878=\"Contingent\"),'TSA Input'!D878,\"\"))","v":""},{"$f":"IF('TSA Input'!J878=\"\",\"\",IF(OR('TSA Input'!J878=\"Yes\",'TSA Input'!J878=\"Contingent\"),'TSA Input'!G878,\"\"))","v":""},{"$f":"IF('TSA Input'!J878=\"\",\"\",IF(OR('TSA Input'!J878=\"Yes\",'TSA Input'!J878=\"Contingent\"),'TSA Input'!F878,\"\"))","v":""},"",{"$f":"IF('TSA Input'!J878=\"\",\"\",IF(OR('TSA Input'!J878=\"Yes\",'TSA Input'!J878=\"Contingent\"),'TSA Input'!D878,\"\"))","v":""},{"$f":"IF('TSA Input'!J878=\"\",\"\",IF(OR('TSA Input'!J878=\"Yes\",'TSA Input'!J878=\"Contingent\"),'TSA Input'!G878,\"\"))","v":""},{"$f":"IF('TSA Input'!J878=\"\",\"\",IF(OR('TSA Input'!J878=\"Yes\",'TSA Input'!J878=\"Contingent\"),'TSA Input'!F878,\"\"))","v":""},"","Required","Required"]
["",null,{"$f":"IF('TSA Input'!J879=\"\",\"\",IF(OR('TSA Input'!J879=\"Yes\",'TSA Input'!J879=\"Contingent\"),'TSA Input'!B879,\"Ineligible\"))","v":""},{"$f":"IF('TSA Input'!J879=\"\",\"\",IF(OR('TSA Input'!J879=\"Yes\",'TSA Input'!J879=\"Contingent\"),'TSA Input'!I879,\"\"))","v":""},{"$f":"IF('TSA Input'!J879=\"\",\"\",IF(OR('TSA Input'!J879=\"Yes\",'TSA Input'!J879=\"Contingent\"),'TSA Input'!C879,\"\"))","v":""},{"$f":"IF('TSA Input'!J879=\"\",\"\",IF(OR('TSA Input'!J879=\"Yes\",'TSA Input'!J879=\"Contingent\"),'TSA Input'!D879,\"\"))","v":""},{"$f":"IF('TSA Input'!J879=\"\",\"\",IF(OR('TSA Input'!J879=\"Yes\",'TSA Input'!J879=\"Contingent\"),'TSA Input'!G879,\"\"))","v":""},{"$f":"IF('TSA Input'!J879=\"\",\"\",IF(OR('TSA Input'!J879=\"Yes\",'TSA Input'!J879=\"Contingent\"),'TSA Input'!F879,\"\"))","v":""},"",{"$f":"IF('TSA Input'!J879=\"\",\"\",IF(OR('TSA Input'!J879=\"Yes\",'TSA Input'!J879=\"Contingent\"),'TSA Input'!D879,\"\"))","v":""},{"$f":"IF('TSA Input'!J879=\"\",\"\",IF(OR('TSA Input'!J879=\"Yes\",'TSA Input'!J879=\"Contingent\"),'TSA Input'!G879,\"\"))","v":""},{"$f":"IF('TSA Input'!J879=\"\",\"\",IF(OR('TSA Input'!J879=\"Yes\",'TSA Input'!J879=\"Contingent\"),'TSA Input'!F879,\"\"))","v":""},"","Required","Required"]
["",null,{"$f":"IF('TSA Input'!J880=\"\",\"\",IF(OR('TSA Input'!J880=\"Yes\",'TSA Input'!J880=\"Contingent\"),'TSA Input'!B880,\"Ineligible\"))","v":""},{"$f":"IF('TSA Input'!J880=\"\",\"\",IF(OR('TSA Input'!J880=\"Yes\",'TSA Input'!J880=\"Contingent\"),'TSA Input'!I880,\"\"))","v":""},{"$f":"IF('TSA Input'!J880=\"\",\"\",IF(OR('TSA Input'!J880=\"Yes\",'TSA Input'!J880=\"Contingent\"),'TSA Input'!C880,\"\"))","v":""},{"$f":"IF('TSA Input'!J880=\"\",\"\",IF(OR('TSA Input'!J880=\"Yes\",'TSA Input'!J880=\"Contingent\"),'TSA Input'!D880,\"\"))","v":""},{"$f":"IF('TSA Input'!J880=\"\",\"\",IF(OR('TSA Input'!J880=\"Yes\",'TSA Input'!J880=\"Contingent\"),'TSA Input'!G880,\"\"))","v":""},{"$f":"IF('TSA Input'!J880=\"\",\"\",IF(OR('TSA Input'!J880=\"Yes\",'TSA Input'!J880=\"Contingent\"),'TSA Input'!F880,\"\"))","v":""},"",{"$f":"IF('TSA Input'!J880=\"\",\"\",IF(OR('TSA Input'!J880=\"Yes\",'TSA Input'!J880=\"Contingent\"),'TSA Input'!D880,\"\"))","v":""},{"$f":"IF('TSA Input'!J880=\"\",\"\",IF(OR('TSA Input'!J880=\"Yes\",'TSA Input'!J880=\"Contingent\"),'TSA Input'!G880,\"\"))","v":""},{"$f":"IF('TSA Input'!J880=\"\",\"\",IF(OR('TSA Input'!J880=\"Yes\",'TSA Input'!J880=\"Contingent\"),'TSA Input'!F880,\"\"))","v":""},"","Required","Required"]
["",null,{"$f":"IF('TSA Input'!J881=\"\",\"\",IF(OR('TSA Input'!J881=\"Yes\",'TSA Input'!J881=\"Contingent\"),'TSA Input'!B881,\"Ineligible\"))","v":""},{"$f":"IF('TSA Input'!J881=\"\",\"\",IF(OR('TSA Input'!J881=\"Yes\",'TSA Input'!J881=\"Contingent\"),'TSA Input'!I881,\"\"))","v":""},{"$f":"IF('TSA Input'!J881=\"\",\"\",IF(OR('TSA Input'!J881=\"Yes\",'TSA Input'!J881=\"Contingent\"),'TSA Input'!C881,\"\"))","v":""},{"$f":"IF('TSA Input'!J881=\"\",\"\",IF(OR('TSA Input'!J881=\"Yes\",'TSA Input'!J881=\"Contingent\"),'TSA Input'!D881,\"\"))","v":""},{"$f":"IF('TSA Input'!J881=\"\",\"\",IF(OR('TSA Input'!J881=\"Yes\",'TSA Input'!J881=\"Contingent\"),'TSA Input'!G881,\"\"))","v":""},{"$f":"IF('TSA Input'!J881=\"\",\"\",IF(OR('TSA Input'!J881=\"Yes\",'TSA Input'!J881=\"Contingent\"),'TSA Input'!F881,\"\"))","v":""},"",{"$f":"IF('TSA Input'!J881=\"\",\"\",IF(OR('TSA Input'!J881=\"Yes\",'TSA Input'!J881=\"Contingent\"),'TSA Input'!D881,\"\"))","v":""},{"$f":"IF('TSA Input'!J881=\"\",\"\",IF(OR('TSA Input'!J881=\"Yes\",'TSA Input'!J881=\"Contingent\"),'TSA Input'!G881,\"\"))","v":""},{"$f":"IF('TSA Input'!J881=\"\",\"\",IF(OR('TSA Input'!J881=\"Yes\",'TSA Input'!J881=\"Contingent\"),'TSA Input'!F881,\"\"))","v":""},"","Required","Required"]
["",null,{"$f":"IF('TSA Input'!J882=\"\",\"\",IF(OR('TSA Input'!J882=\"Yes\",'TSA Input'!J882=\"Contingent\"),'TSA Input'!B882,\"Ineligible\"))","v":""},{"$f":"IF('TSA Input'!J882=\"\",\"\",IF(OR('TSA Input'!J882=\"Yes\",'TSA Input'!J882=\"Contingent\"),'TSA Input'!I882,\"\"))","v":""},{"$f":"IF('TSA Input'!J882=\"\",\"\",IF(OR('TSA Input'!J882=\"Yes\",'TSA Input'!J882=\"Contingent\"),'TSA Input'!C882,\"\"))","v":""},{"$f":"IF('TSA Input'!J882=\"\",\"\",IF(OR('TSA Input'!J882=\"Yes\",'TSA Input'!J882=\"Contingent\"),'TSA Input'!D882,\"\"))","v":""},{"$f":"IF('TSA Input'!J882=\"\",\"\",IF(OR('TSA Input'!J882=\"Yes\",'TSA Input'!J882=\"Contingent\"),'TSA Input'!G882,\"\"))","v":""},{"$f":"IF('TSA Input'!J882=\"\",\"\",IF(OR('TSA Input'!J882=\"Yes\",'TSA Input'!J882=\"Contingent\"),'TSA Input'!F882,\"\"))","v":""},"",{"$f":"IF('TSA Input'!J882=\"\",\"\",IF(OR('TSA Input'!J882=\"Yes\",'TSA Input'!J882=\"Contingent\"),'TSA Input'!D882,\"\"))","v":""},{"$f":"IF('TSA Input'!J882=\"\",\"\",IF(OR('TSA Input'!J882=\"Yes\",'TSA Input'!J882=\"Contingent\"),'TSA Input'!G882,\"\"))","v":""},{"$f":"IF('TSA Input'!J882=\"\",\"\",IF(OR('TSA Input'!J882=\"Yes\",'TSA Input'!J882=\"Contingent\"),'TSA Input'!F882,\"\"))","v":""},"","Required","Required"]
["",null,{"$f":"IF('TSA Input'!J883=\"\",\"\",IF(OR('TSA Input'!J883=\"Yes\",'TSA Input'!J883=\"Contingent\"),'TSA Input'!B883,\"Ineligible\"))","v":""},{"$f":"IF('TSA Input'!J883=\"\",\"\",IF(OR('TSA Input'!J883=\"Yes\",'TSA Input'!J883=\"Contingent\"),'TSA Input'!I883,\"\"))","v":""},{"$f":"IF('TSA Input'!J883=\"\",\"\",IF(OR('TSA Input'!J883=\"Yes\",'TSA Input'!J883=\"Contingent\"),'TSA Input'!C883,\"\"))","v":""},{"$f":"IF('TSA Input'!J883=\"\",\"\",IF(OR('TSA Input'!J883=\"Yes\",'TSA Input'!J883=\"Contingent\"),'TSA Input'!D883,\"\"))","v":""},{"$f":"IF('TSA Input'!J883=\"\",\"\",IF(OR('TSA Input'!J883=\"Yes\",'TSA Input'!J883=\"Contingent\"),'TSA Input'!G883,\"\"))","v":""},{"$f":"IF('TSA Input'!J883=\"\",\"\",IF(OR('TSA Input'!J883=\"Yes\",'TSA Input'!J883=\"Contingent\"),'TSA Input'!F883,\"\"))","v":""},"",{"$f":"IF('TSA Input'!J883=\"\",\"\",IF(OR('TSA Input'!J883=\"Yes\",'TSA Input'!J883=\"Contingent\"),'TSA Input'!D883,\"\"))","v":""},{"$f":"IF('TSA Input'!J883=\"\",\"\",IF(OR('TSA Input'!J883=\"Yes\",'TSA Input'!J883=\"Contingent\"),'TSA Input'!G883,\"\"))","v":""},{"$f":"IF('TSA Input'!J883=\"\",\"\",IF(OR('TSA Input'!J883=\"Yes\",'TSA Input'!J883=\"Contingent\"),'TSA Input'!F883,\"\"))","v":""},"","Required","Required"]
["",null,{"$f":"IF('TSA Input'!J884=\"\",\"\",IF(OR('TSA Input'!J884=\"Yes\",'TSA Input'!J884=\"Contingent\"),'TSA Input'!B884,\"Ineligible\"))","v":""},{"$f":"IF('TSA Input'!J884=\"\",\"\",IF(OR('TSA Input'!J884=\"Yes\",'TSA Input'!J884=\"Contingent\"),'TSA Input'!I884,\"\"))","v":""},{"$f":"IF('TSA Input'!J884=\"\",\"\",IF(OR('TSA Input'!J884=\"Yes\",'TSA Input'!J884=\"Contingent\"),'TSA Input'!C884,\"\"))","v":""},{"$f":"IF('TSA Input'!J884=\"\",\"\",IF(OR('TSA Input'!J884=\"Yes\",'TSA Input'!J884=\"Contingent\"),'TSA Input'!D884,\"\"))","v":""},{"$f":"IF('TSA Input'!J884=\"\",\"\",IF(OR('TSA Input'!J884=\"Yes\",'TSA Input'!J884=\"Contingent\"),'TSA Input'!G884,\"\"))","v":""},{"$f":"IF('TSA Input'!J884=\"\",\"\",IF(OR('TSA Input'!J884=\"Yes\",'TSA Input'!J884=\"Contingent\"),'TSA Input'!F884,\"\"))","v":""},"",{"$f":"IF('TSA Input'!J884=\"\",\"\",IF(OR('TSA Input'!J884=\"Yes\",'TSA Input'!J884=\"Contingent\"),'TSA Input'!D884,\"\"))","v":""},{"$f":"IF('TSA Input'!J884=\"\",\"\",IF(OR('TSA Input'!J884=\"Yes\",'TSA Input'!J884=\"Contingent\"),'TSA Input'!G884,\"\"))","v":""},{"$f":"IF('TSA Input'!J884=\"\",\"\",IF(OR('TSA Input'!J884=\"Yes\",'TSA Input'!J884=\"Contingent\"),'TSA Input'!F884,\"\"))","v":""},"","Required","Required"]
["",null,{"$f":"IF('TSA Input'!J885=\"\",\"\",IF(OR('TSA Input'!J885=\"Yes\",'TSA Input'!J885=\"Contingent\"),'TSA Input'!B885,\"Ineligible\"))","v":""},{"$f":"IF('TSA Input'!J885=\"\",\"\",IF(OR('TSA Input'!J885=\"Yes\",'TSA Input'!J885=\"Contingent\"),'TSA Input'!I885,\"\"))","v":""},{"$f":"IF('TSA Input'!J885=\"\",\"\",IF(OR('TSA Input'!J885=\"Yes\",'TSA Input'!J885=\"Contingent\"),'TSA Input'!C885,\"\"))","v":""},{"$f":"IF('TSA Input'!J885=\"\",\"\",IF(OR('TSA Input'!J885=\"Yes\",'TSA Input'!J885=\"Contingent\"),'TSA Input'!D885,\"\"))","v":""},{"$f":"IF('TSA Input'!J885=\"\",\"\",IF(OR('TSA Input'!J885=\"Yes\",'TSA Input'!J885=\"Contingent\"),'TSA Input'!G885,\"\"))","v":""},{"$f":"IF('TSA Input'!J885=\"\",\"\",IF(OR('TSA Input'!J885=\"Yes\",'TSA Input'!J885=\"Contingent\"),'TSA Input'!F885,\"\"))","v":""},"",{"$f":"IF('TSA Input'!J885=\"\",\"\",IF(OR('TSA Input'!J885=\"Yes\",'TSA Input'!J885=\"Contingent\"),'TSA Input'!D885,\"\"))","v":""},{"$f":"IF('TSA Input'!J885=\"\",\"\",IF(OR('TSA Input'!J885=\"Yes\",'TSA Input'!J885=\"Contingent\"),'TSA Input'!G885,\"\"))","v":""},{"$f":"IF('TSA Input'!J885=\"\",\"\",IF(OR('TSA Input'!J885=\"Yes\",'TSA Input'!J885=\"Contingent\"),'TSA Input'!F885,\"\"))","v":""},"","Required","Required"]
["",null,{"$f":"IF('TSA Input'!J886=\"\",\"\",IF(OR('TSA Input'!J886=\"Yes\",'TSA Input'!J886=\"Contingent\"),'TSA Input'!B886,\"Ineligible\"))","v":""},{"$f":"IF('TSA Input'!J886=\"\",\"\",IF(OR('TSA Input'!J886=\"Yes\",'TSA Input'!J886=\"Contingent\"),'TSA Input'!I886,\"\"))","v":""},{"$f":"IF('TSA Input'!J886=\"\",\"\",IF(OR('TSA Input'!J886=\"Yes\",'TSA Input'!J886=\"Contingent\"),'TSA Input'!C886,\"\"))","v":""},{"$f":"IF('TSA Input'!J886=\"\",\"\",IF(OR('TSA Input'!J886=\"Yes\",'TSA Input'!J886=\"Contingent\"),'TSA Input'!D886,\"\"))","v":""},{"$f":"IF('TSA Input'!J886=\"\",\"\",IF(OR('TSA Input'!J886=\"Yes\",'TSA Input'!J886=\"Contingent\"),'TSA Input'!G886,\"\"))","v":""},{"$f":"IF('TSA Input'!J886=\"\",\"\",IF(OR('TSA Input'!J886=\"Yes\",'TSA Input'!J886=\"Contingent\"),'TSA Input'!F886,\"\"))","v":""},"",{"$f":"IF('TSA Input'!J886=\"\",\"\",IF(OR('TSA Input'!J886=\"Yes\",'TSA Input'!J886=\"Contingent\"),'TSA Input'!D886,\"\"))","v":""},{"$f":"IF('TSA Input'!J886=\"\",\"\",IF(OR('TSA Input'!J886=\"Yes\",'TSA Input'!J886=\"Contingent\"),'TSA Input'!G886,\"\"))","v":""},{"$f":"IF('TSA Input'!J886=\"\",\"\",IF(OR('TSA Input'!J886=\"Yes\",'TSA Input'!J886=\"Contingent\"),'TSA Input'!F886,\"\"))","v":""},"","Required","Required"]
["",null,{"$f":"IF('TSA Input'!J887=\"\",\"\",IF(OR('TSA Input'!J887=\"Yes\",'TSA Input'!J887=\"Contingent\"),'TSA Input'!B887,\"Ineligible\"))","v":""},{"$f":"IF('TSA Input'!J887=\"\",\"\",IF(OR('TSA Input'!J887=\"Yes\",'TSA Input'!J887=\"Contingent\"),'TSA Input'!I887,\"\"))","v":""},{"$f":"IF('TSA Input'!J887=\"\",\"\",IF(OR('TSA Input'!J887=\"Yes\",'TSA Input'!J887=\"Contingent\"),'TSA Input'!C887,\"\"))","v":""},{"$f":"IF('TSA Input'!J887=\"\",\"\",IF(OR('TSA Input'!J887=\"Yes\",'TSA Input'!J887=\"Contingent\"),'TSA Input'!D887,\"\"))","v":""},{"$f":"IF('TSA Input'!J887=\"\",\"\",IF(OR('TSA Input'!J887=\"Yes\",'TSA Input'!J887=\"Contingent\"),'TSA Input'!G887,\"\"))","v":""},{"$f":"IF('TSA Input'!J887=\"\",\"\",IF(OR('TSA Input'!J887=\"Yes\",'TSA Input'!J887=\"Contingent\"),'TSA Input'!F887,\"\"))","v":""},"",{"$f":"IF('TSA Input'!J887=\"\",\"\",IF(OR('TSA Input'!J887=\"Yes\",'TSA Input'!J887=\"Contingent\"),'TSA Input'!D887,\"\"))","v":""},{"$f":"IF('TSA Input'!J887=\"\",\"\",IF(OR('TSA Input'!J887=\"Yes\",'TSA Input'!J887=\"Contingent\"),'TSA Input'!G887,\"\"))","v":""},{"$f":"IF('TSA Input'!J887=\"\",\"\",IF(OR('TSA Input'!J887=\"Yes\",'TSA Input'!J887=\"Contingent\"),'TSA Input'!F887,\"\"))","v":""},"","Required","Required"]
["",null,{"$f":"IF('TSA Input'!J888=\"\",\"\",IF(OR('TSA Input'!J888=\"Yes\",'TSA Input'!J888=\"Contingent\"),'TSA Input'!B888,\"Ineligible\"))","v":""},{"$f":"IF('TSA Input'!J888=\"\",\"\",IF(OR('TSA Input'!J888=\"Yes\",'TSA Input'!J888=\"Contingent\"),'TSA Input'!I888,\"\"))","v":""},{"$f":"IF('TSA Input'!J888=\"\",\"\",IF(OR('TSA Input'!J888=\"Yes\",'TSA Input'!J888=\"Contingent\"),'TSA Input'!C888,\"\"))","v":""},{"$f":"IF('TSA Input'!J888=\"\",\"\",IF(OR('TSA Input'!J888=\"Yes\",'TSA Input'!J888=\"Contingent\"),'TSA Input'!D888,\"\"))","v":""},{"$f":"IF('TSA Input'!J888=\"\",\"\",IF(OR('TSA Input'!J888=\"Yes\",'TSA Input'!J888=\"Contingent\"),'TSA Input'!G888,\"\"))","v":""},{"$f":"IF('TSA Input'!J888=\"\",\"\",IF(OR('TSA Input'!J888=\"Yes\",'TSA Input'!J888=\"Contingent\"),'TSA Input'!F888,\"\"))","v":""},"",{"$f":"IF('TSA Input'!J888=\"\",\"\",IF(OR('TSA Input'!J888=\"Yes\",'TSA Input'!J888=\"Contingent\"),'TSA Input'!D888,\"\"))","v":""},{"$f":"IF('TSA Input'!J888=\"\",\"\",IF(OR('TSA Input'!J888=\"Yes\",'TSA Input'!J888=\"Contingent\"),'TSA Input'!G888,\"\"))","v":""},{"$f":"IF('TSA Input'!J888=\"\",\"\",IF(OR('TSA Input'!J888=\"Yes\",'TSA Input'!J888=\"Contingent\"),'TSA Input'!F888,\"\"))","v":""},"","Required","Required"]
["",null,{"$f":"IF('TSA Input'!J889=\"\",\"\",IF(OR('TSA Input'!J889=\"Yes\",'TSA Input'!J889=\"Contingent\"),'TSA Input'!B889,\"Ineligible\"))","v":""},{"$f":"IF('TSA Input'!J889=\"\",\"\",IF(OR('TSA Input'!J889=\"Yes\",'TSA Input'!J889=\"Contingent\"),'TSA Input'!I889,\"\"))","v":""},{"$f":"IF('TSA Input'!J889=\"\",\"\",IF(OR('TSA Input'!J889=\"Yes\",'TSA Input'!J889=\"Contingent\"),'TSA Input'!C889,\"\"))","v":""},{"$f":"IF('TSA Input'!J889=\"\",\"\",IF(OR('TSA Input'!J889=\"Yes\",'TSA Input'!J889=\"Contingent\"),'TSA Input'!D889,\"\"))","v":""},{"$f":"IF('TSA Input'!J889=\"\",\"\",IF(OR('TSA Input'!J889=\"Yes\",'TSA Input'!J889=\"Contingent\"),'TSA Input'!G889,\"\"))","v":""},{"$f":"IF('TSA Input'!J889=\"\",\"\",IF(OR('TSA Input'!J889=\"Yes\",'TSA Input'!J889=\"Contingent\"),'TSA Input'!F889,\"\"))","v":""},"",{"$f":"IF('TSA Input'!J889=\"\",\"\",IF(OR('TSA Input'!J889=\"Yes\",'TSA Input'!J889=\"Contingent\"),'TSA Input'!D889,\"\"))","v":""},{"$f":"IF('TSA Input'!J889=\"\",\"\",IF(OR('TSA Input'!J889=\"Yes\",'TSA Input'!J889=\"Contingent\"),'TSA Input'!G889,\"\"))","v":""},{"$f":"IF('TSA Input'!J889=\"\",\"\",IF(OR('TSA Input'!J889=\"Yes\",'TSA Input'!J889=\"Contingent\"),'TSA Input'!F889,\"\"))","v":""},"","Required","Required"]
["",null,{"$f":"IF('TSA Input'!J890=\"\",\"\",IF(OR('TSA Input'!J890=\"Yes\",'TSA Input'!J890=\"Contingent\"),'TSA Input'!B890,\"Ineligible\"))","v":""},{"$f":"IF('TSA Input'!J890=\"\",\"\",IF(OR('TSA Input'!J890=\"Yes\",'TSA Input'!J890=\"Contingent\"),'TSA Input'!I890,\"\"))","v":""},{"$f":"IF('TSA Input'!J890=\"\",\"\",IF(OR('TSA Input'!J890=\"Yes\",'TSA Input'!J890=\"Contingent\"),'TSA Input'!C890,\"\"))","v":""},{"$f":"IF('TSA Input'!J890=\"\",\"\",IF(OR('TSA Input'!J890=\"Yes\",'TSA Input'!J890=\"Contingent\"),'TSA Input'!D890,\"\"))","v":""},{"$f":"IF('TSA Input'!J890=\"\",\"\",IF(OR('TSA Input'!J890=\"Yes\",'TSA Input'!J890=\"Contingent\"),'TSA Input'!G890,\"\"))","v":""},{"$f":"IF('TSA Input'!J890=\"\",\"\",IF(OR('TSA Input'!J890=\"Yes\",'TSA Input'!J890=\"Contingent\"),'TSA Input'!F890,\"\"))","v":""},"",{"$f":"IF('TSA Input'!J890=\"\",\"\",IF(OR('TSA Input'!J890=\"Yes\",'TSA Input'!J890=\"Contingent\"),'TSA Input'!D890,\"\"))","v":""},{"$f":"IF('TSA Input'!J890=\"\",\"\",IF(OR('TSA Input'!J890=\"Yes\",'TSA Input'!J890=\"Contingent\"),'TSA Input'!G890,\"\"))","v":""},{"$f":"IF('TSA Input'!J890=\"\",\"\",IF(OR('TSA Input'!J890=\"Yes\",'TSA Input'!J890=\"Contingent\"),'TSA Input'!F890,\"\"))","v":""},"","Required","Required"]
["",null,{"$f":"IF('TSA Input'!J891=\"\",\"\",IF(OR('TSA Input'!J891=\"Yes\",'TSA Input'!J891=\"Contingent\"),'TSA Input'!B891,\"Ineligible\"))","v":""},{"$f":"IF('TSA Input'!J891=\"\",\"\",IF(OR('TSA Input'!J891=\"Yes\",'TSA Input'!J891=\"Contingent\"),'TSA Input'!I891,\"\"))","v":""},{"$f":"IF('TSA Input'!J891=\"\",\"\",IF(OR('TSA Input'!J891=\"Yes\",'TSA Input'!J891=\"Contingent\"),'TSA Input'!C891,\"\"))","v":""},{"$f":"IF('TSA Input'!J891=\"\",\"\",IF(OR('TSA Input'!J891=\"Yes\",'TSA Input'!J891=\"Contingent\"),'TSA Input'!D891,\"\"))","v":""},{"$f":"IF('TSA Input'!J891=\"\",\"\",IF(OR('TSA Input'!J891=\"Yes\",'TSA Input'!J891=\"Contingent\"),'TSA Input'!G891,\"\"))","v":""},{"$f":"IF('TSA Input'!J891=\"\",\"\",IF(OR('TSA Input'!J891=\"Yes\",'TSA Input'!J891=\"Contingent\"),'TSA Input'!F891,\"\"))","v":""},"",{"$f":"IF('TSA Input'!J891=\"\",\"\",IF(OR('TSA Input'!J891=\"Yes\",'TSA Input'!J891=\"Contingent\"),'TSA Input'!D891,\"\"))","v":""},{"$f":"IF('TSA Input'!J891=\"\",\"\",IF(OR('TSA Input'!J891=\"Yes\",'TSA Input'!J891=\"Contingent\"),'TSA Input'!G891,\"\"))","v":""},{"$f":"IF('TSA Input'!J891=\"\",\"\",IF(OR('TSA Input'!J891=\"Yes\",'TSA Input'!J891=\"Contingent\"),'TSA Input'!F891,\"\"))","v":""},"","Required","Required"]
["",null,{"$f":"IF('TSA Input'!J892=\"\",\"\",IF(OR('TSA Input'!J892=\"Yes\",'TSA Input'!J892=\"Contingent\"),'TSA Input'!B892,\"Ineligible\"))","v":""},{"$f":"IF('TSA Input'!J892=\"\",\"\",IF(OR('TSA Input'!J892=\"Yes\",'TSA Input'!J892=\"Contingent\"),'TSA Input'!I892,\"\"))","v":""},{"$f":"IF('TSA Input'!J892=\"\",\"\",IF(OR('TSA Input'!J892=\"Yes\",'TSA Input'!J892=\"Contingent\"),'TSA Input'!C892,\"\"))","v":""},{"$f":"IF('TSA Input'!J892=\"\",\"\",IF(OR('TSA Input'!J892=\"Yes\",'TSA Input'!J892=\"Contingent\"),'TSA Input'!D892,\"\"))","v":""},{"$f":"IF('TSA Input'!J892=\"\",\"\",IF(OR('TSA Input'!J892=\"Yes\",'TSA Input'!J892=\"Contingent\"),'TSA Input'!G892,\"\"))","v":""},{"$f":"IF('TSA Input'!J892=\"\",\"\",IF(OR('TSA Input'!J892=\"Yes\",'TSA Input'!J892=\"Contingent\"),'TSA Input'!F892,\"\"))","v":""},"",{"$f":"IF('TSA Input'!J892=\"\",\"\",IF(OR('TSA Input'!J892=\"Yes\",'TSA Input'!J892=\"Contingent\"),'TSA Input'!D892,\"\"))","v":""},{"$f":"IF('TSA Input'!J892=\"\",\"\",IF(OR('TSA Input'!J892=\"Yes\",'TSA Input'!J892=\"Contingent\"),'TSA Input'!G892,\"\"))","v":""},{"$f":"IF('TSA Input'!J892=\"\",\"\",IF(OR('TSA Input'!J892=\"Yes\",'TSA Input'!J892=\"Contingent\"),'TSA Input'!F892,\"\"))","v":""},"","Required","Required"]
["",null,{"$f":"IF('TSA Input'!J893=\"\",\"\",IF(OR('TSA Input'!J893=\"Yes\",'TSA Input'!J893=\"Contingent\"),'TSA Input'!B893,\"Ineligible\"))","v":""},{"$f":"IF('TSA Input'!J893=\"\",\"\",IF(OR('TSA Input'!J893=\"Yes\",'TSA Input'!J893=\"Contingent\"),'TSA Input'!I893,\"\"))","v":""},{"$f":"IF('TSA Input'!J893=\"\",\"\",IF(OR('TSA Input'!J893=\"Yes\",'TSA Input'!J893=\"Contingent\"),'TSA Input'!C893,\"\"))","v":""},{"$f":"IF('TSA Input'!J893=\"\",\"\",IF(OR('TSA Input'!J893=\"Yes\",'TSA Input'!J893=\"Contingent\"),'TSA Input'!D893,\"\"))","v":""},{"$f":"IF('TSA Input'!J893=\"\",\"\",IF(OR('TSA Input'!J893=\"Yes\",'TSA Input'!J893=\"Contingent\"),'TSA Input'!G893,\"\"))","v":""},{"$f":"IF('TSA Input'!J893=\"\",\"\",IF(OR('TSA Input'!J893=\"Yes\",'TSA Input'!J893=\"Contingent\"),'TSA Input'!F893,\"\"))","v":""},"",{"$f":"IF('TSA Input'!J893=\"\",\"\",IF(OR('TSA Input'!J893=\"Yes\",'TSA Input'!J893=\"Contingent\"),'TSA Input'!D893,\"\"))","v":""},{"$f":"IF('TSA Input'!J893=\"\",\"\",IF(OR('TSA Input'!J893=\"Yes\",'TSA Input'!J893=\"Contingent\"),'TSA Input'!G893,\"\"))","v":""},{"$f":"IF('TSA Input'!J893=\"\",\"\",IF(OR('TSA Input'!J893=\"Yes\",'TSA Input'!J893=\"Contingent\"),'TSA Input'!F893,\"\"))","v":""},"","Required","Required"]
["",null,{"$f":"IF('TSA Input'!J894=\"\",\"\",IF(OR('TSA Input'!J894=\"Yes\",'TSA Input'!J894=\"Contingent\"),'TSA Input'!B894,\"Ineligible\"))","v":""},{"$f":"IF('TSA Input'!J894=\"\",\"\",IF(OR('TSA Input'!J894=\"Yes\",'TSA Input'!J894=\"Contingent\"),'TSA Input'!I894,\"\"))","v":""},{"$f":"IF('TSA Input'!J894=\"\",\"\",IF(OR('TSA Input'!J894=\"Yes\",'TSA Input'!J894=\"Contingent\"),'TSA Input'!C894,\"\"))","v":""},{"$f":"IF('TSA Input'!J894=\"\",\"\",IF(OR('TSA Input'!J894=\"Yes\",'TSA Input'!J894=\"Contingent\"),'TSA Input'!D894,\"\"))","v":""},{"$f":"IF('TSA Input'!J894=\"\",\"\",IF(OR('TSA Input'!J894=\"Yes\",'TSA Input'!J894=\"Contingent\"),'TSA Input'!G894,\"\"))","v":""},{"$f":"IF('TSA Input'!J894=\"\",\"\",IF(OR('TSA Input'!J894=\"Yes\",'TSA Input'!J894=\"Contingent\"),'TSA Input'!F894,\"\"))","v":""},"",{"$f":"IF('TSA Input'!J894=\"\",\"\",IF(OR('TSA Input'!J894=\"Yes\",'TSA Input'!J894=\"Contingent\"),'TSA Input'!D894,\"\"))","v":""},{"$f":"IF('TSA Input'!J894=\"\",\"\",IF(OR('TSA Input'!J894=\"Yes\",'TSA Input'!J894=\"Contingent\"),'TSA Input'!G894,\"\"))","v":""},{"$f":"IF('TSA Input'!J894=\"\",\"\",IF(OR('TSA Input'!J894=\"Yes\",'TSA Input'!J894=\"Contingent\"),'TSA Input'!F894,\"\"))","v":""},"","Required","Required"]
["",null,{"$f":"IF('TSA Input'!J895=\"\",\"\",IF(OR('TSA Input'!J895=\"Yes\",'TSA Input'!J895=\"Contingent\"),'TSA Input'!B895,\"Ineligible\"))","v":""},{"$f":"IF('TSA Input'!J895=\"\",\"\",IF(OR('TSA Input'!J895=\"Yes\",'TSA Input'!J895=\"Contingent\"),'TSA Input'!I895,\"\"))","v":""},{"$f":"IF('TSA Input'!J895=\"\",\"\",IF(OR('TSA Input'!J895=\"Yes\",'TSA Input'!J895=\"Contingent\"),'TSA Input'!C895,\"\"))","v":""},{"$f":"IF('TSA Input'!J895=\"\",\"\",IF(OR('TSA Input'!J895=\"Yes\",'TSA Input'!J895=\"Contingent\"),'TSA Input'!D895,\"\"))","v":""},{"$f":"IF('TSA Input'!J895=\"\",\"\",IF(OR('TSA Input'!J895=\"Yes\",'TSA Input'!J895=\"Contingent\"),'TSA Input'!G895,\"\"))","v":""},{"$f":"IF('TSA Input'!J895=\"\",\"\",IF(OR('TSA Input'!J895=\"Yes\",'TSA Input'!J895=\"Contingent\"),'TSA Input'!F895,\"\"))","v":""},"",{"$f":"IF('TSA Input'!J895=\"\",\"\",IF(OR('TSA Input'!J895=\"Yes\",'TSA Input'!J895=\"Contingent\"),'TSA Input'!D895,\"\"))","v":""},{"$f":"IF('TSA Input'!J895=\"\",\"\",IF(OR('TSA Input'!J895=\"Yes\",'TSA Input'!J895=\"Contingent\"),'TSA Input'!G895,\"\"))","v":""},{"$f":"IF('TSA Input'!J895=\"\",\"\",IF(OR('TSA Input'!J895=\"Yes\",'TSA Input'!J895=\"Contingent\"),'TSA Input'!F895,\"\"))","v":""},"","Required","Required"]
["",null,{"$f":"IF('TSA Input'!J896=\"\",\"\",IF(OR('TSA Input'!J896=\"Yes\",'TSA Input'!J896=\"Contingent\"),'TSA Input'!B896,\"Ineligible\"))","v":""},{"$f":"IF('TSA Input'!J896=\"\",\"\",IF(OR('TSA Input'!J896=\"Yes\",'TSA Input'!J896=\"Contingent\"),'TSA Input'!I896,\"\"))","v":""},{"$f":"IF('TSA Input'!J896=\"\",\"\",IF(OR('TSA Input'!J896=\"Yes\",'TSA Input'!J896=\"Contingent\"),'TSA Input'!C896,\"\"))","v":""},{"$f":"IF('TSA Input'!J896=\"\",\"\",IF(OR('TSA Input'!J896=\"Yes\",'TSA Input'!J896=\"Contingent\"),'TSA Input'!D896,\"\"))","v":""},{"$f":"IF('TSA Input'!J896=\"\",\"\",IF(OR('TSA Input'!J896=\"Yes\",'TSA Input'!J896=\"Contingent\"),'TSA Input'!G896,\"\"))","v":""},{"$f":"IF('TSA Input'!J896=\"\",\"\",IF(OR('TSA Input'!J896=\"Yes\",'TSA Input'!J896=\"Contingent\"),'TSA Input'!F896,\"\"))","v":""},"",{"$f":"IF('TSA Input'!J896=\"\",\"\",IF(OR('TSA Input'!J896=\"Yes\",'TSA Input'!J896=\"Contingent\"),'TSA Input'!D896,\"\"))","v":""},{"$f":"IF('TSA Input'!J896=\"\",\"\",IF(OR('TSA Input'!J896=\"Yes\",'TSA Input'!J896=\"Contingent\"),'TSA Input'!G896,\"\"))","v":""},{"$f":"IF('TSA Input'!J896=\"\",\"\",IF(OR('TSA Input'!J896=\"Yes\",'TSA Input'!J896=\"Contingent\"),'TSA Input'!F896,\"\"))","v":""},"","Required","Required"]
["",null,{"$f":"IF('TSA Input'!J897=\"\",\"\",IF(OR('TSA Input'!J897=\"Yes\",'TSA Input'!J897=\"Contingent\"),'TSA Input'!B897,\"Ineligible\"))","v":""},{"$f":"IF('TSA Input'!J897=\"\",\"\",IF(OR('TSA Input'!J897=\"Yes\",'TSA Input'!J897=\"Contingent\"),'TSA Input'!I897,\"\"))","v":""},{"$f":"IF('TSA Input'!J897=\"\",\"\",IF(OR('TSA Input'!J897=\"Yes\",'TSA Input'!J897=\"Contingent\"),'TSA Input'!C897,\"\"))","v":""},{"$f":"IF('TSA Input'!J897=\"\",\"\",IF(OR('TSA Input'!J897=\"Yes\",'TSA Input'!J897=\"Contingent\"),'TSA Input'!D897,\"\"))","v":""},{"$f":"IF('TSA Input'!J897=\"\",\"\",IF(OR('TSA Input'!J897=\"Yes\",'TSA Input'!J897=\"Contingent\"),'TSA Input'!G897,\"\"))","v":""},{"$f":"IF('TSA Input'!J897=\"\",\"\",IF(OR('TSA Input'!J897=\"Yes\",'TSA Input'!J897=\"Contingent\"),'TSA Input'!F897,\"\"))","v":""},"",{"$f":"IF('TSA Input'!J897=\"\",\"\",IF(OR('TSA Input'!J897=\"Yes\",'TSA Input'!J897=\"Contingent\"),'TSA Input'!D897,\"\"))","v":""},{"$f":"IF('TSA Input'!J897=\"\",\"\",IF(OR('TSA Input'!J897=\"Yes\",'TSA Input'!J897=\"Contingent\"),'TSA Input'!G897,\"\"))","v":""},{"$f":"IF('TSA Input'!J897=\"\",\"\",IF(OR('TSA Input'!J897=\"Yes\",'TSA Input'!J897=\"Contingent\"),'TSA Input'!F897,\"\"))","v":""},"","Required","Required"]
["",null,{"$f":"IF('TSA Input'!J898=\"\",\"\",IF(OR('TSA Input'!J898=\"Yes\",'TSA Input'!J898=\"Contingent\"),'TSA Input'!B898,\"Ineligible\"))","v":""},{"$f":"IF('TSA Input'!J898=\"\",\"\",IF(OR('TSA Input'!J898=\"Yes\",'TSA Input'!J898=\"Contingent\"),'TSA Input'!I898,\"\"))","v":""},{"$f":"IF('TSA Input'!J898=\"\",\"\",IF(OR('TSA Input'!J898=\"Yes\",'TSA Input'!J898=\"Contingent\"),'TSA Input'!C898,\"\"))","v":""},{"$f":"IF('TSA Input'!J898=\"\",\"\",IF(OR('TSA Input'!J898=\"Yes\",'TSA Input'!J898=\"Contingent\"),'TSA Input'!D898,\"\"))","v":""},{"$f":"IF('TSA Input'!J898=\"\",\"\",IF(OR('TSA Input'!J898=\"Yes\",'TSA Input'!J898=\"Contingent\"),'TSA Input'!G898,\"\"))","v":""},{"$f":"IF('TSA Input'!J898=\"\",\"\",IF(OR('TSA Input'!J898=\"Yes\",'TSA Input'!J898=\"Contingent\"),'TSA Input'!F898,\"\"))","v":""},"",{"$f":"IF('TSA Input'!J898=\"\",\"\",IF(OR('TSA Input'!J898=\"Yes\",'TSA Input'!J898=\"Contingent\"),'TSA Input'!D898,\"\"))","v":""},{"$f":"IF('TSA Input'!J898=\"\",\"\",IF(OR('TSA Input'!J898=\"Yes\",'TSA Input'!J898=\"Contingent\"),'TSA Input'!G898,\"\"))","v":""},{"$f":"IF('TSA Input'!J898=\"\",\"\",IF(OR('TSA Input'!J898=\"Yes\",'TSA Input'!J898=\"Contingent\"),'TSA Input'!F898,\"\"))","v":""},"","Required","Required"]
["",null,{"$f":"IF('TSA Input'!J899=\"\",\"\",IF(OR('TSA Input'!J899=\"Yes\",'TSA Input'!J899=\"Contingent\"),'TSA Input'!B899,\"Ineligible\"))","v":""},{"$f":"IF('TSA Input'!J899=\"\",\"\",IF(OR('TSA Input'!J899=\"Yes\",'TSA Input'!J899=\"Contingent\"),'TSA Input'!I899,\"\"))","v":""},{"$f":"IF('TSA Input'!J899=\"\",\"\",IF(OR('TSA Input'!J899=\"Yes\",'TSA Input'!J899=\"Contingent\"),'TSA Input'!C899,\"\"))","v":""},{"$f":"IF('TSA Input'!J899=\"\",\"\",IF(OR('TSA Input'!J899=\"Yes\",'TSA Input'!J899=\"Contingent\"),'TSA Input'!D899,\"\"))","v":""},{"$f":"IF('TSA Input'!J899=\"\",\"\",IF(OR('TSA Input'!J899=\"Yes\",'TSA Input'!J899=\"Contingent\"),'TSA Input'!G899,\"\"))","v":""},{"$f":"IF('TSA Input'!J899=\"\",\"\",IF(OR('TSA Input'!J899=\"Yes\",'TSA Input'!J899=\"Contingent\"),'TSA Input'!F899,\"\"))","v":""},"",{"$f":"IF('TSA Input'!J899=\"\",\"\",IF(OR('TSA Input'!J899=\"Yes\",'TSA Input'!J899=\"Contingent\"),'TSA Input'!D899,\"\"))","v":""},{"$f":"IF('TSA Input'!J899=\"\",\"\",IF(OR('TSA Input'!J899=\"Yes\",'TSA Input'!J899=\"Contingent\"),'TSA Input'!G899,\"\"))","v":""},{"$f":"IF('TSA Input'!J899=\"\",\"\",IF(OR('TSA Input'!J899=\"Yes\",'TSA Input'!J899=\"Contingent\"),'TSA Input'!F899,\"\"))","v":""},"","Required","Required"]
["",null,{"$f":"IF('TSA Input'!J900=\"\",\"\",IF(OR('TSA Input'!J900=\"Yes\",'TSA Input'!J900=\"Contingent\"),'TSA Input'!B900,\"Ineligible\"))","v":""},{"$f":"IF('TSA Input'!J900=\"\",\"\",IF(OR('TSA Input'!J900=\"Yes\",'TSA Input'!J900=\"Contingent\"),'TSA Input'!I900,\"\"))","v":""},{"$f":"IF('TSA Input'!J900=\"\",\"\",IF(OR('TSA Input'!J900=\"Yes\",'TSA Input'!J900=\"Contingent\"),'TSA Input'!C900,\"\"))","v":""},{"$f":"IF('TSA Input'!J900=\"\",\"\",IF(OR('TSA Input'!J900=\"Yes\",'TSA Input'!J900=\"Contingent\"),'TSA Input'!D900,\"\"))","v":""},{"$f":"IF('TSA Input'!J900=\"\",\"\",IF(OR('TSA Input'!J900=\"Yes\",'TSA Input'!J900=\"Contingent\"),'TSA Input'!G900,\"\"))","v":""},{"$f":"IF('TSA Input'!J900=\"\",\"\",IF(OR('TSA Input'!J900=\"Yes\",'TSA Input'!J900=\"Contingent\"),'TSA Input'!F900,\"\"))","v":""},{"$f":"IF($C938=\"\",\"\",SUM(F938:H938))","v":""},{"$f":"IF('TSA Input'!J900=\"\",\"\",IF(OR('TSA Input'!J900=\"Yes\",'TSA Input'!J900=\"Contingent\"),'TSA Input'!D900,\"\"))","v":""},{"$f":"IF('TSA Input'!J900=\"\",\"\",IF(OR('TSA Input'!J900=\"Yes\",'TSA Input'!J900=\"Contingent\"),'TSA Input'!G900,\"\"))","v":""},{"$f":"IF('TSA Input'!J900=\"\",\"\",IF(OR('TSA Input'!J900=\"Yes\",'TSA Input'!J900=\"Contingent\"),'TSA Input'!F900,\"\"))","v":""},{"$f":"IF($C938=\"\",\"\",SUM(J938:L938))","v":""},"Required","Required"]
["",null,{"$f":"IF('TSA Input'!J901=\"\",\"\",IF(OR('TSA Input'!J901=\"Yes\",'TSA Input'!J901=\"Contingent\"),'TSA Input'!B901,\"Ineligible\"))","v":""},{"$f":"IF('TSA Input'!J901=\"\",\"\",IF(OR('TSA Input'!J901=\"Yes\",'TSA Input'!J901=\"Contingent\"),'TSA Input'!I901,\"\"))","v":""},{"$f":"IF('TSA Input'!J901=\"\",\"\",IF(OR('TSA Input'!J901=\"Yes\",'TSA Input'!J901=\"Contingent\"),'TSA Input'!C901,\"\"))","v":""},{"$f":"IF('TSA Input'!J901=\"\",\"\",IF(OR('TSA Input'!J901=\"Yes\",'TSA Input'!J901=\"Contingent\"),'TSA Input'!D901,\"\"))","v":""},{"$f":"IF('TSA Input'!J901=\"\",\"\",IF(OR('TSA Input'!J901=\"Yes\",'TSA Input'!J901=\"Contingent\"),'TSA Input'!G901,\"\"))","v":""},{"$f":"IF('TSA Input'!J901=\"\",\"\",IF(OR('TSA Input'!J901=\"Yes\",'TSA Input'!J901=\"Contingent\"),'TSA Input'!F901,\"\"))","v":""},"",{"$f":"IF('TSA Input'!J901=\"\",\"\",IF(OR('TSA Input'!J901=\"Yes\",'TSA Input'!J901=\"Contingent\"),'TSA Input'!D901,\"\"))","v":""},{"$f":"IF('TSA Input'!J901=\"\",\"\",IF(OR('TSA Input'!J901=\"Yes\",'TSA Input'!J901=\"Contingent\"),'TSA Input'!G901,\"\"))","v":""},{"$f":"IF('TSA Input'!J901=\"\",\"\",IF(OR('TSA Input'!J901=\"Yes\",'TSA Input'!J901=\"Contingent\"),'TSA Input'!F901,\"\"))","v":""},"","Required","Required"]
["",null,{"$f":"IF('TSA Input'!J902=\"\",\"\",IF(OR('TSA Input'!J902=\"Yes\",'TSA Input'!J902=\"Contingent\"),'TSA Input'!B902,\"Ineligible\"))","v":""},{"$f":"IF('TSA Input'!J902=\"\",\"\",IF(OR('TSA Input'!J902=\"Yes\",'TSA Input'!J902=\"Contingent\"),'TSA Input'!I902,\"\"))","v":""},{"$f":"IF('TSA Input'!J902=\"\",\"\",IF(OR('TSA Input'!J902=\"Yes\",'TSA Input'!J902=\"Contingent\"),'TSA Input'!C902,\"\"))","v":""},{"$f":"IF('TSA Input'!J902=\"\",\"\",IF(OR('TSA Input'!J902=\"Yes\",'TSA Input'!J902=\"Contingent\"),'TSA Input'!D902,\"\"))","v":""},{"$f":"IF('TSA Input'!J902=\"\",\"\",IF(OR('TSA Input'!J902=\"Yes\",'TSA Input'!J902=\"Contingent\"),'TSA Input'!G902,\"\"))","v":""},{"$f":"IF('TSA Input'!J902=\"\",\"\",IF(OR('TSA Input'!J902=\"Yes\",'TSA Input'!J902=\"Contingent\"),'TSA Input'!F902,\"\"))","v":""},"",{"$f":"IF('TSA Input'!J902=\"\",\"\",IF(OR('TSA Input'!J902=\"Yes\",'TSA Input'!J902=\"Contingent\"),'TSA Input'!D902,\"\"))","v":""},{"$f":"IF('TSA Input'!J902=\"\",\"\",IF(OR('TSA Input'!J902=\"Yes\",'TSA Input'!J902=\"Contingent\"),'TSA Input'!G902,\"\"))","v":""},{"$f":"IF('TSA Input'!J902=\"\",\"\",IF(OR('TSA Input'!J902=\"Yes\",'TSA Input'!J902=\"Contingent\"),'TSA Input'!F902,\"\"))","v":""},"","Required","Required"]
["",null,{"$f":"IF('TSA Input'!J903=\"\",\"\",IF(OR('TSA Input'!J903=\"Yes\",'TSA Input'!J903=\"Contingent\"),'TSA Input'!B903,\"Ineligible\"))","v":""},{"$f":"IF('TSA Input'!J903=\"\",\"\",IF(OR('TSA Input'!J903=\"Yes\",'TSA Input'!J903=\"Contingent\"),'TSA Input'!I903,\"\"))","v":""},{"$f":"IF('TSA Input'!J903=\"\",\"\",IF(OR('TSA Input'!J903=\"Yes\",'TSA Input'!J903=\"Contingent\"),'TSA Input'!C903,\"\"))","v":""},{"$f":"IF('TSA Input'!J903=\"\",\"\",IF(OR('TSA Input'!J903=\"Yes\",'TSA Input'!J903=\"Contingent\"),'TSA Input'!D903,\"\"))","v":""},{"$f":"IF('TSA Input'!J903=\"\",\"\",IF(OR('TSA Input'!J903=\"Yes\",'TSA Input'!J903=\"Contingent\"),'TSA Input'!G903,\"\"))","v":""},{"$f":"IF('TSA Input'!J903=\"\",\"\",IF(OR('TSA Input'!J903=\"Yes\",'TSA Input'!J903=\"Contingent\"),'TSA Input'!F903,\"\"))","v":""},"",{"$f":"IF('TSA Input'!J903=\"\",\"\",IF(OR('TSA Input'!J903=\"Yes\",'TSA Input'!J903=\"Contingent\"),'TSA Input'!D903,\"\"))","v":""},{"$f":"IF('TSA Input'!J903=\"\",\"\",IF(OR('TSA Input'!J903=\"Yes\",'TSA Input'!J903=\"Contingent\"),'TSA Input'!G903,\"\"))","v":""},{"$f":"IF('TSA Input'!J903=\"\",\"\",IF(OR('TSA Input'!J903=\"Yes\",'TSA Input'!J903=\"Contingent\"),'TSA Input'!F903,\"\"))","v":""},"","Required","Required"]
["",null,{"$f":"IF('TSA Input'!J904=\"\",\"\",IF(OR('TSA Input'!J904=\"Yes\",'TSA Input'!J904=\"Contingent\"),'TSA Input'!B904,\"Ineligible\"))","v":""},{"$f":"IF('TSA Input'!J904=\"\",\"\",IF(OR('TSA Input'!J904=\"Yes\",'TSA Input'!J904=\"Contingent\"),'TSA Input'!I904,\"\"))","v":""},{"$f":"IF('TSA Input'!J904=\"\",\"\",IF(OR('TSA Input'!J904=\"Yes\",'TSA Input'!J904=\"Contingent\"),'TSA Input'!C904,\"\"))","v":""},{"$f":"IF('TSA Input'!J904=\"\",\"\",IF(OR('TSA Input'!J904=\"Yes\",'TSA Input'!J904=\"Contingent\"),'TSA Input'!D904,\"\"))","v":""},{"$f":"IF('TSA Input'!J904=\"\",\"\",IF(OR('TSA Input'!J904=\"Yes\",'TSA Input'!J904=\"Contingent\"),'TSA Input'!G904,\"\"))","v":""},{"$f":"IF('TSA Input'!J904=\"\",\"\",IF(OR('TSA Input'!J904=\"Yes\",'TSA Input'!J904=\"Contingent\"),'TSA Input'!F904,\"\"))","v":""},"",{"$f":"IF('TSA Input'!J904=\"\",\"\",IF(OR('TSA Input'!J904=\"Yes\",'TSA Input'!J904=\"Contingent\"),'TSA Input'!D904,\"\"))","v":""},{"$f":"IF('TSA Input'!J904=\"\",\"\",IF(OR('TSA Input'!J904=\"Yes\",'TSA Input'!J904=\"Contingent\"),'TSA Input'!G904,\"\"))","v":""},{"$f":"IF('TSA Input'!J904=\"\",\"\",IF(OR('TSA Input'!J904=\"Yes\",'TSA Input'!J904=\"Contingent\"),'TSA Input'!F904,\"\"))","v":""},"","Required","Required"]
["",null,{"$f":"IF('TSA Input'!J905=\"\",\"\",IF(OR('TSA Input'!J905=\"Yes\",'TSA Input'!J905=\"Contingent\"),'TSA Input'!B905,\"Ineligible\"))","v":""},{"$f":"IF('TSA Input'!J905=\"\",\"\",IF(OR('TSA Input'!J905=\"Yes\",'TSA Input'!J905=\"Contingent\"),'TSA Input'!I905,\"\"))","v":""},{"$f":"IF('TSA Input'!J905=\"\",\"\",IF(OR('TSA Input'!J905=\"Yes\",'TSA Input'!J905=\"Contingent\"),'TSA Input'!C905,\"\"))","v":""},{"$f":"IF('TSA Input'!J905=\"\",\"\",IF(OR('TSA Input'!J905=\"Yes\",'TSA Input'!J905=\"Contingent\"),'TSA Input'!D905,\"\"))","v":""},{"$f":"IF('TSA Input'!J905=\"\",\"\",IF(OR('TSA Input'!J905=\"Yes\",'TSA Input'!J905=\"Contingent\"),'TSA Input'!G905,\"\"))","v":""},{"$f":"IF('TSA Input'!J905=\"\",\"\",IF(OR('TSA Input'!J905=\"Yes\",'TSA Input'!J905=\"Contingent\"),'TSA Input'!F905,\"\"))","v":""},"",{"$f":"IF('TSA Input'!J905=\"\",\"\",IF(OR('TSA Input'!J905=\"Yes\",'TSA Input'!J905=\"Contingent\"),'TSA Input'!D905,\"\"))","v":""},{"$f":"IF('TSA Input'!J905=\"\",\"\",IF(OR('TSA Input'!J905=\"Yes\",'TSA Input'!J905=\"Contingent\"),'TSA Input'!G905,\"\"))","v":""},{"$f":"IF('TSA Input'!J905=\"\",\"\",IF(OR('TSA Input'!J905=\"Yes\",'TSA Input'!J905=\"Contingent\"),'TSA Input'!F905,\"\"))","v":""},"","Required","Required"]
["",null,{"$f":"IF('TSA Input'!J906=\"\",\"\",IF(OR('TSA Input'!J906=\"Yes\",'TSA Input'!J906=\"Contingent\"),'TSA Input'!B906,\"Ineligible\"))","v":""},{"$f":"IF('TSA Input'!J906=\"\",\"\",IF(OR('TSA Input'!J906=\"Yes\",'TSA Input'!J906=\"Contingent\"),'TSA Input'!I906,\"\"))","v":""},{"$f":"IF('TSA Input'!J906=\"\",\"\",IF(OR('TSA Input'!J906=\"Yes\",'TSA Input'!J906=\"Contingent\"),'TSA Input'!C906,\"\"))","v":""},{"$f":"IF('TSA Input'!J906=\"\",\"\",IF(OR('TSA Input'!J906=\"Yes\",'TSA Input'!J906=\"Contingent\"),'TSA Input'!D906,\"\"))","v":""},{"$f":"IF('TSA Input'!J906=\"\",\"\",IF(OR('TSA Input'!J906=\"Yes\",'TSA Input'!J906=\"Contingent\"),'TSA Input'!G906,\"\"))","v":""},{"$f":"IF('TSA Input'!J906=\"\",\"\",IF(OR('TSA Input'!J906=\"Yes\",'TSA Input'!J906=\"Contingent\"),'TSA Input'!F906,\"\"))","v":""},"",{"$f":"IF('TSA Input'!J906=\"\",\"\",IF(OR('TSA Input'!J906=\"Yes\",'TSA Input'!J906=\"Contingent\"),'TSA Input'!D906,\"\"))","v":""},{"$f":"IF('TSA Input'!J906=\"\",\"\",IF(OR('TSA Input'!J906=\"Yes\",'TSA Input'!J906=\"Contingent\"),'TSA Input'!G906,\"\"))","v":""},{"$f":"IF('TSA Input'!J906=\"\",\"\",IF(OR('TSA Input'!J906=\"Yes\",'TSA Input'!J906=\"Contingent\"),'TSA Input'!F906,\"\"))","v":""},"","Required","Required"]
["",null,{"$f":"IF('TSA Input'!J907=\"\",\"\",IF(OR('TSA Input'!J907=\"Yes\",'TSA Input'!J907=\"Contingent\"),'TSA Input'!B907,\"Ineligible\"))","v":""},{"$f":"IF('TSA Input'!J907=\"\",\"\",IF(OR('TSA Input'!J907=\"Yes\",'TSA Input'!J907=\"Contingent\"),'TSA Input'!I907,\"\"))","v":""},{"$f":"IF('TSA Input'!J907=\"\",\"\",IF(OR('TSA Input'!J907=\"Yes\",'TSA Input'!J907=\"Contingent\"),'TSA Input'!C907,\"\"))","v":""},{"$f":"IF('TSA Input'!J907=\"\",\"\",IF(OR('TSA Input'!J907=\"Yes\",'TSA Input'!J907=\"Contingent\"),'TSA Input'!D907,\"\"))","v":""},{"$f":"IF('TSA Input'!J907=\"\",\"\",IF(OR('TSA Input'!J907=\"Yes\",'TSA Input'!J907=\"Contingent\"),'TSA Input'!G907,\"\"))","v":""},{"$f":"IF('TSA Input'!J907=\"\",\"\",IF(OR('TSA Input'!J907=\"Yes\",'TSA Input'!J907=\"Contingent\"),'TSA Input'!F907,\"\"))","v":""},"",{"$f":"IF('TSA Input'!J907=\"\",\"\",IF(OR('TSA Input'!J907=\"Yes\",'TSA Input'!J907=\"Contingent\"),'TSA Input'!D907,\"\"))","v":""},{"$f":"IF('TSA Input'!J907=\"\",\"\",IF(OR('TSA Input'!J907=\"Yes\",'TSA Input'!J907=\"Contingent\"),'TSA Input'!G907,\"\"))","v":""},{"$f":"IF('TSA Input'!J907=\"\",\"\",IF(OR('TSA Input'!J907=\"Yes\",'TSA Input'!J907=\"Contingent\"),'TSA Input'!F907,\"\"))","v":""},"","Required","Required"]
["",null,{"$f":"IF('TSA Input'!J908=\"\",\"\",IF(OR('TSA Input'!J908=\"Yes\",'TSA Input'!J908=\"Contingent\"),'TSA Input'!B908,\"Ineligible\"))","v":""},{"$f":"IF('TSA Input'!J908=\"\",\"\",IF(OR('TSA Input'!J908=\"Yes\",'TSA Input'!J908=\"Contingent\"),'TSA Input'!I908,\"\"))","v":""},{"$f":"IF('TSA Input'!J908=\"\",\"\",IF(OR('TSA Input'!J908=\"Yes\",'TSA Input'!J908=\"Contingent\"),'TSA Input'!C908,\"\"))","v":""},{"$f":"IF('TSA Input'!J908=\"\",\"\",IF(OR('TSA Input'!J908=\"Yes\",'TSA Input'!J908=\"Contingent\"),'TSA Input'!D908,\"\"))","v":""},{"$f":"IF('TSA Input'!J908=\"\",\"\",IF(OR('TSA Input'!J908=\"Yes\",'TSA Input'!J908=\"Contingent\"),'TSA Input'!G908,\"\"))","v":""},{"$f":"IF('TSA Input'!J908=\"\",\"\",IF(OR('TSA Input'!J908=\"Yes\",'TSA Input'!J908=\"Contingent\"),'TSA Input'!F908,\"\"))","v":""},"",{"$f":"IF('TSA Input'!J908=\"\",\"\",IF(OR('TSA Input'!J908=\"Yes\",'TSA Input'!J908=\"Contingent\"),'TSA Input'!D908,\"\"))","v":""},{"$f":"IF('TSA Input'!J908=\"\",\"\",IF(OR('TSA Input'!J908=\"Yes\",'TSA Input'!J908=\"Contingent\"),'TSA Input'!G908,\"\"))","v":""},{"$f":"IF('TSA Input'!J908=\"\",\"\",IF(OR('TSA Input'!J908=\"Yes\",'TSA Input'!J908=\"Contingent\"),'TSA Input'!F908,\"\"))","v":""},"","Required","Required"]
["",null,{"$f":"IF('TSA Input'!J909=\"\",\"\",IF(OR('TSA Input'!J909=\"Yes\",'TSA Input'!J909=\"Contingent\"),'TSA Input'!B909,\"Ineligible\"))","v":""},{"$f":"IF('TSA Input'!J909=\"\",\"\",IF(OR('TSA Input'!J909=\"Yes\",'TSA Input'!J909=\"Contingent\"),'TSA Input'!I909,\"\"))","v":""},{"$f":"IF('TSA Input'!J909=\"\",\"\",IF(OR('TSA Input'!J909=\"Yes\",'TSA Input'!J909=\"Contingent\"),'TSA Input'!C909,\"\"))","v":""},{"$f":"IF('TSA Input'!J909=\"\",\"\",IF(OR('TSA Input'!J909=\"Yes\",'TSA Input'!J909=\"Contingent\"),'TSA Input'!D909,\"\"))","v":""},{"$f":"IF('TSA Input'!J909=\"\",\"\",IF(OR('TSA Input'!J909=\"Yes\",'TSA Input'!J909=\"Contingent\"),'TSA Input'!G909,\"\"))","v":""},{"$f":"IF('TSA Input'!J909=\"\",\"\",IF(OR('TSA Input'!J909=\"Yes\",'TSA Input'!J909=\"Contingent\"),'TSA Input'!F909,\"\"))","v":""},"",{"$f":"IF('TSA Input'!J909=\"\",\"\",IF(OR('TSA Input'!J909=\"Yes\",'TSA Input'!J909=\"Contingent\"),'TSA Input'!D909,\"\"))","v":""},{"$f":"IF('TSA Input'!J909=\"\",\"\",IF(OR('TSA Input'!J909=\"Yes\",'TSA Input'!J909=\"Contingent\"),'TSA Input'!G909,\"\"))","v":""},{"$f":"IF('TSA Input'!J909=\"\",\"\",IF(OR('TSA Input'!J909=\"Yes\",'TSA Input'!J909=\"Contingent\"),'TSA Input'!F909,\"\"))","v":""},"","Required","Required"]
["",null,{"$f":"IF('TSA Input'!J910=\"\",\"\",IF(OR('TSA Input'!J910=\"Yes\",'TSA Input'!J910=\"Contingent\"),'TSA Input'!B910,\"Ineligible\"))","v":""},{"$f":"IF('TSA Input'!J910=\"\",\"\",IF(OR('TSA Input'!J910=\"Yes\",'TSA Input'!J910=\"Contingent\"),'TSA Input'!I910,\"\"))","v":""},{"$f":"IF('TSA Input'!J910=\"\",\"\",IF(OR('TSA Input'!J910=\"Yes\",'TSA Input'!J910=\"Contingent\"),'TSA Input'!C910,\"\"))","v":""},{"$f":"IF('TSA Input'!J910=\"\",\"\",IF(OR('TSA Input'!J910=\"Yes\",'TSA Input'!J910=\"Contingent\"),'TSA Input'!D910,\"\"))","v":""},{"$f":"IF('TSA Input'!J910=\"\",\"\",IF(OR('TSA Input'!J910=\"Yes\",'TSA Input'!J910=\"Contingent\"),'TSA Input'!G910,\"\"))","v":""},{"$f":"IF('TSA Input'!J910=\"\",\"\",IF(OR('TSA Input'!J910=\"Yes\",'TSA Input'!J910=\"Contingent\"),'TSA Input'!F910,\"\"))","v":""},"",{"$f":"IF('TSA Input'!J910=\"\",\"\",IF(OR('TSA Input'!J910=\"Yes\",'TSA Input'!J910=\"Contingent\"),'TSA Input'!D910,\"\"))","v":""},{"$f":"IF('TSA Input'!J910=\"\",\"\",IF(OR('TSA Input'!J910=\"Yes\",'TSA Input'!J910=\"Contingent\"),'TSA Input'!G910,\"\"))","v":""},{"$f":"IF('TSA Input'!J910=\"\",\"\",IF(OR('TSA Input'!J910=\"Yes\",'TSA Input'!J910=\"Contingent\"),'TSA Input'!F910,\"\"))","v":""},"","Required","Required"]
["",null,{"$f":"IF('TSA Input'!J911=\"\",\"\",IF(OR('TSA Input'!J911=\"Yes\",'TSA Input'!J911=\"Contingent\"),'TSA Input'!B911,\"Ineligible\"))","v":""},{"$f":"IF('TSA Input'!J911=\"\",\"\",IF(OR('TSA Input'!J911=\"Yes\",'TSA Input'!J911=\"Contingent\"),'TSA Input'!I911,\"\"))","v":""},{"$f":"IF('TSA Input'!J911=\"\",\"\",IF(OR('TSA Input'!J911=\"Yes\",'TSA Input'!J911=\"Contingent\"),'TSA Input'!C911,\"\"))","v":""},{"$f":"IF('TSA Input'!J911=\"\",\"\",IF(OR('TSA Input'!J911=\"Yes\",'TSA Input'!J911=\"Contingent\"),'TSA Input'!D911,\"\"))","v":""},{"$f":"IF('TSA Input'!J911=\"\",\"\",IF(OR('TSA Input'!J911=\"Yes\",'TSA Input'!J911=\"Contingent\"),'TSA Input'!G911,\"\"))","v":""},{"$f":"IF('TSA Input'!J911=\"\",\"\",IF(OR('TSA Input'!J911=\"Yes\",'TSA Input'!J911=\"Contingent\"),'TSA Input'!F911,\"\"))","v":""},"",{"$f":"IF('TSA Input'!J911=\"\",\"\",IF(OR('TSA Input'!J911=\"Yes\",'TSA Input'!J911=\"Contingent\"),'TSA Input'!D911,\"\"))","v":""},{"$f":"IF('TSA Input'!J911=\"\",\"\",IF(OR('TSA Input'!J911=\"Yes\",'TSA Input'!J911=\"Contingent\"),'TSA Input'!G911,\"\"))","v":""},{"$f":"IF('TSA Input'!J911=\"\",\"\",IF(OR('TSA Input'!J911=\"Yes\",'TSA Input'!J911=\"Contingent\"),'TSA Input'!F911,\"\"))","v":""},"","Required","Required"]
["",null,{"$f":"IF('TSA Input'!J912=\"\",\"\",IF(OR('TSA Input'!J912=\"Yes\",'TSA Input'!J912=\"Contingent\"),'TSA Input'!B912,\"Ineligible\"))","v":""},{"$f":"IF('TSA Input'!J912=\"\",\"\",IF(OR('TSA Input'!J912=\"Yes\",'TSA Input'!J912=\"Contingent\"),'TSA Input'!I912,\"\"))","v":""},{"$f":"IF('TSA Input'!J912=\"\",\"\",IF(OR('TSA Input'!J912=\"Yes\",'TSA Input'!J912=\"Contingent\"),'TSA Input'!C912,\"\"))","v":""},{"$f":"IF('TSA Input'!J912=\"\",\"\",IF(OR('TSA Input'!J912=\"Yes\",'TSA Input'!J912=\"Contingent\"),'TSA Input'!D912,\"\"))","v":""},{"$f":"IF('TSA Input'!J912=\"\",\"\",IF(OR('TSA Input'!J912=\"Yes\",'TSA Input'!J912=\"Contingent\"),'TSA Input'!G912,\"\"))","v":""},{"$f":"IF('TSA Input'!J912=\"\",\"\",IF(OR('TSA Input'!J912=\"Yes\",'TSA Input'!J912=\"Contingent\"),'TSA Input'!F912,\"\"))","v":""},"",{"$f":"IF('TSA Input'!J912=\"\",\"\",IF(OR('TSA Input'!J912=\"Yes\",'TSA Input'!J912=\"Contingent\"),'TSA Input'!D912,\"\"))","v":""},{"$f":"IF('TSA Input'!J912=\"\",\"\",IF(OR('TSA Input'!J912=\"Yes\",'TSA Input'!J912=\"Contingent\"),'TSA Input'!G912,\"\"))","v":""},{"$f":"IF('TSA Input'!J912=\"\",\"\",IF(OR('TSA Input'!J912=\"Yes\",'TSA Input'!J912=\"Contingent\"),'TSA Input'!F912,\"\"))","v":""},"","Required","Required"]
["",null,{"$f":"IF('TSA Input'!J913=\"\",\"\",IF(OR('TSA Input'!J913=\"Yes\",'TSA Input'!J913=\"Contingent\"),'TSA Input'!B913,\"Ineligible\"))","v":""},{"$f":"IF('TSA Input'!J913=\"\",\"\",IF(OR('TSA Input'!J913=\"Yes\",'TSA Input'!J913=\"Contingent\"),'TSA Input'!I913,\"\"))","v":""},{"$f":"IF('TSA Input'!J913=\"\",\"\",IF(OR('TSA Input'!J913=\"Yes\",'TSA Input'!J913=\"Contingent\"),'TSA Input'!C913,\"\"))","v":""},{"$f":"IF('TSA Input'!J913=\"\",\"\",IF(OR('TSA Input'!J913=\"Yes\",'TSA Input'!J913=\"Contingent\"),'TSA Input'!D913,\"\"))","v":""},{"$f":"IF('TSA Input'!J913=\"\",\"\",IF(OR('TSA Input'!J913=\"Yes\",'TSA Input'!J913=\"Contingent\"),'TSA Input'!G913,\"\"))","v":""},{"$f":"IF('TSA Input'!J913=\"\",\"\",IF(OR('TSA Input'!J913=\"Yes\",'TSA Input'!J913=\"Contingent\"),'TSA Input'!F913,\"\"))","v":""},"",{"$f":"IF('TSA Input'!J913=\"\",\"\",IF(OR('TSA Input'!J913=\"Yes\",'TSA Input'!J913=\"Contingent\"),'TSA Input'!D913,\"\"))","v":""},{"$f":"IF('TSA Input'!J913=\"\",\"\",IF(OR('TSA Input'!J913=\"Yes\",'TSA Input'!J913=\"Contingent\"),'TSA Input'!G913,\"\"))","v":""},{"$f":"IF('TSA Input'!J913=\"\",\"\",IF(OR('TSA Input'!J913=\"Yes\",'TSA Input'!J913=\"Contingent\"),'TSA Input'!F913,\"\"))","v":""},"","Required","Required"]
["",null,{"$f":"IF('TSA Input'!J914=\"\",\"\",IF(OR('TSA Input'!J914=\"Yes\",'TSA Input'!J914=\"Contingent\"),'TSA Input'!B914,\"Ineligible\"))","v":""},{"$f":"IF('TSA Input'!J914=\"\",\"\",IF(OR('TSA Input'!J914=\"Yes\",'TSA Input'!J914=\"Contingent\"),'TSA Input'!I914,\"\"))","v":""},{"$f":"IF('TSA Input'!J914=\"\",\"\",IF(OR('TSA Input'!J914=\"Yes\",'TSA Input'!J914=\"Contingent\"),'TSA Input'!C914,\"\"))","v":""},{"$f":"IF('TSA Input'!J914=\"\",\"\",IF(OR('TSA Input'!J914=\"Yes\",'TSA Input'!J914=\"Contingent\"),'TSA Input'!D914,\"\"))","v":""},{"$f":"IF('TSA Input'!J914=\"\",\"\",IF(OR('TSA Input'!J914=\"Yes\",'TSA Input'!J914=\"Contingent\"),'TSA Input'!G914,\"\"))","v":""},{"$f":"IF('TSA Input'!J914=\"\",\"\",IF(OR('TSA Input'!J914=\"Yes\",'TSA Input'!J914=\"Contingent\"),'TSA Input'!F914,\"\"))","v":""},"",{"$f":"IF('TSA Input'!J914=\"\",\"\",IF(OR('TSA Input'!J914=\"Yes\",'TSA Input'!J914=\"Contingent\"),'TSA Input'!D914,\"\"))","v":""},{"$f":"IF('TSA Input'!J914=\"\",\"\",IF(OR('TSA Input'!J914=\"Yes\",'TSA Input'!J914=\"Contingent\"),'TSA Input'!G914,\"\"))","v":""},{"$f":"IF('TSA Input'!J914=\"\",\"\",IF(OR('TSA Input'!J914=\"Yes\",'TSA Input'!J914=\"Contingent\"),'TSA Input'!F914,\"\"))","v":""},"","Required","Required"]
["",null,{"$f":"IF('TSA Input'!J915=\"\",\"\",IF(OR('TSA Input'!J915=\"Yes\",'TSA Input'!J915=\"Contingent\"),'TSA Input'!B915,\"Ineligible\"))","v":""},{"$f":"IF('TSA Input'!J915=\"\",\"\",IF(OR('TSA Input'!J915=\"Yes\",'TSA Input'!J915=\"Contingent\"),'TSA Input'!I915,\"\"))","v":""},{"$f":"IF('TSA Input'!J915=\"\",\"\",IF(OR('TSA Input'!J915=\"Yes\",'TSA Input'!J915=\"Contingent\"),'TSA Input'!C915,\"\"))","v":""},{"$f":"IF('TSA Input'!J915=\"\",\"\",IF(OR('TSA Input'!J915=\"Yes\",'TSA Input'!J915=\"Contingent\"),'TSA Input'!D915,\"\"))","v":""},{"$f":"IF('TSA Input'!J915=\"\",\"\",IF(OR('TSA Input'!J915=\"Yes\",'TSA Input'!J915=\"Contingent\"),'TSA Input'!G915,\"\"))","v":""},{"$f":"IF('TSA Input'!J915=\"\",\"\",IF(OR('TSA Input'!J915=\"Yes\",'TSA Input'!J915=\"Contingent\"),'TSA Input'!F915,\"\"))","v":""},"",{"$f":"IF('TSA Input'!J915=\"\",\"\",IF(OR('TSA Input'!J915=\"Yes\",'TSA Input'!J915=\"Contingent\"),'TSA Input'!D915,\"\"))","v":""},{"$f":"IF('TSA Input'!J915=\"\",\"\",IF(OR('TSA Input'!J915=\"Yes\",'TSA Input'!J915=\"Contingent\"),'TSA Input'!G915,\"\"))","v":""},{"$f":"IF('TSA Input'!J915=\"\",\"\",IF(OR('TSA Input'!J915=\"Yes\",'TSA Input'!J915=\"Contingent\"),'TSA Input'!F915,\"\"))","v":""},"","Required","Required"]
["",null,{"$f":"IF('TSA Input'!J916=\"\",\"\",IF(OR('TSA Input'!J916=\"Yes\",'TSA Input'!J916=\"Contingent\"),'TSA Input'!B916,\"Ineligible\"))","v":""},{"$f":"IF('TSA Input'!J916=\"\",\"\",IF(OR('TSA Input'!J916=\"Yes\",'TSA Input'!J916=\"Contingent\"),'TSA Input'!I916,\"\"))","v":""},{"$f":"IF('TSA Input'!J916=\"\",\"\",IF(OR('TSA Input'!J916=\"Yes\",'TSA Input'!J916=\"Contingent\"),'TSA Input'!C916,\"\"))","v":""},{"$f":"IF('TSA Input'!J916=\"\",\"\",IF(OR('TSA Input'!J916=\"Yes\",'TSA Input'!J916=\"Contingent\"),'TSA Input'!D916,\"\"))","v":""},{"$f":"IF('TSA Input'!J916=\"\",\"\",IF(OR('TSA Input'!J916=\"Yes\",'TSA Input'!J916=\"Contingent\"),'TSA Input'!G916,\"\"))","v":""},{"$f":"IF('TSA Input'!J916=\"\",\"\",IF(OR('TSA Input'!J916=\"Yes\",'TSA Input'!J916=\"Contingent\"),'TSA Input'!F916,\"\"))","v":""},"",{"$f":"IF('TSA Input'!J916=\"\",\"\",IF(OR('TSA Input'!J916=\"Yes\",'TSA Input'!J916=\"Contingent\"),'TSA Input'!D916,\"\"))","v":""},{"$f":"IF('TSA Input'!J916=\"\",\"\",IF(OR('TSA Input'!J916=\"Yes\",'TSA Input'!J916=\"Contingent\"),'TSA Input'!G916,\"\"))","v":""},{"$f":"IF('TSA Input'!J916=\"\",\"\",IF(OR('TSA Input'!J916=\"Yes\",'TSA Input'!J916=\"Contingent\"),'TSA Input'!F916,\"\"))","v":""},"","Required","Required"]
["",null,{"$f":"IF('TSA Input'!J917=\"\",\"\",IF(OR('TSA Input'!J917=\"Yes\",'TSA Input'!J917=\"Contingent\"),'TSA Input'!B917,\"Ineligible\"))","v":""},{"$f":"IF('TSA Input'!J917=\"\",\"\",IF(OR('TSA Input'!J917=\"Yes\",'TSA Input'!J917=\"Contingent\"),'TSA Input'!I917,\"\"))","v":""},{"$f":"IF('TSA Input'!J917=\"\",\"\",IF(OR('TSA Input'!J917=\"Yes\",'TSA Input'!J917=\"Contingent\"),'TSA Input'!C917,\"\"))","v":""},{"$f":"IF('TSA Input'!J917=\"\",\"\",IF(OR('TSA Input'!J917=\"Yes\",'TSA Input'!J917=\"Contingent\"),'TSA Input'!D917,\"\"))","v":""},{"$f":"IF('TSA Input'!J917=\"\",\"\",IF(OR('TSA Input'!J917=\"Yes\",'TSA Input'!J917=\"Contingent\"),'TSA Input'!G917,\"\"))","v":""},{"$f":"IF('TSA Input'!J917=\"\",\"\",IF(OR('TSA Input'!J917=\"Yes\",'TSA Input'!J917=\"Contingent\"),'TSA Input'!F917,\"\"))","v":""},"",{"$f":"IF('TSA Input'!J917=\"\",\"\",IF(OR('TSA Input'!J917=\"Yes\",'TSA Input'!J917=\"Contingent\"),'TSA Input'!D917,\"\"))","v":""},{"$f":"IF('TSA Input'!J917=\"\",\"\",IF(OR('TSA Input'!J917=\"Yes\",'TSA Input'!J917=\"Contingent\"),'TSA Input'!G917,\"\"))","v":""},{"$f":"IF('TSA Input'!J917=\"\",\"\",IF(OR('TSA Input'!J917=\"Yes\",'TSA Input'!J917=\"Contingent\"),'TSA Input'!F917,\"\"))","v":""},"","Required","Required"]
["",null,{"$f":"IF('TSA Input'!J918=\"\",\"\",IF(OR('TSA Input'!J918=\"Yes\",'TSA Input'!J918=\"Contingent\"),'TSA Input'!B918,\"Ineligible\"))","v":""},{"$f":"IF('TSA Input'!J918=\"\",\"\",IF(OR('TSA Input'!J918=\"Yes\",'TSA Input'!J918=\"Contingent\"),'TSA Input'!I918,\"\"))","v":""},{"$f":"IF('TSA Input'!J918=\"\",\"\",IF(OR('TSA Input'!J918=\"Yes\",'TSA Input'!J918=\"Contingent\"),'TSA Input'!C918,\"\"))","v":""},{"$f":"IF('TSA Input'!J918=\"\",\"\",IF(OR('TSA Input'!J918=\"Yes\",'TSA Input'!J918=\"Contingent\"),'TSA Input'!D918,\"\"))","v":""},{"$f":"IF('TSA Input'!J918=\"\",\"\",IF(OR('TSA Input'!J918=\"Yes\",'TSA Input'!J918=\"Contingent\"),'TSA Input'!G918,\"\"))","v":""},{"$f":"IF('TSA Input'!J918=\"\",\"\",IF(OR('TSA Input'!J918=\"Yes\",'TSA Input'!J918=\"Contingent\"),'TSA Input'!F918,\"\"))","v":""},"",{"$f":"IF('TSA Input'!J918=\"\",\"\",IF(OR('TSA Input'!J918=\"Yes\",'TSA Input'!J918=\"Contingent\"),'TSA Input'!D918,\"\"))","v":""},{"$f":"IF('TSA Input'!J918=\"\",\"\",IF(OR('TSA Input'!J918=\"Yes\",'TSA Input'!J918=\"Contingent\"),'TSA Input'!G918,\"\"))","v":""},{"$f":"IF('TSA Input'!J918=\"\",\"\",IF(OR('TSA Input'!J918=\"Yes\",'TSA Input'!J918=\"Contingent\"),'TSA Input'!F918,\"\"))","v":""},"","Required","Required"]
["",null,{"$f":"IF('TSA Input'!J919=\"\",\"\",IF(OR('TSA Input'!J919=\"Yes\",'TSA Input'!J919=\"Contingent\"),'TSA Input'!B919,\"Ineligible\"))","v":""},{"$f":"IF('TSA Input'!J919=\"\",\"\",IF(OR('TSA Input'!J919=\"Yes\",'TSA Input'!J919=\"Contingent\"),'TSA Input'!I919,\"\"))","v":""},{"$f":"IF('TSA Input'!J919=\"\",\"\",IF(OR('TSA Input'!J919=\"Yes\",'TSA Input'!J919=\"Contingent\"),'TSA Input'!C919,\"\"))","v":""},{"$f":"IF('TSA Input'!J919=\"\",\"\",IF(OR('TSA Input'!J919=\"Yes\",'TSA Input'!J919=\"Contingent\"),'TSA Input'!D919,\"\"))","v":""},{"$f":"IF('TSA Input'!J919=\"\",\"\",IF(OR('TSA Input'!J919=\"Yes\",'TSA Input'!J919=\"Contingent\"),'TSA Input'!G919,\"\"))","v":""},{"$f":"IF('TSA Input'!J919=\"\",\"\",IF(OR('TSA Input'!J919=\"Yes\",'TSA Input'!J919=\"Contingent\"),'TSA Input'!F919,\"\"))","v":""},"",{"$f":"IF('TSA Input'!J919=\"\",\"\",IF(OR('TSA Input'!J919=\"Yes\",'TSA Input'!J919=\"Contingent\"),'TSA Input'!D919,\"\"))","v":""},{"$f":"IF('TSA Input'!J919=\"\",\"\",IF(OR('TSA Input'!J919=\"Yes\",'TSA Input'!J919=\"Contingent\"),'TSA Input'!G919,\"\"))","v":""},{"$f":"IF('TSA Input'!J919=\"\",\"\",IF(OR('TSA Input'!J919=\"Yes\",'TSA Input'!J919=\"Contingent\"),'TSA Input'!F919,\"\"))","v":""},"","Required","Required"]
["",null,{"$f":"IF('TSA Input'!J920=\"\",\"\",IF(OR('TSA Input'!J920=\"Yes\",'TSA Input'!J920=\"Contingent\"),'TSA Input'!B920,\"Ineligible\"))","v":""},{"$f":"IF('TSA Input'!J920=\"\",\"\",IF(OR('TSA Input'!J920=\"Yes\",'TSA Input'!J920=\"Contingent\"),'TSA Input'!I920,\"\"))","v":""},{"$f":"IF('TSA Input'!J920=\"\",\"\",IF(OR('TSA Input'!J920=\"Yes\",'TSA Input'!J920=\"Contingent\"),'TSA Input'!C920,\"\"))","v":""},{"$f":"IF('TSA Input'!J920=\"\",\"\",IF(OR('TSA Input'!J920=\"Yes\",'TSA Input'!J920=\"Contingent\"),'TSA Input'!D920,\"\"))","v":""},{"$f":"IF('TSA Input'!J920=\"\",\"\",IF(OR('TSA Input'!J920=\"Yes\",'TSA Input'!J920=\"Contingent\"),'TSA Input'!G920,\"\"))","v":""},{"$f":"IF('TSA Input'!J920=\"\",\"\",IF(OR('TSA Input'!J920=\"Yes\",'TSA Input'!J920=\"Contingent\"),'TSA Input'!F920,\"\"))","v":""},"",{"$f":"IF('TSA Input'!J920=\"\",\"\",IF(OR('TSA Input'!J920=\"Yes\",'TSA Input'!J920=\"Contingent\"),'TSA Input'!D920,\"\"))","v":""},{"$f":"IF('TSA Input'!J920=\"\",\"\",IF(OR('TSA Input'!J920=\"Yes\",'TSA Input'!J920=\"Contingent\"),'TSA Input'!G920,\"\"))","v":""},{"$f":"IF('TSA Input'!J920=\"\",\"\",IF(OR('TSA Input'!J920=\"Yes\",'TSA Input'!J920=\"Contingent\"),'TSA Input'!F920,\"\"))","v":""},"","Required","Required"]
["",null,{"$f":"IF('TSA Input'!J921=\"\",\"\",IF(OR('TSA Input'!J921=\"Yes\",'TSA Input'!J921=\"Contingent\"),'TSA Input'!B921,\"Ineligible\"))","v":""},{"$f":"IF('TSA Input'!J921=\"\",\"\",IF(OR('TSA Input'!J921=\"Yes\",'TSA Input'!J921=\"Contingent\"),'TSA Input'!I921,\"\"))","v":""},{"$f":"IF('TSA Input'!J921=\"\",\"\",IF(OR('TSA Input'!J921=\"Yes\",'TSA Input'!J921=\"Contingent\"),'TSA Input'!C921,\"\"))","v":""},{"$f":"IF('TSA Input'!J921=\"\",\"\",IF(OR('TSA Input'!J921=\"Yes\",'TSA Input'!J921=\"Contingent\"),'TSA Input'!D921,\"\"))","v":""},{"$f":"IF('TSA Input'!J921=\"\",\"\",IF(OR('TSA Input'!J921=\"Yes\",'TSA Input'!J921=\"Contingent\"),'TSA Input'!G921,\"\"))","v":""},{"$f":"IF('TSA Input'!J921=\"\",\"\",IF(OR('TSA Input'!J921=\"Yes\",'TSA Input'!J921=\"Contingent\"),'TSA Input'!F921,\"\"))","v":""},"",{"$f":"IF('TSA Input'!J921=\"\",\"\",IF(OR('TSA Input'!J921=\"Yes\",'TSA Input'!J921=\"Contingent\"),'TSA Input'!D921,\"\"))","v":""},{"$f":"IF('TSA Input'!J921=\"\",\"\",IF(OR('TSA Input'!J921=\"Yes\",'TSA Input'!J921=\"Contingent\"),'TSA Input'!G921,\"\"))","v":""},{"$f":"IF('TSA Input'!J921=\"\",\"\",IF(OR('TSA Input'!J921=\"Yes\",'TSA Input'!J921=\"Contingent\"),'TSA Input'!F921,\"\"))","v":""},"","Required","Required"]
["",null,{"$f":"IF('TSA Input'!J922=\"\",\"\",IF(OR('TSA Input'!J922=\"Yes\",'TSA Input'!J922=\"Contingent\"),'TSA Input'!B922,\"Ineligible\"))","v":""},{"$f":"IF('TSA Input'!J922=\"\",\"\",IF(OR('TSA Input'!J922=\"Yes\",'TSA Input'!J922=\"Contingent\"),'TSA Input'!I922,\"\"))","v":""},{"$f":"IF('TSA Input'!J922=\"\",\"\",IF(OR('TSA Input'!J922=\"Yes\",'TSA Input'!J922=\"Contingent\"),'TSA Input'!C922,\"\"))","v":""},{"$f":"IF('TSA Input'!J922=\"\",\"\",IF(OR('TSA Input'!J922=\"Yes\",'TSA Input'!J922=\"Contingent\"),'TSA Input'!D922,\"\"))","v":""},{"$f":"IF('TSA Input'!J922=\"\",\"\",IF(OR('TSA Input'!J922=\"Yes\",'TSA Input'!J922=\"Contingent\"),'TSA Input'!G922,\"\"))","v":""},{"$f":"IF('TSA Input'!J922=\"\",\"\",IF(OR('TSA Input'!J922=\"Yes\",'TSA Input'!J922=\"Contingent\"),'TSA Input'!F922,\"\"))","v":""},"",{"$f":"IF('TSA Input'!J922=\"\",\"\",IF(OR('TSA Input'!J922=\"Yes\",'TSA Input'!J922=\"Contingent\"),'TSA Input'!D922,\"\"))","v":""},{"$f":"IF('TSA Input'!J922=\"\",\"\",IF(OR('TSA Input'!J922=\"Yes\",'TSA Input'!J922=\"Contingent\"),'TSA Input'!G922,\"\"))","v":""},{"$f":"IF('TSA Input'!J922=\"\",\"\",IF(OR('TSA Input'!J922=\"Yes\",'TSA Input'!J922=\"Contingent\"),'TSA Input'!F922,\"\"))","v":""},"","Required","Required"]
["",null,{"$f":"IF('TSA Input'!J923=\"\",\"\",IF(OR('TSA Input'!J923=\"Yes\",'TSA Input'!J923=\"Contingent\"),'TSA Input'!B923,\"Ineligible\"))","v":""},{"$f":"IF('TSA Input'!J923=\"\",\"\",IF(OR('TSA Input'!J923=\"Yes\",'TSA Input'!J923=\"Contingent\"),'TSA Input'!I923,\"\"))","v":""},{"$f":"IF('TSA Input'!J923=\"\",\"\",IF(OR('TSA Input'!J923=\"Yes\",'TSA Input'!J923=\"Contingent\"),'TSA Input'!C923,\"\"))","v":""},{"$f":"IF('TSA Input'!J923=\"\",\"\",IF(OR('TSA Input'!J923=\"Yes\",'TSA Input'!J923=\"Contingent\"),'TSA Input'!D923,\"\"))","v":""},{"$f":"IF('TSA Input'!J923=\"\",\"\",IF(OR('TSA Input'!J923=\"Yes\",'TSA Input'!J923=\"Contingent\"),'TSA Input'!G923,\"\"))","v":""},{"$f":"IF('TSA Input'!J923=\"\",\"\",IF(OR('TSA Input'!J923=\"Yes\",'TSA Input'!J923=\"Contingent\"),'TSA Input'!F923,\"\"))","v":""},"",{"$f":"IF('TSA Input'!J923=\"\",\"\",IF(OR('TSA Input'!J923=\"Yes\",'TSA Input'!J923=\"Contingent\"),'TSA Input'!D923,\"\"))","v":""},{"$f":"IF('TSA Input'!J923=\"\",\"\",IF(OR('TSA Input'!J923=\"Yes\",'TSA Input'!J923=\"Contingent\"),'TSA Input'!G923,\"\"))","v":""},{"$f":"IF('TSA Input'!J923=\"\",\"\",IF(OR('TSA Input'!J923=\"Yes\",'TSA Input'!J923=\"Contingent\"),'TSA Input'!F923,\"\"))","v":""},"","Required","Required"]
["",null,{"$f":"IF('TSA Input'!J924=\"\",\"\",IF(OR('TSA Input'!J924=\"Yes\",'TSA Input'!J924=\"Contingent\"),'TSA Input'!B924,\"Ineligible\"))","v":""},{"$f":"IF('TSA Input'!J924=\"\",\"\",IF(OR('TSA Input'!J924=\"Yes\",'TSA Input'!J924=\"Contingent\"),'TSA Input'!I924,\"\"))","v":""},{"$f":"IF('TSA Input'!J924=\"\",\"\",IF(OR('TSA Input'!J924=\"Yes\",'TSA Input'!J924=\"Contingent\"),'TSA Input'!C924,\"\"))","v":""},{"$f":"IF('TSA Input'!J924=\"\",\"\",IF(OR('TSA Input'!J924=\"Yes\",'TSA Input'!J924=\"Contingent\"),'TSA Input'!D924,\"\"))","v":""},{"$f":"IF('TSA Input'!J924=\"\",\"\",IF(OR('TSA Input'!J924=\"Yes\",'TSA Input'!J924=\"Contingent\"),'TSA Input'!G924,\"\"))","v":""},{"$f":"IF('TSA Input'!J924=\"\",\"\",IF(OR('TSA Input'!J924=\"Yes\",'TSA Input'!J924=\"Contingent\"),'TSA Input'!F924,\"\"))","v":""},"",{"$f":"IF('TSA Input'!J924=\"\",\"\",IF(OR('TSA Input'!J924=\"Yes\",'TSA Input'!J924=\"Contingent\"),'TSA Input'!D924,\"\"))","v":""},{"$f":"IF('TSA Input'!J924=\"\",\"\",IF(OR('TSA Input'!J924=\"Yes\",'TSA Input'!J924=\"Contingent\"),'TSA Input'!G924,\"\"))","v":""},{"$f":"IF('TSA Input'!J924=\"\",\"\",IF(OR('TSA Input'!J924=\"Yes\",'TSA Input'!J924=\"Contingent\"),'TSA Input'!F924,\"\"))","v":""},"","Required","Required"]
["",null,{"$f":"IF('TSA Input'!J925=\"\",\"\",IF(OR('TSA Input'!J925=\"Yes\",'TSA Input'!J925=\"Contingent\"),'TSA Input'!B925,\"Ineligible\"))","v":""},{"$f":"IF('TSA Input'!J925=\"\",\"\",IF(OR('TSA Input'!J925=\"Yes\",'TSA Input'!J925=\"Contingent\"),'TSA Input'!I925,\"\"))","v":""},{"$f":"IF('TSA Input'!J925=\"\",\"\",IF(OR('TSA Input'!J925=\"Yes\",'TSA Input'!J925=\"Contingent\"),'TSA Input'!C925,\"\"))","v":""},{"$f":"IF('TSA Input'!J925=\"\",\"\",IF(OR('TSA Input'!J925=\"Yes\",'TSA Input'!J925=\"Contingent\"),'TSA Input'!D925,\"\"))","v":""},{"$f":"IF('TSA Input'!J925=\"\",\"\",IF(OR('TSA Input'!J925=\"Yes\",'TSA Input'!J925=\"Contingent\"),'TSA Input'!G925,\"\"))","v":""},{"$f":"IF('TSA Input'!J925=\"\",\"\",IF(OR('TSA Input'!J925=\"Yes\",'TSA Input'!J925=\"Contingent\"),'TSA Input'!F925,\"\"))","v":""},"",{"$f":"IF('TSA Input'!J925=\"\",\"\",IF(OR('TSA Input'!J925=\"Yes\",'TSA Input'!J925=\"Contingent\"),'TSA Input'!D925,\"\"))","v":""},{"$f":"IF('TSA Input'!J925=\"\",\"\",IF(OR('TSA Input'!J925=\"Yes\",'TSA Input'!J925=\"Contingent\"),'TSA Input'!G925,\"\"))","v":""},{"$f":"IF('TSA Input'!J925=\"\",\"\",IF(OR('TSA Input'!J925=\"Yes\",'TSA Input'!J925=\"Contingent\"),'TSA Input'!F925,\"\"))","v":""},"","Required","Required"]
["",null,{"$f":"IF('TSA Input'!J926=\"\",\"\",IF(OR('TSA Input'!J926=\"Yes\",'TSA Input'!J926=\"Contingent\"),'TSA Input'!B926,\"Ineligible\"))","v":""},{"$f":"IF('TSA Input'!J926=\"\",\"\",IF(OR('TSA Input'!J926=\"Yes\",'TSA Input'!J926=\"Contingent\"),'TSA Input'!I926,\"\"))","v":""},{"$f":"IF('TSA Input'!J926=\"\",\"\",IF(OR('TSA Input'!J926=\"Yes\",'TSA Input'!J926=\"Contingent\"),'TSA Input'!C926,\"\"))","v":""},{"$f":"IF('TSA Input'!J926=\"\",\"\",IF(OR('TSA Input'!J926=\"Yes\",'TSA Input'!J926=\"Contingent\"),'TSA Input'!D926,\"\"))","v":""},{"$f":"IF('TSA Input'!J926=\"\",\"\",IF(OR('TSA Input'!J926=\"Yes\",'TSA Input'!J926=\"Contingent\"),'TSA Input'!G926,\"\"))","v":""},{"$f":"IF('TSA Input'!J926=\"\",\"\",IF(OR('TSA Input'!J926=\"Yes\",'TSA Input'!J926=\"Contingent\"),'TSA Input'!F926,\"\"))","v":""},"",{"$f":"IF('TSA Input'!J926=\"\",\"\",IF(OR('TSA Input'!J926=\"Yes\",'TSA Input'!J926=\"Contingent\"),'TSA Input'!D926,\"\"))","v":""},{"$f":"IF('TSA Input'!J926=\"\",\"\",IF(OR('TSA Input'!J926=\"Yes\",'TSA Input'!J926=\"Contingent\"),'TSA Input'!G926,\"\"))","v":""},{"$f":"IF('TSA Input'!J926=\"\",\"\",IF(OR('TSA Input'!J926=\"Yes\",'TSA Input'!J926=\"Contingent\"),'TSA Input'!F926,\"\"))","v":""},"","Required","Required"]
["",null,{"$f":"IF('TSA Input'!J927=\"\",\"\",IF(OR('TSA Input'!J927=\"Yes\",'TSA Input'!J927=\"Contingent\"),'TSA Input'!B927,\"Ineligible\"))","v":""},{"$f":"IF('TSA Input'!J927=\"\",\"\",IF(OR('TSA Input'!J927=\"Yes\",'TSA Input'!J927=\"Contingent\"),'TSA Input'!I927,\"\"))","v":""},{"$f":"IF('TSA Input'!J927=\"\",\"\",IF(OR('TSA Input'!J927=\"Yes\",'TSA Input'!J927=\"Contingent\"),'TSA Input'!C927,\"\"))","v":""},{"$f":"IF('TSA Input'!J927=\"\",\"\",IF(OR('TSA Input'!J927=\"Yes\",'TSA Input'!J927=\"Contingent\"),'TSA Input'!D927,\"\"))","v":""},{"$f":"IF('TSA Input'!J927=\"\",\"\",IF(OR('TSA Input'!J927=\"Yes\",'TSA Input'!J927=\"Contingent\"),'TSA Input'!G927,\"\"))","v":""},{"$f":"IF('TSA Input'!J927=\"\",\"\",IF(OR('TSA Input'!J927=\"Yes\",'TSA Input'!J927=\"Contingent\"),'TSA Input'!F927,\"\"))","v":""},"",{"$f":"IF('TSA Input'!J927=\"\",\"\",IF(OR('TSA Input'!J927=\"Yes\",'TSA Input'!J927=\"Contingent\"),'TSA Input'!D927,\"\"))","v":""},{"$f":"IF('TSA Input'!J927=\"\",\"\",IF(OR('TSA Input'!J927=\"Yes\",'TSA Input'!J927=\"Contingent\"),'TSA Input'!G927,\"\"))","v":""},{"$f":"IF('TSA Input'!J927=\"\",\"\",IF(OR('TSA Input'!J927=\"Yes\",'TSA Input'!J927=\"Contingent\"),'TSA Input'!F927,\"\"))","v":""},"","Required","Required"]
["",null,{"$f":"IF('TSA Input'!J928=\"\",\"\",IF(OR('TSA Input'!J928=\"Yes\",'TSA Input'!J928=\"Contingent\"),'TSA Input'!B928,\"Ineligible\"))","v":""},{"$f":"IF('TSA Input'!J928=\"\",\"\",IF(OR('TSA Input'!J928=\"Yes\",'TSA Input'!J928=\"Contingent\"),'TSA Input'!I928,\"\"))","v":""},{"$f":"IF('TSA Input'!J928=\"\",\"\",IF(OR('TSA Input'!J928=\"Yes\",'TSA Input'!J928=\"Contingent\"),'TSA Input'!C928,\"\"))","v":""},{"$f":"IF('TSA Input'!J928=\"\",\"\",IF(OR('TSA Input'!J928=\"Yes\",'TSA Input'!J928=\"Contingent\"),'TSA Input'!D928,\"\"))","v":""},{"$f":"IF('TSA Input'!J928=\"\",\"\",IF(OR('TSA Input'!J928=\"Yes\",'TSA Input'!J928=\"Contingent\"),'TSA Input'!G928,\"\"))","v":""},{"$f":"IF('TSA Input'!J928=\"\",\"\",IF(OR('TSA Input'!J928=\"Yes\",'TSA Input'!J928=\"Contingent\"),'TSA Input'!F928,\"\"))","v":""},"",{"$f":"IF('TSA Input'!J928=\"\",\"\",IF(OR('TSA Input'!J928=\"Yes\",'TSA Input'!J928=\"Contingent\"),'TSA Input'!D928,\"\"))","v":""},{"$f":"IF('TSA Input'!J928=\"\",\"\",IF(OR('TSA Input'!J928=\"Yes\",'TSA Input'!J928=\"Contingent\"),'TSA Input'!G928,\"\"))","v":""},{"$f":"IF('TSA Input'!J928=\"\",\"\",IF(OR('TSA Input'!J928=\"Yes\",'TSA Input'!J928=\"Contingent\"),'TSA Input'!F928,\"\"))","v":""},"","Required","Required"]
["",null,{"$f":"IF('TSA Input'!J929=\"\",\"\",IF(OR('TSA Input'!J929=\"Yes\",'TSA Input'!J929=\"Contingent\"),'TSA Input'!B929,\"Ineligible\"))","v":""},{"$f":"IF('TSA Input'!J929=\"\",\"\",IF(OR('TSA Input'!J929=\"Yes\",'TSA Input'!J929=\"Contingent\"),'TSA Input'!I929,\"\"))","v":""},{"$f":"IF('TSA Input'!J929=\"\",\"\",IF(OR('TSA Input'!J929=\"Yes\",'TSA Input'!J929=\"Contingent\"),'TSA Input'!C929,\"\"))","v":""},{"$f":"IF('TSA Input'!J929=\"\",\"\",IF(OR('TSA Input'!J929=\"Yes\",'TSA Input'!J929=\"Contingent\"),'TSA Input'!D929,\"\"))","v":""},{"$f":"IF('TSA Input'!J929=\"\",\"\",IF(OR('TSA Input'!J929=\"Yes\",'TSA Input'!J929=\"Contingent\"),'TSA Input'!G929,\"\"))","v":""},{"$f":"IF('TSA Input'!J929=\"\",\"\",IF(OR('TSA Input'!J929=\"Yes\",'TSA Input'!J929=\"Contingent\"),'TSA Input'!F929,\"\"))","v":""},"",{"$f":"IF('TSA Input'!J929=\"\",\"\",IF(OR('TSA Input'!J929=\"Yes\",'TSA Input'!J929=\"Contingent\"),'TSA Input'!D929,\"\"))","v":""},{"$f":"IF('TSA Input'!J929=\"\",\"\",IF(OR('TSA Input'!J929=\"Yes\",'TSA Input'!J929=\"Contingent\"),'TSA Input'!G929,\"\"))","v":""},{"$f":"IF('TSA Input'!J929=\"\",\"\",IF(OR('TSA Input'!J929=\"Yes\",'TSA Input'!J929=\"Contingent\"),'TSA Input'!F929,\"\"))","v":""},"","Required","Required"]
["",null,{"$f":"IF('TSA Input'!J930=\"\",\"\",IF(OR('TSA Input'!J930=\"Yes\",'TSA Input'!J930=\"Contingent\"),'TSA Input'!B930,\"Ineligible\"))","v":""},{"$f":"IF('TSA Input'!J930=\"\",\"\",IF(OR('TSA Input'!J930=\"Yes\",'TSA Input'!J930=\"Contingent\"),'TSA Input'!I930,\"\"))","v":""},{"$f":"IF('TSA Input'!J930=\"\",\"\",IF(OR('TSA Input'!J930=\"Yes\",'TSA Input'!J930=\"Contingent\"),'TSA Input'!C930,\"\"))","v":""},{"$f":"IF('TSA Input'!J930=\"\",\"\",IF(OR('TSA Input'!J930=\"Yes\",'TSA Input'!J930=\"Contingent\"),'TSA Input'!D930,\"\"))","v":""},{"$f":"IF('TSA Input'!J930=\"\",\"\",IF(OR('TSA Input'!J930=\"Yes\",'TSA Input'!J930=\"Contingent\"),'TSA Input'!G930,\"\"))","v":""},{"$f":"IF('TSA Input'!J930=\"\",\"\",IF(OR('TSA Input'!J930=\"Yes\",'TSA Input'!J930=\"Contingent\"),'TSA Input'!F930,\"\"))","v":""},"",{"$f":"IF('TSA Input'!J930=\"\",\"\",IF(OR('TSA Input'!J930=\"Yes\",'TSA Input'!J930=\"Contingent\"),'TSA Input'!D930,\"\"))","v":""},{"$f":"IF('TSA Input'!J930=\"\",\"\",IF(OR('TSA Input'!J930=\"Yes\",'TSA Input'!J930=\"Contingent\"),'TSA Input'!G930,\"\"))","v":""},{"$f":"IF('TSA Input'!J930=\"\",\"\",IF(OR('TSA Input'!J930=\"Yes\",'TSA Input'!J930=\"Contingent\"),'TSA Input'!F930,\"\"))","v":""},"","Required","Required"]
["",null,{"$f":"IF('TSA Input'!J931=\"\",\"\",IF(OR('TSA Input'!J931=\"Yes\",'TSA Input'!J931=\"Contingent\"),'TSA Input'!B931,\"Ineligible\"))","v":""},{"$f":"IF('TSA Input'!J931=\"\",\"\",IF(OR('TSA Input'!J931=\"Yes\",'TSA Input'!J931=\"Contingent\"),'TSA Input'!I931,\"\"))","v":""},{"$f":"IF('TSA Input'!J931=\"\",\"\",IF(OR('TSA Input'!J931=\"Yes\",'TSA Input'!J931=\"Contingent\"),'TSA Input'!C931,\"\"))","v":""},{"$f":"IF('TSA Input'!J931=\"\",\"\",IF(OR('TSA Input'!J931=\"Yes\",'TSA Input'!J931=\"Contingent\"),'TSA Input'!D931,\"\"))","v":""},{"$f":"IF('TSA Input'!J931=\"\",\"\",IF(OR('TSA Input'!J931=\"Yes\",'TSA Input'!J931=\"Contingent\"),'TSA Input'!G931,\"\"))","v":""},{"$f":"IF('TSA Input'!J931=\"\",\"\",IF(OR('TSA Input'!J931=\"Yes\",'TSA Input'!J931=\"Contingent\"),'TSA Input'!F931,\"\"))","v":""},"",{"$f":"IF('TSA Input'!J931=\"\",\"\",IF(OR('TSA Input'!J931=\"Yes\",'TSA Input'!J931=\"Contingent\"),'TSA Input'!D931,\"\"))","v":""},{"$f":"IF('TSA Input'!J931=\"\",\"\",IF(OR('TSA Input'!J931=\"Yes\",'TSA Input'!J931=\"Contingent\"),'TSA Input'!G931,\"\"))","v":""},{"$f":"IF('TSA Input'!J931=\"\",\"\",IF(OR('TSA Input'!J931=\"Yes\",'TSA Input'!J931=\"Contingent\"),'TSA Input'!F931,\"\"))","v":""},"","Required","Required"]
["",null,{"$f":"IF('TSA Input'!J932=\"\",\"\",IF(OR('TSA Input'!J932=\"Yes\",'TSA Input'!J932=\"Contingent\"),'TSA Input'!B932,\"Ineligible\"))","v":""},{"$f":"IF('TSA Input'!J932=\"\",\"\",IF(OR('TSA Input'!J932=\"Yes\",'TSA Input'!J932=\"Contingent\"),'TSA Input'!I932,\"\"))","v":""},{"$f":"IF('TSA Input'!J932=\"\",\"\",IF(OR('TSA Input'!J932=\"Yes\",'TSA Input'!J932=\"Contingent\"),'TSA Input'!C932,\"\"))","v":""},{"$f":"IF('TSA Input'!J932=\"\",\"\",IF(OR('TSA Input'!J932=\"Yes\",'TSA Input'!J932=\"Contingent\"),'TSA Input'!D932,\"\"))","v":""},{"$f":"IF('TSA Input'!J932=\"\",\"\",IF(OR('TSA Input'!J932=\"Yes\",'TSA Input'!J932=\"Contingent\"),'TSA Input'!G932,\"\"))","v":""},{"$f":"IF('TSA Input'!J932=\"\",\"\",IF(OR('TSA Input'!J932=\"Yes\",'TSA Input'!J932=\"Contingent\"),'TSA Input'!F932,\"\"))","v":""},"",{"$f":"IF('TSA Input'!J932=\"\",\"\",IF(OR('TSA Input'!J932=\"Yes\",'TSA Input'!J932=\"Contingent\"),'TSA Input'!D932,\"\"))","v":""},{"$f":"IF('TSA Input'!J932=\"\",\"\",IF(OR('TSA Input'!J932=\"Yes\",'TSA Input'!J932=\"Contingent\"),'TSA Input'!G932,\"\"))","v":""},{"$f":"IF('TSA Input'!J932=\"\",\"\",IF(OR('TSA Input'!J932=\"Yes\",'TSA Input'!J932=\"Contingent\"),'TSA Input'!F932,\"\"))","v":""},"","Required","Required"]
["",null,{"$f":"IF('TSA Input'!J933=\"\",\"\",IF(OR('TSA Input'!J933=\"Yes\",'TSA Input'!J933=\"Contingent\"),'TSA Input'!B933,\"Ineligible\"))","v":""},{"$f":"IF('TSA Input'!J933=\"\",\"\",IF(OR('TSA Input'!J933=\"Yes\",'TSA Input'!J933=\"Contingent\"),'TSA Input'!I933,\"\"))","v":""},{"$f":"IF('TSA Input'!J933=\"\",\"\",IF(OR('TSA Input'!J933=\"Yes\",'TSA Input'!J933=\"Contingent\"),'TSA Input'!C933,\"\"))","v":""},{"$f":"IF('TSA Input'!J933=\"\",\"\",IF(OR('TSA Input'!J933=\"Yes\",'TSA Input'!J933=\"Contingent\"),'TSA Input'!D933,\"\"))","v":""},{"$f":"IF('TSA Input'!J933=\"\",\"\",IF(OR('TSA Input'!J933=\"Yes\",'TSA Input'!J933=\"Contingent\"),'TSA Input'!G933,\"\"))","v":""},{"$f":"IF('TSA Input'!J933=\"\",\"\",IF(OR('TSA Input'!J933=\"Yes\",'TSA Input'!J933=\"Contingent\"),'TSA Input'!F933,\"\"))","v":""},"",{"$f":"IF('TSA Input'!J933=\"\",\"\",IF(OR('TSA Input'!J933=\"Yes\",'TSA Input'!J933=\"Contingent\"),'TSA Input'!D933,\"\"))","v":""},{"$f":"IF('TSA Input'!J933=\"\",\"\",IF(OR('TSA Input'!J933=\"Yes\",'TSA Input'!J933=\"Contingent\"),'TSA Input'!G933,\"\"))","v":""},{"$f":"IF('TSA Input'!J933=\"\",\"\",IF(OR('TSA Input'!J933=\"Yes\",'TSA Input'!J933=\"Contingent\"),'TSA Input'!F933,\"\"))","v":""},"","Required","Required"]
["",null,{"$f":"IF('TSA Input'!J934=\"\",\"\",IF(OR('TSA Input'!J934=\"Yes\",'TSA Input'!J934=\"Contingent\"),'TSA Input'!B934,\"Ineligible\"))","v":""},{"$f":"IF('TSA Input'!J934=\"\",\"\",IF(OR('TSA Input'!J934=\"Yes\",'TSA Input'!J934=\"Contingent\"),'TSA Input'!I934,\"\"))","v":""},{"$f":"IF('TSA Input'!J934=\"\",\"\",IF(OR('TSA Input'!J934=\"Yes\",'TSA Input'!J934=\"Contingent\"),'TSA Input'!C934,\"\"))","v":""},{"$f":"IF('TSA Input'!J934=\"\",\"\",IF(OR('TSA Input'!J934=\"Yes\",'TSA Input'!J934=\"Contingent\"),'TSA Input'!D934,\"\"))","v":""},{"$f":"IF('TSA Input'!J934=\"\",\"\",IF(OR('TSA Input'!J934=\"Yes\",'TSA Input'!J934=\"Contingent\"),'TSA Input'!G934,\"\"))","v":""},{"$f":"IF('TSA Input'!J934=\"\",\"\",IF(OR('TSA Input'!J934=\"Yes\",'TSA Input'!J934=\"Contingent\"),'TSA Input'!F934,\"\"))","v":""},"",{"$f":"IF('TSA Input'!J934=\"\",\"\",IF(OR('TSA Input'!J934=\"Yes\",'TSA Input'!J934=\"Contingent\"),'TSA Input'!D934,\"\"))","v":""},{"$f":"IF('TSA Input'!J934=\"\",\"\",IF(OR('TSA Input'!J934=\"Yes\",'TSA Input'!J934=\"Contingent\"),'TSA Input'!G934,\"\"))","v":""},{"$f":"IF('TSA Input'!J934=\"\",\"\",IF(OR('TSA Input'!J934=\"Yes\",'TSA Input'!J934=\"Contingent\"),'TSA Input'!F934,\"\"))","v":""},"","Required","Required"]
["",null,{"$f":"IF('TSA Input'!J935=\"\",\"\",IF(OR('TSA Input'!J935=\"Yes\",'TSA Input'!J935=\"Contingent\"),'TSA Input'!B935,\"Ineligible\"))","v":""},{"$f":"IF('TSA Input'!J935=\"\",\"\",IF(OR('TSA Input'!J935=\"Yes\",'TSA Input'!J935=\"Contingent\"),'TSA Input'!I935,\"\"))","v":""},{"$f":"IF('TSA Input'!J935=\"\",\"\",IF(OR('TSA Input'!J935=\"Yes\",'TSA Input'!J935=\"Contingent\"),'TSA Input'!C935,\"\"))","v":""},{"$f":"IF('TSA Input'!J935=\"\",\"\",IF(OR('TSA Input'!J935=\"Yes\",'TSA Input'!J935=\"Contingent\"),'TSA Input'!D935,\"\"))","v":""},{"$f":"IF('TSA Input'!J935=\"\",\"\",IF(OR('TSA Input'!J935=\"Yes\",'TSA Input'!J935=\"Contingent\"),'TSA Input'!G935,\"\"))","v":""},{"$f":"IF('TSA Input'!J935=\"\",\"\",IF(OR('TSA Input'!J935=\"Yes\",'TSA Input'!J935=\"Contingent\"),'TSA Input'!F935,\"\"))","v":""},"",{"$f":"IF('TSA Input'!J935=\"\",\"\",IF(OR('TSA Input'!J935=\"Yes\",'TSA Input'!J935=\"Contingent\"),'TSA Input'!D935,\"\"))","v":""},{"$f":"IF('TSA Input'!J935=\"\",\"\",IF(OR('TSA Input'!J935=\"Yes\",'TSA Input'!J935=\"Contingent\"),'TSA Input'!G935,\"\"))","v":""},{"$f":"IF('TSA Input'!J935=\"\",\"\",IF(OR('TSA Input'!J935=\"Yes\",'TSA Input'!J935=\"Contingent\"),'TSA Input'!F935,\"\"))","v":""},"","Required","Required"]
["",null,{"$f":"IF('TSA Input'!J936=\"\",\"\",IF(OR('TSA Input'!J936=\"Yes\",'TSA Input'!J936=\"Contingent\"),'TSA Input'!B936,\"Ineligible\"))","v":""},{"$f":"IF('TSA Input'!J936=\"\",\"\",IF(OR('TSA Input'!J936=\"Yes\",'TSA Input'!J936=\"Contingent\"),'TSA Input'!I936,\"\"))","v":""},{"$f":"IF('TSA Input'!J936=\"\",\"\",IF(OR('TSA Input'!J936=\"Yes\",'TSA Input'!J936=\"Contingent\"),'TSA Input'!C936,\"\"))","v":""},{"$f":"IF('TSA Input'!J936=\"\",\"\",IF(OR('TSA Input'!J936=\"Yes\",'TSA Input'!J936=\"Contingent\"),'TSA Input'!D936,\"\"))","v":""},{"$f":"IF('TSA Input'!J936=\"\",\"\",IF(OR('TSA Input'!J936=\"Yes\",'TSA Input'!J936=\"Contingent\"),'TSA Input'!G936,\"\"))","v":""},{"$f":"IF('TSA Input'!J936=\"\",\"\",IF(OR('TSA Input'!J936=\"Yes\",'TSA Input'!J936=\"Contingent\"),'TSA Input'!F936,\"\"))","v":""},"",{"$f":"IF('TSA Input'!J936=\"\",\"\",IF(OR('TSA Input'!J936=\"Yes\",'TSA Input'!J936=\"Contingent\"),'TSA Input'!D936,\"\"))","v":""},{"$f":"IF('TSA Input'!J936=\"\",\"\",IF(OR('TSA Input'!J936=\"Yes\",'TSA Input'!J936=\"Contingent\"),'TSA Input'!G936,\"\"))","v":""},{"$f":"IF('TSA Input'!J936=\"\",\"\",IF(OR('TSA Input'!J936=\"Yes\",'TSA Input'!J936=\"Contingent\"),'TSA Input'!F936,\"\"))","v":""},"","Required","Required"]
["",null,{"$f":"IF('TSA Input'!J937=\"\",\"\",IF(OR('TSA Input'!J937=\"Yes\",'TSA Input'!J937=\"Contingent\"),'TSA Input'!B937,\"Ineligible\"))","v":""},{"$f":"IF('TSA Input'!J937=\"\",\"\",IF(OR('TSA Input'!J937=\"Yes\",'TSA Input'!J937=\"Contingent\"),'TSA Input'!I937,\"\"))","v":""},{"$f":"IF('TSA Input'!J937=\"\",\"\",IF(OR('TSA Input'!J937=\"Yes\",'TSA Input'!J937=\"Contingent\"),'TSA Input'!C937,\"\"))","v":""},{"$f":"IF('TSA Input'!J937=\"\",\"\",IF(OR('TSA Input'!J937=\"Yes\",'TSA Input'!J937=\"Contingent\"),'TSA Input'!D937,\"\"))","v":""},{"$f":"IF('TSA Input'!J937=\"\",\"\",IF(OR('TSA Input'!J937=\"Yes\",'TSA Input'!J937=\"Contingent\"),'TSA Input'!G937,\"\"))","v":""},{"$f":"IF('TSA Input'!J937=\"\",\"\",IF(OR('TSA Input'!J937=\"Yes\",'TSA Input'!J937=\"Contingent\"),'TSA Input'!F937,\"\"))","v":""},"",{"$f":"IF('TSA Input'!J937=\"\",\"\",IF(OR('TSA Input'!J937=\"Yes\",'TSA Input'!J937=\"Contingent\"),'TSA Input'!D937,\"\"))","v":""},{"$f":"IF('TSA Input'!J937=\"\",\"\",IF(OR('TSA Input'!J937=\"Yes\",'TSA Input'!J937=\"Contingent\"),'TSA Input'!G937,\"\"))","v":""},{"$f":"IF('TSA Input'!J937=\"\",\"\",IF(OR('TSA Input'!J937=\"Yes\",'TSA Input'!J937=\"Contingent\"),'TSA Input'!F937,\"\"))","v":""},"","Required","Required"]
["",null,{"$f":"IF('TSA Input'!J938=\"\",\"\",IF(OR('TSA Input'!J938=\"Yes\",'TSA Input'!J938=\"Contingent\"),'TSA Input'!B938,\"Ineligible\"))","v":""},{"$f":"IF('TSA Input'!J938=\"\",\"\",IF(OR('TSA Input'!J938=\"Yes\",'TSA Input'!J938=\"Contingent\"),'TSA Input'!I938,\"\"))","v":""},{"$f":"IF('TSA Input'!J938=\"\",\"\",IF(OR('TSA Input'!J938=\"Yes\",'TSA Input'!J938=\"Contingent\"),'TSA Input'!C938,\"\"))","v":""},{"$f":"IF('TSA Input'!J938=\"\",\"\",IF(OR('TSA Input'!J938=\"Yes\",'TSA Input'!J938=\"Contingent\"),'TSA Input'!D938,\"\"))","v":""},{"$f":"IF('TSA Input'!J938=\"\",\"\",IF(OR('TSA Input'!J938=\"Yes\",'TSA Input'!J938=\"Contingent\"),'TSA Input'!G938,\"\"))","v":""},{"$f":"IF('TSA Input'!J938=\"\",\"\",IF(OR('TSA Input'!J938=\"Yes\",'TSA Input'!J938=\"Contingent\"),'TSA Input'!F938,\"\"))","v":""},"",{"$f":"IF('TSA Input'!J938=\"\",\"\",IF(OR('TSA Input'!J938=\"Yes\",'TSA Input'!J938=\"Contingent\"),'TSA Input'!D938,\"\"))","v":""},{"$f":"IF('TSA Input'!J938=\"\",\"\",IF(OR('TSA Input'!J938=\"Yes\",'TSA Input'!J938=\"Contingent\"),'TSA Input'!G938,\"\"))","v":""},{"$f":"IF('TSA Input'!J938=\"\",\"\",IF(OR('TSA Input'!J938=\"Yes\",'TSA Input'!J938=\"Contingent\"),'TSA Input'!F938,\"\"))","v":""},"","Required","Required"]
["",null,{"$f":"IF('TSA Input'!J939=\"\",\"\",IF(OR('TSA Input'!J939=\"Yes\",'TSA Input'!J939=\"Contingent\"),'TSA Input'!B939,\"Ineligible\"))","v":""},{"$f":"IF('TSA Input'!J939=\"\",\"\",IF(OR('TSA Input'!J939=\"Yes\",'TSA Input'!J939=\"Contingent\"),'TSA Input'!I939,\"\"))","v":""},{"$f":"IF('TSA Input'!J939=\"\",\"\",IF(OR('TSA Input'!J939=\"Yes\",'TSA Input'!J939=\"Contingent\"),'TSA Input'!C939,\"\"))","v":""},{"$f":"IF('TSA Input'!J939=\"\",\"\",IF(OR('TSA Input'!J939=\"Yes\",'TSA Input'!J939=\"Contingent\"),'TSA Input'!D939,\"\"))","v":""},{"$f":"IF('TSA Input'!J939=\"\",\"\",IF(OR('TSA Input'!J939=\"Yes\",'TSA Input'!J939=\"Contingent\"),'TSA Input'!G939,\"\"))","v":""},{"$f":"IF('TSA Input'!J939=\"\",\"\",IF(OR('TSA Input'!J939=\"Yes\",'TSA Input'!J939=\"Contingent\"),'TSA Input'!F939,\"\"))","v":""},"",{"$f":"IF('TSA Input'!J939=\"\",\"\",IF(OR('TSA Input'!J939=\"Yes\",'TSA Input'!J939=\"Contingent\"),'TSA Input'!D939,\"\"))","v":""},{"$f":"IF('TSA Input'!J939=\"\",\"\",IF(OR('TSA Input'!J939=\"Yes\",'TSA Input'!J939=\"Contingent\"),'TSA Input'!G939,\"\"))","v":""},{"$f":"IF('TSA Input'!J939=\"\",\"\",IF(OR('TSA Input'!J939=\"Yes\",'TSA Input'!J939=\"Contingent\"),'TSA Input'!F939,\"\"))","v":""},"","Required","Required"]
["",null,{"$f":"IF('TSA Input'!J940=\"\",\"\",IF(OR('TSA Input'!J940=\"Yes\",'TSA Input'!J940=\"Contingent\"),'TSA Input'!B940,\"Ineligible\"))","v":""},{"$f":"IF('TSA Input'!J940=\"\",\"\",IF(OR('TSA Input'!J940=\"Yes\",'TSA Input'!J940=\"Contingent\"),'TSA Input'!I940,\"\"))","v":""},{"$f":"IF('TSA Input'!J940=\"\",\"\",IF(OR('TSA Input'!J940=\"Yes\",'TSA Input'!J940=\"Contingent\"),'TSA Input'!C940,\"\"))","v":""},{"$f":"IF('TSA Input'!J940=\"\",\"\",IF(OR('TSA Input'!J940=\"Yes\",'TSA Input'!J940=\"Contingent\"),'TSA Input'!D940,\"\"))","v":""},{"$f":"IF('TSA Input'!J940=\"\",\"\",IF(OR('TSA Input'!J940=\"Yes\",'TSA Input'!J940=\"Contingent\"),'TSA Input'!G940,\"\"))","v":""},{"$f":"IF('TSA Input'!J940=\"\",\"\",IF(OR('TSA Input'!J940=\"Yes\",'TSA Input'!J940=\"Contingent\"),'TSA Input'!F940,\"\"))","v":""},"",{"$f":"IF('TSA Input'!J940=\"\",\"\",IF(OR('TSA Input'!J940=\"Yes\",'TSA Input'!J940=\"Contingent\"),'TSA Input'!D940,\"\"))","v":""},{"$f":"IF('TSA Input'!J940=\"\",\"\",IF(OR('TSA Input'!J940=\"Yes\",'TSA Input'!J940=\"Contingent\"),'TSA Input'!G940,\"\"))","v":""},{"$f":"IF('TSA Input'!J940=\"\",\"\",IF(OR('TSA Input'!J940=\"Yes\",'TSA Input'!J940=\"Contingent\"),'TSA Input'!F940,\"\"))","v":""},"","Required","Required"]
["",null,{"$f":"IF('TSA Input'!J941=\"\",\"\",IF(OR('TSA Input'!J941=\"Yes\",'TSA Input'!J941=\"Contingent\"),'TSA Input'!B941,\"Ineligible\"))","v":""},{"$f":"IF('TSA Input'!J941=\"\",\"\",IF(OR('TSA Input'!J941=\"Yes\",'TSA Input'!J941=\"Contingent\"),'TSA Input'!I941,\"\"))","v":""},{"$f":"IF('TSA Input'!J941=\"\",\"\",IF(OR('TSA Input'!J941=\"Yes\",'TSA Input'!J941=\"Contingent\"),'TSA Input'!C941,\"\"))","v":""},{"$f":"IF('TSA Input'!J941=\"\",\"\",IF(OR('TSA Input'!J941=\"Yes\",'TSA Input'!J941=\"Contingent\"),'TSA Input'!D941,\"\"))","v":""},{"$f":"IF('TSA Input'!J941=\"\",\"\",IF(OR('TSA Input'!J941=\"Yes\",'TSA Input'!J941=\"Contingent\"),'TSA Input'!G941,\"\"))","v":""},{"$f":"IF('TSA Input'!J941=\"\",\"\",IF(OR('TSA Input'!J941=\"Yes\",'TSA Input'!J941=\"Contingent\"),'TSA Input'!F941,\"\"))","v":""},"",{"$f":"IF('TSA Input'!J941=\"\",\"\",IF(OR('TSA Input'!J941=\"Yes\",'TSA Input'!J941=\"Contingent\"),'TSA Input'!D941,\"\"))","v":""},{"$f":"IF('TSA Input'!J941=\"\",\"\",IF(OR('TSA Input'!J941=\"Yes\",'TSA Input'!J941=\"Contingent\"),'TSA Input'!G941,\"\"))","v":""},{"$f":"IF('TSA Input'!J941=\"\",\"\",IF(OR('TSA Input'!J941=\"Yes\",'TSA Input'!J941=\"Contingent\"),'TSA Input'!F941,\"\"))","v":""},"","Required","Required"]
["",null,{"$f":"IF('TSA Input'!J942=\"\",\"\",IF(OR('TSA Input'!J942=\"Yes\",'TSA Input'!J942=\"Contingent\"),'TSA Input'!B942,\"Ineligible\"))","v":""},{"$f":"IF('TSA Input'!J942=\"\",\"\",IF(OR('TSA Input'!J942=\"Yes\",'TSA Input'!J942=\"Contingent\"),'TSA Input'!I942,\"\"))","v":""},{"$f":"IF('TSA Input'!J942=\"\",\"\",IF(OR('TSA Input'!J942=\"Yes\",'TSA Input'!J942=\"Contingent\"),'TSA Input'!C942,\"\"))","v":""},{"$f":"IF('TSA Input'!J942=\"\",\"\",IF(OR('TSA Input'!J942=\"Yes\",'TSA Input'!J942=\"Contingent\"),'TSA Input'!D942,\"\"))","v":""},{"$f":"IF('TSA Input'!J942=\"\",\"\",IF(OR('TSA Input'!J942=\"Yes\",'TSA Input'!J942=\"Contingent\"),'TSA Input'!G942,\"\"))","v":""},{"$f":"IF('TSA Input'!J942=\"\",\"\",IF(OR('TSA Input'!J942=\"Yes\",'TSA Input'!J942=\"Contingent\"),'TSA Input'!F942,\"\"))","v":""},"",{"$f":"IF('TSA Input'!J942=\"\",\"\",IF(OR('TSA Input'!J942=\"Yes\",'TSA Input'!J942=\"Contingent\"),'TSA Input'!D942,\"\"))","v":""},{"$f":"IF('TSA Input'!J942=\"\",\"\",IF(OR('TSA Input'!J942=\"Yes\",'TSA Input'!J942=\"Contingent\"),'TSA Input'!G942,\"\"))","v":""},{"$f":"IF('TSA Input'!J942=\"\",\"\",IF(OR('TSA Input'!J942=\"Yes\",'TSA Input'!J942=\"Contingent\"),'TSA Input'!F942,\"\"))","v":""},"","Required","Required"]
["",null,{"$f":"IF('TSA Input'!J943=\"\",\"\",IF(OR('TSA Input'!J943=\"Yes\",'TSA Input'!J943=\"Contingent\"),'TSA Input'!B943,\"Ineligible\"))","v":""},{"$f":"IF('TSA Input'!J943=\"\",\"\",IF(OR('TSA Input'!J943=\"Yes\",'TSA Input'!J943=\"Contingent\"),'TSA Input'!I943,\"\"))","v":""},{"$f":"IF('TSA Input'!J943=\"\",\"\",IF(OR('TSA Input'!J943=\"Yes\",'TSA Input'!J943=\"Contingent\"),'TSA Input'!C943,\"\"))","v":""},{"$f":"IF('TSA Input'!J943=\"\",\"\",IF(OR('TSA Input'!J943=\"Yes\",'TSA Input'!J943=\"Contingent\"),'TSA Input'!D943,\"\"))","v":""},{"$f":"IF('TSA Input'!J943=\"\",\"\",IF(OR('TSA Input'!J943=\"Yes\",'TSA Input'!J943=\"Contingent\"),'TSA Input'!G943,\"\"))","v":""},{"$f":"IF('TSA Input'!J943=\"\",\"\",IF(OR('TSA Input'!J943=\"Yes\",'TSA Input'!J943=\"Contingent\"),'TSA Input'!F943,\"\"))","v":""},"",{"$f":"IF('TSA Input'!J943=\"\",\"\",IF(OR('TSA Input'!J943=\"Yes\",'TSA Input'!J943=\"Contingent\"),'TSA Input'!D943,\"\"))","v":""},{"$f":"IF('TSA Input'!J943=\"\",\"\",IF(OR('TSA Input'!J943=\"Yes\",'TSA Input'!J943=\"Contingent\"),'TSA Input'!G943,\"\"))","v":""},{"$f":"IF('TSA Input'!J943=\"\",\"\",IF(OR('TSA Input'!J943=\"Yes\",'TSA Input'!J943=\"Contingent\"),'TSA Input'!F943,\"\"))","v":""},"","Required","Required"]
["",null,{"$f":"IF('TSA Input'!J944=\"\",\"\",IF(OR('TSA Input'!J944=\"Yes\",'TSA Input'!J944=\"Contingent\"),'TSA Input'!B944,\"Ineligible\"))","v":""},{"$f":"IF('TSA Input'!J944=\"\",\"\",IF(OR('TSA Input'!J944=\"Yes\",'TSA Input'!J944=\"Contingent\"),'TSA Input'!I944,\"\"))","v":""},{"$f":"IF('TSA Input'!J944=\"\",\"\",IF(OR('TSA Input'!J944=\"Yes\",'TSA Input'!J944=\"Contingent\"),'TSA Input'!C944,\"\"))","v":""},{"$f":"IF('TSA Input'!J944=\"\",\"\",IF(OR('TSA Input'!J944=\"Yes\",'TSA Input'!J944=\"Contingent\"),'TSA Input'!D944,\"\"))","v":""},{"$f":"IF('TSA Input'!J944=\"\",\"\",IF(OR('TSA Input'!J944=\"Yes\",'TSA Input'!J944=\"Contingent\"),'TSA Input'!G944,\"\"))","v":""},{"$f":"IF('TSA Input'!J944=\"\",\"\",IF(OR('TSA Input'!J944=\"Yes\",'TSA Input'!J944=\"Contingent\"),'TSA Input'!F944,\"\"))","v":""},"",{"$f":"IF('TSA Input'!J944=\"\",\"\",IF(OR('TSA Input'!J944=\"Yes\",'TSA Input'!J944=\"Contingent\"),'TSA Input'!D944,\"\"))","v":""},{"$f":"IF('TSA Input'!J944=\"\",\"\",IF(OR('TSA Input'!J944=\"Yes\",'TSA Input'!J944=\"Contingent\"),'TSA Input'!G944,\"\"))","v":""},{"$f":"IF('TSA Input'!J944=\"\",\"\",IF(OR('TSA Input'!J944=\"Yes\",'TSA Input'!J944=\"Contingent\"),'TSA Input'!F944,\"\"))","v":""},"","Required","Required"]
["",null,{"$f":"IF('TSA Input'!J945=\"\",\"\",IF(OR('TSA Input'!J945=\"Yes\",'TSA Input'!J945=\"Contingent\"),'TSA Input'!B945,\"Ineligible\"))","v":""},{"$f":"IF('TSA Input'!J945=\"\",\"\",IF(OR('TSA Input'!J945=\"Yes\",'TSA Input'!J945=\"Contingent\"),'TSA Input'!I945,\"\"))","v":""},{"$f":"IF('TSA Input'!J945=\"\",\"\",IF(OR('TSA Input'!J945=\"Yes\",'TSA Input'!J945=\"Contingent\"),'TSA Input'!C945,\"\"))","v":""},{"$f":"IF('TSA Input'!J945=\"\",\"\",IF(OR('TSA Input'!J945=\"Yes\",'TSA Input'!J945=\"Contingent\"),'TSA Input'!D945,\"\"))","v":""},{"$f":"IF('TSA Input'!J945=\"\",\"\",IF(OR('TSA Input'!J945=\"Yes\",'TSA Input'!J945=\"Contingent\"),'TSA Input'!G945,\"\"))","v":""},{"$f":"IF('TSA Input'!J945=\"\",\"\",IF(OR('TSA Input'!J945=\"Yes\",'TSA Input'!J945=\"Contingent\"),'TSA Input'!F945,\"\"))","v":""},"",{"$f":"IF('TSA Input'!J945=\"\",\"\",IF(OR('TSA Input'!J945=\"Yes\",'TSA Input'!J945=\"Contingent\"),'TSA Input'!D945,\"\"))","v":""},{"$f":"IF('TSA Input'!J945=\"\",\"\",IF(OR('TSA Input'!J945=\"Yes\",'TSA Input'!J945=\"Contingent\"),'TSA Input'!G945,\"\"))","v":""},{"$f":"IF('TSA Input'!J945=\"\",\"\",IF(OR('TSA Input'!J945=\"Yes\",'TSA Input'!J945=\"Contingent\"),'TSA Input'!F945,\"\"))","v":""},"","Required","Required"]
["",null,{"$f":"IF('TSA Input'!J946=\"\",\"\",IF(OR('TSA Input'!J946=\"Yes\",'TSA Input'!J946=\"Contingent\"),'TSA Input'!B946,\"Ineligible\"))","v":""},{"$f":"IF('TSA Input'!J946=\"\",\"\",IF(OR('TSA Input'!J946=\"Yes\",'TSA Input'!J946=\"Contingent\"),'TSA Input'!I946,\"\"))","v":""},{"$f":"IF('TSA Input'!J946=\"\",\"\",IF(OR('TSA Input'!J946=\"Yes\",'TSA Input'!J946=\"Contingent\"),'TSA Input'!C946,\"\"))","v":""},{"$f":"IF('TSA Input'!J946=\"\",\"\",IF(OR('TSA Input'!J946=\"Yes\",'TSA Input'!J946=\"Contingent\"),'TSA Input'!D946,\"\"))","v":""},{"$f":"IF('TSA Input'!J946=\"\",\"\",IF(OR('TSA Input'!J946=\"Yes\",'TSA Input'!J946=\"Contingent\"),'TSA Input'!G946,\"\"))","v":""},{"$f":"IF('TSA Input'!J946=\"\",\"\",IF(OR('TSA Input'!J946=\"Yes\",'TSA Input'!J946=\"Contingent\"),'TSA Input'!F946,\"\"))","v":""},"",{"$f":"IF('TSA Input'!J946=\"\",\"\",IF(OR('TSA Input'!J946=\"Yes\",'TSA Input'!J946=\"Contingent\"),'TSA Input'!D946,\"\"))","v":""},{"$f":"IF('TSA Input'!J946=\"\",\"\",IF(OR('TSA Input'!J946=\"Yes\",'TSA Input'!J946=\"Contingent\"),'TSA Input'!G946,\"\"))","v":""},{"$f":"IF('TSA Input'!J946=\"\",\"\",IF(OR('TSA Input'!J946=\"Yes\",'TSA Input'!J946=\"Contingent\"),'TSA Input'!F946,\"\"))","v":""},"","Required","Required"]
["",null,{"$f":"IF('TSA Input'!J947=\"\",\"\",IF(OR('TSA Input'!J947=\"Yes\",'TSA Input'!J947=\"Contingent\"),'TSA Input'!B947,\"Ineligible\"))","v":""},{"$f":"IF('TSA Input'!J947=\"\",\"\",IF(OR('TSA Input'!J947=\"Yes\",'TSA Input'!J947=\"Contingent\"),'TSA Input'!I947,\"\"))","v":""},{"$f":"IF('TSA Input'!J947=\"\",\"\",IF(OR('TSA Input'!J947=\"Yes\",'TSA Input'!J947=\"Contingent\"),'TSA Input'!C947,\"\"))","v":""},{"$f":"IF('TSA Input'!J947=\"\",\"\",IF(OR('TSA Input'!J947=\"Yes\",'TSA Input'!J947=\"Contingent\"),'TSA Input'!D947,\"\"))","v":""},{"$f":"IF('TSA Input'!J947=\"\",\"\",IF(OR('TSA Input'!J947=\"Yes\",'TSA Input'!J947=\"Contingent\"),'TSA Input'!G947,\"\"))","v":""},{"$f":"IF('TSA Input'!J947=\"\",\"\",IF(OR('TSA Input'!J947=\"Yes\",'TSA Input'!J947=\"Contingent\"),'TSA Input'!F947,\"\"))","v":""},"",{"$f":"IF('TSA Input'!J947=\"\",\"\",IF(OR('TSA Input'!J947=\"Yes\",'TSA Input'!J947=\"Contingent\"),'TSA Input'!D947,\"\"))","v":""},{"$f":"IF('TSA Input'!J947=\"\",\"\",IF(OR('TSA Input'!J947=\"Yes\",'TSA Input'!J947=\"Contingent\"),'TSA Input'!G947,\"\"))","v":""},{"$f":"IF('TSA Input'!J947=\"\",\"\",IF(OR('TSA Input'!J947=\"Yes\",'TSA Input'!J947=\"Contingent\"),'TSA Input'!F947,\"\"))","v":""},"","Required","Required"]
["",null,{"$f":"IF('TSA Input'!J948=\"\",\"\",IF(OR('TSA Input'!J948=\"Yes\",'TSA Input'!J948=\"Contingent\"),'TSA Input'!B948,\"Ineligible\"))","v":""},{"$f":"IF('TSA Input'!J948=\"\",\"\",IF(OR('TSA Input'!J948=\"Yes\",'TSA Input'!J948=\"Contingent\"),'TSA Input'!I948,\"\"))","v":""},{"$f":"IF('TSA Input'!J948=\"\",\"\",IF(OR('TSA Input'!J948=\"Yes\",'TSA Input'!J948=\"Contingent\"),'TSA Input'!C948,\"\"))","v":""},{"$f":"IF('TSA Input'!J948=\"\",\"\",IF(OR('TSA Input'!J948=\"Yes\",'TSA Input'!J948=\"Contingent\"),'TSA Input'!D948,\"\"))","v":""},{"$f":"IF('TSA Input'!J948=\"\",\"\",IF(OR('TSA Input'!J948=\"Yes\",'TSA Input'!J948=\"Contingent\"),'TSA Input'!G948,\"\"))","v":""},{"$f":"IF('TSA Input'!J948=\"\",\"\",IF(OR('TSA Input'!J948=\"Yes\",'TSA Input'!J948=\"Contingent\"),'TSA Input'!F948,\"\"))","v":""},"",{"$f":"IF('TSA Input'!J948=\"\",\"\",IF(OR('TSA Input'!J948=\"Yes\",'TSA Input'!J948=\"Contingent\"),'TSA Input'!D948,\"\"))","v":""},{"$f":"IF('TSA Input'!J948=\"\",\"\",IF(OR('TSA Input'!J948=\"Yes\",'TSA Input'!J948=\"Contingent\"),'TSA Input'!G948,\"\"))","v":""},{"$f":"IF('TSA Input'!J948=\"\",\"\",IF(OR('TSA Input'!J948=\"Yes\",'TSA Input'!J948=\"Contingent\"),'TSA Input'!F948,\"\"))","v":""},"","Required","Required"]
["",null,{"$f":"IF('TSA Input'!J949=\"\",\"\",IF(OR('TSA Input'!J949=\"Yes\",'TSA Input'!J949=\"Contingent\"),'TSA Input'!B949,\"Ineligible\"))","v":""},{"$f":"IF('TSA Input'!J949=\"\",\"\",IF(OR('TSA Input'!J949=\"Yes\",'TSA Input'!J949=\"Contingent\"),'TSA Input'!I949,\"\"))","v":""},{"$f":"IF('TSA Input'!J949=\"\",\"\",IF(OR('TSA Input'!J949=\"Yes\",'TSA Input'!J949=\"Contingent\"),'TSA Input'!C949,\"\"))","v":""},{"$f":"IF('TSA Input'!J949=\"\",\"\",IF(OR('TSA Input'!J949=\"Yes\",'TSA Input'!J949=\"Contingent\"),'TSA Input'!D949,\"\"))","v":""},{"$f":"IF('TSA Input'!J949=\"\",\"\",IF(OR('TSA Input'!J949=\"Yes\",'TSA Input'!J949=\"Contingent\"),'TSA Input'!G949,\"\"))","v":""},{"$f":"IF('TSA Input'!J949=\"\",\"\",IF(OR('TSA Input'!J949=\"Yes\",'TSA Input'!J949=\"Contingent\"),'TSA Input'!F949,\"\"))","v":""},"",{"$f":"IF('TSA Input'!J949=\"\",\"\",IF(OR('TSA Input'!J949=\"Yes\",'TSA Input'!J949=\"Contingent\"),'TSA Input'!D949,\"\"))","v":""},{"$f":"IF('TSA Input'!J949=\"\",\"\",IF(OR('TSA Input'!J949=\"Yes\",'TSA Input'!J949=\"Contingent\"),'TSA Input'!G949,\"\"))","v":""},{"$f":"IF('TSA Input'!J949=\"\",\"\",IF(OR('TSA Input'!J949=\"Yes\",'TSA Input'!J949=\"Contingent\"),'TSA Input'!F949,\"\"))","v":""},"","Required","Required"]
["",null,{"$f":"IF('TSA Input'!J950=\"\",\"\",IF(OR('TSA Input'!J950=\"Yes\",'TSA Input'!J950=\"Contingent\"),'TSA Input'!B950,\"Ineligible\"))","v":""},{"$f":"IF('TSA Input'!J950=\"\",\"\",IF(OR('TSA Input'!J950=\"Yes\",'TSA Input'!J950=\"Contingent\"),'TSA Input'!I950,\"\"))","v":""},{"$f":"IF('TSA Input'!J950=\"\",\"\",IF(OR('TSA Input'!J950=\"Yes\",'TSA Input'!J950=\"Contingent\"),'TSA Input'!C950,\"\"))","v":""},{"$f":"IF('TSA Input'!J950=\"\",\"\",IF(OR('TSA Input'!J950=\"Yes\",'TSA Input'!J950=\"Contingent\"),'TSA Input'!D950,\"\"))","v":""},{"$f":"IF('TSA Input'!J950=\"\",\"\",IF(OR('TSA Input'!J950=\"Yes\",'TSA Input'!J950=\"Contingent\"),'TSA Input'!G950,\"\"))","v":""},{"$f":"IF('TSA Input'!J950=\"\",\"\",IF(OR('TSA Input'!J950=\"Yes\",'TSA Input'!J950=\"Contingent\"),'TSA Input'!F950,\"\"))","v":""},"",{"$f":"IF('TSA Input'!J950=\"\",\"\",IF(OR('TSA Input'!J950=\"Yes\",'TSA Input'!J950=\"Contingent\"),'TSA Input'!D950,\"\"))","v":""},{"$f":"IF('TSA Input'!J950=\"\",\"\",IF(OR('TSA Input'!J950=\"Yes\",'TSA Input'!J950=\"Contingent\"),'TSA Input'!G950,\"\"))","v":""},{"$f":"IF('TSA Input'!J950=\"\",\"\",IF(OR('TSA Input'!J950=\"Yes\",'TSA Input'!J950=\"Contingent\"),'TSA Input'!F950,\"\"))","v":""},"","Required","Required"]
["",null,{"$f":"IF('TSA Input'!J951=\"\",\"\",IF(OR('TSA Input'!J951=\"Yes\",'TSA Input'!J951=\"Contingent\"),'TSA Input'!B951,\"Ineligible\"))","v":""},{"$f":"IF('TSA Input'!J951=\"\",\"\",IF(OR('TSA Input'!J951=\"Yes\",'TSA Input'!J951=\"Contingent\"),'TSA Input'!I951,\"\"))","v":""},{"$f":"IF('TSA Input'!J951=\"\",\"\",IF(OR('TSA Input'!J951=\"Yes\",'TSA Input'!J951=\"Contingent\"),'TSA Input'!C951,\"\"))","v":""},{"$f":"IF('TSA Input'!J951=\"\",\"\",IF(OR('TSA Input'!J951=\"Yes\",'TSA Input'!J951=\"Contingent\"),'TSA Input'!D951,\"\"))","v":""},{"$f":"IF('TSA Input'!J951=\"\",\"\",IF(OR('TSA Input'!J951=\"Yes\",'TSA Input'!J951=\"Contingent\"),'TSA Input'!G951,\"\"))","v":""},{"$f":"IF('TSA Input'!J951=\"\",\"\",IF(OR('TSA Input'!J951=\"Yes\",'TSA Input'!J951=\"Contingent\"),'TSA Input'!F951,\"\"))","v":""},"",{"$f":"IF('TSA Input'!J951=\"\",\"\",IF(OR('TSA Input'!J951=\"Yes\",'TSA Input'!J951=\"Contingent\"),'TSA Input'!D951,\"\"))","v":""},{"$f":"IF('TSA Input'!J951=\"\",\"\",IF(OR('TSA Input'!J951=\"Yes\",'TSA Input'!J951=\"Contingent\"),'TSA Input'!G951,\"\"))","v":""},{"$f":"IF('TSA Input'!J951=\"\",\"\",IF(OR('TSA Input'!J951=\"Yes\",'TSA Input'!J951=\"Contingent\"),'TSA Input'!F951,\"\"))","v":""},"","Required","Required"]
["",null,{"$f":"IF('TSA Input'!J952=\"\",\"\",IF(OR('TSA Input'!J952=\"Yes\",'TSA Input'!J952=\"Contingent\"),'TSA Input'!B952,\"Ineligible\"))","v":""},{"$f":"IF('TSA Input'!J952=\"\",\"\",IF(OR('TSA Input'!J952=\"Yes\",'TSA Input'!J952=\"Contingent\"),'TSA Input'!I952,\"\"))","v":""},{"$f":"IF('TSA Input'!J952=\"\",\"\",IF(OR('TSA Input'!J952=\"Yes\",'TSA Input'!J952=\"Contingent\"),'TSA Input'!C952,\"\"))","v":""},{"$f":"IF('TSA Input'!J952=\"\",\"\",IF(OR('TSA Input'!J952=\"Yes\",'TSA Input'!J952=\"Contingent\"),'TSA Input'!D952,\"\"))","v":""},{"$f":"IF('TSA Input'!J952=\"\",\"\",IF(OR('TSA Input'!J952=\"Yes\",'TSA Input'!J952=\"Contingent\"),'TSA Input'!G952,\"\"))","v":""},{"$f":"IF('TSA Input'!J952=\"\",\"\",IF(OR('TSA Input'!J952=\"Yes\",'TSA Input'!J952=\"Contingent\"),'TSA Input'!F952,\"\"))","v":""},"",{"$f":"IF('TSA Input'!J952=\"\",\"\",IF(OR('TSA Input'!J952=\"Yes\",'TSA Input'!J952=\"Contingent\"),'TSA Input'!D952,\"\"))","v":""},{"$f":"IF('TSA Input'!J952=\"\",\"\",IF(OR('TSA Input'!J952=\"Yes\",'TSA Input'!J952=\"Contingent\"),'TSA Input'!G952,\"\"))","v":""},{"$f":"IF('TSA Input'!J952=\"\",\"\",IF(OR('TSA Input'!J952=\"Yes\",'TSA Input'!J952=\"Contingent\"),'TSA Input'!F952,\"\"))","v":""},"","Required","Required"]
["",null,{"$f":"IF('TSA Input'!J953=\"\",\"\",IF(OR('TSA Input'!J953=\"Yes\",'TSA Input'!J953=\"Contingent\"),'TSA Input'!B953,\"Ineligible\"))","v":""},{"$f":"IF('TSA Input'!J953=\"\",\"\",IF(OR('TSA Input'!J953=\"Yes\",'TSA Input'!J953=\"Contingent\"),'TSA Input'!I953,\"\"))","v":""},{"$f":"IF('TSA Input'!J953=\"\",\"\",IF(OR('TSA Input'!J953=\"Yes\",'TSA Input'!J953=\"Contingent\"),'TSA Input'!C953,\"\"))","v":""},{"$f":"IF('TSA Input'!J953=\"\",\"\",IF(OR('TSA Input'!J953=\"Yes\",'TSA Input'!J953=\"Contingent\"),'TSA Input'!D953,\"\"))","v":""},{"$f":"IF('TSA Input'!J953=\"\",\"\",IF(OR('TSA Input'!J953=\"Yes\",'TSA Input'!J953=\"Contingent\"),'TSA Input'!G953,\"\"))","v":""},{"$f":"IF('TSA Input'!J953=\"\",\"\",IF(OR('TSA Input'!J953=\"Yes\",'TSA Input'!J953=\"Contingent\"),'TSA Input'!F953,\"\"))","v":""},"",{"$f":"IF('TSA Input'!J953=\"\",\"\",IF(OR('TSA Input'!J953=\"Yes\",'TSA Input'!J953=\"Contingent\"),'TSA Input'!D953,\"\"))","v":""},{"$f":"IF('TSA Input'!J953=\"\",\"\",IF(OR('TSA Input'!J953=\"Yes\",'TSA Input'!J953=\"Contingent\"),'TSA Input'!G953,\"\"))","v":""},{"$f":"IF('TSA Input'!J953=\"\",\"\",IF(OR('TSA Input'!J953=\"Yes\",'TSA Input'!J953=\"Contingent\"),'TSA Input'!F953,\"\"))","v":""},"","Required","Required"]
["",null,{"$f":"IF('TSA Input'!J954=\"\",\"\",IF(OR('TSA Input'!J954=\"Yes\",'TSA Input'!J954=\"Contingent\"),'TSA Input'!B954,\"Ineligible\"))","v":""},{"$f":"IF('TSA Input'!J954=\"\",\"\",IF(OR('TSA Input'!J954=\"Yes\",'TSA Input'!J954=\"Contingent\"),'TSA Input'!I954,\"\"))","v":""},{"$f":"IF('TSA Input'!J954=\"\",\"\",IF(OR('TSA Input'!J954=\"Yes\",'TSA Input'!J954=\"Contingent\"),'TSA Input'!C954,\"\"))","v":""},{"$f":"IF('TSA Input'!J954=\"\",\"\",IF(OR('TSA Input'!J954=\"Yes\",'TSA Input'!J954=\"Contingent\"),'TSA Input'!D954,\"\"))","v":""},{"$f":"IF('TSA Input'!J954=\"\",\"\",IF(OR('TSA Input'!J954=\"Yes\",'TSA Input'!J954=\"Contingent\"),'TSA Input'!G954,\"\"))","v":""},{"$f":"IF('TSA Input'!J954=\"\",\"\",IF(OR('TSA Input'!J954=\"Yes\",'TSA Input'!J954=\"Contingent\"),'TSA Input'!F954,\"\"))","v":""},"",{"$f":"IF('TSA Input'!J954=\"\",\"\",IF(OR('TSA Input'!J954=\"Yes\",'TSA Input'!J954=\"Contingent\"),'TSA Input'!D954,\"\"))","v":""},{"$f":"IF('TSA Input'!J954=\"\",\"\",IF(OR('TSA Input'!J954=\"Yes\",'TSA Input'!J954=\"Contingent\"),'TSA Input'!G954,\"\"))","v":""},{"$f":"IF('TSA Input'!J954=\"\",\"\",IF(OR('TSA Input'!J954=\"Yes\",'TSA Input'!J954=\"Contingent\"),'TSA Input'!F954,\"\"))","v":""},"","Required","Required"]
["",null,{"$f":"IF('TSA Input'!J955=\"\",\"\",IF(OR('TSA Input'!J955=\"Yes\",'TSA Input'!J955=\"Contingent\"),'TSA Input'!B955,\"Ineligible\"))","v":""},{"$f":"IF('TSA Input'!J955=\"\",\"\",IF(OR('TSA Input'!J955=\"Yes\",'TSA Input'!J955=\"Contingent\"),'TSA Input'!I955,\"\"))","v":""},{"$f":"IF('TSA Input'!J955=\"\",\"\",IF(OR('TSA Input'!J955=\"Yes\",'TSA Input'!J955=\"Contingent\"),'TSA Input'!C955,\"\"))","v":""},{"$f":"IF('TSA Input'!J955=\"\",\"\",IF(OR('TSA Input'!J955=\"Yes\",'TSA Input'!J955=\"Contingent\"),'TSA Input'!D955,\"\"))","v":""},{"$f":"IF('TSA Input'!J955=\"\",\"\",IF(OR('TSA Input'!J955=\"Yes\",'TSA Input'!J955=\"Contingent\"),'TSA Input'!G955,\"\"))","v":""},{"$f":"IF('TSA Input'!J955=\"\",\"\",IF(OR('TSA Input'!J955=\"Yes\",'TSA Input'!J955=\"Contingent\"),'TSA Input'!F955,\"\"))","v":""},"",{"$f":"IF('TSA Input'!J955=\"\",\"\",IF(OR('TSA Input'!J955=\"Yes\",'TSA Input'!J955=\"Contingent\"),'TSA Input'!D955,\"\"))","v":""},{"$f":"IF('TSA Input'!J955=\"\",\"\",IF(OR('TSA Input'!J955=\"Yes\",'TSA Input'!J955=\"Contingent\"),'TSA Input'!G955,\"\"))","v":""},{"$f":"IF('TSA Input'!J955=\"\",\"\",IF(OR('TSA Input'!J955=\"Yes\",'TSA Input'!J955=\"Contingent\"),'TSA Input'!F955,\"\"))","v":""},"","Required","Required"]
["",null,{"$f":"IF('TSA Input'!J956=\"\",\"\",IF(OR('TSA Input'!J956=\"Yes\",'TSA Input'!J956=\"Contingent\"),'TSA Input'!B956,\"Ineligible\"))","v":""},{"$f":"IF('TSA Input'!J956=\"\",\"\",IF(OR('TSA Input'!J956=\"Yes\",'TSA Input'!J956=\"Contingent\"),'TSA Input'!I956,\"\"))","v":""},{"$f":"IF('TSA Input'!J956=\"\",\"\",IF(OR('TSA Input'!J956=\"Yes\",'TSA Input'!J956=\"Contingent\"),'TSA Input'!C956,\"\"))","v":""},{"$f":"IF('TSA Input'!J956=\"\",\"\",IF(OR('TSA Input'!J956=\"Yes\",'TSA Input'!J956=\"Contingent\"),'TSA Input'!D956,\"\"))","v":""},{"$f":"IF('TSA Input'!J956=\"\",\"\",IF(OR('TSA Input'!J956=\"Yes\",'TSA Input'!J956=\"Contingent\"),'TSA Input'!G956,\"\"))","v":""},{"$f":"IF('TSA Input'!J956=\"\",\"\",IF(OR('TSA Input'!J956=\"Yes\",'TSA Input'!J956=\"Contingent\"),'TSA Input'!F956,\"\"))","v":""},"",{"$f":"IF('TSA Input'!J956=\"\",\"\",IF(OR('TSA Input'!J956=\"Yes\",'TSA Input'!J956=\"Contingent\"),'TSA Input'!D956,\"\"))","v":""},{"$f":"IF('TSA Input'!J956=\"\",\"\",IF(OR('TSA Input'!J956=\"Yes\",'TSA Input'!J956=\"Contingent\"),'TSA Input'!G956,\"\"))","v":""},{"$f":"IF('TSA Input'!J956=\"\",\"\",IF(OR('TSA Input'!J956=\"Yes\",'TSA Input'!J956=\"Contingent\"),'TSA Input'!F956,\"\"))","v":""},"","Required","Required"]
["",null,{"$f":"IF('TSA Input'!J957=\"\",\"\",IF(OR('TSA Input'!J957=\"Yes\",'TSA Input'!J957=\"Contingent\"),'TSA Input'!B957,\"Ineligible\"))","v":""},{"$f":"IF('TSA Input'!J957=\"\",\"\",IF(OR('TSA Input'!J957=\"Yes\",'TSA Input'!J957=\"Contingent\"),'TSA Input'!I957,\"\"))","v":""},{"$f":"IF('TSA Input'!J957=\"\",\"\",IF(OR('TSA Input'!J957=\"Yes\",'TSA Input'!J957=\"Contingent\"),'TSA Input'!C957,\"\"))","v":""},{"$f":"IF('TSA Input'!J957=\"\",\"\",IF(OR('TSA Input'!J957=\"Yes\",'TSA Input'!J957=\"Contingent\"),'TSA Input'!D957,\"\"))","v":""},{"$f":"IF('TSA Input'!J957=\"\",\"\",IF(OR('TSA Input'!J957=\"Yes\",'TSA Input'!J957=\"Contingent\"),'TSA Input'!G957,\"\"))","v":""},{"$f":"IF('TSA Input'!J957=\"\",\"\",IF(OR('TSA Input'!J957=\"Yes\",'TSA Input'!J957=\"Contingent\"),'TSA Input'!F957,\"\"))","v":""},"",{"$f":"IF('TSA Input'!J957=\"\",\"\",IF(OR('TSA Input'!J957=\"Yes\",'TSA Input'!J957=\"Contingent\"),'TSA Input'!D957,\"\"))","v":""},{"$f":"IF('TSA Input'!J957=\"\",\"\",IF(OR('TSA Input'!J957=\"Yes\",'TSA Input'!J957=\"Contingent\"),'TSA Input'!G957,\"\"))","v":""},{"$f":"IF('TSA Input'!J957=\"\",\"\",IF(OR('TSA Input'!J957=\"Yes\",'TSA Input'!J957=\"Contingent\"),'TSA Input'!F957,\"\"))","v":""},"","Required","Required"]
["",null,{"$f":"IF('TSA Input'!J958=\"\",\"\",IF(OR('TSA Input'!J958=\"Yes\",'TSA Input'!J958=\"Contingent\"),'TSA Input'!B958,\"Ineligible\"))","v":""},{"$f":"IF('TSA Input'!J958=\"\",\"\",IF(OR('TSA Input'!J958=\"Yes\",'TSA Input'!J958=\"Contingent\"),'TSA Input'!I958,\"\"))","v":""},{"$f":"IF('TSA Input'!J958=\"\",\"\",IF(OR('TSA Input'!J958=\"Yes\",'TSA Input'!J958=\"Contingent\"),'TSA Input'!C958,\"\"))","v":""},{"$f":"IF('TSA Input'!J958=\"\",\"\",IF(OR('TSA Input'!J958=\"Yes\",'TSA Input'!J958=\"Contingent\"),'TSA Input'!D958,\"\"))","v":""},{"$f":"IF('TSA Input'!J958=\"\",\"\",IF(OR('TSA Input'!J958=\"Yes\",'TSA Input'!J958=\"Contingent\"),'TSA Input'!G958,\"\"))","v":""},{"$f":"IF('TSA Input'!J958=\"\",\"\",IF(OR('TSA Input'!J958=\"Yes\",'TSA Input'!J958=\"Contingent\"),'TSA Input'!F958,\"\"))","v":""},"",{"$f":"IF('TSA Input'!J958=\"\",\"\",IF(OR('TSA Input'!J958=\"Yes\",'TSA Input'!J958=\"Contingent\"),'TSA Input'!D958,\"\"))","v":""},{"$f":"IF('TSA Input'!J958=\"\",\"\",IF(OR('TSA Input'!J958=\"Yes\",'TSA Input'!J958=\"Contingent\"),'TSA Input'!G958,\"\"))","v":""},{"$f":"IF('TSA Input'!J958=\"\",\"\",IF(OR('TSA Input'!J958=\"Yes\",'TSA Input'!J958=\"Contingent\"),'TSA Input'!F958,\"\"))","v":""},"","Required","Required"]
["",null,{"$f":"IF('TSA Input'!J959=\"\",\"\",IF(OR('TSA Input'!J959=\"Yes\",'TSA Input'!J959=\"Contingent\"),'TSA Input'!B959,\"Ineligible\"))","v":""},{"$f":"IF('TSA Input'!J959=\"\",\"\",IF(OR('TSA Input'!J959=\"Yes\",'TSA Input'!J959=\"Contingent\"),'TSA Input'!I959,\"\"))","v":""},{"$f":"IF('TSA Input'!J959=\"\",\"\",IF(OR('TSA Input'!J959=\"Yes\",'TSA Input'!J959=\"Contingent\"),'TSA Input'!C959,\"\"))","v":""},{"$f":"IF('TSA Input'!J959=\"\",\"\",IF(OR('TSA Input'!J959=\"Yes\",'TSA Input'!J959=\"Contingent\"),'TSA Input'!D959,\"\"))","v":""},{"$f":"IF('TSA Input'!J959=\"\",\"\",IF(OR('TSA Input'!J959=\"Yes\",'TSA Input'!J959=\"Contingent\"),'TSA Input'!G959,\"\"))","v":""},{"$f":"IF('TSA Input'!J959=\"\",\"\",IF(OR('TSA Input'!J959=\"Yes\",'TSA Input'!J959=\"Contingent\"),'TSA Input'!F959,\"\"))","v":""},"",{"$f":"IF('TSA Input'!J959=\"\",\"\",IF(OR('TSA Input'!J959=\"Yes\",'TSA Input'!J959=\"Contingent\"),'TSA Input'!D959,\"\"))","v":""},{"$f":"IF('TSA Input'!J959=\"\",\"\",IF(OR('TSA Input'!J959=\"Yes\",'TSA Input'!J959=\"Contingent\"),'TSA Input'!G959,\"\"))","v":""},{"$f":"IF('TSA Input'!J959=\"\",\"\",IF(OR('TSA Input'!J959=\"Yes\",'TSA Input'!J959=\"Contingent\"),'TSA Input'!F959,\"\"))","v":""},"","Required","Required"]
["",null,{"$f":"IF('TSA Input'!J960=\"\",\"\",IF(OR('TSA Input'!J960=\"Yes\",'TSA Input'!J960=\"Contingent\"),'TSA Input'!B960,\"Ineligible\"))","v":""},{"$f":"IF('TSA Input'!J960=\"\",\"\",IF(OR('TSA Input'!J960=\"Yes\",'TSA Input'!J960=\"Contingent\"),'TSA Input'!I960,\"\"))","v":""},{"$f":"IF('TSA Input'!J960=\"\",\"\",IF(OR('TSA Input'!J960=\"Yes\",'TSA Input'!J960=\"Contingent\"),'TSA Input'!C960,\"\"))","v":""},{"$f":"IF('TSA Input'!J960=\"\",\"\",IF(OR('TSA Input'!J960=\"Yes\",'TSA Input'!J960=\"Contingent\"),'TSA Input'!D960,\"\"))","v":""},{"$f":"IF('TSA Input'!J960=\"\",\"\",IF(OR('TSA Input'!J960=\"Yes\",'TSA Input'!J960=\"Contingent\"),'TSA Input'!G960,\"\"))","v":""},{"$f":"IF('TSA Input'!J960=\"\",\"\",IF(OR('TSA Input'!J960=\"Yes\",'TSA Input'!J960=\"Contingent\"),'TSA Input'!F960,\"\"))","v":""},"",{"$f":"IF('TSA Input'!J960=\"\",\"\",IF(OR('TSA Input'!J960=\"Yes\",'TSA Input'!J960=\"Contingent\"),'TSA Input'!D960,\"\"))","v":""},{"$f":"IF('TSA Input'!J960=\"\",\"\",IF(OR('TSA Input'!J960=\"Yes\",'TSA Input'!J960=\"Contingent\"),'TSA Input'!G960,\"\"))","v":""},{"$f":"IF('TSA Input'!J960=\"\",\"\",IF(OR('TSA Input'!J960=\"Yes\",'TSA Input'!J960=\"Contingent\"),'TSA Input'!F960,\"\"))","v":""},"","Required","Required"]
["",null,{"$f":"IF('TSA Input'!J961=\"\",\"\",IF(OR('TSA Input'!J961=\"Yes\",'TSA Input'!J961=\"Contingent\"),'TSA Input'!B961,\"Ineligible\"))","v":""},{"$f":"IF('TSA Input'!J961=\"\",\"\",IF(OR('TSA Input'!J961=\"Yes\",'TSA Input'!J961=\"Contingent\"),'TSA Input'!I961,\"\"))","v":""},{"$f":"IF('TSA Input'!J961=\"\",\"\",IF(OR('TSA Input'!J961=\"Yes\",'TSA Input'!J961=\"Contingent\"),'TSA Input'!C961,\"\"))","v":""},{"$f":"IF('TSA Input'!J961=\"\",\"\",IF(OR('TSA Input'!J961=\"Yes\",'TSA Input'!J961=\"Contingent\"),'TSA Input'!D961,\"\"))","v":""},{"$f":"IF('TSA Input'!J961=\"\",\"\",IF(OR('TSA Input'!J961=\"Yes\",'TSA Input'!J961=\"Contingent\"),'TSA Input'!G961,\"\"))","v":""},{"$f":"IF('TSA Input'!J961=\"\",\"\",IF(OR('TSA Input'!J961=\"Yes\",'TSA Input'!J961=\"Contingent\"),'TSA Input'!F961,\"\"))","v":""},"",{"$f":"IF('TSA Input'!J961=\"\",\"\",IF(OR('TSA Input'!J961=\"Yes\",'TSA Input'!J961=\"Contingent\"),'TSA Input'!D961,\"\"))","v":""},{"$f":"IF('TSA Input'!J961=\"\",\"\",IF(OR('TSA Input'!J961=\"Yes\",'TSA Input'!J961=\"Contingent\"),'TSA Input'!G961,\"\"))","v":""},{"$f":"IF('TSA Input'!J961=\"\",\"\",IF(OR('TSA Input'!J961=\"Yes\",'TSA Input'!J961=\"Contingent\"),'TSA Input'!F961,\"\"))","v":""},"","Required","Required"]
["",null,{"$f":"IF('TSA Input'!J962=\"\",\"\",IF(OR('TSA Input'!J962=\"Yes\",'TSA Input'!J962=\"Contingent\"),'TSA Input'!B962,\"Ineligible\"))","v":""},{"$f":"IF('TSA Input'!J962=\"\",\"\",IF(OR('TSA Input'!J962=\"Yes\",'TSA Input'!J962=\"Contingent\"),'TSA Input'!I962,\"\"))","v":""},{"$f":"IF('TSA Input'!J962=\"\",\"\",IF(OR('TSA Input'!J962=\"Yes\",'TSA Input'!J962=\"Contingent\"),'TSA Input'!C962,\"\"))","v":""},{"$f":"IF('TSA Input'!J962=\"\",\"\",IF(OR('TSA Input'!J962=\"Yes\",'TSA Input'!J962=\"Contingent\"),'TSA Input'!D962,\"\"))","v":""},{"$f":"IF('TSA Input'!J962=\"\",\"\",IF(OR('TSA Input'!J962=\"Yes\",'TSA Input'!J962=\"Contingent\"),'TSA Input'!G962,\"\"))","v":""},{"$f":"IF('TSA Input'!J962=\"\",\"\",IF(OR('TSA Input'!J962=\"Yes\",'TSA Input'!J962=\"Contingent\"),'TSA Input'!F962,\"\"))","v":""},"",{"$f":"IF('TSA Input'!J962=\"\",\"\",IF(OR('TSA Input'!J962=\"Yes\",'TSA Input'!J962=\"Contingent\"),'TSA Input'!D962,\"\"))","v":""},{"$f":"IF('TSA Input'!J962=\"\",\"\",IF(OR('TSA Input'!J962=\"Yes\",'TSA Input'!J962=\"Contingent\"),'TSA Input'!G962,\"\"))","v":""},{"$f":"IF('TSA Input'!J962=\"\",\"\",IF(OR('TSA Input'!J962=\"Yes\",'TSA Input'!J962=\"Contingent\"),'TSA Input'!F962,\"\"))","v":""},"","Required","Required"]
["",null,{"$f":"IF('TSA Input'!J963=\"\",\"\",IF(OR('TSA Input'!J963=\"Yes\",'TSA Input'!J963=\"Contingent\"),'TSA Input'!B963,\"Ineligible\"))","v":""},{"$f":"IF('TSA Input'!J963=\"\",\"\",IF(OR('TSA Input'!J963=\"Yes\",'TSA Input'!J963=\"Contingent\"),'TSA Input'!I963,\"\"))","v":""},{"$f":"IF('TSA Input'!J963=\"\",\"\",IF(OR('TSA Input'!J963=\"Yes\",'TSA Input'!J963=\"Contingent\"),'TSA Input'!C963,\"\"))","v":""},{"$f":"IF('TSA Input'!J963=\"\",\"\",IF(OR('TSA Input'!J963=\"Yes\",'TSA Input'!J963=\"Contingent\"),'TSA Input'!D963,\"\"))","v":""},{"$f":"IF('TSA Input'!J963=\"\",\"\",IF(OR('TSA Input'!J963=\"Yes\",'TSA Input'!J963=\"Contingent\"),'TSA Input'!G963,\"\"))","v":""},{"$f":"IF('TSA Input'!J963=\"\",\"\",IF(OR('TSA Input'!J963=\"Yes\",'TSA Input'!J963=\"Contingent\"),'TSA Input'!F963,\"\"))","v":""},"",{"$f":"IF('TSA Input'!J963=\"\",\"\",IF(OR('TSA Input'!J963=\"Yes\",'TSA Input'!J963=\"Contingent\"),'TSA Input'!D963,\"\"))","v":""},{"$f":"IF('TSA Input'!J963=\"\",\"\",IF(OR('TSA Input'!J963=\"Yes\",'TSA Input'!J963=\"Contingent\"),'TSA Input'!G963,\"\"))","v":""},{"$f":"IF('TSA Input'!J963=\"\",\"\",IF(OR('TSA Input'!J963=\"Yes\",'TSA Input'!J963=\"Contingent\"),'TSA Input'!F963,\"\"))","v":""},"","Required","Required"]
["",null,{"$f":"IF('TSA Input'!J964=\"\",\"\",IF(OR('TSA Input'!J964=\"Yes\",'TSA Input'!J964=\"Contingent\"),'TSA Input'!B964,\"Ineligible\"))","v":""},{"$f":"IF('TSA Input'!J964=\"\",\"\",IF(OR('TSA Input'!J964=\"Yes\",'TSA Input'!J964=\"Contingent\"),'TSA Input'!I964,\"\"))","v":""},{"$f":"IF('TSA Input'!J964=\"\",\"\",IF(OR('TSA Input'!J964=\"Yes\",'TSA Input'!J964=\"Contingent\"),'TSA Input'!C964,\"\"))","v":""},{"$f":"IF('TSA Input'!J964=\"\",\"\",IF(OR('TSA Input'!J964=\"Yes\",'TSA Input'!J964=\"Contingent\"),'TSA Input'!D964,\"\"))","v":""},{"$f":"IF('TSA Input'!J964=\"\",\"\",IF(OR('TSA Input'!J964=\"Yes\",'TSA Input'!J964=\"Contingent\"),'TSA Input'!G964,\"\"))","v":""},{"$f":"IF('TSA Input'!J964=\"\",\"\",IF(OR('TSA Input'!J964=\"Yes\",'TSA Input'!J964=\"Contingent\"),'TSA Input'!F964,\"\"))","v":""},{"$f":"IF($C1002=\"\",\"\",SUM(F1002:H1002))","v":""},{"$f":"IF('TSA Input'!J964=\"\",\"\",IF(OR('TSA Input'!J964=\"Yes\",'TSA Input'!J964=\"Contingent\"),'TSA Input'!D964,\"\"))","v":""},{"$f":"IF('TSA Input'!J964=\"\",\"\",IF(OR('TSA Input'!J964=\"Yes\",'TSA Input'!J964=\"Contingent\"),'TSA Input'!G964,\"\"))","v":""},{"$f":"IF('TSA Input'!J964=\"\",\"\",IF(OR('TSA Input'!J964=\"Yes\",'TSA Input'!J964=\"Contingent\"),'TSA Input'!F964,\"\"))","v":""},{"$f":"IF($C1002=\"\",\"\",SUM(J1002:L1002))","v":""},"Required","Required"]
["",null,{"$f":"IF('TSA Input'!J965=\"\",\"\",IF(OR('TSA Input'!J965=\"Yes\",'TSA Input'!J965=\"Contingent\"),'TSA Input'!B965,\"Ineligible\"))","v":""},{"$f":"IF('TSA Input'!J965=\"\",\"\",IF(OR('TSA Input'!J965=\"Yes\",'TSA Input'!J965=\"Contingent\"),'TSA Input'!I965,\"\"))","v":""},{"$f":"IF('TSA Input'!J965=\"\",\"\",IF(OR('TSA Input'!J965=\"Yes\",'TSA Input'!J965=\"Contingent\"),'TSA Input'!C965,\"\"))","v":""},{"$f":"IF('TSA Input'!J965=\"\",\"\",IF(OR('TSA Input'!J965=\"Yes\",'TSA Input'!J965=\"Contingent\"),'TSA Input'!D965,\"\"))","v":""},{"$f":"IF('TSA Input'!J965=\"\",\"\",IF(OR('TSA Input'!J965=\"Yes\",'TSA Input'!J965=\"Contingent\"),'TSA Input'!G965,\"\"))","v":""},{"$f":"IF('TSA Input'!J965=\"\",\"\",IF(OR('TSA Input'!J965=\"Yes\",'TSA Input'!J965=\"Contingent\"),'TSA Input'!F965,\"\"))","v":""},"",{"$f":"IF('TSA Input'!J965=\"\",\"\",IF(OR('TSA Input'!J965=\"Yes\",'TSA Input'!J965=\"Contingent\"),'TSA Input'!D965,\"\"))","v":""},{"$f":"IF('TSA Input'!J965=\"\",\"\",IF(OR('TSA Input'!J965=\"Yes\",'TSA Input'!J965=\"Contingent\"),'TSA Input'!G965,\"\"))","v":""},{"$f":"IF('TSA Input'!J965=\"\",\"\",IF(OR('TSA Input'!J965=\"Yes\",'TSA Input'!J965=\"Contingent\"),'TSA Input'!F965,\"\"))","v":""},"","Required","Required"]
["",null,{"$f":"IF('TSA Input'!J966=\"\",\"\",IF(OR('TSA Input'!J966=\"Yes\",'TSA Input'!J966=\"Contingent\"),'TSA Input'!B966,\"Ineligible\"))","v":""},{"$f":"IF('TSA Input'!J966=\"\",\"\",IF(OR('TSA Input'!J966=\"Yes\",'TSA Input'!J966=\"Contingent\"),'TSA Input'!I966,\"\"))","v":""},{"$f":"IF('TSA Input'!J966=\"\",\"\",IF(OR('TSA Input'!J966=\"Yes\",'TSA Input'!J966=\"Contingent\"),'TSA Input'!C966,\"\"))","v":""},{"$f":"IF('TSA Input'!J966=\"\",\"\",IF(OR('TSA Input'!J966=\"Yes\",'TSA Input'!J966=\"Contingent\"),'TSA Input'!D966,\"\"))","v":""},{"$f":"IF('TSA Input'!J966=\"\",\"\",IF(OR('TSA Input'!J966=\"Yes\",'TSA Input'!J966=\"Contingent\"),'TSA Input'!G966,\"\"))","v":""},{"$f":"IF('TSA Input'!J966=\"\",\"\",IF(OR('TSA Input'!J966=\"Yes\",'TSA Input'!J966=\"Contingent\"),'TSA Input'!F966,\"\"))","v":""},"",{"$f":"IF('TSA Input'!J966=\"\",\"\",IF(OR('TSA Input'!J966=\"Yes\",'TSA Input'!J966=\"Contingent\"),'TSA Input'!D966,\"\"))","v":""},{"$f":"IF('TSA Input'!J966=\"\",\"\",IF(OR('TSA Input'!J966=\"Yes\",'TSA Input'!J966=\"Contingent\"),'TSA Input'!G966,\"\"))","v":""},{"$f":"IF('TSA Input'!J966=\"\",\"\",IF(OR('TSA Input'!J966=\"Yes\",'TSA Input'!J966=\"Contingent\"),'TSA Input'!F966,\"\"))","v":""},"","Required","Required"]
["",null,{"$f":"IF('TSA Input'!J967=\"\",\"\",IF(OR('TSA Input'!J967=\"Yes\",'TSA Input'!J967=\"Contingent\"),'TSA Input'!B967,\"Ineligible\"))","v":""},{"$f":"IF('TSA Input'!J967=\"\",\"\",IF(OR('TSA Input'!J967=\"Yes\",'TSA Input'!J967=\"Contingent\"),'TSA Input'!I967,\"\"))","v":""},{"$f":"IF('TSA Input'!J967=\"\",\"\",IF(OR('TSA Input'!J967=\"Yes\",'TSA Input'!J967=\"Contingent\"),'TSA Input'!C967,\"\"))","v":""},{"$f":"IF('TSA Input'!J967=\"\",\"\",IF(OR('TSA Input'!J967=\"Yes\",'TSA Input'!J967=\"Contingent\"),'TSA Input'!D967,\"\"))","v":""},{"$f":"IF('TSA Input'!J967=\"\",\"\",IF(OR('TSA Input'!J967=\"Yes\",'TSA Input'!J967=\"Contingent\"),'TSA Input'!G967,\"\"))","v":""},{"$f":"IF('TSA Input'!J967=\"\",\"\",IF(OR('TSA Input'!J967=\"Yes\",'TSA Input'!J967=\"Contingent\"),'TSA Input'!F967,\"\"))","v":""},"",{"$f":"IF('TSA Input'!J967=\"\",\"\",IF(OR('TSA Input'!J967=\"Yes\",'TSA Input'!J967=\"Contingent\"),'TSA Input'!D967,\"\"))","v":""},{"$f":"IF('TSA Input'!J967=\"\",\"\",IF(OR('TSA Input'!J967=\"Yes\",'TSA Input'!J967=\"Contingent\"),'TSA Input'!G967,\"\"))","v":""},{"$f":"IF('TSA Input'!J967=\"\",\"\",IF(OR('TSA Input'!J967=\"Yes\",'TSA Input'!J967=\"Contingent\"),'TSA Input'!F967,\"\"))","v":""},"","Required","Required"]
["",null,{"$f":"IF('TSA Input'!J968=\"\",\"\",IF(OR('TSA Input'!J968=\"Yes\",'TSA Input'!J968=\"Contingent\"),'TSA Input'!B968,\"Ineligible\"))","v":""},{"$f":"IF('TSA Input'!J968=\"\",\"\",IF(OR('TSA Input'!J968=\"Yes\",'TSA Input'!J968=\"Contingent\"),'TSA Input'!I968,\"\"))","v":""},{"$f":"IF('TSA Input'!J968=\"\",\"\",IF(OR('TSA Input'!J968=\"Yes\",'TSA Input'!J968=\"Contingent\"),'TSA Input'!C968,\"\"))","v":""},{"$f":"IF('TSA Input'!J968=\"\",\"\",IF(OR('TSA Input'!J968=\"Yes\",'TSA Input'!J968=\"Contingent\"),'TSA Input'!D968,\"\"))","v":""},{"$f":"IF('TSA Input'!J968=\"\",\"\",IF(OR('TSA Input'!J968=\"Yes\",'TSA Input'!J968=\"Contingent\"),'TSA Input'!G968,\"\"))","v":""},{"$f":"IF('TSA Input'!J968=\"\",\"\",IF(OR('TSA Input'!J968=\"Yes\",'TSA Input'!J968=\"Contingent\"),'TSA Input'!F968,\"\"))","v":""},"",{"$f":"IF('TSA Input'!J968=\"\",\"\",IF(OR('TSA Input'!J968=\"Yes\",'TSA Input'!J968=\"Contingent\"),'TSA Input'!D968,\"\"))","v":""},{"$f":"IF('TSA Input'!J968=\"\",\"\",IF(OR('TSA Input'!J968=\"Yes\",'TSA Input'!J968=\"Contingent\"),'TSA Input'!G968,\"\"))","v":""},{"$f":"IF('TSA Input'!J968=\"\",\"\",IF(OR('TSA Input'!J968=\"Yes\",'TSA Input'!J968=\"Contingent\"),'TSA Input'!F968,\"\"))","v":""},"","Required","Required"]
["",null,{"$f":"IF('TSA Input'!J969=\"\",\"\",IF(OR('TSA Input'!J969=\"Yes\",'TSA Input'!J969=\"Contingent\"),'TSA Input'!B969,\"Ineligible\"))","v":""},{"$f":"IF('TSA Input'!J969=\"\",\"\",IF(OR('TSA Input'!J969=\"Yes\",'TSA Input'!J969=\"Contingent\"),'TSA Input'!I969,\"\"))","v":""},{"$f":"IF('TSA Input'!J969=\"\",\"\",IF(OR('TSA Input'!J969=\"Yes\",'TSA Input'!J969=\"Contingent\"),'TSA Input'!C969,\"\"))","v":""},{"$f":"IF('TSA Input'!J969=\"\",\"\",IF(OR('TSA Input'!J969=\"Yes\",'TSA Input'!J969=\"Contingent\"),'TSA Input'!D969,\"\"))","v":""},{"$f":"IF('TSA Input'!J969=\"\",\"\",IF(OR('TSA Input'!J969=\"Yes\",'TSA Input'!J969=\"Contingent\"),'TSA Input'!G969,\"\"))","v":""},{"$f":"IF('TSA Input'!J969=\"\",\"\",IF(OR('TSA Input'!J969=\"Yes\",'TSA Input'!J969=\"Contingent\"),'TSA Input'!F969,\"\"))","v":""},"",{"$f":"IF('TSA Input'!J969=\"\",\"\",IF(OR('TSA Input'!J969=\"Yes\",'TSA Input'!J969=\"Contingent\"),'TSA Input'!D969,\"\"))","v":""},{"$f":"IF('TSA Input'!J969=\"\",\"\",IF(OR('TSA Input'!J969=\"Yes\",'TSA Input'!J969=\"Contingent\"),'TSA Input'!G969,\"\"))","v":""},{"$f":"IF('TSA Input'!J969=\"\",\"\",IF(OR('TSA Input'!J969=\"Yes\",'TSA Input'!J969=\"Contingent\"),'TSA Input'!F969,\"\"))","v":""},"","Required","Required"]
["",null,{"$f":"IF('TSA Input'!J970=\"\",\"\",IF(OR('TSA Input'!J970=\"Yes\",'TSA Input'!J970=\"Contingent\"),'TSA Input'!B970,\"Ineligible\"))","v":""},{"$f":"IF('TSA Input'!J970=\"\",\"\",IF(OR('TSA Input'!J970=\"Yes\",'TSA Input'!J970=\"Contingent\"),'TSA Input'!I970,\"\"))","v":""},{"$f":"IF('TSA Input'!J970=\"\",\"\",IF(OR('TSA Input'!J970=\"Yes\",'TSA Input'!J970=\"Contingent\"),'TSA Input'!C970,\"\"))","v":""},{"$f":"IF('TSA Input'!J970=\"\",\"\",IF(OR('TSA Input'!J970=\"Yes\",'TSA Input'!J970=\"Contingent\"),'TSA Input'!D970,\"\"))","v":""},{"$f":"IF('TSA Input'!J970=\"\",\"\",IF(OR('TSA Input'!J970=\"Yes\",'TSA Input'!J970=\"Contingent\"),'TSA Input'!G970,\"\"))","v":""},{"$f":"IF('TSA Input'!J970=\"\",\"\",IF(OR('TSA Input'!J970=\"Yes\",'TSA Input'!J970=\"Contingent\"),'TSA Input'!F970,\"\"))","v":""},"",{"$f":"IF('TSA Input'!J970=\"\",\"\",IF(OR('TSA Input'!J970=\"Yes\",'TSA Input'!J970=\"Contingent\"),'TSA Input'!D970,\"\"))","v":""},{"$f":"IF('TSA Input'!J970=\"\",\"\",IF(OR('TSA Input'!J970=\"Yes\",'TSA Input'!J970=\"Contingent\"),'TSA Input'!G970,\"\"))","v":""},{"$f":"IF('TSA Input'!J970=\"\",\"\",IF(OR('TSA Input'!J970=\"Yes\",'TSA Input'!J970=\"Contingent\"),'TSA Input'!F970,\"\"))","v":""},"","Required","Required"]
["",null,{"$f":"IF('TSA Input'!J971=\"\",\"\",IF(OR('TSA Input'!J971=\"Yes\",'TSA Input'!J971=\"Contingent\"),'TSA Input'!B971,\"Ineligible\"))","v":""},{"$f":"IF('TSA Input'!J971=\"\",\"\",IF(OR('TSA Input'!J971=\"Yes\",'TSA Input'!J971=\"Contingent\"),'TSA Input'!I971,\"\"))","v":""},{"$f":"IF('TSA Input'!J971=\"\",\"\",IF(OR('TSA Input'!J971=\"Yes\",'TSA Input'!J971=\"Contingent\"),'TSA Input'!C971,\"\"))","v":""},{"$f":"IF('TSA Input'!J971=\"\",\"\",IF(OR('TSA Input'!J971=\"Yes\",'TSA Input'!J971=\"Contingent\"),'TSA Input'!D971,\"\"))","v":""},{"$f":"IF('TSA Input'!J971=\"\",\"\",IF(OR('TSA Input'!J971=\"Yes\",'TSA Input'!J971=\"Contingent\"),'TSA Input'!G971,\"\"))","v":""},{"$f":"IF('TSA Input'!J971=\"\",\"\",IF(OR('TSA Input'!J971=\"Yes\",'TSA Input'!J971=\"Contingent\"),'TSA Input'!F971,\"\"))","v":""},"",{"$f":"IF('TSA Input'!J971=\"\",\"\",IF(OR('TSA Input'!J971=\"Yes\",'TSA Input'!J971=\"Contingent\"),'TSA Input'!D971,\"\"))","v":""},{"$f":"IF('TSA Input'!J971=\"\",\"\",IF(OR('TSA Input'!J971=\"Yes\",'TSA Input'!J971=\"Contingent\"),'TSA Input'!G971,\"\"))","v":""},{"$f":"IF('TSA Input'!J971=\"\",\"\",IF(OR('TSA Input'!J971=\"Yes\",'TSA Input'!J971=\"Contingent\"),'TSA Input'!F971,\"\"))","v":""},"","Required","Required"]
["",null,{"$f":"IF('TSA Input'!J972=\"\",\"\",IF(OR('TSA Input'!J972=\"Yes\",'TSA Input'!J972=\"Contingent\"),'TSA Input'!B972,\"Ineligible\"))","v":""},{"$f":"IF('TSA Input'!J972=\"\",\"\",IF(OR('TSA Input'!J972=\"Yes\",'TSA Input'!J972=\"Contingent\"),'TSA Input'!I972,\"\"))","v":""},{"$f":"IF('TSA Input'!J972=\"\",\"\",IF(OR('TSA Input'!J972=\"Yes\",'TSA Input'!J972=\"Contingent\"),'TSA Input'!C972,\"\"))","v":""},{"$f":"IF('TSA Input'!J972=\"\",\"\",IF(OR('TSA Input'!J972=\"Yes\",'TSA Input'!J972=\"Contingent\"),'TSA Input'!D972,\"\"))","v":""},{"$f":"IF('TSA Input'!J972=\"\",\"\",IF(OR('TSA Input'!J972=\"Yes\",'TSA Input'!J972=\"Contingent\"),'TSA Input'!G972,\"\"))","v":""},{"$f":"IF('TSA Input'!J972=\"\",\"\",IF(OR('TSA Input'!J972=\"Yes\",'TSA Input'!J972=\"Contingent\"),'TSA Input'!F972,\"\"))","v":""},"",{"$f":"IF('TSA Input'!J972=\"\",\"\",IF(OR('TSA Input'!J972=\"Yes\",'TSA Input'!J972=\"Contingent\"),'TSA Input'!D972,\"\"))","v":""},{"$f":"IF('TSA Input'!J972=\"\",\"\",IF(OR('TSA Input'!J972=\"Yes\",'TSA Input'!J972=\"Contingent\"),'TSA Input'!G972,\"\"))","v":""},{"$f":"IF('TSA Input'!J972=\"\",\"\",IF(OR('TSA Input'!J972=\"Yes\",'TSA Input'!J972=\"Contingent\"),'TSA Input'!F972,\"\"))","v":""},"","Required","Required"]
["",null,{"$f":"IF('TSA Input'!J973=\"\",\"\",IF(OR('TSA Input'!J973=\"Yes\",'TSA Input'!J973=\"Contingent\"),'TSA Input'!B973,\"Ineligible\"))","v":""},{"$f":"IF('TSA Input'!J973=\"\",\"\",IF(OR('TSA Input'!J973=\"Yes\",'TSA Input'!J973=\"Contingent\"),'TSA Input'!I973,\"\"))","v":""},{"$f":"IF('TSA Input'!J973=\"\",\"\",IF(OR('TSA Input'!J973=\"Yes\",'TSA Input'!J973=\"Contingent\"),'TSA Input'!C973,\"\"))","v":""},{"$f":"IF('TSA Input'!J973=\"\",\"\",IF(OR('TSA Input'!J973=\"Yes\",'TSA Input'!J973=\"Contingent\"),'TSA Input'!D973,\"\"))","v":""},{"$f":"IF('TSA Input'!J973=\"\",\"\",IF(OR('TSA Input'!J973=\"Yes\",'TSA Input'!J973=\"Contingent\"),'TSA Input'!G973,\"\"))","v":""},{"$f":"IF('TSA Input'!J973=\"\",\"\",IF(OR('TSA Input'!J973=\"Yes\",'TSA Input'!J973=\"Contingent\"),'TSA Input'!F973,\"\"))","v":""},"",{"$f":"IF('TSA Input'!J973=\"\",\"\",IF(OR('TSA Input'!J973=\"Yes\",'TSA Input'!J973=\"Contingent\"),'TSA Input'!D973,\"\"))","v":""},{"$f":"IF('TSA Input'!J973=\"\",\"\",IF(OR('TSA Input'!J973=\"Yes\",'TSA Input'!J973=\"Contingent\"),'TSA Input'!G973,\"\"))","v":""},{"$f":"IF('TSA Input'!J973=\"\",\"\",IF(OR('TSA Input'!J973=\"Yes\",'TSA Input'!J973=\"Contingent\"),'TSA Input'!F973,\"\"))","v":""},"","Required","Required"]
["",null,{"$f":"IF('TSA Input'!J974=\"\",\"\",IF(OR('TSA Input'!J974=\"Yes\",'TSA Input'!J974=\"Contingent\"),'TSA Input'!B974,\"Ineligible\"))","v":""},{"$f":"IF('TSA Input'!J974=\"\",\"\",IF(OR('TSA Input'!J974=\"Yes\",'TSA Input'!J974=\"Contingent\"),'TSA Input'!I974,\"\"))","v":""},{"$f":"IF('TSA Input'!J974=\"\",\"\",IF(OR('TSA Input'!J974=\"Yes\",'TSA Input'!J974=\"Contingent\"),'TSA Input'!C974,\"\"))","v":""},{"$f":"IF('TSA Input'!J974=\"\",\"\",IF(OR('TSA Input'!J974=\"Yes\",'TSA Input'!J974=\"Contingent\"),'TSA Input'!D974,\"\"))","v":""},{"$f":"IF('TSA Input'!J974=\"\",\"\",IF(OR('TSA Input'!J974=\"Yes\",'TSA Input'!J974=\"Contingent\"),'TSA Input'!G974,\"\"))","v":""},{"$f":"IF('TSA Input'!J974=\"\",\"\",IF(OR('TSA Input'!J974=\"Yes\",'TSA Input'!J974=\"Contingent\"),'TSA Input'!F974,\"\"))","v":""},"",{"$f":"IF('TSA Input'!J974=\"\",\"\",IF(OR('TSA Input'!J974=\"Yes\",'TSA Input'!J974=\"Contingent\"),'TSA Input'!D974,\"\"))","v":""},{"$f":"IF('TSA Input'!J974=\"\",\"\",IF(OR('TSA Input'!J974=\"Yes\",'TSA Input'!J974=\"Contingent\"),'TSA Input'!G974,\"\"))","v":""},{"$f":"IF('TSA Input'!J974=\"\",\"\",IF(OR('TSA Input'!J974=\"Yes\",'TSA Input'!J974=\"Contingent\"),'TSA Input'!F974,\"\"))","v":""},"","Required","Required"]
["",null,{"$f":"IF('TSA Input'!J975=\"\",\"\",IF(OR('TSA Input'!J975=\"Yes\",'TSA Input'!J975=\"Contingent\"),'TSA Input'!B975,\"Ineligible\"))","v":""},{"$f":"IF('TSA Input'!J975=\"\",\"\",IF(OR('TSA Input'!J975=\"Yes\",'TSA Input'!J975=\"Contingent\"),'TSA Input'!I975,\"\"))","v":""},{"$f":"IF('TSA Input'!J975=\"\",\"\",IF(OR('TSA Input'!J975=\"Yes\",'TSA Input'!J975=\"Contingent\"),'TSA Input'!C975,\"\"))","v":""},{"$f":"IF('TSA Input'!J975=\"\",\"\",IF(OR('TSA Input'!J975=\"Yes\",'TSA Input'!J975=\"Contingent\"),'TSA Input'!D975,\"\"))","v":""},{"$f":"IF('TSA Input'!J975=\"\",\"\",IF(OR('TSA Input'!J975=\"Yes\",'TSA Input'!J975=\"Contingent\"),'TSA Input'!G975,\"\"))","v":""},{"$f":"IF('TSA Input'!J975=\"\",\"\",IF(OR('TSA Input'!J975=\"Yes\",'TSA Input'!J975=\"Contingent\"),'TSA Input'!F975,\"\"))","v":""},"",{"$f":"IF('TSA Input'!J975=\"\",\"\",IF(OR('TSA Input'!J975=\"Yes\",'TSA Input'!J975=\"Contingent\"),'TSA Input'!D975,\"\"))","v":""},{"$f":"IF('TSA Input'!J975=\"\",\"\",IF(OR('TSA Input'!J975=\"Yes\",'TSA Input'!J975=\"Contingent\"),'TSA Input'!G975,\"\"))","v":""},{"$f":"IF('TSA Input'!J975=\"\",\"\",IF(OR('TSA Input'!J975=\"Yes\",'TSA Input'!J975=\"Contingent\"),'TSA Input'!F975,\"\"))","v":""},"","Required","Required"]
["",null,{"$f":"IF('TSA Input'!J976=\"\",\"\",IF(OR('TSA Input'!J976=\"Yes\",'TSA Input'!J976=\"Contingent\"),'TSA Input'!B976,\"Ineligible\"))","v":""},{"$f":"IF('TSA Input'!J976=\"\",\"\",IF(OR('TSA Input'!J976=\"Yes\",'TSA Input'!J976=\"Contingent\"),'TSA Input'!I976,\"\"))","v":""},{"$f":"IF('TSA Input'!J976=\"\",\"\",IF(OR('TSA Input'!J976=\"Yes\",'TSA Input'!J976=\"Contingent\"),'TSA Input'!C976,\"\"))","v":""},{"$f":"IF('TSA Input'!J976=\"\",\"\",IF(OR('TSA Input'!J976=\"Yes\",'TSA Input'!J976=\"Contingent\"),'TSA Input'!D976,\"\"))","v":""},{"$f":"IF('TSA Input'!J976=\"\",\"\",IF(OR('TSA Input'!J976=\"Yes\",'TSA Input'!J976=\"Contingent\"),'TSA Input'!G976,\"\"))","v":""},{"$f":"IF('TSA Input'!J976=\"\",\"\",IF(OR('TSA Input'!J976=\"Yes\",'TSA Input'!J976=\"Contingent\"),'TSA Input'!F976,\"\"))","v":""},"",{"$f":"IF('TSA Input'!J976=\"\",\"\",IF(OR('TSA Input'!J976=\"Yes\",'TSA Input'!J976=\"Contingent\"),'TSA Input'!D976,\"\"))","v":""},{"$f":"IF('TSA Input'!J976=\"\",\"\",IF(OR('TSA Input'!J976=\"Yes\",'TSA Input'!J976=\"Contingent\"),'TSA Input'!G976,\"\"))","v":""},{"$f":"IF('TSA Input'!J976=\"\",\"\",IF(OR('TSA Input'!J976=\"Yes\",'TSA Input'!J976=\"Contingent\"),'TSA Input'!F976,\"\"))","v":""},"","Required","Required"]
["",null,{"$f":"IF('TSA Input'!J977=\"\",\"\",IF(OR('TSA Input'!J977=\"Yes\",'TSA Input'!J977=\"Contingent\"),'TSA Input'!B977,\"Ineligible\"))","v":""},{"$f":"IF('TSA Input'!J977=\"\",\"\",IF(OR('TSA Input'!J977=\"Yes\",'TSA Input'!J977=\"Contingent\"),'TSA Input'!I977,\"\"))","v":""},{"$f":"IF('TSA Input'!J977=\"\",\"\",IF(OR('TSA Input'!J977=\"Yes\",'TSA Input'!J977=\"Contingent\"),'TSA Input'!C977,\"\"))","v":""},{"$f":"IF('TSA Input'!J977=\"\",\"\",IF(OR('TSA Input'!J977=\"Yes\",'TSA Input'!J977=\"Contingent\"),'TSA Input'!D977,\"\"))","v":""},{"$f":"IF('TSA Input'!J977=\"\",\"\",IF(OR('TSA Input'!J977=\"Yes\",'TSA Input'!J977=\"Contingent\"),'TSA Input'!G977,\"\"))","v":""},{"$f":"IF('TSA Input'!J977=\"\",\"\",IF(OR('TSA Input'!J977=\"Yes\",'TSA Input'!J977=\"Contingent\"),'TSA Input'!F977,\"\"))","v":""},"",{"$f":"IF('TSA Input'!J977=\"\",\"\",IF(OR('TSA Input'!J977=\"Yes\",'TSA Input'!J977=\"Contingent\"),'TSA Input'!D977,\"\"))","v":""},{"$f":"IF('TSA Input'!J977=\"\",\"\",IF(OR('TSA Input'!J977=\"Yes\",'TSA Input'!J977=\"Contingent\"),'TSA Input'!G977,\"\"))","v":""},{"$f":"IF('TSA Input'!J977=\"\",\"\",IF(OR('TSA Input'!J977=\"Yes\",'TSA Input'!J977=\"Contingent\"),'TSA Input'!F977,\"\"))","v":""},"","Required","Required"]
["",null,{"$f":"IF('TSA Input'!J978=\"\",\"\",IF(OR('TSA Input'!J978=\"Yes\",'TSA Input'!J978=\"Contingent\"),'TSA Input'!B978,\"Ineligible\"))","v":""},{"$f":"IF('TSA Input'!J978=\"\",\"\",IF(OR('TSA Input'!J978=\"Yes\",'TSA Input'!J978=\"Contingent\"),'TSA Input'!I978,\"\"))","v":""},{"$f":"IF('TSA Input'!J978=\"\",\"\",IF(OR('TSA Input'!J978=\"Yes\",'TSA Input'!J978=\"Contingent\"),'TSA Input'!C978,\"\"))","v":""},{"$f":"IF('TSA Input'!J978=\"\",\"\",IF(OR('TSA Input'!J978=\"Yes\",'TSA Input'!J978=\"Contingent\"),'TSA Input'!D978,\"\"))","v":""},{"$f":"IF('TSA Input'!J978=\"\",\"\",IF(OR('TSA Input'!J978=\"Yes\",'TSA Input'!J978=\"Contingent\"),'TSA Input'!G978,\"\"))","v":""},{"$f":"IF('TSA Input'!J978=\"\",\"\",IF(OR('TSA Input'!J978=\"Yes\",'TSA Input'!J978=\"Contingent\"),'TSA Input'!F978,\"\"))","v":""},"",{"$f":"IF('TSA Input'!J978=\"\",\"\",IF(OR('TSA Input'!J978=\"Yes\",'TSA Input'!J978=\"Contingent\"),'TSA Input'!D978,\"\"))","v":""},{"$f":"IF('TSA Input'!J978=\"\",\"\",IF(OR('TSA Input'!J978=\"Yes\",'TSA Input'!J978=\"Contingent\"),'TSA Input'!G978,\"\"))","v":""},{"$f":"IF('TSA Input'!J978=\"\",\"\",IF(OR('TSA Input'!J978=\"Yes\",'TSA Input'!J978=\"Contingent\"),'TSA Input'!F978,\"\"))","v":""},"","Required","Required"]
["",null,{"$f":"IF('TSA Input'!J979=\"\",\"\",IF(OR('TSA Input'!J979=\"Yes\",'TSA Input'!J979=\"Contingent\"),'TSA Input'!B979,\"Ineligible\"))","v":""},{"$f":"IF('TSA Input'!J979=\"\",\"\",IF(OR('TSA Input'!J979=\"Yes\",'TSA Input'!J979=\"Contingent\"),'TSA Input'!I979,\"\"))","v":""},{"$f":"IF('TSA Input'!J979=\"\",\"\",IF(OR('TSA Input'!J979=\"Yes\",'TSA Input'!J979=\"Contingent\"),'TSA Input'!C979,\"\"))","v":""},{"$f":"IF('TSA Input'!J979=\"\",\"\",IF(OR('TSA Input'!J979=\"Yes\",'TSA Input'!J979=\"Contingent\"),'TSA Input'!D979,\"\"))","v":""},{"$f":"IF('TSA Input'!J979=\"\",\"\",IF(OR('TSA Input'!J979=\"Yes\",'TSA Input'!J979=\"Contingent\"),'TSA Input'!G979,\"\"))","v":""},{"$f":"IF('TSA Input'!J979=\"\",\"\",IF(OR('TSA Input'!J979=\"Yes\",'TSA Input'!J979=\"Contingent\"),'TSA Input'!F979,\"\"))","v":""},"",{"$f":"IF('TSA Input'!J979=\"\",\"\",IF(OR('TSA Input'!J979=\"Yes\",'TSA Input'!J979=\"Contingent\"),'TSA Input'!D979,\"\"))","v":""},{"$f":"IF('TSA Input'!J979=\"\",\"\",IF(OR('TSA Input'!J979=\"Yes\",'TSA Input'!J979=\"Contingent\"),'TSA Input'!G979,\"\"))","v":""},{"$f":"IF('TSA Input'!J979=\"\",\"\",IF(OR('TSA Input'!J979=\"Yes\",'TSA Input'!J979=\"Contingent\"),'TSA Input'!F979,\"\"))","v":""},"","Required","Required"]
["",null,{"$f":"IF('TSA Input'!J980=\"\",\"\",IF(OR('TSA Input'!J980=\"Yes\",'TSA Input'!J980=\"Contingent\"),'TSA Input'!B980,\"Ineligible\"))","v":""},{"$f":"IF('TSA Input'!J980=\"\",\"\",IF(OR('TSA Input'!J980=\"Yes\",'TSA Input'!J980=\"Contingent\"),'TSA Input'!I980,\"\"))","v":""},{"$f":"IF('TSA Input'!J980=\"\",\"\",IF(OR('TSA Input'!J980=\"Yes\",'TSA Input'!J980=\"Contingent\"),'TSA Input'!C980,\"\"))","v":""},{"$f":"IF('TSA Input'!J980=\"\",\"\",IF(OR('TSA Input'!J980=\"Yes\",'TSA Input'!J980=\"Contingent\"),'TSA Input'!D980,\"\"))","v":""},{"$f":"IF('TSA Input'!J980=\"\",\"\",IF(OR('TSA Input'!J980=\"Yes\",'TSA Input'!J980=\"Contingent\"),'TSA Input'!G980,\"\"))","v":""},{"$f":"IF('TSA Input'!J980=\"\",\"\",IF(OR('TSA Input'!J980=\"Yes\",'TSA Input'!J980=\"Contingent\"),'TSA Input'!F980,\"\"))","v":""},"",{"$f":"IF('TSA Input'!J980=\"\",\"\",IF(OR('TSA Input'!J980=\"Yes\",'TSA Input'!J980=\"Contingent\"),'TSA Input'!D980,\"\"))","v":""},{"$f":"IF('TSA Input'!J980=\"\",\"\",IF(OR('TSA Input'!J980=\"Yes\",'TSA Input'!J980=\"Contingent\"),'TSA Input'!G980,\"\"))","v":""},{"$f":"IF('TSA Input'!J980=\"\",\"\",IF(OR('TSA Input'!J980=\"Yes\",'TSA Input'!J980=\"Contingent\"),'TSA Input'!F980,\"\"))","v":""},"","Required","Required"]
["",null,{"$f":"IF('TSA Input'!J981=\"\",\"\",IF(OR('TSA Input'!J981=\"Yes\",'TSA Input'!J981=\"Contingent\"),'TSA Input'!B981,\"Ineligible\"))","v":""},{"$f":"IF('TSA Input'!J981=\"\",\"\",IF(OR('TSA Input'!J981=\"Yes\",'TSA Input'!J981=\"Contingent\"),'TSA Input'!I981,\"\"))","v":""},{"$f":"IF('TSA Input'!J981=\"\",\"\",IF(OR('TSA Input'!J981=\"Yes\",'TSA Input'!J981=\"Contingent\"),'TSA Input'!C981,\"\"))","v":""},{"$f":"IF('TSA Input'!J981=\"\",\"\",IF(OR('TSA Input'!J981=\"Yes\",'TSA Input'!J981=\"Contingent\"),'TSA Input'!D981,\"\"))","v":""},{"$f":"IF('TSA Input'!J981=\"\",\"\",IF(OR('TSA Input'!J981=\"Yes\",'TSA Input'!J981=\"Contingent\"),'TSA Input'!G981,\"\"))","v":""},{"$f":"IF('TSA Input'!J981=\"\",\"\",IF(OR('TSA Input'!J981=\"Yes\",'TSA Input'!J981=\"Contingent\"),'TSA Input'!F981,\"\"))","v":""},"",{"$f":"IF('TSA Input'!J981=\"\",\"\",IF(OR('TSA Input'!J981=\"Yes\",'TSA Input'!J981=\"Contingent\"),'TSA Input'!D981,\"\"))","v":""},{"$f":"IF('TSA Input'!J981=\"\",\"\",IF(OR('TSA Input'!J981=\"Yes\",'TSA Input'!J981=\"Contingent\"),'TSA Input'!G981,\"\"))","v":""},{"$f":"IF('TSA Input'!J981=\"\",\"\",IF(OR('TSA Input'!J981=\"Yes\",'TSA Input'!J981=\"Contingent\"),'TSA Input'!F981,\"\"))","v":""},"","Required","Required"]
["",null,{"$f":"IF('TSA Input'!J982=\"\",\"\",IF(OR('TSA Input'!J982=\"Yes\",'TSA Input'!J982=\"Contingent\"),'TSA Input'!B982,\"Ineligible\"))","v":""},{"$f":"IF('TSA Input'!J982=\"\",\"\",IF(OR('TSA Input'!J982=\"Yes\",'TSA Input'!J982=\"Contingent\"),'TSA Input'!I982,\"\"))","v":""},{"$f":"IF('TSA Input'!J982=\"\",\"\",IF(OR('TSA Input'!J982=\"Yes\",'TSA Input'!J982=\"Contingent\"),'TSA Input'!C982,\"\"))","v":""},{"$f":"IF('TSA Input'!J982=\"\",\"\",IF(OR('TSA Input'!J982=\"Yes\",'TSA Input'!J982=\"Contingent\"),'TSA Input'!D982,\"\"))","v":""},{"$f":"IF('TSA Input'!J982=\"\",\"\",IF(OR('TSA Input'!J982=\"Yes\",'TSA Input'!J982=\"Contingent\"),'TSA Input'!G982,\"\"))","v":""},{"$f":"IF('TSA Input'!J982=\"\",\"\",IF(OR('TSA Input'!J982=\"Yes\",'TSA Input'!J982=\"Contingent\"),'TSA Input'!F982,\"\"))","v":""},"",{"$f":"IF('TSA Input'!J982=\"\",\"\",IF(OR('TSA Input'!J982=\"Yes\",'TSA Input'!J982=\"Contingent\"),'TSA Input'!D982,\"\"))","v":""},{"$f":"IF('TSA Input'!J982=\"\",\"\",IF(OR('TSA Input'!J982=\"Yes\",'TSA Input'!J982=\"Contingent\"),'TSA Input'!G982,\"\"))","v":""},{"$f":"IF('TSA Input'!J982=\"\",\"\",IF(OR('TSA Input'!J982=\"Yes\",'TSA Input'!J982=\"Contingent\"),'TSA Input'!F982,\"\"))","v":""},"","Required","Required"]
["",null,{"$f":"IF('TSA Input'!J983=\"\",\"\",IF(OR('TSA Input'!J983=\"Yes\",'TSA Input'!J983=\"Contingent\"),'TSA Input'!B983,\"Ineligible\"))","v":""},{"$f":"IF('TSA Input'!J983=\"\",\"\",IF(OR('TSA Input'!J983=\"Yes\",'TSA Input'!J983=\"Contingent\"),'TSA Input'!I983,\"\"))","v":""},{"$f":"IF('TSA Input'!J983=\"\",\"\",IF(OR('TSA Input'!J983=\"Yes\",'TSA Input'!J983=\"Contingent\"),'TSA Input'!C983,\"\"))","v":""},{"$f":"IF('TSA Input'!J983=\"\",\"\",IF(OR('TSA Input'!J983=\"Yes\",'TSA Input'!J983=\"Contingent\"),'TSA Input'!D983,\"\"))","v":""},{"$f":"IF('TSA Input'!J983=\"\",\"\",IF(OR('TSA Input'!J983=\"Yes\",'TSA Input'!J983=\"Contingent\"),'TSA Input'!G983,\"\"))","v":""},{"$f":"IF('TSA Input'!J983=\"\",\"\",IF(OR('TSA Input'!J983=\"Yes\",'TSA Input'!J983=\"Contingent\"),'TSA Input'!F983,\"\"))","v":""},"",{"$f":"IF('TSA Input'!J983=\"\",\"\",IF(OR('TSA Input'!J983=\"Yes\",'TSA Input'!J983=\"Contingent\"),'TSA Input'!D983,\"\"))","v":""},{"$f":"IF('TSA Input'!J983=\"\",\"\",IF(OR('TSA Input'!J983=\"Yes\",'TSA Input'!J983=\"Contingent\"),'TSA Input'!G983,\"\"))","v":""},{"$f":"IF('TSA Input'!J983=\"\",\"\",IF(OR('TSA Input'!J983=\"Yes\",'TSA Input'!J983=\"Contingent\"),'TSA Input'!F983,\"\"))","v":""},"","Required","Required"]
["",null,{"$f":"IF('TSA Input'!J984=\"\",\"\",IF(OR('TSA Input'!J984=\"Yes\",'TSA Input'!J984=\"Contingent\"),'TSA Input'!B984,\"Ineligible\"))","v":""},{"$f":"IF('TSA Input'!J984=\"\",\"\",IF(OR('TSA Input'!J984=\"Yes\",'TSA Input'!J984=\"Contingent\"),'TSA Input'!I984,\"\"))","v":""},{"$f":"IF('TSA Input'!J984=\"\",\"\",IF(OR('TSA Input'!J984=\"Yes\",'TSA Input'!J984=\"Contingent\"),'TSA Input'!C984,\"\"))","v":""},{"$f":"IF('TSA Input'!J984=\"\",\"\",IF(OR('TSA Input'!J984=\"Yes\",'TSA Input'!J984=\"Contingent\"),'TSA Input'!D984,\"\"))","v":""},{"$f":"IF('TSA Input'!J984=\"\",\"\",IF(OR('TSA Input'!J984=\"Yes\",'TSA Input'!J984=\"Contingent\"),'TSA Input'!G984,\"\"))","v":""},{"$f":"IF('TSA Input'!J984=\"\",\"\",IF(OR('TSA Input'!J984=\"Yes\",'TSA Input'!J984=\"Contingent\"),'TSA Input'!F984,\"\"))","v":""},"",{"$f":"IF('TSA Input'!J984=\"\",\"\",IF(OR('TSA Input'!J984=\"Yes\",'TSA Input'!J984=\"Contingent\"),'TSA Input'!D984,\"\"))","v":""},{"$f":"IF('TSA Input'!J984=\"\",\"\",IF(OR('TSA Input'!J984=\"Yes\",'TSA Input'!J984=\"Contingent\"),'TSA Input'!G984,\"\"))","v":""},{"$f":"IF('TSA Input'!J984=\"\",\"\",IF(OR('TSA Input'!J984=\"Yes\",'TSA Input'!J984=\"Contingent\"),'TSA Input'!F984,\"\"))","v":""},"","Required","Required"]
["",null,{"$f":"IF('TSA Input'!J985=\"\",\"\",IF(OR('TSA Input'!J985=\"Yes\",'TSA Input'!J985=\"Contingent\"),'TSA Input'!B985,\"Ineligible\"))","v":""},{"$f":"IF('TSA Input'!J985=\"\",\"\",IF(OR('TSA Input'!J985=\"Yes\",'TSA Input'!J985=\"Contingent\"),'TSA Input'!I985,\"\"))","v":""},{"$f":"IF('TSA Input'!J985=\"\",\"\",IF(OR('TSA Input'!J985=\"Yes\",'TSA Input'!J985=\"Contingent\"),'TSA Input'!C985,\"\"))","v":""},{"$f":"IF('TSA Input'!J985=\"\",\"\",IF(OR('TSA Input'!J985=\"Yes\",'TSA Input'!J985=\"Contingent\"),'TSA Input'!D985,\"\"))","v":""},{"$f":"IF('TSA Input'!J985=\"\",\"\",IF(OR('TSA Input'!J985=\"Yes\",'TSA Input'!J985=\"Contingent\"),'TSA Input'!G985,\"\"))","v":""},{"$f":"IF('TSA Input'!J985=\"\",\"\",IF(OR('TSA Input'!J985=\"Yes\",'TSA Input'!J985=\"Contingent\"),'TSA Input'!F985,\"\"))","v":""},"",{"$f":"IF('TSA Input'!J985=\"\",\"\",IF(OR('TSA Input'!J985=\"Yes\",'TSA Input'!J985=\"Contingent\"),'TSA Input'!D985,\"\"))","v":""},{"$f":"IF('TSA Input'!J985=\"\",\"\",IF(OR('TSA Input'!J985=\"Yes\",'TSA Input'!J985=\"Contingent\"),'TSA Input'!G985,\"\"))","v":""},{"$f":"IF('TSA Input'!J985=\"\",\"\",IF(OR('TSA Input'!J985=\"Yes\",'TSA Input'!J985=\"Contingent\"),'TSA Input'!F985,\"\"))","v":""},"","Required","Required"]
["",null,{"$f":"IF('TSA Input'!J986=\"\",\"\",IF(OR('TSA Input'!J986=\"Yes\",'TSA Input'!J986=\"Contingent\"),'TSA Input'!B986,\"Ineligible\"))","v":""},{"$f":"IF('TSA Input'!J986=\"\",\"\",IF(OR('TSA Input'!J986=\"Yes\",'TSA Input'!J986=\"Contingent\"),'TSA Input'!I986,\"\"))","v":""},{"$f":"IF('TSA Input'!J986=\"\",\"\",IF(OR('TSA Input'!J986=\"Yes\",'TSA Input'!J986=\"Contingent\"),'TSA Input'!C986,\"\"))","v":""},{"$f":"IF('TSA Input'!J986=\"\",\"\",IF(OR('TSA Input'!J986=\"Yes\",'TSA Input'!J986=\"Contingent\"),'TSA Input'!D986,\"\"))","v":""},{"$f":"IF('TSA Input'!J986=\"\",\"\",IF(OR('TSA Input'!J986=\"Yes\",'TSA Input'!J986=\"Contingent\"),'TSA Input'!G986,\"\"))","v":""},{"$f":"IF('TSA Input'!J986=\"\",\"\",IF(OR('TSA Input'!J986=\"Yes\",'TSA Input'!J986=\"Contingent\"),'TSA Input'!F986,\"\"))","v":""},"",{"$f":"IF('TSA Input'!J986=\"\",\"\",IF(OR('TSA Input'!J986=\"Yes\",'TSA Input'!J986=\"Contingent\"),'TSA Input'!D986,\"\"))","v":""},{"$f":"IF('TSA Input'!J986=\"\",\"\",IF(OR('TSA Input'!J986=\"Yes\",'TSA Input'!J986=\"Contingent\"),'TSA Input'!G986,\"\"))","v":""},{"$f":"IF('TSA Input'!J986=\"\",\"\",IF(OR('TSA Input'!J986=\"Yes\",'TSA Input'!J986=\"Contingent\"),'TSA Input'!F986,\"\"))","v":""},"","Required","Required"]
["",null,{"$f":"IF('TSA Input'!J987=\"\",\"\",IF(OR('TSA Input'!J987=\"Yes\",'TSA Input'!J987=\"Contingent\"),'TSA Input'!B987,\"Ineligible\"))","v":""},{"$f":"IF('TSA Input'!J987=\"\",\"\",IF(OR('TSA Input'!J987=\"Yes\",'TSA Input'!J987=\"Contingent\"),'TSA Input'!I987,\"\"))","v":""},{"$f":"IF('TSA Input'!J987=\"\",\"\",IF(OR('TSA Input'!J987=\"Yes\",'TSA Input'!J987=\"Contingent\"),'TSA Input'!C987,\"\"))","v":""},{"$f":"IF('TSA Input'!J987=\"\",\"\",IF(OR('TSA Input'!J987=\"Yes\",'TSA Input'!J987=\"Contingent\"),'TSA Input'!D987,\"\"))","v":""},{"$f":"IF('TSA Input'!J987=\"\",\"\",IF(OR('TSA Input'!J987=\"Yes\",'TSA Input'!J987=\"Contingent\"),'TSA Input'!G987,\"\"))","v":""},{"$f":"IF('TSA Input'!J987=\"\",\"\",IF(OR('TSA Input'!J987=\"Yes\",'TSA Input'!J987=\"Contingent\"),'TSA Input'!F987,\"\"))","v":""},"",{"$f":"IF('TSA Input'!J987=\"\",\"\",IF(OR('TSA Input'!J987=\"Yes\",'TSA Input'!J987=\"Contingent\"),'TSA Input'!D987,\"\"))","v":""},{"$f":"IF('TSA Input'!J987=\"\",\"\",IF(OR('TSA Input'!J987=\"Yes\",'TSA Input'!J987=\"Contingent\"),'TSA Input'!G987,\"\"))","v":""},{"$f":"IF('TSA Input'!J987=\"\",\"\",IF(OR('TSA Input'!J987=\"Yes\",'TSA Input'!J987=\"Contingent\"),'TSA Input'!F987,\"\"))","v":""},"","Required","Required"]
["",null,{"$f":"IF('TSA Input'!J988=\"\",\"\",IF(OR('TSA Input'!J988=\"Yes\",'TSA Input'!J988=\"Contingent\"),'TSA Input'!B988,\"Ineligible\"))","v":""},{"$f":"IF('TSA Input'!J988=\"\",\"\",IF(OR('TSA Input'!J988=\"Yes\",'TSA Input'!J988=\"Contingent\"),'TSA Input'!I988,\"\"))","v":""},{"$f":"IF('TSA Input'!J988=\"\",\"\",IF(OR('TSA Input'!J988=\"Yes\",'TSA Input'!J988=\"Contingent\"),'TSA Input'!C988,\"\"))","v":""},{"$f":"IF('TSA Input'!J988=\"\",\"\",IF(OR('TSA Input'!J988=\"Yes\",'TSA Input'!J988=\"Contingent\"),'TSA Input'!D988,\"\"))","v":""},{"$f":"IF('TSA Input'!J988=\"\",\"\",IF(OR('TSA Input'!J988=\"Yes\",'TSA Input'!J988=\"Contingent\"),'TSA Input'!G988,\"\"))","v":""},{"$f":"IF('TSA Input'!J988=\"\",\"\",IF(OR('TSA Input'!J988=\"Yes\",'TSA Input'!J988=\"Contingent\"),'TSA Input'!F988,\"\"))","v":""},"",{"$f":"IF('TSA Input'!J988=\"\",\"\",IF(OR('TSA Input'!J988=\"Yes\",'TSA Input'!J988=\"Contingent\"),'TSA Input'!D988,\"\"))","v":""},{"$f":"IF('TSA Input'!J988=\"\",\"\",IF(OR('TSA Input'!J988=\"Yes\",'TSA Input'!J988=\"Contingent\"),'TSA Input'!G988,\"\"))","v":""},{"$f":"IF('TSA Input'!J988=\"\",\"\",IF(OR('TSA Input'!J988=\"Yes\",'TSA Input'!J988=\"Contingent\"),'TSA Input'!F988,\"\"))","v":""},"","Required","Required"]
["",null,{"$f":"IF('TSA Input'!J989=\"\",\"\",IF(OR('TSA Input'!J989=\"Yes\",'TSA Input'!J989=\"Contingent\"),'TSA Input'!B989,\"Ineligible\"))","v":""},{"$f":"IF('TSA Input'!J989=\"\",\"\",IF(OR('TSA Input'!J989=\"Yes\",'TSA Input'!J989=\"Contingent\"),'TSA Input'!I989,\"\"))","v":""},{"$f":"IF('TSA Input'!J989=\"\",\"\",IF(OR('TSA Input'!J989=\"Yes\",'TSA Input'!J989=\"Contingent\"),'TSA Input'!C989,\"\"))","v":""},{"$f":"IF('TSA Input'!J989=\"\",\"\",IF(OR('TSA Input'!J989=\"Yes\",'TSA Input'!J989=\"Contingent\"),'TSA Input'!D989,\"\"))","v":""},{"$f":"IF('TSA Input'!J989=\"\",\"\",IF(OR('TSA Input'!J989=\"Yes\",'TSA Input'!J989=\"Contingent\"),'TSA Input'!G989,\"\"))","v":""},{"$f":"IF('TSA Input'!J989=\"\",\"\",IF(OR('TSA Input'!J989=\"Yes\",'TSA Input'!J989=\"Contingent\"),'TSA Input'!F989,\"\"))","v":""},"",{"$f":"IF('TSA Input'!J989=\"\",\"\",IF(OR('TSA Input'!J989=\"Yes\",'TSA Input'!J989=\"Contingent\"),'TSA Input'!D989,\"\"))","v":""},{"$f":"IF('TSA Input'!J989=\"\",\"\",IF(OR('TSA Input'!J989=\"Yes\",'TSA Input'!J989=\"Contingent\"),'TSA Input'!G989,\"\"))","v":""},{"$f":"IF('TSA Input'!J989=\"\",\"\",IF(OR('TSA Input'!J989=\"Yes\",'TSA Input'!J989=\"Contingent\"),'TSA Input'!F989,\"\"))","v":""},"","Required","Required"]
["",null,{"$f":"IF('TSA Input'!J990=\"\",\"\",IF(OR('TSA Input'!J990=\"Yes\",'TSA Input'!J990=\"Contingent\"),'TSA Input'!B990,\"Ineligible\"))","v":""},{"$f":"IF('TSA Input'!J990=\"\",\"\",IF(OR('TSA Input'!J990=\"Yes\",'TSA Input'!J990=\"Contingent\"),'TSA Input'!I990,\"\"))","v":""},{"$f":"IF('TSA Input'!J990=\"\",\"\",IF(OR('TSA Input'!J990=\"Yes\",'TSA Input'!J990=\"Contingent\"),'TSA Input'!C990,\"\"))","v":""},{"$f":"IF('TSA Input'!J990=\"\",\"\",IF(OR('TSA Input'!J990=\"Yes\",'TSA Input'!J990=\"Contingent\"),'TSA Input'!D990,\"\"))","v":""},{"$f":"IF('TSA Input'!J990=\"\",\"\",IF(OR('TSA Input'!J990=\"Yes\",'TSA Input'!J990=\"Contingent\"),'TSA Input'!G990,\"\"))","v":""},{"$f":"IF('TSA Input'!J990=\"\",\"\",IF(OR('TSA Input'!J990=\"Yes\",'TSA Input'!J990=\"Contingent\"),'TSA Input'!F990,\"\"))","v":""},"",{"$f":"IF('TSA Input'!J990=\"\",\"\",IF(OR('TSA Input'!J990=\"Yes\",'TSA Input'!J990=\"Contingent\"),'TSA Input'!D990,\"\"))","v":""},{"$f":"IF('TSA Input'!J990=\"\",\"\",IF(OR('TSA Input'!J990=\"Yes\",'TSA Input'!J990=\"Contingent\"),'TSA Input'!G990,\"\"))","v":""},{"$f":"IF('TSA Input'!J990=\"\",\"\",IF(OR('TSA Input'!J990=\"Yes\",'TSA Input'!J990=\"Contingent\"),'TSA Input'!F990,\"\"))","v":""},"","Required","Required"]
["",null,{"$f":"IF('TSA Input'!J991=\"\",\"\",IF(OR('TSA Input'!J991=\"Yes\",'TSA Input'!J991=\"Contingent\"),'TSA Input'!B991,\"Ineligible\"))","v":""},{"$f":"IF('TSA Input'!J991=\"\",\"\",IF(OR('TSA Input'!J991=\"Yes\",'TSA Input'!J991=\"Contingent\"),'TSA Input'!I991,\"\"))","v":""},{"$f":"IF('TSA Input'!J991=\"\",\"\",IF(OR('TSA Input'!J991=\"Yes\",'TSA Input'!J991=\"Contingent\"),'TSA Input'!C991,\"\"))","v":""},{"$f":"IF('TSA Input'!J991=\"\",\"\",IF(OR('TSA Input'!J991=\"Yes\",'TSA Input'!J991=\"Contingent\"),'TSA Input'!D991,\"\"))","v":""},{"$f":"IF('TSA Input'!J991=\"\",\"\",IF(OR('TSA Input'!J991=\"Yes\",'TSA Input'!J991=\"Contingent\"),'TSA Input'!G991,\"\"))","v":""},{"$f":"IF('TSA Input'!J991=\"\",\"\",IF(OR('TSA Input'!J991=\"Yes\",'TSA Input'!J991=\"Contingent\"),'TSA Input'!F991,\"\"))","v":""},"",{"$f":"IF('TSA Input'!J991=\"\",\"\",IF(OR('TSA Input'!J991=\"Yes\",'TSA Input'!J991=\"Contingent\"),'TSA Input'!D991,\"\"))","v":""},{"$f":"IF('TSA Input'!J991=\"\",\"\",IF(OR('TSA Input'!J991=\"Yes\",'TSA Input'!J991=\"Contingent\"),'TSA Input'!G991,\"\"))","v":""},{"$f":"IF('TSA Input'!J991=\"\",\"\",IF(OR('TSA Input'!J991=\"Yes\",'TSA Input'!J991=\"Contingent\"),'TSA Input'!F991,\"\"))","v":""},"","Required","Required"]
["",null,{"$f":"IF('TSA Input'!J992=\"\",\"\",IF(OR('TSA Input'!J992=\"Yes\",'TSA Input'!J992=\"Contingent\"),'TSA Input'!B992,\"Ineligible\"))","v":""},{"$f":"IF('TSA Input'!J992=\"\",\"\",IF(OR('TSA Input'!J992=\"Yes\",'TSA Input'!J992=\"Contingent\"),'TSA Input'!I992,\"\"))","v":""},{"$f":"IF('TSA Input'!J992=\"\",\"\",IF(OR('TSA Input'!J992=\"Yes\",'TSA Input'!J992=\"Contingent\"),'TSA Input'!C992,\"\"))","v":""},{"$f":"IF('TSA Input'!J992=\"\",\"\",IF(OR('TSA Input'!J992=\"Yes\",'TSA Input'!J992=\"Contingent\"),'TSA Input'!D992,\"\"))","v":""},{"$f":"IF('TSA Input'!J992=\"\",\"\",IF(OR('TSA Input'!J992=\"Yes\",'TSA Input'!J992=\"Contingent\"),'TSA Input'!G992,\"\"))","v":""},{"$f":"IF('TSA Input'!J992=\"\",\"\",IF(OR('TSA Input'!J992=\"Yes\",'TSA Input'!J992=\"Contingent\"),'TSA Input'!F992,\"\"))","v":""},"",{"$f":"IF('TSA Input'!J992=\"\",\"\",IF(OR('TSA Input'!J992=\"Yes\",'TSA Input'!J992=\"Contingent\"),'TSA Input'!D992,\"\"))","v":""},{"$f":"IF('TSA Input'!J992=\"\",\"\",IF(OR('TSA Input'!J992=\"Yes\",'TSA Input'!J992=\"Contingent\"),'TSA Input'!G992,\"\"))","v":""},{"$f":"IF('TSA Input'!J992=\"\",\"\",IF(OR('TSA Input'!J992=\"Yes\",'TSA Input'!J992=\"Contingent\"),'TSA Input'!F992,\"\"))","v":""},"","Required","Required"]
["",null,{"$f":"IF('TSA Input'!J993=\"\",\"\",IF(OR('TSA Input'!J993=\"Yes\",'TSA Input'!J993=\"Contingent\"),'TSA Input'!B993,\"Ineligible\"))","v":""},{"$f":"IF('TSA Input'!J993=\"\",\"\",IF(OR('TSA Input'!J993=\"Yes\",'TSA Input'!J993=\"Contingent\"),'TSA Input'!I993,\"\"))","v":""},{"$f":"IF('TSA Input'!J993=\"\",\"\",IF(OR('TSA Input'!J993=\"Yes\",'TSA Input'!J993=\"Contingent\"),'TSA Input'!C993,\"\"))","v":""},{"$f":"IF('TSA Input'!J993=\"\",\"\",IF(OR('TSA Input'!J993=\"Yes\",'TSA Input'!J993=\"Contingent\"),'TSA Input'!D993,\"\"))","v":""},{"$f":"IF('TSA Input'!J993=\"\",\"\",IF(OR('TSA Input'!J993=\"Yes\",'TSA Input'!J993=\"Contingent\"),'TSA Input'!G993,\"\"))","v":""},{"$f":"IF('TSA Input'!J993=\"\",\"\",IF(OR('TSA Input'!J993=\"Yes\",'TSA Input'!J993=\"Contingent\"),'TSA Input'!F993,\"\"))","v":""},"",{"$f":"IF('TSA Input'!J993=\"\",\"\",IF(OR('TSA Input'!J993=\"Yes\",'TSA Input'!J993=\"Contingent\"),'TSA Input'!D993,\"\"))","v":""},{"$f":"IF('TSA Input'!J993=\"\",\"\",IF(OR('TSA Input'!J993=\"Yes\",'TSA Input'!J993=\"Contingent\"),'TSA Input'!G993,\"\"))","v":""},{"$f":"IF('TSA Input'!J993=\"\",\"\",IF(OR('TSA Input'!J993=\"Yes\",'TSA Input'!J993=\"Contingent\"),'TSA Input'!F993,\"\"))","v":""},"","Required","Required"]
["",null,{"$f":"IF('TSA Input'!J994=\"\",\"\",IF(OR('TSA Input'!J994=\"Yes\",'TSA Input'!J994=\"Contingent\"),'TSA Input'!B994,\"Ineligible\"))","v":""},{"$f":"IF('TSA Input'!J994=\"\",\"\",IF(OR('TSA Input'!J994=\"Yes\",'TSA Input'!J994=\"Contingent\"),'TSA Input'!I994,\"\"))","v":""},{"$f":"IF('TSA Input'!J994=\"\",\"\",IF(OR('TSA Input'!J994=\"Yes\",'TSA Input'!J994=\"Contingent\"),'TSA Input'!C994,\"\"))","v":""},{"$f":"IF('TSA Input'!J994=\"\",\"\",IF(OR('TSA Input'!J994=\"Yes\",'TSA Input'!J994=\"Contingent\"),'TSA Input'!D994,\"\"))","v":""},{"$f":"IF('TSA Input'!J994=\"\",\"\",IF(OR('TSA Input'!J994=\"Yes\",'TSA Input'!J994=\"Contingent\"),'TSA Input'!G994,\"\"))","v":""},{"$f":"IF('TSA Input'!J994=\"\",\"\",IF(OR('TSA Input'!J994=\"Yes\",'TSA Input'!J994=\"Contingent\"),'TSA Input'!F994,\"\"))","v":""},"",{"$f":"IF('TSA Input'!J994=\"\",\"\",IF(OR('TSA Input'!J994=\"Yes\",'TSA Input'!J994=\"Contingent\"),'TSA Input'!D994,\"\"))","v":""},{"$f":"IF('TSA Input'!J994=\"\",\"\",IF(OR('TSA Input'!J994=\"Yes\",'TSA Input'!J994=\"Contingent\"),'TSA Input'!G994,\"\"))","v":""},{"$f":"IF('TSA Input'!J994=\"\",\"\",IF(OR('TSA Input'!J994=\"Yes\",'TSA Input'!J994=\"Contingent\"),'TSA Input'!F994,\"\"))","v":""},"","Required","Required"]
["",null,{"$f":"IF('TSA Input'!J995=\"\",\"\",IF(OR('TSA Input'!J995=\"Yes\",'TSA Input'!J995=\"Contingent\"),'TSA Input'!B995,\"Ineligible\"))","v":""},{"$f":"IF('TSA Input'!J995=\"\",\"\",IF(OR('TSA Input'!J995=\"Yes\",'TSA Input'!J995=\"Contingent\"),'TSA Input'!I995,\"\"))","v":""},{"$f":"IF('TSA Input'!J995=\"\",\"\",IF(OR('TSA Input'!J995=\"Yes\",'TSA Input'!J995=\"Contingent\"),'TSA Input'!C995,\"\"))","v":""},{"$f":"IF('TSA Input'!J995=\"\",\"\",IF(OR('TSA Input'!J995=\"Yes\",'TSA Input'!J995=\"Contingent\"),'TSA Input'!D995,\"\"))","v":""},{"$f":"IF('TSA Input'!J995=\"\",\"\",IF(OR('TSA Input'!J995=\"Yes\",'TSA Input'!J995=\"Contingent\"),'TSA Input'!G995,\"\"))","v":""},{"$f":"IF('TSA Input'!J995=\"\",\"\",IF(OR('TSA Input'!J995=\"Yes\",'TSA Input'!J995=\"Contingent\"),'TSA Input'!F995,\"\"))","v":""},"",{"$f":"IF('TSA Input'!J995=\"\",\"\",IF(OR('TSA Input'!J995=\"Yes\",'TSA Input'!J995=\"Contingent\"),'TSA Input'!D995,\"\"))","v":""},{"$f":"IF('TSA Input'!J995=\"\",\"\",IF(OR('TSA Input'!J995=\"Yes\",'TSA Input'!J995=\"Contingent\"),'TSA Input'!G995,\"\"))","v":""},{"$f":"IF('TSA Input'!J995=\"\",\"\",IF(OR('TSA Input'!J995=\"Yes\",'TSA Input'!J995=\"Contingent\"),'TSA Input'!F995,\"\"))","v":""},"","Required","Required"]
["",null,{"$f":"IF('TSA Input'!J996=\"\",\"\",IF(OR('TSA Input'!J996=\"Yes\",'TSA Input'!J996=\"Contingent\"),'TSA Input'!B996,\"Ineligible\"))","v":""},{"$f":"IF('TSA Input'!J996=\"\",\"\",IF(OR('TSA Input'!J996=\"Yes\",'TSA Input'!J996=\"Contingent\"),'TSA Input'!I996,\"\"))","v":""},{"$f":"IF('TSA Input'!J996=\"\",\"\",IF(OR('TSA Input'!J996=\"Yes\",'TSA Input'!J996=\"Contingent\"),'TSA Input'!C996,\"\"))","v":""},{"$f":"IF('TSA Input'!J996=\"\",\"\",IF(OR('TSA Input'!J996=\"Yes\",'TSA Input'!J996=\"Contingent\"),'TSA Input'!D996,\"\"))","v":""},{"$f":"IF('TSA Input'!J996=\"\",\"\",IF(OR('TSA Input'!J996=\"Yes\",'TSA Input'!J996=\"Contingent\"),'TSA Input'!G996,\"\"))","v":""},{"$f":"IF('TSA Input'!J996=\"\",\"\",IF(OR('TSA Input'!J996=\"Yes\",'TSA Input'!J996=\"Contingent\"),'TSA Input'!F996,\"\"))","v":""},"",{"$f":"IF('TSA Input'!J996=\"\",\"\",IF(OR('TSA Input'!J996=\"Yes\",'TSA Input'!J996=\"Contingent\"),'TSA Input'!D996,\"\"))","v":""},{"$f":"IF('TSA Input'!J996=\"\",\"\",IF(OR('TSA Input'!J996=\"Yes\",'TSA Input'!J996=\"Contingent\"),'TSA Input'!G996,\"\"))","v":""},{"$f":"IF('TSA Input'!J996=\"\",\"\",IF(OR('TSA Input'!J996=\"Yes\",'TSA Input'!J996=\"Contingent\"),'TSA Input'!F996,\"\"))","v":""},"","Required","Required"]
["",null,{"$f":"IF('TSA Input'!J997=\"\",\"\",IF(OR('TSA Input'!J997=\"Yes\",'TSA Input'!J997=\"Contingent\"),'TSA Input'!B997,\"Ineligible\"))","v":""},{"$f":"IF('TSA Input'!J997=\"\",\"\",IF(OR('TSA Input'!J997=\"Yes\",'TSA Input'!J997=\"Contingent\"),'TSA Input'!I997,\"\"))","v":""},{"$f":"IF('TSA Input'!J997=\"\",\"\",IF(OR('TSA Input'!J997=\"Yes\",'TSA Input'!J997=\"Contingent\"),'TSA Input'!C997,\"\"))","v":""},{"$f":"IF('TSA Input'!J997=\"\",\"\",IF(OR('TSA Input'!J997=\"Yes\",'TSA Input'!J997=\"Contingent\"),'TSA Input'!D997,\"\"))","v":""},{"$f":"IF('TSA Input'!J997=\"\",\"\",IF(OR('TSA Input'!J997=\"Yes\",'TSA Input'!J997=\"Contingent\"),'TSA Input'!G997,\"\"))","v":""},{"$f":"IF('TSA Input'!J997=\"\",\"\",IF(OR('TSA Input'!J997=\"Yes\",'TSA Input'!J997=\"Contingent\"),'TSA Input'!F997,\"\"))","v":""},"",{"$f":"IF('TSA Input'!J997=\"\",\"\",IF(OR('TSA Input'!J997=\"Yes\",'TSA Input'!J997=\"Contingent\"),'TSA Input'!D997,\"\"))","v":""},{"$f":"IF('TSA Input'!J997=\"\",\"\",IF(OR('TSA Input'!J997=\"Yes\",'TSA Input'!J997=\"Contingent\"),'TSA Input'!G997,\"\"))","v":""},{"$f":"IF('TSA Input'!J997=\"\",\"\",IF(OR('TSA Input'!J997=\"Yes\",'TSA Input'!J997=\"Contingent\"),'TSA Input'!F997,\"\"))","v":""},"","Required","Required"]
["",null,{"$f":"IF('TSA Input'!J998=\"\",\"\",IF(OR('TSA Input'!J998=\"Yes\",'TSA Input'!J998=\"Contingent\"),'TSA Input'!B998,\"Ineligible\"))","v":""},{"$f":"IF('TSA Input'!J998=\"\",\"\",IF(OR('TSA Input'!J998=\"Yes\",'TSA Input'!J998=\"Contingent\"),'TSA Input'!I998,\"\"))","v":""},{"$f":"IF('TSA Input'!J998=\"\",\"\",IF(OR('TSA Input'!J998=\"Yes\",'TSA Input'!J998=\"Contingent\"),'TSA Input'!C998,\"\"))","v":""},{"$f":"IF('TSA Input'!J998=\"\",\"\",IF(OR('TSA Input'!J998=\"Yes\",'TSA Input'!J998=\"Contingent\"),'TSA Input'!D998,\"\"))","v":""},{"$f":"IF('TSA Input'!J998=\"\",\"\",IF(OR('TSA Input'!J998=\"Yes\",'TSA Input'!J998=\"Contingent\"),'TSA Input'!G998,\"\"))","v":""},{"$f":"IF('TSA Input'!J998=\"\",\"\",IF(OR('TSA Input'!J998=\"Yes\",'TSA Input'!J998=\"Contingent\"),'TSA Input'!F998,\"\"))","v":""},"",{"$f":"IF('TSA Input'!J998=\"\",\"\",IF(OR('TSA Input'!J998=\"Yes\",'TSA Input'!J998=\"Contingent\"),'TSA Input'!D998,\"\"))","v":""},{"$f":"IF('TSA Input'!J998=\"\",\"\",IF(OR('TSA Input'!J998=\"Yes\",'TSA Input'!J998=\"Contingent\"),'TSA Input'!G998,\"\"))","v":""},{"$f":"IF('TSA Input'!J998=\"\",\"\",IF(OR('TSA Input'!J998=\"Yes\",'TSA Input'!J998=\"Contingent\"),'TSA Input'!F998,\"\"))","v":""},"","Required","Required"]
["",null,{"$f":"IF('TSA Input'!J999=\"\",\"\",IF(OR('TSA Input'!J999=\"Yes\",'TSA Input'!J999=\"Contingent\"),'TSA Input'!B999,\"Ineligible\"))","v":""},{"$f":"IF('TSA Input'!J999=\"\",\"\",IF(OR('TSA Input'!J999=\"Yes\",'TSA Input'!J999=\"Contingent\"),'TSA Input'!I999,\"\"))","v":""},{"$f":"IF('TSA Input'!J999=\"\",\"\",IF(OR('TSA Input'!J999=\"Yes\",'TSA Input'!J999=\"Contingent\"),'TSA Input'!C999,\"\"))","v":""},{"$f":"IF('TSA Input'!J999=\"\",\"\",IF(OR('TSA Input'!J999=\"Yes\",'TSA Input'!J999=\"Contingent\"),'TSA Input'!D999,\"\"))","v":""},{"$f":"IF('TSA Input'!J999=\"\",\"\",IF(OR('TSA Input'!J999=\"Yes\",'TSA Input'!J999=\"Contingent\"),'TSA Input'!G999,\"\"))","v":""},{"$f":"IF('TSA Input'!J999=\"\",\"\",IF(OR('TSA Input'!J999=\"Yes\",'TSA Input'!J999=\"Contingent\"),'TSA Input'!F999,\"\"))","v":""},"",{"$f":"IF('TSA Input'!J999=\"\",\"\",IF(OR('TSA Input'!J999=\"Yes\",'TSA Input'!J999=\"Contingent\"),'TSA Input'!D999,\"\"))","v":""},{"$f":"IF('TSA Input'!J999=\"\",\"\",IF(OR('TSA Input'!J999=\"Yes\",'TSA Input'!J999=\"Contingent\"),'TSA Input'!G999,\"\"))","v":""},{"$f":"IF('TSA Input'!J999=\"\",\"\",IF(OR('TSA Input'!J999=\"Yes\",'TSA Input'!J999=\"Contingent\"),'TSA Input'!F999,\"\"))","v":""},"","Required","Required"]
["",null,{"$f":"IF('TSA Input'!J1000=\"\",\"\",IF(OR('TSA Input'!J1000=\"Yes\",'TSA Input'!J1000=\"Contingent\"),'TSA Input'!B1000,\"Ineligible\"))","v":""},{"$f":"IF('TSA Input'!J1000=\"\",\"\",IF(OR('TSA Input'!J1000=\"Yes\",'TSA Input'!J1000=\"Contingent\"),'TSA Input'!I1000,\"\"))","v":""},{"$f":"IF('TSA Input'!J1000=\"\",\"\",IF(OR('TSA Input'!J1000=\"Yes\",'TSA Input'!J1000=\"Contingent\"),'TSA Input'!C1000,\"\"))","v":""},{"$f":"IF('TSA Input'!J1000=\"\",\"\",IF(OR('TSA Input'!J1000=\"Yes\",'TSA Input'!J1000=\"Contingent\"),'TSA Input'!D1000,\"\"))","v":""},{"$f":"IF('TSA Input'!J1000=\"\",\"\",IF(OR('TSA Input'!J1000=\"Yes\",'TSA Input'!J1000=\"Contingent\"),'TSA Input'!G1000,\"\"))","v":""},{"$f":"IF('TSA Input'!J1000=\"\",\"\",IF(OR('TSA Input'!J1000=\"Yes\",'TSA Input'!J1000=\"Contingent\"),'TSA Input'!F1000,\"\"))","v":""},"",{"$f":"IF('TSA Input'!J1000=\"\",\"\",IF(OR('TSA Input'!J1000=\"Yes\",'TSA Input'!J1000=\"Contingent\"),'TSA Input'!D1000,\"\"))","v":""},{"$f":"IF('TSA Input'!J1000=\"\",\"\",IF(OR('TSA Input'!J1000=\"Yes\",'TSA Input'!J1000=\"Contingent\"),'TSA Input'!G1000,\"\"))","v":""},{"$f":"IF('TSA Input'!J1000=\"\",\"\",IF(OR('TSA Input'!J1000=\"Yes\",'TSA Input'!J1000=\"Contingent\"),'TSA Input'!F1000,\"\"))","v":""},"","Required","Required"]
["",null,{"$f":"IF('TSA Input'!J1001=\"\",\"\",IF(OR('TSA Input'!J1001=\"Yes\",'TSA Input'!J1001=\"Contingent\"),'TSA Input'!B1001,\"Ineligible\"))","v":""},{"$f":"IF('TSA Input'!J1001=\"\",\"\",IF(OR('TSA Input'!J1001=\"Yes\",'TSA Input'!J1001=\"Contingent\"),'TSA Input'!I1001,\"\"))","v":""},{"$f":"IF('TSA Input'!J1001=\"\",\"\",IF(OR('TSA Input'!J1001=\"Yes\",'TSA Input'!J1001=\"Contingent\"),'TSA Input'!C1001,\"\"))","v":""},{"$f":"IF('TSA Input'!J1001=\"\",\"\",IF(OR('TSA Input'!J1001=\"Yes\",'TSA Input'!J1001=\"Contingent\"),'TSA Input'!D1001,\"\"))","v":""},{"$f":"IF('TSA Input'!J1001=\"\",\"\",IF(OR('TSA Input'!J1001=\"Yes\",'TSA Input'!J1001=\"Contingent\"),'TSA Input'!G1001,\"\"))","v":""},{"$f":"IF('TSA Input'!J1001=\"\",\"\",IF(OR('TSA Input'!J1001=\"Yes\",'TSA Input'!J1001=\"Contingent\"),'TSA Input'!F1001,\"\"))","v":""},"",{"$f":"IF('TSA Input'!J1001=\"\",\"\",IF(OR('TSA Input'!J1001=\"Yes\",'TSA Input'!J1001=\"Contingent\"),'TSA Input'!D1001,\"\"))","v":""},{"$f":"IF('TSA Input'!J1001=\"\",\"\",IF(OR('TSA Input'!J1001=\"Yes\",'TSA Input'!J1001=\"Contingent\"),'TSA Input'!G1001,\"\"))","v":""},{"$f":"IF('TSA Input'!J1001=\"\",\"\",IF(OR('TSA Input'!J1001=\"Yes\",'TSA Input'!J1001=\"Contingent\"),'TSA Input'!F1001,\"\"))","v":""},"","Required","Required"]
["",null,{"$f":"IF('TSA Input'!J1002=\"\",\"\",IF(OR('TSA Input'!J1002=\"Yes\",'TSA Input'!J1002=\"Contingent\"),'TSA Input'!B1002,\"Ineligible\"))","v":""},{"$f":"IF('TSA Input'!J1002=\"\",\"\",IF(OR('TSA Input'!J1002=\"Yes\",'TSA Input'!J1002=\"Contingent\"),'TSA Input'!I1002,\"\"))","v":""},{"$f":"IF('TSA Input'!J1002=\"\",\"\",IF(OR('TSA Input'!J1002=\"Yes\",'TSA Input'!J1002=\"Contingent\"),'TSA Input'!C1002,\"\"))","v":""},{"$f":"IF('TSA Input'!J1002=\"\",\"\",IF(OR('TSA Input'!J1002=\"Yes\",'TSA Input'!J1002=\"Contingent\"),'TSA Input'!D1002,\"\"))","v":""},{"$f":"IF('TSA Input'!J1002=\"\",\"\",IF(OR('TSA Input'!J1002=\"Yes\",'TSA Input'!J1002=\"Contingent\"),'TSA Input'!G1002,\"\"))","v":""},{"$f":"IF('TSA Input'!J1002=\"\",\"\",IF(OR('TSA Input'!J1002=\"Yes\",'TSA Input'!J1002=\"Contingent\"),'TSA Input'!F1002,\"\"))","v":""},"",{"$f":"IF('TSA Input'!J1002=\"\",\"\",IF(OR('TSA Input'!J1002=\"Yes\",'TSA Input'!J1002=\"Contingent\"),'TSA Input'!D1002,\"\"))","v":""},{"$f":"IF('TSA Input'!J1002=\"\",\"\",IF(OR('TSA Input'!J1002=\"Yes\",'TSA Input'!J1002=\"Contingent\"),'TSA Input'!G1002,\"\"))","v":""},{"$f":"IF('TSA Input'!J1002=\"\",\"\",IF(OR('TSA Input'!J1002=\"Yes\",'TSA Input'!J1002=\"Contingent\"),'TSA Input'!F1002,\"\"))","v":""},"","Required","Required"]
["",null,{"$f":"IF('TSA Input'!J1003=\"\",\"\",IF(OR('TSA Input'!J1003=\"Yes\",'TSA Input'!J1003=\"Contingent\"),'TSA Input'!B1003,\"Ineligible\"))","v":""},{"$f":"IF('TSA Input'!J1003=\"\",\"\",IF(OR('TSA Input'!J1003=\"Yes\",'TSA Input'!J1003=\"Contingent\"),'TSA Input'!I1003,\"\"))","v":""},{"$f":"IF('TSA Input'!J1003=\"\",\"\",IF(OR('TSA Input'!J1003=\"Yes\",'TSA Input'!J1003=\"Contingent\"),'TSA Input'!C1003,\"\"))","v":""},{"$f":"IF('TSA Input'!J1003=\"\",\"\",IF(OR('TSA Input'!J1003=\"Yes\",'TSA Input'!J1003=\"Contingent\"),'TSA Input'!D1003,\"\"))","v":""},{"$f":"IF('TSA Input'!J1003=\"\",\"\",IF(OR('TSA Input'!J1003=\"Yes\",'TSA Input'!J1003=\"Contingent\"),'TSA Input'!G1003,\"\"))","v":""},{"$f":"IF('TSA Input'!J1003=\"\",\"\",IF(OR('TSA Input'!J1003=\"Yes\",'TSA Input'!J1003=\"Contingent\"),'TSA Input'!F1003,\"\"))","v":""},"",{"$f":"IF('TSA Input'!J1003=\"\",\"\",IF(OR('TSA Input'!J1003=\"Yes\",'TSA Input'!J1003=\"Contingent\"),'TSA Input'!D1003,\"\"))","v":""},{"$f":"IF('TSA Input'!J1003=\"\",\"\",IF(OR('TSA Input'!J1003=\"Yes\",'TSA Input'!J1003=\"Contingent\"),'TSA Input'!G1003,\"\"))","v":""},{"$f":"IF('TSA Input'!J1003=\"\",\"\",IF(OR('TSA Input'!J1003=\"Yes\",'TSA Input'!J1003=\"Contingent\"),'TSA Input'!F1003,\"\"))","v":""},"","Required","Required"]
["",null,{"$f":"IF('TSA Input'!J1004=\"\",\"\",IF(OR('TSA Input'!J1004=\"Yes\",'TSA Input'!J1004=\"Contingent\"),'TSA Input'!B1004,\"Ineligible\"))","v":""},{"$f":"IF('TSA Input'!J1004=\"\",\"\",IF(OR('TSA Input'!J1004=\"Yes\",'TSA Input'!J1004=\"Contingent\"),'TSA Input'!I1004,\"\"))","v":""},{"$f":"IF('TSA Input'!J1004=\"\",\"\",IF(OR('TSA Input'!J1004=\"Yes\",'TSA Input'!J1004=\"Contingent\"),'TSA Input'!C1004,\"\"))","v":""},{"$f":"IF('TSA Input'!J1004=\"\",\"\",IF(OR('TSA Input'!J1004=\"Yes\",'TSA Input'!J1004=\"Contingent\"),'TSA Input'!D1004,\"\"))","v":""},{"$f":"IF('TSA Input'!J1004=\"\",\"\",IF(OR('TSA Input'!J1004=\"Yes\",'TSA Input'!J1004=\"Contingent\"),'TSA Input'!G1004,\"\"))","v":""},{"$f":"IF('TSA Input'!J1004=\"\",\"\",IF(OR('TSA Input'!J1004=\"Yes\",'TSA Input'!J1004=\"Contingent\"),'TSA Input'!F1004,\"\"))","v":""},"",{"$f":"IF('TSA Input'!J1004=\"\",\"\",IF(OR('TSA Input'!J1004=\"Yes\",'TSA Input'!J1004=\"Contingent\"),'TSA Input'!D1004,\"\"))","v":""},{"$f":"IF('TSA Input'!J1004=\"\",\"\",IF(OR('TSA Input'!J1004=\"Yes\",'TSA Input'!J1004=\"Contingent\"),'TSA Input'!G1004,\"\"))","v":""},{"$f":"IF('TSA Input'!J1004=\"\",\"\",IF(OR('TSA Input'!J1004=\"Yes\",'TSA Input'!J1004=\"Contingent\"),'TSA Input'!F1004,\"\"))","v":""},"","Required","Required"]
["",null,{"$f":"IF('TSA Input'!J1005=\"\",\"\",IF(OR('TSA Input'!J1005=\"Yes\",'TSA Input'!J1005=\"Contingent\"),'TSA Input'!B1005,\"Ineligible\"))","v":""},{"$f":"IF('TSA Input'!J1005=\"\",\"\",IF(OR('TSA Input'!J1005=\"Yes\",'TSA Input'!J1005=\"Contingent\"),'TSA Input'!I1005,\"\"))","v":""},{"$f":"IF('TSA Input'!J1005=\"\",\"\",IF(OR('TSA Input'!J1005=\"Yes\",'TSA Input'!J1005=\"Contingent\"),'TSA Input'!C1005,\"\"))","v":""},{"$f":"IF('TSA Input'!J1005=\"\",\"\",IF(OR('TSA Input'!J1005=\"Yes\",'TSA Input'!J1005=\"Contingent\"),'TSA Input'!D1005,\"\"))","v":""},{"$f":"IF('TSA Input'!J1005=\"\",\"\",IF(OR('TSA Input'!J1005=\"Yes\",'TSA Input'!J1005=\"Contingent\"),'TSA Input'!G1005,\"\"))","v":""},{"$f":"IF('TSA Input'!J1005=\"\",\"\",IF(OR('TSA Input'!J1005=\"Yes\",'TSA Input'!J1005=\"Contingent\"),'TSA Input'!F1005,\"\"))","v":""},"",{"$f":"IF('TSA Input'!J1005=\"\",\"\",IF(OR('TSA Input'!J1005=\"Yes\",'TSA Input'!J1005=\"Contingent\"),'TSA Input'!D1005,\"\"))","v":""},{"$f":"IF('TSA Input'!J1005=\"\",\"\",IF(OR('TSA Input'!J1005=\"Yes\",'TSA Input'!J1005=\"Contingent\"),'TSA Input'!G1005,\"\"))","v":""},{"$f":"IF('TSA Input'!J1005=\"\",\"\",IF(OR('TSA Input'!J1005=\"Yes\",'TSA Input'!J1005=\"Contingent\"),'TSA Input'!F1005,\"\"))","v":""},"","Required","Required"]
["",null,{"$f":"IF('TSA Input'!J1006=\"\",\"\",IF(OR('TSA Input'!J1006=\"Yes\",'TSA Input'!J1006=\"Contingent\"),'TSA Input'!B1006,\"Ineligible\"))","v":""},{"$f":"IF('TSA Input'!J1006=\"\",\"\",IF(OR('TSA Input'!J1006=\"Yes\",'TSA Input'!J1006=\"Contingent\"),'TSA Input'!I1006,\"\"))","v":""},{"$f":"IF('TSA Input'!J1006=\"\",\"\",IF(OR('TSA Input'!J1006=\"Yes\",'TSA Input'!J1006=\"Contingent\"),'TSA Input'!C1006,\"\"))","v":""},{"$f":"IF('TSA Input'!J1006=\"\",\"\",IF(OR('TSA Input'!J1006=\"Yes\",'TSA Input'!J1006=\"Contingent\"),'TSA Input'!D1006,\"\"))","v":""},{"$f":"IF('TSA Input'!J1006=\"\",\"\",IF(OR('TSA Input'!J1006=\"Yes\",'TSA Input'!J1006=\"Contingent\"),'TSA Input'!G1006,\"\"))","v":""},{"$f":"IF('TSA Input'!J1006=\"\",\"\",IF(OR('TSA Input'!J1006=\"Yes\",'TSA Input'!J1006=\"Contingent\"),'TSA Input'!F1006,\"\"))","v":""},"",{"$f":"IF('TSA Input'!J1006=\"\",\"\",IF(OR('TSA Input'!J1006=\"Yes\",'TSA Input'!J1006=\"Contingent\"),'TSA Input'!D1006,\"\"))","v":""},{"$f":"IF('TSA Input'!J1006=\"\",\"\",IF(OR('TSA Input'!J1006=\"Yes\",'TSA Input'!J1006=\"Contingent\"),'TSA Input'!G1006,\"\"))","v":""},{"$f":"IF('TSA Input'!J1006=\"\",\"\",IF(OR('TSA Input'!J1006=\"Yes\",'TSA Input'!J1006=\"Contingent\"),'TSA Input'!F1006,\"\"))","v":""},"","Required","Required"]
["",null,{"$f":"IF('TSA Input'!J1007=\"\",\"\",IF(OR('TSA Input'!J1007=\"Yes\",'TSA Input'!J1007=\"Contingent\"),'TSA Input'!B1007,\"Ineligible\"))","v":""},{"$f":"IF('TSA Input'!J1007=\"\",\"\",IF(OR('TSA Input'!J1007=\"Yes\",'TSA Input'!J1007=\"Contingent\"),'TSA Input'!I1007,\"\"))","v":""},{"$f":"IF('TSA Input'!J1007=\"\",\"\",IF(OR('TSA Input'!J1007=\"Yes\",'TSA Input'!J1007=\"Contingent\"),'TSA Input'!C1007,\"\"))","v":""},{"$f":"IF('TSA Input'!J1007=\"\",\"\",IF(OR('TSA Input'!J1007=\"Yes\",'TSA Input'!J1007=\"Contingent\"),'TSA Input'!D1007,\"\"))","v":""},{"$f":"IF('TSA Input'!J1007=\"\",\"\",IF(OR('TSA Input'!J1007=\"Yes\",'TSA Input'!J1007=\"Contingent\"),'TSA Input'!G1007,\"\"))","v":""},{"$f":"IF('TSA Input'!J1007=\"\",\"\",IF(OR('TSA Input'!J1007=\"Yes\",'TSA Input'!J1007=\"Contingent\"),'TSA Input'!F1007,\"\"))","v":""},"",{"$f":"IF('TSA Input'!J1007=\"\",\"\",IF(OR('TSA Input'!J1007=\"Yes\",'TSA Input'!J1007=\"Contingent\"),'TSA Input'!D1007,\"\"))","v":""},{"$f":"IF('TSA Input'!J1007=\"\",\"\",IF(OR('TSA Input'!J1007=\"Yes\",'TSA Input'!J1007=\"Contingent\"),'TSA Input'!G1007,\"\"))","v":""},{"$f":"IF('TSA Input'!J1007=\"\",\"\",IF(OR('TSA Input'!J1007=\"Yes\",'TSA Input'!J1007=\"Contingent\"),'TSA Input'!F1007,\"\"))","v":""},"","Required","Required"]
["",null,{"$f":"IF('TSA Input'!J1008=\"\",\"\",IF(OR('TSA Input'!J1008=\"Yes\",'TSA Input'!J1008=\"Contingent\"),'TSA Input'!B1008,\"Ineligible\"))","v":""},{"$f":"IF('TSA Input'!J1008=\"\",\"\",IF(OR('TSA Input'!J1008=\"Yes\",'TSA Input'!J1008=\"Contingent\"),'TSA Input'!I1008,\"\"))","v":""},{"$f":"IF('TSA Input'!J1008=\"\",\"\",IF(OR('TSA Input'!J1008=\"Yes\",'TSA Input'!J1008=\"Contingent\"),'TSA Input'!C1008,\"\"))","v":""},{"$f":"IF('TSA Input'!J1008=\"\",\"\",IF(OR('TSA Input'!J1008=\"Yes\",'TSA Input'!J1008=\"Contingent\"),'TSA Input'!D1008,\"\"))","v":""},{"$f":"IF('TSA Input'!J1008=\"\",\"\",IF(OR('TSA Input'!J1008=\"Yes\",'TSA Input'!J1008=\"Contingent\"),'TSA Input'!G1008,\"\"))","v":""},{"$f":"IF('TSA Input'!J1008=\"\",\"\",IF(OR('TSA Input'!J1008=\"Yes\",'TSA Input'!J1008=\"Contingent\"),'TSA Input'!F1008,\"\"))","v":""},"",{"$f":"IF('TSA Input'!J1008=\"\",\"\",IF(OR('TSA Input'!J1008=\"Yes\",'TSA Input'!J1008=\"Contingent\"),'TSA Input'!D1008,\"\"))","v":""},{"$f":"IF('TSA Input'!J1008=\"\",\"\",IF(OR('TSA Input'!J1008=\"Yes\",'TSA Input'!J1008=\"Contingent\"),'TSA Input'!G1008,\"\"))","v":""},{"$f":"IF('TSA Input'!J1008=\"\",\"\",IF(OR('TSA Input'!J1008=\"Yes\",'TSA Input'!J1008=\"Contingent\"),'TSA Input'!F1008,\"\"))","v":""},"","Required","Required"]
["",null,{"$f":"IF('TSA Input'!J1009=\"\",\"\",IF(OR('TSA Input'!J1009=\"Yes\",'TSA Input'!J1009=\"Contingent\"),'TSA Input'!B1009,\"Ineligible\"))","v":""},{"$f":"IF('TSA Input'!J1009=\"\",\"\",IF(OR('TSA Input'!J1009=\"Yes\",'TSA Input'!J1009=\"Contingent\"),'TSA Input'!I1009,\"\"))","v":""},{"$f":"IF('TSA Input'!J1009=\"\",\"\",IF(OR('TSA Input'!J1009=\"Yes\",'TSA Input'!J1009=\"Contingent\"),'TSA Input'!C1009,\"\"))","v":""},{"$f":"IF('TSA Input'!J1009=\"\",\"\",IF(OR('TSA Input'!J1009=\"Yes\",'TSA Input'!J1009=\"Contingent\"),'TSA Input'!D1009,\"\"))","v":""},{"$f":"IF('TSA Input'!J1009=\"\",\"\",IF(OR('TSA Input'!J1009=\"Yes\",'TSA Input'!J1009=\"Contingent\"),'TSA Input'!G1009,\"\"))","v":""},{"$f":"IF('TSA Input'!J1009=\"\",\"\",IF(OR('TSA Input'!J1009=\"Yes\",'TSA Input'!J1009=\"Contingent\"),'TSA Input'!F1009,\"\"))","v":""},"",{"$f":"IF('TSA Input'!J1009=\"\",\"\",IF(OR('TSA Input'!J1009=\"Yes\",'TSA Input'!J1009=\"Contingent\"),'TSA Input'!D1009,\"\"))","v":""},{"$f":"IF('TSA Input'!J1009=\"\",\"\",IF(OR('TSA Input'!J1009=\"Yes\",'TSA Input'!J1009=\"Contingent\"),'TSA Input'!G1009,\"\"))","v":""},{"$f":"IF('TSA Input'!J1009=\"\",\"\",IF(OR('TSA Input'!J1009=\"Yes\",'TSA Input'!J1009=\"Contingent\"),'TSA Input'!F1009,\"\"))","v":""},"","Required","Required"]
["",null,{"$f":"IF('TSA Input'!J1010=\"\",\"\",IF(OR('TSA Input'!J1010=\"Yes\",'TSA Input'!J1010=\"Contingent\"),'TSA Input'!B1010,\"Ineligible\"))","v":""},{"$f":"IF('TSA Input'!J1010=\"\",\"\",IF(OR('TSA Input'!J1010=\"Yes\",'TSA Input'!J1010=\"Contingent\"),'TSA Input'!I1010,\"\"))","v":""},{"$f":"IF('TSA Input'!J1010=\"\",\"\",IF(OR('TSA Input'!J1010=\"Yes\",'TSA Input'!J1010=\"Contingent\"),'TSA Input'!C1010,\"\"))","v":""},{"$f":"IF('TSA Input'!J1010=\"\",\"\",IF(OR('TSA Input'!J1010=\"Yes\",'TSA Input'!J1010=\"Contingent\"),'TSA Input'!D1010,\"\"))","v":""},{"$f":"IF('TSA Input'!J1010=\"\",\"\",IF(OR('TSA Input'!J1010=\"Yes\",'TSA Input'!J1010=\"Contingent\"),'TSA Input'!G1010,\"\"))","v":""},{"$f":"IF('TSA Input'!J1010=\"\",\"\",IF(OR('TSA Input'!J1010=\"Yes\",'TSA Input'!J1010=\"Contingent\"),'TSA Input'!F1010,\"\"))","v":""},"",{"$f":"IF('TSA Input'!J1010=\"\",\"\",IF(OR('TSA Input'!J1010=\"Yes\",'TSA Input'!J1010=\"Contingent\"),'TSA Input'!D1010,\"\"))","v":""},{"$f":"IF('TSA Input'!J1010=\"\",\"\",IF(OR('TSA Input'!J1010=\"Yes\",'TSA Input'!J1010=\"Contingent\"),'TSA Input'!G1010,\"\"))","v":""},{"$f":"IF('TSA Input'!J1010=\"\",\"\",IF(OR('TSA Input'!J1010=\"Yes\",'TSA Input'!J1010=\"Contingent\"),'TSA Input'!F1010,\"\"))","v":""},"","Required","Required"]
["",null,{"$f":"IF('TSA Input'!J1011=\"\",\"\",IF(OR('TSA Input'!J1011=\"Yes\",'TSA Input'!J1011=\"Contingent\"),'TSA Input'!B1011,\"Ineligible\"))","v":""},{"$f":"IF('TSA Input'!J1011=\"\",\"\",IF(OR('TSA Input'!J1011=\"Yes\",'TSA Input'!J1011=\"Contingent\"),'TSA Input'!I1011,\"\"))","v":""},{"$f":"IF('TSA Input'!J1011=\"\",\"\",IF(OR('TSA Input'!J1011=\"Yes\",'TSA Input'!J1011=\"Contingent\"),'TSA Input'!C1011,\"\"))","v":""},{"$f":"IF('TSA Input'!J1011=\"\",\"\",IF(OR('TSA Input'!J1011=\"Yes\",'TSA Input'!J1011=\"Contingent\"),'TSA Input'!D1011,\"\"))","v":""},{"$f":"IF('TSA Input'!J1011=\"\",\"\",IF(OR('TSA Input'!J1011=\"Yes\",'TSA Input'!J1011=\"Contingent\"),'TSA Input'!G1011,\"\"))","v":""},{"$f":"IF('TSA Input'!J1011=\"\",\"\",IF(OR('TSA Input'!J1011=\"Yes\",'TSA Input'!J1011=\"Contingent\"),'TSA Input'!F1011,\"\"))","v":""},"",{"$f":"IF('TSA Input'!J1011=\"\",\"\",IF(OR('TSA Input'!J1011=\"Yes\",'TSA Input'!J1011=\"Contingent\"),'TSA Input'!D1011,\"\"))","v":""},{"$f":"IF('TSA Input'!J1011=\"\",\"\",IF(OR('TSA Input'!J1011=\"Yes\",'TSA Input'!J1011=\"Contingent\"),'TSA Input'!G1011,\"\"))","v":""},{"$f":"IF('TSA Input'!J1011=\"\",\"\",IF(OR('TSA Input'!J1011=\"Yes\",'TSA Input'!J1011=\"Contingent\"),'TSA Input'!F1011,\"\"))","v":""},"","Required","Required"]
["",null,{"$f":"IF('TSA Input'!J1012=\"\",\"\",IF(OR('TSA Input'!J1012=\"Yes\",'TSA Input'!J1012=\"Contingent\"),'TSA Input'!B1012,\"Ineligible\"))","v":""},{"$f":"IF('TSA Input'!J1012=\"\",\"\",IF(OR('TSA Input'!J1012=\"Yes\",'TSA Input'!J1012=\"Contingent\"),'TSA Input'!I1012,\"\"))","v":""},{"$f":"IF('TSA Input'!J1012=\"\",\"\",IF(OR('TSA Input'!J1012=\"Yes\",'TSA Input'!J1012=\"Contingent\"),'TSA Input'!C1012,\"\"))","v":""},{"$f":"IF('TSA Input'!J1012=\"\",\"\",IF(OR('TSA Input'!J1012=\"Yes\",'TSA Input'!J1012=\"Contingent\"),'TSA Input'!D1012,\"\"))","v":""},{"$f":"IF('TSA Input'!J1012=\"\",\"\",IF(OR('TSA Input'!J1012=\"Yes\",'TSA Input'!J1012=\"Contingent\"),'TSA Input'!G1012,\"\"))","v":""},{"$f":"IF('TSA Input'!J1012=\"\",\"\",IF(OR('TSA Input'!J1012=\"Yes\",'TSA Input'!J1012=\"Contingent\"),'TSA Input'!F1012,\"\"))","v":""},"",{"$f":"IF('TSA Input'!J1012=\"\",\"\",IF(OR('TSA Input'!J1012=\"Yes\",'TSA Input'!J1012=\"Contingent\"),'TSA Input'!D1012,\"\"))","v":""},{"$f":"IF('TSA Input'!J1012=\"\",\"\",IF(OR('TSA Input'!J1012=\"Yes\",'TSA Input'!J1012=\"Contingent\"),'TSA Input'!G1012,\"\"))","v":""},{"$f":"IF('TSA Input'!J1012=\"\",\"\",IF(OR('TSA Input'!J1012=\"Yes\",'TSA Input'!J1012=\"Contingent\"),'TSA Input'!F1012,\"\"))","v":""},"","Required","Required"]
["",null,{"$f":"IF('TSA Input'!J1013=\"\",\"\",IF(OR('TSA Input'!J1013=\"Yes\",'TSA Input'!J1013=\"Contingent\"),'TSA Input'!B1013,\"Ineligible\"))","v":""},{"$f":"IF('TSA Input'!J1013=\"\",\"\",IF(OR('TSA Input'!J1013=\"Yes\",'TSA Input'!J1013=\"Contingent\"),'TSA Input'!I1013,\"\"))","v":""},{"$f":"IF('TSA Input'!J1013=\"\",\"\",IF(OR('TSA Input'!J1013=\"Yes\",'TSA Input'!J1013=\"Contingent\"),'TSA Input'!C1013,\"\"))","v":""},{"$f":"IF('TSA Input'!J1013=\"\",\"\",IF(OR('TSA Input'!J1013=\"Yes\",'TSA Input'!J1013=\"Contingent\"),'TSA Input'!D1013,\"\"))","v":""},{"$f":"IF('TSA Input'!J1013=\"\",\"\",IF(OR('TSA Input'!J1013=\"Yes\",'TSA Input'!J1013=\"Contingent\"),'TSA Input'!G1013,\"\"))","v":""},{"$f":"IF('TSA Input'!J1013=\"\",\"\",IF(OR('TSA Input'!J1013=\"Yes\",'TSA Input'!J1013=\"Contingent\"),'TSA Input'!F1013,\"\"))","v":""},"",{"$f":"IF('TSA Input'!J1013=\"\",\"\",IF(OR('TSA Input'!J1013=\"Yes\",'TSA Input'!J1013=\"Contingent\"),'TSA Input'!D1013,\"\"))","v":""},{"$f":"IF('TSA Input'!J1013=\"\",\"\",IF(OR('TSA Input'!J1013=\"Yes\",'TSA Input'!J1013=\"Contingent\"),'TSA Input'!G1013,\"\"))","v":""},{"$f":"IF('TSA Input'!J1013=\"\",\"\",IF(OR('TSA Input'!J1013=\"Yes\",'TSA Input'!J1013=\"Contingent\"),'TSA Input'!F1013,\"\"))","v":""},"","Required","Required"]
["",null,{"$f":"IF('TSA Input'!J1014=\"\",\"\",IF(OR('TSA Input'!J1014=\"Yes\",'TSA Input'!J1014=\"Contingent\"),'TSA Input'!B1014,\"Ineligible\"))","v":""},{"$f":"IF('TSA Input'!J1014=\"\",\"\",IF(OR('TSA Input'!J1014=\"Yes\",'TSA Input'!J1014=\"Contingent\"),'TSA Input'!I1014,\"\"))","v":""},{"$f":"IF('TSA Input'!J1014=\"\",\"\",IF(OR('TSA Input'!J1014=\"Yes\",'TSA Input'!J1014=\"Contingent\"),'TSA Input'!C1014,\"\"))","v":""},{"$f":"IF('TSA Input'!J1014=\"\",\"\",IF(OR('TSA Input'!J1014=\"Yes\",'TSA Input'!J1014=\"Contingent\"),'TSA Input'!D1014,\"\"))","v":""},{"$f":"IF('TSA Input'!J1014=\"\",\"\",IF(OR('TSA Input'!J1014=\"Yes\",'TSA Input'!J1014=\"Contingent\"),'TSA Input'!G1014,\"\"))","v":""},{"$f":"IF('TSA Input'!J1014=\"\",\"\",IF(OR('TSA Input'!J1014=\"Yes\",'TSA Input'!J1014=\"Contingent\"),'TSA Input'!F1014,\"\"))","v":""},"",{"$f":"IF('TSA Input'!J1014=\"\",\"\",IF(OR('TSA Input'!J1014=\"Yes\",'TSA Input'!J1014=\"Contingent\"),'TSA Input'!D1014,\"\"))","v":""},{"$f":"IF('TSA Input'!J1014=\"\",\"\",IF(OR('TSA Input'!J1014=\"Yes\",'TSA Input'!J1014=\"Contingent\"),'TSA Input'!G1014,\"\"))","v":""},{"$f":"IF('TSA Input'!J1014=\"\",\"\",IF(OR('TSA Input'!J1014=\"Yes\",'TSA Input'!J1014=\"Contingent\"),'TSA Input'!F1014,\"\"))","v":""},"","Required","Required"]
["",null,{"$f":"IF('TSA Input'!J1015=\"\",\"\",IF(OR('TSA Input'!J1015=\"Yes\",'TSA Input'!J1015=\"Contingent\"),'TSA Input'!B1015,\"Ineligible\"))","v":""},{"$f":"IF('TSA Input'!J1015=\"\",\"\",IF(OR('TSA Input'!J1015=\"Yes\",'TSA Input'!J1015=\"Contingent\"),'TSA Input'!I1015,\"\"))","v":""},{"$f":"IF('TSA Input'!J1015=\"\",\"\",IF(OR('TSA Input'!J1015=\"Yes\",'TSA Input'!J1015=\"Contingent\"),'TSA Input'!C1015,\"\"))","v":""},{"$f":"IF('TSA Input'!J1015=\"\",\"\",IF(OR('TSA Input'!J1015=\"Yes\",'TSA Input'!J1015=\"Contingent\"),'TSA Input'!D1015,\"\"))","v":""},{"$f":"IF('TSA Input'!J1015=\"\",\"\",IF(OR('TSA Input'!J1015=\"Yes\",'TSA Input'!J1015=\"Contingent\"),'TSA Input'!G1015,\"\"))","v":""},{"$f":"IF('TSA Input'!J1015=\"\",\"\",IF(OR('TSA Input'!J1015=\"Yes\",'TSA Input'!J1015=\"Contingent\"),'TSA Input'!F1015,\"\"))","v":""},"",{"$f":"IF('TSA Input'!J1015=\"\",\"\",IF(OR('TSA Input'!J1015=\"Yes\",'TSA Input'!J1015=\"Contingent\"),'TSA Input'!D1015,\"\"))","v":""},{"$f":"IF('TSA Input'!J1015=\"\",\"\",IF(OR('TSA Input'!J1015=\"Yes\",'TSA Input'!J1015=\"Contingent\"),'TSA Input'!G1015,\"\"))","v":""},{"$f":"IF('TSA Input'!J1015=\"\",\"\",IF(OR('TSA Input'!J1015=\"Yes\",'TSA Input'!J1015=\"Contingent\"),'TSA Input'!F1015,\"\"))","v":""},"","Required","Required"]
["",null,{"$f":"IF('TSA Input'!J1016=\"\",\"\",IF(OR('TSA Input'!J1016=\"Yes\",'TSA Input'!J1016=\"Contingent\"),'TSA Input'!B1016,\"Ineligible\"))","v":""},{"$f":"IF('TSA Input'!J1016=\"\",\"\",IF(OR('TSA Input'!J1016=\"Yes\",'TSA Input'!J1016=\"Contingent\"),'TSA Input'!I1016,\"\"))","v":""},{"$f":"IF('TSA Input'!J1016=\"\",\"\",IF(OR('TSA Input'!J1016=\"Yes\",'TSA Input'!J1016=\"Contingent\"),'TSA Input'!C1016,\"\"))","v":""},{"$f":"IF('TSA Input'!J1016=\"\",\"\",IF(OR('TSA Input'!J1016=\"Yes\",'TSA Input'!J1016=\"Contingent\"),'TSA Input'!D1016,\"\"))","v":""},{"$f":"IF('TSA Input'!J1016=\"\",\"\",IF(OR('TSA Input'!J1016=\"Yes\",'TSA Input'!J1016=\"Contingent\"),'TSA Input'!G1016,\"\"))","v":""},{"$f":"IF('TSA Input'!J1016=\"\",\"\",IF(OR('TSA Input'!J1016=\"Yes\",'TSA Input'!J1016=\"Contingent\"),'TSA Input'!F1016,\"\"))","v":""},"",{"$f":"IF('TSA Input'!J1016=\"\",\"\",IF(OR('TSA Input'!J1016=\"Yes\",'TSA Input'!J1016=\"Contingent\"),'TSA Input'!D1016,\"\"))","v":""},{"$f":"IF('TSA Input'!J1016=\"\",\"\",IF(OR('TSA Input'!J1016=\"Yes\",'TSA Input'!J1016=\"Contingent\"),'TSA Input'!G1016,\"\"))","v":""},{"$f":"IF('TSA Input'!J1016=\"\",\"\",IF(OR('TSA Input'!J1016=\"Yes\",'TSA Input'!J1016=\"Contingent\"),'TSA Input'!F1016,\"\"))","v":""},"","Required","Required"]
["",null,{"$f":"IF('TSA Input'!J1017=\"\",\"\",IF(OR('TSA Input'!J1017=\"Yes\",'TSA Input'!J1017=\"Contingent\"),'TSA Input'!B1017,\"Ineligible\"))","v":""},{"$f":"IF('TSA Input'!J1017=\"\",\"\",IF(OR('TSA Input'!J1017=\"Yes\",'TSA Input'!J1017=\"Contingent\"),'TSA Input'!I1017,\"\"))","v":""},{"$f":"IF('TSA Input'!J1017=\"\",\"\",IF(OR('TSA Input'!J1017=\"Yes\",'TSA Input'!J1017=\"Contingent\"),'TSA Input'!C1017,\"\"))","v":""},{"$f":"IF('TSA Input'!J1017=\"\",\"\",IF(OR('TSA Input'!J1017=\"Yes\",'TSA Input'!J1017=\"Contingent\"),'TSA Input'!D1017,\"\"))","v":""},{"$f":"IF('TSA Input'!J1017=\"\",\"\",IF(OR('TSA Input'!J1017=\"Yes\",'TSA Input'!J1017=\"Contingent\"),'TSA Input'!G1017,\"\"))","v":""},{"$f":"IF('TSA Input'!J1017=\"\",\"\",IF(OR('TSA Input'!J1017=\"Yes\",'TSA Input'!J1017=\"Contingent\"),'TSA Input'!F1017,\"\"))","v":""},"",{"$f":"IF('TSA Input'!J1017=\"\",\"\",IF(OR('TSA Input'!J1017=\"Yes\",'TSA Input'!J1017=\"Contingent\"),'TSA Input'!D1017,\"\"))","v":""},{"$f":"IF('TSA Input'!J1017=\"\",\"\",IF(OR('TSA Input'!J1017=\"Yes\",'TSA Input'!J1017=\"Contingent\"),'TSA Input'!G1017,\"\"))","v":""},{"$f":"IF('TSA Input'!J1017=\"\",\"\",IF(OR('TSA Input'!J1017=\"Yes\",'TSA Input'!J1017=\"Contingent\"),'TSA Input'!F1017,\"\"))","v":""},"","Required","Required"]
["",null,{"$f":"IF('TSA Input'!J1018=\"\",\"\",IF(OR('TSA Input'!J1018=\"Yes\",'TSA Input'!J1018=\"Contingent\"),'TSA Input'!B1018,\"Ineligible\"))","v":""},{"$f":"IF('TSA Input'!J1018=\"\",\"\",IF(OR('TSA Input'!J1018=\"Yes\",'TSA Input'!J1018=\"Contingent\"),'TSA Input'!I1018,\"\"))","v":""},{"$f":"IF('TSA Input'!J1018=\"\",\"\",IF(OR('TSA Input'!J1018=\"Yes\",'TSA Input'!J1018=\"Contingent\"),'TSA Input'!C1018,\"\"))","v":""},{"$f":"IF('TSA Input'!J1018=\"\",\"\",IF(OR('TSA Input'!J1018=\"Yes\",'TSA Input'!J1018=\"Contingent\"),'TSA Input'!D1018,\"\"))","v":""},{"$f":"IF('TSA Input'!J1018=\"\",\"\",IF(OR('TSA Input'!J1018=\"Yes\",'TSA Input'!J1018=\"Contingent\"),'TSA Input'!G1018,\"\"))","v":""},{"$f":"IF('TSA Input'!J1018=\"\",\"\",IF(OR('TSA Input'!J1018=\"Yes\",'TSA Input'!J1018=\"Contingent\"),'TSA Input'!F1018,\"\"))","v":""},"",{"$f":"IF('TSA Input'!J1018=\"\",\"\",IF(OR('TSA Input'!J1018=\"Yes\",'TSA Input'!J1018=\"Contingent\"),'TSA Input'!D1018,\"\"))","v":""},{"$f":"IF('TSA Input'!J1018=\"\",\"\",IF(OR('TSA Input'!J1018=\"Yes\",'TSA Input'!J1018=\"Contingent\"),'TSA Input'!G1018,\"\"))","v":""},{"$f":"IF('TSA Input'!J1018=\"\",\"\",IF(OR('TSA Input'!J1018=\"Yes\",'TSA Input'!J1018=\"Contingent\"),'TSA Input'!F1018,\"\"))","v":""},"","Required","Required"]
["",null,{"$f":"IF('TSA Input'!J1019=\"\",\"\",IF(OR('TSA Input'!J1019=\"Yes\",'TSA Input'!J1019=\"Contingent\"),'TSA Input'!B1019,\"Ineligible\"))","v":""},{"$f":"IF('TSA Input'!J1019=\"\",\"\",IF(OR('TSA Input'!J1019=\"Yes\",'TSA Input'!J1019=\"Contingent\"),'TSA Input'!I1019,\"\"))","v":""},{"$f":"IF('TSA Input'!J1019=\"\",\"\",IF(OR('TSA Input'!J1019=\"Yes\",'TSA Input'!J1019=\"Contingent\"),'TSA Input'!C1019,\"\"))","v":""},{"$f":"IF('TSA Input'!J1019=\"\",\"\",IF(OR('TSA Input'!J1019=\"Yes\",'TSA Input'!J1019=\"Contingent\"),'TSA Input'!D1019,\"\"))","v":""},{"$f":"IF('TSA Input'!J1019=\"\",\"\",IF(OR('TSA Input'!J1019=\"Yes\",'TSA Input'!J1019=\"Contingent\"),'TSA Input'!G1019,\"\"))","v":""},{"$f":"IF('TSA Input'!J1019=\"\",\"\",IF(OR('TSA Input'!J1019=\"Yes\",'TSA Input'!J1019=\"Contingent\"),'TSA Input'!F1019,\"\"))","v":""},"",{"$f":"IF('TSA Input'!J1019=\"\",\"\",IF(OR('TSA Input'!J1019=\"Yes\",'TSA Input'!J1019=\"Contingent\"),'TSA Input'!D1019,\"\"))","v":""},{"$f":"IF('TSA Input'!J1019=\"\",\"\",IF(OR('TSA Input'!J1019=\"Yes\",'TSA Input'!J1019=\"Contingent\"),'TSA Input'!G1019,\"\"))","v":""},{"$f":"IF('TSA Input'!J1019=\"\",\"\",IF(OR('TSA Input'!J1019=\"Yes\",'TSA Input'!J1019=\"Contingent\"),'TSA Input'!F1019,\"\"))","v":""},"","Required","Required"]
["",null,{"$f":"IF('TSA Input'!J1020=\"\",\"\",IF(OR('TSA Input'!J1020=\"Yes\",'TSA Input'!J1020=\"Contingent\"),'TSA Input'!B1020,\"Ineligible\"))","v":""},{"$f":"IF('TSA Input'!J1020=\"\",\"\",IF(OR('TSA Input'!J1020=\"Yes\",'TSA Input'!J1020=\"Contingent\"),'TSA Input'!I1020,\"\"))","v":""},{"$f":"IF('TSA Input'!J1020=\"\",\"\",IF(OR('TSA Input'!J1020=\"Yes\",'TSA Input'!J1020=\"Contingent\"),'TSA Input'!C1020,\"\"))","v":""},{"$f":"IF('TSA Input'!J1020=\"\",\"\",IF(OR('TSA Input'!J1020=\"Yes\",'TSA Input'!J1020=\"Contingent\"),'TSA Input'!D1020,\"\"))","v":""},{"$f":"IF('TSA Input'!J1020=\"\",\"\",IF(OR('TSA Input'!J1020=\"Yes\",'TSA Input'!J1020=\"Contingent\"),'TSA Input'!G1020,\"\"))","v":""},{"$f":"IF('TSA Input'!J1020=\"\",\"\",IF(OR('TSA Input'!J1020=\"Yes\",'TSA Input'!J1020=\"Contingent\"),'TSA Input'!F1020,\"\"))","v":""},"",{"$f":"IF('TSA Input'!J1020=\"\",\"\",IF(OR('TSA Input'!J1020=\"Yes\",'TSA Input'!J1020=\"Contingent\"),'TSA Input'!D1020,\"\"))","v":""},{"$f":"IF('TSA Input'!J1020=\"\",\"\",IF(OR('TSA Input'!J1020=\"Yes\",'TSA Input'!J1020=\"Contingent\"),'TSA Input'!G1020,\"\"))","v":""},{"$f":"IF('TSA Input'!J1020=\"\",\"\",IF(OR('TSA Input'!J1020=\"Yes\",'TSA Input'!J1020=\"Contingent\"),'TSA Input'!F1020,\"\"))","v":""},"","Required","Required"]
["",null,{"$f":"IF('TSA Input'!J1021=\"\",\"\",IF(OR('TSA Input'!J1021=\"Yes\",'TSA Input'!J1021=\"Contingent\"),'TSA Input'!B1021,\"Ineligible\"))","v":""},{"$f":"IF('TSA Input'!J1021=\"\",\"\",IF(OR('TSA Input'!J1021=\"Yes\",'TSA Input'!J1021=\"Contingent\"),'TSA Input'!I1021,\"\"))","v":""},{"$f":"IF('TSA Input'!J1021=\"\",\"\",IF(OR('TSA Input'!J1021=\"Yes\",'TSA Input'!J1021=\"Contingent\"),'TSA Input'!C1021,\"\"))","v":""},{"$f":"IF('TSA Input'!J1021=\"\",\"\",IF(OR('TSA Input'!J1021=\"Yes\",'TSA Input'!J1021=\"Contingent\"),'TSA Input'!D1021,\"\"))","v":""},{"$f":"IF('TSA Input'!J1021=\"\",\"\",IF(OR('TSA Input'!J1021=\"Yes\",'TSA Input'!J1021=\"Contingent\"),'TSA Input'!G1021,\"\"))","v":""},{"$f":"IF('TSA Input'!J1021=\"\",\"\",IF(OR('TSA Input'!J1021=\"Yes\",'TSA Input'!J1021=\"Contingent\"),'TSA Input'!F1021,\"\"))","v":""},"",{"$f":"IF('TSA Input'!J1021=\"\",\"\",IF(OR('TSA Input'!J1021=\"Yes\",'TSA Input'!J1021=\"Contingent\"),'TSA Input'!D1021,\"\"))","v":""},{"$f":"IF('TSA Input'!J1021=\"\",\"\",IF(OR('TSA Input'!J1021=\"Yes\",'TSA Input'!J1021=\"Contingent\"),'TSA Input'!G1021,\"\"))","v":""},{"$f":"IF('TSA Input'!J1021=\"\",\"\",IF(OR('TSA Input'!J1021=\"Yes\",'TSA Input'!J1021=\"Contingent\"),'TSA Input'!F1021,\"\"))","v":""},"","Required","Required"]
["",null,{"$f":"IF('TSA Input'!J1022=\"\",\"\",IF(OR('TSA Input'!J1022=\"Yes\",'TSA Input'!J1022=\"Contingent\"),'TSA Input'!B1022,\"Ineligible\"))","v":""},{"$f":"IF('TSA Input'!J1022=\"\",\"\",IF(OR('TSA Input'!J1022=\"Yes\",'TSA Input'!J1022=\"Contingent\"),'TSA Input'!I1022,\"\"))","v":""},{"$f":"IF('TSA Input'!J1022=\"\",\"\",IF(OR('TSA Input'!J1022=\"Yes\",'TSA Input'!J1022=\"Contingent\"),'TSA Input'!C1022,\"\"))","v":""},{"$f":"IF('TSA Input'!J1022=\"\",\"\",IF(OR('TSA Input'!J1022=\"Yes\",'TSA Input'!J1022=\"Contingent\"),'TSA Input'!D1022,\"\"))","v":""},{"$f":"IF('TSA Input'!J1022=\"\",\"\",IF(OR('TSA Input'!J1022=\"Yes\",'TSA Input'!J1022=\"Contingent\"),'TSA Input'!G1022,\"\"))","v":""},{"$f":"IF('TSA Input'!J1022=\"\",\"\",IF(OR('TSA Input'!J1022=\"Yes\",'TSA Input'!J1022=\"Contingent\"),'TSA Input'!F1022,\"\"))","v":""},"",{"$f":"IF('TSA Input'!J1022=\"\",\"\",IF(OR('TSA Input'!J1022=\"Yes\",'TSA Input'!J1022=\"Contingent\"),'TSA Input'!D1022,\"\"))","v":""},{"$f":"IF('TSA Input'!J1022=\"\",\"\",IF(OR('TSA Input'!J1022=\"Yes\",'TSA Input'!J1022=\"Contingent\"),'TSA Input'!G1022,\"\"))","v":""},{"$f":"IF('TSA Input'!J1022=\"\",\"\",IF(OR('TSA Input'!J1022=\"Yes\",'TSA Input'!J1022=\"Contingent\"),'TSA Input'!F1022,\"\"))","v":""},"","Required","Required"]
["",null,{"$f":"IF('TSA Input'!J1023=\"\",\"\",IF(OR('TSA Input'!J1023=\"Yes\",'TSA Input'!J1023=\"Contingent\"),'TSA Input'!B1023,\"Ineligible\"))","v":""},{"$f":"IF('TSA Input'!J1023=\"\",\"\",IF(OR('TSA Input'!J1023=\"Yes\",'TSA Input'!J1023=\"Contingent\"),'TSA Input'!I1023,\"\"))","v":""},{"$f":"IF('TSA Input'!J1023=\"\",\"\",IF(OR('TSA Input'!J1023=\"Yes\",'TSA Input'!J1023=\"Contingent\"),'TSA Input'!C1023,\"\"))","v":""},{"$f":"IF('TSA Input'!J1023=\"\",\"\",IF(OR('TSA Input'!J1023=\"Yes\",'TSA Input'!J1023=\"Contingent\"),'TSA Input'!D1023,\"\"))","v":""},{"$f":"IF('TSA Input'!J1023=\"\",\"\",IF(OR('TSA Input'!J1023=\"Yes\",'TSA Input'!J1023=\"Contingent\"),'TSA Input'!G1023,\"\"))","v":""},{"$f":"IF('TSA Input'!J1023=\"\",\"\",IF(OR('TSA Input'!J1023=\"Yes\",'TSA Input'!J1023=\"Contingent\"),'TSA Input'!F1023,\"\"))","v":""},"",{"$f":"IF('TSA Input'!J1023=\"\",\"\",IF(OR('TSA Input'!J1023=\"Yes\",'TSA Input'!J1023=\"Contingent\"),'TSA Input'!D1023,\"\"))","v":""},{"$f":"IF('TSA Input'!J1023=\"\",\"\",IF(OR('TSA Input'!J1023=\"Yes\",'TSA Input'!J1023=\"Contingent\"),'TSA Input'!G1023,\"\"))","v":""},{"$f":"IF('TSA Input'!J1023=\"\",\"\",IF(OR('TSA Input'!J1023=\"Yes\",'TSA Input'!J1023=\"Contingent\"),'TSA Input'!F1023,\"\"))","v":""},"","Required","Required"]
["",null,{"$f":"IF('TSA Input'!J1024=\"\",\"\",IF(OR('TSA Input'!J1024=\"Yes\",'TSA Input'!J1024=\"Contingent\"),'TSA Input'!B1024,\"Ineligible\"))","v":""},{"$f":"IF('TSA Input'!J1024=\"\",\"\",IF(OR('TSA Input'!J1024=\"Yes\",'TSA Input'!J1024=\"Contingent\"),'TSA Input'!I1024,\"\"))","v":""},{"$f":"IF('TSA Input'!J1024=\"\",\"\",IF(OR('TSA Input'!J1024=\"Yes\",'TSA Input'!J1024=\"Contingent\"),'TSA Input'!C1024,\"\"))","v":""},{"$f":"IF('TSA Input'!J1024=\"\",\"\",IF(OR('TSA Input'!J1024=\"Yes\",'TSA Input'!J1024=\"Contingent\"),'TSA Input'!D1024,\"\"))","v":""},{"$f":"IF('TSA Input'!J1024=\"\",\"\",IF(OR('TSA Input'!J1024=\"Yes\",'TSA Input'!J1024=\"Contingent\"),'TSA Input'!G1024,\"\"))","v":""},{"$f":"IF('TSA Input'!J1024=\"\",\"\",IF(OR('TSA Input'!J1024=\"Yes\",'TSA Input'!J1024=\"Contingent\"),'TSA Input'!F1024,\"\"))","v":""},"",{"$f":"IF('TSA Input'!J1024=\"\",\"\",IF(OR('TSA Input'!J1024=\"Yes\",'TSA Input'!J1024=\"Contingent\"),'TSA Input'!D1024,\"\"))","v":""},{"$f":"IF('TSA Input'!J1024=\"\",\"\",IF(OR('TSA Input'!J1024=\"Yes\",'TSA Input'!J1024=\"Contingent\"),'TSA Input'!G1024,\"\"))","v":""},{"$f":"IF('TSA Input'!J1024=\"\",\"\",IF(OR('TSA Input'!J1024=\"Yes\",'TSA Input'!J1024=\"Contingent\"),'TSA Input'!F1024,\"\"))","v":""},"","Required","Required"]
["",null,{"$f":"IF('TSA Input'!J1025=\"\",\"\",IF(OR('TSA Input'!J1025=\"Yes\",'TSA Input'!J1025=\"Contingent\"),'TSA Input'!B1025,\"Ineligible\"))","v":""},{"$f":"IF('TSA Input'!J1025=\"\",\"\",IF(OR('TSA Input'!J1025=\"Yes\",'TSA Input'!J1025=\"Contingent\"),'TSA Input'!I1025,\"\"))","v":""},{"$f":"IF('TSA Input'!J1025=\"\",\"\",IF(OR('TSA Input'!J1025=\"Yes\",'TSA Input'!J1025=\"Contingent\"),'TSA Input'!C1025,\"\"))","v":""},{"$f":"IF('TSA Input'!J1025=\"\",\"\",IF(OR('TSA Input'!J1025=\"Yes\",'TSA Input'!J1025=\"Contingent\"),'TSA Input'!D1025,\"\"))","v":""},{"$f":"IF('TSA Input'!J1025=\"\",\"\",IF(OR('TSA Input'!J1025=\"Yes\",'TSA Input'!J1025=\"Contingent\"),'TSA Input'!G1025,\"\"))","v":""},{"$f":"IF('TSA Input'!J1025=\"\",\"\",IF(OR('TSA Input'!J1025=\"Yes\",'TSA Input'!J1025=\"Contingent\"),'TSA Input'!F1025,\"\"))","v":""},"",{"$f":"IF('TSA Input'!J1025=\"\",\"\",IF(OR('TSA Input'!J1025=\"Yes\",'TSA Input'!J1025=\"Contingent\"),'TSA Input'!D1025,\"\"))","v":""},{"$f":"IF('TSA Input'!J1025=\"\",\"\",IF(OR('TSA Input'!J1025=\"Yes\",'TSA Input'!J1025=\"Contingent\"),'TSA Input'!G1025,\"\"))","v":""},{"$f":"IF('TSA Input'!J1025=\"\",\"\",IF(OR('TSA Input'!J1025=\"Yes\",'TSA Input'!J1025=\"Contingent\"),'TSA Input'!F1025,\"\"))","v":""},"","Required","Required"]
["",null,{"$f":"IF('TSA Input'!J1026=\"\",\"\",IF(OR('TSA Input'!J1026=\"Yes\",'TSA Input'!J1026=\"Contingent\"),'TSA Input'!B1026,\"Ineligible\"))","v":""},{"$f":"IF('TSA Input'!J1026=\"\",\"\",IF(OR('TSA Input'!J1026=\"Yes\",'TSA Input'!J1026=\"Contingent\"),'TSA Input'!I1026,\"\"))","v":""},{"$f":"IF('TSA Input'!J1026=\"\",\"\",IF(OR('TSA Input'!J1026=\"Yes\",'TSA Input'!J1026=\"Contingent\"),'TSA Input'!C1026,\"\"))","v":""},{"$f":"IF('TSA Input'!J1026=\"\",\"\",IF(OR('TSA Input'!J1026=\"Yes\",'TSA Input'!J1026=\"Contingent\"),'TSA Input'!D1026,\"\"))","v":""},{"$f":"IF('TSA Input'!J1026=\"\",\"\",IF(OR('TSA Input'!J1026=\"Yes\",'TSA Input'!J1026=\"Contingent\"),'TSA Input'!G1026,\"\"))","v":""},{"$f":"IF('TSA Input'!J1026=\"\",\"\",IF(OR('TSA Input'!J1026=\"Yes\",'TSA Input'!J1026=\"Contingent\"),'TSA Input'!F1026,\"\"))","v":""},"",{"$f":"IF('TSA Input'!J1026=\"\",\"\",IF(OR('TSA Input'!J1026=\"Yes\",'TSA Input'!J1026=\"Contingent\"),'TSA Input'!D1026,\"\"))","v":""},{"$f":"IF('TSA Input'!J1026=\"\",\"\",IF(OR('TSA Input'!J1026=\"Yes\",'TSA Input'!J1026=\"Contingent\"),'TSA Input'!G1026,\"\"))","v":""},{"$f":"IF('TSA Input'!J1026=\"\",\"\",IF(OR('TSA Input'!J1026=\"Yes\",'TSA Input'!J1026=\"Contingent\"),'TSA Input'!F1026,\"\"))","v":""},"","Required","Required"]
["",null,{"$f":"IF('TSA Input'!J1027=\"\",\"\",IF(OR('TSA Input'!J1027=\"Yes\",'TSA Input'!J1027=\"Contingent\"),'TSA Input'!B1027,\"Ineligible\"))","v":""},{"$f":"IF('TSA Input'!J1027=\"\",\"\",IF(OR('TSA Input'!J1027=\"Yes\",'TSA Input'!J1027=\"Contingent\"),'TSA Input'!I1027,\"\"))","v":""},{"$f":"IF('TSA Input'!J1027=\"\",\"\",IF(OR('TSA Input'!J1027=\"Yes\",'TSA Input'!J1027=\"Contingent\"),'TSA Input'!C1027,\"\"))","v":""},{"$f":"IF('TSA Input'!J1027=\"\",\"\",IF(OR('TSA Input'!J1027=\"Yes\",'TSA Input'!J1027=\"Contingent\"),'TSA Input'!D1027,\"\"))","v":""},{"$f":"IF('TSA Input'!J1027=\"\",\"\",IF(OR('TSA Input'!J1027=\"Yes\",'TSA Input'!J1027=\"Contingent\"),'TSA Input'!G1027,\"\"))","v":""},{"$f":"IF('TSA Input'!J1027=\"\",\"\",IF(OR('TSA Input'!J1027=\"Yes\",'TSA Input'!J1027=\"Contingent\"),'TSA Input'!F1027,\"\"))","v":""},"",{"$f":"IF('TSA Input'!J1027=\"\",\"\",IF(OR('TSA Input'!J1027=\"Yes\",'TSA Input'!J1027=\"Contingent\"),'TSA Input'!D1027,\"\"))","v":""},{"$f":"IF('TSA Input'!J1027=\"\",\"\",IF(OR('TSA Input'!J1027=\"Yes\",'TSA Input'!J1027=\"Contingent\"),'TSA Input'!G1027,\"\"))","v":""},{"$f":"IF('TSA Input'!J1027=\"\",\"\",IF(OR('TSA Input'!J1027=\"Yes\",'TSA Input'!J1027=\"Contingent\"),'TSA Input'!F1027,\"\"))","v":""},"","Required","Required"]
["",null,{"$f":"IF('TSA Input'!J1028=\"\",\"\",IF(OR('TSA Input'!J1028=\"Yes\",'TSA Input'!J1028=\"Contingent\"),'TSA Input'!B1028,\"Ineligible\"))","v":""},{"$f":"IF('TSA Input'!J1028=\"\",\"\",IF(OR('TSA Input'!J1028=\"Yes\",'TSA Input'!J1028=\"Contingent\"),'TSA Input'!I1028,\"\"))","v":""},{"$f":"IF('TSA Input'!J1028=\"\",\"\",IF(OR('TSA Input'!J1028=\"Yes\",'TSA Input'!J1028=\"Contingent\"),'TSA Input'!C1028,\"\"))","v":""},{"$f":"IF('TSA Input'!J1028=\"\",\"\",IF(OR('TSA Input'!J1028=\"Yes\",'TSA Input'!J1028=\"Contingent\"),'TSA Input'!D1028,\"\"))","v":""},{"$f":"IF('TSA Input'!J1028=\"\",\"\",IF(OR('TSA Input'!J1028=\"Yes\",'TSA Input'!J1028=\"Contingent\"),'TSA Input'!G1028,\"\"))","v":""},{"$f":"IF('TSA Input'!J1028=\"\",\"\",IF(OR('TSA Input'!J1028=\"Yes\",'TSA Input'!J1028=\"Contingent\"),'TSA Input'!F1028,\"\"))","v":""},{"$f":"IF($C1066=\"\",\"\",SUM(F1066:H1066))","v":""},{"$f":"IF('TSA Input'!J1028=\"\",\"\",IF(OR('TSA Input'!J1028=\"Yes\",'TSA Input'!J1028=\"Contingent\"),'TSA Input'!D1028,\"\"))","v":""},{"$f":"IF('TSA Input'!J1028=\"\",\"\",IF(OR('TSA Input'!J1028=\"Yes\",'TSA Input'!J1028=\"Contingent\"),'TSA Input'!G1028,\"\"))","v":""},{"$f":"IF('TSA Input'!J1028=\"\",\"\",IF(OR('TSA Input'!J1028=\"Yes\",'TSA Input'!J1028=\"Contingent\"),'TSA Input'!F1028,\"\"))","v":""},{"$f":"IF($C1066=\"\",\"\",SUM(J1066:L1066))","v":""},"Required","Required"]
["",null,{"$f":"IF('TSA Input'!J1029=\"\",\"\",IF(OR('TSA Input'!J1029=\"Yes\",'TSA Input'!J1029=\"Contingent\"),'TSA Input'!B1029,\"Ineligible\"))","v":""},{"$f":"IF('TSA Input'!J1029=\"\",\"\",IF(OR('TSA Input'!J1029=\"Yes\",'TSA Input'!J1029=\"Contingent\"),'TSA Input'!I1029,\"\"))","v":""},{"$f":"IF('TSA Input'!J1029=\"\",\"\",IF(OR('TSA Input'!J1029=\"Yes\",'TSA Input'!J1029=\"Contingent\"),'TSA Input'!C1029,\"\"))","v":""},{"$f":"IF('TSA Input'!J1029=\"\",\"\",IF(OR('TSA Input'!J1029=\"Yes\",'TSA Input'!J1029=\"Contingent\"),'TSA Input'!D1029,\"\"))","v":""},{"$f":"IF('TSA Input'!J1029=\"\",\"\",IF(OR('TSA Input'!J1029=\"Yes\",'TSA Input'!J1029=\"Contingent\"),'TSA Input'!G1029,\"\"))","v":""},{"$f":"IF('TSA Input'!J1029=\"\",\"\",IF(OR('TSA Input'!J1029=\"Yes\",'TSA Input'!J1029=\"Contingent\"),'TSA Input'!F1029,\"\"))","v":""},"",{"$f":"IF('TSA Input'!J1029=\"\",\"\",IF(OR('TSA Input'!J1029=\"Yes\",'TSA Input'!J1029=\"Contingent\"),'TSA Input'!D1029,\"\"))","v":""},{"$f":"IF('TSA Input'!J1029=\"\",\"\",IF(OR('TSA Input'!J1029=\"Yes\",'TSA Input'!J1029=\"Contingent\"),'TSA Input'!G1029,\"\"))","v":""},{"$f":"IF('TSA Input'!J1029=\"\",\"\",IF(OR('TSA Input'!J1029=\"Yes\",'TSA Input'!J1029=\"Contingent\"),'TSA Input'!F1029,\"\"))","v":""},"","Required","Required"]
["",null,{"$f":"IF('TSA Input'!J1030=\"\",\"\",IF(OR('TSA Input'!J1030=\"Yes\",'TSA Input'!J1030=\"Contingent\"),'TSA Input'!B1030,\"Ineligible\"))","v":""},{"$f":"IF('TSA Input'!J1030=\"\",\"\",IF(OR('TSA Input'!J1030=\"Yes\",'TSA Input'!J1030=\"Contingent\"),'TSA Input'!I1030,\"\"))","v":""},{"$f":"IF('TSA Input'!J1030=\"\",\"\",IF(OR('TSA Input'!J1030=\"Yes\",'TSA Input'!J1030=\"Contingent\"),'TSA Input'!C1030,\"\"))","v":""},{"$f":"IF('TSA Input'!J1030=\"\",\"\",IF(OR('TSA Input'!J1030=\"Yes\",'TSA Input'!J1030=\"Contingent\"),'TSA Input'!D1030,\"\"))","v":""},{"$f":"IF('TSA Input'!J1030=\"\",\"\",IF(OR('TSA Input'!J1030=\"Yes\",'TSA Input'!J1030=\"Contingent\"),'TSA Input'!G1030,\"\"))","v":""},{"$f":"IF('TSA Input'!J1030=\"\",\"\",IF(OR('TSA Input'!J1030=\"Yes\",'TSA Input'!J1030=\"Contingent\"),'TSA Input'!F1030,\"\"))","v":""},"",{"$f":"IF('TSA Input'!J1030=\"\",\"\",IF(OR('TSA Input'!J1030=\"Yes\",'TSA Input'!J1030=\"Contingent\"),'TSA Input'!D1030,\"\"))","v":""},{"$f":"IF('TSA Input'!J1030=\"\",\"\",IF(OR('TSA Input'!J1030=\"Yes\",'TSA Input'!J1030=\"Contingent\"),'TSA Input'!G1030,\"\"))","v":""},{"$f":"IF('TSA Input'!J1030=\"\",\"\",IF(OR('TSA Input'!J1030=\"Yes\",'TSA Input'!J1030=\"Contingent\"),'TSA Input'!F1030,\"\"))","v":""},"","Required","Required"]
["",null,{"$f":"IF('TSA Input'!J1031=\"\",\"\",IF(OR('TSA Input'!J1031=\"Yes\",'TSA Input'!J1031=\"Contingent\"),'TSA Input'!B1031,\"Ineligible\"))","v":""},{"$f":"IF('TSA Input'!J1031=\"\",\"\",IF(OR('TSA Input'!J1031=\"Yes\",'TSA Input'!J1031=\"Contingent\"),'TSA Input'!I1031,\"\"))","v":""},{"$f":"IF('TSA Input'!J1031=\"\",\"\",IF(OR('TSA Input'!J1031=\"Yes\",'TSA Input'!J1031=\"Contingent\"),'TSA Input'!C1031,\"\"))","v":""},{"$f":"IF('TSA Input'!J1031=\"\",\"\",IF(OR('TSA Input'!J1031=\"Yes\",'TSA Input'!J1031=\"Contingent\"),'TSA Input'!D1031,\"\"))","v":""},{"$f":"IF('TSA Input'!J1031=\"\",\"\",IF(OR('TSA Input'!J1031=\"Yes\",'TSA Input'!J1031=\"Contingent\"),'TSA Input'!G1031,\"\"))","v":""},{"$f":"IF('TSA Input'!J1031=\"\",\"\",IF(OR('TSA Input'!J1031=\"Yes\",'TSA Input'!J1031=\"Contingent\"),'TSA Input'!F1031,\"\"))","v":""},"",{"$f":"IF('TSA Input'!J1031=\"\",\"\",IF(OR('TSA Input'!J1031=\"Yes\",'TSA Input'!J1031=\"Contingent\"),'TSA Input'!D1031,\"\"))","v":""},{"$f":"IF('TSA Input'!J1031=\"\",\"\",IF(OR('TSA Input'!J1031=\"Yes\",'TSA Input'!J1031=\"Contingent\"),'TSA Input'!G1031,\"\"))","v":""},{"$f":"IF('TSA Input'!J1031=\"\",\"\",IF(OR('TSA Input'!J1031=\"Yes\",'TSA Input'!J1031=\"Contingent\"),'TSA Input'!F1031,\"\"))","v":""},"","Required","Required"]
["",null,{"$f":"IF('TSA Input'!J1032=\"\",\"\",IF(OR('TSA Input'!J1032=\"Yes\",'TSA Input'!J1032=\"Contingent\"),'TSA Input'!B1032,\"Ineligible\"))","v":""},{"$f":"IF('TSA Input'!J1032=\"\",\"\",IF(OR('TSA Input'!J1032=\"Yes\",'TSA Input'!J1032=\"Contingent\"),'TSA Input'!I1032,\"\"))","v":""},{"$f":"IF('TSA Input'!J1032=\"\",\"\",IF(OR('TSA Input'!J1032=\"Yes\",'TSA Input'!J1032=\"Contingent\"),'TSA Input'!C1032,\"\"))","v":""},{"$f":"IF('TSA Input'!J1032=\"\",\"\",IF(OR('TSA Input'!J1032=\"Yes\",'TSA Input'!J1032=\"Contingent\"),'TSA Input'!D1032,\"\"))","v":""},{"$f":"IF('TSA Input'!J1032=\"\",\"\",IF(OR('TSA Input'!J1032=\"Yes\",'TSA Input'!J1032=\"Contingent\"),'TSA Input'!G1032,\"\"))","v":""},{"$f":"IF('TSA Input'!J1032=\"\",\"\",IF(OR('TSA Input'!J1032=\"Yes\",'TSA Input'!J1032=\"Contingent\"),'TSA Input'!F1032,\"\"))","v":""},"",{"$f":"IF('TSA Input'!J1032=\"\",\"\",IF(OR('TSA Input'!J1032=\"Yes\",'TSA Input'!J1032=\"Contingent\"),'TSA Input'!D1032,\"\"))","v":""},{"$f":"IF('TSA Input'!J1032=\"\",\"\",IF(OR('TSA Input'!J1032=\"Yes\",'TSA Input'!J1032=\"Contingent\"),'TSA Input'!G1032,\"\"))","v":""},{"$f":"IF('TSA Input'!J1032=\"\",\"\",IF(OR('TSA Input'!J1032=\"Yes\",'TSA Input'!J1032=\"Contingent\"),'TSA Input'!F1032,\"\"))","v":""},"","Required","Required"]
["",null,{"$f":"IF('TSA Input'!J1033=\"\",\"\",IF(OR('TSA Input'!J1033=\"Yes\",'TSA Input'!J1033=\"Contingent\"),'TSA Input'!B1033,\"Ineligible\"))","v":""},{"$f":"IF('TSA Input'!J1033=\"\",\"\",IF(OR('TSA Input'!J1033=\"Yes\",'TSA Input'!J1033=\"Contingent\"),'TSA Input'!I1033,\"\"))","v":""},{"$f":"IF('TSA Input'!J1033=\"\",\"\",IF(OR('TSA Input'!J1033=\"Yes\",'TSA Input'!J1033=\"Contingent\"),'TSA Input'!C1033,\"\"))","v":""},{"$f":"IF('TSA Input'!J1033=\"\",\"\",IF(OR('TSA Input'!J1033=\"Yes\",'TSA Input'!J1033=\"Contingent\"),'TSA Input'!D1033,\"\"))","v":""},{"$f":"IF('TSA Input'!J1033=\"\",\"\",IF(OR('TSA Input'!J1033=\"Yes\",'TSA Input'!J1033=\"Contingent\"),'TSA Input'!G1033,\"\"))","v":""},{"$f":"IF('TSA Input'!J1033=\"\",\"\",IF(OR('TSA Input'!J1033=\"Yes\",'TSA Input'!J1033=\"Contingent\"),'TSA Input'!F1033,\"\"))","v":""},"",{"$f":"IF('TSA Input'!J1033=\"\",\"\",IF(OR('TSA Input'!J1033=\"Yes\",'TSA Input'!J1033=\"Contingent\"),'TSA Input'!D1033,\"\"))","v":""},{"$f":"IF('TSA Input'!J1033=\"\",\"\",IF(OR('TSA Input'!J1033=\"Yes\",'TSA Input'!J1033=\"Contingent\"),'TSA Input'!G1033,\"\"))","v":""},{"$f":"IF('TSA Input'!J1033=\"\",\"\",IF(OR('TSA Input'!J1033=\"Yes\",'TSA Input'!J1033=\"Contingent\"),'TSA Input'!F1033,\"\"))","v":""},"","Required","Required"]
["",null,{"$f":"IF('TSA Input'!J1034=\"\",\"\",IF(OR('TSA Input'!J1034=\"Yes\",'TSA Input'!J1034=\"Contingent\"),'TSA Input'!B1034,\"Ineligible\"))","v":""},{"$f":"IF('TSA Input'!J1034=\"\",\"\",IF(OR('TSA Input'!J1034=\"Yes\",'TSA Input'!J1034=\"Contingent\"),'TSA Input'!I1034,\"\"))","v":""},{"$f":"IF('TSA Input'!J1034=\"\",\"\",IF(OR('TSA Input'!J1034=\"Yes\",'TSA Input'!J1034=\"Contingent\"),'TSA Input'!C1034,\"\"))","v":""},{"$f":"IF('TSA Input'!J1034=\"\",\"\",IF(OR('TSA Input'!J1034=\"Yes\",'TSA Input'!J1034=\"Contingent\"),'TSA Input'!D1034,\"\"))","v":""},{"$f":"IF('TSA Input'!J1034=\"\",\"\",IF(OR('TSA Input'!J1034=\"Yes\",'TSA Input'!J1034=\"Contingent\"),'TSA Input'!G1034,\"\"))","v":""},{"$f":"IF('TSA Input'!J1034=\"\",\"\",IF(OR('TSA Input'!J1034=\"Yes\",'TSA Input'!J1034=\"Contingent\"),'TSA Input'!F1034,\"\"))","v":""},"",{"$f":"IF('TSA Input'!J1034=\"\",\"\",IF(OR('TSA Input'!J1034=\"Yes\",'TSA Input'!J1034=\"Contingent\"),'TSA Input'!D1034,\"\"))","v":""},{"$f":"IF('TSA Input'!J1034=\"\",\"\",IF(OR('TSA Input'!J1034=\"Yes\",'TSA Input'!J1034=\"Contingent\"),'TSA Input'!G1034,\"\"))","v":""},{"$f":"IF('TSA Input'!J1034=\"\",\"\",IF(OR('TSA Input'!J1034=\"Yes\",'TSA Input'!J1034=\"Contingent\"),'TSA Input'!F1034,\"\"))","v":""},"","Required","Required"]
["",null,{"$f":"IF('TSA Input'!J1035=\"\",\"\",IF(OR('TSA Input'!J1035=\"Yes\",'TSA Input'!J1035=\"Contingent\"),'TSA Input'!B1035,\"Ineligible\"))","v":""},{"$f":"IF('TSA Input'!J1035=\"\",\"\",IF(OR('TSA Input'!J1035=\"Yes\",'TSA Input'!J1035=\"Contingent\"),'TSA Input'!I1035,\"\"))","v":""},{"$f":"IF('TSA Input'!J1035=\"\",\"\",IF(OR('TSA Input'!J1035=\"Yes\",'TSA Input'!J1035=\"Contingent\"),'TSA Input'!C1035,\"\"))","v":""},{"$f":"IF('TSA Input'!J1035=\"\",\"\",IF(OR('TSA Input'!J1035=\"Yes\",'TSA Input'!J1035=\"Contingent\"),'TSA Input'!D1035,\"\"))","v":""},{"$f":"IF('TSA Input'!J1035=\"\",\"\",IF(OR('TSA Input'!J1035=\"Yes\",'TSA Input'!J1035=\"Contingent\"),'TSA Input'!G1035,\"\"))","v":""},{"$f":"IF('TSA Input'!J1035=\"\",\"\",IF(OR('TSA Input'!J1035=\"Yes\",'TSA Input'!J1035=\"Contingent\"),'TSA Input'!F1035,\"\"))","v":""},"",{"$f":"IF('TSA Input'!J1035=\"\",\"\",IF(OR('TSA Input'!J1035=\"Yes\",'TSA Input'!J1035=\"Contingent\"),'TSA Input'!D1035,\"\"))","v":""},{"$f":"IF('TSA Input'!J1035=\"\",\"\",IF(OR('TSA Input'!J1035=\"Yes\",'TSA Input'!J1035=\"Contingent\"),'TSA Input'!G1035,\"\"))","v":""},{"$f":"IF('TSA Input'!J1035=\"\",\"\",IF(OR('TSA Input'!J1035=\"Yes\",'TSA Input'!J1035=\"Contingent\"),'TSA Input'!F1035,\"\"))","v":""},"","Required","Required"]
["",null,{"$f":"IF('TSA Input'!J1036=\"\",\"\",IF(OR('TSA Input'!J1036=\"Yes\",'TSA Input'!J1036=\"Contingent\"),'TSA Input'!B1036,\"Ineligible\"))","v":""},{"$f":"IF('TSA Input'!J1036=\"\",\"\",IF(OR('TSA Input'!J1036=\"Yes\",'TSA Input'!J1036=\"Contingent\"),'TSA Input'!I1036,\"\"))","v":""},{"$f":"IF('TSA Input'!J1036=\"\",\"\",IF(OR('TSA Input'!J1036=\"Yes\",'TSA Input'!J1036=\"Contingent\"),'TSA Input'!C1036,\"\"))","v":""},{"$f":"IF('TSA Input'!J1036=\"\",\"\",IF(OR('TSA Input'!J1036=\"Yes\",'TSA Input'!J1036=\"Contingent\"),'TSA Input'!D1036,\"\"))","v":""},{"$f":"IF('TSA Input'!J1036=\"\",\"\",IF(OR('TSA Input'!J1036=\"Yes\",'TSA Input'!J1036=\"Contingent\"),'TSA Input'!G1036,\"\"))","v":""},{"$f":"IF('TSA Input'!J1036=\"\",\"\",IF(OR('TSA Input'!J1036=\"Yes\",'TSA Input'!J1036=\"Contingent\"),'TSA Input'!F1036,\"\"))","v":""},"",{"$f":"IF('TSA Input'!J1036=\"\",\"\",IF(OR('TSA Input'!J1036=\"Yes\",'TSA Input'!J1036=\"Contingent\"),'TSA Input'!D1036,\"\"))","v":""},{"$f":"IF('TSA Input'!J1036=\"\",\"\",IF(OR('TSA Input'!J1036=\"Yes\",'TSA Input'!J1036=\"Contingent\"),'TSA Input'!G1036,\"\"))","v":""},{"$f":"IF('TSA Input'!J1036=\"\",\"\",IF(OR('TSA Input'!J1036=\"Yes\",'TSA Input'!J1036=\"Contingent\"),'TSA Input'!F1036,\"\"))","v":""},"","Required","Required"]
["",null,{"$f":"IF('TSA Input'!J1037=\"\",\"\",IF(OR('TSA Input'!J1037=\"Yes\",'TSA Input'!J1037=\"Contingent\"),'TSA Input'!B1037,\"Ineligible\"))","v":""},{"$f":"IF('TSA Input'!J1037=\"\",\"\",IF(OR('TSA Input'!J1037=\"Yes\",'TSA Input'!J1037=\"Contingent\"),'TSA Input'!I1037,\"\"))","v":""},{"$f":"IF('TSA Input'!J1037=\"\",\"\",IF(OR('TSA Input'!J1037=\"Yes\",'TSA Input'!J1037=\"Contingent\"),'TSA Input'!C1037,\"\"))","v":""},{"$f":"IF('TSA Input'!J1037=\"\",\"\",IF(OR('TSA Input'!J1037=\"Yes\",'TSA Input'!J1037=\"Contingent\"),'TSA Input'!D1037,\"\"))","v":""},{"$f":"IF('TSA Input'!J1037=\"\",\"\",IF(OR('TSA Input'!J1037=\"Yes\",'TSA Input'!J1037=\"Contingent\"),'TSA Input'!G1037,\"\"))","v":""},{"$f":"IF('TSA Input'!J1037=\"\",\"\",IF(OR('TSA Input'!J1037=\"Yes\",'TSA Input'!J1037=\"Contingent\"),'TSA Input'!F1037,\"\"))","v":""},"",{"$f":"IF('TSA Input'!J1037=\"\",\"\",IF(OR('TSA Input'!J1037=\"Yes\",'TSA Input'!J1037=\"Contingent\"),'TSA Input'!D1037,\"\"))","v":""},{"$f":"IF('TSA Input'!J1037=\"\",\"\",IF(OR('TSA Input'!J1037=\"Yes\",'TSA Input'!J1037=\"Contingent\"),'TSA Input'!G1037,\"\"))","v":""},{"$f":"IF('TSA Input'!J1037=\"\",\"\",IF(OR('TSA Input'!J1037=\"Yes\",'TSA Input'!J1037=\"Contingent\"),'TSA Input'!F1037,\"\"))","v":""},"","Required","Required"]
["",null,{"$f":"IF('TSA Input'!J1038=\"\",\"\",IF(OR('TSA Input'!J1038=\"Yes\",'TSA Input'!J1038=\"Contingent\"),'TSA Input'!B1038,\"Ineligible\"))","v":""},{"$f":"IF('TSA Input'!J1038=\"\",\"\",IF(OR('TSA Input'!J1038=\"Yes\",'TSA Input'!J1038=\"Contingent\"),'TSA Input'!I1038,\"\"))","v":""},{"$f":"IF('TSA Input'!J1038=\"\",\"\",IF(OR('TSA Input'!J1038=\"Yes\",'TSA Input'!J1038=\"Contingent\"),'TSA Input'!C1038,\"\"))","v":""},{"$f":"IF('TSA Input'!J1038=\"\",\"\",IF(OR('TSA Input'!J1038=\"Yes\",'TSA Input'!J1038=\"Contingent\"),'TSA Input'!D1038,\"\"))","v":""},{"$f":"IF('TSA Input'!J1038=\"\",\"\",IF(OR('TSA Input'!J1038=\"Yes\",'TSA Input'!J1038=\"Contingent\"),'TSA Input'!G1038,\"\"))","v":""},{"$f":"IF('TSA Input'!J1038=\"\",\"\",IF(OR('TSA Input'!J1038=\"Yes\",'TSA Input'!J1038=\"Contingent\"),'TSA Input'!F1038,\"\"))","v":""},"",{"$f":"IF('TSA Input'!J1038=\"\",\"\",IF(OR('TSA Input'!J1038=\"Yes\",'TSA Input'!J1038=\"Contingent\"),'TSA Input'!D1038,\"\"))","v":""},{"$f":"IF('TSA Input'!J1038=\"\",\"\",IF(OR('TSA Input'!J1038=\"Yes\",'TSA Input'!J1038=\"Contingent\"),'TSA Input'!G1038,\"\"))","v":""},{"$f":"IF('TSA Input'!J1038=\"\",\"\",IF(OR('TSA Input'!J1038=\"Yes\",'TSA Input'!J1038=\"Contingent\"),'TSA Input'!F1038,\"\"))","v":""},"","Required","Required"]
["",null,{"$f":"IF('TSA Input'!J1039=\"\",\"\",IF(OR('TSA Input'!J1039=\"Yes\",'TSA Input'!J1039=\"Contingent\"),'TSA Input'!B1039,\"Ineligible\"))","v":""},{"$f":"IF('TSA Input'!J1039=\"\",\"\",IF(OR('TSA Input'!J1039=\"Yes\",'TSA Input'!J1039=\"Contingent\"),'TSA Input'!I1039,\"\"))","v":""},{"$f":"IF('TSA Input'!J1039=\"\",\"\",IF(OR('TSA Input'!J1039=\"Yes\",'TSA Input'!J1039=\"Contingent\"),'TSA Input'!C1039,\"\"))","v":""},{"$f":"IF('TSA Input'!J1039=\"\",\"\",IF(OR('TSA Input'!J1039=\"Yes\",'TSA Input'!J1039=\"Contingent\"),'TSA Input'!D1039,\"\"))","v":""},{"$f":"IF('TSA Input'!J1039=\"\",\"\",IF(OR('TSA Input'!J1039=\"Yes\",'TSA Input'!J1039=\"Contingent\"),'TSA Input'!G1039,\"\"))","v":""},{"$f":"IF('TSA Input'!J1039=\"\",\"\",IF(OR('TSA Input'!J1039=\"Yes\",'TSA Input'!J1039=\"Contingent\"),'TSA Input'!F1039,\"\"))","v":""},"",{"$f":"IF('TSA Input'!J1039=\"\",\"\",IF(OR('TSA Input'!J1039=\"Yes\",'TSA Input'!J1039=\"Contingent\"),'TSA Input'!D1039,\"\"))","v":""},{"$f":"IF('TSA Input'!J1039=\"\",\"\",IF(OR('TSA Input'!J1039=\"Yes\",'TSA Input'!J1039=\"Contingent\"),'TSA Input'!G1039,\"\"))","v":""},{"$f":"IF('TSA Input'!J1039=\"\",\"\",IF(OR('TSA Input'!J1039=\"Yes\",'TSA Input'!J1039=\"Contingent\"),'TSA Input'!F1039,\"\"))","v":""},"","Required","Required"]
["",null,{"$f":"IF('TSA Input'!J1040=\"\",\"\",IF(OR('TSA Input'!J1040=\"Yes\",'TSA Input'!J1040=\"Contingent\"),'TSA Input'!B1040,\"Ineligible\"))","v":""},{"$f":"IF('TSA Input'!J1040=\"\",\"\",IF(OR('TSA Input'!J1040=\"Yes\",'TSA Input'!J1040=\"Contingent\"),'TSA Input'!I1040,\"\"))","v":""},{"$f":"IF('TSA Input'!J1040=\"\",\"\",IF(OR('TSA Input'!J1040=\"Yes\",'TSA Input'!J1040=\"Contingent\"),'TSA Input'!C1040,\"\"))","v":""},{"$f":"IF('TSA Input'!J1040=\"\",\"\",IF(OR('TSA Input'!J1040=\"Yes\",'TSA Input'!J1040=\"Contingent\"),'TSA Input'!D1040,\"\"))","v":""},{"$f":"IF('TSA Input'!J1040=\"\",\"\",IF(OR('TSA Input'!J1040=\"Yes\",'TSA Input'!J1040=\"Contingent\"),'TSA Input'!G1040,\"\"))","v":""},{"$f":"IF('TSA Input'!J1040=\"\",\"\",IF(OR('TSA Input'!J1040=\"Yes\",'TSA Input'!J1040=\"Contingent\"),'TSA Input'!F1040,\"\"))","v":""},"",{"$f":"IF('TSA Input'!J1040=\"\",\"\",IF(OR('TSA Input'!J1040=\"Yes\",'TSA Input'!J1040=\"Contingent\"),'TSA Input'!D1040,\"\"))","v":""},{"$f":"IF('TSA Input'!J1040=\"\",\"\",IF(OR('TSA Input'!J1040=\"Yes\",'TSA Input'!J1040=\"Contingent\"),'TSA Input'!G1040,\"\"))","v":""},{"$f":"IF('TSA Input'!J1040=\"\",\"\",IF(OR('TSA Input'!J1040=\"Yes\",'TSA Input'!J1040=\"Contingent\"),'TSA Input'!F1040,\"\"))","v":""},"","Required","Required"]
["",null,{"$f":"IF('TSA Input'!J1041=\"\",\"\",IF(OR('TSA Input'!J1041=\"Yes\",'TSA Input'!J1041=\"Contingent\"),'TSA Input'!B1041,\"Ineligible\"))","v":""},{"$f":"IF('TSA Input'!J1041=\"\",\"\",IF(OR('TSA Input'!J1041=\"Yes\",'TSA Input'!J1041=\"Contingent\"),'TSA Input'!I1041,\"\"))","v":""},{"$f":"IF('TSA Input'!J1041=\"\",\"\",IF(OR('TSA Input'!J1041=\"Yes\",'TSA Input'!J1041=\"Contingent\"),'TSA Input'!C1041,\"\"))","v":""},{"$f":"IF('TSA Input'!J1041=\"\",\"\",IF(OR('TSA Input'!J1041=\"Yes\",'TSA Input'!J1041=\"Contingent\"),'TSA Input'!D1041,\"\"))","v":""},{"$f":"IF('TSA Input'!J1041=\"\",\"\",IF(OR('TSA Input'!J1041=\"Yes\",'TSA Input'!J1041=\"Contingent\"),'TSA Input'!G1041,\"\"))","v":""},{"$f":"IF('TSA Input'!J1041=\"\",\"\",IF(OR('TSA Input'!J1041=\"Yes\",'TSA Input'!J1041=\"Contingent\"),'TSA Input'!F1041,\"\"))","v":""},"",{"$f":"IF('TSA Input'!J1041=\"\",\"\",IF(OR('TSA Input'!J1041=\"Yes\",'TSA Input'!J1041=\"Contingent\"),'TSA Input'!D1041,\"\"))","v":""},{"$f":"IF('TSA Input'!J1041=\"\",\"\",IF(OR('TSA Input'!J1041=\"Yes\",'TSA Input'!J1041=\"Contingent\"),'TSA Input'!G1041,\"\"))","v":""},{"$f":"IF('TSA Input'!J1041=\"\",\"\",IF(OR('TSA Input'!J1041=\"Yes\",'TSA Input'!J1041=\"Contingent\"),'TSA Input'!F1041,\"\"))","v":""},"","Required","Required"]
["",null,{"$f":"IF('TSA Input'!J1042=\"\",\"\",IF(OR('TSA Input'!J1042=\"Yes\",'TSA Input'!J1042=\"Contingent\"),'TSA Input'!B1042,\"Ineligible\"))","v":""},{"$f":"IF('TSA Input'!J1042=\"\",\"\",IF(OR('TSA Input'!J1042=\"Yes\",'TSA Input'!J1042=\"Contingent\"),'TSA Input'!I1042,\"\"))","v":""},{"$f":"IF('TSA Input'!J1042=\"\",\"\",IF(OR('TSA Input'!J1042=\"Yes\",'TSA Input'!J1042=\"Contingent\"),'TSA Input'!C1042,\"\"))","v":""},{"$f":"IF('TSA Input'!J1042=\"\",\"\",IF(OR('TSA Input'!J1042=\"Yes\",'TSA Input'!J1042=\"Contingent\"),'TSA Input'!D1042,\"\"))","v":""},{"$f":"IF('TSA Input'!J1042=\"\",\"\",IF(OR('TSA Input'!J1042=\"Yes\",'TSA Input'!J1042=\"Contingent\"),'TSA Input'!G1042,\"\"))","v":""},{"$f":"IF('TSA Input'!J1042=\"\",\"\",IF(OR('TSA Input'!J1042=\"Yes\",'TSA Input'!J1042=\"Contingent\"),'TSA Input'!F1042,\"\"))","v":""},"",{"$f":"IF('TSA Input'!J1042=\"\",\"\",IF(OR('TSA Input'!J1042=\"Yes\",'TSA Input'!J1042=\"Contingent\"),'TSA Input'!D1042,\"\"))","v":""},{"$f":"IF('TSA Input'!J1042=\"\",\"\",IF(OR('TSA Input'!J1042=\"Yes\",'TSA Input'!J1042=\"Contingent\"),'TSA Input'!G1042,\"\"))","v":""},{"$f":"IF('TSA Input'!J1042=\"\",\"\",IF(OR('TSA Input'!J1042=\"Yes\",'TSA Input'!J1042=\"Contingent\"),'TSA Input'!F1042,\"\"))","v":""},"","Required","Required"]
["",null,{"$f":"IF('TSA Input'!J1043=\"\",\"\",IF(OR('TSA Input'!J1043=\"Yes\",'TSA Input'!J1043=\"Contingent\"),'TSA Input'!B1043,\"Ineligible\"))","v":""},{"$f":"IF('TSA Input'!J1043=\"\",\"\",IF(OR('TSA Input'!J1043=\"Yes\",'TSA Input'!J1043=\"Contingent\"),'TSA Input'!I1043,\"\"))","v":""},{"$f":"IF('TSA Input'!J1043=\"\",\"\",IF(OR('TSA Input'!J1043=\"Yes\",'TSA Input'!J1043=\"Contingent\"),'TSA Input'!C1043,\"\"))","v":""},{"$f":"IF('TSA Input'!J1043=\"\",\"\",IF(OR('TSA Input'!J1043=\"Yes\",'TSA Input'!J1043=\"Contingent\"),'TSA Input'!D1043,\"\"))","v":""},{"$f":"IF('TSA Input'!J1043=\"\",\"\",IF(OR('TSA Input'!J1043=\"Yes\",'TSA Input'!J1043=\"Contingent\"),'TSA Input'!G1043,\"\"))","v":""},{"$f":"IF('TSA Input'!J1043=\"\",\"\",IF(OR('TSA Input'!J1043=\"Yes\",'TSA Input'!J1043=\"Contingent\"),'TSA Input'!F1043,\"\"))","v":""},"",{"$f":"IF('TSA Input'!J1043=\"\",\"\",IF(OR('TSA Input'!J1043=\"Yes\",'TSA Input'!J1043=\"Contingent\"),'TSA Input'!D1043,\"\"))","v":""},{"$f":"IF('TSA Input'!J1043=\"\",\"\",IF(OR('TSA Input'!J1043=\"Yes\",'TSA Input'!J1043=\"Contingent\"),'TSA Input'!G1043,\"\"))","v":""},{"$f":"IF('TSA Input'!J1043=\"\",\"\",IF(OR('TSA Input'!J1043=\"Yes\",'TSA Input'!J1043=\"Contingent\"),'TSA Input'!F1043,\"\"))","v":""},"","Required","Required"]
["",null,{"$f":"IF('TSA Input'!J1044=\"\",\"\",IF(OR('TSA Input'!J1044=\"Yes\",'TSA Input'!J1044=\"Contingent\"),'TSA Input'!B1044,\"Ineligible\"))","v":""},{"$f":"IF('TSA Input'!J1044=\"\",\"\",IF(OR('TSA Input'!J1044=\"Yes\",'TSA Input'!J1044=\"Contingent\"),'TSA Input'!I1044,\"\"))","v":""},{"$f":"IF('TSA Input'!J1044=\"\",\"\",IF(OR('TSA Input'!J1044=\"Yes\",'TSA Input'!J1044=\"Contingent\"),'TSA Input'!C1044,\"\"))","v":""},{"$f":"IF('TSA Input'!J1044=\"\",\"\",IF(OR('TSA Input'!J1044=\"Yes\",'TSA Input'!J1044=\"Contingent\"),'TSA Input'!D1044,\"\"))","v":""},{"$f":"IF('TSA Input'!J1044=\"\",\"\",IF(OR('TSA Input'!J1044=\"Yes\",'TSA Input'!J1044=\"Contingent\"),'TSA Input'!G1044,\"\"))","v":""},{"$f":"IF('TSA Input'!J1044=\"\",\"\",IF(OR('TSA Input'!J1044=\"Yes\",'TSA Input'!J1044=\"Contingent\"),'TSA Input'!F1044,\"\"))","v":""},"",{"$f":"IF('TSA Input'!J1044=\"\",\"\",IF(OR('TSA Input'!J1044=\"Yes\",'TSA Input'!J1044=\"Contingent\"),'TSA Input'!D1044,\"\"))","v":""},{"$f":"IF('TSA Input'!J1044=\"\",\"\",IF(OR('TSA Input'!J1044=\"Yes\",'TSA Input'!J1044=\"Contingent\"),'TSA Input'!G1044,\"\"))","v":""},{"$f":"IF('TSA Input'!J1044=\"\",\"\",IF(OR('TSA Input'!J1044=\"Yes\",'TSA Input'!J1044=\"Contingent\"),'TSA Input'!F1044,\"\"))","v":""},"","Required","Required"]
["",null,{"$f":"IF('TSA Input'!J1045=\"\",\"\",IF(OR('TSA Input'!J1045=\"Yes\",'TSA Input'!J1045=\"Contingent\"),'TSA Input'!B1045,\"Ineligible\"))","v":""},{"$f":"IF('TSA Input'!J1045=\"\",\"\",IF(OR('TSA Input'!J1045=\"Yes\",'TSA Input'!J1045=\"Contingent\"),'TSA Input'!I1045,\"\"))","v":""},{"$f":"IF('TSA Input'!J1045=\"\",\"\",IF(OR('TSA Input'!J1045=\"Yes\",'TSA Input'!J1045=\"Contingent\"),'TSA Input'!C1045,\"\"))","v":""},{"$f":"IF('TSA Input'!J1045=\"\",\"\",IF(OR('TSA Input'!J1045=\"Yes\",'TSA Input'!J1045=\"Contingent\"),'TSA Input'!D1045,\"\"))","v":""},{"$f":"IF('TSA Input'!J1045=\"\",\"\",IF(OR('TSA Input'!J1045=\"Yes\",'TSA Input'!J1045=\"Contingent\"),'TSA Input'!G1045,\"\"))","v":""},{"$f":"IF('TSA Input'!J1045=\"\",\"\",IF(OR('TSA Input'!J1045=\"Yes\",'TSA Input'!J1045=\"Contingent\"),'TSA Input'!F1045,\"\"))","v":""},"",{"$f":"IF('TSA Input'!J1045=\"\",\"\",IF(OR('TSA Input'!J1045=\"Yes\",'TSA Input'!J1045=\"Contingent\"),'TSA Input'!D1045,\"\"))","v":""},{"$f":"IF('TSA Input'!J1045=\"\",\"\",IF(OR('TSA Input'!J1045=\"Yes\",'TSA Input'!J1045=\"Contingent\"),'TSA Input'!G1045,\"\"))","v":""},{"$f":"IF('TSA Input'!J1045=\"\",\"\",IF(OR('TSA Input'!J1045=\"Yes\",'TSA Input'!J1045=\"Contingent\"),'TSA Input'!F1045,\"\"))","v":""},"","Required","Required"]
["",null,{"$f":"IF('TSA Input'!J1046=\"\",\"\",IF(OR('TSA Input'!J1046=\"Yes\",'TSA Input'!J1046=\"Contingent\"),'TSA Input'!B1046,\"Ineligible\"))","v":""},{"$f":"IF('TSA Input'!J1046=\"\",\"\",IF(OR('TSA Input'!J1046=\"Yes\",'TSA Input'!J1046=\"Contingent\"),'TSA Input'!I1046,\"\"))","v":""},{"$f":"IF('TSA Input'!J1046=\"\",\"\",IF(OR('TSA Input'!J1046=\"Yes\",'TSA Input'!J1046=\"Contingent\"),'TSA Input'!C1046,\"\"))","v":""},{"$f":"IF('TSA Input'!J1046=\"\",\"\",IF(OR('TSA Input'!J1046=\"Yes\",'TSA Input'!J1046=\"Contingent\"),'TSA Input'!D1046,\"\"))","v":""},{"$f":"IF('TSA Input'!J1046=\"\",\"\",IF(OR('TSA Input'!J1046=\"Yes\",'TSA Input'!J1046=\"Contingent\"),'TSA Input'!G1046,\"\"))","v":""},{"$f":"IF('TSA Input'!J1046=\"\",\"\",IF(OR('TSA Input'!J1046=\"Yes\",'TSA Input'!J1046=\"Contingent\"),'TSA Input'!F1046,\"\"))","v":""},"",{"$f":"IF('TSA Input'!J1046=\"\",\"\",IF(OR('TSA Input'!J1046=\"Yes\",'TSA Input'!J1046=\"Contingent\"),'TSA Input'!D1046,\"\"))","v":""},{"$f":"IF('TSA Input'!J1046=\"\",\"\",IF(OR('TSA Input'!J1046=\"Yes\",'TSA Input'!J1046=\"Contingent\"),'TSA Input'!G1046,\"\"))","v":""},{"$f":"IF('TSA Input'!J1046=\"\",\"\",IF(OR('TSA Input'!J1046=\"Yes\",'TSA Input'!J1046=\"Contingent\"),'TSA Input'!F1046,\"\"))","v":""},"","Required","Required"]
["",null,{"$f":"IF('TSA Input'!J1047=\"\",\"\",IF(OR('TSA Input'!J1047=\"Yes\",'TSA Input'!J1047=\"Contingent\"),'TSA Input'!B1047,\"Ineligible\"))","v":""},{"$f":"IF('TSA Input'!J1047=\"\",\"\",IF(OR('TSA Input'!J1047=\"Yes\",'TSA Input'!J1047=\"Contingent\"),'TSA Input'!I1047,\"\"))","v":""},{"$f":"IF('TSA Input'!J1047=\"\",\"\",IF(OR('TSA Input'!J1047=\"Yes\",'TSA Input'!J1047=\"Contingent\"),'TSA Input'!C1047,\"\"))","v":""},{"$f":"IF('TSA Input'!J1047=\"\",\"\",IF(OR('TSA Input'!J1047=\"Yes\",'TSA Input'!J1047=\"Contingent\"),'TSA Input'!D1047,\"\"))","v":""},{"$f":"IF('TSA Input'!J1047=\"\",\"\",IF(OR('TSA Input'!J1047=\"Yes\",'TSA Input'!J1047=\"Contingent\"),'TSA Input'!G1047,\"\"))","v":""},{"$f":"IF('TSA Input'!J1047=\"\",\"\",IF(OR('TSA Input'!J1047=\"Yes\",'TSA Input'!J1047=\"Contingent\"),'TSA Input'!F1047,\"\"))","v":""},"",{"$f":"IF('TSA Input'!J1047=\"\",\"\",IF(OR('TSA Input'!J1047=\"Yes\",'TSA Input'!J1047=\"Contingent\"),'TSA Input'!D1047,\"\"))","v":""},{"$f":"IF('TSA Input'!J1047=\"\",\"\",IF(OR('TSA Input'!J1047=\"Yes\",'TSA Input'!J1047=\"Contingent\"),'TSA Input'!G1047,\"\"))","v":""},{"$f":"IF('TSA Input'!J1047=\"\",\"\",IF(OR('TSA Input'!J1047=\"Yes\",'TSA Input'!J1047=\"Contingent\"),'TSA Input'!F1047,\"\"))","v":""},"","Required","Required"]
["",null,{"$f":"IF('TSA Input'!J1048=\"\",\"\",IF(OR('TSA Input'!J1048=\"Yes\",'TSA Input'!J1048=\"Contingent\"),'TSA Input'!B1048,\"Ineligible\"))","v":""},{"$f":"IF('TSA Input'!J1048=\"\",\"\",IF(OR('TSA Input'!J1048=\"Yes\",'TSA Input'!J1048=\"Contingent\"),'TSA Input'!I1048,\"\"))","v":""},{"$f":"IF('TSA Input'!J1048=\"\",\"\",IF(OR('TSA Input'!J1048=\"Yes\",'TSA Input'!J1048=\"Contingent\"),'TSA Input'!C1048,\"\"))","v":""},{"$f":"IF('TSA Input'!J1048=\"\",\"\",IF(OR('TSA Input'!J1048=\"Yes\",'TSA Input'!J1048=\"Contingent\"),'TSA Input'!D1048,\"\"))","v":""},{"$f":"IF('TSA Input'!J1048=\"\",\"\",IF(OR('TSA Input'!J1048=\"Yes\",'TSA Input'!J1048=\"Contingent\"),'TSA Input'!G1048,\"\"))","v":""},{"$f":"IF('TSA Input'!J1048=\"\",\"\",IF(OR('TSA Input'!J1048=\"Yes\",'TSA Input'!J1048=\"Contingent\"),'TSA Input'!F1048,\"\"))","v":""},"",{"$f":"IF('TSA Input'!J1048=\"\",\"\",IF(OR('TSA Input'!J1048=\"Yes\",'TSA Input'!J1048=\"Contingent\"),'TSA Input'!D1048,\"\"))","v":""},{"$f":"IF('TSA Input'!J1048=\"\",\"\",IF(OR('TSA Input'!J1048=\"Yes\",'TSA Input'!J1048=\"Contingent\"),'TSA Input'!G1048,\"\"))","v":""},{"$f":"IF('TSA Input'!J1048=\"\",\"\",IF(OR('TSA Input'!J1048=\"Yes\",'TSA Input'!J1048=\"Contingent\"),'TSA Input'!F1048,\"\"))","v":""},"","Required","Required"]
["",null,{"$f":"IF('TSA Input'!J1049=\"\",\"\",IF(OR('TSA Input'!J1049=\"Yes\",'TSA Input'!J1049=\"Contingent\"),'TSA Input'!B1049,\"Ineligible\"))","v":""},{"$f":"IF('TSA Input'!J1049=\"\",\"\",IF(OR('TSA Input'!J1049=\"Yes\",'TSA Input'!J1049=\"Contingent\"),'TSA Input'!I1049,\"\"))","v":""},{"$f":"IF('TSA Input'!J1049=\"\",\"\",IF(OR('TSA Input'!J1049=\"Yes\",'TSA Input'!J1049=\"Contingent\"),'TSA Input'!C1049,\"\"))","v":""},{"$f":"IF('TSA Input'!J1049=\"\",\"\",IF(OR('TSA Input'!J1049=\"Yes\",'TSA Input'!J1049=\"Contingent\"),'TSA Input'!D1049,\"\"))","v":""},{"$f":"IF('TSA Input'!J1049=\"\",\"\",IF(OR('TSA Input'!J1049=\"Yes\",'TSA Input'!J1049=\"Contingent\"),'TSA Input'!G1049,\"\"))","v":""},{"$f":"IF('TSA Input'!J1049=\"\",\"\",IF(OR('TSA Input'!J1049=\"Yes\",'TSA Input'!J1049=\"Contingent\"),'TSA Input'!F1049,\"\"))","v":""},"",{"$f":"IF('TSA Input'!J1049=\"\",\"\",IF(OR('TSA Input'!J1049=\"Yes\",'TSA Input'!J1049=\"Contingent\"),'TSA Input'!D1049,\"\"))","v":""},{"$f":"IF('TSA Input'!J1049=\"\",\"\",IF(OR('TSA Input'!J1049=\"Yes\",'TSA Input'!J1049=\"Contingent\"),'TSA Input'!G1049,\"\"))","v":""},{"$f":"IF('TSA Input'!J1049=\"\",\"\",IF(OR('TSA Input'!J1049=\"Yes\",'TSA Input'!J1049=\"Contingent\"),'TSA Input'!F1049,\"\"))","v":""},"","Required","Required"]
["",null,{"$f":"IF('TSA Input'!J1050=\"\",\"\",IF(OR('TSA Input'!J1050=\"Yes\",'TSA Input'!J1050=\"Contingent\"),'TSA Input'!B1050,\"Ineligible\"))","v":""},{"$f":"IF('TSA Input'!J1050=\"\",\"\",IF(OR('TSA Input'!J1050=\"Yes\",'TSA Input'!J1050=\"Contingent\"),'TSA Input'!I1050,\"\"))","v":""},{"$f":"IF('TSA Input'!J1050=\"\",\"\",IF(OR('TSA Input'!J1050=\"Yes\",'TSA Input'!J1050=\"Contingent\"),'TSA Input'!C1050,\"\"))","v":""},{"$f":"IF('TSA Input'!J1050=\"\",\"\",IF(OR('TSA Input'!J1050=\"Yes\",'TSA Input'!J1050=\"Contingent\"),'TSA Input'!D1050,\"\"))","v":""},{"$f":"IF('TSA Input'!J1050=\"\",\"\",IF(OR('TSA Input'!J1050=\"Yes\",'TSA Input'!J1050=\"Contingent\"),'TSA Input'!G1050,\"\"))","v":""},{"$f":"IF('TSA Input'!J1050=\"\",\"\",IF(OR('TSA Input'!J1050=\"Yes\",'TSA Input'!J1050=\"Contingent\"),'TSA Input'!F1050,\"\"))","v":""},"",{"$f":"IF('TSA Input'!J1050=\"\",\"\",IF(OR('TSA Input'!J1050=\"Yes\",'TSA Input'!J1050=\"Contingent\"),'TSA Input'!D1050,\"\"))","v":""},{"$f":"IF('TSA Input'!J1050=\"\",\"\",IF(OR('TSA Input'!J1050=\"Yes\",'TSA Input'!J1050=\"Contingent\"),'TSA Input'!G1050,\"\"))","v":""},{"$f":"IF('TSA Input'!J1050=\"\",\"\",IF(OR('TSA Input'!J1050=\"Yes\",'TSA Input'!J1050=\"Contingent\"),'TSA Input'!F1050,\"\"))","v":""},"","Required","Required"]
["",null,{"$f":"IF('TSA Input'!J1051=\"\",\"\",IF(OR('TSA Input'!J1051=\"Yes\",'TSA Input'!J1051=\"Contingent\"),'TSA Input'!B1051,\"Ineligible\"))","v":""},{"$f":"IF('TSA Input'!J1051=\"\",\"\",IF(OR('TSA Input'!J1051=\"Yes\",'TSA Input'!J1051=\"Contingent\"),'TSA Input'!I1051,\"\"))","v":""},{"$f":"IF('TSA Input'!J1051=\"\",\"\",IF(OR('TSA Input'!J1051=\"Yes\",'TSA Input'!J1051=\"Contingent\"),'TSA Input'!C1051,\"\"))","v":""},{"$f":"IF('TSA Input'!J1051=\"\",\"\",IF(OR('TSA Input'!J1051=\"Yes\",'TSA Input'!J1051=\"Contingent\"),'TSA Input'!D1051,\"\"))","v":""},{"$f":"IF('TSA Input'!J1051=\"\",\"\",IF(OR('TSA Input'!J1051=\"Yes\",'TSA Input'!J1051=\"Contingent\"),'TSA Input'!G1051,\"\"))","v":""},{"$f":"IF('TSA Input'!J1051=\"\",\"\",IF(OR('TSA Input'!J1051=\"Yes\",'TSA Input'!J1051=\"Contingent\"),'TSA Input'!F1051,\"\"))","v":""},"",{"$f":"IF('TSA Input'!J1051=\"\",\"\",IF(OR('TSA Input'!J1051=\"Yes\",'TSA Input'!J1051=\"Contingent\"),'TSA Input'!D1051,\"\"))","v":""},{"$f":"IF('TSA Input'!J1051=\"\",\"\",IF(OR('TSA Input'!J1051=\"Yes\",'TSA Input'!J1051=\"Contingent\"),'TSA Input'!G1051,\"\"))","v":""},{"$f":"IF('TSA Input'!J1051=\"\",\"\",IF(OR('TSA Input'!J1051=\"Yes\",'TSA Input'!J1051=\"Contingent\"),'TSA Input'!F1051,\"\"))","v":""},"","Required","Required"]
["",null,{"$f":"IF('TSA Input'!J1052=\"\",\"\",IF(OR('TSA Input'!J1052=\"Yes\",'TSA Input'!J1052=\"Contingent\"),'TSA Input'!B1052,\"Ineligible\"))","v":""},{"$f":"IF('TSA Input'!J1052=\"\",\"\",IF(OR('TSA Input'!J1052=\"Yes\",'TSA Input'!J1052=\"Contingent\"),'TSA Input'!I1052,\"\"))","v":""},{"$f":"IF('TSA Input'!J1052=\"\",\"\",IF(OR('TSA Input'!J1052=\"Yes\",'TSA Input'!J1052=\"Contingent\"),'TSA Input'!C1052,\"\"))","v":""},{"$f":"IF('TSA Input'!J1052=\"\",\"\",IF(OR('TSA Input'!J1052=\"Yes\",'TSA Input'!J1052=\"Contingent\"),'TSA Input'!D1052,\"\"))","v":""},{"$f":"IF('TSA Input'!J1052=\"\",\"\",IF(OR('TSA Input'!J1052=\"Yes\",'TSA Input'!J1052=\"Contingent\"),'TSA Input'!G1052,\"\"))","v":""},{"$f":"IF('TSA Input'!J1052=\"\",\"\",IF(OR('TSA Input'!J1052=\"Yes\",'TSA Input'!J1052=\"Contingent\"),'TSA Input'!F1052,\"\"))","v":""},"",{"$f":"IF('TSA Input'!J1052=\"\",\"\",IF(OR('TSA Input'!J1052=\"Yes\",'TSA Input'!J1052=\"Contingent\"),'TSA Input'!D1052,\"\"))","v":""},{"$f":"IF('TSA Input'!J1052=\"\",\"\",IF(OR('TSA Input'!J1052=\"Yes\",'TSA Input'!J1052=\"Contingent\"),'TSA Input'!G1052,\"\"))","v":""},{"$f":"IF('TSA Input'!J1052=\"\",\"\",IF(OR('TSA Input'!J1052=\"Yes\",'TSA Input'!J1052=\"Contingent\"),'TSA Input'!F1052,\"\"))","v":""},"","Required","Required"]
["",null,{"$f":"IF('TSA Input'!J1053=\"\",\"\",IF(OR('TSA Input'!J1053=\"Yes\",'TSA Input'!J1053=\"Contingent\"),'TSA Input'!B1053,\"Ineligible\"))","v":""},{"$f":"IF('TSA Input'!J1053=\"\",\"\",IF(OR('TSA Input'!J1053=\"Yes\",'TSA Input'!J1053=\"Contingent\"),'TSA Input'!I1053,\"\"))","v":""},{"$f":"IF('TSA Input'!J1053=\"\",\"\",IF(OR('TSA Input'!J1053=\"Yes\",'TSA Input'!J1053=\"Contingent\"),'TSA Input'!C1053,\"\"))","v":""},{"$f":"IF('TSA Input'!J1053=\"\",\"\",IF(OR('TSA Input'!J1053=\"Yes\",'TSA Input'!J1053=\"Contingent\"),'TSA Input'!D1053,\"\"))","v":""},{"$f":"IF('TSA Input'!J1053=\"\",\"\",IF(OR('TSA Input'!J1053=\"Yes\",'TSA Input'!J1053=\"Contingent\"),'TSA Input'!G1053,\"\"))","v":""},{"$f":"IF('TSA Input'!J1053=\"\",\"\",IF(OR('TSA Input'!J1053=\"Yes\",'TSA Input'!J1053=\"Contingent\"),'TSA Input'!F1053,\"\"))","v":""},"",{"$f":"IF('TSA Input'!J1053=\"\",\"\",IF(OR('TSA Input'!J1053=\"Yes\",'TSA Input'!J1053=\"Contingent\"),'TSA Input'!D1053,\"\"))","v":""},{"$f":"IF('TSA Input'!J1053=\"\",\"\",IF(OR('TSA Input'!J1053=\"Yes\",'TSA Input'!J1053=\"Contingent\"),'TSA Input'!G1053,\"\"))","v":""},{"$f":"IF('TSA Input'!J1053=\"\",\"\",IF(OR('TSA Input'!J1053=\"Yes\",'TSA Input'!J1053=\"Contingent\"),'TSA Input'!F1053,\"\"))","v":""},"","Required","Required"]
["",null,{"$f":"IF('TSA Input'!J1054=\"\",\"\",IF(OR('TSA Input'!J1054=\"Yes\",'TSA Input'!J1054=\"Contingent\"),'TSA Input'!B1054,\"Ineligible\"))","v":""},{"$f":"IF('TSA Input'!J1054=\"\",\"\",IF(OR('TSA Input'!J1054=\"Yes\",'TSA Input'!J1054=\"Contingent\"),'TSA Input'!I1054,\"\"))","v":""},{"$f":"IF('TSA Input'!J1054=\"\",\"\",IF(OR('TSA Input'!J1054=\"Yes\",'TSA Input'!J1054=\"Contingent\"),'TSA Input'!C1054,\"\"))","v":""},{"$f":"IF('TSA Input'!J1054=\"\",\"\",IF(OR('TSA Input'!J1054=\"Yes\",'TSA Input'!J1054=\"Contingent\"),'TSA Input'!D1054,\"\"))","v":""},{"$f":"IF('TSA Input'!J1054=\"\",\"\",IF(OR('TSA Input'!J1054=\"Yes\",'TSA Input'!J1054=\"Contingent\"),'TSA Input'!G1054,\"\"))","v":""},{"$f":"IF('TSA Input'!J1054=\"\",\"\",IF(OR('TSA Input'!J1054=\"Yes\",'TSA Input'!J1054=\"Contingent\"),'TSA Input'!F1054,\"\"))","v":""},"",{"$f":"IF('TSA Input'!J1054=\"\",\"\",IF(OR('TSA Input'!J1054=\"Yes\",'TSA Input'!J1054=\"Contingent\"),'TSA Input'!D1054,\"\"))","v":""},{"$f":"IF('TSA Input'!J1054=\"\",\"\",IF(OR('TSA Input'!J1054=\"Yes\",'TSA Input'!J1054=\"Contingent\"),'TSA Input'!G1054,\"\"))","v":""},{"$f":"IF('TSA Input'!J1054=\"\",\"\",IF(OR('TSA Input'!J1054=\"Yes\",'TSA Input'!J1054=\"Contingent\"),'TSA Input'!F1054,\"\"))","v":""},"","Required","Required"]
["",null,{"$f":"IF('TSA Input'!J1055=\"\",\"\",IF(OR('TSA Input'!J1055=\"Yes\",'TSA Input'!J1055=\"Contingent\"),'TSA Input'!B1055,\"Ineligible\"))","v":""},{"$f":"IF('TSA Input'!J1055=\"\",\"\",IF(OR('TSA Input'!J1055=\"Yes\",'TSA Input'!J1055=\"Contingent\"),'TSA Input'!I1055,\"\"))","v":""},{"$f":"IF('TSA Input'!J1055=\"\",\"\",IF(OR('TSA Input'!J1055=\"Yes\",'TSA Input'!J1055=\"Contingent\"),'TSA Input'!C1055,\"\"))","v":""},{"$f":"IF('TSA Input'!J1055=\"\",\"\",IF(OR('TSA Input'!J1055=\"Yes\",'TSA Input'!J1055=\"Contingent\"),'TSA Input'!D1055,\"\"))","v":""},{"$f":"IF('TSA Input'!J1055=\"\",\"\",IF(OR('TSA Input'!J1055=\"Yes\",'TSA Input'!J1055=\"Contingent\"),'TSA Input'!G1055,\"\"))","v":""},{"$f":"IF('TSA Input'!J1055=\"\",\"\",IF(OR('TSA Input'!J1055=\"Yes\",'TSA Input'!J1055=\"Contingent\"),'TSA Input'!F1055,\"\"))","v":""},"",{"$f":"IF('TSA Input'!J1055=\"\",\"\",IF(OR('TSA Input'!J1055=\"Yes\",'TSA Input'!J1055=\"Contingent\"),'TSA Input'!D1055,\"\"))","v":""},{"$f":"IF('TSA Input'!J1055=\"\",\"\",IF(OR('TSA Input'!J1055=\"Yes\",'TSA Input'!J1055=\"Contingent\"),'TSA Input'!G1055,\"\"))","v":""},{"$f":"IF('TSA Input'!J1055=\"\",\"\",IF(OR('TSA Input'!J1055=\"Yes\",'TSA Input'!J1055=\"Contingent\"),'TSA Input'!F1055,\"\"))","v":""},"","Required","Required"]
["",null,{"$f":"IF('TSA Input'!J1056=\"\",\"\",IF(OR('TSA Input'!J1056=\"Yes\",'TSA Input'!J1056=\"Contingent\"),'TSA Input'!B1056,\"Ineligible\"))","v":""},{"$f":"IF('TSA Input'!J1056=\"\",\"\",IF(OR('TSA Input'!J1056=\"Yes\",'TSA Input'!J1056=\"Contingent\"),'TSA Input'!I1056,\"\"))","v":""},{"$f":"IF('TSA Input'!J1056=\"\",\"\",IF(OR('TSA Input'!J1056=\"Yes\",'TSA Input'!J1056=\"Contingent\"),'TSA Input'!C1056,\"\"))","v":""},{"$f":"IF('TSA Input'!J1056=\"\",\"\",IF(OR('TSA Input'!J1056=\"Yes\",'TSA Input'!J1056=\"Contingent\"),'TSA Input'!D1056,\"\"))","v":""},{"$f":"IF('TSA Input'!J1056=\"\",\"\",IF(OR('TSA Input'!J1056=\"Yes\",'TSA Input'!J1056=\"Contingent\"),'TSA Input'!G1056,\"\"))","v":""},{"$f":"IF('TSA Input'!J1056=\"\",\"\",IF(OR('TSA Input'!J1056=\"Yes\",'TSA Input'!J1056=\"Contingent\"),'TSA Input'!F1056,\"\"))","v":""},"",{"$f":"IF('TSA Input'!J1056=\"\",\"\",IF(OR('TSA Input'!J1056=\"Yes\",'TSA Input'!J1056=\"Contingent\"),'TSA Input'!D1056,\"\"))","v":""},{"$f":"IF('TSA Input'!J1056=\"\",\"\",IF(OR('TSA Input'!J1056=\"Yes\",'TSA Input'!J1056=\"Contingent\"),'TSA Input'!G1056,\"\"))","v":""},{"$f":"IF('TSA Input'!J1056=\"\",\"\",IF(OR('TSA Input'!J1056=\"Yes\",'TSA Input'!J1056=\"Contingent\"),'TSA Input'!F1056,\"\"))","v":""},"","Required","Required"]
["",null,{"$f":"IF('TSA Input'!J1057=\"\",\"\",IF(OR('TSA Input'!J1057=\"Yes\",'TSA Input'!J1057=\"Contingent\"),'TSA Input'!B1057,\"Ineligible\"))","v":""},{"$f":"IF('TSA Input'!J1057=\"\",\"\",IF(OR('TSA Input'!J1057=\"Yes\",'TSA Input'!J1057=\"Contingent\"),'TSA Input'!I1057,\"\"))","v":""},{"$f":"IF('TSA Input'!J1057=\"\",\"\",IF(OR('TSA Input'!J1057=\"Yes\",'TSA Input'!J1057=\"Contingent\"),'TSA Input'!C1057,\"\"))","v":""},{"$f":"IF('TSA Input'!J1057=\"\",\"\",IF(OR('TSA Input'!J1057=\"Yes\",'TSA Input'!J1057=\"Contingent\"),'TSA Input'!D1057,\"\"))","v":""},{"$f":"IF('TSA Input'!J1057=\"\",\"\",IF(OR('TSA Input'!J1057=\"Yes\",'TSA Input'!J1057=\"Contingent\"),'TSA Input'!G1057,\"\"))","v":""},{"$f":"IF('TSA Input'!J1057=\"\",\"\",IF(OR('TSA Input'!J1057=\"Yes\",'TSA Input'!J1057=\"Contingent\"),'TSA Input'!F1057,\"\"))","v":""},"",{"$f":"IF('TSA Input'!J1057=\"\",\"\",IF(OR('TSA Input'!J1057=\"Yes\",'TSA Input'!J1057=\"Contingent\"),'TSA Input'!D1057,\"\"))","v":""},{"$f":"IF('TSA Input'!J1057=\"\",\"\",IF(OR('TSA Input'!J1057=\"Yes\",'TSA Input'!J1057=\"Contingent\"),'TSA Input'!G1057,\"\"))","v":""},{"$f":"IF('TSA Input'!J1057=\"\",\"\",IF(OR('TSA Input'!J1057=\"Yes\",'TSA Input'!J1057=\"Contingent\"),'TSA Input'!F1057,\"\"))","v":""},"","Required","Required"]
["",null,{"$f":"IF('TSA Input'!J1058=\"\",\"\",IF(OR('TSA Input'!J1058=\"Yes\",'TSA Input'!J1058=\"Contingent\"),'TSA Input'!B1058,\"Ineligible\"))","v":""},{"$f":"IF('TSA Input'!J1058=\"\",\"\",IF(OR('TSA Input'!J1058=\"Yes\",'TSA Input'!J1058=\"Contingent\"),'TSA Input'!I1058,\"\"))","v":""},{"$f":"IF('TSA Input'!J1058=\"\",\"\",IF(OR('TSA Input'!J1058=\"Yes\",'TSA Input'!J1058=\"Contingent\"),'TSA Input'!C1058,\"\"))","v":""},{"$f":"IF('TSA Input'!J1058=\"\",\"\",IF(OR('TSA Input'!J1058=\"Yes\",'TSA Input'!J1058=\"Contingent\"),'TSA Input'!D1058,\"\"))","v":""},{"$f":"IF('TSA Input'!J1058=\"\",\"\",IF(OR('TSA Input'!J1058=\"Yes\",'TSA Input'!J1058=\"Contingent\"),'TSA Input'!G1058,\"\"))","v":""},{"$f":"IF('TSA Input'!J1058=\"\",\"\",IF(OR('TSA Input'!J1058=\"Yes\",'TSA Input'!J1058=\"Contingent\"),'TSA Input'!F1058,\"\"))","v":""},"",{"$f":"IF('TSA Input'!J1058=\"\",\"\",IF(OR('TSA Input'!J1058=\"Yes\",'TSA Input'!J1058=\"Contingent\"),'TSA Input'!D1058,\"\"))","v":""},{"$f":"IF('TSA Input'!J1058=\"\",\"\",IF(OR('TSA Input'!J1058=\"Yes\",'TSA Input'!J1058=\"Contingent\"),'TSA Input'!G1058,\"\"))","v":""},{"$f":"IF('TSA Input'!J1058=\"\",\"\",IF(OR('TSA Input'!J1058=\"Yes\",'TSA Input'!J1058=\"Contingent\"),'TSA Input'!F1058,\"\"))","v":""},"","Required","Required"]
["",null,{"$f":"IF('TSA Input'!J1059=\"\",\"\",IF(OR('TSA Input'!J1059=\"Yes\",'TSA Input'!J1059=\"Contingent\"),'TSA Input'!B1059,\"Ineligible\"))","v":""},{"$f":"IF('TSA Input'!J1059=\"\",\"\",IF(OR('TSA Input'!J1059=\"Yes\",'TSA Input'!J1059=\"Contingent\"),'TSA Input'!I1059,\"\"))","v":""},{"$f":"IF('TSA Input'!J1059=\"\",\"\",IF(OR('TSA Input'!J1059=\"Yes\",'TSA Input'!J1059=\"Contingent\"),'TSA Input'!C1059,\"\"))","v":""},{"$f":"IF('TSA Input'!J1059=\"\",\"\",IF(OR('TSA Input'!J1059=\"Yes\",'TSA Input'!J1059=\"Contingent\"),'TSA Input'!D1059,\"\"))","v":""},{"$f":"IF('TSA Input'!J1059=\"\",\"\",IF(OR('TSA Input'!J1059=\"Yes\",'TSA Input'!J1059=\"Contingent\"),'TSA Input'!G1059,\"\"))","v":""},{"$f":"IF('TSA Input'!J1059=\"\",\"\",IF(OR('TSA Input'!J1059=\"Yes\",'TSA Input'!J1059=\"Contingent\"),'TSA Input'!F1059,\"\"))","v":""},"",{"$f":"IF('TSA Input'!J1059=\"\",\"\",IF(OR('TSA Input'!J1059=\"Yes\",'TSA Input'!J1059=\"Contingent\"),'TSA Input'!D1059,\"\"))","v":""},{"$f":"IF('TSA Input'!J1059=\"\",\"\",IF(OR('TSA Input'!J1059=\"Yes\",'TSA Input'!J1059=\"Contingent\"),'TSA Input'!G1059,\"\"))","v":""},{"$f":"IF('TSA Input'!J1059=\"\",\"\",IF(OR('TSA Input'!J1059=\"Yes\",'TSA Input'!J1059=\"Contingent\"),'TSA Input'!F1059,\"\"))","v":""},"","Required","Required"]
["",null,{"$f":"IF('TSA Input'!J1060=\"\",\"\",IF(OR('TSA Input'!J1060=\"Yes\",'TSA Input'!J1060=\"Contingent\"),'TSA Input'!B1060,\"Ineligible\"))","v":""},{"$f":"IF('TSA Input'!J1060=\"\",\"\",IF(OR('TSA Input'!J1060=\"Yes\",'TSA Input'!J1060=\"Contingent\"),'TSA Input'!I1060,\"\"))","v":""},{"$f":"IF('TSA Input'!J1060=\"\",\"\",IF(OR('TSA Input'!J1060=\"Yes\",'TSA Input'!J1060=\"Contingent\"),'TSA Input'!C1060,\"\"))","v":""},{"$f":"IF('TSA Input'!J1060=\"\",\"\",IF(OR('TSA Input'!J1060=\"Yes\",'TSA Input'!J1060=\"Contingent\"),'TSA Input'!D1060,\"\"))","v":""},{"$f":"IF('TSA Input'!J1060=\"\",\"\",IF(OR('TSA Input'!J1060=\"Yes\",'TSA Input'!J1060=\"Contingent\"),'TSA Input'!G1060,\"\"))","v":""},{"$f":"IF('TSA Input'!J1060=\"\",\"\",IF(OR('TSA Input'!J1060=\"Yes\",'TSA Input'!J1060=\"Contingent\"),'TSA Input'!F1060,\"\"))","v":""},"",{"$f":"IF('TSA Input'!J1060=\"\",\"\",IF(OR('TSA Input'!J1060=\"Yes\",'TSA Input'!J1060=\"Contingent\"),'TSA Input'!D1060,\"\"))","v":""},{"$f":"IF('TSA Input'!J1060=\"\",\"\",IF(OR('TSA Input'!J1060=\"Yes\",'TSA Input'!J1060=\"Contingent\"),'TSA Input'!G1060,\"\"))","v":""},{"$f":"IF('TSA Input'!J1060=\"\",\"\",IF(OR('TSA Input'!J1060=\"Yes\",'TSA Input'!J1060=\"Contingent\"),'TSA Input'!F1060,\"\"))","v":""},"","Required","Required"]
["",null,{"$f":"IF('TSA Input'!J1061=\"\",\"\",IF(OR('TSA Input'!J1061=\"Yes\",'TSA Input'!J1061=\"Contingent\"),'TSA Input'!B1061,\"Ineligible\"))","v":""},{"$f":"IF('TSA Input'!J1061=\"\",\"\",IF(OR('TSA Input'!J1061=\"Yes\",'TSA Input'!J1061=\"Contingent\"),'TSA Input'!I1061,\"\"))","v":""},{"$f":"IF('TSA Input'!J1061=\"\",\"\",IF(OR('TSA Input'!J1061=\"Yes\",'TSA Input'!J1061=\"Contingent\"),'TSA Input'!C1061,\"\"))","v":""},{"$f":"IF('TSA Input'!J1061=\"\",\"\",IF(OR('TSA Input'!J1061=\"Yes\",'TSA Input'!J1061=\"Contingent\"),'TSA Input'!D1061,\"\"))","v":""},{"$f":"IF('TSA Input'!J1061=\"\",\"\",IF(OR('TSA Input'!J1061=\"Yes\",'TSA Input'!J1061=\"Contingent\"),'TSA Input'!G1061,\"\"))","v":""},{"$f":"IF('TSA Input'!J1061=\"\",\"\",IF(OR('TSA Input'!J1061=\"Yes\",'TSA Input'!J1061=\"Contingent\"),'TSA Input'!F1061,\"\"))","v":""},"",{"$f":"IF('TSA Input'!J1061=\"\",\"\",IF(OR('TSA Input'!J1061=\"Yes\",'TSA Input'!J1061=\"Contingent\"),'TSA Input'!D1061,\"\"))","v":""},{"$f":"IF('TSA Input'!J1061=\"\",\"\",IF(OR('TSA Input'!J1061=\"Yes\",'TSA Input'!J1061=\"Contingent\"),'TSA Input'!G1061,\"\"))","v":""},{"$f":"IF('TSA Input'!J1061=\"\",\"\",IF(OR('TSA Input'!J1061=\"Yes\",'TSA Input'!J1061=\"Contingent\"),'TSA Input'!F1061,\"\"))","v":""},"","Required","Required"]
["",null,{"$f":"IF('TSA Input'!J1062=\"\",\"\",IF(OR('TSA Input'!J1062=\"Yes\",'TSA Input'!J1062=\"Contingent\"),'TSA Input'!B1062,\"Ineligible\"))","v":""},{"$f":"IF('TSA Input'!J1062=\"\",\"\",IF(OR('TSA Input'!J1062=\"Yes\",'TSA Input'!J1062=\"Contingent\"),'TSA Input'!I1062,\"\"))","v":""},{"$f":"IF('TSA Input'!J1062=\"\",\"\",IF(OR('TSA Input'!J1062=\"Yes\",'TSA Input'!J1062=\"Contingent\"),'TSA Input'!C1062,\"\"))","v":""},{"$f":"IF('TSA Input'!J1062=\"\",\"\",IF(OR('TSA Input'!J1062=\"Yes\",'TSA Input'!J1062=\"Contingent\"),'TSA Input'!D1062,\"\"))","v":""},{"$f":"IF('TSA Input'!J1062=\"\",\"\",IF(OR('TSA Input'!J1062=\"Yes\",'TSA Input'!J1062=\"Contingent\"),'TSA Input'!G1062,\"\"))","v":""},{"$f":"IF('TSA Input'!J1062=\"\",\"\",IF(OR('TSA Input'!J1062=\"Yes\",'TSA Input'!J1062=\"Contingent\"),'TSA Input'!F1062,\"\"))","v":""},"",{"$f":"IF('TSA Input'!J1062=\"\",\"\",IF(OR('TSA Input'!J1062=\"Yes\",'TSA Input'!J1062=\"Contingent\"),'TSA Input'!D1062,\"\"))","v":""},{"$f":"IF('TSA Input'!J1062=\"\",\"\",IF(OR('TSA Input'!J1062=\"Yes\",'TSA Input'!J1062=\"Contingent\"),'TSA Input'!G1062,\"\"))","v":""},{"$f":"IF('TSA Input'!J1062=\"\",\"\",IF(OR('TSA Input'!J1062=\"Yes\",'TSA Input'!J1062=\"Contingent\"),'TSA Input'!F1062,\"\"))","v":""},"","Required","Required"]
["",null,{"$f":"IF('TSA Input'!J1063=\"\",\"\",IF(OR('TSA Input'!J1063=\"Yes\",'TSA Input'!J1063=\"Contingent\"),'TSA Input'!B1063,\"Ineligible\"))","v":""},{"$f":"IF('TSA Input'!J1063=\"\",\"\",IF(OR('TSA Input'!J1063=\"Yes\",'TSA Input'!J1063=\"Contingent\"),'TSA Input'!I1063,\"\"))","v":""},{"$f":"IF('TSA Input'!J1063=\"\",\"\",IF(OR('TSA Input'!J1063=\"Yes\",'TSA Input'!J1063=\"Contingent\"),'TSA Input'!C1063,\"\"))","v":""},{"$f":"IF('TSA Input'!J1063=\"\",\"\",IF(OR('TSA Input'!J1063=\"Yes\",'TSA Input'!J1063=\"Contingent\"),'TSA Input'!D1063,\"\"))","v":""},{"$f":"IF('TSA Input'!J1063=\"\",\"\",IF(OR('TSA Input'!J1063=\"Yes\",'TSA Input'!J1063=\"Contingent\"),'TSA Input'!G1063,\"\"))","v":""},{"$f":"IF('TSA Input'!J1063=\"\",\"\",IF(OR('TSA Input'!J1063=\"Yes\",'TSA Input'!J1063=\"Contingent\"),'TSA Input'!F1063,\"\"))","v":""},"",{"$f":"IF('TSA Input'!J1063=\"\",\"\",IF(OR('TSA Input'!J1063=\"Yes\",'TSA Input'!J1063=\"Contingent\"),'TSA Input'!D1063,\"\"))","v":""},{"$f":"IF('TSA Input'!J1063=\"\",\"\",IF(OR('TSA Input'!J1063=\"Yes\",'TSA Input'!J1063=\"Contingent\"),'TSA Input'!G1063,\"\"))","v":""},{"$f":"IF('TSA Input'!J1063=\"\",\"\",IF(OR('TSA Input'!J1063=\"Yes\",'TSA Input'!J1063=\"Contingent\"),'TSA Input'!F1063,\"\"))","v":""},"","Required","Required"]
["",null,{"$f":"IF('TSA Input'!J1064=\"\",\"\",IF(OR('TSA Input'!J1064=\"Yes\",'TSA Input'!J1064=\"Contingent\"),'TSA Input'!B1064,\"Ineligible\"))","v":""},{"$f":"IF('TSA Input'!J1064=\"\",\"\",IF(OR('TSA Input'!J1064=\"Yes\",'TSA Input'!J1064=\"Contingent\"),'TSA Input'!I1064,\"\"))","v":""},{"$f":"IF('TSA Input'!J1064=\"\",\"\",IF(OR('TSA Input'!J1064=\"Yes\",'TSA Input'!J1064=\"Contingent\"),'TSA Input'!C1064,\"\"))","v":""},{"$f":"IF('TSA Input'!J1064=\"\",\"\",IF(OR('TSA Input'!J1064=\"Yes\",'TSA Input'!J1064=\"Contingent\"),'TSA Input'!D1064,\"\"))","v":""},{"$f":"IF('TSA Input'!J1064=\"\",\"\",IF(OR('TSA Input'!J1064=\"Yes\",'TSA Input'!J1064=\"Contingent\"),'TSA Input'!G1064,\"\"))","v":""},{"$f":"IF('TSA Input'!J1064=\"\",\"\",IF(OR('TSA Input'!J1064=\"Yes\",'TSA Input'!J1064=\"Contingent\"),'TSA Input'!F1064,\"\"))","v":""},"",{"$f":"IF('TSA Input'!J1064=\"\",\"\",IF(OR('TSA Input'!J1064=\"Yes\",'TSA Input'!J1064=\"Contingent\"),'TSA Input'!D1064,\"\"))","v":""},{"$f":"IF('TSA Input'!J1064=\"\",\"\",IF(OR('TSA Input'!J1064=\"Yes\",'TSA Input'!J1064=\"Contingent\"),'TSA Input'!G1064,\"\"))","v":""},{"$f":"IF('TSA Input'!J1064=\"\",\"\",IF(OR('TSA Input'!J1064=\"Yes\",'TSA Input'!J1064=\"Contingent\"),'TSA Input'!F1064,\"\"))","v":""},"","Required","Required"]
["",null,{"$f":"IF('TSA Input'!J1065=\"\",\"\",IF(OR('TSA Input'!J1065=\"Yes\",'TSA Input'!J1065=\"Contingent\"),'TSA Input'!B1065,\"Ineligible\"))","v":""},{"$f":"IF('TSA Input'!J1065=\"\",\"\",IF(OR('TSA Input'!J1065=\"Yes\",'TSA Input'!J1065=\"Contingent\"),'TSA Input'!I1065,\"\"))","v":""},{"$f":"IF('TSA Input'!J1065=\"\",\"\",IF(OR('TSA Input'!J1065=\"Yes\",'TSA Input'!J1065=\"Contingent\"),'TSA Input'!C1065,\"\"))","v":""},{"$f":"IF('TSA Input'!J1065=\"\",\"\",IF(OR('TSA Input'!J1065=\"Yes\",'TSA Input'!J1065=\"Contingent\"),'TSA Input'!D1065,\"\"))","v":""},{"$f":"IF('TSA Input'!J1065=\"\",\"\",IF(OR('TSA Input'!J1065=\"Yes\",'TSA Input'!J1065=\"Contingent\"),'TSA Input'!G1065,\"\"))","v":""},{"$f":"IF('TSA Input'!J1065=\"\",\"\",IF(OR('TSA Input'!J1065=\"Yes\",'TSA Input'!J1065=\"Contingent\"),'TSA Input'!F1065,\"\"))","v":""},"",{"$f":"IF('TSA Input'!J1065=\"\",\"\",IF(OR('TSA Input'!J1065=\"Yes\",'TSA Input'!J1065=\"Contingent\"),'TSA Input'!D1065,\"\"))","v":""},{"$f":"IF('TSA Input'!J1065=\"\",\"\",IF(OR('TSA Input'!J1065=\"Yes\",'TSA Input'!J1065=\"Contingent\"),'TSA Input'!G1065,\"\"))","v":""},{"$f":"IF('TSA Input'!J1065=\"\",\"\",IF(OR('TSA Input'!J1065=\"Yes\",'TSA Input'!J1065=\"Contingent\"),'TSA Input'!F1065,\"\"))","v":""},"","Required","Required"]
["",null,{"$f":"IF('TSA Input'!J1066=\"\",\"\",IF(OR('TSA Input'!J1066=\"Yes\",'TSA Input'!J1066=\"Contingent\"),'TSA Input'!B1066,\"Ineligible\"))","v":""},{"$f":"IF('TSA Input'!J1066=\"\",\"\",IF(OR('TSA Input'!J1066=\"Yes\",'TSA Input'!J1066=\"Contingent\"),'TSA Input'!I1066,\"\"))","v":""},{"$f":"IF('TSA Input'!J1066=\"\",\"\",IF(OR('TSA Input'!J1066=\"Yes\",'TSA Input'!J1066=\"Contingent\"),'TSA Input'!C1066,\"\"))","v":""},{"$f":"IF('TSA Input'!J1066=\"\",\"\",IF(OR('TSA Input'!J1066=\"Yes\",'TSA Input'!J1066=\"Contingent\"),'TSA Input'!D1066,\"\"))","v":""},{"$f":"IF('TSA Input'!J1066=\"\",\"\",IF(OR('TSA Input'!J1066=\"Yes\",'TSA Input'!J1066=\"Contingent\"),'TSA Input'!G1066,\"\"))","v":""},{"$f":"IF('TSA Input'!J1066=\"\",\"\",IF(OR('TSA Input'!J1066=\"Yes\",'TSA Input'!J1066=\"Contingent\"),'TSA Input'!F1066,\"\"))","v":""},"",{"$f":"IF('TSA Input'!J1066=\"\",\"\",IF(OR('TSA Input'!J1066=\"Yes\",'TSA Input'!J1066=\"Contingent\"),'TSA Input'!D1066,\"\"))","v":""},{"$f":"IF('TSA Input'!J1066=\"\",\"\",IF(OR('TSA Input'!J1066=\"Yes\",'TSA Input'!J1066=\"Contingent\"),'TSA Input'!G1066,\"\"))","v":""},{"$f":"IF('TSA Input'!J1066=\"\",\"\",IF(OR('TSA Input'!J1066=\"Yes\",'TSA Input'!J1066=\"Contingent\"),'TSA Input'!F1066,\"\"))","v":""},"","Required","Required"]
["",null,{"$f":"IF('TSA Input'!J1067=\"\",\"\",IF(OR('TSA Input'!J1067=\"Yes\",'TSA Input'!J1067=\"Contingent\"),'TSA Input'!B1067,\"Ineligible\"))","v":""},{"$f":"IF('TSA Input'!J1067=\"\",\"\",IF(OR('TSA Input'!J1067=\"Yes\",'TSA Input'!J1067=\"Contingent\"),'TSA Input'!I1067,\"\"))","v":""},{"$f":"IF('TSA Input'!J1067=\"\",\"\",IF(OR('TSA Input'!J1067=\"Yes\",'TSA Input'!J1067=\"Contingent\"),'TSA Input'!C1067,\"\"))","v":""},{"$f":"IF('TSA Input'!J1067=\"\",\"\",IF(OR('TSA Input'!J1067=\"Yes\",'TSA Input'!J1067=\"Contingent\"),'TSA Input'!D1067,\"\"))","v":""},{"$f":"IF('TSA Input'!J1067=\"\",\"\",IF(OR('TSA Input'!J1067=\"Yes\",'TSA Input'!J1067=\"Contingent\"),'TSA Input'!G1067,\"\"))","v":""},{"$f":"IF('TSA Input'!J1067=\"\",\"\",IF(OR('TSA Input'!J1067=\"Yes\",'TSA Input'!J1067=\"Contingent\"),'TSA Input'!F1067,\"\"))","v":""},"",{"$f":"IF('TSA Input'!J1067=\"\",\"\",IF(OR('TSA Input'!J1067=\"Yes\",'TSA Input'!J1067=\"Contingent\"),'TSA Input'!D1067,\"\"))","v":""},{"$f":"IF('TSA Input'!J1067=\"\",\"\",IF(OR('TSA Input'!J1067=\"Yes\",'TSA Input'!J1067=\"Contingent\"),'TSA Input'!G1067,\"\"))","v":""},{"$f":"IF('TSA Input'!J1067=\"\",\"\",IF(OR('TSA Input'!J1067=\"Yes\",'TSA Input'!J1067=\"Contingent\"),'TSA Input'!F1067,\"\"))","v":""},"","Required","Required"]
["",null,{"$f":"IF('TSA Input'!J1068=\"\",\"\",IF(OR('TSA Input'!J1068=\"Yes\",'TSA Input'!J1068=\"Contingent\"),'TSA Input'!B1068,\"Ineligible\"))","v":""},{"$f":"IF('TSA Input'!J1068=\"\",\"\",IF(OR('TSA Input'!J1068=\"Yes\",'TSA Input'!J1068=\"Contingent\"),'TSA Input'!I1068,\"\"))","v":""},{"$f":"IF('TSA Input'!J1068=\"\",\"\",IF(OR('TSA Input'!J1068=\"Yes\",'TSA Input'!J1068=\"Contingent\"),'TSA Input'!C1068,\"\"))","v":""},{"$f":"IF('TSA Input'!J1068=\"\",\"\",IF(OR('TSA Input'!J1068=\"Yes\",'TSA Input'!J1068=\"Contingent\"),'TSA Input'!D1068,\"\"))","v":""},{"$f":"IF('TSA Input'!J1068=\"\",\"\",IF(OR('TSA Input'!J1068=\"Yes\",'TSA Input'!J1068=\"Contingent\"),'TSA Input'!G1068,\"\"))","v":""},{"$f":"IF('TSA Input'!J1068=\"\",\"\",IF(OR('TSA Input'!J1068=\"Yes\",'TSA Input'!J1068=\"Contingent\"),'TSA Input'!F1068,\"\"))","v":""},"",{"$f":"IF('TSA Input'!J1068=\"\",\"\",IF(OR('TSA Input'!J1068=\"Yes\",'TSA Input'!J1068=\"Contingent\"),'TSA Input'!D1068,\"\"))","v":""},{"$f":"IF('TSA Input'!J1068=\"\",\"\",IF(OR('TSA Input'!J1068=\"Yes\",'TSA Input'!J1068=\"Contingent\"),'TSA Input'!G1068,\"\"))","v":""},{"$f":"IF('TSA Input'!J1068=\"\",\"\",IF(OR('TSA Input'!J1068=\"Yes\",'TSA Input'!J1068=\"Contingent\"),'TSA Input'!F1068,\"\"))","v":""},"","Required","Required"]
["",null,{"$f":"IF('TSA Input'!J1069=\"\",\"\",IF(OR('TSA Input'!J1069=\"Yes\",'TSA Input'!J1069=\"Contingent\"),'TSA Input'!B1069,\"Ineligible\"))","v":""},{"$f":"IF('TSA Input'!J1069=\"\",\"\",IF(OR('TSA Input'!J1069=\"Yes\",'TSA Input'!J1069=\"Contingent\"),'TSA Input'!I1069,\"\"))","v":""},{"$f":"IF('TSA Input'!J1069=\"\",\"\",IF(OR('TSA Input'!J1069=\"Yes\",'TSA Input'!J1069=\"Contingent\"),'TSA Input'!C1069,\"\"))","v":""},{"$f":"IF('TSA Input'!J1069=\"\",\"\",IF(OR('TSA Input'!J1069=\"Yes\",'TSA Input'!J1069=\"Contingent\"),'TSA Input'!D1069,\"\"))","v":""},{"$f":"IF('TSA Input'!J1069=\"\",\"\",IF(OR('TSA Input'!J1069=\"Yes\",'TSA Input'!J1069=\"Contingent\"),'TSA Input'!G1069,\"\"))","v":""},{"$f":"IF('TSA Input'!J1069=\"\",\"\",IF(OR('TSA Input'!J1069=\"Yes\",'TSA Input'!J1069=\"Contingent\"),'TSA Input'!F1069,\"\"))","v":""},"",{"$f":"IF('TSA Input'!J1069=\"\",\"\",IF(OR('TSA Input'!J1069=\"Yes\",'TSA Input'!J1069=\"Contingent\"),'TSA Input'!D1069,\"\"))","v":""},{"$f":"IF('TSA Input'!J1069=\"\",\"\",IF(OR('TSA Input'!J1069=\"Yes\",'TSA Input'!J1069=\"Contingent\"),'TSA Input'!G1069,\"\"))","v":""},{"$f":"IF('TSA Input'!J1069=\"\",\"\",IF(OR('TSA Input'!J1069=\"Yes\",'TSA Input'!J1069=\"Contingent\"),'TSA Input'!F1069,\"\"))","v":""},"","Required","Required"]
["",null,{"$f":"IF('TSA Input'!J1070=\"\",\"\",IF(OR('TSA Input'!J1070=\"Yes\",'TSA Input'!J1070=\"Contingent\"),'TSA Input'!B1070,\"Ineligible\"))","v":""},{"$f":"IF('TSA Input'!J1070=\"\",\"\",IF(OR('TSA Input'!J1070=\"Yes\",'TSA Input'!J1070=\"Contingent\"),'TSA Input'!I1070,\"\"))","v":""},{"$f":"IF('TSA Input'!J1070=\"\",\"\",IF(OR('TSA Input'!J1070=\"Yes\",'TSA Input'!J1070=\"Contingent\"),'TSA Input'!C1070,\"\"))","v":""},{"$f":"IF('TSA Input'!J1070=\"\",\"\",IF(OR('TSA Input'!J1070=\"Yes\",'TSA Input'!J1070=\"Contingent\"),'TSA Input'!D1070,\"\"))","v":""},{"$f":"IF('TSA Input'!J1070=\"\",\"\",IF(OR('TSA Input'!J1070=\"Yes\",'TSA Input'!J1070=\"Contingent\"),'TSA Input'!G1070,\"\"))","v":""},{"$f":"IF('TSA Input'!J1070=\"\",\"\",IF(OR('TSA Input'!J1070=\"Yes\",'TSA Input'!J1070=\"Contingent\"),'TSA Input'!F1070,\"\"))","v":""},"",{"$f":"IF('TSA Input'!J1070=\"\",\"\",IF(OR('TSA Input'!J1070=\"Yes\",'TSA Input'!J1070=\"Contingent\"),'TSA Input'!D1070,\"\"))","v":""},{"$f":"IF('TSA Input'!J1070=\"\",\"\",IF(OR('TSA Input'!J1070=\"Yes\",'TSA Input'!J1070=\"Contingent\"),'TSA Input'!G1070,\"\"))","v":""},{"$f":"IF('TSA Input'!J1070=\"\",\"\",IF(OR('TSA Input'!J1070=\"Yes\",'TSA Input'!J1070=\"Contingent\"),'TSA Input'!F1070,\"\"))","v":""},"","Required","Required"]
["",null,{"$f":"IF('TSA Input'!J1071=\"\",\"\",IF(OR('TSA Input'!J1071=\"Yes\",'TSA Input'!J1071=\"Contingent\"),'TSA Input'!B1071,\"Ineligible\"))","v":""},{"$f":"IF('TSA Input'!J1071=\"\",\"\",IF(OR('TSA Input'!J1071=\"Yes\",'TSA Input'!J1071=\"Contingent\"),'TSA Input'!I1071,\"\"))","v":""},{"$f":"IF('TSA Input'!J1071=\"\",\"\",IF(OR('TSA Input'!J1071=\"Yes\",'TSA Input'!J1071=\"Contingent\"),'TSA Input'!C1071,\"\"))","v":""},{"$f":"IF('TSA Input'!J1071=\"\",\"\",IF(OR('TSA Input'!J1071=\"Yes\",'TSA Input'!J1071=\"Contingent\"),'TSA Input'!D1071,\"\"))","v":""},{"$f":"IF('TSA Input'!J1071=\"\",\"\",IF(OR('TSA Input'!J1071=\"Yes\",'TSA Input'!J1071=\"Contingent\"),'TSA Input'!G1071,\"\"))","v":""},{"$f":"IF('TSA Input'!J1071=\"\",\"\",IF(OR('TSA Input'!J1071=\"Yes\",'TSA Input'!J1071=\"Contingent\"),'TSA Input'!F1071,\"\"))","v":""},"",{"$f":"IF('TSA Input'!J1071=\"\",\"\",IF(OR('TSA Input'!J1071=\"Yes\",'TSA Input'!J1071=\"Contingent\"),'TSA Input'!D1071,\"\"))","v":""},{"$f":"IF('TSA Input'!J1071=\"\",\"\",IF(OR('TSA Input'!J1071=\"Yes\",'TSA Input'!J1071=\"Contingent\"),'TSA Input'!G1071,\"\"))","v":""},{"$f":"IF('TSA Input'!J1071=\"\",\"\",IF(OR('TSA Input'!J1071=\"Yes\",'TSA Input'!J1071=\"Contingent\"),'TSA Input'!F1071,\"\"))","v":""},"","Required","Required"]
["",null,{"$f":"IF('TSA Input'!J1072=\"\",\"\",IF(OR('TSA Input'!J1072=\"Yes\",'TSA Input'!J1072=\"Contingent\"),'TSA Input'!B1072,\"Ineligible\"))","v":""},{"$f":"IF('TSA Input'!J1072=\"\",\"\",IF(OR('TSA Input'!J1072=\"Yes\",'TSA Input'!J1072=\"Contingent\"),'TSA Input'!I1072,\"\"))","v":""},{"$f":"IF('TSA Input'!J1072=\"\",\"\",IF(OR('TSA Input'!J1072=\"Yes\",'TSA Input'!J1072=\"Contingent\"),'TSA Input'!C1072,\"\"))","v":""},{"$f":"IF('TSA Input'!J1072=\"\",\"\",IF(OR('TSA Input'!J1072=\"Yes\",'TSA Input'!J1072=\"Contingent\"),'TSA Input'!D1072,\"\"))","v":""},{"$f":"IF('TSA Input'!J1072=\"\",\"\",IF(OR('TSA Input'!J1072=\"Yes\",'TSA Input'!J1072=\"Contingent\"),'TSA Input'!G1072,\"\"))","v":""},{"$f":"IF('TSA Input'!J1072=\"\",\"\",IF(OR('TSA Input'!J1072=\"Yes\",'TSA Input'!J1072=\"Contingent\"),'TSA Input'!F1072,\"\"))","v":""},"",{"$f":"IF('TSA Input'!J1072=\"\",\"\",IF(OR('TSA Input'!J1072=\"Yes\",'TSA Input'!J1072=\"Contingent\"),'TSA Input'!D1072,\"\"))","v":""},{"$f":"IF('TSA Input'!J1072=\"\",\"\",IF(OR('TSA Input'!J1072=\"Yes\",'TSA Input'!J1072=\"Contingent\"),'TSA Input'!G1072,\"\"))","v":""},{"$f":"IF('TSA Input'!J1072=\"\",\"\",IF(OR('TSA Input'!J1072=\"Yes\",'TSA Input'!J1072=\"Contingent\"),'TSA Input'!F1072,\"\"))","v":""},"","Required","Required"]
["",null,{"$f":"IF('TSA Input'!J1073=\"\",\"\",IF(OR('TSA Input'!J1073=\"Yes\",'TSA Input'!J1073=\"Contingent\"),'TSA Input'!B1073,\"Ineligible\"))","v":""},{"$f":"IF('TSA Input'!J1073=\"\",\"\",IF(OR('TSA Input'!J1073=\"Yes\",'TSA Input'!J1073=\"Contingent\"),'TSA Input'!I1073,\"\"))","v":""},{"$f":"IF('TSA Input'!J1073=\"\",\"\",IF(OR('TSA Input'!J1073=\"Yes\",'TSA Input'!J1073=\"Contingent\"),'TSA Input'!C1073,\"\"))","v":""},{"$f":"IF('TSA Input'!J1073=\"\",\"\",IF(OR('TSA Input'!J1073=\"Yes\",'TSA Input'!J1073=\"Contingent\"),'TSA Input'!D1073,\"\"))","v":""},{"$f":"IF('TSA Input'!J1073=\"\",\"\",IF(OR('TSA Input'!J1073=\"Yes\",'TSA Input'!J1073=\"Contingent\"),'TSA Input'!G1073,\"\"))","v":""},{"$f":"IF('TSA Input'!J1073=\"\",\"\",IF(OR('TSA Input'!J1073=\"Yes\",'TSA Input'!J1073=\"Contingent\"),'TSA Input'!F1073,\"\"))","v":""},"",{"$f":"IF('TSA Input'!J1073=\"\",\"\",IF(OR('TSA Input'!J1073=\"Yes\",'TSA Input'!J1073=\"Contingent\"),'TSA Input'!D1073,\"\"))","v":""},{"$f":"IF('TSA Input'!J1073=\"\",\"\",IF(OR('TSA Input'!J1073=\"Yes\",'TSA Input'!J1073=\"Contingent\"),'TSA Input'!G1073,\"\"))","v":""},{"$f":"IF('TSA Input'!J1073=\"\",\"\",IF(OR('TSA Input'!J1073=\"Yes\",'TSA Input'!J1073=\"Contingent\"),'TSA Input'!F1073,\"\"))","v":""},"","Required","Required"]
["",null,{"$f":"IF('TSA Input'!J1074=\"\",\"\",IF(OR('TSA Input'!J1074=\"Yes\",'TSA Input'!J1074=\"Contingent\"),'TSA Input'!B1074,\"Ineligible\"))","v":""},{"$f":"IF('TSA Input'!J1074=\"\",\"\",IF(OR('TSA Input'!J1074=\"Yes\",'TSA Input'!J1074=\"Contingent\"),'TSA Input'!I1074,\"\"))","v":""},{"$f":"IF('TSA Input'!J1074=\"\",\"\",IF(OR('TSA Input'!J1074=\"Yes\",'TSA Input'!J1074=\"Contingent\"),'TSA Input'!C1074,\"\"))","v":""},{"$f":"IF('TSA Input'!J1074=\"\",\"\",IF(OR('TSA Input'!J1074=\"Yes\",'TSA Input'!J1074=\"Contingent\"),'TSA Input'!D1074,\"\"))","v":""},{"$f":"IF('TSA Input'!J1074=\"\",\"\",IF(OR('TSA Input'!J1074=\"Yes\",'TSA Input'!J1074=\"Contingent\"),'TSA Input'!G1074,\"\"))","v":""},{"$f":"IF('TSA Input'!J1074=\"\",\"\",IF(OR('TSA Input'!J1074=\"Yes\",'TSA Input'!J1074=\"Contingent\"),'TSA Input'!F1074,\"\"))","v":""},"",{"$f":"IF('TSA Input'!J1074=\"\",\"\",IF(OR('TSA Input'!J1074=\"Yes\",'TSA Input'!J1074=\"Contingent\"),'TSA Input'!D1074,\"\"))","v":""},{"$f":"IF('TSA Input'!J1074=\"\",\"\",IF(OR('TSA Input'!J1074=\"Yes\",'TSA Input'!J1074=\"Contingent\"),'TSA Input'!G1074,\"\"))","v":""},{"$f":"IF('TSA Input'!J1074=\"\",\"\",IF(OR('TSA Input'!J1074=\"Yes\",'TSA Input'!J1074=\"Contingent\"),'TSA Input'!F1074,\"\"))","v":""},"","Required","Required"]
["",null,{"$f":"IF('TSA Input'!J1075=\"\",\"\",IF(OR('TSA Input'!J1075=\"Yes\",'TSA Input'!J1075=\"Contingent\"),'TSA Input'!B1075,\"Ineligible\"))","v":""},{"$f":"IF('TSA Input'!J1075=\"\",\"\",IF(OR('TSA Input'!J1075=\"Yes\",'TSA Input'!J1075=\"Contingent\"),'TSA Input'!I1075,\"\"))","v":""},{"$f":"IF('TSA Input'!J1075=\"\",\"\",IF(OR('TSA Input'!J1075=\"Yes\",'TSA Input'!J1075=\"Contingent\"),'TSA Input'!C1075,\"\"))","v":""},{"$f":"IF('TSA Input'!J1075=\"\",\"\",IF(OR('TSA Input'!J1075=\"Yes\",'TSA Input'!J1075=\"Contingent\"),'TSA Input'!D1075,\"\"))","v":""},{"$f":"IF('TSA Input'!J1075=\"\",\"\",IF(OR('TSA Input'!J1075=\"Yes\",'TSA Input'!J1075=\"Contingent\"),'TSA Input'!G1075,\"\"))","v":""},{"$f":"IF('TSA Input'!J1075=\"\",\"\",IF(OR('TSA Input'!J1075=\"Yes\",'TSA Input'!J1075=\"Contingent\"),'TSA Input'!F1075,\"\"))","v":""},"",{"$f":"IF('TSA Input'!J1075=\"\",\"\",IF(OR('TSA Input'!J1075=\"Yes\",'TSA Input'!J1075=\"Contingent\"),'TSA Input'!D1075,\"\"))","v":""},{"$f":"IF('TSA Input'!J1075=\"\",\"\",IF(OR('TSA Input'!J1075=\"Yes\",'TSA Input'!J1075=\"Contingent\"),'TSA Input'!G1075,\"\"))","v":""},{"$f":"IF('TSA Input'!J1075=\"\",\"\",IF(OR('TSA Input'!J1075=\"Yes\",'TSA Input'!J1075=\"Contingent\"),'TSA Input'!F1075,\"\"))","v":""},"","Required","Required"]
["",null,{"$f":"IF('TSA Input'!J1076=\"\",\"\",IF(OR('TSA Input'!J1076=\"Yes\",'TSA Input'!J1076=\"Contingent\"),'TSA Input'!B1076,\"Ineligible\"))","v":""},{"$f":"IF('TSA Input'!J1076=\"\",\"\",IF(OR('TSA Input'!J1076=\"Yes\",'TSA Input'!J1076=\"Contingent\"),'TSA Input'!I1076,\"\"))","v":""},{"$f":"IF('TSA Input'!J1076=\"\",\"\",IF(OR('TSA Input'!J1076=\"Yes\",'TSA Input'!J1076=\"Contingent\"),'TSA Input'!C1076,\"\"))","v":""},{"$f":"IF('TSA Input'!J1076=\"\",\"\",IF(OR('TSA Input'!J1076=\"Yes\",'TSA Input'!J1076=\"Contingent\"),'TSA Input'!D1076,\"\"))","v":""},{"$f":"IF('TSA Input'!J1076=\"\",\"\",IF(OR('TSA Input'!J1076=\"Yes\",'TSA Input'!J1076=\"Contingent\"),'TSA Input'!G1076,\"\"))","v":""},{"$f":"IF('TSA Input'!J1076=\"\",\"\",IF(OR('TSA Input'!J1076=\"Yes\",'TSA Input'!J1076=\"Contingent\"),'TSA Input'!F1076,\"\"))","v":""},"",{"$f":"IF('TSA Input'!J1076=\"\",\"\",IF(OR('TSA Input'!J1076=\"Yes\",'TSA Input'!J1076=\"Contingent\"),'TSA Input'!D1076,\"\"))","v":""},{"$f":"IF('TSA Input'!J1076=\"\",\"\",IF(OR('TSA Input'!J1076=\"Yes\",'TSA Input'!J1076=\"Contingent\"),'TSA Input'!G1076,\"\"))","v":""},{"$f":"IF('TSA Input'!J1076=\"\",\"\",IF(OR('TSA Input'!J1076=\"Yes\",'TSA Input'!J1076=\"Contingent\"),'TSA Input'!F1076,\"\"))","v":""},"","Required","Required"]
["",null,{"$f":"IF('TSA Input'!J1077=\"\",\"\",IF(OR('TSA Input'!J1077=\"Yes\",'TSA Input'!J1077=\"Contingent\"),'TSA Input'!B1077,\"Ineligible\"))","v":""},{"$f":"IF('TSA Input'!J1077=\"\",\"\",IF(OR('TSA Input'!J1077=\"Yes\",'TSA Input'!J1077=\"Contingent\"),'TSA Input'!I1077,\"\"))","v":""},{"$f":"IF('TSA Input'!J1077=\"\",\"\",IF(OR('TSA Input'!J1077=\"Yes\",'TSA Input'!J1077=\"Contingent\"),'TSA Input'!C1077,\"\"))","v":""},{"$f":"IF('TSA Input'!J1077=\"\",\"\",IF(OR('TSA Input'!J1077=\"Yes\",'TSA Input'!J1077=\"Contingent\"),'TSA Input'!D1077,\"\"))","v":""},{"$f":"IF('TSA Input'!J1077=\"\",\"\",IF(OR('TSA Input'!J1077=\"Yes\",'TSA Input'!J1077=\"Contingent\"),'TSA Input'!G1077,\"\"))","v":""},{"$f":"IF('TSA Input'!J1077=\"\",\"\",IF(OR('TSA Input'!J1077=\"Yes\",'TSA Input'!J1077=\"Contingent\"),'TSA Input'!F1077,\"\"))","v":""},"",{"$f":"IF('TSA Input'!J1077=\"\",\"\",IF(OR('TSA Input'!J1077=\"Yes\",'TSA Input'!J1077=\"Contingent\"),'TSA Input'!D1077,\"\"))","v":""},{"$f":"IF('TSA Input'!J1077=\"\",\"\",IF(OR('TSA Input'!J1077=\"Yes\",'TSA Input'!J1077=\"Contingent\"),'TSA Input'!G1077,\"\"))","v":""},{"$f":"IF('TSA Input'!J1077=\"\",\"\",IF(OR('TSA Input'!J1077=\"Yes\",'TSA Input'!J1077=\"Contingent\"),'TSA Input'!F1077,\"\"))","v":""},"","Required","Required"]
["",null,{"$f":"IF('TSA Input'!J1078=\"\",\"\",IF(OR('TSA Input'!J1078=\"Yes\",'TSA Input'!J1078=\"Contingent\"),'TSA Input'!B1078,\"Ineligible\"))","v":""},{"$f":"IF('TSA Input'!J1078=\"\",\"\",IF(OR('TSA Input'!J1078=\"Yes\",'TSA Input'!J1078=\"Contingent\"),'TSA Input'!I1078,\"\"))","v":""},{"$f":"IF('TSA Input'!J1078=\"\",\"\",IF(OR('TSA Input'!J1078=\"Yes\",'TSA Input'!J1078=\"Contingent\"),'TSA Input'!C1078,\"\"))","v":""},{"$f":"IF('TSA Input'!J1078=\"\",\"\",IF(OR('TSA Input'!J1078=\"Yes\",'TSA Input'!J1078=\"Contingent\"),'TSA Input'!D1078,\"\"))","v":""},{"$f":"IF('TSA Input'!J1078=\"\",\"\",IF(OR('TSA Input'!J1078=\"Yes\",'TSA Input'!J1078=\"Contingent\"),'TSA Input'!G1078,\"\"))","v":""},{"$f":"IF('TSA Input'!J1078=\"\",\"\",IF(OR('TSA Input'!J1078=\"Yes\",'TSA Input'!J1078=\"Contingent\"),'TSA Input'!F1078,\"\"))","v":""},"",{"$f":"IF('TSA Input'!J1078=\"\",\"\",IF(OR('TSA Input'!J1078=\"Yes\",'TSA Input'!J1078=\"Contingent\"),'TSA Input'!D1078,\"\"))","v":""},{"$f":"IF('TSA Input'!J1078=\"\",\"\",IF(OR('TSA Input'!J1078=\"Yes\",'TSA Input'!J1078=\"Contingent\"),'TSA Input'!G1078,\"\"))","v":""},{"$f":"IF('TSA Input'!J1078=\"\",\"\",IF(OR('TSA Input'!J1078=\"Yes\",'TSA Input'!J1078=\"Contingent\"),'TSA Input'!F1078,\"\"))","v":""},"","Required","Required"]
["",null,{"$f":"IF('TSA Input'!J1079=\"\",\"\",IF(OR('TSA Input'!J1079=\"Yes\",'TSA Input'!J1079=\"Contingent\"),'TSA Input'!B1079,\"Ineligible\"))","v":""},{"$f":"IF('TSA Input'!J1079=\"\",\"\",IF(OR('TSA Input'!J1079=\"Yes\",'TSA Input'!J1079=\"Contingent\"),'TSA Input'!I1079,\"\"))","v":""},{"$f":"IF('TSA Input'!J1079=\"\",\"\",IF(OR('TSA Input'!J1079=\"Yes\",'TSA Input'!J1079=\"Contingent\"),'TSA Input'!C1079,\"\"))","v":""},{"$f":"IF('TSA Input'!J1079=\"\",\"\",IF(OR('TSA Input'!J1079=\"Yes\",'TSA Input'!J1079=\"Contingent\"),'TSA Input'!D1079,\"\"))","v":""},{"$f":"IF('TSA Input'!J1079=\"\",\"\",IF(OR('TSA Input'!J1079=\"Yes\",'TSA Input'!J1079=\"Contingent\"),'TSA Input'!G1079,\"\"))","v":""},{"$f":"IF('TSA Input'!J1079=\"\",\"\",IF(OR('TSA Input'!J1079=\"Yes\",'TSA Input'!J1079=\"Contingent\"),'TSA Input'!F1079,\"\"))","v":""},"",{"$f":"IF('TSA Input'!J1079=\"\",\"\",IF(OR('TSA Input'!J1079=\"Yes\",'TSA Input'!J1079=\"Contingent\"),'TSA Input'!D1079,\"\"))","v":""},{"$f":"IF('TSA Input'!J1079=\"\",\"\",IF(OR('TSA Input'!J1079=\"Yes\",'TSA Input'!J1079=\"Contingent\"),'TSA Input'!G1079,\"\"))","v":""},{"$f":"IF('TSA Input'!J1079=\"\",\"\",IF(OR('TSA Input'!J1079=\"Yes\",'TSA Input'!J1079=\"Contingent\"),'TSA Input'!F1079,\"\"))","v":""},"","Required","Required"]
["",null,{"$f":"IF('TSA Input'!J1080=\"\",\"\",IF(OR('TSA Input'!J1080=\"Yes\",'TSA Input'!J1080=\"Contingent\"),'TSA Input'!B1080,\"Ineligible\"))","v":""},{"$f":"IF('TSA Input'!J1080=\"\",\"\",IF(OR('TSA Input'!J1080=\"Yes\",'TSA Input'!J1080=\"Contingent\"),'TSA Input'!I1080,\"\"))","v":""},{"$f":"IF('TSA Input'!J1080=\"\",\"\",IF(OR('TSA Input'!J1080=\"Yes\",'TSA Input'!J1080=\"Contingent\"),'TSA Input'!C1080,\"\"))","v":""},{"$f":"IF('TSA Input'!J1080=\"\",\"\",IF(OR('TSA Input'!J1080=\"Yes\",'TSA Input'!J1080=\"Contingent\"),'TSA Input'!D1080,\"\"))","v":""},{"$f":"IF('TSA Input'!J1080=\"\",\"\",IF(OR('TSA Input'!J1080=\"Yes\",'TSA Input'!J1080=\"Contingent\"),'TSA Input'!G1080,\"\"))","v":""},{"$f":"IF('TSA Input'!J1080=\"\",\"\",IF(OR('TSA Input'!J1080=\"Yes\",'TSA Input'!J1080=\"Contingent\"),'TSA Input'!F1080,\"\"))","v":""},"",{"$f":"IF('TSA Input'!J1080=\"\",\"\",IF(OR('TSA Input'!J1080=\"Yes\",'TSA Input'!J1080=\"Contingent\"),'TSA Input'!D1080,\"\"))","v":""},{"$f":"IF('TSA Input'!J1080=\"\",\"\",IF(OR('TSA Input'!J1080=\"Yes\",'TSA Input'!J1080=\"Contingent\"),'TSA Input'!G1080,\"\"))","v":""},{"$f":"IF('TSA Input'!J1080=\"\",\"\",IF(OR('TSA Input'!J1080=\"Yes\",'TSA Input'!J1080=\"Contingent\"),'TSA Input'!F1080,\"\"))","v":""},"","Required","Required"]
["",null,{"$f":"IF('TSA Input'!J1081=\"\",\"\",IF(OR('TSA Input'!J1081=\"Yes\",'TSA Input'!J1081=\"Contingent\"),'TSA Input'!B1081,\"Ineligible\"))","v":""},{"$f":"IF('TSA Input'!J1081=\"\",\"\",IF(OR('TSA Input'!J1081=\"Yes\",'TSA Input'!J1081=\"Contingent\"),'TSA Input'!I1081,\"\"))","v":""},{"$f":"IF('TSA Input'!J1081=\"\",\"\",IF(OR('TSA Input'!J1081=\"Yes\",'TSA Input'!J1081=\"Contingent\"),'TSA Input'!C1081,\"\"))","v":""},{"$f":"IF('TSA Input'!J1081=\"\",\"\",IF(OR('TSA Input'!J1081=\"Yes\",'TSA Input'!J1081=\"Contingent\"),'TSA Input'!D1081,\"\"))","v":""},{"$f":"IF('TSA Input'!J1081=\"\",\"\",IF(OR('TSA Input'!J1081=\"Yes\",'TSA Input'!J1081=\"Contingent\"),'TSA Input'!G1081,\"\"))","v":""},{"$f":"IF('TSA Input'!J1081=\"\",\"\",IF(OR('TSA Input'!J1081=\"Yes\",'TSA Input'!J1081=\"Contingent\"),'TSA Input'!F1081,\"\"))","v":""},"",{"$f":"IF('TSA Input'!J1081=\"\",\"\",IF(OR('TSA Input'!J1081=\"Yes\",'TSA Input'!J1081=\"Contingent\"),'TSA Input'!D1081,\"\"))","v":""},{"$f":"IF('TSA Input'!J1081=\"\",\"\",IF(OR('TSA Input'!J1081=\"Yes\",'TSA Input'!J1081=\"Contingent\"),'TSA Input'!G1081,\"\"))","v":""},{"$f":"IF('TSA Input'!J1081=\"\",\"\",IF(OR('TSA Input'!J1081=\"Yes\",'TSA Input'!J1081=\"Contingent\"),'TSA Input'!F1081,\"\"))","v":""},"","Required","Required"]
["",null,{"$f":"IF('TSA Input'!J1082=\"\",\"\",IF(OR('TSA Input'!J1082=\"Yes\",'TSA Input'!J1082=\"Contingent\"),'TSA Input'!B1082,\"Ineligible\"))","v":""},{"$f":"IF('TSA Input'!J1082=\"\",\"\",IF(OR('TSA Input'!J1082=\"Yes\",'TSA Input'!J1082=\"Contingent\"),'TSA Input'!I1082,\"\"))","v":""},{"$f":"IF('TSA Input'!J1082=\"\",\"\",IF(OR('TSA Input'!J1082=\"Yes\",'TSA Input'!J1082=\"Contingent\"),'TSA Input'!C1082,\"\"))","v":""},{"$f":"IF('TSA Input'!J1082=\"\",\"\",IF(OR('TSA Input'!J1082=\"Yes\",'TSA Input'!J1082=\"Contingent\"),'TSA Input'!D1082,\"\"))","v":""},{"$f":"IF('TSA Input'!J1082=\"\",\"\",IF(OR('TSA Input'!J1082=\"Yes\",'TSA Input'!J1082=\"Contingent\"),'TSA Input'!G1082,\"\"))","v":""},{"$f":"IF('TSA Input'!J1082=\"\",\"\",IF(OR('TSA Input'!J1082=\"Yes\",'TSA Input'!J1082=\"Contingent\"),'TSA Input'!F1082,\"\"))","v":""},"",{"$f":"IF('TSA Input'!J1082=\"\",\"\",IF(OR('TSA Input'!J1082=\"Yes\",'TSA Input'!J1082=\"Contingent\"),'TSA Input'!D1082,\"\"))","v":""},{"$f":"IF('TSA Input'!J1082=\"\",\"\",IF(OR('TSA Input'!J1082=\"Yes\",'TSA Input'!J1082=\"Contingent\"),'TSA Input'!G1082,\"\"))","v":""},{"$f":"IF('TSA Input'!J1082=\"\",\"\",IF(OR('TSA Input'!J1082=\"Yes\",'TSA Input'!J1082=\"Contingent\"),'TSA Input'!F1082,\"\"))","v":""},"","Required","Required"]
["",null,{"$f":"IF('TSA Input'!J1083=\"\",\"\",IF(OR('TSA Input'!J1083=\"Yes\",'TSA Input'!J1083=\"Contingent\"),'TSA Input'!B1083,\"Ineligible\"))","v":""},{"$f":"IF('TSA Input'!J1083=\"\",\"\",IF(OR('TSA Input'!J1083=\"Yes\",'TSA Input'!J1083=\"Contingent\"),'TSA Input'!I1083,\"\"))","v":""},{"$f":"IF('TSA Input'!J1083=\"\",\"\",IF(OR('TSA Input'!J1083=\"Yes\",'TSA Input'!J1083=\"Contingent\"),'TSA Input'!C1083,\"\"))","v":""},{"$f":"IF('TSA Input'!J1083=\"\",\"\",IF(OR('TSA Input'!J1083=\"Yes\",'TSA Input'!J1083=\"Contingent\"),'TSA Input'!D1083,\"\"))","v":""},{"$f":"IF('TSA Input'!J1083=\"\",\"\",IF(OR('TSA Input'!J1083=\"Yes\",'TSA Input'!J1083=\"Contingent\"),'TSA Input'!G1083,\"\"))","v":""},{"$f":"IF('TSA Input'!J1083=\"\",\"\",IF(OR('TSA Input'!J1083=\"Yes\",'TSA Input'!J1083=\"Contingent\"),'TSA Input'!F1083,\"\"))","v":""},"",{"$f":"IF('TSA Input'!J1083=\"\",\"\",IF(OR('TSA Input'!J1083=\"Yes\",'TSA Input'!J1083=\"Contingent\"),'TSA Input'!D1083,\"\"))","v":""},{"$f":"IF('TSA Input'!J1083=\"\",\"\",IF(OR('TSA Input'!J1083=\"Yes\",'TSA Input'!J1083=\"Contingent\"),'TSA Input'!G1083,\"\"))","v":""},{"$f":"IF('TSA Input'!J1083=\"\",\"\",IF(OR('TSA Input'!J1083=\"Yes\",'TSA Input'!J1083=\"Contingent\"),'TSA Input'!F1083,\"\"))","v":""},"","Required","Required"]
["",null,{"$f":"IF('TSA Input'!J1084=\"\",\"\",IF(OR('TSA Input'!J1084=\"Yes\",'TSA Input'!J1084=\"Contingent\"),'TSA Input'!B1084,\"Ineligible\"))","v":""},{"$f":"IF('TSA Input'!J1084=\"\",\"\",IF(OR('TSA Input'!J1084=\"Yes\",'TSA Input'!J1084=\"Contingent\"),'TSA Input'!I1084,\"\"))","v":""},{"$f":"IF('TSA Input'!J1084=\"\",\"\",IF(OR('TSA Input'!J1084=\"Yes\",'TSA Input'!J1084=\"Contingent\"),'TSA Input'!C1084,\"\"))","v":""},{"$f":"IF('TSA Input'!J1084=\"\",\"\",IF(OR('TSA Input'!J1084=\"Yes\",'TSA Input'!J1084=\"Contingent\"),'TSA Input'!D1084,\"\"))","v":""},{"$f":"IF('TSA Input'!J1084=\"\",\"\",IF(OR('TSA Input'!J1084=\"Yes\",'TSA Input'!J1084=\"Contingent\"),'TSA Input'!G1084,\"\"))","v":""},{"$f":"IF('TSA Input'!J1084=\"\",\"\",IF(OR('TSA Input'!J1084=\"Yes\",'TSA Input'!J1084=\"Contingent\"),'TSA Input'!F1084,\"\"))","v":""},"",{"$f":"IF('TSA Input'!J1084=\"\",\"\",IF(OR('TSA Input'!J1084=\"Yes\",'TSA Input'!J1084=\"Contingent\"),'TSA Input'!D1084,\"\"))","v":""},{"$f":"IF('TSA Input'!J1084=\"\",\"\",IF(OR('TSA Input'!J1084=\"Yes\",'TSA Input'!J1084=\"Contingent\"),'TSA Input'!G1084,\"\"))","v":""},{"$f":"IF('TSA Input'!J1084=\"\",\"\",IF(OR('TSA Input'!J1084=\"Yes\",'TSA Input'!J1084=\"Contingent\"),'TSA Input'!F1084,\"\"))","v":""},"","Required","Required"]
["",null,{"$f":"IF('TSA Input'!J1085=\"\",\"\",IF(OR('TSA Input'!J1085=\"Yes\",'TSA Input'!J1085=\"Contingent\"),'TSA Input'!B1085,\"Ineligible\"))","v":""},{"$f":"IF('TSA Input'!J1085=\"\",\"\",IF(OR('TSA Input'!J1085=\"Yes\",'TSA Input'!J1085=\"Contingent\"),'TSA Input'!I1085,\"\"))","v":""},{"$f":"IF('TSA Input'!J1085=\"\",\"\",IF(OR('TSA Input'!J1085=\"Yes\",'TSA Input'!J1085=\"Contingent\"),'TSA Input'!C1085,\"\"))","v":""},{"$f":"IF('TSA Input'!J1085=\"\",\"\",IF(OR('TSA Input'!J1085=\"Yes\",'TSA Input'!J1085=\"Contingent\"),'TSA Input'!D1085,\"\"))","v":""},{"$f":"IF('TSA Input'!J1085=\"\",\"\",IF(OR('TSA Input'!J1085=\"Yes\",'TSA Input'!J1085=\"Contingent\"),'TSA Input'!G1085,\"\"))","v":""},{"$f":"IF('TSA Input'!J1085=\"\",\"\",IF(OR('TSA Input'!J1085=\"Yes\",'TSA Input'!J1085=\"Contingent\"),'TSA Input'!F1085,\"\"))","v":""},"",{"$f":"IF('TSA Input'!J1085=\"\",\"\",IF(OR('TSA Input'!J1085=\"Yes\",'TSA Input'!J1085=\"Contingent\"),'TSA Input'!D1085,\"\"))","v":""},{"$f":"IF('TSA Input'!J1085=\"\",\"\",IF(OR('TSA Input'!J1085=\"Yes\",'TSA Input'!J1085=\"Contingent\"),'TSA Input'!G1085,\"\"))","v":""},{"$f":"IF('TSA Input'!J1085=\"\",\"\",IF(OR('TSA Input'!J1085=\"Yes\",'TSA Input'!J1085=\"Contingent\"),'TSA Input'!F1085,\"\"))","v":""},"","Required","Required"]
["",null,{"$f":"IF('TSA Input'!J1086=\"\",\"\",IF(OR('TSA Input'!J1086=\"Yes\",'TSA Input'!J1086=\"Contingent\"),'TSA Input'!B1086,\"Ineligible\"))","v":""},{"$f":"IF('TSA Input'!J1086=\"\",\"\",IF(OR('TSA Input'!J1086=\"Yes\",'TSA Input'!J1086=\"Contingent\"),'TSA Input'!I1086,\"\"))","v":""},{"$f":"IF('TSA Input'!J1086=\"\",\"\",IF(OR('TSA Input'!J1086=\"Yes\",'TSA Input'!J1086=\"Contingent\"),'TSA Input'!C1086,\"\"))","v":""},{"$f":"IF('TSA Input'!J1086=\"\",\"\",IF(OR('TSA Input'!J1086=\"Yes\",'TSA Input'!J1086=\"Contingent\"),'TSA Input'!D1086,\"\"))","v":""},{"$f":"IF('TSA Input'!J1086=\"\",\"\",IF(OR('TSA Input'!J1086=\"Yes\",'TSA Input'!J1086=\"Contingent\"),'TSA Input'!G1086,\"\"))","v":""},{"$f":"IF('TSA Input'!J1086=\"\",\"\",IF(OR('TSA Input'!J1086=\"Yes\",'TSA Input'!J1086=\"Contingent\"),'TSA Input'!F1086,\"\"))","v":""},"",{"$f":"IF('TSA Input'!J1086=\"\",\"\",IF(OR('TSA Input'!J1086=\"Yes\",'TSA Input'!J1086=\"Contingent\"),'TSA Input'!D1086,\"\"))","v":""},{"$f":"IF('TSA Input'!J1086=\"\",\"\",IF(OR('TSA Input'!J1086=\"Yes\",'TSA Input'!J1086=\"Contingent\"),'TSA Input'!G1086,\"\"))","v":""},{"$f":"IF('TSA Input'!J1086=\"\",\"\",IF(OR('TSA Input'!J1086=\"Yes\",'TSA Input'!J1086=\"Contingent\"),'TSA Input'!F1086,\"\"))","v":""},"","Required","Required"]
["",null,{"$f":"IF('TSA Input'!J1087=\"\",\"\",IF(OR('TSA Input'!J1087=\"Yes\",'TSA Input'!J1087=\"Contingent\"),'TSA Input'!B1087,\"Ineligible\"))","v":""},{"$f":"IF('TSA Input'!J1087=\"\",\"\",IF(OR('TSA Input'!J1087=\"Yes\",'TSA Input'!J1087=\"Contingent\"),'TSA Input'!I1087,\"\"))","v":""},{"$f":"IF('TSA Input'!J1087=\"\",\"\",IF(OR('TSA Input'!J1087=\"Yes\",'TSA Input'!J1087=\"Contingent\"),'TSA Input'!C1087,\"\"))","v":""},{"$f":"IF('TSA Input'!J1087=\"\",\"\",IF(OR('TSA Input'!J1087=\"Yes\",'TSA Input'!J1087=\"Contingent\"),'TSA Input'!D1087,\"\"))","v":""},{"$f":"IF('TSA Input'!J1087=\"\",\"\",IF(OR('TSA Input'!J1087=\"Yes\",'TSA Input'!J1087=\"Contingent\"),'TSA Input'!G1087,\"\"))","v":""},{"$f":"IF('TSA Input'!J1087=\"\",\"\",IF(OR('TSA Input'!J1087=\"Yes\",'TSA Input'!J1087=\"Contingent\"),'TSA Input'!F1087,\"\"))","v":""},"",{"$f":"IF('TSA Input'!J1087=\"\",\"\",IF(OR('TSA Input'!J1087=\"Yes\",'TSA Input'!J1087=\"Contingent\"),'TSA Input'!D1087,\"\"))","v":""},{"$f":"IF('TSA Input'!J1087=\"\",\"\",IF(OR('TSA Input'!J1087=\"Yes\",'TSA Input'!J1087=\"Contingent\"),'TSA Input'!G1087,\"\"))","v":""},{"$f":"IF('TSA Input'!J1087=\"\",\"\",IF(OR('TSA Input'!J1087=\"Yes\",'TSA Input'!J1087=\"Contingent\"),'TSA Input'!F1087,\"\"))","v":""},"","Required","Required"]
["",null,{"$f":"IF('TSA Input'!J1088=\"\",\"\",IF(OR('TSA Input'!J1088=\"Yes\",'TSA Input'!J1088=\"Contingent\"),'TSA Input'!B1088,\"Ineligible\"))","v":""},{"$f":"IF('TSA Input'!J1088=\"\",\"\",IF(OR('TSA Input'!J1088=\"Yes\",'TSA Input'!J1088=\"Contingent\"),'TSA Input'!I1088,\"\"))","v":""},{"$f":"IF('TSA Input'!J1088=\"\",\"\",IF(OR('TSA Input'!J1088=\"Yes\",'TSA Input'!J1088=\"Contingent\"),'TSA Input'!C1088,\"\"))","v":""},{"$f":"IF('TSA Input'!J1088=\"\",\"\",IF(OR('TSA Input'!J1088=\"Yes\",'TSA Input'!J1088=\"Contingent\"),'TSA Input'!D1088,\"\"))","v":""},{"$f":"IF('TSA Input'!J1088=\"\",\"\",IF(OR('TSA Input'!J1088=\"Yes\",'TSA Input'!J1088=\"Contingent\"),'TSA Input'!G1088,\"\"))","v":""},{"$f":"IF('TSA Input'!J1088=\"\",\"\",IF(OR('TSA Input'!J1088=\"Yes\",'TSA Input'!J1088=\"Contingent\"),'TSA Input'!F1088,\"\"))","v":""},"",{"$f":"IF('TSA Input'!J1088=\"\",\"\",IF(OR('TSA Input'!J1088=\"Yes\",'TSA Input'!J1088=\"Contingent\"),'TSA Input'!D1088,\"\"))","v":""},{"$f":"IF('TSA Input'!J1088=\"\",\"\",IF(OR('TSA Input'!J1088=\"Yes\",'TSA Input'!J1088=\"Contingent\"),'TSA Input'!G1088,\"\"))","v":""},{"$f":"IF('TSA Input'!J1088=\"\",\"\",IF(OR('TSA Input'!J1088=\"Yes\",'TSA Input'!J1088=\"Contingent\"),'TSA Input'!F1088,\"\"))","v":""},"","Required","Required"]
["",null,{"$f":"IF('TSA Input'!J1089=\"\",\"\",IF(OR('TSA Input'!J1089=\"Yes\",'TSA Input'!J1089=\"Contingent\"),'TSA Input'!B1089,\"Ineligible\"))","v":""},{"$f":"IF('TSA Input'!J1089=\"\",\"\",IF(OR('TSA Input'!J1089=\"Yes\",'TSA Input'!J1089=\"Contingent\"),'TSA Input'!I1089,\"\"))","v":""},{"$f":"IF('TSA Input'!J1089=\"\",\"\",IF(OR('TSA Input'!J1089=\"Yes\",'TSA Input'!J1089=\"Contingent\"),'TSA Input'!C1089,\"\"))","v":""},{"$f":"IF('TSA Input'!J1089=\"\",\"\",IF(OR('TSA Input'!J1089=\"Yes\",'TSA Input'!J1089=\"Contingent\"),'TSA Input'!D1089,\"\"))","v":""},{"$f":"IF('TSA Input'!J1089=\"\",\"\",IF(OR('TSA Input'!J1089=\"Yes\",'TSA Input'!J1089=\"Contingent\"),'TSA Input'!G1089,\"\"))","v":""},{"$f":"IF('TSA Input'!J1089=\"\",\"\",IF(OR('TSA Input'!J1089=\"Yes\",'TSA Input'!J1089=\"Contingent\"),'TSA Input'!F1089,\"\"))","v":""},"",{"$f":"IF('TSA Input'!J1089=\"\",\"\",IF(OR('TSA Input'!J1089=\"Yes\",'TSA Input'!J1089=\"Contingent\"),'TSA Input'!D1089,\"\"))","v":""},{"$f":"IF('TSA Input'!J1089=\"\",\"\",IF(OR('TSA Input'!J1089=\"Yes\",'TSA Input'!J1089=\"Contingent\"),'TSA Input'!G1089,\"\"))","v":""},{"$f":"IF('TSA Input'!J1089=\"\",\"\",IF(OR('TSA Input'!J1089=\"Yes\",'TSA Input'!J1089=\"Contingent\"),'TSA Input'!F1089,\"\"))","v":""},"","Required","Required"]
["",null,{"$f":"IF('TSA Input'!J1090=\"\",\"\",IF(OR('TSA Input'!J1090=\"Yes\",'TSA Input'!J1090=\"Contingent\"),'TSA Input'!B1090,\"Ineligible\"))","v":""},{"$f":"IF('TSA Input'!J1090=\"\",\"\",IF(OR('TSA Input'!J1090=\"Yes\",'TSA Input'!J1090=\"Contingent\"),'TSA Input'!I1090,\"\"))","v":""},{"$f":"IF('TSA Input'!J1090=\"\",\"\",IF(OR('TSA Input'!J1090=\"Yes\",'TSA Input'!J1090=\"Contingent\"),'TSA Input'!C1090,\"\"))","v":""},{"$f":"IF('TSA Input'!J1090=\"\",\"\",IF(OR('TSA Input'!J1090=\"Yes\",'TSA Input'!J1090=\"Contingent\"),'TSA Input'!D1090,\"\"))","v":""},{"$f":"IF('TSA Input'!J1090=\"\",\"\",IF(OR('TSA Input'!J1090=\"Yes\",'TSA Input'!J1090=\"Contingent\"),'TSA Input'!G1090,\"\"))","v":""},{"$f":"IF('TSA Input'!J1090=\"\",\"\",IF(OR('TSA Input'!J1090=\"Yes\",'TSA Input'!J1090=\"Contingent\"),'TSA Input'!F1090,\"\"))","v":""},"",{"$f":"IF('TSA Input'!J1090=\"\",\"\",IF(OR('TSA Input'!J1090=\"Yes\",'TSA Input'!J1090=\"Contingent\"),'TSA Input'!D1090,\"\"))","v":""},{"$f":"IF('TSA Input'!J1090=\"\",\"\",IF(OR('TSA Input'!J1090=\"Yes\",'TSA Input'!J1090=\"Contingent\"),'TSA Input'!G1090,\"\"))","v":""},{"$f":"IF('TSA Input'!J1090=\"\",\"\",IF(OR('TSA Input'!J1090=\"Yes\",'TSA Input'!J1090=\"Contingent\"),'TSA Input'!F1090,\"\"))","v":""},"","Required","Required"]
["",null,{"$f":"IF('TSA Input'!J1091=\"\",\"\",IF(OR('TSA Input'!J1091=\"Yes\",'TSA Input'!J1091=\"Contingent\"),'TSA Input'!B1091,\"Ineligible\"))","v":""},{"$f":"IF('TSA Input'!J1091=\"\",\"\",IF(OR('TSA Input'!J1091=\"Yes\",'TSA Input'!J1091=\"Contingent\"),'TSA Input'!I1091,\"\"))","v":""},{"$f":"IF('TSA Input'!J1091=\"\",\"\",IF(OR('TSA Input'!J1091=\"Yes\",'TSA Input'!J1091=\"Contingent\"),'TSA Input'!C1091,\"\"))","v":""},{"$f":"IF('TSA Input'!J1091=\"\",\"\",IF(OR('TSA Input'!J1091=\"Yes\",'TSA Input'!J1091=\"Contingent\"),'TSA Input'!D1091,\"\"))","v":""},{"$f":"IF('TSA Input'!J1091=\"\",\"\",IF(OR('TSA Input'!J1091=\"Yes\",'TSA Input'!J1091=\"Contingent\"),'TSA Input'!G1091,\"\"))","v":""},{"$f":"IF('TSA Input'!J1091=\"\",\"\",IF(OR('TSA Input'!J1091=\"Yes\",'TSA Input'!J1091=\"Contingent\"),'TSA Input'!F1091,\"\"))","v":""},"",{"$f":"IF('TSA Input'!J1091=\"\",\"\",IF(OR('TSA Input'!J1091=\"Yes\",'TSA Input'!J1091=\"Contingent\"),'TSA Input'!D1091,\"\"))","v":""},{"$f":"IF('TSA Input'!J1091=\"\",\"\",IF(OR('TSA Input'!J1091=\"Yes\",'TSA Input'!J1091=\"Contingent\"),'TSA Input'!G1091,\"\"))","v":""},{"$f":"IF('TSA Input'!J1091=\"\",\"\",IF(OR('TSA Input'!J1091=\"Yes\",'TSA Input'!J1091=\"Contingent\"),'TSA Input'!F1091,\"\"))","v":""},"","Required","Required"]
["",null,{"$f":"IF('TSA Input'!J1092=\"\",\"\",IF(OR('TSA Input'!J1092=\"Yes\",'TSA Input'!J1092=\"Contingent\"),'TSA Input'!B1092,\"Ineligible\"))","v":""},{"$f":"IF('TSA Input'!J1092=\"\",\"\",IF(OR('TSA Input'!J1092=\"Yes\",'TSA Input'!J1092=\"Contingent\"),'TSA Input'!I1092,\"\"))","v":""},{"$f":"IF('TSA Input'!J1092=\"\",\"\",IF(OR('TSA Input'!J1092=\"Yes\",'TSA Input'!J1092=\"Contingent\"),'TSA Input'!C1092,\"\"))","v":""},{"$f":"IF('TSA Input'!J1092=\"\",\"\",IF(OR('TSA Input'!J1092=\"Yes\",'TSA Input'!J1092=\"Contingent\"),'TSA Input'!D1092,\"\"))","v":""},{"$f":"IF('TSA Input'!J1092=\"\",\"\",IF(OR('TSA Input'!J1092=\"Yes\",'TSA Input'!J1092=\"Contingent\"),'TSA Input'!G1092,\"\"))","v":""},{"$f":"IF('TSA Input'!J1092=\"\",\"\",IF(OR('TSA Input'!J1092=\"Yes\",'TSA Input'!J1092=\"Contingent\"),'TSA Input'!F1092,\"\"))","v":""},{"$f":"IF($C1130=\"\",\"\",SUM(F1130:H1130))","v":""},{"$f":"IF('TSA Input'!J1092=\"\",\"\",IF(OR('TSA Input'!J1092=\"Yes\",'TSA Input'!J1092=\"Contingent\"),'TSA Input'!D1092,\"\"))","v":""},{"$f":"IF('TSA Input'!J1092=\"\",\"\",IF(OR('TSA Input'!J1092=\"Yes\",'TSA Input'!J1092=\"Contingent\"),'TSA Input'!G1092,\"\"))","v":""},{"$f":"IF('TSA Input'!J1092=\"\",\"\",IF(OR('TSA Input'!J1092=\"Yes\",'TSA Input'!J1092=\"Contingent\"),'TSA Input'!F1092,\"\"))","v":""},{"$f":"IF($C1130=\"\",\"\",SUM(J1130:L1130))","v":""},"Required","Required"]
["",null,{"$f":"IF('TSA Input'!J1093=\"\",\"\",IF(OR('TSA Input'!J1093=\"Yes\",'TSA Input'!J1093=\"Contingent\"),'TSA Input'!B1093,\"Ineligible\"))","v":""},{"$f":"IF('TSA Input'!J1093=\"\",\"\",IF(OR('TSA Input'!J1093=\"Yes\",'TSA Input'!J1093=\"Contingent\"),'TSA Input'!I1093,\"\"))","v":""},{"$f":"IF('TSA Input'!J1093=\"\",\"\",IF(OR('TSA Input'!J1093=\"Yes\",'TSA Input'!J1093=\"Contingent\"),'TSA Input'!C1093,\"\"))","v":""},{"$f":"IF('TSA Input'!J1093=\"\",\"\",IF(OR('TSA Input'!J1093=\"Yes\",'TSA Input'!J1093=\"Contingent\"),'TSA Input'!D1093,\"\"))","v":""},{"$f":"IF('TSA Input'!J1093=\"\",\"\",IF(OR('TSA Input'!J1093=\"Yes\",'TSA Input'!J1093=\"Contingent\"),'TSA Input'!G1093,\"\"))","v":""},{"$f":"IF('TSA Input'!J1093=\"\",\"\",IF(OR('TSA Input'!J1093=\"Yes\",'TSA Input'!J1093=\"Contingent\"),'TSA Input'!F1093,\"\"))","v":""},"",{"$f":"IF('TSA Input'!J1093=\"\",\"\",IF(OR('TSA Input'!J1093=\"Yes\",'TSA Input'!J1093=\"Contingent\"),'TSA Input'!D1093,\"\"))","v":""},{"$f":"IF('TSA Input'!J1093=\"\",\"\",IF(OR('TSA Input'!J1093=\"Yes\",'TSA Input'!J1093=\"Contingent\"),'TSA Input'!G1093,\"\"))","v":""},{"$f":"IF('TSA Input'!J1093=\"\",\"\",IF(OR('TSA Input'!J1093=\"Yes\",'TSA Input'!J1093=\"Contingent\"),'TSA Input'!F1093,\"\"))","v":""},"","Required","Required"]
["",null,{"$f":"IF('TSA Input'!J1094=\"\",\"\",IF(OR('TSA Input'!J1094=\"Yes\",'TSA Input'!J1094=\"Contingent\"),'TSA Input'!B1094,\"Ineligible\"))","v":""},{"$f":"IF('TSA Input'!J1094=\"\",\"\",IF(OR('TSA Input'!J1094=\"Yes\",'TSA Input'!J1094=\"Contingent\"),'TSA Input'!I1094,\"\"))","v":""},{"$f":"IF('TSA Input'!J1094=\"\",\"\",IF(OR('TSA Input'!J1094=\"Yes\",'TSA Input'!J1094=\"Contingent\"),'TSA Input'!C1094,\"\"))","v":""},{"$f":"IF('TSA Input'!J1094=\"\",\"\",IF(OR('TSA Input'!J1094=\"Yes\",'TSA Input'!J1094=\"Contingent\"),'TSA Input'!D1094,\"\"))","v":""},{"$f":"IF('TSA Input'!J1094=\"\",\"\",IF(OR('TSA Input'!J1094=\"Yes\",'TSA Input'!J1094=\"Contingent\"),'TSA Input'!G1094,\"\"))","v":""},{"$f":"IF('TSA Input'!J1094=\"\",\"\",IF(OR('TSA Input'!J1094=\"Yes\",'TSA Input'!J1094=\"Contingent\"),'TSA Input'!F1094,\"\"))","v":""},"",{"$f":"IF('TSA Input'!J1094=\"\",\"\",IF(OR('TSA Input'!J1094=\"Yes\",'TSA Input'!J1094=\"Contingent\"),'TSA Input'!D1094,\"\"))","v":""},{"$f":"IF('TSA Input'!J1094=\"\",\"\",IF(OR('TSA Input'!J1094=\"Yes\",'TSA Input'!J1094=\"Contingent\"),'TSA Input'!G1094,\"\"))","v":""},{"$f":"IF('TSA Input'!J1094=\"\",\"\",IF(OR('TSA Input'!J1094=\"Yes\",'TSA Input'!J1094=\"Contingent\"),'TSA Input'!F1094,\"\"))","v":""},"","Required","Required"]
["",null,{"$f":"IF('TSA Input'!J1095=\"\",\"\",IF(OR('TSA Input'!J1095=\"Yes\",'TSA Input'!J1095=\"Contingent\"),'TSA Input'!B1095,\"Ineligible\"))","v":""},{"$f":"IF('TSA Input'!J1095=\"\",\"\",IF(OR('TSA Input'!J1095=\"Yes\",'TSA Input'!J1095=\"Contingent\"),'TSA Input'!I1095,\"\"))","v":""},{"$f":"IF('TSA Input'!J1095=\"\",\"\",IF(OR('TSA Input'!J1095=\"Yes\",'TSA Input'!J1095=\"Contingent\"),'TSA Input'!C1095,\"\"))","v":""},{"$f":"IF('TSA Input'!J1095=\"\",\"\",IF(OR('TSA Input'!J1095=\"Yes\",'TSA Input'!J1095=\"Contingent\"),'TSA Input'!D1095,\"\"))","v":""},{"$f":"IF('TSA Input'!J1095=\"\",\"\",IF(OR('TSA Input'!J1095=\"Yes\",'TSA Input'!J1095=\"Contingent\"),'TSA Input'!G1095,\"\"))","v":""},{"$f":"IF('TSA Input'!J1095=\"\",\"\",IF(OR('TSA Input'!J1095=\"Yes\",'TSA Input'!J1095=\"Contingent\"),'TSA Input'!F1095,\"\"))","v":""},"",{"$f":"IF('TSA Input'!J1095=\"\",\"\",IF(OR('TSA Input'!J1095=\"Yes\",'TSA Input'!J1095=\"Contingent\"),'TSA Input'!D1095,\"\"))","v":""},{"$f":"IF('TSA Input'!J1095=\"\",\"\",IF(OR('TSA Input'!J1095=\"Yes\",'TSA Input'!J1095=\"Contingent\"),'TSA Input'!G1095,\"\"))","v":""},{"$f":"IF('TSA Input'!J1095=\"\",\"\",IF(OR('TSA Input'!J1095=\"Yes\",'TSA Input'!J1095=\"Contingent\"),'TSA Input'!F1095,\"\"))","v":""},"","Required","Required"]
["",null,{"$f":"IF('TSA Input'!J1096=\"\",\"\",IF(OR('TSA Input'!J1096=\"Yes\",'TSA Input'!J1096=\"Contingent\"),'TSA Input'!B1096,\"Ineligible\"))","v":""},{"$f":"IF('TSA Input'!J1096=\"\",\"\",IF(OR('TSA Input'!J1096=\"Yes\",'TSA Input'!J1096=\"Contingent\"),'TSA Input'!I1096,\"\"))","v":""},{"$f":"IF('TSA Input'!J1096=\"\",\"\",IF(OR('TSA Input'!J1096=\"Yes\",'TSA Input'!J1096=\"Contingent\"),'TSA Input'!C1096,\"\"))","v":""},{"$f":"IF('TSA Input'!J1096=\"\",\"\",IF(OR('TSA Input'!J1096=\"Yes\",'TSA Input'!J1096=\"Contingent\"),'TSA Input'!D1096,\"\"))","v":""},{"$f":"IF('TSA Input'!J1096=\"\",\"\",IF(OR('TSA Input'!J1096=\"Yes\",'TSA Input'!J1096=\"Contingent\"),'TSA Input'!G1096,\"\"))","v":""},{"$f":"IF('TSA Input'!J1096=\"\",\"\",IF(OR('TSA Input'!J1096=\"Yes\",'TSA Input'!J1096=\"Contingent\"),'TSA Input'!F1096,\"\"))","v":""},"",{"$f":"IF('TSA Input'!J1096=\"\",\"\",IF(OR('TSA Input'!J1096=\"Yes\",'TSA Input'!J1096=\"Contingent\"),'TSA Input'!D1096,\"\"))","v":""},{"$f":"IF('TSA Input'!J1096=\"\",\"\",IF(OR('TSA Input'!J1096=\"Yes\",'TSA Input'!J1096=\"Contingent\"),'TSA Input'!G1096,\"\"))","v":""},{"$f":"IF('TSA Input'!J1096=\"\",\"\",IF(OR('TSA Input'!J1096=\"Yes\",'TSA Input'!J1096=\"Contingent\"),'TSA Input'!F1096,\"\"))","v":""},"","Required","Required"]
["",null,{"$f":"IF('TSA Input'!J1097=\"\",\"\",IF(OR('TSA Input'!J1097=\"Yes\",'TSA Input'!J1097=\"Contingent\"),'TSA Input'!B1097,\"Ineligible\"))","v":""},{"$f":"IF('TSA Input'!J1097=\"\",\"\",IF(OR('TSA Input'!J1097=\"Yes\",'TSA Input'!J1097=\"Contingent\"),'TSA Input'!I1097,\"\"))","v":""},{"$f":"IF('TSA Input'!J1097=\"\",\"\",IF(OR('TSA Input'!J1097=\"Yes\",'TSA Input'!J1097=\"Contingent\"),'TSA Input'!C1097,\"\"))","v":""},{"$f":"IF('TSA Input'!J1097=\"\",\"\",IF(OR('TSA Input'!J1097=\"Yes\",'TSA Input'!J1097=\"Contingent\"),'TSA Input'!D1097,\"\"))","v":""},{"$f":"IF('TSA Input'!J1097=\"\",\"\",IF(OR('TSA Input'!J1097=\"Yes\",'TSA Input'!J1097=\"Contingent\"),'TSA Input'!G1097,\"\"))","v":""},{"$f":"IF('TSA Input'!J1097=\"\",\"\",IF(OR('TSA Input'!J1097=\"Yes\",'TSA Input'!J1097=\"Contingent\"),'TSA Input'!F1097,\"\"))","v":""},"",{"$f":"IF('TSA Input'!J1097=\"\",\"\",IF(OR('TSA Input'!J1097=\"Yes\",'TSA Input'!J1097=\"Contingent\"),'TSA Input'!D1097,\"\"))","v":""},{"$f":"IF('TSA Input'!J1097=\"\",\"\",IF(OR('TSA Input'!J1097=\"Yes\",'TSA Input'!J1097=\"Contingent\"),'TSA Input'!G1097,\"\"))","v":""},{"$f":"IF('TSA Input'!J1097=\"\",\"\",IF(OR('TSA Input'!J1097=\"Yes\",'TSA Input'!J1097=\"Contingent\"),'TSA Input'!F1097,\"\"))","v":""},"","Required","Required"]
["",null,{"$f":"IF('TSA Input'!J1098=\"\",\"\",IF(OR('TSA Input'!J1098=\"Yes\",'TSA Input'!J1098=\"Contingent\"),'TSA Input'!B1098,\"Ineligible\"))","v":""},{"$f":"IF('TSA Input'!J1098=\"\",\"\",IF(OR('TSA Input'!J1098=\"Yes\",'TSA Input'!J1098=\"Contingent\"),'TSA Input'!I1098,\"\"))","v":""},{"$f":"IF('TSA Input'!J1098=\"\",\"\",IF(OR('TSA Input'!J1098=\"Yes\",'TSA Input'!J1098=\"Contingent\"),'TSA Input'!C1098,\"\"))","v":""},{"$f":"IF('TSA Input'!J1098=\"\",\"\",IF(OR('TSA Input'!J1098=\"Yes\",'TSA Input'!J1098=\"Contingent\"),'TSA Input'!D1098,\"\"))","v":""},{"$f":"IF('TSA Input'!J1098=\"\",\"\",IF(OR('TSA Input'!J1098=\"Yes\",'TSA Input'!J1098=\"Contingent\"),'TSA Input'!G1098,\"\"))","v":""},{"$f":"IF('TSA Input'!J1098=\"\",\"\",IF(OR('TSA Input'!J1098=\"Yes\",'TSA Input'!J1098=\"Contingent\"),'TSA Input'!F1098,\"\"))","v":""},"",{"$f":"IF('TSA Input'!J1098=\"\",\"\",IF(OR('TSA Input'!J1098=\"Yes\",'TSA Input'!J1098=\"Contingent\"),'TSA Input'!D1098,\"\"))","v":""},{"$f":"IF('TSA Input'!J1098=\"\",\"\",IF(OR('TSA Input'!J1098=\"Yes\",'TSA Input'!J1098=\"Contingent\"),'TSA Input'!G1098,\"\"))","v":""},{"$f":"IF('TSA Input'!J1098=\"\",\"\",IF(OR('TSA Input'!J1098=\"Yes\",'TSA Input'!J1098=\"Contingent\"),'TSA Input'!F1098,\"\"))","v":""},"","Required","Required"]
["",null,{"$f":"IF('TSA Input'!J1099=\"\",\"\",IF(OR('TSA Input'!J1099=\"Yes\",'TSA Input'!J1099=\"Contingent\"),'TSA Input'!B1099,\"Ineligible\"))","v":""},{"$f":"IF('TSA Input'!J1099=\"\",\"\",IF(OR('TSA Input'!J1099=\"Yes\",'TSA Input'!J1099=\"Contingent\"),'TSA Input'!I1099,\"\"))","v":""},{"$f":"IF('TSA Input'!J1099=\"\",\"\",IF(OR('TSA Input'!J1099=\"Yes\",'TSA Input'!J1099=\"Contingent\"),'TSA Input'!C1099,\"\"))","v":""},{"$f":"IF('TSA Input'!J1099=\"\",\"\",IF(OR('TSA Input'!J1099=\"Yes\",'TSA Input'!J1099=\"Contingent\"),'TSA Input'!D1099,\"\"))","v":""},{"$f":"IF('TSA Input'!J1099=\"\",\"\",IF(OR('TSA Input'!J1099=\"Yes\",'TSA Input'!J1099=\"Contingent\"),'TSA Input'!G1099,\"\"))","v":""},{"$f":"IF('TSA Input'!J1099=\"\",\"\",IF(OR('TSA Input'!J1099=\"Yes\",'TSA Input'!J1099=\"Contingent\"),'TSA Input'!F1099,\"\"))","v":""},"",{"$f":"IF('TSA Input'!J1099=\"\",\"\",IF(OR('TSA Input'!J1099=\"Yes\",'TSA Input'!J1099=\"Contingent\"),'TSA Input'!D1099,\"\"))","v":""},{"$f":"IF('TSA Input'!J1099=\"\",\"\",IF(OR('TSA Input'!J1099=\"Yes\",'TSA Input'!J1099=\"Contingent\"),'TSA Input'!G1099,\"\"))","v":""},{"$f":"IF('TSA Input'!J1099=\"\",\"\",IF(OR('TSA Input'!J1099=\"Yes\",'TSA Input'!J1099=\"Contingent\"),'TSA Input'!F1099,\"\"))","v":""},"","Required","Required"]
["",null,{"$f":"IF('TSA Input'!J1100=\"\",\"\",IF(OR('TSA Input'!J1100=\"Yes\",'TSA Input'!J1100=\"Contingent\"),'TSA Input'!B1100,\"Ineligible\"))","v":""},{"$f":"IF('TSA Input'!J1100=\"\",\"\",IF(OR('TSA Input'!J1100=\"Yes\",'TSA Input'!J1100=\"Contingent\"),'TSA Input'!I1100,\"\"))","v":""},{"$f":"IF('TSA Input'!J1100=\"\",\"\",IF(OR('TSA Input'!J1100=\"Yes\",'TSA Input'!J1100=\"Contingent\"),'TSA Input'!C1100,\"\"))","v":""},{"$f":"IF('TSA Input'!J1100=\"\",\"\",IF(OR('TSA Input'!J1100=\"Yes\",'TSA Input'!J1100=\"Contingent\"),'TSA Input'!D1100,\"\"))","v":""},{"$f":"IF('TSA Input'!J1100=\"\",\"\",IF(OR('TSA Input'!J1100=\"Yes\",'TSA Input'!J1100=\"Contingent\"),'TSA Input'!G1100,\"\"))","v":""},{"$f":"IF('TSA Input'!J1100=\"\",\"\",IF(OR('TSA Input'!J1100=\"Yes\",'TSA Input'!J1100=\"Contingent\"),'TSA Input'!F1100,\"\"))","v":""},"",{"$f":"IF('TSA Input'!J1100=\"\",\"\",IF(OR('TSA Input'!J1100=\"Yes\",'TSA Input'!J1100=\"Contingent\"),'TSA Input'!D1100,\"\"))","v":""},{"$f":"IF('TSA Input'!J1100=\"\",\"\",IF(OR('TSA Input'!J1100=\"Yes\",'TSA Input'!J1100=\"Contingent\"),'TSA Input'!G1100,\"\"))","v":""},{"$f":"IF('TSA Input'!J1100=\"\",\"\",IF(OR('TSA Input'!J1100=\"Yes\",'TSA Input'!J1100=\"Contingent\"),'TSA Input'!F1100,\"\"))","v":""},"","Required","Required"]
["",null,{"$f":"IF('TSA Input'!J1101=\"\",\"\",IF(OR('TSA Input'!J1101=\"Yes\",'TSA Input'!J1101=\"Contingent\"),'TSA Input'!B1101,\"Ineligible\"))","v":""},{"$f":"IF('TSA Input'!J1101=\"\",\"\",IF(OR('TSA Input'!J1101=\"Yes\",'TSA Input'!J1101=\"Contingent\"),'TSA Input'!I1101,\"\"))","v":""},{"$f":"IF('TSA Input'!J1101=\"\",\"\",IF(OR('TSA Input'!J1101=\"Yes\",'TSA Input'!J1101=\"Contingent\"),'TSA Input'!C1101,\"\"))","v":""},{"$f":"IF('TSA Input'!J1101=\"\",\"\",IF(OR('TSA Input'!J1101=\"Yes\",'TSA Input'!J1101=\"Contingent\"),'TSA Input'!D1101,\"\"))","v":""},{"$f":"IF('TSA Input'!J1101=\"\",\"\",IF(OR('TSA Input'!J1101=\"Yes\",'TSA Input'!J1101=\"Contingent\"),'TSA Input'!G1101,\"\"))","v":""},{"$f":"IF('TSA Input'!J1101=\"\",\"\",IF(OR('TSA Input'!J1101=\"Yes\",'TSA Input'!J1101=\"Contingent\"),'TSA Input'!F1101,\"\"))","v":""},"",{"$f":"IF('TSA Input'!J1101=\"\",\"\",IF(OR('TSA Input'!J1101=\"Yes\",'TSA Input'!J1101=\"Contingent\"),'TSA Input'!D1101,\"\"))","v":""},{"$f":"IF('TSA Input'!J1101=\"\",\"\",IF(OR('TSA Input'!J1101=\"Yes\",'TSA Input'!J1101=\"Contingent\"),'TSA Input'!G1101,\"\"))","v":""},{"$f":"IF('TSA Input'!J1101=\"\",\"\",IF(OR('TSA Input'!J1101=\"Yes\",'TSA Input'!J1101=\"Contingent\"),'TSA Input'!F1101,\"\"))","v":""},"","Required","Required"]
["",null,{"$f":"IF('TSA Input'!J1102=\"\",\"\",IF(OR('TSA Input'!J1102=\"Yes\",'TSA Input'!J1102=\"Contingent\"),'TSA Input'!B1102,\"Ineligible\"))","v":""},{"$f":"IF('TSA Input'!J1102=\"\",\"\",IF(OR('TSA Input'!J1102=\"Yes\",'TSA Input'!J1102=\"Contingent\"),'TSA Input'!I1102,\"\"))","v":""},{"$f":"IF('TSA Input'!J1102=\"\",\"\",IF(OR('TSA Input'!J1102=\"Yes\",'TSA Input'!J1102=\"Contingent\"),'TSA Input'!C1102,\"\"))","v":""},{"$f":"IF('TSA Input'!J1102=\"\",\"\",IF(OR('TSA Input'!J1102=\"Yes\",'TSA Input'!J1102=\"Contingent\"),'TSA Input'!D1102,\"\"))","v":""},{"$f":"IF('TSA Input'!J1102=\"\",\"\",IF(OR('TSA Input'!J1102=\"Yes\",'TSA Input'!J1102=\"Contingent\"),'TSA Input'!G1102,\"\"))","v":""},{"$f":"IF('TSA Input'!J1102=\"\",\"\",IF(OR('TSA Input'!J1102=\"Yes\",'TSA Input'!J1102=\"Contingent\"),'TSA Input'!F1102,\"\"))","v":""},"",{"$f":"IF('TSA Input'!J1102=\"\",\"\",IF(OR('TSA Input'!J1102=\"Yes\",'TSA Input'!J1102=\"Contingent\"),'TSA Input'!D1102,\"\"))","v":""},{"$f":"IF('TSA Input'!J1102=\"\",\"\",IF(OR('TSA Input'!J1102=\"Yes\",'TSA Input'!J1102=\"Contingent\"),'TSA Input'!G1102,\"\"))","v":""},{"$f":"IF('TSA Input'!J1102=\"\",\"\",IF(OR('TSA Input'!J1102=\"Yes\",'TSA Input'!J1102=\"Contingent\"),'TSA Input'!F1102,\"\"))","v":""},"","Required","Required"]
["",null,{"$f":"IF('TSA Input'!J1103=\"\",\"\",IF(OR('TSA Input'!J1103=\"Yes\",'TSA Input'!J1103=\"Contingent\"),'TSA Input'!B1103,\"Ineligible\"))","v":""},{"$f":"IF('TSA Input'!J1103=\"\",\"\",IF(OR('TSA Input'!J1103=\"Yes\",'TSA Input'!J1103=\"Contingent\"),'TSA Input'!I1103,\"\"))","v":""},{"$f":"IF('TSA Input'!J1103=\"\",\"\",IF(OR('TSA Input'!J1103=\"Yes\",'TSA Input'!J1103=\"Contingent\"),'TSA Input'!C1103,\"\"))","v":""},{"$f":"IF('TSA Input'!J1103=\"\",\"\",IF(OR('TSA Input'!J1103=\"Yes\",'TSA Input'!J1103=\"Contingent\"),'TSA Input'!D1103,\"\"))","v":""},{"$f":"IF('TSA Input'!J1103=\"\",\"\",IF(OR('TSA Input'!J1103=\"Yes\",'TSA Input'!J1103=\"Contingent\"),'TSA Input'!G1103,\"\"))","v":""},{"$f":"IF('TSA Input'!J1103=\"\",\"\",IF(OR('TSA Input'!J1103=\"Yes\",'TSA Input'!J1103=\"Contingent\"),'TSA Input'!F1103,\"\"))","v":""},"",{"$f":"IF('TSA Input'!J1103=\"\",\"\",IF(OR('TSA Input'!J1103=\"Yes\",'TSA Input'!J1103=\"Contingent\"),'TSA Input'!D1103,\"\"))","v":""},{"$f":"IF('TSA Input'!J1103=\"\",\"\",IF(OR('TSA Input'!J1103=\"Yes\",'TSA Input'!J1103=\"Contingent\"),'TSA Input'!G1103,\"\"))","v":""},{"$f":"IF('TSA Input'!J1103=\"\",\"\",IF(OR('TSA Input'!J1103=\"Yes\",'TSA Input'!J1103=\"Contingent\"),'TSA Input'!F1103,\"\"))","v":""},"","Required","Required"]
["",null,{"$f":"IF('TSA Input'!J1104=\"\",\"\",IF(OR('TSA Input'!J1104=\"Yes\",'TSA Input'!J1104=\"Contingent\"),'TSA Input'!B1104,\"Ineligible\"))","v":""},{"$f":"IF('TSA Input'!J1104=\"\",\"\",IF(OR('TSA Input'!J1104=\"Yes\",'TSA Input'!J1104=\"Contingent\"),'TSA Input'!I1104,\"\"))","v":""},{"$f":"IF('TSA Input'!J1104=\"\",\"\",IF(OR('TSA Input'!J1104=\"Yes\",'TSA Input'!J1104=\"Contingent\"),'TSA Input'!C1104,\"\"))","v":""},{"$f":"IF('TSA Input'!J1104=\"\",\"\",IF(OR('TSA Input'!J1104=\"Yes\",'TSA Input'!J1104=\"Contingent\"),'TSA Input'!D1104,\"\"))","v":""},{"$f":"IF('TSA Input'!J1104=\"\",\"\",IF(OR('TSA Input'!J1104=\"Yes\",'TSA Input'!J1104=\"Contingent\"),'TSA Input'!G1104,\"\"))","v":""},{"$f":"IF('TSA Input'!J1104=\"\",\"\",IF(OR('TSA Input'!J1104=\"Yes\",'TSA Input'!J1104=\"Contingent\"),'TSA Input'!F1104,\"\"))","v":""},"",{"$f":"IF('TSA Input'!J1104=\"\",\"\",IF(OR('TSA Input'!J1104=\"Yes\",'TSA Input'!J1104=\"Contingent\"),'TSA Input'!D1104,\"\"))","v":""},{"$f":"IF('TSA Input'!J1104=\"\",\"\",IF(OR('TSA Input'!J1104=\"Yes\",'TSA Input'!J1104=\"Contingent\"),'TSA Input'!G1104,\"\"))","v":""},{"$f":"IF('TSA Input'!J1104=\"\",\"\",IF(OR('TSA Input'!J1104=\"Yes\",'TSA Input'!J1104=\"Contingent\"),'TSA Input'!F1104,\"\"))","v":""},"","Required","Required"]
["",null,{"$f":"IF('TSA Input'!J1105=\"\",\"\",IF(OR('TSA Input'!J1105=\"Yes\",'TSA Input'!J1105=\"Contingent\"),'TSA Input'!B1105,\"Ineligible\"))","v":""},{"$f":"IF('TSA Input'!J1105=\"\",\"\",IF(OR('TSA Input'!J1105=\"Yes\",'TSA Input'!J1105=\"Contingent\"),'TSA Input'!I1105,\"\"))","v":""},{"$f":"IF('TSA Input'!J1105=\"\",\"\",IF(OR('TSA Input'!J1105=\"Yes\",'TSA Input'!J1105=\"Contingent\"),'TSA Input'!C1105,\"\"))","v":""},{"$f":"IF('TSA Input'!J1105=\"\",\"\",IF(OR('TSA Input'!J1105=\"Yes\",'TSA Input'!J1105=\"Contingent\"),'TSA Input'!D1105,\"\"))","v":""},{"$f":"IF('TSA Input'!J1105=\"\",\"\",IF(OR('TSA Input'!J1105=\"Yes\",'TSA Input'!J1105=\"Contingent\"),'TSA Input'!G1105,\"\"))","v":""},{"$f":"IF('TSA Input'!J1105=\"\",\"\",IF(OR('TSA Input'!J1105=\"Yes\",'TSA Input'!J1105=\"Contingent\"),'TSA Input'!F1105,\"\"))","v":""},"",{"$f":"IF('TSA Input'!J1105=\"\",\"\",IF(OR('TSA Input'!J1105=\"Yes\",'TSA Input'!J1105=\"Contingent\"),'TSA Input'!D1105,\"\"))","v":""},{"$f":"IF('TSA Input'!J1105=\"\",\"\",IF(OR('TSA Input'!J1105=\"Yes\",'TSA Input'!J1105=\"Contingent\"),'TSA Input'!G1105,\"\"))","v":""},{"$f":"IF('TSA Input'!J1105=\"\",\"\",IF(OR('TSA Input'!J1105=\"Yes\",'TSA Input'!J1105=\"Contingent\"),'TSA Input'!F1105,\"\"))","v":""},"","Required","Required"]
["",null,{"$f":"IF('TSA Input'!J1106=\"\",\"\",IF(OR('TSA Input'!J1106=\"Yes\",'TSA Input'!J1106=\"Contingent\"),'TSA Input'!B1106,\"Ineligible\"))","v":""},{"$f":"IF('TSA Input'!J1106=\"\",\"\",IF(OR('TSA Input'!J1106=\"Yes\",'TSA Input'!J1106=\"Contingent\"),'TSA Input'!I1106,\"\"))","v":""},{"$f":"IF('TSA Input'!J1106=\"\",\"\",IF(OR('TSA Input'!J1106=\"Yes\",'TSA Input'!J1106=\"Contingent\"),'TSA Input'!C1106,\"\"))","v":""},{"$f":"IF('TSA Input'!J1106=\"\",\"\",IF(OR('TSA Input'!J1106=\"Yes\",'TSA Input'!J1106=\"Contingent\"),'TSA Input'!D1106,\"\"))","v":""},{"$f":"IF('TSA Input'!J1106=\"\",\"\",IF(OR('TSA Input'!J1106=\"Yes\",'TSA Input'!J1106=\"Contingent\"),'TSA Input'!G1106,\"\"))","v":""},{"$f":"IF('TSA Input'!J1106=\"\",\"\",IF(OR('TSA Input'!J1106=\"Yes\",'TSA Input'!J1106=\"Contingent\"),'TSA Input'!F1106,\"\"))","v":""},"",{"$f":"IF('TSA Input'!J1106=\"\",\"\",IF(OR('TSA Input'!J1106=\"Yes\",'TSA Input'!J1106=\"Contingent\"),'TSA Input'!D1106,\"\"))","v":""},{"$f":"IF('TSA Input'!J1106=\"\",\"\",IF(OR('TSA Input'!J1106=\"Yes\",'TSA Input'!J1106=\"Contingent\"),'TSA Input'!G1106,\"\"))","v":""},{"$f":"IF('TSA Input'!J1106=\"\",\"\",IF(OR('TSA Input'!J1106=\"Yes\",'TSA Input'!J1106=\"Contingent\"),'TSA Input'!F1106,\"\"))","v":""},"","Required","Required"]
["",null,{"$f":"IF('TSA Input'!J1107=\"\",\"\",IF(OR('TSA Input'!J1107=\"Yes\",'TSA Input'!J1107=\"Contingent\"),'TSA Input'!B1107,\"Ineligible\"))","v":""},{"$f":"IF('TSA Input'!J1107=\"\",\"\",IF(OR('TSA Input'!J1107=\"Yes\",'TSA Input'!J1107=\"Contingent\"),'TSA Input'!I1107,\"\"))","v":""},{"$f":"IF('TSA Input'!J1107=\"\",\"\",IF(OR('TSA Input'!J1107=\"Yes\",'TSA Input'!J1107=\"Contingent\"),'TSA Input'!C1107,\"\"))","v":""},{"$f":"IF('TSA Input'!J1107=\"\",\"\",IF(OR('TSA Input'!J1107=\"Yes\",'TSA Input'!J1107=\"Contingent\"),'TSA Input'!D1107,\"\"))","v":""},{"$f":"IF('TSA Input'!J1107=\"\",\"\",IF(OR('TSA Input'!J1107=\"Yes\",'TSA Input'!J1107=\"Contingent\"),'TSA Input'!G1107,\"\"))","v":""},{"$f":"IF('TSA Input'!J1107=\"\",\"\",IF(OR('TSA Input'!J1107=\"Yes\",'TSA Input'!J1107=\"Contingent\"),'TSA Input'!F1107,\"\"))","v":""},"",{"$f":"IF('TSA Input'!J1107=\"\",\"\",IF(OR('TSA Input'!J1107=\"Yes\",'TSA Input'!J1107=\"Contingent\"),'TSA Input'!D1107,\"\"))","v":""},{"$f":"IF('TSA Input'!J1107=\"\",\"\",IF(OR('TSA Input'!J1107=\"Yes\",'TSA Input'!J1107=\"Contingent\"),'TSA Input'!G1107,\"\"))","v":""},{"$f":"IF('TSA Input'!J1107=\"\",\"\",IF(OR('TSA Input'!J1107=\"Yes\",'TSA Input'!J1107=\"Contingent\"),'TSA Input'!F1107,\"\"))","v":""},"","Required","Required"]
["",null,{"$f":"IF('TSA Input'!J1108=\"\",\"\",IF(OR('TSA Input'!J1108=\"Yes\",'TSA Input'!J1108=\"Contingent\"),'TSA Input'!B1108,\"Ineligible\"))","v":""},{"$f":"IF('TSA Input'!J1108=\"\",\"\",IF(OR('TSA Input'!J1108=\"Yes\",'TSA Input'!J1108=\"Contingent\"),'TSA Input'!I1108,\"\"))","v":""},{"$f":"IF('TSA Input'!J1108=\"\",\"\",IF(OR('TSA Input'!J1108=\"Yes\",'TSA Input'!J1108=\"Contingent\"),'TSA Input'!C1108,\"\"))","v":""},{"$f":"IF('TSA Input'!J1108=\"\",\"\",IF(OR('TSA Input'!J1108=\"Yes\",'TSA Input'!J1108=\"Contingent\"),'TSA Input'!D1108,\"\"))","v":""},{"$f":"IF('TSA Input'!J1108=\"\",\"\",IF(OR('TSA Input'!J1108=\"Yes\",'TSA Input'!J1108=\"Contingent\"),'TSA Input'!G1108,\"\"))","v":""},{"$f":"IF('TSA Input'!J1108=\"\",\"\",IF(OR('TSA Input'!J1108=\"Yes\",'TSA Input'!J1108=\"Contingent\"),'TSA Input'!F1108,\"\"))","v":""},"",{"$f":"IF('TSA Input'!J1108=\"\",\"\",IF(OR('TSA Input'!J1108=\"Yes\",'TSA Input'!J1108=\"Contingent\"),'TSA Input'!D1108,\"\"))","v":""},{"$f":"IF('TSA Input'!J1108=\"\",\"\",IF(OR('TSA Input'!J1108=\"Yes\",'TSA Input'!J1108=\"Contingent\"),'TSA Input'!G1108,\"\"))","v":""},{"$f":"IF('TSA Input'!J1108=\"\",\"\",IF(OR('TSA Input'!J1108=\"Yes\",'TSA Input'!J1108=\"Contingent\"),'TSA Input'!F1108,\"\"))","v":""},"","Required","Required"]
["",null,{"$f":"IF('TSA Input'!J1109=\"\",\"\",IF(OR('TSA Input'!J1109=\"Yes\",'TSA Input'!J1109=\"Contingent\"),'TSA Input'!B1109,\"Ineligible\"))","v":""},{"$f":"IF('TSA Input'!J1109=\"\",\"\",IF(OR('TSA Input'!J1109=\"Yes\",'TSA Input'!J1109=\"Contingent\"),'TSA Input'!I1109,\"\"))","v":""},{"$f":"IF('TSA Input'!J1109=\"\",\"\",IF(OR('TSA Input'!J1109=\"Yes\",'TSA Input'!J1109=\"Contingent\"),'TSA Input'!C1109,\"\"))","v":""},{"$f":"IF('TSA Input'!J1109=\"\",\"\",IF(OR('TSA Input'!J1109=\"Yes\",'TSA Input'!J1109=\"Contingent\"),'TSA Input'!D1109,\"\"))","v":""},{"$f":"IF('TSA Input'!J1109=\"\",\"\",IF(OR('TSA Input'!J1109=\"Yes\",'TSA Input'!J1109=\"Contingent\"),'TSA Input'!G1109,\"\"))","v":""},{"$f":"IF('TSA Input'!J1109=\"\",\"\",IF(OR('TSA Input'!J1109=\"Yes\",'TSA Input'!J1109=\"Contingent\"),'TSA Input'!F1109,\"\"))","v":""},"",{"$f":"IF('TSA Input'!J1109=\"\",\"\",IF(OR('TSA Input'!J1109=\"Yes\",'TSA Input'!J1109=\"Contingent\"),'TSA Input'!D1109,\"\"))","v":""},{"$f":"IF('TSA Input'!J1109=\"\",\"\",IF(OR('TSA Input'!J1109=\"Yes\",'TSA Input'!J1109=\"Contingent\"),'TSA Input'!G1109,\"\"))","v":""},{"$f":"IF('TSA Input'!J1109=\"\",\"\",IF(OR('TSA Input'!J1109=\"Yes\",'TSA Input'!J1109=\"Contingent\"),'TSA Input'!F1109,\"\"))","v":""},"","Required","Required"]
["",null,{"$f":"IF('TSA Input'!J1110=\"\",\"\",IF(OR('TSA Input'!J1110=\"Yes\",'TSA Input'!J1110=\"Contingent\"),'TSA Input'!B1110,\"Ineligible\"))","v":""},{"$f":"IF('TSA Input'!J1110=\"\",\"\",IF(OR('TSA Input'!J1110=\"Yes\",'TSA Input'!J1110=\"Contingent\"),'TSA Input'!I1110,\"\"))","v":""},{"$f":"IF('TSA Input'!J1110=\"\",\"\",IF(OR('TSA Input'!J1110=\"Yes\",'TSA Input'!J1110=\"Contingent\"),'TSA Input'!C1110,\"\"))","v":""},{"$f":"IF('TSA Input'!J1110=\"\",\"\",IF(OR('TSA Input'!J1110=\"Yes\",'TSA Input'!J1110=\"Contingent\"),'TSA Input'!D1110,\"\"))","v":""},{"$f":"IF('TSA Input'!J1110=\"\",\"\",IF(OR('TSA Input'!J1110=\"Yes\",'TSA Input'!J1110=\"Contingent\"),'TSA Input'!G1110,\"\"))","v":""},{"$f":"IF('TSA Input'!J1110=\"\",\"\",IF(OR('TSA Input'!J1110=\"Yes\",'TSA Input'!J1110=\"Contingent\"),'TSA Input'!F1110,\"\"))","v":""},"",{"$f":"IF('TSA Input'!J1110=\"\",\"\",IF(OR('TSA Input'!J1110=\"Yes\",'TSA Input'!J1110=\"Contingent\"),'TSA Input'!D1110,\"\"))","v":""},{"$f":"IF('TSA Input'!J1110=\"\",\"\",IF(OR('TSA Input'!J1110=\"Yes\",'TSA Input'!J1110=\"Contingent\"),'TSA Input'!G1110,\"\"))","v":""},{"$f":"IF('TSA Input'!J1110=\"\",\"\",IF(OR('TSA Input'!J1110=\"Yes\",'TSA Input'!J1110=\"Contingent\"),'TSA Input'!F1110,\"\"))","v":""},"","Required","Required"]
["",null,{"$f":"IF('TSA Input'!J1111=\"\",\"\",IF(OR('TSA Input'!J1111=\"Yes\",'TSA Input'!J1111=\"Contingent\"),'TSA Input'!B1111,\"Ineligible\"))","v":""},{"$f":"IF('TSA Input'!J1111=\"\",\"\",IF(OR('TSA Input'!J1111=\"Yes\",'TSA Input'!J1111=\"Contingent\"),'TSA Input'!I1111,\"\"))","v":""},{"$f":"IF('TSA Input'!J1111=\"\",\"\",IF(OR('TSA Input'!J1111=\"Yes\",'TSA Input'!J1111=\"Contingent\"),'TSA Input'!C1111,\"\"))","v":""},{"$f":"IF('TSA Input'!J1111=\"\",\"\",IF(OR('TSA Input'!J1111=\"Yes\",'TSA Input'!J1111=\"Contingent\"),'TSA Input'!D1111,\"\"))","v":""},{"$f":"IF('TSA Input'!J1111=\"\",\"\",IF(OR('TSA Input'!J1111=\"Yes\",'TSA Input'!J1111=\"Contingent\"),'TSA Input'!G1111,\"\"))","v":""},{"$f":"IF('TSA Input'!J1111=\"\",\"\",IF(OR('TSA Input'!J1111=\"Yes\",'TSA Input'!J1111=\"Contingent\"),'TSA Input'!F1111,\"\"))","v":""},"",{"$f":"IF('TSA Input'!J1111=\"\",\"\",IF(OR('TSA Input'!J1111=\"Yes\",'TSA Input'!J1111=\"Contingent\"),'TSA Input'!D1111,\"\"))","v":""},{"$f":"IF('TSA Input'!J1111=\"\",\"\",IF(OR('TSA Input'!J1111=\"Yes\",'TSA Input'!J1111=\"Contingent\"),'TSA Input'!G1111,\"\"))","v":""},{"$f":"IF('TSA Input'!J1111=\"\",\"\",IF(OR('TSA Input'!J1111=\"Yes\",'TSA Input'!J1111=\"Contingent\"),'TSA Input'!F1111,\"\"))","v":""},"","Required","Required"]
["",null,{"$f":"IF('TSA Input'!J1112=\"\",\"\",IF(OR('TSA Input'!J1112=\"Yes\",'TSA Input'!J1112=\"Contingent\"),'TSA Input'!B1112,\"Ineligible\"))","v":""},{"$f":"IF('TSA Input'!J1112=\"\",\"\",IF(OR('TSA Input'!J1112=\"Yes\",'TSA Input'!J1112=\"Contingent\"),'TSA Input'!I1112,\"\"))","v":""},{"$f":"IF('TSA Input'!J1112=\"\",\"\",IF(OR('TSA Input'!J1112=\"Yes\",'TSA Input'!J1112=\"Contingent\"),'TSA Input'!C1112,\"\"))","v":""},{"$f":"IF('TSA Input'!J1112=\"\",\"\",IF(OR('TSA Input'!J1112=\"Yes\",'TSA Input'!J1112=\"Contingent\"),'TSA Input'!D1112,\"\"))","v":""},{"$f":"IF('TSA Input'!J1112=\"\",\"\",IF(OR('TSA Input'!J1112=\"Yes\",'TSA Input'!J1112=\"Contingent\"),'TSA Input'!G1112,\"\"))","v":""},{"$f":"IF('TSA Input'!J1112=\"\",\"\",IF(OR('TSA Input'!J1112=\"Yes\",'TSA Input'!J1112=\"Contingent\"),'TSA Input'!F1112,\"\"))","v":""},"",{"$f":"IF('TSA Input'!J1112=\"\",\"\",IF(OR('TSA Input'!J1112=\"Yes\",'TSA Input'!J1112=\"Contingent\"),'TSA Input'!D1112,\"\"))","v":""},{"$f":"IF('TSA Input'!J1112=\"\",\"\",IF(OR('TSA Input'!J1112=\"Yes\",'TSA Input'!J1112=\"Contingent\"),'TSA Input'!G1112,\"\"))","v":""},{"$f":"IF('TSA Input'!J1112=\"\",\"\",IF(OR('TSA Input'!J1112=\"Yes\",'TSA Input'!J1112=\"Contingent\"),'TSA Input'!F1112,\"\"))","v":""},"","Required","Required"]
["",null,{"$f":"IF('TSA Input'!J1113=\"\",\"\",IF(OR('TSA Input'!J1113=\"Yes\",'TSA Input'!J1113=\"Contingent\"),'TSA Input'!B1113,\"Ineligible\"))","v":""},{"$f":"IF('TSA Input'!J1113=\"\",\"\",IF(OR('TSA Input'!J1113=\"Yes\",'TSA Input'!J1113=\"Contingent\"),'TSA Input'!I1113,\"\"))","v":""},{"$f":"IF('TSA Input'!J1113=\"\",\"\",IF(OR('TSA Input'!J1113=\"Yes\",'TSA Input'!J1113=\"Contingent\"),'TSA Input'!C1113,\"\"))","v":""},{"$f":"IF('TSA Input'!J1113=\"\",\"\",IF(OR('TSA Input'!J1113=\"Yes\",'TSA Input'!J1113=\"Contingent\"),'TSA Input'!D1113,\"\"))","v":""},{"$f":"IF('TSA Input'!J1113=\"\",\"\",IF(OR('TSA Input'!J1113=\"Yes\",'TSA Input'!J1113=\"Contingent\"),'TSA Input'!G1113,\"\"))","v":""},{"$f":"IF('TSA Input'!J1113=\"\",\"\",IF(OR('TSA Input'!J1113=\"Yes\",'TSA Input'!J1113=\"Contingent\"),'TSA Input'!F1113,\"\"))","v":""},"",{"$f":"IF('TSA Input'!J1113=\"\",\"\",IF(OR('TSA Input'!J1113=\"Yes\",'TSA Input'!J1113=\"Contingent\"),'TSA Input'!D1113,\"\"))","v":""},{"$f":"IF('TSA Input'!J1113=\"\",\"\",IF(OR('TSA Input'!J1113=\"Yes\",'TSA Input'!J1113=\"Contingent\"),'TSA Input'!G1113,\"\"))","v":""},{"$f":"IF('TSA Input'!J1113=\"\",\"\",IF(OR('TSA Input'!J1113=\"Yes\",'TSA Input'!J1113=\"Contingent\"),'TSA Input'!F1113,\"\"))","v":""},"","Required","Required"]
["",null,{"$f":"IF('TSA Input'!J1114=\"\",\"\",IF(OR('TSA Input'!J1114=\"Yes\",'TSA Input'!J1114=\"Contingent\"),'TSA Input'!B1114,\"Ineligible\"))","v":""},{"$f":"IF('TSA Input'!J1114=\"\",\"\",IF(OR('TSA Input'!J1114=\"Yes\",'TSA Input'!J1114=\"Contingent\"),'TSA Input'!I1114,\"\"))","v":""},{"$f":"IF('TSA Input'!J1114=\"\",\"\",IF(OR('TSA Input'!J1114=\"Yes\",'TSA Input'!J1114=\"Contingent\"),'TSA Input'!C1114,\"\"))","v":""},{"$f":"IF('TSA Input'!J1114=\"\",\"\",IF(OR('TSA Input'!J1114=\"Yes\",'TSA Input'!J1114=\"Contingent\"),'TSA Input'!D1114,\"\"))","v":""},{"$f":"IF('TSA Input'!J1114=\"\",\"\",IF(OR('TSA Input'!J1114=\"Yes\",'TSA Input'!J1114=\"Contingent\"),'TSA Input'!G1114,\"\"))","v":""},{"$f":"IF('TSA Input'!J1114=\"\",\"\",IF(OR('TSA Input'!J1114=\"Yes\",'TSA Input'!J1114=\"Contingent\"),'TSA Input'!F1114,\"\"))","v":""},"",{"$f":"IF('TSA Input'!J1114=\"\",\"\",IF(OR('TSA Input'!J1114=\"Yes\",'TSA Input'!J1114=\"Contingent\"),'TSA Input'!D1114,\"\"))","v":""},{"$f":"IF('TSA Input'!J1114=\"\",\"\",IF(OR('TSA Input'!J1114=\"Yes\",'TSA Input'!J1114=\"Contingent\"),'TSA Input'!G1114,\"\"))","v":""},{"$f":"IF('TSA Input'!J1114=\"\",\"\",IF(OR('TSA Input'!J1114=\"Yes\",'TSA Input'!J1114=\"Contingent\"),'TSA Input'!F1114,\"\"))","v":""},"","Required","Required"]
["",null,{"$f":"IF('TSA Input'!J1115=\"\",\"\",IF(OR('TSA Input'!J1115=\"Yes\",'TSA Input'!J1115=\"Contingent\"),'TSA Input'!B1115,\"Ineligible\"))","v":""},{"$f":"IF('TSA Input'!J1115=\"\",\"\",IF(OR('TSA Input'!J1115=\"Yes\",'TSA Input'!J1115=\"Contingent\"),'TSA Input'!I1115,\"\"))","v":""},{"$f":"IF('TSA Input'!J1115=\"\",\"\",IF(OR('TSA Input'!J1115=\"Yes\",'TSA Input'!J1115=\"Contingent\"),'TSA Input'!C1115,\"\"))","v":""},{"$f":"IF('TSA Input'!J1115=\"\",\"\",IF(OR('TSA Input'!J1115=\"Yes\",'TSA Input'!J1115=\"Contingent\"),'TSA Input'!D1115,\"\"))","v":""},{"$f":"IF('TSA Input'!J1115=\"\",\"\",IF(OR('TSA Input'!J1115=\"Yes\",'TSA Input'!J1115=\"Contingent\"),'TSA Input'!G1115,\"\"))","v":""},{"$f":"IF('TSA Input'!J1115=\"\",\"\",IF(OR('TSA Input'!J1115=\"Yes\",'TSA Input'!J1115=\"Contingent\"),'TSA Input'!F1115,\"\"))","v":""},"",{"$f":"IF('TSA Input'!J1115=\"\",\"\",IF(OR('TSA Input'!J1115=\"Yes\",'TSA Input'!J1115=\"Contingent\"),'TSA Input'!D1115,\"\"))","v":""},{"$f":"IF('TSA Input'!J1115=\"\",\"\",IF(OR('TSA Input'!J1115=\"Yes\",'TSA Input'!J1115=\"Contingent\"),'TSA Input'!G1115,\"\"))","v":""},{"$f":"IF('TSA Input'!J1115=\"\",\"\",IF(OR('TSA Input'!J1115=\"Yes\",'TSA Input'!J1115=\"Contingent\"),'TSA Input'!F1115,\"\"))","v":""},"","Required","Required"]
["",null,{"$f":"IF('TSA Input'!J1116=\"\",\"\",IF(OR('TSA Input'!J1116=\"Yes\",'TSA Input'!J1116=\"Contingent\"),'TSA Input'!B1116,\"Ineligible\"))","v":""},{"$f":"IF('TSA Input'!J1116=\"\",\"\",IF(OR('TSA Input'!J1116=\"Yes\",'TSA Input'!J1116=\"Contingent\"),'TSA Input'!I1116,\"\"))","v":""},{"$f":"IF('TSA Input'!J1116=\"\",\"\",IF(OR('TSA Input'!J1116=\"Yes\",'TSA Input'!J1116=\"Contingent\"),'TSA Input'!C1116,\"\"))","v":""},{"$f":"IF('TSA Input'!J1116=\"\",\"\",IF(OR('TSA Input'!J1116=\"Yes\",'TSA Input'!J1116=\"Contingent\"),'TSA Input'!D1116,\"\"))","v":""},{"$f":"IF('TSA Input'!J1116=\"\",\"\",IF(OR('TSA Input'!J1116=\"Yes\",'TSA Input'!J1116=\"Contingent\"),'TSA Input'!G1116,\"\"))","v":""},{"$f":"IF('TSA Input'!J1116=\"\",\"\",IF(OR('TSA Input'!J1116=\"Yes\",'TSA Input'!J1116=\"Contingent\"),'TSA Input'!F1116,\"\"))","v":""},"",{"$f":"IF('TSA Input'!J1116=\"\",\"\",IF(OR('TSA Input'!J1116=\"Yes\",'TSA Input'!J1116=\"Contingent\"),'TSA Input'!D1116,\"\"))","v":""},{"$f":"IF('TSA Input'!J1116=\"\",\"\",IF(OR('TSA Input'!J1116=\"Yes\",'TSA Input'!J1116=\"Contingent\"),'TSA Input'!G1116,\"\"))","v":""},{"$f":"IF('TSA Input'!J1116=\"\",\"\",IF(OR('TSA Input'!J1116=\"Yes\",'TSA Input'!J1116=\"Contingent\"),'TSA Input'!F1116,\"\"))","v":""},"","Required","Required"]
["",null,{"$f":"IF('TSA Input'!J1117=\"\",\"\",IF(OR('TSA Input'!J1117=\"Yes\",'TSA Input'!J1117=\"Contingent\"),'TSA Input'!B1117,\"Ineligible\"))","v":""},{"$f":"IF('TSA Input'!J1117=\"\",\"\",IF(OR('TSA Input'!J1117=\"Yes\",'TSA Input'!J1117=\"Contingent\"),'TSA Input'!I1117,\"\"))","v":""},{"$f":"IF('TSA Input'!J1117=\"\",\"\",IF(OR('TSA Input'!J1117=\"Yes\",'TSA Input'!J1117=\"Contingent\"),'TSA Input'!C1117,\"\"))","v":""},{"$f":"IF('TSA Input'!J1117=\"\",\"\",IF(OR('TSA Input'!J1117=\"Yes\",'TSA Input'!J1117=\"Contingent\"),'TSA Input'!D1117,\"\"))","v":""},{"$f":"IF('TSA Input'!J1117=\"\",\"\",IF(OR('TSA Input'!J1117=\"Yes\",'TSA Input'!J1117=\"Contingent\"),'TSA Input'!G1117,\"\"))","v":""},{"$f":"IF('TSA Input'!J1117=\"\",\"\",IF(OR('TSA Input'!J1117=\"Yes\",'TSA Input'!J1117=\"Contingent\"),'TSA Input'!F1117,\"\"))","v":""},"",{"$f":"IF('TSA Input'!J1117=\"\",\"\",IF(OR('TSA Input'!J1117=\"Yes\",'TSA Input'!J1117=\"Contingent\"),'TSA Input'!D1117,\"\"))","v":""},{"$f":"IF('TSA Input'!J1117=\"\",\"\",IF(OR('TSA Input'!J1117=\"Yes\",'TSA Input'!J1117=\"Contingent\"),'TSA Input'!G1117,\"\"))","v":""},{"$f":"IF('TSA Input'!J1117=\"\",\"\",IF(OR('TSA Input'!J1117=\"Yes\",'TSA Input'!J1117=\"Contingent\"),'TSA Input'!F1117,\"\"))","v":""},"","Required","Required"]
["",null,{"$f":"IF('TSA Input'!J1118=\"\",\"\",IF(OR('TSA Input'!J1118=\"Yes\",'TSA Input'!J1118=\"Contingent\"),'TSA Input'!B1118,\"Ineligible\"))","v":""},{"$f":"IF('TSA Input'!J1118=\"\",\"\",IF(OR('TSA Input'!J1118=\"Yes\",'TSA Input'!J1118=\"Contingent\"),'TSA Input'!I1118,\"\"))","v":""},{"$f":"IF('TSA Input'!J1118=\"\",\"\",IF(OR('TSA Input'!J1118=\"Yes\",'TSA Input'!J1118=\"Contingent\"),'TSA Input'!C1118,\"\"))","v":""},{"$f":"IF('TSA Input'!J1118=\"\",\"\",IF(OR('TSA Input'!J1118=\"Yes\",'TSA Input'!J1118=\"Contingent\"),'TSA Input'!D1118,\"\"))","v":""},{"$f":"IF('TSA Input'!J1118=\"\",\"\",IF(OR('TSA Input'!J1118=\"Yes\",'TSA Input'!J1118=\"Contingent\"),'TSA Input'!G1118,\"\"))","v":""},{"$f":"IF('TSA Input'!J1118=\"\",\"\",IF(OR('TSA Input'!J1118=\"Yes\",'TSA Input'!J1118=\"Contingent\"),'TSA Input'!F1118,\"\"))","v":""},"",{"$f":"IF('TSA Input'!J1118=\"\",\"\",IF(OR('TSA Input'!J1118=\"Yes\",'TSA Input'!J1118=\"Contingent\"),'TSA Input'!D1118,\"\"))","v":""},{"$f":"IF('TSA Input'!J1118=\"\",\"\",IF(OR('TSA Input'!J1118=\"Yes\",'TSA Input'!J1118=\"Contingent\"),'TSA Input'!G1118,\"\"))","v":""},{"$f":"IF('TSA Input'!J1118=\"\",\"\",IF(OR('TSA Input'!J1118=\"Yes\",'TSA Input'!J1118=\"Contingent\"),'TSA Input'!F1118,\"\"))","v":""},"","Required","Required"]
["",null,{"$f":"IF('TSA Input'!J1119=\"\",\"\",IF(OR('TSA Input'!J1119=\"Yes\",'TSA Input'!J1119=\"Contingent\"),'TSA Input'!B1119,\"Ineligible\"))","v":""},{"$f":"IF('TSA Input'!J1119=\"\",\"\",IF(OR('TSA Input'!J1119=\"Yes\",'TSA Input'!J1119=\"Contingent\"),'TSA Input'!I1119,\"\"))","v":""},{"$f":"IF('TSA Input'!J1119=\"\",\"\",IF(OR('TSA Input'!J1119=\"Yes\",'TSA Input'!J1119=\"Contingent\"),'TSA Input'!C1119,\"\"))","v":""},{"$f":"IF('TSA Input'!J1119=\"\",\"\",IF(OR('TSA Input'!J1119=\"Yes\",'TSA Input'!J1119=\"Contingent\"),'TSA Input'!D1119,\"\"))","v":""},{"$f":"IF('TSA Input'!J1119=\"\",\"\",IF(OR('TSA Input'!J1119=\"Yes\",'TSA Input'!J1119=\"Contingent\"),'TSA Input'!G1119,\"\"))","v":""},{"$f":"IF('TSA Input'!J1119=\"\",\"\",IF(OR('TSA Input'!J1119=\"Yes\",'TSA Input'!J1119=\"Contingent\"),'TSA Input'!F1119,\"\"))","v":""},"",{"$f":"IF('TSA Input'!J1119=\"\",\"\",IF(OR('TSA Input'!J1119=\"Yes\",'TSA Input'!J1119=\"Contingent\"),'TSA Input'!D1119,\"\"))","v":""},{"$f":"IF('TSA Input'!J1119=\"\",\"\",IF(OR('TSA Input'!J1119=\"Yes\",'TSA Input'!J1119=\"Contingent\"),'TSA Input'!G1119,\"\"))","v":""},{"$f":"IF('TSA Input'!J1119=\"\",\"\",IF(OR('TSA Input'!J1119=\"Yes\",'TSA Input'!J1119=\"Contingent\"),'TSA Input'!F1119,\"\"))","v":""},"","Required","Required"]
["",null,{"$f":"IF('TSA Input'!J1120=\"\",\"\",IF(OR('TSA Input'!J1120=\"Yes\",'TSA Input'!J1120=\"Contingent\"),'TSA Input'!B1120,\"Ineligible\"))","v":""},{"$f":"IF('TSA Input'!J1120=\"\",\"\",IF(OR('TSA Input'!J1120=\"Yes\",'TSA Input'!J1120=\"Contingent\"),'TSA Input'!I1120,\"\"))","v":""},{"$f":"IF('TSA Input'!J1120=\"\",\"\",IF(OR('TSA Input'!J1120=\"Yes\",'TSA Input'!J1120=\"Contingent\"),'TSA Input'!C1120,\"\"))","v":""},{"$f":"IF('TSA Input'!J1120=\"\",\"\",IF(OR('TSA Input'!J1120=\"Yes\",'TSA Input'!J1120=\"Contingent\"),'TSA Input'!D1120,\"\"))","v":""},{"$f":"IF('TSA Input'!J1120=\"\",\"\",IF(OR('TSA Input'!J1120=\"Yes\",'TSA Input'!J1120=\"Contingent\"),'TSA Input'!G1120,\"\"))","v":""},{"$f":"IF('TSA Input'!J1120=\"\",\"\",IF(OR('TSA Input'!J1120=\"Yes\",'TSA Input'!J1120=\"Contingent\"),'TSA Input'!F1120,\"\"))","v":""},"",{"$f":"IF('TSA Input'!J1120=\"\",\"\",IF(OR('TSA Input'!J1120=\"Yes\",'TSA Input'!J1120=\"Contingent\"),'TSA Input'!D1120,\"\"))","v":""},{"$f":"IF('TSA Input'!J1120=\"\",\"\",IF(OR('TSA Input'!J1120=\"Yes\",'TSA Input'!J1120=\"Contingent\"),'TSA Input'!G1120,\"\"))","v":""},{"$f":"IF('TSA Input'!J1120=\"\",\"\",IF(OR('TSA Input'!J1120=\"Yes\",'TSA Input'!J1120=\"Contingent\"),'TSA Input'!F1120,\"\"))","v":""},"","Required","Required"]
["",null,{"$f":"IF('TSA Input'!J1121=\"\",\"\",IF(OR('TSA Input'!J1121=\"Yes\",'TSA Input'!J1121=\"Contingent\"),'TSA Input'!B1121,\"Ineligible\"))","v":""},{"$f":"IF('TSA Input'!J1121=\"\",\"\",IF(OR('TSA Input'!J1121=\"Yes\",'TSA Input'!J1121=\"Contingent\"),'TSA Input'!I1121,\"\"))","v":""},{"$f":"IF('TSA Input'!J1121=\"\",\"\",IF(OR('TSA Input'!J1121=\"Yes\",'TSA Input'!J1121=\"Contingent\"),'TSA Input'!C1121,\"\"))","v":""},{"$f":"IF('TSA Input'!J1121=\"\",\"\",IF(OR('TSA Input'!J1121=\"Yes\",'TSA Input'!J1121=\"Contingent\"),'TSA Input'!D1121,\"\"))","v":""},{"$f":"IF('TSA Input'!J1121=\"\",\"\",IF(OR('TSA Input'!J1121=\"Yes\",'TSA Input'!J1121=\"Contingent\"),'TSA Input'!G1121,\"\"))","v":""},{"$f":"IF('TSA Input'!J1121=\"\",\"\",IF(OR('TSA Input'!J1121=\"Yes\",'TSA Input'!J1121=\"Contingent\"),'TSA Input'!F1121,\"\"))","v":""},"",{"$f":"IF('TSA Input'!J1121=\"\",\"\",IF(OR('TSA Input'!J1121=\"Yes\",'TSA Input'!J1121=\"Contingent\"),'TSA Input'!D1121,\"\"))","v":""},{"$f":"IF('TSA Input'!J1121=\"\",\"\",IF(OR('TSA Input'!J1121=\"Yes\",'TSA Input'!J1121=\"Contingent\"),'TSA Input'!G1121,\"\"))","v":""},{"$f":"IF('TSA Input'!J1121=\"\",\"\",IF(OR('TSA Input'!J1121=\"Yes\",'TSA Input'!J1121=\"Contingent\"),'TSA Input'!F1121,\"\"))","v":""},"","Required","Required"]
["",null,{"$f":"IF('TSA Input'!J1122=\"\",\"\",IF(OR('TSA Input'!J1122=\"Yes\",'TSA Input'!J1122=\"Contingent\"),'TSA Input'!B1122,\"Ineligible\"))","v":""},{"$f":"IF('TSA Input'!J1122=\"\",\"\",IF(OR('TSA Input'!J1122=\"Yes\",'TSA Input'!J1122=\"Contingent\"),'TSA Input'!I1122,\"\"))","v":""},{"$f":"IF('TSA Input'!J1122=\"\",\"\",IF(OR('TSA Input'!J1122=\"Yes\",'TSA Input'!J1122=\"Contingent\"),'TSA Input'!C1122,\"\"))","v":""},{"$f":"IF('TSA Input'!J1122=\"\",\"\",IF(OR('TSA Input'!J1122=\"Yes\",'TSA Input'!J1122=\"Contingent\"),'TSA Input'!D1122,\"\"))","v":""},{"$f":"IF('TSA Input'!J1122=\"\",\"\",IF(OR('TSA Input'!J1122=\"Yes\",'TSA Input'!J1122=\"Contingent\"),'TSA Input'!G1122,\"\"))","v":""},{"$f":"IF('TSA Input'!J1122=\"\",\"\",IF(OR('TSA Input'!J1122=\"Yes\",'TSA Input'!J1122=\"Contingent\"),'TSA Input'!F1122,\"\"))","v":""},"",{"$f":"IF('TSA Input'!J1122=\"\",\"\",IF(OR('TSA Input'!J1122=\"Yes\",'TSA Input'!J1122=\"Contingent\"),'TSA Input'!D1122,\"\"))","v":""},{"$f":"IF('TSA Input'!J1122=\"\",\"\",IF(OR('TSA Input'!J1122=\"Yes\",'TSA Input'!J1122=\"Contingent\"),'TSA Input'!G1122,\"\"))","v":""},{"$f":"IF('TSA Input'!J1122=\"\",\"\",IF(OR('TSA Input'!J1122=\"Yes\",'TSA Input'!J1122=\"Contingent\"),'TSA Input'!F1122,\"\"))","v":""},"","Required","Required"]
["",null,{"$f":"IF('TSA Input'!J1123=\"\",\"\",IF(OR('TSA Input'!J1123=\"Yes\",'TSA Input'!J1123=\"Contingent\"),'TSA Input'!B1123,\"Ineligible\"))","v":""},{"$f":"IF('TSA Input'!J1123=\"\",\"\",IF(OR('TSA Input'!J1123=\"Yes\",'TSA Input'!J1123=\"Contingent\"),'TSA Input'!I1123,\"\"))","v":""},{"$f":"IF('TSA Input'!J1123=\"\",\"\",IF(OR('TSA Input'!J1123=\"Yes\",'TSA Input'!J1123=\"Contingent\"),'TSA Input'!C1123,\"\"))","v":""},{"$f":"IF('TSA Input'!J1123=\"\",\"\",IF(OR('TSA Input'!J1123=\"Yes\",'TSA Input'!J1123=\"Contingent\"),'TSA Input'!D1123,\"\"))","v":""},{"$f":"IF('TSA Input'!J1123=\"\",\"\",IF(OR('TSA Input'!J1123=\"Yes\",'TSA Input'!J1123=\"Contingent\"),'TSA Input'!G1123,\"\"))","v":""},{"$f":"IF('TSA Input'!J1123=\"\",\"\",IF(OR('TSA Input'!J1123=\"Yes\",'TSA Input'!J1123=\"Contingent\"),'TSA Input'!F1123,\"\"))","v":""},"",{"$f":"IF('TSA Input'!J1123=\"\",\"\",IF(OR('TSA Input'!J1123=\"Yes\",'TSA Input'!J1123=\"Contingent\"),'TSA Input'!D1123,\"\"))","v":""},{"$f":"IF('TSA Input'!J1123=\"\",\"\",IF(OR('TSA Input'!J1123=\"Yes\",'TSA Input'!J1123=\"Contingent\"),'TSA Input'!G1123,\"\"))","v":""},{"$f":"IF('TSA Input'!J1123=\"\",\"\",IF(OR('TSA Input'!J1123=\"Yes\",'TSA Input'!J1123=\"Contingent\"),'TSA Input'!F1123,\"\"))","v":""},"","Required","Required"]
["",null,{"$f":"IF('TSA Input'!J1124=\"\",\"\",IF(OR('TSA Input'!J1124=\"Yes\",'TSA Input'!J1124=\"Contingent\"),'TSA Input'!B1124,\"Ineligible\"))","v":""},{"$f":"IF('TSA Input'!J1124=\"\",\"\",IF(OR('TSA Input'!J1124=\"Yes\",'TSA Input'!J1124=\"Contingent\"),'TSA Input'!I1124,\"\"))","v":""},{"$f":"IF('TSA Input'!J1124=\"\",\"\",IF(OR('TSA Input'!J1124=\"Yes\",'TSA Input'!J1124=\"Contingent\"),'TSA Input'!C1124,\"\"))","v":""},{"$f":"IF('TSA Input'!J1124=\"\",\"\",IF(OR('TSA Input'!J1124=\"Yes\",'TSA Input'!J1124=\"Contingent\"),'TSA Input'!D1124,\"\"))","v":""},{"$f":"IF('TSA Input'!J1124=\"\",\"\",IF(OR('TSA Input'!J1124=\"Yes\",'TSA Input'!J1124=\"Contingent\"),'TSA Input'!G1124,\"\"))","v":""},{"$f":"IF('TSA Input'!J1124=\"\",\"\",IF(OR('TSA Input'!J1124=\"Yes\",'TSA Input'!J1124=\"Contingent\"),'TSA Input'!F1124,\"\"))","v":""},"",{"$f":"IF('TSA Input'!J1124=\"\",\"\",IF(OR('TSA Input'!J1124=\"Yes\",'TSA Input'!J1124=\"Contingent\"),'TSA Input'!D1124,\"\"))","v":""},{"$f":"IF('TSA Input'!J1124=\"\",\"\",IF(OR('TSA Input'!J1124=\"Yes\",'TSA Input'!J1124=\"Contingent\"),'TSA Input'!G1124,\"\"))","v":""},{"$f":"IF('TSA Input'!J1124=\"\",\"\",IF(OR('TSA Input'!J1124=\"Yes\",'TSA Input'!J1124=\"Contingent\"),'TSA Input'!F1124,\"\"))","v":""},"","Required","Required"]
["",null,{"$f":"IF('TSA Input'!J1125=\"\",\"\",IF(OR('TSA Input'!J1125=\"Yes\",'TSA Input'!J1125=\"Contingent\"),'TSA Input'!B1125,\"Ineligible\"))","v":""},{"$f":"IF('TSA Input'!J1125=\"\",\"\",IF(OR('TSA Input'!J1125=\"Yes\",'TSA Input'!J1125=\"Contingent\"),'TSA Input'!I1125,\"\"))","v":""},{"$f":"IF('TSA Input'!J1125=\"\",\"\",IF(OR('TSA Input'!J1125=\"Yes\",'TSA Input'!J1125=\"Contingent\"),'TSA Input'!C1125,\"\"))","v":""},{"$f":"IF('TSA Input'!J1125=\"\",\"\",IF(OR('TSA Input'!J1125=\"Yes\",'TSA Input'!J1125=\"Contingent\"),'TSA Input'!D1125,\"\"))","v":""},{"$f":"IF('TSA Input'!J1125=\"\",\"\",IF(OR('TSA Input'!J1125=\"Yes\",'TSA Input'!J1125=\"Contingent\"),'TSA Input'!G1125,\"\"))","v":""},{"$f":"IF('TSA Input'!J1125=\"\",\"\",IF(OR('TSA Input'!J1125=\"Yes\",'TSA Input'!J1125=\"Contingent\"),'TSA Input'!F1125,\"\"))","v":""},"",{"$f":"IF('TSA Input'!J1125=\"\",\"\",IF(OR('TSA Input'!J1125=\"Yes\",'TSA Input'!J1125=\"Contingent\"),'TSA Input'!D1125,\"\"))","v":""},{"$f":"IF('TSA Input'!J1125=\"\",\"\",IF(OR('TSA Input'!J1125=\"Yes\",'TSA Input'!J1125=\"Contingent\"),'TSA Input'!G1125,\"\"))","v":""},{"$f":"IF('TSA Input'!J1125=\"\",\"\",IF(OR('TSA Input'!J1125=\"Yes\",'TSA Input'!J1125=\"Contingent\"),'TSA Input'!F1125,\"\"))","v":""},"","Required","Required"]
["",null,{"$f":"IF('TSA Input'!J1126=\"\",\"\",IF(OR('TSA Input'!J1126=\"Yes\",'TSA Input'!J1126=\"Contingent\"),'TSA Input'!B1126,\"Ineligible\"))","v":""},{"$f":"IF('TSA Input'!J1126=\"\",\"\",IF(OR('TSA Input'!J1126=\"Yes\",'TSA Input'!J1126=\"Contingent\"),'TSA Input'!I1126,\"\"))","v":""},{"$f":"IF('TSA Input'!J1126=\"\",\"\",IF(OR('TSA Input'!J1126=\"Yes\",'TSA Input'!J1126=\"Contingent\"),'TSA Input'!C1126,\"\"))","v":""},{"$f":"IF('TSA Input'!J1126=\"\",\"\",IF(OR('TSA Input'!J1126=\"Yes\",'TSA Input'!J1126=\"Contingent\"),'TSA Input'!D1126,\"\"))","v":""},{"$f":"IF('TSA Input'!J1126=\"\",\"\",IF(OR('TSA Input'!J1126=\"Yes\",'TSA Input'!J1126=\"Contingent\"),'TSA Input'!G1126,\"\"))","v":""},{"$f":"IF('TSA Input'!J1126=\"\",\"\",IF(OR('TSA Input'!J1126=\"Yes\",'TSA Input'!J1126=\"Contingent\"),'TSA Input'!F1126,\"\"))","v":""},"",{"$f":"IF('TSA Input'!J1126=\"\",\"\",IF(OR('TSA Input'!J1126=\"Yes\",'TSA Input'!J1126=\"Contingent\"),'TSA Input'!D1126,\"\"))","v":""},{"$f":"IF('TSA Input'!J1126=\"\",\"\",IF(OR('TSA Input'!J1126=\"Yes\",'TSA Input'!J1126=\"Contingent\"),'TSA Input'!G1126,\"\"))","v":""},{"$f":"IF('TSA Input'!J1126=\"\",\"\",IF(OR('TSA Input'!J1126=\"Yes\",'TSA Input'!J1126=\"Contingent\"),'TSA Input'!F1126,\"\"))","v":""},"","Required","Required"]
["",null,{"$f":"IF('TSA Input'!J1127=\"\",\"\",IF(OR('TSA Input'!J1127=\"Yes\",'TSA Input'!J1127=\"Contingent\"),'TSA Input'!B1127,\"Ineligible\"))","v":""},{"$f":"IF('TSA Input'!J1127=\"\",\"\",IF(OR('TSA Input'!J1127=\"Yes\",'TSA Input'!J1127=\"Contingent\"),'TSA Input'!I1127,\"\"))","v":""},{"$f":"IF('TSA Input'!J1127=\"\",\"\",IF(OR('TSA Input'!J1127=\"Yes\",'TSA Input'!J1127=\"Contingent\"),'TSA Input'!C1127,\"\"))","v":""},{"$f":"IF('TSA Input'!J1127=\"\",\"\",IF(OR('TSA Input'!J1127=\"Yes\",'TSA Input'!J1127=\"Contingent\"),'TSA Input'!D1127,\"\"))","v":""},{"$f":"IF('TSA Input'!J1127=\"\",\"\",IF(OR('TSA Input'!J1127=\"Yes\",'TSA Input'!J1127=\"Contingent\"),'TSA Input'!G1127,\"\"))","v":""},{"$f":"IF('TSA Input'!J1127=\"\",\"\",IF(OR('TSA Input'!J1127=\"Yes\",'TSA Input'!J1127=\"Contingent\"),'TSA Input'!F1127,\"\"))","v":""},"",{"$f":"IF('TSA Input'!J1127=\"\",\"\",IF(OR('TSA Input'!J1127=\"Yes\",'TSA Input'!J1127=\"Contingent\"),'TSA Input'!D1127,\"\"))","v":""},{"$f":"IF('TSA Input'!J1127=\"\",\"\",IF(OR('TSA Input'!J1127=\"Yes\",'TSA Input'!J1127=\"Contingent\"),'TSA Input'!G1127,\"\"))","v":""},{"$f":"IF('TSA Input'!J1127=\"\",\"\",IF(OR('TSA Input'!J1127=\"Yes\",'TSA Input'!J1127=\"Contingent\"),'TSA Input'!F1127,\"\"))","v":""},"","Required","Required"]
["",null,{"$f":"IF('TSA Input'!J1128=\"\",\"\",IF(OR('TSA Input'!J1128=\"Yes\",'TSA Input'!J1128=\"Contingent\"),'TSA Input'!B1128,\"Ineligible\"))","v":""},{"$f":"IF('TSA Input'!J1128=\"\",\"\",IF(OR('TSA Input'!J1128=\"Yes\",'TSA Input'!J1128=\"Contingent\"),'TSA Input'!I1128,\"\"))","v":""},{"$f":"IF('TSA Input'!J1128=\"\",\"\",IF(OR('TSA Input'!J1128=\"Yes\",'TSA Input'!J1128=\"Contingent\"),'TSA Input'!C1128,\"\"))","v":""},{"$f":"IF('TSA Input'!J1128=\"\",\"\",IF(OR('TSA Input'!J1128=\"Yes\",'TSA Input'!J1128=\"Contingent\"),'TSA Input'!D1128,\"\"))","v":""},{"$f":"IF('TSA Input'!J1128=\"\",\"\",IF(OR('TSA Input'!J1128=\"Yes\",'TSA Input'!J1128=\"Contingent\"),'TSA Input'!G1128,\"\"))","v":""},{"$f":"IF('TSA Input'!J1128=\"\",\"\",IF(OR('TSA Input'!J1128=\"Yes\",'TSA Input'!J1128=\"Contingent\"),'TSA Input'!F1128,\"\"))","v":""},"",{"$f":"IF('TSA Input'!J1128=\"\",\"\",IF(OR('TSA Input'!J1128=\"Yes\",'TSA Input'!J1128=\"Contingent\"),'TSA Input'!D1128,\"\"))","v":""},{"$f":"IF('TSA Input'!J1128=\"\",\"\",IF(OR('TSA Input'!J1128=\"Yes\",'TSA Input'!J1128=\"Contingent\"),'TSA Input'!G1128,\"\"))","v":""},{"$f":"IF('TSA Input'!J1128=\"\",\"\",IF(OR('TSA Input'!J1128=\"Yes\",'TSA Input'!J1128=\"Contingent\"),'TSA Input'!F1128,\"\"))","v":""},"","Required","Required"]
["",null,{"$f":"IF('TSA Input'!J1129=\"\",\"\",IF(OR('TSA Input'!J1129=\"Yes\",'TSA Input'!J1129=\"Contingent\"),'TSA Input'!B1129,\"Ineligible\"))","v":""},{"$f":"IF('TSA Input'!J1129=\"\",\"\",IF(OR('TSA Input'!J1129=\"Yes\",'TSA Input'!J1129=\"Contingent\"),'TSA Input'!I1129,\"\"))","v":""},{"$f":"IF('TSA Input'!J1129=\"\",\"\",IF(OR('TSA Input'!J1129=\"Yes\",'TSA Input'!J1129=\"Contingent\"),'TSA Input'!C1129,\"\"))","v":""},{"$f":"IF('TSA Input'!J1129=\"\",\"\",IF(OR('TSA Input'!J1129=\"Yes\",'TSA Input'!J1129=\"Contingent\"),'TSA Input'!D1129,\"\"))","v":""},{"$f":"IF('TSA Input'!J1129=\"\",\"\",IF(OR('TSA Input'!J1129=\"Yes\",'TSA Input'!J1129=\"Contingent\"),'TSA Input'!G1129,\"\"))","v":""},{"$f":"IF('TSA Input'!J1129=\"\",\"\",IF(OR('TSA Input'!J1129=\"Yes\",'TSA Input'!J1129=\"Contingent\"),'TSA Input'!F1129,\"\"))","v":""},"",{"$f":"IF('TSA Input'!J1129=\"\",\"\",IF(OR('TSA Input'!J1129=\"Yes\",'TSA Input'!J1129=\"Contingent\"),'TSA Input'!D1129,\"\"))","v":""},{"$f":"IF('TSA Input'!J1129=\"\",\"\",IF(OR('TSA Input'!J1129=\"Yes\",'TSA Input'!J1129=\"Contingent\"),'TSA Input'!G1129,\"\"))","v":""},{"$f":"IF('TSA Input'!J1129=\"\",\"\",IF(OR('TSA Input'!J1129=\"Yes\",'TSA Input'!J1129=\"Contingent\"),'TSA Input'!F1129,\"\"))","v":""},"","Required","Required"]
["",null,{"$f":"IF('TSA Input'!J1130=\"\",\"\",IF(OR('TSA Input'!J1130=\"Yes\",'TSA Input'!J1130=\"Contingent\"),'TSA Input'!B1130,\"Ineligible\"))","v":""},{"$f":"IF('TSA Input'!J1130=\"\",\"\",IF(OR('TSA Input'!J1130=\"Yes\",'TSA Input'!J1130=\"Contingent\"),'TSA Input'!I1130,\"\"))","v":""},{"$f":"IF('TSA Input'!J1130=\"\",\"\",IF(OR('TSA Input'!J1130=\"Yes\",'TSA Input'!J1130=\"Contingent\"),'TSA Input'!C1130,\"\"))","v":""},{"$f":"IF('TSA Input'!J1130=\"\",\"\",IF(OR('TSA Input'!J1130=\"Yes\",'TSA Input'!J1130=\"Contingent\"),'TSA Input'!D1130,\"\"))","v":""},{"$f":"IF('TSA Input'!J1130=\"\",\"\",IF(OR('TSA Input'!J1130=\"Yes\",'TSA Input'!J1130=\"Contingent\"),'TSA Input'!G1130,\"\"))","v":""},{"$f":"IF('TSA Input'!J1130=\"\",\"\",IF(OR('TSA Input'!J1130=\"Yes\",'TSA Input'!J1130=\"Contingent\"),'TSA Input'!F1130,\"\"))","v":""},"",{"$f":"IF('TSA Input'!J1130=\"\",\"\",IF(OR('TSA Input'!J1130=\"Yes\",'TSA Input'!J1130=\"Contingent\"),'TSA Input'!D1130,\"\"))","v":""},{"$f":"IF('TSA Input'!J1130=\"\",\"\",IF(OR('TSA Input'!J1130=\"Yes\",'TSA Input'!J1130=\"Contingent\"),'TSA Input'!G1130,\"\"))","v":""},{"$f":"IF('TSA Input'!J1130=\"\",\"\",IF(OR('TSA Input'!J1130=\"Yes\",'TSA Input'!J1130=\"Contingent\"),'TSA Input'!F1130,\"\"))","v":""},"","Required","Required"]
["",null,{"$f":"IF('TSA Input'!J1131=\"\",\"\",IF(OR('TSA Input'!J1131=\"Yes\",'TSA Input'!J1131=\"Contingent\"),'TSA Input'!B1131,\"Ineligible\"))","v":""},{"$f":"IF('TSA Input'!J1131=\"\",\"\",IF(OR('TSA Input'!J1131=\"Yes\",'TSA Input'!J1131=\"Contingent\"),'TSA Input'!I1131,\"\"))","v":""},{"$f":"IF('TSA Input'!J1131=\"\",\"\",IF(OR('TSA Input'!J1131=\"Yes\",'TSA Input'!J1131=\"Contingent\"),'TSA Input'!C1131,\"\"))","v":""},{"$f":"IF('TSA Input'!J1131=\"\",\"\",IF(OR('TSA Input'!J1131=\"Yes\",'TSA Input'!J1131=\"Contingent\"),'TSA Input'!D1131,\"\"))","v":""},{"$f":"IF('TSA Input'!J1131=\"\",\"\",IF(OR('TSA Input'!J1131=\"Yes\",'TSA Input'!J1131=\"Contingent\"),'TSA Input'!G1131,\"\"))","v":""},{"$f":"IF('TSA Input'!J1131=\"\",\"\",IF(OR('TSA Input'!J1131=\"Yes\",'TSA Input'!J1131=\"Contingent\"),'TSA Input'!F1131,\"\"))","v":""},"",{"$f":"IF('TSA Input'!J1131=\"\",\"\",IF(OR('TSA Input'!J1131=\"Yes\",'TSA Input'!J1131=\"Contingent\"),'TSA Input'!D1131,\"\"))","v":""},{"$f":"IF('TSA Input'!J1131=\"\",\"\",IF(OR('TSA Input'!J1131=\"Yes\",'TSA Input'!J1131=\"Contingent\"),'TSA Input'!G1131,\"\"))","v":""},{"$f":"IF('TSA Input'!J1131=\"\",\"\",IF(OR('TSA Input'!J1131=\"Yes\",'TSA Input'!J1131=\"Contingent\"),'TSA Input'!F1131,\"\"))","v":""},"","Required","Required"]
["",null,{"$f":"IF('TSA Input'!J1132=\"\",\"\",IF(OR('TSA Input'!J1132=\"Yes\",'TSA Input'!J1132=\"Contingent\"),'TSA Input'!B1132,\"Ineligible\"))","v":""},{"$f":"IF('TSA Input'!J1132=\"\",\"\",IF(OR('TSA Input'!J1132=\"Yes\",'TSA Input'!J1132=\"Contingent\"),'TSA Input'!I1132,\"\"))","v":""},{"$f":"IF('TSA Input'!J1132=\"\",\"\",IF(OR('TSA Input'!J1132=\"Yes\",'TSA Input'!J1132=\"Contingent\"),'TSA Input'!C1132,\"\"))","v":""},{"$f":"IF('TSA Input'!J1132=\"\",\"\",IF(OR('TSA Input'!J1132=\"Yes\",'TSA Input'!J1132=\"Contingent\"),'TSA Input'!D1132,\"\"))","v":""},{"$f":"IF('TSA Input'!J1132=\"\",\"\",IF(OR('TSA Input'!J1132=\"Yes\",'TSA Input'!J1132=\"Contingent\"),'TSA Input'!G1132,\"\"))","v":""},{"$f":"IF('TSA Input'!J1132=\"\",\"\",IF(OR('TSA Input'!J1132=\"Yes\",'TSA Input'!J1132=\"Contingent\"),'TSA Input'!F1132,\"\"))","v":""},"",{"$f":"IF('TSA Input'!J1132=\"\",\"\",IF(OR('TSA Input'!J1132=\"Yes\",'TSA Input'!J1132=\"Contingent\"),'TSA Input'!D1132,\"\"))","v":""},{"$f":"IF('TSA Input'!J1132=\"\",\"\",IF(OR('TSA Input'!J1132=\"Yes\",'TSA Input'!J1132=\"Contingent\"),'TSA Input'!G1132,\"\"))","v":""},{"$f":"IF('TSA Input'!J1132=\"\",\"\",IF(OR('TSA Input'!J1132=\"Yes\",'TSA Input'!J1132=\"Contingent\"),'TSA Input'!F1132,\"\"))","v":""},"","Required","Required"]
["",null,{"$f":"IF('TSA Input'!J1133=\"\",\"\",IF(OR('TSA Input'!J1133=\"Yes\",'TSA Input'!J1133=\"Contingent\"),'TSA Input'!B1133,\"Ineligible\"))","v":""},{"$f":"IF('TSA Input'!J1133=\"\",\"\",IF(OR('TSA Input'!J1133=\"Yes\",'TSA Input'!J1133=\"Contingent\"),'TSA Input'!I1133,\"\"))","v":""},{"$f":"IF('TSA Input'!J1133=\"\",\"\",IF(OR('TSA Input'!J1133=\"Yes\",'TSA Input'!J1133=\"Contingent\"),'TSA Input'!C1133,\"\"))","v":""},{"$f":"IF('TSA Input'!J1133=\"\",\"\",IF(OR('TSA Input'!J1133=\"Yes\",'TSA Input'!J1133=\"Contingent\"),'TSA Input'!D1133,\"\"))","v":""},{"$f":"IF('TSA Input'!J1133=\"\",\"\",IF(OR('TSA Input'!J1133=\"Yes\",'TSA Input'!J1133=\"Contingent\"),'TSA Input'!G1133,\"\"))","v":""},{"$f":"IF('TSA Input'!J1133=\"\",\"\",IF(OR('TSA Input'!J1133=\"Yes\",'TSA Input'!J1133=\"Contingent\"),'TSA Input'!F1133,\"\"))","v":""},"",{"$f":"IF('TSA Input'!J1133=\"\",\"\",IF(OR('TSA Input'!J1133=\"Yes\",'TSA Input'!J1133=\"Contingent\"),'TSA Input'!D1133,\"\"))","v":""},{"$f":"IF('TSA Input'!J1133=\"\",\"\",IF(OR('TSA Input'!J1133=\"Yes\",'TSA Input'!J1133=\"Contingent\"),'TSA Input'!G1133,\"\"))","v":""},{"$f":"IF('TSA Input'!J1133=\"\",\"\",IF(OR('TSA Input'!J1133=\"Yes\",'TSA Input'!J1133=\"Contingent\"),'TSA Input'!F1133,\"\"))","v":""},"","Required","Required"]
["",null,{"$f":"IF('TSA Input'!J1134=\"\",\"\",IF(OR('TSA Input'!J1134=\"Yes\",'TSA Input'!J1134=\"Contingent\"),'TSA Input'!B1134,\"Ineligible\"))","v":""},{"$f":"IF('TSA Input'!J1134=\"\",\"\",IF(OR('TSA Input'!J1134=\"Yes\",'TSA Input'!J1134=\"Contingent\"),'TSA Input'!I1134,\"\"))","v":""},{"$f":"IF('TSA Input'!J1134=\"\",\"\",IF(OR('TSA Input'!J1134=\"Yes\",'TSA Input'!J1134=\"Contingent\"),'TSA Input'!C1134,\"\"))","v":""},{"$f":"IF('TSA Input'!J1134=\"\",\"\",IF(OR('TSA Input'!J1134=\"Yes\",'TSA Input'!J1134=\"Contingent\"),'TSA Input'!D1134,\"\"))","v":""},{"$f":"IF('TSA Input'!J1134=\"\",\"\",IF(OR('TSA Input'!J1134=\"Yes\",'TSA Input'!J1134=\"Contingent\"),'TSA Input'!G1134,\"\"))","v":""},{"$f":"IF('TSA Input'!J1134=\"\",\"\",IF(OR('TSA Input'!J1134=\"Yes\",'TSA Input'!J1134=\"Contingent\"),'TSA Input'!F1134,\"\"))","v":""},"",{"$f":"IF('TSA Input'!J1134=\"\",\"\",IF(OR('TSA Input'!J1134=\"Yes\",'TSA Input'!J1134=\"Contingent\"),'TSA Input'!D1134,\"\"))","v":""},{"$f":"IF('TSA Input'!J1134=\"\",\"\",IF(OR('TSA Input'!J1134=\"Yes\",'TSA Input'!J1134=\"Contingent\"),'TSA Input'!G1134,\"\"))","v":""},{"$f":"IF('TSA Input'!J1134=\"\",\"\",IF(OR('TSA Input'!J1134=\"Yes\",'TSA Input'!J1134=\"Contingent\"),'TSA Input'!F1134,\"\"))","v":""},"","Required","Required"]
["",null,{"$f":"IF('TSA Input'!J1135=\"\",\"\",IF(OR('TSA Input'!J1135=\"Yes\",'TSA Input'!J1135=\"Contingent\"),'TSA Input'!B1135,\"Ineligible\"))","v":""},{"$f":"IF('TSA Input'!J1135=\"\",\"\",IF(OR('TSA Input'!J1135=\"Yes\",'TSA Input'!J1135=\"Contingent\"),'TSA Input'!I1135,\"\"))","v":""},{"$f":"IF('TSA Input'!J1135=\"\",\"\",IF(OR('TSA Input'!J1135=\"Yes\",'TSA Input'!J1135=\"Contingent\"),'TSA Input'!C1135,\"\"))","v":""},{"$f":"IF('TSA Input'!J1135=\"\",\"\",IF(OR('TSA Input'!J1135=\"Yes\",'TSA Input'!J1135=\"Contingent\"),'TSA Input'!D1135,\"\"))","v":""},{"$f":"IF('TSA Input'!J1135=\"\",\"\",IF(OR('TSA Input'!J1135=\"Yes\",'TSA Input'!J1135=\"Contingent\"),'TSA Input'!G1135,\"\"))","v":""},{"$f":"IF('TSA Input'!J1135=\"\",\"\",IF(OR('TSA Input'!J1135=\"Yes\",'TSA Input'!J1135=\"Contingent\"),'TSA Input'!F1135,\"\"))","v":""},"",{"$f":"IF('TSA Input'!J1135=\"\",\"\",IF(OR('TSA Input'!J1135=\"Yes\",'TSA Input'!J1135=\"Contingent\"),'TSA Input'!D1135,\"\"))","v":""},{"$f":"IF('TSA Input'!J1135=\"\",\"\",IF(OR('TSA Input'!J1135=\"Yes\",'TSA Input'!J1135=\"Contingent\"),'TSA Input'!G1135,\"\"))","v":""},{"$f":"IF('TSA Input'!J1135=\"\",\"\",IF(OR('TSA Input'!J1135=\"Yes\",'TSA Input'!J1135=\"Contingent\"),'TSA Input'!F1135,\"\"))","v":""},"","Required","Required"]
["",null,{"$f":"IF('TSA Input'!J1136=\"\",\"\",IF(OR('TSA Input'!J1136=\"Yes\",'TSA Input'!J1136=\"Contingent\"),'TSA Input'!B1136,\"Ineligible\"))","v":""},{"$f":"IF('TSA Input'!J1136=\"\",\"\",IF(OR('TSA Input'!J1136=\"Yes\",'TSA Input'!J1136=\"Contingent\"),'TSA Input'!I1136,\"\"))","v":""},{"$f":"IF('TSA Input'!J1136=\"\",\"\",IF(OR('TSA Input'!J1136=\"Yes\",'TSA Input'!J1136=\"Contingent\"),'TSA Input'!C1136,\"\"))","v":""},{"$f":"IF('TSA Input'!J1136=\"\",\"\",IF(OR('TSA Input'!J1136=\"Yes\",'TSA Input'!J1136=\"Contingent\"),'TSA Input'!D1136,\"\"))","v":""},{"$f":"IF('TSA Input'!J1136=\"\",\"\",IF(OR('TSA Input'!J1136=\"Yes\",'TSA Input'!J1136=\"Contingent\"),'TSA Input'!G1136,\"\"))","v":""},{"$f":"IF('TSA Input'!J1136=\"\",\"\",IF(OR('TSA Input'!J1136=\"Yes\",'TSA Input'!J1136=\"Contingent\"),'TSA Input'!F1136,\"\"))","v":""},"",{"$f":"IF('TSA Input'!J1136=\"\",\"\",IF(OR('TSA Input'!J1136=\"Yes\",'TSA Input'!J1136=\"Contingent\"),'TSA Input'!D1136,\"\"))","v":""},{"$f":"IF('TSA Input'!J1136=\"\",\"\",IF(OR('TSA Input'!J1136=\"Yes\",'TSA Input'!J1136=\"Contingent\"),'TSA Input'!G1136,\"\"))","v":""},{"$f":"IF('TSA Input'!J1136=\"\",\"\",IF(OR('TSA Input'!J1136=\"Yes\",'TSA Input'!J1136=\"Contingent\"),'TSA Input'!F1136,\"\"))","v":""},"","Required","Required"]
["",null,{"$f":"IF('TSA Input'!J1137=\"\",\"\",IF(OR('TSA Input'!J1137=\"Yes\",'TSA Input'!J1137=\"Contingent\"),'TSA Input'!B1137,\"Ineligible\"))","v":""},{"$f":"IF('TSA Input'!J1137=\"\",\"\",IF(OR('TSA Input'!J1137=\"Yes\",'TSA Input'!J1137=\"Contingent\"),'TSA Input'!I1137,\"\"))","v":""},{"$f":"IF('TSA Input'!J1137=\"\",\"\",IF(OR('TSA Input'!J1137=\"Yes\",'TSA Input'!J1137=\"Contingent\"),'TSA Input'!C1137,\"\"))","v":""},{"$f":"IF('TSA Input'!J1137=\"\",\"\",IF(OR('TSA Input'!J1137=\"Yes\",'TSA Input'!J1137=\"Contingent\"),'TSA Input'!D1137,\"\"))","v":""},{"$f":"IF('TSA Input'!J1137=\"\",\"\",IF(OR('TSA Input'!J1137=\"Yes\",'TSA Input'!J1137=\"Contingent\"),'TSA Input'!G1137,\"\"))","v":""},{"$f":"IF('TSA Input'!J1137=\"\",\"\",IF(OR('TSA Input'!J1137=\"Yes\",'TSA Input'!J1137=\"Contingent\"),'TSA Input'!F1137,\"\"))","v":""},"",{"$f":"IF('TSA Input'!J1137=\"\",\"\",IF(OR('TSA Input'!J1137=\"Yes\",'TSA Input'!J1137=\"Contingent\"),'TSA Input'!D1137,\"\"))","v":""},{"$f":"IF('TSA Input'!J1137=\"\",\"\",IF(OR('TSA Input'!J1137=\"Yes\",'TSA Input'!J1137=\"Contingent\"),'TSA Input'!G1137,\"\"))","v":""},{"$f":"IF('TSA Input'!J1137=\"\",\"\",IF(OR('TSA Input'!J1137=\"Yes\",'TSA Input'!J1137=\"Contingent\"),'TSA Input'!F1137,\"\"))","v":""},"","Required","Required"]
["",null,{"$f":"IF('TSA Input'!J1138=\"\",\"\",IF(OR('TSA Input'!J1138=\"Yes\",'TSA Input'!J1138=\"Contingent\"),'TSA Input'!B1138,\"Ineligible\"))","v":""},{"$f":"IF('TSA Input'!J1138=\"\",\"\",IF(OR('TSA Input'!J1138=\"Yes\",'TSA Input'!J1138=\"Contingent\"),'TSA Input'!I1138,\"\"))","v":""},{"$f":"IF('TSA Input'!J1138=\"\",\"\",IF(OR('TSA Input'!J1138=\"Yes\",'TSA Input'!J1138=\"Contingent\"),'TSA Input'!C1138,\"\"))","v":""},{"$f":"IF('TSA Input'!J1138=\"\",\"\",IF(OR('TSA Input'!J1138=\"Yes\",'TSA Input'!J1138=\"Contingent\"),'TSA Input'!D1138,\"\"))","v":""},{"$f":"IF('TSA Input'!J1138=\"\",\"\",IF(OR('TSA Input'!J1138=\"Yes\",'TSA Input'!J1138=\"Contingent\"),'TSA Input'!G1138,\"\"))","v":""},{"$f":"IF('TSA Input'!J1138=\"\",\"\",IF(OR('TSA Input'!J1138=\"Yes\",'TSA Input'!J1138=\"Contingent\"),'TSA Input'!F1138,\"\"))","v":""},"",{"$f":"IF('TSA Input'!J1138=\"\",\"\",IF(OR('TSA Input'!J1138=\"Yes\",'TSA Input'!J1138=\"Contingent\"),'TSA Input'!D1138,\"\"))","v":""},{"$f":"IF('TSA Input'!J1138=\"\",\"\",IF(OR('TSA Input'!J1138=\"Yes\",'TSA Input'!J1138=\"Contingent\"),'TSA Input'!G1138,\"\"))","v":""},{"$f":"IF('TSA Input'!J1138=\"\",\"\",IF(OR('TSA Input'!J1138=\"Yes\",'TSA Input'!J1138=\"Contingent\"),'TSA Input'!F1138,\"\"))","v":""},"","Required","Required"]
["",null,{"$f":"IF('TSA Input'!J1139=\"\",\"\",IF(OR('TSA Input'!J1139=\"Yes\",'TSA Input'!J1139=\"Contingent\"),'TSA Input'!B1139,\"Ineligible\"))","v":""},{"$f":"IF('TSA Input'!J1139=\"\",\"\",IF(OR('TSA Input'!J1139=\"Yes\",'TSA Input'!J1139=\"Contingent\"),'TSA Input'!I1139,\"\"))","v":""},{"$f":"IF('TSA Input'!J1139=\"\",\"\",IF(OR('TSA Input'!J1139=\"Yes\",'TSA Input'!J1139=\"Contingent\"),'TSA Input'!C1139,\"\"))","v":""},{"$f":"IF('TSA Input'!J1139=\"\",\"\",IF(OR('TSA Input'!J1139=\"Yes\",'TSA Input'!J1139=\"Contingent\"),'TSA Input'!D1139,\"\"))","v":""},{"$f":"IF('TSA Input'!J1139=\"\",\"\",IF(OR('TSA Input'!J1139=\"Yes\",'TSA Input'!J1139=\"Contingent\"),'TSA Input'!G1139,\"\"))","v":""},{"$f":"IF('TSA Input'!J1139=\"\",\"\",IF(OR('TSA Input'!J1139=\"Yes\",'TSA Input'!J1139=\"Contingent\"),'TSA Input'!F1139,\"\"))","v":""},"",{"$f":"IF('TSA Input'!J1139=\"\",\"\",IF(OR('TSA Input'!J1139=\"Yes\",'TSA Input'!J1139=\"Contingent\"),'TSA Input'!D1139,\"\"))","v":""},{"$f":"IF('TSA Input'!J1139=\"\",\"\",IF(OR('TSA Input'!J1139=\"Yes\",'TSA Input'!J1139=\"Contingent\"),'TSA Input'!G1139,\"\"))","v":""},{"$f":"IF('TSA Input'!J1139=\"\",\"\",IF(OR('TSA Input'!J1139=\"Yes\",'TSA Input'!J1139=\"Contingent\"),'TSA Input'!F1139,\"\"))","v":""},"","Required","Required"]
["",null,{"$f":"IF('TSA Input'!J1140=\"\",\"\",IF(OR('TSA Input'!J1140=\"Yes\",'TSA Input'!J1140=\"Contingent\"),'TSA Input'!B1140,\"Ineligible\"))","v":""},{"$f":"IF('TSA Input'!J1140=\"\",\"\",IF(OR('TSA Input'!J1140=\"Yes\",'TSA Input'!J1140=\"Contingent\"),'TSA Input'!I1140,\"\"))","v":""},{"$f":"IF('TSA Input'!J1140=\"\",\"\",IF(OR('TSA Input'!J1140=\"Yes\",'TSA Input'!J1140=\"Contingent\"),'TSA Input'!C1140,\"\"))","v":""},{"$f":"IF('TSA Input'!J1140=\"\",\"\",IF(OR('TSA Input'!J1140=\"Yes\",'TSA Input'!J1140=\"Contingent\"),'TSA Input'!D1140,\"\"))","v":""},{"$f":"IF('TSA Input'!J1140=\"\",\"\",IF(OR('TSA Input'!J1140=\"Yes\",'TSA Input'!J1140=\"Contingent\"),'TSA Input'!G1140,\"\"))","v":""},{"$f":"IF('TSA Input'!J1140=\"\",\"\",IF(OR('TSA Input'!J1140=\"Yes\",'TSA Input'!J1140=\"Contingent\"),'TSA Input'!F1140,\"\"))","v":""},"",{"$f":"IF('TSA Input'!J1140=\"\",\"\",IF(OR('TSA Input'!J1140=\"Yes\",'TSA Input'!J1140=\"Contingent\"),'TSA Input'!D1140,\"\"))","v":""},{"$f":"IF('TSA Input'!J1140=\"\",\"\",IF(OR('TSA Input'!J1140=\"Yes\",'TSA Input'!J1140=\"Contingent\"),'TSA Input'!G1140,\"\"))","v":""},{"$f":"IF('TSA Input'!J1140=\"\",\"\",IF(OR('TSA Input'!J1140=\"Yes\",'TSA Input'!J1140=\"Contingent\"),'TSA Input'!F1140,\"\"))","v":""},"","Required","Required"]
["",null,{"$f":"IF('TSA Input'!J1141=\"\",\"\",IF(OR('TSA Input'!J1141=\"Yes\",'TSA Input'!J1141=\"Contingent\"),'TSA Input'!B1141,\"Ineligible\"))","v":""},{"$f":"IF('TSA Input'!J1141=\"\",\"\",IF(OR('TSA Input'!J1141=\"Yes\",'TSA Input'!J1141=\"Contingent\"),'TSA Input'!I1141,\"\"))","v":""},{"$f":"IF('TSA Input'!J1141=\"\",\"\",IF(OR('TSA Input'!J1141=\"Yes\",'TSA Input'!J1141=\"Contingent\"),'TSA Input'!C1141,\"\"))","v":""},{"$f":"IF('TSA Input'!J1141=\"\",\"\",IF(OR('TSA Input'!J1141=\"Yes\",'TSA Input'!J1141=\"Contingent\"),'TSA Input'!D1141,\"\"))","v":""},{"$f":"IF('TSA Input'!J1141=\"\",\"\",IF(OR('TSA Input'!J1141=\"Yes\",'TSA Input'!J1141=\"Contingent\"),'TSA Input'!G1141,\"\"))","v":""},{"$f":"IF('TSA Input'!J1141=\"\",\"\",IF(OR('TSA Input'!J1141=\"Yes\",'TSA Input'!J1141=\"Contingent\"),'TSA Input'!F1141,\"\"))","v":""},"",{"$f":"IF('TSA Input'!J1141=\"\",\"\",IF(OR('TSA Input'!J1141=\"Yes\",'TSA Input'!J1141=\"Contingent\"),'TSA Input'!D1141,\"\"))","v":""},{"$f":"IF('TSA Input'!J1141=\"\",\"\",IF(OR('TSA Input'!J1141=\"Yes\",'TSA Input'!J1141=\"Contingent\"),'TSA Input'!G1141,\"\"))","v":""},{"$f":"IF('TSA Input'!J1141=\"\",\"\",IF(OR('TSA Input'!J1141=\"Yes\",'TSA Input'!J1141=\"Contingent\"),'TSA Input'!F1141,\"\"))","v":""},"","Required","Required"]
["",null,{"$f":"IF('TSA Input'!J1142=\"\",\"\",IF(OR('TSA Input'!J1142=\"Yes\",'TSA Input'!J1142=\"Contingent\"),'TSA Input'!B1142,\"Ineligible\"))","v":""},{"$f":"IF('TSA Input'!J1142=\"\",\"\",IF(OR('TSA Input'!J1142=\"Yes\",'TSA Input'!J1142=\"Contingent\"),'TSA Input'!I1142,\"\"))","v":""},{"$f":"IF('TSA Input'!J1142=\"\",\"\",IF(OR('TSA Input'!J1142=\"Yes\",'TSA Input'!J1142=\"Contingent\"),'TSA Input'!C1142,\"\"))","v":""},{"$f":"IF('TSA Input'!J1142=\"\",\"\",IF(OR('TSA Input'!J1142=\"Yes\",'TSA Input'!J1142=\"Contingent\"),'TSA Input'!D1142,\"\"))","v":""},{"$f":"IF('TSA Input'!J1142=\"\",\"\",IF(OR('TSA Input'!J1142=\"Yes\",'TSA Input'!J1142=\"Contingent\"),'TSA Input'!G1142,\"\"))","v":""},{"$f":"IF('TSA Input'!J1142=\"\",\"\",IF(OR('TSA Input'!J1142=\"Yes\",'TSA Input'!J1142=\"Contingent\"),'TSA Input'!F1142,\"\"))","v":""},"",{"$f":"IF('TSA Input'!J1142=\"\",\"\",IF(OR('TSA Input'!J1142=\"Yes\",'TSA Input'!J1142=\"Contingent\"),'TSA Input'!D1142,\"\"))","v":""},{"$f":"IF('TSA Input'!J1142=\"\",\"\",IF(OR('TSA Input'!J1142=\"Yes\",'TSA Input'!J1142=\"Contingent\"),'TSA Input'!G1142,\"\"))","v":""},{"$f":"IF('TSA Input'!J1142=\"\",\"\",IF(OR('TSA Input'!J1142=\"Yes\",'TSA Input'!J1142=\"Contingent\"),'TSA Input'!F1142,\"\"))","v":""},"","Required","Required"]
["",null,{"$f":"IF('TSA Input'!J1143=\"\",\"\",IF(OR('TSA Input'!J1143=\"Yes\",'TSA Input'!J1143=\"Contingent\"),'TSA Input'!B1143,\"Ineligible\"))","v":""},{"$f":"IF('TSA Input'!J1143=\"\",\"\",IF(OR('TSA Input'!J1143=\"Yes\",'TSA Input'!J1143=\"Contingent\"),'TSA Input'!I1143,\"\"))","v":""},{"$f":"IF('TSA Input'!J1143=\"\",\"\",IF(OR('TSA Input'!J1143=\"Yes\",'TSA Input'!J1143=\"Contingent\"),'TSA Input'!C1143,\"\"))","v":""},{"$f":"IF('TSA Input'!J1143=\"\",\"\",IF(OR('TSA Input'!J1143=\"Yes\",'TSA Input'!J1143=\"Contingent\"),'TSA Input'!D1143,\"\"))","v":""},{"$f":"IF('TSA Input'!J1143=\"\",\"\",IF(OR('TSA Input'!J1143=\"Yes\",'TSA Input'!J1143=\"Contingent\"),'TSA Input'!G1143,\"\"))","v":""},{"$f":"IF('TSA Input'!J1143=\"\",\"\",IF(OR('TSA Input'!J1143=\"Yes\",'TSA Input'!J1143=\"Contingent\"),'TSA Input'!F1143,\"\"))","v":""},"",{"$f":"IF('TSA Input'!J1143=\"\",\"\",IF(OR('TSA Input'!J1143=\"Yes\",'TSA Input'!J1143=\"Contingent\"),'TSA Input'!D1143,\"\"))","v":""},{"$f":"IF('TSA Input'!J1143=\"\",\"\",IF(OR('TSA Input'!J1143=\"Yes\",'TSA Input'!J1143=\"Contingent\"),'TSA Input'!G1143,\"\"))","v":""},{"$f":"IF('TSA Input'!J1143=\"\",\"\",IF(OR('TSA Input'!J1143=\"Yes\",'TSA Input'!J1143=\"Contingent\"),'TSA Input'!F1143,\"\"))","v":""},"","Required","Required"]
["",null,{"$f":"IF('TSA Input'!J1144=\"\",\"\",IF(OR('TSA Input'!J1144=\"Yes\",'TSA Input'!J1144=\"Contingent\"),'TSA Input'!B1144,\"Ineligible\"))","v":""},{"$f":"IF('TSA Input'!J1144=\"\",\"\",IF(OR('TSA Input'!J1144=\"Yes\",'TSA Input'!J1144=\"Contingent\"),'TSA Input'!I1144,\"\"))","v":""},{"$f":"IF('TSA Input'!J1144=\"\",\"\",IF(OR('TSA Input'!J1144=\"Yes\",'TSA Input'!J1144=\"Contingent\"),'TSA Input'!C1144,\"\"))","v":""},{"$f":"IF('TSA Input'!J1144=\"\",\"\",IF(OR('TSA Input'!J1144=\"Yes\",'TSA Input'!J1144=\"Contingent\"),'TSA Input'!D1144,\"\"))","v":""},{"$f":"IF('TSA Input'!J1144=\"\",\"\",IF(OR('TSA Input'!J1144=\"Yes\",'TSA Input'!J1144=\"Contingent\"),'TSA Input'!G1144,\"\"))","v":""},{"$f":"IF('TSA Input'!J1144=\"\",\"\",IF(OR('TSA Input'!J1144=\"Yes\",'TSA Input'!J1144=\"Contingent\"),'TSA Input'!F1144,\"\"))","v":""},"",{"$f":"IF('TSA Input'!J1144=\"\",\"\",IF(OR('TSA Input'!J1144=\"Yes\",'TSA Input'!J1144=\"Contingent\"),'TSA Input'!D1144,\"\"))","v":""},{"$f":"IF('TSA Input'!J1144=\"\",\"\",IF(OR('TSA Input'!J1144=\"Yes\",'TSA Input'!J1144=\"Contingent\"),'TSA Input'!G1144,\"\"))","v":""},{"$f":"IF('TSA Input'!J1144=\"\",\"\",IF(OR('TSA Input'!J1144=\"Yes\",'TSA Input'!J1144=\"Contingent\"),'TSA Input'!F1144,\"\"))","v":""},"","Required","Required"]
["",null,{"$f":"IF('TSA Input'!J1145=\"\",\"\",IF(OR('TSA Input'!J1145=\"Yes\",'TSA Input'!J1145=\"Contingent\"),'TSA Input'!B1145,\"Ineligible\"))","v":""},{"$f":"IF('TSA Input'!J1145=\"\",\"\",IF(OR('TSA Input'!J1145=\"Yes\",'TSA Input'!J1145=\"Contingent\"),'TSA Input'!I1145,\"\"))","v":""},{"$f":"IF('TSA Input'!J1145=\"\",\"\",IF(OR('TSA Input'!J1145=\"Yes\",'TSA Input'!J1145=\"Contingent\"),'TSA Input'!C1145,\"\"))","v":""},{"$f":"IF('TSA Input'!J1145=\"\",\"\",IF(OR('TSA Input'!J1145=\"Yes\",'TSA Input'!J1145=\"Contingent\"),'TSA Input'!D1145,\"\"))","v":""},{"$f":"IF('TSA Input'!J1145=\"\",\"\",IF(OR('TSA Input'!J1145=\"Yes\",'TSA Input'!J1145=\"Contingent\"),'TSA Input'!G1145,\"\"))","v":""},{"$f":"IF('TSA Input'!J1145=\"\",\"\",IF(OR('TSA Input'!J1145=\"Yes\",'TSA Input'!J1145=\"Contingent\"),'TSA Input'!F1145,\"\"))","v":""},"",{"$f":"IF('TSA Input'!J1145=\"\",\"\",IF(OR('TSA Input'!J1145=\"Yes\",'TSA Input'!J1145=\"Contingent\"),'TSA Input'!D1145,\"\"))","v":""},{"$f":"IF('TSA Input'!J1145=\"\",\"\",IF(OR('TSA Input'!J1145=\"Yes\",'TSA Input'!J1145=\"Contingent\"),'TSA Input'!G1145,\"\"))","v":""},{"$f":"IF('TSA Input'!J1145=\"\",\"\",IF(OR('TSA Input'!J1145=\"Yes\",'TSA Input'!J1145=\"Contingent\"),'TSA Input'!F1145,\"\"))","v":""},"","Required","Required"]
["",null,{"$f":"IF('TSA Input'!J1146=\"\",\"\",IF(OR('TSA Input'!J1146=\"Yes\",'TSA Input'!J1146=\"Contingent\"),'TSA Input'!B1146,\"Ineligible\"))","v":""},{"$f":"IF('TSA Input'!J1146=\"\",\"\",IF(OR('TSA Input'!J1146=\"Yes\",'TSA Input'!J1146=\"Contingent\"),'TSA Input'!I1146,\"\"))","v":""},{"$f":"IF('TSA Input'!J1146=\"\",\"\",IF(OR('TSA Input'!J1146=\"Yes\",'TSA Input'!J1146=\"Contingent\"),'TSA Input'!C1146,\"\"))","v":""},{"$f":"IF('TSA Input'!J1146=\"\",\"\",IF(OR('TSA Input'!J1146=\"Yes\",'TSA Input'!J1146=\"Contingent\"),'TSA Input'!D1146,\"\"))","v":""},{"$f":"IF('TSA Input'!J1146=\"\",\"\",IF(OR('TSA Input'!J1146=\"Yes\",'TSA Input'!J1146=\"Contingent\"),'TSA Input'!G1146,\"\"))","v":""},{"$f":"IF('TSA Input'!J1146=\"\",\"\",IF(OR('TSA Input'!J1146=\"Yes\",'TSA Input'!J1146=\"Contingent\"),'TSA Input'!F1146,\"\"))","v":""},"",{"$f":"IF('TSA Input'!J1146=\"\",\"\",IF(OR('TSA Input'!J1146=\"Yes\",'TSA Input'!J1146=\"Contingent\"),'TSA Input'!D1146,\"\"))","v":""},{"$f":"IF('TSA Input'!J1146=\"\",\"\",IF(OR('TSA Input'!J1146=\"Yes\",'TSA Input'!J1146=\"Contingent\"),'TSA Input'!G1146,\"\"))","v":""},{"$f":"IF('TSA Input'!J1146=\"\",\"\",IF(OR('TSA Input'!J1146=\"Yes\",'TSA Input'!J1146=\"Contingent\"),'TSA Input'!F1146,\"\"))","v":""},"","Required","Required"]
["",null,{"$f":"IF('TSA Input'!J1147=\"\",\"\",IF(OR('TSA Input'!J1147=\"Yes\",'TSA Input'!J1147=\"Contingent\"),'TSA Input'!B1147,\"Ineligible\"))","v":""},{"$f":"IF('TSA Input'!J1147=\"\",\"\",IF(OR('TSA Input'!J1147=\"Yes\",'TSA Input'!J1147=\"Contingent\"),'TSA Input'!I1147,\"\"))","v":""},{"$f":"IF('TSA Input'!J1147=\"\",\"\",IF(OR('TSA Input'!J1147=\"Yes\",'TSA Input'!J1147=\"Contingent\"),'TSA Input'!C1147,\"\"))","v":""},{"$f":"IF('TSA Input'!J1147=\"\",\"\",IF(OR('TSA Input'!J1147=\"Yes\",'TSA Input'!J1147=\"Contingent\"),'TSA Input'!D1147,\"\"))","v":""},{"$f":"IF('TSA Input'!J1147=\"\",\"\",IF(OR('TSA Input'!J1147=\"Yes\",'TSA Input'!J1147=\"Contingent\"),'TSA Input'!G1147,\"\"))","v":""},{"$f":"IF('TSA Input'!J1147=\"\",\"\",IF(OR('TSA Input'!J1147=\"Yes\",'TSA Input'!J1147=\"Contingent\"),'TSA Input'!F1147,\"\"))","v":""},"",{"$f":"IF('TSA Input'!J1147=\"\",\"\",IF(OR('TSA Input'!J1147=\"Yes\",'TSA Input'!J1147=\"Contingent\"),'TSA Input'!D1147,\"\"))","v":""},{"$f":"IF('TSA Input'!J1147=\"\",\"\",IF(OR('TSA Input'!J1147=\"Yes\",'TSA Input'!J1147=\"Contingent\"),'TSA Input'!G1147,\"\"))","v":""},{"$f":"IF('TSA Input'!J1147=\"\",\"\",IF(OR('TSA Input'!J1147=\"Yes\",'TSA Input'!J1147=\"Contingent\"),'TSA Input'!F1147,\"\"))","v":""},"","Required","Required"]
["",null,{"$f":"IF('TSA Input'!J1148=\"\",\"\",IF(OR('TSA Input'!J1148=\"Yes\",'TSA Input'!J1148=\"Contingent\"),'TSA Input'!B1148,\"Ineligible\"))","v":""},{"$f":"IF('TSA Input'!J1148=\"\",\"\",IF(OR('TSA Input'!J1148=\"Yes\",'TSA Input'!J1148=\"Contingent\"),'TSA Input'!I1148,\"\"))","v":""},{"$f":"IF('TSA Input'!J1148=\"\",\"\",IF(OR('TSA Input'!J1148=\"Yes\",'TSA Input'!J1148=\"Contingent\"),'TSA Input'!C1148,\"\"))","v":""},{"$f":"IF('TSA Input'!J1148=\"\",\"\",IF(OR('TSA Input'!J1148=\"Yes\",'TSA Input'!J1148=\"Contingent\"),'TSA Input'!D1148,\"\"))","v":""},{"$f":"IF('TSA Input'!J1148=\"\",\"\",IF(OR('TSA Input'!J1148=\"Yes\",'TSA Input'!J1148=\"Contingent\"),'TSA Input'!G1148,\"\"))","v":""},{"$f":"IF('TSA Input'!J1148=\"\",\"\",IF(OR('TSA Input'!J1148=\"Yes\",'TSA Input'!J1148=\"Contingent\"),'TSA Input'!F1148,\"\"))","v":""},"",{"$f":"IF('TSA Input'!J1148=\"\",\"\",IF(OR('TSA Input'!J1148=\"Yes\",'TSA Input'!J1148=\"Contingent\"),'TSA Input'!D1148,\"\"))","v":""},{"$f":"IF('TSA Input'!J1148=\"\",\"\",IF(OR('TSA Input'!J1148=\"Yes\",'TSA Input'!J1148=\"Contingent\"),'TSA Input'!G1148,\"\"))","v":""},{"$f":"IF('TSA Input'!J1148=\"\",\"\",IF(OR('TSA Input'!J1148=\"Yes\",'TSA Input'!J1148=\"Contingent\"),'TSA Input'!F1148,\"\"))","v":""},"","Required","Required"]
["",null,{"$f":"IF('TSA Input'!J1149=\"\",\"\",IF(OR('TSA Input'!J1149=\"Yes\",'TSA Input'!J1149=\"Contingent\"),'TSA Input'!B1149,\"Ineligible\"))","v":""},{"$f":"IF('TSA Input'!J1149=\"\",\"\",IF(OR('TSA Input'!J1149=\"Yes\",'TSA Input'!J1149=\"Contingent\"),'TSA Input'!I1149,\"\"))","v":""},{"$f":"IF('TSA Input'!J1149=\"\",\"\",IF(OR('TSA Input'!J1149=\"Yes\",'TSA Input'!J1149=\"Contingent\"),'TSA Input'!C1149,\"\"))","v":""},{"$f":"IF('TSA Input'!J1149=\"\",\"\",IF(OR('TSA Input'!J1149=\"Yes\",'TSA Input'!J1149=\"Contingent\"),'TSA Input'!D1149,\"\"))","v":""},{"$f":"IF('TSA Input'!J1149=\"\",\"\",IF(OR('TSA Input'!J1149=\"Yes\",'TSA Input'!J1149=\"Contingent\"),'TSA Input'!G1149,\"\"))","v":""},{"$f":"IF('TSA Input'!J1149=\"\",\"\",IF(OR('TSA Input'!J1149=\"Yes\",'TSA Input'!J1149=\"Contingent\"),'TSA Input'!F1149,\"\"))","v":""},"",{"$f":"IF('TSA Input'!J1149=\"\",\"\",IF(OR('TSA Input'!J1149=\"Yes\",'TSA Input'!J1149=\"Contingent\"),'TSA Input'!D1149,\"\"))","v":""},{"$f":"IF('TSA Input'!J1149=\"\",\"\",IF(OR('TSA Input'!J1149=\"Yes\",'TSA Input'!J1149=\"Contingent\"),'TSA Input'!G1149,\"\"))","v":""},{"$f":"IF('TSA Input'!J1149=\"\",\"\",IF(OR('TSA Input'!J1149=\"Yes\",'TSA Input'!J1149=\"Contingent\"),'TSA Input'!F1149,\"\"))","v":""},"","Required","Required"]
["",null,{"$f":"IF('TSA Input'!J1150=\"\",\"\",IF(OR('TSA Input'!J1150=\"Yes\",'TSA Input'!J1150=\"Contingent\"),'TSA Input'!B1150,\"Ineligible\"))","v":""},{"$f":"IF('TSA Input'!J1150=\"\",\"\",IF(OR('TSA Input'!J1150=\"Yes\",'TSA Input'!J1150=\"Contingent\"),'TSA Input'!I1150,\"\"))","v":""},{"$f":"IF('TSA Input'!J1150=\"\",\"\",IF(OR('TSA Input'!J1150=\"Yes\",'TSA Input'!J1150=\"Contingent\"),'TSA Input'!C1150,\"\"))","v":""},{"$f":"IF('TSA Input'!J1150=\"\",\"\",IF(OR('TSA Input'!J1150=\"Yes\",'TSA Input'!J1150=\"Contingent\"),'TSA Input'!D1150,\"\"))","v":""},{"$f":"IF('TSA Input'!J1150=\"\",\"\",IF(OR('TSA Input'!J1150=\"Yes\",'TSA Input'!J1150=\"Contingent\"),'TSA Input'!G1150,\"\"))","v":""},{"$f":"IF('TSA Input'!J1150=\"\",\"\",IF(OR('TSA Input'!J1150=\"Yes\",'TSA Input'!J1150=\"Contingent\"),'TSA Input'!F1150,\"\"))","v":""},"",{"$f":"IF('TSA Input'!J1150=\"\",\"\",IF(OR('TSA Input'!J1150=\"Yes\",'TSA Input'!J1150=\"Contingent\"),'TSA Input'!D1150,\"\"))","v":""},{"$f":"IF('TSA Input'!J1150=\"\",\"\",IF(OR('TSA Input'!J1150=\"Yes\",'TSA Input'!J1150=\"Contingent\"),'TSA Input'!G1150,\"\"))","v":""},{"$f":"IF('TSA Input'!J1150=\"\",\"\",IF(OR('TSA Input'!J1150=\"Yes\",'TSA Input'!J1150=\"Contingent\"),'TSA Input'!F1150,\"\"))","v":""},"","Required","Required"]
["",null,{"$f":"IF('TSA Input'!J1151=\"\",\"\",IF(OR('TSA Input'!J1151=\"Yes\",'TSA Input'!J1151=\"Contingent\"),'TSA Input'!B1151,\"Ineligible\"))","v":""},{"$f":"IF('TSA Input'!J1151=\"\",\"\",IF(OR('TSA Input'!J1151=\"Yes\",'TSA Input'!J1151=\"Contingent\"),'TSA Input'!I1151,\"\"))","v":""},{"$f":"IF('TSA Input'!J1151=\"\",\"\",IF(OR('TSA Input'!J1151=\"Yes\",'TSA Input'!J1151=\"Contingent\"),'TSA Input'!C1151,\"\"))","v":""},{"$f":"IF('TSA Input'!J1151=\"\",\"\",IF(OR('TSA Input'!J1151=\"Yes\",'TSA Input'!J1151=\"Contingent\"),'TSA Input'!D1151,\"\"))","v":""},{"$f":"IF('TSA Input'!J1151=\"\",\"\",IF(OR('TSA Input'!J1151=\"Yes\",'TSA Input'!J1151=\"Contingent\"),'TSA Input'!G1151,\"\"))","v":""},{"$f":"IF('TSA Input'!J1151=\"\",\"\",IF(OR('TSA Input'!J1151=\"Yes\",'TSA Input'!J1151=\"Contingent\"),'TSA Input'!F1151,\"\"))","v":""},"",{"$f":"IF('TSA Input'!J1151=\"\",\"\",IF(OR('TSA Input'!J1151=\"Yes\",'TSA Input'!J1151=\"Contingent\"),'TSA Input'!D1151,\"\"))","v":""},{"$f":"IF('TSA Input'!J1151=\"\",\"\",IF(OR('TSA Input'!J1151=\"Yes\",'TSA Input'!J1151=\"Contingent\"),'TSA Input'!G1151,\"\"))","v":""},{"$f":"IF('TSA Input'!J1151=\"\",\"\",IF(OR('TSA Input'!J1151=\"Yes\",'TSA Input'!J1151=\"Contingent\"),'TSA Input'!F1151,\"\"))","v":""},"","Required","Required"]
["",null,{"$f":"IF('TSA Input'!J1152=\"\",\"\",IF(OR('TSA Input'!J1152=\"Yes\",'TSA Input'!J1152=\"Contingent\"),'TSA Input'!B1152,\"Ineligible\"))","v":""},{"$f":"IF('TSA Input'!J1152=\"\",\"\",IF(OR('TSA Input'!J1152=\"Yes\",'TSA Input'!J1152=\"Contingent\"),'TSA Input'!I1152,\"\"))","v":""},{"$f":"IF('TSA Input'!J1152=\"\",\"\",IF(OR('TSA Input'!J1152=\"Yes\",'TSA Input'!J1152=\"Contingent\"),'TSA Input'!C1152,\"\"))","v":""},{"$f":"IF('TSA Input'!J1152=\"\",\"\",IF(OR('TSA Input'!J1152=\"Yes\",'TSA Input'!J1152=\"Contingent\"),'TSA Input'!D1152,\"\"))","v":""},{"$f":"IF('TSA Input'!J1152=\"\",\"\",IF(OR('TSA Input'!J1152=\"Yes\",'TSA Input'!J1152=\"Contingent\"),'TSA Input'!G1152,\"\"))","v":""},{"$f":"IF('TSA Input'!J1152=\"\",\"\",IF(OR('TSA Input'!J1152=\"Yes\",'TSA Input'!J1152=\"Contingent\"),'TSA Input'!F1152,\"\"))","v":""},"",{"$f":"IF('TSA Input'!J1152=\"\",\"\",IF(OR('TSA Input'!J1152=\"Yes\",'TSA Input'!J1152=\"Contingent\"),'TSA Input'!D1152,\"\"))","v":""},{"$f":"IF('TSA Input'!J1152=\"\",\"\",IF(OR('TSA Input'!J1152=\"Yes\",'TSA Input'!J1152=\"Contingent\"),'TSA Input'!G1152,\"\"))","v":""},{"$f":"IF('TSA Input'!J1152=\"\",\"\",IF(OR('TSA Input'!J1152=\"Yes\",'TSA Input'!J1152=\"Contingent\"),'TSA Input'!F1152,\"\"))","v":""},"","Required","Required"]
["",null,{"$f":"IF('TSA Input'!J1153=\"\",\"\",IF(OR('TSA Input'!J1153=\"Yes\",'TSA Input'!J1153=\"Contingent\"),'TSA Input'!B1153,\"Ineligible\"))","v":""},{"$f":"IF('TSA Input'!J1153=\"\",\"\",IF(OR('TSA Input'!J1153=\"Yes\",'TSA Input'!J1153=\"Contingent\"),'TSA Input'!I1153,\"\"))","v":""},{"$f":"IF('TSA Input'!J1153=\"\",\"\",IF(OR('TSA Input'!J1153=\"Yes\",'TSA Input'!J1153=\"Contingent\"),'TSA Input'!C1153,\"\"))","v":""},{"$f":"IF('TSA Input'!J1153=\"\",\"\",IF(OR('TSA Input'!J1153=\"Yes\",'TSA Input'!J1153=\"Contingent\"),'TSA Input'!D1153,\"\"))","v":""},{"$f":"IF('TSA Input'!J1153=\"\",\"\",IF(OR('TSA Input'!J1153=\"Yes\",'TSA Input'!J1153=\"Contingent\"),'TSA Input'!G1153,\"\"))","v":""},{"$f":"IF('TSA Input'!J1153=\"\",\"\",IF(OR('TSA Input'!J1153=\"Yes\",'TSA Input'!J1153=\"Contingent\"),'TSA Input'!F1153,\"\"))","v":""},"",{"$f":"IF('TSA Input'!J1153=\"\",\"\",IF(OR('TSA Input'!J1153=\"Yes\",'TSA Input'!J1153=\"Contingent\"),'TSA Input'!D1153,\"\"))","v":""},{"$f":"IF('TSA Input'!J1153=\"\",\"\",IF(OR('TSA Input'!J1153=\"Yes\",'TSA Input'!J1153=\"Contingent\"),'TSA Input'!G1153,\"\"))","v":""},{"$f":"IF('TSA Input'!J1153=\"\",\"\",IF(OR('TSA Input'!J1153=\"Yes\",'TSA Input'!J1153=\"Contingent\"),'TSA Input'!F1153,\"\"))","v":""},"","Required","Required"]
["",null,{"$f":"IF('TSA Input'!J1154=\"\",\"\",IF(OR('TSA Input'!J1154=\"Yes\",'TSA Input'!J1154=\"Contingent\"),'TSA Input'!B1154,\"Ineligible\"))","v":""},{"$f":"IF('TSA Input'!J1154=\"\",\"\",IF(OR('TSA Input'!J1154=\"Yes\",'TSA Input'!J1154=\"Contingent\"),'TSA Input'!I1154,\"\"))","v":""},{"$f":"IF('TSA Input'!J1154=\"\",\"\",IF(OR('TSA Input'!J1154=\"Yes\",'TSA Input'!J1154=\"Contingent\"),'TSA Input'!C1154,\"\"))","v":""},{"$f":"IF('TSA Input'!J1154=\"\",\"\",IF(OR('TSA Input'!J1154=\"Yes\",'TSA Input'!J1154=\"Contingent\"),'TSA Input'!D1154,\"\"))","v":""},{"$f":"IF('TSA Input'!J1154=\"\",\"\",IF(OR('TSA Input'!J1154=\"Yes\",'TSA Input'!J1154=\"Contingent\"),'TSA Input'!G1154,\"\"))","v":""},{"$f":"IF('TSA Input'!J1154=\"\",\"\",IF(OR('TSA Input'!J1154=\"Yes\",'TSA Input'!J1154=\"Contingent\"),'TSA Input'!F1154,\"\"))","v":""},"",{"$f":"IF('TSA Input'!J1154=\"\",\"\",IF(OR('TSA Input'!J1154=\"Yes\",'TSA Input'!J1154=\"Contingent\"),'TSA Input'!D1154,\"\"))","v":""},{"$f":"IF('TSA Input'!J1154=\"\",\"\",IF(OR('TSA Input'!J1154=\"Yes\",'TSA Input'!J1154=\"Contingent\"),'TSA Input'!G1154,\"\"))","v":""},{"$f":"IF('TSA Input'!J1154=\"\",\"\",IF(OR('TSA Input'!J1154=\"Yes\",'TSA Input'!J1154=\"Contingent\"),'TSA Input'!F1154,\"\"))","v":""},"","Required","Required"]
["",null,{"$f":"IF('TSA Input'!J1155=\"\",\"\",IF(OR('TSA Input'!J1155=\"Yes\",'TSA Input'!J1155=\"Contingent\"),'TSA Input'!B1155,\"Ineligible\"))","v":""},{"$f":"IF('TSA Input'!J1155=\"\",\"\",IF(OR('TSA Input'!J1155=\"Yes\",'TSA Input'!J1155=\"Contingent\"),'TSA Input'!I1155,\"\"))","v":""},{"$f":"IF('TSA Input'!J1155=\"\",\"\",IF(OR('TSA Input'!J1155=\"Yes\",'TSA Input'!J1155=\"Contingent\"),'TSA Input'!C1155,\"\"))","v":""},{"$f":"IF('TSA Input'!J1155=\"\",\"\",IF(OR('TSA Input'!J1155=\"Yes\",'TSA Input'!J1155=\"Contingent\"),'TSA Input'!D1155,\"\"))","v":""},{"$f":"IF('TSA Input'!J1155=\"\",\"\",IF(OR('TSA Input'!J1155=\"Yes\",'TSA Input'!J1155=\"Contingent\"),'TSA Input'!G1155,\"\"))","v":""},{"$f":"IF('TSA Input'!J1155=\"\",\"\",IF(OR('TSA Input'!J1155=\"Yes\",'TSA Input'!J1155=\"Contingent\"),'TSA Input'!F1155,\"\"))","v":""},"",{"$f":"IF('TSA Input'!J1155=\"\",\"\",IF(OR('TSA Input'!J1155=\"Yes\",'TSA Input'!J1155=\"Contingent\"),'TSA Input'!D1155,\"\"))","v":""},{"$f":"IF('TSA Input'!J1155=\"\",\"\",IF(OR('TSA Input'!J1155=\"Yes\",'TSA Input'!J1155=\"Contingent\"),'TSA Input'!G1155,\"\"))","v":""},{"$f":"IF('TSA Input'!J1155=\"\",\"\",IF(OR('TSA Input'!J1155=\"Yes\",'TSA Input'!J1155=\"Contingent\"),'TSA Input'!F1155,\"\"))","v":""},"","Required","Required"]
["",null,{"$f":"IF('TSA Input'!J1156=\"\",\"\",IF(OR('TSA Input'!J1156=\"Yes\",'TSA Input'!J1156=\"Contingent\"),'TSA Input'!B1156,\"Ineligible\"))","v":""},{"$f":"IF('TSA Input'!J1156=\"\",\"\",IF(OR('TSA Input'!J1156=\"Yes\",'TSA Input'!J1156=\"Contingent\"),'TSA Input'!I1156,\"\"))","v":""},{"$f":"IF('TSA Input'!J1156=\"\",\"\",IF(OR('TSA Input'!J1156=\"Yes\",'TSA Input'!J1156=\"Contingent\"),'TSA Input'!C1156,\"\"))","v":""},{"$f":"IF('TSA Input'!J1156=\"\",\"\",IF(OR('TSA Input'!J1156=\"Yes\",'TSA Input'!J1156=\"Contingent\"),'TSA Input'!D1156,\"\"))","v":""},{"$f":"IF('TSA Input'!J1156=\"\",\"\",IF(OR('TSA Input'!J1156=\"Yes\",'TSA Input'!J1156=\"Contingent\"),'TSA Input'!G1156,\"\"))","v":""},{"$f":"IF('TSA Input'!J1156=\"\",\"\",IF(OR('TSA Input'!J1156=\"Yes\",'TSA Input'!J1156=\"Contingent\"),'TSA Input'!F1156,\"\"))","v":""},{"$f":"IF($C1194=\"\",\"\",SUM(F1194:H1194))","v":""},{"$f":"IF('TSA Input'!J1156=\"\",\"\",IF(OR('TSA Input'!J1156=\"Yes\",'TSA Input'!J1156=\"Contingent\"),'TSA Input'!D1156,\"\"))","v":""},{"$f":"IF('TSA Input'!J1156=\"\",\"\",IF(OR('TSA Input'!J1156=\"Yes\",'TSA Input'!J1156=\"Contingent\"),'TSA Input'!G1156,\"\"))","v":""},{"$f":"IF('TSA Input'!J1156=\"\",\"\",IF(OR('TSA Input'!J1156=\"Yes\",'TSA Input'!J1156=\"Contingent\"),'TSA Input'!F1156,\"\"))","v":""},{"$f":"IF($C1194=\"\",\"\",SUM(J1194:L1194))","v":""},"Required","Required"]
["",null,{"$f":"IF('TSA Input'!J1157=\"\",\"\",IF(OR('TSA Input'!J1157=\"Yes\",'TSA Input'!J1157=\"Contingent\"),'TSA Input'!B1157,\"Ineligible\"))","v":""},{"$f":"IF('TSA Input'!J1157=\"\",\"\",IF(OR('TSA Input'!J1157=\"Yes\",'TSA Input'!J1157=\"Contingent\"),'TSA Input'!I1157,\"\"))","v":""},{"$f":"IF('TSA Input'!J1157=\"\",\"\",IF(OR('TSA Input'!J1157=\"Yes\",'TSA Input'!J1157=\"Contingent\"),'TSA Input'!C1157,\"\"))","v":""},{"$f":"IF('TSA Input'!J1157=\"\",\"\",IF(OR('TSA Input'!J1157=\"Yes\",'TSA Input'!J1157=\"Contingent\"),'TSA Input'!D1157,\"\"))","v":""},{"$f":"IF('TSA Input'!J1157=\"\",\"\",IF(OR('TSA Input'!J1157=\"Yes\",'TSA Input'!J1157=\"Contingent\"),'TSA Input'!G1157,\"\"))","v":""},{"$f":"IF('TSA Input'!J1157=\"\",\"\",IF(OR('TSA Input'!J1157=\"Yes\",'TSA Input'!J1157=\"Contingent\"),'TSA Input'!F1157,\"\"))","v":""},"",{"$f":"IF('TSA Input'!J1157=\"\",\"\",IF(OR('TSA Input'!J1157=\"Yes\",'TSA Input'!J1157=\"Contingent\"),'TSA Input'!D1157,\"\"))","v":""},{"$f":"IF('TSA Input'!J1157=\"\",\"\",IF(OR('TSA Input'!J1157=\"Yes\",'TSA Input'!J1157=\"Contingent\"),'TSA Input'!G1157,\"\"))","v":""},{"$f":"IF('TSA Input'!J1157=\"\",\"\",IF(OR('TSA Input'!J1157=\"Yes\",'TSA Input'!J1157=\"Contingent\"),'TSA Input'!F1157,\"\"))","v":""},"","Required","Required"]
["",null,{"$f":"IF('TSA Input'!J1158=\"\",\"\",IF(OR('TSA Input'!J1158=\"Yes\",'TSA Input'!J1158=\"Contingent\"),'TSA Input'!B1158,\"Ineligible\"))","v":""},{"$f":"IF('TSA Input'!J1158=\"\",\"\",IF(OR('TSA Input'!J1158=\"Yes\",'TSA Input'!J1158=\"Contingent\"),'TSA Input'!I1158,\"\"))","v":""},{"$f":"IF('TSA Input'!J1158=\"\",\"\",IF(OR('TSA Input'!J1158=\"Yes\",'TSA Input'!J1158=\"Contingent\"),'TSA Input'!C1158,\"\"))","v":""},{"$f":"IF('TSA Input'!J1158=\"\",\"\",IF(OR('TSA Input'!J1158=\"Yes\",'TSA Input'!J1158=\"Contingent\"),'TSA Input'!D1158,\"\"))","v":""},{"$f":"IF('TSA Input'!J1158=\"\",\"\",IF(OR('TSA Input'!J1158=\"Yes\",'TSA Input'!J1158=\"Contingent\"),'TSA Input'!G1158,\"\"))","v":""},{"$f":"IF('TSA Input'!J1158=\"\",\"\",IF(OR('TSA Input'!J1158=\"Yes\",'TSA Input'!J1158=\"Contingent\"),'TSA Input'!F1158,\"\"))","v":""},"",{"$f":"IF('TSA Input'!J1158=\"\",\"\",IF(OR('TSA Input'!J1158=\"Yes\",'TSA Input'!J1158=\"Contingent\"),'TSA Input'!D1158,\"\"))","v":""},{"$f":"IF('TSA Input'!J1158=\"\",\"\",IF(OR('TSA Input'!J1158=\"Yes\",'TSA Input'!J1158=\"Contingent\"),'TSA Input'!G1158,\"\"))","v":""},{"$f":"IF('TSA Input'!J1158=\"\",\"\",IF(OR('TSA Input'!J1158=\"Yes\",'TSA Input'!J1158=\"Contingent\"),'TSA Input'!F1158,\"\"))","v":""},"","Required","Required"]
["",null,{"$f":"IF('TSA Input'!J1159=\"\",\"\",IF(OR('TSA Input'!J1159=\"Yes\",'TSA Input'!J1159=\"Contingent\"),'TSA Input'!B1159,\"Ineligible\"))","v":""},{"$f":"IF('TSA Input'!J1159=\"\",\"\",IF(OR('TSA Input'!J1159=\"Yes\",'TSA Input'!J1159=\"Contingent\"),'TSA Input'!I1159,\"\"))","v":""},{"$f":"IF('TSA Input'!J1159=\"\",\"\",IF(OR('TSA Input'!J1159=\"Yes\",'TSA Input'!J1159=\"Contingent\"),'TSA Input'!C1159,\"\"))","v":""},{"$f":"IF('TSA Input'!J1159=\"\",\"\",IF(OR('TSA Input'!J1159=\"Yes\",'TSA Input'!J1159=\"Contingent\"),'TSA Input'!D1159,\"\"))","v":""},{"$f":"IF('TSA Input'!J1159=\"\",\"\",IF(OR('TSA Input'!J1159=\"Yes\",'TSA Input'!J1159=\"Contingent\"),'TSA Input'!G1159,\"\"))","v":""},{"$f":"IF('TSA Input'!J1159=\"\",\"\",IF(OR('TSA Input'!J1159=\"Yes\",'TSA Input'!J1159=\"Contingent\"),'TSA Input'!F1159,\"\"))","v":""},"",{"$f":"IF('TSA Input'!J1159=\"\",\"\",IF(OR('TSA Input'!J1159=\"Yes\",'TSA Input'!J1159=\"Contingent\"),'TSA Input'!D1159,\"\"))","v":""},{"$f":"IF('TSA Input'!J1159=\"\",\"\",IF(OR('TSA Input'!J1159=\"Yes\",'TSA Input'!J1159=\"Contingent\"),'TSA Input'!G1159,\"\"))","v":""},{"$f":"IF('TSA Input'!J1159=\"\",\"\",IF(OR('TSA Input'!J1159=\"Yes\",'TSA Input'!J1159=\"Contingent\"),'TSA Input'!F1159,\"\"))","v":""},"","Required","Required"]
["",null,{"$f":"IF('TSA Input'!J1160=\"\",\"\",IF(OR('TSA Input'!J1160=\"Yes\",'TSA Input'!J1160=\"Contingent\"),'TSA Input'!B1160,\"Ineligible\"))","v":""},{"$f":"IF('TSA Input'!J1160=\"\",\"\",IF(OR('TSA Input'!J1160=\"Yes\",'TSA Input'!J1160=\"Contingent\"),'TSA Input'!I1160,\"\"))","v":""},{"$f":"IF('TSA Input'!J1160=\"\",\"\",IF(OR('TSA Input'!J1160=\"Yes\",'TSA Input'!J1160=\"Contingent\"),'TSA Input'!C1160,\"\"))","v":""},{"$f":"IF('TSA Input'!J1160=\"\",\"\",IF(OR('TSA Input'!J1160=\"Yes\",'TSA Input'!J1160=\"Contingent\"),'TSA Input'!D1160,\"\"))","v":""},{"$f":"IF('TSA Input'!J1160=\"\",\"\",IF(OR('TSA Input'!J1160=\"Yes\",'TSA Input'!J1160=\"Contingent\"),'TSA Input'!G1160,\"\"))","v":""},{"$f":"IF('TSA Input'!J1160=\"\",\"\",IF(OR('TSA Input'!J1160=\"Yes\",'TSA Input'!J1160=\"Contingent\"),'TSA Input'!F1160,\"\"))","v":""},"",{"$f":"IF('TSA Input'!J1160=\"\",\"\",IF(OR('TSA Input'!J1160=\"Yes\",'TSA Input'!J1160=\"Contingent\"),'TSA Input'!D1160,\"\"))","v":""},{"$f":"IF('TSA Input'!J1160=\"\",\"\",IF(OR('TSA Input'!J1160=\"Yes\",'TSA Input'!J1160=\"Contingent\"),'TSA Input'!G1160,\"\"))","v":""},{"$f":"IF('TSA Input'!J1160=\"\",\"\",IF(OR('TSA Input'!J1160=\"Yes\",'TSA Input'!J1160=\"Contingent\"),'TSA Input'!F1160,\"\"))","v":""},"","Required","Required"]
["",null,{"$f":"IF('TSA Input'!J1161=\"\",\"\",IF(OR('TSA Input'!J1161=\"Yes\",'TSA Input'!J1161=\"Contingent\"),'TSA Input'!B1161,\"Ineligible\"))","v":""},{"$f":"IF('TSA Input'!J1161=\"\",\"\",IF(OR('TSA Input'!J1161=\"Yes\",'TSA Input'!J1161=\"Contingent\"),'TSA Input'!I1161,\"\"))","v":""},{"$f":"IF('TSA Input'!J1161=\"\",\"\",IF(OR('TSA Input'!J1161=\"Yes\",'TSA Input'!J1161=\"Contingent\"),'TSA Input'!C1161,\"\"))","v":""},{"$f":"IF('TSA Input'!J1161=\"\",\"\",IF(OR('TSA Input'!J1161=\"Yes\",'TSA Input'!J1161=\"Contingent\"),'TSA Input'!D1161,\"\"))","v":""},{"$f":"IF('TSA Input'!J1161=\"\",\"\",IF(OR('TSA Input'!J1161=\"Yes\",'TSA Input'!J1161=\"Contingent\"),'TSA Input'!G1161,\"\"))","v":""},{"$f":"IF('TSA Input'!J1161=\"\",\"\",IF(OR('TSA Input'!J1161=\"Yes\",'TSA Input'!J1161=\"Contingent\"),'TSA Input'!F1161,\"\"))","v":""},"",{"$f":"IF('TSA Input'!J1161=\"\",\"\",IF(OR('TSA Input'!J1161=\"Yes\",'TSA Input'!J1161=\"Contingent\"),'TSA Input'!D1161,\"\"))","v":""},{"$f":"IF('TSA Input'!J1161=\"\",\"\",IF(OR('TSA Input'!J1161=\"Yes\",'TSA Input'!J1161=\"Contingent\"),'TSA Input'!G1161,\"\"))","v":""},{"$f":"IF('TSA Input'!J1161=\"\",\"\",IF(OR('TSA Input'!J1161=\"Yes\",'TSA Input'!J1161=\"Contingent\"),'TSA Input'!F1161,\"\"))","v":""},"","Required","Required"]
["",null,{"$f":"IF('TSA Input'!J1162=\"\",\"\",IF(OR('TSA Input'!J1162=\"Yes\",'TSA Input'!J1162=\"Contingent\"),'TSA Input'!B1162,\"Ineligible\"))","v":""},{"$f":"IF('TSA Input'!J1162=\"\",\"\",IF(OR('TSA Input'!J1162=\"Yes\",'TSA Input'!J1162=\"Contingent\"),'TSA Input'!I1162,\"\"))","v":""},{"$f":"IF('TSA Input'!J1162=\"\",\"\",IF(OR('TSA Input'!J1162=\"Yes\",'TSA Input'!J1162=\"Contingent\"),'TSA Input'!C1162,\"\"))","v":""},{"$f":"IF('TSA Input'!J1162=\"\",\"\",IF(OR('TSA Input'!J1162=\"Yes\",'TSA Input'!J1162=\"Contingent\"),'TSA Input'!D1162,\"\"))","v":""},{"$f":"IF('TSA Input'!J1162=\"\",\"\",IF(OR('TSA Input'!J1162=\"Yes\",'TSA Input'!J1162=\"Contingent\"),'TSA Input'!G1162,\"\"))","v":""},{"$f":"IF('TSA Input'!J1162=\"\",\"\",IF(OR('TSA Input'!J1162=\"Yes\",'TSA Input'!J1162=\"Contingent\"),'TSA Input'!F1162,\"\"))","v":""},"",{"$f":"IF('TSA Input'!J1162=\"\",\"\",IF(OR('TSA Input'!J1162=\"Yes\",'TSA Input'!J1162=\"Contingent\"),'TSA Input'!D1162,\"\"))","v":""},{"$f":"IF('TSA Input'!J1162=\"\",\"\",IF(OR('TSA Input'!J1162=\"Yes\",'TSA Input'!J1162=\"Contingent\"),'TSA Input'!G1162,\"\"))","v":""},{"$f":"IF('TSA Input'!J1162=\"\",\"\",IF(OR('TSA Input'!J1162=\"Yes\",'TSA Input'!J1162=\"Contingent\"),'TSA Input'!F1162,\"\"))","v":""},"","Required","Required"]
["",null,{"$f":"IF('TSA Input'!J1163=\"\",\"\",IF(OR('TSA Input'!J1163=\"Yes\",'TSA Input'!J1163=\"Contingent\"),'TSA Input'!B1163,\"Ineligible\"))","v":""},{"$f":"IF('TSA Input'!J1163=\"\",\"\",IF(OR('TSA Input'!J1163=\"Yes\",'TSA Input'!J1163=\"Contingent\"),'TSA Input'!I1163,\"\"))","v":""},{"$f":"IF('TSA Input'!J1163=\"\",\"\",IF(OR('TSA Input'!J1163=\"Yes\",'TSA Input'!J1163=\"Contingent\"),'TSA Input'!C1163,\"\"))","v":""},{"$f":"IF('TSA Input'!J1163=\"\",\"\",IF(OR('TSA Input'!J1163=\"Yes\",'TSA Input'!J1163=\"Contingent\"),'TSA Input'!D1163,\"\"))","v":""},{"$f":"IF('TSA Input'!J1163=\"\",\"\",IF(OR('TSA Input'!J1163=\"Yes\",'TSA Input'!J1163=\"Contingent\"),'TSA Input'!G1163,\"\"))","v":""},{"$f":"IF('TSA Input'!J1163=\"\",\"\",IF(OR('TSA Input'!J1163=\"Yes\",'TSA Input'!J1163=\"Contingent\"),'TSA Input'!F1163,\"\"))","v":""},"",{"$f":"IF('TSA Input'!J1163=\"\",\"\",IF(OR('TSA Input'!J1163=\"Yes\",'TSA Input'!J1163=\"Contingent\"),'TSA Input'!D1163,\"\"))","v":""},{"$f":"IF('TSA Input'!J1163=\"\",\"\",IF(OR('TSA Input'!J1163=\"Yes\",'TSA Input'!J1163=\"Contingent\"),'TSA Input'!G1163,\"\"))","v":""},{"$f":"IF('TSA Input'!J1163=\"\",\"\",IF(OR('TSA Input'!J1163=\"Yes\",'TSA Input'!J1163=\"Contingent\"),'TSA Input'!F1163,\"\"))","v":""},"","Required","Required"]
["",null,{"$f":"IF('TSA Input'!J1164=\"\",\"\",IF(OR('TSA Input'!J1164=\"Yes\",'TSA Input'!J1164=\"Contingent\"),'TSA Input'!B1164,\"Ineligible\"))","v":""},{"$f":"IF('TSA Input'!J1164=\"\",\"\",IF(OR('TSA Input'!J1164=\"Yes\",'TSA Input'!J1164=\"Contingent\"),'TSA Input'!I1164,\"\"))","v":""},{"$f":"IF('TSA Input'!J1164=\"\",\"\",IF(OR('TSA Input'!J1164=\"Yes\",'TSA Input'!J1164=\"Contingent\"),'TSA Input'!C1164,\"\"))","v":""},{"$f":"IF('TSA Input'!J1164=\"\",\"\",IF(OR('TSA Input'!J1164=\"Yes\",'TSA Input'!J1164=\"Contingent\"),'TSA Input'!D1164,\"\"))","v":""},{"$f":"IF('TSA Input'!J1164=\"\",\"\",IF(OR('TSA Input'!J1164=\"Yes\",'TSA Input'!J1164=\"Contingent\"),'TSA Input'!G1164,\"\"))","v":""},{"$f":"IF('TSA Input'!J1164=\"\",\"\",IF(OR('TSA Input'!J1164=\"Yes\",'TSA Input'!J1164=\"Contingent\"),'TSA Input'!F1164,\"\"))","v":""},"",{"$f":"IF('TSA Input'!J1164=\"\",\"\",IF(OR('TSA Input'!J1164=\"Yes\",'TSA Input'!J1164=\"Contingent\"),'TSA Input'!D1164,\"\"))","v":""},{"$f":"IF('TSA Input'!J1164=\"\",\"\",IF(OR('TSA Input'!J1164=\"Yes\",'TSA Input'!J1164=\"Contingent\"),'TSA Input'!G1164,\"\"))","v":""},{"$f":"IF('TSA Input'!J1164=\"\",\"\",IF(OR('TSA Input'!J1164=\"Yes\",'TSA Input'!J1164=\"Contingent\"),'TSA Input'!F1164,\"\"))","v":""},"","Required","Required"]
["",null,{"$f":"IF('TSA Input'!J1165=\"\",\"\",IF(OR('TSA Input'!J1165=\"Yes\",'TSA Input'!J1165=\"Contingent\"),'TSA Input'!B1165,\"Ineligible\"))","v":""},{"$f":"IF('TSA Input'!J1165=\"\",\"\",IF(OR('TSA Input'!J1165=\"Yes\",'TSA Input'!J1165=\"Contingent\"),'TSA Input'!I1165,\"\"))","v":""},{"$f":"IF('TSA Input'!J1165=\"\",\"\",IF(OR('TSA Input'!J1165=\"Yes\",'TSA Input'!J1165=\"Contingent\"),'TSA Input'!C1165,\"\"))","v":""},{"$f":"IF('TSA Input'!J1165=\"\",\"\",IF(OR('TSA Input'!J1165=\"Yes\",'TSA Input'!J1165=\"Contingent\"),'TSA Input'!D1165,\"\"))","v":""},{"$f":"IF('TSA Input'!J1165=\"\",\"\",IF(OR('TSA Input'!J1165=\"Yes\",'TSA Input'!J1165=\"Contingent\"),'TSA Input'!G1165,\"\"))","v":""},{"$f":"IF('TSA Input'!J1165=\"\",\"\",IF(OR('TSA Input'!J1165=\"Yes\",'TSA Input'!J1165=\"Contingent\"),'TSA Input'!F1165,\"\"))","v":""},"",{"$f":"IF('TSA Input'!J1165=\"\",\"\",IF(OR('TSA Input'!J1165=\"Yes\",'TSA Input'!J1165=\"Contingent\"),'TSA Input'!D1165,\"\"))","v":""},{"$f":"IF('TSA Input'!J1165=\"\",\"\",IF(OR('TSA Input'!J1165=\"Yes\",'TSA Input'!J1165=\"Contingent\"),'TSA Input'!G1165,\"\"))","v":""},{"$f":"IF('TSA Input'!J1165=\"\",\"\",IF(OR('TSA Input'!J1165=\"Yes\",'TSA Input'!J1165=\"Contingent\"),'TSA Input'!F1165,\"\"))","v":""},"","Required","Required"]
["",null,{"$f":"IF('TSA Input'!J1166=\"\",\"\",IF(OR('TSA Input'!J1166=\"Yes\",'TSA Input'!J1166=\"Contingent\"),'TSA Input'!B1166,\"Ineligible\"))","v":""},{"$f":"IF('TSA Input'!J1166=\"\",\"\",IF(OR('TSA Input'!J1166=\"Yes\",'TSA Input'!J1166=\"Contingent\"),'TSA Input'!I1166,\"\"))","v":""},{"$f":"IF('TSA Input'!J1166=\"\",\"\",IF(OR('TSA Input'!J1166=\"Yes\",'TSA Input'!J1166=\"Contingent\"),'TSA Input'!C1166,\"\"))","v":""},{"$f":"IF('TSA Input'!J1166=\"\",\"\",IF(OR('TSA Input'!J1166=\"Yes\",'TSA Input'!J1166=\"Contingent\"),'TSA Input'!D1166,\"\"))","v":""},{"$f":"IF('TSA Input'!J1166=\"\",\"\",IF(OR('TSA Input'!J1166=\"Yes\",'TSA Input'!J1166=\"Contingent\"),'TSA Input'!G1166,\"\"))","v":""},{"$f":"IF('TSA Input'!J1166=\"\",\"\",IF(OR('TSA Input'!J1166=\"Yes\",'TSA Input'!J1166=\"Contingent\"),'TSA Input'!F1166,\"\"))","v":""},"",{"$f":"IF('TSA Input'!J1166=\"\",\"\",IF(OR('TSA Input'!J1166=\"Yes\",'TSA Input'!J1166=\"Contingent\"),'TSA Input'!D1166,\"\"))","v":""},{"$f":"IF('TSA Input'!J1166=\"\",\"\",IF(OR('TSA Input'!J1166=\"Yes\",'TSA Input'!J1166=\"Contingent\"),'TSA Input'!G1166,\"\"))","v":""},{"$f":"IF('TSA Input'!J1166=\"\",\"\",IF(OR('TSA Input'!J1166=\"Yes\",'TSA Input'!J1166=\"Contingent\"),'TSA Input'!F1166,\"\"))","v":""},"","Required","Required"]
["",null,{"$f":"IF('TSA Input'!J1167=\"\",\"\",IF(OR('TSA Input'!J1167=\"Yes\",'TSA Input'!J1167=\"Contingent\"),'TSA Input'!B1167,\"Ineligible\"))","v":""},{"$f":"IF('TSA Input'!J1167=\"\",\"\",IF(OR('TSA Input'!J1167=\"Yes\",'TSA Input'!J1167=\"Contingent\"),'TSA Input'!I1167,\"\"))","v":""},{"$f":"IF('TSA Input'!J1167=\"\",\"\",IF(OR('TSA Input'!J1167=\"Yes\",'TSA Input'!J1167=\"Contingent\"),'TSA Input'!C1167,\"\"))","v":""},{"$f":"IF('TSA Input'!J1167=\"\",\"\",IF(OR('TSA Input'!J1167=\"Yes\",'TSA Input'!J1167=\"Contingent\"),'TSA Input'!D1167,\"\"))","v":""},{"$f":"IF('TSA Input'!J1167=\"\",\"\",IF(OR('TSA Input'!J1167=\"Yes\",'TSA Input'!J1167=\"Contingent\"),'TSA Input'!G1167,\"\"))","v":""},{"$f":"IF('TSA Input'!J1167=\"\",\"\",IF(OR('TSA Input'!J1167=\"Yes\",'TSA Input'!J1167=\"Contingent\"),'TSA Input'!F1167,\"\"))","v":""},"",{"$f":"IF('TSA Input'!J1167=\"\",\"\",IF(OR('TSA Input'!J1167=\"Yes\",'TSA Input'!J1167=\"Contingent\"),'TSA Input'!D1167,\"\"))","v":""},{"$f":"IF('TSA Input'!J1167=\"\",\"\",IF(OR('TSA Input'!J1167=\"Yes\",'TSA Input'!J1167=\"Contingent\"),'TSA Input'!G1167,\"\"))","v":""},{"$f":"IF('TSA Input'!J1167=\"\",\"\",IF(OR('TSA Input'!J1167=\"Yes\",'TSA Input'!J1167=\"Contingent\"),'TSA Input'!F1167,\"\"))","v":""},"","Required","Required"]
["",null,{"$f":"IF('TSA Input'!J1168=\"\",\"\",IF(OR('TSA Input'!J1168=\"Yes\",'TSA Input'!J1168=\"Contingent\"),'TSA Input'!B1168,\"Ineligible\"))","v":""},{"$f":"IF('TSA Input'!J1168=\"\",\"\",IF(OR('TSA Input'!J1168=\"Yes\",'TSA Input'!J1168=\"Contingent\"),'TSA Input'!I1168,\"\"))","v":""},{"$f":"IF('TSA Input'!J1168=\"\",\"\",IF(OR('TSA Input'!J1168=\"Yes\",'TSA Input'!J1168=\"Contingent\"),'TSA Input'!C1168,\"\"))","v":""},{"$f":"IF('TSA Input'!J1168=\"\",\"\",IF(OR('TSA Input'!J1168=\"Yes\",'TSA Input'!J1168=\"Contingent\"),'TSA Input'!D1168,\"\"))","v":""},{"$f":"IF('TSA Input'!J1168=\"\",\"\",IF(OR('TSA Input'!J1168=\"Yes\",'TSA Input'!J1168=\"Contingent\"),'TSA Input'!G1168,\"\"))","v":""},{"$f":"IF('TSA Input'!J1168=\"\",\"\",IF(OR('TSA Input'!J1168=\"Yes\",'TSA Input'!J1168=\"Contingent\"),'TSA Input'!F1168,\"\"))","v":""},"",{"$f":"IF('TSA Input'!J1168=\"\",\"\",IF(OR('TSA Input'!J1168=\"Yes\",'TSA Input'!J1168=\"Contingent\"),'TSA Input'!D1168,\"\"))","v":""},{"$f":"IF('TSA Input'!J1168=\"\",\"\",IF(OR('TSA Input'!J1168=\"Yes\",'TSA Input'!J1168=\"Contingent\"),'TSA Input'!G1168,\"\"))","v":""},{"$f":"IF('TSA Input'!J1168=\"\",\"\",IF(OR('TSA Input'!J1168=\"Yes\",'TSA Input'!J1168=\"Contingent\"),'TSA Input'!F1168,\"\"))","v":""},"","Required","Required"]
["",null,{"$f":"IF('TSA Input'!J1169=\"\",\"\",IF(OR('TSA Input'!J1169=\"Yes\",'TSA Input'!J1169=\"Contingent\"),'TSA Input'!B1169,\"Ineligible\"))","v":""},{"$f":"IF('TSA Input'!J1169=\"\",\"\",IF(OR('TSA Input'!J1169=\"Yes\",'TSA Input'!J1169=\"Contingent\"),'TSA Input'!I1169,\"\"))","v":""},{"$f":"IF('TSA Input'!J1169=\"\",\"\",IF(OR('TSA Input'!J1169=\"Yes\",'TSA Input'!J1169=\"Contingent\"),'TSA Input'!C1169,\"\"))","v":""},{"$f":"IF('TSA Input'!J1169=\"\",\"\",IF(OR('TSA Input'!J1169=\"Yes\",'TSA Input'!J1169=\"Contingent\"),'TSA Input'!D1169,\"\"))","v":""},{"$f":"IF('TSA Input'!J1169=\"\",\"\",IF(OR('TSA Input'!J1169=\"Yes\",'TSA Input'!J1169=\"Contingent\"),'TSA Input'!G1169,\"\"))","v":""},{"$f":"IF('TSA Input'!J1169=\"\",\"\",IF(OR('TSA Input'!J1169=\"Yes\",'TSA Input'!J1169=\"Contingent\"),'TSA Input'!F1169,\"\"))","v":""},"",{"$f":"IF('TSA Input'!J1169=\"\",\"\",IF(OR('TSA Input'!J1169=\"Yes\",'TSA Input'!J1169=\"Contingent\"),'TSA Input'!D1169,\"\"))","v":""},{"$f":"IF('TSA Input'!J1169=\"\",\"\",IF(OR('TSA Input'!J1169=\"Yes\",'TSA Input'!J1169=\"Contingent\"),'TSA Input'!G1169,\"\"))","v":""},{"$f":"IF('TSA Input'!J1169=\"\",\"\",IF(OR('TSA Input'!J1169=\"Yes\",'TSA Input'!J1169=\"Contingent\"),'TSA Input'!F1169,\"\"))","v":""},"","Required","Required"]
["",null,{"$f":"IF('TSA Input'!J1170=\"\",\"\",IF(OR('TSA Input'!J1170=\"Yes\",'TSA Input'!J1170=\"Contingent\"),'TSA Input'!B1170,\"Ineligible\"))","v":""},{"$f":"IF('TSA Input'!J1170=\"\",\"\",IF(OR('TSA Input'!J1170=\"Yes\",'TSA Input'!J1170=\"Contingent\"),'TSA Input'!I1170,\"\"))","v":""},{"$f":"IF('TSA Input'!J1170=\"\",\"\",IF(OR('TSA Input'!J1170=\"Yes\",'TSA Input'!J1170=\"Contingent\"),'TSA Input'!C1170,\"\"))","v":""},{"$f":"IF('TSA Input'!J1170=\"\",\"\",IF(OR('TSA Input'!J1170=\"Yes\",'TSA Input'!J1170=\"Contingent\"),'TSA Input'!D1170,\"\"))","v":""},{"$f":"IF('TSA Input'!J1170=\"\",\"\",IF(OR('TSA Input'!J1170=\"Yes\",'TSA Input'!J1170=\"Contingent\"),'TSA Input'!G1170,\"\"))","v":""},{"$f":"IF('TSA Input'!J1170=\"\",\"\",IF(OR('TSA Input'!J1170=\"Yes\",'TSA Input'!J1170=\"Contingent\"),'TSA Input'!F1170,\"\"))","v":""},"",{"$f":"IF('TSA Input'!J1170=\"\",\"\",IF(OR('TSA Input'!J1170=\"Yes\",'TSA Input'!J1170=\"Contingent\"),'TSA Input'!D1170,\"\"))","v":""},{"$f":"IF('TSA Input'!J1170=\"\",\"\",IF(OR('TSA Input'!J1170=\"Yes\",'TSA Input'!J1170=\"Contingent\"),'TSA Input'!G1170,\"\"))","v":""},{"$f":"IF('TSA Input'!J1170=\"\",\"\",IF(OR('TSA Input'!J1170=\"Yes\",'TSA Input'!J1170=\"Contingent\"),'TSA Input'!F1170,\"\"))","v":""},"","Required","Required"]
["",null,{"$f":"IF('TSA Input'!J1171=\"\",\"\",IF(OR('TSA Input'!J1171=\"Yes\",'TSA Input'!J1171=\"Contingent\"),'TSA Input'!B1171,\"Ineligible\"))","v":""},{"$f":"IF('TSA Input'!J1171=\"\",\"\",IF(OR('TSA Input'!J1171=\"Yes\",'TSA Input'!J1171=\"Contingent\"),'TSA Input'!I1171,\"\"))","v":""},{"$f":"IF('TSA Input'!J1171=\"\",\"\",IF(OR('TSA Input'!J1171=\"Yes\",'TSA Input'!J1171=\"Contingent\"),'TSA Input'!C1171,\"\"))","v":""},{"$f":"IF('TSA Input'!J1171=\"\",\"\",IF(OR('TSA Input'!J1171=\"Yes\",'TSA Input'!J1171=\"Contingent\"),'TSA Input'!D1171,\"\"))","v":""},{"$f":"IF('TSA Input'!J1171=\"\",\"\",IF(OR('TSA Input'!J1171=\"Yes\",'TSA Input'!J1171=\"Contingent\"),'TSA Input'!G1171,\"\"))","v":""},{"$f":"IF('TSA Input'!J1171=\"\",\"\",IF(OR('TSA Input'!J1171=\"Yes\",'TSA Input'!J1171=\"Contingent\"),'TSA Input'!F1171,\"\"))","v":""},"",{"$f":"IF('TSA Input'!J1171=\"\",\"\",IF(OR('TSA Input'!J1171=\"Yes\",'TSA Input'!J1171=\"Contingent\"),'TSA Input'!D1171,\"\"))","v":""},{"$f":"IF('TSA Input'!J1171=\"\",\"\",IF(OR('TSA Input'!J1171=\"Yes\",'TSA Input'!J1171=\"Contingent\"),'TSA Input'!G1171,\"\"))","v":""},{"$f":"IF('TSA Input'!J1171=\"\",\"\",IF(OR('TSA Input'!J1171=\"Yes\",'TSA Input'!J1171=\"Contingent\"),'TSA Input'!F1171,\"\"))","v":""},"","Required","Required"]
["",null,{"$f":"IF('TSA Input'!J1172=\"\",\"\",IF(OR('TSA Input'!J1172=\"Yes\",'TSA Input'!J1172=\"Contingent\"),'TSA Input'!B1172,\"Ineligible\"))","v":""},{"$f":"IF('TSA Input'!J1172=\"\",\"\",IF(OR('TSA Input'!J1172=\"Yes\",'TSA Input'!J1172=\"Contingent\"),'TSA Input'!I1172,\"\"))","v":""},{"$f":"IF('TSA Input'!J1172=\"\",\"\",IF(OR('TSA Input'!J1172=\"Yes\",'TSA Input'!J1172=\"Contingent\"),'TSA Input'!C1172,\"\"))","v":""},{"$f":"IF('TSA Input'!J1172=\"\",\"\",IF(OR('TSA Input'!J1172=\"Yes\",'TSA Input'!J1172=\"Contingent\"),'TSA Input'!D1172,\"\"))","v":""},{"$f":"IF('TSA Input'!J1172=\"\",\"\",IF(OR('TSA Input'!J1172=\"Yes\",'TSA Input'!J1172=\"Contingent\"),'TSA Input'!G1172,\"\"))","v":""},{"$f":"IF('TSA Input'!J1172=\"\",\"\",IF(OR('TSA Input'!J1172=\"Yes\",'TSA Input'!J1172=\"Contingent\"),'TSA Input'!F1172,\"\"))","v":""},"",{"$f":"IF('TSA Input'!J1172=\"\",\"\",IF(OR('TSA Input'!J1172=\"Yes\",'TSA Input'!J1172=\"Contingent\"),'TSA Input'!D1172,\"\"))","v":""},{"$f":"IF('TSA Input'!J1172=\"\",\"\",IF(OR('TSA Input'!J1172=\"Yes\",'TSA Input'!J1172=\"Contingent\"),'TSA Input'!G1172,\"\"))","v":""},{"$f":"IF('TSA Input'!J1172=\"\",\"\",IF(OR('TSA Input'!J1172=\"Yes\",'TSA Input'!J1172=\"Contingent\"),'TSA Input'!F1172,\"\"))","v":""},"","Required","Required"]
["",null,{"$f":"IF('TSA Input'!J1173=\"\",\"\",IF(OR('TSA Input'!J1173=\"Yes\",'TSA Input'!J1173=\"Contingent\"),'TSA Input'!B1173,\"Ineligible\"))","v":""},{"$f":"IF('TSA Input'!J1173=\"\",\"\",IF(OR('TSA Input'!J1173=\"Yes\",'TSA Input'!J1173=\"Contingent\"),'TSA Input'!I1173,\"\"))","v":""},{"$f":"IF('TSA Input'!J1173=\"\",\"\",IF(OR('TSA Input'!J1173=\"Yes\",'TSA Input'!J1173=\"Contingent\"),'TSA Input'!C1173,\"\"))","v":""},{"$f":"IF('TSA Input'!J1173=\"\",\"\",IF(OR('TSA Input'!J1173=\"Yes\",'TSA Input'!J1173=\"Contingent\"),'TSA Input'!D1173,\"\"))","v":""},{"$f":"IF('TSA Input'!J1173=\"\",\"\",IF(OR('TSA Input'!J1173=\"Yes\",'TSA Input'!J1173=\"Contingent\"),'TSA Input'!G1173,\"\"))","v":""},{"$f":"IF('TSA Input'!J1173=\"\",\"\",IF(OR('TSA Input'!J1173=\"Yes\",'TSA Input'!J1173=\"Contingent\"),'TSA Input'!F1173,\"\"))","v":""},"",{"$f":"IF('TSA Input'!J1173=\"\",\"\",IF(OR('TSA Input'!J1173=\"Yes\",'TSA Input'!J1173=\"Contingent\"),'TSA Input'!D1173,\"\"))","v":""},{"$f":"IF('TSA Input'!J1173=\"\",\"\",IF(OR('TSA Input'!J1173=\"Yes\",'TSA Input'!J1173=\"Contingent\"),'TSA Input'!G1173,\"\"))","v":""},{"$f":"IF('TSA Input'!J1173=\"\",\"\",IF(OR('TSA Input'!J1173=\"Yes\",'TSA Input'!J1173=\"Contingent\"),'TSA Input'!F1173,\"\"))","v":""},"","Required","Required"]
["",null,{"$f":"IF('TSA Input'!J1174=\"\",\"\",IF(OR('TSA Input'!J1174=\"Yes\",'TSA Input'!J1174=\"Contingent\"),'TSA Input'!B1174,\"Ineligible\"))","v":""},{"$f":"IF('TSA Input'!J1174=\"\",\"\",IF(OR('TSA Input'!J1174=\"Yes\",'TSA Input'!J1174=\"Contingent\"),'TSA Input'!I1174,\"\"))","v":""},{"$f":"IF('TSA Input'!J1174=\"\",\"\",IF(OR('TSA Input'!J1174=\"Yes\",'TSA Input'!J1174=\"Contingent\"),'TSA Input'!C1174,\"\"))","v":""},{"$f":"IF('TSA Input'!J1174=\"\",\"\",IF(OR('TSA Input'!J1174=\"Yes\",'TSA Input'!J1174=\"Contingent\"),'TSA Input'!D1174,\"\"))","v":""},{"$f":"IF('TSA Input'!J1174=\"\",\"\",IF(OR('TSA Input'!J1174=\"Yes\",'TSA Input'!J1174=\"Contingent\"),'TSA Input'!G1174,\"\"))","v":""},{"$f":"IF('TSA Input'!J1174=\"\",\"\",IF(OR('TSA Input'!J1174=\"Yes\",'TSA Input'!J1174=\"Contingent\"),'TSA Input'!F1174,\"\"))","v":""},"",{"$f":"IF('TSA Input'!J1174=\"\",\"\",IF(OR('TSA Input'!J1174=\"Yes\",'TSA Input'!J1174=\"Contingent\"),'TSA Input'!D1174,\"\"))","v":""},{"$f":"IF('TSA Input'!J1174=\"\",\"\",IF(OR('TSA Input'!J1174=\"Yes\",'TSA Input'!J1174=\"Contingent\"),'TSA Input'!G1174,\"\"))","v":""},{"$f":"IF('TSA Input'!J1174=\"\",\"\",IF(OR('TSA Input'!J1174=\"Yes\",'TSA Input'!J1174=\"Contingent\"),'TSA Input'!F1174,\"\"))","v":""},"","Required","Required"]
["",null,{"$f":"IF('TSA Input'!J1175=\"\",\"\",IF(OR('TSA Input'!J1175=\"Yes\",'TSA Input'!J1175=\"Contingent\"),'TSA Input'!B1175,\"Ineligible\"))","v":""},{"$f":"IF('TSA Input'!J1175=\"\",\"\",IF(OR('TSA Input'!J1175=\"Yes\",'TSA Input'!J1175=\"Contingent\"),'TSA Input'!I1175,\"\"))","v":""},{"$f":"IF('TSA Input'!J1175=\"\",\"\",IF(OR('TSA Input'!J1175=\"Yes\",'TSA Input'!J1175=\"Contingent\"),'TSA Input'!C1175,\"\"))","v":""},{"$f":"IF('TSA Input'!J1175=\"\",\"\",IF(OR('TSA Input'!J1175=\"Yes\",'TSA Input'!J1175=\"Contingent\"),'TSA Input'!D1175,\"\"))","v":""},{"$f":"IF('TSA Input'!J1175=\"\",\"\",IF(OR('TSA Input'!J1175=\"Yes\",'TSA Input'!J1175=\"Contingent\"),'TSA Input'!G1175,\"\"))","v":""},{"$f":"IF('TSA Input'!J1175=\"\",\"\",IF(OR('TSA Input'!J1175=\"Yes\",'TSA Input'!J1175=\"Contingent\"),'TSA Input'!F1175,\"\"))","v":""},"",{"$f":"IF('TSA Input'!J1175=\"\",\"\",IF(OR('TSA Input'!J1175=\"Yes\",'TSA Input'!J1175=\"Contingent\"),'TSA Input'!D1175,\"\"))","v":""},{"$f":"IF('TSA Input'!J1175=\"\",\"\",IF(OR('TSA Input'!J1175=\"Yes\",'TSA Input'!J1175=\"Contingent\"),'TSA Input'!G1175,\"\"))","v":""},{"$f":"IF('TSA Input'!J1175=\"\",\"\",IF(OR('TSA Input'!J1175=\"Yes\",'TSA Input'!J1175=\"Contingent\"),'TSA Input'!F1175,\"\"))","v":""},"","Required","Required"]
["",null,{"$f":"IF('TSA Input'!J1176=\"\",\"\",IF(OR('TSA Input'!J1176=\"Yes\",'TSA Input'!J1176=\"Contingent\"),'TSA Input'!B1176,\"Ineligible\"))","v":""},{"$f":"IF('TSA Input'!J1176=\"\",\"\",IF(OR('TSA Input'!J1176=\"Yes\",'TSA Input'!J1176=\"Contingent\"),'TSA Input'!I1176,\"\"))","v":""},{"$f":"IF('TSA Input'!J1176=\"\",\"\",IF(OR('TSA Input'!J1176=\"Yes\",'TSA Input'!J1176=\"Contingent\"),'TSA Input'!C1176,\"\"))","v":""},{"$f":"IF('TSA Input'!J1176=\"\",\"\",IF(OR('TSA Input'!J1176=\"Yes\",'TSA Input'!J1176=\"Contingent\"),'TSA Input'!D1176,\"\"))","v":""},{"$f":"IF('TSA Input'!J1176=\"\",\"\",IF(OR('TSA Input'!J1176=\"Yes\",'TSA Input'!J1176=\"Contingent\"),'TSA Input'!G1176,\"\"))","v":""},{"$f":"IF('TSA Input'!J1176=\"\",\"\",IF(OR('TSA Input'!J1176=\"Yes\",'TSA Input'!J1176=\"Contingent\"),'TSA Input'!F1176,\"\"))","v":""},"",{"$f":"IF('TSA Input'!J1176=\"\",\"\",IF(OR('TSA Input'!J1176=\"Yes\",'TSA Input'!J1176=\"Contingent\"),'TSA Input'!D1176,\"\"))","v":""},{"$f":"IF('TSA Input'!J1176=\"\",\"\",IF(OR('TSA Input'!J1176=\"Yes\",'TSA Input'!J1176=\"Contingent\"),'TSA Input'!G1176,\"\"))","v":""},{"$f":"IF('TSA Input'!J1176=\"\",\"\",IF(OR('TSA Input'!J1176=\"Yes\",'TSA Input'!J1176=\"Contingent\"),'TSA Input'!F1176,\"\"))","v":""},"","Required","Required"]
["",null,{"$f":"IF('TSA Input'!J1177=\"\",\"\",IF(OR('TSA Input'!J1177=\"Yes\",'TSA Input'!J1177=\"Contingent\"),'TSA Input'!B1177,\"Ineligible\"))","v":""},{"$f":"IF('TSA Input'!J1177=\"\",\"\",IF(OR('TSA Input'!J1177=\"Yes\",'TSA Input'!J1177=\"Contingent\"),'TSA Input'!I1177,\"\"))","v":""},{"$f":"IF('TSA Input'!J1177=\"\",\"\",IF(OR('TSA Input'!J1177=\"Yes\",'TSA Input'!J1177=\"Contingent\"),'TSA Input'!C1177,\"\"))","v":""},{"$f":"IF('TSA Input'!J1177=\"\",\"\",IF(OR('TSA Input'!J1177=\"Yes\",'TSA Input'!J1177=\"Contingent\"),'TSA Input'!D1177,\"\"))","v":""},{"$f":"IF('TSA Input'!J1177=\"\",\"\",IF(OR('TSA Input'!J1177=\"Yes\",'TSA Input'!J1177=\"Contingent\"),'TSA Input'!G1177,\"\"))","v":""},{"$f":"IF('TSA Input'!J1177=\"\",\"\",IF(OR('TSA Input'!J1177=\"Yes\",'TSA Input'!J1177=\"Contingent\"),'TSA Input'!F1177,\"\"))","v":""},"",{"$f":"IF('TSA Input'!J1177=\"\",\"\",IF(OR('TSA Input'!J1177=\"Yes\",'TSA Input'!J1177=\"Contingent\"),'TSA Input'!D1177,\"\"))","v":""},{"$f":"IF('TSA Input'!J1177=\"\",\"\",IF(OR('TSA Input'!J1177=\"Yes\",'TSA Input'!J1177=\"Contingent\"),'TSA Input'!G1177,\"\"))","v":""},{"$f":"IF('TSA Input'!J1177=\"\",\"\",IF(OR('TSA Input'!J1177=\"Yes\",'TSA Input'!J1177=\"Contingent\"),'TSA Input'!F1177,\"\"))","v":""},"","Required","Required"]
["",null,{"$f":"IF('TSA Input'!J1178=\"\",\"\",IF(OR('TSA Input'!J1178=\"Yes\",'TSA Input'!J1178=\"Contingent\"),'TSA Input'!B1178,\"Ineligible\"))","v":""},{"$f":"IF('TSA Input'!J1178=\"\",\"\",IF(OR('TSA Input'!J1178=\"Yes\",'TSA Input'!J1178=\"Contingent\"),'TSA Input'!I1178,\"\"))","v":""},{"$f":"IF('TSA Input'!J1178=\"\",\"\",IF(OR('TSA Input'!J1178=\"Yes\",'TSA Input'!J1178=\"Contingent\"),'TSA Input'!C1178,\"\"))","v":""},{"$f":"IF('TSA Input'!J1178=\"\",\"\",IF(OR('TSA Input'!J1178=\"Yes\",'TSA Input'!J1178=\"Contingent\"),'TSA Input'!D1178,\"\"))","v":""},{"$f":"IF('TSA Input'!J1178=\"\",\"\",IF(OR('TSA Input'!J1178=\"Yes\",'TSA Input'!J1178=\"Contingent\"),'TSA Input'!G1178,\"\"))","v":""},{"$f":"IF('TSA Input'!J1178=\"\",\"\",IF(OR('TSA Input'!J1178=\"Yes\",'TSA Input'!J1178=\"Contingent\"),'TSA Input'!F1178,\"\"))","v":""},"",{"$f":"IF('TSA Input'!J1178=\"\",\"\",IF(OR('TSA Input'!J1178=\"Yes\",'TSA Input'!J1178=\"Contingent\"),'TSA Input'!D1178,\"\"))","v":""},{"$f":"IF('TSA Input'!J1178=\"\",\"\",IF(OR('TSA Input'!J1178=\"Yes\",'TSA Input'!J1178=\"Contingent\"),'TSA Input'!G1178,\"\"))","v":""},{"$f":"IF('TSA Input'!J1178=\"\",\"\",IF(OR('TSA Input'!J1178=\"Yes\",'TSA Input'!J1178=\"Contingent\"),'TSA Input'!F1178,\"\"))","v":""},"","Required","Required"]
["",null,{"$f":"IF('TSA Input'!J1179=\"\",\"\",IF(OR('TSA Input'!J1179=\"Yes\",'TSA Input'!J1179=\"Contingent\"),'TSA Input'!B1179,\"Ineligible\"))","v":""},{"$f":"IF('TSA Input'!J1179=\"\",\"\",IF(OR('TSA Input'!J1179=\"Yes\",'TSA Input'!J1179=\"Contingent\"),'TSA Input'!I1179,\"\"))","v":""},{"$f":"IF('TSA Input'!J1179=\"\",\"\",IF(OR('TSA Input'!J1179=\"Yes\",'TSA Input'!J1179=\"Contingent\"),'TSA Input'!C1179,\"\"))","v":""},{"$f":"IF('TSA Input'!J1179=\"\",\"\",IF(OR('TSA Input'!J1179=\"Yes\",'TSA Input'!J1179=\"Contingent\"),'TSA Input'!D1179,\"\"))","v":""},{"$f":"IF('TSA Input'!J1179=\"\",\"\",IF(OR('TSA Input'!J1179=\"Yes\",'TSA Input'!J1179=\"Contingent\"),'TSA Input'!G1179,\"\"))","v":""},{"$f":"IF('TSA Input'!J1179=\"\",\"\",IF(OR('TSA Input'!J1179=\"Yes\",'TSA Input'!J1179=\"Contingent\"),'TSA Input'!F1179,\"\"))","v":""},"",{"$f":"IF('TSA Input'!J1179=\"\",\"\",IF(OR('TSA Input'!J1179=\"Yes\",'TSA Input'!J1179=\"Contingent\"),'TSA Input'!D1179,\"\"))","v":""},{"$f":"IF('TSA Input'!J1179=\"\",\"\",IF(OR('TSA Input'!J1179=\"Yes\",'TSA Input'!J1179=\"Contingent\"),'TSA Input'!G1179,\"\"))","v":""},{"$f":"IF('TSA Input'!J1179=\"\",\"\",IF(OR('TSA Input'!J1179=\"Yes\",'TSA Input'!J1179=\"Contingent\"),'TSA Input'!F1179,\"\"))","v":""},"","Required","Required"]
["",null,{"$f":"IF('TSA Input'!J1180=\"\",\"\",IF(OR('TSA Input'!J1180=\"Yes\",'TSA Input'!J1180=\"Contingent\"),'TSA Input'!B1180,\"Ineligible\"))","v":""},{"$f":"IF('TSA Input'!J1180=\"\",\"\",IF(OR('TSA Input'!J1180=\"Yes\",'TSA Input'!J1180=\"Contingent\"),'TSA Input'!I1180,\"\"))","v":""},{"$f":"IF('TSA Input'!J1180=\"\",\"\",IF(OR('TSA Input'!J1180=\"Yes\",'TSA Input'!J1180=\"Contingent\"),'TSA Input'!C1180,\"\"))","v":""},{"$f":"IF('TSA Input'!J1180=\"\",\"\",IF(OR('TSA Input'!J1180=\"Yes\",'TSA Input'!J1180=\"Contingent\"),'TSA Input'!D1180,\"\"))","v":""},{"$f":"IF('TSA Input'!J1180=\"\",\"\",IF(OR('TSA Input'!J1180=\"Yes\",'TSA Input'!J1180=\"Contingent\"),'TSA Input'!G1180,\"\"))","v":""},{"$f":"IF('TSA Input'!J1180=\"\",\"\",IF(OR('TSA Input'!J1180=\"Yes\",'TSA Input'!J1180=\"Contingent\"),'TSA Input'!F1180,\"\"))","v":""},"",{"$f":"IF('TSA Input'!J1180=\"\",\"\",IF(OR('TSA Input'!J1180=\"Yes\",'TSA Input'!J1180=\"Contingent\"),'TSA Input'!D1180,\"\"))","v":""},{"$f":"IF('TSA Input'!J1180=\"\",\"\",IF(OR('TSA Input'!J1180=\"Yes\",'TSA Input'!J1180=\"Contingent\"),'TSA Input'!G1180,\"\"))","v":""},{"$f":"IF('TSA Input'!J1180=\"\",\"\",IF(OR('TSA Input'!J1180=\"Yes\",'TSA Input'!J1180=\"Contingent\"),'TSA Input'!F1180,\"\"))","v":""},"","Required","Required"]
["",null,{"$f":"IF('TSA Input'!J1181=\"\",\"\",IF(OR('TSA Input'!J1181=\"Yes\",'TSA Input'!J1181=\"Contingent\"),'TSA Input'!B1181,\"Ineligible\"))","v":""},{"$f":"IF('TSA Input'!J1181=\"\",\"\",IF(OR('TSA Input'!J1181=\"Yes\",'TSA Input'!J1181=\"Contingent\"),'TSA Input'!I1181,\"\"))","v":""},{"$f":"IF('TSA Input'!J1181=\"\",\"\",IF(OR('TSA Input'!J1181=\"Yes\",'TSA Input'!J1181=\"Contingent\"),'TSA Input'!C1181,\"\"))","v":""},{"$f":"IF('TSA Input'!J1181=\"\",\"\",IF(OR('TSA Input'!J1181=\"Yes\",'TSA Input'!J1181=\"Contingent\"),'TSA Input'!D1181,\"\"))","v":""},{"$f":"IF('TSA Input'!J1181=\"\",\"\",IF(OR('TSA Input'!J1181=\"Yes\",'TSA Input'!J1181=\"Contingent\"),'TSA Input'!G1181,\"\"))","v":""},{"$f":"IF('TSA Input'!J1181=\"\",\"\",IF(OR('TSA Input'!J1181=\"Yes\",'TSA Input'!J1181=\"Contingent\"),'TSA Input'!F1181,\"\"))","v":""},"",{"$f":"IF('TSA Input'!J1181=\"\",\"\",IF(OR('TSA Input'!J1181=\"Yes\",'TSA Input'!J1181=\"Contingent\"),'TSA Input'!D1181,\"\"))","v":""},{"$f":"IF('TSA Input'!J1181=\"\",\"\",IF(OR('TSA Input'!J1181=\"Yes\",'TSA Input'!J1181=\"Contingent\"),'TSA Input'!G1181,\"\"))","v":""},{"$f":"IF('TSA Input'!J1181=\"\",\"\",IF(OR('TSA Input'!J1181=\"Yes\",'TSA Input'!J1181=\"Contingent\"),'TSA Input'!F1181,\"\"))","v":""},"","Required","Required"]
["",null,{"$f":"IF('TSA Input'!J1182=\"\",\"\",IF(OR('TSA Input'!J1182=\"Yes\",'TSA Input'!J1182=\"Contingent\"),'TSA Input'!B1182,\"Ineligible\"))","v":""},{"$f":"IF('TSA Input'!J1182=\"\",\"\",IF(OR('TSA Input'!J1182=\"Yes\",'TSA Input'!J1182=\"Contingent\"),'TSA Input'!I1182,\"\"))","v":""},{"$f":"IF('TSA Input'!J1182=\"\",\"\",IF(OR('TSA Input'!J1182=\"Yes\",'TSA Input'!J1182=\"Contingent\"),'TSA Input'!C1182,\"\"))","v":""},{"$f":"IF('TSA Input'!J1182=\"\",\"\",IF(OR('TSA Input'!J1182=\"Yes\",'TSA Input'!J1182=\"Contingent\"),'TSA Input'!D1182,\"\"))","v":""},{"$f":"IF('TSA Input'!J1182=\"\",\"\",IF(OR('TSA Input'!J1182=\"Yes\",'TSA Input'!J1182=\"Contingent\"),'TSA Input'!G1182,\"\"))","v":""},{"$f":"IF('TSA Input'!J1182=\"\",\"\",IF(OR('TSA Input'!J1182=\"Yes\",'TSA Input'!J1182=\"Contingent\"),'TSA Input'!F1182,\"\"))","v":""},"",{"$f":"IF('TSA Input'!J1182=\"\",\"\",IF(OR('TSA Input'!J1182=\"Yes\",'TSA Input'!J1182=\"Contingent\"),'TSA Input'!D1182,\"\"))","v":""},{"$f":"IF('TSA Input'!J1182=\"\",\"\",IF(OR('TSA Input'!J1182=\"Yes\",'TSA Input'!J1182=\"Contingent\"),'TSA Input'!G1182,\"\"))","v":""},{"$f":"IF('TSA Input'!J1182=\"\",\"\",IF(OR('TSA Input'!J1182=\"Yes\",'TSA Input'!J1182=\"Contingent\"),'TSA Input'!F1182,\"\"))","v":""},"","Required","Required"]
["",null,{"$f":"IF('TSA Input'!J1183=\"\",\"\",IF(OR('TSA Input'!J1183=\"Yes\",'TSA Input'!J1183=\"Contingent\"),'TSA Input'!B1183,\"Ineligible\"))","v":""},{"$f":"IF('TSA Input'!J1183=\"\",\"\",IF(OR('TSA Input'!J1183=\"Yes\",'TSA Input'!J1183=\"Contingent\"),'TSA Input'!I1183,\"\"))","v":""},{"$f":"IF('TSA Input'!J1183=\"\",\"\",IF(OR('TSA Input'!J1183=\"Yes\",'TSA Input'!J1183=\"Contingent\"),'TSA Input'!C1183,\"\"))","v":""},{"$f":"IF('TSA Input'!J1183=\"\",\"\",IF(OR('TSA Input'!J1183=\"Yes\",'TSA Input'!J1183=\"Contingent\"),'TSA Input'!D1183,\"\"))","v":""},{"$f":"IF('TSA Input'!J1183=\"\",\"\",IF(OR('TSA Input'!J1183=\"Yes\",'TSA Input'!J1183=\"Contingent\"),'TSA Input'!G1183,\"\"))","v":""},{"$f":"IF('TSA Input'!J1183=\"\",\"\",IF(OR('TSA Input'!J1183=\"Yes\",'TSA Input'!J1183=\"Contingent\"),'TSA Input'!F1183,\"\"))","v":""},"",{"$f":"IF('TSA Input'!J1183=\"\",\"\",IF(OR('TSA Input'!J1183=\"Yes\",'TSA Input'!J1183=\"Contingent\"),'TSA Input'!D1183,\"\"))","v":""},{"$f":"IF('TSA Input'!J1183=\"\",\"\",IF(OR('TSA Input'!J1183=\"Yes\",'TSA Input'!J1183=\"Contingent\"),'TSA Input'!G1183,\"\"))","v":""},{"$f":"IF('TSA Input'!J1183=\"\",\"\",IF(OR('TSA Input'!J1183=\"Yes\",'TSA Input'!J1183=\"Contingent\"),'TSA Input'!F1183,\"\"))","v":""},"","Required","Required"]
["",null,{"$f":"IF('TSA Input'!J1184=\"\",\"\",IF(OR('TSA Input'!J1184=\"Yes\",'TSA Input'!J1184=\"Contingent\"),'TSA Input'!B1184,\"Ineligible\"))","v":""},{"$f":"IF('TSA Input'!J1184=\"\",\"\",IF(OR('TSA Input'!J1184=\"Yes\",'TSA Input'!J1184=\"Contingent\"),'TSA Input'!I1184,\"\"))","v":""},{"$f":"IF('TSA Input'!J1184=\"\",\"\",IF(OR('TSA Input'!J1184=\"Yes\",'TSA Input'!J1184=\"Contingent\"),'TSA Input'!C1184,\"\"))","v":""},{"$f":"IF('TSA Input'!J1184=\"\",\"\",IF(OR('TSA Input'!J1184=\"Yes\",'TSA Input'!J1184=\"Contingent\"),'TSA Input'!D1184,\"\"))","v":""},{"$f":"IF('TSA Input'!J1184=\"\",\"\",IF(OR('TSA Input'!J1184=\"Yes\",'TSA Input'!J1184=\"Contingent\"),'TSA Input'!G1184,\"\"))","v":""},{"$f":"IF('TSA Input'!J1184=\"\",\"\",IF(OR('TSA Input'!J1184=\"Yes\",'TSA Input'!J1184=\"Contingent\"),'TSA Input'!F1184,\"\"))","v":""},"",{"$f":"IF('TSA Input'!J1184=\"\",\"\",IF(OR('TSA Input'!J1184=\"Yes\",'TSA Input'!J1184=\"Contingent\"),'TSA Input'!D1184,\"\"))","v":""},{"$f":"IF('TSA Input'!J1184=\"\",\"\",IF(OR('TSA Input'!J1184=\"Yes\",'TSA Input'!J1184=\"Contingent\"),'TSA Input'!G1184,\"\"))","v":""},{"$f":"IF('TSA Input'!J1184=\"\",\"\",IF(OR('TSA Input'!J1184=\"Yes\",'TSA Input'!J1184=\"Contingent\"),'TSA Input'!F1184,\"\"))","v":""},"","Required","Required"]
["",null,{"$f":"IF('TSA Input'!J1185=\"\",\"\",IF(OR('TSA Input'!J1185=\"Yes\",'TSA Input'!J1185=\"Contingent\"),'TSA Input'!B1185,\"Ineligible\"))","v":""},{"$f":"IF('TSA Input'!J1185=\"\",\"\",IF(OR('TSA Input'!J1185=\"Yes\",'TSA Input'!J1185=\"Contingent\"),'TSA Input'!I1185,\"\"))","v":""},{"$f":"IF('TSA Input'!J1185=\"\",\"\",IF(OR('TSA Input'!J1185=\"Yes\",'TSA Input'!J1185=\"Contingent\"),'TSA Input'!C1185,\"\"))","v":""},{"$f":"IF('TSA Input'!J1185=\"\",\"\",IF(OR('TSA Input'!J1185=\"Yes\",'TSA Input'!J1185=\"Contingent\"),'TSA Input'!D1185,\"\"))","v":""},{"$f":"IF('TSA Input'!J1185=\"\",\"\",IF(OR('TSA Input'!J1185=\"Yes\",'TSA Input'!J1185=\"Contingent\"),'TSA Input'!G1185,\"\"))","v":""},{"$f":"IF('TSA Input'!J1185=\"\",\"\",IF(OR('TSA Input'!J1185=\"Yes\",'TSA Input'!J1185=\"Contingent\"),'TSA Input'!F1185,\"\"))","v":""},"",{"$f":"IF('TSA Input'!J1185=\"\",\"\",IF(OR('TSA Input'!J1185=\"Yes\",'TSA Input'!J1185=\"Contingent\"),'TSA Input'!D1185,\"\"))","v":""},{"$f":"IF('TSA Input'!J1185=\"\",\"\",IF(OR('TSA Input'!J1185=\"Yes\",'TSA Input'!J1185=\"Contingent\"),'TSA Input'!G1185,\"\"))","v":""},{"$f":"IF('TSA Input'!J1185=\"\",\"\",IF(OR('TSA Input'!J1185=\"Yes\",'TSA Input'!J1185=\"Contingent\"),'TSA Input'!F1185,\"\"))","v":""},"","Required","Required"]
["",null,{"$f":"IF('TSA Input'!J1186=\"\",\"\",IF(OR('TSA Input'!J1186=\"Yes\",'TSA Input'!J1186=\"Contingent\"),'TSA Input'!B1186,\"Ineligible\"))","v":""},{"$f":"IF('TSA Input'!J1186=\"\",\"\",IF(OR('TSA Input'!J1186=\"Yes\",'TSA Input'!J1186=\"Contingent\"),'TSA Input'!I1186,\"\"))","v":""},{"$f":"IF('TSA Input'!J1186=\"\",\"\",IF(OR('TSA Input'!J1186=\"Yes\",'TSA Input'!J1186=\"Contingent\"),'TSA Input'!C1186,\"\"))","v":""},{"$f":"IF('TSA Input'!J1186=\"\",\"\",IF(OR('TSA Input'!J1186=\"Yes\",'TSA Input'!J1186=\"Contingent\"),'TSA Input'!D1186,\"\"))","v":""},{"$f":"IF('TSA Input'!J1186=\"\",\"\",IF(OR('TSA Input'!J1186=\"Yes\",'TSA Input'!J1186=\"Contingent\"),'TSA Input'!G1186,\"\"))","v":""},{"$f":"IF('TSA Input'!J1186=\"\",\"\",IF(OR('TSA Input'!J1186=\"Yes\",'TSA Input'!J1186=\"Contingent\"),'TSA Input'!F1186,\"\"))","v":""},"",{"$f":"IF('TSA Input'!J1186=\"\",\"\",IF(OR('TSA Input'!J1186=\"Yes\",'TSA Input'!J1186=\"Contingent\"),'TSA Input'!D1186,\"\"))","v":""},{"$f":"IF('TSA Input'!J1186=\"\",\"\",IF(OR('TSA Input'!J1186=\"Yes\",'TSA Input'!J1186=\"Contingent\"),'TSA Input'!G1186,\"\"))","v":""},{"$f":"IF('TSA Input'!J1186=\"\",\"\",IF(OR('TSA Input'!J1186=\"Yes\",'TSA Input'!J1186=\"Contingent\"),'TSA Input'!F1186,\"\"))","v":""},"","Required","Required"]
["",null,{"$f":"IF('TSA Input'!J1187=\"\",\"\",IF(OR('TSA Input'!J1187=\"Yes\",'TSA Input'!J1187=\"Contingent\"),'TSA Input'!B1187,\"Ineligible\"))","v":""},{"$f":"IF('TSA Input'!J1187=\"\",\"\",IF(OR('TSA Input'!J1187=\"Yes\",'TSA Input'!J1187=\"Contingent\"),'TSA Input'!I1187,\"\"))","v":""},{"$f":"IF('TSA Input'!J1187=\"\",\"\",IF(OR('TSA Input'!J1187=\"Yes\",'TSA Input'!J1187=\"Contingent\"),'TSA Input'!C1187,\"\"))","v":""},{"$f":"IF('TSA Input'!J1187=\"\",\"\",IF(OR('TSA Input'!J1187=\"Yes\",'TSA Input'!J1187=\"Contingent\"),'TSA Input'!D1187,\"\"))","v":""},{"$f":"IF('TSA Input'!J1187=\"\",\"\",IF(OR('TSA Input'!J1187=\"Yes\",'TSA Input'!J1187=\"Contingent\"),'TSA Input'!G1187,\"\"))","v":""},{"$f":"IF('TSA Input'!J1187=\"\",\"\",IF(OR('TSA Input'!J1187=\"Yes\",'TSA Input'!J1187=\"Contingent\"),'TSA Input'!F1187,\"\"))","v":""},"",{"$f":"IF('TSA Input'!J1187=\"\",\"\",IF(OR('TSA Input'!J1187=\"Yes\",'TSA Input'!J1187=\"Contingent\"),'TSA Input'!D1187,\"\"))","v":""},{"$f":"IF('TSA Input'!J1187=\"\",\"\",IF(OR('TSA Input'!J1187=\"Yes\",'TSA Input'!J1187=\"Contingent\"),'TSA Input'!G1187,\"\"))","v":""},{"$f":"IF('TSA Input'!J1187=\"\",\"\",IF(OR('TSA Input'!J1187=\"Yes\",'TSA Input'!J1187=\"Contingent\"),'TSA Input'!F1187,\"\"))","v":""},"","Required","Required"]
["",null,{"$f":"IF('TSA Input'!J1188=\"\",\"\",IF(OR('TSA Input'!J1188=\"Yes\",'TSA Input'!J1188=\"Contingent\"),'TSA Input'!B1188,\"Ineligible\"))","v":""},{"$f":"IF('TSA Input'!J1188=\"\",\"\",IF(OR('TSA Input'!J1188=\"Yes\",'TSA Input'!J1188=\"Contingent\"),'TSA Input'!I1188,\"\"))","v":""},{"$f":"IF('TSA Input'!J1188=\"\",\"\",IF(OR('TSA Input'!J1188=\"Yes\",'TSA Input'!J1188=\"Contingent\"),'TSA Input'!C1188,\"\"))","v":""},{"$f":"IF('TSA Input'!J1188=\"\",\"\",IF(OR('TSA Input'!J1188=\"Yes\",'TSA Input'!J1188=\"Contingent\"),'TSA Input'!D1188,\"\"))","v":""},{"$f":"IF('TSA Input'!J1188=\"\",\"\",IF(OR('TSA Input'!J1188=\"Yes\",'TSA Input'!J1188=\"Contingent\"),'TSA Input'!G1188,\"\"))","v":""},{"$f":"IF('TSA Input'!J1188=\"\",\"\",IF(OR('TSA Input'!J1188=\"Yes\",'TSA Input'!J1188=\"Contingent\"),'TSA Input'!F1188,\"\"))","v":""},"",{"$f":"IF('TSA Input'!J1188=\"\",\"\",IF(OR('TSA Input'!J1188=\"Yes\",'TSA Input'!J1188=\"Contingent\"),'TSA Input'!D1188,\"\"))","v":""},{"$f":"IF('TSA Input'!J1188=\"\",\"\",IF(OR('TSA Input'!J1188=\"Yes\",'TSA Input'!J1188=\"Contingent\"),'TSA Input'!G1188,\"\"))","v":""},{"$f":"IF('TSA Input'!J1188=\"\",\"\",IF(OR('TSA Input'!J1188=\"Yes\",'TSA Input'!J1188=\"Contingent\"),'TSA Input'!F1188,\"\"))","v":""},"","Required","Required"]
["",null,{"$f":"IF('TSA Input'!J1189=\"\",\"\",IF(OR('TSA Input'!J1189=\"Yes\",'TSA Input'!J1189=\"Contingent\"),'TSA Input'!B1189,\"Ineligible\"))","v":""},{"$f":"IF('TSA Input'!J1189=\"\",\"\",IF(OR('TSA Input'!J1189=\"Yes\",'TSA Input'!J1189=\"Contingent\"),'TSA Input'!I1189,\"\"))","v":""},{"$f":"IF('TSA Input'!J1189=\"\",\"\",IF(OR('TSA Input'!J1189=\"Yes\",'TSA Input'!J1189=\"Contingent\"),'TSA Input'!C1189,\"\"))","v":""},{"$f":"IF('TSA Input'!J1189=\"\",\"\",IF(OR('TSA Input'!J1189=\"Yes\",'TSA Input'!J1189=\"Contingent\"),'TSA Input'!D1189,\"\"))","v":""},{"$f":"IF('TSA Input'!J1189=\"\",\"\",IF(OR('TSA Input'!J1189=\"Yes\",'TSA Input'!J1189=\"Contingent\"),'TSA Input'!G1189,\"\"))","v":""},{"$f":"IF('TSA Input'!J1189=\"\",\"\",IF(OR('TSA Input'!J1189=\"Yes\",'TSA Input'!J1189=\"Contingent\"),'TSA Input'!F1189,\"\"))","v":""},"",{"$f":"IF('TSA Input'!J1189=\"\",\"\",IF(OR('TSA Input'!J1189=\"Yes\",'TSA Input'!J1189=\"Contingent\"),'TSA Input'!D1189,\"\"))","v":""},{"$f":"IF('TSA Input'!J1189=\"\",\"\",IF(OR('TSA Input'!J1189=\"Yes\",'TSA Input'!J1189=\"Contingent\"),'TSA Input'!G1189,\"\"))","v":""},{"$f":"IF('TSA Input'!J1189=\"\",\"\",IF(OR('TSA Input'!J1189=\"Yes\",'TSA Input'!J1189=\"Contingent\"),'TSA Input'!F1189,\"\"))","v":""},"","Required","Required"]
["",null,{"$f":"IF('TSA Input'!J1190=\"\",\"\",IF(OR('TSA Input'!J1190=\"Yes\",'TSA Input'!J1190=\"Contingent\"),'TSA Input'!B1190,\"Ineligible\"))","v":""},{"$f":"IF('TSA Input'!J1190=\"\",\"\",IF(OR('TSA Input'!J1190=\"Yes\",'TSA Input'!J1190=\"Contingent\"),'TSA Input'!I1190,\"\"))","v":""},{"$f":"IF('TSA Input'!J1190=\"\",\"\",IF(OR('TSA Input'!J1190=\"Yes\",'TSA Input'!J1190=\"Contingent\"),'TSA Input'!C1190,\"\"))","v":""},{"$f":"IF('TSA Input'!J1190=\"\",\"\",IF(OR('TSA Input'!J1190=\"Yes\",'TSA Input'!J1190=\"Contingent\"),'TSA Input'!D1190,\"\"))","v":""},{"$f":"IF('TSA Input'!J1190=\"\",\"\",IF(OR('TSA Input'!J1190=\"Yes\",'TSA Input'!J1190=\"Contingent\"),'TSA Input'!G1190,\"\"))","v":""},{"$f":"IF('TSA Input'!J1190=\"\",\"\",IF(OR('TSA Input'!J1190=\"Yes\",'TSA Input'!J1190=\"Contingent\"),'TSA Input'!F1190,\"\"))","v":""},"",{"$f":"IF('TSA Input'!J1190=\"\",\"\",IF(OR('TSA Input'!J1190=\"Yes\",'TSA Input'!J1190=\"Contingent\"),'TSA Input'!D1190,\"\"))","v":""},{"$f":"IF('TSA Input'!J1190=\"\",\"\",IF(OR('TSA Input'!J1190=\"Yes\",'TSA Input'!J1190=\"Contingent\"),'TSA Input'!G1190,\"\"))","v":""},{"$f":"IF('TSA Input'!J1190=\"\",\"\",IF(OR('TSA Input'!J1190=\"Yes\",'TSA Input'!J1190=\"Contingent\"),'TSA Input'!F1190,\"\"))","v":""},"","Required","Required"]
["",null,{"$f":"IF('TSA Input'!J1191=\"\",\"\",IF(OR('TSA Input'!J1191=\"Yes\",'TSA Input'!J1191=\"Contingent\"),'TSA Input'!B1191,\"Ineligible\"))","v":""},{"$f":"IF('TSA Input'!J1191=\"\",\"\",IF(OR('TSA Input'!J1191=\"Yes\",'TSA Input'!J1191=\"Contingent\"),'TSA Input'!I1191,\"\"))","v":""},{"$f":"IF('TSA Input'!J1191=\"\",\"\",IF(OR('TSA Input'!J1191=\"Yes\",'TSA Input'!J1191=\"Contingent\"),'TSA Input'!C1191,\"\"))","v":""},{"$f":"IF('TSA Input'!J1191=\"\",\"\",IF(OR('TSA Input'!J1191=\"Yes\",'TSA Input'!J1191=\"Contingent\"),'TSA Input'!D1191,\"\"))","v":""},{"$f":"IF('TSA Input'!J1191=\"\",\"\",IF(OR('TSA Input'!J1191=\"Yes\",'TSA Input'!J1191=\"Contingent\"),'TSA Input'!G1191,\"\"))","v":""},{"$f":"IF('TSA Input'!J1191=\"\",\"\",IF(OR('TSA Input'!J1191=\"Yes\",'TSA Input'!J1191=\"Contingent\"),'TSA Input'!F1191,\"\"))","v":""},"",{"$f":"IF('TSA Input'!J1191=\"\",\"\",IF(OR('TSA Input'!J1191=\"Yes\",'TSA Input'!J1191=\"Contingent\"),'TSA Input'!D1191,\"\"))","v":""},{"$f":"IF('TSA Input'!J1191=\"\",\"\",IF(OR('TSA Input'!J1191=\"Yes\",'TSA Input'!J1191=\"Contingent\"),'TSA Input'!G1191,\"\"))","v":""},{"$f":"IF('TSA Input'!J1191=\"\",\"\",IF(OR('TSA Input'!J1191=\"Yes\",'TSA Input'!J1191=\"Contingent\"),'TSA Input'!F1191,\"\"))","v":""},"","Required","Required"]
["",null,{"$f":"IF('TSA Input'!J1192=\"\",\"\",IF(OR('TSA Input'!J1192=\"Yes\",'TSA Input'!J1192=\"Contingent\"),'TSA Input'!B1192,\"Ineligible\"))","v":""},{"$f":"IF('TSA Input'!J1192=\"\",\"\",IF(OR('TSA Input'!J1192=\"Yes\",'TSA Input'!J1192=\"Contingent\"),'TSA Input'!I1192,\"\"))","v":""},{"$f":"IF('TSA Input'!J1192=\"\",\"\",IF(OR('TSA Input'!J1192=\"Yes\",'TSA Input'!J1192=\"Contingent\"),'TSA Input'!C1192,\"\"))","v":""},{"$f":"IF('TSA Input'!J1192=\"\",\"\",IF(OR('TSA Input'!J1192=\"Yes\",'TSA Input'!J1192=\"Contingent\"),'TSA Input'!D1192,\"\"))","v":""},{"$f":"IF('TSA Input'!J1192=\"\",\"\",IF(OR('TSA Input'!J1192=\"Yes\",'TSA Input'!J1192=\"Contingent\"),'TSA Input'!G1192,\"\"))","v":""},{"$f":"IF('TSA Input'!J1192=\"\",\"\",IF(OR('TSA Input'!J1192=\"Yes\",'TSA Input'!J1192=\"Contingent\"),'TSA Input'!F1192,\"\"))","v":""},"",{"$f":"IF('TSA Input'!J1192=\"\",\"\",IF(OR('TSA Input'!J1192=\"Yes\",'TSA Input'!J1192=\"Contingent\"),'TSA Input'!D1192,\"\"))","v":""},{"$f":"IF('TSA Input'!J1192=\"\",\"\",IF(OR('TSA Input'!J1192=\"Yes\",'TSA Input'!J1192=\"Contingent\"),'TSA Input'!G1192,\"\"))","v":""},{"$f":"IF('TSA Input'!J1192=\"\",\"\",IF(OR('TSA Input'!J1192=\"Yes\",'TSA Input'!J1192=\"Contingent\"),'TSA Input'!F1192,\"\"))","v":""},"","Required","Required"]
["",null,{"$f":"IF('TSA Input'!J1193=\"\",\"\",IF(OR('TSA Input'!J1193=\"Yes\",'TSA Input'!J1193=\"Contingent\"),'TSA Input'!B1193,\"Ineligible\"))","v":""},{"$f":"IF('TSA Input'!J1193=\"\",\"\",IF(OR('TSA Input'!J1193=\"Yes\",'TSA Input'!J1193=\"Contingent\"),'TSA Input'!I1193,\"\"))","v":""},{"$f":"IF('TSA Input'!J1193=\"\",\"\",IF(OR('TSA Input'!J1193=\"Yes\",'TSA Input'!J1193=\"Contingent\"),'TSA Input'!C1193,\"\"))","v":""},{"$f":"IF('TSA Input'!J1193=\"\",\"\",IF(OR('TSA Input'!J1193=\"Yes\",'TSA Input'!J1193=\"Contingent\"),'TSA Input'!D1193,\"\"))","v":""},{"$f":"IF('TSA Input'!J1193=\"\",\"\",IF(OR('TSA Input'!J1193=\"Yes\",'TSA Input'!J1193=\"Contingent\"),'TSA Input'!G1193,\"\"))","v":""},{"$f":"IF('TSA Input'!J1193=\"\",\"\",IF(OR('TSA Input'!J1193=\"Yes\",'TSA Input'!J1193=\"Contingent\"),'TSA Input'!F1193,\"\"))","v":""},"",{"$f":"IF('TSA Input'!J1193=\"\",\"\",IF(OR('TSA Input'!J1193=\"Yes\",'TSA Input'!J1193=\"Contingent\"),'TSA Input'!D1193,\"\"))","v":""},{"$f":"IF('TSA Input'!J1193=\"\",\"\",IF(OR('TSA Input'!J1193=\"Yes\",'TSA Input'!J1193=\"Contingent\"),'TSA Input'!G1193,\"\"))","v":""},{"$f":"IF('TSA Input'!J1193=\"\",\"\",IF(OR('TSA Input'!J1193=\"Yes\",'TSA Input'!J1193=\"Contingent\"),'TSA Input'!F1193,\"\"))","v":""},"","Required","Required"]
["",null,{"$f":"IF('TSA Input'!J1194=\"\",\"\",IF(OR('TSA Input'!J1194=\"Yes\",'TSA Input'!J1194=\"Contingent\"),'TSA Input'!B1194,\"Ineligible\"))","v":""},{"$f":"IF('TSA Input'!J1194=\"\",\"\",IF(OR('TSA Input'!J1194=\"Yes\",'TSA Input'!J1194=\"Contingent\"),'TSA Input'!I1194,\"\"))","v":""},{"$f":"IF('TSA Input'!J1194=\"\",\"\",IF(OR('TSA Input'!J1194=\"Yes\",'TSA Input'!J1194=\"Contingent\"),'TSA Input'!C1194,\"\"))","v":""},{"$f":"IF('TSA Input'!J1194=\"\",\"\",IF(OR('TSA Input'!J1194=\"Yes\",'TSA Input'!J1194=\"Contingent\"),'TSA Input'!D1194,\"\"))","v":""},{"$f":"IF('TSA Input'!J1194=\"\",\"\",IF(OR('TSA Input'!J1194=\"Yes\",'TSA Input'!J1194=\"Contingent\"),'TSA Input'!G1194,\"\"))","v":""},{"$f":"IF('TSA Input'!J1194=\"\",\"\",IF(OR('TSA Input'!J1194=\"Yes\",'TSA Input'!J1194=\"Contingent\"),'TSA Input'!F1194,\"\"))","v":""},"",{"$f":"IF('TSA Input'!J1194=\"\",\"\",IF(OR('TSA Input'!J1194=\"Yes\",'TSA Input'!J1194=\"Contingent\"),'TSA Input'!D1194,\"\"))","v":""},{"$f":"IF('TSA Input'!J1194=\"\",\"\",IF(OR('TSA Input'!J1194=\"Yes\",'TSA Input'!J1194=\"Contingent\"),'TSA Input'!G1194,\"\"))","v":""},{"$f":"IF('TSA Input'!J1194=\"\",\"\",IF(OR('TSA Input'!J1194=\"Yes\",'TSA Input'!J1194=\"Contingent\"),'TSA Input'!F1194,\"\"))","v":""},"","Required","Required"]
["",null,{"$f":"IF('TSA Input'!J1195=\"\",\"\",IF(OR('TSA Input'!J1195=\"Yes\",'TSA Input'!J1195=\"Contingent\"),'TSA Input'!B1195,\"Ineligible\"))","v":""},{"$f":"IF('TSA Input'!J1195=\"\",\"\",IF(OR('TSA Input'!J1195=\"Yes\",'TSA Input'!J1195=\"Contingent\"),'TSA Input'!I1195,\"\"))","v":""},{"$f":"IF('TSA Input'!J1195=\"\",\"\",IF(OR('TSA Input'!J1195=\"Yes\",'TSA Input'!J1195=\"Contingent\"),'TSA Input'!C1195,\"\"))","v":""},{"$f":"IF('TSA Input'!J1195=\"\",\"\",IF(OR('TSA Input'!J1195=\"Yes\",'TSA Input'!J1195=\"Contingent\"),'TSA Input'!D1195,\"\"))","v":""},{"$f":"IF('TSA Input'!J1195=\"\",\"\",IF(OR('TSA Input'!J1195=\"Yes\",'TSA Input'!J1195=\"Contingent\"),'TSA Input'!G1195,\"\"))","v":""},{"$f":"IF('TSA Input'!J1195=\"\",\"\",IF(OR('TSA Input'!J1195=\"Yes\",'TSA Input'!J1195=\"Contingent\"),'TSA Input'!F1195,\"\"))","v":""},"",{"$f":"IF('TSA Input'!J1195=\"\",\"\",IF(OR('TSA Input'!J1195=\"Yes\",'TSA Input'!J1195=\"Contingent\"),'TSA Input'!D1195,\"\"))","v":""},{"$f":"IF('TSA Input'!J1195=\"\",\"\",IF(OR('TSA Input'!J1195=\"Yes\",'TSA Input'!J1195=\"Contingent\"),'TSA Input'!G1195,\"\"))","v":""},{"$f":"IF('TSA Input'!J1195=\"\",\"\",IF(OR('TSA Input'!J1195=\"Yes\",'TSA Input'!J1195=\"Contingent\"),'TSA Input'!F1195,\"\"))","v":""},"","Required","Required"]
["",null,{"$f":"IF('TSA Input'!J1196=\"\",\"\",IF(OR('TSA Input'!J1196=\"Yes\",'TSA Input'!J1196=\"Contingent\"),'TSA Input'!B1196,\"Ineligible\"))","v":""},{"$f":"IF('TSA Input'!J1196=\"\",\"\",IF(OR('TSA Input'!J1196=\"Yes\",'TSA Input'!J1196=\"Contingent\"),'TSA Input'!I1196,\"\"))","v":""},{"$f":"IF('TSA Input'!J1196=\"\",\"\",IF(OR('TSA Input'!J1196=\"Yes\",'TSA Input'!J1196=\"Contingent\"),'TSA Input'!C1196,\"\"))","v":""},{"$f":"IF('TSA Input'!J1196=\"\",\"\",IF(OR('TSA Input'!J1196=\"Yes\",'TSA Input'!J1196=\"Contingent\"),'TSA Input'!D1196,\"\"))","v":""},{"$f":"IF('TSA Input'!J1196=\"\",\"\",IF(OR('TSA Input'!J1196=\"Yes\",'TSA Input'!J1196=\"Contingent\"),'TSA Input'!G1196,\"\"))","v":""},{"$f":"IF('TSA Input'!J1196=\"\",\"\",IF(OR('TSA Input'!J1196=\"Yes\",'TSA Input'!J1196=\"Contingent\"),'TSA Input'!F1196,\"\"))","v":""},"",{"$f":"IF('TSA Input'!J1196=\"\",\"\",IF(OR('TSA Input'!J1196=\"Yes\",'TSA Input'!J1196=\"Contingent\"),'TSA Input'!D1196,\"\"))","v":""},{"$f":"IF('TSA Input'!J1196=\"\",\"\",IF(OR('TSA Input'!J1196=\"Yes\",'TSA Input'!J1196=\"Contingent\"),'TSA Input'!G1196,\"\"))","v":""},{"$f":"IF('TSA Input'!J1196=\"\",\"\",IF(OR('TSA Input'!J1196=\"Yes\",'TSA Input'!J1196=\"Contingent\"),'TSA Input'!F1196,\"\"))","v":""},"","Required","Required"]
["",null,{"$f":"IF('TSA Input'!J1197=\"\",\"\",IF(OR('TSA Input'!J1197=\"Yes\",'TSA Input'!J1197=\"Contingent\"),'TSA Input'!B1197,\"Ineligible\"))","v":""},{"$f":"IF('TSA Input'!J1197=\"\",\"\",IF(OR('TSA Input'!J1197=\"Yes\",'TSA Input'!J1197=\"Contingent\"),'TSA Input'!I1197,\"\"))","v":""},{"$f":"IF('TSA Input'!J1197=\"\",\"\",IF(OR('TSA Input'!J1197=\"Yes\",'TSA Input'!J1197=\"Contingent\"),'TSA Input'!C1197,\"\"))","v":""},{"$f":"IF('TSA Input'!J1197=\"\",\"\",IF(OR('TSA Input'!J1197=\"Yes\",'TSA Input'!J1197=\"Contingent\"),'TSA Input'!D1197,\"\"))","v":""},{"$f":"IF('TSA Input'!J1197=\"\",\"\",IF(OR('TSA Input'!J1197=\"Yes\",'TSA Input'!J1197=\"Contingent\"),'TSA Input'!G1197,\"\"))","v":""},{"$f":"IF('TSA Input'!J1197=\"\",\"\",IF(OR('TSA Input'!J1197=\"Yes\",'TSA Input'!J1197=\"Contingent\"),'TSA Input'!F1197,\"\"))","v":""},"",{"$f":"IF('TSA Input'!J1197=\"\",\"\",IF(OR('TSA Input'!J1197=\"Yes\",'TSA Input'!J1197=\"Contingent\"),'TSA Input'!D1197,\"\"))","v":""},{"$f":"IF('TSA Input'!J1197=\"\",\"\",IF(OR('TSA Input'!J1197=\"Yes\",'TSA Input'!J1197=\"Contingent\"),'TSA Input'!G1197,\"\"))","v":""},{"$f":"IF('TSA Input'!J1197=\"\",\"\",IF(OR('TSA Input'!J1197=\"Yes\",'TSA Input'!J1197=\"Contingent\"),'TSA Input'!F1197,\"\"))","v":""},"","Required","Required"]
["",null,{"$f":"IF('TSA Input'!J1198=\"\",\"\",IF(OR('TSA Input'!J1198=\"Yes\",'TSA Input'!J1198=\"Contingent\"),'TSA Input'!B1198,\"Ineligible\"))","v":""},{"$f":"IF('TSA Input'!J1198=\"\",\"\",IF(OR('TSA Input'!J1198=\"Yes\",'TSA Input'!J1198=\"Contingent\"),'TSA Input'!I1198,\"\"))","v":""},{"$f":"IF('TSA Input'!J1198=\"\",\"\",IF(OR('TSA Input'!J1198=\"Yes\",'TSA Input'!J1198=\"Contingent\"),'TSA Input'!C1198,\"\"))","v":""},{"$f":"IF('TSA Input'!J1198=\"\",\"\",IF(OR('TSA Input'!J1198=\"Yes\",'TSA Input'!J1198=\"Contingent\"),'TSA Input'!D1198,\"\"))","v":""},{"$f":"IF('TSA Input'!J1198=\"\",\"\",IF(OR('TSA Input'!J1198=\"Yes\",'TSA Input'!J1198=\"Contingent\"),'TSA Input'!G1198,\"\"))","v":""},{"$f":"IF('TSA Input'!J1198=\"\",\"\",IF(OR('TSA Input'!J1198=\"Yes\",'TSA Input'!J1198=\"Contingent\"),'TSA Input'!F1198,\"\"))","v":""},"",{"$f":"IF('TSA Input'!J1198=\"\",\"\",IF(OR('TSA Input'!J1198=\"Yes\",'TSA Input'!J1198=\"Contingent\"),'TSA Input'!D1198,\"\"))","v":""},{"$f":"IF('TSA Input'!J1198=\"\",\"\",IF(OR('TSA Input'!J1198=\"Yes\",'TSA Input'!J1198=\"Contingent\"),'TSA Input'!G1198,\"\"))","v":""},{"$f":"IF('TSA Input'!J1198=\"\",\"\",IF(OR('TSA Input'!J1198=\"Yes\",'TSA Input'!J1198=\"Contingent\"),'TSA Input'!F1198,\"\"))","v":""},"","Required","Required"]
["",null,{"$f":"IF('TSA Input'!J1199=\"\",\"\",IF(OR('TSA Input'!J1199=\"Yes\",'TSA Input'!J1199=\"Contingent\"),'TSA Input'!B1199,\"Ineligible\"))","v":""},{"$f":"IF('TSA Input'!J1199=\"\",\"\",IF(OR('TSA Input'!J1199=\"Yes\",'TSA Input'!J1199=\"Contingent\"),'TSA Input'!I1199,\"\"))","v":""},{"$f":"IF('TSA Input'!J1199=\"\",\"\",IF(OR('TSA Input'!J1199=\"Yes\",'TSA Input'!J1199=\"Contingent\"),'TSA Input'!C1199,\"\"))","v":""},{"$f":"IF('TSA Input'!J1199=\"\",\"\",IF(OR('TSA Input'!J1199=\"Yes\",'TSA Input'!J1199=\"Contingent\"),'TSA Input'!D1199,\"\"))","v":""},{"$f":"IF('TSA Input'!J1199=\"\",\"\",IF(OR('TSA Input'!J1199=\"Yes\",'TSA Input'!J1199=\"Contingent\"),'TSA Input'!G1199,\"\"))","v":""},{"$f":"IF('TSA Input'!J1199=\"\",\"\",IF(OR('TSA Input'!J1199=\"Yes\",'TSA Input'!J1199=\"Contingent\"),'TSA Input'!F1199,\"\"))","v":""},"",{"$f":"IF('TSA Input'!J1199=\"\",\"\",IF(OR('TSA Input'!J1199=\"Yes\",'TSA Input'!J1199=\"Contingent\"),'TSA Input'!D1199,\"\"))","v":""},{"$f":"IF('TSA Input'!J1199=\"\",\"\",IF(OR('TSA Input'!J1199=\"Yes\",'TSA Input'!J1199=\"Contingent\"),'TSA Input'!G1199,\"\"))","v":""},{"$f":"IF('TSA Input'!J1199=\"\",\"\",IF(OR('TSA Input'!J1199=\"Yes\",'TSA Input'!J1199=\"Contingent\"),'TSA Input'!F1199,\"\"))","v":""},"","Required","Required"]
["",null,{"$f":"IF('TSA Input'!J1200=\"\",\"\",IF(OR('TSA Input'!J1200=\"Yes\",'TSA Input'!J1200=\"Contingent\"),'TSA Input'!B1200,\"Ineligible\"))","v":""},{"$f":"IF('TSA Input'!J1200=\"\",\"\",IF(OR('TSA Input'!J1200=\"Yes\",'TSA Input'!J1200=\"Contingent\"),'TSA Input'!I1200,\"\"))","v":""},{"$f":"IF('TSA Input'!J1200=\"\",\"\",IF(OR('TSA Input'!J1200=\"Yes\",'TSA Input'!J1200=\"Contingent\"),'TSA Input'!C1200,\"\"))","v":""},{"$f":"IF('TSA Input'!J1200=\"\",\"\",IF(OR('TSA Input'!J1200=\"Yes\",'TSA Input'!J1200=\"Contingent\"),'TSA Input'!D1200,\"\"))","v":""},{"$f":"IF('TSA Input'!J1200=\"\",\"\",IF(OR('TSA Input'!J1200=\"Yes\",'TSA Input'!J1200=\"Contingent\"),'TSA Input'!G1200,\"\"))","v":""},{"$f":"IF('TSA Input'!J1200=\"\",\"\",IF(OR('TSA Input'!J1200=\"Yes\",'TSA Input'!J1200=\"Contingent\"),'TSA Input'!F1200,\"\"))","v":""},"",{"$f":"IF('TSA Input'!J1200=\"\",\"\",IF(OR('TSA Input'!J1200=\"Yes\",'TSA Input'!J1200=\"Contingent\"),'TSA Input'!D1200,\"\"))","v":""},{"$f":"IF('TSA Input'!J1200=\"\",\"\",IF(OR('TSA Input'!J1200=\"Yes\",'TSA Input'!J1200=\"Contingent\"),'TSA Input'!G1200,\"\"))","v":""},{"$f":"IF('TSA Input'!J1200=\"\",\"\",IF(OR('TSA Input'!J1200=\"Yes\",'TSA Input'!J1200=\"Contingent\"),'TSA Input'!F1200,\"\"))","v":""},"","Required","Required"]
["",null,{"$f":"IF('TSA Input'!J1201=\"\",\"\",IF(OR('TSA Input'!J1201=\"Yes\",'TSA Input'!J1201=\"Contingent\"),'TSA Input'!B1201,\"Ineligible\"))","v":""},{"$f":"IF('TSA Input'!J1201=\"\",\"\",IF(OR('TSA Input'!J1201=\"Yes\",'TSA Input'!J1201=\"Contingent\"),'TSA Input'!I1201,\"\"))","v":""},{"$f":"IF('TSA Input'!J1201=\"\",\"\",IF(OR('TSA Input'!J1201=\"Yes\",'TSA Input'!J1201=\"Contingent\"),'TSA Input'!C1201,\"\"))","v":""},{"$f":"IF('TSA Input'!J1201=\"\",\"\",IF(OR('TSA Input'!J1201=\"Yes\",'TSA Input'!J1201=\"Contingent\"),'TSA Input'!D1201,\"\"))","v":""},{"$f":"IF('TSA Input'!J1201=\"\",\"\",IF(OR('TSA Input'!J1201=\"Yes\",'TSA Input'!J1201=\"Contingent\"),'TSA Input'!G1201,\"\"))","v":""},{"$f":"IF('TSA Input'!J1201=\"\",\"\",IF(OR('TSA Input'!J1201=\"Yes\",'TSA Input'!J1201=\"Contingent\"),'TSA Input'!F1201,\"\"))","v":""},"",{"$f":"IF('TSA Input'!J1201=\"\",\"\",IF(OR('TSA Input'!J1201=\"Yes\",'TSA Input'!J1201=\"Contingent\"),'TSA Input'!D1201,\"\"))","v":""},{"$f":"IF('TSA Input'!J1201=\"\",\"\",IF(OR('TSA Input'!J1201=\"Yes\",'TSA Input'!J1201=\"Contingent\"),'TSA Input'!G1201,\"\"))","v":""},{"$f":"IF('TSA Input'!J1201=\"\",\"\",IF(OR('TSA Input'!J1201=\"Yes\",'TSA Input'!J1201=\"Contingent\"),'TSA Input'!F1201,\"\"))","v":""},"","Required","Required"]
["",null,{"$f":"IF('TSA Input'!J1202=\"\",\"\",IF(OR('TSA Input'!J1202=\"Yes\",'TSA Input'!J1202=\"Contingent\"),'TSA Input'!B1202,\"Ineligible\"))","v":""},{"$f":"IF('TSA Input'!J1202=\"\",\"\",IF(OR('TSA Input'!J1202=\"Yes\",'TSA Input'!J1202=\"Contingent\"),'TSA Input'!I1202,\"\"))","v":""},{"$f":"IF('TSA Input'!J1202=\"\",\"\",IF(OR('TSA Input'!J1202=\"Yes\",'TSA Input'!J1202=\"Contingent\"),'TSA Input'!C1202,\"\"))","v":""},{"$f":"IF('TSA Input'!J1202=\"\",\"\",IF(OR('TSA Input'!J1202=\"Yes\",'TSA Input'!J1202=\"Contingent\"),'TSA Input'!D1202,\"\"))","v":""},{"$f":"IF('TSA Input'!J1202=\"\",\"\",IF(OR('TSA Input'!J1202=\"Yes\",'TSA Input'!J1202=\"Contingent\"),'TSA Input'!G1202,\"\"))","v":""},{"$f":"IF('TSA Input'!J1202=\"\",\"\",IF(OR('TSA Input'!J1202=\"Yes\",'TSA Input'!J1202=\"Contingent\"),'TSA Input'!F1202,\"\"))","v":""},"",{"$f":"IF('TSA Input'!J1202=\"\",\"\",IF(OR('TSA Input'!J1202=\"Yes\",'TSA Input'!J1202=\"Contingent\"),'TSA Input'!D1202,\"\"))","v":""},{"$f":"IF('TSA Input'!J1202=\"\",\"\",IF(OR('TSA Input'!J1202=\"Yes\",'TSA Input'!J1202=\"Contingent\"),'TSA Input'!G1202,\"\"))","v":""},{"$f":"IF('TSA Input'!J1202=\"\",\"\",IF(OR('TSA Input'!J1202=\"Yes\",'TSA Input'!J1202=\"Contingent\"),'TSA Input'!F1202,\"\"))","v":""},"","Required","Required"]
["",null,{"$f":"IF('TSA Input'!J1203=\"\",\"\",IF(OR('TSA Input'!J1203=\"Yes\",'TSA Input'!J1203=\"Contingent\"),'TSA Input'!B1203,\"Ineligible\"))","v":""},{"$f":"IF('TSA Input'!J1203=\"\",\"\",IF(OR('TSA Input'!J1203=\"Yes\",'TSA Input'!J1203=\"Contingent\"),'TSA Input'!I1203,\"\"))","v":""},{"$f":"IF('TSA Input'!J1203=\"\",\"\",IF(OR('TSA Input'!J1203=\"Yes\",'TSA Input'!J1203=\"Contingent\"),'TSA Input'!C1203,\"\"))","v":""},{"$f":"IF('TSA Input'!J1203=\"\",\"\",IF(OR('TSA Input'!J1203=\"Yes\",'TSA Input'!J1203=\"Contingent\"),'TSA Input'!D1203,\"\"))","v":""},{"$f":"IF('TSA Input'!J1203=\"\",\"\",IF(OR('TSA Input'!J1203=\"Yes\",'TSA Input'!J1203=\"Contingent\"),'TSA Input'!G1203,\"\"))","v":""},{"$f":"IF('TSA Input'!J1203=\"\",\"\",IF(OR('TSA Input'!J1203=\"Yes\",'TSA Input'!J1203=\"Contingent\"),'TSA Input'!F1203,\"\"))","v":""},"",{"$f":"IF('TSA Input'!J1203=\"\",\"\",IF(OR('TSA Input'!J1203=\"Yes\",'TSA Input'!J1203=\"Contingent\"),'TSA Input'!D1203,\"\"))","v":""},{"$f":"IF('TSA Input'!J1203=\"\",\"\",IF(OR('TSA Input'!J1203=\"Yes\",'TSA Input'!J1203=\"Contingent\"),'TSA Input'!G1203,\"\"))","v":""},{"$f":"IF('TSA Input'!J1203=\"\",\"\",IF(OR('TSA Input'!J1203=\"Yes\",'TSA Input'!J1203=\"Contingent\"),'TSA Input'!F1203,\"\"))","v":""},"","Required","Required"]
["",null,{"$f":"IF('TSA Input'!J1204=\"\",\"\",IF(OR('TSA Input'!J1204=\"Yes\",'TSA Input'!J1204=\"Contingent\"),'TSA Input'!B1204,\"Ineligible\"))","v":""},{"$f":"IF('TSA Input'!J1204=\"\",\"\",IF(OR('TSA Input'!J1204=\"Yes\",'TSA Input'!J1204=\"Contingent\"),'TSA Input'!I1204,\"\"))","v":""},{"$f":"IF('TSA Input'!J1204=\"\",\"\",IF(OR('TSA Input'!J1204=\"Yes\",'TSA Input'!J1204=\"Contingent\"),'TSA Input'!C1204,\"\"))","v":""},{"$f":"IF('TSA Input'!J1204=\"\",\"\",IF(OR('TSA Input'!J1204=\"Yes\",'TSA Input'!J1204=\"Contingent\"),'TSA Input'!D1204,\"\"))","v":""},{"$f":"IF('TSA Input'!J1204=\"\",\"\",IF(OR('TSA Input'!J1204=\"Yes\",'TSA Input'!J1204=\"Contingent\"),'TSA Input'!G1204,\"\"))","v":""},{"$f":"IF('TSA Input'!J1204=\"\",\"\",IF(OR('TSA Input'!J1204=\"Yes\",'TSA Input'!J1204=\"Contingent\"),'TSA Input'!F1204,\"\"))","v":""},"",{"$f":"IF('TSA Input'!J1204=\"\",\"\",IF(OR('TSA Input'!J1204=\"Yes\",'TSA Input'!J1204=\"Contingent\"),'TSA Input'!D1204,\"\"))","v":""},{"$f":"IF('TSA Input'!J1204=\"\",\"\",IF(OR('TSA Input'!J1204=\"Yes\",'TSA Input'!J1204=\"Contingent\"),'TSA Input'!G1204,\"\"))","v":""},{"$f":"IF('TSA Input'!J1204=\"\",\"\",IF(OR('TSA Input'!J1204=\"Yes\",'TSA Input'!J1204=\"Contingent\"),'TSA Input'!F1204,\"\"))","v":""},"","Required","Required"]
["",null,{"$f":"IF('TSA Input'!J1205=\"\",\"\",IF(OR('TSA Input'!J1205=\"Yes\",'TSA Input'!J1205=\"Contingent\"),'TSA Input'!B1205,\"Ineligible\"))","v":""},{"$f":"IF('TSA Input'!J1205=\"\",\"\",IF(OR('TSA Input'!J1205=\"Yes\",'TSA Input'!J1205=\"Contingent\"),'TSA Input'!I1205,\"\"))","v":""},{"$f":"IF('TSA Input'!J1205=\"\",\"\",IF(OR('TSA Input'!J1205=\"Yes\",'TSA Input'!J1205=\"Contingent\"),'TSA Input'!C1205,\"\"))","v":""},{"$f":"IF('TSA Input'!J1205=\"\",\"\",IF(OR('TSA Input'!J1205=\"Yes\",'TSA Input'!J1205=\"Contingent\"),'TSA Input'!D1205,\"\"))","v":""},{"$f":"IF('TSA Input'!J1205=\"\",\"\",IF(OR('TSA Input'!J1205=\"Yes\",'TSA Input'!J1205=\"Contingent\"),'TSA Input'!G1205,\"\"))","v":""},{"$f":"IF('TSA Input'!J1205=\"\",\"\",IF(OR('TSA Input'!J1205=\"Yes\",'TSA Input'!J1205=\"Contingent\"),'TSA Input'!F1205,\"\"))","v":""},"",{"$f":"IF('TSA Input'!J1205=\"\",\"\",IF(OR('TSA Input'!J1205=\"Yes\",'TSA Input'!J1205=\"Contingent\"),'TSA Input'!D1205,\"\"))","v":""},{"$f":"IF('TSA Input'!J1205=\"\",\"\",IF(OR('TSA Input'!J1205=\"Yes\",'TSA Input'!J1205=\"Contingent\"),'TSA Input'!G1205,\"\"))","v":""},{"$f":"IF('TSA Input'!J1205=\"\",\"\",IF(OR('TSA Input'!J1205=\"Yes\",'TSA Input'!J1205=\"Contingent\"),'TSA Input'!F1205,\"\"))","v":""},"","Required","Required"]
["",null,{"$f":"IF('TSA Input'!J1206=\"\",\"\",IF(OR('TSA Input'!J1206=\"Yes\",'TSA Input'!J1206=\"Contingent\"),'TSA Input'!B1206,\"Ineligible\"))","v":""},{"$f":"IF('TSA Input'!J1206=\"\",\"\",IF(OR('TSA Input'!J1206=\"Yes\",'TSA Input'!J1206=\"Contingent\"),'TSA Input'!I1206,\"\"))","v":""},{"$f":"IF('TSA Input'!J1206=\"\",\"\",IF(OR('TSA Input'!J1206=\"Yes\",'TSA Input'!J1206=\"Contingent\"),'TSA Input'!C1206,\"\"))","v":""},{"$f":"IF('TSA Input'!J1206=\"\",\"\",IF(OR('TSA Input'!J1206=\"Yes\",'TSA Input'!J1206=\"Contingent\"),'TSA Input'!D1206,\"\"))","v":""},{"$f":"IF('TSA Input'!J1206=\"\",\"\",IF(OR('TSA Input'!J1206=\"Yes\",'TSA Input'!J1206=\"Contingent\"),'TSA Input'!G1206,\"\"))","v":""},{"$f":"IF('TSA Input'!J1206=\"\",\"\",IF(OR('TSA Input'!J1206=\"Yes\",'TSA Input'!J1206=\"Contingent\"),'TSA Input'!F1206,\"\"))","v":""},"",{"$f":"IF('TSA Input'!J1206=\"\",\"\",IF(OR('TSA Input'!J1206=\"Yes\",'TSA Input'!J1206=\"Contingent\"),'TSA Input'!D1206,\"\"))","v":""},{"$f":"IF('TSA Input'!J1206=\"\",\"\",IF(OR('TSA Input'!J1206=\"Yes\",'TSA Input'!J1206=\"Contingent\"),'TSA Input'!G1206,\"\"))","v":""},{"$f":"IF('TSA Input'!J1206=\"\",\"\",IF(OR('TSA Input'!J1206=\"Yes\",'TSA Input'!J1206=\"Contingent\"),'TSA Input'!F1206,\"\"))","v":""},"","Required","Required"]
["",null,{"$f":"IF('TSA Input'!J1207=\"\",\"\",IF(OR('TSA Input'!J1207=\"Yes\",'TSA Input'!J1207=\"Contingent\"),'TSA Input'!B1207,\"Ineligible\"))","v":""},{"$f":"IF('TSA Input'!J1207=\"\",\"\",IF(OR('TSA Input'!J1207=\"Yes\",'TSA Input'!J1207=\"Contingent\"),'TSA Input'!I1207,\"\"))","v":""},{"$f":"IF('TSA Input'!J1207=\"\",\"\",IF(OR('TSA Input'!J1207=\"Yes\",'TSA Input'!J1207=\"Contingent\"),'TSA Input'!C1207,\"\"))","v":""},{"$f":"IF('TSA Input'!J1207=\"\",\"\",IF(OR('TSA Input'!J1207=\"Yes\",'TSA Input'!J1207=\"Contingent\"),'TSA Input'!D1207,\"\"))","v":""},{"$f":"IF('TSA Input'!J1207=\"\",\"\",IF(OR('TSA Input'!J1207=\"Yes\",'TSA Input'!J1207=\"Contingent\"),'TSA Input'!G1207,\"\"))","v":""},{"$f":"IF('TSA Input'!J1207=\"\",\"\",IF(OR('TSA Input'!J1207=\"Yes\",'TSA Input'!J1207=\"Contingent\"),'TSA Input'!F1207,\"\"))","v":""},"",{"$f":"IF('TSA Input'!J1207=\"\",\"\",IF(OR('TSA Input'!J1207=\"Yes\",'TSA Input'!J1207=\"Contingent\"),'TSA Input'!D1207,\"\"))","v":""},{"$f":"IF('TSA Input'!J1207=\"\",\"\",IF(OR('TSA Input'!J1207=\"Yes\",'TSA Input'!J1207=\"Contingent\"),'TSA Input'!G1207,\"\"))","v":""},{"$f":"IF('TSA Input'!J1207=\"\",\"\",IF(OR('TSA Input'!J1207=\"Yes\",'TSA Input'!J1207=\"Contingent\"),'TSA Input'!F1207,\"\"))","v":""},"","Required","Required"]
["",null,{"$f":"IF('TSA Input'!J1208=\"\",\"\",IF(OR('TSA Input'!J1208=\"Yes\",'TSA Input'!J1208=\"Contingent\"),'TSA Input'!B1208,\"Ineligible\"))","v":""},{"$f":"IF('TSA Input'!J1208=\"\",\"\",IF(OR('TSA Input'!J1208=\"Yes\",'TSA Input'!J1208=\"Contingent\"),'TSA Input'!I1208,\"\"))","v":""},{"$f":"IF('TSA Input'!J1208=\"\",\"\",IF(OR('TSA Input'!J1208=\"Yes\",'TSA Input'!J1208=\"Contingent\"),'TSA Input'!C1208,\"\"))","v":""},{"$f":"IF('TSA Input'!J1208=\"\",\"\",IF(OR('TSA Input'!J1208=\"Yes\",'TSA Input'!J1208=\"Contingent\"),'TSA Input'!D1208,\"\"))","v":""},{"$f":"IF('TSA Input'!J1208=\"\",\"\",IF(OR('TSA Input'!J1208=\"Yes\",'TSA Input'!J1208=\"Contingent\"),'TSA Input'!G1208,\"\"))","v":""},{"$f":"IF('TSA Input'!J1208=\"\",\"\",IF(OR('TSA Input'!J1208=\"Yes\",'TSA Input'!J1208=\"Contingent\"),'TSA Input'!F1208,\"\"))","v":""},"",{"$f":"IF('TSA Input'!J1208=\"\",\"\",IF(OR('TSA Input'!J1208=\"Yes\",'TSA Input'!J1208=\"Contingent\"),'TSA Input'!D1208,\"\"))","v":""},{"$f":"IF('TSA Input'!J1208=\"\",\"\",IF(OR('TSA Input'!J1208=\"Yes\",'TSA Input'!J1208=\"Contingent\"),'TSA Input'!G1208,\"\"))","v":""},{"$f":"IF('TSA Input'!J1208=\"\",\"\",IF(OR('TSA Input'!J1208=\"Yes\",'TSA Input'!J1208=\"Contingent\"),'TSA Input'!F1208,\"\"))","v":""},"","Required","Required"]
["",null,{"$f":"IF('TSA Input'!J1209=\"\",\"\",IF(OR('TSA Input'!J1209=\"Yes\",'TSA Input'!J1209=\"Contingent\"),'TSA Input'!B1209,\"Ineligible\"))","v":""},{"$f":"IF('TSA Input'!J1209=\"\",\"\",IF(OR('TSA Input'!J1209=\"Yes\",'TSA Input'!J1209=\"Contingent\"),'TSA Input'!I1209,\"\"))","v":""},{"$f":"IF('TSA Input'!J1209=\"\",\"\",IF(OR('TSA Input'!J1209=\"Yes\",'TSA Input'!J1209=\"Contingent\"),'TSA Input'!C1209,\"\"))","v":""},{"$f":"IF('TSA Input'!J1209=\"\",\"\",IF(OR('TSA Input'!J1209=\"Yes\",'TSA Input'!J1209=\"Contingent\"),'TSA Input'!D1209,\"\"))","v":""},{"$f":"IF('TSA Input'!J1209=\"\",\"\",IF(OR('TSA Input'!J1209=\"Yes\",'TSA Input'!J1209=\"Contingent\"),'TSA Input'!G1209,\"\"))","v":""},{"$f":"IF('TSA Input'!J1209=\"\",\"\",IF(OR('TSA Input'!J1209=\"Yes\",'TSA Input'!J1209=\"Contingent\"),'TSA Input'!F1209,\"\"))","v":""},"",{"$f":"IF('TSA Input'!J1209=\"\",\"\",IF(OR('TSA Input'!J1209=\"Yes\",'TSA Input'!J1209=\"Contingent\"),'TSA Input'!D1209,\"\"))","v":""},{"$f":"IF('TSA Input'!J1209=\"\",\"\",IF(OR('TSA Input'!J1209=\"Yes\",'TSA Input'!J1209=\"Contingent\"),'TSA Input'!G1209,\"\"))","v":""},{"$f":"IF('TSA Input'!J1209=\"\",\"\",IF(OR('TSA Input'!J1209=\"Yes\",'TSA Input'!J1209=\"Contingent\"),'TSA Input'!F1209,\"\"))","v":""},"","Required","Required"]
["",null,{"$f":"IF('TSA Input'!J1210=\"\",\"\",IF(OR('TSA Input'!J1210=\"Yes\",'TSA Input'!J1210=\"Contingent\"),'TSA Input'!B1210,\"Ineligible\"))","v":""},{"$f":"IF('TSA Input'!J1210=\"\",\"\",IF(OR('TSA Input'!J1210=\"Yes\",'TSA Input'!J1210=\"Contingent\"),'TSA Input'!I1210,\"\"))","v":""},{"$f":"IF('TSA Input'!J1210=\"\",\"\",IF(OR('TSA Input'!J1210=\"Yes\",'TSA Input'!J1210=\"Contingent\"),'TSA Input'!C1210,\"\"))","v":""},{"$f":"IF('TSA Input'!J1210=\"\",\"\",IF(OR('TSA Input'!J1210=\"Yes\",'TSA Input'!J1210=\"Contingent\"),'TSA Input'!D1210,\"\"))","v":""},{"$f":"IF('TSA Input'!J1210=\"\",\"\",IF(OR('TSA Input'!J1210=\"Yes\",'TSA Input'!J1210=\"Contingent\"),'TSA Input'!G1210,\"\"))","v":""},{"$f":"IF('TSA Input'!J1210=\"\",\"\",IF(OR('TSA Input'!J1210=\"Yes\",'TSA Input'!J1210=\"Contingent\"),'TSA Input'!F1210,\"\"))","v":""},"",{"$f":"IF('TSA Input'!J1210=\"\",\"\",IF(OR('TSA Input'!J1210=\"Yes\",'TSA Input'!J1210=\"Contingent\"),'TSA Input'!D1210,\"\"))","v":""},{"$f":"IF('TSA Input'!J1210=\"\",\"\",IF(OR('TSA Input'!J1210=\"Yes\",'TSA Input'!J1210=\"Contingent\"),'TSA Input'!G1210,\"\"))","v":""},{"$f":"IF('TSA Input'!J1210=\"\",\"\",IF(OR('TSA Input'!J1210=\"Yes\",'TSA Input'!J1210=\"Contingent\"),'TSA Input'!F1210,\"\"))","v":""},"","Required","Required"]
["",null,{"$f":"IF('TSA Input'!J1211=\"\",\"\",IF(OR('TSA Input'!J1211=\"Yes\",'TSA Input'!J1211=\"Contingent\"),'TSA Input'!B1211,\"Ineligible\"))","v":""},{"$f":"IF('TSA Input'!J1211=\"\",\"\",IF(OR('TSA Input'!J1211=\"Yes\",'TSA Input'!J1211=\"Contingent\"),'TSA Input'!I1211,\"\"))","v":""},{"$f":"IF('TSA Input'!J1211=\"\",\"\",IF(OR('TSA Input'!J1211=\"Yes\",'TSA Input'!J1211=\"Contingent\"),'TSA Input'!C1211,\"\"))","v":""},{"$f":"IF('TSA Input'!J1211=\"\",\"\",IF(OR('TSA Input'!J1211=\"Yes\",'TSA Input'!J1211=\"Contingent\"),'TSA Input'!D1211,\"\"))","v":""},{"$f":"IF('TSA Input'!J1211=\"\",\"\",IF(OR('TSA Input'!J1211=\"Yes\",'TSA Input'!J1211=\"Contingent\"),'TSA Input'!G1211,\"\"))","v":""},{"$f":"IF('TSA Input'!J1211=\"\",\"\",IF(OR('TSA Input'!J1211=\"Yes\",'TSA Input'!J1211=\"Contingent\"),'TSA Input'!F1211,\"\"))","v":""},"",{"$f":"IF('TSA Input'!J1211=\"\",\"\",IF(OR('TSA Input'!J1211=\"Yes\",'TSA Input'!J1211=\"Contingent\"),'TSA Input'!D1211,\"\"))","v":""},{"$f":"IF('TSA Input'!J1211=\"\",\"\",IF(OR('TSA Input'!J1211=\"Yes\",'TSA Input'!J1211=\"Contingent\"),'TSA Input'!G1211,\"\"))","v":""},{"$f":"IF('TSA Input'!J1211=\"\",\"\",IF(OR('TSA Input'!J1211=\"Yes\",'TSA Input'!J1211=\"Contingent\"),'TSA Input'!F1211,\"\"))","v":""},"","Required","Required"]
["",null,{"$f":"IF('TSA Input'!J1212=\"\",\"\",IF(OR('TSA Input'!J1212=\"Yes\",'TSA Input'!J1212=\"Contingent\"),'TSA Input'!B1212,\"Ineligible\"))","v":""},{"$f":"IF('TSA Input'!J1212=\"\",\"\",IF(OR('TSA Input'!J1212=\"Yes\",'TSA Input'!J1212=\"Contingent\"),'TSA Input'!I1212,\"\"))","v":""},{"$f":"IF('TSA Input'!J1212=\"\",\"\",IF(OR('TSA Input'!J1212=\"Yes\",'TSA Input'!J1212=\"Contingent\"),'TSA Input'!C1212,\"\"))","v":""},{"$f":"IF('TSA Input'!J1212=\"\",\"\",IF(OR('TSA Input'!J1212=\"Yes\",'TSA Input'!J1212=\"Contingent\"),'TSA Input'!D1212,\"\"))","v":""},{"$f":"IF('TSA Input'!J1212=\"\",\"\",IF(OR('TSA Input'!J1212=\"Yes\",'TSA Input'!J1212=\"Contingent\"),'TSA Input'!G1212,\"\"))","v":""},{"$f":"IF('TSA Input'!J1212=\"\",\"\",IF(OR('TSA Input'!J1212=\"Yes\",'TSA Input'!J1212=\"Contingent\"),'TSA Input'!F1212,\"\"))","v":""},"",{"$f":"IF('TSA Input'!J1212=\"\",\"\",IF(OR('TSA Input'!J1212=\"Yes\",'TSA Input'!J1212=\"Contingent\"),'TSA Input'!D1212,\"\"))","v":""},{"$f":"IF('TSA Input'!J1212=\"\",\"\",IF(OR('TSA Input'!J1212=\"Yes\",'TSA Input'!J1212=\"Contingent\"),'TSA Input'!G1212,\"\"))","v":""},{"$f":"IF('TSA Input'!J1212=\"\",\"\",IF(OR('TSA Input'!J1212=\"Yes\",'TSA Input'!J1212=\"Contingent\"),'TSA Input'!F1212,\"\"))","v":""},"","Required","Required"]
["",null,{"$f":"IF('TSA Input'!J1213=\"\",\"\",IF(OR('TSA Input'!J1213=\"Yes\",'TSA Input'!J1213=\"Contingent\"),'TSA Input'!B1213,\"Ineligible\"))","v":""},{"$f":"IF('TSA Input'!J1213=\"\",\"\",IF(OR('TSA Input'!J1213=\"Yes\",'TSA Input'!J1213=\"Contingent\"),'TSA Input'!I1213,\"\"))","v":""},{"$f":"IF('TSA Input'!J1213=\"\",\"\",IF(OR('TSA Input'!J1213=\"Yes\",'TSA Input'!J1213=\"Contingent\"),'TSA Input'!C1213,\"\"))","v":""},{"$f":"IF('TSA Input'!J1213=\"\",\"\",IF(OR('TSA Input'!J1213=\"Yes\",'TSA Input'!J1213=\"Contingent\"),'TSA Input'!D1213,\"\"))","v":""},{"$f":"IF('TSA Input'!J1213=\"\",\"\",IF(OR('TSA Input'!J1213=\"Yes\",'TSA Input'!J1213=\"Contingent\"),'TSA Input'!G1213,\"\"))","v":""},{"$f":"IF('TSA Input'!J1213=\"\",\"\",IF(OR('TSA Input'!J1213=\"Yes\",'TSA Input'!J1213=\"Contingent\"),'TSA Input'!F1213,\"\"))","v":""},"",{"$f":"IF('TSA Input'!J1213=\"\",\"\",IF(OR('TSA Input'!J1213=\"Yes\",'TSA Input'!J1213=\"Contingent\"),'TSA Input'!D1213,\"\"))","v":""},{"$f":"IF('TSA Input'!J1213=\"\",\"\",IF(OR('TSA Input'!J1213=\"Yes\",'TSA Input'!J1213=\"Contingent\"),'TSA Input'!G1213,\"\"))","v":""},{"$f":"IF('TSA Input'!J1213=\"\",\"\",IF(OR('TSA Input'!J1213=\"Yes\",'TSA Input'!J1213=\"Contingent\"),'TSA Input'!F1213,\"\"))","v":""},"","Required","Required"]
["",null,{"$f":"IF('TSA Input'!J1214=\"\",\"\",IF(OR('TSA Input'!J1214=\"Yes\",'TSA Input'!J1214=\"Contingent\"),'TSA Input'!B1214,\"Ineligible\"))","v":""},{"$f":"IF('TSA Input'!J1214=\"\",\"\",IF(OR('TSA Input'!J1214=\"Yes\",'TSA Input'!J1214=\"Contingent\"),'TSA Input'!I1214,\"\"))","v":""},{"$f":"IF('TSA Input'!J1214=\"\",\"\",IF(OR('TSA Input'!J1214=\"Yes\",'TSA Input'!J1214=\"Contingent\"),'TSA Input'!C1214,\"\"))","v":""},{"$f":"IF('TSA Input'!J1214=\"\",\"\",IF(OR('TSA Input'!J1214=\"Yes\",'TSA Input'!J1214=\"Contingent\"),'TSA Input'!D1214,\"\"))","v":""},{"$f":"IF('TSA Input'!J1214=\"\",\"\",IF(OR('TSA Input'!J1214=\"Yes\",'TSA Input'!J1214=\"Contingent\"),'TSA Input'!G1214,\"\"))","v":""},{"$f":"IF('TSA Input'!J1214=\"\",\"\",IF(OR('TSA Input'!J1214=\"Yes\",'TSA Input'!J1214=\"Contingent\"),'TSA Input'!F1214,\"\"))","v":""},"",{"$f":"IF('TSA Input'!J1214=\"\",\"\",IF(OR('TSA Input'!J1214=\"Yes\",'TSA Input'!J1214=\"Contingent\"),'TSA Input'!D1214,\"\"))","v":""},{"$f":"IF('TSA Input'!J1214=\"\",\"\",IF(OR('TSA Input'!J1214=\"Yes\",'TSA Input'!J1214=\"Contingent\"),'TSA Input'!G1214,\"\"))","v":""},{"$f":"IF('TSA Input'!J1214=\"\",\"\",IF(OR('TSA Input'!J1214=\"Yes\",'TSA Input'!J1214=\"Contingent\"),'TSA Input'!F1214,\"\"))","v":""},"","Required","Required"]
["",null,{"$f":"IF('TSA Input'!J1215=\"\",\"\",IF(OR('TSA Input'!J1215=\"Yes\",'TSA Input'!J1215=\"Contingent\"),'TSA Input'!B1215,\"Ineligible\"))","v":""},{"$f":"IF('TSA Input'!J1215=\"\",\"\",IF(OR('TSA Input'!J1215=\"Yes\",'TSA Input'!J1215=\"Contingent\"),'TSA Input'!I1215,\"\"))","v":""},{"$f":"IF('TSA Input'!J1215=\"\",\"\",IF(OR('TSA Input'!J1215=\"Yes\",'TSA Input'!J1215=\"Contingent\"),'TSA Input'!C1215,\"\"))","v":""},{"$f":"IF('TSA Input'!J1215=\"\",\"\",IF(OR('TSA Input'!J1215=\"Yes\",'TSA Input'!J1215=\"Contingent\"),'TSA Input'!D1215,\"\"))","v":""},{"$f":"IF('TSA Input'!J1215=\"\",\"\",IF(OR('TSA Input'!J1215=\"Yes\",'TSA Input'!J1215=\"Contingent\"),'TSA Input'!G1215,\"\"))","v":""},{"$f":"IF('TSA Input'!J1215=\"\",\"\",IF(OR('TSA Input'!J1215=\"Yes\",'TSA Input'!J1215=\"Contingent\"),'TSA Input'!F1215,\"\"))","v":""},"",{"$f":"IF('TSA Input'!J1215=\"\",\"\",IF(OR('TSA Input'!J1215=\"Yes\",'TSA Input'!J1215=\"Contingent\"),'TSA Input'!D1215,\"\"))","v":""},{"$f":"IF('TSA Input'!J1215=\"\",\"\",IF(OR('TSA Input'!J1215=\"Yes\",'TSA Input'!J1215=\"Contingent\"),'TSA Input'!G1215,\"\"))","v":""},{"$f":"IF('TSA Input'!J1215=\"\",\"\",IF(OR('TSA Input'!J1215=\"Yes\",'TSA Input'!J1215=\"Contingent\"),'TSA Input'!F1215,\"\"))","v":""},"","Required","Required"]
["",null,{"$f":"IF('TSA Input'!J1216=\"\",\"\",IF(OR('TSA Input'!J1216=\"Yes\",'TSA Input'!J1216=\"Contingent\"),'TSA Input'!B1216,\"Ineligible\"))","v":""},{"$f":"IF('TSA Input'!J1216=\"\",\"\",IF(OR('TSA Input'!J1216=\"Yes\",'TSA Input'!J1216=\"Contingent\"),'TSA Input'!I1216,\"\"))","v":""},{"$f":"IF('TSA Input'!J1216=\"\",\"\",IF(OR('TSA Input'!J1216=\"Yes\",'TSA Input'!J1216=\"Contingent\"),'TSA Input'!C1216,\"\"))","v":""},{"$f":"IF('TSA Input'!J1216=\"\",\"\",IF(OR('TSA Input'!J1216=\"Yes\",'TSA Input'!J1216=\"Contingent\"),'TSA Input'!D1216,\"\"))","v":""},{"$f":"IF('TSA Input'!J1216=\"\",\"\",IF(OR('TSA Input'!J1216=\"Yes\",'TSA Input'!J1216=\"Contingent\"),'TSA Input'!G1216,\"\"))","v":""},{"$f":"IF('TSA Input'!J1216=\"\",\"\",IF(OR('TSA Input'!J1216=\"Yes\",'TSA Input'!J1216=\"Contingent\"),'TSA Input'!F1216,\"\"))","v":""},"",{"$f":"IF('TSA Input'!J1216=\"\",\"\",IF(OR('TSA Input'!J1216=\"Yes\",'TSA Input'!J1216=\"Contingent\"),'TSA Input'!D1216,\"\"))","v":""},{"$f":"IF('TSA Input'!J1216=\"\",\"\",IF(OR('TSA Input'!J1216=\"Yes\",'TSA Input'!J1216=\"Contingent\"),'TSA Input'!G1216,\"\"))","v":""},{"$f":"IF('TSA Input'!J1216=\"\",\"\",IF(OR('TSA Input'!J1216=\"Yes\",'TSA Input'!J1216=\"Contingent\"),'TSA Input'!F1216,\"\"))","v":""},"","Required","Required"]
["",null,{"$f":"IF('TSA Input'!J1217=\"\",\"\",IF(OR('TSA Input'!J1217=\"Yes\",'TSA Input'!J1217=\"Contingent\"),'TSA Input'!B1217,\"Ineligible\"))","v":""},{"$f":"IF('TSA Input'!J1217=\"\",\"\",IF(OR('TSA Input'!J1217=\"Yes\",'TSA Input'!J1217=\"Contingent\"),'TSA Input'!I1217,\"\"))","v":""},{"$f":"IF('TSA Input'!J1217=\"\",\"\",IF(OR('TSA Input'!J1217=\"Yes\",'TSA Input'!J1217=\"Contingent\"),'TSA Input'!C1217,\"\"))","v":""},{"$f":"IF('TSA Input'!J1217=\"\",\"\",IF(OR('TSA Input'!J1217=\"Yes\",'TSA Input'!J1217=\"Contingent\"),'TSA Input'!D1217,\"\"))","v":""},{"$f":"IF('TSA Input'!J1217=\"\",\"\",IF(OR('TSA Input'!J1217=\"Yes\",'TSA Input'!J1217=\"Contingent\"),'TSA Input'!G1217,\"\"))","v":""},{"$f":"IF('TSA Input'!J1217=\"\",\"\",IF(OR('TSA Input'!J1217=\"Yes\",'TSA Input'!J1217=\"Contingent\"),'TSA Input'!F1217,\"\"))","v":""},"",{"$f":"IF('TSA Input'!J1217=\"\",\"\",IF(OR('TSA Input'!J1217=\"Yes\",'TSA Input'!J1217=\"Contingent\"),'TSA Input'!D1217,\"\"))","v":""},{"$f":"IF('TSA Input'!J1217=\"\",\"\",IF(OR('TSA Input'!J1217=\"Yes\",'TSA Input'!J1217=\"Contingent\"),'TSA Input'!G1217,\"\"))","v":""},{"$f":"IF('TSA Input'!J1217=\"\",\"\",IF(OR('TSA Input'!J1217=\"Yes\",'TSA Input'!J1217=\"Contingent\"),'TSA Input'!F1217,\"\"))","v":""},"","Required","Required"]
["",null,{"$f":"IF('TSA Input'!J1218=\"\",\"\",IF(OR('TSA Input'!J1218=\"Yes\",'TSA Input'!J1218=\"Contingent\"),'TSA Input'!B1218,\"Ineligible\"))","v":""},{"$f":"IF('TSA Input'!J1218=\"\",\"\",IF(OR('TSA Input'!J1218=\"Yes\",'TSA Input'!J1218=\"Contingent\"),'TSA Input'!I1218,\"\"))","v":""},{"$f":"IF('TSA Input'!J1218=\"\",\"\",IF(OR('TSA Input'!J1218=\"Yes\",'TSA Input'!J1218=\"Contingent\"),'TSA Input'!C1218,\"\"))","v":""},{"$f":"IF('TSA Input'!J1218=\"\",\"\",IF(OR('TSA Input'!J1218=\"Yes\",'TSA Input'!J1218=\"Contingent\"),'TSA Input'!D1218,\"\"))","v":""},{"$f":"IF('TSA Input'!J1218=\"\",\"\",IF(OR('TSA Input'!J1218=\"Yes\",'TSA Input'!J1218=\"Contingent\"),'TSA Input'!G1218,\"\"))","v":""},{"$f":"IF('TSA Input'!J1218=\"\",\"\",IF(OR('TSA Input'!J1218=\"Yes\",'TSA Input'!J1218=\"Contingent\"),'TSA Input'!F1218,\"\"))","v":""},"",{"$f":"IF('TSA Input'!J1218=\"\",\"\",IF(OR('TSA Input'!J1218=\"Yes\",'TSA Input'!J1218=\"Contingent\"),'TSA Input'!D1218,\"\"))","v":""},{"$f":"IF('TSA Input'!J1218=\"\",\"\",IF(OR('TSA Input'!J1218=\"Yes\",'TSA Input'!J1218=\"Contingent\"),'TSA Input'!G1218,\"\"))","v":""},{"$f":"IF('TSA Input'!J1218=\"\",\"\",IF(OR('TSA Input'!J1218=\"Yes\",'TSA Input'!J1218=\"Contingent\"),'TSA Input'!F1218,\"\"))","v":""},"","Required","Required"]
["",null,{"$f":"IF('TSA Input'!J1219=\"\",\"\",IF(OR('TSA Input'!J1219=\"Yes\",'TSA Input'!J1219=\"Contingent\"),'TSA Input'!B1219,\"Ineligible\"))","v":""},{"$f":"IF('TSA Input'!J1219=\"\",\"\",IF(OR('TSA Input'!J1219=\"Yes\",'TSA Input'!J1219=\"Contingent\"),'TSA Input'!I1219,\"\"))","v":""},{"$f":"IF('TSA Input'!J1219=\"\",\"\",IF(OR('TSA Input'!J1219=\"Yes\",'TSA Input'!J1219=\"Contingent\"),'TSA Input'!C1219,\"\"))","v":""},{"$f":"IF('TSA Input'!J1219=\"\",\"\",IF(OR('TSA Input'!J1219=\"Yes\",'TSA Input'!J1219=\"Contingent\"),'TSA Input'!D1219,\"\"))","v":""},{"$f":"IF('TSA Input'!J1219=\"\",\"\",IF(OR('TSA Input'!J1219=\"Yes\",'TSA Input'!J1219=\"Contingent\"),'TSA Input'!G1219,\"\"))","v":""},{"$f":"IF('TSA Input'!J1219=\"\",\"\",IF(OR('TSA Input'!J1219=\"Yes\",'TSA Input'!J1219=\"Contingent\"),'TSA Input'!F1219,\"\"))","v":""},"",{"$f":"IF('TSA Input'!J1219=\"\",\"\",IF(OR('TSA Input'!J1219=\"Yes\",'TSA Input'!J1219=\"Contingent\"),'TSA Input'!D1219,\"\"))","v":""},{"$f":"IF('TSA Input'!J1219=\"\",\"\",IF(OR('TSA Input'!J1219=\"Yes\",'TSA Input'!J1219=\"Contingent\"),'TSA Input'!G1219,\"\"))","v":""},{"$f":"IF('TSA Input'!J1219=\"\",\"\",IF(OR('TSA Input'!J1219=\"Yes\",'TSA Input'!J1219=\"Contingent\"),'TSA Input'!F1219,\"\"))","v":""},"","Required","Required"]
["",null,{"$f":"IF('TSA Input'!J1220=\"\",\"\",IF(OR('TSA Input'!J1220=\"Yes\",'TSA Input'!J1220=\"Contingent\"),'TSA Input'!B1220,\"Ineligible\"))","v":""},{"$f":"IF('TSA Input'!J1220=\"\",\"\",IF(OR('TSA Input'!J1220=\"Yes\",'TSA Input'!J1220=\"Contingent\"),'TSA Input'!I1220,\"\"))","v":""},{"$f":"IF('TSA Input'!J1220=\"\",\"\",IF(OR('TSA Input'!J1220=\"Yes\",'TSA Input'!J1220=\"Contingent\"),'TSA Input'!C1220,\"\"))","v":""},{"$f":"IF('TSA Input'!J1220=\"\",\"\",IF(OR('TSA Input'!J1220=\"Yes\",'TSA Input'!J1220=\"Contingent\"),'TSA Input'!D1220,\"\"))","v":""},{"$f":"IF('TSA Input'!J1220=\"\",\"\",IF(OR('TSA Input'!J1220=\"Yes\",'TSA Input'!J1220=\"Contingent\"),'TSA Input'!G1220,\"\"))","v":""},{"$f":"IF('TSA Input'!J1220=\"\",\"\",IF(OR('TSA Input'!J1220=\"Yes\",'TSA Input'!J1220=\"Contingent\"),'TSA Input'!F1220,\"\"))","v":""},{"$f":"IF($C1258=\"\",\"\",SUM(F1258:H1258))","v":""},{"$f":"IF('TSA Input'!J1220=\"\",\"\",IF(OR('TSA Input'!J1220=\"Yes\",'TSA Input'!J1220=\"Contingent\"),'TSA Input'!D1220,\"\"))","v":""},{"$f":"IF('TSA Input'!J1220=\"\",\"\",IF(OR('TSA Input'!J1220=\"Yes\",'TSA Input'!J1220=\"Contingent\"),'TSA Input'!G1220,\"\"))","v":""},{"$f":"IF('TSA Input'!J1220=\"\",\"\",IF(OR('TSA Input'!J1220=\"Yes\",'TSA Input'!J1220=\"Contingent\"),'TSA Input'!F1220,\"\"))","v":""},{"$f":"IF($C1258=\"\",\"\",SUM(J1258:L1258))","v":""},"Required","Required"]
["",null,{"$f":"IF('TSA Input'!J1221=\"\",\"\",IF(OR('TSA Input'!J1221=\"Yes\",'TSA Input'!J1221=\"Contingent\"),'TSA Input'!B1221,\"Ineligible\"))","v":""},{"$f":"IF('TSA Input'!J1221=\"\",\"\",IF(OR('TSA Input'!J1221=\"Yes\",'TSA Input'!J1221=\"Contingent\"),'TSA Input'!I1221,\"\"))","v":""},{"$f":"IF('TSA Input'!J1221=\"\",\"\",IF(OR('TSA Input'!J1221=\"Yes\",'TSA Input'!J1221=\"Contingent\"),'TSA Input'!C1221,\"\"))","v":""},{"$f":"IF('TSA Input'!J1221=\"\",\"\",IF(OR('TSA Input'!J1221=\"Yes\",'TSA Input'!J1221=\"Contingent\"),'TSA Input'!D1221,\"\"))","v":""},{"$f":"IF('TSA Input'!J1221=\"\",\"\",IF(OR('TSA Input'!J1221=\"Yes\",'TSA Input'!J1221=\"Contingent\"),'TSA Input'!G1221,\"\"))","v":""},{"$f":"IF('TSA Input'!J1221=\"\",\"\",IF(OR('TSA Input'!J1221=\"Yes\",'TSA Input'!J1221=\"Contingent\"),'TSA Input'!F1221,\"\"))","v":""},"",{"$f":"IF('TSA Input'!J1221=\"\",\"\",IF(OR('TSA Input'!J1221=\"Yes\",'TSA Input'!J1221=\"Contingent\"),'TSA Input'!D1221,\"\"))","v":""},{"$f":"IF('TSA Input'!J1221=\"\",\"\",IF(OR('TSA Input'!J1221=\"Yes\",'TSA Input'!J1221=\"Contingent\"),'TSA Input'!G1221,\"\"))","v":""},{"$f":"IF('TSA Input'!J1221=\"\",\"\",IF(OR('TSA Input'!J1221=\"Yes\",'TSA Input'!J1221=\"Contingent\"),'TSA Input'!F1221,\"\"))","v":""},"","Required","Required"]
["",null,{"$f":"IF('TSA Input'!J1222=\"\",\"\",IF(OR('TSA Input'!J1222=\"Yes\",'TSA Input'!J1222=\"Contingent\"),'TSA Input'!B1222,\"Ineligible\"))","v":""},{"$f":"IF('TSA Input'!J1222=\"\",\"\",IF(OR('TSA Input'!J1222=\"Yes\",'TSA Input'!J1222=\"Contingent\"),'TSA Input'!I1222,\"\"))","v":""},{"$f":"IF('TSA Input'!J1222=\"\",\"\",IF(OR('TSA Input'!J1222=\"Yes\",'TSA Input'!J1222=\"Contingent\"),'TSA Input'!C1222,\"\"))","v":""},{"$f":"IF('TSA Input'!J1222=\"\",\"\",IF(OR('TSA Input'!J1222=\"Yes\",'TSA Input'!J1222=\"Contingent\"),'TSA Input'!D1222,\"\"))","v":""},{"$f":"IF('TSA Input'!J1222=\"\",\"\",IF(OR('TSA Input'!J1222=\"Yes\",'TSA Input'!J1222=\"Contingent\"),'TSA Input'!G1222,\"\"))","v":""},{"$f":"IF('TSA Input'!J1222=\"\",\"\",IF(OR('TSA Input'!J1222=\"Yes\",'TSA Input'!J1222=\"Contingent\"),'TSA Input'!F1222,\"\"))","v":""},"",{"$f":"IF('TSA Input'!J1222=\"\",\"\",IF(OR('TSA Input'!J1222=\"Yes\",'TSA Input'!J1222=\"Contingent\"),'TSA Input'!D1222,\"\"))","v":""},{"$f":"IF('TSA Input'!J1222=\"\",\"\",IF(OR('TSA Input'!J1222=\"Yes\",'TSA Input'!J1222=\"Contingent\"),'TSA Input'!G1222,\"\"))","v":""},{"$f":"IF('TSA Input'!J1222=\"\",\"\",IF(OR('TSA Input'!J1222=\"Yes\",'TSA Input'!J1222=\"Contingent\"),'TSA Input'!F1222,\"\"))","v":""},"","Required","Required"]
["",null,{"$f":"IF('TSA Input'!J1223=\"\",\"\",IF(OR('TSA Input'!J1223=\"Yes\",'TSA Input'!J1223=\"Contingent\"),'TSA Input'!B1223,\"Ineligible\"))","v":""},{"$f":"IF('TSA Input'!J1223=\"\",\"\",IF(OR('TSA Input'!J1223=\"Yes\",'TSA Input'!J1223=\"Contingent\"),'TSA Input'!I1223,\"\"))","v":""},{"$f":"IF('TSA Input'!J1223=\"\",\"\",IF(OR('TSA Input'!J1223=\"Yes\",'TSA Input'!J1223=\"Contingent\"),'TSA Input'!C1223,\"\"))","v":""},{"$f":"IF('TSA Input'!J1223=\"\",\"\",IF(OR('TSA Input'!J1223=\"Yes\",'TSA Input'!J1223=\"Contingent\"),'TSA Input'!D1223,\"\"))","v":""},{"$f":"IF('TSA Input'!J1223=\"\",\"\",IF(OR('TSA Input'!J1223=\"Yes\",'TSA Input'!J1223=\"Contingent\"),'TSA Input'!G1223,\"\"))","v":""},{"$f":"IF('TSA Input'!J1223=\"\",\"\",IF(OR('TSA Input'!J1223=\"Yes\",'TSA Input'!J1223=\"Contingent\"),'TSA Input'!F1223,\"\"))","v":""},"",{"$f":"IF('TSA Input'!J1223=\"\",\"\",IF(OR('TSA Input'!J1223=\"Yes\",'TSA Input'!J1223=\"Contingent\"),'TSA Input'!D1223,\"\"))","v":""},{"$f":"IF('TSA Input'!J1223=\"\",\"\",IF(OR('TSA Input'!J1223=\"Yes\",'TSA Input'!J1223=\"Contingent\"),'TSA Input'!G1223,\"\"))","v":""},{"$f":"IF('TSA Input'!J1223=\"\",\"\",IF(OR('TSA Input'!J1223=\"Yes\",'TSA Input'!J1223=\"Contingent\"),'TSA Input'!F1223,\"\"))","v":""},"","Required","Required"]
["",null,{"$f":"IF('TSA Input'!J1224=\"\",\"\",IF(OR('TSA Input'!J1224=\"Yes\",'TSA Input'!J1224=\"Contingent\"),'TSA Input'!B1224,\"Ineligible\"))","v":""},{"$f":"IF('TSA Input'!J1224=\"\",\"\",IF(OR('TSA Input'!J1224=\"Yes\",'TSA Input'!J1224=\"Contingent\"),'TSA Input'!I1224,\"\"))","v":""},{"$f":"IF('TSA Input'!J1224=\"\",\"\",IF(OR('TSA Input'!J1224=\"Yes\",'TSA Input'!J1224=\"Contingent\"),'TSA Input'!C1224,\"\"))","v":""},{"$f":"IF('TSA Input'!J1224=\"\",\"\",IF(OR('TSA Input'!J1224=\"Yes\",'TSA Input'!J1224=\"Contingent\"),'TSA Input'!D1224,\"\"))","v":""},{"$f":"IF('TSA Input'!J1224=\"\",\"\",IF(OR('TSA Input'!J1224=\"Yes\",'TSA Input'!J1224=\"Contingent\"),'TSA Input'!G1224,\"\"))","v":""},{"$f":"IF('TSA Input'!J1224=\"\",\"\",IF(OR('TSA Input'!J1224=\"Yes\",'TSA Input'!J1224=\"Contingent\"),'TSA Input'!F1224,\"\"))","v":""},"",{"$f":"IF('TSA Input'!J1224=\"\",\"\",IF(OR('TSA Input'!J1224=\"Yes\",'TSA Input'!J1224=\"Contingent\"),'TSA Input'!D1224,\"\"))","v":""},{"$f":"IF('TSA Input'!J1224=\"\",\"\",IF(OR('TSA Input'!J1224=\"Yes\",'TSA Input'!J1224=\"Contingent\"),'TSA Input'!G1224,\"\"))","v":""},{"$f":"IF('TSA Input'!J1224=\"\",\"\",IF(OR('TSA Input'!J1224=\"Yes\",'TSA Input'!J1224=\"Contingent\"),'TSA Input'!F1224,\"\"))","v":""},"","Required","Required"]
["",null,{"$f":"IF('TSA Input'!J1225=\"\",\"\",IF(OR('TSA Input'!J1225=\"Yes\",'TSA Input'!J1225=\"Contingent\"),'TSA Input'!B1225,\"Ineligible\"))","v":""},{"$f":"IF('TSA Input'!J1225=\"\",\"\",IF(OR('TSA Input'!J1225=\"Yes\",'TSA Input'!J1225=\"Contingent\"),'TSA Input'!I1225,\"\"))","v":""},{"$f":"IF('TSA Input'!J1225=\"\",\"\",IF(OR('TSA Input'!J1225=\"Yes\",'TSA Input'!J1225=\"Contingent\"),'TSA Input'!C1225,\"\"))","v":""},{"$f":"IF('TSA Input'!J1225=\"\",\"\",IF(OR('TSA Input'!J1225=\"Yes\",'TSA Input'!J1225=\"Contingent\"),'TSA Input'!D1225,\"\"))","v":""},{"$f":"IF('TSA Input'!J1225=\"\",\"\",IF(OR('TSA Input'!J1225=\"Yes\",'TSA Input'!J1225=\"Contingent\"),'TSA Input'!G1225,\"\"))","v":""},{"$f":"IF('TSA Input'!J1225=\"\",\"\",IF(OR('TSA Input'!J1225=\"Yes\",'TSA Input'!J1225=\"Contingent\"),'TSA Input'!F1225,\"\"))","v":""},"",{"$f":"IF('TSA Input'!J1225=\"\",\"\",IF(OR('TSA Input'!J1225=\"Yes\",'TSA Input'!J1225=\"Contingent\"),'TSA Input'!D1225,\"\"))","v":""},{"$f":"IF('TSA Input'!J1225=\"\",\"\",IF(OR('TSA Input'!J1225=\"Yes\",'TSA Input'!J1225=\"Contingent\"),'TSA Input'!G1225,\"\"))","v":""},{"$f":"IF('TSA Input'!J1225=\"\",\"\",IF(OR('TSA Input'!J1225=\"Yes\",'TSA Input'!J1225=\"Contingent\"),'TSA Input'!F1225,\"\"))","v":""},"","Required","Required"]
["",null,{"$f":"IF('TSA Input'!J1226=\"\",\"\",IF(OR('TSA Input'!J1226=\"Yes\",'TSA Input'!J1226=\"Contingent\"),'TSA Input'!B1226,\"Ineligible\"))","v":""},{"$f":"IF('TSA Input'!J1226=\"\",\"\",IF(OR('TSA Input'!J1226=\"Yes\",'TSA Input'!J1226=\"Contingent\"),'TSA Input'!I1226,\"\"))","v":""},{"$f":"IF('TSA Input'!J1226=\"\",\"\",IF(OR('TSA Input'!J1226=\"Yes\",'TSA Input'!J1226=\"Contingent\"),'TSA Input'!C1226,\"\"))","v":""},{"$f":"IF('TSA Input'!J1226=\"\",\"\",IF(OR('TSA Input'!J1226=\"Yes\",'TSA Input'!J1226=\"Contingent\"),'TSA Input'!D1226,\"\"))","v":""},{"$f":"IF('TSA Input'!J1226=\"\",\"\",IF(OR('TSA Input'!J1226=\"Yes\",'TSA Input'!J1226=\"Contingent\"),'TSA Input'!G1226,\"\"))","v":""},{"$f":"IF('TSA Input'!J1226=\"\",\"\",IF(OR('TSA Input'!J1226=\"Yes\",'TSA Input'!J1226=\"Contingent\"),'TSA Input'!F1226,\"\"))","v":""},"",{"$f":"IF('TSA Input'!J1226=\"\",\"\",IF(OR('TSA Input'!J1226=\"Yes\",'TSA Input'!J1226=\"Contingent\"),'TSA Input'!D1226,\"\"))","v":""},{"$f":"IF('TSA Input'!J1226=\"\",\"\",IF(OR('TSA Input'!J1226=\"Yes\",'TSA Input'!J1226=\"Contingent\"),'TSA Input'!G1226,\"\"))","v":""},{"$f":"IF('TSA Input'!J1226=\"\",\"\",IF(OR('TSA Input'!J1226=\"Yes\",'TSA Input'!J1226=\"Contingent\"),'TSA Input'!F1226,\"\"))","v":""},"","Required","Required"]
["",null,{"$f":"IF('TSA Input'!J1227=\"\",\"\",IF(OR('TSA Input'!J1227=\"Yes\",'TSA Input'!J1227=\"Contingent\"),'TSA Input'!B1227,\"Ineligible\"))","v":""},{"$f":"IF('TSA Input'!J1227=\"\",\"\",IF(OR('TSA Input'!J1227=\"Yes\",'TSA Input'!J1227=\"Contingent\"),'TSA Input'!I1227,\"\"))","v":""},{"$f":"IF('TSA Input'!J1227=\"\",\"\",IF(OR('TSA Input'!J1227=\"Yes\",'TSA Input'!J1227=\"Contingent\"),'TSA Input'!C1227,\"\"))","v":""},{"$f":"IF('TSA Input'!J1227=\"\",\"\",IF(OR('TSA Input'!J1227=\"Yes\",'TSA Input'!J1227=\"Contingent\"),'TSA Input'!D1227,\"\"))","v":""},{"$f":"IF('TSA Input'!J1227=\"\",\"\",IF(OR('TSA Input'!J1227=\"Yes\",'TSA Input'!J1227=\"Contingent\"),'TSA Input'!G1227,\"\"))","v":""},{"$f":"IF('TSA Input'!J1227=\"\",\"\",IF(OR('TSA Input'!J1227=\"Yes\",'TSA Input'!J1227=\"Contingent\"),'TSA Input'!F1227,\"\"))","v":""},"",{"$f":"IF('TSA Input'!J1227=\"\",\"\",IF(OR('TSA Input'!J1227=\"Yes\",'TSA Input'!J1227=\"Contingent\"),'TSA Input'!D1227,\"\"))","v":""},{"$f":"IF('TSA Input'!J1227=\"\",\"\",IF(OR('TSA Input'!J1227=\"Yes\",'TSA Input'!J1227=\"Contingent\"),'TSA Input'!G1227,\"\"))","v":""},{"$f":"IF('TSA Input'!J1227=\"\",\"\",IF(OR('TSA Input'!J1227=\"Yes\",'TSA Input'!J1227=\"Contingent\"),'TSA Input'!F1227,\"\"))","v":""},"","Required","Required"]
["",null,{"$f":"IF('TSA Input'!J1228=\"\",\"\",IF(OR('TSA Input'!J1228=\"Yes\",'TSA Input'!J1228=\"Contingent\"),'TSA Input'!B1228,\"Ineligible\"))","v":""},{"$f":"IF('TSA Input'!J1228=\"\",\"\",IF(OR('TSA Input'!J1228=\"Yes\",'TSA Input'!J1228=\"Contingent\"),'TSA Input'!I1228,\"\"))","v":""},{"$f":"IF('TSA Input'!J1228=\"\",\"\",IF(OR('TSA Input'!J1228=\"Yes\",'TSA Input'!J1228=\"Contingent\"),'TSA Input'!C1228,\"\"))","v":""},{"$f":"IF('TSA Input'!J1228=\"\",\"\",IF(OR('TSA Input'!J1228=\"Yes\",'TSA Input'!J1228=\"Contingent\"),'TSA Input'!D1228,\"\"))","v":""},{"$f":"IF('TSA Input'!J1228=\"\",\"\",IF(OR('TSA Input'!J1228=\"Yes\",'TSA Input'!J1228=\"Contingent\"),'TSA Input'!G1228,\"\"))","v":""},{"$f":"IF('TSA Input'!J1228=\"\",\"\",IF(OR('TSA Input'!J1228=\"Yes\",'TSA Input'!J1228=\"Contingent\"),'TSA Input'!F1228,\"\"))","v":""},"",{"$f":"IF('TSA Input'!J1228=\"\",\"\",IF(OR('TSA Input'!J1228=\"Yes\",'TSA Input'!J1228=\"Contingent\"),'TSA Input'!D1228,\"\"))","v":""},{"$f":"IF('TSA Input'!J1228=\"\",\"\",IF(OR('TSA Input'!J1228=\"Yes\",'TSA Input'!J1228=\"Contingent\"),'TSA Input'!G1228,\"\"))","v":""},{"$f":"IF('TSA Input'!J1228=\"\",\"\",IF(OR('TSA Input'!J1228=\"Yes\",'TSA Input'!J1228=\"Contingent\"),'TSA Input'!F1228,\"\"))","v":""},"","Required","Required"]
["",null,{"$f":"IF('TSA Input'!J1229=\"\",\"\",IF(OR('TSA Input'!J1229=\"Yes\",'TSA Input'!J1229=\"Contingent\"),'TSA Input'!B1229,\"Ineligible\"))","v":""},{"$f":"IF('TSA Input'!J1229=\"\",\"\",IF(OR('TSA Input'!J1229=\"Yes\",'TSA Input'!J1229=\"Contingent\"),'TSA Input'!I1229,\"\"))","v":""},{"$f":"IF('TSA Input'!J1229=\"\",\"\",IF(OR('TSA Input'!J1229=\"Yes\",'TSA Input'!J1229=\"Contingent\"),'TSA Input'!C1229,\"\"))","v":""},{"$f":"IF('TSA Input'!J1229=\"\",\"\",IF(OR('TSA Input'!J1229=\"Yes\",'TSA Input'!J1229=\"Contingent\"),'TSA Input'!D1229,\"\"))","v":""},{"$f":"IF('TSA Input'!J1229=\"\",\"\",IF(OR('TSA Input'!J1229=\"Yes\",'TSA Input'!J1229=\"Contingent\"),'TSA Input'!G1229,\"\"))","v":""},{"$f":"IF('TSA Input'!J1229=\"\",\"\",IF(OR('TSA Input'!J1229=\"Yes\",'TSA Input'!J1229=\"Contingent\"),'TSA Input'!F1229,\"\"))","v":""},"",{"$f":"IF('TSA Input'!J1229=\"\",\"\",IF(OR('TSA Input'!J1229=\"Yes\",'TSA Input'!J1229=\"Contingent\"),'TSA Input'!D1229,\"\"))","v":""},{"$f":"IF('TSA Input'!J1229=\"\",\"\",IF(OR('TSA Input'!J1229=\"Yes\",'TSA Input'!J1229=\"Contingent\"),'TSA Input'!G1229,\"\"))","v":""},{"$f":"IF('TSA Input'!J1229=\"\",\"\",IF(OR('TSA Input'!J1229=\"Yes\",'TSA Input'!J1229=\"Contingent\"),'TSA Input'!F1229,\"\"))","v":""},"","Required","Required"]
["",null,{"$f":"IF('TSA Input'!J1230=\"\",\"\",IF(OR('TSA Input'!J1230=\"Yes\",'TSA Input'!J1230=\"Contingent\"),'TSA Input'!B1230,\"Ineligible\"))","v":""},{"$f":"IF('TSA Input'!J1230=\"\",\"\",IF(OR('TSA Input'!J1230=\"Yes\",'TSA Input'!J1230=\"Contingent\"),'TSA Input'!I1230,\"\"))","v":""},{"$f":"IF('TSA Input'!J1230=\"\",\"\",IF(OR('TSA Input'!J1230=\"Yes\",'TSA Input'!J1230=\"Contingent\"),'TSA Input'!C1230,\"\"))","v":""},{"$f":"IF('TSA Input'!J1230=\"\",\"\",IF(OR('TSA Input'!J1230=\"Yes\",'TSA Input'!J1230=\"Contingent\"),'TSA Input'!D1230,\"\"))","v":""},{"$f":"IF('TSA Input'!J1230=\"\",\"\",IF(OR('TSA Input'!J1230=\"Yes\",'TSA Input'!J1230=\"Contingent\"),'TSA Input'!G1230,\"\"))","v":""},{"$f":"IF('TSA Input'!J1230=\"\",\"\",IF(OR('TSA Input'!J1230=\"Yes\",'TSA Input'!J1230=\"Contingent\"),'TSA Input'!F1230,\"\"))","v":""},"",{"$f":"IF('TSA Input'!J1230=\"\",\"\",IF(OR('TSA Input'!J1230=\"Yes\",'TSA Input'!J1230=\"Contingent\"),'TSA Input'!D1230,\"\"))","v":""},{"$f":"IF('TSA Input'!J1230=\"\",\"\",IF(OR('TSA Input'!J1230=\"Yes\",'TSA Input'!J1230=\"Contingent\"),'TSA Input'!G1230,\"\"))","v":""},{"$f":"IF('TSA Input'!J1230=\"\",\"\",IF(OR('TSA Input'!J1230=\"Yes\",'TSA Input'!J1230=\"Contingent\"),'TSA Input'!F1230,\"\"))","v":""},"","Required","Required"]
["",null,{"$f":"IF('TSA Input'!J1231=\"\",\"\",IF(OR('TSA Input'!J1231=\"Yes\",'TSA Input'!J1231=\"Contingent\"),'TSA Input'!B1231,\"Ineligible\"))","v":""},{"$f":"IF('TSA Input'!J1231=\"\",\"\",IF(OR('TSA Input'!J1231=\"Yes\",'TSA Input'!J1231=\"Contingent\"),'TSA Input'!I1231,\"\"))","v":""},{"$f":"IF('TSA Input'!J1231=\"\",\"\",IF(OR('TSA Input'!J1231=\"Yes\",'TSA Input'!J1231=\"Contingent\"),'TSA Input'!C1231,\"\"))","v":""},{"$f":"IF('TSA Input'!J1231=\"\",\"\",IF(OR('TSA Input'!J1231=\"Yes\",'TSA Input'!J1231=\"Contingent\"),'TSA Input'!D1231,\"\"))","v":""},{"$f":"IF('TSA Input'!J1231=\"\",\"\",IF(OR('TSA Input'!J1231=\"Yes\",'TSA Input'!J1231=\"Contingent\"),'TSA Input'!G1231,\"\"))","v":""},{"$f":"IF('TSA Input'!J1231=\"\",\"\",IF(OR('TSA Input'!J1231=\"Yes\",'TSA Input'!J1231=\"Contingent\"),'TSA Input'!F1231,\"\"))","v":""},"",{"$f":"IF('TSA Input'!J1231=\"\",\"\",IF(OR('TSA Input'!J1231=\"Yes\",'TSA Input'!J1231=\"Contingent\"),'TSA Input'!D1231,\"\"))","v":""},{"$f":"IF('TSA Input'!J1231=\"\",\"\",IF(OR('TSA Input'!J1231=\"Yes\",'TSA Input'!J1231=\"Contingent\"),'TSA Input'!G1231,\"\"))","v":""},{"$f":"IF('TSA Input'!J1231=\"\",\"\",IF(OR('TSA Input'!J1231=\"Yes\",'TSA Input'!J1231=\"Contingent\"),'TSA Input'!F1231,\"\"))","v":""},"","Required","Required"]
["",null,{"$f":"IF('TSA Input'!J1232=\"\",\"\",IF(OR('TSA Input'!J1232=\"Yes\",'TSA Input'!J1232=\"Contingent\"),'TSA Input'!B1232,\"Ineligible\"))","v":""},{"$f":"IF('TSA Input'!J1232=\"\",\"\",IF(OR('TSA Input'!J1232=\"Yes\",'TSA Input'!J1232=\"Contingent\"),'TSA Input'!I1232,\"\"))","v":""},{"$f":"IF('TSA Input'!J1232=\"\",\"\",IF(OR('TSA Input'!J1232=\"Yes\",'TSA Input'!J1232=\"Contingent\"),'TSA Input'!C1232,\"\"))","v":""},{"$f":"IF('TSA Input'!J1232=\"\",\"\",IF(OR('TSA Input'!J1232=\"Yes\",'TSA Input'!J1232=\"Contingent\"),'TSA Input'!D1232,\"\"))","v":""},{"$f":"IF('TSA Input'!J1232=\"\",\"\",IF(OR('TSA Input'!J1232=\"Yes\",'TSA Input'!J1232=\"Contingent\"),'TSA Input'!G1232,\"\"))","v":""},{"$f":"IF('TSA Input'!J1232=\"\",\"\",IF(OR('TSA Input'!J1232=\"Yes\",'TSA Input'!J1232=\"Contingent\"),'TSA Input'!F1232,\"\"))","v":""},"",{"$f":"IF('TSA Input'!J1232=\"\",\"\",IF(OR('TSA Input'!J1232=\"Yes\",'TSA Input'!J1232=\"Contingent\"),'TSA Input'!D1232,\"\"))","v":""},{"$f":"IF('TSA Input'!J1232=\"\",\"\",IF(OR('TSA Input'!J1232=\"Yes\",'TSA Input'!J1232=\"Contingent\"),'TSA Input'!G1232,\"\"))","v":""},{"$f":"IF('TSA Input'!J1232=\"\",\"\",IF(OR('TSA Input'!J1232=\"Yes\",'TSA Input'!J1232=\"Contingent\"),'TSA Input'!F1232,\"\"))","v":""},"","Required","Required"]
["",null,{"$f":"IF('TSA Input'!J1233=\"\",\"\",IF(OR('TSA Input'!J1233=\"Yes\",'TSA Input'!J1233=\"Contingent\"),'TSA Input'!B1233,\"Ineligible\"))","v":""},{"$f":"IF('TSA Input'!J1233=\"\",\"\",IF(OR('TSA Input'!J1233=\"Yes\",'TSA Input'!J1233=\"Contingent\"),'TSA Input'!I1233,\"\"))","v":""},{"$f":"IF('TSA Input'!J1233=\"\",\"\",IF(OR('TSA Input'!J1233=\"Yes\",'TSA Input'!J1233=\"Contingent\"),'TSA Input'!C1233,\"\"))","v":""},{"$f":"IF('TSA Input'!J1233=\"\",\"\",IF(OR('TSA Input'!J1233=\"Yes\",'TSA Input'!J1233=\"Contingent\"),'TSA Input'!D1233,\"\"))","v":""},{"$f":"IF('TSA Input'!J1233=\"\",\"\",IF(OR('TSA Input'!J1233=\"Yes\",'TSA Input'!J1233=\"Contingent\"),'TSA Input'!G1233,\"\"))","v":""},{"$f":"IF('TSA Input'!J1233=\"\",\"\",IF(OR('TSA Input'!J1233=\"Yes\",'TSA Input'!J1233=\"Contingent\"),'TSA Input'!F1233,\"\"))","v":""},"",{"$f":"IF('TSA Input'!J1233=\"\",\"\",IF(OR('TSA Input'!J1233=\"Yes\",'TSA Input'!J1233=\"Contingent\"),'TSA Input'!D1233,\"\"))","v":""},{"$f":"IF('TSA Input'!J1233=\"\",\"\",IF(OR('TSA Input'!J1233=\"Yes\",'TSA Input'!J1233=\"Contingent\"),'TSA Input'!G1233,\"\"))","v":""},{"$f":"IF('TSA Input'!J1233=\"\",\"\",IF(OR('TSA Input'!J1233=\"Yes\",'TSA Input'!J1233=\"Contingent\"),'TSA Input'!F1233,\"\"))","v":""},"","Required","Required"]
["",null,{"$f":"IF('TSA Input'!J1234=\"\",\"\",IF(OR('TSA Input'!J1234=\"Yes\",'TSA Input'!J1234=\"Contingent\"),'TSA Input'!B1234,\"Ineligible\"))","v":""},{"$f":"IF('TSA Input'!J1234=\"\",\"\",IF(OR('TSA Input'!J1234=\"Yes\",'TSA Input'!J1234=\"Contingent\"),'TSA Input'!I1234,\"\"))","v":""},{"$f":"IF('TSA Input'!J1234=\"\",\"\",IF(OR('TSA Input'!J1234=\"Yes\",'TSA Input'!J1234=\"Contingent\"),'TSA Input'!C1234,\"\"))","v":""},{"$f":"IF('TSA Input'!J1234=\"\",\"\",IF(OR('TSA Input'!J1234=\"Yes\",'TSA Input'!J1234=\"Contingent\"),'TSA Input'!D1234,\"\"))","v":""},{"$f":"IF('TSA Input'!J1234=\"\",\"\",IF(OR('TSA Input'!J1234=\"Yes\",'TSA Input'!J1234=\"Contingent\"),'TSA Input'!G1234,\"\"))","v":""},{"$f":"IF('TSA Input'!J1234=\"\",\"\",IF(OR('TSA Input'!J1234=\"Yes\",'TSA Input'!J1234=\"Contingent\"),'TSA Input'!F1234,\"\"))","v":""},"",{"$f":"IF('TSA Input'!J1234=\"\",\"\",IF(OR('TSA Input'!J1234=\"Yes\",'TSA Input'!J1234=\"Contingent\"),'TSA Input'!D1234,\"\"))","v":""},{"$f":"IF('TSA Input'!J1234=\"\",\"\",IF(OR('TSA Input'!J1234=\"Yes\",'TSA Input'!J1234=\"Contingent\"),'TSA Input'!G1234,\"\"))","v":""},{"$f":"IF('TSA Input'!J1234=\"\",\"\",IF(OR('TSA Input'!J1234=\"Yes\",'TSA Input'!J1234=\"Contingent\"),'TSA Input'!F1234,\"\"))","v":""},"","Required","Required"]
["",null,{"$f":"IF('TSA Input'!J1235=\"\",\"\",IF(OR('TSA Input'!J1235=\"Yes\",'TSA Input'!J1235=\"Contingent\"),'TSA Input'!B1235,\"Ineligible\"))","v":""},{"$f":"IF('TSA Input'!J1235=\"\",\"\",IF(OR('TSA Input'!J1235=\"Yes\",'TSA Input'!J1235=\"Contingent\"),'TSA Input'!I1235,\"\"))","v":""},{"$f":"IF('TSA Input'!J1235=\"\",\"\",IF(OR('TSA Input'!J1235=\"Yes\",'TSA Input'!J1235=\"Contingent\"),'TSA Input'!C1235,\"\"))","v":""},{"$f":"IF('TSA Input'!J1235=\"\",\"\",IF(OR('TSA Input'!J1235=\"Yes\",'TSA Input'!J1235=\"Contingent\"),'TSA Input'!D1235,\"\"))","v":""},{"$f":"IF('TSA Input'!J1235=\"\",\"\",IF(OR('TSA Input'!J1235=\"Yes\",'TSA Input'!J1235=\"Contingent\"),'TSA Input'!G1235,\"\"))","v":""},{"$f":"IF('TSA Input'!J1235=\"\",\"\",IF(OR('TSA Input'!J1235=\"Yes\",'TSA Input'!J1235=\"Contingent\"),'TSA Input'!F1235,\"\"))","v":""},"",{"$f":"IF('TSA Input'!J1235=\"\",\"\",IF(OR('TSA Input'!J1235=\"Yes\",'TSA Input'!J1235=\"Contingent\"),'TSA Input'!D1235,\"\"))","v":""},{"$f":"IF('TSA Input'!J1235=\"\",\"\",IF(OR('TSA Input'!J1235=\"Yes\",'TSA Input'!J1235=\"Contingent\"),'TSA Input'!G1235,\"\"))","v":""},{"$f":"IF('TSA Input'!J1235=\"\",\"\",IF(OR('TSA Input'!J1235=\"Yes\",'TSA Input'!J1235=\"Contingent\"),'TSA Input'!F1235,\"\"))","v":""},"","Required","Required"]
["",null,{"$f":"IF('TSA Input'!J1236=\"\",\"\",IF(OR('TSA Input'!J1236=\"Yes\",'TSA Input'!J1236=\"Contingent\"),'TSA Input'!B1236,\"Ineligible\"))","v":""},{"$f":"IF('TSA Input'!J1236=\"\",\"\",IF(OR('TSA Input'!J1236=\"Yes\",'TSA Input'!J1236=\"Contingent\"),'TSA Input'!I1236,\"\"))","v":""},{"$f":"IF('TSA Input'!J1236=\"\",\"\",IF(OR('TSA Input'!J1236=\"Yes\",'TSA Input'!J1236=\"Contingent\"),'TSA Input'!C1236,\"\"))","v":""},{"$f":"IF('TSA Input'!J1236=\"\",\"\",IF(OR('TSA Input'!J1236=\"Yes\",'TSA Input'!J1236=\"Contingent\"),'TSA Input'!D1236,\"\"))","v":""},{"$f":"IF('TSA Input'!J1236=\"\",\"\",IF(OR('TSA Input'!J1236=\"Yes\",'TSA Input'!J1236=\"Contingent\"),'TSA Input'!G1236,\"\"))","v":""},{"$f":"IF('TSA Input'!J1236=\"\",\"\",IF(OR('TSA Input'!J1236=\"Yes\",'TSA Input'!J1236=\"Contingent\"),'TSA Input'!F1236,\"\"))","v":""},"",{"$f":"IF('TSA Input'!J1236=\"\",\"\",IF(OR('TSA Input'!J1236=\"Yes\",'TSA Input'!J1236=\"Contingent\"),'TSA Input'!D1236,\"\"))","v":""},{"$f":"IF('TSA Input'!J1236=\"\",\"\",IF(OR('TSA Input'!J1236=\"Yes\",'TSA Input'!J1236=\"Contingent\"),'TSA Input'!G1236,\"\"))","v":""},{"$f":"IF('TSA Input'!J1236=\"\",\"\",IF(OR('TSA Input'!J1236=\"Yes\",'TSA Input'!J1236=\"Contingent\"),'TSA Input'!F1236,\"\"))","v":""},"","Required","Required"]
["",null,{"$f":"IF('TSA Input'!J1237=\"\",\"\",IF(OR('TSA Input'!J1237=\"Yes\",'TSA Input'!J1237=\"Contingent\"),'TSA Input'!B1237,\"Ineligible\"))","v":""},{"$f":"IF('TSA Input'!J1237=\"\",\"\",IF(OR('TSA Input'!J1237=\"Yes\",'TSA Input'!J1237=\"Contingent\"),'TSA Input'!I1237,\"\"))","v":""},{"$f":"IF('TSA Input'!J1237=\"\",\"\",IF(OR('TSA Input'!J1237=\"Yes\",'TSA Input'!J1237=\"Contingent\"),'TSA Input'!C1237,\"\"))","v":""},{"$f":"IF('TSA Input'!J1237=\"\",\"\",IF(OR('TSA Input'!J1237=\"Yes\",'TSA Input'!J1237=\"Contingent\"),'TSA Input'!D1237,\"\"))","v":""},{"$f":"IF('TSA Input'!J1237=\"\",\"\",IF(OR('TSA Input'!J1237=\"Yes\",'TSA Input'!J1237=\"Contingent\"),'TSA Input'!G1237,\"\"))","v":""},{"$f":"IF('TSA Input'!J1237=\"\",\"\",IF(OR('TSA Input'!J1237=\"Yes\",'TSA Input'!J1237=\"Contingent\"),'TSA Input'!F1237,\"\"))","v":""},"",{"$f":"IF('TSA Input'!J1237=\"\",\"\",IF(OR('TSA Input'!J1237=\"Yes\",'TSA Input'!J1237=\"Contingent\"),'TSA Input'!D1237,\"\"))","v":""},{"$f":"IF('TSA Input'!J1237=\"\",\"\",IF(OR('TSA Input'!J1237=\"Yes\",'TSA Input'!J1237=\"Contingent\"),'TSA Input'!G1237,\"\"))","v":""},{"$f":"IF('TSA Input'!J1237=\"\",\"\",IF(OR('TSA Input'!J1237=\"Yes\",'TSA Input'!J1237=\"Contingent\"),'TSA Input'!F1237,\"\"))","v":""},"","Required","Required"]
["",null,{"$f":"IF('TSA Input'!J1238=\"\",\"\",IF(OR('TSA Input'!J1238=\"Yes\",'TSA Input'!J1238=\"Contingent\"),'TSA Input'!B1238,\"Ineligible\"))","v":""},{"$f":"IF('TSA Input'!J1238=\"\",\"\",IF(OR('TSA Input'!J1238=\"Yes\",'TSA Input'!J1238=\"Contingent\"),'TSA Input'!I1238,\"\"))","v":""},{"$f":"IF('TSA Input'!J1238=\"\",\"\",IF(OR('TSA Input'!J1238=\"Yes\",'TSA Input'!J1238=\"Contingent\"),'TSA Input'!C1238,\"\"))","v":""},{"$f":"IF('TSA Input'!J1238=\"\",\"\",IF(OR('TSA Input'!J1238=\"Yes\",'TSA Input'!J1238=\"Contingent\"),'TSA Input'!D1238,\"\"))","v":""},{"$f":"IF('TSA Input'!J1238=\"\",\"\",IF(OR('TSA Input'!J1238=\"Yes\",'TSA Input'!J1238=\"Contingent\"),'TSA Input'!G1238,\"\"))","v":""},{"$f":"IF('TSA Input'!J1238=\"\",\"\",IF(OR('TSA Input'!J1238=\"Yes\",'TSA Input'!J1238=\"Contingent\"),'TSA Input'!F1238,\"\"))","v":""},"",{"$f":"IF('TSA Input'!J1238=\"\",\"\",IF(OR('TSA Input'!J1238=\"Yes\",'TSA Input'!J1238=\"Contingent\"),'TSA Input'!D1238,\"\"))","v":""},{"$f":"IF('TSA Input'!J1238=\"\",\"\",IF(OR('TSA Input'!J1238=\"Yes\",'TSA Input'!J1238=\"Contingent\"),'TSA Input'!G1238,\"\"))","v":""},{"$f":"IF('TSA Input'!J1238=\"\",\"\",IF(OR('TSA Input'!J1238=\"Yes\",'TSA Input'!J1238=\"Contingent\"),'TSA Input'!F1238,\"\"))","v":""},"","Required","Required"]
["",null,{"$f":"IF('TSA Input'!J1239=\"\",\"\",IF(OR('TSA Input'!J1239=\"Yes\",'TSA Input'!J1239=\"Contingent\"),'TSA Input'!B1239,\"Ineligible\"))","v":""},{"$f":"IF('TSA Input'!J1239=\"\",\"\",IF(OR('TSA Input'!J1239=\"Yes\",'TSA Input'!J1239=\"Contingent\"),'TSA Input'!I1239,\"\"))","v":""},{"$f":"IF('TSA Input'!J1239=\"\",\"\",IF(OR('TSA Input'!J1239=\"Yes\",'TSA Input'!J1239=\"Contingent\"),'TSA Input'!C1239,\"\"))","v":""},{"$f":"IF('TSA Input'!J1239=\"\",\"\",IF(OR('TSA Input'!J1239=\"Yes\",'TSA Input'!J1239=\"Contingent\"),'TSA Input'!D1239,\"\"))","v":""},{"$f":"IF('TSA Input'!J1239=\"\",\"\",IF(OR('TSA Input'!J1239=\"Yes\",'TSA Input'!J1239=\"Contingent\"),'TSA Input'!G1239,\"\"))","v":""},{"$f":"IF('TSA Input'!J1239=\"\",\"\",IF(OR('TSA Input'!J1239=\"Yes\",'TSA Input'!J1239=\"Contingent\"),'TSA Input'!F1239,\"\"))","v":""},"",{"$f":"IF('TSA Input'!J1239=\"\",\"\",IF(OR('TSA Input'!J1239=\"Yes\",'TSA Input'!J1239=\"Contingent\"),'TSA Input'!D1239,\"\"))","v":""},{"$f":"IF('TSA Input'!J1239=\"\",\"\",IF(OR('TSA Input'!J1239=\"Yes\",'TSA Input'!J1239=\"Contingent\"),'TSA Input'!G1239,\"\"))","v":""},{"$f":"IF('TSA Input'!J1239=\"\",\"\",IF(OR('TSA Input'!J1239=\"Yes\",'TSA Input'!J1239=\"Contingent\"),'TSA Input'!F1239,\"\"))","v":""},"","Required","Required"]
["",null,{"$f":"IF('TSA Input'!J1240=\"\",\"\",IF(OR('TSA Input'!J1240=\"Yes\",'TSA Input'!J1240=\"Contingent\"),'TSA Input'!B1240,\"Ineligible\"))","v":""},{"$f":"IF('TSA Input'!J1240=\"\",\"\",IF(OR('TSA Input'!J1240=\"Yes\",'TSA Input'!J1240=\"Contingent\"),'TSA Input'!I1240,\"\"))","v":""},{"$f":"IF('TSA Input'!J1240=\"\",\"\",IF(OR('TSA Input'!J1240=\"Yes\",'TSA Input'!J1240=\"Contingent\"),'TSA Input'!C1240,\"\"))","v":""},{"$f":"IF('TSA Input'!J1240=\"\",\"\",IF(OR('TSA Input'!J1240=\"Yes\",'TSA Input'!J1240=\"Contingent\"),'TSA Input'!D1240,\"\"))","v":""},{"$f":"IF('TSA Input'!J1240=\"\",\"\",IF(OR('TSA Input'!J1240=\"Yes\",'TSA Input'!J1240=\"Contingent\"),'TSA Input'!G1240,\"\"))","v":""},{"$f":"IF('TSA Input'!J1240=\"\",\"\",IF(OR('TSA Input'!J1240=\"Yes\",'TSA Input'!J1240=\"Contingent\"),'TSA Input'!F1240,\"\"))","v":""},"",{"$f":"IF('TSA Input'!J1240=\"\",\"\",IF(OR('TSA Input'!J1240=\"Yes\",'TSA Input'!J1240=\"Contingent\"),'TSA Input'!D1240,\"\"))","v":""},{"$f":"IF('TSA Input'!J1240=\"\",\"\",IF(OR('TSA Input'!J1240=\"Yes\",'TSA Input'!J1240=\"Contingent\"),'TSA Input'!G1240,\"\"))","v":""},{"$f":"IF('TSA Input'!J1240=\"\",\"\",IF(OR('TSA Input'!J1240=\"Yes\",'TSA Input'!J1240=\"Contingent\"),'TSA Input'!F1240,\"\"))","v":""},"","Required","Required"]
["",null,{"$f":"IF('TSA Input'!J1241=\"\",\"\",IF(OR('TSA Input'!J1241=\"Yes\",'TSA Input'!J1241=\"Contingent\"),'TSA Input'!B1241,\"Ineligible\"))","v":""},{"$f":"IF('TSA Input'!J1241=\"\",\"\",IF(OR('TSA Input'!J1241=\"Yes\",'TSA Input'!J1241=\"Contingent\"),'TSA Input'!I1241,\"\"))","v":""},{"$f":"IF('TSA Input'!J1241=\"\",\"\",IF(OR('TSA Input'!J1241=\"Yes\",'TSA Input'!J1241=\"Contingent\"),'TSA Input'!C1241,\"\"))","v":""},{"$f":"IF('TSA Input'!J1241=\"\",\"\",IF(OR('TSA Input'!J1241=\"Yes\",'TSA Input'!J1241=\"Contingent\"),'TSA Input'!D1241,\"\"))","v":""},{"$f":"IF('TSA Input'!J1241=\"\",\"\",IF(OR('TSA Input'!J1241=\"Yes\",'TSA Input'!J1241=\"Contingent\"),'TSA Input'!G1241,\"\"))","v":""},{"$f":"IF('TSA Input'!J1241=\"\",\"\",IF(OR('TSA Input'!J1241=\"Yes\",'TSA Input'!J1241=\"Contingent\"),'TSA Input'!F1241,\"\"))","v":""},"",{"$f":"IF('TSA Input'!J1241=\"\",\"\",IF(OR('TSA Input'!J1241=\"Yes\",'TSA Input'!J1241=\"Contingent\"),'TSA Input'!D1241,\"\"))","v":""},{"$f":"IF('TSA Input'!J1241=\"\",\"\",IF(OR('TSA Input'!J1241=\"Yes\",'TSA Input'!J1241=\"Contingent\"),'TSA Input'!G1241,\"\"))","v":""},{"$f":"IF('TSA Input'!J1241=\"\",\"\",IF(OR('TSA Input'!J1241=\"Yes\",'TSA Input'!J1241=\"Contingent\"),'TSA Input'!F1241,\"\"))","v":""},"","Required","Required"]
["",null,{"$f":"IF('TSA Input'!J1242=\"\",\"\",IF(OR('TSA Input'!J1242=\"Yes\",'TSA Input'!J1242=\"Contingent\"),'TSA Input'!B1242,\"Ineligible\"))","v":""},{"$f":"IF('TSA Input'!J1242=\"\",\"\",IF(OR('TSA Input'!J1242=\"Yes\",'TSA Input'!J1242=\"Contingent\"),'TSA Input'!I1242,\"\"))","v":""},{"$f":"IF('TSA Input'!J1242=\"\",\"\",IF(OR('TSA Input'!J1242=\"Yes\",'TSA Input'!J1242=\"Contingent\"),'TSA Input'!C1242,\"\"))","v":""},{"$f":"IF('TSA Input'!J1242=\"\",\"\",IF(OR('TSA Input'!J1242=\"Yes\",'TSA Input'!J1242=\"Contingent\"),'TSA Input'!D1242,\"\"))","v":""},{"$f":"IF('TSA Input'!J1242=\"\",\"\",IF(OR('TSA Input'!J1242=\"Yes\",'TSA Input'!J1242=\"Contingent\"),'TSA Input'!G1242,\"\"))","v":""},{"$f":"IF('TSA Input'!J1242=\"\",\"\",IF(OR('TSA Input'!J1242=\"Yes\",'TSA Input'!J1242=\"Contingent\"),'TSA Input'!F1242,\"\"))","v":""},"",{"$f":"IF('TSA Input'!J1242=\"\",\"\",IF(OR('TSA Input'!J1242=\"Yes\",'TSA Input'!J1242=\"Contingent\"),'TSA Input'!D1242,\"\"))","v":""},{"$f":"IF('TSA Input'!J1242=\"\",\"\",IF(OR('TSA Input'!J1242=\"Yes\",'TSA Input'!J1242=\"Contingent\"),'TSA Input'!G1242,\"\"))","v":""},{"$f":"IF('TSA Input'!J1242=\"\",\"\",IF(OR('TSA Input'!J1242=\"Yes\",'TSA Input'!J1242=\"Contingent\"),'TSA Input'!F1242,\"\"))","v":""},"","Required","Required"]
["",null,{"$f":"IF('TSA Input'!J1243=\"\",\"\",IF(OR('TSA Input'!J1243=\"Yes\",'TSA Input'!J1243=\"Contingent\"),'TSA Input'!B1243,\"Ineligible\"))","v":""},{"$f":"IF('TSA Input'!J1243=\"\",\"\",IF(OR('TSA Input'!J1243=\"Yes\",'TSA Input'!J1243=\"Contingent\"),'TSA Input'!I1243,\"\"))","v":""},{"$f":"IF('TSA Input'!J1243=\"\",\"\",IF(OR('TSA Input'!J1243=\"Yes\",'TSA Input'!J1243=\"Contingent\"),'TSA Input'!C1243,\"\"))","v":""},{"$f":"IF('TSA Input'!J1243=\"\",\"\",IF(OR('TSA Input'!J1243=\"Yes\",'TSA Input'!J1243=\"Contingent\"),'TSA Input'!D1243,\"\"))","v":""},{"$f":"IF('TSA Input'!J1243=\"\",\"\",IF(OR('TSA Input'!J1243=\"Yes\",'TSA Input'!J1243=\"Contingent\"),'TSA Input'!G1243,\"\"))","v":""},{"$f":"IF('TSA Input'!J1243=\"\",\"\",IF(OR('TSA Input'!J1243=\"Yes\",'TSA Input'!J1243=\"Contingent\"),'TSA Input'!F1243,\"\"))","v":""},"",{"$f":"IF('TSA Input'!J1243=\"\",\"\",IF(OR('TSA Input'!J1243=\"Yes\",'TSA Input'!J1243=\"Contingent\"),'TSA Input'!D1243,\"\"))","v":""},{"$f":"IF('TSA Input'!J1243=\"\",\"\",IF(OR('TSA Input'!J1243=\"Yes\",'TSA Input'!J1243=\"Contingent\"),'TSA Input'!G1243,\"\"))","v":""},{"$f":"IF('TSA Input'!J1243=\"\",\"\",IF(OR('TSA Input'!J1243=\"Yes\",'TSA Input'!J1243=\"Contingent\"),'TSA Input'!F1243,\"\"))","v":""},"","Required","Required"]
["",null,{"$f":"IF('TSA Input'!J1244=\"\",\"\",IF(OR('TSA Input'!J1244=\"Yes\",'TSA Input'!J1244=\"Contingent\"),'TSA Input'!B1244,\"Ineligible\"))","v":""},{"$f":"IF('TSA Input'!J1244=\"\",\"\",IF(OR('TSA Input'!J1244=\"Yes\",'TSA Input'!J1244=\"Contingent\"),'TSA Input'!I1244,\"\"))","v":""},{"$f":"IF('TSA Input'!J1244=\"\",\"\",IF(OR('TSA Input'!J1244=\"Yes\",'TSA Input'!J1244=\"Contingent\"),'TSA Input'!C1244,\"\"))","v":""},{"$f":"IF('TSA Input'!J1244=\"\",\"\",IF(OR('TSA Input'!J1244=\"Yes\",'TSA Input'!J1244=\"Contingent\"),'TSA Input'!D1244,\"\"))","v":""},{"$f":"IF('TSA Input'!J1244=\"\",\"\",IF(OR('TSA Input'!J1244=\"Yes\",'TSA Input'!J1244=\"Contingent\"),'TSA Input'!G1244,\"\"))","v":""},{"$f":"IF('TSA Input'!J1244=\"\",\"\",IF(OR('TSA Input'!J1244=\"Yes\",'TSA Input'!J1244=\"Contingent\"),'TSA Input'!F1244,\"\"))","v":""},"",{"$f":"IF('TSA Input'!J1244=\"\",\"\",IF(OR('TSA Input'!J1244=\"Yes\",'TSA Input'!J1244=\"Contingent\"),'TSA Input'!D1244,\"\"))","v":""},{"$f":"IF('TSA Input'!J1244=\"\",\"\",IF(OR('TSA Input'!J1244=\"Yes\",'TSA Input'!J1244=\"Contingent\"),'TSA Input'!G1244,\"\"))","v":""},{"$f":"IF('TSA Input'!J1244=\"\",\"\",IF(OR('TSA Input'!J1244=\"Yes\",'TSA Input'!J1244=\"Contingent\"),'TSA Input'!F1244,\"\"))","v":""},"","Required","Required"]
["",null,{"$f":"IF('TSA Input'!J1245=\"\",\"\",IF(OR('TSA Input'!J1245=\"Yes\",'TSA Input'!J1245=\"Contingent\"),'TSA Input'!B1245,\"Ineligible\"))","v":""},{"$f":"IF('TSA Input'!J1245=\"\",\"\",IF(OR('TSA Input'!J1245=\"Yes\",'TSA Input'!J1245=\"Contingent\"),'TSA Input'!I1245,\"\"))","v":""},{"$f":"IF('TSA Input'!J1245=\"\",\"\",IF(OR('TSA Input'!J1245=\"Yes\",'TSA Input'!J1245=\"Contingent\"),'TSA Input'!C1245,\"\"))","v":""},{"$f":"IF('TSA Input'!J1245=\"\",\"\",IF(OR('TSA Input'!J1245=\"Yes\",'TSA Input'!J1245=\"Contingent\"),'TSA Input'!D1245,\"\"))","v":""},{"$f":"IF('TSA Input'!J1245=\"\",\"\",IF(OR('TSA Input'!J1245=\"Yes\",'TSA Input'!J1245=\"Contingent\"),'TSA Input'!G1245,\"\"))","v":""},{"$f":"IF('TSA Input'!J1245=\"\",\"\",IF(OR('TSA Input'!J1245=\"Yes\",'TSA Input'!J1245=\"Contingent\"),'TSA Input'!F1245,\"\"))","v":""},"",{"$f":"IF('TSA Input'!J1245=\"\",\"\",IF(OR('TSA Input'!J1245=\"Yes\",'TSA Input'!J1245=\"Contingent\"),'TSA Input'!D1245,\"\"))","v":""},{"$f":"IF('TSA Input'!J1245=\"\",\"\",IF(OR('TSA Input'!J1245=\"Yes\",'TSA Input'!J1245=\"Contingent\"),'TSA Input'!G1245,\"\"))","v":""},{"$f":"IF('TSA Input'!J1245=\"\",\"\",IF(OR('TSA Input'!J1245=\"Yes\",'TSA Input'!J1245=\"Contingent\"),'TSA Input'!F1245,\"\"))","v":""},"","Required","Required"]
["",null,{"$f":"IF('TSA Input'!J1246=\"\",\"\",IF(OR('TSA Input'!J1246=\"Yes\",'TSA Input'!J1246=\"Contingent\"),'TSA Input'!B1246,\"Ineligible\"))","v":""},{"$f":"IF('TSA Input'!J1246=\"\",\"\",IF(OR('TSA Input'!J1246=\"Yes\",'TSA Input'!J1246=\"Contingent\"),'TSA Input'!I1246,\"\"))","v":""},{"$f":"IF('TSA Input'!J1246=\"\",\"\",IF(OR('TSA Input'!J1246=\"Yes\",'TSA Input'!J1246=\"Contingent\"),'TSA Input'!C1246,\"\"))","v":""},{"$f":"IF('TSA Input'!J1246=\"\",\"\",IF(OR('TSA Input'!J1246=\"Yes\",'TSA Input'!J1246=\"Contingent\"),'TSA Input'!D1246,\"\"))","v":""},{"$f":"IF('TSA Input'!J1246=\"\",\"\",IF(OR('TSA Input'!J1246=\"Yes\",'TSA Input'!J1246=\"Contingent\"),'TSA Input'!G1246,\"\"))","v":""},{"$f":"IF('TSA Input'!J1246=\"\",\"\",IF(OR('TSA Input'!J1246=\"Yes\",'TSA Input'!J1246=\"Contingent\"),'TSA Input'!F1246,\"\"))","v":""},"",{"$f":"IF('TSA Input'!J1246=\"\",\"\",IF(OR('TSA Input'!J1246=\"Yes\",'TSA Input'!J1246=\"Contingent\"),'TSA Input'!D1246,\"\"))","v":""},{"$f":"IF('TSA Input'!J1246=\"\",\"\",IF(OR('TSA Input'!J1246=\"Yes\",'TSA Input'!J1246=\"Contingent\"),'TSA Input'!G1246,\"\"))","v":""},{"$f":"IF('TSA Input'!J1246=\"\",\"\",IF(OR('TSA Input'!J1246=\"Yes\",'TSA Input'!J1246=\"Contingent\"),'TSA Input'!F1246,\"\"))","v":""},"","Required","Required"]
["",null,{"$f":"IF('TSA Input'!J1247=\"\",\"\",IF(OR('TSA Input'!J1247=\"Yes\",'TSA Input'!J1247=\"Contingent\"),'TSA Input'!B1247,\"Ineligible\"))","v":""},{"$f":"IF('TSA Input'!J1247=\"\",\"\",IF(OR('TSA Input'!J1247=\"Yes\",'TSA Input'!J1247=\"Contingent\"),'TSA Input'!I1247,\"\"))","v":""},{"$f":"IF('TSA Input'!J1247=\"\",\"\",IF(OR('TSA Input'!J1247=\"Yes\",'TSA Input'!J1247=\"Contingent\"),'TSA Input'!C1247,\"\"))","v":""},{"$f":"IF('TSA Input'!J1247=\"\",\"\",IF(OR('TSA Input'!J1247=\"Yes\",'TSA Input'!J1247=\"Contingent\"),'TSA Input'!D1247,\"\"))","v":""},{"$f":"IF('TSA Input'!J1247=\"\",\"\",IF(OR('TSA Input'!J1247=\"Yes\",'TSA Input'!J1247=\"Contingent\"),'TSA Input'!G1247,\"\"))","v":""},{"$f":"IF('TSA Input'!J1247=\"\",\"\",IF(OR('TSA Input'!J1247=\"Yes\",'TSA Input'!J1247=\"Contingent\"),'TSA Input'!F1247,\"\"))","v":""},"",{"$f":"IF('TSA Input'!J1247=\"\",\"\",IF(OR('TSA Input'!J1247=\"Yes\",'TSA Input'!J1247=\"Contingent\"),'TSA Input'!D1247,\"\"))","v":""},{"$f":"IF('TSA Input'!J1247=\"\",\"\",IF(OR('TSA Input'!J1247=\"Yes\",'TSA Input'!J1247=\"Contingent\"),'TSA Input'!G1247,\"\"))","v":""},{"$f":"IF('TSA Input'!J1247=\"\",\"\",IF(OR('TSA Input'!J1247=\"Yes\",'TSA Input'!J1247=\"Contingent\"),'TSA Input'!F1247,\"\"))","v":""},"","Required","Required"]
["",null,{"$f":"IF('TSA Input'!J1248=\"\",\"\",IF(OR('TSA Input'!J1248=\"Yes\",'TSA Input'!J1248=\"Contingent\"),'TSA Input'!B1248,\"Ineligible\"))","v":""},{"$f":"IF('TSA Input'!J1248=\"\",\"\",IF(OR('TSA Input'!J1248=\"Yes\",'TSA Input'!J1248=\"Contingent\"),'TSA Input'!I1248,\"\"))","v":""},{"$f":"IF('TSA Input'!J1248=\"\",\"\",IF(OR('TSA Input'!J1248=\"Yes\",'TSA Input'!J1248=\"Contingent\"),'TSA Input'!C1248,\"\"))","v":""},{"$f":"IF('TSA Input'!J1248=\"\",\"\",IF(OR('TSA Input'!J1248=\"Yes\",'TSA Input'!J1248=\"Contingent\"),'TSA Input'!D1248,\"\"))","v":""},{"$f":"IF('TSA Input'!J1248=\"\",\"\",IF(OR('TSA Input'!J1248=\"Yes\",'TSA Input'!J1248=\"Contingent\"),'TSA Input'!G1248,\"\"))","v":""},{"$f":"IF('TSA Input'!J1248=\"\",\"\",IF(OR('TSA Input'!J1248=\"Yes\",'TSA Input'!J1248=\"Contingent\"),'TSA Input'!F1248,\"\"))","v":""},"",{"$f":"IF('TSA Input'!J1248=\"\",\"\",IF(OR('TSA Input'!J1248=\"Yes\",'TSA Input'!J1248=\"Contingent\"),'TSA Input'!D1248,\"\"))","v":""},{"$f":"IF('TSA Input'!J1248=\"\",\"\",IF(OR('TSA Input'!J1248=\"Yes\",'TSA Input'!J1248=\"Contingent\"),'TSA Input'!G1248,\"\"))","v":""},{"$f":"IF('TSA Input'!J1248=\"\",\"\",IF(OR('TSA Input'!J1248=\"Yes\",'TSA Input'!J1248=\"Contingent\"),'TSA Input'!F1248,\"\"))","v":""},"","Required","Required"]
["",null,{"$f":"IF('TSA Input'!J1249=\"\",\"\",IF(OR('TSA Input'!J1249=\"Yes\",'TSA Input'!J1249=\"Contingent\"),'TSA Input'!B1249,\"Ineligible\"))","v":""},{"$f":"IF('TSA Input'!J1249=\"\",\"\",IF(OR('TSA Input'!J1249=\"Yes\",'TSA Input'!J1249=\"Contingent\"),'TSA Input'!I1249,\"\"))","v":""},{"$f":"IF('TSA Input'!J1249=\"\",\"\",IF(OR('TSA Input'!J1249=\"Yes\",'TSA Input'!J1249=\"Contingent\"),'TSA Input'!C1249,\"\"))","v":""},{"$f":"IF('TSA Input'!J1249=\"\",\"\",IF(OR('TSA Input'!J1249=\"Yes\",'TSA Input'!J1249=\"Contingent\"),'TSA Input'!D1249,\"\"))","v":""},{"$f":"IF('TSA Input'!J1249=\"\",\"\",IF(OR('TSA Input'!J1249=\"Yes\",'TSA Input'!J1249=\"Contingent\"),'TSA Input'!G1249,\"\"))","v":""},{"$f":"IF('TSA Input'!J1249=\"\",\"\",IF(OR('TSA Input'!J1249=\"Yes\",'TSA Input'!J1249=\"Contingent\"),'TSA Input'!F1249,\"\"))","v":""},"",{"$f":"IF('TSA Input'!J1249=\"\",\"\",IF(OR('TSA Input'!J1249=\"Yes\",'TSA Input'!J1249=\"Contingent\"),'TSA Input'!D1249,\"\"))","v":""},{"$f":"IF('TSA Input'!J1249=\"\",\"\",IF(OR('TSA Input'!J1249=\"Yes\",'TSA Input'!J1249=\"Contingent\"),'TSA Input'!G1249,\"\"))","v":""},{"$f":"IF('TSA Input'!J1249=\"\",\"\",IF(OR('TSA Input'!J1249=\"Yes\",'TSA Input'!J1249=\"Contingent\"),'TSA Input'!F1249,\"\"))","v":""},"","Required","Required"]
["",null,{"$f":"IF('TSA Input'!J1250=\"\",\"\",IF(OR('TSA Input'!J1250=\"Yes\",'TSA Input'!J1250=\"Contingent\"),'TSA Input'!B1250,\"Ineligible\"))","v":""},{"$f":"IF('TSA Input'!J1250=\"\",\"\",IF(OR('TSA Input'!J1250=\"Yes\",'TSA Input'!J1250=\"Contingent\"),'TSA Input'!I1250,\"\"))","v":""},{"$f":"IF('TSA Input'!J1250=\"\",\"\",IF(OR('TSA Input'!J1250=\"Yes\",'TSA Input'!J1250=\"Contingent\"),'TSA Input'!C1250,\"\"))","v":""},{"$f":"IF('TSA Input'!J1250=\"\",\"\",IF(OR('TSA Input'!J1250=\"Yes\",'TSA Input'!J1250=\"Contingent\"),'TSA Input'!D1250,\"\"))","v":""},{"$f":"IF('TSA Input'!J1250=\"\",\"\",IF(OR('TSA Input'!J1250=\"Yes\",'TSA Input'!J1250=\"Contingent\"),'TSA Input'!G1250,\"\"))","v":""},{"$f":"IF('TSA Input'!J1250=\"\",\"\",IF(OR('TSA Input'!J1250=\"Yes\",'TSA Input'!J1250=\"Contingent\"),'TSA Input'!F1250,\"\"))","v":""},"",{"$f":"IF('TSA Input'!J1250=\"\",\"\",IF(OR('TSA Input'!J1250=\"Yes\",'TSA Input'!J1250=\"Contingent\"),'TSA Input'!D1250,\"\"))","v":""},{"$f":"IF('TSA Input'!J1250=\"\",\"\",IF(OR('TSA Input'!J1250=\"Yes\",'TSA Input'!J1250=\"Contingent\"),'TSA Input'!G1250,\"\"))","v":""},{"$f":"IF('TSA Input'!J1250=\"\",\"\",IF(OR('TSA Input'!J1250=\"Yes\",'TSA Input'!J1250=\"Contingent\"),'TSA Input'!F1250,\"\"))","v":""},"","Required","Required"]
["",null,{"$f":"IF('TSA Input'!J1251=\"\",\"\",IF(OR('TSA Input'!J1251=\"Yes\",'TSA Input'!J1251=\"Contingent\"),'TSA Input'!B1251,\"Ineligible\"))","v":""},{"$f":"IF('TSA Input'!J1251=\"\",\"\",IF(OR('TSA Input'!J1251=\"Yes\",'TSA Input'!J1251=\"Contingent\"),'TSA Input'!I1251,\"\"))","v":""},{"$f":"IF('TSA Input'!J1251=\"\",\"\",IF(OR('TSA Input'!J1251=\"Yes\",'TSA Input'!J1251=\"Contingent\"),'TSA Input'!C1251,\"\"))","v":""},{"$f":"IF('TSA Input'!J1251=\"\",\"\",IF(OR('TSA Input'!J1251=\"Yes\",'TSA Input'!J1251=\"Contingent\"),'TSA Input'!D1251,\"\"))","v":""},{"$f":"IF('TSA Input'!J1251=\"\",\"\",IF(OR('TSA Input'!J1251=\"Yes\",'TSA Input'!J1251=\"Contingent\"),'TSA Input'!G1251,\"\"))","v":""},{"$f":"IF('TSA Input'!J1251=\"\",\"\",IF(OR('TSA Input'!J1251=\"Yes\",'TSA Input'!J1251=\"Contingent\"),'TSA Input'!F1251,\"\"))","v":""},"",{"$f":"IF('TSA Input'!J1251=\"\",\"\",IF(OR('TSA Input'!J1251=\"Yes\",'TSA Input'!J1251=\"Contingent\"),'TSA Input'!D1251,\"\"))","v":""},{"$f":"IF('TSA Input'!J1251=\"\",\"\",IF(OR('TSA Input'!J1251=\"Yes\",'TSA Input'!J1251=\"Contingent\"),'TSA Input'!G1251,\"\"))","v":""},{"$f":"IF('TSA Input'!J1251=\"\",\"\",IF(OR('TSA Input'!J1251=\"Yes\",'TSA Input'!J1251=\"Contingent\"),'TSA Input'!F1251,\"\"))","v":""},"","Required","Required"]
["",null,{"$f":"IF('TSA Input'!J1252=\"\",\"\",IF(OR('TSA Input'!J1252=\"Yes\",'TSA Input'!J1252=\"Contingent\"),'TSA Input'!B1252,\"Ineligible\"))","v":""},{"$f":"IF('TSA Input'!J1252=\"\",\"\",IF(OR('TSA Input'!J1252=\"Yes\",'TSA Input'!J1252=\"Contingent\"),'TSA Input'!I1252,\"\"))","v":""},{"$f":"IF('TSA Input'!J1252=\"\",\"\",IF(OR('TSA Input'!J1252=\"Yes\",'TSA Input'!J1252=\"Contingent\"),'TSA Input'!C1252,\"\"))","v":""},{"$f":"IF('TSA Input'!J1252=\"\",\"\",IF(OR('TSA Input'!J1252=\"Yes\",'TSA Input'!J1252=\"Contingent\"),'TSA Input'!D1252,\"\"))","v":""},{"$f":"IF('TSA Input'!J1252=\"\",\"\",IF(OR('TSA Input'!J1252=\"Yes\",'TSA Input'!J1252=\"Contingent\"),'TSA Input'!G1252,\"\"))","v":""},{"$f":"IF('TSA Input'!J1252=\"\",\"\",IF(OR('TSA Input'!J1252=\"Yes\",'TSA Input'!J1252=\"Contingent\"),'TSA Input'!F1252,\"\"))","v":""},"",{"$f":"IF('TSA Input'!J1252=\"\",\"\",IF(OR('TSA Input'!J1252=\"Yes\",'TSA Input'!J1252=\"Contingent\"),'TSA Input'!D1252,\"\"))","v":""},{"$f":"IF('TSA Input'!J1252=\"\",\"\",IF(OR('TSA Input'!J1252=\"Yes\",'TSA Input'!J1252=\"Contingent\"),'TSA Input'!G1252,\"\"))","v":""},{"$f":"IF('TSA Input'!J1252=\"\",\"\",IF(OR('TSA Input'!J1252=\"Yes\",'TSA Input'!J1252=\"Contingent\"),'TSA Input'!F1252,\"\"))","v":""},"","Required","Required"]
["",null,{"$f":"IF('TSA Input'!J1253=\"\",\"\",IF(OR('TSA Input'!J1253=\"Yes\",'TSA Input'!J1253=\"Contingent\"),'TSA Input'!B1253,\"Ineligible\"))","v":""},{"$f":"IF('TSA Input'!J1253=\"\",\"\",IF(OR('TSA Input'!J1253=\"Yes\",'TSA Input'!J1253=\"Contingent\"),'TSA Input'!I1253,\"\"))","v":""},{"$f":"IF('TSA Input'!J1253=\"\",\"\",IF(OR('TSA Input'!J1253=\"Yes\",'TSA Input'!J1253=\"Contingent\"),'TSA Input'!C1253,\"\"))","v":""},{"$f":"IF('TSA Input'!J1253=\"\",\"\",IF(OR('TSA Input'!J1253=\"Yes\",'TSA Input'!J1253=\"Contingent\"),'TSA Input'!D1253,\"\"))","v":""},{"$f":"IF('TSA Input'!J1253=\"\",\"\",IF(OR('TSA Input'!J1253=\"Yes\",'TSA Input'!J1253=\"Contingent\"),'TSA Input'!G1253,\"\"))","v":""},{"$f":"IF('TSA Input'!J1253=\"\",\"\",IF(OR('TSA Input'!J1253=\"Yes\",'TSA Input'!J1253=\"Contingent\"),'TSA Input'!F1253,\"\"))","v":""},"",{"$f":"IF('TSA Input'!J1253=\"\",\"\",IF(OR('TSA Input'!J1253=\"Yes\",'TSA Input'!J1253=\"Contingent\"),'TSA Input'!D1253,\"\"))","v":""},{"$f":"IF('TSA Input'!J1253=\"\",\"\",IF(OR('TSA Input'!J1253=\"Yes\",'TSA Input'!J1253=\"Contingent\"),'TSA Input'!G1253,\"\"))","v":""},{"$f":"IF('TSA Input'!J1253=\"\",\"\",IF(OR('TSA Input'!J1253=\"Yes\",'TSA Input'!J1253=\"Contingent\"),'TSA Input'!F1253,\"\"))","v":""},"","Required","Required"]
["",null,{"$f":"IF('TSA Input'!J1254=\"\",\"\",IF(OR('TSA Input'!J1254=\"Yes\",'TSA Input'!J1254=\"Contingent\"),'TSA Input'!B1254,\"Ineligible\"))","v":""},{"$f":"IF('TSA Input'!J1254=\"\",\"\",IF(OR('TSA Input'!J1254=\"Yes\",'TSA Input'!J1254=\"Contingent\"),'TSA Input'!I1254,\"\"))","v":""},{"$f":"IF('TSA Input'!J1254=\"\",\"\",IF(OR('TSA Input'!J1254=\"Yes\",'TSA Input'!J1254=\"Contingent\"),'TSA Input'!C1254,\"\"))","v":""},{"$f":"IF('TSA Input'!J1254=\"\",\"\",IF(OR('TSA Input'!J1254=\"Yes\",'TSA Input'!J1254=\"Contingent\"),'TSA Input'!D1254,\"\"))","v":""},{"$f":"IF('TSA Input'!J1254=\"\",\"\",IF(OR('TSA Input'!J1254=\"Yes\",'TSA Input'!J1254=\"Contingent\"),'TSA Input'!G1254,\"\"))","v":""},{"$f":"IF('TSA Input'!J1254=\"\",\"\",IF(OR('TSA Input'!J1254=\"Yes\",'TSA Input'!J1254=\"Contingent\"),'TSA Input'!F1254,\"\"))","v":""},"",{"$f":"IF('TSA Input'!J1254=\"\",\"\",IF(OR('TSA Input'!J1254=\"Yes\",'TSA Input'!J1254=\"Contingent\"),'TSA Input'!D1254,\"\"))","v":""},{"$f":"IF('TSA Input'!J1254=\"\",\"\",IF(OR('TSA Input'!J1254=\"Yes\",'TSA Input'!J1254=\"Contingent\"),'TSA Input'!G1254,\"\"))","v":""},{"$f":"IF('TSA Input'!J1254=\"\",\"\",IF(OR('TSA Input'!J1254=\"Yes\",'TSA Input'!J1254=\"Contingent\"),'TSA Input'!F1254,\"\"))","v":""},"","Required","Required"]
["",null,{"$f":"IF('TSA Input'!J1255=\"\",\"\",IF(OR('TSA Input'!J1255=\"Yes\",'TSA Input'!J1255=\"Contingent\"),'TSA Input'!B1255,\"Ineligible\"))","v":""},{"$f":"IF('TSA Input'!J1255=\"\",\"\",IF(OR('TSA Input'!J1255=\"Yes\",'TSA Input'!J1255=\"Contingent\"),'TSA Input'!I1255,\"\"))","v":""},{"$f":"IF('TSA Input'!J1255=\"\",\"\",IF(OR('TSA Input'!J1255=\"Yes\",'TSA Input'!J1255=\"Contingent\"),'TSA Input'!C1255,\"\"))","v":""},{"$f":"IF('TSA Input'!J1255=\"\",\"\",IF(OR('TSA Input'!J1255=\"Yes\",'TSA Input'!J1255=\"Contingent\"),'TSA Input'!D1255,\"\"))","v":""},{"$f":"IF('TSA Input'!J1255=\"\",\"\",IF(OR('TSA Input'!J1255=\"Yes\",'TSA Input'!J1255=\"Contingent\"),'TSA Input'!G1255,\"\"))","v":""},{"$f":"IF('TSA Input'!J1255=\"\",\"\",IF(OR('TSA Input'!J1255=\"Yes\",'TSA Input'!J1255=\"Contingent\"),'TSA Input'!F1255,\"\"))","v":""},"",{"$f":"IF('TSA Input'!J1255=\"\",\"\",IF(OR('TSA Input'!J1255=\"Yes\",'TSA Input'!J1255=\"Contingent\"),'TSA Input'!D1255,\"\"))","v":""},{"$f":"IF('TSA Input'!J1255=\"\",\"\",IF(OR('TSA Input'!J1255=\"Yes\",'TSA Input'!J1255=\"Contingent\"),'TSA Input'!G1255,\"\"))","v":""},{"$f":"IF('TSA Input'!J1255=\"\",\"\",IF(OR('TSA Input'!J1255=\"Yes\",'TSA Input'!J1255=\"Contingent\"),'TSA Input'!F1255,\"\"))","v":""},"","Required","Required"]
["",null,{"$f":"IF('TSA Input'!J1256=\"\",\"\",IF(OR('TSA Input'!J1256=\"Yes\",'TSA Input'!J1256=\"Contingent\"),'TSA Input'!B1256,\"Ineligible\"))","v":""},{"$f":"IF('TSA Input'!J1256=\"\",\"\",IF(OR('TSA Input'!J1256=\"Yes\",'TSA Input'!J1256=\"Contingent\"),'TSA Input'!I1256,\"\"))","v":""},{"$f":"IF('TSA Input'!J1256=\"\",\"\",IF(OR('TSA Input'!J1256=\"Yes\",'TSA Input'!J1256=\"Contingent\"),'TSA Input'!C1256,\"\"))","v":""},{"$f":"IF('TSA Input'!J1256=\"\",\"\",IF(OR('TSA Input'!J1256=\"Yes\",'TSA Input'!J1256=\"Contingent\"),'TSA Input'!D1256,\"\"))","v":""},{"$f":"IF('TSA Input'!J1256=\"\",\"\",IF(OR('TSA Input'!J1256=\"Yes\",'TSA Input'!J1256=\"Contingent\"),'TSA Input'!G1256,\"\"))","v":""},{"$f":"IF('TSA Input'!J1256=\"\",\"\",IF(OR('TSA Input'!J1256=\"Yes\",'TSA Input'!J1256=\"Contingent\"),'TSA Input'!F1256,\"\"))","v":""},"",{"$f":"IF('TSA Input'!J1256=\"\",\"\",IF(OR('TSA Input'!J1256=\"Yes\",'TSA Input'!J1256=\"Contingent\"),'TSA Input'!D1256,\"\"))","v":""},{"$f":"IF('TSA Input'!J1256=\"\",\"\",IF(OR('TSA Input'!J1256=\"Yes\",'TSA Input'!J1256=\"Contingent\"),'TSA Input'!G1256,\"\"))","v":""},{"$f":"IF('TSA Input'!J1256=\"\",\"\",IF(OR('TSA Input'!J1256=\"Yes\",'TSA Input'!J1256=\"Contingent\"),'TSA Input'!F1256,\"\"))","v":""},"","Required","Required"]
["",null,{"$f":"IF('TSA Input'!J1257=\"\",\"\",IF(OR('TSA Input'!J1257=\"Yes\",'TSA Input'!J1257=\"Contingent\"),'TSA Input'!B1257,\"Ineligible\"))","v":""},{"$f":"IF('TSA Input'!J1257=\"\",\"\",IF(OR('TSA Input'!J1257=\"Yes\",'TSA Input'!J1257=\"Contingent\"),'TSA Input'!I1257,\"\"))","v":""},{"$f":"IF('TSA Input'!J1257=\"\",\"\",IF(OR('TSA Input'!J1257=\"Yes\",'TSA Input'!J1257=\"Contingent\"),'TSA Input'!C1257,\"\"))","v":""},{"$f":"IF('TSA Input'!J1257=\"\",\"\",IF(OR('TSA Input'!J1257=\"Yes\",'TSA Input'!J1257=\"Contingent\"),'TSA Input'!D1257,\"\"))","v":""},{"$f":"IF('TSA Input'!J1257=\"\",\"\",IF(OR('TSA Input'!J1257=\"Yes\",'TSA Input'!J1257=\"Contingent\"),'TSA Input'!G1257,\"\"))","v":""},{"$f":"IF('TSA Input'!J1257=\"\",\"\",IF(OR('TSA Input'!J1257=\"Yes\",'TSA Input'!J1257=\"Contingent\"),'TSA Input'!F1257,\"\"))","v":""},"",{"$f":"IF('TSA Input'!J1257=\"\",\"\",IF(OR('TSA Input'!J1257=\"Yes\",'TSA Input'!J1257=\"Contingent\"),'TSA Input'!D1257,\"\"))","v":""},{"$f":"IF('TSA Input'!J1257=\"\",\"\",IF(OR('TSA Input'!J1257=\"Yes\",'TSA Input'!J1257=\"Contingent\"),'TSA Input'!G1257,\"\"))","v":""},{"$f":"IF('TSA Input'!J1257=\"\",\"\",IF(OR('TSA Input'!J1257=\"Yes\",'TSA Input'!J1257=\"Contingent\"),'TSA Input'!F1257,\"\"))","v":""},"","Required","Required"]
["",null,{"$f":"IF('TSA Input'!J1258=\"\",\"\",IF(OR('TSA Input'!J1258=\"Yes\",'TSA Input'!J1258=\"Contingent\"),'TSA Input'!B1258,\"Ineligible\"))","v":""},{"$f":"IF('TSA Input'!J1258=\"\",\"\",IF(OR('TSA Input'!J1258=\"Yes\",'TSA Input'!J1258=\"Contingent\"),'TSA Input'!I1258,\"\"))","v":""},{"$f":"IF('TSA Input'!J1258=\"\",\"\",IF(OR('TSA Input'!J1258=\"Yes\",'TSA Input'!J1258=\"Contingent\"),'TSA Input'!C1258,\"\"))","v":""},{"$f":"IF('TSA Input'!J1258=\"\",\"\",IF(OR('TSA Input'!J1258=\"Yes\",'TSA Input'!J1258=\"Contingent\"),'TSA Input'!D1258,\"\"))","v":""},{"$f":"IF('TSA Input'!J1258=\"\",\"\",IF(OR('TSA Input'!J1258=\"Yes\",'TSA Input'!J1258=\"Contingent\"),'TSA Input'!G1258,\"\"))","v":""},{"$f":"IF('TSA Input'!J1258=\"\",\"\",IF(OR('TSA Input'!J1258=\"Yes\",'TSA Input'!J1258=\"Contingent\"),'TSA Input'!F1258,\"\"))","v":""},"",{"$f":"IF('TSA Input'!J1258=\"\",\"\",IF(OR('TSA Input'!J1258=\"Yes\",'TSA Input'!J1258=\"Contingent\"),'TSA Input'!D1258,\"\"))","v":""},{"$f":"IF('TSA Input'!J1258=\"\",\"\",IF(OR('TSA Input'!J1258=\"Yes\",'TSA Input'!J1258=\"Contingent\"),'TSA Input'!G1258,\"\"))","v":""},{"$f":"IF('TSA Input'!J1258=\"\",\"\",IF(OR('TSA Input'!J1258=\"Yes\",'TSA Input'!J1258=\"Contingent\"),'TSA Input'!F1258,\"\"))","v":""},"","Required","Required"]
["",null,{"$f":"IF('TSA Input'!J1259=\"\",\"\",IF(OR('TSA Input'!J1259=\"Yes\",'TSA Input'!J1259=\"Contingent\"),'TSA Input'!B1259,\"Ineligible\"))","v":""},{"$f":"IF('TSA Input'!J1259=\"\",\"\",IF(OR('TSA Input'!J1259=\"Yes\",'TSA Input'!J1259=\"Contingent\"),'TSA Input'!I1259,\"\"))","v":""},{"$f":"IF('TSA Input'!J1259=\"\",\"\",IF(OR('TSA Input'!J1259=\"Yes\",'TSA Input'!J1259=\"Contingent\"),'TSA Input'!C1259,\"\"))","v":""},{"$f":"IF('TSA Input'!J1259=\"\",\"\",IF(OR('TSA Input'!J1259=\"Yes\",'TSA Input'!J1259=\"Contingent\"),'TSA Input'!D1259,\"\"))","v":""},{"$f":"IF('TSA Input'!J1259=\"\",\"\",IF(OR('TSA Input'!J1259=\"Yes\",'TSA Input'!J1259=\"Contingent\"),'TSA Input'!G1259,\"\"))","v":""},{"$f":"IF('TSA Input'!J1259=\"\",\"\",IF(OR('TSA Input'!J1259=\"Yes\",'TSA Input'!J1259=\"Contingent\"),'TSA Input'!F1259,\"\"))","v":""},"",{"$f":"IF('TSA Input'!J1259=\"\",\"\",IF(OR('TSA Input'!J1259=\"Yes\",'TSA Input'!J1259=\"Contingent\"),'TSA Input'!D1259,\"\"))","v":""},{"$f":"IF('TSA Input'!J1259=\"\",\"\",IF(OR('TSA Input'!J1259=\"Yes\",'TSA Input'!J1259=\"Contingent\"),'TSA Input'!G1259,\"\"))","v":""},{"$f":"IF('TSA Input'!J1259=\"\",\"\",IF(OR('TSA Input'!J1259=\"Yes\",'TSA Input'!J1259=\"Contingent\"),'TSA Input'!F1259,\"\"))","v":""},"","Required","Required"]
["",null,{"$f":"IF('TSA Input'!J1260=\"\",\"\",IF(OR('TSA Input'!J1260=\"Yes\",'TSA Input'!J1260=\"Contingent\"),'TSA Input'!B1260,\"Ineligible\"))","v":""},{"$f":"IF('TSA Input'!J1260=\"\",\"\",IF(OR('TSA Input'!J1260=\"Yes\",'TSA Input'!J1260=\"Contingent\"),'TSA Input'!I1260,\"\"))","v":""},{"$f":"IF('TSA Input'!J1260=\"\",\"\",IF(OR('TSA Input'!J1260=\"Yes\",'TSA Input'!J1260=\"Contingent\"),'TSA Input'!C1260,\"\"))","v":""},{"$f":"IF('TSA Input'!J1260=\"\",\"\",IF(OR('TSA Input'!J1260=\"Yes\",'TSA Input'!J1260=\"Contingent\"),'TSA Input'!D1260,\"\"))","v":""},{"$f":"IF('TSA Input'!J1260=\"\",\"\",IF(OR('TSA Input'!J1260=\"Yes\",'TSA Input'!J1260=\"Contingent\"),'TSA Input'!G1260,\"\"))","v":""},{"$f":"IF('TSA Input'!J1260=\"\",\"\",IF(OR('TSA Input'!J1260=\"Yes\",'TSA Input'!J1260=\"Contingent\"),'TSA Input'!F1260,\"\"))","v":""},"",{"$f":"IF('TSA Input'!J1260=\"\",\"\",IF(OR('TSA Input'!J1260=\"Yes\",'TSA Input'!J1260=\"Contingent\"),'TSA Input'!D1260,\"\"))","v":""},{"$f":"IF('TSA Input'!J1260=\"\",\"\",IF(OR('TSA Input'!J1260=\"Yes\",'TSA Input'!J1260=\"Contingent\"),'TSA Input'!G1260,\"\"))","v":""},{"$f":"IF('TSA Input'!J1260=\"\",\"\",IF(OR('TSA Input'!J1260=\"Yes\",'TSA Input'!J1260=\"Contingent\"),'TSA Input'!F1260,\"\"))","v":""},"","Required","Required"]
["",null,{"$f":"IF('TSA Input'!J1261=\"\",\"\",IF(OR('TSA Input'!J1261=\"Yes\",'TSA Input'!J1261=\"Contingent\"),'TSA Input'!B1261,\"Ineligible\"))","v":""},{"$f":"IF('TSA Input'!J1261=\"\",\"\",IF(OR('TSA Input'!J1261=\"Yes\",'TSA Input'!J1261=\"Contingent\"),'TSA Input'!I1261,\"\"))","v":""},{"$f":"IF('TSA Input'!J1261=\"\",\"\",IF(OR('TSA Input'!J1261=\"Yes\",'TSA Input'!J1261=\"Contingent\"),'TSA Input'!C1261,\"\"))","v":""},{"$f":"IF('TSA Input'!J1261=\"\",\"\",IF(OR('TSA Input'!J1261=\"Yes\",'TSA Input'!J1261=\"Contingent\"),'TSA Input'!D1261,\"\"))","v":""},{"$f":"IF('TSA Input'!J1261=\"\",\"\",IF(OR('TSA Input'!J1261=\"Yes\",'TSA Input'!J1261=\"Contingent\"),'TSA Input'!G1261,\"\"))","v":""},{"$f":"IF('TSA Input'!J1261=\"\",\"\",IF(OR('TSA Input'!J1261=\"Yes\",'TSA Input'!J1261=\"Contingent\"),'TSA Input'!F1261,\"\"))","v":""},"",{"$f":"IF('TSA Input'!J1261=\"\",\"\",IF(OR('TSA Input'!J1261=\"Yes\",'TSA Input'!J1261=\"Contingent\"),'TSA Input'!D1261,\"\"))","v":""},{"$f":"IF('TSA Input'!J1261=\"\",\"\",IF(OR('TSA Input'!J1261=\"Yes\",'TSA Input'!J1261=\"Contingent\"),'TSA Input'!G1261,\"\"))","v":""},{"$f":"IF('TSA Input'!J1261=\"\",\"\",IF(OR('TSA Input'!J1261=\"Yes\",'TSA Input'!J1261=\"Contingent\"),'TSA Input'!F1261,\"\"))","v":""},"","Required","Required"]
["",null,{"$f":"IF('TSA Input'!J1262=\"\",\"\",IF(OR('TSA Input'!J1262=\"Yes\",'TSA Input'!J1262=\"Contingent\"),'TSA Input'!B1262,\"Ineligible\"))","v":""},{"$f":"IF('TSA Input'!J1262=\"\",\"\",IF(OR('TSA Input'!J1262=\"Yes\",'TSA Input'!J1262=\"Contingent\"),'TSA Input'!I1262,\"\"))","v":""},{"$f":"IF('TSA Input'!J1262=\"\",\"\",IF(OR('TSA Input'!J1262=\"Yes\",'TSA Input'!J1262=\"Contingent\"),'TSA Input'!C1262,\"\"))","v":""},{"$f":"IF('TSA Input'!J1262=\"\",\"\",IF(OR('TSA Input'!J1262=\"Yes\",'TSA Input'!J1262=\"Contingent\"),'TSA Input'!D1262,\"\"))","v":""},{"$f":"IF('TSA Input'!J1262=\"\",\"\",IF(OR('TSA Input'!J1262=\"Yes\",'TSA Input'!J1262=\"Contingent\"),'TSA Input'!G1262,\"\"))","v":""},{"$f":"IF('TSA Input'!J1262=\"\",\"\",IF(OR('TSA Input'!J1262=\"Yes\",'TSA Input'!J1262=\"Contingent\"),'TSA Input'!F1262,\"\"))","v":""},"",{"$f":"IF('TSA Input'!J1262=\"\",\"\",IF(OR('TSA Input'!J1262=\"Yes\",'TSA Input'!J1262=\"Contingent\"),'TSA Input'!D1262,\"\"))","v":""},{"$f":"IF('TSA Input'!J1262=\"\",\"\",IF(OR('TSA Input'!J1262=\"Yes\",'TSA Input'!J1262=\"Contingent\"),'TSA Input'!G1262,\"\"))","v":""},{"$f":"IF('TSA Input'!J1262=\"\",\"\",IF(OR('TSA Input'!J1262=\"Yes\",'TSA Input'!J1262=\"Contingent\"),'TSA Input'!F1262,\"\"))","v":""},"","Required","Required"]
["",null,{"$f":"IF('TSA Input'!J1263=\"\",\"\",IF(OR('TSA Input'!J1263=\"Yes\",'TSA Input'!J1263=\"Contingent\"),'TSA Input'!B1263,\"Ineligible\"))","v":""},{"$f":"IF('TSA Input'!J1263=\"\",\"\",IF(OR('TSA Input'!J1263=\"Yes\",'TSA Input'!J1263=\"Contingent\"),'TSA Input'!I1263,\"\"))","v":""},{"$f":"IF('TSA Input'!J1263=\"\",\"\",IF(OR('TSA Input'!J1263=\"Yes\",'TSA Input'!J1263=\"Contingent\"),'TSA Input'!C1263,\"\"))","v":""},{"$f":"IF('TSA Input'!J1263=\"\",\"\",IF(OR('TSA Input'!J1263=\"Yes\",'TSA Input'!J1263=\"Contingent\"),'TSA Input'!D1263,\"\"))","v":""},{"$f":"IF('TSA Input'!J1263=\"\",\"\",IF(OR('TSA Input'!J1263=\"Yes\",'TSA Input'!J1263=\"Contingent\"),'TSA Input'!G1263,\"\"))","v":""},{"$f":"IF('TSA Input'!J1263=\"\",\"\",IF(OR('TSA Input'!J1263=\"Yes\",'TSA Input'!J1263=\"Contingent\"),'TSA Input'!F1263,\"\"))","v":""},"",{"$f":"IF('TSA Input'!J1263=\"\",\"\",IF(OR('TSA Input'!J1263=\"Yes\",'TSA Input'!J1263=\"Contingent\"),'TSA Input'!D1263,\"\"))","v":""},{"$f":"IF('TSA Input'!J1263=\"\",\"\",IF(OR('TSA Input'!J1263=\"Yes\",'TSA Input'!J1263=\"Contingent\"),'TSA Input'!G1263,\"\"))","v":""},{"$f":"IF('TSA Input'!J1263=\"\",\"\",IF(OR('TSA Input'!J1263=\"Yes\",'TSA Input'!J1263=\"Contingent\"),'TSA Input'!F1263,\"\"))","v":""},"","Required","Required"]
["",null,{"$f":"IF('TSA Input'!J1264=\"\",\"\",IF(OR('TSA Input'!J1264=\"Yes\",'TSA Input'!J1264=\"Contingent\"),'TSA Input'!B1264,\"Ineligible\"))","v":""},{"$f":"IF('TSA Input'!J1264=\"\",\"\",IF(OR('TSA Input'!J1264=\"Yes\",'TSA Input'!J1264=\"Contingent\"),'TSA Input'!I1264,\"\"))","v":""},{"$f":"IF('TSA Input'!J1264=\"\",\"\",IF(OR('TSA Input'!J1264=\"Yes\",'TSA Input'!J1264=\"Contingent\"),'TSA Input'!C1264,\"\"))","v":""},{"$f":"IF('TSA Input'!J1264=\"\",\"\",IF(OR('TSA Input'!J1264=\"Yes\",'TSA Input'!J1264=\"Contingent\"),'TSA Input'!D1264,\"\"))","v":""},{"$f":"IF('TSA Input'!J1264=\"\",\"\",IF(OR('TSA Input'!J1264=\"Yes\",'TSA Input'!J1264=\"Contingent\"),'TSA Input'!G1264,\"\"))","v":""},{"$f":"IF('TSA Input'!J1264=\"\",\"\",IF(OR('TSA Input'!J1264=\"Yes\",'TSA Input'!J1264=\"Contingent\"),'TSA Input'!F1264,\"\"))","v":""},"",{"$f":"IF('TSA Input'!J1264=\"\",\"\",IF(OR('TSA Input'!J1264=\"Yes\",'TSA Input'!J1264=\"Contingent\"),'TSA Input'!D1264,\"\"))","v":""},{"$f":"IF('TSA Input'!J1264=\"\",\"\",IF(OR('TSA Input'!J1264=\"Yes\",'TSA Input'!J1264=\"Contingent\"),'TSA Input'!G1264,\"\"))","v":""},{"$f":"IF('TSA Input'!J1264=\"\",\"\",IF(OR('TSA Input'!J1264=\"Yes\",'TSA Input'!J1264=\"Contingent\"),'TSA Input'!F1264,\"\"))","v":""},"","Required","Required"]
["",null,{"$f":"IF('TSA Input'!J1265=\"\",\"\",IF(OR('TSA Input'!J1265=\"Yes\",'TSA Input'!J1265=\"Contingent\"),'TSA Input'!B1265,\"Ineligible\"))","v":""},{"$f":"IF('TSA Input'!J1265=\"\",\"\",IF(OR('TSA Input'!J1265=\"Yes\",'TSA Input'!J1265=\"Contingent\"),'TSA Input'!I1265,\"\"))","v":""},{"$f":"IF('TSA Input'!J1265=\"\",\"\",IF(OR('TSA Input'!J1265=\"Yes\",'TSA Input'!J1265=\"Contingent\"),'TSA Input'!C1265,\"\"))","v":""},{"$f":"IF('TSA Input'!J1265=\"\",\"\",IF(OR('TSA Input'!J1265=\"Yes\",'TSA Input'!J1265=\"Contingent\"),'TSA Input'!D1265,\"\"))","v":""},{"$f":"IF('TSA Input'!J1265=\"\",\"\",IF(OR('TSA Input'!J1265=\"Yes\",'TSA Input'!J1265=\"Contingent\"),'TSA Input'!G1265,\"\"))","v":""},{"$f":"IF('TSA Input'!J1265=\"\",\"\",IF(OR('TSA Input'!J1265=\"Yes\",'TSA Input'!J1265=\"Contingent\"),'TSA Input'!F1265,\"\"))","v":""},"",{"$f":"IF('TSA Input'!J1265=\"\",\"\",IF(OR('TSA Input'!J1265=\"Yes\",'TSA Input'!J1265=\"Contingent\"),'TSA Input'!D1265,\"\"))","v":""},{"$f":"IF('TSA Input'!J1265=\"\",\"\",IF(OR('TSA Input'!J1265=\"Yes\",'TSA Input'!J1265=\"Contingent\"),'TSA Input'!G1265,\"\"))","v":""},{"$f":"IF('TSA Input'!J1265=\"\",\"\",IF(OR('TSA Input'!J1265=\"Yes\",'TSA Input'!J1265=\"Contingent\"),'TSA Input'!F1265,\"\"))","v":""},"","Required","Required"]
["",null,{"$f":"IF('TSA Input'!J1266=\"\",\"\",IF(OR('TSA Input'!J1266=\"Yes\",'TSA Input'!J1266=\"Contingent\"),'TSA Input'!B1266,\"Ineligible\"))","v":""},{"$f":"IF('TSA Input'!J1266=\"\",\"\",IF(OR('TSA Input'!J1266=\"Yes\",'TSA Input'!J1266=\"Contingent\"),'TSA Input'!I1266,\"\"))","v":""},{"$f":"IF('TSA Input'!J1266=\"\",\"\",IF(OR('TSA Input'!J1266=\"Yes\",'TSA Input'!J1266=\"Contingent\"),'TSA Input'!C1266,\"\"))","v":""},{"$f":"IF('TSA Input'!J1266=\"\",\"\",IF(OR('TSA Input'!J1266=\"Yes\",'TSA Input'!J1266=\"Contingent\"),'TSA Input'!D1266,\"\"))","v":""},{"$f":"IF('TSA Input'!J1266=\"\",\"\",IF(OR('TSA Input'!J1266=\"Yes\",'TSA Input'!J1266=\"Contingent\"),'TSA Input'!G1266,\"\"))","v":""},{"$f":"IF('TSA Input'!J1266=\"\",\"\",IF(OR('TSA Input'!J1266=\"Yes\",'TSA Input'!J1266=\"Contingent\"),'TSA Input'!F1266,\"\"))","v":""},"",{"$f":"IF('TSA Input'!J1266=\"\",\"\",IF(OR('TSA Input'!J1266=\"Yes\",'TSA Input'!J1266=\"Contingent\"),'TSA Input'!D1266,\"\"))","v":""},{"$f":"IF('TSA Input'!J1266=\"\",\"\",IF(OR('TSA Input'!J1266=\"Yes\",'TSA Input'!J1266=\"Contingent\"),'TSA Input'!G1266,\"\"))","v":""},{"$f":"IF('TSA Input'!J1266=\"\",\"\",IF(OR('TSA Input'!J1266=\"Yes\",'TSA Input'!J1266=\"Contingent\"),'TSA Input'!F1266,\"\"))","v":""},"","Required","Required"]
["",null,{"$f":"IF('TSA Input'!J1267=\"\",\"\",IF(OR('TSA Input'!J1267=\"Yes\",'TSA Input'!J1267=\"Contingent\"),'TSA Input'!B1267,\"Ineligible\"))","v":""},{"$f":"IF('TSA Input'!J1267=\"\",\"\",IF(OR('TSA Input'!J1267=\"Yes\",'TSA Input'!J1267=\"Contingent\"),'TSA Input'!I1267,\"\"))","v":""},{"$f":"IF('TSA Input'!J1267=\"\",\"\",IF(OR('TSA Input'!J1267=\"Yes\",'TSA Input'!J1267=\"Contingent\"),'TSA Input'!C1267,\"\"))","v":""},{"$f":"IF('TSA Input'!J1267=\"\",\"\",IF(OR('TSA Input'!J1267=\"Yes\",'TSA Input'!J1267=\"Contingent\"),'TSA Input'!D1267,\"\"))","v":""},{"$f":"IF('TSA Input'!J1267=\"\",\"\",IF(OR('TSA Input'!J1267=\"Yes\",'TSA Input'!J1267=\"Contingent\"),'TSA Input'!G1267,\"\"))","v":""},{"$f":"IF('TSA Input'!J1267=\"\",\"\",IF(OR('TSA Input'!J1267=\"Yes\",'TSA Input'!J1267=\"Contingent\"),'TSA Input'!F1267,\"\"))","v":""},"",{"$f":"IF('TSA Input'!J1267=\"\",\"\",IF(OR('TSA Input'!J1267=\"Yes\",'TSA Input'!J1267=\"Contingent\"),'TSA Input'!D1267,\"\"))","v":""},{"$f":"IF('TSA Input'!J1267=\"\",\"\",IF(OR('TSA Input'!J1267=\"Yes\",'TSA Input'!J1267=\"Contingent\"),'TSA Input'!G1267,\"\"))","v":""},{"$f":"IF('TSA Input'!J1267=\"\",\"\",IF(OR('TSA Input'!J1267=\"Yes\",'TSA Input'!J1267=\"Contingent\"),'TSA Input'!F1267,\"\"))","v":""},"","Required","Required"]
["",null,{"$f":"IF('TSA Input'!J1268=\"\",\"\",IF(OR('TSA Input'!J1268=\"Yes\",'TSA Input'!J1268=\"Contingent\"),'TSA Input'!B1268,\"Ineligible\"))","v":""},{"$f":"IF('TSA Input'!J1268=\"\",\"\",IF(OR('TSA Input'!J1268=\"Yes\",'TSA Input'!J1268=\"Contingent\"),'TSA Input'!I1268,\"\"))","v":""},{"$f":"IF('TSA Input'!J1268=\"\",\"\",IF(OR('TSA Input'!J1268=\"Yes\",'TSA Input'!J1268=\"Contingent\"),'TSA Input'!C1268,\"\"))","v":""},{"$f":"IF('TSA Input'!J1268=\"\",\"\",IF(OR('TSA Input'!J1268=\"Yes\",'TSA Input'!J1268=\"Contingent\"),'TSA Input'!D1268,\"\"))","v":""},{"$f":"IF('TSA Input'!J1268=\"\",\"\",IF(OR('TSA Input'!J1268=\"Yes\",'TSA Input'!J1268=\"Contingent\"),'TSA Input'!G1268,\"\"))","v":""},{"$f":"IF('TSA Input'!J1268=\"\",\"\",IF(OR('TSA Input'!J1268=\"Yes\",'TSA Input'!J1268=\"Contingent\"),'TSA Input'!F1268,\"\"))","v":""},"",{"$f":"IF('TSA Input'!J1268=\"\",\"\",IF(OR('TSA Input'!J1268=\"Yes\",'TSA Input'!J1268=\"Contingent\"),'TSA Input'!D1268,\"\"))","v":""},{"$f":"IF('TSA Input'!J1268=\"\",\"\",IF(OR('TSA Input'!J1268=\"Yes\",'TSA Input'!J1268=\"Contingent\"),'TSA Input'!G1268,\"\"))","v":""},{"$f":"IF('TSA Input'!J1268=\"\",\"\",IF(OR('TSA Input'!J1268=\"Yes\",'TSA Input'!J1268=\"Contingent\"),'TSA Input'!F1268,\"\"))","v":""},"","Required","Required"]
["",null,{"$f":"IF('TSA Input'!J1269=\"\",\"\",IF(OR('TSA Input'!J1269=\"Yes\",'TSA Input'!J1269=\"Contingent\"),'TSA Input'!B1269,\"Ineligible\"))","v":""},{"$f":"IF('TSA Input'!J1269=\"\",\"\",IF(OR('TSA Input'!J1269=\"Yes\",'TSA Input'!J1269=\"Contingent\"),'TSA Input'!I1269,\"\"))","v":""},{"$f":"IF('TSA Input'!J1269=\"\",\"\",IF(OR('TSA Input'!J1269=\"Yes\",'TSA Input'!J1269=\"Contingent\"),'TSA Input'!C1269,\"\"))","v":""},{"$f":"IF('TSA Input'!J1269=\"\",\"\",IF(OR('TSA Input'!J1269=\"Yes\",'TSA Input'!J1269=\"Contingent\"),'TSA Input'!D1269,\"\"))","v":""},{"$f":"IF('TSA Input'!J1269=\"\",\"\",IF(OR('TSA Input'!J1269=\"Yes\",'TSA Input'!J1269=\"Contingent\"),'TSA Input'!G1269,\"\"))","v":""},{"$f":"IF('TSA Input'!J1269=\"\",\"\",IF(OR('TSA Input'!J1269=\"Yes\",'TSA Input'!J1269=\"Contingent\"),'TSA Input'!F1269,\"\"))","v":""},"",{"$f":"IF('TSA Input'!J1269=\"\",\"\",IF(OR('TSA Input'!J1269=\"Yes\",'TSA Input'!J1269=\"Contingent\"),'TSA Input'!D1269,\"\"))","v":""},{"$f":"IF('TSA Input'!J1269=\"\",\"\",IF(OR('TSA Input'!J1269=\"Yes\",'TSA Input'!J1269=\"Contingent\"),'TSA Input'!G1269,\"\"))","v":""},{"$f":"IF('TSA Input'!J1269=\"\",\"\",IF(OR('TSA Input'!J1269=\"Yes\",'TSA Input'!J1269=\"Contingent\"),'TSA Input'!F1269,\"\"))","v":""},"","Required","Required"]
["",null,{"$f":"IF('TSA Input'!J1270=\"\",\"\",IF(OR('TSA Input'!J1270=\"Yes\",'TSA Input'!J1270=\"Contingent\"),'TSA Input'!B1270,\"Ineligible\"))","v":""},{"$f":"IF('TSA Input'!J1270=\"\",\"\",IF(OR('TSA Input'!J1270=\"Yes\",'TSA Input'!J1270=\"Contingent\"),'TSA Input'!I1270,\"\"))","v":""},{"$f":"IF('TSA Input'!J1270=\"\",\"\",IF(OR('TSA Input'!J1270=\"Yes\",'TSA Input'!J1270=\"Contingent\"),'TSA Input'!C1270,\"\"))","v":""},{"$f":"IF('TSA Input'!J1270=\"\",\"\",IF(OR('TSA Input'!J1270=\"Yes\",'TSA Input'!J1270=\"Contingent\"),'TSA Input'!D1270,\"\"))","v":""},{"$f":"IF('TSA Input'!J1270=\"\",\"\",IF(OR('TSA Input'!J1270=\"Yes\",'TSA Input'!J1270=\"Contingent\"),'TSA Input'!G1270,\"\"))","v":""},{"$f":"IF('TSA Input'!J1270=\"\",\"\",IF(OR('TSA Input'!J1270=\"Yes\",'TSA Input'!J1270=\"Contingent\"),'TSA Input'!F1270,\"\"))","v":""},"",{"$f":"IF('TSA Input'!J1270=\"\",\"\",IF(OR('TSA Input'!J1270=\"Yes\",'TSA Input'!J1270=\"Contingent\"),'TSA Input'!D1270,\"\"))","v":""},{"$f":"IF('TSA Input'!J1270=\"\",\"\",IF(OR('TSA Input'!J1270=\"Yes\",'TSA Input'!J1270=\"Contingent\"),'TSA Input'!G1270,\"\"))","v":""},{"$f":"IF('TSA Input'!J1270=\"\",\"\",IF(OR('TSA Input'!J1270=\"Yes\",'TSA Input'!J1270=\"Contingent\"),'TSA Input'!F1270,\"\"))","v":""},"","Required","Required"]
["",null,{"$f":"IF('TSA Input'!J1271=\"\",\"\",IF(OR('TSA Input'!J1271=\"Yes\",'TSA Input'!J1271=\"Contingent\"),'TSA Input'!B1271,\"Ineligible\"))","v":""},{"$f":"IF('TSA Input'!J1271=\"\",\"\",IF(OR('TSA Input'!J1271=\"Yes\",'TSA Input'!J1271=\"Contingent\"),'TSA Input'!I1271,\"\"))","v":""},{"$f":"IF('TSA Input'!J1271=\"\",\"\",IF(OR('TSA Input'!J1271=\"Yes\",'TSA Input'!J1271=\"Contingent\"),'TSA Input'!C1271,\"\"))","v":""},{"$f":"IF('TSA Input'!J1271=\"\",\"\",IF(OR('TSA Input'!J1271=\"Yes\",'TSA Input'!J1271=\"Contingent\"),'TSA Input'!D1271,\"\"))","v":""},{"$f":"IF('TSA Input'!J1271=\"\",\"\",IF(OR('TSA Input'!J1271=\"Yes\",'TSA Input'!J1271=\"Contingent\"),'TSA Input'!G1271,\"\"))","v":""},{"$f":"IF('TSA Input'!J1271=\"\",\"\",IF(OR('TSA Input'!J1271=\"Yes\",'TSA Input'!J1271=\"Contingent\"),'TSA Input'!F1271,\"\"))","v":""},"",{"$f":"IF('TSA Input'!J1271=\"\",\"\",IF(OR('TSA Input'!J1271=\"Yes\",'TSA Input'!J1271=\"Contingent\"),'TSA Input'!D1271,\"\"))","v":""},{"$f":"IF('TSA Input'!J1271=\"\",\"\",IF(OR('TSA Input'!J1271=\"Yes\",'TSA Input'!J1271=\"Contingent\"),'TSA Input'!G1271,\"\"))","v":""},{"$f":"IF('TSA Input'!J1271=\"\",\"\",IF(OR('TSA Input'!J1271=\"Yes\",'TSA Input'!J1271=\"Contingent\"),'TSA Input'!F1271,\"\"))","v":""},"","Required","Required"]
["",null,{"$f":"IF('TSA Input'!J1272=\"\",\"\",IF(OR('TSA Input'!J1272=\"Yes\",'TSA Input'!J1272=\"Contingent\"),'TSA Input'!B1272,\"Ineligible\"))","v":""},{"$f":"IF('TSA Input'!J1272=\"\",\"\",IF(OR('TSA Input'!J1272=\"Yes\",'TSA Input'!J1272=\"Contingent\"),'TSA Input'!I1272,\"\"))","v":""},{"$f":"IF('TSA Input'!J1272=\"\",\"\",IF(OR('TSA Input'!J1272=\"Yes\",'TSA Input'!J1272=\"Contingent\"),'TSA Input'!C1272,\"\"))","v":""},{"$f":"IF('TSA Input'!J1272=\"\",\"\",IF(OR('TSA Input'!J1272=\"Yes\",'TSA Input'!J1272=\"Contingent\"),'TSA Input'!D1272,\"\"))","v":""},{"$f":"IF('TSA Input'!J1272=\"\",\"\",IF(OR('TSA Input'!J1272=\"Yes\",'TSA Input'!J1272=\"Contingent\"),'TSA Input'!G1272,\"\"))","v":""},{"$f":"IF('TSA Input'!J1272=\"\",\"\",IF(OR('TSA Input'!J1272=\"Yes\",'TSA Input'!J1272=\"Contingent\"),'TSA Input'!F1272,\"\"))","v":""},"",{"$f":"IF('TSA Input'!J1272=\"\",\"\",IF(OR('TSA Input'!J1272=\"Yes\",'TSA Input'!J1272=\"Contingent\"),'TSA Input'!D1272,\"\"))","v":""},{"$f":"IF('TSA Input'!J1272=\"\",\"\",IF(OR('TSA Input'!J1272=\"Yes\",'TSA Input'!J1272=\"Contingent\"),'TSA Input'!G1272,\"\"))","v":""},{"$f":"IF('TSA Input'!J1272=\"\",\"\",IF(OR('TSA Input'!J1272=\"Yes\",'TSA Input'!J1272=\"Contingent\"),'TSA Input'!F1272,\"\"))","v":""},"","Required","Required"]
["",null,{"$f":"IF('TSA Input'!J1273=\"\",\"\",IF(OR('TSA Input'!J1273=\"Yes\",'TSA Input'!J1273=\"Contingent\"),'TSA Input'!B1273,\"Ineligible\"))","v":""},{"$f":"IF('TSA Input'!J1273=\"\",\"\",IF(OR('TSA Input'!J1273=\"Yes\",'TSA Input'!J1273=\"Contingent\"),'TSA Input'!I1273,\"\"))","v":""},{"$f":"IF('TSA Input'!J1273=\"\",\"\",IF(OR('TSA Input'!J1273=\"Yes\",'TSA Input'!J1273=\"Contingent\"),'TSA Input'!C1273,\"\"))","v":""},{"$f":"IF('TSA Input'!J1273=\"\",\"\",IF(OR('TSA Input'!J1273=\"Yes\",'TSA Input'!J1273=\"Contingent\"),'TSA Input'!D1273,\"\"))","v":""},{"$f":"IF('TSA Input'!J1273=\"\",\"\",IF(OR('TSA Input'!J1273=\"Yes\",'TSA Input'!J1273=\"Contingent\"),'TSA Input'!G1273,\"\"))","v":""},{"$f":"IF('TSA Input'!J1273=\"\",\"\",IF(OR('TSA Input'!J1273=\"Yes\",'TSA Input'!J1273=\"Contingent\"),'TSA Input'!F1273,\"\"))","v":""},"",{"$f":"IF('TSA Input'!J1273=\"\",\"\",IF(OR('TSA Input'!J1273=\"Yes\",'TSA Input'!J1273=\"Contingent\"),'TSA Input'!D1273,\"\"))","v":""},{"$f":"IF('TSA Input'!J1273=\"\",\"\",IF(OR('TSA Input'!J1273=\"Yes\",'TSA Input'!J1273=\"Contingent\"),'TSA Input'!G1273,\"\"))","v":""},{"$f":"IF('TSA Input'!J1273=\"\",\"\",IF(OR('TSA Input'!J1273=\"Yes\",'TSA Input'!J1273=\"Contingent\"),'TSA Input'!F1273,\"\"))","v":""},"","Required","Required"]
["",null,{"$f":"IF('TSA Input'!J1274=\"\",\"\",IF(OR('TSA Input'!J1274=\"Yes\",'TSA Input'!J1274=\"Contingent\"),'TSA Input'!B1274,\"Ineligible\"))","v":""},{"$f":"IF('TSA Input'!J1274=\"\",\"\",IF(OR('TSA Input'!J1274=\"Yes\",'TSA Input'!J1274=\"Contingent\"),'TSA Input'!I1274,\"\"))","v":""},{"$f":"IF('TSA Input'!J1274=\"\",\"\",IF(OR('TSA Input'!J1274=\"Yes\",'TSA Input'!J1274=\"Contingent\"),'TSA Input'!C1274,\"\"))","v":""},{"$f":"IF('TSA Input'!J1274=\"\",\"\",IF(OR('TSA Input'!J1274=\"Yes\",'TSA Input'!J1274=\"Contingent\"),'TSA Input'!D1274,\"\"))","v":""},{"$f":"IF('TSA Input'!J1274=\"\",\"\",IF(OR('TSA Input'!J1274=\"Yes\",'TSA Input'!J1274=\"Contingent\"),'TSA Input'!G1274,\"\"))","v":""},{"$f":"IF('TSA Input'!J1274=\"\",\"\",IF(OR('TSA Input'!J1274=\"Yes\",'TSA Input'!J1274=\"Contingent\"),'TSA Input'!F1274,\"\"))","v":""},"",{"$f":"IF('TSA Input'!J1274=\"\",\"\",IF(OR('TSA Input'!J1274=\"Yes\",'TSA Input'!J1274=\"Contingent\"),'TSA Input'!D1274,\"\"))","v":""},{"$f":"IF('TSA Input'!J1274=\"\",\"\",IF(OR('TSA Input'!J1274=\"Yes\",'TSA Input'!J1274=\"Contingent\"),'TSA Input'!G1274,\"\"))","v":""},{"$f":"IF('TSA Input'!J1274=\"\",\"\",IF(OR('TSA Input'!J1274=\"Yes\",'TSA Input'!J1274=\"Contingent\"),'TSA Input'!F1274,\"\"))","v":""},"","Required","Required"]
["",null,{"$f":"IF('TSA Input'!J1275=\"\",\"\",IF(OR('TSA Input'!J1275=\"Yes\",'TSA Input'!J1275=\"Contingent\"),'TSA Input'!B1275,\"Ineligible\"))","v":""},{"$f":"IF('TSA Input'!J1275=\"\",\"\",IF(OR('TSA Input'!J1275=\"Yes\",'TSA Input'!J1275=\"Contingent\"),'TSA Input'!I1275,\"\"))","v":""},{"$f":"IF('TSA Input'!J1275=\"\",\"\",IF(OR('TSA Input'!J1275=\"Yes\",'TSA Input'!J1275=\"Contingent\"),'TSA Input'!C1275,\"\"))","v":""},{"$f":"IF('TSA Input'!J1275=\"\",\"\",IF(OR('TSA Input'!J1275=\"Yes\",'TSA Input'!J1275=\"Contingent\"),'TSA Input'!D1275,\"\"))","v":""},{"$f":"IF('TSA Input'!J1275=\"\",\"\",IF(OR('TSA Input'!J1275=\"Yes\",'TSA Input'!J1275=\"Contingent\"),'TSA Input'!G1275,\"\"))","v":""},{"$f":"IF('TSA Input'!J1275=\"\",\"\",IF(OR('TSA Input'!J1275=\"Yes\",'TSA Input'!J1275=\"Contingent\"),'TSA Input'!F1275,\"\"))","v":""},"",{"$f":"IF('TSA Input'!J1275=\"\",\"\",IF(OR('TSA Input'!J1275=\"Yes\",'TSA Input'!J1275=\"Contingent\"),'TSA Input'!D1275,\"\"))","v":""},{"$f":"IF('TSA Input'!J1275=\"\",\"\",IF(OR('TSA Input'!J1275=\"Yes\",'TSA Input'!J1275=\"Contingent\"),'TSA Input'!G1275,\"\"))","v":""},{"$f":"IF('TSA Input'!J1275=\"\",\"\",IF(OR('TSA Input'!J1275=\"Yes\",'TSA Input'!J1275=\"Contingent\"),'TSA Input'!F1275,\"\"))","v":""},"","Required","Required"]
["",null,{"$f":"IF('TSA Input'!J1276=\"\",\"\",IF(OR('TSA Input'!J1276=\"Yes\",'TSA Input'!J1276=\"Contingent\"),'TSA Input'!B1276,\"Ineligible\"))","v":""},{"$f":"IF('TSA Input'!J1276=\"\",\"\",IF(OR('TSA Input'!J1276=\"Yes\",'TSA Input'!J1276=\"Contingent\"),'TSA Input'!I1276,\"\"))","v":""},{"$f":"IF('TSA Input'!J1276=\"\",\"\",IF(OR('TSA Input'!J1276=\"Yes\",'TSA Input'!J1276=\"Contingent\"),'TSA Input'!C1276,\"\"))","v":""},{"$f":"IF('TSA Input'!J1276=\"\",\"\",IF(OR('TSA Input'!J1276=\"Yes\",'TSA Input'!J1276=\"Contingent\"),'TSA Input'!D1276,\"\"))","v":""},{"$f":"IF('TSA Input'!J1276=\"\",\"\",IF(OR('TSA Input'!J1276=\"Yes\",'TSA Input'!J1276=\"Contingent\"),'TSA Input'!G1276,\"\"))","v":""},{"$f":"IF('TSA Input'!J1276=\"\",\"\",IF(OR('TSA Input'!J1276=\"Yes\",'TSA Input'!J1276=\"Contingent\"),'TSA Input'!F1276,\"\"))","v":""},"",{"$f":"IF('TSA Input'!J1276=\"\",\"\",IF(OR('TSA Input'!J1276=\"Yes\",'TSA Input'!J1276=\"Contingent\"),'TSA Input'!D1276,\"\"))","v":""},{"$f":"IF('TSA Input'!J1276=\"\",\"\",IF(OR('TSA Input'!J1276=\"Yes\",'TSA Input'!J1276=\"Contingent\"),'TSA Input'!G1276,\"\"))","v":""},{"$f":"IF('TSA Input'!J1276=\"\",\"\",IF(OR('TSA Input'!J1276=\"Yes\",'TSA Input'!J1276=\"Contingent\"),'TSA Input'!F1276,\"\"))","v":""},"","Required","Required"]
["",null,{"$f":"IF('TSA Input'!J1277=\"\",\"\",IF(OR('TSA Input'!J1277=\"Yes\",'TSA Input'!J1277=\"Contingent\"),'TSA Input'!B1277,\"Ineligible\"))","v":""},{"$f":"IF('TSA Input'!J1277=\"\",\"\",IF(OR('TSA Input'!J1277=\"Yes\",'TSA Input'!J1277=\"Contingent\"),'TSA Input'!I1277,\"\"))","v":""},{"$f":"IF('TSA Input'!J1277=\"\",\"\",IF(OR('TSA Input'!J1277=\"Yes\",'TSA Input'!J1277=\"Contingent\"),'TSA Input'!C1277,\"\"))","v":""},{"$f":"IF('TSA Input'!J1277=\"\",\"\",IF(OR('TSA Input'!J1277=\"Yes\",'TSA Input'!J1277=\"Contingent\"),'TSA Input'!D1277,\"\"))","v":""},{"$f":"IF('TSA Input'!J1277=\"\",\"\",IF(OR('TSA Input'!J1277=\"Yes\",'TSA Input'!J1277=\"Contingent\"),'TSA Input'!G1277,\"\"))","v":""},{"$f":"IF('TSA Input'!J1277=\"\",\"\",IF(OR('TSA Input'!J1277=\"Yes\",'TSA Input'!J1277=\"Contingent\"),'TSA Input'!F1277,\"\"))","v":""},"",{"$f":"IF('TSA Input'!J1277=\"\",\"\",IF(OR('TSA Input'!J1277=\"Yes\",'TSA Input'!J1277=\"Contingent\"),'TSA Input'!D1277,\"\"))","v":""},{"$f":"IF('TSA Input'!J1277=\"\",\"\",IF(OR('TSA Input'!J1277=\"Yes\",'TSA Input'!J1277=\"Contingent\"),'TSA Input'!G1277,\"\"))","v":""},{"$f":"IF('TSA Input'!J1277=\"\",\"\",IF(OR('TSA Input'!J1277=\"Yes\",'TSA Input'!J1277=\"Contingent\"),'TSA Input'!F1277,\"\"))","v":""},"","Required","Required"]
["",null,{"$f":"IF('TSA Input'!J1278=\"\",\"\",IF(OR('TSA Input'!J1278=\"Yes\",'TSA Input'!J1278=\"Contingent\"),'TSA Input'!B1278,\"Ineligible\"))","v":""},{"$f":"IF('TSA Input'!J1278=\"\",\"\",IF(OR('TSA Input'!J1278=\"Yes\",'TSA Input'!J1278=\"Contingent\"),'TSA Input'!I1278,\"\"))","v":""},{"$f":"IF('TSA Input'!J1278=\"\",\"\",IF(OR('TSA Input'!J1278=\"Yes\",'TSA Input'!J1278=\"Contingent\"),'TSA Input'!C1278,\"\"))","v":""},{"$f":"IF('TSA Input'!J1278=\"\",\"\",IF(OR('TSA Input'!J1278=\"Yes\",'TSA Input'!J1278=\"Contingent\"),'TSA Input'!D1278,\"\"))","v":""},{"$f":"IF('TSA Input'!J1278=\"\",\"\",IF(OR('TSA Input'!J1278=\"Yes\",'TSA Input'!J1278=\"Contingent\"),'TSA Input'!G1278,\"\"))","v":""},{"$f":"IF('TSA Input'!J1278=\"\",\"\",IF(OR('TSA Input'!J1278=\"Yes\",'TSA Input'!J1278=\"Contingent\"),'TSA Input'!F1278,\"\"))","v":""},"",{"$f":"IF('TSA Input'!J1278=\"\",\"\",IF(OR('TSA Input'!J1278=\"Yes\",'TSA Input'!J1278=\"Contingent\"),'TSA Input'!D1278,\"\"))","v":""},{"$f":"IF('TSA Input'!J1278=\"\",\"\",IF(OR('TSA Input'!J1278=\"Yes\",'TSA Input'!J1278=\"Contingent\"),'TSA Input'!G1278,\"\"))","v":""},{"$f":"IF('TSA Input'!J1278=\"\",\"\",IF(OR('TSA Input'!J1278=\"Yes\",'TSA Input'!J1278=\"Contingent\"),'TSA Input'!F1278,\"\"))","v":""},"","Required","Required"]
["",null,{"$f":"IF('TSA Input'!J1279=\"\",\"\",IF(OR('TSA Input'!J1279=\"Yes\",'TSA Input'!J1279=\"Contingent\"),'TSA Input'!B1279,\"Ineligible\"))","v":""},{"$f":"IF('TSA Input'!J1279=\"\",\"\",IF(OR('TSA Input'!J1279=\"Yes\",'TSA Input'!J1279=\"Contingent\"),'TSA Input'!I1279,\"\"))","v":""},{"$f":"IF('TSA Input'!J1279=\"\",\"\",IF(OR('TSA Input'!J1279=\"Yes\",'TSA Input'!J1279=\"Contingent\"),'TSA Input'!C1279,\"\"))","v":""},{"$f":"IF('TSA Input'!J1279=\"\",\"\",IF(OR('TSA Input'!J1279=\"Yes\",'TSA Input'!J1279=\"Contingent\"),'TSA Input'!D1279,\"\"))","v":""},{"$f":"IF('TSA Input'!J1279=\"\",\"\",IF(OR('TSA Input'!J1279=\"Yes\",'TSA Input'!J1279=\"Contingent\"),'TSA Input'!G1279,\"\"))","v":""},{"$f":"IF('TSA Input'!J1279=\"\",\"\",IF(OR('TSA Input'!J1279=\"Yes\",'TSA Input'!J1279=\"Contingent\"),'TSA Input'!F1279,\"\"))","v":""},"",{"$f":"IF('TSA Input'!J1279=\"\",\"\",IF(OR('TSA Input'!J1279=\"Yes\",'TSA Input'!J1279=\"Contingent\"),'TSA Input'!D1279,\"\"))","v":""},{"$f":"IF('TSA Input'!J1279=\"\",\"\",IF(OR('TSA Input'!J1279=\"Yes\",'TSA Input'!J1279=\"Contingent\"),'TSA Input'!G1279,\"\"))","v":""},{"$f":"IF('TSA Input'!J1279=\"\",\"\",IF(OR('TSA Input'!J1279=\"Yes\",'TSA Input'!J1279=\"Contingent\"),'TSA Input'!F1279,\"\"))","v":""},"","Required","Required"]
["",null,{"$f":"IF('TSA Input'!J1280=\"\",\"\",IF(OR('TSA Input'!J1280=\"Yes\",'TSA Input'!J1280=\"Contingent\"),'TSA Input'!B1280,\"Ineligible\"))","v":""},{"$f":"IF('TSA Input'!J1280=\"\",\"\",IF(OR('TSA Input'!J1280=\"Yes\",'TSA Input'!J1280=\"Contingent\"),'TSA Input'!I1280,\"\"))","v":""},{"$f":"IF('TSA Input'!J1280=\"\",\"\",IF(OR('TSA Input'!J1280=\"Yes\",'TSA Input'!J1280=\"Contingent\"),'TSA Input'!C1280,\"\"))","v":""},{"$f":"IF('TSA Input'!J1280=\"\",\"\",IF(OR('TSA Input'!J1280=\"Yes\",'TSA Input'!J1280=\"Contingent\"),'TSA Input'!D1280,\"\"))","v":""},{"$f":"IF('TSA Input'!J1280=\"\",\"\",IF(OR('TSA Input'!J1280=\"Yes\",'TSA Input'!J1280=\"Contingent\"),'TSA Input'!G1280,\"\"))","v":""},{"$f":"IF('TSA Input'!J1280=\"\",\"\",IF(OR('TSA Input'!J1280=\"Yes\",'TSA Input'!J1280=\"Contingent\"),'TSA Input'!F1280,\"\"))","v":""},"",{"$f":"IF('TSA Input'!J1280=\"\",\"\",IF(OR('TSA Input'!J1280=\"Yes\",'TSA Input'!J1280=\"Contingent\"),'TSA Input'!D1280,\"\"))","v":""},{"$f":"IF('TSA Input'!J1280=\"\",\"\",IF(OR('TSA Input'!J1280=\"Yes\",'TSA Input'!J1280=\"Contingent\"),'TSA Input'!G1280,\"\"))","v":""},{"$f":"IF('TSA Input'!J1280=\"\",\"\",IF(OR('TSA Input'!J1280=\"Yes\",'TSA Input'!J1280=\"Contingent\"),'TSA Input'!F1280,\"\"))","v":""},"","Required","Required"]
["",null,{"$f":"IF('TSA Input'!J1281=\"\",\"\",IF(OR('TSA Input'!J1281=\"Yes\",'TSA Input'!J1281=\"Contingent\"),'TSA Input'!B1281,\"Ineligible\"))","v":""},{"$f":"IF('TSA Input'!J1281=\"\",\"\",IF(OR('TSA Input'!J1281=\"Yes\",'TSA Input'!J1281=\"Contingent\"),'TSA Input'!I1281,\"\"))","v":""},{"$f":"IF('TSA Input'!J1281=\"\",\"\",IF(OR('TSA Input'!J1281=\"Yes\",'TSA Input'!J1281=\"Contingent\"),'TSA Input'!C1281,\"\"))","v":""},{"$f":"IF('TSA Input'!J1281=\"\",\"\",IF(OR('TSA Input'!J1281=\"Yes\",'TSA Input'!J1281=\"Contingent\"),'TSA Input'!D1281,\"\"))","v":""},{"$f":"IF('TSA Input'!J1281=\"\",\"\",IF(OR('TSA Input'!J1281=\"Yes\",'TSA Input'!J1281=\"Contingent\"),'TSA Input'!G1281,\"\"))","v":""},{"$f":"IF('TSA Input'!J1281=\"\",\"\",IF(OR('TSA Input'!J1281=\"Yes\",'TSA Input'!J1281=\"Contingent\"),'TSA Input'!F1281,\"\"))","v":""},"",{"$f":"IF('TSA Input'!J1281=\"\",\"\",IF(OR('TSA Input'!J1281=\"Yes\",'TSA Input'!J1281=\"Contingent\"),'TSA Input'!D1281,\"\"))","v":""},{"$f":"IF('TSA Input'!J1281=\"\",\"\",IF(OR('TSA Input'!J1281=\"Yes\",'TSA Input'!J1281=\"Contingent\"),'TSA Input'!G1281,\"\"))","v":""},{"$f":"IF('TSA Input'!J1281=\"\",\"\",IF(OR('TSA Input'!J1281=\"Yes\",'TSA Input'!J1281=\"Contingent\"),'TSA Input'!F1281,\"\"))","v":""},"","Required","Required"]
["",null,{"$f":"IF('TSA Input'!J1282=\"\",\"\",IF(OR('TSA Input'!J1282=\"Yes\",'TSA Input'!J1282=\"Contingent\"),'TSA Input'!B1282,\"Ineligible\"))","v":""},{"$f":"IF('TSA Input'!J1282=\"\",\"\",IF(OR('TSA Input'!J1282=\"Yes\",'TSA Input'!J1282=\"Contingent\"),'TSA Input'!I1282,\"\"))","v":""},{"$f":"IF('TSA Input'!J1282=\"\",\"\",IF(OR('TSA Input'!J1282=\"Yes\",'TSA Input'!J1282=\"Contingent\"),'TSA Input'!C1282,\"\"))","v":""},{"$f":"IF('TSA Input'!J1282=\"\",\"\",IF(OR('TSA Input'!J1282=\"Yes\",'TSA Input'!J1282=\"Contingent\"),'TSA Input'!D1282,\"\"))","v":""},{"$f":"IF('TSA Input'!J1282=\"\",\"\",IF(OR('TSA Input'!J1282=\"Yes\",'TSA Input'!J1282=\"Contingent\"),'TSA Input'!G1282,\"\"))","v":""},{"$f":"IF('TSA Input'!J1282=\"\",\"\",IF(OR('TSA Input'!J1282=\"Yes\",'TSA Input'!J1282=\"Contingent\"),'TSA Input'!F1282,\"\"))","v":""},"",{"$f":"IF('TSA Input'!J1282=\"\",\"\",IF(OR('TSA Input'!J1282=\"Yes\",'TSA Input'!J1282=\"Contingent\"),'TSA Input'!D1282,\"\"))","v":""},{"$f":"IF('TSA Input'!J1282=\"\",\"\",IF(OR('TSA Input'!J1282=\"Yes\",'TSA Input'!J1282=\"Contingent\"),'TSA Input'!G1282,\"\"))","v":""},{"$f":"IF('TSA Input'!J1282=\"\",\"\",IF(OR('TSA Input'!J1282=\"Yes\",'TSA Input'!J1282=\"Contingent\"),'TSA Input'!F1282,\"\"))","v":""},"","Required","Required"]
["",null,{"$f":"IF('TSA Input'!J1283=\"\",\"\",IF(OR('TSA Input'!J1283=\"Yes\",'TSA Input'!J1283=\"Contingent\"),'TSA Input'!B1283,\"Ineligible\"))","v":""},{"$f":"IF('TSA Input'!J1283=\"\",\"\",IF(OR('TSA Input'!J1283=\"Yes\",'TSA Input'!J1283=\"Contingent\"),'TSA Input'!I1283,\"\"))","v":""},{"$f":"IF('TSA Input'!J1283=\"\",\"\",IF(OR('TSA Input'!J1283=\"Yes\",'TSA Input'!J1283=\"Contingent\"),'TSA Input'!C1283,\"\"))","v":""},{"$f":"IF('TSA Input'!J1283=\"\",\"\",IF(OR('TSA Input'!J1283=\"Yes\",'TSA Input'!J1283=\"Contingent\"),'TSA Input'!D1283,\"\"))","v":""},{"$f":"IF('TSA Input'!J1283=\"\",\"\",IF(OR('TSA Input'!J1283=\"Yes\",'TSA Input'!J1283=\"Contingent\"),'TSA Input'!G1283,\"\"))","v":""},{"$f":"IF('TSA Input'!J1283=\"\",\"\",IF(OR('TSA Input'!J1283=\"Yes\",'TSA Input'!J1283=\"Contingent\"),'TSA Input'!F1283,\"\"))","v":""},"",{"$f":"IF('TSA Input'!J1283=\"\",\"\",IF(OR('TSA Input'!J1283=\"Yes\",'TSA Input'!J1283=\"Contingent\"),'TSA Input'!D1283,\"\"))","v":""},{"$f":"IF('TSA Input'!J1283=\"\",\"\",IF(OR('TSA Input'!J1283=\"Yes\",'TSA Input'!J1283=\"Contingent\"),'TSA Input'!G1283,\"\"))","v":""},{"$f":"IF('TSA Input'!J1283=\"\",\"\",IF(OR('TSA Input'!J1283=\"Yes\",'TSA Input'!J1283=\"Contingent\"),'TSA Input'!F1283,\"\"))","v":""},"","Required","Required"]
["",null,{"$f":"IF('TSA Input'!J1284=\"\",\"\",IF(OR('TSA Input'!J1284=\"Yes\",'TSA Input'!J1284=\"Contingent\"),'TSA Input'!B1284,\"Ineligible\"))","v":""},{"$f":"IF('TSA Input'!J1284=\"\",\"\",IF(OR('TSA Input'!J1284=\"Yes\",'TSA Input'!J1284=\"Contingent\"),'TSA Input'!I1284,\"\"))","v":""},{"$f":"IF('TSA Input'!J1284=\"\",\"\",IF(OR('TSA Input'!J1284=\"Yes\",'TSA Input'!J1284=\"Contingent\"),'TSA Input'!C1284,\"\"))","v":""},{"$f":"IF('TSA Input'!J1284=\"\",\"\",IF(OR('TSA Input'!J1284=\"Yes\",'TSA Input'!J1284=\"Contingent\"),'TSA Input'!D1284,\"\"))","v":""},{"$f":"IF('TSA Input'!J1284=\"\",\"\",IF(OR('TSA Input'!J1284=\"Yes\",'TSA Input'!J1284=\"Contingent\"),'TSA Input'!G1284,\"\"))","v":""},{"$f":"IF('TSA Input'!J1284=\"\",\"\",IF(OR('TSA Input'!J1284=\"Yes\",'TSA Input'!J1284=\"Contingent\"),'TSA Input'!F1284,\"\"))","v":""},{"$f":"IF($C1322=\"\",\"\",SUM(F1322:H1322))","v":""},{"$f":"IF('TSA Input'!J1284=\"\",\"\",IF(OR('TSA Input'!J1284=\"Yes\",'TSA Input'!J1284=\"Contingent\"),'TSA Input'!D1284,\"\"))","v":""},{"$f":"IF('TSA Input'!J1284=\"\",\"\",IF(OR('TSA Input'!J1284=\"Yes\",'TSA Input'!J1284=\"Contingent\"),'TSA Input'!G1284,\"\"))","v":""},{"$f":"IF('TSA Input'!J1284=\"\",\"\",IF(OR('TSA Input'!J1284=\"Yes\",'TSA Input'!J1284=\"Contingent\"),'TSA Input'!F1284,\"\"))","v":""},{"$f":"IF($C1322=\"\",\"\",SUM(J1322:L1322))","v":""},"Required","Required"]
["",null,{"$f":"IF('TSA Input'!J1285=\"\",\"\",IF(OR('TSA Input'!J1285=\"Yes\",'TSA Input'!J1285=\"Contingent\"),'TSA Input'!B1285,\"Ineligible\"))","v":""},{"$f":"IF('TSA Input'!J1285=\"\",\"\",IF(OR('TSA Input'!J1285=\"Yes\",'TSA Input'!J1285=\"Contingent\"),'TSA Input'!I1285,\"\"))","v":""},{"$f":"IF('TSA Input'!J1285=\"\",\"\",IF(OR('TSA Input'!J1285=\"Yes\",'TSA Input'!J1285=\"Contingent\"),'TSA Input'!C1285,\"\"))","v":""},{"$f":"IF('TSA Input'!J1285=\"\",\"\",IF(OR('TSA Input'!J1285=\"Yes\",'TSA Input'!J1285=\"Contingent\"),'TSA Input'!D1285,\"\"))","v":""},{"$f":"IF('TSA Input'!J1285=\"\",\"\",IF(OR('TSA Input'!J1285=\"Yes\",'TSA Input'!J1285=\"Contingent\"),'TSA Input'!G1285,\"\"))","v":""},{"$f":"IF('TSA Input'!J1285=\"\",\"\",IF(OR('TSA Input'!J1285=\"Yes\",'TSA Input'!J1285=\"Contingent\"),'TSA Input'!F1285,\"\"))","v":""},"",{"$f":"IF('TSA Input'!J1285=\"\",\"\",IF(OR('TSA Input'!J1285=\"Yes\",'TSA Input'!J1285=\"Contingent\"),'TSA Input'!D1285,\"\"))","v":""},{"$f":"IF('TSA Input'!J1285=\"\",\"\",IF(OR('TSA Input'!J1285=\"Yes\",'TSA Input'!J1285=\"Contingent\"),'TSA Input'!G1285,\"\"))","v":""},{"$f":"IF('TSA Input'!J1285=\"\",\"\",IF(OR('TSA Input'!J1285=\"Yes\",'TSA Input'!J1285=\"Contingent\"),'TSA Input'!F1285,\"\"))","v":""},"","Required","Required"]
["",null,{"$f":"IF('TSA Input'!J1286=\"\",\"\",IF(OR('TSA Input'!J1286=\"Yes\",'TSA Input'!J1286=\"Contingent\"),'TSA Input'!B1286,\"Ineligible\"))","v":""},{"$f":"IF('TSA Input'!J1286=\"\",\"\",IF(OR('TSA Input'!J1286=\"Yes\",'TSA Input'!J1286=\"Contingent\"),'TSA Input'!I1286,\"\"))","v":""},{"$f":"IF('TSA Input'!J1286=\"\",\"\",IF(OR('TSA Input'!J1286=\"Yes\",'TSA Input'!J1286=\"Contingent\"),'TSA Input'!C1286,\"\"))","v":""},{"$f":"IF('TSA Input'!J1286=\"\",\"\",IF(OR('TSA Input'!J1286=\"Yes\",'TSA Input'!J1286=\"Contingent\"),'TSA Input'!D1286,\"\"))","v":""},{"$f":"IF('TSA Input'!J1286=\"\",\"\",IF(OR('TSA Input'!J1286=\"Yes\",'TSA Input'!J1286=\"Contingent\"),'TSA Input'!G1286,\"\"))","v":""},{"$f":"IF('TSA Input'!J1286=\"\",\"\",IF(OR('TSA Input'!J1286=\"Yes\",'TSA Input'!J1286=\"Contingent\"),'TSA Input'!F1286,\"\"))","v":""},"",{"$f":"IF('TSA Input'!J1286=\"\",\"\",IF(OR('TSA Input'!J1286=\"Yes\",'TSA Input'!J1286=\"Contingent\"),'TSA Input'!D1286,\"\"))","v":""},{"$f":"IF('TSA Input'!J1286=\"\",\"\",IF(OR('TSA Input'!J1286=\"Yes\",'TSA Input'!J1286=\"Contingent\"),'TSA Input'!G1286,\"\"))","v":""},{"$f":"IF('TSA Input'!J1286=\"\",\"\",IF(OR('TSA Input'!J1286=\"Yes\",'TSA Input'!J1286=\"Contingent\"),'TSA Input'!F1286,\"\"))","v":""},"","Required","Required"]
["",null,{"$f":"IF('TSA Input'!J1287=\"\",\"\",IF(OR('TSA Input'!J1287=\"Yes\",'TSA Input'!J1287=\"Contingent\"),'TSA Input'!B1287,\"Ineligible\"))","v":""},{"$f":"IF('TSA Input'!J1287=\"\",\"\",IF(OR('TSA Input'!J1287=\"Yes\",'TSA Input'!J1287=\"Contingent\"),'TSA Input'!I1287,\"\"))","v":""},{"$f":"IF('TSA Input'!J1287=\"\",\"\",IF(OR('TSA Input'!J1287=\"Yes\",'TSA Input'!J1287=\"Contingent\"),'TSA Input'!C1287,\"\"))","v":""},{"$f":"IF('TSA Input'!J1287=\"\",\"\",IF(OR('TSA Input'!J1287=\"Yes\",'TSA Input'!J1287=\"Contingent\"),'TSA Input'!D1287,\"\"))","v":""},{"$f":"IF('TSA Input'!J1287=\"\",\"\",IF(OR('TSA Input'!J1287=\"Yes\",'TSA Input'!J1287=\"Contingent\"),'TSA Input'!G1287,\"\"))","v":""},{"$f":"IF('TSA Input'!J1287=\"\",\"\",IF(OR('TSA Input'!J1287=\"Yes\",'TSA Input'!J1287=\"Contingent\"),'TSA Input'!F1287,\"\"))","v":""},"",{"$f":"IF('TSA Input'!J1287=\"\",\"\",IF(OR('TSA Input'!J1287=\"Yes\",'TSA Input'!J1287=\"Contingent\"),'TSA Input'!D1287,\"\"))","v":""},{"$f":"IF('TSA Input'!J1287=\"\",\"\",IF(OR('TSA Input'!J1287=\"Yes\",'TSA Input'!J1287=\"Contingent\"),'TSA Input'!G1287,\"\"))","v":""},{"$f":"IF('TSA Input'!J1287=\"\",\"\",IF(OR('TSA Input'!J1287=\"Yes\",'TSA Input'!J1287=\"Contingent\"),'TSA Input'!F1287,\"\"))","v":""},"","Required","Required"]
["",null,{"$f":"IF('TSA Input'!J1288=\"\",\"\",IF(OR('TSA Input'!J1288=\"Yes\",'TSA Input'!J1288=\"Contingent\"),'TSA Input'!B1288,\"Ineligible\"))","v":""},{"$f":"IF('TSA Input'!J1288=\"\",\"\",IF(OR('TSA Input'!J1288=\"Yes\",'TSA Input'!J1288=\"Contingent\"),'TSA Input'!I1288,\"\"))","v":""},{"$f":"IF('TSA Input'!J1288=\"\",\"\",IF(OR('TSA Input'!J1288=\"Yes\",'TSA Input'!J1288=\"Contingent\"),'TSA Input'!C1288,\"\"))","v":""},{"$f":"IF('TSA Input'!J1288=\"\",\"\",IF(OR('TSA Input'!J1288=\"Yes\",'TSA Input'!J1288=\"Contingent\"),'TSA Input'!D1288,\"\"))","v":""},{"$f":"IF('TSA Input'!J1288=\"\",\"\",IF(OR('TSA Input'!J1288=\"Yes\",'TSA Input'!J1288=\"Contingent\"),'TSA Input'!G1288,\"\"))","v":""},{"$f":"IF('TSA Input'!J1288=\"\",\"\",IF(OR('TSA Input'!J1288=\"Yes\",'TSA Input'!J1288=\"Contingent\"),'TSA Input'!F1288,\"\"))","v":""},"",{"$f":"IF('TSA Input'!J1288=\"\",\"\",IF(OR('TSA Input'!J1288=\"Yes\",'TSA Input'!J1288=\"Contingent\"),'TSA Input'!D1288,\"\"))","v":""},{"$f":"IF('TSA Input'!J1288=\"\",\"\",IF(OR('TSA Input'!J1288=\"Yes\",'TSA Input'!J1288=\"Contingent\"),'TSA Input'!G1288,\"\"))","v":""},{"$f":"IF('TSA Input'!J1288=\"\",\"\",IF(OR('TSA Input'!J1288=\"Yes\",'TSA Input'!J1288=\"Contingent\"),'TSA Input'!F1288,\"\"))","v":""},"","Required","Required"]
["",null,{"$f":"IF('TSA Input'!J1289=\"\",\"\",IF(OR('TSA Input'!J1289=\"Yes\",'TSA Input'!J1289=\"Contingent\"),'TSA Input'!B1289,\"Ineligible\"))","v":""},{"$f":"IF('TSA Input'!J1289=\"\",\"\",IF(OR('TSA Input'!J1289=\"Yes\",'TSA Input'!J1289=\"Contingent\"),'TSA Input'!I1289,\"\"))","v":""},{"$f":"IF('TSA Input'!J1289=\"\",\"\",IF(OR('TSA Input'!J1289=\"Yes\",'TSA Input'!J1289=\"Contingent\"),'TSA Input'!C1289,\"\"))","v":""},{"$f":"IF('TSA Input'!J1289=\"\",\"\",IF(OR('TSA Input'!J1289=\"Yes\",'TSA Input'!J1289=\"Contingent\"),'TSA Input'!D1289,\"\"))","v":""},{"$f":"IF('TSA Input'!J1289=\"\",\"\",IF(OR('TSA Input'!J1289=\"Yes\",'TSA Input'!J1289=\"Contingent\"),'TSA Input'!G1289,\"\"))","v":""},{"$f":"IF('TSA Input'!J1289=\"\",\"\",IF(OR('TSA Input'!J1289=\"Yes\",'TSA Input'!J1289=\"Contingent\"),'TSA Input'!F1289,\"\"))","v":""},"",{"$f":"IF('TSA Input'!J1289=\"\",\"\",IF(OR('TSA Input'!J1289=\"Yes\",'TSA Input'!J1289=\"Contingent\"),'TSA Input'!D1289,\"\"))","v":""},{"$f":"IF('TSA Input'!J1289=\"\",\"\",IF(OR('TSA Input'!J1289=\"Yes\",'TSA Input'!J1289=\"Contingent\"),'TSA Input'!G1289,\"\"))","v":""},{"$f":"IF('TSA Input'!J1289=\"\",\"\",IF(OR('TSA Input'!J1289=\"Yes\",'TSA Input'!J1289=\"Contingent\"),'TSA Input'!F1289,\"\"))","v":""},"","Required","Required"]
["",null,{"$f":"IF('TSA Input'!J1290=\"\",\"\",IF(OR('TSA Input'!J1290=\"Yes\",'TSA Input'!J1290=\"Contingent\"),'TSA Input'!B1290,\"Ineligible\"))","v":""},{"$f":"IF('TSA Input'!J1290=\"\",\"\",IF(OR('TSA Input'!J1290=\"Yes\",'TSA Input'!J1290=\"Contingent\"),'TSA Input'!I1290,\"\"))","v":""},{"$f":"IF('TSA Input'!J1290=\"\",\"\",IF(OR('TSA Input'!J1290=\"Yes\",'TSA Input'!J1290=\"Contingent\"),'TSA Input'!C1290,\"\"))","v":""},{"$f":"IF('TSA Input'!J1290=\"\",\"\",IF(OR('TSA Input'!J1290=\"Yes\",'TSA Input'!J1290=\"Contingent\"),'TSA Input'!D1290,\"\"))","v":""},{"$f":"IF('TSA Input'!J1290=\"\",\"\",IF(OR('TSA Input'!J1290=\"Yes\",'TSA Input'!J1290=\"Contingent\"),'TSA Input'!G1290,\"\"))","v":""},{"$f":"IF('TSA Input'!J1290=\"\",\"\",IF(OR('TSA Input'!J1290=\"Yes\",'TSA Input'!J1290=\"Contingent\"),'TSA Input'!F1290,\"\"))","v":""},"",{"$f":"IF('TSA Input'!J1290=\"\",\"\",IF(OR('TSA Input'!J1290=\"Yes\",'TSA Input'!J1290=\"Contingent\"),'TSA Input'!D1290,\"\"))","v":""},{"$f":"IF('TSA Input'!J1290=\"\",\"\",IF(OR('TSA Input'!J1290=\"Yes\",'TSA Input'!J1290=\"Contingent\"),'TSA Input'!G1290,\"\"))","v":""},{"$f":"IF('TSA Input'!J1290=\"\",\"\",IF(OR('TSA Input'!J1290=\"Yes\",'TSA Input'!J1290=\"Contingent\"),'TSA Input'!F1290,\"\"))","v":""},"","Required","Required"]
["",null,{"$f":"IF('TSA Input'!J1291=\"\",\"\",IF(OR('TSA Input'!J1291=\"Yes\",'TSA Input'!J1291=\"Contingent\"),'TSA Input'!B1291,\"Ineligible\"))","v":""},{"$f":"IF('TSA Input'!J1291=\"\",\"\",IF(OR('TSA Input'!J1291=\"Yes\",'TSA Input'!J1291=\"Contingent\"),'TSA Input'!I1291,\"\"))","v":""},{"$f":"IF('TSA Input'!J1291=\"\",\"\",IF(OR('TSA Input'!J1291=\"Yes\",'TSA Input'!J1291=\"Contingent\"),'TSA Input'!C1291,\"\"))","v":""},{"$f":"IF('TSA Input'!J1291=\"\",\"\",IF(OR('TSA Input'!J1291=\"Yes\",'TSA Input'!J1291=\"Contingent\"),'TSA Input'!D1291,\"\"))","v":""},{"$f":"IF('TSA Input'!J1291=\"\",\"\",IF(OR('TSA Input'!J1291=\"Yes\",'TSA Input'!J1291=\"Contingent\"),'TSA Input'!G1291,\"\"))","v":""},{"$f":"IF('TSA Input'!J1291=\"\",\"\",IF(OR('TSA Input'!J1291=\"Yes\",'TSA Input'!J1291=\"Contingent\"),'TSA Input'!F1291,\"\"))","v":""},"",{"$f":"IF('TSA Input'!J1291=\"\",\"\",IF(OR('TSA Input'!J1291=\"Yes\",'TSA Input'!J1291=\"Contingent\"),'TSA Input'!D1291,\"\"))","v":""},{"$f":"IF('TSA Input'!J1291=\"\",\"\",IF(OR('TSA Input'!J1291=\"Yes\",'TSA Input'!J1291=\"Contingent\"),'TSA Input'!G1291,\"\"))","v":""},{"$f":"IF('TSA Input'!J1291=\"\",\"\",IF(OR('TSA Input'!J1291=\"Yes\",'TSA Input'!J1291=\"Contingent\"),'TSA Input'!F1291,\"\"))","v":""},"","Required","Required"]
["",null,{"$f":"IF('TSA Input'!J1292=\"\",\"\",IF(OR('TSA Input'!J1292=\"Yes\",'TSA Input'!J1292=\"Contingent\"),'TSA Input'!B1292,\"Ineligible\"))","v":""},{"$f":"IF('TSA Input'!J1292=\"\",\"\",IF(OR('TSA Input'!J1292=\"Yes\",'TSA Input'!J1292=\"Contingent\"),'TSA Input'!I1292,\"\"))","v":""},{"$f":"IF('TSA Input'!J1292=\"\",\"\",IF(OR('TSA Input'!J1292=\"Yes\",'TSA Input'!J1292=\"Contingent\"),'TSA Input'!C1292,\"\"))","v":""},{"$f":"IF('TSA Input'!J1292=\"\",\"\",IF(OR('TSA Input'!J1292=\"Yes\",'TSA Input'!J1292=\"Contingent\"),'TSA Input'!D1292,\"\"))","v":""},{"$f":"IF('TSA Input'!J1292=\"\",\"\",IF(OR('TSA Input'!J1292=\"Yes\",'TSA Input'!J1292=\"Contingent\"),'TSA Input'!G1292,\"\"))","v":""},{"$f":"IF('TSA Input'!J1292=\"\",\"\",IF(OR('TSA Input'!J1292=\"Yes\",'TSA Input'!J1292=\"Contingent\"),'TSA Input'!F1292,\"\"))","v":""},"",{"$f":"IF('TSA Input'!J1292=\"\",\"\",IF(OR('TSA Input'!J1292=\"Yes\",'TSA Input'!J1292=\"Contingent\"),'TSA Input'!D1292,\"\"))","v":""},{"$f":"IF('TSA Input'!J1292=\"\",\"\",IF(OR('TSA Input'!J1292=\"Yes\",'TSA Input'!J1292=\"Contingent\"),'TSA Input'!G1292,\"\"))","v":""},{"$f":"IF('TSA Input'!J1292=\"\",\"\",IF(OR('TSA Input'!J1292=\"Yes\",'TSA Input'!J1292=\"Contingent\"),'TSA Input'!F1292,\"\"))","v":""},"","Required","Required"]
["",null,{"$f":"IF('TSA Input'!J1293=\"\",\"\",IF(OR('TSA Input'!J1293=\"Yes\",'TSA Input'!J1293=\"Contingent\"),'TSA Input'!B1293,\"Ineligible\"))","v":""},{"$f":"IF('TSA Input'!J1293=\"\",\"\",IF(OR('TSA Input'!J1293=\"Yes\",'TSA Input'!J1293=\"Contingent\"),'TSA Input'!I1293,\"\"))","v":""},{"$f":"IF('TSA Input'!J1293=\"\",\"\",IF(OR('TSA Input'!J1293=\"Yes\",'TSA Input'!J1293=\"Contingent\"),'TSA Input'!C1293,\"\"))","v":""},{"$f":"IF('TSA Input'!J1293=\"\",\"\",IF(OR('TSA Input'!J1293=\"Yes\",'TSA Input'!J1293=\"Contingent\"),'TSA Input'!D1293,\"\"))","v":""},{"$f":"IF('TSA Input'!J1293=\"\",\"\",IF(OR('TSA Input'!J1293=\"Yes\",'TSA Input'!J1293=\"Contingent\"),'TSA Input'!G1293,\"\"))","v":""},{"$f":"IF('TSA Input'!J1293=\"\",\"\",IF(OR('TSA Input'!J1293=\"Yes\",'TSA Input'!J1293=\"Contingent\"),'TSA Input'!F1293,\"\"))","v":""},"",{"$f":"IF('TSA Input'!J1293=\"\",\"\",IF(OR('TSA Input'!J1293=\"Yes\",'TSA Input'!J1293=\"Contingent\"),'TSA Input'!D1293,\"\"))","v":""},{"$f":"IF('TSA Input'!J1293=\"\",\"\",IF(OR('TSA Input'!J1293=\"Yes\",'TSA Input'!J1293=\"Contingent\"),'TSA Input'!G1293,\"\"))","v":""},{"$f":"IF('TSA Input'!J1293=\"\",\"\",IF(OR('TSA Input'!J1293=\"Yes\",'TSA Input'!J1293=\"Contingent\"),'TSA Input'!F1293,\"\"))","v":""},"","Required","Required"]
["",null,{"$f":"IF('TSA Input'!J1294=\"\",\"\",IF(OR('TSA Input'!J1294=\"Yes\",'TSA Input'!J1294=\"Contingent\"),'TSA Input'!B1294,\"Ineligible\"))","v":""},{"$f":"IF('TSA Input'!J1294=\"\",\"\",IF(OR('TSA Input'!J1294=\"Yes\",'TSA Input'!J1294=\"Contingent\"),'TSA Input'!I1294,\"\"))","v":""},{"$f":"IF('TSA Input'!J1294=\"\",\"\",IF(OR('TSA Input'!J1294=\"Yes\",'TSA Input'!J1294=\"Contingent\"),'TSA Input'!C1294,\"\"))","v":""},{"$f":"IF('TSA Input'!J1294=\"\",\"\",IF(OR('TSA Input'!J1294=\"Yes\",'TSA Input'!J1294=\"Contingent\"),'TSA Input'!D1294,\"\"))","v":""},{"$f":"IF('TSA Input'!J1294=\"\",\"\",IF(OR('TSA Input'!J1294=\"Yes\",'TSA Input'!J1294=\"Contingent\"),'TSA Input'!G1294,\"\"))","v":""},{"$f":"IF('TSA Input'!J1294=\"\",\"\",IF(OR('TSA Input'!J1294=\"Yes\",'TSA Input'!J1294=\"Contingent\"),'TSA Input'!F1294,\"\"))","v":""},"",{"$f":"IF('TSA Input'!J1294=\"\",\"\",IF(OR('TSA Input'!J1294=\"Yes\",'TSA Input'!J1294=\"Contingent\"),'TSA Input'!D1294,\"\"))","v":""},{"$f":"IF('TSA Input'!J1294=\"\",\"\",IF(OR('TSA Input'!J1294=\"Yes\",'TSA Input'!J1294=\"Contingent\"),'TSA Input'!G1294,\"\"))","v":""},{"$f":"IF('TSA Input'!J1294=\"\",\"\",IF(OR('TSA Input'!J1294=\"Yes\",'TSA Input'!J1294=\"Contingent\"),'TSA Input'!F1294,\"\"))","v":""},"","Required","Required"]
["",null,{"$f":"IF('TSA Input'!J1295=\"\",\"\",IF(OR('TSA Input'!J1295=\"Yes\",'TSA Input'!J1295=\"Contingent\"),'TSA Input'!B1295,\"Ineligible\"))","v":""},{"$f":"IF('TSA Input'!J1295=\"\",\"\",IF(OR('TSA Input'!J1295=\"Yes\",'TSA Input'!J1295=\"Contingent\"),'TSA Input'!I1295,\"\"))","v":""},{"$f":"IF('TSA Input'!J1295=\"\",\"\",IF(OR('TSA Input'!J1295=\"Yes\",'TSA Input'!J1295=\"Contingent\"),'TSA Input'!C1295,\"\"))","v":""},{"$f":"IF('TSA Input'!J1295=\"\",\"\",IF(OR('TSA Input'!J1295=\"Yes\",'TSA Input'!J1295=\"Contingent\"),'TSA Input'!D1295,\"\"))","v":""},{"$f":"IF('TSA Input'!J1295=\"\",\"\",IF(OR('TSA Input'!J1295=\"Yes\",'TSA Input'!J1295=\"Contingent\"),'TSA Input'!G1295,\"\"))","v":""},{"$f":"IF('TSA Input'!J1295=\"\",\"\",IF(OR('TSA Input'!J1295=\"Yes\",'TSA Input'!J1295=\"Contingent\"),'TSA Input'!F1295,\"\"))","v":""},"",{"$f":"IF('TSA Input'!J1295=\"\",\"\",IF(OR('TSA Input'!J1295=\"Yes\",'TSA Input'!J1295=\"Contingent\"),'TSA Input'!D1295,\"\"))","v":""},{"$f":"IF('TSA Input'!J1295=\"\",\"\",IF(OR('TSA Input'!J1295=\"Yes\",'TSA Input'!J1295=\"Contingent\"),'TSA Input'!G1295,\"\"))","v":""},{"$f":"IF('TSA Input'!J1295=\"\",\"\",IF(OR('TSA Input'!J1295=\"Yes\",'TSA Input'!J1295=\"Contingent\"),'TSA Input'!F1295,\"\"))","v":""},"","Required","Required"]
["",null,{"$f":"IF('TSA Input'!J1296=\"\",\"\",IF(OR('TSA Input'!J1296=\"Yes\",'TSA Input'!J1296=\"Contingent\"),'TSA Input'!B1296,\"Ineligible\"))","v":""},{"$f":"IF('TSA Input'!J1296=\"\",\"\",IF(OR('TSA Input'!J1296=\"Yes\",'TSA Input'!J1296=\"Contingent\"),'TSA Input'!I1296,\"\"))","v":""},{"$f":"IF('TSA Input'!J1296=\"\",\"\",IF(OR('TSA Input'!J1296=\"Yes\",'TSA Input'!J1296=\"Contingent\"),'TSA Input'!C1296,\"\"))","v":""},{"$f":"IF('TSA Input'!J1296=\"\",\"\",IF(OR('TSA Input'!J1296=\"Yes\",'TSA Input'!J1296=\"Contingent\"),'TSA Input'!D1296,\"\"))","v":""},{"$f":"IF('TSA Input'!J1296=\"\",\"\",IF(OR('TSA Input'!J1296=\"Yes\",'TSA Input'!J1296=\"Contingent\"),'TSA Input'!G1296,\"\"))","v":""},{"$f":"IF('TSA Input'!J1296=\"\",\"\",IF(OR('TSA Input'!J1296=\"Yes\",'TSA Input'!J1296=\"Contingent\"),'TSA Input'!F1296,\"\"))","v":""},"",{"$f":"IF('TSA Input'!J1296=\"\",\"\",IF(OR('TSA Input'!J1296=\"Yes\",'TSA Input'!J1296=\"Contingent\"),'TSA Input'!D1296,\"\"))","v":""},{"$f":"IF('TSA Input'!J1296=\"\",\"\",IF(OR('TSA Input'!J1296=\"Yes\",'TSA Input'!J1296=\"Contingent\"),'TSA Input'!G1296,\"\"))","v":""},{"$f":"IF('TSA Input'!J1296=\"\",\"\",IF(OR('TSA Input'!J1296=\"Yes\",'TSA Input'!J1296=\"Contingent\"),'TSA Input'!F1296,\"\"))","v":""},"","Required","Required"]
["",null,{"$f":"IF('TSA Input'!J1297=\"\",\"\",IF(OR('TSA Input'!J1297=\"Yes\",'TSA Input'!J1297=\"Contingent\"),'TSA Input'!B1297,\"Ineligible\"))","v":""},{"$f":"IF('TSA Input'!J1297=\"\",\"\",IF(OR('TSA Input'!J1297=\"Yes\",'TSA Input'!J1297=\"Contingent\"),'TSA Input'!I1297,\"\"))","v":""},{"$f":"IF('TSA Input'!J1297=\"\",\"\",IF(OR('TSA Input'!J1297=\"Yes\",'TSA Input'!J1297=\"Contingent\"),'TSA Input'!C1297,\"\"))","v":""},{"$f":"IF('TSA Input'!J1297=\"\",\"\",IF(OR('TSA Input'!J1297=\"Yes\",'TSA Input'!J1297=\"Contingent\"),'TSA Input'!D1297,\"\"))","v":""},{"$f":"IF('TSA Input'!J1297=\"\",\"\",IF(OR('TSA Input'!J1297=\"Yes\",'TSA Input'!J1297=\"Contingent\"),'TSA Input'!G1297,\"\"))","v":""},{"$f":"IF('TSA Input'!J1297=\"\",\"\",IF(OR('TSA Input'!J1297=\"Yes\",'TSA Input'!J1297=\"Contingent\"),'TSA Input'!F1297,\"\"))","v":""},"",{"$f":"IF('TSA Input'!J1297=\"\",\"\",IF(OR('TSA Input'!J1297=\"Yes\",'TSA Input'!J1297=\"Contingent\"),'TSA Input'!D1297,\"\"))","v":""},{"$f":"IF('TSA Input'!J1297=\"\",\"\",IF(OR('TSA Input'!J1297=\"Yes\",'TSA Input'!J1297=\"Contingent\"),'TSA Input'!G1297,\"\"))","v":""},{"$f":"IF('TSA Input'!J1297=\"\",\"\",IF(OR('TSA Input'!J1297=\"Yes\",'TSA Input'!J1297=\"Contingent\"),'TSA Input'!F1297,\"\"))","v":""},"","Required","Required"]
["",null,{"$f":"IF('TSA Input'!J1298=\"\",\"\",IF(OR('TSA Input'!J1298=\"Yes\",'TSA Input'!J1298=\"Contingent\"),'TSA Input'!B1298,\"Ineligible\"))","v":""},{"$f":"IF('TSA Input'!J1298=\"\",\"\",IF(OR('TSA Input'!J1298=\"Yes\",'TSA Input'!J1298=\"Contingent\"),'TSA Input'!I1298,\"\"))","v":""},{"$f":"IF('TSA Input'!J1298=\"\",\"\",IF(OR('TSA Input'!J1298=\"Yes\",'TSA Input'!J1298=\"Contingent\"),'TSA Input'!C1298,\"\"))","v":""},{"$f":"IF('TSA Input'!J1298=\"\",\"\",IF(OR('TSA Input'!J1298=\"Yes\",'TSA Input'!J1298=\"Contingent\"),'TSA Input'!D1298,\"\"))","v":""},{"$f":"IF('TSA Input'!J1298=\"\",\"\",IF(OR('TSA Input'!J1298=\"Yes\",'TSA Input'!J1298=\"Contingent\"),'TSA Input'!G1298,\"\"))","v":""},{"$f":"IF('TSA Input'!J1298=\"\",\"\",IF(OR('TSA Input'!J1298=\"Yes\",'TSA Input'!J1298=\"Contingent\"),'TSA Input'!F1298,\"\"))","v":""},"",{"$f":"IF('TSA Input'!J1298=\"\",\"\",IF(OR('TSA Input'!J1298=\"Yes\",'TSA Input'!J1298=\"Contingent\"),'TSA Input'!D1298,\"\"))","v":""},{"$f":"IF('TSA Input'!J1298=\"\",\"\",IF(OR('TSA Input'!J1298=\"Yes\",'TSA Input'!J1298=\"Contingent\"),'TSA Input'!G1298,\"\"))","v":""},{"$f":"IF('TSA Input'!J1298=\"\",\"\",IF(OR('TSA Input'!J1298=\"Yes\",'TSA Input'!J1298=\"Contingent\"),'TSA Input'!F1298,\"\"))","v":""},"","Required","Required"]
["",null,{"$f":"IF('TSA Input'!J1299=\"\",\"\",IF(OR('TSA Input'!J1299=\"Yes\",'TSA Input'!J1299=\"Contingent\"),'TSA Input'!B1299,\"Ineligible\"))","v":""},{"$f":"IF('TSA Input'!J1299=\"\",\"\",IF(OR('TSA Input'!J1299=\"Yes\",'TSA Input'!J1299=\"Contingent\"),'TSA Input'!I1299,\"\"))","v":""},{"$f":"IF('TSA Input'!J1299=\"\",\"\",IF(OR('TSA Input'!J1299=\"Yes\",'TSA Input'!J1299=\"Contingent\"),'TSA Input'!C1299,\"\"))","v":""},{"$f":"IF('TSA Input'!J1299=\"\",\"\",IF(OR('TSA Input'!J1299=\"Yes\",'TSA Input'!J1299=\"Contingent\"),'TSA Input'!D1299,\"\"))","v":""},{"$f":"IF('TSA Input'!J1299=\"\",\"\",IF(OR('TSA Input'!J1299=\"Yes\",'TSA Input'!J1299=\"Contingent\"),'TSA Input'!G1299,\"\"))","v":""},{"$f":"IF('TSA Input'!J1299=\"\",\"\",IF(OR('TSA Input'!J1299=\"Yes\",'TSA Input'!J1299=\"Contingent\"),'TSA Input'!F1299,\"\"))","v":""},"",{"$f":"IF('TSA Input'!J1299=\"\",\"\",IF(OR('TSA Input'!J1299=\"Yes\",'TSA Input'!J1299=\"Contingent\"),'TSA Input'!D1299,\"\"))","v":""},{"$f":"IF('TSA Input'!J1299=\"\",\"\",IF(OR('TSA Input'!J1299=\"Yes\",'TSA Input'!J1299=\"Contingent\"),'TSA Input'!G1299,\"\"))","v":""},{"$f":"IF('TSA Input'!J1299=\"\",\"\",IF(OR('TSA Input'!J1299=\"Yes\",'TSA Input'!J1299=\"Contingent\"),'TSA Input'!F1299,\"\"))","v":""},"","Required","Required"]
["",null,{"$f":"IF('TSA Input'!J1300=\"\",\"\",IF(OR('TSA Input'!J1300=\"Yes\",'TSA Input'!J1300=\"Contingent\"),'TSA Input'!B1300,\"Ineligible\"))","v":""},{"$f":"IF('TSA Input'!J1300=\"\",\"\",IF(OR('TSA Input'!J1300=\"Yes\",'TSA Input'!J1300=\"Contingent\"),'TSA Input'!I1300,\"\"))","v":""},{"$f":"IF('TSA Input'!J1300=\"\",\"\",IF(OR('TSA Input'!J1300=\"Yes\",'TSA Input'!J1300=\"Contingent\"),'TSA Input'!C1300,\"\"))","v":""},{"$f":"IF('TSA Input'!J1300=\"\",\"\",IF(OR('TSA Input'!J1300=\"Yes\",'TSA Input'!J1300=\"Contingent\"),'TSA Input'!D1300,\"\"))","v":""},{"$f":"IF('TSA Input'!J1300=\"\",\"\",IF(OR('TSA Input'!J1300=\"Yes\",'TSA Input'!J1300=\"Contingent\"),'TSA Input'!G1300,\"\"))","v":""},{"$f":"IF('TSA Input'!J1300=\"\",\"\",IF(OR('TSA Input'!J1300=\"Yes\",'TSA Input'!J1300=\"Contingent\"),'TSA Input'!F1300,\"\"))","v":""},"",{"$f":"IF('TSA Input'!J1300=\"\",\"\",IF(OR('TSA Input'!J1300=\"Yes\",'TSA Input'!J1300=\"Contingent\"),'TSA Input'!D1300,\"\"))","v":""},{"$f":"IF('TSA Input'!J1300=\"\",\"\",IF(OR('TSA Input'!J1300=\"Yes\",'TSA Input'!J1300=\"Contingent\"),'TSA Input'!G1300,\"\"))","v":""},{"$f":"IF('TSA Input'!J1300=\"\",\"\",IF(OR('TSA Input'!J1300=\"Yes\",'TSA Input'!J1300=\"Contingent\"),'TSA Input'!F1300,\"\"))","v":""},"","Required","Required"]
["",null,{"$f":"IF('TSA Input'!J1301=\"\",\"\",IF(OR('TSA Input'!J1301=\"Yes\",'TSA Input'!J1301=\"Contingent\"),'TSA Input'!B1301,\"Ineligible\"))","v":""},{"$f":"IF('TSA Input'!J1301=\"\",\"\",IF(OR('TSA Input'!J1301=\"Yes\",'TSA Input'!J1301=\"Contingent\"),'TSA Input'!I1301,\"\"))","v":""},{"$f":"IF('TSA Input'!J1301=\"\",\"\",IF(OR('TSA Input'!J1301=\"Yes\",'TSA Input'!J1301=\"Contingent\"),'TSA Input'!C1301,\"\"))","v":""},{"$f":"IF('TSA Input'!J1301=\"\",\"\",IF(OR('TSA Input'!J1301=\"Yes\",'TSA Input'!J1301=\"Contingent\"),'TSA Input'!D1301,\"\"))","v":""},{"$f":"IF('TSA Input'!J1301=\"\",\"\",IF(OR('TSA Input'!J1301=\"Yes\",'TSA Input'!J1301=\"Contingent\"),'TSA Input'!G1301,\"\"))","v":""},{"$f":"IF('TSA Input'!J1301=\"\",\"\",IF(OR('TSA Input'!J1301=\"Yes\",'TSA Input'!J1301=\"Contingent\"),'TSA Input'!F1301,\"\"))","v":""},"",{"$f":"IF('TSA Input'!J1301=\"\",\"\",IF(OR('TSA Input'!J1301=\"Yes\",'TSA Input'!J1301=\"Contingent\"),'TSA Input'!D1301,\"\"))","v":""},{"$f":"IF('TSA Input'!J1301=\"\",\"\",IF(OR('TSA Input'!J1301=\"Yes\",'TSA Input'!J1301=\"Contingent\"),'TSA Input'!G1301,\"\"))","v":""},{"$f":"IF('TSA Input'!J1301=\"\",\"\",IF(OR('TSA Input'!J1301=\"Yes\",'TSA Input'!J1301=\"Contingent\"),'TSA Input'!F1301,\"\"))","v":""},"","Required","Required"]
["",null,{"$f":"IF('TSA Input'!J1302=\"\",\"\",IF(OR('TSA Input'!J1302=\"Yes\",'TSA Input'!J1302=\"Contingent\"),'TSA Input'!B1302,\"Ineligible\"))","v":""},{"$f":"IF('TSA Input'!J1302=\"\",\"\",IF(OR('TSA Input'!J1302=\"Yes\",'TSA Input'!J1302=\"Contingent\"),'TSA Input'!I1302,\"\"))","v":""},{"$f":"IF('TSA Input'!J1302=\"\",\"\",IF(OR('TSA Input'!J1302=\"Yes\",'TSA Input'!J1302=\"Contingent\"),'TSA Input'!C1302,\"\"))","v":""},{"$f":"IF('TSA Input'!J1302=\"\",\"\",IF(OR('TSA Input'!J1302=\"Yes\",'TSA Input'!J1302=\"Contingent\"),'TSA Input'!D1302,\"\"))","v":""},{"$f":"IF('TSA Input'!J1302=\"\",\"\",IF(OR('TSA Input'!J1302=\"Yes\",'TSA Input'!J1302=\"Contingent\"),'TSA Input'!G1302,\"\"))","v":""},{"$f":"IF('TSA Input'!J1302=\"\",\"\",IF(OR('TSA Input'!J1302=\"Yes\",'TSA Input'!J1302=\"Contingent\"),'TSA Input'!F1302,\"\"))","v":""},"",{"$f":"IF('TSA Input'!J1302=\"\",\"\",IF(OR('TSA Input'!J1302=\"Yes\",'TSA Input'!J1302=\"Contingent\"),'TSA Input'!D1302,\"\"))","v":""},{"$f":"IF('TSA Input'!J1302=\"\",\"\",IF(OR('TSA Input'!J1302=\"Yes\",'TSA Input'!J1302=\"Contingent\"),'TSA Input'!G1302,\"\"))","v":""},{"$f":"IF('TSA Input'!J1302=\"\",\"\",IF(OR('TSA Input'!J1302=\"Yes\",'TSA Input'!J1302=\"Contingent\"),'TSA Input'!F1302,\"\"))","v":""},"","Required","Required"]
["",null,{"$f":"IF('TSA Input'!J1303=\"\",\"\",IF(OR('TSA Input'!J1303=\"Yes\",'TSA Input'!J1303=\"Contingent\"),'TSA Input'!B1303,\"Ineligible\"))","v":""},{"$f":"IF('TSA Input'!J1303=\"\",\"\",IF(OR('TSA Input'!J1303=\"Yes\",'TSA Input'!J1303=\"Contingent\"),'TSA Input'!I1303,\"\"))","v":""},{"$f":"IF('TSA Input'!J1303=\"\",\"\",IF(OR('TSA Input'!J1303=\"Yes\",'TSA Input'!J1303=\"Contingent\"),'TSA Input'!C1303,\"\"))","v":""},{"$f":"IF('TSA Input'!J1303=\"\",\"\",IF(OR('TSA Input'!J1303=\"Yes\",'TSA Input'!J1303=\"Contingent\"),'TSA Input'!D1303,\"\"))","v":""},{"$f":"IF('TSA Input'!J1303=\"\",\"\",IF(OR('TSA Input'!J1303=\"Yes\",'TSA Input'!J1303=\"Contingent\"),'TSA Input'!G1303,\"\"))","v":""},{"$f":"IF('TSA Input'!J1303=\"\",\"\",IF(OR('TSA Input'!J1303=\"Yes\",'TSA Input'!J1303=\"Contingent\"),'TSA Input'!F1303,\"\"))","v":""},"",{"$f":"IF('TSA Input'!J1303=\"\",\"\",IF(OR('TSA Input'!J1303=\"Yes\",'TSA Input'!J1303=\"Contingent\"),'TSA Input'!D1303,\"\"))","v":""},{"$f":"IF('TSA Input'!J1303=\"\",\"\",IF(OR('TSA Input'!J1303=\"Yes\",'TSA Input'!J1303=\"Contingent\"),'TSA Input'!G1303,\"\"))","v":""},{"$f":"IF('TSA Input'!J1303=\"\",\"\",IF(OR('TSA Input'!J1303=\"Yes\",'TSA Input'!J1303=\"Contingent\"),'TSA Input'!F1303,\"\"))","v":""},"","Required","Required"]
["",null,{"$f":"IF('TSA Input'!J1304=\"\",\"\",IF(OR('TSA Input'!J1304=\"Yes\",'TSA Input'!J1304=\"Contingent\"),'TSA Input'!B1304,\"Ineligible\"))","v":""},{"$f":"IF('TSA Input'!J1304=\"\",\"\",IF(OR('TSA Input'!J1304=\"Yes\",'TSA Input'!J1304=\"Contingent\"),'TSA Input'!I1304,\"\"))","v":""},{"$f":"IF('TSA Input'!J1304=\"\",\"\",IF(OR('TSA Input'!J1304=\"Yes\",'TSA Input'!J1304=\"Contingent\"),'TSA Input'!C1304,\"\"))","v":""},{"$f":"IF('TSA Input'!J1304=\"\",\"\",IF(OR('TSA Input'!J1304=\"Yes\",'TSA Input'!J1304=\"Contingent\"),'TSA Input'!D1304,\"\"))","v":""},{"$f":"IF('TSA Input'!J1304=\"\",\"\",IF(OR('TSA Input'!J1304=\"Yes\",'TSA Input'!J1304=\"Contingent\"),'TSA Input'!G1304,\"\"))","v":""},{"$f":"IF('TSA Input'!J1304=\"\",\"\",IF(OR('TSA Input'!J1304=\"Yes\",'TSA Input'!J1304=\"Contingent\"),'TSA Input'!F1304,\"\"))","v":""},"",{"$f":"IF('TSA Input'!J1304=\"\",\"\",IF(OR('TSA Input'!J1304=\"Yes\",'TSA Input'!J1304=\"Contingent\"),'TSA Input'!D1304,\"\"))","v":""},{"$f":"IF('TSA Input'!J1304=\"\",\"\",IF(OR('TSA Input'!J1304=\"Yes\",'TSA Input'!J1304=\"Contingent\"),'TSA Input'!G1304,\"\"))","v":""},{"$f":"IF('TSA Input'!J1304=\"\",\"\",IF(OR('TSA Input'!J1304=\"Yes\",'TSA Input'!J1304=\"Contingent\"),'TSA Input'!F1304,\"\"))","v":""},"","Required","Required"]
["",null,{"$f":"IF('TSA Input'!J1305=\"\",\"\",IF(OR('TSA Input'!J1305=\"Yes\",'TSA Input'!J1305=\"Contingent\"),'TSA Input'!B1305,\"Ineligible\"))","v":""},{"$f":"IF('TSA Input'!J1305=\"\",\"\",IF(OR('TSA Input'!J1305=\"Yes\",'TSA Input'!J1305=\"Contingent\"),'TSA Input'!I1305,\"\"))","v":""},{"$f":"IF('TSA Input'!J1305=\"\",\"\",IF(OR('TSA Input'!J1305=\"Yes\",'TSA Input'!J1305=\"Contingent\"),'TSA Input'!C1305,\"\"))","v":""},{"$f":"IF('TSA Input'!J1305=\"\",\"\",IF(OR('TSA Input'!J1305=\"Yes\",'TSA Input'!J1305=\"Contingent\"),'TSA Input'!D1305,\"\"))","v":""},{"$f":"IF('TSA Input'!J1305=\"\",\"\",IF(OR('TSA Input'!J1305=\"Yes\",'TSA Input'!J1305=\"Contingent\"),'TSA Input'!G1305,\"\"))","v":""},{"$f":"IF('TSA Input'!J1305=\"\",\"\",IF(OR('TSA Input'!J1305=\"Yes\",'TSA Input'!J1305=\"Contingent\"),'TSA Input'!F1305,\"\"))","v":""},"",{"$f":"IF('TSA Input'!J1305=\"\",\"\",IF(OR('TSA Input'!J1305=\"Yes\",'TSA Input'!J1305=\"Contingent\"),'TSA Input'!D1305,\"\"))","v":""},{"$f":"IF('TSA Input'!J1305=\"\",\"\",IF(OR('TSA Input'!J1305=\"Yes\",'TSA Input'!J1305=\"Contingent\"),'TSA Input'!G1305,\"\"))","v":""},{"$f":"IF('TSA Input'!J1305=\"\",\"\",IF(OR('TSA Input'!J1305=\"Yes\",'TSA Input'!J1305=\"Contingent\"),'TSA Input'!F1305,\"\"))","v":""},"","Required","Required"]
["",null,{"$f":"IF('TSA Input'!J1306=\"\",\"\",IF(OR('TSA Input'!J1306=\"Yes\",'TSA Input'!J1306=\"Contingent\"),'TSA Input'!B1306,\"Ineligible\"))","v":""},{"$f":"IF('TSA Input'!J1306=\"\",\"\",IF(OR('TSA Input'!J1306=\"Yes\",'TSA Input'!J1306=\"Contingent\"),'TSA Input'!I1306,\"\"))","v":""},{"$f":"IF('TSA Input'!J1306=\"\",\"\",IF(OR('TSA Input'!J1306=\"Yes\",'TSA Input'!J1306=\"Contingent\"),'TSA Input'!C1306,\"\"))","v":""},{"$f":"IF('TSA Input'!J1306=\"\",\"\",IF(OR('TSA Input'!J1306=\"Yes\",'TSA Input'!J1306=\"Contingent\"),'TSA Input'!D1306,\"\"))","v":""},{"$f":"IF('TSA Input'!J1306=\"\",\"\",IF(OR('TSA Input'!J1306=\"Yes\",'TSA Input'!J1306=\"Contingent\"),'TSA Input'!G1306,\"\"))","v":""},{"$f":"IF('TSA Input'!J1306=\"\",\"\",IF(OR('TSA Input'!J1306=\"Yes\",'TSA Input'!J1306=\"Contingent\"),'TSA Input'!F1306,\"\"))","v":""},"",{"$f":"IF('TSA Input'!J1306=\"\",\"\",IF(OR('TSA Input'!J1306=\"Yes\",'TSA Input'!J1306=\"Contingent\"),'TSA Input'!D1306,\"\"))","v":""},{"$f":"IF('TSA Input'!J1306=\"\",\"\",IF(OR('TSA Input'!J1306=\"Yes\",'TSA Input'!J1306=\"Contingent\"),'TSA Input'!G1306,\"\"))","v":""},{"$f":"IF('TSA Input'!J1306=\"\",\"\",IF(OR('TSA Input'!J1306=\"Yes\",'TSA Input'!J1306=\"Contingent\"),'TSA Input'!F1306,\"\"))","v":""},"","Required","Required"]
["",null,{"$f":"IF('TSA Input'!J1307=\"\",\"\",IF(OR('TSA Input'!J1307=\"Yes\",'TSA Input'!J1307=\"Contingent\"),'TSA Input'!B1307,\"Ineligible\"))","v":""},{"$f":"IF('TSA Input'!J1307=\"\",\"\",IF(OR('TSA Input'!J1307=\"Yes\",'TSA Input'!J1307=\"Contingent\"),'TSA Input'!I1307,\"\"))","v":""},{"$f":"IF('TSA Input'!J1307=\"\",\"\",IF(OR('TSA Input'!J1307=\"Yes\",'TSA Input'!J1307=\"Contingent\"),'TSA Input'!C1307,\"\"))","v":""},{"$f":"IF('TSA Input'!J1307=\"\",\"\",IF(OR('TSA Input'!J1307=\"Yes\",'TSA Input'!J1307=\"Contingent\"),'TSA Input'!D1307,\"\"))","v":""},{"$f":"IF('TSA Input'!J1307=\"\",\"\",IF(OR('TSA Input'!J1307=\"Yes\",'TSA Input'!J1307=\"Contingent\"),'TSA Input'!G1307,\"\"))","v":""},{"$f":"IF('TSA Input'!J1307=\"\",\"\",IF(OR('TSA Input'!J1307=\"Yes\",'TSA Input'!J1307=\"Contingent\"),'TSA Input'!F1307,\"\"))","v":""},"",{"$f":"IF('TSA Input'!J1307=\"\",\"\",IF(OR('TSA Input'!J1307=\"Yes\",'TSA Input'!J1307=\"Contingent\"),'TSA Input'!D1307,\"\"))","v":""},{"$f":"IF('TSA Input'!J1307=\"\",\"\",IF(OR('TSA Input'!J1307=\"Yes\",'TSA Input'!J1307=\"Contingent\"),'TSA Input'!G1307,\"\"))","v":""},{"$f":"IF('TSA Input'!J1307=\"\",\"\",IF(OR('TSA Input'!J1307=\"Yes\",'TSA Input'!J1307=\"Contingent\"),'TSA Input'!F1307,\"\"))","v":""},"","Required","Required"]
["",null,{"$f":"IF('TSA Input'!J1308=\"\",\"\",IF(OR('TSA Input'!J1308=\"Yes\",'TSA Input'!J1308=\"Contingent\"),'TSA Input'!B1308,\"Ineligible\"))","v":""},{"$f":"IF('TSA Input'!J1308=\"\",\"\",IF(OR('TSA Input'!J1308=\"Yes\",'TSA Input'!J1308=\"Contingent\"),'TSA Input'!I1308,\"\"))","v":""},{"$f":"IF('TSA Input'!J1308=\"\",\"\",IF(OR('TSA Input'!J1308=\"Yes\",'TSA Input'!J1308=\"Contingent\"),'TSA Input'!C1308,\"\"))","v":""},{"$f":"IF('TSA Input'!J1308=\"\",\"\",IF(OR('TSA Input'!J1308=\"Yes\",'TSA Input'!J1308=\"Contingent\"),'TSA Input'!D1308,\"\"))","v":""},{"$f":"IF('TSA Input'!J1308=\"\",\"\",IF(OR('TSA Input'!J1308=\"Yes\",'TSA Input'!J1308=\"Contingent\"),'TSA Input'!G1308,\"\"))","v":""},{"$f":"IF('TSA Input'!J1308=\"\",\"\",IF(OR('TSA Input'!J1308=\"Yes\",'TSA Input'!J1308=\"Contingent\"),'TSA Input'!F1308,\"\"))","v":""},"",{"$f":"IF('TSA Input'!J1308=\"\",\"\",IF(OR('TSA Input'!J1308=\"Yes\",'TSA Input'!J1308=\"Contingent\"),'TSA Input'!D1308,\"\"))","v":""},{"$f":"IF('TSA Input'!J1308=\"\",\"\",IF(OR('TSA Input'!J1308=\"Yes\",'TSA Input'!J1308=\"Contingent\"),'TSA Input'!G1308,\"\"))","v":""},{"$f":"IF('TSA Input'!J1308=\"\",\"\",IF(OR('TSA Input'!J1308=\"Yes\",'TSA Input'!J1308=\"Contingent\"),'TSA Input'!F1308,\"\"))","v":""},"","Required","Required"]
["",null,{"$f":"IF('TSA Input'!J1309=\"\",\"\",IF(OR('TSA Input'!J1309=\"Yes\",'TSA Input'!J1309=\"Contingent\"),'TSA Input'!B1309,\"Ineligible\"))","v":""},{"$f":"IF('TSA Input'!J1309=\"\",\"\",IF(OR('TSA Input'!J1309=\"Yes\",'TSA Input'!J1309=\"Contingent\"),'TSA Input'!I1309,\"\"))","v":""},{"$f":"IF('TSA Input'!J1309=\"\",\"\",IF(OR('TSA Input'!J1309=\"Yes\",'TSA Input'!J1309=\"Contingent\"),'TSA Input'!C1309,\"\"))","v":""},{"$f":"IF('TSA Input'!J1309=\"\",\"\",IF(OR('TSA Input'!J1309=\"Yes\",'TSA Input'!J1309=\"Contingent\"),'TSA Input'!D1309,\"\"))","v":""},{"$f":"IF('TSA Input'!J1309=\"\",\"\",IF(OR('TSA Input'!J1309=\"Yes\",'TSA Input'!J1309=\"Contingent\"),'TSA Input'!G1309,\"\"))","v":""},{"$f":"IF('TSA Input'!J1309=\"\",\"\",IF(OR('TSA Input'!J1309=\"Yes\",'TSA Input'!J1309=\"Contingent\"),'TSA Input'!F1309,\"\"))","v":""},"",{"$f":"IF('TSA Input'!J1309=\"\",\"\",IF(OR('TSA Input'!J1309=\"Yes\",'TSA Input'!J1309=\"Contingent\"),'TSA Input'!D1309,\"\"))","v":""},{"$f":"IF('TSA Input'!J1309=\"\",\"\",IF(OR('TSA Input'!J1309=\"Yes\",'TSA Input'!J1309=\"Contingent\"),'TSA Input'!G1309,\"\"))","v":""},{"$f":"IF('TSA Input'!J1309=\"\",\"\",IF(OR('TSA Input'!J1309=\"Yes\",'TSA Input'!J1309=\"Contingent\"),'TSA Input'!F1309,\"\"))","v":""},"","Required","Required"]
["",null,{"$f":"IF('TSA Input'!J1310=\"\",\"\",IF(OR('TSA Input'!J1310=\"Yes\",'TSA Input'!J1310=\"Contingent\"),'TSA Input'!B1310,\"Ineligible\"))","v":""},{"$f":"IF('TSA Input'!J1310=\"\",\"\",IF(OR('TSA Input'!J1310=\"Yes\",'TSA Input'!J1310=\"Contingent\"),'TSA Input'!I1310,\"\"))","v":""},{"$f":"IF('TSA Input'!J1310=\"\",\"\",IF(OR('TSA Input'!J1310=\"Yes\",'TSA Input'!J1310=\"Contingent\"),'TSA Input'!C1310,\"\"))","v":""},{"$f":"IF('TSA Input'!J1310=\"\",\"\",IF(OR('TSA Input'!J1310=\"Yes\",'TSA Input'!J1310=\"Contingent\"),'TSA Input'!D1310,\"\"))","v":""},{"$f":"IF('TSA Input'!J1310=\"\",\"\",IF(OR('TSA Input'!J1310=\"Yes\",'TSA Input'!J1310=\"Contingent\"),'TSA Input'!G1310,\"\"))","v":""},{"$f":"IF('TSA Input'!J1310=\"\",\"\",IF(OR('TSA Input'!J1310=\"Yes\",'TSA Input'!J1310=\"Contingent\"),'TSA Input'!F1310,\"\"))","v":""},"",{"$f":"IF('TSA Input'!J1310=\"\",\"\",IF(OR('TSA Input'!J1310=\"Yes\",'TSA Input'!J1310=\"Contingent\"),'TSA Input'!D1310,\"\"))","v":""},{"$f":"IF('TSA Input'!J1310=\"\",\"\",IF(OR('TSA Input'!J1310=\"Yes\",'TSA Input'!J1310=\"Contingent\"),'TSA Input'!G1310,\"\"))","v":""},{"$f":"IF('TSA Input'!J1310=\"\",\"\",IF(OR('TSA Input'!J1310=\"Yes\",'TSA Input'!J1310=\"Contingent\"),'TSA Input'!F1310,\"\"))","v":""},"","Required","Required"]
["",null,{"$f":"IF('TSA Input'!J1311=\"\",\"\",IF(OR('TSA Input'!J1311=\"Yes\",'TSA Input'!J1311=\"Contingent\"),'TSA Input'!B1311,\"Ineligible\"))","v":""},{"$f":"IF('TSA Input'!J1311=\"\",\"\",IF(OR('TSA Input'!J1311=\"Yes\",'TSA Input'!J1311=\"Contingent\"),'TSA Input'!I1311,\"\"))","v":""},{"$f":"IF('TSA Input'!J1311=\"\",\"\",IF(OR('TSA Input'!J1311=\"Yes\",'TSA Input'!J1311=\"Contingent\"),'TSA Input'!C1311,\"\"))","v":""},{"$f":"IF('TSA Input'!J1311=\"\",\"\",IF(OR('TSA Input'!J1311=\"Yes\",'TSA Input'!J1311=\"Contingent\"),'TSA Input'!D1311,\"\"))","v":""},{"$f":"IF('TSA Input'!J1311=\"\",\"\",IF(OR('TSA Input'!J1311=\"Yes\",'TSA Input'!J1311=\"Contingent\"),'TSA Input'!G1311,\"\"))","v":""},{"$f":"IF('TSA Input'!J1311=\"\",\"\",IF(OR('TSA Input'!J1311=\"Yes\",'TSA Input'!J1311=\"Contingent\"),'TSA Input'!F1311,\"\"))","v":""},"",{"$f":"IF('TSA Input'!J1311=\"\",\"\",IF(OR('TSA Input'!J1311=\"Yes\",'TSA Input'!J1311=\"Contingent\"),'TSA Input'!D1311,\"\"))","v":""},{"$f":"IF('TSA Input'!J1311=\"\",\"\",IF(OR('TSA Input'!J1311=\"Yes\",'TSA Input'!J1311=\"Contingent\"),'TSA Input'!G1311,\"\"))","v":""},{"$f":"IF('TSA Input'!J1311=\"\",\"\",IF(OR('TSA Input'!J1311=\"Yes\",'TSA Input'!J1311=\"Contingent\"),'TSA Input'!F1311,\"\"))","v":""},"","Required","Required"]
["",null,{"$f":"IF('TSA Input'!J1312=\"\",\"\",IF(OR('TSA Input'!J1312=\"Yes\",'TSA Input'!J1312=\"Contingent\"),'TSA Input'!B1312,\"Ineligible\"))","v":""},{"$f":"IF('TSA Input'!J1312=\"\",\"\",IF(OR('TSA Input'!J1312=\"Yes\",'TSA Input'!J1312=\"Contingent\"),'TSA Input'!I1312,\"\"))","v":""},{"$f":"IF('TSA Input'!J1312=\"\",\"\",IF(OR('TSA Input'!J1312=\"Yes\",'TSA Input'!J1312=\"Contingent\"),'TSA Input'!C1312,\"\"))","v":""},{"$f":"IF('TSA Input'!J1312=\"\",\"\",IF(OR('TSA Input'!J1312=\"Yes\",'TSA Input'!J1312=\"Contingent\"),'TSA Input'!D1312,\"\"))","v":""},{"$f":"IF('TSA Input'!J1312=\"\",\"\",IF(OR('TSA Input'!J1312=\"Yes\",'TSA Input'!J1312=\"Contingent\"),'TSA Input'!G1312,\"\"))","v":""},{"$f":"IF('TSA Input'!J1312=\"\",\"\",IF(OR('TSA Input'!J1312=\"Yes\",'TSA Input'!J1312=\"Contingent\"),'TSA Input'!F1312,\"\"))","v":""},"",{"$f":"IF('TSA Input'!J1312=\"\",\"\",IF(OR('TSA Input'!J1312=\"Yes\",'TSA Input'!J1312=\"Contingent\"),'TSA Input'!D1312,\"\"))","v":""},{"$f":"IF('TSA Input'!J1312=\"\",\"\",IF(OR('TSA Input'!J1312=\"Yes\",'TSA Input'!J1312=\"Contingent\"),'TSA Input'!G1312,\"\"))","v":""},{"$f":"IF('TSA Input'!J1312=\"\",\"\",IF(OR('TSA Input'!J1312=\"Yes\",'TSA Input'!J1312=\"Contingent\"),'TSA Input'!F1312,\"\"))","v":""},"","Required","Required"]
["",null,{"$f":"IF('TSA Input'!J1313=\"\",\"\",IF(OR('TSA Input'!J1313=\"Yes\",'TSA Input'!J1313=\"Contingent\"),'TSA Input'!B1313,\"Ineligible\"))","v":""},{"$f":"IF('TSA Input'!J1313=\"\",\"\",IF(OR('TSA Input'!J1313=\"Yes\",'TSA Input'!J1313=\"Contingent\"),'TSA Input'!I1313,\"\"))","v":""},{"$f":"IF('TSA Input'!J1313=\"\",\"\",IF(OR('TSA Input'!J1313=\"Yes\",'TSA Input'!J1313=\"Contingent\"),'TSA Input'!C1313,\"\"))","v":""},{"$f":"IF('TSA Input'!J1313=\"\",\"\",IF(OR('TSA Input'!J1313=\"Yes\",'TSA Input'!J1313=\"Contingent\"),'TSA Input'!D1313,\"\"))","v":""},{"$f":"IF('TSA Input'!J1313=\"\",\"\",IF(OR('TSA Input'!J1313=\"Yes\",'TSA Input'!J1313=\"Contingent\"),'TSA Input'!G1313,\"\"))","v":""},{"$f":"IF('TSA Input'!J1313=\"\",\"\",IF(OR('TSA Input'!J1313=\"Yes\",'TSA Input'!J1313=\"Contingent\"),'TSA Input'!F1313,\"\"))","v":""},"",{"$f":"IF('TSA Input'!J1313=\"\",\"\",IF(OR('TSA Input'!J1313=\"Yes\",'TSA Input'!J1313=\"Contingent\"),'TSA Input'!D1313,\"\"))","v":""},{"$f":"IF('TSA Input'!J1313=\"\",\"\",IF(OR('TSA Input'!J1313=\"Yes\",'TSA Input'!J1313=\"Contingent\"),'TSA Input'!G1313,\"\"))","v":""},{"$f":"IF('TSA Input'!J1313=\"\",\"\",IF(OR('TSA Input'!J1313=\"Yes\",'TSA Input'!J1313=\"Contingent\"),'TSA Input'!F1313,\"\"))","v":""},"","Required","Required"]
["",null,{"$f":"IF('TSA Input'!J1314=\"\",\"\",IF(OR('TSA Input'!J1314=\"Yes\",'TSA Input'!J1314=\"Contingent\"),'TSA Input'!B1314,\"Ineligible\"))","v":""},{"$f":"IF('TSA Input'!J1314=\"\",\"\",IF(OR('TSA Input'!J1314=\"Yes\",'TSA Input'!J1314=\"Contingent\"),'TSA Input'!I1314,\"\"))","v":""},{"$f":"IF('TSA Input'!J1314=\"\",\"\",IF(OR('TSA Input'!J1314=\"Yes\",'TSA Input'!J1314=\"Contingent\"),'TSA Input'!C1314,\"\"))","v":""},{"$f":"IF('TSA Input'!J1314=\"\",\"\",IF(OR('TSA Input'!J1314=\"Yes\",'TSA Input'!J1314=\"Contingent\"),'TSA Input'!D1314,\"\"))","v":""},{"$f":"IF('TSA Input'!J1314=\"\",\"\",IF(OR('TSA Input'!J1314=\"Yes\",'TSA Input'!J1314=\"Contingent\"),'TSA Input'!G1314,\"\"))","v":""},{"$f":"IF('TSA Input'!J1314=\"\",\"\",IF(OR('TSA Input'!J1314=\"Yes\",'TSA Input'!J1314=\"Contingent\"),'TSA Input'!F1314,\"\"))","v":""},"",{"$f":"IF('TSA Input'!J1314=\"\",\"\",IF(OR('TSA Input'!J1314=\"Yes\",'TSA Input'!J1314=\"Contingent\"),'TSA Input'!D1314,\"\"))","v":""},{"$f":"IF('TSA Input'!J1314=\"\",\"\",IF(OR('TSA Input'!J1314=\"Yes\",'TSA Input'!J1314=\"Contingent\"),'TSA Input'!G1314,\"\"))","v":""},{"$f":"IF('TSA Input'!J1314=\"\",\"\",IF(OR('TSA Input'!J1314=\"Yes\",'TSA Input'!J1314=\"Contingent\"),'TSA Input'!F1314,\"\"))","v":""},"","Required","Required"]
["",null,{"$f":"IF('TSA Input'!J1315=\"\",\"\",IF(OR('TSA Input'!J1315=\"Yes\",'TSA Input'!J1315=\"Contingent\"),'TSA Input'!B1315,\"Ineligible\"))","v":""},{"$f":"IF('TSA Input'!J1315=\"\",\"\",IF(OR('TSA Input'!J1315=\"Yes\",'TSA Input'!J1315=\"Contingent\"),'TSA Input'!I1315,\"\"))","v":""},{"$f":"IF('TSA Input'!J1315=\"\",\"\",IF(OR('TSA Input'!J1315=\"Yes\",'TSA Input'!J1315=\"Contingent\"),'TSA Input'!C1315,\"\"))","v":""},{"$f":"IF('TSA Input'!J1315=\"\",\"\",IF(OR('TSA Input'!J1315=\"Yes\",'TSA Input'!J1315=\"Contingent\"),'TSA Input'!D1315,\"\"))","v":""},{"$f":"IF('TSA Input'!J1315=\"\",\"\",IF(OR('TSA Input'!J1315=\"Yes\",'TSA Input'!J1315=\"Contingent\"),'TSA Input'!G1315,\"\"))","v":""},{"$f":"IF('TSA Input'!J1315=\"\",\"\",IF(OR('TSA Input'!J1315=\"Yes\",'TSA Input'!J1315=\"Contingent\"),'TSA Input'!F1315,\"\"))","v":""},"",{"$f":"IF('TSA Input'!J1315=\"\",\"\",IF(OR('TSA Input'!J1315=\"Yes\",'TSA Input'!J1315=\"Contingent\"),'TSA Input'!D1315,\"\"))","v":""},{"$f":"IF('TSA Input'!J1315=\"\",\"\",IF(OR('TSA Input'!J1315=\"Yes\",'TSA Input'!J1315=\"Contingent\"),'TSA Input'!G1315,\"\"))","v":""},{"$f":"IF('TSA Input'!J1315=\"\",\"\",IF(OR('TSA Input'!J1315=\"Yes\",'TSA Input'!J1315=\"Contingent\"),'TSA Input'!F1315,\"\"))","v":""},"","Required","Required"]
["",null,{"$f":"IF('TSA Input'!J1316=\"\",\"\",IF(OR('TSA Input'!J1316=\"Yes\",'TSA Input'!J1316=\"Contingent\"),'TSA Input'!B1316,\"Ineligible\"))","v":""},{"$f":"IF('TSA Input'!J1316=\"\",\"\",IF(OR('TSA Input'!J1316=\"Yes\",'TSA Input'!J1316=\"Contingent\"),'TSA Input'!I1316,\"\"))","v":""},{"$f":"IF('TSA Input'!J1316=\"\",\"\",IF(OR('TSA Input'!J1316=\"Yes\",'TSA Input'!J1316=\"Contingent\"),'TSA Input'!C1316,\"\"))","v":""},{"$f":"IF('TSA Input'!J1316=\"\",\"\",IF(OR('TSA Input'!J1316=\"Yes\",'TSA Input'!J1316=\"Contingent\"),'TSA Input'!D1316,\"\"))","v":""},{"$f":"IF('TSA Input'!J1316=\"\",\"\",IF(OR('TSA Input'!J1316=\"Yes\",'TSA Input'!J1316=\"Contingent\"),'TSA Input'!G1316,\"\"))","v":""},{"$f":"IF('TSA Input'!J1316=\"\",\"\",IF(OR('TSA Input'!J1316=\"Yes\",'TSA Input'!J1316=\"Contingent\"),'TSA Input'!F1316,\"\"))","v":""},"",{"$f":"IF('TSA Input'!J1316=\"\",\"\",IF(OR('TSA Input'!J1316=\"Yes\",'TSA Input'!J1316=\"Contingent\"),'TSA Input'!D1316,\"\"))","v":""},{"$f":"IF('TSA Input'!J1316=\"\",\"\",IF(OR('TSA Input'!J1316=\"Yes\",'TSA Input'!J1316=\"Contingent\"),'TSA Input'!G1316,\"\"))","v":""},{"$f":"IF('TSA Input'!J1316=\"\",\"\",IF(OR('TSA Input'!J1316=\"Yes\",'TSA Input'!J1316=\"Contingent\"),'TSA Input'!F1316,\"\"))","v":""},"","Required","Required"]
["",null,{"$f":"IF('TSA Input'!J1317=\"\",\"\",IF(OR('TSA Input'!J1317=\"Yes\",'TSA Input'!J1317=\"Contingent\"),'TSA Input'!B1317,\"Ineligible\"))","v":""},{"$f":"IF('TSA Input'!J1317=\"\",\"\",IF(OR('TSA Input'!J1317=\"Yes\",'TSA Input'!J1317=\"Contingent\"),'TSA Input'!I1317,\"\"))","v":""},{"$f":"IF('TSA Input'!J1317=\"\",\"\",IF(OR('TSA Input'!J1317=\"Yes\",'TSA Input'!J1317=\"Contingent\"),'TSA Input'!C1317,\"\"))","v":""},{"$f":"IF('TSA Input'!J1317=\"\",\"\",IF(OR('TSA Input'!J1317=\"Yes\",'TSA Input'!J1317=\"Contingent\"),'TSA Input'!D1317,\"\"))","v":""},{"$f":"IF('TSA Input'!J1317=\"\",\"\",IF(OR('TSA Input'!J1317=\"Yes\",'TSA Input'!J1317=\"Contingent\"),'TSA Input'!G1317,\"\"))","v":""},{"$f":"IF('TSA Input'!J1317=\"\",\"\",IF(OR('TSA Input'!J1317=\"Yes\",'TSA Input'!J1317=\"Contingent\"),'TSA Input'!F1317,\"\"))","v":""},"",{"$f":"IF('TSA Input'!J1317=\"\",\"\",IF(OR('TSA Input'!J1317=\"Yes\",'TSA Input'!J1317=\"Contingent\"),'TSA Input'!D1317,\"\"))","v":""},{"$f":"IF('TSA Input'!J1317=\"\",\"\",IF(OR('TSA Input'!J1317=\"Yes\",'TSA Input'!J1317=\"Contingent\"),'TSA Input'!G1317,\"\"))","v":""},{"$f":"IF('TSA Input'!J1317=\"\",\"\",IF(OR('TSA Input'!J1317=\"Yes\",'TSA Input'!J1317=\"Contingent\"),'TSA Input'!F1317,\"\"))","v":""},"","Required","Required"]
["",null,{"$f":"IF('TSA Input'!J1318=\"\",\"\",IF(OR('TSA Input'!J1318=\"Yes\",'TSA Input'!J1318=\"Contingent\"),'TSA Input'!B1318,\"Ineligible\"))","v":""},{"$f":"IF('TSA Input'!J1318=\"\",\"\",IF(OR('TSA Input'!J1318=\"Yes\",'TSA Input'!J1318=\"Contingent\"),'TSA Input'!I1318,\"\"))","v":""},{"$f":"IF('TSA Input'!J1318=\"\",\"\",IF(OR('TSA Input'!J1318=\"Yes\",'TSA Input'!J1318=\"Contingent\"),'TSA Input'!C1318,\"\"))","v":""},{"$f":"IF('TSA Input'!J1318=\"\",\"\",IF(OR('TSA Input'!J1318=\"Yes\",'TSA Input'!J1318=\"Contingent\"),'TSA Input'!D1318,\"\"))","v":""},{"$f":"IF('TSA Input'!J1318=\"\",\"\",IF(OR('TSA Input'!J1318=\"Yes\",'TSA Input'!J1318=\"Contingent\"),'TSA Input'!G1318,\"\"))","v":""},{"$f":"IF('TSA Input'!J1318=\"\",\"\",IF(OR('TSA Input'!J1318=\"Yes\",'TSA Input'!J1318=\"Contingent\"),'TSA Input'!F1318,\"\"))","v":""},"",{"$f":"IF('TSA Input'!J1318=\"\",\"\",IF(OR('TSA Input'!J1318=\"Yes\",'TSA Input'!J1318=\"Contingent\"),'TSA Input'!D1318,\"\"))","v":""},{"$f":"IF('TSA Input'!J1318=\"\",\"\",IF(OR('TSA Input'!J1318=\"Yes\",'TSA Input'!J1318=\"Contingent\"),'TSA Input'!G1318,\"\"))","v":""},{"$f":"IF('TSA Input'!J1318=\"\",\"\",IF(OR('TSA Input'!J1318=\"Yes\",'TSA Input'!J1318=\"Contingent\"),'TSA Input'!F1318,\"\"))","v":""},"","Required","Required"]
["",null,{"$f":"IF('TSA Input'!J1319=\"\",\"\",IF(OR('TSA Input'!J1319=\"Yes\",'TSA Input'!J1319=\"Contingent\"),'TSA Input'!B1319,\"Ineligible\"))","v":""},{"$f":"IF('TSA Input'!J1319=\"\",\"\",IF(OR('TSA Input'!J1319=\"Yes\",'TSA Input'!J1319=\"Contingent\"),'TSA Input'!I1319,\"\"))","v":""},{"$f":"IF('TSA Input'!J1319=\"\",\"\",IF(OR('TSA Input'!J1319=\"Yes\",'TSA Input'!J1319=\"Contingent\"),'TSA Input'!C1319,\"\"))","v":""},{"$f":"IF('TSA Input'!J1319=\"\",\"\",IF(OR('TSA Input'!J1319=\"Yes\",'TSA Input'!J1319=\"Contingent\"),'TSA Input'!D1319,\"\"))","v":""},{"$f":"IF('TSA Input'!J1319=\"\",\"\",IF(OR('TSA Input'!J1319=\"Yes\",'TSA Input'!J1319=\"Contingent\"),'TSA Input'!G1319,\"\"))","v":""},{"$f":"IF('TSA Input'!J1319=\"\",\"\",IF(OR('TSA Input'!J1319=\"Yes\",'TSA Input'!J1319=\"Contingent\"),'TSA Input'!F1319,\"\"))","v":""},"",{"$f":"IF('TSA Input'!J1319=\"\",\"\",IF(OR('TSA Input'!J1319=\"Yes\",'TSA Input'!J1319=\"Contingent\"),'TSA Input'!D1319,\"\"))","v":""},{"$f":"IF('TSA Input'!J1319=\"\",\"\",IF(OR('TSA Input'!J1319=\"Yes\",'TSA Input'!J1319=\"Contingent\"),'TSA Input'!G1319,\"\"))","v":""},{"$f":"IF('TSA Input'!J1319=\"\",\"\",IF(OR('TSA Input'!J1319=\"Yes\",'TSA Input'!J1319=\"Contingent\"),'TSA Input'!F1319,\"\"))","v":""},"","Required","Required"]
["",null,{"$f":"IF('TSA Input'!J1320=\"\",\"\",IF(OR('TSA Input'!J1320=\"Yes\",'TSA Input'!J1320=\"Contingent\"),'TSA Input'!B1320,\"Ineligible\"))","v":""},{"$f":"IF('TSA Input'!J1320=\"\",\"\",IF(OR('TSA Input'!J1320=\"Yes\",'TSA Input'!J1320=\"Contingent\"),'TSA Input'!I1320,\"\"))","v":""},{"$f":"IF('TSA Input'!J1320=\"\",\"\",IF(OR('TSA Input'!J1320=\"Yes\",'TSA Input'!J1320=\"Contingent\"),'TSA Input'!C1320,\"\"))","v":""},{"$f":"IF('TSA Input'!J1320=\"\",\"\",IF(OR('TSA Input'!J1320=\"Yes\",'TSA Input'!J1320=\"Contingent\"),'TSA Input'!D1320,\"\"))","v":""},{"$f":"IF('TSA Input'!J1320=\"\",\"\",IF(OR('TSA Input'!J1320=\"Yes\",'TSA Input'!J1320=\"Contingent\"),'TSA Input'!G1320,\"\"))","v":""},{"$f":"IF('TSA Input'!J1320=\"\",\"\",IF(OR('TSA Input'!J1320=\"Yes\",'TSA Input'!J1320=\"Contingent\"),'TSA Input'!F1320,\"\"))","v":""},"",{"$f":"IF('TSA Input'!J1320=\"\",\"\",IF(OR('TSA Input'!J1320=\"Yes\",'TSA Input'!J1320=\"Contingent\"),'TSA Input'!D1320,\"\"))","v":""},{"$f":"IF('TSA Input'!J1320=\"\",\"\",IF(OR('TSA Input'!J1320=\"Yes\",'TSA Input'!J1320=\"Contingent\"),'TSA Input'!G1320,\"\"))","v":""},{"$f":"IF('TSA Input'!J1320=\"\",\"\",IF(OR('TSA Input'!J1320=\"Yes\",'TSA Input'!J1320=\"Contingent\"),'TSA Input'!F1320,\"\"))","v":""},"","Required","Required"]
["",null,{"$f":"IF('TSA Input'!J1321=\"\",\"\",IF(OR('TSA Input'!J1321=\"Yes\",'TSA Input'!J1321=\"Contingent\"),'TSA Input'!B1321,\"Ineligible\"))","v":""},{"$f":"IF('TSA Input'!J1321=\"\",\"\",IF(OR('TSA Input'!J1321=\"Yes\",'TSA Input'!J1321=\"Contingent\"),'TSA Input'!I1321,\"\"))","v":""},{"$f":"IF('TSA Input'!J1321=\"\",\"\",IF(OR('TSA Input'!J1321=\"Yes\",'TSA Input'!J1321=\"Contingent\"),'TSA Input'!C1321,\"\"))","v":""},{"$f":"IF('TSA Input'!J1321=\"\",\"\",IF(OR('TSA Input'!J1321=\"Yes\",'TSA Input'!J1321=\"Contingent\"),'TSA Input'!D1321,\"\"))","v":""},{"$f":"IF('TSA Input'!J1321=\"\",\"\",IF(OR('TSA Input'!J1321=\"Yes\",'TSA Input'!J1321=\"Contingent\"),'TSA Input'!G1321,\"\"))","v":""},{"$f":"IF('TSA Input'!J1321=\"\",\"\",IF(OR('TSA Input'!J1321=\"Yes\",'TSA Input'!J1321=\"Contingent\"),'TSA Input'!F1321,\"\"))","v":""},"",{"$f":"IF('TSA Input'!J1321=\"\",\"\",IF(OR('TSA Input'!J1321=\"Yes\",'TSA Input'!J1321=\"Contingent\"),'TSA Input'!D1321,\"\"))","v":""},{"$f":"IF('TSA Input'!J1321=\"\",\"\",IF(OR('TSA Input'!J1321=\"Yes\",'TSA Input'!J1321=\"Contingent\"),'TSA Input'!G1321,\"\"))","v":""},{"$f":"IF('TSA Input'!J1321=\"\",\"\",IF(OR('TSA Input'!J1321=\"Yes\",'TSA Input'!J1321=\"Contingent\"),'TSA Input'!F1321,\"\"))","v":""},"","Required","Required"]
["",null,{"$f":"IF('TSA Input'!J1322=\"\",\"\",IF(OR('TSA Input'!J1322=\"Yes\",'TSA Input'!J1322=\"Contingent\"),'TSA Input'!B1322,\"Ineligible\"))","v":""},{"$f":"IF('TSA Input'!J1322=\"\",\"\",IF(OR('TSA Input'!J1322=\"Yes\",'TSA Input'!J1322=\"Contingent\"),'TSA Input'!I1322,\"\"))","v":""},{"$f":"IF('TSA Input'!J1322=\"\",\"\",IF(OR('TSA Input'!J1322=\"Yes\",'TSA Input'!J1322=\"Contingent\"),'TSA Input'!C1322,\"\"))","v":""},{"$f":"IF('TSA Input'!J1322=\"\",\"\",IF(OR('TSA Input'!J1322=\"Yes\",'TSA Input'!J1322=\"Contingent\"),'TSA Input'!D1322,\"\"))","v":""},{"$f":"IF('TSA Input'!J1322=\"\",\"\",IF(OR('TSA Input'!J1322=\"Yes\",'TSA Input'!J1322=\"Contingent\"),'TSA Input'!G1322,\"\"))","v":""},{"$f":"IF('TSA Input'!J1322=\"\",\"\",IF(OR('TSA Input'!J1322=\"Yes\",'TSA Input'!J1322=\"Contingent\"),'TSA Input'!F1322,\"\"))","v":""},"",{"$f":"IF('TSA Input'!J1322=\"\",\"\",IF(OR('TSA Input'!J1322=\"Yes\",'TSA Input'!J1322=\"Contingent\"),'TSA Input'!D1322,\"\"))","v":""},{"$f":"IF('TSA Input'!J1322=\"\",\"\",IF(OR('TSA Input'!J1322=\"Yes\",'TSA Input'!J1322=\"Contingent\"),'TSA Input'!G1322,\"\"))","v":""},{"$f":"IF('TSA Input'!J1322=\"\",\"\",IF(OR('TSA Input'!J1322=\"Yes\",'TSA Input'!J1322=\"Contingent\"),'TSA Input'!F1322,\"\"))","v":""},"","Required","Required"]
["",null,{"$f":"IF('TSA Input'!J1323=\"\",\"\",IF(OR('TSA Input'!J1323=\"Yes\",'TSA Input'!J1323=\"Contingent\"),'TSA Input'!B1323,\"Ineligible\"))","v":""},{"$f":"IF('TSA Input'!J1323=\"\",\"\",IF(OR('TSA Input'!J1323=\"Yes\",'TSA Input'!J1323=\"Contingent\"),'TSA Input'!I1323,\"\"))","v":""},{"$f":"IF('TSA Input'!J1323=\"\",\"\",IF(OR('TSA Input'!J1323=\"Yes\",'TSA Input'!J1323=\"Contingent\"),'TSA Input'!C1323,\"\"))","v":""},{"$f":"IF('TSA Input'!J1323=\"\",\"\",IF(OR('TSA Input'!J1323=\"Yes\",'TSA Input'!J1323=\"Contingent\"),'TSA Input'!D1323,\"\"))","v":""},{"$f":"IF('TSA Input'!J1323=\"\",\"\",IF(OR('TSA Input'!J1323=\"Yes\",'TSA Input'!J1323=\"Contingent\"),'TSA Input'!G1323,\"\"))","v":""},{"$f":"IF('TSA Input'!J1323=\"\",\"\",IF(OR('TSA Input'!J1323=\"Yes\",'TSA Input'!J1323=\"Contingent\"),'TSA Input'!F1323,\"\"))","v":""},"",{"$f":"IF('TSA Input'!J1323=\"\",\"\",IF(OR('TSA Input'!J1323=\"Yes\",'TSA Input'!J1323=\"Contingent\"),'TSA Input'!D1323,\"\"))","v":""},{"$f":"IF('TSA Input'!J1323=\"\",\"\",IF(OR('TSA Input'!J1323=\"Yes\",'TSA Input'!J1323=\"Contingent\"),'TSA Input'!G1323,\"\"))","v":""},{"$f":"IF('TSA Input'!J1323=\"\",\"\",IF(OR('TSA Input'!J1323=\"Yes\",'TSA Input'!J1323=\"Contingent\"),'TSA Input'!F1323,\"\"))","v":""},"","Required","Required"]
["",null,{"$f":"IF('TSA Input'!J1324=\"\",\"\",IF(OR('TSA Input'!J1324=\"Yes\",'TSA Input'!J1324=\"Contingent\"),'TSA Input'!B1324,\"Ineligible\"))","v":""},{"$f":"IF('TSA Input'!J1324=\"\",\"\",IF(OR('TSA Input'!J1324=\"Yes\",'TSA Input'!J1324=\"Contingent\"),'TSA Input'!I1324,\"\"))","v":""},{"$f":"IF('TSA Input'!J1324=\"\",\"\",IF(OR('TSA Input'!J1324=\"Yes\",'TSA Input'!J1324=\"Contingent\"),'TSA Input'!C1324,\"\"))","v":""},{"$f":"IF('TSA Input'!J1324=\"\",\"\",IF(OR('TSA Input'!J1324=\"Yes\",'TSA Input'!J1324=\"Contingent\"),'TSA Input'!D1324,\"\"))","v":""},{"$f":"IF('TSA Input'!J1324=\"\",\"\",IF(OR('TSA Input'!J1324=\"Yes\",'TSA Input'!J1324=\"Contingent\"),'TSA Input'!G1324,\"\"))","v":""},{"$f":"IF('TSA Input'!J1324=\"\",\"\",IF(OR('TSA Input'!J1324=\"Yes\",'TSA Input'!J1324=\"Contingent\"),'TSA Input'!F1324,\"\"))","v":""},"",{"$f":"IF('TSA Input'!J1324=\"\",\"\",IF(OR('TSA Input'!J1324=\"Yes\",'TSA Input'!J1324=\"Contingent\"),'TSA Input'!D1324,\"\"))","v":""},{"$f":"IF('TSA Input'!J1324=\"\",\"\",IF(OR('TSA Input'!J1324=\"Yes\",'TSA Input'!J1324=\"Contingent\"),'TSA Input'!G1324,\"\"))","v":""},{"$f":"IF('TSA Input'!J1324=\"\",\"\",IF(OR('TSA Input'!J1324=\"Yes\",'TSA Input'!J1324=\"Contingent\"),'TSA Input'!F1324,\"\"))","v":""},"","Required","Required"]
["",null,{"$f":"IF('TSA Input'!J1325=\"\",\"\",IF(OR('TSA Input'!J1325=\"Yes\",'TSA Input'!J1325=\"Contingent\"),'TSA Input'!B1325,\"Ineligible\"))","v":""},{"$f":"IF('TSA Input'!J1325=\"\",\"\",IF(OR('TSA Input'!J1325=\"Yes\",'TSA Input'!J1325=\"Contingent\"),'TSA Input'!I1325,\"\"))","v":""},{"$f":"IF('TSA Input'!J1325=\"\",\"\",IF(OR('TSA Input'!J1325=\"Yes\",'TSA Input'!J1325=\"Contingent\"),'TSA Input'!C1325,\"\"))","v":""},{"$f":"IF('TSA Input'!J1325=\"\",\"\",IF(OR('TSA Input'!J1325=\"Yes\",'TSA Input'!J1325=\"Contingent\"),'TSA Input'!D1325,\"\"))","v":""},{"$f":"IF('TSA Input'!J1325=\"\",\"\",IF(OR('TSA Input'!J1325=\"Yes\",'TSA Input'!J1325=\"Contingent\"),'TSA Input'!G1325,\"\"))","v":""},{"$f":"IF('TSA Input'!J1325=\"\",\"\",IF(OR('TSA Input'!J1325=\"Yes\",'TSA Input'!J1325=\"Contingent\"),'TSA Input'!F1325,\"\"))","v":""},"",{"$f":"IF('TSA Input'!J1325=\"\",\"\",IF(OR('TSA Input'!J1325=\"Yes\",'TSA Input'!J1325=\"Contingent\"),'TSA Input'!D1325,\"\"))","v":""},{"$f":"IF('TSA Input'!J1325=\"\",\"\",IF(OR('TSA Input'!J1325=\"Yes\",'TSA Input'!J1325=\"Contingent\"),'TSA Input'!G1325,\"\"))","v":""},{"$f":"IF('TSA Input'!J1325=\"\",\"\",IF(OR('TSA Input'!J1325=\"Yes\",'TSA Input'!J1325=\"Contingent\"),'TSA Input'!F1325,\"\"))","v":""},"","Required","Required"]
["",null,{"$f":"IF('TSA Input'!J1326=\"\",\"\",IF(OR('TSA Input'!J1326=\"Yes\",'TSA Input'!J1326=\"Contingent\"),'TSA Input'!B1326,\"Ineligible\"))","v":""},{"$f":"IF('TSA Input'!J1326=\"\",\"\",IF(OR('TSA Input'!J1326=\"Yes\",'TSA Input'!J1326=\"Contingent\"),'TSA Input'!I1326,\"\"))","v":""},{"$f":"IF('TSA Input'!J1326=\"\",\"\",IF(OR('TSA Input'!J1326=\"Yes\",'TSA Input'!J1326=\"Contingent\"),'TSA Input'!C1326,\"\"))","v":""},{"$f":"IF('TSA Input'!J1326=\"\",\"\",IF(OR('TSA Input'!J1326=\"Yes\",'TSA Input'!J1326=\"Contingent\"),'TSA Input'!D1326,\"\"))","v":""},{"$f":"IF('TSA Input'!J1326=\"\",\"\",IF(OR('TSA Input'!J1326=\"Yes\",'TSA Input'!J1326=\"Contingent\"),'TSA Input'!G1326,\"\"))","v":""},{"$f":"IF('TSA Input'!J1326=\"\",\"\",IF(OR('TSA Input'!J1326=\"Yes\",'TSA Input'!J1326=\"Contingent\"),'TSA Input'!F1326,\"\"))","v":""},"",{"$f":"IF('TSA Input'!J1326=\"\",\"\",IF(OR('TSA Input'!J1326=\"Yes\",'TSA Input'!J1326=\"Contingent\"),'TSA Input'!D1326,\"\"))","v":""},{"$f":"IF('TSA Input'!J1326=\"\",\"\",IF(OR('TSA Input'!J1326=\"Yes\",'TSA Input'!J1326=\"Contingent\"),'TSA Input'!G1326,\"\"))","v":""},{"$f":"IF('TSA Input'!J1326=\"\",\"\",IF(OR('TSA Input'!J1326=\"Yes\",'TSA Input'!J1326=\"Contingent\"),'TSA Input'!F1326,\"\"))","v":""},"","Required","Required"]
["",null,{"$f":"IF('TSA Input'!J1327=\"\",\"\",IF(OR('TSA Input'!J1327=\"Yes\",'TSA Input'!J1327=\"Contingent\"),'TSA Input'!B1327,\"Ineligible\"))","v":""},{"$f":"IF('TSA Input'!J1327=\"\",\"\",IF(OR('TSA Input'!J1327=\"Yes\",'TSA Input'!J1327=\"Contingent\"),'TSA Input'!I1327,\"\"))","v":""},{"$f":"IF('TSA Input'!J1327=\"\",\"\",IF(OR('TSA Input'!J1327=\"Yes\",'TSA Input'!J1327=\"Contingent\"),'TSA Input'!C1327,\"\"))","v":""},{"$f":"IF('TSA Input'!J1327=\"\",\"\",IF(OR('TSA Input'!J1327=\"Yes\",'TSA Input'!J1327=\"Contingent\"),'TSA Input'!D1327,\"\"))","v":""},{"$f":"IF('TSA Input'!J1327=\"\",\"\",IF(OR('TSA Input'!J1327=\"Yes\",'TSA Input'!J1327=\"Contingent\"),'TSA Input'!G1327,\"\"))","v":""},{"$f":"IF('TSA Input'!J1327=\"\",\"\",IF(OR('TSA Input'!J1327=\"Yes\",'TSA Input'!J1327=\"Contingent\"),'TSA Input'!F1327,\"\"))","v":""},"",{"$f":"IF('TSA Input'!J1327=\"\",\"\",IF(OR('TSA Input'!J1327=\"Yes\",'TSA Input'!J1327=\"Contingent\"),'TSA Input'!D1327,\"\"))","v":""},{"$f":"IF('TSA Input'!J1327=\"\",\"\",IF(OR('TSA Input'!J1327=\"Yes\",'TSA Input'!J1327=\"Contingent\"),'TSA Input'!G1327,\"\"))","v":""},{"$f":"IF('TSA Input'!J1327=\"\",\"\",IF(OR('TSA Input'!J1327=\"Yes\",'TSA Input'!J1327=\"Contingent\"),'TSA Input'!F1327,\"\"))","v":""},"","Required","Required"]
["",null,{"$f":"IF('TSA Input'!J1328=\"\",\"\",IF(OR('TSA Input'!J1328=\"Yes\",'TSA Input'!J1328=\"Contingent\"),'TSA Input'!B1328,\"Ineligible\"))","v":""},{"$f":"IF('TSA Input'!J1328=\"\",\"\",IF(OR('TSA Input'!J1328=\"Yes\",'TSA Input'!J1328=\"Contingent\"),'TSA Input'!I1328,\"\"))","v":""},{"$f":"IF('TSA Input'!J1328=\"\",\"\",IF(OR('TSA Input'!J1328=\"Yes\",'TSA Input'!J1328=\"Contingent\"),'TSA Input'!C1328,\"\"))","v":""},{"$f":"IF('TSA Input'!J1328=\"\",\"\",IF(OR('TSA Input'!J1328=\"Yes\",'TSA Input'!J1328=\"Contingent\"),'TSA Input'!D1328,\"\"))","v":""},{"$f":"IF('TSA Input'!J1328=\"\",\"\",IF(OR('TSA Input'!J1328=\"Yes\",'TSA Input'!J1328=\"Contingent\"),'TSA Input'!G1328,\"\"))","v":""},{"$f":"IF('TSA Input'!J1328=\"\",\"\",IF(OR('TSA Input'!J1328=\"Yes\",'TSA Input'!J1328=\"Contingent\"),'TSA Input'!F1328,\"\"))","v":""},"",{"$f":"IF('TSA Input'!J1328=\"\",\"\",IF(OR('TSA Input'!J1328=\"Yes\",'TSA Input'!J1328=\"Contingent\"),'TSA Input'!D1328,\"\"))","v":""},{"$f":"IF('TSA Input'!J1328=\"\",\"\",IF(OR('TSA Input'!J1328=\"Yes\",'TSA Input'!J1328=\"Contingent\"),'TSA Input'!G1328,\"\"))","v":""},{"$f":"IF('TSA Input'!J1328=\"\",\"\",IF(OR('TSA Input'!J1328=\"Yes\",'TSA Input'!J1328=\"Contingent\"),'TSA Input'!F1328,\"\"))","v":""},"","Required","Required"]
["",null,{"$f":"IF('TSA Input'!J1329=\"\",\"\",IF(OR('TSA Input'!J1329=\"Yes\",'TSA Input'!J1329=\"Contingent\"),'TSA Input'!B1329,\"Ineligible\"))","v":""},{"$f":"IF('TSA Input'!J1329=\"\",\"\",IF(OR('TSA Input'!J1329=\"Yes\",'TSA Input'!J1329=\"Contingent\"),'TSA Input'!I1329,\"\"))","v":""},{"$f":"IF('TSA Input'!J1329=\"\",\"\",IF(OR('TSA Input'!J1329=\"Yes\",'TSA Input'!J1329=\"Contingent\"),'TSA Input'!C1329,\"\"))","v":""},{"$f":"IF('TSA Input'!J1329=\"\",\"\",IF(OR('TSA Input'!J1329=\"Yes\",'TSA Input'!J1329=\"Contingent\"),'TSA Input'!D1329,\"\"))","v":""},{"$f":"IF('TSA Input'!J1329=\"\",\"\",IF(OR('TSA Input'!J1329=\"Yes\",'TSA Input'!J1329=\"Contingent\"),'TSA Input'!G1329,\"\"))","v":""},{"$f":"IF('TSA Input'!J1329=\"\",\"\",IF(OR('TSA Input'!J1329=\"Yes\",'TSA Input'!J1329=\"Contingent\"),'TSA Input'!F1329,\"\"))","v":""},"",{"$f":"IF('TSA Input'!J1329=\"\",\"\",IF(OR('TSA Input'!J1329=\"Yes\",'TSA Input'!J1329=\"Contingent\"),'TSA Input'!D1329,\"\"))","v":""},{"$f":"IF('TSA Input'!J1329=\"\",\"\",IF(OR('TSA Input'!J1329=\"Yes\",'TSA Input'!J1329=\"Contingent\"),'TSA Input'!G1329,\"\"))","v":""},{"$f":"IF('TSA Input'!J1329=\"\",\"\",IF(OR('TSA Input'!J1329=\"Yes\",'TSA Input'!J1329=\"Contingent\"),'TSA Input'!F1329,\"\"))","v":""},"","Required","Required"]
["",null,{"$f":"IF('TSA Input'!J1330=\"\",\"\",IF(OR('TSA Input'!J1330=\"Yes\",'TSA Input'!J1330=\"Contingent\"),'TSA Input'!B1330,\"Ineligible\"))","v":""},{"$f":"IF('TSA Input'!J1330=\"\",\"\",IF(OR('TSA Input'!J1330=\"Yes\",'TSA Input'!J1330=\"Contingent\"),'TSA Input'!I1330,\"\"))","v":""},{"$f":"IF('TSA Input'!J1330=\"\",\"\",IF(OR('TSA Input'!J1330=\"Yes\",'TSA Input'!J1330=\"Contingent\"),'TSA Input'!C1330,\"\"))","v":""},{"$f":"IF('TSA Input'!J1330=\"\",\"\",IF(OR('TSA Input'!J1330=\"Yes\",'TSA Input'!J1330=\"Contingent\"),'TSA Input'!D1330,\"\"))","v":""},{"$f":"IF('TSA Input'!J1330=\"\",\"\",IF(OR('TSA Input'!J1330=\"Yes\",'TSA Input'!J1330=\"Contingent\"),'TSA Input'!G1330,\"\"))","v":""},{"$f":"IF('TSA Input'!J1330=\"\",\"\",IF(OR('TSA Input'!J1330=\"Yes\",'TSA Input'!J1330=\"Contingent\"),'TSA Input'!F1330,\"\"))","v":""},"",{"$f":"IF('TSA Input'!J1330=\"\",\"\",IF(OR('TSA Input'!J1330=\"Yes\",'TSA Input'!J1330=\"Contingent\"),'TSA Input'!D1330,\"\"))","v":""},{"$f":"IF('TSA Input'!J1330=\"\",\"\",IF(OR('TSA Input'!J1330=\"Yes\",'TSA Input'!J1330=\"Contingent\"),'TSA Input'!G1330,\"\"))","v":""},{"$f":"IF('TSA Input'!J1330=\"\",\"\",IF(OR('TSA Input'!J1330=\"Yes\",'TSA Input'!J1330=\"Contingent\"),'TSA Input'!F1330,\"\"))","v":""},"","Required","Required"]
["",null,{"$f":"IF('TSA Input'!J1331=\"\",\"\",IF(OR('TSA Input'!J1331=\"Yes\",'TSA Input'!J1331=\"Contingent\"),'TSA Input'!B1331,\"Ineligible\"))","v":""},{"$f":"IF('TSA Input'!J1331=\"\",\"\",IF(OR('TSA Input'!J1331=\"Yes\",'TSA Input'!J1331=\"Contingent\"),'TSA Input'!I1331,\"\"))","v":""},{"$f":"IF('TSA Input'!J1331=\"\",\"\",IF(OR('TSA Input'!J1331=\"Yes\",'TSA Input'!J1331=\"Contingent\"),'TSA Input'!C1331,\"\"))","v":""},{"$f":"IF('TSA Input'!J1331=\"\",\"\",IF(OR('TSA Input'!J1331=\"Yes\",'TSA Input'!J1331=\"Contingent\"),'TSA Input'!D1331,\"\"))","v":""},{"$f":"IF('TSA Input'!J1331=\"\",\"\",IF(OR('TSA Input'!J1331=\"Yes\",'TSA Input'!J1331=\"Contingent\"),'TSA Input'!G1331,\"\"))","v":""},{"$f":"IF('TSA Input'!J1331=\"\",\"\",IF(OR('TSA Input'!J1331=\"Yes\",'TSA Input'!J1331=\"Contingent\"),'TSA Input'!F1331,\"\"))","v":""},"",{"$f":"IF('TSA Input'!J1331=\"\",\"\",IF(OR('TSA Input'!J1331=\"Yes\",'TSA Input'!J1331=\"Contingent\"),'TSA Input'!D1331,\"\"))","v":""},{"$f":"IF('TSA Input'!J1331=\"\",\"\",IF(OR('TSA Input'!J1331=\"Yes\",'TSA Input'!J1331=\"Contingent\"),'TSA Input'!G1331,\"\"))","v":""},{"$f":"IF('TSA Input'!J1331=\"\",\"\",IF(OR('TSA Input'!J1331=\"Yes\",'TSA Input'!J1331=\"Contingent\"),'TSA Input'!F1331,\"\"))","v":""},"","Required","Required"]
["",null,{"$f":"IF('TSA Input'!J1332=\"\",\"\",IF(OR('TSA Input'!J1332=\"Yes\",'TSA Input'!J1332=\"Contingent\"),'TSA Input'!B1332,\"Ineligible\"))","v":""},{"$f":"IF('TSA Input'!J1332=\"\",\"\",IF(OR('TSA Input'!J1332=\"Yes\",'TSA Input'!J1332=\"Contingent\"),'TSA Input'!I1332,\"\"))","v":""},{"$f":"IF('TSA Input'!J1332=\"\",\"\",IF(OR('TSA Input'!J1332=\"Yes\",'TSA Input'!J1332=\"Contingent\"),'TSA Input'!C1332,\"\"))","v":""},{"$f":"IF('TSA Input'!J1332=\"\",\"\",IF(OR('TSA Input'!J1332=\"Yes\",'TSA Input'!J1332=\"Contingent\"),'TSA Input'!D1332,\"\"))","v":""},{"$f":"IF('TSA Input'!J1332=\"\",\"\",IF(OR('TSA Input'!J1332=\"Yes\",'TSA Input'!J1332=\"Contingent\"),'TSA Input'!G1332,\"\"))","v":""},{"$f":"IF('TSA Input'!J1332=\"\",\"\",IF(OR('TSA Input'!J1332=\"Yes\",'TSA Input'!J1332=\"Contingent\"),'TSA Input'!F1332,\"\"))","v":""},"",{"$f":"IF('TSA Input'!J1332=\"\",\"\",IF(OR('TSA Input'!J1332=\"Yes\",'TSA Input'!J1332=\"Contingent\"),'TSA Input'!D1332,\"\"))","v":""},{"$f":"IF('TSA Input'!J1332=\"\",\"\",IF(OR('TSA Input'!J1332=\"Yes\",'TSA Input'!J1332=\"Contingent\"),'TSA Input'!G1332,\"\"))","v":""},{"$f":"IF('TSA Input'!J1332=\"\",\"\",IF(OR('TSA Input'!J1332=\"Yes\",'TSA Input'!J1332=\"Contingent\"),'TSA Input'!F1332,\"\"))","v":""},"","Required","Required"]
["",null,{"$f":"IF('TSA Input'!J1333=\"\",\"\",IF(OR('TSA Input'!J1333=\"Yes\",'TSA Input'!J1333=\"Contingent\"),'TSA Input'!B1333,\"Ineligible\"))","v":""},{"$f":"IF('TSA Input'!J1333=\"\",\"\",IF(OR('TSA Input'!J1333=\"Yes\",'TSA Input'!J1333=\"Contingent\"),'TSA Input'!I1333,\"\"))","v":""},{"$f":"IF('TSA Input'!J1333=\"\",\"\",IF(OR('TSA Input'!J1333=\"Yes\",'TSA Input'!J1333=\"Contingent\"),'TSA Input'!C1333,\"\"))","v":""},{"$f":"IF('TSA Input'!J1333=\"\",\"\",IF(OR('TSA Input'!J1333=\"Yes\",'TSA Input'!J1333=\"Contingent\"),'TSA Input'!D1333,\"\"))","v":""},{"$f":"IF('TSA Input'!J1333=\"\",\"\",IF(OR('TSA Input'!J1333=\"Yes\",'TSA Input'!J1333=\"Contingent\"),'TSA Input'!G1333,\"\"))","v":""},{"$f":"IF('TSA Input'!J1333=\"\",\"\",IF(OR('TSA Input'!J1333=\"Yes\",'TSA Input'!J1333=\"Contingent\"),'TSA Input'!F1333,\"\"))","v":""},"",{"$f":"IF('TSA Input'!J1333=\"\",\"\",IF(OR('TSA Input'!J1333=\"Yes\",'TSA Input'!J1333=\"Contingent\"),'TSA Input'!D1333,\"\"))","v":""},{"$f":"IF('TSA Input'!J1333=\"\",\"\",IF(OR('TSA Input'!J1333=\"Yes\",'TSA Input'!J1333=\"Contingent\"),'TSA Input'!G1333,\"\"))","v":""},{"$f":"IF('TSA Input'!J1333=\"\",\"\",IF(OR('TSA Input'!J1333=\"Yes\",'TSA Input'!J1333=\"Contingent\"),'TSA Input'!F1333,\"\"))","v":""},"","Required","Required"]
["",null,{"$f":"IF('TSA Input'!J1334=\"\",\"\",IF(OR('TSA Input'!J1334=\"Yes\",'TSA Input'!J1334=\"Contingent\"),'TSA Input'!B1334,\"Ineligible\"))","v":""},{"$f":"IF('TSA Input'!J1334=\"\",\"\",IF(OR('TSA Input'!J1334=\"Yes\",'TSA Input'!J1334=\"Contingent\"),'TSA Input'!I1334,\"\"))","v":""},{"$f":"IF('TSA Input'!J1334=\"\",\"\",IF(OR('TSA Input'!J1334=\"Yes\",'TSA Input'!J1334=\"Contingent\"),'TSA Input'!C1334,\"\"))","v":""},{"$f":"IF('TSA Input'!J1334=\"\",\"\",IF(OR('TSA Input'!J1334=\"Yes\",'TSA Input'!J1334=\"Contingent\"),'TSA Input'!D1334,\"\"))","v":""},{"$f":"IF('TSA Input'!J1334=\"\",\"\",IF(OR('TSA Input'!J1334=\"Yes\",'TSA Input'!J1334=\"Contingent\"),'TSA Input'!G1334,\"\"))","v":""},{"$f":"IF('TSA Input'!J1334=\"\",\"\",IF(OR('TSA Input'!J1334=\"Yes\",'TSA Input'!J1334=\"Contingent\"),'TSA Input'!F1334,\"\"))","v":""},"",{"$f":"IF('TSA Input'!J1334=\"\",\"\",IF(OR('TSA Input'!J1334=\"Yes\",'TSA Input'!J1334=\"Contingent\"),'TSA Input'!D1334,\"\"))","v":""},{"$f":"IF('TSA Input'!J1334=\"\",\"\",IF(OR('TSA Input'!J1334=\"Yes\",'TSA Input'!J1334=\"Contingent\"),'TSA Input'!G1334,\"\"))","v":""},{"$f":"IF('TSA Input'!J1334=\"\",\"\",IF(OR('TSA Input'!J1334=\"Yes\",'TSA Input'!J1334=\"Contingent\"),'TSA Input'!F1334,\"\"))","v":""},"","Required","Required"]
["",null,{"$f":"IF('TSA Input'!J1335=\"\",\"\",IF(OR('TSA Input'!J1335=\"Yes\",'TSA Input'!J1335=\"Contingent\"),'TSA Input'!B1335,\"Ineligible\"))","v":""},{"$f":"IF('TSA Input'!J1335=\"\",\"\",IF(OR('TSA Input'!J1335=\"Yes\",'TSA Input'!J1335=\"Contingent\"),'TSA Input'!I1335,\"\"))","v":""},{"$f":"IF('TSA Input'!J1335=\"\",\"\",IF(OR('TSA Input'!J1335=\"Yes\",'TSA Input'!J1335=\"Contingent\"),'TSA Input'!C1335,\"\"))","v":""},{"$f":"IF('TSA Input'!J1335=\"\",\"\",IF(OR('TSA Input'!J1335=\"Yes\",'TSA Input'!J1335=\"Contingent\"),'TSA Input'!D1335,\"\"))","v":""},{"$f":"IF('TSA Input'!J1335=\"\",\"\",IF(OR('TSA Input'!J1335=\"Yes\",'TSA Input'!J1335=\"Contingent\"),'TSA Input'!G1335,\"\"))","v":""},{"$f":"IF('TSA Input'!J1335=\"\",\"\",IF(OR('TSA Input'!J1335=\"Yes\",'TSA Input'!J1335=\"Contingent\"),'TSA Input'!F1335,\"\"))","v":""},"",{"$f":"IF('TSA Input'!J1335=\"\",\"\",IF(OR('TSA Input'!J1335=\"Yes\",'TSA Input'!J1335=\"Contingent\"),'TSA Input'!D1335,\"\"))","v":""},{"$f":"IF('TSA Input'!J1335=\"\",\"\",IF(OR('TSA Input'!J1335=\"Yes\",'TSA Input'!J1335=\"Contingent\"),'TSA Input'!G1335,\"\"))","v":""},{"$f":"IF('TSA Input'!J1335=\"\",\"\",IF(OR('TSA Input'!J1335=\"Yes\",'TSA Input'!J1335=\"Contingent\"),'TSA Input'!F1335,\"\"))","v":""},"","Required","Required"]
["",null,{"$f":"IF('TSA Input'!J1336=\"\",\"\",IF(OR('TSA Input'!J1336=\"Yes\",'TSA Input'!J1336=\"Contingent\"),'TSA Input'!B1336,\"Ineligible\"))","v":""},{"$f":"IF('TSA Input'!J1336=\"\",\"\",IF(OR('TSA Input'!J1336=\"Yes\",'TSA Input'!J1336=\"Contingent\"),'TSA Input'!I1336,\"\"))","v":""},{"$f":"IF('TSA Input'!J1336=\"\",\"\",IF(OR('TSA Input'!J1336=\"Yes\",'TSA Input'!J1336=\"Contingent\"),'TSA Input'!C1336,\"\"))","v":""},{"$f":"IF('TSA Input'!J1336=\"\",\"\",IF(OR('TSA Input'!J1336=\"Yes\",'TSA Input'!J1336=\"Contingent\"),'TSA Input'!D1336,\"\"))","v":""},{"$f":"IF('TSA Input'!J1336=\"\",\"\",IF(OR('TSA Input'!J1336=\"Yes\",'TSA Input'!J1336=\"Contingent\"),'TSA Input'!G1336,\"\"))","v":""},{"$f":"IF('TSA Input'!J1336=\"\",\"\",IF(OR('TSA Input'!J1336=\"Yes\",'TSA Input'!J1336=\"Contingent\"),'TSA Input'!F1336,\"\"))","v":""},"",{"$f":"IF('TSA Input'!J1336=\"\",\"\",IF(OR('TSA Input'!J1336=\"Yes\",'TSA Input'!J1336=\"Contingent\"),'TSA Input'!D1336,\"\"))","v":""},{"$f":"IF('TSA Input'!J1336=\"\",\"\",IF(OR('TSA Input'!J1336=\"Yes\",'TSA Input'!J1336=\"Contingent\"),'TSA Input'!G1336,\"\"))","v":""},{"$f":"IF('TSA Input'!J1336=\"\",\"\",IF(OR('TSA Input'!J1336=\"Yes\",'TSA Input'!J1336=\"Contingent\"),'TSA Input'!F1336,\"\"))","v":""},"","Required","Required"]
["",null,{"$f":"IF('TSA Input'!J1337=\"\",\"\",IF(OR('TSA Input'!J1337=\"Yes\",'TSA Input'!J1337=\"Contingent\"),'TSA Input'!B1337,\"Ineligible\"))","v":""},{"$f":"IF('TSA Input'!J1337=\"\",\"\",IF(OR('TSA Input'!J1337=\"Yes\",'TSA Input'!J1337=\"Contingent\"),'TSA Input'!I1337,\"\"))","v":""},{"$f":"IF('TSA Input'!J1337=\"\",\"\",IF(OR('TSA Input'!J1337=\"Yes\",'TSA Input'!J1337=\"Contingent\"),'TSA Input'!C1337,\"\"))","v":""},{"$f":"IF('TSA Input'!J1337=\"\",\"\",IF(OR('TSA Input'!J1337=\"Yes\",'TSA Input'!J1337=\"Contingent\"),'TSA Input'!D1337,\"\"))","v":""},{"$f":"IF('TSA Input'!J1337=\"\",\"\",IF(OR('TSA Input'!J1337=\"Yes\",'TSA Input'!J1337=\"Contingent\"),'TSA Input'!G1337,\"\"))","v":""},{"$f":"IF('TSA Input'!J1337=\"\",\"\",IF(OR('TSA Input'!J1337=\"Yes\",'TSA Input'!J1337=\"Contingent\"),'TSA Input'!F1337,\"\"))","v":""},"",{"$f":"IF('TSA Input'!J1337=\"\",\"\",IF(OR('TSA Input'!J1337=\"Yes\",'TSA Input'!J1337=\"Contingent\"),'TSA Input'!D1337,\"\"))","v":""},{"$f":"IF('TSA Input'!J1337=\"\",\"\",IF(OR('TSA Input'!J1337=\"Yes\",'TSA Input'!J1337=\"Contingent\"),'TSA Input'!G1337,\"\"))","v":""},{"$f":"IF('TSA Input'!J1337=\"\",\"\",IF(OR('TSA Input'!J1337=\"Yes\",'TSA Input'!J1337=\"Contingent\"),'TSA Input'!F1337,\"\"))","v":""},"","Required","Required"]
["",null,{"$f":"IF('TSA Input'!J1338=\"\",\"\",IF(OR('TSA Input'!J1338=\"Yes\",'TSA Input'!J1338=\"Contingent\"),'TSA Input'!B1338,\"Ineligible\"))","v":""},{"$f":"IF('TSA Input'!J1338=\"\",\"\",IF(OR('TSA Input'!J1338=\"Yes\",'TSA Input'!J1338=\"Contingent\"),'TSA Input'!I1338,\"\"))","v":""},{"$f":"IF('TSA Input'!J1338=\"\",\"\",IF(OR('TSA Input'!J1338=\"Yes\",'TSA Input'!J1338=\"Contingent\"),'TSA Input'!C1338,\"\"))","v":""},{"$f":"IF('TSA Input'!J1338=\"\",\"\",IF(OR('TSA Input'!J1338=\"Yes\",'TSA Input'!J1338=\"Contingent\"),'TSA Input'!D1338,\"\"))","v":""},{"$f":"IF('TSA Input'!J1338=\"\",\"\",IF(OR('TSA Input'!J1338=\"Yes\",'TSA Input'!J1338=\"Contingent\"),'TSA Input'!G1338,\"\"))","v":""},{"$f":"IF('TSA Input'!J1338=\"\",\"\",IF(OR('TSA Input'!J1338=\"Yes\",'TSA Input'!J1338=\"Contingent\"),'TSA Input'!F1338,\"\"))","v":""},"",{"$f":"IF('TSA Input'!J1338=\"\",\"\",IF(OR('TSA Input'!J1338=\"Yes\",'TSA Input'!J1338=\"Contingent\"),'TSA Input'!D1338,\"\"))","v":""},{"$f":"IF('TSA Input'!J1338=\"\",\"\",IF(OR('TSA Input'!J1338=\"Yes\",'TSA Input'!J1338=\"Contingent\"),'TSA Input'!G1338,\"\"))","v":""},{"$f":"IF('TSA Input'!J1338=\"\",\"\",IF(OR('TSA Input'!J1338=\"Yes\",'TSA Input'!J1338=\"Contingent\"),'TSA Input'!F1338,\"\"))","v":""},"","Required","Required"]
["",null,{"$f":"IF('TSA Input'!J1339=\"\",\"\",IF(OR('TSA Input'!J1339=\"Yes\",'TSA Input'!J1339=\"Contingent\"),'TSA Input'!B1339,\"Ineligible\"))","v":""},{"$f":"IF('TSA Input'!J1339=\"\",\"\",IF(OR('TSA Input'!J1339=\"Yes\",'TSA Input'!J1339=\"Contingent\"),'TSA Input'!I1339,\"\"))","v":""},{"$f":"IF('TSA Input'!J1339=\"\",\"\",IF(OR('TSA Input'!J1339=\"Yes\",'TSA Input'!J1339=\"Contingent\"),'TSA Input'!C1339,\"\"))","v":""},{"$f":"IF('TSA Input'!J1339=\"\",\"\",IF(OR('TSA Input'!J1339=\"Yes\",'TSA Input'!J1339=\"Contingent\"),'TSA Input'!D1339,\"\"))","v":""},{"$f":"IF('TSA Input'!J1339=\"\",\"\",IF(OR('TSA Input'!J1339=\"Yes\",'TSA Input'!J1339=\"Contingent\"),'TSA Input'!G1339,\"\"))","v":""},{"$f":"IF('TSA Input'!J1339=\"\",\"\",IF(OR('TSA Input'!J1339=\"Yes\",'TSA Input'!J1339=\"Contingent\"),'TSA Input'!F1339,\"\"))","v":""},"",{"$f":"IF('TSA Input'!J1339=\"\",\"\",IF(OR('TSA Input'!J1339=\"Yes\",'TSA Input'!J1339=\"Contingent\"),'TSA Input'!D1339,\"\"))","v":""},{"$f":"IF('TSA Input'!J1339=\"\",\"\",IF(OR('TSA Input'!J1339=\"Yes\",'TSA Input'!J1339=\"Contingent\"),'TSA Input'!G1339,\"\"))","v":""},{"$f":"IF('TSA Input'!J1339=\"\",\"\",IF(OR('TSA Input'!J1339=\"Yes\",'TSA Input'!J1339=\"Contingent\"),'TSA Input'!F1339,\"\"))","v":""},"","Required","Required"]
["",null,{"$f":"IF('TSA Input'!J1340=\"\",\"\",IF(OR('TSA Input'!J1340=\"Yes\",'TSA Input'!J1340=\"Contingent\"),'TSA Input'!B1340,\"Ineligible\"))","v":""},{"$f":"IF('TSA Input'!J1340=\"\",\"\",IF(OR('TSA Input'!J1340=\"Yes\",'TSA Input'!J1340=\"Contingent\"),'TSA Input'!I1340,\"\"))","v":""},{"$f":"IF('TSA Input'!J1340=\"\",\"\",IF(OR('TSA Input'!J1340=\"Yes\",'TSA Input'!J1340=\"Contingent\"),'TSA Input'!C1340,\"\"))","v":""},{"$f":"IF('TSA Input'!J1340=\"\",\"\",IF(OR('TSA Input'!J1340=\"Yes\",'TSA Input'!J1340=\"Contingent\"),'TSA Input'!D1340,\"\"))","v":""},{"$f":"IF('TSA Input'!J1340=\"\",\"\",IF(OR('TSA Input'!J1340=\"Yes\",'TSA Input'!J1340=\"Contingent\"),'TSA Input'!G1340,\"\"))","v":""},{"$f":"IF('TSA Input'!J1340=\"\",\"\",IF(OR('TSA Input'!J1340=\"Yes\",'TSA Input'!J1340=\"Contingent\"),'TSA Input'!F1340,\"\"))","v":""},"",{"$f":"IF('TSA Input'!J1340=\"\",\"\",IF(OR('TSA Input'!J1340=\"Yes\",'TSA Input'!J1340=\"Contingent\"),'TSA Input'!D1340,\"\"))","v":""},{"$f":"IF('TSA Input'!J1340=\"\",\"\",IF(OR('TSA Input'!J1340=\"Yes\",'TSA Input'!J1340=\"Contingent\"),'TSA Input'!G1340,\"\"))","v":""},{"$f":"IF('TSA Input'!J1340=\"\",\"\",IF(OR('TSA Input'!J1340=\"Yes\",'TSA Input'!J1340=\"Contingent\"),'TSA Input'!F1340,\"\"))","v":""},"","Required","Required"]
["",null,{"$f":"IF('TSA Input'!J1341=\"\",\"\",IF(OR('TSA Input'!J1341=\"Yes\",'TSA Input'!J1341=\"Contingent\"),'TSA Input'!B1341,\"Ineligible\"))","v":""},{"$f":"IF('TSA Input'!J1341=\"\",\"\",IF(OR('TSA Input'!J1341=\"Yes\",'TSA Input'!J1341=\"Contingent\"),'TSA Input'!I1341,\"\"))","v":""},{"$f":"IF('TSA Input'!J1341=\"\",\"\",IF(OR('TSA Input'!J1341=\"Yes\",'TSA Input'!J1341=\"Contingent\"),'TSA Input'!C1341,\"\"))","v":""},{"$f":"IF('TSA Input'!J1341=\"\",\"\",IF(OR('TSA Input'!J1341=\"Yes\",'TSA Input'!J1341=\"Contingent\"),'TSA Input'!D1341,\"\"))","v":""},{"$f":"IF('TSA Input'!J1341=\"\",\"\",IF(OR('TSA Input'!J1341=\"Yes\",'TSA Input'!J1341=\"Contingent\"),'TSA Input'!G1341,\"\"))","v":""},{"$f":"IF('TSA Input'!J1341=\"\",\"\",IF(OR('TSA Input'!J1341=\"Yes\",'TSA Input'!J1341=\"Contingent\"),'TSA Input'!F1341,\"\"))","v":""},"",{"$f":"IF('TSA Input'!J1341=\"\",\"\",IF(OR('TSA Input'!J1341=\"Yes\",'TSA Input'!J1341=\"Contingent\"),'TSA Input'!D1341,\"\"))","v":""},{"$f":"IF('TSA Input'!J1341=\"\",\"\",IF(OR('TSA Input'!J1341=\"Yes\",'TSA Input'!J1341=\"Contingent\"),'TSA Input'!G1341,\"\"))","v":""},{"$f":"IF('TSA Input'!J1341=\"\",\"\",IF(OR('TSA Input'!J1341=\"Yes\",'TSA Input'!J1341=\"Contingent\"),'TSA Input'!F1341,\"\"))","v":""},"","Required","Required"]
["",null,{"$f":"IF('TSA Input'!J1342=\"\",\"\",IF(OR('TSA Input'!J1342=\"Yes\",'TSA Input'!J1342=\"Contingent\"),'TSA Input'!B1342,\"Ineligible\"))","v":""},{"$f":"IF('TSA Input'!J1342=\"\",\"\",IF(OR('TSA Input'!J1342=\"Yes\",'TSA Input'!J1342=\"Contingent\"),'TSA Input'!I1342,\"\"))","v":""},{"$f":"IF('TSA Input'!J1342=\"\",\"\",IF(OR('TSA Input'!J1342=\"Yes\",'TSA Input'!J1342=\"Contingent\"),'TSA Input'!C1342,\"\"))","v":""},{"$f":"IF('TSA Input'!J1342=\"\",\"\",IF(OR('TSA Input'!J1342=\"Yes\",'TSA Input'!J1342=\"Contingent\"),'TSA Input'!D1342,\"\"))","v":""},{"$f":"IF('TSA Input'!J1342=\"\",\"\",IF(OR('TSA Input'!J1342=\"Yes\",'TSA Input'!J1342=\"Contingent\"),'TSA Input'!G1342,\"\"))","v":""},{"$f":"IF('TSA Input'!J1342=\"\",\"\",IF(OR('TSA Input'!J1342=\"Yes\",'TSA Input'!J1342=\"Contingent\"),'TSA Input'!F1342,\"\"))","v":""},"",{"$f":"IF('TSA Input'!J1342=\"\",\"\",IF(OR('TSA Input'!J1342=\"Yes\",'TSA Input'!J1342=\"Contingent\"),'TSA Input'!D1342,\"\"))","v":""},{"$f":"IF('TSA Input'!J1342=\"\",\"\",IF(OR('TSA Input'!J1342=\"Yes\",'TSA Input'!J1342=\"Contingent\"),'TSA Input'!G1342,\"\"))","v":""},{"$f":"IF('TSA Input'!J1342=\"\",\"\",IF(OR('TSA Input'!J1342=\"Yes\",'TSA Input'!J1342=\"Contingent\"),'TSA Input'!F1342,\"\"))","v":""},"","Required","Required"]
["",null,{"$f":"IF('TSA Input'!J1343=\"\",\"\",IF(OR('TSA Input'!J1343=\"Yes\",'TSA Input'!J1343=\"Contingent\"),'TSA Input'!B1343,\"Ineligible\"))","v":""},{"$f":"IF('TSA Input'!J1343=\"\",\"\",IF(OR('TSA Input'!J1343=\"Yes\",'TSA Input'!J1343=\"Contingent\"),'TSA Input'!I1343,\"\"))","v":""},{"$f":"IF('TSA Input'!J1343=\"\",\"\",IF(OR('TSA Input'!J1343=\"Yes\",'TSA Input'!J1343=\"Contingent\"),'TSA Input'!C1343,\"\"))","v":""},{"$f":"IF('TSA Input'!J1343=\"\",\"\",IF(OR('TSA Input'!J1343=\"Yes\",'TSA Input'!J1343=\"Contingent\"),'TSA Input'!D1343,\"\"))","v":""},{"$f":"IF('TSA Input'!J1343=\"\",\"\",IF(OR('TSA Input'!J1343=\"Yes\",'TSA Input'!J1343=\"Contingent\"),'TSA Input'!G1343,\"\"))","v":""},{"$f":"IF('TSA Input'!J1343=\"\",\"\",IF(OR('TSA Input'!J1343=\"Yes\",'TSA Input'!J1343=\"Contingent\"),'TSA Input'!F1343,\"\"))","v":""},"",{"$f":"IF('TSA Input'!J1343=\"\",\"\",IF(OR('TSA Input'!J1343=\"Yes\",'TSA Input'!J1343=\"Contingent\"),'TSA Input'!D1343,\"\"))","v":""},{"$f":"IF('TSA Input'!J1343=\"\",\"\",IF(OR('TSA Input'!J1343=\"Yes\",'TSA Input'!J1343=\"Contingent\"),'TSA Input'!G1343,\"\"))","v":""},{"$f":"IF('TSA Input'!J1343=\"\",\"\",IF(OR('TSA Input'!J1343=\"Yes\",'TSA Input'!J1343=\"Contingent\"),'TSA Input'!F1343,\"\"))","v":""},"","Required","Required"]
["",null,{"$f":"IF('TSA Input'!J1344=\"\",\"\",IF(OR('TSA Input'!J1344=\"Yes\",'TSA Input'!J1344=\"Contingent\"),'TSA Input'!B1344,\"Ineligible\"))","v":""},{"$f":"IF('TSA Input'!J1344=\"\",\"\",IF(OR('TSA Input'!J1344=\"Yes\",'TSA Input'!J1344=\"Contingent\"),'TSA Input'!I1344,\"\"))","v":""},{"$f":"IF('TSA Input'!J1344=\"\",\"\",IF(OR('TSA Input'!J1344=\"Yes\",'TSA Input'!J1344=\"Contingent\"),'TSA Input'!C1344,\"\"))","v":""},{"$f":"IF('TSA Input'!J1344=\"\",\"\",IF(OR('TSA Input'!J1344=\"Yes\",'TSA Input'!J1344=\"Contingent\"),'TSA Input'!D1344,\"\"))","v":""},{"$f":"IF('TSA Input'!J1344=\"\",\"\",IF(OR('TSA Input'!J1344=\"Yes\",'TSA Input'!J1344=\"Contingent\"),'TSA Input'!G1344,\"\"))","v":""},{"$f":"IF('TSA Input'!J1344=\"\",\"\",IF(OR('TSA Input'!J1344=\"Yes\",'TSA Input'!J1344=\"Contingent\"),'TSA Input'!F1344,\"\"))","v":""},"",{"$f":"IF('TSA Input'!J1344=\"\",\"\",IF(OR('TSA Input'!J1344=\"Yes\",'TSA Input'!J1344=\"Contingent\"),'TSA Input'!D1344,\"\"))","v":""},{"$f":"IF('TSA Input'!J1344=\"\",\"\",IF(OR('TSA Input'!J1344=\"Yes\",'TSA Input'!J1344=\"Contingent\"),'TSA Input'!G1344,\"\"))","v":""},{"$f":"IF('TSA Input'!J1344=\"\",\"\",IF(OR('TSA Input'!J1344=\"Yes\",'TSA Input'!J1344=\"Contingent\"),'TSA Input'!F1344,\"\"))","v":""},"","Required","Required"]
["",null,{"$f":"IF('TSA Input'!J1345=\"\",\"\",IF(OR('TSA Input'!J1345=\"Yes\",'TSA Input'!J1345=\"Contingent\"),'TSA Input'!B1345,\"Ineligible\"))","v":""},{"$f":"IF('TSA Input'!J1345=\"\",\"\",IF(OR('TSA Input'!J1345=\"Yes\",'TSA Input'!J1345=\"Contingent\"),'TSA Input'!I1345,\"\"))","v":""},{"$f":"IF('TSA Input'!J1345=\"\",\"\",IF(OR('TSA Input'!J1345=\"Yes\",'TSA Input'!J1345=\"Contingent\"),'TSA Input'!C1345,\"\"))","v":""},{"$f":"IF('TSA Input'!J1345=\"\",\"\",IF(OR('TSA Input'!J1345=\"Yes\",'TSA Input'!J1345=\"Contingent\"),'TSA Input'!D1345,\"\"))","v":""},{"$f":"IF('TSA Input'!J1345=\"\",\"\",IF(OR('TSA Input'!J1345=\"Yes\",'TSA Input'!J1345=\"Contingent\"),'TSA Input'!G1345,\"\"))","v":""},{"$f":"IF('TSA Input'!J1345=\"\",\"\",IF(OR('TSA Input'!J1345=\"Yes\",'TSA Input'!J1345=\"Contingent\"),'TSA Input'!F1345,\"\"))","v":""},"",{"$f":"IF('TSA Input'!J1345=\"\",\"\",IF(OR('TSA Input'!J1345=\"Yes\",'TSA Input'!J1345=\"Contingent\"),'TSA Input'!D1345,\"\"))","v":""},{"$f":"IF('TSA Input'!J1345=\"\",\"\",IF(OR('TSA Input'!J1345=\"Yes\",'TSA Input'!J1345=\"Contingent\"),'TSA Input'!G1345,\"\"))","v":""},{"$f":"IF('TSA Input'!J1345=\"\",\"\",IF(OR('TSA Input'!J1345=\"Yes\",'TSA Input'!J1345=\"Contingent\"),'TSA Input'!F1345,\"\"))","v":""},"","Required","Required"]
["",null,{"$f":"IF('TSA Input'!J1346=\"\",\"\",IF(OR('TSA Input'!J1346=\"Yes\",'TSA Input'!J1346=\"Contingent\"),'TSA Input'!B1346,\"Ineligible\"))","v":""},{"$f":"IF('TSA Input'!J1346=\"\",\"\",IF(OR('TSA Input'!J1346=\"Yes\",'TSA Input'!J1346=\"Contingent\"),'TSA Input'!I1346,\"\"))","v":""},{"$f":"IF('TSA Input'!J1346=\"\",\"\",IF(OR('TSA Input'!J1346=\"Yes\",'TSA Input'!J1346=\"Contingent\"),'TSA Input'!C1346,\"\"))","v":""},{"$f":"IF('TSA Input'!J1346=\"\",\"\",IF(OR('TSA Input'!J1346=\"Yes\",'TSA Input'!J1346=\"Contingent\"),'TSA Input'!D1346,\"\"))","v":""},{"$f":"IF('TSA Input'!J1346=\"\",\"\",IF(OR('TSA Input'!J1346=\"Yes\",'TSA Input'!J1346=\"Contingent\"),'TSA Input'!G1346,\"\"))","v":""},{"$f":"IF('TSA Input'!J1346=\"\",\"\",IF(OR('TSA Input'!J1346=\"Yes\",'TSA Input'!J1346=\"Contingent\"),'TSA Input'!F1346,\"\"))","v":""},"",{"$f":"IF('TSA Input'!J1346=\"\",\"\",IF(OR('TSA Input'!J1346=\"Yes\",'TSA Input'!J1346=\"Contingent\"),'TSA Input'!D1346,\"\"))","v":""},{"$f":"IF('TSA Input'!J1346=\"\",\"\",IF(OR('TSA Input'!J1346=\"Yes\",'TSA Input'!J1346=\"Contingent\"),'TSA Input'!G1346,\"\"))","v":""},{"$f":"IF('TSA Input'!J1346=\"\",\"\",IF(OR('TSA Input'!J1346=\"Yes\",'TSA Input'!J1346=\"Contingent\"),'TSA Input'!F1346,\"\"))","v":""},"","Required","Required"]
["",null,{"$f":"IF('TSA Input'!J1347=\"\",\"\",IF(OR('TSA Input'!J1347=\"Yes\",'TSA Input'!J1347=\"Contingent\"),'TSA Input'!B1347,\"Ineligible\"))","v":""},{"$f":"IF('TSA Input'!J1347=\"\",\"\",IF(OR('TSA Input'!J1347=\"Yes\",'TSA Input'!J1347=\"Contingent\"),'TSA Input'!I1347,\"\"))","v":""},{"$f":"IF('TSA Input'!J1347=\"\",\"\",IF(OR('TSA Input'!J1347=\"Yes\",'TSA Input'!J1347=\"Contingent\"),'TSA Input'!C1347,\"\"))","v":""},{"$f":"IF('TSA Input'!J1347=\"\",\"\",IF(OR('TSA Input'!J1347=\"Yes\",'TSA Input'!J1347=\"Contingent\"),'TSA Input'!D1347,\"\"))","v":""},{"$f":"IF('TSA Input'!J1347=\"\",\"\",IF(OR('TSA Input'!J1347=\"Yes\",'TSA Input'!J1347=\"Contingent\"),'TSA Input'!G1347,\"\"))","v":""},{"$f":"IF('TSA Input'!J1347=\"\",\"\",IF(OR('TSA Input'!J1347=\"Yes\",'TSA Input'!J1347=\"Contingent\"),'TSA Input'!F1347,\"\"))","v":""},"",{"$f":"IF('TSA Input'!J1347=\"\",\"\",IF(OR('TSA Input'!J1347=\"Yes\",'TSA Input'!J1347=\"Contingent\"),'TSA Input'!D1347,\"\"))","v":""},{"$f":"IF('TSA Input'!J1347=\"\",\"\",IF(OR('TSA Input'!J1347=\"Yes\",'TSA Input'!J1347=\"Contingent\"),'TSA Input'!G1347,\"\"))","v":""},{"$f":"IF('TSA Input'!J1347=\"\",\"\",IF(OR('TSA Input'!J1347=\"Yes\",'TSA Input'!J1347=\"Contingent\"),'TSA Input'!F1347,\"\"))","v":""},"","Required","Required"]
["",null,{"$f":"IF('TSA Input'!J1348=\"\",\"\",IF(OR('TSA Input'!J1348=\"Yes\",'TSA Input'!J1348=\"Contingent\"),'TSA Input'!B1348,\"Ineligible\"))","v":""},{"$f":"IF('TSA Input'!J1348=\"\",\"\",IF(OR('TSA Input'!J1348=\"Yes\",'TSA Input'!J1348=\"Contingent\"),'TSA Input'!I1348,\"\"))","v":""},{"$f":"IF('TSA Input'!J1348=\"\",\"\",IF(OR('TSA Input'!J1348=\"Yes\",'TSA Input'!J1348=\"Contingent\"),'TSA Input'!C1348,\"\"))","v":""},{"$f":"IF('TSA Input'!J1348=\"\",\"\",IF(OR('TSA Input'!J1348=\"Yes\",'TSA Input'!J1348=\"Contingent\"),'TSA Input'!D1348,\"\"))","v":""},{"$f":"IF('TSA Input'!J1348=\"\",\"\",IF(OR('TSA Input'!J1348=\"Yes\",'TSA Input'!J1348=\"Contingent\"),'TSA Input'!G1348,\"\"))","v":""},{"$f":"IF('TSA Input'!J1348=\"\",\"\",IF(OR('TSA Input'!J1348=\"Yes\",'TSA Input'!J1348=\"Contingent\"),'TSA Input'!F1348,\"\"))","v":""},{"$f":"IF($C1386=\"\",\"\",SUM(F1386:H1386))","v":""},{"$f":"IF('TSA Input'!J1348=\"\",\"\",IF(OR('TSA Input'!J1348=\"Yes\",'TSA Input'!J1348=\"Contingent\"),'TSA Input'!D1348,\"\"))","v":""},{"$f":"IF('TSA Input'!J1348=\"\",\"\",IF(OR('TSA Input'!J1348=\"Yes\",'TSA Input'!J1348=\"Contingent\"),'TSA Input'!G1348,\"\"))","v":""},{"$f":"IF('TSA Input'!J1348=\"\",\"\",IF(OR('TSA Input'!J1348=\"Yes\",'TSA Input'!J1348=\"Contingent\"),'TSA Input'!F1348,\"\"))","v":""},{"$f":"IF($C1386=\"\",\"\",SUM(J1386:L1386))","v":""},"Required","Required"]
["",null,{"$f":"IF('TSA Input'!J1349=\"\",\"\",IF(OR('TSA Input'!J1349=\"Yes\",'TSA Input'!J1349=\"Contingent\"),'TSA Input'!B1349,\"Ineligible\"))","v":""},{"$f":"IF('TSA Input'!J1349=\"\",\"\",IF(OR('TSA Input'!J1349=\"Yes\",'TSA Input'!J1349=\"Contingent\"),'TSA Input'!I1349,\"\"))","v":""},{"$f":"IF('TSA Input'!J1349=\"\",\"\",IF(OR('TSA Input'!J1349=\"Yes\",'TSA Input'!J1349=\"Contingent\"),'TSA Input'!C1349,\"\"))","v":""},{"$f":"IF('TSA Input'!J1349=\"\",\"\",IF(OR('TSA Input'!J1349=\"Yes\",'TSA Input'!J1349=\"Contingent\"),'TSA Input'!D1349,\"\"))","v":""},{"$f":"IF('TSA Input'!J1349=\"\",\"\",IF(OR('TSA Input'!J1349=\"Yes\",'TSA Input'!J1349=\"Contingent\"),'TSA Input'!G1349,\"\"))","v":""},{"$f":"IF('TSA Input'!J1349=\"\",\"\",IF(OR('TSA Input'!J1349=\"Yes\",'TSA Input'!J1349=\"Contingent\"),'TSA Input'!F1349,\"\"))","v":""},"",{"$f":"IF('TSA Input'!J1349=\"\",\"\",IF(OR('TSA Input'!J1349=\"Yes\",'TSA Input'!J1349=\"Contingent\"),'TSA Input'!D1349,\"\"))","v":""},{"$f":"IF('TSA Input'!J1349=\"\",\"\",IF(OR('TSA Input'!J1349=\"Yes\",'TSA Input'!J1349=\"Contingent\"),'TSA Input'!G1349,\"\"))","v":""},{"$f":"IF('TSA Input'!J1349=\"\",\"\",IF(OR('TSA Input'!J1349=\"Yes\",'TSA Input'!J1349=\"Contingent\"),'TSA Input'!F1349,\"\"))","v":""},"","Required","Required"]
["",null,{"$f":"IF('TSA Input'!J1350=\"\",\"\",IF(OR('TSA Input'!J1350=\"Yes\",'TSA Input'!J1350=\"Contingent\"),'TSA Input'!B1350,\"Ineligible\"))","v":""},{"$f":"IF('TSA Input'!J1350=\"\",\"\",IF(OR('TSA Input'!J1350=\"Yes\",'TSA Input'!J1350=\"Contingent\"),'TSA Input'!I1350,\"\"))","v":""},{"$f":"IF('TSA Input'!J1350=\"\",\"\",IF(OR('TSA Input'!J1350=\"Yes\",'TSA Input'!J1350=\"Contingent\"),'TSA Input'!C1350,\"\"))","v":""},{"$f":"IF('TSA Input'!J1350=\"\",\"\",IF(OR('TSA Input'!J1350=\"Yes\",'TSA Input'!J1350=\"Contingent\"),'TSA Input'!D1350,\"\"))","v":""},{"$f":"IF('TSA Input'!J1350=\"\",\"\",IF(OR('TSA Input'!J1350=\"Yes\",'TSA Input'!J1350=\"Contingent\"),'TSA Input'!G1350,\"\"))","v":""},{"$f":"IF('TSA Input'!J1350=\"\",\"\",IF(OR('TSA Input'!J1350=\"Yes\",'TSA Input'!J1350=\"Contingent\"),'TSA Input'!F1350,\"\"))","v":""},"",{"$f":"IF('TSA Input'!J1350=\"\",\"\",IF(OR('TSA Input'!J1350=\"Yes\",'TSA Input'!J1350=\"Contingent\"),'TSA Input'!D1350,\"\"))","v":""},{"$f":"IF('TSA Input'!J1350=\"\",\"\",IF(OR('TSA Input'!J1350=\"Yes\",'TSA Input'!J1350=\"Contingent\"),'TSA Input'!G1350,\"\"))","v":""},{"$f":"IF('TSA Input'!J1350=\"\",\"\",IF(OR('TSA Input'!J1350=\"Yes\",'TSA Input'!J1350=\"Contingent\"),'TSA Input'!F1350,\"\"))","v":""},"","Required","Required"]
["",null,{"$f":"IF('TSA Input'!J1351=\"\",\"\",IF(OR('TSA Input'!J1351=\"Yes\",'TSA Input'!J1351=\"Contingent\"),'TSA Input'!B1351,\"Ineligible\"))","v":""},{"$f":"IF('TSA Input'!J1351=\"\",\"\",IF(OR('TSA Input'!J1351=\"Yes\",'TSA Input'!J1351=\"Contingent\"),'TSA Input'!I1351,\"\"))","v":""},{"$f":"IF('TSA Input'!J1351=\"\",\"\",IF(OR('TSA Input'!J1351=\"Yes\",'TSA Input'!J1351=\"Contingent\"),'TSA Input'!C1351,\"\"))","v":""},{"$f":"IF('TSA Input'!J1351=\"\",\"\",IF(OR('TSA Input'!J1351=\"Yes\",'TSA Input'!J1351=\"Contingent\"),'TSA Input'!D1351,\"\"))","v":""},{"$f":"IF('TSA Input'!J1351=\"\",\"\",IF(OR('TSA Input'!J1351=\"Yes\",'TSA Input'!J1351=\"Contingent\"),'TSA Input'!G1351,\"\"))","v":""},{"$f":"IF('TSA Input'!J1351=\"\",\"\",IF(OR('TSA Input'!J1351=\"Yes\",'TSA Input'!J1351=\"Contingent\"),'TSA Input'!F1351,\"\"))","v":""},"",{"$f":"IF('TSA Input'!J1351=\"\",\"\",IF(OR('TSA Input'!J1351=\"Yes\",'TSA Input'!J1351=\"Contingent\"),'TSA Input'!D1351,\"\"))","v":""},{"$f":"IF('TSA Input'!J1351=\"\",\"\",IF(OR('TSA Input'!J1351=\"Yes\",'TSA Input'!J1351=\"Contingent\"),'TSA Input'!G1351,\"\"))","v":""},{"$f":"IF('TSA Input'!J1351=\"\",\"\",IF(OR('TSA Input'!J1351=\"Yes\",'TSA Input'!J1351=\"Contingent\"),'TSA Input'!F1351,\"\"))","v":""},"","Required","Required"]
["",null,{"$f":"IF('TSA Input'!J1352=\"\",\"\",IF(OR('TSA Input'!J1352=\"Yes\",'TSA Input'!J1352=\"Contingent\"),'TSA Input'!B1352,\"Ineligible\"))","v":""},{"$f":"IF('TSA Input'!J1352=\"\",\"\",IF(OR('TSA Input'!J1352=\"Yes\",'TSA Input'!J1352=\"Contingent\"),'TSA Input'!I1352,\"\"))","v":""},{"$f":"IF('TSA Input'!J1352=\"\",\"\",IF(OR('TSA Input'!J1352=\"Yes\",'TSA Input'!J1352=\"Contingent\"),'TSA Input'!C1352,\"\"))","v":""},{"$f":"IF('TSA Input'!J1352=\"\",\"\",IF(OR('TSA Input'!J1352=\"Yes\",'TSA Input'!J1352=\"Contingent\"),'TSA Input'!D1352,\"\"))","v":""},{"$f":"IF('TSA Input'!J1352=\"\",\"\",IF(OR('TSA Input'!J1352=\"Yes\",'TSA Input'!J1352=\"Contingent\"),'TSA Input'!G1352,\"\"))","v":""},{"$f":"IF('TSA Input'!J1352=\"\",\"\",IF(OR('TSA Input'!J1352=\"Yes\",'TSA Input'!J1352=\"Contingent\"),'TSA Input'!F1352,\"\"))","v":""},"",{"$f":"IF('TSA Input'!J1352=\"\",\"\",IF(OR('TSA Input'!J1352=\"Yes\",'TSA Input'!J1352=\"Contingent\"),'TSA Input'!D1352,\"\"))","v":""},{"$f":"IF('TSA Input'!J1352=\"\",\"\",IF(OR('TSA Input'!J1352=\"Yes\",'TSA Input'!J1352=\"Contingent\"),'TSA Input'!G1352,\"\"))","v":""},{"$f":"IF('TSA Input'!J1352=\"\",\"\",IF(OR('TSA Input'!J1352=\"Yes\",'TSA Input'!J1352=\"Contingent\"),'TSA Input'!F1352,\"\"))","v":""},"","Required","Required"]
["",null,{"$f":"IF('TSA Input'!J1353=\"\",\"\",IF(OR('TSA Input'!J1353=\"Yes\",'TSA Input'!J1353=\"Contingent\"),'TSA Input'!B1353,\"Ineligible\"))","v":""},{"$f":"IF('TSA Input'!J1353=\"\",\"\",IF(OR('TSA Input'!J1353=\"Yes\",'TSA Input'!J1353=\"Contingent\"),'TSA Input'!I1353,\"\"))","v":""},{"$f":"IF('TSA Input'!J1353=\"\",\"\",IF(OR('TSA Input'!J1353=\"Yes\",'TSA Input'!J1353=\"Contingent\"),'TSA Input'!C1353,\"\"))","v":""},{"$f":"IF('TSA Input'!J1353=\"\",\"\",IF(OR('TSA Input'!J1353=\"Yes\",'TSA Input'!J1353=\"Contingent\"),'TSA Input'!D1353,\"\"))","v":""},{"$f":"IF('TSA Input'!J1353=\"\",\"\",IF(OR('TSA Input'!J1353=\"Yes\",'TSA Input'!J1353=\"Contingent\"),'TSA Input'!G1353,\"\"))","v":""},{"$f":"IF('TSA Input'!J1353=\"\",\"\",IF(OR('TSA Input'!J1353=\"Yes\",'TSA Input'!J1353=\"Contingent\"),'TSA Input'!F1353,\"\"))","v":""},"",{"$f":"IF('TSA Input'!J1353=\"\",\"\",IF(OR('TSA Input'!J1353=\"Yes\",'TSA Input'!J1353=\"Contingent\"),'TSA Input'!D1353,\"\"))","v":""},{"$f":"IF('TSA Input'!J1353=\"\",\"\",IF(OR('TSA Input'!J1353=\"Yes\",'TSA Input'!J1353=\"Contingent\"),'TSA Input'!G1353,\"\"))","v":""},{"$f":"IF('TSA Input'!J1353=\"\",\"\",IF(OR('TSA Input'!J1353=\"Yes\",'TSA Input'!J1353=\"Contingent\"),'TSA Input'!F1353,\"\"))","v":""},"","Required","Required"]
["",null,{"$f":"IF('TSA Input'!J1354=\"\",\"\",IF(OR('TSA Input'!J1354=\"Yes\",'TSA Input'!J1354=\"Contingent\"),'TSA Input'!B1354,\"Ineligible\"))","v":""},{"$f":"IF('TSA Input'!J1354=\"\",\"\",IF(OR('TSA Input'!J1354=\"Yes\",'TSA Input'!J1354=\"Contingent\"),'TSA Input'!I1354,\"\"))","v":""},{"$f":"IF('TSA Input'!J1354=\"\",\"\",IF(OR('TSA Input'!J1354=\"Yes\",'TSA Input'!J1354=\"Contingent\"),'TSA Input'!C1354,\"\"))","v":""},{"$f":"IF('TSA Input'!J1354=\"\",\"\",IF(OR('TSA Input'!J1354=\"Yes\",'TSA Input'!J1354=\"Contingent\"),'TSA Input'!D1354,\"\"))","v":""},{"$f":"IF('TSA Input'!J1354=\"\",\"\",IF(OR('TSA Input'!J1354=\"Yes\",'TSA Input'!J1354=\"Contingent\"),'TSA Input'!G1354,\"\"))","v":""},{"$f":"IF('TSA Input'!J1354=\"\",\"\",IF(OR('TSA Input'!J1354=\"Yes\",'TSA Input'!J1354=\"Contingent\"),'TSA Input'!F1354,\"\"))","v":""},"",{"$f":"IF('TSA Input'!J1354=\"\",\"\",IF(OR('TSA Input'!J1354=\"Yes\",'TSA Input'!J1354=\"Contingent\"),'TSA Input'!D1354,\"\"))","v":""},{"$f":"IF('TSA Input'!J1354=\"\",\"\",IF(OR('TSA Input'!J1354=\"Yes\",'TSA Input'!J1354=\"Contingent\"),'TSA Input'!G1354,\"\"))","v":""},{"$f":"IF('TSA Input'!J1354=\"\",\"\",IF(OR('TSA Input'!J1354=\"Yes\",'TSA Input'!J1354=\"Contingent\"),'TSA Input'!F1354,\"\"))","v":""},"","Required","Required"]
["",null,{"$f":"IF('TSA Input'!J1355=\"\",\"\",IF(OR('TSA Input'!J1355=\"Yes\",'TSA Input'!J1355=\"Contingent\"),'TSA Input'!B1355,\"Ineligible\"))","v":""},{"$f":"IF('TSA Input'!J1355=\"\",\"\",IF(OR('TSA Input'!J1355=\"Yes\",'TSA Input'!J1355=\"Contingent\"),'TSA Input'!I1355,\"\"))","v":""},{"$f":"IF('TSA Input'!J1355=\"\",\"\",IF(OR('TSA Input'!J1355=\"Yes\",'TSA Input'!J1355=\"Contingent\"),'TSA Input'!C1355,\"\"))","v":""},{"$f":"IF('TSA Input'!J1355=\"\",\"\",IF(OR('TSA Input'!J1355=\"Yes\",'TSA Input'!J1355=\"Contingent\"),'TSA Input'!D1355,\"\"))","v":""},{"$f":"IF('TSA Input'!J1355=\"\",\"\",IF(OR('TSA Input'!J1355=\"Yes\",'TSA Input'!J1355=\"Contingent\"),'TSA Input'!G1355,\"\"))","v":""},{"$f":"IF('TSA Input'!J1355=\"\",\"\",IF(OR('TSA Input'!J1355=\"Yes\",'TSA Input'!J1355=\"Contingent\"),'TSA Input'!F1355,\"\"))","v":""},"",{"$f":"IF('TSA Input'!J1355=\"\",\"\",IF(OR('TSA Input'!J1355=\"Yes\",'TSA Input'!J1355=\"Contingent\"),'TSA Input'!D1355,\"\"))","v":""},{"$f":"IF('TSA Input'!J1355=\"\",\"\",IF(OR('TSA Input'!J1355=\"Yes\",'TSA Input'!J1355=\"Contingent\"),'TSA Input'!G1355,\"\"))","v":""},{"$f":"IF('TSA Input'!J1355=\"\",\"\",IF(OR('TSA Input'!J1355=\"Yes\",'TSA Input'!J1355=\"Contingent\"),'TSA Input'!F1355,\"\"))","v":""},"","Required","Required"]
["",null,{"$f":"IF('TSA Input'!J1356=\"\",\"\",IF(OR('TSA Input'!J1356=\"Yes\",'TSA Input'!J1356=\"Contingent\"),'TSA Input'!B1356,\"Ineligible\"))","v":""},{"$f":"IF('TSA Input'!J1356=\"\",\"\",IF(OR('TSA Input'!J1356=\"Yes\",'TSA Input'!J1356=\"Contingent\"),'TSA Input'!I1356,\"\"))","v":""},{"$f":"IF('TSA Input'!J1356=\"\",\"\",IF(OR('TSA Input'!J1356=\"Yes\",'TSA Input'!J1356=\"Contingent\"),'TSA Input'!C1356,\"\"))","v":""},{"$f":"IF('TSA Input'!J1356=\"\",\"\",IF(OR('TSA Input'!J1356=\"Yes\",'TSA Input'!J1356=\"Contingent\"),'TSA Input'!D1356,\"\"))","v":""},{"$f":"IF('TSA Input'!J1356=\"\",\"\",IF(OR('TSA Input'!J1356=\"Yes\",'TSA Input'!J1356=\"Contingent\"),'TSA Input'!G1356,\"\"))","v":""},{"$f":"IF('TSA Input'!J1356=\"\",\"\",IF(OR('TSA Input'!J1356=\"Yes\",'TSA Input'!J1356=\"Contingent\"),'TSA Input'!F1356,\"\"))","v":""},"",{"$f":"IF('TSA Input'!J1356=\"\",\"\",IF(OR('TSA Input'!J1356=\"Yes\",'TSA Input'!J1356=\"Contingent\"),'TSA Input'!D1356,\"\"))","v":""},{"$f":"IF('TSA Input'!J1356=\"\",\"\",IF(OR('TSA Input'!J1356=\"Yes\",'TSA Input'!J1356=\"Contingent\"),'TSA Input'!G1356,\"\"))","v":""},{"$f":"IF('TSA Input'!J1356=\"\",\"\",IF(OR('TSA Input'!J1356=\"Yes\",'TSA Input'!J1356=\"Contingent\"),'TSA Input'!F1356,\"\"))","v":""},"","Required","Required"]
["",null,{"$f":"IF('TSA Input'!J1357=\"\",\"\",IF(OR('TSA Input'!J1357=\"Yes\",'TSA Input'!J1357=\"Contingent\"),'TSA Input'!B1357,\"Ineligible\"))","v":""},{"$f":"IF('TSA Input'!J1357=\"\",\"\",IF(OR('TSA Input'!J1357=\"Yes\",'TSA Input'!J1357=\"Contingent\"),'TSA Input'!I1357,\"\"))","v":""},{"$f":"IF('TSA Input'!J1357=\"\",\"\",IF(OR('TSA Input'!J1357=\"Yes\",'TSA Input'!J1357=\"Contingent\"),'TSA Input'!C1357,\"\"))","v":""},{"$f":"IF('TSA Input'!J1357=\"\",\"\",IF(OR('TSA Input'!J1357=\"Yes\",'TSA Input'!J1357=\"Contingent\"),'TSA Input'!D1357,\"\"))","v":""},{"$f":"IF('TSA Input'!J1357=\"\",\"\",IF(OR('TSA Input'!J1357=\"Yes\",'TSA Input'!J1357=\"Contingent\"),'TSA Input'!G1357,\"\"))","v":""},{"$f":"IF('TSA Input'!J1357=\"\",\"\",IF(OR('TSA Input'!J1357=\"Yes\",'TSA Input'!J1357=\"Contingent\"),'TSA Input'!F1357,\"\"))","v":""},"",{"$f":"IF('TSA Input'!J1357=\"\",\"\",IF(OR('TSA Input'!J1357=\"Yes\",'TSA Input'!J1357=\"Contingent\"),'TSA Input'!D1357,\"\"))","v":""},{"$f":"IF('TSA Input'!J1357=\"\",\"\",IF(OR('TSA Input'!J1357=\"Yes\",'TSA Input'!J1357=\"Contingent\"),'TSA Input'!G1357,\"\"))","v":""},{"$f":"IF('TSA Input'!J1357=\"\",\"\",IF(OR('TSA Input'!J1357=\"Yes\",'TSA Input'!J1357=\"Contingent\"),'TSA Input'!F1357,\"\"))","v":""},"","Required","Required"]
["",null,{"$f":"IF('TSA Input'!J1358=\"\",\"\",IF(OR('TSA Input'!J1358=\"Yes\",'TSA Input'!J1358=\"Contingent\"),'TSA Input'!B1358,\"Ineligible\"))","v":""},{"$f":"IF('TSA Input'!J1358=\"\",\"\",IF(OR('TSA Input'!J1358=\"Yes\",'TSA Input'!J1358=\"Contingent\"),'TSA Input'!I1358,\"\"))","v":""},{"$f":"IF('TSA Input'!J1358=\"\",\"\",IF(OR('TSA Input'!J1358=\"Yes\",'TSA Input'!J1358=\"Contingent\"),'TSA Input'!C1358,\"\"))","v":""},{"$f":"IF('TSA Input'!J1358=\"\",\"\",IF(OR('TSA Input'!J1358=\"Yes\",'TSA Input'!J1358=\"Contingent\"),'TSA Input'!D1358,\"\"))","v":""},{"$f":"IF('TSA Input'!J1358=\"\",\"\",IF(OR('TSA Input'!J1358=\"Yes\",'TSA Input'!J1358=\"Contingent\"),'TSA Input'!G1358,\"\"))","v":""},{"$f":"IF('TSA Input'!J1358=\"\",\"\",IF(OR('TSA Input'!J1358=\"Yes\",'TSA Input'!J1358=\"Contingent\"),'TSA Input'!F1358,\"\"))","v":""},"",{"$f":"IF('TSA Input'!J1358=\"\",\"\",IF(OR('TSA Input'!J1358=\"Yes\",'TSA Input'!J1358=\"Contingent\"),'TSA Input'!D1358,\"\"))","v":""},{"$f":"IF('TSA Input'!J1358=\"\",\"\",IF(OR('TSA Input'!J1358=\"Yes\",'TSA Input'!J1358=\"Contingent\"),'TSA Input'!G1358,\"\"))","v":""},{"$f":"IF('TSA Input'!J1358=\"\",\"\",IF(OR('TSA Input'!J1358=\"Yes\",'TSA Input'!J1358=\"Contingent\"),'TSA Input'!F1358,\"\"))","v":""},"","Required","Required"]
["",null,{"$f":"IF('TSA Input'!J1359=\"\",\"\",IF(OR('TSA Input'!J1359=\"Yes\",'TSA Input'!J1359=\"Contingent\"),'TSA Input'!B1359,\"Ineligible\"))","v":""},{"$f":"IF('TSA Input'!J1359=\"\",\"\",IF(OR('TSA Input'!J1359=\"Yes\",'TSA Input'!J1359=\"Contingent\"),'TSA Input'!I1359,\"\"))","v":""},{"$f":"IF('TSA Input'!J1359=\"\",\"\",IF(OR('TSA Input'!J1359=\"Yes\",'TSA Input'!J1359=\"Contingent\"),'TSA Input'!C1359,\"\"))","v":""},{"$f":"IF('TSA Input'!J1359=\"\",\"\",IF(OR('TSA Input'!J1359=\"Yes\",'TSA Input'!J1359=\"Contingent\"),'TSA Input'!D1359,\"\"))","v":""},{"$f":"IF('TSA Input'!J1359=\"\",\"\",IF(OR('TSA Input'!J1359=\"Yes\",'TSA Input'!J1359=\"Contingent\"),'TSA Input'!G1359,\"\"))","v":""},{"$f":"IF('TSA Input'!J1359=\"\",\"\",IF(OR('TSA Input'!J1359=\"Yes\",'TSA Input'!J1359=\"Contingent\"),'TSA Input'!F1359,\"\"))","v":""},"",{"$f":"IF('TSA Input'!J1359=\"\",\"\",IF(OR('TSA Input'!J1359=\"Yes\",'TSA Input'!J1359=\"Contingent\"),'TSA Input'!D1359,\"\"))","v":""},{"$f":"IF('TSA Input'!J1359=\"\",\"\",IF(OR('TSA Input'!J1359=\"Yes\",'TSA Input'!J1359=\"Contingent\"),'TSA Input'!G1359,\"\"))","v":""},{"$f":"IF('TSA Input'!J1359=\"\",\"\",IF(OR('TSA Input'!J1359=\"Yes\",'TSA Input'!J1359=\"Contingent\"),'TSA Input'!F1359,\"\"))","v":""},"","Required","Required"]
["",null,{"$f":"IF('TSA Input'!J1360=\"\",\"\",IF(OR('TSA Input'!J1360=\"Yes\",'TSA Input'!J1360=\"Contingent\"),'TSA Input'!B1360,\"Ineligible\"))","v":""},{"$f":"IF('TSA Input'!J1360=\"\",\"\",IF(OR('TSA Input'!J1360=\"Yes\",'TSA Input'!J1360=\"Contingent\"),'TSA Input'!I1360,\"\"))","v":""},{"$f":"IF('TSA Input'!J1360=\"\",\"\",IF(OR('TSA Input'!J1360=\"Yes\",'TSA Input'!J1360=\"Contingent\"),'TSA Input'!C1360,\"\"))","v":""},{"$f":"IF('TSA Input'!J1360=\"\",\"\",IF(OR('TSA Input'!J1360=\"Yes\",'TSA Input'!J1360=\"Contingent\"),'TSA Input'!D1360,\"\"))","v":""},{"$f":"IF('TSA Input'!J1360=\"\",\"\",IF(OR('TSA Input'!J1360=\"Yes\",'TSA Input'!J1360=\"Contingent\"),'TSA Input'!G1360,\"\"))","v":""},{"$f":"IF('TSA Input'!J1360=\"\",\"\",IF(OR('TSA Input'!J1360=\"Yes\",'TSA Input'!J1360=\"Contingent\"),'TSA Input'!F1360,\"\"))","v":""},"",{"$f":"IF('TSA Input'!J1360=\"\",\"\",IF(OR('TSA Input'!J1360=\"Yes\",'TSA Input'!J1360=\"Contingent\"),'TSA Input'!D1360,\"\"))","v":""},{"$f":"IF('TSA Input'!J1360=\"\",\"\",IF(OR('TSA Input'!J1360=\"Yes\",'TSA Input'!J1360=\"Contingent\"),'TSA Input'!G1360,\"\"))","v":""},{"$f":"IF('TSA Input'!J1360=\"\",\"\",IF(OR('TSA Input'!J1360=\"Yes\",'TSA Input'!J1360=\"Contingent\"),'TSA Input'!F1360,\"\"))","v":""},"","Required","Required"]
["",null,{"$f":"IF('TSA Input'!J1361=\"\",\"\",IF(OR('TSA Input'!J1361=\"Yes\",'TSA Input'!J1361=\"Contingent\"),'TSA Input'!B1361,\"Ineligible\"))","v":""},{"$f":"IF('TSA Input'!J1361=\"\",\"\",IF(OR('TSA Input'!J1361=\"Yes\",'TSA Input'!J1361=\"Contingent\"),'TSA Input'!I1361,\"\"))","v":""},{"$f":"IF('TSA Input'!J1361=\"\",\"\",IF(OR('TSA Input'!J1361=\"Yes\",'TSA Input'!J1361=\"Contingent\"),'TSA Input'!C1361,\"\"))","v":""},{"$f":"IF('TSA Input'!J1361=\"\",\"\",IF(OR('TSA Input'!J1361=\"Yes\",'TSA Input'!J1361=\"Contingent\"),'TSA Input'!D1361,\"\"))","v":""},{"$f":"IF('TSA Input'!J1361=\"\",\"\",IF(OR('TSA Input'!J1361=\"Yes\",'TSA Input'!J1361=\"Contingent\"),'TSA Input'!G1361,\"\"))","v":""},{"$f":"IF('TSA Input'!J1361=\"\",\"\",IF(OR('TSA Input'!J1361=\"Yes\",'TSA Input'!J1361=\"Contingent\"),'TSA Input'!F1361,\"\"))","v":""},"",{"$f":"IF('TSA Input'!J1361=\"\",\"\",IF(OR('TSA Input'!J1361=\"Yes\",'TSA Input'!J1361=\"Contingent\"),'TSA Input'!D1361,\"\"))","v":""},{"$f":"IF('TSA Input'!J1361=\"\",\"\",IF(OR('TSA Input'!J1361=\"Yes\",'TSA Input'!J1361=\"Contingent\"),'TSA Input'!G1361,\"\"))","v":""},{"$f":"IF('TSA Input'!J1361=\"\",\"\",IF(OR('TSA Input'!J1361=\"Yes\",'TSA Input'!J1361=\"Contingent\"),'TSA Input'!F1361,\"\"))","v":""},"","Required","Required"]
["",null,{"$f":"IF('TSA Input'!J1362=\"\",\"\",IF(OR('TSA Input'!J1362=\"Yes\",'TSA Input'!J1362=\"Contingent\"),'TSA Input'!B1362,\"Ineligible\"))","v":""},{"$f":"IF('TSA Input'!J1362=\"\",\"\",IF(OR('TSA Input'!J1362=\"Yes\",'TSA Input'!J1362=\"Contingent\"),'TSA Input'!I1362,\"\"))","v":""},{"$f":"IF('TSA Input'!J1362=\"\",\"\",IF(OR('TSA Input'!J1362=\"Yes\",'TSA Input'!J1362=\"Contingent\"),'TSA Input'!C1362,\"\"))","v":""},{"$f":"IF('TSA Input'!J1362=\"\",\"\",IF(OR('TSA Input'!J1362=\"Yes\",'TSA Input'!J1362=\"Contingent\"),'TSA Input'!D1362,\"\"))","v":""},{"$f":"IF('TSA Input'!J1362=\"\",\"\",IF(OR('TSA Input'!J1362=\"Yes\",'TSA Input'!J1362=\"Contingent\"),'TSA Input'!G1362,\"\"))","v":""},{"$f":"IF('TSA Input'!J1362=\"\",\"\",IF(OR('TSA Input'!J1362=\"Yes\",'TSA Input'!J1362=\"Contingent\"),'TSA Input'!F1362,\"\"))","v":""},"",{"$f":"IF('TSA Input'!J1362=\"\",\"\",IF(OR('TSA Input'!J1362=\"Yes\",'TSA Input'!J1362=\"Contingent\"),'TSA Input'!D1362,\"\"))","v":""},{"$f":"IF('TSA Input'!J1362=\"\",\"\",IF(OR('TSA Input'!J1362=\"Yes\",'TSA Input'!J1362=\"Contingent\"),'TSA Input'!G1362,\"\"))","v":""},{"$f":"IF('TSA Input'!J1362=\"\",\"\",IF(OR('TSA Input'!J1362=\"Yes\",'TSA Input'!J1362=\"Contingent\"),'TSA Input'!F1362,\"\"))","v":""},"","Required","Required"]
["",null,{"$f":"IF('TSA Input'!J1363=\"\",\"\",IF(OR('TSA Input'!J1363=\"Yes\",'TSA Input'!J1363=\"Contingent\"),'TSA Input'!B1363,\"Ineligible\"))","v":""},{"$f":"IF('TSA Input'!J1363=\"\",\"\",IF(OR('TSA Input'!J1363=\"Yes\",'TSA Input'!J1363=\"Contingent\"),'TSA Input'!I1363,\"\"))","v":""},{"$f":"IF('TSA Input'!J1363=\"\",\"\",IF(OR('TSA Input'!J1363=\"Yes\",'TSA Input'!J1363=\"Contingent\"),'TSA Input'!C1363,\"\"))","v":""},{"$f":"IF('TSA Input'!J1363=\"\",\"\",IF(OR('TSA Input'!J1363=\"Yes\",'TSA Input'!J1363=\"Contingent\"),'TSA Input'!D1363,\"\"))","v":""},{"$f":"IF('TSA Input'!J1363=\"\",\"\",IF(OR('TSA Input'!J1363=\"Yes\",'TSA Input'!J1363=\"Contingent\"),'TSA Input'!G1363,\"\"))","v":""},{"$f":"IF('TSA Input'!J1363=\"\",\"\",IF(OR('TSA Input'!J1363=\"Yes\",'TSA Input'!J1363=\"Contingent\"),'TSA Input'!F1363,\"\"))","v":""},"",{"$f":"IF('TSA Input'!J1363=\"\",\"\",IF(OR('TSA Input'!J1363=\"Yes\",'TSA Input'!J1363=\"Contingent\"),'TSA Input'!D1363,\"\"))","v":""},{"$f":"IF('TSA Input'!J1363=\"\",\"\",IF(OR('TSA Input'!J1363=\"Yes\",'TSA Input'!J1363=\"Contingent\"),'TSA Input'!G1363,\"\"))","v":""},{"$f":"IF('TSA Input'!J1363=\"\",\"\",IF(OR('TSA Input'!J1363=\"Yes\",'TSA Input'!J1363=\"Contingent\"),'TSA Input'!F1363,\"\"))","v":""},"","Required","Required"]
["",null,{"$f":"IF('TSA Input'!J1364=\"\",\"\",IF(OR('TSA Input'!J1364=\"Yes\",'TSA Input'!J1364=\"Contingent\"),'TSA Input'!B1364,\"Ineligible\"))","v":""},{"$f":"IF('TSA Input'!J1364=\"\",\"\",IF(OR('TSA Input'!J1364=\"Yes\",'TSA Input'!J1364=\"Contingent\"),'TSA Input'!I1364,\"\"))","v":""},{"$f":"IF('TSA Input'!J1364=\"\",\"\",IF(OR('TSA Input'!J1364=\"Yes\",'TSA Input'!J1364=\"Contingent\"),'TSA Input'!C1364,\"\"))","v":""},{"$f":"IF('TSA Input'!J1364=\"\",\"\",IF(OR('TSA Input'!J1364=\"Yes\",'TSA Input'!J1364=\"Contingent\"),'TSA Input'!D1364,\"\"))","v":""},{"$f":"IF('TSA Input'!J1364=\"\",\"\",IF(OR('TSA Input'!J1364=\"Yes\",'TSA Input'!J1364=\"Contingent\"),'TSA Input'!G1364,\"\"))","v":""},{"$f":"IF('TSA Input'!J1364=\"\",\"\",IF(OR('TSA Input'!J1364=\"Yes\",'TSA Input'!J1364=\"Contingent\"),'TSA Input'!F1364,\"\"))","v":""},"",{"$f":"IF('TSA Input'!J1364=\"\",\"\",IF(OR('TSA Input'!J1364=\"Yes\",'TSA Input'!J1364=\"Contingent\"),'TSA Input'!D1364,\"\"))","v":""},{"$f":"IF('TSA Input'!J1364=\"\",\"\",IF(OR('TSA Input'!J1364=\"Yes\",'TSA Input'!J1364=\"Contingent\"),'TSA Input'!G1364,\"\"))","v":""},{"$f":"IF('TSA Input'!J1364=\"\",\"\",IF(OR('TSA Input'!J1364=\"Yes\",'TSA Input'!J1364=\"Contingent\"),'TSA Input'!F1364,\"\"))","v":""},"","Required","Required"]
["",null,{"$f":"IF('TSA Input'!J1365=\"\",\"\",IF(OR('TSA Input'!J1365=\"Yes\",'TSA Input'!J1365=\"Contingent\"),'TSA Input'!B1365,\"Ineligible\"))","v":""},{"$f":"IF('TSA Input'!J1365=\"\",\"\",IF(OR('TSA Input'!J1365=\"Yes\",'TSA Input'!J1365=\"Contingent\"),'TSA Input'!I1365,\"\"))","v":""},{"$f":"IF('TSA Input'!J1365=\"\",\"\",IF(OR('TSA Input'!J1365=\"Yes\",'TSA Input'!J1365=\"Contingent\"),'TSA Input'!C1365,\"\"))","v":""},{"$f":"IF('TSA Input'!J1365=\"\",\"\",IF(OR('TSA Input'!J1365=\"Yes\",'TSA Input'!J1365=\"Contingent\"),'TSA Input'!D1365,\"\"))","v":""},{"$f":"IF('TSA Input'!J1365=\"\",\"\",IF(OR('TSA Input'!J1365=\"Yes\",'TSA Input'!J1365=\"Contingent\"),'TSA Input'!G1365,\"\"))","v":""},{"$f":"IF('TSA Input'!J1365=\"\",\"\",IF(OR('TSA Input'!J1365=\"Yes\",'TSA Input'!J1365=\"Contingent\"),'TSA Input'!F1365,\"\"))","v":""},"",{"$f":"IF('TSA Input'!J1365=\"\",\"\",IF(OR('TSA Input'!J1365=\"Yes\",'TSA Input'!J1365=\"Contingent\"),'TSA Input'!D1365,\"\"))","v":""},{"$f":"IF('TSA Input'!J1365=\"\",\"\",IF(OR('TSA Input'!J1365=\"Yes\",'TSA Input'!J1365=\"Contingent\"),'TSA Input'!G1365,\"\"))","v":""},{"$f":"IF('TSA Input'!J1365=\"\",\"\",IF(OR('TSA Input'!J1365=\"Yes\",'TSA Input'!J1365=\"Contingent\"),'TSA Input'!F1365,\"\"))","v":""},"","Required","Required"]
["",null,{"$f":"IF('TSA Input'!J1366=\"\",\"\",IF(OR('TSA Input'!J1366=\"Yes\",'TSA Input'!J1366=\"Contingent\"),'TSA Input'!B1366,\"Ineligible\"))","v":""},{"$f":"IF('TSA Input'!J1366=\"\",\"\",IF(OR('TSA Input'!J1366=\"Yes\",'TSA Input'!J1366=\"Contingent\"),'TSA Input'!I1366,\"\"))","v":""},{"$f":"IF('TSA Input'!J1366=\"\",\"\",IF(OR('TSA Input'!J1366=\"Yes\",'TSA Input'!J1366=\"Contingent\"),'TSA Input'!C1366,\"\"))","v":""},{"$f":"IF('TSA Input'!J1366=\"\",\"\",IF(OR('TSA Input'!J1366=\"Yes\",'TSA Input'!J1366=\"Contingent\"),'TSA Input'!D1366,\"\"))","v":""},{"$f":"IF('TSA Input'!J1366=\"\",\"\",IF(OR('TSA Input'!J1366=\"Yes\",'TSA Input'!J1366=\"Contingent\"),'TSA Input'!G1366,\"\"))","v":""},{"$f":"IF('TSA Input'!J1366=\"\",\"\",IF(OR('TSA Input'!J1366=\"Yes\",'TSA Input'!J1366=\"Contingent\"),'TSA Input'!F1366,\"\"))","v":""},"",{"$f":"IF('TSA Input'!J1366=\"\",\"\",IF(OR('TSA Input'!J1366=\"Yes\",'TSA Input'!J1366=\"Contingent\"),'TSA Input'!D1366,\"\"))","v":""},{"$f":"IF('TSA Input'!J1366=\"\",\"\",IF(OR('TSA Input'!J1366=\"Yes\",'TSA Input'!J1366=\"Contingent\"),'TSA Input'!G1366,\"\"))","v":""},{"$f":"IF('TSA Input'!J1366=\"\",\"\",IF(OR('TSA Input'!J1366=\"Yes\",'TSA Input'!J1366=\"Contingent\"),'TSA Input'!F1366,\"\"))","v":""},"","Required","Required"]
["",null,{"$f":"IF('TSA Input'!J1367=\"\",\"\",IF(OR('TSA Input'!J1367=\"Yes\",'TSA Input'!J1367=\"Contingent\"),'TSA Input'!B1367,\"Ineligible\"))","v":""},{"$f":"IF('TSA Input'!J1367=\"\",\"\",IF(OR('TSA Input'!J1367=\"Yes\",'TSA Input'!J1367=\"Contingent\"),'TSA Input'!I1367,\"\"))","v":""},{"$f":"IF('TSA Input'!J1367=\"\",\"\",IF(OR('TSA Input'!J1367=\"Yes\",'TSA Input'!J1367=\"Contingent\"),'TSA Input'!C1367,\"\"))","v":""},{"$f":"IF('TSA Input'!J1367=\"\",\"\",IF(OR('TSA Input'!J1367=\"Yes\",'TSA Input'!J1367=\"Contingent\"),'TSA Input'!D1367,\"\"))","v":""},{"$f":"IF('TSA Input'!J1367=\"\",\"\",IF(OR('TSA Input'!J1367=\"Yes\",'TSA Input'!J1367=\"Contingent\"),'TSA Input'!G1367,\"\"))","v":""},{"$f":"IF('TSA Input'!J1367=\"\",\"\",IF(OR('TSA Input'!J1367=\"Yes\",'TSA Input'!J1367=\"Contingent\"),'TSA Input'!F1367,\"\"))","v":""},"",{"$f":"IF('TSA Input'!J1367=\"\",\"\",IF(OR('TSA Input'!J1367=\"Yes\",'TSA Input'!J1367=\"Contingent\"),'TSA Input'!D1367,\"\"))","v":""},{"$f":"IF('TSA Input'!J1367=\"\",\"\",IF(OR('TSA Input'!J1367=\"Yes\",'TSA Input'!J1367=\"Contingent\"),'TSA Input'!G1367,\"\"))","v":""},{"$f":"IF('TSA Input'!J1367=\"\",\"\",IF(OR('TSA Input'!J1367=\"Yes\",'TSA Input'!J1367=\"Contingent\"),'TSA Input'!F1367,\"\"))","v":""},"","Required","Required"]
["",null,{"$f":"IF('TSA Input'!J1368=\"\",\"\",IF(OR('TSA Input'!J1368=\"Yes\",'TSA Input'!J1368=\"Contingent\"),'TSA Input'!B1368,\"Ineligible\"))","v":""},{"$f":"IF('TSA Input'!J1368=\"\",\"\",IF(OR('TSA Input'!J1368=\"Yes\",'TSA Input'!J1368=\"Contingent\"),'TSA Input'!I1368,\"\"))","v":""},{"$f":"IF('TSA Input'!J1368=\"\",\"\",IF(OR('TSA Input'!J1368=\"Yes\",'TSA Input'!J1368=\"Contingent\"),'TSA Input'!C1368,\"\"))","v":""},{"$f":"IF('TSA Input'!J1368=\"\",\"\",IF(OR('TSA Input'!J1368=\"Yes\",'TSA Input'!J1368=\"Contingent\"),'TSA Input'!D1368,\"\"))","v":""},{"$f":"IF('TSA Input'!J1368=\"\",\"\",IF(OR('TSA Input'!J1368=\"Yes\",'TSA Input'!J1368=\"Contingent\"),'TSA Input'!G1368,\"\"))","v":""},{"$f":"IF('TSA Input'!J1368=\"\",\"\",IF(OR('TSA Input'!J1368=\"Yes\",'TSA Input'!J1368=\"Contingent\"),'TSA Input'!F1368,\"\"))","v":""},"",{"$f":"IF('TSA Input'!J1368=\"\",\"\",IF(OR('TSA Input'!J1368=\"Yes\",'TSA Input'!J1368=\"Contingent\"),'TSA Input'!D1368,\"\"))","v":""},{"$f":"IF('TSA Input'!J1368=\"\",\"\",IF(OR('TSA Input'!J1368=\"Yes\",'TSA Input'!J1368=\"Contingent\"),'TSA Input'!G1368,\"\"))","v":""},{"$f":"IF('TSA Input'!J1368=\"\",\"\",IF(OR('TSA Input'!J1368=\"Yes\",'TSA Input'!J1368=\"Contingent\"),'TSA Input'!F1368,\"\"))","v":""},"","Required","Required"]
["",null,{"$f":"IF('TSA Input'!J1369=\"\",\"\",IF(OR('TSA Input'!J1369=\"Yes\",'TSA Input'!J1369=\"Contingent\"),'TSA Input'!B1369,\"Ineligible\"))","v":""},{"$f":"IF('TSA Input'!J1369=\"\",\"\",IF(OR('TSA Input'!J1369=\"Yes\",'TSA Input'!J1369=\"Contingent\"),'TSA Input'!I1369,\"\"))","v":""},{"$f":"IF('TSA Input'!J1369=\"\",\"\",IF(OR('TSA Input'!J1369=\"Yes\",'TSA Input'!J1369=\"Contingent\"),'TSA Input'!C1369,\"\"))","v":""},{"$f":"IF('TSA Input'!J1369=\"\",\"\",IF(OR('TSA Input'!J1369=\"Yes\",'TSA Input'!J1369=\"Contingent\"),'TSA Input'!D1369,\"\"))","v":""},{"$f":"IF('TSA Input'!J1369=\"\",\"\",IF(OR('TSA Input'!J1369=\"Yes\",'TSA Input'!J1369=\"Contingent\"),'TSA Input'!G1369,\"\"))","v":""},{"$f":"IF('TSA Input'!J1369=\"\",\"\",IF(OR('TSA Input'!J1369=\"Yes\",'TSA Input'!J1369=\"Contingent\"),'TSA Input'!F1369,\"\"))","v":""},"",{"$f":"IF('TSA Input'!J1369=\"\",\"\",IF(OR('TSA Input'!J1369=\"Yes\",'TSA Input'!J1369=\"Contingent\"),'TSA Input'!D1369,\"\"))","v":""},{"$f":"IF('TSA Input'!J1369=\"\",\"\",IF(OR('TSA Input'!J1369=\"Yes\",'TSA Input'!J1369=\"Contingent\"),'TSA Input'!G1369,\"\"))","v":""},{"$f":"IF('TSA Input'!J1369=\"\",\"\",IF(OR('TSA Input'!J1369=\"Yes\",'TSA Input'!J1369=\"Contingent\"),'TSA Input'!F1369,\"\"))","v":""},"","Required","Required"]
["",null,{"$f":"IF('TSA Input'!J1370=\"\",\"\",IF(OR('TSA Input'!J1370=\"Yes\",'TSA Input'!J1370=\"Contingent\"),'TSA Input'!B1370,\"Ineligible\"))","v":""},{"$f":"IF('TSA Input'!J1370=\"\",\"\",IF(OR('TSA Input'!J1370=\"Yes\",'TSA Input'!J1370=\"Contingent\"),'TSA Input'!I1370,\"\"))","v":""},{"$f":"IF('TSA Input'!J1370=\"\",\"\",IF(OR('TSA Input'!J1370=\"Yes\",'TSA Input'!J1370=\"Contingent\"),'TSA Input'!C1370,\"\"))","v":""},{"$f":"IF('TSA Input'!J1370=\"\",\"\",IF(OR('TSA Input'!J1370=\"Yes\",'TSA Input'!J1370=\"Contingent\"),'TSA Input'!D1370,\"\"))","v":""},{"$f":"IF('TSA Input'!J1370=\"\",\"\",IF(OR('TSA Input'!J1370=\"Yes\",'TSA Input'!J1370=\"Contingent\"),'TSA Input'!G1370,\"\"))","v":""},{"$f":"IF('TSA Input'!J1370=\"\",\"\",IF(OR('TSA Input'!J1370=\"Yes\",'TSA Input'!J1370=\"Contingent\"),'TSA Input'!F1370,\"\"))","v":""},"",{"$f":"IF('TSA Input'!J1370=\"\",\"\",IF(OR('TSA Input'!J1370=\"Yes\",'TSA Input'!J1370=\"Contingent\"),'TSA Input'!D1370,\"\"))","v":""},{"$f":"IF('TSA Input'!J1370=\"\",\"\",IF(OR('TSA Input'!J1370=\"Yes\",'TSA Input'!J1370=\"Contingent\"),'TSA Input'!G1370,\"\"))","v":""},{"$f":"IF('TSA Input'!J1370=\"\",\"\",IF(OR('TSA Input'!J1370=\"Yes\",'TSA Input'!J1370=\"Contingent\"),'TSA Input'!F1370,\"\"))","v":""},"","Required","Required"]
["",null,{"$f":"IF('TSA Input'!J1371=\"\",\"\",IF(OR('TSA Input'!J1371=\"Yes\",'TSA Input'!J1371=\"Contingent\"),'TSA Input'!B1371,\"Ineligible\"))","v":""},{"$f":"IF('TSA Input'!J1371=\"\",\"\",IF(OR('TSA Input'!J1371=\"Yes\",'TSA Input'!J1371=\"Contingent\"),'TSA Input'!I1371,\"\"))","v":""},{"$f":"IF('TSA Input'!J1371=\"\",\"\",IF(OR('TSA Input'!J1371=\"Yes\",'TSA Input'!J1371=\"Contingent\"),'TSA Input'!C1371,\"\"))","v":""},{"$f":"IF('TSA Input'!J1371=\"\",\"\",IF(OR('TSA Input'!J1371=\"Yes\",'TSA Input'!J1371=\"Contingent\"),'TSA Input'!D1371,\"\"))","v":""},{"$f":"IF('TSA Input'!J1371=\"\",\"\",IF(OR('TSA Input'!J1371=\"Yes\",'TSA Input'!J1371=\"Contingent\"),'TSA Input'!G1371,\"\"))","v":""},{"$f":"IF('TSA Input'!J1371=\"\",\"\",IF(OR('TSA Input'!J1371=\"Yes\",'TSA Input'!J1371=\"Contingent\"),'TSA Input'!F1371,\"\"))","v":""},"",{"$f":"IF('TSA Input'!J1371=\"\",\"\",IF(OR('TSA Input'!J1371=\"Yes\",'TSA Input'!J1371=\"Contingent\"),'TSA Input'!D1371,\"\"))","v":""},{"$f":"IF('TSA Input'!J1371=\"\",\"\",IF(OR('TSA Input'!J1371=\"Yes\",'TSA Input'!J1371=\"Contingent\"),'TSA Input'!G1371,\"\"))","v":""},{"$f":"IF('TSA Input'!J1371=\"\",\"\",IF(OR('TSA Input'!J1371=\"Yes\",'TSA Input'!J1371=\"Contingent\"),'TSA Input'!F1371,\"\"))","v":""},"","Required","Required"]
["",null,{"$f":"IF('TSA Input'!J1372=\"\",\"\",IF(OR('TSA Input'!J1372=\"Yes\",'TSA Input'!J1372=\"Contingent\"),'TSA Input'!B1372,\"Ineligible\"))","v":""},{"$f":"IF('TSA Input'!J1372=\"\",\"\",IF(OR('TSA Input'!J1372=\"Yes\",'TSA Input'!J1372=\"Contingent\"),'TSA Input'!I1372,\"\"))","v":""},{"$f":"IF('TSA Input'!J1372=\"\",\"\",IF(OR('TSA Input'!J1372=\"Yes\",'TSA Input'!J1372=\"Contingent\"),'TSA Input'!C1372,\"\"))","v":""},{"$f":"IF('TSA Input'!J1372=\"\",\"\",IF(OR('TSA Input'!J1372=\"Yes\",'TSA Input'!J1372=\"Contingent\"),'TSA Input'!D1372,\"\"))","v":""},{"$f":"IF('TSA Input'!J1372=\"\",\"\",IF(OR('TSA Input'!J1372=\"Yes\",'TSA Input'!J1372=\"Contingent\"),'TSA Input'!G1372,\"\"))","v":""},{"$f":"IF('TSA Input'!J1372=\"\",\"\",IF(OR('TSA Input'!J1372=\"Yes\",'TSA Input'!J1372=\"Contingent\"),'TSA Input'!F1372,\"\"))","v":""},"",{"$f":"IF('TSA Input'!J1372=\"\",\"\",IF(OR('TSA Input'!J1372=\"Yes\",'TSA Input'!J1372=\"Contingent\"),'TSA Input'!D1372,\"\"))","v":""},{"$f":"IF('TSA Input'!J1372=\"\",\"\",IF(OR('TSA Input'!J1372=\"Yes\",'TSA Input'!J1372=\"Contingent\"),'TSA Input'!G1372,\"\"))","v":""},{"$f":"IF('TSA Input'!J1372=\"\",\"\",IF(OR('TSA Input'!J1372=\"Yes\",'TSA Input'!J1372=\"Contingent\"),'TSA Input'!F1372,\"\"))","v":""},"","Required","Required"]
["",null,{"$f":"IF('TSA Input'!J1373=\"\",\"\",IF(OR('TSA Input'!J1373=\"Yes\",'TSA Input'!J1373=\"Contingent\"),'TSA Input'!B1373,\"Ineligible\"))","v":""},{"$f":"IF('TSA Input'!J1373=\"\",\"\",IF(OR('TSA Input'!J1373=\"Yes\",'TSA Input'!J1373=\"Contingent\"),'TSA Input'!I1373,\"\"))","v":""},{"$f":"IF('TSA Input'!J1373=\"\",\"\",IF(OR('TSA Input'!J1373=\"Yes\",'TSA Input'!J1373=\"Contingent\"),'TSA Input'!C1373,\"\"))","v":""},{"$f":"IF('TSA Input'!J1373=\"\",\"\",IF(OR('TSA Input'!J1373=\"Yes\",'TSA Input'!J1373=\"Contingent\"),'TSA Input'!D1373,\"\"))","v":""},{"$f":"IF('TSA Input'!J1373=\"\",\"\",IF(OR('TSA Input'!J1373=\"Yes\",'TSA Input'!J1373=\"Contingent\"),'TSA Input'!G1373,\"\"))","v":""},{"$f":"IF('TSA Input'!J1373=\"\",\"\",IF(OR('TSA Input'!J1373=\"Yes\",'TSA Input'!J1373=\"Contingent\"),'TSA Input'!F1373,\"\"))","v":""},"",{"$f":"IF('TSA Input'!J1373=\"\",\"\",IF(OR('TSA Input'!J1373=\"Yes\",'TSA Input'!J1373=\"Contingent\"),'TSA Input'!D1373,\"\"))","v":""},{"$f":"IF('TSA Input'!J1373=\"\",\"\",IF(OR('TSA Input'!J1373=\"Yes\",'TSA Input'!J1373=\"Contingent\"),'TSA Input'!G1373,\"\"))","v":""},{"$f":"IF('TSA Input'!J1373=\"\",\"\",IF(OR('TSA Input'!J1373=\"Yes\",'TSA Input'!J1373=\"Contingent\"),'TSA Input'!F1373,\"\"))","v":""},"","Required","Required"]
["",null,{"$f":"IF('TSA Input'!J1374=\"\",\"\",IF(OR('TSA Input'!J1374=\"Yes\",'TSA Input'!J1374=\"Contingent\"),'TSA Input'!B1374,\"Ineligible\"))","v":""},{"$f":"IF('TSA Input'!J1374=\"\",\"\",IF(OR('TSA Input'!J1374=\"Yes\",'TSA Input'!J1374=\"Contingent\"),'TSA Input'!I1374,\"\"))","v":""},{"$f":"IF('TSA Input'!J1374=\"\",\"\",IF(OR('TSA Input'!J1374=\"Yes\",'TSA Input'!J1374=\"Contingent\"),'TSA Input'!C1374,\"\"))","v":""},{"$f":"IF('TSA Input'!J1374=\"\",\"\",IF(OR('TSA Input'!J1374=\"Yes\",'TSA Input'!J1374=\"Contingent\"),'TSA Input'!D1374,\"\"))","v":""},{"$f":"IF('TSA Input'!J1374=\"\",\"\",IF(OR('TSA Input'!J1374=\"Yes\",'TSA Input'!J1374=\"Contingent\"),'TSA Input'!G1374,\"\"))","v":""},{"$f":"IF('TSA Input'!J1374=\"\",\"\",IF(OR('TSA Input'!J1374=\"Yes\",'TSA Input'!J1374=\"Contingent\"),'TSA Input'!F1374,\"\"))","v":""},"",{"$f":"IF('TSA Input'!J1374=\"\",\"\",IF(OR('TSA Input'!J1374=\"Yes\",'TSA Input'!J1374=\"Contingent\"),'TSA Input'!D1374,\"\"))","v":""},{"$f":"IF('TSA Input'!J1374=\"\",\"\",IF(OR('TSA Input'!J1374=\"Yes\",'TSA Input'!J1374=\"Contingent\"),'TSA Input'!G1374,\"\"))","v":""},{"$f":"IF('TSA Input'!J1374=\"\",\"\",IF(OR('TSA Input'!J1374=\"Yes\",'TSA Input'!J1374=\"Contingent\"),'TSA Input'!F1374,\"\"))","v":""},"","Required","Required"]
["",null,{"$f":"IF('TSA Input'!J1375=\"\",\"\",IF(OR('TSA Input'!J1375=\"Yes\",'TSA Input'!J1375=\"Contingent\"),'TSA Input'!B1375,\"Ineligible\"))","v":""},{"$f":"IF('TSA Input'!J1375=\"\",\"\",IF(OR('TSA Input'!J1375=\"Yes\",'TSA Input'!J1375=\"Contingent\"),'TSA Input'!I1375,\"\"))","v":""},{"$f":"IF('TSA Input'!J1375=\"\",\"\",IF(OR('TSA Input'!J1375=\"Yes\",'TSA Input'!J1375=\"Contingent\"),'TSA Input'!C1375,\"\"))","v":""},{"$f":"IF('TSA Input'!J1375=\"\",\"\",IF(OR('TSA Input'!J1375=\"Yes\",'TSA Input'!J1375=\"Contingent\"),'TSA Input'!D1375,\"\"))","v":""},{"$f":"IF('TSA Input'!J1375=\"\",\"\",IF(OR('TSA Input'!J1375=\"Yes\",'TSA Input'!J1375=\"Contingent\"),'TSA Input'!G1375,\"\"))","v":""},{"$f":"IF('TSA Input'!J1375=\"\",\"\",IF(OR('TSA Input'!J1375=\"Yes\",'TSA Input'!J1375=\"Contingent\"),'TSA Input'!F1375,\"\"))","v":""},"",{"$f":"IF('TSA Input'!J1375=\"\",\"\",IF(OR('TSA Input'!J1375=\"Yes\",'TSA Input'!J1375=\"Contingent\"),'TSA Input'!D1375,\"\"))","v":""},{"$f":"IF('TSA Input'!J1375=\"\",\"\",IF(OR('TSA Input'!J1375=\"Yes\",'TSA Input'!J1375=\"Contingent\"),'TSA Input'!G1375,\"\"))","v":""},{"$f":"IF('TSA Input'!J1375=\"\",\"\",IF(OR('TSA Input'!J1375=\"Yes\",'TSA Input'!J1375=\"Contingent\"),'TSA Input'!F1375,\"\"))","v":""},"","Required","Required"]
["",null,{"$f":"IF('TSA Input'!J1376=\"\",\"\",IF(OR('TSA Input'!J1376=\"Yes\",'TSA Input'!J1376=\"Contingent\"),'TSA Input'!B1376,\"Ineligible\"))","v":""},{"$f":"IF('TSA Input'!J1376=\"\",\"\",IF(OR('TSA Input'!J1376=\"Yes\",'TSA Input'!J1376=\"Contingent\"),'TSA Input'!I1376,\"\"))","v":""},{"$f":"IF('TSA Input'!J1376=\"\",\"\",IF(OR('TSA Input'!J1376=\"Yes\",'TSA Input'!J1376=\"Contingent\"),'TSA Input'!C1376,\"\"))","v":""},{"$f":"IF('TSA Input'!J1376=\"\",\"\",IF(OR('TSA Input'!J1376=\"Yes\",'TSA Input'!J1376=\"Contingent\"),'TSA Input'!D1376,\"\"))","v":""},{"$f":"IF('TSA Input'!J1376=\"\",\"\",IF(OR('TSA Input'!J1376=\"Yes\",'TSA Input'!J1376=\"Contingent\"),'TSA Input'!G1376,\"\"))","v":""},{"$f":"IF('TSA Input'!J1376=\"\",\"\",IF(OR('TSA Input'!J1376=\"Yes\",'TSA Input'!J1376=\"Contingent\"),'TSA Input'!F1376,\"\"))","v":""},"",{"$f":"IF('TSA Input'!J1376=\"\",\"\",IF(OR('TSA Input'!J1376=\"Yes\",'TSA Input'!J1376=\"Contingent\"),'TSA Input'!D1376,\"\"))","v":""},{"$f":"IF('TSA Input'!J1376=\"\",\"\",IF(OR('TSA Input'!J1376=\"Yes\",'TSA Input'!J1376=\"Contingent\"),'TSA Input'!G1376,\"\"))","v":""},{"$f":"IF('TSA Input'!J1376=\"\",\"\",IF(OR('TSA Input'!J1376=\"Yes\",'TSA Input'!J1376=\"Contingent\"),'TSA Input'!F1376,\"\"))","v":""},"","Required","Required"]
["",null,{"$f":"IF('TSA Input'!J1377=\"\",\"\",IF(OR('TSA Input'!J1377=\"Yes\",'TSA Input'!J1377=\"Contingent\"),'TSA Input'!B1377,\"Ineligible\"))","v":""},{"$f":"IF('TSA Input'!J1377=\"\",\"\",IF(OR('TSA Input'!J1377=\"Yes\",'TSA Input'!J1377=\"Contingent\"),'TSA Input'!I1377,\"\"))","v":""},{"$f":"IF('TSA Input'!J1377=\"\",\"\",IF(OR('TSA Input'!J1377=\"Yes\",'TSA Input'!J1377=\"Contingent\"),'TSA Input'!C1377,\"\"))","v":""},{"$f":"IF('TSA Input'!J1377=\"\",\"\",IF(OR('TSA Input'!J1377=\"Yes\",'TSA Input'!J1377=\"Contingent\"),'TSA Input'!D1377,\"\"))","v":""},{"$f":"IF('TSA Input'!J1377=\"\",\"\",IF(OR('TSA Input'!J1377=\"Yes\",'TSA Input'!J1377=\"Contingent\"),'TSA Input'!G1377,\"\"))","v":""},{"$f":"IF('TSA Input'!J1377=\"\",\"\",IF(OR('TSA Input'!J1377=\"Yes\",'TSA Input'!J1377=\"Contingent\"),'TSA Input'!F1377,\"\"))","v":""},"",{"$f":"IF('TSA Input'!J1377=\"\",\"\",IF(OR('TSA Input'!J1377=\"Yes\",'TSA Input'!J1377=\"Contingent\"),'TSA Input'!D1377,\"\"))","v":""},{"$f":"IF('TSA Input'!J1377=\"\",\"\",IF(OR('TSA Input'!J1377=\"Yes\",'TSA Input'!J1377=\"Contingent\"),'TSA Input'!G1377,\"\"))","v":""},{"$f":"IF('TSA Input'!J1377=\"\",\"\",IF(OR('TSA Input'!J1377=\"Yes\",'TSA Input'!J1377=\"Contingent\"),'TSA Input'!F1377,\"\"))","v":""},"","Required","Required"]
["",null,{"$f":"IF('TSA Input'!J1378=\"\",\"\",IF(OR('TSA Input'!J1378=\"Yes\",'TSA Input'!J1378=\"Contingent\"),'TSA Input'!B1378,\"Ineligible\"))","v":""},{"$f":"IF('TSA Input'!J1378=\"\",\"\",IF(OR('TSA Input'!J1378=\"Yes\",'TSA Input'!J1378=\"Contingent\"),'TSA Input'!I1378,\"\"))","v":""},{"$f":"IF('TSA Input'!J1378=\"\",\"\",IF(OR('TSA Input'!J1378=\"Yes\",'TSA Input'!J1378=\"Contingent\"),'TSA Input'!C1378,\"\"))","v":""},{"$f":"IF('TSA Input'!J1378=\"\",\"\",IF(OR('TSA Input'!J1378=\"Yes\",'TSA Input'!J1378=\"Contingent\"),'TSA Input'!D1378,\"\"))","v":""},{"$f":"IF('TSA Input'!J1378=\"\",\"\",IF(OR('TSA Input'!J1378=\"Yes\",'TSA Input'!J1378=\"Contingent\"),'TSA Input'!G1378,\"\"))","v":""},{"$f":"IF('TSA Input'!J1378=\"\",\"\",IF(OR('TSA Input'!J1378=\"Yes\",'TSA Input'!J1378=\"Contingent\"),'TSA Input'!F1378,\"\"))","v":""},"",{"$f":"IF('TSA Input'!J1378=\"\",\"\",IF(OR('TSA Input'!J1378=\"Yes\",'TSA Input'!J1378=\"Contingent\"),'TSA Input'!D1378,\"\"))","v":""},{"$f":"IF('TSA Input'!J1378=\"\",\"\",IF(OR('TSA Input'!J1378=\"Yes\",'TSA Input'!J1378=\"Contingent\"),'TSA Input'!G1378,\"\"))","v":""},{"$f":"IF('TSA Input'!J1378=\"\",\"\",IF(OR('TSA Input'!J1378=\"Yes\",'TSA Input'!J1378=\"Contingent\"),'TSA Input'!F1378,\"\"))","v":""},"","Required","Required"]
["",null,{"$f":"IF('TSA Input'!J1379=\"\",\"\",IF(OR('TSA Input'!J1379=\"Yes\",'TSA Input'!J1379=\"Contingent\"),'TSA Input'!B1379,\"Ineligible\"))","v":""},{"$f":"IF('TSA Input'!J1379=\"\",\"\",IF(OR('TSA Input'!J1379=\"Yes\",'TSA Input'!J1379=\"Contingent\"),'TSA Input'!I1379,\"\"))","v":""},{"$f":"IF('TSA Input'!J1379=\"\",\"\",IF(OR('TSA Input'!J1379=\"Yes\",'TSA Input'!J1379=\"Contingent\"),'TSA Input'!C1379,\"\"))","v":""},{"$f":"IF('TSA Input'!J1379=\"\",\"\",IF(OR('TSA Input'!J1379=\"Yes\",'TSA Input'!J1379=\"Contingent\"),'TSA Input'!D1379,\"\"))","v":""},{"$f":"IF('TSA Input'!J1379=\"\",\"\",IF(OR('TSA Input'!J1379=\"Yes\",'TSA Input'!J1379=\"Contingent\"),'TSA Input'!G1379,\"\"))","v":""},{"$f":"IF('TSA Input'!J1379=\"\",\"\",IF(OR('TSA Input'!J1379=\"Yes\",'TSA Input'!J1379=\"Contingent\"),'TSA Input'!F1379,\"\"))","v":""},"",{"$f":"IF('TSA Input'!J1379=\"\",\"\",IF(OR('TSA Input'!J1379=\"Yes\",'TSA Input'!J1379=\"Contingent\"),'TSA Input'!D1379,\"\"))","v":""},{"$f":"IF('TSA Input'!J1379=\"\",\"\",IF(OR('TSA Input'!J1379=\"Yes\",'TSA Input'!J1379=\"Contingent\"),'TSA Input'!G1379,\"\"))","v":""},{"$f":"IF('TSA Input'!J1379=\"\",\"\",IF(OR('TSA Input'!J1379=\"Yes\",'TSA Input'!J1379=\"Contingent\"),'TSA Input'!F1379,\"\"))","v":""},"","Required","Required"]
["",null,{"$f":"IF('TSA Input'!J1380=\"\",\"\",IF(OR('TSA Input'!J1380=\"Yes\",'TSA Input'!J1380=\"Contingent\"),'TSA Input'!B1380,\"Ineligible\"))","v":""},{"$f":"IF('TSA Input'!J1380=\"\",\"\",IF(OR('TSA Input'!J1380=\"Yes\",'TSA Input'!J1380=\"Contingent\"),'TSA Input'!I1380,\"\"))","v":""},{"$f":"IF('TSA Input'!J1380=\"\",\"\",IF(OR('TSA Input'!J1380=\"Yes\",'TSA Input'!J1380=\"Contingent\"),'TSA Input'!C1380,\"\"))","v":""},{"$f":"IF('TSA Input'!J1380=\"\",\"\",IF(OR('TSA Input'!J1380=\"Yes\",'TSA Input'!J1380=\"Contingent\"),'TSA Input'!D1380,\"\"))","v":""},{"$f":"IF('TSA Input'!J1380=\"\",\"\",IF(OR('TSA Input'!J1380=\"Yes\",'TSA Input'!J1380=\"Contingent\"),'TSA Input'!G1380,\"\"))","v":""},{"$f":"IF('TSA Input'!J1380=\"\",\"\",IF(OR('TSA Input'!J1380=\"Yes\",'TSA Input'!J1380=\"Contingent\"),'TSA Input'!F1380,\"\"))","v":""},"",{"$f":"IF('TSA Input'!J1380=\"\",\"\",IF(OR('TSA Input'!J1380=\"Yes\",'TSA Input'!J1380=\"Contingent\"),'TSA Input'!D1380,\"\"))","v":""},{"$f":"IF('TSA Input'!J1380=\"\",\"\",IF(OR('TSA Input'!J1380=\"Yes\",'TSA Input'!J1380=\"Contingent\"),'TSA Input'!G1380,\"\"))","v":""},{"$f":"IF('TSA Input'!J1380=\"\",\"\",IF(OR('TSA Input'!J1380=\"Yes\",'TSA Input'!J1380=\"Contingent\"),'TSA Input'!F1380,\"\"))","v":""},"","Required","Required"]
["",null,{"$f":"IF('TSA Input'!J1381=\"\",\"\",IF(OR('TSA Input'!J1381=\"Yes\",'TSA Input'!J1381=\"Contingent\"),'TSA Input'!B1381,\"Ineligible\"))","v":""},{"$f":"IF('TSA Input'!J1381=\"\",\"\",IF(OR('TSA Input'!J1381=\"Yes\",'TSA Input'!J1381=\"Contingent\"),'TSA Input'!I1381,\"\"))","v":""},{"$f":"IF('TSA Input'!J1381=\"\",\"\",IF(OR('TSA Input'!J1381=\"Yes\",'TSA Input'!J1381=\"Contingent\"),'TSA Input'!C1381,\"\"))","v":""},{"$f":"IF('TSA Input'!J1381=\"\",\"\",IF(OR('TSA Input'!J1381=\"Yes\",'TSA Input'!J1381=\"Contingent\"),'TSA Input'!D1381,\"\"))","v":""},{"$f":"IF('TSA Input'!J1381=\"\",\"\",IF(OR('TSA Input'!J1381=\"Yes\",'TSA Input'!J1381=\"Contingent\"),'TSA Input'!G1381,\"\"))","v":""},{"$f":"IF('TSA Input'!J1381=\"\",\"\",IF(OR('TSA Input'!J1381=\"Yes\",'TSA Input'!J1381=\"Contingent\"),'TSA Input'!F1381,\"\"))","v":""},"",{"$f":"IF('TSA Input'!J1381=\"\",\"\",IF(OR('TSA Input'!J1381=\"Yes\",'TSA Input'!J1381=\"Contingent\"),'TSA Input'!D1381,\"\"))","v":""},{"$f":"IF('TSA Input'!J1381=\"\",\"\",IF(OR('TSA Input'!J1381=\"Yes\",'TSA Input'!J1381=\"Contingent\"),'TSA Input'!G1381,\"\"))","v":""},{"$f":"IF('TSA Input'!J1381=\"\",\"\",IF(OR('TSA Input'!J1381=\"Yes\",'TSA Input'!J1381=\"Contingent\"),'TSA Input'!F1381,\"\"))","v":""},"","Required","Required"]
["",null,{"$f":"IF('TSA Input'!J1382=\"\",\"\",IF(OR('TSA Input'!J1382=\"Yes\",'TSA Input'!J1382=\"Contingent\"),'TSA Input'!B1382,\"Ineligible\"))","v":""},{"$f":"IF('TSA Input'!J1382=\"\",\"\",IF(OR('TSA Input'!J1382=\"Yes\",'TSA Input'!J1382=\"Contingent\"),'TSA Input'!I1382,\"\"))","v":""},{"$f":"IF('TSA Input'!J1382=\"\",\"\",IF(OR('TSA Input'!J1382=\"Yes\",'TSA Input'!J1382=\"Contingent\"),'TSA Input'!C1382,\"\"))","v":""},{"$f":"IF('TSA Input'!J1382=\"\",\"\",IF(OR('TSA Input'!J1382=\"Yes\",'TSA Input'!J1382=\"Contingent\"),'TSA Input'!D1382,\"\"))","v":""},{"$f":"IF('TSA Input'!J1382=\"\",\"\",IF(OR('TSA Input'!J1382=\"Yes\",'TSA Input'!J1382=\"Contingent\"),'TSA Input'!G1382,\"\"))","v":""},{"$f":"IF('TSA Input'!J1382=\"\",\"\",IF(OR('TSA Input'!J1382=\"Yes\",'TSA Input'!J1382=\"Contingent\"),'TSA Input'!F1382,\"\"))","v":""},"",{"$f":"IF('TSA Input'!J1382=\"\",\"\",IF(OR('TSA Input'!J1382=\"Yes\",'TSA Input'!J1382=\"Contingent\"),'TSA Input'!D1382,\"\"))","v":""},{"$f":"IF('TSA Input'!J1382=\"\",\"\",IF(OR('TSA Input'!J1382=\"Yes\",'TSA Input'!J1382=\"Contingent\"),'TSA Input'!G1382,\"\"))","v":""},{"$f":"IF('TSA Input'!J1382=\"\",\"\",IF(OR('TSA Input'!J1382=\"Yes\",'TSA Input'!J1382=\"Contingent\"),'TSA Input'!F1382,\"\"))","v":""},"","Required","Required"]
["",null,{"$f":"IF('TSA Input'!J1383=\"\",\"\",IF(OR('TSA Input'!J1383=\"Yes\",'TSA Input'!J1383=\"Contingent\"),'TSA Input'!B1383,\"Ineligible\"))","v":""},{"$f":"IF('TSA Input'!J1383=\"\",\"\",IF(OR('TSA Input'!J1383=\"Yes\",'TSA Input'!J1383=\"Contingent\"),'TSA Input'!I1383,\"\"))","v":""},{"$f":"IF('TSA Input'!J1383=\"\",\"\",IF(OR('TSA Input'!J1383=\"Yes\",'TSA Input'!J1383=\"Contingent\"),'TSA Input'!C1383,\"\"))","v":""},{"$f":"IF('TSA Input'!J1383=\"\",\"\",IF(OR('TSA Input'!J1383=\"Yes\",'TSA Input'!J1383=\"Contingent\"),'TSA Input'!D1383,\"\"))","v":""},{"$f":"IF('TSA Input'!J1383=\"\",\"\",IF(OR('TSA Input'!J1383=\"Yes\",'TSA Input'!J1383=\"Contingent\"),'TSA Input'!G1383,\"\"))","v":""},{"$f":"IF('TSA Input'!J1383=\"\",\"\",IF(OR('TSA Input'!J1383=\"Yes\",'TSA Input'!J1383=\"Contingent\"),'TSA Input'!F1383,\"\"))","v":""},"",{"$f":"IF('TSA Input'!J1383=\"\",\"\",IF(OR('TSA Input'!J1383=\"Yes\",'TSA Input'!J1383=\"Contingent\"),'TSA Input'!D1383,\"\"))","v":""},{"$f":"IF('TSA Input'!J1383=\"\",\"\",IF(OR('TSA Input'!J1383=\"Yes\",'TSA Input'!J1383=\"Contingent\"),'TSA Input'!G1383,\"\"))","v":""},{"$f":"IF('TSA Input'!J1383=\"\",\"\",IF(OR('TSA Input'!J1383=\"Yes\",'TSA Input'!J1383=\"Contingent\"),'TSA Input'!F1383,\"\"))","v":""},"","Required","Required"]
["",null,{"$f":"IF('TSA Input'!J1384=\"\",\"\",IF(OR('TSA Input'!J1384=\"Yes\",'TSA Input'!J1384=\"Contingent\"),'TSA Input'!B1384,\"Ineligible\"))","v":""},{"$f":"IF('TSA Input'!J1384=\"\",\"\",IF(OR('TSA Input'!J1384=\"Yes\",'TSA Input'!J1384=\"Contingent\"),'TSA Input'!I1384,\"\"))","v":""},{"$f":"IF('TSA Input'!J1384=\"\",\"\",IF(OR('TSA Input'!J1384=\"Yes\",'TSA Input'!J1384=\"Contingent\"),'TSA Input'!C1384,\"\"))","v":""},{"$f":"IF('TSA Input'!J1384=\"\",\"\",IF(OR('TSA Input'!J1384=\"Yes\",'TSA Input'!J1384=\"Contingent\"),'TSA Input'!D1384,\"\"))","v":""},{"$f":"IF('TSA Input'!J1384=\"\",\"\",IF(OR('TSA Input'!J1384=\"Yes\",'TSA Input'!J1384=\"Contingent\"),'TSA Input'!G1384,\"\"))","v":""},{"$f":"IF('TSA Input'!J1384=\"\",\"\",IF(OR('TSA Input'!J1384=\"Yes\",'TSA Input'!J1384=\"Contingent\"),'TSA Input'!F1384,\"\"))","v":""},"",{"$f":"IF('TSA Input'!J1384=\"\",\"\",IF(OR('TSA Input'!J1384=\"Yes\",'TSA Input'!J1384=\"Contingent\"),'TSA Input'!D1384,\"\"))","v":""},{"$f":"IF('TSA Input'!J1384=\"\",\"\",IF(OR('TSA Input'!J1384=\"Yes\",'TSA Input'!J1384=\"Contingent\"),'TSA Input'!G1384,\"\"))","v":""},{"$f":"IF('TSA Input'!J1384=\"\",\"\",IF(OR('TSA Input'!J1384=\"Yes\",'TSA Input'!J1384=\"Contingent\"),'TSA Input'!F1384,\"\"))","v":""},"","Required","Required"]
["",null,{"$f":"IF('TSA Input'!J1385=\"\",\"\",IF(OR('TSA Input'!J1385=\"Yes\",'TSA Input'!J1385=\"Contingent\"),'TSA Input'!B1385,\"Ineligible\"))","v":""},{"$f":"IF('TSA Input'!J1385=\"\",\"\",IF(OR('TSA Input'!J1385=\"Yes\",'TSA Input'!J1385=\"Contingent\"),'TSA Input'!I1385,\"\"))","v":""},{"$f":"IF('TSA Input'!J1385=\"\",\"\",IF(OR('TSA Input'!J1385=\"Yes\",'TSA Input'!J1385=\"Contingent\"),'TSA Input'!C1385,\"\"))","v":""},{"$f":"IF('TSA Input'!J1385=\"\",\"\",IF(OR('TSA Input'!J1385=\"Yes\",'TSA Input'!J1385=\"Contingent\"),'TSA Input'!D1385,\"\"))","v":""},{"$f":"IF('TSA Input'!J1385=\"\",\"\",IF(OR('TSA Input'!J1385=\"Yes\",'TSA Input'!J1385=\"Contingent\"),'TSA Input'!G1385,\"\"))","v":""},{"$f":"IF('TSA Input'!J1385=\"\",\"\",IF(OR('TSA Input'!J1385=\"Yes\",'TSA Input'!J1385=\"Contingent\"),'TSA Input'!F1385,\"\"))","v":""},"",{"$f":"IF('TSA Input'!J1385=\"\",\"\",IF(OR('TSA Input'!J1385=\"Yes\",'TSA Input'!J1385=\"Contingent\"),'TSA Input'!D1385,\"\"))","v":""},{"$f":"IF('TSA Input'!J1385=\"\",\"\",IF(OR('TSA Input'!J1385=\"Yes\",'TSA Input'!J1385=\"Contingent\"),'TSA Input'!G1385,\"\"))","v":""},{"$f":"IF('TSA Input'!J1385=\"\",\"\",IF(OR('TSA Input'!J1385=\"Yes\",'TSA Input'!J1385=\"Contingent\"),'TSA Input'!F1385,\"\"))","v":""},"","Required","Required"]
["",null,{"$f":"IF('TSA Input'!J1386=\"\",\"\",IF(OR('TSA Input'!J1386=\"Yes\",'TSA Input'!J1386=\"Contingent\"),'TSA Input'!B1386,\"Ineligible\"))","v":""},{"$f":"IF('TSA Input'!J1386=\"\",\"\",IF(OR('TSA Input'!J1386=\"Yes\",'TSA Input'!J1386=\"Contingent\"),'TSA Input'!I1386,\"\"))","v":""},{"$f":"IF('TSA Input'!J1386=\"\",\"\",IF(OR('TSA Input'!J1386=\"Yes\",'TSA Input'!J1386=\"Contingent\"),'TSA Input'!C1386,\"\"))","v":""},{"$f":"IF('TSA Input'!J1386=\"\",\"\",IF(OR('TSA Input'!J1386=\"Yes\",'TSA Input'!J1386=\"Contingent\"),'TSA Input'!D1386,\"\"))","v":""},{"$f":"IF('TSA Input'!J1386=\"\",\"\",IF(OR('TSA Input'!J1386=\"Yes\",'TSA Input'!J1386=\"Contingent\"),'TSA Input'!G1386,\"\"))","v":""},{"$f":"IF('TSA Input'!J1386=\"\",\"\",IF(OR('TSA Input'!J1386=\"Yes\",'TSA Input'!J1386=\"Contingent\"),'TSA Input'!F1386,\"\"))","v":""},"",{"$f":"IF('TSA Input'!J1386=\"\",\"\",IF(OR('TSA Input'!J1386=\"Yes\",'TSA Input'!J1386=\"Contingent\"),'TSA Input'!D1386,\"\"))","v":""},{"$f":"IF('TSA Input'!J1386=\"\",\"\",IF(OR('TSA Input'!J1386=\"Yes\",'TSA Input'!J1386=\"Contingent\"),'TSA Input'!G1386,\"\"))","v":""},{"$f":"IF('TSA Input'!J1386=\"\",\"\",IF(OR('TSA Input'!J1386=\"Yes\",'TSA Input'!J1386=\"Contingent\"),'TSA Input'!F1386,\"\"))","v":""},"","Required","Required"]
["",null,{"$f":"IF('TSA Input'!J1387=\"\",\"\",IF(OR('TSA Input'!J1387=\"Yes\",'TSA Input'!J1387=\"Contingent\"),'TSA Input'!B1387,\"Ineligible\"))","v":""},{"$f":"IF('TSA Input'!J1387=\"\",\"\",IF(OR('TSA Input'!J1387=\"Yes\",'TSA Input'!J1387=\"Contingent\"),'TSA Input'!I1387,\"\"))","v":""},{"$f":"IF('TSA Input'!J1387=\"\",\"\",IF(OR('TSA Input'!J1387=\"Yes\",'TSA Input'!J1387=\"Contingent\"),'TSA Input'!C1387,\"\"))","v":""},{"$f":"IF('TSA Input'!J1387=\"\",\"\",IF(OR('TSA Input'!J1387=\"Yes\",'TSA Input'!J1387=\"Contingent\"),'TSA Input'!D1387,\"\"))","v":""},{"$f":"IF('TSA Input'!J1387=\"\",\"\",IF(OR('TSA Input'!J1387=\"Yes\",'TSA Input'!J1387=\"Contingent\"),'TSA Input'!G1387,\"\"))","v":""},{"$f":"IF('TSA Input'!J1387=\"\",\"\",IF(OR('TSA Input'!J1387=\"Yes\",'TSA Input'!J1387=\"Contingent\"),'TSA Input'!F1387,\"\"))","v":""},"",{"$f":"IF('TSA Input'!J1387=\"\",\"\",IF(OR('TSA Input'!J1387=\"Yes\",'TSA Input'!J1387=\"Contingent\"),'TSA Input'!D1387,\"\"))","v":""},{"$f":"IF('TSA Input'!J1387=\"\",\"\",IF(OR('TSA Input'!J1387=\"Yes\",'TSA Input'!J1387=\"Contingent\"),'TSA Input'!G1387,\"\"))","v":""},{"$f":"IF('TSA Input'!J1387=\"\",\"\",IF(OR('TSA Input'!J1387=\"Yes\",'TSA Input'!J1387=\"Contingent\"),'TSA Input'!F1387,\"\"))","v":""},"","Required","Required"]
["",null,{"$f":"IF('TSA Input'!J1388=\"\",\"\",IF(OR('TSA Input'!J1388=\"Yes\",'TSA Input'!J1388=\"Contingent\"),'TSA Input'!B1388,\"Ineligible\"))","v":""},{"$f":"IF('TSA Input'!J1388=\"\",\"\",IF(OR('TSA Input'!J1388=\"Yes\",'TSA Input'!J1388=\"Contingent\"),'TSA Input'!I1388,\"\"))","v":""},{"$f":"IF('TSA Input'!J1388=\"\",\"\",IF(OR('TSA Input'!J1388=\"Yes\",'TSA Input'!J1388=\"Contingent\"),'TSA Input'!C1388,\"\"))","v":""},{"$f":"IF('TSA Input'!J1388=\"\",\"\",IF(OR('TSA Input'!J1388=\"Yes\",'TSA Input'!J1388=\"Contingent\"),'TSA Input'!D1388,\"\"))","v":""},{"$f":"IF('TSA Input'!J1388=\"\",\"\",IF(OR('TSA Input'!J1388=\"Yes\",'TSA Input'!J1388=\"Contingent\"),'TSA Input'!G1388,\"\"))","v":""},{"$f":"IF('TSA Input'!J1388=\"\",\"\",IF(OR('TSA Input'!J1388=\"Yes\",'TSA Input'!J1388=\"Contingent\"),'TSA Input'!F1388,\"\"))","v":""},"",{"$f":"IF('TSA Input'!J1388=\"\",\"\",IF(OR('TSA Input'!J1388=\"Yes\",'TSA Input'!J1388=\"Contingent\"),'TSA Input'!D1388,\"\"))","v":""},{"$f":"IF('TSA Input'!J1388=\"\",\"\",IF(OR('TSA Input'!J1388=\"Yes\",'TSA Input'!J1388=\"Contingent\"),'TSA Input'!G1388,\"\"))","v":""},{"$f":"IF('TSA Input'!J1388=\"\",\"\",IF(OR('TSA Input'!J1388=\"Yes\",'TSA Input'!J1388=\"Contingent\"),'TSA Input'!F1388,\"\"))","v":""},"","Required","Required"]
["",null,{"$f":"IF('TSA Input'!J1389=\"\",\"\",IF(OR('TSA Input'!J1389=\"Yes\",'TSA Input'!J1389=\"Contingent\"),'TSA Input'!B1389,\"Ineligible\"))","v":""},{"$f":"IF('TSA Input'!J1389=\"\",\"\",IF(OR('TSA Input'!J1389=\"Yes\",'TSA Input'!J1389=\"Contingent\"),'TSA Input'!I1389,\"\"))","v":""},{"$f":"IF('TSA Input'!J1389=\"\",\"\",IF(OR('TSA Input'!J1389=\"Yes\",'TSA Input'!J1389=\"Contingent\"),'TSA Input'!C1389,\"\"))","v":""},{"$f":"IF('TSA Input'!J1389=\"\",\"\",IF(OR('TSA Input'!J1389=\"Yes\",'TSA Input'!J1389=\"Contingent\"),'TSA Input'!D1389,\"\"))","v":""},{"$f":"IF('TSA Input'!J1389=\"\",\"\",IF(OR('TSA Input'!J1389=\"Yes\",'TSA Input'!J1389=\"Contingent\"),'TSA Input'!G1389,\"\"))","v":""},{"$f":"IF('TSA Input'!J1389=\"\",\"\",IF(OR('TSA Input'!J1389=\"Yes\",'TSA Input'!J1389=\"Contingent\"),'TSA Input'!F1389,\"\"))","v":""},"",{"$f":"IF('TSA Input'!J1389=\"\",\"\",IF(OR('TSA Input'!J1389=\"Yes\",'TSA Input'!J1389=\"Contingent\"),'TSA Input'!D1389,\"\"))","v":""},{"$f":"IF('TSA Input'!J1389=\"\",\"\",IF(OR('TSA Input'!J1389=\"Yes\",'TSA Input'!J1389=\"Contingent\"),'TSA Input'!G1389,\"\"))","v":""},{"$f":"IF('TSA Input'!J1389=\"\",\"\",IF(OR('TSA Input'!J1389=\"Yes\",'TSA Input'!J1389=\"Contingent\"),'TSA Input'!F1389,\"\"))","v":""},"","Required","Required"]
["",null,{"$f":"IF('TSA Input'!J1390=\"\",\"\",IF(OR('TSA Input'!J1390=\"Yes\",'TSA Input'!J1390=\"Contingent\"),'TSA Input'!B1390,\"Ineligible\"))","v":""},{"$f":"IF('TSA Input'!J1390=\"\",\"\",IF(OR('TSA Input'!J1390=\"Yes\",'TSA Input'!J1390=\"Contingent\"),'TSA Input'!I1390,\"\"))","v":""},{"$f":"IF('TSA Input'!J1390=\"\",\"\",IF(OR('TSA Input'!J1390=\"Yes\",'TSA Input'!J1390=\"Contingent\"),'TSA Input'!C1390,\"\"))","v":""},{"$f":"IF('TSA Input'!J1390=\"\",\"\",IF(OR('TSA Input'!J1390=\"Yes\",'TSA Input'!J1390=\"Contingent\"),'TSA Input'!D1390,\"\"))","v":""},{"$f":"IF('TSA Input'!J1390=\"\",\"\",IF(OR('TSA Input'!J1390=\"Yes\",'TSA Input'!J1390=\"Contingent\"),'TSA Input'!G1390,\"\"))","v":""},{"$f":"IF('TSA Input'!J1390=\"\",\"\",IF(OR('TSA Input'!J1390=\"Yes\",'TSA Input'!J1390=\"Contingent\"),'TSA Input'!F1390,\"\"))","v":""},"",{"$f":"IF('TSA Input'!J1390=\"\",\"\",IF(OR('TSA Input'!J1390=\"Yes\",'TSA Input'!J1390=\"Contingent\"),'TSA Input'!D1390,\"\"))","v":""},{"$f":"IF('TSA Input'!J1390=\"\",\"\",IF(OR('TSA Input'!J1390=\"Yes\",'TSA Input'!J1390=\"Contingent\"),'TSA Input'!G1390,\"\"))","v":""},{"$f":"IF('TSA Input'!J1390=\"\",\"\",IF(OR('TSA Input'!J1390=\"Yes\",'TSA Input'!J1390=\"Contingent\"),'TSA Input'!F1390,\"\"))","v":""},"","Required","Required"]
["",null,{"$f":"IF('TSA Input'!J1391=\"\",\"\",IF(OR('TSA Input'!J1391=\"Yes\",'TSA Input'!J1391=\"Contingent\"),'TSA Input'!B1391,\"Ineligible\"))","v":""},{"$f":"IF('TSA Input'!J1391=\"\",\"\",IF(OR('TSA Input'!J1391=\"Yes\",'TSA Input'!J1391=\"Contingent\"),'TSA Input'!I1391,\"\"))","v":""},{"$f":"IF('TSA Input'!J1391=\"\",\"\",IF(OR('TSA Input'!J1391=\"Yes\",'TSA Input'!J1391=\"Contingent\"),'TSA Input'!C1391,\"\"))","v":""},{"$f":"IF('TSA Input'!J1391=\"\",\"\",IF(OR('TSA Input'!J1391=\"Yes\",'TSA Input'!J1391=\"Contingent\"),'TSA Input'!D1391,\"\"))","v":""},{"$f":"IF('TSA Input'!J1391=\"\",\"\",IF(OR('TSA Input'!J1391=\"Yes\",'TSA Input'!J1391=\"Contingent\"),'TSA Input'!G1391,\"\"))","v":""},{"$f":"IF('TSA Input'!J1391=\"\",\"\",IF(OR('TSA Input'!J1391=\"Yes\",'TSA Input'!J1391=\"Contingent\"),'TSA Input'!F1391,\"\"))","v":""},"",{"$f":"IF('TSA Input'!J1391=\"\",\"\",IF(OR('TSA Input'!J1391=\"Yes\",'TSA Input'!J1391=\"Contingent\"),'TSA Input'!D1391,\"\"))","v":""},{"$f":"IF('TSA Input'!J1391=\"\",\"\",IF(OR('TSA Input'!J1391=\"Yes\",'TSA Input'!J1391=\"Contingent\"),'TSA Input'!G1391,\"\"))","v":""},{"$f":"IF('TSA Input'!J1391=\"\",\"\",IF(OR('TSA Input'!J1391=\"Yes\",'TSA Input'!J1391=\"Contingent\"),'TSA Input'!F1391,\"\"))","v":""},"","Required","Required"]
["",null,{"$f":"IF('TSA Input'!J1392=\"\",\"\",IF(OR('TSA Input'!J1392=\"Yes\",'TSA Input'!J1392=\"Contingent\"),'TSA Input'!B1392,\"Ineligible\"))","v":""},{"$f":"IF('TSA Input'!J1392=\"\",\"\",IF(OR('TSA Input'!J1392=\"Yes\",'TSA Input'!J1392=\"Contingent\"),'TSA Input'!I1392,\"\"))","v":""},{"$f":"IF('TSA Input'!J1392=\"\",\"\",IF(OR('TSA Input'!J1392=\"Yes\",'TSA Input'!J1392=\"Contingent\"),'TSA Input'!C1392,\"\"))","v":""},{"$f":"IF('TSA Input'!J1392=\"\",\"\",IF(OR('TSA Input'!J1392=\"Yes\",'TSA Input'!J1392=\"Contingent\"),'TSA Input'!D1392,\"\"))","v":""},{"$f":"IF('TSA Input'!J1392=\"\",\"\",IF(OR('TSA Input'!J1392=\"Yes\",'TSA Input'!J1392=\"Contingent\"),'TSA Input'!G1392,\"\"))","v":""},{"$f":"IF('TSA Input'!J1392=\"\",\"\",IF(OR('TSA Input'!J1392=\"Yes\",'TSA Input'!J1392=\"Contingent\"),'TSA Input'!F1392,\"\"))","v":""},"",{"$f":"IF('TSA Input'!J1392=\"\",\"\",IF(OR('TSA Input'!J1392=\"Yes\",'TSA Input'!J1392=\"Contingent\"),'TSA Input'!D1392,\"\"))","v":""},{"$f":"IF('TSA Input'!J1392=\"\",\"\",IF(OR('TSA Input'!J1392=\"Yes\",'TSA Input'!J1392=\"Contingent\"),'TSA Input'!G1392,\"\"))","v":""},{"$f":"IF('TSA Input'!J1392=\"\",\"\",IF(OR('TSA Input'!J1392=\"Yes\",'TSA Input'!J1392=\"Contingent\"),'TSA Input'!F1392,\"\"))","v":""},"","Required","Required"]
["",null,{"$f":"IF('TSA Input'!J1393=\"\",\"\",IF(OR('TSA Input'!J1393=\"Yes\",'TSA Input'!J1393=\"Contingent\"),'TSA Input'!B1393,\"Ineligible\"))","v":""},{"$f":"IF('TSA Input'!J1393=\"\",\"\",IF(OR('TSA Input'!J1393=\"Yes\",'TSA Input'!J1393=\"Contingent\"),'TSA Input'!I1393,\"\"))","v":""},{"$f":"IF('TSA Input'!J1393=\"\",\"\",IF(OR('TSA Input'!J1393=\"Yes\",'TSA Input'!J1393=\"Contingent\"),'TSA Input'!C1393,\"\"))","v":""},{"$f":"IF('TSA Input'!J1393=\"\",\"\",IF(OR('TSA Input'!J1393=\"Yes\",'TSA Input'!J1393=\"Contingent\"),'TSA Input'!D1393,\"\"))","v":""},{"$f":"IF('TSA Input'!J1393=\"\",\"\",IF(OR('TSA Input'!J1393=\"Yes\",'TSA Input'!J1393=\"Contingent\"),'TSA Input'!G1393,\"\"))","v":""},{"$f":"IF('TSA Input'!J1393=\"\",\"\",IF(OR('TSA Input'!J1393=\"Yes\",'TSA Input'!J1393=\"Contingent\"),'TSA Input'!F1393,\"\"))","v":""},"",{"$f":"IF('TSA Input'!J1393=\"\",\"\",IF(OR('TSA Input'!J1393=\"Yes\",'TSA Input'!J1393=\"Contingent\"),'TSA Input'!D1393,\"\"))","v":""},{"$f":"IF('TSA Input'!J1393=\"\",\"\",IF(OR('TSA Input'!J1393=\"Yes\",'TSA Input'!J1393=\"Contingent\"),'TSA Input'!G1393,\"\"))","v":""},{"$f":"IF('TSA Input'!J1393=\"\",\"\",IF(OR('TSA Input'!J1393=\"Yes\",'TSA Input'!J1393=\"Contingent\"),'TSA Input'!F1393,\"\"))","v":""},"","Required","Required"]
["",null,{"$f":"IF('TSA Input'!J1394=\"\",\"\",IF(OR('TSA Input'!J1394=\"Yes\",'TSA Input'!J1394=\"Contingent\"),'TSA Input'!B1394,\"Ineligible\"))","v":""},{"$f":"IF('TSA Input'!J1394=\"\",\"\",IF(OR('TSA Input'!J1394=\"Yes\",'TSA Input'!J1394=\"Contingent\"),'TSA Input'!I1394,\"\"))","v":""},{"$f":"IF('TSA Input'!J1394=\"\",\"\",IF(OR('TSA Input'!J1394=\"Yes\",'TSA Input'!J1394=\"Contingent\"),'TSA Input'!C1394,\"\"))","v":""},{"$f":"IF('TSA Input'!J1394=\"\",\"\",IF(OR('TSA Input'!J1394=\"Yes\",'TSA Input'!J1394=\"Contingent\"),'TSA Input'!D1394,\"\"))","v":""},{"$f":"IF('TSA Input'!J1394=\"\",\"\",IF(OR('TSA Input'!J1394=\"Yes\",'TSA Input'!J1394=\"Contingent\"),'TSA Input'!G1394,\"\"))","v":""},{"$f":"IF('TSA Input'!J1394=\"\",\"\",IF(OR('TSA Input'!J1394=\"Yes\",'TSA Input'!J1394=\"Contingent\"),'TSA Input'!F1394,\"\"))","v":""},"",{"$f":"IF('TSA Input'!J1394=\"\",\"\",IF(OR('TSA Input'!J1394=\"Yes\",'TSA Input'!J1394=\"Contingent\"),'TSA Input'!D1394,\"\"))","v":""},{"$f":"IF('TSA Input'!J1394=\"\",\"\",IF(OR('TSA Input'!J1394=\"Yes\",'TSA Input'!J1394=\"Contingent\"),'TSA Input'!G1394,\"\"))","v":""},{"$f":"IF('TSA Input'!J1394=\"\",\"\",IF(OR('TSA Input'!J1394=\"Yes\",'TSA Input'!J1394=\"Contingent\"),'TSA Input'!F1394,\"\"))","v":""},"","Required","Required"]
["",null,{"$f":"IF('TSA Input'!J1395=\"\",\"\",IF(OR('TSA Input'!J1395=\"Yes\",'TSA Input'!J1395=\"Contingent\"),'TSA Input'!B1395,\"Ineligible\"))","v":""},{"$f":"IF('TSA Input'!J1395=\"\",\"\",IF(OR('TSA Input'!J1395=\"Yes\",'TSA Input'!J1395=\"Contingent\"),'TSA Input'!I1395,\"\"))","v":""},{"$f":"IF('TSA Input'!J1395=\"\",\"\",IF(OR('TSA Input'!J1395=\"Yes\",'TSA Input'!J1395=\"Contingent\"),'TSA Input'!C1395,\"\"))","v":""},{"$f":"IF('TSA Input'!J1395=\"\",\"\",IF(OR('TSA Input'!J1395=\"Yes\",'TSA Input'!J1395=\"Contingent\"),'TSA Input'!D1395,\"\"))","v":""},{"$f":"IF('TSA Input'!J1395=\"\",\"\",IF(OR('TSA Input'!J1395=\"Yes\",'TSA Input'!J1395=\"Contingent\"),'TSA Input'!G1395,\"\"))","v":""},{"$f":"IF('TSA Input'!J1395=\"\",\"\",IF(OR('TSA Input'!J1395=\"Yes\",'TSA Input'!J1395=\"Contingent\"),'TSA Input'!F1395,\"\"))","v":""},"",{"$f":"IF('TSA Input'!J1395=\"\",\"\",IF(OR('TSA Input'!J1395=\"Yes\",'TSA Input'!J1395=\"Contingent\"),'TSA Input'!D1395,\"\"))","v":""},{"$f":"IF('TSA Input'!J1395=\"\",\"\",IF(OR('TSA Input'!J1395=\"Yes\",'TSA Input'!J1395=\"Contingent\"),'TSA Input'!G1395,\"\"))","v":""},{"$f":"IF('TSA Input'!J1395=\"\",\"\",IF(OR('TSA Input'!J1395=\"Yes\",'TSA Input'!J1395=\"Contingent\"),'TSA Input'!F1395,\"\"))","v":""},"","Required","Required"]
["",null,{"$f":"IF('TSA Input'!J1396=\"\",\"\",IF(OR('TSA Input'!J1396=\"Yes\",'TSA Input'!J1396=\"Contingent\"),'TSA Input'!B1396,\"Ineligible\"))","v":""},{"$f":"IF('TSA Input'!J1396=\"\",\"\",IF(OR('TSA Input'!J1396=\"Yes\",'TSA Input'!J1396=\"Contingent\"),'TSA Input'!I1396,\"\"))","v":""},{"$f":"IF('TSA Input'!J1396=\"\",\"\",IF(OR('TSA Input'!J1396=\"Yes\",'TSA Input'!J1396=\"Contingent\"),'TSA Input'!C1396,\"\"))","v":""},{"$f":"IF('TSA Input'!J1396=\"\",\"\",IF(OR('TSA Input'!J1396=\"Yes\",'TSA Input'!J1396=\"Contingent\"),'TSA Input'!D1396,\"\"))","v":""},{"$f":"IF('TSA Input'!J1396=\"\",\"\",IF(OR('TSA Input'!J1396=\"Yes\",'TSA Input'!J1396=\"Contingent\"),'TSA Input'!G1396,\"\"))","v":""},{"$f":"IF('TSA Input'!J1396=\"\",\"\",IF(OR('TSA Input'!J1396=\"Yes\",'TSA Input'!J1396=\"Contingent\"),'TSA Input'!F1396,\"\"))","v":""},"",{"$f":"IF('TSA Input'!J1396=\"\",\"\",IF(OR('TSA Input'!J1396=\"Yes\",'TSA Input'!J1396=\"Contingent\"),'TSA Input'!D1396,\"\"))","v":""},{"$f":"IF('TSA Input'!J1396=\"\",\"\",IF(OR('TSA Input'!J1396=\"Yes\",'TSA Input'!J1396=\"Contingent\"),'TSA Input'!G1396,\"\"))","v":""},{"$f":"IF('TSA Input'!J1396=\"\",\"\",IF(OR('TSA Input'!J1396=\"Yes\",'TSA Input'!J1396=\"Contingent\"),'TSA Input'!F1396,\"\"))","v":""},"","Required","Required"]
["",null,{"$f":"IF('TSA Input'!J1397=\"\",\"\",IF(OR('TSA Input'!J1397=\"Yes\",'TSA Input'!J1397=\"Contingent\"),'TSA Input'!B1397,\"Ineligible\"))","v":""},{"$f":"IF('TSA Input'!J1397=\"\",\"\",IF(OR('TSA Input'!J1397=\"Yes\",'TSA Input'!J1397=\"Contingent\"),'TSA Input'!I1397,\"\"))","v":""},{"$f":"IF('TSA Input'!J1397=\"\",\"\",IF(OR('TSA Input'!J1397=\"Yes\",'TSA Input'!J1397=\"Contingent\"),'TSA Input'!C1397,\"\"))","v":""},{"$f":"IF('TSA Input'!J1397=\"\",\"\",IF(OR('TSA Input'!J1397=\"Yes\",'TSA Input'!J1397=\"Contingent\"),'TSA Input'!D1397,\"\"))","v":""},{"$f":"IF('TSA Input'!J1397=\"\",\"\",IF(OR('TSA Input'!J1397=\"Yes\",'TSA Input'!J1397=\"Contingent\"),'TSA Input'!G1397,\"\"))","v":""},{"$f":"IF('TSA Input'!J1397=\"\",\"\",IF(OR('TSA Input'!J1397=\"Yes\",'TSA Input'!J1397=\"Contingent\"),'TSA Input'!F1397,\"\"))","v":""},"",{"$f":"IF('TSA Input'!J1397=\"\",\"\",IF(OR('TSA Input'!J1397=\"Yes\",'TSA Input'!J1397=\"Contingent\"),'TSA Input'!D1397,\"\"))","v":""},{"$f":"IF('TSA Input'!J1397=\"\",\"\",IF(OR('TSA Input'!J1397=\"Yes\",'TSA Input'!J1397=\"Contingent\"),'TSA Input'!G1397,\"\"))","v":""},{"$f":"IF('TSA Input'!J1397=\"\",\"\",IF(OR('TSA Input'!J1397=\"Yes\",'TSA Input'!J1397=\"Contingent\"),'TSA Input'!F1397,\"\"))","v":""},"","Required","Required"]
["",null,{"$f":"IF('TSA Input'!J1398=\"\",\"\",IF(OR('TSA Input'!J1398=\"Yes\",'TSA Input'!J1398=\"Contingent\"),'TSA Input'!B1398,\"Ineligible\"))","v":""},{"$f":"IF('TSA Input'!J1398=\"\",\"\",IF(OR('TSA Input'!J1398=\"Yes\",'TSA Input'!J1398=\"Contingent\"),'TSA Input'!I1398,\"\"))","v":""},{"$f":"IF('TSA Input'!J1398=\"\",\"\",IF(OR('TSA Input'!J1398=\"Yes\",'TSA Input'!J1398=\"Contingent\"),'TSA Input'!C1398,\"\"))","v":""},{"$f":"IF('TSA Input'!J1398=\"\",\"\",IF(OR('TSA Input'!J1398=\"Yes\",'TSA Input'!J1398=\"Contingent\"),'TSA Input'!D1398,\"\"))","v":""},{"$f":"IF('TSA Input'!J1398=\"\",\"\",IF(OR('TSA Input'!J1398=\"Yes\",'TSA Input'!J1398=\"Contingent\"),'TSA Input'!G1398,\"\"))","v":""},{"$f":"IF('TSA Input'!J1398=\"\",\"\",IF(OR('TSA Input'!J1398=\"Yes\",'TSA Input'!J1398=\"Contingent\"),'TSA Input'!F1398,\"\"))","v":""},"",{"$f":"IF('TSA Input'!J1398=\"\",\"\",IF(OR('TSA Input'!J1398=\"Yes\",'TSA Input'!J1398=\"Contingent\"),'TSA Input'!D1398,\"\"))","v":""},{"$f":"IF('TSA Input'!J1398=\"\",\"\",IF(OR('TSA Input'!J1398=\"Yes\",'TSA Input'!J1398=\"Contingent\"),'TSA Input'!G1398,\"\"))","v":""},{"$f":"IF('TSA Input'!J1398=\"\",\"\",IF(OR('TSA Input'!J1398=\"Yes\",'TSA Input'!J1398=\"Contingent\"),'TSA Input'!F1398,\"\"))","v":""},"","Required","Required"]
["",null,{"$f":"IF('TSA Input'!J1399=\"\",\"\",IF(OR('TSA Input'!J1399=\"Yes\",'TSA Input'!J1399=\"Contingent\"),'TSA Input'!B1399,\"Ineligible\"))","v":""},{"$f":"IF('TSA Input'!J1399=\"\",\"\",IF(OR('TSA Input'!J1399=\"Yes\",'TSA Input'!J1399=\"Contingent\"),'TSA Input'!I1399,\"\"))","v":""},{"$f":"IF('TSA Input'!J1399=\"\",\"\",IF(OR('TSA Input'!J1399=\"Yes\",'TSA Input'!J1399=\"Contingent\"),'TSA Input'!C1399,\"\"))","v":""},{"$f":"IF('TSA Input'!J1399=\"\",\"\",IF(OR('TSA Input'!J1399=\"Yes\",'TSA Input'!J1399=\"Contingent\"),'TSA Input'!D1399,\"\"))","v":""},{"$f":"IF('TSA Input'!J1399=\"\",\"\",IF(OR('TSA Input'!J1399=\"Yes\",'TSA Input'!J1399=\"Contingent\"),'TSA Input'!G1399,\"\"))","v":""},{"$f":"IF('TSA Input'!J1399=\"\",\"\",IF(OR('TSA Input'!J1399=\"Yes\",'TSA Input'!J1399=\"Contingent\"),'TSA Input'!F1399,\"\"))","v":""},"",{"$f":"IF('TSA Input'!J1399=\"\",\"\",IF(OR('TSA Input'!J1399=\"Yes\",'TSA Input'!J1399=\"Contingent\"),'TSA Input'!D1399,\"\"))","v":""},{"$f":"IF('TSA Input'!J1399=\"\",\"\",IF(OR('TSA Input'!J1399=\"Yes\",'TSA Input'!J1399=\"Contingent\"),'TSA Input'!G1399,\"\"))","v":""},{"$f":"IF('TSA Input'!J1399=\"\",\"\",IF(OR('TSA Input'!J1399=\"Yes\",'TSA Input'!J1399=\"Contingent\"),'TSA Input'!F1399,\"\"))","v":""},"","Required","Required"]
["",null,{"$f":"IF('TSA Input'!J1400=\"\",\"\",IF(OR('TSA Input'!J1400=\"Yes\",'TSA Input'!J1400=\"Contingent\"),'TSA Input'!B1400,\"Ineligible\"))","v":""},{"$f":"IF('TSA Input'!J1400=\"\",\"\",IF(OR('TSA Input'!J1400=\"Yes\",'TSA Input'!J1400=\"Contingent\"),'TSA Input'!I1400,\"\"))","v":""},{"$f":"IF('TSA Input'!J1400=\"\",\"\",IF(OR('TSA Input'!J1400=\"Yes\",'TSA Input'!J1400=\"Contingent\"),'TSA Input'!C1400,\"\"))","v":""},{"$f":"IF('TSA Input'!J1400=\"\",\"\",IF(OR('TSA Input'!J1400=\"Yes\",'TSA Input'!J1400=\"Contingent\"),'TSA Input'!D1400,\"\"))","v":""},{"$f":"IF('TSA Input'!J1400=\"\",\"\",IF(OR('TSA Input'!J1400=\"Yes\",'TSA Input'!J1400=\"Contingent\"),'TSA Input'!G1400,\"\"))","v":""},{"$f":"IF('TSA Input'!J1400=\"\",\"\",IF(OR('TSA Input'!J1400=\"Yes\",'TSA Input'!J1400=\"Contingent\"),'TSA Input'!F1400,\"\"))","v":""},"",{"$f":"IF('TSA Input'!J1400=\"\",\"\",IF(OR('TSA Input'!J1400=\"Yes\",'TSA Input'!J1400=\"Contingent\"),'TSA Input'!D1400,\"\"))","v":""},{"$f":"IF('TSA Input'!J1400=\"\",\"\",IF(OR('TSA Input'!J1400=\"Yes\",'TSA Input'!J1400=\"Contingent\"),'TSA Input'!G1400,\"\"))","v":""},{"$f":"IF('TSA Input'!J1400=\"\",\"\",IF(OR('TSA Input'!J1400=\"Yes\",'TSA Input'!J1400=\"Contingent\"),'TSA Input'!F1400,\"\"))","v":""},"","Required","Required"]
["",null,{"$f":"IF('TSA Input'!J1401=\"\",\"\",IF(OR('TSA Input'!J1401=\"Yes\",'TSA Input'!J1401=\"Contingent\"),'TSA Input'!B1401,\"Ineligible\"))","v":""},{"$f":"IF('TSA Input'!J1401=\"\",\"\",IF(OR('TSA Input'!J1401=\"Yes\",'TSA Input'!J1401=\"Contingent\"),'TSA Input'!I1401,\"\"))","v":""},{"$f":"IF('TSA Input'!J1401=\"\",\"\",IF(OR('TSA Input'!J1401=\"Yes\",'TSA Input'!J1401=\"Contingent\"),'TSA Input'!C1401,\"\"))","v":""},{"$f":"IF('TSA Input'!J1401=\"\",\"\",IF(OR('TSA Input'!J1401=\"Yes\",'TSA Input'!J1401=\"Contingent\"),'TSA Input'!D1401,\"\"))","v":""},{"$f":"IF('TSA Input'!J1401=\"\",\"\",IF(OR('TSA Input'!J1401=\"Yes\",'TSA Input'!J1401=\"Contingent\"),'TSA Input'!G1401,\"\"))","v":""},{"$f":"IF('TSA Input'!J1401=\"\",\"\",IF(OR('TSA Input'!J1401=\"Yes\",'TSA Input'!J1401=\"Contingent\"),'TSA Input'!F1401,\"\"))","v":""},"",{"$f":"IF('TSA Input'!J1401=\"\",\"\",IF(OR('TSA Input'!J1401=\"Yes\",'TSA Input'!J1401=\"Contingent\"),'TSA Input'!D1401,\"\"))","v":""},{"$f":"IF('TSA Input'!J1401=\"\",\"\",IF(OR('TSA Input'!J1401=\"Yes\",'TSA Input'!J1401=\"Contingent\"),'TSA Input'!G1401,\"\"))","v":""},{"$f":"IF('TSA Input'!J1401=\"\",\"\",IF(OR('TSA Input'!J1401=\"Yes\",'TSA Input'!J1401=\"Contingent\"),'TSA Input'!F1401,\"\"))","v":""},"","Required","Required"]
["",null,{"$f":"IF('TSA Input'!J1402=\"\",\"\",IF(OR('TSA Input'!J1402=\"Yes\",'TSA Input'!J1402=\"Contingent\"),'TSA Input'!B1402,\"Ineligible\"))","v":""},{"$f":"IF('TSA Input'!J1402=\"\",\"\",IF(OR('TSA Input'!J1402=\"Yes\",'TSA Input'!J1402=\"Contingent\"),'TSA Input'!I1402,\"\"))","v":""},{"$f":"IF('TSA Input'!J1402=\"\",\"\",IF(OR('TSA Input'!J1402=\"Yes\",'TSA Input'!J1402=\"Contingent\"),'TSA Input'!C1402,\"\"))","v":""},{"$f":"IF('TSA Input'!J1402=\"\",\"\",IF(OR('TSA Input'!J1402=\"Yes\",'TSA Input'!J1402=\"Contingent\"),'TSA Input'!D1402,\"\"))","v":""},{"$f":"IF('TSA Input'!J1402=\"\",\"\",IF(OR('TSA Input'!J1402=\"Yes\",'TSA Input'!J1402=\"Contingent\"),'TSA Input'!G1402,\"\"))","v":""},{"$f":"IF('TSA Input'!J1402=\"\",\"\",IF(OR('TSA Input'!J1402=\"Yes\",'TSA Input'!J1402=\"Contingent\"),'TSA Input'!F1402,\"\"))","v":""},"",{"$f":"IF('TSA Input'!J1402=\"\",\"\",IF(OR('TSA Input'!J1402=\"Yes\",'TSA Input'!J1402=\"Contingent\"),'TSA Input'!D1402,\"\"))","v":""},{"$f":"IF('TSA Input'!J1402=\"\",\"\",IF(OR('TSA Input'!J1402=\"Yes\",'TSA Input'!J1402=\"Contingent\"),'TSA Input'!G1402,\"\"))","v":""},{"$f":"IF('TSA Input'!J1402=\"\",\"\",IF(OR('TSA Input'!J1402=\"Yes\",'TSA Input'!J1402=\"Contingent\"),'TSA Input'!F1402,\"\"))","v":""},"","Required","Required"]
["",null,{"$f":"IF('TSA Input'!J1403=\"\",\"\",IF(OR('TSA Input'!J1403=\"Yes\",'TSA Input'!J1403=\"Contingent\"),'TSA Input'!B1403,\"Ineligible\"))","v":""},{"$f":"IF('TSA Input'!J1403=\"\",\"\",IF(OR('TSA Input'!J1403=\"Yes\",'TSA Input'!J1403=\"Contingent\"),'TSA Input'!I1403,\"\"))","v":""},{"$f":"IF('TSA Input'!J1403=\"\",\"\",IF(OR('TSA Input'!J1403=\"Yes\",'TSA Input'!J1403=\"Contingent\"),'TSA Input'!C1403,\"\"))","v":""},{"$f":"IF('TSA Input'!J1403=\"\",\"\",IF(OR('TSA Input'!J1403=\"Yes\",'TSA Input'!J1403=\"Contingent\"),'TSA Input'!D1403,\"\"))","v":""},{"$f":"IF('TSA Input'!J1403=\"\",\"\",IF(OR('TSA Input'!J1403=\"Yes\",'TSA Input'!J1403=\"Contingent\"),'TSA Input'!G1403,\"\"))","v":""},{"$f":"IF('TSA Input'!J1403=\"\",\"\",IF(OR('TSA Input'!J1403=\"Yes\",'TSA Input'!J1403=\"Contingent\"),'TSA Input'!F1403,\"\"))","v":""},"",{"$f":"IF('TSA Input'!J1403=\"\",\"\",IF(OR('TSA Input'!J1403=\"Yes\",'TSA Input'!J1403=\"Contingent\"),'TSA Input'!D1403,\"\"))","v":""},{"$f":"IF('TSA Input'!J1403=\"\",\"\",IF(OR('TSA Input'!J1403=\"Yes\",'TSA Input'!J1403=\"Contingent\"),'TSA Input'!G1403,\"\"))","v":""},{"$f":"IF('TSA Input'!J1403=\"\",\"\",IF(OR('TSA Input'!J1403=\"Yes\",'TSA Input'!J1403=\"Contingent\"),'TSA Input'!F1403,\"\"))","v":""},"","Required","Required"]
["",null,{"$f":"IF('TSA Input'!J1404=\"\",\"\",IF(OR('TSA Input'!J1404=\"Yes\",'TSA Input'!J1404=\"Contingent\"),'TSA Input'!B1404,\"Ineligible\"))","v":""},{"$f":"IF('TSA Input'!J1404=\"\",\"\",IF(OR('TSA Input'!J1404=\"Yes\",'TSA Input'!J1404=\"Contingent\"),'TSA Input'!I1404,\"\"))","v":""},{"$f":"IF('TSA Input'!J1404=\"\",\"\",IF(OR('TSA Input'!J1404=\"Yes\",'TSA Input'!J1404=\"Contingent\"),'TSA Input'!C1404,\"\"))","v":""},{"$f":"IF('TSA Input'!J1404=\"\",\"\",IF(OR('TSA Input'!J1404=\"Yes\",'TSA Input'!J1404=\"Contingent\"),'TSA Input'!D1404,\"\"))","v":""},{"$f":"IF('TSA Input'!J1404=\"\",\"\",IF(OR('TSA Input'!J1404=\"Yes\",'TSA Input'!J1404=\"Contingent\"),'TSA Input'!G1404,\"\"))","v":""},{"$f":"IF('TSA Input'!J1404=\"\",\"\",IF(OR('TSA Input'!J1404=\"Yes\",'TSA Input'!J1404=\"Contingent\"),'TSA Input'!F1404,\"\"))","v":""},"",{"$f":"IF('TSA Input'!J1404=\"\",\"\",IF(OR('TSA Input'!J1404=\"Yes\",'TSA Input'!J1404=\"Contingent\"),'TSA Input'!D1404,\"\"))","v":""},{"$f":"IF('TSA Input'!J1404=\"\",\"\",IF(OR('TSA Input'!J1404=\"Yes\",'TSA Input'!J1404=\"Contingent\"),'TSA Input'!G1404,\"\"))","v":""},{"$f":"IF('TSA Input'!J1404=\"\",\"\",IF(OR('TSA Input'!J1404=\"Yes\",'TSA Input'!J1404=\"Contingent\"),'TSA Input'!F1404,\"\"))","v":""},"","Required","Required"]
["",null,{"$f":"IF('TSA Input'!J1405=\"\",\"\",IF(OR('TSA Input'!J1405=\"Yes\",'TSA Input'!J1405=\"Contingent\"),'TSA Input'!B1405,\"Ineligible\"))","v":""},{"$f":"IF('TSA Input'!J1405=\"\",\"\",IF(OR('TSA Input'!J1405=\"Yes\",'TSA Input'!J1405=\"Contingent\"),'TSA Input'!I1405,\"\"))","v":""},{"$f":"IF('TSA Input'!J1405=\"\",\"\",IF(OR('TSA Input'!J1405=\"Yes\",'TSA Input'!J1405=\"Contingent\"),'TSA Input'!C1405,\"\"))","v":""},{"$f":"IF('TSA Input'!J1405=\"\",\"\",IF(OR('TSA Input'!J1405=\"Yes\",'TSA Input'!J1405=\"Contingent\"),'TSA Input'!D1405,\"\"))","v":""},{"$f":"IF('TSA Input'!J1405=\"\",\"\",IF(OR('TSA Input'!J1405=\"Yes\",'TSA Input'!J1405=\"Contingent\"),'TSA Input'!G1405,\"\"))","v":""},{"$f":"IF('TSA Input'!J1405=\"\",\"\",IF(OR('TSA Input'!J1405=\"Yes\",'TSA Input'!J1405=\"Contingent\"),'TSA Input'!F1405,\"\"))","v":""},"",{"$f":"IF('TSA Input'!J1405=\"\",\"\",IF(OR('TSA Input'!J1405=\"Yes\",'TSA Input'!J1405=\"Contingent\"),'TSA Input'!D1405,\"\"))","v":""},{"$f":"IF('TSA Input'!J1405=\"\",\"\",IF(OR('TSA Input'!J1405=\"Yes\",'TSA Input'!J1405=\"Contingent\"),'TSA Input'!G1405,\"\"))","v":""},{"$f":"IF('TSA Input'!J1405=\"\",\"\",IF(OR('TSA Input'!J1405=\"Yes\",'TSA Input'!J1405=\"Contingent\"),'TSA Input'!F1405,\"\"))","v":""},"","Required","Required"]
["",null,{"$f":"IF('TSA Input'!J1406=\"\",\"\",IF(OR('TSA Input'!J1406=\"Yes\",'TSA Input'!J1406=\"Contingent\"),'TSA Input'!B1406,\"Ineligible\"))","v":""},{"$f":"IF('TSA Input'!J1406=\"\",\"\",IF(OR('TSA Input'!J1406=\"Yes\",'TSA Input'!J1406=\"Contingent\"),'TSA Input'!I1406,\"\"))","v":""},{"$f":"IF('TSA Input'!J1406=\"\",\"\",IF(OR('TSA Input'!J1406=\"Yes\",'TSA Input'!J1406=\"Contingent\"),'TSA Input'!C1406,\"\"))","v":""},{"$f":"IF('TSA Input'!J1406=\"\",\"\",IF(OR('TSA Input'!J1406=\"Yes\",'TSA Input'!J1406=\"Contingent\"),'TSA Input'!D1406,\"\"))","v":""},{"$f":"IF('TSA Input'!J1406=\"\",\"\",IF(OR('TSA Input'!J1406=\"Yes\",'TSA Input'!J1406=\"Contingent\"),'TSA Input'!G1406,\"\"))","v":""},{"$f":"IF('TSA Input'!J1406=\"\",\"\",IF(OR('TSA Input'!J1406=\"Yes\",'TSA Input'!J1406=\"Contingent\"),'TSA Input'!F1406,\"\"))","v":""},"",{"$f":"IF('TSA Input'!J1406=\"\",\"\",IF(OR('TSA Input'!J1406=\"Yes\",'TSA Input'!J1406=\"Contingent\"),'TSA Input'!D1406,\"\"))","v":""},{"$f":"IF('TSA Input'!J1406=\"\",\"\",IF(OR('TSA Input'!J1406=\"Yes\",'TSA Input'!J1406=\"Contingent\"),'TSA Input'!G1406,\"\"))","v":""},{"$f":"IF('TSA Input'!J1406=\"\",\"\",IF(OR('TSA Input'!J1406=\"Yes\",'TSA Input'!J1406=\"Contingent\"),'TSA Input'!F1406,\"\"))","v":""},"","Required","Required"]
["",null,{"$f":"IF('TSA Input'!J1407=\"\",\"\",IF(OR('TSA Input'!J1407=\"Yes\",'TSA Input'!J1407=\"Contingent\"),'TSA Input'!B1407,\"Ineligible\"))","v":""},{"$f":"IF('TSA Input'!J1407=\"\",\"\",IF(OR('TSA Input'!J1407=\"Yes\",'TSA Input'!J1407=\"Contingent\"),'TSA Input'!I1407,\"\"))","v":""},{"$f":"IF('TSA Input'!J1407=\"\",\"\",IF(OR('TSA Input'!J1407=\"Yes\",'TSA Input'!J1407=\"Contingent\"),'TSA Input'!C1407,\"\"))","v":""},{"$f":"IF('TSA Input'!J1407=\"\",\"\",IF(OR('TSA Input'!J1407=\"Yes\",'TSA Input'!J1407=\"Contingent\"),'TSA Input'!D1407,\"\"))","v":""},{"$f":"IF('TSA Input'!J1407=\"\",\"\",IF(OR('TSA Input'!J1407=\"Yes\",'TSA Input'!J1407=\"Contingent\"),'TSA Input'!G1407,\"\"))","v":""},{"$f":"IF('TSA Input'!J1407=\"\",\"\",IF(OR('TSA Input'!J1407=\"Yes\",'TSA Input'!J1407=\"Contingent\"),'TSA Input'!F1407,\"\"))","v":""},"",{"$f":"IF('TSA Input'!J1407=\"\",\"\",IF(OR('TSA Input'!J1407=\"Yes\",'TSA Input'!J1407=\"Contingent\"),'TSA Input'!D1407,\"\"))","v":""},{"$f":"IF('TSA Input'!J1407=\"\",\"\",IF(OR('TSA Input'!J1407=\"Yes\",'TSA Input'!J1407=\"Contingent\"),'TSA Input'!G1407,\"\"))","v":""},{"$f":"IF('TSA Input'!J1407=\"\",\"\",IF(OR('TSA Input'!J1407=\"Yes\",'TSA Input'!J1407=\"Contingent\"),'TSA Input'!F1407,\"\"))","v":""},"","Required","Required"]
["",null,{"$f":"IF('TSA Input'!J1408=\"\",\"\",IF(OR('TSA Input'!J1408=\"Yes\",'TSA Input'!J1408=\"Contingent\"),'TSA Input'!B1408,\"Ineligible\"))","v":""},{"$f":"IF('TSA Input'!J1408=\"\",\"\",IF(OR('TSA Input'!J1408=\"Yes\",'TSA Input'!J1408=\"Contingent\"),'TSA Input'!I1408,\"\"))","v":""},{"$f":"IF('TSA Input'!J1408=\"\",\"\",IF(OR('TSA Input'!J1408=\"Yes\",'TSA Input'!J1408=\"Contingent\"),'TSA Input'!C1408,\"\"))","v":""},{"$f":"IF('TSA Input'!J1408=\"\",\"\",IF(OR('TSA Input'!J1408=\"Yes\",'TSA Input'!J1408=\"Contingent\"),'TSA Input'!D1408,\"\"))","v":""},{"$f":"IF('TSA Input'!J1408=\"\",\"\",IF(OR('TSA Input'!J1408=\"Yes\",'TSA Input'!J1408=\"Contingent\"),'TSA Input'!G1408,\"\"))","v":""},{"$f":"IF('TSA Input'!J1408=\"\",\"\",IF(OR('TSA Input'!J1408=\"Yes\",'TSA Input'!J1408=\"Contingent\"),'TSA Input'!F1408,\"\"))","v":""},"",{"$f":"IF('TSA Input'!J1408=\"\",\"\",IF(OR('TSA Input'!J1408=\"Yes\",'TSA Input'!J1408=\"Contingent\"),'TSA Input'!D1408,\"\"))","v":""},{"$f":"IF('TSA Input'!J1408=\"\",\"\",IF(OR('TSA Input'!J1408=\"Yes\",'TSA Input'!J1408=\"Contingent\"),'TSA Input'!G1408,\"\"))","v":""},{"$f":"IF('TSA Input'!J1408=\"\",\"\",IF(OR('TSA Input'!J1408=\"Yes\",'TSA Input'!J1408=\"Contingent\"),'TSA Input'!F1408,\"\"))","v":""},"","Required","Required"]
["",null,{"$f":"IF('TSA Input'!J1409=\"\",\"\",IF(OR('TSA Input'!J1409=\"Yes\",'TSA Input'!J1409=\"Contingent\"),'TSA Input'!B1409,\"Ineligible\"))","v":""},{"$f":"IF('TSA Input'!J1409=\"\",\"\",IF(OR('TSA Input'!J1409=\"Yes\",'TSA Input'!J1409=\"Contingent\"),'TSA Input'!I1409,\"\"))","v":""},{"$f":"IF('TSA Input'!J1409=\"\",\"\",IF(OR('TSA Input'!J1409=\"Yes\",'TSA Input'!J1409=\"Contingent\"),'TSA Input'!C1409,\"\"))","v":""},{"$f":"IF('TSA Input'!J1409=\"\",\"\",IF(OR('TSA Input'!J1409=\"Yes\",'TSA Input'!J1409=\"Contingent\"),'TSA Input'!D1409,\"\"))","v":""},{"$f":"IF('TSA Input'!J1409=\"\",\"\",IF(OR('TSA Input'!J1409=\"Yes\",'TSA Input'!J1409=\"Contingent\"),'TSA Input'!G1409,\"\"))","v":""},{"$f":"IF('TSA Input'!J1409=\"\",\"\",IF(OR('TSA Input'!J1409=\"Yes\",'TSA Input'!J1409=\"Contingent\"),'TSA Input'!F1409,\"\"))","v":""},"",{"$f":"IF('TSA Input'!J1409=\"\",\"\",IF(OR('TSA Input'!J1409=\"Yes\",'TSA Input'!J1409=\"Contingent\"),'TSA Input'!D1409,\"\"))","v":""},{"$f":"IF('TSA Input'!J1409=\"\",\"\",IF(OR('TSA Input'!J1409=\"Yes\",'TSA Input'!J1409=\"Contingent\"),'TSA Input'!G1409,\"\"))","v":""},{"$f":"IF('TSA Input'!J1409=\"\",\"\",IF(OR('TSA Input'!J1409=\"Yes\",'TSA Input'!J1409=\"Contingent\"),'TSA Input'!F1409,\"\"))","v":""},"","Required","Required"]
["",null,{"$f":"IF('TSA Input'!J1410=\"\",\"\",IF(OR('TSA Input'!J1410=\"Yes\",'TSA Input'!J1410=\"Contingent\"),'TSA Input'!B1410,\"Ineligible\"))","v":""},{"$f":"IF('TSA Input'!J1410=\"\",\"\",IF(OR('TSA Input'!J1410=\"Yes\",'TSA Input'!J1410=\"Contingent\"),'TSA Input'!I1410,\"\"))","v":""},{"$f":"IF('TSA Input'!J1410=\"\",\"\",IF(OR('TSA Input'!J1410=\"Yes\",'TSA Input'!J1410=\"Contingent\"),'TSA Input'!C1410,\"\"))","v":""},{"$f":"IF('TSA Input'!J1410=\"\",\"\",IF(OR('TSA Input'!J1410=\"Yes\",'TSA Input'!J1410=\"Contingent\"),'TSA Input'!D1410,\"\"))","v":""},{"$f":"IF('TSA Input'!J1410=\"\",\"\",IF(OR('TSA Input'!J1410=\"Yes\",'TSA Input'!J1410=\"Contingent\"),'TSA Input'!G1410,\"\"))","v":""},{"$f":"IF('TSA Input'!J1410=\"\",\"\",IF(OR('TSA Input'!J1410=\"Yes\",'TSA Input'!J1410=\"Contingent\"),'TSA Input'!F1410,\"\"))","v":""},"",{"$f":"IF('TSA Input'!J1410=\"\",\"\",IF(OR('TSA Input'!J1410=\"Yes\",'TSA Input'!J1410=\"Contingent\"),'TSA Input'!D1410,\"\"))","v":""},{"$f":"IF('TSA Input'!J1410=\"\",\"\",IF(OR('TSA Input'!J1410=\"Yes\",'TSA Input'!J1410=\"Contingent\"),'TSA Input'!G1410,\"\"))","v":""},{"$f":"IF('TSA Input'!J1410=\"\",\"\",IF(OR('TSA Input'!J1410=\"Yes\",'TSA Input'!J1410=\"Contingent\"),'TSA Input'!F1410,\"\"))","v":""},"","Required","Required"]
["",null,{"$f":"IF('TSA Input'!J1411=\"\",\"\",IF(OR('TSA Input'!J1411=\"Yes\",'TSA Input'!J1411=\"Contingent\"),'TSA Input'!B1411,\"Ineligible\"))","v":""},{"$f":"IF('TSA Input'!J1411=\"\",\"\",IF(OR('TSA Input'!J1411=\"Yes\",'TSA Input'!J1411=\"Contingent\"),'TSA Input'!I1411,\"\"))","v":""},{"$f":"IF('TSA Input'!J1411=\"\",\"\",IF(OR('TSA Input'!J1411=\"Yes\",'TSA Input'!J1411=\"Contingent\"),'TSA Input'!C1411,\"\"))","v":""},{"$f":"IF('TSA Input'!J1411=\"\",\"\",IF(OR('TSA Input'!J1411=\"Yes\",'TSA Input'!J1411=\"Contingent\"),'TSA Input'!D1411,\"\"))","v":""},{"$f":"IF('TSA Input'!J1411=\"\",\"\",IF(OR('TSA Input'!J1411=\"Yes\",'TSA Input'!J1411=\"Contingent\"),'TSA Input'!G1411,\"\"))","v":""},{"$f":"IF('TSA Input'!J1411=\"\",\"\",IF(OR('TSA Input'!J1411=\"Yes\",'TSA Input'!J1411=\"Contingent\"),'TSA Input'!F1411,\"\"))","v":""},"",{"$f":"IF('TSA Input'!J1411=\"\",\"\",IF(OR('TSA Input'!J1411=\"Yes\",'TSA Input'!J1411=\"Contingent\"),'TSA Input'!D1411,\"\"))","v":""},{"$f":"IF('TSA Input'!J1411=\"\",\"\",IF(OR('TSA Input'!J1411=\"Yes\",'TSA Input'!J1411=\"Contingent\"),'TSA Input'!G1411,\"\"))","v":""},{"$f":"IF('TSA Input'!J1411=\"\",\"\",IF(OR('TSA Input'!J1411=\"Yes\",'TSA Input'!J1411=\"Contingent\"),'TSA Input'!F1411,\"\"))","v":""},"","Required","Required"]
["",null,{"$f":"IF('TSA Input'!J1412=\"\",\"\",IF(OR('TSA Input'!J1412=\"Yes\",'TSA Input'!J1412=\"Contingent\"),'TSA Input'!B1412,\"Ineligible\"))","v":""},{"$f":"IF('TSA Input'!J1412=\"\",\"\",IF(OR('TSA Input'!J1412=\"Yes\",'TSA Input'!J1412=\"Contingent\"),'TSA Input'!I1412,\"\"))","v":""},{"$f":"IF('TSA Input'!J1412=\"\",\"\",IF(OR('TSA Input'!J1412=\"Yes\",'TSA Input'!J1412=\"Contingent\"),'TSA Input'!C1412,\"\"))","v":""},{"$f":"IF('TSA Input'!J1412=\"\",\"\",IF(OR('TSA Input'!J1412=\"Yes\",'TSA Input'!J1412=\"Contingent\"),'TSA Input'!D1412,\"\"))","v":""},{"$f":"IF('TSA Input'!J1412=\"\",\"\",IF(OR('TSA Input'!J1412=\"Yes\",'TSA Input'!J1412=\"Contingent\"),'TSA Input'!G1412,\"\"))","v":""},{"$f":"IF('TSA Input'!J1412=\"\",\"\",IF(OR('TSA Input'!J1412=\"Yes\",'TSA Input'!J1412=\"Contingent\"),'TSA Input'!F1412,\"\"))","v":""},{"$f":"IF($C1450=\"\",\"\",SUM(F1450:H1450))","v":""},{"$f":"IF('TSA Input'!J1412=\"\",\"\",IF(OR('TSA Input'!J1412=\"Yes\",'TSA Input'!J1412=\"Contingent\"),'TSA Input'!D1412,\"\"))","v":""},{"$f":"IF('TSA Input'!J1412=\"\",\"\",IF(OR('TSA Input'!J1412=\"Yes\",'TSA Input'!J1412=\"Contingent\"),'TSA Input'!G1412,\"\"))","v":""},{"$f":"IF('TSA Input'!J1412=\"\",\"\",IF(OR('TSA Input'!J1412=\"Yes\",'TSA Input'!J1412=\"Contingent\"),'TSA Input'!F1412,\"\"))","v":""},{"$f":"IF($C1450=\"\",\"\",SUM(J1450:L1450))","v":""},"Required","Required"]
["",null,{"$f":"IF('TSA Input'!J1413=\"\",\"\",IF(OR('TSA Input'!J1413=\"Yes\",'TSA Input'!J1413=\"Contingent\"),'TSA Input'!B1413,\"Ineligible\"))","v":""},{"$f":"IF('TSA Input'!J1413=\"\",\"\",IF(OR('TSA Input'!J1413=\"Yes\",'TSA Input'!J1413=\"Contingent\"),'TSA Input'!I1413,\"\"))","v":""},{"$f":"IF('TSA Input'!J1413=\"\",\"\",IF(OR('TSA Input'!J1413=\"Yes\",'TSA Input'!J1413=\"Contingent\"),'TSA Input'!C1413,\"\"))","v":""},{"$f":"IF('TSA Input'!J1413=\"\",\"\",IF(OR('TSA Input'!J1413=\"Yes\",'TSA Input'!J1413=\"Contingent\"),'TSA Input'!D1413,\"\"))","v":""},{"$f":"IF('TSA Input'!J1413=\"\",\"\",IF(OR('TSA Input'!J1413=\"Yes\",'TSA Input'!J1413=\"Contingent\"),'TSA Input'!G1413,\"\"))","v":""},{"$f":"IF('TSA Input'!J1413=\"\",\"\",IF(OR('TSA Input'!J1413=\"Yes\",'TSA Input'!J1413=\"Contingent\"),'TSA Input'!F1413,\"\"))","v":""},"",{"$f":"IF('TSA Input'!J1413=\"\",\"\",IF(OR('TSA Input'!J1413=\"Yes\",'TSA Input'!J1413=\"Contingent\"),'TSA Input'!D1413,\"\"))","v":""},{"$f":"IF('TSA Input'!J1413=\"\",\"\",IF(OR('TSA Input'!J1413=\"Yes\",'TSA Input'!J1413=\"Contingent\"),'TSA Input'!G1413,\"\"))","v":""},{"$f":"IF('TSA Input'!J1413=\"\",\"\",IF(OR('TSA Input'!J1413=\"Yes\",'TSA Input'!J1413=\"Contingent\"),'TSA Input'!F1413,\"\"))","v":""},"","Required","Required"]
["",null,{"$f":"IF('TSA Input'!J1414=\"\",\"\",IF(OR('TSA Input'!J1414=\"Yes\",'TSA Input'!J1414=\"Contingent\"),'TSA Input'!B1414,\"Ineligible\"))","v":""},{"$f":"IF('TSA Input'!J1414=\"\",\"\",IF(OR('TSA Input'!J1414=\"Yes\",'TSA Input'!J1414=\"Contingent\"),'TSA Input'!I1414,\"\"))","v":""},{"$f":"IF('TSA Input'!J1414=\"\",\"\",IF(OR('TSA Input'!J1414=\"Yes\",'TSA Input'!J1414=\"Contingent\"),'TSA Input'!C1414,\"\"))","v":""},{"$f":"IF('TSA Input'!J1414=\"\",\"\",IF(OR('TSA Input'!J1414=\"Yes\",'TSA Input'!J1414=\"Contingent\"),'TSA Input'!D1414,\"\"))","v":""},{"$f":"IF('TSA Input'!J1414=\"\",\"\",IF(OR('TSA Input'!J1414=\"Yes\",'TSA Input'!J1414=\"Contingent\"),'TSA Input'!G1414,\"\"))","v":""},{"$f":"IF('TSA Input'!J1414=\"\",\"\",IF(OR('TSA Input'!J1414=\"Yes\",'TSA Input'!J1414=\"Contingent\"),'TSA Input'!F1414,\"\"))","v":""},"",{"$f":"IF('TSA Input'!J1414=\"\",\"\",IF(OR('TSA Input'!J1414=\"Yes\",'TSA Input'!J1414=\"Contingent\"),'TSA Input'!D1414,\"\"))","v":""},{"$f":"IF('TSA Input'!J1414=\"\",\"\",IF(OR('TSA Input'!J1414=\"Yes\",'TSA Input'!J1414=\"Contingent\"),'TSA Input'!G1414,\"\"))","v":""},{"$f":"IF('TSA Input'!J1414=\"\",\"\",IF(OR('TSA Input'!J1414=\"Yes\",'TSA Input'!J1414=\"Contingent\"),'TSA Input'!F1414,\"\"))","v":""},"","Required","Required"]
["",null,{"$f":"IF('TSA Input'!J1415=\"\",\"\",IF(OR('TSA Input'!J1415=\"Yes\",'TSA Input'!J1415=\"Contingent\"),'TSA Input'!B1415,\"Ineligible\"))","v":""},{"$f":"IF('TSA Input'!J1415=\"\",\"\",IF(OR('TSA Input'!J1415=\"Yes\",'TSA Input'!J1415=\"Contingent\"),'TSA Input'!I1415,\"\"))","v":""},{"$f":"IF('TSA Input'!J1415=\"\",\"\",IF(OR('TSA Input'!J1415=\"Yes\",'TSA Input'!J1415=\"Contingent\"),'TSA Input'!C1415,\"\"))","v":""},{"$f":"IF('TSA Input'!J1415=\"\",\"\",IF(OR('TSA Input'!J1415=\"Yes\",'TSA Input'!J1415=\"Contingent\"),'TSA Input'!D1415,\"\"))","v":""},{"$f":"IF('TSA Input'!J1415=\"\",\"\",IF(OR('TSA Input'!J1415=\"Yes\",'TSA Input'!J1415=\"Contingent\"),'TSA Input'!G1415,\"\"))","v":""},{"$f":"IF('TSA Input'!J1415=\"\",\"\",IF(OR('TSA Input'!J1415=\"Yes\",'TSA Input'!J1415=\"Contingent\"),'TSA Input'!F1415,\"\"))","v":""},"",{"$f":"IF('TSA Input'!J1415=\"\",\"\",IF(OR('TSA Input'!J1415=\"Yes\",'TSA Input'!J1415=\"Contingent\"),'TSA Input'!D1415,\"\"))","v":""},{"$f":"IF('TSA Input'!J1415=\"\",\"\",IF(OR('TSA Input'!J1415=\"Yes\",'TSA Input'!J1415=\"Contingent\"),'TSA Input'!G1415,\"\"))","v":""},{"$f":"IF('TSA Input'!J1415=\"\",\"\",IF(OR('TSA Input'!J1415=\"Yes\",'TSA Input'!J1415=\"Contingent\"),'TSA Input'!F1415,\"\"))","v":""},"","Required","Required"]
["",null,{"$f":"IF('TSA Input'!J1416=\"\",\"\",IF(OR('TSA Input'!J1416=\"Yes\",'TSA Input'!J1416=\"Contingent\"),'TSA Input'!B1416,\"Ineligible\"))","v":""},{"$f":"IF('TSA Input'!J1416=\"\",\"\",IF(OR('TSA Input'!J1416=\"Yes\",'TSA Input'!J1416=\"Contingent\"),'TSA Input'!I1416,\"\"))","v":""},{"$f":"IF('TSA Input'!J1416=\"\",\"\",IF(OR('TSA Input'!J1416=\"Yes\",'TSA Input'!J1416=\"Contingent\"),'TSA Input'!C1416,\"\"))","v":""},{"$f":"IF('TSA Input'!J1416=\"\",\"\",IF(OR('TSA Input'!J1416=\"Yes\",'TSA Input'!J1416=\"Contingent\"),'TSA Input'!D1416,\"\"))","v":""},{"$f":"IF('TSA Input'!J1416=\"\",\"\",IF(OR('TSA Input'!J1416=\"Yes\",'TSA Input'!J1416=\"Contingent\"),'TSA Input'!G1416,\"\"))","v":""},{"$f":"IF('TSA Input'!J1416=\"\",\"\",IF(OR('TSA Input'!J1416=\"Yes\",'TSA Input'!J1416=\"Contingent\"),'TSA Input'!F1416,\"\"))","v":""},"",{"$f":"IF('TSA Input'!J1416=\"\",\"\",IF(OR('TSA Input'!J1416=\"Yes\",'TSA Input'!J1416=\"Contingent\"),'TSA Input'!D1416,\"\"))","v":""},{"$f":"IF('TSA Input'!J1416=\"\",\"\",IF(OR('TSA Input'!J1416=\"Yes\",'TSA Input'!J1416=\"Contingent\"),'TSA Input'!G1416,\"\"))","v":""},{"$f":"IF('TSA Input'!J1416=\"\",\"\",IF(OR('TSA Input'!J1416=\"Yes\",'TSA Input'!J1416=\"Contingent\"),'TSA Input'!F1416,\"\"))","v":""},"","Required","Required"]
["",null,{"$f":"IF('TSA Input'!J1417=\"\",\"\",IF(OR('TSA Input'!J1417=\"Yes\",'TSA Input'!J1417=\"Contingent\"),'TSA Input'!B1417,\"Ineligible\"))","v":""},{"$f":"IF('TSA Input'!J1417=\"\",\"\",IF(OR('TSA Input'!J1417=\"Yes\",'TSA Input'!J1417=\"Contingent\"),'TSA Input'!I1417,\"\"))","v":""},{"$f":"IF('TSA Input'!J1417=\"\",\"\",IF(OR('TSA Input'!J1417=\"Yes\",'TSA Input'!J1417=\"Contingent\"),'TSA Input'!C1417,\"\"))","v":""},{"$f":"IF('TSA Input'!J1417=\"\",\"\",IF(OR('TSA Input'!J1417=\"Yes\",'TSA Input'!J1417=\"Contingent\"),'TSA Input'!D1417,\"\"))","v":""},{"$f":"IF('TSA Input'!J1417=\"\",\"\",IF(OR('TSA Input'!J1417=\"Yes\",'TSA Input'!J1417=\"Contingent\"),'TSA Input'!G1417,\"\"))","v":""},{"$f":"IF('TSA Input'!J1417=\"\",\"\",IF(OR('TSA Input'!J1417=\"Yes\",'TSA Input'!J1417=\"Contingent\"),'TSA Input'!F1417,\"\"))","v":""},"",{"$f":"IF('TSA Input'!J1417=\"\",\"\",IF(OR('TSA Input'!J1417=\"Yes\",'TSA Input'!J1417=\"Contingent\"),'TSA Input'!D1417,\"\"))","v":""},{"$f":"IF('TSA Input'!J1417=\"\",\"\",IF(OR('TSA Input'!J1417=\"Yes\",'TSA Input'!J1417=\"Contingent\"),'TSA Input'!G1417,\"\"))","v":""},{"$f":"IF('TSA Input'!J1417=\"\",\"\",IF(OR('TSA Input'!J1417=\"Yes\",'TSA Input'!J1417=\"Contingent\"),'TSA Input'!F1417,\"\"))","v":""},"","Required","Required"]
["",null,{"$f":"IF('TSA Input'!J1418=\"\",\"\",IF(OR('TSA Input'!J1418=\"Yes\",'TSA Input'!J1418=\"Contingent\"),'TSA Input'!B1418,\"Ineligible\"))","v":""},{"$f":"IF('TSA Input'!J1418=\"\",\"\",IF(OR('TSA Input'!J1418=\"Yes\",'TSA Input'!J1418=\"Contingent\"),'TSA Input'!I1418,\"\"))","v":""},{"$f":"IF('TSA Input'!J1418=\"\",\"\",IF(OR('TSA Input'!J1418=\"Yes\",'TSA Input'!J1418=\"Contingent\"),'TSA Input'!C1418,\"\"))","v":""},{"$f":"IF('TSA Input'!J1418=\"\",\"\",IF(OR('TSA Input'!J1418=\"Yes\",'TSA Input'!J1418=\"Contingent\"),'TSA Input'!D1418,\"\"))","v":""},{"$f":"IF('TSA Input'!J1418=\"\",\"\",IF(OR('TSA Input'!J1418=\"Yes\",'TSA Input'!J1418=\"Contingent\"),'TSA Input'!G1418,\"\"))","v":""},{"$f":"IF('TSA Input'!J1418=\"\",\"\",IF(OR('TSA Input'!J1418=\"Yes\",'TSA Input'!J1418=\"Contingent\"),'TSA Input'!F1418,\"\"))","v":""},"",{"$f":"IF('TSA Input'!J1418=\"\",\"\",IF(OR('TSA Input'!J1418=\"Yes\",'TSA Input'!J1418=\"Contingent\"),'TSA Input'!D1418,\"\"))","v":""},{"$f":"IF('TSA Input'!J1418=\"\",\"\",IF(OR('TSA Input'!J1418=\"Yes\",'TSA Input'!J1418=\"Contingent\"),'TSA Input'!G1418,\"\"))","v":""},{"$f":"IF('TSA Input'!J1418=\"\",\"\",IF(OR('TSA Input'!J1418=\"Yes\",'TSA Input'!J1418=\"Contingent\"),'TSA Input'!F1418,\"\"))","v":""},"","Required","Required"]
["",null,{"$f":"IF('TSA Input'!J1419=\"\",\"\",IF(OR('TSA Input'!J1419=\"Yes\",'TSA Input'!J1419=\"Contingent\"),'TSA Input'!B1419,\"Ineligible\"))","v":""},{"$f":"IF('TSA Input'!J1419=\"\",\"\",IF(OR('TSA Input'!J1419=\"Yes\",'TSA Input'!J1419=\"Contingent\"),'TSA Input'!I1419,\"\"))","v":""},{"$f":"IF('TSA Input'!J1419=\"\",\"\",IF(OR('TSA Input'!J1419=\"Yes\",'TSA Input'!J1419=\"Contingent\"),'TSA Input'!C1419,\"\"))","v":""},{"$f":"IF('TSA Input'!J1419=\"\",\"\",IF(OR('TSA Input'!J1419=\"Yes\",'TSA Input'!J1419=\"Contingent\"),'TSA Input'!D1419,\"\"))","v":""},{"$f":"IF('TSA Input'!J1419=\"\",\"\",IF(OR('TSA Input'!J1419=\"Yes\",'TSA Input'!J1419=\"Contingent\"),'TSA Input'!G1419,\"\"))","v":""},{"$f":"IF('TSA Input'!J1419=\"\",\"\",IF(OR('TSA Input'!J1419=\"Yes\",'TSA Input'!J1419=\"Contingent\"),'TSA Input'!F1419,\"\"))","v":""},"",{"$f":"IF('TSA Input'!J1419=\"\",\"\",IF(OR('TSA Input'!J1419=\"Yes\",'TSA Input'!J1419=\"Contingent\"),'TSA Input'!D1419,\"\"))","v":""},{"$f":"IF('TSA Input'!J1419=\"\",\"\",IF(OR('TSA Input'!J1419=\"Yes\",'TSA Input'!J1419=\"Contingent\"),'TSA Input'!G1419,\"\"))","v":""},{"$f":"IF('TSA Input'!J1419=\"\",\"\",IF(OR('TSA Input'!J1419=\"Yes\",'TSA Input'!J1419=\"Contingent\"),'TSA Input'!F1419,\"\"))","v":""},"","Required","Required"]
["",null,{"$f":"IF('TSA Input'!J1420=\"\",\"\",IF(OR('TSA Input'!J1420=\"Yes\",'TSA Input'!J1420=\"Contingent\"),'TSA Input'!B1420,\"Ineligible\"))","v":""},{"$f":"IF('TSA Input'!J1420=\"\",\"\",IF(OR('TSA Input'!J1420=\"Yes\",'TSA Input'!J1420=\"Contingent\"),'TSA Input'!I1420,\"\"))","v":""},{"$f":"IF('TSA Input'!J1420=\"\",\"\",IF(OR('TSA Input'!J1420=\"Yes\",'TSA Input'!J1420=\"Contingent\"),'TSA Input'!C1420,\"\"))","v":""},{"$f":"IF('TSA Input'!J1420=\"\",\"\",IF(OR('TSA Input'!J1420=\"Yes\",'TSA Input'!J1420=\"Contingent\"),'TSA Input'!D1420,\"\"))","v":""},{"$f":"IF('TSA Input'!J1420=\"\",\"\",IF(OR('TSA Input'!J1420=\"Yes\",'TSA Input'!J1420=\"Contingent\"),'TSA Input'!G1420,\"\"))","v":""},{"$f":"IF('TSA Input'!J1420=\"\",\"\",IF(OR('TSA Input'!J1420=\"Yes\",'TSA Input'!J1420=\"Contingent\"),'TSA Input'!F1420,\"\"))","v":""},"",{"$f":"IF('TSA Input'!J1420=\"\",\"\",IF(OR('TSA Input'!J1420=\"Yes\",'TSA Input'!J1420=\"Contingent\"),'TSA Input'!D1420,\"\"))","v":""},{"$f":"IF('TSA Input'!J1420=\"\",\"\",IF(OR('TSA Input'!J1420=\"Yes\",'TSA Input'!J1420=\"Contingent\"),'TSA Input'!G1420,\"\"))","v":""},{"$f":"IF('TSA Input'!J1420=\"\",\"\",IF(OR('TSA Input'!J1420=\"Yes\",'TSA Input'!J1420=\"Contingent\"),'TSA Input'!F1420,\"\"))","v":""},"","Required","Required"]
["",null,{"$f":"IF('TSA Input'!J1421=\"\",\"\",IF(OR('TSA Input'!J1421=\"Yes\",'TSA Input'!J1421=\"Contingent\"),'TSA Input'!B1421,\"Ineligible\"))","v":""},{"$f":"IF('TSA Input'!J1421=\"\",\"\",IF(OR('TSA Input'!J1421=\"Yes\",'TSA Input'!J1421=\"Contingent\"),'TSA Input'!I1421,\"\"))","v":""},{"$f":"IF('TSA Input'!J1421=\"\",\"\",IF(OR('TSA Input'!J1421=\"Yes\",'TSA Input'!J1421=\"Contingent\"),'TSA Input'!C1421,\"\"))","v":""},{"$f":"IF('TSA Input'!J1421=\"\",\"\",IF(OR('TSA Input'!J1421=\"Yes\",'TSA Input'!J1421=\"Contingent\"),'TSA Input'!D1421,\"\"))","v":""},{"$f":"IF('TSA Input'!J1421=\"\",\"\",IF(OR('TSA Input'!J1421=\"Yes\",'TSA Input'!J1421=\"Contingent\"),'TSA Input'!G1421,\"\"))","v":""},{"$f":"IF('TSA Input'!J1421=\"\",\"\",IF(OR('TSA Input'!J1421=\"Yes\",'TSA Input'!J1421=\"Contingent\"),'TSA Input'!F1421,\"\"))","v":""},"",{"$f":"IF('TSA Input'!J1421=\"\",\"\",IF(OR('TSA Input'!J1421=\"Yes\",'TSA Input'!J1421=\"Contingent\"),'TSA Input'!D1421,\"\"))","v":""},{"$f":"IF('TSA Input'!J1421=\"\",\"\",IF(OR('TSA Input'!J1421=\"Yes\",'TSA Input'!J1421=\"Contingent\"),'TSA Input'!G1421,\"\"))","v":""},{"$f":"IF('TSA Input'!J1421=\"\",\"\",IF(OR('TSA Input'!J1421=\"Yes\",'TSA Input'!J1421=\"Contingent\"),'TSA Input'!F1421,\"\"))","v":""},"","Required","Required"]
["",null,{"$f":"IF('TSA Input'!J1422=\"\",\"\",IF(OR('TSA Input'!J1422=\"Yes\",'TSA Input'!J1422=\"Contingent\"),'TSA Input'!B1422,\"Ineligible\"))","v":""},{"$f":"IF('TSA Input'!J1422=\"\",\"\",IF(OR('TSA Input'!J1422=\"Yes\",'TSA Input'!J1422=\"Contingent\"),'TSA Input'!I1422,\"\"))","v":""},{"$f":"IF('TSA Input'!J1422=\"\",\"\",IF(OR('TSA Input'!J1422=\"Yes\",'TSA Input'!J1422=\"Contingent\"),'TSA Input'!C1422,\"\"))","v":""},{"$f":"IF('TSA Input'!J1422=\"\",\"\",IF(OR('TSA Input'!J1422=\"Yes\",'TSA Input'!J1422=\"Contingent\"),'TSA Input'!D1422,\"\"))","v":""},{"$f":"IF('TSA Input'!J1422=\"\",\"\",IF(OR('TSA Input'!J1422=\"Yes\",'TSA Input'!J1422=\"Contingent\"),'TSA Input'!G1422,\"\"))","v":""},{"$f":"IF('TSA Input'!J1422=\"\",\"\",IF(OR('TSA Input'!J1422=\"Yes\",'TSA Input'!J1422=\"Contingent\"),'TSA Input'!F1422,\"\"))","v":""},"",{"$f":"IF('TSA Input'!J1422=\"\",\"\",IF(OR('TSA Input'!J1422=\"Yes\",'TSA Input'!J1422=\"Contingent\"),'TSA Input'!D1422,\"\"))","v":""},{"$f":"IF('TSA Input'!J1422=\"\",\"\",IF(OR('TSA Input'!J1422=\"Yes\",'TSA Input'!J1422=\"Contingent\"),'TSA Input'!G1422,\"\"))","v":""},{"$f":"IF('TSA Input'!J1422=\"\",\"\",IF(OR('TSA Input'!J1422=\"Yes\",'TSA Input'!J1422=\"Contingent\"),'TSA Input'!F1422,\"\"))","v":""},"","Required","Required"]
["",null,{"$f":"IF('TSA Input'!J1423=\"\",\"\",IF(OR('TSA Input'!J1423=\"Yes\",'TSA Input'!J1423=\"Contingent\"),'TSA Input'!B1423,\"Ineligible\"))","v":""},{"$f":"IF('TSA Input'!J1423=\"\",\"\",IF(OR('TSA Input'!J1423=\"Yes\",'TSA Input'!J1423=\"Contingent\"),'TSA Input'!I1423,\"\"))","v":""},{"$f":"IF('TSA Input'!J1423=\"\",\"\",IF(OR('TSA Input'!J1423=\"Yes\",'TSA Input'!J1423=\"Contingent\"),'TSA Input'!C1423,\"\"))","v":""},{"$f":"IF('TSA Input'!J1423=\"\",\"\",IF(OR('TSA Input'!J1423=\"Yes\",'TSA Input'!J1423=\"Contingent\"),'TSA Input'!D1423,\"\"))","v":""},{"$f":"IF('TSA Input'!J1423=\"\",\"\",IF(OR('TSA Input'!J1423=\"Yes\",'TSA Input'!J1423=\"Contingent\"),'TSA Input'!G1423,\"\"))","v":""},{"$f":"IF('TSA Input'!J1423=\"\",\"\",IF(OR('TSA Input'!J1423=\"Yes\",'TSA Input'!J1423=\"Contingent\"),'TSA Input'!F1423,\"\"))","v":""},"",{"$f":"IF('TSA Input'!J1423=\"\",\"\",IF(OR('TSA Input'!J1423=\"Yes\",'TSA Input'!J1423=\"Contingent\"),'TSA Input'!D1423,\"\"))","v":""},{"$f":"IF('TSA Input'!J1423=\"\",\"\",IF(OR('TSA Input'!J1423=\"Yes\",'TSA Input'!J1423=\"Contingent\"),'TSA Input'!G1423,\"\"))","v":""},{"$f":"IF('TSA Input'!J1423=\"\",\"\",IF(OR('TSA Input'!J1423=\"Yes\",'TSA Input'!J1423=\"Contingent\"),'TSA Input'!F1423,\"\"))","v":""},"","Required","Required"]
["",null,{"$f":"IF('TSA Input'!J1424=\"\",\"\",IF(OR('TSA Input'!J1424=\"Yes\",'TSA Input'!J1424=\"Contingent\"),'TSA Input'!B1424,\"Ineligible\"))","v":""},{"$f":"IF('TSA Input'!J1424=\"\",\"\",IF(OR('TSA Input'!J1424=\"Yes\",'TSA Input'!J1424=\"Contingent\"),'TSA Input'!I1424,\"\"))","v":""},{"$f":"IF('TSA Input'!J1424=\"\",\"\",IF(OR('TSA Input'!J1424=\"Yes\",'TSA Input'!J1424=\"Contingent\"),'TSA Input'!C1424,\"\"))","v":""},{"$f":"IF('TSA Input'!J1424=\"\",\"\",IF(OR('TSA Input'!J1424=\"Yes\",'TSA Input'!J1424=\"Contingent\"),'TSA Input'!D1424,\"\"))","v":""},{"$f":"IF('TSA Input'!J1424=\"\",\"\",IF(OR('TSA Input'!J1424=\"Yes\",'TSA Input'!J1424=\"Contingent\"),'TSA Input'!G1424,\"\"))","v":""},{"$f":"IF('TSA Input'!J1424=\"\",\"\",IF(OR('TSA Input'!J1424=\"Yes\",'TSA Input'!J1424=\"Contingent\"),'TSA Input'!F1424,\"\"))","v":""},"",{"$f":"IF('TSA Input'!J1424=\"\",\"\",IF(OR('TSA Input'!J1424=\"Yes\",'TSA Input'!J1424=\"Contingent\"),'TSA Input'!D1424,\"\"))","v":""},{"$f":"IF('TSA Input'!J1424=\"\",\"\",IF(OR('TSA Input'!J1424=\"Yes\",'TSA Input'!J1424=\"Contingent\"),'TSA Input'!G1424,\"\"))","v":""},{"$f":"IF('TSA Input'!J1424=\"\",\"\",IF(OR('TSA Input'!J1424=\"Yes\",'TSA Input'!J1424=\"Contingent\"),'TSA Input'!F1424,\"\"))","v":""},"","Required","Required"]
["",null,{"$f":"IF('TSA Input'!J1425=\"\",\"\",IF(OR('TSA Input'!J1425=\"Yes\",'TSA Input'!J1425=\"Contingent\"),'TSA Input'!B1425,\"Ineligible\"))","v":""},{"$f":"IF('TSA Input'!J1425=\"\",\"\",IF(OR('TSA Input'!J1425=\"Yes\",'TSA Input'!J1425=\"Contingent\"),'TSA Input'!I1425,\"\"))","v":""},{"$f":"IF('TSA Input'!J1425=\"\",\"\",IF(OR('TSA Input'!J1425=\"Yes\",'TSA Input'!J1425=\"Contingent\"),'TSA Input'!C1425,\"\"))","v":""},{"$f":"IF('TSA Input'!J1425=\"\",\"\",IF(OR('TSA Input'!J1425=\"Yes\",'TSA Input'!J1425=\"Contingent\"),'TSA Input'!D1425,\"\"))","v":""},{"$f":"IF('TSA Input'!J1425=\"\",\"\",IF(OR('TSA Input'!J1425=\"Yes\",'TSA Input'!J1425=\"Contingent\"),'TSA Input'!G1425,\"\"))","v":""},{"$f":"IF('TSA Input'!J1425=\"\",\"\",IF(OR('TSA Input'!J1425=\"Yes\",'TSA Input'!J1425=\"Contingent\"),'TSA Input'!F1425,\"\"))","v":""},"",{"$f":"IF('TSA Input'!J1425=\"\",\"\",IF(OR('TSA Input'!J1425=\"Yes\",'TSA Input'!J1425=\"Contingent\"),'TSA Input'!D1425,\"\"))","v":""},{"$f":"IF('TSA Input'!J1425=\"\",\"\",IF(OR('TSA Input'!J1425=\"Yes\",'TSA Input'!J1425=\"Contingent\"),'TSA Input'!G1425,\"\"))","v":""},{"$f":"IF('TSA Input'!J1425=\"\",\"\",IF(OR('TSA Input'!J1425=\"Yes\",'TSA Input'!J1425=\"Contingent\"),'TSA Input'!F1425,\"\"))","v":""},"","Required","Required"]
["",null,{"$f":"IF('TSA Input'!J1426=\"\",\"\",IF(OR('TSA Input'!J1426=\"Yes\",'TSA Input'!J1426=\"Contingent\"),'TSA Input'!B1426,\"Ineligible\"))","v":""},{"$f":"IF('TSA Input'!J1426=\"\",\"\",IF(OR('TSA Input'!J1426=\"Yes\",'TSA Input'!J1426=\"Contingent\"),'TSA Input'!I1426,\"\"))","v":""},{"$f":"IF('TSA Input'!J1426=\"\",\"\",IF(OR('TSA Input'!J1426=\"Yes\",'TSA Input'!J1426=\"Contingent\"),'TSA Input'!C1426,\"\"))","v":""},{"$f":"IF('TSA Input'!J1426=\"\",\"\",IF(OR('TSA Input'!J1426=\"Yes\",'TSA Input'!J1426=\"Contingent\"),'TSA Input'!D1426,\"\"))","v":""},{"$f":"IF('TSA Input'!J1426=\"\",\"\",IF(OR('TSA Input'!J1426=\"Yes\",'TSA Input'!J1426=\"Contingent\"),'TSA Input'!G1426,\"\"))","v":""},{"$f":"IF('TSA Input'!J1426=\"\",\"\",IF(OR('TSA Input'!J1426=\"Yes\",'TSA Input'!J1426=\"Contingent\"),'TSA Input'!F1426,\"\"))","v":""},"",{"$f":"IF('TSA Input'!J1426=\"\",\"\",IF(OR('TSA Input'!J1426=\"Yes\",'TSA Input'!J1426=\"Contingent\"),'TSA Input'!D1426,\"\"))","v":""},{"$f":"IF('TSA Input'!J1426=\"\",\"\",IF(OR('TSA Input'!J1426=\"Yes\",'TSA Input'!J1426=\"Contingent\"),'TSA Input'!G1426,\"\"))","v":""},{"$f":"IF('TSA Input'!J1426=\"\",\"\",IF(OR('TSA Input'!J1426=\"Yes\",'TSA Input'!J1426=\"Contingent\"),'TSA Input'!F1426,\"\"))","v":""},"","Required","Required"]
["",null,{"$f":"IF('TSA Input'!J1427=\"\",\"\",IF(OR('TSA Input'!J1427=\"Yes\",'TSA Input'!J1427=\"Contingent\"),'TSA Input'!B1427,\"Ineligible\"))","v":""},{"$f":"IF('TSA Input'!J1427=\"\",\"\",IF(OR('TSA Input'!J1427=\"Yes\",'TSA Input'!J1427=\"Contingent\"),'TSA Input'!I1427,\"\"))","v":""},{"$f":"IF('TSA Input'!J1427=\"\",\"\",IF(OR('TSA Input'!J1427=\"Yes\",'TSA Input'!J1427=\"Contingent\"),'TSA Input'!C1427,\"\"))","v":""},{"$f":"IF('TSA Input'!J1427=\"\",\"\",IF(OR('TSA Input'!J1427=\"Yes\",'TSA Input'!J1427=\"Contingent\"),'TSA Input'!D1427,\"\"))","v":""},{"$f":"IF('TSA Input'!J1427=\"\",\"\",IF(OR('TSA Input'!J1427=\"Yes\",'TSA Input'!J1427=\"Contingent\"),'TSA Input'!G1427,\"\"))","v":""},{"$f":"IF('TSA Input'!J1427=\"\",\"\",IF(OR('TSA Input'!J1427=\"Yes\",'TSA Input'!J1427=\"Contingent\"),'TSA Input'!F1427,\"\"))","v":""},"",{"$f":"IF('TSA Input'!J1427=\"\",\"\",IF(OR('TSA Input'!J1427=\"Yes\",'TSA Input'!J1427=\"Contingent\"),'TSA Input'!D1427,\"\"))","v":""},{"$f":"IF('TSA Input'!J1427=\"\",\"\",IF(OR('TSA Input'!J1427=\"Yes\",'TSA Input'!J1427=\"Contingent\"),'TSA Input'!G1427,\"\"))","v":""},{"$f":"IF('TSA Input'!J1427=\"\",\"\",IF(OR('TSA Input'!J1427=\"Yes\",'TSA Input'!J1427=\"Contingent\"),'TSA Input'!F1427,\"\"))","v":""},"","Required","Required"]
["",null,{"$f":"IF('TSA Input'!J1428=\"\",\"\",IF(OR('TSA Input'!J1428=\"Yes\",'TSA Input'!J1428=\"Contingent\"),'TSA Input'!B1428,\"Ineligible\"))","v":""},{"$f":"IF('TSA Input'!J1428=\"\",\"\",IF(OR('TSA Input'!J1428=\"Yes\",'TSA Input'!J1428=\"Contingent\"),'TSA Input'!I1428,\"\"))","v":""},{"$f":"IF('TSA Input'!J1428=\"\",\"\",IF(OR('TSA Input'!J1428=\"Yes\",'TSA Input'!J1428=\"Contingent\"),'TSA Input'!C1428,\"\"))","v":""},{"$f":"IF('TSA Input'!J1428=\"\",\"\",IF(OR('TSA Input'!J1428=\"Yes\",'TSA Input'!J1428=\"Contingent\"),'TSA Input'!D1428,\"\"))","v":""},{"$f":"IF('TSA Input'!J1428=\"\",\"\",IF(OR('TSA Input'!J1428=\"Yes\",'TSA Input'!J1428=\"Contingent\"),'TSA Input'!G1428,\"\"))","v":""},{"$f":"IF('TSA Input'!J1428=\"\",\"\",IF(OR('TSA Input'!J1428=\"Yes\",'TSA Input'!J1428=\"Contingent\"),'TSA Input'!F1428,\"\"))","v":""},"",{"$f":"IF('TSA Input'!J1428=\"\",\"\",IF(OR('TSA Input'!J1428=\"Yes\",'TSA Input'!J1428=\"Contingent\"),'TSA Input'!D1428,\"\"))","v":""},{"$f":"IF('TSA Input'!J1428=\"\",\"\",IF(OR('TSA Input'!J1428=\"Yes\",'TSA Input'!J1428=\"Contingent\"),'TSA Input'!G1428,\"\"))","v":""},{"$f":"IF('TSA Input'!J1428=\"\",\"\",IF(OR('TSA Input'!J1428=\"Yes\",'TSA Input'!J1428=\"Contingent\"),'TSA Input'!F1428,\"\"))","v":""},"","Required","Required"]
["",null,{"$f":"IF('TSA Input'!J1429=\"\",\"\",IF(OR('TSA Input'!J1429=\"Yes\",'TSA Input'!J1429=\"Contingent\"),'TSA Input'!B1429,\"Ineligible\"))","v":""},{"$f":"IF('TSA Input'!J1429=\"\",\"\",IF(OR('TSA Input'!J1429=\"Yes\",'TSA Input'!J1429=\"Contingent\"),'TSA Input'!I1429,\"\"))","v":""},{"$f":"IF('TSA Input'!J1429=\"\",\"\",IF(OR('TSA Input'!J1429=\"Yes\",'TSA Input'!J1429=\"Contingent\"),'TSA Input'!C1429,\"\"))","v":""},{"$f":"IF('TSA Input'!J1429=\"\",\"\",IF(OR('TSA Input'!J1429=\"Yes\",'TSA Input'!J1429=\"Contingent\"),'TSA Input'!D1429,\"\"))","v":""},{"$f":"IF('TSA Input'!J1429=\"\",\"\",IF(OR('TSA Input'!J1429=\"Yes\",'TSA Input'!J1429=\"Contingent\"),'TSA Input'!G1429,\"\"))","v":""},{"$f":"IF('TSA Input'!J1429=\"\",\"\",IF(OR('TSA Input'!J1429=\"Yes\",'TSA Input'!J1429=\"Contingent\"),'TSA Input'!F1429,\"\"))","v":""},"",{"$f":"IF('TSA Input'!J1429=\"\",\"\",IF(OR('TSA Input'!J1429=\"Yes\",'TSA Input'!J1429=\"Contingent\"),'TSA Input'!D1429,\"\"))","v":""},{"$f":"IF('TSA Input'!J1429=\"\",\"\",IF(OR('TSA Input'!J1429=\"Yes\",'TSA Input'!J1429=\"Contingent\"),'TSA Input'!G1429,\"\"))","v":""},{"$f":"IF('TSA Input'!J1429=\"\",\"\",IF(OR('TSA Input'!J1429=\"Yes\",'TSA Input'!J1429=\"Contingent\"),'TSA Input'!F1429,\"\"))","v":""},"","Required","Required"]
["",null,{"$f":"IF('TSA Input'!J1430=\"\",\"\",IF(OR('TSA Input'!J1430=\"Yes\",'TSA Input'!J1430=\"Contingent\"),'TSA Input'!B1430,\"Ineligible\"))","v":""},{"$f":"IF('TSA Input'!J1430=\"\",\"\",IF(OR('TSA Input'!J1430=\"Yes\",'TSA Input'!J1430=\"Contingent\"),'TSA Input'!I1430,\"\"))","v":""},{"$f":"IF('TSA Input'!J1430=\"\",\"\",IF(OR('TSA Input'!J1430=\"Yes\",'TSA Input'!J1430=\"Contingent\"),'TSA Input'!C1430,\"\"))","v":""},{"$f":"IF('TSA Input'!J1430=\"\",\"\",IF(OR('TSA Input'!J1430=\"Yes\",'TSA Input'!J1430=\"Contingent\"),'TSA Input'!D1430,\"\"))","v":""},{"$f":"IF('TSA Input'!J1430=\"\",\"\",IF(OR('TSA Input'!J1430=\"Yes\",'TSA Input'!J1430=\"Contingent\"),'TSA Input'!G1430,\"\"))","v":""},{"$f":"IF('TSA Input'!J1430=\"\",\"\",IF(OR('TSA Input'!J1430=\"Yes\",'TSA Input'!J1430=\"Contingent\"),'TSA Input'!F1430,\"\"))","v":""},"",{"$f":"IF('TSA Input'!J1430=\"\",\"\",IF(OR('TSA Input'!J1430=\"Yes\",'TSA Input'!J1430=\"Contingent\"),'TSA Input'!D1430,\"\"))","v":""},{"$f":"IF('TSA Input'!J1430=\"\",\"\",IF(OR('TSA Input'!J1430=\"Yes\",'TSA Input'!J1430=\"Contingent\"),'TSA Input'!G1430,\"\"))","v":""},{"$f":"IF('TSA Input'!J1430=\"\",\"\",IF(OR('TSA Input'!J1430=\"Yes\",'TSA Input'!J1430=\"Contingent\"),'TSA Input'!F1430,\"\"))","v":""},"","Required","Required"]
["",null,{"$f":"IF('TSA Input'!J1431=\"\",\"\",IF(OR('TSA Input'!J1431=\"Yes\",'TSA Input'!J1431=\"Contingent\"),'TSA Input'!B1431,\"Ineligible\"))","v":""},{"$f":"IF('TSA Input'!J1431=\"\",\"\",IF(OR('TSA Input'!J1431=\"Yes\",'TSA Input'!J1431=\"Contingent\"),'TSA Input'!I1431,\"\"))","v":""},{"$f":"IF('TSA Input'!J1431=\"\",\"\",IF(OR('TSA Input'!J1431=\"Yes\",'TSA Input'!J1431=\"Contingent\"),'TSA Input'!C1431,\"\"))","v":""},{"$f":"IF('TSA Input'!J1431=\"\",\"\",IF(OR('TSA Input'!J1431=\"Yes\",'TSA Input'!J1431=\"Contingent\"),'TSA Input'!D1431,\"\"))","v":""},{"$f":"IF('TSA Input'!J1431=\"\",\"\",IF(OR('TSA Input'!J1431=\"Yes\",'TSA Input'!J1431=\"Contingent\"),'TSA Input'!G1431,\"\"))","v":""},{"$f":"IF('TSA Input'!J1431=\"\",\"\",IF(OR('TSA Input'!J1431=\"Yes\",'TSA Input'!J1431=\"Contingent\"),'TSA Input'!F1431,\"\"))","v":""},"",{"$f":"IF('TSA Input'!J1431=\"\",\"\",IF(OR('TSA Input'!J1431=\"Yes\",'TSA Input'!J1431=\"Contingent\"),'TSA Input'!D1431,\"\"))","v":""},{"$f":"IF('TSA Input'!J1431=\"\",\"\",IF(OR('TSA Input'!J1431=\"Yes\",'TSA Input'!J1431=\"Contingent\"),'TSA Input'!G1431,\"\"))","v":""},{"$f":"IF('TSA Input'!J1431=\"\",\"\",IF(OR('TSA Input'!J1431=\"Yes\",'TSA Input'!J1431=\"Contingent\"),'TSA Input'!F1431,\"\"))","v":""},"","Required","Required"]
["",null,{"$f":"IF('TSA Input'!J1432=\"\",\"\",IF(OR('TSA Input'!J1432=\"Yes\",'TSA Input'!J1432=\"Contingent\"),'TSA Input'!B1432,\"Ineligible\"))","v":""},{"$f":"IF('TSA Input'!J1432=\"\",\"\",IF(OR('TSA Input'!J1432=\"Yes\",'TSA Input'!J1432=\"Contingent\"),'TSA Input'!I1432,\"\"))","v":""},{"$f":"IF('TSA Input'!J1432=\"\",\"\",IF(OR('TSA Input'!J1432=\"Yes\",'TSA Input'!J1432=\"Contingent\"),'TSA Input'!C1432,\"\"))","v":""},{"$f":"IF('TSA Input'!J1432=\"\",\"\",IF(OR('TSA Input'!J1432=\"Yes\",'TSA Input'!J1432=\"Contingent\"),'TSA Input'!D1432,\"\"))","v":""},{"$f":"IF('TSA Input'!J1432=\"\",\"\",IF(OR('TSA Input'!J1432=\"Yes\",'TSA Input'!J1432=\"Contingent\"),'TSA Input'!G1432,\"\"))","v":""},{"$f":"IF('TSA Input'!J1432=\"\",\"\",IF(OR('TSA Input'!J1432=\"Yes\",'TSA Input'!J1432=\"Contingent\"),'TSA Input'!F1432,\"\"))","v":""},"",{"$f":"IF('TSA Input'!J1432=\"\",\"\",IF(OR('TSA Input'!J1432=\"Yes\",'TSA Input'!J1432=\"Contingent\"),'TSA Input'!D1432,\"\"))","v":""},{"$f":"IF('TSA Input'!J1432=\"\",\"\",IF(OR('TSA Input'!J1432=\"Yes\",'TSA Input'!J1432=\"Contingent\"),'TSA Input'!G1432,\"\"))","v":""},{"$f":"IF('TSA Input'!J1432=\"\",\"\",IF(OR('TSA Input'!J1432=\"Yes\",'TSA Input'!J1432=\"Contingent\"),'TSA Input'!F1432,\"\"))","v":""},"","Required","Required"]
["",null,{"$f":"IF('TSA Input'!J1433=\"\",\"\",IF(OR('TSA Input'!J1433=\"Yes\",'TSA Input'!J1433=\"Contingent\"),'TSA Input'!B1433,\"Ineligible\"))","v":""},{"$f":"IF('TSA Input'!J1433=\"\",\"\",IF(OR('TSA Input'!J1433=\"Yes\",'TSA Input'!J1433=\"Contingent\"),'TSA Input'!I1433,\"\"))","v":""},{"$f":"IF('TSA Input'!J1433=\"\",\"\",IF(OR('TSA Input'!J1433=\"Yes\",'TSA Input'!J1433=\"Contingent\"),'TSA Input'!C1433,\"\"))","v":""},{"$f":"IF('TSA Input'!J1433=\"\",\"\",IF(OR('TSA Input'!J1433=\"Yes\",'TSA Input'!J1433=\"Contingent\"),'TSA Input'!D1433,\"\"))","v":""},{"$f":"IF('TSA Input'!J1433=\"\",\"\",IF(OR('TSA Input'!J1433=\"Yes\",'TSA Input'!J1433=\"Contingent\"),'TSA Input'!G1433,\"\"))","v":""},{"$f":"IF('TSA Input'!J1433=\"\",\"\",IF(OR('TSA Input'!J1433=\"Yes\",'TSA Input'!J1433=\"Contingent\"),'TSA Input'!F1433,\"\"))","v":""},"",{"$f":"IF('TSA Input'!J1433=\"\",\"\",IF(OR('TSA Input'!J1433=\"Yes\",'TSA Input'!J1433=\"Contingent\"),'TSA Input'!D1433,\"\"))","v":""},{"$f":"IF('TSA Input'!J1433=\"\",\"\",IF(OR('TSA Input'!J1433=\"Yes\",'TSA Input'!J1433=\"Contingent\"),'TSA Input'!G1433,\"\"))","v":""},{"$f":"IF('TSA Input'!J1433=\"\",\"\",IF(OR('TSA Input'!J1433=\"Yes\",'TSA Input'!J1433=\"Contingent\"),'TSA Input'!F1433,\"\"))","v":""},"","Required","Required"]
["",null,{"$f":"IF('TSA Input'!J1434=\"\",\"\",IF(OR('TSA Input'!J1434=\"Yes\",'TSA Input'!J1434=\"Contingent\"),'TSA Input'!B1434,\"Ineligible\"))","v":""},{"$f":"IF('TSA Input'!J1434=\"\",\"\",IF(OR('TSA Input'!J1434=\"Yes\",'TSA Input'!J1434=\"Contingent\"),'TSA Input'!I1434,\"\"))","v":""},{"$f":"IF('TSA Input'!J1434=\"\",\"\",IF(OR('TSA Input'!J1434=\"Yes\",'TSA Input'!J1434=\"Contingent\"),'TSA Input'!C1434,\"\"))","v":""},{"$f":"IF('TSA Input'!J1434=\"\",\"\",IF(OR('TSA Input'!J1434=\"Yes\",'TSA Input'!J1434=\"Contingent\"),'TSA Input'!D1434,\"\"))","v":""},{"$f":"IF('TSA Input'!J1434=\"\",\"\",IF(OR('TSA Input'!J1434=\"Yes\",'TSA Input'!J1434=\"Contingent\"),'TSA Input'!G1434,\"\"))","v":""},{"$f":"IF('TSA Input'!J1434=\"\",\"\",IF(OR('TSA Input'!J1434=\"Yes\",'TSA Input'!J1434=\"Contingent\"),'TSA Input'!F1434,\"\"))","v":""},"",{"$f":"IF('TSA Input'!J1434=\"\",\"\",IF(OR('TSA Input'!J1434=\"Yes\",'TSA Input'!J1434=\"Contingent\"),'TSA Input'!D1434,\"\"))","v":""},{"$f":"IF('TSA Input'!J1434=\"\",\"\",IF(OR('TSA Input'!J1434=\"Yes\",'TSA Input'!J1434=\"Contingent\"),'TSA Input'!G1434,\"\"))","v":""},{"$f":"IF('TSA Input'!J1434=\"\",\"\",IF(OR('TSA Input'!J1434=\"Yes\",'TSA Input'!J1434=\"Contingent\"),'TSA Input'!F1434,\"\"))","v":""},"","Required","Required"]
["",null,{"$f":"IF('TSA Input'!J1435=\"\",\"\",IF(OR('TSA Input'!J1435=\"Yes\",'TSA Input'!J1435=\"Contingent\"),'TSA Input'!B1435,\"Ineligible\"))","v":""},{"$f":"IF('TSA Input'!J1435=\"\",\"\",IF(OR('TSA Input'!J1435=\"Yes\",'TSA Input'!J1435=\"Contingent\"),'TSA Input'!I1435,\"\"))","v":""},{"$f":"IF('TSA Input'!J1435=\"\",\"\",IF(OR('TSA Input'!J1435=\"Yes\",'TSA Input'!J1435=\"Contingent\"),'TSA Input'!C1435,\"\"))","v":""},{"$f":"IF('TSA Input'!J1435=\"\",\"\",IF(OR('TSA Input'!J1435=\"Yes\",'TSA Input'!J1435=\"Contingent\"),'TSA Input'!D1435,\"\"))","v":""},{"$f":"IF('TSA Input'!J1435=\"\",\"\",IF(OR('TSA Input'!J1435=\"Yes\",'TSA Input'!J1435=\"Contingent\"),'TSA Input'!G1435,\"\"))","v":""},{"$f":"IF('TSA Input'!J1435=\"\",\"\",IF(OR('TSA Input'!J1435=\"Yes\",'TSA Input'!J1435=\"Contingent\"),'TSA Input'!F1435,\"\"))","v":""},"",{"$f":"IF('TSA Input'!J1435=\"\",\"\",IF(OR('TSA Input'!J1435=\"Yes\",'TSA Input'!J1435=\"Contingent\"),'TSA Input'!D1435,\"\"))","v":""},{"$f":"IF('TSA Input'!J1435=\"\",\"\",IF(OR('TSA Input'!J1435=\"Yes\",'TSA Input'!J1435=\"Contingent\"),'TSA Input'!G1435,\"\"))","v":""},{"$f":"IF('TSA Input'!J1435=\"\",\"\",IF(OR('TSA Input'!J1435=\"Yes\",'TSA Input'!J1435=\"Contingent\"),'TSA Input'!F1435,\"\"))","v":""},"","Required","Required"]
["",null,{"$f":"IF('TSA Input'!J1436=\"\",\"\",IF(OR('TSA Input'!J1436=\"Yes\",'TSA Input'!J1436=\"Contingent\"),'TSA Input'!B1436,\"Ineligible\"))","v":""},{"$f":"IF('TSA Input'!J1436=\"\",\"\",IF(OR('TSA Input'!J1436=\"Yes\",'TSA Input'!J1436=\"Contingent\"),'TSA Input'!I1436,\"\"))","v":""},{"$f":"IF('TSA Input'!J1436=\"\",\"\",IF(OR('TSA Input'!J1436=\"Yes\",'TSA Input'!J1436=\"Contingent\"),'TSA Input'!C1436,\"\"))","v":""},{"$f":"IF('TSA Input'!J1436=\"\",\"\",IF(OR('TSA Input'!J1436=\"Yes\",'TSA Input'!J1436=\"Contingent\"),'TSA Input'!D1436,\"\"))","v":""},{"$f":"IF('TSA Input'!J1436=\"\",\"\",IF(OR('TSA Input'!J1436=\"Yes\",'TSA Input'!J1436=\"Contingent\"),'TSA Input'!G1436,\"\"))","v":""},{"$f":"IF('TSA Input'!J1436=\"\",\"\",IF(OR('TSA Input'!J1436=\"Yes\",'TSA Input'!J1436=\"Contingent\"),'TSA Input'!F1436,\"\"))","v":""},"",{"$f":"IF('TSA Input'!J1436=\"\",\"\",IF(OR('TSA Input'!J1436=\"Yes\",'TSA Input'!J1436=\"Contingent\"),'TSA Input'!D1436,\"\"))","v":""},{"$f":"IF('TSA Input'!J1436=\"\",\"\",IF(OR('TSA Input'!J1436=\"Yes\",'TSA Input'!J1436=\"Contingent\"),'TSA Input'!G1436,\"\"))","v":""},{"$f":"IF('TSA Input'!J1436=\"\",\"\",IF(OR('TSA Input'!J1436=\"Yes\",'TSA Input'!J1436=\"Contingent\"),'TSA Input'!F1436,\"\"))","v":""},"","Required","Required"]
["",null,{"$f":"IF('TSA Input'!J1437=\"\",\"\",IF(OR('TSA Input'!J1437=\"Yes\",'TSA Input'!J1437=\"Contingent\"),'TSA Input'!B1437,\"Ineligible\"))","v":""},{"$f":"IF('TSA Input'!J1437=\"\",\"\",IF(OR('TSA Input'!J1437=\"Yes\",'TSA Input'!J1437=\"Contingent\"),'TSA Input'!I1437,\"\"))","v":""},{"$f":"IF('TSA Input'!J1437=\"\",\"\",IF(OR('TSA Input'!J1437=\"Yes\",'TSA Input'!J1437=\"Contingent\"),'TSA Input'!C1437,\"\"))","v":""},{"$f":"IF('TSA Input'!J1437=\"\",\"\",IF(OR('TSA Input'!J1437=\"Yes\",'TSA Input'!J1437=\"Contingent\"),'TSA Input'!D1437,\"\"))","v":""},{"$f":"IF('TSA Input'!J1437=\"\",\"\",IF(OR('TSA Input'!J1437=\"Yes\",'TSA Input'!J1437=\"Contingent\"),'TSA Input'!G1437,\"\"))","v":""},{"$f":"IF('TSA Input'!J1437=\"\",\"\",IF(OR('TSA Input'!J1437=\"Yes\",'TSA Input'!J1437=\"Contingent\"),'TSA Input'!F1437,\"\"))","v":""},"",{"$f":"IF('TSA Input'!J1437=\"\",\"\",IF(OR('TSA Input'!J1437=\"Yes\",'TSA Input'!J1437=\"Contingent\"),'TSA Input'!D1437,\"\"))","v":""},{"$f":"IF('TSA Input'!J1437=\"\",\"\",IF(OR('TSA Input'!J1437=\"Yes\",'TSA Input'!J1437=\"Contingent\"),'TSA Input'!G1437,\"\"))","v":""},{"$f":"IF('TSA Input'!J1437=\"\",\"\",IF(OR('TSA Input'!J1437=\"Yes\",'TSA Input'!J1437=\"Contingent\"),'TSA Input'!F1437,\"\"))","v":""},"","Required","Required"]
["",null,{"$f":"IF('TSA Input'!J1438=\"\",\"\",IF(OR('TSA Input'!J1438=\"Yes\",'TSA Input'!J1438=\"Contingent\"),'TSA Input'!B1438,\"Ineligible\"))","v":""},{"$f":"IF('TSA Input'!J1438=\"\",\"\",IF(OR('TSA Input'!J1438=\"Yes\",'TSA Input'!J1438=\"Contingent\"),'TSA Input'!I1438,\"\"))","v":""},{"$f":"IF('TSA Input'!J1438=\"\",\"\",IF(OR('TSA Input'!J1438=\"Yes\",'TSA Input'!J1438=\"Contingent\"),'TSA Input'!C1438,\"\"))","v":""},{"$f":"IF('TSA Input'!J1438=\"\",\"\",IF(OR('TSA Input'!J1438=\"Yes\",'TSA Input'!J1438=\"Contingent\"),'TSA Input'!D1438,\"\"))","v":""},{"$f":"IF('TSA Input'!J1438=\"\",\"\",IF(OR('TSA Input'!J1438=\"Yes\",'TSA Input'!J1438=\"Contingent\"),'TSA Input'!G1438,\"\"))","v":""},{"$f":"IF('TSA Input'!J1438=\"\",\"\",IF(OR('TSA Input'!J1438=\"Yes\",'TSA Input'!J1438=\"Contingent\"),'TSA Input'!F1438,\"\"))","v":""},"",{"$f":"IF('TSA Input'!J1438=\"\",\"\",IF(OR('TSA Input'!J1438=\"Yes\",'TSA Input'!J1438=\"Contingent\"),'TSA Input'!D1438,\"\"))","v":""},{"$f":"IF('TSA Input'!J1438=\"\",\"\",IF(OR('TSA Input'!J1438=\"Yes\",'TSA Input'!J1438=\"Contingent\"),'TSA Input'!G1438,\"\"))","v":""},{"$f":"IF('TSA Input'!J1438=\"\",\"\",IF(OR('TSA Input'!J1438=\"Yes\",'TSA Input'!J1438=\"Contingent\"),'TSA Input'!F1438,\"\"))","v":""},"","Required","Required"]
["",null,{"$f":"IF('TSA Input'!J1439=\"\",\"\",IF(OR('TSA Input'!J1439=\"Yes\",'TSA Input'!J1439=\"Contingent\"),'TSA Input'!B1439,\"Ineligible\"))","v":""},{"$f":"IF('TSA Input'!J1439=\"\",\"\",IF(OR('TSA Input'!J1439=\"Yes\",'TSA Input'!J1439=\"Contingent\"),'TSA Input'!I1439,\"\"))","v":""},{"$f":"IF('TSA Input'!J1439=\"\",\"\",IF(OR('TSA Input'!J1439=\"Yes\",'TSA Input'!J1439=\"Contingent\"),'TSA Input'!C1439,\"\"))","v":""},{"$f":"IF('TSA Input'!J1439=\"\",\"\",IF(OR('TSA Input'!J1439=\"Yes\",'TSA Input'!J1439=\"Contingent\"),'TSA Input'!D1439,\"\"))","v":""},{"$f":"IF('TSA Input'!J1439=\"\",\"\",IF(OR('TSA Input'!J1439=\"Yes\",'TSA Input'!J1439=\"Contingent\"),'TSA Input'!G1439,\"\"))","v":""},{"$f":"IF('TSA Input'!J1439=\"\",\"\",IF(OR('TSA Input'!J1439=\"Yes\",'TSA Input'!J1439=\"Contingent\"),'TSA Input'!F1439,\"\"))","v":""},"",{"$f":"IF('TSA Input'!J1439=\"\",\"\",IF(OR('TSA Input'!J1439=\"Yes\",'TSA Input'!J1439=\"Contingent\"),'TSA Input'!D1439,\"\"))","v":""},{"$f":"IF('TSA Input'!J1439=\"\",\"\",IF(OR('TSA Input'!J1439=\"Yes\",'TSA Input'!J1439=\"Contingent\"),'TSA Input'!G1439,\"\"))","v":""},{"$f":"IF('TSA Input'!J1439=\"\",\"\",IF(OR('TSA Input'!J1439=\"Yes\",'TSA Input'!J1439=\"Contingent\"),'TSA Input'!F1439,\"\"))","v":""},"","Required","Required"]
["",null,{"$f":"IF('TSA Input'!J1440=\"\",\"\",IF(OR('TSA Input'!J1440=\"Yes\",'TSA Input'!J1440=\"Contingent\"),'TSA Input'!B1440,\"Ineligible\"))","v":""},{"$f":"IF('TSA Input'!J1440=\"\",\"\",IF(OR('TSA Input'!J1440=\"Yes\",'TSA Input'!J1440=\"Contingent\"),'TSA Input'!I1440,\"\"))","v":""},{"$f":"IF('TSA Input'!J1440=\"\",\"\",IF(OR('TSA Input'!J1440=\"Yes\",'TSA Input'!J1440=\"Contingent\"),'TSA Input'!C1440,\"\"))","v":""},{"$f":"IF('TSA Input'!J1440=\"\",\"\",IF(OR('TSA Input'!J1440=\"Yes\",'TSA Input'!J1440=\"Contingent\"),'TSA Input'!D1440,\"\"))","v":""},{"$f":"IF('TSA Input'!J1440=\"\",\"\",IF(OR('TSA Input'!J1440=\"Yes\",'TSA Input'!J1440=\"Contingent\"),'TSA Input'!G1440,\"\"))","v":""},{"$f":"IF('TSA Input'!J1440=\"\",\"\",IF(OR('TSA Input'!J1440=\"Yes\",'TSA Input'!J1440=\"Contingent\"),'TSA Input'!F1440,\"\"))","v":""},"",{"$f":"IF('TSA Input'!J1440=\"\",\"\",IF(OR('TSA Input'!J1440=\"Yes\",'TSA Input'!J1440=\"Contingent\"),'TSA Input'!D1440,\"\"))","v":""},{"$f":"IF('TSA Input'!J1440=\"\",\"\",IF(OR('TSA Input'!J1440=\"Yes\",'TSA Input'!J1440=\"Contingent\"),'TSA Input'!G1440,\"\"))","v":""},{"$f":"IF('TSA Input'!J1440=\"\",\"\",IF(OR('TSA Input'!J1440=\"Yes\",'TSA Input'!J1440=\"Contingent\"),'TSA Input'!F1440,\"\"))","v":""},"","Required","Required"]
["",null,{"$f":"IF('TSA Input'!J1441=\"\",\"\",IF(OR('TSA Input'!J1441=\"Yes\",'TSA Input'!J1441=\"Contingent\"),'TSA Input'!B1441,\"Ineligible\"))","v":""},{"$f":"IF('TSA Input'!J1441=\"\",\"\",IF(OR('TSA Input'!J1441=\"Yes\",'TSA Input'!J1441=\"Contingent\"),'TSA Input'!I1441,\"\"))","v":""},{"$f":"IF('TSA Input'!J1441=\"\",\"\",IF(OR('TSA Input'!J1441=\"Yes\",'TSA Input'!J1441=\"Contingent\"),'TSA Input'!C1441,\"\"))","v":""},{"$f":"IF('TSA Input'!J1441=\"\",\"\",IF(OR('TSA Input'!J1441=\"Yes\",'TSA Input'!J1441=\"Contingent\"),'TSA Input'!D1441,\"\"))","v":""},{"$f":"IF('TSA Input'!J1441=\"\",\"\",IF(OR('TSA Input'!J1441=\"Yes\",'TSA Input'!J1441=\"Contingent\"),'TSA Input'!G1441,\"\"))","v":""},{"$f":"IF('TSA Input'!J1441=\"\",\"\",IF(OR('TSA Input'!J1441=\"Yes\",'TSA Input'!J1441=\"Contingent\"),'TSA Input'!F1441,\"\"))","v":""},"",{"$f":"IF('TSA Input'!J1441=\"\",\"\",IF(OR('TSA Input'!J1441=\"Yes\",'TSA Input'!J1441=\"Contingent\"),'TSA Input'!D1441,\"\"))","v":""},{"$f":"IF('TSA Input'!J1441=\"\",\"\",IF(OR('TSA Input'!J1441=\"Yes\",'TSA Input'!J1441=\"Contingent\"),'TSA Input'!G1441,\"\"))","v":""},{"$f":"IF('TSA Input'!J1441=\"\",\"\",IF(OR('TSA Input'!J1441=\"Yes\",'TSA Input'!J1441=\"Contingent\"),'TSA Input'!F1441,\"\"))","v":""},"","Required","Required"]
["",null,{"$f":"IF('TSA Input'!J1442=\"\",\"\",IF(OR('TSA Input'!J1442=\"Yes\",'TSA Input'!J1442=\"Contingent\"),'TSA Input'!B1442,\"Ineligible\"))","v":""},{"$f":"IF('TSA Input'!J1442=\"\",\"\",IF(OR('TSA Input'!J1442=\"Yes\",'TSA Input'!J1442=\"Contingent\"),'TSA Input'!I1442,\"\"))","v":""},{"$f":"IF('TSA Input'!J1442=\"\",\"\",IF(OR('TSA Input'!J1442=\"Yes\",'TSA Input'!J1442=\"Contingent\"),'TSA Input'!C1442,\"\"))","v":""},{"$f":"IF('TSA Input'!J1442=\"\",\"\",IF(OR('TSA Input'!J1442=\"Yes\",'TSA Input'!J1442=\"Contingent\"),'TSA Input'!D1442,\"\"))","v":""},{"$f":"IF('TSA Input'!J1442=\"\",\"\",IF(OR('TSA Input'!J1442=\"Yes\",'TSA Input'!J1442=\"Contingent\"),'TSA Input'!G1442,\"\"))","v":""},{"$f":"IF('TSA Input'!J1442=\"\",\"\",IF(OR('TSA Input'!J1442=\"Yes\",'TSA Input'!J1442=\"Contingent\"),'TSA Input'!F1442,\"\"))","v":""},"",{"$f":"IF('TSA Input'!J1442=\"\",\"\",IF(OR('TSA Input'!J1442=\"Yes\",'TSA Input'!J1442=\"Contingent\"),'TSA Input'!D1442,\"\"))","v":""},{"$f":"IF('TSA Input'!J1442=\"\",\"\",IF(OR('TSA Input'!J1442=\"Yes\",'TSA Input'!J1442=\"Contingent\"),'TSA Input'!G1442,\"\"))","v":""},{"$f":"IF('TSA Input'!J1442=\"\",\"\",IF(OR('TSA Input'!J1442=\"Yes\",'TSA Input'!J1442=\"Contingent\"),'TSA Input'!F1442,\"\"))","v":""},"","Required","Required"]
["",null,{"$f":"IF('TSA Input'!J1443=\"\",\"\",IF(OR('TSA Input'!J1443=\"Yes\",'TSA Input'!J1443=\"Contingent\"),'TSA Input'!B1443,\"Ineligible\"))","v":""},{"$f":"IF('TSA Input'!J1443=\"\",\"\",IF(OR('TSA Input'!J1443=\"Yes\",'TSA Input'!J1443=\"Contingent\"),'TSA Input'!I1443,\"\"))","v":""},{"$f":"IF('TSA Input'!J1443=\"\",\"\",IF(OR('TSA Input'!J1443=\"Yes\",'TSA Input'!J1443=\"Contingent\"),'TSA Input'!C1443,\"\"))","v":""},{"$f":"IF('TSA Input'!J1443=\"\",\"\",IF(OR('TSA Input'!J1443=\"Yes\",'TSA Input'!J1443=\"Contingent\"),'TSA Input'!D1443,\"\"))","v":""},{"$f":"IF('TSA Input'!J1443=\"\",\"\",IF(OR('TSA Input'!J1443=\"Yes\",'TSA Input'!J1443=\"Contingent\"),'TSA Input'!G1443,\"\"))","v":""},{"$f":"IF('TSA Input'!J1443=\"\",\"\",IF(OR('TSA Input'!J1443=\"Yes\",'TSA Input'!J1443=\"Contingent\"),'TSA Input'!F1443,\"\"))","v":""},"",{"$f":"IF('TSA Input'!J1443=\"\",\"\",IF(OR('TSA Input'!J1443=\"Yes\",'TSA Input'!J1443=\"Contingent\"),'TSA Input'!D1443,\"\"))","v":""},{"$f":"IF('TSA Input'!J1443=\"\",\"\",IF(OR('TSA Input'!J1443=\"Yes\",'TSA Input'!J1443=\"Contingent\"),'TSA Input'!G1443,\"\"))","v":""},{"$f":"IF('TSA Input'!J1443=\"\",\"\",IF(OR('TSA Input'!J1443=\"Yes\",'TSA Input'!J1443=\"Contingent\"),'TSA Input'!F1443,\"\"))","v":""},"","Required","Required"]
["",null,{"$f":"IF('TSA Input'!J1444=\"\",\"\",IF(OR('TSA Input'!J1444=\"Yes\",'TSA Input'!J1444=\"Contingent\"),'TSA Input'!B1444,\"Ineligible\"))","v":""},{"$f":"IF('TSA Input'!J1444=\"\",\"\",IF(OR('TSA Input'!J1444=\"Yes\",'TSA Input'!J1444=\"Contingent\"),'TSA Input'!I1444,\"\"))","v":""},{"$f":"IF('TSA Input'!J1444=\"\",\"\",IF(OR('TSA Input'!J1444=\"Yes\",'TSA Input'!J1444=\"Contingent\"),'TSA Input'!C1444,\"\"))","v":""},{"$f":"IF('TSA Input'!J1444=\"\",\"\",IF(OR('TSA Input'!J1444=\"Yes\",'TSA Input'!J1444=\"Contingent\"),'TSA Input'!D1444,\"\"))","v":""},{"$f":"IF('TSA Input'!J1444=\"\",\"\",IF(OR('TSA Input'!J1444=\"Yes\",'TSA Input'!J1444=\"Contingent\"),'TSA Input'!G1444,\"\"))","v":""},{"$f":"IF('TSA Input'!J1444=\"\",\"\",IF(OR('TSA Input'!J1444=\"Yes\",'TSA Input'!J1444=\"Contingent\"),'TSA Input'!F1444,\"\"))","v":""},"",{"$f":"IF('TSA Input'!J1444=\"\",\"\",IF(OR('TSA Input'!J1444=\"Yes\",'TSA Input'!J1444=\"Contingent\"),'TSA Input'!D1444,\"\"))","v":""},{"$f":"IF('TSA Input'!J1444=\"\",\"\",IF(OR('TSA Input'!J1444=\"Yes\",'TSA Input'!J1444=\"Contingent\"),'TSA Input'!G1444,\"\"))","v":""},{"$f":"IF('TSA Input'!J1444=\"\",\"\",IF(OR('TSA Input'!J1444=\"Yes\",'TSA Input'!J1444=\"Contingent\"),'TSA Input'!F1444,\"\"))","v":""},"","Required","Required"]
["",null,{"$f":"IF('TSA Input'!J1445=\"\",\"\",IF(OR('TSA Input'!J1445=\"Yes\",'TSA Input'!J1445=\"Contingent\"),'TSA Input'!B1445,\"Ineligible\"))","v":""},{"$f":"IF('TSA Input'!J1445=\"\",\"\",IF(OR('TSA Input'!J1445=\"Yes\",'TSA Input'!J1445=\"Contingent\"),'TSA Input'!I1445,\"\"))","v":""},{"$f":"IF('TSA Input'!J1445=\"\",\"\",IF(OR('TSA Input'!J1445=\"Yes\",'TSA Input'!J1445=\"Contingent\"),'TSA Input'!C1445,\"\"))","v":""},{"$f":"IF('TSA Input'!J1445=\"\",\"\",IF(OR('TSA Input'!J1445=\"Yes\",'TSA Input'!J1445=\"Contingent\"),'TSA Input'!D1445,\"\"))","v":""},{"$f":"IF('TSA Input'!J1445=\"\",\"\",IF(OR('TSA Input'!J1445=\"Yes\",'TSA Input'!J1445=\"Contingent\"),'TSA Input'!G1445,\"\"))","v":""},{"$f":"IF('TSA Input'!J1445=\"\",\"\",IF(OR('TSA Input'!J1445=\"Yes\",'TSA Input'!J1445=\"Contingent\"),'TSA Input'!F1445,\"\"))","v":""},"",{"$f":"IF('TSA Input'!J1445=\"\",\"\",IF(OR('TSA Input'!J1445=\"Yes\",'TSA Input'!J1445=\"Contingent\"),'TSA Input'!D1445,\"\"))","v":""},{"$f":"IF('TSA Input'!J1445=\"\",\"\",IF(OR('TSA Input'!J1445=\"Yes\",'TSA Input'!J1445=\"Contingent\"),'TSA Input'!G1445,\"\"))","v":""},{"$f":"IF('TSA Input'!J1445=\"\",\"\",IF(OR('TSA Input'!J1445=\"Yes\",'TSA Input'!J1445=\"Contingent\"),'TSA Input'!F1445,\"\"))","v":""},"","Required","Required"]
["",null,{"$f":"IF('TSA Input'!J1446=\"\",\"\",IF(OR('TSA Input'!J1446=\"Yes\",'TSA Input'!J1446=\"Contingent\"),'TSA Input'!B1446,\"Ineligible\"))","v":""},{"$f":"IF('TSA Input'!J1446=\"\",\"\",IF(OR('TSA Input'!J1446=\"Yes\",'TSA Input'!J1446=\"Contingent\"),'TSA Input'!I1446,\"\"))","v":""},{"$f":"IF('TSA Input'!J1446=\"\",\"\",IF(OR('TSA Input'!J1446=\"Yes\",'TSA Input'!J1446=\"Contingent\"),'TSA Input'!C1446,\"\"))","v":""},{"$f":"IF('TSA Input'!J1446=\"\",\"\",IF(OR('TSA Input'!J1446=\"Yes\",'TSA Input'!J1446=\"Contingent\"),'TSA Input'!D1446,\"\"))","v":""},{"$f":"IF('TSA Input'!J1446=\"\",\"\",IF(OR('TSA Input'!J1446=\"Yes\",'TSA Input'!J1446=\"Contingent\"),'TSA Input'!G1446,\"\"))","v":""},{"$f":"IF('TSA Input'!J1446=\"\",\"\",IF(OR('TSA Input'!J1446=\"Yes\",'TSA Input'!J1446=\"Contingent\"),'TSA Input'!F1446,\"\"))","v":""},"",{"$f":"IF('TSA Input'!J1446=\"\",\"\",IF(OR('TSA Input'!J1446=\"Yes\",'TSA Input'!J1446=\"Contingent\"),'TSA Input'!D1446,\"\"))","v":""},{"$f":"IF('TSA Input'!J1446=\"\",\"\",IF(OR('TSA Input'!J1446=\"Yes\",'TSA Input'!J1446=\"Contingent\"),'TSA Input'!G1446,\"\"))","v":""},{"$f":"IF('TSA Input'!J1446=\"\",\"\",IF(OR('TSA Input'!J1446=\"Yes\",'TSA Input'!J1446=\"Contingent\"),'TSA Input'!F1446,\"\"))","v":""},"","Required","Required"]
["",null,{"$f":"IF('TSA Input'!J1447=\"\",\"\",IF(OR('TSA Input'!J1447=\"Yes\",'TSA Input'!J1447=\"Contingent\"),'TSA Input'!B1447,\"Ineligible\"))","v":""},{"$f":"IF('TSA Input'!J1447=\"\",\"\",IF(OR('TSA Input'!J1447=\"Yes\",'TSA Input'!J1447=\"Contingent\"),'TSA Input'!I1447,\"\"))","v":""},{"$f":"IF('TSA Input'!J1447=\"\",\"\",IF(OR('TSA Input'!J1447=\"Yes\",'TSA Input'!J1447=\"Contingent\"),'TSA Input'!C1447,\"\"))","v":""},{"$f":"IF('TSA Input'!J1447=\"\",\"\",IF(OR('TSA Input'!J1447=\"Yes\",'TSA Input'!J1447=\"Contingent\"),'TSA Input'!D1447,\"\"))","v":""},{"$f":"IF('TSA Input'!J1447=\"\",\"\",IF(OR('TSA Input'!J1447=\"Yes\",'TSA Input'!J1447=\"Contingent\"),'TSA Input'!G1447,\"\"))","v":""},{"$f":"IF('TSA Input'!J1447=\"\",\"\",IF(OR('TSA Input'!J1447=\"Yes\",'TSA Input'!J1447=\"Contingent\"),'TSA Input'!F1447,\"\"))","v":""},"",{"$f":"IF('TSA Input'!J1447=\"\",\"\",IF(OR('TSA Input'!J1447=\"Yes\",'TSA Input'!J1447=\"Contingent\"),'TSA Input'!D1447,\"\"))","v":""},{"$f":"IF('TSA Input'!J1447=\"\",\"\",IF(OR('TSA Input'!J1447=\"Yes\",'TSA Input'!J1447=\"Contingent\"),'TSA Input'!G1447,\"\"))","v":""},{"$f":"IF('TSA Input'!J1447=\"\",\"\",IF(OR('TSA Input'!J1447=\"Yes\",'TSA Input'!J1447=\"Contingent\"),'TSA Input'!F1447,\"\"))","v":""},"","Required","Required"]
["",null,{"$f":"IF('TSA Input'!J1448=\"\",\"\",IF(OR('TSA Input'!J1448=\"Yes\",'TSA Input'!J1448=\"Contingent\"),'TSA Input'!B1448,\"Ineligible\"))","v":""},{"$f":"IF('TSA Input'!J1448=\"\",\"\",IF(OR('TSA Input'!J1448=\"Yes\",'TSA Input'!J1448=\"Contingent\"),'TSA Input'!I1448,\"\"))","v":""},{"$f":"IF('TSA Input'!J1448=\"\",\"\",IF(OR('TSA Input'!J1448=\"Yes\",'TSA Input'!J1448=\"Contingent\"),'TSA Input'!C1448,\"\"))","v":""},{"$f":"IF('TSA Input'!J1448=\"\",\"\",IF(OR('TSA Input'!J1448=\"Yes\",'TSA Input'!J1448=\"Contingent\"),'TSA Input'!D1448,\"\"))","v":""},{"$f":"IF('TSA Input'!J1448=\"\",\"\",IF(OR('TSA Input'!J1448=\"Yes\",'TSA Input'!J1448=\"Contingent\"),'TSA Input'!G1448,\"\"))","v":""},{"$f":"IF('TSA Input'!J1448=\"\",\"\",IF(OR('TSA Input'!J1448=\"Yes\",'TSA Input'!J1448=\"Contingent\"),'TSA Input'!F1448,\"\"))","v":""},"",{"$f":"IF('TSA Input'!J1448=\"\",\"\",IF(OR('TSA Input'!J1448=\"Yes\",'TSA Input'!J1448=\"Contingent\"),'TSA Input'!D1448,\"\"))","v":""},{"$f":"IF('TSA Input'!J1448=\"\",\"\",IF(OR('TSA Input'!J1448=\"Yes\",'TSA Input'!J1448=\"Contingent\"),'TSA Input'!G1448,\"\"))","v":""},{"$f":"IF('TSA Input'!J1448=\"\",\"\",IF(OR('TSA Input'!J1448=\"Yes\",'TSA Input'!J1448=\"Contingent\"),'TSA Input'!F1448,\"\"))","v":""},"","Required","Required"]
["",null,{"$f":"IF('TSA Input'!J1449=\"\",\"\",IF(OR('TSA Input'!J1449=\"Yes\",'TSA Input'!J1449=\"Contingent\"),'TSA Input'!B1449,\"Ineligible\"))","v":""},{"$f":"IF('TSA Input'!J1449=\"\",\"\",IF(OR('TSA Input'!J1449=\"Yes\",'TSA Input'!J1449=\"Contingent\"),'TSA Input'!I1449,\"\"))","v":""},{"$f":"IF('TSA Input'!J1449=\"\",\"\",IF(OR('TSA Input'!J1449=\"Yes\",'TSA Input'!J1449=\"Contingent\"),'TSA Input'!C1449,\"\"))","v":""},{"$f":"IF('TSA Input'!J1449=\"\",\"\",IF(OR('TSA Input'!J1449=\"Yes\",'TSA Input'!J1449=\"Contingent\"),'TSA Input'!D1449,\"\"))","v":""},{"$f":"IF('TSA Input'!J1449=\"\",\"\",IF(OR('TSA Input'!J1449=\"Yes\",'TSA Input'!J1449=\"Contingent\"),'TSA Input'!G1449,\"\"))","v":""},{"$f":"IF('TSA Input'!J1449=\"\",\"\",IF(OR('TSA Input'!J1449=\"Yes\",'TSA Input'!J1449=\"Contingent\"),'TSA Input'!F1449,\"\"))","v":""},"",{"$f":"IF('TSA Input'!J1449=\"\",\"\",IF(OR('TSA Input'!J1449=\"Yes\",'TSA Input'!J1449=\"Contingent\"),'TSA Input'!D1449,\"\"))","v":""},{"$f":"IF('TSA Input'!J1449=\"\",\"\",IF(OR('TSA Input'!J1449=\"Yes\",'TSA Input'!J1449=\"Contingent\"),'TSA Input'!G1449,\"\"))","v":""},{"$f":"IF('TSA Input'!J1449=\"\",\"\",IF(OR('TSA Input'!J1449=\"Yes\",'TSA Input'!J1449=\"Contingent\"),'TSA Input'!F1449,\"\"))","v":""},"","Required","Required"]
["",null,{"$f":"IF('TSA Input'!J1450=\"\",\"\",IF(OR('TSA Input'!J1450=\"Yes\",'TSA Input'!J1450=\"Contingent\"),'TSA Input'!B1450,\"Ineligible\"))","v":""},{"$f":"IF('TSA Input'!J1450=\"\",\"\",IF(OR('TSA Input'!J1450=\"Yes\",'TSA Input'!J1450=\"Contingent\"),'TSA Input'!I1450,\"\"))","v":""},{"$f":"IF('TSA Input'!J1450=\"\",\"\",IF(OR('TSA Input'!J1450=\"Yes\",'TSA Input'!J1450=\"Contingent\"),'TSA Input'!C1450,\"\"))","v":""},{"$f":"IF('TSA Input'!J1450=\"\",\"\",IF(OR('TSA Input'!J1450=\"Yes\",'TSA Input'!J1450=\"Contingent\"),'TSA Input'!D1450,\"\"))","v":""},{"$f":"IF('TSA Input'!J1450=\"\",\"\",IF(OR('TSA Input'!J1450=\"Yes\",'TSA Input'!J1450=\"Contingent\"),'TSA Input'!G1450,\"\"))","v":""},{"$f":"IF('TSA Input'!J1450=\"\",\"\",IF(OR('TSA Input'!J1450=\"Yes\",'TSA Input'!J1450=\"Contingent\"),'TSA Input'!F1450,\"\"))","v":""},"",{"$f":"IF('TSA Input'!J1450=\"\",\"\",IF(OR('TSA Input'!J1450=\"Yes\",'TSA Input'!J1450=\"Contingent\"),'TSA Input'!D1450,\"\"))","v":""},{"$f":"IF('TSA Input'!J1450=\"\",\"\",IF(OR('TSA Input'!J1450=\"Yes\",'TSA Input'!J1450=\"Contingent\"),'TSA Input'!G1450,\"\"))","v":""},{"$f":"IF('TSA Input'!J1450=\"\",\"\",IF(OR('TSA Input'!J1450=\"Yes\",'TSA Input'!J1450=\"Contingent\"),'TSA Input'!F1450,\"\"))","v":""},"","Required","Required"]
["",null,{"$f":"IF('TSA Input'!J1451=\"\",\"\",IF(OR('TSA Input'!J1451=\"Yes\",'TSA Input'!J1451=\"Contingent\"),'TSA Input'!B1451,\"Ineligible\"))","v":""},{"$f":"IF('TSA Input'!J1451=\"\",\"\",IF(OR('TSA Input'!J1451=\"Yes\",'TSA Input'!J1451=\"Contingent\"),'TSA Input'!I1451,\"\"))","v":""},{"$f":"IF('TSA Input'!J1451=\"\",\"\",IF(OR('TSA Input'!J1451=\"Yes\",'TSA Input'!J1451=\"Contingent\"),'TSA Input'!C1451,\"\"))","v":""},{"$f":"IF('TSA Input'!J1451=\"\",\"\",IF(OR('TSA Input'!J1451=\"Yes\",'TSA Input'!J1451=\"Contingent\"),'TSA Input'!D1451,\"\"))","v":""},{"$f":"IF('TSA Input'!J1451=\"\",\"\",IF(OR('TSA Input'!J1451=\"Yes\",'TSA Input'!J1451=\"Contingent\"),'TSA Input'!G1451,\"\"))","v":""},{"$f":"IF('TSA Input'!J1451=\"\",\"\",IF(OR('TSA Input'!J1451=\"Yes\",'TSA Input'!J1451=\"Contingent\"),'TSA Input'!F1451,\"\"))","v":""},"",{"$f":"IF('TSA Input'!J1451=\"\",\"\",IF(OR('TSA Input'!J1451=\"Yes\",'TSA Input'!J1451=\"Contingent\"),'TSA Input'!D1451,\"\"))","v":""},{"$f":"IF('TSA Input'!J1451=\"\",\"\",IF(OR('TSA Input'!J1451=\"Yes\",'TSA Input'!J1451=\"Contingent\"),'TSA Input'!G1451,\"\"))","v":""},{"$f":"IF('TSA Input'!J1451=\"\",\"\",IF(OR('TSA Input'!J1451=\"Yes\",'TSA Input'!J1451=\"Contingent\"),'TSA Input'!F1451,\"\"))","v":""},"","Required","Required"]
["",null,{"$f":"IF('TSA Input'!J1452=\"\",\"\",IF(OR('TSA Input'!J1452=\"Yes\",'TSA Input'!J1452=\"Contingent\"),'TSA Input'!B1452,\"Ineligible\"))","v":""},{"$f":"IF('TSA Input'!J1452=\"\",\"\",IF(OR('TSA Input'!J1452=\"Yes\",'TSA Input'!J1452=\"Contingent\"),'TSA Input'!I1452,\"\"))","v":""},{"$f":"IF('TSA Input'!J1452=\"\",\"\",IF(OR('TSA Input'!J1452=\"Yes\",'TSA Input'!J1452=\"Contingent\"),'TSA Input'!C1452,\"\"))","v":""},{"$f":"IF('TSA Input'!J1452=\"\",\"\",IF(OR('TSA Input'!J1452=\"Yes\",'TSA Input'!J1452=\"Contingent\"),'TSA Input'!D1452,\"\"))","v":""},{"$f":"IF('TSA Input'!J1452=\"\",\"\",IF(OR('TSA Input'!J1452=\"Yes\",'TSA Input'!J1452=\"Contingent\"),'TSA Input'!G1452,\"\"))","v":""},{"$f":"IF('TSA Input'!J1452=\"\",\"\",IF(OR('TSA Input'!J1452=\"Yes\",'TSA Input'!J1452=\"Contingent\"),'TSA Input'!F1452,\"\"))","v":""},"",{"$f":"IF('TSA Input'!J1452=\"\",\"\",IF(OR('TSA Input'!J1452=\"Yes\",'TSA Input'!J1452=\"Contingent\"),'TSA Input'!D1452,\"\"))","v":""},{"$f":"IF('TSA Input'!J1452=\"\",\"\",IF(OR('TSA Input'!J1452=\"Yes\",'TSA Input'!J1452=\"Contingent\"),'TSA Input'!G1452,\"\"))","v":""},{"$f":"IF('TSA Input'!J1452=\"\",\"\",IF(OR('TSA Input'!J1452=\"Yes\",'TSA Input'!J1452=\"Contingent\"),'TSA Input'!F1452,\"\"))","v":""},"","Required","Required"]
["",null,{"$f":"IF('TSA Input'!J1453=\"\",\"\",IF(OR('TSA Input'!J1453=\"Yes\",'TSA Input'!J1453=\"Contingent\"),'TSA Input'!B1453,\"Ineligible\"))","v":""},{"$f":"IF('TSA Input'!J1453=\"\",\"\",IF(OR('TSA Input'!J1453=\"Yes\",'TSA Input'!J1453=\"Contingent\"),'TSA Input'!I1453,\"\"))","v":""},{"$f":"IF('TSA Input'!J1453=\"\",\"\",IF(OR('TSA Input'!J1453=\"Yes\",'TSA Input'!J1453=\"Contingent\"),'TSA Input'!C1453,\"\"))","v":""},{"$f":"IF('TSA Input'!J1453=\"\",\"\",IF(OR('TSA Input'!J1453=\"Yes\",'TSA Input'!J1453=\"Contingent\"),'TSA Input'!D1453,\"\"))","v":""},{"$f":"IF('TSA Input'!J1453=\"\",\"\",IF(OR('TSA Input'!J1453=\"Yes\",'TSA Input'!J1453=\"Contingent\"),'TSA Input'!G1453,\"\"))","v":""},{"$f":"IF('TSA Input'!J1453=\"\",\"\",IF(OR('TSA Input'!J1453=\"Yes\",'TSA Input'!J1453=\"Contingent\"),'TSA Input'!F1453,\"\"))","v":""},"",{"$f":"IF('TSA Input'!J1453=\"\",\"\",IF(OR('TSA Input'!J1453=\"Yes\",'TSA Input'!J1453=\"Contingent\"),'TSA Input'!D1453,\"\"))","v":""},{"$f":"IF('TSA Input'!J1453=\"\",\"\",IF(OR('TSA Input'!J1453=\"Yes\",'TSA Input'!J1453=\"Contingent\"),'TSA Input'!G1453,\"\"))","v":""},{"$f":"IF('TSA Input'!J1453=\"\",\"\",IF(OR('TSA Input'!J1453=\"Yes\",'TSA Input'!J1453=\"Contingent\"),'TSA Input'!F1453,\"\"))","v":""},"","Required","Required"]
["",null,{"$f":"IF('TSA Input'!J1454=\"\",\"\",IF(OR('TSA Input'!J1454=\"Yes\",'TSA Input'!J1454=\"Contingent\"),'TSA Input'!B1454,\"Ineligible\"))","v":""},{"$f":"IF('TSA Input'!J1454=\"\",\"\",IF(OR('TSA Input'!J1454=\"Yes\",'TSA Input'!J1454=\"Contingent\"),'TSA Input'!I1454,\"\"))","v":""},{"$f":"IF('TSA Input'!J1454=\"\",\"\",IF(OR('TSA Input'!J1454=\"Yes\",'TSA Input'!J1454=\"Contingent\"),'TSA Input'!C1454,\"\"))","v":""},{"$f":"IF('TSA Input'!J1454=\"\",\"\",IF(OR('TSA Input'!J1454=\"Yes\",'TSA Input'!J1454=\"Contingent\"),'TSA Input'!D1454,\"\"))","v":""},{"$f":"IF('TSA Input'!J1454=\"\",\"\",IF(OR('TSA Input'!J1454=\"Yes\",'TSA Input'!J1454=\"Contingent\"),'TSA Input'!G1454,\"\"))","v":""},{"$f":"IF('TSA Input'!J1454=\"\",\"\",IF(OR('TSA Input'!J1454=\"Yes\",'TSA Input'!J1454=\"Contingent\"),'TSA Input'!F1454,\"\"))","v":""},"",{"$f":"IF('TSA Input'!J1454=\"\",\"\",IF(OR('TSA Input'!J1454=\"Yes\",'TSA Input'!J1454=\"Contingent\"),'TSA Input'!D1454,\"\"))","v":""},{"$f":"IF('TSA Input'!J1454=\"\",\"\",IF(OR('TSA Input'!J1454=\"Yes\",'TSA Input'!J1454=\"Contingent\"),'TSA Input'!G1454,\"\"))","v":""},{"$f":"IF('TSA Input'!J1454=\"\",\"\",IF(OR('TSA Input'!J1454=\"Yes\",'TSA Input'!J1454=\"Contingent\"),'TSA Input'!F1454,\"\"))","v":""},"","Required","Required"]
["",null,{"$f":"IF('TSA Input'!J1455=\"\",\"\",IF(OR('TSA Input'!J1455=\"Yes\",'TSA Input'!J1455=\"Contingent\"),'TSA Input'!B1455,\"Ineligible\"))","v":""},{"$f":"IF('TSA Input'!J1455=\"\",\"\",IF(OR('TSA Input'!J1455=\"Yes\",'TSA Input'!J1455=\"Contingent\"),'TSA Input'!I1455,\"\"))","v":""},{"$f":"IF('TSA Input'!J1455=\"\",\"\",IF(OR('TSA Input'!J1455=\"Yes\",'TSA Input'!J1455=\"Contingent\"),'TSA Input'!C1455,\"\"))","v":""},{"$f":"IF('TSA Input'!J1455=\"\",\"\",IF(OR('TSA Input'!J1455=\"Yes\",'TSA Input'!J1455=\"Contingent\"),'TSA Input'!D1455,\"\"))","v":""},{"$f":"IF('TSA Input'!J1455=\"\",\"\",IF(OR('TSA Input'!J1455=\"Yes\",'TSA Input'!J1455=\"Contingent\"),'TSA Input'!G1455,\"\"))","v":""},{"$f":"IF('TSA Input'!J1455=\"\",\"\",IF(OR('TSA Input'!J1455=\"Yes\",'TSA Input'!J1455=\"Contingent\"),'TSA Input'!F1455,\"\"))","v":""},"",{"$f":"IF('TSA Input'!J1455=\"\",\"\",IF(OR('TSA Input'!J1455=\"Yes\",'TSA Input'!J1455=\"Contingent\"),'TSA Input'!D1455,\"\"))","v":""},{"$f":"IF('TSA Input'!J1455=\"\",\"\",IF(OR('TSA Input'!J1455=\"Yes\",'TSA Input'!J1455=\"Contingent\"),'TSA Input'!G1455,\"\"))","v":""},{"$f":"IF('TSA Input'!J1455=\"\",\"\",IF(OR('TSA Input'!J1455=\"Yes\",'TSA Input'!J1455=\"Contingent\"),'TSA Input'!F1455,\"\"))","v":""},"","Required","Required"]
["",null,{"$f":"IF('TSA Input'!J1456=\"\",\"\",IF(OR('TSA Input'!J1456=\"Yes\",'TSA Input'!J1456=\"Contingent\"),'TSA Input'!B1456,\"Ineligible\"))","v":""},{"$f":"IF('TSA Input'!J1456=\"\",\"\",IF(OR('TSA Input'!J1456=\"Yes\",'TSA Input'!J1456=\"Contingent\"),'TSA Input'!I1456,\"\"))","v":""},{"$f":"IF('TSA Input'!J1456=\"\",\"\",IF(OR('TSA Input'!J1456=\"Yes\",'TSA Input'!J1456=\"Contingent\"),'TSA Input'!C1456,\"\"))","v":""},{"$f":"IF('TSA Input'!J1456=\"\",\"\",IF(OR('TSA Input'!J1456=\"Yes\",'TSA Input'!J1456=\"Contingent\"),'TSA Input'!D1456,\"\"))","v":""},{"$f":"IF('TSA Input'!J1456=\"\",\"\",IF(OR('TSA Input'!J1456=\"Yes\",'TSA Input'!J1456=\"Contingent\"),'TSA Input'!G1456,\"\"))","v":""},{"$f":"IF('TSA Input'!J1456=\"\",\"\",IF(OR('TSA Input'!J1456=\"Yes\",'TSA Input'!J1456=\"Contingent\"),'TSA Input'!F1456,\"\"))","v":""},"",{"$f":"IF('TSA Input'!J1456=\"\",\"\",IF(OR('TSA Input'!J1456=\"Yes\",'TSA Input'!J1456=\"Contingent\"),'TSA Input'!D1456,\"\"))","v":""},{"$f":"IF('TSA Input'!J1456=\"\",\"\",IF(OR('TSA Input'!J1456=\"Yes\",'TSA Input'!J1456=\"Contingent\"),'TSA Input'!G1456,\"\"))","v":""},{"$f":"IF('TSA Input'!J1456=\"\",\"\",IF(OR('TSA Input'!J1456=\"Yes\",'TSA Input'!J1456=\"Contingent\"),'TSA Input'!F1456,\"\"))","v":""},"","Required","Required"]
["",null,{"$f":"IF('TSA Input'!J1457=\"\",\"\",IF(OR('TSA Input'!J1457=\"Yes\",'TSA Input'!J1457=\"Contingent\"),'TSA Input'!B1457,\"Ineligible\"))","v":""},{"$f":"IF('TSA Input'!J1457=\"\",\"\",IF(OR('TSA Input'!J1457=\"Yes\",'TSA Input'!J1457=\"Contingent\"),'TSA Input'!I1457,\"\"))","v":""},{"$f":"IF('TSA Input'!J1457=\"\",\"\",IF(OR('TSA Input'!J1457=\"Yes\",'TSA Input'!J1457=\"Contingent\"),'TSA Input'!C1457,\"\"))","v":""},{"$f":"IF('TSA Input'!J1457=\"\",\"\",IF(OR('TSA Input'!J1457=\"Yes\",'TSA Input'!J1457=\"Contingent\"),'TSA Input'!D1457,\"\"))","v":""},{"$f":"IF('TSA Input'!J1457=\"\",\"\",IF(OR('TSA Input'!J1457=\"Yes\",'TSA Input'!J1457=\"Contingent\"),'TSA Input'!G1457,\"\"))","v":""},{"$f":"IF('TSA Input'!J1457=\"\",\"\",IF(OR('TSA Input'!J1457=\"Yes\",'TSA Input'!J1457=\"Contingent\"),'TSA Input'!F1457,\"\"))","v":""},"",{"$f":"IF('TSA Input'!J1457=\"\",\"\",IF(OR('TSA Input'!J1457=\"Yes\",'TSA Input'!J1457=\"Contingent\"),'TSA Input'!D1457,\"\"))","v":""},{"$f":"IF('TSA Input'!J1457=\"\",\"\",IF(OR('TSA Input'!J1457=\"Yes\",'TSA Input'!J1457=\"Contingent\"),'TSA Input'!G1457,\"\"))","v":""},{"$f":"IF('TSA Input'!J1457=\"\",\"\",IF(OR('TSA Input'!J1457=\"Yes\",'TSA Input'!J1457=\"Contingent\"),'TSA Input'!F1457,\"\"))","v":""},"","Required","Required"]
["",null,{"$f":"IF('TSA Input'!J1458=\"\",\"\",IF(OR('TSA Input'!J1458=\"Yes\",'TSA Input'!J1458=\"Contingent\"),'TSA Input'!B1458,\"Ineligible\"))","v":""},{"$f":"IF('TSA Input'!J1458=\"\",\"\",IF(OR('TSA Input'!J1458=\"Yes\",'TSA Input'!J1458=\"Contingent\"),'TSA Input'!I1458,\"\"))","v":""},{"$f":"IF('TSA Input'!J1458=\"\",\"\",IF(OR('TSA Input'!J1458=\"Yes\",'TSA Input'!J1458=\"Contingent\"),'TSA Input'!C1458,\"\"))","v":""},{"$f":"IF('TSA Input'!J1458=\"\",\"\",IF(OR('TSA Input'!J1458=\"Yes\",'TSA Input'!J1458=\"Contingent\"),'TSA Input'!D1458,\"\"))","v":""},{"$f":"IF('TSA Input'!J1458=\"\",\"\",IF(OR('TSA Input'!J1458=\"Yes\",'TSA Input'!J1458=\"Contingent\"),'TSA Input'!G1458,\"\"))","v":""},{"$f":"IF('TSA Input'!J1458=\"\",\"\",IF(OR('TSA Input'!J1458=\"Yes\",'TSA Input'!J1458=\"Contingent\"),'TSA Input'!F1458,\"\"))","v":""},"",{"$f":"IF('TSA Input'!J1458=\"\",\"\",IF(OR('TSA Input'!J1458=\"Yes\",'TSA Input'!J1458=\"Contingent\"),'TSA Input'!D1458,\"\"))","v":""},{"$f":"IF('TSA Input'!J1458=\"\",\"\",IF(OR('TSA Input'!J1458=\"Yes\",'TSA Input'!J1458=\"Contingent\"),'TSA Input'!G1458,\"\"))","v":""},{"$f":"IF('TSA Input'!J1458=\"\",\"\",IF(OR('TSA Input'!J1458=\"Yes\",'TSA Input'!J1458=\"Contingent\"),'TSA Input'!F1458,\"\"))","v":""},"","Required","Required"]
["",null,{"$f":"IF('TSA Input'!J1459=\"\",\"\",IF(OR('TSA Input'!J1459=\"Yes\",'TSA Input'!J1459=\"Contingent\"),'TSA Input'!B1459,\"Ineligible\"))","v":""},{"$f":"IF('TSA Input'!J1459=\"\",\"\",IF(OR('TSA Input'!J1459=\"Yes\",'TSA Input'!J1459=\"Contingent\"),'TSA Input'!I1459,\"\"))","v":""},{"$f":"IF('TSA Input'!J1459=\"\",\"\",IF(OR('TSA Input'!J1459=\"Yes\",'TSA Input'!J1459=\"Contingent\"),'TSA Input'!C1459,\"\"))","v":""},{"$f":"IF('TSA Input'!J1459=\"\",\"\",IF(OR('TSA Input'!J1459=\"Yes\",'TSA Input'!J1459=\"Contingent\"),'TSA Input'!D1459,\"\"))","v":""},{"$f":"IF('TSA Input'!J1459=\"\",\"\",IF(OR('TSA Input'!J1459=\"Yes\",'TSA Input'!J1459=\"Contingent\"),'TSA Input'!G1459,\"\"))","v":""},{"$f":"IF('TSA Input'!J1459=\"\",\"\",IF(OR('TSA Input'!J1459=\"Yes\",'TSA Input'!J1459=\"Contingent\"),'TSA Input'!F1459,\"\"))","v":""},"",{"$f":"IF('TSA Input'!J1459=\"\",\"\",IF(OR('TSA Input'!J1459=\"Yes\",'TSA Input'!J1459=\"Contingent\"),'TSA Input'!D1459,\"\"))","v":""},{"$f":"IF('TSA Input'!J1459=\"\",\"\",IF(OR('TSA Input'!J1459=\"Yes\",'TSA Input'!J1459=\"Contingent\"),'TSA Input'!G1459,\"\"))","v":""},{"$f":"IF('TSA Input'!J1459=\"\",\"\",IF(OR('TSA Input'!J1459=\"Yes\",'TSA Input'!J1459=\"Contingent\"),'TSA Input'!F1459,\"\"))","v":""},"","Required","Required"]
["",null,{"$f":"IF('TSA Input'!J1460=\"\",\"\",IF(OR('TSA Input'!J1460=\"Yes\",'TSA Input'!J1460=\"Contingent\"),'TSA Input'!B1460,\"Ineligible\"))","v":""},{"$f":"IF('TSA Input'!J1460=\"\",\"\",IF(OR('TSA Input'!J1460=\"Yes\",'TSA Input'!J1460=\"Contingent\"),'TSA Input'!I1460,\"\"))","v":""},{"$f":"IF('TSA Input'!J1460=\"\",\"\",IF(OR('TSA Input'!J1460=\"Yes\",'TSA Input'!J1460=\"Contingent\"),'TSA Input'!C1460,\"\"))","v":""},{"$f":"IF('TSA Input'!J1460=\"\",\"\",IF(OR('TSA Input'!J1460=\"Yes\",'TSA Input'!J1460=\"Contingent\"),'TSA Input'!D1460,\"\"))","v":""},{"$f":"IF('TSA Input'!J1460=\"\",\"\",IF(OR('TSA Input'!J1460=\"Yes\",'TSA Input'!J1460=\"Contingent\"),'TSA Input'!G1460,\"\"))","v":""},{"$f":"IF('TSA Input'!J1460=\"\",\"\",IF(OR('TSA Input'!J1460=\"Yes\",'TSA Input'!J1460=\"Contingent\"),'TSA Input'!F1460,\"\"))","v":""},"",{"$f":"IF('TSA Input'!J1460=\"\",\"\",IF(OR('TSA Input'!J1460=\"Yes\",'TSA Input'!J1460=\"Contingent\"),'TSA Input'!D1460,\"\"))","v":""},{"$f":"IF('TSA Input'!J1460=\"\",\"\",IF(OR('TSA Input'!J1460=\"Yes\",'TSA Input'!J1460=\"Contingent\"),'TSA Input'!G1460,\"\"))","v":""},{"$f":"IF('TSA Input'!J1460=\"\",\"\",IF(OR('TSA Input'!J1460=\"Yes\",'TSA Input'!J1460=\"Contingent\"),'TSA Input'!F1460,\"\"))","v":""},"","Required","Required"]
["",null,{"$f":"IF('TSA Input'!J1461=\"\",\"\",IF(OR('TSA Input'!J1461=\"Yes\",'TSA Input'!J1461=\"Contingent\"),'TSA Input'!B1461,\"Ineligible\"))","v":""},{"$f":"IF('TSA Input'!J1461=\"\",\"\",IF(OR('TSA Input'!J1461=\"Yes\",'TSA Input'!J1461=\"Contingent\"),'TSA Input'!I1461,\"\"))","v":""},{"$f":"IF('TSA Input'!J1461=\"\",\"\",IF(OR('TSA Input'!J1461=\"Yes\",'TSA Input'!J1461=\"Contingent\"),'TSA Input'!C1461,\"\"))","v":""},{"$f":"IF('TSA Input'!J1461=\"\",\"\",IF(OR('TSA Input'!J1461=\"Yes\",'TSA Input'!J1461=\"Contingent\"),'TSA Input'!D1461,\"\"))","v":""},{"$f":"IF('TSA Input'!J1461=\"\",\"\",IF(OR('TSA Input'!J1461=\"Yes\",'TSA Input'!J1461=\"Contingent\"),'TSA Input'!G1461,\"\"))","v":""},{"$f":"IF('TSA Input'!J1461=\"\",\"\",IF(OR('TSA Input'!J1461=\"Yes\",'TSA Input'!J1461=\"Contingent\"),'TSA Input'!F1461,\"\"))","v":""},"",{"$f":"IF('TSA Input'!J1461=\"\",\"\",IF(OR('TSA Input'!J1461=\"Yes\",'TSA Input'!J1461=\"Contingent\"),'TSA Input'!D1461,\"\"))","v":""},{"$f":"IF('TSA Input'!J1461=\"\",\"\",IF(OR('TSA Input'!J1461=\"Yes\",'TSA Input'!J1461=\"Contingent\"),'TSA Input'!G1461,\"\"))","v":""},{"$f":"IF('TSA Input'!J1461=\"\",\"\",IF(OR('TSA Input'!J1461=\"Yes\",'TSA Input'!J1461=\"Contingent\"),'TSA Input'!F1461,\"\"))","v":""},"","Required","Required"]
["",null,{"$f":"IF('TSA Input'!J1462=\"\",\"\",IF(OR('TSA Input'!J1462=\"Yes\",'TSA Input'!J1462=\"Contingent\"),'TSA Input'!B1462,\"Ineligible\"))","v":""},{"$f":"IF('TSA Input'!J1462=\"\",\"\",IF(OR('TSA Input'!J1462=\"Yes\",'TSA Input'!J1462=\"Contingent\"),'TSA Input'!I1462,\"\"))","v":""},{"$f":"IF('TSA Input'!J1462=\"\",\"\",IF(OR('TSA Input'!J1462=\"Yes\",'TSA Input'!J1462=\"Contingent\"),'TSA Input'!C1462,\"\"))","v":""},{"$f":"IF('TSA Input'!J1462=\"\",\"\",IF(OR('TSA Input'!J1462=\"Yes\",'TSA Input'!J1462=\"Contingent\"),'TSA Input'!D1462,\"\"))","v":""},{"$f":"IF('TSA Input'!J1462=\"\",\"\",IF(OR('TSA Input'!J1462=\"Yes\",'TSA Input'!J1462=\"Contingent\"),'TSA Input'!G1462,\"\"))","v":""},{"$f":"IF('TSA Input'!J1462=\"\",\"\",IF(OR('TSA Input'!J1462=\"Yes\",'TSA Input'!J1462=\"Contingent\"),'TSA Input'!F1462,\"\"))","v":""},"",{"$f":"IF('TSA Input'!J1462=\"\",\"\",IF(OR('TSA Input'!J1462=\"Yes\",'TSA Input'!J1462=\"Contingent\"),'TSA Input'!D1462,\"\"))","v":""},{"$f":"IF('TSA Input'!J1462=\"\",\"\",IF(OR('TSA Input'!J1462=\"Yes\",'TSA Input'!J1462=\"Contingent\"),'TSA Input'!G1462,\"\"))","v":""},{"$f":"IF('TSA Input'!J1462=\"\",\"\",IF(OR('TSA Input'!J1462=\"Yes\",'TSA Input'!J1462=\"Contingent\"),'TSA Input'!F1462,\"\"))","v":""},"","Required","Required"]
["",null,{"$f":"IF('TSA Input'!J1463=\"\",\"\",IF(OR('TSA Input'!J1463=\"Yes\",'TSA Input'!J1463=\"Contingent\"),'TSA Input'!B1463,\"Ineligible\"))","v":""},{"$f":"IF('TSA Input'!J1463=\"\",\"\",IF(OR('TSA Input'!J1463=\"Yes\",'TSA Input'!J1463=\"Contingent\"),'TSA Input'!I1463,\"\"))","v":""},{"$f":"IF('TSA Input'!J1463=\"\",\"\",IF(OR('TSA Input'!J1463=\"Yes\",'TSA Input'!J1463=\"Contingent\"),'TSA Input'!C1463,\"\"))","v":""},{"$f":"IF('TSA Input'!J1463=\"\",\"\",IF(OR('TSA Input'!J1463=\"Yes\",'TSA Input'!J1463=\"Contingent\"),'TSA Input'!D1463,\"\"))","v":""},{"$f":"IF('TSA Input'!J1463=\"\",\"\",IF(OR('TSA Input'!J1463=\"Yes\",'TSA Input'!J1463=\"Contingent\"),'TSA Input'!G1463,\"\"))","v":""},{"$f":"IF('TSA Input'!J1463=\"\",\"\",IF(OR('TSA Input'!J1463=\"Yes\",'TSA Input'!J1463=\"Contingent\"),'TSA Input'!F1463,\"\"))","v":""},"",{"$f":"IF('TSA Input'!J1463=\"\",\"\",IF(OR('TSA Input'!J1463=\"Yes\",'TSA Input'!J1463=\"Contingent\"),'TSA Input'!D1463,\"\"))","v":""},{"$f":"IF('TSA Input'!J1463=\"\",\"\",IF(OR('TSA Input'!J1463=\"Yes\",'TSA Input'!J1463=\"Contingent\"),'TSA Input'!G1463,\"\"))","v":""},{"$f":"IF('TSA Input'!J1463=\"\",\"\",IF(OR('TSA Input'!J1463=\"Yes\",'TSA Input'!J1463=\"Contingent\"),'TSA Input'!F1463,\"\"))","v":""},"","Required","Required"]
["",null,{"$f":"IF('TSA Input'!J1464=\"\",\"\",IF(OR('TSA Input'!J1464=\"Yes\",'TSA Input'!J1464=\"Contingent\"),'TSA Input'!B1464,\"Ineligible\"))","v":""},{"$f":"IF('TSA Input'!J1464=\"\",\"\",IF(OR('TSA Input'!J1464=\"Yes\",'TSA Input'!J1464=\"Contingent\"),'TSA Input'!I1464,\"\"))","v":""},{"$f":"IF('TSA Input'!J1464=\"\",\"\",IF(OR('TSA Input'!J1464=\"Yes\",'TSA Input'!J1464=\"Contingent\"),'TSA Input'!C1464,\"\"))","v":""},{"$f":"IF('TSA Input'!J1464=\"\",\"\",IF(OR('TSA Input'!J1464=\"Yes\",'TSA Input'!J1464=\"Contingent\"),'TSA Input'!D1464,\"\"))","v":""},{"$f":"IF('TSA Input'!J1464=\"\",\"\",IF(OR('TSA Input'!J1464=\"Yes\",'TSA Input'!J1464=\"Contingent\"),'TSA Input'!G1464,\"\"))","v":""},{"$f":"IF('TSA Input'!J1464=\"\",\"\",IF(OR('TSA Input'!J1464=\"Yes\",'TSA Input'!J1464=\"Contingent\"),'TSA Input'!F1464,\"\"))","v":""},"",{"$f":"IF('TSA Input'!J1464=\"\",\"\",IF(OR('TSA Input'!J1464=\"Yes\",'TSA Input'!J1464=\"Contingent\"),'TSA Input'!D1464,\"\"))","v":""},{"$f":"IF('TSA Input'!J1464=\"\",\"\",IF(OR('TSA Input'!J1464=\"Yes\",'TSA Input'!J1464=\"Contingent\"),'TSA Input'!G1464,\"\"))","v":""},{"$f":"IF('TSA Input'!J1464=\"\",\"\",IF(OR('TSA Input'!J1464=\"Yes\",'TSA Input'!J1464=\"Contingent\"),'TSA Input'!F1464,\"\"))","v":""},"","Required","Required"]
["",null,{"$f":"IF('TSA Input'!J1465=\"\",\"\",IF(OR('TSA Input'!J1465=\"Yes\",'TSA Input'!J1465=\"Contingent\"),'TSA Input'!B1465,\"Ineligible\"))","v":""},{"$f":"IF('TSA Input'!J1465=\"\",\"\",IF(OR('TSA Input'!J1465=\"Yes\",'TSA Input'!J1465=\"Contingent\"),'TSA Input'!I1465,\"\"))","v":""},{"$f":"IF('TSA Input'!J1465=\"\",\"\",IF(OR('TSA Input'!J1465=\"Yes\",'TSA Input'!J1465=\"Contingent\"),'TSA Input'!C1465,\"\"))","v":""},{"$f":"IF('TSA Input'!J1465=\"\",\"\",IF(OR('TSA Input'!J1465=\"Yes\",'TSA Input'!J1465=\"Contingent\"),'TSA Input'!D1465,\"\"))","v":""},{"$f":"IF('TSA Input'!J1465=\"\",\"\",IF(OR('TSA Input'!J1465=\"Yes\",'TSA Input'!J1465=\"Contingent\"),'TSA Input'!G1465,\"\"))","v":""},{"$f":"IF('TSA Input'!J1465=\"\",\"\",IF(OR('TSA Input'!J1465=\"Yes\",'TSA Input'!J1465=\"Contingent\"),'TSA Input'!F1465,\"\"))","v":""},"",{"$f":"IF('TSA Input'!J1465=\"\",\"\",IF(OR('TSA Input'!J1465=\"Yes\",'TSA Input'!J1465=\"Contingent\"),'TSA Input'!D1465,\"\"))","v":""},{"$f":"IF('TSA Input'!J1465=\"\",\"\",IF(OR('TSA Input'!J1465=\"Yes\",'TSA Input'!J1465=\"Contingent\"),'TSA Input'!G1465,\"\"))","v":""},{"$f":"IF('TSA Input'!J1465=\"\",\"\",IF(OR('TSA Input'!J1465=\"Yes\",'TSA Input'!J1465=\"Contingent\"),'TSA Input'!F1465,\"\"))","v":""},"","Required","Required"]
["",null,{"$f":"IF('TSA Input'!J1466=\"\",\"\",IF(OR('TSA Input'!J1466=\"Yes\",'TSA Input'!J1466=\"Contingent\"),'TSA Input'!B1466,\"Ineligible\"))","v":""},{"$f":"IF('TSA Input'!J1466=\"\",\"\",IF(OR('TSA Input'!J1466=\"Yes\",'TSA Input'!J1466=\"Contingent\"),'TSA Input'!I1466,\"\"))","v":""},{"$f":"IF('TSA Input'!J1466=\"\",\"\",IF(OR('TSA Input'!J1466=\"Yes\",'TSA Input'!J1466=\"Contingent\"),'TSA Input'!C1466,\"\"))","v":""},{"$f":"IF('TSA Input'!J1466=\"\",\"\",IF(OR('TSA Input'!J1466=\"Yes\",'TSA Input'!J1466=\"Contingent\"),'TSA Input'!D1466,\"\"))","v":""},{"$f":"IF('TSA Input'!J1466=\"\",\"\",IF(OR('TSA Input'!J1466=\"Yes\",'TSA Input'!J1466=\"Contingent\"),'TSA Input'!G1466,\"\"))","v":""},{"$f":"IF('TSA Input'!J1466=\"\",\"\",IF(OR('TSA Input'!J1466=\"Yes\",'TSA Input'!J1466=\"Contingent\"),'TSA Input'!F1466,\"\"))","v":""},"",{"$f":"IF('TSA Input'!J1466=\"\",\"\",IF(OR('TSA Input'!J1466=\"Yes\",'TSA Input'!J1466=\"Contingent\"),'TSA Input'!D1466,\"\"))","v":""},{"$f":"IF('TSA Input'!J1466=\"\",\"\",IF(OR('TSA Input'!J1466=\"Yes\",'TSA Input'!J1466=\"Contingent\"),'TSA Input'!G1466,\"\"))","v":""},{"$f":"IF('TSA Input'!J1466=\"\",\"\",IF(OR('TSA Input'!J1466=\"Yes\",'TSA Input'!J1466=\"Contingent\"),'TSA Input'!F1466,\"\"))","v":""},"","Required","Required"]
["",null,{"$f":"IF('TSA Input'!J1467=\"\",\"\",IF(OR('TSA Input'!J1467=\"Yes\",'TSA Input'!J1467=\"Contingent\"),'TSA Input'!B1467,\"Ineligible\"))","v":""},{"$f":"IF('TSA Input'!J1467=\"\",\"\",IF(OR('TSA Input'!J1467=\"Yes\",'TSA Input'!J1467=\"Contingent\"),'TSA Input'!I1467,\"\"))","v":""},{"$f":"IF('TSA Input'!J1467=\"\",\"\",IF(OR('TSA Input'!J1467=\"Yes\",'TSA Input'!J1467=\"Contingent\"),'TSA Input'!C1467,\"\"))","v":""},{"$f":"IF('TSA Input'!J1467=\"\",\"\",IF(OR('TSA Input'!J1467=\"Yes\",'TSA Input'!J1467=\"Contingent\"),'TSA Input'!D1467,\"\"))","v":""},{"$f":"IF('TSA Input'!J1467=\"\",\"\",IF(OR('TSA Input'!J1467=\"Yes\",'TSA Input'!J1467=\"Contingent\"),'TSA Input'!G1467,\"\"))","v":""},{"$f":"IF('TSA Input'!J1467=\"\",\"\",IF(OR('TSA Input'!J1467=\"Yes\",'TSA Input'!J1467=\"Contingent\"),'TSA Input'!F1467,\"\"))","v":""},"",{"$f":"IF('TSA Input'!J1467=\"\",\"\",IF(OR('TSA Input'!J1467=\"Yes\",'TSA Input'!J1467=\"Contingent\"),'TSA Input'!D1467,\"\"))","v":""},{"$f":"IF('TSA Input'!J1467=\"\",\"\",IF(OR('TSA Input'!J1467=\"Yes\",'TSA Input'!J1467=\"Contingent\"),'TSA Input'!G1467,\"\"))","v":""},{"$f":"IF('TSA Input'!J1467=\"\",\"\",IF(OR('TSA Input'!J1467=\"Yes\",'TSA Input'!J1467=\"Contingent\"),'TSA Input'!F1467,\"\"))","v":""},"","Required","Required"]
["",null,{"$f":"IF('TSA Input'!J1468=\"\",\"\",IF(OR('TSA Input'!J1468=\"Yes\",'TSA Input'!J1468=\"Contingent\"),'TSA Input'!B1468,\"Ineligible\"))","v":""},{"$f":"IF('TSA Input'!J1468=\"\",\"\",IF(OR('TSA Input'!J1468=\"Yes\",'TSA Input'!J1468=\"Contingent\"),'TSA Input'!I1468,\"\"))","v":""},{"$f":"IF('TSA Input'!J1468=\"\",\"\",IF(OR('TSA Input'!J1468=\"Yes\",'TSA Input'!J1468=\"Contingent\"),'TSA Input'!C1468,\"\"))","v":""},{"$f":"IF('TSA Input'!J1468=\"\",\"\",IF(OR('TSA Input'!J1468=\"Yes\",'TSA Input'!J1468=\"Contingent\"),'TSA Input'!D1468,\"\"))","v":""},{"$f":"IF('TSA Input'!J1468=\"\",\"\",IF(OR('TSA Input'!J1468=\"Yes\",'TSA Input'!J1468=\"Contingent\"),'TSA Input'!G1468,\"\"))","v":""},{"$f":"IF('TSA Input'!J1468=\"\",\"\",IF(OR('TSA Input'!J1468=\"Yes\",'TSA Input'!J1468=\"Contingent\"),'TSA Input'!F1468,\"\"))","v":""},"",{"$f":"IF('TSA Input'!J1468=\"\",\"\",IF(OR('TSA Input'!J1468=\"Yes\",'TSA Input'!J1468=\"Contingent\"),'TSA Input'!D1468,\"\"))","v":""},{"$f":"IF('TSA Input'!J1468=\"\",\"\",IF(OR('TSA Input'!J1468=\"Yes\",'TSA Input'!J1468=\"Contingent\"),'TSA Input'!G1468,\"\"))","v":""},{"$f":"IF('TSA Input'!J1468=\"\",\"\",IF(OR('TSA Input'!J1468=\"Yes\",'TSA Input'!J1468=\"Contingent\"),'TSA Input'!F1468,\"\"))","v":""},"","Required","Required"]
["",null,{"$f":"IF('TSA Input'!J1469=\"\",\"\",IF(OR('TSA Input'!J1469=\"Yes\",'TSA Input'!J1469=\"Contingent\"),'TSA Input'!B1469,\"Ineligible\"))","v":""},{"$f":"IF('TSA Input'!J1469=\"\",\"\",IF(OR('TSA Input'!J1469=\"Yes\",'TSA Input'!J1469=\"Contingent\"),'TSA Input'!I1469,\"\"))","v":""},{"$f":"IF('TSA Input'!J1469=\"\",\"\",IF(OR('TSA Input'!J1469=\"Yes\",'TSA Input'!J1469=\"Contingent\"),'TSA Input'!C1469,\"\"))","v":""},{"$f":"IF('TSA Input'!J1469=\"\",\"\",IF(OR('TSA Input'!J1469=\"Yes\",'TSA Input'!J1469=\"Contingent\"),'TSA Input'!D1469,\"\"))","v":""},{"$f":"IF('TSA Input'!J1469=\"\",\"\",IF(OR('TSA Input'!J1469=\"Yes\",'TSA Input'!J1469=\"Contingent\"),'TSA Input'!G1469,\"\"))","v":""},{"$f":"IF('TSA Input'!J1469=\"\",\"\",IF(OR('TSA Input'!J1469=\"Yes\",'TSA Input'!J1469=\"Contingent\"),'TSA Input'!F1469,\"\"))","v":""},"",{"$f":"IF('TSA Input'!J1469=\"\",\"\",IF(OR('TSA Input'!J1469=\"Yes\",'TSA Input'!J1469=\"Contingent\"),'TSA Input'!D1469,\"\"))","v":""},{"$f":"IF('TSA Input'!J1469=\"\",\"\",IF(OR('TSA Input'!J1469=\"Yes\",'TSA Input'!J1469=\"Contingent\"),'TSA Input'!G1469,\"\"))","v":""},{"$f":"IF('TSA Input'!J1469=\"\",\"\",IF(OR('TSA Input'!J1469=\"Yes\",'TSA Input'!J1469=\"Contingent\"),'TSA Input'!F1469,\"\"))","v":""},"","Required","Required"]
["",null,{"$f":"IF('TSA Input'!J1470=\"\",\"\",IF(OR('TSA Input'!J1470=\"Yes\",'TSA Input'!J1470=\"Contingent\"),'TSA Input'!B1470,\"Ineligible\"))","v":""},{"$f":"IF('TSA Input'!J1470=\"\",\"\",IF(OR('TSA Input'!J1470=\"Yes\",'TSA Input'!J1470=\"Contingent\"),'TSA Input'!I1470,\"\"))","v":""},{"$f":"IF('TSA Input'!J1470=\"\",\"\",IF(OR('TSA Input'!J1470=\"Yes\",'TSA Input'!J1470=\"Contingent\"),'TSA Input'!C1470,\"\"))","v":""},{"$f":"IF('TSA Input'!J1470=\"\",\"\",IF(OR('TSA Input'!J1470=\"Yes\",'TSA Input'!J1470=\"Contingent\"),'TSA Input'!D1470,\"\"))","v":""},{"$f":"IF('TSA Input'!J1470=\"\",\"\",IF(OR('TSA Input'!J1470=\"Yes\",'TSA Input'!J1470=\"Contingent\"),'TSA Input'!G1470,\"\"))","v":""},{"$f":"IF('TSA Input'!J1470=\"\",\"\",IF(OR('TSA Input'!J1470=\"Yes\",'TSA Input'!J1470=\"Contingent\"),'TSA Input'!F1470,\"\"))","v":""},"",{"$f":"IF('TSA Input'!J1470=\"\",\"\",IF(OR('TSA Input'!J1470=\"Yes\",'TSA Input'!J1470=\"Contingent\"),'TSA Input'!D1470,\"\"))","v":""},{"$f":"IF('TSA Input'!J1470=\"\",\"\",IF(OR('TSA Input'!J1470=\"Yes\",'TSA Input'!J1470=\"Contingent\"),'TSA Input'!G1470,\"\"))","v":""},{"$f":"IF('TSA Input'!J1470=\"\",\"\",IF(OR('TSA Input'!J1470=\"Yes\",'TSA Input'!J1470=\"Contingent\"),'TSA Input'!F1470,\"\"))","v":""},"","Required","Required"]
["",null,{"$f":"IF('TSA Input'!J1471=\"\",\"\",IF(OR('TSA Input'!J1471=\"Yes\",'TSA Input'!J1471=\"Contingent\"),'TSA Input'!B1471,\"Ineligible\"))","v":""},{"$f":"IF('TSA Input'!J1471=\"\",\"\",IF(OR('TSA Input'!J1471=\"Yes\",'TSA Input'!J1471=\"Contingent\"),'TSA Input'!I1471,\"\"))","v":""},{"$f":"IF('TSA Input'!J1471=\"\",\"\",IF(OR('TSA Input'!J1471=\"Yes\",'TSA Input'!J1471=\"Contingent\"),'TSA Input'!C1471,\"\"))","v":""},{"$f":"IF('TSA Input'!J1471=\"\",\"\",IF(OR('TSA Input'!J1471=\"Yes\",'TSA Input'!J1471=\"Contingent\"),'TSA Input'!D1471,\"\"))","v":""},{"$f":"IF('TSA Input'!J1471=\"\",\"\",IF(OR('TSA Input'!J1471=\"Yes\",'TSA Input'!J1471=\"Contingent\"),'TSA Input'!G1471,\"\"))","v":""},{"$f":"IF('TSA Input'!J1471=\"\",\"\",IF(OR('TSA Input'!J1471=\"Yes\",'TSA Input'!J1471=\"Contingent\"),'TSA Input'!F1471,\"\"))","v":""},"",{"$f":"IF('TSA Input'!J1471=\"\",\"\",IF(OR('TSA Input'!J1471=\"Yes\",'TSA Input'!J1471=\"Contingent\"),'TSA Input'!D1471,\"\"))","v":""},{"$f":"IF('TSA Input'!J1471=\"\",\"\",IF(OR('TSA Input'!J1471=\"Yes\",'TSA Input'!J1471=\"Contingent\"),'TSA Input'!G1471,\"\"))","v":""},{"$f":"IF('TSA Input'!J1471=\"\",\"\",IF(OR('TSA Input'!J1471=\"Yes\",'TSA Input'!J1471=\"Contingent\"),'TSA Input'!F1471,\"\"))","v":""},"","Required","Required"]
["",null,{"$f":"IF('TSA Input'!J1472=\"\",\"\",IF(OR('TSA Input'!J1472=\"Yes\",'TSA Input'!J1472=\"Contingent\"),'TSA Input'!B1472,\"Ineligible\"))","v":""},{"$f":"IF('TSA Input'!J1472=\"\",\"\",IF(OR('TSA Input'!J1472=\"Yes\",'TSA Input'!J1472=\"Contingent\"),'TSA Input'!I1472,\"\"))","v":""},{"$f":"IF('TSA Input'!J1472=\"\",\"\",IF(OR('TSA Input'!J1472=\"Yes\",'TSA Input'!J1472=\"Contingent\"),'TSA Input'!C1472,\"\"))","v":""},{"$f":"IF('TSA Input'!J1472=\"\",\"\",IF(OR('TSA Input'!J1472=\"Yes\",'TSA Input'!J1472=\"Contingent\"),'TSA Input'!D1472,\"\"))","v":""},{"$f":"IF('TSA Input'!J1472=\"\",\"\",IF(OR('TSA Input'!J1472=\"Yes\",'TSA Input'!J1472=\"Contingent\"),'TSA Input'!G1472,\"\"))","v":""},{"$f":"IF('TSA Input'!J1472=\"\",\"\",IF(OR('TSA Input'!J1472=\"Yes\",'TSA Input'!J1472=\"Contingent\"),'TSA Input'!F1472,\"\"))","v":""},"",{"$f":"IF('TSA Input'!J1472=\"\",\"\",IF(OR('TSA Input'!J1472=\"Yes\",'TSA Input'!J1472=\"Contingent\"),'TSA Input'!D1472,\"\"))","v":""},{"$f":"IF('TSA Input'!J1472=\"\",\"\",IF(OR('TSA Input'!J1472=\"Yes\",'TSA Input'!J1472=\"Contingent\"),'TSA Input'!G1472,\"\"))","v":""},{"$f":"IF('TSA Input'!J1472=\"\",\"\",IF(OR('TSA Input'!J1472=\"Yes\",'TSA Input'!J1472=\"Contingent\"),'TSA Input'!F1472,\"\"))","v":""},"","Required","Required"]
["",null,{"$f":"IF('TSA Input'!J1473=\"\",\"\",IF(OR('TSA Input'!J1473=\"Yes\",'TSA Input'!J1473=\"Contingent\"),'TSA Input'!B1473,\"Ineligible\"))","v":""},{"$f":"IF('TSA Input'!J1473=\"\",\"\",IF(OR('TSA Input'!J1473=\"Yes\",'TSA Input'!J1473=\"Contingent\"),'TSA Input'!I1473,\"\"))","v":""},{"$f":"IF('TSA Input'!J1473=\"\",\"\",IF(OR('TSA Input'!J1473=\"Yes\",'TSA Input'!J1473=\"Contingent\"),'TSA Input'!C1473,\"\"))","v":""},{"$f":"IF('TSA Input'!J1473=\"\",\"\",IF(OR('TSA Input'!J1473=\"Yes\",'TSA Input'!J1473=\"Contingent\"),'TSA Input'!D1473,\"\"))","v":""},{"$f":"IF('TSA Input'!J1473=\"\",\"\",IF(OR('TSA Input'!J1473=\"Yes\",'TSA Input'!J1473=\"Contingent\"),'TSA Input'!G1473,\"\"))","v":""},{"$f":"IF('TSA Input'!J1473=\"\",\"\",IF(OR('TSA Input'!J1473=\"Yes\",'TSA Input'!J1473=\"Contingent\"),'TSA Input'!F1473,\"\"))","v":""},"",{"$f":"IF('TSA Input'!J1473=\"\",\"\",IF(OR('TSA Input'!J1473=\"Yes\",'TSA Input'!J1473=\"Contingent\"),'TSA Input'!D1473,\"\"))","v":""},{"$f":"IF('TSA Input'!J1473=\"\",\"\",IF(OR('TSA Input'!J1473=\"Yes\",'TSA Input'!J1473=\"Contingent\"),'TSA Input'!G1473,\"\"))","v":""},{"$f":"IF('TSA Input'!J1473=\"\",\"\",IF(OR('TSA Input'!J1473=\"Yes\",'TSA Input'!J1473=\"Contingent\"),'TSA Input'!F1473,\"\"))","v":""},"","Required","Required"]
["",null,{"$f":"IF('TSA Input'!J1474=\"\",\"\",IF(OR('TSA Input'!J1474=\"Yes\",'TSA Input'!J1474=\"Contingent\"),'TSA Input'!B1474,\"Ineligible\"))","v":""},{"$f":"IF('TSA Input'!J1474=\"\",\"\",IF(OR('TSA Input'!J1474=\"Yes\",'TSA Input'!J1474=\"Contingent\"),'TSA Input'!I1474,\"\"))","v":""},{"$f":"IF('TSA Input'!J1474=\"\",\"\",IF(OR('TSA Input'!J1474=\"Yes\",'TSA Input'!J1474=\"Contingent\"),'TSA Input'!C1474,\"\"))","v":""},{"$f":"IF('TSA Input'!J1474=\"\",\"\",IF(OR('TSA Input'!J1474=\"Yes\",'TSA Input'!J1474=\"Contingent\"),'TSA Input'!D1474,\"\"))","v":""},{"$f":"IF('TSA Input'!J1474=\"\",\"\",IF(OR('TSA Input'!J1474=\"Yes\",'TSA Input'!J1474=\"Contingent\"),'TSA Input'!G1474,\"\"))","v":""},{"$f":"IF('TSA Input'!J1474=\"\",\"\",IF(OR('TSA Input'!J1474=\"Yes\",'TSA Input'!J1474=\"Contingent\"),'TSA Input'!F1474,\"\"))","v":""},"",{"$f":"IF('TSA Input'!J1474=\"\",\"\",IF(OR('TSA Input'!J1474=\"Yes\",'TSA Input'!J1474=\"Contingent\"),'TSA Input'!D1474,\"\"))","v":""},{"$f":"IF('TSA Input'!J1474=\"\",\"\",IF(OR('TSA Input'!J1474=\"Yes\",'TSA Input'!J1474=\"Contingent\"),'TSA Input'!G1474,\"\"))","v":""},{"$f":"IF('TSA Input'!J1474=\"\",\"\",IF(OR('TSA Input'!J1474=\"Yes\",'TSA Input'!J1474=\"Contingent\"),'TSA Input'!F1474,\"\"))","v":""},"","Required","Required"]
["",null,{"$f":"IF('TSA Input'!J1475=\"\",\"\",IF(OR('TSA Input'!J1475=\"Yes\",'TSA Input'!J1475=\"Contingent\"),'TSA Input'!B1475,\"Ineligible\"))","v":""},{"$f":"IF('TSA Input'!J1475=\"\",\"\",IF(OR('TSA Input'!J1475=\"Yes\",'TSA Input'!J1475=\"Contingent\"),'TSA Input'!I1475,\"\"))","v":""},{"$f":"IF('TSA Input'!J1475=\"\",\"\",IF(OR('TSA Input'!J1475=\"Yes\",'TSA Input'!J1475=\"Contingent\"),'TSA Input'!C1475,\"\"))","v":""},{"$f":"IF('TSA Input'!J1475=\"\",\"\",IF(OR('TSA Input'!J1475=\"Yes\",'TSA Input'!J1475=\"Contingent\"),'TSA Input'!D1475,\"\"))","v":""},{"$f":"IF('TSA Input'!J1475=\"\",\"\",IF(OR('TSA Input'!J1475=\"Yes\",'TSA Input'!J1475=\"Contingent\"),'TSA Input'!G1475,\"\"))","v":""},{"$f":"IF('TSA Input'!J1475=\"\",\"\",IF(OR('TSA Input'!J1475=\"Yes\",'TSA Input'!J1475=\"Contingent\"),'TSA Input'!F1475,\"\"))","v":""},"",{"$f":"IF('TSA Input'!J1475=\"\",\"\",IF(OR('TSA Input'!J1475=\"Yes\",'TSA Input'!J1475=\"Contingent\"),'TSA Input'!D1475,\"\"))","v":""},{"$f":"IF('TSA Input'!J1475=\"\",\"\",IF(OR('TSA Input'!J1475=\"Yes\",'TSA Input'!J1475=\"Contingent\"),'TSA Input'!G1475,\"\"))","v":""},{"$f":"IF('TSA Input'!J1475=\"\",\"\",IF(OR('TSA Input'!J1475=\"Yes\",'TSA Input'!J1475=\"Contingent\"),'TSA Input'!F1475,\"\"))","v":""},"","Required","Required"]
["",null,{"$f":"IF('TSA Input'!J1476=\"\",\"\",IF(OR('TSA Input'!J1476=\"Yes\",'TSA Input'!J1476=\"Contingent\"),'TSA Input'!B1476,\"Ineligible\"))","v":""},{"$f":"IF('TSA Input'!J1476=\"\",\"\",IF(OR('TSA Input'!J1476=\"Yes\",'TSA Input'!J1476=\"Contingent\"),'TSA Input'!I1476,\"\"))","v":""},{"$f":"IF('TSA Input'!J1476=\"\",\"\",IF(OR('TSA Input'!J1476=\"Yes\",'TSA Input'!J1476=\"Contingent\"),'TSA Input'!C1476,\"\"))","v":""},{"$f":"IF('TSA Input'!J1476=\"\",\"\",IF(OR('TSA Input'!J1476=\"Yes\",'TSA Input'!J1476=\"Contingent\"),'TSA Input'!D1476,\"\"))","v":""},{"$f":"IF('TSA Input'!J1476=\"\",\"\",IF(OR('TSA Input'!J1476=\"Yes\",'TSA Input'!J1476=\"Contingent\"),'TSA Input'!G1476,\"\"))","v":""},{"$f":"IF('TSA Input'!J1476=\"\",\"\",IF(OR('TSA Input'!J1476=\"Yes\",'TSA Input'!J1476=\"Contingent\"),'TSA Input'!F1476,\"\"))","v":""},{"$f":"IF($C1514=\"\",\"\",SUM(F1514:H1514))","v":""},{"$f":"IF('TSA Input'!J1476=\"\",\"\",IF(OR('TSA Input'!J1476=\"Yes\",'TSA Input'!J1476=\"Contingent\"),'TSA Input'!D1476,\"\"))","v":""},{"$f":"IF('TSA Input'!J1476=\"\",\"\",IF(OR('TSA Input'!J1476=\"Yes\",'TSA Input'!J1476=\"Contingent\"),'TSA Input'!G1476,\"\"))","v":""},{"$f":"IF('TSA Input'!J1476=\"\",\"\",IF(OR('TSA Input'!J1476=\"Yes\",'TSA Input'!J1476=\"Contingent\"),'TSA Input'!F1476,\"\"))","v":""},{"$f":"IF($C1514=\"\",\"\",SUM(J1514:L1514))","v":""},"Required","Required"]
["",null,{"$f":"IF('TSA Input'!J1477=\"\",\"\",IF(OR('TSA Input'!J1477=\"Yes\",'TSA Input'!J1477=\"Contingent\"),'TSA Input'!B1477,\"Ineligible\"))","v":""},{"$f":"IF('TSA Input'!J1477=\"\",\"\",IF(OR('TSA Input'!J1477=\"Yes\",'TSA Input'!J1477=\"Contingent\"),'TSA Input'!I1477,\"\"))","v":""},{"$f":"IF('TSA Input'!J1477=\"\",\"\",IF(OR('TSA Input'!J1477=\"Yes\",'TSA Input'!J1477=\"Contingent\"),'TSA Input'!C1477,\"\"))","v":""},{"$f":"IF('TSA Input'!J1477=\"\",\"\",IF(OR('TSA Input'!J1477=\"Yes\",'TSA Input'!J1477=\"Contingent\"),'TSA Input'!D1477,\"\"))","v":""},{"$f":"IF('TSA Input'!J1477=\"\",\"\",IF(OR('TSA Input'!J1477=\"Yes\",'TSA Input'!J1477=\"Contingent\"),'TSA Input'!G1477,\"\"))","v":""},{"$f":"IF('TSA Input'!J1477=\"\",\"\",IF(OR('TSA Input'!J1477=\"Yes\",'TSA Input'!J1477=\"Contingent\"),'TSA Input'!F1477,\"\"))","v":""},"",{"$f":"IF('TSA Input'!J1477=\"\",\"\",IF(OR('TSA Input'!J1477=\"Yes\",'TSA Input'!J1477=\"Contingent\"),'TSA Input'!D1477,\"\"))","v":""},{"$f":"IF('TSA Input'!J1477=\"\",\"\",IF(OR('TSA Input'!J1477=\"Yes\",'TSA Input'!J1477=\"Contingent\"),'TSA Input'!G1477,\"\"))","v":""},{"$f":"IF('TSA Input'!J1477=\"\",\"\",IF(OR('TSA Input'!J1477=\"Yes\",'TSA Input'!J1477=\"Contingent\"),'TSA Input'!F1477,\"\"))","v":""},"","Required","Required"]
["",null,{"$f":"IF('TSA Input'!J1478=\"\",\"\",IF(OR('TSA Input'!J1478=\"Yes\",'TSA Input'!J1478=\"Contingent\"),'TSA Input'!B1478,\"Ineligible\"))","v":""},{"$f":"IF('TSA Input'!J1478=\"\",\"\",IF(OR('TSA Input'!J1478=\"Yes\",'TSA Input'!J1478=\"Contingent\"),'TSA Input'!I1478,\"\"))","v":""},{"$f":"IF('TSA Input'!J1478=\"\",\"\",IF(OR('TSA Input'!J1478=\"Yes\",'TSA Input'!J1478=\"Contingent\"),'TSA Input'!C1478,\"\"))","v":""},{"$f":"IF('TSA Input'!J1478=\"\",\"\",IF(OR('TSA Input'!J1478=\"Yes\",'TSA Input'!J1478=\"Contingent\"),'TSA Input'!D1478,\"\"))","v":""},{"$f":"IF('TSA Input'!J1478=\"\",\"\",IF(OR('TSA Input'!J1478=\"Yes\",'TSA Input'!J1478=\"Contingent\"),'TSA Input'!G1478,\"\"))","v":""},{"$f":"IF('TSA Input'!J1478=\"\",\"\",IF(OR('TSA Input'!J1478=\"Yes\",'TSA Input'!J1478=\"Contingent\"),'TSA Input'!F1478,\"\"))","v":""},"",{"$f":"IF('TSA Input'!J1478=\"\",\"\",IF(OR('TSA Input'!J1478=\"Yes\",'TSA Input'!J1478=\"Contingent\"),'TSA Input'!D1478,\"\"))","v":""},{"$f":"IF('TSA Input'!J1478=\"\",\"\",IF(OR('TSA Input'!J1478=\"Yes\",'TSA Input'!J1478=\"Contingent\"),'TSA Input'!G1478,\"\"))","v":""},{"$f":"IF('TSA Input'!J1478=\"\",\"\",IF(OR('TSA Input'!J1478=\"Yes\",'TSA Input'!J1478=\"Contingent\"),'TSA Input'!F1478,\"\"))","v":""},"","Required","Required"]
["",null,{"$f":"IF('TSA Input'!J1479=\"\",\"\",IF(OR('TSA Input'!J1479=\"Yes\",'TSA Input'!J1479=\"Contingent\"),'TSA Input'!B1479,\"Ineligible\"))","v":""},{"$f":"IF('TSA Input'!J1479=\"\",\"\",IF(OR('TSA Input'!J1479=\"Yes\",'TSA Input'!J1479=\"Contingent\"),'TSA Input'!I1479,\"\"))","v":""},{"$f":"IF('TSA Input'!J1479=\"\",\"\",IF(OR('TSA Input'!J1479=\"Yes\",'TSA Input'!J1479=\"Contingent\"),'TSA Input'!C1479,\"\"))","v":""},{"$f":"IF('TSA Input'!J1479=\"\",\"\",IF(OR('TSA Input'!J1479=\"Yes\",'TSA Input'!J1479=\"Contingent\"),'TSA Input'!D1479,\"\"))","v":""},{"$f":"IF('TSA Input'!J1479=\"\",\"\",IF(OR('TSA Input'!J1479=\"Yes\",'TSA Input'!J1479=\"Contingent\"),'TSA Input'!G1479,\"\"))","v":""},{"$f":"IF('TSA Input'!J1479=\"\",\"\",IF(OR('TSA Input'!J1479=\"Yes\",'TSA Input'!J1479=\"Contingent\"),'TSA Input'!F1479,\"\"))","v":""},"",{"$f":"IF('TSA Input'!J1479=\"\",\"\",IF(OR('TSA Input'!J1479=\"Yes\",'TSA Input'!J1479=\"Contingent\"),'TSA Input'!D1479,\"\"))","v":""},{"$f":"IF('TSA Input'!J1479=\"\",\"\",IF(OR('TSA Input'!J1479=\"Yes\",'TSA Input'!J1479=\"Contingent\"),'TSA Input'!G1479,\"\"))","v":""},{"$f":"IF('TSA Input'!J1479=\"\",\"\",IF(OR('TSA Input'!J1479=\"Yes\",'TSA Input'!J1479=\"Contingent\"),'TSA Input'!F1479,\"\"))","v":""},"","Required","Required"]
["",null,{"$f":"IF('TSA Input'!J1480=\"\",\"\",IF(OR('TSA Input'!J1480=\"Yes\",'TSA Input'!J1480=\"Contingent\"),'TSA Input'!B1480,\"Ineligible\"))","v":""},{"$f":"IF('TSA Input'!J1480=\"\",\"\",IF(OR('TSA Input'!J1480=\"Yes\",'TSA Input'!J1480=\"Contingent\"),'TSA Input'!I1480,\"\"))","v":""},{"$f":"IF('TSA Input'!J1480=\"\",\"\",IF(OR('TSA Input'!J1480=\"Yes\",'TSA Input'!J1480=\"Contingent\"),'TSA Input'!C1480,\"\"))","v":""},{"$f":"IF('TSA Input'!J1480=\"\",\"\",IF(OR('TSA Input'!J1480=\"Yes\",'TSA Input'!J1480=\"Contingent\"),'TSA Input'!D1480,\"\"))","v":""},{"$f":"IF('TSA Input'!J1480=\"\",\"\",IF(OR('TSA Input'!J1480=\"Yes\",'TSA Input'!J1480=\"Contingent\"),'TSA Input'!G1480,\"\"))","v":""},{"$f":"IF('TSA Input'!J1480=\"\",\"\",IF(OR('TSA Input'!J1480=\"Yes\",'TSA Input'!J1480=\"Contingent\"),'TSA Input'!F1480,\"\"))","v":""},"",{"$f":"IF('TSA Input'!J1480=\"\",\"\",IF(OR('TSA Input'!J1480=\"Yes\",'TSA Input'!J1480=\"Contingent\"),'TSA Input'!D1480,\"\"))","v":""},{"$f":"IF('TSA Input'!J1480=\"\",\"\",IF(OR('TSA Input'!J1480=\"Yes\",'TSA Input'!J1480=\"Contingent\"),'TSA Input'!G1480,\"\"))","v":""},{"$f":"IF('TSA Input'!J1480=\"\",\"\",IF(OR('TSA Input'!J1480=\"Yes\",'TSA Input'!J1480=\"Contingent\"),'TSA Input'!F1480,\"\"))","v":""},"","Required","Required"]
["",null,{"$f":"IF('TSA Input'!J1481=\"\",\"\",IF(OR('TSA Input'!J1481=\"Yes\",'TSA Input'!J1481=\"Contingent\"),'TSA Input'!B1481,\"Ineligible\"))","v":""},{"$f":"IF('TSA Input'!J1481=\"\",\"\",IF(OR('TSA Input'!J1481=\"Yes\",'TSA Input'!J1481=\"Contingent\"),'TSA Input'!I1481,\"\"))","v":""},{"$f":"IF('TSA Input'!J1481=\"\",\"\",IF(OR('TSA Input'!J1481=\"Yes\",'TSA Input'!J1481=\"Contingent\"),'TSA Input'!C1481,\"\"))","v":""},{"$f":"IF('TSA Input'!J1481=\"\",\"\",IF(OR('TSA Input'!J1481=\"Yes\",'TSA Input'!J1481=\"Contingent\"),'TSA Input'!D1481,\"\"))","v":""},{"$f":"IF('TSA Input'!J1481=\"\",\"\",IF(OR('TSA Input'!J1481=\"Yes\",'TSA Input'!J1481=\"Contingent\"),'TSA Input'!G1481,\"\"))","v":""},{"$f":"IF('TSA Input'!J1481=\"\",\"\",IF(OR('TSA Input'!J1481=\"Yes\",'TSA Input'!J1481=\"Contingent\"),'TSA Input'!F1481,\"\"))","v":""},"",{"$f":"IF('TSA Input'!J1481=\"\",\"\",IF(OR('TSA Input'!J1481=\"Yes\",'TSA Input'!J1481=\"Contingent\"),'TSA Input'!D1481,\"\"))","v":""},{"$f":"IF('TSA Input'!J1481=\"\",\"\",IF(OR('TSA Input'!J1481=\"Yes\",'TSA Input'!J1481=\"Contingent\"),'TSA Input'!G1481,\"\"))","v":""},{"$f":"IF('TSA Input'!J1481=\"\",\"\",IF(OR('TSA Input'!J1481=\"Yes\",'TSA Input'!J1481=\"Contingent\"),'TSA Input'!F1481,\"\"))","v":""},"","Required","Required"]
["",null,{"$f":"IF('TSA Input'!J1482=\"\",\"\",IF(OR('TSA Input'!J1482=\"Yes\",'TSA Input'!J1482=\"Contingent\"),'TSA Input'!B1482,\"Ineligible\"))","v":""},{"$f":"IF('TSA Input'!J1482=\"\",\"\",IF(OR('TSA Input'!J1482=\"Yes\",'TSA Input'!J1482=\"Contingent\"),'TSA Input'!I1482,\"\"))","v":""},{"$f":"IF('TSA Input'!J1482=\"\",\"\",IF(OR('TSA Input'!J1482=\"Yes\",'TSA Input'!J1482=\"Contingent\"),'TSA Input'!C1482,\"\"))","v":""},{"$f":"IF('TSA Input'!J1482=\"\",\"\",IF(OR('TSA Input'!J1482=\"Yes\",'TSA Input'!J1482=\"Contingent\"),'TSA Input'!D1482,\"\"))","v":""},{"$f":"IF('TSA Input'!J1482=\"\",\"\",IF(OR('TSA Input'!J1482=\"Yes\",'TSA Input'!J1482=\"Contingent\"),'TSA Input'!G1482,\"\"))","v":""},{"$f":"IF('TSA Input'!J1482=\"\",\"\",IF(OR('TSA Input'!J1482=\"Yes\",'TSA Input'!J1482=\"Contingent\"),'TSA Input'!F1482,\"\"))","v":""},"",{"$f":"IF('TSA Input'!J1482=\"\",\"\",IF(OR('TSA Input'!J1482=\"Yes\",'TSA Input'!J1482=\"Contingent\"),'TSA Input'!D1482,\"\"))","v":""},{"$f":"IF('TSA Input'!J1482=\"\",\"\",IF(OR('TSA Input'!J1482=\"Yes\",'TSA Input'!J1482=\"Contingent\"),'TSA Input'!G1482,\"\"))","v":""},{"$f":"IF('TSA Input'!J1482=\"\",\"\",IF(OR('TSA Input'!J1482=\"Yes\",'TSA Input'!J1482=\"Contingent\"),'TSA Input'!F1482,\"\"))","v":""},"","Required","Required"]
["",null,{"$f":"IF('TSA Input'!J1483=\"\",\"\",IF(OR('TSA Input'!J1483=\"Yes\",'TSA Input'!J1483=\"Contingent\"),'TSA Input'!B1483,\"Ineligible\"))","v":""},{"$f":"IF('TSA Input'!J1483=\"\",\"\",IF(OR('TSA Input'!J1483=\"Yes\",'TSA Input'!J1483=\"Contingent\"),'TSA Input'!I1483,\"\"))","v":""},{"$f":"IF('TSA Input'!J1483=\"\",\"\",IF(OR('TSA Input'!J1483=\"Yes\",'TSA Input'!J1483=\"Contingent\"),'TSA Input'!C1483,\"\"))","v":""},{"$f":"IF('TSA Input'!J1483=\"\",\"\",IF(OR('TSA Input'!J1483=\"Yes\",'TSA Input'!J1483=\"Contingent\"),'TSA Input'!D1483,\"\"))","v":""},{"$f":"IF('TSA Input'!J1483=\"\",\"\",IF(OR('TSA Input'!J1483=\"Yes\",'TSA Input'!J1483=\"Contingent\"),'TSA Input'!G1483,\"\"))","v":""},{"$f":"IF('TSA Input'!J1483=\"\",\"\",IF(OR('TSA Input'!J1483=\"Yes\",'TSA Input'!J1483=\"Contingent\"),'TSA Input'!F1483,\"\"))","v":""},"",{"$f":"IF('TSA Input'!J1483=\"\",\"\",IF(OR('TSA Input'!J1483=\"Yes\",'TSA Input'!J1483=\"Contingent\"),'TSA Input'!D1483,\"\"))","v":""},{"$f":"IF('TSA Input'!J1483=\"\",\"\",IF(OR('TSA Input'!J1483=\"Yes\",'TSA Input'!J1483=\"Contingent\"),'TSA Input'!G1483,\"\"))","v":""},{"$f":"IF('TSA Input'!J1483=\"\",\"\",IF(OR('TSA Input'!J1483=\"Yes\",'TSA Input'!J1483=\"Contingent\"),'TSA Input'!F1483,\"\"))","v":""},"","Required","Required"]
["",null,{"$f":"IF('TSA Input'!J1484=\"\",\"\",IF(OR('TSA Input'!J1484=\"Yes\",'TSA Input'!J1484=\"Contingent\"),'TSA Input'!B1484,\"Ineligible\"))","v":""},{"$f":"IF('TSA Input'!J1484=\"\",\"\",IF(OR('TSA Input'!J1484=\"Yes\",'TSA Input'!J1484=\"Contingent\"),'TSA Input'!I1484,\"\"))","v":""},{"$f":"IF('TSA Input'!J1484=\"\",\"\",IF(OR('TSA Input'!J1484=\"Yes\",'TSA Input'!J1484=\"Contingent\"),'TSA Input'!C1484,\"\"))","v":""},{"$f":"IF('TSA Input'!J1484=\"\",\"\",IF(OR('TSA Input'!J1484=\"Yes\",'TSA Input'!J1484=\"Contingent\"),'TSA Input'!D1484,\"\"))","v":""},{"$f":"IF('TSA Input'!J1484=\"\",\"\",IF(OR('TSA Input'!J1484=\"Yes\",'TSA Input'!J1484=\"Contingent\"),'TSA Input'!G1484,\"\"))","v":""},{"$f":"IF('TSA Input'!J1484=\"\",\"\",IF(OR('TSA Input'!J1484=\"Yes\",'TSA Input'!J1484=\"Contingent\"),'TSA Input'!F1484,\"\"))","v":""},"",{"$f":"IF('TSA Input'!J1484=\"\",\"\",IF(OR('TSA Input'!J1484=\"Yes\",'TSA Input'!J1484=\"Contingent\"),'TSA Input'!D1484,\"\"))","v":""},{"$f":"IF('TSA Input'!J1484=\"\",\"\",IF(OR('TSA Input'!J1484=\"Yes\",'TSA Input'!J1484=\"Contingent\"),'TSA Input'!G1484,\"\"))","v":""},{"$f":"IF('TSA Input'!J1484=\"\",\"\",IF(OR('TSA Input'!J1484=\"Yes\",'TSA Input'!J1484=\"Contingent\"),'TSA Input'!F1484,\"\"))","v":""},"","Required","Required"]
["",null,{"$f":"IF('TSA Input'!J1485=\"\",\"\",IF(OR('TSA Input'!J1485=\"Yes\",'TSA Input'!J1485=\"Contingent\"),'TSA Input'!B1485,\"Ineligible\"))","v":""},{"$f":"IF('TSA Input'!J1485=\"\",\"\",IF(OR('TSA Input'!J1485=\"Yes\",'TSA Input'!J1485=\"Contingent\"),'TSA Input'!I1485,\"\"))","v":""},{"$f":"IF('TSA Input'!J1485=\"\",\"\",IF(OR('TSA Input'!J1485=\"Yes\",'TSA Input'!J1485=\"Contingent\"),'TSA Input'!C1485,\"\"))","v":""},{"$f":"IF('TSA Input'!J1485=\"\",\"\",IF(OR('TSA Input'!J1485=\"Yes\",'TSA Input'!J1485=\"Contingent\"),'TSA Input'!D1485,\"\"))","v":""},{"$f":"IF('TSA Input'!J1485=\"\",\"\",IF(OR('TSA Input'!J1485=\"Yes\",'TSA Input'!J1485=\"Contingent\"),'TSA Input'!G1485,\"\"))","v":""},{"$f":"IF('TSA Input'!J1485=\"\",\"\",IF(OR('TSA Input'!J1485=\"Yes\",'TSA Input'!J1485=\"Contingent\"),'TSA Input'!F1485,\"\"))","v":""},"",{"$f":"IF('TSA Input'!J1485=\"\",\"\",IF(OR('TSA Input'!J1485=\"Yes\",'TSA Input'!J1485=\"Contingent\"),'TSA Input'!D1485,\"\"))","v":""},{"$f":"IF('TSA Input'!J1485=\"\",\"\",IF(OR('TSA Input'!J1485=\"Yes\",'TSA Input'!J1485=\"Contingent\"),'TSA Input'!G1485,\"\"))","v":""},{"$f":"IF('TSA Input'!J1485=\"\",\"\",IF(OR('TSA Input'!J1485=\"Yes\",'TSA Input'!J1485=\"Contingent\"),'TSA Input'!F1485,\"\"))","v":""},"","Required","Required"]
["",null,{"$f":"IF('TSA Input'!J1486=\"\",\"\",IF(OR('TSA Input'!J1486=\"Yes\",'TSA Input'!J1486=\"Contingent\"),'TSA Input'!B1486,\"Ineligible\"))","v":""},{"$f":"IF('TSA Input'!J1486=\"\",\"\",IF(OR('TSA Input'!J1486=\"Yes\",'TSA Input'!J1486=\"Contingent\"),'TSA Input'!I1486,\"\"))","v":""},{"$f":"IF('TSA Input'!J1486=\"\",\"\",IF(OR('TSA Input'!J1486=\"Yes\",'TSA Input'!J1486=\"Contingent\"),'TSA Input'!C1486,\"\"))","v":""},{"$f":"IF('TSA Input'!J1486=\"\",\"\",IF(OR('TSA Input'!J1486=\"Yes\",'TSA Input'!J1486=\"Contingent\"),'TSA Input'!D1486,\"\"))","v":""},{"$f":"IF('TSA Input'!J1486=\"\",\"\",IF(OR('TSA Input'!J1486=\"Yes\",'TSA Input'!J1486=\"Contingent\"),'TSA Input'!G1486,\"\"))","v":""},{"$f":"IF('TSA Input'!J1486=\"\",\"\",IF(OR('TSA Input'!J1486=\"Yes\",'TSA Input'!J1486=\"Contingent\"),'TSA Input'!F1486,\"\"))","v":""},"",{"$f":"IF('TSA Input'!J1486=\"\",\"\",IF(OR('TSA Input'!J1486=\"Yes\",'TSA Input'!J1486=\"Contingent\"),'TSA Input'!D1486,\"\"))","v":""},{"$f":"IF('TSA Input'!J1486=\"\",\"\",IF(OR('TSA Input'!J1486=\"Yes\",'TSA Input'!J1486=\"Contingent\"),'TSA Input'!G1486,\"\"))","v":""},{"$f":"IF('TSA Input'!J1486=\"\",\"\",IF(OR('TSA Input'!J1486=\"Yes\",'TSA Input'!J1486=\"Contingent\"),'TSA Input'!F1486,\"\"))","v":""},"","Required","Required"]
["",null,{"$f":"IF('TSA Input'!J1487=\"\",\"\",IF(OR('TSA Input'!J1487=\"Yes\",'TSA Input'!J1487=\"Contingent\"),'TSA Input'!B1487,\"Ineligible\"))","v":""},{"$f":"IF('TSA Input'!J1487=\"\",\"\",IF(OR('TSA Input'!J1487=\"Yes\",'TSA Input'!J1487=\"Contingent\"),'TSA Input'!I1487,\"\"))","v":""},{"$f":"IF('TSA Input'!J1487=\"\",\"\",IF(OR('TSA Input'!J1487=\"Yes\",'TSA Input'!J1487=\"Contingent\"),'TSA Input'!C1487,\"\"))","v":""},{"$f":"IF('TSA Input'!J1487=\"\",\"\",IF(OR('TSA Input'!J1487=\"Yes\",'TSA Input'!J1487=\"Contingent\"),'TSA Input'!D1487,\"\"))","v":""},{"$f":"IF('TSA Input'!J1487=\"\",\"\",IF(OR('TSA Input'!J1487=\"Yes\",'TSA Input'!J1487=\"Contingent\"),'TSA Input'!G1487,\"\"))","v":""},{"$f":"IF('TSA Input'!J1487=\"\",\"\",IF(OR('TSA Input'!J1487=\"Yes\",'TSA Input'!J1487=\"Contingent\"),'TSA Input'!F1487,\"\"))","v":""},"",{"$f":"IF('TSA Input'!J1487=\"\",\"\",IF(OR('TSA Input'!J1487=\"Yes\",'TSA Input'!J1487=\"Contingent\"),'TSA Input'!D1487,\"\"))","v":""},{"$f":"IF('TSA Input'!J1487=\"\",\"\",IF(OR('TSA Input'!J1487=\"Yes\",'TSA Input'!J1487=\"Contingent\"),'TSA Input'!G1487,\"\"))","v":""},{"$f":"IF('TSA Input'!J1487=\"\",\"\",IF(OR('TSA Input'!J1487=\"Yes\",'TSA Input'!J1487=\"Contingent\"),'TSA Input'!F1487,\"\"))","v":""},"","Required","Required"]
["",null,{"$f":"IF('TSA Input'!J1488=\"\",\"\",IF(OR('TSA Input'!J1488=\"Yes\",'TSA Input'!J1488=\"Contingent\"),'TSA Input'!B1488,\"Ineligible\"))","v":""},{"$f":"IF('TSA Input'!J1488=\"\",\"\",IF(OR('TSA Input'!J1488=\"Yes\",'TSA Input'!J1488=\"Contingent\"),'TSA Input'!I1488,\"\"))","v":""},{"$f":"IF('TSA Input'!J1488=\"\",\"\",IF(OR('TSA Input'!J1488=\"Yes\",'TSA Input'!J1488=\"Contingent\"),'TSA Input'!C1488,\"\"))","v":""},{"$f":"IF('TSA Input'!J1488=\"\",\"\",IF(OR('TSA Input'!J1488=\"Yes\",'TSA Input'!J1488=\"Contingent\"),'TSA Input'!D1488,\"\"))","v":""},{"$f":"IF('TSA Input'!J1488=\"\",\"\",IF(OR('TSA Input'!J1488=\"Yes\",'TSA Input'!J1488=\"Contingent\"),'TSA Input'!G1488,\"\"))","v":""},{"$f":"IF('TSA Input'!J1488=\"\",\"\",IF(OR('TSA Input'!J1488=\"Yes\",'TSA Input'!J1488=\"Contingent\"),'TSA Input'!F1488,\"\"))","v":""},"",{"$f":"IF('TSA Input'!J1488=\"\",\"\",IF(OR('TSA Input'!J1488=\"Yes\",'TSA Input'!J1488=\"Contingent\"),'TSA Input'!D1488,\"\"))","v":""},{"$f":"IF('TSA Input'!J1488=\"\",\"\",IF(OR('TSA Input'!J1488=\"Yes\",'TSA Input'!J1488=\"Contingent\"),'TSA Input'!G1488,\"\"))","v":""},{"$f":"IF('TSA Input'!J1488=\"\",\"\",IF(OR('TSA Input'!J1488=\"Yes\",'TSA Input'!J1488=\"Contingent\"),'TSA Input'!F1488,\"\"))","v":""},"","Required","Required"]
["",null,{"$f":"IF('TSA Input'!J1489=\"\",\"\",IF(OR('TSA Input'!J1489=\"Yes\",'TSA Input'!J1489=\"Contingent\"),'TSA Input'!B1489,\"Ineligible\"))","v":""},{"$f":"IF('TSA Input'!J1489=\"\",\"\",IF(OR('TSA Input'!J1489=\"Yes\",'TSA Input'!J1489=\"Contingent\"),'TSA Input'!I1489,\"\"))","v":""},{"$f":"IF('TSA Input'!J1489=\"\",\"\",IF(OR('TSA Input'!J1489=\"Yes\",'TSA Input'!J1489=\"Contingent\"),'TSA Input'!C1489,\"\"))","v":""},{"$f":"IF('TSA Input'!J1489=\"\",\"\",IF(OR('TSA Input'!J1489=\"Yes\",'TSA Input'!J1489=\"Contingent\"),'TSA Input'!D1489,\"\"))","v":""},{"$f":"IF('TSA Input'!J1489=\"\",\"\",IF(OR('TSA Input'!J1489=\"Yes\",'TSA Input'!J1489=\"Contingent\"),'TSA Input'!G1489,\"\"))","v":""},{"$f":"IF('TSA Input'!J1489=\"\",\"\",IF(OR('TSA Input'!J1489=\"Yes\",'TSA Input'!J1489=\"Contingent\"),'TSA Input'!F1489,\"\"))","v":""},"",{"$f":"IF('TSA Input'!J1489=\"\",\"\",IF(OR('TSA Input'!J1489=\"Yes\",'TSA Input'!J1489=\"Contingent\"),'TSA Input'!D1489,\"\"))","v":""},{"$f":"IF('TSA Input'!J1489=\"\",\"\",IF(OR('TSA Input'!J1489=\"Yes\",'TSA Input'!J1489=\"Contingent\"),'TSA Input'!G1489,\"\"))","v":""},{"$f":"IF('TSA Input'!J1489=\"\",\"\",IF(OR('TSA Input'!J1489=\"Yes\",'TSA Input'!J1489=\"Contingent\"),'TSA Input'!F1489,\"\"))","v":""},"","Required","Required"]
["",null,{"$f":"IF('TSA Input'!J1490=\"\",\"\",IF(OR('TSA Input'!J1490=\"Yes\",'TSA Input'!J1490=\"Contingent\"),'TSA Input'!B1490,\"Ineligible\"))","v":""},{"$f":"IF('TSA Input'!J1490=\"\",\"\",IF(OR('TSA Input'!J1490=\"Yes\",'TSA Input'!J1490=\"Contingent\"),'TSA Input'!I1490,\"\"))","v":""},{"$f":"IF('TSA Input'!J1490=\"\",\"\",IF(OR('TSA Input'!J1490=\"Yes\",'TSA Input'!J1490=\"Contingent\"),'TSA Input'!C1490,\"\"))","v":""},{"$f":"IF('TSA Input'!J1490=\"\",\"\",IF(OR('TSA Input'!J1490=\"Yes\",'TSA Input'!J1490=\"Contingent\"),'TSA Input'!D1490,\"\"))","v":""},{"$f":"IF('TSA Input'!J1490=\"\",\"\",IF(OR('TSA Input'!J1490=\"Yes\",'TSA Input'!J1490=\"Contingent\"),'TSA Input'!G1490,\"\"))","v":""},{"$f":"IF('TSA Input'!J1490=\"\",\"\",IF(OR('TSA Input'!J1490=\"Yes\",'TSA Input'!J1490=\"Contingent\"),'TSA Input'!F1490,\"\"))","v":""},"",{"$f":"IF('TSA Input'!J1490=\"\",\"\",IF(OR('TSA Input'!J1490=\"Yes\",'TSA Input'!J1490=\"Contingent\"),'TSA Input'!D1490,\"\"))","v":""},{"$f":"IF('TSA Input'!J1490=\"\",\"\",IF(OR('TSA Input'!J1490=\"Yes\",'TSA Input'!J1490=\"Contingent\"),'TSA Input'!G1490,\"\"))","v":""},{"$f":"IF('TSA Input'!J1490=\"\",\"\",IF(OR('TSA Input'!J1490=\"Yes\",'TSA Input'!J1490=\"Contingent\"),'TSA Input'!F1490,\"\"))","v":""},"","Required","Required"]
["",null,{"$f":"IF('TSA Input'!J1491=\"\",\"\",IF(OR('TSA Input'!J1491=\"Yes\",'TSA Input'!J1491=\"Contingent\"),'TSA Input'!B1491,\"Ineligible\"))","v":""},{"$f":"IF('TSA Input'!J1491=\"\",\"\",IF(OR('TSA Input'!J1491=\"Yes\",'TSA Input'!J1491=\"Contingent\"),'TSA Input'!I1491,\"\"))","v":""},{"$f":"IF('TSA Input'!J1491=\"\",\"\",IF(OR('TSA Input'!J1491=\"Yes\",'TSA Input'!J1491=\"Contingent\"),'TSA Input'!C1491,\"\"))","v":""},{"$f":"IF('TSA Input'!J1491=\"\",\"\",IF(OR('TSA Input'!J1491=\"Yes\",'TSA Input'!J1491=\"Contingent\"),'TSA Input'!D1491,\"\"))","v":""},{"$f":"IF('TSA Input'!J1491=\"\",\"\",IF(OR('TSA Input'!J1491=\"Yes\",'TSA Input'!J1491=\"Contingent\"),'TSA Input'!G1491,\"\"))","v":""},{"$f":"IF('TSA Input'!J1491=\"\",\"\",IF(OR('TSA Input'!J1491=\"Yes\",'TSA Input'!J1491=\"Contingent\"),'TSA Input'!F1491,\"\"))","v":""},"",{"$f":"IF('TSA Input'!J1491=\"\",\"\",IF(OR('TSA Input'!J1491=\"Yes\",'TSA Input'!J1491=\"Contingent\"),'TSA Input'!D1491,\"\"))","v":""},{"$f":"IF('TSA Input'!J1491=\"\",\"\",IF(OR('TSA Input'!J1491=\"Yes\",'TSA Input'!J1491=\"Contingent\"),'TSA Input'!G1491,\"\"))","v":""},{"$f":"IF('TSA Input'!J1491=\"\",\"\",IF(OR('TSA Input'!J1491=\"Yes\",'TSA Input'!J1491=\"Contingent\"),'TSA Input'!F1491,\"\"))","v":""},"","Required","Required"]
["",null,{"$f":"IF('TSA Input'!J1492=\"\",\"\",IF(OR('TSA Input'!J1492=\"Yes\",'TSA Input'!J1492=\"Contingent\"),'TSA Input'!B1492,\"Ineligible\"))","v":""},{"$f":"IF('TSA Input'!J1492=\"\",\"\",IF(OR('TSA Input'!J1492=\"Yes\",'TSA Input'!J1492=\"Contingent\"),'TSA Input'!I1492,\"\"))","v":""},{"$f":"IF('TSA Input'!J1492=\"\",\"\",IF(OR('TSA Input'!J1492=\"Yes\",'TSA Input'!J1492=\"Contingent\"),'TSA Input'!C1492,\"\"))","v":""},{"$f":"IF('TSA Input'!J1492=\"\",\"\",IF(OR('TSA Input'!J1492=\"Yes\",'TSA Input'!J1492=\"Contingent\"),'TSA Input'!D1492,\"\"))","v":""},{"$f":"IF('TSA Input'!J1492=\"\",\"\",IF(OR('TSA Input'!J1492=\"Yes\",'TSA Input'!J1492=\"Contingent\"),'TSA Input'!G1492,\"\"))","v":""},{"$f":"IF('TSA Input'!J1492=\"\",\"\",IF(OR('TSA Input'!J1492=\"Yes\",'TSA Input'!J1492=\"Contingent\"),'TSA Input'!F1492,\"\"))","v":""},"",{"$f":"IF('TSA Input'!J1492=\"\",\"\",IF(OR('TSA Input'!J1492=\"Yes\",'TSA Input'!J1492=\"Contingent\"),'TSA Input'!D1492,\"\"))","v":""},{"$f":"IF('TSA Input'!J1492=\"\",\"\",IF(OR('TSA Input'!J1492=\"Yes\",'TSA Input'!J1492=\"Contingent\"),'TSA Input'!G1492,\"\"))","v":""},{"$f":"IF('TSA Input'!J1492=\"\",\"\",IF(OR('TSA Input'!J1492=\"Yes\",'TSA Input'!J1492=\"Contingent\"),'TSA Input'!F1492,\"\"))","v":""},"","Required","Required"]
["",null,{"$f":"IF('TSA Input'!J1493=\"\",\"\",IF(OR('TSA Input'!J1493=\"Yes\",'TSA Input'!J1493=\"Contingent\"),'TSA Input'!B1493,\"Ineligible\"))","v":""},{"$f":"IF('TSA Input'!J1493=\"\",\"\",IF(OR('TSA Input'!J1493=\"Yes\",'TSA Input'!J1493=\"Contingent\"),'TSA Input'!I1493,\"\"))","v":""},{"$f":"IF('TSA Input'!J1493=\"\",\"\",IF(OR('TSA Input'!J1493=\"Yes\",'TSA Input'!J1493=\"Contingent\"),'TSA Input'!C1493,\"\"))","v":""},{"$f":"IF('TSA Input'!J1493=\"\",\"\",IF(OR('TSA Input'!J1493=\"Yes\",'TSA Input'!J1493=\"Contingent\"),'TSA Input'!D1493,\"\"))","v":""},{"$f":"IF('TSA Input'!J1493=\"\",\"\",IF(OR('TSA Input'!J1493=\"Yes\",'TSA Input'!J1493=\"Contingent\"),'TSA Input'!G1493,\"\"))","v":""},{"$f":"IF('TSA Input'!J1493=\"\",\"\",IF(OR('TSA Input'!J1493=\"Yes\",'TSA Input'!J1493=\"Contingent\"),'TSA Input'!F1493,\"\"))","v":""},"",{"$f":"IF('TSA Input'!J1493=\"\",\"\",IF(OR('TSA Input'!J1493=\"Yes\",'TSA Input'!J1493=\"Contingent\"),'TSA Input'!D1493,\"\"))","v":""},{"$f":"IF('TSA Input'!J1493=\"\",\"\",IF(OR('TSA Input'!J1493=\"Yes\",'TSA Input'!J1493=\"Contingent\"),'TSA Input'!G1493,\"\"))","v":""},{"$f":"IF('TSA Input'!J1493=\"\",\"\",IF(OR('TSA Input'!J1493=\"Yes\",'TSA Input'!J1493=\"Contingent\"),'TSA Input'!F1493,\"\"))","v":""},"","Required","Required"]
["",null,{"$f":"IF('TSA Input'!J1494=\"\",\"\",IF(OR('TSA Input'!J1494=\"Yes\",'TSA Input'!J1494=\"Contingent\"),'TSA Input'!B1494,\"Ineligible\"))","v":""},{"$f":"IF('TSA Input'!J1494=\"\",\"\",IF(OR('TSA Input'!J1494=\"Yes\",'TSA Input'!J1494=\"Contingent\"),'TSA Input'!I1494,\"\"))","v":""},{"$f":"IF('TSA Input'!J1494=\"\",\"\",IF(OR('TSA Input'!J1494=\"Yes\",'TSA Input'!J1494=\"Contingent\"),'TSA Input'!C1494,\"\"))","v":""},{"$f":"IF('TSA Input'!J1494=\"\",\"\",IF(OR('TSA Input'!J1494=\"Yes\",'TSA Input'!J1494=\"Contingent\"),'TSA Input'!D1494,\"\"))","v":""},{"$f":"IF('TSA Input'!J1494=\"\",\"\",IF(OR('TSA Input'!J1494=\"Yes\",'TSA Input'!J1494=\"Contingent\"),'TSA Input'!G1494,\"\"))","v":""},{"$f":"IF('TSA Input'!J1494=\"\",\"\",IF(OR('TSA Input'!J1494=\"Yes\",'TSA Input'!J1494=\"Contingent\"),'TSA Input'!F1494,\"\"))","v":""},"",{"$f":"IF('TSA Input'!J1494=\"\",\"\",IF(OR('TSA Input'!J1494=\"Yes\",'TSA Input'!J1494=\"Contingent\"),'TSA Input'!D1494,\"\"))","v":""},{"$f":"IF('TSA Input'!J1494=\"\",\"\",IF(OR('TSA Input'!J1494=\"Yes\",'TSA Input'!J1494=\"Contingent\"),'TSA Input'!G1494,\"\"))","v":""},{"$f":"IF('TSA Input'!J1494=\"\",\"\",IF(OR('TSA Input'!J1494=\"Yes\",'TSA Input'!J1494=\"Contingent\"),'TSA Input'!F1494,\"\"))","v":""},"","Required","Required"]
["",null,{"$f":"IF('TSA Input'!J1495=\"\",\"\",IF(OR('TSA Input'!J1495=\"Yes\",'TSA Input'!J1495=\"Contingent\"),'TSA Input'!B1495,\"Ineligible\"))","v":""},{"$f":"IF('TSA Input'!J1495=\"\",\"\",IF(OR('TSA Input'!J1495=\"Yes\",'TSA Input'!J1495=\"Contingent\"),'TSA Input'!I1495,\"\"))","v":""},{"$f":"IF('TSA Input'!J1495=\"\",\"\",IF(OR('TSA Input'!J1495=\"Yes\",'TSA Input'!J1495=\"Contingent\"),'TSA Input'!C1495,\"\"))","v":""},{"$f":"IF('TSA Input'!J1495=\"\",\"\",IF(OR('TSA Input'!J1495=\"Yes\",'TSA Input'!J1495=\"Contingent\"),'TSA Input'!D1495,\"\"))","v":""},{"$f":"IF('TSA Input'!J1495=\"\",\"\",IF(OR('TSA Input'!J1495=\"Yes\",'TSA Input'!J1495=\"Contingent\"),'TSA Input'!G1495,\"\"))","v":""},{"$f":"IF('TSA Input'!J1495=\"\",\"\",IF(OR('TSA Input'!J1495=\"Yes\",'TSA Input'!J1495=\"Contingent\"),'TSA Input'!F1495,\"\"))","v":""},"",{"$f":"IF('TSA Input'!J1495=\"\",\"\",IF(OR('TSA Input'!J1495=\"Yes\",'TSA Input'!J1495=\"Contingent\"),'TSA Input'!D1495,\"\"))","v":""},{"$f":"IF('TSA Input'!J1495=\"\",\"\",IF(OR('TSA Input'!J1495=\"Yes\",'TSA Input'!J1495=\"Contingent\"),'TSA Input'!G1495,\"\"))","v":""},{"$f":"IF('TSA Input'!J1495=\"\",\"\",IF(OR('TSA Input'!J1495=\"Yes\",'TSA Input'!J1495=\"Contingent\"),'TSA Input'!F1495,\"\"))","v":""},"","Required","Required"]
["",null,{"$f":"IF('TSA Input'!J1496=\"\",\"\",IF(OR('TSA Input'!J1496=\"Yes\",'TSA Input'!J1496=\"Contingent\"),'TSA Input'!B1496,\"Ineligible\"))","v":""},{"$f":"IF('TSA Input'!J1496=\"\",\"\",IF(OR('TSA Input'!J1496=\"Yes\",'TSA Input'!J1496=\"Contingent\"),'TSA Input'!I1496,\"\"))","v":""},{"$f":"IF('TSA Input'!J1496=\"\",\"\",IF(OR('TSA Input'!J1496=\"Yes\",'TSA Input'!J1496=\"Contingent\"),'TSA Input'!C1496,\"\"))","v":""},{"$f":"IF('TSA Input'!J1496=\"\",\"\",IF(OR('TSA Input'!J1496=\"Yes\",'TSA Input'!J1496=\"Contingent\"),'TSA Input'!D1496,\"\"))","v":""},{"$f":"IF('TSA Input'!J1496=\"\",\"\",IF(OR('TSA Input'!J1496=\"Yes\",'TSA Input'!J1496=\"Contingent\"),'TSA Input'!G1496,\"\"))","v":""},{"$f":"IF('TSA Input'!J1496=\"\",\"\",IF(OR('TSA Input'!J1496=\"Yes\",'TSA Input'!J1496=\"Contingent\"),'TSA Input'!F1496,\"\"))","v":""},"",{"$f":"IF('TSA Input'!J1496=\"\",\"\",IF(OR('TSA Input'!J1496=\"Yes\",'TSA Input'!J1496=\"Contingent\"),'TSA Input'!D1496,\"\"))","v":""},{"$f":"IF('TSA Input'!J1496=\"\",\"\",IF(OR('TSA Input'!J1496=\"Yes\",'TSA Input'!J1496=\"Contingent\"),'TSA Input'!G1496,\"\"))","v":""},{"$f":"IF('TSA Input'!J1496=\"\",\"\",IF(OR('TSA Input'!J1496=\"Yes\",'TSA Input'!J1496=\"Contingent\"),'TSA Input'!F1496,\"\"))","v":""},"","Required","Required"]
["",null,{"$f":"IF('TSA Input'!J1497=\"\",\"\",IF(OR('TSA Input'!J1497=\"Yes\",'TSA Input'!J1497=\"Contingent\"),'TSA Input'!B1497,\"Ineligible\"))","v":""},{"$f":"IF('TSA Input'!J1497=\"\",\"\",IF(OR('TSA Input'!J1497=\"Yes\",'TSA Input'!J1497=\"Contingent\"),'TSA Input'!I1497,\"\"))","v":""},{"$f":"IF('TSA Input'!J1497=\"\",\"\",IF(OR('TSA Input'!J1497=\"Yes\",'TSA Input'!J1497=\"Contingent\"),'TSA Input'!C1497,\"\"))","v":""},{"$f":"IF('TSA Input'!J1497=\"\",\"\",IF(OR('TSA Input'!J1497=\"Yes\",'TSA Input'!J1497=\"Contingent\"),'TSA Input'!D1497,\"\"))","v":""},{"$f":"IF('TSA Input'!J1497=\"\",\"\",IF(OR('TSA Input'!J1497=\"Yes\",'TSA Input'!J1497=\"Contingent\"),'TSA Input'!G1497,\"\"))","v":""},{"$f":"IF('TSA Input'!J1497=\"\",\"\",IF(OR('TSA Input'!J1497=\"Yes\",'TSA Input'!J1497=\"Contingent\"),'TSA Input'!F1497,\"\"))","v":""},"",{"$f":"IF('TSA Input'!J1497=\"\",\"\",IF(OR('TSA Input'!J1497=\"Yes\",'TSA Input'!J1497=\"Contingent\"),'TSA Input'!D1497,\"\"))","v":""},{"$f":"IF('TSA Input'!J1497=\"\",\"\",IF(OR('TSA Input'!J1497=\"Yes\",'TSA Input'!J1497=\"Contingent\"),'TSA Input'!G1497,\"\"))","v":""},{"$f":"IF('TSA Input'!J1497=\"\",\"\",IF(OR('TSA Input'!J1497=\"Yes\",'TSA Input'!J1497=\"Contingent\"),'TSA Input'!F1497,\"\"))","v":""},"","Required","Required"]
["",null,{"$f":"IF('TSA Input'!J1498=\"\",\"\",IF(OR('TSA Input'!J1498=\"Yes\",'TSA Input'!J1498=\"Contingent\"),'TSA Input'!B1498,\"Ineligible\"))","v":""},{"$f":"IF('TSA Input'!J1498=\"\",\"\",IF(OR('TSA Input'!J1498=\"Yes\",'TSA Input'!J1498=\"Contingent\"),'TSA Input'!I1498,\"\"))","v":""},{"$f":"IF('TSA Input'!J1498=\"\",\"\",IF(OR('TSA Input'!J1498=\"Yes\",'TSA Input'!J1498=\"Contingent\"),'TSA Input'!C1498,\"\"))","v":""},{"$f":"IF('TSA Input'!J1498=\"\",\"\",IF(OR('TSA Input'!J1498=\"Yes\",'TSA Input'!J1498=\"Contingent\"),'TSA Input'!D1498,\"\"))","v":""},{"$f":"IF('TSA Input'!J1498=\"\",\"\",IF(OR('TSA Input'!J1498=\"Yes\",'TSA Input'!J1498=\"Contingent\"),'TSA Input'!G1498,\"\"))","v":""},{"$f":"IF('TSA Input'!J1498=\"\",\"\",IF(OR('TSA Input'!J1498=\"Yes\",'TSA Input'!J1498=\"Contingent\"),'TSA Input'!F1498,\"\"))","v":""},"",{"$f":"IF('TSA Input'!J1498=\"\",\"\",IF(OR('TSA Input'!J1498=\"Yes\",'TSA Input'!J1498=\"Contingent\"),'TSA Input'!D1498,\"\"))","v":""},{"$f":"IF('TSA Input'!J1498=\"\",\"\",IF(OR('TSA Input'!J1498=\"Yes\",'TSA Input'!J1498=\"Contingent\"),'TSA Input'!G1498,\"\"))","v":""},{"$f":"IF('TSA Input'!J1498=\"\",\"\",IF(OR('TSA Input'!J1498=\"Yes\",'TSA Input'!J1498=\"Contingent\"),'TSA Input'!F1498,\"\"))","v":""},"","Required","Required"]
["",null,{"$f":"IF('TSA Input'!J1499=\"\",\"\",IF(OR('TSA Input'!J1499=\"Yes\",'TSA Input'!J1499=\"Contingent\"),'TSA Input'!B1499,\"Ineligible\"))","v":""},{"$f":"IF('TSA Input'!J1499=\"\",\"\",IF(OR('TSA Input'!J1499=\"Yes\",'TSA Input'!J1499=\"Contingent\"),'TSA Input'!I1499,\"\"))","v":""},{"$f":"IF('TSA Input'!J1499=\"\",\"\",IF(OR('TSA Input'!J1499=\"Yes\",'TSA Input'!J1499=\"Contingent\"),'TSA Input'!C1499,\"\"))","v":""},{"$f":"IF('TSA Input'!J1499=\"\",\"\",IF(OR('TSA Input'!J1499=\"Yes\",'TSA Input'!J1499=\"Contingent\"),'TSA Input'!D1499,\"\"))","v":""},{"$f":"IF('TSA Input'!J1499=\"\",\"\",IF(OR('TSA Input'!J1499=\"Yes\",'TSA Input'!J1499=\"Contingent\"),'TSA Input'!G1499,\"\"))","v":""},{"$f":"IF('TSA Input'!J1499=\"\",\"\",IF(OR('TSA Input'!J1499=\"Yes\",'TSA Input'!J1499=\"Contingent\"),'TSA Input'!F1499,\"\"))","v":""},"",{"$f":"IF('TSA Input'!J1499=\"\",\"\",IF(OR('TSA Input'!J1499=\"Yes\",'TSA Input'!J1499=\"Contingent\"),'TSA Input'!D1499,\"\"))","v":""},{"$f":"IF('TSA Input'!J1499=\"\",\"\",IF(OR('TSA Input'!J1499=\"Yes\",'TSA Input'!J1499=\"Contingent\"),'TSA Input'!G1499,\"\"))","v":""},{"$f":"IF('TSA Input'!J1499=\"\",\"\",IF(OR('TSA Input'!J1499=\"Yes\",'TSA Input'!J1499=\"Contingent\"),'TSA Input'!F1499,\"\"))","v":""},"","Required","Required"]
["",null,{"$f":"IF('TSA Input'!J1500=\"\",\"\",IF(OR('TSA Input'!J1500=\"Yes\",'TSA Input'!J1500=\"Contingent\"),'TSA Input'!B1500,\"Ineligible\"))","v":""},{"$f":"IF('TSA Input'!J1500=\"\",\"\",IF(OR('TSA Input'!J1500=\"Yes\",'TSA Input'!J1500=\"Contingent\"),'TSA Input'!I1500,\"\"))","v":""},{"$f":"IF('TSA Input'!J1500=\"\",\"\",IF(OR('TSA Input'!J1500=\"Yes\",'TSA Input'!J1500=\"Contingent\"),'TSA Input'!C1500,\"\"))","v":""},{"$f":"IF('TSA Input'!J1500=\"\",\"\",IF(OR('TSA Input'!J1500=\"Yes\",'TSA Input'!J1500=\"Contingent\"),'TSA Input'!D1500,\"\"))","v":""},{"$f":"IF('TSA Input'!J1500=\"\",\"\",IF(OR('TSA Input'!J1500=\"Yes\",'TSA Input'!J1500=\"Contingent\"),'TSA Input'!G1500,\"\"))","v":""},{"$f":"IF('TSA Input'!J1500=\"\",\"\",IF(OR('TSA Input'!J1500=\"Yes\",'TSA Input'!J1500=\"Contingent\"),'TSA Input'!F1500,\"\"))","v":""},"",{"$f":"IF('TSA Input'!J1500=\"\",\"\",IF(OR('TSA Input'!J1500=\"Yes\",'TSA Input'!J1500=\"Contingent\"),'TSA Input'!D1500,\"\"))","v":""},{"$f":"IF('TSA Input'!J1500=\"\",\"\",IF(OR('TSA Input'!J1500=\"Yes\",'TSA Input'!J1500=\"Contingent\"),'TSA Input'!G1500,\"\"))","v":""},{"$f":"IF('TSA Input'!J1500=\"\",\"\",IF(OR('TSA Input'!J1500=\"Yes\",'TSA Input'!J1500=\"Contingent\"),'TSA Input'!F1500,\"\"))","v":""},"","Required","Required"]
["",null,{"$f":"IF('TSA Input'!J1501=\"\",\"\",IF(OR('TSA Input'!J1501=\"Yes\",'TSA Input'!J1501=\"Contingent\"),'TSA Input'!B1501,\"Ineligible\"))","v":""},{"$f":"IF('TSA Input'!J1501=\"\",\"\",IF(OR('TSA Input'!J1501=\"Yes\",'TSA Input'!J1501=\"Contingent\"),'TSA Input'!I1501,\"\"))","v":""},{"$f":"IF('TSA Input'!J1501=\"\",\"\",IF(OR('TSA Input'!J1501=\"Yes\",'TSA Input'!J1501=\"Contingent\"),'TSA Input'!C1501,\"\"))","v":""},{"$f":"IF('TSA Input'!J1501=\"\",\"\",IF(OR('TSA Input'!J1501=\"Yes\",'TSA Input'!J1501=\"Contingent\"),'TSA Input'!D1501,\"\"))","v":""},{"$f":"IF('TSA Input'!J1501=\"\",\"\",IF(OR('TSA Input'!J1501=\"Yes\",'TSA Input'!J1501=\"Contingent\"),'TSA Input'!G1501,\"\"))","v":""},{"$f":"IF('TSA Input'!J1501=\"\",\"\",IF(OR('TSA Input'!J1501=\"Yes\",'TSA Input'!J1501=\"Contingent\"),'TSA Input'!F1501,\"\"))","v":""},"",{"$f":"IF('TSA Input'!J1501=\"\",\"\",IF(OR('TSA Input'!J1501=\"Yes\",'TSA Input'!J1501=\"Contingent\"),'TSA Input'!D1501,\"\"))","v":""},{"$f":"IF('TSA Input'!J1501=\"\",\"\",IF(OR('TSA Input'!J1501=\"Yes\",'TSA Input'!J1501=\"Contingent\"),'TSA Input'!G1501,\"\"))","v":""},{"$f":"IF('TSA Input'!J1501=\"\",\"\",IF(OR('TSA Input'!J1501=\"Yes\",'TSA Input'!J1501=\"Contingent\"),'TSA Input'!F1501,\"\"))","v":""},"","Required","Required"]
["",null,{"$f":"IF('TSA Input'!J1502=\"\",\"\",IF(OR('TSA Input'!J1502=\"Yes\",'TSA Input'!J1502=\"Contingent\"),'TSA Input'!B1502,\"Ineligible\"))","v":""},{"$f":"IF('TSA Input'!J1502=\"\",\"\",IF(OR('TSA Input'!J1502=\"Yes\",'TSA Input'!J1502=\"Contingent\"),'TSA Input'!I1502,\"\"))","v":""},{"$f":"IF('TSA Input'!J1502=\"\",\"\",IF(OR('TSA Input'!J1502=\"Yes\",'TSA Input'!J1502=\"Contingent\"),'TSA Input'!C1502,\"\"))","v":""},{"$f":"IF('TSA Input'!J1502=\"\",\"\",IF(OR('TSA Input'!J1502=\"Yes\",'TSA Input'!J1502=\"Contingent\"),'TSA Input'!D1502,\"\"))","v":""},{"$f":"IF('TSA Input'!J1502=\"\",\"\",IF(OR('TSA Input'!J1502=\"Yes\",'TSA Input'!J1502=\"Contingent\"),'TSA Input'!G1502,\"\"))","v":""},{"$f":"IF('TSA Input'!J1502=\"\",\"\",IF(OR('TSA Input'!J1502=\"Yes\",'TSA Input'!J1502=\"Contingent\"),'TSA Input'!F1502,\"\"))","v":""},"",{"$f":"IF('TSA Input'!J1502=\"\",\"\",IF(OR('TSA Input'!J1502=\"Yes\",'TSA Input'!J1502=\"Contingent\"),'TSA Input'!D1502,\"\"))","v":""},{"$f":"IF('TSA Input'!J1502=\"\",\"\",IF(OR('TSA Input'!J1502=\"Yes\",'TSA Input'!J1502=\"Contingent\"),'TSA Input'!G1502,\"\"))","v":""},{"$f":"IF('TSA Input'!J1502=\"\",\"\",IF(OR('TSA Input'!J1502=\"Yes\",'TSA Input'!J1502=\"Contingent\"),'TSA Input'!F1502,\"\"))","v":""},"","Required","Required"]
["",null,{"$f":"IF('TSA Input'!J1503=\"\",\"\",IF(OR('TSA Input'!J1503=\"Yes\",'TSA Input'!J1503=\"Contingent\"),'TSA Input'!B1503,\"Ineligible\"))","v":""},{"$f":"IF('TSA Input'!J1503=\"\",\"\",IF(OR('TSA Input'!J1503=\"Yes\",'TSA Input'!J1503=\"Contingent\"),'TSA Input'!I1503,\"\"))","v":""},{"$f":"IF('TSA Input'!J1503=\"\",\"\",IF(OR('TSA Input'!J1503=\"Yes\",'TSA Input'!J1503=\"Contingent\"),'TSA Input'!C1503,\"\"))","v":""},{"$f":"IF('TSA Input'!J1503=\"\",\"\",IF(OR('TSA Input'!J1503=\"Yes\",'TSA Input'!J1503=\"Contingent\"),'TSA Input'!D1503,\"\"))","v":""},{"$f":"IF('TSA Input'!J1503=\"\",\"\",IF(OR('TSA Input'!J1503=\"Yes\",'TSA Input'!J1503=\"Contingent\"),'TSA Input'!G1503,\"\"))","v":""},{"$f":"IF('TSA Input'!J1503=\"\",\"\",IF(OR('TSA Input'!J1503=\"Yes\",'TSA Input'!J1503=\"Contingent\"),'TSA Input'!F1503,\"\"))","v":""},"",{"$f":"IF('TSA Input'!J1503=\"\",\"\",IF(OR('TSA Input'!J1503=\"Yes\",'TSA Input'!J1503=\"Contingent\"),'TSA Input'!D1503,\"\"))","v":""},{"$f":"IF('TSA Input'!J1503=\"\",\"\",IF(OR('TSA Input'!J1503=\"Yes\",'TSA Input'!J1503=\"Contingent\"),'TSA Input'!G1503,\"\"))","v":""},{"$f":"IF('TSA Input'!J1503=\"\",\"\",IF(OR('TSA Input'!J1503=\"Yes\",'TSA Input'!J1503=\"Contingent\"),'TSA Input'!F1503,\"\"))","v":""},"","Required","Required"]
["",null,{"$f":"IF('TSA Input'!J1504=\"\",\"\",IF(OR('TSA Input'!J1504=\"Yes\",'TSA Input'!J1504=\"Contingent\"),'TSA Input'!B1504,\"Ineligible\"))","v":""},{"$f":"IF('TSA Input'!J1504=\"\",\"\",IF(OR('TSA Input'!J1504=\"Yes\",'TSA Input'!J1504=\"Contingent\"),'TSA Input'!I1504,\"\"))","v":""},{"$f":"IF('TSA Input'!J1504=\"\",\"\",IF(OR('TSA Input'!J1504=\"Yes\",'TSA Input'!J1504=\"Contingent\"),'TSA Input'!C1504,\"\"))","v":""},{"$f":"IF('TSA Input'!J1504=\"\",\"\",IF(OR('TSA Input'!J1504=\"Yes\",'TSA Input'!J1504=\"Contingent\"),'TSA Input'!D1504,\"\"))","v":""},{"$f":"IF('TSA Input'!J1504=\"\",\"\",IF(OR('TSA Input'!J1504=\"Yes\",'TSA Input'!J1504=\"Contingent\"),'TSA Input'!G1504,\"\"))","v":""},{"$f":"IF('TSA Input'!J1504=\"\",\"\",IF(OR('TSA Input'!J1504=\"Yes\",'TSA Input'!J1504=\"Contingent\"),'TSA Input'!F1504,\"\"))","v":""},"",{"$f":"IF('TSA Input'!J1504=\"\",\"\",IF(OR('TSA Input'!J1504=\"Yes\",'TSA Input'!J1504=\"Contingent\"),'TSA Input'!D1504,\"\"))","v":""},{"$f":"IF('TSA Input'!J1504=\"\",\"\",IF(OR('TSA Input'!J1504=\"Yes\",'TSA Input'!J1504=\"Contingent\"),'TSA Input'!G1504,\"\"))","v":""},{"$f":"IF('TSA Input'!J1504=\"\",\"\",IF(OR('TSA Input'!J1504=\"Yes\",'TSA Input'!J1504=\"Contingent\"),'TSA Input'!F1504,\"\"))","v":""},"","Required","Required"]
["",null,{"$f":"IF('TSA Input'!J1505=\"\",\"\",IF(OR('TSA Input'!J1505=\"Yes\",'TSA Input'!J1505=\"Contingent\"),'TSA Input'!B1505,\"Ineligible\"))","v":""},{"$f":"IF('TSA Input'!J1505=\"\",\"\",IF(OR('TSA Input'!J1505=\"Yes\",'TSA Input'!J1505=\"Contingent\"),'TSA Input'!I1505,\"\"))","v":""},{"$f":"IF('TSA Input'!J1505=\"\",\"\",IF(OR('TSA Input'!J1505=\"Yes\",'TSA Input'!J1505=\"Contingent\"),'TSA Input'!C1505,\"\"))","v":""},{"$f":"IF('TSA Input'!J1505=\"\",\"\",IF(OR('TSA Input'!J1505=\"Yes\",'TSA Input'!J1505=\"Contingent\"),'TSA Input'!D1505,\"\"))","v":""},{"$f":"IF('TSA Input'!J1505=\"\",\"\",IF(OR('TSA Input'!J1505=\"Yes\",'TSA Input'!J1505=\"Contingent\"),'TSA Input'!G1505,\"\"))","v":""},{"$f":"IF('TSA Input'!J1505=\"\",\"\",IF(OR('TSA Input'!J1505=\"Yes\",'TSA Input'!J1505=\"Contingent\"),'TSA Input'!F1505,\"\"))","v":""},"",{"$f":"IF('TSA Input'!J1505=\"\",\"\",IF(OR('TSA Input'!J1505=\"Yes\",'TSA Input'!J1505=\"Contingent\"),'TSA Input'!D1505,\"\"))","v":""},{"$f":"IF('TSA Input'!J1505=\"\",\"\",IF(OR('TSA Input'!J1505=\"Yes\",'TSA Input'!J1505=\"Contingent\"),'TSA Input'!G1505,\"\"))","v":""},{"$f":"IF('TSA Input'!J1505=\"\",\"\",IF(OR('TSA Input'!J1505=\"Yes\",'TSA Input'!J1505=\"Contingent\"),'TSA Input'!F1505,\"\"))","v":""},"","Required","Required"]
["",null,{"$f":"IF('TSA Input'!J1506=\"\",\"\",IF(OR('TSA Input'!J1506=\"Yes\",'TSA Input'!J1506=\"Contingent\"),'TSA Input'!B1506,\"Ineligible\"))","v":""},{"$f":"IF('TSA Input'!J1506=\"\",\"\",IF(OR('TSA Input'!J1506=\"Yes\",'TSA Input'!J1506=\"Contingent\"),'TSA Input'!I1506,\"\"))","v":""},{"$f":"IF('TSA Input'!J1506=\"\",\"\",IF(OR('TSA Input'!J1506=\"Yes\",'TSA Input'!J1506=\"Contingent\"),'TSA Input'!C1506,\"\"))","v":""},{"$f":"IF('TSA Input'!J1506=\"\",\"\",IF(OR('TSA Input'!J1506=\"Yes\",'TSA Input'!J1506=\"Contingent\"),'TSA Input'!D1506,\"\"))","v":""},{"$f":"IF('TSA Input'!J1506=\"\",\"\",IF(OR('TSA Input'!J1506=\"Yes\",'TSA Input'!J1506=\"Contingent\"),'TSA Input'!G1506,\"\"))","v":""},{"$f":"IF('TSA Input'!J1506=\"\",\"\",IF(OR('TSA Input'!J1506=\"Yes\",'TSA Input'!J1506=\"Contingent\"),'TSA Input'!F1506,\"\"))","v":""},"",{"$f":"IF('TSA Input'!J1506=\"\",\"\",IF(OR('TSA Input'!J1506=\"Yes\",'TSA Input'!J1506=\"Contingent\"),'TSA Input'!D1506,\"\"))","v":""},{"$f":"IF('TSA Input'!J1506=\"\",\"\",IF(OR('TSA Input'!J1506=\"Yes\",'TSA Input'!J1506=\"Contingent\"),'TSA Input'!G1506,\"\"))","v":""},{"$f":"IF('TSA Input'!J1506=\"\",\"\",IF(OR('TSA Input'!J1506=\"Yes\",'TSA Input'!J1506=\"Contingent\"),'TSA Input'!F1506,\"\"))","v":""},"","Required","Required"]
["",null,{"$f":"IF('TSA Input'!J1507=\"\",\"\",IF(OR('TSA Input'!J1507=\"Yes\",'TSA Input'!J1507=\"Contingent\"),'TSA Input'!B1507,\"Ineligible\"))","v":""},{"$f":"IF('TSA Input'!J1507=\"\",\"\",IF(OR('TSA Input'!J1507=\"Yes\",'TSA Input'!J1507=\"Contingent\"),'TSA Input'!I1507,\"\"))","v":""},{"$f":"IF('TSA Input'!J1507=\"\",\"\",IF(OR('TSA Input'!J1507=\"Yes\",'TSA Input'!J1507=\"Contingent\"),'TSA Input'!C1507,\"\"))","v":""},{"$f":"IF('TSA Input'!J1507=\"\",\"\",IF(OR('TSA Input'!J1507=\"Yes\",'TSA Input'!J1507=\"Contingent\"),'TSA Input'!D1507,\"\"))","v":""},{"$f":"IF('TSA Input'!J1507=\"\",\"\",IF(OR('TSA Input'!J1507=\"Yes\",'TSA Input'!J1507=\"Contingent\"),'TSA Input'!G1507,\"\"))","v":""},{"$f":"IF('TSA Input'!J1507=\"\",\"\",IF(OR('TSA Input'!J1507=\"Yes\",'TSA Input'!J1507=\"Contingent\"),'TSA Input'!F1507,\"\"))","v":""},"",{"$f":"IF('TSA Input'!J1507=\"\",\"\",IF(OR('TSA Input'!J1507=\"Yes\",'TSA Input'!J1507=\"Contingent\"),'TSA Input'!D1507,\"\"))","v":""},{"$f":"IF('TSA Input'!J1507=\"\",\"\",IF(OR('TSA Input'!J1507=\"Yes\",'TSA Input'!J1507=\"Contingent\"),'TSA Input'!G1507,\"\"))","v":""},{"$f":"IF('TSA Input'!J1507=\"\",\"\",IF(OR('TSA Input'!J1507=\"Yes\",'TSA Input'!J1507=\"Contingent\"),'TSA Input'!F1507,\"\"))","v":""},"","Required","Required"]
["",null,{"$f":"IF('TSA Input'!J1508=\"\",\"\",IF(OR('TSA Input'!J1508=\"Yes\",'TSA Input'!J1508=\"Contingent\"),'TSA Input'!B1508,\"Ineligible\"))","v":""},{"$f":"IF('TSA Input'!J1508=\"\",\"\",IF(OR('TSA Input'!J1508=\"Yes\",'TSA Input'!J1508=\"Contingent\"),'TSA Input'!I1508,\"\"))","v":""},{"$f":"IF('TSA Input'!J1508=\"\",\"\",IF(OR('TSA Input'!J1508=\"Yes\",'TSA Input'!J1508=\"Contingent\"),'TSA Input'!C1508,\"\"))","v":""},{"$f":"IF('TSA Input'!J1508=\"\",\"\",IF(OR('TSA Input'!J1508=\"Yes\",'TSA Input'!J1508=\"Contingent\"),'TSA Input'!D1508,\"\"))","v":""},{"$f":"IF('TSA Input'!J1508=\"\",\"\",IF(OR('TSA Input'!J1508=\"Yes\",'TSA Input'!J1508=\"Contingent\"),'TSA Input'!G1508,\"\"))","v":""},{"$f":"IF('TSA Input'!J1508=\"\",\"\",IF(OR('TSA Input'!J1508=\"Yes\",'TSA Input'!J1508=\"Contingent\"),'TSA Input'!F1508,\"\"))","v":""},"",{"$f":"IF('TSA Input'!J1508=\"\",\"\",IF(OR('TSA Input'!J1508=\"Yes\",'TSA Input'!J1508=\"Contingent\"),'TSA Input'!D1508,\"\"))","v":""},{"$f":"IF('TSA Input'!J1508=\"\",\"\",IF(OR('TSA Input'!J1508=\"Yes\",'TSA Input'!J1508=\"Contingent\"),'TSA Input'!G1508,\"\"))","v":""},{"$f":"IF('TSA Input'!J1508=\"\",\"\",IF(OR('TSA Input'!J1508=\"Yes\",'TSA Input'!J1508=\"Contingent\"),'TSA Input'!F1508,\"\"))","v":""},"","Required","Required"]
["",null,{"$f":"IF('TSA Input'!J1509=\"\",\"\",IF(OR('TSA Input'!J1509=\"Yes\",'TSA Input'!J1509=\"Contingent\"),'TSA Input'!B1509,\"Ineligible\"))","v":""},{"$f":"IF('TSA Input'!J1509=\"\",\"\",IF(OR('TSA Input'!J1509=\"Yes\",'TSA Input'!J1509=\"Contingent\"),'TSA Input'!I1509,\"\"))","v":""},{"$f":"IF('TSA Input'!J1509=\"\",\"\",IF(OR('TSA Input'!J1509=\"Yes\",'TSA Input'!J1509=\"Contingent\"),'TSA Input'!C1509,\"\"))","v":""},{"$f":"IF('TSA Input'!J1509=\"\",\"\",IF(OR('TSA Input'!J1509=\"Yes\",'TSA Input'!J1509=\"Contingent\"),'TSA Input'!D1509,\"\"))","v":""},{"$f":"IF('TSA Input'!J1509=\"\",\"\",IF(OR('TSA Input'!J1509=\"Yes\",'TSA Input'!J1509=\"Contingent\"),'TSA Input'!G1509,\"\"))","v":""},{"$f":"IF('TSA Input'!J1509=\"\",\"\",IF(OR('TSA Input'!J1509=\"Yes\",'TSA Input'!J1509=\"Contingent\"),'TSA Input'!F1509,\"\"))","v":""},"",{"$f":"IF('TSA Input'!J1509=\"\",\"\",IF(OR('TSA Input'!J1509=\"Yes\",'TSA Input'!J1509=\"Contingent\"),'TSA Input'!D1509,\"\"))","v":""},{"$f":"IF('TSA Input'!J1509=\"\",\"\",IF(OR('TSA Input'!J1509=\"Yes\",'TSA Input'!J1509=\"Contingent\"),'TSA Input'!G1509,\"\"))","v":""},{"$f":"IF('TSA Input'!J1509=\"\",\"\",IF(OR('TSA Input'!J1509=\"Yes\",'TSA Input'!J1509=\"Contingent\"),'TSA Input'!F1509,\"\"))","v":""},"","Required","Required"]
["",null,{"$f":"IF('TSA Input'!J1510=\"\",\"\",IF(OR('TSA Input'!J1510=\"Yes\",'TSA Input'!J1510=\"Contingent\"),'TSA Input'!B1510,\"Ineligible\"))","v":""},{"$f":"IF('TSA Input'!J1510=\"\",\"\",IF(OR('TSA Input'!J1510=\"Yes\",'TSA Input'!J1510=\"Contingent\"),'TSA Input'!I1510,\"\"))","v":""},{"$f":"IF('TSA Input'!J1510=\"\",\"\",IF(OR('TSA Input'!J1510=\"Yes\",'TSA Input'!J1510=\"Contingent\"),'TSA Input'!C1510,\"\"))","v":""},{"$f":"IF('TSA Input'!J1510=\"\",\"\",IF(OR('TSA Input'!J1510=\"Yes\",'TSA Input'!J1510=\"Contingent\"),'TSA Input'!D1510,\"\"))","v":""},{"$f":"IF('TSA Input'!J1510=\"\",\"\",IF(OR('TSA Input'!J1510=\"Yes\",'TSA Input'!J1510=\"Contingent\"),'TSA Input'!G1510,\"\"))","v":""},{"$f":"IF('TSA Input'!J1510=\"\",\"\",IF(OR('TSA Input'!J1510=\"Yes\",'TSA Input'!J1510=\"Contingent\"),'TSA Input'!F1510,\"\"))","v":""},"",{"$f":"IF('TSA Input'!J1510=\"\",\"\",IF(OR('TSA Input'!J1510=\"Yes\",'TSA Input'!J1510=\"Contingent\"),'TSA Input'!D1510,\"\"))","v":""},{"$f":"IF('TSA Input'!J1510=\"\",\"\",IF(OR('TSA Input'!J1510=\"Yes\",'TSA Input'!J1510=\"Contingent\"),'TSA Input'!G1510,\"\"))","v":""},{"$f":"IF('TSA Input'!J1510=\"\",\"\",IF(OR('TSA Input'!J1510=\"Yes\",'TSA Input'!J1510=\"Contingent\"),'TSA Input'!F1510,\"\"))","v":""},"","Required","Required"]
["",null,{"$f":"IF('TSA Input'!J1511=\"\",\"\",IF(OR('TSA Input'!J1511=\"Yes\",'TSA Input'!J1511=\"Contingent\"),'TSA Input'!B1511,\"Ineligible\"))","v":""},{"$f":"IF('TSA Input'!J1511=\"\",\"\",IF(OR('TSA Input'!J1511=\"Yes\",'TSA Input'!J1511=\"Contingent\"),'TSA Input'!I1511,\"\"))","v":""},{"$f":"IF('TSA Input'!J1511=\"\",\"\",IF(OR('TSA Input'!J1511=\"Yes\",'TSA Input'!J1511=\"Contingent\"),'TSA Input'!C1511,\"\"))","v":""},{"$f":"IF('TSA Input'!J1511=\"\",\"\",IF(OR('TSA Input'!J1511=\"Yes\",'TSA Input'!J1511=\"Contingent\"),'TSA Input'!D1511,\"\"))","v":""},{"$f":"IF('TSA Input'!J1511=\"\",\"\",IF(OR('TSA Input'!J1511=\"Yes\",'TSA Input'!J1511=\"Contingent\"),'TSA Input'!G1511,\"\"))","v":""},{"$f":"IF('TSA Input'!J1511=\"\",\"\",IF(OR('TSA Input'!J1511=\"Yes\",'TSA Input'!J1511=\"Contingent\"),'TSA Input'!F1511,\"\"))","v":""},"",{"$f":"IF('TSA Input'!J1511=\"\",\"\",IF(OR('TSA Input'!J1511=\"Yes\",'TSA Input'!J1511=\"Contingent\"),'TSA Input'!D1511,\"\"))","v":""},{"$f":"IF('TSA Input'!J1511=\"\",\"\",IF(OR('TSA Input'!J1511=\"Yes\",'TSA Input'!J1511=\"Contingent\"),'TSA Input'!G1511,\"\"))","v":""},{"$f":"IF('TSA Input'!J1511=\"\",\"\",IF(OR('TSA Input'!J1511=\"Yes\",'TSA Input'!J1511=\"Contingent\"),'TSA Input'!F1511,\"\"))","v":""},"","Required","Required"]
["",null,{"$f":"IF('TSA Input'!J1512=\"\",\"\",IF(OR('TSA Input'!J1512=\"Yes\",'TSA Input'!J1512=\"Contingent\"),'TSA Input'!B1512,\"Ineligible\"))","v":""},{"$f":"IF('TSA Input'!J1512=\"\",\"\",IF(OR('TSA Input'!J1512=\"Yes\",'TSA Input'!J1512=\"Contingent\"),'TSA Input'!I1512,\"\"))","v":""},{"$f":"IF('TSA Input'!J1512=\"\",\"\",IF(OR('TSA Input'!J1512=\"Yes\",'TSA Input'!J1512=\"Contingent\"),'TSA Input'!C1512,\"\"))","v":""},{"$f":"IF('TSA Input'!J1512=\"\",\"\",IF(OR('TSA Input'!J1512=\"Yes\",'TSA Input'!J1512=\"Contingent\"),'TSA Input'!D1512,\"\"))","v":""},{"$f":"IF('TSA Input'!J1512=\"\",\"\",IF(OR('TSA Input'!J1512=\"Yes\",'TSA Input'!J1512=\"Contingent\"),'TSA Input'!G1512,\"\"))","v":""},{"$f":"IF('TSA Input'!J1512=\"\",\"\",IF(OR('TSA Input'!J1512=\"Yes\",'TSA Input'!J1512=\"Contingent\"),'TSA Input'!F1512,\"\"))","v":""},"",{"$f":"IF('TSA Input'!J1512=\"\",\"\",IF(OR('TSA Input'!J1512=\"Yes\",'TSA Input'!J1512=\"Contingent\"),'TSA Input'!D1512,\"\"))","v":""},{"$f":"IF('TSA Input'!J1512=\"\",\"\",IF(OR('TSA Input'!J1512=\"Yes\",'TSA Input'!J1512=\"Contingent\"),'TSA Input'!G1512,\"\"))","v":""},{"$f":"IF('TSA Input'!J1512=\"\",\"\",IF(OR('TSA Input'!J1512=\"Yes\",'TSA Input'!J1512=\"Contingent\"),'TSA Input'!F1512,\"\"))","v":""},"","Required","Required"]
["",null,{"$f":"IF('TSA Input'!J1513=\"\",\"\",IF(OR('TSA Input'!J1513=\"Yes\",'TSA Input'!J1513=\"Contingent\"),'TSA Input'!B1513,\"Ineligible\"))","v":""},{"$f":"IF('TSA Input'!J1513=\"\",\"\",IF(OR('TSA Input'!J1513=\"Yes\",'TSA Input'!J1513=\"Contingent\"),'TSA Input'!I1513,\"\"))","v":""},{"$f":"IF('TSA Input'!J1513=\"\",\"\",IF(OR('TSA Input'!J1513=\"Yes\",'TSA Input'!J1513=\"Contingent\"),'TSA Input'!C1513,\"\"))","v":""},{"$f":"IF('TSA Input'!J1513=\"\",\"\",IF(OR('TSA Input'!J1513=\"Yes\",'TSA Input'!J1513=\"Contingent\"),'TSA Input'!D1513,\"\"))","v":""},{"$f":"IF('TSA Input'!J1513=\"\",\"\",IF(OR('TSA Input'!J1513=\"Yes\",'TSA Input'!J1513=\"Contingent\"),'TSA Input'!G1513,\"\"))","v":""},{"$f":"IF('TSA Input'!J1513=\"\",\"\",IF(OR('TSA Input'!J1513=\"Yes\",'TSA Input'!J1513=\"Contingent\"),'TSA Input'!F1513,\"\"))","v":""},"",{"$f":"IF('TSA Input'!J1513=\"\",\"\",IF(OR('TSA Input'!J1513=\"Yes\",'TSA Input'!J1513=\"Contingent\"),'TSA Input'!D1513,\"\"))","v":""},{"$f":"IF('TSA Input'!J1513=\"\",\"\",IF(OR('TSA Input'!J1513=\"Yes\",'TSA Input'!J1513=\"Contingent\"),'TSA Input'!G1513,\"\"))","v":""},{"$f":"IF('TSA Input'!J1513=\"\",\"\",IF(OR('TSA Input'!J1513=\"Yes\",'TSA Input'!J1513=\"Contingent\"),'TSA Input'!F1513,\"\"))","v":""},"","Required","Required"]
["",null,{"$f":"IF('TSA Input'!J1514=\"\",\"\",IF(OR('TSA Input'!J1514=\"Yes\",'TSA Input'!J1514=\"Contingent\"),'TSA Input'!B1514,\"Ineligible\"))","v":""},{"$f":"IF('TSA Input'!J1514=\"\",\"\",IF(OR('TSA Input'!J1514=\"Yes\",'TSA Input'!J1514=\"Contingent\"),'TSA Input'!I1514,\"\"))","v":""},{"$f":"IF('TSA Input'!J1514=\"\",\"\",IF(OR('TSA Input'!J1514=\"Yes\",'TSA Input'!J1514=\"Contingent\"),'TSA Input'!C1514,\"\"))","v":""},{"$f":"IF('TSA Input'!J1514=\"\",\"\",IF(OR('TSA Input'!J1514=\"Yes\",'TSA Input'!J1514=\"Contingent\"),'TSA Input'!D1514,\"\"))","v":""},{"$f":"IF('TSA Input'!J1514=\"\",\"\",IF(OR('TSA Input'!J1514=\"Yes\",'TSA Input'!J1514=\"Contingent\"),'TSA Input'!G1514,\"\"))","v":""},{"$f":"IF('TSA Input'!J1514=\"\",\"\",IF(OR('TSA Input'!J1514=\"Yes\",'TSA Input'!J1514=\"Contingent\"),'TSA Input'!F1514,\"\"))","v":""},"",{"$f":"IF('TSA Input'!J1514=\"\",\"\",IF(OR('TSA Input'!J1514=\"Yes\",'TSA Input'!J1514=\"Contingent\"),'TSA Input'!D1514,\"\"))","v":""},{"$f":"IF('TSA Input'!J1514=\"\",\"\",IF(OR('TSA Input'!J1514=\"Yes\",'TSA Input'!J1514=\"Contingent\"),'TSA Input'!G1514,\"\"))","v":""},{"$f":"IF('TSA Input'!J1514=\"\",\"\",IF(OR('TSA Input'!J1514=\"Yes\",'TSA Input'!J1514=\"Contingent\"),'TSA Input'!F1514,\"\"))","v":""},"","Required","Required"]
["",null,{"$f":"IF('TSA Input'!J1515=\"\",\"\",IF(OR('TSA Input'!J1515=\"Yes\",'TSA Input'!J1515=\"Contingent\"),'TSA Input'!B1515,\"Ineligible\"))","v":""},{"$f":"IF('TSA Input'!J1515=\"\",\"\",IF(OR('TSA Input'!J1515=\"Yes\",'TSA Input'!J1515=\"Contingent\"),'TSA Input'!I1515,\"\"))","v":""},{"$f":"IF('TSA Input'!J1515=\"\",\"\",IF(OR('TSA Input'!J1515=\"Yes\",'TSA Input'!J1515=\"Contingent\"),'TSA Input'!C1515,\"\"))","v":""},{"$f":"IF('TSA Input'!J1515=\"\",\"\",IF(OR('TSA Input'!J1515=\"Yes\",'TSA Input'!J1515=\"Contingent\"),'TSA Input'!D1515,\"\"))","v":""},{"$f":"IF('TSA Input'!J1515=\"\",\"\",IF(OR('TSA Input'!J1515=\"Yes\",'TSA Input'!J1515=\"Contingent\"),'TSA Input'!G1515,\"\"))","v":""},{"$f":"IF('TSA Input'!J1515=\"\",\"\",IF(OR('TSA Input'!J1515=\"Yes\",'TSA Input'!J1515=\"Contingent\"),'TSA Input'!F1515,\"\"))","v":""},"",{"$f":"IF('TSA Input'!J1515=\"\",\"\",IF(OR('TSA Input'!J1515=\"Yes\",'TSA Input'!J1515=\"Contingent\"),'TSA Input'!D1515,\"\"))","v":""},{"$f":"IF('TSA Input'!J1515=\"\",\"\",IF(OR('TSA Input'!J1515=\"Yes\",'TSA Input'!J1515=\"Contingent\"),'TSA Input'!G1515,\"\"))","v":""},{"$f":"IF('TSA Input'!J1515=\"\",\"\",IF(OR('TSA Input'!J1515=\"Yes\",'TSA Input'!J1515=\"Contingent\"),'TSA Input'!F1515,\"\"))","v":""},"","Required","Required"]
["",null,{"$f":"IF('TSA Input'!J1516=\"\",\"\",IF(OR('TSA Input'!J1516=\"Yes\",'TSA Input'!J1516=\"Contingent\"),'TSA Input'!B1516,\"Ineligible\"))","v":""},{"$f":"IF('TSA Input'!J1516=\"\",\"\",IF(OR('TSA Input'!J1516=\"Yes\",'TSA Input'!J1516=\"Contingent\"),'TSA Input'!I1516,\"\"))","v":""},{"$f":"IF('TSA Input'!J1516=\"\",\"\",IF(OR('TSA Input'!J1516=\"Yes\",'TSA Input'!J1516=\"Contingent\"),'TSA Input'!C1516,\"\"))","v":""},{"$f":"IF('TSA Input'!J1516=\"\",\"\",IF(OR('TSA Input'!J1516=\"Yes\",'TSA Input'!J1516=\"Contingent\"),'TSA Input'!D1516,\"\"))","v":""},{"$f":"IF('TSA Input'!J1516=\"\",\"\",IF(OR('TSA Input'!J1516=\"Yes\",'TSA Input'!J1516=\"Contingent\"),'TSA Input'!G1516,\"\"))","v":""},{"$f":"IF('TSA Input'!J1516=\"\",\"\",IF(OR('TSA Input'!J1516=\"Yes\",'TSA Input'!J1516=\"Contingent\"),'TSA Input'!F1516,\"\"))","v":""},"",{"$f":"IF('TSA Input'!J1516=\"\",\"\",IF(OR('TSA Input'!J1516=\"Yes\",'TSA Input'!J1516=\"Contingent\"),'TSA Input'!D1516,\"\"))","v":""},{"$f":"IF('TSA Input'!J1516=\"\",\"\",IF(OR('TSA Input'!J1516=\"Yes\",'TSA Input'!J1516=\"Contingent\"),'TSA Input'!G1516,\"\"))","v":""},{"$f":"IF('TSA Input'!J1516=\"\",\"\",IF(OR('TSA Input'!J1516=\"Yes\",'TSA Input'!J1516=\"Contingent\"),'TSA Input'!F1516,\"\"))","v":""},"","Required","Required"]
["",null,{"$f":"IF('TSA Input'!J1517=\"\",\"\",IF(OR('TSA Input'!J1517=\"Yes\",'TSA Input'!J1517=\"Contingent\"),'TSA Input'!B1517,\"Ineligible\"))","v":""},{"$f":"IF('TSA Input'!J1517=\"\",\"\",IF(OR('TSA Input'!J1517=\"Yes\",'TSA Input'!J1517=\"Contingent\"),'TSA Input'!I1517,\"\"))","v":""},{"$f":"IF('TSA Input'!J1517=\"\",\"\",IF(OR('TSA Input'!J1517=\"Yes\",'TSA Input'!J1517=\"Contingent\"),'TSA Input'!C1517,\"\"))","v":""},{"$f":"IF('TSA Input'!J1517=\"\",\"\",IF(OR('TSA Input'!J1517=\"Yes\",'TSA Input'!J1517=\"Contingent\"),'TSA Input'!D1517,\"\"))","v":""},{"$f":"IF('TSA Input'!J1517=\"\",\"\",IF(OR('TSA Input'!J1517=\"Yes\",'TSA Input'!J1517=\"Contingent\"),'TSA Input'!G1517,\"\"))","v":""},{"$f":"IF('TSA Input'!J1517=\"\",\"\",IF(OR('TSA Input'!J1517=\"Yes\",'TSA Input'!J1517=\"Contingent\"),'TSA Input'!F1517,\"\"))","v":""},"",{"$f":"IF('TSA Input'!J1517=\"\",\"\",IF(OR('TSA Input'!J1517=\"Yes\",'TSA Input'!J1517=\"Contingent\"),'TSA Input'!D1517,\"\"))","v":""},{"$f":"IF('TSA Input'!J1517=\"\",\"\",IF(OR('TSA Input'!J1517=\"Yes\",'TSA Input'!J1517=\"Contingent\"),'TSA Input'!G1517,\"\"))","v":""},{"$f":"IF('TSA Input'!J1517=\"\",\"\",IF(OR('TSA Input'!J1517=\"Yes\",'TSA Input'!J1517=\"Contingent\"),'TSA Input'!F1517,\"\"))","v":""},"","Required","Required"]
["",null,{"$f":"IF('TSA Input'!J1518=\"\",\"\",IF(OR('TSA Input'!J1518=\"Yes\",'TSA Input'!J1518=\"Contingent\"),'TSA Input'!B1518,\"Ineligible\"))","v":""},{"$f":"IF('TSA Input'!J1518=\"\",\"\",IF(OR('TSA Input'!J1518=\"Yes\",'TSA Input'!J1518=\"Contingent\"),'TSA Input'!I1518,\"\"))","v":""},{"$f":"IF('TSA Input'!J1518=\"\",\"\",IF(OR('TSA Input'!J1518=\"Yes\",'TSA Input'!J1518=\"Contingent\"),'TSA Input'!C1518,\"\"))","v":""},{"$f":"IF('TSA Input'!J1518=\"\",\"\",IF(OR('TSA Input'!J1518=\"Yes\",'TSA Input'!J1518=\"Contingent\"),'TSA Input'!D1518,\"\"))","v":""},{"$f":"IF('TSA Input'!J1518=\"\",\"\",IF(OR('TSA Input'!J1518=\"Yes\",'TSA Input'!J1518=\"Contingent\"),'TSA Input'!G1518,\"\"))","v":""},{"$f":"IF('TSA Input'!J1518=\"\",\"\",IF(OR('TSA Input'!J1518=\"Yes\",'TSA Input'!J1518=\"Contingent\"),'TSA Input'!F1518,\"\"))","v":""},"",{"$f":"IF('TSA Input'!J1518=\"\",\"\",IF(OR('TSA Input'!J1518=\"Yes\",'TSA Input'!J1518=\"Contingent\"),'TSA Input'!D1518,\"\"))","v":""},{"$f":"IF('TSA Input'!J1518=\"\",\"\",IF(OR('TSA Input'!J1518=\"Yes\",'TSA Input'!J1518=\"Contingent\"),'TSA Input'!G1518,\"\"))","v":""},{"$f":"IF('TSA Input'!J1518=\"\",\"\",IF(OR('TSA Input'!J1518=\"Yes\",'TSA Input'!J1518=\"Contingent\"),'TSA Input'!F1518,\"\"))","v":""},"","Required","Required"]
["",null,{"$f":"IF('TSA Input'!J1519=\"\",\"\",IF(OR('TSA Input'!J1519=\"Yes\",'TSA Input'!J1519=\"Contingent\"),'TSA Input'!B1519,\"Ineligible\"))","v":""},{"$f":"IF('TSA Input'!J1519=\"\",\"\",IF(OR('TSA Input'!J1519=\"Yes\",'TSA Input'!J1519=\"Contingent\"),'TSA Input'!I1519,\"\"))","v":""},{"$f":"IF('TSA Input'!J1519=\"\",\"\",IF(OR('TSA Input'!J1519=\"Yes\",'TSA Input'!J1519=\"Contingent\"),'TSA Input'!C1519,\"\"))","v":""},{"$f":"IF('TSA Input'!J1519=\"\",\"\",IF(OR('TSA Input'!J1519=\"Yes\",'TSA Input'!J1519=\"Contingent\"),'TSA Input'!D1519,\"\"))","v":""},{"$f":"IF('TSA Input'!J1519=\"\",\"\",IF(OR('TSA Input'!J1519=\"Yes\",'TSA Input'!J1519=\"Contingent\"),'TSA Input'!G1519,\"\"))","v":""},{"$f":"IF('TSA Input'!J1519=\"\",\"\",IF(OR('TSA Input'!J1519=\"Yes\",'TSA Input'!J1519=\"Contingent\"),'TSA Input'!F1519,\"\"))","v":""},"",{"$f":"IF('TSA Input'!J1519=\"\",\"\",IF(OR('TSA Input'!J1519=\"Yes\",'TSA Input'!J1519=\"Contingent\"),'TSA Input'!D1519,\"\"))","v":""},{"$f":"IF('TSA Input'!J1519=\"\",\"\",IF(OR('TSA Input'!J1519=\"Yes\",'TSA Input'!J1519=\"Contingent\"),'TSA Input'!G1519,\"\"))","v":""},{"$f":"IF('TSA Input'!J1519=\"\",\"\",IF(OR('TSA Input'!J1519=\"Yes\",'TSA Input'!J1519=\"Contingent\"),'TSA Input'!F1519,\"\"))","v":""},"","Required","Required"]
["",null,{"$f":"IF('TSA Input'!J1520=\"\",\"\",IF(OR('TSA Input'!J1520=\"Yes\",'TSA Input'!J1520=\"Contingent\"),'TSA Input'!B1520,\"Ineligible\"))","v":""},{"$f":"IF('TSA Input'!J1520=\"\",\"\",IF(OR('TSA Input'!J1520=\"Yes\",'TSA Input'!J1520=\"Contingent\"),'TSA Input'!I1520,\"\"))","v":""},{"$f":"IF('TSA Input'!J1520=\"\",\"\",IF(OR('TSA Input'!J1520=\"Yes\",'TSA Input'!J1520=\"Contingent\"),'TSA Input'!C1520,\"\"))","v":""},{"$f":"IF('TSA Input'!J1520=\"\",\"\",IF(OR('TSA Input'!J1520=\"Yes\",'TSA Input'!J1520=\"Contingent\"),'TSA Input'!D1520,\"\"))","v":""},{"$f":"IF('TSA Input'!J1520=\"\",\"\",IF(OR('TSA Input'!J1520=\"Yes\",'TSA Input'!J1520=\"Contingent\"),'TSA Input'!G1520,\"\"))","v":""},{"$f":"IF('TSA Input'!J1520=\"\",\"\",IF(OR('TSA Input'!J1520=\"Yes\",'TSA Input'!J1520=\"Contingent\"),'TSA Input'!F1520,\"\"))","v":""},"",{"$f":"IF('TSA Input'!J1520=\"\",\"\",IF(OR('TSA Input'!J1520=\"Yes\",'TSA Input'!J1520=\"Contingent\"),'TSA Input'!D1520,\"\"))","v":""},{"$f":"IF('TSA Input'!J1520=\"\",\"\",IF(OR('TSA Input'!J1520=\"Yes\",'TSA Input'!J1520=\"Contingent\"),'TSA Input'!G1520,\"\"))","v":""},{"$f":"IF('TSA Input'!J1520=\"\",\"\",IF(OR('TSA Input'!J1520=\"Yes\",'TSA Input'!J1520=\"Contingent\"),'TSA Input'!F1520,\"\"))","v":""},"","Required","Required"]
["",null,{"$f":"IF('TSA Input'!J1521=\"\",\"\",IF(OR('TSA Input'!J1521=\"Yes\",'TSA Input'!J1521=\"Contingent\"),'TSA Input'!B1521,\"Ineligible\"))","v":""},{"$f":"IF('TSA Input'!J1521=\"\",\"\",IF(OR('TSA Input'!J1521=\"Yes\",'TSA Input'!J1521=\"Contingent\"),'TSA Input'!I1521,\"\"))","v":""},{"$f":"IF('TSA Input'!J1521=\"\",\"\",IF(OR('TSA Input'!J1521=\"Yes\",'TSA Input'!J1521=\"Contingent\"),'TSA Input'!C1521,\"\"))","v":""},{"$f":"IF('TSA Input'!J1521=\"\",\"\",IF(OR('TSA Input'!J1521=\"Yes\",'TSA Input'!J1521=\"Contingent\"),'TSA Input'!D1521,\"\"))","v":""},{"$f":"IF('TSA Input'!J1521=\"\",\"\",IF(OR('TSA Input'!J1521=\"Yes\",'TSA Input'!J1521=\"Contingent\"),'TSA Input'!G1521,\"\"))","v":""},{"$f":"IF('TSA Input'!J1521=\"\",\"\",IF(OR('TSA Input'!J1521=\"Yes\",'TSA Input'!J1521=\"Contingent\"),'TSA Input'!F1521,\"\"))","v":""},"",{"$f":"IF('TSA Input'!J1521=\"\",\"\",IF(OR('TSA Input'!J1521=\"Yes\",'TSA Input'!J1521=\"Contingent\"),'TSA Input'!D1521,\"\"))","v":""},{"$f":"IF('TSA Input'!J1521=\"\",\"\",IF(OR('TSA Input'!J1521=\"Yes\",'TSA Input'!J1521=\"Contingent\"),'TSA Input'!G1521,\"\"))","v":""},{"$f":"IF('TSA Input'!J1521=\"\",\"\",IF(OR('TSA Input'!J1521=\"Yes\",'TSA Input'!J1521=\"Contingent\"),'TSA Input'!F1521,\"\"))","v":""},"","Required","Required"]
["",null,{"$f":"IF('TSA Input'!J1522=\"\",\"\",IF(OR('TSA Input'!J1522=\"Yes\",'TSA Input'!J1522=\"Contingent\"),'TSA Input'!B1522,\"Ineligible\"))","v":""},{"$f":"IF('TSA Input'!J1522=\"\",\"\",IF(OR('TSA Input'!J1522=\"Yes\",'TSA Input'!J1522=\"Contingent\"),'TSA Input'!I1522,\"\"))","v":""},{"$f":"IF('TSA Input'!J1522=\"\",\"\",IF(OR('TSA Input'!J1522=\"Yes\",'TSA Input'!J1522=\"Contingent\"),'TSA Input'!C1522,\"\"))","v":""},{"$f":"IF('TSA Input'!J1522=\"\",\"\",IF(OR('TSA Input'!J1522=\"Yes\",'TSA Input'!J1522=\"Contingent\"),'TSA Input'!D1522,\"\"))","v":""},{"$f":"IF('TSA Input'!J1522=\"\",\"\",IF(OR('TSA Input'!J1522=\"Yes\",'TSA Input'!J1522=\"Contingent\"),'TSA Input'!G1522,\"\"))","v":""},{"$f":"IF('TSA Input'!J1522=\"\",\"\",IF(OR('TSA Input'!J1522=\"Yes\",'TSA Input'!J1522=\"Contingent\"),'TSA Input'!F1522,\"\"))","v":""},"",{"$f":"IF('TSA Input'!J1522=\"\",\"\",IF(OR('TSA Input'!J1522=\"Yes\",'TSA Input'!J1522=\"Contingent\"),'TSA Input'!D1522,\"\"))","v":""},{"$f":"IF('TSA Input'!J1522=\"\",\"\",IF(OR('TSA Input'!J1522=\"Yes\",'TSA Input'!J1522=\"Contingent\"),'TSA Input'!G1522,\"\"))","v":""},{"$f":"IF('TSA Input'!J1522=\"\",\"\",IF(OR('TSA Input'!J1522=\"Yes\",'TSA Input'!J1522=\"Contingent\"),'TSA Input'!F1522,\"\"))","v":""},"","Required","Required"]
["",null,{"$f":"IF('TSA Input'!J1523=\"\",\"\",IF(OR('TSA Input'!J1523=\"Yes\",'TSA Input'!J1523=\"Contingent\"),'TSA Input'!B1523,\"Ineligible\"))","v":""},{"$f":"IF('TSA Input'!J1523=\"\",\"\",IF(OR('TSA Input'!J1523=\"Yes\",'TSA Input'!J1523=\"Contingent\"),'TSA Input'!I1523,\"\"))","v":""},{"$f":"IF('TSA Input'!J1523=\"\",\"\",IF(OR('TSA Input'!J1523=\"Yes\",'TSA Input'!J1523=\"Contingent\"),'TSA Input'!C1523,\"\"))","v":""},{"$f":"IF('TSA Input'!J1523=\"\",\"\",IF(OR('TSA Input'!J1523=\"Yes\",'TSA Input'!J1523=\"Contingent\"),'TSA Input'!D1523,\"\"))","v":""},{"$f":"IF('TSA Input'!J1523=\"\",\"\",IF(OR('TSA Input'!J1523=\"Yes\",'TSA Input'!J1523=\"Contingent\"),'TSA Input'!G1523,\"\"))","v":""},{"$f":"IF('TSA Input'!J1523=\"\",\"\",IF(OR('TSA Input'!J1523=\"Yes\",'TSA Input'!J1523=\"Contingent\"),'TSA Input'!F1523,\"\"))","v":""},"",{"$f":"IF('TSA Input'!J1523=\"\",\"\",IF(OR('TSA Input'!J1523=\"Yes\",'TSA Input'!J1523=\"Contingent\"),'TSA Input'!D1523,\"\"))","v":""},{"$f":"IF('TSA Input'!J1523=\"\",\"\",IF(OR('TSA Input'!J1523=\"Yes\",'TSA Input'!J1523=\"Contingent\"),'TSA Input'!G1523,\"\"))","v":""},{"$f":"IF('TSA Input'!J1523=\"\",\"\",IF(OR('TSA Input'!J1523=\"Yes\",'TSA Input'!J1523=\"Contingent\"),'TSA Input'!F1523,\"\"))","v":""},"","Required","Required"]
["",null,{"$f":"IF('TSA Input'!J1524=\"\",\"\",IF(OR('TSA Input'!J1524=\"Yes\",'TSA Input'!J1524=\"Contingent\"),'TSA Input'!B1524,\"Ineligible\"))","v":""},{"$f":"IF('TSA Input'!J1524=\"\",\"\",IF(OR('TSA Input'!J1524=\"Yes\",'TSA Input'!J1524=\"Contingent\"),'TSA Input'!I1524,\"\"))","v":""},{"$f":"IF('TSA Input'!J1524=\"\",\"\",IF(OR('TSA Input'!J1524=\"Yes\",'TSA Input'!J1524=\"Contingent\"),'TSA Input'!C1524,\"\"))","v":""},{"$f":"IF('TSA Input'!J1524=\"\",\"\",IF(OR('TSA Input'!J1524=\"Yes\",'TSA Input'!J1524=\"Contingent\"),'TSA Input'!D1524,\"\"))","v":""},{"$f":"IF('TSA Input'!J1524=\"\",\"\",IF(OR('TSA Input'!J1524=\"Yes\",'TSA Input'!J1524=\"Contingent\"),'TSA Input'!G1524,\"\"))","v":""},{"$f":"IF('TSA Input'!J1524=\"\",\"\",IF(OR('TSA Input'!J1524=\"Yes\",'TSA Input'!J1524=\"Contingent\"),'TSA Input'!F1524,\"\"))","v":""},"",{"$f":"IF('TSA Input'!J1524=\"\",\"\",IF(OR('TSA Input'!J1524=\"Yes\",'TSA Input'!J1524=\"Contingent\"),'TSA Input'!D1524,\"\"))","v":""},{"$f":"IF('TSA Input'!J1524=\"\",\"\",IF(OR('TSA Input'!J1524=\"Yes\",'TSA Input'!J1524=\"Contingent\"),'TSA Input'!G1524,\"\"))","v":""},{"$f":"IF('TSA Input'!J1524=\"\",\"\",IF(OR('TSA Input'!J1524=\"Yes\",'TSA Input'!J1524=\"Contingent\"),'TSA Input'!F1524,\"\"))","v":""},"","Required","Required"]
["",null,{"$f":"IF('TSA Input'!J1525=\"\",\"\",IF(OR('TSA Input'!J1525=\"Yes\",'TSA Input'!J1525=\"Contingent\"),'TSA Input'!B1525,\"Ineligible\"))","v":""},{"$f":"IF('TSA Input'!J1525=\"\",\"\",IF(OR('TSA Input'!J1525=\"Yes\",'TSA Input'!J1525=\"Contingent\"),'TSA Input'!I1525,\"\"))","v":""},{"$f":"IF('TSA Input'!J1525=\"\",\"\",IF(OR('TSA Input'!J1525=\"Yes\",'TSA Input'!J1525=\"Contingent\"),'TSA Input'!C1525,\"\"))","v":""},{"$f":"IF('TSA Input'!J1525=\"\",\"\",IF(OR('TSA Input'!J1525=\"Yes\",'TSA Input'!J1525=\"Contingent\"),'TSA Input'!D1525,\"\"))","v":""},{"$f":"IF('TSA Input'!J1525=\"\",\"\",IF(OR('TSA Input'!J1525=\"Yes\",'TSA Input'!J1525=\"Contingent\"),'TSA Input'!G1525,\"\"))","v":""},{"$f":"IF('TSA Input'!J1525=\"\",\"\",IF(OR('TSA Input'!J1525=\"Yes\",'TSA Input'!J1525=\"Contingent\"),'TSA Input'!F1525,\"\"))","v":""},"",{"$f":"IF('TSA Input'!J1525=\"\",\"\",IF(OR('TSA Input'!J1525=\"Yes\",'TSA Input'!J1525=\"Contingent\"),'TSA Input'!D1525,\"\"))","v":""},{"$f":"IF('TSA Input'!J1525=\"\",\"\",IF(OR('TSA Input'!J1525=\"Yes\",'TSA Input'!J1525=\"Contingent\"),'TSA Input'!G1525,\"\"))","v":""},{"$f":"IF('TSA Input'!J1525=\"\",\"\",IF(OR('TSA Input'!J1525=\"Yes\",'TSA Input'!J1525=\"Contingent\"),'TSA Input'!F1525,\"\"))","v":""},"","Required","Required"]
["",null,{"$f":"IF('TSA Input'!J1526=\"\",\"\",IF(OR('TSA Input'!J1526=\"Yes\",'TSA Input'!J1526=\"Contingent\"),'TSA Input'!B1526,\"Ineligible\"))","v":""},{"$f":"IF('TSA Input'!J1526=\"\",\"\",IF(OR('TSA Input'!J1526=\"Yes\",'TSA Input'!J1526=\"Contingent\"),'TSA Input'!I1526,\"\"))","v":""},{"$f":"IF('TSA Input'!J1526=\"\",\"\",IF(OR('TSA Input'!J1526=\"Yes\",'TSA Input'!J1526=\"Contingent\"),'TSA Input'!C1526,\"\"))","v":""},{"$f":"IF('TSA Input'!J1526=\"\",\"\",IF(OR('TSA Input'!J1526=\"Yes\",'TSA Input'!J1526=\"Contingent\"),'TSA Input'!D1526,\"\"))","v":""},{"$f":"IF('TSA Input'!J1526=\"\",\"\",IF(OR('TSA Input'!J1526=\"Yes\",'TSA Input'!J1526=\"Contingent\"),'TSA Input'!G1526,\"\"))","v":""},{"$f":"IF('TSA Input'!J1526=\"\",\"\",IF(OR('TSA Input'!J1526=\"Yes\",'TSA Input'!J1526=\"Contingent\"),'TSA Input'!F1526,\"\"))","v":""},"",{"$f":"IF('TSA Input'!J1526=\"\",\"\",IF(OR('TSA Input'!J1526=\"Yes\",'TSA Input'!J1526=\"Contingent\"),'TSA Input'!D1526,\"\"))","v":""},{"$f":"IF('TSA Input'!J1526=\"\",\"\",IF(OR('TSA Input'!J1526=\"Yes\",'TSA Input'!J1526=\"Contingent\"),'TSA Input'!G1526,\"\"))","v":""},{"$f":"IF('TSA Input'!J1526=\"\",\"\",IF(OR('TSA Input'!J1526=\"Yes\",'TSA Input'!J1526=\"Contingent\"),'TSA Input'!F1526,\"\"))","v":""},"","Required","Required"]
["",null,{"$f":"IF('TSA Input'!J1527=\"\",\"\",IF(OR('TSA Input'!J1527=\"Yes\",'TSA Input'!J1527=\"Contingent\"),'TSA Input'!B1527,\"Ineligible\"))","v":""},{"$f":"IF('TSA Input'!J1527=\"\",\"\",IF(OR('TSA Input'!J1527=\"Yes\",'TSA Input'!J1527=\"Contingent\"),'TSA Input'!I1527,\"\"))","v":""},{"$f":"IF('TSA Input'!J1527=\"\",\"\",IF(OR('TSA Input'!J1527=\"Yes\",'TSA Input'!J1527=\"Contingent\"),'TSA Input'!C1527,\"\"))","v":""},{"$f":"IF('TSA Input'!J1527=\"\",\"\",IF(OR('TSA Input'!J1527=\"Yes\",'TSA Input'!J1527=\"Contingent\"),'TSA Input'!D1527,\"\"))","v":""},{"$f":"IF('TSA Input'!J1527=\"\",\"\",IF(OR('TSA Input'!J1527=\"Yes\",'TSA Input'!J1527=\"Contingent\"),'TSA Input'!G1527,\"\"))","v":""},{"$f":"IF('TSA Input'!J1527=\"\",\"\",IF(OR('TSA Input'!J1527=\"Yes\",'TSA Input'!J1527=\"Contingent\"),'TSA Input'!F1527,\"\"))","v":""},"",{"$f":"IF('TSA Input'!J1527=\"\",\"\",IF(OR('TSA Input'!J1527=\"Yes\",'TSA Input'!J1527=\"Contingent\"),'TSA Input'!D1527,\"\"))","v":""},{"$f":"IF('TSA Input'!J1527=\"\",\"\",IF(OR('TSA Input'!J1527=\"Yes\",'TSA Input'!J1527=\"Contingent\"),'TSA Input'!G1527,\"\"))","v":""},{"$f":"IF('TSA Input'!J1527=\"\",\"\",IF(OR('TSA Input'!J1527=\"Yes\",'TSA Input'!J1527=\"Contingent\"),'TSA Input'!F1527,\"\"))","v":""},"","Required","Required"]
["",null,{"$f":"IF('TSA Input'!J1528=\"\",\"\",IF(OR('TSA Input'!J1528=\"Yes\",'TSA Input'!J1528=\"Contingent\"),'TSA Input'!B1528,\"Ineligible\"))","v":""},{"$f":"IF('TSA Input'!J1528=\"\",\"\",IF(OR('TSA Input'!J1528=\"Yes\",'TSA Input'!J1528=\"Contingent\"),'TSA Input'!I1528,\"\"))","v":""},{"$f":"IF('TSA Input'!J1528=\"\",\"\",IF(OR('TSA Input'!J1528=\"Yes\",'TSA Input'!J1528=\"Contingent\"),'TSA Input'!C1528,\"\"))","v":""},{"$f":"IF('TSA Input'!J1528=\"\",\"\",IF(OR('TSA Input'!J1528=\"Yes\",'TSA Input'!J1528=\"Contingent\"),'TSA Input'!D1528,\"\"))","v":""},{"$f":"IF('TSA Input'!J1528=\"\",\"\",IF(OR('TSA Input'!J1528=\"Yes\",'TSA Input'!J1528=\"Contingent\"),'TSA Input'!G1528,\"\"))","v":""},{"$f":"IF('TSA Input'!J1528=\"\",\"\",IF(OR('TSA Input'!J1528=\"Yes\",'TSA Input'!J1528=\"Contingent\"),'TSA Input'!F1528,\"\"))","v":""},"",{"$f":"IF('TSA Input'!J1528=\"\",\"\",IF(OR('TSA Input'!J1528=\"Yes\",'TSA Input'!J1528=\"Contingent\"),'TSA Input'!D1528,\"\"))","v":""},{"$f":"IF('TSA Input'!J1528=\"\",\"\",IF(OR('TSA Input'!J1528=\"Yes\",'TSA Input'!J1528=\"Contingent\"),'TSA Input'!G1528,\"\"))","v":""},{"$f":"IF('TSA Input'!J1528=\"\",\"\",IF(OR('TSA Input'!J1528=\"Yes\",'TSA Input'!J1528=\"Contingent\"),'TSA Input'!F1528,\"\"))","v":""},"","Required","Required"]
["",null,{"$f":"IF('TSA Input'!J1529=\"\",\"\",IF(OR('TSA Input'!J1529=\"Yes\",'TSA Input'!J1529=\"Contingent\"),'TSA Input'!B1529,\"Ineligible\"))","v":""},{"$f":"IF('TSA Input'!J1529=\"\",\"\",IF(OR('TSA Input'!J1529=\"Yes\",'TSA Input'!J1529=\"Contingent\"),'TSA Input'!I1529,\"\"))","v":""},{"$f":"IF('TSA Input'!J1529=\"\",\"\",IF(OR('TSA Input'!J1529=\"Yes\",'TSA Input'!J1529=\"Contingent\"),'TSA Input'!C1529,\"\"))","v":""},{"$f":"IF('TSA Input'!J1529=\"\",\"\",IF(OR('TSA Input'!J1529=\"Yes\",'TSA Input'!J1529=\"Contingent\"),'TSA Input'!D1529,\"\"))","v":""},{"$f":"IF('TSA Input'!J1529=\"\",\"\",IF(OR('TSA Input'!J1529=\"Yes\",'TSA Input'!J1529=\"Contingent\"),'TSA Input'!G1529,\"\"))","v":""},{"$f":"IF('TSA Input'!J1529=\"\",\"\",IF(OR('TSA Input'!J1529=\"Yes\",'TSA Input'!J1529=\"Contingent\"),'TSA Input'!F1529,\"\"))","v":""},"",{"$f":"IF('TSA Input'!J1529=\"\",\"\",IF(OR('TSA Input'!J1529=\"Yes\",'TSA Input'!J1529=\"Contingent\"),'TSA Input'!D1529,\"\"))","v":""},{"$f":"IF('TSA Input'!J1529=\"\",\"\",IF(OR('TSA Input'!J1529=\"Yes\",'TSA Input'!J1529=\"Contingent\"),'TSA Input'!G1529,\"\"))","v":""},{"$f":"IF('TSA Input'!J1529=\"\",\"\",IF(OR('TSA Input'!J1529=\"Yes\",'TSA Input'!J1529=\"Contingent\"),'TSA Input'!F1529,\"\"))","v":""},"","Required","Required"]
["",null,{"$f":"IF('TSA Input'!J1530=\"\",\"\",IF(OR('TSA Input'!J1530=\"Yes\",'TSA Input'!J1530=\"Contingent\"),'TSA Input'!B1530,\"Ineligible\"))","v":""},{"$f":"IF('TSA Input'!J1530=\"\",\"\",IF(OR('TSA Input'!J1530=\"Yes\",'TSA Input'!J1530=\"Contingent\"),'TSA Input'!I1530,\"\"))","v":""},{"$f":"IF('TSA Input'!J1530=\"\",\"\",IF(OR('TSA Input'!J1530=\"Yes\",'TSA Input'!J1530=\"Contingent\"),'TSA Input'!C1530,\"\"))","v":""},{"$f":"IF('TSA Input'!J1530=\"\",\"\",IF(OR('TSA Input'!J1530=\"Yes\",'TSA Input'!J1530=\"Contingent\"),'TSA Input'!D1530,\"\"))","v":""},{"$f":"IF('TSA Input'!J1530=\"\",\"\",IF(OR('TSA Input'!J1530=\"Yes\",'TSA Input'!J1530=\"Contingent\"),'TSA Input'!G1530,\"\"))","v":""},{"$f":"IF('TSA Input'!J1530=\"\",\"\",IF(OR('TSA Input'!J1530=\"Yes\",'TSA Input'!J1530=\"Contingent\"),'TSA Input'!F1530,\"\"))","v":""},"",{"$f":"IF('TSA Input'!J1530=\"\",\"\",IF(OR('TSA Input'!J1530=\"Yes\",'TSA Input'!J1530=\"Contingent\"),'TSA Input'!D1530,\"\"))","v":""},{"$f":"IF('TSA Input'!J1530=\"\",\"\",IF(OR('TSA Input'!J1530=\"Yes\",'TSA Input'!J1530=\"Contingent\"),'TSA Input'!G1530,\"\"))","v":""},{"$f":"IF('TSA Input'!J1530=\"\",\"\",IF(OR('TSA Input'!J1530=\"Yes\",'TSA Input'!J1530=\"Contingent\"),'TSA Input'!F1530,\"\"))","v":""},"","Required","Required"]
["",null,{"$f":"IF('TSA Input'!J1531=\"\",\"\",IF(OR('TSA Input'!J1531=\"Yes\",'TSA Input'!J1531=\"Contingent\"),'TSA Input'!B1531,\"Ineligible\"))","v":""},{"$f":"IF('TSA Input'!J1531=\"\",\"\",IF(OR('TSA Input'!J1531=\"Yes\",'TSA Input'!J1531=\"Contingent\"),'TSA Input'!I1531,\"\"))","v":""},{"$f":"IF('TSA Input'!J1531=\"\",\"\",IF(OR('TSA Input'!J1531=\"Yes\",'TSA Input'!J1531=\"Contingent\"),'TSA Input'!C1531,\"\"))","v":""},{"$f":"IF('TSA Input'!J1531=\"\",\"\",IF(OR('TSA Input'!J1531=\"Yes\",'TSA Input'!J1531=\"Contingent\"),'TSA Input'!D1531,\"\"))","v":""},{"$f":"IF('TSA Input'!J1531=\"\",\"\",IF(OR('TSA Input'!J1531=\"Yes\",'TSA Input'!J1531=\"Contingent\"),'TSA Input'!G1531,\"\"))","v":""},{"$f":"IF('TSA Input'!J1531=\"\",\"\",IF(OR('TSA Input'!J1531=\"Yes\",'TSA Input'!J1531=\"Contingent\"),'TSA Input'!F1531,\"\"))","v":""},"",{"$f":"IF('TSA Input'!J1531=\"\",\"\",IF(OR('TSA Input'!J1531=\"Yes\",'TSA Input'!J1531=\"Contingent\"),'TSA Input'!D1531,\"\"))","v":""},{"$f":"IF('TSA Input'!J1531=\"\",\"\",IF(OR('TSA Input'!J1531=\"Yes\",'TSA Input'!J1531=\"Contingent\"),'TSA Input'!G1531,\"\"))","v":""},{"$f":"IF('TSA Input'!J1531=\"\",\"\",IF(OR('TSA Input'!J1531=\"Yes\",'TSA Input'!J1531=\"Contingent\"),'TSA Input'!F1531,\"\"))","v":""},"","Required","Required"]
["",null,{"$f":"IF('TSA Input'!J1532=\"\",\"\",IF(OR('TSA Input'!J1532=\"Yes\",'TSA Input'!J1532=\"Contingent\"),'TSA Input'!B1532,\"Ineligible\"))","v":""},{"$f":"IF('TSA Input'!J1532=\"\",\"\",IF(OR('TSA Input'!J1532=\"Yes\",'TSA Input'!J1532=\"Contingent\"),'TSA Input'!I1532,\"\"))","v":""},{"$f":"IF('TSA Input'!J1532=\"\",\"\",IF(OR('TSA Input'!J1532=\"Yes\",'TSA Input'!J1532=\"Contingent\"),'TSA Input'!C1532,\"\"))","v":""},{"$f":"IF('TSA Input'!J1532=\"\",\"\",IF(OR('TSA Input'!J1532=\"Yes\",'TSA Input'!J1532=\"Contingent\"),'TSA Input'!D1532,\"\"))","v":""},{"$f":"IF('TSA Input'!J1532=\"\",\"\",IF(OR('TSA Input'!J1532=\"Yes\",'TSA Input'!J1532=\"Contingent\"),'TSA Input'!G1532,\"\"))","v":""},{"$f":"IF('TSA Input'!J1532=\"\",\"\",IF(OR('TSA Input'!J1532=\"Yes\",'TSA Input'!J1532=\"Contingent\"),'TSA Input'!F1532,\"\"))","v":""},"",{"$f":"IF('TSA Input'!J1532=\"\",\"\",IF(OR('TSA Input'!J1532=\"Yes\",'TSA Input'!J1532=\"Contingent\"),'TSA Input'!D1532,\"\"))","v":""},{"$f":"IF('TSA Input'!J1532=\"\",\"\",IF(OR('TSA Input'!J1532=\"Yes\",'TSA Input'!J1532=\"Contingent\"),'TSA Input'!G1532,\"\"))","v":""},{"$f":"IF('TSA Input'!J1532=\"\",\"\",IF(OR('TSA Input'!J1532=\"Yes\",'TSA Input'!J1532=\"Contingent\"),'TSA Input'!F1532,\"\"))","v":""},"","Required","Required"]
["",null,{"$f":"IF('TSA Input'!J1533=\"\",\"\",IF(OR('TSA Input'!J1533=\"Yes\",'TSA Input'!J1533=\"Contingent\"),'TSA Input'!B1533,\"Ineligible\"))","v":""},{"$f":"IF('TSA Input'!J1533=\"\",\"\",IF(OR('TSA Input'!J1533=\"Yes\",'TSA Input'!J1533=\"Contingent\"),'TSA Input'!I1533,\"\"))","v":""},{"$f":"IF('TSA Input'!J1533=\"\",\"\",IF(OR('TSA Input'!J1533=\"Yes\",'TSA Input'!J1533=\"Contingent\"),'TSA Input'!C1533,\"\"))","v":""},{"$f":"IF('TSA Input'!J1533=\"\",\"\",IF(OR('TSA Input'!J1533=\"Yes\",'TSA Input'!J1533=\"Contingent\"),'TSA Input'!D1533,\"\"))","v":""},{"$f":"IF('TSA Input'!J1533=\"\",\"\",IF(OR('TSA Input'!J1533=\"Yes\",'TSA Input'!J1533=\"Contingent\"),'TSA Input'!G1533,\"\"))","v":""},{"$f":"IF('TSA Input'!J1533=\"\",\"\",IF(OR('TSA Input'!J1533=\"Yes\",'TSA Input'!J1533=\"Contingent\"),'TSA Input'!F1533,\"\"))","v":""},"",{"$f":"IF('TSA Input'!J1533=\"\",\"\",IF(OR('TSA Input'!J1533=\"Yes\",'TSA Input'!J1533=\"Contingent\"),'TSA Input'!D1533,\"\"))","v":""},{"$f":"IF('TSA Input'!J1533=\"\",\"\",IF(OR('TSA Input'!J1533=\"Yes\",'TSA Input'!J1533=\"Contingent\"),'TSA Input'!G1533,\"\"))","v":""},{"$f":"IF('TSA Input'!J1533=\"\",\"\",IF(OR('TSA Input'!J1533=\"Yes\",'TSA Input'!J1533=\"Contingent\"),'TSA Input'!F1533,\"\"))","v":""},"","Required","Required"]
["",null,{"$f":"IF('TSA Input'!J1534=\"\",\"\",IF(OR('TSA Input'!J1534=\"Yes\",'TSA Input'!J1534=\"Contingent\"),'TSA Input'!B1534,\"Ineligible\"))","v":""},{"$f":"IF('TSA Input'!J1534=\"\",\"\",IF(OR('TSA Input'!J1534=\"Yes\",'TSA Input'!J1534=\"Contingent\"),'TSA Input'!I1534,\"\"))","v":""},{"$f":"IF('TSA Input'!J1534=\"\",\"\",IF(OR('TSA Input'!J1534=\"Yes\",'TSA Input'!J1534=\"Contingent\"),'TSA Input'!C1534,\"\"))","v":""},{"$f":"IF('TSA Input'!J1534=\"\",\"\",IF(OR('TSA Input'!J1534=\"Yes\",'TSA Input'!J1534=\"Contingent\"),'TSA Input'!D1534,\"\"))","v":""},{"$f":"IF('TSA Input'!J1534=\"\",\"\",IF(OR('TSA Input'!J1534=\"Yes\",'TSA Input'!J1534=\"Contingent\"),'TSA Input'!G1534,\"\"))","v":""},{"$f":"IF('TSA Input'!J1534=\"\",\"\",IF(OR('TSA Input'!J1534=\"Yes\",'TSA Input'!J1534=\"Contingent\"),'TSA Input'!F1534,\"\"))","v":""},"",{"$f":"IF('TSA Input'!J1534=\"\",\"\",IF(OR('TSA Input'!J1534=\"Yes\",'TSA Input'!J1534=\"Contingent\"),'TSA Input'!D1534,\"\"))","v":""},{"$f":"IF('TSA Input'!J1534=\"\",\"\",IF(OR('TSA Input'!J1534=\"Yes\",'TSA Input'!J1534=\"Contingent\"),'TSA Input'!G1534,\"\"))","v":""},{"$f":"IF('TSA Input'!J1534=\"\",\"\",IF(OR('TSA Input'!J1534=\"Yes\",'TSA Input'!J1534=\"Contingent\"),'TSA Input'!F1534,\"\"))","v":""},"","Required","Required"]
["",null,{"$f":"IF('TSA Input'!J1535=\"\",\"\",IF(OR('TSA Input'!J1535=\"Yes\",'TSA Input'!J1535=\"Contingent\"),'TSA Input'!B1535,\"Ineligible\"))","v":""},{"$f":"IF('TSA Input'!J1535=\"\",\"\",IF(OR('TSA Input'!J1535=\"Yes\",'TSA Input'!J1535=\"Contingent\"),'TSA Input'!I1535,\"\"))","v":""},{"$f":"IF('TSA Input'!J1535=\"\",\"\",IF(OR('TSA Input'!J1535=\"Yes\",'TSA Input'!J1535=\"Contingent\"),'TSA Input'!C1535,\"\"))","v":""},{"$f":"IF('TSA Input'!J1535=\"\",\"\",IF(OR('TSA Input'!J1535=\"Yes\",'TSA Input'!J1535=\"Contingent\"),'TSA Input'!D1535,\"\"))","v":""},{"$f":"IF('TSA Input'!J1535=\"\",\"\",IF(OR('TSA Input'!J1535=\"Yes\",'TSA Input'!J1535=\"Contingent\"),'TSA Input'!G1535,\"\"))","v":""},{"$f":"IF('TSA Input'!J1535=\"\",\"\",IF(OR('TSA Input'!J1535=\"Yes\",'TSA Input'!J1535=\"Contingent\"),'TSA Input'!F1535,\"\"))","v":""},"",{"$f":"IF('TSA Input'!J1535=\"\",\"\",IF(OR('TSA Input'!J1535=\"Yes\",'TSA Input'!J1535=\"Contingent\"),'TSA Input'!D1535,\"\"))","v":""},{"$f":"IF('TSA Input'!J1535=\"\",\"\",IF(OR('TSA Input'!J1535=\"Yes\",'TSA Input'!J1535=\"Contingent\"),'TSA Input'!G1535,\"\"))","v":""},{"$f":"IF('TSA Input'!J1535=\"\",\"\",IF(OR('TSA Input'!J1535=\"Yes\",'TSA Input'!J1535=\"Contingent\"),'TSA Input'!F1535,\"\"))","v":""},"","Required","Required"]
["",null,{"$f":"IF('TSA Input'!J1536=\"\",\"\",IF(OR('TSA Input'!J1536=\"Yes\",'TSA Input'!J1536=\"Contingent\"),'TSA Input'!B1536,\"Ineligible\"))","v":""},{"$f":"IF('TSA Input'!J1536=\"\",\"\",IF(OR('TSA Input'!J1536=\"Yes\",'TSA Input'!J1536=\"Contingent\"),'TSA Input'!I1536,\"\"))","v":""},{"$f":"IF('TSA Input'!J1536=\"\",\"\",IF(OR('TSA Input'!J1536=\"Yes\",'TSA Input'!J1536=\"Contingent\"),'TSA Input'!C1536,\"\"))","v":""},{"$f":"IF('TSA Input'!J1536=\"\",\"\",IF(OR('TSA Input'!J1536=\"Yes\",'TSA Input'!J1536=\"Contingent\"),'TSA Input'!D1536,\"\"))","v":""},{"$f":"IF('TSA Input'!J1536=\"\",\"\",IF(OR('TSA Input'!J1536=\"Yes\",'TSA Input'!J1536=\"Contingent\"),'TSA Input'!G1536,\"\"))","v":""},{"$f":"IF('TSA Input'!J1536=\"\",\"\",IF(OR('TSA Input'!J1536=\"Yes\",'TSA Input'!J1536=\"Contingent\"),'TSA Input'!F1536,\"\"))","v":""},"",{"$f":"IF('TSA Input'!J1536=\"\",\"\",IF(OR('TSA Input'!J1536=\"Yes\",'TSA Input'!J1536=\"Contingent\"),'TSA Input'!D1536,\"\"))","v":""},{"$f":"IF('TSA Input'!J1536=\"\",\"\",IF(OR('TSA Input'!J1536=\"Yes\",'TSA Input'!J1536=\"Contingent\"),'TSA Input'!G1536,\"\"))","v":""},{"$f":"IF('TSA Input'!J1536=\"\",\"\",IF(OR('TSA Input'!J1536=\"Yes\",'TSA Input'!J1536=\"Contingent\"),'TSA Input'!F1536,\"\"))","v":""},"","Required","Required"]
["",null,{"$f":"IF('TSA Input'!J1537=\"\",\"\",IF(OR('TSA Input'!J1537=\"Yes\",'TSA Input'!J1537=\"Contingent\"),'TSA Input'!B1537,\"Ineligible\"))","v":""},{"$f":"IF('TSA Input'!J1537=\"\",\"\",IF(OR('TSA Input'!J1537=\"Yes\",'TSA Input'!J1537=\"Contingent\"),'TSA Input'!I1537,\"\"))","v":""},{"$f":"IF('TSA Input'!J1537=\"\",\"\",IF(OR('TSA Input'!J1537=\"Yes\",'TSA Input'!J1537=\"Contingent\"),'TSA Input'!C1537,\"\"))","v":""},{"$f":"IF('TSA Input'!J1537=\"\",\"\",IF(OR('TSA Input'!J1537=\"Yes\",'TSA Input'!J1537=\"Contingent\"),'TSA Input'!D1537,\"\"))","v":""},{"$f":"IF('TSA Input'!J1537=\"\",\"\",IF(OR('TSA Input'!J1537=\"Yes\",'TSA Input'!J1537=\"Contingent\"),'TSA Input'!G1537,\"\"))","v":""},{"$f":"IF('TSA Input'!J1537=\"\",\"\",IF(OR('TSA Input'!J1537=\"Yes\",'TSA Input'!J1537=\"Contingent\"),'TSA Input'!F1537,\"\"))","v":""},"",{"$f":"IF('TSA Input'!J1537=\"\",\"\",IF(OR('TSA Input'!J1537=\"Yes\",'TSA Input'!J1537=\"Contingent\"),'TSA Input'!D1537,\"\"))","v":""},{"$f":"IF('TSA Input'!J1537=\"\",\"\",IF(OR('TSA Input'!J1537=\"Yes\",'TSA Input'!J1537=\"Contingent\"),'TSA Input'!G1537,\"\"))","v":""},{"$f":"IF('TSA Input'!J1537=\"\",\"\",IF(OR('TSA Input'!J1537=\"Yes\",'TSA Input'!J1537=\"Contingent\"),'TSA Input'!F1537,\"\"))","v":""},"","Required","Required"]
["",null,{"$f":"IF('TSA Input'!J1538=\"\",\"\",IF(OR('TSA Input'!J1538=\"Yes\",'TSA Input'!J1538=\"Contingent\"),'TSA Input'!B1538,\"Ineligible\"))","v":""},{"$f":"IF('TSA Input'!J1538=\"\",\"\",IF(OR('TSA Input'!J1538=\"Yes\",'TSA Input'!J1538=\"Contingent\"),'TSA Input'!I1538,\"\"))","v":""},{"$f":"IF('TSA Input'!J1538=\"\",\"\",IF(OR('TSA Input'!J1538=\"Yes\",'TSA Input'!J1538=\"Contingent\"),'TSA Input'!C1538,\"\"))","v":""},{"$f":"IF('TSA Input'!J1538=\"\",\"\",IF(OR('TSA Input'!J1538=\"Yes\",'TSA Input'!J1538=\"Contingent\"),'TSA Input'!D1538,\"\"))","v":""},{"$f":"IF('TSA Input'!J1538=\"\",\"\",IF(OR('TSA Input'!J1538=\"Yes\",'TSA Input'!J1538=\"Contingent\"),'TSA Input'!G1538,\"\"))","v":""},{"$f":"IF('TSA Input'!J1538=\"\",\"\",IF(OR('TSA Input'!J1538=\"Yes\",'TSA Input'!J1538=\"Contingent\"),'TSA Input'!F1538,\"\"))","v":""},"",{"$f":"IF('TSA Input'!J1538=\"\",\"\",IF(OR('TSA Input'!J1538=\"Yes\",'TSA Input'!J1538=\"Contingent\"),'TSA Input'!D1538,\"\"))","v":""},{"$f":"IF('TSA Input'!J1538=\"\",\"\",IF(OR('TSA Input'!J1538=\"Yes\",'TSA Input'!J1538=\"Contingent\"),'TSA Input'!G1538,\"\"))","v":""},{"$f":"IF('TSA Input'!J1538=\"\",\"\",IF(OR('TSA Input'!J1538=\"Yes\",'TSA Input'!J1538=\"Contingent\"),'TSA Input'!F1538,\"\"))","v":""},"","Required","Required"]
["",null,{"$f":"IF('TSA Input'!J1539=\"\",\"\",IF(OR('TSA Input'!J1539=\"Yes\",'TSA Input'!J1539=\"Contingent\"),'TSA Input'!B1539,\"Ineligible\"))","v":""},{"$f":"IF('TSA Input'!J1539=\"\",\"\",IF(OR('TSA Input'!J1539=\"Yes\",'TSA Input'!J1539=\"Contingent\"),'TSA Input'!I1539,\"\"))","v":""},{"$f":"IF('TSA Input'!J1539=\"\",\"\",IF(OR('TSA Input'!J1539=\"Yes\",'TSA Input'!J1539=\"Contingent\"),'TSA Input'!C1539,\"\"))","v":""},{"$f":"IF('TSA Input'!J1539=\"\",\"\",IF(OR('TSA Input'!J1539=\"Yes\",'TSA Input'!J1539=\"Contingent\"),'TSA Input'!D1539,\"\"))","v":""},{"$f":"IF('TSA Input'!J1539=\"\",\"\",IF(OR('TSA Input'!J1539=\"Yes\",'TSA Input'!J1539=\"Contingent\"),'TSA Input'!G1539,\"\"))","v":""},{"$f":"IF('TSA Input'!J1539=\"\",\"\",IF(OR('TSA Input'!J1539=\"Yes\",'TSA Input'!J1539=\"Contingent\"),'TSA Input'!F1539,\"\"))","v":""},"",{"$f":"IF('TSA Input'!J1539=\"\",\"\",IF(OR('TSA Input'!J1539=\"Yes\",'TSA Input'!J1539=\"Contingent\"),'TSA Input'!D1539,\"\"))","v":""},{"$f":"IF('TSA Input'!J1539=\"\",\"\",IF(OR('TSA Input'!J1539=\"Yes\",'TSA Input'!J1539=\"Contingent\"),'TSA Input'!G1539,\"\"))","v":""},{"$f":"IF('TSA Input'!J1539=\"\",\"\",IF(OR('TSA Input'!J1539=\"Yes\",'TSA Input'!J1539=\"Contingent\"),'TSA Input'!F1539,\"\"))","v":""},"","Required","Required"]
["",null,{"$f":"IF('TSA Input'!J1540=\"\",\"\",IF(OR('TSA Input'!J1540=\"Yes\",'TSA Input'!J1540=\"Contingent\"),'TSA Input'!B1540,\"Ineligible\"))","v":""},{"$f":"IF('TSA Input'!J1540=\"\",\"\",IF(OR('TSA Input'!J1540=\"Yes\",'TSA Input'!J1540=\"Contingent\"),'TSA Input'!I1540,\"\"))","v":""},{"$f":"IF('TSA Input'!J1540=\"\",\"\",IF(OR('TSA Input'!J1540=\"Yes\",'TSA Input'!J1540=\"Contingent\"),'TSA Input'!C1540,\"\"))","v":""},{"$f":"IF('TSA Input'!J1540=\"\",\"\",IF(OR('TSA Input'!J1540=\"Yes\",'TSA Input'!J1540=\"Contingent\"),'TSA Input'!D1540,\"\"))","v":""},{"$f":"IF('TSA Input'!J1540=\"\",\"\",IF(OR('TSA Input'!J1540=\"Yes\",'TSA Input'!J1540=\"Contingent\"),'TSA Input'!G1540,\"\"))","v":""},{"$f":"IF('TSA Input'!J1540=\"\",\"\",IF(OR('TSA Input'!J1540=\"Yes\",'TSA Input'!J1540=\"Contingent\"),'TSA Input'!F1540,\"\"))","v":""},{"$f":"IF($C1578=\"\",\"\",SUM(F1578:H1578))","v":""},{"$f":"IF('TSA Input'!J1540=\"\",\"\",IF(OR('TSA Input'!J1540=\"Yes\",'TSA Input'!J1540=\"Contingent\"),'TSA Input'!D1540,\"\"))","v":""},{"$f":"IF('TSA Input'!J1540=\"\",\"\",IF(OR('TSA Input'!J1540=\"Yes\",'TSA Input'!J1540=\"Contingent\"),'TSA Input'!G1540,\"\"))","v":""},{"$f":"IF('TSA Input'!J1540=\"\",\"\",IF(OR('TSA Input'!J1540=\"Yes\",'TSA Input'!J1540=\"Contingent\"),'TSA Input'!F1540,\"\"))","v":""},{"$f":"IF($C1578=\"\",\"\",SUM(J1578:L1578))","v":""},"Required","Required"]
["",null,{"$f":"IF('TSA Input'!J1541=\"\",\"\",IF(OR('TSA Input'!J1541=\"Yes\",'TSA Input'!J1541=\"Contingent\"),'TSA Input'!B1541,\"Ineligible\"))","v":""},{"$f":"IF('TSA Input'!J1541=\"\",\"\",IF(OR('TSA Input'!J1541=\"Yes\",'TSA Input'!J1541=\"Contingent\"),'TSA Input'!I1541,\"\"))","v":""},{"$f":"IF('TSA Input'!J1541=\"\",\"\",IF(OR('TSA Input'!J1541=\"Yes\",'TSA Input'!J1541=\"Contingent\"),'TSA Input'!C1541,\"\"))","v":""},{"$f":"IF('TSA Input'!J1541=\"\",\"\",IF(OR('TSA Input'!J1541=\"Yes\",'TSA Input'!J1541=\"Contingent\"),'TSA Input'!D1541,\"\"))","v":""},{"$f":"IF('TSA Input'!J1541=\"\",\"\",IF(OR('TSA Input'!J1541=\"Yes\",'TSA Input'!J1541=\"Contingent\"),'TSA Input'!G1541,\"\"))","v":""},{"$f":"IF('TSA Input'!J1541=\"\",\"\",IF(OR('TSA Input'!J1541=\"Yes\",'TSA Input'!J1541=\"Contingent\"),'TSA Input'!F1541,\"\"))","v":""},"",{"$f":"IF('TSA Input'!J1541=\"\",\"\",IF(OR('TSA Input'!J1541=\"Yes\",'TSA Input'!J1541=\"Contingent\"),'TSA Input'!D1541,\"\"))","v":""},{"$f":"IF('TSA Input'!J1541=\"\",\"\",IF(OR('TSA Input'!J1541=\"Yes\",'TSA Input'!J1541=\"Contingent\"),'TSA Input'!G1541,\"\"))","v":""},{"$f":"IF('TSA Input'!J1541=\"\",\"\",IF(OR('TSA Input'!J1541=\"Yes\",'TSA Input'!J1541=\"Contingent\"),'TSA Input'!F1541,\"\"))","v":""},"","Required","Required"]
["",null,{"$f":"IF('TSA Input'!J1542=\"\",\"\",IF(OR('TSA Input'!J1542=\"Yes\",'TSA Input'!J1542=\"Contingent\"),'TSA Input'!B1542,\"Ineligible\"))","v":""},{"$f":"IF('TSA Input'!J1542=\"\",\"\",IF(OR('TSA Input'!J1542=\"Yes\",'TSA Input'!J1542=\"Contingent\"),'TSA Input'!I1542,\"\"))","v":""},{"$f":"IF('TSA Input'!J1542=\"\",\"\",IF(OR('TSA Input'!J1542=\"Yes\",'TSA Input'!J1542=\"Contingent\"),'TSA Input'!C1542,\"\"))","v":""},{"$f":"IF('TSA Input'!J1542=\"\",\"\",IF(OR('TSA Input'!J1542=\"Yes\",'TSA Input'!J1542=\"Contingent\"),'TSA Input'!D1542,\"\"))","v":""},{"$f":"IF('TSA Input'!J1542=\"\",\"\",IF(OR('TSA Input'!J1542=\"Yes\",'TSA Input'!J1542=\"Contingent\"),'TSA Input'!G1542,\"\"))","v":""},{"$f":"IF('TSA Input'!J1542=\"\",\"\",IF(OR('TSA Input'!J1542=\"Yes\",'TSA Input'!J1542=\"Contingent\"),'TSA Input'!F1542,\"\"))","v":""},"",{"$f":"IF('TSA Input'!J1542=\"\",\"\",IF(OR('TSA Input'!J1542=\"Yes\",'TSA Input'!J1542=\"Contingent\"),'TSA Input'!D1542,\"\"))","v":""},{"$f":"IF('TSA Input'!J1542=\"\",\"\",IF(OR('TSA Input'!J1542=\"Yes\",'TSA Input'!J1542=\"Contingent\"),'TSA Input'!G1542,\"\"))","v":""},{"$f":"IF('TSA Input'!J1542=\"\",\"\",IF(OR('TSA Input'!J1542=\"Yes\",'TSA Input'!J1542=\"Contingent\"),'TSA Input'!F1542,\"\"))","v":""},"","Required","Required"]
["",null,{"$f":"IF('TSA Input'!J1543=\"\",\"\",IF(OR('TSA Input'!J1543=\"Yes\",'TSA Input'!J1543=\"Contingent\"),'TSA Input'!B1543,\"Ineligible\"))","v":""},{"$f":"IF('TSA Input'!J1543=\"\",\"\",IF(OR('TSA Input'!J1543=\"Yes\",'TSA Input'!J1543=\"Contingent\"),'TSA Input'!I1543,\"\"))","v":""},{"$f":"IF('TSA Input'!J1543=\"\",\"\",IF(OR('TSA Input'!J1543=\"Yes\",'TSA Input'!J1543=\"Contingent\"),'TSA Input'!C1543,\"\"))","v":""},{"$f":"IF('TSA Input'!J1543=\"\",\"\",IF(OR('TSA Input'!J1543=\"Yes\",'TSA Input'!J1543=\"Contingent\"),'TSA Input'!D1543,\"\"))","v":""},{"$f":"IF('TSA Input'!J1543=\"\",\"\",IF(OR('TSA Input'!J1543=\"Yes\",'TSA Input'!J1543=\"Contingent\"),'TSA Input'!G1543,\"\"))","v":""},{"$f":"IF('TSA Input'!J1543=\"\",\"\",IF(OR('TSA Input'!J1543=\"Yes\",'TSA Input'!J1543=\"Contingent\"),'TSA Input'!F1543,\"\"))","v":""},"",{"$f":"IF('TSA Input'!J1543=\"\",\"\",IF(OR('TSA Input'!J1543=\"Yes\",'TSA Input'!J1543=\"Contingent\"),'TSA Input'!D1543,\"\"))","v":""},{"$f":"IF('TSA Input'!J1543=\"\",\"\",IF(OR('TSA Input'!J1543=\"Yes\",'TSA Input'!J1543=\"Contingent\"),'TSA Input'!G1543,\"\"))","v":""},{"$f":"IF('TSA Input'!J1543=\"\",\"\",IF(OR('TSA Input'!J1543=\"Yes\",'TSA Input'!J1543=\"Contingent\"),'TSA Input'!F1543,\"\"))","v":""},"","Required","Required"]
["",null,{"$f":"IF('TSA Input'!J1544=\"\",\"\",IF(OR('TSA Input'!J1544=\"Yes\",'TSA Input'!J1544=\"Contingent\"),'TSA Input'!B1544,\"Ineligible\"))","v":""},{"$f":"IF('TSA Input'!J1544=\"\",\"\",IF(OR('TSA Input'!J1544=\"Yes\",'TSA Input'!J1544=\"Contingent\"),'TSA Input'!I1544,\"\"))","v":""},{"$f":"IF('TSA Input'!J1544=\"\",\"\",IF(OR('TSA Input'!J1544=\"Yes\",'TSA Input'!J1544=\"Contingent\"),'TSA Input'!C1544,\"\"))","v":""},{"$f":"IF('TSA Input'!J1544=\"\",\"\",IF(OR('TSA Input'!J1544=\"Yes\",'TSA Input'!J1544=\"Contingent\"),'TSA Input'!D1544,\"\"))","v":""},{"$f":"IF('TSA Input'!J1544=\"\",\"\",IF(OR('TSA Input'!J1544=\"Yes\",'TSA Input'!J1544=\"Contingent\"),'TSA Input'!G1544,\"\"))","v":""},{"$f":"IF('TSA Input'!J1544=\"\",\"\",IF(OR('TSA Input'!J1544=\"Yes\",'TSA Input'!J1544=\"Contingent\"),'TSA Input'!F1544,\"\"))","v":""},"",{"$f":"IF('TSA Input'!J1544=\"\",\"\",IF(OR('TSA Input'!J1544=\"Yes\",'TSA Input'!J1544=\"Contingent\"),'TSA Input'!D1544,\"\"))","v":""},{"$f":"IF('TSA Input'!J1544=\"\",\"\",IF(OR('TSA Input'!J1544=\"Yes\",'TSA Input'!J1544=\"Contingent\"),'TSA Input'!G1544,\"\"))","v":""},{"$f":"IF('TSA Input'!J1544=\"\",\"\",IF(OR('TSA Input'!J1544=\"Yes\",'TSA Input'!J1544=\"Contingent\"),'TSA Input'!F1544,\"\"))","v":""},"","Required","Required"]
["",null,{"$f":"IF('TSA Input'!J1545=\"\",\"\",IF(OR('TSA Input'!J1545=\"Yes\",'TSA Input'!J1545=\"Contingent\"),'TSA Input'!B1545,\"Ineligible\"))","v":""},{"$f":"IF('TSA Input'!J1545=\"\",\"\",IF(OR('TSA Input'!J1545=\"Yes\",'TSA Input'!J1545=\"Contingent\"),'TSA Input'!I1545,\"\"))","v":""},{"$f":"IF('TSA Input'!J1545=\"\",\"\",IF(OR('TSA Input'!J1545=\"Yes\",'TSA Input'!J1545=\"Contingent\"),'TSA Input'!C1545,\"\"))","v":""},{"$f":"IF('TSA Input'!J1545=\"\",\"\",IF(OR('TSA Input'!J1545=\"Yes\",'TSA Input'!J1545=\"Contingent\"),'TSA Input'!D1545,\"\"))","v":""},{"$f":"IF('TSA Input'!J1545=\"\",\"\",IF(OR('TSA Input'!J1545=\"Yes\",'TSA Input'!J1545=\"Contingent\"),'TSA Input'!G1545,\"\"))","v":""},{"$f":"IF('TSA Input'!J1545=\"\",\"\",IF(OR('TSA Input'!J1545=\"Yes\",'TSA Input'!J1545=\"Contingent\"),'TSA Input'!F1545,\"\"))","v":""},"",{"$f":"IF('TSA Input'!J1545=\"\",\"\",IF(OR('TSA Input'!J1545=\"Yes\",'TSA Input'!J1545=\"Contingent\"),'TSA Input'!D1545,\"\"))","v":""},{"$f":"IF('TSA Input'!J1545=\"\",\"\",IF(OR('TSA Input'!J1545=\"Yes\",'TSA Input'!J1545=\"Contingent\"),'TSA Input'!G1545,\"\"))","v":""},{"$f":"IF('TSA Input'!J1545=\"\",\"\",IF(OR('TSA Input'!J1545=\"Yes\",'TSA Input'!J1545=\"Contingent\"),'TSA Input'!F1545,\"\"))","v":""},"","Required","Required"]
["",null,{"$f":"IF('TSA Input'!J1546=\"\",\"\",IF(OR('TSA Input'!J1546=\"Yes\",'TSA Input'!J1546=\"Contingent\"),'TSA Input'!B1546,\"Ineligible\"))","v":""},{"$f":"IF('TSA Input'!J1546=\"\",\"\",IF(OR('TSA Input'!J1546=\"Yes\",'TSA Input'!J1546=\"Contingent\"),'TSA Input'!I1546,\"\"))","v":""},{"$f":"IF('TSA Input'!J1546=\"\",\"\",IF(OR('TSA Input'!J1546=\"Yes\",'TSA Input'!J1546=\"Contingent\"),'TSA Input'!C1546,\"\"))","v":""},{"$f":"IF('TSA Input'!J1546=\"\",\"\",IF(OR('TSA Input'!J1546=\"Yes\",'TSA Input'!J1546=\"Contingent\"),'TSA Input'!D1546,\"\"))","v":""},{"$f":"IF('TSA Input'!J1546=\"\",\"\",IF(OR('TSA Input'!J1546=\"Yes\",'TSA Input'!J1546=\"Contingent\"),'TSA Input'!G1546,\"\"))","v":""},{"$f":"IF('TSA Input'!J1546=\"\",\"\",IF(OR('TSA Input'!J1546=\"Yes\",'TSA Input'!J1546=\"Contingent\"),'TSA Input'!F1546,\"\"))","v":""},"",{"$f":"IF('TSA Input'!J1546=\"\",\"\",IF(OR('TSA Input'!J1546=\"Yes\",'TSA Input'!J1546=\"Contingent\"),'TSA Input'!D1546,\"\"))","v":""},{"$f":"IF('TSA Input'!J1546=\"\",\"\",IF(OR('TSA Input'!J1546=\"Yes\",'TSA Input'!J1546=\"Contingent\"),'TSA Input'!G1546,\"\"))","v":""},{"$f":"IF('TSA Input'!J1546=\"\",\"\",IF(OR('TSA Input'!J1546=\"Yes\",'TSA Input'!J1546=\"Contingent\"),'TSA Input'!F1546,\"\"))","v":""},"","Required","Required"]
["",null,{"$f":"IF('TSA Input'!J1547=\"\",\"\",IF(OR('TSA Input'!J1547=\"Yes\",'TSA Input'!J1547=\"Contingent\"),'TSA Input'!B1547,\"Ineligible\"))","v":""},{"$f":"IF('TSA Input'!J1547=\"\",\"\",IF(OR('TSA Input'!J1547=\"Yes\",'TSA Input'!J1547=\"Contingent\"),'TSA Input'!I1547,\"\"))","v":""},{"$f":"IF('TSA Input'!J1547=\"\",\"\",IF(OR('TSA Input'!J1547=\"Yes\",'TSA Input'!J1547=\"Contingent\"),'TSA Input'!C1547,\"\"))","v":""},{"$f":"IF('TSA Input'!J1547=\"\",\"\",IF(OR('TSA Input'!J1547=\"Yes\",'TSA Input'!J1547=\"Contingent\"),'TSA Input'!D1547,\"\"))","v":""},{"$f":"IF('TSA Input'!J1547=\"\",\"\",IF(OR('TSA Input'!J1547=\"Yes\",'TSA Input'!J1547=\"Contingent\"),'TSA Input'!G1547,\"\"))","v":""},{"$f":"IF('TSA Input'!J1547=\"\",\"\",IF(OR('TSA Input'!J1547=\"Yes\",'TSA Input'!J1547=\"Contingent\"),'TSA Input'!F1547,\"\"))","v":""},"",{"$f":"IF('TSA Input'!J1547=\"\",\"\",IF(OR('TSA Input'!J1547=\"Yes\",'TSA Input'!J1547=\"Contingent\"),'TSA Input'!D1547,\"\"))","v":""},{"$f":"IF('TSA Input'!J1547=\"\",\"\",IF(OR('TSA Input'!J1547=\"Yes\",'TSA Input'!J1547=\"Contingent\"),'TSA Input'!G1547,\"\"))","v":""},{"$f":"IF('TSA Input'!J1547=\"\",\"\",IF(OR('TSA Input'!J1547=\"Yes\",'TSA Input'!J1547=\"Contingent\"),'TSA Input'!F1547,\"\"))","v":""},"","Required","Required"]
["",null,{"$f":"IF('TSA Input'!J1548=\"\",\"\",IF(OR('TSA Input'!J1548=\"Yes\",'TSA Input'!J1548=\"Contingent\"),'TSA Input'!B1548,\"Ineligible\"))","v":""},{"$f":"IF('TSA Input'!J1548=\"\",\"\",IF(OR('TSA Input'!J1548=\"Yes\",'TSA Input'!J1548=\"Contingent\"),'TSA Input'!I1548,\"\"))","v":""},{"$f":"IF('TSA Input'!J1548=\"\",\"\",IF(OR('TSA Input'!J1548=\"Yes\",'TSA Input'!J1548=\"Contingent\"),'TSA Input'!C1548,\"\"))","v":""},{"$f":"IF('TSA Input'!J1548=\"\",\"\",IF(OR('TSA Input'!J1548=\"Yes\",'TSA Input'!J1548=\"Contingent\"),'TSA Input'!D1548,\"\"))","v":""},{"$f":"IF('TSA Input'!J1548=\"\",\"\",IF(OR('TSA Input'!J1548=\"Yes\",'TSA Input'!J1548=\"Contingent\"),'TSA Input'!G1548,\"\"))","v":""},{"$f":"IF('TSA Input'!J1548=\"\",\"\",IF(OR('TSA Input'!J1548=\"Yes\",'TSA Input'!J1548=\"Contingent\"),'TSA Input'!F1548,\"\"))","v":""},"",{"$f":"IF('TSA Input'!J1548=\"\",\"\",IF(OR('TSA Input'!J1548=\"Yes\",'TSA Input'!J1548=\"Contingent\"),'TSA Input'!D1548,\"\"))","v":""},{"$f":"IF('TSA Input'!J1548=\"\",\"\",IF(OR('TSA Input'!J1548=\"Yes\",'TSA Input'!J1548=\"Contingent\"),'TSA Input'!G1548,\"\"))","v":""},{"$f":"IF('TSA Input'!J1548=\"\",\"\",IF(OR('TSA Input'!J1548=\"Yes\",'TSA Input'!J1548=\"Contingent\"),'TSA Input'!F1548,\"\"))","v":""},"","Required","Required"]
["",null,{"$f":"IF('TSA Input'!J1549=\"\",\"\",IF(OR('TSA Input'!J1549=\"Yes\",'TSA Input'!J1549=\"Contingent\"),'TSA Input'!B1549,\"Ineligible\"))","v":""},{"$f":"IF('TSA Input'!J1549=\"\",\"\",IF(OR('TSA Input'!J1549=\"Yes\",'TSA Input'!J1549=\"Contingent\"),'TSA Input'!I1549,\"\"))","v":""},{"$f":"IF('TSA Input'!J1549=\"\",\"\",IF(OR('TSA Input'!J1549=\"Yes\",'TSA Input'!J1549=\"Contingent\"),'TSA Input'!C1549,\"\"))","v":""},{"$f":"IF('TSA Input'!J1549=\"\",\"\",IF(OR('TSA Input'!J1549=\"Yes\",'TSA Input'!J1549=\"Contingent\"),'TSA Input'!D1549,\"\"))","v":""},{"$f":"IF('TSA Input'!J1549=\"\",\"\",IF(OR('TSA Input'!J1549=\"Yes\",'TSA Input'!J1549=\"Contingent\"),'TSA Input'!G1549,\"\"))","v":""},{"$f":"IF('TSA Input'!J1549=\"\",\"\",IF(OR('TSA Input'!J1549=\"Yes\",'TSA Input'!J1549=\"Contingent\"),'TSA Input'!F1549,\"\"))","v":""},"",{"$f":"IF('TSA Input'!J1549=\"\",\"\",IF(OR('TSA Input'!J1549=\"Yes\",'TSA Input'!J1549=\"Contingent\"),'TSA Input'!D1549,\"\"))","v":""},{"$f":"IF('TSA Input'!J1549=\"\",\"\",IF(OR('TSA Input'!J1549=\"Yes\",'TSA Input'!J1549=\"Contingent\"),'TSA Input'!G1549,\"\"))","v":""},{"$f":"IF('TSA Input'!J1549=\"\",\"\",IF(OR('TSA Input'!J1549=\"Yes\",'TSA Input'!J1549=\"Contingent\"),'TSA Input'!F1549,\"\"))","v":""},"","Required","Required"]
["",null,{"$f":"IF('TSA Input'!J1550=\"\",\"\",IF(OR('TSA Input'!J1550=\"Yes\",'TSA Input'!J1550=\"Contingent\"),'TSA Input'!B1550,\"Ineligible\"))","v":""},{"$f":"IF('TSA Input'!J1550=\"\",\"\",IF(OR('TSA Input'!J1550=\"Yes\",'TSA Input'!J1550=\"Contingent\"),'TSA Input'!I1550,\"\"))","v":""},{"$f":"IF('TSA Input'!J1550=\"\",\"\",IF(OR('TSA Input'!J1550=\"Yes\",'TSA Input'!J1550=\"Contingent\"),'TSA Input'!C1550,\"\"))","v":""},{"$f":"IF('TSA Input'!J1550=\"\",\"\",IF(OR('TSA Input'!J1550=\"Yes\",'TSA Input'!J1550=\"Contingent\"),'TSA Input'!D1550,\"\"))","v":""},{"$f":"IF('TSA Input'!J1550=\"\",\"\",IF(OR('TSA Input'!J1550=\"Yes\",'TSA Input'!J1550=\"Contingent\"),'TSA Input'!G1550,\"\"))","v":""},{"$f":"IF('TSA Input'!J1550=\"\",\"\",IF(OR('TSA Input'!J1550=\"Yes\",'TSA Input'!J1550=\"Contingent\"),'TSA Input'!F1550,\"\"))","v":""},"",{"$f":"IF('TSA Input'!J1550=\"\",\"\",IF(OR('TSA Input'!J1550=\"Yes\",'TSA Input'!J1550=\"Contingent\"),'TSA Input'!D1550,\"\"))","v":""},{"$f":"IF('TSA Input'!J1550=\"\",\"\",IF(OR('TSA Input'!J1550=\"Yes\",'TSA Input'!J1550=\"Contingent\"),'TSA Input'!G1550,\"\"))","v":""},{"$f":"IF('TSA Input'!J1550=\"\",\"\",IF(OR('TSA Input'!J1550=\"Yes\",'TSA Input'!J1550=\"Contingent\"),'TSA Input'!F1550,\"\"))","v":""},"","Required","Required"]
["",null,{"$f":"IF('TSA Input'!J1551=\"\",\"\",IF(OR('TSA Input'!J1551=\"Yes\",'TSA Input'!J1551=\"Contingent\"),'TSA Input'!B1551,\"Ineligible\"))","v":""},{"$f":"IF('TSA Input'!J1551=\"\",\"\",IF(OR('TSA Input'!J1551=\"Yes\",'TSA Input'!J1551=\"Contingent\"),'TSA Input'!I1551,\"\"))","v":""},{"$f":"IF('TSA Input'!J1551=\"\",\"\",IF(OR('TSA Input'!J1551=\"Yes\",'TSA Input'!J1551=\"Contingent\"),'TSA Input'!C1551,\"\"))","v":""},{"$f":"IF('TSA Input'!J1551=\"\",\"\",IF(OR('TSA Input'!J1551=\"Yes\",'TSA Input'!J1551=\"Contingent\"),'TSA Input'!D1551,\"\"))","v":""},{"$f":"IF('TSA Input'!J1551=\"\",\"\",IF(OR('TSA Input'!J1551=\"Yes\",'TSA Input'!J1551=\"Contingent\"),'TSA Input'!G1551,\"\"))","v":""},{"$f":"IF('TSA Input'!J1551=\"\",\"\",IF(OR('TSA Input'!J1551=\"Yes\",'TSA Input'!J1551=\"Contingent\"),'TSA Input'!F1551,\"\"))","v":""},"",{"$f":"IF('TSA Input'!J1551=\"\",\"\",IF(OR('TSA Input'!J1551=\"Yes\",'TSA Input'!J1551=\"Contingent\"),'TSA Input'!D1551,\"\"))","v":""},{"$f":"IF('TSA Input'!J1551=\"\",\"\",IF(OR('TSA Input'!J1551=\"Yes\",'TSA Input'!J1551=\"Contingent\"),'TSA Input'!G1551,\"\"))","v":""},{"$f":"IF('TSA Input'!J1551=\"\",\"\",IF(OR('TSA Input'!J1551=\"Yes\",'TSA Input'!J1551=\"Contingent\"),'TSA Input'!F1551,\"\"))","v":""},"","Required","Required"]
["",null,{"$f":"IF('TSA Input'!J1552=\"\",\"\",IF(OR('TSA Input'!J1552=\"Yes\",'TSA Input'!J1552=\"Contingent\"),'TSA Input'!B1552,\"Ineligible\"))","v":""},{"$f":"IF('TSA Input'!J1552=\"\",\"\",IF(OR('TSA Input'!J1552=\"Yes\",'TSA Input'!J1552=\"Contingent\"),'TSA Input'!I1552,\"\"))","v":""},{"$f":"IF('TSA Input'!J1552=\"\",\"\",IF(OR('TSA Input'!J1552=\"Yes\",'TSA Input'!J1552=\"Contingent\"),'TSA Input'!C1552,\"\"))","v":""},{"$f":"IF('TSA Input'!J1552=\"\",\"\",IF(OR('TSA Input'!J1552=\"Yes\",'TSA Input'!J1552=\"Contingent\"),'TSA Input'!D1552,\"\"))","v":""},{"$f":"IF('TSA Input'!J1552=\"\",\"\",IF(OR('TSA Input'!J1552=\"Yes\",'TSA Input'!J1552=\"Contingent\"),'TSA Input'!G1552,\"\"))","v":""},{"$f":"IF('TSA Input'!J1552=\"\",\"\",IF(OR('TSA Input'!J1552=\"Yes\",'TSA Input'!J1552=\"Contingent\"),'TSA Input'!F1552,\"\"))","v":""},"",{"$f":"IF('TSA Input'!J1552=\"\",\"\",IF(OR('TSA Input'!J1552=\"Yes\",'TSA Input'!J1552=\"Contingent\"),'TSA Input'!D1552,\"\"))","v":""},{"$f":"IF('TSA Input'!J1552=\"\",\"\",IF(OR('TSA Input'!J1552=\"Yes\",'TSA Input'!J1552=\"Contingent\"),'TSA Input'!G1552,\"\"))","v":""},{"$f":"IF('TSA Input'!J1552=\"\",\"\",IF(OR('TSA Input'!J1552=\"Yes\",'TSA Input'!J1552=\"Contingent\"),'TSA Input'!F1552,\"\"))","v":""},"","Required","Required"]
["",null,{"$f":"IF('TSA Input'!J1553=\"\",\"\",IF(OR('TSA Input'!J1553=\"Yes\",'TSA Input'!J1553=\"Contingent\"),'TSA Input'!B1553,\"Ineligible\"))","v":""},{"$f":"IF('TSA Input'!J1553=\"\",\"\",IF(OR('TSA Input'!J1553=\"Yes\",'TSA Input'!J1553=\"Contingent\"),'TSA Input'!I1553,\"\"))","v":""},{"$f":"IF('TSA Input'!J1553=\"\",\"\",IF(OR('TSA Input'!J1553=\"Yes\",'TSA Input'!J1553=\"Contingent\"),'TSA Input'!C1553,\"\"))","v":""},{"$f":"IF('TSA Input'!J1553=\"\",\"\",IF(OR('TSA Input'!J1553=\"Yes\",'TSA Input'!J1553=\"Contingent\"),'TSA Input'!D1553,\"\"))","v":""},{"$f":"IF('TSA Input'!J1553=\"\",\"\",IF(OR('TSA Input'!J1553=\"Yes\",'TSA Input'!J1553=\"Contingent\"),'TSA Input'!G1553,\"\"))","v":""},{"$f":"IF('TSA Input'!J1553=\"\",\"\",IF(OR('TSA Input'!J1553=\"Yes\",'TSA Input'!J1553=\"Contingent\"),'TSA Input'!F1553,\"\"))","v":""},"",{"$f":"IF('TSA Input'!J1553=\"\",\"\",IF(OR('TSA Input'!J1553=\"Yes\",'TSA Input'!J1553=\"Contingent\"),'TSA Input'!D1553,\"\"))","v":""},{"$f":"IF('TSA Input'!J1553=\"\",\"\",IF(OR('TSA Input'!J1553=\"Yes\",'TSA Input'!J1553=\"Contingent\"),'TSA Input'!G1553,\"\"))","v":""},{"$f":"IF('TSA Input'!J1553=\"\",\"\",IF(OR('TSA Input'!J1553=\"Yes\",'TSA Input'!J1553=\"Contingent\"),'TSA Input'!F1553,\"\"))","v":""},"","Required","Required"]
["",null,{"$f":"IF('TSA Input'!J1554=\"\",\"\",IF(OR('TSA Input'!J1554=\"Yes\",'TSA Input'!J1554=\"Contingent\"),'TSA Input'!B1554,\"Ineligible\"))","v":""},{"$f":"IF('TSA Input'!J1554=\"\",\"\",IF(OR('TSA Input'!J1554=\"Yes\",'TSA Input'!J1554=\"Contingent\"),'TSA Input'!I1554,\"\"))","v":""},{"$f":"IF('TSA Input'!J1554=\"\",\"\",IF(OR('TSA Input'!J1554=\"Yes\",'TSA Input'!J1554=\"Contingent\"),'TSA Input'!C1554,\"\"))","v":""},{"$f":"IF('TSA Input'!J1554=\"\",\"\",IF(OR('TSA Input'!J1554=\"Yes\",'TSA Input'!J1554=\"Contingent\"),'TSA Input'!D1554,\"\"))","v":""},{"$f":"IF('TSA Input'!J1554=\"\",\"\",IF(OR('TSA Input'!J1554=\"Yes\",'TSA Input'!J1554=\"Contingent\"),'TSA Input'!G1554,\"\"))","v":""},{"$f":"IF('TSA Input'!J1554=\"\",\"\",IF(OR('TSA Input'!J1554=\"Yes\",'TSA Input'!J1554=\"Contingent\"),'TSA Input'!F1554,\"\"))","v":""},"",{"$f":"IF('TSA Input'!J1554=\"\",\"\",IF(OR('TSA Input'!J1554=\"Yes\",'TSA Input'!J1554=\"Contingent\"),'TSA Input'!D1554,\"\"))","v":""},{"$f":"IF('TSA Input'!J1554=\"\",\"\",IF(OR('TSA Input'!J1554=\"Yes\",'TSA Input'!J1554=\"Contingent\"),'TSA Input'!G1554,\"\"))","v":""},{"$f":"IF('TSA Input'!J1554=\"\",\"\",IF(OR('TSA Input'!J1554=\"Yes\",'TSA Input'!J1554=\"Contingent\"),'TSA Input'!F1554,\"\"))","v":""},"","Required","Required"]
["",null,{"$f":"IF('TSA Input'!J1555=\"\",\"\",IF(OR('TSA Input'!J1555=\"Yes\",'TSA Input'!J1555=\"Contingent\"),'TSA Input'!B1555,\"Ineligible\"))","v":""},{"$f":"IF('TSA Input'!J1555=\"\",\"\",IF(OR('TSA Input'!J1555=\"Yes\",'TSA Input'!J1555=\"Contingent\"),'TSA Input'!I1555,\"\"))","v":""},{"$f":"IF('TSA Input'!J1555=\"\",\"\",IF(OR('TSA Input'!J1555=\"Yes\",'TSA Input'!J1555=\"Contingent\"),'TSA Input'!C1555,\"\"))","v":""},{"$f":"IF('TSA Input'!J1555=\"\",\"\",IF(OR('TSA Input'!J1555=\"Yes\",'TSA Input'!J1555=\"Contingent\"),'TSA Input'!D1555,\"\"))","v":""},{"$f":"IF('TSA Input'!J1555=\"\",\"\",IF(OR('TSA Input'!J1555=\"Yes\",'TSA Input'!J1555=\"Contingent\"),'TSA Input'!G1555,\"\"))","v":""},{"$f":"IF('TSA Input'!J1555=\"\",\"\",IF(OR('TSA Input'!J1555=\"Yes\",'TSA Input'!J1555=\"Contingent\"),'TSA Input'!F1555,\"\"))","v":""},"",{"$f":"IF('TSA Input'!J1555=\"\",\"\",IF(OR('TSA Input'!J1555=\"Yes\",'TSA Input'!J1555=\"Contingent\"),'TSA Input'!D1555,\"\"))","v":""},{"$f":"IF('TSA Input'!J1555=\"\",\"\",IF(OR('TSA Input'!J1555=\"Yes\",'TSA Input'!J1555=\"Contingent\"),'TSA Input'!G1555,\"\"))","v":""},{"$f":"IF('TSA Input'!J1555=\"\",\"\",IF(OR('TSA Input'!J1555=\"Yes\",'TSA Input'!J1555=\"Contingent\"),'TSA Input'!F1555,\"\"))","v":""},"","Required","Required"]
["",null,{"$f":"IF('TSA Input'!J1556=\"\",\"\",IF(OR('TSA Input'!J1556=\"Yes\",'TSA Input'!J1556=\"Contingent\"),'TSA Input'!B1556,\"Ineligible\"))","v":""},{"$f":"IF('TSA Input'!J1556=\"\",\"\",IF(OR('TSA Input'!J1556=\"Yes\",'TSA Input'!J1556=\"Contingent\"),'TSA Input'!I1556,\"\"))","v":""},{"$f":"IF('TSA Input'!J1556=\"\",\"\",IF(OR('TSA Input'!J1556=\"Yes\",'TSA Input'!J1556=\"Contingent\"),'TSA Input'!C1556,\"\"))","v":""},{"$f":"IF('TSA Input'!J1556=\"\",\"\",IF(OR('TSA Input'!J1556=\"Yes\",'TSA Input'!J1556=\"Contingent\"),'TSA Input'!D1556,\"\"))","v":""},{"$f":"IF('TSA Input'!J1556=\"\",\"\",IF(OR('TSA Input'!J1556=\"Yes\",'TSA Input'!J1556=\"Contingent\"),'TSA Input'!G1556,\"\"))","v":""},{"$f":"IF('TSA Input'!J1556=\"\",\"\",IF(OR('TSA Input'!J1556=\"Yes\",'TSA Input'!J1556=\"Contingent\"),'TSA Input'!F1556,\"\"))","v":""},"",{"$f":"IF('TSA Input'!J1556=\"\",\"\",IF(OR('TSA Input'!J1556=\"Yes\",'TSA Input'!J1556=\"Contingent\"),'TSA Input'!D1556,\"\"))","v":""},{"$f":"IF('TSA Input'!J1556=\"\",\"\",IF(OR('TSA Input'!J1556=\"Yes\",'TSA Input'!J1556=\"Contingent\"),'TSA Input'!G1556,\"\"))","v":""},{"$f":"IF('TSA Input'!J1556=\"\",\"\",IF(OR('TSA Input'!J1556=\"Yes\",'TSA Input'!J1556=\"Contingent\"),'TSA Input'!F1556,\"\"))","v":""},"","Required","Required"]
["",null,{"$f":"IF('TSA Input'!J1557=\"\",\"\",IF(OR('TSA Input'!J1557=\"Yes\",'TSA Input'!J1557=\"Contingent\"),'TSA Input'!B1557,\"Ineligible\"))","v":""},{"$f":"IF('TSA Input'!J1557=\"\",\"\",IF(OR('TSA Input'!J1557=\"Yes\",'TSA Input'!J1557=\"Contingent\"),'TSA Input'!I1557,\"\"))","v":""},{"$f":"IF('TSA Input'!J1557=\"\",\"\",IF(OR('TSA Input'!J1557=\"Yes\",'TSA Input'!J1557=\"Contingent\"),'TSA Input'!C1557,\"\"))","v":""},{"$f":"IF('TSA Input'!J1557=\"\",\"\",IF(OR('TSA Input'!J1557=\"Yes\",'TSA Input'!J1557=\"Contingent\"),'TSA Input'!D1557,\"\"))","v":""},{"$f":"IF('TSA Input'!J1557=\"\",\"\",IF(OR('TSA Input'!J1557=\"Yes\",'TSA Input'!J1557=\"Contingent\"),'TSA Input'!G1557,\"\"))","v":""},{"$f":"IF('TSA Input'!J1557=\"\",\"\",IF(OR('TSA Input'!J1557=\"Yes\",'TSA Input'!J1557=\"Contingent\"),'TSA Input'!F1557,\"\"))","v":""},"",{"$f":"IF('TSA Input'!J1557=\"\",\"\",IF(OR('TSA Input'!J1557=\"Yes\",'TSA Input'!J1557=\"Contingent\"),'TSA Input'!D1557,\"\"))","v":""},{"$f":"IF('TSA Input'!J1557=\"\",\"\",IF(OR('TSA Input'!J1557=\"Yes\",'TSA Input'!J1557=\"Contingent\"),'TSA Input'!G1557,\"\"))","v":""},{"$f":"IF('TSA Input'!J1557=\"\",\"\",IF(OR('TSA Input'!J1557=\"Yes\",'TSA Input'!J1557=\"Contingent\"),'TSA Input'!F1557,\"\"))","v":""},"","Required","Required"]
["",null,{"$f":"IF('TSA Input'!J1558=\"\",\"\",IF(OR('TSA Input'!J1558=\"Yes\",'TSA Input'!J1558=\"Contingent\"),'TSA Input'!B1558,\"Ineligible\"))","v":""},{"$f":"IF('TSA Input'!J1558=\"\",\"\",IF(OR('TSA Input'!J1558=\"Yes\",'TSA Input'!J1558=\"Contingent\"),'TSA Input'!I1558,\"\"))","v":""},{"$f":"IF('TSA Input'!J1558=\"\",\"\",IF(OR('TSA Input'!J1558=\"Yes\",'TSA Input'!J1558=\"Contingent\"),'TSA Input'!C1558,\"\"))","v":""},{"$f":"IF('TSA Input'!J1558=\"\",\"\",IF(OR('TSA Input'!J1558=\"Yes\",'TSA Input'!J1558=\"Contingent\"),'TSA Input'!D1558,\"\"))","v":""},{"$f":"IF('TSA Input'!J1558=\"\",\"\",IF(OR('TSA Input'!J1558=\"Yes\",'TSA Input'!J1558=\"Contingent\"),'TSA Input'!G1558,\"\"))","v":""},{"$f":"IF('TSA Input'!J1558=\"\",\"\",IF(OR('TSA Input'!J1558=\"Yes\",'TSA Input'!J1558=\"Contingent\"),'TSA Input'!F1558,\"\"))","v":""},"",{"$f":"IF('TSA Input'!J1558=\"\",\"\",IF(OR('TSA Input'!J1558=\"Yes\",'TSA Input'!J1558=\"Contingent\"),'TSA Input'!D1558,\"\"))","v":""},{"$f":"IF('TSA Input'!J1558=\"\",\"\",IF(OR('TSA Input'!J1558=\"Yes\",'TSA Input'!J1558=\"Contingent\"),'TSA Input'!G1558,\"\"))","v":""},{"$f":"IF('TSA Input'!J1558=\"\",\"\",IF(OR('TSA Input'!J1558=\"Yes\",'TSA Input'!J1558=\"Contingent\"),'TSA Input'!F1558,\"\"))","v":""},"","Required","Required"]
["",null,{"$f":"IF('TSA Input'!J1559=\"\",\"\",IF(OR('TSA Input'!J1559=\"Yes\",'TSA Input'!J1559=\"Contingent\"),'TSA Input'!B1559,\"Ineligible\"))","v":""},{"$f":"IF('TSA Input'!J1559=\"\",\"\",IF(OR('TSA Input'!J1559=\"Yes\",'TSA Input'!J1559=\"Contingent\"),'TSA Input'!I1559,\"\"))","v":""},{"$f":"IF('TSA Input'!J1559=\"\",\"\",IF(OR('TSA Input'!J1559=\"Yes\",'TSA Input'!J1559=\"Contingent\"),'TSA Input'!C1559,\"\"))","v":""},{"$f":"IF('TSA Input'!J1559=\"\",\"\",IF(OR('TSA Input'!J1559=\"Yes\",'TSA Input'!J1559=\"Contingent\"),'TSA Input'!D1559,\"\"))","v":""},{"$f":"IF('TSA Input'!J1559=\"\",\"\",IF(OR('TSA Input'!J1559=\"Yes\",'TSA Input'!J1559=\"Contingent\"),'TSA Input'!G1559,\"\"))","v":""},{"$f":"IF('TSA Input'!J1559=\"\",\"\",IF(OR('TSA Input'!J1559=\"Yes\",'TSA Input'!J1559=\"Contingent\"),'TSA Input'!F1559,\"\"))","v":""},"",{"$f":"IF('TSA Input'!J1559=\"\",\"\",IF(OR('TSA Input'!J1559=\"Yes\",'TSA Input'!J1559=\"Contingent\"),'TSA Input'!D1559,\"\"))","v":""},{"$f":"IF('TSA Input'!J1559=\"\",\"\",IF(OR('TSA Input'!J1559=\"Yes\",'TSA Input'!J1559=\"Contingent\"),'TSA Input'!G1559,\"\"))","v":""},{"$f":"IF('TSA Input'!J1559=\"\",\"\",IF(OR('TSA Input'!J1559=\"Yes\",'TSA Input'!J1559=\"Contingent\"),'TSA Input'!F1559,\"\"))","v":""},"","Required","Required"]
["",null,{"$f":"IF('TSA Input'!J1560=\"\",\"\",IF(OR('TSA Input'!J1560=\"Yes\",'TSA Input'!J1560=\"Contingent\"),'TSA Input'!B1560,\"Ineligible\"))","v":""},{"$f":"IF('TSA Input'!J1560=\"\",\"\",IF(OR('TSA Input'!J1560=\"Yes\",'TSA Input'!J1560=\"Contingent\"),'TSA Input'!I1560,\"\"))","v":""},{"$f":"IF('TSA Input'!J1560=\"\",\"\",IF(OR('TSA Input'!J1560=\"Yes\",'TSA Input'!J1560=\"Contingent\"),'TSA Input'!C1560,\"\"))","v":""},{"$f":"IF('TSA Input'!J1560=\"\",\"\",IF(OR('TSA Input'!J1560=\"Yes\",'TSA Input'!J1560=\"Contingent\"),'TSA Input'!D1560,\"\"))","v":""},{"$f":"IF('TSA Input'!J1560=\"\",\"\",IF(OR('TSA Input'!J1560=\"Yes\",'TSA Input'!J1560=\"Contingent\"),'TSA Input'!G1560,\"\"))","v":""},{"$f":"IF('TSA Input'!J1560=\"\",\"\",IF(OR('TSA Input'!J1560=\"Yes\",'TSA Input'!J1560=\"Contingent\"),'TSA Input'!F1560,\"\"))","v":""},"",{"$f":"IF('TSA Input'!J1560=\"\",\"\",IF(OR('TSA Input'!J1560=\"Yes\",'TSA Input'!J1560=\"Contingent\"),'TSA Input'!D1560,\"\"))","v":""},{"$f":"IF('TSA Input'!J1560=\"\",\"\",IF(OR('TSA Input'!J1560=\"Yes\",'TSA Input'!J1560=\"Contingent\"),'TSA Input'!G1560,\"\"))","v":""},{"$f":"IF('TSA Input'!J1560=\"\",\"\",IF(OR('TSA Input'!J1560=\"Yes\",'TSA Input'!J1560=\"Contingent\"),'TSA Input'!F1560,\"\"))","v":""},"","Required","Required"]
["",null,{"$f":"IF('TSA Input'!J1561=\"\",\"\",IF(OR('TSA Input'!J1561=\"Yes\",'TSA Input'!J1561=\"Contingent\"),'TSA Input'!B1561,\"Ineligible\"))","v":""},{"$f":"IF('TSA Input'!J1561=\"\",\"\",IF(OR('TSA Input'!J1561=\"Yes\",'TSA Input'!J1561=\"Contingent\"),'TSA Input'!I1561,\"\"))","v":""},{"$f":"IF('TSA Input'!J1561=\"\",\"\",IF(OR('TSA Input'!J1561=\"Yes\",'TSA Input'!J1561=\"Contingent\"),'TSA Input'!C1561,\"\"))","v":""},{"$f":"IF('TSA Input'!J1561=\"\",\"\",IF(OR('TSA Input'!J1561=\"Yes\",'TSA Input'!J1561=\"Contingent\"),'TSA Input'!D1561,\"\"))","v":""},{"$f":"IF('TSA Input'!J1561=\"\",\"\",IF(OR('TSA Input'!J1561=\"Yes\",'TSA Input'!J1561=\"Contingent\"),'TSA Input'!G1561,\"\"))","v":""},{"$f":"IF('TSA Input'!J1561=\"\",\"\",IF(OR('TSA Input'!J1561=\"Yes\",'TSA Input'!J1561=\"Contingent\"),'TSA Input'!F1561,\"\"))","v":""},"",{"$f":"IF('TSA Input'!J1561=\"\",\"\",IF(OR('TSA Input'!J1561=\"Yes\",'TSA Input'!J1561=\"Contingent\"),'TSA Input'!D1561,\"\"))","v":""},{"$f":"IF('TSA Input'!J1561=\"\",\"\",IF(OR('TSA Input'!J1561=\"Yes\",'TSA Input'!J1561=\"Contingent\"),'TSA Input'!G1561,\"\"))","v":""},{"$f":"IF('TSA Input'!J1561=\"\",\"\",IF(OR('TSA Input'!J1561=\"Yes\",'TSA Input'!J1561=\"Contingent\"),'TSA Input'!F1561,\"\"))","v":""},"","Required","Required"]
["",null,{"$f":"IF('TSA Input'!J1562=\"\",\"\",IF(OR('TSA Input'!J1562=\"Yes\",'TSA Input'!J1562=\"Contingent\"),'TSA Input'!B1562,\"Ineligible\"))","v":""},{"$f":"IF('TSA Input'!J1562=\"\",\"\",IF(OR('TSA Input'!J1562=\"Yes\",'TSA Input'!J1562=\"Contingent\"),'TSA Input'!I1562,\"\"))","v":""},{"$f":"IF('TSA Input'!J1562=\"\",\"\",IF(OR('TSA Input'!J1562=\"Yes\",'TSA Input'!J1562=\"Contingent\"),'TSA Input'!C1562,\"\"))","v":""},{"$f":"IF('TSA Input'!J1562=\"\",\"\",IF(OR('TSA Input'!J1562=\"Yes\",'TSA Input'!J1562=\"Contingent\"),'TSA Input'!D1562,\"\"))","v":""},{"$f":"IF('TSA Input'!J1562=\"\",\"\",IF(OR('TSA Input'!J1562=\"Yes\",'TSA Input'!J1562=\"Contingent\"),'TSA Input'!G1562,\"\"))","v":""},{"$f":"IF('TSA Input'!J1562=\"\",\"\",IF(OR('TSA Input'!J1562=\"Yes\",'TSA Input'!J1562=\"Contingent\"),'TSA Input'!F1562,\"\"))","v":""},"",{"$f":"IF('TSA Input'!J1562=\"\",\"\",IF(OR('TSA Input'!J1562=\"Yes\",'TSA Input'!J1562=\"Contingent\"),'TSA Input'!D1562,\"\"))","v":""},{"$f":"IF('TSA Input'!J1562=\"\",\"\",IF(OR('TSA Input'!J1562=\"Yes\",'TSA Input'!J1562=\"Contingent\"),'TSA Input'!G1562,\"\"))","v":""},{"$f":"IF('TSA Input'!J1562=\"\",\"\",IF(OR('TSA Input'!J1562=\"Yes\",'TSA Input'!J1562=\"Contingent\"),'TSA Input'!F1562,\"\"))","v":""},"","Required","Required"]
["",null,{"$f":"IF('TSA Input'!J1563=\"\",\"\",IF(OR('TSA Input'!J1563=\"Yes\",'TSA Input'!J1563=\"Contingent\"),'TSA Input'!B1563,\"Ineligible\"))","v":""},{"$f":"IF('TSA Input'!J1563=\"\",\"\",IF(OR('TSA Input'!J1563=\"Yes\",'TSA Input'!J1563=\"Contingent\"),'TSA Input'!I1563,\"\"))","v":""},{"$f":"IF('TSA Input'!J1563=\"\",\"\",IF(OR('TSA Input'!J1563=\"Yes\",'TSA Input'!J1563=\"Contingent\"),'TSA Input'!C1563,\"\"))","v":""},{"$f":"IF('TSA Input'!J1563=\"\",\"\",IF(OR('TSA Input'!J1563=\"Yes\",'TSA Input'!J1563=\"Contingent\"),'TSA Input'!D1563,\"\"))","v":""},{"$f":"IF('TSA Input'!J1563=\"\",\"\",IF(OR('TSA Input'!J1563=\"Yes\",'TSA Input'!J1563=\"Contingent\"),'TSA Input'!G1563,\"\"))","v":""},{"$f":"IF('TSA Input'!J1563=\"\",\"\",IF(OR('TSA Input'!J1563=\"Yes\",'TSA Input'!J1563=\"Contingent\"),'TSA Input'!F1563,\"\"))","v":""},"",{"$f":"IF('TSA Input'!J1563=\"\",\"\",IF(OR('TSA Input'!J1563=\"Yes\",'TSA Input'!J1563=\"Contingent\"),'TSA Input'!D1563,\"\"))","v":""},{"$f":"IF('TSA Input'!J1563=\"\",\"\",IF(OR('TSA Input'!J1563=\"Yes\",'TSA Input'!J1563=\"Contingent\"),'TSA Input'!G1563,\"\"))","v":""},{"$f":"IF('TSA Input'!J1563=\"\",\"\",IF(OR('TSA Input'!J1563=\"Yes\",'TSA Input'!J1563=\"Contingent\"),'TSA Input'!F1563,\"\"))","v":""},"","Required","Required"]
["",null,{"$f":"IF('TSA Input'!J1564=\"\",\"\",IF(OR('TSA Input'!J1564=\"Yes\",'TSA Input'!J1564=\"Contingent\"),'TSA Input'!B1564,\"Ineligible\"))","v":""},{"$f":"IF('TSA Input'!J1564=\"\",\"\",IF(OR('TSA Input'!J1564=\"Yes\",'TSA Input'!J1564=\"Contingent\"),'TSA Input'!I1564,\"\"))","v":""},{"$f":"IF('TSA Input'!J1564=\"\",\"\",IF(OR('TSA Input'!J1564=\"Yes\",'TSA Input'!J1564=\"Contingent\"),'TSA Input'!C1564,\"\"))","v":""},{"$f":"IF('TSA Input'!J1564=\"\",\"\",IF(OR('TSA Input'!J1564=\"Yes\",'TSA Input'!J1564=\"Contingent\"),'TSA Input'!D1564,\"\"))","v":""},{"$f":"IF('TSA Input'!J1564=\"\",\"\",IF(OR('TSA Input'!J1564=\"Yes\",'TSA Input'!J1564=\"Contingent\"),'TSA Input'!G1564,\"\"))","v":""},{"$f":"IF('TSA Input'!J1564=\"\",\"\",IF(OR('TSA Input'!J1564=\"Yes\",'TSA Input'!J1564=\"Contingent\"),'TSA Input'!F1564,\"\"))","v":""},"",{"$f":"IF('TSA Input'!J1564=\"\",\"\",IF(OR('TSA Input'!J1564=\"Yes\",'TSA Input'!J1564=\"Contingent\"),'TSA Input'!D1564,\"\"))","v":""},{"$f":"IF('TSA Input'!J1564=\"\",\"\",IF(OR('TSA Input'!J1564=\"Yes\",'TSA Input'!J1564=\"Contingent\"),'TSA Input'!G1564,\"\"))","v":""},{"$f":"IF('TSA Input'!J1564=\"\",\"\",IF(OR('TSA Input'!J1564=\"Yes\",'TSA Input'!J1564=\"Contingent\"),'TSA Input'!F1564,\"\"))","v":""},"","Required","Required"]
["",null,{"$f":"IF('TSA Input'!J1565=\"\",\"\",IF(OR('TSA Input'!J1565=\"Yes\",'TSA Input'!J1565=\"Contingent\"),'TSA Input'!B1565,\"Ineligible\"))","v":""},{"$f":"IF('TSA Input'!J1565=\"\",\"\",IF(OR('TSA Input'!J1565=\"Yes\",'TSA Input'!J1565=\"Contingent\"),'TSA Input'!I1565,\"\"))","v":""},{"$f":"IF('TSA Input'!J1565=\"\",\"\",IF(OR('TSA Input'!J1565=\"Yes\",'TSA Input'!J1565=\"Contingent\"),'TSA Input'!C1565,\"\"))","v":""},{"$f":"IF('TSA Input'!J1565=\"\",\"\",IF(OR('TSA Input'!J1565=\"Yes\",'TSA Input'!J1565=\"Contingent\"),'TSA Input'!D1565,\"\"))","v":""},{"$f":"IF('TSA Input'!J1565=\"\",\"\",IF(OR('TSA Input'!J1565=\"Yes\",'TSA Input'!J1565=\"Contingent\"),'TSA Input'!G1565,\"\"))","v":""},{"$f":"IF('TSA Input'!J1565=\"\",\"\",IF(OR('TSA Input'!J1565=\"Yes\",'TSA Input'!J1565=\"Contingent\"),'TSA Input'!F1565,\"\"))","v":""},"",{"$f":"IF('TSA Input'!J1565=\"\",\"\",IF(OR('TSA Input'!J1565=\"Yes\",'TSA Input'!J1565=\"Contingent\"),'TSA Input'!D1565,\"\"))","v":""},{"$f":"IF('TSA Input'!J1565=\"\",\"\",IF(OR('TSA Input'!J1565=\"Yes\",'TSA Input'!J1565=\"Contingent\"),'TSA Input'!G1565,\"\"))","v":""},{"$f":"IF('TSA Input'!J1565=\"\",\"\",IF(OR('TSA Input'!J1565=\"Yes\",'TSA Input'!J1565=\"Contingent\"),'TSA Input'!F1565,\"\"))","v":""},"","Required","Required"]
["",null,{"$f":"IF('TSA Input'!J1566=\"\",\"\",IF(OR('TSA Input'!J1566=\"Yes\",'TSA Input'!J1566=\"Contingent\"),'TSA Input'!B1566,\"Ineligible\"))","v":""},{"$f":"IF('TSA Input'!J1566=\"\",\"\",IF(OR('TSA Input'!J1566=\"Yes\",'TSA Input'!J1566=\"Contingent\"),'TSA Input'!I1566,\"\"))","v":""},{"$f":"IF('TSA Input'!J1566=\"\",\"\",IF(OR('TSA Input'!J1566=\"Yes\",'TSA Input'!J1566=\"Contingent\"),'TSA Input'!C1566,\"\"))","v":""},{"$f":"IF('TSA Input'!J1566=\"\",\"\",IF(OR('TSA Input'!J1566=\"Yes\",'TSA Input'!J1566=\"Contingent\"),'TSA Input'!D1566,\"\"))","v":""},{"$f":"IF('TSA Input'!J1566=\"\",\"\",IF(OR('TSA Input'!J1566=\"Yes\",'TSA Input'!J1566=\"Contingent\"),'TSA Input'!G1566,\"\"))","v":""},{"$f":"IF('TSA Input'!J1566=\"\",\"\",IF(OR('TSA Input'!J1566=\"Yes\",'TSA Input'!J1566=\"Contingent\"),'TSA Input'!F1566,\"\"))","v":""},"",{"$f":"IF('TSA Input'!J1566=\"\",\"\",IF(OR('TSA Input'!J1566=\"Yes\",'TSA Input'!J1566=\"Contingent\"),'TSA Input'!D1566,\"\"))","v":""},{"$f":"IF('TSA Input'!J1566=\"\",\"\",IF(OR('TSA Input'!J1566=\"Yes\",'TSA Input'!J1566=\"Contingent\"),'TSA Input'!G1566,\"\"))","v":""},{"$f":"IF('TSA Input'!J1566=\"\",\"\",IF(OR('TSA Input'!J1566=\"Yes\",'TSA Input'!J1566=\"Contingent\"),'TSA Input'!F1566,\"\"))","v":""},"","Required","Required"]
["",null,{"$f":"IF('TSA Input'!J1567=\"\",\"\",IF(OR('TSA Input'!J1567=\"Yes\",'TSA Input'!J1567=\"Contingent\"),'TSA Input'!B1567,\"Ineligible\"))","v":""},{"$f":"IF('TSA Input'!J1567=\"\",\"\",IF(OR('TSA Input'!J1567=\"Yes\",'TSA Input'!J1567=\"Contingent\"),'TSA Input'!I1567,\"\"))","v":""},{"$f":"IF('TSA Input'!J1567=\"\",\"\",IF(OR('TSA Input'!J1567=\"Yes\",'TSA Input'!J1567=\"Contingent\"),'TSA Input'!C1567,\"\"))","v":""},{"$f":"IF('TSA Input'!J1567=\"\",\"\",IF(OR('TSA Input'!J1567=\"Yes\",'TSA Input'!J1567=\"Contingent\"),'TSA Input'!D1567,\"\"))","v":""},{"$f":"IF('TSA Input'!J1567=\"\",\"\",IF(OR('TSA Input'!J1567=\"Yes\",'TSA Input'!J1567=\"Contingent\"),'TSA Input'!G1567,\"\"))","v":""},{"$f":"IF('TSA Input'!J1567=\"\",\"\",IF(OR('TSA Input'!J1567=\"Yes\",'TSA Input'!J1567=\"Contingent\"),'TSA Input'!F1567,\"\"))","v":""},"",{"$f":"IF('TSA Input'!J1567=\"\",\"\",IF(OR('TSA Input'!J1567=\"Yes\",'TSA Input'!J1567=\"Contingent\"),'TSA Input'!D1567,\"\"))","v":""},{"$f":"IF('TSA Input'!J1567=\"\",\"\",IF(OR('TSA Input'!J1567=\"Yes\",'TSA Input'!J1567=\"Contingent\"),'TSA Input'!G1567,\"\"))","v":""},{"$f":"IF('TSA Input'!J1567=\"\",\"\",IF(OR('TSA Input'!J1567=\"Yes\",'TSA Input'!J1567=\"Contingent\"),'TSA Input'!F1567,\"\"))","v":""},"","Required","Required"]
["",null,{"$f":"IF('TSA Input'!J1568=\"\",\"\",IF(OR('TSA Input'!J1568=\"Yes\",'TSA Input'!J1568=\"Contingent\"),'TSA Input'!B1568,\"Ineligible\"))","v":""},{"$f":"IF('TSA Input'!J1568=\"\",\"\",IF(OR('TSA Input'!J1568=\"Yes\",'TSA Input'!J1568=\"Contingent\"),'TSA Input'!I1568,\"\"))","v":""},{"$f":"IF('TSA Input'!J1568=\"\",\"\",IF(OR('TSA Input'!J1568=\"Yes\",'TSA Input'!J1568=\"Contingent\"),'TSA Input'!C1568,\"\"))","v":""},{"$f":"IF('TSA Input'!J1568=\"\",\"\",IF(OR('TSA Input'!J1568=\"Yes\",'TSA Input'!J1568=\"Contingent\"),'TSA Input'!D1568,\"\"))","v":""},{"$f":"IF('TSA Input'!J1568=\"\",\"\",IF(OR('TSA Input'!J1568=\"Yes\",'TSA Input'!J1568=\"Contingent\"),'TSA Input'!G1568,\"\"))","v":""},{"$f":"IF('TSA Input'!J1568=\"\",\"\",IF(OR('TSA Input'!J1568=\"Yes\",'TSA Input'!J1568=\"Contingent\"),'TSA Input'!F1568,\"\"))","v":""},"",{"$f":"IF('TSA Input'!J1568=\"\",\"\",IF(OR('TSA Input'!J1568=\"Yes\",'TSA Input'!J1568=\"Contingent\"),'TSA Input'!D1568,\"\"))","v":""},{"$f":"IF('TSA Input'!J1568=\"\",\"\",IF(OR('TSA Input'!J1568=\"Yes\",'TSA Input'!J1568=\"Contingent\"),'TSA Input'!G1568,\"\"))","v":""},{"$f":"IF('TSA Input'!J1568=\"\",\"\",IF(OR('TSA Input'!J1568=\"Yes\",'TSA Input'!J1568=\"Contingent\"),'TSA Input'!F1568,\"\"))","v":""},"","Required","Required"]
["",null,{"$f":"IF('TSA Input'!J1569=\"\",\"\",IF(OR('TSA Input'!J1569=\"Yes\",'TSA Input'!J1569=\"Contingent\"),'TSA Input'!B1569,\"Ineligible\"))","v":""},{"$f":"IF('TSA Input'!J1569=\"\",\"\",IF(OR('TSA Input'!J1569=\"Yes\",'TSA Input'!J1569=\"Contingent\"),'TSA Input'!I1569,\"\"))","v":""},{"$f":"IF('TSA Input'!J1569=\"\",\"\",IF(OR('TSA Input'!J1569=\"Yes\",'TSA Input'!J1569=\"Contingent\"),'TSA Input'!C1569,\"\"))","v":""},{"$f":"IF('TSA Input'!J1569=\"\",\"\",IF(OR('TSA Input'!J1569=\"Yes\",'TSA Input'!J1569=\"Contingent\"),'TSA Input'!D1569,\"\"))","v":""},{"$f":"IF('TSA Input'!J1569=\"\",\"\",IF(OR('TSA Input'!J1569=\"Yes\",'TSA Input'!J1569=\"Contingent\"),'TSA Input'!G1569,\"\"))","v":""},{"$f":"IF('TSA Input'!J1569=\"\",\"\",IF(OR('TSA Input'!J1569=\"Yes\",'TSA Input'!J1569=\"Contingent\"),'TSA Input'!F1569,\"\"))","v":""},"",{"$f":"IF('TSA Input'!J1569=\"\",\"\",IF(OR('TSA Input'!J1569=\"Yes\",'TSA Input'!J1569=\"Contingent\"),'TSA Input'!D1569,\"\"))","v":""},{"$f":"IF('TSA Input'!J1569=\"\",\"\",IF(OR('TSA Input'!J1569=\"Yes\",'TSA Input'!J1569=\"Contingent\"),'TSA Input'!G1569,\"\"))","v":""},{"$f":"IF('TSA Input'!J1569=\"\",\"\",IF(OR('TSA Input'!J1569=\"Yes\",'TSA Input'!J1569=\"Contingent\"),'TSA Input'!F1569,\"\"))","v":""},"","Required","Required"]
["",null,{"$f":"IF('TSA Input'!J1570=\"\",\"\",IF(OR('TSA Input'!J1570=\"Yes\",'TSA Input'!J1570=\"Contingent\"),'TSA Input'!B1570,\"Ineligible\"))","v":""},{"$f":"IF('TSA Input'!J1570=\"\",\"\",IF(OR('TSA Input'!J1570=\"Yes\",'TSA Input'!J1570=\"Contingent\"),'TSA Input'!I1570,\"\"))","v":""},{"$f":"IF('TSA Input'!J1570=\"\",\"\",IF(OR('TSA Input'!J1570=\"Yes\",'TSA Input'!J1570=\"Contingent\"),'TSA Input'!C1570,\"\"))","v":""},{"$f":"IF('TSA Input'!J1570=\"\",\"\",IF(OR('TSA Input'!J1570=\"Yes\",'TSA Input'!J1570=\"Contingent\"),'TSA Input'!D1570,\"\"))","v":""},{"$f":"IF('TSA Input'!J1570=\"\",\"\",IF(OR('TSA Input'!J1570=\"Yes\",'TSA Input'!J1570=\"Contingent\"),'TSA Input'!G1570,\"\"))","v":""},{"$f":"IF('TSA Input'!J1570=\"\",\"\",IF(OR('TSA Input'!J1570=\"Yes\",'TSA Input'!J1570=\"Contingent\"),'TSA Input'!F1570,\"\"))","v":""},"",{"$f":"IF('TSA Input'!J1570=\"\",\"\",IF(OR('TSA Input'!J1570=\"Yes\",'TSA Input'!J1570=\"Contingent\"),'TSA Input'!D1570,\"\"))","v":""},{"$f":"IF('TSA Input'!J1570=\"\",\"\",IF(OR('TSA Input'!J1570=\"Yes\",'TSA Input'!J1570=\"Contingent\"),'TSA Input'!G1570,\"\"))","v":""},{"$f":"IF('TSA Input'!J1570=\"\",\"\",IF(OR('TSA Input'!J1570=\"Yes\",'TSA Input'!J1570=\"Contingent\"),'TSA Input'!F1570,\"\"))","v":""},"","Required","Required"]
["",null,{"$f":"IF('TSA Input'!J1571=\"\",\"\",IF(OR('TSA Input'!J1571=\"Yes\",'TSA Input'!J1571=\"Contingent\"),'TSA Input'!B1571,\"Ineligible\"))","v":""},{"$f":"IF('TSA Input'!J1571=\"\",\"\",IF(OR('TSA Input'!J1571=\"Yes\",'TSA Input'!J1571=\"Contingent\"),'TSA Input'!I1571,\"\"))","v":""},{"$f":"IF('TSA Input'!J1571=\"\",\"\",IF(OR('TSA Input'!J1571=\"Yes\",'TSA Input'!J1571=\"Contingent\"),'TSA Input'!C1571,\"\"))","v":""},{"$f":"IF('TSA Input'!J1571=\"\",\"\",IF(OR('TSA Input'!J1571=\"Yes\",'TSA Input'!J1571=\"Contingent\"),'TSA Input'!D1571,\"\"))","v":""},{"$f":"IF('TSA Input'!J1571=\"\",\"\",IF(OR('TSA Input'!J1571=\"Yes\",'TSA Input'!J1571=\"Contingent\"),'TSA Input'!G1571,\"\"))","v":""},{"$f":"IF('TSA Input'!J1571=\"\",\"\",IF(OR('TSA Input'!J1571=\"Yes\",'TSA Input'!J1571=\"Contingent\"),'TSA Input'!F1571,\"\"))","v":""},"",{"$f":"IF('TSA Input'!J1571=\"\",\"\",IF(OR('TSA Input'!J1571=\"Yes\",'TSA Input'!J1571=\"Contingent\"),'TSA Input'!D1571,\"\"))","v":""},{"$f":"IF('TSA Input'!J1571=\"\",\"\",IF(OR('TSA Input'!J1571=\"Yes\",'TSA Input'!J1571=\"Contingent\"),'TSA Input'!G1571,\"\"))","v":""},{"$f":"IF('TSA Input'!J1571=\"\",\"\",IF(OR('TSA Input'!J1571=\"Yes\",'TSA Input'!J1571=\"Contingent\"),'TSA Input'!F1571,\"\"))","v":""},"","Required","Required"]
["",null,{"$f":"IF('TSA Input'!J1572=\"\",\"\",IF(OR('TSA Input'!J1572=\"Yes\",'TSA Input'!J1572=\"Contingent\"),'TSA Input'!B1572,\"Ineligible\"))","v":""},{"$f":"IF('TSA Input'!J1572=\"\",\"\",IF(OR('TSA Input'!J1572=\"Yes\",'TSA Input'!J1572=\"Contingent\"),'TSA Input'!I1572,\"\"))","v":""},{"$f":"IF('TSA Input'!J1572=\"\",\"\",IF(OR('TSA Input'!J1572=\"Yes\",'TSA Input'!J1572=\"Contingent\"),'TSA Input'!C1572,\"\"))","v":""},{"$f":"IF('TSA Input'!J1572=\"\",\"\",IF(OR('TSA Input'!J1572=\"Yes\",'TSA Input'!J1572=\"Contingent\"),'TSA Input'!D1572,\"\"))","v":""},{"$f":"IF('TSA Input'!J1572=\"\",\"\",IF(OR('TSA Input'!J1572=\"Yes\",'TSA Input'!J1572=\"Contingent\"),'TSA Input'!G1572,\"\"))","v":""},{"$f":"IF('TSA Input'!J1572=\"\",\"\",IF(OR('TSA Input'!J1572=\"Yes\",'TSA Input'!J1572=\"Contingent\"),'TSA Input'!F1572,\"\"))","v":""},"",{"$f":"IF('TSA Input'!J1572=\"\",\"\",IF(OR('TSA Input'!J1572=\"Yes\",'TSA Input'!J1572=\"Contingent\"),'TSA Input'!D1572,\"\"))","v":""},{"$f":"IF('TSA Input'!J1572=\"\",\"\",IF(OR('TSA Input'!J1572=\"Yes\",'TSA Input'!J1572=\"Contingent\"),'TSA Input'!G1572,\"\"))","v":""},{"$f":"IF('TSA Input'!J1572=\"\",\"\",IF(OR('TSA Input'!J1572=\"Yes\",'TSA Input'!J1572=\"Contingent\"),'TSA Input'!F1572,\"\"))","v":""},"","Required","Required"]
["",null,{"$f":"IF('TSA Input'!J1573=\"\",\"\",IF(OR('TSA Input'!J1573=\"Yes\",'TSA Input'!J1573=\"Contingent\"),'TSA Input'!B1573,\"Ineligible\"))","v":""},{"$f":"IF('TSA Input'!J1573=\"\",\"\",IF(OR('TSA Input'!J1573=\"Yes\",'TSA Input'!J1573=\"Contingent\"),'TSA Input'!I1573,\"\"))","v":""},{"$f":"IF('TSA Input'!J1573=\"\",\"\",IF(OR('TSA Input'!J1573=\"Yes\",'TSA Input'!J1573=\"Contingent\"),'TSA Input'!C1573,\"\"))","v":""},{"$f":"IF('TSA Input'!J1573=\"\",\"\",IF(OR('TSA Input'!J1573=\"Yes\",'TSA Input'!J1573=\"Contingent\"),'TSA Input'!D1573,\"\"))","v":""},{"$f":"IF('TSA Input'!J1573=\"\",\"\",IF(OR('TSA Input'!J1573=\"Yes\",'TSA Input'!J1573=\"Contingent\"),'TSA Input'!G1573,\"\"))","v":""},{"$f":"IF('TSA Input'!J1573=\"\",\"\",IF(OR('TSA Input'!J1573=\"Yes\",'TSA Input'!J1573=\"Contingent\"),'TSA Input'!F1573,\"\"))","v":""},"",{"$f":"IF('TSA Input'!J1573=\"\",\"\",IF(OR('TSA Input'!J1573=\"Yes\",'TSA Input'!J1573=\"Contingent\"),'TSA Input'!D1573,\"\"))","v":""},{"$f":"IF('TSA Input'!J1573=\"\",\"\",IF(OR('TSA Input'!J1573=\"Yes\",'TSA Input'!J1573=\"Contingent\"),'TSA Input'!G1573,\"\"))","v":""},{"$f":"IF('TSA Input'!J1573=\"\",\"\",IF(OR('TSA Input'!J1573=\"Yes\",'TSA Input'!J1573=\"Contingent\"),'TSA Input'!F1573,\"\"))","v":""},"","Required","Required"]
["",null,{"$f":"IF('TSA Input'!J1574=\"\",\"\",IF(OR('TSA Input'!J1574=\"Yes\",'TSA Input'!J1574=\"Contingent\"),'TSA Input'!B1574,\"Ineligible\"))","v":""},{"$f":"IF('TSA Input'!J1574=\"\",\"\",IF(OR('TSA Input'!J1574=\"Yes\",'TSA Input'!J1574=\"Contingent\"),'TSA Input'!I1574,\"\"))","v":""},{"$f":"IF('TSA Input'!J1574=\"\",\"\",IF(OR('TSA Input'!J1574=\"Yes\",'TSA Input'!J1574=\"Contingent\"),'TSA Input'!C1574,\"\"))","v":""},{"$f":"IF('TSA Input'!J1574=\"\",\"\",IF(OR('TSA Input'!J1574=\"Yes\",'TSA Input'!J1574=\"Contingent\"),'TSA Input'!D1574,\"\"))","v":""},{"$f":"IF('TSA Input'!J1574=\"\",\"\",IF(OR('TSA Input'!J1574=\"Yes\",'TSA Input'!J1574=\"Contingent\"),'TSA Input'!G1574,\"\"))","v":""},{"$f":"IF('TSA Input'!J1574=\"\",\"\",IF(OR('TSA Input'!J1574=\"Yes\",'TSA Input'!J1574=\"Contingent\"),'TSA Input'!F1574,\"\"))","v":""},"",{"$f":"IF('TSA Input'!J1574=\"\",\"\",IF(OR('TSA Input'!J1574=\"Yes\",'TSA Input'!J1574=\"Contingent\"),'TSA Input'!D1574,\"\"))","v":""},{"$f":"IF('TSA Input'!J1574=\"\",\"\",IF(OR('TSA Input'!J1574=\"Yes\",'TSA Input'!J1574=\"Contingent\"),'TSA Input'!G1574,\"\"))","v":""},{"$f":"IF('TSA Input'!J1574=\"\",\"\",IF(OR('TSA Input'!J1574=\"Yes\",'TSA Input'!J1574=\"Contingent\"),'TSA Input'!F1574,\"\"))","v":""},"","Required","Required"]
["",null,{"$f":"IF('TSA Input'!J1575=\"\",\"\",IF(OR('TSA Input'!J1575=\"Yes\",'TSA Input'!J1575=\"Contingent\"),'TSA Input'!B1575,\"Ineligible\"))","v":""},{"$f":"IF('TSA Input'!J1575=\"\",\"\",IF(OR('TSA Input'!J1575=\"Yes\",'TSA Input'!J1575=\"Contingent\"),'TSA Input'!I1575,\"\"))","v":""},{"$f":"IF('TSA Input'!J1575=\"\",\"\",IF(OR('TSA Input'!J1575=\"Yes\",'TSA Input'!J1575=\"Contingent\"),'TSA Input'!C1575,\"\"))","v":""},{"$f":"IF('TSA Input'!J1575=\"\",\"\",IF(OR('TSA Input'!J1575=\"Yes\",'TSA Input'!J1575=\"Contingent\"),'TSA Input'!D1575,\"\"))","v":""},{"$f":"IF('TSA Input'!J1575=\"\",\"\",IF(OR('TSA Input'!J1575=\"Yes\",'TSA Input'!J1575=\"Contingent\"),'TSA Input'!G1575,\"\"))","v":""},{"$f":"IF('TSA Input'!J1575=\"\",\"\",IF(OR('TSA Input'!J1575=\"Yes\",'TSA Input'!J1575=\"Contingent\"),'TSA Input'!F1575,\"\"))","v":""},"",{"$f":"IF('TSA Input'!J1575=\"\",\"\",IF(OR('TSA Input'!J1575=\"Yes\",'TSA Input'!J1575=\"Contingent\"),'TSA Input'!D1575,\"\"))","v":""},{"$f":"IF('TSA Input'!J1575=\"\",\"\",IF(OR('TSA Input'!J1575=\"Yes\",'TSA Input'!J1575=\"Contingent\"),'TSA Input'!G1575,\"\"))","v":""},{"$f":"IF('TSA Input'!J1575=\"\",\"\",IF(OR('TSA Input'!J1575=\"Yes\",'TSA Input'!J1575=\"Contingent\"),'TSA Input'!F1575,\"\"))","v":""},"","Required","Required"]
["",null,{"$f":"IF('TSA Input'!J1576=\"\",\"\",IF(OR('TSA Input'!J1576=\"Yes\",'TSA Input'!J1576=\"Contingent\"),'TSA Input'!B1576,\"Ineligible\"))","v":""},{"$f":"IF('TSA Input'!J1576=\"\",\"\",IF(OR('TSA Input'!J1576=\"Yes\",'TSA Input'!J1576=\"Contingent\"),'TSA Input'!I1576,\"\"))","v":""},{"$f":"IF('TSA Input'!J1576=\"\",\"\",IF(OR('TSA Input'!J1576=\"Yes\",'TSA Input'!J1576=\"Contingent\"),'TSA Input'!C1576,\"\"))","v":""},{"$f":"IF('TSA Input'!J1576=\"\",\"\",IF(OR('TSA Input'!J1576=\"Yes\",'TSA Input'!J1576=\"Contingent\"),'TSA Input'!D1576,\"\"))","v":""},{"$f":"IF('TSA Input'!J1576=\"\",\"\",IF(OR('TSA Input'!J1576=\"Yes\",'TSA Input'!J1576=\"Contingent\"),'TSA Input'!G1576,\"\"))","v":""},{"$f":"IF('TSA Input'!J1576=\"\",\"\",IF(OR('TSA Input'!J1576=\"Yes\",'TSA Input'!J1576=\"Contingent\"),'TSA Input'!F1576,\"\"))","v":""},"",{"$f":"IF('TSA Input'!J1576=\"\",\"\",IF(OR('TSA Input'!J1576=\"Yes\",'TSA Input'!J1576=\"Contingent\"),'TSA Input'!D1576,\"\"))","v":""},{"$f":"IF('TSA Input'!J1576=\"\",\"\",IF(OR('TSA Input'!J1576=\"Yes\",'TSA Input'!J1576=\"Contingent\"),'TSA Input'!G1576,\"\"))","v":""},{"$f":"IF('TSA Input'!J1576=\"\",\"\",IF(OR('TSA Input'!J1576=\"Yes\",'TSA Input'!J1576=\"Contingent\"),'TSA Input'!F1576,\"\"))","v":""},"","Required","Required"]
["",null,{"$f":"IF('TSA Input'!J1577=\"\",\"\",IF(OR('TSA Input'!J1577=\"Yes\",'TSA Input'!J1577=\"Contingent\"),'TSA Input'!B1577,\"Ineligible\"))","v":""},{"$f":"IF('TSA Input'!J1577=\"\",\"\",IF(OR('TSA Input'!J1577=\"Yes\",'TSA Input'!J1577=\"Contingent\"),'TSA Input'!I1577,\"\"))","v":""},{"$f":"IF('TSA Input'!J1577=\"\",\"\",IF(OR('TSA Input'!J1577=\"Yes\",'TSA Input'!J1577=\"Contingent\"),'TSA Input'!C1577,\"\"))","v":""},{"$f":"IF('TSA Input'!J1577=\"\",\"\",IF(OR('TSA Input'!J1577=\"Yes\",'TSA Input'!J1577=\"Contingent\"),'TSA Input'!D1577,\"\"))","v":""},{"$f":"IF('TSA Input'!J1577=\"\",\"\",IF(OR('TSA Input'!J1577=\"Yes\",'TSA Input'!J1577=\"Contingent\"),'TSA Input'!G1577,\"\"))","v":""},{"$f":"IF('TSA Input'!J1577=\"\",\"\",IF(OR('TSA Input'!J1577=\"Yes\",'TSA Input'!J1577=\"Contingent\"),'TSA Input'!F1577,\"\"))","v":""},"",{"$f":"IF('TSA Input'!J1577=\"\",\"\",IF(OR('TSA Input'!J1577=\"Yes\",'TSA Input'!J1577=\"Contingent\"),'TSA Input'!D1577,\"\"))","v":""},{"$f":"IF('TSA Input'!J1577=\"\",\"\",IF(OR('TSA Input'!J1577=\"Yes\",'TSA Input'!J1577=\"Contingent\"),'TSA Input'!G1577,\"\"))","v":""},{"$f":"IF('TSA Input'!J1577=\"\",\"\",IF(OR('TSA Input'!J1577=\"Yes\",'TSA Input'!J1577=\"Contingent\"),'TSA Input'!F1577,\"\"))","v":""},"","Required","Required"]
["",null,{"$f":"IF('TSA Input'!J1578=\"\",\"\",IF(OR('TSA Input'!J1578=\"Yes\",'TSA Input'!J1578=\"Contingent\"),'TSA Input'!B1578,\"Ineligible\"))","v":""},{"$f":"IF('TSA Input'!J1578=\"\",\"\",IF(OR('TSA Input'!J1578=\"Yes\",'TSA Input'!J1578=\"Contingent\"),'TSA Input'!I1578,\"\"))","v":""},{"$f":"IF('TSA Input'!J1578=\"\",\"\",IF(OR('TSA Input'!J1578=\"Yes\",'TSA Input'!J1578=\"Contingent\"),'TSA Input'!C1578,\"\"))","v":""},{"$f":"IF('TSA Input'!J1578=\"\",\"\",IF(OR('TSA Input'!J1578=\"Yes\",'TSA Input'!J1578=\"Contingent\"),'TSA Input'!D1578,\"\"))","v":""},{"$f":"IF('TSA Input'!J1578=\"\",\"\",IF(OR('TSA Input'!J1578=\"Yes\",'TSA Input'!J1578=\"Contingent\"),'TSA Input'!G1578,\"\"))","v":""},{"$f":"IF('TSA Input'!J1578=\"\",\"\",IF(OR('TSA Input'!J1578=\"Yes\",'TSA Input'!J1578=\"Contingent\"),'TSA Input'!F1578,\"\"))","v":""},"",{"$f":"IF('TSA Input'!J1578=\"\",\"\",IF(OR('TSA Input'!J1578=\"Yes\",'TSA Input'!J1578=\"Contingent\"),'TSA Input'!D1578,\"\"))","v":""},{"$f":"IF('TSA Input'!J1578=\"\",\"\",IF(OR('TSA Input'!J1578=\"Yes\",'TSA Input'!J1578=\"Contingent\"),'TSA Input'!G1578,\"\"))","v":""},{"$f":"IF('TSA Input'!J1578=\"\",\"\",IF(OR('TSA Input'!J1578=\"Yes\",'TSA Input'!J1578=\"Contingent\"),'TSA Input'!F1578,\"\"))","v":""},"","Required","Required"]
["",null,{"$f":"IF('TSA Input'!J1579=\"\",\"\",IF(OR('TSA Input'!J1579=\"Yes\",'TSA Input'!J1579=\"Contingent\"),'TSA Input'!B1579,\"Ineligible\"))","v":""},{"$f":"IF('TSA Input'!J1579=\"\",\"\",IF(OR('TSA Input'!J1579=\"Yes\",'TSA Input'!J1579=\"Contingent\"),'TSA Input'!I1579,\"\"))","v":""},{"$f":"IF('TSA Input'!J1579=\"\",\"\",IF(OR('TSA Input'!J1579=\"Yes\",'TSA Input'!J1579=\"Contingent\"),'TSA Input'!C1579,\"\"))","v":""},{"$f":"IF('TSA Input'!J1579=\"\",\"\",IF(OR('TSA Input'!J1579=\"Yes\",'TSA Input'!J1579=\"Contingent\"),'TSA Input'!D1579,\"\"))","v":""},{"$f":"IF('TSA Input'!J1579=\"\",\"\",IF(OR('TSA Input'!J1579=\"Yes\",'TSA Input'!J1579=\"Contingent\"),'TSA Input'!G1579,\"\"))","v":""},{"$f":"IF('TSA Input'!J1579=\"\",\"\",IF(OR('TSA Input'!J1579=\"Yes\",'TSA Input'!J1579=\"Contingent\"),'TSA Input'!F1579,\"\"))","v":""},"",{"$f":"IF('TSA Input'!J1579=\"\",\"\",IF(OR('TSA Input'!J1579=\"Yes\",'TSA Input'!J1579=\"Contingent\"),'TSA Input'!D1579,\"\"))","v":""},{"$f":"IF('TSA Input'!J1579=\"\",\"\",IF(OR('TSA Input'!J1579=\"Yes\",'TSA Input'!J1579=\"Contingent\"),'TSA Input'!G1579,\"\"))","v":""},{"$f":"IF('TSA Input'!J1579=\"\",\"\",IF(OR('TSA Input'!J1579=\"Yes\",'TSA Input'!J1579=\"Contingent\"),'TSA Input'!F1579,\"\"))","v":""},"","Required","Required"]
["",null,{"$f":"IF('TSA Input'!J1580=\"\",\"\",IF(OR('TSA Input'!J1580=\"Yes\",'TSA Input'!J1580=\"Contingent\"),'TSA Input'!B1580,\"Ineligible\"))","v":""},{"$f":"IF('TSA Input'!J1580=\"\",\"\",IF(OR('TSA Input'!J1580=\"Yes\",'TSA Input'!J1580=\"Contingent\"),'TSA Input'!I1580,\"\"))","v":""},{"$f":"IF('TSA Input'!J1580=\"\",\"\",IF(OR('TSA Input'!J1580=\"Yes\",'TSA Input'!J1580=\"Contingent\"),'TSA Input'!C1580,\"\"))","v":""},{"$f":"IF('TSA Input'!J1580=\"\",\"\",IF(OR('TSA Input'!J1580=\"Yes\",'TSA Input'!J1580=\"Contingent\"),'TSA Input'!D1580,\"\"))","v":""},{"$f":"IF('TSA Input'!J1580=\"\",\"\",IF(OR('TSA Input'!J1580=\"Yes\",'TSA Input'!J1580=\"Contingent\"),'TSA Input'!G1580,\"\"))","v":""},{"$f":"IF('TSA Input'!J1580=\"\",\"\",IF(OR('TSA Input'!J1580=\"Yes\",'TSA Input'!J1580=\"Contingent\"),'TSA Input'!F1580,\"\"))","v":""},"",{"$f":"IF('TSA Input'!J1580=\"\",\"\",IF(OR('TSA Input'!J1580=\"Yes\",'TSA Input'!J1580=\"Contingent\"),'TSA Input'!D1580,\"\"))","v":""},{"$f":"IF('TSA Input'!J1580=\"\",\"\",IF(OR('TSA Input'!J1580=\"Yes\",'TSA Input'!J1580=\"Contingent\"),'TSA Input'!G1580,\"\"))","v":""},{"$f":"IF('TSA Input'!J1580=\"\",\"\",IF(OR('TSA Input'!J1580=\"Yes\",'TSA Input'!J1580=\"Contingent\"),'TSA Input'!F1580,\"\"))","v":""},"","Required","Required"]
["",null,{"$f":"IF('TSA Input'!J1581=\"\",\"\",IF(OR('TSA Input'!J1581=\"Yes\",'TSA Input'!J1581=\"Contingent\"),'TSA Input'!B1581,\"Ineligible\"))","v":""},{"$f":"IF('TSA Input'!J1581=\"\",\"\",IF(OR('TSA Input'!J1581=\"Yes\",'TSA Input'!J1581=\"Contingent\"),'TSA Input'!I1581,\"\"))","v":""},{"$f":"IF('TSA Input'!J1581=\"\",\"\",IF(OR('TSA Input'!J1581=\"Yes\",'TSA Input'!J1581=\"Contingent\"),'TSA Input'!C1581,\"\"))","v":""},{"$f":"IF('TSA Input'!J1581=\"\",\"\",IF(OR('TSA Input'!J1581=\"Yes\",'TSA Input'!J1581=\"Contingent\"),'TSA Input'!D1581,\"\"))","v":""},{"$f":"IF('TSA Input'!J1581=\"\",\"\",IF(OR('TSA Input'!J1581=\"Yes\",'TSA Input'!J1581=\"Contingent\"),'TSA Input'!G1581,\"\"))","v":""},{"$f":"IF('TSA Input'!J1581=\"\",\"\",IF(OR('TSA Input'!J1581=\"Yes\",'TSA Input'!J1581=\"Contingent\"),'TSA Input'!F1581,\"\"))","v":""},"",{"$f":"IF('TSA Input'!J1581=\"\",\"\",IF(OR('TSA Input'!J1581=\"Yes\",'TSA Input'!J1581=\"Contingent\"),'TSA Input'!D1581,\"\"))","v":""},{"$f":"IF('TSA Input'!J1581=\"\",\"\",IF(OR('TSA Input'!J1581=\"Yes\",'TSA Input'!J1581=\"Contingent\"),'TSA Input'!G1581,\"\"))","v":""},{"$f":"IF('TSA Input'!J1581=\"\",\"\",IF(OR('TSA Input'!J1581=\"Yes\",'TSA Input'!J1581=\"Contingent\"),'TSA Input'!F1581,\"\"))","v":""},"","Required","Required"]
["",null,{"$f":"IF('TSA Input'!J1582=\"\",\"\",IF(OR('TSA Input'!J1582=\"Yes\",'TSA Input'!J1582=\"Contingent\"),'TSA Input'!B1582,\"Ineligible\"))","v":""},{"$f":"IF('TSA Input'!J1582=\"\",\"\",IF(OR('TSA Input'!J1582=\"Yes\",'TSA Input'!J1582=\"Contingent\"),'TSA Input'!I1582,\"\"))","v":""},{"$f":"IF('TSA Input'!J1582=\"\",\"\",IF(OR('TSA Input'!J1582=\"Yes\",'TSA Input'!J1582=\"Contingent\"),'TSA Input'!C1582,\"\"))","v":""},{"$f":"IF('TSA Input'!J1582=\"\",\"\",IF(OR('TSA Input'!J1582=\"Yes\",'TSA Input'!J1582=\"Contingent\"),'TSA Input'!D1582,\"\"))","v":""},{"$f":"IF('TSA Input'!J1582=\"\",\"\",IF(OR('TSA Input'!J1582=\"Yes\",'TSA Input'!J1582=\"Contingent\"),'TSA Input'!G1582,\"\"))","v":""},{"$f":"IF('TSA Input'!J1582=\"\",\"\",IF(OR('TSA Input'!J1582=\"Yes\",'TSA Input'!J1582=\"Contingent\"),'TSA Input'!F1582,\"\"))","v":""},"",{"$f":"IF('TSA Input'!J1582=\"\",\"\",IF(OR('TSA Input'!J1582=\"Yes\",'TSA Input'!J1582=\"Contingent\"),'TSA Input'!D1582,\"\"))","v":""},{"$f":"IF('TSA Input'!J1582=\"\",\"\",IF(OR('TSA Input'!J1582=\"Yes\",'TSA Input'!J1582=\"Contingent\"),'TSA Input'!G1582,\"\"))","v":""},{"$f":"IF('TSA Input'!J1582=\"\",\"\",IF(OR('TSA Input'!J1582=\"Yes\",'TSA Input'!J1582=\"Contingent\"),'TSA Input'!F1582,\"\"))","v":""},"","Required","Required"]
["",null,{"$f":"IF('TSA Input'!J1583=\"\",\"\",IF(OR('TSA Input'!J1583=\"Yes\",'TSA Input'!J1583=\"Contingent\"),'TSA Input'!B1583,\"Ineligible\"))","v":""},{"$f":"IF('TSA Input'!J1583=\"\",\"\",IF(OR('TSA Input'!J1583=\"Yes\",'TSA Input'!J1583=\"Contingent\"),'TSA Input'!I1583,\"\"))","v":""},{"$f":"IF('TSA Input'!J1583=\"\",\"\",IF(OR('TSA Input'!J1583=\"Yes\",'TSA Input'!J1583=\"Contingent\"),'TSA Input'!C1583,\"\"))","v":""},{"$f":"IF('TSA Input'!J1583=\"\",\"\",IF(OR('TSA Input'!J1583=\"Yes\",'TSA Input'!J1583=\"Contingent\"),'TSA Input'!D1583,\"\"))","v":""},{"$f":"IF('TSA Input'!J1583=\"\",\"\",IF(OR('TSA Input'!J1583=\"Yes\",'TSA Input'!J1583=\"Contingent\"),'TSA Input'!G1583,\"\"))","v":""},{"$f":"IF('TSA Input'!J1583=\"\",\"\",IF(OR('TSA Input'!J1583=\"Yes\",'TSA Input'!J1583=\"Contingent\"),'TSA Input'!F1583,\"\"))","v":""},"",{"$f":"IF('TSA Input'!J1583=\"\",\"\",IF(OR('TSA Input'!J1583=\"Yes\",'TSA Input'!J1583=\"Contingent\"),'TSA Input'!D1583,\"\"))","v":""},{"$f":"IF('TSA Input'!J1583=\"\",\"\",IF(OR('TSA Input'!J1583=\"Yes\",'TSA Input'!J1583=\"Contingent\"),'TSA Input'!G1583,\"\"))","v":""},{"$f":"IF('TSA Input'!J1583=\"\",\"\",IF(OR('TSA Input'!J1583=\"Yes\",'TSA Input'!J1583=\"Contingent\"),'TSA Input'!F1583,\"\"))","v":""},"","Required","Required"]
["",null,{"$f":"IF('TSA Input'!J1584=\"\",\"\",IF(OR('TSA Input'!J1584=\"Yes\",'TSA Input'!J1584=\"Contingent\"),'TSA Input'!B1584,\"Ineligible\"))","v":""},{"$f":"IF('TSA Input'!J1584=\"\",\"\",IF(OR('TSA Input'!J1584=\"Yes\",'TSA Input'!J1584=\"Contingent\"),'TSA Input'!I1584,\"\"))","v":""},{"$f":"IF('TSA Input'!J1584=\"\",\"\",IF(OR('TSA Input'!J1584=\"Yes\",'TSA Input'!J1584=\"Contingent\"),'TSA Input'!C1584,\"\"))","v":""},{"$f":"IF('TSA Input'!J1584=\"\",\"\",IF(OR('TSA Input'!J1584=\"Yes\",'TSA Input'!J1584=\"Contingent\"),'TSA Input'!D1584,\"\"))","v":""},{"$f":"IF('TSA Input'!J1584=\"\",\"\",IF(OR('TSA Input'!J1584=\"Yes\",'TSA Input'!J1584=\"Contingent\"),'TSA Input'!G1584,\"\"))","v":""},{"$f":"IF('TSA Input'!J1584=\"\",\"\",IF(OR('TSA Input'!J1584=\"Yes\",'TSA Input'!J1584=\"Contingent\"),'TSA Input'!F1584,\"\"))","v":""},"",{"$f":"IF('TSA Input'!J1584=\"\",\"\",IF(OR('TSA Input'!J1584=\"Yes\",'TSA Input'!J1584=\"Contingent\"),'TSA Input'!D1584,\"\"))","v":""},{"$f":"IF('TSA Input'!J1584=\"\",\"\",IF(OR('TSA Input'!J1584=\"Yes\",'TSA Input'!J1584=\"Contingent\"),'TSA Input'!G1584,\"\"))","v":""},{"$f":"IF('TSA Input'!J1584=\"\",\"\",IF(OR('TSA Input'!J1584=\"Yes\",'TSA Input'!J1584=\"Contingent\"),'TSA Input'!F1584,\"\"))","v":""},"","Required","Required"]
["",null,{"$f":"IF('TSA Input'!J1585=\"\",\"\",IF(OR('TSA Input'!J1585=\"Yes\",'TSA Input'!J1585=\"Contingent\"),'TSA Input'!B1585,\"Ineligible\"))","v":""},{"$f":"IF('TSA Input'!J1585=\"\",\"\",IF(OR('TSA Input'!J1585=\"Yes\",'TSA Input'!J1585=\"Contingent\"),'TSA Input'!I1585,\"\"))","v":""},{"$f":"IF('TSA Input'!J1585=\"\",\"\",IF(OR('TSA Input'!J1585=\"Yes\",'TSA Input'!J1585=\"Contingent\"),'TSA Input'!C1585,\"\"))","v":""},{"$f":"IF('TSA Input'!J1585=\"\",\"\",IF(OR('TSA Input'!J1585=\"Yes\",'TSA Input'!J1585=\"Contingent\"),'TSA Input'!D1585,\"\"))","v":""},{"$f":"IF('TSA Input'!J1585=\"\",\"\",IF(OR('TSA Input'!J1585=\"Yes\",'TSA Input'!J1585=\"Contingent\"),'TSA Input'!G1585,\"\"))","v":""},{"$f":"IF('TSA Input'!J1585=\"\",\"\",IF(OR('TSA Input'!J1585=\"Yes\",'TSA Input'!J1585=\"Contingent\"),'TSA Input'!F1585,\"\"))","v":""},"",{"$f":"IF('TSA Input'!J1585=\"\",\"\",IF(OR('TSA Input'!J1585=\"Yes\",'TSA Input'!J1585=\"Contingent\"),'TSA Input'!D1585,\"\"))","v":""},{"$f":"IF('TSA Input'!J1585=\"\",\"\",IF(OR('TSA Input'!J1585=\"Yes\",'TSA Input'!J1585=\"Contingent\"),'TSA Input'!G1585,\"\"))","v":""},{"$f":"IF('TSA Input'!J1585=\"\",\"\",IF(OR('TSA Input'!J1585=\"Yes\",'TSA Input'!J1585=\"Contingent\"),'TSA Input'!F1585,\"\"))","v":""},"","Required","Required"]
["",null,{"$f":"IF('TSA Input'!J1586=\"\",\"\",IF(OR('TSA Input'!J1586=\"Yes\",'TSA Input'!J1586=\"Contingent\"),'TSA Input'!B1586,\"Ineligible\"))","v":""},{"$f":"IF('TSA Input'!J1586=\"\",\"\",IF(OR('TSA Input'!J1586=\"Yes\",'TSA Input'!J1586=\"Contingent\"),'TSA Input'!I1586,\"\"))","v":""},{"$f":"IF('TSA Input'!J1586=\"\",\"\",IF(OR('TSA Input'!J1586=\"Yes\",'TSA Input'!J1586=\"Contingent\"),'TSA Input'!C1586,\"\"))","v":""},{"$f":"IF('TSA Input'!J1586=\"\",\"\",IF(OR('TSA Input'!J1586=\"Yes\",'TSA Input'!J1586=\"Contingent\"),'TSA Input'!D1586,\"\"))","v":""},{"$f":"IF('TSA Input'!J1586=\"\",\"\",IF(OR('TSA Input'!J1586=\"Yes\",'TSA Input'!J1586=\"Contingent\"),'TSA Input'!G1586,\"\"))","v":""},{"$f":"IF('TSA Input'!J1586=\"\",\"\",IF(OR('TSA Input'!J1586=\"Yes\",'TSA Input'!J1586=\"Contingent\"),'TSA Input'!F1586,\"\"))","v":""},"",{"$f":"IF('TSA Input'!J1586=\"\",\"\",IF(OR('TSA Input'!J1586=\"Yes\",'TSA Input'!J1586=\"Contingent\"),'TSA Input'!D1586,\"\"))","v":""},{"$f":"IF('TSA Input'!J1586=\"\",\"\",IF(OR('TSA Input'!J1586=\"Yes\",'TSA Input'!J1586=\"Contingent\"),'TSA Input'!G1586,\"\"))","v":""},{"$f":"IF('TSA Input'!J1586=\"\",\"\",IF(OR('TSA Input'!J1586=\"Yes\",'TSA Input'!J1586=\"Contingent\"),'TSA Input'!F1586,\"\"))","v":""},"","Required","Required"]
["",null,{"$f":"IF('TSA Input'!J1587=\"\",\"\",IF(OR('TSA Input'!J1587=\"Yes\",'TSA Input'!J1587=\"Contingent\"),'TSA Input'!B1587,\"Ineligible\"))","v":""},{"$f":"IF('TSA Input'!J1587=\"\",\"\",IF(OR('TSA Input'!J1587=\"Yes\",'TSA Input'!J1587=\"Contingent\"),'TSA Input'!I1587,\"\"))","v":""},{"$f":"IF('TSA Input'!J1587=\"\",\"\",IF(OR('TSA Input'!J1587=\"Yes\",'TSA Input'!J1587=\"Contingent\"),'TSA Input'!C1587,\"\"))","v":""},{"$f":"IF('TSA Input'!J1587=\"\",\"\",IF(OR('TSA Input'!J1587=\"Yes\",'TSA Input'!J1587=\"Contingent\"),'TSA Input'!D1587,\"\"))","v":""},{"$f":"IF('TSA Input'!J1587=\"\",\"\",IF(OR('TSA Input'!J1587=\"Yes\",'TSA Input'!J1587=\"Contingent\"),'TSA Input'!G1587,\"\"))","v":""},{"$f":"IF('TSA Input'!J1587=\"\",\"\",IF(OR('TSA Input'!J1587=\"Yes\",'TSA Input'!J1587=\"Contingent\"),'TSA Input'!F1587,\"\"))","v":""},"",{"$f":"IF('TSA Input'!J1587=\"\",\"\",IF(OR('TSA Input'!J1587=\"Yes\",'TSA Input'!J1587=\"Contingent\"),'TSA Input'!D1587,\"\"))","v":""},{"$f":"IF('TSA Input'!J1587=\"\",\"\",IF(OR('TSA Input'!J1587=\"Yes\",'TSA Input'!J1587=\"Contingent\"),'TSA Input'!G1587,\"\"))","v":""},{"$f":"IF('TSA Input'!J1587=\"\",\"\",IF(OR('TSA Input'!J1587=\"Yes\",'TSA Input'!J1587=\"Contingent\"),'TSA Input'!F1587,\"\"))","v":""},"","Required","Required"]
["",null,{"$f":"IF('TSA Input'!J1588=\"\",\"\",IF(OR('TSA Input'!J1588=\"Yes\",'TSA Input'!J1588=\"Contingent\"),'TSA Input'!B1588,\"Ineligible\"))","v":""},{"$f":"IF('TSA Input'!J1588=\"\",\"\",IF(OR('TSA Input'!J1588=\"Yes\",'TSA Input'!J1588=\"Contingent\"),'TSA Input'!I1588,\"\"))","v":""},{"$f":"IF('TSA Input'!J1588=\"\",\"\",IF(OR('TSA Input'!J1588=\"Yes\",'TSA Input'!J1588=\"Contingent\"),'TSA Input'!C1588,\"\"))","v":""},{"$f":"IF('TSA Input'!J1588=\"\",\"\",IF(OR('TSA Input'!J1588=\"Yes\",'TSA Input'!J1588=\"Contingent\"),'TSA Input'!D1588,\"\"))","v":""},{"$f":"IF('TSA Input'!J1588=\"\",\"\",IF(OR('TSA Input'!J1588=\"Yes\",'TSA Input'!J1588=\"Contingent\"),'TSA Input'!G1588,\"\"))","v":""},{"$f":"IF('TSA Input'!J1588=\"\",\"\",IF(OR('TSA Input'!J1588=\"Yes\",'TSA Input'!J1588=\"Contingent\"),'TSA Input'!F1588,\"\"))","v":""},"",{"$f":"IF('TSA Input'!J1588=\"\",\"\",IF(OR('TSA Input'!J1588=\"Yes\",'TSA Input'!J1588=\"Contingent\"),'TSA Input'!D1588,\"\"))","v":""},{"$f":"IF('TSA Input'!J1588=\"\",\"\",IF(OR('TSA Input'!J1588=\"Yes\",'TSA Input'!J1588=\"Contingent\"),'TSA Input'!G1588,\"\"))","v":""},{"$f":"IF('TSA Input'!J1588=\"\",\"\",IF(OR('TSA Input'!J1588=\"Yes\",'TSA Input'!J1588=\"Contingent\"),'TSA Input'!F1588,\"\"))","v":""},"","Required","Required"]
["",null,{"$f":"IF('TSA Input'!J1589=\"\",\"\",IF(OR('TSA Input'!J1589=\"Yes\",'TSA Input'!J1589=\"Contingent\"),'TSA Input'!B1589,\"Ineligible\"))","v":""},{"$f":"IF('TSA Input'!J1589=\"\",\"\",IF(OR('TSA Input'!J1589=\"Yes\",'TSA Input'!J1589=\"Contingent\"),'TSA Input'!I1589,\"\"))","v":""},{"$f":"IF('TSA Input'!J1589=\"\",\"\",IF(OR('TSA Input'!J1589=\"Yes\",'TSA Input'!J1589=\"Contingent\"),'TSA Input'!C1589,\"\"))","v":""},{"$f":"IF('TSA Input'!J1589=\"\",\"\",IF(OR('TSA Input'!J1589=\"Yes\",'TSA Input'!J1589=\"Contingent\"),'TSA Input'!D1589,\"\"))","v":""},{"$f":"IF('TSA Input'!J1589=\"\",\"\",IF(OR('TSA Input'!J1589=\"Yes\",'TSA Input'!J1589=\"Contingent\"),'TSA Input'!G1589,\"\"))","v":""},{"$f":"IF('TSA Input'!J1589=\"\",\"\",IF(OR('TSA Input'!J1589=\"Yes\",'TSA Input'!J1589=\"Contingent\"),'TSA Input'!F1589,\"\"))","v":""},"",{"$f":"IF('TSA Input'!J1589=\"\",\"\",IF(OR('TSA Input'!J1589=\"Yes\",'TSA Input'!J1589=\"Contingent\"),'TSA Input'!D1589,\"\"))","v":""},{"$f":"IF('TSA Input'!J1589=\"\",\"\",IF(OR('TSA Input'!J1589=\"Yes\",'TSA Input'!J1589=\"Contingent\"),'TSA Input'!G1589,\"\"))","v":""},{"$f":"IF('TSA Input'!J1589=\"\",\"\",IF(OR('TSA Input'!J1589=\"Yes\",'TSA Input'!J1589=\"Contingent\"),'TSA Input'!F1589,\"\"))","v":""},"","Required","Required"]
["",null,{"$f":"IF('TSA Input'!J1590=\"\",\"\",IF(OR('TSA Input'!J1590=\"Yes\",'TSA Input'!J1590=\"Contingent\"),'TSA Input'!B1590,\"Ineligible\"))","v":""},{"$f":"IF('TSA Input'!J1590=\"\",\"\",IF(OR('TSA Input'!J1590=\"Yes\",'TSA Input'!J1590=\"Contingent\"),'TSA Input'!I1590,\"\"))","v":""},{"$f":"IF('TSA Input'!J1590=\"\",\"\",IF(OR('TSA Input'!J1590=\"Yes\",'TSA Input'!J1590=\"Contingent\"),'TSA Input'!C1590,\"\"))","v":""},{"$f":"IF('TSA Input'!J1590=\"\",\"\",IF(OR('TSA Input'!J1590=\"Yes\",'TSA Input'!J1590=\"Contingent\"),'TSA Input'!D1590,\"\"))","v":""},{"$f":"IF('TSA Input'!J1590=\"\",\"\",IF(OR('TSA Input'!J1590=\"Yes\",'TSA Input'!J1590=\"Contingent\"),'TSA Input'!G1590,\"\"))","v":""},{"$f":"IF('TSA Input'!J1590=\"\",\"\",IF(OR('TSA Input'!J1590=\"Yes\",'TSA Input'!J1590=\"Contingent\"),'TSA Input'!F1590,\"\"))","v":""},"",{"$f":"IF('TSA Input'!J1590=\"\",\"\",IF(OR('TSA Input'!J1590=\"Yes\",'TSA Input'!J1590=\"Contingent\"),'TSA Input'!D1590,\"\"))","v":""},{"$f":"IF('TSA Input'!J1590=\"\",\"\",IF(OR('TSA Input'!J1590=\"Yes\",'TSA Input'!J1590=\"Contingent\"),'TSA Input'!G1590,\"\"))","v":""},{"$f":"IF('TSA Input'!J1590=\"\",\"\",IF(OR('TSA Input'!J1590=\"Yes\",'TSA Input'!J1590=\"Contingent\"),'TSA Input'!F1590,\"\"))","v":""},"","Required","Required"]
["",null,{"$f":"IF('TSA Input'!J1591=\"\",\"\",IF(OR('TSA Input'!J1591=\"Yes\",'TSA Input'!J1591=\"Contingent\"),'TSA Input'!B1591,\"Ineligible\"))","v":""},{"$f":"IF('TSA Input'!J1591=\"\",\"\",IF(OR('TSA Input'!J1591=\"Yes\",'TSA Input'!J1591=\"Contingent\"),'TSA Input'!I1591,\"\"))","v":""},{"$f":"IF('TSA Input'!J1591=\"\",\"\",IF(OR('TSA Input'!J1591=\"Yes\",'TSA Input'!J1591=\"Contingent\"),'TSA Input'!C1591,\"\"))","v":""},{"$f":"IF('TSA Input'!J1591=\"\",\"\",IF(OR('TSA Input'!J1591=\"Yes\",'TSA Input'!J1591=\"Contingent\"),'TSA Input'!D1591,\"\"))","v":""},{"$f":"IF('TSA Input'!J1591=\"\",\"\",IF(OR('TSA Input'!J1591=\"Yes\",'TSA Input'!J1591=\"Contingent\"),'TSA Input'!G1591,\"\"))","v":""},{"$f":"IF('TSA Input'!J1591=\"\",\"\",IF(OR('TSA Input'!J1591=\"Yes\",'TSA Input'!J1591=\"Contingent\"),'TSA Input'!F1591,\"\"))","v":""},"",{"$f":"IF('TSA Input'!J1591=\"\",\"\",IF(OR('TSA Input'!J1591=\"Yes\",'TSA Input'!J1591=\"Contingent\"),'TSA Input'!D1591,\"\"))","v":""},{"$f":"IF('TSA Input'!J1591=\"\",\"\",IF(OR('TSA Input'!J1591=\"Yes\",'TSA Input'!J1591=\"Contingent\"),'TSA Input'!G1591,\"\"))","v":""},{"$f":"IF('TSA Input'!J1591=\"\",\"\",IF(OR('TSA Input'!J1591=\"Yes\",'TSA Input'!J1591=\"Contingent\"),'TSA Input'!F1591,\"\"))","v":""},"","Required","Required"]
["",null,{"$f":"IF('TSA Input'!J1592=\"\",\"\",IF(OR('TSA Input'!J1592=\"Yes\",'TSA Input'!J1592=\"Contingent\"),'TSA Input'!B1592,\"Ineligible\"))","v":""},{"$f":"IF('TSA Input'!J1592=\"\",\"\",IF(OR('TSA Input'!J1592=\"Yes\",'TSA Input'!J1592=\"Contingent\"),'TSA Input'!I1592,\"\"))","v":""},{"$f":"IF('TSA Input'!J1592=\"\",\"\",IF(OR('TSA Input'!J1592=\"Yes\",'TSA Input'!J1592=\"Contingent\"),'TSA Input'!C1592,\"\"))","v":""},{"$f":"IF('TSA Input'!J1592=\"\",\"\",IF(OR('TSA Input'!J1592=\"Yes\",'TSA Input'!J1592=\"Contingent\"),'TSA Input'!D1592,\"\"))","v":""},{"$f":"IF('TSA Input'!J1592=\"\",\"\",IF(OR('TSA Input'!J1592=\"Yes\",'TSA Input'!J1592=\"Contingent\"),'TSA Input'!G1592,\"\"))","v":""},{"$f":"IF('TSA Input'!J1592=\"\",\"\",IF(OR('TSA Input'!J1592=\"Yes\",'TSA Input'!J1592=\"Contingent\"),'TSA Input'!F1592,\"\"))","v":""},"",{"$f":"IF('TSA Input'!J1592=\"\",\"\",IF(OR('TSA Input'!J1592=\"Yes\",'TSA Input'!J1592=\"Contingent\"),'TSA Input'!D1592,\"\"))","v":""},{"$f":"IF('TSA Input'!J1592=\"\",\"\",IF(OR('TSA Input'!J1592=\"Yes\",'TSA Input'!J1592=\"Contingent\"),'TSA Input'!G1592,\"\"))","v":""},{"$f":"IF('TSA Input'!J1592=\"\",\"\",IF(OR('TSA Input'!J1592=\"Yes\",'TSA Input'!J1592=\"Contingent\"),'TSA Input'!F1592,\"\"))","v":""},"","Required","Required"]
["",null,{"$f":"IF('TSA Input'!J1593=\"\",\"\",IF(OR('TSA Input'!J1593=\"Yes\",'TSA Input'!J1593=\"Contingent\"),'TSA Input'!B1593,\"Ineligible\"))","v":""},{"$f":"IF('TSA Input'!J1593=\"\",\"\",IF(OR('TSA Input'!J1593=\"Yes\",'TSA Input'!J1593=\"Contingent\"),'TSA Input'!I1593,\"\"))","v":""},{"$f":"IF('TSA Input'!J1593=\"\",\"\",IF(OR('TSA Input'!J1593=\"Yes\",'TSA Input'!J1593=\"Contingent\"),'TSA Input'!C1593,\"\"))","v":""},{"$f":"IF('TSA Input'!J1593=\"\",\"\",IF(OR('TSA Input'!J1593=\"Yes\",'TSA Input'!J1593=\"Contingent\"),'TSA Input'!D1593,\"\"))","v":""},{"$f":"IF('TSA Input'!J1593=\"\",\"\",IF(OR('TSA Input'!J1593=\"Yes\",'TSA Input'!J1593=\"Contingent\"),'TSA Input'!G1593,\"\"))","v":""},{"$f":"IF('TSA Input'!J1593=\"\",\"\",IF(OR('TSA Input'!J1593=\"Yes\",'TSA Input'!J1593=\"Contingent\"),'TSA Input'!F1593,\"\"))","v":""},"",{"$f":"IF('TSA Input'!J1593=\"\",\"\",IF(OR('TSA Input'!J1593=\"Yes\",'TSA Input'!J1593=\"Contingent\"),'TSA Input'!D1593,\"\"))","v":""},{"$f":"IF('TSA Input'!J1593=\"\",\"\",IF(OR('TSA Input'!J1593=\"Yes\",'TSA Input'!J1593=\"Contingent\"),'TSA Input'!G1593,\"\"))","v":""},{"$f":"IF('TSA Input'!J1593=\"\",\"\",IF(OR('TSA Input'!J1593=\"Yes\",'TSA Input'!J1593=\"Contingent\"),'TSA Input'!F1593,\"\"))","v":""},"","Required","Required"]
["",null,{"$f":"IF('TSA Input'!J1594=\"\",\"\",IF(OR('TSA Input'!J1594=\"Yes\",'TSA Input'!J1594=\"Contingent\"),'TSA Input'!B1594,\"Ineligible\"))","v":""},{"$f":"IF('TSA Input'!J1594=\"\",\"\",IF(OR('TSA Input'!J1594=\"Yes\",'TSA Input'!J1594=\"Contingent\"),'TSA Input'!I1594,\"\"))","v":""},{"$f":"IF('TSA Input'!J1594=\"\",\"\",IF(OR('TSA Input'!J1594=\"Yes\",'TSA Input'!J1594=\"Contingent\"),'TSA Input'!C1594,\"\"))","v":""},{"$f":"IF('TSA Input'!J1594=\"\",\"\",IF(OR('TSA Input'!J1594=\"Yes\",'TSA Input'!J1594=\"Contingent\"),'TSA Input'!D1594,\"\"))","v":""},{"$f":"IF('TSA Input'!J1594=\"\",\"\",IF(OR('TSA Input'!J1594=\"Yes\",'TSA Input'!J1594=\"Contingent\"),'TSA Input'!G1594,\"\"))","v":""},{"$f":"IF('TSA Input'!J1594=\"\",\"\",IF(OR('TSA Input'!J1594=\"Yes\",'TSA Input'!J1594=\"Contingent\"),'TSA Input'!F1594,\"\"))","v":""},"",{"$f":"IF('TSA Input'!J1594=\"\",\"\",IF(OR('TSA Input'!J1594=\"Yes\",'TSA Input'!J1594=\"Contingent\"),'TSA Input'!D1594,\"\"))","v":""},{"$f":"IF('TSA Input'!J1594=\"\",\"\",IF(OR('TSA Input'!J1594=\"Yes\",'TSA Input'!J1594=\"Contingent\"),'TSA Input'!G1594,\"\"))","v":""},{"$f":"IF('TSA Input'!J1594=\"\",\"\",IF(OR('TSA Input'!J1594=\"Yes\",'TSA Input'!J1594=\"Contingent\"),'TSA Input'!F1594,\"\"))","v":""},"","Required","Required"]
["",null,{"$f":"IF('TSA Input'!J1595=\"\",\"\",IF(OR('TSA Input'!J1595=\"Yes\",'TSA Input'!J1595=\"Contingent\"),'TSA Input'!B1595,\"Ineligible\"))","v":""},{"$f":"IF('TSA Input'!J1595=\"\",\"\",IF(OR('TSA Input'!J1595=\"Yes\",'TSA Input'!J1595=\"Contingent\"),'TSA Input'!I1595,\"\"))","v":""},{"$f":"IF('TSA Input'!J1595=\"\",\"\",IF(OR('TSA Input'!J1595=\"Yes\",'TSA Input'!J1595=\"Contingent\"),'TSA Input'!C1595,\"\"))","v":""},{"$f":"IF('TSA Input'!J1595=\"\",\"\",IF(OR('TSA Input'!J1595=\"Yes\",'TSA Input'!J1595=\"Contingent\"),'TSA Input'!D1595,\"\"))","v":""},{"$f":"IF('TSA Input'!J1595=\"\",\"\",IF(OR('TSA Input'!J1595=\"Yes\",'TSA Input'!J1595=\"Contingent\"),'TSA Input'!G1595,\"\"))","v":""},{"$f":"IF('TSA Input'!J1595=\"\",\"\",IF(OR('TSA Input'!J1595=\"Yes\",'TSA Input'!J1595=\"Contingent\"),'TSA Input'!F1595,\"\"))","v":""},"",{"$f":"IF('TSA Input'!J1595=\"\",\"\",IF(OR('TSA Input'!J1595=\"Yes\",'TSA Input'!J1595=\"Contingent\"),'TSA Input'!D1595,\"\"))","v":""},{"$f":"IF('TSA Input'!J1595=\"\",\"\",IF(OR('TSA Input'!J1595=\"Yes\",'TSA Input'!J1595=\"Contingent\"),'TSA Input'!G1595,\"\"))","v":""},{"$f":"IF('TSA Input'!J1595=\"\",\"\",IF(OR('TSA Input'!J1595=\"Yes\",'TSA Input'!J1595=\"Contingent\"),'TSA Input'!F1595,\"\"))","v":""},"","Required","Required"]
["",null,{"$f":"IF('TSA Input'!J1596=\"\",\"\",IF(OR('TSA Input'!J1596=\"Yes\",'TSA Input'!J1596=\"Contingent\"),'TSA Input'!B1596,\"Ineligible\"))","v":""},{"$f":"IF('TSA Input'!J1596=\"\",\"\",IF(OR('TSA Input'!J1596=\"Yes\",'TSA Input'!J1596=\"Contingent\"),'TSA Input'!I1596,\"\"))","v":""},{"$f":"IF('TSA Input'!J1596=\"\",\"\",IF(OR('TSA Input'!J1596=\"Yes\",'TSA Input'!J1596=\"Contingent\"),'TSA Input'!C1596,\"\"))","v":""},{"$f":"IF('TSA Input'!J1596=\"\",\"\",IF(OR('TSA Input'!J1596=\"Yes\",'TSA Input'!J1596=\"Contingent\"),'TSA Input'!D1596,\"\"))","v":""},{"$f":"IF('TSA Input'!J1596=\"\",\"\",IF(OR('TSA Input'!J1596=\"Yes\",'TSA Input'!J1596=\"Contingent\"),'TSA Input'!G1596,\"\"))","v":""},{"$f":"IF('TSA Input'!J1596=\"\",\"\",IF(OR('TSA Input'!J1596=\"Yes\",'TSA Input'!J1596=\"Contingent\"),'TSA Input'!F1596,\"\"))","v":""},"",{"$f":"IF('TSA Input'!J1596=\"\",\"\",IF(OR('TSA Input'!J1596=\"Yes\",'TSA Input'!J1596=\"Contingent\"),'TSA Input'!D1596,\"\"))","v":""},{"$f":"IF('TSA Input'!J1596=\"\",\"\",IF(OR('TSA Input'!J1596=\"Yes\",'TSA Input'!J1596=\"Contingent\"),'TSA Input'!G1596,\"\"))","v":""},{"$f":"IF('TSA Input'!J1596=\"\",\"\",IF(OR('TSA Input'!J1596=\"Yes\",'TSA Input'!J1596=\"Contingent\"),'TSA Input'!F1596,\"\"))","v":""},"","Required","Required"]
["",null,{"$f":"IF('TSA Input'!J1597=\"\",\"\",IF(OR('TSA Input'!J1597=\"Yes\",'TSA Input'!J1597=\"Contingent\"),'TSA Input'!B1597,\"Ineligible\"))","v":""},{"$f":"IF('TSA Input'!J1597=\"\",\"\",IF(OR('TSA Input'!J1597=\"Yes\",'TSA Input'!J1597=\"Contingent\"),'TSA Input'!I1597,\"\"))","v":""},{"$f":"IF('TSA Input'!J1597=\"\",\"\",IF(OR('TSA Input'!J1597=\"Yes\",'TSA Input'!J1597=\"Contingent\"),'TSA Input'!C1597,\"\"))","v":""},{"$f":"IF('TSA Input'!J1597=\"\",\"\",IF(OR('TSA Input'!J1597=\"Yes\",'TSA Input'!J1597=\"Contingent\"),'TSA Input'!D1597,\"\"))","v":""},{"$f":"IF('TSA Input'!J1597=\"\",\"\",IF(OR('TSA Input'!J1597=\"Yes\",'TSA Input'!J1597=\"Contingent\"),'TSA Input'!G1597,\"\"))","v":""},{"$f":"IF('TSA Input'!J1597=\"\",\"\",IF(OR('TSA Input'!J1597=\"Yes\",'TSA Input'!J1597=\"Contingent\"),'TSA Input'!F1597,\"\"))","v":""},"",{"$f":"IF('TSA Input'!J1597=\"\",\"\",IF(OR('TSA Input'!J1597=\"Yes\",'TSA Input'!J1597=\"Contingent\"),'TSA Input'!D1597,\"\"))","v":""},{"$f":"IF('TSA Input'!J1597=\"\",\"\",IF(OR('TSA Input'!J1597=\"Yes\",'TSA Input'!J1597=\"Contingent\"),'TSA Input'!G1597,\"\"))","v":""},{"$f":"IF('TSA Input'!J1597=\"\",\"\",IF(OR('TSA Input'!J1597=\"Yes\",'TSA Input'!J1597=\"Contingent\"),'TSA Input'!F1597,\"\"))","v":""},"","Required","Required"]
["",null,{"$f":"IF('TSA Input'!J1598=\"\",\"\",IF(OR('TSA Input'!J1598=\"Yes\",'TSA Input'!J1598=\"Contingent\"),'TSA Input'!B1598,\"Ineligible\"))","v":""},{"$f":"IF('TSA Input'!J1598=\"\",\"\",IF(OR('TSA Input'!J1598=\"Yes\",'TSA Input'!J1598=\"Contingent\"),'TSA Input'!I1598,\"\"))","v":""},{"$f":"IF('TSA Input'!J1598=\"\",\"\",IF(OR('TSA Input'!J1598=\"Yes\",'TSA Input'!J1598=\"Contingent\"),'TSA Input'!C1598,\"\"))","v":""},{"$f":"IF('TSA Input'!J1598=\"\",\"\",IF(OR('TSA Input'!J1598=\"Yes\",'TSA Input'!J1598=\"Contingent\"),'TSA Input'!D1598,\"\"))","v":""},{"$f":"IF('TSA Input'!J1598=\"\",\"\",IF(OR('TSA Input'!J1598=\"Yes\",'TSA Input'!J1598=\"Contingent\"),'TSA Input'!G1598,\"\"))","v":""},{"$f":"IF('TSA Input'!J1598=\"\",\"\",IF(OR('TSA Input'!J1598=\"Yes\",'TSA Input'!J1598=\"Contingent\"),'TSA Input'!F1598,\"\"))","v":""},"",{"$f":"IF('TSA Input'!J1598=\"\",\"\",IF(OR('TSA Input'!J1598=\"Yes\",'TSA Input'!J1598=\"Contingent\"),'TSA Input'!D1598,\"\"))","v":""},{"$f":"IF('TSA Input'!J1598=\"\",\"\",IF(OR('TSA Input'!J1598=\"Yes\",'TSA Input'!J1598=\"Contingent\"),'TSA Input'!G1598,\"\"))","v":""},{"$f":"IF('TSA Input'!J1598=\"\",\"\",IF(OR('TSA Input'!J1598=\"Yes\",'TSA Input'!J1598=\"Contingent\"),'TSA Input'!F1598,\"\"))","v":""},"","Required","Required"]
["",null,{"$f":"IF('TSA Input'!J1599=\"\",\"\",IF(OR('TSA Input'!J1599=\"Yes\",'TSA Input'!J1599=\"Contingent\"),'TSA Input'!B1599,\"Ineligible\"))","v":""},{"$f":"IF('TSA Input'!J1599=\"\",\"\",IF(OR('TSA Input'!J1599=\"Yes\",'TSA Input'!J1599=\"Contingent\"),'TSA Input'!I1599,\"\"))","v":""},{"$f":"IF('TSA Input'!J1599=\"\",\"\",IF(OR('TSA Input'!J1599=\"Yes\",'TSA Input'!J1599=\"Contingent\"),'TSA Input'!C1599,\"\"))","v":""},{"$f":"IF('TSA Input'!J1599=\"\",\"\",IF(OR('TSA Input'!J1599=\"Yes\",'TSA Input'!J1599=\"Contingent\"),'TSA Input'!D1599,\"\"))","v":""},{"$f":"IF('TSA Input'!J1599=\"\",\"\",IF(OR('TSA Input'!J1599=\"Yes\",'TSA Input'!J1599=\"Contingent\"),'TSA Input'!G1599,\"\"))","v":""},{"$f":"IF('TSA Input'!J1599=\"\",\"\",IF(OR('TSA Input'!J1599=\"Yes\",'TSA Input'!J1599=\"Contingent\"),'TSA Input'!F1599,\"\"))","v":""},"",{"$f":"IF('TSA Input'!J1599=\"\",\"\",IF(OR('TSA Input'!J1599=\"Yes\",'TSA Input'!J1599=\"Contingent\"),'TSA Input'!D1599,\"\"))","v":""},{"$f":"IF('TSA Input'!J1599=\"\",\"\",IF(OR('TSA Input'!J1599=\"Yes\",'TSA Input'!J1599=\"Contingent\"),'TSA Input'!G1599,\"\"))","v":""},{"$f":"IF('TSA Input'!J1599=\"\",\"\",IF(OR('TSA Input'!J1599=\"Yes\",'TSA Input'!J1599=\"Contingent\"),'TSA Input'!F1599,\"\"))","v":""},"","Required","Required"]
["",null,{"$f":"IF('TSA Input'!J1600=\"\",\"\",IF(OR('TSA Input'!J1600=\"Yes\",'TSA Input'!J1600=\"Contingent\"),'TSA Input'!B1600,\"Ineligible\"))","v":""},{"$f":"IF('TSA Input'!J1600=\"\",\"\",IF(OR('TSA Input'!J1600=\"Yes\",'TSA Input'!J1600=\"Contingent\"),'TSA Input'!I1600,\"\"))","v":""},{"$f":"IF('TSA Input'!J1600=\"\",\"\",IF(OR('TSA Input'!J1600=\"Yes\",'TSA Input'!J1600=\"Contingent\"),'TSA Input'!C1600,\"\"))","v":""},{"$f":"IF('TSA Input'!J1600=\"\",\"\",IF(OR('TSA Input'!J1600=\"Yes\",'TSA Input'!J1600=\"Contingent\"),'TSA Input'!D1600,\"\"))","v":""},{"$f":"IF('TSA Input'!J1600=\"\",\"\",IF(OR('TSA Input'!J1600=\"Yes\",'TSA Input'!J1600=\"Contingent\"),'TSA Input'!G1600,\"\"))","v":""},{"$f":"IF('TSA Input'!J1600=\"\",\"\",IF(OR('TSA Input'!J1600=\"Yes\",'TSA Input'!J1600=\"Contingent\"),'TSA Input'!F1600,\"\"))","v":""},"",{"$f":"IF('TSA Input'!J1600=\"\",\"\",IF(OR('TSA Input'!J1600=\"Yes\",'TSA Input'!J1600=\"Contingent\"),'TSA Input'!D1600,\"\"))","v":""},{"$f":"IF('TSA Input'!J1600=\"\",\"\",IF(OR('TSA Input'!J1600=\"Yes\",'TSA Input'!J1600=\"Contingent\"),'TSA Input'!G1600,\"\"))","v":""},{"$f":"IF('TSA Input'!J1600=\"\",\"\",IF(OR('TSA Input'!J1600=\"Yes\",'TSA Input'!J1600=\"Contingent\"),'TSA Input'!F1600,\"\"))","v":""},"","Required","Required"]
["",null,{"$f":"IF('TSA Input'!J1601=\"\",\"\",IF(OR('TSA Input'!J1601=\"Yes\",'TSA Input'!J1601=\"Contingent\"),'TSA Input'!B1601,\"Ineligible\"))","v":""},{"$f":"IF('TSA Input'!J1601=\"\",\"\",IF(OR('TSA Input'!J1601=\"Yes\",'TSA Input'!J1601=\"Contingent\"),'TSA Input'!I1601,\"\"))","v":""},{"$f":"IF('TSA Input'!J1601=\"\",\"\",IF(OR('TSA Input'!J1601=\"Yes\",'TSA Input'!J1601=\"Contingent\"),'TSA Input'!C1601,\"\"))","v":""},{"$f":"IF('TSA Input'!J1601=\"\",\"\",IF(OR('TSA Input'!J1601=\"Yes\",'TSA Input'!J1601=\"Contingent\"),'TSA Input'!D1601,\"\"))","v":""},{"$f":"IF('TSA Input'!J1601=\"\",\"\",IF(OR('TSA Input'!J1601=\"Yes\",'TSA Input'!J1601=\"Contingent\"),'TSA Input'!G1601,\"\"))","v":""},{"$f":"IF('TSA Input'!J1601=\"\",\"\",IF(OR('TSA Input'!J1601=\"Yes\",'TSA Input'!J1601=\"Contingent\"),'TSA Input'!F1601,\"\"))","v":""},"",{"$f":"IF('TSA Input'!J1601=\"\",\"\",IF(OR('TSA Input'!J1601=\"Yes\",'TSA Input'!J1601=\"Contingent\"),'TSA Input'!D1601,\"\"))","v":""},{"$f":"IF('TSA Input'!J1601=\"\",\"\",IF(OR('TSA Input'!J1601=\"Yes\",'TSA Input'!J1601=\"Contingent\"),'TSA Input'!G1601,\"\"))","v":""},{"$f":"IF('TSA Input'!J1601=\"\",\"\",IF(OR('TSA Input'!J1601=\"Yes\",'TSA Input'!J1601=\"Contingent\"),'TSA Input'!F1601,\"\"))","v":""},"","Required","Required"]
["",null,{"$f":"IF('TSA Input'!J1602=\"\",\"\",IF(OR('TSA Input'!J1602=\"Yes\",'TSA Input'!J1602=\"Contingent\"),'TSA Input'!B1602,\"Ineligible\"))","v":""},{"$f":"IF('TSA Input'!J1602=\"\",\"\",IF(OR('TSA Input'!J1602=\"Yes\",'TSA Input'!J1602=\"Contingent\"),'TSA Input'!I1602,\"\"))","v":""},{"$f":"IF('TSA Input'!J1602=\"\",\"\",IF(OR('TSA Input'!J1602=\"Yes\",'TSA Input'!J1602=\"Contingent\"),'TSA Input'!C1602,\"\"))","v":""},{"$f":"IF('TSA Input'!J1602=\"\",\"\",IF(OR('TSA Input'!J1602=\"Yes\",'TSA Input'!J1602=\"Contingent\"),'TSA Input'!D1602,\"\"))","v":""},{"$f":"IF('TSA Input'!J1602=\"\",\"\",IF(OR('TSA Input'!J1602=\"Yes\",'TSA Input'!J1602=\"Contingent\"),'TSA Input'!G1602,\"\"))","v":""},{"$f":"IF('TSA Input'!J1602=\"\",\"\",IF(OR('TSA Input'!J1602=\"Yes\",'TSA Input'!J1602=\"Contingent\"),'TSA Input'!F1602,\"\"))","v":""},"",{"$f":"IF('TSA Input'!J1602=\"\",\"\",IF(OR('TSA Input'!J1602=\"Yes\",'TSA Input'!J1602=\"Contingent\"),'TSA Input'!D1602,\"\"))","v":""},{"$f":"IF('TSA Input'!J1602=\"\",\"\",IF(OR('TSA Input'!J1602=\"Yes\",'TSA Input'!J1602=\"Contingent\"),'TSA Input'!G1602,\"\"))","v":""},{"$f":"IF('TSA Input'!J1602=\"\",\"\",IF(OR('TSA Input'!J1602=\"Yes\",'TSA Input'!J1602=\"Contingent\"),'TSA Input'!F1602,\"\"))","v":""},"","Required","Required"]
["",null,{"$f":"IF('TSA Input'!J1603=\"\",\"\",IF(OR('TSA Input'!J1603=\"Yes\",'TSA Input'!J1603=\"Contingent\"),'TSA Input'!B1603,\"Ineligible\"))","v":""},{"$f":"IF('TSA Input'!J1603=\"\",\"\",IF(OR('TSA Input'!J1603=\"Yes\",'TSA Input'!J1603=\"Contingent\"),'TSA Input'!I1603,\"\"))","v":""},{"$f":"IF('TSA Input'!J1603=\"\",\"\",IF(OR('TSA Input'!J1603=\"Yes\",'TSA Input'!J1603=\"Contingent\"),'TSA Input'!C1603,\"\"))","v":""},{"$f":"IF('TSA Input'!J1603=\"\",\"\",IF(OR('TSA Input'!J1603=\"Yes\",'TSA Input'!J1603=\"Contingent\"),'TSA Input'!D1603,\"\"))","v":""},{"$f":"IF('TSA Input'!J1603=\"\",\"\",IF(OR('TSA Input'!J1603=\"Yes\",'TSA Input'!J1603=\"Contingent\"),'TSA Input'!G1603,\"\"))","v":""},{"$f":"IF('TSA Input'!J1603=\"\",\"\",IF(OR('TSA Input'!J1603=\"Yes\",'TSA Input'!J1603=\"Contingent\"),'TSA Input'!F1603,\"\"))","v":""},"",{"$f":"IF('TSA Input'!J1603=\"\",\"\",IF(OR('TSA Input'!J1603=\"Yes\",'TSA Input'!J1603=\"Contingent\"),'TSA Input'!D1603,\"\"))","v":""},{"$f":"IF('TSA Input'!J1603=\"\",\"\",IF(OR('TSA Input'!J1603=\"Yes\",'TSA Input'!J1603=\"Contingent\"),'TSA Input'!G1603,\"\"))","v":""},{"$f":"IF('TSA Input'!J1603=\"\",\"\",IF(OR('TSA Input'!J1603=\"Yes\",'TSA Input'!J1603=\"Contingent\"),'TSA Input'!F1603,\"\"))","v":""},"","Required","Required"]
["",null,{"$f":"IF('TSA Input'!J1604=\"\",\"\",IF(OR('TSA Input'!J1604=\"Yes\",'TSA Input'!J1604=\"Contingent\"),'TSA Input'!B1604,\"Ineligible\"))","v":""},{"$f":"IF('TSA Input'!J1604=\"\",\"\",IF(OR('TSA Input'!J1604=\"Yes\",'TSA Input'!J1604=\"Contingent\"),'TSA Input'!I1604,\"\"))","v":""},{"$f":"IF('TSA Input'!J1604=\"\",\"\",IF(OR('TSA Input'!J1604=\"Yes\",'TSA Input'!J1604=\"Contingent\"),'TSA Input'!C1604,\"\"))","v":""},{"$f":"IF('TSA Input'!J1604=\"\",\"\",IF(OR('TSA Input'!J1604=\"Yes\",'TSA Input'!J1604=\"Contingent\"),'TSA Input'!D1604,\"\"))","v":""},{"$f":"IF('TSA Input'!J1604=\"\",\"\",IF(OR('TSA Input'!J1604=\"Yes\",'TSA Input'!J1604=\"Contingent\"),'TSA Input'!G1604,\"\"))","v":""},{"$f":"IF('TSA Input'!J1604=\"\",\"\",IF(OR('TSA Input'!J1604=\"Yes\",'TSA Input'!J1604=\"Contingent\"),'TSA Input'!F1604,\"\"))","v":""},{"$f":"IF($C1642=\"\",\"\",SUM(F1642:H1642))","v":""},{"$f":"IF('TSA Input'!J1604=\"\",\"\",IF(OR('TSA Input'!J1604=\"Yes\",'TSA Input'!J1604=\"Contingent\"),'TSA Input'!D1604,\"\"))","v":""},{"$f":"IF('TSA Input'!J1604=\"\",\"\",IF(OR('TSA Input'!J1604=\"Yes\",'TSA Input'!J1604=\"Contingent\"),'TSA Input'!G1604,\"\"))","v":""},{"$f":"IF('TSA Input'!J1604=\"\",\"\",IF(OR('TSA Input'!J1604=\"Yes\",'TSA Input'!J1604=\"Contingent\"),'TSA Input'!F1604,\"\"))","v":""},{"$f":"IF($C1642=\"\",\"\",SUM(J1642:L1642))","v":""},"Required","Required"]
["",null,{"$f":"IF('TSA Input'!J1605=\"\",\"\",IF(OR('TSA Input'!J1605=\"Yes\",'TSA Input'!J1605=\"Contingent\"),'TSA Input'!B1605,\"Ineligible\"))","v":""},{"$f":"IF('TSA Input'!J1605=\"\",\"\",IF(OR('TSA Input'!J1605=\"Yes\",'TSA Input'!J1605=\"Contingent\"),'TSA Input'!I1605,\"\"))","v":""},{"$f":"IF('TSA Input'!J1605=\"\",\"\",IF(OR('TSA Input'!J1605=\"Yes\",'TSA Input'!J1605=\"Contingent\"),'TSA Input'!C1605,\"\"))","v":""},{"$f":"IF('TSA Input'!J1605=\"\",\"\",IF(OR('TSA Input'!J1605=\"Yes\",'TSA Input'!J1605=\"Contingent\"),'TSA Input'!D1605,\"\"))","v":""},{"$f":"IF('TSA Input'!J1605=\"\",\"\",IF(OR('TSA Input'!J1605=\"Yes\",'TSA Input'!J1605=\"Contingent\"),'TSA Input'!G1605,\"\"))","v":""},{"$f":"IF('TSA Input'!J1605=\"\",\"\",IF(OR('TSA Input'!J1605=\"Yes\",'TSA Input'!J1605=\"Contingent\"),'TSA Input'!F1605,\"\"))","v":""},"",{"$f":"IF('TSA Input'!J1605=\"\",\"\",IF(OR('TSA Input'!J1605=\"Yes\",'TSA Input'!J1605=\"Contingent\"),'TSA Input'!D1605,\"\"))","v":""},{"$f":"IF('TSA Input'!J1605=\"\",\"\",IF(OR('TSA Input'!J1605=\"Yes\",'TSA Input'!J1605=\"Contingent\"),'TSA Input'!G1605,\"\"))","v":""},{"$f":"IF('TSA Input'!J1605=\"\",\"\",IF(OR('TSA Input'!J1605=\"Yes\",'TSA Input'!J1605=\"Contingent\"),'TSA Input'!F1605,\"\"))","v":""},"","Required","Required"]
["",null,{"$f":"IF('TSA Input'!J1606=\"\",\"\",IF(OR('TSA Input'!J1606=\"Yes\",'TSA Input'!J1606=\"Contingent\"),'TSA Input'!B1606,\"Ineligible\"))","v":""},{"$f":"IF('TSA Input'!J1606=\"\",\"\",IF(OR('TSA Input'!J1606=\"Yes\",'TSA Input'!J1606=\"Contingent\"),'TSA Input'!I1606,\"\"))","v":""},{"$f":"IF('TSA Input'!J1606=\"\",\"\",IF(OR('TSA Input'!J1606=\"Yes\",'TSA Input'!J1606=\"Contingent\"),'TSA Input'!C1606,\"\"))","v":""},{"$f":"IF('TSA Input'!J1606=\"\",\"\",IF(OR('TSA Input'!J1606=\"Yes\",'TSA Input'!J1606=\"Contingent\"),'TSA Input'!D1606,\"\"))","v":""},{"$f":"IF('TSA Input'!J1606=\"\",\"\",IF(OR('TSA Input'!J1606=\"Yes\",'TSA Input'!J1606=\"Contingent\"),'TSA Input'!G1606,\"\"))","v":""},{"$f":"IF('TSA Input'!J1606=\"\",\"\",IF(OR('TSA Input'!J1606=\"Yes\",'TSA Input'!J1606=\"Contingent\"),'TSA Input'!F1606,\"\"))","v":""},"",{"$f":"IF('TSA Input'!J1606=\"\",\"\",IF(OR('TSA Input'!J1606=\"Yes\",'TSA Input'!J1606=\"Contingent\"),'TSA Input'!D1606,\"\"))","v":""},{"$f":"IF('TSA Input'!J1606=\"\",\"\",IF(OR('TSA Input'!J1606=\"Yes\",'TSA Input'!J1606=\"Contingent\"),'TSA Input'!G1606,\"\"))","v":""},{"$f":"IF('TSA Input'!J1606=\"\",\"\",IF(OR('TSA Input'!J1606=\"Yes\",'TSA Input'!J1606=\"Contingent\"),'TSA Input'!F1606,\"\"))","v":""},"","Required","Required"]
["",null,{"$f":"IF('TSA Input'!J1607=\"\",\"\",IF(OR('TSA Input'!J1607=\"Yes\",'TSA Input'!J1607=\"Contingent\"),'TSA Input'!B1607,\"Ineligible\"))","v":""},{"$f":"IF('TSA Input'!J1607=\"\",\"\",IF(OR('TSA Input'!J1607=\"Yes\",'TSA Input'!J1607=\"Contingent\"),'TSA Input'!I1607,\"\"))","v":""},{"$f":"IF('TSA Input'!J1607=\"\",\"\",IF(OR('TSA Input'!J1607=\"Yes\",'TSA Input'!J1607=\"Contingent\"),'TSA Input'!C1607,\"\"))","v":""},{"$f":"IF('TSA Input'!J1607=\"\",\"\",IF(OR('TSA Input'!J1607=\"Yes\",'TSA Input'!J1607=\"Contingent\"),'TSA Input'!D1607,\"\"))","v":""},{"$f":"IF('TSA Input'!J1607=\"\",\"\",IF(OR('TSA Input'!J1607=\"Yes\",'TSA Input'!J1607=\"Contingent\"),'TSA Input'!G1607,\"\"))","v":""},{"$f":"IF('TSA Input'!J1607=\"\",\"\",IF(OR('TSA Input'!J1607=\"Yes\",'TSA Input'!J1607=\"Contingent\"),'TSA Input'!F1607,\"\"))","v":""},"",{"$f":"IF('TSA Input'!J1607=\"\",\"\",IF(OR('TSA Input'!J1607=\"Yes\",'TSA Input'!J1607=\"Contingent\"),'TSA Input'!D1607,\"\"))","v":""},{"$f":"IF('TSA Input'!J1607=\"\",\"\",IF(OR('TSA Input'!J1607=\"Yes\",'TSA Input'!J1607=\"Contingent\"),'TSA Input'!G1607,\"\"))","v":""},{"$f":"IF('TSA Input'!J1607=\"\",\"\",IF(OR('TSA Input'!J1607=\"Yes\",'TSA Input'!J1607=\"Contingent\"),'TSA Input'!F1607,\"\"))","v":""},"","Required","Required"]
["",null,{"$f":"IF('TSA Input'!J1608=\"\",\"\",IF(OR('TSA Input'!J1608=\"Yes\",'TSA Input'!J1608=\"Contingent\"),'TSA Input'!B1608,\"Ineligible\"))","v":""},{"$f":"IF('TSA Input'!J1608=\"\",\"\",IF(OR('TSA Input'!J1608=\"Yes\",'TSA Input'!J1608=\"Contingent\"),'TSA Input'!I1608,\"\"))","v":""},{"$f":"IF('TSA Input'!J1608=\"\",\"\",IF(OR('TSA Input'!J1608=\"Yes\",'TSA Input'!J1608=\"Contingent\"),'TSA Input'!C1608,\"\"))","v":""},{"$f":"IF('TSA Input'!J1608=\"\",\"\",IF(OR('TSA Input'!J1608=\"Yes\",'TSA Input'!J1608=\"Contingent\"),'TSA Input'!D1608,\"\"))","v":""},{"$f":"IF('TSA Input'!J1608=\"\",\"\",IF(OR('TSA Input'!J1608=\"Yes\",'TSA Input'!J1608=\"Contingent\"),'TSA Input'!G1608,\"\"))","v":""},{"$f":"IF('TSA Input'!J1608=\"\",\"\",IF(OR('TSA Input'!J1608=\"Yes\",'TSA Input'!J1608=\"Contingent\"),'TSA Input'!F1608,\"\"))","v":""},"",{"$f":"IF('TSA Input'!J1608=\"\",\"\",IF(OR('TSA Input'!J1608=\"Yes\",'TSA Input'!J1608=\"Contingent\"),'TSA Input'!D1608,\"\"))","v":""},{"$f":"IF('TSA Input'!J1608=\"\",\"\",IF(OR('TSA Input'!J1608=\"Yes\",'TSA Input'!J1608=\"Contingent\"),'TSA Input'!G1608,\"\"))","v":""},{"$f":"IF('TSA Input'!J1608=\"\",\"\",IF(OR('TSA Input'!J1608=\"Yes\",'TSA Input'!J1608=\"Contingent\"),'TSA Input'!F1608,\"\"))","v":""},"","Required","Required"]
["",null,{"$f":"IF('TSA Input'!J1609=\"\",\"\",IF(OR('TSA Input'!J1609=\"Yes\",'TSA Input'!J1609=\"Contingent\"),'TSA Input'!B1609,\"Ineligible\"))","v":""},{"$f":"IF('TSA Input'!J1609=\"\",\"\",IF(OR('TSA Input'!J1609=\"Yes\",'TSA Input'!J1609=\"Contingent\"),'TSA Input'!I1609,\"\"))","v":""},{"$f":"IF('TSA Input'!J1609=\"\",\"\",IF(OR('TSA Input'!J1609=\"Yes\",'TSA Input'!J1609=\"Contingent\"),'TSA Input'!C1609,\"\"))","v":""},{"$f":"IF('TSA Input'!J1609=\"\",\"\",IF(OR('TSA Input'!J1609=\"Yes\",'TSA Input'!J1609=\"Contingent\"),'TSA Input'!D1609,\"\"))","v":""},{"$f":"IF('TSA Input'!J1609=\"\",\"\",IF(OR('TSA Input'!J1609=\"Yes\",'TSA Input'!J1609=\"Contingent\"),'TSA Input'!G1609,\"\"))","v":""},{"$f":"IF('TSA Input'!J1609=\"\",\"\",IF(OR('TSA Input'!J1609=\"Yes\",'TSA Input'!J1609=\"Contingent\"),'TSA Input'!F1609,\"\"))","v":""},"",{"$f":"IF('TSA Input'!J1609=\"\",\"\",IF(OR('TSA Input'!J1609=\"Yes\",'TSA Input'!J1609=\"Contingent\"),'TSA Input'!D1609,\"\"))","v":""},{"$f":"IF('TSA Input'!J1609=\"\",\"\",IF(OR('TSA Input'!J1609=\"Yes\",'TSA Input'!J1609=\"Contingent\"),'TSA Input'!G1609,\"\"))","v":""},{"$f":"IF('TSA Input'!J1609=\"\",\"\",IF(OR('TSA Input'!J1609=\"Yes\",'TSA Input'!J1609=\"Contingent\"),'TSA Input'!F1609,\"\"))","v":""},"","Required","Required"]
["",null,{"$f":"IF('TSA Input'!J1610=\"\",\"\",IF(OR('TSA Input'!J1610=\"Yes\",'TSA Input'!J1610=\"Contingent\"),'TSA Input'!B1610,\"Ineligible\"))","v":""},{"$f":"IF('TSA Input'!J1610=\"\",\"\",IF(OR('TSA Input'!J1610=\"Yes\",'TSA Input'!J1610=\"Contingent\"),'TSA Input'!I1610,\"\"))","v":""},{"$f":"IF('TSA Input'!J1610=\"\",\"\",IF(OR('TSA Input'!J1610=\"Yes\",'TSA Input'!J1610=\"Contingent\"),'TSA Input'!C1610,\"\"))","v":""},{"$f":"IF('TSA Input'!J1610=\"\",\"\",IF(OR('TSA Input'!J1610=\"Yes\",'TSA Input'!J1610=\"Contingent\"),'TSA Input'!D1610,\"\"))","v":""},{"$f":"IF('TSA Input'!J1610=\"\",\"\",IF(OR('TSA Input'!J1610=\"Yes\",'TSA Input'!J1610=\"Contingent\"),'TSA Input'!G1610,\"\"))","v":""},{"$f":"IF('TSA Input'!J1610=\"\",\"\",IF(OR('TSA Input'!J1610=\"Yes\",'TSA Input'!J1610=\"Contingent\"),'TSA Input'!F1610,\"\"))","v":""},"",{"$f":"IF('TSA Input'!J1610=\"\",\"\",IF(OR('TSA Input'!J1610=\"Yes\",'TSA Input'!J1610=\"Contingent\"),'TSA Input'!D1610,\"\"))","v":""},{"$f":"IF('TSA Input'!J1610=\"\",\"\",IF(OR('TSA Input'!J1610=\"Yes\",'TSA Input'!J1610=\"Contingent\"),'TSA Input'!G1610,\"\"))","v":""},{"$f":"IF('TSA Input'!J1610=\"\",\"\",IF(OR('TSA Input'!J1610=\"Yes\",'TSA Input'!J1610=\"Contingent\"),'TSA Input'!F1610,\"\"))","v":""},"","Required","Required"]
["",null,{"$f":"IF('TSA Input'!J1611=\"\",\"\",IF(OR('TSA Input'!J1611=\"Yes\",'TSA Input'!J1611=\"Contingent\"),'TSA Input'!B1611,\"Ineligible\"))","v":""},{"$f":"IF('TSA Input'!J1611=\"\",\"\",IF(OR('TSA Input'!J1611=\"Yes\",'TSA Input'!J1611=\"Contingent\"),'TSA Input'!I1611,\"\"))","v":""},{"$f":"IF('TSA Input'!J1611=\"\",\"\",IF(OR('TSA Input'!J1611=\"Yes\",'TSA Input'!J1611=\"Contingent\"),'TSA Input'!C1611,\"\"))","v":""},{"$f":"IF('TSA Input'!J1611=\"\",\"\",IF(OR('TSA Input'!J1611=\"Yes\",'TSA Input'!J1611=\"Contingent\"),'TSA Input'!D1611,\"\"))","v":""},{"$f":"IF('TSA Input'!J1611=\"\",\"\",IF(OR('TSA Input'!J1611=\"Yes\",'TSA Input'!J1611=\"Contingent\"),'TSA Input'!G1611,\"\"))","v":""},{"$f":"IF('TSA Input'!J1611=\"\",\"\",IF(OR('TSA Input'!J1611=\"Yes\",'TSA Input'!J1611=\"Contingent\"),'TSA Input'!F1611,\"\"))","v":""},"",{"$f":"IF('TSA Input'!J1611=\"\",\"\",IF(OR('TSA Input'!J1611=\"Yes\",'TSA Input'!J1611=\"Contingent\"),'TSA Input'!D1611,\"\"))","v":""},{"$f":"IF('TSA Input'!J1611=\"\",\"\",IF(OR('TSA Input'!J1611=\"Yes\",'TSA Input'!J1611=\"Contingent\"),'TSA Input'!G1611,\"\"))","v":""},{"$f":"IF('TSA Input'!J1611=\"\",\"\",IF(OR('TSA Input'!J1611=\"Yes\",'TSA Input'!J1611=\"Contingent\"),'TSA Input'!F1611,\"\"))","v":""},"","Required","Required"]
["",null,{"$f":"IF('TSA Input'!J1612=\"\",\"\",IF(OR('TSA Input'!J1612=\"Yes\",'TSA Input'!J1612=\"Contingent\"),'TSA Input'!B1612,\"Ineligible\"))","v":""},{"$f":"IF('TSA Input'!J1612=\"\",\"\",IF(OR('TSA Input'!J1612=\"Yes\",'TSA Input'!J1612=\"Contingent\"),'TSA Input'!I1612,\"\"))","v":""},{"$f":"IF('TSA Input'!J1612=\"\",\"\",IF(OR('TSA Input'!J1612=\"Yes\",'TSA Input'!J1612=\"Contingent\"),'TSA Input'!C1612,\"\"))","v":""},{"$f":"IF('TSA Input'!J1612=\"\",\"\",IF(OR('TSA Input'!J1612=\"Yes\",'TSA Input'!J1612=\"Contingent\"),'TSA Input'!D1612,\"\"))","v":""},{"$f":"IF('TSA Input'!J1612=\"\",\"\",IF(OR('TSA Input'!J1612=\"Yes\",'TSA Input'!J1612=\"Contingent\"),'TSA Input'!G1612,\"\"))","v":""},{"$f":"IF('TSA Input'!J1612=\"\",\"\",IF(OR('TSA Input'!J1612=\"Yes\",'TSA Input'!J1612=\"Contingent\"),'TSA Input'!F1612,\"\"))","v":""},"",{"$f":"IF('TSA Input'!J1612=\"\",\"\",IF(OR('TSA Input'!J1612=\"Yes\",'TSA Input'!J1612=\"Contingent\"),'TSA Input'!D1612,\"\"))","v":""},{"$f":"IF('TSA Input'!J1612=\"\",\"\",IF(OR('TSA Input'!J1612=\"Yes\",'TSA Input'!J1612=\"Contingent\"),'TSA Input'!G1612,\"\"))","v":""},{"$f":"IF('TSA Input'!J1612=\"\",\"\",IF(OR('TSA Input'!J1612=\"Yes\",'TSA Input'!J1612=\"Contingent\"),'TSA Input'!F1612,\"\"))","v":""},"","Required","Required"]
["",null,{"$f":"IF('TSA Input'!J1613=\"\",\"\",IF(OR('TSA Input'!J1613=\"Yes\",'TSA Input'!J1613=\"Contingent\"),'TSA Input'!B1613,\"Ineligible\"))","v":""},{"$f":"IF('TSA Input'!J1613=\"\",\"\",IF(OR('TSA Input'!J1613=\"Yes\",'TSA Input'!J1613=\"Contingent\"),'TSA Input'!I1613,\"\"))","v":""},{"$f":"IF('TSA Input'!J1613=\"\",\"\",IF(OR('TSA Input'!J1613=\"Yes\",'TSA Input'!J1613=\"Contingent\"),'TSA Input'!C1613,\"\"))","v":""},{"$f":"IF('TSA Input'!J1613=\"\",\"\",IF(OR('TSA Input'!J1613=\"Yes\",'TSA Input'!J1613=\"Contingent\"),'TSA Input'!D1613,\"\"))","v":""},{"$f":"IF('TSA Input'!J1613=\"\",\"\",IF(OR('TSA Input'!J1613=\"Yes\",'TSA Input'!J1613=\"Contingent\"),'TSA Input'!G1613,\"\"))","v":""},{"$f":"IF('TSA Input'!J1613=\"\",\"\",IF(OR('TSA Input'!J1613=\"Yes\",'TSA Input'!J1613=\"Contingent\"),'TSA Input'!F1613,\"\"))","v":""},"",{"$f":"IF('TSA Input'!J1613=\"\",\"\",IF(OR('TSA Input'!J1613=\"Yes\",'TSA Input'!J1613=\"Contingent\"),'TSA Input'!D1613,\"\"))","v":""},{"$f":"IF('TSA Input'!J1613=\"\",\"\",IF(OR('TSA Input'!J1613=\"Yes\",'TSA Input'!J1613=\"Contingent\"),'TSA Input'!G1613,\"\"))","v":""},{"$f":"IF('TSA Input'!J1613=\"\",\"\",IF(OR('TSA Input'!J1613=\"Yes\",'TSA Input'!J1613=\"Contingent\"),'TSA Input'!F1613,\"\"))","v":""},"","Required","Required"]
["",null,{"$f":"IF('TSA Input'!J1614=\"\",\"\",IF(OR('TSA Input'!J1614=\"Yes\",'TSA Input'!J1614=\"Contingent\"),'TSA Input'!B1614,\"Ineligible\"))","v":""},{"$f":"IF('TSA Input'!J1614=\"\",\"\",IF(OR('TSA Input'!J1614=\"Yes\",'TSA Input'!J1614=\"Contingent\"),'TSA Input'!I1614,\"\"))","v":""},{"$f":"IF('TSA Input'!J1614=\"\",\"\",IF(OR('TSA Input'!J1614=\"Yes\",'TSA Input'!J1614=\"Contingent\"),'TSA Input'!C1614,\"\"))","v":""},{"$f":"IF('TSA Input'!J1614=\"\",\"\",IF(OR('TSA Input'!J1614=\"Yes\",'TSA Input'!J1614=\"Contingent\"),'TSA Input'!D1614,\"\"))","v":""},{"$f":"IF('TSA Input'!J1614=\"\",\"\",IF(OR('TSA Input'!J1614=\"Yes\",'TSA Input'!J1614=\"Contingent\"),'TSA Input'!G1614,\"\"))","v":""},{"$f":"IF('TSA Input'!J1614=\"\",\"\",IF(OR('TSA Input'!J1614=\"Yes\",'TSA Input'!J1614=\"Contingent\"),'TSA Input'!F1614,\"\"))","v":""},"",{"$f":"IF('TSA Input'!J1614=\"\",\"\",IF(OR('TSA Input'!J1614=\"Yes\",'TSA Input'!J1614=\"Contingent\"),'TSA Input'!D1614,\"\"))","v":""},{"$f":"IF('TSA Input'!J1614=\"\",\"\",IF(OR('TSA Input'!J1614=\"Yes\",'TSA Input'!J1614=\"Contingent\"),'TSA Input'!G1614,\"\"))","v":""},{"$f":"IF('TSA Input'!J1614=\"\",\"\",IF(OR('TSA Input'!J1614=\"Yes\",'TSA Input'!J1614=\"Contingent\"),'TSA Input'!F1614,\"\"))","v":""},"","Required","Required"]
["",null,{"$f":"IF('TSA Input'!J1615=\"\",\"\",IF(OR('TSA Input'!J1615=\"Yes\",'TSA Input'!J1615=\"Contingent\"),'TSA Input'!B1615,\"Ineligible\"))","v":""},{"$f":"IF('TSA Input'!J1615=\"\",\"\",IF(OR('TSA Input'!J1615=\"Yes\",'TSA Input'!J1615=\"Contingent\"),'TSA Input'!I1615,\"\"))","v":""},{"$f":"IF('TSA Input'!J1615=\"\",\"\",IF(OR('TSA Input'!J1615=\"Yes\",'TSA Input'!J1615=\"Contingent\"),'TSA Input'!C1615,\"\"))","v":""},{"$f":"IF('TSA Input'!J1615=\"\",\"\",IF(OR('TSA Input'!J1615=\"Yes\",'TSA Input'!J1615=\"Contingent\"),'TSA Input'!D1615,\"\"))","v":""},{"$f":"IF('TSA Input'!J1615=\"\",\"\",IF(OR('TSA Input'!J1615=\"Yes\",'TSA Input'!J1615=\"Contingent\"),'TSA Input'!G1615,\"\"))","v":""},{"$f":"IF('TSA Input'!J1615=\"\",\"\",IF(OR('TSA Input'!J1615=\"Yes\",'TSA Input'!J1615=\"Contingent\"),'TSA Input'!F1615,\"\"))","v":""},"",{"$f":"IF('TSA Input'!J1615=\"\",\"\",IF(OR('TSA Input'!J1615=\"Yes\",'TSA Input'!J1615=\"Contingent\"),'TSA Input'!D1615,\"\"))","v":""},{"$f":"IF('TSA Input'!J1615=\"\",\"\",IF(OR('TSA Input'!J1615=\"Yes\",'TSA Input'!J1615=\"Contingent\"),'TSA Input'!G1615,\"\"))","v":""},{"$f":"IF('TSA Input'!J1615=\"\",\"\",IF(OR('TSA Input'!J1615=\"Yes\",'TSA Input'!J1615=\"Contingent\"),'TSA Input'!F1615,\"\"))","v":""},"","Required","Required"]
["",null,{"$f":"IF('TSA Input'!J1616=\"\",\"\",IF(OR('TSA Input'!J1616=\"Yes\",'TSA Input'!J1616=\"Contingent\"),'TSA Input'!B1616,\"Ineligible\"))","v":""},{"$f":"IF('TSA Input'!J1616=\"\",\"\",IF(OR('TSA Input'!J1616=\"Yes\",'TSA Input'!J1616=\"Contingent\"),'TSA Input'!I1616,\"\"))","v":""},{"$f":"IF('TSA Input'!J1616=\"\",\"\",IF(OR('TSA Input'!J1616=\"Yes\",'TSA Input'!J1616=\"Contingent\"),'TSA Input'!C1616,\"\"))","v":""},{"$f":"IF('TSA Input'!J1616=\"\",\"\",IF(OR('TSA Input'!J1616=\"Yes\",'TSA Input'!J1616=\"Contingent\"),'TSA Input'!D1616,\"\"))","v":""},{"$f":"IF('TSA Input'!J1616=\"\",\"\",IF(OR('TSA Input'!J1616=\"Yes\",'TSA Input'!J1616=\"Contingent\"),'TSA Input'!G1616,\"\"))","v":""},{"$f":"IF('TSA Input'!J1616=\"\",\"\",IF(OR('TSA Input'!J1616=\"Yes\",'TSA Input'!J1616=\"Contingent\"),'TSA Input'!F1616,\"\"))","v":""},"",{"$f":"IF('TSA Input'!J1616=\"\",\"\",IF(OR('TSA Input'!J1616=\"Yes\",'TSA Input'!J1616=\"Contingent\"),'TSA Input'!D1616,\"\"))","v":""},{"$f":"IF('TSA Input'!J1616=\"\",\"\",IF(OR('TSA Input'!J1616=\"Yes\",'TSA Input'!J1616=\"Contingent\"),'TSA Input'!G1616,\"\"))","v":""},{"$f":"IF('TSA Input'!J1616=\"\",\"\",IF(OR('TSA Input'!J1616=\"Yes\",'TSA Input'!J1616=\"Contingent\"),'TSA Input'!F1616,\"\"))","v":""},"","Required","Required"]
["",null,{"$f":"IF('TSA Input'!J1617=\"\",\"\",IF(OR('TSA Input'!J1617=\"Yes\",'TSA Input'!J1617=\"Contingent\"),'TSA Input'!B1617,\"Ineligible\"))","v":""},{"$f":"IF('TSA Input'!J1617=\"\",\"\",IF(OR('TSA Input'!J1617=\"Yes\",'TSA Input'!J1617=\"Contingent\"),'TSA Input'!I1617,\"\"))","v":""},{"$f":"IF('TSA Input'!J1617=\"\",\"\",IF(OR('TSA Input'!J1617=\"Yes\",'TSA Input'!J1617=\"Contingent\"),'TSA Input'!C1617,\"\"))","v":""},{"$f":"IF('TSA Input'!J1617=\"\",\"\",IF(OR('TSA Input'!J1617=\"Yes\",'TSA Input'!J1617=\"Contingent\"),'TSA Input'!D1617,\"\"))","v":""},{"$f":"IF('TSA Input'!J1617=\"\",\"\",IF(OR('TSA Input'!J1617=\"Yes\",'TSA Input'!J1617=\"Contingent\"),'TSA Input'!G1617,\"\"))","v":""},{"$f":"IF('TSA Input'!J1617=\"\",\"\",IF(OR('TSA Input'!J1617=\"Yes\",'TSA Input'!J1617=\"Contingent\"),'TSA Input'!F1617,\"\"))","v":""},"",{"$f":"IF('TSA Input'!J1617=\"\",\"\",IF(OR('TSA Input'!J1617=\"Yes\",'TSA Input'!J1617=\"Contingent\"),'TSA Input'!D1617,\"\"))","v":""},{"$f":"IF('TSA Input'!J1617=\"\",\"\",IF(OR('TSA Input'!J1617=\"Yes\",'TSA Input'!J1617=\"Contingent\"),'TSA Input'!G1617,\"\"))","v":""},{"$f":"IF('TSA Input'!J1617=\"\",\"\",IF(OR('TSA Input'!J1617=\"Yes\",'TSA Input'!J1617=\"Contingent\"),'TSA Input'!F1617,\"\"))","v":""},"","Required","Required"]
["",null,{"$f":"IF('TSA Input'!J1618=\"\",\"\",IF(OR('TSA Input'!J1618=\"Yes\",'TSA Input'!J1618=\"Contingent\"),'TSA Input'!B1618,\"Ineligible\"))","v":""},{"$f":"IF('TSA Input'!J1618=\"\",\"\",IF(OR('TSA Input'!J1618=\"Yes\",'TSA Input'!J1618=\"Contingent\"),'TSA Input'!I1618,\"\"))","v":""},{"$f":"IF('TSA Input'!J1618=\"\",\"\",IF(OR('TSA Input'!J1618=\"Yes\",'TSA Input'!J1618=\"Contingent\"),'TSA Input'!C1618,\"\"))","v":""},{"$f":"IF('TSA Input'!J1618=\"\",\"\",IF(OR('TSA Input'!J1618=\"Yes\",'TSA Input'!J1618=\"Contingent\"),'TSA Input'!D1618,\"\"))","v":""},{"$f":"IF('TSA Input'!J1618=\"\",\"\",IF(OR('TSA Input'!J1618=\"Yes\",'TSA Input'!J1618=\"Contingent\"),'TSA Input'!G1618,\"\"))","v":""},{"$f":"IF('TSA Input'!J1618=\"\",\"\",IF(OR('TSA Input'!J1618=\"Yes\",'TSA Input'!J1618=\"Contingent\"),'TSA Input'!F1618,\"\"))","v":""},"",{"$f":"IF('TSA Input'!J1618=\"\",\"\",IF(OR('TSA Input'!J1618=\"Yes\",'TSA Input'!J1618=\"Contingent\"),'TSA Input'!D1618,\"\"))","v":""},{"$f":"IF('TSA Input'!J1618=\"\",\"\",IF(OR('TSA Input'!J1618=\"Yes\",'TSA Input'!J1618=\"Contingent\"),'TSA Input'!G1618,\"\"))","v":""},{"$f":"IF('TSA Input'!J1618=\"\",\"\",IF(OR('TSA Input'!J1618=\"Yes\",'TSA Input'!J1618=\"Contingent\"),'TSA Input'!F1618,\"\"))","v":""},"","Required","Required"]
["",null,{"$f":"IF('TSA Input'!J1619=\"\",\"\",IF(OR('TSA Input'!J1619=\"Yes\",'TSA Input'!J1619=\"Contingent\"),'TSA Input'!B1619,\"Ineligible\"))","v":""},{"$f":"IF('TSA Input'!J1619=\"\",\"\",IF(OR('TSA Input'!J1619=\"Yes\",'TSA Input'!J1619=\"Contingent\"),'TSA Input'!I1619,\"\"))","v":""},{"$f":"IF('TSA Input'!J1619=\"\",\"\",IF(OR('TSA Input'!J1619=\"Yes\",'TSA Input'!J1619=\"Contingent\"),'TSA Input'!C1619,\"\"))","v":""},{"$f":"IF('TSA Input'!J1619=\"\",\"\",IF(OR('TSA Input'!J1619=\"Yes\",'TSA Input'!J1619=\"Contingent\"),'TSA Input'!D1619,\"\"))","v":""},{"$f":"IF('TSA Input'!J1619=\"\",\"\",IF(OR('TSA Input'!J1619=\"Yes\",'TSA Input'!J1619=\"Contingent\"),'TSA Input'!G1619,\"\"))","v":""},{"$f":"IF('TSA Input'!J1619=\"\",\"\",IF(OR('TSA Input'!J1619=\"Yes\",'TSA Input'!J1619=\"Contingent\"),'TSA Input'!F1619,\"\"))","v":""},"",{"$f":"IF('TSA Input'!J1619=\"\",\"\",IF(OR('TSA Input'!J1619=\"Yes\",'TSA Input'!J1619=\"Contingent\"),'TSA Input'!D1619,\"\"))","v":""},{"$f":"IF('TSA Input'!J1619=\"\",\"\",IF(OR('TSA Input'!J1619=\"Yes\",'TSA Input'!J1619=\"Contingent\"),'TSA Input'!G1619,\"\"))","v":""},{"$f":"IF('TSA Input'!J1619=\"\",\"\",IF(OR('TSA Input'!J1619=\"Yes\",'TSA Input'!J1619=\"Contingent\"),'TSA Input'!F1619,\"\"))","v":""},"","Required","Required"]
["",null,{"$f":"IF('TSA Input'!J1620=\"\",\"\",IF(OR('TSA Input'!J1620=\"Yes\",'TSA Input'!J1620=\"Contingent\"),'TSA Input'!B1620,\"Ineligible\"))","v":""},{"$f":"IF('TSA Input'!J1620=\"\",\"\",IF(OR('TSA Input'!J1620=\"Yes\",'TSA Input'!J1620=\"Contingent\"),'TSA Input'!I1620,\"\"))","v":""},{"$f":"IF('TSA Input'!J1620=\"\",\"\",IF(OR('TSA Input'!J1620=\"Yes\",'TSA Input'!J1620=\"Contingent\"),'TSA Input'!C1620,\"\"))","v":""},{"$f":"IF('TSA Input'!J1620=\"\",\"\",IF(OR('TSA Input'!J1620=\"Yes\",'TSA Input'!J1620=\"Contingent\"),'TSA Input'!D1620,\"\"))","v":""},{"$f":"IF('TSA Input'!J1620=\"\",\"\",IF(OR('TSA Input'!J1620=\"Yes\",'TSA Input'!J1620=\"Contingent\"),'TSA Input'!G1620,\"\"))","v":""},{"$f":"IF('TSA Input'!J1620=\"\",\"\",IF(OR('TSA Input'!J1620=\"Yes\",'TSA Input'!J1620=\"Contingent\"),'TSA Input'!F1620,\"\"))","v":""},"",{"$f":"IF('TSA Input'!J1620=\"\",\"\",IF(OR('TSA Input'!J1620=\"Yes\",'TSA Input'!J1620=\"Contingent\"),'TSA Input'!D1620,\"\"))","v":""},{"$f":"IF('TSA Input'!J1620=\"\",\"\",IF(OR('TSA Input'!J1620=\"Yes\",'TSA Input'!J1620=\"Contingent\"),'TSA Input'!G1620,\"\"))","v":""},{"$f":"IF('TSA Input'!J1620=\"\",\"\",IF(OR('TSA Input'!J1620=\"Yes\",'TSA Input'!J1620=\"Contingent\"),'TSA Input'!F1620,\"\"))","v":""},"","Required","Required"]
["",null,{"$f":"IF('TSA Input'!J1621=\"\",\"\",IF(OR('TSA Input'!J1621=\"Yes\",'TSA Input'!J1621=\"Contingent\"),'TSA Input'!B1621,\"Ineligible\"))","v":""},{"$f":"IF('TSA Input'!J1621=\"\",\"\",IF(OR('TSA Input'!J1621=\"Yes\",'TSA Input'!J1621=\"Contingent\"),'TSA Input'!I1621,\"\"))","v":""},{"$f":"IF('TSA Input'!J1621=\"\",\"\",IF(OR('TSA Input'!J1621=\"Yes\",'TSA Input'!J1621=\"Contingent\"),'TSA Input'!C1621,\"\"))","v":""},{"$f":"IF('TSA Input'!J1621=\"\",\"\",IF(OR('TSA Input'!J1621=\"Yes\",'TSA Input'!J1621=\"Contingent\"),'TSA Input'!D1621,\"\"))","v":""},{"$f":"IF('TSA Input'!J1621=\"\",\"\",IF(OR('TSA Input'!J1621=\"Yes\",'TSA Input'!J1621=\"Contingent\"),'TSA Input'!G1621,\"\"))","v":""},{"$f":"IF('TSA Input'!J1621=\"\",\"\",IF(OR('TSA Input'!J1621=\"Yes\",'TSA Input'!J1621=\"Contingent\"),'TSA Input'!F1621,\"\"))","v":""},"",{"$f":"IF('TSA Input'!J1621=\"\",\"\",IF(OR('TSA Input'!J1621=\"Yes\",'TSA Input'!J1621=\"Contingent\"),'TSA Input'!D1621,\"\"))","v":""},{"$f":"IF('TSA Input'!J1621=\"\",\"\",IF(OR('TSA Input'!J1621=\"Yes\",'TSA Input'!J1621=\"Contingent\"),'TSA Input'!G1621,\"\"))","v":""},{"$f":"IF('TSA Input'!J1621=\"\",\"\",IF(OR('TSA Input'!J1621=\"Yes\",'TSA Input'!J1621=\"Contingent\"),'TSA Input'!F1621,\"\"))","v":""},"","Required","Required"]
["",null,{"$f":"IF('TSA Input'!J1622=\"\",\"\",IF(OR('TSA Input'!J1622=\"Yes\",'TSA Input'!J1622=\"Contingent\"),'TSA Input'!B1622,\"Ineligible\"))","v":""},{"$f":"IF('TSA Input'!J1622=\"\",\"\",IF(OR('TSA Input'!J1622=\"Yes\",'TSA Input'!J1622=\"Contingent\"),'TSA Input'!I1622,\"\"))","v":""},{"$f":"IF('TSA Input'!J1622=\"\",\"\",IF(OR('TSA Input'!J1622=\"Yes\",'TSA Input'!J1622=\"Contingent\"),'TSA Input'!C1622,\"\"))","v":""},{"$f":"IF('TSA Input'!J1622=\"\",\"\",IF(OR('TSA Input'!J1622=\"Yes\",'TSA Input'!J1622=\"Contingent\"),'TSA Input'!D1622,\"\"))","v":""},{"$f":"IF('TSA Input'!J1622=\"\",\"\",IF(OR('TSA Input'!J1622=\"Yes\",'TSA Input'!J1622=\"Contingent\"),'TSA Input'!G1622,\"\"))","v":""},{"$f":"IF('TSA Input'!J1622=\"\",\"\",IF(OR('TSA Input'!J1622=\"Yes\",'TSA Input'!J1622=\"Contingent\"),'TSA Input'!F1622,\"\"))","v":""},"",{"$f":"IF('TSA Input'!J1622=\"\",\"\",IF(OR('TSA Input'!J1622=\"Yes\",'TSA Input'!J1622=\"Contingent\"),'TSA Input'!D1622,\"\"))","v":""},{"$f":"IF('TSA Input'!J1622=\"\",\"\",IF(OR('TSA Input'!J1622=\"Yes\",'TSA Input'!J1622=\"Contingent\"),'TSA Input'!G1622,\"\"))","v":""},{"$f":"IF('TSA Input'!J1622=\"\",\"\",IF(OR('TSA Input'!J1622=\"Yes\",'TSA Input'!J1622=\"Contingent\"),'TSA Input'!F1622,\"\"))","v":""},"","Required","Required"]
["",null,{"$f":"IF('TSA Input'!J1623=\"\",\"\",IF(OR('TSA Input'!J1623=\"Yes\",'TSA Input'!J1623=\"Contingent\"),'TSA Input'!B1623,\"Ineligible\"))","v":""},{"$f":"IF('TSA Input'!J1623=\"\",\"\",IF(OR('TSA Input'!J1623=\"Yes\",'TSA Input'!J1623=\"Contingent\"),'TSA Input'!I1623,\"\"))","v":""},{"$f":"IF('TSA Input'!J1623=\"\",\"\",IF(OR('TSA Input'!J1623=\"Yes\",'TSA Input'!J1623=\"Contingent\"),'TSA Input'!C1623,\"\"))","v":""},{"$f":"IF('TSA Input'!J1623=\"\",\"\",IF(OR('TSA Input'!J1623=\"Yes\",'TSA Input'!J1623=\"Contingent\"),'TSA Input'!D1623,\"\"))","v":""},{"$f":"IF('TSA Input'!J1623=\"\",\"\",IF(OR('TSA Input'!J1623=\"Yes\",'TSA Input'!J1623=\"Contingent\"),'TSA Input'!G1623,\"\"))","v":""},{"$f":"IF('TSA Input'!J1623=\"\",\"\",IF(OR('TSA Input'!J1623=\"Yes\",'TSA Input'!J1623=\"Contingent\"),'TSA Input'!F1623,\"\"))","v":""},"",{"$f":"IF('TSA Input'!J1623=\"\",\"\",IF(OR('TSA Input'!J1623=\"Yes\",'TSA Input'!J1623=\"Contingent\"),'TSA Input'!D1623,\"\"))","v":""},{"$f":"IF('TSA Input'!J1623=\"\",\"\",IF(OR('TSA Input'!J1623=\"Yes\",'TSA Input'!J1623=\"Contingent\"),'TSA Input'!G1623,\"\"))","v":""},{"$f":"IF('TSA Input'!J1623=\"\",\"\",IF(OR('TSA Input'!J1623=\"Yes\",'TSA Input'!J1623=\"Contingent\"),'TSA Input'!F1623,\"\"))","v":""},"","Required","Required"]
["",null,{"$f":"IF('TSA Input'!J1624=\"\",\"\",IF(OR('TSA Input'!J1624=\"Yes\",'TSA Input'!J1624=\"Contingent\"),'TSA Input'!B1624,\"Ineligible\"))","v":""},{"$f":"IF('TSA Input'!J1624=\"\",\"\",IF(OR('TSA Input'!J1624=\"Yes\",'TSA Input'!J1624=\"Contingent\"),'TSA Input'!I1624,\"\"))","v":""},{"$f":"IF('TSA Input'!J1624=\"\",\"\",IF(OR('TSA Input'!J1624=\"Yes\",'TSA Input'!J1624=\"Contingent\"),'TSA Input'!C1624,\"\"))","v":""},{"$f":"IF('TSA Input'!J1624=\"\",\"\",IF(OR('TSA Input'!J1624=\"Yes\",'TSA Input'!J1624=\"Contingent\"),'TSA Input'!D1624,\"\"))","v":""},{"$f":"IF('TSA Input'!J1624=\"\",\"\",IF(OR('TSA Input'!J1624=\"Yes\",'TSA Input'!J1624=\"Contingent\"),'TSA Input'!G1624,\"\"))","v":""},{"$f":"IF('TSA Input'!J1624=\"\",\"\",IF(OR('TSA Input'!J1624=\"Yes\",'TSA Input'!J1624=\"Contingent\"),'TSA Input'!F1624,\"\"))","v":""},"",{"$f":"IF('TSA Input'!J1624=\"\",\"\",IF(OR('TSA Input'!J1624=\"Yes\",'TSA Input'!J1624=\"Contingent\"),'TSA Input'!D1624,\"\"))","v":""},{"$f":"IF('TSA Input'!J1624=\"\",\"\",IF(OR('TSA Input'!J1624=\"Yes\",'TSA Input'!J1624=\"Contingent\"),'TSA Input'!G1624,\"\"))","v":""},{"$f":"IF('TSA Input'!J1624=\"\",\"\",IF(OR('TSA Input'!J1624=\"Yes\",'TSA Input'!J1624=\"Contingent\"),'TSA Input'!F1624,\"\"))","v":""},"","Required","Required"]
["",null,{"$f":"IF('TSA Input'!J1625=\"\",\"\",IF(OR('TSA Input'!J1625=\"Yes\",'TSA Input'!J1625=\"Contingent\"),'TSA Input'!B1625,\"Ineligible\"))","v":""},{"$f":"IF('TSA Input'!J1625=\"\",\"\",IF(OR('TSA Input'!J1625=\"Yes\",'TSA Input'!J1625=\"Contingent\"),'TSA Input'!I1625,\"\"))","v":""},{"$f":"IF('TSA Input'!J1625=\"\",\"\",IF(OR('TSA Input'!J1625=\"Yes\",'TSA Input'!J1625=\"Contingent\"),'TSA Input'!C1625,\"\"))","v":""},{"$f":"IF('TSA Input'!J1625=\"\",\"\",IF(OR('TSA Input'!J1625=\"Yes\",'TSA Input'!J1625=\"Contingent\"),'TSA Input'!D1625,\"\"))","v":""},{"$f":"IF('TSA Input'!J1625=\"\",\"\",IF(OR('TSA Input'!J1625=\"Yes\",'TSA Input'!J1625=\"Contingent\"),'TSA Input'!G1625,\"\"))","v":""},{"$f":"IF('TSA Input'!J1625=\"\",\"\",IF(OR('TSA Input'!J1625=\"Yes\",'TSA Input'!J1625=\"Contingent\"),'TSA Input'!F1625,\"\"))","v":""},"",{"$f":"IF('TSA Input'!J1625=\"\",\"\",IF(OR('TSA Input'!J1625=\"Yes\",'TSA Input'!J1625=\"Contingent\"),'TSA Input'!D1625,\"\"))","v":""},{"$f":"IF('TSA Input'!J1625=\"\",\"\",IF(OR('TSA Input'!J1625=\"Yes\",'TSA Input'!J1625=\"Contingent\"),'TSA Input'!G1625,\"\"))","v":""},{"$f":"IF('TSA Input'!J1625=\"\",\"\",IF(OR('TSA Input'!J1625=\"Yes\",'TSA Input'!J1625=\"Contingent\"),'TSA Input'!F1625,\"\"))","v":""},"","Required","Required"]
["",null,{"$f":"IF('TSA Input'!J1626=\"\",\"\",IF(OR('TSA Input'!J1626=\"Yes\",'TSA Input'!J1626=\"Contingent\"),'TSA Input'!B1626,\"Ineligible\"))","v":""},{"$f":"IF('TSA Input'!J1626=\"\",\"\",IF(OR('TSA Input'!J1626=\"Yes\",'TSA Input'!J1626=\"Contingent\"),'TSA Input'!I1626,\"\"))","v":""},{"$f":"IF('TSA Input'!J1626=\"\",\"\",IF(OR('TSA Input'!J1626=\"Yes\",'TSA Input'!J1626=\"Contingent\"),'TSA Input'!C1626,\"\"))","v":""},{"$f":"IF('TSA Input'!J1626=\"\",\"\",IF(OR('TSA Input'!J1626=\"Yes\",'TSA Input'!J1626=\"Contingent\"),'TSA Input'!D1626,\"\"))","v":""},{"$f":"IF('TSA Input'!J1626=\"\",\"\",IF(OR('TSA Input'!J1626=\"Yes\",'TSA Input'!J1626=\"Contingent\"),'TSA Input'!G1626,\"\"))","v":""},{"$f":"IF('TSA Input'!J1626=\"\",\"\",IF(OR('TSA Input'!J1626=\"Yes\",'TSA Input'!J1626=\"Contingent\"),'TSA Input'!F1626,\"\"))","v":""},"",{"$f":"IF('TSA Input'!J1626=\"\",\"\",IF(OR('TSA Input'!J1626=\"Yes\",'TSA Input'!J1626=\"Contingent\"),'TSA Input'!D1626,\"\"))","v":""},{"$f":"IF('TSA Input'!J1626=\"\",\"\",IF(OR('TSA Input'!J1626=\"Yes\",'TSA Input'!J1626=\"Contingent\"),'TSA Input'!G1626,\"\"))","v":""},{"$f":"IF('TSA Input'!J1626=\"\",\"\",IF(OR('TSA Input'!J1626=\"Yes\",'TSA Input'!J1626=\"Contingent\"),'TSA Input'!F1626,\"\"))","v":""},"","Required","Required"]
["",null,{"$f":"IF('TSA Input'!J1627=\"\",\"\",IF(OR('TSA Input'!J1627=\"Yes\",'TSA Input'!J1627=\"Contingent\"),'TSA Input'!B1627,\"Ineligible\"))","v":""},{"$f":"IF('TSA Input'!J1627=\"\",\"\",IF(OR('TSA Input'!J1627=\"Yes\",'TSA Input'!J1627=\"Contingent\"),'TSA Input'!I1627,\"\"))","v":""},{"$f":"IF('TSA Input'!J1627=\"\",\"\",IF(OR('TSA Input'!J1627=\"Yes\",'TSA Input'!J1627=\"Contingent\"),'TSA Input'!C1627,\"\"))","v":""},{"$f":"IF('TSA Input'!J1627=\"\",\"\",IF(OR('TSA Input'!J1627=\"Yes\",'TSA Input'!J1627=\"Contingent\"),'TSA Input'!D1627,\"\"))","v":""},{"$f":"IF('TSA Input'!J1627=\"\",\"\",IF(OR('TSA Input'!J1627=\"Yes\",'TSA Input'!J1627=\"Contingent\"),'TSA Input'!G1627,\"\"))","v":""},{"$f":"IF('TSA Input'!J1627=\"\",\"\",IF(OR('TSA Input'!J1627=\"Yes\",'TSA Input'!J1627=\"Contingent\"),'TSA Input'!F1627,\"\"))","v":""},"",{"$f":"IF('TSA Input'!J1627=\"\",\"\",IF(OR('TSA Input'!J1627=\"Yes\",'TSA Input'!J1627=\"Contingent\"),'TSA Input'!D1627,\"\"))","v":""},{"$f":"IF('TSA Input'!J1627=\"\",\"\",IF(OR('TSA Input'!J1627=\"Yes\",'TSA Input'!J1627=\"Contingent\"),'TSA Input'!G1627,\"\"))","v":""},{"$f":"IF('TSA Input'!J1627=\"\",\"\",IF(OR('TSA Input'!J1627=\"Yes\",'TSA Input'!J1627=\"Contingent\"),'TSA Input'!F1627,\"\"))","v":""},"","Required","Required"]
["",null,{"$f":"IF('TSA Input'!J1628=\"\",\"\",IF(OR('TSA Input'!J1628=\"Yes\",'TSA Input'!J1628=\"Contingent\"),'TSA Input'!B1628,\"Ineligible\"))","v":""},{"$f":"IF('TSA Input'!J1628=\"\",\"\",IF(OR('TSA Input'!J1628=\"Yes\",'TSA Input'!J1628=\"Contingent\"),'TSA Input'!I1628,\"\"))","v":""},{"$f":"IF('TSA Input'!J1628=\"\",\"\",IF(OR('TSA Input'!J1628=\"Yes\",'TSA Input'!J1628=\"Contingent\"),'TSA Input'!C1628,\"\"))","v":""},{"$f":"IF('TSA Input'!J1628=\"\",\"\",IF(OR('TSA Input'!J1628=\"Yes\",'TSA Input'!J1628=\"Contingent\"),'TSA Input'!D1628,\"\"))","v":""},{"$f":"IF('TSA Input'!J1628=\"\",\"\",IF(OR('TSA Input'!J1628=\"Yes\",'TSA Input'!J1628=\"Contingent\"),'TSA Input'!G1628,\"\"))","v":""},{"$f":"IF('TSA Input'!J1628=\"\",\"\",IF(OR('TSA Input'!J1628=\"Yes\",'TSA Input'!J1628=\"Contingent\"),'TSA Input'!F1628,\"\"))","v":""},"",{"$f":"IF('TSA Input'!J1628=\"\",\"\",IF(OR('TSA Input'!J1628=\"Yes\",'TSA Input'!J1628=\"Contingent\"),'TSA Input'!D1628,\"\"))","v":""},{"$f":"IF('TSA Input'!J1628=\"\",\"\",IF(OR('TSA Input'!J1628=\"Yes\",'TSA Input'!J1628=\"Contingent\"),'TSA Input'!G1628,\"\"))","v":""},{"$f":"IF('TSA Input'!J1628=\"\",\"\",IF(OR('TSA Input'!J1628=\"Yes\",'TSA Input'!J1628=\"Contingent\"),'TSA Input'!F1628,\"\"))","v":""},"","Required","Required"]
["",null,{"$f":"IF('TSA Input'!J1629=\"\",\"\",IF(OR('TSA Input'!J1629=\"Yes\",'TSA Input'!J1629=\"Contingent\"),'TSA Input'!B1629,\"Ineligible\"))","v":""},{"$f":"IF('TSA Input'!J1629=\"\",\"\",IF(OR('TSA Input'!J1629=\"Yes\",'TSA Input'!J1629=\"Contingent\"),'TSA Input'!I1629,\"\"))","v":""},{"$f":"IF('TSA Input'!J1629=\"\",\"\",IF(OR('TSA Input'!J1629=\"Yes\",'TSA Input'!J1629=\"Contingent\"),'TSA Input'!C1629,\"\"))","v":""},{"$f":"IF('TSA Input'!J1629=\"\",\"\",IF(OR('TSA Input'!J1629=\"Yes\",'TSA Input'!J1629=\"Contingent\"),'TSA Input'!D1629,\"\"))","v":""},{"$f":"IF('TSA Input'!J1629=\"\",\"\",IF(OR('TSA Input'!J1629=\"Yes\",'TSA Input'!J1629=\"Contingent\"),'TSA Input'!G1629,\"\"))","v":""},{"$f":"IF('TSA Input'!J1629=\"\",\"\",IF(OR('TSA Input'!J1629=\"Yes\",'TSA Input'!J1629=\"Contingent\"),'TSA Input'!F1629,\"\"))","v":""},"",{"$f":"IF('TSA Input'!J1629=\"\",\"\",IF(OR('TSA Input'!J1629=\"Yes\",'TSA Input'!J1629=\"Contingent\"),'TSA Input'!D1629,\"\"))","v":""},{"$f":"IF('TSA Input'!J1629=\"\",\"\",IF(OR('TSA Input'!J1629=\"Yes\",'TSA Input'!J1629=\"Contingent\"),'TSA Input'!G1629,\"\"))","v":""},{"$f":"IF('TSA Input'!J1629=\"\",\"\",IF(OR('TSA Input'!J1629=\"Yes\",'TSA Input'!J1629=\"Contingent\"),'TSA Input'!F1629,\"\"))","v":""},"","Required","Required"]
["",null,{"$f":"IF('TSA Input'!J1630=\"\",\"\",IF(OR('TSA Input'!J1630=\"Yes\",'TSA Input'!J1630=\"Contingent\"),'TSA Input'!B1630,\"Ineligible\"))","v":""},{"$f":"IF('TSA Input'!J1630=\"\",\"\",IF(OR('TSA Input'!J1630=\"Yes\",'TSA Input'!J1630=\"Contingent\"),'TSA Input'!I1630,\"\"))","v":""},{"$f":"IF('TSA Input'!J1630=\"\",\"\",IF(OR('TSA Input'!J1630=\"Yes\",'TSA Input'!J1630=\"Contingent\"),'TSA Input'!C1630,\"\"))","v":""},{"$f":"IF('TSA Input'!J1630=\"\",\"\",IF(OR('TSA Input'!J1630=\"Yes\",'TSA Input'!J1630=\"Contingent\"),'TSA Input'!D1630,\"\"))","v":""},{"$f":"IF('TSA Input'!J1630=\"\",\"\",IF(OR('TSA Input'!J1630=\"Yes\",'TSA Input'!J1630=\"Contingent\"),'TSA Input'!G1630,\"\"))","v":""},{"$f":"IF('TSA Input'!J1630=\"\",\"\",IF(OR('TSA Input'!J1630=\"Yes\",'TSA Input'!J1630=\"Contingent\"),'TSA Input'!F1630,\"\"))","v":""},"",{"$f":"IF('TSA Input'!J1630=\"\",\"\",IF(OR('TSA Input'!J1630=\"Yes\",'TSA Input'!J1630=\"Contingent\"),'TSA Input'!D1630,\"\"))","v":""},{"$f":"IF('TSA Input'!J1630=\"\",\"\",IF(OR('TSA Input'!J1630=\"Yes\",'TSA Input'!J1630=\"Contingent\"),'TSA Input'!G1630,\"\"))","v":""},{"$f":"IF('TSA Input'!J1630=\"\",\"\",IF(OR('TSA Input'!J1630=\"Yes\",'TSA Input'!J1630=\"Contingent\"),'TSA Input'!F1630,\"\"))","v":""},"","Required","Required"]
["",null,{"$f":"IF('TSA Input'!J1631=\"\",\"\",IF(OR('TSA Input'!J1631=\"Yes\",'TSA Input'!J1631=\"Contingent\"),'TSA Input'!B1631,\"Ineligible\"))","v":""},{"$f":"IF('TSA Input'!J1631=\"\",\"\",IF(OR('TSA Input'!J1631=\"Yes\",'TSA Input'!J1631=\"Contingent\"),'TSA Input'!I1631,\"\"))","v":""},{"$f":"IF('TSA Input'!J1631=\"\",\"\",IF(OR('TSA Input'!J1631=\"Yes\",'TSA Input'!J1631=\"Contingent\"),'TSA Input'!C1631,\"\"))","v":""},{"$f":"IF('TSA Input'!J1631=\"\",\"\",IF(OR('TSA Input'!J1631=\"Yes\",'TSA Input'!J1631=\"Contingent\"),'TSA Input'!D1631,\"\"))","v":""},{"$f":"IF('TSA Input'!J1631=\"\",\"\",IF(OR('TSA Input'!J1631=\"Yes\",'TSA Input'!J1631=\"Contingent\"),'TSA Input'!G1631,\"\"))","v":""},{"$f":"IF('TSA Input'!J1631=\"\",\"\",IF(OR('TSA Input'!J1631=\"Yes\",'TSA Input'!J1631=\"Contingent\"),'TSA Input'!F1631,\"\"))","v":""},"",{"$f":"IF('TSA Input'!J1631=\"\",\"\",IF(OR('TSA Input'!J1631=\"Yes\",'TSA Input'!J1631=\"Contingent\"),'TSA Input'!D1631,\"\"))","v":""},{"$f":"IF('TSA Input'!J1631=\"\",\"\",IF(OR('TSA Input'!J1631=\"Yes\",'TSA Input'!J1631=\"Contingent\"),'TSA Input'!G1631,\"\"))","v":""},{"$f":"IF('TSA Input'!J1631=\"\",\"\",IF(OR('TSA Input'!J1631=\"Yes\",'TSA Input'!J1631=\"Contingent\"),'TSA Input'!F1631,\"\"))","v":""},"","Required","Required"]
["",null,{"$f":"IF('TSA Input'!J1632=\"\",\"\",IF(OR('TSA Input'!J1632=\"Yes\",'TSA Input'!J1632=\"Contingent\"),'TSA Input'!B1632,\"Ineligible\"))","v":""},{"$f":"IF('TSA Input'!J1632=\"\",\"\",IF(OR('TSA Input'!J1632=\"Yes\",'TSA Input'!J1632=\"Contingent\"),'TSA Input'!I1632,\"\"))","v":""},{"$f":"IF('TSA Input'!J1632=\"\",\"\",IF(OR('TSA Input'!J1632=\"Yes\",'TSA Input'!J1632=\"Contingent\"),'TSA Input'!C1632,\"\"))","v":""},{"$f":"IF('TSA Input'!J1632=\"\",\"\",IF(OR('TSA Input'!J1632=\"Yes\",'TSA Input'!J1632=\"Contingent\"),'TSA Input'!D1632,\"\"))","v":""},{"$f":"IF('TSA Input'!J1632=\"\",\"\",IF(OR('TSA Input'!J1632=\"Yes\",'TSA Input'!J1632=\"Contingent\"),'TSA Input'!G1632,\"\"))","v":""},{"$f":"IF('TSA Input'!J1632=\"\",\"\",IF(OR('TSA Input'!J1632=\"Yes\",'TSA Input'!J1632=\"Contingent\"),'TSA Input'!F1632,\"\"))","v":""},"",{"$f":"IF('TSA Input'!J1632=\"\",\"\",IF(OR('TSA Input'!J1632=\"Yes\",'TSA Input'!J1632=\"Contingent\"),'TSA Input'!D1632,\"\"))","v":""},{"$f":"IF('TSA Input'!J1632=\"\",\"\",IF(OR('TSA Input'!J1632=\"Yes\",'TSA Input'!J1632=\"Contingent\"),'TSA Input'!G1632,\"\"))","v":""},{"$f":"IF('TSA Input'!J1632=\"\",\"\",IF(OR('TSA Input'!J1632=\"Yes\",'TSA Input'!J1632=\"Contingent\"),'TSA Input'!F1632,\"\"))","v":""},"","Required","Required"]
["",null,{"$f":"IF('TSA Input'!J1633=\"\",\"\",IF(OR('TSA Input'!J1633=\"Yes\",'TSA Input'!J1633=\"Contingent\"),'TSA Input'!B1633,\"Ineligible\"))","v":""},{"$f":"IF('TSA Input'!J1633=\"\",\"\",IF(OR('TSA Input'!J1633=\"Yes\",'TSA Input'!J1633=\"Contingent\"),'TSA Input'!I1633,\"\"))","v":""},{"$f":"IF('TSA Input'!J1633=\"\",\"\",IF(OR('TSA Input'!J1633=\"Yes\",'TSA Input'!J1633=\"Contingent\"),'TSA Input'!C1633,\"\"))","v":""},{"$f":"IF('TSA Input'!J1633=\"\",\"\",IF(OR('TSA Input'!J1633=\"Yes\",'TSA Input'!J1633=\"Contingent\"),'TSA Input'!D1633,\"\"))","v":""},{"$f":"IF('TSA Input'!J1633=\"\",\"\",IF(OR('TSA Input'!J1633=\"Yes\",'TSA Input'!J1633=\"Contingent\"),'TSA Input'!G1633,\"\"))","v":""},{"$f":"IF('TSA Input'!J1633=\"\",\"\",IF(OR('TSA Input'!J1633=\"Yes\",'TSA Input'!J1633=\"Contingent\"),'TSA Input'!F1633,\"\"))","v":""},"",{"$f":"IF('TSA Input'!J1633=\"\",\"\",IF(OR('TSA Input'!J1633=\"Yes\",'TSA Input'!J1633=\"Contingent\"),'TSA Input'!D1633,\"\"))","v":""},{"$f":"IF('TSA Input'!J1633=\"\",\"\",IF(OR('TSA Input'!J1633=\"Yes\",'TSA Input'!J1633=\"Contingent\"),'TSA Input'!G1633,\"\"))","v":""},{"$f":"IF('TSA Input'!J1633=\"\",\"\",IF(OR('TSA Input'!J1633=\"Yes\",'TSA Input'!J1633=\"Contingent\"),'TSA Input'!F1633,\"\"))","v":""},"","Required","Required"]
["",null,{"$f":"IF('TSA Input'!J1634=\"\",\"\",IF(OR('TSA Input'!J1634=\"Yes\",'TSA Input'!J1634=\"Contingent\"),'TSA Input'!B1634,\"Ineligible\"))","v":""},{"$f":"IF('TSA Input'!J1634=\"\",\"\",IF(OR('TSA Input'!J1634=\"Yes\",'TSA Input'!J1634=\"Contingent\"),'TSA Input'!I1634,\"\"))","v":""},{"$f":"IF('TSA Input'!J1634=\"\",\"\",IF(OR('TSA Input'!J1634=\"Yes\",'TSA Input'!J1634=\"Contingent\"),'TSA Input'!C1634,\"\"))","v":""},{"$f":"IF('TSA Input'!J1634=\"\",\"\",IF(OR('TSA Input'!J1634=\"Yes\",'TSA Input'!J1634=\"Contingent\"),'TSA Input'!D1634,\"\"))","v":""},{"$f":"IF('TSA Input'!J1634=\"\",\"\",IF(OR('TSA Input'!J1634=\"Yes\",'TSA Input'!J1634=\"Contingent\"),'TSA Input'!G1634,\"\"))","v":""},{"$f":"IF('TSA Input'!J1634=\"\",\"\",IF(OR('TSA Input'!J1634=\"Yes\",'TSA Input'!J1634=\"Contingent\"),'TSA Input'!F1634,\"\"))","v":""},"",{"$f":"IF('TSA Input'!J1634=\"\",\"\",IF(OR('TSA Input'!J1634=\"Yes\",'TSA Input'!J1634=\"Contingent\"),'TSA Input'!D1634,\"\"))","v":""},{"$f":"IF('TSA Input'!J1634=\"\",\"\",IF(OR('TSA Input'!J1634=\"Yes\",'TSA Input'!J1634=\"Contingent\"),'TSA Input'!G1634,\"\"))","v":""},{"$f":"IF('TSA Input'!J1634=\"\",\"\",IF(OR('TSA Input'!J1634=\"Yes\",'TSA Input'!J1634=\"Contingent\"),'TSA Input'!F1634,\"\"))","v":""},"","Required","Required"]
["",null,{"$f":"IF('TSA Input'!J1635=\"\",\"\",IF(OR('TSA Input'!J1635=\"Yes\",'TSA Input'!J1635=\"Contingent\"),'TSA Input'!B1635,\"Ineligible\"))","v":""},{"$f":"IF('TSA Input'!J1635=\"\",\"\",IF(OR('TSA Input'!J1635=\"Yes\",'TSA Input'!J1635=\"Contingent\"),'TSA Input'!I1635,\"\"))","v":""},{"$f":"IF('TSA Input'!J1635=\"\",\"\",IF(OR('TSA Input'!J1635=\"Yes\",'TSA Input'!J1635=\"Contingent\"),'TSA Input'!C1635,\"\"))","v":""},{"$f":"IF('TSA Input'!J1635=\"\",\"\",IF(OR('TSA Input'!J1635=\"Yes\",'TSA Input'!J1635=\"Contingent\"),'TSA Input'!D1635,\"\"))","v":""},{"$f":"IF('TSA Input'!J1635=\"\",\"\",IF(OR('TSA Input'!J1635=\"Yes\",'TSA Input'!J1635=\"Contingent\"),'TSA Input'!G1635,\"\"))","v":""},{"$f":"IF('TSA Input'!J1635=\"\",\"\",IF(OR('TSA Input'!J1635=\"Yes\",'TSA Input'!J1635=\"Contingent\"),'TSA Input'!F1635,\"\"))","v":""},"",{"$f":"IF('TSA Input'!J1635=\"\",\"\",IF(OR('TSA Input'!J1635=\"Yes\",'TSA Input'!J1635=\"Contingent\"),'TSA Input'!D1635,\"\"))","v":""},{"$f":"IF('TSA Input'!J1635=\"\",\"\",IF(OR('TSA Input'!J1635=\"Yes\",'TSA Input'!J1635=\"Contingent\"),'TSA Input'!G1635,\"\"))","v":""},{"$f":"IF('TSA Input'!J1635=\"\",\"\",IF(OR('TSA Input'!J1635=\"Yes\",'TSA Input'!J1635=\"Contingent\"),'TSA Input'!F1635,\"\"))","v":""},"","Required","Required"]
["",null,{"$f":"IF('TSA Input'!J1636=\"\",\"\",IF(OR('TSA Input'!J1636=\"Yes\",'TSA Input'!J1636=\"Contingent\"),'TSA Input'!B1636,\"Ineligible\"))","v":""},{"$f":"IF('TSA Input'!J1636=\"\",\"\",IF(OR('TSA Input'!J1636=\"Yes\",'TSA Input'!J1636=\"Contingent\"),'TSA Input'!I1636,\"\"))","v":""},{"$f":"IF('TSA Input'!J1636=\"\",\"\",IF(OR('TSA Input'!J1636=\"Yes\",'TSA Input'!J1636=\"Contingent\"),'TSA Input'!C1636,\"\"))","v":""},{"$f":"IF('TSA Input'!J1636=\"\",\"\",IF(OR('TSA Input'!J1636=\"Yes\",'TSA Input'!J1636=\"Contingent\"),'TSA Input'!D1636,\"\"))","v":""},{"$f":"IF('TSA Input'!J1636=\"\",\"\",IF(OR('TSA Input'!J1636=\"Yes\",'TSA Input'!J1636=\"Contingent\"),'TSA Input'!G1636,\"\"))","v":""},{"$f":"IF('TSA Input'!J1636=\"\",\"\",IF(OR('TSA Input'!J1636=\"Yes\",'TSA Input'!J1636=\"Contingent\"),'TSA Input'!F1636,\"\"))","v":""},"",{"$f":"IF('TSA Input'!J1636=\"\",\"\",IF(OR('TSA Input'!J1636=\"Yes\",'TSA Input'!J1636=\"Contingent\"),'TSA Input'!D1636,\"\"))","v":""},{"$f":"IF('TSA Input'!J1636=\"\",\"\",IF(OR('TSA Input'!J1636=\"Yes\",'TSA Input'!J1636=\"Contingent\"),'TSA Input'!G1636,\"\"))","v":""},{"$f":"IF('TSA Input'!J1636=\"\",\"\",IF(OR('TSA Input'!J1636=\"Yes\",'TSA Input'!J1636=\"Contingent\"),'TSA Input'!F1636,\"\"))","v":""},"","Required","Required"]
["",null,{"$f":"IF('TSA Input'!J1637=\"\",\"\",IF(OR('TSA Input'!J1637=\"Yes\",'TSA Input'!J1637=\"Contingent\"),'TSA Input'!B1637,\"Ineligible\"))","v":""},{"$f":"IF('TSA Input'!J1637=\"\",\"\",IF(OR('TSA Input'!J1637=\"Yes\",'TSA Input'!J1637=\"Contingent\"),'TSA Input'!I1637,\"\"))","v":""},{"$f":"IF('TSA Input'!J1637=\"\",\"\",IF(OR('TSA Input'!J1637=\"Yes\",'TSA Input'!J1637=\"Contingent\"),'TSA Input'!C1637,\"\"))","v":""},{"$f":"IF('TSA Input'!J1637=\"\",\"\",IF(OR('TSA Input'!J1637=\"Yes\",'TSA Input'!J1637=\"Contingent\"),'TSA Input'!D1637,\"\"))","v":""},{"$f":"IF('TSA Input'!J1637=\"\",\"\",IF(OR('TSA Input'!J1637=\"Yes\",'TSA Input'!J1637=\"Contingent\"),'TSA Input'!G1637,\"\"))","v":""},{"$f":"IF('TSA Input'!J1637=\"\",\"\",IF(OR('TSA Input'!J1637=\"Yes\",'TSA Input'!J1637=\"Contingent\"),'TSA Input'!F1637,\"\"))","v":""},"",{"$f":"IF('TSA Input'!J1637=\"\",\"\",IF(OR('TSA Input'!J1637=\"Yes\",'TSA Input'!J1637=\"Contingent\"),'TSA Input'!D1637,\"\"))","v":""},{"$f":"IF('TSA Input'!J1637=\"\",\"\",IF(OR('TSA Input'!J1637=\"Yes\",'TSA Input'!J1637=\"Contingent\"),'TSA Input'!G1637,\"\"))","v":""},{"$f":"IF('TSA Input'!J1637=\"\",\"\",IF(OR('TSA Input'!J1637=\"Yes\",'TSA Input'!J1637=\"Contingent\"),'TSA Input'!F1637,\"\"))","v":""},"","Required","Required"]
["",null,{"$f":"IF('TSA Input'!J1638=\"\",\"\",IF(OR('TSA Input'!J1638=\"Yes\",'TSA Input'!J1638=\"Contingent\"),'TSA Input'!B1638,\"Ineligible\"))","v":""},{"$f":"IF('TSA Input'!J1638=\"\",\"\",IF(OR('TSA Input'!J1638=\"Yes\",'TSA Input'!J1638=\"Contingent\"),'TSA Input'!I1638,\"\"))","v":""},{"$f":"IF('TSA Input'!J1638=\"\",\"\",IF(OR('TSA Input'!J1638=\"Yes\",'TSA Input'!J1638=\"Contingent\"),'TSA Input'!C1638,\"\"))","v":""},{"$f":"IF('TSA Input'!J1638=\"\",\"\",IF(OR('TSA Input'!J1638=\"Yes\",'TSA Input'!J1638=\"Contingent\"),'TSA Input'!D1638,\"\"))","v":""},{"$f":"IF('TSA Input'!J1638=\"\",\"\",IF(OR('TSA Input'!J1638=\"Yes\",'TSA Input'!J1638=\"Contingent\"),'TSA Input'!G1638,\"\"))","v":""},{"$f":"IF('TSA Input'!J1638=\"\",\"\",IF(OR('TSA Input'!J1638=\"Yes\",'TSA Input'!J1638=\"Contingent\"),'TSA Input'!F1638,\"\"))","v":""},"",{"$f":"IF('TSA Input'!J1638=\"\",\"\",IF(OR('TSA Input'!J1638=\"Yes\",'TSA Input'!J1638=\"Contingent\"),'TSA Input'!D1638,\"\"))","v":""},{"$f":"IF('TSA Input'!J1638=\"\",\"\",IF(OR('TSA Input'!J1638=\"Yes\",'TSA Input'!J1638=\"Contingent\"),'TSA Input'!G1638,\"\"))","v":""},{"$f":"IF('TSA Input'!J1638=\"\",\"\",IF(OR('TSA Input'!J1638=\"Yes\",'TSA Input'!J1638=\"Contingent\"),'TSA Input'!F1638,\"\"))","v":""},"","Required","Required"]
["",null,{"$f":"IF('TSA Input'!J1639=\"\",\"\",IF(OR('TSA Input'!J1639=\"Yes\",'TSA Input'!J1639=\"Contingent\"),'TSA Input'!B1639,\"Ineligible\"))","v":""},{"$f":"IF('TSA Input'!J1639=\"\",\"\",IF(OR('TSA Input'!J1639=\"Yes\",'TSA Input'!J1639=\"Contingent\"),'TSA Input'!I1639,\"\"))","v":""},{"$f":"IF('TSA Input'!J1639=\"\",\"\",IF(OR('TSA Input'!J1639=\"Yes\",'TSA Input'!J1639=\"Contingent\"),'TSA Input'!C1639,\"\"))","v":""},{"$f":"IF('TSA Input'!J1639=\"\",\"\",IF(OR('TSA Input'!J1639=\"Yes\",'TSA Input'!J1639=\"Contingent\"),'TSA Input'!D1639,\"\"))","v":""},{"$f":"IF('TSA Input'!J1639=\"\",\"\",IF(OR('TSA Input'!J1639=\"Yes\",'TSA Input'!J1639=\"Contingent\"),'TSA Input'!G1639,\"\"))","v":""},{"$f":"IF('TSA Input'!J1639=\"\",\"\",IF(OR('TSA Input'!J1639=\"Yes\",'TSA Input'!J1639=\"Contingent\"),'TSA Input'!F1639,\"\"))","v":""},"",{"$f":"IF('TSA Input'!J1639=\"\",\"\",IF(OR('TSA Input'!J1639=\"Yes\",'TSA Input'!J1639=\"Contingent\"),'TSA Input'!D1639,\"\"))","v":""},{"$f":"IF('TSA Input'!J1639=\"\",\"\",IF(OR('TSA Input'!J1639=\"Yes\",'TSA Input'!J1639=\"Contingent\"),'TSA Input'!G1639,\"\"))","v":""},{"$f":"IF('TSA Input'!J1639=\"\",\"\",IF(OR('TSA Input'!J1639=\"Yes\",'TSA Input'!J1639=\"Contingent\"),'TSA Input'!F1639,\"\"))","v":""},"","Required","Required"]
["",null,{"$f":"IF('TSA Input'!J1640=\"\",\"\",IF(OR('TSA Input'!J1640=\"Yes\",'TSA Input'!J1640=\"Contingent\"),'TSA Input'!B1640,\"Ineligible\"))","v":""},{"$f":"IF('TSA Input'!J1640=\"\",\"\",IF(OR('TSA Input'!J1640=\"Yes\",'TSA Input'!J1640=\"Contingent\"),'TSA Input'!I1640,\"\"))","v":""},{"$f":"IF('TSA Input'!J1640=\"\",\"\",IF(OR('TSA Input'!J1640=\"Yes\",'TSA Input'!J1640=\"Contingent\"),'TSA Input'!C1640,\"\"))","v":""},{"$f":"IF('TSA Input'!J1640=\"\",\"\",IF(OR('TSA Input'!J1640=\"Yes\",'TSA Input'!J1640=\"Contingent\"),'TSA Input'!D1640,\"\"))","v":""},{"$f":"IF('TSA Input'!J1640=\"\",\"\",IF(OR('TSA Input'!J1640=\"Yes\",'TSA Input'!J1640=\"Contingent\"),'TSA Input'!G1640,\"\"))","v":""},{"$f":"IF('TSA Input'!J1640=\"\",\"\",IF(OR('TSA Input'!J1640=\"Yes\",'TSA Input'!J1640=\"Contingent\"),'TSA Input'!F1640,\"\"))","v":""},"",{"$f":"IF('TSA Input'!J1640=\"\",\"\",IF(OR('TSA Input'!J1640=\"Yes\",'TSA Input'!J1640=\"Contingent\"),'TSA Input'!D1640,\"\"))","v":""},{"$f":"IF('TSA Input'!J1640=\"\",\"\",IF(OR('TSA Input'!J1640=\"Yes\",'TSA Input'!J1640=\"Contingent\"),'TSA Input'!G1640,\"\"))","v":""},{"$f":"IF('TSA Input'!J1640=\"\",\"\",IF(OR('TSA Input'!J1640=\"Yes\",'TSA Input'!J1640=\"Contingent\"),'TSA Input'!F1640,\"\"))","v":""},"","Required","Required"]
["",null,{"$f":"IF('TSA Input'!J1641=\"\",\"\",IF(OR('TSA Input'!J1641=\"Yes\",'TSA Input'!J1641=\"Contingent\"),'TSA Input'!B1641,\"Ineligible\"))","v":""},{"$f":"IF('TSA Input'!J1641=\"\",\"\",IF(OR('TSA Input'!J1641=\"Yes\",'TSA Input'!J1641=\"Contingent\"),'TSA Input'!I1641,\"\"))","v":""},{"$f":"IF('TSA Input'!J1641=\"\",\"\",IF(OR('TSA Input'!J1641=\"Yes\",'TSA Input'!J1641=\"Contingent\"),'TSA Input'!C1641,\"\"))","v":""},{"$f":"IF('TSA Input'!J1641=\"\",\"\",IF(OR('TSA Input'!J1641=\"Yes\",'TSA Input'!J1641=\"Contingent\"),'TSA Input'!D1641,\"\"))","v":""},{"$f":"IF('TSA Input'!J1641=\"\",\"\",IF(OR('TSA Input'!J1641=\"Yes\",'TSA Input'!J1641=\"Contingent\"),'TSA Input'!G1641,\"\"))","v":""},{"$f":"IF('TSA Input'!J1641=\"\",\"\",IF(OR('TSA Input'!J1641=\"Yes\",'TSA Input'!J1641=\"Contingent\"),'TSA Input'!F1641,\"\"))","v":""},"",{"$f":"IF('TSA Input'!J1641=\"\",\"\",IF(OR('TSA Input'!J1641=\"Yes\",'TSA Input'!J1641=\"Contingent\"),'TSA Input'!D1641,\"\"))","v":""},{"$f":"IF('TSA Input'!J1641=\"\",\"\",IF(OR('TSA Input'!J1641=\"Yes\",'TSA Input'!J1641=\"Contingent\"),'TSA Input'!G1641,\"\"))","v":""},{"$f":"IF('TSA Input'!J1641=\"\",\"\",IF(OR('TSA Input'!J1641=\"Yes\",'TSA Input'!J1641=\"Contingent\"),'TSA Input'!F1641,\"\"))","v":""},"","Required","Required"]
["",null,{"$f":"IF('TSA Input'!J1642=\"\",\"\",IF(OR('TSA Input'!J1642=\"Yes\",'TSA Input'!J1642=\"Contingent\"),'TSA Input'!B1642,\"Ineligible\"))","v":""},{"$f":"IF('TSA Input'!J1642=\"\",\"\",IF(OR('TSA Input'!J1642=\"Yes\",'TSA Input'!J1642=\"Contingent\"),'TSA Input'!I1642,\"\"))","v":""},{"$f":"IF('TSA Input'!J1642=\"\",\"\",IF(OR('TSA Input'!J1642=\"Yes\",'TSA Input'!J1642=\"Contingent\"),'TSA Input'!C1642,\"\"))","v":""},{"$f":"IF('TSA Input'!J1642=\"\",\"\",IF(OR('TSA Input'!J1642=\"Yes\",'TSA Input'!J1642=\"Contingent\"),'TSA Input'!D1642,\"\"))","v":""},{"$f":"IF('TSA Input'!J1642=\"\",\"\",IF(OR('TSA Input'!J1642=\"Yes\",'TSA Input'!J1642=\"Contingent\"),'TSA Input'!G1642,\"\"))","v":""},{"$f":"IF('TSA Input'!J1642=\"\",\"\",IF(OR('TSA Input'!J1642=\"Yes\",'TSA Input'!J1642=\"Contingent\"),'TSA Input'!F1642,\"\"))","v":""},"",{"$f":"IF('TSA Input'!J1642=\"\",\"\",IF(OR('TSA Input'!J1642=\"Yes\",'TSA Input'!J1642=\"Contingent\"),'TSA Input'!D1642,\"\"))","v":""},{"$f":"IF('TSA Input'!J1642=\"\",\"\",IF(OR('TSA Input'!J1642=\"Yes\",'TSA Input'!J1642=\"Contingent\"),'TSA Input'!G1642,\"\"))","v":""},{"$f":"IF('TSA Input'!J1642=\"\",\"\",IF(OR('TSA Input'!J1642=\"Yes\",'TSA Input'!J1642=\"Contingent\"),'TSA Input'!F1642,\"\"))","v":""},"","Required","Required"]
["",null,{"$f":"IF('TSA Input'!J1643=\"\",\"\",IF(OR('TSA Input'!J1643=\"Yes\",'TSA Input'!J1643=\"Contingent\"),'TSA Input'!B1643,\"Ineligible\"))","v":""},{"$f":"IF('TSA Input'!J1643=\"\",\"\",IF(OR('TSA Input'!J1643=\"Yes\",'TSA Input'!J1643=\"Contingent\"),'TSA Input'!I1643,\"\"))","v":""},{"$f":"IF('TSA Input'!J1643=\"\",\"\",IF(OR('TSA Input'!J1643=\"Yes\",'TSA Input'!J1643=\"Contingent\"),'TSA Input'!C1643,\"\"))","v":""},{"$f":"IF('TSA Input'!J1643=\"\",\"\",IF(OR('TSA Input'!J1643=\"Yes\",'TSA Input'!J1643=\"Contingent\"),'TSA Input'!D1643,\"\"))","v":""},{"$f":"IF('TSA Input'!J1643=\"\",\"\",IF(OR('TSA Input'!J1643=\"Yes\",'TSA Input'!J1643=\"Contingent\"),'TSA Input'!G1643,\"\"))","v":""},{"$f":"IF('TSA Input'!J1643=\"\",\"\",IF(OR('TSA Input'!J1643=\"Yes\",'TSA Input'!J1643=\"Contingent\"),'TSA Input'!F1643,\"\"))","v":""},"",{"$f":"IF('TSA Input'!J1643=\"\",\"\",IF(OR('TSA Input'!J1643=\"Yes\",'TSA Input'!J1643=\"Contingent\"),'TSA Input'!D1643,\"\"))","v":""},{"$f":"IF('TSA Input'!J1643=\"\",\"\",IF(OR('TSA Input'!J1643=\"Yes\",'TSA Input'!J1643=\"Contingent\"),'TSA Input'!G1643,\"\"))","v":""},{"$f":"IF('TSA Input'!J1643=\"\",\"\",IF(OR('TSA Input'!J1643=\"Yes\",'TSA Input'!J1643=\"Contingent\"),'TSA Input'!F1643,\"\"))","v":""},"","Required","Required"]
["",null,{"$f":"IF('TSA Input'!J1644=\"\",\"\",IF(OR('TSA Input'!J1644=\"Yes\",'TSA Input'!J1644=\"Contingent\"),'TSA Input'!B1644,\"Ineligible\"))","v":""},{"$f":"IF('TSA Input'!J1644=\"\",\"\",IF(OR('TSA Input'!J1644=\"Yes\",'TSA Input'!J1644=\"Contingent\"),'TSA Input'!I1644,\"\"))","v":""},{"$f":"IF('TSA Input'!J1644=\"\",\"\",IF(OR('TSA Input'!J1644=\"Yes\",'TSA Input'!J1644=\"Contingent\"),'TSA Input'!C1644,\"\"))","v":""},{"$f":"IF('TSA Input'!J1644=\"\",\"\",IF(OR('TSA Input'!J1644=\"Yes\",'TSA Input'!J1644=\"Contingent\"),'TSA Input'!D1644,\"\"))","v":""},{"$f":"IF('TSA Input'!J1644=\"\",\"\",IF(OR('TSA Input'!J1644=\"Yes\",'TSA Input'!J1644=\"Contingent\"),'TSA Input'!G1644,\"\"))","v":""},{"$f":"IF('TSA Input'!J1644=\"\",\"\",IF(OR('TSA Input'!J1644=\"Yes\",'TSA Input'!J1644=\"Contingent\"),'TSA Input'!F1644,\"\"))","v":""},"",{"$f":"IF('TSA Input'!J1644=\"\",\"\",IF(OR('TSA Input'!J1644=\"Yes\",'TSA Input'!J1644=\"Contingent\"),'TSA Input'!D1644,\"\"))","v":""},{"$f":"IF('TSA Input'!J1644=\"\",\"\",IF(OR('TSA Input'!J1644=\"Yes\",'TSA Input'!J1644=\"Contingent\"),'TSA Input'!G1644,\"\"))","v":""},{"$f":"IF('TSA Input'!J1644=\"\",\"\",IF(OR('TSA Input'!J1644=\"Yes\",'TSA Input'!J1644=\"Contingent\"),'TSA Input'!F1644,\"\"))","v":""},"","Required","Required"]
["",null,{"$f":"IF('TSA Input'!J1645=\"\",\"\",IF(OR('TSA Input'!J1645=\"Yes\",'TSA Input'!J1645=\"Contingent\"),'TSA Input'!B1645,\"Ineligible\"))","v":""},{"$f":"IF('TSA Input'!J1645=\"\",\"\",IF(OR('TSA Input'!J1645=\"Yes\",'TSA Input'!J1645=\"Contingent\"),'TSA Input'!I1645,\"\"))","v":""},{"$f":"IF('TSA Input'!J1645=\"\",\"\",IF(OR('TSA Input'!J1645=\"Yes\",'TSA Input'!J1645=\"Contingent\"),'TSA Input'!C1645,\"\"))","v":""},{"$f":"IF('TSA Input'!J1645=\"\",\"\",IF(OR('TSA Input'!J1645=\"Yes\",'TSA Input'!J1645=\"Contingent\"),'TSA Input'!D1645,\"\"))","v":""},{"$f":"IF('TSA Input'!J1645=\"\",\"\",IF(OR('TSA Input'!J1645=\"Yes\",'TSA Input'!J1645=\"Contingent\"),'TSA Input'!G1645,\"\"))","v":""},{"$f":"IF('TSA Input'!J1645=\"\",\"\",IF(OR('TSA Input'!J1645=\"Yes\",'TSA Input'!J1645=\"Contingent\"),'TSA Input'!F1645,\"\"))","v":""},"",{"$f":"IF('TSA Input'!J1645=\"\",\"\",IF(OR('TSA Input'!J1645=\"Yes\",'TSA Input'!J1645=\"Contingent\"),'TSA Input'!D1645,\"\"))","v":""},{"$f":"IF('TSA Input'!J1645=\"\",\"\",IF(OR('TSA Input'!J1645=\"Yes\",'TSA Input'!J1645=\"Contingent\"),'TSA Input'!G1645,\"\"))","v":""},{"$f":"IF('TSA Input'!J1645=\"\",\"\",IF(OR('TSA Input'!J1645=\"Yes\",'TSA Input'!J1645=\"Contingent\"),'TSA Input'!F1645,\"\"))","v":""},"","Required","Required"]
["",null,{"$f":"IF('TSA Input'!J1646=\"\",\"\",IF(OR('TSA Input'!J1646=\"Yes\",'TSA Input'!J1646=\"Contingent\"),'TSA Input'!B1646,\"Ineligible\"))","v":""},{"$f":"IF('TSA Input'!J1646=\"\",\"\",IF(OR('TSA Input'!J1646=\"Yes\",'TSA Input'!J1646=\"Contingent\"),'TSA Input'!I1646,\"\"))","v":""},{"$f":"IF('TSA Input'!J1646=\"\",\"\",IF(OR('TSA Input'!J1646=\"Yes\",'TSA Input'!J1646=\"Contingent\"),'TSA Input'!C1646,\"\"))","v":""},{"$f":"IF('TSA Input'!J1646=\"\",\"\",IF(OR('TSA Input'!J1646=\"Yes\",'TSA Input'!J1646=\"Contingent\"),'TSA Input'!D1646,\"\"))","v":""},{"$f":"IF('TSA Input'!J1646=\"\",\"\",IF(OR('TSA Input'!J1646=\"Yes\",'TSA Input'!J1646=\"Contingent\"),'TSA Input'!G1646,\"\"))","v":""},{"$f":"IF('TSA Input'!J1646=\"\",\"\",IF(OR('TSA Input'!J1646=\"Yes\",'TSA Input'!J1646=\"Contingent\"),'TSA Input'!F1646,\"\"))","v":""},"",{"$f":"IF('TSA Input'!J1646=\"\",\"\",IF(OR('TSA Input'!J1646=\"Yes\",'TSA Input'!J1646=\"Contingent\"),'TSA Input'!D1646,\"\"))","v":""},{"$f":"IF('TSA Input'!J1646=\"\",\"\",IF(OR('TSA Input'!J1646=\"Yes\",'TSA Input'!J1646=\"Contingent\"),'TSA Input'!G1646,\"\"))","v":""},{"$f":"IF('TSA Input'!J1646=\"\",\"\",IF(OR('TSA Input'!J1646=\"Yes\",'TSA Input'!J1646=\"Contingent\"),'TSA Input'!F1646,\"\"))","v":""},"","Required","Required"]
["",null,{"$f":"IF('TSA Input'!J1647=\"\",\"\",IF(OR('TSA Input'!J1647=\"Yes\",'TSA Input'!J1647=\"Contingent\"),'TSA Input'!B1647,\"Ineligible\"))","v":""},{"$f":"IF('TSA Input'!J1647=\"\",\"\",IF(OR('TSA Input'!J1647=\"Yes\",'TSA Input'!J1647=\"Contingent\"),'TSA Input'!I1647,\"\"))","v":""},{"$f":"IF('TSA Input'!J1647=\"\",\"\",IF(OR('TSA Input'!J1647=\"Yes\",'TSA Input'!J1647=\"Contingent\"),'TSA Input'!C1647,\"\"))","v":""},{"$f":"IF('TSA Input'!J1647=\"\",\"\",IF(OR('TSA Input'!J1647=\"Yes\",'TSA Input'!J1647=\"Contingent\"),'TSA Input'!D1647,\"\"))","v":""},{"$f":"IF('TSA Input'!J1647=\"\",\"\",IF(OR('TSA Input'!J1647=\"Yes\",'TSA Input'!J1647=\"Contingent\"),'TSA Input'!G1647,\"\"))","v":""},{"$f":"IF('TSA Input'!J1647=\"\",\"\",IF(OR('TSA Input'!J1647=\"Yes\",'TSA Input'!J1647=\"Contingent\"),'TSA Input'!F1647,\"\"))","v":""},"",{"$f":"IF('TSA Input'!J1647=\"\",\"\",IF(OR('TSA Input'!J1647=\"Yes\",'TSA Input'!J1647=\"Contingent\"),'TSA Input'!D1647,\"\"))","v":""},{"$f":"IF('TSA Input'!J1647=\"\",\"\",IF(OR('TSA Input'!J1647=\"Yes\",'TSA Input'!J1647=\"Contingent\"),'TSA Input'!G1647,\"\"))","v":""},{"$f":"IF('TSA Input'!J1647=\"\",\"\",IF(OR('TSA Input'!J1647=\"Yes\",'TSA Input'!J1647=\"Contingent\"),'TSA Input'!F1647,\"\"))","v":""},"","Required","Required"]
["",null,{"$f":"IF('TSA Input'!J1648=\"\",\"\",IF(OR('TSA Input'!J1648=\"Yes\",'TSA Input'!J1648=\"Contingent\"),'TSA Input'!B1648,\"Ineligible\"))","v":""},{"$f":"IF('TSA Input'!J1648=\"\",\"\",IF(OR('TSA Input'!J1648=\"Yes\",'TSA Input'!J1648=\"Contingent\"),'TSA Input'!I1648,\"\"))","v":""},{"$f":"IF('TSA Input'!J1648=\"\",\"\",IF(OR('TSA Input'!J1648=\"Yes\",'TSA Input'!J1648=\"Contingent\"),'TSA Input'!C1648,\"\"))","v":""},{"$f":"IF('TSA Input'!J1648=\"\",\"\",IF(OR('TSA Input'!J1648=\"Yes\",'TSA Input'!J1648=\"Contingent\"),'TSA Input'!D1648,\"\"))","v":""},{"$f":"IF('TSA Input'!J1648=\"\",\"\",IF(OR('TSA Input'!J1648=\"Yes\",'TSA Input'!J1648=\"Contingent\"),'TSA Input'!G1648,\"\"))","v":""},{"$f":"IF('TSA Input'!J1648=\"\",\"\",IF(OR('TSA Input'!J1648=\"Yes\",'TSA Input'!J1648=\"Contingent\"),'TSA Input'!F1648,\"\"))","v":""},"",{"$f":"IF('TSA Input'!J1648=\"\",\"\",IF(OR('TSA Input'!J1648=\"Yes\",'TSA Input'!J1648=\"Contingent\"),'TSA Input'!D1648,\"\"))","v":""},{"$f":"IF('TSA Input'!J1648=\"\",\"\",IF(OR('TSA Input'!J1648=\"Yes\",'TSA Input'!J1648=\"Contingent\"),'TSA Input'!G1648,\"\"))","v":""},{"$f":"IF('TSA Input'!J1648=\"\",\"\",IF(OR('TSA Input'!J1648=\"Yes\",'TSA Input'!J1648=\"Contingent\"),'TSA Input'!F1648,\"\"))","v":""},"","Required","Required"]
["",null,{"$f":"IF('TSA Input'!J1649=\"\",\"\",IF(OR('TSA Input'!J1649=\"Yes\",'TSA Input'!J1649=\"Contingent\"),'TSA Input'!B1649,\"Ineligible\"))","v":""},{"$f":"IF('TSA Input'!J1649=\"\",\"\",IF(OR('TSA Input'!J1649=\"Yes\",'TSA Input'!J1649=\"Contingent\"),'TSA Input'!I1649,\"\"))","v":""},{"$f":"IF('TSA Input'!J1649=\"\",\"\",IF(OR('TSA Input'!J1649=\"Yes\",'TSA Input'!J1649=\"Contingent\"),'TSA Input'!C1649,\"\"))","v":""},{"$f":"IF('TSA Input'!J1649=\"\",\"\",IF(OR('TSA Input'!J1649=\"Yes\",'TSA Input'!J1649=\"Contingent\"),'TSA Input'!D1649,\"\"))","v":""},{"$f":"IF('TSA Input'!J1649=\"\",\"\",IF(OR('TSA Input'!J1649=\"Yes\",'TSA Input'!J1649=\"Contingent\"),'TSA Input'!G1649,\"\"))","v":""},{"$f":"IF('TSA Input'!J1649=\"\",\"\",IF(OR('TSA Input'!J1649=\"Yes\",'TSA Input'!J1649=\"Contingent\"),'TSA Input'!F1649,\"\"))","v":""},"",{"$f":"IF('TSA Input'!J1649=\"\",\"\",IF(OR('TSA Input'!J1649=\"Yes\",'TSA Input'!J1649=\"Contingent\"),'TSA Input'!D1649,\"\"))","v":""},{"$f":"IF('TSA Input'!J1649=\"\",\"\",IF(OR('TSA Input'!J1649=\"Yes\",'TSA Input'!J1649=\"Contingent\"),'TSA Input'!G1649,\"\"))","v":""},{"$f":"IF('TSA Input'!J1649=\"\",\"\",IF(OR('TSA Input'!J1649=\"Yes\",'TSA Input'!J1649=\"Contingent\"),'TSA Input'!F1649,\"\"))","v":""},"","Required","Required"]
["",null,{"$f":"IF('TSA Input'!J1650=\"\",\"\",IF(OR('TSA Input'!J1650=\"Yes\",'TSA Input'!J1650=\"Contingent\"),'TSA Input'!B1650,\"Ineligible\"))","v":""},{"$f":"IF('TSA Input'!J1650=\"\",\"\",IF(OR('TSA Input'!J1650=\"Yes\",'TSA Input'!J1650=\"Contingent\"),'TSA Input'!I1650,\"\"))","v":""},{"$f":"IF('TSA Input'!J1650=\"\",\"\",IF(OR('TSA Input'!J1650=\"Yes\",'TSA Input'!J1650=\"Contingent\"),'TSA Input'!C1650,\"\"))","v":""},{"$f":"IF('TSA Input'!J1650=\"\",\"\",IF(OR('TSA Input'!J1650=\"Yes\",'TSA Input'!J1650=\"Contingent\"),'TSA Input'!D1650,\"\"))","v":""},{"$f":"IF('TSA Input'!J1650=\"\",\"\",IF(OR('TSA Input'!J1650=\"Yes\",'TSA Input'!J1650=\"Contingent\"),'TSA Input'!G1650,\"\"))","v":""},{"$f":"IF('TSA Input'!J1650=\"\",\"\",IF(OR('TSA Input'!J1650=\"Yes\",'TSA Input'!J1650=\"Contingent\"),'TSA Input'!F1650,\"\"))","v":""},"",{"$f":"IF('TSA Input'!J1650=\"\",\"\",IF(OR('TSA Input'!J1650=\"Yes\",'TSA Input'!J1650=\"Contingent\"),'TSA Input'!D1650,\"\"))","v":""},{"$f":"IF('TSA Input'!J1650=\"\",\"\",IF(OR('TSA Input'!J1650=\"Yes\",'TSA Input'!J1650=\"Contingent\"),'TSA Input'!G1650,\"\"))","v":""},{"$f":"IF('TSA Input'!J1650=\"\",\"\",IF(OR('TSA Input'!J1650=\"Yes\",'TSA Input'!J1650=\"Contingent\"),'TSA Input'!F1650,\"\"))","v":""},"","Required","Required"]
["",null,{"$f":"IF('TSA Input'!J1651=\"\",\"\",IF(OR('TSA Input'!J1651=\"Yes\",'TSA Input'!J1651=\"Contingent\"),'TSA Input'!B1651,\"Ineligible\"))","v":""},{"$f":"IF('TSA Input'!J1651=\"\",\"\",IF(OR('TSA Input'!J1651=\"Yes\",'TSA Input'!J1651=\"Contingent\"),'TSA Input'!I1651,\"\"))","v":""},{"$f":"IF('TSA Input'!J1651=\"\",\"\",IF(OR('TSA Input'!J1651=\"Yes\",'TSA Input'!J1651=\"Contingent\"),'TSA Input'!C1651,\"\"))","v":""},{"$f":"IF('TSA Input'!J1651=\"\",\"\",IF(OR('TSA Input'!J1651=\"Yes\",'TSA Input'!J1651=\"Contingent\"),'TSA Input'!D1651,\"\"))","v":""},{"$f":"IF('TSA Input'!J1651=\"\",\"\",IF(OR('TSA Input'!J1651=\"Yes\",'TSA Input'!J1651=\"Contingent\"),'TSA Input'!G1651,\"\"))","v":""},{"$f":"IF('TSA Input'!J1651=\"\",\"\",IF(OR('TSA Input'!J1651=\"Yes\",'TSA Input'!J1651=\"Contingent\"),'TSA Input'!F1651,\"\"))","v":""},"",{"$f":"IF('TSA Input'!J1651=\"\",\"\",IF(OR('TSA Input'!J1651=\"Yes\",'TSA Input'!J1651=\"Contingent\"),'TSA Input'!D1651,\"\"))","v":""},{"$f":"IF('TSA Input'!J1651=\"\",\"\",IF(OR('TSA Input'!J1651=\"Yes\",'TSA Input'!J1651=\"Contingent\"),'TSA Input'!G1651,\"\"))","v":""},{"$f":"IF('TSA Input'!J1651=\"\",\"\",IF(OR('TSA Input'!J1651=\"Yes\",'TSA Input'!J1651=\"Contingent\"),'TSA Input'!F1651,\"\"))","v":""},"","Required","Required"]
["",null,{"$f":"IF('TSA Input'!J1652=\"\",\"\",IF(OR('TSA Input'!J1652=\"Yes\",'TSA Input'!J1652=\"Contingent\"),'TSA Input'!B1652,\"Ineligible\"))","v":""},{"$f":"IF('TSA Input'!J1652=\"\",\"\",IF(OR('TSA Input'!J1652=\"Yes\",'TSA Input'!J1652=\"Contingent\"),'TSA Input'!I1652,\"\"))","v":""},{"$f":"IF('TSA Input'!J1652=\"\",\"\",IF(OR('TSA Input'!J1652=\"Yes\",'TSA Input'!J1652=\"Contingent\"),'TSA Input'!C1652,\"\"))","v":""},{"$f":"IF('TSA Input'!J1652=\"\",\"\",IF(OR('TSA Input'!J1652=\"Yes\",'TSA Input'!J1652=\"Contingent\"),'TSA Input'!D1652,\"\"))","v":""},{"$f":"IF('TSA Input'!J1652=\"\",\"\",IF(OR('TSA Input'!J1652=\"Yes\",'TSA Input'!J1652=\"Contingent\"),'TSA Input'!G1652,\"\"))","v":""},{"$f":"IF('TSA Input'!J1652=\"\",\"\",IF(OR('TSA Input'!J1652=\"Yes\",'TSA Input'!J1652=\"Contingent\"),'TSA Input'!F1652,\"\"))","v":""},"",{"$f":"IF('TSA Input'!J1652=\"\",\"\",IF(OR('TSA Input'!J1652=\"Yes\",'TSA Input'!J1652=\"Contingent\"),'TSA Input'!D1652,\"\"))","v":""},{"$f":"IF('TSA Input'!J1652=\"\",\"\",IF(OR('TSA Input'!J1652=\"Yes\",'TSA Input'!J1652=\"Contingent\"),'TSA Input'!G1652,\"\"))","v":""},{"$f":"IF('TSA Input'!J1652=\"\",\"\",IF(OR('TSA Input'!J1652=\"Yes\",'TSA Input'!J1652=\"Contingent\"),'TSA Input'!F1652,\"\"))","v":""},"","Required","Required"]
["",null,{"$f":"IF('TSA Input'!J1653=\"\",\"\",IF(OR('TSA Input'!J1653=\"Yes\",'TSA Input'!J1653=\"Contingent\"),'TSA Input'!B1653,\"Ineligible\"))","v":""},{"$f":"IF('TSA Input'!J1653=\"\",\"\",IF(OR('TSA Input'!J1653=\"Yes\",'TSA Input'!J1653=\"Contingent\"),'TSA Input'!I1653,\"\"))","v":""},{"$f":"IF('TSA Input'!J1653=\"\",\"\",IF(OR('TSA Input'!J1653=\"Yes\",'TSA Input'!J1653=\"Contingent\"),'TSA Input'!C1653,\"\"))","v":""},{"$f":"IF('TSA Input'!J1653=\"\",\"\",IF(OR('TSA Input'!J1653=\"Yes\",'TSA Input'!J1653=\"Contingent\"),'TSA Input'!D1653,\"\"))","v":""},{"$f":"IF('TSA Input'!J1653=\"\",\"\",IF(OR('TSA Input'!J1653=\"Yes\",'TSA Input'!J1653=\"Contingent\"),'TSA Input'!G1653,\"\"))","v":""},{"$f":"IF('TSA Input'!J1653=\"\",\"\",IF(OR('TSA Input'!J1653=\"Yes\",'TSA Input'!J1653=\"Contingent\"),'TSA Input'!F1653,\"\"))","v":""},"",{"$f":"IF('TSA Input'!J1653=\"\",\"\",IF(OR('TSA Input'!J1653=\"Yes\",'TSA Input'!J1653=\"Contingent\"),'TSA Input'!D1653,\"\"))","v":""},{"$f":"IF('TSA Input'!J1653=\"\",\"\",IF(OR('TSA Input'!J1653=\"Yes\",'TSA Input'!J1653=\"Contingent\"),'TSA Input'!G1653,\"\"))","v":""},{"$f":"IF('TSA Input'!J1653=\"\",\"\",IF(OR('TSA Input'!J1653=\"Yes\",'TSA Input'!J1653=\"Contingent\"),'TSA Input'!F1653,\"\"))","v":""},"","Required","Required"]
["",null,{"$f":"IF('TSA Input'!J1654=\"\",\"\",IF(OR('TSA Input'!J1654=\"Yes\",'TSA Input'!J1654=\"Contingent\"),'TSA Input'!B1654,\"Ineligible\"))","v":""},{"$f":"IF('TSA Input'!J1654=\"\",\"\",IF(OR('TSA Input'!J1654=\"Yes\",'TSA Input'!J1654=\"Contingent\"),'TSA Input'!I1654,\"\"))","v":""},{"$f":"IF('TSA Input'!J1654=\"\",\"\",IF(OR('TSA Input'!J1654=\"Yes\",'TSA Input'!J1654=\"Contingent\"),'TSA Input'!C1654,\"\"))","v":""},{"$f":"IF('TSA Input'!J1654=\"\",\"\",IF(OR('TSA Input'!J1654=\"Yes\",'TSA Input'!J1654=\"Contingent\"),'TSA Input'!D1654,\"\"))","v":""},{"$f":"IF('TSA Input'!J1654=\"\",\"\",IF(OR('TSA Input'!J1654=\"Yes\",'TSA Input'!J1654=\"Contingent\"),'TSA Input'!G1654,\"\"))","v":""},{"$f":"IF('TSA Input'!J1654=\"\",\"\",IF(OR('TSA Input'!J1654=\"Yes\",'TSA Input'!J1654=\"Contingent\"),'TSA Input'!F1654,\"\"))","v":""},"",{"$f":"IF('TSA Input'!J1654=\"\",\"\",IF(OR('TSA Input'!J1654=\"Yes\",'TSA Input'!J1654=\"Contingent\"),'TSA Input'!D1654,\"\"))","v":""},{"$f":"IF('TSA Input'!J1654=\"\",\"\",IF(OR('TSA Input'!J1654=\"Yes\",'TSA Input'!J1654=\"Contingent\"),'TSA Input'!G1654,\"\"))","v":""},{"$f":"IF('TSA Input'!J1654=\"\",\"\",IF(OR('TSA Input'!J1654=\"Yes\",'TSA Input'!J1654=\"Contingent\"),'TSA Input'!F1654,\"\"))","v":""},"","Required","Required"]
["",null,{"$f":"IF('TSA Input'!J1655=\"\",\"\",IF(OR('TSA Input'!J1655=\"Yes\",'TSA Input'!J1655=\"Contingent\"),'TSA Input'!B1655,\"Ineligible\"))","v":""},{"$f":"IF('TSA Input'!J1655=\"\",\"\",IF(OR('TSA Input'!J1655=\"Yes\",'TSA Input'!J1655=\"Contingent\"),'TSA Input'!I1655,\"\"))","v":""},{"$f":"IF('TSA Input'!J1655=\"\",\"\",IF(OR('TSA Input'!J1655=\"Yes\",'TSA Input'!J1655=\"Contingent\"),'TSA Input'!C1655,\"\"))","v":""},{"$f":"IF('TSA Input'!J1655=\"\",\"\",IF(OR('TSA Input'!J1655=\"Yes\",'TSA Input'!J1655=\"Contingent\"),'TSA Input'!D1655,\"\"))","v":""},{"$f":"IF('TSA Input'!J1655=\"\",\"\",IF(OR('TSA Input'!J1655=\"Yes\",'TSA Input'!J1655=\"Contingent\"),'TSA Input'!G1655,\"\"))","v":""},{"$f":"IF('TSA Input'!J1655=\"\",\"\",IF(OR('TSA Input'!J1655=\"Yes\",'TSA Input'!J1655=\"Contingent\"),'TSA Input'!F1655,\"\"))","v":""},"",{"$f":"IF('TSA Input'!J1655=\"\",\"\",IF(OR('TSA Input'!J1655=\"Yes\",'TSA Input'!J1655=\"Contingent\"),'TSA Input'!D1655,\"\"))","v":""},{"$f":"IF('TSA Input'!J1655=\"\",\"\",IF(OR('TSA Input'!J1655=\"Yes\",'TSA Input'!J1655=\"Contingent\"),'TSA Input'!G1655,\"\"))","v":""},{"$f":"IF('TSA Input'!J1655=\"\",\"\",IF(OR('TSA Input'!J1655=\"Yes\",'TSA Input'!J1655=\"Contingent\"),'TSA Input'!F1655,\"\"))","v":""},"","Required","Required"]
["",null,{"$f":"IF('TSA Input'!J1656=\"\",\"\",IF(OR('TSA Input'!J1656=\"Yes\",'TSA Input'!J1656=\"Contingent\"),'TSA Input'!B1656,\"Ineligible\"))","v":""},{"$f":"IF('TSA Input'!J1656=\"\",\"\",IF(OR('TSA Input'!J1656=\"Yes\",'TSA Input'!J1656=\"Contingent\"),'TSA Input'!I1656,\"\"))","v":""},{"$f":"IF('TSA Input'!J1656=\"\",\"\",IF(OR('TSA Input'!J1656=\"Yes\",'TSA Input'!J1656=\"Contingent\"),'TSA Input'!C1656,\"\"))","v":""},{"$f":"IF('TSA Input'!J1656=\"\",\"\",IF(OR('TSA Input'!J1656=\"Yes\",'TSA Input'!J1656=\"Contingent\"),'TSA Input'!D1656,\"\"))","v":""},{"$f":"IF('TSA Input'!J1656=\"\",\"\",IF(OR('TSA Input'!J1656=\"Yes\",'TSA Input'!J1656=\"Contingent\"),'TSA Input'!G1656,\"\"))","v":""},{"$f":"IF('TSA Input'!J1656=\"\",\"\",IF(OR('TSA Input'!J1656=\"Yes\",'TSA Input'!J1656=\"Contingent\"),'TSA Input'!F1656,\"\"))","v":""},"",{"$f":"IF('TSA Input'!J1656=\"\",\"\",IF(OR('TSA Input'!J1656=\"Yes\",'TSA Input'!J1656=\"Contingent\"),'TSA Input'!D1656,\"\"))","v":""},{"$f":"IF('TSA Input'!J1656=\"\",\"\",IF(OR('TSA Input'!J1656=\"Yes\",'TSA Input'!J1656=\"Contingent\"),'TSA Input'!G1656,\"\"))","v":""},{"$f":"IF('TSA Input'!J1656=\"\",\"\",IF(OR('TSA Input'!J1656=\"Yes\",'TSA Input'!J1656=\"Contingent\"),'TSA Input'!F1656,\"\"))","v":""},"","Required","Required"]
["",null,{"$f":"IF('TSA Input'!J1657=\"\",\"\",IF(OR('TSA Input'!J1657=\"Yes\",'TSA Input'!J1657=\"Contingent\"),'TSA Input'!B1657,\"Ineligible\"))","v":""},{"$f":"IF('TSA Input'!J1657=\"\",\"\",IF(OR('TSA Input'!J1657=\"Yes\",'TSA Input'!J1657=\"Contingent\"),'TSA Input'!I1657,\"\"))","v":""},{"$f":"IF('TSA Input'!J1657=\"\",\"\",IF(OR('TSA Input'!J1657=\"Yes\",'TSA Input'!J1657=\"Contingent\"),'TSA Input'!C1657,\"\"))","v":""},{"$f":"IF('TSA Input'!J1657=\"\",\"\",IF(OR('TSA Input'!J1657=\"Yes\",'TSA Input'!J1657=\"Contingent\"),'TSA Input'!D1657,\"\"))","v":""},{"$f":"IF('TSA Input'!J1657=\"\",\"\",IF(OR('TSA Input'!J1657=\"Yes\",'TSA Input'!J1657=\"Contingent\"),'TSA Input'!G1657,\"\"))","v":""},{"$f":"IF('TSA Input'!J1657=\"\",\"\",IF(OR('TSA Input'!J1657=\"Yes\",'TSA Input'!J1657=\"Contingent\"),'TSA Input'!F1657,\"\"))","v":""},"",{"$f":"IF('TSA Input'!J1657=\"\",\"\",IF(OR('TSA Input'!J1657=\"Yes\",'TSA Input'!J1657=\"Contingent\"),'TSA Input'!D1657,\"\"))","v":""},{"$f":"IF('TSA Input'!J1657=\"\",\"\",IF(OR('TSA Input'!J1657=\"Yes\",'TSA Input'!J1657=\"Contingent\"),'TSA Input'!G1657,\"\"))","v":""},{"$f":"IF('TSA Input'!J1657=\"\",\"\",IF(OR('TSA Input'!J1657=\"Yes\",'TSA Input'!J1657=\"Contingent\"),'TSA Input'!F1657,\"\"))","v":""},"","Required","Required"]
["",null,{"$f":"IF('TSA Input'!J1658=\"\",\"\",IF(OR('TSA Input'!J1658=\"Yes\",'TSA Input'!J1658=\"Contingent\"),'TSA Input'!B1658,\"Ineligible\"))","v":""},{"$f":"IF('TSA Input'!J1658=\"\",\"\",IF(OR('TSA Input'!J1658=\"Yes\",'TSA Input'!J1658=\"Contingent\"),'TSA Input'!I1658,\"\"))","v":""},{"$f":"IF('TSA Input'!J1658=\"\",\"\",IF(OR('TSA Input'!J1658=\"Yes\",'TSA Input'!J1658=\"Contingent\"),'TSA Input'!C1658,\"\"))","v":""},{"$f":"IF('TSA Input'!J1658=\"\",\"\",IF(OR('TSA Input'!J1658=\"Yes\",'TSA Input'!J1658=\"Contingent\"),'TSA Input'!D1658,\"\"))","v":""},{"$f":"IF('TSA Input'!J1658=\"\",\"\",IF(OR('TSA Input'!J1658=\"Yes\",'TSA Input'!J1658=\"Contingent\"),'TSA Input'!G1658,\"\"))","v":""},{"$f":"IF('TSA Input'!J1658=\"\",\"\",IF(OR('TSA Input'!J1658=\"Yes\",'TSA Input'!J1658=\"Contingent\"),'TSA Input'!F1658,\"\"))","v":""},"",{"$f":"IF('TSA Input'!J1658=\"\",\"\",IF(OR('TSA Input'!J1658=\"Yes\",'TSA Input'!J1658=\"Contingent\"),'TSA Input'!D1658,\"\"))","v":""},{"$f":"IF('TSA Input'!J1658=\"\",\"\",IF(OR('TSA Input'!J1658=\"Yes\",'TSA Input'!J1658=\"Contingent\"),'TSA Input'!G1658,\"\"))","v":""},{"$f":"IF('TSA Input'!J1658=\"\",\"\",IF(OR('TSA Input'!J1658=\"Yes\",'TSA Input'!J1658=\"Contingent\"),'TSA Input'!F1658,\"\"))","v":""},"","Required","Required"]
["",null,{"$f":"IF('TSA Input'!J1659=\"\",\"\",IF(OR('TSA Input'!J1659=\"Yes\",'TSA Input'!J1659=\"Contingent\"),'TSA Input'!B1659,\"Ineligible\"))","v":""},{"$f":"IF('TSA Input'!J1659=\"\",\"\",IF(OR('TSA Input'!J1659=\"Yes\",'TSA Input'!J1659=\"Contingent\"),'TSA Input'!I1659,\"\"))","v":""},{"$f":"IF('TSA Input'!J1659=\"\",\"\",IF(OR('TSA Input'!J1659=\"Yes\",'TSA Input'!J1659=\"Contingent\"),'TSA Input'!C1659,\"\"))","v":""},{"$f":"IF('TSA Input'!J1659=\"\",\"\",IF(OR('TSA Input'!J1659=\"Yes\",'TSA Input'!J1659=\"Contingent\"),'TSA Input'!D1659,\"\"))","v":""},{"$f":"IF('TSA Input'!J1659=\"\",\"\",IF(OR('TSA Input'!J1659=\"Yes\",'TSA Input'!J1659=\"Contingent\"),'TSA Input'!G1659,\"\"))","v":""},{"$f":"IF('TSA Input'!J1659=\"\",\"\",IF(OR('TSA Input'!J1659=\"Yes\",'TSA Input'!J1659=\"Contingent\"),'TSA Input'!F1659,\"\"))","v":""},"",{"$f":"IF('TSA Input'!J1659=\"\",\"\",IF(OR('TSA Input'!J1659=\"Yes\",'TSA Input'!J1659=\"Contingent\"),'TSA Input'!D1659,\"\"))","v":""},{"$f":"IF('TSA Input'!J1659=\"\",\"\",IF(OR('TSA Input'!J1659=\"Yes\",'TSA Input'!J1659=\"Contingent\"),'TSA Input'!G1659,\"\"))","v":""},{"$f":"IF('TSA Input'!J1659=\"\",\"\",IF(OR('TSA Input'!J1659=\"Yes\",'TSA Input'!J1659=\"Contingent\"),'TSA Input'!F1659,\"\"))","v":""},"","Required","Required"]
["",null,{"$f":"IF('TSA Input'!J1660=\"\",\"\",IF(OR('TSA Input'!J1660=\"Yes\",'TSA Input'!J1660=\"Contingent\"),'TSA Input'!B1660,\"Ineligible\"))","v":""},{"$f":"IF('TSA Input'!J1660=\"\",\"\",IF(OR('TSA Input'!J1660=\"Yes\",'TSA Input'!J1660=\"Contingent\"),'TSA Input'!I1660,\"\"))","v":""},{"$f":"IF('TSA Input'!J1660=\"\",\"\",IF(OR('TSA Input'!J1660=\"Yes\",'TSA Input'!J1660=\"Contingent\"),'TSA Input'!C1660,\"\"))","v":""},{"$f":"IF('TSA Input'!J1660=\"\",\"\",IF(OR('TSA Input'!J1660=\"Yes\",'TSA Input'!J1660=\"Contingent\"),'TSA Input'!D1660,\"\"))","v":""},{"$f":"IF('TSA Input'!J1660=\"\",\"\",IF(OR('TSA Input'!J1660=\"Yes\",'TSA Input'!J1660=\"Contingent\"),'TSA Input'!G1660,\"\"))","v":""},{"$f":"IF('TSA Input'!J1660=\"\",\"\",IF(OR('TSA Input'!J1660=\"Yes\",'TSA Input'!J1660=\"Contingent\"),'TSA Input'!F1660,\"\"))","v":""},"",{"$f":"IF('TSA Input'!J1660=\"\",\"\",IF(OR('TSA Input'!J1660=\"Yes\",'TSA Input'!J1660=\"Contingent\"),'TSA Input'!D1660,\"\"))","v":""},{"$f":"IF('TSA Input'!J1660=\"\",\"\",IF(OR('TSA Input'!J1660=\"Yes\",'TSA Input'!J1660=\"Contingent\"),'TSA Input'!G1660,\"\"))","v":""},{"$f":"IF('TSA Input'!J1660=\"\",\"\",IF(OR('TSA Input'!J1660=\"Yes\",'TSA Input'!J1660=\"Contingent\"),'TSA Input'!F1660,\"\"))","v":""},"","Required","Required"]
["",null,{"$f":"IF('TSA Input'!J1661=\"\",\"\",IF(OR('TSA Input'!J1661=\"Yes\",'TSA Input'!J1661=\"Contingent\"),'TSA Input'!B1661,\"Ineligible\"))","v":""},{"$f":"IF('TSA Input'!J1661=\"\",\"\",IF(OR('TSA Input'!J1661=\"Yes\",'TSA Input'!J1661=\"Contingent\"),'TSA Input'!I1661,\"\"))","v":""},{"$f":"IF('TSA Input'!J1661=\"\",\"\",IF(OR('TSA Input'!J1661=\"Yes\",'TSA Input'!J1661=\"Contingent\"),'TSA Input'!C1661,\"\"))","v":""},{"$f":"IF('TSA Input'!J1661=\"\",\"\",IF(OR('TSA Input'!J1661=\"Yes\",'TSA Input'!J1661=\"Contingent\"),'TSA Input'!D1661,\"\"))","v":""},{"$f":"IF('TSA Input'!J1661=\"\",\"\",IF(OR('TSA Input'!J1661=\"Yes\",'TSA Input'!J1661=\"Contingent\"),'TSA Input'!G1661,\"\"))","v":""},{"$f":"IF('TSA Input'!J1661=\"\",\"\",IF(OR('TSA Input'!J1661=\"Yes\",'TSA Input'!J1661=\"Contingent\"),'TSA Input'!F1661,\"\"))","v":""},"",{"$f":"IF('TSA Input'!J1661=\"\",\"\",IF(OR('TSA Input'!J1661=\"Yes\",'TSA Input'!J1661=\"Contingent\"),'TSA Input'!D1661,\"\"))","v":""},{"$f":"IF('TSA Input'!J1661=\"\",\"\",IF(OR('TSA Input'!J1661=\"Yes\",'TSA Input'!J1661=\"Contingent\"),'TSA Input'!G1661,\"\"))","v":""},{"$f":"IF('TSA Input'!J1661=\"\",\"\",IF(OR('TSA Input'!J1661=\"Yes\",'TSA Input'!J1661=\"Contingent\"),'TSA Input'!F1661,\"\"))","v":""},"","Required","Required"]
["",null,{"$f":"IF('TSA Input'!J1662=\"\",\"\",IF(OR('TSA Input'!J1662=\"Yes\",'TSA Input'!J1662=\"Contingent\"),'TSA Input'!B1662,\"Ineligible\"))","v":""},{"$f":"IF('TSA Input'!J1662=\"\",\"\",IF(OR('TSA Input'!J1662=\"Yes\",'TSA Input'!J1662=\"Contingent\"),'TSA Input'!I1662,\"\"))","v":""},{"$f":"IF('TSA Input'!J1662=\"\",\"\",IF(OR('TSA Input'!J1662=\"Yes\",'TSA Input'!J1662=\"Contingent\"),'TSA Input'!C1662,\"\"))","v":""},{"$f":"IF('TSA Input'!J1662=\"\",\"\",IF(OR('TSA Input'!J1662=\"Yes\",'TSA Input'!J1662=\"Contingent\"),'TSA Input'!D1662,\"\"))","v":""},{"$f":"IF('TSA Input'!J1662=\"\",\"\",IF(OR('TSA Input'!J1662=\"Yes\",'TSA Input'!J1662=\"Contingent\"),'TSA Input'!G1662,\"\"))","v":""},{"$f":"IF('TSA Input'!J1662=\"\",\"\",IF(OR('TSA Input'!J1662=\"Yes\",'TSA Input'!J1662=\"Contingent\"),'TSA Input'!F1662,\"\"))","v":""},"",{"$f":"IF('TSA Input'!J1662=\"\",\"\",IF(OR('TSA Input'!J1662=\"Yes\",'TSA Input'!J1662=\"Contingent\"),'TSA Input'!D1662,\"\"))","v":""},{"$f":"IF('TSA Input'!J1662=\"\",\"\",IF(OR('TSA Input'!J1662=\"Yes\",'TSA Input'!J1662=\"Contingent\"),'TSA Input'!G1662,\"\"))","v":""},{"$f":"IF('TSA Input'!J1662=\"\",\"\",IF(OR('TSA Input'!J1662=\"Yes\",'TSA Input'!J1662=\"Contingent\"),'TSA Input'!F1662,\"\"))","v":""},"","Required","Required"]
["",null,{"$f":"IF('TSA Input'!J1663=\"\",\"\",IF(OR('TSA Input'!J1663=\"Yes\",'TSA Input'!J1663=\"Contingent\"),'TSA Input'!B1663,\"Ineligible\"))","v":""},{"$f":"IF('TSA Input'!J1663=\"\",\"\",IF(OR('TSA Input'!J1663=\"Yes\",'TSA Input'!J1663=\"Contingent\"),'TSA Input'!I1663,\"\"))","v":""},{"$f":"IF('TSA Input'!J1663=\"\",\"\",IF(OR('TSA Input'!J1663=\"Yes\",'TSA Input'!J1663=\"Contingent\"),'TSA Input'!C1663,\"\"))","v":""},{"$f":"IF('TSA Input'!J1663=\"\",\"\",IF(OR('TSA Input'!J1663=\"Yes\",'TSA Input'!J1663=\"Contingent\"),'TSA Input'!D1663,\"\"))","v":""},{"$f":"IF('TSA Input'!J1663=\"\",\"\",IF(OR('TSA Input'!J1663=\"Yes\",'TSA Input'!J1663=\"Contingent\"),'TSA Input'!G1663,\"\"))","v":""},{"$f":"IF('TSA Input'!J1663=\"\",\"\",IF(OR('TSA Input'!J1663=\"Yes\",'TSA Input'!J1663=\"Contingent\"),'TSA Input'!F1663,\"\"))","v":""},"",{"$f":"IF('TSA Input'!J1663=\"\",\"\",IF(OR('TSA Input'!J1663=\"Yes\",'TSA Input'!J1663=\"Contingent\"),'TSA Input'!D1663,\"\"))","v":""},{"$f":"IF('TSA Input'!J1663=\"\",\"\",IF(OR('TSA Input'!J1663=\"Yes\",'TSA Input'!J1663=\"Contingent\"),'TSA Input'!G1663,\"\"))","v":""},{"$f":"IF('TSA Input'!J1663=\"\",\"\",IF(OR('TSA Input'!J1663=\"Yes\",'TSA Input'!J1663=\"Contingent\"),'TSA Input'!F1663,\"\"))","v":""},"","Required","Required"]
["",null,{"$f":"IF('TSA Input'!J1664=\"\",\"\",IF(OR('TSA Input'!J1664=\"Yes\",'TSA Input'!J1664=\"Contingent\"),'TSA Input'!B1664,\"Ineligible\"))","v":""},{"$f":"IF('TSA Input'!J1664=\"\",\"\",IF(OR('TSA Input'!J1664=\"Yes\",'TSA Input'!J1664=\"Contingent\"),'TSA Input'!I1664,\"\"))","v":""},{"$f":"IF('TSA Input'!J1664=\"\",\"\",IF(OR('TSA Input'!J1664=\"Yes\",'TSA Input'!J1664=\"Contingent\"),'TSA Input'!C1664,\"\"))","v":""},{"$f":"IF('TSA Input'!J1664=\"\",\"\",IF(OR('TSA Input'!J1664=\"Yes\",'TSA Input'!J1664=\"Contingent\"),'TSA Input'!D1664,\"\"))","v":""},{"$f":"IF('TSA Input'!J1664=\"\",\"\",IF(OR('TSA Input'!J1664=\"Yes\",'TSA Input'!J1664=\"Contingent\"),'TSA Input'!G1664,\"\"))","v":""},{"$f":"IF('TSA Input'!J1664=\"\",\"\",IF(OR('TSA Input'!J1664=\"Yes\",'TSA Input'!J1664=\"Contingent\"),'TSA Input'!F1664,\"\"))","v":""},"",{"$f":"IF('TSA Input'!J1664=\"\",\"\",IF(OR('TSA Input'!J1664=\"Yes\",'TSA Input'!J1664=\"Contingent\"),'TSA Input'!D1664,\"\"))","v":""},{"$f":"IF('TSA Input'!J1664=\"\",\"\",IF(OR('TSA Input'!J1664=\"Yes\",'TSA Input'!J1664=\"Contingent\"),'TSA Input'!G1664,\"\"))","v":""},{"$f":"IF('TSA Input'!J1664=\"\",\"\",IF(OR('TSA Input'!J1664=\"Yes\",'TSA Input'!J1664=\"Contingent\"),'TSA Input'!F1664,\"\"))","v":""},"","Required","Required"]
["",null,{"$f":"IF('TSA Input'!J1665=\"\",\"\",IF(OR('TSA Input'!J1665=\"Yes\",'TSA Input'!J1665=\"Contingent\"),'TSA Input'!B1665,\"Ineligible\"))","v":""},{"$f":"IF('TSA Input'!J1665=\"\",\"\",IF(OR('TSA Input'!J1665=\"Yes\",'TSA Input'!J1665=\"Contingent\"),'TSA Input'!I1665,\"\"))","v":""},{"$f":"IF('TSA Input'!J1665=\"\",\"\",IF(OR('TSA Input'!J1665=\"Yes\",'TSA Input'!J1665=\"Contingent\"),'TSA Input'!C1665,\"\"))","v":""},{"$f":"IF('TSA Input'!J1665=\"\",\"\",IF(OR('TSA Input'!J1665=\"Yes\",'TSA Input'!J1665=\"Contingent\"),'TSA Input'!D1665,\"\"))","v":""},{"$f":"IF('TSA Input'!J1665=\"\",\"\",IF(OR('TSA Input'!J1665=\"Yes\",'TSA Input'!J1665=\"Contingent\"),'TSA Input'!G1665,\"\"))","v":""},{"$f":"IF('TSA Input'!J1665=\"\",\"\",IF(OR('TSA Input'!J1665=\"Yes\",'TSA Input'!J1665=\"Contingent\"),'TSA Input'!F1665,\"\"))","v":""},"",{"$f":"IF('TSA Input'!J1665=\"\",\"\",IF(OR('TSA Input'!J1665=\"Yes\",'TSA Input'!J1665=\"Contingent\"),'TSA Input'!D1665,\"\"))","v":""},{"$f":"IF('TSA Input'!J1665=\"\",\"\",IF(OR('TSA Input'!J1665=\"Yes\",'TSA Input'!J1665=\"Contingent\"),'TSA Input'!G1665,\"\"))","v":""},{"$f":"IF('TSA Input'!J1665=\"\",\"\",IF(OR('TSA Input'!J1665=\"Yes\",'TSA Input'!J1665=\"Contingent\"),'TSA Input'!F1665,\"\"))","v":""},"","Required","Required"]
["",null,{"$f":"IF('TSA Input'!J1666=\"\",\"\",IF(OR('TSA Input'!J1666=\"Yes\",'TSA Input'!J1666=\"Contingent\"),'TSA Input'!B1666,\"Ineligible\"))","v":""},{"$f":"IF('TSA Input'!J1666=\"\",\"\",IF(OR('TSA Input'!J1666=\"Yes\",'TSA Input'!J1666=\"Contingent\"),'TSA Input'!I1666,\"\"))","v":""},{"$f":"IF('TSA Input'!J1666=\"\",\"\",IF(OR('TSA Input'!J1666=\"Yes\",'TSA Input'!J1666=\"Contingent\"),'TSA Input'!C1666,\"\"))","v":""},{"$f":"IF('TSA Input'!J1666=\"\",\"\",IF(OR('TSA Input'!J1666=\"Yes\",'TSA Input'!J1666=\"Contingent\"),'TSA Input'!D1666,\"\"))","v":""},{"$f":"IF('TSA Input'!J1666=\"\",\"\",IF(OR('TSA Input'!J1666=\"Yes\",'TSA Input'!J1666=\"Contingent\"),'TSA Input'!G1666,\"\"))","v":""},{"$f":"IF('TSA Input'!J1666=\"\",\"\",IF(OR('TSA Input'!J1666=\"Yes\",'TSA Input'!J1666=\"Contingent\"),'TSA Input'!F1666,\"\"))","v":""},"",{"$f":"IF('TSA Input'!J1666=\"\",\"\",IF(OR('TSA Input'!J1666=\"Yes\",'TSA Input'!J1666=\"Contingent\"),'TSA Input'!D1666,\"\"))","v":""},{"$f":"IF('TSA Input'!J1666=\"\",\"\",IF(OR('TSA Input'!J1666=\"Yes\",'TSA Input'!J1666=\"Contingent\"),'TSA Input'!G1666,\"\"))","v":""},{"$f":"IF('TSA Input'!J1666=\"\",\"\",IF(OR('TSA Input'!J1666=\"Yes\",'TSA Input'!J1666=\"Contingent\"),'TSA Input'!F1666,\"\"))","v":""},"","Required","Required"]
["",null,{"$f":"IF('TSA Input'!J1667=\"\",\"\",IF(OR('TSA Input'!J1667=\"Yes\",'TSA Input'!J1667=\"Contingent\"),'TSA Input'!B1667,\"Ineligible\"))","v":""},{"$f":"IF('TSA Input'!J1667=\"\",\"\",IF(OR('TSA Input'!J1667=\"Yes\",'TSA Input'!J1667=\"Contingent\"),'TSA Input'!I1667,\"\"))","v":""},{"$f":"IF('TSA Input'!J1667=\"\",\"\",IF(OR('TSA Input'!J1667=\"Yes\",'TSA Input'!J1667=\"Contingent\"),'TSA Input'!C1667,\"\"))","v":""},{"$f":"IF('TSA Input'!J1667=\"\",\"\",IF(OR('TSA Input'!J1667=\"Yes\",'TSA Input'!J1667=\"Contingent\"),'TSA Input'!D1667,\"\"))","v":""},{"$f":"IF('TSA Input'!J1667=\"\",\"\",IF(OR('TSA Input'!J1667=\"Yes\",'TSA Input'!J1667=\"Contingent\"),'TSA Input'!G1667,\"\"))","v":""},{"$f":"IF('TSA Input'!J1667=\"\",\"\",IF(OR('TSA Input'!J1667=\"Yes\",'TSA Input'!J1667=\"Contingent\"),'TSA Input'!F1667,\"\"))","v":""},"",{"$f":"IF('TSA Input'!J1667=\"\",\"\",IF(OR('TSA Input'!J1667=\"Yes\",'TSA Input'!J1667=\"Contingent\"),'TSA Input'!D1667,\"\"))","v":""},{"$f":"IF('TSA Input'!J1667=\"\",\"\",IF(OR('TSA Input'!J1667=\"Yes\",'TSA Input'!J1667=\"Contingent\"),'TSA Input'!G1667,\"\"))","v":""},{"$f":"IF('TSA Input'!J1667=\"\",\"\",IF(OR('TSA Input'!J1667=\"Yes\",'TSA Input'!J1667=\"Contingent\"),'TSA Input'!F1667,\"\"))","v":""},"","Required","Required"]
["",null,{"$f":"IF('TSA Input'!J1668=\"\",\"\",IF(OR('TSA Input'!J1668=\"Yes\",'TSA Input'!J1668=\"Contingent\"),'TSA Input'!B1668,\"Ineligible\"))","v":""},{"$f":"IF('TSA Input'!J1668=\"\",\"\",IF(OR('TSA Input'!J1668=\"Yes\",'TSA Input'!J1668=\"Contingent\"),'TSA Input'!I1668,\"\"))","v":""},{"$f":"IF('TSA Input'!J1668=\"\",\"\",IF(OR('TSA Input'!J1668=\"Yes\",'TSA Input'!J1668=\"Contingent\"),'TSA Input'!C1668,\"\"))","v":""},{"$f":"IF('TSA Input'!J1668=\"\",\"\",IF(OR('TSA Input'!J1668=\"Yes\",'TSA Input'!J1668=\"Contingent\"),'TSA Input'!D1668,\"\"))","v":""},{"$f":"IF('TSA Input'!J1668=\"\",\"\",IF(OR('TSA Input'!J1668=\"Yes\",'TSA Input'!J1668=\"Contingent\"),'TSA Input'!G1668,\"\"))","v":""},{"$f":"IF('TSA Input'!J1668=\"\",\"\",IF(OR('TSA Input'!J1668=\"Yes\",'TSA Input'!J1668=\"Contingent\"),'TSA Input'!F1668,\"\"))","v":""},{"$f":"IF($C1706=\"\",\"\",SUM(F1706:H1706))","v":""},{"$f":"IF('TSA Input'!J1668=\"\",\"\",IF(OR('TSA Input'!J1668=\"Yes\",'TSA Input'!J1668=\"Contingent\"),'TSA Input'!D1668,\"\"))","v":""},{"$f":"IF('TSA Input'!J1668=\"\",\"\",IF(OR('TSA Input'!J1668=\"Yes\",'TSA Input'!J1668=\"Contingent\"),'TSA Input'!G1668,\"\"))","v":""},{"$f":"IF('TSA Input'!J1668=\"\",\"\",IF(OR('TSA Input'!J1668=\"Yes\",'TSA Input'!J1668=\"Contingent\"),'TSA Input'!F1668,\"\"))","v":""},{"$f":"IF($C1706=\"\",\"\",SUM(J1706:L1706))","v":""},"Required","Required"]
["",null,{"$f":"IF('TSA Input'!J1669=\"\",\"\",IF(OR('TSA Input'!J1669=\"Yes\",'TSA Input'!J1669=\"Contingent\"),'TSA Input'!B1669,\"Ineligible\"))","v":""},{"$f":"IF('TSA Input'!J1669=\"\",\"\",IF(OR('TSA Input'!J1669=\"Yes\",'TSA Input'!J1669=\"Contingent\"),'TSA Input'!I1669,\"\"))","v":""},{"$f":"IF('TSA Input'!J1669=\"\",\"\",IF(OR('TSA Input'!J1669=\"Yes\",'TSA Input'!J1669=\"Contingent\"),'TSA Input'!C1669,\"\"))","v":""},{"$f":"IF('TSA Input'!J1669=\"\",\"\",IF(OR('TSA Input'!J1669=\"Yes\",'TSA Input'!J1669=\"Contingent\"),'TSA Input'!D1669,\"\"))","v":""},{"$f":"IF('TSA Input'!J1669=\"\",\"\",IF(OR('TSA Input'!J1669=\"Yes\",'TSA Input'!J1669=\"Contingent\"),'TSA Input'!G1669,\"\"))","v":""},{"$f":"IF('TSA Input'!J1669=\"\",\"\",IF(OR('TSA Input'!J1669=\"Yes\",'TSA Input'!J1669=\"Contingent\"),'TSA Input'!F1669,\"\"))","v":""},"",{"$f":"IF('TSA Input'!J1669=\"\",\"\",IF(OR('TSA Input'!J1669=\"Yes\",'TSA Input'!J1669=\"Contingent\"),'TSA Input'!D1669,\"\"))","v":""},{"$f":"IF('TSA Input'!J1669=\"\",\"\",IF(OR('TSA Input'!J1669=\"Yes\",'TSA Input'!J1669=\"Contingent\"),'TSA Input'!G1669,\"\"))","v":""},{"$f":"IF('TSA Input'!J1669=\"\",\"\",IF(OR('TSA Input'!J1669=\"Yes\",'TSA Input'!J1669=\"Contingent\"),'TSA Input'!F1669,\"\"))","v":""},"","Required","Required"]
["",null,{"$f":"IF('TSA Input'!J1670=\"\",\"\",IF(OR('TSA Input'!J1670=\"Yes\",'TSA Input'!J1670=\"Contingent\"),'TSA Input'!B1670,\"Ineligible\"))","v":""},{"$f":"IF('TSA Input'!J1670=\"\",\"\",IF(OR('TSA Input'!J1670=\"Yes\",'TSA Input'!J1670=\"Contingent\"),'TSA Input'!I1670,\"\"))","v":""},{"$f":"IF('TSA Input'!J1670=\"\",\"\",IF(OR('TSA Input'!J1670=\"Yes\",'TSA Input'!J1670=\"Contingent\"),'TSA Input'!C1670,\"\"))","v":""},{"$f":"IF('TSA Input'!J1670=\"\",\"\",IF(OR('TSA Input'!J1670=\"Yes\",'TSA Input'!J1670=\"Contingent\"),'TSA Input'!D1670,\"\"))","v":""},{"$f":"IF('TSA Input'!J1670=\"\",\"\",IF(OR('TSA Input'!J1670=\"Yes\",'TSA Input'!J1670=\"Contingent\"),'TSA Input'!G1670,\"\"))","v":""},{"$f":"IF('TSA Input'!J1670=\"\",\"\",IF(OR('TSA Input'!J1670=\"Yes\",'TSA Input'!J1670=\"Contingent\"),'TSA Input'!F1670,\"\"))","v":""},"",{"$f":"IF('TSA Input'!J1670=\"\",\"\",IF(OR('TSA Input'!J1670=\"Yes\",'TSA Input'!J1670=\"Contingent\"),'TSA Input'!D1670,\"\"))","v":""},{"$f":"IF('TSA Input'!J1670=\"\",\"\",IF(OR('TSA Input'!J1670=\"Yes\",'TSA Input'!J1670=\"Contingent\"),'TSA Input'!G1670,\"\"))","v":""},{"$f":"IF('TSA Input'!J1670=\"\",\"\",IF(OR('TSA Input'!J1670=\"Yes\",'TSA Input'!J1670=\"Contingent\"),'TSA Input'!F1670,\"\"))","v":""},"","Required","Required"]
["",null,{"$f":"IF('TSA Input'!J1671=\"\",\"\",IF(OR('TSA Input'!J1671=\"Yes\",'TSA Input'!J1671=\"Contingent\"),'TSA Input'!B1671,\"Ineligible\"))","v":""},{"$f":"IF('TSA Input'!J1671=\"\",\"\",IF(OR('TSA Input'!J1671=\"Yes\",'TSA Input'!J1671=\"Contingent\"),'TSA Input'!I1671,\"\"))","v":""},{"$f":"IF('TSA Input'!J1671=\"\",\"\",IF(OR('TSA Input'!J1671=\"Yes\",'TSA Input'!J1671=\"Contingent\"),'TSA Input'!C1671,\"\"))","v":""},{"$f":"IF('TSA Input'!J1671=\"\",\"\",IF(OR('TSA Input'!J1671=\"Yes\",'TSA Input'!J1671=\"Contingent\"),'TSA Input'!D1671,\"\"))","v":""},{"$f":"IF('TSA Input'!J1671=\"\",\"\",IF(OR('TSA Input'!J1671=\"Yes\",'TSA Input'!J1671=\"Contingent\"),'TSA Input'!G1671,\"\"))","v":""},{"$f":"IF('TSA Input'!J1671=\"\",\"\",IF(OR('TSA Input'!J1671=\"Yes\",'TSA Input'!J1671=\"Contingent\"),'TSA Input'!F1671,\"\"))","v":""},"",{"$f":"IF('TSA Input'!J1671=\"\",\"\",IF(OR('TSA Input'!J1671=\"Yes\",'TSA Input'!J1671=\"Contingent\"),'TSA Input'!D1671,\"\"))","v":""},{"$f":"IF('TSA Input'!J1671=\"\",\"\",IF(OR('TSA Input'!J1671=\"Yes\",'TSA Input'!J1671=\"Contingent\"),'TSA Input'!G1671,\"\"))","v":""},{"$f":"IF('TSA Input'!J1671=\"\",\"\",IF(OR('TSA Input'!J1671=\"Yes\",'TSA Input'!J1671=\"Contingent\"),'TSA Input'!F1671,\"\"))","v":""},"","Required","Required"]
["",null,{"$f":"IF('TSA Input'!J1672=\"\",\"\",IF(OR('TSA Input'!J1672=\"Yes\",'TSA Input'!J1672=\"Contingent\"),'TSA Input'!B1672,\"Ineligible\"))","v":""},{"$f":"IF('TSA Input'!J1672=\"\",\"\",IF(OR('TSA Input'!J1672=\"Yes\",'TSA Input'!J1672=\"Contingent\"),'TSA Input'!I1672,\"\"))","v":""},{"$f":"IF('TSA Input'!J1672=\"\",\"\",IF(OR('TSA Input'!J1672=\"Yes\",'TSA Input'!J1672=\"Contingent\"),'TSA Input'!C1672,\"\"))","v":""},{"$f":"IF('TSA Input'!J1672=\"\",\"\",IF(OR('TSA Input'!J1672=\"Yes\",'TSA Input'!J1672=\"Contingent\"),'TSA Input'!D1672,\"\"))","v":""},{"$f":"IF('TSA Input'!J1672=\"\",\"\",IF(OR('TSA Input'!J1672=\"Yes\",'TSA Input'!J1672=\"Contingent\"),'TSA Input'!G1672,\"\"))","v":""},{"$f":"IF('TSA Input'!J1672=\"\",\"\",IF(OR('TSA Input'!J1672=\"Yes\",'TSA Input'!J1672=\"Contingent\"),'TSA Input'!F1672,\"\"))","v":""},"",{"$f":"IF('TSA Input'!J1672=\"\",\"\",IF(OR('TSA Input'!J1672=\"Yes\",'TSA Input'!J1672=\"Contingent\"),'TSA Input'!D1672,\"\"))","v":""},{"$f":"IF('TSA Input'!J1672=\"\",\"\",IF(OR('TSA Input'!J1672=\"Yes\",'TSA Input'!J1672=\"Contingent\"),'TSA Input'!G1672,\"\"))","v":""},{"$f":"IF('TSA Input'!J1672=\"\",\"\",IF(OR('TSA Input'!J1672=\"Yes\",'TSA Input'!J1672=\"Contingent\"),'TSA Input'!F1672,\"\"))","v":""},"","Required","Required"]
["",null,{"$f":"IF('TSA Input'!J1673=\"\",\"\",IF(OR('TSA Input'!J1673=\"Yes\",'TSA Input'!J1673=\"Contingent\"),'TSA Input'!B1673,\"Ineligible\"))","v":""},{"$f":"IF('TSA Input'!J1673=\"\",\"\",IF(OR('TSA Input'!J1673=\"Yes\",'TSA Input'!J1673=\"Contingent\"),'TSA Input'!I1673,\"\"))","v":""},{"$f":"IF('TSA Input'!J1673=\"\",\"\",IF(OR('TSA Input'!J1673=\"Yes\",'TSA Input'!J1673=\"Contingent\"),'TSA Input'!C1673,\"\"))","v":""},{"$f":"IF('TSA Input'!J1673=\"\",\"\",IF(OR('TSA Input'!J1673=\"Yes\",'TSA Input'!J1673=\"Contingent\"),'TSA Input'!D1673,\"\"))","v":""},{"$f":"IF('TSA Input'!J1673=\"\",\"\",IF(OR('TSA Input'!J1673=\"Yes\",'TSA Input'!J1673=\"Contingent\"),'TSA Input'!G1673,\"\"))","v":""},{"$f":"IF('TSA Input'!J1673=\"\",\"\",IF(OR('TSA Input'!J1673=\"Yes\",'TSA Input'!J1673=\"Contingent\"),'TSA Input'!F1673,\"\"))","v":""},"",{"$f":"IF('TSA Input'!J1673=\"\",\"\",IF(OR('TSA Input'!J1673=\"Yes\",'TSA Input'!J1673=\"Contingent\"),'TSA Input'!D1673,\"\"))","v":""},{"$f":"IF('TSA Input'!J1673=\"\",\"\",IF(OR('TSA Input'!J1673=\"Yes\",'TSA Input'!J1673=\"Contingent\"),'TSA Input'!G1673,\"\"))","v":""},{"$f":"IF('TSA Input'!J1673=\"\",\"\",IF(OR('TSA Input'!J1673=\"Yes\",'TSA Input'!J1673=\"Contingent\"),'TSA Input'!F1673,\"\"))","v":""},"","Required","Required"]
["",null,{"$f":"IF('TSA Input'!J1674=\"\",\"\",IF(OR('TSA Input'!J1674=\"Yes\",'TSA Input'!J1674=\"Contingent\"),'TSA Input'!B1674,\"Ineligible\"))","v":""},{"$f":"IF('TSA Input'!J1674=\"\",\"\",IF(OR('TSA Input'!J1674=\"Yes\",'TSA Input'!J1674=\"Contingent\"),'TSA Input'!I1674,\"\"))","v":""},{"$f":"IF('TSA Input'!J1674=\"\",\"\",IF(OR('TSA Input'!J1674=\"Yes\",'TSA Input'!J1674=\"Contingent\"),'TSA Input'!C1674,\"\"))","v":""},{"$f":"IF('TSA Input'!J1674=\"\",\"\",IF(OR('TSA Input'!J1674=\"Yes\",'TSA Input'!J1674=\"Contingent\"),'TSA Input'!D1674,\"\"))","v":""},{"$f":"IF('TSA Input'!J1674=\"\",\"\",IF(OR('TSA Input'!J1674=\"Yes\",'TSA Input'!J1674=\"Contingent\"),'TSA Input'!G1674,\"\"))","v":""},{"$f":"IF('TSA Input'!J1674=\"\",\"\",IF(OR('TSA Input'!J1674=\"Yes\",'TSA Input'!J1674=\"Contingent\"),'TSA Input'!F1674,\"\"))","v":""},"",{"$f":"IF('TSA Input'!J1674=\"\",\"\",IF(OR('TSA Input'!J1674=\"Yes\",'TSA Input'!J1674=\"Contingent\"),'TSA Input'!D1674,\"\"))","v":""},{"$f":"IF('TSA Input'!J1674=\"\",\"\",IF(OR('TSA Input'!J1674=\"Yes\",'TSA Input'!J1674=\"Contingent\"),'TSA Input'!G1674,\"\"))","v":""},{"$f":"IF('TSA Input'!J1674=\"\",\"\",IF(OR('TSA Input'!J1674=\"Yes\",'TSA Input'!J1674=\"Contingent\"),'TSA Input'!F1674,\"\"))","v":""},"","Required","Required"]
["",null,{"$f":"IF('TSA Input'!J1675=\"\",\"\",IF(OR('TSA Input'!J1675=\"Yes\",'TSA Input'!J1675=\"Contingent\"),'TSA Input'!B1675,\"Ineligible\"))","v":""},{"$f":"IF('TSA Input'!J1675=\"\",\"\",IF(OR('TSA Input'!J1675=\"Yes\",'TSA Input'!J1675=\"Contingent\"),'TSA Input'!I1675,\"\"))","v":""},{"$f":"IF('TSA Input'!J1675=\"\",\"\",IF(OR('TSA Input'!J1675=\"Yes\",'TSA Input'!J1675=\"Contingent\"),'TSA Input'!C1675,\"\"))","v":""},{"$f":"IF('TSA Input'!J1675=\"\",\"\",IF(OR('TSA Input'!J1675=\"Yes\",'TSA Input'!J1675=\"Contingent\"),'TSA Input'!D1675,\"\"))","v":""},{"$f":"IF('TSA Input'!J1675=\"\",\"\",IF(OR('TSA Input'!J1675=\"Yes\",'TSA Input'!J1675=\"Contingent\"),'TSA Input'!G1675,\"\"))","v":""},{"$f":"IF('TSA Input'!J1675=\"\",\"\",IF(OR('TSA Input'!J1675=\"Yes\",'TSA Input'!J1675=\"Contingent\"),'TSA Input'!F1675,\"\"))","v":""},"",{"$f":"IF('TSA Input'!J1675=\"\",\"\",IF(OR('TSA Input'!J1675=\"Yes\",'TSA Input'!J1675=\"Contingent\"),'TSA Input'!D1675,\"\"))","v":""},{"$f":"IF('TSA Input'!J1675=\"\",\"\",IF(OR('TSA Input'!J1675=\"Yes\",'TSA Input'!J1675=\"Contingent\"),'TSA Input'!G1675,\"\"))","v":""},{"$f":"IF('TSA Input'!J1675=\"\",\"\",IF(OR('TSA Input'!J1675=\"Yes\",'TSA Input'!J1675=\"Contingent\"),'TSA Input'!F1675,\"\"))","v":""},"","Required","Required"]
["",null,{"$f":"IF('TSA Input'!J1676=\"\",\"\",IF(OR('TSA Input'!J1676=\"Yes\",'TSA Input'!J1676=\"Contingent\"),'TSA Input'!B1676,\"Ineligible\"))","v":""},{"$f":"IF('TSA Input'!J1676=\"\",\"\",IF(OR('TSA Input'!J1676=\"Yes\",'TSA Input'!J1676=\"Contingent\"),'TSA Input'!I1676,\"\"))","v":""},{"$f":"IF('TSA Input'!J1676=\"\",\"\",IF(OR('TSA Input'!J1676=\"Yes\",'TSA Input'!J1676=\"Contingent\"),'TSA Input'!C1676,\"\"))","v":""},{"$f":"IF('TSA Input'!J1676=\"\",\"\",IF(OR('TSA Input'!J1676=\"Yes\",'TSA Input'!J1676=\"Contingent\"),'TSA Input'!D1676,\"\"))","v":""},{"$f":"IF('TSA Input'!J1676=\"\",\"\",IF(OR('TSA Input'!J1676=\"Yes\",'TSA Input'!J1676=\"Contingent\"),'TSA Input'!G1676,\"\"))","v":""},{"$f":"IF('TSA Input'!J1676=\"\",\"\",IF(OR('TSA Input'!J1676=\"Yes\",'TSA Input'!J1676=\"Contingent\"),'TSA Input'!F1676,\"\"))","v":""},"",{"$f":"IF('TSA Input'!J1676=\"\",\"\",IF(OR('TSA Input'!J1676=\"Yes\",'TSA Input'!J1676=\"Contingent\"),'TSA Input'!D1676,\"\"))","v":""},{"$f":"IF('TSA Input'!J1676=\"\",\"\",IF(OR('TSA Input'!J1676=\"Yes\",'TSA Input'!J1676=\"Contingent\"),'TSA Input'!G1676,\"\"))","v":""},{"$f":"IF('TSA Input'!J1676=\"\",\"\",IF(OR('TSA Input'!J1676=\"Yes\",'TSA Input'!J1676=\"Contingent\"),'TSA Input'!F1676,\"\"))","v":""},"","Required","Required"]
["",null,{"$f":"IF('TSA Input'!J1677=\"\",\"\",IF(OR('TSA Input'!J1677=\"Yes\",'TSA Input'!J1677=\"Contingent\"),'TSA Input'!B1677,\"Ineligible\"))","v":""},{"$f":"IF('TSA Input'!J1677=\"\",\"\",IF(OR('TSA Input'!J1677=\"Yes\",'TSA Input'!J1677=\"Contingent\"),'TSA Input'!I1677,\"\"))","v":""},{"$f":"IF('TSA Input'!J1677=\"\",\"\",IF(OR('TSA Input'!J1677=\"Yes\",'TSA Input'!J1677=\"Contingent\"),'TSA Input'!C1677,\"\"))","v":""},{"$f":"IF('TSA Input'!J1677=\"\",\"\",IF(OR('TSA Input'!J1677=\"Yes\",'TSA Input'!J1677=\"Contingent\"),'TSA Input'!D1677,\"\"))","v":""},{"$f":"IF('TSA Input'!J1677=\"\",\"\",IF(OR('TSA Input'!J1677=\"Yes\",'TSA Input'!J1677=\"Contingent\"),'TSA Input'!G1677,\"\"))","v":""},{"$f":"IF('TSA Input'!J1677=\"\",\"\",IF(OR('TSA Input'!J1677=\"Yes\",'TSA Input'!J1677=\"Contingent\"),'TSA Input'!F1677,\"\"))","v":""},"",{"$f":"IF('TSA Input'!J1677=\"\",\"\",IF(OR('TSA Input'!J1677=\"Yes\",'TSA Input'!J1677=\"Contingent\"),'TSA Input'!D1677,\"\"))","v":""},{"$f":"IF('TSA Input'!J1677=\"\",\"\",IF(OR('TSA Input'!J1677=\"Yes\",'TSA Input'!J1677=\"Contingent\"),'TSA Input'!G1677,\"\"))","v":""},{"$f":"IF('TSA Input'!J1677=\"\",\"\",IF(OR('TSA Input'!J1677=\"Yes\",'TSA Input'!J1677=\"Contingent\"),'TSA Input'!F1677,\"\"))","v":""},"","Required","Required"]
["",null,{"$f":"IF('TSA Input'!J1678=\"\",\"\",IF(OR('TSA Input'!J1678=\"Yes\",'TSA Input'!J1678=\"Contingent\"),'TSA Input'!B1678,\"Ineligible\"))","v":""},{"$f":"IF('TSA Input'!J1678=\"\",\"\",IF(OR('TSA Input'!J1678=\"Yes\",'TSA Input'!J1678=\"Contingent\"),'TSA Input'!I1678,\"\"))","v":""},{"$f":"IF('TSA Input'!J1678=\"\",\"\",IF(OR('TSA Input'!J1678=\"Yes\",'TSA Input'!J1678=\"Contingent\"),'TSA Input'!C1678,\"\"))","v":""},{"$f":"IF('TSA Input'!J1678=\"\",\"\",IF(OR('TSA Input'!J1678=\"Yes\",'TSA Input'!J1678=\"Contingent\"),'TSA Input'!D1678,\"\"))","v":""},{"$f":"IF('TSA Input'!J1678=\"\",\"\",IF(OR('TSA Input'!J1678=\"Yes\",'TSA Input'!J1678=\"Contingent\"),'TSA Input'!G1678,\"\"))","v":""},{"$f":"IF('TSA Input'!J1678=\"\",\"\",IF(OR('TSA Input'!J1678=\"Yes\",'TSA Input'!J1678=\"Contingent\"),'TSA Input'!F1678,\"\"))","v":""},"",{"$f":"IF('TSA Input'!J1678=\"\",\"\",IF(OR('TSA Input'!J1678=\"Yes\",'TSA Input'!J1678=\"Contingent\"),'TSA Input'!D1678,\"\"))","v":""},{"$f":"IF('TSA Input'!J1678=\"\",\"\",IF(OR('TSA Input'!J1678=\"Yes\",'TSA Input'!J1678=\"Contingent\"),'TSA Input'!G1678,\"\"))","v":""},{"$f":"IF('TSA Input'!J1678=\"\",\"\",IF(OR('TSA Input'!J1678=\"Yes\",'TSA Input'!J1678=\"Contingent\"),'TSA Input'!F1678,\"\"))","v":""},"","Required","Required"]
["",null,{"$f":"IF('TSA Input'!J1679=\"\",\"\",IF(OR('TSA Input'!J1679=\"Yes\",'TSA Input'!J1679=\"Contingent\"),'TSA Input'!B1679,\"Ineligible\"))","v":""},{"$f":"IF('TSA Input'!J1679=\"\",\"\",IF(OR('TSA Input'!J1679=\"Yes\",'TSA Input'!J1679=\"Contingent\"),'TSA Input'!I1679,\"\"))","v":""},{"$f":"IF('TSA Input'!J1679=\"\",\"\",IF(OR('TSA Input'!J1679=\"Yes\",'TSA Input'!J1679=\"Contingent\"),'TSA Input'!C1679,\"\"))","v":""},{"$f":"IF('TSA Input'!J1679=\"\",\"\",IF(OR('TSA Input'!J1679=\"Yes\",'TSA Input'!J1679=\"Contingent\"),'TSA Input'!D1679,\"\"))","v":""},{"$f":"IF('TSA Input'!J1679=\"\",\"\",IF(OR('TSA Input'!J1679=\"Yes\",'TSA Input'!J1679=\"Contingent\"),'TSA Input'!G1679,\"\"))","v":""},{"$f":"IF('TSA Input'!J1679=\"\",\"\",IF(OR('TSA Input'!J1679=\"Yes\",'TSA Input'!J1679=\"Contingent\"),'TSA Input'!F1679,\"\"))","v":""},"",{"$f":"IF('TSA Input'!J1679=\"\",\"\",IF(OR('TSA Input'!J1679=\"Yes\",'TSA Input'!J1679=\"Contingent\"),'TSA Input'!D1679,\"\"))","v":""},{"$f":"IF('TSA Input'!J1679=\"\",\"\",IF(OR('TSA Input'!J1679=\"Yes\",'TSA Input'!J1679=\"Contingent\"),'TSA Input'!G1679,\"\"))","v":""},{"$f":"IF('TSA Input'!J1679=\"\",\"\",IF(OR('TSA Input'!J1679=\"Yes\",'TSA Input'!J1679=\"Contingent\"),'TSA Input'!F1679,\"\"))","v":""},"","Required","Required"]
["",null,{"$f":"IF('TSA Input'!J1680=\"\",\"\",IF(OR('TSA Input'!J1680=\"Yes\",'TSA Input'!J1680=\"Contingent\"),'TSA Input'!B1680,\"Ineligible\"))","v":""},{"$f":"IF('TSA Input'!J1680=\"\",\"\",IF(OR('TSA Input'!J1680=\"Yes\",'TSA Input'!J1680=\"Contingent\"),'TSA Input'!I1680,\"\"))","v":""},{"$f":"IF('TSA Input'!J1680=\"\",\"\",IF(OR('TSA Input'!J1680=\"Yes\",'TSA Input'!J1680=\"Contingent\"),'TSA Input'!C1680,\"\"))","v":""},{"$f":"IF('TSA Input'!J1680=\"\",\"\",IF(OR('TSA Input'!J1680=\"Yes\",'TSA Input'!J1680=\"Contingent\"),'TSA Input'!D1680,\"\"))","v":""},{"$f":"IF('TSA Input'!J1680=\"\",\"\",IF(OR('TSA Input'!J1680=\"Yes\",'TSA Input'!J1680=\"Contingent\"),'TSA Input'!G1680,\"\"))","v":""},{"$f":"IF('TSA Input'!J1680=\"\",\"\",IF(OR('TSA Input'!J1680=\"Yes\",'TSA Input'!J1680=\"Contingent\"),'TSA Input'!F1680,\"\"))","v":""},"",{"$f":"IF('TSA Input'!J1680=\"\",\"\",IF(OR('TSA Input'!J1680=\"Yes\",'TSA Input'!J1680=\"Contingent\"),'TSA Input'!D1680,\"\"))","v":""},{"$f":"IF('TSA Input'!J1680=\"\",\"\",IF(OR('TSA Input'!J1680=\"Yes\",'TSA Input'!J1680=\"Contingent\"),'TSA Input'!G1680,\"\"))","v":""},{"$f":"IF('TSA Input'!J1680=\"\",\"\",IF(OR('TSA Input'!J1680=\"Yes\",'TSA Input'!J1680=\"Contingent\"),'TSA Input'!F1680,\"\"))","v":""},"","Required","Required"]
["",null,{"$f":"IF('TSA Input'!J1681=\"\",\"\",IF(OR('TSA Input'!J1681=\"Yes\",'TSA Input'!J1681=\"Contingent\"),'TSA Input'!B1681,\"Ineligible\"))","v":""},{"$f":"IF('TSA Input'!J1681=\"\",\"\",IF(OR('TSA Input'!J1681=\"Yes\",'TSA Input'!J1681=\"Contingent\"),'TSA Input'!I1681,\"\"))","v":""},{"$f":"IF('TSA Input'!J1681=\"\",\"\",IF(OR('TSA Input'!J1681=\"Yes\",'TSA Input'!J1681=\"Contingent\"),'TSA Input'!C1681,\"\"))","v":""},{"$f":"IF('TSA Input'!J1681=\"\",\"\",IF(OR('TSA Input'!J1681=\"Yes\",'TSA Input'!J1681=\"Contingent\"),'TSA Input'!D1681,\"\"))","v":""},{"$f":"IF('TSA Input'!J1681=\"\",\"\",IF(OR('TSA Input'!J1681=\"Yes\",'TSA Input'!J1681=\"Contingent\"),'TSA Input'!G1681,\"\"))","v":""},{"$f":"IF('TSA Input'!J1681=\"\",\"\",IF(OR('TSA Input'!J1681=\"Yes\",'TSA Input'!J1681=\"Contingent\"),'TSA Input'!F1681,\"\"))","v":""},"",{"$f":"IF('TSA Input'!J1681=\"\",\"\",IF(OR('TSA Input'!J1681=\"Yes\",'TSA Input'!J1681=\"Contingent\"),'TSA Input'!D1681,\"\"))","v":""},{"$f":"IF('TSA Input'!J1681=\"\",\"\",IF(OR('TSA Input'!J1681=\"Yes\",'TSA Input'!J1681=\"Contingent\"),'TSA Input'!G1681,\"\"))","v":""},{"$f":"IF('TSA Input'!J1681=\"\",\"\",IF(OR('TSA Input'!J1681=\"Yes\",'TSA Input'!J1681=\"Contingent\"),'TSA Input'!F1681,\"\"))","v":""},"","Required","Required"]
["",null,{"$f":"IF('TSA Input'!J1682=\"\",\"\",IF(OR('TSA Input'!J1682=\"Yes\",'TSA Input'!J1682=\"Contingent\"),'TSA Input'!B1682,\"Ineligible\"))","v":""},{"$f":"IF('TSA Input'!J1682=\"\",\"\",IF(OR('TSA Input'!J1682=\"Yes\",'TSA Input'!J1682=\"Contingent\"),'TSA Input'!I1682,\"\"))","v":""},{"$f":"IF('TSA Input'!J1682=\"\",\"\",IF(OR('TSA Input'!J1682=\"Yes\",'TSA Input'!J1682=\"Contingent\"),'TSA Input'!C1682,\"\"))","v":""},{"$f":"IF('TSA Input'!J1682=\"\",\"\",IF(OR('TSA Input'!J1682=\"Yes\",'TSA Input'!J1682=\"Contingent\"),'TSA Input'!D1682,\"\"))","v":""},{"$f":"IF('TSA Input'!J1682=\"\",\"\",IF(OR('TSA Input'!J1682=\"Yes\",'TSA Input'!J1682=\"Contingent\"),'TSA Input'!G1682,\"\"))","v":""},{"$f":"IF('TSA Input'!J1682=\"\",\"\",IF(OR('TSA Input'!J1682=\"Yes\",'TSA Input'!J1682=\"Contingent\"),'TSA Input'!F1682,\"\"))","v":""},"",{"$f":"IF('TSA Input'!J1682=\"\",\"\",IF(OR('TSA Input'!J1682=\"Yes\",'TSA Input'!J1682=\"Contingent\"),'TSA Input'!D1682,\"\"))","v":""},{"$f":"IF('TSA Input'!J1682=\"\",\"\",IF(OR('TSA Input'!J1682=\"Yes\",'TSA Input'!J1682=\"Contingent\"),'TSA Input'!G1682,\"\"))","v":""},{"$f":"IF('TSA Input'!J1682=\"\",\"\",IF(OR('TSA Input'!J1682=\"Yes\",'TSA Input'!J1682=\"Contingent\"),'TSA Input'!F1682,\"\"))","v":""},"","Required","Required"]
["",null,{"$f":"IF('TSA Input'!J1683=\"\",\"\",IF(OR('TSA Input'!J1683=\"Yes\",'TSA Input'!J1683=\"Contingent\"),'TSA Input'!B1683,\"Ineligible\"))","v":""},{"$f":"IF('TSA Input'!J1683=\"\",\"\",IF(OR('TSA Input'!J1683=\"Yes\",'TSA Input'!J1683=\"Contingent\"),'TSA Input'!I1683,\"\"))","v":""},{"$f":"IF('TSA Input'!J1683=\"\",\"\",IF(OR('TSA Input'!J1683=\"Yes\",'TSA Input'!J1683=\"Contingent\"),'TSA Input'!C1683,\"\"))","v":""},{"$f":"IF('TSA Input'!J1683=\"\",\"\",IF(OR('TSA Input'!J1683=\"Yes\",'TSA Input'!J1683=\"Contingent\"),'TSA Input'!D1683,\"\"))","v":""},{"$f":"IF('TSA Input'!J1683=\"\",\"\",IF(OR('TSA Input'!J1683=\"Yes\",'TSA Input'!J1683=\"Contingent\"),'TSA Input'!G1683,\"\"))","v":""},{"$f":"IF('TSA Input'!J1683=\"\",\"\",IF(OR('TSA Input'!J1683=\"Yes\",'TSA Input'!J1683=\"Contingent\"),'TSA Input'!F1683,\"\"))","v":""},"",{"$f":"IF('TSA Input'!J1683=\"\",\"\",IF(OR('TSA Input'!J1683=\"Yes\",'TSA Input'!J1683=\"Contingent\"),'TSA Input'!D1683,\"\"))","v":""},{"$f":"IF('TSA Input'!J1683=\"\",\"\",IF(OR('TSA Input'!J1683=\"Yes\",'TSA Input'!J1683=\"Contingent\"),'TSA Input'!G1683,\"\"))","v":""},{"$f":"IF('TSA Input'!J1683=\"\",\"\",IF(OR('TSA Input'!J1683=\"Yes\",'TSA Input'!J1683=\"Contingent\"),'TSA Input'!F1683,\"\"))","v":""},"","Required","Required"]
["",null,{"$f":"IF('TSA Input'!J1684=\"\",\"\",IF(OR('TSA Input'!J1684=\"Yes\",'TSA Input'!J1684=\"Contingent\"),'TSA Input'!B1684,\"Ineligible\"))","v":""},{"$f":"IF('TSA Input'!J1684=\"\",\"\",IF(OR('TSA Input'!J1684=\"Yes\",'TSA Input'!J1684=\"Contingent\"),'TSA Input'!I1684,\"\"))","v":""},{"$f":"IF('TSA Input'!J1684=\"\",\"\",IF(OR('TSA Input'!J1684=\"Yes\",'TSA Input'!J1684=\"Contingent\"),'TSA Input'!C1684,\"\"))","v":""},{"$f":"IF('TSA Input'!J1684=\"\",\"\",IF(OR('TSA Input'!J1684=\"Yes\",'TSA Input'!J1684=\"Contingent\"),'TSA Input'!D1684,\"\"))","v":""},{"$f":"IF('TSA Input'!J1684=\"\",\"\",IF(OR('TSA Input'!J1684=\"Yes\",'TSA Input'!J1684=\"Contingent\"),'TSA Input'!G1684,\"\"))","v":""},{"$f":"IF('TSA Input'!J1684=\"\",\"\",IF(OR('TSA Input'!J1684=\"Yes\",'TSA Input'!J1684=\"Contingent\"),'TSA Input'!F1684,\"\"))","v":""},"",{"$f":"IF('TSA Input'!J1684=\"\",\"\",IF(OR('TSA Input'!J1684=\"Yes\",'TSA Input'!J1684=\"Contingent\"),'TSA Input'!D1684,\"\"))","v":""},{"$f":"IF('TSA Input'!J1684=\"\",\"\",IF(OR('TSA Input'!J1684=\"Yes\",'TSA Input'!J1684=\"Contingent\"),'TSA Input'!G1684,\"\"))","v":""},{"$f":"IF('TSA Input'!J1684=\"\",\"\",IF(OR('TSA Input'!J1684=\"Yes\",'TSA Input'!J1684=\"Contingent\"),'TSA Input'!F1684,\"\"))","v":""},"","Required","Required"]
["",null,{"$f":"IF('TSA Input'!J1685=\"\",\"\",IF(OR('TSA Input'!J1685=\"Yes\",'TSA Input'!J1685=\"Contingent\"),'TSA Input'!B1685,\"Ineligible\"))","v":""},{"$f":"IF('TSA Input'!J1685=\"\",\"\",IF(OR('TSA Input'!J1685=\"Yes\",'TSA Input'!J1685=\"Contingent\"),'TSA Input'!I1685,\"\"))","v":""},{"$f":"IF('TSA Input'!J1685=\"\",\"\",IF(OR('TSA Input'!J1685=\"Yes\",'TSA Input'!J1685=\"Contingent\"),'TSA Input'!C1685,\"\"))","v":""},{"$f":"IF('TSA Input'!J1685=\"\",\"\",IF(OR('TSA Input'!J1685=\"Yes\",'TSA Input'!J1685=\"Contingent\"),'TSA Input'!D1685,\"\"))","v":""},{"$f":"IF('TSA Input'!J1685=\"\",\"\",IF(OR('TSA Input'!J1685=\"Yes\",'TSA Input'!J1685=\"Contingent\"),'TSA Input'!G1685,\"\"))","v":""},{"$f":"IF('TSA Input'!J1685=\"\",\"\",IF(OR('TSA Input'!J1685=\"Yes\",'TSA Input'!J1685=\"Contingent\"),'TSA Input'!F1685,\"\"))","v":""},"",{"$f":"IF('TSA Input'!J1685=\"\",\"\",IF(OR('TSA Input'!J1685=\"Yes\",'TSA Input'!J1685=\"Contingent\"),'TSA Input'!D1685,\"\"))","v":""},{"$f":"IF('TSA Input'!J1685=\"\",\"\",IF(OR('TSA Input'!J1685=\"Yes\",'TSA Input'!J1685=\"Contingent\"),'TSA Input'!G1685,\"\"))","v":""},{"$f":"IF('TSA Input'!J1685=\"\",\"\",IF(OR('TSA Input'!J1685=\"Yes\",'TSA Input'!J1685=\"Contingent\"),'TSA Input'!F1685,\"\"))","v":""},"","Required","Required"]
["",null,{"$f":"IF('TSA Input'!J1686=\"\",\"\",IF(OR('TSA Input'!J1686=\"Yes\",'TSA Input'!J1686=\"Contingent\"),'TSA Input'!B1686,\"Ineligible\"))","v":""},{"$f":"IF('TSA Input'!J1686=\"\",\"\",IF(OR('TSA Input'!J1686=\"Yes\",'TSA Input'!J1686=\"Contingent\"),'TSA Input'!I1686,\"\"))","v":""},{"$f":"IF('TSA Input'!J1686=\"\",\"\",IF(OR('TSA Input'!J1686=\"Yes\",'TSA Input'!J1686=\"Contingent\"),'TSA Input'!C1686,\"\"))","v":""},{"$f":"IF('TSA Input'!J1686=\"\",\"\",IF(OR('TSA Input'!J1686=\"Yes\",'TSA Input'!J1686=\"Contingent\"),'TSA Input'!D1686,\"\"))","v":""},{"$f":"IF('TSA Input'!J1686=\"\",\"\",IF(OR('TSA Input'!J1686=\"Yes\",'TSA Input'!J1686=\"Contingent\"),'TSA Input'!G1686,\"\"))","v":""},{"$f":"IF('TSA Input'!J1686=\"\",\"\",IF(OR('TSA Input'!J1686=\"Yes\",'TSA Input'!J1686=\"Contingent\"),'TSA Input'!F1686,\"\"))","v":""},"",{"$f":"IF('TSA Input'!J1686=\"\",\"\",IF(OR('TSA Input'!J1686=\"Yes\",'TSA Input'!J1686=\"Contingent\"),'TSA Input'!D1686,\"\"))","v":""},{"$f":"IF('TSA Input'!J1686=\"\",\"\",IF(OR('TSA Input'!J1686=\"Yes\",'TSA Input'!J1686=\"Contingent\"),'TSA Input'!G1686,\"\"))","v":""},{"$f":"IF('TSA Input'!J1686=\"\",\"\",IF(OR('TSA Input'!J1686=\"Yes\",'TSA Input'!J1686=\"Contingent\"),'TSA Input'!F1686,\"\"))","v":""},"","Required","Required"]
["",null,{"$f":"IF('TSA Input'!J1687=\"\",\"\",IF(OR('TSA Input'!J1687=\"Yes\",'TSA Input'!J1687=\"Contingent\"),'TSA Input'!B1687,\"Ineligible\"))","v":""},{"$f":"IF('TSA Input'!J1687=\"\",\"\",IF(OR('TSA Input'!J1687=\"Yes\",'TSA Input'!J1687=\"Contingent\"),'TSA Input'!I1687,\"\"))","v":""},{"$f":"IF('TSA Input'!J1687=\"\",\"\",IF(OR('TSA Input'!J1687=\"Yes\",'TSA Input'!J1687=\"Contingent\"),'TSA Input'!C1687,\"\"))","v":""},{"$f":"IF('TSA Input'!J1687=\"\",\"\",IF(OR('TSA Input'!J1687=\"Yes\",'TSA Input'!J1687=\"Contingent\"),'TSA Input'!D1687,\"\"))","v":""},{"$f":"IF('TSA Input'!J1687=\"\",\"\",IF(OR('TSA Input'!J1687=\"Yes\",'TSA Input'!J1687=\"Contingent\"),'TSA Input'!G1687,\"\"))","v":""},{"$f":"IF('TSA Input'!J1687=\"\",\"\",IF(OR('TSA Input'!J1687=\"Yes\",'TSA Input'!J1687=\"Contingent\"),'TSA Input'!F1687,\"\"))","v":""},"",{"$f":"IF('TSA Input'!J1687=\"\",\"\",IF(OR('TSA Input'!J1687=\"Yes\",'TSA Input'!J1687=\"Contingent\"),'TSA Input'!D1687,\"\"))","v":""},{"$f":"IF('TSA Input'!J1687=\"\",\"\",IF(OR('TSA Input'!J1687=\"Yes\",'TSA Input'!J1687=\"Contingent\"),'TSA Input'!G1687,\"\"))","v":""},{"$f":"IF('TSA Input'!J1687=\"\",\"\",IF(OR('TSA Input'!J1687=\"Yes\",'TSA Input'!J1687=\"Contingent\"),'TSA Input'!F1687,\"\"))","v":""},"","Required","Required"]
["",null,{"$f":"IF('TSA Input'!J1688=\"\",\"\",IF(OR('TSA Input'!J1688=\"Yes\",'TSA Input'!J1688=\"Contingent\"),'TSA Input'!B1688,\"Ineligible\"))","v":""},{"$f":"IF('TSA Input'!J1688=\"\",\"\",IF(OR('TSA Input'!J1688=\"Yes\",'TSA Input'!J1688=\"Contingent\"),'TSA Input'!I1688,\"\"))","v":""},{"$f":"IF('TSA Input'!J1688=\"\",\"\",IF(OR('TSA Input'!J1688=\"Yes\",'TSA Input'!J1688=\"Contingent\"),'TSA Input'!C1688,\"\"))","v":""},{"$f":"IF('TSA Input'!J1688=\"\",\"\",IF(OR('TSA Input'!J1688=\"Yes\",'TSA Input'!J1688=\"Contingent\"),'TSA Input'!D1688,\"\"))","v":""},{"$f":"IF('TSA Input'!J1688=\"\",\"\",IF(OR('TSA Input'!J1688=\"Yes\",'TSA Input'!J1688=\"Contingent\"),'TSA Input'!G1688,\"\"))","v":""},{"$f":"IF('TSA Input'!J1688=\"\",\"\",IF(OR('TSA Input'!J1688=\"Yes\",'TSA Input'!J1688=\"Contingent\"),'TSA Input'!F1688,\"\"))","v":""},"",{"$f":"IF('TSA Input'!J1688=\"\",\"\",IF(OR('TSA Input'!J1688=\"Yes\",'TSA Input'!J1688=\"Contingent\"),'TSA Input'!D1688,\"\"))","v":""},{"$f":"IF('TSA Input'!J1688=\"\",\"\",IF(OR('TSA Input'!J1688=\"Yes\",'TSA Input'!J1688=\"Contingent\"),'TSA Input'!G1688,\"\"))","v":""},{"$f":"IF('TSA Input'!J1688=\"\",\"\",IF(OR('TSA Input'!J1688=\"Yes\",'TSA Input'!J1688=\"Contingent\"),'TSA Input'!F1688,\"\"))","v":""},"","Required","Required"]
["",null,{"$f":"IF('TSA Input'!J1689=\"\",\"\",IF(OR('TSA Input'!J1689=\"Yes\",'TSA Input'!J1689=\"Contingent\"),'TSA Input'!B1689,\"Ineligible\"))","v":""},{"$f":"IF('TSA Input'!J1689=\"\",\"\",IF(OR('TSA Input'!J1689=\"Yes\",'TSA Input'!J1689=\"Contingent\"),'TSA Input'!I1689,\"\"))","v":""},{"$f":"IF('TSA Input'!J1689=\"\",\"\",IF(OR('TSA Input'!J1689=\"Yes\",'TSA Input'!J1689=\"Contingent\"),'TSA Input'!C1689,\"\"))","v":""},{"$f":"IF('TSA Input'!J1689=\"\",\"\",IF(OR('TSA Input'!J1689=\"Yes\",'TSA Input'!J1689=\"Contingent\"),'TSA Input'!D1689,\"\"))","v":""},{"$f":"IF('TSA Input'!J1689=\"\",\"\",IF(OR('TSA Input'!J1689=\"Yes\",'TSA Input'!J1689=\"Contingent\"),'TSA Input'!G1689,\"\"))","v":""},{"$f":"IF('TSA Input'!J1689=\"\",\"\",IF(OR('TSA Input'!J1689=\"Yes\",'TSA Input'!J1689=\"Contingent\"),'TSA Input'!F1689,\"\"))","v":""},"",{"$f":"IF('TSA Input'!J1689=\"\",\"\",IF(OR('TSA Input'!J1689=\"Yes\",'TSA Input'!J1689=\"Contingent\"),'TSA Input'!D1689,\"\"))","v":""},{"$f":"IF('TSA Input'!J1689=\"\",\"\",IF(OR('TSA Input'!J1689=\"Yes\",'TSA Input'!J1689=\"Contingent\"),'TSA Input'!G1689,\"\"))","v":""},{"$f":"IF('TSA Input'!J1689=\"\",\"\",IF(OR('TSA Input'!J1689=\"Yes\",'TSA Input'!J1689=\"Contingent\"),'TSA Input'!F1689,\"\"))","v":""},"","Required","Required"]
["",null,{"$f":"IF('TSA Input'!J1690=\"\",\"\",IF(OR('TSA Input'!J1690=\"Yes\",'TSA Input'!J1690=\"Contingent\"),'TSA Input'!B1690,\"Ineligible\"))","v":""},{"$f":"IF('TSA Input'!J1690=\"\",\"\",IF(OR('TSA Input'!J1690=\"Yes\",'TSA Input'!J1690=\"Contingent\"),'TSA Input'!I1690,\"\"))","v":""},{"$f":"IF('TSA Input'!J1690=\"\",\"\",IF(OR('TSA Input'!J1690=\"Yes\",'TSA Input'!J1690=\"Contingent\"),'TSA Input'!C1690,\"\"))","v":""},{"$f":"IF('TSA Input'!J1690=\"\",\"\",IF(OR('TSA Input'!J1690=\"Yes\",'TSA Input'!J1690=\"Contingent\"),'TSA Input'!D1690,\"\"))","v":""},{"$f":"IF('TSA Input'!J1690=\"\",\"\",IF(OR('TSA Input'!J1690=\"Yes\",'TSA Input'!J1690=\"Contingent\"),'TSA Input'!G1690,\"\"))","v":""},{"$f":"IF('TSA Input'!J1690=\"\",\"\",IF(OR('TSA Input'!J1690=\"Yes\",'TSA Input'!J1690=\"Contingent\"),'TSA Input'!F1690,\"\"))","v":""},"",{"$f":"IF('TSA Input'!J1690=\"\",\"\",IF(OR('TSA Input'!J1690=\"Yes\",'TSA Input'!J1690=\"Contingent\"),'TSA Input'!D1690,\"\"))","v":""},{"$f":"IF('TSA Input'!J1690=\"\",\"\",IF(OR('TSA Input'!J1690=\"Yes\",'TSA Input'!J1690=\"Contingent\"),'TSA Input'!G1690,\"\"))","v":""},{"$f":"IF('TSA Input'!J1690=\"\",\"\",IF(OR('TSA Input'!J1690=\"Yes\",'TSA Input'!J1690=\"Contingent\"),'TSA Input'!F1690,\"\"))","v":""},"","Required","Required"]
["",null,{"$f":"IF('TSA Input'!J1691=\"\",\"\",IF(OR('TSA Input'!J1691=\"Yes\",'TSA Input'!J1691=\"Contingent\"),'TSA Input'!B1691,\"Ineligible\"))","v":""},{"$f":"IF('TSA Input'!J1691=\"\",\"\",IF(OR('TSA Input'!J1691=\"Yes\",'TSA Input'!J1691=\"Contingent\"),'TSA Input'!I1691,\"\"))","v":""},{"$f":"IF('TSA Input'!J1691=\"\",\"\",IF(OR('TSA Input'!J1691=\"Yes\",'TSA Input'!J1691=\"Contingent\"),'TSA Input'!C1691,\"\"))","v":""},{"$f":"IF('TSA Input'!J1691=\"\",\"\",IF(OR('TSA Input'!J1691=\"Yes\",'TSA Input'!J1691=\"Contingent\"),'TSA Input'!D1691,\"\"))","v":""},{"$f":"IF('TSA Input'!J1691=\"\",\"\",IF(OR('TSA Input'!J1691=\"Yes\",'TSA Input'!J1691=\"Contingent\"),'TSA Input'!G1691,\"\"))","v":""},{"$f":"IF('TSA Input'!J1691=\"\",\"\",IF(OR('TSA Input'!J1691=\"Yes\",'TSA Input'!J1691=\"Contingent\"),'TSA Input'!F1691,\"\"))","v":""},"",{"$f":"IF('TSA Input'!J1691=\"\",\"\",IF(OR('TSA Input'!J1691=\"Yes\",'TSA Input'!J1691=\"Contingent\"),'TSA Input'!D1691,\"\"))","v":""},{"$f":"IF('TSA Input'!J1691=\"\",\"\",IF(OR('TSA Input'!J1691=\"Yes\",'TSA Input'!J1691=\"Contingent\"),'TSA Input'!G1691,\"\"))","v":""},{"$f":"IF('TSA Input'!J1691=\"\",\"\",IF(OR('TSA Input'!J1691=\"Yes\",'TSA Input'!J1691=\"Contingent\"),'TSA Input'!F1691,\"\"))","v":""},"","Required","Required"]
["",null,{"$f":"IF('TSA Input'!J1692=\"\",\"\",IF(OR('TSA Input'!J1692=\"Yes\",'TSA Input'!J1692=\"Contingent\"),'TSA Input'!B1692,\"Ineligible\"))","v":""},{"$f":"IF('TSA Input'!J1692=\"\",\"\",IF(OR('TSA Input'!J1692=\"Yes\",'TSA Input'!J1692=\"Contingent\"),'TSA Input'!I1692,\"\"))","v":""},{"$f":"IF('TSA Input'!J1692=\"\",\"\",IF(OR('TSA Input'!J1692=\"Yes\",'TSA Input'!J1692=\"Contingent\"),'TSA Input'!C1692,\"\"))","v":""},{"$f":"IF('TSA Input'!J1692=\"\",\"\",IF(OR('TSA Input'!J1692=\"Yes\",'TSA Input'!J1692=\"Contingent\"),'TSA Input'!D1692,\"\"))","v":""},{"$f":"IF('TSA Input'!J1692=\"\",\"\",IF(OR('TSA Input'!J1692=\"Yes\",'TSA Input'!J1692=\"Contingent\"),'TSA Input'!G1692,\"\"))","v":""},{"$f":"IF('TSA Input'!J1692=\"\",\"\",IF(OR('TSA Input'!J1692=\"Yes\",'TSA Input'!J1692=\"Contingent\"),'TSA Input'!F1692,\"\"))","v":""},"",{"$f":"IF('TSA Input'!J1692=\"\",\"\",IF(OR('TSA Input'!J1692=\"Yes\",'TSA Input'!J1692=\"Contingent\"),'TSA Input'!D1692,\"\"))","v":""},{"$f":"IF('TSA Input'!J1692=\"\",\"\",IF(OR('TSA Input'!J1692=\"Yes\",'TSA Input'!J1692=\"Contingent\"),'TSA Input'!G1692,\"\"))","v":""},{"$f":"IF('TSA Input'!J1692=\"\",\"\",IF(OR('TSA Input'!J1692=\"Yes\",'TSA Input'!J1692=\"Contingent\"),'TSA Input'!F1692,\"\"))","v":""},"","Required","Required"]
["",null,{"$f":"IF('TSA Input'!J1693=\"\",\"\",IF(OR('TSA Input'!J1693=\"Yes\",'TSA Input'!J1693=\"Contingent\"),'TSA Input'!B1693,\"Ineligible\"))","v":""},{"$f":"IF('TSA Input'!J1693=\"\",\"\",IF(OR('TSA Input'!J1693=\"Yes\",'TSA Input'!J1693=\"Contingent\"),'TSA Input'!I1693,\"\"))","v":""},{"$f":"IF('TSA Input'!J1693=\"\",\"\",IF(OR('TSA Input'!J1693=\"Yes\",'TSA Input'!J1693=\"Contingent\"),'TSA Input'!C1693,\"\"))","v":""},{"$f":"IF('TSA Input'!J1693=\"\",\"\",IF(OR('TSA Input'!J1693=\"Yes\",'TSA Input'!J1693=\"Contingent\"),'TSA Input'!D1693,\"\"))","v":""},{"$f":"IF('TSA Input'!J1693=\"\",\"\",IF(OR('TSA Input'!J1693=\"Yes\",'TSA Input'!J1693=\"Contingent\"),'TSA Input'!G1693,\"\"))","v":""},{"$f":"IF('TSA Input'!J1693=\"\",\"\",IF(OR('TSA Input'!J1693=\"Yes\",'TSA Input'!J1693=\"Contingent\"),'TSA Input'!F1693,\"\"))","v":""},"",{"$f":"IF('TSA Input'!J1693=\"\",\"\",IF(OR('TSA Input'!J1693=\"Yes\",'TSA Input'!J1693=\"Contingent\"),'TSA Input'!D1693,\"\"))","v":""},{"$f":"IF('TSA Input'!J1693=\"\",\"\",IF(OR('TSA Input'!J1693=\"Yes\",'TSA Input'!J1693=\"Contingent\"),'TSA Input'!G1693,\"\"))","v":""},{"$f":"IF('TSA Input'!J1693=\"\",\"\",IF(OR('TSA Input'!J1693=\"Yes\",'TSA Input'!J1693=\"Contingent\"),'TSA Input'!F1693,\"\"))","v":""},"","Required","Required"]
["",null,{"$f":"IF('TSA Input'!J1694=\"\",\"\",IF(OR('TSA Input'!J1694=\"Yes\",'TSA Input'!J1694=\"Contingent\"),'TSA Input'!B1694,\"Ineligible\"))","v":""},{"$f":"IF('TSA Input'!J1694=\"\",\"\",IF(OR('TSA Input'!J1694=\"Yes\",'TSA Input'!J1694=\"Contingent\"),'TSA Input'!I1694,\"\"))","v":""},{"$f":"IF('TSA Input'!J1694=\"\",\"\",IF(OR('TSA Input'!J1694=\"Yes\",'TSA Input'!J1694=\"Contingent\"),'TSA Input'!C1694,\"\"))","v":""},{"$f":"IF('TSA Input'!J1694=\"\",\"\",IF(OR('TSA Input'!J1694=\"Yes\",'TSA Input'!J1694=\"Contingent\"),'TSA Input'!D1694,\"\"))","v":""},{"$f":"IF('TSA Input'!J1694=\"\",\"\",IF(OR('TSA Input'!J1694=\"Yes\",'TSA Input'!J1694=\"Contingent\"),'TSA Input'!G1694,\"\"))","v":""},{"$f":"IF('TSA Input'!J1694=\"\",\"\",IF(OR('TSA Input'!J1694=\"Yes\",'TSA Input'!J1694=\"Contingent\"),'TSA Input'!F1694,\"\"))","v":""},"",{"$f":"IF('TSA Input'!J1694=\"\",\"\",IF(OR('TSA Input'!J1694=\"Yes\",'TSA Input'!J1694=\"Contingent\"),'TSA Input'!D1694,\"\"))","v":""},{"$f":"IF('TSA Input'!J1694=\"\",\"\",IF(OR('TSA Input'!J1694=\"Yes\",'TSA Input'!J1694=\"Contingent\"),'TSA Input'!G1694,\"\"))","v":""},{"$f":"IF('TSA Input'!J1694=\"\",\"\",IF(OR('TSA Input'!J1694=\"Yes\",'TSA Input'!J1694=\"Contingent\"),'TSA Input'!F1694,\"\"))","v":""},"","Required","Required"]
["",null,{"$f":"IF('TSA Input'!J1695=\"\",\"\",IF(OR('TSA Input'!J1695=\"Yes\",'TSA Input'!J1695=\"Contingent\"),'TSA Input'!B1695,\"Ineligible\"))","v":""},{"$f":"IF('TSA Input'!J1695=\"\",\"\",IF(OR('TSA Input'!J1695=\"Yes\",'TSA Input'!J1695=\"Contingent\"),'TSA Input'!I1695,\"\"))","v":""},{"$f":"IF('TSA Input'!J1695=\"\",\"\",IF(OR('TSA Input'!J1695=\"Yes\",'TSA Input'!J1695=\"Contingent\"),'TSA Input'!C1695,\"\"))","v":""},{"$f":"IF('TSA Input'!J1695=\"\",\"\",IF(OR('TSA Input'!J1695=\"Yes\",'TSA Input'!J1695=\"Contingent\"),'TSA Input'!D1695,\"\"))","v":""},{"$f":"IF('TSA Input'!J1695=\"\",\"\",IF(OR('TSA Input'!J1695=\"Yes\",'TSA Input'!J1695=\"Contingent\"),'TSA Input'!G1695,\"\"))","v":""},{"$f":"IF('TSA Input'!J1695=\"\",\"\",IF(OR('TSA Input'!J1695=\"Yes\",'TSA Input'!J1695=\"Contingent\"),'TSA Input'!F1695,\"\"))","v":""},"",{"$f":"IF('TSA Input'!J1695=\"\",\"\",IF(OR('TSA Input'!J1695=\"Yes\",'TSA Input'!J1695=\"Contingent\"),'TSA Input'!D1695,\"\"))","v":""},{"$f":"IF('TSA Input'!J1695=\"\",\"\",IF(OR('TSA Input'!J1695=\"Yes\",'TSA Input'!J1695=\"Contingent\"),'TSA Input'!G1695,\"\"))","v":""},{"$f":"IF('TSA Input'!J1695=\"\",\"\",IF(OR('TSA Input'!J1695=\"Yes\",'TSA Input'!J1695=\"Contingent\"),'TSA Input'!F1695,\"\"))","v":""},"","Required","Required"]
["",null,{"$f":"IF('TSA Input'!J1696=\"\",\"\",IF(OR('TSA Input'!J1696=\"Yes\",'TSA Input'!J1696=\"Contingent\"),'TSA Input'!B1696,\"Ineligible\"))","v":""},{"$f":"IF('TSA Input'!J1696=\"\",\"\",IF(OR('TSA Input'!J1696=\"Yes\",'TSA Input'!J1696=\"Contingent\"),'TSA Input'!I1696,\"\"))","v":""},{"$f":"IF('TSA Input'!J1696=\"\",\"\",IF(OR('TSA Input'!J1696=\"Yes\",'TSA Input'!J1696=\"Contingent\"),'TSA Input'!C1696,\"\"))","v":""},{"$f":"IF('TSA Input'!J1696=\"\",\"\",IF(OR('TSA Input'!J1696=\"Yes\",'TSA Input'!J1696=\"Contingent\"),'TSA Input'!D1696,\"\"))","v":""},{"$f":"IF('TSA Input'!J1696=\"\",\"\",IF(OR('TSA Input'!J1696=\"Yes\",'TSA Input'!J1696=\"Contingent\"),'TSA Input'!G1696,\"\"))","v":""},{"$f":"IF('TSA Input'!J1696=\"\",\"\",IF(OR('TSA Input'!J1696=\"Yes\",'TSA Input'!J1696=\"Contingent\"),'TSA Input'!F1696,\"\"))","v":""},"",{"$f":"IF('TSA Input'!J1696=\"\",\"\",IF(OR('TSA Input'!J1696=\"Yes\",'TSA Input'!J1696=\"Contingent\"),'TSA Input'!D1696,\"\"))","v":""},{"$f":"IF('TSA Input'!J1696=\"\",\"\",IF(OR('TSA Input'!J1696=\"Yes\",'TSA Input'!J1696=\"Contingent\"),'TSA Input'!G1696,\"\"))","v":""},{"$f":"IF('TSA Input'!J1696=\"\",\"\",IF(OR('TSA Input'!J1696=\"Yes\",'TSA Input'!J1696=\"Contingent\"),'TSA Input'!F1696,\"\"))","v":""},"","Required","Required"]
["",null,{"$f":"IF('TSA Input'!J1697=\"\",\"\",IF(OR('TSA Input'!J1697=\"Yes\",'TSA Input'!J1697=\"Contingent\"),'TSA Input'!B1697,\"Ineligible\"))","v":""},{"$f":"IF('TSA Input'!J1697=\"\",\"\",IF(OR('TSA Input'!J1697=\"Yes\",'TSA Input'!J1697=\"Contingent\"),'TSA Input'!I1697,\"\"))","v":""},{"$f":"IF('TSA Input'!J1697=\"\",\"\",IF(OR('TSA Input'!J1697=\"Yes\",'TSA Input'!J1697=\"Contingent\"),'TSA Input'!C1697,\"\"))","v":""},{"$f":"IF('TSA Input'!J1697=\"\",\"\",IF(OR('TSA Input'!J1697=\"Yes\",'TSA Input'!J1697=\"Contingent\"),'TSA Input'!D1697,\"\"))","v":""},{"$f":"IF('TSA Input'!J1697=\"\",\"\",IF(OR('TSA Input'!J1697=\"Yes\",'TSA Input'!J1697=\"Contingent\"),'TSA Input'!G1697,\"\"))","v":""},{"$f":"IF('TSA Input'!J1697=\"\",\"\",IF(OR('TSA Input'!J1697=\"Yes\",'TSA Input'!J1697=\"Contingent\"),'TSA Input'!F1697,\"\"))","v":""},"",{"$f":"IF('TSA Input'!J1697=\"\",\"\",IF(OR('TSA Input'!J1697=\"Yes\",'TSA Input'!J1697=\"Contingent\"),'TSA Input'!D1697,\"\"))","v":""},{"$f":"IF('TSA Input'!J1697=\"\",\"\",IF(OR('TSA Input'!J1697=\"Yes\",'TSA Input'!J1697=\"Contingent\"),'TSA Input'!G1697,\"\"))","v":""},{"$f":"IF('TSA Input'!J1697=\"\",\"\",IF(OR('TSA Input'!J1697=\"Yes\",'TSA Input'!J1697=\"Contingent\"),'TSA Input'!F1697,\"\"))","v":""},"","Required","Required"]
["",null,{"$f":"IF('TSA Input'!J1698=\"\",\"\",IF(OR('TSA Input'!J1698=\"Yes\",'TSA Input'!J1698=\"Contingent\"),'TSA Input'!B1698,\"Ineligible\"))","v":""},{"$f":"IF('TSA Input'!J1698=\"\",\"\",IF(OR('TSA Input'!J1698=\"Yes\",'TSA Input'!J1698=\"Contingent\"),'TSA Input'!I1698,\"\"))","v":""},{"$f":"IF('TSA Input'!J1698=\"\",\"\",IF(OR('TSA Input'!J1698=\"Yes\",'TSA Input'!J1698=\"Contingent\"),'TSA Input'!C1698,\"\"))","v":""},{"$f":"IF('TSA Input'!J1698=\"\",\"\",IF(OR('TSA Input'!J1698=\"Yes\",'TSA Input'!J1698=\"Contingent\"),'TSA Input'!D1698,\"\"))","v":""},{"$f":"IF('TSA Input'!J1698=\"\",\"\",IF(OR('TSA Input'!J1698=\"Yes\",'TSA Input'!J1698=\"Contingent\"),'TSA Input'!G1698,\"\"))","v":""},{"$f":"IF('TSA Input'!J1698=\"\",\"\",IF(OR('TSA Input'!J1698=\"Yes\",'TSA Input'!J1698=\"Contingent\"),'TSA Input'!F1698,\"\"))","v":""},"",{"$f":"IF('TSA Input'!J1698=\"\",\"\",IF(OR('TSA Input'!J1698=\"Yes\",'TSA Input'!J1698=\"Contingent\"),'TSA Input'!D1698,\"\"))","v":""},{"$f":"IF('TSA Input'!J1698=\"\",\"\",IF(OR('TSA Input'!J1698=\"Yes\",'TSA Input'!J1698=\"Contingent\"),'TSA Input'!G1698,\"\"))","v":""},{"$f":"IF('TSA Input'!J1698=\"\",\"\",IF(OR('TSA Input'!J1698=\"Yes\",'TSA Input'!J1698=\"Contingent\"),'TSA Input'!F1698,\"\"))","v":""},"","Required","Required"]
["",null,{"$f":"IF('TSA Input'!J1699=\"\",\"\",IF(OR('TSA Input'!J1699=\"Yes\",'TSA Input'!J1699=\"Contingent\"),'TSA Input'!B1699,\"Ineligible\"))","v":""},{"$f":"IF('TSA Input'!J1699=\"\",\"\",IF(OR('TSA Input'!J1699=\"Yes\",'TSA Input'!J1699=\"Contingent\"),'TSA Input'!I1699,\"\"))","v":""},{"$f":"IF('TSA Input'!J1699=\"\",\"\",IF(OR('TSA Input'!J1699=\"Yes\",'TSA Input'!J1699=\"Contingent\"),'TSA Input'!C1699,\"\"))","v":""},{"$f":"IF('TSA Input'!J1699=\"\",\"\",IF(OR('TSA Input'!J1699=\"Yes\",'TSA Input'!J1699=\"Contingent\"),'TSA Input'!D1699,\"\"))","v":""},{"$f":"IF('TSA Input'!J1699=\"\",\"\",IF(OR('TSA Input'!J1699=\"Yes\",'TSA Input'!J1699=\"Contingent\"),'TSA Input'!G1699,\"\"))","v":""},{"$f":"IF('TSA Input'!J1699=\"\",\"\",IF(OR('TSA Input'!J1699=\"Yes\",'TSA Input'!J1699=\"Contingent\"),'TSA Input'!F1699,\"\"))","v":""},"",{"$f":"IF('TSA Input'!J1699=\"\",\"\",IF(OR('TSA Input'!J1699=\"Yes\",'TSA Input'!J1699=\"Contingent\"),'TSA Input'!D1699,\"\"))","v":""},{"$f":"IF('TSA Input'!J1699=\"\",\"\",IF(OR('TSA Input'!J1699=\"Yes\",'TSA Input'!J1699=\"Contingent\"),'TSA Input'!G1699,\"\"))","v":""},{"$f":"IF('TSA Input'!J1699=\"\",\"\",IF(OR('TSA Input'!J1699=\"Yes\",'TSA Input'!J1699=\"Contingent\"),'TSA Input'!F1699,\"\"))","v":""},"","Required","Required"]
["",null,{"$f":"IF('TSA Input'!J1700=\"\",\"\",IF(OR('TSA Input'!J1700=\"Yes\",'TSA Input'!J1700=\"Contingent\"),'TSA Input'!B1700,\"Ineligible\"))","v":""},{"$f":"IF('TSA Input'!J1700=\"\",\"\",IF(OR('TSA Input'!J1700=\"Yes\",'TSA Input'!J1700=\"Contingent\"),'TSA Input'!I1700,\"\"))","v":""},{"$f":"IF('TSA Input'!J1700=\"\",\"\",IF(OR('TSA Input'!J1700=\"Yes\",'TSA Input'!J1700=\"Contingent\"),'TSA Input'!C1700,\"\"))","v":""},{"$f":"IF('TSA Input'!J1700=\"\",\"\",IF(OR('TSA Input'!J1700=\"Yes\",'TSA Input'!J1700=\"Contingent\"),'TSA Input'!D1700,\"\"))","v":""},{"$f":"IF('TSA Input'!J1700=\"\",\"\",IF(OR('TSA Input'!J1700=\"Yes\",'TSA Input'!J1700=\"Contingent\"),'TSA Input'!G1700,\"\"))","v":""},{"$f":"IF('TSA Input'!J1700=\"\",\"\",IF(OR('TSA Input'!J1700=\"Yes\",'TSA Input'!J1700=\"Contingent\"),'TSA Input'!F1700,\"\"))","v":""},"",{"$f":"IF('TSA Input'!J1700=\"\",\"\",IF(OR('TSA Input'!J1700=\"Yes\",'TSA Input'!J1700=\"Contingent\"),'TSA Input'!D1700,\"\"))","v":""},{"$f":"IF('TSA Input'!J1700=\"\",\"\",IF(OR('TSA Input'!J1700=\"Yes\",'TSA Input'!J1700=\"Contingent\"),'TSA Input'!G1700,\"\"))","v":""},{"$f":"IF('TSA Input'!J1700=\"\",\"\",IF(OR('TSA Input'!J1700=\"Yes\",'TSA Input'!J1700=\"Contingent\"),'TSA Input'!F1700,\"\"))","v":""},"","Required","Required"]
["",null,{"$f":"IF('TSA Input'!J1701=\"\",\"\",IF(OR('TSA Input'!J1701=\"Yes\",'TSA Input'!J1701=\"Contingent\"),'TSA Input'!B1701,\"Ineligible\"))","v":""},{"$f":"IF('TSA Input'!J1701=\"\",\"\",IF(OR('TSA Input'!J1701=\"Yes\",'TSA Input'!J1701=\"Contingent\"),'TSA Input'!I1701,\"\"))","v":""},{"$f":"IF('TSA Input'!J1701=\"\",\"\",IF(OR('TSA Input'!J1701=\"Yes\",'TSA Input'!J1701=\"Contingent\"),'TSA Input'!C1701,\"\"))","v":""},{"$f":"IF('TSA Input'!J1701=\"\",\"\",IF(OR('TSA Input'!J1701=\"Yes\",'TSA Input'!J1701=\"Contingent\"),'TSA Input'!D1701,\"\"))","v":""},{"$f":"IF('TSA Input'!J1701=\"\",\"\",IF(OR('TSA Input'!J1701=\"Yes\",'TSA Input'!J1701=\"Contingent\"),'TSA Input'!G1701,\"\"))","v":""},{"$f":"IF('TSA Input'!J1701=\"\",\"\",IF(OR('TSA Input'!J1701=\"Yes\",'TSA Input'!J1701=\"Contingent\"),'TSA Input'!F1701,\"\"))","v":""},"",{"$f":"IF('TSA Input'!J1701=\"\",\"\",IF(OR('TSA Input'!J1701=\"Yes\",'TSA Input'!J1701=\"Contingent\"),'TSA Input'!D1701,\"\"))","v":""},{"$f":"IF('TSA Input'!J1701=\"\",\"\",IF(OR('TSA Input'!J1701=\"Yes\",'TSA Input'!J1701=\"Contingent\"),'TSA Input'!G1701,\"\"))","v":""},{"$f":"IF('TSA Input'!J1701=\"\",\"\",IF(OR('TSA Input'!J1701=\"Yes\",'TSA Input'!J1701=\"Contingent\"),'TSA Input'!F1701,\"\"))","v":""},"","Required","Required"]
["",null,{"$f":"IF('TSA Input'!J1702=\"\",\"\",IF(OR('TSA Input'!J1702=\"Yes\",'TSA Input'!J1702=\"Contingent\"),'TSA Input'!B1702,\"Ineligible\"))","v":""},{"$f":"IF('TSA Input'!J1702=\"\",\"\",IF(OR('TSA Input'!J1702=\"Yes\",'TSA Input'!J1702=\"Contingent\"),'TSA Input'!I1702,\"\"))","v":""},{"$f":"IF('TSA Input'!J1702=\"\",\"\",IF(OR('TSA Input'!J1702=\"Yes\",'TSA Input'!J1702=\"Contingent\"),'TSA Input'!C1702,\"\"))","v":""},{"$f":"IF('TSA Input'!J1702=\"\",\"\",IF(OR('TSA Input'!J1702=\"Yes\",'TSA Input'!J1702=\"Contingent\"),'TSA Input'!D1702,\"\"))","v":""},{"$f":"IF('TSA Input'!J1702=\"\",\"\",IF(OR('TSA Input'!J1702=\"Yes\",'TSA Input'!J1702=\"Contingent\"),'TSA Input'!G1702,\"\"))","v":""},{"$f":"IF('TSA Input'!J1702=\"\",\"\",IF(OR('TSA Input'!J1702=\"Yes\",'TSA Input'!J1702=\"Contingent\"),'TSA Input'!F1702,\"\"))","v":""},"",{"$f":"IF('TSA Input'!J1702=\"\",\"\",IF(OR('TSA Input'!J1702=\"Yes\",'TSA Input'!J1702=\"Contingent\"),'TSA Input'!D1702,\"\"))","v":""},{"$f":"IF('TSA Input'!J1702=\"\",\"\",IF(OR('TSA Input'!J1702=\"Yes\",'TSA Input'!J1702=\"Contingent\"),'TSA Input'!G1702,\"\"))","v":""},{"$f":"IF('TSA Input'!J1702=\"\",\"\",IF(OR('TSA Input'!J1702=\"Yes\",'TSA Input'!J1702=\"Contingent\"),'TSA Input'!F1702,\"\"))","v":""},"","Required","Required"]
["",null,{"$f":"IF('TSA Input'!J1703=\"\",\"\",IF(OR('TSA Input'!J1703=\"Yes\",'TSA Input'!J1703=\"Contingent\"),'TSA Input'!B1703,\"Ineligible\"))","v":""},{"$f":"IF('TSA Input'!J1703=\"\",\"\",IF(OR('TSA Input'!J1703=\"Yes\",'TSA Input'!J1703=\"Contingent\"),'TSA Input'!I1703,\"\"))","v":""},{"$f":"IF('TSA Input'!J1703=\"\",\"\",IF(OR('TSA Input'!J1703=\"Yes\",'TSA Input'!J1703=\"Contingent\"),'TSA Input'!C1703,\"\"))","v":""},{"$f":"IF('TSA Input'!J1703=\"\",\"\",IF(OR('TSA Input'!J1703=\"Yes\",'TSA Input'!J1703=\"Contingent\"),'TSA Input'!D1703,\"\"))","v":""},{"$f":"IF('TSA Input'!J1703=\"\",\"\",IF(OR('TSA Input'!J1703=\"Yes\",'TSA Input'!J1703=\"Contingent\"),'TSA Input'!G1703,\"\"))","v":""},{"$f":"IF('TSA Input'!J1703=\"\",\"\",IF(OR('TSA Input'!J1703=\"Yes\",'TSA Input'!J1703=\"Contingent\"),'TSA Input'!F1703,\"\"))","v":""},"",{"$f":"IF('TSA Input'!J1703=\"\",\"\",IF(OR('TSA Input'!J1703=\"Yes\",'TSA Input'!J1703=\"Contingent\"),'TSA Input'!D1703,\"\"))","v":""},{"$f":"IF('TSA Input'!J1703=\"\",\"\",IF(OR('TSA Input'!J1703=\"Yes\",'TSA Input'!J1703=\"Contingent\"),'TSA Input'!G1703,\"\"))","v":""},{"$f":"IF('TSA Input'!J1703=\"\",\"\",IF(OR('TSA Input'!J1703=\"Yes\",'TSA Input'!J1703=\"Contingent\"),'TSA Input'!F1703,\"\"))","v":""},"","Required","Required"]
["",null,{"$f":"IF('TSA Input'!J1704=\"\",\"\",IF(OR('TSA Input'!J1704=\"Yes\",'TSA Input'!J1704=\"Contingent\"),'TSA Input'!B1704,\"Ineligible\"))","v":""},{"$f":"IF('TSA Input'!J1704=\"\",\"\",IF(OR('TSA Input'!J1704=\"Yes\",'TSA Input'!J1704=\"Contingent\"),'TSA Input'!I1704,\"\"))","v":""},{"$f":"IF('TSA Input'!J1704=\"\",\"\",IF(OR('TSA Input'!J1704=\"Yes\",'TSA Input'!J1704=\"Contingent\"),'TSA Input'!C1704,\"\"))","v":""},{"$f":"IF('TSA Input'!J1704=\"\",\"\",IF(OR('TSA Input'!J1704=\"Yes\",'TSA Input'!J1704=\"Contingent\"),'TSA Input'!D1704,\"\"))","v":""},{"$f":"IF('TSA Input'!J1704=\"\",\"\",IF(OR('TSA Input'!J1704=\"Yes\",'TSA Input'!J1704=\"Contingent\"),'TSA Input'!G1704,\"\"))","v":""},{"$f":"IF('TSA Input'!J1704=\"\",\"\",IF(OR('TSA Input'!J1704=\"Yes\",'TSA Input'!J1704=\"Contingent\"),'TSA Input'!F1704,\"\"))","v":""},"",{"$f":"IF('TSA Input'!J1704=\"\",\"\",IF(OR('TSA Input'!J1704=\"Yes\",'TSA Input'!J1704=\"Contingent\"),'TSA Input'!D1704,\"\"))","v":""},{"$f":"IF('TSA Input'!J1704=\"\",\"\",IF(OR('TSA Input'!J1704=\"Yes\",'TSA Input'!J1704=\"Contingent\"),'TSA Input'!G1704,\"\"))","v":""},{"$f":"IF('TSA Input'!J1704=\"\",\"\",IF(OR('TSA Input'!J1704=\"Yes\",'TSA Input'!J1704=\"Contingent\"),'TSA Input'!F1704,\"\"))","v":""},"","Required","Required"]
["",null,{"$f":"IF('TSA Input'!J1705=\"\",\"\",IF(OR('TSA Input'!J1705=\"Yes\",'TSA Input'!J1705=\"Contingent\"),'TSA Input'!B1705,\"Ineligible\"))","v":""},{"$f":"IF('TSA Input'!J1705=\"\",\"\",IF(OR('TSA Input'!J1705=\"Yes\",'TSA Input'!J1705=\"Contingent\"),'TSA Input'!I1705,\"\"))","v":""},{"$f":"IF('TSA Input'!J1705=\"\",\"\",IF(OR('TSA Input'!J1705=\"Yes\",'TSA Input'!J1705=\"Contingent\"),'TSA Input'!C1705,\"\"))","v":""},{"$f":"IF('TSA Input'!J1705=\"\",\"\",IF(OR('TSA Input'!J1705=\"Yes\",'TSA Input'!J1705=\"Contingent\"),'TSA Input'!D1705,\"\"))","v":""},{"$f":"IF('TSA Input'!J1705=\"\",\"\",IF(OR('TSA Input'!J1705=\"Yes\",'TSA Input'!J1705=\"Contingent\"),'TSA Input'!G1705,\"\"))","v":""},{"$f":"IF('TSA Input'!J1705=\"\",\"\",IF(OR('TSA Input'!J1705=\"Yes\",'TSA Input'!J1705=\"Contingent\"),'TSA Input'!F1705,\"\"))","v":""},"",{"$f":"IF('TSA Input'!J1705=\"\",\"\",IF(OR('TSA Input'!J1705=\"Yes\",'TSA Input'!J1705=\"Contingent\"),'TSA Input'!D1705,\"\"))","v":""},{"$f":"IF('TSA Input'!J1705=\"\",\"\",IF(OR('TSA Input'!J1705=\"Yes\",'TSA Input'!J1705=\"Contingent\"),'TSA Input'!G1705,\"\"))","v":""},{"$f":"IF('TSA Input'!J1705=\"\",\"\",IF(OR('TSA Input'!J1705=\"Yes\",'TSA Input'!J1705=\"Contingent\"),'TSA Input'!F1705,\"\"))","v":""},"","Required","Required"]
["",null,{"$f":"IF('TSA Input'!J1706=\"\",\"\",IF(OR('TSA Input'!J1706=\"Yes\",'TSA Input'!J1706=\"Contingent\"),'TSA Input'!B1706,\"Ineligible\"))","v":""},{"$f":"IF('TSA Input'!J1706=\"\",\"\",IF(OR('TSA Input'!J1706=\"Yes\",'TSA Input'!J1706=\"Contingent\"),'TSA Input'!I1706,\"\"))","v":""},{"$f":"IF('TSA Input'!J1706=\"\",\"\",IF(OR('TSA Input'!J1706=\"Yes\",'TSA Input'!J1706=\"Contingent\"),'TSA Input'!C1706,\"\"))","v":""},{"$f":"IF('TSA Input'!J1706=\"\",\"\",IF(OR('TSA Input'!J1706=\"Yes\",'TSA Input'!J1706=\"Contingent\"),'TSA Input'!D1706,\"\"))","v":""},{"$f":"IF('TSA Input'!J1706=\"\",\"\",IF(OR('TSA Input'!J1706=\"Yes\",'TSA Input'!J1706=\"Contingent\"),'TSA Input'!G1706,\"\"))","v":""},{"$f":"IF('TSA Input'!J1706=\"\",\"\",IF(OR('TSA Input'!J1706=\"Yes\",'TSA Input'!J1706=\"Contingent\"),'TSA Input'!F1706,\"\"))","v":""},"",{"$f":"IF('TSA Input'!J1706=\"\",\"\",IF(OR('TSA Input'!J1706=\"Yes\",'TSA Input'!J1706=\"Contingent\"),'TSA Input'!D1706,\"\"))","v":""},{"$f":"IF('TSA Input'!J1706=\"\",\"\",IF(OR('TSA Input'!J1706=\"Yes\",'TSA Input'!J1706=\"Contingent\"),'TSA Input'!G1706,\"\"))","v":""},{"$f":"IF('TSA Input'!J1706=\"\",\"\",IF(OR('TSA Input'!J1706=\"Yes\",'TSA Input'!J1706=\"Contingent\"),'TSA Input'!F1706,\"\"))","v":""},"","Required","Required"]
["",null,{"$f":"IF('TSA Input'!J1707=\"\",\"\",IF(OR('TSA Input'!J1707=\"Yes\",'TSA Input'!J1707=\"Contingent\"),'TSA Input'!B1707,\"Ineligible\"))","v":""},{"$f":"IF('TSA Input'!J1707=\"\",\"\",IF(OR('TSA Input'!J1707=\"Yes\",'TSA Input'!J1707=\"Contingent\"),'TSA Input'!I1707,\"\"))","v":""},{"$f":"IF('TSA Input'!J1707=\"\",\"\",IF(OR('TSA Input'!J1707=\"Yes\",'TSA Input'!J1707=\"Contingent\"),'TSA Input'!C1707,\"\"))","v":""},{"$f":"IF('TSA Input'!J1707=\"\",\"\",IF(OR('TSA Input'!J1707=\"Yes\",'TSA Input'!J1707=\"Contingent\"),'TSA Input'!D1707,\"\"))","v":""},{"$f":"IF('TSA Input'!J1707=\"\",\"\",IF(OR('TSA Input'!J1707=\"Yes\",'TSA Input'!J1707=\"Contingent\"),'TSA Input'!G1707,\"\"))","v":""},{"$f":"IF('TSA Input'!J1707=\"\",\"\",IF(OR('TSA Input'!J1707=\"Yes\",'TSA Input'!J1707=\"Contingent\"),'TSA Input'!F1707,\"\"))","v":""},"",{"$f":"IF('TSA Input'!J1707=\"\",\"\",IF(OR('TSA Input'!J1707=\"Yes\",'TSA Input'!J1707=\"Contingent\"),'TSA Input'!D1707,\"\"))","v":""},{"$f":"IF('TSA Input'!J1707=\"\",\"\",IF(OR('TSA Input'!J1707=\"Yes\",'TSA Input'!J1707=\"Contingent\"),'TSA Input'!G1707,\"\"))","v":""},{"$f":"IF('TSA Input'!J1707=\"\",\"\",IF(OR('TSA Input'!J1707=\"Yes\",'TSA Input'!J1707=\"Contingent\"),'TSA Input'!F1707,\"\"))","v":""},"","Required","Required"]
["",null,{"$f":"IF('TSA Input'!J1708=\"\",\"\",IF(OR('TSA Input'!J1708=\"Yes\",'TSA Input'!J1708=\"Contingent\"),'TSA Input'!B1708,\"Ineligible\"))","v":""},{"$f":"IF('TSA Input'!J1708=\"\",\"\",IF(OR('TSA Input'!J1708=\"Yes\",'TSA Input'!J1708=\"Contingent\"),'TSA Input'!I1708,\"\"))","v":""},{"$f":"IF('TSA Input'!J1708=\"\",\"\",IF(OR('TSA Input'!J1708=\"Yes\",'TSA Input'!J1708=\"Contingent\"),'TSA Input'!C1708,\"\"))","v":""},{"$f":"IF('TSA Input'!J1708=\"\",\"\",IF(OR('TSA Input'!J1708=\"Yes\",'TSA Input'!J1708=\"Contingent\"),'TSA Input'!D1708,\"\"))","v":""},{"$f":"IF('TSA Input'!J1708=\"\",\"\",IF(OR('TSA Input'!J1708=\"Yes\",'TSA Input'!J1708=\"Contingent\"),'TSA Input'!G1708,\"\"))","v":""},{"$f":"IF('TSA Input'!J1708=\"\",\"\",IF(OR('TSA Input'!J1708=\"Yes\",'TSA Input'!J1708=\"Contingent\"),'TSA Input'!F1708,\"\"))","v":""},"",{"$f":"IF('TSA Input'!J1708=\"\",\"\",IF(OR('TSA Input'!J1708=\"Yes\",'TSA Input'!J1708=\"Contingent\"),'TSA Input'!D1708,\"\"))","v":""},{"$f":"IF('TSA Input'!J1708=\"\",\"\",IF(OR('TSA Input'!J1708=\"Yes\",'TSA Input'!J1708=\"Contingent\"),'TSA Input'!G1708,\"\"))","v":""},{"$f":"IF('TSA Input'!J1708=\"\",\"\",IF(OR('TSA Input'!J1708=\"Yes\",'TSA Input'!J1708=\"Contingent\"),'TSA Input'!F1708,\"\"))","v":""},"","Required","Required"]
["",null,{"$f":"IF('TSA Input'!J1709=\"\",\"\",IF(OR('TSA Input'!J1709=\"Yes\",'TSA Input'!J1709=\"Contingent\"),'TSA Input'!B1709,\"Ineligible\"))","v":""},{"$f":"IF('TSA Input'!J1709=\"\",\"\",IF(OR('TSA Input'!J1709=\"Yes\",'TSA Input'!J1709=\"Contingent\"),'TSA Input'!I1709,\"\"))","v":""},{"$f":"IF('TSA Input'!J1709=\"\",\"\",IF(OR('TSA Input'!J1709=\"Yes\",'TSA Input'!J1709=\"Contingent\"),'TSA Input'!C1709,\"\"))","v":""},{"$f":"IF('TSA Input'!J1709=\"\",\"\",IF(OR('TSA Input'!J1709=\"Yes\",'TSA Input'!J1709=\"Contingent\"),'TSA Input'!D1709,\"\"))","v":""},{"$f":"IF('TSA Input'!J1709=\"\",\"\",IF(OR('TSA Input'!J1709=\"Yes\",'TSA Input'!J1709=\"Contingent\"),'TSA Input'!G1709,\"\"))","v":""},{"$f":"IF('TSA Input'!J1709=\"\",\"\",IF(OR('TSA Input'!J1709=\"Yes\",'TSA Input'!J1709=\"Contingent\"),'TSA Input'!F1709,\"\"))","v":""},"",{"$f":"IF('TSA Input'!J1709=\"\",\"\",IF(OR('TSA Input'!J1709=\"Yes\",'TSA Input'!J1709=\"Contingent\"),'TSA Input'!D1709,\"\"))","v":""},{"$f":"IF('TSA Input'!J1709=\"\",\"\",IF(OR('TSA Input'!J1709=\"Yes\",'TSA Input'!J1709=\"Contingent\"),'TSA Input'!G1709,\"\"))","v":""},{"$f":"IF('TSA Input'!J1709=\"\",\"\",IF(OR('TSA Input'!J1709=\"Yes\",'TSA Input'!J1709=\"Contingent\"),'TSA Input'!F1709,\"\"))","v":""},"","Required","Required"]
["",null,{"$f":"IF('TSA Input'!J1710=\"\",\"\",IF(OR('TSA Input'!J1710=\"Yes\",'TSA Input'!J1710=\"Contingent\"),'TSA Input'!B1710,\"Ineligible\"))","v":""},{"$f":"IF('TSA Input'!J1710=\"\",\"\",IF(OR('TSA Input'!J1710=\"Yes\",'TSA Input'!J1710=\"Contingent\"),'TSA Input'!I1710,\"\"))","v":""},{"$f":"IF('TSA Input'!J1710=\"\",\"\",IF(OR('TSA Input'!J1710=\"Yes\",'TSA Input'!J1710=\"Contingent\"),'TSA Input'!C1710,\"\"))","v":""},{"$f":"IF('TSA Input'!J1710=\"\",\"\",IF(OR('TSA Input'!J1710=\"Yes\",'TSA Input'!J1710=\"Contingent\"),'TSA Input'!D1710,\"\"))","v":""},{"$f":"IF('TSA Input'!J1710=\"\",\"\",IF(OR('TSA Input'!J1710=\"Yes\",'TSA Input'!J1710=\"Contingent\"),'TSA Input'!G1710,\"\"))","v":""},{"$f":"IF('TSA Input'!J1710=\"\",\"\",IF(OR('TSA Input'!J1710=\"Yes\",'TSA Input'!J1710=\"Contingent\"),'TSA Input'!F1710,\"\"))","v":""},"",{"$f":"IF('TSA Input'!J1710=\"\",\"\",IF(OR('TSA Input'!J1710=\"Yes\",'TSA Input'!J1710=\"Contingent\"),'TSA Input'!D1710,\"\"))","v":""},{"$f":"IF('TSA Input'!J1710=\"\",\"\",IF(OR('TSA Input'!J1710=\"Yes\",'TSA Input'!J1710=\"Contingent\"),'TSA Input'!G1710,\"\"))","v":""},{"$f":"IF('TSA Input'!J1710=\"\",\"\",IF(OR('TSA Input'!J1710=\"Yes\",'TSA Input'!J1710=\"Contingent\"),'TSA Input'!F1710,\"\"))","v":""},"","Required","Required"]
["",null,{"$f":"IF('TSA Input'!J1711=\"\",\"\",IF(OR('TSA Input'!J1711=\"Yes\",'TSA Input'!J1711=\"Contingent\"),'TSA Input'!B1711,\"Ineligible\"))","v":""},{"$f":"IF('TSA Input'!J1711=\"\",\"\",IF(OR('TSA Input'!J1711=\"Yes\",'TSA Input'!J1711=\"Contingent\"),'TSA Input'!I1711,\"\"))","v":""},{"$f":"IF('TSA Input'!J1711=\"\",\"\",IF(OR('TSA Input'!J1711=\"Yes\",'TSA Input'!J1711=\"Contingent\"),'TSA Input'!C1711,\"\"))","v":""},{"$f":"IF('TSA Input'!J1711=\"\",\"\",IF(OR('TSA Input'!J1711=\"Yes\",'TSA Input'!J1711=\"Contingent\"),'TSA Input'!D1711,\"\"))","v":""},{"$f":"IF('TSA Input'!J1711=\"\",\"\",IF(OR('TSA Input'!J1711=\"Yes\",'TSA Input'!J1711=\"Contingent\"),'TSA Input'!G1711,\"\"))","v":""},{"$f":"IF('TSA Input'!J1711=\"\",\"\",IF(OR('TSA Input'!J1711=\"Yes\",'TSA Input'!J1711=\"Contingent\"),'TSA Input'!F1711,\"\"))","v":""},"",{"$f":"IF('TSA Input'!J1711=\"\",\"\",IF(OR('TSA Input'!J1711=\"Yes\",'TSA Input'!J1711=\"Contingent\"),'TSA Input'!D1711,\"\"))","v":""},{"$f":"IF('TSA Input'!J1711=\"\",\"\",IF(OR('TSA Input'!J1711=\"Yes\",'TSA Input'!J1711=\"Contingent\"),'TSA Input'!G1711,\"\"))","v":""},{"$f":"IF('TSA Input'!J1711=\"\",\"\",IF(OR('TSA Input'!J1711=\"Yes\",'TSA Input'!J1711=\"Contingent\"),'TSA Input'!F1711,\"\"))","v":""},"","Required","Required"]
["",null,{"$f":"IF('TSA Input'!J1712=\"\",\"\",IF(OR('TSA Input'!J1712=\"Yes\",'TSA Input'!J1712=\"Contingent\"),'TSA Input'!B1712,\"Ineligible\"))","v":""},{"$f":"IF('TSA Input'!J1712=\"\",\"\",IF(OR('TSA Input'!J1712=\"Yes\",'TSA Input'!J1712=\"Contingent\"),'TSA Input'!I1712,\"\"))","v":""},{"$f":"IF('TSA Input'!J1712=\"\",\"\",IF(OR('TSA Input'!J1712=\"Yes\",'TSA Input'!J1712=\"Contingent\"),'TSA Input'!C1712,\"\"))","v":""},{"$f":"IF('TSA Input'!J1712=\"\",\"\",IF(OR('TSA Input'!J1712=\"Yes\",'TSA Input'!J1712=\"Contingent\"),'TSA Input'!D1712,\"\"))","v":""},{"$f":"IF('TSA Input'!J1712=\"\",\"\",IF(OR('TSA Input'!J1712=\"Yes\",'TSA Input'!J1712=\"Contingent\"),'TSA Input'!G1712,\"\"))","v":""},{"$f":"IF('TSA Input'!J1712=\"\",\"\",IF(OR('TSA Input'!J1712=\"Yes\",'TSA Input'!J1712=\"Contingent\"),'TSA Input'!F1712,\"\"))","v":""},"",{"$f":"IF('TSA Input'!J1712=\"\",\"\",IF(OR('TSA Input'!J1712=\"Yes\",'TSA Input'!J1712=\"Contingent\"),'TSA Input'!D1712,\"\"))","v":""},{"$f":"IF('TSA Input'!J1712=\"\",\"\",IF(OR('TSA Input'!J1712=\"Yes\",'TSA Input'!J1712=\"Contingent\"),'TSA Input'!G1712,\"\"))","v":""},{"$f":"IF('TSA Input'!J1712=\"\",\"\",IF(OR('TSA Input'!J1712=\"Yes\",'TSA Input'!J1712=\"Contingent\"),'TSA Input'!F1712,\"\"))","v":""},"","Required","Required"]
["",null,{"$f":"IF('TSA Input'!J1713=\"\",\"\",IF(OR('TSA Input'!J1713=\"Yes\",'TSA Input'!J1713=\"Contingent\"),'TSA Input'!B1713,\"Ineligible\"))","v":""},{"$f":"IF('TSA Input'!J1713=\"\",\"\",IF(OR('TSA Input'!J1713=\"Yes\",'TSA Input'!J1713=\"Contingent\"),'TSA Input'!I1713,\"\"))","v":""},{"$f":"IF('TSA Input'!J1713=\"\",\"\",IF(OR('TSA Input'!J1713=\"Yes\",'TSA Input'!J1713=\"Contingent\"),'TSA Input'!C1713,\"\"))","v":""},{"$f":"IF('TSA Input'!J1713=\"\",\"\",IF(OR('TSA Input'!J1713=\"Yes\",'TSA Input'!J1713=\"Contingent\"),'TSA Input'!D1713,\"\"))","v":""},{"$f":"IF('TSA Input'!J1713=\"\",\"\",IF(OR('TSA Input'!J1713=\"Yes\",'TSA Input'!J1713=\"Contingent\"),'TSA Input'!G1713,\"\"))","v":""},{"$f":"IF('TSA Input'!J1713=\"\",\"\",IF(OR('TSA Input'!J1713=\"Yes\",'TSA Input'!J1713=\"Contingent\"),'TSA Input'!F1713,\"\"))","v":""},"",{"$f":"IF('TSA Input'!J1713=\"\",\"\",IF(OR('TSA Input'!J1713=\"Yes\",'TSA Input'!J1713=\"Contingent\"),'TSA Input'!D1713,\"\"))","v":""},{"$f":"IF('TSA Input'!J1713=\"\",\"\",IF(OR('TSA Input'!J1713=\"Yes\",'TSA Input'!J1713=\"Contingent\"),'TSA Input'!G1713,\"\"))","v":""},{"$f":"IF('TSA Input'!J1713=\"\",\"\",IF(OR('TSA Input'!J1713=\"Yes\",'TSA Input'!J1713=\"Contingent\"),'TSA Input'!F1713,\"\"))","v":""},"","Required","Required"]
["",null,{"$f":"IF('TSA Input'!J1714=\"\",\"\",IF(OR('TSA Input'!J1714=\"Yes\",'TSA Input'!J1714=\"Contingent\"),'TSA Input'!B1714,\"Ineligible\"))","v":""},{"$f":"IF('TSA Input'!J1714=\"\",\"\",IF(OR('TSA Input'!J1714=\"Yes\",'TSA Input'!J1714=\"Contingent\"),'TSA Input'!I1714,\"\"))","v":""},{"$f":"IF('TSA Input'!J1714=\"\",\"\",IF(OR('TSA Input'!J1714=\"Yes\",'TSA Input'!J1714=\"Contingent\"),'TSA Input'!C1714,\"\"))","v":""},{"$f":"IF('TSA Input'!J1714=\"\",\"\",IF(OR('TSA Input'!J1714=\"Yes\",'TSA Input'!J1714=\"Contingent\"),'TSA Input'!D1714,\"\"))","v":""},{"$f":"IF('TSA Input'!J1714=\"\",\"\",IF(OR('TSA Input'!J1714=\"Yes\",'TSA Input'!J1714=\"Contingent\"),'TSA Input'!G1714,\"\"))","v":""},{"$f":"IF('TSA Input'!J1714=\"\",\"\",IF(OR('TSA Input'!J1714=\"Yes\",'TSA Input'!J1714=\"Contingent\"),'TSA Input'!F1714,\"\"))","v":""},"",{"$f":"IF('TSA Input'!J1714=\"\",\"\",IF(OR('TSA Input'!J1714=\"Yes\",'TSA Input'!J1714=\"Contingent\"),'TSA Input'!D1714,\"\"))","v":""},{"$f":"IF('TSA Input'!J1714=\"\",\"\",IF(OR('TSA Input'!J1714=\"Yes\",'TSA Input'!J1714=\"Contingent\"),'TSA Input'!G1714,\"\"))","v":""},{"$f":"IF('TSA Input'!J1714=\"\",\"\",IF(OR('TSA Input'!J1714=\"Yes\",'TSA Input'!J1714=\"Contingent\"),'TSA Input'!F1714,\"\"))","v":""},"","Required","Required"]
["",null,{"$f":"IF('TSA Input'!J1715=\"\",\"\",IF(OR('TSA Input'!J1715=\"Yes\",'TSA Input'!J1715=\"Contingent\"),'TSA Input'!B1715,\"Ineligible\"))","v":""},{"$f":"IF('TSA Input'!J1715=\"\",\"\",IF(OR('TSA Input'!J1715=\"Yes\",'TSA Input'!J1715=\"Contingent\"),'TSA Input'!I1715,\"\"))","v":""},{"$f":"IF('TSA Input'!J1715=\"\",\"\",IF(OR('TSA Input'!J1715=\"Yes\",'TSA Input'!J1715=\"Contingent\"),'TSA Input'!C1715,\"\"))","v":""},{"$f":"IF('TSA Input'!J1715=\"\",\"\",IF(OR('TSA Input'!J1715=\"Yes\",'TSA Input'!J1715=\"Contingent\"),'TSA Input'!D1715,\"\"))","v":""},{"$f":"IF('TSA Input'!J1715=\"\",\"\",IF(OR('TSA Input'!J1715=\"Yes\",'TSA Input'!J1715=\"Contingent\"),'TSA Input'!G1715,\"\"))","v":""},{"$f":"IF('TSA Input'!J1715=\"\",\"\",IF(OR('TSA Input'!J1715=\"Yes\",'TSA Input'!J1715=\"Contingent\"),'TSA Input'!F1715,\"\"))","v":""},"",{"$f":"IF('TSA Input'!J1715=\"\",\"\",IF(OR('TSA Input'!J1715=\"Yes\",'TSA Input'!J1715=\"Contingent\"),'TSA Input'!D1715,\"\"))","v":""},{"$f":"IF('TSA Input'!J1715=\"\",\"\",IF(OR('TSA Input'!J1715=\"Yes\",'TSA Input'!J1715=\"Contingent\"),'TSA Input'!G1715,\"\"))","v":""},{"$f":"IF('TSA Input'!J1715=\"\",\"\",IF(OR('TSA Input'!J1715=\"Yes\",'TSA Input'!J1715=\"Contingent\"),'TSA Input'!F1715,\"\"))","v":""},"","Required","Required"]
["",null,{"$f":"IF('TSA Input'!J1716=\"\",\"\",IF(OR('TSA Input'!J1716=\"Yes\",'TSA Input'!J1716=\"Contingent\"),'TSA Input'!B1716,\"Ineligible\"))","v":""},{"$f":"IF('TSA Input'!J1716=\"\",\"\",IF(OR('TSA Input'!J1716=\"Yes\",'TSA Input'!J1716=\"Contingent\"),'TSA Input'!I1716,\"\"))","v":""},{"$f":"IF('TSA Input'!J1716=\"\",\"\",IF(OR('TSA Input'!J1716=\"Yes\",'TSA Input'!J1716=\"Contingent\"),'TSA Input'!C1716,\"\"))","v":""},{"$f":"IF('TSA Input'!J1716=\"\",\"\",IF(OR('TSA Input'!J1716=\"Yes\",'TSA Input'!J1716=\"Contingent\"),'TSA Input'!D1716,\"\"))","v":""},{"$f":"IF('TSA Input'!J1716=\"\",\"\",IF(OR('TSA Input'!J1716=\"Yes\",'TSA Input'!J1716=\"Contingent\"),'TSA Input'!G1716,\"\"))","v":""},{"$f":"IF('TSA Input'!J1716=\"\",\"\",IF(OR('TSA Input'!J1716=\"Yes\",'TSA Input'!J1716=\"Contingent\"),'TSA Input'!F1716,\"\"))","v":""},"",{"$f":"IF('TSA Input'!J1716=\"\",\"\",IF(OR('TSA Input'!J1716=\"Yes\",'TSA Input'!J1716=\"Contingent\"),'TSA Input'!D1716,\"\"))","v":""},{"$f":"IF('TSA Input'!J1716=\"\",\"\",IF(OR('TSA Input'!J1716=\"Yes\",'TSA Input'!J1716=\"Contingent\"),'TSA Input'!G1716,\"\"))","v":""},{"$f":"IF('TSA Input'!J1716=\"\",\"\",IF(OR('TSA Input'!J1716=\"Yes\",'TSA Input'!J1716=\"Contingent\"),'TSA Input'!F1716,\"\"))","v":""},"","Required","Required"]
["",null,{"$f":"IF('TSA Input'!J1717=\"\",\"\",IF(OR('TSA Input'!J1717=\"Yes\",'TSA Input'!J1717=\"Contingent\"),'TSA Input'!B1717,\"Ineligible\"))","v":""},{"$f":"IF('TSA Input'!J1717=\"\",\"\",IF(OR('TSA Input'!J1717=\"Yes\",'TSA Input'!J1717=\"Contingent\"),'TSA Input'!I1717,\"\"))","v":""},{"$f":"IF('TSA Input'!J1717=\"\",\"\",IF(OR('TSA Input'!J1717=\"Yes\",'TSA Input'!J1717=\"Contingent\"),'TSA Input'!C1717,\"\"))","v":""},{"$f":"IF('TSA Input'!J1717=\"\",\"\",IF(OR('TSA Input'!J1717=\"Yes\",'TSA Input'!J1717=\"Contingent\"),'TSA Input'!D1717,\"\"))","v":""},{"$f":"IF('TSA Input'!J1717=\"\",\"\",IF(OR('TSA Input'!J1717=\"Yes\",'TSA Input'!J1717=\"Contingent\"),'TSA Input'!G1717,\"\"))","v":""},{"$f":"IF('TSA Input'!J1717=\"\",\"\",IF(OR('TSA Input'!J1717=\"Yes\",'TSA Input'!J1717=\"Contingent\"),'TSA Input'!F1717,\"\"))","v":""},"",{"$f":"IF('TSA Input'!J1717=\"\",\"\",IF(OR('TSA Input'!J1717=\"Yes\",'TSA Input'!J1717=\"Contingent\"),'TSA Input'!D1717,\"\"))","v":""},{"$f":"IF('TSA Input'!J1717=\"\",\"\",IF(OR('TSA Input'!J1717=\"Yes\",'TSA Input'!J1717=\"Contingent\"),'TSA Input'!G1717,\"\"))","v":""},{"$f":"IF('TSA Input'!J1717=\"\",\"\",IF(OR('TSA Input'!J1717=\"Yes\",'TSA Input'!J1717=\"Contingent\"),'TSA Input'!F1717,\"\"))","v":""},"","Required","Required"]
["",null,{"$f":"IF('TSA Input'!J1718=\"\",\"\",IF(OR('TSA Input'!J1718=\"Yes\",'TSA Input'!J1718=\"Contingent\"),'TSA Input'!B1718,\"Ineligible\"))","v":""},{"$f":"IF('TSA Input'!J1718=\"\",\"\",IF(OR('TSA Input'!J1718=\"Yes\",'TSA Input'!J1718=\"Contingent\"),'TSA Input'!I1718,\"\"))","v":""},{"$f":"IF('TSA Input'!J1718=\"\",\"\",IF(OR('TSA Input'!J1718=\"Yes\",'TSA Input'!J1718=\"Contingent\"),'TSA Input'!C1718,\"\"))","v":""},{"$f":"IF('TSA Input'!J1718=\"\",\"\",IF(OR('TSA Input'!J1718=\"Yes\",'TSA Input'!J1718=\"Contingent\"),'TSA Input'!D1718,\"\"))","v":""},{"$f":"IF('TSA Input'!J1718=\"\",\"\",IF(OR('TSA Input'!J1718=\"Yes\",'TSA Input'!J1718=\"Contingent\"),'TSA Input'!G1718,\"\"))","v":""},{"$f":"IF('TSA Input'!J1718=\"\",\"\",IF(OR('TSA Input'!J1718=\"Yes\",'TSA Input'!J1718=\"Contingent\"),'TSA Input'!F1718,\"\"))","v":""},"",{"$f":"IF('TSA Input'!J1718=\"\",\"\",IF(OR('TSA Input'!J1718=\"Yes\",'TSA Input'!J1718=\"Contingent\"),'TSA Input'!D1718,\"\"))","v":""},{"$f":"IF('TSA Input'!J1718=\"\",\"\",IF(OR('TSA Input'!J1718=\"Yes\",'TSA Input'!J1718=\"Contingent\"),'TSA Input'!G1718,\"\"))","v":""},{"$f":"IF('TSA Input'!J1718=\"\",\"\",IF(OR('TSA Input'!J1718=\"Yes\",'TSA Input'!J1718=\"Contingent\"),'TSA Input'!F1718,\"\"))","v":""},"","Required","Required"]
["",null,{"$f":"IF('TSA Input'!J1719=\"\",\"\",IF(OR('TSA Input'!J1719=\"Yes\",'TSA Input'!J1719=\"Contingent\"),'TSA Input'!B1719,\"Ineligible\"))","v":""},{"$f":"IF('TSA Input'!J1719=\"\",\"\",IF(OR('TSA Input'!J1719=\"Yes\",'TSA Input'!J1719=\"Contingent\"),'TSA Input'!I1719,\"\"))","v":""},{"$f":"IF('TSA Input'!J1719=\"\",\"\",IF(OR('TSA Input'!J1719=\"Yes\",'TSA Input'!J1719=\"Contingent\"),'TSA Input'!C1719,\"\"))","v":""},{"$f":"IF('TSA Input'!J1719=\"\",\"\",IF(OR('TSA Input'!J1719=\"Yes\",'TSA Input'!J1719=\"Contingent\"),'TSA Input'!D1719,\"\"))","v":""},{"$f":"IF('TSA Input'!J1719=\"\",\"\",IF(OR('TSA Input'!J1719=\"Yes\",'TSA Input'!J1719=\"Contingent\"),'TSA Input'!G1719,\"\"))","v":""},{"$f":"IF('TSA Input'!J1719=\"\",\"\",IF(OR('TSA Input'!J1719=\"Yes\",'TSA Input'!J1719=\"Contingent\"),'TSA Input'!F1719,\"\"))","v":""},"",{"$f":"IF('TSA Input'!J1719=\"\",\"\",IF(OR('TSA Input'!J1719=\"Yes\",'TSA Input'!J1719=\"Contingent\"),'TSA Input'!D1719,\"\"))","v":""},{"$f":"IF('TSA Input'!J1719=\"\",\"\",IF(OR('TSA Input'!J1719=\"Yes\",'TSA Input'!J1719=\"Contingent\"),'TSA Input'!G1719,\"\"))","v":""},{"$f":"IF('TSA Input'!J1719=\"\",\"\",IF(OR('TSA Input'!J1719=\"Yes\",'TSA Input'!J1719=\"Contingent\"),'TSA Input'!F1719,\"\"))","v":""},"","Required","Required"]
["",null,{"$f":"IF('TSA Input'!J1720=\"\",\"\",IF(OR('TSA Input'!J1720=\"Yes\",'TSA Input'!J1720=\"Contingent\"),'TSA Input'!B1720,\"Ineligible\"))","v":""},{"$f":"IF('TSA Input'!J1720=\"\",\"\",IF(OR('TSA Input'!J1720=\"Yes\",'TSA Input'!J1720=\"Contingent\"),'TSA Input'!I1720,\"\"))","v":""},{"$f":"IF('TSA Input'!J1720=\"\",\"\",IF(OR('TSA Input'!J1720=\"Yes\",'TSA Input'!J1720=\"Contingent\"),'TSA Input'!C1720,\"\"))","v":""},{"$f":"IF('TSA Input'!J1720=\"\",\"\",IF(OR('TSA Input'!J1720=\"Yes\",'TSA Input'!J1720=\"Contingent\"),'TSA Input'!D1720,\"\"))","v":""},{"$f":"IF('TSA Input'!J1720=\"\",\"\",IF(OR('TSA Input'!J1720=\"Yes\",'TSA Input'!J1720=\"Contingent\"),'TSA Input'!G1720,\"\"))","v":""},{"$f":"IF('TSA Input'!J1720=\"\",\"\",IF(OR('TSA Input'!J1720=\"Yes\",'TSA Input'!J1720=\"Contingent\"),'TSA Input'!F1720,\"\"))","v":""},"",{"$f":"IF('TSA Input'!J1720=\"\",\"\",IF(OR('TSA Input'!J1720=\"Yes\",'TSA Input'!J1720=\"Contingent\"),'TSA Input'!D1720,\"\"))","v":""},{"$f":"IF('TSA Input'!J1720=\"\",\"\",IF(OR('TSA Input'!J1720=\"Yes\",'TSA Input'!J1720=\"Contingent\"),'TSA Input'!G1720,\"\"))","v":""},{"$f":"IF('TSA Input'!J1720=\"\",\"\",IF(OR('TSA Input'!J1720=\"Yes\",'TSA Input'!J1720=\"Contingent\"),'TSA Input'!F1720,\"\"))","v":""},"","Required","Required"]
["",null,{"$f":"IF('TSA Input'!J1721=\"\",\"\",IF(OR('TSA Input'!J1721=\"Yes\",'TSA Input'!J1721=\"Contingent\"),'TSA Input'!B1721,\"Ineligible\"))","v":""},{"$f":"IF('TSA Input'!J1721=\"\",\"\",IF(OR('TSA Input'!J1721=\"Yes\",'TSA Input'!J1721=\"Contingent\"),'TSA Input'!I1721,\"\"))","v":""},{"$f":"IF('TSA Input'!J1721=\"\",\"\",IF(OR('TSA Input'!J1721=\"Yes\",'TSA Input'!J1721=\"Contingent\"),'TSA Input'!C1721,\"\"))","v":""},{"$f":"IF('TSA Input'!J1721=\"\",\"\",IF(OR('TSA Input'!J1721=\"Yes\",'TSA Input'!J1721=\"Contingent\"),'TSA Input'!D1721,\"\"))","v":""},{"$f":"IF('TSA Input'!J1721=\"\",\"\",IF(OR('TSA Input'!J1721=\"Yes\",'TSA Input'!J1721=\"Contingent\"),'TSA Input'!G1721,\"\"))","v":""},{"$f":"IF('TSA Input'!J1721=\"\",\"\",IF(OR('TSA Input'!J1721=\"Yes\",'TSA Input'!J1721=\"Contingent\"),'TSA Input'!F1721,\"\"))","v":""},"",{"$f":"IF('TSA Input'!J1721=\"\",\"\",IF(OR('TSA Input'!J1721=\"Yes\",'TSA Input'!J1721=\"Contingent\"),'TSA Input'!D1721,\"\"))","v":""},{"$f":"IF('TSA Input'!J1721=\"\",\"\",IF(OR('TSA Input'!J1721=\"Yes\",'TSA Input'!J1721=\"Contingent\"),'TSA Input'!G1721,\"\"))","v":""},{"$f":"IF('TSA Input'!J1721=\"\",\"\",IF(OR('TSA Input'!J1721=\"Yes\",'TSA Input'!J1721=\"Contingent\"),'TSA Input'!F1721,\"\"))","v":""},"","Required","Required"]
["",null,{"$f":"IF('TSA Input'!J1722=\"\",\"\",IF(OR('TSA Input'!J1722=\"Yes\",'TSA Input'!J1722=\"Contingent\"),'TSA Input'!B1722,\"Ineligible\"))","v":""},{"$f":"IF('TSA Input'!J1722=\"\",\"\",IF(OR('TSA Input'!J1722=\"Yes\",'TSA Input'!J1722=\"Contingent\"),'TSA Input'!I1722,\"\"))","v":""},{"$f":"IF('TSA Input'!J1722=\"\",\"\",IF(OR('TSA Input'!J1722=\"Yes\",'TSA Input'!J1722=\"Contingent\"),'TSA Input'!C1722,\"\"))","v":""},{"$f":"IF('TSA Input'!J1722=\"\",\"\",IF(OR('TSA Input'!J1722=\"Yes\",'TSA Input'!J1722=\"Contingent\"),'TSA Input'!D1722,\"\"))","v":""},{"$f":"IF('TSA Input'!J1722=\"\",\"\",IF(OR('TSA Input'!J1722=\"Yes\",'TSA Input'!J1722=\"Contingent\"),'TSA Input'!G1722,\"\"))","v":""},{"$f":"IF('TSA Input'!J1722=\"\",\"\",IF(OR('TSA Input'!J1722=\"Yes\",'TSA Input'!J1722=\"Contingent\"),'TSA Input'!F1722,\"\"))","v":""},"",{"$f":"IF('TSA Input'!J1722=\"\",\"\",IF(OR('TSA Input'!J1722=\"Yes\",'TSA Input'!J1722=\"Contingent\"),'TSA Input'!D1722,\"\"))","v":""},{"$f":"IF('TSA Input'!J1722=\"\",\"\",IF(OR('TSA Input'!J1722=\"Yes\",'TSA Input'!J1722=\"Contingent\"),'TSA Input'!G1722,\"\"))","v":""},{"$f":"IF('TSA Input'!J1722=\"\",\"\",IF(OR('TSA Input'!J1722=\"Yes\",'TSA Input'!J1722=\"Contingent\"),'TSA Input'!F1722,\"\"))","v":""},"","Required","Required"]
["",null,{"$f":"IF('TSA Input'!J1723=\"\",\"\",IF(OR('TSA Input'!J1723=\"Yes\",'TSA Input'!J1723=\"Contingent\"),'TSA Input'!B1723,\"Ineligible\"))","v":""},{"$f":"IF('TSA Input'!J1723=\"\",\"\",IF(OR('TSA Input'!J1723=\"Yes\",'TSA Input'!J1723=\"Contingent\"),'TSA Input'!I1723,\"\"))","v":""},{"$f":"IF('TSA Input'!J1723=\"\",\"\",IF(OR('TSA Input'!J1723=\"Yes\",'TSA Input'!J1723=\"Contingent\"),'TSA Input'!C1723,\"\"))","v":""},{"$f":"IF('TSA Input'!J1723=\"\",\"\",IF(OR('TSA Input'!J1723=\"Yes\",'TSA Input'!J1723=\"Contingent\"),'TSA Input'!D1723,\"\"))","v":""},{"$f":"IF('TSA Input'!J1723=\"\",\"\",IF(OR('TSA Input'!J1723=\"Yes\",'TSA Input'!J1723=\"Contingent\"),'TSA Input'!G1723,\"\"))","v":""},{"$f":"IF('TSA Input'!J1723=\"\",\"\",IF(OR('TSA Input'!J1723=\"Yes\",'TSA Input'!J1723=\"Contingent\"),'TSA Input'!F1723,\"\"))","v":""},"",{"$f":"IF('TSA Input'!J1723=\"\",\"\",IF(OR('TSA Input'!J1723=\"Yes\",'TSA Input'!J1723=\"Contingent\"),'TSA Input'!D1723,\"\"))","v":""},{"$f":"IF('TSA Input'!J1723=\"\",\"\",IF(OR('TSA Input'!J1723=\"Yes\",'TSA Input'!J1723=\"Contingent\"),'TSA Input'!G1723,\"\"))","v":""},{"$f":"IF('TSA Input'!J1723=\"\",\"\",IF(OR('TSA Input'!J1723=\"Yes\",'TSA Input'!J1723=\"Contingent\"),'TSA Input'!F1723,\"\"))","v":""},"","Required","Required"]
["",null,{"$f":"IF('TSA Input'!J1724=\"\",\"\",IF(OR('TSA Input'!J1724=\"Yes\",'TSA Input'!J1724=\"Contingent\"),'TSA Input'!B1724,\"Ineligible\"))","v":""},{"$f":"IF('TSA Input'!J1724=\"\",\"\",IF(OR('TSA Input'!J1724=\"Yes\",'TSA Input'!J1724=\"Contingent\"),'TSA Input'!I1724,\"\"))","v":""},{"$f":"IF('TSA Input'!J1724=\"\",\"\",IF(OR('TSA Input'!J1724=\"Yes\",'TSA Input'!J1724=\"Contingent\"),'TSA Input'!C1724,\"\"))","v":""},{"$f":"IF('TSA Input'!J1724=\"\",\"\",IF(OR('TSA Input'!J1724=\"Yes\",'TSA Input'!J1724=\"Contingent\"),'TSA Input'!D1724,\"\"))","v":""},{"$f":"IF('TSA Input'!J1724=\"\",\"\",IF(OR('TSA Input'!J1724=\"Yes\",'TSA Input'!J1724=\"Contingent\"),'TSA Input'!G1724,\"\"))","v":""},{"$f":"IF('TSA Input'!J1724=\"\",\"\",IF(OR('TSA Input'!J1724=\"Yes\",'TSA Input'!J1724=\"Contingent\"),'TSA Input'!F1724,\"\"))","v":""},"",{"$f":"IF('TSA Input'!J1724=\"\",\"\",IF(OR('TSA Input'!J1724=\"Yes\",'TSA Input'!J1724=\"Contingent\"),'TSA Input'!D1724,\"\"))","v":""},{"$f":"IF('TSA Input'!J1724=\"\",\"\",IF(OR('TSA Input'!J1724=\"Yes\",'TSA Input'!J1724=\"Contingent\"),'TSA Input'!G1724,\"\"))","v":""},{"$f":"IF('TSA Input'!J1724=\"\",\"\",IF(OR('TSA Input'!J1724=\"Yes\",'TSA Input'!J1724=\"Contingent\"),'TSA Input'!F1724,\"\"))","v":""},"","Required","Required"]
["",null,{"$f":"IF('TSA Input'!J1725=\"\",\"\",IF(OR('TSA Input'!J1725=\"Yes\",'TSA Input'!J1725=\"Contingent\"),'TSA Input'!B1725,\"Ineligible\"))","v":""},{"$f":"IF('TSA Input'!J1725=\"\",\"\",IF(OR('TSA Input'!J1725=\"Yes\",'TSA Input'!J1725=\"Contingent\"),'TSA Input'!I1725,\"\"))","v":""},{"$f":"IF('TSA Input'!J1725=\"\",\"\",IF(OR('TSA Input'!J1725=\"Yes\",'TSA Input'!J1725=\"Contingent\"),'TSA Input'!C1725,\"\"))","v":""},{"$f":"IF('TSA Input'!J1725=\"\",\"\",IF(OR('TSA Input'!J1725=\"Yes\",'TSA Input'!J1725=\"Contingent\"),'TSA Input'!D1725,\"\"))","v":""},{"$f":"IF('TSA Input'!J1725=\"\",\"\",IF(OR('TSA Input'!J1725=\"Yes\",'TSA Input'!J1725=\"Contingent\"),'TSA Input'!G1725,\"\"))","v":""},{"$f":"IF('TSA Input'!J1725=\"\",\"\",IF(OR('TSA Input'!J1725=\"Yes\",'TSA Input'!J1725=\"Contingent\"),'TSA Input'!F1725,\"\"))","v":""},"",{"$f":"IF('TSA Input'!J1725=\"\",\"\",IF(OR('TSA Input'!J1725=\"Yes\",'TSA Input'!J1725=\"Contingent\"),'TSA Input'!D1725,\"\"))","v":""},{"$f":"IF('TSA Input'!J1725=\"\",\"\",IF(OR('TSA Input'!J1725=\"Yes\",'TSA Input'!J1725=\"Contingent\"),'TSA Input'!G1725,\"\"))","v":""},{"$f":"IF('TSA Input'!J1725=\"\",\"\",IF(OR('TSA Input'!J1725=\"Yes\",'TSA Input'!J1725=\"Contingent\"),'TSA Input'!F1725,\"\"))","v":""},"","Required","Required"]
["",null,{"$f":"IF('TSA Input'!J1726=\"\",\"\",IF(OR('TSA Input'!J1726=\"Yes\",'TSA Input'!J1726=\"Contingent\"),'TSA Input'!B1726,\"Ineligible\"))","v":""},{"$f":"IF('TSA Input'!J1726=\"\",\"\",IF(OR('TSA Input'!J1726=\"Yes\",'TSA Input'!J1726=\"Contingent\"),'TSA Input'!I1726,\"\"))","v":""},{"$f":"IF('TSA Input'!J1726=\"\",\"\",IF(OR('TSA Input'!J1726=\"Yes\",'TSA Input'!J1726=\"Contingent\"),'TSA Input'!C1726,\"\"))","v":""},{"$f":"IF('TSA Input'!J1726=\"\",\"\",IF(OR('TSA Input'!J1726=\"Yes\",'TSA Input'!J1726=\"Contingent\"),'TSA Input'!D1726,\"\"))","v":""},{"$f":"IF('TSA Input'!J1726=\"\",\"\",IF(OR('TSA Input'!J1726=\"Yes\",'TSA Input'!J1726=\"Contingent\"),'TSA Input'!G1726,\"\"))","v":""},{"$f":"IF('TSA Input'!J1726=\"\",\"\",IF(OR('TSA Input'!J1726=\"Yes\",'TSA Input'!J1726=\"Contingent\"),'TSA Input'!F1726,\"\"))","v":""},"",{"$f":"IF('TSA Input'!J1726=\"\",\"\",IF(OR('TSA Input'!J1726=\"Yes\",'TSA Input'!J1726=\"Contingent\"),'TSA Input'!D1726,\"\"))","v":""},{"$f":"IF('TSA Input'!J1726=\"\",\"\",IF(OR('TSA Input'!J1726=\"Yes\",'TSA Input'!J1726=\"Contingent\"),'TSA Input'!G1726,\"\"))","v":""},{"$f":"IF('TSA Input'!J1726=\"\",\"\",IF(OR('TSA Input'!J1726=\"Yes\",'TSA Input'!J1726=\"Contingent\"),'TSA Input'!F1726,\"\"))","v":""},"","Required","Required"]
["",null,{"$f":"IF('TSA Input'!J1727=\"\",\"\",IF(OR('TSA Input'!J1727=\"Yes\",'TSA Input'!J1727=\"Contingent\"),'TSA Input'!B1727,\"Ineligible\"))","v":""},{"$f":"IF('TSA Input'!J1727=\"\",\"\",IF(OR('TSA Input'!J1727=\"Yes\",'TSA Input'!J1727=\"Contingent\"),'TSA Input'!I1727,\"\"))","v":""},{"$f":"IF('TSA Input'!J1727=\"\",\"\",IF(OR('TSA Input'!J1727=\"Yes\",'TSA Input'!J1727=\"Contingent\"),'TSA Input'!C1727,\"\"))","v":""},{"$f":"IF('TSA Input'!J1727=\"\",\"\",IF(OR('TSA Input'!J1727=\"Yes\",'TSA Input'!J1727=\"Contingent\"),'TSA Input'!D1727,\"\"))","v":""},{"$f":"IF('TSA Input'!J1727=\"\",\"\",IF(OR('TSA Input'!J1727=\"Yes\",'TSA Input'!J1727=\"Contingent\"),'TSA Input'!G1727,\"\"))","v":""},{"$f":"IF('TSA Input'!J1727=\"\",\"\",IF(OR('TSA Input'!J1727=\"Yes\",'TSA Input'!J1727=\"Contingent\"),'TSA Input'!F1727,\"\"))","v":""},"",{"$f":"IF('TSA Input'!J1727=\"\",\"\",IF(OR('TSA Input'!J1727=\"Yes\",'TSA Input'!J1727=\"Contingent\"),'TSA Input'!D1727,\"\"))","v":""},{"$f":"IF('TSA Input'!J1727=\"\",\"\",IF(OR('TSA Input'!J1727=\"Yes\",'TSA Input'!J1727=\"Contingent\"),'TSA Input'!G1727,\"\"))","v":""},{"$f":"IF('TSA Input'!J1727=\"\",\"\",IF(OR('TSA Input'!J1727=\"Yes\",'TSA Input'!J1727=\"Contingent\"),'TSA Input'!F1727,\"\"))","v":""},"","Required","Required"]
["",null,{"$f":"IF('TSA Input'!J1728=\"\",\"\",IF(OR('TSA Input'!J1728=\"Yes\",'TSA Input'!J1728=\"Contingent\"),'TSA Input'!B1728,\"Ineligible\"))","v":""},{"$f":"IF('TSA Input'!J1728=\"\",\"\",IF(OR('TSA Input'!J1728=\"Yes\",'TSA Input'!J1728=\"Contingent\"),'TSA Input'!I1728,\"\"))","v":""},{"$f":"IF('TSA Input'!J1728=\"\",\"\",IF(OR('TSA Input'!J1728=\"Yes\",'TSA Input'!J1728=\"Contingent\"),'TSA Input'!C1728,\"\"))","v":""},{"$f":"IF('TSA Input'!J1728=\"\",\"\",IF(OR('TSA Input'!J1728=\"Yes\",'TSA Input'!J1728=\"Contingent\"),'TSA Input'!D1728,\"\"))","v":""},{"$f":"IF('TSA Input'!J1728=\"\",\"\",IF(OR('TSA Input'!J1728=\"Yes\",'TSA Input'!J1728=\"Contingent\"),'TSA Input'!G1728,\"\"))","v":""},{"$f":"IF('TSA Input'!J1728=\"\",\"\",IF(OR('TSA Input'!J1728=\"Yes\",'TSA Input'!J1728=\"Contingent\"),'TSA Input'!F1728,\"\"))","v":""},"",{"$f":"IF('TSA Input'!J1728=\"\",\"\",IF(OR('TSA Input'!J1728=\"Yes\",'TSA Input'!J1728=\"Contingent\"),'TSA Input'!D1728,\"\"))","v":""},{"$f":"IF('TSA Input'!J1728=\"\",\"\",IF(OR('TSA Input'!J1728=\"Yes\",'TSA Input'!J1728=\"Contingent\"),'TSA Input'!G1728,\"\"))","v":""},{"$f":"IF('TSA Input'!J1728=\"\",\"\",IF(OR('TSA Input'!J1728=\"Yes\",'TSA Input'!J1728=\"Contingent\"),'TSA Input'!F1728,\"\"))","v":""},"","Required","Required"]
["",null,{"$f":"IF('TSA Input'!J1729=\"\",\"\",IF(OR('TSA Input'!J1729=\"Yes\",'TSA Input'!J1729=\"Contingent\"),'TSA Input'!B1729,\"Ineligible\"))","v":""},{"$f":"IF('TSA Input'!J1729=\"\",\"\",IF(OR('TSA Input'!J1729=\"Yes\",'TSA Input'!J1729=\"Contingent\"),'TSA Input'!I1729,\"\"))","v":""},{"$f":"IF('TSA Input'!J1729=\"\",\"\",IF(OR('TSA Input'!J1729=\"Yes\",'TSA Input'!J1729=\"Contingent\"),'TSA Input'!C1729,\"\"))","v":""},{"$f":"IF('TSA Input'!J1729=\"\",\"\",IF(OR('TSA Input'!J1729=\"Yes\",'TSA Input'!J1729=\"Contingent\"),'TSA Input'!D1729,\"\"))","v":""},{"$f":"IF('TSA Input'!J1729=\"\",\"\",IF(OR('TSA Input'!J1729=\"Yes\",'TSA Input'!J1729=\"Contingent\"),'TSA Input'!G1729,\"\"))","v":""},{"$f":"IF('TSA Input'!J1729=\"\",\"\",IF(OR('TSA Input'!J1729=\"Yes\",'TSA Input'!J1729=\"Contingent\"),'TSA Input'!F1729,\"\"))","v":""},"",{"$f":"IF('TSA Input'!J1729=\"\",\"\",IF(OR('TSA Input'!J1729=\"Yes\",'TSA Input'!J1729=\"Contingent\"),'TSA Input'!D1729,\"\"))","v":""},{"$f":"IF('TSA Input'!J1729=\"\",\"\",IF(OR('TSA Input'!J1729=\"Yes\",'TSA Input'!J1729=\"Contingent\"),'TSA Input'!G1729,\"\"))","v":""},{"$f":"IF('TSA Input'!J1729=\"\",\"\",IF(OR('TSA Input'!J1729=\"Yes\",'TSA Input'!J1729=\"Contingent\"),'TSA Input'!F1729,\"\"))","v":""},"","Required","Required"]
["",null,{"$f":"IF('TSA Input'!J1730=\"\",\"\",IF(OR('TSA Input'!J1730=\"Yes\",'TSA Input'!J1730=\"Contingent\"),'TSA Input'!B1730,\"Ineligible\"))","v":""},{"$f":"IF('TSA Input'!J1730=\"\",\"\",IF(OR('TSA Input'!J1730=\"Yes\",'TSA Input'!J1730=\"Contingent\"),'TSA Input'!I1730,\"\"))","v":""},{"$f":"IF('TSA Input'!J1730=\"\",\"\",IF(OR('TSA Input'!J1730=\"Yes\",'TSA Input'!J1730=\"Contingent\"),'TSA Input'!C1730,\"\"))","v":""},{"$f":"IF('TSA Input'!J1730=\"\",\"\",IF(OR('TSA Input'!J1730=\"Yes\",'TSA Input'!J1730=\"Contingent\"),'TSA Input'!D1730,\"\"))","v":""},{"$f":"IF('TSA Input'!J1730=\"\",\"\",IF(OR('TSA Input'!J1730=\"Yes\",'TSA Input'!J1730=\"Contingent\"),'TSA Input'!G1730,\"\"))","v":""},{"$f":"IF('TSA Input'!J1730=\"\",\"\",IF(OR('TSA Input'!J1730=\"Yes\",'TSA Input'!J1730=\"Contingent\"),'TSA Input'!F1730,\"\"))","v":""},"",{"$f":"IF('TSA Input'!J1730=\"\",\"\",IF(OR('TSA Input'!J1730=\"Yes\",'TSA Input'!J1730=\"Contingent\"),'TSA Input'!D1730,\"\"))","v":""},{"$f":"IF('TSA Input'!J1730=\"\",\"\",IF(OR('TSA Input'!J1730=\"Yes\",'TSA Input'!J1730=\"Contingent\"),'TSA Input'!G1730,\"\"))","v":""},{"$f":"IF('TSA Input'!J1730=\"\",\"\",IF(OR('TSA Input'!J1730=\"Yes\",'TSA Input'!J1730=\"Contingent\"),'TSA Input'!F1730,\"\"))","v":""},"","Required","Required"]
["",null,{"$f":"IF('TSA Input'!J1731=\"\",\"\",IF(OR('TSA Input'!J1731=\"Yes\",'TSA Input'!J1731=\"Contingent\"),'TSA Input'!B1731,\"Ineligible\"))","v":""},{"$f":"IF('TSA Input'!J1731=\"\",\"\",IF(OR('TSA Input'!J1731=\"Yes\",'TSA Input'!J1731=\"Contingent\"),'TSA Input'!I1731,\"\"))","v":""},{"$f":"IF('TSA Input'!J1731=\"\",\"\",IF(OR('TSA Input'!J1731=\"Yes\",'TSA Input'!J1731=\"Contingent\"),'TSA Input'!C1731,\"\"))","v":""},{"$f":"IF('TSA Input'!J1731=\"\",\"\",IF(OR('TSA Input'!J1731=\"Yes\",'TSA Input'!J1731=\"Contingent\"),'TSA Input'!D1731,\"\"))","v":""},{"$f":"IF('TSA Input'!J1731=\"\",\"\",IF(OR('TSA Input'!J1731=\"Yes\",'TSA Input'!J1731=\"Contingent\"),'TSA Input'!G1731,\"\"))","v":""},{"$f":"IF('TSA Input'!J1731=\"\",\"\",IF(OR('TSA Input'!J1731=\"Yes\",'TSA Input'!J1731=\"Contingent\"),'TSA Input'!F1731,\"\"))","v":""},"",{"$f":"IF('TSA Input'!J1731=\"\",\"\",IF(OR('TSA Input'!J1731=\"Yes\",'TSA Input'!J1731=\"Contingent\"),'TSA Input'!D1731,\"\"))","v":""},{"$f":"IF('TSA Input'!J1731=\"\",\"\",IF(OR('TSA Input'!J1731=\"Yes\",'TSA Input'!J1731=\"Contingent\"),'TSA Input'!G1731,\"\"))","v":""},{"$f":"IF('TSA Input'!J1731=\"\",\"\",IF(OR('TSA Input'!J1731=\"Yes\",'TSA Input'!J1731=\"Contingent\"),'TSA Input'!F1731,\"\"))","v":""},"","Required","Required"]
["",null,{"$f":"IF('TSA Input'!J1732=\"\",\"\",IF(OR('TSA Input'!J1732=\"Yes\",'TSA Input'!J1732=\"Contingent\"),'TSA Input'!B1732,\"Ineligible\"))","v":""},{"$f":"IF('TSA Input'!J1732=\"\",\"\",IF(OR('TSA Input'!J1732=\"Yes\",'TSA Input'!J1732=\"Contingent\"),'TSA Input'!I1732,\"\"))","v":""},{"$f":"IF('TSA Input'!J1732=\"\",\"\",IF(OR('TSA Input'!J1732=\"Yes\",'TSA Input'!J1732=\"Contingent\"),'TSA Input'!C1732,\"\"))","v":""},{"$f":"IF('TSA Input'!J1732=\"\",\"\",IF(OR('TSA Input'!J1732=\"Yes\",'TSA Input'!J1732=\"Contingent\"),'TSA Input'!D1732,\"\"))","v":""},{"$f":"IF('TSA Input'!J1732=\"\",\"\",IF(OR('TSA Input'!J1732=\"Yes\",'TSA Input'!J1732=\"Contingent\"),'TSA Input'!G1732,\"\"))","v":""},{"$f":"IF('TSA Input'!J1732=\"\",\"\",IF(OR('TSA Input'!J1732=\"Yes\",'TSA Input'!J1732=\"Contingent\"),'TSA Input'!F1732,\"\"))","v":""},{"$f":"IF($C1770=\"\",\"\",SUM(F1770:H1770))","v":""},{"$f":"IF('TSA Input'!J1732=\"\",\"\",IF(OR('TSA Input'!J1732=\"Yes\",'TSA Input'!J1732=\"Contingent\"),'TSA Input'!D1732,\"\"))","v":""},{"$f":"IF('TSA Input'!J1732=\"\",\"\",IF(OR('TSA Input'!J1732=\"Yes\",'TSA Input'!J1732=\"Contingent\"),'TSA Input'!G1732,\"\"))","v":""},{"$f":"IF('TSA Input'!J1732=\"\",\"\",IF(OR('TSA Input'!J1732=\"Yes\",'TSA Input'!J1732=\"Contingent\"),'TSA Input'!F1732,\"\"))","v":""},{"$f":"IF($C1770=\"\",\"\",SUM(J1770:L1770))","v":""},"Required","Required"]
["",null,{"$f":"IF('TSA Input'!J1733=\"\",\"\",IF(OR('TSA Input'!J1733=\"Yes\",'TSA Input'!J1733=\"Contingent\"),'TSA Input'!B1733,\"Ineligible\"))","v":""},{"$f":"IF('TSA Input'!J1733=\"\",\"\",IF(OR('TSA Input'!J1733=\"Yes\",'TSA Input'!J1733=\"Contingent\"),'TSA Input'!I1733,\"\"))","v":""},{"$f":"IF('TSA Input'!J1733=\"\",\"\",IF(OR('TSA Input'!J1733=\"Yes\",'TSA Input'!J1733=\"Contingent\"),'TSA Input'!C1733,\"\"))","v":""},{"$f":"IF('TSA Input'!J1733=\"\",\"\",IF(OR('TSA Input'!J1733=\"Yes\",'TSA Input'!J1733=\"Contingent\"),'TSA Input'!D1733,\"\"))","v":""},{"$f":"IF('TSA Input'!J1733=\"\",\"\",IF(OR('TSA Input'!J1733=\"Yes\",'TSA Input'!J1733=\"Contingent\"),'TSA Input'!G1733,\"\"))","v":""},{"$f":"IF('TSA Input'!J1733=\"\",\"\",IF(OR('TSA Input'!J1733=\"Yes\",'TSA Input'!J1733=\"Contingent\"),'TSA Input'!F1733,\"\"))","v":""},"",{"$f":"IF('TSA Input'!J1733=\"\",\"\",IF(OR('TSA Input'!J1733=\"Yes\",'TSA Input'!J1733=\"Contingent\"),'TSA Input'!D1733,\"\"))","v":""},{"$f":"IF('TSA Input'!J1733=\"\",\"\",IF(OR('TSA Input'!J1733=\"Yes\",'TSA Input'!J1733=\"Contingent\"),'TSA Input'!G1733,\"\"))","v":""},{"$f":"IF('TSA Input'!J1733=\"\",\"\",IF(OR('TSA Input'!J1733=\"Yes\",'TSA Input'!J1733=\"Contingent\"),'TSA Input'!F1733,\"\"))","v":""},"","Required","Required"]
["",null,{"$f":"IF('TSA Input'!J1734=\"\",\"\",IF(OR('TSA Input'!J1734=\"Yes\",'TSA Input'!J1734=\"Contingent\"),'TSA Input'!B1734,\"Ineligible\"))","v":""},{"$f":"IF('TSA Input'!J1734=\"\",\"\",IF(OR('TSA Input'!J1734=\"Yes\",'TSA Input'!J1734=\"Contingent\"),'TSA Input'!I1734,\"\"))","v":""},{"$f":"IF('TSA Input'!J1734=\"\",\"\",IF(OR('TSA Input'!J1734=\"Yes\",'TSA Input'!J1734=\"Contingent\"),'TSA Input'!C1734,\"\"))","v":""},{"$f":"IF('TSA Input'!J1734=\"\",\"\",IF(OR('TSA Input'!J1734=\"Yes\",'TSA Input'!J1734=\"Contingent\"),'TSA Input'!D1734,\"\"))","v":""},{"$f":"IF('TSA Input'!J1734=\"\",\"\",IF(OR('TSA Input'!J1734=\"Yes\",'TSA Input'!J1734=\"Contingent\"),'TSA Input'!G1734,\"\"))","v":""},{"$f":"IF('TSA Input'!J1734=\"\",\"\",IF(OR('TSA Input'!J1734=\"Yes\",'TSA Input'!J1734=\"Contingent\"),'TSA Input'!F1734,\"\"))","v":""},"",{"$f":"IF('TSA Input'!J1734=\"\",\"\",IF(OR('TSA Input'!J1734=\"Yes\",'TSA Input'!J1734=\"Contingent\"),'TSA Input'!D1734,\"\"))","v":""},{"$f":"IF('TSA Input'!J1734=\"\",\"\",IF(OR('TSA Input'!J1734=\"Yes\",'TSA Input'!J1734=\"Contingent\"),'TSA Input'!G1734,\"\"))","v":""},{"$f":"IF('TSA Input'!J1734=\"\",\"\",IF(OR('TSA Input'!J1734=\"Yes\",'TSA Input'!J1734=\"Contingent\"),'TSA Input'!F1734,\"\"))","v":""},"","Required","Required"]
["",null,{"$f":"IF('TSA Input'!J1735=\"\",\"\",IF(OR('TSA Input'!J1735=\"Yes\",'TSA Input'!J1735=\"Contingent\"),'TSA Input'!B1735,\"Ineligible\"))","v":""},{"$f":"IF('TSA Input'!J1735=\"\",\"\",IF(OR('TSA Input'!J1735=\"Yes\",'TSA Input'!J1735=\"Contingent\"),'TSA Input'!I1735,\"\"))","v":""},{"$f":"IF('TSA Input'!J1735=\"\",\"\",IF(OR('TSA Input'!J1735=\"Yes\",'TSA Input'!J1735=\"Contingent\"),'TSA Input'!C1735,\"\"))","v":""},{"$f":"IF('TSA Input'!J1735=\"\",\"\",IF(OR('TSA Input'!J1735=\"Yes\",'TSA Input'!J1735=\"Contingent\"),'TSA Input'!D1735,\"\"))","v":""},{"$f":"IF('TSA Input'!J1735=\"\",\"\",IF(OR('TSA Input'!J1735=\"Yes\",'TSA Input'!J1735=\"Contingent\"),'TSA Input'!G1735,\"\"))","v":""},{"$f":"IF('TSA Input'!J1735=\"\",\"\",IF(OR('TSA Input'!J1735=\"Yes\",'TSA Input'!J1735=\"Contingent\"),'TSA Input'!F1735,\"\"))","v":""},"",{"$f":"IF('TSA Input'!J1735=\"\",\"\",IF(OR('TSA Input'!J1735=\"Yes\",'TSA Input'!J1735=\"Contingent\"),'TSA Input'!D1735,\"\"))","v":""},{"$f":"IF('TSA Input'!J1735=\"\",\"\",IF(OR('TSA Input'!J1735=\"Yes\",'TSA Input'!J1735=\"Contingent\"),'TSA Input'!G1735,\"\"))","v":""},{"$f":"IF('TSA Input'!J1735=\"\",\"\",IF(OR('TSA Input'!J1735=\"Yes\",'TSA Input'!J1735=\"Contingent\"),'TSA Input'!F1735,\"\"))","v":""},"","Required","Required"]
["",null,{"$f":"IF('TSA Input'!J1736=\"\",\"\",IF(OR('TSA Input'!J1736=\"Yes\",'TSA Input'!J1736=\"Contingent\"),'TSA Input'!B1736,\"Ineligible\"))","v":""},{"$f":"IF('TSA Input'!J1736=\"\",\"\",IF(OR('TSA Input'!J1736=\"Yes\",'TSA Input'!J1736=\"Contingent\"),'TSA Input'!I1736,\"\"))","v":""},{"$f":"IF('TSA Input'!J1736=\"\",\"\",IF(OR('TSA Input'!J1736=\"Yes\",'TSA Input'!J1736=\"Contingent\"),'TSA Input'!C1736,\"\"))","v":""},{"$f":"IF('TSA Input'!J1736=\"\",\"\",IF(OR('TSA Input'!J1736=\"Yes\",'TSA Input'!J1736=\"Contingent\"),'TSA Input'!D1736,\"\"))","v":""},{"$f":"IF('TSA Input'!J1736=\"\",\"\",IF(OR('TSA Input'!J1736=\"Yes\",'TSA Input'!J1736=\"Contingent\"),'TSA Input'!G1736,\"\"))","v":""},{"$f":"IF('TSA Input'!J1736=\"\",\"\",IF(OR('TSA Input'!J1736=\"Yes\",'TSA Input'!J1736=\"Contingent\"),'TSA Input'!F1736,\"\"))","v":""},"",{"$f":"IF('TSA Input'!J1736=\"\",\"\",IF(OR('TSA Input'!J1736=\"Yes\",'TSA Input'!J1736=\"Contingent\"),'TSA Input'!D1736,\"\"))","v":""},{"$f":"IF('TSA Input'!J1736=\"\",\"\",IF(OR('TSA Input'!J1736=\"Yes\",'TSA Input'!J1736=\"Contingent\"),'TSA Input'!G1736,\"\"))","v":""},{"$f":"IF('TSA Input'!J1736=\"\",\"\",IF(OR('TSA Input'!J1736=\"Yes\",'TSA Input'!J1736=\"Contingent\"),'TSA Input'!F1736,\"\"))","v":""},"","Required","Required"]
["",null,{"$f":"IF('TSA Input'!J1737=\"\",\"\",IF(OR('TSA Input'!J1737=\"Yes\",'TSA Input'!J1737=\"Contingent\"),'TSA Input'!B1737,\"Ineligible\"))","v":""},{"$f":"IF('TSA Input'!J1737=\"\",\"\",IF(OR('TSA Input'!J1737=\"Yes\",'TSA Input'!J1737=\"Contingent\"),'TSA Input'!I1737,\"\"))","v":""},{"$f":"IF('TSA Input'!J1737=\"\",\"\",IF(OR('TSA Input'!J1737=\"Yes\",'TSA Input'!J1737=\"Contingent\"),'TSA Input'!C1737,\"\"))","v":""},{"$f":"IF('TSA Input'!J1737=\"\",\"\",IF(OR('TSA Input'!J1737=\"Yes\",'TSA Input'!J1737=\"Contingent\"),'TSA Input'!D1737,\"\"))","v":""},{"$f":"IF('TSA Input'!J1737=\"\",\"\",IF(OR('TSA Input'!J1737=\"Yes\",'TSA Input'!J1737=\"Contingent\"),'TSA Input'!G1737,\"\"))","v":""},{"$f":"IF('TSA Input'!J1737=\"\",\"\",IF(OR('TSA Input'!J1737=\"Yes\",'TSA Input'!J1737=\"Contingent\"),'TSA Input'!F1737,\"\"))","v":""},"",{"$f":"IF('TSA Input'!J1737=\"\",\"\",IF(OR('TSA Input'!J1737=\"Yes\",'TSA Input'!J1737=\"Contingent\"),'TSA Input'!D1737,\"\"))","v":""},{"$f":"IF('TSA Input'!J1737=\"\",\"\",IF(OR('TSA Input'!J1737=\"Yes\",'TSA Input'!J1737=\"Contingent\"),'TSA Input'!G1737,\"\"))","v":""},{"$f":"IF('TSA Input'!J1737=\"\",\"\",IF(OR('TSA Input'!J1737=\"Yes\",'TSA Input'!J1737=\"Contingent\"),'TSA Input'!F1737,\"\"))","v":""},"","Required","Required"]
["",null,{"$f":"IF('TSA Input'!J1738=\"\",\"\",IF(OR('TSA Input'!J1738=\"Yes\",'TSA Input'!J1738=\"Contingent\"),'TSA Input'!B1738,\"Ineligible\"))","v":""},{"$f":"IF('TSA Input'!J1738=\"\",\"\",IF(OR('TSA Input'!J1738=\"Yes\",'TSA Input'!J1738=\"Contingent\"),'TSA Input'!I1738,\"\"))","v":""},{"$f":"IF('TSA Input'!J1738=\"\",\"\",IF(OR('TSA Input'!J1738=\"Yes\",'TSA Input'!J1738=\"Contingent\"),'TSA Input'!C1738,\"\"))","v":""},{"$f":"IF('TSA Input'!J1738=\"\",\"\",IF(OR('TSA Input'!J1738=\"Yes\",'TSA Input'!J1738=\"Contingent\"),'TSA Input'!D1738,\"\"))","v":""},{"$f":"IF('TSA Input'!J1738=\"\",\"\",IF(OR('TSA Input'!J1738=\"Yes\",'TSA Input'!J1738=\"Contingent\"),'TSA Input'!G1738,\"\"))","v":""},{"$f":"IF('TSA Input'!J1738=\"\",\"\",IF(OR('TSA Input'!J1738=\"Yes\",'TSA Input'!J1738=\"Contingent\"),'TSA Input'!F1738,\"\"))","v":""},"",{"$f":"IF('TSA Input'!J1738=\"\",\"\",IF(OR('TSA Input'!J1738=\"Yes\",'TSA Input'!J1738=\"Contingent\"),'TSA Input'!D1738,\"\"))","v":""},{"$f":"IF('TSA Input'!J1738=\"\",\"\",IF(OR('TSA Input'!J1738=\"Yes\",'TSA Input'!J1738=\"Contingent\"),'TSA Input'!G1738,\"\"))","v":""},{"$f":"IF('TSA Input'!J1738=\"\",\"\",IF(OR('TSA Input'!J1738=\"Yes\",'TSA Input'!J1738=\"Contingent\"),'TSA Input'!F1738,\"\"))","v":""},"","Required","Required"]
["",null,{"$f":"IF('TSA Input'!J1739=\"\",\"\",IF(OR('TSA Input'!J1739=\"Yes\",'TSA Input'!J1739=\"Contingent\"),'TSA Input'!B1739,\"Ineligible\"))","v":""},{"$f":"IF('TSA Input'!J1739=\"\",\"\",IF(OR('TSA Input'!J1739=\"Yes\",'TSA Input'!J1739=\"Contingent\"),'TSA Input'!I1739,\"\"))","v":""},{"$f":"IF('TSA Input'!J1739=\"\",\"\",IF(OR('TSA Input'!J1739=\"Yes\",'TSA Input'!J1739=\"Contingent\"),'TSA Input'!C1739,\"\"))","v":""},{"$f":"IF('TSA Input'!J1739=\"\",\"\",IF(OR('TSA Input'!J1739=\"Yes\",'TSA Input'!J1739=\"Contingent\"),'TSA Input'!D1739,\"\"))","v":""},{"$f":"IF('TSA Input'!J1739=\"\",\"\",IF(OR('TSA Input'!J1739=\"Yes\",'TSA Input'!J1739=\"Contingent\"),'TSA Input'!G1739,\"\"))","v":""},{"$f":"IF('TSA Input'!J1739=\"\",\"\",IF(OR('TSA Input'!J1739=\"Yes\",'TSA Input'!J1739=\"Contingent\"),'TSA Input'!F1739,\"\"))","v":""},"",{"$f":"IF('TSA Input'!J1739=\"\",\"\",IF(OR('TSA Input'!J1739=\"Yes\",'TSA Input'!J1739=\"Contingent\"),'TSA Input'!D1739,\"\"))","v":""},{"$f":"IF('TSA Input'!J1739=\"\",\"\",IF(OR('TSA Input'!J1739=\"Yes\",'TSA Input'!J1739=\"Contingent\"),'TSA Input'!G1739,\"\"))","v":""},{"$f":"IF('TSA Input'!J1739=\"\",\"\",IF(OR('TSA Input'!J1739=\"Yes\",'TSA Input'!J1739=\"Contingent\"),'TSA Input'!F1739,\"\"))","v":""},"","Required","Required"]
["",null,{"$f":"IF('TSA Input'!J1740=\"\",\"\",IF(OR('TSA Input'!J1740=\"Yes\",'TSA Input'!J1740=\"Contingent\"),'TSA Input'!B1740,\"Ineligible\"))","v":""},{"$f":"IF('TSA Input'!J1740=\"\",\"\",IF(OR('TSA Input'!J1740=\"Yes\",'TSA Input'!J1740=\"Contingent\"),'TSA Input'!I1740,\"\"))","v":""},{"$f":"IF('TSA Input'!J1740=\"\",\"\",IF(OR('TSA Input'!J1740=\"Yes\",'TSA Input'!J1740=\"Contingent\"),'TSA Input'!C1740,\"\"))","v":""},{"$f":"IF('TSA Input'!J1740=\"\",\"\",IF(OR('TSA Input'!J1740=\"Yes\",'TSA Input'!J1740=\"Contingent\"),'TSA Input'!D1740,\"\"))","v":""},{"$f":"IF('TSA Input'!J1740=\"\",\"\",IF(OR('TSA Input'!J1740=\"Yes\",'TSA Input'!J1740=\"Contingent\"),'TSA Input'!G1740,\"\"))","v":""},{"$f":"IF('TSA Input'!J1740=\"\",\"\",IF(OR('TSA Input'!J1740=\"Yes\",'TSA Input'!J1740=\"Contingent\"),'TSA Input'!F1740,\"\"))","v":""},"",{"$f":"IF('TSA Input'!J1740=\"\",\"\",IF(OR('TSA Input'!J1740=\"Yes\",'TSA Input'!J1740=\"Contingent\"),'TSA Input'!D1740,\"\"))","v":""},{"$f":"IF('TSA Input'!J1740=\"\",\"\",IF(OR('TSA Input'!J1740=\"Yes\",'TSA Input'!J1740=\"Contingent\"),'TSA Input'!G1740,\"\"))","v":""},{"$f":"IF('TSA Input'!J1740=\"\",\"\",IF(OR('TSA Input'!J1740=\"Yes\",'TSA Input'!J1740=\"Contingent\"),'TSA Input'!F1740,\"\"))","v":""},"","Required","Required"]
["",null,{"$f":"IF('TSA Input'!J1741=\"\",\"\",IF(OR('TSA Input'!J1741=\"Yes\",'TSA Input'!J1741=\"Contingent\"),'TSA Input'!B1741,\"Ineligible\"))","v":""},{"$f":"IF('TSA Input'!J1741=\"\",\"\",IF(OR('TSA Input'!J1741=\"Yes\",'TSA Input'!J1741=\"Contingent\"),'TSA Input'!I1741,\"\"))","v":""},{"$f":"IF('TSA Input'!J1741=\"\",\"\",IF(OR('TSA Input'!J1741=\"Yes\",'TSA Input'!J1741=\"Contingent\"),'TSA Input'!C1741,\"\"))","v":""},{"$f":"IF('TSA Input'!J1741=\"\",\"\",IF(OR('TSA Input'!J1741=\"Yes\",'TSA Input'!J1741=\"Contingent\"),'TSA Input'!D1741,\"\"))","v":""},{"$f":"IF('TSA Input'!J1741=\"\",\"\",IF(OR('TSA Input'!J1741=\"Yes\",'TSA Input'!J1741=\"Contingent\"),'TSA Input'!G1741,\"\"))","v":""},{"$f":"IF('TSA Input'!J1741=\"\",\"\",IF(OR('TSA Input'!J1741=\"Yes\",'TSA Input'!J1741=\"Contingent\"),'TSA Input'!F1741,\"\"))","v":""},"",{"$f":"IF('TSA Input'!J1741=\"\",\"\",IF(OR('TSA Input'!J1741=\"Yes\",'TSA Input'!J1741=\"Contingent\"),'TSA Input'!D1741,\"\"))","v":""},{"$f":"IF('TSA Input'!J1741=\"\",\"\",IF(OR('TSA Input'!J1741=\"Yes\",'TSA Input'!J1741=\"Contingent\"),'TSA Input'!G1741,\"\"))","v":""},{"$f":"IF('TSA Input'!J1741=\"\",\"\",IF(OR('TSA Input'!J1741=\"Yes\",'TSA Input'!J1741=\"Contingent\"),'TSA Input'!F1741,\"\"))","v":""},"","Required","Required"]
["",null,{"$f":"IF('TSA Input'!J1742=\"\",\"\",IF(OR('TSA Input'!J1742=\"Yes\",'TSA Input'!J1742=\"Contingent\"),'TSA Input'!B1742,\"Ineligible\"))","v":""},{"$f":"IF('TSA Input'!J1742=\"\",\"\",IF(OR('TSA Input'!J1742=\"Yes\",'TSA Input'!J1742=\"Contingent\"),'TSA Input'!I1742,\"\"))","v":""},{"$f":"IF('TSA Input'!J1742=\"\",\"\",IF(OR('TSA Input'!J1742=\"Yes\",'TSA Input'!J1742=\"Contingent\"),'TSA Input'!C1742,\"\"))","v":""},{"$f":"IF('TSA Input'!J1742=\"\",\"\",IF(OR('TSA Input'!J1742=\"Yes\",'TSA Input'!J1742=\"Contingent\"),'TSA Input'!D1742,\"\"))","v":""},{"$f":"IF('TSA Input'!J1742=\"\",\"\",IF(OR('TSA Input'!J1742=\"Yes\",'TSA Input'!J1742=\"Contingent\"),'TSA Input'!G1742,\"\"))","v":""},{"$f":"IF('TSA Input'!J1742=\"\",\"\",IF(OR('TSA Input'!J1742=\"Yes\",'TSA Input'!J1742=\"Contingent\"),'TSA Input'!F1742,\"\"))","v":""},"",{"$f":"IF('TSA Input'!J1742=\"\",\"\",IF(OR('TSA Input'!J1742=\"Yes\",'TSA Input'!J1742=\"Contingent\"),'TSA Input'!D1742,\"\"))","v":""},{"$f":"IF('TSA Input'!J1742=\"\",\"\",IF(OR('TSA Input'!J1742=\"Yes\",'TSA Input'!J1742=\"Contingent\"),'TSA Input'!G1742,\"\"))","v":""},{"$f":"IF('TSA Input'!J1742=\"\",\"\",IF(OR('TSA Input'!J1742=\"Yes\",'TSA Input'!J1742=\"Contingent\"),'TSA Input'!F1742,\"\"))","v":""},"","Required","Required"]
["",null,{"$f":"IF('TSA Input'!J1743=\"\",\"\",IF(OR('TSA Input'!J1743=\"Yes\",'TSA Input'!J1743=\"Contingent\"),'TSA Input'!B1743,\"Ineligible\"))","v":""},{"$f":"IF('TSA Input'!J1743=\"\",\"\",IF(OR('TSA Input'!J1743=\"Yes\",'TSA Input'!J1743=\"Contingent\"),'TSA Input'!I1743,\"\"))","v":""},{"$f":"IF('TSA Input'!J1743=\"\",\"\",IF(OR('TSA Input'!J1743=\"Yes\",'TSA Input'!J1743=\"Contingent\"),'TSA Input'!C1743,\"\"))","v":""},{"$f":"IF('TSA Input'!J1743=\"\",\"\",IF(OR('TSA Input'!J1743=\"Yes\",'TSA Input'!J1743=\"Contingent\"),'TSA Input'!D1743,\"\"))","v":""},{"$f":"IF('TSA Input'!J1743=\"\",\"\",IF(OR('TSA Input'!J1743=\"Yes\",'TSA Input'!J1743=\"Contingent\"),'TSA Input'!G1743,\"\"))","v":""},{"$f":"IF('TSA Input'!J1743=\"\",\"\",IF(OR('TSA Input'!J1743=\"Yes\",'TSA Input'!J1743=\"Contingent\"),'TSA Input'!F1743,\"\"))","v":""},"",{"$f":"IF('TSA Input'!J1743=\"\",\"\",IF(OR('TSA Input'!J1743=\"Yes\",'TSA Input'!J1743=\"Contingent\"),'TSA Input'!D1743,\"\"))","v":""},{"$f":"IF('TSA Input'!J1743=\"\",\"\",IF(OR('TSA Input'!J1743=\"Yes\",'TSA Input'!J1743=\"Contingent\"),'TSA Input'!G1743,\"\"))","v":""},{"$f":"IF('TSA Input'!J1743=\"\",\"\",IF(OR('TSA Input'!J1743=\"Yes\",'TSA Input'!J1743=\"Contingent\"),'TSA Input'!F1743,\"\"))","v":""},"","Required","Required"]
["",null,{"$f":"IF('TSA Input'!J1744=\"\",\"\",IF(OR('TSA Input'!J1744=\"Yes\",'TSA Input'!J1744=\"Contingent\"),'TSA Input'!B1744,\"Ineligible\"))","v":""},{"$f":"IF('TSA Input'!J1744=\"\",\"\",IF(OR('TSA Input'!J1744=\"Yes\",'TSA Input'!J1744=\"Contingent\"),'TSA Input'!I1744,\"\"))","v":""},{"$f":"IF('TSA Input'!J1744=\"\",\"\",IF(OR('TSA Input'!J1744=\"Yes\",'TSA Input'!J1744=\"Contingent\"),'TSA Input'!C1744,\"\"))","v":""},{"$f":"IF('TSA Input'!J1744=\"\",\"\",IF(OR('TSA Input'!J1744=\"Yes\",'TSA Input'!J1744=\"Contingent\"),'TSA Input'!D1744,\"\"))","v":""},{"$f":"IF('TSA Input'!J1744=\"\",\"\",IF(OR('TSA Input'!J1744=\"Yes\",'TSA Input'!J1744=\"Contingent\"),'TSA Input'!G1744,\"\"))","v":""},{"$f":"IF('TSA Input'!J1744=\"\",\"\",IF(OR('TSA Input'!J1744=\"Yes\",'TSA Input'!J1744=\"Contingent\"),'TSA Input'!F1744,\"\"))","v":""},"",{"$f":"IF('TSA Input'!J1744=\"\",\"\",IF(OR('TSA Input'!J1744=\"Yes\",'TSA Input'!J1744=\"Contingent\"),'TSA Input'!D1744,\"\"))","v":""},{"$f":"IF('TSA Input'!J1744=\"\",\"\",IF(OR('TSA Input'!J1744=\"Yes\",'TSA Input'!J1744=\"Contingent\"),'TSA Input'!G1744,\"\"))","v":""},{"$f":"IF('TSA Input'!J1744=\"\",\"\",IF(OR('TSA Input'!J1744=\"Yes\",'TSA Input'!J1744=\"Contingent\"),'TSA Input'!F1744,\"\"))","v":""},"","Required","Required"]
["",null,{"$f":"IF('TSA Input'!J1745=\"\",\"\",IF(OR('TSA Input'!J1745=\"Yes\",'TSA Input'!J1745=\"Contingent\"),'TSA Input'!B1745,\"Ineligible\"))","v":""},{"$f":"IF('TSA Input'!J1745=\"\",\"\",IF(OR('TSA Input'!J1745=\"Yes\",'TSA Input'!J1745=\"Contingent\"),'TSA Input'!I1745,\"\"))","v":""},{"$f":"IF('TSA Input'!J1745=\"\",\"\",IF(OR('TSA Input'!J1745=\"Yes\",'TSA Input'!J1745=\"Contingent\"),'TSA Input'!C1745,\"\"))","v":""},{"$f":"IF('TSA Input'!J1745=\"\",\"\",IF(OR('TSA Input'!J1745=\"Yes\",'TSA Input'!J1745=\"Contingent\"),'TSA Input'!D1745,\"\"))","v":""},{"$f":"IF('TSA Input'!J1745=\"\",\"\",IF(OR('TSA Input'!J1745=\"Yes\",'TSA Input'!J1745=\"Contingent\"),'TSA Input'!G1745,\"\"))","v":""},{"$f":"IF('TSA Input'!J1745=\"\",\"\",IF(OR('TSA Input'!J1745=\"Yes\",'TSA Input'!J1745=\"Contingent\"),'TSA Input'!F1745,\"\"))","v":""},"",{"$f":"IF('TSA Input'!J1745=\"\",\"\",IF(OR('TSA Input'!J1745=\"Yes\",'TSA Input'!J1745=\"Contingent\"),'TSA Input'!D1745,\"\"))","v":""},{"$f":"IF('TSA Input'!J1745=\"\",\"\",IF(OR('TSA Input'!J1745=\"Yes\",'TSA Input'!J1745=\"Contingent\"),'TSA Input'!G1745,\"\"))","v":""},{"$f":"IF('TSA Input'!J1745=\"\",\"\",IF(OR('TSA Input'!J1745=\"Yes\",'TSA Input'!J1745=\"Contingent\"),'TSA Input'!F1745,\"\"))","v":""},"","Required","Required"]
["",null,{"$f":"IF('TSA Input'!J1746=\"\",\"\",IF(OR('TSA Input'!J1746=\"Yes\",'TSA Input'!J1746=\"Contingent\"),'TSA Input'!B1746,\"Ineligible\"))","v":""},{"$f":"IF('TSA Input'!J1746=\"\",\"\",IF(OR('TSA Input'!J1746=\"Yes\",'TSA Input'!J1746=\"Contingent\"),'TSA Input'!I1746,\"\"))","v":""},{"$f":"IF('TSA Input'!J1746=\"\",\"\",IF(OR('TSA Input'!J1746=\"Yes\",'TSA Input'!J1746=\"Contingent\"),'TSA Input'!C1746,\"\"))","v":""},{"$f":"IF('TSA Input'!J1746=\"\",\"\",IF(OR('TSA Input'!J1746=\"Yes\",'TSA Input'!J1746=\"Contingent\"),'TSA Input'!D1746,\"\"))","v":""},{"$f":"IF('TSA Input'!J1746=\"\",\"\",IF(OR('TSA Input'!J1746=\"Yes\",'TSA Input'!J1746=\"Contingent\"),'TSA Input'!G1746,\"\"))","v":""},{"$f":"IF('TSA Input'!J1746=\"\",\"\",IF(OR('TSA Input'!J1746=\"Yes\",'TSA Input'!J1746=\"Contingent\"),'TSA Input'!F1746,\"\"))","v":""},"",{"$f":"IF('TSA Input'!J1746=\"\",\"\",IF(OR('TSA Input'!J1746=\"Yes\",'TSA Input'!J1746=\"Contingent\"),'TSA Input'!D1746,\"\"))","v":""},{"$f":"IF('TSA Input'!J1746=\"\",\"\",IF(OR('TSA Input'!J1746=\"Yes\",'TSA Input'!J1746=\"Contingent\"),'TSA Input'!G1746,\"\"))","v":""},{"$f":"IF('TSA Input'!J1746=\"\",\"\",IF(OR('TSA Input'!J1746=\"Yes\",'TSA Input'!J1746=\"Contingent\"),'TSA Input'!F1746,\"\"))","v":""},"","Required","Required"]
["",null,{"$f":"IF('TSA Input'!J1747=\"\",\"\",IF(OR('TSA Input'!J1747=\"Yes\",'TSA Input'!J1747=\"Contingent\"),'TSA Input'!B1747,\"Ineligible\"))","v":""},{"$f":"IF('TSA Input'!J1747=\"\",\"\",IF(OR('TSA Input'!J1747=\"Yes\",'TSA Input'!J1747=\"Contingent\"),'TSA Input'!I1747,\"\"))","v":""},{"$f":"IF('TSA Input'!J1747=\"\",\"\",IF(OR('TSA Input'!J1747=\"Yes\",'TSA Input'!J1747=\"Contingent\"),'TSA Input'!C1747,\"\"))","v":""},{"$f":"IF('TSA Input'!J1747=\"\",\"\",IF(OR('TSA Input'!J1747=\"Yes\",'TSA Input'!J1747=\"Contingent\"),'TSA Input'!D1747,\"\"))","v":""},{"$f":"IF('TSA Input'!J1747=\"\",\"\",IF(OR('TSA Input'!J1747=\"Yes\",'TSA Input'!J1747=\"Contingent\"),'TSA Input'!G1747,\"\"))","v":""},{"$f":"IF('TSA Input'!J1747=\"\",\"\",IF(OR('TSA Input'!J1747=\"Yes\",'TSA Input'!J1747=\"Contingent\"),'TSA Input'!F1747,\"\"))","v":""},"",{"$f":"IF('TSA Input'!J1747=\"\",\"\",IF(OR('TSA Input'!J1747=\"Yes\",'TSA Input'!J1747=\"Contingent\"),'TSA Input'!D1747,\"\"))","v":""},{"$f":"IF('TSA Input'!J1747=\"\",\"\",IF(OR('TSA Input'!J1747=\"Yes\",'TSA Input'!J1747=\"Contingent\"),'TSA Input'!G1747,\"\"))","v":""},{"$f":"IF('TSA Input'!J1747=\"\",\"\",IF(OR('TSA Input'!J1747=\"Yes\",'TSA Input'!J1747=\"Contingent\"),'TSA Input'!F1747,\"\"))","v":""},"","Required","Required"]
["",null,{"$f":"IF('TSA Input'!J1748=\"\",\"\",IF(OR('TSA Input'!J1748=\"Yes\",'TSA Input'!J1748=\"Contingent\"),'TSA Input'!B1748,\"Ineligible\"))","v":""},{"$f":"IF('TSA Input'!J1748=\"\",\"\",IF(OR('TSA Input'!J1748=\"Yes\",'TSA Input'!J1748=\"Contingent\"),'TSA Input'!I1748,\"\"))","v":""},{"$f":"IF('TSA Input'!J1748=\"\",\"\",IF(OR('TSA Input'!J1748=\"Yes\",'TSA Input'!J1748=\"Contingent\"),'TSA Input'!C1748,\"\"))","v":""},{"$f":"IF('TSA Input'!J1748=\"\",\"\",IF(OR('TSA Input'!J1748=\"Yes\",'TSA Input'!J1748=\"Contingent\"),'TSA Input'!D1748,\"\"))","v":""},{"$f":"IF('TSA Input'!J1748=\"\",\"\",IF(OR('TSA Input'!J1748=\"Yes\",'TSA Input'!J1748=\"Contingent\"),'TSA Input'!G1748,\"\"))","v":""},{"$f":"IF('TSA Input'!J1748=\"\",\"\",IF(OR('TSA Input'!J1748=\"Yes\",'TSA Input'!J1748=\"Contingent\"),'TSA Input'!F1748,\"\"))","v":""},"",{"$f":"IF('TSA Input'!J1748=\"\",\"\",IF(OR('TSA Input'!J1748=\"Yes\",'TSA Input'!J1748=\"Contingent\"),'TSA Input'!D1748,\"\"))","v":""},{"$f":"IF('TSA Input'!J1748=\"\",\"\",IF(OR('TSA Input'!J1748=\"Yes\",'TSA Input'!J1748=\"Contingent\"),'TSA Input'!G1748,\"\"))","v":""},{"$f":"IF('TSA Input'!J1748=\"\",\"\",IF(OR('TSA Input'!J1748=\"Yes\",'TSA Input'!J1748=\"Contingent\"),'TSA Input'!F1748,\"\"))","v":""},"","Required","Required"]
["",null,{"$f":"IF('TSA Input'!J1749=\"\",\"\",IF(OR('TSA Input'!J1749=\"Yes\",'TSA Input'!J1749=\"Contingent\"),'TSA Input'!B1749,\"Ineligible\"))","v":""},{"$f":"IF('TSA Input'!J1749=\"\",\"\",IF(OR('TSA Input'!J1749=\"Yes\",'TSA Input'!J1749=\"Contingent\"),'TSA Input'!I1749,\"\"))","v":""},{"$f":"IF('TSA Input'!J1749=\"\",\"\",IF(OR('TSA Input'!J1749=\"Yes\",'TSA Input'!J1749=\"Contingent\"),'TSA Input'!C1749,\"\"))","v":""},{"$f":"IF('TSA Input'!J1749=\"\",\"\",IF(OR('TSA Input'!J1749=\"Yes\",'TSA Input'!J1749=\"Contingent\"),'TSA Input'!D1749,\"\"))","v":""},{"$f":"IF('TSA Input'!J1749=\"\",\"\",IF(OR('TSA Input'!J1749=\"Yes\",'TSA Input'!J1749=\"Contingent\"),'TSA Input'!G1749,\"\"))","v":""},{"$f":"IF('TSA Input'!J1749=\"\",\"\",IF(OR('TSA Input'!J1749=\"Yes\",'TSA Input'!J1749=\"Contingent\"),'TSA Input'!F1749,\"\"))","v":""},"",{"$f":"IF('TSA Input'!J1749=\"\",\"\",IF(OR('TSA Input'!J1749=\"Yes\",'TSA Input'!J1749=\"Contingent\"),'TSA Input'!D1749,\"\"))","v":""},{"$f":"IF('TSA Input'!J1749=\"\",\"\",IF(OR('TSA Input'!J1749=\"Yes\",'TSA Input'!J1749=\"Contingent\"),'TSA Input'!G1749,\"\"))","v":""},{"$f":"IF('TSA Input'!J1749=\"\",\"\",IF(OR('TSA Input'!J1749=\"Yes\",'TSA Input'!J1749=\"Contingent\"),'TSA Input'!F1749,\"\"))","v":""},"","Required","Required"]
["",null,{"$f":"IF('TSA Input'!J1750=\"\",\"\",IF(OR('TSA Input'!J1750=\"Yes\",'TSA Input'!J1750=\"Contingent\"),'TSA Input'!B1750,\"Ineligible\"))","v":""},{"$f":"IF('TSA Input'!J1750=\"\",\"\",IF(OR('TSA Input'!J1750=\"Yes\",'TSA Input'!J1750=\"Contingent\"),'TSA Input'!I1750,\"\"))","v":""},{"$f":"IF('TSA Input'!J1750=\"\",\"\",IF(OR('TSA Input'!J1750=\"Yes\",'TSA Input'!J1750=\"Contingent\"),'TSA Input'!C1750,\"\"))","v":""},{"$f":"IF('TSA Input'!J1750=\"\",\"\",IF(OR('TSA Input'!J1750=\"Yes\",'TSA Input'!J1750=\"Contingent\"),'TSA Input'!D1750,\"\"))","v":""},{"$f":"IF('TSA Input'!J1750=\"\",\"\",IF(OR('TSA Input'!J1750=\"Yes\",'TSA Input'!J1750=\"Contingent\"),'TSA Input'!G1750,\"\"))","v":""},{"$f":"IF('TSA Input'!J1750=\"\",\"\",IF(OR('TSA Input'!J1750=\"Yes\",'TSA Input'!J1750=\"Contingent\"),'TSA Input'!F1750,\"\"))","v":""},"",{"$f":"IF('TSA Input'!J1750=\"\",\"\",IF(OR('TSA Input'!J1750=\"Yes\",'TSA Input'!J1750=\"Contingent\"),'TSA Input'!D1750,\"\"))","v":""},{"$f":"IF('TSA Input'!J1750=\"\",\"\",IF(OR('TSA Input'!J1750=\"Yes\",'TSA Input'!J1750=\"Contingent\"),'TSA Input'!G1750,\"\"))","v":""},{"$f":"IF('TSA Input'!J1750=\"\",\"\",IF(OR('TSA Input'!J1750=\"Yes\",'TSA Input'!J1750=\"Contingent\"),'TSA Input'!F1750,\"\"))","v":""},"","Required","Required"]
["",null,{"$f":"IF('TSA Input'!J1751=\"\",\"\",IF(OR('TSA Input'!J1751=\"Yes\",'TSA Input'!J1751=\"Contingent\"),'TSA Input'!B1751,\"Ineligible\"))","v":""},{"$f":"IF('TSA Input'!J1751=\"\",\"\",IF(OR('TSA Input'!J1751=\"Yes\",'TSA Input'!J1751=\"Contingent\"),'TSA Input'!I1751,\"\"))","v":""},{"$f":"IF('TSA Input'!J1751=\"\",\"\",IF(OR('TSA Input'!J1751=\"Yes\",'TSA Input'!J1751=\"Contingent\"),'TSA Input'!C1751,\"\"))","v":""},{"$f":"IF('TSA Input'!J1751=\"\",\"\",IF(OR('TSA Input'!J1751=\"Yes\",'TSA Input'!J1751=\"Contingent\"),'TSA Input'!D1751,\"\"))","v":""},{"$f":"IF('TSA Input'!J1751=\"\",\"\",IF(OR('TSA Input'!J1751=\"Yes\",'TSA Input'!J1751=\"Contingent\"),'TSA Input'!G1751,\"\"))","v":""},{"$f":"IF('TSA Input'!J1751=\"\",\"\",IF(OR('TSA Input'!J1751=\"Yes\",'TSA Input'!J1751=\"Contingent\"),'TSA Input'!F1751,\"\"))","v":""},"",{"$f":"IF('TSA Input'!J1751=\"\",\"\",IF(OR('TSA Input'!J1751=\"Yes\",'TSA Input'!J1751=\"Contingent\"),'TSA Input'!D1751,\"\"))","v":""},{"$f":"IF('TSA Input'!J1751=\"\",\"\",IF(OR('TSA Input'!J1751=\"Yes\",'TSA Input'!J1751=\"Contingent\"),'TSA Input'!G1751,\"\"))","v":""},{"$f":"IF('TSA Input'!J1751=\"\",\"\",IF(OR('TSA Input'!J1751=\"Yes\",'TSA Input'!J1751=\"Contingent\"),'TSA Input'!F1751,\"\"))","v":""},"","Required","Required"]
["",null,{"$f":"IF('TSA Input'!J1752=\"\",\"\",IF(OR('TSA Input'!J1752=\"Yes\",'TSA Input'!J1752=\"Contingent\"),'TSA Input'!B1752,\"Ineligible\"))","v":""},{"$f":"IF('TSA Input'!J1752=\"\",\"\",IF(OR('TSA Input'!J1752=\"Yes\",'TSA Input'!J1752=\"Contingent\"),'TSA Input'!I1752,\"\"))","v":""},{"$f":"IF('TSA Input'!J1752=\"\",\"\",IF(OR('TSA Input'!J1752=\"Yes\",'TSA Input'!J1752=\"Contingent\"),'TSA Input'!C1752,\"\"))","v":""},{"$f":"IF('TSA Input'!J1752=\"\",\"\",IF(OR('TSA Input'!J1752=\"Yes\",'TSA Input'!J1752=\"Contingent\"),'TSA Input'!D1752,\"\"))","v":""},{"$f":"IF('TSA Input'!J1752=\"\",\"\",IF(OR('TSA Input'!J1752=\"Yes\",'TSA Input'!J1752=\"Contingent\"),'TSA Input'!G1752,\"\"))","v":""},{"$f":"IF('TSA Input'!J1752=\"\",\"\",IF(OR('TSA Input'!J1752=\"Yes\",'TSA Input'!J1752=\"Contingent\"),'TSA Input'!F1752,\"\"))","v":""},"",{"$f":"IF('TSA Input'!J1752=\"\",\"\",IF(OR('TSA Input'!J1752=\"Yes\",'TSA Input'!J1752=\"Contingent\"),'TSA Input'!D1752,\"\"))","v":""},{"$f":"IF('TSA Input'!J1752=\"\",\"\",IF(OR('TSA Input'!J1752=\"Yes\",'TSA Input'!J1752=\"Contingent\"),'TSA Input'!G1752,\"\"))","v":""},{"$f":"IF('TSA Input'!J1752=\"\",\"\",IF(OR('TSA Input'!J1752=\"Yes\",'TSA Input'!J1752=\"Contingent\"),'TSA Input'!F1752,\"\"))","v":""},"","Required","Required"]
["",null,{"$f":"IF('TSA Input'!J1753=\"\",\"\",IF(OR('TSA Input'!J1753=\"Yes\",'TSA Input'!J1753=\"Contingent\"),'TSA Input'!B1753,\"Ineligible\"))","v":""},{"$f":"IF('TSA Input'!J1753=\"\",\"\",IF(OR('TSA Input'!J1753=\"Yes\",'TSA Input'!J1753=\"Contingent\"),'TSA Input'!I1753,\"\"))","v":""},{"$f":"IF('TSA Input'!J1753=\"\",\"\",IF(OR('TSA Input'!J1753=\"Yes\",'TSA Input'!J1753=\"Contingent\"),'TSA Input'!C1753,\"\"))","v":""},{"$f":"IF('TSA Input'!J1753=\"\",\"\",IF(OR('TSA Input'!J1753=\"Yes\",'TSA Input'!J1753=\"Contingent\"),'TSA Input'!D1753,\"\"))","v":""},{"$f":"IF('TSA Input'!J1753=\"\",\"\",IF(OR('TSA Input'!J1753=\"Yes\",'TSA Input'!J1753=\"Contingent\"),'TSA Input'!G1753,\"\"))","v":""},{"$f":"IF('TSA Input'!J1753=\"\",\"\",IF(OR('TSA Input'!J1753=\"Yes\",'TSA Input'!J1753=\"Contingent\"),'TSA Input'!F1753,\"\"))","v":""},"",{"$f":"IF('TSA Input'!J1753=\"\",\"\",IF(OR('TSA Input'!J1753=\"Yes\",'TSA Input'!J1753=\"Contingent\"),'TSA Input'!D1753,\"\"))","v":""},{"$f":"IF('TSA Input'!J1753=\"\",\"\",IF(OR('TSA Input'!J1753=\"Yes\",'TSA Input'!J1753=\"Contingent\"),'TSA Input'!G1753,\"\"))","v":""},{"$f":"IF('TSA Input'!J1753=\"\",\"\",IF(OR('TSA Input'!J1753=\"Yes\",'TSA Input'!J1753=\"Contingent\"),'TSA Input'!F1753,\"\"))","v":""},"","Required","Required"]
["",null,{"$f":"IF('TSA Input'!J1754=\"\",\"\",IF(OR('TSA Input'!J1754=\"Yes\",'TSA Input'!J1754=\"Contingent\"),'TSA Input'!B1754,\"Ineligible\"))","v":""},{"$f":"IF('TSA Input'!J1754=\"\",\"\",IF(OR('TSA Input'!J1754=\"Yes\",'TSA Input'!J1754=\"Contingent\"),'TSA Input'!I1754,\"\"))","v":""},{"$f":"IF('TSA Input'!J1754=\"\",\"\",IF(OR('TSA Input'!J1754=\"Yes\",'TSA Input'!J1754=\"Contingent\"),'TSA Input'!C1754,\"\"))","v":""},{"$f":"IF('TSA Input'!J1754=\"\",\"\",IF(OR('TSA Input'!J1754=\"Yes\",'TSA Input'!J1754=\"Contingent\"),'TSA Input'!D1754,\"\"))","v":""},{"$f":"IF('TSA Input'!J1754=\"\",\"\",IF(OR('TSA Input'!J1754=\"Yes\",'TSA Input'!J1754=\"Contingent\"),'TSA Input'!G1754,\"\"))","v":""},{"$f":"IF('TSA Input'!J1754=\"\",\"\",IF(OR('TSA Input'!J1754=\"Yes\",'TSA Input'!J1754=\"Contingent\"),'TSA Input'!F1754,\"\"))","v":""},"",{"$f":"IF('TSA Input'!J1754=\"\",\"\",IF(OR('TSA Input'!J1754=\"Yes\",'TSA Input'!J1754=\"Contingent\"),'TSA Input'!D1754,\"\"))","v":""},{"$f":"IF('TSA Input'!J1754=\"\",\"\",IF(OR('TSA Input'!J1754=\"Yes\",'TSA Input'!J1754=\"Contingent\"),'TSA Input'!G1754,\"\"))","v":""},{"$f":"IF('TSA Input'!J1754=\"\",\"\",IF(OR('TSA Input'!J1754=\"Yes\",'TSA Input'!J1754=\"Contingent\"),'TSA Input'!F1754,\"\"))","v":""},"","Required","Required"]
["",null,{"$f":"IF('TSA Input'!J1755=\"\",\"\",IF(OR('TSA Input'!J1755=\"Yes\",'TSA Input'!J1755=\"Contingent\"),'TSA Input'!B1755,\"Ineligible\"))","v":""},{"$f":"IF('TSA Input'!J1755=\"\",\"\",IF(OR('TSA Input'!J1755=\"Yes\",'TSA Input'!J1755=\"Contingent\"),'TSA Input'!I1755,\"\"))","v":""},{"$f":"IF('TSA Input'!J1755=\"\",\"\",IF(OR('TSA Input'!J1755=\"Yes\",'TSA Input'!J1755=\"Contingent\"),'TSA Input'!C1755,\"\"))","v":""},{"$f":"IF('TSA Input'!J1755=\"\",\"\",IF(OR('TSA Input'!J1755=\"Yes\",'TSA Input'!J1755=\"Contingent\"),'TSA Input'!D1755,\"\"))","v":""},{"$f":"IF('TSA Input'!J1755=\"\",\"\",IF(OR('TSA Input'!J1755=\"Yes\",'TSA Input'!J1755=\"Contingent\"),'TSA Input'!G1755,\"\"))","v":""},{"$f":"IF('TSA Input'!J1755=\"\",\"\",IF(OR('TSA Input'!J1755=\"Yes\",'TSA Input'!J1755=\"Contingent\"),'TSA Input'!F1755,\"\"))","v":""},"",{"$f":"IF('TSA Input'!J1755=\"\",\"\",IF(OR('TSA Input'!J1755=\"Yes\",'TSA Input'!J1755=\"Contingent\"),'TSA Input'!D1755,\"\"))","v":""},{"$f":"IF('TSA Input'!J1755=\"\",\"\",IF(OR('TSA Input'!J1755=\"Yes\",'TSA Input'!J1755=\"Contingent\"),'TSA Input'!G1755,\"\"))","v":""},{"$f":"IF('TSA Input'!J1755=\"\",\"\",IF(OR('TSA Input'!J1755=\"Yes\",'TSA Input'!J1755=\"Contingent\"),'TSA Input'!F1755,\"\"))","v":""},"","Required","Required"]
["",null,{"$f":"IF('TSA Input'!J1756=\"\",\"\",IF(OR('TSA Input'!J1756=\"Yes\",'TSA Input'!J1756=\"Contingent\"),'TSA Input'!B1756,\"Ineligible\"))","v":""},{"$f":"IF('TSA Input'!J1756=\"\",\"\",IF(OR('TSA Input'!J1756=\"Yes\",'TSA Input'!J1756=\"Contingent\"),'TSA Input'!I1756,\"\"))","v":""},{"$f":"IF('TSA Input'!J1756=\"\",\"\",IF(OR('TSA Input'!J1756=\"Yes\",'TSA Input'!J1756=\"Contingent\"),'TSA Input'!C1756,\"\"))","v":""},{"$f":"IF('TSA Input'!J1756=\"\",\"\",IF(OR('TSA Input'!J1756=\"Yes\",'TSA Input'!J1756=\"Contingent\"),'TSA Input'!D1756,\"\"))","v":""},{"$f":"IF('TSA Input'!J1756=\"\",\"\",IF(OR('TSA Input'!J1756=\"Yes\",'TSA Input'!J1756=\"Contingent\"),'TSA Input'!G1756,\"\"))","v":""},{"$f":"IF('TSA Input'!J1756=\"\",\"\",IF(OR('TSA Input'!J1756=\"Yes\",'TSA Input'!J1756=\"Contingent\"),'TSA Input'!F1756,\"\"))","v":""},"",{"$f":"IF('TSA Input'!J1756=\"\",\"\",IF(OR('TSA Input'!J1756=\"Yes\",'TSA Input'!J1756=\"Contingent\"),'TSA Input'!D1756,\"\"))","v":""},{"$f":"IF('TSA Input'!J1756=\"\",\"\",IF(OR('TSA Input'!J1756=\"Yes\",'TSA Input'!J1756=\"Contingent\"),'TSA Input'!G1756,\"\"))","v":""},{"$f":"IF('TSA Input'!J1756=\"\",\"\",IF(OR('TSA Input'!J1756=\"Yes\",'TSA Input'!J1756=\"Contingent\"),'TSA Input'!F1756,\"\"))","v":""},"","Required","Required"]
["",null,{"$f":"IF('TSA Input'!J1757=\"\",\"\",IF(OR('TSA Input'!J1757=\"Yes\",'TSA Input'!J1757=\"Contingent\"),'TSA Input'!B1757,\"Ineligible\"))","v":""},{"$f":"IF('TSA Input'!J1757=\"\",\"\",IF(OR('TSA Input'!J1757=\"Yes\",'TSA Input'!J1757=\"Contingent\"),'TSA Input'!I1757,\"\"))","v":""},{"$f":"IF('TSA Input'!J1757=\"\",\"\",IF(OR('TSA Input'!J1757=\"Yes\",'TSA Input'!J1757=\"Contingent\"),'TSA Input'!C1757,\"\"))","v":""},{"$f":"IF('TSA Input'!J1757=\"\",\"\",IF(OR('TSA Input'!J1757=\"Yes\",'TSA Input'!J1757=\"Contingent\"),'TSA Input'!D1757,\"\"))","v":""},{"$f":"IF('TSA Input'!J1757=\"\",\"\",IF(OR('TSA Input'!J1757=\"Yes\",'TSA Input'!J1757=\"Contingent\"),'TSA Input'!G1757,\"\"))","v":""},{"$f":"IF('TSA Input'!J1757=\"\",\"\",IF(OR('TSA Input'!J1757=\"Yes\",'TSA Input'!J1757=\"Contingent\"),'TSA Input'!F1757,\"\"))","v":""},"",{"$f":"IF('TSA Input'!J1757=\"\",\"\",IF(OR('TSA Input'!J1757=\"Yes\",'TSA Input'!J1757=\"Contingent\"),'TSA Input'!D1757,\"\"))","v":""},{"$f":"IF('TSA Input'!J1757=\"\",\"\",IF(OR('TSA Input'!J1757=\"Yes\",'TSA Input'!J1757=\"Contingent\"),'TSA Input'!G1757,\"\"))","v":""},{"$f":"IF('TSA Input'!J1757=\"\",\"\",IF(OR('TSA Input'!J1757=\"Yes\",'TSA Input'!J1757=\"Contingent\"),'TSA Input'!F1757,\"\"))","v":""},"","Required","Required"]
["",null,{"$f":"IF('TSA Input'!J1758=\"\",\"\",IF(OR('TSA Input'!J1758=\"Yes\",'TSA Input'!J1758=\"Contingent\"),'TSA Input'!B1758,\"Ineligible\"))","v":""},{"$f":"IF('TSA Input'!J1758=\"\",\"\",IF(OR('TSA Input'!J1758=\"Yes\",'TSA Input'!J1758=\"Contingent\"),'TSA Input'!I1758,\"\"))","v":""},{"$f":"IF('TSA Input'!J1758=\"\",\"\",IF(OR('TSA Input'!J1758=\"Yes\",'TSA Input'!J1758=\"Contingent\"),'TSA Input'!C1758,\"\"))","v":""},{"$f":"IF('TSA Input'!J1758=\"\",\"\",IF(OR('TSA Input'!J1758=\"Yes\",'TSA Input'!J1758=\"Contingent\"),'TSA Input'!D1758,\"\"))","v":""},{"$f":"IF('TSA Input'!J1758=\"\",\"\",IF(OR('TSA Input'!J1758=\"Yes\",'TSA Input'!J1758=\"Contingent\"),'TSA Input'!G1758,\"\"))","v":""},{"$f":"IF('TSA Input'!J1758=\"\",\"\",IF(OR('TSA Input'!J1758=\"Yes\",'TSA Input'!J1758=\"Contingent\"),'TSA Input'!F1758,\"\"))","v":""},"",{"$f":"IF('TSA Input'!J1758=\"\",\"\",IF(OR('TSA Input'!J1758=\"Yes\",'TSA Input'!J1758=\"Contingent\"),'TSA Input'!D1758,\"\"))","v":""},{"$f":"IF('TSA Input'!J1758=\"\",\"\",IF(OR('TSA Input'!J1758=\"Yes\",'TSA Input'!J1758=\"Contingent\"),'TSA Input'!G1758,\"\"))","v":""},{"$f":"IF('TSA Input'!J1758=\"\",\"\",IF(OR('TSA Input'!J1758=\"Yes\",'TSA Input'!J1758=\"Contingent\"),'TSA Input'!F1758,\"\"))","v":""},"","Required","Required"]
["",null,{"$f":"IF('TSA Input'!J1759=\"\",\"\",IF(OR('TSA Input'!J1759=\"Yes\",'TSA Input'!J1759=\"Contingent\"),'TSA Input'!B1759,\"Ineligible\"))","v":""},{"$f":"IF('TSA Input'!J1759=\"\",\"\",IF(OR('TSA Input'!J1759=\"Yes\",'TSA Input'!J1759=\"Contingent\"),'TSA Input'!I1759,\"\"))","v":""},{"$f":"IF('TSA Input'!J1759=\"\",\"\",IF(OR('TSA Input'!J1759=\"Yes\",'TSA Input'!J1759=\"Contingent\"),'TSA Input'!C1759,\"\"))","v":""},{"$f":"IF('TSA Input'!J1759=\"\",\"\",IF(OR('TSA Input'!J1759=\"Yes\",'TSA Input'!J1759=\"Contingent\"),'TSA Input'!D1759,\"\"))","v":""},{"$f":"IF('TSA Input'!J1759=\"\",\"\",IF(OR('TSA Input'!J1759=\"Yes\",'TSA Input'!J1759=\"Contingent\"),'TSA Input'!G1759,\"\"))","v":""},{"$f":"IF('TSA Input'!J1759=\"\",\"\",IF(OR('TSA Input'!J1759=\"Yes\",'TSA Input'!J1759=\"Contingent\"),'TSA Input'!F1759,\"\"))","v":""},"",{"$f":"IF('TSA Input'!J1759=\"\",\"\",IF(OR('TSA Input'!J1759=\"Yes\",'TSA Input'!J1759=\"Contingent\"),'TSA Input'!D1759,\"\"))","v":""},{"$f":"IF('TSA Input'!J1759=\"\",\"\",IF(OR('TSA Input'!J1759=\"Yes\",'TSA Input'!J1759=\"Contingent\"),'TSA Input'!G1759,\"\"))","v":""},{"$f":"IF('TSA Input'!J1759=\"\",\"\",IF(OR('TSA Input'!J1759=\"Yes\",'TSA Input'!J1759=\"Contingent\"),'TSA Input'!F1759,\"\"))","v":""},"","Required","Required"]
["",null,{"$f":"IF('TSA Input'!J1760=\"\",\"\",IF(OR('TSA Input'!J1760=\"Yes\",'TSA Input'!J1760=\"Contingent\"),'TSA Input'!B1760,\"Ineligible\"))","v":""},{"$f":"IF('TSA Input'!J1760=\"\",\"\",IF(OR('TSA Input'!J1760=\"Yes\",'TSA Input'!J1760=\"Contingent\"),'TSA Input'!I1760,\"\"))","v":""},{"$f":"IF('TSA Input'!J1760=\"\",\"\",IF(OR('TSA Input'!J1760=\"Yes\",'TSA Input'!J1760=\"Contingent\"),'TSA Input'!C1760,\"\"))","v":""},{"$f":"IF('TSA Input'!J1760=\"\",\"\",IF(OR('TSA Input'!J1760=\"Yes\",'TSA Input'!J1760=\"Contingent\"),'TSA Input'!D1760,\"\"))","v":""},{"$f":"IF('TSA Input'!J1760=\"\",\"\",IF(OR('TSA Input'!J1760=\"Yes\",'TSA Input'!J1760=\"Contingent\"),'TSA Input'!G1760,\"\"))","v":""},{"$f":"IF('TSA Input'!J1760=\"\",\"\",IF(OR('TSA Input'!J1760=\"Yes\",'TSA Input'!J1760=\"Contingent\"),'TSA Input'!F1760,\"\"))","v":""},"",{"$f":"IF('TSA Input'!J1760=\"\",\"\",IF(OR('TSA Input'!J1760=\"Yes\",'TSA Input'!J1760=\"Contingent\"),'TSA Input'!D1760,\"\"))","v":""},{"$f":"IF('TSA Input'!J1760=\"\",\"\",IF(OR('TSA Input'!J1760=\"Yes\",'TSA Input'!J1760=\"Contingent\"),'TSA Input'!G1760,\"\"))","v":""},{"$f":"IF('TSA Input'!J1760=\"\",\"\",IF(OR('TSA Input'!J1760=\"Yes\",'TSA Input'!J1760=\"Contingent\"),'TSA Input'!F1760,\"\"))","v":""},"","Required","Required"]
["",null,{"$f":"IF('TSA Input'!J1761=\"\",\"\",IF(OR('TSA Input'!J1761=\"Yes\",'TSA Input'!J1761=\"Contingent\"),'TSA Input'!B1761,\"Ineligible\"))","v":""},{"$f":"IF('TSA Input'!J1761=\"\",\"\",IF(OR('TSA Input'!J1761=\"Yes\",'TSA Input'!J1761=\"Contingent\"),'TSA Input'!I1761,\"\"))","v":""},{"$f":"IF('TSA Input'!J1761=\"\",\"\",IF(OR('TSA Input'!J1761=\"Yes\",'TSA Input'!J1761=\"Contingent\"),'TSA Input'!C1761,\"\"))","v":""},{"$f":"IF('TSA Input'!J1761=\"\",\"\",IF(OR('TSA Input'!J1761=\"Yes\",'TSA Input'!J1761=\"Contingent\"),'TSA Input'!D1761,\"\"))","v":""},{"$f":"IF('TSA Input'!J1761=\"\",\"\",IF(OR('TSA Input'!J1761=\"Yes\",'TSA Input'!J1761=\"Contingent\"),'TSA Input'!G1761,\"\"))","v":""},{"$f":"IF('TSA Input'!J1761=\"\",\"\",IF(OR('TSA Input'!J1761=\"Yes\",'TSA Input'!J1761=\"Contingent\"),'TSA Input'!F1761,\"\"))","v":""},"",{"$f":"IF('TSA Input'!J1761=\"\",\"\",IF(OR('TSA Input'!J1761=\"Yes\",'TSA Input'!J1761=\"Contingent\"),'TSA Input'!D1761,\"\"))","v":""},{"$f":"IF('TSA Input'!J1761=\"\",\"\",IF(OR('TSA Input'!J1761=\"Yes\",'TSA Input'!J1761=\"Contingent\"),'TSA Input'!G1761,\"\"))","v":""},{"$f":"IF('TSA Input'!J1761=\"\",\"\",IF(OR('TSA Input'!J1761=\"Yes\",'TSA Input'!J1761=\"Contingent\"),'TSA Input'!F1761,\"\"))","v":""},"","Required","Required"]
["",null,{"$f":"IF('TSA Input'!J1762=\"\",\"\",IF(OR('TSA Input'!J1762=\"Yes\",'TSA Input'!J1762=\"Contingent\"),'TSA Input'!B1762,\"Ineligible\"))","v":""},{"$f":"IF('TSA Input'!J1762=\"\",\"\",IF(OR('TSA Input'!J1762=\"Yes\",'TSA Input'!J1762=\"Contingent\"),'TSA Input'!I1762,\"\"))","v":""},{"$f":"IF('TSA Input'!J1762=\"\",\"\",IF(OR('TSA Input'!J1762=\"Yes\",'TSA Input'!J1762=\"Contingent\"),'TSA Input'!C1762,\"\"))","v":""},{"$f":"IF('TSA Input'!J1762=\"\",\"\",IF(OR('TSA Input'!J1762=\"Yes\",'TSA Input'!J1762=\"Contingent\"),'TSA Input'!D1762,\"\"))","v":""},{"$f":"IF('TSA Input'!J1762=\"\",\"\",IF(OR('TSA Input'!J1762=\"Yes\",'TSA Input'!J1762=\"Contingent\"),'TSA Input'!G1762,\"\"))","v":""},{"$f":"IF('TSA Input'!J1762=\"\",\"\",IF(OR('TSA Input'!J1762=\"Yes\",'TSA Input'!J1762=\"Contingent\"),'TSA Input'!F1762,\"\"))","v":""},"",{"$f":"IF('TSA Input'!J1762=\"\",\"\",IF(OR('TSA Input'!J1762=\"Yes\",'TSA Input'!J1762=\"Contingent\"),'TSA Input'!D1762,\"\"))","v":""},{"$f":"IF('TSA Input'!J1762=\"\",\"\",IF(OR('TSA Input'!J1762=\"Yes\",'TSA Input'!J1762=\"Contingent\"),'TSA Input'!G1762,\"\"))","v":""},{"$f":"IF('TSA Input'!J1762=\"\",\"\",IF(OR('TSA Input'!J1762=\"Yes\",'TSA Input'!J1762=\"Contingent\"),'TSA Input'!F1762,\"\"))","v":""},"","Required","Required"]
["",null,{"$f":"IF('TSA Input'!J1763=\"\",\"\",IF(OR('TSA Input'!J1763=\"Yes\",'TSA Input'!J1763=\"Contingent\"),'TSA Input'!B1763,\"Ineligible\"))","v":""},{"$f":"IF('TSA Input'!J1763=\"\",\"\",IF(OR('TSA Input'!J1763=\"Yes\",'TSA Input'!J1763=\"Contingent\"),'TSA Input'!I1763,\"\"))","v":""},{"$f":"IF('TSA Input'!J1763=\"\",\"\",IF(OR('TSA Input'!J1763=\"Yes\",'TSA Input'!J1763=\"Contingent\"),'TSA Input'!C1763,\"\"))","v":""},{"$f":"IF('TSA Input'!J1763=\"\",\"\",IF(OR('TSA Input'!J1763=\"Yes\",'TSA Input'!J1763=\"Contingent\"),'TSA Input'!D1763,\"\"))","v":""},{"$f":"IF('TSA Input'!J1763=\"\",\"\",IF(OR('TSA Input'!J1763=\"Yes\",'TSA Input'!J1763=\"Contingent\"),'TSA Input'!G1763,\"\"))","v":""},{"$f":"IF('TSA Input'!J1763=\"\",\"\",IF(OR('TSA Input'!J1763=\"Yes\",'TSA Input'!J1763=\"Contingent\"),'TSA Input'!F1763,\"\"))","v":""},"",{"$f":"IF('TSA Input'!J1763=\"\",\"\",IF(OR('TSA Input'!J1763=\"Yes\",'TSA Input'!J1763=\"Contingent\"),'TSA Input'!D1763,\"\"))","v":""},{"$f":"IF('TSA Input'!J1763=\"\",\"\",IF(OR('TSA Input'!J1763=\"Yes\",'TSA Input'!J1763=\"Contingent\"),'TSA Input'!G1763,\"\"))","v":""},{"$f":"IF('TSA Input'!J1763=\"\",\"\",IF(OR('TSA Input'!J1763=\"Yes\",'TSA Input'!J1763=\"Contingent\"),'TSA Input'!F1763,\"\"))","v":""},"","Required","Required"]
["",null,{"$f":"IF('TSA Input'!J1764=\"\",\"\",IF(OR('TSA Input'!J1764=\"Yes\",'TSA Input'!J1764=\"Contingent\"),'TSA Input'!B1764,\"Ineligible\"))","v":""},{"$f":"IF('TSA Input'!J1764=\"\",\"\",IF(OR('TSA Input'!J1764=\"Yes\",'TSA Input'!J1764=\"Contingent\"),'TSA Input'!I1764,\"\"))","v":""},{"$f":"IF('TSA Input'!J1764=\"\",\"\",IF(OR('TSA Input'!J1764=\"Yes\",'TSA Input'!J1764=\"Contingent\"),'TSA Input'!C1764,\"\"))","v":""},{"$f":"IF('TSA Input'!J1764=\"\",\"\",IF(OR('TSA Input'!J1764=\"Yes\",'TSA Input'!J1764=\"Contingent\"),'TSA Input'!D1764,\"\"))","v":""},{"$f":"IF('TSA Input'!J1764=\"\",\"\",IF(OR('TSA Input'!J1764=\"Yes\",'TSA Input'!J1764=\"Contingent\"),'TSA Input'!G1764,\"\"))","v":""},{"$f":"IF('TSA Input'!J1764=\"\",\"\",IF(OR('TSA Input'!J1764=\"Yes\",'TSA Input'!J1764=\"Contingent\"),'TSA Input'!F1764,\"\"))","v":""},"",{"$f":"IF('TSA Input'!J1764=\"\",\"\",IF(OR('TSA Input'!J1764=\"Yes\",'TSA Input'!J1764=\"Contingent\"),'TSA Input'!D1764,\"\"))","v":""},{"$f":"IF('TSA Input'!J1764=\"\",\"\",IF(OR('TSA Input'!J1764=\"Yes\",'TSA Input'!J1764=\"Contingent\"),'TSA Input'!G1764,\"\"))","v":""},{"$f":"IF('TSA Input'!J1764=\"\",\"\",IF(OR('TSA Input'!J1764=\"Yes\",'TSA Input'!J1764=\"Contingent\"),'TSA Input'!F1764,\"\"))","v":""},"","Required","Required"]
["",null,{"$f":"IF('TSA Input'!J1765=\"\",\"\",IF(OR('TSA Input'!J1765=\"Yes\",'TSA Input'!J1765=\"Contingent\"),'TSA Input'!B1765,\"Ineligible\"))","v":""},{"$f":"IF('TSA Input'!J1765=\"\",\"\",IF(OR('TSA Input'!J1765=\"Yes\",'TSA Input'!J1765=\"Contingent\"),'TSA Input'!I1765,\"\"))","v":""},{"$f":"IF('TSA Input'!J1765=\"\",\"\",IF(OR('TSA Input'!J1765=\"Yes\",'TSA Input'!J1765=\"Contingent\"),'TSA Input'!C1765,\"\"))","v":""},{"$f":"IF('TSA Input'!J1765=\"\",\"\",IF(OR('TSA Input'!J1765=\"Yes\",'TSA Input'!J1765=\"Contingent\"),'TSA Input'!D1765,\"\"))","v":""},{"$f":"IF('TSA Input'!J1765=\"\",\"\",IF(OR('TSA Input'!J1765=\"Yes\",'TSA Input'!J1765=\"Contingent\"),'TSA Input'!G1765,\"\"))","v":""},{"$f":"IF('TSA Input'!J1765=\"\",\"\",IF(OR('TSA Input'!J1765=\"Yes\",'TSA Input'!J1765=\"Contingent\"),'TSA Input'!F1765,\"\"))","v":""},"",{"$f":"IF('TSA Input'!J1765=\"\",\"\",IF(OR('TSA Input'!J1765=\"Yes\",'TSA Input'!J1765=\"Contingent\"),'TSA Input'!D1765,\"\"))","v":""},{"$f":"IF('TSA Input'!J1765=\"\",\"\",IF(OR('TSA Input'!J1765=\"Yes\",'TSA Input'!J1765=\"Contingent\"),'TSA Input'!G1765,\"\"))","v":""},{"$f":"IF('TSA Input'!J1765=\"\",\"\",IF(OR('TSA Input'!J1765=\"Yes\",'TSA Input'!J1765=\"Contingent\"),'TSA Input'!F1765,\"\"))","v":""},"","Required","Required"]
["",null,{"$f":"IF('TSA Input'!J1766=\"\",\"\",IF(OR('TSA Input'!J1766=\"Yes\",'TSA Input'!J1766=\"Contingent\"),'TSA Input'!B1766,\"Ineligible\"))","v":""},{"$f":"IF('TSA Input'!J1766=\"\",\"\",IF(OR('TSA Input'!J1766=\"Yes\",'TSA Input'!J1766=\"Contingent\"),'TSA Input'!I1766,\"\"))","v":""},{"$f":"IF('TSA Input'!J1766=\"\",\"\",IF(OR('TSA Input'!J1766=\"Yes\",'TSA Input'!J1766=\"Contingent\"),'TSA Input'!C1766,\"\"))","v":""},{"$f":"IF('TSA Input'!J1766=\"\",\"\",IF(OR('TSA Input'!J1766=\"Yes\",'TSA Input'!J1766=\"Contingent\"),'TSA Input'!D1766,\"\"))","v":""},{"$f":"IF('TSA Input'!J1766=\"\",\"\",IF(OR('TSA Input'!J1766=\"Yes\",'TSA Input'!J1766=\"Contingent\"),'TSA Input'!G1766,\"\"))","v":""},{"$f":"IF('TSA Input'!J1766=\"\",\"\",IF(OR('TSA Input'!J1766=\"Yes\",'TSA Input'!J1766=\"Contingent\"),'TSA Input'!F1766,\"\"))","v":""},"",{"$f":"IF('TSA Input'!J1766=\"\",\"\",IF(OR('TSA Input'!J1766=\"Yes\",'TSA Input'!J1766=\"Contingent\"),'TSA Input'!D1766,\"\"))","v":""},{"$f":"IF('TSA Input'!J1766=\"\",\"\",IF(OR('TSA Input'!J1766=\"Yes\",'TSA Input'!J1766=\"Contingent\"),'TSA Input'!G1766,\"\"))","v":""},{"$f":"IF('TSA Input'!J1766=\"\",\"\",IF(OR('TSA Input'!J1766=\"Yes\",'TSA Input'!J1766=\"Contingent\"),'TSA Input'!F1766,\"\"))","v":""},"","Required","Required"]
["",null,{"$f":"IF('TSA Input'!J1767=\"\",\"\",IF(OR('TSA Input'!J1767=\"Yes\",'TSA Input'!J1767=\"Contingent\"),'TSA Input'!B1767,\"Ineligible\"))","v":""},{"$f":"IF('TSA Input'!J1767=\"\",\"\",IF(OR('TSA Input'!J1767=\"Yes\",'TSA Input'!J1767=\"Contingent\"),'TSA Input'!I1767,\"\"))","v":""},{"$f":"IF('TSA Input'!J1767=\"\",\"\",IF(OR('TSA Input'!J1767=\"Yes\",'TSA Input'!J1767=\"Contingent\"),'TSA Input'!C1767,\"\"))","v":""},{"$f":"IF('TSA Input'!J1767=\"\",\"\",IF(OR('TSA Input'!J1767=\"Yes\",'TSA Input'!J1767=\"Contingent\"),'TSA Input'!D1767,\"\"))","v":""},{"$f":"IF('TSA Input'!J1767=\"\",\"\",IF(OR('TSA Input'!J1767=\"Yes\",'TSA Input'!J1767=\"Contingent\"),'TSA Input'!G1767,\"\"))","v":""},{"$f":"IF('TSA Input'!J1767=\"\",\"\",IF(OR('TSA Input'!J1767=\"Yes\",'TSA Input'!J1767=\"Contingent\"),'TSA Input'!F1767,\"\"))","v":""},"",{"$f":"IF('TSA Input'!J1767=\"\",\"\",IF(OR('TSA Input'!J1767=\"Yes\",'TSA Input'!J1767=\"Contingent\"),'TSA Input'!D1767,\"\"))","v":""},{"$f":"IF('TSA Input'!J1767=\"\",\"\",IF(OR('TSA Input'!J1767=\"Yes\",'TSA Input'!J1767=\"Contingent\"),'TSA Input'!G1767,\"\"))","v":""},{"$f":"IF('TSA Input'!J1767=\"\",\"\",IF(OR('TSA Input'!J1767=\"Yes\",'TSA Input'!J1767=\"Contingent\"),'TSA Input'!F1767,\"\"))","v":""},"","Required","Required"]
["",null,{"$f":"IF('TSA Input'!J1768=\"\",\"\",IF(OR('TSA Input'!J1768=\"Yes\",'TSA Input'!J1768=\"Contingent\"),'TSA Input'!B1768,\"Ineligible\"))","v":""},{"$f":"IF('TSA Input'!J1768=\"\",\"\",IF(OR('TSA Input'!J1768=\"Yes\",'TSA Input'!J1768=\"Contingent\"),'TSA Input'!I1768,\"\"))","v":""},{"$f":"IF('TSA Input'!J1768=\"\",\"\",IF(OR('TSA Input'!J1768=\"Yes\",'TSA Input'!J1768=\"Contingent\"),'TSA Input'!C1768,\"\"))","v":""},{"$f":"IF('TSA Input'!J1768=\"\",\"\",IF(OR('TSA Input'!J1768=\"Yes\",'TSA Input'!J1768=\"Contingent\"),'TSA Input'!D1768,\"\"))","v":""},{"$f":"IF('TSA Input'!J1768=\"\",\"\",IF(OR('TSA Input'!J1768=\"Yes\",'TSA Input'!J1768=\"Contingent\"),'TSA Input'!G1768,\"\"))","v":""},{"$f":"IF('TSA Input'!J1768=\"\",\"\",IF(OR('TSA Input'!J1768=\"Yes\",'TSA Input'!J1768=\"Contingent\"),'TSA Input'!F1768,\"\"))","v":""},"",{"$f":"IF('TSA Input'!J1768=\"\",\"\",IF(OR('TSA Input'!J1768=\"Yes\",'TSA Input'!J1768=\"Contingent\"),'TSA Input'!D1768,\"\"))","v":""},{"$f":"IF('TSA Input'!J1768=\"\",\"\",IF(OR('TSA Input'!J1768=\"Yes\",'TSA Input'!J1768=\"Contingent\"),'TSA Input'!G1768,\"\"))","v":""},{"$f":"IF('TSA Input'!J1768=\"\",\"\",IF(OR('TSA Input'!J1768=\"Yes\",'TSA Input'!J1768=\"Contingent\"),'TSA Input'!F1768,\"\"))","v":""},"","Required","Required"]
["",null,{"$f":"IF('TSA Input'!J1769=\"\",\"\",IF(OR('TSA Input'!J1769=\"Yes\",'TSA Input'!J1769=\"Contingent\"),'TSA Input'!B1769,\"Ineligible\"))","v":""},{"$f":"IF('TSA Input'!J1769=\"\",\"\",IF(OR('TSA Input'!J1769=\"Yes\",'TSA Input'!J1769=\"Contingent\"),'TSA Input'!I1769,\"\"))","v":""},{"$f":"IF('TSA Input'!J1769=\"\",\"\",IF(OR('TSA Input'!J1769=\"Yes\",'TSA Input'!J1769=\"Contingent\"),'TSA Input'!C1769,\"\"))","v":""},{"$f":"IF('TSA Input'!J1769=\"\",\"\",IF(OR('TSA Input'!J1769=\"Yes\",'TSA Input'!J1769=\"Contingent\"),'TSA Input'!D1769,\"\"))","v":""},{"$f":"IF('TSA Input'!J1769=\"\",\"\",IF(OR('TSA Input'!J1769=\"Yes\",'TSA Input'!J1769=\"Contingent\"),'TSA Input'!G1769,\"\"))","v":""},{"$f":"IF('TSA Input'!J1769=\"\",\"\",IF(OR('TSA Input'!J1769=\"Yes\",'TSA Input'!J1769=\"Contingent\"),'TSA Input'!F1769,\"\"))","v":""},"",{"$f":"IF('TSA Input'!J1769=\"\",\"\",IF(OR('TSA Input'!J1769=\"Yes\",'TSA Input'!J1769=\"Contingent\"),'TSA Input'!D1769,\"\"))","v":""},{"$f":"IF('TSA Input'!J1769=\"\",\"\",IF(OR('TSA Input'!J1769=\"Yes\",'TSA Input'!J1769=\"Contingent\"),'TSA Input'!G1769,\"\"))","v":""},{"$f":"IF('TSA Input'!J1769=\"\",\"\",IF(OR('TSA Input'!J1769=\"Yes\",'TSA Input'!J1769=\"Contingent\"),'TSA Input'!F1769,\"\"))","v":""},"","Required","Required"]
["",null,{"$f":"IF('TSA Input'!J1770=\"\",\"\",IF(OR('TSA Input'!J1770=\"Yes\",'TSA Input'!J1770=\"Contingent\"),'TSA Input'!B1770,\"Ineligible\"))","v":""},{"$f":"IF('TSA Input'!J1770=\"\",\"\",IF(OR('TSA Input'!J1770=\"Yes\",'TSA Input'!J1770=\"Contingent\"),'TSA Input'!I1770,\"\"))","v":""},{"$f":"IF('TSA Input'!J1770=\"\",\"\",IF(OR('TSA Input'!J1770=\"Yes\",'TSA Input'!J1770=\"Contingent\"),'TSA Input'!C1770,\"\"))","v":""},{"$f":"IF('TSA Input'!J1770=\"\",\"\",IF(OR('TSA Input'!J1770=\"Yes\",'TSA Input'!J1770=\"Contingent\"),'TSA Input'!D1770,\"\"))","v":""},{"$f":"IF('TSA Input'!J1770=\"\",\"\",IF(OR('TSA Input'!J1770=\"Yes\",'TSA Input'!J1770=\"Contingent\"),'TSA Input'!G1770,\"\"))","v":""},{"$f":"IF('TSA Input'!J1770=\"\",\"\",IF(OR('TSA Input'!J1770=\"Yes\",'TSA Input'!J1770=\"Contingent\"),'TSA Input'!F1770,\"\"))","v":""},"",{"$f":"IF('TSA Input'!J1770=\"\",\"\",IF(OR('TSA Input'!J1770=\"Yes\",'TSA Input'!J1770=\"Contingent\"),'TSA Input'!D1770,\"\"))","v":""},{"$f":"IF('TSA Input'!J1770=\"\",\"\",IF(OR('TSA Input'!J1770=\"Yes\",'TSA Input'!J1770=\"Contingent\"),'TSA Input'!G1770,\"\"))","v":""},{"$f":"IF('TSA Input'!J1770=\"\",\"\",IF(OR('TSA Input'!J1770=\"Yes\",'TSA Input'!J1770=\"Contingent\"),'TSA Input'!F1770,\"\"))","v":""},"","Required","Required"]
["",null,{"$f":"IF('TSA Input'!J1771=\"\",\"\",IF(OR('TSA Input'!J1771=\"Yes\",'TSA Input'!J1771=\"Contingent\"),'TSA Input'!B1771,\"Ineligible\"))","v":""},{"$f":"IF('TSA Input'!J1771=\"\",\"\",IF(OR('TSA Input'!J1771=\"Yes\",'TSA Input'!J1771=\"Contingent\"),'TSA Input'!I1771,\"\"))","v":""},{"$f":"IF('TSA Input'!J1771=\"\",\"\",IF(OR('TSA Input'!J1771=\"Yes\",'TSA Input'!J1771=\"Contingent\"),'TSA Input'!C1771,\"\"))","v":""},{"$f":"IF('TSA Input'!J1771=\"\",\"\",IF(OR('TSA Input'!J1771=\"Yes\",'TSA Input'!J1771=\"Contingent\"),'TSA Input'!D1771,\"\"))","v":""},{"$f":"IF('TSA Input'!J1771=\"\",\"\",IF(OR('TSA Input'!J1771=\"Yes\",'TSA Input'!J1771=\"Contingent\"),'TSA Input'!G1771,\"\"))","v":""},{"$f":"IF('TSA Input'!J1771=\"\",\"\",IF(OR('TSA Input'!J1771=\"Yes\",'TSA Input'!J1771=\"Contingent\"),'TSA Input'!F1771,\"\"))","v":""},"",{"$f":"IF('TSA Input'!J1771=\"\",\"\",IF(OR('TSA Input'!J1771=\"Yes\",'TSA Input'!J1771=\"Contingent\"),'TSA Input'!D1771,\"\"))","v":""},{"$f":"IF('TSA Input'!J1771=\"\",\"\",IF(OR('TSA Input'!J1771=\"Yes\",'TSA Input'!J1771=\"Contingent\"),'TSA Input'!G1771,\"\"))","v":""},{"$f":"IF('TSA Input'!J1771=\"\",\"\",IF(OR('TSA Input'!J1771=\"Yes\",'TSA Input'!J1771=\"Contingent\"),'TSA Input'!F1771,\"\"))","v":""},"","Required","Required"]
["",null,{"$f":"IF('TSA Input'!J1772=\"\",\"\",IF(OR('TSA Input'!J1772=\"Yes\",'TSA Input'!J1772=\"Contingent\"),'TSA Input'!B1772,\"Ineligible\"))","v":""},{"$f":"IF('TSA Input'!J1772=\"\",\"\",IF(OR('TSA Input'!J1772=\"Yes\",'TSA Input'!J1772=\"Contingent\"),'TSA Input'!I1772,\"\"))","v":""},{"$f":"IF('TSA Input'!J1772=\"\",\"\",IF(OR('TSA Input'!J1772=\"Yes\",'TSA Input'!J1772=\"Contingent\"),'TSA Input'!C1772,\"\"))","v":""},{"$f":"IF('TSA Input'!J1772=\"\",\"\",IF(OR('TSA Input'!J1772=\"Yes\",'TSA Input'!J1772=\"Contingent\"),'TSA Input'!D1772,\"\"))","v":""},{"$f":"IF('TSA Input'!J1772=\"\",\"\",IF(OR('TSA Input'!J1772=\"Yes\",'TSA Input'!J1772=\"Contingent\"),'TSA Input'!G1772,\"\"))","v":""},{"$f":"IF('TSA Input'!J1772=\"\",\"\",IF(OR('TSA Input'!J1772=\"Yes\",'TSA Input'!J1772=\"Contingent\"),'TSA Input'!F1772,\"\"))","v":""},"",{"$f":"IF('TSA Input'!J1772=\"\",\"\",IF(OR('TSA Input'!J1772=\"Yes\",'TSA Input'!J1772=\"Contingent\"),'TSA Input'!D1772,\"\"))","v":""},{"$f":"IF('TSA Input'!J1772=\"\",\"\",IF(OR('TSA Input'!J1772=\"Yes\",'TSA Input'!J1772=\"Contingent\"),'TSA Input'!G1772,\"\"))","v":""},{"$f":"IF('TSA Input'!J1772=\"\",\"\",IF(OR('TSA Input'!J1772=\"Yes\",'TSA Input'!J1772=\"Contingent\"),'TSA Input'!F1772,\"\"))","v":""},"","Required","Required"]
["",null,{"$f":"IF('TSA Input'!J1773=\"\",\"\",IF(OR('TSA Input'!J1773=\"Yes\",'TSA Input'!J1773=\"Contingent\"),'TSA Input'!B1773,\"Ineligible\"))","v":""},{"$f":"IF('TSA Input'!J1773=\"\",\"\",IF(OR('TSA Input'!J1773=\"Yes\",'TSA Input'!J1773=\"Contingent\"),'TSA Input'!I1773,\"\"))","v":""},{"$f":"IF('TSA Input'!J1773=\"\",\"\",IF(OR('TSA Input'!J1773=\"Yes\",'TSA Input'!J1773=\"Contingent\"),'TSA Input'!C1773,\"\"))","v":""},{"$f":"IF('TSA Input'!J1773=\"\",\"\",IF(OR('TSA Input'!J1773=\"Yes\",'TSA Input'!J1773=\"Contingent\"),'TSA Input'!D1773,\"\"))","v":""},{"$f":"IF('TSA Input'!J1773=\"\",\"\",IF(OR('TSA Input'!J1773=\"Yes\",'TSA Input'!J1773=\"Contingent\"),'TSA Input'!G1773,\"\"))","v":""},{"$f":"IF('TSA Input'!J1773=\"\",\"\",IF(OR('TSA Input'!J1773=\"Yes\",'TSA Input'!J1773=\"Contingent\"),'TSA Input'!F1773,\"\"))","v":""},"",{"$f":"IF('TSA Input'!J1773=\"\",\"\",IF(OR('TSA Input'!J1773=\"Yes\",'TSA Input'!J1773=\"Contingent\"),'TSA Input'!D1773,\"\"))","v":""},{"$f":"IF('TSA Input'!J1773=\"\",\"\",IF(OR('TSA Input'!J1773=\"Yes\",'TSA Input'!J1773=\"Contingent\"),'TSA Input'!G1773,\"\"))","v":""},{"$f":"IF('TSA Input'!J1773=\"\",\"\",IF(OR('TSA Input'!J1773=\"Yes\",'TSA Input'!J1773=\"Contingent\"),'TSA Input'!F1773,\"\"))","v":""},"","Required","Required"]
["",null,{"$f":"IF('TSA Input'!J1774=\"\",\"\",IF(OR('TSA Input'!J1774=\"Yes\",'TSA Input'!J1774=\"Contingent\"),'TSA Input'!B1774,\"Ineligible\"))","v":""},{"$f":"IF('TSA Input'!J1774=\"\",\"\",IF(OR('TSA Input'!J1774=\"Yes\",'TSA Input'!J1774=\"Contingent\"),'TSA Input'!I1774,\"\"))","v":""},{"$f":"IF('TSA Input'!J1774=\"\",\"\",IF(OR('TSA Input'!J1774=\"Yes\",'TSA Input'!J1774=\"Contingent\"),'TSA Input'!C1774,\"\"))","v":""},{"$f":"IF('TSA Input'!J1774=\"\",\"\",IF(OR('TSA Input'!J1774=\"Yes\",'TSA Input'!J1774=\"Contingent\"),'TSA Input'!D1774,\"\"))","v":""},{"$f":"IF('TSA Input'!J1774=\"\",\"\",IF(OR('TSA Input'!J1774=\"Yes\",'TSA Input'!J1774=\"Contingent\"),'TSA Input'!G1774,\"\"))","v":""},{"$f":"IF('TSA Input'!J1774=\"\",\"\",IF(OR('TSA Input'!J1774=\"Yes\",'TSA Input'!J1774=\"Contingent\"),'TSA Input'!F1774,\"\"))","v":""},"",{"$f":"IF('TSA Input'!J1774=\"\",\"\",IF(OR('TSA Input'!J1774=\"Yes\",'TSA Input'!J1774=\"Contingent\"),'TSA Input'!D1774,\"\"))","v":""},{"$f":"IF('TSA Input'!J1774=\"\",\"\",IF(OR('TSA Input'!J1774=\"Yes\",'TSA Input'!J1774=\"Contingent\"),'TSA Input'!G1774,\"\"))","v":""},{"$f":"IF('TSA Input'!J1774=\"\",\"\",IF(OR('TSA Input'!J1774=\"Yes\",'TSA Input'!J1774=\"Contingent\"),'TSA Input'!F1774,\"\"))","v":""},"","Required","Required"]
["",null,{"$f":"IF('TSA Input'!J1775=\"\",\"\",IF(OR('TSA Input'!J1775=\"Yes\",'TSA Input'!J1775=\"Contingent\"),'TSA Input'!B1775,\"Ineligible\"))","v":""},{"$f":"IF('TSA Input'!J1775=\"\",\"\",IF(OR('TSA Input'!J1775=\"Yes\",'TSA Input'!J1775=\"Contingent\"),'TSA Input'!I1775,\"\"))","v":""},{"$f":"IF('TSA Input'!J1775=\"\",\"\",IF(OR('TSA Input'!J1775=\"Yes\",'TSA Input'!J1775=\"Contingent\"),'TSA Input'!C1775,\"\"))","v":""},{"$f":"IF('TSA Input'!J1775=\"\",\"\",IF(OR('TSA Input'!J1775=\"Yes\",'TSA Input'!J1775=\"Contingent\"),'TSA Input'!D1775,\"\"))","v":""},{"$f":"IF('TSA Input'!J1775=\"\",\"\",IF(OR('TSA Input'!J1775=\"Yes\",'TSA Input'!J1775=\"Contingent\"),'TSA Input'!G1775,\"\"))","v":""},{"$f":"IF('TSA Input'!J1775=\"\",\"\",IF(OR('TSA Input'!J1775=\"Yes\",'TSA Input'!J1775=\"Contingent\"),'TSA Input'!F1775,\"\"))","v":""},"",{"$f":"IF('TSA Input'!J1775=\"\",\"\",IF(OR('TSA Input'!J1775=\"Yes\",'TSA Input'!J1775=\"Contingent\"),'TSA Input'!D1775,\"\"))","v":""},{"$f":"IF('TSA Input'!J1775=\"\",\"\",IF(OR('TSA Input'!J1775=\"Yes\",'TSA Input'!J1775=\"Contingent\"),'TSA Input'!G1775,\"\"))","v":""},{"$f":"IF('TSA Input'!J1775=\"\",\"\",IF(OR('TSA Input'!J1775=\"Yes\",'TSA Input'!J1775=\"Contingent\"),'TSA Input'!F1775,\"\"))","v":""},"","Required","Required"]
["",null,{"$f":"IF('TSA Input'!J1776=\"\",\"\",IF(OR('TSA Input'!J1776=\"Yes\",'TSA Input'!J1776=\"Contingent\"),'TSA Input'!B1776,\"Ineligible\"))","v":""},{"$f":"IF('TSA Input'!J1776=\"\",\"\",IF(OR('TSA Input'!J1776=\"Yes\",'TSA Input'!J1776=\"Contingent\"),'TSA Input'!I1776,\"\"))","v":""},{"$f":"IF('TSA Input'!J1776=\"\",\"\",IF(OR('TSA Input'!J1776=\"Yes\",'TSA Input'!J1776=\"Contingent\"),'TSA Input'!C1776,\"\"))","v":""},{"$f":"IF('TSA Input'!J1776=\"\",\"\",IF(OR('TSA Input'!J1776=\"Yes\",'TSA Input'!J1776=\"Contingent\"),'TSA Input'!D1776,\"\"))","v":""},{"$f":"IF('TSA Input'!J1776=\"\",\"\",IF(OR('TSA Input'!J1776=\"Yes\",'TSA Input'!J1776=\"Contingent\"),'TSA Input'!G1776,\"\"))","v":""},{"$f":"IF('TSA Input'!J1776=\"\",\"\",IF(OR('TSA Input'!J1776=\"Yes\",'TSA Input'!J1776=\"Contingent\"),'TSA Input'!F1776,\"\"))","v":""},"",{"$f":"IF('TSA Input'!J1776=\"\",\"\",IF(OR('TSA Input'!J1776=\"Yes\",'TSA Input'!J1776=\"Contingent\"),'TSA Input'!D1776,\"\"))","v":""},{"$f":"IF('TSA Input'!J1776=\"\",\"\",IF(OR('TSA Input'!J1776=\"Yes\",'TSA Input'!J1776=\"Contingent\"),'TSA Input'!G1776,\"\"))","v":""},{"$f":"IF('TSA Input'!J1776=\"\",\"\",IF(OR('TSA Input'!J1776=\"Yes\",'TSA Input'!J1776=\"Contingent\"),'TSA Input'!F1776,\"\"))","v":""},"","Required","Required"]
["",null,{"$f":"IF('TSA Input'!J1777=\"\",\"\",IF(OR('TSA Input'!J1777=\"Yes\",'TSA Input'!J1777=\"Contingent\"),'TSA Input'!B1777,\"Ineligible\"))","v":""},{"$f":"IF('TSA Input'!J1777=\"\",\"\",IF(OR('TSA Input'!J1777=\"Yes\",'TSA Input'!J1777=\"Contingent\"),'TSA Input'!I1777,\"\"))","v":""},{"$f":"IF('TSA Input'!J1777=\"\",\"\",IF(OR('TSA Input'!J1777=\"Yes\",'TSA Input'!J1777=\"Contingent\"),'TSA Input'!C1777,\"\"))","v":""},{"$f":"IF('TSA Input'!J1777=\"\",\"\",IF(OR('TSA Input'!J1777=\"Yes\",'TSA Input'!J1777=\"Contingent\"),'TSA Input'!D1777,\"\"))","v":""},{"$f":"IF('TSA Input'!J1777=\"\",\"\",IF(OR('TSA Input'!J1777=\"Yes\",'TSA Input'!J1777=\"Contingent\"),'TSA Input'!G1777,\"\"))","v":""},{"$f":"IF('TSA Input'!J1777=\"\",\"\",IF(OR('TSA Input'!J1777=\"Yes\",'TSA Input'!J1777=\"Contingent\"),'TSA Input'!F1777,\"\"))","v":""},"",{"$f":"IF('TSA Input'!J1777=\"\",\"\",IF(OR('TSA Input'!J1777=\"Yes\",'TSA Input'!J1777=\"Contingent\"),'TSA Input'!D1777,\"\"))","v":""},{"$f":"IF('TSA Input'!J1777=\"\",\"\",IF(OR('TSA Input'!J1777=\"Yes\",'TSA Input'!J1777=\"Contingent\"),'TSA Input'!G1777,\"\"))","v":""},{"$f":"IF('TSA Input'!J1777=\"\",\"\",IF(OR('TSA Input'!J1777=\"Yes\",'TSA Input'!J1777=\"Contingent\"),'TSA Input'!F1777,\"\"))","v":""},"","Required","Required"]
["",null,{"$f":"IF('TSA Input'!J1778=\"\",\"\",IF(OR('TSA Input'!J1778=\"Yes\",'TSA Input'!J1778=\"Contingent\"),'TSA Input'!B1778,\"Ineligible\"))","v":""},{"$f":"IF('TSA Input'!J1778=\"\",\"\",IF(OR('TSA Input'!J1778=\"Yes\",'TSA Input'!J1778=\"Contingent\"),'TSA Input'!I1778,\"\"))","v":""},{"$f":"IF('TSA Input'!J1778=\"\",\"\",IF(OR('TSA Input'!J1778=\"Yes\",'TSA Input'!J1778=\"Contingent\"),'TSA Input'!C1778,\"\"))","v":""},{"$f":"IF('TSA Input'!J1778=\"\",\"\",IF(OR('TSA Input'!J1778=\"Yes\",'TSA Input'!J1778=\"Contingent\"),'TSA Input'!D1778,\"\"))","v":""},{"$f":"IF('TSA Input'!J1778=\"\",\"\",IF(OR('TSA Input'!J1778=\"Yes\",'TSA Input'!J1778=\"Contingent\"),'TSA Input'!G1778,\"\"))","v":""},{"$f":"IF('TSA Input'!J1778=\"\",\"\",IF(OR('TSA Input'!J1778=\"Yes\",'TSA Input'!J1778=\"Contingent\"),'TSA Input'!F1778,\"\"))","v":""},"",{"$f":"IF('TSA Input'!J1778=\"\",\"\",IF(OR('TSA Input'!J1778=\"Yes\",'TSA Input'!J1778=\"Contingent\"),'TSA Input'!D1778,\"\"))","v":""},{"$f":"IF('TSA Input'!J1778=\"\",\"\",IF(OR('TSA Input'!J1778=\"Yes\",'TSA Input'!J1778=\"Contingent\"),'TSA Input'!G1778,\"\"))","v":""},{"$f":"IF('TSA Input'!J1778=\"\",\"\",IF(OR('TSA Input'!J1778=\"Yes\",'TSA Input'!J1778=\"Contingent\"),'TSA Input'!F1778,\"\"))","v":""},"","Required","Required"]
["",null,{"$f":"IF('TSA Input'!J1779=\"\",\"\",IF(OR('TSA Input'!J1779=\"Yes\",'TSA Input'!J1779=\"Contingent\"),'TSA Input'!B1779,\"Ineligible\"))","v":""},{"$f":"IF('TSA Input'!J1779=\"\",\"\",IF(OR('TSA Input'!J1779=\"Yes\",'TSA Input'!J1779=\"Contingent\"),'TSA Input'!I1779,\"\"))","v":""},{"$f":"IF('TSA Input'!J1779=\"\",\"\",IF(OR('TSA Input'!J1779=\"Yes\",'TSA Input'!J1779=\"Contingent\"),'TSA Input'!C1779,\"\"))","v":""},{"$f":"IF('TSA Input'!J1779=\"\",\"\",IF(OR('TSA Input'!J1779=\"Yes\",'TSA Input'!J1779=\"Contingent\"),'TSA Input'!D1779,\"\"))","v":""},{"$f":"IF('TSA Input'!J1779=\"\",\"\",IF(OR('TSA Input'!J1779=\"Yes\",'TSA Input'!J1779=\"Contingent\"),'TSA Input'!G1779,\"\"))","v":""},{"$f":"IF('TSA Input'!J1779=\"\",\"\",IF(OR('TSA Input'!J1779=\"Yes\",'TSA Input'!J1779=\"Contingent\"),'TSA Input'!F1779,\"\"))","v":""},"",{"$f":"IF('TSA Input'!J1779=\"\",\"\",IF(OR('TSA Input'!J1779=\"Yes\",'TSA Input'!J1779=\"Contingent\"),'TSA Input'!D1779,\"\"))","v":""},{"$f":"IF('TSA Input'!J1779=\"\",\"\",IF(OR('TSA Input'!J1779=\"Yes\",'TSA Input'!J1779=\"Contingent\"),'TSA Input'!G1779,\"\"))","v":""},{"$f":"IF('TSA Input'!J1779=\"\",\"\",IF(OR('TSA Input'!J1779=\"Yes\",'TSA Input'!J1779=\"Contingent\"),'TSA Input'!F1779,\"\"))","v":""},"","Required","Required"]
["",null,{"$f":"IF('TSA Input'!J1780=\"\",\"\",IF(OR('TSA Input'!J1780=\"Yes\",'TSA Input'!J1780=\"Contingent\"),'TSA Input'!B1780,\"Ineligible\"))","v":""},{"$f":"IF('TSA Input'!J1780=\"\",\"\",IF(OR('TSA Input'!J1780=\"Yes\",'TSA Input'!J1780=\"Contingent\"),'TSA Input'!I1780,\"\"))","v":""},{"$f":"IF('TSA Input'!J1780=\"\",\"\",IF(OR('TSA Input'!J1780=\"Yes\",'TSA Input'!J1780=\"Contingent\"),'TSA Input'!C1780,\"\"))","v":""},{"$f":"IF('TSA Input'!J1780=\"\",\"\",IF(OR('TSA Input'!J1780=\"Yes\",'TSA Input'!J1780=\"Contingent\"),'TSA Input'!D1780,\"\"))","v":""},{"$f":"IF('TSA Input'!J1780=\"\",\"\",IF(OR('TSA Input'!J1780=\"Yes\",'TSA Input'!J1780=\"Contingent\"),'TSA Input'!G1780,\"\"))","v":""},{"$f":"IF('TSA Input'!J1780=\"\",\"\",IF(OR('TSA Input'!J1780=\"Yes\",'TSA Input'!J1780=\"Contingent\"),'TSA Input'!F1780,\"\"))","v":""},"",{"$f":"IF('TSA Input'!J1780=\"\",\"\",IF(OR('TSA Input'!J1780=\"Yes\",'TSA Input'!J1780=\"Contingent\"),'TSA Input'!D1780,\"\"))","v":""},{"$f":"IF('TSA Input'!J1780=\"\",\"\",IF(OR('TSA Input'!J1780=\"Yes\",'TSA Input'!J1780=\"Contingent\"),'TSA Input'!G1780,\"\"))","v":""},{"$f":"IF('TSA Input'!J1780=\"\",\"\",IF(OR('TSA Input'!J1780=\"Yes\",'TSA Input'!J1780=\"Contingent\"),'TSA Input'!F1780,\"\"))","v":""},"","Required","Required"]
["",null,{"$f":"IF('TSA Input'!J1781=\"\",\"\",IF(OR('TSA Input'!J1781=\"Yes\",'TSA Input'!J1781=\"Contingent\"),'TSA Input'!B1781,\"Ineligible\"))","v":""},{"$f":"IF('TSA Input'!J1781=\"\",\"\",IF(OR('TSA Input'!J1781=\"Yes\",'TSA Input'!J1781=\"Contingent\"),'TSA Input'!I1781,\"\"))","v":""},{"$f":"IF('TSA Input'!J1781=\"\",\"\",IF(OR('TSA Input'!J1781=\"Yes\",'TSA Input'!J1781=\"Contingent\"),'TSA Input'!C1781,\"\"))","v":""},{"$f":"IF('TSA Input'!J1781=\"\",\"\",IF(OR('TSA Input'!J1781=\"Yes\",'TSA Input'!J1781=\"Contingent\"),'TSA Input'!D1781,\"\"))","v":""},{"$f":"IF('TSA Input'!J1781=\"\",\"\",IF(OR('TSA Input'!J1781=\"Yes\",'TSA Input'!J1781=\"Contingent\"),'TSA Input'!G1781,\"\"))","v":""},{"$f":"IF('TSA Input'!J1781=\"\",\"\",IF(OR('TSA Input'!J1781=\"Yes\",'TSA Input'!J1781=\"Contingent\"),'TSA Input'!F1781,\"\"))","v":""},"",{"$f":"IF('TSA Input'!J1781=\"\",\"\",IF(OR('TSA Input'!J1781=\"Yes\",'TSA Input'!J1781=\"Contingent\"),'TSA Input'!D1781,\"\"))","v":""},{"$f":"IF('TSA Input'!J1781=\"\",\"\",IF(OR('TSA Input'!J1781=\"Yes\",'TSA Input'!J1781=\"Contingent\"),'TSA Input'!G1781,\"\"))","v":""},{"$f":"IF('TSA Input'!J1781=\"\",\"\",IF(OR('TSA Input'!J1781=\"Yes\",'TSA Input'!J1781=\"Contingent\"),'TSA Input'!F1781,\"\"))","v":""},"","Required","Required"]
["",null,{"$f":"IF('TSA Input'!J1782=\"\",\"\",IF(OR('TSA Input'!J1782=\"Yes\",'TSA Input'!J1782=\"Contingent\"),'TSA Input'!B1782,\"Ineligible\"))","v":""},{"$f":"IF('TSA Input'!J1782=\"\",\"\",IF(OR('TSA Input'!J1782=\"Yes\",'TSA Input'!J1782=\"Contingent\"),'TSA Input'!I1782,\"\"))","v":""},{"$f":"IF('TSA Input'!J1782=\"\",\"\",IF(OR('TSA Input'!J1782=\"Yes\",'TSA Input'!J1782=\"Contingent\"),'TSA Input'!C1782,\"\"))","v":""},{"$f":"IF('TSA Input'!J1782=\"\",\"\",IF(OR('TSA Input'!J1782=\"Yes\",'TSA Input'!J1782=\"Contingent\"),'TSA Input'!D1782,\"\"))","v":""},{"$f":"IF('TSA Input'!J1782=\"\",\"\",IF(OR('TSA Input'!J1782=\"Yes\",'TSA Input'!J1782=\"Contingent\"),'TSA Input'!G1782,\"\"))","v":""},{"$f":"IF('TSA Input'!J1782=\"\",\"\",IF(OR('TSA Input'!J1782=\"Yes\",'TSA Input'!J1782=\"Contingent\"),'TSA Input'!F1782,\"\"))","v":""},"",{"$f":"IF('TSA Input'!J1782=\"\",\"\",IF(OR('TSA Input'!J1782=\"Yes\",'TSA Input'!J1782=\"Contingent\"),'TSA Input'!D1782,\"\"))","v":""},{"$f":"IF('TSA Input'!J1782=\"\",\"\",IF(OR('TSA Input'!J1782=\"Yes\",'TSA Input'!J1782=\"Contingent\"),'TSA Input'!G1782,\"\"))","v":""},{"$f":"IF('TSA Input'!J1782=\"\",\"\",IF(OR('TSA Input'!J1782=\"Yes\",'TSA Input'!J1782=\"Contingent\"),'TSA Input'!F1782,\"\"))","v":""},"","Required","Required"]
["",null,{"$f":"IF('TSA Input'!J1783=\"\",\"\",IF(OR('TSA Input'!J1783=\"Yes\",'TSA Input'!J1783=\"Contingent\"),'TSA Input'!B1783,\"Ineligible\"))","v":""},{"$f":"IF('TSA Input'!J1783=\"\",\"\",IF(OR('TSA Input'!J1783=\"Yes\",'TSA Input'!J1783=\"Contingent\"),'TSA Input'!I1783,\"\"))","v":""},{"$f":"IF('TSA Input'!J1783=\"\",\"\",IF(OR('TSA Input'!J1783=\"Yes\",'TSA Input'!J1783=\"Contingent\"),'TSA Input'!C1783,\"\"))","v":""},{"$f":"IF('TSA Input'!J1783=\"\",\"\",IF(OR('TSA Input'!J1783=\"Yes\",'TSA Input'!J1783=\"Contingent\"),'TSA Input'!D1783,\"\"))","v":""},{"$f":"IF('TSA Input'!J1783=\"\",\"\",IF(OR('TSA Input'!J1783=\"Yes\",'TSA Input'!J1783=\"Contingent\"),'TSA Input'!G1783,\"\"))","v":""},{"$f":"IF('TSA Input'!J1783=\"\",\"\",IF(OR('TSA Input'!J1783=\"Yes\",'TSA Input'!J1783=\"Contingent\"),'TSA Input'!F1783,\"\"))","v":""},"",{"$f":"IF('TSA Input'!J1783=\"\",\"\",IF(OR('TSA Input'!J1783=\"Yes\",'TSA Input'!J1783=\"Contingent\"),'TSA Input'!D1783,\"\"))","v":""},{"$f":"IF('TSA Input'!J1783=\"\",\"\",IF(OR('TSA Input'!J1783=\"Yes\",'TSA Input'!J1783=\"Contingent\"),'TSA Input'!G1783,\"\"))","v":""},{"$f":"IF('TSA Input'!J1783=\"\",\"\",IF(OR('TSA Input'!J1783=\"Yes\",'TSA Input'!J1783=\"Contingent\"),'TSA Input'!F1783,\"\"))","v":""},"","Required","Required"]
["",null,{"$f":"IF('TSA Input'!J1784=\"\",\"\",IF(OR('TSA Input'!J1784=\"Yes\",'TSA Input'!J1784=\"Contingent\"),'TSA Input'!B1784,\"Ineligible\"))","v":""},{"$f":"IF('TSA Input'!J1784=\"\",\"\",IF(OR('TSA Input'!J1784=\"Yes\",'TSA Input'!J1784=\"Contingent\"),'TSA Input'!I1784,\"\"))","v":""},{"$f":"IF('TSA Input'!J1784=\"\",\"\",IF(OR('TSA Input'!J1784=\"Yes\",'TSA Input'!J1784=\"Contingent\"),'TSA Input'!C1784,\"\"))","v":""},{"$f":"IF('TSA Input'!J1784=\"\",\"\",IF(OR('TSA Input'!J1784=\"Yes\",'TSA Input'!J1784=\"Contingent\"),'TSA Input'!D1784,\"\"))","v":""},{"$f":"IF('TSA Input'!J1784=\"\",\"\",IF(OR('TSA Input'!J1784=\"Yes\",'TSA Input'!J1784=\"Contingent\"),'TSA Input'!G1784,\"\"))","v":""},{"$f":"IF('TSA Input'!J1784=\"\",\"\",IF(OR('TSA Input'!J1784=\"Yes\",'TSA Input'!J1784=\"Contingent\"),'TSA Input'!F1784,\"\"))","v":""},"",{"$f":"IF('TSA Input'!J1784=\"\",\"\",IF(OR('TSA Input'!J1784=\"Yes\",'TSA Input'!J1784=\"Contingent\"),'TSA Input'!D1784,\"\"))","v":""},{"$f":"IF('TSA Input'!J1784=\"\",\"\",IF(OR('TSA Input'!J1784=\"Yes\",'TSA Input'!J1784=\"Contingent\"),'TSA Input'!G1784,\"\"))","v":""},{"$f":"IF('TSA Input'!J1784=\"\",\"\",IF(OR('TSA Input'!J1784=\"Yes\",'TSA Input'!J1784=\"Contingent\"),'TSA Input'!F1784,\"\"))","v":""},"","Required","Required"]
["",null,{"$f":"IF('TSA Input'!J1785=\"\",\"\",IF(OR('TSA Input'!J1785=\"Yes\",'TSA Input'!J1785=\"Contingent\"),'TSA Input'!B1785,\"Ineligible\"))","v":""},{"$f":"IF('TSA Input'!J1785=\"\",\"\",IF(OR('TSA Input'!J1785=\"Yes\",'TSA Input'!J1785=\"Contingent\"),'TSA Input'!I1785,\"\"))","v":""},{"$f":"IF('TSA Input'!J1785=\"\",\"\",IF(OR('TSA Input'!J1785=\"Yes\",'TSA Input'!J1785=\"Contingent\"),'TSA Input'!C1785,\"\"))","v":""},{"$f":"IF('TSA Input'!J1785=\"\",\"\",IF(OR('TSA Input'!J1785=\"Yes\",'TSA Input'!J1785=\"Contingent\"),'TSA Input'!D1785,\"\"))","v":""},{"$f":"IF('TSA Input'!J1785=\"\",\"\",IF(OR('TSA Input'!J1785=\"Yes\",'TSA Input'!J1785=\"Contingent\"),'TSA Input'!G1785,\"\"))","v":""},{"$f":"IF('TSA Input'!J1785=\"\",\"\",IF(OR('TSA Input'!J1785=\"Yes\",'TSA Input'!J1785=\"Contingent\"),'TSA Input'!F1785,\"\"))","v":""},"",{"$f":"IF('TSA Input'!J1785=\"\",\"\",IF(OR('TSA Input'!J1785=\"Yes\",'TSA Input'!J1785=\"Contingent\"),'TSA Input'!D1785,\"\"))","v":""},{"$f":"IF('TSA Input'!J1785=\"\",\"\",IF(OR('TSA Input'!J1785=\"Yes\",'TSA Input'!J1785=\"Contingent\"),'TSA Input'!G1785,\"\"))","v":""},{"$f":"IF('TSA Input'!J1785=\"\",\"\",IF(OR('TSA Input'!J1785=\"Yes\",'TSA Input'!J1785=\"Contingent\"),'TSA Input'!F1785,\"\"))","v":""},"","Required","Required"]
["",null,{"$f":"IF('TSA Input'!J1786=\"\",\"\",IF(OR('TSA Input'!J1786=\"Yes\",'TSA Input'!J1786=\"Contingent\"),'TSA Input'!B1786,\"Ineligible\"))","v":""},{"$f":"IF('TSA Input'!J1786=\"\",\"\",IF(OR('TSA Input'!J1786=\"Yes\",'TSA Input'!J1786=\"Contingent\"),'TSA Input'!I1786,\"\"))","v":""},{"$f":"IF('TSA Input'!J1786=\"\",\"\",IF(OR('TSA Input'!J1786=\"Yes\",'TSA Input'!J1786=\"Contingent\"),'TSA Input'!C1786,\"\"))","v":""},{"$f":"IF('TSA Input'!J1786=\"\",\"\",IF(OR('TSA Input'!J1786=\"Yes\",'TSA Input'!J1786=\"Contingent\"),'TSA Input'!D1786,\"\"))","v":""},{"$f":"IF('TSA Input'!J1786=\"\",\"\",IF(OR('TSA Input'!J1786=\"Yes\",'TSA Input'!J1786=\"Contingent\"),'TSA Input'!G1786,\"\"))","v":""},{"$f":"IF('TSA Input'!J1786=\"\",\"\",IF(OR('TSA Input'!J1786=\"Yes\",'TSA Input'!J1786=\"Contingent\"),'TSA Input'!F1786,\"\"))","v":""},"",{"$f":"IF('TSA Input'!J1786=\"\",\"\",IF(OR('TSA Input'!J1786=\"Yes\",'TSA Input'!J1786=\"Contingent\"),'TSA Input'!D1786,\"\"))","v":""},{"$f":"IF('TSA Input'!J1786=\"\",\"\",IF(OR('TSA Input'!J1786=\"Yes\",'TSA Input'!J1786=\"Contingent\"),'TSA Input'!G1786,\"\"))","v":""},{"$f":"IF('TSA Input'!J1786=\"\",\"\",IF(OR('TSA Input'!J1786=\"Yes\",'TSA Input'!J1786=\"Contingent\"),'TSA Input'!F1786,\"\"))","v":""},"","Required","Required"]
["",null,{"$f":"IF('TSA Input'!J1787=\"\",\"\",IF(OR('TSA Input'!J1787=\"Yes\",'TSA Input'!J1787=\"Contingent\"),'TSA Input'!B1787,\"Ineligible\"))","v":""},{"$f":"IF('TSA Input'!J1787=\"\",\"\",IF(OR('TSA Input'!J1787=\"Yes\",'TSA Input'!J1787=\"Contingent\"),'TSA Input'!I1787,\"\"))","v":""},{"$f":"IF('TSA Input'!J1787=\"\",\"\",IF(OR('TSA Input'!J1787=\"Yes\",'TSA Input'!J1787=\"Contingent\"),'TSA Input'!C1787,\"\"))","v":""},{"$f":"IF('TSA Input'!J1787=\"\",\"\",IF(OR('TSA Input'!J1787=\"Yes\",'TSA Input'!J1787=\"Contingent\"),'TSA Input'!D1787,\"\"))","v":""},{"$f":"IF('TSA Input'!J1787=\"\",\"\",IF(OR('TSA Input'!J1787=\"Yes\",'TSA Input'!J1787=\"Contingent\"),'TSA Input'!G1787,\"\"))","v":""},{"$f":"IF('TSA Input'!J1787=\"\",\"\",IF(OR('TSA Input'!J1787=\"Yes\",'TSA Input'!J1787=\"Contingent\"),'TSA Input'!F1787,\"\"))","v":""},"",{"$f":"IF('TSA Input'!J1787=\"\",\"\",IF(OR('TSA Input'!J1787=\"Yes\",'TSA Input'!J1787=\"Contingent\"),'TSA Input'!D1787,\"\"))","v":""},{"$f":"IF('TSA Input'!J1787=\"\",\"\",IF(OR('TSA Input'!J1787=\"Yes\",'TSA Input'!J1787=\"Contingent\"),'TSA Input'!G1787,\"\"))","v":""},{"$f":"IF('TSA Input'!J1787=\"\",\"\",IF(OR('TSA Input'!J1787=\"Yes\",'TSA Input'!J1787=\"Contingent\"),'TSA Input'!F1787,\"\"))","v":""},"","Required","Required"]
["",null,{"$f":"IF('TSA Input'!J1788=\"\",\"\",IF(OR('TSA Input'!J1788=\"Yes\",'TSA Input'!J1788=\"Contingent\"),'TSA Input'!B1788,\"Ineligible\"))","v":""},{"$f":"IF('TSA Input'!J1788=\"\",\"\",IF(OR('TSA Input'!J1788=\"Yes\",'TSA Input'!J1788=\"Contingent\"),'TSA Input'!I1788,\"\"))","v":""},{"$f":"IF('TSA Input'!J1788=\"\",\"\",IF(OR('TSA Input'!J1788=\"Yes\",'TSA Input'!J1788=\"Contingent\"),'TSA Input'!C1788,\"\"))","v":""},{"$f":"IF('TSA Input'!J1788=\"\",\"\",IF(OR('TSA Input'!J1788=\"Yes\",'TSA Input'!J1788=\"Contingent\"),'TSA Input'!D1788,\"\"))","v":""},{"$f":"IF('TSA Input'!J1788=\"\",\"\",IF(OR('TSA Input'!J1788=\"Yes\",'TSA Input'!J1788=\"Contingent\"),'TSA Input'!G1788,\"\"))","v":""},{"$f":"IF('TSA Input'!J1788=\"\",\"\",IF(OR('TSA Input'!J1788=\"Yes\",'TSA Input'!J1788=\"Contingent\"),'TSA Input'!F1788,\"\"))","v":""},"",{"$f":"IF('TSA Input'!J1788=\"\",\"\",IF(OR('TSA Input'!J1788=\"Yes\",'TSA Input'!J1788=\"Contingent\"),'TSA Input'!D1788,\"\"))","v":""},{"$f":"IF('TSA Input'!J1788=\"\",\"\",IF(OR('TSA Input'!J1788=\"Yes\",'TSA Input'!J1788=\"Contingent\"),'TSA Input'!G1788,\"\"))","v":""},{"$f":"IF('TSA Input'!J1788=\"\",\"\",IF(OR('TSA Input'!J1788=\"Yes\",'TSA Input'!J1788=\"Contingent\"),'TSA Input'!F1788,\"\"))","v":""},"","Required","Required"]
["",null,{"$f":"IF('TSA Input'!J1789=\"\",\"\",IF(OR('TSA Input'!J1789=\"Yes\",'TSA Input'!J1789=\"Contingent\"),'TSA Input'!B1789,\"Ineligible\"))","v":""},{"$f":"IF('TSA Input'!J1789=\"\",\"\",IF(OR('TSA Input'!J1789=\"Yes\",'TSA Input'!J1789=\"Contingent\"),'TSA Input'!I1789,\"\"))","v":""},{"$f":"IF('TSA Input'!J1789=\"\",\"\",IF(OR('TSA Input'!J1789=\"Yes\",'TSA Input'!J1789=\"Contingent\"),'TSA Input'!C1789,\"\"))","v":""},{"$f":"IF('TSA Input'!J1789=\"\",\"\",IF(OR('TSA Input'!J1789=\"Yes\",'TSA Input'!J1789=\"Contingent\"),'TSA Input'!D1789,\"\"))","v":""},{"$f":"IF('TSA Input'!J1789=\"\",\"\",IF(OR('TSA Input'!J1789=\"Yes\",'TSA Input'!J1789=\"Contingent\"),'TSA Input'!G1789,\"\"))","v":""},{"$f":"IF('TSA Input'!J1789=\"\",\"\",IF(OR('TSA Input'!J1789=\"Yes\",'TSA Input'!J1789=\"Contingent\"),'TSA Input'!F1789,\"\"))","v":""},"",{"$f":"IF('TSA Input'!J1789=\"\",\"\",IF(OR('TSA Input'!J1789=\"Yes\",'TSA Input'!J1789=\"Contingent\"),'TSA Input'!D1789,\"\"))","v":""},{"$f":"IF('TSA Input'!J1789=\"\",\"\",IF(OR('TSA Input'!J1789=\"Yes\",'TSA Input'!J1789=\"Contingent\"),'TSA Input'!G1789,\"\"))","v":""},{"$f":"IF('TSA Input'!J1789=\"\",\"\",IF(OR('TSA Input'!J1789=\"Yes\",'TSA Input'!J1789=\"Contingent\"),'TSA Input'!F1789,\"\"))","v":""},"","Required","Required"]
["",null,{"$f":"IF('TSA Input'!J1790=\"\",\"\",IF(OR('TSA Input'!J1790=\"Yes\",'TSA Input'!J1790=\"Contingent\"),'TSA Input'!B1790,\"Ineligible\"))","v":""},{"$f":"IF('TSA Input'!J1790=\"\",\"\",IF(OR('TSA Input'!J1790=\"Yes\",'TSA Input'!J1790=\"Contingent\"),'TSA Input'!I1790,\"\"))","v":""},{"$f":"IF('TSA Input'!J1790=\"\",\"\",IF(OR('TSA Input'!J1790=\"Yes\",'TSA Input'!J1790=\"Contingent\"),'TSA Input'!C1790,\"\"))","v":""},{"$f":"IF('TSA Input'!J1790=\"\",\"\",IF(OR('TSA Input'!J1790=\"Yes\",'TSA Input'!J1790=\"Contingent\"),'TSA Input'!D1790,\"\"))","v":""},{"$f":"IF('TSA Input'!J1790=\"\",\"\",IF(OR('TSA Input'!J1790=\"Yes\",'TSA Input'!J1790=\"Contingent\"),'TSA Input'!G1790,\"\"))","v":""},{"$f":"IF('TSA Input'!J1790=\"\",\"\",IF(OR('TSA Input'!J1790=\"Yes\",'TSA Input'!J1790=\"Contingent\"),'TSA Input'!F1790,\"\"))","v":""},"",{"$f":"IF('TSA Input'!J1790=\"\",\"\",IF(OR('TSA Input'!J1790=\"Yes\",'TSA Input'!J1790=\"Contingent\"),'TSA Input'!D1790,\"\"))","v":""},{"$f":"IF('TSA Input'!J1790=\"\",\"\",IF(OR('TSA Input'!J1790=\"Yes\",'TSA Input'!J1790=\"Contingent\"),'TSA Input'!G1790,\"\"))","v":""},{"$f":"IF('TSA Input'!J1790=\"\",\"\",IF(OR('TSA Input'!J1790=\"Yes\",'TSA Input'!J1790=\"Contingent\"),'TSA Input'!F1790,\"\"))","v":""},"","Required","Required"]
["",null,{"$f":"IF('TSA Input'!J1791=\"\",\"\",IF(OR('TSA Input'!J1791=\"Yes\",'TSA Input'!J1791=\"Contingent\"),'TSA Input'!B1791,\"Ineligible\"))","v":""},{"$f":"IF('TSA Input'!J1791=\"\",\"\",IF(OR('TSA Input'!J1791=\"Yes\",'TSA Input'!J1791=\"Contingent\"),'TSA Input'!I1791,\"\"))","v":""},{"$f":"IF('TSA Input'!J1791=\"\",\"\",IF(OR('TSA Input'!J1791=\"Yes\",'TSA Input'!J1791=\"Contingent\"),'TSA Input'!C1791,\"\"))","v":""},{"$f":"IF('TSA Input'!J1791=\"\",\"\",IF(OR('TSA Input'!J1791=\"Yes\",'TSA Input'!J1791=\"Contingent\"),'TSA Input'!D1791,\"\"))","v":""},{"$f":"IF('TSA Input'!J1791=\"\",\"\",IF(OR('TSA Input'!J1791=\"Yes\",'TSA Input'!J1791=\"Contingent\"),'TSA Input'!G1791,\"\"))","v":""},{"$f":"IF('TSA Input'!J1791=\"\",\"\",IF(OR('TSA Input'!J1791=\"Yes\",'TSA Input'!J1791=\"Contingent\"),'TSA Input'!F1791,\"\"))","v":""},"",{"$f":"IF('TSA Input'!J1791=\"\",\"\",IF(OR('TSA Input'!J1791=\"Yes\",'TSA Input'!J1791=\"Contingent\"),'TSA Input'!D1791,\"\"))","v":""},{"$f":"IF('TSA Input'!J1791=\"\",\"\",IF(OR('TSA Input'!J1791=\"Yes\",'TSA Input'!J1791=\"Contingent\"),'TSA Input'!G1791,\"\"))","v":""},{"$f":"IF('TSA Input'!J1791=\"\",\"\",IF(OR('TSA Input'!J1791=\"Yes\",'TSA Input'!J1791=\"Contingent\"),'TSA Input'!F1791,\"\"))","v":""},"","Required","Required"]
["",null,{"$f":"IF('TSA Input'!J1792=\"\",\"\",IF(OR('TSA Input'!J1792=\"Yes\",'TSA Input'!J1792=\"Contingent\"),'TSA Input'!B1792,\"Ineligible\"))","v":""},{"$f":"IF('TSA Input'!J1792=\"\",\"\",IF(OR('TSA Input'!J1792=\"Yes\",'TSA Input'!J1792=\"Contingent\"),'TSA Input'!I1792,\"\"))","v":""},{"$f":"IF('TSA Input'!J1792=\"\",\"\",IF(OR('TSA Input'!J1792=\"Yes\",'TSA Input'!J1792=\"Contingent\"),'TSA Input'!C1792,\"\"))","v":""},{"$f":"IF('TSA Input'!J1792=\"\",\"\",IF(OR('TSA Input'!J1792=\"Yes\",'TSA Input'!J1792=\"Contingent\"),'TSA Input'!D1792,\"\"))","v":""},{"$f":"IF('TSA Input'!J1792=\"\",\"\",IF(OR('TSA Input'!J1792=\"Yes\",'TSA Input'!J1792=\"Contingent\"),'TSA Input'!G1792,\"\"))","v":""},{"$f":"IF('TSA Input'!J1792=\"\",\"\",IF(OR('TSA Input'!J1792=\"Yes\",'TSA Input'!J1792=\"Contingent\"),'TSA Input'!F1792,\"\"))","v":""},"",{"$f":"IF('TSA Input'!J1792=\"\",\"\",IF(OR('TSA Input'!J1792=\"Yes\",'TSA Input'!J1792=\"Contingent\"),'TSA Input'!D1792,\"\"))","v":""},{"$f":"IF('TSA Input'!J1792=\"\",\"\",IF(OR('TSA Input'!J1792=\"Yes\",'TSA Input'!J1792=\"Contingent\"),'TSA Input'!G1792,\"\"))","v":""},{"$f":"IF('TSA Input'!J1792=\"\",\"\",IF(OR('TSA Input'!J1792=\"Yes\",'TSA Input'!J1792=\"Contingent\"),'TSA Input'!F1792,\"\"))","v":""},"","Required","Required"]
["",null,{"$f":"IF('TSA Input'!J1793=\"\",\"\",IF(OR('TSA Input'!J1793=\"Yes\",'TSA Input'!J1793=\"Contingent\"),'TSA Input'!B1793,\"Ineligible\"))","v":""},{"$f":"IF('TSA Input'!J1793=\"\",\"\",IF(OR('TSA Input'!J1793=\"Yes\",'TSA Input'!J1793=\"Contingent\"),'TSA Input'!I1793,\"\"))","v":""},{"$f":"IF('TSA Input'!J1793=\"\",\"\",IF(OR('TSA Input'!J1793=\"Yes\",'TSA Input'!J1793=\"Contingent\"),'TSA Input'!C1793,\"\"))","v":""},{"$f":"IF('TSA Input'!J1793=\"\",\"\",IF(OR('TSA Input'!J1793=\"Yes\",'TSA Input'!J1793=\"Contingent\"),'TSA Input'!D1793,\"\"))","v":""},{"$f":"IF('TSA Input'!J1793=\"\",\"\",IF(OR('TSA Input'!J1793=\"Yes\",'TSA Input'!J1793=\"Contingent\"),'TSA Input'!G1793,\"\"))","v":""},{"$f":"IF('TSA Input'!J1793=\"\",\"\",IF(OR('TSA Input'!J1793=\"Yes\",'TSA Input'!J1793=\"Contingent\"),'TSA Input'!F1793,\"\"))","v":""},"",{"$f":"IF('TSA Input'!J1793=\"\",\"\",IF(OR('TSA Input'!J1793=\"Yes\",'TSA Input'!J1793=\"Contingent\"),'TSA Input'!D1793,\"\"))","v":""},{"$f":"IF('TSA Input'!J1793=\"\",\"\",IF(OR('TSA Input'!J1793=\"Yes\",'TSA Input'!J1793=\"Contingent\"),'TSA Input'!G1793,\"\"))","v":""},{"$f":"IF('TSA Input'!J1793=\"\",\"\",IF(OR('TSA Input'!J1793=\"Yes\",'TSA Input'!J1793=\"Contingent\"),'TSA Input'!F1793,\"\"))","v":""},"","Required","Required"]
["",null,{"$f":"IF('TSA Input'!J1794=\"\",\"\",IF(OR('TSA Input'!J1794=\"Yes\",'TSA Input'!J1794=\"Contingent\"),'TSA Input'!B1794,\"Ineligible\"))","v":""},{"$f":"IF('TSA Input'!J1794=\"\",\"\",IF(OR('TSA Input'!J1794=\"Yes\",'TSA Input'!J1794=\"Contingent\"),'TSA Input'!I1794,\"\"))","v":""},{"$f":"IF('TSA Input'!J1794=\"\",\"\",IF(OR('TSA Input'!J1794=\"Yes\",'TSA Input'!J1794=\"Contingent\"),'TSA Input'!C1794,\"\"))","v":""},{"$f":"IF('TSA Input'!J1794=\"\",\"\",IF(OR('TSA Input'!J1794=\"Yes\",'TSA Input'!J1794=\"Contingent\"),'TSA Input'!D1794,\"\"))","v":""},{"$f":"IF('TSA Input'!J1794=\"\",\"\",IF(OR('TSA Input'!J1794=\"Yes\",'TSA Input'!J1794=\"Contingent\"),'TSA Input'!G1794,\"\"))","v":""},{"$f":"IF('TSA Input'!J1794=\"\",\"\",IF(OR('TSA Input'!J1794=\"Yes\",'TSA Input'!J1794=\"Contingent\"),'TSA Input'!F1794,\"\"))","v":""},"",{"$f":"IF('TSA Input'!J1794=\"\",\"\",IF(OR('TSA Input'!J1794=\"Yes\",'TSA Input'!J1794=\"Contingent\"),'TSA Input'!D1794,\"\"))","v":""},{"$f":"IF('TSA Input'!J1794=\"\",\"\",IF(OR('TSA Input'!J1794=\"Yes\",'TSA Input'!J1794=\"Contingent\"),'TSA Input'!G1794,\"\"))","v":""},{"$f":"IF('TSA Input'!J1794=\"\",\"\",IF(OR('TSA Input'!J1794=\"Yes\",'TSA Input'!J1794=\"Contingent\"),'TSA Input'!F1794,\"\"))","v":""},"","Required","Required"]
["",null,{"$f":"IF('TSA Input'!J1795=\"\",\"\",IF(OR('TSA Input'!J1795=\"Yes\",'TSA Input'!J1795=\"Contingent\"),'TSA Input'!B1795,\"Ineligible\"))","v":""},{"$f":"IF('TSA Input'!J1795=\"\",\"\",IF(OR('TSA Input'!J1795=\"Yes\",'TSA Input'!J1795=\"Contingent\"),'TSA Input'!I1795,\"\"))","v":""},{"$f":"IF('TSA Input'!J1795=\"\",\"\",IF(OR('TSA Input'!J1795=\"Yes\",'TSA Input'!J1795=\"Contingent\"),'TSA Input'!C1795,\"\"))","v":""},{"$f":"IF('TSA Input'!J1795=\"\",\"\",IF(OR('TSA Input'!J1795=\"Yes\",'TSA Input'!J1795=\"Contingent\"),'TSA Input'!D1795,\"\"))","v":""},{"$f":"IF('TSA Input'!J1795=\"\",\"\",IF(OR('TSA Input'!J1795=\"Yes\",'TSA Input'!J1795=\"Contingent\"),'TSA Input'!G1795,\"\"))","v":""},{"$f":"IF('TSA Input'!J1795=\"\",\"\",IF(OR('TSA Input'!J1795=\"Yes\",'TSA Input'!J1795=\"Contingent\"),'TSA Input'!F1795,\"\"))","v":""},"",{"$f":"IF('TSA Input'!J1795=\"\",\"\",IF(OR('TSA Input'!J1795=\"Yes\",'TSA Input'!J1795=\"Contingent\"),'TSA Input'!D1795,\"\"))","v":""},{"$f":"IF('TSA Input'!J1795=\"\",\"\",IF(OR('TSA Input'!J1795=\"Yes\",'TSA Input'!J1795=\"Contingent\"),'TSA Input'!G1795,\"\"))","v":""},{"$f":"IF('TSA Input'!J1795=\"\",\"\",IF(OR('TSA Input'!J1795=\"Yes\",'TSA Input'!J1795=\"Contingent\"),'TSA Input'!F1795,\"\"))","v":""},"","Required","Required"]
["",null,{"$f":"IF('TSA Input'!J1796=\"\",\"\",IF(OR('TSA Input'!J1796=\"Yes\",'TSA Input'!J1796=\"Contingent\"),'TSA Input'!B1796,\"Ineligible\"))","v":""},{"$f":"IF('TSA Input'!J1796=\"\",\"\",IF(OR('TSA Input'!J1796=\"Yes\",'TSA Input'!J1796=\"Contingent\"),'TSA Input'!I1796,\"\"))","v":""},{"$f":"IF('TSA Input'!J1796=\"\",\"\",IF(OR('TSA Input'!J1796=\"Yes\",'TSA Input'!J1796=\"Contingent\"),'TSA Input'!C1796,\"\"))","v":""},{"$f":"IF('TSA Input'!J1796=\"\",\"\",IF(OR('TSA Input'!J1796=\"Yes\",'TSA Input'!J1796=\"Contingent\"),'TSA Input'!D1796,\"\"))","v":""},{"$f":"IF('TSA Input'!J1796=\"\",\"\",IF(OR('TSA Input'!J1796=\"Yes\",'TSA Input'!J1796=\"Contingent\"),'TSA Input'!G1796,\"\"))","v":""},{"$f":"IF('TSA Input'!J1796=\"\",\"\",IF(OR('TSA Input'!J1796=\"Yes\",'TSA Input'!J1796=\"Contingent\"),'TSA Input'!F1796,\"\"))","v":""},{"$f":"IF($C1834=\"\",\"\",SUM(F1834:H1834))","v":""},{"$f":"IF('TSA Input'!J1796=\"\",\"\",IF(OR('TSA Input'!J1796=\"Yes\",'TSA Input'!J1796=\"Contingent\"),'TSA Input'!D1796,\"\"))","v":""},{"$f":"IF('TSA Input'!J1796=\"\",\"\",IF(OR('TSA Input'!J1796=\"Yes\",'TSA Input'!J1796=\"Contingent\"),'TSA Input'!G1796,\"\"))","v":""},{"$f":"IF('TSA Input'!J1796=\"\",\"\",IF(OR('TSA Input'!J1796=\"Yes\",'TSA Input'!J1796=\"Contingent\"),'TSA Input'!F1796,\"\"))","v":""},{"$f":"IF($C1834=\"\",\"\",SUM(J1834:L1834))","v":""},"Required","Required"]
["",null,{"$f":"IF('TSA Input'!J1797=\"\",\"\",IF(OR('TSA Input'!J1797=\"Yes\",'TSA Input'!J1797=\"Contingent\"),'TSA Input'!B1797,\"Ineligible\"))","v":""},{"$f":"IF('TSA Input'!J1797=\"\",\"\",IF(OR('TSA Input'!J1797=\"Yes\",'TSA Input'!J1797=\"Contingent\"),'TSA Input'!I1797,\"\"))","v":""},{"$f":"IF('TSA Input'!J1797=\"\",\"\",IF(OR('TSA Input'!J1797=\"Yes\",'TSA Input'!J1797=\"Contingent\"),'TSA Input'!C1797,\"\"))","v":""},{"$f":"IF('TSA Input'!J1797=\"\",\"\",IF(OR('TSA Input'!J1797=\"Yes\",'TSA Input'!J1797=\"Contingent\"),'TSA Input'!D1797,\"\"))","v":""},{"$f":"IF('TSA Input'!J1797=\"\",\"\",IF(OR('TSA Input'!J1797=\"Yes\",'TSA Input'!J1797=\"Contingent\"),'TSA Input'!G1797,\"\"))","v":""},{"$f":"IF('TSA Input'!J1797=\"\",\"\",IF(OR('TSA Input'!J1797=\"Yes\",'TSA Input'!J1797=\"Contingent\"),'TSA Input'!F1797,\"\"))","v":""},"",{"$f":"IF('TSA Input'!J1797=\"\",\"\",IF(OR('TSA Input'!J1797=\"Yes\",'TSA Input'!J1797=\"Contingent\"),'TSA Input'!D1797,\"\"))","v":""},{"$f":"IF('TSA Input'!J1797=\"\",\"\",IF(OR('TSA Input'!J1797=\"Yes\",'TSA Input'!J1797=\"Contingent\"),'TSA Input'!G1797,\"\"))","v":""},{"$f":"IF('TSA Input'!J1797=\"\",\"\",IF(OR('TSA Input'!J1797=\"Yes\",'TSA Input'!J1797=\"Contingent\"),'TSA Input'!F1797,\"\"))","v":""},"","Required","Required"]
["",null,{"$f":"IF('TSA Input'!J1798=\"\",\"\",IF(OR('TSA Input'!J1798=\"Yes\",'TSA Input'!J1798=\"Contingent\"),'TSA Input'!B1798,\"Ineligible\"))","v":""},{"$f":"IF('TSA Input'!J1798=\"\",\"\",IF(OR('TSA Input'!J1798=\"Yes\",'TSA Input'!J1798=\"Contingent\"),'TSA Input'!I1798,\"\"))","v":""},{"$f":"IF('TSA Input'!J1798=\"\",\"\",IF(OR('TSA Input'!J1798=\"Yes\",'TSA Input'!J1798=\"Contingent\"),'TSA Input'!C1798,\"\"))","v":""},{"$f":"IF('TSA Input'!J1798=\"\",\"\",IF(OR('TSA Input'!J1798=\"Yes\",'TSA Input'!J1798=\"Contingent\"),'TSA Input'!D1798,\"\"))","v":""},{"$f":"IF('TSA Input'!J1798=\"\",\"\",IF(OR('TSA Input'!J1798=\"Yes\",'TSA Input'!J1798=\"Contingent\"),'TSA Input'!G1798,\"\"))","v":""},{"$f":"IF('TSA Input'!J1798=\"\",\"\",IF(OR('TSA Input'!J1798=\"Yes\",'TSA Input'!J1798=\"Contingent\"),'TSA Input'!F1798,\"\"))","v":""},"",{"$f":"IF('TSA Input'!J1798=\"\",\"\",IF(OR('TSA Input'!J1798=\"Yes\",'TSA Input'!J1798=\"Contingent\"),'TSA Input'!D1798,\"\"))","v":""},{"$f":"IF('TSA Input'!J1798=\"\",\"\",IF(OR('TSA Input'!J1798=\"Yes\",'TSA Input'!J1798=\"Contingent\"),'TSA Input'!G1798,\"\"))","v":""},{"$f":"IF('TSA Input'!J1798=\"\",\"\",IF(OR('TSA Input'!J1798=\"Yes\",'TSA Input'!J1798=\"Contingent\"),'TSA Input'!F1798,\"\"))","v":""},"","Required","Required"]
["",null,{"$f":"IF('TSA Input'!J1799=\"\",\"\",IF(OR('TSA Input'!J1799=\"Yes\",'TSA Input'!J1799=\"Contingent\"),'TSA Input'!B1799,\"Ineligible\"))","v":""},{"$f":"IF('TSA Input'!J1799=\"\",\"\",IF(OR('TSA Input'!J1799=\"Yes\",'TSA Input'!J1799=\"Contingent\"),'TSA Input'!I1799,\"\"))","v":""},{"$f":"IF('TSA Input'!J1799=\"\",\"\",IF(OR('TSA Input'!J1799=\"Yes\",'TSA Input'!J1799=\"Contingent\"),'TSA Input'!C1799,\"\"))","v":""},{"$f":"IF('TSA Input'!J1799=\"\",\"\",IF(OR('TSA Input'!J1799=\"Yes\",'TSA Input'!J1799=\"Contingent\"),'TSA Input'!D1799,\"\"))","v":""},{"$f":"IF('TSA Input'!J1799=\"\",\"\",IF(OR('TSA Input'!J1799=\"Yes\",'TSA Input'!J1799=\"Contingent\"),'TSA Input'!G1799,\"\"))","v":""},{"$f":"IF('TSA Input'!J1799=\"\",\"\",IF(OR('TSA Input'!J1799=\"Yes\",'TSA Input'!J1799=\"Contingent\"),'TSA Input'!F1799,\"\"))","v":""},"",{"$f":"IF('TSA Input'!J1799=\"\",\"\",IF(OR('TSA Input'!J1799=\"Yes\",'TSA Input'!J1799=\"Contingent\"),'TSA Input'!D1799,\"\"))","v":""},{"$f":"IF('TSA Input'!J1799=\"\",\"\",IF(OR('TSA Input'!J1799=\"Yes\",'TSA Input'!J1799=\"Contingent\"),'TSA Input'!G1799,\"\"))","v":""},{"$f":"IF('TSA Input'!J1799=\"\",\"\",IF(OR('TSA Input'!J1799=\"Yes\",'TSA Input'!J1799=\"Contingent\"),'TSA Input'!F1799,\"\"))","v":""},"","Required","Required"]
["",null,{"$f":"IF('TSA Input'!J1800=\"\",\"\",IF(OR('TSA Input'!J1800=\"Yes\",'TSA Input'!J1800=\"Contingent\"),'TSA Input'!B1800,\"Ineligible\"))","v":""},{"$f":"IF('TSA Input'!J1800=\"\",\"\",IF(OR('TSA Input'!J1800=\"Yes\",'TSA Input'!J1800=\"Contingent\"),'TSA Input'!I1800,\"\"))","v":""},{"$f":"IF('TSA Input'!J1800=\"\",\"\",IF(OR('TSA Input'!J1800=\"Yes\",'TSA Input'!J1800=\"Contingent\"),'TSA Input'!C1800,\"\"))","v":""},{"$f":"IF('TSA Input'!J1800=\"\",\"\",IF(OR('TSA Input'!J1800=\"Yes\",'TSA Input'!J1800=\"Contingent\"),'TSA Input'!D1800,\"\"))","v":""},{"$f":"IF('TSA Input'!J1800=\"\",\"\",IF(OR('TSA Input'!J1800=\"Yes\",'TSA Input'!J1800=\"Contingent\"),'TSA Input'!G1800,\"\"))","v":""},{"$f":"IF('TSA Input'!J1800=\"\",\"\",IF(OR('TSA Input'!J1800=\"Yes\",'TSA Input'!J1800=\"Contingent\"),'TSA Input'!F1800,\"\"))","v":""},"",{"$f":"IF('TSA Input'!J1800=\"\",\"\",IF(OR('TSA Input'!J1800=\"Yes\",'TSA Input'!J1800=\"Contingent\"),'TSA Input'!D1800,\"\"))","v":""},{"$f":"IF('TSA Input'!J1800=\"\",\"\",IF(OR('TSA Input'!J1800=\"Yes\",'TSA Input'!J1800=\"Contingent\"),'TSA Input'!G1800,\"\"))","v":""},{"$f":"IF('TSA Input'!J1800=\"\",\"\",IF(OR('TSA Input'!J1800=\"Yes\",'TSA Input'!J1800=\"Contingent\"),'TSA Input'!F1800,\"\"))","v":""},"","Required","Required"]
["",null,{"$f":"IF('TSA Input'!J1801=\"\",\"\",IF(OR('TSA Input'!J1801=\"Yes\",'TSA Input'!J1801=\"Contingent\"),'TSA Input'!B1801,\"Ineligible\"))","v":""},{"$f":"IF('TSA Input'!J1801=\"\",\"\",IF(OR('TSA Input'!J1801=\"Yes\",'TSA Input'!J1801=\"Contingent\"),'TSA Input'!I1801,\"\"))","v":""},{"$f":"IF('TSA Input'!J1801=\"\",\"\",IF(OR('TSA Input'!J1801=\"Yes\",'TSA Input'!J1801=\"Contingent\"),'TSA Input'!C1801,\"\"))","v":""},{"$f":"IF('TSA Input'!J1801=\"\",\"\",IF(OR('TSA Input'!J1801=\"Yes\",'TSA Input'!J1801=\"Contingent\"),'TSA Input'!D1801,\"\"))","v":""},{"$f":"IF('TSA Input'!J1801=\"\",\"\",IF(OR('TSA Input'!J1801=\"Yes\",'TSA Input'!J1801=\"Contingent\"),'TSA Input'!G1801,\"\"))","v":""},{"$f":"IF('TSA Input'!J1801=\"\",\"\",IF(OR('TSA Input'!J1801=\"Yes\",'TSA Input'!J1801=\"Contingent\"),'TSA Input'!F1801,\"\"))","v":""},"",{"$f":"IF('TSA Input'!J1801=\"\",\"\",IF(OR('TSA Input'!J1801=\"Yes\",'TSA Input'!J1801=\"Contingent\"),'TSA Input'!D1801,\"\"))","v":""},{"$f":"IF('TSA Input'!J1801=\"\",\"\",IF(OR('TSA Input'!J1801=\"Yes\",'TSA Input'!J1801=\"Contingent\"),'TSA Input'!G1801,\"\"))","v":""},{"$f":"IF('TSA Input'!J1801=\"\",\"\",IF(OR('TSA Input'!J1801=\"Yes\",'TSA Input'!J1801=\"Contingent\"),'TSA Input'!F1801,\"\"))","v":""},"","Required","Required"]
["",null,{"$f":"IF('TSA Input'!J1802=\"\",\"\",IF(OR('TSA Input'!J1802=\"Yes\",'TSA Input'!J1802=\"Contingent\"),'TSA Input'!B1802,\"Ineligible\"))","v":""},{"$f":"IF('TSA Input'!J1802=\"\",\"\",IF(OR('TSA Input'!J1802=\"Yes\",'TSA Input'!J1802=\"Contingent\"),'TSA Input'!I1802,\"\"))","v":""},{"$f":"IF('TSA Input'!J1802=\"\",\"\",IF(OR('TSA Input'!J1802=\"Yes\",'TSA Input'!J1802=\"Contingent\"),'TSA Input'!C1802,\"\"))","v":""},{"$f":"IF('TSA Input'!J1802=\"\",\"\",IF(OR('TSA Input'!J1802=\"Yes\",'TSA Input'!J1802=\"Contingent\"),'TSA Input'!D1802,\"\"))","v":""},{"$f":"IF('TSA Input'!J1802=\"\",\"\",IF(OR('TSA Input'!J1802=\"Yes\",'TSA Input'!J1802=\"Contingent\"),'TSA Input'!G1802,\"\"))","v":""},{"$f":"IF('TSA Input'!J1802=\"\",\"\",IF(OR('TSA Input'!J1802=\"Yes\",'TSA Input'!J1802=\"Contingent\"),'TSA Input'!F1802,\"\"))","v":""},"",{"$f":"IF('TSA Input'!J1802=\"\",\"\",IF(OR('TSA Input'!J1802=\"Yes\",'TSA Input'!J1802=\"Contingent\"),'TSA Input'!D1802,\"\"))","v":""},{"$f":"IF('TSA Input'!J1802=\"\",\"\",IF(OR('TSA Input'!J1802=\"Yes\",'TSA Input'!J1802=\"Contingent\"),'TSA Input'!G1802,\"\"))","v":""},{"$f":"IF('TSA Input'!J1802=\"\",\"\",IF(OR('TSA Input'!J1802=\"Yes\",'TSA Input'!J1802=\"Contingent\"),'TSA Input'!F1802,\"\"))","v":""},"","Required","Required"]
["",null,{"$f":"IF('TSA Input'!J1803=\"\",\"\",IF(OR('TSA Input'!J1803=\"Yes\",'TSA Input'!J1803=\"Contingent\"),'TSA Input'!B1803,\"Ineligible\"))","v":""},{"$f":"IF('TSA Input'!J1803=\"\",\"\",IF(OR('TSA Input'!J1803=\"Yes\",'TSA Input'!J1803=\"Contingent\"),'TSA Input'!I1803,\"\"))","v":""},{"$f":"IF('TSA Input'!J1803=\"\",\"\",IF(OR('TSA Input'!J1803=\"Yes\",'TSA Input'!J1803=\"Contingent\"),'TSA Input'!C1803,\"\"))","v":""},{"$f":"IF('TSA Input'!J1803=\"\",\"\",IF(OR('TSA Input'!J1803=\"Yes\",'TSA Input'!J1803=\"Contingent\"),'TSA Input'!D1803,\"\"))","v":""},{"$f":"IF('TSA Input'!J1803=\"\",\"\",IF(OR('TSA Input'!J1803=\"Yes\",'TSA Input'!J1803=\"Contingent\"),'TSA Input'!G1803,\"\"))","v":""},{"$f":"IF('TSA Input'!J1803=\"\",\"\",IF(OR('TSA Input'!J1803=\"Yes\",'TSA Input'!J1803=\"Contingent\"),'TSA Input'!F1803,\"\"))","v":""},"",{"$f":"IF('TSA Input'!J1803=\"\",\"\",IF(OR('TSA Input'!J1803=\"Yes\",'TSA Input'!J1803=\"Contingent\"),'TSA Input'!D1803,\"\"))","v":""},{"$f":"IF('TSA Input'!J1803=\"\",\"\",IF(OR('TSA Input'!J1803=\"Yes\",'TSA Input'!J1803=\"Contingent\"),'TSA Input'!G1803,\"\"))","v":""},{"$f":"IF('TSA Input'!J1803=\"\",\"\",IF(OR('TSA Input'!J1803=\"Yes\",'TSA Input'!J1803=\"Contingent\"),'TSA Input'!F1803,\"\"))","v":""},"","Required","Required"]
["",null,{"$f":"IF('TSA Input'!J1804=\"\",\"\",IF(OR('TSA Input'!J1804=\"Yes\",'TSA Input'!J1804=\"Contingent\"),'TSA Input'!B1804,\"Ineligible\"))","v":""},{"$f":"IF('TSA Input'!J1804=\"\",\"\",IF(OR('TSA Input'!J1804=\"Yes\",'TSA Input'!J1804=\"Contingent\"),'TSA Input'!I1804,\"\"))","v":""},{"$f":"IF('TSA Input'!J1804=\"\",\"\",IF(OR('TSA Input'!J1804=\"Yes\",'TSA Input'!J1804=\"Contingent\"),'TSA Input'!C1804,\"\"))","v":""},{"$f":"IF('TSA Input'!J1804=\"\",\"\",IF(OR('TSA Input'!J1804=\"Yes\",'TSA Input'!J1804=\"Contingent\"),'TSA Input'!D1804,\"\"))","v":""},{"$f":"IF('TSA Input'!J1804=\"\",\"\",IF(OR('TSA Input'!J1804=\"Yes\",'TSA Input'!J1804=\"Contingent\"),'TSA Input'!G1804,\"\"))","v":""},{"$f":"IF('TSA Input'!J1804=\"\",\"\",IF(OR('TSA Input'!J1804=\"Yes\",'TSA Input'!J1804=\"Contingent\"),'TSA Input'!F1804,\"\"))","v":""},"",{"$f":"IF('TSA Input'!J1804=\"\",\"\",IF(OR('TSA Input'!J1804=\"Yes\",'TSA Input'!J1804=\"Contingent\"),'TSA Input'!D1804,\"\"))","v":""},{"$f":"IF('TSA Input'!J1804=\"\",\"\",IF(OR('TSA Input'!J1804=\"Yes\",'TSA Input'!J1804=\"Contingent\"),'TSA Input'!G1804,\"\"))","v":""},{"$f":"IF('TSA Input'!J1804=\"\",\"\",IF(OR('TSA Input'!J1804=\"Yes\",'TSA Input'!J1804=\"Contingent\"),'TSA Input'!F1804,\"\"))","v":""},"","Required","Required"]
["",null,{"$f":"IF('TSA Input'!J1805=\"\",\"\",IF(OR('TSA Input'!J1805=\"Yes\",'TSA Input'!J1805=\"Contingent\"),'TSA Input'!B1805,\"Ineligible\"))","v":""},{"$f":"IF('TSA Input'!J1805=\"\",\"\",IF(OR('TSA Input'!J1805=\"Yes\",'TSA Input'!J1805=\"Contingent\"),'TSA Input'!I1805,\"\"))","v":""},{"$f":"IF('TSA Input'!J1805=\"\",\"\",IF(OR('TSA Input'!J1805=\"Yes\",'TSA Input'!J1805=\"Contingent\"),'TSA Input'!C1805,\"\"))","v":""},{"$f":"IF('TSA Input'!J1805=\"\",\"\",IF(OR('TSA Input'!J1805=\"Yes\",'TSA Input'!J1805=\"Contingent\"),'TSA Input'!D1805,\"\"))","v":""},{"$f":"IF('TSA Input'!J1805=\"\",\"\",IF(OR('TSA Input'!J1805=\"Yes\",'TSA Input'!J1805=\"Contingent\"),'TSA Input'!G1805,\"\"))","v":""},{"$f":"IF('TSA Input'!J1805=\"\",\"\",IF(OR('TSA Input'!J1805=\"Yes\",'TSA Input'!J1805=\"Contingent\"),'TSA Input'!F1805,\"\"))","v":""},"",{"$f":"IF('TSA Input'!J1805=\"\",\"\",IF(OR('TSA Input'!J1805=\"Yes\",'TSA Input'!J1805=\"Contingent\"),'TSA Input'!D1805,\"\"))","v":""},{"$f":"IF('TSA Input'!J1805=\"\",\"\",IF(OR('TSA Input'!J1805=\"Yes\",'TSA Input'!J1805=\"Contingent\"),'TSA Input'!G1805,\"\"))","v":""},{"$f":"IF('TSA Input'!J1805=\"\",\"\",IF(OR('TSA Input'!J1805=\"Yes\",'TSA Input'!J1805=\"Contingent\"),'TSA Input'!F1805,\"\"))","v":""},"","Required","Required"]
["",null,{"$f":"IF('TSA Input'!J1806=\"\",\"\",IF(OR('TSA Input'!J1806=\"Yes\",'TSA Input'!J1806=\"Contingent\"),'TSA Input'!B1806,\"Ineligible\"))","v":""},{"$f":"IF('TSA Input'!J1806=\"\",\"\",IF(OR('TSA Input'!J1806=\"Yes\",'TSA Input'!J1806=\"Contingent\"),'TSA Input'!I1806,\"\"))","v":""},{"$f":"IF('TSA Input'!J1806=\"\",\"\",IF(OR('TSA Input'!J1806=\"Yes\",'TSA Input'!J1806=\"Contingent\"),'TSA Input'!C1806,\"\"))","v":""},{"$f":"IF('TSA Input'!J1806=\"\",\"\",IF(OR('TSA Input'!J1806=\"Yes\",'TSA Input'!J1806=\"Contingent\"),'TSA Input'!D1806,\"\"))","v":""},{"$f":"IF('TSA Input'!J1806=\"\",\"\",IF(OR('TSA Input'!J1806=\"Yes\",'TSA Input'!J1806=\"Contingent\"),'TSA Input'!G1806,\"\"))","v":""},{"$f":"IF('TSA Input'!J1806=\"\",\"\",IF(OR('TSA Input'!J1806=\"Yes\",'TSA Input'!J1806=\"Contingent\"),'TSA Input'!F1806,\"\"))","v":""},"",{"$f":"IF('TSA Input'!J1806=\"\",\"\",IF(OR('TSA Input'!J1806=\"Yes\",'TSA Input'!J1806=\"Contingent\"),'TSA Input'!D1806,\"\"))","v":""},{"$f":"IF('TSA Input'!J1806=\"\",\"\",IF(OR('TSA Input'!J1806=\"Yes\",'TSA Input'!J1806=\"Contingent\"),'TSA Input'!G1806,\"\"))","v":""},{"$f":"IF('TSA Input'!J1806=\"\",\"\",IF(OR('TSA Input'!J1806=\"Yes\",'TSA Input'!J1806=\"Contingent\"),'TSA Input'!F1806,\"\"))","v":""},"","Required","Required"]
["",null,{"$f":"IF('TSA Input'!J1807=\"\",\"\",IF(OR('TSA Input'!J1807=\"Yes\",'TSA Input'!J1807=\"Contingent\"),'TSA Input'!B1807,\"Ineligible\"))","v":""},{"$f":"IF('TSA Input'!J1807=\"\",\"\",IF(OR('TSA Input'!J1807=\"Yes\",'TSA Input'!J1807=\"Contingent\"),'TSA Input'!I1807,\"\"))","v":""},{"$f":"IF('TSA Input'!J1807=\"\",\"\",IF(OR('TSA Input'!J1807=\"Yes\",'TSA Input'!J1807=\"Contingent\"),'TSA Input'!C1807,\"\"))","v":""},{"$f":"IF('TSA Input'!J1807=\"\",\"\",IF(OR('TSA Input'!J1807=\"Yes\",'TSA Input'!J1807=\"Contingent\"),'TSA Input'!D1807,\"\"))","v":""},{"$f":"IF('TSA Input'!J1807=\"\",\"\",IF(OR('TSA Input'!J1807=\"Yes\",'TSA Input'!J1807=\"Contingent\"),'TSA Input'!G1807,\"\"))","v":""},{"$f":"IF('TSA Input'!J1807=\"\",\"\",IF(OR('TSA Input'!J1807=\"Yes\",'TSA Input'!J1807=\"Contingent\"),'TSA Input'!F1807,\"\"))","v":""},"",{"$f":"IF('TSA Input'!J1807=\"\",\"\",IF(OR('TSA Input'!J1807=\"Yes\",'TSA Input'!J1807=\"Contingent\"),'TSA Input'!D1807,\"\"))","v":""},{"$f":"IF('TSA Input'!J1807=\"\",\"\",IF(OR('TSA Input'!J1807=\"Yes\",'TSA Input'!J1807=\"Contingent\"),'TSA Input'!G1807,\"\"))","v":""},{"$f":"IF('TSA Input'!J1807=\"\",\"\",IF(OR('TSA Input'!J1807=\"Yes\",'TSA Input'!J1807=\"Contingent\"),'TSA Input'!F1807,\"\"))","v":""},"","Required","Required"]
["",null,{"$f":"IF('TSA Input'!J1808=\"\",\"\",IF(OR('TSA Input'!J1808=\"Yes\",'TSA Input'!J1808=\"Contingent\"),'TSA Input'!B1808,\"Ineligible\"))","v":""},{"$f":"IF('TSA Input'!J1808=\"\",\"\",IF(OR('TSA Input'!J1808=\"Yes\",'TSA Input'!J1808=\"Contingent\"),'TSA Input'!I1808,\"\"))","v":""},{"$f":"IF('TSA Input'!J1808=\"\",\"\",IF(OR('TSA Input'!J1808=\"Yes\",'TSA Input'!J1808=\"Contingent\"),'TSA Input'!C1808,\"\"))","v":""},{"$f":"IF('TSA Input'!J1808=\"\",\"\",IF(OR('TSA Input'!J1808=\"Yes\",'TSA Input'!J1808=\"Contingent\"),'TSA Input'!D1808,\"\"))","v":""},{"$f":"IF('TSA Input'!J1808=\"\",\"\",IF(OR('TSA Input'!J1808=\"Yes\",'TSA Input'!J1808=\"Contingent\"),'TSA Input'!G1808,\"\"))","v":""},{"$f":"IF('TSA Input'!J1808=\"\",\"\",IF(OR('TSA Input'!J1808=\"Yes\",'TSA Input'!J1808=\"Contingent\"),'TSA Input'!F1808,\"\"))","v":""},"",{"$f":"IF('TSA Input'!J1808=\"\",\"\",IF(OR('TSA Input'!J1808=\"Yes\",'TSA Input'!J1808=\"Contingent\"),'TSA Input'!D1808,\"\"))","v":""},{"$f":"IF('TSA Input'!J1808=\"\",\"\",IF(OR('TSA Input'!J1808=\"Yes\",'TSA Input'!J1808=\"Contingent\"),'TSA Input'!G1808,\"\"))","v":""},{"$f":"IF('TSA Input'!J1808=\"\",\"\",IF(OR('TSA Input'!J1808=\"Yes\",'TSA Input'!J1808=\"Contingent\"),'TSA Input'!F1808,\"\"))","v":""},"","Required","Required"]
["",null,{"$f":"IF('TSA Input'!J1809=\"\",\"\",IF(OR('TSA Input'!J1809=\"Yes\",'TSA Input'!J1809=\"Contingent\"),'TSA Input'!B1809,\"Ineligible\"))","v":""},{"$f":"IF('TSA Input'!J1809=\"\",\"\",IF(OR('TSA Input'!J1809=\"Yes\",'TSA Input'!J1809=\"Contingent\"),'TSA Input'!I1809,\"\"))","v":""},{"$f":"IF('TSA Input'!J1809=\"\",\"\",IF(OR('TSA Input'!J1809=\"Yes\",'TSA Input'!J1809=\"Contingent\"),'TSA Input'!C1809,\"\"))","v":""},{"$f":"IF('TSA Input'!J1809=\"\",\"\",IF(OR('TSA Input'!J1809=\"Yes\",'TSA Input'!J1809=\"Contingent\"),'TSA Input'!D1809,\"\"))","v":""},{"$f":"IF('TSA Input'!J1809=\"\",\"\",IF(OR('TSA Input'!J1809=\"Yes\",'TSA Input'!J1809=\"Contingent\"),'TSA Input'!G1809,\"\"))","v":""},{"$f":"IF('TSA Input'!J1809=\"\",\"\",IF(OR('TSA Input'!J1809=\"Yes\",'TSA Input'!J1809=\"Contingent\"),'TSA Input'!F1809,\"\"))","v":""},"",{"$f":"IF('TSA Input'!J1809=\"\",\"\",IF(OR('TSA Input'!J1809=\"Yes\",'TSA Input'!J1809=\"Contingent\"),'TSA Input'!D1809,\"\"))","v":""},{"$f":"IF('TSA Input'!J1809=\"\",\"\",IF(OR('TSA Input'!J1809=\"Yes\",'TSA Input'!J1809=\"Contingent\"),'TSA Input'!G1809,\"\"))","v":""},{"$f":"IF('TSA Input'!J1809=\"\",\"\",IF(OR('TSA Input'!J1809=\"Yes\",'TSA Input'!J1809=\"Contingent\"),'TSA Input'!F1809,\"\"))","v":""},"","Required","Required"]
["",null,{"$f":"IF('TSA Input'!J1810=\"\",\"\",IF(OR('TSA Input'!J1810=\"Yes\",'TSA Input'!J1810=\"Contingent\"),'TSA Input'!B1810,\"Ineligible\"))","v":""},{"$f":"IF('TSA Input'!J1810=\"\",\"\",IF(OR('TSA Input'!J1810=\"Yes\",'TSA Input'!J1810=\"Contingent\"),'TSA Input'!I1810,\"\"))","v":""},{"$f":"IF('TSA Input'!J1810=\"\",\"\",IF(OR('TSA Input'!J1810=\"Yes\",'TSA Input'!J1810=\"Contingent\"),'TSA Input'!C1810,\"\"))","v":""},{"$f":"IF('TSA Input'!J1810=\"\",\"\",IF(OR('TSA Input'!J1810=\"Yes\",'TSA Input'!J1810=\"Contingent\"),'TSA Input'!D1810,\"\"))","v":""},{"$f":"IF('TSA Input'!J1810=\"\",\"\",IF(OR('TSA Input'!J1810=\"Yes\",'TSA Input'!J1810=\"Contingent\"),'TSA Input'!G1810,\"\"))","v":""},{"$f":"IF('TSA Input'!J1810=\"\",\"\",IF(OR('TSA Input'!J1810=\"Yes\",'TSA Input'!J1810=\"Contingent\"),'TSA Input'!F1810,\"\"))","v":""},"",{"$f":"IF('TSA Input'!J1810=\"\",\"\",IF(OR('TSA Input'!J1810=\"Yes\",'TSA Input'!J1810=\"Contingent\"),'TSA Input'!D1810,\"\"))","v":""},{"$f":"IF('TSA Input'!J1810=\"\",\"\",IF(OR('TSA Input'!J1810=\"Yes\",'TSA Input'!J1810=\"Contingent\"),'TSA Input'!G1810,\"\"))","v":""},{"$f":"IF('TSA Input'!J1810=\"\",\"\",IF(OR('TSA Input'!J1810=\"Yes\",'TSA Input'!J1810=\"Contingent\"),'TSA Input'!F1810,\"\"))","v":""},"","Required","Required"]
["",null,{"$f":"IF('TSA Input'!J1811=\"\",\"\",IF(OR('TSA Input'!J1811=\"Yes\",'TSA Input'!J1811=\"Contingent\"),'TSA Input'!B1811,\"Ineligible\"))","v":""},{"$f":"IF('TSA Input'!J1811=\"\",\"\",IF(OR('TSA Input'!J1811=\"Yes\",'TSA Input'!J1811=\"Contingent\"),'TSA Input'!I1811,\"\"))","v":""},{"$f":"IF('TSA Input'!J1811=\"\",\"\",IF(OR('TSA Input'!J1811=\"Yes\",'TSA Input'!J1811=\"Contingent\"),'TSA Input'!C1811,\"\"))","v":""},{"$f":"IF('TSA Input'!J1811=\"\",\"\",IF(OR('TSA Input'!J1811=\"Yes\",'TSA Input'!J1811=\"Contingent\"),'TSA Input'!D1811,\"\"))","v":""},{"$f":"IF('TSA Input'!J1811=\"\",\"\",IF(OR('TSA Input'!J1811=\"Yes\",'TSA Input'!J1811=\"Contingent\"),'TSA Input'!G1811,\"\"))","v":""},{"$f":"IF('TSA Input'!J1811=\"\",\"\",IF(OR('TSA Input'!J1811=\"Yes\",'TSA Input'!J1811=\"Contingent\"),'TSA Input'!F1811,\"\"))","v":""},"",{"$f":"IF('TSA Input'!J1811=\"\",\"\",IF(OR('TSA Input'!J1811=\"Yes\",'TSA Input'!J1811=\"Contingent\"),'TSA Input'!D1811,\"\"))","v":""},{"$f":"IF('TSA Input'!J1811=\"\",\"\",IF(OR('TSA Input'!J1811=\"Yes\",'TSA Input'!J1811=\"Contingent\"),'TSA Input'!G1811,\"\"))","v":""},{"$f":"IF('TSA Input'!J1811=\"\",\"\",IF(OR('TSA Input'!J1811=\"Yes\",'TSA Input'!J1811=\"Contingent\"),'TSA Input'!F1811,\"\"))","v":""},"","Required","Required"]
["",null,{"$f":"IF('TSA Input'!J1812=\"\",\"\",IF(OR('TSA Input'!J1812=\"Yes\",'TSA Input'!J1812=\"Contingent\"),'TSA Input'!B1812,\"Ineligible\"))","v":""},{"$f":"IF('TSA Input'!J1812=\"\",\"\",IF(OR('TSA Input'!J1812=\"Yes\",'TSA Input'!J1812=\"Contingent\"),'TSA Input'!I1812,\"\"))","v":""},{"$f":"IF('TSA Input'!J1812=\"\",\"\",IF(OR('TSA Input'!J1812=\"Yes\",'TSA Input'!J1812=\"Contingent\"),'TSA Input'!C1812,\"\"))","v":""},{"$f":"IF('TSA Input'!J1812=\"\",\"\",IF(OR('TSA Input'!J1812=\"Yes\",'TSA Input'!J1812=\"Contingent\"),'TSA Input'!D1812,\"\"))","v":""},{"$f":"IF('TSA Input'!J1812=\"\",\"\",IF(OR('TSA Input'!J1812=\"Yes\",'TSA Input'!J1812=\"Contingent\"),'TSA Input'!G1812,\"\"))","v":""},{"$f":"IF('TSA Input'!J1812=\"\",\"\",IF(OR('TSA Input'!J1812=\"Yes\",'TSA Input'!J1812=\"Contingent\"),'TSA Input'!F1812,\"\"))","v":""},"",{"$f":"IF('TSA Input'!J1812=\"\",\"\",IF(OR('TSA Input'!J1812=\"Yes\",'TSA Input'!J1812=\"Contingent\"),'TSA Input'!D1812,\"\"))","v":""},{"$f":"IF('TSA Input'!J1812=\"\",\"\",IF(OR('TSA Input'!J1812=\"Yes\",'TSA Input'!J1812=\"Contingent\"),'TSA Input'!G1812,\"\"))","v":""},{"$f":"IF('TSA Input'!J1812=\"\",\"\",IF(OR('TSA Input'!J1812=\"Yes\",'TSA Input'!J1812=\"Contingent\"),'TSA Input'!F1812,\"\"))","v":""},"","Required","Required"]
["",null,{"$f":"IF('TSA Input'!J1813=\"\",\"\",IF(OR('TSA Input'!J1813=\"Yes\",'TSA Input'!J1813=\"Contingent\"),'TSA Input'!B1813,\"Ineligible\"))","v":""},{"$f":"IF('TSA Input'!J1813=\"\",\"\",IF(OR('TSA Input'!J1813=\"Yes\",'TSA Input'!J1813=\"Contingent\"),'TSA Input'!I1813,\"\"))","v":""},{"$f":"IF('TSA Input'!J1813=\"\",\"\",IF(OR('TSA Input'!J1813=\"Yes\",'TSA Input'!J1813=\"Contingent\"),'TSA Input'!C1813,\"\"))","v":""},{"$f":"IF('TSA Input'!J1813=\"\",\"\",IF(OR('TSA Input'!J1813=\"Yes\",'TSA Input'!J1813=\"Contingent\"),'TSA Input'!D1813,\"\"))","v":""},{"$f":"IF('TSA Input'!J1813=\"\",\"\",IF(OR('TSA Input'!J1813=\"Yes\",'TSA Input'!J1813=\"Contingent\"),'TSA Input'!G1813,\"\"))","v":""},{"$f":"IF('TSA Input'!J1813=\"\",\"\",IF(OR('TSA Input'!J1813=\"Yes\",'TSA Input'!J1813=\"Contingent\"),'TSA Input'!F1813,\"\"))","v":""},"",{"$f":"IF('TSA Input'!J1813=\"\",\"\",IF(OR('TSA Input'!J1813=\"Yes\",'TSA Input'!J1813=\"Contingent\"),'TSA Input'!D1813,\"\"))","v":""},{"$f":"IF('TSA Input'!J1813=\"\",\"\",IF(OR('TSA Input'!J1813=\"Yes\",'TSA Input'!J1813=\"Contingent\"),'TSA Input'!G1813,\"\"))","v":""},{"$f":"IF('TSA Input'!J1813=\"\",\"\",IF(OR('TSA Input'!J1813=\"Yes\",'TSA Input'!J1813=\"Contingent\"),'TSA Input'!F1813,\"\"))","v":""},"","Required","Required"]
["",null,{"$f":"IF('TSA Input'!J1814=\"\",\"\",IF(OR('TSA Input'!J1814=\"Yes\",'TSA Input'!J1814=\"Contingent\"),'TSA Input'!B1814,\"Ineligible\"))","v":""},{"$f":"IF('TSA Input'!J1814=\"\",\"\",IF(OR('TSA Input'!J1814=\"Yes\",'TSA Input'!J1814=\"Contingent\"),'TSA Input'!I1814,\"\"))","v":""},{"$f":"IF('TSA Input'!J1814=\"\",\"\",IF(OR('TSA Input'!J1814=\"Yes\",'TSA Input'!J1814=\"Contingent\"),'TSA Input'!C1814,\"\"))","v":""},{"$f":"IF('TSA Input'!J1814=\"\",\"\",IF(OR('TSA Input'!J1814=\"Yes\",'TSA Input'!J1814=\"Contingent\"),'TSA Input'!D1814,\"\"))","v":""},{"$f":"IF('TSA Input'!J1814=\"\",\"\",IF(OR('TSA Input'!J1814=\"Yes\",'TSA Input'!J1814=\"Contingent\"),'TSA Input'!G1814,\"\"))","v":""},{"$f":"IF('TSA Input'!J1814=\"\",\"\",IF(OR('TSA Input'!J1814=\"Yes\",'TSA Input'!J1814=\"Contingent\"),'TSA Input'!F1814,\"\"))","v":""},"",{"$f":"IF('TSA Input'!J1814=\"\",\"\",IF(OR('TSA Input'!J1814=\"Yes\",'TSA Input'!J1814=\"Contingent\"),'TSA Input'!D1814,\"\"))","v":""},{"$f":"IF('TSA Input'!J1814=\"\",\"\",IF(OR('TSA Input'!J1814=\"Yes\",'TSA Input'!J1814=\"Contingent\"),'TSA Input'!G1814,\"\"))","v":""},{"$f":"IF('TSA Input'!J1814=\"\",\"\",IF(OR('TSA Input'!J1814=\"Yes\",'TSA Input'!J1814=\"Contingent\"),'TSA Input'!F1814,\"\"))","v":""},"","Required","Required"]
["",null,{"$f":"IF('TSA Input'!J1815=\"\",\"\",IF(OR('TSA Input'!J1815=\"Yes\",'TSA Input'!J1815=\"Contingent\"),'TSA Input'!B1815,\"Ineligible\"))","v":""},{"$f":"IF('TSA Input'!J1815=\"\",\"\",IF(OR('TSA Input'!J1815=\"Yes\",'TSA Input'!J1815=\"Contingent\"),'TSA Input'!I1815,\"\"))","v":""},{"$f":"IF('TSA Input'!J1815=\"\",\"\",IF(OR('TSA Input'!J1815=\"Yes\",'TSA Input'!J1815=\"Contingent\"),'TSA Input'!C1815,\"\"))","v":""},{"$f":"IF('TSA Input'!J1815=\"\",\"\",IF(OR('TSA Input'!J1815=\"Yes\",'TSA Input'!J1815=\"Contingent\"),'TSA Input'!D1815,\"\"))","v":""},{"$f":"IF('TSA Input'!J1815=\"\",\"\",IF(OR('TSA Input'!J1815=\"Yes\",'TSA Input'!J1815=\"Contingent\"),'TSA Input'!G1815,\"\"))","v":""},{"$f":"IF('TSA Input'!J1815=\"\",\"\",IF(OR('TSA Input'!J1815=\"Yes\",'TSA Input'!J1815=\"Contingent\"),'TSA Input'!F1815,\"\"))","v":""},"",{"$f":"IF('TSA Input'!J1815=\"\",\"\",IF(OR('TSA Input'!J1815=\"Yes\",'TSA Input'!J1815=\"Contingent\"),'TSA Input'!D1815,\"\"))","v":""},{"$f":"IF('TSA Input'!J1815=\"\",\"\",IF(OR('TSA Input'!J1815=\"Yes\",'TSA Input'!J1815=\"Contingent\"),'TSA Input'!G1815,\"\"))","v":""},{"$f":"IF('TSA Input'!J1815=\"\",\"\",IF(OR('TSA Input'!J1815=\"Yes\",'TSA Input'!J1815=\"Contingent\"),'TSA Input'!F1815,\"\"))","v":""},"","Required","Required"]
["",null,{"$f":"IF('TSA Input'!J1816=\"\",\"\",IF(OR('TSA Input'!J1816=\"Yes\",'TSA Input'!J1816=\"Contingent\"),'TSA Input'!B1816,\"Ineligible\"))","v":""},{"$f":"IF('TSA Input'!J1816=\"\",\"\",IF(OR('TSA Input'!J1816=\"Yes\",'TSA Input'!J1816=\"Contingent\"),'TSA Input'!I1816,\"\"))","v":""},{"$f":"IF('TSA Input'!J1816=\"\",\"\",IF(OR('TSA Input'!J1816=\"Yes\",'TSA Input'!J1816=\"Contingent\"),'TSA Input'!C1816,\"\"))","v":""},{"$f":"IF('TSA Input'!J1816=\"\",\"\",IF(OR('TSA Input'!J1816=\"Yes\",'TSA Input'!J1816=\"Contingent\"),'TSA Input'!D1816,\"\"))","v":""},{"$f":"IF('TSA Input'!J1816=\"\",\"\",IF(OR('TSA Input'!J1816=\"Yes\",'TSA Input'!J1816=\"Contingent\"),'TSA Input'!G1816,\"\"))","v":""},{"$f":"IF('TSA Input'!J1816=\"\",\"\",IF(OR('TSA Input'!J1816=\"Yes\",'TSA Input'!J1816=\"Contingent\"),'TSA Input'!F1816,\"\"))","v":""},"",{"$f":"IF('TSA Input'!J1816=\"\",\"\",IF(OR('TSA Input'!J1816=\"Yes\",'TSA Input'!J1816=\"Contingent\"),'TSA Input'!D1816,\"\"))","v":""},{"$f":"IF('TSA Input'!J1816=\"\",\"\",IF(OR('TSA Input'!J1816=\"Yes\",'TSA Input'!J1816=\"Contingent\"),'TSA Input'!G1816,\"\"))","v":""},{"$f":"IF('TSA Input'!J1816=\"\",\"\",IF(OR('TSA Input'!J1816=\"Yes\",'TSA Input'!J1816=\"Contingent\"),'TSA Input'!F1816,\"\"))","v":""},"","Required","Required"]
["",null,{"$f":"IF('TSA Input'!J1817=\"\",\"\",IF(OR('TSA Input'!J1817=\"Yes\",'TSA Input'!J1817=\"Contingent\"),'TSA Input'!B1817,\"Ineligible\"))","v":""},{"$f":"IF('TSA Input'!J1817=\"\",\"\",IF(OR('TSA Input'!J1817=\"Yes\",'TSA Input'!J1817=\"Contingent\"),'TSA Input'!I1817,\"\"))","v":""},{"$f":"IF('TSA Input'!J1817=\"\",\"\",IF(OR('TSA Input'!J1817=\"Yes\",'TSA Input'!J1817=\"Contingent\"),'TSA Input'!C1817,\"\"))","v":""},{"$f":"IF('TSA Input'!J1817=\"\",\"\",IF(OR('TSA Input'!J1817=\"Yes\",'TSA Input'!J1817=\"Contingent\"),'TSA Input'!D1817,\"\"))","v":""},{"$f":"IF('TSA Input'!J1817=\"\",\"\",IF(OR('TSA Input'!J1817=\"Yes\",'TSA Input'!J1817=\"Contingent\"),'TSA Input'!G1817,\"\"))","v":""},{"$f":"IF('TSA Input'!J1817=\"\",\"\",IF(OR('TSA Input'!J1817=\"Yes\",'TSA Input'!J1817=\"Contingent\"),'TSA Input'!F1817,\"\"))","v":""},"",{"$f":"IF('TSA Input'!J1817=\"\",\"\",IF(OR('TSA Input'!J1817=\"Yes\",'TSA Input'!J1817=\"Contingent\"),'TSA Input'!D1817,\"\"))","v":""},{"$f":"IF('TSA Input'!J1817=\"\",\"\",IF(OR('TSA Input'!J1817=\"Yes\",'TSA Input'!J1817=\"Contingent\"),'TSA Input'!G1817,\"\"))","v":""},{"$f":"IF('TSA Input'!J1817=\"\",\"\",IF(OR('TSA Input'!J1817=\"Yes\",'TSA Input'!J1817=\"Contingent\"),'TSA Input'!F1817,\"\"))","v":""},"","Required","Required"]
["",null,{"$f":"IF('TSA Input'!J1818=\"\",\"\",IF(OR('TSA Input'!J1818=\"Yes\",'TSA Input'!J1818=\"Contingent\"),'TSA Input'!B1818,\"Ineligible\"))","v":""},{"$f":"IF('TSA Input'!J1818=\"\",\"\",IF(OR('TSA Input'!J1818=\"Yes\",'TSA Input'!J1818=\"Contingent\"),'TSA Input'!I1818,\"\"))","v":""},{"$f":"IF('TSA Input'!J1818=\"\",\"\",IF(OR('TSA Input'!J1818=\"Yes\",'TSA Input'!J1818=\"Contingent\"),'TSA Input'!C1818,\"\"))","v":""},{"$f":"IF('TSA Input'!J1818=\"\",\"\",IF(OR('TSA Input'!J1818=\"Yes\",'TSA Input'!J1818=\"Contingent\"),'TSA Input'!D1818,\"\"))","v":""},{"$f":"IF('TSA Input'!J1818=\"\",\"\",IF(OR('TSA Input'!J1818=\"Yes\",'TSA Input'!J1818=\"Contingent\"),'TSA Input'!G1818,\"\"))","v":""},{"$f":"IF('TSA Input'!J1818=\"\",\"\",IF(OR('TSA Input'!J1818=\"Yes\",'TSA Input'!J1818=\"Contingent\"),'TSA Input'!F1818,\"\"))","v":""},"",{"$f":"IF('TSA Input'!J1818=\"\",\"\",IF(OR('TSA Input'!J1818=\"Yes\",'TSA Input'!J1818=\"Contingent\"),'TSA Input'!D1818,\"\"))","v":""},{"$f":"IF('TSA Input'!J1818=\"\",\"\",IF(OR('TSA Input'!J1818=\"Yes\",'TSA Input'!J1818=\"Contingent\"),'TSA Input'!G1818,\"\"))","v":""},{"$f":"IF('TSA Input'!J1818=\"\",\"\",IF(OR('TSA Input'!J1818=\"Yes\",'TSA Input'!J1818=\"Contingent\"),'TSA Input'!F1818,\"\"))","v":""},"","Required","Required"]
["",null,{"$f":"IF('TSA Input'!J1819=\"\",\"\",IF(OR('TSA Input'!J1819=\"Yes\",'TSA Input'!J1819=\"Contingent\"),'TSA Input'!B1819,\"Ineligible\"))","v":""},{"$f":"IF('TSA Input'!J1819=\"\",\"\",IF(OR('TSA Input'!J1819=\"Yes\",'TSA Input'!J1819=\"Contingent\"),'TSA Input'!I1819,\"\"))","v":""},{"$f":"IF('TSA Input'!J1819=\"\",\"\",IF(OR('TSA Input'!J1819=\"Yes\",'TSA Input'!J1819=\"Contingent\"),'TSA Input'!C1819,\"\"))","v":""},{"$f":"IF('TSA Input'!J1819=\"\",\"\",IF(OR('TSA Input'!J1819=\"Yes\",'TSA Input'!J1819=\"Contingent\"),'TSA Input'!D1819,\"\"))","v":""},{"$f":"IF('TSA Input'!J1819=\"\",\"\",IF(OR('TSA Input'!J1819=\"Yes\",'TSA Input'!J1819=\"Contingent\"),'TSA Input'!G1819,\"\"))","v":""},{"$f":"IF('TSA Input'!J1819=\"\",\"\",IF(OR('TSA Input'!J1819=\"Yes\",'TSA Input'!J1819=\"Contingent\"),'TSA Input'!F1819,\"\"))","v":""},"",{"$f":"IF('TSA Input'!J1819=\"\",\"\",IF(OR('TSA Input'!J1819=\"Yes\",'TSA Input'!J1819=\"Contingent\"),'TSA Input'!D1819,\"\"))","v":""},{"$f":"IF('TSA Input'!J1819=\"\",\"\",IF(OR('TSA Input'!J1819=\"Yes\",'TSA Input'!J1819=\"Contingent\"),'TSA Input'!G1819,\"\"))","v":""},{"$f":"IF('TSA Input'!J1819=\"\",\"\",IF(OR('TSA Input'!J1819=\"Yes\",'TSA Input'!J1819=\"Contingent\"),'TSA Input'!F1819,\"\"))","v":""},"","Required","Required"]
["",null,{"$f":"IF('TSA Input'!J1820=\"\",\"\",IF(OR('TSA Input'!J1820=\"Yes\",'TSA Input'!J1820=\"Contingent\"),'TSA Input'!B1820,\"Ineligible\"))","v":""},{"$f":"IF('TSA Input'!J1820=\"\",\"\",IF(OR('TSA Input'!J1820=\"Yes\",'TSA Input'!J1820=\"Contingent\"),'TSA Input'!I1820,\"\"))","v":""},{"$f":"IF('TSA Input'!J1820=\"\",\"\",IF(OR('TSA Input'!J1820=\"Yes\",'TSA Input'!J1820=\"Contingent\"),'TSA Input'!C1820,\"\"))","v":""},{"$f":"IF('TSA Input'!J1820=\"\",\"\",IF(OR('TSA Input'!J1820=\"Yes\",'TSA Input'!J1820=\"Contingent\"),'TSA Input'!D1820,\"\"))","v":""},{"$f":"IF('TSA Input'!J1820=\"\",\"\",IF(OR('TSA Input'!J1820=\"Yes\",'TSA Input'!J1820=\"Contingent\"),'TSA Input'!G1820,\"\"))","v":""},{"$f":"IF('TSA Input'!J1820=\"\",\"\",IF(OR('TSA Input'!J1820=\"Yes\",'TSA Input'!J1820=\"Contingent\"),'TSA Input'!F1820,\"\"))","v":""},"",{"$f":"IF('TSA Input'!J1820=\"\",\"\",IF(OR('TSA Input'!J1820=\"Yes\",'TSA Input'!J1820=\"Contingent\"),'TSA Input'!D1820,\"\"))","v":""},{"$f":"IF('TSA Input'!J1820=\"\",\"\",IF(OR('TSA Input'!J1820=\"Yes\",'TSA Input'!J1820=\"Contingent\"),'TSA Input'!G1820,\"\"))","v":""},{"$f":"IF('TSA Input'!J1820=\"\",\"\",IF(OR('TSA Input'!J1820=\"Yes\",'TSA Input'!J1820=\"Contingent\"),'TSA Input'!F1820,\"\"))","v":""},"","Required","Required"]
["",null,{"$f":"IF('TSA Input'!J1821=\"\",\"\",IF(OR('TSA Input'!J1821=\"Yes\",'TSA Input'!J1821=\"Contingent\"),'TSA Input'!B1821,\"Ineligible\"))","v":""},{"$f":"IF('TSA Input'!J1821=\"\",\"\",IF(OR('TSA Input'!J1821=\"Yes\",'TSA Input'!J1821=\"Contingent\"),'TSA Input'!I1821,\"\"))","v":""},{"$f":"IF('TSA Input'!J1821=\"\",\"\",IF(OR('TSA Input'!J1821=\"Yes\",'TSA Input'!J1821=\"Contingent\"),'TSA Input'!C1821,\"\"))","v":""},{"$f":"IF('TSA Input'!J1821=\"\",\"\",IF(OR('TSA Input'!J1821=\"Yes\",'TSA Input'!J1821=\"Contingent\"),'TSA Input'!D1821,\"\"))","v":""},{"$f":"IF('TSA Input'!J1821=\"\",\"\",IF(OR('TSA Input'!J1821=\"Yes\",'TSA Input'!J1821=\"Contingent\"),'TSA Input'!G1821,\"\"))","v":""},{"$f":"IF('TSA Input'!J1821=\"\",\"\",IF(OR('TSA Input'!J1821=\"Yes\",'TSA Input'!J1821=\"Contingent\"),'TSA Input'!F1821,\"\"))","v":""},"",{"$f":"IF('TSA Input'!J1821=\"\",\"\",IF(OR('TSA Input'!J1821=\"Yes\",'TSA Input'!J1821=\"Contingent\"),'TSA Input'!D1821,\"\"))","v":""},{"$f":"IF('TSA Input'!J1821=\"\",\"\",IF(OR('TSA Input'!J1821=\"Yes\",'TSA Input'!J1821=\"Contingent\"),'TSA Input'!G1821,\"\"))","v":""},{"$f":"IF('TSA Input'!J1821=\"\",\"\",IF(OR('TSA Input'!J1821=\"Yes\",'TSA Input'!J1821=\"Contingent\"),'TSA Input'!F1821,\"\"))","v":""},"","Required","Required"]
["",null,{"$f":"IF('TSA Input'!J1822=\"\",\"\",IF(OR('TSA Input'!J1822=\"Yes\",'TSA Input'!J1822=\"Contingent\"),'TSA Input'!B1822,\"Ineligible\"))","v":""},{"$f":"IF('TSA Input'!J1822=\"\",\"\",IF(OR('TSA Input'!J1822=\"Yes\",'TSA Input'!J1822=\"Contingent\"),'TSA Input'!I1822,\"\"))","v":""},{"$f":"IF('TSA Input'!J1822=\"\",\"\",IF(OR('TSA Input'!J1822=\"Yes\",'TSA Input'!J1822=\"Contingent\"),'TSA Input'!C1822,\"\"))","v":""},{"$f":"IF('TSA Input'!J1822=\"\",\"\",IF(OR('TSA Input'!J1822=\"Yes\",'TSA Input'!J1822=\"Contingent\"),'TSA Input'!D1822,\"\"))","v":""},{"$f":"IF('TSA Input'!J1822=\"\",\"\",IF(OR('TSA Input'!J1822=\"Yes\",'TSA Input'!J1822=\"Contingent\"),'TSA Input'!G1822,\"\"))","v":""},{"$f":"IF('TSA Input'!J1822=\"\",\"\",IF(OR('TSA Input'!J1822=\"Yes\",'TSA Input'!J1822=\"Contingent\"),'TSA Input'!F1822,\"\"))","v":""},"",{"$f":"IF('TSA Input'!J1822=\"\",\"\",IF(OR('TSA Input'!J1822=\"Yes\",'TSA Input'!J1822=\"Contingent\"),'TSA Input'!D1822,\"\"))","v":""},{"$f":"IF('TSA Input'!J1822=\"\",\"\",IF(OR('TSA Input'!J1822=\"Yes\",'TSA Input'!J1822=\"Contingent\"),'TSA Input'!G1822,\"\"))","v":""},{"$f":"IF('TSA Input'!J1822=\"\",\"\",IF(OR('TSA Input'!J1822=\"Yes\",'TSA Input'!J1822=\"Contingent\"),'TSA Input'!F1822,\"\"))","v":""},"","Required","Required"]
["",null,{"$f":"IF('TSA Input'!J1823=\"\",\"\",IF(OR('TSA Input'!J1823=\"Yes\",'TSA Input'!J1823=\"Contingent\"),'TSA Input'!B1823,\"Ineligible\"))","v":""},{"$f":"IF('TSA Input'!J1823=\"\",\"\",IF(OR('TSA Input'!J1823=\"Yes\",'TSA Input'!J1823=\"Contingent\"),'TSA Input'!I1823,\"\"))","v":""},{"$f":"IF('TSA Input'!J1823=\"\",\"\",IF(OR('TSA Input'!J1823=\"Yes\",'TSA Input'!J1823=\"Contingent\"),'TSA Input'!C1823,\"\"))","v":""},{"$f":"IF('TSA Input'!J1823=\"\",\"\",IF(OR('TSA Input'!J1823=\"Yes\",'TSA Input'!J1823=\"Contingent\"),'TSA Input'!D1823,\"\"))","v":""},{"$f":"IF('TSA Input'!J1823=\"\",\"\",IF(OR('TSA Input'!J1823=\"Yes\",'TSA Input'!J1823=\"Contingent\"),'TSA Input'!G1823,\"\"))","v":""},{"$f":"IF('TSA Input'!J1823=\"\",\"\",IF(OR('TSA Input'!J1823=\"Yes\",'TSA Input'!J1823=\"Contingent\"),'TSA Input'!F1823,\"\"))","v":""},"",{"$f":"IF('TSA Input'!J1823=\"\",\"\",IF(OR('TSA Input'!J1823=\"Yes\",'TSA Input'!J1823=\"Contingent\"),'TSA Input'!D1823,\"\"))","v":""},{"$f":"IF('TSA Input'!J1823=\"\",\"\",IF(OR('TSA Input'!J1823=\"Yes\",'TSA Input'!J1823=\"Contingent\"),'TSA Input'!G1823,\"\"))","v":""},{"$f":"IF('TSA Input'!J1823=\"\",\"\",IF(OR('TSA Input'!J1823=\"Yes\",'TSA Input'!J1823=\"Contingent\"),'TSA Input'!F1823,\"\"))","v":""},"","Required","Required"]
["",null,{"$f":"IF('TSA Input'!J1824=\"\",\"\",IF(OR('TSA Input'!J1824=\"Yes\",'TSA Input'!J1824=\"Contingent\"),'TSA Input'!B1824,\"Ineligible\"))","v":""},{"$f":"IF('TSA Input'!J1824=\"\",\"\",IF(OR('TSA Input'!J1824=\"Yes\",'TSA Input'!J1824=\"Contingent\"),'TSA Input'!I1824,\"\"))","v":""},{"$f":"IF('TSA Input'!J1824=\"\",\"\",IF(OR('TSA Input'!J1824=\"Yes\",'TSA Input'!J1824=\"Contingent\"),'TSA Input'!C1824,\"\"))","v":""},{"$f":"IF('TSA Input'!J1824=\"\",\"\",IF(OR('TSA Input'!J1824=\"Yes\",'TSA Input'!J1824=\"Contingent\"),'TSA Input'!D1824,\"\"))","v":""},{"$f":"IF('TSA Input'!J1824=\"\",\"\",IF(OR('TSA Input'!J1824=\"Yes\",'TSA Input'!J1824=\"Contingent\"),'TSA Input'!G1824,\"\"))","v":""},{"$f":"IF('TSA Input'!J1824=\"\",\"\",IF(OR('TSA Input'!J1824=\"Yes\",'TSA Input'!J1824=\"Contingent\"),'TSA Input'!F1824,\"\"))","v":""},"",{"$f":"IF('TSA Input'!J1824=\"\",\"\",IF(OR('TSA Input'!J1824=\"Yes\",'TSA Input'!J1824=\"Contingent\"),'TSA Input'!D1824,\"\"))","v":""},{"$f":"IF('TSA Input'!J1824=\"\",\"\",IF(OR('TSA Input'!J1824=\"Yes\",'TSA Input'!J1824=\"Contingent\"),'TSA Input'!G1824,\"\"))","v":""},{"$f":"IF('TSA Input'!J1824=\"\",\"\",IF(OR('TSA Input'!J1824=\"Yes\",'TSA Input'!J1824=\"Contingent\"),'TSA Input'!F1824,\"\"))","v":""},"","Required","Required"]
["",null,{"$f":"IF('TSA Input'!J1825=\"\",\"\",IF(OR('TSA Input'!J1825=\"Yes\",'TSA Input'!J1825=\"Contingent\"),'TSA Input'!B1825,\"Ineligible\"))","v":""},{"$f":"IF('TSA Input'!J1825=\"\",\"\",IF(OR('TSA Input'!J1825=\"Yes\",'TSA Input'!J1825=\"Contingent\"),'TSA Input'!I1825,\"\"))","v":""},{"$f":"IF('TSA Input'!J1825=\"\",\"\",IF(OR('TSA Input'!J1825=\"Yes\",'TSA Input'!J1825=\"Contingent\"),'TSA Input'!C1825,\"\"))","v":""},{"$f":"IF('TSA Input'!J1825=\"\",\"\",IF(OR('TSA Input'!J1825=\"Yes\",'TSA Input'!J1825=\"Contingent\"),'TSA Input'!D1825,\"\"))","v":""},{"$f":"IF('TSA Input'!J1825=\"\",\"\",IF(OR('TSA Input'!J1825=\"Yes\",'TSA Input'!J1825=\"Contingent\"),'TSA Input'!G1825,\"\"))","v":""},{"$f":"IF('TSA Input'!J1825=\"\",\"\",IF(OR('TSA Input'!J1825=\"Yes\",'TSA Input'!J1825=\"Contingent\"),'TSA Input'!F1825,\"\"))","v":""},"",{"$f":"IF('TSA Input'!J1825=\"\",\"\",IF(OR('TSA Input'!J1825=\"Yes\",'TSA Input'!J1825=\"Contingent\"),'TSA Input'!D1825,\"\"))","v":""},{"$f":"IF('TSA Input'!J1825=\"\",\"\",IF(OR('TSA Input'!J1825=\"Yes\",'TSA Input'!J1825=\"Contingent\"),'TSA Input'!G1825,\"\"))","v":""},{"$f":"IF('TSA Input'!J1825=\"\",\"\",IF(OR('TSA Input'!J1825=\"Yes\",'TSA Input'!J1825=\"Contingent\"),'TSA Input'!F1825,\"\"))","v":""},"","Required","Required"]
["",null,{"$f":"IF('TSA Input'!J1826=\"\",\"\",IF(OR('TSA Input'!J1826=\"Yes\",'TSA Input'!J1826=\"Contingent\"),'TSA Input'!B1826,\"Ineligible\"))","v":""},{"$f":"IF('TSA Input'!J1826=\"\",\"\",IF(OR('TSA Input'!J1826=\"Yes\",'TSA Input'!J1826=\"Contingent\"),'TSA Input'!I1826,\"\"))","v":""},{"$f":"IF('TSA Input'!J1826=\"\",\"\",IF(OR('TSA Input'!J1826=\"Yes\",'TSA Input'!J1826=\"Contingent\"),'TSA Input'!C1826,\"\"))","v":""},{"$f":"IF('TSA Input'!J1826=\"\",\"\",IF(OR('TSA Input'!J1826=\"Yes\",'TSA Input'!J1826=\"Contingent\"),'TSA Input'!D1826,\"\"))","v":""},{"$f":"IF('TSA Input'!J1826=\"\",\"\",IF(OR('TSA Input'!J1826=\"Yes\",'TSA Input'!J1826=\"Contingent\"),'TSA Input'!G1826,\"\"))","v":""},{"$f":"IF('TSA Input'!J1826=\"\",\"\",IF(OR('TSA Input'!J1826=\"Yes\",'TSA Input'!J1826=\"Contingent\"),'TSA Input'!F1826,\"\"))","v":""},"",{"$f":"IF('TSA Input'!J1826=\"\",\"\",IF(OR('TSA Input'!J1826=\"Yes\",'TSA Input'!J1826=\"Contingent\"),'TSA Input'!D1826,\"\"))","v":""},{"$f":"IF('TSA Input'!J1826=\"\",\"\",IF(OR('TSA Input'!J1826=\"Yes\",'TSA Input'!J1826=\"Contingent\"),'TSA Input'!G1826,\"\"))","v":""},{"$f":"IF('TSA Input'!J1826=\"\",\"\",IF(OR('TSA Input'!J1826=\"Yes\",'TSA Input'!J1826=\"Contingent\"),'TSA Input'!F1826,\"\"))","v":""},"","Required","Required"]
["",null,{"$f":"IF('TSA Input'!J1827=\"\",\"\",IF(OR('TSA Input'!J1827=\"Yes\",'TSA Input'!J1827=\"Contingent\"),'TSA Input'!B1827,\"Ineligible\"))","v":""},{"$f":"IF('TSA Input'!J1827=\"\",\"\",IF(OR('TSA Input'!J1827=\"Yes\",'TSA Input'!J1827=\"Contingent\"),'TSA Input'!I1827,\"\"))","v":""},{"$f":"IF('TSA Input'!J1827=\"\",\"\",IF(OR('TSA Input'!J1827=\"Yes\",'TSA Input'!J1827=\"Contingent\"),'TSA Input'!C1827,\"\"))","v":""},{"$f":"IF('TSA Input'!J1827=\"\",\"\",IF(OR('TSA Input'!J1827=\"Yes\",'TSA Input'!J1827=\"Contingent\"),'TSA Input'!D1827,\"\"))","v":""},{"$f":"IF('TSA Input'!J1827=\"\",\"\",IF(OR('TSA Input'!J1827=\"Yes\",'TSA Input'!J1827=\"Contingent\"),'TSA Input'!G1827,\"\"))","v":""},{"$f":"IF('TSA Input'!J1827=\"\",\"\",IF(OR('TSA Input'!J1827=\"Yes\",'TSA Input'!J1827=\"Contingent\"),'TSA Input'!F1827,\"\"))","v":""},"",{"$f":"IF('TSA Input'!J1827=\"\",\"\",IF(OR('TSA Input'!J1827=\"Yes\",'TSA Input'!J1827=\"Contingent\"),'TSA Input'!D1827,\"\"))","v":""},{"$f":"IF('TSA Input'!J1827=\"\",\"\",IF(OR('TSA Input'!J1827=\"Yes\",'TSA Input'!J1827=\"Contingent\"),'TSA Input'!G1827,\"\"))","v":""},{"$f":"IF('TSA Input'!J1827=\"\",\"\",IF(OR('TSA Input'!J1827=\"Yes\",'TSA Input'!J1827=\"Contingent\"),'TSA Input'!F1827,\"\"))","v":""},"","Required","Required"]
["",null,{"$f":"IF('TSA Input'!J1828=\"\",\"\",IF(OR('TSA Input'!J1828=\"Yes\",'TSA Input'!J1828=\"Contingent\"),'TSA Input'!B1828,\"Ineligible\"))","v":""},{"$f":"IF('TSA Input'!J1828=\"\",\"\",IF(OR('TSA Input'!J1828=\"Yes\",'TSA Input'!J1828=\"Contingent\"),'TSA Input'!I1828,\"\"))","v":""},{"$f":"IF('TSA Input'!J1828=\"\",\"\",IF(OR('TSA Input'!J1828=\"Yes\",'TSA Input'!J1828=\"Contingent\"),'TSA Input'!C1828,\"\"))","v":""},{"$f":"IF('TSA Input'!J1828=\"\",\"\",IF(OR('TSA Input'!J1828=\"Yes\",'TSA Input'!J1828=\"Contingent\"),'TSA Input'!D1828,\"\"))","v":""},{"$f":"IF('TSA Input'!J1828=\"\",\"\",IF(OR('TSA Input'!J1828=\"Yes\",'TSA Input'!J1828=\"Contingent\"),'TSA Input'!G1828,\"\"))","v":""},{"$f":"IF('TSA Input'!J1828=\"\",\"\",IF(OR('TSA Input'!J1828=\"Yes\",'TSA Input'!J1828=\"Contingent\"),'TSA Input'!F1828,\"\"))","v":""},"",{"$f":"IF('TSA Input'!J1828=\"\",\"\",IF(OR('TSA Input'!J1828=\"Yes\",'TSA Input'!J1828=\"Contingent\"),'TSA Input'!D1828,\"\"))","v":""},{"$f":"IF('TSA Input'!J1828=\"\",\"\",IF(OR('TSA Input'!J1828=\"Yes\",'TSA Input'!J1828=\"Contingent\"),'TSA Input'!G1828,\"\"))","v":""},{"$f":"IF('TSA Input'!J1828=\"\",\"\",IF(OR('TSA Input'!J1828=\"Yes\",'TSA Input'!J1828=\"Contingent\"),'TSA Input'!F1828,\"\"))","v":""},"","Required","Required"]
["",null,{"$f":"IF('TSA Input'!J1829=\"\",\"\",IF(OR('TSA Input'!J1829=\"Yes\",'TSA Input'!J1829=\"Contingent\"),'TSA Input'!B1829,\"Ineligible\"))","v":""},{"$f":"IF('TSA Input'!J1829=\"\",\"\",IF(OR('TSA Input'!J1829=\"Yes\",'TSA Input'!J1829=\"Contingent\"),'TSA Input'!I1829,\"\"))","v":""},{"$f":"IF('TSA Input'!J1829=\"\",\"\",IF(OR('TSA Input'!J1829=\"Yes\",'TSA Input'!J1829=\"Contingent\"),'TSA Input'!C1829,\"\"))","v":""},{"$f":"IF('TSA Input'!J1829=\"\",\"\",IF(OR('TSA Input'!J1829=\"Yes\",'TSA Input'!J1829=\"Contingent\"),'TSA Input'!D1829,\"\"))","v":""},{"$f":"IF('TSA Input'!J1829=\"\",\"\",IF(OR('TSA Input'!J1829=\"Yes\",'TSA Input'!J1829=\"Contingent\"),'TSA Input'!G1829,\"\"))","v":""},{"$f":"IF('TSA Input'!J1829=\"\",\"\",IF(OR('TSA Input'!J1829=\"Yes\",'TSA Input'!J1829=\"Contingent\"),'TSA Input'!F1829,\"\"))","v":""},"",{"$f":"IF('TSA Input'!J1829=\"\",\"\",IF(OR('TSA Input'!J1829=\"Yes\",'TSA Input'!J1829=\"Contingent\"),'TSA Input'!D1829,\"\"))","v":""},{"$f":"IF('TSA Input'!J1829=\"\",\"\",IF(OR('TSA Input'!J1829=\"Yes\",'TSA Input'!J1829=\"Contingent\"),'TSA Input'!G1829,\"\"))","v":""},{"$f":"IF('TSA Input'!J1829=\"\",\"\",IF(OR('TSA Input'!J1829=\"Yes\",'TSA Input'!J1829=\"Contingent\"),'TSA Input'!F1829,\"\"))","v":""},"","Required","Required"]
["",null,{"$f":"IF('TSA Input'!J1830=\"\",\"\",IF(OR('TSA Input'!J1830=\"Yes\",'TSA Input'!J1830=\"Contingent\"),'TSA Input'!B1830,\"Ineligible\"))","v":""},{"$f":"IF('TSA Input'!J1830=\"\",\"\",IF(OR('TSA Input'!J1830=\"Yes\",'TSA Input'!J1830=\"Contingent\"),'TSA Input'!I1830,\"\"))","v":""},{"$f":"IF('TSA Input'!J1830=\"\",\"\",IF(OR('TSA Input'!J1830=\"Yes\",'TSA Input'!J1830=\"Contingent\"),'TSA Input'!C1830,\"\"))","v":""},{"$f":"IF('TSA Input'!J1830=\"\",\"\",IF(OR('TSA Input'!J1830=\"Yes\",'TSA Input'!J1830=\"Contingent\"),'TSA Input'!D1830,\"\"))","v":""},{"$f":"IF('TSA Input'!J1830=\"\",\"\",IF(OR('TSA Input'!J1830=\"Yes\",'TSA Input'!J1830=\"Contingent\"),'TSA Input'!G1830,\"\"))","v":""},{"$f":"IF('TSA Input'!J1830=\"\",\"\",IF(OR('TSA Input'!J1830=\"Yes\",'TSA Input'!J1830=\"Contingent\"),'TSA Input'!F1830,\"\"))","v":""},"",{"$f":"IF('TSA Input'!J1830=\"\",\"\",IF(OR('TSA Input'!J1830=\"Yes\",'TSA Input'!J1830=\"Contingent\"),'TSA Input'!D1830,\"\"))","v":""},{"$f":"IF('TSA Input'!J1830=\"\",\"\",IF(OR('TSA Input'!J1830=\"Yes\",'TSA Input'!J1830=\"Contingent\"),'TSA Input'!G1830,\"\"))","v":""},{"$f":"IF('TSA Input'!J1830=\"\",\"\",IF(OR('TSA Input'!J1830=\"Yes\",'TSA Input'!J1830=\"Contingent\"),'TSA Input'!F1830,\"\"))","v":""},"","Required","Required"]
["",null,{"$f":"IF('TSA Input'!J1831=\"\",\"\",IF(OR('TSA Input'!J1831=\"Yes\",'TSA Input'!J1831=\"Contingent\"),'TSA Input'!B1831,\"Ineligible\"))","v":""},{"$f":"IF('TSA Input'!J1831=\"\",\"\",IF(OR('TSA Input'!J1831=\"Yes\",'TSA Input'!J1831=\"Contingent\"),'TSA Input'!I1831,\"\"))","v":""},{"$f":"IF('TSA Input'!J1831=\"\",\"\",IF(OR('TSA Input'!J1831=\"Yes\",'TSA Input'!J1831=\"Contingent\"),'TSA Input'!C1831,\"\"))","v":""},{"$f":"IF('TSA Input'!J1831=\"\",\"\",IF(OR('TSA Input'!J1831=\"Yes\",'TSA Input'!J1831=\"Contingent\"),'TSA Input'!D1831,\"\"))","v":""},{"$f":"IF('TSA Input'!J1831=\"\",\"\",IF(OR('TSA Input'!J1831=\"Yes\",'TSA Input'!J1831=\"Contingent\"),'TSA Input'!G1831,\"\"))","v":""},{"$f":"IF('TSA Input'!J1831=\"\",\"\",IF(OR('TSA Input'!J1831=\"Yes\",'TSA Input'!J1831=\"Contingent\"),'TSA Input'!F1831,\"\"))","v":""},"",{"$f":"IF('TSA Input'!J1831=\"\",\"\",IF(OR('TSA Input'!J1831=\"Yes\",'TSA Input'!J1831=\"Contingent\"),'TSA Input'!D1831,\"\"))","v":""},{"$f":"IF('TSA Input'!J1831=\"\",\"\",IF(OR('TSA Input'!J1831=\"Yes\",'TSA Input'!J1831=\"Contingent\"),'TSA Input'!G1831,\"\"))","v":""},{"$f":"IF('TSA Input'!J1831=\"\",\"\",IF(OR('TSA Input'!J1831=\"Yes\",'TSA Input'!J1831=\"Contingent\"),'TSA Input'!F1831,\"\"))","v":""},"","Required","Required"]
["",null,{"$f":"IF('TSA Input'!J1832=\"\",\"\",IF(OR('TSA Input'!J1832=\"Yes\",'TSA Input'!J1832=\"Contingent\"),'TSA Input'!B1832,\"Ineligible\"))","v":""},{"$f":"IF('TSA Input'!J1832=\"\",\"\",IF(OR('TSA Input'!J1832=\"Yes\",'TSA Input'!J1832=\"Contingent\"),'TSA Input'!I1832,\"\"))","v":""},{"$f":"IF('TSA Input'!J1832=\"\",\"\",IF(OR('TSA Input'!J1832=\"Yes\",'TSA Input'!J1832=\"Contingent\"),'TSA Input'!C1832,\"\"))","v":""},{"$f":"IF('TSA Input'!J1832=\"\",\"\",IF(OR('TSA Input'!J1832=\"Yes\",'TSA Input'!J1832=\"Contingent\"),'TSA Input'!D1832,\"\"))","v":""},{"$f":"IF('TSA Input'!J1832=\"\",\"\",IF(OR('TSA Input'!J1832=\"Yes\",'TSA Input'!J1832=\"Contingent\"),'TSA Input'!G1832,\"\"))","v":""},{"$f":"IF('TSA Input'!J1832=\"\",\"\",IF(OR('TSA Input'!J1832=\"Yes\",'TSA Input'!J1832=\"Contingent\"),'TSA Input'!F1832,\"\"))","v":""},"",{"$f":"IF('TSA Input'!J1832=\"\",\"\",IF(OR('TSA Input'!J1832=\"Yes\",'TSA Input'!J1832=\"Contingent\"),'TSA Input'!D1832,\"\"))","v":""},{"$f":"IF('TSA Input'!J1832=\"\",\"\",IF(OR('TSA Input'!J1832=\"Yes\",'TSA Input'!J1832=\"Contingent\"),'TSA Input'!G1832,\"\"))","v":""},{"$f":"IF('TSA Input'!J1832=\"\",\"\",IF(OR('TSA Input'!J1832=\"Yes\",'TSA Input'!J1832=\"Contingent\"),'TSA Input'!F1832,\"\"))","v":""},"","Required","Required"]
["",null,{"$f":"IF('TSA Input'!J1833=\"\",\"\",IF(OR('TSA Input'!J1833=\"Yes\",'TSA Input'!J1833=\"Contingent\"),'TSA Input'!B1833,\"Ineligible\"))","v":""},{"$f":"IF('TSA Input'!J1833=\"\",\"\",IF(OR('TSA Input'!J1833=\"Yes\",'TSA Input'!J1833=\"Contingent\"),'TSA Input'!I1833,\"\"))","v":""},{"$f":"IF('TSA Input'!J1833=\"\",\"\",IF(OR('TSA Input'!J1833=\"Yes\",'TSA Input'!J1833=\"Contingent\"),'TSA Input'!C1833,\"\"))","v":""},{"$f":"IF('TSA Input'!J1833=\"\",\"\",IF(OR('TSA Input'!J1833=\"Yes\",'TSA Input'!J1833=\"Contingent\"),'TSA Input'!D1833,\"\"))","v":""},{"$f":"IF('TSA Input'!J1833=\"\",\"\",IF(OR('TSA Input'!J1833=\"Yes\",'TSA Input'!J1833=\"Contingent\"),'TSA Input'!G1833,\"\"))","v":""},{"$f":"IF('TSA Input'!J1833=\"\",\"\",IF(OR('TSA Input'!J1833=\"Yes\",'TSA Input'!J1833=\"Contingent\"),'TSA Input'!F1833,\"\"))","v":""},"",{"$f":"IF('TSA Input'!J1833=\"\",\"\",IF(OR('TSA Input'!J1833=\"Yes\",'TSA Input'!J1833=\"Contingent\"),'TSA Input'!D1833,\"\"))","v":""},{"$f":"IF('TSA Input'!J1833=\"\",\"\",IF(OR('TSA Input'!J1833=\"Yes\",'TSA Input'!J1833=\"Contingent\"),'TSA Input'!G1833,\"\"))","v":""},{"$f":"IF('TSA Input'!J1833=\"\",\"\",IF(OR('TSA Input'!J1833=\"Yes\",'TSA Input'!J1833=\"Contingent\"),'TSA Input'!F1833,\"\"))","v":""},"","Required","Required"]
["",null,{"$f":"IF('TSA Input'!J1834=\"\",\"\",IF(OR('TSA Input'!J1834=\"Yes\",'TSA Input'!J1834=\"Contingent\"),'TSA Input'!B1834,\"Ineligible\"))","v":""},{"$f":"IF('TSA Input'!J1834=\"\",\"\",IF(OR('TSA Input'!J1834=\"Yes\",'TSA Input'!J1834=\"Contingent\"),'TSA Input'!I1834,\"\"))","v":""},{"$f":"IF('TSA Input'!J1834=\"\",\"\",IF(OR('TSA Input'!J1834=\"Yes\",'TSA Input'!J1834=\"Contingent\"),'TSA Input'!C1834,\"\"))","v":""},{"$f":"IF('TSA Input'!J1834=\"\",\"\",IF(OR('TSA Input'!J1834=\"Yes\",'TSA Input'!J1834=\"Contingent\"),'TSA Input'!D1834,\"\"))","v":""},{"$f":"IF('TSA Input'!J1834=\"\",\"\",IF(OR('TSA Input'!J1834=\"Yes\",'TSA Input'!J1834=\"Contingent\"),'TSA Input'!G1834,\"\"))","v":""},{"$f":"IF('TSA Input'!J1834=\"\",\"\",IF(OR('TSA Input'!J1834=\"Yes\",'TSA Input'!J1834=\"Contingent\"),'TSA Input'!F1834,\"\"))","v":""},"",{"$f":"IF('TSA Input'!J1834=\"\",\"\",IF(OR('TSA Input'!J1834=\"Yes\",'TSA Input'!J1834=\"Contingent\"),'TSA Input'!D1834,\"\"))","v":""},{"$f":"IF('TSA Input'!J1834=\"\",\"\",IF(OR('TSA Input'!J1834=\"Yes\",'TSA Input'!J1834=\"Contingent\"),'TSA Input'!G1834,\"\"))","v":""},{"$f":"IF('TSA Input'!J1834=\"\",\"\",IF(OR('TSA Input'!J1834=\"Yes\",'TSA Input'!J1834=\"Contingent\"),'TSA Input'!F1834,\"\"))","v":""},"","Required","Required"]
["",null,{"$f":"IF('TSA Input'!J1835=\"\",\"\",IF(OR('TSA Input'!J1835=\"Yes\",'TSA Input'!J1835=\"Contingent\"),'TSA Input'!B1835,\"Ineligible\"))","v":""},{"$f":"IF('TSA Input'!J1835=\"\",\"\",IF(OR('TSA Input'!J1835=\"Yes\",'TSA Input'!J1835=\"Contingent\"),'TSA Input'!I1835,\"\"))","v":""},{"$f":"IF('TSA Input'!J1835=\"\",\"\",IF(OR('TSA Input'!J1835=\"Yes\",'TSA Input'!J1835=\"Contingent\"),'TSA Input'!C1835,\"\"))","v":""},{"$f":"IF('TSA Input'!J1835=\"\",\"\",IF(OR('TSA Input'!J1835=\"Yes\",'TSA Input'!J1835=\"Contingent\"),'TSA Input'!D1835,\"\"))","v":""},{"$f":"IF('TSA Input'!J1835=\"\",\"\",IF(OR('TSA Input'!J1835=\"Yes\",'TSA Input'!J1835=\"Contingent\"),'TSA Input'!G1835,\"\"))","v":""},{"$f":"IF('TSA Input'!J1835=\"\",\"\",IF(OR('TSA Input'!J1835=\"Yes\",'TSA Input'!J1835=\"Contingent\"),'TSA Input'!F1835,\"\"))","v":""},"",{"$f":"IF('TSA Input'!J1835=\"\",\"\",IF(OR('TSA Input'!J1835=\"Yes\",'TSA Input'!J1835=\"Contingent\"),'TSA Input'!D1835,\"\"))","v":""},{"$f":"IF('TSA Input'!J1835=\"\",\"\",IF(OR('TSA Input'!J1835=\"Yes\",'TSA Input'!J1835=\"Contingent\"),'TSA Input'!G1835,\"\"))","v":""},{"$f":"IF('TSA Input'!J1835=\"\",\"\",IF(OR('TSA Input'!J1835=\"Yes\",'TSA Input'!J1835=\"Contingent\"),'TSA Input'!F1835,\"\"))","v":""},"","Required","Required"]
["",null,{"$f":"IF('TSA Input'!J1836=\"\",\"\",IF(OR('TSA Input'!J1836=\"Yes\",'TSA Input'!J1836=\"Contingent\"),'TSA Input'!B1836,\"Ineligible\"))","v":""},{"$f":"IF('TSA Input'!J1836=\"\",\"\",IF(OR('TSA Input'!J1836=\"Yes\",'TSA Input'!J1836=\"Contingent\"),'TSA Input'!I1836,\"\"))","v":""},{"$f":"IF('TSA Input'!J1836=\"\",\"\",IF(OR('TSA Input'!J1836=\"Yes\",'TSA Input'!J1836=\"Contingent\"),'TSA Input'!C1836,\"\"))","v":""},{"$f":"IF('TSA Input'!J1836=\"\",\"\",IF(OR('TSA Input'!J1836=\"Yes\",'TSA Input'!J1836=\"Contingent\"),'TSA Input'!D1836,\"\"))","v":""},{"$f":"IF('TSA Input'!J1836=\"\",\"\",IF(OR('TSA Input'!J1836=\"Yes\",'TSA Input'!J1836=\"Contingent\"),'TSA Input'!G1836,\"\"))","v":""},{"$f":"IF('TSA Input'!J1836=\"\",\"\",IF(OR('TSA Input'!J1836=\"Yes\",'TSA Input'!J1836=\"Contingent\"),'TSA Input'!F1836,\"\"))","v":""},"",{"$f":"IF('TSA Input'!J1836=\"\",\"\",IF(OR('TSA Input'!J1836=\"Yes\",'TSA Input'!J1836=\"Contingent\"),'TSA Input'!D1836,\"\"))","v":""},{"$f":"IF('TSA Input'!J1836=\"\",\"\",IF(OR('TSA Input'!J1836=\"Yes\",'TSA Input'!J1836=\"Contingent\"),'TSA Input'!G1836,\"\"))","v":""},{"$f":"IF('TSA Input'!J1836=\"\",\"\",IF(OR('TSA Input'!J1836=\"Yes\",'TSA Input'!J1836=\"Contingent\"),'TSA Input'!F1836,\"\"))","v":""},"","Required","Required"]
["",null,{"$f":"IF('TSA Input'!J1837=\"\",\"\",IF(OR('TSA Input'!J1837=\"Yes\",'TSA Input'!J1837=\"Contingent\"),'TSA Input'!B1837,\"Ineligible\"))","v":""},{"$f":"IF('TSA Input'!J1837=\"\",\"\",IF(OR('TSA Input'!J1837=\"Yes\",'TSA Input'!J1837=\"Contingent\"),'TSA Input'!I1837,\"\"))","v":""},{"$f":"IF('TSA Input'!J1837=\"\",\"\",IF(OR('TSA Input'!J1837=\"Yes\",'TSA Input'!J1837=\"Contingent\"),'TSA Input'!C1837,\"\"))","v":""},{"$f":"IF('TSA Input'!J1837=\"\",\"\",IF(OR('TSA Input'!J1837=\"Yes\",'TSA Input'!J1837=\"Contingent\"),'TSA Input'!D1837,\"\"))","v":""},{"$f":"IF('TSA Input'!J1837=\"\",\"\",IF(OR('TSA Input'!J1837=\"Yes\",'TSA Input'!J1837=\"Contingent\"),'TSA Input'!G1837,\"\"))","v":""},{"$f":"IF('TSA Input'!J1837=\"\",\"\",IF(OR('TSA Input'!J1837=\"Yes\",'TSA Input'!J1837=\"Contingent\"),'TSA Input'!F1837,\"\"))","v":""},"",{"$f":"IF('TSA Input'!J1837=\"\",\"\",IF(OR('TSA Input'!J1837=\"Yes\",'TSA Input'!J1837=\"Contingent\"),'TSA Input'!D1837,\"\"))","v":""},{"$f":"IF('TSA Input'!J1837=\"\",\"\",IF(OR('TSA Input'!J1837=\"Yes\",'TSA Input'!J1837=\"Contingent\"),'TSA Input'!G1837,\"\"))","v":""},{"$f":"IF('TSA Input'!J1837=\"\",\"\",IF(OR('TSA Input'!J1837=\"Yes\",'TSA Input'!J1837=\"Contingent\"),'TSA Input'!F1837,\"\"))","v":""},"","Required","Required"]
["",null,{"$f":"IF('TSA Input'!J1838=\"\",\"\",IF(OR('TSA Input'!J1838=\"Yes\",'TSA Input'!J1838=\"Contingent\"),'TSA Input'!B1838,\"Ineligible\"))","v":""},{"$f":"IF('TSA Input'!J1838=\"\",\"\",IF(OR('TSA Input'!J1838=\"Yes\",'TSA Input'!J1838=\"Contingent\"),'TSA Input'!I1838,\"\"))","v":""},{"$f":"IF('TSA Input'!J1838=\"\",\"\",IF(OR('TSA Input'!J1838=\"Yes\",'TSA Input'!J1838=\"Contingent\"),'TSA Input'!C1838,\"\"))","v":""},{"$f":"IF('TSA Input'!J1838=\"\",\"\",IF(OR('TSA Input'!J1838=\"Yes\",'TSA Input'!J1838=\"Contingent\"),'TSA Input'!D1838,\"\"))","v":""},{"$f":"IF('TSA Input'!J1838=\"\",\"\",IF(OR('TSA Input'!J1838=\"Yes\",'TSA Input'!J1838=\"Contingent\"),'TSA Input'!G1838,\"\"))","v":""},{"$f":"IF('TSA Input'!J1838=\"\",\"\",IF(OR('TSA Input'!J1838=\"Yes\",'TSA Input'!J1838=\"Contingent\"),'TSA Input'!F1838,\"\"))","v":""},"",{"$f":"IF('TSA Input'!J1838=\"\",\"\",IF(OR('TSA Input'!J1838=\"Yes\",'TSA Input'!J1838=\"Contingent\"),'TSA Input'!D1838,\"\"))","v":""},{"$f":"IF('TSA Input'!J1838=\"\",\"\",IF(OR('TSA Input'!J1838=\"Yes\",'TSA Input'!J1838=\"Contingent\"),'TSA Input'!G1838,\"\"))","v":""},{"$f":"IF('TSA Input'!J1838=\"\",\"\",IF(OR('TSA Input'!J1838=\"Yes\",'TSA Input'!J1838=\"Contingent\"),'TSA Input'!F1838,\"\"))","v":""},"","Required","Required"]
["",null,{"$f":"IF('TSA Input'!J1839=\"\",\"\",IF(OR('TSA Input'!J1839=\"Yes\",'TSA Input'!J1839=\"Contingent\"),'TSA Input'!B1839,\"Ineligible\"))","v":""},{"$f":"IF('TSA Input'!J1839=\"\",\"\",IF(OR('TSA Input'!J1839=\"Yes\",'TSA Input'!J1839=\"Contingent\"),'TSA Input'!I1839,\"\"))","v":""},{"$f":"IF('TSA Input'!J1839=\"\",\"\",IF(OR('TSA Input'!J1839=\"Yes\",'TSA Input'!J1839=\"Contingent\"),'TSA Input'!C1839,\"\"))","v":""},{"$f":"IF('TSA Input'!J1839=\"\",\"\",IF(OR('TSA Input'!J1839=\"Yes\",'TSA Input'!J1839=\"Contingent\"),'TSA Input'!D1839,\"\"))","v":""},{"$f":"IF('TSA Input'!J1839=\"\",\"\",IF(OR('TSA Input'!J1839=\"Yes\",'TSA Input'!J1839=\"Contingent\"),'TSA Input'!G1839,\"\"))","v":""},{"$f":"IF('TSA Input'!J1839=\"\",\"\",IF(OR('TSA Input'!J1839=\"Yes\",'TSA Input'!J1839=\"Contingent\"),'TSA Input'!F1839,\"\"))","v":""},"",{"$f":"IF('TSA Input'!J1839=\"\",\"\",IF(OR('TSA Input'!J1839=\"Yes\",'TSA Input'!J1839=\"Contingent\"),'TSA Input'!D1839,\"\"))","v":""},{"$f":"IF('TSA Input'!J1839=\"\",\"\",IF(OR('TSA Input'!J1839=\"Yes\",'TSA Input'!J1839=\"Contingent\"),'TSA Input'!G1839,\"\"))","v":""},{"$f":"IF('TSA Input'!J1839=\"\",\"\",IF(OR('TSA Input'!J1839=\"Yes\",'TSA Input'!J1839=\"Contingent\"),'TSA Input'!F1839,\"\"))","v":""},"","Required","Required"]
["",null,{"$f":"IF('TSA Input'!J1840=\"\",\"\",IF(OR('TSA Input'!J1840=\"Yes\",'TSA Input'!J1840=\"Contingent\"),'TSA Input'!B1840,\"Ineligible\"))","v":""},{"$f":"IF('TSA Input'!J1840=\"\",\"\",IF(OR('TSA Input'!J1840=\"Yes\",'TSA Input'!J1840=\"Contingent\"),'TSA Input'!I1840,\"\"))","v":""},{"$f":"IF('TSA Input'!J1840=\"\",\"\",IF(OR('TSA Input'!J1840=\"Yes\",'TSA Input'!J1840=\"Contingent\"),'TSA Input'!C1840,\"\"))","v":""},{"$f":"IF('TSA Input'!J1840=\"\",\"\",IF(OR('TSA Input'!J1840=\"Yes\",'TSA Input'!J1840=\"Contingent\"),'TSA Input'!D1840,\"\"))","v":""},{"$f":"IF('TSA Input'!J1840=\"\",\"\",IF(OR('TSA Input'!J1840=\"Yes\",'TSA Input'!J1840=\"Contingent\"),'TSA Input'!G1840,\"\"))","v":""},{"$f":"IF('TSA Input'!J1840=\"\",\"\",IF(OR('TSA Input'!J1840=\"Yes\",'TSA Input'!J1840=\"Contingent\"),'TSA Input'!F1840,\"\"))","v":""},"",{"$f":"IF('TSA Input'!J1840=\"\",\"\",IF(OR('TSA Input'!J1840=\"Yes\",'TSA Input'!J1840=\"Contingent\"),'TSA Input'!D1840,\"\"))","v":""},{"$f":"IF('TSA Input'!J1840=\"\",\"\",IF(OR('TSA Input'!J1840=\"Yes\",'TSA Input'!J1840=\"Contingent\"),'TSA Input'!G1840,\"\"))","v":""},{"$f":"IF('TSA Input'!J1840=\"\",\"\",IF(OR('TSA Input'!J1840=\"Yes\",'TSA Input'!J1840=\"Contingent\"),'TSA Input'!F1840,\"\"))","v":""},"","Required","Required"]
["",null,{"$f":"IF('TSA Input'!J1841=\"\",\"\",IF(OR('TSA Input'!J1841=\"Yes\",'TSA Input'!J1841=\"Contingent\"),'TSA Input'!B1841,\"Ineligible\"))","v":""},{"$f":"IF('TSA Input'!J1841=\"\",\"\",IF(OR('TSA Input'!J1841=\"Yes\",'TSA Input'!J1841=\"Contingent\"),'TSA Input'!I1841,\"\"))","v":""},{"$f":"IF('TSA Input'!J1841=\"\",\"\",IF(OR('TSA Input'!J1841=\"Yes\",'TSA Input'!J1841=\"Contingent\"),'TSA Input'!C1841,\"\"))","v":""},{"$f":"IF('TSA Input'!J1841=\"\",\"\",IF(OR('TSA Input'!J1841=\"Yes\",'TSA Input'!J1841=\"Contingent\"),'TSA Input'!D1841,\"\"))","v":""},{"$f":"IF('TSA Input'!J1841=\"\",\"\",IF(OR('TSA Input'!J1841=\"Yes\",'TSA Input'!J1841=\"Contingent\"),'TSA Input'!G1841,\"\"))","v":""},{"$f":"IF('TSA Input'!J1841=\"\",\"\",IF(OR('TSA Input'!J1841=\"Yes\",'TSA Input'!J1841=\"Contingent\"),'TSA Input'!F1841,\"\"))","v":""},"",{"$f":"IF('TSA Input'!J1841=\"\",\"\",IF(OR('TSA Input'!J1841=\"Yes\",'TSA Input'!J1841=\"Contingent\"),'TSA Input'!D1841,\"\"))","v":""},{"$f":"IF('TSA Input'!J1841=\"\",\"\",IF(OR('TSA Input'!J1841=\"Yes\",'TSA Input'!J1841=\"Contingent\"),'TSA Input'!G1841,\"\"))","v":""},{"$f":"IF('TSA Input'!J1841=\"\",\"\",IF(OR('TSA Input'!J1841=\"Yes\",'TSA Input'!J1841=\"Contingent\"),'TSA Input'!F1841,\"\"))","v":""},"","Required","Required"]
["",null,{"$f":"IF('TSA Input'!J1842=\"\",\"\",IF(OR('TSA Input'!J1842=\"Yes\",'TSA Input'!J1842=\"Contingent\"),'TSA Input'!B1842,\"Ineligible\"))","v":""},{"$f":"IF('TSA Input'!J1842=\"\",\"\",IF(OR('TSA Input'!J1842=\"Yes\",'TSA Input'!J1842=\"Contingent\"),'TSA Input'!I1842,\"\"))","v":""},{"$f":"IF('TSA Input'!J1842=\"\",\"\",IF(OR('TSA Input'!J1842=\"Yes\",'TSA Input'!J1842=\"Contingent\"),'TSA Input'!C1842,\"\"))","v":""},{"$f":"IF('TSA Input'!J1842=\"\",\"\",IF(OR('TSA Input'!J1842=\"Yes\",'TSA Input'!J1842=\"Contingent\"),'TSA Input'!D1842,\"\"))","v":""},{"$f":"IF('TSA Input'!J1842=\"\",\"\",IF(OR('TSA Input'!J1842=\"Yes\",'TSA Input'!J1842=\"Contingent\"),'TSA Input'!G1842,\"\"))","v":""},{"$f":"IF('TSA Input'!J1842=\"\",\"\",IF(OR('TSA Input'!J1842=\"Yes\",'TSA Input'!J1842=\"Contingent\"),'TSA Input'!F1842,\"\"))","v":""},"",{"$f":"IF('TSA Input'!J1842=\"\",\"\",IF(OR('TSA Input'!J1842=\"Yes\",'TSA Input'!J1842=\"Contingent\"),'TSA Input'!D1842,\"\"))","v":""},{"$f":"IF('TSA Input'!J1842=\"\",\"\",IF(OR('TSA Input'!J1842=\"Yes\",'TSA Input'!J1842=\"Contingent\"),'TSA Input'!G1842,\"\"))","v":""},{"$f":"IF('TSA Input'!J1842=\"\",\"\",IF(OR('TSA Input'!J1842=\"Yes\",'TSA Input'!J1842=\"Contingent\"),'TSA Input'!F1842,\"\"))","v":""},"","Required","Required"]
["",null,{"$f":"IF('TSA Input'!J1843=\"\",\"\",IF(OR('TSA Input'!J1843=\"Yes\",'TSA Input'!J1843=\"Contingent\"),'TSA Input'!B1843,\"Ineligible\"))","v":""},{"$f":"IF('TSA Input'!J1843=\"\",\"\",IF(OR('TSA Input'!J1843=\"Yes\",'TSA Input'!J1843=\"Contingent\"),'TSA Input'!I1843,\"\"))","v":""},{"$f":"IF('TSA Input'!J1843=\"\",\"\",IF(OR('TSA Input'!J1843=\"Yes\",'TSA Input'!J1843=\"Contingent\"),'TSA Input'!C1843,\"\"))","v":""},{"$f":"IF('TSA Input'!J1843=\"\",\"\",IF(OR('TSA Input'!J1843=\"Yes\",'TSA Input'!J1843=\"Contingent\"),'TSA Input'!D1843,\"\"))","v":""},{"$f":"IF('TSA Input'!J1843=\"\",\"\",IF(OR('TSA Input'!J1843=\"Yes\",'TSA Input'!J1843=\"Contingent\"),'TSA Input'!G1843,\"\"))","v":""},{"$f":"IF('TSA Input'!J1843=\"\",\"\",IF(OR('TSA Input'!J1843=\"Yes\",'TSA Input'!J1843=\"Contingent\"),'TSA Input'!F1843,\"\"))","v":""},"",{"$f":"IF('TSA Input'!J1843=\"\",\"\",IF(OR('TSA Input'!J1843=\"Yes\",'TSA Input'!J1843=\"Contingent\"),'TSA Input'!D1843,\"\"))","v":""},{"$f":"IF('TSA Input'!J1843=\"\",\"\",IF(OR('TSA Input'!J1843=\"Yes\",'TSA Input'!J1843=\"Contingent\"),'TSA Input'!G1843,\"\"))","v":""},{"$f":"IF('TSA Input'!J1843=\"\",\"\",IF(OR('TSA Input'!J1843=\"Yes\",'TSA Input'!J1843=\"Contingent\"),'TSA Input'!F1843,\"\"))","v":""},"","Required","Required"]
["",null,{"$f":"IF('TSA Input'!J1844=\"\",\"\",IF(OR('TSA Input'!J1844=\"Yes\",'TSA Input'!J1844=\"Contingent\"),'TSA Input'!B1844,\"Ineligible\"))","v":""},{"$f":"IF('TSA Input'!J1844=\"\",\"\",IF(OR('TSA Input'!J1844=\"Yes\",'TSA Input'!J1844=\"Contingent\"),'TSA Input'!I1844,\"\"))","v":""},{"$f":"IF('TSA Input'!J1844=\"\",\"\",IF(OR('TSA Input'!J1844=\"Yes\",'TSA Input'!J1844=\"Contingent\"),'TSA Input'!C1844,\"\"))","v":""},{"$f":"IF('TSA Input'!J1844=\"\",\"\",IF(OR('TSA Input'!J1844=\"Yes\",'TSA Input'!J1844=\"Contingent\"),'TSA Input'!D1844,\"\"))","v":""},{"$f":"IF('TSA Input'!J1844=\"\",\"\",IF(OR('TSA Input'!J1844=\"Yes\",'TSA Input'!J1844=\"Contingent\"),'TSA Input'!G1844,\"\"))","v":""},{"$f":"IF('TSA Input'!J1844=\"\",\"\",IF(OR('TSA Input'!J1844=\"Yes\",'TSA Input'!J1844=\"Contingent\"),'TSA Input'!F1844,\"\"))","v":""},"",{"$f":"IF('TSA Input'!J1844=\"\",\"\",IF(OR('TSA Input'!J1844=\"Yes\",'TSA Input'!J1844=\"Contingent\"),'TSA Input'!D1844,\"\"))","v":""},{"$f":"IF('TSA Input'!J1844=\"\",\"\",IF(OR('TSA Input'!J1844=\"Yes\",'TSA Input'!J1844=\"Contingent\"),'TSA Input'!G1844,\"\"))","v":""},{"$f":"IF('TSA Input'!J1844=\"\",\"\",IF(OR('TSA Input'!J1844=\"Yes\",'TSA Input'!J1844=\"Contingent\"),'TSA Input'!F1844,\"\"))","v":""},"","Required","Required"]
["",null,{"$f":"IF('TSA Input'!J1845=\"\",\"\",IF(OR('TSA Input'!J1845=\"Yes\",'TSA Input'!J1845=\"Contingent\"),'TSA Input'!B1845,\"Ineligible\"))","v":""},{"$f":"IF('TSA Input'!J1845=\"\",\"\",IF(OR('TSA Input'!J1845=\"Yes\",'TSA Input'!J1845=\"Contingent\"),'TSA Input'!I1845,\"\"))","v":""},{"$f":"IF('TSA Input'!J1845=\"\",\"\",IF(OR('TSA Input'!J1845=\"Yes\",'TSA Input'!J1845=\"Contingent\"),'TSA Input'!C1845,\"\"))","v":""},{"$f":"IF('TSA Input'!J1845=\"\",\"\",IF(OR('TSA Input'!J1845=\"Yes\",'TSA Input'!J1845=\"Contingent\"),'TSA Input'!D1845,\"\"))","v":""},{"$f":"IF('TSA Input'!J1845=\"\",\"\",IF(OR('TSA Input'!J1845=\"Yes\",'TSA Input'!J1845=\"Contingent\"),'TSA Input'!G1845,\"\"))","v":""},{"$f":"IF('TSA Input'!J1845=\"\",\"\",IF(OR('TSA Input'!J1845=\"Yes\",'TSA Input'!J1845=\"Contingent\"),'TSA Input'!F1845,\"\"))","v":""},"",{"$f":"IF('TSA Input'!J1845=\"\",\"\",IF(OR('TSA Input'!J1845=\"Yes\",'TSA Input'!J1845=\"Contingent\"),'TSA Input'!D1845,\"\"))","v":""},{"$f":"IF('TSA Input'!J1845=\"\",\"\",IF(OR('TSA Input'!J1845=\"Yes\",'TSA Input'!J1845=\"Contingent\"),'TSA Input'!G1845,\"\"))","v":""},{"$f":"IF('TSA Input'!J1845=\"\",\"\",IF(OR('TSA Input'!J1845=\"Yes\",'TSA Input'!J1845=\"Contingent\"),'TSA Input'!F1845,\"\"))","v":""},"","Required","Required"]
["",null,{"$f":"IF('TSA Input'!J1846=\"\",\"\",IF(OR('TSA Input'!J1846=\"Yes\",'TSA Input'!J1846=\"Contingent\"),'TSA Input'!B1846,\"Ineligible\"))","v":""},{"$f":"IF('TSA Input'!J1846=\"\",\"\",IF(OR('TSA Input'!J1846=\"Yes\",'TSA Input'!J1846=\"Contingent\"),'TSA Input'!I1846,\"\"))","v":""},{"$f":"IF('TSA Input'!J1846=\"\",\"\",IF(OR('TSA Input'!J1846=\"Yes\",'TSA Input'!J1846=\"Contingent\"),'TSA Input'!C1846,\"\"))","v":""},{"$f":"IF('TSA Input'!J1846=\"\",\"\",IF(OR('TSA Input'!J1846=\"Yes\",'TSA Input'!J1846=\"Contingent\"),'TSA Input'!D1846,\"\"))","v":""},{"$f":"IF('TSA Input'!J1846=\"\",\"\",IF(OR('TSA Input'!J1846=\"Yes\",'TSA Input'!J1846=\"Contingent\"),'TSA Input'!G1846,\"\"))","v":""},{"$f":"IF('TSA Input'!J1846=\"\",\"\",IF(OR('TSA Input'!J1846=\"Yes\",'TSA Input'!J1846=\"Contingent\"),'TSA Input'!F1846,\"\"))","v":""},"",{"$f":"IF('TSA Input'!J1846=\"\",\"\",IF(OR('TSA Input'!J1846=\"Yes\",'TSA Input'!J1846=\"Contingent\"),'TSA Input'!D1846,\"\"))","v":""},{"$f":"IF('TSA Input'!J1846=\"\",\"\",IF(OR('TSA Input'!J1846=\"Yes\",'TSA Input'!J1846=\"Contingent\"),'TSA Input'!G1846,\"\"))","v":""},{"$f":"IF('TSA Input'!J1846=\"\",\"\",IF(OR('TSA Input'!J1846=\"Yes\",'TSA Input'!J1846=\"Contingent\"),'TSA Input'!F1846,\"\"))","v":""},"","Required","Required"]
["",null,{"$f":"IF('TSA Input'!J1847=\"\",\"\",IF(OR('TSA Input'!J1847=\"Yes\",'TSA Input'!J1847=\"Contingent\"),'TSA Input'!B1847,\"Ineligible\"))","v":""},{"$f":"IF('TSA Input'!J1847=\"\",\"\",IF(OR('TSA Input'!J1847=\"Yes\",'TSA Input'!J1847=\"Contingent\"),'TSA Input'!I1847,\"\"))","v":""},{"$f":"IF('TSA Input'!J1847=\"\",\"\",IF(OR('TSA Input'!J1847=\"Yes\",'TSA Input'!J1847=\"Contingent\"),'TSA Input'!C1847,\"\"))","v":""},{"$f":"IF('TSA Input'!J1847=\"\",\"\",IF(OR('TSA Input'!J1847=\"Yes\",'TSA Input'!J1847=\"Contingent\"),'TSA Input'!D1847,\"\"))","v":""},{"$f":"IF('TSA Input'!J1847=\"\",\"\",IF(OR('TSA Input'!J1847=\"Yes\",'TSA Input'!J1847=\"Contingent\"),'TSA Input'!G1847,\"\"))","v":""},{"$f":"IF('TSA Input'!J1847=\"\",\"\",IF(OR('TSA Input'!J1847=\"Yes\",'TSA Input'!J1847=\"Contingent\"),'TSA Input'!F1847,\"\"))","v":""},"",{"$f":"IF('TSA Input'!J1847=\"\",\"\",IF(OR('TSA Input'!J1847=\"Yes\",'TSA Input'!J1847=\"Contingent\"),'TSA Input'!D1847,\"\"))","v":""},{"$f":"IF('TSA Input'!J1847=\"\",\"\",IF(OR('TSA Input'!J1847=\"Yes\",'TSA Input'!J1847=\"Contingent\"),'TSA Input'!G1847,\"\"))","v":""},{"$f":"IF('TSA Input'!J1847=\"\",\"\",IF(OR('TSA Input'!J1847=\"Yes\",'TSA Input'!J1847=\"Contingent\"),'TSA Input'!F1847,\"\"))","v":""},"","Required","Required"]
["",null,{"$f":"IF('TSA Input'!J1848=\"\",\"\",IF(OR('TSA Input'!J1848=\"Yes\",'TSA Input'!J1848=\"Contingent\"),'TSA Input'!B1848,\"Ineligible\"))","v":""},{"$f":"IF('TSA Input'!J1848=\"\",\"\",IF(OR('TSA Input'!J1848=\"Yes\",'TSA Input'!J1848=\"Contingent\"),'TSA Input'!I1848,\"\"))","v":""},{"$f":"IF('TSA Input'!J1848=\"\",\"\",IF(OR('TSA Input'!J1848=\"Yes\",'TSA Input'!J1848=\"Contingent\"),'TSA Input'!C1848,\"\"))","v":""},{"$f":"IF('TSA Input'!J1848=\"\",\"\",IF(OR('TSA Input'!J1848=\"Yes\",'TSA Input'!J1848=\"Contingent\"),'TSA Input'!D1848,\"\"))","v":""},{"$f":"IF('TSA Input'!J1848=\"\",\"\",IF(OR('TSA Input'!J1848=\"Yes\",'TSA Input'!J1848=\"Contingent\"),'TSA Input'!G1848,\"\"))","v":""},{"$f":"IF('TSA Input'!J1848=\"\",\"\",IF(OR('TSA Input'!J1848=\"Yes\",'TSA Input'!J1848=\"Contingent\"),'TSA Input'!F1848,\"\"))","v":""},"",{"$f":"IF('TSA Input'!J1848=\"\",\"\",IF(OR('TSA Input'!J1848=\"Yes\",'TSA Input'!J1848=\"Contingent\"),'TSA Input'!D1848,\"\"))","v":""},{"$f":"IF('TSA Input'!J1848=\"\",\"\",IF(OR('TSA Input'!J1848=\"Yes\",'TSA Input'!J1848=\"Contingent\"),'TSA Input'!G1848,\"\"))","v":""},{"$f":"IF('TSA Input'!J1848=\"\",\"\",IF(OR('TSA Input'!J1848=\"Yes\",'TSA Input'!J1848=\"Contingent\"),'TSA Input'!F1848,\"\"))","v":""},"","Required","Required"]
["",null,{"$f":"IF('TSA Input'!J1849=\"\",\"\",IF(OR('TSA Input'!J1849=\"Yes\",'TSA Input'!J1849=\"Contingent\"),'TSA Input'!B1849,\"Ineligible\"))","v":""},{"$f":"IF('TSA Input'!J1849=\"\",\"\",IF(OR('TSA Input'!J1849=\"Yes\",'TSA Input'!J1849=\"Contingent\"),'TSA Input'!I1849,\"\"))","v":""},{"$f":"IF('TSA Input'!J1849=\"\",\"\",IF(OR('TSA Input'!J1849=\"Yes\",'TSA Input'!J1849=\"Contingent\"),'TSA Input'!C1849,\"\"))","v":""},{"$f":"IF('TSA Input'!J1849=\"\",\"\",IF(OR('TSA Input'!J1849=\"Yes\",'TSA Input'!J1849=\"Contingent\"),'TSA Input'!D1849,\"\"))","v":""},{"$f":"IF('TSA Input'!J1849=\"\",\"\",IF(OR('TSA Input'!J1849=\"Yes\",'TSA Input'!J1849=\"Contingent\"),'TSA Input'!G1849,\"\"))","v":""},{"$f":"IF('TSA Input'!J1849=\"\",\"\",IF(OR('TSA Input'!J1849=\"Yes\",'TSA Input'!J1849=\"Contingent\"),'TSA Input'!F1849,\"\"))","v":""},"",{"$f":"IF('TSA Input'!J1849=\"\",\"\",IF(OR('TSA Input'!J1849=\"Yes\",'TSA Input'!J1849=\"Contingent\"),'TSA Input'!D1849,\"\"))","v":""},{"$f":"IF('TSA Input'!J1849=\"\",\"\",IF(OR('TSA Input'!J1849=\"Yes\",'TSA Input'!J1849=\"Contingent\"),'TSA Input'!G1849,\"\"))","v":""},{"$f":"IF('TSA Input'!J1849=\"\",\"\",IF(OR('TSA Input'!J1849=\"Yes\",'TSA Input'!J1849=\"Contingent\"),'TSA Input'!F1849,\"\"))","v":""},"","Required","Required"]
["",null,{"$f":"IF('TSA Input'!J1850=\"\",\"\",IF(OR('TSA Input'!J1850=\"Yes\",'TSA Input'!J1850=\"Contingent\"),'TSA Input'!B1850,\"Ineligible\"))","v":""},{"$f":"IF('TSA Input'!J1850=\"\",\"\",IF(OR('TSA Input'!J1850=\"Yes\",'TSA Input'!J1850=\"Contingent\"),'TSA Input'!I1850,\"\"))","v":""},{"$f":"IF('TSA Input'!J1850=\"\",\"\",IF(OR('TSA Input'!J1850=\"Yes\",'TSA Input'!J1850=\"Contingent\"),'TSA Input'!C1850,\"\"))","v":""},{"$f":"IF('TSA Input'!J1850=\"\",\"\",IF(OR('TSA Input'!J1850=\"Yes\",'TSA Input'!J1850=\"Contingent\"),'TSA Input'!D1850,\"\"))","v":""},{"$f":"IF('TSA Input'!J1850=\"\",\"\",IF(OR('TSA Input'!J1850=\"Yes\",'TSA Input'!J1850=\"Contingent\"),'TSA Input'!G1850,\"\"))","v":""},{"$f":"IF('TSA Input'!J1850=\"\",\"\",IF(OR('TSA Input'!J1850=\"Yes\",'TSA Input'!J1850=\"Contingent\"),'TSA Input'!F1850,\"\"))","v":""},"",{"$f":"IF('TSA Input'!J1850=\"\",\"\",IF(OR('TSA Input'!J1850=\"Yes\",'TSA Input'!J1850=\"Contingent\"),'TSA Input'!D1850,\"\"))","v":""},{"$f":"IF('TSA Input'!J1850=\"\",\"\",IF(OR('TSA Input'!J1850=\"Yes\",'TSA Input'!J1850=\"Contingent\"),'TSA Input'!G1850,\"\"))","v":""},{"$f":"IF('TSA Input'!J1850=\"\",\"\",IF(OR('TSA Input'!J1850=\"Yes\",'TSA Input'!J1850=\"Contingent\"),'TSA Input'!F1850,\"\"))","v":""},"","Required","Required"]
["",null,{"$f":"IF('TSA Input'!J1851=\"\",\"\",IF(OR('TSA Input'!J1851=\"Yes\",'TSA Input'!J1851=\"Contingent\"),'TSA Input'!B1851,\"Ineligible\"))","v":""},{"$f":"IF('TSA Input'!J1851=\"\",\"\",IF(OR('TSA Input'!J1851=\"Yes\",'TSA Input'!J1851=\"Contingent\"),'TSA Input'!I1851,\"\"))","v":""},{"$f":"IF('TSA Input'!J1851=\"\",\"\",IF(OR('TSA Input'!J1851=\"Yes\",'TSA Input'!J1851=\"Contingent\"),'TSA Input'!C1851,\"\"))","v":""},{"$f":"IF('TSA Input'!J1851=\"\",\"\",IF(OR('TSA Input'!J1851=\"Yes\",'TSA Input'!J1851=\"Contingent\"),'TSA Input'!D1851,\"\"))","v":""},{"$f":"IF('TSA Input'!J1851=\"\",\"\",IF(OR('TSA Input'!J1851=\"Yes\",'TSA Input'!J1851=\"Contingent\"),'TSA Input'!G1851,\"\"))","v":""},{"$f":"IF('TSA Input'!J1851=\"\",\"\",IF(OR('TSA Input'!J1851=\"Yes\",'TSA Input'!J1851=\"Contingent\"),'TSA Input'!F1851,\"\"))","v":""},"",{"$f":"IF('TSA Input'!J1851=\"\",\"\",IF(OR('TSA Input'!J1851=\"Yes\",'TSA Input'!J1851=\"Contingent\"),'TSA Input'!D1851,\"\"))","v":""},{"$f":"IF('TSA Input'!J1851=\"\",\"\",IF(OR('TSA Input'!J1851=\"Yes\",'TSA Input'!J1851=\"Contingent\"),'TSA Input'!G1851,\"\"))","v":""},{"$f":"IF('TSA Input'!J1851=\"\",\"\",IF(OR('TSA Input'!J1851=\"Yes\",'TSA Input'!J1851=\"Contingent\"),'TSA Input'!F1851,\"\"))","v":""},"","Required","Required"]
["",null,{"$f":"IF('TSA Input'!J1852=\"\",\"\",IF(OR('TSA Input'!J1852=\"Yes\",'TSA Input'!J1852=\"Contingent\"),'TSA Input'!B1852,\"Ineligible\"))","v":""},{"$f":"IF('TSA Input'!J1852=\"\",\"\",IF(OR('TSA Input'!J1852=\"Yes\",'TSA Input'!J1852=\"Contingent\"),'TSA Input'!I1852,\"\"))","v":""},{"$f":"IF('TSA Input'!J1852=\"\",\"\",IF(OR('TSA Input'!J1852=\"Yes\",'TSA Input'!J1852=\"Contingent\"),'TSA Input'!C1852,\"\"))","v":""},{"$f":"IF('TSA Input'!J1852=\"\",\"\",IF(OR('TSA Input'!J1852=\"Yes\",'TSA Input'!J1852=\"Contingent\"),'TSA Input'!D1852,\"\"))","v":""},{"$f":"IF('TSA Input'!J1852=\"\",\"\",IF(OR('TSA Input'!J1852=\"Yes\",'TSA Input'!J1852=\"Contingent\"),'TSA Input'!G1852,\"\"))","v":""},{"$f":"IF('TSA Input'!J1852=\"\",\"\",IF(OR('TSA Input'!J1852=\"Yes\",'TSA Input'!J1852=\"Contingent\"),'TSA Input'!F1852,\"\"))","v":""},"",{"$f":"IF('TSA Input'!J1852=\"\",\"\",IF(OR('TSA Input'!J1852=\"Yes\",'TSA Input'!J1852=\"Contingent\"),'TSA Input'!D1852,\"\"))","v":""},{"$f":"IF('TSA Input'!J1852=\"\",\"\",IF(OR('TSA Input'!J1852=\"Yes\",'TSA Input'!J1852=\"Contingent\"),'TSA Input'!G1852,\"\"))","v":""},{"$f":"IF('TSA Input'!J1852=\"\",\"\",IF(OR('TSA Input'!J1852=\"Yes\",'TSA Input'!J1852=\"Contingent\"),'TSA Input'!F1852,\"\"))","v":""},"","Required","Required"]
["",null,{"$f":"IF('TSA Input'!J1853=\"\",\"\",IF(OR('TSA Input'!J1853=\"Yes\",'TSA Input'!J1853=\"Contingent\"),'TSA Input'!B1853,\"Ineligible\"))","v":""},{"$f":"IF('TSA Input'!J1853=\"\",\"\",IF(OR('TSA Input'!J1853=\"Yes\",'TSA Input'!J1853=\"Contingent\"),'TSA Input'!I1853,\"\"))","v":""},{"$f":"IF('TSA Input'!J1853=\"\",\"\",IF(OR('TSA Input'!J1853=\"Yes\",'TSA Input'!J1853=\"Contingent\"),'TSA Input'!C1853,\"\"))","v":""},{"$f":"IF('TSA Input'!J1853=\"\",\"\",IF(OR('TSA Input'!J1853=\"Yes\",'TSA Input'!J1853=\"Contingent\"),'TSA Input'!D1853,\"\"))","v":""},{"$f":"IF('TSA Input'!J1853=\"\",\"\",IF(OR('TSA Input'!J1853=\"Yes\",'TSA Input'!J1853=\"Contingent\"),'TSA Input'!G1853,\"\"))","v":""},{"$f":"IF('TSA Input'!J1853=\"\",\"\",IF(OR('TSA Input'!J1853=\"Yes\",'TSA Input'!J1853=\"Contingent\"),'TSA Input'!F1853,\"\"))","v":""},"",{"$f":"IF('TSA Input'!J1853=\"\",\"\",IF(OR('TSA Input'!J1853=\"Yes\",'TSA Input'!J1853=\"Contingent\"),'TSA Input'!D1853,\"\"))","v":""},{"$f":"IF('TSA Input'!J1853=\"\",\"\",IF(OR('TSA Input'!J1853=\"Yes\",'TSA Input'!J1853=\"Contingent\"),'TSA Input'!G1853,\"\"))","v":""},{"$f":"IF('TSA Input'!J1853=\"\",\"\",IF(OR('TSA Input'!J1853=\"Yes\",'TSA Input'!J1853=\"Contingent\"),'TSA Input'!F1853,\"\"))","v":""},"","Required","Required"]
["",null,{"$f":"IF('TSA Input'!J1854=\"\",\"\",IF(OR('TSA Input'!J1854=\"Yes\",'TSA Input'!J1854=\"Contingent\"),'TSA Input'!B1854,\"Ineligible\"))","v":""},{"$f":"IF('TSA Input'!J1854=\"\",\"\",IF(OR('TSA Input'!J1854=\"Yes\",'TSA Input'!J1854=\"Contingent\"),'TSA Input'!I1854,\"\"))","v":""},{"$f":"IF('TSA Input'!J1854=\"\",\"\",IF(OR('TSA Input'!J1854=\"Yes\",'TSA Input'!J1854=\"Contingent\"),'TSA Input'!C1854,\"\"))","v":""},{"$f":"IF('TSA Input'!J1854=\"\",\"\",IF(OR('TSA Input'!J1854=\"Yes\",'TSA Input'!J1854=\"Contingent\"),'TSA Input'!D1854,\"\"))","v":""},{"$f":"IF('TSA Input'!J1854=\"\",\"\",IF(OR('TSA Input'!J1854=\"Yes\",'TSA Input'!J1854=\"Contingent\"),'TSA Input'!G1854,\"\"))","v":""},{"$f":"IF('TSA Input'!J1854=\"\",\"\",IF(OR('TSA Input'!J1854=\"Yes\",'TSA Input'!J1854=\"Contingent\"),'TSA Input'!F1854,\"\"))","v":""},"",{"$f":"IF('TSA Input'!J1854=\"\",\"\",IF(OR('TSA Input'!J1854=\"Yes\",'TSA Input'!J1854=\"Contingent\"),'TSA Input'!D1854,\"\"))","v":""},{"$f":"IF('TSA Input'!J1854=\"\",\"\",IF(OR('TSA Input'!J1854=\"Yes\",'TSA Input'!J1854=\"Contingent\"),'TSA Input'!G1854,\"\"))","v":""},{"$f":"IF('TSA Input'!J1854=\"\",\"\",IF(OR('TSA Input'!J1854=\"Yes\",'TSA Input'!J1854=\"Contingent\"),'TSA Input'!F1854,\"\"))","v":""},"","Required","Required"]
["",null,{"$f":"IF('TSA Input'!J1855=\"\",\"\",IF(OR('TSA Input'!J1855=\"Yes\",'TSA Input'!J1855=\"Contingent\"),'TSA Input'!B1855,\"Ineligible\"))","v":""},{"$f":"IF('TSA Input'!J1855=\"\",\"\",IF(OR('TSA Input'!J1855=\"Yes\",'TSA Input'!J1855=\"Contingent\"),'TSA Input'!I1855,\"\"))","v":""},{"$f":"IF('TSA Input'!J1855=\"\",\"\",IF(OR('TSA Input'!J1855=\"Yes\",'TSA Input'!J1855=\"Contingent\"),'TSA Input'!C1855,\"\"))","v":""},{"$f":"IF('TSA Input'!J1855=\"\",\"\",IF(OR('TSA Input'!J1855=\"Yes\",'TSA Input'!J1855=\"Contingent\"),'TSA Input'!D1855,\"\"))","v":""},{"$f":"IF('TSA Input'!J1855=\"\",\"\",IF(OR('TSA Input'!J1855=\"Yes\",'TSA Input'!J1855=\"Contingent\"),'TSA Input'!G1855,\"\"))","v":""},{"$f":"IF('TSA Input'!J1855=\"\",\"\",IF(OR('TSA Input'!J1855=\"Yes\",'TSA Input'!J1855=\"Contingent\"),'TSA Input'!F1855,\"\"))","v":""},"",{"$f":"IF('TSA Input'!J1855=\"\",\"\",IF(OR('TSA Input'!J1855=\"Yes\",'TSA Input'!J1855=\"Contingent\"),'TSA Input'!D1855,\"\"))","v":""},{"$f":"IF('TSA Input'!J1855=\"\",\"\",IF(OR('TSA Input'!J1855=\"Yes\",'TSA Input'!J1855=\"Contingent\"),'TSA Input'!G1855,\"\"))","v":""},{"$f":"IF('TSA Input'!J1855=\"\",\"\",IF(OR('TSA Input'!J1855=\"Yes\",'TSA Input'!J1855=\"Contingent\"),'TSA Input'!F1855,\"\"))","v":""},"","Required","Required"]
["",null,{"$f":"IF('TSA Input'!J1856=\"\",\"\",IF(OR('TSA Input'!J1856=\"Yes\",'TSA Input'!J1856=\"Contingent\"),'TSA Input'!B1856,\"Ineligible\"))","v":""},{"$f":"IF('TSA Input'!J1856=\"\",\"\",IF(OR('TSA Input'!J1856=\"Yes\",'TSA Input'!J1856=\"Contingent\"),'TSA Input'!I1856,\"\"))","v":""},{"$f":"IF('TSA Input'!J1856=\"\",\"\",IF(OR('TSA Input'!J1856=\"Yes\",'TSA Input'!J1856=\"Contingent\"),'TSA Input'!C1856,\"\"))","v":""},{"$f":"IF('TSA Input'!J1856=\"\",\"\",IF(OR('TSA Input'!J1856=\"Yes\",'TSA Input'!J1856=\"Contingent\"),'TSA Input'!D1856,\"\"))","v":""},{"$f":"IF('TSA Input'!J1856=\"\",\"\",IF(OR('TSA Input'!J1856=\"Yes\",'TSA Input'!J1856=\"Contingent\"),'TSA Input'!G1856,\"\"))","v":""},{"$f":"IF('TSA Input'!J1856=\"\",\"\",IF(OR('TSA Input'!J1856=\"Yes\",'TSA Input'!J1856=\"Contingent\"),'TSA Input'!F1856,\"\"))","v":""},"",{"$f":"IF('TSA Input'!J1856=\"\",\"\",IF(OR('TSA Input'!J1856=\"Yes\",'TSA Input'!J1856=\"Contingent\"),'TSA Input'!D1856,\"\"))","v":""},{"$f":"IF('TSA Input'!J1856=\"\",\"\",IF(OR('TSA Input'!J1856=\"Yes\",'TSA Input'!J1856=\"Contingent\"),'TSA Input'!G1856,\"\"))","v":""},{"$f":"IF('TSA Input'!J1856=\"\",\"\",IF(OR('TSA Input'!J1856=\"Yes\",'TSA Input'!J1856=\"Contingent\"),'TSA Input'!F1856,\"\"))","v":""},"","Required","Required"]
["",null,{"$f":"IF('TSA Input'!J1857=\"\",\"\",IF(OR('TSA Input'!J1857=\"Yes\",'TSA Input'!J1857=\"Contingent\"),'TSA Input'!B1857,\"Ineligible\"))","v":""},{"$f":"IF('TSA Input'!J1857=\"\",\"\",IF(OR('TSA Input'!J1857=\"Yes\",'TSA Input'!J1857=\"Contingent\"),'TSA Input'!I1857,\"\"))","v":""},{"$f":"IF('TSA Input'!J1857=\"\",\"\",IF(OR('TSA Input'!J1857=\"Yes\",'TSA Input'!J1857=\"Contingent\"),'TSA Input'!C1857,\"\"))","v":""},{"$f":"IF('TSA Input'!J1857=\"\",\"\",IF(OR('TSA Input'!J1857=\"Yes\",'TSA Input'!J1857=\"Contingent\"),'TSA Input'!D1857,\"\"))","v":""},{"$f":"IF('TSA Input'!J1857=\"\",\"\",IF(OR('TSA Input'!J1857=\"Yes\",'TSA Input'!J1857=\"Contingent\"),'TSA Input'!G1857,\"\"))","v":""},{"$f":"IF('TSA Input'!J1857=\"\",\"\",IF(OR('TSA Input'!J1857=\"Yes\",'TSA Input'!J1857=\"Contingent\"),'TSA Input'!F1857,\"\"))","v":""},"",{"$f":"IF('TSA Input'!J1857=\"\",\"\",IF(OR('TSA Input'!J1857=\"Yes\",'TSA Input'!J1857=\"Contingent\"),'TSA Input'!D1857,\"\"))","v":""},{"$f":"IF('TSA Input'!J1857=\"\",\"\",IF(OR('TSA Input'!J1857=\"Yes\",'TSA Input'!J1857=\"Contingent\"),'TSA Input'!G1857,\"\"))","v":""},{"$f":"IF('TSA Input'!J1857=\"\",\"\",IF(OR('TSA Input'!J1857=\"Yes\",'TSA Input'!J1857=\"Contingent\"),'TSA Input'!F1857,\"\"))","v":""},"","Required","Required"]
["",null,{"$f":"IF('TSA Input'!J1858=\"\",\"\",IF(OR('TSA Input'!J1858=\"Yes\",'TSA Input'!J1858=\"Contingent\"),'TSA Input'!B1858,\"Ineligible\"))","v":""},{"$f":"IF('TSA Input'!J1858=\"\",\"\",IF(OR('TSA Input'!J1858=\"Yes\",'TSA Input'!J1858=\"Contingent\"),'TSA Input'!I1858,\"\"))","v":""},{"$f":"IF('TSA Input'!J1858=\"\",\"\",IF(OR('TSA Input'!J1858=\"Yes\",'TSA Input'!J1858=\"Contingent\"),'TSA Input'!C1858,\"\"))","v":""},{"$f":"IF('TSA Input'!J1858=\"\",\"\",IF(OR('TSA Input'!J1858=\"Yes\",'TSA Input'!J1858=\"Contingent\"),'TSA Input'!D1858,\"\"))","v":""},{"$f":"IF('TSA Input'!J1858=\"\",\"\",IF(OR('TSA Input'!J1858=\"Yes\",'TSA Input'!J1858=\"Contingent\"),'TSA Input'!G1858,\"\"))","v":""},{"$f":"IF('TSA Input'!J1858=\"\",\"\",IF(OR('TSA Input'!J1858=\"Yes\",'TSA Input'!J1858=\"Contingent\"),'TSA Input'!F1858,\"\"))","v":""},"",{"$f":"IF('TSA Input'!J1858=\"\",\"\",IF(OR('TSA Input'!J1858=\"Yes\",'TSA Input'!J1858=\"Contingent\"),'TSA Input'!D1858,\"\"))","v":""},{"$f":"IF('TSA Input'!J1858=\"\",\"\",IF(OR('TSA Input'!J1858=\"Yes\",'TSA Input'!J1858=\"Contingent\"),'TSA Input'!G1858,\"\"))","v":""},{"$f":"IF('TSA Input'!J1858=\"\",\"\",IF(OR('TSA Input'!J1858=\"Yes\",'TSA Input'!J1858=\"Contingent\"),'TSA Input'!F1858,\"\"))","v":""},"","Required","Required"]
["",null,{"$f":"IF('TSA Input'!J1859=\"\",\"\",IF(OR('TSA Input'!J1859=\"Yes\",'TSA Input'!J1859=\"Contingent\"),'TSA Input'!B1859,\"Ineligible\"))","v":""},{"$f":"IF('TSA Input'!J1859=\"\",\"\",IF(OR('TSA Input'!J1859=\"Yes\",'TSA Input'!J1859=\"Contingent\"),'TSA Input'!I1859,\"\"))","v":""},{"$f":"IF('TSA Input'!J1859=\"\",\"\",IF(OR('TSA Input'!J1859=\"Yes\",'TSA Input'!J1859=\"Contingent\"),'TSA Input'!C1859,\"\"))","v":""},{"$f":"IF('TSA Input'!J1859=\"\",\"\",IF(OR('TSA Input'!J1859=\"Yes\",'TSA Input'!J1859=\"Contingent\"),'TSA Input'!D1859,\"\"))","v":""},{"$f":"IF('TSA Input'!J1859=\"\",\"\",IF(OR('TSA Input'!J1859=\"Yes\",'TSA Input'!J1859=\"Contingent\"),'TSA Input'!G1859,\"\"))","v":""},{"$f":"IF('TSA Input'!J1859=\"\",\"\",IF(OR('TSA Input'!J1859=\"Yes\",'TSA Input'!J1859=\"Contingent\"),'TSA Input'!F1859,\"\"))","v":""},"",{"$f":"IF('TSA Input'!J1859=\"\",\"\",IF(OR('TSA Input'!J1859=\"Yes\",'TSA Input'!J1859=\"Contingent\"),'TSA Input'!D1859,\"\"))","v":""},{"$f":"IF('TSA Input'!J1859=\"\",\"\",IF(OR('TSA Input'!J1859=\"Yes\",'TSA Input'!J1859=\"Contingent\"),'TSA Input'!G1859,\"\"))","v":""},{"$f":"IF('TSA Input'!J1859=\"\",\"\",IF(OR('TSA Input'!J1859=\"Yes\",'TSA Input'!J1859=\"Contingent\"),'TSA Input'!F1859,\"\"))","v":""},"","Required","Required"]
["",null,{"$f":"IF('TSA Input'!J1860=\"\",\"\",IF(OR('TSA Input'!J1860=\"Yes\",'TSA Input'!J1860=\"Contingent\"),'TSA Input'!B1860,\"Ineligible\"))","v":""},{"$f":"IF('TSA Input'!J1860=\"\",\"\",IF(OR('TSA Input'!J1860=\"Yes\",'TSA Input'!J1860=\"Contingent\"),'TSA Input'!I1860,\"\"))","v":""},{"$f":"IF('TSA Input'!J1860=\"\",\"\",IF(OR('TSA Input'!J1860=\"Yes\",'TSA Input'!J1860=\"Contingent\"),'TSA Input'!C1860,\"\"))","v":""},{"$f":"IF('TSA Input'!J1860=\"\",\"\",IF(OR('TSA Input'!J1860=\"Yes\",'TSA Input'!J1860=\"Contingent\"),'TSA Input'!D1860,\"\"))","v":""},{"$f":"IF('TSA Input'!J1860=\"\",\"\",IF(OR('TSA Input'!J1860=\"Yes\",'TSA Input'!J1860=\"Contingent\"),'TSA Input'!G1860,\"\"))","v":""},{"$f":"IF('TSA Input'!J1860=\"\",\"\",IF(OR('TSA Input'!J1860=\"Yes\",'TSA Input'!J1860=\"Contingent\"),'TSA Input'!F1860,\"\"))","v":""},{"$f":"IF($C1898=\"\",\"\",SUM(F1898:H1898))","v":""},{"$f":"IF('TSA Input'!J1860=\"\",\"\",IF(OR('TSA Input'!J1860=\"Yes\",'TSA Input'!J1860=\"Contingent\"),'TSA Input'!D1860,\"\"))","v":""},{"$f":"IF('TSA Input'!J1860=\"\",\"\",IF(OR('TSA Input'!J1860=\"Yes\",'TSA Input'!J1860=\"Contingent\"),'TSA Input'!G1860,\"\"))","v":""},{"$f":"IF('TSA Input'!J1860=\"\",\"\",IF(OR('TSA Input'!J1860=\"Yes\",'TSA Input'!J1860=\"Contingent\"),'TSA Input'!F1860,\"\"))","v":""},{"$f":"IF($C1898=\"\",\"\",SUM(J1898:L1898))","v":""},"Required","Required"]
["",null,{"$f":"IF('TSA Input'!J1861=\"\",\"\",IF(OR('TSA Input'!J1861=\"Yes\",'TSA Input'!J1861=\"Contingent\"),'TSA Input'!B1861,\"Ineligible\"))","v":""},{"$f":"IF('TSA Input'!J1861=\"\",\"\",IF(OR('TSA Input'!J1861=\"Yes\",'TSA Input'!J1861=\"Contingent\"),'TSA Input'!I1861,\"\"))","v":""},{"$f":"IF('TSA Input'!J1861=\"\",\"\",IF(OR('TSA Input'!J1861=\"Yes\",'TSA Input'!J1861=\"Contingent\"),'TSA Input'!C1861,\"\"))","v":""},{"$f":"IF('TSA Input'!J1861=\"\",\"\",IF(OR('TSA Input'!J1861=\"Yes\",'TSA Input'!J1861=\"Contingent\"),'TSA Input'!D1861,\"\"))","v":""},{"$f":"IF('TSA Input'!J1861=\"\",\"\",IF(OR('TSA Input'!J1861=\"Yes\",'TSA Input'!J1861=\"Contingent\"),'TSA Input'!G1861,\"\"))","v":""},{"$f":"IF('TSA Input'!J1861=\"\",\"\",IF(OR('TSA Input'!J1861=\"Yes\",'TSA Input'!J1861=\"Contingent\"),'TSA Input'!F1861,\"\"))","v":""},"",{"$f":"IF('TSA Input'!J1861=\"\",\"\",IF(OR('TSA Input'!J1861=\"Yes\",'TSA Input'!J1861=\"Contingent\"),'TSA Input'!D1861,\"\"))","v":""},{"$f":"IF('TSA Input'!J1861=\"\",\"\",IF(OR('TSA Input'!J1861=\"Yes\",'TSA Input'!J1861=\"Contingent\"),'TSA Input'!G1861,\"\"))","v":""},{"$f":"IF('TSA Input'!J1861=\"\",\"\",IF(OR('TSA Input'!J1861=\"Yes\",'TSA Input'!J1861=\"Contingent\"),'TSA Input'!F1861,\"\"))","v":""},"","Required","Required"]
["",null,{"$f":"IF('TSA Input'!J1862=\"\",\"\",IF(OR('TSA Input'!J1862=\"Yes\",'TSA Input'!J1862=\"Contingent\"),'TSA Input'!B1862,\"Ineligible\"))","v":""},{"$f":"IF('TSA Input'!J1862=\"\",\"\",IF(OR('TSA Input'!J1862=\"Yes\",'TSA Input'!J1862=\"Contingent\"),'TSA Input'!I1862,\"\"))","v":""},{"$f":"IF('TSA Input'!J1862=\"\",\"\",IF(OR('TSA Input'!J1862=\"Yes\",'TSA Input'!J1862=\"Contingent\"),'TSA Input'!C1862,\"\"))","v":""},{"$f":"IF('TSA Input'!J1862=\"\",\"\",IF(OR('TSA Input'!J1862=\"Yes\",'TSA Input'!J1862=\"Contingent\"),'TSA Input'!D1862,\"\"))","v":""},{"$f":"IF('TSA Input'!J1862=\"\",\"\",IF(OR('TSA Input'!J1862=\"Yes\",'TSA Input'!J1862=\"Contingent\"),'TSA Input'!G1862,\"\"))","v":""},{"$f":"IF('TSA Input'!J1862=\"\",\"\",IF(OR('TSA Input'!J1862=\"Yes\",'TSA Input'!J1862=\"Contingent\"),'TSA Input'!F1862,\"\"))","v":""},"",{"$f":"IF('TSA Input'!J1862=\"\",\"\",IF(OR('TSA Input'!J1862=\"Yes\",'TSA Input'!J1862=\"Contingent\"),'TSA Input'!D1862,\"\"))","v":""},{"$f":"IF('TSA Input'!J1862=\"\",\"\",IF(OR('TSA Input'!J1862=\"Yes\",'TSA Input'!J1862=\"Contingent\"),'TSA Input'!G1862,\"\"))","v":""},{"$f":"IF('TSA Input'!J1862=\"\",\"\",IF(OR('TSA Input'!J1862=\"Yes\",'TSA Input'!J1862=\"Contingent\"),'TSA Input'!F1862,\"\"))","v":""},"","Required","Required"]
["",null,{"$f":"IF('TSA Input'!J1863=\"\",\"\",IF(OR('TSA Input'!J1863=\"Yes\",'TSA Input'!J1863=\"Contingent\"),'TSA Input'!B1863,\"Ineligible\"))","v":""},{"$f":"IF('TSA Input'!J1863=\"\",\"\",IF(OR('TSA Input'!J1863=\"Yes\",'TSA Input'!J1863=\"Contingent\"),'TSA Input'!I1863,\"\"))","v":""},{"$f":"IF('TSA Input'!J1863=\"\",\"\",IF(OR('TSA Input'!J1863=\"Yes\",'TSA Input'!J1863=\"Contingent\"),'TSA Input'!C1863,\"\"))","v":""},{"$f":"IF('TSA Input'!J1863=\"\",\"\",IF(OR('TSA Input'!J1863=\"Yes\",'TSA Input'!J1863=\"Contingent\"),'TSA Input'!D1863,\"\"))","v":""},{"$f":"IF('TSA Input'!J1863=\"\",\"\",IF(OR('TSA Input'!J1863=\"Yes\",'TSA Input'!J1863=\"Contingent\"),'TSA Input'!G1863,\"\"))","v":""},{"$f":"IF('TSA Input'!J1863=\"\",\"\",IF(OR('TSA Input'!J1863=\"Yes\",'TSA Input'!J1863=\"Contingent\"),'TSA Input'!F1863,\"\"))","v":""},"",{"$f":"IF('TSA Input'!J1863=\"\",\"\",IF(OR('TSA Input'!J1863=\"Yes\",'TSA Input'!J1863=\"Contingent\"),'TSA Input'!D1863,\"\"))","v":""},{"$f":"IF('TSA Input'!J1863=\"\",\"\",IF(OR('TSA Input'!J1863=\"Yes\",'TSA Input'!J1863=\"Contingent\"),'TSA Input'!G1863,\"\"))","v":""},{"$f":"IF('TSA Input'!J1863=\"\",\"\",IF(OR('TSA Input'!J1863=\"Yes\",'TSA Input'!J1863=\"Contingent\"),'TSA Input'!F1863,\"\"))","v":""},"","Required","Required"]
["",null,{"$f":"IF('TSA Input'!J1864=\"\",\"\",IF(OR('TSA Input'!J1864=\"Yes\",'TSA Input'!J1864=\"Contingent\"),'TSA Input'!B1864,\"Ineligible\"))","v":""},{"$f":"IF('TSA Input'!J1864=\"\",\"\",IF(OR('TSA Input'!J1864=\"Yes\",'TSA Input'!J1864=\"Contingent\"),'TSA Input'!I1864,\"\"))","v":""},{"$f":"IF('TSA Input'!J1864=\"\",\"\",IF(OR('TSA Input'!J1864=\"Yes\",'TSA Input'!J1864=\"Contingent\"),'TSA Input'!C1864,\"\"))","v":""},{"$f":"IF('TSA Input'!J1864=\"\",\"\",IF(OR('TSA Input'!J1864=\"Yes\",'TSA Input'!J1864=\"Contingent\"),'TSA Input'!D1864,\"\"))","v":""},{"$f":"IF('TSA Input'!J1864=\"\",\"\",IF(OR('TSA Input'!J1864=\"Yes\",'TSA Input'!J1864=\"Contingent\"),'TSA Input'!G1864,\"\"))","v":""},{"$f":"IF('TSA Input'!J1864=\"\",\"\",IF(OR('TSA Input'!J1864=\"Yes\",'TSA Input'!J1864=\"Contingent\"),'TSA Input'!F1864,\"\"))","v":""},"",{"$f":"IF('TSA Input'!J1864=\"\",\"\",IF(OR('TSA Input'!J1864=\"Yes\",'TSA Input'!J1864=\"Contingent\"),'TSA Input'!D1864,\"\"))","v":""},{"$f":"IF('TSA Input'!J1864=\"\",\"\",IF(OR('TSA Input'!J1864=\"Yes\",'TSA Input'!J1864=\"Contingent\"),'TSA Input'!G1864,\"\"))","v":""},{"$f":"IF('TSA Input'!J1864=\"\",\"\",IF(OR('TSA Input'!J1864=\"Yes\",'TSA Input'!J1864=\"Contingent\"),'TSA Input'!F1864,\"\"))","v":""},"","Required","Required"]
["",null,{"$f":"IF('TSA Input'!J1865=\"\",\"\",IF(OR('TSA Input'!J1865=\"Yes\",'TSA Input'!J1865=\"Contingent\"),'TSA Input'!B1865,\"Ineligible\"))","v":""},{"$f":"IF('TSA Input'!J1865=\"\",\"\",IF(OR('TSA Input'!J1865=\"Yes\",'TSA Input'!J1865=\"Contingent\"),'TSA Input'!I1865,\"\"))","v":""},{"$f":"IF('TSA Input'!J1865=\"\",\"\",IF(OR('TSA Input'!J1865=\"Yes\",'TSA Input'!J1865=\"Contingent\"),'TSA Input'!C1865,\"\"))","v":""},{"$f":"IF('TSA Input'!J1865=\"\",\"\",IF(OR('TSA Input'!J1865=\"Yes\",'TSA Input'!J1865=\"Contingent\"),'TSA Input'!D1865,\"\"))","v":""},{"$f":"IF('TSA Input'!J1865=\"\",\"\",IF(OR('TSA Input'!J1865=\"Yes\",'TSA Input'!J1865=\"Contingent\"),'TSA Input'!G1865,\"\"))","v":""},{"$f":"IF('TSA Input'!J1865=\"\",\"\",IF(OR('TSA Input'!J1865=\"Yes\",'TSA Input'!J1865=\"Contingent\"),'TSA Input'!F1865,\"\"))","v":""},"",{"$f":"IF('TSA Input'!J1865=\"\",\"\",IF(OR('TSA Input'!J1865=\"Yes\",'TSA Input'!J1865=\"Contingent\"),'TSA Input'!D1865,\"\"))","v":""},{"$f":"IF('TSA Input'!J1865=\"\",\"\",IF(OR('TSA Input'!J1865=\"Yes\",'TSA Input'!J1865=\"Contingent\"),'TSA Input'!G1865,\"\"))","v":""},{"$f":"IF('TSA Input'!J1865=\"\",\"\",IF(OR('TSA Input'!J1865=\"Yes\",'TSA Input'!J1865=\"Contingent\"),'TSA Input'!F1865,\"\"))","v":""},"","Required","Required"]
["",null,{"$f":"IF('TSA Input'!J1866=\"\",\"\",IF(OR('TSA Input'!J1866=\"Yes\",'TSA Input'!J1866=\"Contingent\"),'TSA Input'!B1866,\"Ineligible\"))","v":""},{"$f":"IF('TSA Input'!J1866=\"\",\"\",IF(OR('TSA Input'!J1866=\"Yes\",'TSA Input'!J1866=\"Contingent\"),'TSA Input'!I1866,\"\"))","v":""},{"$f":"IF('TSA Input'!J1866=\"\",\"\",IF(OR('TSA Input'!J1866=\"Yes\",'TSA Input'!J1866=\"Contingent\"),'TSA Input'!C1866,\"\"))","v":""},{"$f":"IF('TSA Input'!J1866=\"\",\"\",IF(OR('TSA Input'!J1866=\"Yes\",'TSA Input'!J1866=\"Contingent\"),'TSA Input'!D1866,\"\"))","v":""},{"$f":"IF('TSA Input'!J1866=\"\",\"\",IF(OR('TSA Input'!J1866=\"Yes\",'TSA Input'!J1866=\"Contingent\"),'TSA Input'!G1866,\"\"))","v":""},{"$f":"IF('TSA Input'!J1866=\"\",\"\",IF(OR('TSA Input'!J1866=\"Yes\",'TSA Input'!J1866=\"Contingent\"),'TSA Input'!F1866,\"\"))","v":""},"",{"$f":"IF('TSA Input'!J1866=\"\",\"\",IF(OR('TSA Input'!J1866=\"Yes\",'TSA Input'!J1866=\"Contingent\"),'TSA Input'!D1866,\"\"))","v":""},{"$f":"IF('TSA Input'!J1866=\"\",\"\",IF(OR('TSA Input'!J1866=\"Yes\",'TSA Input'!J1866=\"Contingent\"),'TSA Input'!G1866,\"\"))","v":""},{"$f":"IF('TSA Input'!J1866=\"\",\"\",IF(OR('TSA Input'!J1866=\"Yes\",'TSA Input'!J1866=\"Contingent\"),'TSA Input'!F1866,\"\"))","v":""},"","Required","Required"]
["",null,{"$f":"IF('TSA Input'!J1867=\"\",\"\",IF(OR('TSA Input'!J1867=\"Yes\",'TSA Input'!J1867=\"Contingent\"),'TSA Input'!B1867,\"Ineligible\"))","v":""},{"$f":"IF('TSA Input'!J1867=\"\",\"\",IF(OR('TSA Input'!J1867=\"Yes\",'TSA Input'!J1867=\"Contingent\"),'TSA Input'!I1867,\"\"))","v":""},{"$f":"IF('TSA Input'!J1867=\"\",\"\",IF(OR('TSA Input'!J1867=\"Yes\",'TSA Input'!J1867=\"Contingent\"),'TSA Input'!C1867,\"\"))","v":""},{"$f":"IF('TSA Input'!J1867=\"\",\"\",IF(OR('TSA Input'!J1867=\"Yes\",'TSA Input'!J1867=\"Contingent\"),'TSA Input'!D1867,\"\"))","v":""},{"$f":"IF('TSA Input'!J1867=\"\",\"\",IF(OR('TSA Input'!J1867=\"Yes\",'TSA Input'!J1867=\"Contingent\"),'TSA Input'!G1867,\"\"))","v":""},{"$f":"IF('TSA Input'!J1867=\"\",\"\",IF(OR('TSA Input'!J1867=\"Yes\",'TSA Input'!J1867=\"Contingent\"),'TSA Input'!F1867,\"\"))","v":""},"",{"$f":"IF('TSA Input'!J1867=\"\",\"\",IF(OR('TSA Input'!J1867=\"Yes\",'TSA Input'!J1867=\"Contingent\"),'TSA Input'!D1867,\"\"))","v":""},{"$f":"IF('TSA Input'!J1867=\"\",\"\",IF(OR('TSA Input'!J1867=\"Yes\",'TSA Input'!J1867=\"Contingent\"),'TSA Input'!G1867,\"\"))","v":""},{"$f":"IF('TSA Input'!J1867=\"\",\"\",IF(OR('TSA Input'!J1867=\"Yes\",'TSA Input'!J1867=\"Contingent\"),'TSA Input'!F1867,\"\"))","v":""},"","Required","Required"]
["",null,{"$f":"IF('TSA Input'!J1868=\"\",\"\",IF(OR('TSA Input'!J1868=\"Yes\",'TSA Input'!J1868=\"Contingent\"),'TSA Input'!B1868,\"Ineligible\"))","v":""},{"$f":"IF('TSA Input'!J1868=\"\",\"\",IF(OR('TSA Input'!J1868=\"Yes\",'TSA Input'!J1868=\"Contingent\"),'TSA Input'!I1868,\"\"))","v":""},{"$f":"IF('TSA Input'!J1868=\"\",\"\",IF(OR('TSA Input'!J1868=\"Yes\",'TSA Input'!J1868=\"Contingent\"),'TSA Input'!C1868,\"\"))","v":""},{"$f":"IF('TSA Input'!J1868=\"\",\"\",IF(OR('TSA Input'!J1868=\"Yes\",'TSA Input'!J1868=\"Contingent\"),'TSA Input'!D1868,\"\"))","v":""},{"$f":"IF('TSA Input'!J1868=\"\",\"\",IF(OR('TSA Input'!J1868=\"Yes\",'TSA Input'!J1868=\"Contingent\"),'TSA Input'!G1868,\"\"))","v":""},{"$f":"IF('TSA Input'!J1868=\"\",\"\",IF(OR('TSA Input'!J1868=\"Yes\",'TSA Input'!J1868=\"Contingent\"),'TSA Input'!F1868,\"\"))","v":""},"",{"$f":"IF('TSA Input'!J1868=\"\",\"\",IF(OR('TSA Input'!J1868=\"Yes\",'TSA Input'!J1868=\"Contingent\"),'TSA Input'!D1868,\"\"))","v":""},{"$f":"IF('TSA Input'!J1868=\"\",\"\",IF(OR('TSA Input'!J1868=\"Yes\",'TSA Input'!J1868=\"Contingent\"),'TSA Input'!G1868,\"\"))","v":""},{"$f":"IF('TSA Input'!J1868=\"\",\"\",IF(OR('TSA Input'!J1868=\"Yes\",'TSA Input'!J1868=\"Contingent\"),'TSA Input'!F1868,\"\"))","v":""},"","Required","Required"]
["",null,{"$f":"IF('TSA Input'!J1869=\"\",\"\",IF(OR('TSA Input'!J1869=\"Yes\",'TSA Input'!J1869=\"Contingent\"),'TSA Input'!B1869,\"Ineligible\"))","v":""},{"$f":"IF('TSA Input'!J1869=\"\",\"\",IF(OR('TSA Input'!J1869=\"Yes\",'TSA Input'!J1869=\"Contingent\"),'TSA Input'!I1869,\"\"))","v":""},{"$f":"IF('TSA Input'!J1869=\"\",\"\",IF(OR('TSA Input'!J1869=\"Yes\",'TSA Input'!J1869=\"Contingent\"),'TSA Input'!C1869,\"\"))","v":""},{"$f":"IF('TSA Input'!J1869=\"\",\"\",IF(OR('TSA Input'!J1869=\"Yes\",'TSA Input'!J1869=\"Contingent\"),'TSA Input'!D1869,\"\"))","v":""},{"$f":"IF('TSA Input'!J1869=\"\",\"\",IF(OR('TSA Input'!J1869=\"Yes\",'TSA Input'!J1869=\"Contingent\"),'TSA Input'!G1869,\"\"))","v":""},{"$f":"IF('TSA Input'!J1869=\"\",\"\",IF(OR('TSA Input'!J1869=\"Yes\",'TSA Input'!J1869=\"Contingent\"),'TSA Input'!F1869,\"\"))","v":""},"",{"$f":"IF('TSA Input'!J1869=\"\",\"\",IF(OR('TSA Input'!J1869=\"Yes\",'TSA Input'!J1869=\"Contingent\"),'TSA Input'!D1869,\"\"))","v":""},{"$f":"IF('TSA Input'!J1869=\"\",\"\",IF(OR('TSA Input'!J1869=\"Yes\",'TSA Input'!J1869=\"Contingent\"),'TSA Input'!G1869,\"\"))","v":""},{"$f":"IF('TSA Input'!J1869=\"\",\"\",IF(OR('TSA Input'!J1869=\"Yes\",'TSA Input'!J1869=\"Contingent\"),'TSA Input'!F1869,\"\"))","v":""},"","Required","Required"]
["",null,{"$f":"IF('TSA Input'!J1870=\"\",\"\",IF(OR('TSA Input'!J1870=\"Yes\",'TSA Input'!J1870=\"Contingent\"),'TSA Input'!B1870,\"Ineligible\"))","v":""},{"$f":"IF('TSA Input'!J1870=\"\",\"\",IF(OR('TSA Input'!J1870=\"Yes\",'TSA Input'!J1870=\"Contingent\"),'TSA Input'!I1870,\"\"))","v":""},{"$f":"IF('TSA Input'!J1870=\"\",\"\",IF(OR('TSA Input'!J1870=\"Yes\",'TSA Input'!J1870=\"Contingent\"),'TSA Input'!C1870,\"\"))","v":""},{"$f":"IF('TSA Input'!J1870=\"\",\"\",IF(OR('TSA Input'!J1870=\"Yes\",'TSA Input'!J1870=\"Contingent\"),'TSA Input'!D1870,\"\"))","v":""},{"$f":"IF('TSA Input'!J1870=\"\",\"\",IF(OR('TSA Input'!J1870=\"Yes\",'TSA Input'!J1870=\"Contingent\"),'TSA Input'!G1870,\"\"))","v":""},{"$f":"IF('TSA Input'!J1870=\"\",\"\",IF(OR('TSA Input'!J1870=\"Yes\",'TSA Input'!J1870=\"Contingent\"),'TSA Input'!F1870,\"\"))","v":""},"",{"$f":"IF('TSA Input'!J1870=\"\",\"\",IF(OR('TSA Input'!J1870=\"Yes\",'TSA Input'!J1870=\"Contingent\"),'TSA Input'!D1870,\"\"))","v":""},{"$f":"IF('TSA Input'!J1870=\"\",\"\",IF(OR('TSA Input'!J1870=\"Yes\",'TSA Input'!J1870=\"Contingent\"),'TSA Input'!G1870,\"\"))","v":""},{"$f":"IF('TSA Input'!J1870=\"\",\"\",IF(OR('TSA Input'!J1870=\"Yes\",'TSA Input'!J1870=\"Contingent\"),'TSA Input'!F1870,\"\"))","v":""},"","Required","Required"]
["",null,{"$f":"IF('TSA Input'!J1871=\"\",\"\",IF(OR('TSA Input'!J1871=\"Yes\",'TSA Input'!J1871=\"Contingent\"),'TSA Input'!B1871,\"Ineligible\"))","v":""},{"$f":"IF('TSA Input'!J1871=\"\",\"\",IF(OR('TSA Input'!J1871=\"Yes\",'TSA Input'!J1871=\"Contingent\"),'TSA Input'!I1871,\"\"))","v":""},{"$f":"IF('TSA Input'!J1871=\"\",\"\",IF(OR('TSA Input'!J1871=\"Yes\",'TSA Input'!J1871=\"Contingent\"),'TSA Input'!C1871,\"\"))","v":""},{"$f":"IF('TSA Input'!J1871=\"\",\"\",IF(OR('TSA Input'!J1871=\"Yes\",'TSA Input'!J1871=\"Contingent\"),'TSA Input'!D1871,\"\"))","v":""},{"$f":"IF('TSA Input'!J1871=\"\",\"\",IF(OR('TSA Input'!J1871=\"Yes\",'TSA Input'!J1871=\"Contingent\"),'TSA Input'!G1871,\"\"))","v":""},{"$f":"IF('TSA Input'!J1871=\"\",\"\",IF(OR('TSA Input'!J1871=\"Yes\",'TSA Input'!J1871=\"Contingent\"),'TSA Input'!F1871,\"\"))","v":""},"",{"$f":"IF('TSA Input'!J1871=\"\",\"\",IF(OR('TSA Input'!J1871=\"Yes\",'TSA Input'!J1871=\"Contingent\"),'TSA Input'!D1871,\"\"))","v":""},{"$f":"IF('TSA Input'!J1871=\"\",\"\",IF(OR('TSA Input'!J1871=\"Yes\",'TSA Input'!J1871=\"Contingent\"),'TSA Input'!G1871,\"\"))","v":""},{"$f":"IF('TSA Input'!J1871=\"\",\"\",IF(OR('TSA Input'!J1871=\"Yes\",'TSA Input'!J1871=\"Contingent\"),'TSA Input'!F1871,\"\"))","v":""},"","Required","Required"]
["",null,{"$f":"IF('TSA Input'!J1872=\"\",\"\",IF(OR('TSA Input'!J1872=\"Yes\",'TSA Input'!J1872=\"Contingent\"),'TSA Input'!B1872,\"Ineligible\"))","v":""},{"$f":"IF('TSA Input'!J1872=\"\",\"\",IF(OR('TSA Input'!J1872=\"Yes\",'TSA Input'!J1872=\"Contingent\"),'TSA Input'!I1872,\"\"))","v":""},{"$f":"IF('TSA Input'!J1872=\"\",\"\",IF(OR('TSA Input'!J1872=\"Yes\",'TSA Input'!J1872=\"Contingent\"),'TSA Input'!C1872,\"\"))","v":""},{"$f":"IF('TSA Input'!J1872=\"\",\"\",IF(OR('TSA Input'!J1872=\"Yes\",'TSA Input'!J1872=\"Contingent\"),'TSA Input'!D1872,\"\"))","v":""},{"$f":"IF('TSA Input'!J1872=\"\",\"\",IF(OR('TSA Input'!J1872=\"Yes\",'TSA Input'!J1872=\"Contingent\"),'TSA Input'!G1872,\"\"))","v":""},{"$f":"IF('TSA Input'!J1872=\"\",\"\",IF(OR('TSA Input'!J1872=\"Yes\",'TSA Input'!J1872=\"Contingent\"),'TSA Input'!F1872,\"\"))","v":""},"",{"$f":"IF('TSA Input'!J1872=\"\",\"\",IF(OR('TSA Input'!J1872=\"Yes\",'TSA Input'!J1872=\"Contingent\"),'TSA Input'!D1872,\"\"))","v":""},{"$f":"IF('TSA Input'!J1872=\"\",\"\",IF(OR('TSA Input'!J1872=\"Yes\",'TSA Input'!J1872=\"Contingent\"),'TSA Input'!G1872,\"\"))","v":""},{"$f":"IF('TSA Input'!J1872=\"\",\"\",IF(OR('TSA Input'!J1872=\"Yes\",'TSA Input'!J1872=\"Contingent\"),'TSA Input'!F1872,\"\"))","v":""},"","Required","Required"]
["",null,{"$f":"IF('TSA Input'!J1873=\"\",\"\",IF(OR('TSA Input'!J1873=\"Yes\",'TSA Input'!J1873=\"Contingent\"),'TSA Input'!B1873,\"Ineligible\"))","v":""},{"$f":"IF('TSA Input'!J1873=\"\",\"\",IF(OR('TSA Input'!J1873=\"Yes\",'TSA Input'!J1873=\"Contingent\"),'TSA Input'!I1873,\"\"))","v":""},{"$f":"IF('TSA Input'!J1873=\"\",\"\",IF(OR('TSA Input'!J1873=\"Yes\",'TSA Input'!J1873=\"Contingent\"),'TSA Input'!C1873,\"\"))","v":""},{"$f":"IF('TSA Input'!J1873=\"\",\"\",IF(OR('TSA Input'!J1873=\"Yes\",'TSA Input'!J1873=\"Contingent\"),'TSA Input'!D1873,\"\"))","v":""},{"$f":"IF('TSA Input'!J1873=\"\",\"\",IF(OR('TSA Input'!J1873=\"Yes\",'TSA Input'!J1873=\"Contingent\"),'TSA Input'!G1873,\"\"))","v":""},{"$f":"IF('TSA Input'!J1873=\"\",\"\",IF(OR('TSA Input'!J1873=\"Yes\",'TSA Input'!J1873=\"Contingent\"),'TSA Input'!F1873,\"\"))","v":""},"",{"$f":"IF('TSA Input'!J1873=\"\",\"\",IF(OR('TSA Input'!J1873=\"Yes\",'TSA Input'!J1873=\"Contingent\"),'TSA Input'!D1873,\"\"))","v":""},{"$f":"IF('TSA Input'!J1873=\"\",\"\",IF(OR('TSA Input'!J1873=\"Yes\",'TSA Input'!J1873=\"Contingent\"),'TSA Input'!G1873,\"\"))","v":""},{"$f":"IF('TSA Input'!J1873=\"\",\"\",IF(OR('TSA Input'!J1873=\"Yes\",'TSA Input'!J1873=\"Contingent\"),'TSA Input'!F1873,\"\"))","v":""},"","Required","Required"]
["",null,{"$f":"IF('TSA Input'!J1874=\"\",\"\",IF(OR('TSA Input'!J1874=\"Yes\",'TSA Input'!J1874=\"Contingent\"),'TSA Input'!B1874,\"Ineligible\"))","v":""},{"$f":"IF('TSA Input'!J1874=\"\",\"\",IF(OR('TSA Input'!J1874=\"Yes\",'TSA Input'!J1874=\"Contingent\"),'TSA Input'!I1874,\"\"))","v":""},{"$f":"IF('TSA Input'!J1874=\"\",\"\",IF(OR('TSA Input'!J1874=\"Yes\",'TSA Input'!J1874=\"Contingent\"),'TSA Input'!C1874,\"\"))","v":""},{"$f":"IF('TSA Input'!J1874=\"\",\"\",IF(OR('TSA Input'!J1874=\"Yes\",'TSA Input'!J1874=\"Contingent\"),'TSA Input'!D1874,\"\"))","v":""},{"$f":"IF('TSA Input'!J1874=\"\",\"\",IF(OR('TSA Input'!J1874=\"Yes\",'TSA Input'!J1874=\"Contingent\"),'TSA Input'!G1874,\"\"))","v":""},{"$f":"IF('TSA Input'!J1874=\"\",\"\",IF(OR('TSA Input'!J1874=\"Yes\",'TSA Input'!J1874=\"Contingent\"),'TSA Input'!F1874,\"\"))","v":""},"",{"$f":"IF('TSA Input'!J1874=\"\",\"\",IF(OR('TSA Input'!J1874=\"Yes\",'TSA Input'!J1874=\"Contingent\"),'TSA Input'!D1874,\"\"))","v":""},{"$f":"IF('TSA Input'!J1874=\"\",\"\",IF(OR('TSA Input'!J1874=\"Yes\",'TSA Input'!J1874=\"Contingent\"),'TSA Input'!G1874,\"\"))","v":""},{"$f":"IF('TSA Input'!J1874=\"\",\"\",IF(OR('TSA Input'!J1874=\"Yes\",'TSA Input'!J1874=\"Contingent\"),'TSA Input'!F1874,\"\"))","v":""},"","Required","Required"]
["",null,{"$f":"IF('TSA Input'!J1875=\"\",\"\",IF(OR('TSA Input'!J1875=\"Yes\",'TSA Input'!J1875=\"Contingent\"),'TSA Input'!B1875,\"Ineligible\"))","v":""},{"$f":"IF('TSA Input'!J1875=\"\",\"\",IF(OR('TSA Input'!J1875=\"Yes\",'TSA Input'!J1875=\"Contingent\"),'TSA Input'!I1875,\"\"))","v":""},{"$f":"IF('TSA Input'!J1875=\"\",\"\",IF(OR('TSA Input'!J1875=\"Yes\",'TSA Input'!J1875=\"Contingent\"),'TSA Input'!C1875,\"\"))","v":""},{"$f":"IF('TSA Input'!J1875=\"\",\"\",IF(OR('TSA Input'!J1875=\"Yes\",'TSA Input'!J1875=\"Contingent\"),'TSA Input'!D1875,\"\"))","v":""},{"$f":"IF('TSA Input'!J1875=\"\",\"\",IF(OR('TSA Input'!J1875=\"Yes\",'TSA Input'!J1875=\"Contingent\"),'TSA Input'!G1875,\"\"))","v":""},{"$f":"IF('TSA Input'!J1875=\"\",\"\",IF(OR('TSA Input'!J1875=\"Yes\",'TSA Input'!J1875=\"Contingent\"),'TSA Input'!F1875,\"\"))","v":""},"",{"$f":"IF('TSA Input'!J1875=\"\",\"\",IF(OR('TSA Input'!J1875=\"Yes\",'TSA Input'!J1875=\"Contingent\"),'TSA Input'!D1875,\"\"))","v":""},{"$f":"IF('TSA Input'!J1875=\"\",\"\",IF(OR('TSA Input'!J1875=\"Yes\",'TSA Input'!J1875=\"Contingent\"),'TSA Input'!G1875,\"\"))","v":""},{"$f":"IF('TSA Input'!J1875=\"\",\"\",IF(OR('TSA Input'!J1875=\"Yes\",'TSA Input'!J1875=\"Contingent\"),'TSA Input'!F1875,\"\"))","v":""},"","Required","Required"]
["",null,{"$f":"IF('TSA Input'!J1876=\"\",\"\",IF(OR('TSA Input'!J1876=\"Yes\",'TSA Input'!J1876=\"Contingent\"),'TSA Input'!B1876,\"Ineligible\"))","v":""},{"$f":"IF('TSA Input'!J1876=\"\",\"\",IF(OR('TSA Input'!J1876=\"Yes\",'TSA Input'!J1876=\"Contingent\"),'TSA Input'!I1876,\"\"))","v":""},{"$f":"IF('TSA Input'!J1876=\"\",\"\",IF(OR('TSA Input'!J1876=\"Yes\",'TSA Input'!J1876=\"Contingent\"),'TSA Input'!C1876,\"\"))","v":""},{"$f":"IF('TSA Input'!J1876=\"\",\"\",IF(OR('TSA Input'!J1876=\"Yes\",'TSA Input'!J1876=\"Contingent\"),'TSA Input'!D1876,\"\"))","v":""},{"$f":"IF('TSA Input'!J1876=\"\",\"\",IF(OR('TSA Input'!J1876=\"Yes\",'TSA Input'!J1876=\"Contingent\"),'TSA Input'!G1876,\"\"))","v":""},{"$f":"IF('TSA Input'!J1876=\"\",\"\",IF(OR('TSA Input'!J1876=\"Yes\",'TSA Input'!J1876=\"Contingent\"),'TSA Input'!F1876,\"\"))","v":""},"",{"$f":"IF('TSA Input'!J1876=\"\",\"\",IF(OR('TSA Input'!J1876=\"Yes\",'TSA Input'!J1876=\"Contingent\"),'TSA Input'!D1876,\"\"))","v":""},{"$f":"IF('TSA Input'!J1876=\"\",\"\",IF(OR('TSA Input'!J1876=\"Yes\",'TSA Input'!J1876=\"Contingent\"),'TSA Input'!G1876,\"\"))","v":""},{"$f":"IF('TSA Input'!J1876=\"\",\"\",IF(OR('TSA Input'!J1876=\"Yes\",'TSA Input'!J1876=\"Contingent\"),'TSA Input'!F1876,\"\"))","v":""},"","Required","Required"]
["",null,{"$f":"IF('TSA Input'!J1877=\"\",\"\",IF(OR('TSA Input'!J1877=\"Yes\",'TSA Input'!J1877=\"Contingent\"),'TSA Input'!B1877,\"Ineligible\"))","v":""},{"$f":"IF('TSA Input'!J1877=\"\",\"\",IF(OR('TSA Input'!J1877=\"Yes\",'TSA Input'!J1877=\"Contingent\"),'TSA Input'!I1877,\"\"))","v":""},{"$f":"IF('TSA Input'!J1877=\"\",\"\",IF(OR('TSA Input'!J1877=\"Yes\",'TSA Input'!J1877=\"Contingent\"),'TSA Input'!C1877,\"\"))","v":""},{"$f":"IF('TSA Input'!J1877=\"\",\"\",IF(OR('TSA Input'!J1877=\"Yes\",'TSA Input'!J1877=\"Contingent\"),'TSA Input'!D1877,\"\"))","v":""},{"$f":"IF('TSA Input'!J1877=\"\",\"\",IF(OR('TSA Input'!J1877=\"Yes\",'TSA Input'!J1877=\"Contingent\"),'TSA Input'!G1877,\"\"))","v":""},{"$f":"IF('TSA Input'!J1877=\"\",\"\",IF(OR('TSA Input'!J1877=\"Yes\",'TSA Input'!J1877=\"Contingent\"),'TSA Input'!F1877,\"\"))","v":""},"",{"$f":"IF('TSA Input'!J1877=\"\",\"\",IF(OR('TSA Input'!J1877=\"Yes\",'TSA Input'!J1877=\"Contingent\"),'TSA Input'!D1877,\"\"))","v":""},{"$f":"IF('TSA Input'!J1877=\"\",\"\",IF(OR('TSA Input'!J1877=\"Yes\",'TSA Input'!J1877=\"Contingent\"),'TSA Input'!G1877,\"\"))","v":""},{"$f":"IF('TSA Input'!J1877=\"\",\"\",IF(OR('TSA Input'!J1877=\"Yes\",'TSA Input'!J1877=\"Contingent\"),'TSA Input'!F1877,\"\"))","v":""},"","Required","Required"]
["",null,{"$f":"IF('TSA Input'!J1878=\"\",\"\",IF(OR('TSA Input'!J1878=\"Yes\",'TSA Input'!J1878=\"Contingent\"),'TSA Input'!B1878,\"Ineligible\"))","v":""},{"$f":"IF('TSA Input'!J1878=\"\",\"\",IF(OR('TSA Input'!J1878=\"Yes\",'TSA Input'!J1878=\"Contingent\"),'TSA Input'!I1878,\"\"))","v":""},{"$f":"IF('TSA Input'!J1878=\"\",\"\",IF(OR('TSA Input'!J1878=\"Yes\",'TSA Input'!J1878=\"Contingent\"),'TSA Input'!C1878,\"\"))","v":""},{"$f":"IF('TSA Input'!J1878=\"\",\"\",IF(OR('TSA Input'!J1878=\"Yes\",'TSA Input'!J1878=\"Contingent\"),'TSA Input'!D1878,\"\"))","v":""},{"$f":"IF('TSA Input'!J1878=\"\",\"\",IF(OR('TSA Input'!J1878=\"Yes\",'TSA Input'!J1878=\"Contingent\"),'TSA Input'!G1878,\"\"))","v":""},{"$f":"IF('TSA Input'!J1878=\"\",\"\",IF(OR('TSA Input'!J1878=\"Yes\",'TSA Input'!J1878=\"Contingent\"),'TSA Input'!F1878,\"\"))","v":""},"",{"$f":"IF('TSA Input'!J1878=\"\",\"\",IF(OR('TSA Input'!J1878=\"Yes\",'TSA Input'!J1878=\"Contingent\"),'TSA Input'!D1878,\"\"))","v":""},{"$f":"IF('TSA Input'!J1878=\"\",\"\",IF(OR('TSA Input'!J1878=\"Yes\",'TSA Input'!J1878=\"Contingent\"),'TSA Input'!G1878,\"\"))","v":""},{"$f":"IF('TSA Input'!J1878=\"\",\"\",IF(OR('TSA Input'!J1878=\"Yes\",'TSA Input'!J1878=\"Contingent\"),'TSA Input'!F1878,\"\"))","v":""},"","Required","Required"]
["",null,{"$f":"IF('TSA Input'!J1879=\"\",\"\",IF(OR('TSA Input'!J1879=\"Yes\",'TSA Input'!J1879=\"Contingent\"),'TSA Input'!B1879,\"Ineligible\"))","v":""},{"$f":"IF('TSA Input'!J1879=\"\",\"\",IF(OR('TSA Input'!J1879=\"Yes\",'TSA Input'!J1879=\"Contingent\"),'TSA Input'!I1879,\"\"))","v":""},{"$f":"IF('TSA Input'!J1879=\"\",\"\",IF(OR('TSA Input'!J1879=\"Yes\",'TSA Input'!J1879=\"Contingent\"),'TSA Input'!C1879,\"\"))","v":""},{"$f":"IF('TSA Input'!J1879=\"\",\"\",IF(OR('TSA Input'!J1879=\"Yes\",'TSA Input'!J1879=\"Contingent\"),'TSA Input'!D1879,\"\"))","v":""},{"$f":"IF('TSA Input'!J1879=\"\",\"\",IF(OR('TSA Input'!J1879=\"Yes\",'TSA Input'!J1879=\"Contingent\"),'TSA Input'!G1879,\"\"))","v":""},{"$f":"IF('TSA Input'!J1879=\"\",\"\",IF(OR('TSA Input'!J1879=\"Yes\",'TSA Input'!J1879=\"Contingent\"),'TSA Input'!F1879,\"\"))","v":""},"",{"$f":"IF('TSA Input'!J1879=\"\",\"\",IF(OR('TSA Input'!J1879=\"Yes\",'TSA Input'!J1879=\"Contingent\"),'TSA Input'!D1879,\"\"))","v":""},{"$f":"IF('TSA Input'!J1879=\"\",\"\",IF(OR('TSA Input'!J1879=\"Yes\",'TSA Input'!J1879=\"Contingent\"),'TSA Input'!G1879,\"\"))","v":""},{"$f":"IF('TSA Input'!J1879=\"\",\"\",IF(OR('TSA Input'!J1879=\"Yes\",'TSA Input'!J1879=\"Contingent\"),'TSA Input'!F1879,\"\"))","v":""},"","Required","Required"]
["",null,{"$f":"IF('TSA Input'!J1880=\"\",\"\",IF(OR('TSA Input'!J1880=\"Yes\",'TSA Input'!J1880=\"Contingent\"),'TSA Input'!B1880,\"Ineligible\"))","v":""},{"$f":"IF('TSA Input'!J1880=\"\",\"\",IF(OR('TSA Input'!J1880=\"Yes\",'TSA Input'!J1880=\"Contingent\"),'TSA Input'!I1880,\"\"))","v":""},{"$f":"IF('TSA Input'!J1880=\"\",\"\",IF(OR('TSA Input'!J1880=\"Yes\",'TSA Input'!J1880=\"Contingent\"),'TSA Input'!C1880,\"\"))","v":""},{"$f":"IF('TSA Input'!J1880=\"\",\"\",IF(OR('TSA Input'!J1880=\"Yes\",'TSA Input'!J1880=\"Contingent\"),'TSA Input'!D1880,\"\"))","v":""},{"$f":"IF('TSA Input'!J1880=\"\",\"\",IF(OR('TSA Input'!J1880=\"Yes\",'TSA Input'!J1880=\"Contingent\"),'TSA Input'!G1880,\"\"))","v":""},{"$f":"IF('TSA Input'!J1880=\"\",\"\",IF(OR('TSA Input'!J1880=\"Yes\",'TSA Input'!J1880=\"Contingent\"),'TSA Input'!F1880,\"\"))","v":""},"",{"$f":"IF('TSA Input'!J1880=\"\",\"\",IF(OR('TSA Input'!J1880=\"Yes\",'TSA Input'!J1880=\"Contingent\"),'TSA Input'!D1880,\"\"))","v":""},{"$f":"IF('TSA Input'!J1880=\"\",\"\",IF(OR('TSA Input'!J1880=\"Yes\",'TSA Input'!J1880=\"Contingent\"),'TSA Input'!G1880,\"\"))","v":""},{"$f":"IF('TSA Input'!J1880=\"\",\"\",IF(OR('TSA Input'!J1880=\"Yes\",'TSA Input'!J1880=\"Contingent\"),'TSA Input'!F1880,\"\"))","v":""},"","Required","Required"]
["",null,{"$f":"IF('TSA Input'!J1881=\"\",\"\",IF(OR('TSA Input'!J1881=\"Yes\",'TSA Input'!J1881=\"Contingent\"),'TSA Input'!B1881,\"Ineligible\"))","v":""},{"$f":"IF('TSA Input'!J1881=\"\",\"\",IF(OR('TSA Input'!J1881=\"Yes\",'TSA Input'!J1881=\"Contingent\"),'TSA Input'!I1881,\"\"))","v":""},{"$f":"IF('TSA Input'!J1881=\"\",\"\",IF(OR('TSA Input'!J1881=\"Yes\",'TSA Input'!J1881=\"Contingent\"),'TSA Input'!C1881,\"\"))","v":""},{"$f":"IF('TSA Input'!J1881=\"\",\"\",IF(OR('TSA Input'!J1881=\"Yes\",'TSA Input'!J1881=\"Contingent\"),'TSA Input'!D1881,\"\"))","v":""},{"$f":"IF('TSA Input'!J1881=\"\",\"\",IF(OR('TSA Input'!J1881=\"Yes\",'TSA Input'!J1881=\"Contingent\"),'TSA Input'!G1881,\"\"))","v":""},{"$f":"IF('TSA Input'!J1881=\"\",\"\",IF(OR('TSA Input'!J1881=\"Yes\",'TSA Input'!J1881=\"Contingent\"),'TSA Input'!F1881,\"\"))","v":""},"",{"$f":"IF('TSA Input'!J1881=\"\",\"\",IF(OR('TSA Input'!J1881=\"Yes\",'TSA Input'!J1881=\"Contingent\"),'TSA Input'!D1881,\"\"))","v":""},{"$f":"IF('TSA Input'!J1881=\"\",\"\",IF(OR('TSA Input'!J1881=\"Yes\",'TSA Input'!J1881=\"Contingent\"),'TSA Input'!G1881,\"\"))","v":""},{"$f":"IF('TSA Input'!J1881=\"\",\"\",IF(OR('TSA Input'!J1881=\"Yes\",'TSA Input'!J1881=\"Contingent\"),'TSA Input'!F1881,\"\"))","v":""},"","Required","Required"]
["",null,{"$f":"IF('TSA Input'!J1882=\"\",\"\",IF(OR('TSA Input'!J1882=\"Yes\",'TSA Input'!J1882=\"Contingent\"),'TSA Input'!B1882,\"Ineligible\"))","v":""},{"$f":"IF('TSA Input'!J1882=\"\",\"\",IF(OR('TSA Input'!J1882=\"Yes\",'TSA Input'!J1882=\"Contingent\"),'TSA Input'!I1882,\"\"))","v":""},{"$f":"IF('TSA Input'!J1882=\"\",\"\",IF(OR('TSA Input'!J1882=\"Yes\",'TSA Input'!J1882=\"Contingent\"),'TSA Input'!C1882,\"\"))","v":""},{"$f":"IF('TSA Input'!J1882=\"\",\"\",IF(OR('TSA Input'!J1882=\"Yes\",'TSA Input'!J1882=\"Contingent\"),'TSA Input'!D1882,\"\"))","v":""},{"$f":"IF('TSA Input'!J1882=\"\",\"\",IF(OR('TSA Input'!J1882=\"Yes\",'TSA Input'!J1882=\"Contingent\"),'TSA Input'!G1882,\"\"))","v":""},{"$f":"IF('TSA Input'!J1882=\"\",\"\",IF(OR('TSA Input'!J1882=\"Yes\",'TSA Input'!J1882=\"Contingent\"),'TSA Input'!F1882,\"\"))","v":""},"",{"$f":"IF('TSA Input'!J1882=\"\",\"\",IF(OR('TSA Input'!J1882=\"Yes\",'TSA Input'!J1882=\"Contingent\"),'TSA Input'!D1882,\"\"))","v":""},{"$f":"IF('TSA Input'!J1882=\"\",\"\",IF(OR('TSA Input'!J1882=\"Yes\",'TSA Input'!J1882=\"Contingent\"),'TSA Input'!G1882,\"\"))","v":""},{"$f":"IF('TSA Input'!J1882=\"\",\"\",IF(OR('TSA Input'!J1882=\"Yes\",'TSA Input'!J1882=\"Contingent\"),'TSA Input'!F1882,\"\"))","v":""},"","Required","Required"]
["",null,{"$f":"IF('TSA Input'!J1883=\"\",\"\",IF(OR('TSA Input'!J1883=\"Yes\",'TSA Input'!J1883=\"Contingent\"),'TSA Input'!B1883,\"Ineligible\"))","v":""},{"$f":"IF('TSA Input'!J1883=\"\",\"\",IF(OR('TSA Input'!J1883=\"Yes\",'TSA Input'!J1883=\"Contingent\"),'TSA Input'!I1883,\"\"))","v":""},{"$f":"IF('TSA Input'!J1883=\"\",\"\",IF(OR('TSA Input'!J1883=\"Yes\",'TSA Input'!J1883=\"Contingent\"),'TSA Input'!C1883,\"\"))","v":""},{"$f":"IF('TSA Input'!J1883=\"\",\"\",IF(OR('TSA Input'!J1883=\"Yes\",'TSA Input'!J1883=\"Contingent\"),'TSA Input'!D1883,\"\"))","v":""},{"$f":"IF('TSA Input'!J1883=\"\",\"\",IF(OR('TSA Input'!J1883=\"Yes\",'TSA Input'!J1883=\"Contingent\"),'TSA Input'!G1883,\"\"))","v":""},{"$f":"IF('TSA Input'!J1883=\"\",\"\",IF(OR('TSA Input'!J1883=\"Yes\",'TSA Input'!J1883=\"Contingent\"),'TSA Input'!F1883,\"\"))","v":""},"",{"$f":"IF('TSA Input'!J1883=\"\",\"\",IF(OR('TSA Input'!J1883=\"Yes\",'TSA Input'!J1883=\"Contingent\"),'TSA Input'!D1883,\"\"))","v":""},{"$f":"IF('TSA Input'!J1883=\"\",\"\",IF(OR('TSA Input'!J1883=\"Yes\",'TSA Input'!J1883=\"Contingent\"),'TSA Input'!G1883,\"\"))","v":""},{"$f":"IF('TSA Input'!J1883=\"\",\"\",IF(OR('TSA Input'!J1883=\"Yes\",'TSA Input'!J1883=\"Contingent\"),'TSA Input'!F1883,\"\"))","v":""},"","Required","Required"]
["",null,{"$f":"IF('TSA Input'!J1884=\"\",\"\",IF(OR('TSA Input'!J1884=\"Yes\",'TSA Input'!J1884=\"Contingent\"),'TSA Input'!B1884,\"Ineligible\"))","v":""},{"$f":"IF('TSA Input'!J1884=\"\",\"\",IF(OR('TSA Input'!J1884=\"Yes\",'TSA Input'!J1884=\"Contingent\"),'TSA Input'!I1884,\"\"))","v":""},{"$f":"IF('TSA Input'!J1884=\"\",\"\",IF(OR('TSA Input'!J1884=\"Yes\",'TSA Input'!J1884=\"Contingent\"),'TSA Input'!C1884,\"\"))","v":""},{"$f":"IF('TSA Input'!J1884=\"\",\"\",IF(OR('TSA Input'!J1884=\"Yes\",'TSA Input'!J1884=\"Contingent\"),'TSA Input'!D1884,\"\"))","v":""},{"$f":"IF('TSA Input'!J1884=\"\",\"\",IF(OR('TSA Input'!J1884=\"Yes\",'TSA Input'!J1884=\"Contingent\"),'TSA Input'!G1884,\"\"))","v":""},{"$f":"IF('TSA Input'!J1884=\"\",\"\",IF(OR('TSA Input'!J1884=\"Yes\",'TSA Input'!J1884=\"Contingent\"),'TSA Input'!F1884,\"\"))","v":""},"",{"$f":"IF('TSA Input'!J1884=\"\",\"\",IF(OR('TSA Input'!J1884=\"Yes\",'TSA Input'!J1884=\"Contingent\"),'TSA Input'!D1884,\"\"))","v":""},{"$f":"IF('TSA Input'!J1884=\"\",\"\",IF(OR('TSA Input'!J1884=\"Yes\",'TSA Input'!J1884=\"Contingent\"),'TSA Input'!G1884,\"\"))","v":""},{"$f":"IF('TSA Input'!J1884=\"\",\"\",IF(OR('TSA Input'!J1884=\"Yes\",'TSA Input'!J1884=\"Contingent\"),'TSA Input'!F1884,\"\"))","v":""},"","Required","Required"]
["",null,{"$f":"IF('TSA Input'!J1885=\"\",\"\",IF(OR('TSA Input'!J1885=\"Yes\",'TSA Input'!J1885=\"Contingent\"),'TSA Input'!B1885,\"Ineligible\"))","v":""},{"$f":"IF('TSA Input'!J1885=\"\",\"\",IF(OR('TSA Input'!J1885=\"Yes\",'TSA Input'!J1885=\"Contingent\"),'TSA Input'!I1885,\"\"))","v":""},{"$f":"IF('TSA Input'!J1885=\"\",\"\",IF(OR('TSA Input'!J1885=\"Yes\",'TSA Input'!J1885=\"Contingent\"),'TSA Input'!C1885,\"\"))","v":""},{"$f":"IF('TSA Input'!J1885=\"\",\"\",IF(OR('TSA Input'!J1885=\"Yes\",'TSA Input'!J1885=\"Contingent\"),'TSA Input'!D1885,\"\"))","v":""},{"$f":"IF('TSA Input'!J1885=\"\",\"\",IF(OR('TSA Input'!J1885=\"Yes\",'TSA Input'!J1885=\"Contingent\"),'TSA Input'!G1885,\"\"))","v":""},{"$f":"IF('TSA Input'!J1885=\"\",\"\",IF(OR('TSA Input'!J1885=\"Yes\",'TSA Input'!J1885=\"Contingent\"),'TSA Input'!F1885,\"\"))","v":""},"",{"$f":"IF('TSA Input'!J1885=\"\",\"\",IF(OR('TSA Input'!J1885=\"Yes\",'TSA Input'!J1885=\"Contingent\"),'TSA Input'!D1885,\"\"))","v":""},{"$f":"IF('TSA Input'!J1885=\"\",\"\",IF(OR('TSA Input'!J1885=\"Yes\",'TSA Input'!J1885=\"Contingent\"),'TSA Input'!G1885,\"\"))","v":""},{"$f":"IF('TSA Input'!J1885=\"\",\"\",IF(OR('TSA Input'!J1885=\"Yes\",'TSA Input'!J1885=\"Contingent\"),'TSA Input'!F1885,\"\"))","v":""},"","Required","Required"]
["",null,{"$f":"IF('TSA Input'!J1886=\"\",\"\",IF(OR('TSA Input'!J1886=\"Yes\",'TSA Input'!J1886=\"Contingent\"),'TSA Input'!B1886,\"Ineligible\"))","v":""},{"$f":"IF('TSA Input'!J1886=\"\",\"\",IF(OR('TSA Input'!J1886=\"Yes\",'TSA Input'!J1886=\"Contingent\"),'TSA Input'!I1886,\"\"))","v":""},{"$f":"IF('TSA Input'!J1886=\"\",\"\",IF(OR('TSA Input'!J1886=\"Yes\",'TSA Input'!J1886=\"Contingent\"),'TSA Input'!C1886,\"\"))","v":""},{"$f":"IF('TSA Input'!J1886=\"\",\"\",IF(OR('TSA Input'!J1886=\"Yes\",'TSA Input'!J1886=\"Contingent\"),'TSA Input'!D1886,\"\"))","v":""},{"$f":"IF('TSA Input'!J1886=\"\",\"\",IF(OR('TSA Input'!J1886=\"Yes\",'TSA Input'!J1886=\"Contingent\"),'TSA Input'!G1886,\"\"))","v":""},{"$f":"IF('TSA Input'!J1886=\"\",\"\",IF(OR('TSA Input'!J1886=\"Yes\",'TSA Input'!J1886=\"Contingent\"),'TSA Input'!F1886,\"\"))","v":""},"",{"$f":"IF('TSA Input'!J1886=\"\",\"\",IF(OR('TSA Input'!J1886=\"Yes\",'TSA Input'!J1886=\"Contingent\"),'TSA Input'!D1886,\"\"))","v":""},{"$f":"IF('TSA Input'!J1886=\"\",\"\",IF(OR('TSA Input'!J1886=\"Yes\",'TSA Input'!J1886=\"Contingent\"),'TSA Input'!G1886,\"\"))","v":""},{"$f":"IF('TSA Input'!J1886=\"\",\"\",IF(OR('TSA Input'!J1886=\"Yes\",'TSA Input'!J1886=\"Contingent\"),'TSA Input'!F1886,\"\"))","v":""},"","Required","Required"]
["",null,{"$f":"IF('TSA Input'!J1887=\"\",\"\",IF(OR('TSA Input'!J1887=\"Yes\",'TSA Input'!J1887=\"Contingent\"),'TSA Input'!B1887,\"Ineligible\"))","v":""},{"$f":"IF('TSA Input'!J1887=\"\",\"\",IF(OR('TSA Input'!J1887=\"Yes\",'TSA Input'!J1887=\"Contingent\"),'TSA Input'!I1887,\"\"))","v":""},{"$f":"IF('TSA Input'!J1887=\"\",\"\",IF(OR('TSA Input'!J1887=\"Yes\",'TSA Input'!J1887=\"Contingent\"),'TSA Input'!C1887,\"\"))","v":""},{"$f":"IF('TSA Input'!J1887=\"\",\"\",IF(OR('TSA Input'!J1887=\"Yes\",'TSA Input'!J1887=\"Contingent\"),'TSA Input'!D1887,\"\"))","v":""},{"$f":"IF('TSA Input'!J1887=\"\",\"\",IF(OR('TSA Input'!J1887=\"Yes\",'TSA Input'!J1887=\"Contingent\"),'TSA Input'!G1887,\"\"))","v":""},{"$f":"IF('TSA Input'!J1887=\"\",\"\",IF(OR('TSA Input'!J1887=\"Yes\",'TSA Input'!J1887=\"Contingent\"),'TSA Input'!F1887,\"\"))","v":""},"",{"$f":"IF('TSA Input'!J1887=\"\",\"\",IF(OR('TSA Input'!J1887=\"Yes\",'TSA Input'!J1887=\"Contingent\"),'TSA Input'!D1887,\"\"))","v":""},{"$f":"IF('TSA Input'!J1887=\"\",\"\",IF(OR('TSA Input'!J1887=\"Yes\",'TSA Input'!J1887=\"Contingent\"),'TSA Input'!G1887,\"\"))","v":""},{"$f":"IF('TSA Input'!J1887=\"\",\"\",IF(OR('TSA Input'!J1887=\"Yes\",'TSA Input'!J1887=\"Contingent\"),'TSA Input'!F1887,\"\"))","v":""},"","Required","Required"]
["",null,{"$f":"IF('TSA Input'!J1888=\"\",\"\",IF(OR('TSA Input'!J1888=\"Yes\",'TSA Input'!J1888=\"Contingent\"),'TSA Input'!B1888,\"Ineligible\"))","v":""},{"$f":"IF('TSA Input'!J1888=\"\",\"\",IF(OR('TSA Input'!J1888=\"Yes\",'TSA Input'!J1888=\"Contingent\"),'TSA Input'!I1888,\"\"))","v":""},{"$f":"IF('TSA Input'!J1888=\"\",\"\",IF(OR('TSA Input'!J1888=\"Yes\",'TSA Input'!J1888=\"Contingent\"),'TSA Input'!C1888,\"\"))","v":""},{"$f":"IF('TSA Input'!J1888=\"\",\"\",IF(OR('TSA Input'!J1888=\"Yes\",'TSA Input'!J1888=\"Contingent\"),'TSA Input'!D1888,\"\"))","v":""},{"$f":"IF('TSA Input'!J1888=\"\",\"\",IF(OR('TSA Input'!J1888=\"Yes\",'TSA Input'!J1888=\"Contingent\"),'TSA Input'!G1888,\"\"))","v":""},{"$f":"IF('TSA Input'!J1888=\"\",\"\",IF(OR('TSA Input'!J1888=\"Yes\",'TSA Input'!J1888=\"Contingent\"),'TSA Input'!F1888,\"\"))","v":""},"",{"$f":"IF('TSA Input'!J1888=\"\",\"\",IF(OR('TSA Input'!J1888=\"Yes\",'TSA Input'!J1888=\"Contingent\"),'TSA Input'!D1888,\"\"))","v":""},{"$f":"IF('TSA Input'!J1888=\"\",\"\",IF(OR('TSA Input'!J1888=\"Yes\",'TSA Input'!J1888=\"Contingent\"),'TSA Input'!G1888,\"\"))","v":""},{"$f":"IF('TSA Input'!J1888=\"\",\"\",IF(OR('TSA Input'!J1888=\"Yes\",'TSA Input'!J1888=\"Contingent\"),'TSA Input'!F1888,\"\"))","v":""},"","Required","Required"]
["",null,{"$f":"IF('TSA Input'!J1889=\"\",\"\",IF(OR('TSA Input'!J1889=\"Yes\",'TSA Input'!J1889=\"Contingent\"),'TSA Input'!B1889,\"Ineligible\"))","v":""},{"$f":"IF('TSA Input'!J1889=\"\",\"\",IF(OR('TSA Input'!J1889=\"Yes\",'TSA Input'!J1889=\"Contingent\"),'TSA Input'!I1889,\"\"))","v":""},{"$f":"IF('TSA Input'!J1889=\"\",\"\",IF(OR('TSA Input'!J1889=\"Yes\",'TSA Input'!J1889=\"Contingent\"),'TSA Input'!C1889,\"\"))","v":""},{"$f":"IF('TSA Input'!J1889=\"\",\"\",IF(OR('TSA Input'!J1889=\"Yes\",'TSA Input'!J1889=\"Contingent\"),'TSA Input'!D1889,\"\"))","v":""},{"$f":"IF('TSA Input'!J1889=\"\",\"\",IF(OR('TSA Input'!J1889=\"Yes\",'TSA Input'!J1889=\"Contingent\"),'TSA Input'!G1889,\"\"))","v":""},{"$f":"IF('TSA Input'!J1889=\"\",\"\",IF(OR('TSA Input'!J1889=\"Yes\",'TSA Input'!J1889=\"Contingent\"),'TSA Input'!F1889,\"\"))","v":""},"",{"$f":"IF('TSA Input'!J1889=\"\",\"\",IF(OR('TSA Input'!J1889=\"Yes\",'TSA Input'!J1889=\"Contingent\"),'TSA Input'!D1889,\"\"))","v":""},{"$f":"IF('TSA Input'!J1889=\"\",\"\",IF(OR('TSA Input'!J1889=\"Yes\",'TSA Input'!J1889=\"Contingent\"),'TSA Input'!G1889,\"\"))","v":""},{"$f":"IF('TSA Input'!J1889=\"\",\"\",IF(OR('TSA Input'!J1889=\"Yes\",'TSA Input'!J1889=\"Contingent\"),'TSA Input'!F1889,\"\"))","v":""},"","Required","Required"]
["",null,{"$f":"IF('TSA Input'!J1890=\"\",\"\",IF(OR('TSA Input'!J1890=\"Yes\",'TSA Input'!J1890=\"Contingent\"),'TSA Input'!B1890,\"Ineligible\"))","v":""},{"$f":"IF('TSA Input'!J1890=\"\",\"\",IF(OR('TSA Input'!J1890=\"Yes\",'TSA Input'!J1890=\"Contingent\"),'TSA Input'!I1890,\"\"))","v":""},{"$f":"IF('TSA Input'!J1890=\"\",\"\",IF(OR('TSA Input'!J1890=\"Yes\",'TSA Input'!J1890=\"Contingent\"),'TSA Input'!C1890,\"\"))","v":""},{"$f":"IF('TSA Input'!J1890=\"\",\"\",IF(OR('TSA Input'!J1890=\"Yes\",'TSA Input'!J1890=\"Contingent\"),'TSA Input'!D1890,\"\"))","v":""},{"$f":"IF('TSA Input'!J1890=\"\",\"\",IF(OR('TSA Input'!J1890=\"Yes\",'TSA Input'!J1890=\"Contingent\"),'TSA Input'!G1890,\"\"))","v":""},{"$f":"IF('TSA Input'!J1890=\"\",\"\",IF(OR('TSA Input'!J1890=\"Yes\",'TSA Input'!J1890=\"Contingent\"),'TSA Input'!F1890,\"\"))","v":""},"",{"$f":"IF('TSA Input'!J1890=\"\",\"\",IF(OR('TSA Input'!J1890=\"Yes\",'TSA Input'!J1890=\"Contingent\"),'TSA Input'!D1890,\"\"))","v":""},{"$f":"IF('TSA Input'!J1890=\"\",\"\",IF(OR('TSA Input'!J1890=\"Yes\",'TSA Input'!J1890=\"Contingent\"),'TSA Input'!G1890,\"\"))","v":""},{"$f":"IF('TSA Input'!J1890=\"\",\"\",IF(OR('TSA Input'!J1890=\"Yes\",'TSA Input'!J1890=\"Contingent\"),'TSA Input'!F1890,\"\"))","v":""},"","Required","Required"]
["",null,{"$f":"IF('TSA Input'!J1891=\"\",\"\",IF(OR('TSA Input'!J1891=\"Yes\",'TSA Input'!J1891=\"Contingent\"),'TSA Input'!B1891,\"Ineligible\"))","v":""},{"$f":"IF('TSA Input'!J1891=\"\",\"\",IF(OR('TSA Input'!J1891=\"Yes\",'TSA Input'!J1891=\"Contingent\"),'TSA Input'!I1891,\"\"))","v":""},{"$f":"IF('TSA Input'!J1891=\"\",\"\",IF(OR('TSA Input'!J1891=\"Yes\",'TSA Input'!J1891=\"Contingent\"),'TSA Input'!C1891,\"\"))","v":""},{"$f":"IF('TSA Input'!J1891=\"\",\"\",IF(OR('TSA Input'!J1891=\"Yes\",'TSA Input'!J1891=\"Contingent\"),'TSA Input'!D1891,\"\"))","v":""},{"$f":"IF('TSA Input'!J1891=\"\",\"\",IF(OR('TSA Input'!J1891=\"Yes\",'TSA Input'!J1891=\"Contingent\"),'TSA Input'!G1891,\"\"))","v":""},{"$f":"IF('TSA Input'!J1891=\"\",\"\",IF(OR('TSA Input'!J1891=\"Yes\",'TSA Input'!J1891=\"Contingent\"),'TSA Input'!F1891,\"\"))","v":""},"",{"$f":"IF('TSA Input'!J1891=\"\",\"\",IF(OR('TSA Input'!J1891=\"Yes\",'TSA Input'!J1891=\"Contingent\"),'TSA Input'!D1891,\"\"))","v":""},{"$f":"IF('TSA Input'!J1891=\"\",\"\",IF(OR('TSA Input'!J1891=\"Yes\",'TSA Input'!J1891=\"Contingent\"),'TSA Input'!G1891,\"\"))","v":""},{"$f":"IF('TSA Input'!J1891=\"\",\"\",IF(OR('TSA Input'!J1891=\"Yes\",'TSA Input'!J1891=\"Contingent\"),'TSA Input'!F1891,\"\"))","v":""},"","Required","Required"]
["",null,{"$f":"IF('TSA Input'!J1892=\"\",\"\",IF(OR('TSA Input'!J1892=\"Yes\",'TSA Input'!J1892=\"Contingent\"),'TSA Input'!B1892,\"Ineligible\"))","v":""},{"$f":"IF('TSA Input'!J1892=\"\",\"\",IF(OR('TSA Input'!J1892=\"Yes\",'TSA Input'!J1892=\"Contingent\"),'TSA Input'!I1892,\"\"))","v":""},{"$f":"IF('TSA Input'!J1892=\"\",\"\",IF(OR('TSA Input'!J1892=\"Yes\",'TSA Input'!J1892=\"Contingent\"),'TSA Input'!C1892,\"\"))","v":""},{"$f":"IF('TSA Input'!J1892=\"\",\"\",IF(OR('TSA Input'!J1892=\"Yes\",'TSA Input'!J1892=\"Contingent\"),'TSA Input'!D1892,\"\"))","v":""},{"$f":"IF('TSA Input'!J1892=\"\",\"\",IF(OR('TSA Input'!J1892=\"Yes\",'TSA Input'!J1892=\"Contingent\"),'TSA Input'!G1892,\"\"))","v":""},{"$f":"IF('TSA Input'!J1892=\"\",\"\",IF(OR('TSA Input'!J1892=\"Yes\",'TSA Input'!J1892=\"Contingent\"),'TSA Input'!F1892,\"\"))","v":""},"",{"$f":"IF('TSA Input'!J1892=\"\",\"\",IF(OR('TSA Input'!J1892=\"Yes\",'TSA Input'!J1892=\"Contingent\"),'TSA Input'!D1892,\"\"))","v":""},{"$f":"IF('TSA Input'!J1892=\"\",\"\",IF(OR('TSA Input'!J1892=\"Yes\",'TSA Input'!J1892=\"Contingent\"),'TSA Input'!G1892,\"\"))","v":""},{"$f":"IF('TSA Input'!J1892=\"\",\"\",IF(OR('TSA Input'!J1892=\"Yes\",'TSA Input'!J1892=\"Contingent\"),'TSA Input'!F1892,\"\"))","v":""},"","Required","Required"]
["",null,{"$f":"IF('TSA Input'!J1893=\"\",\"\",IF(OR('TSA Input'!J1893=\"Yes\",'TSA Input'!J1893=\"Contingent\"),'TSA Input'!B1893,\"Ineligible\"))","v":""},{"$f":"IF('TSA Input'!J1893=\"\",\"\",IF(OR('TSA Input'!J1893=\"Yes\",'TSA Input'!J1893=\"Contingent\"),'TSA Input'!I1893,\"\"))","v":""},{"$f":"IF('TSA Input'!J1893=\"\",\"\",IF(OR('TSA Input'!J1893=\"Yes\",'TSA Input'!J1893=\"Contingent\"),'TSA Input'!C1893,\"\"))","v":""},{"$f":"IF('TSA Input'!J1893=\"\",\"\",IF(OR('TSA Input'!J1893=\"Yes\",'TSA Input'!J1893=\"Contingent\"),'TSA Input'!D1893,\"\"))","v":""},{"$f":"IF('TSA Input'!J1893=\"\",\"\",IF(OR('TSA Input'!J1893=\"Yes\",'TSA Input'!J1893=\"Contingent\"),'TSA Input'!G1893,\"\"))","v":""},{"$f":"IF('TSA Input'!J1893=\"\",\"\",IF(OR('TSA Input'!J1893=\"Yes\",'TSA Input'!J1893=\"Contingent\"),'TSA Input'!F1893,\"\"))","v":""},"",{"$f":"IF('TSA Input'!J1893=\"\",\"\",IF(OR('TSA Input'!J1893=\"Yes\",'TSA Input'!J1893=\"Contingent\"),'TSA Input'!D1893,\"\"))","v":""},{"$f":"IF('TSA Input'!J1893=\"\",\"\",IF(OR('TSA Input'!J1893=\"Yes\",'TSA Input'!J1893=\"Contingent\"),'TSA Input'!G1893,\"\"))","v":""},{"$f":"IF('TSA Input'!J1893=\"\",\"\",IF(OR('TSA Input'!J1893=\"Yes\",'TSA Input'!J1893=\"Contingent\"),'TSA Input'!F1893,\"\"))","v":""},"","Required","Required"]
["",null,{"$f":"IF('TSA Input'!J1894=\"\",\"\",IF(OR('TSA Input'!J1894=\"Yes\",'TSA Input'!J1894=\"Contingent\"),'TSA Input'!B1894,\"Ineligible\"))","v":""},{"$f":"IF('TSA Input'!J1894=\"\",\"\",IF(OR('TSA Input'!J1894=\"Yes\",'TSA Input'!J1894=\"Contingent\"),'TSA Input'!I1894,\"\"))","v":""},{"$f":"IF('TSA Input'!J1894=\"\",\"\",IF(OR('TSA Input'!J1894=\"Yes\",'TSA Input'!J1894=\"Contingent\"),'TSA Input'!C1894,\"\"))","v":""},{"$f":"IF('TSA Input'!J1894=\"\",\"\",IF(OR('TSA Input'!J1894=\"Yes\",'TSA Input'!J1894=\"Contingent\"),'TSA Input'!D1894,\"\"))","v":""},{"$f":"IF('TSA Input'!J1894=\"\",\"\",IF(OR('TSA Input'!J1894=\"Yes\",'TSA Input'!J1894=\"Contingent\"),'TSA Input'!G1894,\"\"))","v":""},{"$f":"IF('TSA Input'!J1894=\"\",\"\",IF(OR('TSA Input'!J1894=\"Yes\",'TSA Input'!J1894=\"Contingent\"),'TSA Input'!F1894,\"\"))","v":""},"",{"$f":"IF('TSA Input'!J1894=\"\",\"\",IF(OR('TSA Input'!J1894=\"Yes\",'TSA Input'!J1894=\"Contingent\"),'TSA Input'!D1894,\"\"))","v":""},{"$f":"IF('TSA Input'!J1894=\"\",\"\",IF(OR('TSA Input'!J1894=\"Yes\",'TSA Input'!J1894=\"Contingent\"),'TSA Input'!G1894,\"\"))","v":""},{"$f":"IF('TSA Input'!J1894=\"\",\"\",IF(OR('TSA Input'!J1894=\"Yes\",'TSA Input'!J1894=\"Contingent\"),'TSA Input'!F1894,\"\"))","v":""},"","Required","Required"]
["",null,{"$f":"IF('TSA Input'!J1895=\"\",\"\",IF(OR('TSA Input'!J1895=\"Yes\",'TSA Input'!J1895=\"Contingent\"),'TSA Input'!B1895,\"Ineligible\"))","v":""},{"$f":"IF('TSA Input'!J1895=\"\",\"\",IF(OR('TSA Input'!J1895=\"Yes\",'TSA Input'!J1895=\"Contingent\"),'TSA Input'!I1895,\"\"))","v":""},{"$f":"IF('TSA Input'!J1895=\"\",\"\",IF(OR('TSA Input'!J1895=\"Yes\",'TSA Input'!J1895=\"Contingent\"),'TSA Input'!C1895,\"\"))","v":""},{"$f":"IF('TSA Input'!J1895=\"\",\"\",IF(OR('TSA Input'!J1895=\"Yes\",'TSA Input'!J1895=\"Contingent\"),'TSA Input'!D1895,\"\"))","v":""},{"$f":"IF('TSA Input'!J1895=\"\",\"\",IF(OR('TSA Input'!J1895=\"Yes\",'TSA Input'!J1895=\"Contingent\"),'TSA Input'!G1895,\"\"))","v":""},{"$f":"IF('TSA Input'!J1895=\"\",\"\",IF(OR('TSA Input'!J1895=\"Yes\",'TSA Input'!J1895=\"Contingent\"),'TSA Input'!F1895,\"\"))","v":""},"",{"$f":"IF('TSA Input'!J1895=\"\",\"\",IF(OR('TSA Input'!J1895=\"Yes\",'TSA Input'!J1895=\"Contingent\"),'TSA Input'!D1895,\"\"))","v":""},{"$f":"IF('TSA Input'!J1895=\"\",\"\",IF(OR('TSA Input'!J1895=\"Yes\",'TSA Input'!J1895=\"Contingent\"),'TSA Input'!G1895,\"\"))","v":""},{"$f":"IF('TSA Input'!J1895=\"\",\"\",IF(OR('TSA Input'!J1895=\"Yes\",'TSA Input'!J1895=\"Contingent\"),'TSA Input'!F1895,\"\"))","v":""},"","Required","Required"]
["",null,{"$f":"IF('TSA Input'!J1896=\"\",\"\",IF(OR('TSA Input'!J1896=\"Yes\",'TSA Input'!J1896=\"Contingent\"),'TSA Input'!B1896,\"Ineligible\"))","v":""},{"$f":"IF('TSA Input'!J1896=\"\",\"\",IF(OR('TSA Input'!J1896=\"Yes\",'TSA Input'!J1896=\"Contingent\"),'TSA Input'!I1896,\"\"))","v":""},{"$f":"IF('TSA Input'!J1896=\"\",\"\",IF(OR('TSA Input'!J1896=\"Yes\",'TSA Input'!J1896=\"Contingent\"),'TSA Input'!C1896,\"\"))","v":""},{"$f":"IF('TSA Input'!J1896=\"\",\"\",IF(OR('TSA Input'!J1896=\"Yes\",'TSA Input'!J1896=\"Contingent\"),'TSA Input'!D1896,\"\"))","v":""},{"$f":"IF('TSA Input'!J1896=\"\",\"\",IF(OR('TSA Input'!J1896=\"Yes\",'TSA Input'!J1896=\"Contingent\"),'TSA Input'!G1896,\"\"))","v":""},{"$f":"IF('TSA Input'!J1896=\"\",\"\",IF(OR('TSA Input'!J1896=\"Yes\",'TSA Input'!J1896=\"Contingent\"),'TSA Input'!F1896,\"\"))","v":""},"",{"$f":"IF('TSA Input'!J1896=\"\",\"\",IF(OR('TSA Input'!J1896=\"Yes\",'TSA Input'!J1896=\"Contingent\"),'TSA Input'!D1896,\"\"))","v":""},{"$f":"IF('TSA Input'!J1896=\"\",\"\",IF(OR('TSA Input'!J1896=\"Yes\",'TSA Input'!J1896=\"Contingent\"),'TSA Input'!G1896,\"\"))","v":""},{"$f":"IF('TSA Input'!J1896=\"\",\"\",IF(OR('TSA Input'!J1896=\"Yes\",'TSA Input'!J1896=\"Contingent\"),'TSA Input'!F1896,\"\"))","v":""},"","Required","Required"]
["",null,{"$f":"IF('TSA Input'!J1897=\"\",\"\",IF(OR('TSA Input'!J1897=\"Yes\",'TSA Input'!J1897=\"Contingent\"),'TSA Input'!B1897,\"Ineligible\"))","v":""},{"$f":"IF('TSA Input'!J1897=\"\",\"\",IF(OR('TSA Input'!J1897=\"Yes\",'TSA Input'!J1897=\"Contingent\"),'TSA Input'!I1897,\"\"))","v":""},{"$f":"IF('TSA Input'!J1897=\"\",\"\",IF(OR('TSA Input'!J1897=\"Yes\",'TSA Input'!J1897=\"Contingent\"),'TSA Input'!C1897,\"\"))","v":""},{"$f":"IF('TSA Input'!J1897=\"\",\"\",IF(OR('TSA Input'!J1897=\"Yes\",'TSA Input'!J1897=\"Contingent\"),'TSA Input'!D1897,\"\"))","v":""},{"$f":"IF('TSA Input'!J1897=\"\",\"\",IF(OR('TSA Input'!J1897=\"Yes\",'TSA Input'!J1897=\"Contingent\"),'TSA Input'!G1897,\"\"))","v":""},{"$f":"IF('TSA Input'!J1897=\"\",\"\",IF(OR('TSA Input'!J1897=\"Yes\",'TSA Input'!J1897=\"Contingent\"),'TSA Input'!F1897,\"\"))","v":""},"",{"$f":"IF('TSA Input'!J1897=\"\",\"\",IF(OR('TSA Input'!J1897=\"Yes\",'TSA Input'!J1897=\"Contingent\"),'TSA Input'!D1897,\"\"))","v":""},{"$f":"IF('TSA Input'!J1897=\"\",\"\",IF(OR('TSA Input'!J1897=\"Yes\",'TSA Input'!J1897=\"Contingent\"),'TSA Input'!G1897,\"\"))","v":""},{"$f":"IF('TSA Input'!J1897=\"\",\"\",IF(OR('TSA Input'!J1897=\"Yes\",'TSA Input'!J1897=\"Contingent\"),'TSA Input'!F1897,\"\"))","v":""},"","Required","Required"]
["",null,{"$f":"IF('TSA Input'!J1898=\"\",\"\",IF(OR('TSA Input'!J1898=\"Yes\",'TSA Input'!J1898=\"Contingent\"),'TSA Input'!B1898,\"Ineligible\"))","v":""},{"$f":"IF('TSA Input'!J1898=\"\",\"\",IF(OR('TSA Input'!J1898=\"Yes\",'TSA Input'!J1898=\"Contingent\"),'TSA Input'!I1898,\"\"))","v":""},{"$f":"IF('TSA Input'!J1898=\"\",\"\",IF(OR('TSA Input'!J1898=\"Yes\",'TSA Input'!J1898=\"Contingent\"),'TSA Input'!C1898,\"\"))","v":""},{"$f":"IF('TSA Input'!J1898=\"\",\"\",IF(OR('TSA Input'!J1898=\"Yes\",'TSA Input'!J1898=\"Contingent\"),'TSA Input'!D1898,\"\"))","v":""},{"$f":"IF('TSA Input'!J1898=\"\",\"\",IF(OR('TSA Input'!J1898=\"Yes\",'TSA Input'!J1898=\"Contingent\"),'TSA Input'!G1898,\"\"))","v":""},{"$f":"IF('TSA Input'!J1898=\"\",\"\",IF(OR('TSA Input'!J1898=\"Yes\",'TSA Input'!J1898=\"Contingent\"),'TSA Input'!F1898,\"\"))","v":""},"",{"$f":"IF('TSA Input'!J1898=\"\",\"\",IF(OR('TSA Input'!J1898=\"Yes\",'TSA Input'!J1898=\"Contingent\"),'TSA Input'!D1898,\"\"))","v":""},{"$f":"IF('TSA Input'!J1898=\"\",\"\",IF(OR('TSA Input'!J1898=\"Yes\",'TSA Input'!J1898=\"Contingent\"),'TSA Input'!G1898,\"\"))","v":""},{"$f":"IF('TSA Input'!J1898=\"\",\"\",IF(OR('TSA Input'!J1898=\"Yes\",'TSA Input'!J1898=\"Contingent\"),'TSA Input'!F1898,\"\"))","v":""},"","Required","Required"]
["",null,{"$f":"IF('TSA Input'!J1899=\"\",\"\",IF(OR('TSA Input'!J1899=\"Yes\",'TSA Input'!J1899=\"Contingent\"),'TSA Input'!B1899,\"Ineligible\"))","v":""},{"$f":"IF('TSA Input'!J1899=\"\",\"\",IF(OR('TSA Input'!J1899=\"Yes\",'TSA Input'!J1899=\"Contingent\"),'TSA Input'!I1899,\"\"))","v":""},{"$f":"IF('TSA Input'!J1899=\"\",\"\",IF(OR('TSA Input'!J1899=\"Yes\",'TSA Input'!J1899=\"Contingent\"),'TSA Input'!C1899,\"\"))","v":""},{"$f":"IF('TSA Input'!J1899=\"\",\"\",IF(OR('TSA Input'!J1899=\"Yes\",'TSA Input'!J1899=\"Contingent\"),'TSA Input'!D1899,\"\"))","v":""},{"$f":"IF('TSA Input'!J1899=\"\",\"\",IF(OR('TSA Input'!J1899=\"Yes\",'TSA Input'!J1899=\"Contingent\"),'TSA Input'!G1899,\"\"))","v":""},{"$f":"IF('TSA Input'!J1899=\"\",\"\",IF(OR('TSA Input'!J1899=\"Yes\",'TSA Input'!J1899=\"Contingent\"),'TSA Input'!F1899,\"\"))","v":""},"",{"$f":"IF('TSA Input'!J1899=\"\",\"\",IF(OR('TSA Input'!J1899=\"Yes\",'TSA Input'!J1899=\"Contingent\"),'TSA Input'!D1899,\"\"))","v":""},{"$f":"IF('TSA Input'!J1899=\"\",\"\",IF(OR('TSA Input'!J1899=\"Yes\",'TSA Input'!J1899=\"Contingent\"),'TSA Input'!G1899,\"\"))","v":""},{"$f":"IF('TSA Input'!J1899=\"\",\"\",IF(OR('TSA Input'!J1899=\"Yes\",'TSA Input'!J1899=\"Contingent\"),'TSA Input'!F1899,\"\"))","v":""},"","Required","Required"]
["",null,{"$f":"IF('TSA Input'!J1900=\"\",\"\",IF(OR('TSA Input'!J1900=\"Yes\",'TSA Input'!J1900=\"Contingent\"),'TSA Input'!B1900,\"Ineligible\"))","v":""},{"$f":"IF('TSA Input'!J1900=\"\",\"\",IF(OR('TSA Input'!J1900=\"Yes\",'TSA Input'!J1900=\"Contingent\"),'TSA Input'!I1900,\"\"))","v":""},{"$f":"IF('TSA Input'!J1900=\"\",\"\",IF(OR('TSA Input'!J1900=\"Yes\",'TSA Input'!J1900=\"Contingent\"),'TSA Input'!C1900,\"\"))","v":""},{"$f":"IF('TSA Input'!J1900=\"\",\"\",IF(OR('TSA Input'!J1900=\"Yes\",'TSA Input'!J1900=\"Contingent\"),'TSA Input'!D1900,\"\"))","v":""},{"$f":"IF('TSA Input'!J1900=\"\",\"\",IF(OR('TSA Input'!J1900=\"Yes\",'TSA Input'!J1900=\"Contingent\"),'TSA Input'!G1900,\"\"))","v":""},{"$f":"IF('TSA Input'!J1900=\"\",\"\",IF(OR('TSA Input'!J1900=\"Yes\",'TSA Input'!J1900=\"Contingent\"),'TSA Input'!F1900,\"\"))","v":""},"",{"$f":"IF('TSA Input'!J1900=\"\",\"\",IF(OR('TSA Input'!J1900=\"Yes\",'TSA Input'!J1900=\"Contingent\"),'TSA Input'!D1900,\"\"))","v":""},{"$f":"IF('TSA Input'!J1900=\"\",\"\",IF(OR('TSA Input'!J1900=\"Yes\",'TSA Input'!J1900=\"Contingent\"),'TSA Input'!G1900,\"\"))","v":""},{"$f":"IF('TSA Input'!J1900=\"\",\"\",IF(OR('TSA Input'!J1900=\"Yes\",'TSA Input'!J1900=\"Contingent\"),'TSA Input'!F1900,\"\"))","v":""},"","Required","Required"]
["",null,{"$f":"IF('TSA Input'!J1901=\"\",\"\",IF(OR('TSA Input'!J1901=\"Yes\",'TSA Input'!J1901=\"Contingent\"),'TSA Input'!B1901,\"Ineligible\"))","v":""},{"$f":"IF('TSA Input'!J1901=\"\",\"\",IF(OR('TSA Input'!J1901=\"Yes\",'TSA Input'!J1901=\"Contingent\"),'TSA Input'!I1901,\"\"))","v":""},{"$f":"IF('TSA Input'!J1901=\"\",\"\",IF(OR('TSA Input'!J1901=\"Yes\",'TSA Input'!J1901=\"Contingent\"),'TSA Input'!C1901,\"\"))","v":""},{"$f":"IF('TSA Input'!J1901=\"\",\"\",IF(OR('TSA Input'!J1901=\"Yes\",'TSA Input'!J1901=\"Contingent\"),'TSA Input'!D1901,\"\"))","v":""},{"$f":"IF('TSA Input'!J1901=\"\",\"\",IF(OR('TSA Input'!J1901=\"Yes\",'TSA Input'!J1901=\"Contingent\"),'TSA Input'!G1901,\"\"))","v":""},{"$f":"IF('TSA Input'!J1901=\"\",\"\",IF(OR('TSA Input'!J1901=\"Yes\",'TSA Input'!J1901=\"Contingent\"),'TSA Input'!F1901,\"\"))","v":""},"",{"$f":"IF('TSA Input'!J1901=\"\",\"\",IF(OR('TSA Input'!J1901=\"Yes\",'TSA Input'!J1901=\"Contingent\"),'TSA Input'!D1901,\"\"))","v":""},{"$f":"IF('TSA Input'!J1901=\"\",\"\",IF(OR('TSA Input'!J1901=\"Yes\",'TSA Input'!J1901=\"Contingent\"),'TSA Input'!G1901,\"\"))","v":""},{"$f":"IF('TSA Input'!J1901=\"\",\"\",IF(OR('TSA Input'!J1901=\"Yes\",'TSA Input'!J1901=\"Contingent\"),'TSA Input'!F1901,\"\"))","v":""},"","Required","Required"]
["",null,{"$f":"IF('TSA Input'!J1902=\"\",\"\",IF(OR('TSA Input'!J1902=\"Yes\",'TSA Input'!J1902=\"Contingent\"),'TSA Input'!B1902,\"Ineligible\"))","v":""},{"$f":"IF('TSA Input'!J1902=\"\",\"\",IF(OR('TSA Input'!J1902=\"Yes\",'TSA Input'!J1902=\"Contingent\"),'TSA Input'!I1902,\"\"))","v":""},{"$f":"IF('TSA Input'!J1902=\"\",\"\",IF(OR('TSA Input'!J1902=\"Yes\",'TSA Input'!J1902=\"Contingent\"),'TSA Input'!C1902,\"\"))","v":""},{"$f":"IF('TSA Input'!J1902=\"\",\"\",IF(OR('TSA Input'!J1902=\"Yes\",'TSA Input'!J1902=\"Contingent\"),'TSA Input'!D1902,\"\"))","v":""},{"$f":"IF('TSA Input'!J1902=\"\",\"\",IF(OR('TSA Input'!J1902=\"Yes\",'TSA Input'!J1902=\"Contingent\"),'TSA Input'!G1902,\"\"))","v":""},{"$f":"IF('TSA Input'!J1902=\"\",\"\",IF(OR('TSA Input'!J1902=\"Yes\",'TSA Input'!J1902=\"Contingent\"),'TSA Input'!F1902,\"\"))","v":""},"",{"$f":"IF('TSA Input'!J1902=\"\",\"\",IF(OR('TSA Input'!J1902=\"Yes\",'TSA Input'!J1902=\"Contingent\"),'TSA Input'!D1902,\"\"))","v":""},{"$f":"IF('TSA Input'!J1902=\"\",\"\",IF(OR('TSA Input'!J1902=\"Yes\",'TSA Input'!J1902=\"Contingent\"),'TSA Input'!G1902,\"\"))","v":""},{"$f":"IF('TSA Input'!J1902=\"\",\"\",IF(OR('TSA Input'!J1902=\"Yes\",'TSA Input'!J1902=\"Contingent\"),'TSA Input'!F1902,\"\"))","v":""},"","Required","Required"]
["",null,{"$f":"IF('TSA Input'!J1903=\"\",\"\",IF(OR('TSA Input'!J1903=\"Yes\",'TSA Input'!J1903=\"Contingent\"),'TSA Input'!B1903,\"Ineligible\"))","v":""},{"$f":"IF('TSA Input'!J1903=\"\",\"\",IF(OR('TSA Input'!J1903=\"Yes\",'TSA Input'!J1903=\"Contingent\"),'TSA Input'!I1903,\"\"))","v":""},{"$f":"IF('TSA Input'!J1903=\"\",\"\",IF(OR('TSA Input'!J1903=\"Yes\",'TSA Input'!J1903=\"Contingent\"),'TSA Input'!C1903,\"\"))","v":""},{"$f":"IF('TSA Input'!J1903=\"\",\"\",IF(OR('TSA Input'!J1903=\"Yes\",'TSA Input'!J1903=\"Contingent\"),'TSA Input'!D1903,\"\"))","v":""},{"$f":"IF('TSA Input'!J1903=\"\",\"\",IF(OR('TSA Input'!J1903=\"Yes\",'TSA Input'!J1903=\"Contingent\"),'TSA Input'!G1903,\"\"))","v":""},{"$f":"IF('TSA Input'!J1903=\"\",\"\",IF(OR('TSA Input'!J1903=\"Yes\",'TSA Input'!J1903=\"Contingent\"),'TSA Input'!F1903,\"\"))","v":""},"",{"$f":"IF('TSA Input'!J1903=\"\",\"\",IF(OR('TSA Input'!J1903=\"Yes\",'TSA Input'!J1903=\"Contingent\"),'TSA Input'!D1903,\"\"))","v":""},{"$f":"IF('TSA Input'!J1903=\"\",\"\",IF(OR('TSA Input'!J1903=\"Yes\",'TSA Input'!J1903=\"Contingent\"),'TSA Input'!G1903,\"\"))","v":""},{"$f":"IF('TSA Input'!J1903=\"\",\"\",IF(OR('TSA Input'!J1903=\"Yes\",'TSA Input'!J1903=\"Contingent\"),'TSA Input'!F1903,\"\"))","v":""},"","Required","Required"]
["",null,{"$f":"IF('TSA Input'!J1904=\"\",\"\",IF(OR('TSA Input'!J1904=\"Yes\",'TSA Input'!J1904=\"Contingent\"),'TSA Input'!B1904,\"Ineligible\"))","v":""},{"$f":"IF('TSA Input'!J1904=\"\",\"\",IF(OR('TSA Input'!J1904=\"Yes\",'TSA Input'!J1904=\"Contingent\"),'TSA Input'!I1904,\"\"))","v":""},{"$f":"IF('TSA Input'!J1904=\"\",\"\",IF(OR('TSA Input'!J1904=\"Yes\",'TSA Input'!J1904=\"Contingent\"),'TSA Input'!C1904,\"\"))","v":""},{"$f":"IF('TSA Input'!J1904=\"\",\"\",IF(OR('TSA Input'!J1904=\"Yes\",'TSA Input'!J1904=\"Contingent\"),'TSA Input'!D1904,\"\"))","v":""},{"$f":"IF('TSA Input'!J1904=\"\",\"\",IF(OR('TSA Input'!J1904=\"Yes\",'TSA Input'!J1904=\"Contingent\"),'TSA Input'!G1904,\"\"))","v":""},{"$f":"IF('TSA Input'!J1904=\"\",\"\",IF(OR('TSA Input'!J1904=\"Yes\",'TSA Input'!J1904=\"Contingent\"),'TSA Input'!F1904,\"\"))","v":""},"",{"$f":"IF('TSA Input'!J1904=\"\",\"\",IF(OR('TSA Input'!J1904=\"Yes\",'TSA Input'!J1904=\"Contingent\"),'TSA Input'!D1904,\"\"))","v":""},{"$f":"IF('TSA Input'!J1904=\"\",\"\",IF(OR('TSA Input'!J1904=\"Yes\",'TSA Input'!J1904=\"Contingent\"),'TSA Input'!G1904,\"\"))","v":""},{"$f":"IF('TSA Input'!J1904=\"\",\"\",IF(OR('TSA Input'!J1904=\"Yes\",'TSA Input'!J1904=\"Contingent\"),'TSA Input'!F1904,\"\"))","v":""},"","Required","Required"]
["",null,{"$f":"IF('TSA Input'!J1905=\"\",\"\",IF(OR('TSA Input'!J1905=\"Yes\",'TSA Input'!J1905=\"Contingent\"),'TSA Input'!B1905,\"Ineligible\"))","v":""},{"$f":"IF('TSA Input'!J1905=\"\",\"\",IF(OR('TSA Input'!J1905=\"Yes\",'TSA Input'!J1905=\"Contingent\"),'TSA Input'!I1905,\"\"))","v":""},{"$f":"IF('TSA Input'!J1905=\"\",\"\",IF(OR('TSA Input'!J1905=\"Yes\",'TSA Input'!J1905=\"Contingent\"),'TSA Input'!C1905,\"\"))","v":""},{"$f":"IF('TSA Input'!J1905=\"\",\"\",IF(OR('TSA Input'!J1905=\"Yes\",'TSA Input'!J1905=\"Contingent\"),'TSA Input'!D1905,\"\"))","v":""},{"$f":"IF('TSA Input'!J1905=\"\",\"\",IF(OR('TSA Input'!J1905=\"Yes\",'TSA Input'!J1905=\"Contingent\"),'TSA Input'!G1905,\"\"))","v":""},{"$f":"IF('TSA Input'!J1905=\"\",\"\",IF(OR('TSA Input'!J1905=\"Yes\",'TSA Input'!J1905=\"Contingent\"),'TSA Input'!F1905,\"\"))","v":""},"",{"$f":"IF('TSA Input'!J1905=\"\",\"\",IF(OR('TSA Input'!J1905=\"Yes\",'TSA Input'!J1905=\"Contingent\"),'TSA Input'!D1905,\"\"))","v":""},{"$f":"IF('TSA Input'!J1905=\"\",\"\",IF(OR('TSA Input'!J1905=\"Yes\",'TSA Input'!J1905=\"Contingent\"),'TSA Input'!G1905,\"\"))","v":""},{"$f":"IF('TSA Input'!J1905=\"\",\"\",IF(OR('TSA Input'!J1905=\"Yes\",'TSA Input'!J1905=\"Contingent\"),'TSA Input'!F1905,\"\"))","v":""},"","Required","Required"]
["",null,{"$f":"IF('TSA Input'!J1906=\"\",\"\",IF(OR('TSA Input'!J1906=\"Yes\",'TSA Input'!J1906=\"Contingent\"),'TSA Input'!B1906,\"Ineligible\"))","v":""},{"$f":"IF('TSA Input'!J1906=\"\",\"\",IF(OR('TSA Input'!J1906=\"Yes\",'TSA Input'!J1906=\"Contingent\"),'TSA Input'!I1906,\"\"))","v":""},{"$f":"IF('TSA Input'!J1906=\"\",\"\",IF(OR('TSA Input'!J1906=\"Yes\",'TSA Input'!J1906=\"Contingent\"),'TSA Input'!C1906,\"\"))","v":""},{"$f":"IF('TSA Input'!J1906=\"\",\"\",IF(OR('TSA Input'!J1906=\"Yes\",'TSA Input'!J1906=\"Contingent\"),'TSA Input'!D1906,\"\"))","v":""},{"$f":"IF('TSA Input'!J1906=\"\",\"\",IF(OR('TSA Input'!J1906=\"Yes\",'TSA Input'!J1906=\"Contingent\"),'TSA Input'!G1906,\"\"))","v":""},{"$f":"IF('TSA Input'!J1906=\"\",\"\",IF(OR('TSA Input'!J1906=\"Yes\",'TSA Input'!J1906=\"Contingent\"),'TSA Input'!F1906,\"\"))","v":""},"",{"$f":"IF('TSA Input'!J1906=\"\",\"\",IF(OR('TSA Input'!J1906=\"Yes\",'TSA Input'!J1906=\"Contingent\"),'TSA Input'!D1906,\"\"))","v":""},{"$f":"IF('TSA Input'!J1906=\"\",\"\",IF(OR('TSA Input'!J1906=\"Yes\",'TSA Input'!J1906=\"Contingent\"),'TSA Input'!G1906,\"\"))","v":""},{"$f":"IF('TSA Input'!J1906=\"\",\"\",IF(OR('TSA Input'!J1906=\"Yes\",'TSA Input'!J1906=\"Contingent\"),'TSA Input'!F1906,\"\"))","v":""},"","Required","Required"]
["",null,{"$f":"IF('TSA Input'!J1907=\"\",\"\",IF(OR('TSA Input'!J1907=\"Yes\",'TSA Input'!J1907=\"Contingent\"),'TSA Input'!B1907,\"Ineligible\"))","v":""},{"$f":"IF('TSA Input'!J1907=\"\",\"\",IF(OR('TSA Input'!J1907=\"Yes\",'TSA Input'!J1907=\"Contingent\"),'TSA Input'!I1907,\"\"))","v":""},{"$f":"IF('TSA Input'!J1907=\"\",\"\",IF(OR('TSA Input'!J1907=\"Yes\",'TSA Input'!J1907=\"Contingent\"),'TSA Input'!C1907,\"\"))","v":""},{"$f":"IF('TSA Input'!J1907=\"\",\"\",IF(OR('TSA Input'!J1907=\"Yes\",'TSA Input'!J1907=\"Contingent\"),'TSA Input'!D1907,\"\"))","v":""},{"$f":"IF('TSA Input'!J1907=\"\",\"\",IF(OR('TSA Input'!J1907=\"Yes\",'TSA Input'!J1907=\"Contingent\"),'TSA Input'!G1907,\"\"))","v":""},{"$f":"IF('TSA Input'!J1907=\"\",\"\",IF(OR('TSA Input'!J1907=\"Yes\",'TSA Input'!J1907=\"Contingent\"),'TSA Input'!F1907,\"\"))","v":""},"",{"$f":"IF('TSA Input'!J1907=\"\",\"\",IF(OR('TSA Input'!J1907=\"Yes\",'TSA Input'!J1907=\"Contingent\"),'TSA Input'!D1907,\"\"))","v":""},{"$f":"IF('TSA Input'!J1907=\"\",\"\",IF(OR('TSA Input'!J1907=\"Yes\",'TSA Input'!J1907=\"Contingent\"),'TSA Input'!G1907,\"\"))","v":""},{"$f":"IF('TSA Input'!J1907=\"\",\"\",IF(OR('TSA Input'!J1907=\"Yes\",'TSA Input'!J1907=\"Contingent\"),'TSA Input'!F1907,\"\"))","v":""},"","Required","Required"]
["",null,{"$f":"IF('TSA Input'!J1908=\"\",\"\",IF(OR('TSA Input'!J1908=\"Yes\",'TSA Input'!J1908=\"Contingent\"),'TSA Input'!B1908,\"Ineligible\"))","v":""},{"$f":"IF('TSA Input'!J1908=\"\",\"\",IF(OR('TSA Input'!J1908=\"Yes\",'TSA Input'!J1908=\"Contingent\"),'TSA Input'!I1908,\"\"))","v":""},{"$f":"IF('TSA Input'!J1908=\"\",\"\",IF(OR('TSA Input'!J1908=\"Yes\",'TSA Input'!J1908=\"Contingent\"),'TSA Input'!C1908,\"\"))","v":""},{"$f":"IF('TSA Input'!J1908=\"\",\"\",IF(OR('TSA Input'!J1908=\"Yes\",'TSA Input'!J1908=\"Contingent\"),'TSA Input'!D1908,\"\"))","v":""},{"$f":"IF('TSA Input'!J1908=\"\",\"\",IF(OR('TSA Input'!J1908=\"Yes\",'TSA Input'!J1908=\"Contingent\"),'TSA Input'!G1908,\"\"))","v":""},{"$f":"IF('TSA Input'!J1908=\"\",\"\",IF(OR('TSA Input'!J1908=\"Yes\",'TSA Input'!J1908=\"Contingent\"),'TSA Input'!F1908,\"\"))","v":""},"",{"$f":"IF('TSA Input'!J1908=\"\",\"\",IF(OR('TSA Input'!J1908=\"Yes\",'TSA Input'!J1908=\"Contingent\"),'TSA Input'!D1908,\"\"))","v":""},{"$f":"IF('TSA Input'!J1908=\"\",\"\",IF(OR('TSA Input'!J1908=\"Yes\",'TSA Input'!J1908=\"Contingent\"),'TSA Input'!G1908,\"\"))","v":""},{"$f":"IF('TSA Input'!J1908=\"\",\"\",IF(OR('TSA Input'!J1908=\"Yes\",'TSA Input'!J1908=\"Contingent\"),'TSA Input'!F1908,\"\"))","v":""},"","Required","Required"]
["",null,{"$f":"IF('TSA Input'!J1909=\"\",\"\",IF(OR('TSA Input'!J1909=\"Yes\",'TSA Input'!J1909=\"Contingent\"),'TSA Input'!B1909,\"Ineligible\"))","v":""},{"$f":"IF('TSA Input'!J1909=\"\",\"\",IF(OR('TSA Input'!J1909=\"Yes\",'TSA Input'!J1909=\"Contingent\"),'TSA Input'!I1909,\"\"))","v":""},{"$f":"IF('TSA Input'!J1909=\"\",\"\",IF(OR('TSA Input'!J1909=\"Yes\",'TSA Input'!J1909=\"Contingent\"),'TSA Input'!C1909,\"\"))","v":""},{"$f":"IF('TSA Input'!J1909=\"\",\"\",IF(OR('TSA Input'!J1909=\"Yes\",'TSA Input'!J1909=\"Contingent\"),'TSA Input'!D1909,\"\"))","v":""},{"$f":"IF('TSA Input'!J1909=\"\",\"\",IF(OR('TSA Input'!J1909=\"Yes\",'TSA Input'!J1909=\"Contingent\"),'TSA Input'!G1909,\"\"))","v":""},{"$f":"IF('TSA Input'!J1909=\"\",\"\",IF(OR('TSA Input'!J1909=\"Yes\",'TSA Input'!J1909=\"Contingent\"),'TSA Input'!F1909,\"\"))","v":""},"",{"$f":"IF('TSA Input'!J1909=\"\",\"\",IF(OR('TSA Input'!J1909=\"Yes\",'TSA Input'!J1909=\"Contingent\"),'TSA Input'!D1909,\"\"))","v":""},{"$f":"IF('TSA Input'!J1909=\"\",\"\",IF(OR('TSA Input'!J1909=\"Yes\",'TSA Input'!J1909=\"Contingent\"),'TSA Input'!G1909,\"\"))","v":""},{"$f":"IF('TSA Input'!J1909=\"\",\"\",IF(OR('TSA Input'!J1909=\"Yes\",'TSA Input'!J1909=\"Contingent\"),'TSA Input'!F1909,\"\"))","v":""},"","Required","Required"]
["",null,{"$f":"IF('TSA Input'!J1910=\"\",\"\",IF(OR('TSA Input'!J1910=\"Yes\",'TSA Input'!J1910=\"Contingent\"),'TSA Input'!B1910,\"Ineligible\"))","v":""},{"$f":"IF('TSA Input'!J1910=\"\",\"\",IF(OR('TSA Input'!J1910=\"Yes\",'TSA Input'!J1910=\"Contingent\"),'TSA Input'!I1910,\"\"))","v":""},{"$f":"IF('TSA Input'!J1910=\"\",\"\",IF(OR('TSA Input'!J1910=\"Yes\",'TSA Input'!J1910=\"Contingent\"),'TSA Input'!C1910,\"\"))","v":""},{"$f":"IF('TSA Input'!J1910=\"\",\"\",IF(OR('TSA Input'!J1910=\"Yes\",'TSA Input'!J1910=\"Contingent\"),'TSA Input'!D1910,\"\"))","v":""},{"$f":"IF('TSA Input'!J1910=\"\",\"\",IF(OR('TSA Input'!J1910=\"Yes\",'TSA Input'!J1910=\"Contingent\"),'TSA Input'!G1910,\"\"))","v":""},{"$f":"IF('TSA Input'!J1910=\"\",\"\",IF(OR('TSA Input'!J1910=\"Yes\",'TSA Input'!J1910=\"Contingent\"),'TSA Input'!F1910,\"\"))","v":""},"",{"$f":"IF('TSA Input'!J1910=\"\",\"\",IF(OR('TSA Input'!J1910=\"Yes\",'TSA Input'!J1910=\"Contingent\"),'TSA Input'!D1910,\"\"))","v":""},{"$f":"IF('TSA Input'!J1910=\"\",\"\",IF(OR('TSA Input'!J1910=\"Yes\",'TSA Input'!J1910=\"Contingent\"),'TSA Input'!G1910,\"\"))","v":""},{"$f":"IF('TSA Input'!J1910=\"\",\"\",IF(OR('TSA Input'!J1910=\"Yes\",'TSA Input'!J1910=\"Contingent\"),'TSA Input'!F1910,\"\"))","v":""},"","Required","Required"]
["",null,{"$f":"IF('TSA Input'!J1911=\"\",\"\",IF(OR('TSA Input'!J1911=\"Yes\",'TSA Input'!J1911=\"Contingent\"),'TSA Input'!B1911,\"Ineligible\"))","v":""},{"$f":"IF('TSA Input'!J1911=\"\",\"\",IF(OR('TSA Input'!J1911=\"Yes\",'TSA Input'!J1911=\"Contingent\"),'TSA Input'!I1911,\"\"))","v":""},{"$f":"IF('TSA Input'!J1911=\"\",\"\",IF(OR('TSA Input'!J1911=\"Yes\",'TSA Input'!J1911=\"Contingent\"),'TSA Input'!C1911,\"\"))","v":""},{"$f":"IF('TSA Input'!J1911=\"\",\"\",IF(OR('TSA Input'!J1911=\"Yes\",'TSA Input'!J1911=\"Contingent\"),'TSA Input'!D1911,\"\"))","v":""},{"$f":"IF('TSA Input'!J1911=\"\",\"\",IF(OR('TSA Input'!J1911=\"Yes\",'TSA Input'!J1911=\"Contingent\"),'TSA Input'!G1911,\"\"))","v":""},{"$f":"IF('TSA Input'!J1911=\"\",\"\",IF(OR('TSA Input'!J1911=\"Yes\",'TSA Input'!J1911=\"Contingent\"),'TSA Input'!F1911,\"\"))","v":""},"",{"$f":"IF('TSA Input'!J1911=\"\",\"\",IF(OR('TSA Input'!J1911=\"Yes\",'TSA Input'!J1911=\"Contingent\"),'TSA Input'!D1911,\"\"))","v":""},{"$f":"IF('TSA Input'!J1911=\"\",\"\",IF(OR('TSA Input'!J1911=\"Yes\",'TSA Input'!J1911=\"Contingent\"),'TSA Input'!G1911,\"\"))","v":""},{"$f":"IF('TSA Input'!J1911=\"\",\"\",IF(OR('TSA Input'!J1911=\"Yes\",'TSA Input'!J1911=\"Contingent\"),'TSA Input'!F1911,\"\"))","v":""},"","Required","Required"]
["",null,{"$f":"IF('TSA Input'!J1912=\"\",\"\",IF(OR('TSA Input'!J1912=\"Yes\",'TSA Input'!J1912=\"Contingent\"),'TSA Input'!B1912,\"Ineligible\"))","v":""},{"$f":"IF('TSA Input'!J1912=\"\",\"\",IF(OR('TSA Input'!J1912=\"Yes\",'TSA Input'!J1912=\"Contingent\"),'TSA Input'!I1912,\"\"))","v":""},{"$f":"IF('TSA Input'!J1912=\"\",\"\",IF(OR('TSA Input'!J1912=\"Yes\",'TSA Input'!J1912=\"Contingent\"),'TSA Input'!C1912,\"\"))","v":""},{"$f":"IF('TSA Input'!J1912=\"\",\"\",IF(OR('TSA Input'!J1912=\"Yes\",'TSA Input'!J1912=\"Contingent\"),'TSA Input'!D1912,\"\"))","v":""},{"$f":"IF('TSA Input'!J1912=\"\",\"\",IF(OR('TSA Input'!J1912=\"Yes\",'TSA Input'!J1912=\"Contingent\"),'TSA Input'!G1912,\"\"))","v":""},{"$f":"IF('TSA Input'!J1912=\"\",\"\",IF(OR('TSA Input'!J1912=\"Yes\",'TSA Input'!J1912=\"Contingent\"),'TSA Input'!F1912,\"\"))","v":""},"",{"$f":"IF('TSA Input'!J1912=\"\",\"\",IF(OR('TSA Input'!J1912=\"Yes\",'TSA Input'!J1912=\"Contingent\"),'TSA Input'!D1912,\"\"))","v":""},{"$f":"IF('TSA Input'!J1912=\"\",\"\",IF(OR('TSA Input'!J1912=\"Yes\",'TSA Input'!J1912=\"Contingent\"),'TSA Input'!G1912,\"\"))","v":""},{"$f":"IF('TSA Input'!J1912=\"\",\"\",IF(OR('TSA Input'!J1912=\"Yes\",'TSA Input'!J1912=\"Contingent\"),'TSA Input'!F1912,\"\"))","v":""},"","Required","Required"]
["",null,{"$f":"IF('TSA Input'!J1913=\"\",\"\",IF(OR('TSA Input'!J1913=\"Yes\",'TSA Input'!J1913=\"Contingent\"),'TSA Input'!B1913,\"Ineligible\"))","v":""},{"$f":"IF('TSA Input'!J1913=\"\",\"\",IF(OR('TSA Input'!J1913=\"Yes\",'TSA Input'!J1913=\"Contingent\"),'TSA Input'!I1913,\"\"))","v":""},{"$f":"IF('TSA Input'!J1913=\"\",\"\",IF(OR('TSA Input'!J1913=\"Yes\",'TSA Input'!J1913=\"Contingent\"),'TSA Input'!C1913,\"\"))","v":""},{"$f":"IF('TSA Input'!J1913=\"\",\"\",IF(OR('TSA Input'!J1913=\"Yes\",'TSA Input'!J1913=\"Contingent\"),'TSA Input'!D1913,\"\"))","v":""},{"$f":"IF('TSA Input'!J1913=\"\",\"\",IF(OR('TSA Input'!J1913=\"Yes\",'TSA Input'!J1913=\"Contingent\"),'TSA Input'!G1913,\"\"))","v":""},{"$f":"IF('TSA Input'!J1913=\"\",\"\",IF(OR('TSA Input'!J1913=\"Yes\",'TSA Input'!J1913=\"Contingent\"),'TSA Input'!F1913,\"\"))","v":""},"",{"$f":"IF('TSA Input'!J1913=\"\",\"\",IF(OR('TSA Input'!J1913=\"Yes\",'TSA Input'!J1913=\"Contingent\"),'TSA Input'!D1913,\"\"))","v":""},{"$f":"IF('TSA Input'!J1913=\"\",\"\",IF(OR('TSA Input'!J1913=\"Yes\",'TSA Input'!J1913=\"Contingent\"),'TSA Input'!G1913,\"\"))","v":""},{"$f":"IF('TSA Input'!J1913=\"\",\"\",IF(OR('TSA Input'!J1913=\"Yes\",'TSA Input'!J1913=\"Contingent\"),'TSA Input'!F1913,\"\"))","v":""},"","Required","Required"]
["",null,{"$f":"IF('TSA Input'!J1914=\"\",\"\",IF(OR('TSA Input'!J1914=\"Yes\",'TSA Input'!J1914=\"Contingent\"),'TSA Input'!B1914,\"Ineligible\"))","v":""},{"$f":"IF('TSA Input'!J1914=\"\",\"\",IF(OR('TSA Input'!J1914=\"Yes\",'TSA Input'!J1914=\"Contingent\"),'TSA Input'!I1914,\"\"))","v":""},{"$f":"IF('TSA Input'!J1914=\"\",\"\",IF(OR('TSA Input'!J1914=\"Yes\",'TSA Input'!J1914=\"Contingent\"),'TSA Input'!C1914,\"\"))","v":""},{"$f":"IF('TSA Input'!J1914=\"\",\"\",IF(OR('TSA Input'!J1914=\"Yes\",'TSA Input'!J1914=\"Contingent\"),'TSA Input'!D1914,\"\"))","v":""},{"$f":"IF('TSA Input'!J1914=\"\",\"\",IF(OR('TSA Input'!J1914=\"Yes\",'TSA Input'!J1914=\"Contingent\"),'TSA Input'!G1914,\"\"))","v":""},{"$f":"IF('TSA Input'!J1914=\"\",\"\",IF(OR('TSA Input'!J1914=\"Yes\",'TSA Input'!J1914=\"Contingent\"),'TSA Input'!F1914,\"\"))","v":""},"",{"$f":"IF('TSA Input'!J1914=\"\",\"\",IF(OR('TSA Input'!J1914=\"Yes\",'TSA Input'!J1914=\"Contingent\"),'TSA Input'!D1914,\"\"))","v":""},{"$f":"IF('TSA Input'!J1914=\"\",\"\",IF(OR('TSA Input'!J1914=\"Yes\",'TSA Input'!J1914=\"Contingent\"),'TSA Input'!G1914,\"\"))","v":""},{"$f":"IF('TSA Input'!J1914=\"\",\"\",IF(OR('TSA Input'!J1914=\"Yes\",'TSA Input'!J1914=\"Contingent\"),'TSA Input'!F1914,\"\"))","v":""},"","Required","Required"]
["",null,{"$f":"IF('TSA Input'!J1915=\"\",\"\",IF(OR('TSA Input'!J1915=\"Yes\",'TSA Input'!J1915=\"Contingent\"),'TSA Input'!B1915,\"Ineligible\"))","v":""},{"$f":"IF('TSA Input'!J1915=\"\",\"\",IF(OR('TSA Input'!J1915=\"Yes\",'TSA Input'!J1915=\"Contingent\"),'TSA Input'!I1915,\"\"))","v":""},{"$f":"IF('TSA Input'!J1915=\"\",\"\",IF(OR('TSA Input'!J1915=\"Yes\",'TSA Input'!J1915=\"Contingent\"),'TSA Input'!C1915,\"\"))","v":""},{"$f":"IF('TSA Input'!J1915=\"\",\"\",IF(OR('TSA Input'!J1915=\"Yes\",'TSA Input'!J1915=\"Contingent\"),'TSA Input'!D1915,\"\"))","v":""},{"$f":"IF('TSA Input'!J1915=\"\",\"\",IF(OR('TSA Input'!J1915=\"Yes\",'TSA Input'!J1915=\"Contingent\"),'TSA Input'!G1915,\"\"))","v":""},{"$f":"IF('TSA Input'!J1915=\"\",\"\",IF(OR('TSA Input'!J1915=\"Yes\",'TSA Input'!J1915=\"Contingent\"),'TSA Input'!F1915,\"\"))","v":""},"",{"$f":"IF('TSA Input'!J1915=\"\",\"\",IF(OR('TSA Input'!J1915=\"Yes\",'TSA Input'!J1915=\"Contingent\"),'TSA Input'!D1915,\"\"))","v":""},{"$f":"IF('TSA Input'!J1915=\"\",\"\",IF(OR('TSA Input'!J1915=\"Yes\",'TSA Input'!J1915=\"Contingent\"),'TSA Input'!G1915,\"\"))","v":""},{"$f":"IF('TSA Input'!J1915=\"\",\"\",IF(OR('TSA Input'!J1915=\"Yes\",'TSA Input'!J1915=\"Contingent\"),'TSA Input'!F1915,\"\"))","v":""},"","Required","Required"]
["",null,{"$f":"IF('TSA Input'!J1916=\"\",\"\",IF(OR('TSA Input'!J1916=\"Yes\",'TSA Input'!J1916=\"Contingent\"),'TSA Input'!B1916,\"Ineligible\"))","v":""},{"$f":"IF('TSA Input'!J1916=\"\",\"\",IF(OR('TSA Input'!J1916=\"Yes\",'TSA Input'!J1916=\"Contingent\"),'TSA Input'!I1916,\"\"))","v":""},{"$f":"IF('TSA Input'!J1916=\"\",\"\",IF(OR('TSA Input'!J1916=\"Yes\",'TSA Input'!J1916=\"Contingent\"),'TSA Input'!C1916,\"\"))","v":""},{"$f":"IF('TSA Input'!J1916=\"\",\"\",IF(OR('TSA Input'!J1916=\"Yes\",'TSA Input'!J1916=\"Contingent\"),'TSA Input'!D1916,\"\"))","v":""},{"$f":"IF('TSA Input'!J1916=\"\",\"\",IF(OR('TSA Input'!J1916=\"Yes\",'TSA Input'!J1916=\"Contingent\"),'TSA Input'!G1916,\"\"))","v":""},{"$f":"IF('TSA Input'!J1916=\"\",\"\",IF(OR('TSA Input'!J1916=\"Yes\",'TSA Input'!J1916=\"Contingent\"),'TSA Input'!F1916,\"\"))","v":""},"",{"$f":"IF('TSA Input'!J1916=\"\",\"\",IF(OR('TSA Input'!J1916=\"Yes\",'TSA Input'!J1916=\"Contingent\"),'TSA Input'!D1916,\"\"))","v":""},{"$f":"IF('TSA Input'!J1916=\"\",\"\",IF(OR('TSA Input'!J1916=\"Yes\",'TSA Input'!J1916=\"Contingent\"),'TSA Input'!G1916,\"\"))","v":""},{"$f":"IF('TSA Input'!J1916=\"\",\"\",IF(OR('TSA Input'!J1916=\"Yes\",'TSA Input'!J1916=\"Contingent\"),'TSA Input'!F1916,\"\"))","v":""},"","Required","Required"]
["",null,{"$f":"IF('TSA Input'!J1917=\"\",\"\",IF(OR('TSA Input'!J1917=\"Yes\",'TSA Input'!J1917=\"Contingent\"),'TSA Input'!B1917,\"Ineligible\"))","v":""},{"$f":"IF('TSA Input'!J1917=\"\",\"\",IF(OR('TSA Input'!J1917=\"Yes\",'TSA Input'!J1917=\"Contingent\"),'TSA Input'!I1917,\"\"))","v":""},{"$f":"IF('TSA Input'!J1917=\"\",\"\",IF(OR('TSA Input'!J1917=\"Yes\",'TSA Input'!J1917=\"Contingent\"),'TSA Input'!C1917,\"\"))","v":""},{"$f":"IF('TSA Input'!J1917=\"\",\"\",IF(OR('TSA Input'!J1917=\"Yes\",'TSA Input'!J1917=\"Contingent\"),'TSA Input'!D1917,\"\"))","v":""},{"$f":"IF('TSA Input'!J1917=\"\",\"\",IF(OR('TSA Input'!J1917=\"Yes\",'TSA Input'!J1917=\"Contingent\"),'TSA Input'!G1917,\"\"))","v":""},{"$f":"IF('TSA Input'!J1917=\"\",\"\",IF(OR('TSA Input'!J1917=\"Yes\",'TSA Input'!J1917=\"Contingent\"),'TSA Input'!F1917,\"\"))","v":""},"",{"$f":"IF('TSA Input'!J1917=\"\",\"\",IF(OR('TSA Input'!J1917=\"Yes\",'TSA Input'!J1917=\"Contingent\"),'TSA Input'!D1917,\"\"))","v":""},{"$f":"IF('TSA Input'!J1917=\"\",\"\",IF(OR('TSA Input'!J1917=\"Yes\",'TSA Input'!J1917=\"Contingent\"),'TSA Input'!G1917,\"\"))","v":""},{"$f":"IF('TSA Input'!J1917=\"\",\"\",IF(OR('TSA Input'!J1917=\"Yes\",'TSA Input'!J1917=\"Contingent\"),'TSA Input'!F1917,\"\"))","v":""},"","Required","Required"]
["",null,{"$f":"IF('TSA Input'!J1918=\"\",\"\",IF(OR('TSA Input'!J1918=\"Yes\",'TSA Input'!J1918=\"Contingent\"),'TSA Input'!B1918,\"Ineligible\"))","v":""},{"$f":"IF('TSA Input'!J1918=\"\",\"\",IF(OR('TSA Input'!J1918=\"Yes\",'TSA Input'!J1918=\"Contingent\"),'TSA Input'!I1918,\"\"))","v":""},{"$f":"IF('TSA Input'!J1918=\"\",\"\",IF(OR('TSA Input'!J1918=\"Yes\",'TSA Input'!J1918=\"Contingent\"),'TSA Input'!C1918,\"\"))","v":""},{"$f":"IF('TSA Input'!J1918=\"\",\"\",IF(OR('TSA Input'!J1918=\"Yes\",'TSA Input'!J1918=\"Contingent\"),'TSA Input'!D1918,\"\"))","v":""},{"$f":"IF('TSA Input'!J1918=\"\",\"\",IF(OR('TSA Input'!J1918=\"Yes\",'TSA Input'!J1918=\"Contingent\"),'TSA Input'!G1918,\"\"))","v":""},{"$f":"IF('TSA Input'!J1918=\"\",\"\",IF(OR('TSA Input'!J1918=\"Yes\",'TSA Input'!J1918=\"Contingent\"),'TSA Input'!F1918,\"\"))","v":""},"",{"$f":"IF('TSA Input'!J1918=\"\",\"\",IF(OR('TSA Input'!J1918=\"Yes\",'TSA Input'!J1918=\"Contingent\"),'TSA Input'!D1918,\"\"))","v":""},{"$f":"IF('TSA Input'!J1918=\"\",\"\",IF(OR('TSA Input'!J1918=\"Yes\",'TSA Input'!J1918=\"Contingent\"),'TSA Input'!G1918,\"\"))","v":""},{"$f":"IF('TSA Input'!J1918=\"\",\"\",IF(OR('TSA Input'!J1918=\"Yes\",'TSA Input'!J1918=\"Contingent\"),'TSA Input'!F1918,\"\"))","v":""},"","Required","Required"]
["",null,{"$f":"IF('TSA Input'!J1919=\"\",\"\",IF(OR('TSA Input'!J1919=\"Yes\",'TSA Input'!J1919=\"Contingent\"),'TSA Input'!B1919,\"Ineligible\"))","v":""},{"$f":"IF('TSA Input'!J1919=\"\",\"\",IF(OR('TSA Input'!J1919=\"Yes\",'TSA Input'!J1919=\"Contingent\"),'TSA Input'!I1919,\"\"))","v":""},{"$f":"IF('TSA Input'!J1919=\"\",\"\",IF(OR('TSA Input'!J1919=\"Yes\",'TSA Input'!J1919=\"Contingent\"),'TSA Input'!C1919,\"\"))","v":""},{"$f":"IF('TSA Input'!J1919=\"\",\"\",IF(OR('TSA Input'!J1919=\"Yes\",'TSA Input'!J1919=\"Contingent\"),'TSA Input'!D1919,\"\"))","v":""},{"$f":"IF('TSA Input'!J1919=\"\",\"\",IF(OR('TSA Input'!J1919=\"Yes\",'TSA Input'!J1919=\"Contingent\"),'TSA Input'!G1919,\"\"))","v":""},{"$f":"IF('TSA Input'!J1919=\"\",\"\",IF(OR('TSA Input'!J1919=\"Yes\",'TSA Input'!J1919=\"Contingent\"),'TSA Input'!F1919,\"\"))","v":""},"",{"$f":"IF('TSA Input'!J1919=\"\",\"\",IF(OR('TSA Input'!J1919=\"Yes\",'TSA Input'!J1919=\"Contingent\"),'TSA Input'!D1919,\"\"))","v":""},{"$f":"IF('TSA Input'!J1919=\"\",\"\",IF(OR('TSA Input'!J1919=\"Yes\",'TSA Input'!J1919=\"Contingent\"),'TSA Input'!G1919,\"\"))","v":""},{"$f":"IF('TSA Input'!J1919=\"\",\"\",IF(OR('TSA Input'!J1919=\"Yes\",'TSA Input'!J1919=\"Contingent\"),'TSA Input'!F1919,\"\"))","v":""},"","Required","Required"]
["",null,{"$f":"IF('TSA Input'!J1920=\"\",\"\",IF(OR('TSA Input'!J1920=\"Yes\",'TSA Input'!J1920=\"Contingent\"),'TSA Input'!B1920,\"Ineligible\"))","v":""},{"$f":"IF('TSA Input'!J1920=\"\",\"\",IF(OR('TSA Input'!J1920=\"Yes\",'TSA Input'!J1920=\"Contingent\"),'TSA Input'!I1920,\"\"))","v":""},{"$f":"IF('TSA Input'!J1920=\"\",\"\",IF(OR('TSA Input'!J1920=\"Yes\",'TSA Input'!J1920=\"Contingent\"),'TSA Input'!C1920,\"\"))","v":""},{"$f":"IF('TSA Input'!J1920=\"\",\"\",IF(OR('TSA Input'!J1920=\"Yes\",'TSA Input'!J1920=\"Contingent\"),'TSA Input'!D1920,\"\"))","v":""},{"$f":"IF('TSA Input'!J1920=\"\",\"\",IF(OR('TSA Input'!J1920=\"Yes\",'TSA Input'!J1920=\"Contingent\"),'TSA Input'!G1920,\"\"))","v":""},{"$f":"IF('TSA Input'!J1920=\"\",\"\",IF(OR('TSA Input'!J1920=\"Yes\",'TSA Input'!J1920=\"Contingent\"),'TSA Input'!F1920,\"\"))","v":""},"",{"$f":"IF('TSA Input'!J1920=\"\",\"\",IF(OR('TSA Input'!J1920=\"Yes\",'TSA Input'!J1920=\"Contingent\"),'TSA Input'!D1920,\"\"))","v":""},{"$f":"IF('TSA Input'!J1920=\"\",\"\",IF(OR('TSA Input'!J1920=\"Yes\",'TSA Input'!J1920=\"Contingent\"),'TSA Input'!G1920,\"\"))","v":""},{"$f":"IF('TSA Input'!J1920=\"\",\"\",IF(OR('TSA Input'!J1920=\"Yes\",'TSA Input'!J1920=\"Contingent\"),'TSA Input'!F1920,\"\"))","v":""},"","Required","Required"]
["",null,{"$f":"IF('TSA Input'!J1921=\"\",\"\",IF(OR('TSA Input'!J1921=\"Yes\",'TSA Input'!J1921=\"Contingent\"),'TSA Input'!B1921,\"Ineligible\"))","v":""},{"$f":"IF('TSA Input'!J1921=\"\",\"\",IF(OR('TSA Input'!J1921=\"Yes\",'TSA Input'!J1921=\"Contingent\"),'TSA Input'!I1921,\"\"))","v":""},{"$f":"IF('TSA Input'!J1921=\"\",\"\",IF(OR('TSA Input'!J1921=\"Yes\",'TSA Input'!J1921=\"Contingent\"),'TSA Input'!C1921,\"\"))","v":""},{"$f":"IF('TSA Input'!J1921=\"\",\"\",IF(OR('TSA Input'!J1921=\"Yes\",'TSA Input'!J1921=\"Contingent\"),'TSA Input'!D1921,\"\"))","v":""},{"$f":"IF('TSA Input'!J1921=\"\",\"\",IF(OR('TSA Input'!J1921=\"Yes\",'TSA Input'!J1921=\"Contingent\"),'TSA Input'!G1921,\"\"))","v":""},{"$f":"IF('TSA Input'!J1921=\"\",\"\",IF(OR('TSA Input'!J1921=\"Yes\",'TSA Input'!J1921=\"Contingent\"),'TSA Input'!F1921,\"\"))","v":""},"",{"$f":"IF('TSA Input'!J1921=\"\",\"\",IF(OR('TSA Input'!J1921=\"Yes\",'TSA Input'!J1921=\"Contingent\"),'TSA Input'!D1921,\"\"))","v":""},{"$f":"IF('TSA Input'!J1921=\"\",\"\",IF(OR('TSA Input'!J1921=\"Yes\",'TSA Input'!J1921=\"Contingent\"),'TSA Input'!G1921,\"\"))","v":""},{"$f":"IF('TSA Input'!J1921=\"\",\"\",IF(OR('TSA Input'!J1921=\"Yes\",'TSA Input'!J1921=\"Contingent\"),'TSA Input'!F1921,\"\"))","v":""},"","Required","Required"]
["",null,{"$f":"IF('TSA Input'!J1922=\"\",\"\",IF(OR('TSA Input'!J1922=\"Yes\",'TSA Input'!J1922=\"Contingent\"),'TSA Input'!B1922,\"Ineligible\"))","v":""},{"$f":"IF('TSA Input'!J1922=\"\",\"\",IF(OR('TSA Input'!J1922=\"Yes\",'TSA Input'!J1922=\"Contingent\"),'TSA Input'!I1922,\"\"))","v":""},{"$f":"IF('TSA Input'!J1922=\"\",\"\",IF(OR('TSA Input'!J1922=\"Yes\",'TSA Input'!J1922=\"Contingent\"),'TSA Input'!C1922,\"\"))","v":""},{"$f":"IF('TSA Input'!J1922=\"\",\"\",IF(OR('TSA Input'!J1922=\"Yes\",'TSA Input'!J1922=\"Contingent\"),'TSA Input'!D1922,\"\"))","v":""},{"$f":"IF('TSA Input'!J1922=\"\",\"\",IF(OR('TSA Input'!J1922=\"Yes\",'TSA Input'!J1922=\"Contingent\"),'TSA Input'!G1922,\"\"))","v":""},{"$f":"IF('TSA Input'!J1922=\"\",\"\",IF(OR('TSA Input'!J1922=\"Yes\",'TSA Input'!J1922=\"Contingent\"),'TSA Input'!F1922,\"\"))","v":""},"",{"$f":"IF('TSA Input'!J1922=\"\",\"\",IF(OR('TSA Input'!J1922=\"Yes\",'TSA Input'!J1922=\"Contingent\"),'TSA Input'!D1922,\"\"))","v":""},{"$f":"IF('TSA Input'!J1922=\"\",\"\",IF(OR('TSA Input'!J1922=\"Yes\",'TSA Input'!J1922=\"Contingent\"),'TSA Input'!G1922,\"\"))","v":""},{"$f":"IF('TSA Input'!J1922=\"\",\"\",IF(OR('TSA Input'!J1922=\"Yes\",'TSA Input'!J1922=\"Contingent\"),'TSA Input'!F1922,\"\"))","v":""},"","Required","Required"]
["",null,{"$f":"IF('TSA Input'!J1923=\"\",\"\",IF(OR('TSA Input'!J1923=\"Yes\",'TSA Input'!J1923=\"Contingent\"),'TSA Input'!B1923,\"Ineligible\"))","v":""},{"$f":"IF('TSA Input'!J1923=\"\",\"\",IF(OR('TSA Input'!J1923=\"Yes\",'TSA Input'!J1923=\"Contingent\"),'TSA Input'!I1923,\"\"))","v":""},{"$f":"IF('TSA Input'!J1923=\"\",\"\",IF(OR('TSA Input'!J1923=\"Yes\",'TSA Input'!J1923=\"Contingent\"),'TSA Input'!C1923,\"\"))","v":""},{"$f":"IF('TSA Input'!J1923=\"\",\"\",IF(OR('TSA Input'!J1923=\"Yes\",'TSA Input'!J1923=\"Contingent\"),'TSA Input'!D1923,\"\"))","v":""},{"$f":"IF('TSA Input'!J1923=\"\",\"\",IF(OR('TSA Input'!J1923=\"Yes\",'TSA Input'!J1923=\"Contingent\"),'TSA Input'!G1923,\"\"))","v":""},{"$f":"IF('TSA Input'!J1923=\"\",\"\",IF(OR('TSA Input'!J1923=\"Yes\",'TSA Input'!J1923=\"Contingent\"),'TSA Input'!F1923,\"\"))","v":""},"",{"$f":"IF('TSA Input'!J1923=\"\",\"\",IF(OR('TSA Input'!J1923=\"Yes\",'TSA Input'!J1923=\"Contingent\"),'TSA Input'!D1923,\"\"))","v":""},{"$f":"IF('TSA Input'!J1923=\"\",\"\",IF(OR('TSA Input'!J1923=\"Yes\",'TSA Input'!J1923=\"Contingent\"),'TSA Input'!G1923,\"\"))","v":""},{"$f":"IF('TSA Input'!J1923=\"\",\"\",IF(OR('TSA Input'!J1923=\"Yes\",'TSA Input'!J1923=\"Contingent\"),'TSA Input'!F1923,\"\"))","v":""},"","Required","Required"]
["",null,{"$f":"IF('TSA Input'!J1924=\"\",\"\",IF(OR('TSA Input'!J1924=\"Yes\",'TSA Input'!J1924=\"Contingent\"),'TSA Input'!B1924,\"Ineligible\"))","v":""},{"$f":"IF('TSA Input'!J1924=\"\",\"\",IF(OR('TSA Input'!J1924=\"Yes\",'TSA Input'!J1924=\"Contingent\"),'TSA Input'!I1924,\"\"))","v":""},{"$f":"IF('TSA Input'!J1924=\"\",\"\",IF(OR('TSA Input'!J1924=\"Yes\",'TSA Input'!J1924=\"Contingent\"),'TSA Input'!C1924,\"\"))","v":""},{"$f":"IF('TSA Input'!J1924=\"\",\"\",IF(OR('TSA Input'!J1924=\"Yes\",'TSA Input'!J1924=\"Contingent\"),'TSA Input'!D1924,\"\"))","v":""},{"$f":"IF('TSA Input'!J1924=\"\",\"\",IF(OR('TSA Input'!J1924=\"Yes\",'TSA Input'!J1924=\"Contingent\"),'TSA Input'!G1924,\"\"))","v":""},{"$f":"IF('TSA Input'!J1924=\"\",\"\",IF(OR('TSA Input'!J1924=\"Yes\",'TSA Input'!J1924=\"Contingent\"),'TSA Input'!F1924,\"\"))","v":""},{"$f":"IF($C1962=\"\",\"\",SUM(F1962:H1962))","v":""},{"$f":"IF('TSA Input'!J1924=\"\",\"\",IF(OR('TSA Input'!J1924=\"Yes\",'TSA Input'!J1924=\"Contingent\"),'TSA Input'!D1924,\"\"))","v":""},{"$f":"IF('TSA Input'!J1924=\"\",\"\",IF(OR('TSA Input'!J1924=\"Yes\",'TSA Input'!J1924=\"Contingent\"),'TSA Input'!G1924,\"\"))","v":""},{"$f":"IF('TSA Input'!J1924=\"\",\"\",IF(OR('TSA Input'!J1924=\"Yes\",'TSA Input'!J1924=\"Contingent\"),'TSA Input'!F1924,\"\"))","v":""},{"$f":"IF($C1962=\"\",\"\",SUM(J1962:L1962))","v":""},"Required","Required"]
["",null,{"$f":"IF('TSA Input'!J1925=\"\",\"\",IF(OR('TSA Input'!J1925=\"Yes\",'TSA Input'!J1925=\"Contingent\"),'TSA Input'!B1925,\"Ineligible\"))","v":""},{"$f":"IF('TSA Input'!J1925=\"\",\"\",IF(OR('TSA Input'!J1925=\"Yes\",'TSA Input'!J1925=\"Contingent\"),'TSA Input'!I1925,\"\"))","v":""},{"$f":"IF('TSA Input'!J1925=\"\",\"\",IF(OR('TSA Input'!J1925=\"Yes\",'TSA Input'!J1925=\"Contingent\"),'TSA Input'!C1925,\"\"))","v":""},{"$f":"IF('TSA Input'!J1925=\"\",\"\",IF(OR('TSA Input'!J1925=\"Yes\",'TSA Input'!J1925=\"Contingent\"),'TSA Input'!D1925,\"\"))","v":""},{"$f":"IF('TSA Input'!J1925=\"\",\"\",IF(OR('TSA Input'!J1925=\"Yes\",'TSA Input'!J1925=\"Contingent\"),'TSA Input'!G1925,\"\"))","v":""},{"$f":"IF('TSA Input'!J1925=\"\",\"\",IF(OR('TSA Input'!J1925=\"Yes\",'TSA Input'!J1925=\"Contingent\"),'TSA Input'!F1925,\"\"))","v":""},"",{"$f":"IF('TSA Input'!J1925=\"\",\"\",IF(OR('TSA Input'!J1925=\"Yes\",'TSA Input'!J1925=\"Contingent\"),'TSA Input'!D1925,\"\"))","v":""},{"$f":"IF('TSA Input'!J1925=\"\",\"\",IF(OR('TSA Input'!J1925=\"Yes\",'TSA Input'!J1925=\"Contingent\"),'TSA Input'!G1925,\"\"))","v":""},{"$f":"IF('TSA Input'!J1925=\"\",\"\",IF(OR('TSA Input'!J1925=\"Yes\",'TSA Input'!J1925=\"Contingent\"),'TSA Input'!F1925,\"\"))","v":""},"","Required","Required"]
["",null,{"$f":"IF('TSA Input'!J1926=\"\",\"\",IF(OR('TSA Input'!J1926=\"Yes\",'TSA Input'!J1926=\"Contingent\"),'TSA Input'!B1926,\"Ineligible\"))","v":""},{"$f":"IF('TSA Input'!J1926=\"\",\"\",IF(OR('TSA Input'!J1926=\"Yes\",'TSA Input'!J1926=\"Contingent\"),'TSA Input'!I1926,\"\"))","v":""},{"$f":"IF('TSA Input'!J1926=\"\",\"\",IF(OR('TSA Input'!J1926=\"Yes\",'TSA Input'!J1926=\"Contingent\"),'TSA Input'!C1926,\"\"))","v":""},{"$f":"IF('TSA Input'!J1926=\"\",\"\",IF(OR('TSA Input'!J1926=\"Yes\",'TSA Input'!J1926=\"Contingent\"),'TSA Input'!D1926,\"\"))","v":""},{"$f":"IF('TSA Input'!J1926=\"\",\"\",IF(OR('TSA Input'!J1926=\"Yes\",'TSA Input'!J1926=\"Contingent\"),'TSA Input'!G1926,\"\"))","v":""},{"$f":"IF('TSA Input'!J1926=\"\",\"\",IF(OR('TSA Input'!J1926=\"Yes\",'TSA Input'!J1926=\"Contingent\"),'TSA Input'!F1926,\"\"))","v":""},"",{"$f":"IF('TSA Input'!J1926=\"\",\"\",IF(OR('TSA Input'!J1926=\"Yes\",'TSA Input'!J1926=\"Contingent\"),'TSA Input'!D1926,\"\"))","v":""},{"$f":"IF('TSA Input'!J1926=\"\",\"\",IF(OR('TSA Input'!J1926=\"Yes\",'TSA Input'!J1926=\"Contingent\"),'TSA Input'!G1926,\"\"))","v":""},{"$f":"IF('TSA Input'!J1926=\"\",\"\",IF(OR('TSA Input'!J1926=\"Yes\",'TSA Input'!J1926=\"Contingent\"),'TSA Input'!F1926,\"\"))","v":""},"","Required","Required"]
["",null,{"$f":"IF('TSA Input'!J1927=\"\",\"\",IF(OR('TSA Input'!J1927=\"Yes\",'TSA Input'!J1927=\"Contingent\"),'TSA Input'!B1927,\"Ineligible\"))","v":""},{"$f":"IF('TSA Input'!J1927=\"\",\"\",IF(OR('TSA Input'!J1927=\"Yes\",'TSA Input'!J1927=\"Contingent\"),'TSA Input'!I1927,\"\"))","v":""},{"$f":"IF('TSA Input'!J1927=\"\",\"\",IF(OR('TSA Input'!J1927=\"Yes\",'TSA Input'!J1927=\"Contingent\"),'TSA Input'!C1927,\"\"))","v":""},{"$f":"IF('TSA Input'!J1927=\"\",\"\",IF(OR('TSA Input'!J1927=\"Yes\",'TSA Input'!J1927=\"Contingent\"),'TSA Input'!D1927,\"\"))","v":""},{"$f":"IF('TSA Input'!J1927=\"\",\"\",IF(OR('TSA Input'!J1927=\"Yes\",'TSA Input'!J1927=\"Contingent\"),'TSA Input'!G1927,\"\"))","v":""},{"$f":"IF('TSA Input'!J1927=\"\",\"\",IF(OR('TSA Input'!J1927=\"Yes\",'TSA Input'!J1927=\"Contingent\"),'TSA Input'!F1927,\"\"))","v":""},"",{"$f":"IF('TSA Input'!J1927=\"\",\"\",IF(OR('TSA Input'!J1927=\"Yes\",'TSA Input'!J1927=\"Contingent\"),'TSA Input'!D1927,\"\"))","v":""},{"$f":"IF('TSA Input'!J1927=\"\",\"\",IF(OR('TSA Input'!J1927=\"Yes\",'TSA Input'!J1927=\"Contingent\"),'TSA Input'!G1927,\"\"))","v":""},{"$f":"IF('TSA Input'!J1927=\"\",\"\",IF(OR('TSA Input'!J1927=\"Yes\",'TSA Input'!J1927=\"Contingent\"),'TSA Input'!F1927,\"\"))","v":""},"","Required","Required"]
["",null,{"$f":"IF('TSA Input'!J1928=\"\",\"\",IF(OR('TSA Input'!J1928=\"Yes\",'TSA Input'!J1928=\"Contingent\"),'TSA Input'!B1928,\"Ineligible\"))","v":""},{"$f":"IF('TSA Input'!J1928=\"\",\"\",IF(OR('TSA Input'!J1928=\"Yes\",'TSA Input'!J1928=\"Contingent\"),'TSA Input'!I1928,\"\"))","v":""},{"$f":"IF('TSA Input'!J1928=\"\",\"\",IF(OR('TSA Input'!J1928=\"Yes\",'TSA Input'!J1928=\"Contingent\"),'TSA Input'!C1928,\"\"))","v":""},{"$f":"IF('TSA Input'!J1928=\"\",\"\",IF(OR('TSA Input'!J1928=\"Yes\",'TSA Input'!J1928=\"Contingent\"),'TSA Input'!D1928,\"\"))","v":""},{"$f":"IF('TSA Input'!J1928=\"\",\"\",IF(OR('TSA Input'!J1928=\"Yes\",'TSA Input'!J1928=\"Contingent\"),'TSA Input'!G1928,\"\"))","v":""},{"$f":"IF('TSA Input'!J1928=\"\",\"\",IF(OR('TSA Input'!J1928=\"Yes\",'TSA Input'!J1928=\"Contingent\"),'TSA Input'!F1928,\"\"))","v":""},"",{"$f":"IF('TSA Input'!J1928=\"\",\"\",IF(OR('TSA Input'!J1928=\"Yes\",'TSA Input'!J1928=\"Contingent\"),'TSA Input'!D1928,\"\"))","v":""},{"$f":"IF('TSA Input'!J1928=\"\",\"\",IF(OR('TSA Input'!J1928=\"Yes\",'TSA Input'!J1928=\"Contingent\"),'TSA Input'!G1928,\"\"))","v":""},{"$f":"IF('TSA Input'!J1928=\"\",\"\",IF(OR('TSA Input'!J1928=\"Yes\",'TSA Input'!J1928=\"Contingent\"),'TSA Input'!F1928,\"\"))","v":""},"","Required","Required"]
["",null,{"$f":"IF('TSA Input'!J1929=\"\",\"\",IF(OR('TSA Input'!J1929=\"Yes\",'TSA Input'!J1929=\"Contingent\"),'TSA Input'!B1929,\"Ineligible\"))","v":""},{"$f":"IF('TSA Input'!J1929=\"\",\"\",IF(OR('TSA Input'!J1929=\"Yes\",'TSA Input'!J1929=\"Contingent\"),'TSA Input'!I1929,\"\"))","v":""},{"$f":"IF('TSA Input'!J1929=\"\",\"\",IF(OR('TSA Input'!J1929=\"Yes\",'TSA Input'!J1929=\"Contingent\"),'TSA Input'!C1929,\"\"))","v":""},{"$f":"IF('TSA Input'!J1929=\"\",\"\",IF(OR('TSA Input'!J1929=\"Yes\",'TSA Input'!J1929=\"Contingent\"),'TSA Input'!D1929,\"\"))","v":""},{"$f":"IF('TSA Input'!J1929=\"\",\"\",IF(OR('TSA Input'!J1929=\"Yes\",'TSA Input'!J1929=\"Contingent\"),'TSA Input'!G1929,\"\"))","v":""},{"$f":"IF('TSA Input'!J1929=\"\",\"\",IF(OR('TSA Input'!J1929=\"Yes\",'TSA Input'!J1929=\"Contingent\"),'TSA Input'!F1929,\"\"))","v":""},"",{"$f":"IF('TSA Input'!J1929=\"\",\"\",IF(OR('TSA Input'!J1929=\"Yes\",'TSA Input'!J1929=\"Contingent\"),'TSA Input'!D1929,\"\"))","v":""},{"$f":"IF('TSA Input'!J1929=\"\",\"\",IF(OR('TSA Input'!J1929=\"Yes\",'TSA Input'!J1929=\"Contingent\"),'TSA Input'!G1929,\"\"))","v":""},{"$f":"IF('TSA Input'!J1929=\"\",\"\",IF(OR('TSA Input'!J1929=\"Yes\",'TSA Input'!J1929=\"Contingent\"),'TSA Input'!F1929,\"\"))","v":""},"","Required","Required"]
["",null,{"$f":"IF('TSA Input'!J1930=\"\",\"\",IF(OR('TSA Input'!J1930=\"Yes\",'TSA Input'!J1930=\"Contingent\"),'TSA Input'!B1930,\"Ineligible\"))","v":""},{"$f":"IF('TSA Input'!J1930=\"\",\"\",IF(OR('TSA Input'!J1930=\"Yes\",'TSA Input'!J1930=\"Contingent\"),'TSA Input'!I1930,\"\"))","v":""},{"$f":"IF('TSA Input'!J1930=\"\",\"\",IF(OR('TSA Input'!J1930=\"Yes\",'TSA Input'!J1930=\"Contingent\"),'TSA Input'!C1930,\"\"))","v":""},{"$f":"IF('TSA Input'!J1930=\"\",\"\",IF(OR('TSA Input'!J1930=\"Yes\",'TSA Input'!J1930=\"Contingent\"),'TSA Input'!D1930,\"\"))","v":""},{"$f":"IF('TSA Input'!J1930=\"\",\"\",IF(OR('TSA Input'!J1930=\"Yes\",'TSA Input'!J1930=\"Contingent\"),'TSA Input'!G1930,\"\"))","v":""},{"$f":"IF('TSA Input'!J1930=\"\",\"\",IF(OR('TSA Input'!J1930=\"Yes\",'TSA Input'!J1930=\"Contingent\"),'TSA Input'!F1930,\"\"))","v":""},"",{"$f":"IF('TSA Input'!J1930=\"\",\"\",IF(OR('TSA Input'!J1930=\"Yes\",'TSA Input'!J1930=\"Contingent\"),'TSA Input'!D1930,\"\"))","v":""},{"$f":"IF('TSA Input'!J1930=\"\",\"\",IF(OR('TSA Input'!J1930=\"Yes\",'TSA Input'!J1930=\"Contingent\"),'TSA Input'!G1930,\"\"))","v":""},{"$f":"IF('TSA Input'!J1930=\"\",\"\",IF(OR('TSA Input'!J1930=\"Yes\",'TSA Input'!J1930=\"Contingent\"),'TSA Input'!F1930,\"\"))","v":""},"","Required","Required"]
["",null,{"$f":"IF('TSA Input'!J1931=\"\",\"\",IF(OR('TSA Input'!J1931=\"Yes\",'TSA Input'!J1931=\"Contingent\"),'TSA Input'!B1931,\"Ineligible\"))","v":""},{"$f":"IF('TSA Input'!J1931=\"\",\"\",IF(OR('TSA Input'!J1931=\"Yes\",'TSA Input'!J1931=\"Contingent\"),'TSA Input'!I1931,\"\"))","v":""},{"$f":"IF('TSA Input'!J1931=\"\",\"\",IF(OR('TSA Input'!J1931=\"Yes\",'TSA Input'!J1931=\"Contingent\"),'TSA Input'!C1931,\"\"))","v":""},{"$f":"IF('TSA Input'!J1931=\"\",\"\",IF(OR('TSA Input'!J1931=\"Yes\",'TSA Input'!J1931=\"Contingent\"),'TSA Input'!D1931,\"\"))","v":""},{"$f":"IF('TSA Input'!J1931=\"\",\"\",IF(OR('TSA Input'!J1931=\"Yes\",'TSA Input'!J1931=\"Contingent\"),'TSA Input'!G1931,\"\"))","v":""},{"$f":"IF('TSA Input'!J1931=\"\",\"\",IF(OR('TSA Input'!J1931=\"Yes\",'TSA Input'!J1931=\"Contingent\"),'TSA Input'!F1931,\"\"))","v":""},"",{"$f":"IF('TSA Input'!J1931=\"\",\"\",IF(OR('TSA Input'!J1931=\"Yes\",'TSA Input'!J1931=\"Contingent\"),'TSA Input'!D1931,\"\"))","v":""},{"$f":"IF('TSA Input'!J1931=\"\",\"\",IF(OR('TSA Input'!J1931=\"Yes\",'TSA Input'!J1931=\"Contingent\"),'TSA Input'!G1931,\"\"))","v":""},{"$f":"IF('TSA Input'!J1931=\"\",\"\",IF(OR('TSA Input'!J1931=\"Yes\",'TSA Input'!J1931=\"Contingent\"),'TSA Input'!F1931,\"\"))","v":""},"","Required","Required"]
["",null,{"$f":"IF('TSA Input'!J1932=\"\",\"\",IF(OR('TSA Input'!J1932=\"Yes\",'TSA Input'!J1932=\"Contingent\"),'TSA Input'!B1932,\"Ineligible\"))","v":""},{"$f":"IF('TSA Input'!J1932=\"\",\"\",IF(OR('TSA Input'!J1932=\"Yes\",'TSA Input'!J1932=\"Contingent\"),'TSA Input'!I1932,\"\"))","v":""},{"$f":"IF('TSA Input'!J1932=\"\",\"\",IF(OR('TSA Input'!J1932=\"Yes\",'TSA Input'!J1932=\"Contingent\"),'TSA Input'!C1932,\"\"))","v":""},{"$f":"IF('TSA Input'!J1932=\"\",\"\",IF(OR('TSA Input'!J1932=\"Yes\",'TSA Input'!J1932=\"Contingent\"),'TSA Input'!D1932,\"\"))","v":""},{"$f":"IF('TSA Input'!J1932=\"\",\"\",IF(OR('TSA Input'!J1932=\"Yes\",'TSA Input'!J1932=\"Contingent\"),'TSA Input'!G1932,\"\"))","v":""},{"$f":"IF('TSA Input'!J1932=\"\",\"\",IF(OR('TSA Input'!J1932=\"Yes\",'TSA Input'!J1932=\"Contingent\"),'TSA Input'!F1932,\"\"))","v":""},"",{"$f":"IF('TSA Input'!J1932=\"\",\"\",IF(OR('TSA Input'!J1932=\"Yes\",'TSA Input'!J1932=\"Contingent\"),'TSA Input'!D1932,\"\"))","v":""},{"$f":"IF('TSA Input'!J1932=\"\",\"\",IF(OR('TSA Input'!J1932=\"Yes\",'TSA Input'!J1932=\"Contingent\"),'TSA Input'!G1932,\"\"))","v":""},{"$f":"IF('TSA Input'!J1932=\"\",\"\",IF(OR('TSA Input'!J1932=\"Yes\",'TSA Input'!J1932=\"Contingent\"),'TSA Input'!F1932,\"\"))","v":""},"","Required","Required"]
["",null,{"$f":"IF('TSA Input'!J1933=\"\",\"\",IF(OR('TSA Input'!J1933=\"Yes\",'TSA Input'!J1933=\"Contingent\"),'TSA Input'!B1933,\"Ineligible\"))","v":""},{"$f":"IF('TSA Input'!J1933=\"\",\"\",IF(OR('TSA Input'!J1933=\"Yes\",'TSA Input'!J1933=\"Contingent\"),'TSA Input'!I1933,\"\"))","v":""},{"$f":"IF('TSA Input'!J1933=\"\",\"\",IF(OR('TSA Input'!J1933=\"Yes\",'TSA Input'!J1933=\"Contingent\"),'TSA Input'!C1933,\"\"))","v":""},{"$f":"IF('TSA Input'!J1933=\"\",\"\",IF(OR('TSA Input'!J1933=\"Yes\",'TSA Input'!J1933=\"Contingent\"),'TSA Input'!D1933,\"\"))","v":""},{"$f":"IF('TSA Input'!J1933=\"\",\"\",IF(OR('TSA Input'!J1933=\"Yes\",'TSA Input'!J1933=\"Contingent\"),'TSA Input'!G1933,\"\"))","v":""},{"$f":"IF('TSA Input'!J1933=\"\",\"\",IF(OR('TSA Input'!J1933=\"Yes\",'TSA Input'!J1933=\"Contingent\"),'TSA Input'!F1933,\"\"))","v":""},"",{"$f":"IF('TSA Input'!J1933=\"\",\"\",IF(OR('TSA Input'!J1933=\"Yes\",'TSA Input'!J1933=\"Contingent\"),'TSA Input'!D1933,\"\"))","v":""},{"$f":"IF('TSA Input'!J1933=\"\",\"\",IF(OR('TSA Input'!J1933=\"Yes\",'TSA Input'!J1933=\"Contingent\"),'TSA Input'!G1933,\"\"))","v":""},{"$f":"IF('TSA Input'!J1933=\"\",\"\",IF(OR('TSA Input'!J1933=\"Yes\",'TSA Input'!J1933=\"Contingent\"),'TSA Input'!F1933,\"\"))","v":""},"","Required","Required"]
["",null,{"$f":"IF('TSA Input'!J1934=\"\",\"\",IF(OR('TSA Input'!J1934=\"Yes\",'TSA Input'!J1934=\"Contingent\"),'TSA Input'!B1934,\"Ineligible\"))","v":""},{"$f":"IF('TSA Input'!J1934=\"\",\"\",IF(OR('TSA Input'!J1934=\"Yes\",'TSA Input'!J1934=\"Contingent\"),'TSA Input'!I1934,\"\"))","v":""},{"$f":"IF('TSA Input'!J1934=\"\",\"\",IF(OR('TSA Input'!J1934=\"Yes\",'TSA Input'!J1934=\"Contingent\"),'TSA Input'!C1934,\"\"))","v":""},{"$f":"IF('TSA Input'!J1934=\"\",\"\",IF(OR('TSA Input'!J1934=\"Yes\",'TSA Input'!J1934=\"Contingent\"),'TSA Input'!D1934,\"\"))","v":""},{"$f":"IF('TSA Input'!J1934=\"\",\"\",IF(OR('TSA Input'!J1934=\"Yes\",'TSA Input'!J1934=\"Contingent\"),'TSA Input'!G1934,\"\"))","v":""},{"$f":"IF('TSA Input'!J1934=\"\",\"\",IF(OR('TSA Input'!J1934=\"Yes\",'TSA Input'!J1934=\"Contingent\"),'TSA Input'!F1934,\"\"))","v":""},"",{"$f":"IF('TSA Input'!J1934=\"\",\"\",IF(OR('TSA Input'!J1934=\"Yes\",'TSA Input'!J1934=\"Contingent\"),'TSA Input'!D1934,\"\"))","v":""},{"$f":"IF('TSA Input'!J1934=\"\",\"\",IF(OR('TSA Input'!J1934=\"Yes\",'TSA Input'!J1934=\"Contingent\"),'TSA Input'!G1934,\"\"))","v":""},{"$f":"IF('TSA Input'!J1934=\"\",\"\",IF(OR('TSA Input'!J1934=\"Yes\",'TSA Input'!J1934=\"Contingent\"),'TSA Input'!F1934,\"\"))","v":""},"","Required","Required"]
["",null,{"$f":"IF('TSA Input'!J1935=\"\",\"\",IF(OR('TSA Input'!J1935=\"Yes\",'TSA Input'!J1935=\"Contingent\"),'TSA Input'!B1935,\"Ineligible\"))","v":""},{"$f":"IF('TSA Input'!J1935=\"\",\"\",IF(OR('TSA Input'!J1935=\"Yes\",'TSA Input'!J1935=\"Contingent\"),'TSA Input'!I1935,\"\"))","v":""},{"$f":"IF('TSA Input'!J1935=\"\",\"\",IF(OR('TSA Input'!J1935=\"Yes\",'TSA Input'!J1935=\"Contingent\"),'TSA Input'!C1935,\"\"))","v":""},{"$f":"IF('TSA Input'!J1935=\"\",\"\",IF(OR('TSA Input'!J1935=\"Yes\",'TSA Input'!J1935=\"Contingent\"),'TSA Input'!D1935,\"\"))","v":""},{"$f":"IF('TSA Input'!J1935=\"\",\"\",IF(OR('TSA Input'!J1935=\"Yes\",'TSA Input'!J1935=\"Contingent\"),'TSA Input'!G1935,\"\"))","v":""},{"$f":"IF('TSA Input'!J1935=\"\",\"\",IF(OR('TSA Input'!J1935=\"Yes\",'TSA Input'!J1935=\"Contingent\"),'TSA Input'!F1935,\"\"))","v":""},"",{"$f":"IF('TSA Input'!J1935=\"\",\"\",IF(OR('TSA Input'!J1935=\"Yes\",'TSA Input'!J1935=\"Contingent\"),'TSA Input'!D1935,\"\"))","v":""},{"$f":"IF('TSA Input'!J1935=\"\",\"\",IF(OR('TSA Input'!J1935=\"Yes\",'TSA Input'!J1935=\"Contingent\"),'TSA Input'!G1935,\"\"))","v":""},{"$f":"IF('TSA Input'!J1935=\"\",\"\",IF(OR('TSA Input'!J1935=\"Yes\",'TSA Input'!J1935=\"Contingent\"),'TSA Input'!F1935,\"\"))","v":""},"","Required","Required"]
["",null,{"$f":"IF('TSA Input'!J1936=\"\",\"\",IF(OR('TSA Input'!J1936=\"Yes\",'TSA Input'!J1936=\"Contingent\"),'TSA Input'!B1936,\"Ineligible\"))","v":""},{"$f":"IF('TSA Input'!J1936=\"\",\"\",IF(OR('TSA Input'!J1936=\"Yes\",'TSA Input'!J1936=\"Contingent\"),'TSA Input'!I1936,\"\"))","v":""},{"$f":"IF('TSA Input'!J1936=\"\",\"\",IF(OR('TSA Input'!J1936=\"Yes\",'TSA Input'!J1936=\"Contingent\"),'TSA Input'!C1936,\"\"))","v":""},{"$f":"IF('TSA Input'!J1936=\"\",\"\",IF(OR('TSA Input'!J1936=\"Yes\",'TSA Input'!J1936=\"Contingent\"),'TSA Input'!D1936,\"\"))","v":""},{"$f":"IF('TSA Input'!J1936=\"\",\"\",IF(OR('TSA Input'!J1936=\"Yes\",'TSA Input'!J1936=\"Contingent\"),'TSA Input'!G1936,\"\"))","v":""},{"$f":"IF('TSA Input'!J1936=\"\",\"\",IF(OR('TSA Input'!J1936=\"Yes\",'TSA Input'!J1936=\"Contingent\"),'TSA Input'!F1936,\"\"))","v":""},"",{"$f":"IF('TSA Input'!J1936=\"\",\"\",IF(OR('TSA Input'!J1936=\"Yes\",'TSA Input'!J1936=\"Contingent\"),'TSA Input'!D1936,\"\"))","v":""},{"$f":"IF('TSA Input'!J1936=\"\",\"\",IF(OR('TSA Input'!J1936=\"Yes\",'TSA Input'!J1936=\"Contingent\"),'TSA Input'!G1936,\"\"))","v":""},{"$f":"IF('TSA Input'!J1936=\"\",\"\",IF(OR('TSA Input'!J1936=\"Yes\",'TSA Input'!J1936=\"Contingent\"),'TSA Input'!F1936,\"\"))","v":""},"","Required","Required"]
["",null,{"$f":"IF('TSA Input'!J1937=\"\",\"\",IF(OR('TSA Input'!J1937=\"Yes\",'TSA Input'!J1937=\"Contingent\"),'TSA Input'!B1937,\"Ineligible\"))","v":""},{"$f":"IF('TSA Input'!J1937=\"\",\"\",IF(OR('TSA Input'!J1937=\"Yes\",'TSA Input'!J1937=\"Contingent\"),'TSA Input'!I1937,\"\"))","v":""},{"$f":"IF('TSA Input'!J1937=\"\",\"\",IF(OR('TSA Input'!J1937=\"Yes\",'TSA Input'!J1937=\"Contingent\"),'TSA Input'!C1937,\"\"))","v":""},{"$f":"IF('TSA Input'!J1937=\"\",\"\",IF(OR('TSA Input'!J1937=\"Yes\",'TSA Input'!J1937=\"Contingent\"),'TSA Input'!D1937,\"\"))","v":""},{"$f":"IF('TSA Input'!J1937=\"\",\"\",IF(OR('TSA Input'!J1937=\"Yes\",'TSA Input'!J1937=\"Contingent\"),'TSA Input'!G1937,\"\"))","v":""},{"$f":"IF('TSA Input'!J1937=\"\",\"\",IF(OR('TSA Input'!J1937=\"Yes\",'TSA Input'!J1937=\"Contingent\"),'TSA Input'!F1937,\"\"))","v":""},"",{"$f":"IF('TSA Input'!J1937=\"\",\"\",IF(OR('TSA Input'!J1937=\"Yes\",'TSA Input'!J1937=\"Contingent\"),'TSA Input'!D1937,\"\"))","v":""},{"$f":"IF('TSA Input'!J1937=\"\",\"\",IF(OR('TSA Input'!J1937=\"Yes\",'TSA Input'!J1937=\"Contingent\"),'TSA Input'!G1937,\"\"))","v":""},{"$f":"IF('TSA Input'!J1937=\"\",\"\",IF(OR('TSA Input'!J1937=\"Yes\",'TSA Input'!J1937=\"Contingent\"),'TSA Input'!F1937,\"\"))","v":""},"","Required","Required"]
["",null,{"$f":"IF('TSA Input'!J1938=\"\",\"\",IF(OR('TSA Input'!J1938=\"Yes\",'TSA Input'!J1938=\"Contingent\"),'TSA Input'!B1938,\"Ineligible\"))","v":""},{"$f":"IF('TSA Input'!J1938=\"\",\"\",IF(OR('TSA Input'!J1938=\"Yes\",'TSA Input'!J1938=\"Contingent\"),'TSA Input'!I1938,\"\"))","v":""},{"$f":"IF('TSA Input'!J1938=\"\",\"\",IF(OR('TSA Input'!J1938=\"Yes\",'TSA Input'!J1938=\"Contingent\"),'TSA Input'!C1938,\"\"))","v":""},{"$f":"IF('TSA Input'!J1938=\"\",\"\",IF(OR('TSA Input'!J1938=\"Yes\",'TSA Input'!J1938=\"Contingent\"),'TSA Input'!D1938,\"\"))","v":""},{"$f":"IF('TSA Input'!J1938=\"\",\"\",IF(OR('TSA Input'!J1938=\"Yes\",'TSA Input'!J1938=\"Contingent\"),'TSA Input'!G1938,\"\"))","v":""},{"$f":"IF('TSA Input'!J1938=\"\",\"\",IF(OR('TSA Input'!J1938=\"Yes\",'TSA Input'!J1938=\"Contingent\"),'TSA Input'!F1938,\"\"))","v":""},"",{"$f":"IF('TSA Input'!J1938=\"\",\"\",IF(OR('TSA Input'!J1938=\"Yes\",'TSA Input'!J1938=\"Contingent\"),'TSA Input'!D1938,\"\"))","v":""},{"$f":"IF('TSA Input'!J1938=\"\",\"\",IF(OR('TSA Input'!J1938=\"Yes\",'TSA Input'!J1938=\"Contingent\"),'TSA Input'!G1938,\"\"))","v":""},{"$f":"IF('TSA Input'!J1938=\"\",\"\",IF(OR('TSA Input'!J1938=\"Yes\",'TSA Input'!J1938=\"Contingent\"),'TSA Input'!F1938,\"\"))","v":""},"","Required","Required"]
["",null,{"$f":"IF('TSA Input'!J1939=\"\",\"\",IF(OR('TSA Input'!J1939=\"Yes\",'TSA Input'!J1939=\"Contingent\"),'TSA Input'!B1939,\"Ineligible\"))","v":""},{"$f":"IF('TSA Input'!J1939=\"\",\"\",IF(OR('TSA Input'!J1939=\"Yes\",'TSA Input'!J1939=\"Contingent\"),'TSA Input'!I1939,\"\"))","v":""},{"$f":"IF('TSA Input'!J1939=\"\",\"\",IF(OR('TSA Input'!J1939=\"Yes\",'TSA Input'!J1939=\"Contingent\"),'TSA Input'!C1939,\"\"))","v":""},{"$f":"IF('TSA Input'!J1939=\"\",\"\",IF(OR('TSA Input'!J1939=\"Yes\",'TSA Input'!J1939=\"Contingent\"),'TSA Input'!D1939,\"\"))","v":""},{"$f":"IF('TSA Input'!J1939=\"\",\"\",IF(OR('TSA Input'!J1939=\"Yes\",'TSA Input'!J1939=\"Contingent\"),'TSA Input'!G1939,\"\"))","v":""},{"$f":"IF('TSA Input'!J1939=\"\",\"\",IF(OR('TSA Input'!J1939=\"Yes\",'TSA Input'!J1939=\"Contingent\"),'TSA Input'!F1939,\"\"))","v":""},"",{"$f":"IF('TSA Input'!J1939=\"\",\"\",IF(OR('TSA Input'!J1939=\"Yes\",'TSA Input'!J1939=\"Contingent\"),'TSA Input'!D1939,\"\"))","v":""},{"$f":"IF('TSA Input'!J1939=\"\",\"\",IF(OR('TSA Input'!J1939=\"Yes\",'TSA Input'!J1939=\"Contingent\"),'TSA Input'!G1939,\"\"))","v":""},{"$f":"IF('TSA Input'!J1939=\"\",\"\",IF(OR('TSA Input'!J1939=\"Yes\",'TSA Input'!J1939=\"Contingent\"),'TSA Input'!F1939,\"\"))","v":""},"","Required","Required"]
["",null,{"$f":"IF('TSA Input'!J1940=\"\",\"\",IF(OR('TSA Input'!J1940=\"Yes\",'TSA Input'!J1940=\"Contingent\"),'TSA Input'!B1940,\"Ineligible\"))","v":""},{"$f":"IF('TSA Input'!J1940=\"\",\"\",IF(OR('TSA Input'!J1940=\"Yes\",'TSA Input'!J1940=\"Contingent\"),'TSA Input'!I1940,\"\"))","v":""},{"$f":"IF('TSA Input'!J1940=\"\",\"\",IF(OR('TSA Input'!J1940=\"Yes\",'TSA Input'!J1940=\"Contingent\"),'TSA Input'!C1940,\"\"))","v":""},{"$f":"IF('TSA Input'!J1940=\"\",\"\",IF(OR('TSA Input'!J1940=\"Yes\",'TSA Input'!J1940=\"Contingent\"),'TSA Input'!D1940,\"\"))","v":""},{"$f":"IF('TSA Input'!J1940=\"\",\"\",IF(OR('TSA Input'!J1940=\"Yes\",'TSA Input'!J1940=\"Contingent\"),'TSA Input'!G1940,\"\"))","v":""},{"$f":"IF('TSA Input'!J1940=\"\",\"\",IF(OR('TSA Input'!J1940=\"Yes\",'TSA Input'!J1940=\"Contingent\"),'TSA Input'!F1940,\"\"))","v":""},"",{"$f":"IF('TSA Input'!J1940=\"\",\"\",IF(OR('TSA Input'!J1940=\"Yes\",'TSA Input'!J1940=\"Contingent\"),'TSA Input'!D1940,\"\"))","v":""},{"$f":"IF('TSA Input'!J1940=\"\",\"\",IF(OR('TSA Input'!J1940=\"Yes\",'TSA Input'!J1940=\"Contingent\"),'TSA Input'!G1940,\"\"))","v":""},{"$f":"IF('TSA Input'!J1940=\"\",\"\",IF(OR('TSA Input'!J1940=\"Yes\",'TSA Input'!J1940=\"Contingent\"),'TSA Input'!F1940,\"\"))","v":""},"","Required","Required"]
["",null,{"$f":"IF('TSA Input'!J1941=\"\",\"\",IF(OR('TSA Input'!J1941=\"Yes\",'TSA Input'!J1941=\"Contingent\"),'TSA Input'!B1941,\"Ineligible\"))","v":""},{"$f":"IF('TSA Input'!J1941=\"\",\"\",IF(OR('TSA Input'!J1941=\"Yes\",'TSA Input'!J1941=\"Contingent\"),'TSA Input'!I1941,\"\"))","v":""},{"$f":"IF('TSA Input'!J1941=\"\",\"\",IF(OR('TSA Input'!J1941=\"Yes\",'TSA Input'!J1941=\"Contingent\"),'TSA Input'!C1941,\"\"))","v":""},{"$f":"IF('TSA Input'!J1941=\"\",\"\",IF(OR('TSA Input'!J1941=\"Yes\",'TSA Input'!J1941=\"Contingent\"),'TSA Input'!D1941,\"\"))","v":""},{"$f":"IF('TSA Input'!J1941=\"\",\"\",IF(OR('TSA Input'!J1941=\"Yes\",'TSA Input'!J1941=\"Contingent\"),'TSA Input'!G1941,\"\"))","v":""},{"$f":"IF('TSA Input'!J1941=\"\",\"\",IF(OR('TSA Input'!J1941=\"Yes\",'TSA Input'!J1941=\"Contingent\"),'TSA Input'!F1941,\"\"))","v":""},"",{"$f":"IF('TSA Input'!J1941=\"\",\"\",IF(OR('TSA Input'!J1941=\"Yes\",'TSA Input'!J1941=\"Contingent\"),'TSA Input'!D1941,\"\"))","v":""},{"$f":"IF('TSA Input'!J1941=\"\",\"\",IF(OR('TSA Input'!J1941=\"Yes\",'TSA Input'!J1941=\"Contingent\"),'TSA Input'!G1941,\"\"))","v":""},{"$f":"IF('TSA Input'!J1941=\"\",\"\",IF(OR('TSA Input'!J1941=\"Yes\",'TSA Input'!J1941=\"Contingent\"),'TSA Input'!F1941,\"\"))","v":""},"","Required","Required"]
["",null,{"$f":"IF('TSA Input'!J1942=\"\",\"\",IF(OR('TSA Input'!J1942=\"Yes\",'TSA Input'!J1942=\"Contingent\"),'TSA Input'!B1942,\"Ineligible\"))","v":""},{"$f":"IF('TSA Input'!J1942=\"\",\"\",IF(OR('TSA Input'!J1942=\"Yes\",'TSA Input'!J1942=\"Contingent\"),'TSA Input'!I1942,\"\"))","v":""},{"$f":"IF('TSA Input'!J1942=\"\",\"\",IF(OR('TSA Input'!J1942=\"Yes\",'TSA Input'!J1942=\"Contingent\"),'TSA Input'!C1942,\"\"))","v":""},{"$f":"IF('TSA Input'!J1942=\"\",\"\",IF(OR('TSA Input'!J1942=\"Yes\",'TSA Input'!J1942=\"Contingent\"),'TSA Input'!D1942,\"\"))","v":""},{"$f":"IF('TSA Input'!J1942=\"\",\"\",IF(OR('TSA Input'!J1942=\"Yes\",'TSA Input'!J1942=\"Contingent\"),'TSA Input'!G1942,\"\"))","v":""},{"$f":"IF('TSA Input'!J1942=\"\",\"\",IF(OR('TSA Input'!J1942=\"Yes\",'TSA Input'!J1942=\"Contingent\"),'TSA Input'!F1942,\"\"))","v":""},"",{"$f":"IF('TSA Input'!J1942=\"\",\"\",IF(OR('TSA Input'!J1942=\"Yes\",'TSA Input'!J1942=\"Contingent\"),'TSA Input'!D1942,\"\"))","v":""},{"$f":"IF('TSA Input'!J1942=\"\",\"\",IF(OR('TSA Input'!J1942=\"Yes\",'TSA Input'!J1942=\"Contingent\"),'TSA Input'!G1942,\"\"))","v":""},{"$f":"IF('TSA Input'!J1942=\"\",\"\",IF(OR('TSA Input'!J1942=\"Yes\",'TSA Input'!J1942=\"Contingent\"),'TSA Input'!F1942,\"\"))","v":""},"","Required","Required"]
["",null,{"$f":"IF('TSA Input'!J1943=\"\",\"\",IF(OR('TSA Input'!J1943=\"Yes\",'TSA Input'!J1943=\"Contingent\"),'TSA Input'!B1943,\"Ineligible\"))","v":""},{"$f":"IF('TSA Input'!J1943=\"\",\"\",IF(OR('TSA Input'!J1943=\"Yes\",'TSA Input'!J1943=\"Contingent\"),'TSA Input'!I1943,\"\"))","v":""},{"$f":"IF('TSA Input'!J1943=\"\",\"\",IF(OR('TSA Input'!J1943=\"Yes\",'TSA Input'!J1943=\"Contingent\"),'TSA Input'!C1943,\"\"))","v":""},{"$f":"IF('TSA Input'!J1943=\"\",\"\",IF(OR('TSA Input'!J1943=\"Yes\",'TSA Input'!J1943=\"Contingent\"),'TSA Input'!D1943,\"\"))","v":""},{"$f":"IF('TSA Input'!J1943=\"\",\"\",IF(OR('TSA Input'!J1943=\"Yes\",'TSA Input'!J1943=\"Contingent\"),'TSA Input'!G1943,\"\"))","v":""},{"$f":"IF('TSA Input'!J1943=\"\",\"\",IF(OR('TSA Input'!J1943=\"Yes\",'TSA Input'!J1943=\"Contingent\"),'TSA Input'!F1943,\"\"))","v":""},"",{"$f":"IF('TSA Input'!J1943=\"\",\"\",IF(OR('TSA Input'!J1943=\"Yes\",'TSA Input'!J1943=\"Contingent\"),'TSA Input'!D1943,\"\"))","v":""},{"$f":"IF('TSA Input'!J1943=\"\",\"\",IF(OR('TSA Input'!J1943=\"Yes\",'TSA Input'!J1943=\"Contingent\"),'TSA Input'!G1943,\"\"))","v":""},{"$f":"IF('TSA Input'!J1943=\"\",\"\",IF(OR('TSA Input'!J1943=\"Yes\",'TSA Input'!J1943=\"Contingent\"),'TSA Input'!F1943,\"\"))","v":""},"","Required","Required"]
["",null,{"$f":"IF('TSA Input'!J1944=\"\",\"\",IF(OR('TSA Input'!J1944=\"Yes\",'TSA Input'!J1944=\"Contingent\"),'TSA Input'!B1944,\"Ineligible\"))","v":""},{"$f":"IF('TSA Input'!J1944=\"\",\"\",IF(OR('TSA Input'!J1944=\"Yes\",'TSA Input'!J1944=\"Contingent\"),'TSA Input'!I1944,\"\"))","v":""},{"$f":"IF('TSA Input'!J1944=\"\",\"\",IF(OR('TSA Input'!J1944=\"Yes\",'TSA Input'!J1944=\"Contingent\"),'TSA Input'!C1944,\"\"))","v":""},{"$f":"IF('TSA Input'!J1944=\"\",\"\",IF(OR('TSA Input'!J1944=\"Yes\",'TSA Input'!J1944=\"Contingent\"),'TSA Input'!D1944,\"\"))","v":""},{"$f":"IF('TSA Input'!J1944=\"\",\"\",IF(OR('TSA Input'!J1944=\"Yes\",'TSA Input'!J1944=\"Contingent\"),'TSA Input'!G1944,\"\"))","v":""},{"$f":"IF('TSA Input'!J1944=\"\",\"\",IF(OR('TSA Input'!J1944=\"Yes\",'TSA Input'!J1944=\"Contingent\"),'TSA Input'!F1944,\"\"))","v":""},"",{"$f":"IF('TSA Input'!J1944=\"\",\"\",IF(OR('TSA Input'!J1944=\"Yes\",'TSA Input'!J1944=\"Contingent\"),'TSA Input'!D1944,\"\"))","v":""},{"$f":"IF('TSA Input'!J1944=\"\",\"\",IF(OR('TSA Input'!J1944=\"Yes\",'TSA Input'!J1944=\"Contingent\"),'TSA Input'!G1944,\"\"))","v":""},{"$f":"IF('TSA Input'!J1944=\"\",\"\",IF(OR('TSA Input'!J1944=\"Yes\",'TSA Input'!J1944=\"Contingent\"),'TSA Input'!F1944,\"\"))","v":""},"","Required","Required"]
["",null,{"$f":"IF('TSA Input'!J1945=\"\",\"\",IF(OR('TSA Input'!J1945=\"Yes\",'TSA Input'!J1945=\"Contingent\"),'TSA Input'!B1945,\"Ineligible\"))","v":""},{"$f":"IF('TSA Input'!J1945=\"\",\"\",IF(OR('TSA Input'!J1945=\"Yes\",'TSA Input'!J1945=\"Contingent\"),'TSA Input'!I1945,\"\"))","v":""},{"$f":"IF('TSA Input'!J1945=\"\",\"\",IF(OR('TSA Input'!J1945=\"Yes\",'TSA Input'!J1945=\"Contingent\"),'TSA Input'!C1945,\"\"))","v":""},{"$f":"IF('TSA Input'!J1945=\"\",\"\",IF(OR('TSA Input'!J1945=\"Yes\",'TSA Input'!J1945=\"Contingent\"),'TSA Input'!D1945,\"\"))","v":""},{"$f":"IF('TSA Input'!J1945=\"\",\"\",IF(OR('TSA Input'!J1945=\"Yes\",'TSA Input'!J1945=\"Contingent\"),'TSA Input'!G1945,\"\"))","v":""},{"$f":"IF('TSA Input'!J1945=\"\",\"\",IF(OR('TSA Input'!J1945=\"Yes\",'TSA Input'!J1945=\"Contingent\"),'TSA Input'!F1945,\"\"))","v":""},"",{"$f":"IF('TSA Input'!J1945=\"\",\"\",IF(OR('TSA Input'!J1945=\"Yes\",'TSA Input'!J1945=\"Contingent\"),'TSA Input'!D1945,\"\"))","v":""},{"$f":"IF('TSA Input'!J1945=\"\",\"\",IF(OR('TSA Input'!J1945=\"Yes\",'TSA Input'!J1945=\"Contingent\"),'TSA Input'!G1945,\"\"))","v":""},{"$f":"IF('TSA Input'!J1945=\"\",\"\",IF(OR('TSA Input'!J1945=\"Yes\",'TSA Input'!J1945=\"Contingent\"),'TSA Input'!F1945,\"\"))","v":""},"","Required","Required"]
["",null,{"$f":"IF('TSA Input'!J1946=\"\",\"\",IF(OR('TSA Input'!J1946=\"Yes\",'TSA Input'!J1946=\"Contingent\"),'TSA Input'!B1946,\"Ineligible\"))","v":""},{"$f":"IF('TSA Input'!J1946=\"\",\"\",IF(OR('TSA Input'!J1946=\"Yes\",'TSA Input'!J1946=\"Contingent\"),'TSA Input'!I1946,\"\"))","v":""},{"$f":"IF('TSA Input'!J1946=\"\",\"\",IF(OR('TSA Input'!J1946=\"Yes\",'TSA Input'!J1946=\"Contingent\"),'TSA Input'!C1946,\"\"))","v":""},{"$f":"IF('TSA Input'!J1946=\"\",\"\",IF(OR('TSA Input'!J1946=\"Yes\",'TSA Input'!J1946=\"Contingent\"),'TSA Input'!D1946,\"\"))","v":""},{"$f":"IF('TSA Input'!J1946=\"\",\"\",IF(OR('TSA Input'!J1946=\"Yes\",'TSA Input'!J1946=\"Contingent\"),'TSA Input'!G1946,\"\"))","v":""},{"$f":"IF('TSA Input'!J1946=\"\",\"\",IF(OR('TSA Input'!J1946=\"Yes\",'TSA Input'!J1946=\"Contingent\"),'TSA Input'!F1946,\"\"))","v":""},"",{"$f":"IF('TSA Input'!J1946=\"\",\"\",IF(OR('TSA Input'!J1946=\"Yes\",'TSA Input'!J1946=\"Contingent\"),'TSA Input'!D1946,\"\"))","v":""},{"$f":"IF('TSA Input'!J1946=\"\",\"\",IF(OR('TSA Input'!J1946=\"Yes\",'TSA Input'!J1946=\"Contingent\"),'TSA Input'!G1946,\"\"))","v":""},{"$f":"IF('TSA Input'!J1946=\"\",\"\",IF(OR('TSA Input'!J1946=\"Yes\",'TSA Input'!J1946=\"Contingent\"),'TSA Input'!F1946,\"\"))","v":""},"","Required","Required"]
["",null,{"$f":"IF('TSA Input'!J1947=\"\",\"\",IF(OR('TSA Input'!J1947=\"Yes\",'TSA Input'!J1947=\"Contingent\"),'TSA Input'!B1947,\"Ineligible\"))","v":""},{"$f":"IF('TSA Input'!J1947=\"\",\"\",IF(OR('TSA Input'!J1947=\"Yes\",'TSA Input'!J1947=\"Contingent\"),'TSA Input'!I1947,\"\"))","v":""},{"$f":"IF('TSA Input'!J1947=\"\",\"\",IF(OR('TSA Input'!J1947=\"Yes\",'TSA Input'!J1947=\"Contingent\"),'TSA Input'!C1947,\"\"))","v":""},{"$f":"IF('TSA Input'!J1947=\"\",\"\",IF(OR('TSA Input'!J1947=\"Yes\",'TSA Input'!J1947=\"Contingent\"),'TSA Input'!D1947,\"\"))","v":""},{"$f":"IF('TSA Input'!J1947=\"\",\"\",IF(OR('TSA Input'!J1947=\"Yes\",'TSA Input'!J1947=\"Contingent\"),'TSA Input'!G1947,\"\"))","v":""},{"$f":"IF('TSA Input'!J1947=\"\",\"\",IF(OR('TSA Input'!J1947=\"Yes\",'TSA Input'!J1947=\"Contingent\"),'TSA Input'!F1947,\"\"))","v":""},"",{"$f":"IF('TSA Input'!J1947=\"\",\"\",IF(OR('TSA Input'!J1947=\"Yes\",'TSA Input'!J1947=\"Contingent\"),'TSA Input'!D1947,\"\"))","v":""},{"$f":"IF('TSA Input'!J1947=\"\",\"\",IF(OR('TSA Input'!J1947=\"Yes\",'TSA Input'!J1947=\"Contingent\"),'TSA Input'!G1947,\"\"))","v":""},{"$f":"IF('TSA Input'!J1947=\"\",\"\",IF(OR('TSA Input'!J1947=\"Yes\",'TSA Input'!J1947=\"Contingent\"),'TSA Input'!F1947,\"\"))","v":""},"","Required","Required"]
["",null,{"$f":"IF('TSA Input'!J1948=\"\",\"\",IF(OR('TSA Input'!J1948=\"Yes\",'TSA Input'!J1948=\"Contingent\"),'TSA Input'!B1948,\"Ineligible\"))","v":""},{"$f":"IF('TSA Input'!J1948=\"\",\"\",IF(OR('TSA Input'!J1948=\"Yes\",'TSA Input'!J1948=\"Contingent\"),'TSA Input'!I1948,\"\"))","v":""},{"$f":"IF('TSA Input'!J1948=\"\",\"\",IF(OR('TSA Input'!J1948=\"Yes\",'TSA Input'!J1948=\"Contingent\"),'TSA Input'!C1948,\"\"))","v":""},{"$f":"IF('TSA Input'!J1948=\"\",\"\",IF(OR('TSA Input'!J1948=\"Yes\",'TSA Input'!J1948=\"Contingent\"),'TSA Input'!D1948,\"\"))","v":""},{"$f":"IF('TSA Input'!J1948=\"\",\"\",IF(OR('TSA Input'!J1948=\"Yes\",'TSA Input'!J1948=\"Contingent\"),'TSA Input'!G1948,\"\"))","v":""},{"$f":"IF('TSA Input'!J1948=\"\",\"\",IF(OR('TSA Input'!J1948=\"Yes\",'TSA Input'!J1948=\"Contingent\"),'TSA Input'!F1948,\"\"))","v":""},"",{"$f":"IF('TSA Input'!J1948=\"\",\"\",IF(OR('TSA Input'!J1948=\"Yes\",'TSA Input'!J1948=\"Contingent\"),'TSA Input'!D1948,\"\"))","v":""},{"$f":"IF('TSA Input'!J1948=\"\",\"\",IF(OR('TSA Input'!J1948=\"Yes\",'TSA Input'!J1948=\"Contingent\"),'TSA Input'!G1948,\"\"))","v":""},{"$f":"IF('TSA Input'!J1948=\"\",\"\",IF(OR('TSA Input'!J1948=\"Yes\",'TSA Input'!J1948=\"Contingent\"),'TSA Input'!F1948,\"\"))","v":""},"","Required","Required"]
["",null,{"$f":"IF('TSA Input'!J1949=\"\",\"\",IF(OR('TSA Input'!J1949=\"Yes\",'TSA Input'!J1949=\"Contingent\"),'TSA Input'!B1949,\"Ineligible\"))","v":""},{"$f":"IF('TSA Input'!J1949=\"\",\"\",IF(OR('TSA Input'!J1949=\"Yes\",'TSA Input'!J1949=\"Contingent\"),'TSA Input'!I1949,\"\"))","v":""},{"$f":"IF('TSA Input'!J1949=\"\",\"\",IF(OR('TSA Input'!J1949=\"Yes\",'TSA Input'!J1949=\"Contingent\"),'TSA Input'!C1949,\"\"))","v":""},{"$f":"IF('TSA Input'!J1949=\"\",\"\",IF(OR('TSA Input'!J1949=\"Yes\",'TSA Input'!J1949=\"Contingent\"),'TSA Input'!D1949,\"\"))","v":""},{"$f":"IF('TSA Input'!J1949=\"\",\"\",IF(OR('TSA Input'!J1949=\"Yes\",'TSA Input'!J1949=\"Contingent\"),'TSA Input'!G1949,\"\"))","v":""},{"$f":"IF('TSA Input'!J1949=\"\",\"\",IF(OR('TSA Input'!J1949=\"Yes\",'TSA Input'!J1949=\"Contingent\"),'TSA Input'!F1949,\"\"))","v":""},"",{"$f":"IF('TSA Input'!J1949=\"\",\"\",IF(OR('TSA Input'!J1949=\"Yes\",'TSA Input'!J1949=\"Contingent\"),'TSA Input'!D1949,\"\"))","v":""},{"$f":"IF('TSA Input'!J1949=\"\",\"\",IF(OR('TSA Input'!J1949=\"Yes\",'TSA Input'!J1949=\"Contingent\"),'TSA Input'!G1949,\"\"))","v":""},{"$f":"IF('TSA Input'!J1949=\"\",\"\",IF(OR('TSA Input'!J1949=\"Yes\",'TSA Input'!J1949=\"Contingent\"),'TSA Input'!F1949,\"\"))","v":""},"","Required","Required"]
["",null,{"$f":"IF('TSA Input'!J1950=\"\",\"\",IF(OR('TSA Input'!J1950=\"Yes\",'TSA Input'!J1950=\"Contingent\"),'TSA Input'!B1950,\"Ineligible\"))","v":""},{"$f":"IF('TSA Input'!J1950=\"\",\"\",IF(OR('TSA Input'!J1950=\"Yes\",'TSA Input'!J1950=\"Contingent\"),'TSA Input'!I1950,\"\"))","v":""},{"$f":"IF('TSA Input'!J1950=\"\",\"\",IF(OR('TSA Input'!J1950=\"Yes\",'TSA Input'!J1950=\"Contingent\"),'TSA Input'!C1950,\"\"))","v":""},{"$f":"IF('TSA Input'!J1950=\"\",\"\",IF(OR('TSA Input'!J1950=\"Yes\",'TSA Input'!J1950=\"Contingent\"),'TSA Input'!D1950,\"\"))","v":""},{"$f":"IF('TSA Input'!J1950=\"\",\"\",IF(OR('TSA Input'!J1950=\"Yes\",'TSA Input'!J1950=\"Contingent\"),'TSA Input'!G1950,\"\"))","v":""},{"$f":"IF('TSA Input'!J1950=\"\",\"\",IF(OR('TSA Input'!J1950=\"Yes\",'TSA Input'!J1950=\"Contingent\"),'TSA Input'!F1950,\"\"))","v":""},"",{"$f":"IF('TSA Input'!J1950=\"\",\"\",IF(OR('TSA Input'!J1950=\"Yes\",'TSA Input'!J1950=\"Contingent\"),'TSA Input'!D1950,\"\"))","v":""},{"$f":"IF('TSA Input'!J1950=\"\",\"\",IF(OR('TSA Input'!J1950=\"Yes\",'TSA Input'!J1950=\"Contingent\"),'TSA Input'!G1950,\"\"))","v":""},{"$f":"IF('TSA Input'!J1950=\"\",\"\",IF(OR('TSA Input'!J1950=\"Yes\",'TSA Input'!J1950=\"Contingent\"),'TSA Input'!F1950,\"\"))","v":""},"","Required","Required"]
["",null,{"$f":"IF('TSA Input'!J1951=\"\",\"\",IF(OR('TSA Input'!J1951=\"Yes\",'TSA Input'!J1951=\"Contingent\"),'TSA Input'!B1951,\"Ineligible\"))","v":""},{"$f":"IF('TSA Input'!J1951=\"\",\"\",IF(OR('TSA Input'!J1951=\"Yes\",'TSA Input'!J1951=\"Contingent\"),'TSA Input'!I1951,\"\"))","v":""},{"$f":"IF('TSA Input'!J1951=\"\",\"\",IF(OR('TSA Input'!J1951=\"Yes\",'TSA Input'!J1951=\"Contingent\"),'TSA Input'!C1951,\"\"))","v":""},{"$f":"IF('TSA Input'!J1951=\"\",\"\",IF(OR('TSA Input'!J1951=\"Yes\",'TSA Input'!J1951=\"Contingent\"),'TSA Input'!D1951,\"\"))","v":""},{"$f":"IF('TSA Input'!J1951=\"\",\"\",IF(OR('TSA Input'!J1951=\"Yes\",'TSA Input'!J1951=\"Contingent\"),'TSA Input'!G1951,\"\"))","v":""},{"$f":"IF('TSA Input'!J1951=\"\",\"\",IF(OR('TSA Input'!J1951=\"Yes\",'TSA Input'!J1951=\"Contingent\"),'TSA Input'!F1951,\"\"))","v":""},"",{"$f":"IF('TSA Input'!J1951=\"\",\"\",IF(OR('TSA Input'!J1951=\"Yes\",'TSA Input'!J1951=\"Contingent\"),'TSA Input'!D1951,\"\"))","v":""},{"$f":"IF('TSA Input'!J1951=\"\",\"\",IF(OR('TSA Input'!J1951=\"Yes\",'TSA Input'!J1951=\"Contingent\"),'TSA Input'!G1951,\"\"))","v":""},{"$f":"IF('TSA Input'!J1951=\"\",\"\",IF(OR('TSA Input'!J1951=\"Yes\",'TSA Input'!J1951=\"Contingent\"),'TSA Input'!F1951,\"\"))","v":""},"","Required","Required"]
["",null,{"$f":"IF('TSA Input'!J1952=\"\",\"\",IF(OR('TSA Input'!J1952=\"Yes\",'TSA Input'!J1952=\"Contingent\"),'TSA Input'!B1952,\"Ineligible\"))","v":""},{"$f":"IF('TSA Input'!J1952=\"\",\"\",IF(OR('TSA Input'!J1952=\"Yes\",'TSA Input'!J1952=\"Contingent\"),'TSA Input'!I1952,\"\"))","v":""},{"$f":"IF('TSA Input'!J1952=\"\",\"\",IF(OR('TSA Input'!J1952=\"Yes\",'TSA Input'!J1952=\"Contingent\"),'TSA Input'!C1952,\"\"))","v":""},{"$f":"IF('TSA Input'!J1952=\"\",\"\",IF(OR('TSA Input'!J1952=\"Yes\",'TSA Input'!J1952=\"Contingent\"),'TSA Input'!D1952,\"\"))","v":""},{"$f":"IF('TSA Input'!J1952=\"\",\"\",IF(OR('TSA Input'!J1952=\"Yes\",'TSA Input'!J1952=\"Contingent\"),'TSA Input'!G1952,\"\"))","v":""},{"$f":"IF('TSA Input'!J1952=\"\",\"\",IF(OR('TSA Input'!J1952=\"Yes\",'TSA Input'!J1952=\"Contingent\"),'TSA Input'!F1952,\"\"))","v":""},"",{"$f":"IF('TSA Input'!J1952=\"\",\"\",IF(OR('TSA Input'!J1952=\"Yes\",'TSA Input'!J1952=\"Contingent\"),'TSA Input'!D1952,\"\"))","v":""},{"$f":"IF('TSA Input'!J1952=\"\",\"\",IF(OR('TSA Input'!J1952=\"Yes\",'TSA Input'!J1952=\"Contingent\"),'TSA Input'!G1952,\"\"))","v":""},{"$f":"IF('TSA Input'!J1952=\"\",\"\",IF(OR('TSA Input'!J1952=\"Yes\",'TSA Input'!J1952=\"Contingent\"),'TSA Input'!F1952,\"\"))","v":""},"","Required","Required"]
["",null,{"$f":"IF('TSA Input'!J1953=\"\",\"\",IF(OR('TSA Input'!J1953=\"Yes\",'TSA Input'!J1953=\"Contingent\"),'TSA Input'!B1953,\"Ineligible\"))","v":""},{"$f":"IF('TSA Input'!J1953=\"\",\"\",IF(OR('TSA Input'!J1953=\"Yes\",'TSA Input'!J1953=\"Contingent\"),'TSA Input'!I1953,\"\"))","v":""},{"$f":"IF('TSA Input'!J1953=\"\",\"\",IF(OR('TSA Input'!J1953=\"Yes\",'TSA Input'!J1953=\"Contingent\"),'TSA Input'!C1953,\"\"))","v":""},{"$f":"IF('TSA Input'!J1953=\"\",\"\",IF(OR('TSA Input'!J1953=\"Yes\",'TSA Input'!J1953=\"Contingent\"),'TSA Input'!D1953,\"\"))","v":""},{"$f":"IF('TSA Input'!J1953=\"\",\"\",IF(OR('TSA Input'!J1953=\"Yes\",'TSA Input'!J1953=\"Contingent\"),'TSA Input'!G1953,\"\"))","v":""},{"$f":"IF('TSA Input'!J1953=\"\",\"\",IF(OR('TSA Input'!J1953=\"Yes\",'TSA Input'!J1953=\"Contingent\"),'TSA Input'!F1953,\"\"))","v":""},"",{"$f":"IF('TSA Input'!J1953=\"\",\"\",IF(OR('TSA Input'!J1953=\"Yes\",'TSA Input'!J1953=\"Contingent\"),'TSA Input'!D1953,\"\"))","v":""},{"$f":"IF('TSA Input'!J1953=\"\",\"\",IF(OR('TSA Input'!J1953=\"Yes\",'TSA Input'!J1953=\"Contingent\"),'TSA Input'!G1953,\"\"))","v":""},{"$f":"IF('TSA Input'!J1953=\"\",\"\",IF(OR('TSA Input'!J1953=\"Yes\",'TSA Input'!J1953=\"Contingent\"),'TSA Input'!F1953,\"\"))","v":""},"","Required","Required"]
["",null,{"$f":"IF('TSA Input'!J1954=\"\",\"\",IF(OR('TSA Input'!J1954=\"Yes\",'TSA Input'!J1954=\"Contingent\"),'TSA Input'!B1954,\"Ineligible\"))","v":""},{"$f":"IF('TSA Input'!J1954=\"\",\"\",IF(OR('TSA Input'!J1954=\"Yes\",'TSA Input'!J1954=\"Contingent\"),'TSA Input'!I1954,\"\"))","v":""},{"$f":"IF('TSA Input'!J1954=\"\",\"\",IF(OR('TSA Input'!J1954=\"Yes\",'TSA Input'!J1954=\"Contingent\"),'TSA Input'!C1954,\"\"))","v":""},{"$f":"IF('TSA Input'!J1954=\"\",\"\",IF(OR('TSA Input'!J1954=\"Yes\",'TSA Input'!J1954=\"Contingent\"),'TSA Input'!D1954,\"\"))","v":""},{"$f":"IF('TSA Input'!J1954=\"\",\"\",IF(OR('TSA Input'!J1954=\"Yes\",'TSA Input'!J1954=\"Contingent\"),'TSA Input'!G1954,\"\"))","v":""},{"$f":"IF('TSA Input'!J1954=\"\",\"\",IF(OR('TSA Input'!J1954=\"Yes\",'TSA Input'!J1954=\"Contingent\"),'TSA Input'!F1954,\"\"))","v":""},"",{"$f":"IF('TSA Input'!J1954=\"\",\"\",IF(OR('TSA Input'!J1954=\"Yes\",'TSA Input'!J1954=\"Contingent\"),'TSA Input'!D1954,\"\"))","v":""},{"$f":"IF('TSA Input'!J1954=\"\",\"\",IF(OR('TSA Input'!J1954=\"Yes\",'TSA Input'!J1954=\"Contingent\"),'TSA Input'!G1954,\"\"))","v":""},{"$f":"IF('TSA Input'!J1954=\"\",\"\",IF(OR('TSA Input'!J1954=\"Yes\",'TSA Input'!J1954=\"Contingent\"),'TSA Input'!F1954,\"\"))","v":""},"","Required","Required"]
["",null,{"$f":"IF('TSA Input'!J1955=\"\",\"\",IF(OR('TSA Input'!J1955=\"Yes\",'TSA Input'!J1955=\"Contingent\"),'TSA Input'!B1955,\"Ineligible\"))","v":""},{"$f":"IF('TSA Input'!J1955=\"\",\"\",IF(OR('TSA Input'!J1955=\"Yes\",'TSA Input'!J1955=\"Contingent\"),'TSA Input'!I1955,\"\"))","v":""},{"$f":"IF('TSA Input'!J1955=\"\",\"\",IF(OR('TSA Input'!J1955=\"Yes\",'TSA Input'!J1955=\"Contingent\"),'TSA Input'!C1955,\"\"))","v":""},{"$f":"IF('TSA Input'!J1955=\"\",\"\",IF(OR('TSA Input'!J1955=\"Yes\",'TSA Input'!J1955=\"Contingent\"),'TSA Input'!D1955,\"\"))","v":""},{"$f":"IF('TSA Input'!J1955=\"\",\"\",IF(OR('TSA Input'!J1955=\"Yes\",'TSA Input'!J1955=\"Contingent\"),'TSA Input'!G1955,\"\"))","v":""},{"$f":"IF('TSA Input'!J1955=\"\",\"\",IF(OR('TSA Input'!J1955=\"Yes\",'TSA Input'!J1955=\"Contingent\"),'TSA Input'!F1955,\"\"))","v":""},"",{"$f":"IF('TSA Input'!J1955=\"\",\"\",IF(OR('TSA Input'!J1955=\"Yes\",'TSA Input'!J1955=\"Contingent\"),'TSA Input'!D1955,\"\"))","v":""},{"$f":"IF('TSA Input'!J1955=\"\",\"\",IF(OR('TSA Input'!J1955=\"Yes\",'TSA Input'!J1955=\"Contingent\"),'TSA Input'!G1955,\"\"))","v":""},{"$f":"IF('TSA Input'!J1955=\"\",\"\",IF(OR('TSA Input'!J1955=\"Yes\",'TSA Input'!J1955=\"Contingent\"),'TSA Input'!F1955,\"\"))","v":""},"","Required","Required"]
["",null,{"$f":"IF('TSA Input'!J1956=\"\",\"\",IF(OR('TSA Input'!J1956=\"Yes\",'TSA Input'!J1956=\"Contingent\"),'TSA Input'!B1956,\"Ineligible\"))","v":""},{"$f":"IF('TSA Input'!J1956=\"\",\"\",IF(OR('TSA Input'!J1956=\"Yes\",'TSA Input'!J1956=\"Contingent\"),'TSA Input'!I1956,\"\"))","v":""},{"$f":"IF('TSA Input'!J1956=\"\",\"\",IF(OR('TSA Input'!J1956=\"Yes\",'TSA Input'!J1956=\"Contingent\"),'TSA Input'!C1956,\"\"))","v":""},{"$f":"IF('TSA Input'!J1956=\"\",\"\",IF(OR('TSA Input'!J1956=\"Yes\",'TSA Input'!J1956=\"Contingent\"),'TSA Input'!D1956,\"\"))","v":""},{"$f":"IF('TSA Input'!J1956=\"\",\"\",IF(OR('TSA Input'!J1956=\"Yes\",'TSA Input'!J1956=\"Contingent\"),'TSA Input'!G1956,\"\"))","v":""},{"$f":"IF('TSA Input'!J1956=\"\",\"\",IF(OR('TSA Input'!J1956=\"Yes\",'TSA Input'!J1956=\"Contingent\"),'TSA Input'!F1956,\"\"))","v":""},"",{"$f":"IF('TSA Input'!J1956=\"\",\"\",IF(OR('TSA Input'!J1956=\"Yes\",'TSA Input'!J1956=\"Contingent\"),'TSA Input'!D1956,\"\"))","v":""},{"$f":"IF('TSA Input'!J1956=\"\",\"\",IF(OR('TSA Input'!J1956=\"Yes\",'TSA Input'!J1956=\"Contingent\"),'TSA Input'!G1956,\"\"))","v":""},{"$f":"IF('TSA Input'!J1956=\"\",\"\",IF(OR('TSA Input'!J1956=\"Yes\",'TSA Input'!J1956=\"Contingent\"),'TSA Input'!F1956,\"\"))","v":""},"","Required","Required"]
["",null,{"$f":"IF('TSA Input'!J1957=\"\",\"\",IF(OR('TSA Input'!J1957=\"Yes\",'TSA Input'!J1957=\"Contingent\"),'TSA Input'!B1957,\"Ineligible\"))","v":""},{"$f":"IF('TSA Input'!J1957=\"\",\"\",IF(OR('TSA Input'!J1957=\"Yes\",'TSA Input'!J1957=\"Contingent\"),'TSA Input'!I1957,\"\"))","v":""},{"$f":"IF('TSA Input'!J1957=\"\",\"\",IF(OR('TSA Input'!J1957=\"Yes\",'TSA Input'!J1957=\"Contingent\"),'TSA Input'!C1957,\"\"))","v":""},{"$f":"IF('TSA Input'!J1957=\"\",\"\",IF(OR('TSA Input'!J1957=\"Yes\",'TSA Input'!J1957=\"Contingent\"),'TSA Input'!D1957,\"\"))","v":""},{"$f":"IF('TSA Input'!J1957=\"\",\"\",IF(OR('TSA Input'!J1957=\"Yes\",'TSA Input'!J1957=\"Contingent\"),'TSA Input'!G1957,\"\"))","v":""},{"$f":"IF('TSA Input'!J1957=\"\",\"\",IF(OR('TSA Input'!J1957=\"Yes\",'TSA Input'!J1957=\"Contingent\"),'TSA Input'!F1957,\"\"))","v":""},"",{"$f":"IF('TSA Input'!J1957=\"\",\"\",IF(OR('TSA Input'!J1957=\"Yes\",'TSA Input'!J1957=\"Contingent\"),'TSA Input'!D1957,\"\"))","v":""},{"$f":"IF('TSA Input'!J1957=\"\",\"\",IF(OR('TSA Input'!J1957=\"Yes\",'TSA Input'!J1957=\"Contingent\"),'TSA Input'!G1957,\"\"))","v":""},{"$f":"IF('TSA Input'!J1957=\"\",\"\",IF(OR('TSA Input'!J1957=\"Yes\",'TSA Input'!J1957=\"Contingent\"),'TSA Input'!F1957,\"\"))","v":""},"","Required","Required"]
["",null,{"$f":"IF('TSA Input'!J1958=\"\",\"\",IF(OR('TSA Input'!J1958=\"Yes\",'TSA Input'!J1958=\"Contingent\"),'TSA Input'!B1958,\"Ineligible\"))","v":""},{"$f":"IF('TSA Input'!J1958=\"\",\"\",IF(OR('TSA Input'!J1958=\"Yes\",'TSA Input'!J1958=\"Contingent\"),'TSA Input'!I1958,\"\"))","v":""},{"$f":"IF('TSA Input'!J1958=\"\",\"\",IF(OR('TSA Input'!J1958=\"Yes\",'TSA Input'!J1958=\"Contingent\"),'TSA Input'!C1958,\"\"))","v":""},{"$f":"IF('TSA Input'!J1958=\"\",\"\",IF(OR('TSA Input'!J1958=\"Yes\",'TSA Input'!J1958=\"Contingent\"),'TSA Input'!D1958,\"\"))","v":""},{"$f":"IF('TSA Input'!J1958=\"\",\"\",IF(OR('TSA Input'!J1958=\"Yes\",'TSA Input'!J1958=\"Contingent\"),'TSA Input'!G1958,\"\"))","v":""},{"$f":"IF('TSA Input'!J1958=\"\",\"\",IF(OR('TSA Input'!J1958=\"Yes\",'TSA Input'!J1958=\"Contingent\"),'TSA Input'!F1958,\"\"))","v":""},"",{"$f":"IF('TSA Input'!J1958=\"\",\"\",IF(OR('TSA Input'!J1958=\"Yes\",'TSA Input'!J1958=\"Contingent\"),'TSA Input'!D1958,\"\"))","v":""},{"$f":"IF('TSA Input'!J1958=\"\",\"\",IF(OR('TSA Input'!J1958=\"Yes\",'TSA Input'!J1958=\"Contingent\"),'TSA Input'!G1958,\"\"))","v":""},{"$f":"IF('TSA Input'!J1958=\"\",\"\",IF(OR('TSA Input'!J1958=\"Yes\",'TSA Input'!J1958=\"Contingent\"),'TSA Input'!F1958,\"\"))","v":""},"","Required","Required"]
["",null,{"$f":"IF('TSA Input'!J1959=\"\",\"\",IF(OR('TSA Input'!J1959=\"Yes\",'TSA Input'!J1959=\"Contingent\"),'TSA Input'!B1959,\"Ineligible\"))","v":""},{"$f":"IF('TSA Input'!J1959=\"\",\"\",IF(OR('TSA Input'!J1959=\"Yes\",'TSA Input'!J1959=\"Contingent\"),'TSA Input'!I1959,\"\"))","v":""},{"$f":"IF('TSA Input'!J1959=\"\",\"\",IF(OR('TSA Input'!J1959=\"Yes\",'TSA Input'!J1959=\"Contingent\"),'TSA Input'!C1959,\"\"))","v":""},{"$f":"IF('TSA Input'!J1959=\"\",\"\",IF(OR('TSA Input'!J1959=\"Yes\",'TSA Input'!J1959=\"Contingent\"),'TSA Input'!D1959,\"\"))","v":""},{"$f":"IF('TSA Input'!J1959=\"\",\"\",IF(OR('TSA Input'!J1959=\"Yes\",'TSA Input'!J1959=\"Contingent\"),'TSA Input'!G1959,\"\"))","v":""},{"$f":"IF('TSA Input'!J1959=\"\",\"\",IF(OR('TSA Input'!J1959=\"Yes\",'TSA Input'!J1959=\"Contingent\"),'TSA Input'!F1959,\"\"))","v":""},"",{"$f":"IF('TSA Input'!J1959=\"\",\"\",IF(OR('TSA Input'!J1959=\"Yes\",'TSA Input'!J1959=\"Contingent\"),'TSA Input'!D1959,\"\"))","v":""},{"$f":"IF('TSA Input'!J1959=\"\",\"\",IF(OR('TSA Input'!J1959=\"Yes\",'TSA Input'!J1959=\"Contingent\"),'TSA Input'!G1959,\"\"))","v":""},{"$f":"IF('TSA Input'!J1959=\"\",\"\",IF(OR('TSA Input'!J1959=\"Yes\",'TSA Input'!J1959=\"Contingent\"),'TSA Input'!F1959,\"\"))","v":""},"","Required","Required"]
["",null,{"$f":"IF('TSA Input'!J1960=\"\",\"\",IF(OR('TSA Input'!J1960=\"Yes\",'TSA Input'!J1960=\"Contingent\"),'TSA Input'!B1960,\"Ineligible\"))","v":""},{"$f":"IF('TSA Input'!J1960=\"\",\"\",IF(OR('TSA Input'!J1960=\"Yes\",'TSA Input'!J1960=\"Contingent\"),'TSA Input'!I1960,\"\"))","v":""},{"$f":"IF('TSA Input'!J1960=\"\",\"\",IF(OR('TSA Input'!J1960=\"Yes\",'TSA Input'!J1960=\"Contingent\"),'TSA Input'!C1960,\"\"))","v":""},{"$f":"IF('TSA Input'!J1960=\"\",\"\",IF(OR('TSA Input'!J1960=\"Yes\",'TSA Input'!J1960=\"Contingent\"),'TSA Input'!D1960,\"\"))","v":""},{"$f":"IF('TSA Input'!J1960=\"\",\"\",IF(OR('TSA Input'!J1960=\"Yes\",'TSA Input'!J1960=\"Contingent\"),'TSA Input'!G1960,\"\"))","v":""},{"$f":"IF('TSA Input'!J1960=\"\",\"\",IF(OR('TSA Input'!J1960=\"Yes\",'TSA Input'!J1960=\"Contingent\"),'TSA Input'!F1960,\"\"))","v":""},"",{"$f":"IF('TSA Input'!J1960=\"\",\"\",IF(OR('TSA Input'!J1960=\"Yes\",'TSA Input'!J1960=\"Contingent\"),'TSA Input'!D1960,\"\"))","v":""},{"$f":"IF('TSA Input'!J1960=\"\",\"\",IF(OR('TSA Input'!J1960=\"Yes\",'TSA Input'!J1960=\"Contingent\"),'TSA Input'!G1960,\"\"))","v":""},{"$f":"IF('TSA Input'!J1960=\"\",\"\",IF(OR('TSA Input'!J1960=\"Yes\",'TSA Input'!J1960=\"Contingent\"),'TSA Input'!F1960,\"\"))","v":""},"","Required","Required"]
["",null,{"$f":"IF('TSA Input'!J1961=\"\",\"\",IF(OR('TSA Input'!J1961=\"Yes\",'TSA Input'!J1961=\"Contingent\"),'TSA Input'!B1961,\"Ineligible\"))","v":""},{"$f":"IF('TSA Input'!J1961=\"\",\"\",IF(OR('TSA Input'!J1961=\"Yes\",'TSA Input'!J1961=\"Contingent\"),'TSA Input'!I1961,\"\"))","v":""},{"$f":"IF('TSA Input'!J1961=\"\",\"\",IF(OR('TSA Input'!J1961=\"Yes\",'TSA Input'!J1961=\"Contingent\"),'TSA Input'!C1961,\"\"))","v":""},{"$f":"IF('TSA Input'!J1961=\"\",\"\",IF(OR('TSA Input'!J1961=\"Yes\",'TSA Input'!J1961=\"Contingent\"),'TSA Input'!D1961,\"\"))","v":""},{"$f":"IF('TSA Input'!J1961=\"\",\"\",IF(OR('TSA Input'!J1961=\"Yes\",'TSA Input'!J1961=\"Contingent\"),'TSA Input'!G1961,\"\"))","v":""},{"$f":"IF('TSA Input'!J1961=\"\",\"\",IF(OR('TSA Input'!J1961=\"Yes\",'TSA Input'!J1961=\"Contingent\"),'TSA Input'!F1961,\"\"))","v":""},"",{"$f":"IF('TSA Input'!J1961=\"\",\"\",IF(OR('TSA Input'!J1961=\"Yes\",'TSA Input'!J1961=\"Contingent\"),'TSA Input'!D1961,\"\"))","v":""},{"$f":"IF('TSA Input'!J1961=\"\",\"\",IF(OR('TSA Input'!J1961=\"Yes\",'TSA Input'!J1961=\"Contingent\"),'TSA Input'!G1961,\"\"))","v":""},{"$f":"IF('TSA Input'!J1961=\"\",\"\",IF(OR('TSA Input'!J1961=\"Yes\",'TSA Input'!J1961=\"Contingent\"),'TSA Input'!F1961,\"\"))","v":""},"","Required","Required"]
["",null,{"$f":"IF('TSA Input'!J1962=\"\",\"\",IF(OR('TSA Input'!J1962=\"Yes\",'TSA Input'!J1962=\"Contingent\"),'TSA Input'!B1962,\"Ineligible\"))","v":""},{"$f":"IF('TSA Input'!J1962=\"\",\"\",IF(OR('TSA Input'!J1962=\"Yes\",'TSA Input'!J1962=\"Contingent\"),'TSA Input'!I1962,\"\"))","v":""},{"$f":"IF('TSA Input'!J1962=\"\",\"\",IF(OR('TSA Input'!J1962=\"Yes\",'TSA Input'!J1962=\"Contingent\"),'TSA Input'!C1962,\"\"))","v":""},{"$f":"IF('TSA Input'!J1962=\"\",\"\",IF(OR('TSA Input'!J1962=\"Yes\",'TSA Input'!J1962=\"Contingent\"),'TSA Input'!D1962,\"\"))","v":""},{"$f":"IF('TSA Input'!J1962=\"\",\"\",IF(OR('TSA Input'!J1962=\"Yes\",'TSA Input'!J1962=\"Contingent\"),'TSA Input'!G1962,\"\"))","v":""},{"$f":"IF('TSA Input'!J1962=\"\",\"\",IF(OR('TSA Input'!J1962=\"Yes\",'TSA Input'!J1962=\"Contingent\"),'TSA Input'!F1962,\"\"))","v":""},"",{"$f":"IF('TSA Input'!J1962=\"\",\"\",IF(OR('TSA Input'!J1962=\"Yes\",'TSA Input'!J1962=\"Contingent\"),'TSA Input'!D1962,\"\"))","v":""},{"$f":"IF('TSA Input'!J1962=\"\",\"\",IF(OR('TSA Input'!J1962=\"Yes\",'TSA Input'!J1962=\"Contingent\"),'TSA Input'!G1962,\"\"))","v":""},{"$f":"IF('TSA Input'!J1962=\"\",\"\",IF(OR('TSA Input'!J1962=\"Yes\",'TSA Input'!J1962=\"Contingent\"),'TSA Input'!F1962,\"\"))","v":""},"","Required","Required"]
["",null,{"$f":"IF('TSA Input'!J1963=\"\",\"\",IF(OR('TSA Input'!J1963=\"Yes\",'TSA Input'!J1963=\"Contingent\"),'TSA Input'!B1963,\"Ineligible\"))","v":""},{"$f":"IF('TSA Input'!J1963=\"\",\"\",IF(OR('TSA Input'!J1963=\"Yes\",'TSA Input'!J1963=\"Contingent\"),'TSA Input'!I1963,\"\"))","v":""},{"$f":"IF('TSA Input'!J1963=\"\",\"\",IF(OR('TSA Input'!J1963=\"Yes\",'TSA Input'!J1963=\"Contingent\"),'TSA Input'!C1963,\"\"))","v":""},{"$f":"IF('TSA Input'!J1963=\"\",\"\",IF(OR('TSA Input'!J1963=\"Yes\",'TSA Input'!J1963=\"Contingent\"),'TSA Input'!D1963,\"\"))","v":""},{"$f":"IF('TSA Input'!J1963=\"\",\"\",IF(OR('TSA Input'!J1963=\"Yes\",'TSA Input'!J1963=\"Contingent\"),'TSA Input'!G1963,\"\"))","v":""},{"$f":"IF('TSA Input'!J1963=\"\",\"\",IF(OR('TSA Input'!J1963=\"Yes\",'TSA Input'!J1963=\"Contingent\"),'TSA Input'!F1963,\"\"))","v":""},"",{"$f":"IF('TSA Input'!J1963=\"\",\"\",IF(OR('TSA Input'!J1963=\"Yes\",'TSA Input'!J1963=\"Contingent\"),'TSA Input'!D1963,\"\"))","v":""},{"$f":"IF('TSA Input'!J1963=\"\",\"\",IF(OR('TSA Input'!J1963=\"Yes\",'TSA Input'!J1963=\"Contingent\"),'TSA Input'!G1963,\"\"))","v":""},{"$f":"IF('TSA Input'!J1963=\"\",\"\",IF(OR('TSA Input'!J1963=\"Yes\",'TSA Input'!J1963=\"Contingent\"),'TSA Input'!F1963,\"\"))","v":""},"","Required","Required"]
["",null,{"$f":"IF('TSA Input'!J1964=\"\",\"\",IF(OR('TSA Input'!J1964=\"Yes\",'TSA Input'!J1964=\"Contingent\"),'TSA Input'!B1964,\"Ineligible\"))","v":""},{"$f":"IF('TSA Input'!J1964=\"\",\"\",IF(OR('TSA Input'!J1964=\"Yes\",'TSA Input'!J1964=\"Contingent\"),'TSA Input'!I1964,\"\"))","v":""},{"$f":"IF('TSA Input'!J1964=\"\",\"\",IF(OR('TSA Input'!J1964=\"Yes\",'TSA Input'!J1964=\"Contingent\"),'TSA Input'!C1964,\"\"))","v":""},{"$f":"IF('TSA Input'!J1964=\"\",\"\",IF(OR('TSA Input'!J1964=\"Yes\",'TSA Input'!J1964=\"Contingent\"),'TSA Input'!D1964,\"\"))","v":""},{"$f":"IF('TSA Input'!J1964=\"\",\"\",IF(OR('TSA Input'!J1964=\"Yes\",'TSA Input'!J1964=\"Contingent\"),'TSA Input'!G1964,\"\"))","v":""},{"$f":"IF('TSA Input'!J1964=\"\",\"\",IF(OR('TSA Input'!J1964=\"Yes\",'TSA Input'!J1964=\"Contingent\"),'TSA Input'!F1964,\"\"))","v":""},"",{"$f":"IF('TSA Input'!J1964=\"\",\"\",IF(OR('TSA Input'!J1964=\"Yes\",'TSA Input'!J1964=\"Contingent\"),'TSA Input'!D1964,\"\"))","v":""},{"$f":"IF('TSA Input'!J1964=\"\",\"\",IF(OR('TSA Input'!J1964=\"Yes\",'TSA Input'!J1964=\"Contingent\"),'TSA Input'!G1964,\"\"))","v":""},{"$f":"IF('TSA Input'!J1964=\"\",\"\",IF(OR('TSA Input'!J1964=\"Yes\",'TSA Input'!J1964=\"Contingent\"),'TSA Input'!F1964,\"\"))","v":""},"","Required","Required"]
["",null,{"$f":"IF('TSA Input'!J1965=\"\",\"\",IF(OR('TSA Input'!J1965=\"Yes\",'TSA Input'!J1965=\"Contingent\"),'TSA Input'!B1965,\"Ineligible\"))","v":""},{"$f":"IF('TSA Input'!J1965=\"\",\"\",IF(OR('TSA Input'!J1965=\"Yes\",'TSA Input'!J1965=\"Contingent\"),'TSA Input'!I1965,\"\"))","v":""},{"$f":"IF('TSA Input'!J1965=\"\",\"\",IF(OR('TSA Input'!J1965=\"Yes\",'TSA Input'!J1965=\"Contingent\"),'TSA Input'!C1965,\"\"))","v":""},{"$f":"IF('TSA Input'!J1965=\"\",\"\",IF(OR('TSA Input'!J1965=\"Yes\",'TSA Input'!J1965=\"Contingent\"),'TSA Input'!D1965,\"\"))","v":""},{"$f":"IF('TSA Input'!J1965=\"\",\"\",IF(OR('TSA Input'!J1965=\"Yes\",'TSA Input'!J1965=\"Contingent\"),'TSA Input'!G1965,\"\"))","v":""},{"$f":"IF('TSA Input'!J1965=\"\",\"\",IF(OR('TSA Input'!J1965=\"Yes\",'TSA Input'!J1965=\"Contingent\"),'TSA Input'!F1965,\"\"))","v":""},"",{"$f":"IF('TSA Input'!J1965=\"\",\"\",IF(OR('TSA Input'!J1965=\"Yes\",'TSA Input'!J1965=\"Contingent\"),'TSA Input'!D1965,\"\"))","v":""},{"$f":"IF('TSA Input'!J1965=\"\",\"\",IF(OR('TSA Input'!J1965=\"Yes\",'TSA Input'!J1965=\"Contingent\"),'TSA Input'!G1965,\"\"))","v":""},{"$f":"IF('TSA Input'!J1965=\"\",\"\",IF(OR('TSA Input'!J1965=\"Yes\",'TSA Input'!J1965=\"Contingent\"),'TSA Input'!F1965,\"\"))","v":""},"","Required","Required"]
["",null,{"$f":"IF('TSA Input'!J1966=\"\",\"\",IF(OR('TSA Input'!J1966=\"Yes\",'TSA Input'!J1966=\"Contingent\"),'TSA Input'!B1966,\"Ineligible\"))","v":""},{"$f":"IF('TSA Input'!J1966=\"\",\"\",IF(OR('TSA Input'!J1966=\"Yes\",'TSA Input'!J1966=\"Contingent\"),'TSA Input'!I1966,\"\"))","v":""},{"$f":"IF('TSA Input'!J1966=\"\",\"\",IF(OR('TSA Input'!J1966=\"Yes\",'TSA Input'!J1966=\"Contingent\"),'TSA Input'!C1966,\"\"))","v":""},{"$f":"IF('TSA Input'!J1966=\"\",\"\",IF(OR('TSA Input'!J1966=\"Yes\",'TSA Input'!J1966=\"Contingent\"),'TSA Input'!D1966,\"\"))","v":""},{"$f":"IF('TSA Input'!J1966=\"\",\"\",IF(OR('TSA Input'!J1966=\"Yes\",'TSA Input'!J1966=\"Contingent\"),'TSA Input'!G1966,\"\"))","v":""},{"$f":"IF('TSA Input'!J1966=\"\",\"\",IF(OR('TSA Input'!J1966=\"Yes\",'TSA Input'!J1966=\"Contingent\"),'TSA Input'!F1966,\"\"))","v":""},"",{"$f":"IF('TSA Input'!J1966=\"\",\"\",IF(OR('TSA Input'!J1966=\"Yes\",'TSA Input'!J1966=\"Contingent\"),'TSA Input'!D1966,\"\"))","v":""},{"$f":"IF('TSA Input'!J1966=\"\",\"\",IF(OR('TSA Input'!J1966=\"Yes\",'TSA Input'!J1966=\"Contingent\"),'TSA Input'!G1966,\"\"))","v":""},{"$f":"IF('TSA Input'!J1966=\"\",\"\",IF(OR('TSA Input'!J1966=\"Yes\",'TSA Input'!J1966=\"Contingent\"),'TSA Input'!F1966,\"\"))","v":""},"","Required","Required"]
["",null,{"$f":"IF('TSA Input'!J1967=\"\",\"\",IF(OR('TSA Input'!J1967=\"Yes\",'TSA Input'!J1967=\"Contingent\"),'TSA Input'!B1967,\"Ineligible\"))","v":""},{"$f":"IF('TSA Input'!J1967=\"\",\"\",IF(OR('TSA Input'!J1967=\"Yes\",'TSA Input'!J1967=\"Contingent\"),'TSA Input'!I1967,\"\"))","v":""},{"$f":"IF('TSA Input'!J1967=\"\",\"\",IF(OR('TSA Input'!J1967=\"Yes\",'TSA Input'!J1967=\"Contingent\"),'TSA Input'!C1967,\"\"))","v":""},{"$f":"IF('TSA Input'!J1967=\"\",\"\",IF(OR('TSA Input'!J1967=\"Yes\",'TSA Input'!J1967=\"Contingent\"),'TSA Input'!D1967,\"\"))","v":""},{"$f":"IF('TSA Input'!J1967=\"\",\"\",IF(OR('TSA Input'!J1967=\"Yes\",'TSA Input'!J1967=\"Contingent\"),'TSA Input'!G1967,\"\"))","v":""},{"$f":"IF('TSA Input'!J1967=\"\",\"\",IF(OR('TSA Input'!J1967=\"Yes\",'TSA Input'!J1967=\"Contingent\"),'TSA Input'!F1967,\"\"))","v":""},"",{"$f":"IF('TSA Input'!J1967=\"\",\"\",IF(OR('TSA Input'!J1967=\"Yes\",'TSA Input'!J1967=\"Contingent\"),'TSA Input'!D1967,\"\"))","v":""},{"$f":"IF('TSA Input'!J1967=\"\",\"\",IF(OR('TSA Input'!J1967=\"Yes\",'TSA Input'!J1967=\"Contingent\"),'TSA Input'!G1967,\"\"))","v":""},{"$f":"IF('TSA Input'!J1967=\"\",\"\",IF(OR('TSA Input'!J1967=\"Yes\",'TSA Input'!J1967=\"Contingent\"),'TSA Input'!F1967,\"\"))","v":""},"","Required","Required"]
["",null,{"$f":"IF('TSA Input'!J1968=\"\",\"\",IF(OR('TSA Input'!J1968=\"Yes\",'TSA Input'!J1968=\"Contingent\"),'TSA Input'!B1968,\"Ineligible\"))","v":""},{"$f":"IF('TSA Input'!J1968=\"\",\"\",IF(OR('TSA Input'!J1968=\"Yes\",'TSA Input'!J1968=\"Contingent\"),'TSA Input'!I1968,\"\"))","v":""},{"$f":"IF('TSA Input'!J1968=\"\",\"\",IF(OR('TSA Input'!J1968=\"Yes\",'TSA Input'!J1968=\"Contingent\"),'TSA Input'!C1968,\"\"))","v":""},{"$f":"IF('TSA Input'!J1968=\"\",\"\",IF(OR('TSA Input'!J1968=\"Yes\",'TSA Input'!J1968=\"Contingent\"),'TSA Input'!D1968,\"\"))","v":""},{"$f":"IF('TSA Input'!J1968=\"\",\"\",IF(OR('TSA Input'!J1968=\"Yes\",'TSA Input'!J1968=\"Contingent\"),'TSA Input'!G1968,\"\"))","v":""},{"$f":"IF('TSA Input'!J1968=\"\",\"\",IF(OR('TSA Input'!J1968=\"Yes\",'TSA Input'!J1968=\"Contingent\"),'TSA Input'!F1968,\"\"))","v":""},"",{"$f":"IF('TSA Input'!J1968=\"\",\"\",IF(OR('TSA Input'!J1968=\"Yes\",'TSA Input'!J1968=\"Contingent\"),'TSA Input'!D1968,\"\"))","v":""},{"$f":"IF('TSA Input'!J1968=\"\",\"\",IF(OR('TSA Input'!J1968=\"Yes\",'TSA Input'!J1968=\"Contingent\"),'TSA Input'!G1968,\"\"))","v":""},{"$f":"IF('TSA Input'!J1968=\"\",\"\",IF(OR('TSA Input'!J1968=\"Yes\",'TSA Input'!J1968=\"Contingent\"),'TSA Input'!F1968,\"\"))","v":""},"","Required","Required"]
["",null,{"$f":"IF('TSA Input'!J1969=\"\",\"\",IF(OR('TSA Input'!J1969=\"Yes\",'TSA Input'!J1969=\"Contingent\"),'TSA Input'!B1969,\"Ineligible\"))","v":""},{"$f":"IF('TSA Input'!J1969=\"\",\"\",IF(OR('TSA Input'!J1969=\"Yes\",'TSA Input'!J1969=\"Contingent\"),'TSA Input'!I1969,\"\"))","v":""},{"$f":"IF('TSA Input'!J1969=\"\",\"\",IF(OR('TSA Input'!J1969=\"Yes\",'TSA Input'!J1969=\"Contingent\"),'TSA Input'!C1969,\"\"))","v":""},{"$f":"IF('TSA Input'!J1969=\"\",\"\",IF(OR('TSA Input'!J1969=\"Yes\",'TSA Input'!J1969=\"Contingent\"),'TSA Input'!D1969,\"\"))","v":""},{"$f":"IF('TSA Input'!J1969=\"\",\"\",IF(OR('TSA Input'!J1969=\"Yes\",'TSA Input'!J1969=\"Contingent\"),'TSA Input'!G1969,\"\"))","v":""},{"$f":"IF('TSA Input'!J1969=\"\",\"\",IF(OR('TSA Input'!J1969=\"Yes\",'TSA Input'!J1969=\"Contingent\"),'TSA Input'!F1969,\"\"))","v":""},"",{"$f":"IF('TSA Input'!J1969=\"\",\"\",IF(OR('TSA Input'!J1969=\"Yes\",'TSA Input'!J1969=\"Contingent\"),'TSA Input'!D1969,\"\"))","v":""},{"$f":"IF('TSA Input'!J1969=\"\",\"\",IF(OR('TSA Input'!J1969=\"Yes\",'TSA Input'!J1969=\"Contingent\"),'TSA Input'!G1969,\"\"))","v":""},{"$f":"IF('TSA Input'!J1969=\"\",\"\",IF(OR('TSA Input'!J1969=\"Yes\",'TSA Input'!J1969=\"Contingent\"),'TSA Input'!F1969,\"\"))","v":""},"","Required","Required"]
["",null,{"$f":"IF('TSA Input'!J1970=\"\",\"\",IF(OR('TSA Input'!J1970=\"Yes\",'TSA Input'!J1970=\"Contingent\"),'TSA Input'!B1970,\"Ineligible\"))","v":""},{"$f":"IF('TSA Input'!J1970=\"\",\"\",IF(OR('TSA Input'!J1970=\"Yes\",'TSA Input'!J1970=\"Contingent\"),'TSA Input'!I1970,\"\"))","v":""},{"$f":"IF('TSA Input'!J1970=\"\",\"\",IF(OR('TSA Input'!J1970=\"Yes\",'TSA Input'!J1970=\"Contingent\"),'TSA Input'!C1970,\"\"))","v":""},{"$f":"IF('TSA Input'!J1970=\"\",\"\",IF(OR('TSA Input'!J1970=\"Yes\",'TSA Input'!J1970=\"Contingent\"),'TSA Input'!D1970,\"\"))","v":""},{"$f":"IF('TSA Input'!J1970=\"\",\"\",IF(OR('TSA Input'!J1970=\"Yes\",'TSA Input'!J1970=\"Contingent\"),'TSA Input'!G1970,\"\"))","v":""},{"$f":"IF('TSA Input'!J1970=\"\",\"\",IF(OR('TSA Input'!J1970=\"Yes\",'TSA Input'!J1970=\"Contingent\"),'TSA Input'!F1970,\"\"))","v":""},"",{"$f":"IF('TSA Input'!J1970=\"\",\"\",IF(OR('TSA Input'!J1970=\"Yes\",'TSA Input'!J1970=\"Contingent\"),'TSA Input'!D1970,\"\"))","v":""},{"$f":"IF('TSA Input'!J1970=\"\",\"\",IF(OR('TSA Input'!J1970=\"Yes\",'TSA Input'!J1970=\"Contingent\"),'TSA Input'!G1970,\"\"))","v":""},{"$f":"IF('TSA Input'!J1970=\"\",\"\",IF(OR('TSA Input'!J1970=\"Yes\",'TSA Input'!J1970=\"Contingent\"),'TSA Input'!F1970,\"\"))","v":""},"","Required","Required"]
["",null,{"$f":"IF('TSA Input'!J1971=\"\",\"\",IF(OR('TSA Input'!J1971=\"Yes\",'TSA Input'!J1971=\"Contingent\"),'TSA Input'!B1971,\"Ineligible\"))","v":""},{"$f":"IF('TSA Input'!J1971=\"\",\"\",IF(OR('TSA Input'!J1971=\"Yes\",'TSA Input'!J1971=\"Contingent\"),'TSA Input'!I1971,\"\"))","v":""},{"$f":"IF('TSA Input'!J1971=\"\",\"\",IF(OR('TSA Input'!J1971=\"Yes\",'TSA Input'!J1971=\"Contingent\"),'TSA Input'!C1971,\"\"))","v":""},{"$f":"IF('TSA Input'!J1971=\"\",\"\",IF(OR('TSA Input'!J1971=\"Yes\",'TSA Input'!J1971=\"Contingent\"),'TSA Input'!D1971,\"\"))","v":""},{"$f":"IF('TSA Input'!J1971=\"\",\"\",IF(OR('TSA Input'!J1971=\"Yes\",'TSA Input'!J1971=\"Contingent\"),'TSA Input'!G1971,\"\"))","v":""},{"$f":"IF('TSA Input'!J1971=\"\",\"\",IF(OR('TSA Input'!J1971=\"Yes\",'TSA Input'!J1971=\"Contingent\"),'TSA Input'!F1971,\"\"))","v":""},"",{"$f":"IF('TSA Input'!J1971=\"\",\"\",IF(OR('TSA Input'!J1971=\"Yes\",'TSA Input'!J1971=\"Contingent\"),'TSA Input'!D1971,\"\"))","v":""},{"$f":"IF('TSA Input'!J1971=\"\",\"\",IF(OR('TSA Input'!J1971=\"Yes\",'TSA Input'!J1971=\"Contingent\"),'TSA Input'!G1971,\"\"))","v":""},{"$f":"IF('TSA Input'!J1971=\"\",\"\",IF(OR('TSA Input'!J1971=\"Yes\",'TSA Input'!J1971=\"Contingent\"),'TSA Input'!F1971,\"\"))","v":""},"","Required","Required"]
["",null,{"$f":"IF('TSA Input'!J1972=\"\",\"\",IF(OR('TSA Input'!J1972=\"Yes\",'TSA Input'!J1972=\"Contingent\"),'TSA Input'!B1972,\"Ineligible\"))","v":""},{"$f":"IF('TSA Input'!J1972=\"\",\"\",IF(OR('TSA Input'!J1972=\"Yes\",'TSA Input'!J1972=\"Contingent\"),'TSA Input'!I1972,\"\"))","v":""},{"$f":"IF('TSA Input'!J1972=\"\",\"\",IF(OR('TSA Input'!J1972=\"Yes\",'TSA Input'!J1972=\"Contingent\"),'TSA Input'!C1972,\"\"))","v":""},{"$f":"IF('TSA Input'!J1972=\"\",\"\",IF(OR('TSA Input'!J1972=\"Yes\",'TSA Input'!J1972=\"Contingent\"),'TSA Input'!D1972,\"\"))","v":""},{"$f":"IF('TSA Input'!J1972=\"\",\"\",IF(OR('TSA Input'!J1972=\"Yes\",'TSA Input'!J1972=\"Contingent\"),'TSA Input'!G1972,\"\"))","v":""},{"$f":"IF('TSA Input'!J1972=\"\",\"\",IF(OR('TSA Input'!J1972=\"Yes\",'TSA Input'!J1972=\"Contingent\"),'TSA Input'!F1972,\"\"))","v":""},"",{"$f":"IF('TSA Input'!J1972=\"\",\"\",IF(OR('TSA Input'!J1972=\"Yes\",'TSA Input'!J1972=\"Contingent\"),'TSA Input'!D1972,\"\"))","v":""},{"$f":"IF('TSA Input'!J1972=\"\",\"\",IF(OR('TSA Input'!J1972=\"Yes\",'TSA Input'!J1972=\"Contingent\"),'TSA Input'!G1972,\"\"))","v":""},{"$f":"IF('TSA Input'!J1972=\"\",\"\",IF(OR('TSA Input'!J1972=\"Yes\",'TSA Input'!J1972=\"Contingent\"),'TSA Input'!F1972,\"\"))","v":""},"","Required","Required"]
["",null,{"$f":"IF('TSA Input'!J1973=\"\",\"\",IF(OR('TSA Input'!J1973=\"Yes\",'TSA Input'!J1973=\"Contingent\"),'TSA Input'!B1973,\"Ineligible\"))","v":""},{"$f":"IF('TSA Input'!J1973=\"\",\"\",IF(OR('TSA Input'!J1973=\"Yes\",'TSA Input'!J1973=\"Contingent\"),'TSA Input'!I1973,\"\"))","v":""},{"$f":"IF('TSA Input'!J1973=\"\",\"\",IF(OR('TSA Input'!J1973=\"Yes\",'TSA Input'!J1973=\"Contingent\"),'TSA Input'!C1973,\"\"))","v":""},{"$f":"IF('TSA Input'!J1973=\"\",\"\",IF(OR('TSA Input'!J1973=\"Yes\",'TSA Input'!J1973=\"Contingent\"),'TSA Input'!D1973,\"\"))","v":""},{"$f":"IF('TSA Input'!J1973=\"\",\"\",IF(OR('TSA Input'!J1973=\"Yes\",'TSA Input'!J1973=\"Contingent\"),'TSA Input'!G1973,\"\"))","v":""},{"$f":"IF('TSA Input'!J1973=\"\",\"\",IF(OR('TSA Input'!J1973=\"Yes\",'TSA Input'!J1973=\"Contingent\"),'TSA Input'!F1973,\"\"))","v":""},"",{"$f":"IF('TSA Input'!J1973=\"\",\"\",IF(OR('TSA Input'!J1973=\"Yes\",'TSA Input'!J1973=\"Contingent\"),'TSA Input'!D1973,\"\"))","v":""},{"$f":"IF('TSA Input'!J1973=\"\",\"\",IF(OR('TSA Input'!J1973=\"Yes\",'TSA Input'!J1973=\"Contingent\"),'TSA Input'!G1973,\"\"))","v":""},{"$f":"IF('TSA Input'!J1973=\"\",\"\",IF(OR('TSA Input'!J1973=\"Yes\",'TSA Input'!J1973=\"Contingent\"),'TSA Input'!F1973,\"\"))","v":""},"","Required","Required"]
["",null,{"$f":"IF('TSA Input'!J1974=\"\",\"\",IF(OR('TSA Input'!J1974=\"Yes\",'TSA Input'!J1974=\"Contingent\"),'TSA Input'!B1974,\"Ineligible\"))","v":""},{"$f":"IF('TSA Input'!J1974=\"\",\"\",IF(OR('TSA Input'!J1974=\"Yes\",'TSA Input'!J1974=\"Contingent\"),'TSA Input'!I1974,\"\"))","v":""},{"$f":"IF('TSA Input'!J1974=\"\",\"\",IF(OR('TSA Input'!J1974=\"Yes\",'TSA Input'!J1974=\"Contingent\"),'TSA Input'!C1974,\"\"))","v":""},{"$f":"IF('TSA Input'!J1974=\"\",\"\",IF(OR('TSA Input'!J1974=\"Yes\",'TSA Input'!J1974=\"Contingent\"),'TSA Input'!D1974,\"\"))","v":""},{"$f":"IF('TSA Input'!J1974=\"\",\"\",IF(OR('TSA Input'!J1974=\"Yes\",'TSA Input'!J1974=\"Contingent\"),'TSA Input'!G1974,\"\"))","v":""},{"$f":"IF('TSA Input'!J1974=\"\",\"\",IF(OR('TSA Input'!J1974=\"Yes\",'TSA Input'!J1974=\"Contingent\"),'TSA Input'!F1974,\"\"))","v":""},"",{"$f":"IF('TSA Input'!J1974=\"\",\"\",IF(OR('TSA Input'!J1974=\"Yes\",'TSA Input'!J1974=\"Contingent\"),'TSA Input'!D1974,\"\"))","v":""},{"$f":"IF('TSA Input'!J1974=\"\",\"\",IF(OR('TSA Input'!J1974=\"Yes\",'TSA Input'!J1974=\"Contingent\"),'TSA Input'!G1974,\"\"))","v":""},{"$f":"IF('TSA Input'!J1974=\"\",\"\",IF(OR('TSA Input'!J1974=\"Yes\",'TSA Input'!J1974=\"Contingent\"),'TSA Input'!F1974,\"\"))","v":""},"","Required","Required"]
["",null,{"$f":"IF('TSA Input'!J1975=\"\",\"\",IF(OR('TSA Input'!J1975=\"Yes\",'TSA Input'!J1975=\"Contingent\"),'TSA Input'!B1975,\"Ineligible\"))","v":""},{"$f":"IF('TSA Input'!J1975=\"\",\"\",IF(OR('TSA Input'!J1975=\"Yes\",'TSA Input'!J1975=\"Contingent\"),'TSA Input'!I1975,\"\"))","v":""},{"$f":"IF('TSA Input'!J1975=\"\",\"\",IF(OR('TSA Input'!J1975=\"Yes\",'TSA Input'!J1975=\"Contingent\"),'TSA Input'!C1975,\"\"))","v":""},{"$f":"IF('TSA Input'!J1975=\"\",\"\",IF(OR('TSA Input'!J1975=\"Yes\",'TSA Input'!J1975=\"Contingent\"),'TSA Input'!D1975,\"\"))","v":""},{"$f":"IF('TSA Input'!J1975=\"\",\"\",IF(OR('TSA Input'!J1975=\"Yes\",'TSA Input'!J1975=\"Contingent\"),'TSA Input'!G1975,\"\"))","v":""},{"$f":"IF('TSA Input'!J1975=\"\",\"\",IF(OR('TSA Input'!J1975=\"Yes\",'TSA Input'!J1975=\"Contingent\"),'TSA Input'!F1975,\"\"))","v":""},"",{"$f":"IF('TSA Input'!J1975=\"\",\"\",IF(OR('TSA Input'!J1975=\"Yes\",'TSA Input'!J1975=\"Contingent\"),'TSA Input'!D1975,\"\"))","v":""},{"$f":"IF('TSA Input'!J1975=\"\",\"\",IF(OR('TSA Input'!J1975=\"Yes\",'TSA Input'!J1975=\"Contingent\"),'TSA Input'!G1975,\"\"))","v":""},{"$f":"IF('TSA Input'!J1975=\"\",\"\",IF(OR('TSA Input'!J1975=\"Yes\",'TSA Input'!J1975=\"Contingent\"),'TSA Input'!F1975,\"\"))","v":""},"","Required","Required"]
["",null,{"$f":"IF('TSA Input'!J1976=\"\",\"\",IF(OR('TSA Input'!J1976=\"Yes\",'TSA Input'!J1976=\"Contingent\"),'TSA Input'!B1976,\"Ineligible\"))","v":""},{"$f":"IF('TSA Input'!J1976=\"\",\"\",IF(OR('TSA Input'!J1976=\"Yes\",'TSA Input'!J1976=\"Contingent\"),'TSA Input'!I1976,\"\"))","v":""},{"$f":"IF('TSA Input'!J1976=\"\",\"\",IF(OR('TSA Input'!J1976=\"Yes\",'TSA Input'!J1976=\"Contingent\"),'TSA Input'!C1976,\"\"))","v":""},{"$f":"IF('TSA Input'!J1976=\"\",\"\",IF(OR('TSA Input'!J1976=\"Yes\",'TSA Input'!J1976=\"Contingent\"),'TSA Input'!D1976,\"\"))","v":""},{"$f":"IF('TSA Input'!J1976=\"\",\"\",IF(OR('TSA Input'!J1976=\"Yes\",'TSA Input'!J1976=\"Contingent\"),'TSA Input'!G1976,\"\"))","v":""},{"$f":"IF('TSA Input'!J1976=\"\",\"\",IF(OR('TSA Input'!J1976=\"Yes\",'TSA Input'!J1976=\"Contingent\"),'TSA Input'!F1976,\"\"))","v":""},"",{"$f":"IF('TSA Input'!J1976=\"\",\"\",IF(OR('TSA Input'!J1976=\"Yes\",'TSA Input'!J1976=\"Contingent\"),'TSA Input'!D1976,\"\"))","v":""},{"$f":"IF('TSA Input'!J1976=\"\",\"\",IF(OR('TSA Input'!J1976=\"Yes\",'TSA Input'!J1976=\"Contingent\"),'TSA Input'!G1976,\"\"))","v":""},{"$f":"IF('TSA Input'!J1976=\"\",\"\",IF(OR('TSA Input'!J1976=\"Yes\",'TSA Input'!J1976=\"Contingent\"),'TSA Input'!F1976,\"\"))","v":""},"","Required","Required"]
["",null,{"$f":"IF('TSA Input'!J1977=\"\",\"\",IF(OR('TSA Input'!J1977=\"Yes\",'TSA Input'!J1977=\"Contingent\"),'TSA Input'!B1977,\"Ineligible\"))","v":""},{"$f":"IF('TSA Input'!J1977=\"\",\"\",IF(OR('TSA Input'!J1977=\"Yes\",'TSA Input'!J1977=\"Contingent\"),'TSA Input'!I1977,\"\"))","v":""},{"$f":"IF('TSA Input'!J1977=\"\",\"\",IF(OR('TSA Input'!J1977=\"Yes\",'TSA Input'!J1977=\"Contingent\"),'TSA Input'!C1977,\"\"))","v":""},{"$f":"IF('TSA Input'!J1977=\"\",\"\",IF(OR('TSA Input'!J1977=\"Yes\",'TSA Input'!J1977=\"Contingent\"),'TSA Input'!D1977,\"\"))","v":""},{"$f":"IF('TSA Input'!J1977=\"\",\"\",IF(OR('TSA Input'!J1977=\"Yes\",'TSA Input'!J1977=\"Contingent\"),'TSA Input'!G1977,\"\"))","v":""},{"$f":"IF('TSA Input'!J1977=\"\",\"\",IF(OR('TSA Input'!J1977=\"Yes\",'TSA Input'!J1977=\"Contingent\"),'TSA Input'!F1977,\"\"))","v":""},"",{"$f":"IF('TSA Input'!J1977=\"\",\"\",IF(OR('TSA Input'!J1977=\"Yes\",'TSA Input'!J1977=\"Contingent\"),'TSA Input'!D1977,\"\"))","v":""},{"$f":"IF('TSA Input'!J1977=\"\",\"\",IF(OR('TSA Input'!J1977=\"Yes\",'TSA Input'!J1977=\"Contingent\"),'TSA Input'!G1977,\"\"))","v":""},{"$f":"IF('TSA Input'!J1977=\"\",\"\",IF(OR('TSA Input'!J1977=\"Yes\",'TSA Input'!J1977=\"Contingent\"),'TSA Input'!F1977,\"\"))","v":""},"","Required","Required"]
["",null,{"$f":"IF('TSA Input'!J1978=\"\",\"\",IF(OR('TSA Input'!J1978=\"Yes\",'TSA Input'!J1978=\"Contingent\"),'TSA Input'!B1978,\"Ineligible\"))","v":""},{"$f":"IF('TSA Input'!J1978=\"\",\"\",IF(OR('TSA Input'!J1978=\"Yes\",'TSA Input'!J1978=\"Contingent\"),'TSA Input'!I1978,\"\"))","v":""},{"$f":"IF('TSA Input'!J1978=\"\",\"\",IF(OR('TSA Input'!J1978=\"Yes\",'TSA Input'!J1978=\"Contingent\"),'TSA Input'!C1978,\"\"))","v":""},{"$f":"IF('TSA Input'!J1978=\"\",\"\",IF(OR('TSA Input'!J1978=\"Yes\",'TSA Input'!J1978=\"Contingent\"),'TSA Input'!D1978,\"\"))","v":""},{"$f":"IF('TSA Input'!J1978=\"\",\"\",IF(OR('TSA Input'!J1978=\"Yes\",'TSA Input'!J1978=\"Contingent\"),'TSA Input'!G1978,\"\"))","v":""},{"$f":"IF('TSA Input'!J1978=\"\",\"\",IF(OR('TSA Input'!J1978=\"Yes\",'TSA Input'!J1978=\"Contingent\"),'TSA Input'!F1978,\"\"))","v":""},"",{"$f":"IF('TSA Input'!J1978=\"\",\"\",IF(OR('TSA Input'!J1978=\"Yes\",'TSA Input'!J1978=\"Contingent\"),'TSA Input'!D1978,\"\"))","v":""},{"$f":"IF('TSA Input'!J1978=\"\",\"\",IF(OR('TSA Input'!J1978=\"Yes\",'TSA Input'!J1978=\"Contingent\"),'TSA Input'!G1978,\"\"))","v":""},{"$f":"IF('TSA Input'!J1978=\"\",\"\",IF(OR('TSA Input'!J1978=\"Yes\",'TSA Input'!J1978=\"Contingent\"),'TSA Input'!F1978,\"\"))","v":""},"","Required","Required"]
["",null,{"$f":"IF('TSA Input'!J1979=\"\",\"\",IF(OR('TSA Input'!J1979=\"Yes\",'TSA Input'!J1979=\"Contingent\"),'TSA Input'!B1979,\"Ineligible\"))","v":""},{"$f":"IF('TSA Input'!J1979=\"\",\"\",IF(OR('TSA Input'!J1979=\"Yes\",'TSA Input'!J1979=\"Contingent\"),'TSA Input'!I1979,\"\"))","v":""},{"$f":"IF('TSA Input'!J1979=\"\",\"\",IF(OR('TSA Input'!J1979=\"Yes\",'TSA Input'!J1979=\"Contingent\"),'TSA Input'!C1979,\"\"))","v":""},{"$f":"IF('TSA Input'!J1979=\"\",\"\",IF(OR('TSA Input'!J1979=\"Yes\",'TSA Input'!J1979=\"Contingent\"),'TSA Input'!D1979,\"\"))","v":""},{"$f":"IF('TSA Input'!J1979=\"\",\"\",IF(OR('TSA Input'!J1979=\"Yes\",'TSA Input'!J1979=\"Contingent\"),'TSA Input'!G1979,\"\"))","v":""},{"$f":"IF('TSA Input'!J1979=\"\",\"\",IF(OR('TSA Input'!J1979=\"Yes\",'TSA Input'!J1979=\"Contingent\"),'TSA Input'!F1979,\"\"))","v":""},"",{"$f":"IF('TSA Input'!J1979=\"\",\"\",IF(OR('TSA Input'!J1979=\"Yes\",'TSA Input'!J1979=\"Contingent\"),'TSA Input'!D1979,\"\"))","v":""},{"$f":"IF('TSA Input'!J1979=\"\",\"\",IF(OR('TSA Input'!J1979=\"Yes\",'TSA Input'!J1979=\"Contingent\"),'TSA Input'!G1979,\"\"))","v":""},{"$f":"IF('TSA Input'!J1979=\"\",\"\",IF(OR('TSA Input'!J1979=\"Yes\",'TSA Input'!J1979=\"Contingent\"),'TSA Input'!F1979,\"\"))","v":""},"","Required","Required"]
["",null,{"$f":"IF('TSA Input'!J1980=\"\",\"\",IF(OR('TSA Input'!J1980=\"Yes\",'TSA Input'!J1980=\"Contingent\"),'TSA Input'!B1980,\"Ineligible\"))","v":""},{"$f":"IF('TSA Input'!J1980=\"\",\"\",IF(OR('TSA Input'!J1980=\"Yes\",'TSA Input'!J1980=\"Contingent\"),'TSA Input'!I1980,\"\"))","v":""},{"$f":"IF('TSA Input'!J1980=\"\",\"\",IF(OR('TSA Input'!J1980=\"Yes\",'TSA Input'!J1980=\"Contingent\"),'TSA Input'!C1980,\"\"))","v":""},{"$f":"IF('TSA Input'!J1980=\"\",\"\",IF(OR('TSA Input'!J1980=\"Yes\",'TSA Input'!J1980=\"Contingent\"),'TSA Input'!D1980,\"\"))","v":""},{"$f":"IF('TSA Input'!J1980=\"\",\"\",IF(OR('TSA Input'!J1980=\"Yes\",'TSA Input'!J1980=\"Contingent\"),'TSA Input'!G1980,\"\"))","v":""},{"$f":"IF('TSA Input'!J1980=\"\",\"\",IF(OR('TSA Input'!J1980=\"Yes\",'TSA Input'!J1980=\"Contingent\"),'TSA Input'!F1980,\"\"))","v":""},"",{"$f":"IF('TSA Input'!J1980=\"\",\"\",IF(OR('TSA Input'!J1980=\"Yes\",'TSA Input'!J1980=\"Contingent\"),'TSA Input'!D1980,\"\"))","v":""},{"$f":"IF('TSA Input'!J1980=\"\",\"\",IF(OR('TSA Input'!J1980=\"Yes\",'TSA Input'!J1980=\"Contingent\"),'TSA Input'!G1980,\"\"))","v":""},{"$f":"IF('TSA Input'!J1980=\"\",\"\",IF(OR('TSA Input'!J1980=\"Yes\",'TSA Input'!J1980=\"Contingent\"),'TSA Input'!F1980,\"\"))","v":""},"","Required","Required"]
["",null,{"$f":"IF('TSA Input'!J1981=\"\",\"\",IF(OR('TSA Input'!J1981=\"Yes\",'TSA Input'!J1981=\"Contingent\"),'TSA Input'!B1981,\"Ineligible\"))","v":""},{"$f":"IF('TSA Input'!J1981=\"\",\"\",IF(OR('TSA Input'!J1981=\"Yes\",'TSA Input'!J1981=\"Contingent\"),'TSA Input'!I1981,\"\"))","v":""},{"$f":"IF('TSA Input'!J1981=\"\",\"\",IF(OR('TSA Input'!J1981=\"Yes\",'TSA Input'!J1981=\"Contingent\"),'TSA Input'!C1981,\"\"))","v":""},{"$f":"IF('TSA Input'!J1981=\"\",\"\",IF(OR('TSA Input'!J1981=\"Yes\",'TSA Input'!J1981=\"Contingent\"),'TSA Input'!D1981,\"\"))","v":""},{"$f":"IF('TSA Input'!J1981=\"\",\"\",IF(OR('TSA Input'!J1981=\"Yes\",'TSA Input'!J1981=\"Contingent\"),'TSA Input'!G1981,\"\"))","v":""},{"$f":"IF('TSA Input'!J1981=\"\",\"\",IF(OR('TSA Input'!J1981=\"Yes\",'TSA Input'!J1981=\"Contingent\"),'TSA Input'!F1981,\"\"))","v":""},"",{"$f":"IF('TSA Input'!J1981=\"\",\"\",IF(OR('TSA Input'!J1981=\"Yes\",'TSA Input'!J1981=\"Contingent\"),'TSA Input'!D1981,\"\"))","v":""},{"$f":"IF('TSA Input'!J1981=\"\",\"\",IF(OR('TSA Input'!J1981=\"Yes\",'TSA Input'!J1981=\"Contingent\"),'TSA Input'!G1981,\"\"))","v":""},{"$f":"IF('TSA Input'!J1981=\"\",\"\",IF(OR('TSA Input'!J1981=\"Yes\",'TSA Input'!J1981=\"Contingent\"),'TSA Input'!F1981,\"\"))","v":""},"","Required","Required"]
["",null,{"$f":"IF('TSA Input'!J1982=\"\",\"\",IF(OR('TSA Input'!J1982=\"Yes\",'TSA Input'!J1982=\"Contingent\"),'TSA Input'!B1982,\"Ineligible\"))","v":""},{"$f":"IF('TSA Input'!J1982=\"\",\"\",IF(OR('TSA Input'!J1982=\"Yes\",'TSA Input'!J1982=\"Contingent\"),'TSA Input'!I1982,\"\"))","v":""},{"$f":"IF('TSA Input'!J1982=\"\",\"\",IF(OR('TSA Input'!J1982=\"Yes\",'TSA Input'!J1982=\"Contingent\"),'TSA Input'!C1982,\"\"))","v":""},{"$f":"IF('TSA Input'!J1982=\"\",\"\",IF(OR('TSA Input'!J1982=\"Yes\",'TSA Input'!J1982=\"Contingent\"),'TSA Input'!D1982,\"\"))","v":""},{"$f":"IF('TSA Input'!J1982=\"\",\"\",IF(OR('TSA Input'!J1982=\"Yes\",'TSA Input'!J1982=\"Contingent\"),'TSA Input'!G1982,\"\"))","v":""},{"$f":"IF('TSA Input'!J1982=\"\",\"\",IF(OR('TSA Input'!J1982=\"Yes\",'TSA Input'!J1982=\"Contingent\"),'TSA Input'!F1982,\"\"))","v":""},"",{"$f":"IF('TSA Input'!J1982=\"\",\"\",IF(OR('TSA Input'!J1982=\"Yes\",'TSA Input'!J1982=\"Contingent\"),'TSA Input'!D1982,\"\"))","v":""},{"$f":"IF('TSA Input'!J1982=\"\",\"\",IF(OR('TSA Input'!J1982=\"Yes\",'TSA Input'!J1982=\"Contingent\"),'TSA Input'!G1982,\"\"))","v":""},{"$f":"IF('TSA Input'!J1982=\"\",\"\",IF(OR('TSA Input'!J1982=\"Yes\",'TSA Input'!J1982=\"Contingent\"),'TSA Input'!F1982,\"\"))","v":""},"","Required","Required"]
["",null,{"$f":"IF('TSA Input'!J1983=\"\",\"\",IF(OR('TSA Input'!J1983=\"Yes\",'TSA Input'!J1983=\"Contingent\"),'TSA Input'!B1983,\"Ineligible\"))","v":""},{"$f":"IF('TSA Input'!J1983=\"\",\"\",IF(OR('TSA Input'!J1983=\"Yes\",'TSA Input'!J1983=\"Contingent\"),'TSA Input'!I1983,\"\"))","v":""},{"$f":"IF('TSA Input'!J1983=\"\",\"\",IF(OR('TSA Input'!J1983=\"Yes\",'TSA Input'!J1983=\"Contingent\"),'TSA Input'!C1983,\"\"))","v":""},{"$f":"IF('TSA Input'!J1983=\"\",\"\",IF(OR('TSA Input'!J1983=\"Yes\",'TSA Input'!J1983=\"Contingent\"),'TSA Input'!D1983,\"\"))","v":""},{"$f":"IF('TSA Input'!J1983=\"\",\"\",IF(OR('TSA Input'!J1983=\"Yes\",'TSA Input'!J1983=\"Contingent\"),'TSA Input'!G1983,\"\"))","v":""},{"$f":"IF('TSA Input'!J1983=\"\",\"\",IF(OR('TSA Input'!J1983=\"Yes\",'TSA Input'!J1983=\"Contingent\"),'TSA Input'!F1983,\"\"))","v":""},"",{"$f":"IF('TSA Input'!J1983=\"\",\"\",IF(OR('TSA Input'!J1983=\"Yes\",'TSA Input'!J1983=\"Contingent\"),'TSA Input'!D1983,\"\"))","v":""},{"$f":"IF('TSA Input'!J1983=\"\",\"\",IF(OR('TSA Input'!J1983=\"Yes\",'TSA Input'!J1983=\"Contingent\"),'TSA Input'!G1983,\"\"))","v":""},{"$f":"IF('TSA Input'!J1983=\"\",\"\",IF(OR('TSA Input'!J1983=\"Yes\",'TSA Input'!J1983=\"Contingent\"),'TSA Input'!F1983,\"\"))","v":""},"","Required","Required"]
["",null,{"$f":"IF('TSA Input'!J1984=\"\",\"\",IF(OR('TSA Input'!J1984=\"Yes\",'TSA Input'!J1984=\"Contingent\"),'TSA Input'!B1984,\"Ineligible\"))","v":""},{"$f":"IF('TSA Input'!J1984=\"\",\"\",IF(OR('TSA Input'!J1984=\"Yes\",'TSA Input'!J1984=\"Contingent\"),'TSA Input'!I1984,\"\"))","v":""},{"$f":"IF('TSA Input'!J1984=\"\",\"\",IF(OR('TSA Input'!J1984=\"Yes\",'TSA Input'!J1984=\"Contingent\"),'TSA Input'!C1984,\"\"))","v":""},{"$f":"IF('TSA Input'!J1984=\"\",\"\",IF(OR('TSA Input'!J1984=\"Yes\",'TSA Input'!J1984=\"Contingent\"),'TSA Input'!D1984,\"\"))","v":""},{"$f":"IF('TSA Input'!J1984=\"\",\"\",IF(OR('TSA Input'!J1984=\"Yes\",'TSA Input'!J1984=\"Contingent\"),'TSA Input'!G1984,\"\"))","v":""},{"$f":"IF('TSA Input'!J1984=\"\",\"\",IF(OR('TSA Input'!J1984=\"Yes\",'TSA Input'!J1984=\"Contingent\"),'TSA Input'!F1984,\"\"))","v":""},"",{"$f":"IF('TSA Input'!J1984=\"\",\"\",IF(OR('TSA Input'!J1984=\"Yes\",'TSA Input'!J1984=\"Contingent\"),'TSA Input'!D1984,\"\"))","v":""},{"$f":"IF('TSA Input'!J1984=\"\",\"\",IF(OR('TSA Input'!J1984=\"Yes\",'TSA Input'!J1984=\"Contingent\"),'TSA Input'!G1984,\"\"))","v":""},{"$f":"IF('TSA Input'!J1984=\"\",\"\",IF(OR('TSA Input'!J1984=\"Yes\",'TSA Input'!J1984=\"Contingent\"),'TSA Input'!F1984,\"\"))","v":""},"","Required","Required"]
["",null,{"$f":"IF('TSA Input'!J1985=\"\",\"\",IF(OR('TSA Input'!J1985=\"Yes\",'TSA Input'!J1985=\"Contingent\"),'TSA Input'!B1985,\"Ineligible\"))","v":""},{"$f":"IF('TSA Input'!J1985=\"\",\"\",IF(OR('TSA Input'!J1985=\"Yes\",'TSA Input'!J1985=\"Contingent\"),'TSA Input'!I1985,\"\"))","v":""},{"$f":"IF('TSA Input'!J1985=\"\",\"\",IF(OR('TSA Input'!J1985=\"Yes\",'TSA Input'!J1985=\"Contingent\"),'TSA Input'!C1985,\"\"))","v":""},{"$f":"IF('TSA Input'!J1985=\"\",\"\",IF(OR('TSA Input'!J1985=\"Yes\",'TSA Input'!J1985=\"Contingent\"),'TSA Input'!D1985,\"\"))","v":""},{"$f":"IF('TSA Input'!J1985=\"\",\"\",IF(OR('TSA Input'!J1985=\"Yes\",'TSA Input'!J1985=\"Contingent\"),'TSA Input'!G1985,\"\"))","v":""},{"$f":"IF('TSA Input'!J1985=\"\",\"\",IF(OR('TSA Input'!J1985=\"Yes\",'TSA Input'!J1985=\"Contingent\"),'TSA Input'!F1985,\"\"))","v":""},"",{"$f":"IF('TSA Input'!J1985=\"\",\"\",IF(OR('TSA Input'!J1985=\"Yes\",'TSA Input'!J1985=\"Contingent\"),'TSA Input'!D1985,\"\"))","v":""},{"$f":"IF('TSA Input'!J1985=\"\",\"\",IF(OR('TSA Input'!J1985=\"Yes\",'TSA Input'!J1985=\"Contingent\"),'TSA Input'!G1985,\"\"))","v":""},{"$f":"IF('TSA Input'!J1985=\"\",\"\",IF(OR('TSA Input'!J1985=\"Yes\",'TSA Input'!J1985=\"Contingent\"),'TSA Input'!F1985,\"\"))","v":""},"","Required","Required"]
["",null,{"$f":"IF('TSA Input'!J1986=\"\",\"\",IF(OR('TSA Input'!J1986=\"Yes\",'TSA Input'!J1986=\"Contingent\"),'TSA Input'!B1986,\"Ineligible\"))","v":""},{"$f":"IF('TSA Input'!J1986=\"\",\"\",IF(OR('TSA Input'!J1986=\"Yes\",'TSA Input'!J1986=\"Contingent\"),'TSA Input'!I1986,\"\"))","v":""},{"$f":"IF('TSA Input'!J1986=\"\",\"\",IF(OR('TSA Input'!J1986=\"Yes\",'TSA Input'!J1986=\"Contingent\"),'TSA Input'!C1986,\"\"))","v":""},{"$f":"IF('TSA Input'!J1986=\"\",\"\",IF(OR('TSA Input'!J1986=\"Yes\",'TSA Input'!J1986=\"Contingent\"),'TSA Input'!D1986,\"\"))","v":""},{"$f":"IF('TSA Input'!J1986=\"\",\"\",IF(OR('TSA Input'!J1986=\"Yes\",'TSA Input'!J1986=\"Contingent\"),'TSA Input'!G1986,\"\"))","v":""},{"$f":"IF('TSA Input'!J1986=\"\",\"\",IF(OR('TSA Input'!J1986=\"Yes\",'TSA Input'!J1986=\"Contingent\"),'TSA Input'!F1986,\"\"))","v":""},"",{"$f":"IF('TSA Input'!J1986=\"\",\"\",IF(OR('TSA Input'!J1986=\"Yes\",'TSA Input'!J1986=\"Contingent\"),'TSA Input'!D1986,\"\"))","v":""},{"$f":"IF('TSA Input'!J1986=\"\",\"\",IF(OR('TSA Input'!J1986=\"Yes\",'TSA Input'!J1986=\"Contingent\"),'TSA Input'!G1986,\"\"))","v":""},{"$f":"IF('TSA Input'!J1986=\"\",\"\",IF(OR('TSA Input'!J1986=\"Yes\",'TSA Input'!J1986=\"Contingent\"),'TSA Input'!F1986,\"\"))","v":""},"","Required","Required"]
["",null,{"$f":"IF('TSA Input'!J1987=\"\",\"\",IF(OR('TSA Input'!J1987=\"Yes\",'TSA Input'!J1987=\"Contingent\"),'TSA Input'!B1987,\"Ineligible\"))","v":""},{"$f":"IF('TSA Input'!J1987=\"\",\"\",IF(OR('TSA Input'!J1987=\"Yes\",'TSA Input'!J1987=\"Contingent\"),'TSA Input'!I1987,\"\"))","v":""},{"$f":"IF('TSA Input'!J1987=\"\",\"\",IF(OR('TSA Input'!J1987=\"Yes\",'TSA Input'!J1987=\"Contingent\"),'TSA Input'!C1987,\"\"))","v":""},{"$f":"IF('TSA Input'!J1987=\"\",\"\",IF(OR('TSA Input'!J1987=\"Yes\",'TSA Input'!J1987=\"Contingent\"),'TSA Input'!D1987,\"\"))","v":""},{"$f":"IF('TSA Input'!J1987=\"\",\"\",IF(OR('TSA Input'!J1987=\"Yes\",'TSA Input'!J1987=\"Contingent\"),'TSA Input'!G1987,\"\"))","v":""},{"$f":"IF('TSA Input'!J1987=\"\",\"\",IF(OR('TSA Input'!J1987=\"Yes\",'TSA Input'!J1987=\"Contingent\"),'TSA Input'!F1987,\"\"))","v":""},"",{"$f":"IF('TSA Input'!J1987=\"\",\"\",IF(OR('TSA Input'!J1987=\"Yes\",'TSA Input'!J1987=\"Contingent\"),'TSA Input'!D1987,\"\"))","v":""},{"$f":"IF('TSA Input'!J1987=\"\",\"\",IF(OR('TSA Input'!J1987=\"Yes\",'TSA Input'!J1987=\"Contingent\"),'TSA Input'!G1987,\"\"))","v":""},{"$f":"IF('TSA Input'!J1987=\"\",\"\",IF(OR('TSA Input'!J1987=\"Yes\",'TSA Input'!J1987=\"Contingent\"),'TSA Input'!F1987,\"\"))","v":""},"","Required","Required"]
["",null,{"$f":"IF('TSA Input'!J1988=\"\",\"\",IF(OR('TSA Input'!J1988=\"Yes\",'TSA Input'!J1988=\"Contingent\"),'TSA Input'!B1988,\"Ineligible\"))","v":""},{"$f":"IF('TSA Input'!J1988=\"\",\"\",IF(OR('TSA Input'!J1988=\"Yes\",'TSA Input'!J1988=\"Contingent\"),'TSA Input'!I1988,\"\"))","v":""},{"$f":"IF('TSA Input'!J1988=\"\",\"\",IF(OR('TSA Input'!J1988=\"Yes\",'TSA Input'!J1988=\"Contingent\"),'TSA Input'!C1988,\"\"))","v":""},{"$f":"IF('TSA Input'!J1988=\"\",\"\",IF(OR('TSA Input'!J1988=\"Yes\",'TSA Input'!J1988=\"Contingent\"),'TSA Input'!D1988,\"\"))","v":""},{"$f":"IF('TSA Input'!J1988=\"\",\"\",IF(OR('TSA Input'!J1988=\"Yes\",'TSA Input'!J1988=\"Contingent\"),'TSA Input'!G1988,\"\"))","v":""},{"$f":"IF('TSA Input'!J1988=\"\",\"\",IF(OR('TSA Input'!J1988=\"Yes\",'TSA Input'!J1988=\"Contingent\"),'TSA Input'!F1988,\"\"))","v":""},{"$f":"IF($C2026=\"\",\"\",SUM(F2026:H2026))","v":""},{"$f":"IF('TSA Input'!J1988=\"\",\"\",IF(OR('TSA Input'!J1988=\"Yes\",'TSA Input'!J1988=\"Contingent\"),'TSA Input'!D1988,\"\"))","v":""},{"$f":"IF('TSA Input'!J1988=\"\",\"\",IF(OR('TSA Input'!J1988=\"Yes\",'TSA Input'!J1988=\"Contingent\"),'TSA Input'!G1988,\"\"))","v":""},{"$f":"IF('TSA Input'!J1988=\"\",\"\",IF(OR('TSA Input'!J1988=\"Yes\",'TSA Input'!J1988=\"Contingent\"),'TSA Input'!F1988,\"\"))","v":""},{"$f":"IF($C2026=\"\",\"\",SUM(J2026:L2026))","v":""},"Required","Required"]
["",null,{"$f":"IF('TSA Input'!J1989=\"\",\"\",IF(OR('TSA Input'!J1989=\"Yes\",'TSA Input'!J1989=\"Contingent\"),'TSA Input'!B1989,\"Ineligible\"))","v":""},{"$f":"IF('TSA Input'!J1989=\"\",\"\",IF(OR('TSA Input'!J1989=\"Yes\",'TSA Input'!J1989=\"Contingent\"),'TSA Input'!I1989,\"\"))","v":""},{"$f":"IF('TSA Input'!J1989=\"\",\"\",IF(OR('TSA Input'!J1989=\"Yes\",'TSA Input'!J1989=\"Contingent\"),'TSA Input'!C1989,\"\"))","v":""},{"$f":"IF('TSA Input'!J1989=\"\",\"\",IF(OR('TSA Input'!J1989=\"Yes\",'TSA Input'!J1989=\"Contingent\"),'TSA Input'!D1989,\"\"))","v":""},{"$f":"IF('TSA Input'!J1989=\"\",\"\",IF(OR('TSA Input'!J1989=\"Yes\",'TSA Input'!J1989=\"Contingent\"),'TSA Input'!G1989,\"\"))","v":""},{"$f":"IF('TSA Input'!J1989=\"\",\"\",IF(OR('TSA Input'!J1989=\"Yes\",'TSA Input'!J1989=\"Contingent\"),'TSA Input'!F1989,\"\"))","v":""},"",{"$f":"IF('TSA Input'!J1989=\"\",\"\",IF(OR('TSA Input'!J1989=\"Yes\",'TSA Input'!J1989=\"Contingent\"),'TSA Input'!D1989,\"\"))","v":""},{"$f":"IF('TSA Input'!J1989=\"\",\"\",IF(OR('TSA Input'!J1989=\"Yes\",'TSA Input'!J1989=\"Contingent\"),'TSA Input'!G1989,\"\"))","v":""},{"$f":"IF('TSA Input'!J1989=\"\",\"\",IF(OR('TSA Input'!J1989=\"Yes\",'TSA Input'!J1989=\"Contingent\"),'TSA Input'!F1989,\"\"))","v":""},"","Required","Required"]
["",null,{"$f":"IF('TSA Input'!J1990=\"\",\"\",IF(OR('TSA Input'!J1990=\"Yes\",'TSA Input'!J1990=\"Contingent\"),'TSA Input'!B1990,\"Ineligible\"))","v":""},{"$f":"IF('TSA Input'!J1990=\"\",\"\",IF(OR('TSA Input'!J1990=\"Yes\",'TSA Input'!J1990=\"Contingent\"),'TSA Input'!I1990,\"\"))","v":""},{"$f":"IF('TSA Input'!J1990=\"\",\"\",IF(OR('TSA Input'!J1990=\"Yes\",'TSA Input'!J1990=\"Contingent\"),'TSA Input'!C1990,\"\"))","v":""},{"$f":"IF('TSA Input'!J1990=\"\",\"\",IF(OR('TSA Input'!J1990=\"Yes\",'TSA Input'!J1990=\"Contingent\"),'TSA Input'!D1990,\"\"))","v":""},{"$f":"IF('TSA Input'!J1990=\"\",\"\",IF(OR('TSA Input'!J1990=\"Yes\",'TSA Input'!J1990=\"Contingent\"),'TSA Input'!G1990,\"\"))","v":""},{"$f":"IF('TSA Input'!J1990=\"\",\"\",IF(OR('TSA Input'!J1990=\"Yes\",'TSA Input'!J1990=\"Contingent\"),'TSA Input'!F1990,\"\"))","v":""},"",{"$f":"IF('TSA Input'!J1990=\"\",\"\",IF(OR('TSA Input'!J1990=\"Yes\",'TSA Input'!J1990=\"Contingent\"),'TSA Input'!D1990,\"\"))","v":""},{"$f":"IF('TSA Input'!J1990=\"\",\"\",IF(OR('TSA Input'!J1990=\"Yes\",'TSA Input'!J1990=\"Contingent\"),'TSA Input'!G1990,\"\"))","v":""},{"$f":"IF('TSA Input'!J1990=\"\",\"\",IF(OR('TSA Input'!J1990=\"Yes\",'TSA Input'!J1990=\"Contingent\"),'TSA Input'!F1990,\"\"))","v":""},"","Required","Required"]
["",null,{"$f":"IF('TSA Input'!J1991=\"\",\"\",IF(OR('TSA Input'!J1991=\"Yes\",'TSA Input'!J1991=\"Contingent\"),'TSA Input'!B1991,\"Ineligible\"))","v":""},{"$f":"IF('TSA Input'!J1991=\"\",\"\",IF(OR('TSA Input'!J1991=\"Yes\",'TSA Input'!J1991=\"Contingent\"),'TSA Input'!I1991,\"\"))","v":""},{"$f":"IF('TSA Input'!J1991=\"\",\"\",IF(OR('TSA Input'!J1991=\"Yes\",'TSA Input'!J1991=\"Contingent\"),'TSA Input'!C1991,\"\"))","v":""},{"$f":"IF('TSA Input'!J1991=\"\",\"\",IF(OR('TSA Input'!J1991=\"Yes\",'TSA Input'!J1991=\"Contingent\"),'TSA Input'!D1991,\"\"))","v":""},{"$f":"IF('TSA Input'!J1991=\"\",\"\",IF(OR('TSA Input'!J1991=\"Yes\",'TSA Input'!J1991=\"Contingent\"),'TSA Input'!G1991,\"\"))","v":""},{"$f":"IF('TSA Input'!J1991=\"\",\"\",IF(OR('TSA Input'!J1991=\"Yes\",'TSA Input'!J1991=\"Contingent\"),'TSA Input'!F1991,\"\"))","v":""},"",{"$f":"IF('TSA Input'!J1991=\"\",\"\",IF(OR('TSA Input'!J1991=\"Yes\",'TSA Input'!J1991=\"Contingent\"),'TSA Input'!D1991,\"\"))","v":""},{"$f":"IF('TSA Input'!J1991=\"\",\"\",IF(OR('TSA Input'!J1991=\"Yes\",'TSA Input'!J1991=\"Contingent\"),'TSA Input'!G1991,\"\"))","v":""},{"$f":"IF('TSA Input'!J1991=\"\",\"\",IF(OR('TSA Input'!J1991=\"Yes\",'TSA Input'!J1991=\"Contingent\"),'TSA Input'!F1991,\"\"))","v":""},"","Required","Required"]
["",null,{"$f":"IF('TSA Input'!J1992=\"\",\"\",IF(OR('TSA Input'!J1992=\"Yes\",'TSA Input'!J1992=\"Contingent\"),'TSA Input'!B1992,\"Ineligible\"))","v":""},{"$f":"IF('TSA Input'!J1992=\"\",\"\",IF(OR('TSA Input'!J1992=\"Yes\",'TSA Input'!J1992=\"Contingent\"),'TSA Input'!I1992,\"\"))","v":""},{"$f":"IF('TSA Input'!J1992=\"\",\"\",IF(OR('TSA Input'!J1992=\"Yes\",'TSA Input'!J1992=\"Contingent\"),'TSA Input'!C1992,\"\"))","v":""},{"$f":"IF('TSA Input'!J1992=\"\",\"\",IF(OR('TSA Input'!J1992=\"Yes\",'TSA Input'!J1992=\"Contingent\"),'TSA Input'!D1992,\"\"))","v":""},{"$f":"IF('TSA Input'!J1992=\"\",\"\",IF(OR('TSA Input'!J1992=\"Yes\",'TSA Input'!J1992=\"Contingent\"),'TSA Input'!G1992,\"\"))","v":""},{"$f":"IF('TSA Input'!J1992=\"\",\"\",IF(OR('TSA Input'!J1992=\"Yes\",'TSA Input'!J1992=\"Contingent\"),'TSA Input'!F1992,\"\"))","v":""},"",{"$f":"IF('TSA Input'!J1992=\"\",\"\",IF(OR('TSA Input'!J1992=\"Yes\",'TSA Input'!J1992=\"Contingent\"),'TSA Input'!D1992,\"\"))","v":""},{"$f":"IF('TSA Input'!J1992=\"\",\"\",IF(OR('TSA Input'!J1992=\"Yes\",'TSA Input'!J1992=\"Contingent\"),'TSA Input'!G1992,\"\"))","v":""},{"$f":"IF('TSA Input'!J1992=\"\",\"\",IF(OR('TSA Input'!J1992=\"Yes\",'TSA Input'!J1992=\"Contingent\"),'TSA Input'!F1992,\"\"))","v":""},"","Required","Required"]
["",null,{"$f":"IF('TSA Input'!J1993=\"\",\"\",IF(OR('TSA Input'!J1993=\"Yes\",'TSA Input'!J1993=\"Contingent\"),'TSA Input'!B1993,\"Ineligible\"))","v":""},{"$f":"IF('TSA Input'!J1993=\"\",\"\",IF(OR('TSA Input'!J1993=\"Yes\",'TSA Input'!J1993=\"Contingent\"),'TSA Input'!I1993,\"\"))","v":""},{"$f":"IF('TSA Input'!J1993=\"\",\"\",IF(OR('TSA Input'!J1993=\"Yes\",'TSA Input'!J1993=\"Contingent\"),'TSA Input'!C1993,\"\"))","v":""},{"$f":"IF('TSA Input'!J1993=\"\",\"\",IF(OR('TSA Input'!J1993=\"Yes\",'TSA Input'!J1993=\"Contingent\"),'TSA Input'!D1993,\"\"))","v":""},{"$f":"IF('TSA Input'!J1993=\"\",\"\",IF(OR('TSA Input'!J1993=\"Yes\",'TSA Input'!J1993=\"Contingent\"),'TSA Input'!G1993,\"\"))","v":""},{"$f":"IF('TSA Input'!J1993=\"\",\"\",IF(OR('TSA Input'!J1993=\"Yes\",'TSA Input'!J1993=\"Contingent\"),'TSA Input'!F1993,\"\"))","v":""},"",{"$f":"IF('TSA Input'!J1993=\"\",\"\",IF(OR('TSA Input'!J1993=\"Yes\",'TSA Input'!J1993=\"Contingent\"),'TSA Input'!D1993,\"\"))","v":""},{"$f":"IF('TSA Input'!J1993=\"\",\"\",IF(OR('TSA Input'!J1993=\"Yes\",'TSA Input'!J1993=\"Contingent\"),'TSA Input'!G1993,\"\"))","v":""},{"$f":"IF('TSA Input'!J1993=\"\",\"\",IF(OR('TSA Input'!J1993=\"Yes\",'TSA Input'!J1993=\"Contingent\"),'TSA Input'!F1993,\"\"))","v":""},"","Required","Required"]
["",null,{"$f":"IF('TSA Input'!J1994=\"\",\"\",IF(OR('TSA Input'!J1994=\"Yes\",'TSA Input'!J1994=\"Contingent\"),'TSA Input'!B1994,\"Ineligible\"))","v":""},{"$f":"IF('TSA Input'!J1994=\"\",\"\",IF(OR('TSA Input'!J1994=\"Yes\",'TSA Input'!J1994=\"Contingent\"),'TSA Input'!I1994,\"\"))","v":""},{"$f":"IF('TSA Input'!J1994=\"\",\"\",IF(OR('TSA Input'!J1994=\"Yes\",'TSA Input'!J1994=\"Contingent\"),'TSA Input'!C1994,\"\"))","v":""},{"$f":"IF('TSA Input'!J1994=\"\",\"\",IF(OR('TSA Input'!J1994=\"Yes\",'TSA Input'!J1994=\"Contingent\"),'TSA Input'!D1994,\"\"))","v":""},{"$f":"IF('TSA Input'!J1994=\"\",\"\",IF(OR('TSA Input'!J1994=\"Yes\",'TSA Input'!J1994=\"Contingent\"),'TSA Input'!G1994,\"\"))","v":""},{"$f":"IF('TSA Input'!J1994=\"\",\"\",IF(OR('TSA Input'!J1994=\"Yes\",'TSA Input'!J1994=\"Contingent\"),'TSA Input'!F1994,\"\"))","v":""},"",{"$f":"IF('TSA Input'!J1994=\"\",\"\",IF(OR('TSA Input'!J1994=\"Yes\",'TSA Input'!J1994=\"Contingent\"),'TSA Input'!D1994,\"\"))","v":""},{"$f":"IF('TSA Input'!J1994=\"\",\"\",IF(OR('TSA Input'!J1994=\"Yes\",'TSA Input'!J1994=\"Contingent\"),'TSA Input'!G1994,\"\"))","v":""},{"$f":"IF('TSA Input'!J1994=\"\",\"\",IF(OR('TSA Input'!J1994=\"Yes\",'TSA Input'!J1994=\"Contingent\"),'TSA Input'!F1994,\"\"))","v":""},"","Required","Required"]
["",null,{"$f":"IF('TSA Input'!J1995=\"\",\"\",IF(OR('TSA Input'!J1995=\"Yes\",'TSA Input'!J1995=\"Contingent\"),'TSA Input'!B1995,\"Ineligible\"))","v":""},{"$f":"IF('TSA Input'!J1995=\"\",\"\",IF(OR('TSA Input'!J1995=\"Yes\",'TSA Input'!J1995=\"Contingent\"),'TSA Input'!I1995,\"\"))","v":""},{"$f":"IF('TSA Input'!J1995=\"\",\"\",IF(OR('TSA Input'!J1995=\"Yes\",'TSA Input'!J1995=\"Contingent\"),'TSA Input'!C1995,\"\"))","v":""},{"$f":"IF('TSA Input'!J1995=\"\",\"\",IF(OR('TSA Input'!J1995=\"Yes\",'TSA Input'!J1995=\"Contingent\"),'TSA Input'!D1995,\"\"))","v":""},{"$f":"IF('TSA Input'!J1995=\"\",\"\",IF(OR('TSA Input'!J1995=\"Yes\",'TSA Input'!J1995=\"Contingent\"),'TSA Input'!G1995,\"\"))","v":""},{"$f":"IF('TSA Input'!J1995=\"\",\"\",IF(OR('TSA Input'!J1995=\"Yes\",'TSA Input'!J1995=\"Contingent\"),'TSA Input'!F1995,\"\"))","v":""},"",{"$f":"IF('TSA Input'!J1995=\"\",\"\",IF(OR('TSA Input'!J1995=\"Yes\",'TSA Input'!J1995=\"Contingent\"),'TSA Input'!D1995,\"\"))","v":""},{"$f":"IF('TSA Input'!J1995=\"\",\"\",IF(OR('TSA Input'!J1995=\"Yes\",'TSA Input'!J1995=\"Contingent\"),'TSA Input'!G1995,\"\"))","v":""},{"$f":"IF('TSA Input'!J1995=\"\",\"\",IF(OR('TSA Input'!J1995=\"Yes\",'TSA Input'!J1995=\"Contingent\"),'TSA Input'!F1995,\"\"))","v":""},"","Required","Required"]
["",null,{"$f":"IF('TSA Input'!J1996=\"\",\"\",IF(OR('TSA Input'!J1996=\"Yes\",'TSA Input'!J1996=\"Contingent\"),'TSA Input'!B1996,\"Ineligible\"))","v":""},{"$f":"IF('TSA Input'!J1996=\"\",\"\",IF(OR('TSA Input'!J1996=\"Yes\",'TSA Input'!J1996=\"Contingent\"),'TSA Input'!I1996,\"\"))","v":""},{"$f":"IF('TSA Input'!J1996=\"\",\"\",IF(OR('TSA Input'!J1996=\"Yes\",'TSA Input'!J1996=\"Contingent\"),'TSA Input'!C1996,\"\"))","v":""},{"$f":"IF('TSA Input'!J1996=\"\",\"\",IF(OR('TSA Input'!J1996=\"Yes\",'TSA Input'!J1996=\"Contingent\"),'TSA Input'!D1996,\"\"))","v":""},{"$f":"IF('TSA Input'!J1996=\"\",\"\",IF(OR('TSA Input'!J1996=\"Yes\",'TSA Input'!J1996=\"Contingent\"),'TSA Input'!G1996,\"\"))","v":""},{"$f":"IF('TSA Input'!J1996=\"\",\"\",IF(OR('TSA Input'!J1996=\"Yes\",'TSA Input'!J1996=\"Contingent\"),'TSA Input'!F1996,\"\"))","v":""},"",{"$f":"IF('TSA Input'!J1996=\"\",\"\",IF(OR('TSA Input'!J1996=\"Yes\",'TSA Input'!J1996=\"Contingent\"),'TSA Input'!D1996,\"\"))","v":""},{"$f":"IF('TSA Input'!J1996=\"\",\"\",IF(OR('TSA Input'!J1996=\"Yes\",'TSA Input'!J1996=\"Contingent\"),'TSA Input'!G1996,\"\"))","v":""},{"$f":"IF('TSA Input'!J1996=\"\",\"\",IF(OR('TSA Input'!J1996=\"Yes\",'TSA Input'!J1996=\"Contingent\"),'TSA Input'!F1996,\"\"))","v":""},"","Required","Required"]
["",null,{"$f":"IF('TSA Input'!J1997=\"\",\"\",IF(OR('TSA Input'!J1997=\"Yes\",'TSA Input'!J1997=\"Contingent\"),'TSA Input'!B1997,\"Ineligible\"))","v":""},{"$f":"IF('TSA Input'!J1997=\"\",\"\",IF(OR('TSA Input'!J1997=\"Yes\",'TSA Input'!J1997=\"Contingent\"),'TSA Input'!I1997,\"\"))","v":""},{"$f":"IF('TSA Input'!J1997=\"\",\"\",IF(OR('TSA Input'!J1997=\"Yes\",'TSA Input'!J1997=\"Contingent\"),'TSA Input'!C1997,\"\"))","v":""},{"$f":"IF('TSA Input'!J1997=\"\",\"\",IF(OR('TSA Input'!J1997=\"Yes\",'TSA Input'!J1997=\"Contingent\"),'TSA Input'!D1997,\"\"))","v":""},{"$f":"IF('TSA Input'!J1997=\"\",\"\",IF(OR('TSA Input'!J1997=\"Yes\",'TSA Input'!J1997=\"Contingent\"),'TSA Input'!G1997,\"\"))","v":""},{"$f":"IF('TSA Input'!J1997=\"\",\"\",IF(OR('TSA Input'!J1997=\"Yes\",'TSA Input'!J1997=\"Contingent\"),'TSA Input'!F1997,\"\"))","v":""},"",{"$f":"IF('TSA Input'!J1997=\"\",\"\",IF(OR('TSA Input'!J1997=\"Yes\",'TSA Input'!J1997=\"Contingent\"),'TSA Input'!D1997,\"\"))","v":""},{"$f":"IF('TSA Input'!J1997=\"\",\"\",IF(OR('TSA Input'!J1997=\"Yes\",'TSA Input'!J1997=\"Contingent\"),'TSA Input'!G1997,\"\"))","v":""},{"$f":"IF('TSA Input'!J1997=\"\",\"\",IF(OR('TSA Input'!J1997=\"Yes\",'TSA Input'!J1997=\"Contingent\"),'TSA Input'!F1997,\"\"))","v":""},"","Required","Required"]
["",null,{"$f":"IF('TSA Input'!J1998=\"\",\"\",IF(OR('TSA Input'!J1998=\"Yes\",'TSA Input'!J1998=\"Contingent\"),'TSA Input'!B1998,\"Ineligible\"))","v":""},{"$f":"IF('TSA Input'!J1998=\"\",\"\",IF(OR('TSA Input'!J1998=\"Yes\",'TSA Input'!J1998=\"Contingent\"),'TSA Input'!I1998,\"\"))","v":""},{"$f":"IF('TSA Input'!J1998=\"\",\"\",IF(OR('TSA Input'!J1998=\"Yes\",'TSA Input'!J1998=\"Contingent\"),'TSA Input'!C1998,\"\"))","v":""},{"$f":"IF('TSA Input'!J1998=\"\",\"\",IF(OR('TSA Input'!J1998=\"Yes\",'TSA Input'!J1998=\"Contingent\"),'TSA Input'!D1998,\"\"))","v":""},{"$f":"IF('TSA Input'!J1998=\"\",\"\",IF(OR('TSA Input'!J1998=\"Yes\",'TSA Input'!J1998=\"Contingent\"),'TSA Input'!G1998,\"\"))","v":""},{"$f":"IF('TSA Input'!J1998=\"\",\"\",IF(OR('TSA Input'!J1998=\"Yes\",'TSA Input'!J1998=\"Contingent\"),'TSA Input'!F1998,\"\"))","v":""},"",{"$f":"IF('TSA Input'!J1998=\"\",\"\",IF(OR('TSA Input'!J1998=\"Yes\",'TSA Input'!J1998=\"Contingent\"),'TSA Input'!D1998,\"\"))","v":""},{"$f":"IF('TSA Input'!J1998=\"\",\"\",IF(OR('TSA Input'!J1998=\"Yes\",'TSA Input'!J1998=\"Contingent\"),'TSA Input'!G1998,\"\"))","v":""},{"$f":"IF('TSA Input'!J1998=\"\",\"\",IF(OR('TSA Input'!J1998=\"Yes\",'TSA Input'!J1998=\"Contingent\"),'TSA Input'!F1998,\"\"))","v":""},"","Required","Required"]
["",null,{"$f":"IF('TSA Input'!J1999=\"\",\"\",IF(OR('TSA Input'!J1999=\"Yes\",'TSA Input'!J1999=\"Contingent\"),'TSA Input'!B1999,\"Ineligible\"))","v":""},{"$f":"IF('TSA Input'!J1999=\"\",\"\",IF(OR('TSA Input'!J1999=\"Yes\",'TSA Input'!J1999=\"Contingent\"),'TSA Input'!I1999,\"\"))","v":""},{"$f":"IF('TSA Input'!J1999=\"\",\"\",IF(OR('TSA Input'!J1999=\"Yes\",'TSA Input'!J1999=\"Contingent\"),'TSA Input'!C1999,\"\"))","v":""},{"$f":"IF('TSA Input'!J1999=\"\",\"\",IF(OR('TSA Input'!J1999=\"Yes\",'TSA Input'!J1999=\"Contingent\"),'TSA Input'!D1999,\"\"))","v":""},{"$f":"IF('TSA Input'!J1999=\"\",\"\",IF(OR('TSA Input'!J1999=\"Yes\",'TSA Input'!J1999=\"Contingent\"),'TSA Input'!G1999,\"\"))","v":""},{"$f":"IF('TSA Input'!J1999=\"\",\"\",IF(OR('TSA Input'!J1999=\"Yes\",'TSA Input'!J1999=\"Contingent\"),'TSA Input'!F1999,\"\"))","v":""},"",{"$f":"IF('TSA Input'!J1999=\"\",\"\",IF(OR('TSA Input'!J1999=\"Yes\",'TSA Input'!J1999=\"Contingent\"),'TSA Input'!D1999,\"\"))","v":""},{"$f":"IF('TSA Input'!J1999=\"\",\"\",IF(OR('TSA Input'!J1999=\"Yes\",'TSA Input'!J1999=\"Contingent\"),'TSA Input'!G1999,\"\"))","v":""},{"$f":"IF('TSA Input'!J1999=\"\",\"\",IF(OR('TSA Input'!J1999=\"Yes\",'TSA Input'!J1999=\"Contingent\"),'TSA Input'!F1999,\"\"))","v":""},"","Required","Required"]
["",null,{"$f":"IF('TSA Input'!J2000=\"\",\"\",IF(OR('TSA Input'!J2000=\"Yes\",'TSA Input'!J2000=\"Contingent\"),'TSA Input'!B2000,\"Ineligible\"))","v":""},{"$f":"IF('TSA Input'!J2000=\"\",\"\",IF(OR('TSA Input'!J2000=\"Yes\",'TSA Input'!J2000=\"Contingent\"),'TSA Input'!I2000,\"\"))","v":""},{"$f":"IF('TSA Input'!J2000=\"\",\"\",IF(OR('TSA Input'!J2000=\"Yes\",'TSA Input'!J2000=\"Contingent\"),'TSA Input'!C2000,\"\"))","v":""},{"$f":"IF('TSA Input'!J2000=\"\",\"\",IF(OR('TSA Input'!J2000=\"Yes\",'TSA Input'!J2000=\"Contingent\"),'TSA Input'!D2000,\"\"))","v":""},{"$f":"IF('TSA Input'!J2000=\"\",\"\",IF(OR('TSA Input'!J2000=\"Yes\",'TSA Input'!J2000=\"Contingent\"),'TSA Input'!G2000,\"\"))","v":""},{"$f":"IF('TSA Input'!J2000=\"\",\"\",IF(OR('TSA Input'!J2000=\"Yes\",'TSA Input'!J2000=\"Contingent\"),'TSA Input'!F2000,\"\"))","v":""},"",{"$f":"IF('TSA Input'!J2000=\"\",\"\",IF(OR('TSA Input'!J2000=\"Yes\",'TSA Input'!J2000=\"Contingent\"),'TSA Input'!D2000,\"\"))","v":""},{"$f":"IF('TSA Input'!J2000=\"\",\"\",IF(OR('TSA Input'!J2000=\"Yes\",'TSA Input'!J2000=\"Contingent\"),'TSA Input'!G2000,\"\"))","v":""},{"$f":"IF('TSA Input'!J2000=\"\",\"\",IF(OR('TSA Input'!J2000=\"Yes\",'TSA Input'!J2000=\"Contingent\"),'TSA Input'!F2000,\"\"))","v":""},"","Required","Required"]
["",null,{"$f":"IF('TSA Input'!J2001=\"\",\"\",IF(OR('TSA Input'!J2001=\"Yes\",'TSA Input'!J2001=\"Contingent\"),'TSA Input'!B2001,\"Ineligible\"))","v":""},{"$f":"IF('TSA Input'!J2001=\"\",\"\",IF(OR('TSA Input'!J2001=\"Yes\",'TSA Input'!J2001=\"Contingent\"),'TSA Input'!I2001,\"\"))","v":""},{"$f":"IF('TSA Input'!J2001=\"\",\"\",IF(OR('TSA Input'!J2001=\"Yes\",'TSA Input'!J2001=\"Contingent\"),'TSA Input'!C2001,\"\"))","v":""},{"$f":"IF('TSA Input'!J2001=\"\",\"\",IF(OR('TSA Input'!J2001=\"Yes\",'TSA Input'!J2001=\"Contingent\"),'TSA Input'!D2001,\"\"))","v":""},{"$f":"IF('TSA Input'!J2001=\"\",\"\",IF(OR('TSA Input'!J2001=\"Yes\",'TSA Input'!J2001=\"Contingent\"),'TSA Input'!G2001,\"\"))","v":""},{"$f":"IF('TSA Input'!J2001=\"\",\"\",IF(OR('TSA Input'!J2001=\"Yes\",'TSA Input'!J2001=\"Contingent\"),'TSA Input'!F2001,\"\"))","v":""},"",{"$f":"IF('TSA Input'!J2001=\"\",\"\",IF(OR('TSA Input'!J2001=\"Yes\",'TSA Input'!J2001=\"Contingent\"),'TSA Input'!D2001,\"\"))","v":""},{"$f":"IF('TSA Input'!J2001=\"\",\"\",IF(OR('TSA Input'!J2001=\"Yes\",'TSA Input'!J2001=\"Contingent\"),'TSA Input'!G2001,\"\"))","v":""},{"$f":"IF('TSA Input'!J2001=\"\",\"\",IF(OR('TSA Input'!J2001=\"Yes\",'TSA Input'!J2001=\"Contingent\"),'TSA Input'!F2001,\"\"))","v":""},"","Required","Required"]
["",null,{"$f":"IF('TSA Input'!J2002=\"\",\"\",IF(OR('TSA Input'!J2002=\"Yes\",'TSA Input'!J2002=\"Contingent\"),'TSA Input'!B2002,\"Ineligible\"))","v":""},{"$f":"IF('TSA Input'!J2002=\"\",\"\",IF(OR('TSA Input'!J2002=\"Yes\",'TSA Input'!J2002=\"Contingent\"),'TSA Input'!I2002,\"\"))","v":""},{"$f":"IF('TSA Input'!J2002=\"\",\"\",IF(OR('TSA Input'!J2002=\"Yes\",'TSA Input'!J2002=\"Contingent\"),'TSA Input'!C2002,\"\"))","v":""},{"$f":"IF('TSA Input'!J2002=\"\",\"\",IF(OR('TSA Input'!J2002=\"Yes\",'TSA Input'!J2002=\"Contingent\"),'TSA Input'!D2002,\"\"))","v":""},{"$f":"IF('TSA Input'!J2002=\"\",\"\",IF(OR('TSA Input'!J2002=\"Yes\",'TSA Input'!J2002=\"Contingent\"),'TSA Input'!G2002,\"\"))","v":""},{"$f":"IF('TSA Input'!J2002=\"\",\"\",IF(OR('TSA Input'!J2002=\"Yes\",'TSA Input'!J2002=\"Contingent\"),'TSA Input'!F2002,\"\"))","v":""},"",{"$f":"IF('TSA Input'!J2002=\"\",\"\",IF(OR('TSA Input'!J2002=\"Yes\",'TSA Input'!J2002=\"Contingent\"),'TSA Input'!D2002,\"\"))","v":""},{"$f":"IF('TSA Input'!J2002=\"\",\"\",IF(OR('TSA Input'!J2002=\"Yes\",'TSA Input'!J2002=\"Contingent\"),'TSA Input'!G2002,\"\"))","v":""},{"$f":"IF('TSA Input'!J2002=\"\",\"\",IF(OR('TSA Input'!J2002=\"Yes\",'TSA Input'!J2002=\"Contingent\"),'TSA Input'!F2002,\"\"))","v":""},"","Required","Required"]
["",null,{"$f":"IF('TSA Input'!J2003=\"\",\"\",IF(OR('TSA Input'!J2003=\"Yes\",'TSA Input'!J2003=\"Contingent\"),'TSA Input'!B2003,\"Ineligible\"))","v":""},{"$f":"IF('TSA Input'!J2003=\"\",\"\",IF(OR('TSA Input'!J2003=\"Yes\",'TSA Input'!J2003=\"Contingent\"),'TSA Input'!I2003,\"\"))","v":""},{"$f":"IF('TSA Input'!J2003=\"\",\"\",IF(OR('TSA Input'!J2003=\"Yes\",'TSA Input'!J2003=\"Contingent\"),'TSA Input'!C2003,\"\"))","v":""},{"$f":"IF('TSA Input'!J2003=\"\",\"\",IF(OR('TSA Input'!J2003=\"Yes\",'TSA Input'!J2003=\"Contingent\"),'TSA Input'!D2003,\"\"))","v":""},{"$f":"IF('TSA Input'!J2003=\"\",\"\",IF(OR('TSA Input'!J2003=\"Yes\",'TSA Input'!J2003=\"Contingent\"),'TSA Input'!G2003,\"\"))","v":""},{"$f":"IF('TSA Input'!J2003=\"\",\"\",IF(OR('TSA Input'!J2003=\"Yes\",'TSA Input'!J2003=\"Contingent\"),'TSA Input'!F2003,\"\"))","v":""},"",{"$f":"IF('TSA Input'!J2003=\"\",\"\",IF(OR('TSA Input'!J2003=\"Yes\",'TSA Input'!J2003=\"Contingent\"),'TSA Input'!D2003,\"\"))","v":""},{"$f":"IF('TSA Input'!J2003=\"\",\"\",IF(OR('TSA Input'!J2003=\"Yes\",'TSA Input'!J2003=\"Contingent\"),'TSA Input'!G2003,\"\"))","v":""},{"$f":"IF('TSA Input'!J2003=\"\",\"\",IF(OR('TSA Input'!J2003=\"Yes\",'TSA Input'!J2003=\"Contingent\"),'TSA Input'!F2003,\"\"))","v":""},"","Required","Required"]
["",null,{"$f":"IF('TSA Input'!J2004=\"\",\"\",IF(OR('TSA Input'!J2004=\"Yes\",'TSA Input'!J2004=\"Contingent\"),'TSA Input'!B2004,\"Ineligible\"))","v":""},{"$f":"IF('TSA Input'!J2004=\"\",\"\",IF(OR('TSA Input'!J2004=\"Yes\",'TSA Input'!J2004=\"Contingent\"),'TSA Input'!I2004,\"\"))","v":""},{"$f":"IF('TSA Input'!J2004=\"\",\"\",IF(OR('TSA Input'!J2004=\"Yes\",'TSA Input'!J2004=\"Contingent\"),'TSA Input'!C2004,\"\"))","v":""},{"$f":"IF('TSA Input'!J2004=\"\",\"\",IF(OR('TSA Input'!J2004=\"Yes\",'TSA Input'!J2004=\"Contingent\"),'TSA Input'!D2004,\"\"))","v":""},{"$f":"IF('TSA Input'!J2004=\"\",\"\",IF(OR('TSA Input'!J2004=\"Yes\",'TSA Input'!J2004=\"Contingent\"),'TSA Input'!G2004,\"\"))","v":""},{"$f":"IF('TSA Input'!J2004=\"\",\"\",IF(OR('TSA Input'!J2004=\"Yes\",'TSA Input'!J2004=\"Contingent\"),'TSA Input'!F2004,\"\"))","v":""},"",{"$f":"IF('TSA Input'!J2004=\"\",\"\",IF(OR('TSA Input'!J2004=\"Yes\",'TSA Input'!J2004=\"Contingent\"),'TSA Input'!D2004,\"\"))","v":""},{"$f":"IF('TSA Input'!J2004=\"\",\"\",IF(OR('TSA Input'!J2004=\"Yes\",'TSA Input'!J2004=\"Contingent\"),'TSA Input'!G2004,\"\"))","v":""},{"$f":"IF('TSA Input'!J2004=\"\",\"\",IF(OR('TSA Input'!J2004=\"Yes\",'TSA Input'!J2004=\"Contingent\"),'TSA Input'!F2004,\"\"))","v":""},"","Required","Required"]
["",null,{"$f":"IF('TSA Input'!J2005=\"\",\"\",IF(OR('TSA Input'!J2005=\"Yes\",'TSA Input'!J2005=\"Contingent\"),'TSA Input'!B2005,\"Ineligible\"))","v":""},{"$f":"IF('TSA Input'!J2005=\"\",\"\",IF(OR('TSA Input'!J2005=\"Yes\",'TSA Input'!J2005=\"Contingent\"),'TSA Input'!I2005,\"\"))","v":""},{"$f":"IF('TSA Input'!J2005=\"\",\"\",IF(OR('TSA Input'!J2005=\"Yes\",'TSA Input'!J2005=\"Contingent\"),'TSA Input'!C2005,\"\"))","v":""},{"$f":"IF('TSA Input'!J2005=\"\",\"\",IF(OR('TSA Input'!J2005=\"Yes\",'TSA Input'!J2005=\"Contingent\"),'TSA Input'!D2005,\"\"))","v":""},{"$f":"IF('TSA Input'!J2005=\"\",\"\",IF(OR('TSA Input'!J2005=\"Yes\",'TSA Input'!J2005=\"Contingent\"),'TSA Input'!G2005,\"\"))","v":""},{"$f":"IF('TSA Input'!J2005=\"\",\"\",IF(OR('TSA Input'!J2005=\"Yes\",'TSA Input'!J2005=\"Contingent\"),'TSA Input'!F2005,\"\"))","v":""},"",{"$f":"IF('TSA Input'!J2005=\"\",\"\",IF(OR('TSA Input'!J2005=\"Yes\",'TSA Input'!J2005=\"Contingent\"),'TSA Input'!D2005,\"\"))","v":""},{"$f":"IF('TSA Input'!J2005=\"\",\"\",IF(OR('TSA Input'!J2005=\"Yes\",'TSA Input'!J2005=\"Contingent\"),'TSA Input'!G2005,\"\"))","v":""},{"$f":"IF('TSA Input'!J2005=\"\",\"\",IF(OR('TSA Input'!J2005=\"Yes\",'TSA Input'!J2005=\"Contingent\"),'TSA Input'!F2005,\"\"))","v":""},"","Required","Required"]
["",null,{"$f":"IF('TSA Input'!J2006=\"\",\"\",IF(OR('TSA Input'!J2006=\"Yes\",'TSA Input'!J2006=\"Contingent\"),'TSA Input'!B2006,\"Ineligible\"))","v":""},{"$f":"IF('TSA Input'!J2006=\"\",\"\",IF(OR('TSA Input'!J2006=\"Yes\",'TSA Input'!J2006=\"Contingent\"),'TSA Input'!I2006,\"\"))","v":""},{"$f":"IF('TSA Input'!J2006=\"\",\"\",IF(OR('TSA Input'!J2006=\"Yes\",'TSA Input'!J2006=\"Contingent\"),'TSA Input'!C2006,\"\"))","v":""},{"$f":"IF('TSA Input'!J2006=\"\",\"\",IF(OR('TSA Input'!J2006=\"Yes\",'TSA Input'!J2006=\"Contingent\"),'TSA Input'!D2006,\"\"))","v":""},{"$f":"IF('TSA Input'!J2006=\"\",\"\",IF(OR('TSA Input'!J2006=\"Yes\",'TSA Input'!J2006=\"Contingent\"),'TSA Input'!G2006,\"\"))","v":""},{"$f":"IF('TSA Input'!J2006=\"\",\"\",IF(OR('TSA Input'!J2006=\"Yes\",'TSA Input'!J2006=\"Contingent\"),'TSA Input'!F2006,\"\"))","v":""},"",{"$f":"IF('TSA Input'!J2006=\"\",\"\",IF(OR('TSA Input'!J2006=\"Yes\",'TSA Input'!J2006=\"Contingent\"),'TSA Input'!D2006,\"\"))","v":""},{"$f":"IF('TSA Input'!J2006=\"\",\"\",IF(OR('TSA Input'!J2006=\"Yes\",'TSA Input'!J2006=\"Contingent\"),'TSA Input'!G2006,\"\"))","v":""},{"$f":"IF('TSA Input'!J2006=\"\",\"\",IF(OR('TSA Input'!J2006=\"Yes\",'TSA Input'!J2006=\"Contingent\"),'TSA Input'!F2006,\"\"))","v":""},"","Required","Required"]
["",null,{"$f":"IF('TSA Input'!J2007=\"\",\"\",IF(OR('TSA Input'!J2007=\"Yes\",'TSA Input'!J2007=\"Contingent\"),'TSA Input'!B2007,\"Ineligible\"))","v":""},{"$f":"IF('TSA Input'!J2007=\"\",\"\",IF(OR('TSA Input'!J2007=\"Yes\",'TSA Input'!J2007=\"Contingent\"),'TSA Input'!I2007,\"\"))","v":""},{"$f":"IF('TSA Input'!J2007=\"\",\"\",IF(OR('TSA Input'!J2007=\"Yes\",'TSA Input'!J2007=\"Contingent\"),'TSA Input'!C2007,\"\"))","v":""},{"$f":"IF('TSA Input'!J2007=\"\",\"\",IF(OR('TSA Input'!J2007=\"Yes\",'TSA Input'!J2007=\"Contingent\"),'TSA Input'!D2007,\"\"))","v":""},{"$f":"IF('TSA Input'!J2007=\"\",\"\",IF(OR('TSA Input'!J2007=\"Yes\",'TSA Input'!J2007=\"Contingent\"),'TSA Input'!G2007,\"\"))","v":""},{"$f":"IF('TSA Input'!J2007=\"\",\"\",IF(OR('TSA Input'!J2007=\"Yes\",'TSA Input'!J2007=\"Contingent\"),'TSA Input'!F2007,\"\"))","v":""},"",{"$f":"IF('TSA Input'!J2007=\"\",\"\",IF(OR('TSA Input'!J2007=\"Yes\",'TSA Input'!J2007=\"Contingent\"),'TSA Input'!D2007,\"\"))","v":""},{"$f":"IF('TSA Input'!J2007=\"\",\"\",IF(OR('TSA Input'!J2007=\"Yes\",'TSA Input'!J2007=\"Contingent\"),'TSA Input'!G2007,\"\"))","v":""},{"$f":"IF('TSA Input'!J2007=\"\",\"\",IF(OR('TSA Input'!J2007=\"Yes\",'TSA Input'!J2007=\"Contingent\"),'TSA Input'!F2007,\"\"))","v":""},"","Required","Required"]
["",null,{"$f":"IF('TSA Input'!J2008=\"\",\"\",IF(OR('TSA Input'!J2008=\"Yes\",'TSA Input'!J2008=\"Contingent\"),'TSA Input'!B2008,\"Ineligible\"))","v":""},{"$f":"IF('TSA Input'!J2008=\"\",\"\",IF(OR('TSA Input'!J2008=\"Yes\",'TSA Input'!J2008=\"Contingent\"),'TSA Input'!I2008,\"\"))","v":""},{"$f":"IF('TSA Input'!J2008=\"\",\"\",IF(OR('TSA Input'!J2008=\"Yes\",'TSA Input'!J2008=\"Contingent\"),'TSA Input'!C2008,\"\"))","v":""},{"$f":"IF('TSA Input'!J2008=\"\",\"\",IF(OR('TSA Input'!J2008=\"Yes\",'TSA Input'!J2008=\"Contingent\"),'TSA Input'!D2008,\"\"))","v":""},{"$f":"IF('TSA Input'!J2008=\"\",\"\",IF(OR('TSA Input'!J2008=\"Yes\",'TSA Input'!J2008=\"Contingent\"),'TSA Input'!G2008,\"\"))","v":""},{"$f":"IF('TSA Input'!J2008=\"\",\"\",IF(OR('TSA Input'!J2008=\"Yes\",'TSA Input'!J2008=\"Contingent\"),'TSA Input'!F2008,\"\"))","v":""},"",{"$f":"IF('TSA Input'!J2008=\"\",\"\",IF(OR('TSA Input'!J2008=\"Yes\",'TSA Input'!J2008=\"Contingent\"),'TSA Input'!D2008,\"\"))","v":""},{"$f":"IF('TSA Input'!J2008=\"\",\"\",IF(OR('TSA Input'!J2008=\"Yes\",'TSA Input'!J2008=\"Contingent\"),'TSA Input'!G2008,\"\"))","v":""},{"$f":"IF('TSA Input'!J2008=\"\",\"\",IF(OR('TSA Input'!J2008=\"Yes\",'TSA Input'!J2008=\"Contingent\"),'TSA Input'!F2008,\"\"))","v":""},"","Required","Required"]
["",null,{"$f":"IF('TSA Input'!J2009=\"\",\"\",IF(OR('TSA Input'!J2009=\"Yes\",'TSA Input'!J2009=\"Contingent\"),'TSA Input'!B2009,\"Ineligible\"))","v":""},{"$f":"IF('TSA Input'!J2009=\"\",\"\",IF(OR('TSA Input'!J2009=\"Yes\",'TSA Input'!J2009=\"Contingent\"),'TSA Input'!I2009,\"\"))","v":""},{"$f":"IF('TSA Input'!J2009=\"\",\"\",IF(OR('TSA Input'!J2009=\"Yes\",'TSA Input'!J2009=\"Contingent\"),'TSA Input'!C2009,\"\"))","v":""},{"$f":"IF('TSA Input'!J2009=\"\",\"\",IF(OR('TSA Input'!J2009=\"Yes\",'TSA Input'!J2009=\"Contingent\"),'TSA Input'!D2009,\"\"))","v":""},{"$f":"IF('TSA Input'!J2009=\"\",\"\",IF(OR('TSA Input'!J2009=\"Yes\",'TSA Input'!J2009=\"Contingent\"),'TSA Input'!G2009,\"\"))","v":""},{"$f":"IF('TSA Input'!J2009=\"\",\"\",IF(OR('TSA Input'!J2009=\"Yes\",'TSA Input'!J2009=\"Contingent\"),'TSA Input'!F2009,\"\"))","v":""},"",{"$f":"IF('TSA Input'!J2009=\"\",\"\",IF(OR('TSA Input'!J2009=\"Yes\",'TSA Input'!J2009=\"Contingent\"),'TSA Input'!D2009,\"\"))","v":""},{"$f":"IF('TSA Input'!J2009=\"\",\"\",IF(OR('TSA Input'!J2009=\"Yes\",'TSA Input'!J2009=\"Contingent\"),'TSA Input'!G2009,\"\"))","v":""},{"$f":"IF('TSA Input'!J2009=\"\",\"\",IF(OR('TSA Input'!J2009=\"Yes\",'TSA Input'!J2009=\"Contingent\"),'TSA Input'!F2009,\"\"))","v":""},"","Required","Required"]
["",null,{"$f":"IF('TSA Input'!J2010=\"\",\"\",IF(OR('TSA Input'!J2010=\"Yes\",'TSA Input'!J2010=\"Contingent\"),'TSA Input'!B2010,\"Ineligible\"))","v":""},{"$f":"IF('TSA Input'!J2010=\"\",\"\",IF(OR('TSA Input'!J2010=\"Yes\",'TSA Input'!J2010=\"Contingent\"),'TSA Input'!I2010,\"\"))","v":""},{"$f":"IF('TSA Input'!J2010=\"\",\"\",IF(OR('TSA Input'!J2010=\"Yes\",'TSA Input'!J2010=\"Contingent\"),'TSA Input'!C2010,\"\"))","v":""},{"$f":"IF('TSA Input'!J2010=\"\",\"\",IF(OR('TSA Input'!J2010=\"Yes\",'TSA Input'!J2010=\"Contingent\"),'TSA Input'!D2010,\"\"))","v":""},{"$f":"IF('TSA Input'!J2010=\"\",\"\",IF(OR('TSA Input'!J2010=\"Yes\",'TSA Input'!J2010=\"Contingent\"),'TSA Input'!G2010,\"\"))","v":""},{"$f":"IF('TSA Input'!J2010=\"\",\"\",IF(OR('TSA Input'!J2010=\"Yes\",'TSA Input'!J2010=\"Contingent\"),'TSA Input'!F2010,\"\"))","v":""},"",{"$f":"IF('TSA Input'!J2010=\"\",\"\",IF(OR('TSA Input'!J2010=\"Yes\",'TSA Input'!J2010=\"Contingent\"),'TSA Input'!D2010,\"\"))","v":""},{"$f":"IF('TSA Input'!J2010=\"\",\"\",IF(OR('TSA Input'!J2010=\"Yes\",'TSA Input'!J2010=\"Contingent\"),'TSA Input'!G2010,\"\"))","v":""},{"$f":"IF('TSA Input'!J2010=\"\",\"\",IF(OR('TSA Input'!J2010=\"Yes\",'TSA Input'!J2010=\"Contingent\"),'TSA Input'!F2010,\"\"))","v":""},"","Required","Required"]
["",null,{"$f":"IF('TSA Input'!J2011=\"\",\"\",IF(OR('TSA Input'!J2011=\"Yes\",'TSA Input'!J2011=\"Contingent\"),'TSA Input'!B2011,\"Ineligible\"))","v":""},{"$f":"IF('TSA Input'!J2011=\"\",\"\",IF(OR('TSA Input'!J2011=\"Yes\",'TSA Input'!J2011=\"Contingent\"),'TSA Input'!I2011,\"\"))","v":""},{"$f":"IF('TSA Input'!J2011=\"\",\"\",IF(OR('TSA Input'!J2011=\"Yes\",'TSA Input'!J2011=\"Contingent\"),'TSA Input'!C2011,\"\"))","v":""},{"$f":"IF('TSA Input'!J2011=\"\",\"\",IF(OR('TSA Input'!J2011=\"Yes\",'TSA Input'!J2011=\"Contingent\"),'TSA Input'!D2011,\"\"))","v":""},{"$f":"IF('TSA Input'!J2011=\"\",\"\",IF(OR('TSA Input'!J2011=\"Yes\",'TSA Input'!J2011=\"Contingent\"),'TSA Input'!G2011,\"\"))","v":""},{"$f":"IF('TSA Input'!J2011=\"\",\"\",IF(OR('TSA Input'!J2011=\"Yes\",'TSA Input'!J2011=\"Contingent\"),'TSA Input'!F2011,\"\"))","v":""},"",{"$f":"IF('TSA Input'!J2011=\"\",\"\",IF(OR('TSA Input'!J2011=\"Yes\",'TSA Input'!J2011=\"Contingent\"),'TSA Input'!D2011,\"\"))","v":""},{"$f":"IF('TSA Input'!J2011=\"\",\"\",IF(OR('TSA Input'!J2011=\"Yes\",'TSA Input'!J2011=\"Contingent\"),'TSA Input'!G2011,\"\"))","v":""},{"$f":"IF('TSA Input'!J2011=\"\",\"\",IF(OR('TSA Input'!J2011=\"Yes\",'TSA Input'!J2011=\"Contingent\"),'TSA Input'!F2011,\"\"))","v":""},"","Required","Required"]
["",null,{"$f":"IF('TSA Input'!J2012=\"\",\"\",IF(OR('TSA Input'!J2012=\"Yes\",'TSA Input'!J2012=\"Contingent\"),'TSA Input'!B2012,\"Ineligible\"))","v":""},{"$f":"IF('TSA Input'!J2012=\"\",\"\",IF(OR('TSA Input'!J2012=\"Yes\",'TSA Input'!J2012=\"Contingent\"),'TSA Input'!I2012,\"\"))","v":""},{"$f":"IF('TSA Input'!J2012=\"\",\"\",IF(OR('TSA Input'!J2012=\"Yes\",'TSA Input'!J2012=\"Contingent\"),'TSA Input'!C2012,\"\"))","v":""},{"$f":"IF('TSA Input'!J2012=\"\",\"\",IF(OR('TSA Input'!J2012=\"Yes\",'TSA Input'!J2012=\"Contingent\"),'TSA Input'!D2012,\"\"))","v":""},{"$f":"IF('TSA Input'!J2012=\"\",\"\",IF(OR('TSA Input'!J2012=\"Yes\",'TSA Input'!J2012=\"Contingent\"),'TSA Input'!G2012,\"\"))","v":""},{"$f":"IF('TSA Input'!J2012=\"\",\"\",IF(OR('TSA Input'!J2012=\"Yes\",'TSA Input'!J2012=\"Contingent\"),'TSA Input'!F2012,\"\"))","v":""},"",{"$f":"IF('TSA Input'!J2012=\"\",\"\",IF(OR('TSA Input'!J2012=\"Yes\",'TSA Input'!J2012=\"Contingent\"),'TSA Input'!D2012,\"\"))","v":""},{"$f":"IF('TSA Input'!J2012=\"\",\"\",IF(OR('TSA Input'!J2012=\"Yes\",'TSA Input'!J2012=\"Contingent\"),'TSA Input'!G2012,\"\"))","v":""},{"$f":"IF('TSA Input'!J2012=\"\",\"\",IF(OR('TSA Input'!J2012=\"Yes\",'TSA Input'!J2012=\"Contingent\"),'TSA Input'!F2012,\"\"))","v":""},"","Required","Required"]
["",null,{"$f":"IF('TSA Input'!J2013=\"\",\"\",IF(OR('TSA Input'!J2013=\"Yes\",'TSA Input'!J2013=\"Contingent\"),'TSA Input'!B2013,\"Ineligible\"))","v":""},{"$f":"IF('TSA Input'!J2013=\"\",\"\",IF(OR('TSA Input'!J2013=\"Yes\",'TSA Input'!J2013=\"Contingent\"),'TSA Input'!I2013,\"\"))","v":""},{"$f":"IF('TSA Input'!J2013=\"\",\"\",IF(OR('TSA Input'!J2013=\"Yes\",'TSA Input'!J2013=\"Contingent\"),'TSA Input'!C2013,\"\"))","v":""},{"$f":"IF('TSA Input'!J2013=\"\",\"\",IF(OR('TSA Input'!J2013=\"Yes\",'TSA Input'!J2013=\"Contingent\"),'TSA Input'!D2013,\"\"))","v":""},{"$f":"IF('TSA Input'!J2013=\"\",\"\",IF(OR('TSA Input'!J2013=\"Yes\",'TSA Input'!J2013=\"Contingent\"),'TSA Input'!G2013,\"\"))","v":""},{"$f":"IF('TSA Input'!J2013=\"\",\"\",IF(OR('TSA Input'!J2013=\"Yes\",'TSA Input'!J2013=\"Contingent\"),'TSA Input'!F2013,\"\"))","v":""},"",{"$f":"IF('TSA Input'!J2013=\"\",\"\",IF(OR('TSA Input'!J2013=\"Yes\",'TSA Input'!J2013=\"Contingent\"),'TSA Input'!D2013,\"\"))","v":""},{"$f":"IF('TSA Input'!J2013=\"\",\"\",IF(OR('TSA Input'!J2013=\"Yes\",'TSA Input'!J2013=\"Contingent\"),'TSA Input'!G2013,\"\"))","v":""},{"$f":"IF('TSA Input'!J2013=\"\",\"\",IF(OR('TSA Input'!J2013=\"Yes\",'TSA Input'!J2013=\"Contingent\"),'TSA Input'!F2013,\"\"))","v":""},"","Required","Required"]
["",null,{"$f":"IF('TSA Input'!J2014=\"\",\"\",IF(OR('TSA Input'!J2014=\"Yes\",'TSA Input'!J2014=\"Contingent\"),'TSA Input'!B2014,\"Ineligible\"))","v":""},{"$f":"IF('TSA Input'!J2014=\"\",\"\",IF(OR('TSA Input'!J2014=\"Yes\",'TSA Input'!J2014=\"Contingent\"),'TSA Input'!I2014,\"\"))","v":""},{"$f":"IF('TSA Input'!J2014=\"\",\"\",IF(OR('TSA Input'!J2014=\"Yes\",'TSA Input'!J2014=\"Contingent\"),'TSA Input'!C2014,\"\"))","v":""},{"$f":"IF('TSA Input'!J2014=\"\",\"\",IF(OR('TSA Input'!J2014=\"Yes\",'TSA Input'!J2014=\"Contingent\"),'TSA Input'!D2014,\"\"))","v":""},{"$f":"IF('TSA Input'!J2014=\"\",\"\",IF(OR('TSA Input'!J2014=\"Yes\",'TSA Input'!J2014=\"Contingent\"),'TSA Input'!G2014,\"\"))","v":""},{"$f":"IF('TSA Input'!J2014=\"\",\"\",IF(OR('TSA Input'!J2014=\"Yes\",'TSA Input'!J2014=\"Contingent\"),'TSA Input'!F2014,\"\"))","v":""},"",{"$f":"IF('TSA Input'!J2014=\"\",\"\",IF(OR('TSA Input'!J2014=\"Yes\",'TSA Input'!J2014=\"Contingent\"),'TSA Input'!D2014,\"\"))","v":""},{"$f":"IF('TSA Input'!J2014=\"\",\"\",IF(OR('TSA Input'!J2014=\"Yes\",'TSA Input'!J2014=\"Contingent\"),'TSA Input'!G2014,\"\"))","v":""},{"$f":"IF('TSA Input'!J2014=\"\",\"\",IF(OR('TSA Input'!J2014=\"Yes\",'TSA Input'!J2014=\"Contingent\"),'TSA Input'!F2014,\"\"))","v":""},"","Required","Required"]
["",null,{"$f":"IF('TSA Input'!J2015=\"\",\"\",IF(OR('TSA Input'!J2015=\"Yes\",'TSA Input'!J2015=\"Contingent\"),'TSA Input'!B2015,\"Ineligible\"))","v":""},{"$f":"IF('TSA Input'!J2015=\"\",\"\",IF(OR('TSA Input'!J2015=\"Yes\",'TSA Input'!J2015=\"Contingent\"),'TSA Input'!I2015,\"\"))","v":""},{"$f":"IF('TSA Input'!J2015=\"\",\"\",IF(OR('TSA Input'!J2015=\"Yes\",'TSA Input'!J2015=\"Contingent\"),'TSA Input'!C2015,\"\"))","v":""},{"$f":"IF('TSA Input'!J2015=\"\",\"\",IF(OR('TSA Input'!J2015=\"Yes\",'TSA Input'!J2015=\"Contingent\"),'TSA Input'!D2015,\"\"))","v":""},{"$f":"IF('TSA Input'!J2015=\"\",\"\",IF(OR('TSA Input'!J2015=\"Yes\",'TSA Input'!J2015=\"Contingent\"),'TSA Input'!G2015,\"\"))","v":""},{"$f":"IF('TSA Input'!J2015=\"\",\"\",IF(OR('TSA Input'!J2015=\"Yes\",'TSA Input'!J2015=\"Contingent\"),'TSA Input'!F2015,\"\"))","v":""},"",{"$f":"IF('TSA Input'!J2015=\"\",\"\",IF(OR('TSA Input'!J2015=\"Yes\",'TSA Input'!J2015=\"Contingent\"),'TSA Input'!D2015,\"\"))","v":""},{"$f":"IF('TSA Input'!J2015=\"\",\"\",IF(OR('TSA Input'!J2015=\"Yes\",'TSA Input'!J2015=\"Contingent\"),'TSA Input'!G2015,\"\"))","v":""},{"$f":"IF('TSA Input'!J2015=\"\",\"\",IF(OR('TSA Input'!J2015=\"Yes\",'TSA Input'!J2015=\"Contingent\"),'TSA Input'!F2015,\"\"))","v":""},"","Required","Required"]
["",null,{"$f":"IF('TSA Input'!J2016=\"\",\"\",IF(OR('TSA Input'!J2016=\"Yes\",'TSA Input'!J2016=\"Contingent\"),'TSA Input'!B2016,\"Ineligible\"))","v":""},{"$f":"IF('TSA Input'!J2016=\"\",\"\",IF(OR('TSA Input'!J2016=\"Yes\",'TSA Input'!J2016=\"Contingent\"),'TSA Input'!I2016,\"\"))","v":""},{"$f":"IF('TSA Input'!J2016=\"\",\"\",IF(OR('TSA Input'!J2016=\"Yes\",'TSA Input'!J2016=\"Contingent\"),'TSA Input'!C2016,\"\"))","v":""},{"$f":"IF('TSA Input'!J2016=\"\",\"\",IF(OR('TSA Input'!J2016=\"Yes\",'TSA Input'!J2016=\"Contingent\"),'TSA Input'!D2016,\"\"))","v":""},{"$f":"IF('TSA Input'!J2016=\"\",\"\",IF(OR('TSA Input'!J2016=\"Yes\",'TSA Input'!J2016=\"Contingent\"),'TSA Input'!G2016,\"\"))","v":""},{"$f":"IF('TSA Input'!J2016=\"\",\"\",IF(OR('TSA Input'!J2016=\"Yes\",'TSA Input'!J2016=\"Contingent\"),'TSA Input'!F2016,\"\"))","v":""},"",{"$f":"IF('TSA Input'!J2016=\"\",\"\",IF(OR('TSA Input'!J2016=\"Yes\",'TSA Input'!J2016=\"Contingent\"),'TSA Input'!D2016,\"\"))","v":""},{"$f":"IF('TSA Input'!J2016=\"\",\"\",IF(OR('TSA Input'!J2016=\"Yes\",'TSA Input'!J2016=\"Contingent\"),'TSA Input'!G2016,\"\"))","v":""},{"$f":"IF('TSA Input'!J2016=\"\",\"\",IF(OR('TSA Input'!J2016=\"Yes\",'TSA Input'!J2016=\"Contingent\"),'TSA Input'!F2016,\"\"))","v":""},"","Required","Required"]
["",null,{"$f":"IF('TSA Input'!J2017=\"\",\"\",IF(OR('TSA Input'!J2017=\"Yes\",'TSA Input'!J2017=\"Contingent\"),'TSA Input'!B2017,\"Ineligible\"))","v":""},{"$f":"IF('TSA Input'!J2017=\"\",\"\",IF(OR('TSA Input'!J2017=\"Yes\",'TSA Input'!J2017=\"Contingent\"),'TSA Input'!I2017,\"\"))","v":""},{"$f":"IF('TSA Input'!J2017=\"\",\"\",IF(OR('TSA Input'!J2017=\"Yes\",'TSA Input'!J2017=\"Contingent\"),'TSA Input'!C2017,\"\"))","v":""},{"$f":"IF('TSA Input'!J2017=\"\",\"\",IF(OR('TSA Input'!J2017=\"Yes\",'TSA Input'!J2017=\"Contingent\"),'TSA Input'!D2017,\"\"))","v":""},{"$f":"IF('TSA Input'!J2017=\"\",\"\",IF(OR('TSA Input'!J2017=\"Yes\",'TSA Input'!J2017=\"Contingent\"),'TSA Input'!G2017,\"\"))","v":""},{"$f":"IF('TSA Input'!J2017=\"\",\"\",IF(OR('TSA Input'!J2017=\"Yes\",'TSA Input'!J2017=\"Contingent\"),'TSA Input'!F2017,\"\"))","v":""},"",{"$f":"IF('TSA Input'!J2017=\"\",\"\",IF(OR('TSA Input'!J2017=\"Yes\",'TSA Input'!J2017=\"Contingent\"),'TSA Input'!D2017,\"\"))","v":""},{"$f":"IF('TSA Input'!J2017=\"\",\"\",IF(OR('TSA Input'!J2017=\"Yes\",'TSA Input'!J2017=\"Contingent\"),'TSA Input'!G2017,\"\"))","v":""},{"$f":"IF('TSA Input'!J2017=\"\",\"\",IF(OR('TSA Input'!J2017=\"Yes\",'TSA Input'!J2017=\"Contingent\"),'TSA Input'!F2017,\"\"))","v":""},"","Required","Required"]
["",null,{"$f":"IF('TSA Input'!J2018=\"\",\"\",IF(OR('TSA Input'!J2018=\"Yes\",'TSA Input'!J2018=\"Contingent\"),'TSA Input'!B2018,\"Ineligible\"))","v":""},{"$f":"IF('TSA Input'!J2018=\"\",\"\",IF(OR('TSA Input'!J2018=\"Yes\",'TSA Input'!J2018=\"Contingent\"),'TSA Input'!I2018,\"\"))","v":""},{"$f":"IF('TSA Input'!J2018=\"\",\"\",IF(OR('TSA Input'!J2018=\"Yes\",'TSA Input'!J2018=\"Contingent\"),'TSA Input'!C2018,\"\"))","v":""},{"$f":"IF('TSA Input'!J2018=\"\",\"\",IF(OR('TSA Input'!J2018=\"Yes\",'TSA Input'!J2018=\"Contingent\"),'TSA Input'!D2018,\"\"))","v":""},{"$f":"IF('TSA Input'!J2018=\"\",\"\",IF(OR('TSA Input'!J2018=\"Yes\",'TSA Input'!J2018=\"Contingent\"),'TSA Input'!G2018,\"\"))","v":""},{"$f":"IF('TSA Input'!J2018=\"\",\"\",IF(OR('TSA Input'!J2018=\"Yes\",'TSA Input'!J2018=\"Contingent\"),'TSA Input'!F2018,\"\"))","v":""},"",{"$f":"IF('TSA Input'!J2018=\"\",\"\",IF(OR('TSA Input'!J2018=\"Yes\",'TSA Input'!J2018=\"Contingent\"),'TSA Input'!D2018,\"\"))","v":""},{"$f":"IF('TSA Input'!J2018=\"\",\"\",IF(OR('TSA Input'!J2018=\"Yes\",'TSA Input'!J2018=\"Contingent\"),'TSA Input'!G2018,\"\"))","v":""},{"$f":"IF('TSA Input'!J2018=\"\",\"\",IF(OR('TSA Input'!J2018=\"Yes\",'TSA Input'!J2018=\"Contingent\"),'TSA Input'!F2018,\"\"))","v":""},"","Required","Required"]
["",null,{"$f":"IF('TSA Input'!J2019=\"\",\"\",IF(OR('TSA Input'!J2019=\"Yes\",'TSA Input'!J2019=\"Contingent\"),'TSA Input'!B2019,\"Ineligible\"))","v":""},{"$f":"IF('TSA Input'!J2019=\"\",\"\",IF(OR('TSA Input'!J2019=\"Yes\",'TSA Input'!J2019=\"Contingent\"),'TSA Input'!I2019,\"\"))","v":""},{"$f":"IF('TSA Input'!J2019=\"\",\"\",IF(OR('TSA Input'!J2019=\"Yes\",'TSA Input'!J2019=\"Contingent\"),'TSA Input'!C2019,\"\"))","v":""},{"$f":"IF('TSA Input'!J2019=\"\",\"\",IF(OR('TSA Input'!J2019=\"Yes\",'TSA Input'!J2019=\"Contingent\"),'TSA Input'!D2019,\"\"))","v":""},{"$f":"IF('TSA Input'!J2019=\"\",\"\",IF(OR('TSA Input'!J2019=\"Yes\",'TSA Input'!J2019=\"Contingent\"),'TSA Input'!G2019,\"\"))","v":""},{"$f":"IF('TSA Input'!J2019=\"\",\"\",IF(OR('TSA Input'!J2019=\"Yes\",'TSA Input'!J2019=\"Contingent\"),'TSA Input'!F2019,\"\"))","v":""},"",{"$f":"IF('TSA Input'!J2019=\"\",\"\",IF(OR('TSA Input'!J2019=\"Yes\",'TSA Input'!J2019=\"Contingent\"),'TSA Input'!D2019,\"\"))","v":""},{"$f":"IF('TSA Input'!J2019=\"\",\"\",IF(OR('TSA Input'!J2019=\"Yes\",'TSA Input'!J2019=\"Contingent\"),'TSA Input'!G2019,\"\"))","v":""},{"$f":"IF('TSA Input'!J2019=\"\",\"\",IF(OR('TSA Input'!J2019=\"Yes\",'TSA Input'!J2019=\"Contingent\"),'TSA Input'!F2019,\"\"))","v":""},"","Required","Required"]
["",null,{"$f":"IF('TSA Input'!J2020=\"\",\"\",IF(OR('TSA Input'!J2020=\"Yes\",'TSA Input'!J2020=\"Contingent\"),'TSA Input'!B2020,\"Ineligible\"))","v":""},{"$f":"IF('TSA Input'!J2020=\"\",\"\",IF(OR('TSA Input'!J2020=\"Yes\",'TSA Input'!J2020=\"Contingent\"),'TSA Input'!I2020,\"\"))","v":""},{"$f":"IF('TSA Input'!J2020=\"\",\"\",IF(OR('TSA Input'!J2020=\"Yes\",'TSA Input'!J2020=\"Contingent\"),'TSA Input'!C2020,\"\"))","v":""},{"$f":"IF('TSA Input'!J2020=\"\",\"\",IF(OR('TSA Input'!J2020=\"Yes\",'TSA Input'!J2020=\"Contingent\"),'TSA Input'!D2020,\"\"))","v":""},{"$f":"IF('TSA Input'!J2020=\"\",\"\",IF(OR('TSA Input'!J2020=\"Yes\",'TSA Input'!J2020=\"Contingent\"),'TSA Input'!G2020,\"\"))","v":""},{"$f":"IF('TSA Input'!J2020=\"\",\"\",IF(OR('TSA Input'!J2020=\"Yes\",'TSA Input'!J2020=\"Contingent\"),'TSA Input'!F2020,\"\"))","v":""},"",{"$f":"IF('TSA Input'!J2020=\"\",\"\",IF(OR('TSA Input'!J2020=\"Yes\",'TSA Input'!J2020=\"Contingent\"),'TSA Input'!D2020,\"\"))","v":""},{"$f":"IF('TSA Input'!J2020=\"\",\"\",IF(OR('TSA Input'!J2020=\"Yes\",'TSA Input'!J2020=\"Contingent\"),'TSA Input'!G2020,\"\"))","v":""},{"$f":"IF('TSA Input'!J2020=\"\",\"\",IF(OR('TSA Input'!J2020=\"Yes\",'TSA Input'!J2020=\"Contingent\"),'TSA Input'!F2020,\"\"))","v":""},"","Required","Required"]
["",null,{"$f":"IF('TSA Input'!J2021=\"\",\"\",IF(OR('TSA Input'!J2021=\"Yes\",'TSA Input'!J2021=\"Contingent\"),'TSA Input'!B2021,\"Ineligible\"))","v":""},{"$f":"IF('TSA Input'!J2021=\"\",\"\",IF(OR('TSA Input'!J2021=\"Yes\",'TSA Input'!J2021=\"Contingent\"),'TSA Input'!I2021,\"\"))","v":""},{"$f":"IF('TSA Input'!J2021=\"\",\"\",IF(OR('TSA Input'!J2021=\"Yes\",'TSA Input'!J2021=\"Contingent\"),'TSA Input'!C2021,\"\"))","v":""},{"$f":"IF('TSA Input'!J2021=\"\",\"\",IF(OR('TSA Input'!J2021=\"Yes\",'TSA Input'!J2021=\"Contingent\"),'TSA Input'!D2021,\"\"))","v":""},{"$f":"IF('TSA Input'!J2021=\"\",\"\",IF(OR('TSA Input'!J2021=\"Yes\",'TSA Input'!J2021=\"Contingent\"),'TSA Input'!G2021,\"\"))","v":""},{"$f":"IF('TSA Input'!J2021=\"\",\"\",IF(OR('TSA Input'!J2021=\"Yes\",'TSA Input'!J2021=\"Contingent\"),'TSA Input'!F2021,\"\"))","v":""},"",{"$f":"IF('TSA Input'!J2021=\"\",\"\",IF(OR('TSA Input'!J2021=\"Yes\",'TSA Input'!J2021=\"Contingent\"),'TSA Input'!D2021,\"\"))","v":""},{"$f":"IF('TSA Input'!J2021=\"\",\"\",IF(OR('TSA Input'!J2021=\"Yes\",'TSA Input'!J2021=\"Contingent\"),'TSA Input'!G2021,\"\"))","v":""},{"$f":"IF('TSA Input'!J2021=\"\",\"\",IF(OR('TSA Input'!J2021=\"Yes\",'TSA Input'!J2021=\"Contingent\"),'TSA Input'!F2021,\"\"))","v":""},"","Required","Required"]
["",null,{"$f":"IF('TSA Input'!J2022=\"\",\"\",IF(OR('TSA Input'!J2022=\"Yes\",'TSA Input'!J2022=\"Contingent\"),'TSA Input'!B2022,\"Ineligible\"))","v":""},{"$f":"IF('TSA Input'!J2022=\"\",\"\",IF(OR('TSA Input'!J2022=\"Yes\",'TSA Input'!J2022=\"Contingent\"),'TSA Input'!I2022,\"\"))","v":""},{"$f":"IF('TSA Input'!J2022=\"\",\"\",IF(OR('TSA Input'!J2022=\"Yes\",'TSA Input'!J2022=\"Contingent\"),'TSA Input'!C2022,\"\"))","v":""},{"$f":"IF('TSA Input'!J2022=\"\",\"\",IF(OR('TSA Input'!J2022=\"Yes\",'TSA Input'!J2022=\"Contingent\"),'TSA Input'!D2022,\"\"))","v":""},{"$f":"IF('TSA Input'!J2022=\"\",\"\",IF(OR('TSA Input'!J2022=\"Yes\",'TSA Input'!J2022=\"Contingent\"),'TSA Input'!G2022,\"\"))","v":""},{"$f":"IF('TSA Input'!J2022=\"\",\"\",IF(OR('TSA Input'!J2022=\"Yes\",'TSA Input'!J2022=\"Contingent\"),'TSA Input'!F2022,\"\"))","v":""},"",{"$f":"IF('TSA Input'!J2022=\"\",\"\",IF(OR('TSA Input'!J2022=\"Yes\",'TSA Input'!J2022=\"Contingent\"),'TSA Input'!D2022,\"\"))","v":""},{"$f":"IF('TSA Input'!J2022=\"\",\"\",IF(OR('TSA Input'!J2022=\"Yes\",'TSA Input'!J2022=\"Contingent\"),'TSA Input'!G2022,\"\"))","v":""},{"$f":"IF('TSA Input'!J2022=\"\",\"\",IF(OR('TSA Input'!J2022=\"Yes\",'TSA Input'!J2022=\"Contingent\"),'TSA Input'!F2022,\"\"))","v":""},"","Required","Required"]
["",null,{"$f":"IF('TSA Input'!J2023=\"\",\"\",IF(OR('TSA Input'!J2023=\"Yes\",'TSA Input'!J2023=\"Contingent\"),'TSA Input'!B2023,\"Ineligible\"))","v":""},{"$f":"IF('TSA Input'!J2023=\"\",\"\",IF(OR('TSA Input'!J2023=\"Yes\",'TSA Input'!J2023=\"Contingent\"),'TSA Input'!I2023,\"\"))","v":""},{"$f":"IF('TSA Input'!J2023=\"\",\"\",IF(OR('TSA Input'!J2023=\"Yes\",'TSA Input'!J2023=\"Contingent\"),'TSA Input'!C2023,\"\"))","v":""},{"$f":"IF('TSA Input'!J2023=\"\",\"\",IF(OR('TSA Input'!J2023=\"Yes\",'TSA Input'!J2023=\"Contingent\"),'TSA Input'!D2023,\"\"))","v":""},{"$f":"IF('TSA Input'!J2023=\"\",\"\",IF(OR('TSA Input'!J2023=\"Yes\",'TSA Input'!J2023=\"Contingent\"),'TSA Input'!G2023,\"\"))","v":""},{"$f":"IF('TSA Input'!J2023=\"\",\"\",IF(OR('TSA Input'!J2023=\"Yes\",'TSA Input'!J2023=\"Contingent\"),'TSA Input'!F2023,\"\"))","v":""},"",{"$f":"IF('TSA Input'!J2023=\"\",\"\",IF(OR('TSA Input'!J2023=\"Yes\",'TSA Input'!J2023=\"Contingent\"),'TSA Input'!D2023,\"\"))","v":""},{"$f":"IF('TSA Input'!J2023=\"\",\"\",IF(OR('TSA Input'!J2023=\"Yes\",'TSA Input'!J2023=\"Contingent\"),'TSA Input'!G2023,\"\"))","v":""},{"$f":"IF('TSA Input'!J2023=\"\",\"\",IF(OR('TSA Input'!J2023=\"Yes\",'TSA Input'!J2023=\"Contingent\"),'TSA Input'!F2023,\"\"))","v":""},"","Required","Required"]
["",null,{"$f":"IF('TSA Input'!J2024=\"\",\"\",IF(OR('TSA Input'!J2024=\"Yes\",'TSA Input'!J2024=\"Contingent\"),'TSA Input'!B2024,\"Ineligible\"))","v":""},{"$f":"IF('TSA Input'!J2024=\"\",\"\",IF(OR('TSA Input'!J2024=\"Yes\",'TSA Input'!J2024=\"Contingent\"),'TSA Input'!I2024,\"\"))","v":""},{"$f":"IF('TSA Input'!J2024=\"\",\"\",IF(OR('TSA Input'!J2024=\"Yes\",'TSA Input'!J2024=\"Contingent\"),'TSA Input'!C2024,\"\"))","v":""},{"$f":"IF('TSA Input'!J2024=\"\",\"\",IF(OR('TSA Input'!J2024=\"Yes\",'TSA Input'!J2024=\"Contingent\"),'TSA Input'!D2024,\"\"))","v":""},{"$f":"IF('TSA Input'!J2024=\"\",\"\",IF(OR('TSA Input'!J2024=\"Yes\",'TSA Input'!J2024=\"Contingent\"),'TSA Input'!G2024,\"\"))","v":""},{"$f":"IF('TSA Input'!J2024=\"\",\"\",IF(OR('TSA Input'!J2024=\"Yes\",'TSA Input'!J2024=\"Contingent\"),'TSA Input'!F2024,\"\"))","v":""},"",{"$f":"IF('TSA Input'!J2024=\"\",\"\",IF(OR('TSA Input'!J2024=\"Yes\",'TSA Input'!J2024=\"Contingent\"),'TSA Input'!D2024,\"\"))","v":""},{"$f":"IF('TSA Input'!J2024=\"\",\"\",IF(OR('TSA Input'!J2024=\"Yes\",'TSA Input'!J2024=\"Contingent\"),'TSA Input'!G2024,\"\"))","v":""},{"$f":"IF('TSA Input'!J2024=\"\",\"\",IF(OR('TSA Input'!J2024=\"Yes\",'TSA Input'!J2024=\"Contingent\"),'TSA Input'!F2024,\"\"))","v":""},"","Required","Required"]
["",null,{"$f":"IF('TSA Input'!J2025=\"\",\"\",IF(OR('TSA Input'!J2025=\"Yes\",'TSA Input'!J2025=\"Contingent\"),'TSA Input'!B2025,\"Ineligible\"))","v":""},{"$f":"IF('TSA Input'!J2025=\"\",\"\",IF(OR('TSA Input'!J2025=\"Yes\",'TSA Input'!J2025=\"Contingent\"),'TSA Input'!I2025,\"\"))","v":""},{"$f":"IF('TSA Input'!J2025=\"\",\"\",IF(OR('TSA Input'!J2025=\"Yes\",'TSA Input'!J2025=\"Contingent\"),'TSA Input'!C2025,\"\"))","v":""},{"$f":"IF('TSA Input'!J2025=\"\",\"\",IF(OR('TSA Input'!J2025=\"Yes\",'TSA Input'!J2025=\"Contingent\"),'TSA Input'!D2025,\"\"))","v":""},{"$f":"IF('TSA Input'!J2025=\"\",\"\",IF(OR('TSA Input'!J2025=\"Yes\",'TSA Input'!J2025=\"Contingent\"),'TSA Input'!G2025,\"\"))","v":""},{"$f":"IF('TSA Input'!J2025=\"\",\"\",IF(OR('TSA Input'!J2025=\"Yes\",'TSA Input'!J2025=\"Contingent\"),'TSA Input'!F2025,\"\"))","v":""},"",{"$f":"IF('TSA Input'!J2025=\"\",\"\",IF(OR('TSA Input'!J2025=\"Yes\",'TSA Input'!J2025=\"Contingent\"),'TSA Input'!D2025,\"\"))","v":""},{"$f":"IF('TSA Input'!J2025=\"\",\"\",IF(OR('TSA Input'!J2025=\"Yes\",'TSA Input'!J2025=\"Contingent\"),'TSA Input'!G2025,\"\"))","v":""},{"$f":"IF('TSA Input'!J2025=\"\",\"\",IF(OR('TSA Input'!J2025=\"Yes\",'TSA Input'!J2025=\"Contingent\"),'TSA Input'!F2025,\"\"))","v":""},"","Required","Required"]
["",null,{"$f":"IF('TSA Input'!J2026=\"\",\"\",IF(OR('TSA Input'!J2026=\"Yes\",'TSA Input'!J2026=\"Contingent\"),'TSA Input'!B2026,\"Ineligible\"))","v":""},{"$f":"IF('TSA Input'!J2026=\"\",\"\",IF(OR('TSA Input'!J2026=\"Yes\",'TSA Input'!J2026=\"Contingent\"),'TSA Input'!I2026,\"\"))","v":""},{"$f":"IF('TSA Input'!J2026=\"\",\"\",IF(OR('TSA Input'!J2026=\"Yes\",'TSA Input'!J2026=\"Contingent\"),'TSA Input'!C2026,\"\"))","v":""},{"$f":"IF('TSA Input'!J2026=\"\",\"\",IF(OR('TSA Input'!J2026=\"Yes\",'TSA Input'!J2026=\"Contingent\"),'TSA Input'!D2026,\"\"))","v":""},{"$f":"IF('TSA Input'!J2026=\"\",\"\",IF(OR('TSA Input'!J2026=\"Yes\",'TSA Input'!J2026=\"Contingent\"),'TSA Input'!G2026,\"\"))","v":""},{"$f":"IF('TSA Input'!J2026=\"\",\"\",IF(OR('TSA Input'!J2026=\"Yes\",'TSA Input'!J2026=\"Contingent\"),'TSA Input'!F2026,\"\"))","v":""},"",{"$f":"IF('TSA Input'!J2026=\"\",\"\",IF(OR('TSA Input'!J2026=\"Yes\",'TSA Input'!J2026=\"Contingent\"),'TSA Input'!D2026,\"\"))","v":""},{"$f":"IF('TSA Input'!J2026=\"\",\"\",IF(OR('TSA Input'!J2026=\"Yes\",'TSA Input'!J2026=\"Contingent\"),'TSA Input'!G2026,\"\"))","v":""},{"$f":"IF('TSA Input'!J2026=\"\",\"\",IF(OR('TSA Input'!J2026=\"Yes\",'TSA Input'!J2026=\"Contingent\"),'TSA Input'!F2026,\"\"))","v":""},"","Required","Required"]
["",null,{"$f":"IF('TSA Input'!J2027=\"\",\"\",IF(OR('TSA Input'!J2027=\"Yes\",'TSA Input'!J2027=\"Contingent\"),'TSA Input'!B2027,\"Ineligible\"))","v":""},{"$f":"IF('TSA Input'!J2027=\"\",\"\",IF(OR('TSA Input'!J2027=\"Yes\",'TSA Input'!J2027=\"Contingent\"),'TSA Input'!I2027,\"\"))","v":""},{"$f":"IF('TSA Input'!J2027=\"\",\"\",IF(OR('TSA Input'!J2027=\"Yes\",'TSA Input'!J2027=\"Contingent\"),'TSA Input'!C2027,\"\"))","v":""},{"$f":"IF('TSA Input'!J2027=\"\",\"\",IF(OR('TSA Input'!J2027=\"Yes\",'TSA Input'!J2027=\"Contingent\"),'TSA Input'!D2027,\"\"))","v":""},{"$f":"IF('TSA Input'!J2027=\"\",\"\",IF(OR('TSA Input'!J2027=\"Yes\",'TSA Input'!J2027=\"Contingent\"),'TSA Input'!G2027,\"\"))","v":""},{"$f":"IF('TSA Input'!J2027=\"\",\"\",IF(OR('TSA Input'!J2027=\"Yes\",'TSA Input'!J2027=\"Contingent\"),'TSA Input'!F2027,\"\"))","v":""},"",{"$f":"IF('TSA Input'!J2027=\"\",\"\",IF(OR('TSA Input'!J2027=\"Yes\",'TSA Input'!J2027=\"Contingent\"),'TSA Input'!D2027,\"\"))","v":""},{"$f":"IF('TSA Input'!J2027=\"\",\"\",IF(OR('TSA Input'!J2027=\"Yes\",'TSA Input'!J2027=\"Contingent\"),'TSA Input'!G2027,\"\"))","v":""},{"$f":"IF('TSA Input'!J2027=\"\",\"\",IF(OR('TSA Input'!J2027=\"Yes\",'TSA Input'!J2027=\"Contingent\"),'TSA Input'!F2027,\"\"))","v":""},"","Required","Required"]
["",null,{"$f":"IF('TSA Input'!J2028=\"\",\"\",IF(OR('TSA Input'!J2028=\"Yes\",'TSA Input'!J2028=\"Contingent\"),'TSA Input'!B2028,\"Ineligible\"))","v":""},{"$f":"IF('TSA Input'!J2028=\"\",\"\",IF(OR('TSA Input'!J2028=\"Yes\",'TSA Input'!J2028=\"Contingent\"),'TSA Input'!I2028,\"\"))","v":""},{"$f":"IF('TSA Input'!J2028=\"\",\"\",IF(OR('TSA Input'!J2028=\"Yes\",'TSA Input'!J2028=\"Contingent\"),'TSA Input'!C2028,\"\"))","v":""},{"$f":"IF('TSA Input'!J2028=\"\",\"\",IF(OR('TSA Input'!J2028=\"Yes\",'TSA Input'!J2028=\"Contingent\"),'TSA Input'!D2028,\"\"))","v":""},{"$f":"IF('TSA Input'!J2028=\"\",\"\",IF(OR('TSA Input'!J2028=\"Yes\",'TSA Input'!J2028=\"Contingent\"),'TSA Input'!G2028,\"\"))","v":""},{"$f":"IF('TSA Input'!J2028=\"\",\"\",IF(OR('TSA Input'!J2028=\"Yes\",'TSA Input'!J2028=\"Contingent\"),'TSA Input'!F2028,\"\"))","v":""},"",{"$f":"IF('TSA Input'!J2028=\"\",\"\",IF(OR('TSA Input'!J2028=\"Yes\",'TSA Input'!J2028=\"Contingent\"),'TSA Input'!D2028,\"\"))","v":""},{"$f":"IF('TSA Input'!J2028=\"\",\"\",IF(OR('TSA Input'!J2028=\"Yes\",'TSA Input'!J2028=\"Contingent\"),'TSA Input'!G2028,\"\"))","v":""},{"$f":"IF('TSA Input'!J2028=\"\",\"\",IF(OR('TSA Input'!J2028=\"Yes\",'TSA Input'!J2028=\"Contingent\"),'TSA Input'!F2028,\"\"))","v":""},"","Required","Required"]
["",null,{"$f":"IF('TSA Input'!J2029=\"\",\"\",IF(OR('TSA Input'!J2029=\"Yes\",'TSA Input'!J2029=\"Contingent\"),'TSA Input'!B2029,\"Ineligible\"))","v":""},{"$f":"IF('TSA Input'!J2029=\"\",\"\",IF(OR('TSA Input'!J2029=\"Yes\",'TSA Input'!J2029=\"Contingent\"),'TSA Input'!I2029,\"\"))","v":""},{"$f":"IF('TSA Input'!J2029=\"\",\"\",IF(OR('TSA Input'!J2029=\"Yes\",'TSA Input'!J2029=\"Contingent\"),'TSA Input'!C2029,\"\"))","v":""},{"$f":"IF('TSA Input'!J2029=\"\",\"\",IF(OR('TSA Input'!J2029=\"Yes\",'TSA Input'!J2029=\"Contingent\"),'TSA Input'!D2029,\"\"))","v":""},{"$f":"IF('TSA Input'!J2029=\"\",\"\",IF(OR('TSA Input'!J2029=\"Yes\",'TSA Input'!J2029=\"Contingent\"),'TSA Input'!G2029,\"\"))","v":""},{"$f":"IF('TSA Input'!J2029=\"\",\"\",IF(OR('TSA Input'!J2029=\"Yes\",'TSA Input'!J2029=\"Contingent\"),'TSA Input'!F2029,\"\"))","v":""},"",{"$f":"IF('TSA Input'!J2029=\"\",\"\",IF(OR('TSA Input'!J2029=\"Yes\",'TSA Input'!J2029=\"Contingent\"),'TSA Input'!D2029,\"\"))","v":""},{"$f":"IF('TSA Input'!J2029=\"\",\"\",IF(OR('TSA Input'!J2029=\"Yes\",'TSA Input'!J2029=\"Contingent\"),'TSA Input'!G2029,\"\"))","v":""},{"$f":"IF('TSA Input'!J2029=\"\",\"\",IF(OR('TSA Input'!J2029=\"Yes\",'TSA Input'!J2029=\"Contingent\"),'TSA Input'!F2029,\"\"))","v":""},"","Required","Required"]
["",null,{"$f":"IF('TSA Input'!J2030=\"\",\"\",IF(OR('TSA Input'!J2030=\"Yes\",'TSA Input'!J2030=\"Contingent\"),'TSA Input'!B2030,\"Ineligible\"))","v":""},{"$f":"IF('TSA Input'!J2030=\"\",\"\",IF(OR('TSA Input'!J2030=\"Yes\",'TSA Input'!J2030=\"Contingent\"),'TSA Input'!I2030,\"\"))","v":""},{"$f":"IF('TSA Input'!J2030=\"\",\"\",IF(OR('TSA Input'!J2030=\"Yes\",'TSA Input'!J2030=\"Contingent\"),'TSA Input'!C2030,\"\"))","v":""},{"$f":"IF('TSA Input'!J2030=\"\",\"\",IF(OR('TSA Input'!J2030=\"Yes\",'TSA Input'!J2030=\"Contingent\"),'TSA Input'!D2030,\"\"))","v":""},{"$f":"IF('TSA Input'!J2030=\"\",\"\",IF(OR('TSA Input'!J2030=\"Yes\",'TSA Input'!J2030=\"Contingent\"),'TSA Input'!G2030,\"\"))","v":""},{"$f":"IF('TSA Input'!J2030=\"\",\"\",IF(OR('TSA Input'!J2030=\"Yes\",'TSA Input'!J2030=\"Contingent\"),'TSA Input'!F2030,\"\"))","v":""},"",{"$f":"IF('TSA Input'!J2030=\"\",\"\",IF(OR('TSA Input'!J2030=\"Yes\",'TSA Input'!J2030=\"Contingent\"),'TSA Input'!D2030,\"\"))","v":""},{"$f":"IF('TSA Input'!J2030=\"\",\"\",IF(OR('TSA Input'!J2030=\"Yes\",'TSA Input'!J2030=\"Contingent\"),'TSA Input'!G2030,\"\"))","v":""},{"$f":"IF('TSA Input'!J2030=\"\",\"\",IF(OR('TSA Input'!J2030=\"Yes\",'TSA Input'!J2030=\"Contingent\"),'TSA Input'!F2030,\"\"))","v":""},"","Required","Required"]
["",null,{"$f":"IF('TSA Input'!J2031=\"\",\"\",IF(OR('TSA Input'!J2031=\"Yes\",'TSA Input'!J2031=\"Contingent\"),'TSA Input'!B2031,\"Ineligible\"))","v":""},{"$f":"IF('TSA Input'!J2031=\"\",\"\",IF(OR('TSA Input'!J2031=\"Yes\",'TSA Input'!J2031=\"Contingent\"),'TSA Input'!I2031,\"\"))","v":""},{"$f":"IF('TSA Input'!J2031=\"\",\"\",IF(OR('TSA Input'!J2031=\"Yes\",'TSA Input'!J2031=\"Contingent\"),'TSA Input'!C2031,\"\"))","v":""},{"$f":"IF('TSA Input'!J2031=\"\",\"\",IF(OR('TSA Input'!J2031=\"Yes\",'TSA Input'!J2031=\"Contingent\"),'TSA Input'!D2031,\"\"))","v":""},{"$f":"IF('TSA Input'!J2031=\"\",\"\",IF(OR('TSA Input'!J2031=\"Yes\",'TSA Input'!J2031=\"Contingent\"),'TSA Input'!G2031,\"\"))","v":""},{"$f":"IF('TSA Input'!J2031=\"\",\"\",IF(OR('TSA Input'!J2031=\"Yes\",'TSA Input'!J2031=\"Contingent\"),'TSA Input'!F2031,\"\"))","v":""},"",{"$f":"IF('TSA Input'!J2031=\"\",\"\",IF(OR('TSA Input'!J2031=\"Yes\",'TSA Input'!J2031=\"Contingent\"),'TSA Input'!D2031,\"\"))","v":""},{"$f":"IF('TSA Input'!J2031=\"\",\"\",IF(OR('TSA Input'!J2031=\"Yes\",'TSA Input'!J2031=\"Contingent\"),'TSA Input'!G2031,\"\"))","v":""},{"$f":"IF('TSA Input'!J2031=\"\",\"\",IF(OR('TSA Input'!J2031=\"Yes\",'TSA Input'!J2031=\"Contingent\"),'TSA Input'!F2031,\"\"))","v":""},"","Required","Required"]
["",null,{"$f":"IF('TSA Input'!J2032=\"\",\"\",IF(OR('TSA Input'!J2032=\"Yes\",'TSA Input'!J2032=\"Contingent\"),'TSA Input'!B2032,\"Ineligible\"))","v":""},{"$f":"IF('TSA Input'!J2032=\"\",\"\",IF(OR('TSA Input'!J2032=\"Yes\",'TSA Input'!J2032=\"Contingent\"),'TSA Input'!I2032,\"\"))","v":""},{"$f":"IF('TSA Input'!J2032=\"\",\"\",IF(OR('TSA Input'!J2032=\"Yes\",'TSA Input'!J2032=\"Contingent\"),'TSA Input'!C2032,\"\"))","v":""},{"$f":"IF('TSA Input'!J2032=\"\",\"\",IF(OR('TSA Input'!J2032=\"Yes\",'TSA Input'!J2032=\"Contingent\"),'TSA Input'!D2032,\"\"))","v":""},{"$f":"IF('TSA Input'!J2032=\"\",\"\",IF(OR('TSA Input'!J2032=\"Yes\",'TSA Input'!J2032=\"Contingent\"),'TSA Input'!G2032,\"\"))","v":""},{"$f":"IF('TSA Input'!J2032=\"\",\"\",IF(OR('TSA Input'!J2032=\"Yes\",'TSA Input'!J2032=\"Contingent\"),'TSA Input'!F2032,\"\"))","v":""},"",{"$f":"IF('TSA Input'!J2032=\"\",\"\",IF(OR('TSA Input'!J2032=\"Yes\",'TSA Input'!J2032=\"Contingent\"),'TSA Input'!D2032,\"\"))","v":""},{"$f":"IF('TSA Input'!J2032=\"\",\"\",IF(OR('TSA Input'!J2032=\"Yes\",'TSA Input'!J2032=\"Contingent\"),'TSA Input'!G2032,\"\"))","v":""},{"$f":"IF('TSA Input'!J2032=\"\",\"\",IF(OR('TSA Input'!J2032=\"Yes\",'TSA Input'!J2032=\"Contingent\"),'TSA Input'!F2032,\"\"))","v":""},"","Required","Required"]
["",null,{"$f":"IF('TSA Input'!J2033=\"\",\"\",IF(OR('TSA Input'!J2033=\"Yes\",'TSA Input'!J2033=\"Contingent\"),'TSA Input'!B2033,\"Ineligible\"))","v":""},{"$f":"IF('TSA Input'!J2033=\"\",\"\",IF(OR('TSA Input'!J2033=\"Yes\",'TSA Input'!J2033=\"Contingent\"),'TSA Input'!I2033,\"\"))","v":""},{"$f":"IF('TSA Input'!J2033=\"\",\"\",IF(OR('TSA Input'!J2033=\"Yes\",'TSA Input'!J2033=\"Contingent\"),'TSA Input'!C2033,\"\"))","v":""},{"$f":"IF('TSA Input'!J2033=\"\",\"\",IF(OR('TSA Input'!J2033=\"Yes\",'TSA Input'!J2033=\"Contingent\"),'TSA Input'!D2033,\"\"))","v":""},{"$f":"IF('TSA Input'!J2033=\"\",\"\",IF(OR('TSA Input'!J2033=\"Yes\",'TSA Input'!J2033=\"Contingent\"),'TSA Input'!G2033,\"\"))","v":""},{"$f":"IF('TSA Input'!J2033=\"\",\"\",IF(OR('TSA Input'!J2033=\"Yes\",'TSA Input'!J2033=\"Contingent\"),'TSA Input'!F2033,\"\"))","v":""},"",{"$f":"IF('TSA Input'!J2033=\"\",\"\",IF(OR('TSA Input'!J2033=\"Yes\",'TSA Input'!J2033=\"Contingent\"),'TSA Input'!D2033,\"\"))","v":""},{"$f":"IF('TSA Input'!J2033=\"\",\"\",IF(OR('TSA Input'!J2033=\"Yes\",'TSA Input'!J2033=\"Contingent\"),'TSA Input'!G2033,\"\"))","v":""},{"$f":"IF('TSA Input'!J2033=\"\",\"\",IF(OR('TSA Input'!J2033=\"Yes\",'TSA Input'!J2033=\"Contingent\"),'TSA Input'!F2033,\"\"))","v":""},"","Required","Required"]
["",null,{"$f":"IF('TSA Input'!J2034=\"\",\"\",IF(OR('TSA Input'!J2034=\"Yes\",'TSA Input'!J2034=\"Contingent\"),'TSA Input'!B2034,\"Ineligible\"))","v":""},{"$f":"IF('TSA Input'!J2034=\"\",\"\",IF(OR('TSA Input'!J2034=\"Yes\",'TSA Input'!J2034=\"Contingent\"),'TSA Input'!I2034,\"\"))","v":""},{"$f":"IF('TSA Input'!J2034=\"\",\"\",IF(OR('TSA Input'!J2034=\"Yes\",'TSA Input'!J2034=\"Contingent\"),'TSA Input'!C2034,\"\"))","v":""},{"$f":"IF('TSA Input'!J2034=\"\",\"\",IF(OR('TSA Input'!J2034=\"Yes\",'TSA Input'!J2034=\"Contingent\"),'TSA Input'!D2034,\"\"))","v":""},{"$f":"IF('TSA Input'!J2034=\"\",\"\",IF(OR('TSA Input'!J2034=\"Yes\",'TSA Input'!J2034=\"Contingent\"),'TSA Input'!G2034,\"\"))","v":""},{"$f":"IF('TSA Input'!J2034=\"\",\"\",IF(OR('TSA Input'!J2034=\"Yes\",'TSA Input'!J2034=\"Contingent\"),'TSA Input'!F2034,\"\"))","v":""},"",{"$f":"IF('TSA Input'!J2034=\"\",\"\",IF(OR('TSA Input'!J2034=\"Yes\",'TSA Input'!J2034=\"Contingent\"),'TSA Input'!D2034,\"\"))","v":""},{"$f":"IF('TSA Input'!J2034=\"\",\"\",IF(OR('TSA Input'!J2034=\"Yes\",'TSA Input'!J2034=\"Contingent\"),'TSA Input'!G2034,\"\"))","v":""},{"$f":"IF('TSA Input'!J2034=\"\",\"\",IF(OR('TSA Input'!J2034=\"Yes\",'TSA Input'!J2034=\"Contingent\"),'TSA Input'!F2034,\"\"))","v":""},"","Required","Required"]
["",null,{"$f":"IF('TSA Input'!J2035=\"\",\"\",IF(OR('TSA Input'!J2035=\"Yes\",'TSA Input'!J2035=\"Contingent\"),'TSA Input'!B2035,\"Ineligible\"))","v":""},{"$f":"IF('TSA Input'!J2035=\"\",\"\",IF(OR('TSA Input'!J2035=\"Yes\",'TSA Input'!J2035=\"Contingent\"),'TSA Input'!I2035,\"\"))","v":""},{"$f":"IF('TSA Input'!J2035=\"\",\"\",IF(OR('TSA Input'!J2035=\"Yes\",'TSA Input'!J2035=\"Contingent\"),'TSA Input'!C2035,\"\"))","v":""},{"$f":"IF('TSA Input'!J2035=\"\",\"\",IF(OR('TSA Input'!J2035=\"Yes\",'TSA Input'!J2035=\"Contingent\"),'TSA Input'!D2035,\"\"))","v":""},{"$f":"IF('TSA Input'!J2035=\"\",\"\",IF(OR('TSA Input'!J2035=\"Yes\",'TSA Input'!J2035=\"Contingent\"),'TSA Input'!G2035,\"\"))","v":""},{"$f":"IF('TSA Input'!J2035=\"\",\"\",IF(OR('TSA Input'!J2035=\"Yes\",'TSA Input'!J2035=\"Contingent\"),'TSA Input'!F2035,\"\"))","v":""},"",{"$f":"IF('TSA Input'!J2035=\"\",\"\",IF(OR('TSA Input'!J2035=\"Yes\",'TSA Input'!J2035=\"Contingent\"),'TSA Input'!D2035,\"\"))","v":""},{"$f":"IF('TSA Input'!J2035=\"\",\"\",IF(OR('TSA Input'!J2035=\"Yes\",'TSA Input'!J2035=\"Contingent\"),'TSA Input'!G2035,\"\"))","v":""},{"$f":"IF('TSA Input'!J2035=\"\",\"\",IF(OR('TSA Input'!J2035=\"Yes\",'TSA Input'!J2035=\"Contingent\"),'TSA Input'!F2035,\"\"))","v":""},"","Required","Required"]
["",null,{"$f":"IF('TSA Input'!J2036=\"\",\"\",IF(OR('TSA Input'!J2036=\"Yes\",'TSA Input'!J2036=\"Contingent\"),'TSA Input'!B2036,\"Ineligible\"))","v":""},{"$f":"IF('TSA Input'!J2036=\"\",\"\",IF(OR('TSA Input'!J2036=\"Yes\",'TSA Input'!J2036=\"Contingent\"),'TSA Input'!I2036,\"\"))","v":""},{"$f":"IF('TSA Input'!J2036=\"\",\"\",IF(OR('TSA Input'!J2036=\"Yes\",'TSA Input'!J2036=\"Contingent\"),'TSA Input'!C2036,\"\"))","v":""},{"$f":"IF('TSA Input'!J2036=\"\",\"\",IF(OR('TSA Input'!J2036=\"Yes\",'TSA Input'!J2036=\"Contingent\"),'TSA Input'!D2036,\"\"))","v":""},{"$f":"IF('TSA Input'!J2036=\"\",\"\",IF(OR('TSA Input'!J2036=\"Yes\",'TSA Input'!J2036=\"Contingent\"),'TSA Input'!G2036,\"\"))","v":""},{"$f":"IF('TSA Input'!J2036=\"\",\"\",IF(OR('TSA Input'!J2036=\"Yes\",'TSA Input'!J2036=\"Contingent\"),'TSA Input'!F2036,\"\"))","v":""},"",{"$f":"IF('TSA Input'!J2036=\"\",\"\",IF(OR('TSA Input'!J2036=\"Yes\",'TSA Input'!J2036=\"Contingent\"),'TSA Input'!D2036,\"\"))","v":""},{"$f":"IF('TSA Input'!J2036=\"\",\"\",IF(OR('TSA Input'!J2036=\"Yes\",'TSA Input'!J2036=\"Contingent\"),'TSA Input'!G2036,\"\"))","v":""},{"$f":"IF('TSA Input'!J2036=\"\",\"\",IF(OR('TSA Input'!J2036=\"Yes\",'TSA Input'!J2036=\"Contingent\"),'TSA Input'!F2036,\"\"))","v":""},"","Required","Required"]
["",null,{"$f":"IF('TSA Input'!J2037=\"\",\"\",IF(OR('TSA Input'!J2037=\"Yes\",'TSA Input'!J2037=\"Contingent\"),'TSA Input'!B2037,\"Ineligible\"))","v":""},{"$f":"IF('TSA Input'!J2037=\"\",\"\",IF(OR('TSA Input'!J2037=\"Yes\",'TSA Input'!J2037=\"Contingent\"),'TSA Input'!I2037,\"\"))","v":""},{"$f":"IF('TSA Input'!J2037=\"\",\"\",IF(OR('TSA Input'!J2037=\"Yes\",'TSA Input'!J2037=\"Contingent\"),'TSA Input'!C2037,\"\"))","v":""},{"$f":"IF('TSA Input'!J2037=\"\",\"\",IF(OR('TSA Input'!J2037=\"Yes\",'TSA Input'!J2037=\"Contingent\"),'TSA Input'!D2037,\"\"))","v":""},{"$f":"IF('TSA Input'!J2037=\"\",\"\",IF(OR('TSA Input'!J2037=\"Yes\",'TSA Input'!J2037=\"Contingent\"),'TSA Input'!G2037,\"\"))","v":""},{"$f":"IF('TSA Input'!J2037=\"\",\"\",IF(OR('TSA Input'!J2037=\"Yes\",'TSA Input'!J2037=\"Contingent\"),'TSA Input'!F2037,\"\"))","v":""},"",{"$f":"IF('TSA Input'!J2037=\"\",\"\",IF(OR('TSA Input'!J2037=\"Yes\",'TSA Input'!J2037=\"Contingent\"),'TSA Input'!D2037,\"\"))","v":""},{"$f":"IF('TSA Input'!J2037=\"\",\"\",IF(OR('TSA Input'!J2037=\"Yes\",'TSA Input'!J2037=\"Contingent\"),'TSA Input'!G2037,\"\"))","v":""},{"$f":"IF('TSA Input'!J2037=\"\",\"\",IF(OR('TSA Input'!J2037=\"Yes\",'TSA Input'!J2037=\"Contingent\"),'TSA Input'!F2037,\"\"))","v":""},"","Required","Required"]
["",null,{"$f":"IF('TSA Input'!J2038=\"\",\"\",IF(OR('TSA Input'!J2038=\"Yes\",'TSA Input'!J2038=\"Contingent\"),'TSA Input'!B2038,\"Ineligible\"))","v":""},{"$f":"IF('TSA Input'!J2038=\"\",\"\",IF(OR('TSA Input'!J2038=\"Yes\",'TSA Input'!J2038=\"Contingent\"),'TSA Input'!I2038,\"\"))","v":""},{"$f":"IF('TSA Input'!J2038=\"\",\"\",IF(OR('TSA Input'!J2038=\"Yes\",'TSA Input'!J2038=\"Contingent\"),'TSA Input'!C2038,\"\"))","v":""},{"$f":"IF('TSA Input'!J2038=\"\",\"\",IF(OR('TSA Input'!J2038=\"Yes\",'TSA Input'!J2038=\"Contingent\"),'TSA Input'!D2038,\"\"))","v":""},{"$f":"IF('TSA Input'!J2038=\"\",\"\",IF(OR('TSA Input'!J2038=\"Yes\",'TSA Input'!J2038=\"Contingent\"),'TSA Input'!G2038,\"\"))","v":""},{"$f":"IF('TSA Input'!J2038=\"\",\"\",IF(OR('TSA Input'!J2038=\"Yes\",'TSA Input'!J2038=\"Contingent\"),'TSA Input'!F2038,\"\"))","v":""},"",{"$f":"IF('TSA Input'!J2038=\"\",\"\",IF(OR('TSA Input'!J2038=\"Yes\",'TSA Input'!J2038=\"Contingent\"),'TSA Input'!D2038,\"\"))","v":""},{"$f":"IF('TSA Input'!J2038=\"\",\"\",IF(OR('TSA Input'!J2038=\"Yes\",'TSA Input'!J2038=\"Contingent\"),'TSA Input'!G2038,\"\"))","v":""},{"$f":"IF('TSA Input'!J2038=\"\",\"\",IF(OR('TSA Input'!J2038=\"Yes\",'TSA Input'!J2038=\"Contingent\"),'TSA Input'!F2038,\"\"))","v":""},"","Required","Required"]
["",null,{"$f":"IF('TSA Input'!J2039=\"\",\"\",IF(OR('TSA Input'!J2039=\"Yes\",'TSA Input'!J2039=\"Contingent\"),'TSA Input'!B2039,\"Ineligible\"))","v":""},{"$f":"IF('TSA Input'!J2039=\"\",\"\",IF(OR('TSA Input'!J2039=\"Yes\",'TSA Input'!J2039=\"Contingent\"),'TSA Input'!I2039,\"\"))","v":""},{"$f":"IF('TSA Input'!J2039=\"\",\"\",IF(OR('TSA Input'!J2039=\"Yes\",'TSA Input'!J2039=\"Contingent\"),'TSA Input'!C2039,\"\"))","v":""},{"$f":"IF('TSA Input'!J2039=\"\",\"\",IF(OR('TSA Input'!J2039=\"Yes\",'TSA Input'!J2039=\"Contingent\"),'TSA Input'!D2039,\"\"))","v":""},{"$f":"IF('TSA Input'!J2039=\"\",\"\",IF(OR('TSA Input'!J2039=\"Yes\",'TSA Input'!J2039=\"Contingent\"),'TSA Input'!G2039,\"\"))","v":""},{"$f":"IF('TSA Input'!J2039=\"\",\"\",IF(OR('TSA Input'!J2039=\"Yes\",'TSA Input'!J2039=\"Contingent\"),'TSA Input'!F2039,\"\"))","v":""},"",{"$f":"IF('TSA Input'!J2039=\"\",\"\",IF(OR('TSA Input'!J2039=\"Yes\",'TSA Input'!J2039=\"Contingent\"),'TSA Input'!D2039,\"\"))","v":""},{"$f":"IF('TSA Input'!J2039=\"\",\"\",IF(OR('TSA Input'!J2039=\"Yes\",'TSA Input'!J2039=\"Contingent\"),'TSA Input'!G2039,\"\"))","v":""},{"$f":"IF('TSA Input'!J2039=\"\",\"\",IF(OR('TSA Input'!J2039=\"Yes\",'TSA Input'!J2039=\"Contingent\"),'TSA Input'!F2039,\"\"))","v":""},"","Required","Required"]
["",null,{"$f":"IF('TSA Input'!J2040=\"\",\"\",IF(OR('TSA Input'!J2040=\"Yes\",'TSA Input'!J2040=\"Contingent\"),'TSA Input'!B2040,\"Ineligible\"))","v":""},{"$f":"IF('TSA Input'!J2040=\"\",\"\",IF(OR('TSA Input'!J2040=\"Yes\",'TSA Input'!J2040=\"Contingent\"),'TSA Input'!I2040,\"\"))","v":""},{"$f":"IF('TSA Input'!J2040=\"\",\"\",IF(OR('TSA Input'!J2040=\"Yes\",'TSA Input'!J2040=\"Contingent\"),'TSA Input'!C2040,\"\"))","v":""},{"$f":"IF('TSA Input'!J2040=\"\",\"\",IF(OR('TSA Input'!J2040=\"Yes\",'TSA Input'!J2040=\"Contingent\"),'TSA Input'!D2040,\"\"))","v":""},{"$f":"IF('TSA Input'!J2040=\"\",\"\",IF(OR('TSA Input'!J2040=\"Yes\",'TSA Input'!J2040=\"Contingent\"),'TSA Input'!G2040,\"\"))","v":""},{"$f":"IF('TSA Input'!J2040=\"\",\"\",IF(OR('TSA Input'!J2040=\"Yes\",'TSA Input'!J2040=\"Contingent\"),'TSA Input'!F2040,\"\"))","v":""},"",{"$f":"IF('TSA Input'!J2040=\"\",\"\",IF(OR('TSA Input'!J2040=\"Yes\",'TSA Input'!J2040=\"Contingent\"),'TSA Input'!D2040,\"\"))","v":""},{"$f":"IF('TSA Input'!J2040=\"\",\"\",IF(OR('TSA Input'!J2040=\"Yes\",'TSA Input'!J2040=\"Contingent\"),'TSA Input'!G2040,\"\"))","v":""},{"$f":"IF('TSA Input'!J2040=\"\",\"\",IF(OR('TSA Input'!J2040=\"Yes\",'TSA Input'!J2040=\"Contingent\"),'TSA Input'!F2040,\"\"))","v":""},"","Required","Required"]
["",null,{"$f":"IF('TSA Input'!J2041=\"\",\"\",IF(OR('TSA Input'!J2041=\"Yes\",'TSA Input'!J2041=\"Contingent\"),'TSA Input'!B2041,\"Ineligible\"))","v":""},{"$f":"IF('TSA Input'!J2041=\"\",\"\",IF(OR('TSA Input'!J2041=\"Yes\",'TSA Input'!J2041=\"Contingent\"),'TSA Input'!I2041,\"\"))","v":""},{"$f":"IF('TSA Input'!J2041=\"\",\"\",IF(OR('TSA Input'!J2041=\"Yes\",'TSA Input'!J2041=\"Contingent\"),'TSA Input'!C2041,\"\"))","v":""},{"$f":"IF('TSA Input'!J2041=\"\",\"\",IF(OR('TSA Input'!J2041=\"Yes\",'TSA Input'!J2041=\"Contingent\"),'TSA Input'!D2041,\"\"))","v":""},{"$f":"IF('TSA Input'!J2041=\"\",\"\",IF(OR('TSA Input'!J2041=\"Yes\",'TSA Input'!J2041=\"Contingent\"),'TSA Input'!G2041,\"\"))","v":""},{"$f":"IF('TSA Input'!J2041=\"\",\"\",IF(OR('TSA Input'!J2041=\"Yes\",'TSA Input'!J2041=\"Contingent\"),'TSA Input'!F2041,\"\"))","v":""},"",{"$f":"IF('TSA Input'!J2041=\"\",\"\",IF(OR('TSA Input'!J2041=\"Yes\",'TSA Input'!J2041=\"Contingent\"),'TSA Input'!D2041,\"\"))","v":""},{"$f":"IF('TSA Input'!J2041=\"\",\"\",IF(OR('TSA Input'!J2041=\"Yes\",'TSA Input'!J2041=\"Contingent\"),'TSA Input'!G2041,\"\"))","v":""},{"$f":"IF('TSA Input'!J2041=\"\",\"\",IF(OR('TSA Input'!J2041=\"Yes\",'TSA Input'!J2041=\"Contingent\"),'TSA Input'!F2041,\"\"))","v":""},"","Required","Required"]
["",null,{"$f":"IF('TSA Input'!J2042=\"\",\"\",IF(OR('TSA Input'!J2042=\"Yes\",'TSA Input'!J2042=\"Contingent\"),'TSA Input'!B2042,\"Ineligible\"))","v":""},{"$f":"IF('TSA Input'!J2042=\"\",\"\",IF(OR('TSA Input'!J2042=\"Yes\",'TSA Input'!J2042=\"Contingent\"),'TSA Input'!I2042,\"\"))","v":""},{"$f":"IF('TSA Input'!J2042=\"\",\"\",IF(OR('TSA Input'!J2042=\"Yes\",'TSA Input'!J2042=\"Contingent\"),'TSA Input'!C2042,\"\"))","v":""},{"$f":"IF('TSA Input'!J2042=\"\",\"\",IF(OR('TSA Input'!J2042=\"Yes\",'TSA Input'!J2042=\"Contingent\"),'TSA Input'!D2042,\"\"))","v":""},{"$f":"IF('TSA Input'!J2042=\"\",\"\",IF(OR('TSA Input'!J2042=\"Yes\",'TSA Input'!J2042=\"Contingent\"),'TSA Input'!G2042,\"\"))","v":""},{"$f":"IF('TSA Input'!J2042=\"\",\"\",IF(OR('TSA Input'!J2042=\"Yes\",'TSA Input'!J2042=\"Contingent\"),'TSA Input'!F2042,\"\"))","v":""},"",{"$f":"IF('TSA Input'!J2042=\"\",\"\",IF(OR('TSA Input'!J2042=\"Yes\",'TSA Input'!J2042=\"Contingent\"),'TSA Input'!D2042,\"\"))","v":""},{"$f":"IF('TSA Input'!J2042=\"\",\"\",IF(OR('TSA Input'!J2042=\"Yes\",'TSA Input'!J2042=\"Contingent\"),'TSA Input'!G2042,\"\"))","v":""},{"$f":"IF('TSA Input'!J2042=\"\",\"\",IF(OR('TSA Input'!J2042=\"Yes\",'TSA Input'!J2042=\"Contingent\"),'TSA Input'!F2042,\"\"))","v":""},"","Required","Required"]
["",null,{"$f":"IF('TSA Input'!J2043=\"\",\"\",IF(OR('TSA Input'!J2043=\"Yes\",'TSA Input'!J2043=\"Contingent\"),'TSA Input'!B2043,\"Ineligible\"))","v":""},{"$f":"IF('TSA Input'!J2043=\"\",\"\",IF(OR('TSA Input'!J2043=\"Yes\",'TSA Input'!J2043=\"Contingent\"),'TSA Input'!I2043,\"\"))","v":""},{"$f":"IF('TSA Input'!J2043=\"\",\"\",IF(OR('TSA Input'!J2043=\"Yes\",'TSA Input'!J2043=\"Contingent\"),'TSA Input'!C2043,\"\"))","v":""},{"$f":"IF('TSA Input'!J2043=\"\",\"\",IF(OR('TSA Input'!J2043=\"Yes\",'TSA Input'!J2043=\"Contingent\"),'TSA Input'!D2043,\"\"))","v":""},{"$f":"IF('TSA Input'!J2043=\"\",\"\",IF(OR('TSA Input'!J2043=\"Yes\",'TSA Input'!J2043=\"Contingent\"),'TSA Input'!G2043,\"\"))","v":""},{"$f":"IF('TSA Input'!J2043=\"\",\"\",IF(OR('TSA Input'!J2043=\"Yes\",'TSA Input'!J2043=\"Contingent\"),'TSA Input'!F2043,\"\"))","v":""},"",{"$f":"IF('TSA Input'!J2043=\"\",\"\",IF(OR('TSA Input'!J2043=\"Yes\",'TSA Input'!J2043=\"Contingent\"),'TSA Input'!D2043,\"\"))","v":""},{"$f":"IF('TSA Input'!J2043=\"\",\"\",IF(OR('TSA Input'!J2043=\"Yes\",'TSA Input'!J2043=\"Contingent\"),'TSA Input'!G2043,\"\"))","v":""},{"$f":"IF('TSA Input'!J2043=\"\",\"\",IF(OR('TSA Input'!J2043=\"Yes\",'TSA Input'!J2043=\"Contingent\"),'TSA Input'!F2043,\"\"))","v":""},"","Required","Required"]
["",null,{"$f":"IF('TSA Input'!J2044=\"\",\"\",IF(OR('TSA Input'!J2044=\"Yes\",'TSA Input'!J2044=\"Contingent\"),'TSA Input'!B2044,\"Ineligible\"))","v":""},{"$f":"IF('TSA Input'!J2044=\"\",\"\",IF(OR('TSA Input'!J2044=\"Yes\",'TSA Input'!J2044=\"Contingent\"),'TSA Input'!I2044,\"\"))","v":""},{"$f":"IF('TSA Input'!J2044=\"\",\"\",IF(OR('TSA Input'!J2044=\"Yes\",'TSA Input'!J2044=\"Contingent\"),'TSA Input'!C2044,\"\"))","v":""},{"$f":"IF('TSA Input'!J2044=\"\",\"\",IF(OR('TSA Input'!J2044=\"Yes\",'TSA Input'!J2044=\"Contingent\"),'TSA Input'!D2044,\"\"))","v":""},{"$f":"IF('TSA Input'!J2044=\"\",\"\",IF(OR('TSA Input'!J2044=\"Yes\",'TSA Input'!J2044=\"Contingent\"),'TSA Input'!G2044,\"\"))","v":""},{"$f":"IF('TSA Input'!J2044=\"\",\"\",IF(OR('TSA Input'!J2044=\"Yes\",'TSA Input'!J2044=\"Contingent\"),'TSA Input'!F2044,\"\"))","v":""},"",{"$f":"IF('TSA Input'!J2044=\"\",\"\",IF(OR('TSA Input'!J2044=\"Yes\",'TSA Input'!J2044=\"Contingent\"),'TSA Input'!D2044,\"\"))","v":""},{"$f":"IF('TSA Input'!J2044=\"\",\"\",IF(OR('TSA Input'!J2044=\"Yes\",'TSA Input'!J2044=\"Contingent\"),'TSA Input'!G2044,\"\"))","v":""},{"$f":"IF('TSA Input'!J2044=\"\",\"\",IF(OR('TSA Input'!J2044=\"Yes\",'TSA Input'!J2044=\"Contingent\"),'TSA Input'!F2044,\"\"))","v":""},"","Required","Required"]
["",null,{"$f":"IF('TSA Input'!J2045=\"\",\"\",IF(OR('TSA Input'!J2045=\"Yes\",'TSA Input'!J2045=\"Contingent\"),'TSA Input'!B2045,\"Ineligible\"))","v":""},{"$f":"IF('TSA Input'!J2045=\"\",\"\",IF(OR('TSA Input'!J2045=\"Yes\",'TSA Input'!J2045=\"Contingent\"),'TSA Input'!I2045,\"\"))","v":""},{"$f":"IF('TSA Input'!J2045=\"\",\"\",IF(OR('TSA Input'!J2045=\"Yes\",'TSA Input'!J2045=\"Contingent\"),'TSA Input'!C2045,\"\"))","v":""},{"$f":"IF('TSA Input'!J2045=\"\",\"\",IF(OR('TSA Input'!J2045=\"Yes\",'TSA Input'!J2045=\"Contingent\"),'TSA Input'!D2045,\"\"))","v":""},{"$f":"IF('TSA Input'!J2045=\"\",\"\",IF(OR('TSA Input'!J2045=\"Yes\",'TSA Input'!J2045=\"Contingent\"),'TSA Input'!G2045,\"\"))","v":""},{"$f":"IF('TSA Input'!J2045=\"\",\"\",IF(OR('TSA Input'!J2045=\"Yes\",'TSA Input'!J2045=\"Contingent\"),'TSA Input'!F2045,\"\"))","v":""},"",{"$f":"IF('TSA Input'!J2045=\"\",\"\",IF(OR('TSA Input'!J2045=\"Yes\",'TSA Input'!J2045=\"Contingent\"),'TSA Input'!D2045,\"\"))","v":""},{"$f":"IF('TSA Input'!J2045=\"\",\"\",IF(OR('TSA Input'!J2045=\"Yes\",'TSA Input'!J2045=\"Contingent\"),'TSA Input'!G2045,\"\"))","v":""},{"$f":"IF('TSA Input'!J2045=\"\",\"\",IF(OR('TSA Input'!J2045=\"Yes\",'TSA Input'!J2045=\"Contingent\"),'TSA Input'!F2045,\"\"))","v":""},"","Required","Required"]
["",null,{"$f":"IF('TSA Input'!J2046=\"\",\"\",IF(OR('TSA Input'!J2046=\"Yes\",'TSA Input'!J2046=\"Contingent\"),'TSA Input'!B2046,\"Ineligible\"))","v":""},{"$f":"IF('TSA Input'!J2046=\"\",\"\",IF(OR('TSA Input'!J2046=\"Yes\",'TSA Input'!J2046=\"Contingent\"),'TSA Input'!I2046,\"\"))","v":""},{"$f":"IF('TSA Input'!J2046=\"\",\"\",IF(OR('TSA Input'!J2046=\"Yes\",'TSA Input'!J2046=\"Contingent\"),'TSA Input'!C2046,\"\"))","v":""},{"$f":"IF('TSA Input'!J2046=\"\",\"\",IF(OR('TSA Input'!J2046=\"Yes\",'TSA Input'!J2046=\"Contingent\"),'TSA Input'!D2046,\"\"))","v":""},{"$f":"IF('TSA Input'!J2046=\"\",\"\",IF(OR('TSA Input'!J2046=\"Yes\",'TSA Input'!J2046=\"Contingent\"),'TSA Input'!G2046,\"\"))","v":""},{"$f":"IF('TSA Input'!J2046=\"\",\"\",IF(OR('TSA Input'!J2046=\"Yes\",'TSA Input'!J2046=\"Contingent\"),'TSA Input'!F2046,\"\"))","v":""},"",{"$f":"IF('TSA Input'!J2046=\"\",\"\",IF(OR('TSA Input'!J2046=\"Yes\",'TSA Input'!J2046=\"Contingent\"),'TSA Input'!D2046,\"\"))","v":""},{"$f":"IF('TSA Input'!J2046=\"\",\"\",IF(OR('TSA Input'!J2046=\"Yes\",'TSA Input'!J2046=\"Contingent\"),'TSA Input'!G2046,\"\"))","v":""},{"$f":"IF('TSA Input'!J2046=\"\",\"\",IF(OR('TSA Input'!J2046=\"Yes\",'TSA Input'!J2046=\"Contingent\"),'TSA Input'!F2046,\"\"))","v":""},"","Required","Required"]
["",null,{"$f":"IF('TSA Input'!J2047=\"\",\"\",IF(OR('TSA Input'!J2047=\"Yes\",'TSA Input'!J2047=\"Contingent\"),'TSA Input'!B2047,\"Ineligible\"))","v":""},{"$f":"IF('TSA Input'!J2047=\"\",\"\",IF(OR('TSA Input'!J2047=\"Yes\",'TSA Input'!J2047=\"Contingent\"),'TSA Input'!I2047,\"\"))","v":""},{"$f":"IF('TSA Input'!J2047=\"\",\"\",IF(OR('TSA Input'!J2047=\"Yes\",'TSA Input'!J2047=\"Contingent\"),'TSA Input'!C2047,\"\"))","v":""},{"$f":"IF('TSA Input'!J2047=\"\",\"\",IF(OR('TSA Input'!J2047=\"Yes\",'TSA Input'!J2047=\"Contingent\"),'TSA Input'!D2047,\"\"))","v":""},{"$f":"IF('TSA Input'!J2047=\"\",\"\",IF(OR('TSA Input'!J2047=\"Yes\",'TSA Input'!J2047=\"Contingent\"),'TSA Input'!G2047,\"\"))","v":""},{"$f":"IF('TSA Input'!J2047=\"\",\"\",IF(OR('TSA Input'!J2047=\"Yes\",'TSA Input'!J2047=\"Contingent\"),'TSA Input'!F2047,\"\"))","v":""},"",{"$f":"IF('TSA Input'!J2047=\"\",\"\",IF(OR('TSA Input'!J2047=\"Yes\",'TSA Input'!J2047=\"Contingent\"),'TSA Input'!D2047,\"\"))","v":""},{"$f":"IF('TSA Input'!J2047=\"\",\"\",IF(OR('TSA Input'!J2047=\"Yes\",'TSA Input'!J2047=\"Contingent\"),'TSA Input'!G2047,\"\"))","v":""},{"$f":"IF('TSA Input'!J2047=\"\",\"\",IF(OR('TSA Input'!J2047=\"Yes\",'TSA Input'!J2047=\"Contingent\"),'TSA Input'!F2047,\"\"))","v":""},"","Required","Required"]
["",null,{"$f":"IF('TSA Input'!J2048=\"\",\"\",IF(OR('TSA Input'!J2048=\"Yes\",'TSA Input'!J2048=\"Contingent\"),'TSA Input'!B2048,\"Ineligible\"))","v":""},{"$f":"IF('TSA Input'!J2048=\"\",\"\",IF(OR('TSA Input'!J2048=\"Yes\",'TSA Input'!J2048=\"Contingent\"),'TSA Input'!I2048,\"\"))","v":""},{"$f":"IF('TSA Input'!J2048=\"\",\"\",IF(OR('TSA Input'!J2048=\"Yes\",'TSA Input'!J2048=\"Contingent\"),'TSA Input'!C2048,\"\"))","v":""},{"$f":"IF('TSA Input'!J2048=\"\",\"\",IF(OR('TSA Input'!J2048=\"Yes\",'TSA Input'!J2048=\"Contingent\"),'TSA Input'!D2048,\"\"))","v":""},{"$f":"IF('TSA Input'!J2048=\"\",\"\",IF(OR('TSA Input'!J2048=\"Yes\",'TSA Input'!J2048=\"Contingent\"),'TSA Input'!G2048,\"\"))","v":""},{"$f":"IF('TSA Input'!J2048=\"\",\"\",IF(OR('TSA Input'!J2048=\"Yes\",'TSA Input'!J2048=\"Contingent\"),'TSA Input'!F2048,\"\"))","v":""},"",{"$f":"IF('TSA Input'!J2048=\"\",\"\",IF(OR('TSA Input'!J2048=\"Yes\",'TSA Input'!J2048=\"Contingent\"),'TSA Input'!D2048,\"\"))","v":""},{"$f":"IF('TSA Input'!J2048=\"\",\"\",IF(OR('TSA Input'!J2048=\"Yes\",'TSA Input'!J2048=\"Contingent\"),'TSA Input'!G2048,\"\"))","v":""},{"$f":"IF('TSA Input'!J2048=\"\",\"\",IF(OR('TSA Input'!J2048=\"Yes\",'TSA Input'!J2048=\"Contingent\"),'TSA Input'!F2048,\"\"))","v":""},"","Required","Required"]
["",null,{"$f":"IF('TSA Input'!J2049=\"\",\"\",IF(OR('TSA Input'!J2049=\"Yes\",'TSA Input'!J2049=\"Contingent\"),'TSA Input'!B2049,\"Ineligible\"))","v":""},{"$f":"IF('TSA Input'!J2049=\"\",\"\",IF(OR('TSA Input'!J2049=\"Yes\",'TSA Input'!J2049=\"Contingent\"),'TSA Input'!I2049,\"\"))","v":""},{"$f":"IF('TSA Input'!J2049=\"\",\"\",IF(OR('TSA Input'!J2049=\"Yes\",'TSA Input'!J2049=\"Contingent\"),'TSA Input'!C2049,\"\"))","v":""},{"$f":"IF('TSA Input'!J2049=\"\",\"\",IF(OR('TSA Input'!J2049=\"Yes\",'TSA Input'!J2049=\"Contingent\"),'TSA Input'!D2049,\"\"))","v":""},{"$f":"IF('TSA Input'!J2049=\"\",\"\",IF(OR('TSA Input'!J2049=\"Yes\",'TSA Input'!J2049=\"Contingent\"),'TSA Input'!G2049,\"\"))","v":""},{"$f":"IF('TSA Input'!J2049=\"\",\"\",IF(OR('TSA Input'!J2049=\"Yes\",'TSA Input'!J2049=\"Contingent\"),'TSA Input'!F2049,\"\"))","v":""},"",{"$f":"IF('TSA Input'!J2049=\"\",\"\",IF(OR('TSA Input'!J2049=\"Yes\",'TSA Input'!J2049=\"Contingent\"),'TSA Input'!D2049,\"\"))","v":""},{"$f":"IF('TSA Input'!J2049=\"\",\"\",IF(OR('TSA Input'!J2049=\"Yes\",'TSA Input'!J2049=\"Contingent\"),'TSA Input'!G2049,\"\"))","v":""},{"$f":"IF('TSA Input'!J2049=\"\",\"\",IF(OR('TSA Input'!J2049=\"Yes\",'TSA Input'!J2049=\"Contingent\"),'TSA Input'!F2049,\"\"))","v":""},"","Required","Required"]
["",null,{"$f":"IF('TSA Input'!J2050=\"\",\"\",IF(OR('TSA Input'!J2050=\"Yes\",'TSA Input'!J2050=\"Contingent\"),'TSA Input'!B2050,\"Ineligible\"))","v":""},{"$f":"IF('TSA Input'!J2050=\"\",\"\",IF(OR('TSA Input'!J2050=\"Yes\",'TSA Input'!J2050=\"Contingent\"),'TSA Input'!I2050,\"\"))","v":""},{"$f":"IF('TSA Input'!J2050=\"\",\"\",IF(OR('TSA Input'!J2050=\"Yes\",'TSA Input'!J2050=\"Contingent\"),'TSA Input'!C2050,\"\"))","v":""},{"$f":"IF('TSA Input'!J2050=\"\",\"\",IF(OR('TSA Input'!J2050=\"Yes\",'TSA Input'!J2050=\"Contingent\"),'TSA Input'!D2050,\"\"))","v":""},{"$f":"IF('TSA Input'!J2050=\"\",\"\",IF(OR('TSA Input'!J2050=\"Yes\",'TSA Input'!J2050=\"Contingent\"),'TSA Input'!G2050,\"\"))","v":""},{"$f":"IF('TSA Input'!J2050=\"\",\"\",IF(OR('TSA Input'!J2050=\"Yes\",'TSA Input'!J2050=\"Contingent\"),'TSA Input'!F2050,\"\"))","v":""},"",{"$f":"IF('TSA Input'!J2050=\"\",\"\",IF(OR('TSA Input'!J2050=\"Yes\",'TSA Input'!J2050=\"Contingent\"),'TSA Input'!D2050,\"\"))","v":""},{"$f":"IF('TSA Input'!J2050=\"\",\"\",IF(OR('TSA Input'!J2050=\"Yes\",'TSA Input'!J2050=\"Contingent\"),'TSA Input'!G2050,\"\"))","v":""},{"$f":"IF('TSA Input'!J2050=\"\",\"\",IF(OR('TSA Input'!J2050=\"Yes\",'TSA Input'!J2050=\"Contingent\"),'TSA Input'!F2050,\"\"))","v":""},"","Required","Required"]
["",null,{"$f":"IF('TSA Input'!J2051=\"\",\"\",IF(OR('TSA Input'!J2051=\"Yes\",'TSA Input'!J2051=\"Contingent\"),'TSA Input'!B2051,\"Ineligible\"))","v":""},{"$f":"IF('TSA Input'!J2051=\"\",\"\",IF(OR('TSA Input'!J2051=\"Yes\",'TSA Input'!J2051=\"Contingent\"),'TSA Input'!I2051,\"\"))","v":""},{"$f":"IF('TSA Input'!J2051=\"\",\"\",IF(OR('TSA Input'!J2051=\"Yes\",'TSA Input'!J2051=\"Contingent\"),'TSA Input'!C2051,\"\"))","v":""},{"$f":"IF('TSA Input'!J2051=\"\",\"\",IF(OR('TSA Input'!J2051=\"Yes\",'TSA Input'!J2051=\"Contingent\"),'TSA Input'!D2051,\"\"))","v":""},{"$f":"IF('TSA Input'!J2051=\"\",\"\",IF(OR('TSA Input'!J2051=\"Yes\",'TSA Input'!J2051=\"Contingent\"),'TSA Input'!G2051,\"\"))","v":""},{"$f":"IF('TSA Input'!J2051=\"\",\"\",IF(OR('TSA Input'!J2051=\"Yes\",'TSA Input'!J2051=\"Contingent\"),'TSA Input'!F2051,\"\"))","v":""},"",{"$f":"IF('TSA Input'!J2051=\"\",\"\",IF(OR('TSA Input'!J2051=\"Yes\",'TSA Input'!J2051=\"Contingent\"),'TSA Input'!D2051,\"\"))","v":""},{"$f":"IF('TSA Input'!J2051=\"\",\"\",IF(OR('TSA Input'!J2051=\"Yes\",'TSA Input'!J2051=\"Contingent\"),'TSA Input'!G2051,\"\"))","v":""},{"$f":"IF('TSA Input'!J2051=\"\",\"\",IF(OR('TSA Input'!J2051=\"Yes\",'TSA Input'!J2051=\"Contingent\"),'TSA Input'!F2051,\"\"))","v":""},"","Required","Required"]
["",null,{"$f":"IF('TSA Input'!J2052=\"\",\"\",IF(OR('TSA Input'!J2052=\"Yes\",'TSA Input'!J2052=\"Contingent\"),'TSA Input'!B2052,\"Ineligible\"))","v":""},{"$f":"IF('TSA Input'!J2052=\"\",\"\",IF(OR('TSA Input'!J2052=\"Yes\",'TSA Input'!J2052=\"Contingent\"),'TSA Input'!I2052,\"\"))","v":""},{"$f":"IF('TSA Input'!J2052=\"\",\"\",IF(OR('TSA Input'!J2052=\"Yes\",'TSA Input'!J2052=\"Contingent\"),'TSA Input'!C2052,\"\"))","v":""},{"$f":"IF('TSA Input'!J2052=\"\",\"\",IF(OR('TSA Input'!J2052=\"Yes\",'TSA Input'!J2052=\"Contingent\"),'TSA Input'!D2052,\"\"))","v":""},{"$f":"IF('TSA Input'!J2052=\"\",\"\",IF(OR('TSA Input'!J2052=\"Yes\",'TSA Input'!J2052=\"Contingent\"),'TSA Input'!G2052,\"\"))","v":""},{"$f":"IF('TSA Input'!J2052=\"\",\"\",IF(OR('TSA Input'!J2052=\"Yes\",'TSA Input'!J2052=\"Contingent\"),'TSA Input'!F2052,\"\"))","v":""},{"$f":"IF($C2090=\"\",\"\",SUM(F2090:H2090))","v":""},{"$f":"IF('TSA Input'!J2052=\"\",\"\",IF(OR('TSA Input'!J2052=\"Yes\",'TSA Input'!J2052=\"Contingent\"),'TSA Input'!D2052,\"\"))","v":""},{"$f":"IF('TSA Input'!J2052=\"\",\"\",IF(OR('TSA Input'!J2052=\"Yes\",'TSA Input'!J2052=\"Contingent\"),'TSA Input'!G2052,\"\"))","v":""},{"$f":"IF('TSA Input'!J2052=\"\",\"\",IF(OR('TSA Input'!J2052=\"Yes\",'TSA Input'!J2052=\"Contingent\"),'TSA Input'!F2052,\"\"))","v":""},{"$f":"IF($C2090=\"\",\"\",SUM(J2090:L2090))","v":""},"Required","Required"]
["",null,{"$f":"IF('TSA Input'!J2053=\"\",\"\",IF(OR('TSA Input'!J2053=\"Yes\",'TSA Input'!J2053=\"Contingent\"),'TSA Input'!B2053,\"Ineligible\"))","v":""},{"$f":"IF('TSA Input'!J2053=\"\",\"\",IF(OR('TSA Input'!J2053=\"Yes\",'TSA Input'!J2053=\"Contingent\"),'TSA Input'!I2053,\"\"))","v":""},{"$f":"IF('TSA Input'!J2053=\"\",\"\",IF(OR('TSA Input'!J2053=\"Yes\",'TSA Input'!J2053=\"Contingent\"),'TSA Input'!C2053,\"\"))","v":""},{"$f":"IF('TSA Input'!J2053=\"\",\"\",IF(OR('TSA Input'!J2053=\"Yes\",'TSA Input'!J2053=\"Contingent\"),'TSA Input'!D2053,\"\"))","v":""},{"$f":"IF('TSA Input'!J2053=\"\",\"\",IF(OR('TSA Input'!J2053=\"Yes\",'TSA Input'!J2053=\"Contingent\"),'TSA Input'!G2053,\"\"))","v":""},{"$f":"IF('TSA Input'!J2053=\"\",\"\",IF(OR('TSA Input'!J2053=\"Yes\",'TSA Input'!J2053=\"Contingent\"),'TSA Input'!F2053,\"\"))","v":""},"",{"$f":"IF('TSA Input'!J2053=\"\",\"\",IF(OR('TSA Input'!J2053=\"Yes\",'TSA Input'!J2053=\"Contingent\"),'TSA Input'!D2053,\"\"))","v":""},{"$f":"IF('TSA Input'!J2053=\"\",\"\",IF(OR('TSA Input'!J2053=\"Yes\",'TSA Input'!J2053=\"Contingent\"),'TSA Input'!G2053,\"\"))","v":""},{"$f":"IF('TSA Input'!J2053=\"\",\"\",IF(OR('TSA Input'!J2053=\"Yes\",'TSA Input'!J2053=\"Contingent\"),'TSA Input'!F2053,\"\"))","v":""},"","Required","Required"]
["",null,{"$f":"IF('TSA Input'!J2054=\"\",\"\",IF(OR('TSA Input'!J2054=\"Yes\",'TSA Input'!J2054=\"Contingent\"),'TSA Input'!B2054,\"Ineligible\"))","v":""},{"$f":"IF('TSA Input'!J2054=\"\",\"\",IF(OR('TSA Input'!J2054=\"Yes\",'TSA Input'!J2054=\"Contingent\"),'TSA Input'!I2054,\"\"))","v":""},{"$f":"IF('TSA Input'!J2054=\"\",\"\",IF(OR('TSA Input'!J2054=\"Yes\",'TSA Input'!J2054=\"Contingent\"),'TSA Input'!C2054,\"\"))","v":""},{"$f":"IF('TSA Input'!J2054=\"\",\"\",IF(OR('TSA Input'!J2054=\"Yes\",'TSA Input'!J2054=\"Contingent\"),'TSA Input'!D2054,\"\"))","v":""},{"$f":"IF('TSA Input'!J2054=\"\",\"\",IF(OR('TSA Input'!J2054=\"Yes\",'TSA Input'!J2054=\"Contingent\"),'TSA Input'!G2054,\"\"))","v":""},{"$f":"IF('TSA Input'!J2054=\"\",\"\",IF(OR('TSA Input'!J2054=\"Yes\",'TSA Input'!J2054=\"Contingent\"),'TSA Input'!F2054,\"\"))","v":""},"",{"$f":"IF('TSA Input'!J2054=\"\",\"\",IF(OR('TSA Input'!J2054=\"Yes\",'TSA Input'!J2054=\"Contingent\"),'TSA Input'!D2054,\"\"))","v":""},{"$f":"IF('TSA Input'!J2054=\"\",\"\",IF(OR('TSA Input'!J2054=\"Yes\",'TSA Input'!J2054=\"Contingent\"),'TSA Input'!G2054,\"\"))","v":""},{"$f":"IF('TSA Input'!J2054=\"\",\"\",IF(OR('TSA Input'!J2054=\"Yes\",'TSA Input'!J2054=\"Contingent\"),'TSA Input'!F2054,\"\"))","v":""},"","Required","Required"]
["",null,{"$f":"IF('TSA Input'!J2055=\"\",\"\",IF(OR('TSA Input'!J2055=\"Yes\",'TSA Input'!J2055=\"Contingent\"),'TSA Input'!B2055,\"Ineligible\"))","v":""},{"$f":"IF('TSA Input'!J2055=\"\",\"\",IF(OR('TSA Input'!J2055=\"Yes\",'TSA Input'!J2055=\"Contingent\"),'TSA Input'!I2055,\"\"))","v":""},{"$f":"IF('TSA Input'!J2055=\"\",\"\",IF(OR('TSA Input'!J2055=\"Yes\",'TSA Input'!J2055=\"Contingent\"),'TSA Input'!C2055,\"\"))","v":""},{"$f":"IF('TSA Input'!J2055=\"\",\"\",IF(OR('TSA Input'!J2055=\"Yes\",'TSA Input'!J2055=\"Contingent\"),'TSA Input'!D2055,\"\"))","v":""},{"$f":"IF('TSA Input'!J2055=\"\",\"\",IF(OR('TSA Input'!J2055=\"Yes\",'TSA Input'!J2055=\"Contingent\"),'TSA Input'!G2055,\"\"))","v":""},{"$f":"IF('TSA Input'!J2055=\"\",\"\",IF(OR('TSA Input'!J2055=\"Yes\",'TSA Input'!J2055=\"Contingent\"),'TSA Input'!F2055,\"\"))","v":""},"",{"$f":"IF('TSA Input'!J2055=\"\",\"\",IF(OR('TSA Input'!J2055=\"Yes\",'TSA Input'!J2055=\"Contingent\"),'TSA Input'!D2055,\"\"))","v":""},{"$f":"IF('TSA Input'!J2055=\"\",\"\",IF(OR('TSA Input'!J2055=\"Yes\",'TSA Input'!J2055=\"Contingent\"),'TSA Input'!G2055,\"\"))","v":""},{"$f":"IF('TSA Input'!J2055=\"\",\"\",IF(OR('TSA Input'!J2055=\"Yes\",'TSA Input'!J2055=\"Contingent\"),'TSA Input'!F2055,\"\"))","v":""},"","Required","Required"]
["",null,{"$f":"IF('TSA Input'!J2056=\"\",\"\",IF(OR('TSA Input'!J2056=\"Yes\",'TSA Input'!J2056=\"Contingent\"),'TSA Input'!B2056,\"Ineligible\"))","v":""},{"$f":"IF('TSA Input'!J2056=\"\",\"\",IF(OR('TSA Input'!J2056=\"Yes\",'TSA Input'!J2056=\"Contingent\"),'TSA Input'!I2056,\"\"))","v":""},{"$f":"IF('TSA Input'!J2056=\"\",\"\",IF(OR('TSA Input'!J2056=\"Yes\",'TSA Input'!J2056=\"Contingent\"),'TSA Input'!C2056,\"\"))","v":""},{"$f":"IF('TSA Input'!J2056=\"\",\"\",IF(OR('TSA Input'!J2056=\"Yes\",'TSA Input'!J2056=\"Contingent\"),'TSA Input'!D2056,\"\"))","v":""},{"$f":"IF('TSA Input'!J2056=\"\",\"\",IF(OR('TSA Input'!J2056=\"Yes\",'TSA Input'!J2056=\"Contingent\"),'TSA Input'!G2056,\"\"))","v":""},{"$f":"IF('TSA Input'!J2056=\"\",\"\",IF(OR('TSA Input'!J2056=\"Yes\",'TSA Input'!J2056=\"Contingent\"),'TSA Input'!F2056,\"\"))","v":""},"",{"$f":"IF('TSA Input'!J2056=\"\",\"\",IF(OR('TSA Input'!J2056=\"Yes\",'TSA Input'!J2056=\"Contingent\"),'TSA Input'!D2056,\"\"))","v":""},{"$f":"IF('TSA Input'!J2056=\"\",\"\",IF(OR('TSA Input'!J2056=\"Yes\",'TSA Input'!J2056=\"Contingent\"),'TSA Input'!G2056,\"\"))","v":""},{"$f":"IF('TSA Input'!J2056=\"\",\"\",IF(OR('TSA Input'!J2056=\"Yes\",'TSA Input'!J2056=\"Contingent\"),'TSA Input'!F2056,\"\"))","v":""},"","Required","Required"]
["",null,{"$f":"IF('TSA Input'!J2057=\"\",\"\",IF(OR('TSA Input'!J2057=\"Yes\",'TSA Input'!J2057=\"Contingent\"),'TSA Input'!B2057,\"Ineligible\"))","v":""},{"$f":"IF('TSA Input'!J2057=\"\",\"\",IF(OR('TSA Input'!J2057=\"Yes\",'TSA Input'!J2057=\"Contingent\"),'TSA Input'!I2057,\"\"))","v":""},{"$f":"IF('TSA Input'!J2057=\"\",\"\",IF(OR('TSA Input'!J2057=\"Yes\",'TSA Input'!J2057=\"Contingent\"),'TSA Input'!C2057,\"\"))","v":""},{"$f":"IF('TSA Input'!J2057=\"\",\"\",IF(OR('TSA Input'!J2057=\"Yes\",'TSA Input'!J2057=\"Contingent\"),'TSA Input'!D2057,\"\"))","v":""},{"$f":"IF('TSA Input'!J2057=\"\",\"\",IF(OR('TSA Input'!J2057=\"Yes\",'TSA Input'!J2057=\"Contingent\"),'TSA Input'!G2057,\"\"))","v":""},{"$f":"IF('TSA Input'!J2057=\"\",\"\",IF(OR('TSA Input'!J2057=\"Yes\",'TSA Input'!J2057=\"Contingent\"),'TSA Input'!F2057,\"\"))","v":""},"",{"$f":"IF('TSA Input'!J2057=\"\",\"\",IF(OR('TSA Input'!J2057=\"Yes\",'TSA Input'!J2057=\"Contingent\"),'TSA Input'!D2057,\"\"))","v":""},{"$f":"IF('TSA Input'!J2057=\"\",\"\",IF(OR('TSA Input'!J2057=\"Yes\",'TSA Input'!J2057=\"Contingent\"),'TSA Input'!G2057,\"\"))","v":""},{"$f":"IF('TSA Input'!J2057=\"\",\"\",IF(OR('TSA Input'!J2057=\"Yes\",'TSA Input'!J2057=\"Contingent\"),'TSA Input'!F2057,\"\"))","v":""},"","Required","Required"]
["",null,{"$f":"IF('TSA Input'!J2058=\"\",\"\",IF(OR('TSA Input'!J2058=\"Yes\",'TSA Input'!J2058=\"Contingent\"),'TSA Input'!B2058,\"Ineligible\"))","v":""},{"$f":"IF('TSA Input'!J2058=\"\",\"\",IF(OR('TSA Input'!J2058=\"Yes\",'TSA Input'!J2058=\"Contingent\"),'TSA Input'!I2058,\"\"))","v":""},{"$f":"IF('TSA Input'!J2058=\"\",\"\",IF(OR('TSA Input'!J2058=\"Yes\",'TSA Input'!J2058=\"Contingent\"),'TSA Input'!C2058,\"\"))","v":""},{"$f":"IF('TSA Input'!J2058=\"\",\"\",IF(OR('TSA Input'!J2058=\"Yes\",'TSA Input'!J2058=\"Contingent\"),'TSA Input'!D2058,\"\"))","v":""},{"$f":"IF('TSA Input'!J2058=\"\",\"\",IF(OR('TSA Input'!J2058=\"Yes\",'TSA Input'!J2058=\"Contingent\"),'TSA Input'!G2058,\"\"))","v":""},{"$f":"IF('TSA Input'!J2058=\"\",\"\",IF(OR('TSA Input'!J2058=\"Yes\",'TSA Input'!J2058=\"Contingent\"),'TSA Input'!F2058,\"\"))","v":""},"",{"$f":"IF('TSA Input'!J2058=\"\",\"\",IF(OR('TSA Input'!J2058=\"Yes\",'TSA Input'!J2058=\"Contingent\"),'TSA Input'!D2058,\"\"))","v":""},{"$f":"IF('TSA Input'!J2058=\"\",\"\",IF(OR('TSA Input'!J2058=\"Yes\",'TSA Input'!J2058=\"Contingent\"),'TSA Input'!G2058,\"\"))","v":""},{"$f":"IF('TSA Input'!J2058=\"\",\"\",IF(OR('TSA Input'!J2058=\"Yes\",'TSA Input'!J2058=\"Contingent\"),'TSA Input'!F2058,\"\"))","v":""},"","Required","Required"]
["",null,{"$f":"IF('TSA Input'!J2059=\"\",\"\",IF(OR('TSA Input'!J2059=\"Yes\",'TSA Input'!J2059=\"Contingent\"),'TSA Input'!B2059,\"Ineligible\"))","v":""},{"$f":"IF('TSA Input'!J2059=\"\",\"\",IF(OR('TSA Input'!J2059=\"Yes\",'TSA Input'!J2059=\"Contingent\"),'TSA Input'!I2059,\"\"))","v":""},{"$f":"IF('TSA Input'!J2059=\"\",\"\",IF(OR('TSA Input'!J2059=\"Yes\",'TSA Input'!J2059=\"Contingent\"),'TSA Input'!C2059,\"\"))","v":""},{"$f":"IF('TSA Input'!J2059=\"\",\"\",IF(OR('TSA Input'!J2059=\"Yes\",'TSA Input'!J2059=\"Contingent\"),'TSA Input'!D2059,\"\"))","v":""},{"$f":"IF('TSA Input'!J2059=\"\",\"\",IF(OR('TSA Input'!J2059=\"Yes\",'TSA Input'!J2059=\"Contingent\"),'TSA Input'!G2059,\"\"))","v":""},{"$f":"IF('TSA Input'!J2059=\"\",\"\",IF(OR('TSA Input'!J2059=\"Yes\",'TSA Input'!J2059=\"Contingent\"),'TSA Input'!F2059,\"\"))","v":""},"",{"$f":"IF('TSA Input'!J2059=\"\",\"\",IF(OR('TSA Input'!J2059=\"Yes\",'TSA Input'!J2059=\"Contingent\"),'TSA Input'!D2059,\"\"))","v":""},{"$f":"IF('TSA Input'!J2059=\"\",\"\",IF(OR('TSA Input'!J2059=\"Yes\",'TSA Input'!J2059=\"Contingent\"),'TSA Input'!G2059,\"\"))","v":""},{"$f":"IF('TSA Input'!J2059=\"\",\"\",IF(OR('TSA Input'!J2059=\"Yes\",'TSA Input'!J2059=\"Contingent\"),'TSA Input'!F2059,\"\"))","v":""},"","Required","Required"]
["",null,{"$f":"IF('TSA Input'!J2060=\"\",\"\",IF(OR('TSA Input'!J2060=\"Yes\",'TSA Input'!J2060=\"Contingent\"),'TSA Input'!B2060,\"Ineligible\"))","v":""},{"$f":"IF('TSA Input'!J2060=\"\",\"\",IF(OR('TSA Input'!J2060=\"Yes\",'TSA Input'!J2060=\"Contingent\"),'TSA Input'!I2060,\"\"))","v":""},{"$f":"IF('TSA Input'!J2060=\"\",\"\",IF(OR('TSA Input'!J2060=\"Yes\",'TSA Input'!J2060=\"Contingent\"),'TSA Input'!C2060,\"\"))","v":""},{"$f":"IF('TSA Input'!J2060=\"\",\"\",IF(OR('TSA Input'!J2060=\"Yes\",'TSA Input'!J2060=\"Contingent\"),'TSA Input'!D2060,\"\"))","v":""},{"$f":"IF('TSA Input'!J2060=\"\",\"\",IF(OR('TSA Input'!J2060=\"Yes\",'TSA Input'!J2060=\"Contingent\"),'TSA Input'!G2060,\"\"))","v":""},{"$f":"IF('TSA Input'!J2060=\"\",\"\",IF(OR('TSA Input'!J2060=\"Yes\",'TSA Input'!J2060=\"Contingent\"),'TSA Input'!F2060,\"\"))","v":""},"",{"$f":"IF('TSA Input'!J2060=\"\",\"\",IF(OR('TSA Input'!J2060=\"Yes\",'TSA Input'!J2060=\"Contingent\"),'TSA Input'!D2060,\"\"))","v":""},{"$f":"IF('TSA Input'!J2060=\"\",\"\",IF(OR('TSA Input'!J2060=\"Yes\",'TSA Input'!J2060=\"Contingent\"),'TSA Input'!G2060,\"\"))","v":""},{"$f":"IF('TSA Input'!J2060=\"\",\"\",IF(OR('TSA Input'!J2060=\"Yes\",'TSA Input'!J2060=\"Contingent\"),'TSA Input'!F2060,\"\"))","v":""},"","Required","Required"]
["",null,{"$f":"IF('TSA Input'!J2061=\"\",\"\",IF(OR('TSA Input'!J2061=\"Yes\",'TSA Input'!J2061=\"Contingent\"),'TSA Input'!B2061,\"Ineligible\"))","v":""},{"$f":"IF('TSA Input'!J2061=\"\",\"\",IF(OR('TSA Input'!J2061=\"Yes\",'TSA Input'!J2061=\"Contingent\"),'TSA Input'!I2061,\"\"))","v":""},{"$f":"IF('TSA Input'!J2061=\"\",\"\",IF(OR('TSA Input'!J2061=\"Yes\",'TSA Input'!J2061=\"Contingent\"),'TSA Input'!C2061,\"\"))","v":""},{"$f":"IF('TSA Input'!J2061=\"\",\"\",IF(OR('TSA Input'!J2061=\"Yes\",'TSA Input'!J2061=\"Contingent\"),'TSA Input'!D2061,\"\"))","v":""},{"$f":"IF('TSA Input'!J2061=\"\",\"\",IF(OR('TSA Input'!J2061=\"Yes\",'TSA Input'!J2061=\"Contingent\"),'TSA Input'!G2061,\"\"))","v":""},{"$f":"IF('TSA Input'!J2061=\"\",\"\",IF(OR('TSA Input'!J2061=\"Yes\",'TSA Input'!J2061=\"Contingent\"),'TSA Input'!F2061,\"\"))","v":""},"",{"$f":"IF('TSA Input'!J2061=\"\",\"\",IF(OR('TSA Input'!J2061=\"Yes\",'TSA Input'!J2061=\"Contingent\"),'TSA Input'!D2061,\"\"))","v":""},{"$f":"IF('TSA Input'!J2061=\"\",\"\",IF(OR('TSA Input'!J2061=\"Yes\",'TSA Input'!J2061=\"Contingent\"),'TSA Input'!G2061,\"\"))","v":""},{"$f":"IF('TSA Input'!J2061=\"\",\"\",IF(OR('TSA Input'!J2061=\"Yes\",'TSA Input'!J2061=\"Contingent\"),'TSA Input'!F2061,\"\"))","v":""},"","Required","Required"]
["",null,{"$f":"IF('TSA Input'!J2062=\"\",\"\",IF(OR('TSA Input'!J2062=\"Yes\",'TSA Input'!J2062=\"Contingent\"),'TSA Input'!B2062,\"Ineligible\"))","v":""},{"$f":"IF('TSA Input'!J2062=\"\",\"\",IF(OR('TSA Input'!J2062=\"Yes\",'TSA Input'!J2062=\"Contingent\"),'TSA Input'!I2062,\"\"))","v":""},{"$f":"IF('TSA Input'!J2062=\"\",\"\",IF(OR('TSA Input'!J2062=\"Yes\",'TSA Input'!J2062=\"Contingent\"),'TSA Input'!C2062,\"\"))","v":""},{"$f":"IF('TSA Input'!J2062=\"\",\"\",IF(OR('TSA Input'!J2062=\"Yes\",'TSA Input'!J2062=\"Contingent\"),'TSA Input'!D2062,\"\"))","v":""},{"$f":"IF('TSA Input'!J2062=\"\",\"\",IF(OR('TSA Input'!J2062=\"Yes\",'TSA Input'!J2062=\"Contingent\"),'TSA Input'!G2062,\"\"))","v":""},{"$f":"IF('TSA Input'!J2062=\"\",\"\",IF(OR('TSA Input'!J2062=\"Yes\",'TSA Input'!J2062=\"Contingent\"),'TSA Input'!F2062,\"\"))","v":""},"",{"$f":"IF('TSA Input'!J2062=\"\",\"\",IF(OR('TSA Input'!J2062=\"Yes\",'TSA Input'!J2062=\"Contingent\"),'TSA Input'!D2062,\"\"))","v":""},{"$f":"IF('TSA Input'!J2062=\"\",\"\",IF(OR('TSA Input'!J2062=\"Yes\",'TSA Input'!J2062=\"Contingent\"),'TSA Input'!G2062,\"\"))","v":""},{"$f":"IF('TSA Input'!J2062=\"\",\"\",IF(OR('TSA Input'!J2062=\"Yes\",'TSA Input'!J2062=\"Contingent\"),'TSA Input'!F2062,\"\"))","v":""},"","Required","Required"]
["",null,{"$f":"IF('TSA Input'!J2063=\"\",\"\",IF(OR('TSA Input'!J2063=\"Yes\",'TSA Input'!J2063=\"Contingent\"),'TSA Input'!B2063,\"Ineligible\"))","v":""},{"$f":"IF('TSA Input'!J2063=\"\",\"\",IF(OR('TSA Input'!J2063=\"Yes\",'TSA Input'!J2063=\"Contingent\"),'TSA Input'!I2063,\"\"))","v":""},{"$f":"IF('TSA Input'!J2063=\"\",\"\",IF(OR('TSA Input'!J2063=\"Yes\",'TSA Input'!J2063=\"Contingent\"),'TSA Input'!C2063,\"\"))","v":""},{"$f":"IF('TSA Input'!J2063=\"\",\"\",IF(OR('TSA Input'!J2063=\"Yes\",'TSA Input'!J2063=\"Contingent\"),'TSA Input'!D2063,\"\"))","v":""},{"$f":"IF('TSA Input'!J2063=\"\",\"\",IF(OR('TSA Input'!J2063=\"Yes\",'TSA Input'!J2063=\"Contingent\"),'TSA Input'!G2063,\"\"))","v":""},{"$f":"IF('TSA Input'!J2063=\"\",\"\",IF(OR('TSA Input'!J2063=\"Yes\",'TSA Input'!J2063=\"Contingent\"),'TSA Input'!F2063,\"\"))","v":""},"",{"$f":"IF('TSA Input'!J2063=\"\",\"\",IF(OR('TSA Input'!J2063=\"Yes\",'TSA Input'!J2063=\"Contingent\"),'TSA Input'!D2063,\"\"))","v":""},{"$f":"IF('TSA Input'!J2063=\"\",\"\",IF(OR('TSA Input'!J2063=\"Yes\",'TSA Input'!J2063=\"Contingent\"),'TSA Input'!G2063,\"\"))","v":""},{"$f":"IF('TSA Input'!J2063=\"\",\"\",IF(OR('TSA Input'!J2063=\"Yes\",'TSA Input'!J2063=\"Contingent\"),'TSA Input'!F2063,\"\"))","v":""},"","Required","Required"]
["",null,{"$f":"IF('TSA Input'!J2064=\"\",\"\",IF(OR('TSA Input'!J2064=\"Yes\",'TSA Input'!J2064=\"Contingent\"),'TSA Input'!B2064,\"Ineligible\"))","v":""},{"$f":"IF('TSA Input'!J2064=\"\",\"\",IF(OR('TSA Input'!J2064=\"Yes\",'TSA Input'!J2064=\"Contingent\"),'TSA Input'!I2064,\"\"))","v":""},{"$f":"IF('TSA Input'!J2064=\"\",\"\",IF(OR('TSA Input'!J2064=\"Yes\",'TSA Input'!J2064=\"Contingent\"),'TSA Input'!C2064,\"\"))","v":""},{"$f":"IF('TSA Input'!J2064=\"\",\"\",IF(OR('TSA Input'!J2064=\"Yes\",'TSA Input'!J2064=\"Contingent\"),'TSA Input'!D2064,\"\"))","v":""},{"$f":"IF('TSA Input'!J2064=\"\",\"\",IF(OR('TSA Input'!J2064=\"Yes\",'TSA Input'!J2064=\"Contingent\"),'TSA Input'!G2064,\"\"))","v":""},{"$f":"IF('TSA Input'!J2064=\"\",\"\",IF(OR('TSA Input'!J2064=\"Yes\",'TSA Input'!J2064=\"Contingent\"),'TSA Input'!F2064,\"\"))","v":""},"",{"$f":"IF('TSA Input'!J2064=\"\",\"\",IF(OR('TSA Input'!J2064=\"Yes\",'TSA Input'!J2064=\"Contingent\"),'TSA Input'!D2064,\"\"))","v":""},{"$f":"IF('TSA Input'!J2064=\"\",\"\",IF(OR('TSA Input'!J2064=\"Yes\",'TSA Input'!J2064=\"Contingent\"),'TSA Input'!G2064,\"\"))","v":""},{"$f":"IF('TSA Input'!J2064=\"\",\"\",IF(OR('TSA Input'!J2064=\"Yes\",'TSA Input'!J2064=\"Contingent\"),'TSA Input'!F2064,\"\"))","v":""},"","Required","Required"]
["",null,{"$f":"IF('TSA Input'!J2065=\"\",\"\",IF(OR('TSA Input'!J2065=\"Yes\",'TSA Input'!J2065=\"Contingent\"),'TSA Input'!B2065,\"Ineligible\"))","v":""},{"$f":"IF('TSA Input'!J2065=\"\",\"\",IF(OR('TSA Input'!J2065=\"Yes\",'TSA Input'!J2065=\"Contingent\"),'TSA Input'!I2065,\"\"))","v":""},{"$f":"IF('TSA Input'!J2065=\"\",\"\",IF(OR('TSA Input'!J2065=\"Yes\",'TSA Input'!J2065=\"Contingent\"),'TSA Input'!C2065,\"\"))","v":""},{"$f":"IF('TSA Input'!J2065=\"\",\"\",IF(OR('TSA Input'!J2065=\"Yes\",'TSA Input'!J2065=\"Contingent\"),'TSA Input'!D2065,\"\"))","v":""},{"$f":"IF('TSA Input'!J2065=\"\",\"\",IF(OR('TSA Input'!J2065=\"Yes\",'TSA Input'!J2065=\"Contingent\"),'TSA Input'!G2065,\"\"))","v":""},{"$f":"IF('TSA Input'!J2065=\"\",\"\",IF(OR('TSA Input'!J2065=\"Yes\",'TSA Input'!J2065=\"Contingent\"),'TSA Input'!F2065,\"\"))","v":""},"",{"$f":"IF('TSA Input'!J2065=\"\",\"\",IF(OR('TSA Input'!J2065=\"Yes\",'TSA Input'!J2065=\"Contingent\"),'TSA Input'!D2065,\"\"))","v":""},{"$f":"IF('TSA Input'!J2065=\"\",\"\",IF(OR('TSA Input'!J2065=\"Yes\",'TSA Input'!J2065=\"Contingent\"),'TSA Input'!G2065,\"\"))","v":""},{"$f":"IF('TSA Input'!J2065=\"\",\"\",IF(OR('TSA Input'!J2065=\"Yes\",'TSA Input'!J2065=\"Contingent\"),'TSA Input'!F2065,\"\"))","v":""},"","Required","Required"]
["",null,{"$f":"IF('TSA Input'!J2066=\"\",\"\",IF(OR('TSA Input'!J2066=\"Yes\",'TSA Input'!J2066=\"Contingent\"),'TSA Input'!B2066,\"Ineligible\"))","v":""},{"$f":"IF('TSA Input'!J2066=\"\",\"\",IF(OR('TSA Input'!J2066=\"Yes\",'TSA Input'!J2066=\"Contingent\"),'TSA Input'!I2066,\"\"))","v":""},{"$f":"IF('TSA Input'!J2066=\"\",\"\",IF(OR('TSA Input'!J2066=\"Yes\",'TSA Input'!J2066=\"Contingent\"),'TSA Input'!C2066,\"\"))","v":""},{"$f":"IF('TSA Input'!J2066=\"\",\"\",IF(OR('TSA Input'!J2066=\"Yes\",'TSA Input'!J2066=\"Contingent\"),'TSA Input'!D2066,\"\"))","v":""},{"$f":"IF('TSA Input'!J2066=\"\",\"\",IF(OR('TSA Input'!J2066=\"Yes\",'TSA Input'!J2066=\"Contingent\"),'TSA Input'!G2066,\"\"))","v":""},{"$f":"IF('TSA Input'!J2066=\"\",\"\",IF(OR('TSA Input'!J2066=\"Yes\",'TSA Input'!J2066=\"Contingent\"),'TSA Input'!F2066,\"\"))","v":""},"",{"$f":"IF('TSA Input'!J2066=\"\",\"\",IF(OR('TSA Input'!J2066=\"Yes\",'TSA Input'!J2066=\"Contingent\"),'TSA Input'!D2066,\"\"))","v":""},{"$f":"IF('TSA Input'!J2066=\"\",\"\",IF(OR('TSA Input'!J2066=\"Yes\",'TSA Input'!J2066=\"Contingent\"),'TSA Input'!G2066,\"\"))","v":""},{"$f":"IF('TSA Input'!J2066=\"\",\"\",IF(OR('TSA Input'!J2066=\"Yes\",'TSA Input'!J2066=\"Contingent\"),'TSA Input'!F2066,\"\"))","v":""},"","Required","Required"]
["",null,{"$f":"IF('TSA Input'!J2067=\"\",\"\",IF(OR('TSA Input'!J2067=\"Yes\",'TSA Input'!J2067=\"Contingent\"),'TSA Input'!B2067,\"Ineligible\"))","v":""},{"$f":"IF('TSA Input'!J2067=\"\",\"\",IF(OR('TSA Input'!J2067=\"Yes\",'TSA Input'!J2067=\"Contingent\"),'TSA Input'!I2067,\"\"))","v":""},{"$f":"IF('TSA Input'!J2067=\"\",\"\",IF(OR('TSA Input'!J2067=\"Yes\",'TSA Input'!J2067=\"Contingent\"),'TSA Input'!C2067,\"\"))","v":""},{"$f":"IF('TSA Input'!J2067=\"\",\"\",IF(OR('TSA Input'!J2067=\"Yes\",'TSA Input'!J2067=\"Contingent\"),'TSA Input'!D2067,\"\"))","v":""},{"$f":"IF('TSA Input'!J2067=\"\",\"\",IF(OR('TSA Input'!J2067=\"Yes\",'TSA Input'!J2067=\"Contingent\"),'TSA Input'!G2067,\"\"))","v":""},{"$f":"IF('TSA Input'!J2067=\"\",\"\",IF(OR('TSA Input'!J2067=\"Yes\",'TSA Input'!J2067=\"Contingent\"),'TSA Input'!F2067,\"\"))","v":""},"",{"$f":"IF('TSA Input'!J2067=\"\",\"\",IF(OR('TSA Input'!J2067=\"Yes\",'TSA Input'!J2067=\"Contingent\"),'TSA Input'!D2067,\"\"))","v":""},{"$f":"IF('TSA Input'!J2067=\"\",\"\",IF(OR('TSA Input'!J2067=\"Yes\",'TSA Input'!J2067=\"Contingent\"),'TSA Input'!G2067,\"\"))","v":""},{"$f":"IF('TSA Input'!J2067=\"\",\"\",IF(OR('TSA Input'!J2067=\"Yes\",'TSA Input'!J2067=\"Contingent\"),'TSA Input'!F2067,\"\"))","v":""},"","Required","Required"]
["",null,{"$f":"IF('TSA Input'!J2068=\"\",\"\",IF(OR('TSA Input'!J2068=\"Yes\",'TSA Input'!J2068=\"Contingent\"),'TSA Input'!B2068,\"Ineligible\"))","v":""},{"$f":"IF('TSA Input'!J2068=\"\",\"\",IF(OR('TSA Input'!J2068=\"Yes\",'TSA Input'!J2068=\"Contingent\"),'TSA Input'!I2068,\"\"))","v":""},{"$f":"IF('TSA Input'!J2068=\"\",\"\",IF(OR('TSA Input'!J2068=\"Yes\",'TSA Input'!J2068=\"Contingent\"),'TSA Input'!C2068,\"\"))","v":""},{"$f":"IF('TSA Input'!J2068=\"\",\"\",IF(OR('TSA Input'!J2068=\"Yes\",'TSA Input'!J2068=\"Contingent\"),'TSA Input'!D2068,\"\"))","v":""},{"$f":"IF('TSA Input'!J2068=\"\",\"\",IF(OR('TSA Input'!J2068=\"Yes\",'TSA Input'!J2068=\"Contingent\"),'TSA Input'!G2068,\"\"))","v":""},{"$f":"IF('TSA Input'!J2068=\"\",\"\",IF(OR('TSA Input'!J2068=\"Yes\",'TSA Input'!J2068=\"Contingent\"),'TSA Input'!F2068,\"\"))","v":""},"",{"$f":"IF('TSA Input'!J2068=\"\",\"\",IF(OR('TSA Input'!J2068=\"Yes\",'TSA Input'!J2068=\"Contingent\"),'TSA Input'!D2068,\"\"))","v":""},{"$f":"IF('TSA Input'!J2068=\"\",\"\",IF(OR('TSA Input'!J2068=\"Yes\",'TSA Input'!J2068=\"Contingent\"),'TSA Input'!G2068,\"\"))","v":""},{"$f":"IF('TSA Input'!J2068=\"\",\"\",IF(OR('TSA Input'!J2068=\"Yes\",'TSA Input'!J2068=\"Contingent\"),'TSA Input'!F2068,\"\"))","v":""},"","Required","Required"]
["",null,{"$f":"IF('TSA Input'!J2069=\"\",\"\",IF(OR('TSA Input'!J2069=\"Yes\",'TSA Input'!J2069=\"Contingent\"),'TSA Input'!B2069,\"Ineligible\"))","v":""},{"$f":"IF('TSA Input'!J2069=\"\",\"\",IF(OR('TSA Input'!J2069=\"Yes\",'TSA Input'!J2069=\"Contingent\"),'TSA Input'!I2069,\"\"))","v":""},{"$f":"IF('TSA Input'!J2069=\"\",\"\",IF(OR('TSA Input'!J2069=\"Yes\",'TSA Input'!J2069=\"Contingent\"),'TSA Input'!C2069,\"\"))","v":""},{"$f":"IF('TSA Input'!J2069=\"\",\"\",IF(OR('TSA Input'!J2069=\"Yes\",'TSA Input'!J2069=\"Contingent\"),'TSA Input'!D2069,\"\"))","v":""},{"$f":"IF('TSA Input'!J2069=\"\",\"\",IF(OR('TSA Input'!J2069=\"Yes\",'TSA Input'!J2069=\"Contingent\"),'TSA Input'!G2069,\"\"))","v":""},{"$f":"IF('TSA Input'!J2069=\"\",\"\",IF(OR('TSA Input'!J2069=\"Yes\",'TSA Input'!J2069=\"Contingent\"),'TSA Input'!F2069,\"\"))","v":""},"",{"$f":"IF('TSA Input'!J2069=\"\",\"\",IF(OR('TSA Input'!J2069=\"Yes\",'TSA Input'!J2069=\"Contingent\"),'TSA Input'!D2069,\"\"))","v":""},{"$f":"IF('TSA Input'!J2069=\"\",\"\",IF(OR('TSA Input'!J2069=\"Yes\",'TSA Input'!J2069=\"Contingent\"),'TSA Input'!G2069,\"\"))","v":""},{"$f":"IF('TSA Input'!J2069=\"\",\"\",IF(OR('TSA Input'!J2069=\"Yes\",'TSA Input'!J2069=\"Contingent\"),'TSA Input'!F2069,\"\"))","v":""},"","Required","Required"]
["",null,{"$f":"IF('TSA Input'!J2070=\"\",\"\",IF(OR('TSA Input'!J2070=\"Yes\",'TSA Input'!J2070=\"Contingent\"),'TSA Input'!B2070,\"Ineligible\"))","v":""},{"$f":"IF('TSA Input'!J2070=\"\",\"\",IF(OR('TSA Input'!J2070=\"Yes\",'TSA Input'!J2070=\"Contingent\"),'TSA Input'!I2070,\"\"))","v":""},{"$f":"IF('TSA Input'!J2070=\"\",\"\",IF(OR('TSA Input'!J2070=\"Yes\",'TSA Input'!J2070=\"Contingent\"),'TSA Input'!C2070,\"\"))","v":""},{"$f":"IF('TSA Input'!J2070=\"\",\"\",IF(OR('TSA Input'!J2070=\"Yes\",'TSA Input'!J2070=\"Contingent\"),'TSA Input'!D2070,\"\"))","v":""},{"$f":"IF('TSA Input'!J2070=\"\",\"\",IF(OR('TSA Input'!J2070=\"Yes\",'TSA Input'!J2070=\"Contingent\"),'TSA Input'!G2070,\"\"))","v":""},{"$f":"IF('TSA Input'!J2070=\"\",\"\",IF(OR('TSA Input'!J2070=\"Yes\",'TSA Input'!J2070=\"Contingent\"),'TSA Input'!F2070,\"\"))","v":""},"",{"$f":"IF('TSA Input'!J2070=\"\",\"\",IF(OR('TSA Input'!J2070=\"Yes\",'TSA Input'!J2070=\"Contingent\"),'TSA Input'!D2070,\"\"))","v":""},{"$f":"IF('TSA Input'!J2070=\"\",\"\",IF(OR('TSA Input'!J2070=\"Yes\",'TSA Input'!J2070=\"Contingent\"),'TSA Input'!G2070,\"\"))","v":""},{"$f":"IF('TSA Input'!J2070=\"\",\"\",IF(OR('TSA Input'!J2070=\"Yes\",'TSA Input'!J2070=\"Contingent\"),'TSA Input'!F2070,\"\"))","v":""},"","Required","Required"]
["",null,{"$f":"IF('TSA Input'!J2071=\"\",\"\",IF(OR('TSA Input'!J2071=\"Yes\",'TSA Input'!J2071=\"Contingent\"),'TSA Input'!B2071,\"Ineligible\"))","v":""},{"$f":"IF('TSA Input'!J2071=\"\",\"\",IF(OR('TSA Input'!J2071=\"Yes\",'TSA Input'!J2071=\"Contingent\"),'TSA Input'!I2071,\"\"))","v":""},{"$f":"IF('TSA Input'!J2071=\"\",\"\",IF(OR('TSA Input'!J2071=\"Yes\",'TSA Input'!J2071=\"Contingent\"),'TSA Input'!C2071,\"\"))","v":""},{"$f":"IF('TSA Input'!J2071=\"\",\"\",IF(OR('TSA Input'!J2071=\"Yes\",'TSA Input'!J2071=\"Contingent\"),'TSA Input'!D2071,\"\"))","v":""},{"$f":"IF('TSA Input'!J2071=\"\",\"\",IF(OR('TSA Input'!J2071=\"Yes\",'TSA Input'!J2071=\"Contingent\"),'TSA Input'!G2071,\"\"))","v":""},{"$f":"IF('TSA Input'!J2071=\"\",\"\",IF(OR('TSA Input'!J2071=\"Yes\",'TSA Input'!J2071=\"Contingent\"),'TSA Input'!F2071,\"\"))","v":""},"",{"$f":"IF('TSA Input'!J2071=\"\",\"\",IF(OR('TSA Input'!J2071=\"Yes\",'TSA Input'!J2071=\"Contingent\"),'TSA Input'!D2071,\"\"))","v":""},{"$f":"IF('TSA Input'!J2071=\"\",\"\",IF(OR('TSA Input'!J2071=\"Yes\",'TSA Input'!J2071=\"Contingent\"),'TSA Input'!G2071,\"\"))","v":""},{"$f":"IF('TSA Input'!J2071=\"\",\"\",IF(OR('TSA Input'!J2071=\"Yes\",'TSA Input'!J2071=\"Contingent\"),'TSA Input'!F2071,\"\"))","v":""},"","Required","Required"]
["",null,{"$f":"IF('TSA Input'!J2072=\"\",\"\",IF(OR('TSA Input'!J2072=\"Yes\",'TSA Input'!J2072=\"Contingent\"),'TSA Input'!B2072,\"Ineligible\"))","v":""},{"$f":"IF('TSA Input'!J2072=\"\",\"\",IF(OR('TSA Input'!J2072=\"Yes\",'TSA Input'!J2072=\"Contingent\"),'TSA Input'!I2072,\"\"))","v":""},{"$f":"IF('TSA Input'!J2072=\"\",\"\",IF(OR('TSA Input'!J2072=\"Yes\",'TSA Input'!J2072=\"Contingent\"),'TSA Input'!C2072,\"\"))","v":""},{"$f":"IF('TSA Input'!J2072=\"\",\"\",IF(OR('TSA Input'!J2072=\"Yes\",'TSA Input'!J2072=\"Contingent\"),'TSA Input'!D2072,\"\"))","v":""},{"$f":"IF('TSA Input'!J2072=\"\",\"\",IF(OR('TSA Input'!J2072=\"Yes\",'TSA Input'!J2072=\"Contingent\"),'TSA Input'!G2072,\"\"))","v":""},{"$f":"IF('TSA Input'!J2072=\"\",\"\",IF(OR('TSA Input'!J2072=\"Yes\",'TSA Input'!J2072=\"Contingent\"),'TSA Input'!F2072,\"\"))","v":""},"",{"$f":"IF('TSA Input'!J2072=\"\",\"\",IF(OR('TSA Input'!J2072=\"Yes\",'TSA Input'!J2072=\"Contingent\"),'TSA Input'!D2072,\"\"))","v":""},{"$f":"IF('TSA Input'!J2072=\"\",\"\",IF(OR('TSA Input'!J2072=\"Yes\",'TSA Input'!J2072=\"Contingent\"),'TSA Input'!G2072,\"\"))","v":""},{"$f":"IF('TSA Input'!J2072=\"\",\"\",IF(OR('TSA Input'!J2072=\"Yes\",'TSA Input'!J2072=\"Contingent\"),'TSA Input'!F2072,\"\"))","v":""},"","Required","Required"]
["",null,{"$f":"IF('TSA Input'!J2073=\"\",\"\",IF(OR('TSA Input'!J2073=\"Yes\",'TSA Input'!J2073=\"Contingent\"),'TSA Input'!B2073,\"Ineligible\"))","v":""},{"$f":"IF('TSA Input'!J2073=\"\",\"\",IF(OR('TSA Input'!J2073=\"Yes\",'TSA Input'!J2073=\"Contingent\"),'TSA Input'!I2073,\"\"))","v":""},{"$f":"IF('TSA Input'!J2073=\"\",\"\",IF(OR('TSA Input'!J2073=\"Yes\",'TSA Input'!J2073=\"Contingent\"),'TSA Input'!C2073,\"\"))","v":""},{"$f":"IF('TSA Input'!J2073=\"\",\"\",IF(OR('TSA Input'!J2073=\"Yes\",'TSA Input'!J2073=\"Contingent\"),'TSA Input'!D2073,\"\"))","v":""},{"$f":"IF('TSA Input'!J2073=\"\",\"\",IF(OR('TSA Input'!J2073=\"Yes\",'TSA Input'!J2073=\"Contingent\"),'TSA Input'!G2073,\"\"))","v":""},{"$f":"IF('TSA Input'!J2073=\"\",\"\",IF(OR('TSA Input'!J2073=\"Yes\",'TSA Input'!J2073=\"Contingent\"),'TSA Input'!F2073,\"\"))","v":""},"",{"$f":"IF('TSA Input'!J2073=\"\",\"\",IF(OR('TSA Input'!J2073=\"Yes\",'TSA Input'!J2073=\"Contingent\"),'TSA Input'!D2073,\"\"))","v":""},{"$f":"IF('TSA Input'!J2073=\"\",\"\",IF(OR('TSA Input'!J2073=\"Yes\",'TSA Input'!J2073=\"Contingent\"),'TSA Input'!G2073,\"\"))","v":""},{"$f":"IF('TSA Input'!J2073=\"\",\"\",IF(OR('TSA Input'!J2073=\"Yes\",'TSA Input'!J2073=\"Contingent\"),'TSA Input'!F2073,\"\"))","v":""},"","Required","Required"]
["",null,{"$f":"IF('TSA Input'!J2074=\"\",\"\",IF(OR('TSA Input'!J2074=\"Yes\",'TSA Input'!J2074=\"Contingent\"),'TSA Input'!B2074,\"Ineligible\"))","v":""},{"$f":"IF('TSA Input'!J2074=\"\",\"\",IF(OR('TSA Input'!J2074=\"Yes\",'TSA Input'!J2074=\"Contingent\"),'TSA Input'!I2074,\"\"))","v":""},{"$f":"IF('TSA Input'!J2074=\"\",\"\",IF(OR('TSA Input'!J2074=\"Yes\",'TSA Input'!J2074=\"Contingent\"),'TSA Input'!C2074,\"\"))","v":""},{"$f":"IF('TSA Input'!J2074=\"\",\"\",IF(OR('TSA Input'!J2074=\"Yes\",'TSA Input'!J2074=\"Contingent\"),'TSA Input'!D2074,\"\"))","v":""},{"$f":"IF('TSA Input'!J2074=\"\",\"\",IF(OR('TSA Input'!J2074=\"Yes\",'TSA Input'!J2074=\"Contingent\"),'TSA Input'!G2074,\"\"))","v":""},{"$f":"IF('TSA Input'!J2074=\"\",\"\",IF(OR('TSA Input'!J2074=\"Yes\",'TSA Input'!J2074=\"Contingent\"),'TSA Input'!F2074,\"\"))","v":""},"",{"$f":"IF('TSA Input'!J2074=\"\",\"\",IF(OR('TSA Input'!J2074=\"Yes\",'TSA Input'!J2074=\"Contingent\"),'TSA Input'!D2074,\"\"))","v":""},{"$f":"IF('TSA Input'!J2074=\"\",\"\",IF(OR('TSA Input'!J2074=\"Yes\",'TSA Input'!J2074=\"Contingent\"),'TSA Input'!G2074,\"\"))","v":""},{"$f":"IF('TSA Input'!J2074=\"\",\"\",IF(OR('TSA Input'!J2074=\"Yes\",'TSA Input'!J2074=\"Contingent\"),'TSA Input'!F2074,\"\"))","v":""},"","Required","Required"]
["",null,{"$f":"IF('TSA Input'!J2075=\"\",\"\",IF(OR('TSA Input'!J2075=\"Yes\",'TSA Input'!J2075=\"Contingent\"),'TSA Input'!B2075,\"Ineligible\"))","v":""},{"$f":"IF('TSA Input'!J2075=\"\",\"\",IF(OR('TSA Input'!J2075=\"Yes\",'TSA Input'!J2075=\"Contingent\"),'TSA Input'!I2075,\"\"))","v":""},{"$f":"IF('TSA Input'!J2075=\"\",\"\",IF(OR('TSA Input'!J2075=\"Yes\",'TSA Input'!J2075=\"Contingent\"),'TSA Input'!C2075,\"\"))","v":""},{"$f":"IF('TSA Input'!J2075=\"\",\"\",IF(OR('TSA Input'!J2075=\"Yes\",'TSA Input'!J2075=\"Contingent\"),'TSA Input'!D2075,\"\"))","v":""},{"$f":"IF('TSA Input'!J2075=\"\",\"\",IF(OR('TSA Input'!J2075=\"Yes\",'TSA Input'!J2075=\"Contingent\"),'TSA Input'!G2075,\"\"))","v":""},{"$f":"IF('TSA Input'!J2075=\"\",\"\",IF(OR('TSA Input'!J2075=\"Yes\",'TSA Input'!J2075=\"Contingent\"),'TSA Input'!F2075,\"\"))","v":""},"",{"$f":"IF('TSA Input'!J2075=\"\",\"\",IF(OR('TSA Input'!J2075=\"Yes\",'TSA Input'!J2075=\"Contingent\"),'TSA Input'!D2075,\"\"))","v":""},{"$f":"IF('TSA Input'!J2075=\"\",\"\",IF(OR('TSA Input'!J2075=\"Yes\",'TSA Input'!J2075=\"Contingent\"),'TSA Input'!G2075,\"\"))","v":""},{"$f":"IF('TSA Input'!J2075=\"\",\"\",IF(OR('TSA Input'!J2075=\"Yes\",'TSA Input'!J2075=\"Contingent\"),'TSA Input'!F2075,\"\"))","v":""},"","Required","Required"]
["",null,{"$f":"IF('TSA Input'!J2076=\"\",\"\",IF(OR('TSA Input'!J2076=\"Yes\",'TSA Input'!J2076=\"Contingent\"),'TSA Input'!B2076,\"Ineligible\"))","v":""},{"$f":"IF('TSA Input'!J2076=\"\",\"\",IF(OR('TSA Input'!J2076=\"Yes\",'TSA Input'!J2076=\"Contingent\"),'TSA Input'!I2076,\"\"))","v":""},{"$f":"IF('TSA Input'!J2076=\"\",\"\",IF(OR('TSA Input'!J2076=\"Yes\",'TSA Input'!J2076=\"Contingent\"),'TSA Input'!C2076,\"\"))","v":""},{"$f":"IF('TSA Input'!J2076=\"\",\"\",IF(OR('TSA Input'!J2076=\"Yes\",'TSA Input'!J2076=\"Contingent\"),'TSA Input'!D2076,\"\"))","v":""},{"$f":"IF('TSA Input'!J2076=\"\",\"\",IF(OR('TSA Input'!J2076=\"Yes\",'TSA Input'!J2076=\"Contingent\"),'TSA Input'!G2076,\"\"))","v":""},{"$f":"IF('TSA Input'!J2076=\"\",\"\",IF(OR('TSA Input'!J2076=\"Yes\",'TSA Input'!J2076=\"Contingent\"),'TSA Input'!F2076,\"\"))","v":""},"",{"$f":"IF('TSA Input'!J2076=\"\",\"\",IF(OR('TSA Input'!J2076=\"Yes\",'TSA Input'!J2076=\"Contingent\"),'TSA Input'!D2076,\"\"))","v":""},{"$f":"IF('TSA Input'!J2076=\"\",\"\",IF(OR('TSA Input'!J2076=\"Yes\",'TSA Input'!J2076=\"Contingent\"),'TSA Input'!G2076,\"\"))","v":""},{"$f":"IF('TSA Input'!J2076=\"\",\"\",IF(OR('TSA Input'!J2076=\"Yes\",'TSA Input'!J2076=\"Contingent\"),'TSA Input'!F2076,\"\"))","v":""},"","Required","Required"]
["",null,{"$f":"IF('TSA Input'!J2077=\"\",\"\",IF(OR('TSA Input'!J2077=\"Yes\",'TSA Input'!J2077=\"Contingent\"),'TSA Input'!B2077,\"Ineligible\"))","v":""},{"$f":"IF('TSA Input'!J2077=\"\",\"\",IF(OR('TSA Input'!J2077=\"Yes\",'TSA Input'!J2077=\"Contingent\"),'TSA Input'!I2077,\"\"))","v":""},{"$f":"IF('TSA Input'!J2077=\"\",\"\",IF(OR('TSA Input'!J2077=\"Yes\",'TSA Input'!J2077=\"Contingent\"),'TSA Input'!C2077,\"\"))","v":""},{"$f":"IF('TSA Input'!J2077=\"\",\"\",IF(OR('TSA Input'!J2077=\"Yes\",'TSA Input'!J2077=\"Contingent\"),'TSA Input'!D2077,\"\"))","v":""},{"$f":"IF('TSA Input'!J2077=\"\",\"\",IF(OR('TSA Input'!J2077=\"Yes\",'TSA Input'!J2077=\"Contingent\"),'TSA Input'!G2077,\"\"))","v":""},{"$f":"IF('TSA Input'!J2077=\"\",\"\",IF(OR('TSA Input'!J2077=\"Yes\",'TSA Input'!J2077=\"Contingent\"),'TSA Input'!F2077,\"\"))","v":""},"",{"$f":"IF('TSA Input'!J2077=\"\",\"\",IF(OR('TSA Input'!J2077=\"Yes\",'TSA Input'!J2077=\"Contingent\"),'TSA Input'!D2077,\"\"))","v":""},{"$f":"IF('TSA Input'!J2077=\"\",\"\",IF(OR('TSA Input'!J2077=\"Yes\",'TSA Input'!J2077=\"Contingent\"),'TSA Input'!G2077,\"\"))","v":""},{"$f":"IF('TSA Input'!J2077=\"\",\"\",IF(OR('TSA Input'!J2077=\"Yes\",'TSA Input'!J2077=\"Contingent\"),'TSA Input'!F2077,\"\"))","v":""},"","Required","Required"]
["",null,{"$f":"IF('TSA Input'!J2078=\"\",\"\",IF(OR('TSA Input'!J2078=\"Yes\",'TSA Input'!J2078=\"Contingent\"),'TSA Input'!B2078,\"Ineligible\"))","v":""},{"$f":"IF('TSA Input'!J2078=\"\",\"\",IF(OR('TSA Input'!J2078=\"Yes\",'TSA Input'!J2078=\"Contingent\"),'TSA Input'!I2078,\"\"))","v":""},{"$f":"IF('TSA Input'!J2078=\"\",\"\",IF(OR('TSA Input'!J2078=\"Yes\",'TSA Input'!J2078=\"Contingent\"),'TSA Input'!C2078,\"\"))","v":""},{"$f":"IF('TSA Input'!J2078=\"\",\"\",IF(OR('TSA Input'!J2078=\"Yes\",'TSA Input'!J2078=\"Contingent\"),'TSA Input'!D2078,\"\"))","v":""},{"$f":"IF('TSA Input'!J2078=\"\",\"\",IF(OR('TSA Input'!J2078=\"Yes\",'TSA Input'!J2078=\"Contingent\"),'TSA Input'!G2078,\"\"))","v":""},{"$f":"IF('TSA Input'!J2078=\"\",\"\",IF(OR('TSA Input'!J2078=\"Yes\",'TSA Input'!J2078=\"Contingent\"),'TSA Input'!F2078,\"\"))","v":""},"",{"$f":"IF('TSA Input'!J2078=\"\",\"\",IF(OR('TSA Input'!J2078=\"Yes\",'TSA Input'!J2078=\"Contingent\"),'TSA Input'!D2078,\"\"))","v":""},{"$f":"IF('TSA Input'!J2078=\"\",\"\",IF(OR('TSA Input'!J2078=\"Yes\",'TSA Input'!J2078=\"Contingent\"),'TSA Input'!G2078,\"\"))","v":""},{"$f":"IF('TSA Input'!J2078=\"\",\"\",IF(OR('TSA Input'!J2078=\"Yes\",'TSA Input'!J2078=\"Contingent\"),'TSA Input'!F2078,\"\"))","v":""},"","Required","Required"]
["",null,{"$f":"IF('TSA Input'!J2079=\"\",\"\",IF(OR('TSA Input'!J2079=\"Yes\",'TSA Input'!J2079=\"Contingent\"),'TSA Input'!B2079,\"Ineligible\"))","v":""},{"$f":"IF('TSA Input'!J2079=\"\",\"\",IF(OR('TSA Input'!J2079=\"Yes\",'TSA Input'!J2079=\"Contingent\"),'TSA Input'!I2079,\"\"))","v":""},{"$f":"IF('TSA Input'!J2079=\"\",\"\",IF(OR('TSA Input'!J2079=\"Yes\",'TSA Input'!J2079=\"Contingent\"),'TSA Input'!C2079,\"\"))","v":""},{"$f":"IF('TSA Input'!J2079=\"\",\"\",IF(OR('TSA Input'!J2079=\"Yes\",'TSA Input'!J2079=\"Contingent\"),'TSA Input'!D2079,\"\"))","v":""},{"$f":"IF('TSA Input'!J2079=\"\",\"\",IF(OR('TSA Input'!J2079=\"Yes\",'TSA Input'!J2079=\"Contingent\"),'TSA Input'!G2079,\"\"))","v":""},{"$f":"IF('TSA Input'!J2079=\"\",\"\",IF(OR('TSA Input'!J2079=\"Yes\",'TSA Input'!J2079=\"Contingent\"),'TSA Input'!F2079,\"\"))","v":""},"",{"$f":"IF('TSA Input'!J2079=\"\",\"\",IF(OR('TSA Input'!J2079=\"Yes\",'TSA Input'!J2079=\"Contingent\"),'TSA Input'!D2079,\"\"))","v":""},{"$f":"IF('TSA Input'!J2079=\"\",\"\",IF(OR('TSA Input'!J2079=\"Yes\",'TSA Input'!J2079=\"Contingent\"),'TSA Input'!G2079,\"\"))","v":""},{"$f":"IF('TSA Input'!J2079=\"\",\"\",IF(OR('TSA Input'!J2079=\"Yes\",'TSA Input'!J2079=\"Contingent\"),'TSA Input'!F2079,\"\"))","v":""},"","Required","Required"]
["",null,{"$f":"IF('TSA Input'!J2080=\"\",\"\",IF(OR('TSA Input'!J2080=\"Yes\",'TSA Input'!J2080=\"Contingent\"),'TSA Input'!B2080,\"Ineligible\"))","v":""},{"$f":"IF('TSA Input'!J2080=\"\",\"\",IF(OR('TSA Input'!J2080=\"Yes\",'TSA Input'!J2080=\"Contingent\"),'TSA Input'!I2080,\"\"))","v":""},{"$f":"IF('TSA Input'!J2080=\"\",\"\",IF(OR('TSA Input'!J2080=\"Yes\",'TSA Input'!J2080=\"Contingent\"),'TSA Input'!C2080,\"\"))","v":""},{"$f":"IF('TSA Input'!J2080=\"\",\"\",IF(OR('TSA Input'!J2080=\"Yes\",'TSA Input'!J2080=\"Contingent\"),'TSA Input'!D2080,\"\"))","v":""},{"$f":"IF('TSA Input'!J2080=\"\",\"\",IF(OR('TSA Input'!J2080=\"Yes\",'TSA Input'!J2080=\"Contingent\"),'TSA Input'!G2080,\"\"))","v":""},{"$f":"IF('TSA Input'!J2080=\"\",\"\",IF(OR('TSA Input'!J2080=\"Yes\",'TSA Input'!J2080=\"Contingent\"),'TSA Input'!F2080,\"\"))","v":""},"",{"$f":"IF('TSA Input'!J2080=\"\",\"\",IF(OR('TSA Input'!J2080=\"Yes\",'TSA Input'!J2080=\"Contingent\"),'TSA Input'!D2080,\"\"))","v":""},{"$f":"IF('TSA Input'!J2080=\"\",\"\",IF(OR('TSA Input'!J2080=\"Yes\",'TSA Input'!J2080=\"Contingent\"),'TSA Input'!G2080,\"\"))","v":""},{"$f":"IF('TSA Input'!J2080=\"\",\"\",IF(OR('TSA Input'!J2080=\"Yes\",'TSA Input'!J2080=\"Contingent\"),'TSA Input'!F2080,\"\"))","v":""},"","Required","Required"]
["",null,{"$f":"IF('TSA Input'!J2081=\"\",\"\",IF(OR('TSA Input'!J2081=\"Yes\",'TSA Input'!J2081=\"Contingent\"),'TSA Input'!B2081,\"Ineligible\"))","v":""},{"$f":"IF('TSA Input'!J2081=\"\",\"\",IF(OR('TSA Input'!J2081=\"Yes\",'TSA Input'!J2081=\"Contingent\"),'TSA Input'!I2081,\"\"))","v":""},{"$f":"IF('TSA Input'!J2081=\"\",\"\",IF(OR('TSA Input'!J2081=\"Yes\",'TSA Input'!J2081=\"Contingent\"),'TSA Input'!C2081,\"\"))","v":""},{"$f":"IF('TSA Input'!J2081=\"\",\"\",IF(OR('TSA Input'!J2081=\"Yes\",'TSA Input'!J2081=\"Contingent\"),'TSA Input'!D2081,\"\"))","v":""},{"$f":"IF('TSA Input'!J2081=\"\",\"\",IF(OR('TSA Input'!J2081=\"Yes\",'TSA Input'!J2081=\"Contingent\"),'TSA Input'!G2081,\"\"))","v":""},{"$f":"IF('TSA Input'!J2081=\"\",\"\",IF(OR('TSA Input'!J2081=\"Yes\",'TSA Input'!J2081=\"Contingent\"),'TSA Input'!F2081,\"\"))","v":""},"",{"$f":"IF('TSA Input'!J2081=\"\",\"\",IF(OR('TSA Input'!J2081=\"Yes\",'TSA Input'!J2081=\"Contingent\"),'TSA Input'!D2081,\"\"))","v":""},{"$f":"IF('TSA Input'!J2081=\"\",\"\",IF(OR('TSA Input'!J2081=\"Yes\",'TSA Input'!J2081=\"Contingent\"),'TSA Input'!G2081,\"\"))","v":""},{"$f":"IF('TSA Input'!J2081=\"\",\"\",IF(OR('TSA Input'!J2081=\"Yes\",'TSA Input'!J2081=\"Contingent\"),'TSA Input'!F2081,\"\"))","v":""},"","Required","Required"]
["",null,{"$f":"IF('TSA Input'!J2082=\"\",\"\",IF(OR('TSA Input'!J2082=\"Yes\",'TSA Input'!J2082=\"Contingent\"),'TSA Input'!B2082,\"Ineligible\"))","v":""},{"$f":"IF('TSA Input'!J2082=\"\",\"\",IF(OR('TSA Input'!J2082=\"Yes\",'TSA Input'!J2082=\"Contingent\"),'TSA Input'!I2082,\"\"))","v":""},{"$f":"IF('TSA Input'!J2082=\"\",\"\",IF(OR('TSA Input'!J2082=\"Yes\",'TSA Input'!J2082=\"Contingent\"),'TSA Input'!C2082,\"\"))","v":""},{"$f":"IF('TSA Input'!J2082=\"\",\"\",IF(OR('TSA Input'!J2082=\"Yes\",'TSA Input'!J2082=\"Contingent\"),'TSA Input'!D2082,\"\"))","v":""},{"$f":"IF('TSA Input'!J2082=\"\",\"\",IF(OR('TSA Input'!J2082=\"Yes\",'TSA Input'!J2082=\"Contingent\"),'TSA Input'!G2082,\"\"))","v":""},{"$f":"IF('TSA Input'!J2082=\"\",\"\",IF(OR('TSA Input'!J2082=\"Yes\",'TSA Input'!J2082=\"Contingent\"),'TSA Input'!F2082,\"\"))","v":""},"",{"$f":"IF('TSA Input'!J2082=\"\",\"\",IF(OR('TSA Input'!J2082=\"Yes\",'TSA Input'!J2082=\"Contingent\"),'TSA Input'!D2082,\"\"))","v":""},{"$f":"IF('TSA Input'!J2082=\"\",\"\",IF(OR('TSA Input'!J2082=\"Yes\",'TSA Input'!J2082=\"Contingent\"),'TSA Input'!G2082,\"\"))","v":""},{"$f":"IF('TSA Input'!J2082=\"\",\"\",IF(OR('TSA Input'!J2082=\"Yes\",'TSA Input'!J2082=\"Contingent\"),'TSA Input'!F2082,\"\"))","v":""},"","Required","Required"]
["",null,{"$f":"IF('TSA Input'!J2083=\"\",\"\",IF(OR('TSA Input'!J2083=\"Yes\",'TSA Input'!J2083=\"Contingent\"),'TSA Input'!B2083,\"Ineligible\"))","v":""},{"$f":"IF('TSA Input'!J2083=\"\",\"\",IF(OR('TSA Input'!J2083=\"Yes\",'TSA Input'!J2083=\"Contingent\"),'TSA Input'!I2083,\"\"))","v":""},{"$f":"IF('TSA Input'!J2083=\"\",\"\",IF(OR('TSA Input'!J2083=\"Yes\",'TSA Input'!J2083=\"Contingent\"),'TSA Input'!C2083,\"\"))","v":""},{"$f":"IF('TSA Input'!J2083=\"\",\"\",IF(OR('TSA Input'!J2083=\"Yes\",'TSA Input'!J2083=\"Contingent\"),'TSA Input'!D2083,\"\"))","v":""},{"$f":"IF('TSA Input'!J2083=\"\",\"\",IF(OR('TSA Input'!J2083=\"Yes\",'TSA Input'!J2083=\"Contingent\"),'TSA Input'!G2083,\"\"))","v":""},{"$f":"IF('TSA Input'!J2083=\"\",\"\",IF(OR('TSA Input'!J2083=\"Yes\",'TSA Input'!J2083=\"Contingent\"),'TSA Input'!F2083,\"\"))","v":""},"",{"$f":"IF('TSA Input'!J2083=\"\",\"\",IF(OR('TSA Input'!J2083=\"Yes\",'TSA Input'!J2083=\"Contingent\"),'TSA Input'!D2083,\"\"))","v":""},{"$f":"IF('TSA Input'!J2083=\"\",\"\",IF(OR('TSA Input'!J2083=\"Yes\",'TSA Input'!J2083=\"Contingent\"),'TSA Input'!G2083,\"\"))","v":""},{"$f":"IF('TSA Input'!J2083=\"\",\"\",IF(OR('TSA Input'!J2083=\"Yes\",'TSA Input'!J2083=\"Contingent\"),'TSA Input'!F2083,\"\"))","v":""},"","Required","Required"]
["",null,{"$f":"IF('TSA Input'!J2084=\"\",\"\",IF(OR('TSA Input'!J2084=\"Yes\",'TSA Input'!J2084=\"Contingent\"),'TSA Input'!B2084,\"Ineligible\"))","v":""},{"$f":"IF('TSA Input'!J2084=\"\",\"\",IF(OR('TSA Input'!J2084=\"Yes\",'TSA Input'!J2084=\"Contingent\"),'TSA Input'!I2084,\"\"))","v":""},{"$f":"IF('TSA Input'!J2084=\"\",\"\",IF(OR('TSA Input'!J2084=\"Yes\",'TSA Input'!J2084=\"Contingent\"),'TSA Input'!C2084,\"\"))","v":""},{"$f":"IF('TSA Input'!J2084=\"\",\"\",IF(OR('TSA Input'!J2084=\"Yes\",'TSA Input'!J2084=\"Contingent\"),'TSA Input'!D2084,\"\"))","v":""},{"$f":"IF('TSA Input'!J2084=\"\",\"\",IF(OR('TSA Input'!J2084=\"Yes\",'TSA Input'!J2084=\"Contingent\"),'TSA Input'!G2084,\"\"))","v":""},{"$f":"IF('TSA Input'!J2084=\"\",\"\",IF(OR('TSA Input'!J2084=\"Yes\",'TSA Input'!J2084=\"Contingent\"),'TSA Input'!F2084,\"\"))","v":""},"",{"$f":"IF('TSA Input'!J2084=\"\",\"\",IF(OR('TSA Input'!J2084=\"Yes\",'TSA Input'!J2084=\"Contingent\"),'TSA Input'!D2084,\"\"))","v":""},{"$f":"IF('TSA Input'!J2084=\"\",\"\",IF(OR('TSA Input'!J2084=\"Yes\",'TSA Input'!J2084=\"Contingent\"),'TSA Input'!G2084,\"\"))","v":""},{"$f":"IF('TSA Input'!J2084=\"\",\"\",IF(OR('TSA Input'!J2084=\"Yes\",'TSA Input'!J2084=\"Contingent\"),'TSA Input'!F2084,\"\"))","v":""},"","Required","Required"]
["",null,{"$f":"IF('TSA Input'!J2085=\"\",\"\",IF(OR('TSA Input'!J2085=\"Yes\",'TSA Input'!J2085=\"Contingent\"),'TSA Input'!B2085,\"Ineligible\"))","v":""},{"$f":"IF('TSA Input'!J2085=\"\",\"\",IF(OR('TSA Input'!J2085=\"Yes\",'TSA Input'!J2085=\"Contingent\"),'TSA Input'!I2085,\"\"))","v":""},{"$f":"IF('TSA Input'!J2085=\"\",\"\",IF(OR('TSA Input'!J2085=\"Yes\",'TSA Input'!J2085=\"Contingent\"),'TSA Input'!C2085,\"\"))","v":""},{"$f":"IF('TSA Input'!J2085=\"\",\"\",IF(OR('TSA Input'!J2085=\"Yes\",'TSA Input'!J2085=\"Contingent\"),'TSA Input'!D2085,\"\"))","v":""},{"$f":"IF('TSA Input'!J2085=\"\",\"\",IF(OR('TSA Input'!J2085=\"Yes\",'TSA Input'!J2085=\"Contingent\"),'TSA Input'!G2085,\"\"))","v":""},{"$f":"IF('TSA Input'!J2085=\"\",\"\",IF(OR('TSA Input'!J2085=\"Yes\",'TSA Input'!J2085=\"Contingent\"),'TSA Input'!F2085,\"\"))","v":""},"",{"$f":"IF('TSA Input'!J2085=\"\",\"\",IF(OR('TSA Input'!J2085=\"Yes\",'TSA Input'!J2085=\"Contingent\"),'TSA Input'!D2085,\"\"))","v":""},{"$f":"IF('TSA Input'!J2085=\"\",\"\",IF(OR('TSA Input'!J2085=\"Yes\",'TSA Input'!J2085=\"Contingent\"),'TSA Input'!G2085,\"\"))","v":""},{"$f":"IF('TSA Input'!J2085=\"\",\"\",IF(OR('TSA Input'!J2085=\"Yes\",'TSA Input'!J2085=\"Contingent\"),'TSA Input'!F2085,\"\"))","v":""},"","Required","Required"]
["",null,{"$f":"IF('TSA Input'!J2086=\"\",\"\",IF(OR('TSA Input'!J2086=\"Yes\",'TSA Input'!J2086=\"Contingent\"),'TSA Input'!B2086,\"Ineligible\"))","v":""},{"$f":"IF('TSA Input'!J2086=\"\",\"\",IF(OR('TSA Input'!J2086=\"Yes\",'TSA Input'!J2086=\"Contingent\"),'TSA Input'!I2086,\"\"))","v":""},{"$f":"IF('TSA Input'!J2086=\"\",\"\",IF(OR('TSA Input'!J2086=\"Yes\",'TSA Input'!J2086=\"Contingent\"),'TSA Input'!C2086,\"\"))","v":""},{"$f":"IF('TSA Input'!J2086=\"\",\"\",IF(OR('TSA Input'!J2086=\"Yes\",'TSA Input'!J2086=\"Contingent\"),'TSA Input'!D2086,\"\"))","v":""},{"$f":"IF('TSA Input'!J2086=\"\",\"\",IF(OR('TSA Input'!J2086=\"Yes\",'TSA Input'!J2086=\"Contingent\"),'TSA Input'!G2086,\"\"))","v":""},{"$f":"IF('TSA Input'!J2086=\"\",\"\",IF(OR('TSA Input'!J2086=\"Yes\",'TSA Input'!J2086=\"Contingent\"),'TSA Input'!F2086,\"\"))","v":""},"",{"$f":"IF('TSA Input'!J2086=\"\",\"\",IF(OR('TSA Input'!J2086=\"Yes\",'TSA Input'!J2086=\"Contingent\"),'TSA Input'!D2086,\"\"))","v":""},{"$f":"IF('TSA Input'!J2086=\"\",\"\",IF(OR('TSA Input'!J2086=\"Yes\",'TSA Input'!J2086=\"Contingent\"),'TSA Input'!G2086,\"\"))","v":""},{"$f":"IF('TSA Input'!J2086=\"\",\"\",IF(OR('TSA Input'!J2086=\"Yes\",'TSA Input'!J2086=\"Contingent\"),'TSA Input'!F2086,\"\"))","v":""},"","Required","Required"]
["",null,{"$f":"IF('TSA Input'!J2087=\"\",\"\",IF(OR('TSA Input'!J2087=\"Yes\",'TSA Input'!J2087=\"Contingent\"),'TSA Input'!B2087,\"Ineligible\"))","v":""},{"$f":"IF('TSA Input'!J2087=\"\",\"\",IF(OR('TSA Input'!J2087=\"Yes\",'TSA Input'!J2087=\"Contingent\"),'TSA Input'!I2087,\"\"))","v":""},{"$f":"IF('TSA Input'!J2087=\"\",\"\",IF(OR('TSA Input'!J2087=\"Yes\",'TSA Input'!J2087=\"Contingent\"),'TSA Input'!C2087,\"\"))","v":""},{"$f":"IF('TSA Input'!J2087=\"\",\"\",IF(OR('TSA Input'!J2087=\"Yes\",'TSA Input'!J2087=\"Contingent\"),'TSA Input'!D2087,\"\"))","v":""},{"$f":"IF('TSA Input'!J2087=\"\",\"\",IF(OR('TSA Input'!J2087=\"Yes\",'TSA Input'!J2087=\"Contingent\"),'TSA Input'!G2087,\"\"))","v":""},{"$f":"IF('TSA Input'!J2087=\"\",\"\",IF(OR('TSA Input'!J2087=\"Yes\",'TSA Input'!J2087=\"Contingent\"),'TSA Input'!F2087,\"\"))","v":""},"",{"$f":"IF('TSA Input'!J2087=\"\",\"\",IF(OR('TSA Input'!J2087=\"Yes\",'TSA Input'!J2087=\"Contingent\"),'TSA Input'!D2087,\"\"))","v":""},{"$f":"IF('TSA Input'!J2087=\"\",\"\",IF(OR('TSA Input'!J2087=\"Yes\",'TSA Input'!J2087=\"Contingent\"),'TSA Input'!G2087,\"\"))","v":""},{"$f":"IF('TSA Input'!J2087=\"\",\"\",IF(OR('TSA Input'!J2087=\"Yes\",'TSA Input'!J2087=\"Contingent\"),'TSA Input'!F2087,\"\"))","v":""},"","Required","Required"]
["",null,{"$f":"IF('TSA Input'!J2088=\"\",\"\",IF(OR('TSA Input'!J2088=\"Yes\",'TSA Input'!J2088=\"Contingent\"),'TSA Input'!B2088,\"Ineligible\"))","v":""},{"$f":"IF('TSA Input'!J2088=\"\",\"\",IF(OR('TSA Input'!J2088=\"Yes\",'TSA Input'!J2088=\"Contingent\"),'TSA Input'!I2088,\"\"))","v":""},{"$f":"IF('TSA Input'!J2088=\"\",\"\",IF(OR('TSA Input'!J2088=\"Yes\",'TSA Input'!J2088=\"Contingent\"),'TSA Input'!C2088,\"\"))","v":""},{"$f":"IF('TSA Input'!J2088=\"\",\"\",IF(OR('TSA Input'!J2088=\"Yes\",'TSA Input'!J2088=\"Contingent\"),'TSA Input'!D2088,\"\"))","v":""},{"$f":"IF('TSA Input'!J2088=\"\",\"\",IF(OR('TSA Input'!J2088=\"Yes\",'TSA Input'!J2088=\"Contingent\"),'TSA Input'!G2088,\"\"))","v":""},{"$f":"IF('TSA Input'!J2088=\"\",\"\",IF(OR('TSA Input'!J2088=\"Yes\",'TSA Input'!J2088=\"Contingent\"),'TSA Input'!F2088,\"\"))","v":""},"",{"$f":"IF('TSA Input'!J2088=\"\",\"\",IF(OR('TSA Input'!J2088=\"Yes\",'TSA Input'!J2088=\"Contingent\"),'TSA Input'!D2088,\"\"))","v":""},{"$f":"IF('TSA Input'!J2088=\"\",\"\",IF(OR('TSA Input'!J2088=\"Yes\",'TSA Input'!J2088=\"Contingent\"),'TSA Input'!G2088,\"\"))","v":""},{"$f":"IF('TSA Input'!J2088=\"\",\"\",IF(OR('TSA Input'!J2088=\"Yes\",'TSA Input'!J2088=\"Contingent\"),'TSA Input'!F2088,\"\"))","v":""},"","Required","Required"]
["",null,{"$f":"IF('TSA Input'!J2089=\"\",\"\",IF(OR('TSA Input'!J2089=\"Yes\",'TSA Input'!J2089=\"Contingent\"),'TSA Input'!B2089,\"Ineligible\"))","v":""},{"$f":"IF('TSA Input'!J2089=\"\",\"\",IF(OR('TSA Input'!J2089=\"Yes\",'TSA Input'!J2089=\"Contingent\"),'TSA Input'!I2089,\"\"))","v":""},{"$f":"IF('TSA Input'!J2089=\"\",\"\",IF(OR('TSA Input'!J2089=\"Yes\",'TSA Input'!J2089=\"Contingent\"),'TSA Input'!C2089,\"\"))","v":""},{"$f":"IF('TSA Input'!J2089=\"\",\"\",IF(OR('TSA Input'!J2089=\"Yes\",'TSA Input'!J2089=\"Contingent\"),'TSA Input'!D2089,\"\"))","v":""},{"$f":"IF('TSA Input'!J2089=\"\",\"\",IF(OR('TSA Input'!J2089=\"Yes\",'TSA Input'!J2089=\"Contingent\"),'TSA Input'!G2089,\"\"))","v":""},{"$f":"IF('TSA Input'!J2089=\"\",\"\",IF(OR('TSA Input'!J2089=\"Yes\",'TSA Input'!J2089=\"Contingent\"),'TSA Input'!F2089,\"\"))","v":""},"",{"$f":"IF('TSA Input'!J2089=\"\",\"\",IF(OR('TSA Input'!J2089=\"Yes\",'TSA Input'!J2089=\"Contingent\"),'TSA Input'!D2089,\"\"))","v":""},{"$f":"IF('TSA Input'!J2089=\"\",\"\",IF(OR('TSA Input'!J2089=\"Yes\",'TSA Input'!J2089=\"Contingent\"),'TSA Input'!G2089,\"\"))","v":""},{"$f":"IF('TSA Input'!J2089=\"\",\"\",IF(OR('TSA Input'!J2089=\"Yes\",'TSA Input'!J2089=\"Contingent\"),'TSA Input'!F2089,\"\"))","v":""},"","Required","Required"]
["",null,{"$f":"IF('TSA Input'!J2090=\"\",\"\",IF(OR('TSA Input'!J2090=\"Yes\",'TSA Input'!J2090=\"Contingent\"),'TSA Input'!B2090,\"Ineligible\"))","v":""},{"$f":"IF('TSA Input'!J2090=\"\",\"\",IF(OR('TSA Input'!J2090=\"Yes\",'TSA Input'!J2090=\"Contingent\"),'TSA Input'!I2090,\"\"))","v":""},{"$f":"IF('TSA Input'!J2090=\"\",\"\",IF(OR('TSA Input'!J2090=\"Yes\",'TSA Input'!J2090=\"Contingent\"),'TSA Input'!C2090,\"\"))","v":""},{"$f":"IF('TSA Input'!J2090=\"\",\"\",IF(OR('TSA Input'!J2090=\"Yes\",'TSA Input'!J2090=\"Contingent\"),'TSA Input'!D2090,\"\"))","v":""},{"$f":"IF('TSA Input'!J2090=\"\",\"\",IF(OR('TSA Input'!J2090=\"Yes\",'TSA Input'!J2090=\"Contingent\"),'TSA Input'!G2090,\"\"))","v":""},{"$f":"IF('TSA Input'!J2090=\"\",\"\",IF(OR('TSA Input'!J2090=\"Yes\",'TSA Input'!J2090=\"Contingent\"),'TSA Input'!F2090,\"\"))","v":""},"",{"$f":"IF('TSA Input'!J2090=\"\",\"\",IF(OR('TSA Input'!J2090=\"Yes\",'TSA Input'!J2090=\"Contingent\"),'TSA Input'!D2090,\"\"))","v":""},{"$f":"IF('TSA Input'!J2090=\"\",\"\",IF(OR('TSA Input'!J2090=\"Yes\",'TSA Input'!J2090=\"Contingent\"),'TSA Input'!G2090,\"\"))","v":""},{"$f":"IF('TSA Input'!J2090=\"\",\"\",IF(OR('TSA Input'!J2090=\"Yes\",'TSA Input'!J2090=\"Contingent\"),'TSA Input'!F2090,\"\"))","v":""},"","Required","Required"]
["",null,{"$f":"IF('TSA Input'!J2091=\"\",\"\",IF(OR('TSA Input'!J2091=\"Yes\",'TSA Input'!J2091=\"Contingent\"),'TSA Input'!B2091,\"Ineligible\"))","v":""},{"$f":"IF('TSA Input'!J2091=\"\",\"\",IF(OR('TSA Input'!J2091=\"Yes\",'TSA Input'!J2091=\"Contingent\"),'TSA Input'!I2091,\"\"))","v":""},{"$f":"IF('TSA Input'!J2091=\"\",\"\",IF(OR('TSA Input'!J2091=\"Yes\",'TSA Input'!J2091=\"Contingent\"),'TSA Input'!C2091,\"\"))","v":""},{"$f":"IF('TSA Input'!J2091=\"\",\"\",IF(OR('TSA Input'!J2091=\"Yes\",'TSA Input'!J2091=\"Contingent\"),'TSA Input'!D2091,\"\"))","v":""},{"$f":"IF('TSA Input'!J2091=\"\",\"\",IF(OR('TSA Input'!J2091=\"Yes\",'TSA Input'!J2091=\"Contingent\"),'TSA Input'!G2091,\"\"))","v":""},{"$f":"IF('TSA Input'!J2091=\"\",\"\",IF(OR('TSA Input'!J2091=\"Yes\",'TSA Input'!J2091=\"Contingent\"),'TSA Input'!F2091,\"\"))","v":""},"",{"$f":"IF('TSA Input'!J2091=\"\",\"\",IF(OR('TSA Input'!J2091=\"Yes\",'TSA Input'!J2091=\"Contingent\"),'TSA Input'!D2091,\"\"))","v":""},{"$f":"IF('TSA Input'!J2091=\"\",\"\",IF(OR('TSA Input'!J2091=\"Yes\",'TSA Input'!J2091=\"Contingent\"),'TSA Input'!G2091,\"\"))","v":""},{"$f":"IF('TSA Input'!J2091=\"\",\"\",IF(OR('TSA Input'!J2091=\"Yes\",'TSA Input'!J2091=\"Contingent\"),'TSA Input'!F2091,\"\"))","v":""},"","Required","Required"]
["",null,{"$f":"IF('TSA Input'!J2092=\"\",\"\",IF(OR('TSA Input'!J2092=\"Yes\",'TSA Input'!J2092=\"Contingent\"),'TSA Input'!B2092,\"Ineligible\"))","v":""},{"$f":"IF('TSA Input'!J2092=\"\",\"\",IF(OR('TSA Input'!J2092=\"Yes\",'TSA Input'!J2092=\"Contingent\"),'TSA Input'!I2092,\"\"))","v":""},{"$f":"IF('TSA Input'!J2092=\"\",\"\",IF(OR('TSA Input'!J2092=\"Yes\",'TSA Input'!J2092=\"Contingent\"),'TSA Input'!C2092,\"\"))","v":""},{"$f":"IF('TSA Input'!J2092=\"\",\"\",IF(OR('TSA Input'!J2092=\"Yes\",'TSA Input'!J2092=\"Contingent\"),'TSA Input'!D2092,\"\"))","v":""},{"$f":"IF('TSA Input'!J2092=\"\",\"\",IF(OR('TSA Input'!J2092=\"Yes\",'TSA Input'!J2092=\"Contingent\"),'TSA Input'!G2092,\"\"))","v":""},{"$f":"IF('TSA Input'!J2092=\"\",\"\",IF(OR('TSA Input'!J2092=\"Yes\",'TSA Input'!J2092=\"Contingent\"),'TSA Input'!F2092,\"\"))","v":""},"",{"$f":"IF('TSA Input'!J2092=\"\",\"\",IF(OR('TSA Input'!J2092=\"Yes\",'TSA Input'!J2092=\"Contingent\"),'TSA Input'!D2092,\"\"))","v":""},{"$f":"IF('TSA Input'!J2092=\"\",\"\",IF(OR('TSA Input'!J2092=\"Yes\",'TSA Input'!J2092=\"Contingent\"),'TSA Input'!G2092,\"\"))","v":""},{"$f":"IF('TSA Input'!J2092=\"\",\"\",IF(OR('TSA Input'!J2092=\"Yes\",'TSA Input'!J2092=\"Contingent\"),'TSA Input'!F2092,\"\"))","v":""},"","Required","Required"]
["",null,{"$f":"IF('TSA Input'!J2093=\"\",\"\",IF(OR('TSA Input'!J2093=\"Yes\",'TSA Input'!J2093=\"Contingent\"),'TSA Input'!B2093,\"Ineligible\"))","v":""},{"$f":"IF('TSA Input'!J2093=\"\",\"\",IF(OR('TSA Input'!J2093=\"Yes\",'TSA Input'!J2093=\"Contingent\"),'TSA Input'!I2093,\"\"))","v":""},{"$f":"IF('TSA Input'!J2093=\"\",\"\",IF(OR('TSA Input'!J2093=\"Yes\",'TSA Input'!J2093=\"Contingent\"),'TSA Input'!C2093,\"\"))","v":""},{"$f":"IF('TSA Input'!J2093=\"\",\"\",IF(OR('TSA Input'!J2093=\"Yes\",'TSA Input'!J2093=\"Contingent\"),'TSA Input'!D2093,\"\"))","v":""},{"$f":"IF('TSA Input'!J2093=\"\",\"\",IF(OR('TSA Input'!J2093=\"Yes\",'TSA Input'!J2093=\"Contingent\"),'TSA Input'!G2093,\"\"))","v":""},{"$f":"IF('TSA Input'!J2093=\"\",\"\",IF(OR('TSA Input'!J2093=\"Yes\",'TSA Input'!J2093=\"Contingent\"),'TSA Input'!F2093,\"\"))","v":""},"",{"$f":"IF('TSA Input'!J2093=\"\",\"\",IF(OR('TSA Input'!J2093=\"Yes\",'TSA Input'!J2093=\"Contingent\"),'TSA Input'!D2093,\"\"))","v":""},{"$f":"IF('TSA Input'!J2093=\"\",\"\",IF(OR('TSA Input'!J2093=\"Yes\",'TSA Input'!J2093=\"Contingent\"),'TSA Input'!G2093,\"\"))","v":""},{"$f":"IF('TSA Input'!J2093=\"\",\"\",IF(OR('TSA Input'!J2093=\"Yes\",'TSA Input'!J2093=\"Contingent\"),'TSA Input'!F2093,\"\"))","v":""},"","Required","Required"]
["",null,{"$f":"IF('TSA Input'!J2094=\"\",\"\",IF(OR('TSA Input'!J2094=\"Yes\",'TSA Input'!J2094=\"Contingent\"),'TSA Input'!B2094,\"Ineligible\"))","v":""},{"$f":"IF('TSA Input'!J2094=\"\",\"\",IF(OR('TSA Input'!J2094=\"Yes\",'TSA Input'!J2094=\"Contingent\"),'TSA Input'!I2094,\"\"))","v":""},{"$f":"IF('TSA Input'!J2094=\"\",\"\",IF(OR('TSA Input'!J2094=\"Yes\",'TSA Input'!J2094=\"Contingent\"),'TSA Input'!C2094,\"\"))","v":""},{"$f":"IF('TSA Input'!J2094=\"\",\"\",IF(OR('TSA Input'!J2094=\"Yes\",'TSA Input'!J2094=\"Contingent\"),'TSA Input'!D2094,\"\"))","v":""},{"$f":"IF('TSA Input'!J2094=\"\",\"\",IF(OR('TSA Input'!J2094=\"Yes\",'TSA Input'!J2094=\"Contingent\"),'TSA Input'!G2094,\"\"))","v":""},{"$f":"IF('TSA Input'!J2094=\"\",\"\",IF(OR('TSA Input'!J2094=\"Yes\",'TSA Input'!J2094=\"Contingent\"),'TSA Input'!F2094,\"\"))","v":""},"",{"$f":"IF('TSA Input'!J2094=\"\",\"\",IF(OR('TSA Input'!J2094=\"Yes\",'TSA Input'!J2094=\"Contingent\"),'TSA Input'!D2094,\"\"))","v":""},{"$f":"IF('TSA Input'!J2094=\"\",\"\",IF(OR('TSA Input'!J2094=\"Yes\",'TSA Input'!J2094=\"Contingent\"),'TSA Input'!G2094,\"\"))","v":""},{"$f":"IF('TSA Input'!J2094=\"\",\"\",IF(OR('TSA Input'!J2094=\"Yes\",'TSA Input'!J2094=\"Contingent\"),'TSA Input'!F2094,\"\"))","v":""},"","Required","Required"]
["",null,{"$f":"IF('TSA Input'!J2095=\"\",\"\",IF(OR('TSA Input'!J2095=\"Yes\",'TSA Input'!J2095=\"Contingent\"),'TSA Input'!B2095,\"Ineligible\"))","v":""},{"$f":"IF('TSA Input'!J2095=\"\",\"\",IF(OR('TSA Input'!J2095=\"Yes\",'TSA Input'!J2095=\"Contingent\"),'TSA Input'!I2095,\"\"))","v":""},{"$f":"IF('TSA Input'!J2095=\"\",\"\",IF(OR('TSA Input'!J2095=\"Yes\",'TSA Input'!J2095=\"Contingent\"),'TSA Input'!C2095,\"\"))","v":""},{"$f":"IF('TSA Input'!J2095=\"\",\"\",IF(OR('TSA Input'!J2095=\"Yes\",'TSA Input'!J2095=\"Contingent\"),'TSA Input'!D2095,\"\"))","v":""},{"$f":"IF('TSA Input'!J2095=\"\",\"\",IF(OR('TSA Input'!J2095=\"Yes\",'TSA Input'!J2095=\"Contingent\"),'TSA Input'!G2095,\"\"))","v":""},{"$f":"IF('TSA Input'!J2095=\"\",\"\",IF(OR('TSA Input'!J2095=\"Yes\",'TSA Input'!J2095=\"Contingent\"),'TSA Input'!F2095,\"\"))","v":""},"",{"$f":"IF('TSA Input'!J2095=\"\",\"\",IF(OR('TSA Input'!J2095=\"Yes\",'TSA Input'!J2095=\"Contingent\"),'TSA Input'!D2095,\"\"))","v":""},{"$f":"IF('TSA Input'!J2095=\"\",\"\",IF(OR('TSA Input'!J2095=\"Yes\",'TSA Input'!J2095=\"Contingent\"),'TSA Input'!G2095,\"\"))","v":""},{"$f":"IF('TSA Input'!J2095=\"\",\"\",IF(OR('TSA Input'!J2095=\"Yes\",'TSA Input'!J2095=\"Contingent\"),'TSA Input'!F2095,\"\"))","v":""},"","Required","Required"]
["",null,{"$f":"IF('TSA Input'!J2096=\"\",\"\",IF(OR('TSA Input'!J2096=\"Yes\",'TSA Input'!J2096=\"Contingent\"),'TSA Input'!B2096,\"Ineligible\"))","v":""},{"$f":"IF('TSA Input'!J2096=\"\",\"\",IF(OR('TSA Input'!J2096=\"Yes\",'TSA Input'!J2096=\"Contingent\"),'TSA Input'!I2096,\"\"))","v":""},{"$f":"IF('TSA Input'!J2096=\"\",\"\",IF(OR('TSA Input'!J2096=\"Yes\",'TSA Input'!J2096=\"Contingent\"),'TSA Input'!C2096,\"\"))","v":""},{"$f":"IF('TSA Input'!J2096=\"\",\"\",IF(OR('TSA Input'!J2096=\"Yes\",'TSA Input'!J2096=\"Contingent\"),'TSA Input'!D2096,\"\"))","v":""},{"$f":"IF('TSA Input'!J2096=\"\",\"\",IF(OR('TSA Input'!J2096=\"Yes\",'TSA Input'!J2096=\"Contingent\"),'TSA Input'!G2096,\"\"))","v":""},{"$f":"IF('TSA Input'!J2096=\"\",\"\",IF(OR('TSA Input'!J2096=\"Yes\",'TSA Input'!J2096=\"Contingent\"),'TSA Input'!F2096,\"\"))","v":""},"",{"$f":"IF('TSA Input'!J2096=\"\",\"\",IF(OR('TSA Input'!J2096=\"Yes\",'TSA Input'!J2096=\"Contingent\"),'TSA Input'!D2096,\"\"))","v":""},{"$f":"IF('TSA Input'!J2096=\"\",\"\",IF(OR('TSA Input'!J2096=\"Yes\",'TSA Input'!J2096=\"Contingent\"),'TSA Input'!G2096,\"\"))","v":""},{"$f":"IF('TSA Input'!J2096=\"\",\"\",IF(OR('TSA Input'!J2096=\"Yes\",'TSA Input'!J2096=\"Contingent\"),'TSA Input'!F2096,\"\"))","v":""},"","Required","Required"]
["",null,{"$f":"IF('TSA Input'!J2097=\"\",\"\",IF(OR('TSA Input'!J2097=\"Yes\",'TSA Input'!J2097=\"Contingent\"),'TSA Input'!B2097,\"Ineligible\"))","v":""},{"$f":"IF('TSA Input'!J2097=\"\",\"\",IF(OR('TSA Input'!J2097=\"Yes\",'TSA Input'!J2097=\"Contingent\"),'TSA Input'!I2097,\"\"))","v":""},{"$f":"IF('TSA Input'!J2097=\"\",\"\",IF(OR('TSA Input'!J2097=\"Yes\",'TSA Input'!J2097=\"Contingent\"),'TSA Input'!C2097,\"\"))","v":""},{"$f":"IF('TSA Input'!J2097=\"\",\"\",IF(OR('TSA Input'!J2097=\"Yes\",'TSA Input'!J2097=\"Contingent\"),'TSA Input'!D2097,\"\"))","v":""},{"$f":"IF('TSA Input'!J2097=\"\",\"\",IF(OR('TSA Input'!J2097=\"Yes\",'TSA Input'!J2097=\"Contingent\"),'TSA Input'!G2097,\"\"))","v":""},{"$f":"IF('TSA Input'!J2097=\"\",\"\",IF(OR('TSA Input'!J2097=\"Yes\",'TSA Input'!J2097=\"Contingent\"),'TSA Input'!F2097,\"\"))","v":""},"",{"$f":"IF('TSA Input'!J2097=\"\",\"\",IF(OR('TSA Input'!J2097=\"Yes\",'TSA Input'!J2097=\"Contingent\"),'TSA Input'!D2097,\"\"))","v":""},{"$f":"IF('TSA Input'!J2097=\"\",\"\",IF(OR('TSA Input'!J2097=\"Yes\",'TSA Input'!J2097=\"Contingent\"),'TSA Input'!G2097,\"\"))","v":""},{"$f":"IF('TSA Input'!J2097=\"\",\"\",IF(OR('TSA Input'!J2097=\"Yes\",'TSA Input'!J2097=\"Contingent\"),'TSA Input'!F2097,\"\"))","v":""},"","Required","Required"]
["",null,{"$f":"IF('TSA Input'!J2098=\"\",\"\",IF(OR('TSA Input'!J2098=\"Yes\",'TSA Input'!J2098=\"Contingent\"),'TSA Input'!B2098,\"Ineligible\"))","v":""},{"$f":"IF('TSA Input'!J2098=\"\",\"\",IF(OR('TSA Input'!J2098=\"Yes\",'TSA Input'!J2098=\"Contingent\"),'TSA Input'!I2098,\"\"))","v":""},{"$f":"IF('TSA Input'!J2098=\"\",\"\",IF(OR('TSA Input'!J2098=\"Yes\",'TSA Input'!J2098=\"Contingent\"),'TSA Input'!C2098,\"\"))","v":""},{"$f":"IF('TSA Input'!J2098=\"\",\"\",IF(OR('TSA Input'!J2098=\"Yes\",'TSA Input'!J2098=\"Contingent\"),'TSA Input'!D2098,\"\"))","v":""},{"$f":"IF('TSA Input'!J2098=\"\",\"\",IF(OR('TSA Input'!J2098=\"Yes\",'TSA Input'!J2098=\"Contingent\"),'TSA Input'!G2098,\"\"))","v":""},{"$f":"IF('TSA Input'!J2098=\"\",\"\",IF(OR('TSA Input'!J2098=\"Yes\",'TSA Input'!J2098=\"Contingent\"),'TSA Input'!F2098,\"\"))","v":""},"",{"$f":"IF('TSA Input'!J2098=\"\",\"\",IF(OR('TSA Input'!J2098=\"Yes\",'TSA Input'!J2098=\"Contingent\"),'TSA Input'!D2098,\"\"))","v":""},{"$f":"IF('TSA Input'!J2098=\"\",\"\",IF(OR('TSA Input'!J2098=\"Yes\",'TSA Input'!J2098=\"Contingent\"),'TSA Input'!G2098,\"\"))","v":""},{"$f":"IF('TSA Input'!J2098=\"\",\"\",IF(OR('TSA Input'!J2098=\"Yes\",'TSA Input'!J2098=\"Contingent\"),'TSA Input'!F2098,\"\"))","v":""},"","Required","Required"]
["",null,{"$f":"IF('TSA Input'!J2099=\"\",\"\",IF(OR('TSA Input'!J2099=\"Yes\",'TSA Input'!J2099=\"Contingent\"),'TSA Input'!B2099,\"Ineligible\"))","v":""},{"$f":"IF('TSA Input'!J2099=\"\",\"\",IF(OR('TSA Input'!J2099=\"Yes\",'TSA Input'!J2099=\"Contingent\"),'TSA Input'!I2099,\"\"))","v":""},{"$f":"IF('TSA Input'!J2099=\"\",\"\",IF(OR('TSA Input'!J2099=\"Yes\",'TSA Input'!J2099=\"Contingent\"),'TSA Input'!C2099,\"\"))","v":""},{"$f":"IF('TSA Input'!J2099=\"\",\"\",IF(OR('TSA Input'!J2099=\"Yes\",'TSA Input'!J2099=\"Contingent\"),'TSA Input'!D2099,\"\"))","v":""},{"$f":"IF('TSA Input'!J2099=\"\",\"\",IF(OR('TSA Input'!J2099=\"Yes\",'TSA Input'!J2099=\"Contingent\"),'TSA Input'!G2099,\"\"))","v":""},{"$f":"IF('TSA Input'!J2099=\"\",\"\",IF(OR('TSA Input'!J2099=\"Yes\",'TSA Input'!J2099=\"Contingent\"),'TSA Input'!F2099,\"\"))","v":""},"",{"$f":"IF('TSA Input'!J2099=\"\",\"\",IF(OR('TSA Input'!J2099=\"Yes\",'TSA Input'!J2099=\"Contingent\"),'TSA Input'!D2099,\"\"))","v":""},{"$f":"IF('TSA Input'!J2099=\"\",\"\",IF(OR('TSA Input'!J2099=\"Yes\",'TSA Input'!J2099=\"Contingent\"),'TSA Input'!G2099,\"\"))","v":""},{"$f":"IF('TSA Input'!J2099=\"\",\"\",IF(OR('TSA Input'!J2099=\"Yes\",'TSA Input'!J2099=\"Contingent\"),'TSA Input'!F2099,\"\"))","v":""},"","Required","Required"]
["",null,{"$f":"IF('TSA Input'!J2100=\"\",\"\",IF(OR('TSA Input'!J2100=\"Yes\",'TSA Input'!J2100=\"Contingent\"),'TSA Input'!B2100,\"Ineligible\"))","v":""},{"$f":"IF('TSA Input'!J2100=\"\",\"\",IF(OR('TSA Input'!J2100=\"Yes\",'TSA Input'!J2100=\"Contingent\"),'TSA Input'!I2100,\"\"))","v":""},{"$f":"IF('TSA Input'!J2100=\"\",\"\",IF(OR('TSA Input'!J2100=\"Yes\",'TSA Input'!J2100=\"Contingent\"),'TSA Input'!C2100,\"\"))","v":""},{"$f":"IF('TSA Input'!J2100=\"\",\"\",IF(OR('TSA Input'!J2100=\"Yes\",'TSA Input'!J2100=\"Contingent\"),'TSA Input'!D2100,\"\"))","v":""},{"$f":"IF('TSA Input'!J2100=\"\",\"\",IF(OR('TSA Input'!J2100=\"Yes\",'TSA Input'!J2100=\"Contingent\"),'TSA Input'!G2100,\"\"))","v":""},{"$f":"IF('TSA Input'!J2100=\"\",\"\",IF(OR('TSA Input'!J2100=\"Yes\",'TSA Input'!J2100=\"Contingent\"),'TSA Input'!F2100,\"\"))","v":""},"",{"$f":"IF('TSA Input'!J2100=\"\",\"\",IF(OR('TSA Input'!J2100=\"Yes\",'TSA Input'!J2100=\"Contingent\"),'TSA Input'!D2100,\"\"))","v":""},{"$f":"IF('TSA Input'!J2100=\"\",\"\",IF(OR('TSA Input'!J2100=\"Yes\",'TSA Input'!J2100=\"Contingent\"),'TSA Input'!G2100,\"\"))","v":""},{"$f":"IF('TSA Input'!J2100=\"\",\"\",IF(OR('TSA Input'!J2100=\"Yes\",'TSA Input'!J2100=\"Contingent\"),'TSA Input'!F2100,\"\"))","v":""},"","Required","Required"]
["",null,{"$f":"IF('TSA Input'!J2101=\"\",\"\",IF(OR('TSA Input'!J2101=\"Yes\",'TSA Input'!J2101=\"Contingent\"),'TSA Input'!B2101,\"Ineligible\"))","v":""},{"$f":"IF('TSA Input'!J2101=\"\",\"\",IF(OR('TSA Input'!J2101=\"Yes\",'TSA Input'!J2101=\"Contingent\"),'TSA Input'!I2101,\"\"))","v":""},{"$f":"IF('TSA Input'!J2101=\"\",\"\",IF(OR('TSA Input'!J2101=\"Yes\",'TSA Input'!J2101=\"Contingent\"),'TSA Input'!C2101,\"\"))","v":""},{"$f":"IF('TSA Input'!J2101=\"\",\"\",IF(OR('TSA Input'!J2101=\"Yes\",'TSA Input'!J2101=\"Contingent\"),'TSA Input'!D2101,\"\"))","v":""},{"$f":"IF('TSA Input'!J2101=\"\",\"\",IF(OR('TSA Input'!J2101=\"Yes\",'TSA Input'!J2101=\"Contingent\"),'TSA Input'!G2101,\"\"))","v":""},{"$f":"IF('TSA Input'!J2101=\"\",\"\",IF(OR('TSA Input'!J2101=\"Yes\",'TSA Input'!J2101=\"Contingent\"),'TSA Input'!F2101,\"\"))","v":""},"",{"$f":"IF('TSA Input'!J2101=\"\",\"\",IF(OR('TSA Input'!J2101=\"Yes\",'TSA Input'!J2101=\"Contingent\"),'TSA Input'!D2101,\"\"))","v":""},{"$f":"IF('TSA Input'!J2101=\"\",\"\",IF(OR('TSA Input'!J2101=\"Yes\",'TSA Input'!J2101=\"Contingent\"),'TSA Input'!G2101,\"\"))","v":""},{"$f":"IF('TSA Input'!J2101=\"\",\"\",IF(OR('TSA Input'!J2101=\"Yes\",'TSA Input'!J2101=\"Contingent\"),'TSA Input'!F2101,\"\"))","v":""},"","Required","Required"]
["",null,{"$f":"IF('TSA Input'!J2102=\"\",\"\",IF(OR('TSA Input'!J2102=\"Yes\",'TSA Input'!J2102=\"Contingent\"),'TSA Input'!B2102,\"Ineligible\"))","v":""},{"$f":"IF('TSA Input'!J2102=\"\",\"\",IF(OR('TSA Input'!J2102=\"Yes\",'TSA Input'!J2102=\"Contingent\"),'TSA Input'!I2102,\"\"))","v":""},{"$f":"IF('TSA Input'!J2102=\"\",\"\",IF(OR('TSA Input'!J2102=\"Yes\",'TSA Input'!J2102=\"Contingent\"),'TSA Input'!C2102,\"\"))","v":""},{"$f":"IF('TSA Input'!J2102=\"\",\"\",IF(OR('TSA Input'!J2102=\"Yes\",'TSA Input'!J2102=\"Contingent\"),'TSA Input'!D2102,\"\"))","v":""},{"$f":"IF('TSA Input'!J2102=\"\",\"\",IF(OR('TSA Input'!J2102=\"Yes\",'TSA Input'!J2102=\"Contingent\"),'TSA Input'!G2102,\"\"))","v":""},{"$f":"IF('TSA Input'!J2102=\"\",\"\",IF(OR('TSA Input'!J2102=\"Yes\",'TSA Input'!J2102=\"Contingent\"),'TSA Input'!F2102,\"\"))","v":""},"",{"$f":"IF('TSA Input'!J2102=\"\",\"\",IF(OR('TSA Input'!J2102=\"Yes\",'TSA Input'!J2102=\"Contingent\"),'TSA Input'!D2102,\"\"))","v":""},{"$f":"IF('TSA Input'!J2102=\"\",\"\",IF(OR('TSA Input'!J2102=\"Yes\",'TSA Input'!J2102=\"Contingent\"),'TSA Input'!G2102,\"\"))","v":""},{"$f":"IF('TSA Input'!J2102=\"\",\"\",IF(OR('TSA Input'!J2102=\"Yes\",'TSA Input'!J2102=\"Contingent\"),'TSA Input'!F2102,\"\"))","v":""},"","Required","Required"]
["",null,{"$f":"IF('TSA Input'!J2103=\"\",\"\",IF(OR('TSA Input'!J2103=\"Yes\",'TSA Input'!J2103=\"Contingent\"),'TSA Input'!B2103,\"Ineligible\"))","v":""},{"$f":"IF('TSA Input'!J2103=\"\",\"\",IF(OR('TSA Input'!J2103=\"Yes\",'TSA Input'!J2103=\"Contingent\"),'TSA Input'!I2103,\"\"))","v":""},{"$f":"IF('TSA Input'!J2103=\"\",\"\",IF(OR('TSA Input'!J2103=\"Yes\",'TSA Input'!J2103=\"Contingent\"),'TSA Input'!C2103,\"\"))","v":""},{"$f":"IF('TSA Input'!J2103=\"\",\"\",IF(OR('TSA Input'!J2103=\"Yes\",'TSA Input'!J2103=\"Contingent\"),'TSA Input'!D2103,\"\"))","v":""},{"$f":"IF('TSA Input'!J2103=\"\",\"\",IF(OR('TSA Input'!J2103=\"Yes\",'TSA Input'!J2103=\"Contingent\"),'TSA Input'!G2103,\"\"))","v":""},{"$f":"IF('TSA Input'!J2103=\"\",\"\",IF(OR('TSA Input'!J2103=\"Yes\",'TSA Input'!J2103=\"Contingent\"),'TSA Input'!F2103,\"\"))","v":""},"",{"$f":"IF('TSA Input'!J2103=\"\",\"\",IF(OR('TSA Input'!J2103=\"Yes\",'TSA Input'!J2103=\"Contingent\"),'TSA Input'!D2103,\"\"))","v":""},{"$f":"IF('TSA Input'!J2103=\"\",\"\",IF(OR('TSA Input'!J2103=\"Yes\",'TSA Input'!J2103=\"Contingent\"),'TSA Input'!G2103,\"\"))","v":""},{"$f":"IF('TSA Input'!J2103=\"\",\"\",IF(OR('TSA Input'!J2103=\"Yes\",'TSA Input'!J2103=\"Contingent\"),'TSA Input'!F2103,\"\"))","v":""},"","Required","Required"]
["",null,{"$f":"IF('TSA Input'!J2104=\"\",\"\",IF(OR('TSA Input'!J2104=\"Yes\",'TSA Input'!J2104=\"Contingent\"),'TSA Input'!B2104,\"Ineligible\"))","v":""},{"$f":"IF('TSA Input'!J2104=\"\",\"\",IF(OR('TSA Input'!J2104=\"Yes\",'TSA Input'!J2104=\"Contingent\"),'TSA Input'!I2104,\"\"))","v":""},{"$f":"IF('TSA Input'!J2104=\"\",\"\",IF(OR('TSA Input'!J2104=\"Yes\",'TSA Input'!J2104=\"Contingent\"),'TSA Input'!C2104,\"\"))","v":""},{"$f":"IF('TSA Input'!J2104=\"\",\"\",IF(OR('TSA Input'!J2104=\"Yes\",'TSA Input'!J2104=\"Contingent\"),'TSA Input'!D2104,\"\"))","v":""},{"$f":"IF('TSA Input'!J2104=\"\",\"\",IF(OR('TSA Input'!J2104=\"Yes\",'TSA Input'!J2104=\"Contingent\"),'TSA Input'!G2104,\"\"))","v":""},{"$f":"IF('TSA Input'!J2104=\"\",\"\",IF(OR('TSA Input'!J2104=\"Yes\",'TSA Input'!J2104=\"Contingent\"),'TSA Input'!F2104,\"\"))","v":""},"",{"$f":"IF('TSA Input'!J2104=\"\",\"\",IF(OR('TSA Input'!J2104=\"Yes\",'TSA Input'!J2104=\"Contingent\"),'TSA Input'!D2104,\"\"))","v":""},{"$f":"IF('TSA Input'!J2104=\"\",\"\",IF(OR('TSA Input'!J2104=\"Yes\",'TSA Input'!J2104=\"Contingent\"),'TSA Input'!G2104,\"\"))","v":""},{"$f":"IF('TSA Input'!J2104=\"\",\"\",IF(OR('TSA Input'!J2104=\"Yes\",'TSA Input'!J2104=\"Contingent\"),'TSA Input'!F2104,\"\"))","v":""},"","Required","Required"]
["",null,{"$f":"IF('TSA Input'!J2105=\"\",\"\",IF(OR('TSA Input'!J2105=\"Yes\",'TSA Input'!J2105=\"Contingent\"),'TSA Input'!B2105,\"Ineligible\"))","v":""},{"$f":"IF('TSA Input'!J2105=\"\",\"\",IF(OR('TSA Input'!J2105=\"Yes\",'TSA Input'!J2105=\"Contingent\"),'TSA Input'!I2105,\"\"))","v":""},{"$f":"IF('TSA Input'!J2105=\"\",\"\",IF(OR('TSA Input'!J2105=\"Yes\",'TSA Input'!J2105=\"Contingent\"),'TSA Input'!C2105,\"\"))","v":""},{"$f":"IF('TSA Input'!J2105=\"\",\"\",IF(OR('TSA Input'!J2105=\"Yes\",'TSA Input'!J2105=\"Contingent\"),'TSA Input'!D2105,\"\"))","v":""},{"$f":"IF('TSA Input'!J2105=\"\",\"\",IF(OR('TSA Input'!J2105=\"Yes\",'TSA Input'!J2105=\"Contingent\"),'TSA Input'!G2105,\"\"))","v":""},{"$f":"IF('TSA Input'!J2105=\"\",\"\",IF(OR('TSA Input'!J2105=\"Yes\",'TSA Input'!J2105=\"Contingent\"),'TSA Input'!F2105,\"\"))","v":""},"",{"$f":"IF('TSA Input'!J2105=\"\",\"\",IF(OR('TSA Input'!J2105=\"Yes\",'TSA Input'!J2105=\"Contingent\"),'TSA Input'!D2105,\"\"))","v":""},{"$f":"IF('TSA Input'!J2105=\"\",\"\",IF(OR('TSA Input'!J2105=\"Yes\",'TSA Input'!J2105=\"Contingent\"),'TSA Input'!G2105,\"\"))","v":""},{"$f":"IF('TSA Input'!J2105=\"\",\"\",IF(OR('TSA Input'!J2105=\"Yes\",'TSA Input'!J2105=\"Contingent\"),'TSA Input'!F2105,\"\"))","v":""},"","Required","Required"]
["",null,{"$f":"IF('TSA Input'!J2106=\"\",\"\",IF(OR('TSA Input'!J2106=\"Yes\",'TSA Input'!J2106=\"Contingent\"),'TSA Input'!B2106,\"Ineligible\"))","v":""},{"$f":"IF('TSA Input'!J2106=\"\",\"\",IF(OR('TSA Input'!J2106=\"Yes\",'TSA Input'!J2106=\"Contingent\"),'TSA Input'!I2106,\"\"))","v":""},{"$f":"IF('TSA Input'!J2106=\"\",\"\",IF(OR('TSA Input'!J2106=\"Yes\",'TSA Input'!J2106=\"Contingent\"),'TSA Input'!C2106,\"\"))","v":""},{"$f":"IF('TSA Input'!J2106=\"\",\"\",IF(OR('TSA Input'!J2106=\"Yes\",'TSA Input'!J2106=\"Contingent\"),'TSA Input'!D2106,\"\"))","v":""},{"$f":"IF('TSA Input'!J2106=\"\",\"\",IF(OR('TSA Input'!J2106=\"Yes\",'TSA Input'!J2106=\"Contingent\"),'TSA Input'!G2106,\"\"))","v":""},{"$f":"IF('TSA Input'!J2106=\"\",\"\",IF(OR('TSA Input'!J2106=\"Yes\",'TSA Input'!J2106=\"Contingent\"),'TSA Input'!F2106,\"\"))","v":""},"",{"$f":"IF('TSA Input'!J2106=\"\",\"\",IF(OR('TSA Input'!J2106=\"Yes\",'TSA Input'!J2106=\"Contingent\"),'TSA Input'!D2106,\"\"))","v":""},{"$f":"IF('TSA Input'!J2106=\"\",\"\",IF(OR('TSA Input'!J2106=\"Yes\",'TSA Input'!J2106=\"Contingent\"),'TSA Input'!G2106,\"\"))","v":""},{"$f":"IF('TSA Input'!J2106=\"\",\"\",IF(OR('TSA Input'!J2106=\"Yes\",'TSA Input'!J2106=\"Contingent\"),'TSA Input'!F2106,\"\"))","v":""},"","Required","Required"]
["",null,{"$f":"IF('TSA Input'!J2107=\"\",\"\",IF(OR('TSA Input'!J2107=\"Yes\",'TSA Input'!J2107=\"Contingent\"),'TSA Input'!B2107,\"Ineligible\"))","v":""},{"$f":"IF('TSA Input'!J2107=\"\",\"\",IF(OR('TSA Input'!J2107=\"Yes\",'TSA Input'!J2107=\"Contingent\"),'TSA Input'!I2107,\"\"))","v":""},{"$f":"IF('TSA Input'!J2107=\"\",\"\",IF(OR('TSA Input'!J2107=\"Yes\",'TSA Input'!J2107=\"Contingent\"),'TSA Input'!C2107,\"\"))","v":""},{"$f":"IF('TSA Input'!J2107=\"\",\"\",IF(OR('TSA Input'!J2107=\"Yes\",'TSA Input'!J2107=\"Contingent\"),'TSA Input'!D2107,\"\"))","v":""},{"$f":"IF('TSA Input'!J2107=\"\",\"\",IF(OR('TSA Input'!J2107=\"Yes\",'TSA Input'!J2107=\"Contingent\"),'TSA Input'!G2107,\"\"))","v":""},{"$f":"IF('TSA Input'!J2107=\"\",\"\",IF(OR('TSA Input'!J2107=\"Yes\",'TSA Input'!J2107=\"Contingent\"),'TSA Input'!F2107,\"\"))","v":""},"",{"$f":"IF('TSA Input'!J2107=\"\",\"\",IF(OR('TSA Input'!J2107=\"Yes\",'TSA Input'!J2107=\"Contingent\"),'TSA Input'!D2107,\"\"))","v":""},{"$f":"IF('TSA Input'!J2107=\"\",\"\",IF(OR('TSA Input'!J2107=\"Yes\",'TSA Input'!J2107=\"Contingent\"),'TSA Input'!G2107,\"\"))","v":""},{"$f":"IF('TSA Input'!J2107=\"\",\"\",IF(OR('TSA Input'!J2107=\"Yes\",'TSA Input'!J2107=\"Contingent\"),'TSA Input'!F2107,\"\"))","v":""},"","Required","Required"]
["",null,{"$f":"IF('TSA Input'!J2108=\"\",\"\",IF(OR('TSA Input'!J2108=\"Yes\",'TSA Input'!J2108=\"Contingent\"),'TSA Input'!B2108,\"Ineligible\"))","v":""},{"$f":"IF('TSA Input'!J2108=\"\",\"\",IF(OR('TSA Input'!J2108=\"Yes\",'TSA Input'!J2108=\"Contingent\"),'TSA Input'!I2108,\"\"))","v":""},{"$f":"IF('TSA Input'!J2108=\"\",\"\",IF(OR('TSA Input'!J2108=\"Yes\",'TSA Input'!J2108=\"Contingent\"),'TSA Input'!C2108,\"\"))","v":""},{"$f":"IF('TSA Input'!J2108=\"\",\"\",IF(OR('TSA Input'!J2108=\"Yes\",'TSA Input'!J2108=\"Contingent\"),'TSA Input'!D2108,\"\"))","v":""},{"$f":"IF('TSA Input'!J2108=\"\",\"\",IF(OR('TSA Input'!J2108=\"Yes\",'TSA Input'!J2108=\"Contingent\"),'TSA Input'!G2108,\"\"))","v":""},{"$f":"IF('TSA Input'!J2108=\"\",\"\",IF(OR('TSA Input'!J2108=\"Yes\",'TSA Input'!J2108=\"Contingent\"),'TSA Input'!F2108,\"\"))","v":""},"",{"$f":"IF('TSA Input'!J2108=\"\",\"\",IF(OR('TSA Input'!J2108=\"Yes\",'TSA Input'!J2108=\"Contingent\"),'TSA Input'!D2108,\"\"))","v":""},{"$f":"IF('TSA Input'!J2108=\"\",\"\",IF(OR('TSA Input'!J2108=\"Yes\",'TSA Input'!J2108=\"Contingent\"),'TSA Input'!G2108,\"\"))","v":""},{"$f":"IF('TSA Input'!J2108=\"\",\"\",IF(OR('TSA Input'!J2108=\"Yes\",'TSA Input'!J2108=\"Contingent\"),'TSA Input'!F2108,\"\"))","v":""},"","Required","Required"]
["",null,{"$f":"IF('TSA Input'!J2109=\"\",\"\",IF(OR('TSA Input'!J2109=\"Yes\",'TSA Input'!J2109=\"Contingent\"),'TSA Input'!B2109,\"Ineligible\"))","v":""},{"$f":"IF('TSA Input'!J2109=\"\",\"\",IF(OR('TSA Input'!J2109=\"Yes\",'TSA Input'!J2109=\"Contingent\"),'TSA Input'!I2109,\"\"))","v":""},{"$f":"IF('TSA Input'!J2109=\"\",\"\",IF(OR('TSA Input'!J2109=\"Yes\",'TSA Input'!J2109=\"Contingent\"),'TSA Input'!C2109,\"\"))","v":""},{"$f":"IF('TSA Input'!J2109=\"\",\"\",IF(OR('TSA Input'!J2109=\"Yes\",'TSA Input'!J2109=\"Contingent\"),'TSA Input'!D2109,\"\"))","v":""},{"$f":"IF('TSA Input'!J2109=\"\",\"\",IF(OR('TSA Input'!J2109=\"Yes\",'TSA Input'!J2109=\"Contingent\"),'TSA Input'!G2109,\"\"))","v":""},{"$f":"IF('TSA Input'!J2109=\"\",\"\",IF(OR('TSA Input'!J2109=\"Yes\",'TSA Input'!J2109=\"Contingent\"),'TSA Input'!F2109,\"\"))","v":""},"",{"$f":"IF('TSA Input'!J2109=\"\",\"\",IF(OR('TSA Input'!J2109=\"Yes\",'TSA Input'!J2109=\"Contingent\"),'TSA Input'!D2109,\"\"))","v":""},{"$f":"IF('TSA Input'!J2109=\"\",\"\",IF(OR('TSA Input'!J2109=\"Yes\",'TSA Input'!J2109=\"Contingent\"),'TSA Input'!G2109,\"\"))","v":""},{"$f":"IF('TSA Input'!J2109=\"\",\"\",IF(OR('TSA Input'!J2109=\"Yes\",'TSA Input'!J2109=\"Contingent\"),'TSA Input'!F2109,\"\"))","v":""},"","Required","Required"]
["",null,{"$f":"IF('TSA Input'!J2110=\"\",\"\",IF(OR('TSA Input'!J2110=\"Yes\",'TSA Input'!J2110=\"Contingent\"),'TSA Input'!B2110,\"Ineligible\"))","v":""},{"$f":"IF('TSA Input'!J2110=\"\",\"\",IF(OR('TSA Input'!J2110=\"Yes\",'TSA Input'!J2110=\"Contingent\"),'TSA Input'!I2110,\"\"))","v":""},{"$f":"IF('TSA Input'!J2110=\"\",\"\",IF(OR('TSA Input'!J2110=\"Yes\",'TSA Input'!J2110=\"Contingent\"),'TSA Input'!C2110,\"\"))","v":""},{"$f":"IF('TSA Input'!J2110=\"\",\"\",IF(OR('TSA Input'!J2110=\"Yes\",'TSA Input'!J2110=\"Contingent\"),'TSA Input'!D2110,\"\"))","v":""},{"$f":"IF('TSA Input'!J2110=\"\",\"\",IF(OR('TSA Input'!J2110=\"Yes\",'TSA Input'!J2110=\"Contingent\"),'TSA Input'!G2110,\"\"))","v":""},{"$f":"IF('TSA Input'!J2110=\"\",\"\",IF(OR('TSA Input'!J2110=\"Yes\",'TSA Input'!J2110=\"Contingent\"),'TSA Input'!F2110,\"\"))","v":""},"",{"$f":"IF('TSA Input'!J2110=\"\",\"\",IF(OR('TSA Input'!J2110=\"Yes\",'TSA Input'!J2110=\"Contingent\"),'TSA Input'!D2110,\"\"))","v":""},{"$f":"IF('TSA Input'!J2110=\"\",\"\",IF(OR('TSA Input'!J2110=\"Yes\",'TSA Input'!J2110=\"Contingent\"),'TSA Input'!G2110,\"\"))","v":""},{"$f":"IF('TSA Input'!J2110=\"\",\"\",IF(OR('TSA Input'!J2110=\"Yes\",'TSA Input'!J2110=\"Contingent\"),'TSA Input'!F2110,\"\"))","v":""},"","Required","Required"]
["",null,{"$f":"IF('TSA Input'!J2111=\"\",\"\",IF(OR('TSA Input'!J2111=\"Yes\",'TSA Input'!J2111=\"Contingent\"),'TSA Input'!B2111,\"Ineligible\"))","v":""},{"$f":"IF('TSA Input'!J2111=\"\",\"\",IF(OR('TSA Input'!J2111=\"Yes\",'TSA Input'!J2111=\"Contingent\"),'TSA Input'!I2111,\"\"))","v":""},{"$f":"IF('TSA Input'!J2111=\"\",\"\",IF(OR('TSA Input'!J2111=\"Yes\",'TSA Input'!J2111=\"Contingent\"),'TSA Input'!C2111,\"\"))","v":""},{"$f":"IF('TSA Input'!J2111=\"\",\"\",IF(OR('TSA Input'!J2111=\"Yes\",'TSA Input'!J2111=\"Contingent\"),'TSA Input'!D2111,\"\"))","v":""},{"$f":"IF('TSA Input'!J2111=\"\",\"\",IF(OR('TSA Input'!J2111=\"Yes\",'TSA Input'!J2111=\"Contingent\"),'TSA Input'!G2111,\"\"))","v":""},{"$f":"IF('TSA Input'!J2111=\"\",\"\",IF(OR('TSA Input'!J2111=\"Yes\",'TSA Input'!J2111=\"Contingent\"),'TSA Input'!F2111,\"\"))","v":""},"",{"$f":"IF('TSA Input'!J2111=\"\",\"\",IF(OR('TSA Input'!J2111=\"Yes\",'TSA Input'!J2111=\"Contingent\"),'TSA Input'!D2111,\"\"))","v":""},{"$f":"IF('TSA Input'!J2111=\"\",\"\",IF(OR('TSA Input'!J2111=\"Yes\",'TSA Input'!J2111=\"Contingent\"),'TSA Input'!G2111,\"\"))","v":""},{"$f":"IF('TSA Input'!J2111=\"\",\"\",IF(OR('TSA Input'!J2111=\"Yes\",'TSA Input'!J2111=\"Contingent\"),'TSA Input'!F2111,\"\"))","v":""},"","Required","Required"]
["",null,{"$f":"IF('TSA Input'!J2112=\"\",\"\",IF(OR('TSA Input'!J2112=\"Yes\",'TSA Input'!J2112=\"Contingent\"),'TSA Input'!B2112,\"Ineligible\"))","v":""},{"$f":"IF('TSA Input'!J2112=\"\",\"\",IF(OR('TSA Input'!J2112=\"Yes\",'TSA Input'!J2112=\"Contingent\"),'TSA Input'!I2112,\"\"))","v":""},{"$f":"IF('TSA Input'!J2112=\"\",\"\",IF(OR('TSA Input'!J2112=\"Yes\",'TSA Input'!J2112=\"Contingent\"),'TSA Input'!C2112,\"\"))","v":""},{"$f":"IF('TSA Input'!J2112=\"\",\"\",IF(OR('TSA Input'!J2112=\"Yes\",'TSA Input'!J2112=\"Contingent\"),'TSA Input'!D2112,\"\"))","v":""},{"$f":"IF('TSA Input'!J2112=\"\",\"\",IF(OR('TSA Input'!J2112=\"Yes\",'TSA Input'!J2112=\"Contingent\"),'TSA Input'!G2112,\"\"))","v":""},{"$f":"IF('TSA Input'!J2112=\"\",\"\",IF(OR('TSA Input'!J2112=\"Yes\",'TSA Input'!J2112=\"Contingent\"),'TSA Input'!F2112,\"\"))","v":""},"",{"$f":"IF('TSA Input'!J2112=\"\",\"\",IF(OR('TSA Input'!J2112=\"Yes\",'TSA Input'!J2112=\"Contingent\"),'TSA Input'!D2112,\"\"))","v":""},{"$f":"IF('TSA Input'!J2112=\"\",\"\",IF(OR('TSA Input'!J2112=\"Yes\",'TSA Input'!J2112=\"Contingent\"),'TSA Input'!G2112,\"\"))","v":""},{"$f":"IF('TSA Input'!J2112=\"\",\"\",IF(OR('TSA Input'!J2112=\"Yes\",'TSA Input'!J2112=\"Contingent\"),'TSA Input'!F2112,\"\"))","v":""},"","Required","Required"]
["",null,{"$f":"IF('TSA Input'!J2113=\"\",\"\",IF(OR('TSA Input'!J2113=\"Yes\",'TSA Input'!J2113=\"Contingent\"),'TSA Input'!B2113,\"Ineligible\"))","v":""},{"$f":"IF('TSA Input'!J2113=\"\",\"\",IF(OR('TSA Input'!J2113=\"Yes\",'TSA Input'!J2113=\"Contingent\"),'TSA Input'!I2113,\"\"))","v":""},{"$f":"IF('TSA Input'!J2113=\"\",\"\",IF(OR('TSA Input'!J2113=\"Yes\",'TSA Input'!J2113=\"Contingent\"),'TSA Input'!C2113,\"\"))","v":""},{"$f":"IF('TSA Input'!J2113=\"\",\"\",IF(OR('TSA Input'!J2113=\"Yes\",'TSA Input'!J2113=\"Contingent\"),'TSA Input'!D2113,\"\"))","v":""},{"$f":"IF('TSA Input'!J2113=\"\",\"\",IF(OR('TSA Input'!J2113=\"Yes\",'TSA Input'!J2113=\"Contingent\"),'TSA Input'!G2113,\"\"))","v":""},{"$f":"IF('TSA Input'!J2113=\"\",\"\",IF(OR('TSA Input'!J2113=\"Yes\",'TSA Input'!J2113=\"Contingent\"),'TSA Input'!F2113,\"\"))","v":""},"",{"$f":"IF('TSA Input'!J2113=\"\",\"\",IF(OR('TSA Input'!J2113=\"Yes\",'TSA Input'!J2113=\"Contingent\"),'TSA Input'!D2113,\"\"))","v":""},{"$f":"IF('TSA Input'!J2113=\"\",\"\",IF(OR('TSA Input'!J2113=\"Yes\",'TSA Input'!J2113=\"Contingent\"),'TSA Input'!G2113,\"\"))","v":""},{"$f":"IF('TSA Input'!J2113=\"\",\"\",IF(OR('TSA Input'!J2113=\"Yes\",'TSA Input'!J2113=\"Contingent\"),'TSA Input'!F2113,\"\"))","v":""},"","Required","Required"]
["",null,{"$f":"IF('TSA Input'!J2114=\"\",\"\",IF(OR('TSA Input'!J2114=\"Yes\",'TSA Input'!J2114=\"Contingent\"),'TSA Input'!B2114,\"Ineligible\"))","v":""},{"$f":"IF('TSA Input'!J2114=\"\",\"\",IF(OR('TSA Input'!J2114=\"Yes\",'TSA Input'!J2114=\"Contingent\"),'TSA Input'!I2114,\"\"))","v":""},{"$f":"IF('TSA Input'!J2114=\"\",\"\",IF(OR('TSA Input'!J2114=\"Yes\",'TSA Input'!J2114=\"Contingent\"),'TSA Input'!C2114,\"\"))","v":""},{"$f":"IF('TSA Input'!J2114=\"\",\"\",IF(OR('TSA Input'!J2114=\"Yes\",'TSA Input'!J2114=\"Contingent\"),'TSA Input'!D2114,\"\"))","v":""},{"$f":"IF('TSA Input'!J2114=\"\",\"\",IF(OR('TSA Input'!J2114=\"Yes\",'TSA Input'!J2114=\"Contingent\"),'TSA Input'!G2114,\"\"))","v":""},{"$f":"IF('TSA Input'!J2114=\"\",\"\",IF(OR('TSA Input'!J2114=\"Yes\",'TSA Input'!J2114=\"Contingent\"),'TSA Input'!F2114,\"\"))","v":""},"",{"$f":"IF('TSA Input'!J2114=\"\",\"\",IF(OR('TSA Input'!J2114=\"Yes\",'TSA Input'!J2114=\"Contingent\"),'TSA Input'!D2114,\"\"))","v":""},{"$f":"IF('TSA Input'!J2114=\"\",\"\",IF(OR('TSA Input'!J2114=\"Yes\",'TSA Input'!J2114=\"Contingent\"),'TSA Input'!G2114,\"\"))","v":""},{"$f":"IF('TSA Input'!J2114=\"\",\"\",IF(OR('TSA Input'!J2114=\"Yes\",'TSA Input'!J2114=\"Contingent\"),'TSA Input'!F2114,\"\"))","v":""},"","Required","Required"]
["",null,{"$f":"IF('TSA Input'!J2115=\"\",\"\",IF(OR('TSA Input'!J2115=\"Yes\",'TSA Input'!J2115=\"Contingent\"),'TSA Input'!B2115,\"Ineligible\"))","v":""},{"$f":"IF('TSA Input'!J2115=\"\",\"\",IF(OR('TSA Input'!J2115=\"Yes\",'TSA Input'!J2115=\"Contingent\"),'TSA Input'!I2115,\"\"))","v":""},{"$f":"IF('TSA Input'!J2115=\"\",\"\",IF(OR('TSA Input'!J2115=\"Yes\",'TSA Input'!J2115=\"Contingent\"),'TSA Input'!C2115,\"\"))","v":""},{"$f":"IF('TSA Input'!J2115=\"\",\"\",IF(OR('TSA Input'!J2115=\"Yes\",'TSA Input'!J2115=\"Contingent\"),'TSA Input'!D2115,\"\"))","v":""},{"$f":"IF('TSA Input'!J2115=\"\",\"\",IF(OR('TSA Input'!J2115=\"Yes\",'TSA Input'!J2115=\"Contingent\"),'TSA Input'!G2115,\"\"))","v":""},{"$f":"IF('TSA Input'!J2115=\"\",\"\",IF(OR('TSA Input'!J2115=\"Yes\",'TSA Input'!J2115=\"Contingent\"),'TSA Input'!F2115,\"\"))","v":""},"",{"$f":"IF('TSA Input'!J2115=\"\",\"\",IF(OR('TSA Input'!J2115=\"Yes\",'TSA Input'!J2115=\"Contingent\"),'TSA Input'!D2115,\"\"))","v":""},{"$f":"IF('TSA Input'!J2115=\"\",\"\",IF(OR('TSA Input'!J2115=\"Yes\",'TSA Input'!J2115=\"Contingent\"),'TSA Input'!G2115,\"\"))","v":""},{"$f":"IF('TSA Input'!J2115=\"\",\"\",IF(OR('TSA Input'!J2115=\"Yes\",'TSA Input'!J2115=\"Contingent\"),'TSA Input'!F2115,\"\"))","v":""},"","Required","Required"]
["",null,{"$f":"IF('TSA Input'!J2116=\"\",\"\",IF(OR('TSA Input'!J2116=\"Yes\",'TSA Input'!J2116=\"Contingent\"),'TSA Input'!B2116,\"Ineligible\"))","v":""},{"$f":"IF('TSA Input'!J2116=\"\",\"\",IF(OR('TSA Input'!J2116=\"Yes\",'TSA Input'!J2116=\"Contingent\"),'TSA Input'!I2116,\"\"))","v":""},{"$f":"IF('TSA Input'!J2116=\"\",\"\",IF(OR('TSA Input'!J2116=\"Yes\",'TSA Input'!J2116=\"Contingent\"),'TSA Input'!C2116,\"\"))","v":""},{"$f":"IF('TSA Input'!J2116=\"\",\"\",IF(OR('TSA Input'!J2116=\"Yes\",'TSA Input'!J2116=\"Contingent\"),'TSA Input'!D2116,\"\"))","v":""},{"$f":"IF('TSA Input'!J2116=\"\",\"\",IF(OR('TSA Input'!J2116=\"Yes\",'TSA Input'!J2116=\"Contingent\"),'TSA Input'!G2116,\"\"))","v":""},{"$f":"IF('TSA Input'!J2116=\"\",\"\",IF(OR('TSA Input'!J2116=\"Yes\",'TSA Input'!J2116=\"Contingent\"),'TSA Input'!F2116,\"\"))","v":""},{"$f":"IF($C2154=\"\",\"\",SUM(F2154:H2154))","v":""},{"$f":"IF('TSA Input'!J2116=\"\",\"\",IF(OR('TSA Input'!J2116=\"Yes\",'TSA Input'!J2116=\"Contingent\"),'TSA Input'!D2116,\"\"))","v":""},{"$f":"IF('TSA Input'!J2116=\"\",\"\",IF(OR('TSA Input'!J2116=\"Yes\",'TSA Input'!J2116=\"Contingent\"),'TSA Input'!G2116,\"\"))","v":""},{"$f":"IF('TSA Input'!J2116=\"\",\"\",IF(OR('TSA Input'!J2116=\"Yes\",'TSA Input'!J2116=\"Contingent\"),'TSA Input'!F2116,\"\"))","v":""},{"$f":"IF($C2154=\"\",\"\",SUM(J2154:L2154))","v":""},"Required","Required"]
["",null,{"$f":"IF('TSA Input'!J2117=\"\",\"\",IF(OR('TSA Input'!J2117=\"Yes\",'TSA Input'!J2117=\"Contingent\"),'TSA Input'!B2117,\"Ineligible\"))","v":""},{"$f":"IF('TSA Input'!J2117=\"\",\"\",IF(OR('TSA Input'!J2117=\"Yes\",'TSA Input'!J2117=\"Contingent\"),'TSA Input'!I2117,\"\"))","v":""},{"$f":"IF('TSA Input'!J2117=\"\",\"\",IF(OR('TSA Input'!J2117=\"Yes\",'TSA Input'!J2117=\"Contingent\"),'TSA Input'!C2117,\"\"))","v":""},{"$f":"IF('TSA Input'!J2117=\"\",\"\",IF(OR('TSA Input'!J2117=\"Yes\",'TSA Input'!J2117=\"Contingent\"),'TSA Input'!D2117,\"\"))","v":""},{"$f":"IF('TSA Input'!J2117=\"\",\"\",IF(OR('TSA Input'!J2117=\"Yes\",'TSA Input'!J2117=\"Contingent\"),'TSA Input'!G2117,\"\"))","v":""},{"$f":"IF('TSA Input'!J2117=\"\",\"\",IF(OR('TSA Input'!J2117=\"Yes\",'TSA Input'!J2117=\"Contingent\"),'TSA Input'!F2117,\"\"))","v":""},"",{"$f":"IF('TSA Input'!J2117=\"\",\"\",IF(OR('TSA Input'!J2117=\"Yes\",'TSA Input'!J2117=\"Contingent\"),'TSA Input'!D2117,\"\"))","v":""},{"$f":"IF('TSA Input'!J2117=\"\",\"\",IF(OR('TSA Input'!J2117=\"Yes\",'TSA Input'!J2117=\"Contingent\"),'TSA Input'!G2117,\"\"))","v":""},{"$f":"IF('TSA Input'!J2117=\"\",\"\",IF(OR('TSA Input'!J2117=\"Yes\",'TSA Input'!J2117=\"Contingent\"),'TSA Input'!F2117,\"\"))","v":""},"","Required","Required"]
["",null,{"$f":"IF('TSA Input'!J2118=\"\",\"\",IF(OR('TSA Input'!J2118=\"Yes\",'TSA Input'!J2118=\"Contingent\"),'TSA Input'!B2118,\"Ineligible\"))","v":""},{"$f":"IF('TSA Input'!J2118=\"\",\"\",IF(OR('TSA Input'!J2118=\"Yes\",'TSA Input'!J2118=\"Contingent\"),'TSA Input'!I2118,\"\"))","v":""},{"$f":"IF('TSA Input'!J2118=\"\",\"\",IF(OR('TSA Input'!J2118=\"Yes\",'TSA Input'!J2118=\"Contingent\"),'TSA Input'!C2118,\"\"))","v":""},{"$f":"IF('TSA Input'!J2118=\"\",\"\",IF(OR('TSA Input'!J2118=\"Yes\",'TSA Input'!J2118=\"Contingent\"),'TSA Input'!D2118,\"\"))","v":""},{"$f":"IF('TSA Input'!J2118=\"\",\"\",IF(OR('TSA Input'!J2118=\"Yes\",'TSA Input'!J2118=\"Contingent\"),'TSA Input'!G2118,\"\"))","v":""},{"$f":"IF('TSA Input'!J2118=\"\",\"\",IF(OR('TSA Input'!J2118=\"Yes\",'TSA Input'!J2118=\"Contingent\"),'TSA Input'!F2118,\"\"))","v":""},"",{"$f":"IF('TSA Input'!J2118=\"\",\"\",IF(OR('TSA Input'!J2118=\"Yes\",'TSA Input'!J2118=\"Contingent\"),'TSA Input'!D2118,\"\"))","v":""},{"$f":"IF('TSA Input'!J2118=\"\",\"\",IF(OR('TSA Input'!J2118=\"Yes\",'TSA Input'!J2118=\"Contingent\"),'TSA Input'!G2118,\"\"))","v":""},{"$f":"IF('TSA Input'!J2118=\"\",\"\",IF(OR('TSA Input'!J2118=\"Yes\",'TSA Input'!J2118=\"Contingent\"),'TSA Input'!F2118,\"\"))","v":""},"","Required","Required"]
["",null,{"$f":"IF('TSA Input'!J2119=\"\",\"\",IF(OR('TSA Input'!J2119=\"Yes\",'TSA Input'!J2119=\"Contingent\"),'TSA Input'!B2119,\"Ineligible\"))","v":""},{"$f":"IF('TSA Input'!J2119=\"\",\"\",IF(OR('TSA Input'!J2119=\"Yes\",'TSA Input'!J2119=\"Contingent\"),'TSA Input'!I2119,\"\"))","v":""},{"$f":"IF('TSA Input'!J2119=\"\",\"\",IF(OR('TSA Input'!J2119=\"Yes\",'TSA Input'!J2119=\"Contingent\"),'TSA Input'!C2119,\"\"))","v":""},{"$f":"IF('TSA Input'!J2119=\"\",\"\",IF(OR('TSA Input'!J2119=\"Yes\",'TSA Input'!J2119=\"Contingent\"),'TSA Input'!D2119,\"\"))","v":""},{"$f":"IF('TSA Input'!J2119=\"\",\"\",IF(OR('TSA Input'!J2119=\"Yes\",'TSA Input'!J2119=\"Contingent\"),'TSA Input'!G2119,\"\"))","v":""},{"$f":"IF('TSA Input'!J2119=\"\",\"\",IF(OR('TSA Input'!J2119=\"Yes\",'TSA Input'!J2119=\"Contingent\"),'TSA Input'!F2119,\"\"))","v":""},"",{"$f":"IF('TSA Input'!J2119=\"\",\"\",IF(OR('TSA Input'!J2119=\"Yes\",'TSA Input'!J2119=\"Contingent\"),'TSA Input'!D2119,\"\"))","v":""},{"$f":"IF('TSA Input'!J2119=\"\",\"\",IF(OR('TSA Input'!J2119=\"Yes\",'TSA Input'!J2119=\"Contingent\"),'TSA Input'!G2119,\"\"))","v":""},{"$f":"IF('TSA Input'!J2119=\"\",\"\",IF(OR('TSA Input'!J2119=\"Yes\",'TSA Input'!J2119=\"Contingent\"),'TSA Input'!F2119,\"\"))","v":""},"","Required","Required"]
["",null,{"$f":"IF('TSA Input'!J2120=\"\",\"\",IF(OR('TSA Input'!J2120=\"Yes\",'TSA Input'!J2120=\"Contingent\"),'TSA Input'!B2120,\"Ineligible\"))","v":""},{"$f":"IF('TSA Input'!J2120=\"\",\"\",IF(OR('TSA Input'!J2120=\"Yes\",'TSA Input'!J2120=\"Contingent\"),'TSA Input'!I2120,\"\"))","v":""},{"$f":"IF('TSA Input'!J2120=\"\",\"\",IF(OR('TSA Input'!J2120=\"Yes\",'TSA Input'!J2120=\"Contingent\"),'TSA Input'!C2120,\"\"))","v":""},{"$f":"IF('TSA Input'!J2120=\"\",\"\",IF(OR('TSA Input'!J2120=\"Yes\",'TSA Input'!J2120=\"Contingent\"),'TSA Input'!D2120,\"\"))","v":""},{"$f":"IF('TSA Input'!J2120=\"\",\"\",IF(OR('TSA Input'!J2120=\"Yes\",'TSA Input'!J2120=\"Contingent\"),'TSA Input'!G2120,\"\"))","v":""},{"$f":"IF('TSA Input'!J2120=\"\",\"\",IF(OR('TSA Input'!J2120=\"Yes\",'TSA Input'!J2120=\"Contingent\"),'TSA Input'!F2120,\"\"))","v":""},"",{"$f":"IF('TSA Input'!J2120=\"\",\"\",IF(OR('TSA Input'!J2120=\"Yes\",'TSA Input'!J2120=\"Contingent\"),'TSA Input'!D2120,\"\"))","v":""},{"$f":"IF('TSA Input'!J2120=\"\",\"\",IF(OR('TSA Input'!J2120=\"Yes\",'TSA Input'!J2120=\"Contingent\"),'TSA Input'!G2120,\"\"))","v":""},{"$f":"IF('TSA Input'!J2120=\"\",\"\",IF(OR('TSA Input'!J2120=\"Yes\",'TSA Input'!J2120=\"Contingent\"),'TSA Input'!F2120,\"\"))","v":""},"","Required","Required"]
["",null,{"$f":"IF('TSA Input'!J2121=\"\",\"\",IF(OR('TSA Input'!J2121=\"Yes\",'TSA Input'!J2121=\"Contingent\"),'TSA Input'!B2121,\"Ineligible\"))","v":""},{"$f":"IF('TSA Input'!J2121=\"\",\"\",IF(OR('TSA Input'!J2121=\"Yes\",'TSA Input'!J2121=\"Contingent\"),'TSA Input'!I2121,\"\"))","v":""},{"$f":"IF('TSA Input'!J2121=\"\",\"\",IF(OR('TSA Input'!J2121=\"Yes\",'TSA Input'!J2121=\"Contingent\"),'TSA Input'!C2121,\"\"))","v":""},{"$f":"IF('TSA Input'!J2121=\"\",\"\",IF(OR('TSA Input'!J2121=\"Yes\",'TSA Input'!J2121=\"Contingent\"),'TSA Input'!D2121,\"\"))","v":""},{"$f":"IF('TSA Input'!J2121=\"\",\"\",IF(OR('TSA Input'!J2121=\"Yes\",'TSA Input'!J2121=\"Contingent\"),'TSA Input'!G2121,\"\"))","v":""},{"$f":"IF('TSA Input'!J2121=\"\",\"\",IF(OR('TSA Input'!J2121=\"Yes\",'TSA Input'!J2121=\"Contingent\"),'TSA Input'!F2121,\"\"))","v":""},"",{"$f":"IF('TSA Input'!J2121=\"\",\"\",IF(OR('TSA Input'!J2121=\"Yes\",'TSA Input'!J2121=\"Contingent\"),'TSA Input'!D2121,\"\"))","v":""},{"$f":"IF('TSA Input'!J2121=\"\",\"\",IF(OR('TSA Input'!J2121=\"Yes\",'TSA Input'!J2121=\"Contingent\"),'TSA Input'!G2121,\"\"))","v":""},{"$f":"IF('TSA Input'!J2121=\"\",\"\",IF(OR('TSA Input'!J2121=\"Yes\",'TSA Input'!J2121=\"Contingent\"),'TSA Input'!F2121,\"\"))","v":""},"","Required","Required"]
["",null,{"$f":"IF('TSA Input'!J2122=\"\",\"\",IF(OR('TSA Input'!J2122=\"Yes\",'TSA Input'!J2122=\"Contingent\"),'TSA Input'!B2122,\"Ineligible\"))","v":""},{"$f":"IF('TSA Input'!J2122=\"\",\"\",IF(OR('TSA Input'!J2122=\"Yes\",'TSA Input'!J2122=\"Contingent\"),'TSA Input'!I2122,\"\"))","v":""},{"$f":"IF('TSA Input'!J2122=\"\",\"\",IF(OR('TSA Input'!J2122=\"Yes\",'TSA Input'!J2122=\"Contingent\"),'TSA Input'!C2122,\"\"))","v":""},{"$f":"IF('TSA Input'!J2122=\"\",\"\",IF(OR('TSA Input'!J2122=\"Yes\",'TSA Input'!J2122=\"Contingent\"),'TSA Input'!D2122,\"\"))","v":""},{"$f":"IF('TSA Input'!J2122=\"\",\"\",IF(OR('TSA Input'!J2122=\"Yes\",'TSA Input'!J2122=\"Contingent\"),'TSA Input'!G2122,\"\"))","v":""},{"$f":"IF('TSA Input'!J2122=\"\",\"\",IF(OR('TSA Input'!J2122=\"Yes\",'TSA Input'!J2122=\"Contingent\"),'TSA Input'!F2122,\"\"))","v":""},"",{"$f":"IF('TSA Input'!J2122=\"\",\"\",IF(OR('TSA Input'!J2122=\"Yes\",'TSA Input'!J2122=\"Contingent\"),'TSA Input'!D2122,\"\"))","v":""},{"$f":"IF('TSA Input'!J2122=\"\",\"\",IF(OR('TSA Input'!J2122=\"Yes\",'TSA Input'!J2122=\"Contingent\"),'TSA Input'!G2122,\"\"))","v":""},{"$f":"IF('TSA Input'!J2122=\"\",\"\",IF(OR('TSA Input'!J2122=\"Yes\",'TSA Input'!J2122=\"Contingent\"),'TSA Input'!F2122,\"\"))","v":""},"","Required","Required"]
["",null,{"$f":"IF('TSA Input'!J2123=\"\",\"\",IF(OR('TSA Input'!J2123=\"Yes\",'TSA Input'!J2123=\"Contingent\"),'TSA Input'!B2123,\"Ineligible\"))","v":""},{"$f":"IF('TSA Input'!J2123=\"\",\"\",IF(OR('TSA Input'!J2123=\"Yes\",'TSA Input'!J2123=\"Contingent\"),'TSA Input'!I2123,\"\"))","v":""},{"$f":"IF('TSA Input'!J2123=\"\",\"\",IF(OR('TSA Input'!J2123=\"Yes\",'TSA Input'!J2123=\"Contingent\"),'TSA Input'!C2123,\"\"))","v":""},{"$f":"IF('TSA Input'!J2123=\"\",\"\",IF(OR('TSA Input'!J2123=\"Yes\",'TSA Input'!J2123=\"Contingent\"),'TSA Input'!D2123,\"\"))","v":""},{"$f":"IF('TSA Input'!J2123=\"\",\"\",IF(OR('TSA Input'!J2123=\"Yes\",'TSA Input'!J2123=\"Contingent\"),'TSA Input'!G2123,\"\"))","v":""},{"$f":"IF('TSA Input'!J2123=\"\",\"\",IF(OR('TSA Input'!J2123=\"Yes\",'TSA Input'!J2123=\"Contingent\"),'TSA Input'!F2123,\"\"))","v":""},"",{"$f":"IF('TSA Input'!J2123=\"\",\"\",IF(OR('TSA Input'!J2123=\"Yes\",'TSA Input'!J2123=\"Contingent\"),'TSA Input'!D2123,\"\"))","v":""},{"$f":"IF('TSA Input'!J2123=\"\",\"\",IF(OR('TSA Input'!J2123=\"Yes\",'TSA Input'!J2123=\"Contingent\"),'TSA Input'!G2123,\"\"))","v":""},{"$f":"IF('TSA Input'!J2123=\"\",\"\",IF(OR('TSA Input'!J2123=\"Yes\",'TSA Input'!J2123=\"Contingent\"),'TSA Input'!F2123,\"\"))","v":""},"","Required","Required"]
["",null,{"$f":"IF('TSA Input'!J2124=\"\",\"\",IF(OR('TSA Input'!J2124=\"Yes\",'TSA Input'!J2124=\"Contingent\"),'TSA Input'!B2124,\"Ineligible\"))","v":""},{"$f":"IF('TSA Input'!J2124=\"\",\"\",IF(OR('TSA Input'!J2124=\"Yes\",'TSA Input'!J2124=\"Contingent\"),'TSA Input'!I2124,\"\"))","v":""},{"$f":"IF('TSA Input'!J2124=\"\",\"\",IF(OR('TSA Input'!J2124=\"Yes\",'TSA Input'!J2124=\"Contingent\"),'TSA Input'!C2124,\"\"))","v":""},{"$f":"IF('TSA Input'!J2124=\"\",\"\",IF(OR('TSA Input'!J2124=\"Yes\",'TSA Input'!J2124=\"Contingent\"),'TSA Input'!D2124,\"\"))","v":""},{"$f":"IF('TSA Input'!J2124=\"\",\"\",IF(OR('TSA Input'!J2124=\"Yes\",'TSA Input'!J2124=\"Contingent\"),'TSA Input'!G2124,\"\"))","v":""},{"$f":"IF('TSA Input'!J2124=\"\",\"\",IF(OR('TSA Input'!J2124=\"Yes\",'TSA Input'!J2124=\"Contingent\"),'TSA Input'!F2124,\"\"))","v":""},"",{"$f":"IF('TSA Input'!J2124=\"\",\"\",IF(OR('TSA Input'!J2124=\"Yes\",'TSA Input'!J2124=\"Contingent\"),'TSA Input'!D2124,\"\"))","v":""},{"$f":"IF('TSA Input'!J2124=\"\",\"\",IF(OR('TSA Input'!J2124=\"Yes\",'TSA Input'!J2124=\"Contingent\"),'TSA Input'!G2124,\"\"))","v":""},{"$f":"IF('TSA Input'!J2124=\"\",\"\",IF(OR('TSA Input'!J2124=\"Yes\",'TSA Input'!J2124=\"Contingent\"),'TSA Input'!F2124,\"\"))","v":""},"","Required","Required"]
["",null,{"$f":"IF('TSA Input'!J2125=\"\",\"\",IF(OR('TSA Input'!J2125=\"Yes\",'TSA Input'!J2125=\"Contingent\"),'TSA Input'!B2125,\"Ineligible\"))","v":""},{"$f":"IF('TSA Input'!J2125=\"\",\"\",IF(OR('TSA Input'!J2125=\"Yes\",'TSA Input'!J2125=\"Contingent\"),'TSA Input'!I2125,\"\"))","v":""},{"$f":"IF('TSA Input'!J2125=\"\",\"\",IF(OR('TSA Input'!J2125=\"Yes\",'TSA Input'!J2125=\"Contingent\"),'TSA Input'!C2125,\"\"))","v":""},{"$f":"IF('TSA Input'!J2125=\"\",\"\",IF(OR('TSA Input'!J2125=\"Yes\",'TSA Input'!J2125=\"Contingent\"),'TSA Input'!D2125,\"\"))","v":""},{"$f":"IF('TSA Input'!J2125=\"\",\"\",IF(OR('TSA Input'!J2125=\"Yes\",'TSA Input'!J2125=\"Contingent\"),'TSA Input'!G2125,\"\"))","v":""},{"$f":"IF('TSA Input'!J2125=\"\",\"\",IF(OR('TSA Input'!J2125=\"Yes\",'TSA Input'!J2125=\"Contingent\"),'TSA Input'!F2125,\"\"))","v":""},"",{"$f":"IF('TSA Input'!J2125=\"\",\"\",IF(OR('TSA Input'!J2125=\"Yes\",'TSA Input'!J2125=\"Contingent\"),'TSA Input'!D2125,\"\"))","v":""},{"$f":"IF('TSA Input'!J2125=\"\",\"\",IF(OR('TSA Input'!J2125=\"Yes\",'TSA Input'!J2125=\"Contingent\"),'TSA Input'!G2125,\"\"))","v":""},{"$f":"IF('TSA Input'!J2125=\"\",\"\",IF(OR('TSA Input'!J2125=\"Yes\",'TSA Input'!J2125=\"Contingent\"),'TSA Input'!F2125,\"\"))","v":""},"","Required","Required"]
["",null,{"$f":"IF('TSA Input'!J2126=\"\",\"\",IF(OR('TSA Input'!J2126=\"Yes\",'TSA Input'!J2126=\"Contingent\"),'TSA Input'!B2126,\"Ineligible\"))","v":""},{"$f":"IF('TSA Input'!J2126=\"\",\"\",IF(OR('TSA Input'!J2126=\"Yes\",'TSA Input'!J2126=\"Contingent\"),'TSA Input'!I2126,\"\"))","v":""},{"$f":"IF('TSA Input'!J2126=\"\",\"\",IF(OR('TSA Input'!J2126=\"Yes\",'TSA Input'!J2126=\"Contingent\"),'TSA Input'!C2126,\"\"))","v":""},{"$f":"IF('TSA Input'!J2126=\"\",\"\",IF(OR('TSA Input'!J2126=\"Yes\",'TSA Input'!J2126=\"Contingent\"),'TSA Input'!D2126,\"\"))","v":""},{"$f":"IF('TSA Input'!J2126=\"\",\"\",IF(OR('TSA Input'!J2126=\"Yes\",'TSA Input'!J2126=\"Contingent\"),'TSA Input'!G2126,\"\"))","v":""},{"$f":"IF('TSA Input'!J2126=\"\",\"\",IF(OR('TSA Input'!J2126=\"Yes\",'TSA Input'!J2126=\"Contingent\"),'TSA Input'!F2126,\"\"))","v":""},"",{"$f":"IF('TSA Input'!J2126=\"\",\"\",IF(OR('TSA Input'!J2126=\"Yes\",'TSA Input'!J2126=\"Contingent\"),'TSA Input'!D2126,\"\"))","v":""},{"$f":"IF('TSA Input'!J2126=\"\",\"\",IF(OR('TSA Input'!J2126=\"Yes\",'TSA Input'!J2126=\"Contingent\"),'TSA Input'!G2126,\"\"))","v":""},{"$f":"IF('TSA Input'!J2126=\"\",\"\",IF(OR('TSA Input'!J2126=\"Yes\",'TSA Input'!J2126=\"Contingent\"),'TSA Input'!F2126,\"\"))","v":""},"","Required","Required"]
["",null,{"$f":"IF('TSA Input'!J2127=\"\",\"\",IF(OR('TSA Input'!J2127=\"Yes\",'TSA Input'!J2127=\"Contingent\"),'TSA Input'!B2127,\"Ineligible\"))","v":""},{"$f":"IF('TSA Input'!J2127=\"\",\"\",IF(OR('TSA Input'!J2127=\"Yes\",'TSA Input'!J2127=\"Contingent\"),'TSA Input'!I2127,\"\"))","v":""},{"$f":"IF('TSA Input'!J2127=\"\",\"\",IF(OR('TSA Input'!J2127=\"Yes\",'TSA Input'!J2127=\"Contingent\"),'TSA Input'!C2127,\"\"))","v":""},{"$f":"IF('TSA Input'!J2127=\"\",\"\",IF(OR('TSA Input'!J2127=\"Yes\",'TSA Input'!J2127=\"Contingent\"),'TSA Input'!D2127,\"\"))","v":""},{"$f":"IF('TSA Input'!J2127=\"\",\"\",IF(OR('TSA Input'!J2127=\"Yes\",'TSA Input'!J2127=\"Contingent\"),'TSA Input'!G2127,\"\"))","v":""},{"$f":"IF('TSA Input'!J2127=\"\",\"\",IF(OR('TSA Input'!J2127=\"Yes\",'TSA Input'!J2127=\"Contingent\"),'TSA Input'!F2127,\"\"))","v":""},"",{"$f":"IF('TSA Input'!J2127=\"\",\"\",IF(OR('TSA Input'!J2127=\"Yes\",'TSA Input'!J2127=\"Contingent\"),'TSA Input'!D2127,\"\"))","v":""},{"$f":"IF('TSA Input'!J2127=\"\",\"\",IF(OR('TSA Input'!J2127=\"Yes\",'TSA Input'!J2127=\"Contingent\"),'TSA Input'!G2127,\"\"))","v":""},{"$f":"IF('TSA Input'!J2127=\"\",\"\",IF(OR('TSA Input'!J2127=\"Yes\",'TSA Input'!J2127=\"Contingent\"),'TSA Input'!F2127,\"\"))","v":""},"","Required","Required"]
["",null,{"$f":"IF('TSA Input'!J2128=\"\",\"\",IF(OR('TSA Input'!J2128=\"Yes\",'TSA Input'!J2128=\"Contingent\"),'TSA Input'!B2128,\"Ineligible\"))","v":""},{"$f":"IF('TSA Input'!J2128=\"\",\"\",IF(OR('TSA Input'!J2128=\"Yes\",'TSA Input'!J2128=\"Contingent\"),'TSA Input'!I2128,\"\"))","v":""},{"$f":"IF('TSA Input'!J2128=\"\",\"\",IF(OR('TSA Input'!J2128=\"Yes\",'TSA Input'!J2128=\"Contingent\"),'TSA Input'!C2128,\"\"))","v":""},{"$f":"IF('TSA Input'!J2128=\"\",\"\",IF(OR('TSA Input'!J2128=\"Yes\",'TSA Input'!J2128=\"Contingent\"),'TSA Input'!D2128,\"\"))","v":""},{"$f":"IF('TSA Input'!J2128=\"\",\"\",IF(OR('TSA Input'!J2128=\"Yes\",'TSA Input'!J2128=\"Contingent\"),'TSA Input'!G2128,\"\"))","v":""},{"$f":"IF('TSA Input'!J2128=\"\",\"\",IF(OR('TSA Input'!J2128=\"Yes\",'TSA Input'!J2128=\"Contingent\"),'TSA Input'!F2128,\"\"))","v":""},"",{"$f":"IF('TSA Input'!J2128=\"\",\"\",IF(OR('TSA Input'!J2128=\"Yes\",'TSA Input'!J2128=\"Contingent\"),'TSA Input'!D2128,\"\"))","v":""},{"$f":"IF('TSA Input'!J2128=\"\",\"\",IF(OR('TSA Input'!J2128=\"Yes\",'TSA Input'!J2128=\"Contingent\"),'TSA Input'!G2128,\"\"))","v":""},{"$f":"IF('TSA Input'!J2128=\"\",\"\",IF(OR('TSA Input'!J2128=\"Yes\",'TSA Input'!J2128=\"Contingent\"),'TSA Input'!F2128,\"\"))","v":""},"","Required","Required"]
["",null,{"$f":"IF('TSA Input'!J2129=\"\",\"\",IF(OR('TSA Input'!J2129=\"Yes\",'TSA Input'!J2129=\"Contingent\"),'TSA Input'!B2129,\"Ineligible\"))","v":""},{"$f":"IF('TSA Input'!J2129=\"\",\"\",IF(OR('TSA Input'!J2129=\"Yes\",'TSA Input'!J2129=\"Contingent\"),'TSA Input'!I2129,\"\"))","v":""},{"$f":"IF('TSA Input'!J2129=\"\",\"\",IF(OR('TSA Input'!J2129=\"Yes\",'TSA Input'!J2129=\"Contingent\"),'TSA Input'!C2129,\"\"))","v":""},{"$f":"IF('TSA Input'!J2129=\"\",\"\",IF(OR('TSA Input'!J2129=\"Yes\",'TSA Input'!J2129=\"Contingent\"),'TSA Input'!D2129,\"\"))","v":""},{"$f":"IF('TSA Input'!J2129=\"\",\"\",IF(OR('TSA Input'!J2129=\"Yes\",'TSA Input'!J2129=\"Contingent\"),'TSA Input'!G2129,\"\"))","v":""},{"$f":"IF('TSA Input'!J2129=\"\",\"\",IF(OR('TSA Input'!J2129=\"Yes\",'TSA Input'!J2129=\"Contingent\"),'TSA Input'!F2129,\"\"))","v":""},"",{"$f":"IF('TSA Input'!J2129=\"\",\"\",IF(OR('TSA Input'!J2129=\"Yes\",'TSA Input'!J2129=\"Contingent\"),'TSA Input'!D2129,\"\"))","v":""},{"$f":"IF('TSA Input'!J2129=\"\",\"\",IF(OR('TSA Input'!J2129=\"Yes\",'TSA Input'!J2129=\"Contingent\"),'TSA Input'!G2129,\"\"))","v":""},{"$f":"IF('TSA Input'!J2129=\"\",\"\",IF(OR('TSA Input'!J2129=\"Yes\",'TSA Input'!J2129=\"Contingent\"),'TSA Input'!F2129,\"\"))","v":""},"","Required","Required"]
["",null,{"$f":"IF('TSA Input'!J2130=\"\",\"\",IF(OR('TSA Input'!J2130=\"Yes\",'TSA Input'!J2130=\"Contingent\"),'TSA Input'!B2130,\"Ineligible\"))","v":""},{"$f":"IF('TSA Input'!J2130=\"\",\"\",IF(OR('TSA Input'!J2130=\"Yes\",'TSA Input'!J2130=\"Contingent\"),'TSA Input'!I2130,\"\"))","v":""},{"$f":"IF('TSA Input'!J2130=\"\",\"\",IF(OR('TSA Input'!J2130=\"Yes\",'TSA Input'!J2130=\"Contingent\"),'TSA Input'!C2130,\"\"))","v":""},{"$f":"IF('TSA Input'!J2130=\"\",\"\",IF(OR('TSA Input'!J2130=\"Yes\",'TSA Input'!J2130=\"Contingent\"),'TSA Input'!D2130,\"\"))","v":""},{"$f":"IF('TSA Input'!J2130=\"\",\"\",IF(OR('TSA Input'!J2130=\"Yes\",'TSA Input'!J2130=\"Contingent\"),'TSA Input'!G2130,\"\"))","v":""},{"$f":"IF('TSA Input'!J2130=\"\",\"\",IF(OR('TSA Input'!J2130=\"Yes\",'TSA Input'!J2130=\"Contingent\"),'TSA Input'!F2130,\"\"))","v":""},"",{"$f":"IF('TSA Input'!J2130=\"\",\"\",IF(OR('TSA Input'!J2130=\"Yes\",'TSA Input'!J2130=\"Contingent\"),'TSA Input'!D2130,\"\"))","v":""},{"$f":"IF('TSA Input'!J2130=\"\",\"\",IF(OR('TSA Input'!J2130=\"Yes\",'TSA Input'!J2130=\"Contingent\"),'TSA Input'!G2130,\"\"))","v":""},{"$f":"IF('TSA Input'!J2130=\"\",\"\",IF(OR('TSA Input'!J2130=\"Yes\",'TSA Input'!J2130=\"Contingent\"),'TSA Input'!F2130,\"\"))","v":""},"","Required","Required"]
["",null,{"$f":"IF('TSA Input'!J2131=\"\",\"\",IF(OR('TSA Input'!J2131=\"Yes\",'TSA Input'!J2131=\"Contingent\"),'TSA Input'!B2131,\"Ineligible\"))","v":""},{"$f":"IF('TSA Input'!J2131=\"\",\"\",IF(OR('TSA Input'!J2131=\"Yes\",'TSA Input'!J2131=\"Contingent\"),'TSA Input'!I2131,\"\"))","v":""},{"$f":"IF('TSA Input'!J2131=\"\",\"\",IF(OR('TSA Input'!J2131=\"Yes\",'TSA Input'!J2131=\"Contingent\"),'TSA Input'!C2131,\"\"))","v":""},{"$f":"IF('TSA Input'!J2131=\"\",\"\",IF(OR('TSA Input'!J2131=\"Yes\",'TSA Input'!J2131=\"Contingent\"),'TSA Input'!D2131,\"\"))","v":""},{"$f":"IF('TSA Input'!J2131=\"\",\"\",IF(OR('TSA Input'!J2131=\"Yes\",'TSA Input'!J2131=\"Contingent\"),'TSA Input'!G2131,\"\"))","v":""},{"$f":"IF('TSA Input'!J2131=\"\",\"\",IF(OR('TSA Input'!J2131=\"Yes\",'TSA Input'!J2131=\"Contingent\"),'TSA Input'!F2131,\"\"))","v":""},"",{"$f":"IF('TSA Input'!J2131=\"\",\"\",IF(OR('TSA Input'!J2131=\"Yes\",'TSA Input'!J2131=\"Contingent\"),'TSA Input'!D2131,\"\"))","v":""},{"$f":"IF('TSA Input'!J2131=\"\",\"\",IF(OR('TSA Input'!J2131=\"Yes\",'TSA Input'!J2131=\"Contingent\"),'TSA Input'!G2131,\"\"))","v":""},{"$f":"IF('TSA Input'!J2131=\"\",\"\",IF(OR('TSA Input'!J2131=\"Yes\",'TSA Input'!J2131=\"Contingent\"),'TSA Input'!F2131,\"\"))","v":""},"","Required","Required"]
["",null,{"$f":"IF('TSA Input'!J2132=\"\",\"\",IF(OR('TSA Input'!J2132=\"Yes\",'TSA Input'!J2132=\"Contingent\"),'TSA Input'!B2132,\"Ineligible\"))","v":""},{"$f":"IF('TSA Input'!J2132=\"\",\"\",IF(OR('TSA Input'!J2132=\"Yes\",'TSA Input'!J2132=\"Contingent\"),'TSA Input'!I2132,\"\"))","v":""},{"$f":"IF('TSA Input'!J2132=\"\",\"\",IF(OR('TSA Input'!J2132=\"Yes\",'TSA Input'!J2132=\"Contingent\"),'TSA Input'!C2132,\"\"))","v":""},{"$f":"IF('TSA Input'!J2132=\"\",\"\",IF(OR('TSA Input'!J2132=\"Yes\",'TSA Input'!J2132=\"Contingent\"),'TSA Input'!D2132,\"\"))","v":""},{"$f":"IF('TSA Input'!J2132=\"\",\"\",IF(OR('TSA Input'!J2132=\"Yes\",'TSA Input'!J2132=\"Contingent\"),'TSA Input'!G2132,\"\"))","v":""},{"$f":"IF('TSA Input'!J2132=\"\",\"\",IF(OR('TSA Input'!J2132=\"Yes\",'TSA Input'!J2132=\"Contingent\"),'TSA Input'!F2132,\"\"))","v":""},"",{"$f":"IF('TSA Input'!J2132=\"\",\"\",IF(OR('TSA Input'!J2132=\"Yes\",'TSA Input'!J2132=\"Contingent\"),'TSA Input'!D2132,\"\"))","v":""},{"$f":"IF('TSA Input'!J2132=\"\",\"\",IF(OR('TSA Input'!J2132=\"Yes\",'TSA Input'!J2132=\"Contingent\"),'TSA Input'!G2132,\"\"))","v":""},{"$f":"IF('TSA Input'!J2132=\"\",\"\",IF(OR('TSA Input'!J2132=\"Yes\",'TSA Input'!J2132=\"Contingent\"),'TSA Input'!F2132,\"\"))","v":""},"","Required","Required"]
["",null,{"$f":"IF('TSA Input'!J2133=\"\",\"\",IF(OR('TSA Input'!J2133=\"Yes\",'TSA Input'!J2133=\"Contingent\"),'TSA Input'!B2133,\"Ineligible\"))","v":""},{"$f":"IF('TSA Input'!J2133=\"\",\"\",IF(OR('TSA Input'!J2133=\"Yes\",'TSA Input'!J2133=\"Contingent\"),'TSA Input'!I2133,\"\"))","v":""},{"$f":"IF('TSA Input'!J2133=\"\",\"\",IF(OR('TSA Input'!J2133=\"Yes\",'TSA Input'!J2133=\"Contingent\"),'TSA Input'!C2133,\"\"))","v":""},{"$f":"IF('TSA Input'!J2133=\"\",\"\",IF(OR('TSA Input'!J2133=\"Yes\",'TSA Input'!J2133=\"Contingent\"),'TSA Input'!D2133,\"\"))","v":""},{"$f":"IF('TSA Input'!J2133=\"\",\"\",IF(OR('TSA Input'!J2133=\"Yes\",'TSA Input'!J2133=\"Contingent\"),'TSA Input'!G2133,\"\"))","v":""},{"$f":"IF('TSA Input'!J2133=\"\",\"\",IF(OR('TSA Input'!J2133=\"Yes\",'TSA Input'!J2133=\"Contingent\"),'TSA Input'!F2133,\"\"))","v":""},"",{"$f":"IF('TSA Input'!J2133=\"\",\"\",IF(OR('TSA Input'!J2133=\"Yes\",'TSA Input'!J2133=\"Contingent\"),'TSA Input'!D2133,\"\"))","v":""},{"$f":"IF('TSA Input'!J2133=\"\",\"\",IF(OR('TSA Input'!J2133=\"Yes\",'TSA Input'!J2133=\"Contingent\"),'TSA Input'!G2133,\"\"))","v":""},{"$f":"IF('TSA Input'!J2133=\"\",\"\",IF(OR('TSA Input'!J2133=\"Yes\",'TSA Input'!J2133=\"Contingent\"),'TSA Input'!F2133,\"\"))","v":""},"","Required","Required"]
["",null,{"$f":"IF('TSA Input'!J2134=\"\",\"\",IF(OR('TSA Input'!J2134=\"Yes\",'TSA Input'!J2134=\"Contingent\"),'TSA Input'!B2134,\"Ineligible\"))","v":""},{"$f":"IF('TSA Input'!J2134=\"\",\"\",IF(OR('TSA Input'!J2134=\"Yes\",'TSA Input'!J2134=\"Contingent\"),'TSA Input'!I2134,\"\"))","v":""},{"$f":"IF('TSA Input'!J2134=\"\",\"\",IF(OR('TSA Input'!J2134=\"Yes\",'TSA Input'!J2134=\"Contingent\"),'TSA Input'!C2134,\"\"))","v":""},{"$f":"IF('TSA Input'!J2134=\"\",\"\",IF(OR('TSA Input'!J2134=\"Yes\",'TSA Input'!J2134=\"Contingent\"),'TSA Input'!D2134,\"\"))","v":""},{"$f":"IF('TSA Input'!J2134=\"\",\"\",IF(OR('TSA Input'!J2134=\"Yes\",'TSA Input'!J2134=\"Contingent\"),'TSA Input'!G2134,\"\"))","v":""},{"$f":"IF('TSA Input'!J2134=\"\",\"\",IF(OR('TSA Input'!J2134=\"Yes\",'TSA Input'!J2134=\"Contingent\"),'TSA Input'!F2134,\"\"))","v":""},"",{"$f":"IF('TSA Input'!J2134=\"\",\"\",IF(OR('TSA Input'!J2134=\"Yes\",'TSA Input'!J2134=\"Contingent\"),'TSA Input'!D2134,\"\"))","v":""},{"$f":"IF('TSA Input'!J2134=\"\",\"\",IF(OR('TSA Input'!J2134=\"Yes\",'TSA Input'!J2134=\"Contingent\"),'TSA Input'!G2134,\"\"))","v":""},{"$f":"IF('TSA Input'!J2134=\"\",\"\",IF(OR('TSA Input'!J2134=\"Yes\",'TSA Input'!J2134=\"Contingent\"),'TSA Input'!F2134,\"\"))","v":""},"","Required","Required"]
["",null,{"$f":"IF('TSA Input'!J2135=\"\",\"\",IF(OR('TSA Input'!J2135=\"Yes\",'TSA Input'!J2135=\"Contingent\"),'TSA Input'!B2135,\"Ineligible\"))","v":""},{"$f":"IF('TSA Input'!J2135=\"\",\"\",IF(OR('TSA Input'!J2135=\"Yes\",'TSA Input'!J2135=\"Contingent\"),'TSA Input'!I2135,\"\"))","v":""},{"$f":"IF('TSA Input'!J2135=\"\",\"\",IF(OR('TSA Input'!J2135=\"Yes\",'TSA Input'!J2135=\"Contingent\"),'TSA Input'!C2135,\"\"))","v":""},{"$f":"IF('TSA Input'!J2135=\"\",\"\",IF(OR('TSA Input'!J2135=\"Yes\",'TSA Input'!J2135=\"Contingent\"),'TSA Input'!D2135,\"\"))","v":""},{"$f":"IF('TSA Input'!J2135=\"\",\"\",IF(OR('TSA Input'!J2135=\"Yes\",'TSA Input'!J2135=\"Contingent\"),'TSA Input'!G2135,\"\"))","v":""},{"$f":"IF('TSA Input'!J2135=\"\",\"\",IF(OR('TSA Input'!J2135=\"Yes\",'TSA Input'!J2135=\"Contingent\"),'TSA Input'!F2135,\"\"))","v":""},"",{"$f":"IF('TSA Input'!J2135=\"\",\"\",IF(OR('TSA Input'!J2135=\"Yes\",'TSA Input'!J2135=\"Contingent\"),'TSA Input'!D2135,\"\"))","v":""},{"$f":"IF('TSA Input'!J2135=\"\",\"\",IF(OR('TSA Input'!J2135=\"Yes\",'TSA Input'!J2135=\"Contingent\"),'TSA Input'!G2135,\"\"))","v":""},{"$f":"IF('TSA Input'!J2135=\"\",\"\",IF(OR('TSA Input'!J2135=\"Yes\",'TSA Input'!J2135=\"Contingent\"),'TSA Input'!F2135,\"\"))","v":""},"","Required","Required"]
["",null,{"$f":"IF('TSA Input'!J2136=\"\",\"\",IF(OR('TSA Input'!J2136=\"Yes\",'TSA Input'!J2136=\"Contingent\"),'TSA Input'!B2136,\"Ineligible\"))","v":""},{"$f":"IF('TSA Input'!J2136=\"\",\"\",IF(OR('TSA Input'!J2136=\"Yes\",'TSA Input'!J2136=\"Contingent\"),'TSA Input'!I2136,\"\"))","v":""},{"$f":"IF('TSA Input'!J2136=\"\",\"\",IF(OR('TSA Input'!J2136=\"Yes\",'TSA Input'!J2136=\"Contingent\"),'TSA Input'!C2136,\"\"))","v":""},{"$f":"IF('TSA Input'!J2136=\"\",\"\",IF(OR('TSA Input'!J2136=\"Yes\",'TSA Input'!J2136=\"Contingent\"),'TSA Input'!D2136,\"\"))","v":""},{"$f":"IF('TSA Input'!J2136=\"\",\"\",IF(OR('TSA Input'!J2136=\"Yes\",'TSA Input'!J2136=\"Contingent\"),'TSA Input'!G2136,\"\"))","v":""},{"$f":"IF('TSA Input'!J2136=\"\",\"\",IF(OR('TSA Input'!J2136=\"Yes\",'TSA Input'!J2136=\"Contingent\"),'TSA Input'!F2136,\"\"))","v":""},"",{"$f":"IF('TSA Input'!J2136=\"\",\"\",IF(OR('TSA Input'!J2136=\"Yes\",'TSA Input'!J2136=\"Contingent\"),'TSA Input'!D2136,\"\"))","v":""},{"$f":"IF('TSA Input'!J2136=\"\",\"\",IF(OR('TSA Input'!J2136=\"Yes\",'TSA Input'!J2136=\"Contingent\"),'TSA Input'!G2136,\"\"))","v":""},{"$f":"IF('TSA Input'!J2136=\"\",\"\",IF(OR('TSA Input'!J2136=\"Yes\",'TSA Input'!J2136=\"Contingent\"),'TSA Input'!F2136,\"\"))","v":""},"","Required","Required"]
["",null,{"$f":"IF('TSA Input'!J2137=\"\",\"\",IF(OR('TSA Input'!J2137=\"Yes\",'TSA Input'!J2137=\"Contingent\"),'TSA Input'!B2137,\"Ineligible\"))","v":""},{"$f":"IF('TSA Input'!J2137=\"\",\"\",IF(OR('TSA Input'!J2137=\"Yes\",'TSA Input'!J2137=\"Contingent\"),'TSA Input'!I2137,\"\"))","v":""},{"$f":"IF('TSA Input'!J2137=\"\",\"\",IF(OR('TSA Input'!J2137=\"Yes\",'TSA Input'!J2137=\"Contingent\"),'TSA Input'!C2137,\"\"))","v":""},{"$f":"IF('TSA Input'!J2137=\"\",\"\",IF(OR('TSA Input'!J2137=\"Yes\",'TSA Input'!J2137=\"Contingent\"),'TSA Input'!D2137,\"\"))","v":""},{"$f":"IF('TSA Input'!J2137=\"\",\"\",IF(OR('TSA Input'!J2137=\"Yes\",'TSA Input'!J2137=\"Contingent\"),'TSA Input'!G2137,\"\"))","v":""},{"$f":"IF('TSA Input'!J2137=\"\",\"\",IF(OR('TSA Input'!J2137=\"Yes\",'TSA Input'!J2137=\"Contingent\"),'TSA Input'!F2137,\"\"))","v":""},"",{"$f":"IF('TSA Input'!J2137=\"\",\"\",IF(OR('TSA Input'!J2137=\"Yes\",'TSA Input'!J2137=\"Contingent\"),'TSA Input'!D2137,\"\"))","v":""},{"$f":"IF('TSA Input'!J2137=\"\",\"\",IF(OR('TSA Input'!J2137=\"Yes\",'TSA Input'!J2137=\"Contingent\"),'TSA Input'!G2137,\"\"))","v":""},{"$f":"IF('TSA Input'!J2137=\"\",\"\",IF(OR('TSA Input'!J2137=\"Yes\",'TSA Input'!J2137=\"Contingent\"),'TSA Input'!F2137,\"\"))","v":""},"","Required","Required"]
["",null,{"$f":"IF('TSA Input'!J2138=\"\",\"\",IF(OR('TSA Input'!J2138=\"Yes\",'TSA Input'!J2138=\"Contingent\"),'TSA Input'!B2138,\"Ineligible\"))","v":""},{"$f":"IF('TSA Input'!J2138=\"\",\"\",IF(OR('TSA Input'!J2138=\"Yes\",'TSA Input'!J2138=\"Contingent\"),'TSA Input'!I2138,\"\"))","v":""},{"$f":"IF('TSA Input'!J2138=\"\",\"\",IF(OR('TSA Input'!J2138=\"Yes\",'TSA Input'!J2138=\"Contingent\"),'TSA Input'!C2138,\"\"))","v":""},{"$f":"IF('TSA Input'!J2138=\"\",\"\",IF(OR('TSA Input'!J2138=\"Yes\",'TSA Input'!J2138=\"Contingent\"),'TSA Input'!D2138,\"\"))","v":""},{"$f":"IF('TSA Input'!J2138=\"\",\"\",IF(OR('TSA Input'!J2138=\"Yes\",'TSA Input'!J2138=\"Contingent\"),'TSA Input'!G2138,\"\"))","v":""},{"$f":"IF('TSA Input'!J2138=\"\",\"\",IF(OR('TSA Input'!J2138=\"Yes\",'TSA Input'!J2138=\"Contingent\"),'TSA Input'!F2138,\"\"))","v":""},"",{"$f":"IF('TSA Input'!J2138=\"\",\"\",IF(OR('TSA Input'!J2138=\"Yes\",'TSA Input'!J2138=\"Contingent\"),'TSA Input'!D2138,\"\"))","v":""},{"$f":"IF('TSA Input'!J2138=\"\",\"\",IF(OR('TSA Input'!J2138=\"Yes\",'TSA Input'!J2138=\"Contingent\"),'TSA Input'!G2138,\"\"))","v":""},{"$f":"IF('TSA Input'!J2138=\"\",\"\",IF(OR('TSA Input'!J2138=\"Yes\",'TSA Input'!J2138=\"Contingent\"),'TSA Input'!F2138,\"\"))","v":""},"","Required","Required"]
["",null,{"$f":"IF('TSA Input'!J2139=\"\",\"\",IF(OR('TSA Input'!J2139=\"Yes\",'TSA Input'!J2139=\"Contingent\"),'TSA Input'!B2139,\"Ineligible\"))","v":""},{"$f":"IF('TSA Input'!J2139=\"\",\"\",IF(OR('TSA Input'!J2139=\"Yes\",'TSA Input'!J2139=\"Contingent\"),'TSA Input'!I2139,\"\"))","v":""},{"$f":"IF('TSA Input'!J2139=\"\",\"\",IF(OR('TSA Input'!J2139=\"Yes\",'TSA Input'!J2139=\"Contingent\"),'TSA Input'!C2139,\"\"))","v":""},{"$f":"IF('TSA Input'!J2139=\"\",\"\",IF(OR('TSA Input'!J2139=\"Yes\",'TSA Input'!J2139=\"Contingent\"),'TSA Input'!D2139,\"\"))","v":""},{"$f":"IF('TSA Input'!J2139=\"\",\"\",IF(OR('TSA Input'!J2139=\"Yes\",'TSA Input'!J2139=\"Contingent\"),'TSA Input'!G2139,\"\"))","v":""},{"$f":"IF('TSA Input'!J2139=\"\",\"\",IF(OR('TSA Input'!J2139=\"Yes\",'TSA Input'!J2139=\"Contingent\"),'TSA Input'!F2139,\"\"))","v":""},"",{"$f":"IF('TSA Input'!J2139=\"\",\"\",IF(OR('TSA Input'!J2139=\"Yes\",'TSA Input'!J2139=\"Contingent\"),'TSA Input'!D2139,\"\"))","v":""},{"$f":"IF('TSA Input'!J2139=\"\",\"\",IF(OR('TSA Input'!J2139=\"Yes\",'TSA Input'!J2139=\"Contingent\"),'TSA Input'!G2139,\"\"))","v":""},{"$f":"IF('TSA Input'!J2139=\"\",\"\",IF(OR('TSA Input'!J2139=\"Yes\",'TSA Input'!J2139=\"Contingent\"),'TSA Input'!F2139,\"\"))","v":""},"","Required","Required"]
["",null,{"$f":"IF('TSA Input'!J2140=\"\",\"\",IF(OR('TSA Input'!J2140=\"Yes\",'TSA Input'!J2140=\"Contingent\"),'TSA Input'!B2140,\"Ineligible\"))","v":""},{"$f":"IF('TSA Input'!J2140=\"\",\"\",IF(OR('TSA Input'!J2140=\"Yes\",'TSA Input'!J2140=\"Contingent\"),'TSA Input'!I2140,\"\"))","v":""},{"$f":"IF('TSA Input'!J2140=\"\",\"\",IF(OR('TSA Input'!J2140=\"Yes\",'TSA Input'!J2140=\"Contingent\"),'TSA Input'!C2140,\"\"))","v":""},{"$f":"IF('TSA Input'!J2140=\"\",\"\",IF(OR('TSA Input'!J2140=\"Yes\",'TSA Input'!J2140=\"Contingent\"),'TSA Input'!D2140,\"\"))","v":""},{"$f":"IF('TSA Input'!J2140=\"\",\"\",IF(OR('TSA Input'!J2140=\"Yes\",'TSA Input'!J2140=\"Contingent\"),'TSA Input'!G2140,\"\"))","v":""},{"$f":"IF('TSA Input'!J2140=\"\",\"\",IF(OR('TSA Input'!J2140=\"Yes\",'TSA Input'!J2140=\"Contingent\"),'TSA Input'!F2140,\"\"))","v":""},"",{"$f":"IF('TSA Input'!J2140=\"\",\"\",IF(OR('TSA Input'!J2140=\"Yes\",'TSA Input'!J2140=\"Contingent\"),'TSA Input'!D2140,\"\"))","v":""},{"$f":"IF('TSA Input'!J2140=\"\",\"\",IF(OR('TSA Input'!J2140=\"Yes\",'TSA Input'!J2140=\"Contingent\"),'TSA Input'!G2140,\"\"))","v":""},{"$f":"IF('TSA Input'!J2140=\"\",\"\",IF(OR('TSA Input'!J2140=\"Yes\",'TSA Input'!J2140=\"Contingent\"),'TSA Input'!F2140,\"\"))","v":""},"","Required","Required"]
["",null,{"$f":"IF('TSA Input'!J2141=\"\",\"\",IF(OR('TSA Input'!J2141=\"Yes\",'TSA Input'!J2141=\"Contingent\"),'TSA Input'!B2141,\"Ineligible\"))","v":""},{"$f":"IF('TSA Input'!J2141=\"\",\"\",IF(OR('TSA Input'!J2141=\"Yes\",'TSA Input'!J2141=\"Contingent\"),'TSA Input'!I2141,\"\"))","v":""},{"$f":"IF('TSA Input'!J2141=\"\",\"\",IF(OR('TSA Input'!J2141=\"Yes\",'TSA Input'!J2141=\"Contingent\"),'TSA Input'!C2141,\"\"))","v":""},{"$f":"IF('TSA Input'!J2141=\"\",\"\",IF(OR('TSA Input'!J2141=\"Yes\",'TSA Input'!J2141=\"Contingent\"),'TSA Input'!D2141,\"\"))","v":""},{"$f":"IF('TSA Input'!J2141=\"\",\"\",IF(OR('TSA Input'!J2141=\"Yes\",'TSA Input'!J2141=\"Contingent\"),'TSA Input'!G2141,\"\"))","v":""},{"$f":"IF('TSA Input'!J2141=\"\",\"\",IF(OR('TSA Input'!J2141=\"Yes\",'TSA Input'!J2141=\"Contingent\"),'TSA Input'!F2141,\"\"))","v":""},"",{"$f":"IF('TSA Input'!J2141=\"\",\"\",IF(OR('TSA Input'!J2141=\"Yes\",'TSA Input'!J2141=\"Contingent\"),'TSA Input'!D2141,\"\"))","v":""},{"$f":"IF('TSA Input'!J2141=\"\",\"\",IF(OR('TSA Input'!J2141=\"Yes\",'TSA Input'!J2141=\"Contingent\"),'TSA Input'!G2141,\"\"))","v":""},{"$f":"IF('TSA Input'!J2141=\"\",\"\",IF(OR('TSA Input'!J2141=\"Yes\",'TSA Input'!J2141=\"Contingent\"),'TSA Input'!F2141,\"\"))","v":""},"","Required","Required"]
["",null,{"$f":"IF('TSA Input'!J2142=\"\",\"\",IF(OR('TSA Input'!J2142=\"Yes\",'TSA Input'!J2142=\"Contingent\"),'TSA Input'!B2142,\"Ineligible\"))","v":""},{"$f":"IF('TSA Input'!J2142=\"\",\"\",IF(OR('TSA Input'!J2142=\"Yes\",'TSA Input'!J2142=\"Contingent\"),'TSA Input'!I2142,\"\"))","v":""},{"$f":"IF('TSA Input'!J2142=\"\",\"\",IF(OR('TSA Input'!J2142=\"Yes\",'TSA Input'!J2142=\"Contingent\"),'TSA Input'!C2142,\"\"))","v":""},{"$f":"IF('TSA Input'!J2142=\"\",\"\",IF(OR('TSA Input'!J2142=\"Yes\",'TSA Input'!J2142=\"Contingent\"),'TSA Input'!D2142,\"\"))","v":""},{"$f":"IF('TSA Input'!J2142=\"\",\"\",IF(OR('TSA Input'!J2142=\"Yes\",'TSA Input'!J2142=\"Contingent\"),'TSA Input'!G2142,\"\"))","v":""},{"$f":"IF('TSA Input'!J2142=\"\",\"\",IF(OR('TSA Input'!J2142=\"Yes\",'TSA Input'!J2142=\"Contingent\"),'TSA Input'!F2142,\"\"))","v":""},"",{"$f":"IF('TSA Input'!J2142=\"\",\"\",IF(OR('TSA Input'!J2142=\"Yes\",'TSA Input'!J2142=\"Contingent\"),'TSA Input'!D2142,\"\"))","v":""},{"$f":"IF('TSA Input'!J2142=\"\",\"\",IF(OR('TSA Input'!J2142=\"Yes\",'TSA Input'!J2142=\"Contingent\"),'TSA Input'!G2142,\"\"))","v":""},{"$f":"IF('TSA Input'!J2142=\"\",\"\",IF(OR('TSA Input'!J2142=\"Yes\",'TSA Input'!J2142=\"Contingent\"),'TSA Input'!F2142,\"\"))","v":""},"","Required","Required"]
["",null,{"$f":"IF('TSA Input'!J2143=\"\",\"\",IF(OR('TSA Input'!J2143=\"Yes\",'TSA Input'!J2143=\"Contingent\"),'TSA Input'!B2143,\"Ineligible\"))","v":""},{"$f":"IF('TSA Input'!J2143=\"\",\"\",IF(OR('TSA Input'!J2143=\"Yes\",'TSA Input'!J2143=\"Contingent\"),'TSA Input'!I2143,\"\"))","v":""},{"$f":"IF('TSA Input'!J2143=\"\",\"\",IF(OR('TSA Input'!J2143=\"Yes\",'TSA Input'!J2143=\"Contingent\"),'TSA Input'!C2143,\"\"))","v":""},{"$f":"IF('TSA Input'!J2143=\"\",\"\",IF(OR('TSA Input'!J2143=\"Yes\",'TSA Input'!J2143=\"Contingent\"),'TSA Input'!D2143,\"\"))","v":""},{"$f":"IF('TSA Input'!J2143=\"\",\"\",IF(OR('TSA Input'!J2143=\"Yes\",'TSA Input'!J2143=\"Contingent\"),'TSA Input'!G2143,\"\"))","v":""},{"$f":"IF('TSA Input'!J2143=\"\",\"\",IF(OR('TSA Input'!J2143=\"Yes\",'TSA Input'!J2143=\"Contingent\"),'TSA Input'!F2143,\"\"))","v":""},"",{"$f":"IF('TSA Input'!J2143=\"\",\"\",IF(OR('TSA Input'!J2143=\"Yes\",'TSA Input'!J2143=\"Contingent\"),'TSA Input'!D2143,\"\"))","v":""},{"$f":"IF('TSA Input'!J2143=\"\",\"\",IF(OR('TSA Input'!J2143=\"Yes\",'TSA Input'!J2143=\"Contingent\"),'TSA Input'!G2143,\"\"))","v":""},{"$f":"IF('TSA Input'!J2143=\"\",\"\",IF(OR('TSA Input'!J2143=\"Yes\",'TSA Input'!J2143=\"Contingent\"),'TSA Input'!F2143,\"\"))","v":""},"","Required","Required"]
["",null,{"$f":"IF('TSA Input'!J2144=\"\",\"\",IF(OR('TSA Input'!J2144=\"Yes\",'TSA Input'!J2144=\"Contingent\"),'TSA Input'!B2144,\"Ineligible\"))","v":""},{"$f":"IF('TSA Input'!J2144=\"\",\"\",IF(OR('TSA Input'!J2144=\"Yes\",'TSA Input'!J2144=\"Contingent\"),'TSA Input'!I2144,\"\"))","v":""},{"$f":"IF('TSA Input'!J2144=\"\",\"\",IF(OR('TSA Input'!J2144=\"Yes\",'TSA Input'!J2144=\"Contingent\"),'TSA Input'!C2144,\"\"))","v":""},{"$f":"IF('TSA Input'!J2144=\"\",\"\",IF(OR('TSA Input'!J2144=\"Yes\",'TSA Input'!J2144=\"Contingent\"),'TSA Input'!D2144,\"\"))","v":""},{"$f":"IF('TSA Input'!J2144=\"\",\"\",IF(OR('TSA Input'!J2144=\"Yes\",'TSA Input'!J2144=\"Contingent\"),'TSA Input'!G2144,\"\"))","v":""},{"$f":"IF('TSA Input'!J2144=\"\",\"\",IF(OR('TSA Input'!J2144=\"Yes\",'TSA Input'!J2144=\"Contingent\"),'TSA Input'!F2144,\"\"))","v":""},"",{"$f":"IF('TSA Input'!J2144=\"\",\"\",IF(OR('TSA Input'!J2144=\"Yes\",'TSA Input'!J2144=\"Contingent\"),'TSA Input'!D2144,\"\"))","v":""},{"$f":"IF('TSA Input'!J2144=\"\",\"\",IF(OR('TSA Input'!J2144=\"Yes\",'TSA Input'!J2144=\"Contingent\"),'TSA Input'!G2144,\"\"))","v":""},{"$f":"IF('TSA Input'!J2144=\"\",\"\",IF(OR('TSA Input'!J2144=\"Yes\",'TSA Input'!J2144=\"Contingent\"),'TSA Input'!F2144,\"\"))","v":""},"","Required","Required"]
["",null,{"$f":"IF('TSA Input'!J2145=\"\",\"\",IF(OR('TSA Input'!J2145=\"Yes\",'TSA Input'!J2145=\"Contingent\"),'TSA Input'!B2145,\"Ineligible\"))","v":""},{"$f":"IF('TSA Input'!J2145=\"\",\"\",IF(OR('TSA Input'!J2145=\"Yes\",'TSA Input'!J2145=\"Contingent\"),'TSA Input'!I2145,\"\"))","v":""},{"$f":"IF('TSA Input'!J2145=\"\",\"\",IF(OR('TSA Input'!J2145=\"Yes\",'TSA Input'!J2145=\"Contingent\"),'TSA Input'!C2145,\"\"))","v":""},{"$f":"IF('TSA Input'!J2145=\"\",\"\",IF(OR('TSA Input'!J2145=\"Yes\",'TSA Input'!J2145=\"Contingent\"),'TSA Input'!D2145,\"\"))","v":""},{"$f":"IF('TSA Input'!J2145=\"\",\"\",IF(OR('TSA Input'!J2145=\"Yes\",'TSA Input'!J2145=\"Contingent\"),'TSA Input'!G2145,\"\"))","v":""},{"$f":"IF('TSA Input'!J2145=\"\",\"\",IF(OR('TSA Input'!J2145=\"Yes\",'TSA Input'!J2145=\"Contingent\"),'TSA Input'!F2145,\"\"))","v":""},"",{"$f":"IF('TSA Input'!J2145=\"\",\"\",IF(OR('TSA Input'!J2145=\"Yes\",'TSA Input'!J2145=\"Contingent\"),'TSA Input'!D2145,\"\"))","v":""},{"$f":"IF('TSA Input'!J2145=\"\",\"\",IF(OR('TSA Input'!J2145=\"Yes\",'TSA Input'!J2145=\"Contingent\"),'TSA Input'!G2145,\"\"))","v":""},{"$f":"IF('TSA Input'!J2145=\"\",\"\",IF(OR('TSA Input'!J2145=\"Yes\",'TSA Input'!J2145=\"Contingent\"),'TSA Input'!F2145,\"\"))","v":""},"","Required","Required"]
["",null,{"$f":"IF('TSA Input'!J2146=\"\",\"\",IF(OR('TSA Input'!J2146=\"Yes\",'TSA Input'!J2146=\"Contingent\"),'TSA Input'!B2146,\"Ineligible\"))","v":""},{"$f":"IF('TSA Input'!J2146=\"\",\"\",IF(OR('TSA Input'!J2146=\"Yes\",'TSA Input'!J2146=\"Contingent\"),'TSA Input'!I2146,\"\"))","v":""},{"$f":"IF('TSA Input'!J2146=\"\",\"\",IF(OR('TSA Input'!J2146=\"Yes\",'TSA Input'!J2146=\"Contingent\"),'TSA Input'!C2146,\"\"))","v":""},{"$f":"IF('TSA Input'!J2146=\"\",\"\",IF(OR('TSA Input'!J2146=\"Yes\",'TSA Input'!J2146=\"Contingent\"),'TSA Input'!D2146,\"\"))","v":""},{"$f":"IF('TSA Input'!J2146=\"\",\"\",IF(OR('TSA Input'!J2146=\"Yes\",'TSA Input'!J2146=\"Contingent\"),'TSA Input'!G2146,\"\"))","v":""},{"$f":"IF('TSA Input'!J2146=\"\",\"\",IF(OR('TSA Input'!J2146=\"Yes\",'TSA Input'!J2146=\"Contingent\"),'TSA Input'!F2146,\"\"))","v":""},"",{"$f":"IF('TSA Input'!J2146=\"\",\"\",IF(OR('TSA Input'!J2146=\"Yes\",'TSA Input'!J2146=\"Contingent\"),'TSA Input'!D2146,\"\"))","v":""},{"$f":"IF('TSA Input'!J2146=\"\",\"\",IF(OR('TSA Input'!J2146=\"Yes\",'TSA Input'!J2146=\"Contingent\"),'TSA Input'!G2146,\"\"))","v":""},{"$f":"IF('TSA Input'!J2146=\"\",\"\",IF(OR('TSA Input'!J2146=\"Yes\",'TSA Input'!J2146=\"Contingent\"),'TSA Input'!F2146,\"\"))","v":""},"","Required","Required"]
["",null,{"$f":"IF('TSA Input'!J2147=\"\",\"\",IF(OR('TSA Input'!J2147=\"Yes\",'TSA Input'!J2147=\"Contingent\"),'TSA Input'!B2147,\"Ineligible\"))","v":""},{"$f":"IF('TSA Input'!J2147=\"\",\"\",IF(OR('TSA Input'!J2147=\"Yes\",'TSA Input'!J2147=\"Contingent\"),'TSA Input'!I2147,\"\"))","v":""},{"$f":"IF('TSA Input'!J2147=\"\",\"\",IF(OR('TSA Input'!J2147=\"Yes\",'TSA Input'!J2147=\"Contingent\"),'TSA Input'!C2147,\"\"))","v":""},{"$f":"IF('TSA Input'!J2147=\"\",\"\",IF(OR('TSA Input'!J2147=\"Yes\",'TSA Input'!J2147=\"Contingent\"),'TSA Input'!D2147,\"\"))","v":""},{"$f":"IF('TSA Input'!J2147=\"\",\"\",IF(OR('TSA Input'!J2147=\"Yes\",'TSA Input'!J2147=\"Contingent\"),'TSA Input'!G2147,\"\"))","v":""},{"$f":"IF('TSA Input'!J2147=\"\",\"\",IF(OR('TSA Input'!J2147=\"Yes\",'TSA Input'!J2147=\"Contingent\"),'TSA Input'!F2147,\"\"))","v":""},"",{"$f":"IF('TSA Input'!J2147=\"\",\"\",IF(OR('TSA Input'!J2147=\"Yes\",'TSA Input'!J2147=\"Contingent\"),'TSA Input'!D2147,\"\"))","v":""},{"$f":"IF('TSA Input'!J2147=\"\",\"\",IF(OR('TSA Input'!J2147=\"Yes\",'TSA Input'!J2147=\"Contingent\"),'TSA Input'!G2147,\"\"))","v":""},{"$f":"IF('TSA Input'!J2147=\"\",\"\",IF(OR('TSA Input'!J2147=\"Yes\",'TSA Input'!J2147=\"Contingent\"),'TSA Input'!F2147,\"\"))","v":""},"","Required","Required"]
["",null,{"$f":"IF('TSA Input'!J2148=\"\",\"\",IF(OR('TSA Input'!J2148=\"Yes\",'TSA Input'!J2148=\"Contingent\"),'TSA Input'!B2148,\"Ineligible\"))","v":""},{"$f":"IF('TSA Input'!J2148=\"\",\"\",IF(OR('TSA Input'!J2148=\"Yes\",'TSA Input'!J2148=\"Contingent\"),'TSA Input'!I2148,\"\"))","v":""},{"$f":"IF('TSA Input'!J2148=\"\",\"\",IF(OR('TSA Input'!J2148=\"Yes\",'TSA Input'!J2148=\"Contingent\"),'TSA Input'!C2148,\"\"))","v":""},{"$f":"IF('TSA Input'!J2148=\"\",\"\",IF(OR('TSA Input'!J2148=\"Yes\",'TSA Input'!J2148=\"Contingent\"),'TSA Input'!D2148,\"\"))","v":""},{"$f":"IF('TSA Input'!J2148=\"\",\"\",IF(OR('TSA Input'!J2148=\"Yes\",'TSA Input'!J2148=\"Contingent\"),'TSA Input'!G2148,\"\"))","v":""},{"$f":"IF('TSA Input'!J2148=\"\",\"\",IF(OR('TSA Input'!J2148=\"Yes\",'TSA Input'!J2148=\"Contingent\"),'TSA Input'!F2148,\"\"))","v":""},"",{"$f":"IF('TSA Input'!J2148=\"\",\"\",IF(OR('TSA Input'!J2148=\"Yes\",'TSA Input'!J2148=\"Contingent\"),'TSA Input'!D2148,\"\"))","v":""},{"$f":"IF('TSA Input'!J2148=\"\",\"\",IF(OR('TSA Input'!J2148=\"Yes\",'TSA Input'!J2148=\"Contingent\"),'TSA Input'!G2148,\"\"))","v":""},{"$f":"IF('TSA Input'!J2148=\"\",\"\",IF(OR('TSA Input'!J2148=\"Yes\",'TSA Input'!J2148=\"Contingent\"),'TSA Input'!F2148,\"\"))","v":""},"","Required","Required"]
["",null,{"$f":"IF('TSA Input'!J2149=\"\",\"\",IF(OR('TSA Input'!J2149=\"Yes\",'TSA Input'!J2149=\"Contingent\"),'TSA Input'!B2149,\"Ineligible\"))","v":""},{"$f":"IF('TSA Input'!J2149=\"\",\"\",IF(OR('TSA Input'!J2149=\"Yes\",'TSA Input'!J2149=\"Contingent\"),'TSA Input'!I2149,\"\"))","v":""},{"$f":"IF('TSA Input'!J2149=\"\",\"\",IF(OR('TSA Input'!J2149=\"Yes\",'TSA Input'!J2149=\"Contingent\"),'TSA Input'!C2149,\"\"))","v":""},{"$f":"IF('TSA Input'!J2149=\"\",\"\",IF(OR('TSA Input'!J2149=\"Yes\",'TSA Input'!J2149=\"Contingent\"),'TSA Input'!D2149,\"\"))","v":""},{"$f":"IF('TSA Input'!J2149=\"\",\"\",IF(OR('TSA Input'!J2149=\"Yes\",'TSA Input'!J2149=\"Contingent\"),'TSA Input'!G2149,\"\"))","v":""},{"$f":"IF('TSA Input'!J2149=\"\",\"\",IF(OR('TSA Input'!J2149=\"Yes\",'TSA Input'!J2149=\"Contingent\"),'TSA Input'!F2149,\"\"))","v":""},"",{"$f":"IF('TSA Input'!J2149=\"\",\"\",IF(OR('TSA Input'!J2149=\"Yes\",'TSA Input'!J2149=\"Contingent\"),'TSA Input'!D2149,\"\"))","v":""},{"$f":"IF('TSA Input'!J2149=\"\",\"\",IF(OR('TSA Input'!J2149=\"Yes\",'TSA Input'!J2149=\"Contingent\"),'TSA Input'!G2149,\"\"))","v":""},{"$f":"IF('TSA Input'!J2149=\"\",\"\",IF(OR('TSA Input'!J2149=\"Yes\",'TSA Input'!J2149=\"Contingent\"),'TSA Input'!F2149,\"\"))","v":""},"","Required","Required"]
["",null,{"$f":"IF('TSA Input'!J2150=\"\",\"\",IF(OR('TSA Input'!J2150=\"Yes\",'TSA Input'!J2150=\"Contingent\"),'TSA Input'!B2150,\"Ineligible\"))","v":""},{"$f":"IF('TSA Input'!J2150=\"\",\"\",IF(OR('TSA Input'!J2150=\"Yes\",'TSA Input'!J2150=\"Contingent\"),'TSA Input'!I2150,\"\"))","v":""},{"$f":"IF('TSA Input'!J2150=\"\",\"\",IF(OR('TSA Input'!J2150=\"Yes\",'TSA Input'!J2150=\"Contingent\"),'TSA Input'!C2150,\"\"))","v":""},{"$f":"IF('TSA Input'!J2150=\"\",\"\",IF(OR('TSA Input'!J2150=\"Yes\",'TSA Input'!J2150=\"Contingent\"),'TSA Input'!D2150,\"\"))","v":""},{"$f":"IF('TSA Input'!J2150=\"\",\"\",IF(OR('TSA Input'!J2150=\"Yes\",'TSA Input'!J2150=\"Contingent\"),'TSA Input'!G2150,\"\"))","v":""},{"$f":"IF('TSA Input'!J2150=\"\",\"\",IF(OR('TSA Input'!J2150=\"Yes\",'TSA Input'!J2150=\"Contingent\"),'TSA Input'!F2150,\"\"))","v":""},"",{"$f":"IF('TSA Input'!J2150=\"\",\"\",IF(OR('TSA Input'!J2150=\"Yes\",'TSA Input'!J2150=\"Contingent\"),'TSA Input'!D2150,\"\"))","v":""},{"$f":"IF('TSA Input'!J2150=\"\",\"\",IF(OR('TSA Input'!J2150=\"Yes\",'TSA Input'!J2150=\"Contingent\"),'TSA Input'!G2150,\"\"))","v":""},{"$f":"IF('TSA Input'!J2150=\"\",\"\",IF(OR('TSA Input'!J2150=\"Yes\",'TSA Input'!J2150=\"Contingent\"),'TSA Input'!F2150,\"\"))","v":""},"","Required","Required"]
["",null,{"$f":"IF('TSA Input'!J2151=\"\",\"\",IF(OR('TSA Input'!J2151=\"Yes\",'TSA Input'!J2151=\"Contingent\"),'TSA Input'!B2151,\"Ineligible\"))","v":""},{"$f":"IF('TSA Input'!J2151=\"\",\"\",IF(OR('TSA Input'!J2151=\"Yes\",'TSA Input'!J2151=\"Contingent\"),'TSA Input'!I2151,\"\"))","v":""},{"$f":"IF('TSA Input'!J2151=\"\",\"\",IF(OR('TSA Input'!J2151=\"Yes\",'TSA Input'!J2151=\"Contingent\"),'TSA Input'!C2151,\"\"))","v":""},{"$f":"IF('TSA Input'!J2151=\"\",\"\",IF(OR('TSA Input'!J2151=\"Yes\",'TSA Input'!J2151=\"Contingent\"),'TSA Input'!D2151,\"\"))","v":""},{"$f":"IF('TSA Input'!J2151=\"\",\"\",IF(OR('TSA Input'!J2151=\"Yes\",'TSA Input'!J2151=\"Contingent\"),'TSA Input'!G2151,\"\"))","v":""},{"$f":"IF('TSA Input'!J2151=\"\",\"\",IF(OR('TSA Input'!J2151=\"Yes\",'TSA Input'!J2151=\"Contingent\"),'TSA Input'!F2151,\"\"))","v":""},"",{"$f":"IF('TSA Input'!J2151=\"\",\"\",IF(OR('TSA Input'!J2151=\"Yes\",'TSA Input'!J2151=\"Contingent\"),'TSA Input'!D2151,\"\"))","v":""},{"$f":"IF('TSA Input'!J2151=\"\",\"\",IF(OR('TSA Input'!J2151=\"Yes\",'TSA Input'!J2151=\"Contingent\"),'TSA Input'!G2151,\"\"))","v":""},{"$f":"IF('TSA Input'!J2151=\"\",\"\",IF(OR('TSA Input'!J2151=\"Yes\",'TSA Input'!J2151=\"Contingent\"),'TSA Input'!F2151,\"\"))","v":""},"","Required","Required"]
["",null,{"$f":"IF('TSA Input'!J2152=\"\",\"\",IF(OR('TSA Input'!J2152=\"Yes\",'TSA Input'!J2152=\"Contingent\"),'TSA Input'!B2152,\"Ineligible\"))","v":""},{"$f":"IF('TSA Input'!J2152=\"\",\"\",IF(OR('TSA Input'!J2152=\"Yes\",'TSA Input'!J2152=\"Contingent\"),'TSA Input'!I2152,\"\"))","v":""},{"$f":"IF('TSA Input'!J2152=\"\",\"\",IF(OR('TSA Input'!J2152=\"Yes\",'TSA Input'!J2152=\"Contingent\"),'TSA Input'!C2152,\"\"))","v":""},{"$f":"IF('TSA Input'!J2152=\"\",\"\",IF(OR('TSA Input'!J2152=\"Yes\",'TSA Input'!J2152=\"Contingent\"),'TSA Input'!D2152,\"\"))","v":""},{"$f":"IF('TSA Input'!J2152=\"\",\"\",IF(OR('TSA Input'!J2152=\"Yes\",'TSA Input'!J2152=\"Contingent\"),'TSA Input'!G2152,\"\"))","v":""},{"$f":"IF('TSA Input'!J2152=\"\",\"\",IF(OR('TSA Input'!J2152=\"Yes\",'TSA Input'!J2152=\"Contingent\"),'TSA Input'!F2152,\"\"))","v":""},"",{"$f":"IF('TSA Input'!J2152=\"\",\"\",IF(OR('TSA Input'!J2152=\"Yes\",'TSA Input'!J2152=\"Contingent\"),'TSA Input'!D2152,\"\"))","v":""},{"$f":"IF('TSA Input'!J2152=\"\",\"\",IF(OR('TSA Input'!J2152=\"Yes\",'TSA Input'!J2152=\"Contingent\"),'TSA Input'!G2152,\"\"))","v":""},{"$f":"IF('TSA Input'!J2152=\"\",\"\",IF(OR('TSA Input'!J2152=\"Yes\",'TSA Input'!J2152=\"Contingent\"),'TSA Input'!F2152,\"\"))","v":""},"","Required","Required"]
["",null,{"$f":"IF('TSA Input'!J2153=\"\",\"\",IF(OR('TSA Input'!J2153=\"Yes\",'TSA Input'!J2153=\"Contingent\"),'TSA Input'!B2153,\"Ineligible\"))","v":""},{"$f":"IF('TSA Input'!J2153=\"\",\"\",IF(OR('TSA Input'!J2153=\"Yes\",'TSA Input'!J2153=\"Contingent\"),'TSA Input'!I2153,\"\"))","v":""},{"$f":"IF('TSA Input'!J2153=\"\",\"\",IF(OR('TSA Input'!J2153=\"Yes\",'TSA Input'!J2153=\"Contingent\"),'TSA Input'!C2153,\"\"))","v":""},{"$f":"IF('TSA Input'!J2153=\"\",\"\",IF(OR('TSA Input'!J2153=\"Yes\",'TSA Input'!J2153=\"Contingent\"),'TSA Input'!D2153,\"\"))","v":""},{"$f":"IF('TSA Input'!J2153=\"\",\"\",IF(OR('TSA Input'!J2153=\"Yes\",'TSA Input'!J2153=\"Contingent\"),'TSA Input'!G2153,\"\"))","v":""},{"$f":"IF('TSA Input'!J2153=\"\",\"\",IF(OR('TSA Input'!J2153=\"Yes\",'TSA Input'!J2153=\"Contingent\"),'TSA Input'!F2153,\"\"))","v":""},"",{"$f":"IF('TSA Input'!J2153=\"\",\"\",IF(OR('TSA Input'!J2153=\"Yes\",'TSA Input'!J2153=\"Contingent\"),'TSA Input'!D2153,\"\"))","v":""},{"$f":"IF('TSA Input'!J2153=\"\",\"\",IF(OR('TSA Input'!J2153=\"Yes\",'TSA Input'!J2153=\"Contingent\"),'TSA Input'!G2153,\"\"))","v":""},{"$f":"IF('TSA Input'!J2153=\"\",\"\",IF(OR('TSA Input'!J2153=\"Yes\",'TSA Input'!J2153=\"Contingent\"),'TSA Input'!F2153,\"\"))","v":""},"","Required","Required"]
["",null,{"$f":"IF('TSA Input'!J2154=\"\",\"\",IF(OR('TSA Input'!J2154=\"Yes\",'TSA Input'!J2154=\"Contingent\"),'TSA Input'!B2154,\"Ineligible\"))","v":""},{"$f":"IF('TSA Input'!J2154=\"\",\"\",IF(OR('TSA Input'!J2154=\"Yes\",'TSA Input'!J2154=\"Contingent\"),'TSA Input'!I2154,\"\"))","v":""},{"$f":"IF('TSA Input'!J2154=\"\",\"\",IF(OR('TSA Input'!J2154=\"Yes\",'TSA Input'!J2154=\"Contingent\"),'TSA Input'!C2154,\"\"))","v":""},{"$f":"IF('TSA Input'!J2154=\"\",\"\",IF(OR('TSA Input'!J2154=\"Yes\",'TSA Input'!J2154=\"Contingent\"),'TSA Input'!D2154,\"\"))","v":""},{"$f":"IF('TSA Input'!J2154=\"\",\"\",IF(OR('TSA Input'!J2154=\"Yes\",'TSA Input'!J2154=\"Contingent\"),'TSA Input'!G2154,\"\"))","v":""},{"$f":"IF('TSA Input'!J2154=\"\",\"\",IF(OR('TSA Input'!J2154=\"Yes\",'TSA Input'!J2154=\"Contingent\"),'TSA Input'!F2154,\"\"))","v":""},"",{"$f":"IF('TSA Input'!J2154=\"\",\"\",IF(OR('TSA Input'!J2154=\"Yes\",'TSA Input'!J2154=\"Contingent\"),'TSA Input'!D2154,\"\"))","v":""},{"$f":"IF('TSA Input'!J2154=\"\",\"\",IF(OR('TSA Input'!J2154=\"Yes\",'TSA Input'!J2154=\"Contingent\"),'TSA Input'!G2154,\"\"))","v":""},{"$f":"IF('TSA Input'!J2154=\"\",\"\",IF(OR('TSA Input'!J2154=\"Yes\",'TSA Input'!J2154=\"Contingent\"),'TSA Input'!F2154,\"\"))","v":""},"","Required","Required"]
["",null,{"$f":"IF('TSA Input'!J2155=\"\",\"\",IF(OR('TSA Input'!J2155=\"Yes\",'TSA Input'!J2155=\"Contingent\"),'TSA Input'!B2155,\"Ineligible\"))","v":""},{"$f":"IF('TSA Input'!J2155=\"\",\"\",IF(OR('TSA Input'!J2155=\"Yes\",'TSA Input'!J2155=\"Contingent\"),'TSA Input'!I2155,\"\"))","v":""},{"$f":"IF('TSA Input'!J2155=\"\",\"\",IF(OR('TSA Input'!J2155=\"Yes\",'TSA Input'!J2155=\"Contingent\"),'TSA Input'!C2155,\"\"))","v":""},{"$f":"IF('TSA Input'!J2155=\"\",\"\",IF(OR('TSA Input'!J2155=\"Yes\",'TSA Input'!J2155=\"Contingent\"),'TSA Input'!D2155,\"\"))","v":""},{"$f":"IF('TSA Input'!J2155=\"\",\"\",IF(OR('TSA Input'!J2155=\"Yes\",'TSA Input'!J2155=\"Contingent\"),'TSA Input'!G2155,\"\"))","v":""},{"$f":"IF('TSA Input'!J2155=\"\",\"\",IF(OR('TSA Input'!J2155=\"Yes\",'TSA Input'!J2155=\"Contingent\"),'TSA Input'!F2155,\"\"))","v":""},"",{"$f":"IF('TSA Input'!J2155=\"\",\"\",IF(OR('TSA Input'!J2155=\"Yes\",'TSA Input'!J2155=\"Contingent\"),'TSA Input'!D2155,\"\"))","v":""},{"$f":"IF('TSA Input'!J2155=\"\",\"\",IF(OR('TSA Input'!J2155=\"Yes\",'TSA Input'!J2155=\"Contingent\"),'TSA Input'!G2155,\"\"))","v":""},{"$f":"IF('TSA Input'!J2155=\"\",\"\",IF(OR('TSA Input'!J2155=\"Yes\",'TSA Input'!J2155=\"Contingent\"),'TSA Input'!F2155,\"\"))","v":""},"","Required","Required"]
["",null,{"$f":"IF('TSA Input'!J2156=\"\",\"\",IF(OR('TSA Input'!J2156=\"Yes\",'TSA Input'!J2156=\"Contingent\"),'TSA Input'!B2156,\"Ineligible\"))","v":""},{"$f":"IF('TSA Input'!J2156=\"\",\"\",IF(OR('TSA Input'!J2156=\"Yes\",'TSA Input'!J2156=\"Contingent\"),'TSA Input'!I2156,\"\"))","v":""},{"$f":"IF('TSA Input'!J2156=\"\",\"\",IF(OR('TSA Input'!J2156=\"Yes\",'TSA Input'!J2156=\"Contingent\"),'TSA Input'!C2156,\"\"))","v":""},{"$f":"IF('TSA Input'!J2156=\"\",\"\",IF(OR('TSA Input'!J2156=\"Yes\",'TSA Input'!J2156=\"Contingent\"),'TSA Input'!D2156,\"\"))","v":""},{"$f":"IF('TSA Input'!J2156=\"\",\"\",IF(OR('TSA Input'!J2156=\"Yes\",'TSA Input'!J2156=\"Contingent\"),'TSA Input'!G2156,\"\"))","v":""},{"$f":"IF('TSA Input'!J2156=\"\",\"\",IF(OR('TSA Input'!J2156=\"Yes\",'TSA Input'!J2156=\"Contingent\"),'TSA Input'!F2156,\"\"))","v":""},"",{"$f":"IF('TSA Input'!J2156=\"\",\"\",IF(OR('TSA Input'!J2156=\"Yes\",'TSA Input'!J2156=\"Contingent\"),'TSA Input'!D2156,\"\"))","v":""},{"$f":"IF('TSA Input'!J2156=\"\",\"\",IF(OR('TSA Input'!J2156=\"Yes\",'TSA Input'!J2156=\"Contingent\"),'TSA Input'!G2156,\"\"))","v":""},{"$f":"IF('TSA Input'!J2156=\"\",\"\",IF(OR('TSA Input'!J2156=\"Yes\",'TSA Input'!J2156=\"Contingent\"),'TSA Input'!F2156,\"\"))","v":""},"","Required","Required"]
["",null,{"$f":"IF('TSA Input'!J2157=\"\",\"\",IF(OR('TSA Input'!J2157=\"Yes\",'TSA Input'!J2157=\"Contingent\"),'TSA Input'!B2157,\"Ineligible\"))","v":""},{"$f":"IF('TSA Input'!J2157=\"\",\"\",IF(OR('TSA Input'!J2157=\"Yes\",'TSA Input'!J2157=\"Contingent\"),'TSA Input'!I2157,\"\"))","v":""},{"$f":"IF('TSA Input'!J2157=\"\",\"\",IF(OR('TSA Input'!J2157=\"Yes\",'TSA Input'!J2157=\"Contingent\"),'TSA Input'!C2157,\"\"))","v":""},{"$f":"IF('TSA Input'!J2157=\"\",\"\",IF(OR('TSA Input'!J2157=\"Yes\",'TSA Input'!J2157=\"Contingent\"),'TSA Input'!D2157,\"\"))","v":""},{"$f":"IF('TSA Input'!J2157=\"\",\"\",IF(OR('TSA Input'!J2157=\"Yes\",'TSA Input'!J2157=\"Contingent\"),'TSA Input'!G2157,\"\"))","v":""},{"$f":"IF('TSA Input'!J2157=\"\",\"\",IF(OR('TSA Input'!J2157=\"Yes\",'TSA Input'!J2157=\"Contingent\"),'TSA Input'!F2157,\"\"))","v":""},"",{"$f":"IF('TSA Input'!J2157=\"\",\"\",IF(OR('TSA Input'!J2157=\"Yes\",'TSA Input'!J2157=\"Contingent\"),'TSA Input'!D2157,\"\"))","v":""},{"$f":"IF('TSA Input'!J2157=\"\",\"\",IF(OR('TSA Input'!J2157=\"Yes\",'TSA Input'!J2157=\"Contingent\"),'TSA Input'!G2157,\"\"))","v":""},{"$f":"IF('TSA Input'!J2157=\"\",\"\",IF(OR('TSA Input'!J2157=\"Yes\",'TSA Input'!J2157=\"Contingent\"),'TSA Input'!F2157,\"\"))","v":""},"","Required","Required"]
["",null,{"$f":"IF('TSA Input'!J2158=\"\",\"\",IF(OR('TSA Input'!J2158=\"Yes\",'TSA Input'!J2158=\"Contingent\"),'TSA Input'!B2158,\"Ineligible\"))","v":""},{"$f":"IF('TSA Input'!J2158=\"\",\"\",IF(OR('TSA Input'!J2158=\"Yes\",'TSA Input'!J2158=\"Contingent\"),'TSA Input'!I2158,\"\"))","v":""},{"$f":"IF('TSA Input'!J2158=\"\",\"\",IF(OR('TSA Input'!J2158=\"Yes\",'TSA Input'!J2158=\"Contingent\"),'TSA Input'!C2158,\"\"))","v":""},{"$f":"IF('TSA Input'!J2158=\"\",\"\",IF(OR('TSA Input'!J2158=\"Yes\",'TSA Input'!J2158=\"Contingent\"),'TSA Input'!D2158,\"\"))","v":""},{"$f":"IF('TSA Input'!J2158=\"\",\"\",IF(OR('TSA Input'!J2158=\"Yes\",'TSA Input'!J2158=\"Contingent\"),'TSA Input'!G2158,\"\"))","v":""},{"$f":"IF('TSA Input'!J2158=\"\",\"\",IF(OR('TSA Input'!J2158=\"Yes\",'TSA Input'!J2158=\"Contingent\"),'TSA Input'!F2158,\"\"))","v":""},"",{"$f":"IF('TSA Input'!J2158=\"\",\"\",IF(OR('TSA Input'!J2158=\"Yes\",'TSA Input'!J2158=\"Contingent\"),'TSA Input'!D2158,\"\"))","v":""},{"$f":"IF('TSA Input'!J2158=\"\",\"\",IF(OR('TSA Input'!J2158=\"Yes\",'TSA Input'!J2158=\"Contingent\"),'TSA Input'!G2158,\"\"))","v":""},{"$f":"IF('TSA Input'!J2158=\"\",\"\",IF(OR('TSA Input'!J2158=\"Yes\",'TSA Input'!J2158=\"Contingent\"),'TSA Input'!F2158,\"\"))","v":""},"","Required","Required"]
["",null,{"$f":"IF('TSA Input'!J2159=\"\",\"\",IF(OR('TSA Input'!J2159=\"Yes\",'TSA Input'!J2159=\"Contingent\"),'TSA Input'!B2159,\"Ineligible\"))","v":""},{"$f":"IF('TSA Input'!J2159=\"\",\"\",IF(OR('TSA Input'!J2159=\"Yes\",'TSA Input'!J2159=\"Contingent\"),'TSA Input'!I2159,\"\"))","v":""},{"$f":"IF('TSA Input'!J2159=\"\",\"\",IF(OR('TSA Input'!J2159=\"Yes\",'TSA Input'!J2159=\"Contingent\"),'TSA Input'!C2159,\"\"))","v":""},{"$f":"IF('TSA Input'!J2159=\"\",\"\",IF(OR('TSA Input'!J2159=\"Yes\",'TSA Input'!J2159=\"Contingent\"),'TSA Input'!D2159,\"\"))","v":""},{"$f":"IF('TSA Input'!J2159=\"\",\"\",IF(OR('TSA Input'!J2159=\"Yes\",'TSA Input'!J2159=\"Contingent\"),'TSA Input'!G2159,\"\"))","v":""},{"$f":"IF('TSA Input'!J2159=\"\",\"\",IF(OR('TSA Input'!J2159=\"Yes\",'TSA Input'!J2159=\"Contingent\"),'TSA Input'!F2159,\"\"))","v":""},"",{"$f":"IF('TSA Input'!J2159=\"\",\"\",IF(OR('TSA Input'!J2159=\"Yes\",'TSA Input'!J2159=\"Contingent\"),'TSA Input'!D2159,\"\"))","v":""},{"$f":"IF('TSA Input'!J2159=\"\",\"\",IF(OR('TSA Input'!J2159=\"Yes\",'TSA Input'!J2159=\"Contingent\"),'TSA Input'!G2159,\"\"))","v":""},{"$f":"IF('TSA Input'!J2159=\"\",\"\",IF(OR('TSA Input'!J2159=\"Yes\",'TSA Input'!J2159=\"Contingent\"),'TSA Input'!F2159,\"\"))","v":""},"","Required","Required"]
["",null,{"$f":"IF('TSA Input'!J2160=\"\",\"\",IF(OR('TSA Input'!J2160=\"Yes\",'TSA Input'!J2160=\"Contingent\"),'TSA Input'!B2160,\"Ineligible\"))","v":""},{"$f":"IF('TSA Input'!J2160=\"\",\"\",IF(OR('TSA Input'!J2160=\"Yes\",'TSA Input'!J2160=\"Contingent\"),'TSA Input'!I2160,\"\"))","v":""},{"$f":"IF('TSA Input'!J2160=\"\",\"\",IF(OR('TSA Input'!J2160=\"Yes\",'TSA Input'!J2160=\"Contingent\"),'TSA Input'!C2160,\"\"))","v":""},{"$f":"IF('TSA Input'!J2160=\"\",\"\",IF(OR('TSA Input'!J2160=\"Yes\",'TSA Input'!J2160=\"Contingent\"),'TSA Input'!D2160,\"\"))","v":""},{"$f":"IF('TSA Input'!J2160=\"\",\"\",IF(OR('TSA Input'!J2160=\"Yes\",'TSA Input'!J2160=\"Contingent\"),'TSA Input'!G2160,\"\"))","v":""},{"$f":"IF('TSA Input'!J2160=\"\",\"\",IF(OR('TSA Input'!J2160=\"Yes\",'TSA Input'!J2160=\"Contingent\"),'TSA Input'!F2160,\"\"))","v":""},"",{"$f":"IF('TSA Input'!J2160=\"\",\"\",IF(OR('TSA Input'!J2160=\"Yes\",'TSA Input'!J2160=\"Contingent\"),'TSA Input'!D2160,\"\"))","v":""},{"$f":"IF('TSA Input'!J2160=\"\",\"\",IF(OR('TSA Input'!J2160=\"Yes\",'TSA Input'!J2160=\"Contingent\"),'TSA Input'!G2160,\"\"))","v":""},{"$f":"IF('TSA Input'!J2160=\"\",\"\",IF(OR('TSA Input'!J2160=\"Yes\",'TSA Input'!J2160=\"Contingent\"),'TSA Input'!F2160,\"\"))","v":""},"","Required","Required"]
["",null,{"$f":"IF('TSA Input'!J2161=\"\",\"\",IF(OR('TSA Input'!J2161=\"Yes\",'TSA Input'!J2161=\"Contingent\"),'TSA Input'!B2161,\"Ineligible\"))","v":""},{"$f":"IF('TSA Input'!J2161=\"\",\"\",IF(OR('TSA Input'!J2161=\"Yes\",'TSA Input'!J2161=\"Contingent\"),'TSA Input'!I2161,\"\"))","v":""},{"$f":"IF('TSA Input'!J2161=\"\",\"\",IF(OR('TSA Input'!J2161=\"Yes\",'TSA Input'!J2161=\"Contingent\"),'TSA Input'!C2161,\"\"))","v":""},{"$f":"IF('TSA Input'!J2161=\"\",\"\",IF(OR('TSA Input'!J2161=\"Yes\",'TSA Input'!J2161=\"Contingent\"),'TSA Input'!D2161,\"\"))","v":""},{"$f":"IF('TSA Input'!J2161=\"\",\"\",IF(OR('TSA Input'!J2161=\"Yes\",'TSA Input'!J2161=\"Contingent\"),'TSA Input'!G2161,\"\"))","v":""},{"$f":"IF('TSA Input'!J2161=\"\",\"\",IF(OR('TSA Input'!J2161=\"Yes\",'TSA Input'!J2161=\"Contingent\"),'TSA Input'!F2161,\"\"))","v":""},"",{"$f":"IF('TSA Input'!J2161=\"\",\"\",IF(OR('TSA Input'!J2161=\"Yes\",'TSA Input'!J2161=\"Contingent\"),'TSA Input'!D2161,\"\"))","v":""},{"$f":"IF('TSA Input'!J2161=\"\",\"\",IF(OR('TSA Input'!J2161=\"Yes\",'TSA Input'!J2161=\"Contingent\"),'TSA Input'!G2161,\"\"))","v":""},{"$f":"IF('TSA Input'!J2161=\"\",\"\",IF(OR('TSA Input'!J2161=\"Yes\",'TSA Input'!J2161=\"Contingent\"),'TSA Input'!F2161,\"\"))","v":""},"","Required","Required"]
["",null,{"$f":"IF('TSA Input'!J2162=\"\",\"\",IF(OR('TSA Input'!J2162=\"Yes\",'TSA Input'!J2162=\"Contingent\"),'TSA Input'!B2162,\"Ineligible\"))","v":""},{"$f":"IF('TSA Input'!J2162=\"\",\"\",IF(OR('TSA Input'!J2162=\"Yes\",'TSA Input'!J2162=\"Contingent\"),'TSA Input'!I2162,\"\"))","v":""},{"$f":"IF('TSA Input'!J2162=\"\",\"\",IF(OR('TSA Input'!J2162=\"Yes\",'TSA Input'!J2162=\"Contingent\"),'TSA Input'!C2162,\"\"))","v":""},{"$f":"IF('TSA Input'!J2162=\"\",\"\",IF(OR('TSA Input'!J2162=\"Yes\",'TSA Input'!J2162=\"Contingent\"),'TSA Input'!D2162,\"\"))","v":""},{"$f":"IF('TSA Input'!J2162=\"\",\"\",IF(OR('TSA Input'!J2162=\"Yes\",'TSA Input'!J2162=\"Contingent\"),'TSA Input'!G2162,\"\"))","v":""},{"$f":"IF('TSA Input'!J2162=\"\",\"\",IF(OR('TSA Input'!J2162=\"Yes\",'TSA Input'!J2162=\"Contingent\"),'TSA Input'!F2162,\"\"))","v":""},"",{"$f":"IF('TSA Input'!J2162=\"\",\"\",IF(OR('TSA Input'!J2162=\"Yes\",'TSA Input'!J2162=\"Contingent\"),'TSA Input'!D2162,\"\"))","v":""},{"$f":"IF('TSA Input'!J2162=\"\",\"\",IF(OR('TSA Input'!J2162=\"Yes\",'TSA Input'!J2162=\"Contingent\"),'TSA Input'!G2162,\"\"))","v":""},{"$f":"IF('TSA Input'!J2162=\"\",\"\",IF(OR('TSA Input'!J2162=\"Yes\",'TSA Input'!J2162=\"Contingent\"),'TSA Input'!F2162,\"\"))","v":""},"","Required","Required"]
["",null,{"$f":"IF('TSA Input'!J2163=\"\",\"\",IF(OR('TSA Input'!J2163=\"Yes\",'TSA Input'!J2163=\"Contingent\"),'TSA Input'!B2163,\"Ineligible\"))","v":""},{"$f":"IF('TSA Input'!J2163=\"\",\"\",IF(OR('TSA Input'!J2163=\"Yes\",'TSA Input'!J2163=\"Contingent\"),'TSA Input'!I2163,\"\"))","v":""},{"$f":"IF('TSA Input'!J2163=\"\",\"\",IF(OR('TSA Input'!J2163=\"Yes\",'TSA Input'!J2163=\"Contingent\"),'TSA Input'!C2163,\"\"))","v":""},{"$f":"IF('TSA Input'!J2163=\"\",\"\",IF(OR('TSA Input'!J2163=\"Yes\",'TSA Input'!J2163=\"Contingent\"),'TSA Input'!D2163,\"\"))","v":""},{"$f":"IF('TSA Input'!J2163=\"\",\"\",IF(OR('TSA Input'!J2163=\"Yes\",'TSA Input'!J2163=\"Contingent\"),'TSA Input'!G2163,\"\"))","v":""},{"$f":"IF('TSA Input'!J2163=\"\",\"\",IF(OR('TSA Input'!J2163=\"Yes\",'TSA Input'!J2163=\"Contingent\"),'TSA Input'!F2163,\"\"))","v":""},"",{"$f":"IF('TSA Input'!J2163=\"\",\"\",IF(OR('TSA Input'!J2163=\"Yes\",'TSA Input'!J2163=\"Contingent\"),'TSA Input'!D2163,\"\"))","v":""},{"$f":"IF('TSA Input'!J2163=\"\",\"\",IF(OR('TSA Input'!J2163=\"Yes\",'TSA Input'!J2163=\"Contingent\"),'TSA Input'!G2163,\"\"))","v":""},{"$f":"IF('TSA Input'!J2163=\"\",\"\",IF(OR('TSA Input'!J2163=\"Yes\",'TSA Input'!J2163=\"Contingent\"),'TSA Input'!F2163,\"\"))","v":""},"","Required","Required"]
["",null,{"$f":"IF('TSA Input'!J2164=\"\",\"\",IF(OR('TSA Input'!J2164=\"Yes\",'TSA Input'!J2164=\"Contingent\"),'TSA Input'!B2164,\"Ineligible\"))","v":""},{"$f":"IF('TSA Input'!J2164=\"\",\"\",IF(OR('TSA Input'!J2164=\"Yes\",'TSA Input'!J2164=\"Contingent\"),'TSA Input'!I2164,\"\"))","v":""},{"$f":"IF('TSA Input'!J2164=\"\",\"\",IF(OR('TSA Input'!J2164=\"Yes\",'TSA Input'!J2164=\"Contingent\"),'TSA Input'!C2164,\"\"))","v":""},{"$f":"IF('TSA Input'!J2164=\"\",\"\",IF(OR('TSA Input'!J2164=\"Yes\",'TSA Input'!J2164=\"Contingent\"),'TSA Input'!D2164,\"\"))","v":""},{"$f":"IF('TSA Input'!J2164=\"\",\"\",IF(OR('TSA Input'!J2164=\"Yes\",'TSA Input'!J2164=\"Contingent\"),'TSA Input'!G2164,\"\"))","v":""},{"$f":"IF('TSA Input'!J2164=\"\",\"\",IF(OR('TSA Input'!J2164=\"Yes\",'TSA Input'!J2164=\"Contingent\"),'TSA Input'!F2164,\"\"))","v":""},"",{"$f":"IF('TSA Input'!J2164=\"\",\"\",IF(OR('TSA Input'!J2164=\"Yes\",'TSA Input'!J2164=\"Contingent\"),'TSA Input'!D2164,\"\"))","v":""},{"$f":"IF('TSA Input'!J2164=\"\",\"\",IF(OR('TSA Input'!J2164=\"Yes\",'TSA Input'!J2164=\"Contingent\"),'TSA Input'!G2164,\"\"))","v":""},{"$f":"IF('TSA Input'!J2164=\"\",\"\",IF(OR('TSA Input'!J2164=\"Yes\",'TSA Input'!J2164=\"Contingent\"),'TSA Input'!F2164,\"\"))","v":""},"","Required","Required"]
["",null,{"$f":"IF('TSA Input'!J2165=\"\",\"\",IF(OR('TSA Input'!J2165=\"Yes\",'TSA Input'!J2165=\"Contingent\"),'TSA Input'!B2165,\"Ineligible\"))","v":""},{"$f":"IF('TSA Input'!J2165=\"\",\"\",IF(OR('TSA Input'!J2165=\"Yes\",'TSA Input'!J2165=\"Contingent\"),'TSA Input'!I2165,\"\"))","v":""},{"$f":"IF('TSA Input'!J2165=\"\",\"\",IF(OR('TSA Input'!J2165=\"Yes\",'TSA Input'!J2165=\"Contingent\"),'TSA Input'!C2165,\"\"))","v":""},{"$f":"IF('TSA Input'!J2165=\"\",\"\",IF(OR('TSA Input'!J2165=\"Yes\",'TSA Input'!J2165=\"Contingent\"),'TSA Input'!D2165,\"\"))","v":""},{"$f":"IF('TSA Input'!J2165=\"\",\"\",IF(OR('TSA Input'!J2165=\"Yes\",'TSA Input'!J2165=\"Contingent\"),'TSA Input'!G2165,\"\"))","v":""},{"$f":"IF('TSA Input'!J2165=\"\",\"\",IF(OR('TSA Input'!J2165=\"Yes\",'TSA Input'!J2165=\"Contingent\"),'TSA Input'!F2165,\"\"))","v":""},"",{"$f":"IF('TSA Input'!J2165=\"\",\"\",IF(OR('TSA Input'!J2165=\"Yes\",'TSA Input'!J2165=\"Contingent\"),'TSA Input'!D2165,\"\"))","v":""},{"$f":"IF('TSA Input'!J2165=\"\",\"\",IF(OR('TSA Input'!J2165=\"Yes\",'TSA Input'!J2165=\"Contingent\"),'TSA Input'!G2165,\"\"))","v":""},{"$f":"IF('TSA Input'!J2165=\"\",\"\",IF(OR('TSA Input'!J2165=\"Yes\",'TSA Input'!J2165=\"Contingent\"),'TSA Input'!F2165,\"\"))","v":""},"","Required","Required"]
["",null,{"$f":"IF('TSA Input'!J2166=\"\",\"\",IF(OR('TSA Input'!J2166=\"Yes\",'TSA Input'!J2166=\"Contingent\"),'TSA Input'!B2166,\"Ineligible\"))","v":""},{"$f":"IF('TSA Input'!J2166=\"\",\"\",IF(OR('TSA Input'!J2166=\"Yes\",'TSA Input'!J2166=\"Contingent\"),'TSA Input'!I2166,\"\"))","v":""},{"$f":"IF('TSA Input'!J2166=\"\",\"\",IF(OR('TSA Input'!J2166=\"Yes\",'TSA Input'!J2166=\"Contingent\"),'TSA Input'!C2166,\"\"))","v":""},{"$f":"IF('TSA Input'!J2166=\"\",\"\",IF(OR('TSA Input'!J2166=\"Yes\",'TSA Input'!J2166=\"Contingent\"),'TSA Input'!D2166,\"\"))","v":""},{"$f":"IF('TSA Input'!J2166=\"\",\"\",IF(OR('TSA Input'!J2166=\"Yes\",'TSA Input'!J2166=\"Contingent\"),'TSA Input'!G2166,\"\"))","v":""},{"$f":"IF('TSA Input'!J2166=\"\",\"\",IF(OR('TSA Input'!J2166=\"Yes\",'TSA Input'!J2166=\"Contingent\"),'TSA Input'!F2166,\"\"))","v":""},"",{"$f":"IF('TSA Input'!J2166=\"\",\"\",IF(OR('TSA Input'!J2166=\"Yes\",'TSA Input'!J2166=\"Contingent\"),'TSA Input'!D2166,\"\"))","v":""},{"$f":"IF('TSA Input'!J2166=\"\",\"\",IF(OR('TSA Input'!J2166=\"Yes\",'TSA Input'!J2166=\"Contingent\"),'TSA Input'!G2166,\"\"))","v":""},{"$f":"IF('TSA Input'!J2166=\"\",\"\",IF(OR('TSA Input'!J2166=\"Yes\",'TSA Input'!J2166=\"Contingent\"),'TSA Input'!F2166,\"\"))","v":""},"","Required","Required"]
["",null,{"$f":"IF('TSA Input'!J2167=\"\",\"\",IF(OR('TSA Input'!J2167=\"Yes\",'TSA Input'!J2167=\"Contingent\"),'TSA Input'!B2167,\"Ineligible\"))","v":""},{"$f":"IF('TSA Input'!J2167=\"\",\"\",IF(OR('TSA Input'!J2167=\"Yes\",'TSA Input'!J2167=\"Contingent\"),'TSA Input'!I2167,\"\"))","v":""},{"$f":"IF('TSA Input'!J2167=\"\",\"\",IF(OR('TSA Input'!J2167=\"Yes\",'TSA Input'!J2167=\"Contingent\"),'TSA Input'!C2167,\"\"))","v":""},{"$f":"IF('TSA Input'!J2167=\"\",\"\",IF(OR('TSA Input'!J2167=\"Yes\",'TSA Input'!J2167=\"Contingent\"),'TSA Input'!D2167,\"\"))","v":""},{"$f":"IF('TSA Input'!J2167=\"\",\"\",IF(OR('TSA Input'!J2167=\"Yes\",'TSA Input'!J2167=\"Contingent\"),'TSA Input'!G2167,\"\"))","v":""},{"$f":"IF('TSA Input'!J2167=\"\",\"\",IF(OR('TSA Input'!J2167=\"Yes\",'TSA Input'!J2167=\"Contingent\"),'TSA Input'!F2167,\"\"))","v":""},"",{"$f":"IF('TSA Input'!J2167=\"\",\"\",IF(OR('TSA Input'!J2167=\"Yes\",'TSA Input'!J2167=\"Contingent\"),'TSA Input'!D2167,\"\"))","v":""},{"$f":"IF('TSA Input'!J2167=\"\",\"\",IF(OR('TSA Input'!J2167=\"Yes\",'TSA Input'!J2167=\"Contingent\"),'TSA Input'!G2167,\"\"))","v":""},{"$f":"IF('TSA Input'!J2167=\"\",\"\",IF(OR('TSA Input'!J2167=\"Yes\",'TSA Input'!J2167=\"Contingent\"),'TSA Input'!F2167,\"\"))","v":""},"","Required","Required"]
["",null,{"$f":"IF('TSA Input'!J2168=\"\",\"\",IF(OR('TSA Input'!J2168=\"Yes\",'TSA Input'!J2168=\"Contingent\"),'TSA Input'!B2168,\"Ineligible\"))","v":""},{"$f":"IF('TSA Input'!J2168=\"\",\"\",IF(OR('TSA Input'!J2168=\"Yes\",'TSA Input'!J2168=\"Contingent\"),'TSA Input'!I2168,\"\"))","v":""},{"$f":"IF('TSA Input'!J2168=\"\",\"\",IF(OR('TSA Input'!J2168=\"Yes\",'TSA Input'!J2168=\"Contingent\"),'TSA Input'!C2168,\"\"))","v":""},{"$f":"IF('TSA Input'!J2168=\"\",\"\",IF(OR('TSA Input'!J2168=\"Yes\",'TSA Input'!J2168=\"Contingent\"),'TSA Input'!D2168,\"\"))","v":""},{"$f":"IF('TSA Input'!J2168=\"\",\"\",IF(OR('TSA Input'!J2168=\"Yes\",'TSA Input'!J2168=\"Contingent\"),'TSA Input'!G2168,\"\"))","v":""},{"$f":"IF('TSA Input'!J2168=\"\",\"\",IF(OR('TSA Input'!J2168=\"Yes\",'TSA Input'!J2168=\"Contingent\"),'TSA Input'!F2168,\"\"))","v":""},"",{"$f":"IF('TSA Input'!J2168=\"\",\"\",IF(OR('TSA Input'!J2168=\"Yes\",'TSA Input'!J2168=\"Contingent\"),'TSA Input'!D2168,\"\"))","v":""},{"$f":"IF('TSA Input'!J2168=\"\",\"\",IF(OR('TSA Input'!J2168=\"Yes\",'TSA Input'!J2168=\"Contingent\"),'TSA Input'!G2168,\"\"))","v":""},{"$f":"IF('TSA Input'!J2168=\"\",\"\",IF(OR('TSA Input'!J2168=\"Yes\",'TSA Input'!J2168=\"Contingent\"),'TSA Input'!F2168,\"\"))","v":""},"","Required","Required"]
["",null,{"$f":"IF('TSA Input'!J2169=\"\",\"\",IF(OR('TSA Input'!J2169=\"Yes\",'TSA Input'!J2169=\"Contingent\"),'TSA Input'!B2169,\"Ineligible\"))","v":""},{"$f":"IF('TSA Input'!J2169=\"\",\"\",IF(OR('TSA Input'!J2169=\"Yes\",'TSA Input'!J2169=\"Contingent\"),'TSA Input'!I2169,\"\"))","v":""},{"$f":"IF('TSA Input'!J2169=\"\",\"\",IF(OR('TSA Input'!J2169=\"Yes\",'TSA Input'!J2169=\"Contingent\"),'TSA Input'!C2169,\"\"))","v":""},{"$f":"IF('TSA Input'!J2169=\"\",\"\",IF(OR('TSA Input'!J2169=\"Yes\",'TSA Input'!J2169=\"Contingent\"),'TSA Input'!D2169,\"\"))","v":""},{"$f":"IF('TSA Input'!J2169=\"\",\"\",IF(OR('TSA Input'!J2169=\"Yes\",'TSA Input'!J2169=\"Contingent\"),'TSA Input'!G2169,\"\"))","v":""},{"$f":"IF('TSA Input'!J2169=\"\",\"\",IF(OR('TSA Input'!J2169=\"Yes\",'TSA Input'!J2169=\"Contingent\"),'TSA Input'!F2169,\"\"))","v":""},"",{"$f":"IF('TSA Input'!J2169=\"\",\"\",IF(OR('TSA Input'!J2169=\"Yes\",'TSA Input'!J2169=\"Contingent\"),'TSA Input'!D2169,\"\"))","v":""},{"$f":"IF('TSA Input'!J2169=\"\",\"\",IF(OR('TSA Input'!J2169=\"Yes\",'TSA Input'!J2169=\"Contingent\"),'TSA Input'!G2169,\"\"))","v":""},{"$f":"IF('TSA Input'!J2169=\"\",\"\",IF(OR('TSA Input'!J2169=\"Yes\",'TSA Input'!J2169=\"Contingent\"),'TSA Input'!F2169,\"\"))","v":""},"","Required","Required"]
["",null,{"$f":"IF('TSA Input'!J2170=\"\",\"\",IF(OR('TSA Input'!J2170=\"Yes\",'TSA Input'!J2170=\"Contingent\"),'TSA Input'!B2170,\"Ineligible\"))","v":""},{"$f":"IF('TSA Input'!J2170=\"\",\"\",IF(OR('TSA Input'!J2170=\"Yes\",'TSA Input'!J2170=\"Contingent\"),'TSA Input'!I2170,\"\"))","v":""},{"$f":"IF('TSA Input'!J2170=\"\",\"\",IF(OR('TSA Input'!J2170=\"Yes\",'TSA Input'!J2170=\"Contingent\"),'TSA Input'!C2170,\"\"))","v":""},{"$f":"IF('TSA Input'!J2170=\"\",\"\",IF(OR('TSA Input'!J2170=\"Yes\",'TSA Input'!J2170=\"Contingent\"),'TSA Input'!D2170,\"\"))","v":""},{"$f":"IF('TSA Input'!J2170=\"\",\"\",IF(OR('TSA Input'!J2170=\"Yes\",'TSA Input'!J2170=\"Contingent\"),'TSA Input'!G2170,\"\"))","v":""},{"$f":"IF('TSA Input'!J2170=\"\",\"\",IF(OR('TSA Input'!J2170=\"Yes\",'TSA Input'!J2170=\"Contingent\"),'TSA Input'!F2170,\"\"))","v":""},"",{"$f":"IF('TSA Input'!J2170=\"\",\"\",IF(OR('TSA Input'!J2170=\"Yes\",'TSA Input'!J2170=\"Contingent\"),'TSA Input'!D2170,\"\"))","v":""},{"$f":"IF('TSA Input'!J2170=\"\",\"\",IF(OR('TSA Input'!J2170=\"Yes\",'TSA Input'!J2170=\"Contingent\"),'TSA Input'!G2170,\"\"))","v":""},{"$f":"IF('TSA Input'!J2170=\"\",\"\",IF(OR('TSA Input'!J2170=\"Yes\",'TSA Input'!J2170=\"Contingent\"),'TSA Input'!F2170,\"\"))","v":""},"","Required","Required"]
["",null,{"$f":"IF('TSA Input'!J2171=\"\",\"\",IF(OR('TSA Input'!J2171=\"Yes\",'TSA Input'!J2171=\"Contingent\"),'TSA Input'!B2171,\"Ineligible\"))","v":""},{"$f":"IF('TSA Input'!J2171=\"\",\"\",IF(OR('TSA Input'!J2171=\"Yes\",'TSA Input'!J2171=\"Contingent\"),'TSA Input'!I2171,\"\"))","v":""},{"$f":"IF('TSA Input'!J2171=\"\",\"\",IF(OR('TSA Input'!J2171=\"Yes\",'TSA Input'!J2171=\"Contingent\"),'TSA Input'!C2171,\"\"))","v":""},{"$f":"IF('TSA Input'!J2171=\"\",\"\",IF(OR('TSA Input'!J2171=\"Yes\",'TSA Input'!J2171=\"Contingent\"),'TSA Input'!D2171,\"\"))","v":""},{"$f":"IF('TSA Input'!J2171=\"\",\"\",IF(OR('TSA Input'!J2171=\"Yes\",'TSA Input'!J2171=\"Contingent\"),'TSA Input'!G2171,\"\"))","v":""},{"$f":"IF('TSA Input'!J2171=\"\",\"\",IF(OR('TSA Input'!J2171=\"Yes\",'TSA Input'!J2171=\"Contingent\"),'TSA Input'!F2171,\"\"))","v":""},"",{"$f":"IF('TSA Input'!J2171=\"\",\"\",IF(OR('TSA Input'!J2171=\"Yes\",'TSA Input'!J2171=\"Contingent\"),'TSA Input'!D2171,\"\"))","v":""},{"$f":"IF('TSA Input'!J2171=\"\",\"\",IF(OR('TSA Input'!J2171=\"Yes\",'TSA Input'!J2171=\"Contingent\"),'TSA Input'!G2171,\"\"))","v":""},{"$f":"IF('TSA Input'!J2171=\"\",\"\",IF(OR('TSA Input'!J2171=\"Yes\",'TSA Input'!J2171=\"Contingent\"),'TSA Input'!F2171,\"\"))","v":""},"","Required","Required"]
["",null,{"$f":"IF('TSA Input'!J2172=\"\",\"\",IF(OR('TSA Input'!J2172=\"Yes\",'TSA Input'!J2172=\"Contingent\"),'TSA Input'!B2172,\"Ineligible\"))","v":""},{"$f":"IF('TSA Input'!J2172=\"\",\"\",IF(OR('TSA Input'!J2172=\"Yes\",'TSA Input'!J2172=\"Contingent\"),'TSA Input'!I2172,\"\"))","v":""},{"$f":"IF('TSA Input'!J2172=\"\",\"\",IF(OR('TSA Input'!J2172=\"Yes\",'TSA Input'!J2172=\"Contingent\"),'TSA Input'!C2172,\"\"))","v":""},{"$f":"IF('TSA Input'!J2172=\"\",\"\",IF(OR('TSA Input'!J2172=\"Yes\",'TSA Input'!J2172=\"Contingent\"),'TSA Input'!D2172,\"\"))","v":""},{"$f":"IF('TSA Input'!J2172=\"\",\"\",IF(OR('TSA Input'!J2172=\"Yes\",'TSA Input'!J2172=\"Contingent\"),'TSA Input'!G2172,\"\"))","v":""},{"$f":"IF('TSA Input'!J2172=\"\",\"\",IF(OR('TSA Input'!J2172=\"Yes\",'TSA Input'!J2172=\"Contingent\"),'TSA Input'!F2172,\"\"))","v":""},"",{"$f":"IF('TSA Input'!J2172=\"\",\"\",IF(OR('TSA Input'!J2172=\"Yes\",'TSA Input'!J2172=\"Contingent\"),'TSA Input'!D2172,\"\"))","v":""},{"$f":"IF('TSA Input'!J2172=\"\",\"\",IF(OR('TSA Input'!J2172=\"Yes\",'TSA Input'!J2172=\"Contingent\"),'TSA Input'!G2172,\"\"))","v":""},{"$f":"IF('TSA Input'!J2172=\"\",\"\",IF(OR('TSA Input'!J2172=\"Yes\",'TSA Input'!J2172=\"Contingent\"),'TSA Input'!F2172,\"\"))","v":""},"","Required","Required"]
["",null,{"$f":"IF('TSA Input'!J2173=\"\",\"\",IF(OR('TSA Input'!J2173=\"Yes\",'TSA Input'!J2173=\"Contingent\"),'TSA Input'!B2173,\"Ineligible\"))","v":""},{"$f":"IF('TSA Input'!J2173=\"\",\"\",IF(OR('TSA Input'!J2173=\"Yes\",'TSA Input'!J2173=\"Contingent\"),'TSA Input'!I2173,\"\"))","v":""},{"$f":"IF('TSA Input'!J2173=\"\",\"\",IF(OR('TSA Input'!J2173=\"Yes\",'TSA Input'!J2173=\"Contingent\"),'TSA Input'!C2173,\"\"))","v":""},{"$f":"IF('TSA Input'!J2173=\"\",\"\",IF(OR('TSA Input'!J2173=\"Yes\",'TSA Input'!J2173=\"Contingent\"),'TSA Input'!D2173,\"\"))","v":""},{"$f":"IF('TSA Input'!J2173=\"\",\"\",IF(OR('TSA Input'!J2173=\"Yes\",'TSA Input'!J2173=\"Contingent\"),'TSA Input'!G2173,\"\"))","v":""},{"$f":"IF('TSA Input'!J2173=\"\",\"\",IF(OR('TSA Input'!J2173=\"Yes\",'TSA Input'!J2173=\"Contingent\"),'TSA Input'!F2173,\"\"))","v":""},"",{"$f":"IF('TSA Input'!J2173=\"\",\"\",IF(OR('TSA Input'!J2173=\"Yes\",'TSA Input'!J2173=\"Contingent\"),'TSA Input'!D2173,\"\"))","v":""},{"$f":"IF('TSA Input'!J2173=\"\",\"\",IF(OR('TSA Input'!J2173=\"Yes\",'TSA Input'!J2173=\"Contingent\"),'TSA Input'!G2173,\"\"))","v":""},{"$f":"IF('TSA Input'!J2173=\"\",\"\",IF(OR('TSA Input'!J2173=\"Yes\",'TSA Input'!J2173=\"Contingent\"),'TSA Input'!F2173,\"\"))","v":""},"","Required","Required"]
["",null,{"$f":"IF('TSA Input'!J2174=\"\",\"\",IF(OR('TSA Input'!J2174=\"Yes\",'TSA Input'!J2174=\"Contingent\"),'TSA Input'!B2174,\"Ineligible\"))","v":""},{"$f":"IF('TSA Input'!J2174=\"\",\"\",IF(OR('TSA Input'!J2174=\"Yes\",'TSA Input'!J2174=\"Contingent\"),'TSA Input'!I2174,\"\"))","v":""},{"$f":"IF('TSA Input'!J2174=\"\",\"\",IF(OR('TSA Input'!J2174=\"Yes\",'TSA Input'!J2174=\"Contingent\"),'TSA Input'!C2174,\"\"))","v":""},{"$f":"IF('TSA Input'!J2174=\"\",\"\",IF(OR('TSA Input'!J2174=\"Yes\",'TSA Input'!J2174=\"Contingent\"),'TSA Input'!D2174,\"\"))","v":""},{"$f":"IF('TSA Input'!J2174=\"\",\"\",IF(OR('TSA Input'!J2174=\"Yes\",'TSA Input'!J2174=\"Contingent\"),'TSA Input'!G2174,\"\"))","v":""},{"$f":"IF('TSA Input'!J2174=\"\",\"\",IF(OR('TSA Input'!J2174=\"Yes\",'TSA Input'!J2174=\"Contingent\"),'TSA Input'!F2174,\"\"))","v":""},"",{"$f":"IF('TSA Input'!J2174=\"\",\"\",IF(OR('TSA Input'!J2174=\"Yes\",'TSA Input'!J2174=\"Contingent\"),'TSA Input'!D2174,\"\"))","v":""},{"$f":"IF('TSA Input'!J2174=\"\",\"\",IF(OR('TSA Input'!J2174=\"Yes\",'TSA Input'!J2174=\"Contingent\"),'TSA Input'!G2174,\"\"))","v":""},{"$f":"IF('TSA Input'!J2174=\"\",\"\",IF(OR('TSA Input'!J2174=\"Yes\",'TSA Input'!J2174=\"Contingent\"),'TSA Input'!F2174,\"\"))","v":""},"","Required","Required"]
["",null,{"$f":"IF('TSA Input'!J2175=\"\",\"\",IF(OR('TSA Input'!J2175=\"Yes\",'TSA Input'!J2175=\"Contingent\"),'TSA Input'!B2175,\"Ineligible\"))","v":""},{"$f":"IF('TSA Input'!J2175=\"\",\"\",IF(OR('TSA Input'!J2175=\"Yes\",'TSA Input'!J2175=\"Contingent\"),'TSA Input'!I2175,\"\"))","v":""},{"$f":"IF('TSA Input'!J2175=\"\",\"\",IF(OR('TSA Input'!J2175=\"Yes\",'TSA Input'!J2175=\"Contingent\"),'TSA Input'!C2175,\"\"))","v":""},{"$f":"IF('TSA Input'!J2175=\"\",\"\",IF(OR('TSA Input'!J2175=\"Yes\",'TSA Input'!J2175=\"Contingent\"),'TSA Input'!D2175,\"\"))","v":""},{"$f":"IF('TSA Input'!J2175=\"\",\"\",IF(OR('TSA Input'!J2175=\"Yes\",'TSA Input'!J2175=\"Contingent\"),'TSA Input'!G2175,\"\"))","v":""},{"$f":"IF('TSA Input'!J2175=\"\",\"\",IF(OR('TSA Input'!J2175=\"Yes\",'TSA Input'!J2175=\"Contingent\"),'TSA Input'!F2175,\"\"))","v":""},"",{"$f":"IF('TSA Input'!J2175=\"\",\"\",IF(OR('TSA Input'!J2175=\"Yes\",'TSA Input'!J2175=\"Contingent\"),'TSA Input'!D2175,\"\"))","v":""},{"$f":"IF('TSA Input'!J2175=\"\",\"\",IF(OR('TSA Input'!J2175=\"Yes\",'TSA Input'!J2175=\"Contingent\"),'TSA Input'!G2175,\"\"))","v":""},{"$f":"IF('TSA Input'!J2175=\"\",\"\",IF(OR('TSA Input'!J2175=\"Yes\",'TSA Input'!J2175=\"Contingent\"),'TSA Input'!F2175,\"\"))","v":""},"","Required","Required"]
["",null,{"$f":"IF('TSA Input'!J2176=\"\",\"\",IF(OR('TSA Input'!J2176=\"Yes\",'TSA Input'!J2176=\"Contingent\"),'TSA Input'!B2176,\"Ineligible\"))","v":""},{"$f":"IF('TSA Input'!J2176=\"\",\"\",IF(OR('TSA Input'!J2176=\"Yes\",'TSA Input'!J2176=\"Contingent\"),'TSA Input'!I2176,\"\"))","v":""},{"$f":"IF('TSA Input'!J2176=\"\",\"\",IF(OR('TSA Input'!J2176=\"Yes\",'TSA Input'!J2176=\"Contingent\"),'TSA Input'!C2176,\"\"))","v":""},{"$f":"IF('TSA Input'!J2176=\"\",\"\",IF(OR('TSA Input'!J2176=\"Yes\",'TSA Input'!J2176=\"Contingent\"),'TSA Input'!D2176,\"\"))","v":""},{"$f":"IF('TSA Input'!J2176=\"\",\"\",IF(OR('TSA Input'!J2176=\"Yes\",'TSA Input'!J2176=\"Contingent\"),'TSA Input'!G2176,\"\"))","v":""},{"$f":"IF('TSA Input'!J2176=\"\",\"\",IF(OR('TSA Input'!J2176=\"Yes\",'TSA Input'!J2176=\"Contingent\"),'TSA Input'!F2176,\"\"))","v":""},"",{"$f":"IF('TSA Input'!J2176=\"\",\"\",IF(OR('TSA Input'!J2176=\"Yes\",'TSA Input'!J2176=\"Contingent\"),'TSA Input'!D2176,\"\"))","v":""},{"$f":"IF('TSA Input'!J2176=\"\",\"\",IF(OR('TSA Input'!J2176=\"Yes\",'TSA Input'!J2176=\"Contingent\"),'TSA Input'!G2176,\"\"))","v":""},{"$f":"IF('TSA Input'!J2176=\"\",\"\",IF(OR('TSA Input'!J2176=\"Yes\",'TSA Input'!J2176=\"Contingent\"),'TSA Input'!F2176,\"\"))","v":""},"","Required","Required"]
["",null,{"$f":"IF('TSA Input'!J2177=\"\",\"\",IF(OR('TSA Input'!J2177=\"Yes\",'TSA Input'!J2177=\"Contingent\"),'TSA Input'!B2177,\"Ineligible\"))","v":""},{"$f":"IF('TSA Input'!J2177=\"\",\"\",IF(OR('TSA Input'!J2177=\"Yes\",'TSA Input'!J2177=\"Contingent\"),'TSA Input'!I2177,\"\"))","v":""},{"$f":"IF('TSA Input'!J2177=\"\",\"\",IF(OR('TSA Input'!J2177=\"Yes\",'TSA Input'!J2177=\"Contingent\"),'TSA Input'!C2177,\"\"))","v":""},{"$f":"IF('TSA Input'!J2177=\"\",\"\",IF(OR('TSA Input'!J2177=\"Yes\",'TSA Input'!J2177=\"Contingent\"),'TSA Input'!D2177,\"\"))","v":""},{"$f":"IF('TSA Input'!J2177=\"\",\"\",IF(OR('TSA Input'!J2177=\"Yes\",'TSA Input'!J2177=\"Contingent\"),'TSA Input'!G2177,\"\"))","v":""},{"$f":"IF('TSA Input'!J2177=\"\",\"\",IF(OR('TSA Input'!J2177=\"Yes\",'TSA Input'!J2177=\"Contingent\"),'TSA Input'!F2177,\"\"))","v":""},"",{"$f":"IF('TSA Input'!J2177=\"\",\"\",IF(OR('TSA Input'!J2177=\"Yes\",'TSA Input'!J2177=\"Contingent\"),'TSA Input'!D2177,\"\"))","v":""},{"$f":"IF('TSA Input'!J2177=\"\",\"\",IF(OR('TSA Input'!J2177=\"Yes\",'TSA Input'!J2177=\"Contingent\"),'TSA Input'!G2177,\"\"))","v":""},{"$f":"IF('TSA Input'!J2177=\"\",\"\",IF(OR('TSA Input'!J2177=\"Yes\",'TSA Input'!J2177=\"Contingent\"),'TSA Input'!F2177,\"\"))","v":""},"","Required","Required"]
["",null,{"$f":"IF('TSA Input'!J2178=\"\",\"\",IF(OR('TSA Input'!J2178=\"Yes\",'TSA Input'!J2178=\"Contingent\"),'TSA Input'!B2178,\"Ineligible\"))","v":""},{"$f":"IF('TSA Input'!J2178=\"\",\"\",IF(OR('TSA Input'!J2178=\"Yes\",'TSA Input'!J2178=\"Contingent\"),'TSA Input'!I2178,\"\"))","v":""},{"$f":"IF('TSA Input'!J2178=\"\",\"\",IF(OR('TSA Input'!J2178=\"Yes\",'TSA Input'!J2178=\"Contingent\"),'TSA Input'!C2178,\"\"))","v":""},{"$f":"IF('TSA Input'!J2178=\"\",\"\",IF(OR('TSA Input'!J2178=\"Yes\",'TSA Input'!J2178=\"Contingent\"),'TSA Input'!D2178,\"\"))","v":""},{"$f":"IF('TSA Input'!J2178=\"\",\"\",IF(OR('TSA Input'!J2178=\"Yes\",'TSA Input'!J2178=\"Contingent\"),'TSA Input'!G2178,\"\"))","v":""},{"$f":"IF('TSA Input'!J2178=\"\",\"\",IF(OR('TSA Input'!J2178=\"Yes\",'TSA Input'!J2178=\"Contingent\"),'TSA Input'!F2178,\"\"))","v":""},"",{"$f":"IF('TSA Input'!J2178=\"\",\"\",IF(OR('TSA Input'!J2178=\"Yes\",'TSA Input'!J2178=\"Contingent\"),'TSA Input'!D2178,\"\"))","v":""},{"$f":"IF('TSA Input'!J2178=\"\",\"\",IF(OR('TSA Input'!J2178=\"Yes\",'TSA Input'!J2178=\"Contingent\"),'TSA Input'!G2178,\"\"))","v":""},{"$f":"IF('TSA Input'!J2178=\"\",\"\",IF(OR('TSA Input'!J2178=\"Yes\",'TSA Input'!J2178=\"Contingent\"),'TSA Input'!F2178,\"\"))","v":""},"","Required","Required"]
["",null,{"$f":"IF('TSA Input'!J2179=\"\",\"\",IF(OR('TSA Input'!J2179=\"Yes\",'TSA Input'!J2179=\"Contingent\"),'TSA Input'!B2179,\"Ineligible\"))","v":""},{"$f":"IF('TSA Input'!J2179=\"\",\"\",IF(OR('TSA Input'!J2179=\"Yes\",'TSA Input'!J2179=\"Contingent\"),'TSA Input'!I2179,\"\"))","v":""},{"$f":"IF('TSA Input'!J2179=\"\",\"\",IF(OR('TSA Input'!J2179=\"Yes\",'TSA Input'!J2179=\"Contingent\"),'TSA Input'!C2179,\"\"))","v":""},{"$f":"IF('TSA Input'!J2179=\"\",\"\",IF(OR('TSA Input'!J2179=\"Yes\",'TSA Input'!J2179=\"Contingent\"),'TSA Input'!D2179,\"\"))","v":""},{"$f":"IF('TSA Input'!J2179=\"\",\"\",IF(OR('TSA Input'!J2179=\"Yes\",'TSA Input'!J2179=\"Contingent\"),'TSA Input'!G2179,\"\"))","v":""},{"$f":"IF('TSA Input'!J2179=\"\",\"\",IF(OR('TSA Input'!J2179=\"Yes\",'TSA Input'!J2179=\"Contingent\"),'TSA Input'!F2179,\"\"))","v":""},"",{"$f":"IF('TSA Input'!J2179=\"\",\"\",IF(OR('TSA Input'!J2179=\"Yes\",'TSA Input'!J2179=\"Contingent\"),'TSA Input'!D2179,\"\"))","v":""},{"$f":"IF('TSA Input'!J2179=\"\",\"\",IF(OR('TSA Input'!J2179=\"Yes\",'TSA Input'!J2179=\"Contingent\"),'TSA Input'!G2179,\"\"))","v":""},{"$f":"IF('TSA Input'!J2179=\"\",\"\",IF(OR('TSA Input'!J2179=\"Yes\",'TSA Input'!J2179=\"Contingent\"),'TSA Input'!F2179,\"\"))","v":""},"","Required","Required"]
["",null,{"$f":"IF('TSA Input'!J2180=\"\",\"\",IF(OR('TSA Input'!J2180=\"Yes\",'TSA Input'!J2180=\"Contingent\"),'TSA Input'!B2180,\"Ineligible\"))","v":""},{"$f":"IF('TSA Input'!J2180=\"\",\"\",IF(OR('TSA Input'!J2180=\"Yes\",'TSA Input'!J2180=\"Contingent\"),'TSA Input'!I2180,\"\"))","v":""},{"$f":"IF('TSA Input'!J2180=\"\",\"\",IF(OR('TSA Input'!J2180=\"Yes\",'TSA Input'!J2180=\"Contingent\"),'TSA Input'!C2180,\"\"))","v":""},{"$f":"IF('TSA Input'!J2180=\"\",\"\",IF(OR('TSA Input'!J2180=\"Yes\",'TSA Input'!J2180=\"Contingent\"),'TSA Input'!D2180,\"\"))","v":""},{"$f":"IF('TSA Input'!J2180=\"\",\"\",IF(OR('TSA Input'!J2180=\"Yes\",'TSA Input'!J2180=\"Contingent\"),'TSA Input'!G2180,\"\"))","v":""},{"$f":"IF('TSA Input'!J2180=\"\",\"\",IF(OR('TSA Input'!J2180=\"Yes\",'TSA Input'!J2180=\"Contingent\"),'TSA Input'!F2180,\"\"))","v":""},{"$f":"IF($C2218=\"\",\"\",SUM(F2218:H2218))","v":""},{"$f":"IF('TSA Input'!J2180=\"\",\"\",IF(OR('TSA Input'!J2180=\"Yes\",'TSA Input'!J2180=\"Contingent\"),'TSA Input'!D2180,\"\"))","v":""},{"$f":"IF('TSA Input'!J2180=\"\",\"\",IF(OR('TSA Input'!J2180=\"Yes\",'TSA Input'!J2180=\"Contingent\"),'TSA Input'!G2180,\"\"))","v":""},{"$f":"IF('TSA Input'!J2180=\"\",\"\",IF(OR('TSA Input'!J2180=\"Yes\",'TSA Input'!J2180=\"Contingent\"),'TSA Input'!F2180,\"\"))","v":""},{"$f":"IF($C2218=\"\",\"\",SUM(J2218:L2218))","v":""},"Required","Required"]
["",null,{"$f":"IF('TSA Input'!J2181=\"\",\"\",IF(OR('TSA Input'!J2181=\"Yes\",'TSA Input'!J2181=\"Contingent\"),'TSA Input'!B2181,\"Ineligible\"))","v":""},{"$f":"IF('TSA Input'!J2181=\"\",\"\",IF(OR('TSA Input'!J2181=\"Yes\",'TSA Input'!J2181=\"Contingent\"),'TSA Input'!I2181,\"\"))","v":""},{"$f":"IF('TSA Input'!J2181=\"\",\"\",IF(OR('TSA Input'!J2181=\"Yes\",'TSA Input'!J2181=\"Contingent\"),'TSA Input'!C2181,\"\"))","v":""},{"$f":"IF('TSA Input'!J2181=\"\",\"\",IF(OR('TSA Input'!J2181=\"Yes\",'TSA Input'!J2181=\"Contingent\"),'TSA Input'!D2181,\"\"))","v":""},{"$f":"IF('TSA Input'!J2181=\"\",\"\",IF(OR('TSA Input'!J2181=\"Yes\",'TSA Input'!J2181=\"Contingent\"),'TSA Input'!G2181,\"\"))","v":""},{"$f":"IF('TSA Input'!J2181=\"\",\"\",IF(OR('TSA Input'!J2181=\"Yes\",'TSA Input'!J2181=\"Contingent\"),'TSA Input'!F2181,\"\"))","v":""},"",{"$f":"IF('TSA Input'!J2181=\"\",\"\",IF(OR('TSA Input'!J2181=\"Yes\",'TSA Input'!J2181=\"Contingent\"),'TSA Input'!D2181,\"\"))","v":""},{"$f":"IF('TSA Input'!J2181=\"\",\"\",IF(OR('TSA Input'!J2181=\"Yes\",'TSA Input'!J2181=\"Contingent\"),'TSA Input'!G2181,\"\"))","v":""},{"$f":"IF('TSA Input'!J2181=\"\",\"\",IF(OR('TSA Input'!J2181=\"Yes\",'TSA Input'!J2181=\"Contingent\"),'TSA Input'!F2181,\"\"))","v":""},"","Required","Required"]
["",null,{"$f":"IF('TSA Input'!J2182=\"\",\"\",IF(OR('TSA Input'!J2182=\"Yes\",'TSA Input'!J2182=\"Contingent\"),'TSA Input'!B2182,\"Ineligible\"))","v":""},{"$f":"IF('TSA Input'!J2182=\"\",\"\",IF(OR('TSA Input'!J2182=\"Yes\",'TSA Input'!J2182=\"Contingent\"),'TSA Input'!I2182,\"\"))","v":""},{"$f":"IF('TSA Input'!J2182=\"\",\"\",IF(OR('TSA Input'!J2182=\"Yes\",'TSA Input'!J2182=\"Contingent\"),'TSA Input'!C2182,\"\"))","v":""},{"$f":"IF('TSA Input'!J2182=\"\",\"\",IF(OR('TSA Input'!J2182=\"Yes\",'TSA Input'!J2182=\"Contingent\"),'TSA Input'!D2182,\"\"))","v":""},{"$f":"IF('TSA Input'!J2182=\"\",\"\",IF(OR('TSA Input'!J2182=\"Yes\",'TSA Input'!J2182=\"Contingent\"),'TSA Input'!G2182,\"\"))","v":""},{"$f":"IF('TSA Input'!J2182=\"\",\"\",IF(OR('TSA Input'!J2182=\"Yes\",'TSA Input'!J2182=\"Contingent\"),'TSA Input'!F2182,\"\"))","v":""},"",{"$f":"IF('TSA Input'!J2182=\"\",\"\",IF(OR('TSA Input'!J2182=\"Yes\",'TSA Input'!J2182=\"Contingent\"),'TSA Input'!D2182,\"\"))","v":""},{"$f":"IF('TSA Input'!J2182=\"\",\"\",IF(OR('TSA Input'!J2182=\"Yes\",'TSA Input'!J2182=\"Contingent\"),'TSA Input'!G2182,\"\"))","v":""},{"$f":"IF('TSA Input'!J2182=\"\",\"\",IF(OR('TSA Input'!J2182=\"Yes\",'TSA Input'!J2182=\"Contingent\"),'TSA Input'!F2182,\"\"))","v":""},"","Required","Required"]
["",null,{"$f":"IF('TSA Input'!J2183=\"\",\"\",IF(OR('TSA Input'!J2183=\"Yes\",'TSA Input'!J2183=\"Contingent\"),'TSA Input'!B2183,\"Ineligible\"))","v":""},{"$f":"IF('TSA Input'!J2183=\"\",\"\",IF(OR('TSA Input'!J2183=\"Yes\",'TSA Input'!J2183=\"Contingent\"),'TSA Input'!I2183,\"\"))","v":""},{"$f":"IF('TSA Input'!J2183=\"\",\"\",IF(OR('TSA Input'!J2183=\"Yes\",'TSA Input'!J2183=\"Contingent\"),'TSA Input'!C2183,\"\"))","v":""},{"$f":"IF('TSA Input'!J2183=\"\",\"\",IF(OR('TSA Input'!J2183=\"Yes\",'TSA Input'!J2183=\"Contingent\"),'TSA Input'!D2183,\"\"))","v":""},{"$f":"IF('TSA Input'!J2183=\"\",\"\",IF(OR('TSA Input'!J2183=\"Yes\",'TSA Input'!J2183=\"Contingent\"),'TSA Input'!G2183,\"\"))","v":""},{"$f":"IF('TSA Input'!J2183=\"\",\"\",IF(OR('TSA Input'!J2183=\"Yes\",'TSA Input'!J2183=\"Contingent\"),'TSA Input'!F2183,\"\"))","v":""},"",{"$f":"IF('TSA Input'!J2183=\"\",\"\",IF(OR('TSA Input'!J2183=\"Yes\",'TSA Input'!J2183=\"Contingent\"),'TSA Input'!D2183,\"\"))","v":""},{"$f":"IF('TSA Input'!J2183=\"\",\"\",IF(OR('TSA Input'!J2183=\"Yes\",'TSA Input'!J2183=\"Contingent\"),'TSA Input'!G2183,\"\"))","v":""},{"$f":"IF('TSA Input'!J2183=\"\",\"\",IF(OR('TSA Input'!J2183=\"Yes\",'TSA Input'!J2183=\"Contingent\"),'TSA Input'!F2183,\"\"))","v":""},"","Required","Required"]
["",null,{"$f":"IF('TSA Input'!J2184=\"\",\"\",IF(OR('TSA Input'!J2184=\"Yes\",'TSA Input'!J2184=\"Contingent\"),'TSA Input'!B2184,\"Ineligible\"))","v":""},{"$f":"IF('TSA Input'!J2184=\"\",\"\",IF(OR('TSA Input'!J2184=\"Yes\",'TSA Input'!J2184=\"Contingent\"),'TSA Input'!I2184,\"\"))","v":""},{"$f":"IF('TSA Input'!J2184=\"\",\"\",IF(OR('TSA Input'!J2184=\"Yes\",'TSA Input'!J2184=\"Contingent\"),'TSA Input'!C2184,\"\"))","v":""},{"$f":"IF('TSA Input'!J2184=\"\",\"\",IF(OR('TSA Input'!J2184=\"Yes\",'TSA Input'!J2184=\"Contingent\"),'TSA Input'!D2184,\"\"))","v":""},{"$f":"IF('TSA Input'!J2184=\"\",\"\",IF(OR('TSA Input'!J2184=\"Yes\",'TSA Input'!J2184=\"Contingent\"),'TSA Input'!G2184,\"\"))","v":""},{"$f":"IF('TSA Input'!J2184=\"\",\"\",IF(OR('TSA Input'!J2184=\"Yes\",'TSA Input'!J2184=\"Contingent\"),'TSA Input'!F2184,\"\"))","v":""},"",{"$f":"IF('TSA Input'!J2184=\"\",\"\",IF(OR('TSA Input'!J2184=\"Yes\",'TSA Input'!J2184=\"Contingent\"),'TSA Input'!D2184,\"\"))","v":""},{"$f":"IF('TSA Input'!J2184=\"\",\"\",IF(OR('TSA Input'!J2184=\"Yes\",'TSA Input'!J2184=\"Contingent\"),'TSA Input'!G2184,\"\"))","v":""},{"$f":"IF('TSA Input'!J2184=\"\",\"\",IF(OR('TSA Input'!J2184=\"Yes\",'TSA Input'!J2184=\"Contingent\"),'TSA Input'!F2184,\"\"))","v":""},"","Required","Required"]
["",null,{"$f":"IF('TSA Input'!J2185=\"\",\"\",IF(OR('TSA Input'!J2185=\"Yes\",'TSA Input'!J2185=\"Contingent\"),'TSA Input'!B2185,\"Ineligible\"))","v":""},{"$f":"IF('TSA Input'!J2185=\"\",\"\",IF(OR('TSA Input'!J2185=\"Yes\",'TSA Input'!J2185=\"Contingent\"),'TSA Input'!I2185,\"\"))","v":""},{"$f":"IF('TSA Input'!J2185=\"\",\"\",IF(OR('TSA Input'!J2185=\"Yes\",'TSA Input'!J2185=\"Contingent\"),'TSA Input'!C2185,\"\"))","v":""},{"$f":"IF('TSA Input'!J2185=\"\",\"\",IF(OR('TSA Input'!J2185=\"Yes\",'TSA Input'!J2185=\"Contingent\"),'TSA Input'!D2185,\"\"))","v":""},{"$f":"IF('TSA Input'!J2185=\"\",\"\",IF(OR('TSA Input'!J2185=\"Yes\",'TSA Input'!J2185=\"Contingent\"),'TSA Input'!G2185,\"\"))","v":""},{"$f":"IF('TSA Input'!J2185=\"\",\"\",IF(OR('TSA Input'!J2185=\"Yes\",'TSA Input'!J2185=\"Contingent\"),'TSA Input'!F2185,\"\"))","v":""},"",{"$f":"IF('TSA Input'!J2185=\"\",\"\",IF(OR('TSA Input'!J2185=\"Yes\",'TSA Input'!J2185=\"Contingent\"),'TSA Input'!D2185,\"\"))","v":""},{"$f":"IF('TSA Input'!J2185=\"\",\"\",IF(OR('TSA Input'!J2185=\"Yes\",'TSA Input'!J2185=\"Contingent\"),'TSA Input'!G2185,\"\"))","v":""},{"$f":"IF('TSA Input'!J2185=\"\",\"\",IF(OR('TSA Input'!J2185=\"Yes\",'TSA Input'!J2185=\"Contingent\"),'TSA Input'!F2185,\"\"))","v":""},"","Required","Required"]
["",null,{"$f":"IF('TSA Input'!J2186=\"\",\"\",IF(OR('TSA Input'!J2186=\"Yes\",'TSA Input'!J2186=\"Contingent\"),'TSA Input'!B2186,\"Ineligible\"))","v":""},{"$f":"IF('TSA Input'!J2186=\"\",\"\",IF(OR('TSA Input'!J2186=\"Yes\",'TSA Input'!J2186=\"Contingent\"),'TSA Input'!I2186,\"\"))","v":""},{"$f":"IF('TSA Input'!J2186=\"\",\"\",IF(OR('TSA Input'!J2186=\"Yes\",'TSA Input'!J2186=\"Contingent\"),'TSA Input'!C2186,\"\"))","v":""},{"$f":"IF('TSA Input'!J2186=\"\",\"\",IF(OR('TSA Input'!J2186=\"Yes\",'TSA Input'!J2186=\"Contingent\"),'TSA Input'!D2186,\"\"))","v":""},{"$f":"IF('TSA Input'!J2186=\"\",\"\",IF(OR('TSA Input'!J2186=\"Yes\",'TSA Input'!J2186=\"Contingent\"),'TSA Input'!G2186,\"\"))","v":""},{"$f":"IF('TSA Input'!J2186=\"\",\"\",IF(OR('TSA Input'!J2186=\"Yes\",'TSA Input'!J2186=\"Contingent\"),'TSA Input'!F2186,\"\"))","v":""},"",{"$f":"IF('TSA Input'!J2186=\"\",\"\",IF(OR('TSA Input'!J2186=\"Yes\",'TSA Input'!J2186=\"Contingent\"),'TSA Input'!D2186,\"\"))","v":""},{"$f":"IF('TSA Input'!J2186=\"\",\"\",IF(OR('TSA Input'!J2186=\"Yes\",'TSA Input'!J2186=\"Contingent\"),'TSA Input'!G2186,\"\"))","v":""},{"$f":"IF('TSA Input'!J2186=\"\",\"\",IF(OR('TSA Input'!J2186=\"Yes\",'TSA Input'!J2186=\"Contingent\"),'TSA Input'!F2186,\"\"))","v":""},"","Required","Required"]
["",null,{"$f":"IF('TSA Input'!J2187=\"\",\"\",IF(OR('TSA Input'!J2187=\"Yes\",'TSA Input'!J2187=\"Contingent\"),'TSA Input'!B2187,\"Ineligible\"))","v":""},{"$f":"IF('TSA Input'!J2187=\"\",\"\",IF(OR('TSA Input'!J2187=\"Yes\",'TSA Input'!J2187=\"Contingent\"),'TSA Input'!I2187,\"\"))","v":""},{"$f":"IF('TSA Input'!J2187=\"\",\"\",IF(OR('TSA Input'!J2187=\"Yes\",'TSA Input'!J2187=\"Contingent\"),'TSA Input'!C2187,\"\"))","v":""},{"$f":"IF('TSA Input'!J2187=\"\",\"\",IF(OR('TSA Input'!J2187=\"Yes\",'TSA Input'!J2187=\"Contingent\"),'TSA Input'!D2187,\"\"))","v":""},{"$f":"IF('TSA Input'!J2187=\"\",\"\",IF(OR('TSA Input'!J2187=\"Yes\",'TSA Input'!J2187=\"Contingent\"),'TSA Input'!G2187,\"\"))","v":""},{"$f":"IF('TSA Input'!J2187=\"\",\"\",IF(OR('TSA Input'!J2187=\"Yes\",'TSA Input'!J2187=\"Contingent\"),'TSA Input'!F2187,\"\"))","v":""},"",{"$f":"IF('TSA Input'!J2187=\"\",\"\",IF(OR('TSA Input'!J2187=\"Yes\",'TSA Input'!J2187=\"Contingent\"),'TSA Input'!D2187,\"\"))","v":""},{"$f":"IF('TSA Input'!J2187=\"\",\"\",IF(OR('TSA Input'!J2187=\"Yes\",'TSA Input'!J2187=\"Contingent\"),'TSA Input'!G2187,\"\"))","v":""},{"$f":"IF('TSA Input'!J2187=\"\",\"\",IF(OR('TSA Input'!J2187=\"Yes\",'TSA Input'!J2187=\"Contingent\"),'TSA Input'!F2187,\"\"))","v":""},"","Required","Required"]
["",null,{"$f":"IF('TSA Input'!J2188=\"\",\"\",IF(OR('TSA Input'!J2188=\"Yes\",'TSA Input'!J2188=\"Contingent\"),'TSA Input'!B2188,\"Ineligible\"))","v":""},{"$f":"IF('TSA Input'!J2188=\"\",\"\",IF(OR('TSA Input'!J2188=\"Yes\",'TSA Input'!J2188=\"Contingent\"),'TSA Input'!I2188,\"\"))","v":""},{"$f":"IF('TSA Input'!J2188=\"\",\"\",IF(OR('TSA Input'!J2188=\"Yes\",'TSA Input'!J2188=\"Contingent\"),'TSA Input'!C2188,\"\"))","v":""},{"$f":"IF('TSA Input'!J2188=\"\",\"\",IF(OR('TSA Input'!J2188=\"Yes\",'TSA Input'!J2188=\"Contingent\"),'TSA Input'!D2188,\"\"))","v":""},{"$f":"IF('TSA Input'!J2188=\"\",\"\",IF(OR('TSA Input'!J2188=\"Yes\",'TSA Input'!J2188=\"Contingent\"),'TSA Input'!G2188,\"\"))","v":""},{"$f":"IF('TSA Input'!J2188=\"\",\"\",IF(OR('TSA Input'!J2188=\"Yes\",'TSA Input'!J2188=\"Contingent\"),'TSA Input'!F2188,\"\"))","v":""},"",{"$f":"IF('TSA Input'!J2188=\"\",\"\",IF(OR('TSA Input'!J2188=\"Yes\",'TSA Input'!J2188=\"Contingent\"),'TSA Input'!D2188,\"\"))","v":""},{"$f":"IF('TSA Input'!J2188=\"\",\"\",IF(OR('TSA Input'!J2188=\"Yes\",'TSA Input'!J2188=\"Contingent\"),'TSA Input'!G2188,\"\"))","v":""},{"$f":"IF('TSA Input'!J2188=\"\",\"\",IF(OR('TSA Input'!J2188=\"Yes\",'TSA Input'!J2188=\"Contingent\"),'TSA Input'!F2188,\"\"))","v":""},"","Required","Required"]
["",null,{"$f":"IF('TSA Input'!J2189=\"\",\"\",IF(OR('TSA Input'!J2189=\"Yes\",'TSA Input'!J2189=\"Contingent\"),'TSA Input'!B2189,\"Ineligible\"))","v":""},{"$f":"IF('TSA Input'!J2189=\"\",\"\",IF(OR('TSA Input'!J2189=\"Yes\",'TSA Input'!J2189=\"Contingent\"),'TSA Input'!I2189,\"\"))","v":""},{"$f":"IF('TSA Input'!J2189=\"\",\"\",IF(OR('TSA Input'!J2189=\"Yes\",'TSA Input'!J2189=\"Contingent\"),'TSA Input'!C2189,\"\"))","v":""},{"$f":"IF('TSA Input'!J2189=\"\",\"\",IF(OR('TSA Input'!J2189=\"Yes\",'TSA Input'!J2189=\"Contingent\"),'TSA Input'!D2189,\"\"))","v":""},{"$f":"IF('TSA Input'!J2189=\"\",\"\",IF(OR('TSA Input'!J2189=\"Yes\",'TSA Input'!J2189=\"Contingent\"),'TSA Input'!G2189,\"\"))","v":""},{"$f":"IF('TSA Input'!J2189=\"\",\"\",IF(OR('TSA Input'!J2189=\"Yes\",'TSA Input'!J2189=\"Contingent\"),'TSA Input'!F2189,\"\"))","v":""},"",{"$f":"IF('TSA Input'!J2189=\"\",\"\",IF(OR('TSA Input'!J2189=\"Yes\",'TSA Input'!J2189=\"Contingent\"),'TSA Input'!D2189,\"\"))","v":""},{"$f":"IF('TSA Input'!J2189=\"\",\"\",IF(OR('TSA Input'!J2189=\"Yes\",'TSA Input'!J2189=\"Contingent\"),'TSA Input'!G2189,\"\"))","v":""},{"$f":"IF('TSA Input'!J2189=\"\",\"\",IF(OR('TSA Input'!J2189=\"Yes\",'TSA Input'!J2189=\"Contingent\"),'TSA Input'!F2189,\"\"))","v":""},"","Required","Required"]
["",null,{"$f":"IF('TSA Input'!J2190=\"\",\"\",IF(OR('TSA Input'!J2190=\"Yes\",'TSA Input'!J2190=\"Contingent\"),'TSA Input'!B2190,\"Ineligible\"))","v":""},{"$f":"IF('TSA Input'!J2190=\"\",\"\",IF(OR('TSA Input'!J2190=\"Yes\",'TSA Input'!J2190=\"Contingent\"),'TSA Input'!I2190,\"\"))","v":""},{"$f":"IF('TSA Input'!J2190=\"\",\"\",IF(OR('TSA Input'!J2190=\"Yes\",'TSA Input'!J2190=\"Contingent\"),'TSA Input'!C2190,\"\"))","v":""},{"$f":"IF('TSA Input'!J2190=\"\",\"\",IF(OR('TSA Input'!J2190=\"Yes\",'TSA Input'!J2190=\"Contingent\"),'TSA Input'!D2190,\"\"))","v":""},{"$f":"IF('TSA Input'!J2190=\"\",\"\",IF(OR('TSA Input'!J2190=\"Yes\",'TSA Input'!J2190=\"Contingent\"),'TSA Input'!G2190,\"\"))","v":""},{"$f":"IF('TSA Input'!J2190=\"\",\"\",IF(OR('TSA Input'!J2190=\"Yes\",'TSA Input'!J2190=\"Contingent\"),'TSA Input'!F2190,\"\"))","v":""},"",{"$f":"IF('TSA Input'!J2190=\"\",\"\",IF(OR('TSA Input'!J2190=\"Yes\",'TSA Input'!J2190=\"Contingent\"),'TSA Input'!D2190,\"\"))","v":""},{"$f":"IF('TSA Input'!J2190=\"\",\"\",IF(OR('TSA Input'!J2190=\"Yes\",'TSA Input'!J2190=\"Contingent\"),'TSA Input'!G2190,\"\"))","v":""},{"$f":"IF('TSA Input'!J2190=\"\",\"\",IF(OR('TSA Input'!J2190=\"Yes\",'TSA Input'!J2190=\"Contingent\"),'TSA Input'!F2190,\"\"))","v":""},"","Required","Required"]
["",null,{"$f":"IF('TSA Input'!J2191=\"\",\"\",IF(OR('TSA Input'!J2191=\"Yes\",'TSA Input'!J2191=\"Contingent\"),'TSA Input'!B2191,\"Ineligible\"))","v":""},{"$f":"IF('TSA Input'!J2191=\"\",\"\",IF(OR('TSA Input'!J2191=\"Yes\",'TSA Input'!J2191=\"Contingent\"),'TSA Input'!I2191,\"\"))","v":""},{"$f":"IF('TSA Input'!J2191=\"\",\"\",IF(OR('TSA Input'!J2191=\"Yes\",'TSA Input'!J2191=\"Contingent\"),'TSA Input'!C2191,\"\"))","v":""},{"$f":"IF('TSA Input'!J2191=\"\",\"\",IF(OR('TSA Input'!J2191=\"Yes\",'TSA Input'!J2191=\"Contingent\"),'TSA Input'!D2191,\"\"))","v":""},{"$f":"IF('TSA Input'!J2191=\"\",\"\",IF(OR('TSA Input'!J2191=\"Yes\",'TSA Input'!J2191=\"Contingent\"),'TSA Input'!G2191,\"\"))","v":""},{"$f":"IF('TSA Input'!J2191=\"\",\"\",IF(OR('TSA Input'!J2191=\"Yes\",'TSA Input'!J2191=\"Contingent\"),'TSA Input'!F2191,\"\"))","v":""},"",{"$f":"IF('TSA Input'!J2191=\"\",\"\",IF(OR('TSA Input'!J2191=\"Yes\",'TSA Input'!J2191=\"Contingent\"),'TSA Input'!D2191,\"\"))","v":""},{"$f":"IF('TSA Input'!J2191=\"\",\"\",IF(OR('TSA Input'!J2191=\"Yes\",'TSA Input'!J2191=\"Contingent\"),'TSA Input'!G2191,\"\"))","v":""},{"$f":"IF('TSA Input'!J2191=\"\",\"\",IF(OR('TSA Input'!J2191=\"Yes\",'TSA Input'!J2191=\"Contingent\"),'TSA Input'!F2191,\"\"))","v":""},"","Required","Required"]
["",null,{"$f":"IF('TSA Input'!J2192=\"\",\"\",IF(OR('TSA Input'!J2192=\"Yes\",'TSA Input'!J2192=\"Contingent\"),'TSA Input'!B2192,\"Ineligible\"))","v":""},{"$f":"IF('TSA Input'!J2192=\"\",\"\",IF(OR('TSA Input'!J2192=\"Yes\",'TSA Input'!J2192=\"Contingent\"),'TSA Input'!I2192,\"\"))","v":""},{"$f":"IF('TSA Input'!J2192=\"\",\"\",IF(OR('TSA Input'!J2192=\"Yes\",'TSA Input'!J2192=\"Contingent\"),'TSA Input'!C2192,\"\"))","v":""},{"$f":"IF('TSA Input'!J2192=\"\",\"\",IF(OR('TSA Input'!J2192=\"Yes\",'TSA Input'!J2192=\"Contingent\"),'TSA Input'!D2192,\"\"))","v":""},{"$f":"IF('TSA Input'!J2192=\"\",\"\",IF(OR('TSA Input'!J2192=\"Yes\",'TSA Input'!J2192=\"Contingent\"),'TSA Input'!G2192,\"\"))","v":""},{"$f":"IF('TSA Input'!J2192=\"\",\"\",IF(OR('TSA Input'!J2192=\"Yes\",'TSA Input'!J2192=\"Contingent\"),'TSA Input'!F2192,\"\"))","v":""},"",{"$f":"IF('TSA Input'!J2192=\"\",\"\",IF(OR('TSA Input'!J2192=\"Yes\",'TSA Input'!J2192=\"Contingent\"),'TSA Input'!D2192,\"\"))","v":""},{"$f":"IF('TSA Input'!J2192=\"\",\"\",IF(OR('TSA Input'!J2192=\"Yes\",'TSA Input'!J2192=\"Contingent\"),'TSA Input'!G2192,\"\"))","v":""},{"$f":"IF('TSA Input'!J2192=\"\",\"\",IF(OR('TSA Input'!J2192=\"Yes\",'TSA Input'!J2192=\"Contingent\"),'TSA Input'!F2192,\"\"))","v":""},"","Required","Required"]
["",null,{"$f":"IF('TSA Input'!J2193=\"\",\"\",IF(OR('TSA Input'!J2193=\"Yes\",'TSA Input'!J2193=\"Contingent\"),'TSA Input'!B2193,\"Ineligible\"))","v":""},{"$f":"IF('TSA Input'!J2193=\"\",\"\",IF(OR('TSA Input'!J2193=\"Yes\",'TSA Input'!J2193=\"Contingent\"),'TSA Input'!I2193,\"\"))","v":""},{"$f":"IF('TSA Input'!J2193=\"\",\"\",IF(OR('TSA Input'!J2193=\"Yes\",'TSA Input'!J2193=\"Contingent\"),'TSA Input'!C2193,\"\"))","v":""},{"$f":"IF('TSA Input'!J2193=\"\",\"\",IF(OR('TSA Input'!J2193=\"Yes\",'TSA Input'!J2193=\"Contingent\"),'TSA Input'!D2193,\"\"))","v":""},{"$f":"IF('TSA Input'!J2193=\"\",\"\",IF(OR('TSA Input'!J2193=\"Yes\",'TSA Input'!J2193=\"Contingent\"),'TSA Input'!G2193,\"\"))","v":""},{"$f":"IF('TSA Input'!J2193=\"\",\"\",IF(OR('TSA Input'!J2193=\"Yes\",'TSA Input'!J2193=\"Contingent\"),'TSA Input'!F2193,\"\"))","v":""},"",{"$f":"IF('TSA Input'!J2193=\"\",\"\",IF(OR('TSA Input'!J2193=\"Yes\",'TSA Input'!J2193=\"Contingent\"),'TSA Input'!D2193,\"\"))","v":""},{"$f":"IF('TSA Input'!J2193=\"\",\"\",IF(OR('TSA Input'!J2193=\"Yes\",'TSA Input'!J2193=\"Contingent\"),'TSA Input'!G2193,\"\"))","v":""},{"$f":"IF('TSA Input'!J2193=\"\",\"\",IF(OR('TSA Input'!J2193=\"Yes\",'TSA Input'!J2193=\"Contingent\"),'TSA Input'!F2193,\"\"))","v":""},"","Required","Required"]
["",null,{"$f":"IF('TSA Input'!J2194=\"\",\"\",IF(OR('TSA Input'!J2194=\"Yes\",'TSA Input'!J2194=\"Contingent\"),'TSA Input'!B2194,\"Ineligible\"))","v":""},{"$f":"IF('TSA Input'!J2194=\"\",\"\",IF(OR('TSA Input'!J2194=\"Yes\",'TSA Input'!J2194=\"Contingent\"),'TSA Input'!I2194,\"\"))","v":""},{"$f":"IF('TSA Input'!J2194=\"\",\"\",IF(OR('TSA Input'!J2194=\"Yes\",'TSA Input'!J2194=\"Contingent\"),'TSA Input'!C2194,\"\"))","v":""},{"$f":"IF('TSA Input'!J2194=\"\",\"\",IF(OR('TSA Input'!J2194=\"Yes\",'TSA Input'!J2194=\"Contingent\"),'TSA Input'!D2194,\"\"))","v":""},{"$f":"IF('TSA Input'!J2194=\"\",\"\",IF(OR('TSA Input'!J2194=\"Yes\",'TSA Input'!J2194=\"Contingent\"),'TSA Input'!G2194,\"\"))","v":""},{"$f":"IF('TSA Input'!J2194=\"\",\"\",IF(OR('TSA Input'!J2194=\"Yes\",'TSA Input'!J2194=\"Contingent\"),'TSA Input'!F2194,\"\"))","v":""},"",{"$f":"IF('TSA Input'!J2194=\"\",\"\",IF(OR('TSA Input'!J2194=\"Yes\",'TSA Input'!J2194=\"Contingent\"),'TSA Input'!D2194,\"\"))","v":""},{"$f":"IF('TSA Input'!J2194=\"\",\"\",IF(OR('TSA Input'!J2194=\"Yes\",'TSA Input'!J2194=\"Contingent\"),'TSA Input'!G2194,\"\"))","v":""},{"$f":"IF('TSA Input'!J2194=\"\",\"\",IF(OR('TSA Input'!J2194=\"Yes\",'TSA Input'!J2194=\"Contingent\"),'TSA Input'!F2194,\"\"))","v":""},"","Required","Required"]
["",null,{"$f":"IF('TSA Input'!J2195=\"\",\"\",IF(OR('TSA Input'!J2195=\"Yes\",'TSA Input'!J2195=\"Contingent\"),'TSA Input'!B2195,\"Ineligible\"))","v":""},{"$f":"IF('TSA Input'!J2195=\"\",\"\",IF(OR('TSA Input'!J2195=\"Yes\",'TSA Input'!J2195=\"Contingent\"),'TSA Input'!I2195,\"\"))","v":""},{"$f":"IF('TSA Input'!J2195=\"\",\"\",IF(OR('TSA Input'!J2195=\"Yes\",'TSA Input'!J2195=\"Contingent\"),'TSA Input'!C2195,\"\"))","v":""},{"$f":"IF('TSA Input'!J2195=\"\",\"\",IF(OR('TSA Input'!J2195=\"Yes\",'TSA Input'!J2195=\"Contingent\"),'TSA Input'!D2195,\"\"))","v":""},{"$f":"IF('TSA Input'!J2195=\"\",\"\",IF(OR('TSA Input'!J2195=\"Yes\",'TSA Input'!J2195=\"Contingent\"),'TSA Input'!G2195,\"\"))","v":""},{"$f":"IF('TSA Input'!J2195=\"\",\"\",IF(OR('TSA Input'!J2195=\"Yes\",'TSA Input'!J2195=\"Contingent\"),'TSA Input'!F2195,\"\"))","v":""},"",{"$f":"IF('TSA Input'!J2195=\"\",\"\",IF(OR('TSA Input'!J2195=\"Yes\",'TSA Input'!J2195=\"Contingent\"),'TSA Input'!D2195,\"\"))","v":""},{"$f":"IF('TSA Input'!J2195=\"\",\"\",IF(OR('TSA Input'!J2195=\"Yes\",'TSA Input'!J2195=\"Contingent\"),'TSA Input'!G2195,\"\"))","v":""},{"$f":"IF('TSA Input'!J2195=\"\",\"\",IF(OR('TSA Input'!J2195=\"Yes\",'TSA Input'!J2195=\"Contingent\"),'TSA Input'!F2195,\"\"))","v":""},"","Required","Required"]
["",null,{"$f":"IF('TSA Input'!J2196=\"\",\"\",IF(OR('TSA Input'!J2196=\"Yes\",'TSA Input'!J2196=\"Contingent\"),'TSA Input'!B2196,\"Ineligible\"))","v":""},{"$f":"IF('TSA Input'!J2196=\"\",\"\",IF(OR('TSA Input'!J2196=\"Yes\",'TSA Input'!J2196=\"Contingent\"),'TSA Input'!I2196,\"\"))","v":""},{"$f":"IF('TSA Input'!J2196=\"\",\"\",IF(OR('TSA Input'!J2196=\"Yes\",'TSA Input'!J2196=\"Contingent\"),'TSA Input'!C2196,\"\"))","v":""},{"$f":"IF('TSA Input'!J2196=\"\",\"\",IF(OR('TSA Input'!J2196=\"Yes\",'TSA Input'!J2196=\"Contingent\"),'TSA Input'!D2196,\"\"))","v":""},{"$f":"IF('TSA Input'!J2196=\"\",\"\",IF(OR('TSA Input'!J2196=\"Yes\",'TSA Input'!J2196=\"Contingent\"),'TSA Input'!G2196,\"\"))","v":""},{"$f":"IF('TSA Input'!J2196=\"\",\"\",IF(OR('TSA Input'!J2196=\"Yes\",'TSA Input'!J2196=\"Contingent\"),'TSA Input'!F2196,\"\"))","v":""},"",{"$f":"IF('TSA Input'!J2196=\"\",\"\",IF(OR('TSA Input'!J2196=\"Yes\",'TSA Input'!J2196=\"Contingent\"),'TSA Input'!D2196,\"\"))","v":""},{"$f":"IF('TSA Input'!J2196=\"\",\"\",IF(OR('TSA Input'!J2196=\"Yes\",'TSA Input'!J2196=\"Contingent\"),'TSA Input'!G2196,\"\"))","v":""},{"$f":"IF('TSA Input'!J2196=\"\",\"\",IF(OR('TSA Input'!J2196=\"Yes\",'TSA Input'!J2196=\"Contingent\"),'TSA Input'!F2196,\"\"))","v":""},"","Required","Required"]
["",null,{"$f":"IF('TSA Input'!J2197=\"\",\"\",IF(OR('TSA Input'!J2197=\"Yes\",'TSA Input'!J2197=\"Contingent\"),'TSA Input'!B2197,\"Ineligible\"))","v":""},{"$f":"IF('TSA Input'!J2197=\"\",\"\",IF(OR('TSA Input'!J2197=\"Yes\",'TSA Input'!J2197=\"Contingent\"),'TSA Input'!I2197,\"\"))","v":""},{"$f":"IF('TSA Input'!J2197=\"\",\"\",IF(OR('TSA Input'!J2197=\"Yes\",'TSA Input'!J2197=\"Contingent\"),'TSA Input'!C2197,\"\"))","v":""},{"$f":"IF('TSA Input'!J2197=\"\",\"\",IF(OR('TSA Input'!J2197=\"Yes\",'TSA Input'!J2197=\"Contingent\"),'TSA Input'!D2197,\"\"))","v":""},{"$f":"IF('TSA Input'!J2197=\"\",\"\",IF(OR('TSA Input'!J2197=\"Yes\",'TSA Input'!J2197=\"Contingent\"),'TSA Input'!G2197,\"\"))","v":""},{"$f":"IF('TSA Input'!J2197=\"\",\"\",IF(OR('TSA Input'!J2197=\"Yes\",'TSA Input'!J2197=\"Contingent\"),'TSA Input'!F2197,\"\"))","v":""},"",{"$f":"IF('TSA Input'!J2197=\"\",\"\",IF(OR('TSA Input'!J2197=\"Yes\",'TSA Input'!J2197=\"Contingent\"),'TSA Input'!D2197,\"\"))","v":""},{"$f":"IF('TSA Input'!J2197=\"\",\"\",IF(OR('TSA Input'!J2197=\"Yes\",'TSA Input'!J2197=\"Contingent\"),'TSA Input'!G2197,\"\"))","v":""},{"$f":"IF('TSA Input'!J2197=\"\",\"\",IF(OR('TSA Input'!J2197=\"Yes\",'TSA Input'!J2197=\"Contingent\"),'TSA Input'!F2197,\"\"))","v":""},"","Required","Required"]
["",null,{"$f":"IF('TSA Input'!J2198=\"\",\"\",IF(OR('TSA Input'!J2198=\"Yes\",'TSA Input'!J2198=\"Contingent\"),'TSA Input'!B2198,\"Ineligible\"))","v":""},{"$f":"IF('TSA Input'!J2198=\"\",\"\",IF(OR('TSA Input'!J2198=\"Yes\",'TSA Input'!J2198=\"Contingent\"),'TSA Input'!I2198,\"\"))","v":""},{"$f":"IF('TSA Input'!J2198=\"\",\"\",IF(OR('TSA Input'!J2198=\"Yes\",'TSA Input'!J2198=\"Contingent\"),'TSA Input'!C2198,\"\"))","v":""},{"$f":"IF('TSA Input'!J2198=\"\",\"\",IF(OR('TSA Input'!J2198=\"Yes\",'TSA Input'!J2198=\"Contingent\"),'TSA Input'!D2198,\"\"))","v":""},{"$f":"IF('TSA Input'!J2198=\"\",\"\",IF(OR('TSA Input'!J2198=\"Yes\",'TSA Input'!J2198=\"Contingent\"),'TSA Input'!G2198,\"\"))","v":""},{"$f":"IF('TSA Input'!J2198=\"\",\"\",IF(OR('TSA Input'!J2198=\"Yes\",'TSA Input'!J2198=\"Contingent\"),'TSA Input'!F2198,\"\"))","v":""},"",{"$f":"IF('TSA Input'!J2198=\"\",\"\",IF(OR('TSA Input'!J2198=\"Yes\",'TSA Input'!J2198=\"Contingent\"),'TSA Input'!D2198,\"\"))","v":""},{"$f":"IF('TSA Input'!J2198=\"\",\"\",IF(OR('TSA Input'!J2198=\"Yes\",'TSA Input'!J2198=\"Contingent\"),'TSA Input'!G2198,\"\"))","v":""},{"$f":"IF('TSA Input'!J2198=\"\",\"\",IF(OR('TSA Input'!J2198=\"Yes\",'TSA Input'!J2198=\"Contingent\"),'TSA Input'!F2198,\"\"))","v":""},"","Required","Required"]
["",null,{"$f":"IF('TSA Input'!J2199=\"\",\"\",IF(OR('TSA Input'!J2199=\"Yes\",'TSA Input'!J2199=\"Contingent\"),'TSA Input'!B2199,\"Ineligible\"))","v":""},{"$f":"IF('TSA Input'!J2199=\"\",\"\",IF(OR('TSA Input'!J2199=\"Yes\",'TSA Input'!J2199=\"Contingent\"),'TSA Input'!I2199,\"\"))","v":""},{"$f":"IF('TSA Input'!J2199=\"\",\"\",IF(OR('TSA Input'!J2199=\"Yes\",'TSA Input'!J2199=\"Contingent\"),'TSA Input'!C2199,\"\"))","v":""},{"$f":"IF('TSA Input'!J2199=\"\",\"\",IF(OR('TSA Input'!J2199=\"Yes\",'TSA Input'!J2199=\"Contingent\"),'TSA Input'!D2199,\"\"))","v":""},{"$f":"IF('TSA Input'!J2199=\"\",\"\",IF(OR('TSA Input'!J2199=\"Yes\",'TSA Input'!J2199=\"Contingent\"),'TSA Input'!G2199,\"\"))","v":""},{"$f":"IF('TSA Input'!J2199=\"\",\"\",IF(OR('TSA Input'!J2199=\"Yes\",'TSA Input'!J2199=\"Contingent\"),'TSA Input'!F2199,\"\"))","v":""},"",{"$f":"IF('TSA Input'!J2199=\"\",\"\",IF(OR('TSA Input'!J2199=\"Yes\",'TSA Input'!J2199=\"Contingent\"),'TSA Input'!D2199,\"\"))","v":""},{"$f":"IF('TSA Input'!J2199=\"\",\"\",IF(OR('TSA Input'!J2199=\"Yes\",'TSA Input'!J2199=\"Contingent\"),'TSA Input'!G2199,\"\"))","v":""},{"$f":"IF('TSA Input'!J2199=\"\",\"\",IF(OR('TSA Input'!J2199=\"Yes\",'TSA Input'!J2199=\"Contingent\"),'TSA Input'!F2199,\"\"))","v":""},"","Required","Required"]
["",null,{"$f":"IF('TSA Input'!J2200=\"\",\"\",IF(OR('TSA Input'!J2200=\"Yes\",'TSA Input'!J2200=\"Contingent\"),'TSA Input'!B2200,\"Ineligible\"))","v":""},{"$f":"IF('TSA Input'!J2200=\"\",\"\",IF(OR('TSA Input'!J2200=\"Yes\",'TSA Input'!J2200=\"Contingent\"),'TSA Input'!I2200,\"\"))","v":""},{"$f":"IF('TSA Input'!J2200=\"\",\"\",IF(OR('TSA Input'!J2200=\"Yes\",'TSA Input'!J2200=\"Contingent\"),'TSA Input'!C2200,\"\"))","v":""},{"$f":"IF('TSA Input'!J2200=\"\",\"\",IF(OR('TSA Input'!J2200=\"Yes\",'TSA Input'!J2200=\"Contingent\"),'TSA Input'!D2200,\"\"))","v":""},{"$f":"IF('TSA Input'!J2200=\"\",\"\",IF(OR('TSA Input'!J2200=\"Yes\",'TSA Input'!J2200=\"Contingent\"),'TSA Input'!G2200,\"\"))","v":""},{"$f":"IF('TSA Input'!J2200=\"\",\"\",IF(OR('TSA Input'!J2200=\"Yes\",'TSA Input'!J2200=\"Contingent\"),'TSA Input'!F2200,\"\"))","v":""},"",{"$f":"IF('TSA Input'!J2200=\"\",\"\",IF(OR('TSA Input'!J2200=\"Yes\",'TSA Input'!J2200=\"Contingent\"),'TSA Input'!D2200,\"\"))","v":""},{"$f":"IF('TSA Input'!J2200=\"\",\"\",IF(OR('TSA Input'!J2200=\"Yes\",'TSA Input'!J2200=\"Contingent\"),'TSA Input'!G2200,\"\"))","v":""},{"$f":"IF('TSA Input'!J2200=\"\",\"\",IF(OR('TSA Input'!J2200=\"Yes\",'TSA Input'!J2200=\"Contingent\"),'TSA Input'!F2200,\"\"))","v":""},"","Required","Required"]
["",null,{"$f":"IF('TSA Input'!J2201=\"\",\"\",IF(OR('TSA Input'!J2201=\"Yes\",'TSA Input'!J2201=\"Contingent\"),'TSA Input'!B2201,\"Ineligible\"))","v":""},{"$f":"IF('TSA Input'!J2201=\"\",\"\",IF(OR('TSA Input'!J2201=\"Yes\",'TSA Input'!J2201=\"Contingent\"),'TSA Input'!I2201,\"\"))","v":""},{"$f":"IF('TSA Input'!J2201=\"\",\"\",IF(OR('TSA Input'!J2201=\"Yes\",'TSA Input'!J2201=\"Contingent\"),'TSA Input'!C2201,\"\"))","v":""},{"$f":"IF('TSA Input'!J2201=\"\",\"\",IF(OR('TSA Input'!J2201=\"Yes\",'TSA Input'!J2201=\"Contingent\"),'TSA Input'!D2201,\"\"))","v":""},{"$f":"IF('TSA Input'!J2201=\"\",\"\",IF(OR('TSA Input'!J2201=\"Yes\",'TSA Input'!J2201=\"Contingent\"),'TSA Input'!G2201,\"\"))","v":""},{"$f":"IF('TSA Input'!J2201=\"\",\"\",IF(OR('TSA Input'!J2201=\"Yes\",'TSA Input'!J2201=\"Contingent\"),'TSA Input'!F2201,\"\"))","v":""},"",{"$f":"IF('TSA Input'!J2201=\"\",\"\",IF(OR('TSA Input'!J2201=\"Yes\",'TSA Input'!J2201=\"Contingent\"),'TSA Input'!D2201,\"\"))","v":""},{"$f":"IF('TSA Input'!J2201=\"\",\"\",IF(OR('TSA Input'!J2201=\"Yes\",'TSA Input'!J2201=\"Contingent\"),'TSA Input'!G2201,\"\"))","v":""},{"$f":"IF('TSA Input'!J2201=\"\",\"\",IF(OR('TSA Input'!J2201=\"Yes\",'TSA Input'!J2201=\"Contingent\"),'TSA Input'!F2201,\"\"))","v":""},"","Required","Required"]
["",null,{"$f":"IF('TSA Input'!J2202=\"\",\"\",IF(OR('TSA Input'!J2202=\"Yes\",'TSA Input'!J2202=\"Contingent\"),'TSA Input'!B2202,\"Ineligible\"))","v":""},{"$f":"IF('TSA Input'!J2202=\"\",\"\",IF(OR('TSA Input'!J2202=\"Yes\",'TSA Input'!J2202=\"Contingent\"),'TSA Input'!I2202,\"\"))","v":""},{"$f":"IF('TSA Input'!J2202=\"\",\"\",IF(OR('TSA Input'!J2202=\"Yes\",'TSA Input'!J2202=\"Contingent\"),'TSA Input'!C2202,\"\"))","v":""},{"$f":"IF('TSA Input'!J2202=\"\",\"\",IF(OR('TSA Input'!J2202=\"Yes\",'TSA Input'!J2202=\"Contingent\"),'TSA Input'!D2202,\"\"))","v":""},{"$f":"IF('TSA Input'!J2202=\"\",\"\",IF(OR('TSA Input'!J2202=\"Yes\",'TSA Input'!J2202=\"Contingent\"),'TSA Input'!G2202,\"\"))","v":""},{"$f":"IF('TSA Input'!J2202=\"\",\"\",IF(OR('TSA Input'!J2202=\"Yes\",'TSA Input'!J2202=\"Contingent\"),'TSA Input'!F2202,\"\"))","v":""},"",{"$f":"IF('TSA Input'!J2202=\"\",\"\",IF(OR('TSA Input'!J2202=\"Yes\",'TSA Input'!J2202=\"Contingent\"),'TSA Input'!D2202,\"\"))","v":""},{"$f":"IF('TSA Input'!J2202=\"\",\"\",IF(OR('TSA Input'!J2202=\"Yes\",'TSA Input'!J2202=\"Contingent\"),'TSA Input'!G2202,\"\"))","v":""},{"$f":"IF('TSA Input'!J2202=\"\",\"\",IF(OR('TSA Input'!J2202=\"Yes\",'TSA Input'!J2202=\"Contingent\"),'TSA Input'!F2202,\"\"))","v":""},"","Required","Required"]
["",null,{"$f":"IF('TSA Input'!J2203=\"\",\"\",IF(OR('TSA Input'!J2203=\"Yes\",'TSA Input'!J2203=\"Contingent\"),'TSA Input'!B2203,\"Ineligible\"))","v":""},{"$f":"IF('TSA Input'!J2203=\"\",\"\",IF(OR('TSA Input'!J2203=\"Yes\",'TSA Input'!J2203=\"Contingent\"),'TSA Input'!I2203,\"\"))","v":""},{"$f":"IF('TSA Input'!J2203=\"\",\"\",IF(OR('TSA Input'!J2203=\"Yes\",'TSA Input'!J2203=\"Contingent\"),'TSA Input'!C2203,\"\"))","v":""},{"$f":"IF('TSA Input'!J2203=\"\",\"\",IF(OR('TSA Input'!J2203=\"Yes\",'TSA Input'!J2203=\"Contingent\"),'TSA Input'!D2203,\"\"))","v":""},{"$f":"IF('TSA Input'!J2203=\"\",\"\",IF(OR('TSA Input'!J2203=\"Yes\",'TSA Input'!J2203=\"Contingent\"),'TSA Input'!G2203,\"\"))","v":""},{"$f":"IF('TSA Input'!J2203=\"\",\"\",IF(OR('TSA Input'!J2203=\"Yes\",'TSA Input'!J2203=\"Contingent\"),'TSA Input'!F2203,\"\"))","v":""},"",{"$f":"IF('TSA Input'!J2203=\"\",\"\",IF(OR('TSA Input'!J2203=\"Yes\",'TSA Input'!J2203=\"Contingent\"),'TSA Input'!D2203,\"\"))","v":""},{"$f":"IF('TSA Input'!J2203=\"\",\"\",IF(OR('TSA Input'!J2203=\"Yes\",'TSA Input'!J2203=\"Contingent\"),'TSA Input'!G2203,\"\"))","v":""},{"$f":"IF('TSA Input'!J2203=\"\",\"\",IF(OR('TSA Input'!J2203=\"Yes\",'TSA Input'!J2203=\"Contingent\"),'TSA Input'!F2203,\"\"))","v":""},"","Required","Required"]
["",null,{"$f":"IF('TSA Input'!J2204=\"\",\"\",IF(OR('TSA Input'!J2204=\"Yes\",'TSA Input'!J2204=\"Contingent\"),'TSA Input'!B2204,\"Ineligible\"))","v":""},{"$f":"IF('TSA Input'!J2204=\"\",\"\",IF(OR('TSA Input'!J2204=\"Yes\",'TSA Input'!J2204=\"Contingent\"),'TSA Input'!I2204,\"\"))","v":""},{"$f":"IF('TSA Input'!J2204=\"\",\"\",IF(OR('TSA Input'!J2204=\"Yes\",'TSA Input'!J2204=\"Contingent\"),'TSA Input'!C2204,\"\"))","v":""},{"$f":"IF('TSA Input'!J2204=\"\",\"\",IF(OR('TSA Input'!J2204=\"Yes\",'TSA Input'!J2204=\"Contingent\"),'TSA Input'!D2204,\"\"))","v":""},{"$f":"IF('TSA Input'!J2204=\"\",\"\",IF(OR('TSA Input'!J2204=\"Yes\",'TSA Input'!J2204=\"Contingent\"),'TSA Input'!G2204,\"\"))","v":""},{"$f":"IF('TSA Input'!J2204=\"\",\"\",IF(OR('TSA Input'!J2204=\"Yes\",'TSA Input'!J2204=\"Contingent\"),'TSA Input'!F2204,\"\"))","v":""},"",{"$f":"IF('TSA Input'!J2204=\"\",\"\",IF(OR('TSA Input'!J2204=\"Yes\",'TSA Input'!J2204=\"Contingent\"),'TSA Input'!D2204,\"\"))","v":""},{"$f":"IF('TSA Input'!J2204=\"\",\"\",IF(OR('TSA Input'!J2204=\"Yes\",'TSA Input'!J2204=\"Contingent\"),'TSA Input'!G2204,\"\"))","v":""},{"$f":"IF('TSA Input'!J2204=\"\",\"\",IF(OR('TSA Input'!J2204=\"Yes\",'TSA Input'!J2204=\"Contingent\"),'TSA Input'!F2204,\"\"))","v":""},"","Required","Required"]
["",null,{"$f":"IF('TSA Input'!J2205=\"\",\"\",IF(OR('TSA Input'!J2205=\"Yes\",'TSA Input'!J2205=\"Contingent\"),'TSA Input'!B2205,\"Ineligible\"))","v":""},{"$f":"IF('TSA Input'!J2205=\"\",\"\",IF(OR('TSA Input'!J2205=\"Yes\",'TSA Input'!J2205=\"Contingent\"),'TSA Input'!I2205,\"\"))","v":""},{"$f":"IF('TSA Input'!J2205=\"\",\"\",IF(OR('TSA Input'!J2205=\"Yes\",'TSA Input'!J2205=\"Contingent\"),'TSA Input'!C2205,\"\"))","v":""},{"$f":"IF('TSA Input'!J2205=\"\",\"\",IF(OR('TSA Input'!J2205=\"Yes\",'TSA Input'!J2205=\"Contingent\"),'TSA Input'!D2205,\"\"))","v":""},{"$f":"IF('TSA Input'!J2205=\"\",\"\",IF(OR('TSA Input'!J2205=\"Yes\",'TSA Input'!J2205=\"Contingent\"),'TSA Input'!G2205,\"\"))","v":""},{"$f":"IF('TSA Input'!J2205=\"\",\"\",IF(OR('TSA Input'!J2205=\"Yes\",'TSA Input'!J2205=\"Contingent\"),'TSA Input'!F2205,\"\"))","v":""},"",{"$f":"IF('TSA Input'!J2205=\"\",\"\",IF(OR('TSA Input'!J2205=\"Yes\",'TSA Input'!J2205=\"Contingent\"),'TSA Input'!D2205,\"\"))","v":""},{"$f":"IF('TSA Input'!J2205=\"\",\"\",IF(OR('TSA Input'!J2205=\"Yes\",'TSA Input'!J2205=\"Contingent\"),'TSA Input'!G2205,\"\"))","v":""},{"$f":"IF('TSA Input'!J2205=\"\",\"\",IF(OR('TSA Input'!J2205=\"Yes\",'TSA Input'!J2205=\"Contingent\"),'TSA Input'!F2205,\"\"))","v":""},"","Required","Required"]
["",null,{"$f":"IF('TSA Input'!J2206=\"\",\"\",IF(OR('TSA Input'!J2206=\"Yes\",'TSA Input'!J2206=\"Contingent\"),'TSA Input'!B2206,\"Ineligible\"))","v":""},{"$f":"IF('TSA Input'!J2206=\"\",\"\",IF(OR('TSA Input'!J2206=\"Yes\",'TSA Input'!J2206=\"Contingent\"),'TSA Input'!I2206,\"\"))","v":""},{"$f":"IF('TSA Input'!J2206=\"\",\"\",IF(OR('TSA Input'!J2206=\"Yes\",'TSA Input'!J2206=\"Contingent\"),'TSA Input'!C2206,\"\"))","v":""},{"$f":"IF('TSA Input'!J2206=\"\",\"\",IF(OR('TSA Input'!J2206=\"Yes\",'TSA Input'!J2206=\"Contingent\"),'TSA Input'!D2206,\"\"))","v":""},{"$f":"IF('TSA Input'!J2206=\"\",\"\",IF(OR('TSA Input'!J2206=\"Yes\",'TSA Input'!J2206=\"Contingent\"),'TSA Input'!G2206,\"\"))","v":""},{"$f":"IF('TSA Input'!J2206=\"\",\"\",IF(OR('TSA Input'!J2206=\"Yes\",'TSA Input'!J2206=\"Contingent\"),'TSA Input'!F2206,\"\"))","v":""},"",{"$f":"IF('TSA Input'!J2206=\"\",\"\",IF(OR('TSA Input'!J2206=\"Yes\",'TSA Input'!J2206=\"Contingent\"),'TSA Input'!D2206,\"\"))","v":""},{"$f":"IF('TSA Input'!J2206=\"\",\"\",IF(OR('TSA Input'!J2206=\"Yes\",'TSA Input'!J2206=\"Contingent\"),'TSA Input'!G2206,\"\"))","v":""},{"$f":"IF('TSA Input'!J2206=\"\",\"\",IF(OR('TSA Input'!J2206=\"Yes\",'TSA Input'!J2206=\"Contingent\"),'TSA Input'!F2206,\"\"))","v":""},"","Required","Required"]
["",null,{"$f":"IF('TSA Input'!J2207=\"\",\"\",IF(OR('TSA Input'!J2207=\"Yes\",'TSA Input'!J2207=\"Contingent\"),'TSA Input'!B2207,\"Ineligible\"))","v":""},{"$f":"IF('TSA Input'!J2207=\"\",\"\",IF(OR('TSA Input'!J2207=\"Yes\",'TSA Input'!J2207=\"Contingent\"),'TSA Input'!I2207,\"\"))","v":""},{"$f":"IF('TSA Input'!J2207=\"\",\"\",IF(OR('TSA Input'!J2207=\"Yes\",'TSA Input'!J2207=\"Contingent\"),'TSA Input'!C2207,\"\"))","v":""},{"$f":"IF('TSA Input'!J2207=\"\",\"\",IF(OR('TSA Input'!J2207=\"Yes\",'TSA Input'!J2207=\"Contingent\"),'TSA Input'!D2207,\"\"))","v":""},{"$f":"IF('TSA Input'!J2207=\"\",\"\",IF(OR('TSA Input'!J2207=\"Yes\",'TSA Input'!J2207=\"Contingent\"),'TSA Input'!G2207,\"\"))","v":""},{"$f":"IF('TSA Input'!J2207=\"\",\"\",IF(OR('TSA Input'!J2207=\"Yes\",'TSA Input'!J2207=\"Contingent\"),'TSA Input'!F2207,\"\"))","v":""},"",{"$f":"IF('TSA Input'!J2207=\"\",\"\",IF(OR('TSA Input'!J2207=\"Yes\",'TSA Input'!J2207=\"Contingent\"),'TSA Input'!D2207,\"\"))","v":""},{"$f":"IF('TSA Input'!J2207=\"\",\"\",IF(OR('TSA Input'!J2207=\"Yes\",'TSA Input'!J2207=\"Contingent\"),'TSA Input'!G2207,\"\"))","v":""},{"$f":"IF('TSA Input'!J2207=\"\",\"\",IF(OR('TSA Input'!J2207=\"Yes\",'TSA Input'!J2207=\"Contingent\"),'TSA Input'!F2207,\"\"))","v":""},"","Required","Required"]
["",null,{"$f":"IF('TSA Input'!J2208=\"\",\"\",IF(OR('TSA Input'!J2208=\"Yes\",'TSA Input'!J2208=\"Contingent\"),'TSA Input'!B2208,\"Ineligible\"))","v":""},{"$f":"IF('TSA Input'!J2208=\"\",\"\",IF(OR('TSA Input'!J2208=\"Yes\",'TSA Input'!J2208=\"Contingent\"),'TSA Input'!I2208,\"\"))","v":""},{"$f":"IF('TSA Input'!J2208=\"\",\"\",IF(OR('TSA Input'!J2208=\"Yes\",'TSA Input'!J2208=\"Contingent\"),'TSA Input'!C2208,\"\"))","v":""},{"$f":"IF('TSA Input'!J2208=\"\",\"\",IF(OR('TSA Input'!J2208=\"Yes\",'TSA Input'!J2208=\"Contingent\"),'TSA Input'!D2208,\"\"))","v":""},{"$f":"IF('TSA Input'!J2208=\"\",\"\",IF(OR('TSA Input'!J2208=\"Yes\",'TSA Input'!J2208=\"Contingent\"),'TSA Input'!G2208,\"\"))","v":""},{"$f":"IF('TSA Input'!J2208=\"\",\"\",IF(OR('TSA Input'!J2208=\"Yes\",'TSA Input'!J2208=\"Contingent\"),'TSA Input'!F2208,\"\"))","v":""},"",{"$f":"IF('TSA Input'!J2208=\"\",\"\",IF(OR('TSA Input'!J2208=\"Yes\",'TSA Input'!J2208=\"Contingent\"),'TSA Input'!D2208,\"\"))","v":""},{"$f":"IF('TSA Input'!J2208=\"\",\"\",IF(OR('TSA Input'!J2208=\"Yes\",'TSA Input'!J2208=\"Contingent\"),'TSA Input'!G2208,\"\"))","v":""},{"$f":"IF('TSA Input'!J2208=\"\",\"\",IF(OR('TSA Input'!J2208=\"Yes\",'TSA Input'!J2208=\"Contingent\"),'TSA Input'!F2208,\"\"))","v":""},"","Required","Required"]
["",null,{"$f":"IF('TSA Input'!J2209=\"\",\"\",IF(OR('TSA Input'!J2209=\"Yes\",'TSA Input'!J2209=\"Contingent\"),'TSA Input'!B2209,\"Ineligible\"))","v":""},{"$f":"IF('TSA Input'!J2209=\"\",\"\",IF(OR('TSA Input'!J2209=\"Yes\",'TSA Input'!J2209=\"Contingent\"),'TSA Input'!I2209,\"\"))","v":""},{"$f":"IF('TSA Input'!J2209=\"\",\"\",IF(OR('TSA Input'!J2209=\"Yes\",'TSA Input'!J2209=\"Contingent\"),'TSA Input'!C2209,\"\"))","v":""},{"$f":"IF('TSA Input'!J2209=\"\",\"\",IF(OR('TSA Input'!J2209=\"Yes\",'TSA Input'!J2209=\"Contingent\"),'TSA Input'!D2209,\"\"))","v":""},{"$f":"IF('TSA Input'!J2209=\"\",\"\",IF(OR('TSA Input'!J2209=\"Yes\",'TSA Input'!J2209=\"Contingent\"),'TSA Input'!G2209,\"\"))","v":""},{"$f":"IF('TSA Input'!J2209=\"\",\"\",IF(OR('TSA Input'!J2209=\"Yes\",'TSA Input'!J2209=\"Contingent\"),'TSA Input'!F2209,\"\"))","v":""},"",{"$f":"IF('TSA Input'!J2209=\"\",\"\",IF(OR('TSA Input'!J2209=\"Yes\",'TSA Input'!J2209=\"Contingent\"),'TSA Input'!D2209,\"\"))","v":""},{"$f":"IF('TSA Input'!J2209=\"\",\"\",IF(OR('TSA Input'!J2209=\"Yes\",'TSA Input'!J2209=\"Contingent\"),'TSA Input'!G2209,\"\"))","v":""},{"$f":"IF('TSA Input'!J2209=\"\",\"\",IF(OR('TSA Input'!J2209=\"Yes\",'TSA Input'!J2209=\"Contingent\"),'TSA Input'!F2209,\"\"))","v":""},"","Required","Required"]
["",null,{"$f":"IF('TSA Input'!J2210=\"\",\"\",IF(OR('TSA Input'!J2210=\"Yes\",'TSA Input'!J2210=\"Contingent\"),'TSA Input'!B2210,\"Ineligible\"))","v":""},{"$f":"IF('TSA Input'!J2210=\"\",\"\",IF(OR('TSA Input'!J2210=\"Yes\",'TSA Input'!J2210=\"Contingent\"),'TSA Input'!I2210,\"\"))","v":""},{"$f":"IF('TSA Input'!J2210=\"\",\"\",IF(OR('TSA Input'!J2210=\"Yes\",'TSA Input'!J2210=\"Contingent\"),'TSA Input'!C2210,\"\"))","v":""},{"$f":"IF('TSA Input'!J2210=\"\",\"\",IF(OR('TSA Input'!J2210=\"Yes\",'TSA Input'!J2210=\"Contingent\"),'TSA Input'!D2210,\"\"))","v":""},{"$f":"IF('TSA Input'!J2210=\"\",\"\",IF(OR('TSA Input'!J2210=\"Yes\",'TSA Input'!J2210=\"Contingent\"),'TSA Input'!G2210,\"\"))","v":""},{"$f":"IF('TSA Input'!J2210=\"\",\"\",IF(OR('TSA Input'!J2210=\"Yes\",'TSA Input'!J2210=\"Contingent\"),'TSA Input'!F2210,\"\"))","v":""},"",{"$f":"IF('TSA Input'!J2210=\"\",\"\",IF(OR('TSA Input'!J2210=\"Yes\",'TSA Input'!J2210=\"Contingent\"),'TSA Input'!D2210,\"\"))","v":""},{"$f":"IF('TSA Input'!J2210=\"\",\"\",IF(OR('TSA Input'!J2210=\"Yes\",'TSA Input'!J2210=\"Contingent\"),'TSA Input'!G2210,\"\"))","v":""},{"$f":"IF('TSA Input'!J2210=\"\",\"\",IF(OR('TSA Input'!J2210=\"Yes\",'TSA Input'!J2210=\"Contingent\"),'TSA Input'!F2210,\"\"))","v":""},"","Required","Required"]
["",null,{"$f":"IF('TSA Input'!J2211=\"\",\"\",IF(OR('TSA Input'!J2211=\"Yes\",'TSA Input'!J2211=\"Contingent\"),'TSA Input'!B2211,\"Ineligible\"))","v":""},{"$f":"IF('TSA Input'!J2211=\"\",\"\",IF(OR('TSA Input'!J2211=\"Yes\",'TSA Input'!J2211=\"Contingent\"),'TSA Input'!I2211,\"\"))","v":""},{"$f":"IF('TSA Input'!J2211=\"\",\"\",IF(OR('TSA Input'!J2211=\"Yes\",'TSA Input'!J2211=\"Contingent\"),'TSA Input'!C2211,\"\"))","v":""},{"$f":"IF('TSA Input'!J2211=\"\",\"\",IF(OR('TSA Input'!J2211=\"Yes\",'TSA Input'!J2211=\"Contingent\"),'TSA Input'!D2211,\"\"))","v":""},{"$f":"IF('TSA Input'!J2211=\"\",\"\",IF(OR('TSA Input'!J2211=\"Yes\",'TSA Input'!J2211=\"Contingent\"),'TSA Input'!G2211,\"\"))","v":""},{"$f":"IF('TSA Input'!J2211=\"\",\"\",IF(OR('TSA Input'!J2211=\"Yes\",'TSA Input'!J2211=\"Contingent\"),'TSA Input'!F2211,\"\"))","v":""},"",{"$f":"IF('TSA Input'!J2211=\"\",\"\",IF(OR('TSA Input'!J2211=\"Yes\",'TSA Input'!J2211=\"Contingent\"),'TSA Input'!D2211,\"\"))","v":""},{"$f":"IF('TSA Input'!J2211=\"\",\"\",IF(OR('TSA Input'!J2211=\"Yes\",'TSA Input'!J2211=\"Contingent\"),'TSA Input'!G2211,\"\"))","v":""},{"$f":"IF('TSA Input'!J2211=\"\",\"\",IF(OR('TSA Input'!J2211=\"Yes\",'TSA Input'!J2211=\"Contingent\"),'TSA Input'!F2211,\"\"))","v":""},"","Required","Required"]
["",null,{"$f":"IF('TSA Input'!J2212=\"\",\"\",IF(OR('TSA Input'!J2212=\"Yes\",'TSA Input'!J2212=\"Contingent\"),'TSA Input'!B2212,\"Ineligible\"))","v":""},{"$f":"IF('TSA Input'!J2212=\"\",\"\",IF(OR('TSA Input'!J2212=\"Yes\",'TSA Input'!J2212=\"Contingent\"),'TSA Input'!I2212,\"\"))","v":""},{"$f":"IF('TSA Input'!J2212=\"\",\"\",IF(OR('TSA Input'!J2212=\"Yes\",'TSA Input'!J2212=\"Contingent\"),'TSA Input'!C2212,\"\"))","v":""},{"$f":"IF('TSA Input'!J2212=\"\",\"\",IF(OR('TSA Input'!J2212=\"Yes\",'TSA Input'!J2212=\"Contingent\"),'TSA Input'!D2212,\"\"))","v":""},{"$f":"IF('TSA Input'!J2212=\"\",\"\",IF(OR('TSA Input'!J2212=\"Yes\",'TSA Input'!J2212=\"Contingent\"),'TSA Input'!G2212,\"\"))","v":""},{"$f":"IF('TSA Input'!J2212=\"\",\"\",IF(OR('TSA Input'!J2212=\"Yes\",'TSA Input'!J2212=\"Contingent\"),'TSA Input'!F2212,\"\"))","v":""},"",{"$f":"IF('TSA Input'!J2212=\"\",\"\",IF(OR('TSA Input'!J2212=\"Yes\",'TSA Input'!J2212=\"Contingent\"),'TSA Input'!D2212,\"\"))","v":""},{"$f":"IF('TSA Input'!J2212=\"\",\"\",IF(OR('TSA Input'!J2212=\"Yes\",'TSA Input'!J2212=\"Contingent\"),'TSA Input'!G2212,\"\"))","v":""},{"$f":"IF('TSA Input'!J2212=\"\",\"\",IF(OR('TSA Input'!J2212=\"Yes\",'TSA Input'!J2212=\"Contingent\"),'TSA Input'!F2212,\"\"))","v":""},"","Required","Required"]
["",null,{"$f":"IF('TSA Input'!J2213=\"\",\"\",IF(OR('TSA Input'!J2213=\"Yes\",'TSA Input'!J2213=\"Contingent\"),'TSA Input'!B2213,\"Ineligible\"))","v":""},{"$f":"IF('TSA Input'!J2213=\"\",\"\",IF(OR('TSA Input'!J2213=\"Yes\",'TSA Input'!J2213=\"Contingent\"),'TSA Input'!I2213,\"\"))","v":""},{"$f":"IF('TSA Input'!J2213=\"\",\"\",IF(OR('TSA Input'!J2213=\"Yes\",'TSA Input'!J2213=\"Contingent\"),'TSA Input'!C2213,\"\"))","v":""},{"$f":"IF('TSA Input'!J2213=\"\",\"\",IF(OR('TSA Input'!J2213=\"Yes\",'TSA Input'!J2213=\"Contingent\"),'TSA Input'!D2213,\"\"))","v":""},{"$f":"IF('TSA Input'!J2213=\"\",\"\",IF(OR('TSA Input'!J2213=\"Yes\",'TSA Input'!J2213=\"Contingent\"),'TSA Input'!G2213,\"\"))","v":""},{"$f":"IF('TSA Input'!J2213=\"\",\"\",IF(OR('TSA Input'!J2213=\"Yes\",'TSA Input'!J2213=\"Contingent\"),'TSA Input'!F2213,\"\"))","v":""},"",{"$f":"IF('TSA Input'!J2213=\"\",\"\",IF(OR('TSA Input'!J2213=\"Yes\",'TSA Input'!J2213=\"Contingent\"),'TSA Input'!D2213,\"\"))","v":""},{"$f":"IF('TSA Input'!J2213=\"\",\"\",IF(OR('TSA Input'!J2213=\"Yes\",'TSA Input'!J2213=\"Contingent\"),'TSA Input'!G2213,\"\"))","v":""},{"$f":"IF('TSA Input'!J2213=\"\",\"\",IF(OR('TSA Input'!J2213=\"Yes\",'TSA Input'!J2213=\"Contingent\"),'TSA Input'!F2213,\"\"))","v":""},"","Required","Required"]
["",null,{"$f":"IF('TSA Input'!J2214=\"\",\"\",IF(OR('TSA Input'!J2214=\"Yes\",'TSA Input'!J2214=\"Contingent\"),'TSA Input'!B2214,\"Ineligible\"))","v":""},{"$f":"IF('TSA Input'!J2214=\"\",\"\",IF(OR('TSA Input'!J2214=\"Yes\",'TSA Input'!J2214=\"Contingent\"),'TSA Input'!I2214,\"\"))","v":""},{"$f":"IF('TSA Input'!J2214=\"\",\"\",IF(OR('TSA Input'!J2214=\"Yes\",'TSA Input'!J2214=\"Contingent\"),'TSA Input'!C2214,\"\"))","v":""},{"$f":"IF('TSA Input'!J2214=\"\",\"\",IF(OR('TSA Input'!J2214=\"Yes\",'TSA Input'!J2214=\"Contingent\"),'TSA Input'!D2214,\"\"))","v":""},{"$f":"IF('TSA Input'!J2214=\"\",\"\",IF(OR('TSA Input'!J2214=\"Yes\",'TSA Input'!J2214=\"Contingent\"),'TSA Input'!G2214,\"\"))","v":""},{"$f":"IF('TSA Input'!J2214=\"\",\"\",IF(OR('TSA Input'!J2214=\"Yes\",'TSA Input'!J2214=\"Contingent\"),'TSA Input'!F2214,\"\"))","v":""},"",{"$f":"IF('TSA Input'!J2214=\"\",\"\",IF(OR('TSA Input'!J2214=\"Yes\",'TSA Input'!J2214=\"Contingent\"),'TSA Input'!D2214,\"\"))","v":""},{"$f":"IF('TSA Input'!J2214=\"\",\"\",IF(OR('TSA Input'!J2214=\"Yes\",'TSA Input'!J2214=\"Contingent\"),'TSA Input'!G2214,\"\"))","v":""},{"$f":"IF('TSA Input'!J2214=\"\",\"\",IF(OR('TSA Input'!J2214=\"Yes\",'TSA Input'!J2214=\"Contingent\"),'TSA Input'!F2214,\"\"))","v":""},"","Required","Required"]
["",null,{"$f":"IF('TSA Input'!J2215=\"\",\"\",IF(OR('TSA Input'!J2215=\"Yes\",'TSA Input'!J2215=\"Contingent\"),'TSA Input'!B2215,\"Ineligible\"))","v":""},{"$f":"IF('TSA Input'!J2215=\"\",\"\",IF(OR('TSA Input'!J2215=\"Yes\",'TSA Input'!J2215=\"Contingent\"),'TSA Input'!I2215,\"\"))","v":""},{"$f":"IF('TSA Input'!J2215=\"\",\"\",IF(OR('TSA Input'!J2215=\"Yes\",'TSA Input'!J2215=\"Contingent\"),'TSA Input'!C2215,\"\"))","v":""},{"$f":"IF('TSA Input'!J2215=\"\",\"\",IF(OR('TSA Input'!J2215=\"Yes\",'TSA Input'!J2215=\"Contingent\"),'TSA Input'!D2215,\"\"))","v":""},{"$f":"IF('TSA Input'!J2215=\"\",\"\",IF(OR('TSA Input'!J2215=\"Yes\",'TSA Input'!J2215=\"Contingent\"),'TSA Input'!G2215,\"\"))","v":""},{"$f":"IF('TSA Input'!J2215=\"\",\"\",IF(OR('TSA Input'!J2215=\"Yes\",'TSA Input'!J2215=\"Contingent\"),'TSA Input'!F2215,\"\"))","v":""},"",{"$f":"IF('TSA Input'!J2215=\"\",\"\",IF(OR('TSA Input'!J2215=\"Yes\",'TSA Input'!J2215=\"Contingent\"),'TSA Input'!D2215,\"\"))","v":""},{"$f":"IF('TSA Input'!J2215=\"\",\"\",IF(OR('TSA Input'!J2215=\"Yes\",'TSA Input'!J2215=\"Contingent\"),'TSA Input'!G2215,\"\"))","v":""},{"$f":"IF('TSA Input'!J2215=\"\",\"\",IF(OR('TSA Input'!J2215=\"Yes\",'TSA Input'!J2215=\"Contingent\"),'TSA Input'!F2215,\"\"))","v":""},"","Required","Required"]
["",null,{"$f":"IF('TSA Input'!J2216=\"\",\"\",IF(OR('TSA Input'!J2216=\"Yes\",'TSA Input'!J2216=\"Contingent\"),'TSA Input'!B2216,\"Ineligible\"))","v":""},{"$f":"IF('TSA Input'!J2216=\"\",\"\",IF(OR('TSA Input'!J2216=\"Yes\",'TSA Input'!J2216=\"Contingent\"),'TSA Input'!I2216,\"\"))","v":""},{"$f":"IF('TSA Input'!J2216=\"\",\"\",IF(OR('TSA Input'!J2216=\"Yes\",'TSA Input'!J2216=\"Contingent\"),'TSA Input'!C2216,\"\"))","v":""},{"$f":"IF('TSA Input'!J2216=\"\",\"\",IF(OR('TSA Input'!J2216=\"Yes\",'TSA Input'!J2216=\"Contingent\"),'TSA Input'!D2216,\"\"))","v":""},{"$f":"IF('TSA Input'!J2216=\"\",\"\",IF(OR('TSA Input'!J2216=\"Yes\",'TSA Input'!J2216=\"Contingent\"),'TSA Input'!G2216,\"\"))","v":""},{"$f":"IF('TSA Input'!J2216=\"\",\"\",IF(OR('TSA Input'!J2216=\"Yes\",'TSA Input'!J2216=\"Contingent\"),'TSA Input'!F2216,\"\"))","v":""},"",{"$f":"IF('TSA Input'!J2216=\"\",\"\",IF(OR('TSA Input'!J2216=\"Yes\",'TSA Input'!J2216=\"Contingent\"),'TSA Input'!D2216,\"\"))","v":""},{"$f":"IF('TSA Input'!J2216=\"\",\"\",IF(OR('TSA Input'!J2216=\"Yes\",'TSA Input'!J2216=\"Contingent\"),'TSA Input'!G2216,\"\"))","v":""},{"$f":"IF('TSA Input'!J2216=\"\",\"\",IF(OR('TSA Input'!J2216=\"Yes\",'TSA Input'!J2216=\"Contingent\"),'TSA Input'!F2216,\"\"))","v":""},"","Required","Required"]
["",null,{"$f":"IF('TSA Input'!J2217=\"\",\"\",IF(OR('TSA Input'!J2217=\"Yes\",'TSA Input'!J2217=\"Contingent\"),'TSA Input'!B2217,\"Ineligible\"))","v":""},{"$f":"IF('TSA Input'!J2217=\"\",\"\",IF(OR('TSA Input'!J2217=\"Yes\",'TSA Input'!J2217=\"Contingent\"),'TSA Input'!I2217,\"\"))","v":""},{"$f":"IF('TSA Input'!J2217=\"\",\"\",IF(OR('TSA Input'!J2217=\"Yes\",'TSA Input'!J2217=\"Contingent\"),'TSA Input'!C2217,\"\"))","v":""},{"$f":"IF('TSA Input'!J2217=\"\",\"\",IF(OR('TSA Input'!J2217=\"Yes\",'TSA Input'!J2217=\"Contingent\"),'TSA Input'!D2217,\"\"))","v":""},{"$f":"IF('TSA Input'!J2217=\"\",\"\",IF(OR('TSA Input'!J2217=\"Yes\",'TSA Input'!J2217=\"Contingent\"),'TSA Input'!G2217,\"\"))","v":""},{"$f":"IF('TSA Input'!J2217=\"\",\"\",IF(OR('TSA Input'!J2217=\"Yes\",'TSA Input'!J2217=\"Contingent\"),'TSA Input'!F2217,\"\"))","v":""},"",{"$f":"IF('TSA Input'!J2217=\"\",\"\",IF(OR('TSA Input'!J2217=\"Yes\",'TSA Input'!J2217=\"Contingent\"),'TSA Input'!D2217,\"\"))","v":""},{"$f":"IF('TSA Input'!J2217=\"\",\"\",IF(OR('TSA Input'!J2217=\"Yes\",'TSA Input'!J2217=\"Contingent\"),'TSA Input'!G2217,\"\"))","v":""},{"$f":"IF('TSA Input'!J2217=\"\",\"\",IF(OR('TSA Input'!J2217=\"Yes\",'TSA Input'!J2217=\"Contingent\"),'TSA Input'!F2217,\"\"))","v":""},"","Required","Required"]
["",null,{"$f":"IF('TSA Input'!J2218=\"\",\"\",IF(OR('TSA Input'!J2218=\"Yes\",'TSA Input'!J2218=\"Contingent\"),'TSA Input'!B2218,\"Ineligible\"))","v":""},{"$f":"IF('TSA Input'!J2218=\"\",\"\",IF(OR('TSA Input'!J2218=\"Yes\",'TSA Input'!J2218=\"Contingent\"),'TSA Input'!I2218,\"\"))","v":""},{"$f":"IF('TSA Input'!J2218=\"\",\"\",IF(OR('TSA Input'!J2218=\"Yes\",'TSA Input'!J2218=\"Contingent\"),'TSA Input'!C2218,\"\"))","v":""},{"$f":"IF('TSA Input'!J2218=\"\",\"\",IF(OR('TSA Input'!J2218=\"Yes\",'TSA Input'!J2218=\"Contingent\"),'TSA Input'!D2218,\"\"))","v":""},{"$f":"IF('TSA Input'!J2218=\"\",\"\",IF(OR('TSA Input'!J2218=\"Yes\",'TSA Input'!J2218=\"Contingent\"),'TSA Input'!G2218,\"\"))","v":""},{"$f":"IF('TSA Input'!J2218=\"\",\"\",IF(OR('TSA Input'!J2218=\"Yes\",'TSA Input'!J2218=\"Contingent\"),'TSA Input'!F2218,\"\"))","v":""},"",{"$f":"IF('TSA Input'!J2218=\"\",\"\",IF(OR('TSA Input'!J2218=\"Yes\",'TSA Input'!J2218=\"Contingent\"),'TSA Input'!D2218,\"\"))","v":""},{"$f":"IF('TSA Input'!J2218=\"\",\"\",IF(OR('TSA Input'!J2218=\"Yes\",'TSA Input'!J2218=\"Contingent\"),'TSA Input'!G2218,\"\"))","v":""},{"$f":"IF('TSA Input'!J2218=\"\",\"\",IF(OR('TSA Input'!J2218=\"Yes\",'TSA Input'!J2218=\"Contingent\"),'TSA Input'!F2218,\"\"))","v":""},"","Required","Required"]
["",null,{"$f":"IF('TSA Input'!J2219=\"\",\"\",IF(OR('TSA Input'!J2219=\"Yes\",'TSA Input'!J2219=\"Contingent\"),'TSA Input'!B2219,\"Ineligible\"))","v":""},{"$f":"IF('TSA Input'!J2219=\"\",\"\",IF(OR('TSA Input'!J2219=\"Yes\",'TSA Input'!J2219=\"Contingent\"),'TSA Input'!I2219,\"\"))","v":""},{"$f":"IF('TSA Input'!J2219=\"\",\"\",IF(OR('TSA Input'!J2219=\"Yes\",'TSA Input'!J2219=\"Contingent\"),'TSA Input'!C2219,\"\"))","v":""},{"$f":"IF('TSA Input'!J2219=\"\",\"\",IF(OR('TSA Input'!J2219=\"Yes\",'TSA Input'!J2219=\"Contingent\"),'TSA Input'!D2219,\"\"))","v":""},{"$f":"IF('TSA Input'!J2219=\"\",\"\",IF(OR('TSA Input'!J2219=\"Yes\",'TSA Input'!J2219=\"Contingent\"),'TSA Input'!G2219,\"\"))","v":""},{"$f":"IF('TSA Input'!J2219=\"\",\"\",IF(OR('TSA Input'!J2219=\"Yes\",'TSA Input'!J2219=\"Contingent\"),'TSA Input'!F2219,\"\"))","v":""},"",{"$f":"IF('TSA Input'!J2219=\"\",\"\",IF(OR('TSA Input'!J2219=\"Yes\",'TSA Input'!J2219=\"Contingent\"),'TSA Input'!D2219,\"\"))","v":""},{"$f":"IF('TSA Input'!J2219=\"\",\"\",IF(OR('TSA Input'!J2219=\"Yes\",'TSA Input'!J2219=\"Contingent\"),'TSA Input'!G2219,\"\"))","v":""},{"$f":"IF('TSA Input'!J2219=\"\",\"\",IF(OR('TSA Input'!J2219=\"Yes\",'TSA Input'!J2219=\"Contingent\"),'TSA Input'!F2219,\"\"))","v":""},"","Required","Required"]
["",null,{"$f":"IF('TSA Input'!J2220=\"\",\"\",IF(OR('TSA Input'!J2220=\"Yes\",'TSA Input'!J2220=\"Contingent\"),'TSA Input'!B2220,\"Ineligible\"))","v":""},{"$f":"IF('TSA Input'!J2220=\"\",\"\",IF(OR('TSA Input'!J2220=\"Yes\",'TSA Input'!J2220=\"Contingent\"),'TSA Input'!I2220,\"\"))","v":""},{"$f":"IF('TSA Input'!J2220=\"\",\"\",IF(OR('TSA Input'!J2220=\"Yes\",'TSA Input'!J2220=\"Contingent\"),'TSA Input'!C2220,\"\"))","v":""},{"$f":"IF('TSA Input'!J2220=\"\",\"\",IF(OR('TSA Input'!J2220=\"Yes\",'TSA Input'!J2220=\"Contingent\"),'TSA Input'!D2220,\"\"))","v":""},{"$f":"IF('TSA Input'!J2220=\"\",\"\",IF(OR('TSA Input'!J2220=\"Yes\",'TSA Input'!J2220=\"Contingent\"),'TSA Input'!G2220,\"\"))","v":""},{"$f":"IF('TSA Input'!J2220=\"\",\"\",IF(OR('TSA Input'!J2220=\"Yes\",'TSA Input'!J2220=\"Contingent\"),'TSA Input'!F2220,\"\"))","v":""},"",{"$f":"IF('TSA Input'!J2220=\"\",\"\",IF(OR('TSA Input'!J2220=\"Yes\",'TSA Input'!J2220=\"Contingent\"),'TSA Input'!D2220,\"\"))","v":""},{"$f":"IF('TSA Input'!J2220=\"\",\"\",IF(OR('TSA Input'!J2220=\"Yes\",'TSA Input'!J2220=\"Contingent\"),'TSA Input'!G2220,\"\"))","v":""},{"$f":"IF('TSA Input'!J2220=\"\",\"\",IF(OR('TSA Input'!J2220=\"Yes\",'TSA Input'!J2220=\"Contingent\"),'TSA Input'!F2220,\"\"))","v":""},"","Required","Required"]
["",null,{"$f":"IF('TSA Input'!J2221=\"\",\"\",IF(OR('TSA Input'!J2221=\"Yes\",'TSA Input'!J2221=\"Contingent\"),'TSA Input'!B2221,\"Ineligible\"))","v":""},{"$f":"IF('TSA Input'!J2221=\"\",\"\",IF(OR('TSA Input'!J2221=\"Yes\",'TSA Input'!J2221=\"Contingent\"),'TSA Input'!I2221,\"\"))","v":""},{"$f":"IF('TSA Input'!J2221=\"\",\"\",IF(OR('TSA Input'!J2221=\"Yes\",'TSA Input'!J2221=\"Contingent\"),'TSA Input'!C2221,\"\"))","v":""},{"$f":"IF('TSA Input'!J2221=\"\",\"\",IF(OR('TSA Input'!J2221=\"Yes\",'TSA Input'!J2221=\"Contingent\"),'TSA Input'!D2221,\"\"))","v":""},{"$f":"IF('TSA Input'!J2221=\"\",\"\",IF(OR('TSA Input'!J2221=\"Yes\",'TSA Input'!J2221=\"Contingent\"),'TSA Input'!G2221,\"\"))","v":""},{"$f":"IF('TSA Input'!J2221=\"\",\"\",IF(OR('TSA Input'!J2221=\"Yes\",'TSA Input'!J2221=\"Contingent\"),'TSA Input'!F2221,\"\"))","v":""},"",{"$f":"IF('TSA Input'!J2221=\"\",\"\",IF(OR('TSA Input'!J2221=\"Yes\",'TSA Input'!J2221=\"Contingent\"),'TSA Input'!D2221,\"\"))","v":""},{"$f":"IF('TSA Input'!J2221=\"\",\"\",IF(OR('TSA Input'!J2221=\"Yes\",'TSA Input'!J2221=\"Contingent\"),'TSA Input'!G2221,\"\"))","v":""},{"$f":"IF('TSA Input'!J2221=\"\",\"\",IF(OR('TSA Input'!J2221=\"Yes\",'TSA Input'!J2221=\"Contingent\"),'TSA Input'!F2221,\"\"))","v":""},"","Required","Required"]
["",null,{"$f":"IF('TSA Input'!J2222=\"\",\"\",IF(OR('TSA Input'!J2222=\"Yes\",'TSA Input'!J2222=\"Contingent\"),'TSA Input'!B2222,\"Ineligible\"))","v":""},{"$f":"IF('TSA Input'!J2222=\"\",\"\",IF(OR('TSA Input'!J2222=\"Yes\",'TSA Input'!J2222=\"Contingent\"),'TSA Input'!I2222,\"\"))","v":""},{"$f":"IF('TSA Input'!J2222=\"\",\"\",IF(OR('TSA Input'!J2222=\"Yes\",'TSA Input'!J2222=\"Contingent\"),'TSA Input'!C2222,\"\"))","v":""},{"$f":"IF('TSA Input'!J2222=\"\",\"\",IF(OR('TSA Input'!J2222=\"Yes\",'TSA Input'!J2222=\"Contingent\"),'TSA Input'!D2222,\"\"))","v":""},{"$f":"IF('TSA Input'!J2222=\"\",\"\",IF(OR('TSA Input'!J2222=\"Yes\",'TSA Input'!J2222=\"Contingent\"),'TSA Input'!G2222,\"\"))","v":""},{"$f":"IF('TSA Input'!J2222=\"\",\"\",IF(OR('TSA Input'!J2222=\"Yes\",'TSA Input'!J2222=\"Contingent\"),'TSA Input'!F2222,\"\"))","v":""},"",{"$f":"IF('TSA Input'!J2222=\"\",\"\",IF(OR('TSA Input'!J2222=\"Yes\",'TSA Input'!J2222=\"Contingent\"),'TSA Input'!D2222,\"\"))","v":""},{"$f":"IF('TSA Input'!J2222=\"\",\"\",IF(OR('TSA Input'!J2222=\"Yes\",'TSA Input'!J2222=\"Contingent\"),'TSA Input'!G2222,\"\"))","v":""},{"$f":"IF('TSA Input'!J2222=\"\",\"\",IF(OR('TSA Input'!J2222=\"Yes\",'TSA Input'!J2222=\"Contingent\"),'TSA Input'!F2222,\"\"))","v":""},"","Required","Required"]
["",null,{"$f":"IF('TSA Input'!J2223=\"\",\"\",IF(OR('TSA Input'!J2223=\"Yes\",'TSA Input'!J2223=\"Contingent\"),'TSA Input'!B2223,\"Ineligible\"))","v":""},{"$f":"IF('TSA Input'!J2223=\"\",\"\",IF(OR('TSA Input'!J2223=\"Yes\",'TSA Input'!J2223=\"Contingent\"),'TSA Input'!I2223,\"\"))","v":""},{"$f":"IF('TSA Input'!J2223=\"\",\"\",IF(OR('TSA Input'!J2223=\"Yes\",'TSA Input'!J2223=\"Contingent\"),'TSA Input'!C2223,\"\"))","v":""},{"$f":"IF('TSA Input'!J2223=\"\",\"\",IF(OR('TSA Input'!J2223=\"Yes\",'TSA Input'!J2223=\"Contingent\"),'TSA Input'!D2223,\"\"))","v":""},{"$f":"IF('TSA Input'!J2223=\"\",\"\",IF(OR('TSA Input'!J2223=\"Yes\",'TSA Input'!J2223=\"Contingent\"),'TSA Input'!G2223,\"\"))","v":""},{"$f":"IF('TSA Input'!J2223=\"\",\"\",IF(OR('TSA Input'!J2223=\"Yes\",'TSA Input'!J2223=\"Contingent\"),'TSA Input'!F2223,\"\"))","v":""},"",{"$f":"IF('TSA Input'!J2223=\"\",\"\",IF(OR('TSA Input'!J2223=\"Yes\",'TSA Input'!J2223=\"Contingent\"),'TSA Input'!D2223,\"\"))","v":""},{"$f":"IF('TSA Input'!J2223=\"\",\"\",IF(OR('TSA Input'!J2223=\"Yes\",'TSA Input'!J2223=\"Contingent\"),'TSA Input'!G2223,\"\"))","v":""},{"$f":"IF('TSA Input'!J2223=\"\",\"\",IF(OR('TSA Input'!J2223=\"Yes\",'TSA Input'!J2223=\"Contingent\"),'TSA Input'!F2223,\"\"))","v":""},"","Required","Required"]
["",null,{"$f":"IF('TSA Input'!J2224=\"\",\"\",IF(OR('TSA Input'!J2224=\"Yes\",'TSA Input'!J2224=\"Contingent\"),'TSA Input'!B2224,\"Ineligible\"))","v":""},{"$f":"IF('TSA Input'!J2224=\"\",\"\",IF(OR('TSA Input'!J2224=\"Yes\",'TSA Input'!J2224=\"Contingent\"),'TSA Input'!I2224,\"\"))","v":""},{"$f":"IF('TSA Input'!J2224=\"\",\"\",IF(OR('TSA Input'!J2224=\"Yes\",'TSA Input'!J2224=\"Contingent\"),'TSA Input'!C2224,\"\"))","v":""},{"$f":"IF('TSA Input'!J2224=\"\",\"\",IF(OR('TSA Input'!J2224=\"Yes\",'TSA Input'!J2224=\"Contingent\"),'TSA Input'!D2224,\"\"))","v":""},{"$f":"IF('TSA Input'!J2224=\"\",\"\",IF(OR('TSA Input'!J2224=\"Yes\",'TSA Input'!J2224=\"Contingent\"),'TSA Input'!G2224,\"\"))","v":""},{"$f":"IF('TSA Input'!J2224=\"\",\"\",IF(OR('TSA Input'!J2224=\"Yes\",'TSA Input'!J2224=\"Contingent\"),'TSA Input'!F2224,\"\"))","v":""},"",{"$f":"IF('TSA Input'!J2224=\"\",\"\",IF(OR('TSA Input'!J2224=\"Yes\",'TSA Input'!J2224=\"Contingent\"),'TSA Input'!D2224,\"\"))","v":""},{"$f":"IF('TSA Input'!J2224=\"\",\"\",IF(OR('TSA Input'!J2224=\"Yes\",'TSA Input'!J2224=\"Contingent\"),'TSA Input'!G2224,\"\"))","v":""},{"$f":"IF('TSA Input'!J2224=\"\",\"\",IF(OR('TSA Input'!J2224=\"Yes\",'TSA Input'!J2224=\"Contingent\"),'TSA Input'!F2224,\"\"))","v":""},"","Required","Required"]
["",null,{"$f":"IF('TSA Input'!J2225=\"\",\"\",IF(OR('TSA Input'!J2225=\"Yes\",'TSA Input'!J2225=\"Contingent\"),'TSA Input'!B2225,\"Ineligible\"))","v":""},{"$f":"IF('TSA Input'!J2225=\"\",\"\",IF(OR('TSA Input'!J2225=\"Yes\",'TSA Input'!J2225=\"Contingent\"),'TSA Input'!I2225,\"\"))","v":""},{"$f":"IF('TSA Input'!J2225=\"\",\"\",IF(OR('TSA Input'!J2225=\"Yes\",'TSA Input'!J2225=\"Contingent\"),'TSA Input'!C2225,\"\"))","v":""},{"$f":"IF('TSA Input'!J2225=\"\",\"\",IF(OR('TSA Input'!J2225=\"Yes\",'TSA Input'!J2225=\"Contingent\"),'TSA Input'!D2225,\"\"))","v":""},{"$f":"IF('TSA Input'!J2225=\"\",\"\",IF(OR('TSA Input'!J2225=\"Yes\",'TSA Input'!J2225=\"Contingent\"),'TSA Input'!G2225,\"\"))","v":""},{"$f":"IF('TSA Input'!J2225=\"\",\"\",IF(OR('TSA Input'!J2225=\"Yes\",'TSA Input'!J2225=\"Contingent\"),'TSA Input'!F2225,\"\"))","v":""},"",{"$f":"IF('TSA Input'!J2225=\"\",\"\",IF(OR('TSA Input'!J2225=\"Yes\",'TSA Input'!J2225=\"Contingent\"),'TSA Input'!D2225,\"\"))","v":""},{"$f":"IF('TSA Input'!J2225=\"\",\"\",IF(OR('TSA Input'!J2225=\"Yes\",'TSA Input'!J2225=\"Contingent\"),'TSA Input'!G2225,\"\"))","v":""},{"$f":"IF('TSA Input'!J2225=\"\",\"\",IF(OR('TSA Input'!J2225=\"Yes\",'TSA Input'!J2225=\"Contingent\"),'TSA Input'!F2225,\"\"))","v":""},"","Required","Required"]
["",null,{"$f":"IF('TSA Input'!J2226=\"\",\"\",IF(OR('TSA Input'!J2226=\"Yes\",'TSA Input'!J2226=\"Contingent\"),'TSA Input'!B2226,\"Ineligible\"))","v":""},{"$f":"IF('TSA Input'!J2226=\"\",\"\",IF(OR('TSA Input'!J2226=\"Yes\",'TSA Input'!J2226=\"Contingent\"),'TSA Input'!I2226,\"\"))","v":""},{"$f":"IF('TSA Input'!J2226=\"\",\"\",IF(OR('TSA Input'!J2226=\"Yes\",'TSA Input'!J2226=\"Contingent\"),'TSA Input'!C2226,\"\"))","v":""},{"$f":"IF('TSA Input'!J2226=\"\",\"\",IF(OR('TSA Input'!J2226=\"Yes\",'TSA Input'!J2226=\"Contingent\"),'TSA Input'!D2226,\"\"))","v":""},{"$f":"IF('TSA Input'!J2226=\"\",\"\",IF(OR('TSA Input'!J2226=\"Yes\",'TSA Input'!J2226=\"Contingent\"),'TSA Input'!G2226,\"\"))","v":""},{"$f":"IF('TSA Input'!J2226=\"\",\"\",IF(OR('TSA Input'!J2226=\"Yes\",'TSA Input'!J2226=\"Contingent\"),'TSA Input'!F2226,\"\"))","v":""},"",{"$f":"IF('TSA Input'!J2226=\"\",\"\",IF(OR('TSA Input'!J2226=\"Yes\",'TSA Input'!J2226=\"Contingent\"),'TSA Input'!D2226,\"\"))","v":""},{"$f":"IF('TSA Input'!J2226=\"\",\"\",IF(OR('TSA Input'!J2226=\"Yes\",'TSA Input'!J2226=\"Contingent\"),'TSA Input'!G2226,\"\"))","v":""},{"$f":"IF('TSA Input'!J2226=\"\",\"\",IF(OR('TSA Input'!J2226=\"Yes\",'TSA Input'!J2226=\"Contingent\"),'TSA Input'!F2226,\"\"))","v":""},"","Required","Required"]
["",null,{"$f":"IF('TSA Input'!J2227=\"\",\"\",IF(OR('TSA Input'!J2227=\"Yes\",'TSA Input'!J2227=\"Contingent\"),'TSA Input'!B2227,\"Ineligible\"))","v":""},{"$f":"IF('TSA Input'!J2227=\"\",\"\",IF(OR('TSA Input'!J2227=\"Yes\",'TSA Input'!J2227=\"Contingent\"),'TSA Input'!I2227,\"\"))","v":""},{"$f":"IF('TSA Input'!J2227=\"\",\"\",IF(OR('TSA Input'!J2227=\"Yes\",'TSA Input'!J2227=\"Contingent\"),'TSA Input'!C2227,\"\"))","v":""},{"$f":"IF('TSA Input'!J2227=\"\",\"\",IF(OR('TSA Input'!J2227=\"Yes\",'TSA Input'!J2227=\"Contingent\"),'TSA Input'!D2227,\"\"))","v":""},{"$f":"IF('TSA Input'!J2227=\"\",\"\",IF(OR('TSA Input'!J2227=\"Yes\",'TSA Input'!J2227=\"Contingent\"),'TSA Input'!G2227,\"\"))","v":""},{"$f":"IF('TSA Input'!J2227=\"\",\"\",IF(OR('TSA Input'!J2227=\"Yes\",'TSA Input'!J2227=\"Contingent\"),'TSA Input'!F2227,\"\"))","v":""},"",{"$f":"IF('TSA Input'!J2227=\"\",\"\",IF(OR('TSA Input'!J2227=\"Yes\",'TSA Input'!J2227=\"Contingent\"),'TSA Input'!D2227,\"\"))","v":""},{"$f":"IF('TSA Input'!J2227=\"\",\"\",IF(OR('TSA Input'!J2227=\"Yes\",'TSA Input'!J2227=\"Contingent\"),'TSA Input'!G2227,\"\"))","v":""},{"$f":"IF('TSA Input'!J2227=\"\",\"\",IF(OR('TSA Input'!J2227=\"Yes\",'TSA Input'!J2227=\"Contingent\"),'TSA Input'!F2227,\"\"))","v":""},"","Required","Required"]
["",null,{"$f":"IF('TSA Input'!J2228=\"\",\"\",IF(OR('TSA Input'!J2228=\"Yes\",'TSA Input'!J2228=\"Contingent\"),'TSA Input'!B2228,\"Ineligible\"))","v":""},{"$f":"IF('TSA Input'!J2228=\"\",\"\",IF(OR('TSA Input'!J2228=\"Yes\",'TSA Input'!J2228=\"Contingent\"),'TSA Input'!I2228,\"\"))","v":""},{"$f":"IF('TSA Input'!J2228=\"\",\"\",IF(OR('TSA Input'!J2228=\"Yes\",'TSA Input'!J2228=\"Contingent\"),'TSA Input'!C2228,\"\"))","v":""},{"$f":"IF('TSA Input'!J2228=\"\",\"\",IF(OR('TSA Input'!J2228=\"Yes\",'TSA Input'!J2228=\"Contingent\"),'TSA Input'!D2228,\"\"))","v":""},{"$f":"IF('TSA Input'!J2228=\"\",\"\",IF(OR('TSA Input'!J2228=\"Yes\",'TSA Input'!J2228=\"Contingent\"),'TSA Input'!G2228,\"\"))","v":""},{"$f":"IF('TSA Input'!J2228=\"\",\"\",IF(OR('TSA Input'!J2228=\"Yes\",'TSA Input'!J2228=\"Contingent\"),'TSA Input'!F2228,\"\"))","v":""},"",{"$f":"IF('TSA Input'!J2228=\"\",\"\",IF(OR('TSA Input'!J2228=\"Yes\",'TSA Input'!J2228=\"Contingent\"),'TSA Input'!D2228,\"\"))","v":""},{"$f":"IF('TSA Input'!J2228=\"\",\"\",IF(OR('TSA Input'!J2228=\"Yes\",'TSA Input'!J2228=\"Contingent\"),'TSA Input'!G2228,\"\"))","v":""},{"$f":"IF('TSA Input'!J2228=\"\",\"\",IF(OR('TSA Input'!J2228=\"Yes\",'TSA Input'!J2228=\"Contingent\"),'TSA Input'!F2228,\"\"))","v":""},"","Required","Required"]
["",null,{"$f":"IF('TSA Input'!J2229=\"\",\"\",IF(OR('TSA Input'!J2229=\"Yes\",'TSA Input'!J2229=\"Contingent\"),'TSA Input'!B2229,\"Ineligible\"))","v":""},{"$f":"IF('TSA Input'!J2229=\"\",\"\",IF(OR('TSA Input'!J2229=\"Yes\",'TSA Input'!J2229=\"Contingent\"),'TSA Input'!I2229,\"\"))","v":""},{"$f":"IF('TSA Input'!J2229=\"\",\"\",IF(OR('TSA Input'!J2229=\"Yes\",'TSA Input'!J2229=\"Contingent\"),'TSA Input'!C2229,\"\"))","v":""},{"$f":"IF('TSA Input'!J2229=\"\",\"\",IF(OR('TSA Input'!J2229=\"Yes\",'TSA Input'!J2229=\"Contingent\"),'TSA Input'!D2229,\"\"))","v":""},{"$f":"IF('TSA Input'!J2229=\"\",\"\",IF(OR('TSA Input'!J2229=\"Yes\",'TSA Input'!J2229=\"Contingent\"),'TSA Input'!G2229,\"\"))","v":""},{"$f":"IF('TSA Input'!J2229=\"\",\"\",IF(OR('TSA Input'!J2229=\"Yes\",'TSA Input'!J2229=\"Contingent\"),'TSA Input'!F2229,\"\"))","v":""},"",{"$f":"IF('TSA Input'!J2229=\"\",\"\",IF(OR('TSA Input'!J2229=\"Yes\",'TSA Input'!J2229=\"Contingent\"),'TSA Input'!D2229,\"\"))","v":""},{"$f":"IF('TSA Input'!J2229=\"\",\"\",IF(OR('TSA Input'!J2229=\"Yes\",'TSA Input'!J2229=\"Contingent\"),'TSA Input'!G2229,\"\"))","v":""},{"$f":"IF('TSA Input'!J2229=\"\",\"\",IF(OR('TSA Input'!J2229=\"Yes\",'TSA Input'!J2229=\"Contingent\"),'TSA Input'!F2229,\"\"))","v":""},"","Required","Required"]
["",null,{"$f":"IF('TSA Input'!J2230=\"\",\"\",IF(OR('TSA Input'!J2230=\"Yes\",'TSA Input'!J2230=\"Contingent\"),'TSA Input'!B2230,\"Ineligible\"))","v":""},{"$f":"IF('TSA Input'!J2230=\"\",\"\",IF(OR('TSA Input'!J2230=\"Yes\",'TSA Input'!J2230=\"Contingent\"),'TSA Input'!I2230,\"\"))","v":""},{"$f":"IF('TSA Input'!J2230=\"\",\"\",IF(OR('TSA Input'!J2230=\"Yes\",'TSA Input'!J2230=\"Contingent\"),'TSA Input'!C2230,\"\"))","v":""},{"$f":"IF('TSA Input'!J2230=\"\",\"\",IF(OR('TSA Input'!J2230=\"Yes\",'TSA Input'!J2230=\"Contingent\"),'TSA Input'!D2230,\"\"))","v":""},{"$f":"IF('TSA Input'!J2230=\"\",\"\",IF(OR('TSA Input'!J2230=\"Yes\",'TSA Input'!J2230=\"Contingent\"),'TSA Input'!G2230,\"\"))","v":""},{"$f":"IF('TSA Input'!J2230=\"\",\"\",IF(OR('TSA Input'!J2230=\"Yes\",'TSA Input'!J2230=\"Contingent\"),'TSA Input'!F2230,\"\"))","v":""},"",{"$f":"IF('TSA Input'!J2230=\"\",\"\",IF(OR('TSA Input'!J2230=\"Yes\",'TSA Input'!J2230=\"Contingent\"),'TSA Input'!D2230,\"\"))","v":""},{"$f":"IF('TSA Input'!J2230=\"\",\"\",IF(OR('TSA Input'!J2230=\"Yes\",'TSA Input'!J2230=\"Contingent\"),'TSA Input'!G2230,\"\"))","v":""},{"$f":"IF('TSA Input'!J2230=\"\",\"\",IF(OR('TSA Input'!J2230=\"Yes\",'TSA Input'!J2230=\"Contingent\"),'TSA Input'!F2230,\"\"))","v":""},"","Required","Required"]
["",null,{"$f":"IF('TSA Input'!J2231=\"\",\"\",IF(OR('TSA Input'!J2231=\"Yes\",'TSA Input'!J2231=\"Contingent\"),'TSA Input'!B2231,\"Ineligible\"))","v":""},{"$f":"IF('TSA Input'!J2231=\"\",\"\",IF(OR('TSA Input'!J2231=\"Yes\",'TSA Input'!J2231=\"Contingent\"),'TSA Input'!I2231,\"\"))","v":""},{"$f":"IF('TSA Input'!J2231=\"\",\"\",IF(OR('TSA Input'!J2231=\"Yes\",'TSA Input'!J2231=\"Contingent\"),'TSA Input'!C2231,\"\"))","v":""},{"$f":"IF('TSA Input'!J2231=\"\",\"\",IF(OR('TSA Input'!J2231=\"Yes\",'TSA Input'!J2231=\"Contingent\"),'TSA Input'!D2231,\"\"))","v":""},{"$f":"IF('TSA Input'!J2231=\"\",\"\",IF(OR('TSA Input'!J2231=\"Yes\",'TSA Input'!J2231=\"Contingent\"),'TSA Input'!G2231,\"\"))","v":""},{"$f":"IF('TSA Input'!J2231=\"\",\"\",IF(OR('TSA Input'!J2231=\"Yes\",'TSA Input'!J2231=\"Contingent\"),'TSA Input'!F2231,\"\"))","v":""},"",{"$f":"IF('TSA Input'!J2231=\"\",\"\",IF(OR('TSA Input'!J2231=\"Yes\",'TSA Input'!J2231=\"Contingent\"),'TSA Input'!D2231,\"\"))","v":""},{"$f":"IF('TSA Input'!J2231=\"\",\"\",IF(OR('TSA Input'!J2231=\"Yes\",'TSA Input'!J2231=\"Contingent\"),'TSA Input'!G2231,\"\"))","v":""},{"$f":"IF('TSA Input'!J2231=\"\",\"\",IF(OR('TSA Input'!J2231=\"Yes\",'TSA Input'!J2231=\"Contingent\"),'TSA Input'!F2231,\"\"))","v":""},"","Required","Required"]
["",null,{"$f":"IF('TSA Input'!J2232=\"\",\"\",IF(OR('TSA Input'!J2232=\"Yes\",'TSA Input'!J2232=\"Contingent\"),'TSA Input'!B2232,\"Ineligible\"))","v":""},{"$f":"IF('TSA Input'!J2232=\"\",\"\",IF(OR('TSA Input'!J2232=\"Yes\",'TSA Input'!J2232=\"Contingent\"),'TSA Input'!I2232,\"\"))","v":""},{"$f":"IF('TSA Input'!J2232=\"\",\"\",IF(OR('TSA Input'!J2232=\"Yes\",'TSA Input'!J2232=\"Contingent\"),'TSA Input'!C2232,\"\"))","v":""},{"$f":"IF('TSA Input'!J2232=\"\",\"\",IF(OR('TSA Input'!J2232=\"Yes\",'TSA Input'!J2232=\"Contingent\"),'TSA Input'!D2232,\"\"))","v":""},{"$f":"IF('TSA Input'!J2232=\"\",\"\",IF(OR('TSA Input'!J2232=\"Yes\",'TSA Input'!J2232=\"Contingent\"),'TSA Input'!G2232,\"\"))","v":""},{"$f":"IF('TSA Input'!J2232=\"\",\"\",IF(OR('TSA Input'!J2232=\"Yes\",'TSA Input'!J2232=\"Contingent\"),'TSA Input'!F2232,\"\"))","v":""},"",{"$f":"IF('TSA Input'!J2232=\"\",\"\",IF(OR('TSA Input'!J2232=\"Yes\",'TSA Input'!J2232=\"Contingent\"),'TSA Input'!D2232,\"\"))","v":""},{"$f":"IF('TSA Input'!J2232=\"\",\"\",IF(OR('TSA Input'!J2232=\"Yes\",'TSA Input'!J2232=\"Contingent\"),'TSA Input'!G2232,\"\"))","v":""},{"$f":"IF('TSA Input'!J2232=\"\",\"\",IF(OR('TSA Input'!J2232=\"Yes\",'TSA Input'!J2232=\"Contingent\"),'TSA Input'!F2232,\"\"))","v":""},"","Required","Required"]
["",null,{"$f":"IF('TSA Input'!J2233=\"\",\"\",IF(OR('TSA Input'!J2233=\"Yes\",'TSA Input'!J2233=\"Contingent\"),'TSA Input'!B2233,\"Ineligible\"))","v":""},{"$f":"IF('TSA Input'!J2233=\"\",\"\",IF(OR('TSA Input'!J2233=\"Yes\",'TSA Input'!J2233=\"Contingent\"),'TSA Input'!I2233,\"\"))","v":""},{"$f":"IF('TSA Input'!J2233=\"\",\"\",IF(OR('TSA Input'!J2233=\"Yes\",'TSA Input'!J2233=\"Contingent\"),'TSA Input'!C2233,\"\"))","v":""},{"$f":"IF('TSA Input'!J2233=\"\",\"\",IF(OR('TSA Input'!J2233=\"Yes\",'TSA Input'!J2233=\"Contingent\"),'TSA Input'!D2233,\"\"))","v":""},{"$f":"IF('TSA Input'!J2233=\"\",\"\",IF(OR('TSA Input'!J2233=\"Yes\",'TSA Input'!J2233=\"Contingent\"),'TSA Input'!G2233,\"\"))","v":""},{"$f":"IF('TSA Input'!J2233=\"\",\"\",IF(OR('TSA Input'!J2233=\"Yes\",'TSA Input'!J2233=\"Contingent\"),'TSA Input'!F2233,\"\"))","v":""},"",{"$f":"IF('TSA Input'!J2233=\"\",\"\",IF(OR('TSA Input'!J2233=\"Yes\",'TSA Input'!J2233=\"Contingent\"),'TSA Input'!D2233,\"\"))","v":""},{"$f":"IF('TSA Input'!J2233=\"\",\"\",IF(OR('TSA Input'!J2233=\"Yes\",'TSA Input'!J2233=\"Contingent\"),'TSA Input'!G2233,\"\"))","v":""},{"$f":"IF('TSA Input'!J2233=\"\",\"\",IF(OR('TSA Input'!J2233=\"Yes\",'TSA Input'!J2233=\"Contingent\"),'TSA Input'!F2233,\"\"))","v":""},"","Required","Required"]
["",null,{"$f":"IF('TSA Input'!J2234=\"\",\"\",IF(OR('TSA Input'!J2234=\"Yes\",'TSA Input'!J2234=\"Contingent\"),'TSA Input'!B2234,\"Ineligible\"))","v":""},{"$f":"IF('TSA Input'!J2234=\"\",\"\",IF(OR('TSA Input'!J2234=\"Yes\",'TSA Input'!J2234=\"Contingent\"),'TSA Input'!I2234,\"\"))","v":""},{"$f":"IF('TSA Input'!J2234=\"\",\"\",IF(OR('TSA Input'!J2234=\"Yes\",'TSA Input'!J2234=\"Contingent\"),'TSA Input'!C2234,\"\"))","v":""},{"$f":"IF('TSA Input'!J2234=\"\",\"\",IF(OR('TSA Input'!J2234=\"Yes\",'TSA Input'!J2234=\"Contingent\"),'TSA Input'!D2234,\"\"))","v":""},{"$f":"IF('TSA Input'!J2234=\"\",\"\",IF(OR('TSA Input'!J2234=\"Yes\",'TSA Input'!J2234=\"Contingent\"),'TSA Input'!G2234,\"\"))","v":""},{"$f":"IF('TSA Input'!J2234=\"\",\"\",IF(OR('TSA Input'!J2234=\"Yes\",'TSA Input'!J2234=\"Contingent\"),'TSA Input'!F2234,\"\"))","v":""},"",{"$f":"IF('TSA Input'!J2234=\"\",\"\",IF(OR('TSA Input'!J2234=\"Yes\",'TSA Input'!J2234=\"Contingent\"),'TSA Input'!D2234,\"\"))","v":""},{"$f":"IF('TSA Input'!J2234=\"\",\"\",IF(OR('TSA Input'!J2234=\"Yes\",'TSA Input'!J2234=\"Contingent\"),'TSA Input'!G2234,\"\"))","v":""},{"$f":"IF('TSA Input'!J2234=\"\",\"\",IF(OR('TSA Input'!J2234=\"Yes\",'TSA Input'!J2234=\"Contingent\"),'TSA Input'!F2234,\"\"))","v":""},"","Required","Required"]
["",null,{"$f":"IF('TSA Input'!J2235=\"\",\"\",IF(OR('TSA Input'!J2235=\"Yes\",'TSA Input'!J2235=\"Contingent\"),'TSA Input'!B2235,\"Ineligible\"))","v":""},{"$f":"IF('TSA Input'!J2235=\"\",\"\",IF(OR('TSA Input'!J2235=\"Yes\",'TSA Input'!J2235=\"Contingent\"),'TSA Input'!I2235,\"\"))","v":""},{"$f":"IF('TSA Input'!J2235=\"\",\"\",IF(OR('TSA Input'!J2235=\"Yes\",'TSA Input'!J2235=\"Contingent\"),'TSA Input'!C2235,\"\"))","v":""},{"$f":"IF('TSA Input'!J2235=\"\",\"\",IF(OR('TSA Input'!J2235=\"Yes\",'TSA Input'!J2235=\"Contingent\"),'TSA Input'!D2235,\"\"))","v":""},{"$f":"IF('TSA Input'!J2235=\"\",\"\",IF(OR('TSA Input'!J2235=\"Yes\",'TSA Input'!J2235=\"Contingent\"),'TSA Input'!G2235,\"\"))","v":""},{"$f":"IF('TSA Input'!J2235=\"\",\"\",IF(OR('TSA Input'!J2235=\"Yes\",'TSA Input'!J2235=\"Contingent\"),'TSA Input'!F2235,\"\"))","v":""},"",{"$f":"IF('TSA Input'!J2235=\"\",\"\",IF(OR('TSA Input'!J2235=\"Yes\",'TSA Input'!J2235=\"Contingent\"),'TSA Input'!D2235,\"\"))","v":""},{"$f":"IF('TSA Input'!J2235=\"\",\"\",IF(OR('TSA Input'!J2235=\"Yes\",'TSA Input'!J2235=\"Contingent\"),'TSA Input'!G2235,\"\"))","v":""},{"$f":"IF('TSA Input'!J2235=\"\",\"\",IF(OR('TSA Input'!J2235=\"Yes\",'TSA Input'!J2235=\"Contingent\"),'TSA Input'!F2235,\"\"))","v":""},"","Required","Required"]
["",null,{"$f":"IF('TSA Input'!J2236=\"\",\"\",IF(OR('TSA Input'!J2236=\"Yes\",'TSA Input'!J2236=\"Contingent\"),'TSA Input'!B2236,\"Ineligible\"))","v":""},{"$f":"IF('TSA Input'!J2236=\"\",\"\",IF(OR('TSA Input'!J2236=\"Yes\",'TSA Input'!J2236=\"Contingent\"),'TSA Input'!I2236,\"\"))","v":""},{"$f":"IF('TSA Input'!J2236=\"\",\"\",IF(OR('TSA Input'!J2236=\"Yes\",'TSA Input'!J2236=\"Contingent\"),'TSA Input'!C2236,\"\"))","v":""},{"$f":"IF('TSA Input'!J2236=\"\",\"\",IF(OR('TSA Input'!J2236=\"Yes\",'TSA Input'!J2236=\"Contingent\"),'TSA Input'!D2236,\"\"))","v":""},{"$f":"IF('TSA Input'!J2236=\"\",\"\",IF(OR('TSA Input'!J2236=\"Yes\",'TSA Input'!J2236=\"Contingent\"),'TSA Input'!G2236,\"\"))","v":""},{"$f":"IF('TSA Input'!J2236=\"\",\"\",IF(OR('TSA Input'!J2236=\"Yes\",'TSA Input'!J2236=\"Contingent\"),'TSA Input'!F2236,\"\"))","v":""},"",{"$f":"IF('TSA Input'!J2236=\"\",\"\",IF(OR('TSA Input'!J2236=\"Yes\",'TSA Input'!J2236=\"Contingent\"),'TSA Input'!D2236,\"\"))","v":""},{"$f":"IF('TSA Input'!J2236=\"\",\"\",IF(OR('TSA Input'!J2236=\"Yes\",'TSA Input'!J2236=\"Contingent\"),'TSA Input'!G2236,\"\"))","v":""},{"$f":"IF('TSA Input'!J2236=\"\",\"\",IF(OR('TSA Input'!J2236=\"Yes\",'TSA Input'!J2236=\"Contingent\"),'TSA Input'!F2236,\"\"))","v":""},"","Required","Required"]
["",null,{"$f":"IF('TSA Input'!J2237=\"\",\"\",IF(OR('TSA Input'!J2237=\"Yes\",'TSA Input'!J2237=\"Contingent\"),'TSA Input'!B2237,\"Ineligible\"))","v":""},{"$f":"IF('TSA Input'!J2237=\"\",\"\",IF(OR('TSA Input'!J2237=\"Yes\",'TSA Input'!J2237=\"Contingent\"),'TSA Input'!I2237,\"\"))","v":""},{"$f":"IF('TSA Input'!J2237=\"\",\"\",IF(OR('TSA Input'!J2237=\"Yes\",'TSA Input'!J2237=\"Contingent\"),'TSA Input'!C2237,\"\"))","v":""},{"$f":"IF('TSA Input'!J2237=\"\",\"\",IF(OR('TSA Input'!J2237=\"Yes\",'TSA Input'!J2237=\"Contingent\"),'TSA Input'!D2237,\"\"))","v":""},{"$f":"IF('TSA Input'!J2237=\"\",\"\",IF(OR('TSA Input'!J2237=\"Yes\",'TSA Input'!J2237=\"Contingent\"),'TSA Input'!G2237,\"\"))","v":""},{"$f":"IF('TSA Input'!J2237=\"\",\"\",IF(OR('TSA Input'!J2237=\"Yes\",'TSA Input'!J2237=\"Contingent\"),'TSA Input'!F2237,\"\"))","v":""},"",{"$f":"IF('TSA Input'!J2237=\"\",\"\",IF(OR('TSA Input'!J2237=\"Yes\",'TSA Input'!J2237=\"Contingent\"),'TSA Input'!D2237,\"\"))","v":""},{"$f":"IF('TSA Input'!J2237=\"\",\"\",IF(OR('TSA Input'!J2237=\"Yes\",'TSA Input'!J2237=\"Contingent\"),'TSA Input'!G2237,\"\"))","v":""},{"$f":"IF('TSA Input'!J2237=\"\",\"\",IF(OR('TSA Input'!J2237=\"Yes\",'TSA Input'!J2237=\"Contingent\"),'TSA Input'!F2237,\"\"))","v":""},"","Required","Required"]
["",null,{"$f":"IF('TSA Input'!J2238=\"\",\"\",IF(OR('TSA Input'!J2238=\"Yes\",'TSA Input'!J2238=\"Contingent\"),'TSA Input'!B2238,\"Ineligible\"))","v":""},{"$f":"IF('TSA Input'!J2238=\"\",\"\",IF(OR('TSA Input'!J2238=\"Yes\",'TSA Input'!J2238=\"Contingent\"),'TSA Input'!I2238,\"\"))","v":""},{"$f":"IF('TSA Input'!J2238=\"\",\"\",IF(OR('TSA Input'!J2238=\"Yes\",'TSA Input'!J2238=\"Contingent\"),'TSA Input'!C2238,\"\"))","v":""},{"$f":"IF('TSA Input'!J2238=\"\",\"\",IF(OR('TSA Input'!J2238=\"Yes\",'TSA Input'!J2238=\"Contingent\"),'TSA Input'!D2238,\"\"))","v":""},{"$f":"IF('TSA Input'!J2238=\"\",\"\",IF(OR('TSA Input'!J2238=\"Yes\",'TSA Input'!J2238=\"Contingent\"),'TSA Input'!G2238,\"\"))","v":""},{"$f":"IF('TSA Input'!J2238=\"\",\"\",IF(OR('TSA Input'!J2238=\"Yes\",'TSA Input'!J2238=\"Contingent\"),'TSA Input'!F2238,\"\"))","v":""},"",{"$f":"IF('TSA Input'!J2238=\"\",\"\",IF(OR('TSA Input'!J2238=\"Yes\",'TSA Input'!J2238=\"Contingent\"),'TSA Input'!D2238,\"\"))","v":""},{"$f":"IF('TSA Input'!J2238=\"\",\"\",IF(OR('TSA Input'!J2238=\"Yes\",'TSA Input'!J2238=\"Contingent\"),'TSA Input'!G2238,\"\"))","v":""},{"$f":"IF('TSA Input'!J2238=\"\",\"\",IF(OR('TSA Input'!J2238=\"Yes\",'TSA Input'!J2238=\"Contingent\"),'TSA Input'!F2238,\"\"))","v":""},"","Required","Required"]
["",null,{"$f":"IF('TSA Input'!J2239=\"\",\"\",IF(OR('TSA Input'!J2239=\"Yes\",'TSA Input'!J2239=\"Contingent\"),'TSA Input'!B2239,\"Ineligible\"))","v":""},{"$f":"IF('TSA Input'!J2239=\"\",\"\",IF(OR('TSA Input'!J2239=\"Yes\",'TSA Input'!J2239=\"Contingent\"),'TSA Input'!I2239,\"\"))","v":""},{"$f":"IF('TSA Input'!J2239=\"\",\"\",IF(OR('TSA Input'!J2239=\"Yes\",'TSA Input'!J2239=\"Contingent\"),'TSA Input'!C2239,\"\"))","v":""},{"$f":"IF('TSA Input'!J2239=\"\",\"\",IF(OR('TSA Input'!J2239=\"Yes\",'TSA Input'!J2239=\"Contingent\"),'TSA Input'!D2239,\"\"))","v":""},{"$f":"IF('TSA Input'!J2239=\"\",\"\",IF(OR('TSA Input'!J2239=\"Yes\",'TSA Input'!J2239=\"Contingent\"),'TSA Input'!G2239,\"\"))","v":""},{"$f":"IF('TSA Input'!J2239=\"\",\"\",IF(OR('TSA Input'!J2239=\"Yes\",'TSA Input'!J2239=\"Contingent\"),'TSA Input'!F2239,\"\"))","v":""},"",{"$f":"IF('TSA Input'!J2239=\"\",\"\",IF(OR('TSA Input'!J2239=\"Yes\",'TSA Input'!J2239=\"Contingent\"),'TSA Input'!D2239,\"\"))","v":""},{"$f":"IF('TSA Input'!J2239=\"\",\"\",IF(OR('TSA Input'!J2239=\"Yes\",'TSA Input'!J2239=\"Contingent\"),'TSA Input'!G2239,\"\"))","v":""},{"$f":"IF('TSA Input'!J2239=\"\",\"\",IF(OR('TSA Input'!J2239=\"Yes\",'TSA Input'!J2239=\"Contingent\"),'TSA Input'!F2239,\"\"))","v":""},"","Required","Required"]
["",null,{"$f":"IF('TSA Input'!J2240=\"\",\"\",IF(OR('TSA Input'!J2240=\"Yes\",'TSA Input'!J2240=\"Contingent\"),'TSA Input'!B2240,\"Ineligible\"))","v":""},{"$f":"IF('TSA Input'!J2240=\"\",\"\",IF(OR('TSA Input'!J2240=\"Yes\",'TSA Input'!J2240=\"Contingent\"),'TSA Input'!I2240,\"\"))","v":""},{"$f":"IF('TSA Input'!J2240=\"\",\"\",IF(OR('TSA Input'!J2240=\"Yes\",'TSA Input'!J2240=\"Contingent\"),'TSA Input'!C2240,\"\"))","v":""},{"$f":"IF('TSA Input'!J2240=\"\",\"\",IF(OR('TSA Input'!J2240=\"Yes\",'TSA Input'!J2240=\"Contingent\"),'TSA Input'!D2240,\"\"))","v":""},{"$f":"IF('TSA Input'!J2240=\"\",\"\",IF(OR('TSA Input'!J2240=\"Yes\",'TSA Input'!J2240=\"Contingent\"),'TSA Input'!G2240,\"\"))","v":""},{"$f":"IF('TSA Input'!J2240=\"\",\"\",IF(OR('TSA Input'!J2240=\"Yes\",'TSA Input'!J2240=\"Contingent\"),'TSA Input'!F2240,\"\"))","v":""},"",{"$f":"IF('TSA Input'!J2240=\"\",\"\",IF(OR('TSA Input'!J2240=\"Yes\",'TSA Input'!J2240=\"Contingent\"),'TSA Input'!D2240,\"\"))","v":""},{"$f":"IF('TSA Input'!J2240=\"\",\"\",IF(OR('TSA Input'!J2240=\"Yes\",'TSA Input'!J2240=\"Contingent\"),'TSA Input'!G2240,\"\"))","v":""},{"$f":"IF('TSA Input'!J2240=\"\",\"\",IF(OR('TSA Input'!J2240=\"Yes\",'TSA Input'!J2240=\"Contingent\"),'TSA Input'!F2240,\"\"))","v":""},"","Required","Required"]
["",null,{"$f":"IF('TSA Input'!J2241=\"\",\"\",IF(OR('TSA Input'!J2241=\"Yes\",'TSA Input'!J2241=\"Contingent\"),'TSA Input'!B2241,\"Ineligible\"))","v":""},{"$f":"IF('TSA Input'!J2241=\"\",\"\",IF(OR('TSA Input'!J2241=\"Yes\",'TSA Input'!J2241=\"Contingent\"),'TSA Input'!I2241,\"\"))","v":""},{"$f":"IF('TSA Input'!J2241=\"\",\"\",IF(OR('TSA Input'!J2241=\"Yes\",'TSA Input'!J2241=\"Contingent\"),'TSA Input'!C2241,\"\"))","v":""},{"$f":"IF('TSA Input'!J2241=\"\",\"\",IF(OR('TSA Input'!J2241=\"Yes\",'TSA Input'!J2241=\"Contingent\"),'TSA Input'!D2241,\"\"))","v":""},{"$f":"IF('TSA Input'!J2241=\"\",\"\",IF(OR('TSA Input'!J2241=\"Yes\",'TSA Input'!J2241=\"Contingent\"),'TSA Input'!G2241,\"\"))","v":""},{"$f":"IF('TSA Input'!J2241=\"\",\"\",IF(OR('TSA Input'!J2241=\"Yes\",'TSA Input'!J2241=\"Contingent\"),'TSA Input'!F2241,\"\"))","v":""},"",{"$f":"IF('TSA Input'!J2241=\"\",\"\",IF(OR('TSA Input'!J2241=\"Yes\",'TSA Input'!J2241=\"Contingent\"),'TSA Input'!D2241,\"\"))","v":""},{"$f":"IF('TSA Input'!J2241=\"\",\"\",IF(OR('TSA Input'!J2241=\"Yes\",'TSA Input'!J2241=\"Contingent\"),'TSA Input'!G2241,\"\"))","v":""},{"$f":"IF('TSA Input'!J2241=\"\",\"\",IF(OR('TSA Input'!J2241=\"Yes\",'TSA Input'!J2241=\"Contingent\"),'TSA Input'!F2241,\"\"))","v":""},"","Required","Required"]
["",null,{"$f":"IF('TSA Input'!J2242=\"\",\"\",IF(OR('TSA Input'!J2242=\"Yes\",'TSA Input'!J2242=\"Contingent\"),'TSA Input'!B2242,\"Ineligible\"))","v":""},{"$f":"IF('TSA Input'!J2242=\"\",\"\",IF(OR('TSA Input'!J2242=\"Yes\",'TSA Input'!J2242=\"Contingent\"),'TSA Input'!I2242,\"\"))","v":""},{"$f":"IF('TSA Input'!J2242=\"\",\"\",IF(OR('TSA Input'!J2242=\"Yes\",'TSA Input'!J2242=\"Contingent\"),'TSA Input'!C2242,\"\"))","v":""},{"$f":"IF('TSA Input'!J2242=\"\",\"\",IF(OR('TSA Input'!J2242=\"Yes\",'TSA Input'!J2242=\"Contingent\"),'TSA Input'!D2242,\"\"))","v":""},{"$f":"IF('TSA Input'!J2242=\"\",\"\",IF(OR('TSA Input'!J2242=\"Yes\",'TSA Input'!J2242=\"Contingent\"),'TSA Input'!G2242,\"\"))","v":""},{"$f":"IF('TSA Input'!J2242=\"\",\"\",IF(OR('TSA Input'!J2242=\"Yes\",'TSA Input'!J2242=\"Contingent\"),'TSA Input'!F2242,\"\"))","v":""},"",{"$f":"IF('TSA Input'!J2242=\"\",\"\",IF(OR('TSA Input'!J2242=\"Yes\",'TSA Input'!J2242=\"Contingent\"),'TSA Input'!D2242,\"\"))","v":""},{"$f":"IF('TSA Input'!J2242=\"\",\"\",IF(OR('TSA Input'!J2242=\"Yes\",'TSA Input'!J2242=\"Contingent\"),'TSA Input'!G2242,\"\"))","v":""},{"$f":"IF('TSA Input'!J2242=\"\",\"\",IF(OR('TSA Input'!J2242=\"Yes\",'TSA Input'!J2242=\"Contingent\"),'TSA Input'!F2242,\"\"))","v":""},"","Required","Required"]
["",null,{"$f":"IF('TSA Input'!J2243=\"\",\"\",IF(OR('TSA Input'!J2243=\"Yes\",'TSA Input'!J2243=\"Contingent\"),'TSA Input'!B2243,\"Ineligible\"))","v":""},{"$f":"IF('TSA Input'!J2243=\"\",\"\",IF(OR('TSA Input'!J2243=\"Yes\",'TSA Input'!J2243=\"Contingent\"),'TSA Input'!I2243,\"\"))","v":""},{"$f":"IF('TSA Input'!J2243=\"\",\"\",IF(OR('TSA Input'!J2243=\"Yes\",'TSA Input'!J2243=\"Contingent\"),'TSA Input'!C2243,\"\"))","v":""},{"$f":"IF('TSA Input'!J2243=\"\",\"\",IF(OR('TSA Input'!J2243=\"Yes\",'TSA Input'!J2243=\"Contingent\"),'TSA Input'!D2243,\"\"))","v":""},{"$f":"IF('TSA Input'!J2243=\"\",\"\",IF(OR('TSA Input'!J2243=\"Yes\",'TSA Input'!J2243=\"Contingent\"),'TSA Input'!G2243,\"\"))","v":""},{"$f":"IF('TSA Input'!J2243=\"\",\"\",IF(OR('TSA Input'!J2243=\"Yes\",'TSA Input'!J2243=\"Contingent\"),'TSA Input'!F2243,\"\"))","v":""},"",{"$f":"IF('TSA Input'!J2243=\"\",\"\",IF(OR('TSA Input'!J2243=\"Yes\",'TSA Input'!J2243=\"Contingent\"),'TSA Input'!D2243,\"\"))","v":""},{"$f":"IF('TSA Input'!J2243=\"\",\"\",IF(OR('TSA Input'!J2243=\"Yes\",'TSA Input'!J2243=\"Contingent\"),'TSA Input'!G2243,\"\"))","v":""},{"$f":"IF('TSA Input'!J2243=\"\",\"\",IF(OR('TSA Input'!J2243=\"Yes\",'TSA Input'!J2243=\"Contingent\"),'TSA Input'!F2243,\"\"))","v":""},"","Required","Required"]
["",null,{"$f":"IF('TSA Input'!J2244=\"\",\"\",IF(OR('TSA Input'!J2244=\"Yes\",'TSA Input'!J2244=\"Contingent\"),'TSA Input'!B2244,\"Ineligible\"))","v":""},{"$f":"IF('TSA Input'!J2244=\"\",\"\",IF(OR('TSA Input'!J2244=\"Yes\",'TSA Input'!J2244=\"Contingent\"),'TSA Input'!I2244,\"\"))","v":""},{"$f":"IF('TSA Input'!J2244=\"\",\"\",IF(OR('TSA Input'!J2244=\"Yes\",'TSA Input'!J2244=\"Contingent\"),'TSA Input'!C2244,\"\"))","v":""},{"$f":"IF('TSA Input'!J2244=\"\",\"\",IF(OR('TSA Input'!J2244=\"Yes\",'TSA Input'!J2244=\"Contingent\"),'TSA Input'!D2244,\"\"))","v":""},{"$f":"IF('TSA Input'!J2244=\"\",\"\",IF(OR('TSA Input'!J2244=\"Yes\",'TSA Input'!J2244=\"Contingent\"),'TSA Input'!G2244,\"\"))","v":""},{"$f":"IF('TSA Input'!J2244=\"\",\"\",IF(OR('TSA Input'!J2244=\"Yes\",'TSA Input'!J2244=\"Contingent\"),'TSA Input'!F2244,\"\"))","v":""},{"$f":"IF($C2282=\"\",\"\",SUM(F2282:H2282))","v":""},{"$f":"IF('TSA Input'!J2244=\"\",\"\",IF(OR('TSA Input'!J2244=\"Yes\",'TSA Input'!J2244=\"Contingent\"),'TSA Input'!D2244,\"\"))","v":""},{"$f":"IF('TSA Input'!J2244=\"\",\"\",IF(OR('TSA Input'!J2244=\"Yes\",'TSA Input'!J2244=\"Contingent\"),'TSA Input'!G2244,\"\"))","v":""},{"$f":"IF('TSA Input'!J2244=\"\",\"\",IF(OR('TSA Input'!J2244=\"Yes\",'TSA Input'!J2244=\"Contingent\"),'TSA Input'!F2244,\"\"))","v":""},{"$f":"IF($C2282=\"\",\"\",SUM(J2282:L2282))","v":""},"Required","Required"]
["",null,{"$f":"IF('TSA Input'!J2245=\"\",\"\",IF(OR('TSA Input'!J2245=\"Yes\",'TSA Input'!J2245=\"Contingent\"),'TSA Input'!B2245,\"Ineligible\"))","v":""},{"$f":"IF('TSA Input'!J2245=\"\",\"\",IF(OR('TSA Input'!J2245=\"Yes\",'TSA Input'!J2245=\"Contingent\"),'TSA Input'!I2245,\"\"))","v":""},{"$f":"IF('TSA Input'!J2245=\"\",\"\",IF(OR('TSA Input'!J2245=\"Yes\",'TSA Input'!J2245=\"Contingent\"),'TSA Input'!C2245,\"\"))","v":""},{"$f":"IF('TSA Input'!J2245=\"\",\"\",IF(OR('TSA Input'!J2245=\"Yes\",'TSA Input'!J2245=\"Contingent\"),'TSA Input'!D2245,\"\"))","v":""},{"$f":"IF('TSA Input'!J2245=\"\",\"\",IF(OR('TSA Input'!J2245=\"Yes\",'TSA Input'!J2245=\"Contingent\"),'TSA Input'!G2245,\"\"))","v":""},{"$f":"IF('TSA Input'!J2245=\"\",\"\",IF(OR('TSA Input'!J2245=\"Yes\",'TSA Input'!J2245=\"Contingent\"),'TSA Input'!F2245,\"\"))","v":""},"",{"$f":"IF('TSA Input'!J2245=\"\",\"\",IF(OR('TSA Input'!J2245=\"Yes\",'TSA Input'!J2245=\"Contingent\"),'TSA Input'!D2245,\"\"))","v":""},{"$f":"IF('TSA Input'!J2245=\"\",\"\",IF(OR('TSA Input'!J2245=\"Yes\",'TSA Input'!J2245=\"Contingent\"),'TSA Input'!G2245,\"\"))","v":""},{"$f":"IF('TSA Input'!J2245=\"\",\"\",IF(OR('TSA Input'!J2245=\"Yes\",'TSA Input'!J2245=\"Contingent\"),'TSA Input'!F2245,\"\"))","v":""},"","Required","Required"]
["",null,{"$f":"IF('TSA Input'!J2246=\"\",\"\",IF(OR('TSA Input'!J2246=\"Yes\",'TSA Input'!J2246=\"Contingent\"),'TSA Input'!B2246,\"Ineligible\"))","v":""},{"$f":"IF('TSA Input'!J2246=\"\",\"\",IF(OR('TSA Input'!J2246=\"Yes\",'TSA Input'!J2246=\"Contingent\"),'TSA Input'!I2246,\"\"))","v":""},{"$f":"IF('TSA Input'!J2246=\"\",\"\",IF(OR('TSA Input'!J2246=\"Yes\",'TSA Input'!J2246=\"Contingent\"),'TSA Input'!C2246,\"\"))","v":""},{"$f":"IF('TSA Input'!J2246=\"\",\"\",IF(OR('TSA Input'!J2246=\"Yes\",'TSA Input'!J2246=\"Contingent\"),'TSA Input'!D2246,\"\"))","v":""},{"$f":"IF('TSA Input'!J2246=\"\",\"\",IF(OR('TSA Input'!J2246=\"Yes\",'TSA Input'!J2246=\"Contingent\"),'TSA Input'!G2246,\"\"))","v":""},{"$f":"IF('TSA Input'!J2246=\"\",\"\",IF(OR('TSA Input'!J2246=\"Yes\",'TSA Input'!J2246=\"Contingent\"),'TSA Input'!F2246,\"\"))","v":""},"",{"$f":"IF('TSA Input'!J2246=\"\",\"\",IF(OR('TSA Input'!J2246=\"Yes\",'TSA Input'!J2246=\"Contingent\"),'TSA Input'!D2246,\"\"))","v":""},{"$f":"IF('TSA Input'!J2246=\"\",\"\",IF(OR('TSA Input'!J2246=\"Yes\",'TSA Input'!J2246=\"Contingent\"),'TSA Input'!G2246,\"\"))","v":""},{"$f":"IF('TSA Input'!J2246=\"\",\"\",IF(OR('TSA Input'!J2246=\"Yes\",'TSA Input'!J2246=\"Contingent\"),'TSA Input'!F2246,\"\"))","v":""},"","Required","Required"]
["",null,{"$f":"IF('TSA Input'!J2247=\"\",\"\",IF(OR('TSA Input'!J2247=\"Yes\",'TSA Input'!J2247=\"Contingent\"),'TSA Input'!B2247,\"Ineligible\"))","v":""},{"$f":"IF('TSA Input'!J2247=\"\",\"\",IF(OR('TSA Input'!J2247=\"Yes\",'TSA Input'!J2247=\"Contingent\"),'TSA Input'!I2247,\"\"))","v":""},{"$f":"IF('TSA Input'!J2247=\"\",\"\",IF(OR('TSA Input'!J2247=\"Yes\",'TSA Input'!J2247=\"Contingent\"),'TSA Input'!C2247,\"\"))","v":""},{"$f":"IF('TSA Input'!J2247=\"\",\"\",IF(OR('TSA Input'!J2247=\"Yes\",'TSA Input'!J2247=\"Contingent\"),'TSA Input'!D2247,\"\"))","v":""},{"$f":"IF('TSA Input'!J2247=\"\",\"\",IF(OR('TSA Input'!J2247=\"Yes\",'TSA Input'!J2247=\"Contingent\"),'TSA Input'!G2247,\"\"))","v":""},{"$f":"IF('TSA Input'!J2247=\"\",\"\",IF(OR('TSA Input'!J2247=\"Yes\",'TSA Input'!J2247=\"Contingent\"),'TSA Input'!F2247,\"\"))","v":""},"",{"$f":"IF('TSA Input'!J2247=\"\",\"\",IF(OR('TSA Input'!J2247=\"Yes\",'TSA Input'!J2247=\"Contingent\"),'TSA Input'!D2247,\"\"))","v":""},{"$f":"IF('TSA Input'!J2247=\"\",\"\",IF(OR('TSA Input'!J2247=\"Yes\",'TSA Input'!J2247=\"Contingent\"),'TSA Input'!G2247,\"\"))","v":""},{"$f":"IF('TSA Input'!J2247=\"\",\"\",IF(OR('TSA Input'!J2247=\"Yes\",'TSA Input'!J2247=\"Contingent\"),'TSA Input'!F2247,\"\"))","v":""},"","Required","Required"]
["",null,{"$f":"IF('TSA Input'!J2248=\"\",\"\",IF(OR('TSA Input'!J2248=\"Yes\",'TSA Input'!J2248=\"Contingent\"),'TSA Input'!B2248,\"Ineligible\"))","v":""},{"$f":"IF('TSA Input'!J2248=\"\",\"\",IF(OR('TSA Input'!J2248=\"Yes\",'TSA Input'!J2248=\"Contingent\"),'TSA Input'!I2248,\"\"))","v":""},{"$f":"IF('TSA Input'!J2248=\"\",\"\",IF(OR('TSA Input'!J2248=\"Yes\",'TSA Input'!J2248=\"Contingent\"),'TSA Input'!C2248,\"\"))","v":""},{"$f":"IF('TSA Input'!J2248=\"\",\"\",IF(OR('TSA Input'!J2248=\"Yes\",'TSA Input'!J2248=\"Contingent\"),'TSA Input'!D2248,\"\"))","v":""},{"$f":"IF('TSA Input'!J2248=\"\",\"\",IF(OR('TSA Input'!J2248=\"Yes\",'TSA Input'!J2248=\"Contingent\"),'TSA Input'!G2248,\"\"))","v":""},{"$f":"IF('TSA Input'!J2248=\"\",\"\",IF(OR('TSA Input'!J2248=\"Yes\",'TSA Input'!J2248=\"Contingent\"),'TSA Input'!F2248,\"\"))","v":""},"",{"$f":"IF('TSA Input'!J2248=\"\",\"\",IF(OR('TSA Input'!J2248=\"Yes\",'TSA Input'!J2248=\"Contingent\"),'TSA Input'!D2248,\"\"))","v":""},{"$f":"IF('TSA Input'!J2248=\"\",\"\",IF(OR('TSA Input'!J2248=\"Yes\",'TSA Input'!J2248=\"Contingent\"),'TSA Input'!G2248,\"\"))","v":""},{"$f":"IF('TSA Input'!J2248=\"\",\"\",IF(OR('TSA Input'!J2248=\"Yes\",'TSA Input'!J2248=\"Contingent\"),'TSA Input'!F2248,\"\"))","v":""},"","Required","Required"]
["",null,{"$f":"IF('TSA Input'!J2249=\"\",\"\",IF(OR('TSA Input'!J2249=\"Yes\",'TSA Input'!J2249=\"Contingent\"),'TSA Input'!B2249,\"Ineligible\"))","v":""},{"$f":"IF('TSA Input'!J2249=\"\",\"\",IF(OR('TSA Input'!J2249=\"Yes\",'TSA Input'!J2249=\"Contingent\"),'TSA Input'!I2249,\"\"))","v":""},{"$f":"IF('TSA Input'!J2249=\"\",\"\",IF(OR('TSA Input'!J2249=\"Yes\",'TSA Input'!J2249=\"Contingent\"),'TSA Input'!C2249,\"\"))","v":""},{"$f":"IF('TSA Input'!J2249=\"\",\"\",IF(OR('TSA Input'!J2249=\"Yes\",'TSA Input'!J2249=\"Contingent\"),'TSA Input'!D2249,\"\"))","v":""},{"$f":"IF('TSA Input'!J2249=\"\",\"\",IF(OR('TSA Input'!J2249=\"Yes\",'TSA Input'!J2249=\"Contingent\"),'TSA Input'!G2249,\"\"))","v":""},{"$f":"IF('TSA Input'!J2249=\"\",\"\",IF(OR('TSA Input'!J2249=\"Yes\",'TSA Input'!J2249=\"Contingent\"),'TSA Input'!F2249,\"\"))","v":""},"",{"$f":"IF('TSA Input'!J2249=\"\",\"\",IF(OR('TSA Input'!J2249=\"Yes\",'TSA Input'!J2249=\"Contingent\"),'TSA Input'!D2249,\"\"))","v":""},{"$f":"IF('TSA Input'!J2249=\"\",\"\",IF(OR('TSA Input'!J2249=\"Yes\",'TSA Input'!J2249=\"Contingent\"),'TSA Input'!G2249,\"\"))","v":""},{"$f":"IF('TSA Input'!J2249=\"\",\"\",IF(OR('TSA Input'!J2249=\"Yes\",'TSA Input'!J2249=\"Contingent\"),'TSA Input'!F2249,\"\"))","v":""},"","Required","Required"]
["",null,{"$f":"IF('TSA Input'!J2250=\"\",\"\",IF(OR('TSA Input'!J2250=\"Yes\",'TSA Input'!J2250=\"Contingent\"),'TSA Input'!B2250,\"Ineligible\"))","v":""},{"$f":"IF('TSA Input'!J2250=\"\",\"\",IF(OR('TSA Input'!J2250=\"Yes\",'TSA Input'!J2250=\"Contingent\"),'TSA Input'!I2250,\"\"))","v":""},{"$f":"IF('TSA Input'!J2250=\"\",\"\",IF(OR('TSA Input'!J2250=\"Yes\",'TSA Input'!J2250=\"Contingent\"),'TSA Input'!C2250,\"\"))","v":""},{"$f":"IF('TSA Input'!J2250=\"\",\"\",IF(OR('TSA Input'!J2250=\"Yes\",'TSA Input'!J2250=\"Contingent\"),'TSA Input'!D2250,\"\"))","v":""},{"$f":"IF('TSA Input'!J2250=\"\",\"\",IF(OR('TSA Input'!J2250=\"Yes\",'TSA Input'!J2250=\"Contingent\"),'TSA Input'!G2250,\"\"))","v":""},{"$f":"IF('TSA Input'!J2250=\"\",\"\",IF(OR('TSA Input'!J2250=\"Yes\",'TSA Input'!J2250=\"Contingent\"),'TSA Input'!F2250,\"\"))","v":""},"",{"$f":"IF('TSA Input'!J2250=\"\",\"\",IF(OR('TSA Input'!J2250=\"Yes\",'TSA Input'!J2250=\"Contingent\"),'TSA Input'!D2250,\"\"))","v":""},{"$f":"IF('TSA Input'!J2250=\"\",\"\",IF(OR('TSA Input'!J2250=\"Yes\",'TSA Input'!J2250=\"Contingent\"),'TSA Input'!G2250,\"\"))","v":""},{"$f":"IF('TSA Input'!J2250=\"\",\"\",IF(OR('TSA Input'!J2250=\"Yes\",'TSA Input'!J2250=\"Contingent\"),'TSA Input'!F2250,\"\"))","v":""},"","Required","Required"]
["",null,{"$f":"IF('TSA Input'!J2251=\"\",\"\",IF(OR('TSA Input'!J2251=\"Yes\",'TSA Input'!J2251=\"Contingent\"),'TSA Input'!B2251,\"Ineligible\"))","v":""},{"$f":"IF('TSA Input'!J2251=\"\",\"\",IF(OR('TSA Input'!J2251=\"Yes\",'TSA Input'!J2251=\"Contingent\"),'TSA Input'!I2251,\"\"))","v":""},{"$f":"IF('TSA Input'!J2251=\"\",\"\",IF(OR('TSA Input'!J2251=\"Yes\",'TSA Input'!J2251=\"Contingent\"),'TSA Input'!C2251,\"\"))","v":""},{"$f":"IF('TSA Input'!J2251=\"\",\"\",IF(OR('TSA Input'!J2251=\"Yes\",'TSA Input'!J2251=\"Contingent\"),'TSA Input'!D2251,\"\"))","v":""},{"$f":"IF('TSA Input'!J2251=\"\",\"\",IF(OR('TSA Input'!J2251=\"Yes\",'TSA Input'!J2251=\"Contingent\"),'TSA Input'!G2251,\"\"))","v":""},{"$f":"IF('TSA Input'!J2251=\"\",\"\",IF(OR('TSA Input'!J2251=\"Yes\",'TSA Input'!J2251=\"Contingent\"),'TSA Input'!F2251,\"\"))","v":""},"",{"$f":"IF('TSA Input'!J2251=\"\",\"\",IF(OR('TSA Input'!J2251=\"Yes\",'TSA Input'!J2251=\"Contingent\"),'TSA Input'!D2251,\"\"))","v":""},{"$f":"IF('TSA Input'!J2251=\"\",\"\",IF(OR('TSA Input'!J2251=\"Yes\",'TSA Input'!J2251=\"Contingent\"),'TSA Input'!G2251,\"\"))","v":""},{"$f":"IF('TSA Input'!J2251=\"\",\"\",IF(OR('TSA Input'!J2251=\"Yes\",'TSA Input'!J2251=\"Contingent\"),'TSA Input'!F2251,\"\"))","v":""},"","Required","Required"]
["",null,{"$f":"IF('TSA Input'!J2252=\"\",\"\",IF(OR('TSA Input'!J2252=\"Yes\",'TSA Input'!J2252=\"Contingent\"),'TSA Input'!B2252,\"Ineligible\"))","v":""},{"$f":"IF('TSA Input'!J2252=\"\",\"\",IF(OR('TSA Input'!J2252=\"Yes\",'TSA Input'!J2252=\"Contingent\"),'TSA Input'!I2252,\"\"))","v":""},{"$f":"IF('TSA Input'!J2252=\"\",\"\",IF(OR('TSA Input'!J2252=\"Yes\",'TSA Input'!J2252=\"Contingent\"),'TSA Input'!C2252,\"\"))","v":""},{"$f":"IF('TSA Input'!J2252=\"\",\"\",IF(OR('TSA Input'!J2252=\"Yes\",'TSA Input'!J2252=\"Contingent\"),'TSA Input'!D2252,\"\"))","v":""},{"$f":"IF('TSA Input'!J2252=\"\",\"\",IF(OR('TSA Input'!J2252=\"Yes\",'TSA Input'!J2252=\"Contingent\"),'TSA Input'!G2252,\"\"))","v":""},{"$f":"IF('TSA Input'!J2252=\"\",\"\",IF(OR('TSA Input'!J2252=\"Yes\",'TSA Input'!J2252=\"Contingent\"),'TSA Input'!F2252,\"\"))","v":""},"",{"$f":"IF('TSA Input'!J2252=\"\",\"\",IF(OR('TSA Input'!J2252=\"Yes\",'TSA Input'!J2252=\"Contingent\"),'TSA Input'!D2252,\"\"))","v":""},{"$f":"IF('TSA Input'!J2252=\"\",\"\",IF(OR('TSA Input'!J2252=\"Yes\",'TSA Input'!J2252=\"Contingent\"),'TSA Input'!G2252,\"\"))","v":""},{"$f":"IF('TSA Input'!J2252=\"\",\"\",IF(OR('TSA Input'!J2252=\"Yes\",'TSA Input'!J2252=\"Contingent\"),'TSA Input'!F2252,\"\"))","v":""},"","Required","Required"]
["",null,{"$f":"IF('TSA Input'!J2253=\"\",\"\",IF(OR('TSA Input'!J2253=\"Yes\",'TSA Input'!J2253=\"Contingent\"),'TSA Input'!B2253,\"Ineligible\"))","v":""},{"$f":"IF('TSA Input'!J2253=\"\",\"\",IF(OR('TSA Input'!J2253=\"Yes\",'TSA Input'!J2253=\"Contingent\"),'TSA Input'!I2253,\"\"))","v":""},{"$f":"IF('TSA Input'!J2253=\"\",\"\",IF(OR('TSA Input'!J2253=\"Yes\",'TSA Input'!J2253=\"Contingent\"),'TSA Input'!C2253,\"\"))","v":""},{"$f":"IF('TSA Input'!J2253=\"\",\"\",IF(OR('TSA Input'!J2253=\"Yes\",'TSA Input'!J2253=\"Contingent\"),'TSA Input'!D2253,\"\"))","v":""},{"$f":"IF('TSA Input'!J2253=\"\",\"\",IF(OR('TSA Input'!J2253=\"Yes\",'TSA Input'!J2253=\"Contingent\"),'TSA Input'!G2253,\"\"))","v":""},{"$f":"IF('TSA Input'!J2253=\"\",\"\",IF(OR('TSA Input'!J2253=\"Yes\",'TSA Input'!J2253=\"Contingent\"),'TSA Input'!F2253,\"\"))","v":""},"",{"$f":"IF('TSA Input'!J2253=\"\",\"\",IF(OR('TSA Input'!J2253=\"Yes\",'TSA Input'!J2253=\"Contingent\"),'TSA Input'!D2253,\"\"))","v":""},{"$f":"IF('TSA Input'!J2253=\"\",\"\",IF(OR('TSA Input'!J2253=\"Yes\",'TSA Input'!J2253=\"Contingent\"),'TSA Input'!G2253,\"\"))","v":""},{"$f":"IF('TSA Input'!J2253=\"\",\"\",IF(OR('TSA Input'!J2253=\"Yes\",'TSA Input'!J2253=\"Contingent\"),'TSA Input'!F2253,\"\"))","v":""},"","Required","Required"]
["",null,{"$f":"IF('TSA Input'!J2254=\"\",\"\",IF(OR('TSA Input'!J2254=\"Yes\",'TSA Input'!J2254=\"Contingent\"),'TSA Input'!B2254,\"Ineligible\"))","v":""},{"$f":"IF('TSA Input'!J2254=\"\",\"\",IF(OR('TSA Input'!J2254=\"Yes\",'TSA Input'!J2254=\"Contingent\"),'TSA Input'!I2254,\"\"))","v":""},{"$f":"IF('TSA Input'!J2254=\"\",\"\",IF(OR('TSA Input'!J2254=\"Yes\",'TSA Input'!J2254=\"Contingent\"),'TSA Input'!C2254,\"\"))","v":""},{"$f":"IF('TSA Input'!J2254=\"\",\"\",IF(OR('TSA Input'!J2254=\"Yes\",'TSA Input'!J2254=\"Contingent\"),'TSA Input'!D2254,\"\"))","v":""},{"$f":"IF('TSA Input'!J2254=\"\",\"\",IF(OR('TSA Input'!J2254=\"Yes\",'TSA Input'!J2254=\"Contingent\"),'TSA Input'!G2254,\"\"))","v":""},{"$f":"IF('TSA Input'!J2254=\"\",\"\",IF(OR('TSA Input'!J2254=\"Yes\",'TSA Input'!J2254=\"Contingent\"),'TSA Input'!F2254,\"\"))","v":""},"",{"$f":"IF('TSA Input'!J2254=\"\",\"\",IF(OR('TSA Input'!J2254=\"Yes\",'TSA Input'!J2254=\"Contingent\"),'TSA Input'!D2254,\"\"))","v":""},{"$f":"IF('TSA Input'!J2254=\"\",\"\",IF(OR('TSA Input'!J2254=\"Yes\",'TSA Input'!J2254=\"Contingent\"),'TSA Input'!G2254,\"\"))","v":""},{"$f":"IF('TSA Input'!J2254=\"\",\"\",IF(OR('TSA Input'!J2254=\"Yes\",'TSA Input'!J2254=\"Contingent\"),'TSA Input'!F2254,\"\"))","v":""},"","Required","Required"]
["",null,{"$f":"IF('TSA Input'!J2255=\"\",\"\",IF(OR('TSA Input'!J2255=\"Yes\",'TSA Input'!J2255=\"Contingent\"),'TSA Input'!B2255,\"Ineligible\"))","v":""},{"$f":"IF('TSA Input'!J2255=\"\",\"\",IF(OR('TSA Input'!J2255=\"Yes\",'TSA Input'!J2255=\"Contingent\"),'TSA Input'!I2255,\"\"))","v":""},{"$f":"IF('TSA Input'!J2255=\"\",\"\",IF(OR('TSA Input'!J2255=\"Yes\",'TSA Input'!J2255=\"Contingent\"),'TSA Input'!C2255,\"\"))","v":""},{"$f":"IF('TSA Input'!J2255=\"\",\"\",IF(OR('TSA Input'!J2255=\"Yes\",'TSA Input'!J2255=\"Contingent\"),'TSA Input'!D2255,\"\"))","v":""},{"$f":"IF('TSA Input'!J2255=\"\",\"\",IF(OR('TSA Input'!J2255=\"Yes\",'TSA Input'!J2255=\"Contingent\"),'TSA Input'!G2255,\"\"))","v":""},{"$f":"IF('TSA Input'!J2255=\"\",\"\",IF(OR('TSA Input'!J2255=\"Yes\",'TSA Input'!J2255=\"Contingent\"),'TSA Input'!F2255,\"\"))","v":""},"",{"$f":"IF('TSA Input'!J2255=\"\",\"\",IF(OR('TSA Input'!J2255=\"Yes\",'TSA Input'!J2255=\"Contingent\"),'TSA Input'!D2255,\"\"))","v":""},{"$f":"IF('TSA Input'!J2255=\"\",\"\",IF(OR('TSA Input'!J2255=\"Yes\",'TSA Input'!J2255=\"Contingent\"),'TSA Input'!G2255,\"\"))","v":""},{"$f":"IF('TSA Input'!J2255=\"\",\"\",IF(OR('TSA Input'!J2255=\"Yes\",'TSA Input'!J2255=\"Contingent\"),'TSA Input'!F2255,\"\"))","v":""},"","Required","Required"]
["",null,{"$f":"IF('TSA Input'!J2256=\"\",\"\",IF(OR('TSA Input'!J2256=\"Yes\",'TSA Input'!J2256=\"Contingent\"),'TSA Input'!B2256,\"Ineligible\"))","v":""},{"$f":"IF('TSA Input'!J2256=\"\",\"\",IF(OR('TSA Input'!J2256=\"Yes\",'TSA Input'!J2256=\"Contingent\"),'TSA Input'!I2256,\"\"))","v":""},{"$f":"IF('TSA Input'!J2256=\"\",\"\",IF(OR('TSA Input'!J2256=\"Yes\",'TSA Input'!J2256=\"Contingent\"),'TSA Input'!C2256,\"\"))","v":""},{"$f":"IF('TSA Input'!J2256=\"\",\"\",IF(OR('TSA Input'!J2256=\"Yes\",'TSA Input'!J2256=\"Contingent\"),'TSA Input'!D2256,\"\"))","v":""},{"$f":"IF('TSA Input'!J2256=\"\",\"\",IF(OR('TSA Input'!J2256=\"Yes\",'TSA Input'!J2256=\"Contingent\"),'TSA Input'!G2256,\"\"))","v":""},{"$f":"IF('TSA Input'!J2256=\"\",\"\",IF(OR('TSA Input'!J2256=\"Yes\",'TSA Input'!J2256=\"Contingent\"),'TSA Input'!F2256,\"\"))","v":""},"",{"$f":"IF('TSA Input'!J2256=\"\",\"\",IF(OR('TSA Input'!J2256=\"Yes\",'TSA Input'!J2256=\"Contingent\"),'TSA Input'!D2256,\"\"))","v":""},{"$f":"IF('TSA Input'!J2256=\"\",\"\",IF(OR('TSA Input'!J2256=\"Yes\",'TSA Input'!J2256=\"Contingent\"),'TSA Input'!G2256,\"\"))","v":""},{"$f":"IF('TSA Input'!J2256=\"\",\"\",IF(OR('TSA Input'!J2256=\"Yes\",'TSA Input'!J2256=\"Contingent\"),'TSA Input'!F2256,\"\"))","v":""},"","Required","Required"]
["",null,{"$f":"IF('TSA Input'!J2257=\"\",\"\",IF(OR('TSA Input'!J2257=\"Yes\",'TSA Input'!J2257=\"Contingent\"),'TSA Input'!B2257,\"Ineligible\"))","v":""},{"$f":"IF('TSA Input'!J2257=\"\",\"\",IF(OR('TSA Input'!J2257=\"Yes\",'TSA Input'!J2257=\"Contingent\"),'TSA Input'!I2257,\"\"))","v":""},{"$f":"IF('TSA Input'!J2257=\"\",\"\",IF(OR('TSA Input'!J2257=\"Yes\",'TSA Input'!J2257=\"Contingent\"),'TSA Input'!C2257,\"\"))","v":""},{"$f":"IF('TSA Input'!J2257=\"\",\"\",IF(OR('TSA Input'!J2257=\"Yes\",'TSA Input'!J2257=\"Contingent\"),'TSA Input'!D2257,\"\"))","v":""},{"$f":"IF('TSA Input'!J2257=\"\",\"\",IF(OR('TSA Input'!J2257=\"Yes\",'TSA Input'!J2257=\"Contingent\"),'TSA Input'!G2257,\"\"))","v":""},{"$f":"IF('TSA Input'!J2257=\"\",\"\",IF(OR('TSA Input'!J2257=\"Yes\",'TSA Input'!J2257=\"Contingent\"),'TSA Input'!F2257,\"\"))","v":""},"",{"$f":"IF('TSA Input'!J2257=\"\",\"\",IF(OR('TSA Input'!J2257=\"Yes\",'TSA Input'!J2257=\"Contingent\"),'TSA Input'!D2257,\"\"))","v":""},{"$f":"IF('TSA Input'!J2257=\"\",\"\",IF(OR('TSA Input'!J2257=\"Yes\",'TSA Input'!J2257=\"Contingent\"),'TSA Input'!G2257,\"\"))","v":""},{"$f":"IF('TSA Input'!J2257=\"\",\"\",IF(OR('TSA Input'!J2257=\"Yes\",'TSA Input'!J2257=\"Contingent\"),'TSA Input'!F2257,\"\"))","v":""},"","Required","Required"]
["",null,{"$f":"IF('TSA Input'!J2258=\"\",\"\",IF(OR('TSA Input'!J2258=\"Yes\",'TSA Input'!J2258=\"Contingent\"),'TSA Input'!B2258,\"Ineligible\"))","v":""},{"$f":"IF('TSA Input'!J2258=\"\",\"\",IF(OR('TSA Input'!J2258=\"Yes\",'TSA Input'!J2258=\"Contingent\"),'TSA Input'!I2258,\"\"))","v":""},{"$f":"IF('TSA Input'!J2258=\"\",\"\",IF(OR('TSA Input'!J2258=\"Yes\",'TSA Input'!J2258=\"Contingent\"),'TSA Input'!C2258,\"\"))","v":""},{"$f":"IF('TSA Input'!J2258=\"\",\"\",IF(OR('TSA Input'!J2258=\"Yes\",'TSA Input'!J2258=\"Contingent\"),'TSA Input'!D2258,\"\"))","v":""},{"$f":"IF('TSA Input'!J2258=\"\",\"\",IF(OR('TSA Input'!J2258=\"Yes\",'TSA Input'!J2258=\"Contingent\"),'TSA Input'!G2258,\"\"))","v":""},{"$f":"IF('TSA Input'!J2258=\"\",\"\",IF(OR('TSA Input'!J2258=\"Yes\",'TSA Input'!J2258=\"Contingent\"),'TSA Input'!F2258,\"\"))","v":""},"",{"$f":"IF('TSA Input'!J2258=\"\",\"\",IF(OR('TSA Input'!J2258=\"Yes\",'TSA Input'!J2258=\"Contingent\"),'TSA Input'!D2258,\"\"))","v":""},{"$f":"IF('TSA Input'!J2258=\"\",\"\",IF(OR('TSA Input'!J2258=\"Yes\",'TSA Input'!J2258=\"Contingent\"),'TSA Input'!G2258,\"\"))","v":""},{"$f":"IF('TSA Input'!J2258=\"\",\"\",IF(OR('TSA Input'!J2258=\"Yes\",'TSA Input'!J2258=\"Contingent\"),'TSA Input'!F2258,\"\"))","v":""},"","Required","Required"]
["",null,{"$f":"IF('TSA Input'!J2259=\"\",\"\",IF(OR('TSA Input'!J2259=\"Yes\",'TSA Input'!J2259=\"Contingent\"),'TSA Input'!B2259,\"Ineligible\"))","v":""},{"$f":"IF('TSA Input'!J2259=\"\",\"\",IF(OR('TSA Input'!J2259=\"Yes\",'TSA Input'!J2259=\"Contingent\"),'TSA Input'!I2259,\"\"))","v":""},{"$f":"IF('TSA Input'!J2259=\"\",\"\",IF(OR('TSA Input'!J2259=\"Yes\",'TSA Input'!J2259=\"Contingent\"),'TSA Input'!C2259,\"\"))","v":""},{"$f":"IF('TSA Input'!J2259=\"\",\"\",IF(OR('TSA Input'!J2259=\"Yes\",'TSA Input'!J2259=\"Contingent\"),'TSA Input'!D2259,\"\"))","v":""},{"$f":"IF('TSA Input'!J2259=\"\",\"\",IF(OR('TSA Input'!J2259=\"Yes\",'TSA Input'!J2259=\"Contingent\"),'TSA Input'!G2259,\"\"))","v":""},{"$f":"IF('TSA Input'!J2259=\"\",\"\",IF(OR('TSA Input'!J2259=\"Yes\",'TSA Input'!J2259=\"Contingent\"),'TSA Input'!F2259,\"\"))","v":""},"",{"$f":"IF('TSA Input'!J2259=\"\",\"\",IF(OR('TSA Input'!J2259=\"Yes\",'TSA Input'!J2259=\"Contingent\"),'TSA Input'!D2259,\"\"))","v":""},{"$f":"IF('TSA Input'!J2259=\"\",\"\",IF(OR('TSA Input'!J2259=\"Yes\",'TSA Input'!J2259=\"Contingent\"),'TSA Input'!G2259,\"\"))","v":""},{"$f":"IF('TSA Input'!J2259=\"\",\"\",IF(OR('TSA Input'!J2259=\"Yes\",'TSA Input'!J2259=\"Contingent\"),'TSA Input'!F2259,\"\"))","v":""},"","Required","Required"]
["",null,{"$f":"IF('TSA Input'!J2260=\"\",\"\",IF(OR('TSA Input'!J2260=\"Yes\",'TSA Input'!J2260=\"Contingent\"),'TSA Input'!B2260,\"Ineligible\"))","v":""},{"$f":"IF('TSA Input'!J2260=\"\",\"\",IF(OR('TSA Input'!J2260=\"Yes\",'TSA Input'!J2260=\"Contingent\"),'TSA Input'!I2260,\"\"))","v":""},{"$f":"IF('TSA Input'!J2260=\"\",\"\",IF(OR('TSA Input'!J2260=\"Yes\",'TSA Input'!J2260=\"Contingent\"),'TSA Input'!C2260,\"\"))","v":""},{"$f":"IF('TSA Input'!J2260=\"\",\"\",IF(OR('TSA Input'!J2260=\"Yes\",'TSA Input'!J2260=\"Contingent\"),'TSA Input'!D2260,\"\"))","v":""},{"$f":"IF('TSA Input'!J2260=\"\",\"\",IF(OR('TSA Input'!J2260=\"Yes\",'TSA Input'!J2260=\"Contingent\"),'TSA Input'!G2260,\"\"))","v":""},{"$f":"IF('TSA Input'!J2260=\"\",\"\",IF(OR('TSA Input'!J2260=\"Yes\",'TSA Input'!J2260=\"Contingent\"),'TSA Input'!F2260,\"\"))","v":""},"",{"$f":"IF('TSA Input'!J2260=\"\",\"\",IF(OR('TSA Input'!J2260=\"Yes\",'TSA Input'!J2260=\"Contingent\"),'TSA Input'!D2260,\"\"))","v":""},{"$f":"IF('TSA Input'!J2260=\"\",\"\",IF(OR('TSA Input'!J2260=\"Yes\",'TSA Input'!J2260=\"Contingent\"),'TSA Input'!G2260,\"\"))","v":""},{"$f":"IF('TSA Input'!J2260=\"\",\"\",IF(OR('TSA Input'!J2260=\"Yes\",'TSA Input'!J2260=\"Contingent\"),'TSA Input'!F2260,\"\"))","v":""},"","Required","Required"]
["",null,{"$f":"IF('TSA Input'!J2261=\"\",\"\",IF(OR('TSA Input'!J2261=\"Yes\",'TSA Input'!J2261=\"Contingent\"),'TSA Input'!B2261,\"Ineligible\"))","v":""},{"$f":"IF('TSA Input'!J2261=\"\",\"\",IF(OR('TSA Input'!J2261=\"Yes\",'TSA Input'!J2261=\"Contingent\"),'TSA Input'!I2261,\"\"))","v":""},{"$f":"IF('TSA Input'!J2261=\"\",\"\",IF(OR('TSA Input'!J2261=\"Yes\",'TSA Input'!J2261=\"Contingent\"),'TSA Input'!C2261,\"\"))","v":""},{"$f":"IF('TSA Input'!J2261=\"\",\"\",IF(OR('TSA Input'!J2261=\"Yes\",'TSA Input'!J2261=\"Contingent\"),'TSA Input'!D2261,\"\"))","v":""},{"$f":"IF('TSA Input'!J2261=\"\",\"\",IF(OR('TSA Input'!J2261=\"Yes\",'TSA Input'!J2261=\"Contingent\"),'TSA Input'!G2261,\"\"))","v":""},{"$f":"IF('TSA Input'!J2261=\"\",\"\",IF(OR('TSA Input'!J2261=\"Yes\",'TSA Input'!J2261=\"Contingent\"),'TSA Input'!F2261,\"\"))","v":""},"",{"$f":"IF('TSA Input'!J2261=\"\",\"\",IF(OR('TSA Input'!J2261=\"Yes\",'TSA Input'!J2261=\"Contingent\"),'TSA Input'!D2261,\"\"))","v":""},{"$f":"IF('TSA Input'!J2261=\"\",\"\",IF(OR('TSA Input'!J2261=\"Yes\",'TSA Input'!J2261=\"Contingent\"),'TSA Input'!G2261,\"\"))","v":""},{"$f":"IF('TSA Input'!J2261=\"\",\"\",IF(OR('TSA Input'!J2261=\"Yes\",'TSA Input'!J2261=\"Contingent\"),'TSA Input'!F2261,\"\"))","v":""},"","Required","Required"]
["",null,{"$f":"IF('TSA Input'!J2262=\"\",\"\",IF(OR('TSA Input'!J2262=\"Yes\",'TSA Input'!J2262=\"Contingent\"),'TSA Input'!B2262,\"Ineligible\"))","v":""},{"$f":"IF('TSA Input'!J2262=\"\",\"\",IF(OR('TSA Input'!J2262=\"Yes\",'TSA Input'!J2262=\"Contingent\"),'TSA Input'!I2262,\"\"))","v":""},{"$f":"IF('TSA Input'!J2262=\"\",\"\",IF(OR('TSA Input'!J2262=\"Yes\",'TSA Input'!J2262=\"Contingent\"),'TSA Input'!C2262,\"\"))","v":""},{"$f":"IF('TSA Input'!J2262=\"\",\"\",IF(OR('TSA Input'!J2262=\"Yes\",'TSA Input'!J2262=\"Contingent\"),'TSA Input'!D2262,\"\"))","v":""},{"$f":"IF('TSA Input'!J2262=\"\",\"\",IF(OR('TSA Input'!J2262=\"Yes\",'TSA Input'!J2262=\"Contingent\"),'TSA Input'!G2262,\"\"))","v":""},{"$f":"IF('TSA Input'!J2262=\"\",\"\",IF(OR('TSA Input'!J2262=\"Yes\",'TSA Input'!J2262=\"Contingent\"),'TSA Input'!F2262,\"\"))","v":""},"",{"$f":"IF('TSA Input'!J2262=\"\",\"\",IF(OR('TSA Input'!J2262=\"Yes\",'TSA Input'!J2262=\"Contingent\"),'TSA Input'!D2262,\"\"))","v":""},{"$f":"IF('TSA Input'!J2262=\"\",\"\",IF(OR('TSA Input'!J2262=\"Yes\",'TSA Input'!J2262=\"Contingent\"),'TSA Input'!G2262,\"\"))","v":""},{"$f":"IF('TSA Input'!J2262=\"\",\"\",IF(OR('TSA Input'!J2262=\"Yes\",'TSA Input'!J2262=\"Contingent\"),'TSA Input'!F2262,\"\"))","v":""},"","Required","Required"]
["",null,{"$f":"IF('TSA Input'!J2263=\"\",\"\",IF(OR('TSA Input'!J2263=\"Yes\",'TSA Input'!J2263=\"Contingent\"),'TSA Input'!B2263,\"Ineligible\"))","v":""},{"$f":"IF('TSA Input'!J2263=\"\",\"\",IF(OR('TSA Input'!J2263=\"Yes\",'TSA Input'!J2263=\"Contingent\"),'TSA Input'!I2263,\"\"))","v":""},{"$f":"IF('TSA Input'!J2263=\"\",\"\",IF(OR('TSA Input'!J2263=\"Yes\",'TSA Input'!J2263=\"Contingent\"),'TSA Input'!C2263,\"\"))","v":""},{"$f":"IF('TSA Input'!J2263=\"\",\"\",IF(OR('TSA Input'!J2263=\"Yes\",'TSA Input'!J2263=\"Contingent\"),'TSA Input'!D2263,\"\"))","v":""},{"$f":"IF('TSA Input'!J2263=\"\",\"\",IF(OR('TSA Input'!J2263=\"Yes\",'TSA Input'!J2263=\"Contingent\"),'TSA Input'!G2263,\"\"))","v":""},{"$f":"IF('TSA Input'!J2263=\"\",\"\",IF(OR('TSA Input'!J2263=\"Yes\",'TSA Input'!J2263=\"Contingent\"),'TSA Input'!F2263,\"\"))","v":""},"",{"$f":"IF('TSA Input'!J2263=\"\",\"\",IF(OR('TSA Input'!J2263=\"Yes\",'TSA Input'!J2263=\"Contingent\"),'TSA Input'!D2263,\"\"))","v":""},{"$f":"IF('TSA Input'!J2263=\"\",\"\",IF(OR('TSA Input'!J2263=\"Yes\",'TSA Input'!J2263=\"Contingent\"),'TSA Input'!G2263,\"\"))","v":""},{"$f":"IF('TSA Input'!J2263=\"\",\"\",IF(OR('TSA Input'!J2263=\"Yes\",'TSA Input'!J2263=\"Contingent\"),'TSA Input'!F2263,\"\"))","v":""},"","Required","Required"]
["",null,{"$f":"IF('TSA Input'!J2264=\"\",\"\",IF(OR('TSA Input'!J2264=\"Yes\",'TSA Input'!J2264=\"Contingent\"),'TSA Input'!B2264,\"Ineligible\"))","v":""},{"$f":"IF('TSA Input'!J2264=\"\",\"\",IF(OR('TSA Input'!J2264=\"Yes\",'TSA Input'!J2264=\"Contingent\"),'TSA Input'!I2264,\"\"))","v":""},{"$f":"IF('TSA Input'!J2264=\"\",\"\",IF(OR('TSA Input'!J2264=\"Yes\",'TSA Input'!J2264=\"Contingent\"),'TSA Input'!C2264,\"\"))","v":""},{"$f":"IF('TSA Input'!J2264=\"\",\"\",IF(OR('TSA Input'!J2264=\"Yes\",'TSA Input'!J2264=\"Contingent\"),'TSA Input'!D2264,\"\"))","v":""},{"$f":"IF('TSA Input'!J2264=\"\",\"\",IF(OR('TSA Input'!J2264=\"Yes\",'TSA Input'!J2264=\"Contingent\"),'TSA Input'!G2264,\"\"))","v":""},{"$f":"IF('TSA Input'!J2264=\"\",\"\",IF(OR('TSA Input'!J2264=\"Yes\",'TSA Input'!J2264=\"Contingent\"),'TSA Input'!F2264,\"\"))","v":""},"",{"$f":"IF('TSA Input'!J2264=\"\",\"\",IF(OR('TSA Input'!J2264=\"Yes\",'TSA Input'!J2264=\"Contingent\"),'TSA Input'!D2264,\"\"))","v":""},{"$f":"IF('TSA Input'!J2264=\"\",\"\",IF(OR('TSA Input'!J2264=\"Yes\",'TSA Input'!J2264=\"Contingent\"),'TSA Input'!G2264,\"\"))","v":""},{"$f":"IF('TSA Input'!J2264=\"\",\"\",IF(OR('TSA Input'!J2264=\"Yes\",'TSA Input'!J2264=\"Contingent\"),'TSA Input'!F2264,\"\"))","v":""},"","Required","Required"]
["",null,{"$f":"IF('TSA Input'!J2265=\"\",\"\",IF(OR('TSA Input'!J2265=\"Yes\",'TSA Input'!J2265=\"Contingent\"),'TSA Input'!B2265,\"Ineligible\"))","v":""},{"$f":"IF('TSA Input'!J2265=\"\",\"\",IF(OR('TSA Input'!J2265=\"Yes\",'TSA Input'!J2265=\"Contingent\"),'TSA Input'!I2265,\"\"))","v":""},{"$f":"IF('TSA Input'!J2265=\"\",\"\",IF(OR('TSA Input'!J2265=\"Yes\",'TSA Input'!J2265=\"Contingent\"),'TSA Input'!C2265,\"\"))","v":""},{"$f":"IF('TSA Input'!J2265=\"\",\"\",IF(OR('TSA Input'!J2265=\"Yes\",'TSA Input'!J2265=\"Contingent\"),'TSA Input'!D2265,\"\"))","v":""},{"$f":"IF('TSA Input'!J2265=\"\",\"\",IF(OR('TSA Input'!J2265=\"Yes\",'TSA Input'!J2265=\"Contingent\"),'TSA Input'!G2265,\"\"))","v":""},{"$f":"IF('TSA Input'!J2265=\"\",\"\",IF(OR('TSA Input'!J2265=\"Yes\",'TSA Input'!J2265=\"Contingent\"),'TSA Input'!F2265,\"\"))","v":""},"",{"$f":"IF('TSA Input'!J2265=\"\",\"\",IF(OR('TSA Input'!J2265=\"Yes\",'TSA Input'!J2265=\"Contingent\"),'TSA Input'!D2265,\"\"))","v":""},{"$f":"IF('TSA Input'!J2265=\"\",\"\",IF(OR('TSA Input'!J2265=\"Yes\",'TSA Input'!J2265=\"Contingent\"),'TSA Input'!G2265,\"\"))","v":""},{"$f":"IF('TSA Input'!J2265=\"\",\"\",IF(OR('TSA Input'!J2265=\"Yes\",'TSA Input'!J2265=\"Contingent\"),'TSA Input'!F2265,\"\"))","v":""},"","Required","Required"]
["",null,{"$f":"IF('TSA Input'!J2266=\"\",\"\",IF(OR('TSA Input'!J2266=\"Yes\",'TSA Input'!J2266=\"Contingent\"),'TSA Input'!B2266,\"Ineligible\"))","v":""},{"$f":"IF('TSA Input'!J2266=\"\",\"\",IF(OR('TSA Input'!J2266=\"Yes\",'TSA Input'!J2266=\"Contingent\"),'TSA Input'!I2266,\"\"))","v":""},{"$f":"IF('TSA Input'!J2266=\"\",\"\",IF(OR('TSA Input'!J2266=\"Yes\",'TSA Input'!J2266=\"Contingent\"),'TSA Input'!C2266,\"\"))","v":""},{"$f":"IF('TSA Input'!J2266=\"\",\"\",IF(OR('TSA Input'!J2266=\"Yes\",'TSA Input'!J2266=\"Contingent\"),'TSA Input'!D2266,\"\"))","v":""},{"$f":"IF('TSA Input'!J2266=\"\",\"\",IF(OR('TSA Input'!J2266=\"Yes\",'TSA Input'!J2266=\"Contingent\"),'TSA Input'!G2266,\"\"))","v":""},{"$f":"IF('TSA Input'!J2266=\"\",\"\",IF(OR('TSA Input'!J2266=\"Yes\",'TSA Input'!J2266=\"Contingent\"),'TSA Input'!F2266,\"\"))","v":""},"",{"$f":"IF('TSA Input'!J2266=\"\",\"\",IF(OR('TSA Input'!J2266=\"Yes\",'TSA Input'!J2266=\"Contingent\"),'TSA Input'!D2266,\"\"))","v":""},{"$f":"IF('TSA Input'!J2266=\"\",\"\",IF(OR('TSA Input'!J2266=\"Yes\",'TSA Input'!J2266=\"Contingent\"),'TSA Input'!G2266,\"\"))","v":""},{"$f":"IF('TSA Input'!J2266=\"\",\"\",IF(OR('TSA Input'!J2266=\"Yes\",'TSA Input'!J2266=\"Contingent\"),'TSA Input'!F2266,\"\"))","v":""},"","Required","Required"]
["",null,{"$f":"IF('TSA Input'!J2267=\"\",\"\",IF(OR('TSA Input'!J2267=\"Yes\",'TSA Input'!J2267=\"Contingent\"),'TSA Input'!B2267,\"Ineligible\"))","v":""},{"$f":"IF('TSA Input'!J2267=\"\",\"\",IF(OR('TSA Input'!J2267=\"Yes\",'TSA Input'!J2267=\"Contingent\"),'TSA Input'!I2267,\"\"))","v":""},{"$f":"IF('TSA Input'!J2267=\"\",\"\",IF(OR('TSA Input'!J2267=\"Yes\",'TSA Input'!J2267=\"Contingent\"),'TSA Input'!C2267,\"\"))","v":""},{"$f":"IF('TSA Input'!J2267=\"\",\"\",IF(OR('TSA Input'!J2267=\"Yes\",'TSA Input'!J2267=\"Contingent\"),'TSA Input'!D2267,\"\"))","v":""},{"$f":"IF('TSA Input'!J2267=\"\",\"\",IF(OR('TSA Input'!J2267=\"Yes\",'TSA Input'!J2267=\"Contingent\"),'TSA Input'!G2267,\"\"))","v":""},{"$f":"IF('TSA Input'!J2267=\"\",\"\",IF(OR('TSA Input'!J2267=\"Yes\",'TSA Input'!J2267=\"Contingent\"),'TSA Input'!F2267,\"\"))","v":""},"",{"$f":"IF('TSA Input'!J2267=\"\",\"\",IF(OR('TSA Input'!J2267=\"Yes\",'TSA Input'!J2267=\"Contingent\"),'TSA Input'!D2267,\"\"))","v":""},{"$f":"IF('TSA Input'!J2267=\"\",\"\",IF(OR('TSA Input'!J2267=\"Yes\",'TSA Input'!J2267=\"Contingent\"),'TSA Input'!G2267,\"\"))","v":""},{"$f":"IF('TSA Input'!J2267=\"\",\"\",IF(OR('TSA Input'!J2267=\"Yes\",'TSA Input'!J2267=\"Contingent\"),'TSA Input'!F2267,\"\"))","v":""},"","Required","Required"]
["",null,{"$f":"IF('TSA Input'!J2268=\"\",\"\",IF(OR('TSA Input'!J2268=\"Yes\",'TSA Input'!J2268=\"Contingent\"),'TSA Input'!B2268,\"Ineligible\"))","v":""},{"$f":"IF('TSA Input'!J2268=\"\",\"\",IF(OR('TSA Input'!J2268=\"Yes\",'TSA Input'!J2268=\"Contingent\"),'TSA Input'!I2268,\"\"))","v":""},{"$f":"IF('TSA Input'!J2268=\"\",\"\",IF(OR('TSA Input'!J2268=\"Yes\",'TSA Input'!J2268=\"Contingent\"),'TSA Input'!C2268,\"\"))","v":""},{"$f":"IF('TSA Input'!J2268=\"\",\"\",IF(OR('TSA Input'!J2268=\"Yes\",'TSA Input'!J2268=\"Contingent\"),'TSA Input'!D2268,\"\"))","v":""},{"$f":"IF('TSA Input'!J2268=\"\",\"\",IF(OR('TSA Input'!J2268=\"Yes\",'TSA Input'!J2268=\"Contingent\"),'TSA Input'!G2268,\"\"))","v":""},{"$f":"IF('TSA Input'!J2268=\"\",\"\",IF(OR('TSA Input'!J2268=\"Yes\",'TSA Input'!J2268=\"Contingent\"),'TSA Input'!F2268,\"\"))","v":""},"",{"$f":"IF('TSA Input'!J2268=\"\",\"\",IF(OR('TSA Input'!J2268=\"Yes\",'TSA Input'!J2268=\"Contingent\"),'TSA Input'!D2268,\"\"))","v":""},{"$f":"IF('TSA Input'!J2268=\"\",\"\",IF(OR('TSA Input'!J2268=\"Yes\",'TSA Input'!J2268=\"Contingent\"),'TSA Input'!G2268,\"\"))","v":""},{"$f":"IF('TSA Input'!J2268=\"\",\"\",IF(OR('TSA Input'!J2268=\"Yes\",'TSA Input'!J2268=\"Contingent\"),'TSA Input'!F2268,\"\"))","v":""},"","Required","Required"]
["",null,{"$f":"IF('TSA Input'!J2269=\"\",\"\",IF(OR('TSA Input'!J2269=\"Yes\",'TSA Input'!J2269=\"Contingent\"),'TSA Input'!B2269,\"Ineligible\"))","v":""},{"$f":"IF('TSA Input'!J2269=\"\",\"\",IF(OR('TSA Input'!J2269=\"Yes\",'TSA Input'!J2269=\"Contingent\"),'TSA Input'!I2269,\"\"))","v":""},{"$f":"IF('TSA Input'!J2269=\"\",\"\",IF(OR('TSA Input'!J2269=\"Yes\",'TSA Input'!J2269=\"Contingent\"),'TSA Input'!C2269,\"\"))","v":""},{"$f":"IF('TSA Input'!J2269=\"\",\"\",IF(OR('TSA Input'!J2269=\"Yes\",'TSA Input'!J2269=\"Contingent\"),'TSA Input'!D2269,\"\"))","v":""},{"$f":"IF('TSA Input'!J2269=\"\",\"\",IF(OR('TSA Input'!J2269=\"Yes\",'TSA Input'!J2269=\"Contingent\"),'TSA Input'!G2269,\"\"))","v":""},{"$f":"IF('TSA Input'!J2269=\"\",\"\",IF(OR('TSA Input'!J2269=\"Yes\",'TSA Input'!J2269=\"Contingent\"),'TSA Input'!F2269,\"\"))","v":""},"",{"$f":"IF('TSA Input'!J2269=\"\",\"\",IF(OR('TSA Input'!J2269=\"Yes\",'TSA Input'!J2269=\"Contingent\"),'TSA Input'!D2269,\"\"))","v":""},{"$f":"IF('TSA Input'!J2269=\"\",\"\",IF(OR('TSA Input'!J2269=\"Yes\",'TSA Input'!J2269=\"Contingent\"),'TSA Input'!G2269,\"\"))","v":""},{"$f":"IF('TSA Input'!J2269=\"\",\"\",IF(OR('TSA Input'!J2269=\"Yes\",'TSA Input'!J2269=\"Contingent\"),'TSA Input'!F2269,\"\"))","v":""},"","Required","Required"]
["",null,{"$f":"IF('TSA Input'!J2270=\"\",\"\",IF(OR('TSA Input'!J2270=\"Yes\",'TSA Input'!J2270=\"Contingent\"),'TSA Input'!B2270,\"Ineligible\"))","v":""},{"$f":"IF('TSA Input'!J2270=\"\",\"\",IF(OR('TSA Input'!J2270=\"Yes\",'TSA Input'!J2270=\"Contingent\"),'TSA Input'!I2270,\"\"))","v":""},{"$f":"IF('TSA Input'!J2270=\"\",\"\",IF(OR('TSA Input'!J2270=\"Yes\",'TSA Input'!J2270=\"Contingent\"),'TSA Input'!C2270,\"\"))","v":""},{"$f":"IF('TSA Input'!J2270=\"\",\"\",IF(OR('TSA Input'!J2270=\"Yes\",'TSA Input'!J2270=\"Contingent\"),'TSA Input'!D2270,\"\"))","v":""},{"$f":"IF('TSA Input'!J2270=\"\",\"\",IF(OR('TSA Input'!J2270=\"Yes\",'TSA Input'!J2270=\"Contingent\"),'TSA Input'!G2270,\"\"))","v":""},{"$f":"IF('TSA Input'!J2270=\"\",\"\",IF(OR('TSA Input'!J2270=\"Yes\",'TSA Input'!J2270=\"Contingent\"),'TSA Input'!F2270,\"\"))","v":""},"",{"$f":"IF('TSA Input'!J2270=\"\",\"\",IF(OR('TSA Input'!J2270=\"Yes\",'TSA Input'!J2270=\"Contingent\"),'TSA Input'!D2270,\"\"))","v":""},{"$f":"IF('TSA Input'!J2270=\"\",\"\",IF(OR('TSA Input'!J2270=\"Yes\",'TSA Input'!J2270=\"Contingent\"),'TSA Input'!G2270,\"\"))","v":""},{"$f":"IF('TSA Input'!J2270=\"\",\"\",IF(OR('TSA Input'!J2270=\"Yes\",'TSA Input'!J2270=\"Contingent\"),'TSA Input'!F2270,\"\"))","v":""},"","Required","Required"]
["",null,{"$f":"IF('TSA Input'!J2271=\"\",\"\",IF(OR('TSA Input'!J2271=\"Yes\",'TSA Input'!J2271=\"Contingent\"),'TSA Input'!B2271,\"Ineligible\"))","v":""},{"$f":"IF('TSA Input'!J2271=\"\",\"\",IF(OR('TSA Input'!J2271=\"Yes\",'TSA Input'!J2271=\"Contingent\"),'TSA Input'!I2271,\"\"))","v":""},{"$f":"IF('TSA Input'!J2271=\"\",\"\",IF(OR('TSA Input'!J2271=\"Yes\",'TSA Input'!J2271=\"Contingent\"),'TSA Input'!C2271,\"\"))","v":""},{"$f":"IF('TSA Input'!J2271=\"\",\"\",IF(OR('TSA Input'!J2271=\"Yes\",'TSA Input'!J2271=\"Contingent\"),'TSA Input'!D2271,\"\"))","v":""},{"$f":"IF('TSA Input'!J2271=\"\",\"\",IF(OR('TSA Input'!J2271=\"Yes\",'TSA Input'!J2271=\"Contingent\"),'TSA Input'!G2271,\"\"))","v":""},{"$f":"IF('TSA Input'!J2271=\"\",\"\",IF(OR('TSA Input'!J2271=\"Yes\",'TSA Input'!J2271=\"Contingent\"),'TSA Input'!F2271,\"\"))","v":""},"",{"$f":"IF('TSA Input'!J2271=\"\",\"\",IF(OR('TSA Input'!J2271=\"Yes\",'TSA Input'!J2271=\"Contingent\"),'TSA Input'!D2271,\"\"))","v":""},{"$f":"IF('TSA Input'!J2271=\"\",\"\",IF(OR('TSA Input'!J2271=\"Yes\",'TSA Input'!J2271=\"Contingent\"),'TSA Input'!G2271,\"\"))","v":""},{"$f":"IF('TSA Input'!J2271=\"\",\"\",IF(OR('TSA Input'!J2271=\"Yes\",'TSA Input'!J2271=\"Contingent\"),'TSA Input'!F2271,\"\"))","v":""},"","Required","Required"]
["",null,{"$f":"IF('TSA Input'!J2272=\"\",\"\",IF(OR('TSA Input'!J2272=\"Yes\",'TSA Input'!J2272=\"Contingent\"),'TSA Input'!B2272,\"Ineligible\"))","v":""},{"$f":"IF('TSA Input'!J2272=\"\",\"\",IF(OR('TSA Input'!J2272=\"Yes\",'TSA Input'!J2272=\"Contingent\"),'TSA Input'!I2272,\"\"))","v":""},{"$f":"IF('TSA Input'!J2272=\"\",\"\",IF(OR('TSA Input'!J2272=\"Yes\",'TSA Input'!J2272=\"Contingent\"),'TSA Input'!C2272,\"\"))","v":""},{"$f":"IF('TSA Input'!J2272=\"\",\"\",IF(OR('TSA Input'!J2272=\"Yes\",'TSA Input'!J2272=\"Contingent\"),'TSA Input'!D2272,\"\"))","v":""},{"$f":"IF('TSA Input'!J2272=\"\",\"\",IF(OR('TSA Input'!J2272=\"Yes\",'TSA Input'!J2272=\"Contingent\"),'TSA Input'!G2272,\"\"))","v":""},{"$f":"IF('TSA Input'!J2272=\"\",\"\",IF(OR('TSA Input'!J2272=\"Yes\",'TSA Input'!J2272=\"Contingent\"),'TSA Input'!F2272,\"\"))","v":""},"",{"$f":"IF('TSA Input'!J2272=\"\",\"\",IF(OR('TSA Input'!J2272=\"Yes\",'TSA Input'!J2272=\"Contingent\"),'TSA Input'!D2272,\"\"))","v":""},{"$f":"IF('TSA Input'!J2272=\"\",\"\",IF(OR('TSA Input'!J2272=\"Yes\",'TSA Input'!J2272=\"Contingent\"),'TSA Input'!G2272,\"\"))","v":""},{"$f":"IF('TSA Input'!J2272=\"\",\"\",IF(OR('TSA Input'!J2272=\"Yes\",'TSA Input'!J2272=\"Contingent\"),'TSA Input'!F2272,\"\"))","v":""},"","Required","Required"]
["",null,{"$f":"IF('TSA Input'!J2273=\"\",\"\",IF(OR('TSA Input'!J2273=\"Yes\",'TSA Input'!J2273=\"Contingent\"),'TSA Input'!B2273,\"Ineligible\"))","v":""},{"$f":"IF('TSA Input'!J2273=\"\",\"\",IF(OR('TSA Input'!J2273=\"Yes\",'TSA Input'!J2273=\"Contingent\"),'TSA Input'!I2273,\"\"))","v":""},{"$f":"IF('TSA Input'!J2273=\"\",\"\",IF(OR('TSA Input'!J2273=\"Yes\",'TSA Input'!J2273=\"Contingent\"),'TSA Input'!C2273,\"\"))","v":""},{"$f":"IF('TSA Input'!J2273=\"\",\"\",IF(OR('TSA Input'!J2273=\"Yes\",'TSA Input'!J2273=\"Contingent\"),'TSA Input'!D2273,\"\"))","v":""},{"$f":"IF('TSA Input'!J2273=\"\",\"\",IF(OR('TSA Input'!J2273=\"Yes\",'TSA Input'!J2273=\"Contingent\"),'TSA Input'!G2273,\"\"))","v":""},{"$f":"IF('TSA Input'!J2273=\"\",\"\",IF(OR('TSA Input'!J2273=\"Yes\",'TSA Input'!J2273=\"Contingent\"),'TSA Input'!F2273,\"\"))","v":""},"",{"$f":"IF('TSA Input'!J2273=\"\",\"\",IF(OR('TSA Input'!J2273=\"Yes\",'TSA Input'!J2273=\"Contingent\"),'TSA Input'!D2273,\"\"))","v":""},{"$f":"IF('TSA Input'!J2273=\"\",\"\",IF(OR('TSA Input'!J2273=\"Yes\",'TSA Input'!J2273=\"Contingent\"),'TSA Input'!G2273,\"\"))","v":""},{"$f":"IF('TSA Input'!J2273=\"\",\"\",IF(OR('TSA Input'!J2273=\"Yes\",'TSA Input'!J2273=\"Contingent\"),'TSA Input'!F2273,\"\"))","v":""},"","Required","Required"]
["",null,{"$f":"IF('TSA Input'!J2274=\"\",\"\",IF(OR('TSA Input'!J2274=\"Yes\",'TSA Input'!J2274=\"Contingent\"),'TSA Input'!B2274,\"Ineligible\"))","v":""},{"$f":"IF('TSA Input'!J2274=\"\",\"\",IF(OR('TSA Input'!J2274=\"Yes\",'TSA Input'!J2274=\"Contingent\"),'TSA Input'!I2274,\"\"))","v":""},{"$f":"IF('TSA Input'!J2274=\"\",\"\",IF(OR('TSA Input'!J2274=\"Yes\",'TSA Input'!J2274=\"Contingent\"),'TSA Input'!C2274,\"\"))","v":""},{"$f":"IF('TSA Input'!J2274=\"\",\"\",IF(OR('TSA Input'!J2274=\"Yes\",'TSA Input'!J2274=\"Contingent\"),'TSA Input'!D2274,\"\"))","v":""},{"$f":"IF('TSA Input'!J2274=\"\",\"\",IF(OR('TSA Input'!J2274=\"Yes\",'TSA Input'!J2274=\"Contingent\"),'TSA Input'!G2274,\"\"))","v":""},{"$f":"IF('TSA Input'!J2274=\"\",\"\",IF(OR('TSA Input'!J2274=\"Yes\",'TSA Input'!J2274=\"Contingent\"),'TSA Input'!F2274,\"\"))","v":""},"",{"$f":"IF('TSA Input'!J2274=\"\",\"\",IF(OR('TSA Input'!J2274=\"Yes\",'TSA Input'!J2274=\"Contingent\"),'TSA Input'!D2274,\"\"))","v":""},{"$f":"IF('TSA Input'!J2274=\"\",\"\",IF(OR('TSA Input'!J2274=\"Yes\",'TSA Input'!J2274=\"Contingent\"),'TSA Input'!G2274,\"\"))","v":""},{"$f":"IF('TSA Input'!J2274=\"\",\"\",IF(OR('TSA Input'!J2274=\"Yes\",'TSA Input'!J2274=\"Contingent\"),'TSA Input'!F2274,\"\"))","v":""},"","Required","Required"]
["",null,{"$f":"IF('TSA Input'!J2275=\"\",\"\",IF(OR('TSA Input'!J2275=\"Yes\",'TSA Input'!J2275=\"Contingent\"),'TSA Input'!B2275,\"Ineligible\"))","v":""},{"$f":"IF('TSA Input'!J2275=\"\",\"\",IF(OR('TSA Input'!J2275=\"Yes\",'TSA Input'!J2275=\"Contingent\"),'TSA Input'!I2275,\"\"))","v":""},{"$f":"IF('TSA Input'!J2275=\"\",\"\",IF(OR('TSA Input'!J2275=\"Yes\",'TSA Input'!J2275=\"Contingent\"),'TSA Input'!C2275,\"\"))","v":""},{"$f":"IF('TSA Input'!J2275=\"\",\"\",IF(OR('TSA Input'!J2275=\"Yes\",'TSA Input'!J2275=\"Contingent\"),'TSA Input'!D2275,\"\"))","v":""},{"$f":"IF('TSA Input'!J2275=\"\",\"\",IF(OR('TSA Input'!J2275=\"Yes\",'TSA Input'!J2275=\"Contingent\"),'TSA Input'!G2275,\"\"))","v":""},{"$f":"IF('TSA Input'!J2275=\"\",\"\",IF(OR('TSA Input'!J2275=\"Yes\",'TSA Input'!J2275=\"Contingent\"),'TSA Input'!F2275,\"\"))","v":""},"",{"$f":"IF('TSA Input'!J2275=\"\",\"\",IF(OR('TSA Input'!J2275=\"Yes\",'TSA Input'!J2275=\"Contingent\"),'TSA Input'!D2275,\"\"))","v":""},{"$f":"IF('TSA Input'!J2275=\"\",\"\",IF(OR('TSA Input'!J2275=\"Yes\",'TSA Input'!J2275=\"Contingent\"),'TSA Input'!G2275,\"\"))","v":""},{"$f":"IF('TSA Input'!J2275=\"\",\"\",IF(OR('TSA Input'!J2275=\"Yes\",'TSA Input'!J2275=\"Contingent\"),'TSA Input'!F2275,\"\"))","v":""},"","Required","Required"]
["",null,{"$f":"IF('TSA Input'!J2276=\"\",\"\",IF(OR('TSA Input'!J2276=\"Yes\",'TSA Input'!J2276=\"Contingent\"),'TSA Input'!B2276,\"Ineligible\"))","v":""},{"$f":"IF('TSA Input'!J2276=\"\",\"\",IF(OR('TSA Input'!J2276=\"Yes\",'TSA Input'!J2276=\"Contingent\"),'TSA Input'!I2276,\"\"))","v":""},{"$f":"IF('TSA Input'!J2276=\"\",\"\",IF(OR('TSA Input'!J2276=\"Yes\",'TSA Input'!J2276=\"Contingent\"),'TSA Input'!C2276,\"\"))","v":""},{"$f":"IF('TSA Input'!J2276=\"\",\"\",IF(OR('TSA Input'!J2276=\"Yes\",'TSA Input'!J2276=\"Contingent\"),'TSA Input'!D2276,\"\"))","v":""},{"$f":"IF('TSA Input'!J2276=\"\",\"\",IF(OR('TSA Input'!J2276=\"Yes\",'TSA Input'!J2276=\"Contingent\"),'TSA Input'!G2276,\"\"))","v":""},{"$f":"IF('TSA Input'!J2276=\"\",\"\",IF(OR('TSA Input'!J2276=\"Yes\",'TSA Input'!J2276=\"Contingent\"),'TSA Input'!F2276,\"\"))","v":""},"",{"$f":"IF('TSA Input'!J2276=\"\",\"\",IF(OR('TSA Input'!J2276=\"Yes\",'TSA Input'!J2276=\"Contingent\"),'TSA Input'!D2276,\"\"))","v":""},{"$f":"IF('TSA Input'!J2276=\"\",\"\",IF(OR('TSA Input'!J2276=\"Yes\",'TSA Input'!J2276=\"Contingent\"),'TSA Input'!G2276,\"\"))","v":""},{"$f":"IF('TSA Input'!J2276=\"\",\"\",IF(OR('TSA Input'!J2276=\"Yes\",'TSA Input'!J2276=\"Contingent\"),'TSA Input'!F2276,\"\"))","v":""},"","Required","Required"]
["",null,{"$f":"IF('TSA Input'!J2277=\"\",\"\",IF(OR('TSA Input'!J2277=\"Yes\",'TSA Input'!J2277=\"Contingent\"),'TSA Input'!B2277,\"Ineligible\"))","v":""},{"$f":"IF('TSA Input'!J2277=\"\",\"\",IF(OR('TSA Input'!J2277=\"Yes\",'TSA Input'!J2277=\"Contingent\"),'TSA Input'!I2277,\"\"))","v":""},{"$f":"IF('TSA Input'!J2277=\"\",\"\",IF(OR('TSA Input'!J2277=\"Yes\",'TSA Input'!J2277=\"Contingent\"),'TSA Input'!C2277,\"\"))","v":""},{"$f":"IF('TSA Input'!J2277=\"\",\"\",IF(OR('TSA Input'!J2277=\"Yes\",'TSA Input'!J2277=\"Contingent\"),'TSA Input'!D2277,\"\"))","v":""},{"$f":"IF('TSA Input'!J2277=\"\",\"\",IF(OR('TSA Input'!J2277=\"Yes\",'TSA Input'!J2277=\"Contingent\"),'TSA Input'!G2277,\"\"))","v":""},{"$f":"IF('TSA Input'!J2277=\"\",\"\",IF(OR('TSA Input'!J2277=\"Yes\",'TSA Input'!J2277=\"Contingent\"),'TSA Input'!F2277,\"\"))","v":""},"",{"$f":"IF('TSA Input'!J2277=\"\",\"\",IF(OR('TSA Input'!J2277=\"Yes\",'TSA Input'!J2277=\"Contingent\"),'TSA Input'!D2277,\"\"))","v":""},{"$f":"IF('TSA Input'!J2277=\"\",\"\",IF(OR('TSA Input'!J2277=\"Yes\",'TSA Input'!J2277=\"Contingent\"),'TSA Input'!G2277,\"\"))","v":""},{"$f":"IF('TSA Input'!J2277=\"\",\"\",IF(OR('TSA Input'!J2277=\"Yes\",'TSA Input'!J2277=\"Contingent\"),'TSA Input'!F2277,\"\"))","v":""},"","Required","Required"]
["",null,{"$f":"IF('TSA Input'!J2278=\"\",\"\",IF(OR('TSA Input'!J2278=\"Yes\",'TSA Input'!J2278=\"Contingent\"),'TSA Input'!B2278,\"Ineligible\"))","v":""},{"$f":"IF('TSA Input'!J2278=\"\",\"\",IF(OR('TSA Input'!J2278=\"Yes\",'TSA Input'!J2278=\"Contingent\"),'TSA Input'!I2278,\"\"))","v":""},{"$f":"IF('TSA Input'!J2278=\"\",\"\",IF(OR('TSA Input'!J2278=\"Yes\",'TSA Input'!J2278=\"Contingent\"),'TSA Input'!C2278,\"\"))","v":""},{"$f":"IF('TSA Input'!J2278=\"\",\"\",IF(OR('TSA Input'!J2278=\"Yes\",'TSA Input'!J2278=\"Contingent\"),'TSA Input'!D2278,\"\"))","v":""},{"$f":"IF('TSA Input'!J2278=\"\",\"\",IF(OR('TSA Input'!J2278=\"Yes\",'TSA Input'!J2278=\"Contingent\"),'TSA Input'!G2278,\"\"))","v":""},{"$f":"IF('TSA Input'!J2278=\"\",\"\",IF(OR('TSA Input'!J2278=\"Yes\",'TSA Input'!J2278=\"Contingent\"),'TSA Input'!F2278,\"\"))","v":""},"",{"$f":"IF('TSA Input'!J2278=\"\",\"\",IF(OR('TSA Input'!J2278=\"Yes\",'TSA Input'!J2278=\"Contingent\"),'TSA Input'!D2278,\"\"))","v":""},{"$f":"IF('TSA Input'!J2278=\"\",\"\",IF(OR('TSA Input'!J2278=\"Yes\",'TSA Input'!J2278=\"Contingent\"),'TSA Input'!G2278,\"\"))","v":""},{"$f":"IF('TSA Input'!J2278=\"\",\"\",IF(OR('TSA Input'!J2278=\"Yes\",'TSA Input'!J2278=\"Contingent\"),'TSA Input'!F2278,\"\"))","v":""},"","Required","Required"]
["",null,{"$f":"IF('TSA Input'!J2279=\"\",\"\",IF(OR('TSA Input'!J2279=\"Yes\",'TSA Input'!J2279=\"Contingent\"),'TSA Input'!B2279,\"Ineligible\"))","v":""},{"$f":"IF('TSA Input'!J2279=\"\",\"\",IF(OR('TSA Input'!J2279=\"Yes\",'TSA Input'!J2279=\"Contingent\"),'TSA Input'!I2279,\"\"))","v":""},{"$f":"IF('TSA Input'!J2279=\"\",\"\",IF(OR('TSA Input'!J2279=\"Yes\",'TSA Input'!J2279=\"Contingent\"),'TSA Input'!C2279,\"\"))","v":""},{"$f":"IF('TSA Input'!J2279=\"\",\"\",IF(OR('TSA Input'!J2279=\"Yes\",'TSA Input'!J2279=\"Contingent\"),'TSA Input'!D2279,\"\"))","v":""},{"$f":"IF('TSA Input'!J2279=\"\",\"\",IF(OR('TSA Input'!J2279=\"Yes\",'TSA Input'!J2279=\"Contingent\"),'TSA Input'!G2279,\"\"))","v":""},{"$f":"IF('TSA Input'!J2279=\"\",\"\",IF(OR('TSA Input'!J2279=\"Yes\",'TSA Input'!J2279=\"Contingent\"),'TSA Input'!F2279,\"\"))","v":""},"",{"$f":"IF('TSA Input'!J2279=\"\",\"\",IF(OR('TSA Input'!J2279=\"Yes\",'TSA Input'!J2279=\"Contingent\"),'TSA Input'!D2279,\"\"))","v":""},{"$f":"IF('TSA Input'!J2279=\"\",\"\",IF(OR('TSA Input'!J2279=\"Yes\",'TSA Input'!J2279=\"Contingent\"),'TSA Input'!G2279,\"\"))","v":""},{"$f":"IF('TSA Input'!J2279=\"\",\"\",IF(OR('TSA Input'!J2279=\"Yes\",'TSA Input'!J2279=\"Contingent\"),'TSA Input'!F2279,\"\"))","v":""},"","Required","Required"]
["",null,{"$f":"IF('TSA Input'!J2280=\"\",\"\",IF(OR('TSA Input'!J2280=\"Yes\",'TSA Input'!J2280=\"Contingent\"),'TSA Input'!B2280,\"Ineligible\"))","v":""},{"$f":"IF('TSA Input'!J2280=\"\",\"\",IF(OR('TSA Input'!J2280=\"Yes\",'TSA Input'!J2280=\"Contingent\"),'TSA Input'!I2280,\"\"))","v":""},{"$f":"IF('TSA Input'!J2280=\"\",\"\",IF(OR('TSA Input'!J2280=\"Yes\",'TSA Input'!J2280=\"Contingent\"),'TSA Input'!C2280,\"\"))","v":""},{"$f":"IF('TSA Input'!J2280=\"\",\"\",IF(OR('TSA Input'!J2280=\"Yes\",'TSA Input'!J2280=\"Contingent\"),'TSA Input'!D2280,\"\"))","v":""},{"$f":"IF('TSA Input'!J2280=\"\",\"\",IF(OR('TSA Input'!J2280=\"Yes\",'TSA Input'!J2280=\"Contingent\"),'TSA Input'!G2280,\"\"))","v":""},{"$f":"IF('TSA Input'!J2280=\"\",\"\",IF(OR('TSA Input'!J2280=\"Yes\",'TSA Input'!J2280=\"Contingent\"),'TSA Input'!F2280,\"\"))","v":""},"",{"$f":"IF('TSA Input'!J2280=\"\",\"\",IF(OR('TSA Input'!J2280=\"Yes\",'TSA Input'!J2280=\"Contingent\"),'TSA Input'!D2280,\"\"))","v":""},{"$f":"IF('TSA Input'!J2280=\"\",\"\",IF(OR('TSA Input'!J2280=\"Yes\",'TSA Input'!J2280=\"Contingent\"),'TSA Input'!G2280,\"\"))","v":""},{"$f":"IF('TSA Input'!J2280=\"\",\"\",IF(OR('TSA Input'!J2280=\"Yes\",'TSA Input'!J2280=\"Contingent\"),'TSA Input'!F2280,\"\"))","v":""},"","Required","Required"]
["",null,{"$f":"IF('TSA Input'!J2281=\"\",\"\",IF(OR('TSA Input'!J2281=\"Yes\",'TSA Input'!J2281=\"Contingent\"),'TSA Input'!B2281,\"Ineligible\"))","v":""},{"$f":"IF('TSA Input'!J2281=\"\",\"\",IF(OR('TSA Input'!J2281=\"Yes\",'TSA Input'!J2281=\"Contingent\"),'TSA Input'!I2281,\"\"))","v":""},{"$f":"IF('TSA Input'!J2281=\"\",\"\",IF(OR('TSA Input'!J2281=\"Yes\",'TSA Input'!J2281=\"Contingent\"),'TSA Input'!C2281,\"\"))","v":""},{"$f":"IF('TSA Input'!J2281=\"\",\"\",IF(OR('TSA Input'!J2281=\"Yes\",'TSA Input'!J2281=\"Contingent\"),'TSA Input'!D2281,\"\"))","v":""},{"$f":"IF('TSA Input'!J2281=\"\",\"\",IF(OR('TSA Input'!J2281=\"Yes\",'TSA Input'!J2281=\"Contingent\"),'TSA Input'!G2281,\"\"))","v":""},{"$f":"IF('TSA Input'!J2281=\"\",\"\",IF(OR('TSA Input'!J2281=\"Yes\",'TSA Input'!J2281=\"Contingent\"),'TSA Input'!F2281,\"\"))","v":""},"",{"$f":"IF('TSA Input'!J2281=\"\",\"\",IF(OR('TSA Input'!J2281=\"Yes\",'TSA Input'!J2281=\"Contingent\"),'TSA Input'!D2281,\"\"))","v":""},{"$f":"IF('TSA Input'!J2281=\"\",\"\",IF(OR('TSA Input'!J2281=\"Yes\",'TSA Input'!J2281=\"Contingent\"),'TSA Input'!G2281,\"\"))","v":""},{"$f":"IF('TSA Input'!J2281=\"\",\"\",IF(OR('TSA Input'!J2281=\"Yes\",'TSA Input'!J2281=\"Contingent\"),'TSA Input'!F2281,\"\"))","v":""},"","Required","Required"]
["",null,{"$f":"IF('TSA Input'!J2282=\"\",\"\",IF(OR('TSA Input'!J2282=\"Yes\",'TSA Input'!J2282=\"Contingent\"),'TSA Input'!B2282,\"Ineligible\"))","v":""},{"$f":"IF('TSA Input'!J2282=\"\",\"\",IF(OR('TSA Input'!J2282=\"Yes\",'TSA Input'!J2282=\"Contingent\"),'TSA Input'!I2282,\"\"))","v":""},{"$f":"IF('TSA Input'!J2282=\"\",\"\",IF(OR('TSA Input'!J2282=\"Yes\",'TSA Input'!J2282=\"Contingent\"),'TSA Input'!C2282,\"\"))","v":""},{"$f":"IF('TSA Input'!J2282=\"\",\"\",IF(OR('TSA Input'!J2282=\"Yes\",'TSA Input'!J2282=\"Contingent\"),'TSA Input'!D2282,\"\"))","v":""},{"$f":"IF('TSA Input'!J2282=\"\",\"\",IF(OR('TSA Input'!J2282=\"Yes\",'TSA Input'!J2282=\"Contingent\"),'TSA Input'!G2282,\"\"))","v":""},{"$f":"IF('TSA Input'!J2282=\"\",\"\",IF(OR('TSA Input'!J2282=\"Yes\",'TSA Input'!J2282=\"Contingent\"),'TSA Input'!F2282,\"\"))","v":""},"",{"$f":"IF('TSA Input'!J2282=\"\",\"\",IF(OR('TSA Input'!J2282=\"Yes\",'TSA Input'!J2282=\"Contingent\"),'TSA Input'!D2282,\"\"))","v":""},{"$f":"IF('TSA Input'!J2282=\"\",\"\",IF(OR('TSA Input'!J2282=\"Yes\",'TSA Input'!J2282=\"Contingent\"),'TSA Input'!G2282,\"\"))","v":""},{"$f":"IF('TSA Input'!J2282=\"\",\"\",IF(OR('TSA Input'!J2282=\"Yes\",'TSA Input'!J2282=\"Contingent\"),'TSA Input'!F2282,\"\"))","v":""},"","Required","Required"]
["",null,{"$f":"IF('TSA Input'!J2283=\"\",\"\",IF(OR('TSA Input'!J2283=\"Yes\",'TSA Input'!J2283=\"Contingent\"),'TSA Input'!B2283,\"Ineligible\"))","v":""},{"$f":"IF('TSA Input'!J2283=\"\",\"\",IF(OR('TSA Input'!J2283=\"Yes\",'TSA Input'!J2283=\"Contingent\"),'TSA Input'!I2283,\"\"))","v":""},{"$f":"IF('TSA Input'!J2283=\"\",\"\",IF(OR('TSA Input'!J2283=\"Yes\",'TSA Input'!J2283=\"Contingent\"),'TSA Input'!C2283,\"\"))","v":""},{"$f":"IF('TSA Input'!J2283=\"\",\"\",IF(OR('TSA Input'!J2283=\"Yes\",'TSA Input'!J2283=\"Contingent\"),'TSA Input'!D2283,\"\"))","v":""},{"$f":"IF('TSA Input'!J2283=\"\",\"\",IF(OR('TSA Input'!J2283=\"Yes\",'TSA Input'!J2283=\"Contingent\"),'TSA Input'!G2283,\"\"))","v":""},{"$f":"IF('TSA Input'!J2283=\"\",\"\",IF(OR('TSA Input'!J2283=\"Yes\",'TSA Input'!J2283=\"Contingent\"),'TSA Input'!F2283,\"\"))","v":""},"",{"$f":"IF('TSA Input'!J2283=\"\",\"\",IF(OR('TSA Input'!J2283=\"Yes\",'TSA Input'!J2283=\"Contingent\"),'TSA Input'!D2283,\"\"))","v":""},{"$f":"IF('TSA Input'!J2283=\"\",\"\",IF(OR('TSA Input'!J2283=\"Yes\",'TSA Input'!J2283=\"Contingent\"),'TSA Input'!G2283,\"\"))","v":""},{"$f":"IF('TSA Input'!J2283=\"\",\"\",IF(OR('TSA Input'!J2283=\"Yes\",'TSA Input'!J2283=\"Contingent\"),'TSA Input'!F2283,\"\"))","v":""},"","Required","Required"]
["",null,{"$f":"IF('TSA Input'!J2284=\"\",\"\",IF(OR('TSA Input'!J2284=\"Yes\",'TSA Input'!J2284=\"Contingent\"),'TSA Input'!B2284,\"Ineligible\"))","v":""},{"$f":"IF('TSA Input'!J2284=\"\",\"\",IF(OR('TSA Input'!J2284=\"Yes\",'TSA Input'!J2284=\"Contingent\"),'TSA Input'!I2284,\"\"))","v":""},{"$f":"IF('TSA Input'!J2284=\"\",\"\",IF(OR('TSA Input'!J2284=\"Yes\",'TSA Input'!J2284=\"Contingent\"),'TSA Input'!C2284,\"\"))","v":""},{"$f":"IF('TSA Input'!J2284=\"\",\"\",IF(OR('TSA Input'!J2284=\"Yes\",'TSA Input'!J2284=\"Contingent\"),'TSA Input'!D2284,\"\"))","v":""},{"$f":"IF('TSA Input'!J2284=\"\",\"\",IF(OR('TSA Input'!J2284=\"Yes\",'TSA Input'!J2284=\"Contingent\"),'TSA Input'!G2284,\"\"))","v":""},{"$f":"IF('TSA Input'!J2284=\"\",\"\",IF(OR('TSA Input'!J2284=\"Yes\",'TSA Input'!J2284=\"Contingent\"),'TSA Input'!F2284,\"\"))","v":""},"",{"$f":"IF('TSA Input'!J2284=\"\",\"\",IF(OR('TSA Input'!J2284=\"Yes\",'TSA Input'!J2284=\"Contingent\"),'TSA Input'!D2284,\"\"))","v":""},{"$f":"IF('TSA Input'!J2284=\"\",\"\",IF(OR('TSA Input'!J2284=\"Yes\",'TSA Input'!J2284=\"Contingent\"),'TSA Input'!G2284,\"\"))","v":""},{"$f":"IF('TSA Input'!J2284=\"\",\"\",IF(OR('TSA Input'!J2284=\"Yes\",'TSA Input'!J2284=\"Contingent\"),'TSA Input'!F2284,\"\"))","v":""},"","Required","Required"]
["",null,{"$f":"IF('TSA Input'!J2285=\"\",\"\",IF(OR('TSA Input'!J2285=\"Yes\",'TSA Input'!J2285=\"Contingent\"),'TSA Input'!B2285,\"Ineligible\"))","v":""},{"$f":"IF('TSA Input'!J2285=\"\",\"\",IF(OR('TSA Input'!J2285=\"Yes\",'TSA Input'!J2285=\"Contingent\"),'TSA Input'!I2285,\"\"))","v":""},{"$f":"IF('TSA Input'!J2285=\"\",\"\",IF(OR('TSA Input'!J2285=\"Yes\",'TSA Input'!J2285=\"Contingent\"),'TSA Input'!C2285,\"\"))","v":""},{"$f":"IF('TSA Input'!J2285=\"\",\"\",IF(OR('TSA Input'!J2285=\"Yes\",'TSA Input'!J2285=\"Contingent\"),'TSA Input'!D2285,\"\"))","v":""},{"$f":"IF('TSA Input'!J2285=\"\",\"\",IF(OR('TSA Input'!J2285=\"Yes\",'TSA Input'!J2285=\"Contingent\"),'TSA Input'!G2285,\"\"))","v":""},{"$f":"IF('TSA Input'!J2285=\"\",\"\",IF(OR('TSA Input'!J2285=\"Yes\",'TSA Input'!J2285=\"Contingent\"),'TSA Input'!F2285,\"\"))","v":""},"",{"$f":"IF('TSA Input'!J2285=\"\",\"\",IF(OR('TSA Input'!J2285=\"Yes\",'TSA Input'!J2285=\"Contingent\"),'TSA Input'!D2285,\"\"))","v":""},{"$f":"IF('TSA Input'!J2285=\"\",\"\",IF(OR('TSA Input'!J2285=\"Yes\",'TSA Input'!J2285=\"Contingent\"),'TSA Input'!G2285,\"\"))","v":""},{"$f":"IF('TSA Input'!J2285=\"\",\"\",IF(OR('TSA Input'!J2285=\"Yes\",'TSA Input'!J2285=\"Contingent\"),'TSA Input'!F2285,\"\"))","v":""},"","Required","Required"]
["",null,{"$f":"IF('TSA Input'!J2286=\"\",\"\",IF(OR('TSA Input'!J2286=\"Yes\",'TSA Input'!J2286=\"Contingent\"),'TSA Input'!B2286,\"Ineligible\"))","v":""},{"$f":"IF('TSA Input'!J2286=\"\",\"\",IF(OR('TSA Input'!J2286=\"Yes\",'TSA Input'!J2286=\"Contingent\"),'TSA Input'!I2286,\"\"))","v":""},{"$f":"IF('TSA Input'!J2286=\"\",\"\",IF(OR('TSA Input'!J2286=\"Yes\",'TSA Input'!J2286=\"Contingent\"),'TSA Input'!C2286,\"\"))","v":""},{"$f":"IF('TSA Input'!J2286=\"\",\"\",IF(OR('TSA Input'!J2286=\"Yes\",'TSA Input'!J2286=\"Contingent\"),'TSA Input'!D2286,\"\"))","v":""},{"$f":"IF('TSA Input'!J2286=\"\",\"\",IF(OR('TSA Input'!J2286=\"Yes\",'TSA Input'!J2286=\"Contingent\"),'TSA Input'!G2286,\"\"))","v":""},{"$f":"IF('TSA Input'!J2286=\"\",\"\",IF(OR('TSA Input'!J2286=\"Yes\",'TSA Input'!J2286=\"Contingent\"),'TSA Input'!F2286,\"\"))","v":""},"",{"$f":"IF('TSA Input'!J2286=\"\",\"\",IF(OR('TSA Input'!J2286=\"Yes\",'TSA Input'!J2286=\"Contingent\"),'TSA Input'!D2286,\"\"))","v":""},{"$f":"IF('TSA Input'!J2286=\"\",\"\",IF(OR('TSA Input'!J2286=\"Yes\",'TSA Input'!J2286=\"Contingent\"),'TSA Input'!G2286,\"\"))","v":""},{"$f":"IF('TSA Input'!J2286=\"\",\"\",IF(OR('TSA Input'!J2286=\"Yes\",'TSA Input'!J2286=\"Contingent\"),'TSA Input'!F2286,\"\"))","v":""},"","Required","Required"]
["",null,{"$f":"IF('TSA Input'!J2287=\"\",\"\",IF(OR('TSA Input'!J2287=\"Yes\",'TSA Input'!J2287=\"Contingent\"),'TSA Input'!B2287,\"Ineligible\"))","v":""},{"$f":"IF('TSA Input'!J2287=\"\",\"\",IF(OR('TSA Input'!J2287=\"Yes\",'TSA Input'!J2287=\"Contingent\"),'TSA Input'!I2287,\"\"))","v":""},{"$f":"IF('TSA Input'!J2287=\"\",\"\",IF(OR('TSA Input'!J2287=\"Yes\",'TSA Input'!J2287=\"Contingent\"),'TSA Input'!C2287,\"\"))","v":""},{"$f":"IF('TSA Input'!J2287=\"\",\"\",IF(OR('TSA Input'!J2287=\"Yes\",'TSA Input'!J2287=\"Contingent\"),'TSA Input'!D2287,\"\"))","v":""},{"$f":"IF('TSA Input'!J2287=\"\",\"\",IF(OR('TSA Input'!J2287=\"Yes\",'TSA Input'!J2287=\"Contingent\"),'TSA Input'!G2287,\"\"))","v":""},{"$f":"IF('TSA Input'!J2287=\"\",\"\",IF(OR('TSA Input'!J2287=\"Yes\",'TSA Input'!J2287=\"Contingent\"),'TSA Input'!F2287,\"\"))","v":""},"",{"$f":"IF('TSA Input'!J2287=\"\",\"\",IF(OR('TSA Input'!J2287=\"Yes\",'TSA Input'!J2287=\"Contingent\"),'TSA Input'!D2287,\"\"))","v":""},{"$f":"IF('TSA Input'!J2287=\"\",\"\",IF(OR('TSA Input'!J2287=\"Yes\",'TSA Input'!J2287=\"Contingent\"),'TSA Input'!G2287,\"\"))","v":""},{"$f":"IF('TSA Input'!J2287=\"\",\"\",IF(OR('TSA Input'!J2287=\"Yes\",'TSA Input'!J2287=\"Contingent\"),'TSA Input'!F2287,\"\"))","v":""},"","Required","Required"]
["",null,{"$f":"IF('TSA Input'!J2288=\"\",\"\",IF(OR('TSA Input'!J2288=\"Yes\",'TSA Input'!J2288=\"Contingent\"),'TSA Input'!B2288,\"Ineligible\"))","v":""},{"$f":"IF('TSA Input'!J2288=\"\",\"\",IF(OR('TSA Input'!J2288=\"Yes\",'TSA Input'!J2288=\"Contingent\"),'TSA Input'!I2288,\"\"))","v":""},{"$f":"IF('TSA Input'!J2288=\"\",\"\",IF(OR('TSA Input'!J2288=\"Yes\",'TSA Input'!J2288=\"Contingent\"),'TSA Input'!C2288,\"\"))","v":""},{"$f":"IF('TSA Input'!J2288=\"\",\"\",IF(OR('TSA Input'!J2288=\"Yes\",'TSA Input'!J2288=\"Contingent\"),'TSA Input'!D2288,\"\"))","v":""},{"$f":"IF('TSA Input'!J2288=\"\",\"\",IF(OR('TSA Input'!J2288=\"Yes\",'TSA Input'!J2288=\"Contingent\"),'TSA Input'!G2288,\"\"))","v":""},{"$f":"IF('TSA Input'!J2288=\"\",\"\",IF(OR('TSA Input'!J2288=\"Yes\",'TSA Input'!J2288=\"Contingent\"),'TSA Input'!F2288,\"\"))","v":""},"",{"$f":"IF('TSA Input'!J2288=\"\",\"\",IF(OR('TSA Input'!J2288=\"Yes\",'TSA Input'!J2288=\"Contingent\"),'TSA Input'!D2288,\"\"))","v":""},{"$f":"IF('TSA Input'!J2288=\"\",\"\",IF(OR('TSA Input'!J2288=\"Yes\",'TSA Input'!J2288=\"Contingent\"),'TSA Input'!G2288,\"\"))","v":""},{"$f":"IF('TSA Input'!J2288=\"\",\"\",IF(OR('TSA Input'!J2288=\"Yes\",'TSA Input'!J2288=\"Contingent\"),'TSA Input'!F2288,\"\"))","v":""},"","Required","Required"]
["",null,{"$f":"IF('TSA Input'!J2289=\"\",\"\",IF(OR('TSA Input'!J2289=\"Yes\",'TSA Input'!J2289=\"Contingent\"),'TSA Input'!B2289,\"Ineligible\"))","v":""},{"$f":"IF('TSA Input'!J2289=\"\",\"\",IF(OR('TSA Input'!J2289=\"Yes\",'TSA Input'!J2289=\"Contingent\"),'TSA Input'!I2289,\"\"))","v":""},{"$f":"IF('TSA Input'!J2289=\"\",\"\",IF(OR('TSA Input'!J2289=\"Yes\",'TSA Input'!J2289=\"Contingent\"),'TSA Input'!C2289,\"\"))","v":""},{"$f":"IF('TSA Input'!J2289=\"\",\"\",IF(OR('TSA Input'!J2289=\"Yes\",'TSA Input'!J2289=\"Contingent\"),'TSA Input'!D2289,\"\"))","v":""},{"$f":"IF('TSA Input'!J2289=\"\",\"\",IF(OR('TSA Input'!J2289=\"Yes\",'TSA Input'!J2289=\"Contingent\"),'TSA Input'!G2289,\"\"))","v":""},{"$f":"IF('TSA Input'!J2289=\"\",\"\",IF(OR('TSA Input'!J2289=\"Yes\",'TSA Input'!J2289=\"Contingent\"),'TSA Input'!F2289,\"\"))","v":""},"",{"$f":"IF('TSA Input'!J2289=\"\",\"\",IF(OR('TSA Input'!J2289=\"Yes\",'TSA Input'!J2289=\"Contingent\"),'TSA Input'!D2289,\"\"))","v":""},{"$f":"IF('TSA Input'!J2289=\"\",\"\",IF(OR('TSA Input'!J2289=\"Yes\",'TSA Input'!J2289=\"Contingent\"),'TSA Input'!G2289,\"\"))","v":""},{"$f":"IF('TSA Input'!J2289=\"\",\"\",IF(OR('TSA Input'!J2289=\"Yes\",'TSA Input'!J2289=\"Contingent\"),'TSA Input'!F2289,\"\"))","v":""},"","Required","Required"]
["",null,{"$f":"IF('TSA Input'!J2290=\"\",\"\",IF(OR('TSA Input'!J2290=\"Yes\",'TSA Input'!J2290=\"Contingent\"),'TSA Input'!B2290,\"Ineligible\"))","v":""},{"$f":"IF('TSA Input'!J2290=\"\",\"\",IF(OR('TSA Input'!J2290=\"Yes\",'TSA Input'!J2290=\"Contingent\"),'TSA Input'!I2290,\"\"))","v":""},{"$f":"IF('TSA Input'!J2290=\"\",\"\",IF(OR('TSA Input'!J2290=\"Yes\",'TSA Input'!J2290=\"Contingent\"),'TSA Input'!C2290,\"\"))","v":""},{"$f":"IF('TSA Input'!J2290=\"\",\"\",IF(OR('TSA Input'!J2290=\"Yes\",'TSA Input'!J2290=\"Contingent\"),'TSA Input'!D2290,\"\"))","v":""},{"$f":"IF('TSA Input'!J2290=\"\",\"\",IF(OR('TSA Input'!J2290=\"Yes\",'TSA Input'!J2290=\"Contingent\"),'TSA Input'!G2290,\"\"))","v":""},{"$f":"IF('TSA Input'!J2290=\"\",\"\",IF(OR('TSA Input'!J2290=\"Yes\",'TSA Input'!J2290=\"Contingent\"),'TSA Input'!F2290,\"\"))","v":""},"",{"$f":"IF('TSA Input'!J2290=\"\",\"\",IF(OR('TSA Input'!J2290=\"Yes\",'TSA Input'!J2290=\"Contingent\"),'TSA Input'!D2290,\"\"))","v":""},{"$f":"IF('TSA Input'!J2290=\"\",\"\",IF(OR('TSA Input'!J2290=\"Yes\",'TSA Input'!J2290=\"Contingent\"),'TSA Input'!G2290,\"\"))","v":""},{"$f":"IF('TSA Input'!J2290=\"\",\"\",IF(OR('TSA Input'!J2290=\"Yes\",'TSA Input'!J2290=\"Contingent\"),'TSA Input'!F2290,\"\"))","v":""},"","Required","Required"]
["",null,{"$f":"IF('TSA Input'!J2291=\"\",\"\",IF(OR('TSA Input'!J2291=\"Yes\",'TSA Input'!J2291=\"Contingent\"),'TSA Input'!B2291,\"Ineligible\"))","v":""},{"$f":"IF('TSA Input'!J2291=\"\",\"\",IF(OR('TSA Input'!J2291=\"Yes\",'TSA Input'!J2291=\"Contingent\"),'TSA Input'!I2291,\"\"))","v":""},{"$f":"IF('TSA Input'!J2291=\"\",\"\",IF(OR('TSA Input'!J2291=\"Yes\",'TSA Input'!J2291=\"Contingent\"),'TSA Input'!C2291,\"\"))","v":""},{"$f":"IF('TSA Input'!J2291=\"\",\"\",IF(OR('TSA Input'!J2291=\"Yes\",'TSA Input'!J2291=\"Contingent\"),'TSA Input'!D2291,\"\"))","v":""},{"$f":"IF('TSA Input'!J2291=\"\",\"\",IF(OR('TSA Input'!J2291=\"Yes\",'TSA Input'!J2291=\"Contingent\"),'TSA Input'!G2291,\"\"))","v":""},{"$f":"IF('TSA Input'!J2291=\"\",\"\",IF(OR('TSA Input'!J2291=\"Yes\",'TSA Input'!J2291=\"Contingent\"),'TSA Input'!F2291,\"\"))","v":""},"",{"$f":"IF('TSA Input'!J2291=\"\",\"\",IF(OR('TSA Input'!J2291=\"Yes\",'TSA Input'!J2291=\"Contingent\"),'TSA Input'!D2291,\"\"))","v":""},{"$f":"IF('TSA Input'!J2291=\"\",\"\",IF(OR('TSA Input'!J2291=\"Yes\",'TSA Input'!J2291=\"Contingent\"),'TSA Input'!G2291,\"\"))","v":""},{"$f":"IF('TSA Input'!J2291=\"\",\"\",IF(OR('TSA Input'!J2291=\"Yes\",'TSA Input'!J2291=\"Contingent\"),'TSA Input'!F2291,\"\"))","v":""},"","Required","Required"]
["",null,{"$f":"IF('TSA Input'!J2292=\"\",\"\",IF(OR('TSA Input'!J2292=\"Yes\",'TSA Input'!J2292=\"Contingent\"),'TSA Input'!B2292,\"Ineligible\"))","v":""},{"$f":"IF('TSA Input'!J2292=\"\",\"\",IF(OR('TSA Input'!J2292=\"Yes\",'TSA Input'!J2292=\"Contingent\"),'TSA Input'!I2292,\"\"))","v":""},{"$f":"IF('TSA Input'!J2292=\"\",\"\",IF(OR('TSA Input'!J2292=\"Yes\",'TSA Input'!J2292=\"Contingent\"),'TSA Input'!C2292,\"\"))","v":""},{"$f":"IF('TSA Input'!J2292=\"\",\"\",IF(OR('TSA Input'!J2292=\"Yes\",'TSA Input'!J2292=\"Contingent\"),'TSA Input'!D2292,\"\"))","v":""},{"$f":"IF('TSA Input'!J2292=\"\",\"\",IF(OR('TSA Input'!J2292=\"Yes\",'TSA Input'!J2292=\"Contingent\"),'TSA Input'!G2292,\"\"))","v":""},{"$f":"IF('TSA Input'!J2292=\"\",\"\",IF(OR('TSA Input'!J2292=\"Yes\",'TSA Input'!J2292=\"Contingent\"),'TSA Input'!F2292,\"\"))","v":""},"",{"$f":"IF('TSA Input'!J2292=\"\",\"\",IF(OR('TSA Input'!J2292=\"Yes\",'TSA Input'!J2292=\"Contingent\"),'TSA Input'!D2292,\"\"))","v":""},{"$f":"IF('TSA Input'!J2292=\"\",\"\",IF(OR('TSA Input'!J2292=\"Yes\",'TSA Input'!J2292=\"Contingent\"),'TSA Input'!G2292,\"\"))","v":""},{"$f":"IF('TSA Input'!J2292=\"\",\"\",IF(OR('TSA Input'!J2292=\"Yes\",'TSA Input'!J2292=\"Contingent\"),'TSA Input'!F2292,\"\"))","v":""},"","Required","Required"]
["",null,{"$f":"IF('TSA Input'!J2293=\"\",\"\",IF(OR('TSA Input'!J2293=\"Yes\",'TSA Input'!J2293=\"Contingent\"),'TSA Input'!B2293,\"Ineligible\"))","v":""},{"$f":"IF('TSA Input'!J2293=\"\",\"\",IF(OR('TSA Input'!J2293=\"Yes\",'TSA Input'!J2293=\"Contingent\"),'TSA Input'!I2293,\"\"))","v":""},{"$f":"IF('TSA Input'!J2293=\"\",\"\",IF(OR('TSA Input'!J2293=\"Yes\",'TSA Input'!J2293=\"Contingent\"),'TSA Input'!C2293,\"\"))","v":""},{"$f":"IF('TSA Input'!J2293=\"\",\"\",IF(OR('TSA Input'!J2293=\"Yes\",'TSA Input'!J2293=\"Contingent\"),'TSA Input'!D2293,\"\"))","v":""},{"$f":"IF('TSA Input'!J2293=\"\",\"\",IF(OR('TSA Input'!J2293=\"Yes\",'TSA Input'!J2293=\"Contingent\"),'TSA Input'!G2293,\"\"))","v":""},{"$f":"IF('TSA Input'!J2293=\"\",\"\",IF(OR('TSA Input'!J2293=\"Yes\",'TSA Input'!J2293=\"Contingent\"),'TSA Input'!F2293,\"\"))","v":""},"",{"$f":"IF('TSA Input'!J2293=\"\",\"\",IF(OR('TSA Input'!J2293=\"Yes\",'TSA Input'!J2293=\"Contingent\"),'TSA Input'!D2293,\"\"))","v":""},{"$f":"IF('TSA Input'!J2293=\"\",\"\",IF(OR('TSA Input'!J2293=\"Yes\",'TSA Input'!J2293=\"Contingent\"),'TSA Input'!G2293,\"\"))","v":""},{"$f":"IF('TSA Input'!J2293=\"\",\"\",IF(OR('TSA Input'!J2293=\"Yes\",'TSA Input'!J2293=\"Contingent\"),'TSA Input'!F2293,\"\"))","v":""},"","Required","Required"]
["",null,{"$f":"IF('TSA Input'!J2294=\"\",\"\",IF(OR('TSA Input'!J2294=\"Yes\",'TSA Input'!J2294=\"Contingent\"),'TSA Input'!B2294,\"Ineligible\"))","v":""},{"$f":"IF('TSA Input'!J2294=\"\",\"\",IF(OR('TSA Input'!J2294=\"Yes\",'TSA Input'!J2294=\"Contingent\"),'TSA Input'!I2294,\"\"))","v":""},{"$f":"IF('TSA Input'!J2294=\"\",\"\",IF(OR('TSA Input'!J2294=\"Yes\",'TSA Input'!J2294=\"Contingent\"),'TSA Input'!C2294,\"\"))","v":""},{"$f":"IF('TSA Input'!J2294=\"\",\"\",IF(OR('TSA Input'!J2294=\"Yes\",'TSA Input'!J2294=\"Contingent\"),'TSA Input'!D2294,\"\"))","v":""},{"$f":"IF('TSA Input'!J2294=\"\",\"\",IF(OR('TSA Input'!J2294=\"Yes\",'TSA Input'!J2294=\"Contingent\"),'TSA Input'!G2294,\"\"))","v":""},{"$f":"IF('TSA Input'!J2294=\"\",\"\",IF(OR('TSA Input'!J2294=\"Yes\",'TSA Input'!J2294=\"Contingent\"),'TSA Input'!F2294,\"\"))","v":""},"",{"$f":"IF('TSA Input'!J2294=\"\",\"\",IF(OR('TSA Input'!J2294=\"Yes\",'TSA Input'!J2294=\"Contingent\"),'TSA Input'!D2294,\"\"))","v":""},{"$f":"IF('TSA Input'!J2294=\"\",\"\",IF(OR('TSA Input'!J2294=\"Yes\",'TSA Input'!J2294=\"Contingent\"),'TSA Input'!G2294,\"\"))","v":""},{"$f":"IF('TSA Input'!J2294=\"\",\"\",IF(OR('TSA Input'!J2294=\"Yes\",'TSA Input'!J2294=\"Contingent\"),'TSA Input'!F2294,\"\"))","v":""},"","Required","Required"]
["",null,{"$f":"IF('TSA Input'!J2295=\"\",\"\",IF(OR('TSA Input'!J2295=\"Yes\",'TSA Input'!J2295=\"Contingent\"),'TSA Input'!B2295,\"Ineligible\"))","v":""},{"$f":"IF('TSA Input'!J2295=\"\",\"\",IF(OR('TSA Input'!J2295=\"Yes\",'TSA Input'!J2295=\"Contingent\"),'TSA Input'!I2295,\"\"))","v":""},{"$f":"IF('TSA Input'!J2295=\"\",\"\",IF(OR('TSA Input'!J2295=\"Yes\",'TSA Input'!J2295=\"Contingent\"),'TSA Input'!C2295,\"\"))","v":""},{"$f":"IF('TSA Input'!J2295=\"\",\"\",IF(OR('TSA Input'!J2295=\"Yes\",'TSA Input'!J2295=\"Contingent\"),'TSA Input'!D2295,\"\"))","v":""},{"$f":"IF('TSA Input'!J2295=\"\",\"\",IF(OR('TSA Input'!J2295=\"Yes\",'TSA Input'!J2295=\"Contingent\"),'TSA Input'!G2295,\"\"))","v":""},{"$f":"IF('TSA Input'!J2295=\"\",\"\",IF(OR('TSA Input'!J2295=\"Yes\",'TSA Input'!J2295=\"Contingent\"),'TSA Input'!F2295,\"\"))","v":""},"",{"$f":"IF('TSA Input'!J2295=\"\",\"\",IF(OR('TSA Input'!J2295=\"Yes\",'TSA Input'!J2295=\"Contingent\"),'TSA Input'!D2295,\"\"))","v":""},{"$f":"IF('TSA Input'!J2295=\"\",\"\",IF(OR('TSA Input'!J2295=\"Yes\",'TSA Input'!J2295=\"Contingent\"),'TSA Input'!G2295,\"\"))","v":""},{"$f":"IF('TSA Input'!J2295=\"\",\"\",IF(OR('TSA Input'!J2295=\"Yes\",'TSA Input'!J2295=\"Contingent\"),'TSA Input'!F2295,\"\"))","v":""},"","Required","Required"]
["",null,{"$f":"IF('TSA Input'!J2296=\"\",\"\",IF(OR('TSA Input'!J2296=\"Yes\",'TSA Input'!J2296=\"Contingent\"),'TSA Input'!B2296,\"Ineligible\"))","v":""},{"$f":"IF('TSA Input'!J2296=\"\",\"\",IF(OR('TSA Input'!J2296=\"Yes\",'TSA Input'!J2296=\"Contingent\"),'TSA Input'!I2296,\"\"))","v":""},{"$f":"IF('TSA Input'!J2296=\"\",\"\",IF(OR('TSA Input'!J2296=\"Yes\",'TSA Input'!J2296=\"Contingent\"),'TSA Input'!C2296,\"\"))","v":""},{"$f":"IF('TSA Input'!J2296=\"\",\"\",IF(OR('TSA Input'!J2296=\"Yes\",'TSA Input'!J2296=\"Contingent\"),'TSA Input'!D2296,\"\"))","v":""},{"$f":"IF('TSA Input'!J2296=\"\",\"\",IF(OR('TSA Input'!J2296=\"Yes\",'TSA Input'!J2296=\"Contingent\"),'TSA Input'!G2296,\"\"))","v":""},{"$f":"IF('TSA Input'!J2296=\"\",\"\",IF(OR('TSA Input'!J2296=\"Yes\",'TSA Input'!J2296=\"Contingent\"),'TSA Input'!F2296,\"\"))","v":""},"",{"$f":"IF('TSA Input'!J2296=\"\",\"\",IF(OR('TSA Input'!J2296=\"Yes\",'TSA Input'!J2296=\"Contingent\"),'TSA Input'!D2296,\"\"))","v":""},{"$f":"IF('TSA Input'!J2296=\"\",\"\",IF(OR('TSA Input'!J2296=\"Yes\",'TSA Input'!J2296=\"Contingent\"),'TSA Input'!G2296,\"\"))","v":""},{"$f":"IF('TSA Input'!J2296=\"\",\"\",IF(OR('TSA Input'!J2296=\"Yes\",'TSA Input'!J2296=\"Contingent\"),'TSA Input'!F2296,\"\"))","v":""},"","Required","Required"]
["",null,{"$f":"IF('TSA Input'!J2297=\"\",\"\",IF(OR('TSA Input'!J2297=\"Yes\",'TSA Input'!J2297=\"Contingent\"),'TSA Input'!B2297,\"Ineligible\"))","v":""},{"$f":"IF('TSA Input'!J2297=\"\",\"\",IF(OR('TSA Input'!J2297=\"Yes\",'TSA Input'!J2297=\"Contingent\"),'TSA Input'!I2297,\"\"))","v":""},{"$f":"IF('TSA Input'!J2297=\"\",\"\",IF(OR('TSA Input'!J2297=\"Yes\",'TSA Input'!J2297=\"Contingent\"),'TSA Input'!C2297,\"\"))","v":""},{"$f":"IF('TSA Input'!J2297=\"\",\"\",IF(OR('TSA Input'!J2297=\"Yes\",'TSA Input'!J2297=\"Contingent\"),'TSA Input'!D2297,\"\"))","v":""},{"$f":"IF('TSA Input'!J2297=\"\",\"\",IF(OR('TSA Input'!J2297=\"Yes\",'TSA Input'!J2297=\"Contingent\"),'TSA Input'!G2297,\"\"))","v":""},{"$f":"IF('TSA Input'!J2297=\"\",\"\",IF(OR('TSA Input'!J2297=\"Yes\",'TSA Input'!J2297=\"Contingent\"),'TSA Input'!F2297,\"\"))","v":""},"",{"$f":"IF('TSA Input'!J2297=\"\",\"\",IF(OR('TSA Input'!J2297=\"Yes\",'TSA Input'!J2297=\"Contingent\"),'TSA Input'!D2297,\"\"))","v":""},{"$f":"IF('TSA Input'!J2297=\"\",\"\",IF(OR('TSA Input'!J2297=\"Yes\",'TSA Input'!J2297=\"Contingent\"),'TSA Input'!G2297,\"\"))","v":""},{"$f":"IF('TSA Input'!J2297=\"\",\"\",IF(OR('TSA Input'!J2297=\"Yes\",'TSA Input'!J2297=\"Contingent\"),'TSA Input'!F2297,\"\"))","v":""},"","Required","Required"]
["",null,{"$f":"IF('TSA Input'!J2298=\"\",\"\",IF(OR('TSA Input'!J2298=\"Yes\",'TSA Input'!J2298=\"Contingent\"),'TSA Input'!B2298,\"Ineligible\"))","v":""},{"$f":"IF('TSA Input'!J2298=\"\",\"\",IF(OR('TSA Input'!J2298=\"Yes\",'TSA Input'!J2298=\"Contingent\"),'TSA Input'!I2298,\"\"))","v":""},{"$f":"IF('TSA Input'!J2298=\"\",\"\",IF(OR('TSA Input'!J2298=\"Yes\",'TSA Input'!J2298=\"Contingent\"),'TSA Input'!C2298,\"\"))","v":""},{"$f":"IF('TSA Input'!J2298=\"\",\"\",IF(OR('TSA Input'!J2298=\"Yes\",'TSA Input'!J2298=\"Contingent\"),'TSA Input'!D2298,\"\"))","v":""},{"$f":"IF('TSA Input'!J2298=\"\",\"\",IF(OR('TSA Input'!J2298=\"Yes\",'TSA Input'!J2298=\"Contingent\"),'TSA Input'!G2298,\"\"))","v":""},{"$f":"IF('TSA Input'!J2298=\"\",\"\",IF(OR('TSA Input'!J2298=\"Yes\",'TSA Input'!J2298=\"Contingent\"),'TSA Input'!F2298,\"\"))","v":""},"",{"$f":"IF('TSA Input'!J2298=\"\",\"\",IF(OR('TSA Input'!J2298=\"Yes\",'TSA Input'!J2298=\"Contingent\"),'TSA Input'!D2298,\"\"))","v":""},{"$f":"IF('TSA Input'!J2298=\"\",\"\",IF(OR('TSA Input'!J2298=\"Yes\",'TSA Input'!J2298=\"Contingent\"),'TSA Input'!G2298,\"\"))","v":""},{"$f":"IF('TSA Input'!J2298=\"\",\"\",IF(OR('TSA Input'!J2298=\"Yes\",'TSA Input'!J2298=\"Contingent\"),'TSA Input'!F2298,\"\"))","v":""},"","Required","Required"]
["",null,{"$f":"IF('TSA Input'!J2299=\"\",\"\",IF(OR('TSA Input'!J2299=\"Yes\",'TSA Input'!J2299=\"Contingent\"),'TSA Input'!B2299,\"Ineligible\"))","v":""},{"$f":"IF('TSA Input'!J2299=\"\",\"\",IF(OR('TSA Input'!J2299=\"Yes\",'TSA Input'!J2299=\"Contingent\"),'TSA Input'!I2299,\"\"))","v":""},{"$f":"IF('TSA Input'!J2299=\"\",\"\",IF(OR('TSA Input'!J2299=\"Yes\",'TSA Input'!J2299=\"Contingent\"),'TSA Input'!C2299,\"\"))","v":""},{"$f":"IF('TSA Input'!J2299=\"\",\"\",IF(OR('TSA Input'!J2299=\"Yes\",'TSA Input'!J2299=\"Contingent\"),'TSA Input'!D2299,\"\"))","v":""},{"$f":"IF('TSA Input'!J2299=\"\",\"\",IF(OR('TSA Input'!J2299=\"Yes\",'TSA Input'!J2299=\"Contingent\"),'TSA Input'!G2299,\"\"))","v":""},{"$f":"IF('TSA Input'!J2299=\"\",\"\",IF(OR('TSA Input'!J2299=\"Yes\",'TSA Input'!J2299=\"Contingent\"),'TSA Input'!F2299,\"\"))","v":""},"",{"$f":"IF('TSA Input'!J2299=\"\",\"\",IF(OR('TSA Input'!J2299=\"Yes\",'TSA Input'!J2299=\"Contingent\"),'TSA Input'!D2299,\"\"))","v":""},{"$f":"IF('TSA Input'!J2299=\"\",\"\",IF(OR('TSA Input'!J2299=\"Yes\",'TSA Input'!J2299=\"Contingent\"),'TSA Input'!G2299,\"\"))","v":""},{"$f":"IF('TSA Input'!J2299=\"\",\"\",IF(OR('TSA Input'!J2299=\"Yes\",'TSA Input'!J2299=\"Contingent\"),'TSA Input'!F2299,\"\"))","v":""},"","Required","Required"]
["",null,{"$f":"IF('TSA Input'!J2300=\"\",\"\",IF(OR('TSA Input'!J2300=\"Yes\",'TSA Input'!J2300=\"Contingent\"),'TSA Input'!B2300,\"Ineligible\"))","v":""},{"$f":"IF('TSA Input'!J2300=\"\",\"\",IF(OR('TSA Input'!J2300=\"Yes\",'TSA Input'!J2300=\"Contingent\"),'TSA Input'!I2300,\"\"))","v":""},{"$f":"IF('TSA Input'!J2300=\"\",\"\",IF(OR('TSA Input'!J2300=\"Yes\",'TSA Input'!J2300=\"Contingent\"),'TSA Input'!C2300,\"\"))","v":""},{"$f":"IF('TSA Input'!J2300=\"\",\"\",IF(OR('TSA Input'!J2300=\"Yes\",'TSA Input'!J2300=\"Contingent\"),'TSA Input'!D2300,\"\"))","v":""},{"$f":"IF('TSA Input'!J2300=\"\",\"\",IF(OR('TSA Input'!J2300=\"Yes\",'TSA Input'!J2300=\"Contingent\"),'TSA Input'!G2300,\"\"))","v":""},{"$f":"IF('TSA Input'!J2300=\"\",\"\",IF(OR('TSA Input'!J2300=\"Yes\",'TSA Input'!J2300=\"Contingent\"),'TSA Input'!F2300,\"\"))","v":""},"",{"$f":"IF('TSA Input'!J2300=\"\",\"\",IF(OR('TSA Input'!J2300=\"Yes\",'TSA Input'!J2300=\"Contingent\"),'TSA Input'!D2300,\"\"))","v":""},{"$f":"IF('TSA Input'!J2300=\"\",\"\",IF(OR('TSA Input'!J2300=\"Yes\",'TSA Input'!J2300=\"Contingent\"),'TSA Input'!G2300,\"\"))","v":""},{"$f":"IF('TSA Input'!J2300=\"\",\"\",IF(OR('TSA Input'!J2300=\"Yes\",'TSA Input'!J2300=\"Contingent\"),'TSA Input'!F2300,\"\"))","v":""},"","Required","Required"]
["",null,{"$f":"IF('TSA Input'!J2301=\"\",\"\",IF(OR('TSA Input'!J2301=\"Yes\",'TSA Input'!J2301=\"Contingent\"),'TSA Input'!B2301,\"Ineligible\"))","v":""},{"$f":"IF('TSA Input'!J2301=\"\",\"\",IF(OR('TSA Input'!J2301=\"Yes\",'TSA Input'!J2301=\"Contingent\"),'TSA Input'!I2301,\"\"))","v":""},{"$f":"IF('TSA Input'!J2301=\"\",\"\",IF(OR('TSA Input'!J2301=\"Yes\",'TSA Input'!J2301=\"Contingent\"),'TSA Input'!C2301,\"\"))","v":""},{"$f":"IF('TSA Input'!J2301=\"\",\"\",IF(OR('TSA Input'!J2301=\"Yes\",'TSA Input'!J2301=\"Contingent\"),'TSA Input'!D2301,\"\"))","v":""},{"$f":"IF('TSA Input'!J2301=\"\",\"\",IF(OR('TSA Input'!J2301=\"Yes\",'TSA Input'!J2301=\"Contingent\"),'TSA Input'!G2301,\"\"))","v":""},{"$f":"IF('TSA Input'!J2301=\"\",\"\",IF(OR('TSA Input'!J2301=\"Yes\",'TSA Input'!J2301=\"Contingent\"),'TSA Input'!F2301,\"\"))","v":""},"",{"$f":"IF('TSA Input'!J2301=\"\",\"\",IF(OR('TSA Input'!J2301=\"Yes\",'TSA Input'!J2301=\"Contingent\"),'TSA Input'!D2301,\"\"))","v":""},{"$f":"IF('TSA Input'!J2301=\"\",\"\",IF(OR('TSA Input'!J2301=\"Yes\",'TSA Input'!J2301=\"Contingent\"),'TSA Input'!G2301,\"\"))","v":""},{"$f":"IF('TSA Input'!J2301=\"\",\"\",IF(OR('TSA Input'!J2301=\"Yes\",'TSA Input'!J2301=\"Contingent\"),'TSA Input'!F2301,\"\"))","v":""},"","Required","Required"]
["",null,{"$f":"IF('TSA Input'!J2302=\"\",\"\",IF(OR('TSA Input'!J2302=\"Yes\",'TSA Input'!J2302=\"Contingent\"),'TSA Input'!B2302,\"Ineligible\"))","v":""},{"$f":"IF('TSA Input'!J2302=\"\",\"\",IF(OR('TSA Input'!J2302=\"Yes\",'TSA Input'!J2302=\"Contingent\"),'TSA Input'!I2302,\"\"))","v":""},{"$f":"IF('TSA Input'!J2302=\"\",\"\",IF(OR('TSA Input'!J2302=\"Yes\",'TSA Input'!J2302=\"Contingent\"),'TSA Input'!C2302,\"\"))","v":""},{"$f":"IF('TSA Input'!J2302=\"\",\"\",IF(OR('TSA Input'!J2302=\"Yes\",'TSA Input'!J2302=\"Contingent\"),'TSA Input'!D2302,\"\"))","v":""},{"$f":"IF('TSA Input'!J2302=\"\",\"\",IF(OR('TSA Input'!J2302=\"Yes\",'TSA Input'!J2302=\"Contingent\"),'TSA Input'!G2302,\"\"))","v":""},{"$f":"IF('TSA Input'!J2302=\"\",\"\",IF(OR('TSA Input'!J2302=\"Yes\",'TSA Input'!J2302=\"Contingent\"),'TSA Input'!F2302,\"\"))","v":""},"",{"$f":"IF('TSA Input'!J2302=\"\",\"\",IF(OR('TSA Input'!J2302=\"Yes\",'TSA Input'!J2302=\"Contingent\"),'TSA Input'!D2302,\"\"))","v":""},{"$f":"IF('TSA Input'!J2302=\"\",\"\",IF(OR('TSA Input'!J2302=\"Yes\",'TSA Input'!J2302=\"Contingent\"),'TSA Input'!G2302,\"\"))","v":""},{"$f":"IF('TSA Input'!J2302=\"\",\"\",IF(OR('TSA Input'!J2302=\"Yes\",'TSA Input'!J2302=\"Contingent\"),'TSA Input'!F2302,\"\"))","v":""},"","Required","Required"]
["",null,{"$f":"IF('TSA Input'!J2303=\"\",\"\",IF(OR('TSA Input'!J2303=\"Yes\",'TSA Input'!J2303=\"Contingent\"),'TSA Input'!B2303,\"Ineligible\"))","v":""},{"$f":"IF('TSA Input'!J2303=\"\",\"\",IF(OR('TSA Input'!J2303=\"Yes\",'TSA Input'!J2303=\"Contingent\"),'TSA Input'!I2303,\"\"))","v":""},{"$f":"IF('TSA Input'!J2303=\"\",\"\",IF(OR('TSA Input'!J2303=\"Yes\",'TSA Input'!J2303=\"Contingent\"),'TSA Input'!C2303,\"\"))","v":""},{"$f":"IF('TSA Input'!J2303=\"\",\"\",IF(OR('TSA Input'!J2303=\"Yes\",'TSA Input'!J2303=\"Contingent\"),'TSA Input'!D2303,\"\"))","v":""},{"$f":"IF('TSA Input'!J2303=\"\",\"\",IF(OR('TSA Input'!J2303=\"Yes\",'TSA Input'!J2303=\"Contingent\"),'TSA Input'!G2303,\"\"))","v":""},{"$f":"IF('TSA Input'!J2303=\"\",\"\",IF(OR('TSA Input'!J2303=\"Yes\",'TSA Input'!J2303=\"Contingent\"),'TSA Input'!F2303,\"\"))","v":""},"",{"$f":"IF('TSA Input'!J2303=\"\",\"\",IF(OR('TSA Input'!J2303=\"Yes\",'TSA Input'!J2303=\"Contingent\"),'TSA Input'!D2303,\"\"))","v":""},{"$f":"IF('TSA Input'!J2303=\"\",\"\",IF(OR('TSA Input'!J2303=\"Yes\",'TSA Input'!J2303=\"Contingent\"),'TSA Input'!G2303,\"\"))","v":""},{"$f":"IF('TSA Input'!J2303=\"\",\"\",IF(OR('TSA Input'!J2303=\"Yes\",'TSA Input'!J2303=\"Contingent\"),'TSA Input'!F2303,\"\"))","v":""},"","Required","Required"]
["",null,{"$f":"IF('TSA Input'!J2304=\"\",\"\",IF(OR('TSA Input'!J2304=\"Yes\",'TSA Input'!J2304=\"Contingent\"),'TSA Input'!B2304,\"Ineligible\"))","v":""},{"$f":"IF('TSA Input'!J2304=\"\",\"\",IF(OR('TSA Input'!J2304=\"Yes\",'TSA Input'!J2304=\"Contingent\"),'TSA Input'!I2304,\"\"))","v":""},{"$f":"IF('TSA Input'!J2304=\"\",\"\",IF(OR('TSA Input'!J2304=\"Yes\",'TSA Input'!J2304=\"Contingent\"),'TSA Input'!C2304,\"\"))","v":""},{"$f":"IF('TSA Input'!J2304=\"\",\"\",IF(OR('TSA Input'!J2304=\"Yes\",'TSA Input'!J2304=\"Contingent\"),'TSA Input'!D2304,\"\"))","v":""},{"$f":"IF('TSA Input'!J2304=\"\",\"\",IF(OR('TSA Input'!J2304=\"Yes\",'TSA Input'!J2304=\"Contingent\"),'TSA Input'!G2304,\"\"))","v":""},{"$f":"IF('TSA Input'!J2304=\"\",\"\",IF(OR('TSA Input'!J2304=\"Yes\",'TSA Input'!J2304=\"Contingent\"),'TSA Input'!F2304,\"\"))","v":""},"",{"$f":"IF('TSA Input'!J2304=\"\",\"\",IF(OR('TSA Input'!J2304=\"Yes\",'TSA Input'!J2304=\"Contingent\"),'TSA Input'!D2304,\"\"))","v":""},{"$f":"IF('TSA Input'!J2304=\"\",\"\",IF(OR('TSA Input'!J2304=\"Yes\",'TSA Input'!J2304=\"Contingent\"),'TSA Input'!G2304,\"\"))","v":""},{"$f":"IF('TSA Input'!J2304=\"\",\"\",IF(OR('TSA Input'!J2304=\"Yes\",'TSA Input'!J2304=\"Contingent\"),'TSA Input'!F2304,\"\"))","v":""},"","Required","Required"]
["",null,{"$f":"IF('TSA Input'!J2305=\"\",\"\",IF(OR('TSA Input'!J2305=\"Yes\",'TSA Input'!J2305=\"Contingent\"),'TSA Input'!B2305,\"Ineligible\"))","v":""},{"$f":"IF('TSA Input'!J2305=\"\",\"\",IF(OR('TSA Input'!J2305=\"Yes\",'TSA Input'!J2305=\"Contingent\"),'TSA Input'!I2305,\"\"))","v":""},{"$f":"IF('TSA Input'!J2305=\"\",\"\",IF(OR('TSA Input'!J2305=\"Yes\",'TSA Input'!J2305=\"Contingent\"),'TSA Input'!C2305,\"\"))","v":""},{"$f":"IF('TSA Input'!J2305=\"\",\"\",IF(OR('TSA Input'!J2305=\"Yes\",'TSA Input'!J2305=\"Contingent\"),'TSA Input'!D2305,\"\"))","v":""},{"$f":"IF('TSA Input'!J2305=\"\",\"\",IF(OR('TSA Input'!J2305=\"Yes\",'TSA Input'!J2305=\"Contingent\"),'TSA Input'!G2305,\"\"))","v":""},{"$f":"IF('TSA Input'!J2305=\"\",\"\",IF(OR('TSA Input'!J2305=\"Yes\",'TSA Input'!J2305=\"Contingent\"),'TSA Input'!F2305,\"\"))","v":""},"",{"$f":"IF('TSA Input'!J2305=\"\",\"\",IF(OR('TSA Input'!J2305=\"Yes\",'TSA Input'!J2305=\"Contingent\"),'TSA Input'!D2305,\"\"))","v":""},{"$f":"IF('TSA Input'!J2305=\"\",\"\",IF(OR('TSA Input'!J2305=\"Yes\",'TSA Input'!J2305=\"Contingent\"),'TSA Input'!G2305,\"\"))","v":""},{"$f":"IF('TSA Input'!J2305=\"\",\"\",IF(OR('TSA Input'!J2305=\"Yes\",'TSA Input'!J2305=\"Contingent\"),'TSA Input'!F2305,\"\"))","v":""},"","Required","Required"]
["",null,{"$f":"IF('TSA Input'!J2306=\"\",\"\",IF(OR('TSA Input'!J2306=\"Yes\",'TSA Input'!J2306=\"Contingent\"),'TSA Input'!B2306,\"Ineligible\"))","v":""},{"$f":"IF('TSA Input'!J2306=\"\",\"\",IF(OR('TSA Input'!J2306=\"Yes\",'TSA Input'!J2306=\"Contingent\"),'TSA Input'!I2306,\"\"))","v":""},{"$f":"IF('TSA Input'!J2306=\"\",\"\",IF(OR('TSA Input'!J2306=\"Yes\",'TSA Input'!J2306=\"Contingent\"),'TSA Input'!C2306,\"\"))","v":""},{"$f":"IF('TSA Input'!J2306=\"\",\"\",IF(OR('TSA Input'!J2306=\"Yes\",'TSA Input'!J2306=\"Contingent\"),'TSA Input'!D2306,\"\"))","v":""},{"$f":"IF('TSA Input'!J2306=\"\",\"\",IF(OR('TSA Input'!J2306=\"Yes\",'TSA Input'!J2306=\"Contingent\"),'TSA Input'!G2306,\"\"))","v":""},{"$f":"IF('TSA Input'!J2306=\"\",\"\",IF(OR('TSA Input'!J2306=\"Yes\",'TSA Input'!J2306=\"Contingent\"),'TSA Input'!F2306,\"\"))","v":""},"",{"$f":"IF('TSA Input'!J2306=\"\",\"\",IF(OR('TSA Input'!J2306=\"Yes\",'TSA Input'!J2306=\"Contingent\"),'TSA Input'!D2306,\"\"))","v":""},{"$f":"IF('TSA Input'!J2306=\"\",\"\",IF(OR('TSA Input'!J2306=\"Yes\",'TSA Input'!J2306=\"Contingent\"),'TSA Input'!G2306,\"\"))","v":""},{"$f":"IF('TSA Input'!J2306=\"\",\"\",IF(OR('TSA Input'!J2306=\"Yes\",'TSA Input'!J2306=\"Contingent\"),'TSA Input'!F2306,\"\"))","v":""},"","Required","Required"]
["",null,{"$f":"IF('TSA Input'!J2307=\"\",\"\",IF(OR('TSA Input'!J2307=\"Yes\",'TSA Input'!J2307=\"Contingent\"),'TSA Input'!B2307,\"Ineligible\"))","v":""},{"$f":"IF('TSA Input'!J2307=\"\",\"\",IF(OR('TSA Input'!J2307=\"Yes\",'TSA Input'!J2307=\"Contingent\"),'TSA Input'!I2307,\"\"))","v":""},{"$f":"IF('TSA Input'!J2307=\"\",\"\",IF(OR('TSA Input'!J2307=\"Yes\",'TSA Input'!J2307=\"Contingent\"),'TSA Input'!C2307,\"\"))","v":""},{"$f":"IF('TSA Input'!J2307=\"\",\"\",IF(OR('TSA Input'!J2307=\"Yes\",'TSA Input'!J2307=\"Contingent\"),'TSA Input'!D2307,\"\"))","v":""},{"$f":"IF('TSA Input'!J2307=\"\",\"\",IF(OR('TSA Input'!J2307=\"Yes\",'TSA Input'!J2307=\"Contingent\"),'TSA Input'!G2307,\"\"))","v":""},{"$f":"IF('TSA Input'!J2307=\"\",\"\",IF(OR('TSA Input'!J2307=\"Yes\",'TSA Input'!J2307=\"Contingent\"),'TSA Input'!F2307,\"\"))","v":""},"",{"$f":"IF('TSA Input'!J2307=\"\",\"\",IF(OR('TSA Input'!J2307=\"Yes\",'TSA Input'!J2307=\"Contingent\"),'TSA Input'!D2307,\"\"))","v":""},{"$f":"IF('TSA Input'!J2307=\"\",\"\",IF(OR('TSA Input'!J2307=\"Yes\",'TSA Input'!J2307=\"Contingent\"),'TSA Input'!G2307,\"\"))","v":""},{"$f":"IF('TSA Input'!J2307=\"\",\"\",IF(OR('TSA Input'!J2307=\"Yes\",'TSA Input'!J2307=\"Contingent\"),'TSA Input'!F2307,\"\"))","v":""},"","Required","Required"]
["",null,{"$f":"IF('TSA Input'!J2308=\"\",\"\",IF(OR('TSA Input'!J2308=\"Yes\",'TSA Input'!J2308=\"Contingent\"),'TSA Input'!B2308,\"Ineligible\"))","v":""},{"$f":"IF('TSA Input'!J2308=\"\",\"\",IF(OR('TSA Input'!J2308=\"Yes\",'TSA Input'!J2308=\"Contingent\"),'TSA Input'!I2308,\"\"))","v":""},{"$f":"IF('TSA Input'!J2308=\"\",\"\",IF(OR('TSA Input'!J2308=\"Yes\",'TSA Input'!J2308=\"Contingent\"),'TSA Input'!C2308,\"\"))","v":""},{"$f":"IF('TSA Input'!J2308=\"\",\"\",IF(OR('TSA Input'!J2308=\"Yes\",'TSA Input'!J2308=\"Contingent\"),'TSA Input'!D2308,\"\"))","v":""},{"$f":"IF('TSA Input'!J2308=\"\",\"\",IF(OR('TSA Input'!J2308=\"Yes\",'TSA Input'!J2308=\"Contingent\"),'TSA Input'!G2308,\"\"))","v":""},{"$f":"IF('TSA Input'!J2308=\"\",\"\",IF(OR('TSA Input'!J2308=\"Yes\",'TSA Input'!J2308=\"Contingent\"),'TSA Input'!F2308,\"\"))","v":""},{"$f":"IF($C2346=\"\",\"\",SUM(F2346:H2346))","v":""},{"$f":"IF('TSA Input'!J2308=\"\",\"\",IF(OR('TSA Input'!J2308=\"Yes\",'TSA Input'!J2308=\"Contingent\"),'TSA Input'!D2308,\"\"))","v":""},{"$f":"IF('TSA Input'!J2308=\"\",\"\",IF(OR('TSA Input'!J2308=\"Yes\",'TSA Input'!J2308=\"Contingent\"),'TSA Input'!G2308,\"\"))","v":""},{"$f":"IF('TSA Input'!J2308=\"\",\"\",IF(OR('TSA Input'!J2308=\"Yes\",'TSA Input'!J2308=\"Contingent\"),'TSA Input'!F2308,\"\"))","v":""},{"$f":"IF($C2346=\"\",\"\",SUM(J2346:L2346))","v":""},"Required","Required"]
["",null,{"$f":"IF('TSA Input'!J2309=\"\",\"\",IF(OR('TSA Input'!J2309=\"Yes\",'TSA Input'!J2309=\"Contingent\"),'TSA Input'!B2309,\"Ineligible\"))","v":""},{"$f":"IF('TSA Input'!J2309=\"\",\"\",IF(OR('TSA Input'!J2309=\"Yes\",'TSA Input'!J2309=\"Contingent\"),'TSA Input'!I2309,\"\"))","v":""},{"$f":"IF('TSA Input'!J2309=\"\",\"\",IF(OR('TSA Input'!J2309=\"Yes\",'TSA Input'!J2309=\"Contingent\"),'TSA Input'!C2309,\"\"))","v":""},{"$f":"IF('TSA Input'!J2309=\"\",\"\",IF(OR('TSA Input'!J2309=\"Yes\",'TSA Input'!J2309=\"Contingent\"),'TSA Input'!D2309,\"\"))","v":""},{"$f":"IF('TSA Input'!J2309=\"\",\"\",IF(OR('TSA Input'!J2309=\"Yes\",'TSA Input'!J2309=\"Contingent\"),'TSA Input'!G2309,\"\"))","v":""},{"$f":"IF('TSA Input'!J2309=\"\",\"\",IF(OR('TSA Input'!J2309=\"Yes\",'TSA Input'!J2309=\"Contingent\"),'TSA Input'!F2309,\"\"))","v":""},"",{"$f":"IF('TSA Input'!J2309=\"\",\"\",IF(OR('TSA Input'!J2309=\"Yes\",'TSA Input'!J2309=\"Contingent\"),'TSA Input'!D2309,\"\"))","v":""},{"$f":"IF('TSA Input'!J2309=\"\",\"\",IF(OR('TSA Input'!J2309=\"Yes\",'TSA Input'!J2309=\"Contingent\"),'TSA Input'!G2309,\"\"))","v":""},{"$f":"IF('TSA Input'!J2309=\"\",\"\",IF(OR('TSA Input'!J2309=\"Yes\",'TSA Input'!J2309=\"Contingent\"),'TSA Input'!F2309,\"\"))","v":""},"","Required","Required"]
["",null,{"$f":"IF('TSA Input'!J2310=\"\",\"\",IF(OR('TSA Input'!J2310=\"Yes\",'TSA Input'!J2310=\"Contingent\"),'TSA Input'!B2310,\"Ineligible\"))","v":""},{"$f":"IF('TSA Input'!J2310=\"\",\"\",IF(OR('TSA Input'!J2310=\"Yes\",'TSA Input'!J2310=\"Contingent\"),'TSA Input'!I2310,\"\"))","v":""},{"$f":"IF('TSA Input'!J2310=\"\",\"\",IF(OR('TSA Input'!J2310=\"Yes\",'TSA Input'!J2310=\"Contingent\"),'TSA Input'!C2310,\"\"))","v":""},{"$f":"IF('TSA Input'!J2310=\"\",\"\",IF(OR('TSA Input'!J2310=\"Yes\",'TSA Input'!J2310=\"Contingent\"),'TSA Input'!D2310,\"\"))","v":""},{"$f":"IF('TSA Input'!J2310=\"\",\"\",IF(OR('TSA Input'!J2310=\"Yes\",'TSA Input'!J2310=\"Contingent\"),'TSA Input'!G2310,\"\"))","v":""},{"$f":"IF('TSA Input'!J2310=\"\",\"\",IF(OR('TSA Input'!J2310=\"Yes\",'TSA Input'!J2310=\"Contingent\"),'TSA Input'!F2310,\"\"))","v":""},"",{"$f":"IF('TSA Input'!J2310=\"\",\"\",IF(OR('TSA Input'!J2310=\"Yes\",'TSA Input'!J2310=\"Contingent\"),'TSA Input'!D2310,\"\"))","v":""},{"$f":"IF('TSA Input'!J2310=\"\",\"\",IF(OR('TSA Input'!J2310=\"Yes\",'TSA Input'!J2310=\"Contingent\"),'TSA Input'!G2310,\"\"))","v":""},{"$f":"IF('TSA Input'!J2310=\"\",\"\",IF(OR('TSA Input'!J2310=\"Yes\",'TSA Input'!J2310=\"Contingent\"),'TSA Input'!F2310,\"\"))","v":""},"","Required","Required"]
["",null,{"$f":"IF('TSA Input'!J2311=\"\",\"\",IF(OR('TSA Input'!J2311=\"Yes\",'TSA Input'!J2311=\"Contingent\"),'TSA Input'!B2311,\"Ineligible\"))","v":""},{"$f":"IF('TSA Input'!J2311=\"\",\"\",IF(OR('TSA Input'!J2311=\"Yes\",'TSA Input'!J2311=\"Contingent\"),'TSA Input'!I2311,\"\"))","v":""},{"$f":"IF('TSA Input'!J2311=\"\",\"\",IF(OR('TSA Input'!J2311=\"Yes\",'TSA Input'!J2311=\"Contingent\"),'TSA Input'!C2311,\"\"))","v":""},{"$f":"IF('TSA Input'!J2311=\"\",\"\",IF(OR('TSA Input'!J2311=\"Yes\",'TSA Input'!J2311=\"Contingent\"),'TSA Input'!D2311,\"\"))","v":""},{"$f":"IF('TSA Input'!J2311=\"\",\"\",IF(OR('TSA Input'!J2311=\"Yes\",'TSA Input'!J2311=\"Contingent\"),'TSA Input'!G2311,\"\"))","v":""},{"$f":"IF('TSA Input'!J2311=\"\",\"\",IF(OR('TSA Input'!J2311=\"Yes\",'TSA Input'!J2311=\"Contingent\"),'TSA Input'!F2311,\"\"))","v":""},"",{"$f":"IF('TSA Input'!J2311=\"\",\"\",IF(OR('TSA Input'!J2311=\"Yes\",'TSA Input'!J2311=\"Contingent\"),'TSA Input'!D2311,\"\"))","v":""},{"$f":"IF('TSA Input'!J2311=\"\",\"\",IF(OR('TSA Input'!J2311=\"Yes\",'TSA Input'!J2311=\"Contingent\"),'TSA Input'!G2311,\"\"))","v":""},{"$f":"IF('TSA Input'!J2311=\"\",\"\",IF(OR('TSA Input'!J2311=\"Yes\",'TSA Input'!J2311=\"Contingent\"),'TSA Input'!F2311,\"\"))","v":""},"","Required","Required"]
["",null,{"$f":"IF('TSA Input'!J2312=\"\",\"\",IF(OR('TSA Input'!J2312=\"Yes\",'TSA Input'!J2312=\"Contingent\"),'TSA Input'!B2312,\"Ineligible\"))","v":""},{"$f":"IF('TSA Input'!J2312=\"\",\"\",IF(OR('TSA Input'!J2312=\"Yes\",'TSA Input'!J2312=\"Contingent\"),'TSA Input'!I2312,\"\"))","v":""},{"$f":"IF('TSA Input'!J2312=\"\",\"\",IF(OR('TSA Input'!J2312=\"Yes\",'TSA Input'!J2312=\"Contingent\"),'TSA Input'!C2312,\"\"))","v":""},{"$f":"IF('TSA Input'!J2312=\"\",\"\",IF(OR('TSA Input'!J2312=\"Yes\",'TSA Input'!J2312=\"Contingent\"),'TSA Input'!D2312,\"\"))","v":""},{"$f":"IF('TSA Input'!J2312=\"\",\"\",IF(OR('TSA Input'!J2312=\"Yes\",'TSA Input'!J2312=\"Contingent\"),'TSA Input'!G2312,\"\"))","v":""},{"$f":"IF('TSA Input'!J2312=\"\",\"\",IF(OR('TSA Input'!J2312=\"Yes\",'TSA Input'!J2312=\"Contingent\"),'TSA Input'!F2312,\"\"))","v":""},"",{"$f":"IF('TSA Input'!J2312=\"\",\"\",IF(OR('TSA Input'!J2312=\"Yes\",'TSA Input'!J2312=\"Contingent\"),'TSA Input'!D2312,\"\"))","v":""},{"$f":"IF('TSA Input'!J2312=\"\",\"\",IF(OR('TSA Input'!J2312=\"Yes\",'TSA Input'!J2312=\"Contingent\"),'TSA Input'!G2312,\"\"))","v":""},{"$f":"IF('TSA Input'!J2312=\"\",\"\",IF(OR('TSA Input'!J2312=\"Yes\",'TSA Input'!J2312=\"Contingent\"),'TSA Input'!F2312,\"\"))","v":""},"","Required","Required"]
["",null,{"$f":"IF('TSA Input'!J2313=\"\",\"\",IF(OR('TSA Input'!J2313=\"Yes\",'TSA Input'!J2313=\"Contingent\"),'TSA Input'!B2313,\"Ineligible\"))","v":""},{"$f":"IF('TSA Input'!J2313=\"\",\"\",IF(OR('TSA Input'!J2313=\"Yes\",'TSA Input'!J2313=\"Contingent\"),'TSA Input'!I2313,\"\"))","v":""},{"$f":"IF('TSA Input'!J2313=\"\",\"\",IF(OR('TSA Input'!J2313=\"Yes\",'TSA Input'!J2313=\"Contingent\"),'TSA Input'!C2313,\"\"))","v":""},{"$f":"IF('TSA Input'!J2313=\"\",\"\",IF(OR('TSA Input'!J2313=\"Yes\",'TSA Input'!J2313=\"Contingent\"),'TSA Input'!D2313,\"\"))","v":""},{"$f":"IF('TSA Input'!J2313=\"\",\"\",IF(OR('TSA Input'!J2313=\"Yes\",'TSA Input'!J2313=\"Contingent\"),'TSA Input'!G2313,\"\"))","v":""},{"$f":"IF('TSA Input'!J2313=\"\",\"\",IF(OR('TSA Input'!J2313=\"Yes\",'TSA Input'!J2313=\"Contingent\"),'TSA Input'!F2313,\"\"))","v":""},"",{"$f":"IF('TSA Input'!J2313=\"\",\"\",IF(OR('TSA Input'!J2313=\"Yes\",'TSA Input'!J2313=\"Contingent\"),'TSA Input'!D2313,\"\"))","v":""},{"$f":"IF('TSA Input'!J2313=\"\",\"\",IF(OR('TSA Input'!J2313=\"Yes\",'TSA Input'!J2313=\"Contingent\"),'TSA Input'!G2313,\"\"))","v":""},{"$f":"IF('TSA Input'!J2313=\"\",\"\",IF(OR('TSA Input'!J2313=\"Yes\",'TSA Input'!J2313=\"Contingent\"),'TSA Input'!F2313,\"\"))","v":""},"","Required","Required"]
["",null,{"$f":"IF('TSA Input'!J2314=\"\",\"\",IF(OR('TSA Input'!J2314=\"Yes\",'TSA Input'!J2314=\"Contingent\"),'TSA Input'!B2314,\"Ineligible\"))","v":""},{"$f":"IF('TSA Input'!J2314=\"\",\"\",IF(OR('TSA Input'!J2314=\"Yes\",'TSA Input'!J2314=\"Contingent\"),'TSA Input'!I2314,\"\"))","v":""},{"$f":"IF('TSA Input'!J2314=\"\",\"\",IF(OR('TSA Input'!J2314=\"Yes\",'TSA Input'!J2314=\"Contingent\"),'TSA Input'!C2314,\"\"))","v":""},{"$f":"IF('TSA Input'!J2314=\"\",\"\",IF(OR('TSA Input'!J2314=\"Yes\",'TSA Input'!J2314=\"Contingent\"),'TSA Input'!D2314,\"\"))","v":""},{"$f":"IF('TSA Input'!J2314=\"\",\"\",IF(OR('TSA Input'!J2314=\"Yes\",'TSA Input'!J2314=\"Contingent\"),'TSA Input'!G2314,\"\"))","v":""},{"$f":"IF('TSA Input'!J2314=\"\",\"\",IF(OR('TSA Input'!J2314=\"Yes\",'TSA Input'!J2314=\"Contingent\"),'TSA Input'!F2314,\"\"))","v":""},"",{"$f":"IF('TSA Input'!J2314=\"\",\"\",IF(OR('TSA Input'!J2314=\"Yes\",'TSA Input'!J2314=\"Contingent\"),'TSA Input'!D2314,\"\"))","v":""},{"$f":"IF('TSA Input'!J2314=\"\",\"\",IF(OR('TSA Input'!J2314=\"Yes\",'TSA Input'!J2314=\"Contingent\"),'TSA Input'!G2314,\"\"))","v":""},{"$f":"IF('TSA Input'!J2314=\"\",\"\",IF(OR('TSA Input'!J2314=\"Yes\",'TSA Input'!J2314=\"Contingent\"),'TSA Input'!F2314,\"\"))","v":""},"","Required","Required"]
["",null,{"$f":"IF('TSA Input'!J2315=\"\",\"\",IF(OR('TSA Input'!J2315=\"Yes\",'TSA Input'!J2315=\"Contingent\"),'TSA Input'!B2315,\"Ineligible\"))","v":""},{"$f":"IF('TSA Input'!J2315=\"\",\"\",IF(OR('TSA Input'!J2315=\"Yes\",'TSA Input'!J2315=\"Contingent\"),'TSA Input'!I2315,\"\"))","v":""},{"$f":"IF('TSA Input'!J2315=\"\",\"\",IF(OR('TSA Input'!J2315=\"Yes\",'TSA Input'!J2315=\"Contingent\"),'TSA Input'!C2315,\"\"))","v":""},{"$f":"IF('TSA Input'!J2315=\"\",\"\",IF(OR('TSA Input'!J2315=\"Yes\",'TSA Input'!J2315=\"Contingent\"),'TSA Input'!D2315,\"\"))","v":""},{"$f":"IF('TSA Input'!J2315=\"\",\"\",IF(OR('TSA Input'!J2315=\"Yes\",'TSA Input'!J2315=\"Contingent\"),'TSA Input'!G2315,\"\"))","v":""},{"$f":"IF('TSA Input'!J2315=\"\",\"\",IF(OR('TSA Input'!J2315=\"Yes\",'TSA Input'!J2315=\"Contingent\"),'TSA Input'!F2315,\"\"))","v":""},"",{"$f":"IF('TSA Input'!J2315=\"\",\"\",IF(OR('TSA Input'!J2315=\"Yes\",'TSA Input'!J2315=\"Contingent\"),'TSA Input'!D2315,\"\"))","v":""},{"$f":"IF('TSA Input'!J2315=\"\",\"\",IF(OR('TSA Input'!J2315=\"Yes\",'TSA Input'!J2315=\"Contingent\"),'TSA Input'!G2315,\"\"))","v":""},{"$f":"IF('TSA Input'!J2315=\"\",\"\",IF(OR('TSA Input'!J2315=\"Yes\",'TSA Input'!J2315=\"Contingent\"),'TSA Input'!F2315,\"\"))","v":""},"","Required","Required"]
["",null,{"$f":"IF('TSA Input'!J2316=\"\",\"\",IF(OR('TSA Input'!J2316=\"Yes\",'TSA Input'!J2316=\"Contingent\"),'TSA Input'!B2316,\"Ineligible\"))","v":""},{"$f":"IF('TSA Input'!J2316=\"\",\"\",IF(OR('TSA Input'!J2316=\"Yes\",'TSA Input'!J2316=\"Contingent\"),'TSA Input'!I2316,\"\"))","v":""},{"$f":"IF('TSA Input'!J2316=\"\",\"\",IF(OR('TSA Input'!J2316=\"Yes\",'TSA Input'!J2316=\"Contingent\"),'TSA Input'!C2316,\"\"))","v":""},{"$f":"IF('TSA Input'!J2316=\"\",\"\",IF(OR('TSA Input'!J2316=\"Yes\",'TSA Input'!J2316=\"Contingent\"),'TSA Input'!D2316,\"\"))","v":""},{"$f":"IF('TSA Input'!J2316=\"\",\"\",IF(OR('TSA Input'!J2316=\"Yes\",'TSA Input'!J2316=\"Contingent\"),'TSA Input'!G2316,\"\"))","v":""},{"$f":"IF('TSA Input'!J2316=\"\",\"\",IF(OR('TSA Input'!J2316=\"Yes\",'TSA Input'!J2316=\"Contingent\"),'TSA Input'!F2316,\"\"))","v":""},"",{"$f":"IF('TSA Input'!J2316=\"\",\"\",IF(OR('TSA Input'!J2316=\"Yes\",'TSA Input'!J2316=\"Contingent\"),'TSA Input'!D2316,\"\"))","v":""},{"$f":"IF('TSA Input'!J2316=\"\",\"\",IF(OR('TSA Input'!J2316=\"Yes\",'TSA Input'!J2316=\"Contingent\"),'TSA Input'!G2316,\"\"))","v":""},{"$f":"IF('TSA Input'!J2316=\"\",\"\",IF(OR('TSA Input'!J2316=\"Yes\",'TSA Input'!J2316=\"Contingent\"),'TSA Input'!F2316,\"\"))","v":""},"","Required","Required"]
["",null,{"$f":"IF('TSA Input'!J2317=\"\",\"\",IF(OR('TSA Input'!J2317=\"Yes\",'TSA Input'!J2317=\"Contingent\"),'TSA Input'!B2317,\"Ineligible\"))","v":""},{"$f":"IF('TSA Input'!J2317=\"\",\"\",IF(OR('TSA Input'!J2317=\"Yes\",'TSA Input'!J2317=\"Contingent\"),'TSA Input'!I2317,\"\"))","v":""},{"$f":"IF('TSA Input'!J2317=\"\",\"\",IF(OR('TSA Input'!J2317=\"Yes\",'TSA Input'!J2317=\"Contingent\"),'TSA Input'!C2317,\"\"))","v":""},{"$f":"IF('TSA Input'!J2317=\"\",\"\",IF(OR('TSA Input'!J2317=\"Yes\",'TSA Input'!J2317=\"Contingent\"),'TSA Input'!D2317,\"\"))","v":""},{"$f":"IF('TSA Input'!J2317=\"\",\"\",IF(OR('TSA Input'!J2317=\"Yes\",'TSA Input'!J2317=\"Contingent\"),'TSA Input'!G2317,\"\"))","v":""},{"$f":"IF('TSA Input'!J2317=\"\",\"\",IF(OR('TSA Input'!J2317=\"Yes\",'TSA Input'!J2317=\"Contingent\"),'TSA Input'!F2317,\"\"))","v":""},"",{"$f":"IF('TSA Input'!J2317=\"\",\"\",IF(OR('TSA Input'!J2317=\"Yes\",'TSA Input'!J2317=\"Contingent\"),'TSA Input'!D2317,\"\"))","v":""},{"$f":"IF('TSA Input'!J2317=\"\",\"\",IF(OR('TSA Input'!J2317=\"Yes\",'TSA Input'!J2317=\"Contingent\"),'TSA Input'!G2317,\"\"))","v":""},{"$f":"IF('TSA Input'!J2317=\"\",\"\",IF(OR('TSA Input'!J2317=\"Yes\",'TSA Input'!J2317=\"Contingent\"),'TSA Input'!F2317,\"\"))","v":""},"","Required","Required"]
["",null,{"$f":"IF('TSA Input'!J2318=\"\",\"\",IF(OR('TSA Input'!J2318=\"Yes\",'TSA Input'!J2318=\"Contingent\"),'TSA Input'!B2318,\"Ineligible\"))","v":""},{"$f":"IF('TSA Input'!J2318=\"\",\"\",IF(OR('TSA Input'!J2318=\"Yes\",'TSA Input'!J2318=\"Contingent\"),'TSA Input'!I2318,\"\"))","v":""},{"$f":"IF('TSA Input'!J2318=\"\",\"\",IF(OR('TSA Input'!J2318=\"Yes\",'TSA Input'!J2318=\"Contingent\"),'TSA Input'!C2318,\"\"))","v":""},{"$f":"IF('TSA Input'!J2318=\"\",\"\",IF(OR('TSA Input'!J2318=\"Yes\",'TSA Input'!J2318=\"Contingent\"),'TSA Input'!D2318,\"\"))","v":""},{"$f":"IF('TSA Input'!J2318=\"\",\"\",IF(OR('TSA Input'!J2318=\"Yes\",'TSA Input'!J2318=\"Contingent\"),'TSA Input'!G2318,\"\"))","v":""},{"$f":"IF('TSA Input'!J2318=\"\",\"\",IF(OR('TSA Input'!J2318=\"Yes\",'TSA Input'!J2318=\"Contingent\"),'TSA Input'!F2318,\"\"))","v":""},"",{"$f":"IF('TSA Input'!J2318=\"\",\"\",IF(OR('TSA Input'!J2318=\"Yes\",'TSA Input'!J2318=\"Contingent\"),'TSA Input'!D2318,\"\"))","v":""},{"$f":"IF('TSA Input'!J2318=\"\",\"\",IF(OR('TSA Input'!J2318=\"Yes\",'TSA Input'!J2318=\"Contingent\"),'TSA Input'!G2318,\"\"))","v":""},{"$f":"IF('TSA Input'!J2318=\"\",\"\",IF(OR('TSA Input'!J2318=\"Yes\",'TSA Input'!J2318=\"Contingent\"),'TSA Input'!F2318,\"\"))","v":""},"","Required","Required"]
["",null,{"$f":"IF('TSA Input'!J2319=\"\",\"\",IF(OR('TSA Input'!J2319=\"Yes\",'TSA Input'!J2319=\"Contingent\"),'TSA Input'!B2319,\"Ineligible\"))","v":""},{"$f":"IF('TSA Input'!J2319=\"\",\"\",IF(OR('TSA Input'!J2319=\"Yes\",'TSA Input'!J2319=\"Contingent\"),'TSA Input'!I2319,\"\"))","v":""},{"$f":"IF('TSA Input'!J2319=\"\",\"\",IF(OR('TSA Input'!J2319=\"Yes\",'TSA Input'!J2319=\"Contingent\"),'TSA Input'!C2319,\"\"))","v":""},{"$f":"IF('TSA Input'!J2319=\"\",\"\",IF(OR('TSA Input'!J2319=\"Yes\",'TSA Input'!J2319=\"Contingent\"),'TSA Input'!D2319,\"\"))","v":""},{"$f":"IF('TSA Input'!J2319=\"\",\"\",IF(OR('TSA Input'!J2319=\"Yes\",'TSA Input'!J2319=\"Contingent\"),'TSA Input'!G2319,\"\"))","v":""},{"$f":"IF('TSA Input'!J2319=\"\",\"\",IF(OR('TSA Input'!J2319=\"Yes\",'TSA Input'!J2319=\"Contingent\"),'TSA Input'!F2319,\"\"))","v":""},"",{"$f":"IF('TSA Input'!J2319=\"\",\"\",IF(OR('TSA Input'!J2319=\"Yes\",'TSA Input'!J2319=\"Contingent\"),'TSA Input'!D2319,\"\"))","v":""},{"$f":"IF('TSA Input'!J2319=\"\",\"\",IF(OR('TSA Input'!J2319=\"Yes\",'TSA Input'!J2319=\"Contingent\"),'TSA Input'!G2319,\"\"))","v":""},{"$f":"IF('TSA Input'!J2319=\"\",\"\",IF(OR('TSA Input'!J2319=\"Yes\",'TSA Input'!J2319=\"Contingent\"),'TSA Input'!F2319,\"\"))","v":""},"","Required","Required"]
["",null,{"$f":"IF('TSA Input'!J2320=\"\",\"\",IF(OR('TSA Input'!J2320=\"Yes\",'TSA Input'!J2320=\"Contingent\"),'TSA Input'!B2320,\"Ineligible\"))","v":""},{"$f":"IF('TSA Input'!J2320=\"\",\"\",IF(OR('TSA Input'!J2320=\"Yes\",'TSA Input'!J2320=\"Contingent\"),'TSA Input'!I2320,\"\"))","v":""},{"$f":"IF('TSA Input'!J2320=\"\",\"\",IF(OR('TSA Input'!J2320=\"Yes\",'TSA Input'!J2320=\"Contingent\"),'TSA Input'!C2320,\"\"))","v":""},{"$f":"IF('TSA Input'!J2320=\"\",\"\",IF(OR('TSA Input'!J2320=\"Yes\",'TSA Input'!J2320=\"Contingent\"),'TSA Input'!D2320,\"\"))","v":""},{"$f":"IF('TSA Input'!J2320=\"\",\"\",IF(OR('TSA Input'!J2320=\"Yes\",'TSA Input'!J2320=\"Contingent\"),'TSA Input'!G2320,\"\"))","v":""},{"$f":"IF('TSA Input'!J2320=\"\",\"\",IF(OR('TSA Input'!J2320=\"Yes\",'TSA Input'!J2320=\"Contingent\"),'TSA Input'!F2320,\"\"))","v":""},"",{"$f":"IF('TSA Input'!J2320=\"\",\"\",IF(OR('TSA Input'!J2320=\"Yes\",'TSA Input'!J2320=\"Contingent\"),'TSA Input'!D2320,\"\"))","v":""},{"$f":"IF('TSA Input'!J2320=\"\",\"\",IF(OR('TSA Input'!J2320=\"Yes\",'TSA Input'!J2320=\"Contingent\"),'TSA Input'!G2320,\"\"))","v":""},{"$f":"IF('TSA Input'!J2320=\"\",\"\",IF(OR('TSA Input'!J2320=\"Yes\",'TSA Input'!J2320=\"Contingent\"),'TSA Input'!F2320,\"\"))","v":""},"","Required","Required"]
["",null,{"$f":"IF('TSA Input'!J2321=\"\",\"\",IF(OR('TSA Input'!J2321=\"Yes\",'TSA Input'!J2321=\"Contingent\"),'TSA Input'!B2321,\"Ineligible\"))","v":""},{"$f":"IF('TSA Input'!J2321=\"\",\"\",IF(OR('TSA Input'!J2321=\"Yes\",'TSA Input'!J2321=\"Contingent\"),'TSA Input'!I2321,\"\"))","v":""},{"$f":"IF('TSA Input'!J2321=\"\",\"\",IF(OR('TSA Input'!J2321=\"Yes\",'TSA Input'!J2321=\"Contingent\"),'TSA Input'!C2321,\"\"))","v":""},{"$f":"IF('TSA Input'!J2321=\"\",\"\",IF(OR('TSA Input'!J2321=\"Yes\",'TSA Input'!J2321=\"Contingent\"),'TSA Input'!D2321,\"\"))","v":""},{"$f":"IF('TSA Input'!J2321=\"\",\"\",IF(OR('TSA Input'!J2321=\"Yes\",'TSA Input'!J2321=\"Contingent\"),'TSA Input'!G2321,\"\"))","v":""},{"$f":"IF('TSA Input'!J2321=\"\",\"\",IF(OR('TSA Input'!J2321=\"Yes\",'TSA Input'!J2321=\"Contingent\"),'TSA Input'!F2321,\"\"))","v":""},"",{"$f":"IF('TSA Input'!J2321=\"\",\"\",IF(OR('TSA Input'!J2321=\"Yes\",'TSA Input'!J2321=\"Contingent\"),'TSA Input'!D2321,\"\"))","v":""},{"$f":"IF('TSA Input'!J2321=\"\",\"\",IF(OR('TSA Input'!J2321=\"Yes\",'TSA Input'!J2321=\"Contingent\"),'TSA Input'!G2321,\"\"))","v":""},{"$f":"IF('TSA Input'!J2321=\"\",\"\",IF(OR('TSA Input'!J2321=\"Yes\",'TSA Input'!J2321=\"Contingent\"),'TSA Input'!F2321,\"\"))","v":""},"","Required","Required"]
["",null,{"$f":"IF('TSA Input'!J2322=\"\",\"\",IF(OR('TSA Input'!J2322=\"Yes\",'TSA Input'!J2322=\"Contingent\"),'TSA Input'!B2322,\"Ineligible\"))","v":""},{"$f":"IF('TSA Input'!J2322=\"\",\"\",IF(OR('TSA Input'!J2322=\"Yes\",'TSA Input'!J2322=\"Contingent\"),'TSA Input'!I2322,\"\"))","v":""},{"$f":"IF('TSA Input'!J2322=\"\",\"\",IF(OR('TSA Input'!J2322=\"Yes\",'TSA Input'!J2322=\"Contingent\"),'TSA Input'!C2322,\"\"))","v":""},{"$f":"IF('TSA Input'!J2322=\"\",\"\",IF(OR('TSA Input'!J2322=\"Yes\",'TSA Input'!J2322=\"Contingent\"),'TSA Input'!D2322,\"\"))","v":""},{"$f":"IF('TSA Input'!J2322=\"\",\"\",IF(OR('TSA Input'!J2322=\"Yes\",'TSA Input'!J2322=\"Contingent\"),'TSA Input'!G2322,\"\"))","v":""},{"$f":"IF('TSA Input'!J2322=\"\",\"\",IF(OR('TSA Input'!J2322=\"Yes\",'TSA Input'!J2322=\"Contingent\"),'TSA Input'!F2322,\"\"))","v":""},"",{"$f":"IF('TSA Input'!J2322=\"\",\"\",IF(OR('TSA Input'!J2322=\"Yes\",'TSA Input'!J2322=\"Contingent\"),'TSA Input'!D2322,\"\"))","v":""},{"$f":"IF('TSA Input'!J2322=\"\",\"\",IF(OR('TSA Input'!J2322=\"Yes\",'TSA Input'!J2322=\"Contingent\"),'TSA Input'!G2322,\"\"))","v":""},{"$f":"IF('TSA Input'!J2322=\"\",\"\",IF(OR('TSA Input'!J2322=\"Yes\",'TSA Input'!J2322=\"Contingent\"),'TSA Input'!F2322,\"\"))","v":""},"","Required","Required"]
["",null,{"$f":"IF('TSA Input'!J2323=\"\",\"\",IF(OR('TSA Input'!J2323=\"Yes\",'TSA Input'!J2323=\"Contingent\"),'TSA Input'!B2323,\"Ineligible\"))","v":""},{"$f":"IF('TSA Input'!J2323=\"\",\"\",IF(OR('TSA Input'!J2323=\"Yes\",'TSA Input'!J2323=\"Contingent\"),'TSA Input'!I2323,\"\"))","v":""},{"$f":"IF('TSA Input'!J2323=\"\",\"\",IF(OR('TSA Input'!J2323=\"Yes\",'TSA Input'!J2323=\"Contingent\"),'TSA Input'!C2323,\"\"))","v":""},{"$f":"IF('TSA Input'!J2323=\"\",\"\",IF(OR('TSA Input'!J2323=\"Yes\",'TSA Input'!J2323=\"Contingent\"),'TSA Input'!D2323,\"\"))","v":""},{"$f":"IF('TSA Input'!J2323=\"\",\"\",IF(OR('TSA Input'!J2323=\"Yes\",'TSA Input'!J2323=\"Contingent\"),'TSA Input'!G2323,\"\"))","v":""},{"$f":"IF('TSA Input'!J2323=\"\",\"\",IF(OR('TSA Input'!J2323=\"Yes\",'TSA Input'!J2323=\"Contingent\"),'TSA Input'!F2323,\"\"))","v":""},"",{"$f":"IF('TSA Input'!J2323=\"\",\"\",IF(OR('TSA Input'!J2323=\"Yes\",'TSA Input'!J2323=\"Contingent\"),'TSA Input'!D2323,\"\"))","v":""},{"$f":"IF('TSA Input'!J2323=\"\",\"\",IF(OR('TSA Input'!J2323=\"Yes\",'TSA Input'!J2323=\"Contingent\"),'TSA Input'!G2323,\"\"))","v":""},{"$f":"IF('TSA Input'!J2323=\"\",\"\",IF(OR('TSA Input'!J2323=\"Yes\",'TSA Input'!J2323=\"Contingent\"),'TSA Input'!F2323,\"\"))","v":""},"","Required","Required"]
["",null,{"$f":"IF('TSA Input'!J2324=\"\",\"\",IF(OR('TSA Input'!J2324=\"Yes\",'TSA Input'!J2324=\"Contingent\"),'TSA Input'!B2324,\"Ineligible\"))","v":""},{"$f":"IF('TSA Input'!J2324=\"\",\"\",IF(OR('TSA Input'!J2324=\"Yes\",'TSA Input'!J2324=\"Contingent\"),'TSA Input'!I2324,\"\"))","v":""},{"$f":"IF('TSA Input'!J2324=\"\",\"\",IF(OR('TSA Input'!J2324=\"Yes\",'TSA Input'!J2324=\"Contingent\"),'TSA Input'!C2324,\"\"))","v":""},{"$f":"IF('TSA Input'!J2324=\"\",\"\",IF(OR('TSA Input'!J2324=\"Yes\",'TSA Input'!J2324=\"Contingent\"),'TSA Input'!D2324,\"\"))","v":""},{"$f":"IF('TSA Input'!J2324=\"\",\"\",IF(OR('TSA Input'!J2324=\"Yes\",'TSA Input'!J2324=\"Contingent\"),'TSA Input'!G2324,\"\"))","v":""},{"$f":"IF('TSA Input'!J2324=\"\",\"\",IF(OR('TSA Input'!J2324=\"Yes\",'TSA Input'!J2324=\"Contingent\"),'TSA Input'!F2324,\"\"))","v":""},"",{"$f":"IF('TSA Input'!J2324=\"\",\"\",IF(OR('TSA Input'!J2324=\"Yes\",'TSA Input'!J2324=\"Contingent\"),'TSA Input'!D2324,\"\"))","v":""},{"$f":"IF('TSA Input'!J2324=\"\",\"\",IF(OR('TSA Input'!J2324=\"Yes\",'TSA Input'!J2324=\"Contingent\"),'TSA Input'!G2324,\"\"))","v":""},{"$f":"IF('TSA Input'!J2324=\"\",\"\",IF(OR('TSA Input'!J2324=\"Yes\",'TSA Input'!J2324=\"Contingent\"),'TSA Input'!F2324,\"\"))","v":""},"","Required","Required"]
["",null,{"$f":"IF('TSA Input'!J2325=\"\",\"\",IF(OR('TSA Input'!J2325=\"Yes\",'TSA Input'!J2325=\"Contingent\"),'TSA Input'!B2325,\"Ineligible\"))","v":""},{"$f":"IF('TSA Input'!J2325=\"\",\"\",IF(OR('TSA Input'!J2325=\"Yes\",'TSA Input'!J2325=\"Contingent\"),'TSA Input'!I2325,\"\"))","v":""},{"$f":"IF('TSA Input'!J2325=\"\",\"\",IF(OR('TSA Input'!J2325=\"Yes\",'TSA Input'!J2325=\"Contingent\"),'TSA Input'!C2325,\"\"))","v":""},{"$f":"IF('TSA Input'!J2325=\"\",\"\",IF(OR('TSA Input'!J2325=\"Yes\",'TSA Input'!J2325=\"Contingent\"),'TSA Input'!D2325,\"\"))","v":""},{"$f":"IF('TSA Input'!J2325=\"\",\"\",IF(OR('TSA Input'!J2325=\"Yes\",'TSA Input'!J2325=\"Contingent\"),'TSA Input'!G2325,\"\"))","v":""},{"$f":"IF('TSA Input'!J2325=\"\",\"\",IF(OR('TSA Input'!J2325=\"Yes\",'TSA Input'!J2325=\"Contingent\"),'TSA Input'!F2325,\"\"))","v":""},"",{"$f":"IF('TSA Input'!J2325=\"\",\"\",IF(OR('TSA Input'!J2325=\"Yes\",'TSA Input'!J2325=\"Contingent\"),'TSA Input'!D2325,\"\"))","v":""},{"$f":"IF('TSA Input'!J2325=\"\",\"\",IF(OR('TSA Input'!J2325=\"Yes\",'TSA Input'!J2325=\"Contingent\"),'TSA Input'!G2325,\"\"))","v":""},{"$f":"IF('TSA Input'!J2325=\"\",\"\",IF(OR('TSA Input'!J2325=\"Yes\",'TSA Input'!J2325=\"Contingent\"),'TSA Input'!F2325,\"\"))","v":""},"","Required","Required"]
["",null,{"$f":"IF('TSA Input'!J2326=\"\",\"\",IF(OR('TSA Input'!J2326=\"Yes\",'TSA Input'!J2326=\"Contingent\"),'TSA Input'!B2326,\"Ineligible\"))","v":""},{"$f":"IF('TSA Input'!J2326=\"\",\"\",IF(OR('TSA Input'!J2326=\"Yes\",'TSA Input'!J2326=\"Contingent\"),'TSA Input'!I2326,\"\"))","v":""},{"$f":"IF('TSA Input'!J2326=\"\",\"\",IF(OR('TSA Input'!J2326=\"Yes\",'TSA Input'!J2326=\"Contingent\"),'TSA Input'!C2326,\"\"))","v":""},{"$f":"IF('TSA Input'!J2326=\"\",\"\",IF(OR('TSA Input'!J2326=\"Yes\",'TSA Input'!J2326=\"Contingent\"),'TSA Input'!D2326,\"\"))","v":""},{"$f":"IF('TSA Input'!J2326=\"\",\"\",IF(OR('TSA Input'!J2326=\"Yes\",'TSA Input'!J2326=\"Contingent\"),'TSA Input'!G2326,\"\"))","v":""},{"$f":"IF('TSA Input'!J2326=\"\",\"\",IF(OR('TSA Input'!J2326=\"Yes\",'TSA Input'!J2326=\"Contingent\"),'TSA Input'!F2326,\"\"))","v":""},"",{"$f":"IF('TSA Input'!J2326=\"\",\"\",IF(OR('TSA Input'!J2326=\"Yes\",'TSA Input'!J2326=\"Contingent\"),'TSA Input'!D2326,\"\"))","v":""},{"$f":"IF('TSA Input'!J2326=\"\",\"\",IF(OR('TSA Input'!J2326=\"Yes\",'TSA Input'!J2326=\"Contingent\"),'TSA Input'!G2326,\"\"))","v":""},{"$f":"IF('TSA Input'!J2326=\"\",\"\",IF(OR('TSA Input'!J2326=\"Yes\",'TSA Input'!J2326=\"Contingent\"),'TSA Input'!F2326,\"\"))","v":""},"","Required","Required"]
["",null,{"$f":"IF('TSA Input'!J2327=\"\",\"\",IF(OR('TSA Input'!J2327=\"Yes\",'TSA Input'!J2327=\"Contingent\"),'TSA Input'!B2327,\"Ineligible\"))","v":""},{"$f":"IF('TSA Input'!J2327=\"\",\"\",IF(OR('TSA Input'!J2327=\"Yes\",'TSA Input'!J2327=\"Contingent\"),'TSA Input'!I2327,\"\"))","v":""},{"$f":"IF('TSA Input'!J2327=\"\",\"\",IF(OR('TSA Input'!J2327=\"Yes\",'TSA Input'!J2327=\"Contingent\"),'TSA Input'!C2327,\"\"))","v":""},{"$f":"IF('TSA Input'!J2327=\"\",\"\",IF(OR('TSA Input'!J2327=\"Yes\",'TSA Input'!J2327=\"Contingent\"),'TSA Input'!D2327,\"\"))","v":""},{"$f":"IF('TSA Input'!J2327=\"\",\"\",IF(OR('TSA Input'!J2327=\"Yes\",'TSA Input'!J2327=\"Contingent\"),'TSA Input'!G2327,\"\"))","v":""},{"$f":"IF('TSA Input'!J2327=\"\",\"\",IF(OR('TSA Input'!J2327=\"Yes\",'TSA Input'!J2327=\"Contingent\"),'TSA Input'!F2327,\"\"))","v":""},"",{"$f":"IF('TSA Input'!J2327=\"\",\"\",IF(OR('TSA Input'!J2327=\"Yes\",'TSA Input'!J2327=\"Contingent\"),'TSA Input'!D2327,\"\"))","v":""},{"$f":"IF('TSA Input'!J2327=\"\",\"\",IF(OR('TSA Input'!J2327=\"Yes\",'TSA Input'!J2327=\"Contingent\"),'TSA Input'!G2327,\"\"))","v":""},{"$f":"IF('TSA Input'!J2327=\"\",\"\",IF(OR('TSA Input'!J2327=\"Yes\",'TSA Input'!J2327=\"Contingent\"),'TSA Input'!F2327,\"\"))","v":""},"","Required","Required"]
["",null,{"$f":"IF('TSA Input'!J2328=\"\",\"\",IF(OR('TSA Input'!J2328=\"Yes\",'TSA Input'!J2328=\"Contingent\"),'TSA Input'!B2328,\"Ineligible\"))","v":""},{"$f":"IF('TSA Input'!J2328=\"\",\"\",IF(OR('TSA Input'!J2328=\"Yes\",'TSA Input'!J2328=\"Contingent\"),'TSA Input'!I2328,\"\"))","v":""},{"$f":"IF('TSA Input'!J2328=\"\",\"\",IF(OR('TSA Input'!J2328=\"Yes\",'TSA Input'!J2328=\"Contingent\"),'TSA Input'!C2328,\"\"))","v":""},{"$f":"IF('TSA Input'!J2328=\"\",\"\",IF(OR('TSA Input'!J2328=\"Yes\",'TSA Input'!J2328=\"Contingent\"),'TSA Input'!D2328,\"\"))","v":""},{"$f":"IF('TSA Input'!J2328=\"\",\"\",IF(OR('TSA Input'!J2328=\"Yes\",'TSA Input'!J2328=\"Contingent\"),'TSA Input'!G2328,\"\"))","v":""},{"$f":"IF('TSA Input'!J2328=\"\",\"\",IF(OR('TSA Input'!J2328=\"Yes\",'TSA Input'!J2328=\"Contingent\"),'TSA Input'!F2328,\"\"))","v":""},"",{"$f":"IF('TSA Input'!J2328=\"\",\"\",IF(OR('TSA Input'!J2328=\"Yes\",'TSA Input'!J2328=\"Contingent\"),'TSA Input'!D2328,\"\"))","v":""},{"$f":"IF('TSA Input'!J2328=\"\",\"\",IF(OR('TSA Input'!J2328=\"Yes\",'TSA Input'!J2328=\"Contingent\"),'TSA Input'!G2328,\"\"))","v":""},{"$f":"IF('TSA Input'!J2328=\"\",\"\",IF(OR('TSA Input'!J2328=\"Yes\",'TSA Input'!J2328=\"Contingent\"),'TSA Input'!F2328,\"\"))","v":""},"","Required","Required"]
["",null,{"$f":"IF('TSA Input'!J2329=\"\",\"\",IF(OR('TSA Input'!J2329=\"Yes\",'TSA Input'!J2329=\"Contingent\"),'TSA Input'!B2329,\"Ineligible\"))","v":""},{"$f":"IF('TSA Input'!J2329=\"\",\"\",IF(OR('TSA Input'!J2329=\"Yes\",'TSA Input'!J2329=\"Contingent\"),'TSA Input'!I2329,\"\"))","v":""},{"$f":"IF('TSA Input'!J2329=\"\",\"\",IF(OR('TSA Input'!J2329=\"Yes\",'TSA Input'!J2329=\"Contingent\"),'TSA Input'!C2329,\"\"))","v":""},{"$f":"IF('TSA Input'!J2329=\"\",\"\",IF(OR('TSA Input'!J2329=\"Yes\",'TSA Input'!J2329=\"Contingent\"),'TSA Input'!D2329,\"\"))","v":""},{"$f":"IF('TSA Input'!J2329=\"\",\"\",IF(OR('TSA Input'!J2329=\"Yes\",'TSA Input'!J2329=\"Contingent\"),'TSA Input'!G2329,\"\"))","v":""},{"$f":"IF('TSA Input'!J2329=\"\",\"\",IF(OR('TSA Input'!J2329=\"Yes\",'TSA Input'!J2329=\"Contingent\"),'TSA Input'!F2329,\"\"))","v":""},"",{"$f":"IF('TSA Input'!J2329=\"\",\"\",IF(OR('TSA Input'!J2329=\"Yes\",'TSA Input'!J2329=\"Contingent\"),'TSA Input'!D2329,\"\"))","v":""},{"$f":"IF('TSA Input'!J2329=\"\",\"\",IF(OR('TSA Input'!J2329=\"Yes\",'TSA Input'!J2329=\"Contingent\"),'TSA Input'!G2329,\"\"))","v":""},{"$f":"IF('TSA Input'!J2329=\"\",\"\",IF(OR('TSA Input'!J2329=\"Yes\",'TSA Input'!J2329=\"Contingent\"),'TSA Input'!F2329,\"\"))","v":""},"","Required","Required"]
["",null,{"$f":"IF('TSA Input'!J2330=\"\",\"\",IF(OR('TSA Input'!J2330=\"Yes\",'TSA Input'!J2330=\"Contingent\"),'TSA Input'!B2330,\"Ineligible\"))","v":""},{"$f":"IF('TSA Input'!J2330=\"\",\"\",IF(OR('TSA Input'!J2330=\"Yes\",'TSA Input'!J2330=\"Contingent\"),'TSA Input'!I2330,\"\"))","v":""},{"$f":"IF('TSA Input'!J2330=\"\",\"\",IF(OR('TSA Input'!J2330=\"Yes\",'TSA Input'!J2330=\"Contingent\"),'TSA Input'!C2330,\"\"))","v":""},{"$f":"IF('TSA Input'!J2330=\"\",\"\",IF(OR('TSA Input'!J2330=\"Yes\",'TSA Input'!J2330=\"Contingent\"),'TSA Input'!D2330,\"\"))","v":""},{"$f":"IF('TSA Input'!J2330=\"\",\"\",IF(OR('TSA Input'!J2330=\"Yes\",'TSA Input'!J2330=\"Contingent\"),'TSA Input'!G2330,\"\"))","v":""},{"$f":"IF('TSA Input'!J2330=\"\",\"\",IF(OR('TSA Input'!J2330=\"Yes\",'TSA Input'!J2330=\"Contingent\"),'TSA Input'!F2330,\"\"))","v":""},"",{"$f":"IF('TSA Input'!J2330=\"\",\"\",IF(OR('TSA Input'!J2330=\"Yes\",'TSA Input'!J2330=\"Contingent\"),'TSA Input'!D2330,\"\"))","v":""},{"$f":"IF('TSA Input'!J2330=\"\",\"\",IF(OR('TSA Input'!J2330=\"Yes\",'TSA Input'!J2330=\"Contingent\"),'TSA Input'!G2330,\"\"))","v":""},{"$f":"IF('TSA Input'!J2330=\"\",\"\",IF(OR('TSA Input'!J2330=\"Yes\",'TSA Input'!J2330=\"Contingent\"),'TSA Input'!F2330,\"\"))","v":""},"","Required","Required"]
["",null,{"$f":"IF('TSA Input'!J2331=\"\",\"\",IF(OR('TSA Input'!J2331=\"Yes\",'TSA Input'!J2331=\"Contingent\"),'TSA Input'!B2331,\"Ineligible\"))","v":""},{"$f":"IF('TSA Input'!J2331=\"\",\"\",IF(OR('TSA Input'!J2331=\"Yes\",'TSA Input'!J2331=\"Contingent\"),'TSA Input'!I2331,\"\"))","v":""},{"$f":"IF('TSA Input'!J2331=\"\",\"\",IF(OR('TSA Input'!J2331=\"Yes\",'TSA Input'!J2331=\"Contingent\"),'TSA Input'!C2331,\"\"))","v":""},{"$f":"IF('TSA Input'!J2331=\"\",\"\",IF(OR('TSA Input'!J2331=\"Yes\",'TSA Input'!J2331=\"Contingent\"),'TSA Input'!D2331,\"\"))","v":""},{"$f":"IF('TSA Input'!J2331=\"\",\"\",IF(OR('TSA Input'!J2331=\"Yes\",'TSA Input'!J2331=\"Contingent\"),'TSA Input'!G2331,\"\"))","v":""},{"$f":"IF('TSA Input'!J2331=\"\",\"\",IF(OR('TSA Input'!J2331=\"Yes\",'TSA Input'!J2331=\"Contingent\"),'TSA Input'!F2331,\"\"))","v":""},"",{"$f":"IF('TSA Input'!J2331=\"\",\"\",IF(OR('TSA Input'!J2331=\"Yes\",'TSA Input'!J2331=\"Contingent\"),'TSA Input'!D2331,\"\"))","v":""},{"$f":"IF('TSA Input'!J2331=\"\",\"\",IF(OR('TSA Input'!J2331=\"Yes\",'TSA Input'!J2331=\"Contingent\"),'TSA Input'!G2331,\"\"))","v":""},{"$f":"IF('TSA Input'!J2331=\"\",\"\",IF(OR('TSA Input'!J2331=\"Yes\",'TSA Input'!J2331=\"Contingent\"),'TSA Input'!F2331,\"\"))","v":""},"","Required","Required"]
["",null,{"$f":"IF('TSA Input'!J2332=\"\",\"\",IF(OR('TSA Input'!J2332=\"Yes\",'TSA Input'!J2332=\"Contingent\"),'TSA Input'!B2332,\"Ineligible\"))","v":""},{"$f":"IF('TSA Input'!J2332=\"\",\"\",IF(OR('TSA Input'!J2332=\"Yes\",'TSA Input'!J2332=\"Contingent\"),'TSA Input'!I2332,\"\"))","v":""},{"$f":"IF('TSA Input'!J2332=\"\",\"\",IF(OR('TSA Input'!J2332=\"Yes\",'TSA Input'!J2332=\"Contingent\"),'TSA Input'!C2332,\"\"))","v":""},{"$f":"IF('TSA Input'!J2332=\"\",\"\",IF(OR('TSA Input'!J2332=\"Yes\",'TSA Input'!J2332=\"Contingent\"),'TSA Input'!D2332,\"\"))","v":""},{"$f":"IF('TSA Input'!J2332=\"\",\"\",IF(OR('TSA Input'!J2332=\"Yes\",'TSA Input'!J2332=\"Contingent\"),'TSA Input'!G2332,\"\"))","v":""},{"$f":"IF('TSA Input'!J2332=\"\",\"\",IF(OR('TSA Input'!J2332=\"Yes\",'TSA Input'!J2332=\"Contingent\"),'TSA Input'!F2332,\"\"))","v":""},"",{"$f":"IF('TSA Input'!J2332=\"\",\"\",IF(OR('TSA Input'!J2332=\"Yes\",'TSA Input'!J2332=\"Contingent\"),'TSA Input'!D2332,\"\"))","v":""},{"$f":"IF('TSA Input'!J2332=\"\",\"\",IF(OR('TSA Input'!J2332=\"Yes\",'TSA Input'!J2332=\"Contingent\"),'TSA Input'!G2332,\"\"))","v":""},{"$f":"IF('TSA Input'!J2332=\"\",\"\",IF(OR('TSA Input'!J2332=\"Yes\",'TSA Input'!J2332=\"Contingent\"),'TSA Input'!F2332,\"\"))","v":""},"","Required","Required"]
["",null,{"$f":"IF('TSA Input'!J2333=\"\",\"\",IF(OR('TSA Input'!J2333=\"Yes\",'TSA Input'!J2333=\"Contingent\"),'TSA Input'!B2333,\"Ineligible\"))","v":""},{"$f":"IF('TSA Input'!J2333=\"\",\"\",IF(OR('TSA Input'!J2333=\"Yes\",'TSA Input'!J2333=\"Contingent\"),'TSA Input'!I2333,\"\"))","v":""},{"$f":"IF('TSA Input'!J2333=\"\",\"\",IF(OR('TSA Input'!J2333=\"Yes\",'TSA Input'!J2333=\"Contingent\"),'TSA Input'!C2333,\"\"))","v":""},{"$f":"IF('TSA Input'!J2333=\"\",\"\",IF(OR('TSA Input'!J2333=\"Yes\",'TSA Input'!J2333=\"Contingent\"),'TSA Input'!D2333,\"\"))","v":""},{"$f":"IF('TSA Input'!J2333=\"\",\"\",IF(OR('TSA Input'!J2333=\"Yes\",'TSA Input'!J2333=\"Contingent\"),'TSA Input'!G2333,\"\"))","v":""},{"$f":"IF('TSA Input'!J2333=\"\",\"\",IF(OR('TSA Input'!J2333=\"Yes\",'TSA Input'!J2333=\"Contingent\"),'TSA Input'!F2333,\"\"))","v":""},"",{"$f":"IF('TSA Input'!J2333=\"\",\"\",IF(OR('TSA Input'!J2333=\"Yes\",'TSA Input'!J2333=\"Contingent\"),'TSA Input'!D2333,\"\"))","v":""},{"$f":"IF('TSA Input'!J2333=\"\",\"\",IF(OR('TSA Input'!J2333=\"Yes\",'TSA Input'!J2333=\"Contingent\"),'TSA Input'!G2333,\"\"))","v":""},{"$f":"IF('TSA Input'!J2333=\"\",\"\",IF(OR('TSA Input'!J2333=\"Yes\",'TSA Input'!J2333=\"Contingent\"),'TSA Input'!F2333,\"\"))","v":""},"","Required","Required"]
["",null,{"$f":"IF('TSA Input'!J2334=\"\",\"\",IF(OR('TSA Input'!J2334=\"Yes\",'TSA Input'!J2334=\"Contingent\"),'TSA Input'!B2334,\"Ineligible\"))","v":""},{"$f":"IF('TSA Input'!J2334=\"\",\"\",IF(OR('TSA Input'!J2334=\"Yes\",'TSA Input'!J2334=\"Contingent\"),'TSA Input'!I2334,\"\"))","v":""},{"$f":"IF('TSA Input'!J2334=\"\",\"\",IF(OR('TSA Input'!J2334=\"Yes\",'TSA Input'!J2334=\"Contingent\"),'TSA Input'!C2334,\"\"))","v":""},{"$f":"IF('TSA Input'!J2334=\"\",\"\",IF(OR('TSA Input'!J2334=\"Yes\",'TSA Input'!J2334=\"Contingent\"),'TSA Input'!D2334,\"\"))","v":""},{"$f":"IF('TSA Input'!J2334=\"\",\"\",IF(OR('TSA Input'!J2334=\"Yes\",'TSA Input'!J2334=\"Contingent\"),'TSA Input'!G2334,\"\"))","v":""},{"$f":"IF('TSA Input'!J2334=\"\",\"\",IF(OR('TSA Input'!J2334=\"Yes\",'TSA Input'!J2334=\"Contingent\"),'TSA Input'!F2334,\"\"))","v":""},"",{"$f":"IF('TSA Input'!J2334=\"\",\"\",IF(OR('TSA Input'!J2334=\"Yes\",'TSA Input'!J2334=\"Contingent\"),'TSA Input'!D2334,\"\"))","v":""},{"$f":"IF('TSA Input'!J2334=\"\",\"\",IF(OR('TSA Input'!J2334=\"Yes\",'TSA Input'!J2334=\"Contingent\"),'TSA Input'!G2334,\"\"))","v":""},{"$f":"IF('TSA Input'!J2334=\"\",\"\",IF(OR('TSA Input'!J2334=\"Yes\",'TSA Input'!J2334=\"Contingent\"),'TSA Input'!F2334,\"\"))","v":""},"","Required","Required"]
["",null,{"$f":"IF('TSA Input'!J2335=\"\",\"\",IF(OR('TSA Input'!J2335=\"Yes\",'TSA Input'!J2335=\"Contingent\"),'TSA Input'!B2335,\"Ineligible\"))","v":""},{"$f":"IF('TSA Input'!J2335=\"\",\"\",IF(OR('TSA Input'!J2335=\"Yes\",'TSA Input'!J2335=\"Contingent\"),'TSA Input'!I2335,\"\"))","v":""},{"$f":"IF('TSA Input'!J2335=\"\",\"\",IF(OR('TSA Input'!J2335=\"Yes\",'TSA Input'!J2335=\"Contingent\"),'TSA Input'!C2335,\"\"))","v":""},{"$f":"IF('TSA Input'!J2335=\"\",\"\",IF(OR('TSA Input'!J2335=\"Yes\",'TSA Input'!J2335=\"Contingent\"),'TSA Input'!D2335,\"\"))","v":""},{"$f":"IF('TSA Input'!J2335=\"\",\"\",IF(OR('TSA Input'!J2335=\"Yes\",'TSA Input'!J2335=\"Contingent\"),'TSA Input'!G2335,\"\"))","v":""},{"$f":"IF('TSA Input'!J2335=\"\",\"\",IF(OR('TSA Input'!J2335=\"Yes\",'TSA Input'!J2335=\"Contingent\"),'TSA Input'!F2335,\"\"))","v":""},"",{"$f":"IF('TSA Input'!J2335=\"\",\"\",IF(OR('TSA Input'!J2335=\"Yes\",'TSA Input'!J2335=\"Contingent\"),'TSA Input'!D2335,\"\"))","v":""},{"$f":"IF('TSA Input'!J2335=\"\",\"\",IF(OR('TSA Input'!J2335=\"Yes\",'TSA Input'!J2335=\"Contingent\"),'TSA Input'!G2335,\"\"))","v":""},{"$f":"IF('TSA Input'!J2335=\"\",\"\",IF(OR('TSA Input'!J2335=\"Yes\",'TSA Input'!J2335=\"Contingent\"),'TSA Input'!F2335,\"\"))","v":""},"","Required","Required"]
["",null,{"$f":"IF('TSA Input'!J2336=\"\",\"\",IF(OR('TSA Input'!J2336=\"Yes\",'TSA Input'!J2336=\"Contingent\"),'TSA Input'!B2336,\"Ineligible\"))","v":""},{"$f":"IF('TSA Input'!J2336=\"\",\"\",IF(OR('TSA Input'!J2336=\"Yes\",'TSA Input'!J2336=\"Contingent\"),'TSA Input'!I2336,\"\"))","v":""},{"$f":"IF('TSA Input'!J2336=\"\",\"\",IF(OR('TSA Input'!J2336=\"Yes\",'TSA Input'!J2336=\"Contingent\"),'TSA Input'!C2336,\"\"))","v":""},{"$f":"IF('TSA Input'!J2336=\"\",\"\",IF(OR('TSA Input'!J2336=\"Yes\",'TSA Input'!J2336=\"Contingent\"),'TSA Input'!D2336,\"\"))","v":""},{"$f":"IF('TSA Input'!J2336=\"\",\"\",IF(OR('TSA Input'!J2336=\"Yes\",'TSA Input'!J2336=\"Contingent\"),'TSA Input'!G2336,\"\"))","v":""},{"$f":"IF('TSA Input'!J2336=\"\",\"\",IF(OR('TSA Input'!J2336=\"Yes\",'TSA Input'!J2336=\"Contingent\"),'TSA Input'!F2336,\"\"))","v":""},"",{"$f":"IF('TSA Input'!J2336=\"\",\"\",IF(OR('TSA Input'!J2336=\"Yes\",'TSA Input'!J2336=\"Contingent\"),'TSA Input'!D2336,\"\"))","v":""},{"$f":"IF('TSA Input'!J2336=\"\",\"\",IF(OR('TSA Input'!J2336=\"Yes\",'TSA Input'!J2336=\"Contingent\"),'TSA Input'!G2336,\"\"))","v":""},{"$f":"IF('TSA Input'!J2336=\"\",\"\",IF(OR('TSA Input'!J2336=\"Yes\",'TSA Input'!J2336=\"Contingent\"),'TSA Input'!F2336,\"\"))","v":""},"","Required","Required"]
["",null,{"$f":"IF('TSA Input'!J2337=\"\",\"\",IF(OR('TSA Input'!J2337=\"Yes\",'TSA Input'!J2337=\"Contingent\"),'TSA Input'!B2337,\"Ineligible\"))","v":""},{"$f":"IF('TSA Input'!J2337=\"\",\"\",IF(OR('TSA Input'!J2337=\"Yes\",'TSA Input'!J2337=\"Contingent\"),'TSA Input'!I2337,\"\"))","v":""},{"$f":"IF('TSA Input'!J2337=\"\",\"\",IF(OR('TSA Input'!J2337=\"Yes\",'TSA Input'!J2337=\"Contingent\"),'TSA Input'!C2337,\"\"))","v":""},{"$f":"IF('TSA Input'!J2337=\"\",\"\",IF(OR('TSA Input'!J2337=\"Yes\",'TSA Input'!J2337=\"Contingent\"),'TSA Input'!D2337,\"\"))","v":""},{"$f":"IF('TSA Input'!J2337=\"\",\"\",IF(OR('TSA Input'!J2337=\"Yes\",'TSA Input'!J2337=\"Contingent\"),'TSA Input'!G2337,\"\"))","v":""},{"$f":"IF('TSA Input'!J2337=\"\",\"\",IF(OR('TSA Input'!J2337=\"Yes\",'TSA Input'!J2337=\"Contingent\"),'TSA Input'!F2337,\"\"))","v":""},"",{"$f":"IF('TSA Input'!J2337=\"\",\"\",IF(OR('TSA Input'!J2337=\"Yes\",'TSA Input'!J2337=\"Contingent\"),'TSA Input'!D2337,\"\"))","v":""},{"$f":"IF('TSA Input'!J2337=\"\",\"\",IF(OR('TSA Input'!J2337=\"Yes\",'TSA Input'!J2337=\"Contingent\"),'TSA Input'!G2337,\"\"))","v":""},{"$f":"IF('TSA Input'!J2337=\"\",\"\",IF(OR('TSA Input'!J2337=\"Yes\",'TSA Input'!J2337=\"Contingent\"),'TSA Input'!F2337,\"\"))","v":""},"","Required","Required"]
["",null,{"$f":"IF('TSA Input'!J2338=\"\",\"\",IF(OR('TSA Input'!J2338=\"Yes\",'TSA Input'!J2338=\"Contingent\"),'TSA Input'!B2338,\"Ineligible\"))","v":""},{"$f":"IF('TSA Input'!J2338=\"\",\"\",IF(OR('TSA Input'!J2338=\"Yes\",'TSA Input'!J2338=\"Contingent\"),'TSA Input'!I2338,\"\"))","v":""},{"$f":"IF('TSA Input'!J2338=\"\",\"\",IF(OR('TSA Input'!J2338=\"Yes\",'TSA Input'!J2338=\"Contingent\"),'TSA Input'!C2338,\"\"))","v":""},{"$f":"IF('TSA Input'!J2338=\"\",\"\",IF(OR('TSA Input'!J2338=\"Yes\",'TSA Input'!J2338=\"Contingent\"),'TSA Input'!D2338,\"\"))","v":""},{"$f":"IF('TSA Input'!J2338=\"\",\"\",IF(OR('TSA Input'!J2338=\"Yes\",'TSA Input'!J2338=\"Contingent\"),'TSA Input'!G2338,\"\"))","v":""},{"$f":"IF('TSA Input'!J2338=\"\",\"\",IF(OR('TSA Input'!J2338=\"Yes\",'TSA Input'!J2338=\"Contingent\"),'TSA Input'!F2338,\"\"))","v":""},"",{"$f":"IF('TSA Input'!J2338=\"\",\"\",IF(OR('TSA Input'!J2338=\"Yes\",'TSA Input'!J2338=\"Contingent\"),'TSA Input'!D2338,\"\"))","v":""},{"$f":"IF('TSA Input'!J2338=\"\",\"\",IF(OR('TSA Input'!J2338=\"Yes\",'TSA Input'!J2338=\"Contingent\"),'TSA Input'!G2338,\"\"))","v":""},{"$f":"IF('TSA Input'!J2338=\"\",\"\",IF(OR('TSA Input'!J2338=\"Yes\",'TSA Input'!J2338=\"Contingent\"),'TSA Input'!F2338,\"\"))","v":""},"","Required","Required"]
["",null,{"$f":"IF('TSA Input'!J2339=\"\",\"\",IF(OR('TSA Input'!J2339=\"Yes\",'TSA Input'!J2339=\"Contingent\"),'TSA Input'!B2339,\"Ineligible\"))","v":""},{"$f":"IF('TSA Input'!J2339=\"\",\"\",IF(OR('TSA Input'!J2339=\"Yes\",'TSA Input'!J2339=\"Contingent\"),'TSA Input'!I2339,\"\"))","v":""},{"$f":"IF('TSA Input'!J2339=\"\",\"\",IF(OR('TSA Input'!J2339=\"Yes\",'TSA Input'!J2339=\"Contingent\"),'TSA Input'!C2339,\"\"))","v":""},{"$f":"IF('TSA Input'!J2339=\"\",\"\",IF(OR('TSA Input'!J2339=\"Yes\",'TSA Input'!J2339=\"Contingent\"),'TSA Input'!D2339,\"\"))","v":""},{"$f":"IF('TSA Input'!J2339=\"\",\"\",IF(OR('TSA Input'!J2339=\"Yes\",'TSA Input'!J2339=\"Contingent\"),'TSA Input'!G2339,\"\"))","v":""},{"$f":"IF('TSA Input'!J2339=\"\",\"\",IF(OR('TSA Input'!J2339=\"Yes\",'TSA Input'!J2339=\"Contingent\"),'TSA Input'!F2339,\"\"))","v":""},"",{"$f":"IF('TSA Input'!J2339=\"\",\"\",IF(OR('TSA Input'!J2339=\"Yes\",'TSA Input'!J2339=\"Contingent\"),'TSA Input'!D2339,\"\"))","v":""},{"$f":"IF('TSA Input'!J2339=\"\",\"\",IF(OR('TSA Input'!J2339=\"Yes\",'TSA Input'!J2339=\"Contingent\"),'TSA Input'!G2339,\"\"))","v":""},{"$f":"IF('TSA Input'!J2339=\"\",\"\",IF(OR('TSA Input'!J2339=\"Yes\",'TSA Input'!J2339=\"Contingent\"),'TSA Input'!F2339,\"\"))","v":""},"","Required","Required"]
["",null,{"$f":"IF('TSA Input'!J2340=\"\",\"\",IF(OR('TSA Input'!J2340=\"Yes\",'TSA Input'!J2340=\"Contingent\"),'TSA Input'!B2340,\"Ineligible\"))","v":""},{"$f":"IF('TSA Input'!J2340=\"\",\"\",IF(OR('TSA Input'!J2340=\"Yes\",'TSA Input'!J2340=\"Contingent\"),'TSA Input'!I2340,\"\"))","v":""},{"$f":"IF('TSA Input'!J2340=\"\",\"\",IF(OR('TSA Input'!J2340=\"Yes\",'TSA Input'!J2340=\"Contingent\"),'TSA Input'!C2340,\"\"))","v":""},{"$f":"IF('TSA Input'!J2340=\"\",\"\",IF(OR('TSA Input'!J2340=\"Yes\",'TSA Input'!J2340=\"Contingent\"),'TSA Input'!D2340,\"\"))","v":""},{"$f":"IF('TSA Input'!J2340=\"\",\"\",IF(OR('TSA Input'!J2340=\"Yes\",'TSA Input'!J2340=\"Contingent\"),'TSA Input'!G2340,\"\"))","v":""},{"$f":"IF('TSA Input'!J2340=\"\",\"\",IF(OR('TSA Input'!J2340=\"Yes\",'TSA Input'!J2340=\"Contingent\"),'TSA Input'!F2340,\"\"))","v":""},"",{"$f":"IF('TSA Input'!J2340=\"\",\"\",IF(OR('TSA Input'!J2340=\"Yes\",'TSA Input'!J2340=\"Contingent\"),'TSA Input'!D2340,\"\"))","v":""},{"$f":"IF('TSA Input'!J2340=\"\",\"\",IF(OR('TSA Input'!J2340=\"Yes\",'TSA Input'!J2340=\"Contingent\"),'TSA Input'!G2340,\"\"))","v":""},{"$f":"IF('TSA Input'!J2340=\"\",\"\",IF(OR('TSA Input'!J2340=\"Yes\",'TSA Input'!J2340=\"Contingent\"),'TSA Input'!F2340,\"\"))","v":""},"","Required","Required"]
["",null,{"$f":"IF('TSA Input'!J2341=\"\",\"\",IF(OR('TSA Input'!J2341=\"Yes\",'TSA Input'!J2341=\"Contingent\"),'TSA Input'!B2341,\"Ineligible\"))","v":""},{"$f":"IF('TSA Input'!J2341=\"\",\"\",IF(OR('TSA Input'!J2341=\"Yes\",'TSA Input'!J2341=\"Contingent\"),'TSA Input'!I2341,\"\"))","v":""},{"$f":"IF('TSA Input'!J2341=\"\",\"\",IF(OR('TSA Input'!J2341=\"Yes\",'TSA Input'!J2341=\"Contingent\"),'TSA Input'!C2341,\"\"))","v":""},{"$f":"IF('TSA Input'!J2341=\"\",\"\",IF(OR('TSA Input'!J2341=\"Yes\",'TSA Input'!J2341=\"Contingent\"),'TSA Input'!D2341,\"\"))","v":""},{"$f":"IF('TSA Input'!J2341=\"\",\"\",IF(OR('TSA Input'!J2341=\"Yes\",'TSA Input'!J2341=\"Contingent\"),'TSA Input'!G2341,\"\"))","v":""},{"$f":"IF('TSA Input'!J2341=\"\",\"\",IF(OR('TSA Input'!J2341=\"Yes\",'TSA Input'!J2341=\"Contingent\"),'TSA Input'!F2341,\"\"))","v":""},"",{"$f":"IF('TSA Input'!J2341=\"\",\"\",IF(OR('TSA Input'!J2341=\"Yes\",'TSA Input'!J2341=\"Contingent\"),'TSA Input'!D2341,\"\"))","v":""},{"$f":"IF('TSA Input'!J2341=\"\",\"\",IF(OR('TSA Input'!J2341=\"Yes\",'TSA Input'!J2341=\"Contingent\"),'TSA Input'!G2341,\"\"))","v":""},{"$f":"IF('TSA Input'!J2341=\"\",\"\",IF(OR('TSA Input'!J2341=\"Yes\",'TSA Input'!J2341=\"Contingent\"),'TSA Input'!F2341,\"\"))","v":""},"","Required","Required"]
["",null,{"$f":"IF('TSA Input'!J2342=\"\",\"\",IF(OR('TSA Input'!J2342=\"Yes\",'TSA Input'!J2342=\"Contingent\"),'TSA Input'!B2342,\"Ineligible\"))","v":""},{"$f":"IF('TSA Input'!J2342=\"\",\"\",IF(OR('TSA Input'!J2342=\"Yes\",'TSA Input'!J2342=\"Contingent\"),'TSA Input'!I2342,\"\"))","v":""},{"$f":"IF('TSA Input'!J2342=\"\",\"\",IF(OR('TSA Input'!J2342=\"Yes\",'TSA Input'!J2342=\"Contingent\"),'TSA Input'!C2342,\"\"))","v":""},{"$f":"IF('TSA Input'!J2342=\"\",\"\",IF(OR('TSA Input'!J2342=\"Yes\",'TSA Input'!J2342=\"Contingent\"),'TSA Input'!D2342,\"\"))","v":""},{"$f":"IF('TSA Input'!J2342=\"\",\"\",IF(OR('TSA Input'!J2342=\"Yes\",'TSA Input'!J2342=\"Contingent\"),'TSA Input'!G2342,\"\"))","v":""},{"$f":"IF('TSA Input'!J2342=\"\",\"\",IF(OR('TSA Input'!J2342=\"Yes\",'TSA Input'!J2342=\"Contingent\"),'TSA Input'!F2342,\"\"))","v":""},"",{"$f":"IF('TSA Input'!J2342=\"\",\"\",IF(OR('TSA Input'!J2342=\"Yes\",'TSA Input'!J2342=\"Contingent\"),'TSA Input'!D2342,\"\"))","v":""},{"$f":"IF('TSA Input'!J2342=\"\",\"\",IF(OR('TSA Input'!J2342=\"Yes\",'TSA Input'!J2342=\"Contingent\"),'TSA Input'!G2342,\"\"))","v":""},{"$f":"IF('TSA Input'!J2342=\"\",\"\",IF(OR('TSA Input'!J2342=\"Yes\",'TSA Input'!J2342=\"Contingent\"),'TSA Input'!F2342,\"\"))","v":""},"","Required","Required"]
["",null,{"$f":"IF('TSA Input'!J2343=\"\",\"\",IF(OR('TSA Input'!J2343=\"Yes\",'TSA Input'!J2343=\"Contingent\"),'TSA Input'!B2343,\"Ineligible\"))","v":""},{"$f":"IF('TSA Input'!J2343=\"\",\"\",IF(OR('TSA Input'!J2343=\"Yes\",'TSA Input'!J2343=\"Contingent\"),'TSA Input'!I2343,\"\"))","v":""},{"$f":"IF('TSA Input'!J2343=\"\",\"\",IF(OR('TSA Input'!J2343=\"Yes\",'TSA Input'!J2343=\"Contingent\"),'TSA Input'!C2343,\"\"))","v":""},{"$f":"IF('TSA Input'!J2343=\"\",\"\",IF(OR('TSA Input'!J2343=\"Yes\",'TSA Input'!J2343=\"Contingent\"),'TSA Input'!D2343,\"\"))","v":""},{"$f":"IF('TSA Input'!J2343=\"\",\"\",IF(OR('TSA Input'!J2343=\"Yes\",'TSA Input'!J2343=\"Contingent\"),'TSA Input'!G2343,\"\"))","v":""},{"$f":"IF('TSA Input'!J2343=\"\",\"\",IF(OR('TSA Input'!J2343=\"Yes\",'TSA Input'!J2343=\"Contingent\"),'TSA Input'!F2343,\"\"))","v":""},"",{"$f":"IF('TSA Input'!J2343=\"\",\"\",IF(OR('TSA Input'!J2343=\"Yes\",'TSA Input'!J2343=\"Contingent\"),'TSA Input'!D2343,\"\"))","v":""},{"$f":"IF('TSA Input'!J2343=\"\",\"\",IF(OR('TSA Input'!J2343=\"Yes\",'TSA Input'!J2343=\"Contingent\"),'TSA Input'!G2343,\"\"))","v":""},{"$f":"IF('TSA Input'!J2343=\"\",\"\",IF(OR('TSA Input'!J2343=\"Yes\",'TSA Input'!J2343=\"Contingent\"),'TSA Input'!F2343,\"\"))","v":""},"","Required","Required"]
["",null,{"$f":"IF('TSA Input'!J2344=\"\",\"\",IF(OR('TSA Input'!J2344=\"Yes\",'TSA Input'!J2344=\"Contingent\"),'TSA Input'!B2344,\"Ineligible\"))","v":""},{"$f":"IF('TSA Input'!J2344=\"\",\"\",IF(OR('TSA Input'!J2344=\"Yes\",'TSA Input'!J2344=\"Contingent\"),'TSA Input'!I2344,\"\"))","v":""},{"$f":"IF('TSA Input'!J2344=\"\",\"\",IF(OR('TSA Input'!J2344=\"Yes\",'TSA Input'!J2344=\"Contingent\"),'TSA Input'!C2344,\"\"))","v":""},{"$f":"IF('TSA Input'!J2344=\"\",\"\",IF(OR('TSA Input'!J2344=\"Yes\",'TSA Input'!J2344=\"Contingent\"),'TSA Input'!D2344,\"\"))","v":""},{"$f":"IF('TSA Input'!J2344=\"\",\"\",IF(OR('TSA Input'!J2344=\"Yes\",'TSA Input'!J2344=\"Contingent\"),'TSA Input'!G2344,\"\"))","v":""},{"$f":"IF('TSA Input'!J2344=\"\",\"\",IF(OR('TSA Input'!J2344=\"Yes\",'TSA Input'!J2344=\"Contingent\"),'TSA Input'!F2344,\"\"))","v":""},"",{"$f":"IF('TSA Input'!J2344=\"\",\"\",IF(OR('TSA Input'!J2344=\"Yes\",'TSA Input'!J2344=\"Contingent\"),'TSA Input'!D2344,\"\"))","v":""},{"$f":"IF('TSA Input'!J2344=\"\",\"\",IF(OR('TSA Input'!J2344=\"Yes\",'TSA Input'!J2344=\"Contingent\"),'TSA Input'!G2344,\"\"))","v":""},{"$f":"IF('TSA Input'!J2344=\"\",\"\",IF(OR('TSA Input'!J2344=\"Yes\",'TSA Input'!J2344=\"Contingent\"),'TSA Input'!F2344,\"\"))","v":""},"","Required","Required"]
["",null,{"$f":"IF('TSA Input'!J2345=\"\",\"\",IF(OR('TSA Input'!J2345=\"Yes\",'TSA Input'!J2345=\"Contingent\"),'TSA Input'!B2345,\"Ineligible\"))","v":""},{"$f":"IF('TSA Input'!J2345=\"\",\"\",IF(OR('TSA Input'!J2345=\"Yes\",'TSA Input'!J2345=\"Contingent\"),'TSA Input'!I2345,\"\"))","v":""},{"$f":"IF('TSA Input'!J2345=\"\",\"\",IF(OR('TSA Input'!J2345=\"Yes\",'TSA Input'!J2345=\"Contingent\"),'TSA Input'!C2345,\"\"))","v":""},{"$f":"IF('TSA Input'!J2345=\"\",\"\",IF(OR('TSA Input'!J2345=\"Yes\",'TSA Input'!J2345=\"Contingent\"),'TSA Input'!D2345,\"\"))","v":""},{"$f":"IF('TSA Input'!J2345=\"\",\"\",IF(OR('TSA Input'!J2345=\"Yes\",'TSA Input'!J2345=\"Contingent\"),'TSA Input'!G2345,\"\"))","v":""},{"$f":"IF('TSA Input'!J2345=\"\",\"\",IF(OR('TSA Input'!J2345=\"Yes\",'TSA Input'!J2345=\"Contingent\"),'TSA Input'!F2345,\"\"))","v":""},"",{"$f":"IF('TSA Input'!J2345=\"\",\"\",IF(OR('TSA Input'!J2345=\"Yes\",'TSA Input'!J2345=\"Contingent\"),'TSA Input'!D2345,\"\"))","v":""},{"$f":"IF('TSA Input'!J2345=\"\",\"\",IF(OR('TSA Input'!J2345=\"Yes\",'TSA Input'!J2345=\"Contingent\"),'TSA Input'!G2345,\"\"))","v":""},{"$f":"IF('TSA Input'!J2345=\"\",\"\",IF(OR('TSA Input'!J2345=\"Yes\",'TSA Input'!J2345=\"Contingent\"),'TSA Input'!F2345,\"\"))","v":""},"","Required","Required"]
["",null,{"$f":"IF('TSA Input'!J2346=\"\",\"\",IF(OR('TSA Input'!J2346=\"Yes\",'TSA Input'!J2346=\"Contingent\"),'TSA Input'!B2346,\"Ineligible\"))","v":""},{"$f":"IF('TSA Input'!J2346=\"\",\"\",IF(OR('TSA Input'!J2346=\"Yes\",'TSA Input'!J2346=\"Contingent\"),'TSA Input'!I2346,\"\"))","v":""},{"$f":"IF('TSA Input'!J2346=\"\",\"\",IF(OR('TSA Input'!J2346=\"Yes\",'TSA Input'!J2346=\"Contingent\"),'TSA Input'!C2346,\"\"))","v":""},{"$f":"IF('TSA Input'!J2346=\"\",\"\",IF(OR('TSA Input'!J2346=\"Yes\",'TSA Input'!J2346=\"Contingent\"),'TSA Input'!D2346,\"\"))","v":""},{"$f":"IF('TSA Input'!J2346=\"\",\"\",IF(OR('TSA Input'!J2346=\"Yes\",'TSA Input'!J2346=\"Contingent\"),'TSA Input'!G2346,\"\"))","v":""},{"$f":"IF('TSA Input'!J2346=\"\",\"\",IF(OR('TSA Input'!J2346=\"Yes\",'TSA Input'!J2346=\"Contingent\"),'TSA Input'!F2346,\"\"))","v":""},"",{"$f":"IF('TSA Input'!J2346=\"\",\"\",IF(OR('TSA Input'!J2346=\"Yes\",'TSA Input'!J2346=\"Contingent\"),'TSA Input'!D2346,\"\"))","v":""},{"$f":"IF('TSA Input'!J2346=\"\",\"\",IF(OR('TSA Input'!J2346=\"Yes\",'TSA Input'!J2346=\"Contingent\"),'TSA Input'!G2346,\"\"))","v":""},{"$f":"IF('TSA Input'!J2346=\"\",\"\",IF(OR('TSA Input'!J2346=\"Yes\",'TSA Input'!J2346=\"Contingent\"),'TSA Input'!F2346,\"\"))","v":""},"","Required","Required"]
["",null,{"$f":"IF('TSA Input'!J2347=\"\",\"\",IF(OR('TSA Input'!J2347=\"Yes\",'TSA Input'!J2347=\"Contingent\"),'TSA Input'!B2347,\"Ineligible\"))","v":""},{"$f":"IF('TSA Input'!J2347=\"\",\"\",IF(OR('TSA Input'!J2347=\"Yes\",'TSA Input'!J2347=\"Contingent\"),'TSA Input'!I2347,\"\"))","v":""},{"$f":"IF('TSA Input'!J2347=\"\",\"\",IF(OR('TSA Input'!J2347=\"Yes\",'TSA Input'!J2347=\"Contingent\"),'TSA Input'!C2347,\"\"))","v":""},{"$f":"IF('TSA Input'!J2347=\"\",\"\",IF(OR('TSA Input'!J2347=\"Yes\",'TSA Input'!J2347=\"Contingent\"),'TSA Input'!D2347,\"\"))","v":""},{"$f":"IF('TSA Input'!J2347=\"\",\"\",IF(OR('TSA Input'!J2347=\"Yes\",'TSA Input'!J2347=\"Contingent\"),'TSA Input'!G2347,\"\"))","v":""},{"$f":"IF('TSA Input'!J2347=\"\",\"\",IF(OR('TSA Input'!J2347=\"Yes\",'TSA Input'!J2347=\"Contingent\"),'TSA Input'!F2347,\"\"))","v":""},"",{"$f":"IF('TSA Input'!J2347=\"\",\"\",IF(OR('TSA Input'!J2347=\"Yes\",'TSA Input'!J2347=\"Contingent\"),'TSA Input'!D2347,\"\"))","v":""},{"$f":"IF('TSA Input'!J2347=\"\",\"\",IF(OR('TSA Input'!J2347=\"Yes\",'TSA Input'!J2347=\"Contingent\"),'TSA Input'!G2347,\"\"))","v":""},{"$f":"IF('TSA Input'!J2347=\"\",\"\",IF(OR('TSA Input'!J2347=\"Yes\",'TSA Input'!J2347=\"Contingent\"),'TSA Input'!F2347,\"\"))","v":""},"","Required","Required"]
["",null,{"$f":"IF('TSA Input'!J2348=\"\",\"\",IF(OR('TSA Input'!J2348=\"Yes\",'TSA Input'!J2348=\"Contingent\"),'TSA Input'!B2348,\"Ineligible\"))","v":""},{"$f":"IF('TSA Input'!J2348=\"\",\"\",IF(OR('TSA Input'!J2348=\"Yes\",'TSA Input'!J2348=\"Contingent\"),'TSA Input'!I2348,\"\"))","v":""},{"$f":"IF('TSA Input'!J2348=\"\",\"\",IF(OR('TSA Input'!J2348=\"Yes\",'TSA Input'!J2348=\"Contingent\"),'TSA Input'!C2348,\"\"))","v":""},{"$f":"IF('TSA Input'!J2348=\"\",\"\",IF(OR('TSA Input'!J2348=\"Yes\",'TSA Input'!J2348=\"Contingent\"),'TSA Input'!D2348,\"\"))","v":""},{"$f":"IF('TSA Input'!J2348=\"\",\"\",IF(OR('TSA Input'!J2348=\"Yes\",'TSA Input'!J2348=\"Contingent\"),'TSA Input'!G2348,\"\"))","v":""},{"$f":"IF('TSA Input'!J2348=\"\",\"\",IF(OR('TSA Input'!J2348=\"Yes\",'TSA Input'!J2348=\"Contingent\"),'TSA Input'!F2348,\"\"))","v":""},"",{"$f":"IF('TSA Input'!J2348=\"\",\"\",IF(OR('TSA Input'!J2348=\"Yes\",'TSA Input'!J2348=\"Contingent\"),'TSA Input'!D2348,\"\"))","v":""},{"$f":"IF('TSA Input'!J2348=\"\",\"\",IF(OR('TSA Input'!J2348=\"Yes\",'TSA Input'!J2348=\"Contingent\"),'TSA Input'!G2348,\"\"))","v":""},{"$f":"IF('TSA Input'!J2348=\"\",\"\",IF(OR('TSA Input'!J2348=\"Yes\",'TSA Input'!J2348=\"Contingent\"),'TSA Input'!F2348,\"\"))","v":""},"","Required","Required"]
["",null,{"$f":"IF('TSA Input'!J2349=\"\",\"\",IF(OR('TSA Input'!J2349=\"Yes\",'TSA Input'!J2349=\"Contingent\"),'TSA Input'!B2349,\"Ineligible\"))","v":""},{"$f":"IF('TSA Input'!J2349=\"\",\"\",IF(OR('TSA Input'!J2349=\"Yes\",'TSA Input'!J2349=\"Contingent\"),'TSA Input'!I2349,\"\"))","v":""},{"$f":"IF('TSA Input'!J2349=\"\",\"\",IF(OR('TSA Input'!J2349=\"Yes\",'TSA Input'!J2349=\"Contingent\"),'TSA Input'!C2349,\"\"))","v":""},{"$f":"IF('TSA Input'!J2349=\"\",\"\",IF(OR('TSA Input'!J2349=\"Yes\",'TSA Input'!J2349=\"Contingent\"),'TSA Input'!D2349,\"\"))","v":""},{"$f":"IF('TSA Input'!J2349=\"\",\"\",IF(OR('TSA Input'!J2349=\"Yes\",'TSA Input'!J2349=\"Contingent\"),'TSA Input'!G2349,\"\"))","v":""},{"$f":"IF('TSA Input'!J2349=\"\",\"\",IF(OR('TSA Input'!J2349=\"Yes\",'TSA Input'!J2349=\"Contingent\"),'TSA Input'!F2349,\"\"))","v":""},"",{"$f":"IF('TSA Input'!J2349=\"\",\"\",IF(OR('TSA Input'!J2349=\"Yes\",'TSA Input'!J2349=\"Contingent\"),'TSA Input'!D2349,\"\"))","v":""},{"$f":"IF('TSA Input'!J2349=\"\",\"\",IF(OR('TSA Input'!J2349=\"Yes\",'TSA Input'!J2349=\"Contingent\"),'TSA Input'!G2349,\"\"))","v":""},{"$f":"IF('TSA Input'!J2349=\"\",\"\",IF(OR('TSA Input'!J2349=\"Yes\",'TSA Input'!J2349=\"Contingent\"),'TSA Input'!F2349,\"\"))","v":""},"","Required","Required"]
["",null,{"$f":"IF('TSA Input'!J2350=\"\",\"\",IF(OR('TSA Input'!J2350=\"Yes\",'TSA Input'!J2350=\"Contingent\"),'TSA Input'!B2350,\"Ineligible\"))","v":""},{"$f":"IF('TSA Input'!J2350=\"\",\"\",IF(OR('TSA Input'!J2350=\"Yes\",'TSA Input'!J2350=\"Contingent\"),'TSA Input'!I2350,\"\"))","v":""},{"$f":"IF('TSA Input'!J2350=\"\",\"\",IF(OR('TSA Input'!J2350=\"Yes\",'TSA Input'!J2350=\"Contingent\"),'TSA Input'!C2350,\"\"))","v":""},{"$f":"IF('TSA Input'!J2350=\"\",\"\",IF(OR('TSA Input'!J2350=\"Yes\",'TSA Input'!J2350=\"Contingent\"),'TSA Input'!D2350,\"\"))","v":""},{"$f":"IF('TSA Input'!J2350=\"\",\"\",IF(OR('TSA Input'!J2350=\"Yes\",'TSA Input'!J2350=\"Contingent\"),'TSA Input'!G2350,\"\"))","v":""},{"$f":"IF('TSA Input'!J2350=\"\",\"\",IF(OR('TSA Input'!J2350=\"Yes\",'TSA Input'!J2350=\"Contingent\"),'TSA Input'!F2350,\"\"))","v":""},"",{"$f":"IF('TSA Input'!J2350=\"\",\"\",IF(OR('TSA Input'!J2350=\"Yes\",'TSA Input'!J2350=\"Contingent\"),'TSA Input'!D2350,\"\"))","v":""},{"$f":"IF('TSA Input'!J2350=\"\",\"\",IF(OR('TSA Input'!J2350=\"Yes\",'TSA Input'!J2350=\"Contingent\"),'TSA Input'!G2350,\"\"))","v":""},{"$f":"IF('TSA Input'!J2350=\"\",\"\",IF(OR('TSA Input'!J2350=\"Yes\",'TSA Input'!J2350=\"Contingent\"),'TSA Input'!F2350,\"\"))","v":""},"","Required","Required"]
["",null,{"$f":"IF('TSA Input'!J2351=\"\",\"\",IF(OR('TSA Input'!J2351=\"Yes\",'TSA Input'!J2351=\"Contingent\"),'TSA Input'!B2351,\"Ineligible\"))","v":""},{"$f":"IF('TSA Input'!J2351=\"\",\"\",IF(OR('TSA Input'!J2351=\"Yes\",'TSA Input'!J2351=\"Contingent\"),'TSA Input'!I2351,\"\"))","v":""},{"$f":"IF('TSA Input'!J2351=\"\",\"\",IF(OR('TSA Input'!J2351=\"Yes\",'TSA Input'!J2351=\"Contingent\"),'TSA Input'!C2351,\"\"))","v":""},{"$f":"IF('TSA Input'!J2351=\"\",\"\",IF(OR('TSA Input'!J2351=\"Yes\",'TSA Input'!J2351=\"Contingent\"),'TSA Input'!D2351,\"\"))","v":""},{"$f":"IF('TSA Input'!J2351=\"\",\"\",IF(OR('TSA Input'!J2351=\"Yes\",'TSA Input'!J2351=\"Contingent\"),'TSA Input'!G2351,\"\"))","v":""},{"$f":"IF('TSA Input'!J2351=\"\",\"\",IF(OR('TSA Input'!J2351=\"Yes\",'TSA Input'!J2351=\"Contingent\"),'TSA Input'!F2351,\"\"))","v":""},"",{"$f":"IF('TSA Input'!J2351=\"\",\"\",IF(OR('TSA Input'!J2351=\"Yes\",'TSA Input'!J2351=\"Contingent\"),'TSA Input'!D2351,\"\"))","v":""},{"$f":"IF('TSA Input'!J2351=\"\",\"\",IF(OR('TSA Input'!J2351=\"Yes\",'TSA Input'!J2351=\"Contingent\"),'TSA Input'!G2351,\"\"))","v":""},{"$f":"IF('TSA Input'!J2351=\"\",\"\",IF(OR('TSA Input'!J2351=\"Yes\",'TSA Input'!J2351=\"Contingent\"),'TSA Input'!F2351,\"\"))","v":""},"","Required","Required"]
["",null,{"$f":"IF('TSA Input'!J2352=\"\",\"\",IF(OR('TSA Input'!J2352=\"Yes\",'TSA Input'!J2352=\"Contingent\"),'TSA Input'!B2352,\"Ineligible\"))","v":""},{"$f":"IF('TSA Input'!J2352=\"\",\"\",IF(OR('TSA Input'!J2352=\"Yes\",'TSA Input'!J2352=\"Contingent\"),'TSA Input'!I2352,\"\"))","v":""},{"$f":"IF('TSA Input'!J2352=\"\",\"\",IF(OR('TSA Input'!J2352=\"Yes\",'TSA Input'!J2352=\"Contingent\"),'TSA Input'!C2352,\"\"))","v":""},{"$f":"IF('TSA Input'!J2352=\"\",\"\",IF(OR('TSA Input'!J2352=\"Yes\",'TSA Input'!J2352=\"Contingent\"),'TSA Input'!D2352,\"\"))","v":""},{"$f":"IF('TSA Input'!J2352=\"\",\"\",IF(OR('TSA Input'!J2352=\"Yes\",'TSA Input'!J2352=\"Contingent\"),'TSA Input'!G2352,\"\"))","v":""},{"$f":"IF('TSA Input'!J2352=\"\",\"\",IF(OR('TSA Input'!J2352=\"Yes\",'TSA Input'!J2352=\"Contingent\"),'TSA Input'!F2352,\"\"))","v":""},"",{"$f":"IF('TSA Input'!J2352=\"\",\"\",IF(OR('TSA Input'!J2352=\"Yes\",'TSA Input'!J2352=\"Contingent\"),'TSA Input'!D2352,\"\"))","v":""},{"$f":"IF('TSA Input'!J2352=\"\",\"\",IF(OR('TSA Input'!J2352=\"Yes\",'TSA Input'!J2352=\"Contingent\"),'TSA Input'!G2352,\"\"))","v":""},{"$f":"IF('TSA Input'!J2352=\"\",\"\",IF(OR('TSA Input'!J2352=\"Yes\",'TSA Input'!J2352=\"Contingent\"),'TSA Input'!F2352,\"\"))","v":""},"","Required","Required"]
["",null,{"$f":"IF('TSA Input'!J2353=\"\",\"\",IF(OR('TSA Input'!J2353=\"Yes\",'TSA Input'!J2353=\"Contingent\"),'TSA Input'!B2353,\"Ineligible\"))","v":""},{"$f":"IF('TSA Input'!J2353=\"\",\"\",IF(OR('TSA Input'!J2353=\"Yes\",'TSA Input'!J2353=\"Contingent\"),'TSA Input'!I2353,\"\"))","v":""},{"$f":"IF('TSA Input'!J2353=\"\",\"\",IF(OR('TSA Input'!J2353=\"Yes\",'TSA Input'!J2353=\"Contingent\"),'TSA Input'!C2353,\"\"))","v":""},{"$f":"IF('TSA Input'!J2353=\"\",\"\",IF(OR('TSA Input'!J2353=\"Yes\",'TSA Input'!J2353=\"Contingent\"),'TSA Input'!D2353,\"\"))","v":""},{"$f":"IF('TSA Input'!J2353=\"\",\"\",IF(OR('TSA Input'!J2353=\"Yes\",'TSA Input'!J2353=\"Contingent\"),'TSA Input'!G2353,\"\"))","v":""},{"$f":"IF('TSA Input'!J2353=\"\",\"\",IF(OR('TSA Input'!J2353=\"Yes\",'TSA Input'!J2353=\"Contingent\"),'TSA Input'!F2353,\"\"))","v":""},"",{"$f":"IF('TSA Input'!J2353=\"\",\"\",IF(OR('TSA Input'!J2353=\"Yes\",'TSA Input'!J2353=\"Contingent\"),'TSA Input'!D2353,\"\"))","v":""},{"$f":"IF('TSA Input'!J2353=\"\",\"\",IF(OR('TSA Input'!J2353=\"Yes\",'TSA Input'!J2353=\"Contingent\"),'TSA Input'!G2353,\"\"))","v":""},{"$f":"IF('TSA Input'!J2353=\"\",\"\",IF(OR('TSA Input'!J2353=\"Yes\",'TSA Input'!J2353=\"Contingent\"),'TSA Input'!F2353,\"\"))","v":""},"","Required","Required"]
["",null,{"$f":"IF('TSA Input'!J2354=\"\",\"\",IF(OR('TSA Input'!J2354=\"Yes\",'TSA Input'!J2354=\"Contingent\"),'TSA Input'!B2354,\"Ineligible\"))","v":""},{"$f":"IF('TSA Input'!J2354=\"\",\"\",IF(OR('TSA Input'!J2354=\"Yes\",'TSA Input'!J2354=\"Contingent\"),'TSA Input'!I2354,\"\"))","v":""},{"$f":"IF('TSA Input'!J2354=\"\",\"\",IF(OR('TSA Input'!J2354=\"Yes\",'TSA Input'!J2354=\"Contingent\"),'TSA Input'!C2354,\"\"))","v":""},{"$f":"IF('TSA Input'!J2354=\"\",\"\",IF(OR('TSA Input'!J2354=\"Yes\",'TSA Input'!J2354=\"Contingent\"),'TSA Input'!D2354,\"\"))","v":""},{"$f":"IF('TSA Input'!J2354=\"\",\"\",IF(OR('TSA Input'!J2354=\"Yes\",'TSA Input'!J2354=\"Contingent\"),'TSA Input'!G2354,\"\"))","v":""},{"$f":"IF('TSA Input'!J2354=\"\",\"\",IF(OR('TSA Input'!J2354=\"Yes\",'TSA Input'!J2354=\"Contingent\"),'TSA Input'!F2354,\"\"))","v":""},"",{"$f":"IF('TSA Input'!J2354=\"\",\"\",IF(OR('TSA Input'!J2354=\"Yes\",'TSA Input'!J2354=\"Contingent\"),'TSA Input'!D2354,\"\"))","v":""},{"$f":"IF('TSA Input'!J2354=\"\",\"\",IF(OR('TSA Input'!J2354=\"Yes\",'TSA Input'!J2354=\"Contingent\"),'TSA Input'!G2354,\"\"))","v":""},{"$f":"IF('TSA Input'!J2354=\"\",\"\",IF(OR('TSA Input'!J2354=\"Yes\",'TSA Input'!J2354=\"Contingent\"),'TSA Input'!F2354,\"\"))","v":""},"","Required","Required"]
["",null,{"$f":"IF('TSA Input'!J2355=\"\",\"\",IF(OR('TSA Input'!J2355=\"Yes\",'TSA Input'!J2355=\"Contingent\"),'TSA Input'!B2355,\"Ineligible\"))","v":""},{"$f":"IF('TSA Input'!J2355=\"\",\"\",IF(OR('TSA Input'!J2355=\"Yes\",'TSA Input'!J2355=\"Contingent\"),'TSA Input'!I2355,\"\"))","v":""},{"$f":"IF('TSA Input'!J2355=\"\",\"\",IF(OR('TSA Input'!J2355=\"Yes\",'TSA Input'!J2355=\"Contingent\"),'TSA Input'!C2355,\"\"))","v":""},{"$f":"IF('TSA Input'!J2355=\"\",\"\",IF(OR('TSA Input'!J2355=\"Yes\",'TSA Input'!J2355=\"Contingent\"),'TSA Input'!D2355,\"\"))","v":""},{"$f":"IF('TSA Input'!J2355=\"\",\"\",IF(OR('TSA Input'!J2355=\"Yes\",'TSA Input'!J2355=\"Contingent\"),'TSA Input'!G2355,\"\"))","v":""},{"$f":"IF('TSA Input'!J2355=\"\",\"\",IF(OR('TSA Input'!J2355=\"Yes\",'TSA Input'!J2355=\"Contingent\"),'TSA Input'!F2355,\"\"))","v":""},"",{"$f":"IF('TSA Input'!J2355=\"\",\"\",IF(OR('TSA Input'!J2355=\"Yes\",'TSA Input'!J2355=\"Contingent\"),'TSA Input'!D2355,\"\"))","v":""},{"$f":"IF('TSA Input'!J2355=\"\",\"\",IF(OR('TSA Input'!J2355=\"Yes\",'TSA Input'!J2355=\"Contingent\"),'TSA Input'!G2355,\"\"))","v":""},{"$f":"IF('TSA Input'!J2355=\"\",\"\",IF(OR('TSA Input'!J2355=\"Yes\",'TSA Input'!J2355=\"Contingent\"),'TSA Input'!F2355,\"\"))","v":""},"","Required","Required"]
["",null,{"$f":"IF('TSA Input'!J2356=\"\",\"\",IF(OR('TSA Input'!J2356=\"Yes\",'TSA Input'!J2356=\"Contingent\"),'TSA Input'!B2356,\"Ineligible\"))","v":""},{"$f":"IF('TSA Input'!J2356=\"\",\"\",IF(OR('TSA Input'!J2356=\"Yes\",'TSA Input'!J2356=\"Contingent\"),'TSA Input'!I2356,\"\"))","v":""},{"$f":"IF('TSA Input'!J2356=\"\",\"\",IF(OR('TSA Input'!J2356=\"Yes\",'TSA Input'!J2356=\"Contingent\"),'TSA Input'!C2356,\"\"))","v":""},{"$f":"IF('TSA Input'!J2356=\"\",\"\",IF(OR('TSA Input'!J2356=\"Yes\",'TSA Input'!J2356=\"Contingent\"),'TSA Input'!D2356,\"\"))","v":""},{"$f":"IF('TSA Input'!J2356=\"\",\"\",IF(OR('TSA Input'!J2356=\"Yes\",'TSA Input'!J2356=\"Contingent\"),'TSA Input'!G2356,\"\"))","v":""},{"$f":"IF('TSA Input'!J2356=\"\",\"\",IF(OR('TSA Input'!J2356=\"Yes\",'TSA Input'!J2356=\"Contingent\"),'TSA Input'!F2356,\"\"))","v":""},"",{"$f":"IF('TSA Input'!J2356=\"\",\"\",IF(OR('TSA Input'!J2356=\"Yes\",'TSA Input'!J2356=\"Contingent\"),'TSA Input'!D2356,\"\"))","v":""},{"$f":"IF('TSA Input'!J2356=\"\",\"\",IF(OR('TSA Input'!J2356=\"Yes\",'TSA Input'!J2356=\"Contingent\"),'TSA Input'!G2356,\"\"))","v":""},{"$f":"IF('TSA Input'!J2356=\"\",\"\",IF(OR('TSA Input'!J2356=\"Yes\",'TSA Input'!J2356=\"Contingent\"),'TSA Input'!F2356,\"\"))","v":""},"","Required","Required"]
["",null,{"$f":"IF('TSA Input'!J2357=\"\",\"\",IF(OR('TSA Input'!J2357=\"Yes\",'TSA Input'!J2357=\"Contingent\"),'TSA Input'!B2357,\"Ineligible\"))","v":""},{"$f":"IF('TSA Input'!J2357=\"\",\"\",IF(OR('TSA Input'!J2357=\"Yes\",'TSA Input'!J2357=\"Contingent\"),'TSA Input'!I2357,\"\"))","v":""},{"$f":"IF('TSA Input'!J2357=\"\",\"\",IF(OR('TSA Input'!J2357=\"Yes\",'TSA Input'!J2357=\"Contingent\"),'TSA Input'!C2357,\"\"))","v":""},{"$f":"IF('TSA Input'!J2357=\"\",\"\",IF(OR('TSA Input'!J2357=\"Yes\",'TSA Input'!J2357=\"Contingent\"),'TSA Input'!D2357,\"\"))","v":""},{"$f":"IF('TSA Input'!J2357=\"\",\"\",IF(OR('TSA Input'!J2357=\"Yes\",'TSA Input'!J2357=\"Contingent\"),'TSA Input'!G2357,\"\"))","v":""},{"$f":"IF('TSA Input'!J2357=\"\",\"\",IF(OR('TSA Input'!J2357=\"Yes\",'TSA Input'!J2357=\"Contingent\"),'TSA Input'!F2357,\"\"))","v":""},"",{"$f":"IF('TSA Input'!J2357=\"\",\"\",IF(OR('TSA Input'!J2357=\"Yes\",'TSA Input'!J2357=\"Contingent\"),'TSA Input'!D2357,\"\"))","v":""},{"$f":"IF('TSA Input'!J2357=\"\",\"\",IF(OR('TSA Input'!J2357=\"Yes\",'TSA Input'!J2357=\"Contingent\"),'TSA Input'!G2357,\"\"))","v":""},{"$f":"IF('TSA Input'!J2357=\"\",\"\",IF(OR('TSA Input'!J2357=\"Yes\",'TSA Input'!J2357=\"Contingent\"),'TSA Input'!F2357,\"\"))","v":""},"","Required","Required"]
["",null,{"$f":"IF('TSA Input'!J2358=\"\",\"\",IF(OR('TSA Input'!J2358=\"Yes\",'TSA Input'!J2358=\"Contingent\"),'TSA Input'!B2358,\"Ineligible\"))","v":""},{"$f":"IF('TSA Input'!J2358=\"\",\"\",IF(OR('TSA Input'!J2358=\"Yes\",'TSA Input'!J2358=\"Contingent\"),'TSA Input'!I2358,\"\"))","v":""},{"$f":"IF('TSA Input'!J2358=\"\",\"\",IF(OR('TSA Input'!J2358=\"Yes\",'TSA Input'!J2358=\"Contingent\"),'TSA Input'!C2358,\"\"))","v":""},{"$f":"IF('TSA Input'!J2358=\"\",\"\",IF(OR('TSA Input'!J2358=\"Yes\",'TSA Input'!J2358=\"Contingent\"),'TSA Input'!D2358,\"\"))","v":""},{"$f":"IF('TSA Input'!J2358=\"\",\"\",IF(OR('TSA Input'!J2358=\"Yes\",'TSA Input'!J2358=\"Contingent\"),'TSA Input'!G2358,\"\"))","v":""},{"$f":"IF('TSA Input'!J2358=\"\",\"\",IF(OR('TSA Input'!J2358=\"Yes\",'TSA Input'!J2358=\"Contingent\"),'TSA Input'!F2358,\"\"))","v":""},"",{"$f":"IF('TSA Input'!J2358=\"\",\"\",IF(OR('TSA Input'!J2358=\"Yes\",'TSA Input'!J2358=\"Contingent\"),'TSA Input'!D2358,\"\"))","v":""},{"$f":"IF('TSA Input'!J2358=\"\",\"\",IF(OR('TSA Input'!J2358=\"Yes\",'TSA Input'!J2358=\"Contingent\"),'TSA Input'!G2358,\"\"))","v":""},{"$f":"IF('TSA Input'!J2358=\"\",\"\",IF(OR('TSA Input'!J2358=\"Yes\",'TSA Input'!J2358=\"Contingent\"),'TSA Input'!F2358,\"\"))","v":""},"","Required","Required"]
["",null,{"$f":"IF('TSA Input'!J2359=\"\",\"\",IF(OR('TSA Input'!J2359=\"Yes\",'TSA Input'!J2359=\"Contingent\"),'TSA Input'!B2359,\"Ineligible\"))","v":""},{"$f":"IF('TSA Input'!J2359=\"\",\"\",IF(OR('TSA Input'!J2359=\"Yes\",'TSA Input'!J2359=\"Contingent\"),'TSA Input'!I2359,\"\"))","v":""},{"$f":"IF('TSA Input'!J2359=\"\",\"\",IF(OR('TSA Input'!J2359=\"Yes\",'TSA Input'!J2359=\"Contingent\"),'TSA Input'!C2359,\"\"))","v":""},{"$f":"IF('TSA Input'!J2359=\"\",\"\",IF(OR('TSA Input'!J2359=\"Yes\",'TSA Input'!J2359=\"Contingent\"),'TSA Input'!D2359,\"\"))","v":""},{"$f":"IF('TSA Input'!J2359=\"\",\"\",IF(OR('TSA Input'!J2359=\"Yes\",'TSA Input'!J2359=\"Contingent\"),'TSA Input'!G2359,\"\"))","v":""},{"$f":"IF('TSA Input'!J2359=\"\",\"\",IF(OR('TSA Input'!J2359=\"Yes\",'TSA Input'!J2359=\"Contingent\"),'TSA Input'!F2359,\"\"))","v":""},"",{"$f":"IF('TSA Input'!J2359=\"\",\"\",IF(OR('TSA Input'!J2359=\"Yes\",'TSA Input'!J2359=\"Contingent\"),'TSA Input'!D2359,\"\"))","v":""},{"$f":"IF('TSA Input'!J2359=\"\",\"\",IF(OR('TSA Input'!J2359=\"Yes\",'TSA Input'!J2359=\"Contingent\"),'TSA Input'!G2359,\"\"))","v":""},{"$f":"IF('TSA Input'!J2359=\"\",\"\",IF(OR('TSA Input'!J2359=\"Yes\",'TSA Input'!J2359=\"Contingent\"),'TSA Input'!F2359,\"\"))","v":""},"","Required","Required"]
["",null,{"$f":"IF('TSA Input'!J2360=\"\",\"\",IF(OR('TSA Input'!J2360=\"Yes\",'TSA Input'!J2360=\"Contingent\"),'TSA Input'!B2360,\"Ineligible\"))","v":""},{"$f":"IF('TSA Input'!J2360=\"\",\"\",IF(OR('TSA Input'!J2360=\"Yes\",'TSA Input'!J2360=\"Contingent\"),'TSA Input'!I2360,\"\"))","v":""},{"$f":"IF('TSA Input'!J2360=\"\",\"\",IF(OR('TSA Input'!J2360=\"Yes\",'TSA Input'!J2360=\"Contingent\"),'TSA Input'!C2360,\"\"))","v":""},{"$f":"IF('TSA Input'!J2360=\"\",\"\",IF(OR('TSA Input'!J2360=\"Yes\",'TSA Input'!J2360=\"Contingent\"),'TSA Input'!D2360,\"\"))","v":""},{"$f":"IF('TSA Input'!J2360=\"\",\"\",IF(OR('TSA Input'!J2360=\"Yes\",'TSA Input'!J2360=\"Contingent\"),'TSA Input'!G2360,\"\"))","v":""},{"$f":"IF('TSA Input'!J2360=\"\",\"\",IF(OR('TSA Input'!J2360=\"Yes\",'TSA Input'!J2360=\"Contingent\"),'TSA Input'!F2360,\"\"))","v":""},"",{"$f":"IF('TSA Input'!J2360=\"\",\"\",IF(OR('TSA Input'!J2360=\"Yes\",'TSA Input'!J2360=\"Contingent\"),'TSA Input'!D2360,\"\"))","v":""},{"$f":"IF('TSA Input'!J2360=\"\",\"\",IF(OR('TSA Input'!J2360=\"Yes\",'TSA Input'!J2360=\"Contingent\"),'TSA Input'!G2360,\"\"))","v":""},{"$f":"IF('TSA Input'!J2360=\"\",\"\",IF(OR('TSA Input'!J2360=\"Yes\",'TSA Input'!J2360=\"Contingent\"),'TSA Input'!F2360,\"\"))","v":""},"","Required","Required"]
["",null,{"$f":"IF('TSA Input'!J2361=\"\",\"\",IF(OR('TSA Input'!J2361=\"Yes\",'TSA Input'!J2361=\"Contingent\"),'TSA Input'!B2361,\"Ineligible\"))","v":""},{"$f":"IF('TSA Input'!J2361=\"\",\"\",IF(OR('TSA Input'!J2361=\"Yes\",'TSA Input'!J2361=\"Contingent\"),'TSA Input'!I2361,\"\"))","v":""},{"$f":"IF('TSA Input'!J2361=\"\",\"\",IF(OR('TSA Input'!J2361=\"Yes\",'TSA Input'!J2361=\"Contingent\"),'TSA Input'!C2361,\"\"))","v":""},{"$f":"IF('TSA Input'!J2361=\"\",\"\",IF(OR('TSA Input'!J2361=\"Yes\",'TSA Input'!J2361=\"Contingent\"),'TSA Input'!D2361,\"\"))","v":""},{"$f":"IF('TSA Input'!J2361=\"\",\"\",IF(OR('TSA Input'!J2361=\"Yes\",'TSA Input'!J2361=\"Contingent\"),'TSA Input'!G2361,\"\"))","v":""},{"$f":"IF('TSA Input'!J2361=\"\",\"\",IF(OR('TSA Input'!J2361=\"Yes\",'TSA Input'!J2361=\"Contingent\"),'TSA Input'!F2361,\"\"))","v":""},"",{"$f":"IF('TSA Input'!J2361=\"\",\"\",IF(OR('TSA Input'!J2361=\"Yes\",'TSA Input'!J2361=\"Contingent\"),'TSA Input'!D2361,\"\"))","v":""},{"$f":"IF('TSA Input'!J2361=\"\",\"\",IF(OR('TSA Input'!J2361=\"Yes\",'TSA Input'!J2361=\"Contingent\"),'TSA Input'!G2361,\"\"))","v":""},{"$f":"IF('TSA Input'!J2361=\"\",\"\",IF(OR('TSA Input'!J2361=\"Yes\",'TSA Input'!J2361=\"Contingent\"),'TSA Input'!F2361,\"\"))","v":""},"","Required","Required"]
["",null,{"$f":"IF('TSA Input'!J2362=\"\",\"\",IF(OR('TSA Input'!J2362=\"Yes\",'TSA Input'!J2362=\"Contingent\"),'TSA Input'!B2362,\"Ineligible\"))","v":""},{"$f":"IF('TSA Input'!J2362=\"\",\"\",IF(OR('TSA Input'!J2362=\"Yes\",'TSA Input'!J2362=\"Contingent\"),'TSA Input'!I2362,\"\"))","v":""},{"$f":"IF('TSA Input'!J2362=\"\",\"\",IF(OR('TSA Input'!J2362=\"Yes\",'TSA Input'!J2362=\"Contingent\"),'TSA Input'!C2362,\"\"))","v":""},{"$f":"IF('TSA Input'!J2362=\"\",\"\",IF(OR('TSA Input'!J2362=\"Yes\",'TSA Input'!J2362=\"Contingent\"),'TSA Input'!D2362,\"\"))","v":""},{"$f":"IF('TSA Input'!J2362=\"\",\"\",IF(OR('TSA Input'!J2362=\"Yes\",'TSA Input'!J2362=\"Contingent\"),'TSA Input'!G2362,\"\"))","v":""},{"$f":"IF('TSA Input'!J2362=\"\",\"\",IF(OR('TSA Input'!J2362=\"Yes\",'TSA Input'!J2362=\"Contingent\"),'TSA Input'!F2362,\"\"))","v":""},"",{"$f":"IF('TSA Input'!J2362=\"\",\"\",IF(OR('TSA Input'!J2362=\"Yes\",'TSA Input'!J2362=\"Contingent\"),'TSA Input'!D2362,\"\"))","v":""},{"$f":"IF('TSA Input'!J2362=\"\",\"\",IF(OR('TSA Input'!J2362=\"Yes\",'TSA Input'!J2362=\"Contingent\"),'TSA Input'!G2362,\"\"))","v":""},{"$f":"IF('TSA Input'!J2362=\"\",\"\",IF(OR('TSA Input'!J2362=\"Yes\",'TSA Input'!J2362=\"Contingent\"),'TSA Input'!F2362,\"\"))","v":""},"","Required","Required"]
["",null,{"$f":"IF('TSA Input'!J2363=\"\",\"\",IF(OR('TSA Input'!J2363=\"Yes\",'TSA Input'!J2363=\"Contingent\"),'TSA Input'!B2363,\"Ineligible\"))","v":""},{"$f":"IF('TSA Input'!J2363=\"\",\"\",IF(OR('TSA Input'!J2363=\"Yes\",'TSA Input'!J2363=\"Contingent\"),'TSA Input'!I2363,\"\"))","v":""},{"$f":"IF('TSA Input'!J2363=\"\",\"\",IF(OR('TSA Input'!J2363=\"Yes\",'TSA Input'!J2363=\"Contingent\"),'TSA Input'!C2363,\"\"))","v":""},{"$f":"IF('TSA Input'!J2363=\"\",\"\",IF(OR('TSA Input'!J2363=\"Yes\",'TSA Input'!J2363=\"Contingent\"),'TSA Input'!D2363,\"\"))","v":""},{"$f":"IF('TSA Input'!J2363=\"\",\"\",IF(OR('TSA Input'!J2363=\"Yes\",'TSA Input'!J2363=\"Contingent\"),'TSA Input'!G2363,\"\"))","v":""},{"$f":"IF('TSA Input'!J2363=\"\",\"\",IF(OR('TSA Input'!J2363=\"Yes\",'TSA Input'!J2363=\"Contingent\"),'TSA Input'!F2363,\"\"))","v":""},"",{"$f":"IF('TSA Input'!J2363=\"\",\"\",IF(OR('TSA Input'!J2363=\"Yes\",'TSA Input'!J2363=\"Contingent\"),'TSA Input'!D2363,\"\"))","v":""},{"$f":"IF('TSA Input'!J2363=\"\",\"\",IF(OR('TSA Input'!J2363=\"Yes\",'TSA Input'!J2363=\"Contingent\"),'TSA Input'!G2363,\"\"))","v":""},{"$f":"IF('TSA Input'!J2363=\"\",\"\",IF(OR('TSA Input'!J2363=\"Yes\",'TSA Input'!J2363=\"Contingent\"),'TSA Input'!F2363,\"\"))","v":""},"","Required","Required"]
["",null,{"$f":"IF('TSA Input'!J2364=\"\",\"\",IF(OR('TSA Input'!J2364=\"Yes\",'TSA Input'!J2364=\"Contingent\"),'TSA Input'!B2364,\"Ineligible\"))","v":""},{"$f":"IF('TSA Input'!J2364=\"\",\"\",IF(OR('TSA Input'!J2364=\"Yes\",'TSA Input'!J2364=\"Contingent\"),'TSA Input'!I2364,\"\"))","v":""},{"$f":"IF('TSA Input'!J2364=\"\",\"\",IF(OR('TSA Input'!J2364=\"Yes\",'TSA Input'!J2364=\"Contingent\"),'TSA Input'!C2364,\"\"))","v":""},{"$f":"IF('TSA Input'!J2364=\"\",\"\",IF(OR('TSA Input'!J2364=\"Yes\",'TSA Input'!J2364=\"Contingent\"),'TSA Input'!D2364,\"\"))","v":""},{"$f":"IF('TSA Input'!J2364=\"\",\"\",IF(OR('TSA Input'!J2364=\"Yes\",'TSA Input'!J2364=\"Contingent\"),'TSA Input'!G2364,\"\"))","v":""},{"$f":"IF('TSA Input'!J2364=\"\",\"\",IF(OR('TSA Input'!J2364=\"Yes\",'TSA Input'!J2364=\"Contingent\"),'TSA Input'!F2364,\"\"))","v":""},"",{"$f":"IF('TSA Input'!J2364=\"\",\"\",IF(OR('TSA Input'!J2364=\"Yes\",'TSA Input'!J2364=\"Contingent\"),'TSA Input'!D2364,\"\"))","v":""},{"$f":"IF('TSA Input'!J2364=\"\",\"\",IF(OR('TSA Input'!J2364=\"Yes\",'TSA Input'!J2364=\"Contingent\"),'TSA Input'!G2364,\"\"))","v":""},{"$f":"IF('TSA Input'!J2364=\"\",\"\",IF(OR('TSA Input'!J2364=\"Yes\",'TSA Input'!J2364=\"Contingent\"),'TSA Input'!F2364,\"\"))","v":""},"","Required","Required"]
["",null,{"$f":"IF('TSA Input'!J2365=\"\",\"\",IF(OR('TSA Input'!J2365=\"Yes\",'TSA Input'!J2365=\"Contingent\"),'TSA Input'!B2365,\"Ineligible\"))","v":""},{"$f":"IF('TSA Input'!J2365=\"\",\"\",IF(OR('TSA Input'!J2365=\"Yes\",'TSA Input'!J2365=\"Contingent\"),'TSA Input'!I2365,\"\"))","v":""},{"$f":"IF('TSA Input'!J2365=\"\",\"\",IF(OR('TSA Input'!J2365=\"Yes\",'TSA Input'!J2365=\"Contingent\"),'TSA Input'!C2365,\"\"))","v":""},{"$f":"IF('TSA Input'!J2365=\"\",\"\",IF(OR('TSA Input'!J2365=\"Yes\",'TSA Input'!J2365=\"Contingent\"),'TSA Input'!D2365,\"\"))","v":""},{"$f":"IF('TSA Input'!J2365=\"\",\"\",IF(OR('TSA Input'!J2365=\"Yes\",'TSA Input'!J2365=\"Contingent\"),'TSA Input'!G2365,\"\"))","v":""},{"$f":"IF('TSA Input'!J2365=\"\",\"\",IF(OR('TSA Input'!J2365=\"Yes\",'TSA Input'!J2365=\"Contingent\"),'TSA Input'!F2365,\"\"))","v":""},"",{"$f":"IF('TSA Input'!J2365=\"\",\"\",IF(OR('TSA Input'!J2365=\"Yes\",'TSA Input'!J2365=\"Contingent\"),'TSA Input'!D2365,\"\"))","v":""},{"$f":"IF('TSA Input'!J2365=\"\",\"\",IF(OR('TSA Input'!J2365=\"Yes\",'TSA Input'!J2365=\"Contingent\"),'TSA Input'!G2365,\"\"))","v":""},{"$f":"IF('TSA Input'!J2365=\"\",\"\",IF(OR('TSA Input'!J2365=\"Yes\",'TSA Input'!J2365=\"Contingent\"),'TSA Input'!F2365,\"\"))","v":""},"","Required","Required"]
["",null,{"$f":"IF('TSA Input'!J2366=\"\",\"\",IF(OR('TSA Input'!J2366=\"Yes\",'TSA Input'!J2366=\"Contingent\"),'TSA Input'!B2366,\"Ineligible\"))","v":""},{"$f":"IF('TSA Input'!J2366=\"\",\"\",IF(OR('TSA Input'!J2366=\"Yes\",'TSA Input'!J2366=\"Contingent\"),'TSA Input'!I2366,\"\"))","v":""},{"$f":"IF('TSA Input'!J2366=\"\",\"\",IF(OR('TSA Input'!J2366=\"Yes\",'TSA Input'!J2366=\"Contingent\"),'TSA Input'!C2366,\"\"))","v":""},{"$f":"IF('TSA Input'!J2366=\"\",\"\",IF(OR('TSA Input'!J2366=\"Yes\",'TSA Input'!J2366=\"Contingent\"),'TSA Input'!D2366,\"\"))","v":""},{"$f":"IF('TSA Input'!J2366=\"\",\"\",IF(OR('TSA Input'!J2366=\"Yes\",'TSA Input'!J2366=\"Contingent\"),'TSA Input'!G2366,\"\"))","v":""},{"$f":"IF('TSA Input'!J2366=\"\",\"\",IF(OR('TSA Input'!J2366=\"Yes\",'TSA Input'!J2366=\"Contingent\"),'TSA Input'!F2366,\"\"))","v":""},"",{"$f":"IF('TSA Input'!J2366=\"\",\"\",IF(OR('TSA Input'!J2366=\"Yes\",'TSA Input'!J2366=\"Contingent\"),'TSA Input'!D2366,\"\"))","v":""},{"$f":"IF('TSA Input'!J2366=\"\",\"\",IF(OR('TSA Input'!J2366=\"Yes\",'TSA Input'!J2366=\"Contingent\"),'TSA Input'!G2366,\"\"))","v":""},{"$f":"IF('TSA Input'!J2366=\"\",\"\",IF(OR('TSA Input'!J2366=\"Yes\",'TSA Input'!J2366=\"Contingent\"),'TSA Input'!F2366,\"\"))","v":""},"","Required","Required"]
["",null,{"$f":"IF('TSA Input'!J2367=\"\",\"\",IF(OR('TSA Input'!J2367=\"Yes\",'TSA Input'!J2367=\"Contingent\"),'TSA Input'!B2367,\"Ineligible\"))","v":""},{"$f":"IF('TSA Input'!J2367=\"\",\"\",IF(OR('TSA Input'!J2367=\"Yes\",'TSA Input'!J2367=\"Contingent\"),'TSA Input'!I2367,\"\"))","v":""},{"$f":"IF('TSA Input'!J2367=\"\",\"\",IF(OR('TSA Input'!J2367=\"Yes\",'TSA Input'!J2367=\"Contingent\"),'TSA Input'!C2367,\"\"))","v":""},{"$f":"IF('TSA Input'!J2367=\"\",\"\",IF(OR('TSA Input'!J2367=\"Yes\",'TSA Input'!J2367=\"Contingent\"),'TSA Input'!D2367,\"\"))","v":""},{"$f":"IF('TSA Input'!J2367=\"\",\"\",IF(OR('TSA Input'!J2367=\"Yes\",'TSA Input'!J2367=\"Contingent\"),'TSA Input'!G2367,\"\"))","v":""},{"$f":"IF('TSA Input'!J2367=\"\",\"\",IF(OR('TSA Input'!J2367=\"Yes\",'TSA Input'!J2367=\"Contingent\"),'TSA Input'!F2367,\"\"))","v":""},"",{"$f":"IF('TSA Input'!J2367=\"\",\"\",IF(OR('TSA Input'!J2367=\"Yes\",'TSA Input'!J2367=\"Contingent\"),'TSA Input'!D2367,\"\"))","v":""},{"$f":"IF('TSA Input'!J2367=\"\",\"\",IF(OR('TSA Input'!J2367=\"Yes\",'TSA Input'!J2367=\"Contingent\"),'TSA Input'!G2367,\"\"))","v":""},{"$f":"IF('TSA Input'!J2367=\"\",\"\",IF(OR('TSA Input'!J2367=\"Yes\",'TSA Input'!J2367=\"Contingent\"),'TSA Input'!F2367,\"\"))","v":""},"","Required","Required"]
["",null,{"$f":"IF('TSA Input'!J2368=\"\",\"\",IF(OR('TSA Input'!J2368=\"Yes\",'TSA Input'!J2368=\"Contingent\"),'TSA Input'!B2368,\"Ineligible\"))","v":""},{"$f":"IF('TSA Input'!J2368=\"\",\"\",IF(OR('TSA Input'!J2368=\"Yes\",'TSA Input'!J2368=\"Contingent\"),'TSA Input'!I2368,\"\"))","v":""},{"$f":"IF('TSA Input'!J2368=\"\",\"\",IF(OR('TSA Input'!J2368=\"Yes\",'TSA Input'!J2368=\"Contingent\"),'TSA Input'!C2368,\"\"))","v":""},{"$f":"IF('TSA Input'!J2368=\"\",\"\",IF(OR('TSA Input'!J2368=\"Yes\",'TSA Input'!J2368=\"Contingent\"),'TSA Input'!D2368,\"\"))","v":""},{"$f":"IF('TSA Input'!J2368=\"\",\"\",IF(OR('TSA Input'!J2368=\"Yes\",'TSA Input'!J2368=\"Contingent\"),'TSA Input'!G2368,\"\"))","v":""},{"$f":"IF('TSA Input'!J2368=\"\",\"\",IF(OR('TSA Input'!J2368=\"Yes\",'TSA Input'!J2368=\"Contingent\"),'TSA Input'!F2368,\"\"))","v":""},"",{"$f":"IF('TSA Input'!J2368=\"\",\"\",IF(OR('TSA Input'!J2368=\"Yes\",'TSA Input'!J2368=\"Contingent\"),'TSA Input'!D2368,\"\"))","v":""},{"$f":"IF('TSA Input'!J2368=\"\",\"\",IF(OR('TSA Input'!J2368=\"Yes\",'TSA Input'!J2368=\"Contingent\"),'TSA Input'!G2368,\"\"))","v":""},{"$f":"IF('TSA Input'!J2368=\"\",\"\",IF(OR('TSA Input'!J2368=\"Yes\",'TSA Input'!J2368=\"Contingent\"),'TSA Input'!F2368,\"\"))","v":""},"","Required","Required"]
["",null,{"$f":"IF('TSA Input'!J2369=\"\",\"\",IF(OR('TSA Input'!J2369=\"Yes\",'TSA Input'!J2369=\"Contingent\"),'TSA Input'!B2369,\"Ineligible\"))","v":""},{"$f":"IF('TSA Input'!J2369=\"\",\"\",IF(OR('TSA Input'!J2369=\"Yes\",'TSA Input'!J2369=\"Contingent\"),'TSA Input'!I2369,\"\"))","v":""},{"$f":"IF('TSA Input'!J2369=\"\",\"\",IF(OR('TSA Input'!J2369=\"Yes\",'TSA Input'!J2369=\"Contingent\"),'TSA Input'!C2369,\"\"))","v":""},{"$f":"IF('TSA Input'!J2369=\"\",\"\",IF(OR('TSA Input'!J2369=\"Yes\",'TSA Input'!J2369=\"Contingent\"),'TSA Input'!D2369,\"\"))","v":""},{"$f":"IF('TSA Input'!J2369=\"\",\"\",IF(OR('TSA Input'!J2369=\"Yes\",'TSA Input'!J2369=\"Contingent\"),'TSA Input'!G2369,\"\"))","v":""},{"$f":"IF('TSA Input'!J2369=\"\",\"\",IF(OR('TSA Input'!J2369=\"Yes\",'TSA Input'!J2369=\"Contingent\"),'TSA Input'!F2369,\"\"))","v":""},"",{"$f":"IF('TSA Input'!J2369=\"\",\"\",IF(OR('TSA Input'!J2369=\"Yes\",'TSA Input'!J2369=\"Contingent\"),'TSA Input'!D2369,\"\"))","v":""},{"$f":"IF('TSA Input'!J2369=\"\",\"\",IF(OR('TSA Input'!J2369=\"Yes\",'TSA Input'!J2369=\"Contingent\"),'TSA Input'!G2369,\"\"))","v":""},{"$f":"IF('TSA Input'!J2369=\"\",\"\",IF(OR('TSA Input'!J2369=\"Yes\",'TSA Input'!J2369=\"Contingent\"),'TSA Input'!F2369,\"\"))","v":""},"","Required","Required"]
["",null,{"$f":"IF('TSA Input'!J2370=\"\",\"\",IF(OR('TSA Input'!J2370=\"Yes\",'TSA Input'!J2370=\"Contingent\"),'TSA Input'!B2370,\"Ineligible\"))","v":""},{"$f":"IF('TSA Input'!J2370=\"\",\"\",IF(OR('TSA Input'!J2370=\"Yes\",'TSA Input'!J2370=\"Contingent\"),'TSA Input'!I2370,\"\"))","v":""},{"$f":"IF('TSA Input'!J2370=\"\",\"\",IF(OR('TSA Input'!J2370=\"Yes\",'TSA Input'!J2370=\"Contingent\"),'TSA Input'!C2370,\"\"))","v":""},{"$f":"IF('TSA Input'!J2370=\"\",\"\",IF(OR('TSA Input'!J2370=\"Yes\",'TSA Input'!J2370=\"Contingent\"),'TSA Input'!D2370,\"\"))","v":""},{"$f":"IF('TSA Input'!J2370=\"\",\"\",IF(OR('TSA Input'!J2370=\"Yes\",'TSA Input'!J2370=\"Contingent\"),'TSA Input'!G2370,\"\"))","v":""},{"$f":"IF('TSA Input'!J2370=\"\",\"\",IF(OR('TSA Input'!J2370=\"Yes\",'TSA Input'!J2370=\"Contingent\"),'TSA Input'!F2370,\"\"))","v":""},"",{"$f":"IF('TSA Input'!J2370=\"\",\"\",IF(OR('TSA Input'!J2370=\"Yes\",'TSA Input'!J2370=\"Contingent\"),'TSA Input'!D2370,\"\"))","v":""},{"$f":"IF('TSA Input'!J2370=\"\",\"\",IF(OR('TSA Input'!J2370=\"Yes\",'TSA Input'!J2370=\"Contingent\"),'TSA Input'!G2370,\"\"))","v":""},{"$f":"IF('TSA Input'!J2370=\"\",\"\",IF(OR('TSA Input'!J2370=\"Yes\",'TSA Input'!J2370=\"Contingent\"),'TSA Input'!F2370,\"\"))","v":""},"","Required","Required"]
["",null,{"$f":"IF('TSA Input'!J2371=\"\",\"\",IF(OR('TSA Input'!J2371=\"Yes\",'TSA Input'!J2371=\"Contingent\"),'TSA Input'!B2371,\"Ineligible\"))","v":""},{"$f":"IF('TSA Input'!J2371=\"\",\"\",IF(OR('TSA Input'!J2371=\"Yes\",'TSA Input'!J2371=\"Contingent\"),'TSA Input'!I2371,\"\"))","v":""},{"$f":"IF('TSA Input'!J2371=\"\",\"\",IF(OR('TSA Input'!J2371=\"Yes\",'TSA Input'!J2371=\"Contingent\"),'TSA Input'!C2371,\"\"))","v":""},{"$f":"IF('TSA Input'!J2371=\"\",\"\",IF(OR('TSA Input'!J2371=\"Yes\",'TSA Input'!J2371=\"Contingent\"),'TSA Input'!D2371,\"\"))","v":""},{"$f":"IF('TSA Input'!J2371=\"\",\"\",IF(OR('TSA Input'!J2371=\"Yes\",'TSA Input'!J2371=\"Contingent\"),'TSA Input'!G2371,\"\"))","v":""},{"$f":"IF('TSA Input'!J2371=\"\",\"\",IF(OR('TSA Input'!J2371=\"Yes\",'TSA Input'!J2371=\"Contingent\"),'TSA Input'!F2371,\"\"))","v":""},"",{"$f":"IF('TSA Input'!J2371=\"\",\"\",IF(OR('TSA Input'!J2371=\"Yes\",'TSA Input'!J2371=\"Contingent\"),'TSA Input'!D2371,\"\"))","v":""},{"$f":"IF('TSA Input'!J2371=\"\",\"\",IF(OR('TSA Input'!J2371=\"Yes\",'TSA Input'!J2371=\"Contingent\"),'TSA Input'!G2371,\"\"))","v":""},{"$f":"IF('TSA Input'!J2371=\"\",\"\",IF(OR('TSA Input'!J2371=\"Yes\",'TSA Input'!J2371=\"Contingent\"),'TSA Input'!F2371,\"\"))","v":""},"","Required","Required"]
["",null,{"$f":"IF('TSA Input'!J2372=\"\",\"\",IF(OR('TSA Input'!J2372=\"Yes\",'TSA Input'!J2372=\"Contingent\"),'TSA Input'!B2372,\"Ineligible\"))","v":""},{"$f":"IF('TSA Input'!J2372=\"\",\"\",IF(OR('TSA Input'!J2372=\"Yes\",'TSA Input'!J2372=\"Contingent\"),'TSA Input'!I2372,\"\"))","v":""},{"$f":"IF('TSA Input'!J2372=\"\",\"\",IF(OR('TSA Input'!J2372=\"Yes\",'TSA Input'!J2372=\"Contingent\"),'TSA Input'!C2372,\"\"))","v":""},{"$f":"IF('TSA Input'!J2372=\"\",\"\",IF(OR('TSA Input'!J2372=\"Yes\",'TSA Input'!J2372=\"Contingent\"),'TSA Input'!D2372,\"\"))","v":""},{"$f":"IF('TSA Input'!J2372=\"\",\"\",IF(OR('TSA Input'!J2372=\"Yes\",'TSA Input'!J2372=\"Contingent\"),'TSA Input'!G2372,\"\"))","v":""},{"$f":"IF('TSA Input'!J2372=\"\",\"\",IF(OR('TSA Input'!J2372=\"Yes\",'TSA Input'!J2372=\"Contingent\"),'TSA Input'!F2372,\"\"))","v":""},{"$f":"IF($C2410=\"\",\"\",SUM(F2410:H2410))","v":""},{"$f":"IF('TSA Input'!J2372=\"\",\"\",IF(OR('TSA Input'!J2372=\"Yes\",'TSA Input'!J2372=\"Contingent\"),'TSA Input'!D2372,\"\"))","v":""},{"$f":"IF('TSA Input'!J2372=\"\",\"\",IF(OR('TSA Input'!J2372=\"Yes\",'TSA Input'!J2372=\"Contingent\"),'TSA Input'!G2372,\"\"))","v":""},{"$f":"IF('TSA Input'!J2372=\"\",\"\",IF(OR('TSA Input'!J2372=\"Yes\",'TSA Input'!J2372=\"Contingent\"),'TSA Input'!F2372,\"\"))","v":""},{"$f":"IF($C2410=\"\",\"\",SUM(J2410:L2410))","v":""},"Required","Required"]
["",null,{"$f":"IF('TSA Input'!J2373=\"\",\"\",IF(OR('TSA Input'!J2373=\"Yes\",'TSA Input'!J2373=\"Contingent\"),'TSA Input'!B2373,\"Ineligible\"))","v":""},{"$f":"IF('TSA Input'!J2373=\"\",\"\",IF(OR('TSA Input'!J2373=\"Yes\",'TSA Input'!J2373=\"Contingent\"),'TSA Input'!I2373,\"\"))","v":""},{"$f":"IF('TSA Input'!J2373=\"\",\"\",IF(OR('TSA Input'!J2373=\"Yes\",'TSA Input'!J2373=\"Contingent\"),'TSA Input'!C2373,\"\"))","v":""},{"$f":"IF('TSA Input'!J2373=\"\",\"\",IF(OR('TSA Input'!J2373=\"Yes\",'TSA Input'!J2373=\"Contingent\"),'TSA Input'!D2373,\"\"))","v":""},{"$f":"IF('TSA Input'!J2373=\"\",\"\",IF(OR('TSA Input'!J2373=\"Yes\",'TSA Input'!J2373=\"Contingent\"),'TSA Input'!G2373,\"\"))","v":""},{"$f":"IF('TSA Input'!J2373=\"\",\"\",IF(OR('TSA Input'!J2373=\"Yes\",'TSA Input'!J2373=\"Contingent\"),'TSA Input'!F2373,\"\"))","v":""},"",{"$f":"IF('TSA Input'!J2373=\"\",\"\",IF(OR('TSA Input'!J2373=\"Yes\",'TSA Input'!J2373=\"Contingent\"),'TSA Input'!D2373,\"\"))","v":""},{"$f":"IF('TSA Input'!J2373=\"\",\"\",IF(OR('TSA Input'!J2373=\"Yes\",'TSA Input'!J2373=\"Contingent\"),'TSA Input'!G2373,\"\"))","v":""},{"$f":"IF('TSA Input'!J2373=\"\",\"\",IF(OR('TSA Input'!J2373=\"Yes\",'TSA Input'!J2373=\"Contingent\"),'TSA Input'!F2373,\"\"))","v":""},"","Required","Required"]
["",null,{"$f":"IF('TSA Input'!J2374=\"\",\"\",IF(OR('TSA Input'!J2374=\"Yes\",'TSA Input'!J2374=\"Contingent\"),'TSA Input'!B2374,\"Ineligible\"))","v":""},{"$f":"IF('TSA Input'!J2374=\"\",\"\",IF(OR('TSA Input'!J2374=\"Yes\",'TSA Input'!J2374=\"Contingent\"),'TSA Input'!I2374,\"\"))","v":""},{"$f":"IF('TSA Input'!J2374=\"\",\"\",IF(OR('TSA Input'!J2374=\"Yes\",'TSA Input'!J2374=\"Contingent\"),'TSA Input'!C2374,\"\"))","v":""},{"$f":"IF('TSA Input'!J2374=\"\",\"\",IF(OR('TSA Input'!J2374=\"Yes\",'TSA Input'!J2374=\"Contingent\"),'TSA Input'!D2374,\"\"))","v":""},{"$f":"IF('TSA Input'!J2374=\"\",\"\",IF(OR('TSA Input'!J2374=\"Yes\",'TSA Input'!J2374=\"Contingent\"),'TSA Input'!G2374,\"\"))","v":""},{"$f":"IF('TSA Input'!J2374=\"\",\"\",IF(OR('TSA Input'!J2374=\"Yes\",'TSA Input'!J2374=\"Contingent\"),'TSA Input'!F2374,\"\"))","v":""},"",{"$f":"IF('TSA Input'!J2374=\"\",\"\",IF(OR('TSA Input'!J2374=\"Yes\",'TSA Input'!J2374=\"Contingent\"),'TSA Input'!D2374,\"\"))","v":""},{"$f":"IF('TSA Input'!J2374=\"\",\"\",IF(OR('TSA Input'!J2374=\"Yes\",'TSA Input'!J2374=\"Contingent\"),'TSA Input'!G2374,\"\"))","v":""},{"$f":"IF('TSA Input'!J2374=\"\",\"\",IF(OR('TSA Input'!J2374=\"Yes\",'TSA Input'!J2374=\"Contingent\"),'TSA Input'!F2374,\"\"))","v":""},"","Required","Required"]
["",null,{"$f":"IF('TSA Input'!J2375=\"\",\"\",IF(OR('TSA Input'!J2375=\"Yes\",'TSA Input'!J2375=\"Contingent\"),'TSA Input'!B2375,\"Ineligible\"))","v":""},{"$f":"IF('TSA Input'!J2375=\"\",\"\",IF(OR('TSA Input'!J2375=\"Yes\",'TSA Input'!J2375=\"Contingent\"),'TSA Input'!I2375,\"\"))","v":""},{"$f":"IF('TSA Input'!J2375=\"\",\"\",IF(OR('TSA Input'!J2375=\"Yes\",'TSA Input'!J2375=\"Contingent\"),'TSA Input'!C2375,\"\"))","v":""},{"$f":"IF('TSA Input'!J2375=\"\",\"\",IF(OR('TSA Input'!J2375=\"Yes\",'TSA Input'!J2375=\"Contingent\"),'TSA Input'!D2375,\"\"))","v":""},{"$f":"IF('TSA Input'!J2375=\"\",\"\",IF(OR('TSA Input'!J2375=\"Yes\",'TSA Input'!J2375=\"Contingent\"),'TSA Input'!G2375,\"\"))","v":""},{"$f":"IF('TSA Input'!J2375=\"\",\"\",IF(OR('TSA Input'!J2375=\"Yes\",'TSA Input'!J2375=\"Contingent\"),'TSA Input'!F2375,\"\"))","v":""},"",{"$f":"IF('TSA Input'!J2375=\"\",\"\",IF(OR('TSA Input'!J2375=\"Yes\",'TSA Input'!J2375=\"Contingent\"),'TSA Input'!D2375,\"\"))","v":""},{"$f":"IF('TSA Input'!J2375=\"\",\"\",IF(OR('TSA Input'!J2375=\"Yes\",'TSA Input'!J2375=\"Contingent\"),'TSA Input'!G2375,\"\"))","v":""},{"$f":"IF('TSA Input'!J2375=\"\",\"\",IF(OR('TSA Input'!J2375=\"Yes\",'TSA Input'!J2375=\"Contingent\"),'TSA Input'!F2375,\"\"))","v":""},"","Required","Required"]
["",null,{"$f":"IF('TSA Input'!J2376=\"\",\"\",IF(OR('TSA Input'!J2376=\"Yes\",'TSA Input'!J2376=\"Contingent\"),'TSA Input'!B2376,\"Ineligible\"))","v":""},{"$f":"IF('TSA Input'!J2376=\"\",\"\",IF(OR('TSA Input'!J2376=\"Yes\",'TSA Input'!J2376=\"Contingent\"),'TSA Input'!I2376,\"\"))","v":""},{"$f":"IF('TSA Input'!J2376=\"\",\"\",IF(OR('TSA Input'!J2376=\"Yes\",'TSA Input'!J2376=\"Contingent\"),'TSA Input'!C2376,\"\"))","v":""},{"$f":"IF('TSA Input'!J2376=\"\",\"\",IF(OR('TSA Input'!J2376=\"Yes\",'TSA Input'!J2376=\"Contingent\"),'TSA Input'!D2376,\"\"))","v":""},{"$f":"IF('TSA Input'!J2376=\"\",\"\",IF(OR('TSA Input'!J2376=\"Yes\",'TSA Input'!J2376=\"Contingent\"),'TSA Input'!G2376,\"\"))","v":""},{"$f":"IF('TSA Input'!J2376=\"\",\"\",IF(OR('TSA Input'!J2376=\"Yes\",'TSA Input'!J2376=\"Contingent\"),'TSA Input'!F2376,\"\"))","v":""},"",{"$f":"IF('TSA Input'!J2376=\"\",\"\",IF(OR('TSA Input'!J2376=\"Yes\",'TSA Input'!J2376=\"Contingent\"),'TSA Input'!D2376,\"\"))","v":""},{"$f":"IF('TSA Input'!J2376=\"\",\"\",IF(OR('TSA Input'!J2376=\"Yes\",'TSA Input'!J2376=\"Contingent\"),'TSA Input'!G2376,\"\"))","v":""},{"$f":"IF('TSA Input'!J2376=\"\",\"\",IF(OR('TSA Input'!J2376=\"Yes\",'TSA Input'!J2376=\"Contingent\"),'TSA Input'!F2376,\"\"))","v":""},"","Required","Required"]
["",null,{"$f":"IF('TSA Input'!J2377=\"\",\"\",IF(OR('TSA Input'!J2377=\"Yes\",'TSA Input'!J2377=\"Contingent\"),'TSA Input'!B2377,\"Ineligible\"))","v":""},{"$f":"IF('TSA Input'!J2377=\"\",\"\",IF(OR('TSA Input'!J2377=\"Yes\",'TSA Input'!J2377=\"Contingent\"),'TSA Input'!I2377,\"\"))","v":""},{"$f":"IF('TSA Input'!J2377=\"\",\"\",IF(OR('TSA Input'!J2377=\"Yes\",'TSA Input'!J2377=\"Contingent\"),'TSA Input'!C2377,\"\"))","v":""},{"$f":"IF('TSA Input'!J2377=\"\",\"\",IF(OR('TSA Input'!J2377=\"Yes\",'TSA Input'!J2377=\"Contingent\"),'TSA Input'!D2377,\"\"))","v":""},{"$f":"IF('TSA Input'!J2377=\"\",\"\",IF(OR('TSA Input'!J2377=\"Yes\",'TSA Input'!J2377=\"Contingent\"),'TSA Input'!G2377,\"\"))","v":""},{"$f":"IF('TSA Input'!J2377=\"\",\"\",IF(OR('TSA Input'!J2377=\"Yes\",'TSA Input'!J2377=\"Contingent\"),'TSA Input'!F2377,\"\"))","v":""},"",{"$f":"IF('TSA Input'!J2377=\"\",\"\",IF(OR('TSA Input'!J2377=\"Yes\",'TSA Input'!J2377=\"Contingent\"),'TSA Input'!D2377,\"\"))","v":""},{"$f":"IF('TSA Input'!J2377=\"\",\"\",IF(OR('TSA Input'!J2377=\"Yes\",'TSA Input'!J2377=\"Contingent\"),'TSA Input'!G2377,\"\"))","v":""},{"$f":"IF('TSA Input'!J2377=\"\",\"\",IF(OR('TSA Input'!J2377=\"Yes\",'TSA Input'!J2377=\"Contingent\"),'TSA Input'!F2377,\"\"))","v":""},"","Required","Required"]
["",null,{"$f":"IF('TSA Input'!J2378=\"\",\"\",IF(OR('TSA Input'!J2378=\"Yes\",'TSA Input'!J2378=\"Contingent\"),'TSA Input'!B2378,\"Ineligible\"))","v":""},{"$f":"IF('TSA Input'!J2378=\"\",\"\",IF(OR('TSA Input'!J2378=\"Yes\",'TSA Input'!J2378=\"Contingent\"),'TSA Input'!I2378,\"\"))","v":""},{"$f":"IF('TSA Input'!J2378=\"\",\"\",IF(OR('TSA Input'!J2378=\"Yes\",'TSA Input'!J2378=\"Contingent\"),'TSA Input'!C2378,\"\"))","v":""},{"$f":"IF('TSA Input'!J2378=\"\",\"\",IF(OR('TSA Input'!J2378=\"Yes\",'TSA Input'!J2378=\"Contingent\"),'TSA Input'!D2378,\"\"))","v":""},{"$f":"IF('TSA Input'!J2378=\"\",\"\",IF(OR('TSA Input'!J2378=\"Yes\",'TSA Input'!J2378=\"Contingent\"),'TSA Input'!G2378,\"\"))","v":""},{"$f":"IF('TSA Input'!J2378=\"\",\"\",IF(OR('TSA Input'!J2378=\"Yes\",'TSA Input'!J2378=\"Contingent\"),'TSA Input'!F2378,\"\"))","v":""},"",{"$f":"IF('TSA Input'!J2378=\"\",\"\",IF(OR('TSA Input'!J2378=\"Yes\",'TSA Input'!J2378=\"Contingent\"),'TSA Input'!D2378,\"\"))","v":""},{"$f":"IF('TSA Input'!J2378=\"\",\"\",IF(OR('TSA Input'!J2378=\"Yes\",'TSA Input'!J2378=\"Contingent\"),'TSA Input'!G2378,\"\"))","v":""},{"$f":"IF('TSA Input'!J2378=\"\",\"\",IF(OR('TSA Input'!J2378=\"Yes\",'TSA Input'!J2378=\"Contingent\"),'TSA Input'!F2378,\"\"))","v":""},"","Required","Required"]
["",null,{"$f":"IF('TSA Input'!J2379=\"\",\"\",IF(OR('TSA Input'!J2379=\"Yes\",'TSA Input'!J2379=\"Contingent\"),'TSA Input'!B2379,\"Ineligible\"))","v":""},{"$f":"IF('TSA Input'!J2379=\"\",\"\",IF(OR('TSA Input'!J2379=\"Yes\",'TSA Input'!J2379=\"Contingent\"),'TSA Input'!I2379,\"\"))","v":""},{"$f":"IF('TSA Input'!J2379=\"\",\"\",IF(OR('TSA Input'!J2379=\"Yes\",'TSA Input'!J2379=\"Contingent\"),'TSA Input'!C2379,\"\"))","v":""},{"$f":"IF('TSA Input'!J2379=\"\",\"\",IF(OR('TSA Input'!J2379=\"Yes\",'TSA Input'!J2379=\"Contingent\"),'TSA Input'!D2379,\"\"))","v":""},{"$f":"IF('TSA Input'!J2379=\"\",\"\",IF(OR('TSA Input'!J2379=\"Yes\",'TSA Input'!J2379=\"Contingent\"),'TSA Input'!G2379,\"\"))","v":""},{"$f":"IF('TSA Input'!J2379=\"\",\"\",IF(OR('TSA Input'!J2379=\"Yes\",'TSA Input'!J2379=\"Contingent\"),'TSA Input'!F2379,\"\"))","v":""},"",{"$f":"IF('TSA Input'!J2379=\"\",\"\",IF(OR('TSA Input'!J2379=\"Yes\",'TSA Input'!J2379=\"Contingent\"),'TSA Input'!D2379,\"\"))","v":""},{"$f":"IF('TSA Input'!J2379=\"\",\"\",IF(OR('TSA Input'!J2379=\"Yes\",'TSA Input'!J2379=\"Contingent\"),'TSA Input'!G2379,\"\"))","v":""},{"$f":"IF('TSA Input'!J2379=\"\",\"\",IF(OR('TSA Input'!J2379=\"Yes\",'TSA Input'!J2379=\"Contingent\"),'TSA Input'!F2379,\"\"))","v":""},"","Required","Required"]
["",null,{"$f":"IF('TSA Input'!J2380=\"\",\"\",IF(OR('TSA Input'!J2380=\"Yes\",'TSA Input'!J2380=\"Contingent\"),'TSA Input'!B2380,\"Ineligible\"))","v":""},{"$f":"IF('TSA Input'!J2380=\"\",\"\",IF(OR('TSA Input'!J2380=\"Yes\",'TSA Input'!J2380=\"Contingent\"),'TSA Input'!I2380,\"\"))","v":""},{"$f":"IF('TSA Input'!J2380=\"\",\"\",IF(OR('TSA Input'!J2380=\"Yes\",'TSA Input'!J2380=\"Contingent\"),'TSA Input'!C2380,\"\"))","v":""},{"$f":"IF('TSA Input'!J2380=\"\",\"\",IF(OR('TSA Input'!J2380=\"Yes\",'TSA Input'!J2380=\"Contingent\"),'TSA Input'!D2380,\"\"))","v":""},{"$f":"IF('TSA Input'!J2380=\"\",\"\",IF(OR('TSA Input'!J2380=\"Yes\",'TSA Input'!J2380=\"Contingent\"),'TSA Input'!G2380,\"\"))","v":""},{"$f":"IF('TSA Input'!J2380=\"\",\"\",IF(OR('TSA Input'!J2380=\"Yes\",'TSA Input'!J2380=\"Contingent\"),'TSA Input'!F2380,\"\"))","v":""},"",{"$f":"IF('TSA Input'!J2380=\"\",\"\",IF(OR('TSA Input'!J2380=\"Yes\",'TSA Input'!J2380=\"Contingent\"),'TSA Input'!D2380,\"\"))","v":""},{"$f":"IF('TSA Input'!J2380=\"\",\"\",IF(OR('TSA Input'!J2380=\"Yes\",'TSA Input'!J2380=\"Contingent\"),'TSA Input'!G2380,\"\"))","v":""},{"$f":"IF('TSA Input'!J2380=\"\",\"\",IF(OR('TSA Input'!J2380=\"Yes\",'TSA Input'!J2380=\"Contingent\"),'TSA Input'!F2380,\"\"))","v":""},"","Required","Required"]
["",null,{"$f":"IF('TSA Input'!J2381=\"\",\"\",IF(OR('TSA Input'!J2381=\"Yes\",'TSA Input'!J2381=\"Contingent\"),'TSA Input'!B2381,\"Ineligible\"))","v":""},{"$f":"IF('TSA Input'!J2381=\"\",\"\",IF(OR('TSA Input'!J2381=\"Yes\",'TSA Input'!J2381=\"Contingent\"),'TSA Input'!I2381,\"\"))","v":""},{"$f":"IF('TSA Input'!J2381=\"\",\"\",IF(OR('TSA Input'!J2381=\"Yes\",'TSA Input'!J2381=\"Contingent\"),'TSA Input'!C2381,\"\"))","v":""},{"$f":"IF('TSA Input'!J2381=\"\",\"\",IF(OR('TSA Input'!J2381=\"Yes\",'TSA Input'!J2381=\"Contingent\"),'TSA Input'!D2381,\"\"))","v":""},{"$f":"IF('TSA Input'!J2381=\"\",\"\",IF(OR('TSA Input'!J2381=\"Yes\",'TSA Input'!J2381=\"Contingent\"),'TSA Input'!G2381,\"\"))","v":""},{"$f":"IF('TSA Input'!J2381=\"\",\"\",IF(OR('TSA Input'!J2381=\"Yes\",'TSA Input'!J2381=\"Contingent\"),'TSA Input'!F2381,\"\"))","v":""},"",{"$f":"IF('TSA Input'!J2381=\"\",\"\",IF(OR('TSA Input'!J2381=\"Yes\",'TSA Input'!J2381=\"Contingent\"),'TSA Input'!D2381,\"\"))","v":""},{"$f":"IF('TSA Input'!J2381=\"\",\"\",IF(OR('TSA Input'!J2381=\"Yes\",'TSA Input'!J2381=\"Contingent\"),'TSA Input'!G2381,\"\"))","v":""},{"$f":"IF('TSA Input'!J2381=\"\",\"\",IF(OR('TSA Input'!J2381=\"Yes\",'TSA Input'!J2381=\"Contingent\"),'TSA Input'!F2381,\"\"))","v":""},"","Required","Required"]
["",null,{"$f":"IF('TSA Input'!J2382=\"\",\"\",IF(OR('TSA Input'!J2382=\"Yes\",'TSA Input'!J2382=\"Contingent\"),'TSA Input'!B2382,\"Ineligible\"))","v":""},{"$f":"IF('TSA Input'!J2382=\"\",\"\",IF(OR('TSA Input'!J2382=\"Yes\",'TSA Input'!J2382=\"Contingent\"),'TSA Input'!I2382,\"\"))","v":""},{"$f":"IF('TSA Input'!J2382=\"\",\"\",IF(OR('TSA Input'!J2382=\"Yes\",'TSA Input'!J2382=\"Contingent\"),'TSA Input'!C2382,\"\"))","v":""},{"$f":"IF('TSA Input'!J2382=\"\",\"\",IF(OR('TSA Input'!J2382=\"Yes\",'TSA Input'!J2382=\"Contingent\"),'TSA Input'!D2382,\"\"))","v":""},{"$f":"IF('TSA Input'!J2382=\"\",\"\",IF(OR('TSA Input'!J2382=\"Yes\",'TSA Input'!J2382=\"Contingent\"),'TSA Input'!G2382,\"\"))","v":""},{"$f":"IF('TSA Input'!J2382=\"\",\"\",IF(OR('TSA Input'!J2382=\"Yes\",'TSA Input'!J2382=\"Contingent\"),'TSA Input'!F2382,\"\"))","v":""},"",{"$f":"IF('TSA Input'!J2382=\"\",\"\",IF(OR('TSA Input'!J2382=\"Yes\",'TSA Input'!J2382=\"Contingent\"),'TSA Input'!D2382,\"\"))","v":""},{"$f":"IF('TSA Input'!J2382=\"\",\"\",IF(OR('TSA Input'!J2382=\"Yes\",'TSA Input'!J2382=\"Contingent\"),'TSA Input'!G2382,\"\"))","v":""},{"$f":"IF('TSA Input'!J2382=\"\",\"\",IF(OR('TSA Input'!J2382=\"Yes\",'TSA Input'!J2382=\"Contingent\"),'TSA Input'!F2382,\"\"))","v":""},"","Required","Required"]
["",null,{"$f":"IF('TSA Input'!J2383=\"\",\"\",IF(OR('TSA Input'!J2383=\"Yes\",'TSA Input'!J2383=\"Contingent\"),'TSA Input'!B2383,\"Ineligible\"))","v":""},{"$f":"IF('TSA Input'!J2383=\"\",\"\",IF(OR('TSA Input'!J2383=\"Yes\",'TSA Input'!J2383=\"Contingent\"),'TSA Input'!I2383,\"\"))","v":""},{"$f":"IF('TSA Input'!J2383=\"\",\"\",IF(OR('TSA Input'!J2383=\"Yes\",'TSA Input'!J2383=\"Contingent\"),'TSA Input'!C2383,\"\"))","v":""},{"$f":"IF('TSA Input'!J2383=\"\",\"\",IF(OR('TSA Input'!J2383=\"Yes\",'TSA Input'!J2383=\"Contingent\"),'TSA Input'!D2383,\"\"))","v":""},{"$f":"IF('TSA Input'!J2383=\"\",\"\",IF(OR('TSA Input'!J2383=\"Yes\",'TSA Input'!J2383=\"Contingent\"),'TSA Input'!G2383,\"\"))","v":""},{"$f":"IF('TSA Input'!J2383=\"\",\"\",IF(OR('TSA Input'!J2383=\"Yes\",'TSA Input'!J2383=\"Contingent\"),'TSA Input'!F2383,\"\"))","v":""},"",{"$f":"IF('TSA Input'!J2383=\"\",\"\",IF(OR('TSA Input'!J2383=\"Yes\",'TSA Input'!J2383=\"Contingent\"),'TSA Input'!D2383,\"\"))","v":""},{"$f":"IF('TSA Input'!J2383=\"\",\"\",IF(OR('TSA Input'!J2383=\"Yes\",'TSA Input'!J2383=\"Contingent\"),'TSA Input'!G2383,\"\"))","v":""},{"$f":"IF('TSA Input'!J2383=\"\",\"\",IF(OR('TSA Input'!J2383=\"Yes\",'TSA Input'!J2383=\"Contingent\"),'TSA Input'!F2383,\"\"))","v":""},"","Required","Required"]
["",null,{"$f":"IF('TSA Input'!J2384=\"\",\"\",IF(OR('TSA Input'!J2384=\"Yes\",'TSA Input'!J2384=\"Contingent\"),'TSA Input'!B2384,\"Ineligible\"))","v":""},{"$f":"IF('TSA Input'!J2384=\"\",\"\",IF(OR('TSA Input'!J2384=\"Yes\",'TSA Input'!J2384=\"Contingent\"),'TSA Input'!I2384,\"\"))","v":""},{"$f":"IF('TSA Input'!J2384=\"\",\"\",IF(OR('TSA Input'!J2384=\"Yes\",'TSA Input'!J2384=\"Contingent\"),'TSA Input'!C2384,\"\"))","v":""},{"$f":"IF('TSA Input'!J2384=\"\",\"\",IF(OR('TSA Input'!J2384=\"Yes\",'TSA Input'!J2384=\"Contingent\"),'TSA Input'!D2384,\"\"))","v":""},{"$f":"IF('TSA Input'!J2384=\"\",\"\",IF(OR('TSA Input'!J2384=\"Yes\",'TSA Input'!J2384=\"Contingent\"),'TSA Input'!G2384,\"\"))","v":""},{"$f":"IF('TSA Input'!J2384=\"\",\"\",IF(OR('TSA Input'!J2384=\"Yes\",'TSA Input'!J2384=\"Contingent\"),'TSA Input'!F2384,\"\"))","v":""},"",{"$f":"IF('TSA Input'!J2384=\"\",\"\",IF(OR('TSA Input'!J2384=\"Yes\",'TSA Input'!J2384=\"Contingent\"),'TSA Input'!D2384,\"\"))","v":""},{"$f":"IF('TSA Input'!J2384=\"\",\"\",IF(OR('TSA Input'!J2384=\"Yes\",'TSA Input'!J2384=\"Contingent\"),'TSA Input'!G2384,\"\"))","v":""},{"$f":"IF('TSA Input'!J2384=\"\",\"\",IF(OR('TSA Input'!J2384=\"Yes\",'TSA Input'!J2384=\"Contingent\"),'TSA Input'!F2384,\"\"))","v":""},"","Required","Required"]
["",null,{"$f":"IF('TSA Input'!J2385=\"\",\"\",IF(OR('TSA Input'!J2385=\"Yes\",'TSA Input'!J2385=\"Contingent\"),'TSA Input'!B2385,\"Ineligible\"))","v":""},{"$f":"IF('TSA Input'!J2385=\"\",\"\",IF(OR('TSA Input'!J2385=\"Yes\",'TSA Input'!J2385=\"Contingent\"),'TSA Input'!I2385,\"\"))","v":""},{"$f":"IF('TSA Input'!J2385=\"\",\"\",IF(OR('TSA Input'!J2385=\"Yes\",'TSA Input'!J2385=\"Contingent\"),'TSA Input'!C2385,\"\"))","v":""},{"$f":"IF('TSA Input'!J2385=\"\",\"\",IF(OR('TSA Input'!J2385=\"Yes\",'TSA Input'!J2385=\"Contingent\"),'TSA Input'!D2385,\"\"))","v":""},{"$f":"IF('TSA Input'!J2385=\"\",\"\",IF(OR('TSA Input'!J2385=\"Yes\",'TSA Input'!J2385=\"Contingent\"),'TSA Input'!G2385,\"\"))","v":""},{"$f":"IF('TSA Input'!J2385=\"\",\"\",IF(OR('TSA Input'!J2385=\"Yes\",'TSA Input'!J2385=\"Contingent\"),'TSA Input'!F2385,\"\"))","v":""},"",{"$f":"IF('TSA Input'!J2385=\"\",\"\",IF(OR('TSA Input'!J2385=\"Yes\",'TSA Input'!J2385=\"Contingent\"),'TSA Input'!D2385,\"\"))","v":""},{"$f":"IF('TSA Input'!J2385=\"\",\"\",IF(OR('TSA Input'!J2385=\"Yes\",'TSA Input'!J2385=\"Contingent\"),'TSA Input'!G2385,\"\"))","v":""},{"$f":"IF('TSA Input'!J2385=\"\",\"\",IF(OR('TSA Input'!J2385=\"Yes\",'TSA Input'!J2385=\"Contingent\"),'TSA Input'!F2385,\"\"))","v":""},"","Required","Required"]
["",null,{"$f":"IF('TSA Input'!J2386=\"\",\"\",IF(OR('TSA Input'!J2386=\"Yes\",'TSA Input'!J2386=\"Contingent\"),'TSA Input'!B2386,\"Ineligible\"))","v":""},{"$f":"IF('TSA Input'!J2386=\"\",\"\",IF(OR('TSA Input'!J2386=\"Yes\",'TSA Input'!J2386=\"Contingent\"),'TSA Input'!I2386,\"\"))","v":""},{"$f":"IF('TSA Input'!J2386=\"\",\"\",IF(OR('TSA Input'!J2386=\"Yes\",'TSA Input'!J2386=\"Contingent\"),'TSA Input'!C2386,\"\"))","v":""},{"$f":"IF('TSA Input'!J2386=\"\",\"\",IF(OR('TSA Input'!J2386=\"Yes\",'TSA Input'!J2386=\"Contingent\"),'TSA Input'!D2386,\"\"))","v":""},{"$f":"IF('TSA Input'!J2386=\"\",\"\",IF(OR('TSA Input'!J2386=\"Yes\",'TSA Input'!J2386=\"Contingent\"),'TSA Input'!G2386,\"\"))","v":""},{"$f":"IF('TSA Input'!J2386=\"\",\"\",IF(OR('TSA Input'!J2386=\"Yes\",'TSA Input'!J2386=\"Contingent\"),'TSA Input'!F2386,\"\"))","v":""},"",{"$f":"IF('TSA Input'!J2386=\"\",\"\",IF(OR('TSA Input'!J2386=\"Yes\",'TSA Input'!J2386=\"Contingent\"),'TSA Input'!D2386,\"\"))","v":""},{"$f":"IF('TSA Input'!J2386=\"\",\"\",IF(OR('TSA Input'!J2386=\"Yes\",'TSA Input'!J2386=\"Contingent\"),'TSA Input'!G2386,\"\"))","v":""},{"$f":"IF('TSA Input'!J2386=\"\",\"\",IF(OR('TSA Input'!J2386=\"Yes\",'TSA Input'!J2386=\"Contingent\"),'TSA Input'!F2386,\"\"))","v":""},"","Required","Required"]
["",null,{"$f":"IF('TSA Input'!J2387=\"\",\"\",IF(OR('TSA Input'!J2387=\"Yes\",'TSA Input'!J2387=\"Contingent\"),'TSA Input'!B2387,\"Ineligible\"))","v":""},{"$f":"IF('TSA Input'!J2387=\"\",\"\",IF(OR('TSA Input'!J2387=\"Yes\",'TSA Input'!J2387=\"Contingent\"),'TSA Input'!I2387,\"\"))","v":""},{"$f":"IF('TSA Input'!J2387=\"\",\"\",IF(OR('TSA Input'!J2387=\"Yes\",'TSA Input'!J2387=\"Contingent\"),'TSA Input'!C2387,\"\"))","v":""},{"$f":"IF('TSA Input'!J2387=\"\",\"\",IF(OR('TSA Input'!J2387=\"Yes\",'TSA Input'!J2387=\"Contingent\"),'TSA Input'!D2387,\"\"))","v":""},{"$f":"IF('TSA Input'!J2387=\"\",\"\",IF(OR('TSA Input'!J2387=\"Yes\",'TSA Input'!J2387=\"Contingent\"),'TSA Input'!G2387,\"\"))","v":""},{"$f":"IF('TSA Input'!J2387=\"\",\"\",IF(OR('TSA Input'!J2387=\"Yes\",'TSA Input'!J2387=\"Contingent\"),'TSA Input'!F2387,\"\"))","v":""},"",{"$f":"IF('TSA Input'!J2387=\"\",\"\",IF(OR('TSA Input'!J2387=\"Yes\",'TSA Input'!J2387=\"Contingent\"),'TSA Input'!D2387,\"\"))","v":""},{"$f":"IF('TSA Input'!J2387=\"\",\"\",IF(OR('TSA Input'!J2387=\"Yes\",'TSA Input'!J2387=\"Contingent\"),'TSA Input'!G2387,\"\"))","v":""},{"$f":"IF('TSA Input'!J2387=\"\",\"\",IF(OR('TSA Input'!J2387=\"Yes\",'TSA Input'!J2387=\"Contingent\"),'TSA Input'!F2387,\"\"))","v":""},"","Required","Required"]
["",null,{"$f":"IF('TSA Input'!J2388=\"\",\"\",IF(OR('TSA Input'!J2388=\"Yes\",'TSA Input'!J2388=\"Contingent\"),'TSA Input'!B2388,\"Ineligible\"))","v":""},{"$f":"IF('TSA Input'!J2388=\"\",\"\",IF(OR('TSA Input'!J2388=\"Yes\",'TSA Input'!J2388=\"Contingent\"),'TSA Input'!I2388,\"\"))","v":""},{"$f":"IF('TSA Input'!J2388=\"\",\"\",IF(OR('TSA Input'!J2388=\"Yes\",'TSA Input'!J2388=\"Contingent\"),'TSA Input'!C2388,\"\"))","v":""},{"$f":"IF('TSA Input'!J2388=\"\",\"\",IF(OR('TSA Input'!J2388=\"Yes\",'TSA Input'!J2388=\"Contingent\"),'TSA Input'!D2388,\"\"))","v":""},{"$f":"IF('TSA Input'!J2388=\"\",\"\",IF(OR('TSA Input'!J2388=\"Yes\",'TSA Input'!J2388=\"Contingent\"),'TSA Input'!G2388,\"\"))","v":""},{"$f":"IF('TSA Input'!J2388=\"\",\"\",IF(OR('TSA Input'!J2388=\"Yes\",'TSA Input'!J2388=\"Contingent\"),'TSA Input'!F2388,\"\"))","v":""},"",{"$f":"IF('TSA Input'!J2388=\"\",\"\",IF(OR('TSA Input'!J2388=\"Yes\",'TSA Input'!J2388=\"Contingent\"),'TSA Input'!D2388,\"\"))","v":""},{"$f":"IF('TSA Input'!J2388=\"\",\"\",IF(OR('TSA Input'!J2388=\"Yes\",'TSA Input'!J2388=\"Contingent\"),'TSA Input'!G2388,\"\"))","v":""},{"$f":"IF('TSA Input'!J2388=\"\",\"\",IF(OR('TSA Input'!J2388=\"Yes\",'TSA Input'!J2388=\"Contingent\"),'TSA Input'!F2388,\"\"))","v":""},"","Required","Required"]
["",null,{"$f":"IF('TSA Input'!J2389=\"\",\"\",IF(OR('TSA Input'!J2389=\"Yes\",'TSA Input'!J2389=\"Contingent\"),'TSA Input'!B2389,\"Ineligible\"))","v":""},{"$f":"IF('TSA Input'!J2389=\"\",\"\",IF(OR('TSA Input'!J2389=\"Yes\",'TSA Input'!J2389=\"Contingent\"),'TSA Input'!I2389,\"\"))","v":""},{"$f":"IF('TSA Input'!J2389=\"\",\"\",IF(OR('TSA Input'!J2389=\"Yes\",'TSA Input'!J2389=\"Contingent\"),'TSA Input'!C2389,\"\"))","v":""},{"$f":"IF('TSA Input'!J2389=\"\",\"\",IF(OR('TSA Input'!J2389=\"Yes\",'TSA Input'!J2389=\"Contingent\"),'TSA Input'!D2389,\"\"))","v":""},{"$f":"IF('TSA Input'!J2389=\"\",\"\",IF(OR('TSA Input'!J2389=\"Yes\",'TSA Input'!J2389=\"Contingent\"),'TSA Input'!G2389,\"\"))","v":""},{"$f":"IF('TSA Input'!J2389=\"\",\"\",IF(OR('TSA Input'!J2389=\"Yes\",'TSA Input'!J2389=\"Contingent\"),'TSA Input'!F2389,\"\"))","v":""},"",{"$f":"IF('TSA Input'!J2389=\"\",\"\",IF(OR('TSA Input'!J2389=\"Yes\",'TSA Input'!J2389=\"Contingent\"),'TSA Input'!D2389,\"\"))","v":""},{"$f":"IF('TSA Input'!J2389=\"\",\"\",IF(OR('TSA Input'!J2389=\"Yes\",'TSA Input'!J2389=\"Contingent\"),'TSA Input'!G2389,\"\"))","v":""},{"$f":"IF('TSA Input'!J2389=\"\",\"\",IF(OR('TSA Input'!J2389=\"Yes\",'TSA Input'!J2389=\"Contingent\"),'TSA Input'!F2389,\"\"))","v":""},"","Required","Required"]
["",null,{"$f":"IF('TSA Input'!J2390=\"\",\"\",IF(OR('TSA Input'!J2390=\"Yes\",'TSA Input'!J2390=\"Contingent\"),'TSA Input'!B2390,\"Ineligible\"))","v":""},{"$f":"IF('TSA Input'!J2390=\"\",\"\",IF(OR('TSA Input'!J2390=\"Yes\",'TSA Input'!J2390=\"Contingent\"),'TSA Input'!I2390,\"\"))","v":""},{"$f":"IF('TSA Input'!J2390=\"\",\"\",IF(OR('TSA Input'!J2390=\"Yes\",'TSA Input'!J2390=\"Contingent\"),'TSA Input'!C2390,\"\"))","v":""},{"$f":"IF('TSA Input'!J2390=\"\",\"\",IF(OR('TSA Input'!J2390=\"Yes\",'TSA Input'!J2390=\"Contingent\"),'TSA Input'!D2390,\"\"))","v":""},{"$f":"IF('TSA Input'!J2390=\"\",\"\",IF(OR('TSA Input'!J2390=\"Yes\",'TSA Input'!J2390=\"Contingent\"),'TSA Input'!G2390,\"\"))","v":""},{"$f":"IF('TSA Input'!J2390=\"\",\"\",IF(OR('TSA Input'!J2390=\"Yes\",'TSA Input'!J2390=\"Contingent\"),'TSA Input'!F2390,\"\"))","v":""},"",{"$f":"IF('TSA Input'!J2390=\"\",\"\",IF(OR('TSA Input'!J2390=\"Yes\",'TSA Input'!J2390=\"Contingent\"),'TSA Input'!D2390,\"\"))","v":""},{"$f":"IF('TSA Input'!J2390=\"\",\"\",IF(OR('TSA Input'!J2390=\"Yes\",'TSA Input'!J2390=\"Contingent\"),'TSA Input'!G2390,\"\"))","v":""},{"$f":"IF('TSA Input'!J2390=\"\",\"\",IF(OR('TSA Input'!J2390=\"Yes\",'TSA Input'!J2390=\"Contingent\"),'TSA Input'!F2390,\"\"))","v":""},"","Required","Required"]
["",null,{"$f":"IF('TSA Input'!J2391=\"\",\"\",IF(OR('TSA Input'!J2391=\"Yes\",'TSA Input'!J2391=\"Contingent\"),'TSA Input'!B2391,\"Ineligible\"))","v":""},{"$f":"IF('TSA Input'!J2391=\"\",\"\",IF(OR('TSA Input'!J2391=\"Yes\",'TSA Input'!J2391=\"Contingent\"),'TSA Input'!I2391,\"\"))","v":""},{"$f":"IF('TSA Input'!J2391=\"\",\"\",IF(OR('TSA Input'!J2391=\"Yes\",'TSA Input'!J2391=\"Contingent\"),'TSA Input'!C2391,\"\"))","v":""},{"$f":"IF('TSA Input'!J2391=\"\",\"\",IF(OR('TSA Input'!J2391=\"Yes\",'TSA Input'!J2391=\"Contingent\"),'TSA Input'!D2391,\"\"))","v":""},{"$f":"IF('TSA Input'!J2391=\"\",\"\",IF(OR('TSA Input'!J2391=\"Yes\",'TSA Input'!J2391=\"Contingent\"),'TSA Input'!G2391,\"\"))","v":""},{"$f":"IF('TSA Input'!J2391=\"\",\"\",IF(OR('TSA Input'!J2391=\"Yes\",'TSA Input'!J2391=\"Contingent\"),'TSA Input'!F2391,\"\"))","v":""},"",{"$f":"IF('TSA Input'!J2391=\"\",\"\",IF(OR('TSA Input'!J2391=\"Yes\",'TSA Input'!J2391=\"Contingent\"),'TSA Input'!D2391,\"\"))","v":""},{"$f":"IF('TSA Input'!J2391=\"\",\"\",IF(OR('TSA Input'!J2391=\"Yes\",'TSA Input'!J2391=\"Contingent\"),'TSA Input'!G2391,\"\"))","v":""},{"$f":"IF('TSA Input'!J2391=\"\",\"\",IF(OR('TSA Input'!J2391=\"Yes\",'TSA Input'!J2391=\"Contingent\"),'TSA Input'!F2391,\"\"))","v":""},"","Required","Required"]
["",null,{"$f":"IF('TSA Input'!J2392=\"\",\"\",IF(OR('TSA Input'!J2392=\"Yes\",'TSA Input'!J2392=\"Contingent\"),'TSA Input'!B2392,\"Ineligible\"))","v":""},{"$f":"IF('TSA Input'!J2392=\"\",\"\",IF(OR('TSA Input'!J2392=\"Yes\",'TSA Input'!J2392=\"Contingent\"),'TSA Input'!I2392,\"\"))","v":""},{"$f":"IF('TSA Input'!J2392=\"\",\"\",IF(OR('TSA Input'!J2392=\"Yes\",'TSA Input'!J2392=\"Contingent\"),'TSA Input'!C2392,\"\"))","v":""},{"$f":"IF('TSA Input'!J2392=\"\",\"\",IF(OR('TSA Input'!J2392=\"Yes\",'TSA Input'!J2392=\"Contingent\"),'TSA Input'!D2392,\"\"))","v":""},{"$f":"IF('TSA Input'!J2392=\"\",\"\",IF(OR('TSA Input'!J2392=\"Yes\",'TSA Input'!J2392=\"Contingent\"),'TSA Input'!G2392,\"\"))","v":""},{"$f":"IF('TSA Input'!J2392=\"\",\"\",IF(OR('TSA Input'!J2392=\"Yes\",'TSA Input'!J2392=\"Contingent\"),'TSA Input'!F2392,\"\"))","v":""},"",{"$f":"IF('TSA Input'!J2392=\"\",\"\",IF(OR('TSA Input'!J2392=\"Yes\",'TSA Input'!J2392=\"Contingent\"),'TSA Input'!D2392,\"\"))","v":""},{"$f":"IF('TSA Input'!J2392=\"\",\"\",IF(OR('TSA Input'!J2392=\"Yes\",'TSA Input'!J2392=\"Contingent\"),'TSA Input'!G2392,\"\"))","v":""},{"$f":"IF('TSA Input'!J2392=\"\",\"\",IF(OR('TSA Input'!J2392=\"Yes\",'TSA Input'!J2392=\"Contingent\"),'TSA Input'!F2392,\"\"))","v":""},"","Required","Required"]
["",null,{"$f":"IF('TSA Input'!J2393=\"\",\"\",IF(OR('TSA Input'!J2393=\"Yes\",'TSA Input'!J2393=\"Contingent\"),'TSA Input'!B2393,\"Ineligible\"))","v":""},{"$f":"IF('TSA Input'!J2393=\"\",\"\",IF(OR('TSA Input'!J2393=\"Yes\",'TSA Input'!J2393=\"Contingent\"),'TSA Input'!I2393,\"\"))","v":""},{"$f":"IF('TSA Input'!J2393=\"\",\"\",IF(OR('TSA Input'!J2393=\"Yes\",'TSA Input'!J2393=\"Contingent\"),'TSA Input'!C2393,\"\"))","v":""},{"$f":"IF('TSA Input'!J2393=\"\",\"\",IF(OR('TSA Input'!J2393=\"Yes\",'TSA Input'!J2393=\"Contingent\"),'TSA Input'!D2393,\"\"))","v":""},{"$f":"IF('TSA Input'!J2393=\"\",\"\",IF(OR('TSA Input'!J2393=\"Yes\",'TSA Input'!J2393=\"Contingent\"),'TSA Input'!G2393,\"\"))","v":""},{"$f":"IF('TSA Input'!J2393=\"\",\"\",IF(OR('TSA Input'!J2393=\"Yes\",'TSA Input'!J2393=\"Contingent\"),'TSA Input'!F2393,\"\"))","v":""},"",{"$f":"IF('TSA Input'!J2393=\"\",\"\",IF(OR('TSA Input'!J2393=\"Yes\",'TSA Input'!J2393=\"Contingent\"),'TSA Input'!D2393,\"\"))","v":""},{"$f":"IF('TSA Input'!J2393=\"\",\"\",IF(OR('TSA Input'!J2393=\"Yes\",'TSA Input'!J2393=\"Contingent\"),'TSA Input'!G2393,\"\"))","v":""},{"$f":"IF('TSA Input'!J2393=\"\",\"\",IF(OR('TSA Input'!J2393=\"Yes\",'TSA Input'!J2393=\"Contingent\"),'TSA Input'!F2393,\"\"))","v":""},"","Required","Required"]
["",null,{"$f":"IF('TSA Input'!J2394=\"\",\"\",IF(OR('TSA Input'!J2394=\"Yes\",'TSA Input'!J2394=\"Contingent\"),'TSA Input'!B2394,\"Ineligible\"))","v":""},{"$f":"IF('TSA Input'!J2394=\"\",\"\",IF(OR('TSA Input'!J2394=\"Yes\",'TSA Input'!J2394=\"Contingent\"),'TSA Input'!I2394,\"\"))","v":""},{"$f":"IF('TSA Input'!J2394=\"\",\"\",IF(OR('TSA Input'!J2394=\"Yes\",'TSA Input'!J2394=\"Contingent\"),'TSA Input'!C2394,\"\"))","v":""},{"$f":"IF('TSA Input'!J2394=\"\",\"\",IF(OR('TSA Input'!J2394=\"Yes\",'TSA Input'!J2394=\"Contingent\"),'TSA Input'!D2394,\"\"))","v":""},{"$f":"IF('TSA Input'!J2394=\"\",\"\",IF(OR('TSA Input'!J2394=\"Yes\",'TSA Input'!J2394=\"Contingent\"),'TSA Input'!G2394,\"\"))","v":""},{"$f":"IF('TSA Input'!J2394=\"\",\"\",IF(OR('TSA Input'!J2394=\"Yes\",'TSA Input'!J2394=\"Contingent\"),'TSA Input'!F2394,\"\"))","v":""},"",{"$f":"IF('TSA Input'!J2394=\"\",\"\",IF(OR('TSA Input'!J2394=\"Yes\",'TSA Input'!J2394=\"Contingent\"),'TSA Input'!D2394,\"\"))","v":""},{"$f":"IF('TSA Input'!J2394=\"\",\"\",IF(OR('TSA Input'!J2394=\"Yes\",'TSA Input'!J2394=\"Contingent\"),'TSA Input'!G2394,\"\"))","v":""},{"$f":"IF('TSA Input'!J2394=\"\",\"\",IF(OR('TSA Input'!J2394=\"Yes\",'TSA Input'!J2394=\"Contingent\"),'TSA Input'!F2394,\"\"))","v":""},"","Required","Required"]
["",null,{"$f":"IF('TSA Input'!J2395=\"\",\"\",IF(OR('TSA Input'!J2395=\"Yes\",'TSA Input'!J2395=\"Contingent\"),'TSA Input'!B2395,\"Ineligible\"))","v":""},{"$f":"IF('TSA Input'!J2395=\"\",\"\",IF(OR('TSA Input'!J2395=\"Yes\",'TSA Input'!J2395=\"Contingent\"),'TSA Input'!I2395,\"\"))","v":""},{"$f":"IF('TSA Input'!J2395=\"\",\"\",IF(OR('TSA Input'!J2395=\"Yes\",'TSA Input'!J2395=\"Contingent\"),'TSA Input'!C2395,\"\"))","v":""},{"$f":"IF('TSA Input'!J2395=\"\",\"\",IF(OR('TSA Input'!J2395=\"Yes\",'TSA Input'!J2395=\"Contingent\"),'TSA Input'!D2395,\"\"))","v":""},{"$f":"IF('TSA Input'!J2395=\"\",\"\",IF(OR('TSA Input'!J2395=\"Yes\",'TSA Input'!J2395=\"Contingent\"),'TSA Input'!G2395,\"\"))","v":""},{"$f":"IF('TSA Input'!J2395=\"\",\"\",IF(OR('TSA Input'!J2395=\"Yes\",'TSA Input'!J2395=\"Contingent\"),'TSA Input'!F2395,\"\"))","v":""},"",{"$f":"IF('TSA Input'!J2395=\"\",\"\",IF(OR('TSA Input'!J2395=\"Yes\",'TSA Input'!J2395=\"Contingent\"),'TSA Input'!D2395,\"\"))","v":""},{"$f":"IF('TSA Input'!J2395=\"\",\"\",IF(OR('TSA Input'!J2395=\"Yes\",'TSA Input'!J2395=\"Contingent\"),'TSA Input'!G2395,\"\"))","v":""},{"$f":"IF('TSA Input'!J2395=\"\",\"\",IF(OR('TSA Input'!J2395=\"Yes\",'TSA Input'!J2395=\"Contingent\"),'TSA Input'!F2395,\"\"))","v":""},"","Required","Required"]
["",null,{"$f":"IF('TSA Input'!J2396=\"\",\"\",IF(OR('TSA Input'!J2396=\"Yes\",'TSA Input'!J2396=\"Contingent\"),'TSA Input'!B2396,\"Ineligible\"))","v":""},{"$f":"IF('TSA Input'!J2396=\"\",\"\",IF(OR('TSA Input'!J2396=\"Yes\",'TSA Input'!J2396=\"Contingent\"),'TSA Input'!I2396,\"\"))","v":""},{"$f":"IF('TSA Input'!J2396=\"\",\"\",IF(OR('TSA Input'!J2396=\"Yes\",'TSA Input'!J2396=\"Contingent\"),'TSA Input'!C2396,\"\"))","v":""},{"$f":"IF('TSA Input'!J2396=\"\",\"\",IF(OR('TSA Input'!J2396=\"Yes\",'TSA Input'!J2396=\"Contingent\"),'TSA Input'!D2396,\"\"))","v":""},{"$f":"IF('TSA Input'!J2396=\"\",\"\",IF(OR('TSA Input'!J2396=\"Yes\",'TSA Input'!J2396=\"Contingent\"),'TSA Input'!G2396,\"\"))","v":""},{"$f":"IF('TSA Input'!J2396=\"\",\"\",IF(OR('TSA Input'!J2396=\"Yes\",'TSA Input'!J2396=\"Contingent\"),'TSA Input'!F2396,\"\"))","v":""},"",{"$f":"IF('TSA Input'!J2396=\"\",\"\",IF(OR('TSA Input'!J2396=\"Yes\",'TSA Input'!J2396=\"Contingent\"),'TSA Input'!D2396,\"\"))","v":""},{"$f":"IF('TSA Input'!J2396=\"\",\"\",IF(OR('TSA Input'!J2396=\"Yes\",'TSA Input'!J2396=\"Contingent\"),'TSA Input'!G2396,\"\"))","v":""},{"$f":"IF('TSA Input'!J2396=\"\",\"\",IF(OR('TSA Input'!J2396=\"Yes\",'TSA Input'!J2396=\"Contingent\"),'TSA Input'!F2396,\"\"))","v":""},"","Required","Required"]
["",null,{"$f":"IF('TSA Input'!J2397=\"\",\"\",IF(OR('TSA Input'!J2397=\"Yes\",'TSA Input'!J2397=\"Contingent\"),'TSA Input'!B2397,\"Ineligible\"))","v":""},{"$f":"IF('TSA Input'!J2397=\"\",\"\",IF(OR('TSA Input'!J2397=\"Yes\",'TSA Input'!J2397=\"Contingent\"),'TSA Input'!I2397,\"\"))","v":""},{"$f":"IF('TSA Input'!J2397=\"\",\"\",IF(OR('TSA Input'!J2397=\"Yes\",'TSA Input'!J2397=\"Contingent\"),'TSA Input'!C2397,\"\"))","v":""},{"$f":"IF('TSA Input'!J2397=\"\",\"\",IF(OR('TSA Input'!J2397=\"Yes\",'TSA Input'!J2397=\"Contingent\"),'TSA Input'!D2397,\"\"))","v":""},{"$f":"IF('TSA Input'!J2397=\"\",\"\",IF(OR('TSA Input'!J2397=\"Yes\",'TSA Input'!J2397=\"Contingent\"),'TSA Input'!G2397,\"\"))","v":""},{"$f":"IF('TSA Input'!J2397=\"\",\"\",IF(OR('TSA Input'!J2397=\"Yes\",'TSA Input'!J2397=\"Contingent\"),'TSA Input'!F2397,\"\"))","v":""},"",{"$f":"IF('TSA Input'!J2397=\"\",\"\",IF(OR('TSA Input'!J2397=\"Yes\",'TSA Input'!J2397=\"Contingent\"),'TSA Input'!D2397,\"\"))","v":""},{"$f":"IF('TSA Input'!J2397=\"\",\"\",IF(OR('TSA Input'!J2397=\"Yes\",'TSA Input'!J2397=\"Contingent\"),'TSA Input'!G2397,\"\"))","v":""},{"$f":"IF('TSA Input'!J2397=\"\",\"\",IF(OR('TSA Input'!J2397=\"Yes\",'TSA Input'!J2397=\"Contingent\"),'TSA Input'!F2397,\"\"))","v":""},"","Required","Required"]
["",null,{"$f":"IF('TSA Input'!J2398=\"\",\"\",IF(OR('TSA Input'!J2398=\"Yes\",'TSA Input'!J2398=\"Contingent\"),'TSA Input'!B2398,\"Ineligible\"))","v":""},{"$f":"IF('TSA Input'!J2398=\"\",\"\",IF(OR('TSA Input'!J2398=\"Yes\",'TSA Input'!J2398=\"Contingent\"),'TSA Input'!I2398,\"\"))","v":""},{"$f":"IF('TSA Input'!J2398=\"\",\"\",IF(OR('TSA Input'!J2398=\"Yes\",'TSA Input'!J2398=\"Contingent\"),'TSA Input'!C2398,\"\"))","v":""},{"$f":"IF('TSA Input'!J2398=\"\",\"\",IF(OR('TSA Input'!J2398=\"Yes\",'TSA Input'!J2398=\"Contingent\"),'TSA Input'!D2398,\"\"))","v":""},{"$f":"IF('TSA Input'!J2398=\"\",\"\",IF(OR('TSA Input'!J2398=\"Yes\",'TSA Input'!J2398=\"Contingent\"),'TSA Input'!G2398,\"\"))","v":""},{"$f":"IF('TSA Input'!J2398=\"\",\"\",IF(OR('TSA Input'!J2398=\"Yes\",'TSA Input'!J2398=\"Contingent\"),'TSA Input'!F2398,\"\"))","v":""},"",{"$f":"IF('TSA Input'!J2398=\"\",\"\",IF(OR('TSA Input'!J2398=\"Yes\",'TSA Input'!J2398=\"Contingent\"),'TSA Input'!D2398,\"\"))","v":""},{"$f":"IF('TSA Input'!J2398=\"\",\"\",IF(OR('TSA Input'!J2398=\"Yes\",'TSA Input'!J2398=\"Contingent\"),'TSA Input'!G2398,\"\"))","v":""},{"$f":"IF('TSA Input'!J2398=\"\",\"\",IF(OR('TSA Input'!J2398=\"Yes\",'TSA Input'!J2398=\"Contingent\"),'TSA Input'!F2398,\"\"))","v":""},"","Required","Required"]
["",null,{"$f":"IF('TSA Input'!J2399=\"\",\"\",IF(OR('TSA Input'!J2399=\"Yes\",'TSA Input'!J2399=\"Contingent\"),'TSA Input'!B2399,\"Ineligible\"))","v":""},{"$f":"IF('TSA Input'!J2399=\"\",\"\",IF(OR('TSA Input'!J2399=\"Yes\",'TSA Input'!J2399=\"Contingent\"),'TSA Input'!I2399,\"\"))","v":""},{"$f":"IF('TSA Input'!J2399=\"\",\"\",IF(OR('TSA Input'!J2399=\"Yes\",'TSA Input'!J2399=\"Contingent\"),'TSA Input'!C2399,\"\"))","v":""},{"$f":"IF('TSA Input'!J2399=\"\",\"\",IF(OR('TSA Input'!J2399=\"Yes\",'TSA Input'!J2399=\"Contingent\"),'TSA Input'!D2399,\"\"))","v":""},{"$f":"IF('TSA Input'!J2399=\"\",\"\",IF(OR('TSA Input'!J2399=\"Yes\",'TSA Input'!J2399=\"Contingent\"),'TSA Input'!G2399,\"\"))","v":""},{"$f":"IF('TSA Input'!J2399=\"\",\"\",IF(OR('TSA Input'!J2399=\"Yes\",'TSA Input'!J2399=\"Contingent\"),'TSA Input'!F2399,\"\"))","v":""},"",{"$f":"IF('TSA Input'!J2399=\"\",\"\",IF(OR('TSA Input'!J2399=\"Yes\",'TSA Input'!J2399=\"Contingent\"),'TSA Input'!D2399,\"\"))","v":""},{"$f":"IF('TSA Input'!J2399=\"\",\"\",IF(OR('TSA Input'!J2399=\"Yes\",'TSA Input'!J2399=\"Contingent\"),'TSA Input'!G2399,\"\"))","v":""},{"$f":"IF('TSA Input'!J2399=\"\",\"\",IF(OR('TSA Input'!J2399=\"Yes\",'TSA Input'!J2399=\"Contingent\"),'TSA Input'!F2399,\"\"))","v":""},"","Required","Required"]
["",null,{"$f":"IF('TSA Input'!J2400=\"\",\"\",IF(OR('TSA Input'!J2400=\"Yes\",'TSA Input'!J2400=\"Contingent\"),'TSA Input'!B2400,\"Ineligible\"))","v":""},{"$f":"IF('TSA Input'!J2400=\"\",\"\",IF(OR('TSA Input'!J2400=\"Yes\",'TSA Input'!J2400=\"Contingent\"),'TSA Input'!I2400,\"\"))","v":""},{"$f":"IF('TSA Input'!J2400=\"\",\"\",IF(OR('TSA Input'!J2400=\"Yes\",'TSA Input'!J2400=\"Contingent\"),'TSA Input'!C2400,\"\"))","v":""},{"$f":"IF('TSA Input'!J2400=\"\",\"\",IF(OR('TSA Input'!J2400=\"Yes\",'TSA Input'!J2400=\"Contingent\"),'TSA Input'!D2400,\"\"))","v":""},{"$f":"IF('TSA Input'!J2400=\"\",\"\",IF(OR('TSA Input'!J2400=\"Yes\",'TSA Input'!J2400=\"Contingent\"),'TSA Input'!G2400,\"\"))","v":""},{"$f":"IF('TSA Input'!J2400=\"\",\"\",IF(OR('TSA Input'!J2400=\"Yes\",'TSA Input'!J2400=\"Contingent\"),'TSA Input'!F2400,\"\"))","v":""},"",{"$f":"IF('TSA Input'!J2400=\"\",\"\",IF(OR('TSA Input'!J2400=\"Yes\",'TSA Input'!J2400=\"Contingent\"),'TSA Input'!D2400,\"\"))","v":""},{"$f":"IF('TSA Input'!J2400=\"\",\"\",IF(OR('TSA Input'!J2400=\"Yes\",'TSA Input'!J2400=\"Contingent\"),'TSA Input'!G2400,\"\"))","v":""},{"$f":"IF('TSA Input'!J2400=\"\",\"\",IF(OR('TSA Input'!J2400=\"Yes\",'TSA Input'!J2400=\"Contingent\"),'TSA Input'!F2400,\"\"))","v":""},"","Required","Required"]
["",null,{"$f":"IF('TSA Input'!J2401=\"\",\"\",IF(OR('TSA Input'!J2401=\"Yes\",'TSA Input'!J2401=\"Contingent\"),'TSA Input'!B2401,\"Ineligible\"))","v":""},{"$f":"IF('TSA Input'!J2401=\"\",\"\",IF(OR('TSA Input'!J2401=\"Yes\",'TSA Input'!J2401=\"Contingent\"),'TSA Input'!I2401,\"\"))","v":""},{"$f":"IF('TSA Input'!J2401=\"\",\"\",IF(OR('TSA Input'!J2401=\"Yes\",'TSA Input'!J2401=\"Contingent\"),'TSA Input'!C2401,\"\"))","v":""},{"$f":"IF('TSA Input'!J2401=\"\",\"\",IF(OR('TSA Input'!J2401=\"Yes\",'TSA Input'!J2401=\"Contingent\"),'TSA Input'!D2401,\"\"))","v":""},{"$f":"IF('TSA Input'!J2401=\"\",\"\",IF(OR('TSA Input'!J2401=\"Yes\",'TSA Input'!J2401=\"Contingent\"),'TSA Input'!G2401,\"\"))","v":""},{"$f":"IF('TSA Input'!J2401=\"\",\"\",IF(OR('TSA Input'!J2401=\"Yes\",'TSA Input'!J2401=\"Contingent\"),'TSA Input'!F2401,\"\"))","v":""},"",{"$f":"IF('TSA Input'!J2401=\"\",\"\",IF(OR('TSA Input'!J2401=\"Yes\",'TSA Input'!J2401=\"Contingent\"),'TSA Input'!D2401,\"\"))","v":""},{"$f":"IF('TSA Input'!J2401=\"\",\"\",IF(OR('TSA Input'!J2401=\"Yes\",'TSA Input'!J2401=\"Contingent\"),'TSA Input'!G2401,\"\"))","v":""},{"$f":"IF('TSA Input'!J2401=\"\",\"\",IF(OR('TSA Input'!J2401=\"Yes\",'TSA Input'!J2401=\"Contingent\"),'TSA Input'!F2401,\"\"))","v":""},"","Required","Required"]
["",null,{"$f":"IF('TSA Input'!J2402=\"\",\"\",IF(OR('TSA Input'!J2402=\"Yes\",'TSA Input'!J2402=\"Contingent\"),'TSA Input'!B2402,\"Ineligible\"))","v":""},{"$f":"IF('TSA Input'!J2402=\"\",\"\",IF(OR('TSA Input'!J2402=\"Yes\",'TSA Input'!J2402=\"Contingent\"),'TSA Input'!I2402,\"\"))","v":""},{"$f":"IF('TSA Input'!J2402=\"\",\"\",IF(OR('TSA Input'!J2402=\"Yes\",'TSA Input'!J2402=\"Contingent\"),'TSA Input'!C2402,\"\"))","v":""},{"$f":"IF('TSA Input'!J2402=\"\",\"\",IF(OR('TSA Input'!J2402=\"Yes\",'TSA Input'!J2402=\"Contingent\"),'TSA Input'!D2402,\"\"))","v":""},{"$f":"IF('TSA Input'!J2402=\"\",\"\",IF(OR('TSA Input'!J2402=\"Yes\",'TSA Input'!J2402=\"Contingent\"),'TSA Input'!G2402,\"\"))","v":""},{"$f":"IF('TSA Input'!J2402=\"\",\"\",IF(OR('TSA Input'!J2402=\"Yes\",'TSA Input'!J2402=\"Contingent\"),'TSA Input'!F2402,\"\"))","v":""},"",{"$f":"IF('TSA Input'!J2402=\"\",\"\",IF(OR('TSA Input'!J2402=\"Yes\",'TSA Input'!J2402=\"Contingent\"),'TSA Input'!D2402,\"\"))","v":""},{"$f":"IF('TSA Input'!J2402=\"\",\"\",IF(OR('TSA Input'!J2402=\"Yes\",'TSA Input'!J2402=\"Contingent\"),'TSA Input'!G2402,\"\"))","v":""},{"$f":"IF('TSA Input'!J2402=\"\",\"\",IF(OR('TSA Input'!J2402=\"Yes\",'TSA Input'!J2402=\"Contingent\"),'TSA Input'!F2402,\"\"))","v":""},"","Required","Required"]
["",null,{"$f":"IF('TSA Input'!J2403=\"\",\"\",IF(OR('TSA Input'!J2403=\"Yes\",'TSA Input'!J2403=\"Contingent\"),'TSA Input'!B2403,\"Ineligible\"))","v":""},{"$f":"IF('TSA Input'!J2403=\"\",\"\",IF(OR('TSA Input'!J2403=\"Yes\",'TSA Input'!J2403=\"Contingent\"),'TSA Input'!I2403,\"\"))","v":""},{"$f":"IF('TSA Input'!J2403=\"\",\"\",IF(OR('TSA Input'!J2403=\"Yes\",'TSA Input'!J2403=\"Contingent\"),'TSA Input'!C2403,\"\"))","v":""},{"$f":"IF('TSA Input'!J2403=\"\",\"\",IF(OR('TSA Input'!J2403=\"Yes\",'TSA Input'!J2403=\"Contingent\"),'TSA Input'!D2403,\"\"))","v":""},{"$f":"IF('TSA Input'!J2403=\"\",\"\",IF(OR('TSA Input'!J2403=\"Yes\",'TSA Input'!J2403=\"Contingent\"),'TSA Input'!G2403,\"\"))","v":""},{"$f":"IF('TSA Input'!J2403=\"\",\"\",IF(OR('TSA Input'!J2403=\"Yes\",'TSA Input'!J2403=\"Contingent\"),'TSA Input'!F2403,\"\"))","v":""},"",{"$f":"IF('TSA Input'!J2403=\"\",\"\",IF(OR('TSA Input'!J2403=\"Yes\",'TSA Input'!J2403=\"Contingent\"),'TSA Input'!D2403,\"\"))","v":""},{"$f":"IF('TSA Input'!J2403=\"\",\"\",IF(OR('TSA Input'!J2403=\"Yes\",'TSA Input'!J2403=\"Contingent\"),'TSA Input'!G2403,\"\"))","v":""},{"$f":"IF('TSA Input'!J2403=\"\",\"\",IF(OR('TSA Input'!J2403=\"Yes\",'TSA Input'!J2403=\"Contingent\"),'TSA Input'!F2403,\"\"))","v":""},"","Required","Required"]
["",null,{"$f":"IF('TSA Input'!J2404=\"\",\"\",IF(OR('TSA Input'!J2404=\"Yes\",'TSA Input'!J2404=\"Contingent\"),'TSA Input'!B2404,\"Ineligible\"))","v":""},{"$f":"IF('TSA Input'!J2404=\"\",\"\",IF(OR('TSA Input'!J2404=\"Yes\",'TSA Input'!J2404=\"Contingent\"),'TSA Input'!I2404,\"\"))","v":""},{"$f":"IF('TSA Input'!J2404=\"\",\"\",IF(OR('TSA Input'!J2404=\"Yes\",'TSA Input'!J2404=\"Contingent\"),'TSA Input'!C2404,\"\"))","v":""},{"$f":"IF('TSA Input'!J2404=\"\",\"\",IF(OR('TSA Input'!J2404=\"Yes\",'TSA Input'!J2404=\"Contingent\"),'TSA Input'!D2404,\"\"))","v":""},{"$f":"IF('TSA Input'!J2404=\"\",\"\",IF(OR('TSA Input'!J2404=\"Yes\",'TSA Input'!J2404=\"Contingent\"),'TSA Input'!G2404,\"\"))","v":""},{"$f":"IF('TSA Input'!J2404=\"\",\"\",IF(OR('TSA Input'!J2404=\"Yes\",'TSA Input'!J2404=\"Contingent\"),'TSA Input'!F2404,\"\"))","v":""},"",{"$f":"IF('TSA Input'!J2404=\"\",\"\",IF(OR('TSA Input'!J2404=\"Yes\",'TSA Input'!J2404=\"Contingent\"),'TSA Input'!D2404,\"\"))","v":""},{"$f":"IF('TSA Input'!J2404=\"\",\"\",IF(OR('TSA Input'!J2404=\"Yes\",'TSA Input'!J2404=\"Contingent\"),'TSA Input'!G2404,\"\"))","v":""},{"$f":"IF('TSA Input'!J2404=\"\",\"\",IF(OR('TSA Input'!J2404=\"Yes\",'TSA Input'!J2404=\"Contingent\"),'TSA Input'!F2404,\"\"))","v":""},"","Required","Required"]
["",null,{"$f":"IF('TSA Input'!J2405=\"\",\"\",IF(OR('TSA Input'!J2405=\"Yes\",'TSA Input'!J2405=\"Contingent\"),'TSA Input'!B2405,\"Ineligible\"))","v":""},{"$f":"IF('TSA Input'!J2405=\"\",\"\",IF(OR('TSA Input'!J2405=\"Yes\",'TSA Input'!J2405=\"Contingent\"),'TSA Input'!I2405,\"\"))","v":""},{"$f":"IF('TSA Input'!J2405=\"\",\"\",IF(OR('TSA Input'!J2405=\"Yes\",'TSA Input'!J2405=\"Contingent\"),'TSA Input'!C2405,\"\"))","v":""},{"$f":"IF('TSA Input'!J2405=\"\",\"\",IF(OR('TSA Input'!J2405=\"Yes\",'TSA Input'!J2405=\"Contingent\"),'TSA Input'!D2405,\"\"))","v":""},{"$f":"IF('TSA Input'!J2405=\"\",\"\",IF(OR('TSA Input'!J2405=\"Yes\",'TSA Input'!J2405=\"Contingent\"),'TSA Input'!G2405,\"\"))","v":""},{"$f":"IF('TSA Input'!J2405=\"\",\"\",IF(OR('TSA Input'!J2405=\"Yes\",'TSA Input'!J2405=\"Contingent\"),'TSA Input'!F2405,\"\"))","v":""},"",{"$f":"IF('TSA Input'!J2405=\"\",\"\",IF(OR('TSA Input'!J2405=\"Yes\",'TSA Input'!J2405=\"Contingent\"),'TSA Input'!D2405,\"\"))","v":""},{"$f":"IF('TSA Input'!J2405=\"\",\"\",IF(OR('TSA Input'!J2405=\"Yes\",'TSA Input'!J2405=\"Contingent\"),'TSA Input'!G2405,\"\"))","v":""},{"$f":"IF('TSA Input'!J2405=\"\",\"\",IF(OR('TSA Input'!J2405=\"Yes\",'TSA Input'!J2405=\"Contingent\"),'TSA Input'!F2405,\"\"))","v":""},"","Required","Required"]
["",null,{"$f":"IF('TSA Input'!J2406=\"\",\"\",IF(OR('TSA Input'!J2406=\"Yes\",'TSA Input'!J2406=\"Contingent\"),'TSA Input'!B2406,\"Ineligible\"))","v":""},{"$f":"IF('TSA Input'!J2406=\"\",\"\",IF(OR('TSA Input'!J2406=\"Yes\",'TSA Input'!J2406=\"Contingent\"),'TSA Input'!I2406,\"\"))","v":""},{"$f":"IF('TSA Input'!J2406=\"\",\"\",IF(OR('TSA Input'!J2406=\"Yes\",'TSA Input'!J2406=\"Contingent\"),'TSA Input'!C2406,\"\"))","v":""},{"$f":"IF('TSA Input'!J2406=\"\",\"\",IF(OR('TSA Input'!J2406=\"Yes\",'TSA Input'!J2406=\"Contingent\"),'TSA Input'!D2406,\"\"))","v":""},{"$f":"IF('TSA Input'!J2406=\"\",\"\",IF(OR('TSA Input'!J2406=\"Yes\",'TSA Input'!J2406=\"Contingent\"),'TSA Input'!G2406,\"\"))","v":""},{"$f":"IF('TSA Input'!J2406=\"\",\"\",IF(OR('TSA Input'!J2406=\"Yes\",'TSA Input'!J2406=\"Contingent\"),'TSA Input'!F2406,\"\"))","v":""},"",{"$f":"IF('TSA Input'!J2406=\"\",\"\",IF(OR('TSA Input'!J2406=\"Yes\",'TSA Input'!J2406=\"Contingent\"),'TSA Input'!D2406,\"\"))","v":""},{"$f":"IF('TSA Input'!J2406=\"\",\"\",IF(OR('TSA Input'!J2406=\"Yes\",'TSA Input'!J2406=\"Contingent\"),'TSA Input'!G2406,\"\"))","v":""},{"$f":"IF('TSA Input'!J2406=\"\",\"\",IF(OR('TSA Input'!J2406=\"Yes\",'TSA Input'!J2406=\"Contingent\"),'TSA Input'!F2406,\"\"))","v":""},"","Required","Required"]
["",null,{"$f":"IF('TSA Input'!J2407=\"\",\"\",IF(OR('TSA Input'!J2407=\"Yes\",'TSA Input'!J2407=\"Contingent\"),'TSA Input'!B2407,\"Ineligible\"))","v":""},{"$f":"IF('TSA Input'!J2407=\"\",\"\",IF(OR('TSA Input'!J2407=\"Yes\",'TSA Input'!J2407=\"Contingent\"),'TSA Input'!I2407,\"\"))","v":""},{"$f":"IF('TSA Input'!J2407=\"\",\"\",IF(OR('TSA Input'!J2407=\"Yes\",'TSA Input'!J2407=\"Contingent\"),'TSA Input'!C2407,\"\"))","v":""},{"$f":"IF('TSA Input'!J2407=\"\",\"\",IF(OR('TSA Input'!J2407=\"Yes\",'TSA Input'!J2407=\"Contingent\"),'TSA Input'!D2407,\"\"))","v":""},{"$f":"IF('TSA Input'!J2407=\"\",\"\",IF(OR('TSA Input'!J2407=\"Yes\",'TSA Input'!J2407=\"Contingent\"),'TSA Input'!G2407,\"\"))","v":""},{"$f":"IF('TSA Input'!J2407=\"\",\"\",IF(OR('TSA Input'!J2407=\"Yes\",'TSA Input'!J2407=\"Contingent\"),'TSA Input'!F2407,\"\"))","v":""},"",{"$f":"IF('TSA Input'!J2407=\"\",\"\",IF(OR('TSA Input'!J2407=\"Yes\",'TSA Input'!J2407=\"Contingent\"),'TSA Input'!D2407,\"\"))","v":""},{"$f":"IF('TSA Input'!J2407=\"\",\"\",IF(OR('TSA Input'!J2407=\"Yes\",'TSA Input'!J2407=\"Contingent\"),'TSA Input'!G2407,\"\"))","v":""},{"$f":"IF('TSA Input'!J2407=\"\",\"\",IF(OR('TSA Input'!J2407=\"Yes\",'TSA Input'!J2407=\"Contingent\"),'TSA Input'!F2407,\"\"))","v":""},"","Required","Required"]
["",null,{"$f":"IF('TSA Input'!J2408=\"\",\"\",IF(OR('TSA Input'!J2408=\"Yes\",'TSA Input'!J2408=\"Contingent\"),'TSA Input'!B2408,\"Ineligible\"))","v":""},{"$f":"IF('TSA Input'!J2408=\"\",\"\",IF(OR('TSA Input'!J2408=\"Yes\",'TSA Input'!J2408=\"Contingent\"),'TSA Input'!I2408,\"\"))","v":""},{"$f":"IF('TSA Input'!J2408=\"\",\"\",IF(OR('TSA Input'!J2408=\"Yes\",'TSA Input'!J2408=\"Contingent\"),'TSA Input'!C2408,\"\"))","v":""},{"$f":"IF('TSA Input'!J2408=\"\",\"\",IF(OR('TSA Input'!J2408=\"Yes\",'TSA Input'!J2408=\"Contingent\"),'TSA Input'!D2408,\"\"))","v":""},{"$f":"IF('TSA Input'!J2408=\"\",\"\",IF(OR('TSA Input'!J2408=\"Yes\",'TSA Input'!J2408=\"Contingent\"),'TSA Input'!G2408,\"\"))","v":""},{"$f":"IF('TSA Input'!J2408=\"\",\"\",IF(OR('TSA Input'!J2408=\"Yes\",'TSA Input'!J2408=\"Contingent\"),'TSA Input'!F2408,\"\"))","v":""},"",{"$f":"IF('TSA Input'!J2408=\"\",\"\",IF(OR('TSA Input'!J2408=\"Yes\",'TSA Input'!J2408=\"Contingent\"),'TSA Input'!D2408,\"\"))","v":""},{"$f":"IF('TSA Input'!J2408=\"\",\"\",IF(OR('TSA Input'!J2408=\"Yes\",'TSA Input'!J2408=\"Contingent\"),'TSA Input'!G2408,\"\"))","v":""},{"$f":"IF('TSA Input'!J2408=\"\",\"\",IF(OR('TSA Input'!J2408=\"Yes\",'TSA Input'!J2408=\"Contingent\"),'TSA Input'!F2408,\"\"))","v":""},"","Required","Required"]
["",null,{"$f":"IF('TSA Input'!J2409=\"\",\"\",IF(OR('TSA Input'!J2409=\"Yes\",'TSA Input'!J2409=\"Contingent\"),'TSA Input'!B2409,\"Ineligible\"))","v":""},{"$f":"IF('TSA Input'!J2409=\"\",\"\",IF(OR('TSA Input'!J2409=\"Yes\",'TSA Input'!J2409=\"Contingent\"),'TSA Input'!I2409,\"\"))","v":""},{"$f":"IF('TSA Input'!J2409=\"\",\"\",IF(OR('TSA Input'!J2409=\"Yes\",'TSA Input'!J2409=\"Contingent\"),'TSA Input'!C2409,\"\"))","v":""},{"$f":"IF('TSA Input'!J2409=\"\",\"\",IF(OR('TSA Input'!J2409=\"Yes\",'TSA Input'!J2409=\"Contingent\"),'TSA Input'!D2409,\"\"))","v":""},{"$f":"IF('TSA Input'!J2409=\"\",\"\",IF(OR('TSA Input'!J2409=\"Yes\",'TSA Input'!J2409=\"Contingent\"),'TSA Input'!G2409,\"\"))","v":""},{"$f":"IF('TSA Input'!J2409=\"\",\"\",IF(OR('TSA Input'!J2409=\"Yes\",'TSA Input'!J2409=\"Contingent\"),'TSA Input'!F2409,\"\"))","v":""},"",{"$f":"IF('TSA Input'!J2409=\"\",\"\",IF(OR('TSA Input'!J2409=\"Yes\",'TSA Input'!J2409=\"Contingent\"),'TSA Input'!D2409,\"\"))","v":""},{"$f":"IF('TSA Input'!J2409=\"\",\"\",IF(OR('TSA Input'!J2409=\"Yes\",'TSA Input'!J2409=\"Contingent\"),'TSA Input'!G2409,\"\"))","v":""},{"$f":"IF('TSA Input'!J2409=\"\",\"\",IF(OR('TSA Input'!J2409=\"Yes\",'TSA Input'!J2409=\"Contingent\"),'TSA Input'!F2409,\"\"))","v":""},"","Required","Required"]
["",null,{"$f":"IF('TSA Input'!J2410=\"\",\"\",IF(OR('TSA Input'!J2410=\"Yes\",'TSA Input'!J2410=\"Contingent\"),'TSA Input'!B2410,\"Ineligible\"))","v":""},{"$f":"IF('TSA Input'!J2410=\"\",\"\",IF(OR('TSA Input'!J2410=\"Yes\",'TSA Input'!J2410=\"Contingent\"),'TSA Input'!I2410,\"\"))","v":""},{"$f":"IF('TSA Input'!J2410=\"\",\"\",IF(OR('TSA Input'!J2410=\"Yes\",'TSA Input'!J2410=\"Contingent\"),'TSA Input'!C2410,\"\"))","v":""},{"$f":"IF('TSA Input'!J2410=\"\",\"\",IF(OR('TSA Input'!J2410=\"Yes\",'TSA Input'!J2410=\"Contingent\"),'TSA Input'!D2410,\"\"))","v":""},{"$f":"IF('TSA Input'!J2410=\"\",\"\",IF(OR('TSA Input'!J2410=\"Yes\",'TSA Input'!J2410=\"Contingent\"),'TSA Input'!G2410,\"\"))","v":""},{"$f":"IF('TSA Input'!J2410=\"\",\"\",IF(OR('TSA Input'!J2410=\"Yes\",'TSA Input'!J2410=\"Contingent\"),'TSA Input'!F2410,\"\"))","v":""},"",{"$f":"IF('TSA Input'!J2410=\"\",\"\",IF(OR('TSA Input'!J2410=\"Yes\",'TSA Input'!J2410=\"Contingent\"),'TSA Input'!D2410,\"\"))","v":""},{"$f":"IF('TSA Input'!J2410=\"\",\"\",IF(OR('TSA Input'!J2410=\"Yes\",'TSA Input'!J2410=\"Contingent\"),'TSA Input'!G2410,\"\"))","v":""},{"$f":"IF('TSA Input'!J2410=\"\",\"\",IF(OR('TSA Input'!J2410=\"Yes\",'TSA Input'!J2410=\"Contingent\"),'TSA Input'!F2410,\"\"))","v":""},"","Required","Required"]
["",null,{"$f":"IF('TSA Input'!J2411=\"\",\"\",IF(OR('TSA Input'!J2411=\"Yes\",'TSA Input'!J2411=\"Contingent\"),'TSA Input'!B2411,\"Ineligible\"))","v":""},{"$f":"IF('TSA Input'!J2411=\"\",\"\",IF(OR('TSA Input'!J2411=\"Yes\",'TSA Input'!J2411=\"Contingent\"),'TSA Input'!I2411,\"\"))","v":""},{"$f":"IF('TSA Input'!J2411=\"\",\"\",IF(OR('TSA Input'!J2411=\"Yes\",'TSA Input'!J2411=\"Contingent\"),'TSA Input'!C2411,\"\"))","v":""},{"$f":"IF('TSA Input'!J2411=\"\",\"\",IF(OR('TSA Input'!J2411=\"Yes\",'TSA Input'!J2411=\"Contingent\"),'TSA Input'!D2411,\"\"))","v":""},{"$f":"IF('TSA Input'!J2411=\"\",\"\",IF(OR('TSA Input'!J2411=\"Yes\",'TSA Input'!J2411=\"Contingent\"),'TSA Input'!G2411,\"\"))","v":""},{"$f":"IF('TSA Input'!J2411=\"\",\"\",IF(OR('TSA Input'!J2411=\"Yes\",'TSA Input'!J2411=\"Contingent\"),'TSA Input'!F2411,\"\"))","v":""},"",{"$f":"IF('TSA Input'!J2411=\"\",\"\",IF(OR('TSA Input'!J2411=\"Yes\",'TSA Input'!J2411=\"Contingent\"),'TSA Input'!D2411,\"\"))","v":""},{"$f":"IF('TSA Input'!J2411=\"\",\"\",IF(OR('TSA Input'!J2411=\"Yes\",'TSA Input'!J2411=\"Contingent\"),'TSA Input'!G2411,\"\"))","v":""},{"$f":"IF('TSA Input'!J2411=\"\",\"\",IF(OR('TSA Input'!J2411=\"Yes\",'TSA Input'!J2411=\"Contingent\"),'TSA Input'!F2411,\"\"))","v":""},"","Required","Required"]
["",null,{"$f":"IF('TSA Input'!J2412=\"\",\"\",IF(OR('TSA Input'!J2412=\"Yes\",'TSA Input'!J2412=\"Contingent\"),'TSA Input'!B2412,\"Ineligible\"))","v":""},{"$f":"IF('TSA Input'!J2412=\"\",\"\",IF(OR('TSA Input'!J2412=\"Yes\",'TSA Input'!J2412=\"Contingent\"),'TSA Input'!I2412,\"\"))","v":""},{"$f":"IF('TSA Input'!J2412=\"\",\"\",IF(OR('TSA Input'!J2412=\"Yes\",'TSA Input'!J2412=\"Contingent\"),'TSA Input'!C2412,\"\"))","v":""},{"$f":"IF('TSA Input'!J2412=\"\",\"\",IF(OR('TSA Input'!J2412=\"Yes\",'TSA Input'!J2412=\"Contingent\"),'TSA Input'!D2412,\"\"))","v":""},{"$f":"IF('TSA Input'!J2412=\"\",\"\",IF(OR('TSA Input'!J2412=\"Yes\",'TSA Input'!J2412=\"Contingent\"),'TSA Input'!G2412,\"\"))","v":""},{"$f":"IF('TSA Input'!J2412=\"\",\"\",IF(OR('TSA Input'!J2412=\"Yes\",'TSA Input'!J2412=\"Contingent\"),'TSA Input'!F2412,\"\"))","v":""},"",{"$f":"IF('TSA Input'!J2412=\"\",\"\",IF(OR('TSA Input'!J2412=\"Yes\",'TSA Input'!J2412=\"Contingent\"),'TSA Input'!D2412,\"\"))","v":""},{"$f":"IF('TSA Input'!J2412=\"\",\"\",IF(OR('TSA Input'!J2412=\"Yes\",'TSA Input'!J2412=\"Contingent\"),'TSA Input'!G2412,\"\"))","v":""},{"$f":"IF('TSA Input'!J2412=\"\",\"\",IF(OR('TSA Input'!J2412=\"Yes\",'TSA Input'!J2412=\"Contingent\"),'TSA Input'!F2412,\"\"))","v":""},"","Required","Required"]
["",null,{"$f":"IF('TSA Input'!J2413=\"\",\"\",IF(OR('TSA Input'!J2413=\"Yes\",'TSA Input'!J2413=\"Contingent\"),'TSA Input'!B2413,\"Ineligible\"))","v":""},{"$f":"IF('TSA Input'!J2413=\"\",\"\",IF(OR('TSA Input'!J2413=\"Yes\",'TSA Input'!J2413=\"Contingent\"),'TSA Input'!I2413,\"\"))","v":""},{"$f":"IF('TSA Input'!J2413=\"\",\"\",IF(OR('TSA Input'!J2413=\"Yes\",'TSA Input'!J2413=\"Contingent\"),'TSA Input'!C2413,\"\"))","v":""},{"$f":"IF('TSA Input'!J2413=\"\",\"\",IF(OR('TSA Input'!J2413=\"Yes\",'TSA Input'!J2413=\"Contingent\"),'TSA Input'!D2413,\"\"))","v":""},{"$f":"IF('TSA Input'!J2413=\"\",\"\",IF(OR('TSA Input'!J2413=\"Yes\",'TSA Input'!J2413=\"Contingent\"),'TSA Input'!G2413,\"\"))","v":""},{"$f":"IF('TSA Input'!J2413=\"\",\"\",IF(OR('TSA Input'!J2413=\"Yes\",'TSA Input'!J2413=\"Contingent\"),'TSA Input'!F2413,\"\"))","v":""},"",{"$f":"IF('TSA Input'!J2413=\"\",\"\",IF(OR('TSA Input'!J2413=\"Yes\",'TSA Input'!J2413=\"Contingent\"),'TSA Input'!D2413,\"\"))","v":""},{"$f":"IF('TSA Input'!J2413=\"\",\"\",IF(OR('TSA Input'!J2413=\"Yes\",'TSA Input'!J2413=\"Contingent\"),'TSA Input'!G2413,\"\"))","v":""},{"$f":"IF('TSA Input'!J2413=\"\",\"\",IF(OR('TSA Input'!J2413=\"Yes\",'TSA Input'!J2413=\"Contingent\"),'TSA Input'!F2413,\"\"))","v":""},"","Required","Required"]
["",null,{"$f":"IF('TSA Input'!J2414=\"\",\"\",IF(OR('TSA Input'!J2414=\"Yes\",'TSA Input'!J2414=\"Contingent\"),'TSA Input'!B2414,\"Ineligible\"))","v":""},{"$f":"IF('TSA Input'!J2414=\"\",\"\",IF(OR('TSA Input'!J2414=\"Yes\",'TSA Input'!J2414=\"Contingent\"),'TSA Input'!I2414,\"\"))","v":""},{"$f":"IF('TSA Input'!J2414=\"\",\"\",IF(OR('TSA Input'!J2414=\"Yes\",'TSA Input'!J2414=\"Contingent\"),'TSA Input'!C2414,\"\"))","v":""},{"$f":"IF('TSA Input'!J2414=\"\",\"\",IF(OR('TSA Input'!J2414=\"Yes\",'TSA Input'!J2414=\"Contingent\"),'TSA Input'!D2414,\"\"))","v":""},{"$f":"IF('TSA Input'!J2414=\"\",\"\",IF(OR('TSA Input'!J2414=\"Yes\",'TSA Input'!J2414=\"Contingent\"),'TSA Input'!G2414,\"\"))","v":""},{"$f":"IF('TSA Input'!J2414=\"\",\"\",IF(OR('TSA Input'!J2414=\"Yes\",'TSA Input'!J2414=\"Contingent\"),'TSA Input'!F2414,\"\"))","v":""},"",{"$f":"IF('TSA Input'!J2414=\"\",\"\",IF(OR('TSA Input'!J2414=\"Yes\",'TSA Input'!J2414=\"Contingent\"),'TSA Input'!D2414,\"\"))","v":""},{"$f":"IF('TSA Input'!J2414=\"\",\"\",IF(OR('TSA Input'!J2414=\"Yes\",'TSA Input'!J2414=\"Contingent\"),'TSA Input'!G2414,\"\"))","v":""},{"$f":"IF('TSA Input'!J2414=\"\",\"\",IF(OR('TSA Input'!J2414=\"Yes\",'TSA Input'!J2414=\"Contingent\"),'TSA Input'!F2414,\"\"))","v":""},"","Required","Required"]
["",null,{"$f":"IF('TSA Input'!J2415=\"\",\"\",IF(OR('TSA Input'!J2415=\"Yes\",'TSA Input'!J2415=\"Contingent\"),'TSA Input'!B2415,\"Ineligible\"))","v":""},{"$f":"IF('TSA Input'!J2415=\"\",\"\",IF(OR('TSA Input'!J2415=\"Yes\",'TSA Input'!J2415=\"Contingent\"),'TSA Input'!I2415,\"\"))","v":""},{"$f":"IF('TSA Input'!J2415=\"\",\"\",IF(OR('TSA Input'!J2415=\"Yes\",'TSA Input'!J2415=\"Contingent\"),'TSA Input'!C2415,\"\"))","v":""},{"$f":"IF('TSA Input'!J2415=\"\",\"\",IF(OR('TSA Input'!J2415=\"Yes\",'TSA Input'!J2415=\"Contingent\"),'TSA Input'!D2415,\"\"))","v":""},{"$f":"IF('TSA Input'!J2415=\"\",\"\",IF(OR('TSA Input'!J2415=\"Yes\",'TSA Input'!J2415=\"Contingent\"),'TSA Input'!G2415,\"\"))","v":""},{"$f":"IF('TSA Input'!J2415=\"\",\"\",IF(OR('TSA Input'!J2415=\"Yes\",'TSA Input'!J2415=\"Contingent\"),'TSA Input'!F2415,\"\"))","v":""},"",{"$f":"IF('TSA Input'!J2415=\"\",\"\",IF(OR('TSA Input'!J2415=\"Yes\",'TSA Input'!J2415=\"Contingent\"),'TSA Input'!D2415,\"\"))","v":""},{"$f":"IF('TSA Input'!J2415=\"\",\"\",IF(OR('TSA Input'!J2415=\"Yes\",'TSA Input'!J2415=\"Contingent\"),'TSA Input'!G2415,\"\"))","v":""},{"$f":"IF('TSA Input'!J2415=\"\",\"\",IF(OR('TSA Input'!J2415=\"Yes\",'TSA Input'!J2415=\"Contingent\"),'TSA Input'!F2415,\"\"))","v":""},"","Required","Required"]
["",null,{"$f":"IF('TSA Input'!J2416=\"\",\"\",IF(OR('TSA Input'!J2416=\"Yes\",'TSA Input'!J2416=\"Contingent\"),'TSA Input'!B2416,\"Ineligible\"))","v":""},{"$f":"IF('TSA Input'!J2416=\"\",\"\",IF(OR('TSA Input'!J2416=\"Yes\",'TSA Input'!J2416=\"Contingent\"),'TSA Input'!I2416,\"\"))","v":""},{"$f":"IF('TSA Input'!J2416=\"\",\"\",IF(OR('TSA Input'!J2416=\"Yes\",'TSA Input'!J2416=\"Contingent\"),'TSA Input'!C2416,\"\"))","v":""},{"$f":"IF('TSA Input'!J2416=\"\",\"\",IF(OR('TSA Input'!J2416=\"Yes\",'TSA Input'!J2416=\"Contingent\"),'TSA Input'!D2416,\"\"))","v":""},{"$f":"IF('TSA Input'!J2416=\"\",\"\",IF(OR('TSA Input'!J2416=\"Yes\",'TSA Input'!J2416=\"Contingent\"),'TSA Input'!G2416,\"\"))","v":""},{"$f":"IF('TSA Input'!J2416=\"\",\"\",IF(OR('TSA Input'!J2416=\"Yes\",'TSA Input'!J2416=\"Contingent\"),'TSA Input'!F2416,\"\"))","v":""},"",{"$f":"IF('TSA Input'!J2416=\"\",\"\",IF(OR('TSA Input'!J2416=\"Yes\",'TSA Input'!J2416=\"Contingent\"),'TSA Input'!D2416,\"\"))","v":""},{"$f":"IF('TSA Input'!J2416=\"\",\"\",IF(OR('TSA Input'!J2416=\"Yes\",'TSA Input'!J2416=\"Contingent\"),'TSA Input'!G2416,\"\"))","v":""},{"$f":"IF('TSA Input'!J2416=\"\",\"\",IF(OR('TSA Input'!J2416=\"Yes\",'TSA Input'!J2416=\"Contingent\"),'TSA Input'!F2416,\"\"))","v":""},"","Required","Required"]
["",null,{"$f":"IF('TSA Input'!J2417=\"\",\"\",IF(OR('TSA Input'!J2417=\"Yes\",'TSA Input'!J2417=\"Contingent\"),'TSA Input'!B2417,\"Ineligible\"))","v":""},{"$f":"IF('TSA Input'!J2417=\"\",\"\",IF(OR('TSA Input'!J2417=\"Yes\",'TSA Input'!J2417=\"Contingent\"),'TSA Input'!I2417,\"\"))","v":""},{"$f":"IF('TSA Input'!J2417=\"\",\"\",IF(OR('TSA Input'!J2417=\"Yes\",'TSA Input'!J2417=\"Contingent\"),'TSA Input'!C2417,\"\"))","v":""},{"$f":"IF('TSA Input'!J2417=\"\",\"\",IF(OR('TSA Input'!J2417=\"Yes\",'TSA Input'!J2417=\"Contingent\"),'TSA Input'!D2417,\"\"))","v":""},{"$f":"IF('TSA Input'!J2417=\"\",\"\",IF(OR('TSA Input'!J2417=\"Yes\",'TSA Input'!J2417=\"Contingent\"),'TSA Input'!G2417,\"\"))","v":""},{"$f":"IF('TSA Input'!J2417=\"\",\"\",IF(OR('TSA Input'!J2417=\"Yes\",'TSA Input'!J2417=\"Contingent\"),'TSA Input'!F2417,\"\"))","v":""},"",{"$f":"IF('TSA Input'!J2417=\"\",\"\",IF(OR('TSA Input'!J2417=\"Yes\",'TSA Input'!J2417=\"Contingent\"),'TSA Input'!D2417,\"\"))","v":""},{"$f":"IF('TSA Input'!J2417=\"\",\"\",IF(OR('TSA Input'!J2417=\"Yes\",'TSA Input'!J2417=\"Contingent\"),'TSA Input'!G2417,\"\"))","v":""},{"$f":"IF('TSA Input'!J2417=\"\",\"\",IF(OR('TSA Input'!J2417=\"Yes\",'TSA Input'!J2417=\"Contingent\"),'TSA Input'!F2417,\"\"))","v":""},"","Required","Required"]
["",null,{"$f":"IF('TSA Input'!J2418=\"\",\"\",IF(OR('TSA Input'!J2418=\"Yes\",'TSA Input'!J2418=\"Contingent\"),'TSA Input'!B2418,\"Ineligible\"))","v":""},{"$f":"IF('TSA Input'!J2418=\"\",\"\",IF(OR('TSA Input'!J2418=\"Yes\",'TSA Input'!J2418=\"Contingent\"),'TSA Input'!I2418,\"\"))","v":""},{"$f":"IF('TSA Input'!J2418=\"\",\"\",IF(OR('TSA Input'!J2418=\"Yes\",'TSA Input'!J2418=\"Contingent\"),'TSA Input'!C2418,\"\"))","v":""},{"$f":"IF('TSA Input'!J2418=\"\",\"\",IF(OR('TSA Input'!J2418=\"Yes\",'TSA Input'!J2418=\"Contingent\"),'TSA Input'!D2418,\"\"))","v":""},{"$f":"IF('TSA Input'!J2418=\"\",\"\",IF(OR('TSA Input'!J2418=\"Yes\",'TSA Input'!J2418=\"Contingent\"),'TSA Input'!G2418,\"\"))","v":""},{"$f":"IF('TSA Input'!J2418=\"\",\"\",IF(OR('TSA Input'!J2418=\"Yes\",'TSA Input'!J2418=\"Contingent\"),'TSA Input'!F2418,\"\"))","v":""},"",{"$f":"IF('TSA Input'!J2418=\"\",\"\",IF(OR('TSA Input'!J2418=\"Yes\",'TSA Input'!J2418=\"Contingent\"),'TSA Input'!D2418,\"\"))","v":""},{"$f":"IF('TSA Input'!J2418=\"\",\"\",IF(OR('TSA Input'!J2418=\"Yes\",'TSA Input'!J2418=\"Contingent\"),'TSA Input'!G2418,\"\"))","v":""},{"$f":"IF('TSA Input'!J2418=\"\",\"\",IF(OR('TSA Input'!J2418=\"Yes\",'TSA Input'!J2418=\"Contingent\"),'TSA Input'!F2418,\"\"))","v":""},"","Required","Required"]
["",null,{"$f":"IF('TSA Input'!J2419=\"\",\"\",IF(OR('TSA Input'!J2419=\"Yes\",'TSA Input'!J2419=\"Contingent\"),'TSA Input'!B2419,\"Ineligible\"))","v":""},{"$f":"IF('TSA Input'!J2419=\"\",\"\",IF(OR('TSA Input'!J2419=\"Yes\",'TSA Input'!J2419=\"Contingent\"),'TSA Input'!I2419,\"\"))","v":""},{"$f":"IF('TSA Input'!J2419=\"\",\"\",IF(OR('TSA Input'!J2419=\"Yes\",'TSA Input'!J2419=\"Contingent\"),'TSA Input'!C2419,\"\"))","v":""},{"$f":"IF('TSA Input'!J2419=\"\",\"\",IF(OR('TSA Input'!J2419=\"Yes\",'TSA Input'!J2419=\"Contingent\"),'TSA Input'!D2419,\"\"))","v":""},{"$f":"IF('TSA Input'!J2419=\"\",\"\",IF(OR('TSA Input'!J2419=\"Yes\",'TSA Input'!J2419=\"Contingent\"),'TSA Input'!G2419,\"\"))","v":""},{"$f":"IF('TSA Input'!J2419=\"\",\"\",IF(OR('TSA Input'!J2419=\"Yes\",'TSA Input'!J2419=\"Contingent\"),'TSA Input'!F2419,\"\"))","v":""},"",{"$f":"IF('TSA Input'!J2419=\"\",\"\",IF(OR('TSA Input'!J2419=\"Yes\",'TSA Input'!J2419=\"Contingent\"),'TSA Input'!D2419,\"\"))","v":""},{"$f":"IF('TSA Input'!J2419=\"\",\"\",IF(OR('TSA Input'!J2419=\"Yes\",'TSA Input'!J2419=\"Contingent\"),'TSA Input'!G2419,\"\"))","v":""},{"$f":"IF('TSA Input'!J2419=\"\",\"\",IF(OR('TSA Input'!J2419=\"Yes\",'TSA Input'!J2419=\"Contingent\"),'TSA Input'!F2419,\"\"))","v":""},"","Required","Required"]
["",null,{"$f":"IF('TSA Input'!J2420=\"\",\"\",IF(OR('TSA Input'!J2420=\"Yes\",'TSA Input'!J2420=\"Contingent\"),'TSA Input'!B2420,\"Ineligible\"))","v":""},{"$f":"IF('TSA Input'!J2420=\"\",\"\",IF(OR('TSA Input'!J2420=\"Yes\",'TSA Input'!J2420=\"Contingent\"),'TSA Input'!I2420,\"\"))","v":""},{"$f":"IF('TSA Input'!J2420=\"\",\"\",IF(OR('TSA Input'!J2420=\"Yes\",'TSA Input'!J2420=\"Contingent\"),'TSA Input'!C2420,\"\"))","v":""},{"$f":"IF('TSA Input'!J2420=\"\",\"\",IF(OR('TSA Input'!J2420=\"Yes\",'TSA Input'!J2420=\"Contingent\"),'TSA Input'!D2420,\"\"))","v":""},{"$f":"IF('TSA Input'!J2420=\"\",\"\",IF(OR('TSA Input'!J2420=\"Yes\",'TSA Input'!J2420=\"Contingent\"),'TSA Input'!G2420,\"\"))","v":""},{"$f":"IF('TSA Input'!J2420=\"\",\"\",IF(OR('TSA Input'!J2420=\"Yes\",'TSA Input'!J2420=\"Contingent\"),'TSA Input'!F2420,\"\"))","v":""},"",{"$f":"IF('TSA Input'!J2420=\"\",\"\",IF(OR('TSA Input'!J2420=\"Yes\",'TSA Input'!J2420=\"Contingent\"),'TSA Input'!D2420,\"\"))","v":""},{"$f":"IF('TSA Input'!J2420=\"\",\"\",IF(OR('TSA Input'!J2420=\"Yes\",'TSA Input'!J2420=\"Contingent\"),'TSA Input'!G2420,\"\"))","v":""},{"$f":"IF('TSA Input'!J2420=\"\",\"\",IF(OR('TSA Input'!J2420=\"Yes\",'TSA Input'!J2420=\"Contingent\"),'TSA Input'!F2420,\"\"))","v":""},"","Required","Required"]
["",null,{"$f":"IF('TSA Input'!J2421=\"\",\"\",IF(OR('TSA Input'!J2421=\"Yes\",'TSA Input'!J2421=\"Contingent\"),'TSA Input'!B2421,\"Ineligible\"))","v":""},{"$f":"IF('TSA Input'!J2421=\"\",\"\",IF(OR('TSA Input'!J2421=\"Yes\",'TSA Input'!J2421=\"Contingent\"),'TSA Input'!I2421,\"\"))","v":""},{"$f":"IF('TSA Input'!J2421=\"\",\"\",IF(OR('TSA Input'!J2421=\"Yes\",'TSA Input'!J2421=\"Contingent\"),'TSA Input'!C2421,\"\"))","v":""},{"$f":"IF('TSA Input'!J2421=\"\",\"\",IF(OR('TSA Input'!J2421=\"Yes\",'TSA Input'!J2421=\"Contingent\"),'TSA Input'!D2421,\"\"))","v":""},{"$f":"IF('TSA Input'!J2421=\"\",\"\",IF(OR('TSA Input'!J2421=\"Yes\",'TSA Input'!J2421=\"Contingent\"),'TSA Input'!G2421,\"\"))","v":""},{"$f":"IF('TSA Input'!J2421=\"\",\"\",IF(OR('TSA Input'!J2421=\"Yes\",'TSA Input'!J2421=\"Contingent\"),'TSA Input'!F2421,\"\"))","v":""},"",{"$f":"IF('TSA Input'!J2421=\"\",\"\",IF(OR('TSA Input'!J2421=\"Yes\",'TSA Input'!J2421=\"Contingent\"),'TSA Input'!D2421,\"\"))","v":""},{"$f":"IF('TSA Input'!J2421=\"\",\"\",IF(OR('TSA Input'!J2421=\"Yes\",'TSA Input'!J2421=\"Contingent\"),'TSA Input'!G2421,\"\"))","v":""},{"$f":"IF('TSA Input'!J2421=\"\",\"\",IF(OR('TSA Input'!J2421=\"Yes\",'TSA Input'!J2421=\"Contingent\"),'TSA Input'!F2421,\"\"))","v":""},"","Required","Required"]
["",null,{"$f":"IF('TSA Input'!J2422=\"\",\"\",IF(OR('TSA Input'!J2422=\"Yes\",'TSA Input'!J2422=\"Contingent\"),'TSA Input'!B2422,\"Ineligible\"))","v":""},{"$f":"IF('TSA Input'!J2422=\"\",\"\",IF(OR('TSA Input'!J2422=\"Yes\",'TSA Input'!J2422=\"Contingent\"),'TSA Input'!I2422,\"\"))","v":""},{"$f":"IF('TSA Input'!J2422=\"\",\"\",IF(OR('TSA Input'!J2422=\"Yes\",'TSA Input'!J2422=\"Contingent\"),'TSA Input'!C2422,\"\"))","v":""},{"$f":"IF('TSA Input'!J2422=\"\",\"\",IF(OR('TSA Input'!J2422=\"Yes\",'TSA Input'!J2422=\"Contingent\"),'TSA Input'!D2422,\"\"))","v":""},{"$f":"IF('TSA Input'!J2422=\"\",\"\",IF(OR('TSA Input'!J2422=\"Yes\",'TSA Input'!J2422=\"Contingent\"),'TSA Input'!G2422,\"\"))","v":""},{"$f":"IF('TSA Input'!J2422=\"\",\"\",IF(OR('TSA Input'!J2422=\"Yes\",'TSA Input'!J2422=\"Contingent\"),'TSA Input'!F2422,\"\"))","v":""},"",{"$f":"IF('TSA Input'!J2422=\"\",\"\",IF(OR('TSA Input'!J2422=\"Yes\",'TSA Input'!J2422=\"Contingent\"),'TSA Input'!D2422,\"\"))","v":""},{"$f":"IF('TSA Input'!J2422=\"\",\"\",IF(OR('TSA Input'!J2422=\"Yes\",'TSA Input'!J2422=\"Contingent\"),'TSA Input'!G2422,\"\"))","v":""},{"$f":"IF('TSA Input'!J2422=\"\",\"\",IF(OR('TSA Input'!J2422=\"Yes\",'TSA Input'!J2422=\"Contingent\"),'TSA Input'!F2422,\"\"))","v":""},"","Required","Required"]
["",null,{"$f":"IF('TSA Input'!J2423=\"\",\"\",IF(OR('TSA Input'!J2423=\"Yes\",'TSA Input'!J2423=\"Contingent\"),'TSA Input'!B2423,\"Ineligible\"))","v":""},{"$f":"IF('TSA Input'!J2423=\"\",\"\",IF(OR('TSA Input'!J2423=\"Yes\",'TSA Input'!J2423=\"Contingent\"),'TSA Input'!I2423,\"\"))","v":""},{"$f":"IF('TSA Input'!J2423=\"\",\"\",IF(OR('TSA Input'!J2423=\"Yes\",'TSA Input'!J2423=\"Contingent\"),'TSA Input'!C2423,\"\"))","v":""},{"$f":"IF('TSA Input'!J2423=\"\",\"\",IF(OR('TSA Input'!J2423=\"Yes\",'TSA Input'!J2423=\"Contingent\"),'TSA Input'!D2423,\"\"))","v":""},{"$f":"IF('TSA Input'!J2423=\"\",\"\",IF(OR('TSA Input'!J2423=\"Yes\",'TSA Input'!J2423=\"Contingent\"),'TSA Input'!G2423,\"\"))","v":""},{"$f":"IF('TSA Input'!J2423=\"\",\"\",IF(OR('TSA Input'!J2423=\"Yes\",'TSA Input'!J2423=\"Contingent\"),'TSA Input'!F2423,\"\"))","v":""},"",{"$f":"IF('TSA Input'!J2423=\"\",\"\",IF(OR('TSA Input'!J2423=\"Yes\",'TSA Input'!J2423=\"Contingent\"),'TSA Input'!D2423,\"\"))","v":""},{"$f":"IF('TSA Input'!J2423=\"\",\"\",IF(OR('TSA Input'!J2423=\"Yes\",'TSA Input'!J2423=\"Contingent\"),'TSA Input'!G2423,\"\"))","v":""},{"$f":"IF('TSA Input'!J2423=\"\",\"\",IF(OR('TSA Input'!J2423=\"Yes\",'TSA Input'!J2423=\"Contingent\"),'TSA Input'!F2423,\"\"))","v":""},"","Required","Required"]
["",null,{"$f":"IF('TSA Input'!J2424=\"\",\"\",IF(OR('TSA Input'!J2424=\"Yes\",'TSA Input'!J2424=\"Contingent\"),'TSA Input'!B2424,\"Ineligible\"))","v":""},{"$f":"IF('TSA Input'!J2424=\"\",\"\",IF(OR('TSA Input'!J2424=\"Yes\",'TSA Input'!J2424=\"Contingent\"),'TSA Input'!I2424,\"\"))","v":""},{"$f":"IF('TSA Input'!J2424=\"\",\"\",IF(OR('TSA Input'!J2424=\"Yes\",'TSA Input'!J2424=\"Contingent\"),'TSA Input'!C2424,\"\"))","v":""},{"$f":"IF('TSA Input'!J2424=\"\",\"\",IF(OR('TSA Input'!J2424=\"Yes\",'TSA Input'!J2424=\"Contingent\"),'TSA Input'!D2424,\"\"))","v":""},{"$f":"IF('TSA Input'!J2424=\"\",\"\",IF(OR('TSA Input'!J2424=\"Yes\",'TSA Input'!J2424=\"Contingent\"),'TSA Input'!G2424,\"\"))","v":""},{"$f":"IF('TSA Input'!J2424=\"\",\"\",IF(OR('TSA Input'!J2424=\"Yes\",'TSA Input'!J2424=\"Contingent\"),'TSA Input'!F2424,\"\"))","v":""},"",{"$f":"IF('TSA Input'!J2424=\"\",\"\",IF(OR('TSA Input'!J2424=\"Yes\",'TSA Input'!J2424=\"Contingent\"),'TSA Input'!D2424,\"\"))","v":""},{"$f":"IF('TSA Input'!J2424=\"\",\"\",IF(OR('TSA Input'!J2424=\"Yes\",'TSA Input'!J2424=\"Contingent\"),'TSA Input'!G2424,\"\"))","v":""},{"$f":"IF('TSA Input'!J2424=\"\",\"\",IF(OR('TSA Input'!J2424=\"Yes\",'TSA Input'!J2424=\"Contingent\"),'TSA Input'!F2424,\"\"))","v":""},"","Required","Required"]
["",null,{"$f":"IF('TSA Input'!J2425=\"\",\"\",IF(OR('TSA Input'!J2425=\"Yes\",'TSA Input'!J2425=\"Contingent\"),'TSA Input'!B2425,\"Ineligible\"))","v":""},{"$f":"IF('TSA Input'!J2425=\"\",\"\",IF(OR('TSA Input'!J2425=\"Yes\",'TSA Input'!J2425=\"Contingent\"),'TSA Input'!I2425,\"\"))","v":""},{"$f":"IF('TSA Input'!J2425=\"\",\"\",IF(OR('TSA Input'!J2425=\"Yes\",'TSA Input'!J2425=\"Contingent\"),'TSA Input'!C2425,\"\"))","v":""},{"$f":"IF('TSA Input'!J2425=\"\",\"\",IF(OR('TSA Input'!J2425=\"Yes\",'TSA Input'!J2425=\"Contingent\"),'TSA Input'!D2425,\"\"))","v":""},{"$f":"IF('TSA Input'!J2425=\"\",\"\",IF(OR('TSA Input'!J2425=\"Yes\",'TSA Input'!J2425=\"Contingent\"),'TSA Input'!G2425,\"\"))","v":""},{"$f":"IF('TSA Input'!J2425=\"\",\"\",IF(OR('TSA Input'!J2425=\"Yes\",'TSA Input'!J2425=\"Contingent\"),'TSA Input'!F2425,\"\"))","v":""},"",{"$f":"IF('TSA Input'!J2425=\"\",\"\",IF(OR('TSA Input'!J2425=\"Yes\",'TSA Input'!J2425=\"Contingent\"),'TSA Input'!D2425,\"\"))","v":""},{"$f":"IF('TSA Input'!J2425=\"\",\"\",IF(OR('TSA Input'!J2425=\"Yes\",'TSA Input'!J2425=\"Contingent\"),'TSA Input'!G2425,\"\"))","v":""},{"$f":"IF('TSA Input'!J2425=\"\",\"\",IF(OR('TSA Input'!J2425=\"Yes\",'TSA Input'!J2425=\"Contingent\"),'TSA Input'!F2425,\"\"))","v":""},"","Required","Required"]
["",null,{"$f":"IF('TSA Input'!J2426=\"\",\"\",IF(OR('TSA Input'!J2426=\"Yes\",'TSA Input'!J2426=\"Contingent\"),'TSA Input'!B2426,\"Ineligible\"))","v":""},{"$f":"IF('TSA Input'!J2426=\"\",\"\",IF(OR('TSA Input'!J2426=\"Yes\",'TSA Input'!J2426=\"Contingent\"),'TSA Input'!I2426,\"\"))","v":""},{"$f":"IF('TSA Input'!J2426=\"\",\"\",IF(OR('TSA Input'!J2426=\"Yes\",'TSA Input'!J2426=\"Contingent\"),'TSA Input'!C2426,\"\"))","v":""},{"$f":"IF('TSA Input'!J2426=\"\",\"\",IF(OR('TSA Input'!J2426=\"Yes\",'TSA Input'!J2426=\"Contingent\"),'TSA Input'!D2426,\"\"))","v":""},{"$f":"IF('TSA Input'!J2426=\"\",\"\",IF(OR('TSA Input'!J2426=\"Yes\",'TSA Input'!J2426=\"Contingent\"),'TSA Input'!G2426,\"\"))","v":""},{"$f":"IF('TSA Input'!J2426=\"\",\"\",IF(OR('TSA Input'!J2426=\"Yes\",'TSA Input'!J2426=\"Contingent\"),'TSA Input'!F2426,\"\"))","v":""},"",{"$f":"IF('TSA Input'!J2426=\"\",\"\",IF(OR('TSA Input'!J2426=\"Yes\",'TSA Input'!J2426=\"Contingent\"),'TSA Input'!D2426,\"\"))","v":""},{"$f":"IF('TSA Input'!J2426=\"\",\"\",IF(OR('TSA Input'!J2426=\"Yes\",'TSA Input'!J2426=\"Contingent\"),'TSA Input'!G2426,\"\"))","v":""},{"$f":"IF('TSA Input'!J2426=\"\",\"\",IF(OR('TSA Input'!J2426=\"Yes\",'TSA Input'!J2426=\"Contingent\"),'TSA Input'!F2426,\"\"))","v":""},"","Required","Required"]
["",null,{"$f":"IF('TSA Input'!J2427=\"\",\"\",IF(OR('TSA Input'!J2427=\"Yes\",'TSA Input'!J2427=\"Contingent\"),'TSA Input'!B2427,\"Ineligible\"))","v":""},{"$f":"IF('TSA Input'!J2427=\"\",\"\",IF(OR('TSA Input'!J2427=\"Yes\",'TSA Input'!J2427=\"Contingent\"),'TSA Input'!I2427,\"\"))","v":""},{"$f":"IF('TSA Input'!J2427=\"\",\"\",IF(OR('TSA Input'!J2427=\"Yes\",'TSA Input'!J2427=\"Contingent\"),'TSA Input'!C2427,\"\"))","v":""},{"$f":"IF('TSA Input'!J2427=\"\",\"\",IF(OR('TSA Input'!J2427=\"Yes\",'TSA Input'!J2427=\"Contingent\"),'TSA Input'!D2427,\"\"))","v":""},{"$f":"IF('TSA Input'!J2427=\"\",\"\",IF(OR('TSA Input'!J2427=\"Yes\",'TSA Input'!J2427=\"Contingent\"),'TSA Input'!G2427,\"\"))","v":""},{"$f":"IF('TSA Input'!J2427=\"\",\"\",IF(OR('TSA Input'!J2427=\"Yes\",'TSA Input'!J2427=\"Contingent\"),'TSA Input'!F2427,\"\"))","v":""},"",{"$f":"IF('TSA Input'!J2427=\"\",\"\",IF(OR('TSA Input'!J2427=\"Yes\",'TSA Input'!J2427=\"Contingent\"),'TSA Input'!D2427,\"\"))","v":""},{"$f":"IF('TSA Input'!J2427=\"\",\"\",IF(OR('TSA Input'!J2427=\"Yes\",'TSA Input'!J2427=\"Contingent\"),'TSA Input'!G2427,\"\"))","v":""},{"$f":"IF('TSA Input'!J2427=\"\",\"\",IF(OR('TSA Input'!J2427=\"Yes\",'TSA Input'!J2427=\"Contingent\"),'TSA Input'!F2427,\"\"))","v":""},"","Required","Required"]
["",null,{"$f":"IF('TSA Input'!J2428=\"\",\"\",IF(OR('TSA Input'!J2428=\"Yes\",'TSA Input'!J2428=\"Contingent\"),'TSA Input'!B2428,\"Ineligible\"))","v":""},{"$f":"IF('TSA Input'!J2428=\"\",\"\",IF(OR('TSA Input'!J2428=\"Yes\",'TSA Input'!J2428=\"Contingent\"),'TSA Input'!I2428,\"\"))","v":""},{"$f":"IF('TSA Input'!J2428=\"\",\"\",IF(OR('TSA Input'!J2428=\"Yes\",'TSA Input'!J2428=\"Contingent\"),'TSA Input'!C2428,\"\"))","v":""},{"$f":"IF('TSA Input'!J2428=\"\",\"\",IF(OR('TSA Input'!J2428=\"Yes\",'TSA Input'!J2428=\"Contingent\"),'TSA Input'!D2428,\"\"))","v":""},{"$f":"IF('TSA Input'!J2428=\"\",\"\",IF(OR('TSA Input'!J2428=\"Yes\",'TSA Input'!J2428=\"Contingent\"),'TSA Input'!G2428,\"\"))","v":""},{"$f":"IF('TSA Input'!J2428=\"\",\"\",IF(OR('TSA Input'!J2428=\"Yes\",'TSA Input'!J2428=\"Contingent\"),'TSA Input'!F2428,\"\"))","v":""},"",{"$f":"IF('TSA Input'!J2428=\"\",\"\",IF(OR('TSA Input'!J2428=\"Yes\",'TSA Input'!J2428=\"Contingent\"),'TSA Input'!D2428,\"\"))","v":""},{"$f":"IF('TSA Input'!J2428=\"\",\"\",IF(OR('TSA Input'!J2428=\"Yes\",'TSA Input'!J2428=\"Contingent\"),'TSA Input'!G2428,\"\"))","v":""},{"$f":"IF('TSA Input'!J2428=\"\",\"\",IF(OR('TSA Input'!J2428=\"Yes\",'TSA Input'!J2428=\"Contingent\"),'TSA Input'!F2428,\"\"))","v":""},"","Required","Required"]
["",null,{"$f":"IF('TSA Input'!J2429=\"\",\"\",IF(OR('TSA Input'!J2429=\"Yes\",'TSA Input'!J2429=\"Contingent\"),'TSA Input'!B2429,\"Ineligible\"))","v":""},{"$f":"IF('TSA Input'!J2429=\"\",\"\",IF(OR('TSA Input'!J2429=\"Yes\",'TSA Input'!J2429=\"Contingent\"),'TSA Input'!I2429,\"\"))","v":""},{"$f":"IF('TSA Input'!J2429=\"\",\"\",IF(OR('TSA Input'!J2429=\"Yes\",'TSA Input'!J2429=\"Contingent\"),'TSA Input'!C2429,\"\"))","v":""},{"$f":"IF('TSA Input'!J2429=\"\",\"\",IF(OR('TSA Input'!J2429=\"Yes\",'TSA Input'!J2429=\"Contingent\"),'TSA Input'!D2429,\"\"))","v":""},{"$f":"IF('TSA Input'!J2429=\"\",\"\",IF(OR('TSA Input'!J2429=\"Yes\",'TSA Input'!J2429=\"Contingent\"),'TSA Input'!G2429,\"\"))","v":""},{"$f":"IF('TSA Input'!J2429=\"\",\"\",IF(OR('TSA Input'!J2429=\"Yes\",'TSA Input'!J2429=\"Contingent\"),'TSA Input'!F2429,\"\"))","v":""},"",{"$f":"IF('TSA Input'!J2429=\"\",\"\",IF(OR('TSA Input'!J2429=\"Yes\",'TSA Input'!J2429=\"Contingent\"),'TSA Input'!D2429,\"\"))","v":""},{"$f":"IF('TSA Input'!J2429=\"\",\"\",IF(OR('TSA Input'!J2429=\"Yes\",'TSA Input'!J2429=\"Contingent\"),'TSA Input'!G2429,\"\"))","v":""},{"$f":"IF('TSA Input'!J2429=\"\",\"\",IF(OR('TSA Input'!J2429=\"Yes\",'TSA Input'!J2429=\"Contingent\"),'TSA Input'!F2429,\"\"))","v":""},"","Required","Required"]
["",null,{"$f":"IF('TSA Input'!J2430=\"\",\"\",IF(OR('TSA Input'!J2430=\"Yes\",'TSA Input'!J2430=\"Contingent\"),'TSA Input'!B2430,\"Ineligible\"))","v":""},{"$f":"IF('TSA Input'!J2430=\"\",\"\",IF(OR('TSA Input'!J2430=\"Yes\",'TSA Input'!J2430=\"Contingent\"),'TSA Input'!I2430,\"\"))","v":""},{"$f":"IF('TSA Input'!J2430=\"\",\"\",IF(OR('TSA Input'!J2430=\"Yes\",'TSA Input'!J2430=\"Contingent\"),'TSA Input'!C2430,\"\"))","v":""},{"$f":"IF('TSA Input'!J2430=\"\",\"\",IF(OR('TSA Input'!J2430=\"Yes\",'TSA Input'!J2430=\"Contingent\"),'TSA Input'!D2430,\"\"))","v":""},{"$f":"IF('TSA Input'!J2430=\"\",\"\",IF(OR('TSA Input'!J2430=\"Yes\",'TSA Input'!J2430=\"Contingent\"),'TSA Input'!G2430,\"\"))","v":""},{"$f":"IF('TSA Input'!J2430=\"\",\"\",IF(OR('TSA Input'!J2430=\"Yes\",'TSA Input'!J2430=\"Contingent\"),'TSA Input'!F2430,\"\"))","v":""},"",{"$f":"IF('TSA Input'!J2430=\"\",\"\",IF(OR('TSA Input'!J2430=\"Yes\",'TSA Input'!J2430=\"Contingent\"),'TSA Input'!D2430,\"\"))","v":""},{"$f":"IF('TSA Input'!J2430=\"\",\"\",IF(OR('TSA Input'!J2430=\"Yes\",'TSA Input'!J2430=\"Contingent\"),'TSA Input'!G2430,\"\"))","v":""},{"$f":"IF('TSA Input'!J2430=\"\",\"\",IF(OR('TSA Input'!J2430=\"Yes\",'TSA Input'!J2430=\"Contingent\"),'TSA Input'!F2430,\"\"))","v":""},"","Required","Required"]
["",null,{"$f":"IF('TSA Input'!J2431=\"\",\"\",IF(OR('TSA Input'!J2431=\"Yes\",'TSA Input'!J2431=\"Contingent\"),'TSA Input'!B2431,\"Ineligible\"))","v":""},{"$f":"IF('TSA Input'!J2431=\"\",\"\",IF(OR('TSA Input'!J2431=\"Yes\",'TSA Input'!J2431=\"Contingent\"),'TSA Input'!I2431,\"\"))","v":""},{"$f":"IF('TSA Input'!J2431=\"\",\"\",IF(OR('TSA Input'!J2431=\"Yes\",'TSA Input'!J2431=\"Contingent\"),'TSA Input'!C2431,\"\"))","v":""},{"$f":"IF('TSA Input'!J2431=\"\",\"\",IF(OR('TSA Input'!J2431=\"Yes\",'TSA Input'!J2431=\"Contingent\"),'TSA Input'!D2431,\"\"))","v":""},{"$f":"IF('TSA Input'!J2431=\"\",\"\",IF(OR('TSA Input'!J2431=\"Yes\",'TSA Input'!J2431=\"Contingent\"),'TSA Input'!G2431,\"\"))","v":""},{"$f":"IF('TSA Input'!J2431=\"\",\"\",IF(OR('TSA Input'!J2431=\"Yes\",'TSA Input'!J2431=\"Contingent\"),'TSA Input'!F2431,\"\"))","v":""},"",{"$f":"IF('TSA Input'!J2431=\"\",\"\",IF(OR('TSA Input'!J2431=\"Yes\",'TSA Input'!J2431=\"Contingent\"),'TSA Input'!D2431,\"\"))","v":""},{"$f":"IF('TSA Input'!J2431=\"\",\"\",IF(OR('TSA Input'!J2431=\"Yes\",'TSA Input'!J2431=\"Contingent\"),'TSA Input'!G2431,\"\"))","v":""},{"$f":"IF('TSA Input'!J2431=\"\",\"\",IF(OR('TSA Input'!J2431=\"Yes\",'TSA Input'!J2431=\"Contingent\"),'TSA Input'!F2431,\"\"))","v":""},"","Required","Required"]
["",null,{"$f":"IF('TSA Input'!J2432=\"\",\"\",IF(OR('TSA Input'!J2432=\"Yes\",'TSA Input'!J2432=\"Contingent\"),'TSA Input'!B2432,\"Ineligible\"))","v":""},{"$f":"IF('TSA Input'!J2432=\"\",\"\",IF(OR('TSA Input'!J2432=\"Yes\",'TSA Input'!J2432=\"Contingent\"),'TSA Input'!I2432,\"\"))","v":""},{"$f":"IF('TSA Input'!J2432=\"\",\"\",IF(OR('TSA Input'!J2432=\"Yes\",'TSA Input'!J2432=\"Contingent\"),'TSA Input'!C2432,\"\"))","v":""},{"$f":"IF('TSA Input'!J2432=\"\",\"\",IF(OR('TSA Input'!J2432=\"Yes\",'TSA Input'!J2432=\"Contingent\"),'TSA Input'!D2432,\"\"))","v":""},{"$f":"IF('TSA Input'!J2432=\"\",\"\",IF(OR('TSA Input'!J2432=\"Yes\",'TSA Input'!J2432=\"Contingent\"),'TSA Input'!G2432,\"\"))","v":""},{"$f":"IF('TSA Input'!J2432=\"\",\"\",IF(OR('TSA Input'!J2432=\"Yes\",'TSA Input'!J2432=\"Contingent\"),'TSA Input'!F2432,\"\"))","v":""},"",{"$f":"IF('TSA Input'!J2432=\"\",\"\",IF(OR('TSA Input'!J2432=\"Yes\",'TSA Input'!J2432=\"Contingent\"),'TSA Input'!D2432,\"\"))","v":""},{"$f":"IF('TSA Input'!J2432=\"\",\"\",IF(OR('TSA Input'!J2432=\"Yes\",'TSA Input'!J2432=\"Contingent\"),'TSA Input'!G2432,\"\"))","v":""},{"$f":"IF('TSA Input'!J2432=\"\",\"\",IF(OR('TSA Input'!J2432=\"Yes\",'TSA Input'!J2432=\"Contingent\"),'TSA Input'!F2432,\"\"))","v":""},"","Required","Required"]
["",null,{"$f":"IF('TSA Input'!J2433=\"\",\"\",IF(OR('TSA Input'!J2433=\"Yes\",'TSA Input'!J2433=\"Contingent\"),'TSA Input'!B2433,\"Ineligible\"))","v":""},{"$f":"IF('TSA Input'!J2433=\"\",\"\",IF(OR('TSA Input'!J2433=\"Yes\",'TSA Input'!J2433=\"Contingent\"),'TSA Input'!I2433,\"\"))","v":""},{"$f":"IF('TSA Input'!J2433=\"\",\"\",IF(OR('TSA Input'!J2433=\"Yes\",'TSA Input'!J2433=\"Contingent\"),'TSA Input'!C2433,\"\"))","v":""},{"$f":"IF('TSA Input'!J2433=\"\",\"\",IF(OR('TSA Input'!J2433=\"Yes\",'TSA Input'!J2433=\"Contingent\"),'TSA Input'!D2433,\"\"))","v":""},{"$f":"IF('TSA Input'!J2433=\"\",\"\",IF(OR('TSA Input'!J2433=\"Yes\",'TSA Input'!J2433=\"Contingent\"),'TSA Input'!G2433,\"\"))","v":""},{"$f":"IF('TSA Input'!J2433=\"\",\"\",IF(OR('TSA Input'!J2433=\"Yes\",'TSA Input'!J2433=\"Contingent\"),'TSA Input'!F2433,\"\"))","v":""},"",{"$f":"IF('TSA Input'!J2433=\"\",\"\",IF(OR('TSA Input'!J2433=\"Yes\",'TSA Input'!J2433=\"Contingent\"),'TSA Input'!D2433,\"\"))","v":""},{"$f":"IF('TSA Input'!J2433=\"\",\"\",IF(OR('TSA Input'!J2433=\"Yes\",'TSA Input'!J2433=\"Contingent\"),'TSA Input'!G2433,\"\"))","v":""},{"$f":"IF('TSA Input'!J2433=\"\",\"\",IF(OR('TSA Input'!J2433=\"Yes\",'TSA Input'!J2433=\"Contingent\"),'TSA Input'!F2433,\"\"))","v":""},"","Required","Required"]
["",null,{"$f":"IF('TSA Input'!J2434=\"\",\"\",IF(OR('TSA Input'!J2434=\"Yes\",'TSA Input'!J2434=\"Contingent\"),'TSA Input'!B2434,\"Ineligible\"))","v":""},{"$f":"IF('TSA Input'!J2434=\"\",\"\",IF(OR('TSA Input'!J2434=\"Yes\",'TSA Input'!J2434=\"Contingent\"),'TSA Input'!I2434,\"\"))","v":""},{"$f":"IF('TSA Input'!J2434=\"\",\"\",IF(OR('TSA Input'!J2434=\"Yes\",'TSA Input'!J2434=\"Contingent\"),'TSA Input'!C2434,\"\"))","v":""},{"$f":"IF('TSA Input'!J2434=\"\",\"\",IF(OR('TSA Input'!J2434=\"Yes\",'TSA Input'!J2434=\"Contingent\"),'TSA Input'!D2434,\"\"))","v":""},{"$f":"IF('TSA Input'!J2434=\"\",\"\",IF(OR('TSA Input'!J2434=\"Yes\",'TSA Input'!J2434=\"Contingent\"),'TSA Input'!G2434,\"\"))","v":""},{"$f":"IF('TSA Input'!J2434=\"\",\"\",IF(OR('TSA Input'!J2434=\"Yes\",'TSA Input'!J2434=\"Contingent\"),'TSA Input'!F2434,\"\"))","v":""},"",{"$f":"IF('TSA Input'!J2434=\"\",\"\",IF(OR('TSA Input'!J2434=\"Yes\",'TSA Input'!J2434=\"Contingent\"),'TSA Input'!D2434,\"\"))","v":""},{"$f":"IF('TSA Input'!J2434=\"\",\"\",IF(OR('TSA Input'!J2434=\"Yes\",'TSA Input'!J2434=\"Contingent\"),'TSA Input'!G2434,\"\"))","v":""},{"$f":"IF('TSA Input'!J2434=\"\",\"\",IF(OR('TSA Input'!J2434=\"Yes\",'TSA Input'!J2434=\"Contingent\"),'TSA Input'!F2434,\"\"))","v":""},"","Required","Required"]
["",null,{"$f":"IF('TSA Input'!J2435=\"\",\"\",IF(OR('TSA Input'!J2435=\"Yes\",'TSA Input'!J2435=\"Contingent\"),'TSA Input'!B2435,\"Ineligible\"))","v":""},{"$f":"IF('TSA Input'!J2435=\"\",\"\",IF(OR('TSA Input'!J2435=\"Yes\",'TSA Input'!J2435=\"Contingent\"),'TSA Input'!I2435,\"\"))","v":""},{"$f":"IF('TSA Input'!J2435=\"\",\"\",IF(OR('TSA Input'!J2435=\"Yes\",'TSA Input'!J2435=\"Contingent\"),'TSA Input'!C2435,\"\"))","v":""},{"$f":"IF('TSA Input'!J2435=\"\",\"\",IF(OR('TSA Input'!J2435=\"Yes\",'TSA Input'!J2435=\"Contingent\"),'TSA Input'!D2435,\"\"))","v":""},{"$f":"IF('TSA Input'!J2435=\"\",\"\",IF(OR('TSA Input'!J2435=\"Yes\",'TSA Input'!J2435=\"Contingent\"),'TSA Input'!G2435,\"\"))","v":""},{"$f":"IF('TSA Input'!J2435=\"\",\"\",IF(OR('TSA Input'!J2435=\"Yes\",'TSA Input'!J2435=\"Contingent\"),'TSA Input'!F2435,\"\"))","v":""},"",{"$f":"IF('TSA Input'!J2435=\"\",\"\",IF(OR('TSA Input'!J2435=\"Yes\",'TSA Input'!J2435=\"Contingent\"),'TSA Input'!D2435,\"\"))","v":""},{"$f":"IF('TSA Input'!J2435=\"\",\"\",IF(OR('TSA Input'!J2435=\"Yes\",'TSA Input'!J2435=\"Contingent\"),'TSA Input'!G2435,\"\"))","v":""},{"$f":"IF('TSA Input'!J2435=\"\",\"\",IF(OR('TSA Input'!J2435=\"Yes\",'TSA Input'!J2435=\"Contingent\"),'TSA Input'!F2435,\"\"))","v":""},"","Required","Required"]
["",null,{"$f":"IF('TSA Input'!J2436=\"\",\"\",IF(OR('TSA Input'!J2436=\"Yes\",'TSA Input'!J2436=\"Contingent\"),'TSA Input'!B2436,\"Ineligible\"))","v":""},{"$f":"IF('TSA Input'!J2436=\"\",\"\",IF(OR('TSA Input'!J2436=\"Yes\",'TSA Input'!J2436=\"Contingent\"),'TSA Input'!I2436,\"\"))","v":""},{"$f":"IF('TSA Input'!J2436=\"\",\"\",IF(OR('TSA Input'!J2436=\"Yes\",'TSA Input'!J2436=\"Contingent\"),'TSA Input'!C2436,\"\"))","v":""},{"$f":"IF('TSA Input'!J2436=\"\",\"\",IF(OR('TSA Input'!J2436=\"Yes\",'TSA Input'!J2436=\"Contingent\"),'TSA Input'!D2436,\"\"))","v":""},{"$f":"IF('TSA Input'!J2436=\"\",\"\",IF(OR('TSA Input'!J2436=\"Yes\",'TSA Input'!J2436=\"Contingent\"),'TSA Input'!G2436,\"\"))","v":""},{"$f":"IF('TSA Input'!J2436=\"\",\"\",IF(OR('TSA Input'!J2436=\"Yes\",'TSA Input'!J2436=\"Contingent\"),'TSA Input'!F2436,\"\"))","v":""},{"$f":"IF($C2474=\"\",\"\",SUM(F2474:H2474))","v":""},{"$f":"IF('TSA Input'!J2436=\"\",\"\",IF(OR('TSA Input'!J2436=\"Yes\",'TSA Input'!J2436=\"Contingent\"),'TSA Input'!D2436,\"\"))","v":""},{"$f":"IF('TSA Input'!J2436=\"\",\"\",IF(OR('TSA Input'!J2436=\"Yes\",'TSA Input'!J2436=\"Contingent\"),'TSA Input'!G2436,\"\"))","v":""},{"$f":"IF('TSA Input'!J2436=\"\",\"\",IF(OR('TSA Input'!J2436=\"Yes\",'TSA Input'!J2436=\"Contingent\"),'TSA Input'!F2436,\"\"))","v":""},{"$f":"IF($C2474=\"\",\"\",SUM(J2474:L2474))","v":""},"Required","Required"]
["",null,{"$f":"IF('TSA Input'!J2437=\"\",\"\",IF(OR('TSA Input'!J2437=\"Yes\",'TSA Input'!J2437=\"Contingent\"),'TSA Input'!B2437,\"Ineligible\"))","v":""},{"$f":"IF('TSA Input'!J2437=\"\",\"\",IF(OR('TSA Input'!J2437=\"Yes\",'TSA Input'!J2437=\"Contingent\"),'TSA Input'!I2437,\"\"))","v":""},{"$f":"IF('TSA Input'!J2437=\"\",\"\",IF(OR('TSA Input'!J2437=\"Yes\",'TSA Input'!J2437=\"Contingent\"),'TSA Input'!C2437,\"\"))","v":""},{"$f":"IF('TSA Input'!J2437=\"\",\"\",IF(OR('TSA Input'!J2437=\"Yes\",'TSA Input'!J2437=\"Contingent\"),'TSA Input'!D2437,\"\"))","v":""},{"$f":"IF('TSA Input'!J2437=\"\",\"\",IF(OR('TSA Input'!J2437=\"Yes\",'TSA Input'!J2437=\"Contingent\"),'TSA Input'!G2437,\"\"))","v":""},{"$f":"IF('TSA Input'!J2437=\"\",\"\",IF(OR('TSA Input'!J2437=\"Yes\",'TSA Input'!J2437=\"Contingent\"),'TSA Input'!F2437,\"\"))","v":""},"",{"$f":"IF('TSA Input'!J2437=\"\",\"\",IF(OR('TSA Input'!J2437=\"Yes\",'TSA Input'!J2437=\"Contingent\"),'TSA Input'!D2437,\"\"))","v":""},{"$f":"IF('TSA Input'!J2437=\"\",\"\",IF(OR('TSA Input'!J2437=\"Yes\",'TSA Input'!J2437=\"Contingent\"),'TSA Input'!G2437,\"\"))","v":""},{"$f":"IF('TSA Input'!J2437=\"\",\"\",IF(OR('TSA Input'!J2437=\"Yes\",'TSA Input'!J2437=\"Contingent\"),'TSA Input'!F2437,\"\"))","v":""},"","Required","Required"]
["",null,{"$f":"IF('TSA Input'!J2438=\"\",\"\",IF(OR('TSA Input'!J2438=\"Yes\",'TSA Input'!J2438=\"Contingent\"),'TSA Input'!B2438,\"Ineligible\"))","v":""},{"$f":"IF('TSA Input'!J2438=\"\",\"\",IF(OR('TSA Input'!J2438=\"Yes\",'TSA Input'!J2438=\"Contingent\"),'TSA Input'!I2438,\"\"))","v":""},{"$f":"IF('TSA Input'!J2438=\"\",\"\",IF(OR('TSA Input'!J2438=\"Yes\",'TSA Input'!J2438=\"Contingent\"),'TSA Input'!C2438,\"\"))","v":""},{"$f":"IF('TSA Input'!J2438=\"\",\"\",IF(OR('TSA Input'!J2438=\"Yes\",'TSA Input'!J2438=\"Contingent\"),'TSA Input'!D2438,\"\"))","v":""},{"$f":"IF('TSA Input'!J2438=\"\",\"\",IF(OR('TSA Input'!J2438=\"Yes\",'TSA Input'!J2438=\"Contingent\"),'TSA Input'!G2438,\"\"))","v":""},{"$f":"IF('TSA Input'!J2438=\"\",\"\",IF(OR('TSA Input'!J2438=\"Yes\",'TSA Input'!J2438=\"Contingent\"),'TSA Input'!F2438,\"\"))","v":""},"",{"$f":"IF('TSA Input'!J2438=\"\",\"\",IF(OR('TSA Input'!J2438=\"Yes\",'TSA Input'!J2438=\"Contingent\"),'TSA Input'!D2438,\"\"))","v":""},{"$f":"IF('TSA Input'!J2438=\"\",\"\",IF(OR('TSA Input'!J2438=\"Yes\",'TSA Input'!J2438=\"Contingent\"),'TSA Input'!G2438,\"\"))","v":""},{"$f":"IF('TSA Input'!J2438=\"\",\"\",IF(OR('TSA Input'!J2438=\"Yes\",'TSA Input'!J2438=\"Contingent\"),'TSA Input'!F2438,\"\"))","v":""},"","Required","Required"]
["",null,{"$f":"IF('TSA Input'!J2439=\"\",\"\",IF(OR('TSA Input'!J2439=\"Yes\",'TSA Input'!J2439=\"Contingent\"),'TSA Input'!B2439,\"Ineligible\"))","v":""},{"$f":"IF('TSA Input'!J2439=\"\",\"\",IF(OR('TSA Input'!J2439=\"Yes\",'TSA Input'!J2439=\"Contingent\"),'TSA Input'!I2439,\"\"))","v":""},{"$f":"IF('TSA Input'!J2439=\"\",\"\",IF(OR('TSA Input'!J2439=\"Yes\",'TSA Input'!J2439=\"Contingent\"),'TSA Input'!C2439,\"\"))","v":""},{"$f":"IF('TSA Input'!J2439=\"\",\"\",IF(OR('TSA Input'!J2439=\"Yes\",'TSA Input'!J2439=\"Contingent\"),'TSA Input'!D2439,\"\"))","v":""},{"$f":"IF('TSA Input'!J2439=\"\",\"\",IF(OR('TSA Input'!J2439=\"Yes\",'TSA Input'!J2439=\"Contingent\"),'TSA Input'!G2439,\"\"))","v":""},{"$f":"IF('TSA Input'!J2439=\"\",\"\",IF(OR('TSA Input'!J2439=\"Yes\",'TSA Input'!J2439=\"Contingent\"),'TSA Input'!F2439,\"\"))","v":""},"",{"$f":"IF('TSA Input'!J2439=\"\",\"\",IF(OR('TSA Input'!J2439=\"Yes\",'TSA Input'!J2439=\"Contingent\"),'TSA Input'!D2439,\"\"))","v":""},{"$f":"IF('TSA Input'!J2439=\"\",\"\",IF(OR('TSA Input'!J2439=\"Yes\",'TSA Input'!J2439=\"Contingent\"),'TSA Input'!G2439,\"\"))","v":""},{"$f":"IF('TSA Input'!J2439=\"\",\"\",IF(OR('TSA Input'!J2439=\"Yes\",'TSA Input'!J2439=\"Contingent\"),'TSA Input'!F2439,\"\"))","v":""},"","Required","Required"]
["",null,{"$f":"IF('TSA Input'!J2440=\"\",\"\",IF(OR('TSA Input'!J2440=\"Yes\",'TSA Input'!J2440=\"Contingent\"),'TSA Input'!B2440,\"Ineligible\"))","v":""},{"$f":"IF('TSA Input'!J2440=\"\",\"\",IF(OR('TSA Input'!J2440=\"Yes\",'TSA Input'!J2440=\"Contingent\"),'TSA Input'!I2440,\"\"))","v":""},{"$f":"IF('TSA Input'!J2440=\"\",\"\",IF(OR('TSA Input'!J2440=\"Yes\",'TSA Input'!J2440=\"Contingent\"),'TSA Input'!C2440,\"\"))","v":""},{"$f":"IF('TSA Input'!J2440=\"\",\"\",IF(OR('TSA Input'!J2440=\"Yes\",'TSA Input'!J2440=\"Contingent\"),'TSA Input'!D2440,\"\"))","v":""},{"$f":"IF('TSA Input'!J2440=\"\",\"\",IF(OR('TSA Input'!J2440=\"Yes\",'TSA Input'!J2440=\"Contingent\"),'TSA Input'!G2440,\"\"))","v":""},{"$f":"IF('TSA Input'!J2440=\"\",\"\",IF(OR('TSA Input'!J2440=\"Yes\",'TSA Input'!J2440=\"Contingent\"),'TSA Input'!F2440,\"\"))","v":""},"",{"$f":"IF('TSA Input'!J2440=\"\",\"\",IF(OR('TSA Input'!J2440=\"Yes\",'TSA Input'!J2440=\"Contingent\"),'TSA Input'!D2440,\"\"))","v":""},{"$f":"IF('TSA Input'!J2440=\"\",\"\",IF(OR('TSA Input'!J2440=\"Yes\",'TSA Input'!J2440=\"Contingent\"),'TSA Input'!G2440,\"\"))","v":""},{"$f":"IF('TSA Input'!J2440=\"\",\"\",IF(OR('TSA Input'!J2440=\"Yes\",'TSA Input'!J2440=\"Contingent\"),'TSA Input'!F2440,\"\"))","v":""},"","Required","Required"]
["",null,{"$f":"IF('TSA Input'!J2441=\"\",\"\",IF(OR('TSA Input'!J2441=\"Yes\",'TSA Input'!J2441=\"Contingent\"),'TSA Input'!B2441,\"Ineligible\"))","v":""},{"$f":"IF('TSA Input'!J2441=\"\",\"\",IF(OR('TSA Input'!J2441=\"Yes\",'TSA Input'!J2441=\"Contingent\"),'TSA Input'!I2441,\"\"))","v":""},{"$f":"IF('TSA Input'!J2441=\"\",\"\",IF(OR('TSA Input'!J2441=\"Yes\",'TSA Input'!J2441=\"Contingent\"),'TSA Input'!C2441,\"\"))","v":""},{"$f":"IF('TSA Input'!J2441=\"\",\"\",IF(OR('TSA Input'!J2441=\"Yes\",'TSA Input'!J2441=\"Contingent\"),'TSA Input'!D2441,\"\"))","v":""},{"$f":"IF('TSA Input'!J2441=\"\",\"\",IF(OR('TSA Input'!J2441=\"Yes\",'TSA Input'!J2441=\"Contingent\"),'TSA Input'!G2441,\"\"))","v":""},{"$f":"IF('TSA Input'!J2441=\"\",\"\",IF(OR('TSA Input'!J2441=\"Yes\",'TSA Input'!J2441=\"Contingent\"),'TSA Input'!F2441,\"\"))","v":""},"",{"$f":"IF('TSA Input'!J2441=\"\",\"\",IF(OR('TSA Input'!J2441=\"Yes\",'TSA Input'!J2441=\"Contingent\"),'TSA Input'!D2441,\"\"))","v":""},{"$f":"IF('TSA Input'!J2441=\"\",\"\",IF(OR('TSA Input'!J2441=\"Yes\",'TSA Input'!J2441=\"Contingent\"),'TSA Input'!G2441,\"\"))","v":""},{"$f":"IF('TSA Input'!J2441=\"\",\"\",IF(OR('TSA Input'!J2441=\"Yes\",'TSA Input'!J2441=\"Contingent\"),'TSA Input'!F2441,\"\"))","v":""},"","Required","Required"]
["",null,{"$f":"IF('TSA Input'!J2442=\"\",\"\",IF(OR('TSA Input'!J2442=\"Yes\",'TSA Input'!J2442=\"Contingent\"),'TSA Input'!B2442,\"Ineligible\"))","v":""},{"$f":"IF('TSA Input'!J2442=\"\",\"\",IF(OR('TSA Input'!J2442=\"Yes\",'TSA Input'!J2442=\"Contingent\"),'TSA Input'!I2442,\"\"))","v":""},{"$f":"IF('TSA Input'!J2442=\"\",\"\",IF(OR('TSA Input'!J2442=\"Yes\",'TSA Input'!J2442=\"Contingent\"),'TSA Input'!C2442,\"\"))","v":""},{"$f":"IF('TSA Input'!J2442=\"\",\"\",IF(OR('TSA Input'!J2442=\"Yes\",'TSA Input'!J2442=\"Contingent\"),'TSA Input'!D2442,\"\"))","v":""},{"$f":"IF('TSA Input'!J2442=\"\",\"\",IF(OR('TSA Input'!J2442=\"Yes\",'TSA Input'!J2442=\"Contingent\"),'TSA Input'!G2442,\"\"))","v":""},{"$f":"IF('TSA Input'!J2442=\"\",\"\",IF(OR('TSA Input'!J2442=\"Yes\",'TSA Input'!J2442=\"Contingent\"),'TSA Input'!F2442,\"\"))","v":""},"",{"$f":"IF('TSA Input'!J2442=\"\",\"\",IF(OR('TSA Input'!J2442=\"Yes\",'TSA Input'!J2442=\"Contingent\"),'TSA Input'!D2442,\"\"))","v":""},{"$f":"IF('TSA Input'!J2442=\"\",\"\",IF(OR('TSA Input'!J2442=\"Yes\",'TSA Input'!J2442=\"Contingent\"),'TSA Input'!G2442,\"\"))","v":""},{"$f":"IF('TSA Input'!J2442=\"\",\"\",IF(OR('TSA Input'!J2442=\"Yes\",'TSA Input'!J2442=\"Contingent\"),'TSA Input'!F2442,\"\"))","v":""},"","Required","Required"]
["",null,{"$f":"IF('TSA Input'!J2443=\"\",\"\",IF(OR('TSA Input'!J2443=\"Yes\",'TSA Input'!J2443=\"Contingent\"),'TSA Input'!B2443,\"Ineligible\"))","v":""},{"$f":"IF('TSA Input'!J2443=\"\",\"\",IF(OR('TSA Input'!J2443=\"Yes\",'TSA Input'!J2443=\"Contingent\"),'TSA Input'!I2443,\"\"))","v":""},{"$f":"IF('TSA Input'!J2443=\"\",\"\",IF(OR('TSA Input'!J2443=\"Yes\",'TSA Input'!J2443=\"Contingent\"),'TSA Input'!C2443,\"\"))","v":""},{"$f":"IF('TSA Input'!J2443=\"\",\"\",IF(OR('TSA Input'!J2443=\"Yes\",'TSA Input'!J2443=\"Contingent\"),'TSA Input'!D2443,\"\"))","v":""},{"$f":"IF('TSA Input'!J2443=\"\",\"\",IF(OR('TSA Input'!J2443=\"Yes\",'TSA Input'!J2443=\"Contingent\"),'TSA Input'!G2443,\"\"))","v":""},{"$f":"IF('TSA Input'!J2443=\"\",\"\",IF(OR('TSA Input'!J2443=\"Yes\",'TSA Input'!J2443=\"Contingent\"),'TSA Input'!F2443,\"\"))","v":""},"",{"$f":"IF('TSA Input'!J2443=\"\",\"\",IF(OR('TSA Input'!J2443=\"Yes\",'TSA Input'!J2443=\"Contingent\"),'TSA Input'!D2443,\"\"))","v":""},{"$f":"IF('TSA Input'!J2443=\"\",\"\",IF(OR('TSA Input'!J2443=\"Yes\",'TSA Input'!J2443=\"Contingent\"),'TSA Input'!G2443,\"\"))","v":""},{"$f":"IF('TSA Input'!J2443=\"\",\"\",IF(OR('TSA Input'!J2443=\"Yes\",'TSA Input'!J2443=\"Contingent\"),'TSA Input'!F2443,\"\"))","v":""},"","Required","Required"]
["",null,{"$f":"IF('TSA Input'!J2444=\"\",\"\",IF(OR('TSA Input'!J2444=\"Yes\",'TSA Input'!J2444=\"Contingent\"),'TSA Input'!B2444,\"Ineligible\"))","v":""},{"$f":"IF('TSA Input'!J2444=\"\",\"\",IF(OR('TSA Input'!J2444=\"Yes\",'TSA Input'!J2444=\"Contingent\"),'TSA Input'!I2444,\"\"))","v":""},{"$f":"IF('TSA Input'!J2444=\"\",\"\",IF(OR('TSA Input'!J2444=\"Yes\",'TSA Input'!J2444=\"Contingent\"),'TSA Input'!C2444,\"\"))","v":""},{"$f":"IF('TSA Input'!J2444=\"\",\"\",IF(OR('TSA Input'!J2444=\"Yes\",'TSA Input'!J2444=\"Contingent\"),'TSA Input'!D2444,\"\"))","v":""},{"$f":"IF('TSA Input'!J2444=\"\",\"\",IF(OR('TSA Input'!J2444=\"Yes\",'TSA Input'!J2444=\"Contingent\"),'TSA Input'!G2444,\"\"))","v":""},{"$f":"IF('TSA Input'!J2444=\"\",\"\",IF(OR('TSA Input'!J2444=\"Yes\",'TSA Input'!J2444=\"Contingent\"),'TSA Input'!F2444,\"\"))","v":""},"",{"$f":"IF('TSA Input'!J2444=\"\",\"\",IF(OR('TSA Input'!J2444=\"Yes\",'TSA Input'!J2444=\"Contingent\"),'TSA Input'!D2444,\"\"))","v":""},{"$f":"IF('TSA Input'!J2444=\"\",\"\",IF(OR('TSA Input'!J2444=\"Yes\",'TSA Input'!J2444=\"Contingent\"),'TSA Input'!G2444,\"\"))","v":""},{"$f":"IF('TSA Input'!J2444=\"\",\"\",IF(OR('TSA Input'!J2444=\"Yes\",'TSA Input'!J2444=\"Contingent\"),'TSA Input'!F2444,\"\"))","v":""},"","Required","Required"]
["",null,{"$f":"IF('TSA Input'!J2445=\"\",\"\",IF(OR('TSA Input'!J2445=\"Yes\",'TSA Input'!J2445=\"Contingent\"),'TSA Input'!B2445,\"Ineligible\"))","v":""},{"$f":"IF('TSA Input'!J2445=\"\",\"\",IF(OR('TSA Input'!J2445=\"Yes\",'TSA Input'!J2445=\"Contingent\"),'TSA Input'!I2445,\"\"))","v":""},{"$f":"IF('TSA Input'!J2445=\"\",\"\",IF(OR('TSA Input'!J2445=\"Yes\",'TSA Input'!J2445=\"Contingent\"),'TSA Input'!C2445,\"\"))","v":""},{"$f":"IF('TSA Input'!J2445=\"\",\"\",IF(OR('TSA Input'!J2445=\"Yes\",'TSA Input'!J2445=\"Contingent\"),'TSA Input'!D2445,\"\"))","v":""},{"$f":"IF('TSA Input'!J2445=\"\",\"\",IF(OR('TSA Input'!J2445=\"Yes\",'TSA Input'!J2445=\"Contingent\"),'TSA Input'!G2445,\"\"))","v":""},{"$f":"IF('TSA Input'!J2445=\"\",\"\",IF(OR('TSA Input'!J2445=\"Yes\",'TSA Input'!J2445=\"Contingent\"),'TSA Input'!F2445,\"\"))","v":""},"",{"$f":"IF('TSA Input'!J2445=\"\",\"\",IF(OR('TSA Input'!J2445=\"Yes\",'TSA Input'!J2445=\"Contingent\"),'TSA Input'!D2445,\"\"))","v":""},{"$f":"IF('TSA Input'!J2445=\"\",\"\",IF(OR('TSA Input'!J2445=\"Yes\",'TSA Input'!J2445=\"Contingent\"),'TSA Input'!G2445,\"\"))","v":""},{"$f":"IF('TSA Input'!J2445=\"\",\"\",IF(OR('TSA Input'!J2445=\"Yes\",'TSA Input'!J2445=\"Contingent\"),'TSA Input'!F2445,\"\"))","v":""},"","Required","Required"]
["",null,{"$f":"IF('TSA Input'!J2446=\"\",\"\",IF(OR('TSA Input'!J2446=\"Yes\",'TSA Input'!J2446=\"Contingent\"),'TSA Input'!B2446,\"Ineligible\"))","v":""},{"$f":"IF('TSA Input'!J2446=\"\",\"\",IF(OR('TSA Input'!J2446=\"Yes\",'TSA Input'!J2446=\"Contingent\"),'TSA Input'!I2446,\"\"))","v":""},{"$f":"IF('TSA Input'!J2446=\"\",\"\",IF(OR('TSA Input'!J2446=\"Yes\",'TSA Input'!J2446=\"Contingent\"),'TSA Input'!C2446,\"\"))","v":""},{"$f":"IF('TSA Input'!J2446=\"\",\"\",IF(OR('TSA Input'!J2446=\"Yes\",'TSA Input'!J2446=\"Contingent\"),'TSA Input'!D2446,\"\"))","v":""},{"$f":"IF('TSA Input'!J2446=\"\",\"\",IF(OR('TSA Input'!J2446=\"Yes\",'TSA Input'!J2446=\"Contingent\"),'TSA Input'!G2446,\"\"))","v":""},{"$f":"IF('TSA Input'!J2446=\"\",\"\",IF(OR('TSA Input'!J2446=\"Yes\",'TSA Input'!J2446=\"Contingent\"),'TSA Input'!F2446,\"\"))","v":""},"",{"$f":"IF('TSA Input'!J2446=\"\",\"\",IF(OR('TSA Input'!J2446=\"Yes\",'TSA Input'!J2446=\"Contingent\"),'TSA Input'!D2446,\"\"))","v":""},{"$f":"IF('TSA Input'!J2446=\"\",\"\",IF(OR('TSA Input'!J2446=\"Yes\",'TSA Input'!J2446=\"Contingent\"),'TSA Input'!G2446,\"\"))","v":""},{"$f":"IF('TSA Input'!J2446=\"\",\"\",IF(OR('TSA Input'!J2446=\"Yes\",'TSA Input'!J2446=\"Contingent\"),'TSA Input'!F2446,\"\"))","v":""},"","Required","Required"]
["",null,{"$f":"IF('TSA Input'!J2447=\"\",\"\",IF(OR('TSA Input'!J2447=\"Yes\",'TSA Input'!J2447=\"Contingent\"),'TSA Input'!B2447,\"Ineligible\"))","v":""},{"$f":"IF('TSA Input'!J2447=\"\",\"\",IF(OR('TSA Input'!J2447=\"Yes\",'TSA Input'!J2447=\"Contingent\"),'TSA Input'!I2447,\"\"))","v":""},{"$f":"IF('TSA Input'!J2447=\"\",\"\",IF(OR('TSA Input'!J2447=\"Yes\",'TSA Input'!J2447=\"Contingent\"),'TSA Input'!C2447,\"\"))","v":""},{"$f":"IF('TSA Input'!J2447=\"\",\"\",IF(OR('TSA Input'!J2447=\"Yes\",'TSA Input'!J2447=\"Contingent\"),'TSA Input'!D2447,\"\"))","v":""},{"$f":"IF('TSA Input'!J2447=\"\",\"\",IF(OR('TSA Input'!J2447=\"Yes\",'TSA Input'!J2447=\"Contingent\"),'TSA Input'!G2447,\"\"))","v":""},{"$f":"IF('TSA Input'!J2447=\"\",\"\",IF(OR('TSA Input'!J2447=\"Yes\",'TSA Input'!J2447=\"Contingent\"),'TSA Input'!F2447,\"\"))","v":""},"",{"$f":"IF('TSA Input'!J2447=\"\",\"\",IF(OR('TSA Input'!J2447=\"Yes\",'TSA Input'!J2447=\"Contingent\"),'TSA Input'!D2447,\"\"))","v":""},{"$f":"IF('TSA Input'!J2447=\"\",\"\",IF(OR('TSA Input'!J2447=\"Yes\",'TSA Input'!J2447=\"Contingent\"),'TSA Input'!G2447,\"\"))","v":""},{"$f":"IF('TSA Input'!J2447=\"\",\"\",IF(OR('TSA Input'!J2447=\"Yes\",'TSA Input'!J2447=\"Contingent\"),'TSA Input'!F2447,\"\"))","v":""},"","Required","Required"]
["",null,{"$f":"IF('TSA Input'!J2448=\"\",\"\",IF(OR('TSA Input'!J2448=\"Yes\",'TSA Input'!J2448=\"Contingent\"),'TSA Input'!B2448,\"Ineligible\"))","v":""},{"$f":"IF('TSA Input'!J2448=\"\",\"\",IF(OR('TSA Input'!J2448=\"Yes\",'TSA Input'!J2448=\"Contingent\"),'TSA Input'!I2448,\"\"))","v":""},{"$f":"IF('TSA Input'!J2448=\"\",\"\",IF(OR('TSA Input'!J2448=\"Yes\",'TSA Input'!J2448=\"Contingent\"),'TSA Input'!C2448,\"\"))","v":""},{"$f":"IF('TSA Input'!J2448=\"\",\"\",IF(OR('TSA Input'!J2448=\"Yes\",'TSA Input'!J2448=\"Contingent\"),'TSA Input'!D2448,\"\"))","v":""},{"$f":"IF('TSA Input'!J2448=\"\",\"\",IF(OR('TSA Input'!J2448=\"Yes\",'TSA Input'!J2448=\"Contingent\"),'TSA Input'!G2448,\"\"))","v":""},{"$f":"IF('TSA Input'!J2448=\"\",\"\",IF(OR('TSA Input'!J2448=\"Yes\",'TSA Input'!J2448=\"Contingent\"),'TSA Input'!F2448,\"\"))","v":""},"",{"$f":"IF('TSA Input'!J2448=\"\",\"\",IF(OR('TSA Input'!J2448=\"Yes\",'TSA Input'!J2448=\"Contingent\"),'TSA Input'!D2448,\"\"))","v":""},{"$f":"IF('TSA Input'!J2448=\"\",\"\",IF(OR('TSA Input'!J2448=\"Yes\",'TSA Input'!J2448=\"Contingent\"),'TSA Input'!G2448,\"\"))","v":""},{"$f":"IF('TSA Input'!J2448=\"\",\"\",IF(OR('TSA Input'!J2448=\"Yes\",'TSA Input'!J2448=\"Contingent\"),'TSA Input'!F2448,\"\"))","v":""},"","Required","Required"]
["",null,{"$f":"IF('TSA Input'!J2449=\"\",\"\",IF(OR('TSA Input'!J2449=\"Yes\",'TSA Input'!J2449=\"Contingent\"),'TSA Input'!B2449,\"Ineligible\"))","v":""},{"$f":"IF('TSA Input'!J2449=\"\",\"\",IF(OR('TSA Input'!J2449=\"Yes\",'TSA Input'!J2449=\"Contingent\"),'TSA Input'!I2449,\"\"))","v":""},{"$f":"IF('TSA Input'!J2449=\"\",\"\",IF(OR('TSA Input'!J2449=\"Yes\",'TSA Input'!J2449=\"Contingent\"),'TSA Input'!C2449,\"\"))","v":""},{"$f":"IF('TSA Input'!J2449=\"\",\"\",IF(OR('TSA Input'!J2449=\"Yes\",'TSA Input'!J2449=\"Contingent\"),'TSA Input'!D2449,\"\"))","v":""},{"$f":"IF('TSA Input'!J2449=\"\",\"\",IF(OR('TSA Input'!J2449=\"Yes\",'TSA Input'!J2449=\"Contingent\"),'TSA Input'!G2449,\"\"))","v":""},{"$f":"IF('TSA Input'!J2449=\"\",\"\",IF(OR('TSA Input'!J2449=\"Yes\",'TSA Input'!J2449=\"Contingent\"),'TSA Input'!F2449,\"\"))","v":""},"",{"$f":"IF('TSA Input'!J2449=\"\",\"\",IF(OR('TSA Input'!J2449=\"Yes\",'TSA Input'!J2449=\"Contingent\"),'TSA Input'!D2449,\"\"))","v":""},{"$f":"IF('TSA Input'!J2449=\"\",\"\",IF(OR('TSA Input'!J2449=\"Yes\",'TSA Input'!J2449=\"Contingent\"),'TSA Input'!G2449,\"\"))","v":""},{"$f":"IF('TSA Input'!J2449=\"\",\"\",IF(OR('TSA Input'!J2449=\"Yes\",'TSA Input'!J2449=\"Contingent\"),'TSA Input'!F2449,\"\"))","v":""},"","Required","Required"]
["",null,{"$f":"IF('TSA Input'!J2450=\"\",\"\",IF(OR('TSA Input'!J2450=\"Yes\",'TSA Input'!J2450=\"Contingent\"),'TSA Input'!B2450,\"Ineligible\"))","v":""},{"$f":"IF('TSA Input'!J2450=\"\",\"\",IF(OR('TSA Input'!J2450=\"Yes\",'TSA Input'!J2450=\"Contingent\"),'TSA Input'!I2450,\"\"))","v":""},{"$f":"IF('TSA Input'!J2450=\"\",\"\",IF(OR('TSA Input'!J2450=\"Yes\",'TSA Input'!J2450=\"Contingent\"),'TSA Input'!C2450,\"\"))","v":""},{"$f":"IF('TSA Input'!J2450=\"\",\"\",IF(OR('TSA Input'!J2450=\"Yes\",'TSA Input'!J2450=\"Contingent\"),'TSA Input'!D2450,\"\"))","v":""},{"$f":"IF('TSA Input'!J2450=\"\",\"\",IF(OR('TSA Input'!J2450=\"Yes\",'TSA Input'!J2450=\"Contingent\"),'TSA Input'!G2450,\"\"))","v":""},{"$f":"IF('TSA Input'!J2450=\"\",\"\",IF(OR('TSA Input'!J2450=\"Yes\",'TSA Input'!J2450=\"Contingent\"),'TSA Input'!F2450,\"\"))","v":""},"",{"$f":"IF('TSA Input'!J2450=\"\",\"\",IF(OR('TSA Input'!J2450=\"Yes\",'TSA Input'!J2450=\"Contingent\"),'TSA Input'!D2450,\"\"))","v":""},{"$f":"IF('TSA Input'!J2450=\"\",\"\",IF(OR('TSA Input'!J2450=\"Yes\",'TSA Input'!J2450=\"Contingent\"),'TSA Input'!G2450,\"\"))","v":""},{"$f":"IF('TSA Input'!J2450=\"\",\"\",IF(OR('TSA Input'!J2450=\"Yes\",'TSA Input'!J2450=\"Contingent\"),'TSA Input'!F2450,\"\"))","v":""},"","Required","Required"]
["",null,{"$f":"IF('TSA Input'!J2451=\"\",\"\",IF(OR('TSA Input'!J2451=\"Yes\",'TSA Input'!J2451=\"Contingent\"),'TSA Input'!B2451,\"Ineligible\"))","v":""},{"$f":"IF('TSA Input'!J2451=\"\",\"\",IF(OR('TSA Input'!J2451=\"Yes\",'TSA Input'!J2451=\"Contingent\"),'TSA Input'!I2451,\"\"))","v":""},{"$f":"IF('TSA Input'!J2451=\"\",\"\",IF(OR('TSA Input'!J2451=\"Yes\",'TSA Input'!J2451=\"Contingent\"),'TSA Input'!C2451,\"\"))","v":""},{"$f":"IF('TSA Input'!J2451=\"\",\"\",IF(OR('TSA Input'!J2451=\"Yes\",'TSA Input'!J2451=\"Contingent\"),'TSA Input'!D2451,\"\"))","v":""},{"$f":"IF('TSA Input'!J2451=\"\",\"\",IF(OR('TSA Input'!J2451=\"Yes\",'TSA Input'!J2451=\"Contingent\"),'TSA Input'!G2451,\"\"))","v":""},{"$f":"IF('TSA Input'!J2451=\"\",\"\",IF(OR('TSA Input'!J2451=\"Yes\",'TSA Input'!J2451=\"Contingent\"),'TSA Input'!F2451,\"\"))","v":""},"",{"$f":"IF('TSA Input'!J2451=\"\",\"\",IF(OR('TSA Input'!J2451=\"Yes\",'TSA Input'!J2451=\"Contingent\"),'TSA Input'!D2451,\"\"))","v":""},{"$f":"IF('TSA Input'!J2451=\"\",\"\",IF(OR('TSA Input'!J2451=\"Yes\",'TSA Input'!J2451=\"Contingent\"),'TSA Input'!G2451,\"\"))","v":""},{"$f":"IF('TSA Input'!J2451=\"\",\"\",IF(OR('TSA Input'!J2451=\"Yes\",'TSA Input'!J2451=\"Contingent\"),'TSA Input'!F2451,\"\"))","v":""},"","Required","Required"]
["",null,{"$f":"IF('TSA Input'!J2452=\"\",\"\",IF(OR('TSA Input'!J2452=\"Yes\",'TSA Input'!J2452=\"Contingent\"),'TSA Input'!B2452,\"Ineligible\"))","v":""},{"$f":"IF('TSA Input'!J2452=\"\",\"\",IF(OR('TSA Input'!J2452=\"Yes\",'TSA Input'!J2452=\"Contingent\"),'TSA Input'!I2452,\"\"))","v":""},{"$f":"IF('TSA Input'!J2452=\"\",\"\",IF(OR('TSA Input'!J2452=\"Yes\",'TSA Input'!J2452=\"Contingent\"),'TSA Input'!C2452,\"\"))","v":""},{"$f":"IF('TSA Input'!J2452=\"\",\"\",IF(OR('TSA Input'!J2452=\"Yes\",'TSA Input'!J2452=\"Contingent\"),'TSA Input'!D2452,\"\"))","v":""},{"$f":"IF('TSA Input'!J2452=\"\",\"\",IF(OR('TSA Input'!J2452=\"Yes\",'TSA Input'!J2452=\"Contingent\"),'TSA Input'!G2452,\"\"))","v":""},{"$f":"IF('TSA Input'!J2452=\"\",\"\",IF(OR('TSA Input'!J2452=\"Yes\",'TSA Input'!J2452=\"Contingent\"),'TSA Input'!F2452,\"\"))","v":""},"",{"$f":"IF('TSA Input'!J2452=\"\",\"\",IF(OR('TSA Input'!J2452=\"Yes\",'TSA Input'!J2452=\"Contingent\"),'TSA Input'!D2452,\"\"))","v":""},{"$f":"IF('TSA Input'!J2452=\"\",\"\",IF(OR('TSA Input'!J2452=\"Yes\",'TSA Input'!J2452=\"Contingent\"),'TSA Input'!G2452,\"\"))","v":""},{"$f":"IF('TSA Input'!J2452=\"\",\"\",IF(OR('TSA Input'!J2452=\"Yes\",'TSA Input'!J2452=\"Contingent\"),'TSA Input'!F2452,\"\"))","v":""},"","Required","Required"]
["",null,{"$f":"IF('TSA Input'!J2453=\"\",\"\",IF(OR('TSA Input'!J2453=\"Yes\",'TSA Input'!J2453=\"Contingent\"),'TSA Input'!B2453,\"Ineligible\"))","v":""},{"$f":"IF('TSA Input'!J2453=\"\",\"\",IF(OR('TSA Input'!J2453=\"Yes\",'TSA Input'!J2453=\"Contingent\"),'TSA Input'!I2453,\"\"))","v":""},{"$f":"IF('TSA Input'!J2453=\"\",\"\",IF(OR('TSA Input'!J2453=\"Yes\",'TSA Input'!J2453=\"Contingent\"),'TSA Input'!C2453,\"\"))","v":""},{"$f":"IF('TSA Input'!J2453=\"\",\"\",IF(OR('TSA Input'!J2453=\"Yes\",'TSA Input'!J2453=\"Contingent\"),'TSA Input'!D2453,\"\"))","v":""},{"$f":"IF('TSA Input'!J2453=\"\",\"\",IF(OR('TSA Input'!J2453=\"Yes\",'TSA Input'!J2453=\"Contingent\"),'TSA Input'!G2453,\"\"))","v":""},{"$f":"IF('TSA Input'!J2453=\"\",\"\",IF(OR('TSA Input'!J2453=\"Yes\",'TSA Input'!J2453=\"Contingent\"),'TSA Input'!F2453,\"\"))","v":""},"",{"$f":"IF('TSA Input'!J2453=\"\",\"\",IF(OR('TSA Input'!J2453=\"Yes\",'TSA Input'!J2453=\"Contingent\"),'TSA Input'!D2453,\"\"))","v":""},{"$f":"IF('TSA Input'!J2453=\"\",\"\",IF(OR('TSA Input'!J2453=\"Yes\",'TSA Input'!J2453=\"Contingent\"),'TSA Input'!G2453,\"\"))","v":""},{"$f":"IF('TSA Input'!J2453=\"\",\"\",IF(OR('TSA Input'!J2453=\"Yes\",'TSA Input'!J2453=\"Contingent\"),'TSA Input'!F2453,\"\"))","v":""},"","Required","Required"]
["",null,{"$f":"IF('TSA Input'!J2454=\"\",\"\",IF(OR('TSA Input'!J2454=\"Yes\",'TSA Input'!J2454=\"Contingent\"),'TSA Input'!B2454,\"Ineligible\"))","v":""},{"$f":"IF('TSA Input'!J2454=\"\",\"\",IF(OR('TSA Input'!J2454=\"Yes\",'TSA Input'!J2454=\"Contingent\"),'TSA Input'!I2454,\"\"))","v":""},{"$f":"IF('TSA Input'!J2454=\"\",\"\",IF(OR('TSA Input'!J2454=\"Yes\",'TSA Input'!J2454=\"Contingent\"),'TSA Input'!C2454,\"\"))","v":""},{"$f":"IF('TSA Input'!J2454=\"\",\"\",IF(OR('TSA Input'!J2454=\"Yes\",'TSA Input'!J2454=\"Contingent\"),'TSA Input'!D2454,\"\"))","v":""},{"$f":"IF('TSA Input'!J2454=\"\",\"\",IF(OR('TSA Input'!J2454=\"Yes\",'TSA Input'!J2454=\"Contingent\"),'TSA Input'!G2454,\"\"))","v":""},{"$f":"IF('TSA Input'!J2454=\"\",\"\",IF(OR('TSA Input'!J2454=\"Yes\",'TSA Input'!J2454=\"Contingent\"),'TSA Input'!F2454,\"\"))","v":""},"",{"$f":"IF('TSA Input'!J2454=\"\",\"\",IF(OR('TSA Input'!J2454=\"Yes\",'TSA Input'!J2454=\"Contingent\"),'TSA Input'!D2454,\"\"))","v":""},{"$f":"IF('TSA Input'!J2454=\"\",\"\",IF(OR('TSA Input'!J2454=\"Yes\",'TSA Input'!J2454=\"Contingent\"),'TSA Input'!G2454,\"\"))","v":""},{"$f":"IF('TSA Input'!J2454=\"\",\"\",IF(OR('TSA Input'!J2454=\"Yes\",'TSA Input'!J2454=\"Contingent\"),'TSA Input'!F2454,\"\"))","v":""},"","Required","Required"]
["",null,{"$f":"IF('TSA Input'!J2455=\"\",\"\",IF(OR('TSA Input'!J2455=\"Yes\",'TSA Input'!J2455=\"Contingent\"),'TSA Input'!B2455,\"Ineligible\"))","v":""},{"$f":"IF('TSA Input'!J2455=\"\",\"\",IF(OR('TSA Input'!J2455=\"Yes\",'TSA Input'!J2455=\"Contingent\"),'TSA Input'!I2455,\"\"))","v":""},{"$f":"IF('TSA Input'!J2455=\"\",\"\",IF(OR('TSA Input'!J2455=\"Yes\",'TSA Input'!J2455=\"Contingent\"),'TSA Input'!C2455,\"\"))","v":""},{"$f":"IF('TSA Input'!J2455=\"\",\"\",IF(OR('TSA Input'!J2455=\"Yes\",'TSA Input'!J2455=\"Contingent\"),'TSA Input'!D2455,\"\"))","v":""},{"$f":"IF('TSA Input'!J2455=\"\",\"\",IF(OR('TSA Input'!J2455=\"Yes\",'TSA Input'!J2455=\"Contingent\"),'TSA Input'!G2455,\"\"))","v":""},{"$f":"IF('TSA Input'!J2455=\"\",\"\",IF(OR('TSA Input'!J2455=\"Yes\",'TSA Input'!J2455=\"Contingent\"),'TSA Input'!F2455,\"\"))","v":""},"",{"$f":"IF('TSA Input'!J2455=\"\",\"\",IF(OR('TSA Input'!J2455=\"Yes\",'TSA Input'!J2455=\"Contingent\"),'TSA Input'!D2455,\"\"))","v":""},{"$f":"IF('TSA Input'!J2455=\"\",\"\",IF(OR('TSA Input'!J2455=\"Yes\",'TSA Input'!J2455=\"Contingent\"),'TSA Input'!G2455,\"\"))","v":""},{"$f":"IF('TSA Input'!J2455=\"\",\"\",IF(OR('TSA Input'!J2455=\"Yes\",'TSA Input'!J2455=\"Contingent\"),'TSA Input'!F2455,\"\"))","v":""},"","Required","Required"]
["",null,{"$f":"IF('TSA Input'!J2456=\"\",\"\",IF(OR('TSA Input'!J2456=\"Yes\",'TSA Input'!J2456=\"Contingent\"),'TSA Input'!B2456,\"Ineligible\"))","v":""},{"$f":"IF('TSA Input'!J2456=\"\",\"\",IF(OR('TSA Input'!J2456=\"Yes\",'TSA Input'!J2456=\"Contingent\"),'TSA Input'!I2456,\"\"))","v":""},{"$f":"IF('TSA Input'!J2456=\"\",\"\",IF(OR('TSA Input'!J2456=\"Yes\",'TSA Input'!J2456=\"Contingent\"),'TSA Input'!C2456,\"\"))","v":""},{"$f":"IF('TSA Input'!J2456=\"\",\"\",IF(OR('TSA Input'!J2456=\"Yes\",'TSA Input'!J2456=\"Contingent\"),'TSA Input'!D2456,\"\"))","v":""},{"$f":"IF('TSA Input'!J2456=\"\",\"\",IF(OR('TSA Input'!J2456=\"Yes\",'TSA Input'!J2456=\"Contingent\"),'TSA Input'!G2456,\"\"))","v":""},{"$f":"IF('TSA Input'!J2456=\"\",\"\",IF(OR('TSA Input'!J2456=\"Yes\",'TSA Input'!J2456=\"Contingent\"),'TSA Input'!F2456,\"\"))","v":""},"",{"$f":"IF('TSA Input'!J2456=\"\",\"\",IF(OR('TSA Input'!J2456=\"Yes\",'TSA Input'!J2456=\"Contingent\"),'TSA Input'!D2456,\"\"))","v":""},{"$f":"IF('TSA Input'!J2456=\"\",\"\",IF(OR('TSA Input'!J2456=\"Yes\",'TSA Input'!J2456=\"Contingent\"),'TSA Input'!G2456,\"\"))","v":""},{"$f":"IF('TSA Input'!J2456=\"\",\"\",IF(OR('TSA Input'!J2456=\"Yes\",'TSA Input'!J2456=\"Contingent\"),'TSA Input'!F2456,\"\"))","v":""},"","Required","Required"]
["",null,{"$f":"IF('TSA Input'!J2457=\"\",\"\",IF(OR('TSA Input'!J2457=\"Yes\",'TSA Input'!J2457=\"Contingent\"),'TSA Input'!B2457,\"Ineligible\"))","v":""},{"$f":"IF('TSA Input'!J2457=\"\",\"\",IF(OR('TSA Input'!J2457=\"Yes\",'TSA Input'!J2457=\"Contingent\"),'TSA Input'!I2457,\"\"))","v":""},{"$f":"IF('TSA Input'!J2457=\"\",\"\",IF(OR('TSA Input'!J2457=\"Yes\",'TSA Input'!J2457=\"Contingent\"),'TSA Input'!C2457,\"\"))","v":""},{"$f":"IF('TSA Input'!J2457=\"\",\"\",IF(OR('TSA Input'!J2457=\"Yes\",'TSA Input'!J2457=\"Contingent\"),'TSA Input'!D2457,\"\"))","v":""},{"$f":"IF('TSA Input'!J2457=\"\",\"\",IF(OR('TSA Input'!J2457=\"Yes\",'TSA Input'!J2457=\"Contingent\"),'TSA Input'!G2457,\"\"))","v":""},{"$f":"IF('TSA Input'!J2457=\"\",\"\",IF(OR('TSA Input'!J2457=\"Yes\",'TSA Input'!J2457=\"Contingent\"),'TSA Input'!F2457,\"\"))","v":""},"",{"$f":"IF('TSA Input'!J2457=\"\",\"\",IF(OR('TSA Input'!J2457=\"Yes\",'TSA Input'!J2457=\"Contingent\"),'TSA Input'!D2457,\"\"))","v":""},{"$f":"IF('TSA Input'!J2457=\"\",\"\",IF(OR('TSA Input'!J2457=\"Yes\",'TSA Input'!J2457=\"Contingent\"),'TSA Input'!G2457,\"\"))","v":""},{"$f":"IF('TSA Input'!J2457=\"\",\"\",IF(OR('TSA Input'!J2457=\"Yes\",'TSA Input'!J2457=\"Contingent\"),'TSA Input'!F2457,\"\"))","v":""},"","Required","Required"]
["",null,{"$f":"IF('TSA Input'!J2458=\"\",\"\",IF(OR('TSA Input'!J2458=\"Yes\",'TSA Input'!J2458=\"Contingent\"),'TSA Input'!B2458,\"Ineligible\"))","v":""},{"$f":"IF('TSA Input'!J2458=\"\",\"\",IF(OR('TSA Input'!J2458=\"Yes\",'TSA Input'!J2458=\"Contingent\"),'TSA Input'!I2458,\"\"))","v":""},{"$f":"IF('TSA Input'!J2458=\"\",\"\",IF(OR('TSA Input'!J2458=\"Yes\",'TSA Input'!J2458=\"Contingent\"),'TSA Input'!C2458,\"\"))","v":""},{"$f":"IF('TSA Input'!J2458=\"\",\"\",IF(OR('TSA Input'!J2458=\"Yes\",'TSA Input'!J2458=\"Contingent\"),'TSA Input'!D2458,\"\"))","v":""},{"$f":"IF('TSA Input'!J2458=\"\",\"\",IF(OR('TSA Input'!J2458=\"Yes\",'TSA Input'!J2458=\"Contingent\"),'TSA Input'!G2458,\"\"))","v":""},{"$f":"IF('TSA Input'!J2458=\"\",\"\",IF(OR('TSA Input'!J2458=\"Yes\",'TSA Input'!J2458=\"Contingent\"),'TSA Input'!F2458,\"\"))","v":""},"",{"$f":"IF('TSA Input'!J2458=\"\",\"\",IF(OR('TSA Input'!J2458=\"Yes\",'TSA Input'!J2458=\"Contingent\"),'TSA Input'!D2458,\"\"))","v":""},{"$f":"IF('TSA Input'!J2458=\"\",\"\",IF(OR('TSA Input'!J2458=\"Yes\",'TSA Input'!J2458=\"Contingent\"),'TSA Input'!G2458,\"\"))","v":""},{"$f":"IF('TSA Input'!J2458=\"\",\"\",IF(OR('TSA Input'!J2458=\"Yes\",'TSA Input'!J2458=\"Contingent\"),'TSA Input'!F2458,\"\"))","v":""},"","Required","Required"]
["",null,{"$f":"IF('TSA Input'!J2459=\"\",\"\",IF(OR('TSA Input'!J2459=\"Yes\",'TSA Input'!J2459=\"Contingent\"),'TSA Input'!B2459,\"Ineligible\"))","v":""},{"$f":"IF('TSA Input'!J2459=\"\",\"\",IF(OR('TSA Input'!J2459=\"Yes\",'TSA Input'!J2459=\"Contingent\"),'TSA Input'!I2459,\"\"))","v":""},{"$f":"IF('TSA Input'!J2459=\"\",\"\",IF(OR('TSA Input'!J2459=\"Yes\",'TSA Input'!J2459=\"Contingent\"),'TSA Input'!C2459,\"\"))","v":""},{"$f":"IF('TSA Input'!J2459=\"\",\"\",IF(OR('TSA Input'!J2459=\"Yes\",'TSA Input'!J2459=\"Contingent\"),'TSA Input'!D2459,\"\"))","v":""},{"$f":"IF('TSA Input'!J2459=\"\",\"\",IF(OR('TSA Input'!J2459=\"Yes\",'TSA Input'!J2459=\"Contingent\"),'TSA Input'!G2459,\"\"))","v":""},{"$f":"IF('TSA Input'!J2459=\"\",\"\",IF(OR('TSA Input'!J2459=\"Yes\",'TSA Input'!J2459=\"Contingent\"),'TSA Input'!F2459,\"\"))","v":""},"",{"$f":"IF('TSA Input'!J2459=\"\",\"\",IF(OR('TSA Input'!J2459=\"Yes\",'TSA Input'!J2459=\"Contingent\"),'TSA Input'!D2459,\"\"))","v":""},{"$f":"IF('TSA Input'!J2459=\"\",\"\",IF(OR('TSA Input'!J2459=\"Yes\",'TSA Input'!J2459=\"Contingent\"),'TSA Input'!G2459,\"\"))","v":""},{"$f":"IF('TSA Input'!J2459=\"\",\"\",IF(OR('TSA Input'!J2459=\"Yes\",'TSA Input'!J2459=\"Contingent\"),'TSA Input'!F2459,\"\"))","v":""},"","Required","Required"]
["",null,{"$f":"IF('TSA Input'!J2460=\"\",\"\",IF(OR('TSA Input'!J2460=\"Yes\",'TSA Input'!J2460=\"Contingent\"),'TSA Input'!B2460,\"Ineligible\"))","v":""},{"$f":"IF('TSA Input'!J2460=\"\",\"\",IF(OR('TSA Input'!J2460=\"Yes\",'TSA Input'!J2460=\"Contingent\"),'TSA Input'!I2460,\"\"))","v":""},{"$f":"IF('TSA Input'!J2460=\"\",\"\",IF(OR('TSA Input'!J2460=\"Yes\",'TSA Input'!J2460=\"Contingent\"),'TSA Input'!C2460,\"\"))","v":""},{"$f":"IF('TSA Input'!J2460=\"\",\"\",IF(OR('TSA Input'!J2460=\"Yes\",'TSA Input'!J2460=\"Contingent\"),'TSA Input'!D2460,\"\"))","v":""},{"$f":"IF('TSA Input'!J2460=\"\",\"\",IF(OR('TSA Input'!J2460=\"Yes\",'TSA Input'!J2460=\"Contingent\"),'TSA Input'!G2460,\"\"))","v":""},{"$f":"IF('TSA Input'!J2460=\"\",\"\",IF(OR('TSA Input'!J2460=\"Yes\",'TSA Input'!J2460=\"Contingent\"),'TSA Input'!F2460,\"\"))","v":""},"",{"$f":"IF('TSA Input'!J2460=\"\",\"\",IF(OR('TSA Input'!J2460=\"Yes\",'TSA Input'!J2460=\"Contingent\"),'TSA Input'!D2460,\"\"))","v":""},{"$f":"IF('TSA Input'!J2460=\"\",\"\",IF(OR('TSA Input'!J2460=\"Yes\",'TSA Input'!J2460=\"Contingent\"),'TSA Input'!G2460,\"\"))","v":""},{"$f":"IF('TSA Input'!J2460=\"\",\"\",IF(OR('TSA Input'!J2460=\"Yes\",'TSA Input'!J2460=\"Contingent\"),'TSA Input'!F2460,\"\"))","v":""},"","Required","Required"]
["",null,{"$f":"IF('TSA Input'!J2461=\"\",\"\",IF(OR('TSA Input'!J2461=\"Yes\",'TSA Input'!J2461=\"Contingent\"),'TSA Input'!B2461,\"Ineligible\"))","v":""},{"$f":"IF('TSA Input'!J2461=\"\",\"\",IF(OR('TSA Input'!J2461=\"Yes\",'TSA Input'!J2461=\"Contingent\"),'TSA Input'!I2461,\"\"))","v":""},{"$f":"IF('TSA Input'!J2461=\"\",\"\",IF(OR('TSA Input'!J2461=\"Yes\",'TSA Input'!J2461=\"Contingent\"),'TSA Input'!C2461,\"\"))","v":""},{"$f":"IF('TSA Input'!J2461=\"\",\"\",IF(OR('TSA Input'!J2461=\"Yes\",'TSA Input'!J2461=\"Contingent\"),'TSA Input'!D2461,\"\"))","v":""},{"$f":"IF('TSA Input'!J2461=\"\",\"\",IF(OR('TSA Input'!J2461=\"Yes\",'TSA Input'!J2461=\"Contingent\"),'TSA Input'!G2461,\"\"))","v":""},{"$f":"IF('TSA Input'!J2461=\"\",\"\",IF(OR('TSA Input'!J2461=\"Yes\",'TSA Input'!J2461=\"Contingent\"),'TSA Input'!F2461,\"\"))","v":""},"",{"$f":"IF('TSA Input'!J2461=\"\",\"\",IF(OR('TSA Input'!J2461=\"Yes\",'TSA Input'!J2461=\"Contingent\"),'TSA Input'!D2461,\"\"))","v":""},{"$f":"IF('TSA Input'!J2461=\"\",\"\",IF(OR('TSA Input'!J2461=\"Yes\",'TSA Input'!J2461=\"Contingent\"),'TSA Input'!G2461,\"\"))","v":""},{"$f":"IF('TSA Input'!J2461=\"\",\"\",IF(OR('TSA Input'!J2461=\"Yes\",'TSA Input'!J2461=\"Contingent\"),'TSA Input'!F2461,\"\"))","v":""},"","Required","Required"]
["",null,{"$f":"IF('TSA Input'!J2462=\"\",\"\",IF(OR('TSA Input'!J2462=\"Yes\",'TSA Input'!J2462=\"Contingent\"),'TSA Input'!B2462,\"Ineligible\"))","v":""},{"$f":"IF('TSA Input'!J2462=\"\",\"\",IF(OR('TSA Input'!J2462=\"Yes\",'TSA Input'!J2462=\"Contingent\"),'TSA Input'!I2462,\"\"))","v":""},{"$f":"IF('TSA Input'!J2462=\"\",\"\",IF(OR('TSA Input'!J2462=\"Yes\",'TSA Input'!J2462=\"Contingent\"),'TSA Input'!C2462,\"\"))","v":""},{"$f":"IF('TSA Input'!J2462=\"\",\"\",IF(OR('TSA Input'!J2462=\"Yes\",'TSA Input'!J2462=\"Contingent\"),'TSA Input'!D2462,\"\"))","v":""},{"$f":"IF('TSA Input'!J2462=\"\",\"\",IF(OR('TSA Input'!J2462=\"Yes\",'TSA Input'!J2462=\"Contingent\"),'TSA Input'!G2462,\"\"))","v":""},{"$f":"IF('TSA Input'!J2462=\"\",\"\",IF(OR('TSA Input'!J2462=\"Yes\",'TSA Input'!J2462=\"Contingent\"),'TSA Input'!F2462,\"\"))","v":""},"",{"$f":"IF('TSA Input'!J2462=\"\",\"\",IF(OR('TSA Input'!J2462=\"Yes\",'TSA Input'!J2462=\"Contingent\"),'TSA Input'!D2462,\"\"))","v":""},{"$f":"IF('TSA Input'!J2462=\"\",\"\",IF(OR('TSA Input'!J2462=\"Yes\",'TSA Input'!J2462=\"Contingent\"),'TSA Input'!G2462,\"\"))","v":""},{"$f":"IF('TSA Input'!J2462=\"\",\"\",IF(OR('TSA Input'!J2462=\"Yes\",'TSA Input'!J2462=\"Contingent\"),'TSA Input'!F2462,\"\"))","v":""},"","Required","Required"]
["",null,{"$f":"IF('TSA Input'!J2463=\"\",\"\",IF(OR('TSA Input'!J2463=\"Yes\",'TSA Input'!J2463=\"Contingent\"),'TSA Input'!B2463,\"Ineligible\"))","v":""},{"$f":"IF('TSA Input'!J2463=\"\",\"\",IF(OR('TSA Input'!J2463=\"Yes\",'TSA Input'!J2463=\"Contingent\"),'TSA Input'!I2463,\"\"))","v":""},{"$f":"IF('TSA Input'!J2463=\"\",\"\",IF(OR('TSA Input'!J2463=\"Yes\",'TSA Input'!J2463=\"Contingent\"),'TSA Input'!C2463,\"\"))","v":""},{"$f":"IF('TSA Input'!J2463=\"\",\"\",IF(OR('TSA Input'!J2463=\"Yes\",'TSA Input'!J2463=\"Contingent\"),'TSA Input'!D2463,\"\"))","v":""},{"$f":"IF('TSA Input'!J2463=\"\",\"\",IF(OR('TSA Input'!J2463=\"Yes\",'TSA Input'!J2463=\"Contingent\"),'TSA Input'!G2463,\"\"))","v":""},{"$f":"IF('TSA Input'!J2463=\"\",\"\",IF(OR('TSA Input'!J2463=\"Yes\",'TSA Input'!J2463=\"Contingent\"),'TSA Input'!F2463,\"\"))","v":""},"",{"$f":"IF('TSA Input'!J2463=\"\",\"\",IF(OR('TSA Input'!J2463=\"Yes\",'TSA Input'!J2463=\"Contingent\"),'TSA Input'!D2463,\"\"))","v":""},{"$f":"IF('TSA Input'!J2463=\"\",\"\",IF(OR('TSA Input'!J2463=\"Yes\",'TSA Input'!J2463=\"Contingent\"),'TSA Input'!G2463,\"\"))","v":""},{"$f":"IF('TSA Input'!J2463=\"\",\"\",IF(OR('TSA Input'!J2463=\"Yes\",'TSA Input'!J2463=\"Contingent\"),'TSA Input'!F2463,\"\"))","v":""},"","Required","Required"]
["",null,{"$f":"IF('TSA Input'!J2464=\"\",\"\",IF(OR('TSA Input'!J2464=\"Yes\",'TSA Input'!J2464=\"Contingent\"),'TSA Input'!B2464,\"Ineligible\"))","v":""},{"$f":"IF('TSA Input'!J2464=\"\",\"\",IF(OR('TSA Input'!J2464=\"Yes\",'TSA Input'!J2464=\"Contingent\"),'TSA Input'!I2464,\"\"))","v":""},{"$f":"IF('TSA Input'!J2464=\"\",\"\",IF(OR('TSA Input'!J2464=\"Yes\",'TSA Input'!J2464=\"Contingent\"),'TSA Input'!C2464,\"\"))","v":""},{"$f":"IF('TSA Input'!J2464=\"\",\"\",IF(OR('TSA Input'!J2464=\"Yes\",'TSA Input'!J2464=\"Contingent\"),'TSA Input'!D2464,\"\"))","v":""},{"$f":"IF('TSA Input'!J2464=\"\",\"\",IF(OR('TSA Input'!J2464=\"Yes\",'TSA Input'!J2464=\"Contingent\"),'TSA Input'!G2464,\"\"))","v":""},{"$f":"IF('TSA Input'!J2464=\"\",\"\",IF(OR('TSA Input'!J2464=\"Yes\",'TSA Input'!J2464=\"Contingent\"),'TSA Input'!F2464,\"\"))","v":""},"",{"$f":"IF('TSA Input'!J2464=\"\",\"\",IF(OR('TSA Input'!J2464=\"Yes\",'TSA Input'!J2464=\"Contingent\"),'TSA Input'!D2464,\"\"))","v":""},{"$f":"IF('TSA Input'!J2464=\"\",\"\",IF(OR('TSA Input'!J2464=\"Yes\",'TSA Input'!J2464=\"Contingent\"),'TSA Input'!G2464,\"\"))","v":""},{"$f":"IF('TSA Input'!J2464=\"\",\"\",IF(OR('TSA Input'!J2464=\"Yes\",'TSA Input'!J2464=\"Contingent\"),'TSA Input'!F2464,\"\"))","v":""},"","Required","Required"]
["",null,{"$f":"IF('TSA Input'!J2465=\"\",\"\",IF(OR('TSA Input'!J2465=\"Yes\",'TSA Input'!J2465=\"Contingent\"),'TSA Input'!B2465,\"Ineligible\"))","v":""},{"$f":"IF('TSA Input'!J2465=\"\",\"\",IF(OR('TSA Input'!J2465=\"Yes\",'TSA Input'!J2465=\"Contingent\"),'TSA Input'!I2465,\"\"))","v":""},{"$f":"IF('TSA Input'!J2465=\"\",\"\",IF(OR('TSA Input'!J2465=\"Yes\",'TSA Input'!J2465=\"Contingent\"),'TSA Input'!C2465,\"\"))","v":""},{"$f":"IF('TSA Input'!J2465=\"\",\"\",IF(OR('TSA Input'!J2465=\"Yes\",'TSA Input'!J2465=\"Contingent\"),'TSA Input'!D2465,\"\"))","v":""},{"$f":"IF('TSA Input'!J2465=\"\",\"\",IF(OR('TSA Input'!J2465=\"Yes\",'TSA Input'!J2465=\"Contingent\"),'TSA Input'!G2465,\"\"))","v":""},{"$f":"IF('TSA Input'!J2465=\"\",\"\",IF(OR('TSA Input'!J2465=\"Yes\",'TSA Input'!J2465=\"Contingent\"),'TSA Input'!F2465,\"\"))","v":""},"",{"$f":"IF('TSA Input'!J2465=\"\",\"\",IF(OR('TSA Input'!J2465=\"Yes\",'TSA Input'!J2465=\"Contingent\"),'TSA Input'!D2465,\"\"))","v":""},{"$f":"IF('TSA Input'!J2465=\"\",\"\",IF(OR('TSA Input'!J2465=\"Yes\",'TSA Input'!J2465=\"Contingent\"),'TSA Input'!G2465,\"\"))","v":""},{"$f":"IF('TSA Input'!J2465=\"\",\"\",IF(OR('TSA Input'!J2465=\"Yes\",'TSA Input'!J2465=\"Contingent\"),'TSA Input'!F2465,\"\"))","v":""},"","Required","Required"]
["",null,{"$f":"IF('TSA Input'!J2466=\"\",\"\",IF(OR('TSA Input'!J2466=\"Yes\",'TSA Input'!J2466=\"Contingent\"),'TSA Input'!B2466,\"Ineligible\"))","v":""},{"$f":"IF('TSA Input'!J2466=\"\",\"\",IF(OR('TSA Input'!J2466=\"Yes\",'TSA Input'!J2466=\"Contingent\"),'TSA Input'!I2466,\"\"))","v":""},{"$f":"IF('TSA Input'!J2466=\"\",\"\",IF(OR('TSA Input'!J2466=\"Yes\",'TSA Input'!J2466=\"Contingent\"),'TSA Input'!C2466,\"\"))","v":""},{"$f":"IF('TSA Input'!J2466=\"\",\"\",IF(OR('TSA Input'!J2466=\"Yes\",'TSA Input'!J2466=\"Contingent\"),'TSA Input'!D2466,\"\"))","v":""},{"$f":"IF('TSA Input'!J2466=\"\",\"\",IF(OR('TSA Input'!J2466=\"Yes\",'TSA Input'!J2466=\"Contingent\"),'TSA Input'!G2466,\"\"))","v":""},{"$f":"IF('TSA Input'!J2466=\"\",\"\",IF(OR('TSA Input'!J2466=\"Yes\",'TSA Input'!J2466=\"Contingent\"),'TSA Input'!F2466,\"\"))","v":""},"",{"$f":"IF('TSA Input'!J2466=\"\",\"\",IF(OR('TSA Input'!J2466=\"Yes\",'TSA Input'!J2466=\"Contingent\"),'TSA Input'!D2466,\"\"))","v":""},{"$f":"IF('TSA Input'!J2466=\"\",\"\",IF(OR('TSA Input'!J2466=\"Yes\",'TSA Input'!J2466=\"Contingent\"),'TSA Input'!G2466,\"\"))","v":""},{"$f":"IF('TSA Input'!J2466=\"\",\"\",IF(OR('TSA Input'!J2466=\"Yes\",'TSA Input'!J2466=\"Contingent\"),'TSA Input'!F2466,\"\"))","v":""},"","Required","Required"]
["",null,{"$f":"IF('TSA Input'!J2467=\"\",\"\",IF(OR('TSA Input'!J2467=\"Yes\",'TSA Input'!J2467=\"Contingent\"),'TSA Input'!B2467,\"Ineligible\"))","v":""},{"$f":"IF('TSA Input'!J2467=\"\",\"\",IF(OR('TSA Input'!J2467=\"Yes\",'TSA Input'!J2467=\"Contingent\"),'TSA Input'!I2467,\"\"))","v":""},{"$f":"IF('TSA Input'!J2467=\"\",\"\",IF(OR('TSA Input'!J2467=\"Yes\",'TSA Input'!J2467=\"Contingent\"),'TSA Input'!C2467,\"\"))","v":""},{"$f":"IF('TSA Input'!J2467=\"\",\"\",IF(OR('TSA Input'!J2467=\"Yes\",'TSA Input'!J2467=\"Contingent\"),'TSA Input'!D2467,\"\"))","v":""},{"$f":"IF('TSA Input'!J2467=\"\",\"\",IF(OR('TSA Input'!J2467=\"Yes\",'TSA Input'!J2467=\"Contingent\"),'TSA Input'!G2467,\"\"))","v":""},{"$f":"IF('TSA Input'!J2467=\"\",\"\",IF(OR('TSA Input'!J2467=\"Yes\",'TSA Input'!J2467=\"Contingent\"),'TSA Input'!F2467,\"\"))","v":""},"",{"$f":"IF('TSA Input'!J2467=\"\",\"\",IF(OR('TSA Input'!J2467=\"Yes\",'TSA Input'!J2467=\"Contingent\"),'TSA Input'!D2467,\"\"))","v":""},{"$f":"IF('TSA Input'!J2467=\"\",\"\",IF(OR('TSA Input'!J2467=\"Yes\",'TSA Input'!J2467=\"Contingent\"),'TSA Input'!G2467,\"\"))","v":""},{"$f":"IF('TSA Input'!J2467=\"\",\"\",IF(OR('TSA Input'!J2467=\"Yes\",'TSA Input'!J2467=\"Contingent\"),'TSA Input'!F2467,\"\"))","v":""},"","Required","Required"]
["",null,{"$f":"IF('TSA Input'!J2468=\"\",\"\",IF(OR('TSA Input'!J2468=\"Yes\",'TSA Input'!J2468=\"Contingent\"),'TSA Input'!B2468,\"Ineligible\"))","v":""},{"$f":"IF('TSA Input'!J2468=\"\",\"\",IF(OR('TSA Input'!J2468=\"Yes\",'TSA Input'!J2468=\"Contingent\"),'TSA Input'!I2468,\"\"))","v":""},{"$f":"IF('TSA Input'!J2468=\"\",\"\",IF(OR('TSA Input'!J2468=\"Yes\",'TSA Input'!J2468=\"Contingent\"),'TSA Input'!C2468,\"\"))","v":""},{"$f":"IF('TSA Input'!J2468=\"\",\"\",IF(OR('TSA Input'!J2468=\"Yes\",'TSA Input'!J2468=\"Contingent\"),'TSA Input'!D2468,\"\"))","v":""},{"$f":"IF('TSA Input'!J2468=\"\",\"\",IF(OR('TSA Input'!J2468=\"Yes\",'TSA Input'!J2468=\"Contingent\"),'TSA Input'!G2468,\"\"))","v":""},{"$f":"IF('TSA Input'!J2468=\"\",\"\",IF(OR('TSA Input'!J2468=\"Yes\",'TSA Input'!J2468=\"Contingent\"),'TSA Input'!F2468,\"\"))","v":""},"",{"$f":"IF('TSA Input'!J2468=\"\",\"\",IF(OR('TSA Input'!J2468=\"Yes\",'TSA Input'!J2468=\"Contingent\"),'TSA Input'!D2468,\"\"))","v":""},{"$f":"IF('TSA Input'!J2468=\"\",\"\",IF(OR('TSA Input'!J2468=\"Yes\",'TSA Input'!J2468=\"Contingent\"),'TSA Input'!G2468,\"\"))","v":""},{"$f":"IF('TSA Input'!J2468=\"\",\"\",IF(OR('TSA Input'!J2468=\"Yes\",'TSA Input'!J2468=\"Contingent\"),'TSA Input'!F2468,\"\"))","v":""},"","Required","Required"]
["",null,{"$f":"IF('TSA Input'!J2469=\"\",\"\",IF(OR('TSA Input'!J2469=\"Yes\",'TSA Input'!J2469=\"Contingent\"),'TSA Input'!B2469,\"Ineligible\"))","v":""},{"$f":"IF('TSA Input'!J2469=\"\",\"\",IF(OR('TSA Input'!J2469=\"Yes\",'TSA Input'!J2469=\"Contingent\"),'TSA Input'!I2469,\"\"))","v":""},{"$f":"IF('TSA Input'!J2469=\"\",\"\",IF(OR('TSA Input'!J2469=\"Yes\",'TSA Input'!J2469=\"Contingent\"),'TSA Input'!C2469,\"\"))","v":""},{"$f":"IF('TSA Input'!J2469=\"\",\"\",IF(OR('TSA Input'!J2469=\"Yes\",'TSA Input'!J2469=\"Contingent\"),'TSA Input'!D2469,\"\"))","v":""},{"$f":"IF('TSA Input'!J2469=\"\",\"\",IF(OR('TSA Input'!J2469=\"Yes\",'TSA Input'!J2469=\"Contingent\"),'TSA Input'!G2469,\"\"))","v":""},{"$f":"IF('TSA Input'!J2469=\"\",\"\",IF(OR('TSA Input'!J2469=\"Yes\",'TSA Input'!J2469=\"Contingent\"),'TSA Input'!F2469,\"\"))","v":""},"",{"$f":"IF('TSA Input'!J2469=\"\",\"\",IF(OR('TSA Input'!J2469=\"Yes\",'TSA Input'!J2469=\"Contingent\"),'TSA Input'!D2469,\"\"))","v":""},{"$f":"IF('TSA Input'!J2469=\"\",\"\",IF(OR('TSA Input'!J2469=\"Yes\",'TSA Input'!J2469=\"Contingent\"),'TSA Input'!G2469,\"\"))","v":""},{"$f":"IF('TSA Input'!J2469=\"\",\"\",IF(OR('TSA Input'!J2469=\"Yes\",'TSA Input'!J2469=\"Contingent\"),'TSA Input'!F2469,\"\"))","v":""},"","Required","Required"]
["",null,{"$f":"IF('TSA Input'!J2470=\"\",\"\",IF(OR('TSA Input'!J2470=\"Yes\",'TSA Input'!J2470=\"Contingent\"),'TSA Input'!B2470,\"Ineligible\"))","v":""},{"$f":"IF('TSA Input'!J2470=\"\",\"\",IF(OR('TSA Input'!J2470=\"Yes\",'TSA Input'!J2470=\"Contingent\"),'TSA Input'!I2470,\"\"))","v":""},{"$f":"IF('TSA Input'!J2470=\"\",\"\",IF(OR('TSA Input'!J2470=\"Yes\",'TSA Input'!J2470=\"Contingent\"),'TSA Input'!C2470,\"\"))","v":""},{"$f":"IF('TSA Input'!J2470=\"\",\"\",IF(OR('TSA Input'!J2470=\"Yes\",'TSA Input'!J2470=\"Contingent\"),'TSA Input'!D2470,\"\"))","v":""},{"$f":"IF('TSA Input'!J2470=\"\",\"\",IF(OR('TSA Input'!J2470=\"Yes\",'TSA Input'!J2470=\"Contingent\"),'TSA Input'!G2470,\"\"))","v":""},{"$f":"IF('TSA Input'!J2470=\"\",\"\",IF(OR('TSA Input'!J2470=\"Yes\",'TSA Input'!J2470=\"Contingent\"),'TSA Input'!F2470,\"\"))","v":""},"",{"$f":"IF('TSA Input'!J2470=\"\",\"\",IF(OR('TSA Input'!J2470=\"Yes\",'TSA Input'!J2470=\"Contingent\"),'TSA Input'!D2470,\"\"))","v":""},{"$f":"IF('TSA Input'!J2470=\"\",\"\",IF(OR('TSA Input'!J2470=\"Yes\",'TSA Input'!J2470=\"Contingent\"),'TSA Input'!G2470,\"\"))","v":""},{"$f":"IF('TSA Input'!J2470=\"\",\"\",IF(OR('TSA Input'!J2470=\"Yes\",'TSA Input'!J2470=\"Contingent\"),'TSA Input'!F2470,\"\"))","v":""},"","Required","Required"]
["",null,{"$f":"IF('TSA Input'!J2471=\"\",\"\",IF(OR('TSA Input'!J2471=\"Yes\",'TSA Input'!J2471=\"Contingent\"),'TSA Input'!B2471,\"Ineligible\"))","v":""},{"$f":"IF('TSA Input'!J2471=\"\",\"\",IF(OR('TSA Input'!J2471=\"Yes\",'TSA Input'!J2471=\"Contingent\"),'TSA Input'!I2471,\"\"))","v":""},{"$f":"IF('TSA Input'!J2471=\"\",\"\",IF(OR('TSA Input'!J2471=\"Yes\",'TSA Input'!J2471=\"Contingent\"),'TSA Input'!C2471,\"\"))","v":""},{"$f":"IF('TSA Input'!J2471=\"\",\"\",IF(OR('TSA Input'!J2471=\"Yes\",'TSA Input'!J2471=\"Contingent\"),'TSA Input'!D2471,\"\"))","v":""},{"$f":"IF('TSA Input'!J2471=\"\",\"\",IF(OR('TSA Input'!J2471=\"Yes\",'TSA Input'!J2471=\"Contingent\"),'TSA Input'!G2471,\"\"))","v":""},{"$f":"IF('TSA Input'!J2471=\"\",\"\",IF(OR('TSA Input'!J2471=\"Yes\",'TSA Input'!J2471=\"Contingent\"),'TSA Input'!F2471,\"\"))","v":""},"",{"$f":"IF('TSA Input'!J2471=\"\",\"\",IF(OR('TSA Input'!J2471=\"Yes\",'TSA Input'!J2471=\"Contingent\"),'TSA Input'!D2471,\"\"))","v":""},{"$f":"IF('TSA Input'!J2471=\"\",\"\",IF(OR('TSA Input'!J2471=\"Yes\",'TSA Input'!J2471=\"Contingent\"),'TSA Input'!G2471,\"\"))","v":""},{"$f":"IF('TSA Input'!J2471=\"\",\"\",IF(OR('TSA Input'!J2471=\"Yes\",'TSA Input'!J2471=\"Contingent\"),'TSA Input'!F2471,\"\"))","v":""},"","Required","Required"]
["",null,{"$f":"IF('TSA Input'!J2472=\"\",\"\",IF(OR('TSA Input'!J2472=\"Yes\",'TSA Input'!J2472=\"Contingent\"),'TSA Input'!B2472,\"Ineligible\"))","v":""},{"$f":"IF('TSA Input'!J2472=\"\",\"\",IF(OR('TSA Input'!J2472=\"Yes\",'TSA Input'!J2472=\"Contingent\"),'TSA Input'!I2472,\"\"))","v":""},{"$f":"IF('TSA Input'!J2472=\"\",\"\",IF(OR('TSA Input'!J2472=\"Yes\",'TSA Input'!J2472=\"Contingent\"),'TSA Input'!C2472,\"\"))","v":""},{"$f":"IF('TSA Input'!J2472=\"\",\"\",IF(OR('TSA Input'!J2472=\"Yes\",'TSA Input'!J2472=\"Contingent\"),'TSA Input'!D2472,\"\"))","v":""},{"$f":"IF('TSA Input'!J2472=\"\",\"\",IF(OR('TSA Input'!J2472=\"Yes\",'TSA Input'!J2472=\"Contingent\"),'TSA Input'!G2472,\"\"))","v":""},{"$f":"IF('TSA Input'!J2472=\"\",\"\",IF(OR('TSA Input'!J2472=\"Yes\",'TSA Input'!J2472=\"Contingent\"),'TSA Input'!F2472,\"\"))","v":""},"",{"$f":"IF('TSA Input'!J2472=\"\",\"\",IF(OR('TSA Input'!J2472=\"Yes\",'TSA Input'!J2472=\"Contingent\"),'TSA Input'!D2472,\"\"))","v":""},{"$f":"IF('TSA Input'!J2472=\"\",\"\",IF(OR('TSA Input'!J2472=\"Yes\",'TSA Input'!J2472=\"Contingent\"),'TSA Input'!G2472,\"\"))","v":""},{"$f":"IF('TSA Input'!J2472=\"\",\"\",IF(OR('TSA Input'!J2472=\"Yes\",'TSA Input'!J2472=\"Contingent\"),'TSA Input'!F2472,\"\"))","v":""},"","Required","Required"]
["",null,{"$f":"IF('TSA Input'!J2473=\"\",\"\",IF(OR('TSA Input'!J2473=\"Yes\",'TSA Input'!J2473=\"Contingent\"),'TSA Input'!B2473,\"Ineligible\"))","v":""},{"$f":"IF('TSA Input'!J2473=\"\",\"\",IF(OR('TSA Input'!J2473=\"Yes\",'TSA Input'!J2473=\"Contingent\"),'TSA Input'!I2473,\"\"))","v":""},{"$f":"IF('TSA Input'!J2473=\"\",\"\",IF(OR('TSA Input'!J2473=\"Yes\",'TSA Input'!J2473=\"Contingent\"),'TSA Input'!C2473,\"\"))","v":""},{"$f":"IF('TSA Input'!J2473=\"\",\"\",IF(OR('TSA Input'!J2473=\"Yes\",'TSA Input'!J2473=\"Contingent\"),'TSA Input'!D2473,\"\"))","v":""},{"$f":"IF('TSA Input'!J2473=\"\",\"\",IF(OR('TSA Input'!J2473=\"Yes\",'TSA Input'!J2473=\"Contingent\"),'TSA Input'!G2473,\"\"))","v":""},{"$f":"IF('TSA Input'!J2473=\"\",\"\",IF(OR('TSA Input'!J2473=\"Yes\",'TSA Input'!J2473=\"Contingent\"),'TSA Input'!F2473,\"\"))","v":""},"",{"$f":"IF('TSA Input'!J2473=\"\",\"\",IF(OR('TSA Input'!J2473=\"Yes\",'TSA Input'!J2473=\"Contingent\"),'TSA Input'!D2473,\"\"))","v":""},{"$f":"IF('TSA Input'!J2473=\"\",\"\",IF(OR('TSA Input'!J2473=\"Yes\",'TSA Input'!J2473=\"Contingent\"),'TSA Input'!G2473,\"\"))","v":""},{"$f":"IF('TSA Input'!J2473=\"\",\"\",IF(OR('TSA Input'!J2473=\"Yes\",'TSA Input'!J2473=\"Contingent\"),'TSA Input'!F2473,\"\"))","v":""},"","Required","Required"]
["",null,{"$f":"IF('TSA Input'!J2474=\"\",\"\",IF(OR('TSA Input'!J2474=\"Yes\",'TSA Input'!J2474=\"Contingent\"),'TSA Input'!B2474,\"Ineligible\"))","v":""},{"$f":"IF('TSA Input'!J2474=\"\",\"\",IF(OR('TSA Input'!J2474=\"Yes\",'TSA Input'!J2474=\"Contingent\"),'TSA Input'!I2474,\"\"))","v":""},{"$f":"IF('TSA Input'!J2474=\"\",\"\",IF(OR('TSA Input'!J2474=\"Yes\",'TSA Input'!J2474=\"Contingent\"),'TSA Input'!C2474,\"\"))","v":""},{"$f":"IF('TSA Input'!J2474=\"\",\"\",IF(OR('TSA Input'!J2474=\"Yes\",'TSA Input'!J2474=\"Contingent\"),'TSA Input'!D2474,\"\"))","v":""},{"$f":"IF('TSA Input'!J2474=\"\",\"\",IF(OR('TSA Input'!J2474=\"Yes\",'TSA Input'!J2474=\"Contingent\"),'TSA Input'!G2474,\"\"))","v":""},{"$f":"IF('TSA Input'!J2474=\"\",\"\",IF(OR('TSA Input'!J2474=\"Yes\",'TSA Input'!J2474=\"Contingent\"),'TSA Input'!F2474,\"\"))","v":""},"",{"$f":"IF('TSA Input'!J2474=\"\",\"\",IF(OR('TSA Input'!J2474=\"Yes\",'TSA Input'!J2474=\"Contingent\"),'TSA Input'!D2474,\"\"))","v":""},{"$f":"IF('TSA Input'!J2474=\"\",\"\",IF(OR('TSA Input'!J2474=\"Yes\",'TSA Input'!J2474=\"Contingent\"),'TSA Input'!G2474,\"\"))","v":""},{"$f":"IF('TSA Input'!J2474=\"\",\"\",IF(OR('TSA Input'!J2474=\"Yes\",'TSA Input'!J2474=\"Contingent\"),'TSA Input'!F2474,\"\"))","v":""},"","Required","Required"]
["",null,{"$f":"IF('TSA Input'!J2475=\"\",\"\",IF(OR('TSA Input'!J2475=\"Yes\",'TSA Input'!J2475=\"Contingent\"),'TSA Input'!B2475,\"Ineligible\"))","v":""},{"$f":"IF('TSA Input'!J2475=\"\",\"\",IF(OR('TSA Input'!J2475=\"Yes\",'TSA Input'!J2475=\"Contingent\"),'TSA Input'!I2475,\"\"))","v":""},{"$f":"IF('TSA Input'!J2475=\"\",\"\",IF(OR('TSA Input'!J2475=\"Yes\",'TSA Input'!J2475=\"Contingent\"),'TSA Input'!C2475,\"\"))","v":""},{"$f":"IF('TSA Input'!J2475=\"\",\"\",IF(OR('TSA Input'!J2475=\"Yes\",'TSA Input'!J2475=\"Contingent\"),'TSA Input'!D2475,\"\"))","v":""},{"$f":"IF('TSA Input'!J2475=\"\",\"\",IF(OR('TSA Input'!J2475=\"Yes\",'TSA Input'!J2475=\"Contingent\"),'TSA Input'!G2475,\"\"))","v":""},{"$f":"IF('TSA Input'!J2475=\"\",\"\",IF(OR('TSA Input'!J2475=\"Yes\",'TSA Input'!J2475=\"Contingent\"),'TSA Input'!F2475,\"\"))","v":""},"",{"$f":"IF('TSA Input'!J2475=\"\",\"\",IF(OR('TSA Input'!J2475=\"Yes\",'TSA Input'!J2475=\"Contingent\"),'TSA Input'!D2475,\"\"))","v":""},{"$f":"IF('TSA Input'!J2475=\"\",\"\",IF(OR('TSA Input'!J2475=\"Yes\",'TSA Input'!J2475=\"Contingent\"),'TSA Input'!G2475,\"\"))","v":""},{"$f":"IF('TSA Input'!J2475=\"\",\"\",IF(OR('TSA Input'!J2475=\"Yes\",'TSA Input'!J2475=\"Contingent\"),'TSA Input'!F2475,\"\"))","v":""},"","Required","Required"]
["",null,{"$f":"IF('TSA Input'!J2476=\"\",\"\",IF(OR('TSA Input'!J2476=\"Yes\",'TSA Input'!J2476=\"Contingent\"),'TSA Input'!B2476,\"Ineligible\"))","v":""},{"$f":"IF('TSA Input'!J2476=\"\",\"\",IF(OR('TSA Input'!J2476=\"Yes\",'TSA Input'!J2476=\"Contingent\"),'TSA Input'!I2476,\"\"))","v":""},{"$f":"IF('TSA Input'!J2476=\"\",\"\",IF(OR('TSA Input'!J2476=\"Yes\",'TSA Input'!J2476=\"Contingent\"),'TSA Input'!C2476,\"\"))","v":""},{"$f":"IF('TSA Input'!J2476=\"\",\"\",IF(OR('TSA Input'!J2476=\"Yes\",'TSA Input'!J2476=\"Contingent\"),'TSA Input'!D2476,\"\"))","v":""},{"$f":"IF('TSA Input'!J2476=\"\",\"\",IF(OR('TSA Input'!J2476=\"Yes\",'TSA Input'!J2476=\"Contingent\"),'TSA Input'!G2476,\"\"))","v":""},{"$f":"IF('TSA Input'!J2476=\"\",\"\",IF(OR('TSA Input'!J2476=\"Yes\",'TSA Input'!J2476=\"Contingent\"),'TSA Input'!F2476,\"\"))","v":""},"",{"$f":"IF('TSA Input'!J2476=\"\",\"\",IF(OR('TSA Input'!J2476=\"Yes\",'TSA Input'!J2476=\"Contingent\"),'TSA Input'!D2476,\"\"))","v":""},{"$f":"IF('TSA Input'!J2476=\"\",\"\",IF(OR('TSA Input'!J2476=\"Yes\",'TSA Input'!J2476=\"Contingent\"),'TSA Input'!G2476,\"\"))","v":""},{"$f":"IF('TSA Input'!J2476=\"\",\"\",IF(OR('TSA Input'!J2476=\"Yes\",'TSA Input'!J2476=\"Contingent\"),'TSA Input'!F2476,\"\"))","v":""},"","Required","Required"]
["",null,{"$f":"IF('TSA Input'!J2477=\"\",\"\",IF(OR('TSA Input'!J2477=\"Yes\",'TSA Input'!J2477=\"Contingent\"),'TSA Input'!B2477,\"Ineligible\"))","v":""},{"$f":"IF('TSA Input'!J2477=\"\",\"\",IF(OR('TSA Input'!J2477=\"Yes\",'TSA Input'!J2477=\"Contingent\"),'TSA Input'!I2477,\"\"))","v":""},{"$f":"IF('TSA Input'!J2477=\"\",\"\",IF(OR('TSA Input'!J2477=\"Yes\",'TSA Input'!J2477=\"Contingent\"),'TSA Input'!C2477,\"\"))","v":""},{"$f":"IF('TSA Input'!J2477=\"\",\"\",IF(OR('TSA Input'!J2477=\"Yes\",'TSA Input'!J2477=\"Contingent\"),'TSA Input'!D2477,\"\"))","v":""},{"$f":"IF('TSA Input'!J2477=\"\",\"\",IF(OR('TSA Input'!J2477=\"Yes\",'TSA Input'!J2477=\"Contingent\"),'TSA Input'!G2477,\"\"))","v":""},{"$f":"IF('TSA Input'!J2477=\"\",\"\",IF(OR('TSA Input'!J2477=\"Yes\",'TSA Input'!J2477=\"Contingent\"),'TSA Input'!F2477,\"\"))","v":""},"",{"$f":"IF('TSA Input'!J2477=\"\",\"\",IF(OR('TSA Input'!J2477=\"Yes\",'TSA Input'!J2477=\"Contingent\"),'TSA Input'!D2477,\"\"))","v":""},{"$f":"IF('TSA Input'!J2477=\"\",\"\",IF(OR('TSA Input'!J2477=\"Yes\",'TSA Input'!J2477=\"Contingent\"),'TSA Input'!G2477,\"\"))","v":""},{"$f":"IF('TSA Input'!J2477=\"\",\"\",IF(OR('TSA Input'!J2477=\"Yes\",'TSA Input'!J2477=\"Contingent\"),'TSA Input'!F2477,\"\"))","v":""},"","Required","Required"]
["",null,{"$f":"IF('TSA Input'!J2478=\"\",\"\",IF(OR('TSA Input'!J2478=\"Yes\",'TSA Input'!J2478=\"Contingent\"),'TSA Input'!B2478,\"Ineligible\"))","v":""},{"$f":"IF('TSA Input'!J2478=\"\",\"\",IF(OR('TSA Input'!J2478=\"Yes\",'TSA Input'!J2478=\"Contingent\"),'TSA Input'!I2478,\"\"))","v":""},{"$f":"IF('TSA Input'!J2478=\"\",\"\",IF(OR('TSA Input'!J2478=\"Yes\",'TSA Input'!J2478=\"Contingent\"),'TSA Input'!C2478,\"\"))","v":""},{"$f":"IF('TSA Input'!J2478=\"\",\"\",IF(OR('TSA Input'!J2478=\"Yes\",'TSA Input'!J2478=\"Contingent\"),'TSA Input'!D2478,\"\"))","v":""},{"$f":"IF('TSA Input'!J2478=\"\",\"\",IF(OR('TSA Input'!J2478=\"Yes\",'TSA Input'!J2478=\"Contingent\"),'TSA Input'!G2478,\"\"))","v":""},{"$f":"IF('TSA Input'!J2478=\"\",\"\",IF(OR('TSA Input'!J2478=\"Yes\",'TSA Input'!J2478=\"Contingent\"),'TSA Input'!F2478,\"\"))","v":""},"",{"$f":"IF('TSA Input'!J2478=\"\",\"\",IF(OR('TSA Input'!J2478=\"Yes\",'TSA Input'!J2478=\"Contingent\"),'TSA Input'!D2478,\"\"))","v":""},{"$f":"IF('TSA Input'!J2478=\"\",\"\",IF(OR('TSA Input'!J2478=\"Yes\",'TSA Input'!J2478=\"Contingent\"),'TSA Input'!G2478,\"\"))","v":""},{"$f":"IF('TSA Input'!J2478=\"\",\"\",IF(OR('TSA Input'!J2478=\"Yes\",'TSA Input'!J2478=\"Contingent\"),'TSA Input'!F2478,\"\"))","v":""},"","Required","Required"]
["",null,{"$f":"IF('TSA Input'!J2479=\"\",\"\",IF(OR('TSA Input'!J2479=\"Yes\",'TSA Input'!J2479=\"Contingent\"),'TSA Input'!B2479,\"Ineligible\"))","v":""},{"$f":"IF('TSA Input'!J2479=\"\",\"\",IF(OR('TSA Input'!J2479=\"Yes\",'TSA Input'!J2479=\"Contingent\"),'TSA Input'!I2479,\"\"))","v":""},{"$f":"IF('TSA Input'!J2479=\"\",\"\",IF(OR('TSA Input'!J2479=\"Yes\",'TSA Input'!J2479=\"Contingent\"),'TSA Input'!C2479,\"\"))","v":""},{"$f":"IF('TSA Input'!J2479=\"\",\"\",IF(OR('TSA Input'!J2479=\"Yes\",'TSA Input'!J2479=\"Contingent\"),'TSA Input'!D2479,\"\"))","v":""},{"$f":"IF('TSA Input'!J2479=\"\",\"\",IF(OR('TSA Input'!J2479=\"Yes\",'TSA Input'!J2479=\"Contingent\"),'TSA Input'!G2479,\"\"))","v":""},{"$f":"IF('TSA Input'!J2479=\"\",\"\",IF(OR('TSA Input'!J2479=\"Yes\",'TSA Input'!J2479=\"Contingent\"),'TSA Input'!F2479,\"\"))","v":""},"",{"$f":"IF('TSA Input'!J2479=\"\",\"\",IF(OR('TSA Input'!J2479=\"Yes\",'TSA Input'!J2479=\"Contingent\"),'TSA Input'!D2479,\"\"))","v":""},{"$f":"IF('TSA Input'!J2479=\"\",\"\",IF(OR('TSA Input'!J2479=\"Yes\",'TSA Input'!J2479=\"Contingent\"),'TSA Input'!G2479,\"\"))","v":""},{"$f":"IF('TSA Input'!J2479=\"\",\"\",IF(OR('TSA Input'!J2479=\"Yes\",'TSA Input'!J2479=\"Contingent\"),'TSA Input'!F2479,\"\"))","v":""},"","Required","Required"]
["",null,{"$f":"IF('TSA Input'!J2480=\"\",\"\",IF(OR('TSA Input'!J2480=\"Yes\",'TSA Input'!J2480=\"Contingent\"),'TSA Input'!B2480,\"Ineligible\"))","v":""},{"$f":"IF('TSA Input'!J2480=\"\",\"\",IF(OR('TSA Input'!J2480=\"Yes\",'TSA Input'!J2480=\"Contingent\"),'TSA Input'!I2480,\"\"))","v":""},{"$f":"IF('TSA Input'!J2480=\"\",\"\",IF(OR('TSA Input'!J2480=\"Yes\",'TSA Input'!J2480=\"Contingent\"),'TSA Input'!C2480,\"\"))","v":""},{"$f":"IF('TSA Input'!J2480=\"\",\"\",IF(OR('TSA Input'!J2480=\"Yes\",'TSA Input'!J2480=\"Contingent\"),'TSA Input'!D2480,\"\"))","v":""},{"$f":"IF('TSA Input'!J2480=\"\",\"\",IF(OR('TSA Input'!J2480=\"Yes\",'TSA Input'!J2480=\"Contingent\"),'TSA Input'!G2480,\"\"))","v":""},{"$f":"IF('TSA Input'!J2480=\"\",\"\",IF(OR('TSA Input'!J2480=\"Yes\",'TSA Input'!J2480=\"Contingent\"),'TSA Input'!F2480,\"\"))","v":""},"",{"$f":"IF('TSA Input'!J2480=\"\",\"\",IF(OR('TSA Input'!J2480=\"Yes\",'TSA Input'!J2480=\"Contingent\"),'TSA Input'!D2480,\"\"))","v":""},{"$f":"IF('TSA Input'!J2480=\"\",\"\",IF(OR('TSA Input'!J2480=\"Yes\",'TSA Input'!J2480=\"Contingent\"),'TSA Input'!G2480,\"\"))","v":""},{"$f":"IF('TSA Input'!J2480=\"\",\"\",IF(OR('TSA Input'!J2480=\"Yes\",'TSA Input'!J2480=\"Contingent\"),'TSA Input'!F2480,\"\"))","v":""},"","Required","Required"]
["",null,{"$f":"IF('TSA Input'!J2481=\"\",\"\",IF(OR('TSA Input'!J2481=\"Yes\",'TSA Input'!J2481=\"Contingent\"),'TSA Input'!B2481,\"Ineligible\"))","v":""},{"$f":"IF('TSA Input'!J2481=\"\",\"\",IF(OR('TSA Input'!J2481=\"Yes\",'TSA Input'!J2481=\"Contingent\"),'TSA Input'!I2481,\"\"))","v":""},{"$f":"IF('TSA Input'!J2481=\"\",\"\",IF(OR('TSA Input'!J2481=\"Yes\",'TSA Input'!J2481=\"Contingent\"),'TSA Input'!C2481,\"\"))","v":""},{"$f":"IF('TSA Input'!J2481=\"\",\"\",IF(OR('TSA Input'!J2481=\"Yes\",'TSA Input'!J2481=\"Contingent\"),'TSA Input'!D2481,\"\"))","v":""},{"$f":"IF('TSA Input'!J2481=\"\",\"\",IF(OR('TSA Input'!J2481=\"Yes\",'TSA Input'!J2481=\"Contingent\"),'TSA Input'!G2481,\"\"))","v":""},{"$f":"IF('TSA Input'!J2481=\"\",\"\",IF(OR('TSA Input'!J2481=\"Yes\",'TSA Input'!J2481=\"Contingent\"),'TSA Input'!F2481,\"\"))","v":""},"",{"$f":"IF('TSA Input'!J2481=\"\",\"\",IF(OR('TSA Input'!J2481=\"Yes\",'TSA Input'!J2481=\"Contingent\"),'TSA Input'!D2481,\"\"))","v":""},{"$f":"IF('TSA Input'!J2481=\"\",\"\",IF(OR('TSA Input'!J2481=\"Yes\",'TSA Input'!J2481=\"Contingent\"),'TSA Input'!G2481,\"\"))","v":""},{"$f":"IF('TSA Input'!J2481=\"\",\"\",IF(OR('TSA Input'!J2481=\"Yes\",'TSA Input'!J2481=\"Contingent\"),'TSA Input'!F2481,\"\"))","v":""},"","Required","Required"]
["",null,{"$f":"IF('TSA Input'!J2482=\"\",\"\",IF(OR('TSA Input'!J2482=\"Yes\",'TSA Input'!J2482=\"Contingent\"),'TSA Input'!B2482,\"Ineligible\"))","v":""},{"$f":"IF('TSA Input'!J2482=\"\",\"\",IF(OR('TSA Input'!J2482=\"Yes\",'TSA Input'!J2482=\"Contingent\"),'TSA Input'!I2482,\"\"))","v":""},{"$f":"IF('TSA Input'!J2482=\"\",\"\",IF(OR('TSA Input'!J2482=\"Yes\",'TSA Input'!J2482=\"Contingent\"),'TSA Input'!C2482,\"\"))","v":""},{"$f":"IF('TSA Input'!J2482=\"\",\"\",IF(OR('TSA Input'!J2482=\"Yes\",'TSA Input'!J2482=\"Contingent\"),'TSA Input'!D2482,\"\"))","v":""},{"$f":"IF('TSA Input'!J2482=\"\",\"\",IF(OR('TSA Input'!J2482=\"Yes\",'TSA Input'!J2482=\"Contingent\"),'TSA Input'!G2482,\"\"))","v":""},{"$f":"IF('TSA Input'!J2482=\"\",\"\",IF(OR('TSA Input'!J2482=\"Yes\",'TSA Input'!J2482=\"Contingent\"),'TSA Input'!F2482,\"\"))","v":""},"",{"$f":"IF('TSA Input'!J2482=\"\",\"\",IF(OR('TSA Input'!J2482=\"Yes\",'TSA Input'!J2482=\"Contingent\"),'TSA Input'!D2482,\"\"))","v":""},{"$f":"IF('TSA Input'!J2482=\"\",\"\",IF(OR('TSA Input'!J2482=\"Yes\",'TSA Input'!J2482=\"Contingent\"),'TSA Input'!G2482,\"\"))","v":""},{"$f":"IF('TSA Input'!J2482=\"\",\"\",IF(OR('TSA Input'!J2482=\"Yes\",'TSA Input'!J2482=\"Contingent\"),'TSA Input'!F2482,\"\"))","v":""},"","Required","Required"]
["",null,{"$f":"IF('TSA Input'!J2483=\"\",\"\",IF(OR('TSA Input'!J2483=\"Yes\",'TSA Input'!J2483=\"Contingent\"),'TSA Input'!B2483,\"Ineligible\"))","v":""},{"$f":"IF('TSA Input'!J2483=\"\",\"\",IF(OR('TSA Input'!J2483=\"Yes\",'TSA Input'!J2483=\"Contingent\"),'TSA Input'!I2483,\"\"))","v":""},{"$f":"IF('TSA Input'!J2483=\"\",\"\",IF(OR('TSA Input'!J2483=\"Yes\",'TSA Input'!J2483=\"Contingent\"),'TSA Input'!C2483,\"\"))","v":""},{"$f":"IF('TSA Input'!J2483=\"\",\"\",IF(OR('TSA Input'!J2483=\"Yes\",'TSA Input'!J2483=\"Contingent\"),'TSA Input'!D2483,\"\"))","v":""},{"$f":"IF('TSA Input'!J2483=\"\",\"\",IF(OR('TSA Input'!J2483=\"Yes\",'TSA Input'!J2483=\"Contingent\"),'TSA Input'!G2483,\"\"))","v":""},{"$f":"IF('TSA Input'!J2483=\"\",\"\",IF(OR('TSA Input'!J2483=\"Yes\",'TSA Input'!J2483=\"Contingent\"),'TSA Input'!F2483,\"\"))","v":""},"",{"$f":"IF('TSA Input'!J2483=\"\",\"\",IF(OR('TSA Input'!J2483=\"Yes\",'TSA Input'!J2483=\"Contingent\"),'TSA Input'!D2483,\"\"))","v":""},{"$f":"IF('TSA Input'!J2483=\"\",\"\",IF(OR('TSA Input'!J2483=\"Yes\",'TSA Input'!J2483=\"Contingent\"),'TSA Input'!G2483,\"\"))","v":""},{"$f":"IF('TSA Input'!J2483=\"\",\"\",IF(OR('TSA Input'!J2483=\"Yes\",'TSA Input'!J2483=\"Contingent\"),'TSA Input'!F2483,\"\"))","v":""},"","Required","Required"]
["",null,{"$f":"IF('TSA Input'!J2484=\"\",\"\",IF(OR('TSA Input'!J2484=\"Yes\",'TSA Input'!J2484=\"Contingent\"),'TSA Input'!B2484,\"Ineligible\"))","v":""},{"$f":"IF('TSA Input'!J2484=\"\",\"\",IF(OR('TSA Input'!J2484=\"Yes\",'TSA Input'!J2484=\"Contingent\"),'TSA Input'!I2484,\"\"))","v":""},{"$f":"IF('TSA Input'!J2484=\"\",\"\",IF(OR('TSA Input'!J2484=\"Yes\",'TSA Input'!J2484=\"Contingent\"),'TSA Input'!C2484,\"\"))","v":""},{"$f":"IF('TSA Input'!J2484=\"\",\"\",IF(OR('TSA Input'!J2484=\"Yes\",'TSA Input'!J2484=\"Contingent\"),'TSA Input'!D2484,\"\"))","v":""},{"$f":"IF('TSA Input'!J2484=\"\",\"\",IF(OR('TSA Input'!J2484=\"Yes\",'TSA Input'!J2484=\"Contingent\"),'TSA Input'!G2484,\"\"))","v":""},{"$f":"IF('TSA Input'!J2484=\"\",\"\",IF(OR('TSA Input'!J2484=\"Yes\",'TSA Input'!J2484=\"Contingent\"),'TSA Input'!F2484,\"\"))","v":""},"",{"$f":"IF('TSA Input'!J2484=\"\",\"\",IF(OR('TSA Input'!J2484=\"Yes\",'TSA Input'!J2484=\"Contingent\"),'TSA Input'!D2484,\"\"))","v":""},{"$f":"IF('TSA Input'!J2484=\"\",\"\",IF(OR('TSA Input'!J2484=\"Yes\",'TSA Input'!J2484=\"Contingent\"),'TSA Input'!G2484,\"\"))","v":""},{"$f":"IF('TSA Input'!J2484=\"\",\"\",IF(OR('TSA Input'!J2484=\"Yes\",'TSA Input'!J2484=\"Contingent\"),'TSA Input'!F2484,\"\"))","v":""},"","Required","Required"]
["",null,{"$f":"IF('TSA Input'!J2485=\"\",\"\",IF(OR('TSA Input'!J2485=\"Yes\",'TSA Input'!J2485=\"Contingent\"),'TSA Input'!B2485,\"Ineligible\"))","v":""},{"$f":"IF('TSA Input'!J2485=\"\",\"\",IF(OR('TSA Input'!J2485=\"Yes\",'TSA Input'!J2485=\"Contingent\"),'TSA Input'!I2485,\"\"))","v":""},{"$f":"IF('TSA Input'!J2485=\"\",\"\",IF(OR('TSA Input'!J2485=\"Yes\",'TSA Input'!J2485=\"Contingent\"),'TSA Input'!C2485,\"\"))","v":""},{"$f":"IF('TSA Input'!J2485=\"\",\"\",IF(OR('TSA Input'!J2485=\"Yes\",'TSA Input'!J2485=\"Contingent\"),'TSA Input'!D2485,\"\"))","v":""},{"$f":"IF('TSA Input'!J2485=\"\",\"\",IF(OR('TSA Input'!J2485=\"Yes\",'TSA Input'!J2485=\"Contingent\"),'TSA Input'!G2485,\"\"))","v":""},{"$f":"IF('TSA Input'!J2485=\"\",\"\",IF(OR('TSA Input'!J2485=\"Yes\",'TSA Input'!J2485=\"Contingent\"),'TSA Input'!F2485,\"\"))","v":""},"",{"$f":"IF('TSA Input'!J2485=\"\",\"\",IF(OR('TSA Input'!J2485=\"Yes\",'TSA Input'!J2485=\"Contingent\"),'TSA Input'!D2485,\"\"))","v":""},{"$f":"IF('TSA Input'!J2485=\"\",\"\",IF(OR('TSA Input'!J2485=\"Yes\",'TSA Input'!J2485=\"Contingent\"),'TSA Input'!G2485,\"\"))","v":""},{"$f":"IF('TSA Input'!J2485=\"\",\"\",IF(OR('TSA Input'!J2485=\"Yes\",'TSA Input'!J2485=\"Contingent\"),'TSA Input'!F2485,\"\"))","v":""},"","Required","Required"]
["",null,{"$f":"IF('TSA Input'!J2486=\"\",\"\",IF(OR('TSA Input'!J2486=\"Yes\",'TSA Input'!J2486=\"Contingent\"),'TSA Input'!B2486,\"Ineligible\"))","v":""},{"$f":"IF('TSA Input'!J2486=\"\",\"\",IF(OR('TSA Input'!J2486=\"Yes\",'TSA Input'!J2486=\"Contingent\"),'TSA Input'!I2486,\"\"))","v":""},{"$f":"IF('TSA Input'!J2486=\"\",\"\",IF(OR('TSA Input'!J2486=\"Yes\",'TSA Input'!J2486=\"Contingent\"),'TSA Input'!C2486,\"\"))","v":""},{"$f":"IF('TSA Input'!J2486=\"\",\"\",IF(OR('TSA Input'!J2486=\"Yes\",'TSA Input'!J2486=\"Contingent\"),'TSA Input'!D2486,\"\"))","v":""},{"$f":"IF('TSA Input'!J2486=\"\",\"\",IF(OR('TSA Input'!J2486=\"Yes\",'TSA Input'!J2486=\"Contingent\"),'TSA Input'!G2486,\"\"))","v":""},{"$f":"IF('TSA Input'!J2486=\"\",\"\",IF(OR('TSA Input'!J2486=\"Yes\",'TSA Input'!J2486=\"Contingent\"),'TSA Input'!F2486,\"\"))","v":""},"",{"$f":"IF('TSA Input'!J2486=\"\",\"\",IF(OR('TSA Input'!J2486=\"Yes\",'TSA Input'!J2486=\"Contingent\"),'TSA Input'!D2486,\"\"))","v":""},{"$f":"IF('TSA Input'!J2486=\"\",\"\",IF(OR('TSA Input'!J2486=\"Yes\",'TSA Input'!J2486=\"Contingent\"),'TSA Input'!G2486,\"\"))","v":""},{"$f":"IF('TSA Input'!J2486=\"\",\"\",IF(OR('TSA Input'!J2486=\"Yes\",'TSA Input'!J2486=\"Contingent\"),'TSA Input'!F2486,\"\"))","v":""},"","Required","Required"]
["",null,{"$f":"IF('TSA Input'!J2487=\"\",\"\",IF(OR('TSA Input'!J2487=\"Yes\",'TSA Input'!J2487=\"Contingent\"),'TSA Input'!B2487,\"Ineligible\"))","v":""},{"$f":"IF('TSA Input'!J2487=\"\",\"\",IF(OR('TSA Input'!J2487=\"Yes\",'TSA Input'!J2487=\"Contingent\"),'TSA Input'!I2487,\"\"))","v":""},{"$f":"IF('TSA Input'!J2487=\"\",\"\",IF(OR('TSA Input'!J2487=\"Yes\",'TSA Input'!J2487=\"Contingent\"),'TSA Input'!C2487,\"\"))","v":""},{"$f":"IF('TSA Input'!J2487=\"\",\"\",IF(OR('TSA Input'!J2487=\"Yes\",'TSA Input'!J2487=\"Contingent\"),'TSA Input'!D2487,\"\"))","v":""},{"$f":"IF('TSA Input'!J2487=\"\",\"\",IF(OR('TSA Input'!J2487=\"Yes\",'TSA Input'!J2487=\"Contingent\"),'TSA Input'!G2487,\"\"))","v":""},{"$f":"IF('TSA Input'!J2487=\"\",\"\",IF(OR('TSA Input'!J2487=\"Yes\",'TSA Input'!J2487=\"Contingent\"),'TSA Input'!F2487,\"\"))","v":""},"",{"$f":"IF('TSA Input'!J2487=\"\",\"\",IF(OR('TSA Input'!J2487=\"Yes\",'TSA Input'!J2487=\"Contingent\"),'TSA Input'!D2487,\"\"))","v":""},{"$f":"IF('TSA Input'!J2487=\"\",\"\",IF(OR('TSA Input'!J2487=\"Yes\",'TSA Input'!J2487=\"Contingent\"),'TSA Input'!G2487,\"\"))","v":""},{"$f":"IF('TSA Input'!J2487=\"\",\"\",IF(OR('TSA Input'!J2487=\"Yes\",'TSA Input'!J2487=\"Contingent\"),'TSA Input'!F2487,\"\"))","v":""},"","Required","Required"]
["",null,{"$f":"IF('TSA Input'!J2488=\"\",\"\",IF(OR('TSA Input'!J2488=\"Yes\",'TSA Input'!J2488=\"Contingent\"),'TSA Input'!B2488,\"Ineligible\"))","v":""},{"$f":"IF('TSA Input'!J2488=\"\",\"\",IF(OR('TSA Input'!J2488=\"Yes\",'TSA Input'!J2488=\"Contingent\"),'TSA Input'!I2488,\"\"))","v":""},{"$f":"IF('TSA Input'!J2488=\"\",\"\",IF(OR('TSA Input'!J2488=\"Yes\",'TSA Input'!J2488=\"Contingent\"),'TSA Input'!C2488,\"\"))","v":""},{"$f":"IF('TSA Input'!J2488=\"\",\"\",IF(OR('TSA Input'!J2488=\"Yes\",'TSA Input'!J2488=\"Contingent\"),'TSA Input'!D2488,\"\"))","v":""},{"$f":"IF('TSA Input'!J2488=\"\",\"\",IF(OR('TSA Input'!J2488=\"Yes\",'TSA Input'!J2488=\"Contingent\"),'TSA Input'!G2488,\"\"))","v":""},{"$f":"IF('TSA Input'!J2488=\"\",\"\",IF(OR('TSA Input'!J2488=\"Yes\",'TSA Input'!J2488=\"Contingent\"),'TSA Input'!F2488,\"\"))","v":""},"",{"$f":"IF('TSA Input'!J2488=\"\",\"\",IF(OR('TSA Input'!J2488=\"Yes\",'TSA Input'!J2488=\"Contingent\"),'TSA Input'!D2488,\"\"))","v":""},{"$f":"IF('TSA Input'!J2488=\"\",\"\",IF(OR('TSA Input'!J2488=\"Yes\",'TSA Input'!J2488=\"Contingent\"),'TSA Input'!G2488,\"\"))","v":""},{"$f":"IF('TSA Input'!J2488=\"\",\"\",IF(OR('TSA Input'!J2488=\"Yes\",'TSA Input'!J2488=\"Contingent\"),'TSA Input'!F2488,\"\"))","v":""},"","Required","Required"]
["",null,{"$f":"IF('TSA Input'!J2489=\"\",\"\",IF(OR('TSA Input'!J2489=\"Yes\",'TSA Input'!J2489=\"Contingent\"),'TSA Input'!B2489,\"Ineligible\"))","v":""},{"$f":"IF('TSA Input'!J2489=\"\",\"\",IF(OR('TSA Input'!J2489=\"Yes\",'TSA Input'!J2489=\"Contingent\"),'TSA Input'!I2489,\"\"))","v":""},{"$f":"IF('TSA Input'!J2489=\"\",\"\",IF(OR('TSA Input'!J2489=\"Yes\",'TSA Input'!J2489=\"Contingent\"),'TSA Input'!C2489,\"\"))","v":""},{"$f":"IF('TSA Input'!J2489=\"\",\"\",IF(OR('TSA Input'!J2489=\"Yes\",'TSA Input'!J2489=\"Contingent\"),'TSA Input'!D2489,\"\"))","v":""},{"$f":"IF('TSA Input'!J2489=\"\",\"\",IF(OR('TSA Input'!J2489=\"Yes\",'TSA Input'!J2489=\"Contingent\"),'TSA Input'!G2489,\"\"))","v":""},{"$f":"IF('TSA Input'!J2489=\"\",\"\",IF(OR('TSA Input'!J2489=\"Yes\",'TSA Input'!J2489=\"Contingent\"),'TSA Input'!F2489,\"\"))","v":""},"",{"$f":"IF('TSA Input'!J2489=\"\",\"\",IF(OR('TSA Input'!J2489=\"Yes\",'TSA Input'!J2489=\"Contingent\"),'TSA Input'!D2489,\"\"))","v":""},{"$f":"IF('TSA Input'!J2489=\"\",\"\",IF(OR('TSA Input'!J2489=\"Yes\",'TSA Input'!J2489=\"Contingent\"),'TSA Input'!G2489,\"\"))","v":""},{"$f":"IF('TSA Input'!J2489=\"\",\"\",IF(OR('TSA Input'!J2489=\"Yes\",'TSA Input'!J2489=\"Contingent\"),'TSA Input'!F2489,\"\"))","v":""},"","Required","Required"]
["",null,{"$f":"IF('TSA Input'!J2490=\"\",\"\",IF(OR('TSA Input'!J2490=\"Yes\",'TSA Input'!J2490=\"Contingent\"),'TSA Input'!B2490,\"Ineligible\"))","v":""},{"$f":"IF('TSA Input'!J2490=\"\",\"\",IF(OR('TSA Input'!J2490=\"Yes\",'TSA Input'!J2490=\"Contingent\"),'TSA Input'!I2490,\"\"))","v":""},{"$f":"IF('TSA Input'!J2490=\"\",\"\",IF(OR('TSA Input'!J2490=\"Yes\",'TSA Input'!J2490=\"Contingent\"),'TSA Input'!C2490,\"\"))","v":""},{"$f":"IF('TSA Input'!J2490=\"\",\"\",IF(OR('TSA Input'!J2490=\"Yes\",'TSA Input'!J2490=\"Contingent\"),'TSA Input'!D2490,\"\"))","v":""},{"$f":"IF('TSA Input'!J2490=\"\",\"\",IF(OR('TSA Input'!J2490=\"Yes\",'TSA Input'!J2490=\"Contingent\"),'TSA Input'!G2490,\"\"))","v":""},{"$f":"IF('TSA Input'!J2490=\"\",\"\",IF(OR('TSA Input'!J2490=\"Yes\",'TSA Input'!J2490=\"Contingent\"),'TSA Input'!F2490,\"\"))","v":""},"",{"$f":"IF('TSA Input'!J2490=\"\",\"\",IF(OR('TSA Input'!J2490=\"Yes\",'TSA Input'!J2490=\"Contingent\"),'TSA Input'!D2490,\"\"))","v":""},{"$f":"IF('TSA Input'!J2490=\"\",\"\",IF(OR('TSA Input'!J2490=\"Yes\",'TSA Input'!J2490=\"Contingent\"),'TSA Input'!G2490,\"\"))","v":""},{"$f":"IF('TSA Input'!J2490=\"\",\"\",IF(OR('TSA Input'!J2490=\"Yes\",'TSA Input'!J2490=\"Contingent\"),'TSA Input'!F2490,\"\"))","v":""},"","Required","Required"]
["",null,{"$f":"IF('TSA Input'!J2491=\"\",\"\",IF(OR('TSA Input'!J2491=\"Yes\",'TSA Input'!J2491=\"Contingent\"),'TSA Input'!B2491,\"Ineligible\"))","v":""},{"$f":"IF('TSA Input'!J2491=\"\",\"\",IF(OR('TSA Input'!J2491=\"Yes\",'TSA Input'!J2491=\"Contingent\"),'TSA Input'!I2491,\"\"))","v":""},{"$f":"IF('TSA Input'!J2491=\"\",\"\",IF(OR('TSA Input'!J2491=\"Yes\",'TSA Input'!J2491=\"Contingent\"),'TSA Input'!C2491,\"\"))","v":""},{"$f":"IF('TSA Input'!J2491=\"\",\"\",IF(OR('TSA Input'!J2491=\"Yes\",'TSA Input'!J2491=\"Contingent\"),'TSA Input'!D2491,\"\"))","v":""},{"$f":"IF('TSA Input'!J2491=\"\",\"\",IF(OR('TSA Input'!J2491=\"Yes\",'TSA Input'!J2491=\"Contingent\"),'TSA Input'!G2491,\"\"))","v":""},{"$f":"IF('TSA Input'!J2491=\"\",\"\",IF(OR('TSA Input'!J2491=\"Yes\",'TSA Input'!J2491=\"Contingent\"),'TSA Input'!F2491,\"\"))","v":""},"",{"$f":"IF('TSA Input'!J2491=\"\",\"\",IF(OR('TSA Input'!J2491=\"Yes\",'TSA Input'!J2491=\"Contingent\"),'TSA Input'!D2491,\"\"))","v":""},{"$f":"IF('TSA Input'!J2491=\"\",\"\",IF(OR('TSA Input'!J2491=\"Yes\",'TSA Input'!J2491=\"Contingent\"),'TSA Input'!G2491,\"\"))","v":""},{"$f":"IF('TSA Input'!J2491=\"\",\"\",IF(OR('TSA Input'!J2491=\"Yes\",'TSA Input'!J2491=\"Contingent\"),'TSA Input'!F2491,\"\"))","v":""},"","Required","Required"]
["",null,{"$f":"IF('TSA Input'!J2492=\"\",\"\",IF(OR('TSA Input'!J2492=\"Yes\",'TSA Input'!J2492=\"Contingent\"),'TSA Input'!B2492,\"Ineligible\"))","v":""},{"$f":"IF('TSA Input'!J2492=\"\",\"\",IF(OR('TSA Input'!J2492=\"Yes\",'TSA Input'!J2492=\"Contingent\"),'TSA Input'!I2492,\"\"))","v":""},{"$f":"IF('TSA Input'!J2492=\"\",\"\",IF(OR('TSA Input'!J2492=\"Yes\",'TSA Input'!J2492=\"Contingent\"),'TSA Input'!C2492,\"\"))","v":""},{"$f":"IF('TSA Input'!J2492=\"\",\"\",IF(OR('TSA Input'!J2492=\"Yes\",'TSA Input'!J2492=\"Contingent\"),'TSA Input'!D2492,\"\"))","v":""},{"$f":"IF('TSA Input'!J2492=\"\",\"\",IF(OR('TSA Input'!J2492=\"Yes\",'TSA Input'!J2492=\"Contingent\"),'TSA Input'!G2492,\"\"))","v":""},{"$f":"IF('TSA Input'!J2492=\"\",\"\",IF(OR('TSA Input'!J2492=\"Yes\",'TSA Input'!J2492=\"Contingent\"),'TSA Input'!F2492,\"\"))","v":""},"",{"$f":"IF('TSA Input'!J2492=\"\",\"\",IF(OR('TSA Input'!J2492=\"Yes\",'TSA Input'!J2492=\"Contingent\"),'TSA Input'!D2492,\"\"))","v":""},{"$f":"IF('TSA Input'!J2492=\"\",\"\",IF(OR('TSA Input'!J2492=\"Yes\",'TSA Input'!J2492=\"Contingent\"),'TSA Input'!G2492,\"\"))","v":""},{"$f":"IF('TSA Input'!J2492=\"\",\"\",IF(OR('TSA Input'!J2492=\"Yes\",'TSA Input'!J2492=\"Contingent\"),'TSA Input'!F2492,\"\"))","v":""},"","Required","Required"]
["",null,{"$f":"IF('TSA Input'!J2493=\"\",\"\",IF(OR('TSA Input'!J2493=\"Yes\",'TSA Input'!J2493=\"Contingent\"),'TSA Input'!B2493,\"Ineligible\"))","v":""},{"$f":"IF('TSA Input'!J2493=\"\",\"\",IF(OR('TSA Input'!J2493=\"Yes\",'TSA Input'!J2493=\"Contingent\"),'TSA Input'!I2493,\"\"))","v":""},{"$f":"IF('TSA Input'!J2493=\"\",\"\",IF(OR('TSA Input'!J2493=\"Yes\",'TSA Input'!J2493=\"Contingent\"),'TSA Input'!C2493,\"\"))","v":""},{"$f":"IF('TSA Input'!J2493=\"\",\"\",IF(OR('TSA Input'!J2493=\"Yes\",'TSA Input'!J2493=\"Contingent\"),'TSA Input'!D2493,\"\"))","v":""},{"$f":"IF('TSA Input'!J2493=\"\",\"\",IF(OR('TSA Input'!J2493=\"Yes\",'TSA Input'!J2493=\"Contingent\"),'TSA Input'!G2493,\"\"))","v":""},{"$f":"IF('TSA Input'!J2493=\"\",\"\",IF(OR('TSA Input'!J2493=\"Yes\",'TSA Input'!J2493=\"Contingent\"),'TSA Input'!F2493,\"\"))","v":""},"",{"$f":"IF('TSA Input'!J2493=\"\",\"\",IF(OR('TSA Input'!J2493=\"Yes\",'TSA Input'!J2493=\"Contingent\"),'TSA Input'!D2493,\"\"))","v":""},{"$f":"IF('TSA Input'!J2493=\"\",\"\",IF(OR('TSA Input'!J2493=\"Yes\",'TSA Input'!J2493=\"Contingent\"),'TSA Input'!G2493,\"\"))","v":""},{"$f":"IF('TSA Input'!J2493=\"\",\"\",IF(OR('TSA Input'!J2493=\"Yes\",'TSA Input'!J2493=\"Contingent\"),'TSA Input'!F2493,\"\"))","v":""},"","Required","Required"]
["",null,{"$f":"IF('TSA Input'!J2494=\"\",\"\",IF(OR('TSA Input'!J2494=\"Yes\",'TSA Input'!J2494=\"Contingent\"),'TSA Input'!B2494,\"Ineligible\"))","v":""},{"$f":"IF('TSA Input'!J2494=\"\",\"\",IF(OR('TSA Input'!J2494=\"Yes\",'TSA Input'!J2494=\"Contingent\"),'TSA Input'!I2494,\"\"))","v":""},{"$f":"IF('TSA Input'!J2494=\"\",\"\",IF(OR('TSA Input'!J2494=\"Yes\",'TSA Input'!J2494=\"Contingent\"),'TSA Input'!C2494,\"\"))","v":""},{"$f":"IF('TSA Input'!J2494=\"\",\"\",IF(OR('TSA Input'!J2494=\"Yes\",'TSA Input'!J2494=\"Contingent\"),'TSA Input'!D2494,\"\"))","v":""},{"$f":"IF('TSA Input'!J2494=\"\",\"\",IF(OR('TSA Input'!J2494=\"Yes\",'TSA Input'!J2494=\"Contingent\"),'TSA Input'!G2494,\"\"))","v":""},{"$f":"IF('TSA Input'!J2494=\"\",\"\",IF(OR('TSA Input'!J2494=\"Yes\",'TSA Input'!J2494=\"Contingent\"),'TSA Input'!F2494,\"\"))","v":""},"",{"$f":"IF('TSA Input'!J2494=\"\",\"\",IF(OR('TSA Input'!J2494=\"Yes\",'TSA Input'!J2494=\"Contingent\"),'TSA Input'!D2494,\"\"))","v":""},{"$f":"IF('TSA Input'!J2494=\"\",\"\",IF(OR('TSA Input'!J2494=\"Yes\",'TSA Input'!J2494=\"Contingent\"),'TSA Input'!G2494,\"\"))","v":""},{"$f":"IF('TSA Input'!J2494=\"\",\"\",IF(OR('TSA Input'!J2494=\"Yes\",'TSA Input'!J2494=\"Contingent\"),'TSA Input'!F2494,\"\"))","v":""},"","Required","Required"]
["",null,{"$f":"IF('TSA Input'!J2495=\"\",\"\",IF(OR('TSA Input'!J2495=\"Yes\",'TSA Input'!J2495=\"Contingent\"),'TSA Input'!B2495,\"Ineligible\"))","v":""},{"$f":"IF('TSA Input'!J2495=\"\",\"\",IF(OR('TSA Input'!J2495=\"Yes\",'TSA Input'!J2495=\"Contingent\"),'TSA Input'!I2495,\"\"))","v":""},{"$f":"IF('TSA Input'!J2495=\"\",\"\",IF(OR('TSA Input'!J2495=\"Yes\",'TSA Input'!J2495=\"Contingent\"),'TSA Input'!C2495,\"\"))","v":""},{"$f":"IF('TSA Input'!J2495=\"\",\"\",IF(OR('TSA Input'!J2495=\"Yes\",'TSA Input'!J2495=\"Contingent\"),'TSA Input'!D2495,\"\"))","v":""},{"$f":"IF('TSA Input'!J2495=\"\",\"\",IF(OR('TSA Input'!J2495=\"Yes\",'TSA Input'!J2495=\"Contingent\"),'TSA Input'!G2495,\"\"))","v":""},{"$f":"IF('TSA Input'!J2495=\"\",\"\",IF(OR('TSA Input'!J2495=\"Yes\",'TSA Input'!J2495=\"Contingent\"),'TSA Input'!F2495,\"\"))","v":""},"",{"$f":"IF('TSA Input'!J2495=\"\",\"\",IF(OR('TSA Input'!J2495=\"Yes\",'TSA Input'!J2495=\"Contingent\"),'TSA Input'!D2495,\"\"))","v":""},{"$f":"IF('TSA Input'!J2495=\"\",\"\",IF(OR('TSA Input'!J2495=\"Yes\",'TSA Input'!J2495=\"Contingent\"),'TSA Input'!G2495,\"\"))","v":""},{"$f":"IF('TSA Input'!J2495=\"\",\"\",IF(OR('TSA Input'!J2495=\"Yes\",'TSA Input'!J2495=\"Contingent\"),'TSA Input'!F2495,\"\"))","v":""},"","Required","Required"]
["",null,{"$f":"IF('TSA Input'!J2496=\"\",\"\",IF(OR('TSA Input'!J2496=\"Yes\",'TSA Input'!J2496=\"Contingent\"),'TSA Input'!B2496,\"Ineligible\"))","v":""},{"$f":"IF('TSA Input'!J2496=\"\",\"\",IF(OR('TSA Input'!J2496=\"Yes\",'TSA Input'!J2496=\"Contingent\"),'TSA Input'!I2496,\"\"))","v":""},{"$f":"IF('TSA Input'!J2496=\"\",\"\",IF(OR('TSA Input'!J2496=\"Yes\",'TSA Input'!J2496=\"Contingent\"),'TSA Input'!C2496,\"\"))","v":""},{"$f":"IF('TSA Input'!J2496=\"\",\"\",IF(OR('TSA Input'!J2496=\"Yes\",'TSA Input'!J2496=\"Contingent\"),'TSA Input'!D2496,\"\"))","v":""},{"$f":"IF('TSA Input'!J2496=\"\",\"\",IF(OR('TSA Input'!J2496=\"Yes\",'TSA Input'!J2496=\"Contingent\"),'TSA Input'!G2496,\"\"))","v":""},{"$f":"IF('TSA Input'!J2496=\"\",\"\",IF(OR('TSA Input'!J2496=\"Yes\",'TSA Input'!J2496=\"Contingent\"),'TSA Input'!F2496,\"\"))","v":""},"",{"$f":"IF('TSA Input'!J2496=\"\",\"\",IF(OR('TSA Input'!J2496=\"Yes\",'TSA Input'!J2496=\"Contingent\"),'TSA Input'!D2496,\"\"))","v":""},{"$f":"IF('TSA Input'!J2496=\"\",\"\",IF(OR('TSA Input'!J2496=\"Yes\",'TSA Input'!J2496=\"Contingent\"),'TSA Input'!G2496,\"\"))","v":""},{"$f":"IF('TSA Input'!J2496=\"\",\"\",IF(OR('TSA Input'!J2496=\"Yes\",'TSA Input'!J2496=\"Contingent\"),'TSA Input'!F2496,\"\"))","v":""},"","Required","Required"]
["",null,{"$f":"IF('TSA Input'!J2497=\"\",\"\",IF(OR('TSA Input'!J2497=\"Yes\",'TSA Input'!J2497=\"Contingent\"),'TSA Input'!B2497,\"Ineligible\"))","v":""},{"$f":"IF('TSA Input'!J2497=\"\",\"\",IF(OR('TSA Input'!J2497=\"Yes\",'TSA Input'!J2497=\"Contingent\"),'TSA Input'!I2497,\"\"))","v":""},{"$f":"IF('TSA Input'!J2497=\"\",\"\",IF(OR('TSA Input'!J2497=\"Yes\",'TSA Input'!J2497=\"Contingent\"),'TSA Input'!C2497,\"\"))","v":""},{"$f":"IF('TSA Input'!J2497=\"\",\"\",IF(OR('TSA Input'!J2497=\"Yes\",'TSA Input'!J2497=\"Contingent\"),'TSA Input'!D2497,\"\"))","v":""},{"$f":"IF('TSA Input'!J2497=\"\",\"\",IF(OR('TSA Input'!J2497=\"Yes\",'TSA Input'!J2497=\"Contingent\"),'TSA Input'!G2497,\"\"))","v":""},{"$f":"IF('TSA Input'!J2497=\"\",\"\",IF(OR('TSA Input'!J2497=\"Yes\",'TSA Input'!J2497=\"Contingent\"),'TSA Input'!F2497,\"\"))","v":""},"",{"$f":"IF('TSA Input'!J2497=\"\",\"\",IF(OR('TSA Input'!J2497=\"Yes\",'TSA Input'!J2497=\"Contingent\"),'TSA Input'!D2497,\"\"))","v":""},{"$f":"IF('TSA Input'!J2497=\"\",\"\",IF(OR('TSA Input'!J2497=\"Yes\",'TSA Input'!J2497=\"Contingent\"),'TSA Input'!G2497,\"\"))","v":""},{"$f":"IF('TSA Input'!J2497=\"\",\"\",IF(OR('TSA Input'!J2497=\"Yes\",'TSA Input'!J2497=\"Contingent\"),'TSA Input'!F2497,\"\"))","v":""},"","Required","Required"]
["",null,{"$f":"IF('TSA Input'!J2498=\"\",\"\",IF(OR('TSA Input'!J2498=\"Yes\",'TSA Input'!J2498=\"Contingent\"),'TSA Input'!B2498,\"Ineligible\"))","v":""},{"$f":"IF('TSA Input'!J2498=\"\",\"\",IF(OR('TSA Input'!J2498=\"Yes\",'TSA Input'!J2498=\"Contingent\"),'TSA Input'!I2498,\"\"))","v":""},{"$f":"IF('TSA Input'!J2498=\"\",\"\",IF(OR('TSA Input'!J2498=\"Yes\",'TSA Input'!J2498=\"Contingent\"),'TSA Input'!C2498,\"\"))","v":""},{"$f":"IF('TSA Input'!J2498=\"\",\"\",IF(OR('TSA Input'!J2498=\"Yes\",'TSA Input'!J2498=\"Contingent\"),'TSA Input'!D2498,\"\"))","v":""},{"$f":"IF('TSA Input'!J2498=\"\",\"\",IF(OR('TSA Input'!J2498=\"Yes\",'TSA Input'!J2498=\"Contingent\"),'TSA Input'!G2498,\"\"))","v":""},{"$f":"IF('TSA Input'!J2498=\"\",\"\",IF(OR('TSA Input'!J2498=\"Yes\",'TSA Input'!J2498=\"Contingent\"),'TSA Input'!F2498,\"\"))","v":""},"",{"$f":"IF('TSA Input'!J2498=\"\",\"\",IF(OR('TSA Input'!J2498=\"Yes\",'TSA Input'!J2498=\"Contingent\"),'TSA Input'!D2498,\"\"))","v":""},{"$f":"IF('TSA Input'!J2498=\"\",\"\",IF(OR('TSA Input'!J2498=\"Yes\",'TSA Input'!J2498=\"Contingent\"),'TSA Input'!G2498,\"\"))","v":""},{"$f":"IF('TSA Input'!J2498=\"\",\"\",IF(OR('TSA Input'!J2498=\"Yes\",'TSA Input'!J2498=\"Contingent\"),'TSA Input'!F2498,\"\"))","v":""},"","Required","Required"]
["",null,{"$f":"IF('TSA Input'!J2499=\"\",\"\",IF(OR('TSA Input'!J2499=\"Yes\",'TSA Input'!J2499=\"Contingent\"),'TSA Input'!B2499,\"Ineligible\"))","v":""},{"$f":"IF('TSA Input'!J2499=\"\",\"\",IF(OR('TSA Input'!J2499=\"Yes\",'TSA Input'!J2499=\"Contingent\"),'TSA Input'!I2499,\"\"))","v":""},{"$f":"IF('TSA Input'!J2499=\"\",\"\",IF(OR('TSA Input'!J2499=\"Yes\",'TSA Input'!J2499=\"Contingent\"),'TSA Input'!C2499,\"\"))","v":""},{"$f":"IF('TSA Input'!J2499=\"\",\"\",IF(OR('TSA Input'!J2499=\"Yes\",'TSA Input'!J2499=\"Contingent\"),'TSA Input'!D2499,\"\"))","v":""},{"$f":"IF('TSA Input'!J2499=\"\",\"\",IF(OR('TSA Input'!J2499=\"Yes\",'TSA Input'!J2499=\"Contingent\"),'TSA Input'!G2499,\"\"))","v":""},{"$f":"IF('TSA Input'!J2499=\"\",\"\",IF(OR('TSA Input'!J2499=\"Yes\",'TSA Input'!J2499=\"Contingent\"),'TSA Input'!F2499,\"\"))","v":""},"",{"$f":"IF('TSA Input'!J2499=\"\",\"\",IF(OR('TSA Input'!J2499=\"Yes\",'TSA Input'!J2499=\"Contingent\"),'TSA Input'!D2499,\"\"))","v":""},{"$f":"IF('TSA Input'!J2499=\"\",\"\",IF(OR('TSA Input'!J2499=\"Yes\",'TSA Input'!J2499=\"Contingent\"),'TSA Input'!G2499,\"\"))","v":""},{"$f":"IF('TSA Input'!J2499=\"\",\"\",IF(OR('TSA Input'!J2499=\"Yes\",'TSA Input'!J2499=\"Contingent\"),'TSA Input'!F2499,\"\"))","v":""},"","Required","Required"]
["",null,{"$f":"IF('TSA Input'!J2500=\"\",\"\",IF(OR('TSA Input'!J2500=\"Yes\",'TSA Input'!J2500=\"Contingent\"),'TSA Input'!B2500,\"Ineligible\"))","v":""},{"$f":"IF('TSA Input'!J2500=\"\",\"\",IF(OR('TSA Input'!J2500=\"Yes\",'TSA Input'!J2500=\"Contingent\"),'TSA Input'!I2500,\"\"))","v":""},{"$f":"IF('TSA Input'!J2500=\"\",\"\",IF(OR('TSA Input'!J2500=\"Yes\",'TSA Input'!J2500=\"Contingent\"),'TSA Input'!C2500,\"\"))","v":""},{"$f":"IF('TSA Input'!J2500=\"\",\"\",IF(OR('TSA Input'!J2500=\"Yes\",'TSA Input'!J2500=\"Contingent\"),'TSA Input'!D2500,\"\"))","v":""},{"$f":"IF('TSA Input'!J2500=\"\",\"\",IF(OR('TSA Input'!J2500=\"Yes\",'TSA Input'!J2500=\"Contingent\"),'TSA Input'!G2500,\"\"))","v":""},{"$f":"IF('TSA Input'!J2500=\"\",\"\",IF(OR('TSA Input'!J2500=\"Yes\",'TSA Input'!J2500=\"Contingent\"),'TSA Input'!F2500,\"\"))","v":""},{"$f":"IF($C2538=\"\",\"\",SUM(F2538:H2538))","v":""},{"$f":"IF('TSA Input'!J2500=\"\",\"\",IF(OR('TSA Input'!J2500=\"Yes\",'TSA Input'!J2500=\"Contingent\"),'TSA Input'!D2500,\"\"))","v":""},{"$f":"IF('TSA Input'!J2500=\"\",\"\",IF(OR('TSA Input'!J2500=\"Yes\",'TSA Input'!J2500=\"Contingent\"),'TSA Input'!G2500,\"\"))","v":""},{"$f":"IF('TSA Input'!J2500=\"\",\"\",IF(OR('TSA Input'!J2500=\"Yes\",'TSA Input'!J2500=\"Contingent\"),'TSA Input'!F2500,\"\"))","v":""},{"$f":"IF($C2538=\"\",\"\",SUM(J2538:L2538))","v":""},"Required","Required"]
["",null,{"$f":"IF('TSA Input'!J2501=\"\",\"\",IF(OR('TSA Input'!J2501=\"Yes\",'TSA Input'!J2501=\"Contingent\"),'TSA Input'!B2501,\"Ineligible\"))","v":""},{"$f":"IF('TSA Input'!J2501=\"\",\"\",IF(OR('TSA Input'!J2501=\"Yes\",'TSA Input'!J2501=\"Contingent\"),'TSA Input'!I2501,\"\"))","v":""},{"$f":"IF('TSA Input'!J2501=\"\",\"\",IF(OR('TSA Input'!J2501=\"Yes\",'TSA Input'!J2501=\"Contingent\"),'TSA Input'!C2501,\"\"))","v":""},{"$f":"IF('TSA Input'!J2501=\"\",\"\",IF(OR('TSA Input'!J2501=\"Yes\",'TSA Input'!J2501=\"Contingent\"),'TSA Input'!D2501,\"\"))","v":""},{"$f":"IF('TSA Input'!J2501=\"\",\"\",IF(OR('TSA Input'!J2501=\"Yes\",'TSA Input'!J2501=\"Contingent\"),'TSA Input'!G2501,\"\"))","v":""},{"$f":"IF('TSA Input'!J2501=\"\",\"\",IF(OR('TSA Input'!J2501=\"Yes\",'TSA Input'!J2501=\"Contingent\"),'TSA Input'!F2501,\"\"))","v":""},"",{"$f":"IF('TSA Input'!J2501=\"\",\"\",IF(OR('TSA Input'!J2501=\"Yes\",'TSA Input'!J2501=\"Contingent\"),'TSA Input'!D2501,\"\"))","v":""},{"$f":"IF('TSA Input'!J2501=\"\",\"\",IF(OR('TSA Input'!J2501=\"Yes\",'TSA Input'!J2501=\"Contingent\"),'TSA Input'!G2501,\"\"))","v":""},{"$f":"IF('TSA Input'!J2501=\"\",\"\",IF(OR('TSA Input'!J2501=\"Yes\",'TSA Input'!J2501=\"Contingent\"),'TSA Input'!F2501,\"\"))","v":""},"","Required","Required"]
["",null,{"$f":"IF('TSA Input'!J2502=\"\",\"\",IF(OR('TSA Input'!J2502=\"Yes\",'TSA Input'!J2502=\"Contingent\"),'TSA Input'!B2502,\"Ineligible\"))","v":""},{"$f":"IF('TSA Input'!J2502=\"\",\"\",IF(OR('TSA Input'!J2502=\"Yes\",'TSA Input'!J2502=\"Contingent\"),'TSA Input'!I2502,\"\"))","v":""},{"$f":"IF('TSA Input'!J2502=\"\",\"\",IF(OR('TSA Input'!J2502=\"Yes\",'TSA Input'!J2502=\"Contingent\"),'TSA Input'!C2502,\"\"))","v":""},{"$f":"IF('TSA Input'!J2502=\"\",\"\",IF(OR('TSA Input'!J2502=\"Yes\",'TSA Input'!J2502=\"Contingent\"),'TSA Input'!D2502,\"\"))","v":""},{"$f":"IF('TSA Input'!J2502=\"\",\"\",IF(OR('TSA Input'!J2502=\"Yes\",'TSA Input'!J2502=\"Contingent\"),'TSA Input'!G2502,\"\"))","v":""},{"$f":"IF('TSA Input'!J2502=\"\",\"\",IF(OR('TSA Input'!J2502=\"Yes\",'TSA Input'!J2502=\"Contingent\"),'TSA Input'!F2502,\"\"))","v":""},"",{"$f":"IF('TSA Input'!J2502=\"\",\"\",IF(OR('TSA Input'!J2502=\"Yes\",'TSA Input'!J2502=\"Contingent\"),'TSA Input'!D2502,\"\"))","v":""},{"$f":"IF('TSA Input'!J2502=\"\",\"\",IF(OR('TSA Input'!J2502=\"Yes\",'TSA Input'!J2502=\"Contingent\"),'TSA Input'!G2502,\"\"))","v":""},{"$f":"IF('TSA Input'!J2502=\"\",\"\",IF(OR('TSA Input'!J2502=\"Yes\",'TSA Input'!J2502=\"Contingent\"),'TSA Input'!F2502,\"\"))","v":""},"","Required","Required"]
["",null,{"$f":"IF('TSA Input'!J2503=\"\",\"\",IF(OR('TSA Input'!J2503=\"Yes\",'TSA Input'!J2503=\"Contingent\"),'TSA Input'!B2503,\"Ineligible\"))","v":""},{"$f":"IF('TSA Input'!J2503=\"\",\"\",IF(OR('TSA Input'!J2503=\"Yes\",'TSA Input'!J2503=\"Contingent\"),'TSA Input'!I2503,\"\"))","v":""},{"$f":"IF('TSA Input'!J2503=\"\",\"\",IF(OR('TSA Input'!J2503=\"Yes\",'TSA Input'!J2503=\"Contingent\"),'TSA Input'!C2503,\"\"))","v":""},{"$f":"IF('TSA Input'!J2503=\"\",\"\",IF(OR('TSA Input'!J2503=\"Yes\",'TSA Input'!J2503=\"Contingent\"),'TSA Input'!D2503,\"\"))","v":""},{"$f":"IF('TSA Input'!J2503=\"\",\"\",IF(OR('TSA Input'!J2503=\"Yes\",'TSA Input'!J2503=\"Contingent\"),'TSA Input'!G2503,\"\"))","v":""},{"$f":"IF('TSA Input'!J2503=\"\",\"\",IF(OR('TSA Input'!J2503=\"Yes\",'TSA Input'!J2503=\"Contingent\"),'TSA Input'!F2503,\"\"))","v":""},"",{"$f":"IF('TSA Input'!J2503=\"\",\"\",IF(OR('TSA Input'!J2503=\"Yes\",'TSA Input'!J2503=\"Contingent\"),'TSA Input'!D2503,\"\"))","v":""},{"$f":"IF('TSA Input'!J2503=\"\",\"\",IF(OR('TSA Input'!J2503=\"Yes\",'TSA Input'!J2503=\"Contingent\"),'TSA Input'!G2503,\"\"))","v":""},{"$f":"IF('TSA Input'!J2503=\"\",\"\",IF(OR('TSA Input'!J2503=\"Yes\",'TSA Input'!J2503=\"Contingent\"),'TSA Input'!F2503,\"\"))","v":""},"","Required","Required"]
["",null,{"$f":"IF('TSA Input'!J2504=\"\",\"\",IF(OR('TSA Input'!J2504=\"Yes\",'TSA Input'!J2504=\"Contingent\"),'TSA Input'!B2504,\"Ineligible\"))","v":""},{"$f":"IF('TSA Input'!J2504=\"\",\"\",IF(OR('TSA Input'!J2504=\"Yes\",'TSA Input'!J2504=\"Contingent\"),'TSA Input'!I2504,\"\"))","v":""},{"$f":"IF('TSA Input'!J2504=\"\",\"\",IF(OR('TSA Input'!J2504=\"Yes\",'TSA Input'!J2504=\"Contingent\"),'TSA Input'!C2504,\"\"))","v":""},{"$f":"IF('TSA Input'!J2504=\"\",\"\",IF(OR('TSA Input'!J2504=\"Yes\",'TSA Input'!J2504=\"Contingent\"),'TSA Input'!D2504,\"\"))","v":""},{"$f":"IF('TSA Input'!J2504=\"\",\"\",IF(OR('TSA Input'!J2504=\"Yes\",'TSA Input'!J2504=\"Contingent\"),'TSA Input'!G2504,\"\"))","v":""},{"$f":"IF('TSA Input'!J2504=\"\",\"\",IF(OR('TSA Input'!J2504=\"Yes\",'TSA Input'!J2504=\"Contingent\"),'TSA Input'!F2504,\"\"))","v":""},"",{"$f":"IF('TSA Input'!J2504=\"\",\"\",IF(OR('TSA Input'!J2504=\"Yes\",'TSA Input'!J2504=\"Contingent\"),'TSA Input'!D2504,\"\"))","v":""},{"$f":"IF('TSA Input'!J2504=\"\",\"\",IF(OR('TSA Input'!J2504=\"Yes\",'TSA Input'!J2504=\"Contingent\"),'TSA Input'!G2504,\"\"))","v":""},{"$f":"IF('TSA Input'!J2504=\"\",\"\",IF(OR('TSA Input'!J2504=\"Yes\",'TSA Input'!J2504=\"Contingent\"),'TSA Input'!F2504,\"\"))","v":""},"","Required","Required"]
["",null,{"$f":"IF('TSA Input'!J2505=\"\",\"\",IF(OR('TSA Input'!J2505=\"Yes\",'TSA Input'!J2505=\"Contingent\"),'TSA Input'!B2505,\"Ineligible\"))","v":""},{"$f":"IF('TSA Input'!J2505=\"\",\"\",IF(OR('TSA Input'!J2505=\"Yes\",'TSA Input'!J2505=\"Contingent\"),'TSA Input'!I2505,\"\"))","v":""},{"$f":"IF('TSA Input'!J2505=\"\",\"\",IF(OR('TSA Input'!J2505=\"Yes\",'TSA Input'!J2505=\"Contingent\"),'TSA Input'!C2505,\"\"))","v":""},{"$f":"IF('TSA Input'!J2505=\"\",\"\",IF(OR('TSA Input'!J2505=\"Yes\",'TSA Input'!J2505=\"Contingent\"),'TSA Input'!D2505,\"\"))","v":""},{"$f":"IF('TSA Input'!J2505=\"\",\"\",IF(OR('TSA Input'!J2505=\"Yes\",'TSA Input'!J2505=\"Contingent\"),'TSA Input'!G2505,\"\"))","v":""},{"$f":"IF('TSA Input'!J2505=\"\",\"\",IF(OR('TSA Input'!J2505=\"Yes\",'TSA Input'!J2505=\"Contingent\"),'TSA Input'!F2505,\"\"))","v":""},"",{"$f":"IF('TSA Input'!J2505=\"\",\"\",IF(OR('TSA Input'!J2505=\"Yes\",'TSA Input'!J2505=\"Contingent\"),'TSA Input'!D2505,\"\"))","v":""},{"$f":"IF('TSA Input'!J2505=\"\",\"\",IF(OR('TSA Input'!J2505=\"Yes\",'TSA Input'!J2505=\"Contingent\"),'TSA Input'!G2505,\"\"))","v":""},{"$f":"IF('TSA Input'!J2505=\"\",\"\",IF(OR('TSA Input'!J2505=\"Yes\",'TSA Input'!J2505=\"Contingent\"),'TSA Input'!F2505,\"\"))","v":""},"","Required","Required"]
["",null,{"$f":"IF('TSA Input'!J2506=\"\",\"\",IF(OR('TSA Input'!J2506=\"Yes\",'TSA Input'!J2506=\"Contingent\"),'TSA Input'!B2506,\"Ineligible\"))","v":""},{"$f":"IF('TSA Input'!J2506=\"\",\"\",IF(OR('TSA Input'!J2506=\"Yes\",'TSA Input'!J2506=\"Contingent\"),'TSA Input'!I2506,\"\"))","v":""},{"$f":"IF('TSA Input'!J2506=\"\",\"\",IF(OR('TSA Input'!J2506=\"Yes\",'TSA Input'!J2506=\"Contingent\"),'TSA Input'!C2506,\"\"))","v":""},{"$f":"IF('TSA Input'!J2506=\"\",\"\",IF(OR('TSA Input'!J2506=\"Yes\",'TSA Input'!J2506=\"Contingent\"),'TSA Input'!D2506,\"\"))","v":""},{"$f":"IF('TSA Input'!J2506=\"\",\"\",IF(OR('TSA Input'!J2506=\"Yes\",'TSA Input'!J2506=\"Contingent\"),'TSA Input'!G2506,\"\"))","v":""},{"$f":"IF('TSA Input'!J2506=\"\",\"\",IF(OR('TSA Input'!J2506=\"Yes\",'TSA Input'!J2506=\"Contingent\"),'TSA Input'!F2506,\"\"))","v":""},"",{"$f":"IF('TSA Input'!J2506=\"\",\"\",IF(OR('TSA Input'!J2506=\"Yes\",'TSA Input'!J2506=\"Contingent\"),'TSA Input'!D2506,\"\"))","v":""},{"$f":"IF('TSA Input'!J2506=\"\",\"\",IF(OR('TSA Input'!J2506=\"Yes\",'TSA Input'!J2506=\"Contingent\"),'TSA Input'!G2506,\"\"))","v":""},{"$f":"IF('TSA Input'!J2506=\"\",\"\",IF(OR('TSA Input'!J2506=\"Yes\",'TSA Input'!J2506=\"Contingent\"),'TSA Input'!F2506,\"\"))","v":""},"","Required","Required"]
["",null,{"$f":"IF('TSA Input'!J2507=\"\",\"\",IF(OR('TSA Input'!J2507=\"Yes\",'TSA Input'!J2507=\"Contingent\"),'TSA Input'!B2507,\"Ineligible\"))","v":""},{"$f":"IF('TSA Input'!J2507=\"\",\"\",IF(OR('TSA Input'!J2507=\"Yes\",'TSA Input'!J2507=\"Contingent\"),'TSA Input'!I2507,\"\"))","v":""},{"$f":"IF('TSA Input'!J2507=\"\",\"\",IF(OR('TSA Input'!J2507=\"Yes\",'TSA Input'!J2507=\"Contingent\"),'TSA Input'!C2507,\"\"))","v":""},{"$f":"IF('TSA Input'!J2507=\"\",\"\",IF(OR('TSA Input'!J2507=\"Yes\",'TSA Input'!J2507=\"Contingent\"),'TSA Input'!D2507,\"\"))","v":""},{"$f":"IF('TSA Input'!J2507=\"\",\"\",IF(OR('TSA Input'!J2507=\"Yes\",'TSA Input'!J2507=\"Contingent\"),'TSA Input'!G2507,\"\"))","v":""},{"$f":"IF('TSA Input'!J2507=\"\",\"\",IF(OR('TSA Input'!J2507=\"Yes\",'TSA Input'!J2507=\"Contingent\"),'TSA Input'!F2507,\"\"))","v":""},"",{"$f":"IF('TSA Input'!J2507=\"\",\"\",IF(OR('TSA Input'!J2507=\"Yes\",'TSA Input'!J2507=\"Contingent\"),'TSA Input'!D2507,\"\"))","v":""},{"$f":"IF('TSA Input'!J2507=\"\",\"\",IF(OR('TSA Input'!J2507=\"Yes\",'TSA Input'!J2507=\"Contingent\"),'TSA Input'!G2507,\"\"))","v":""},{"$f":"IF('TSA Input'!J2507=\"\",\"\",IF(OR('TSA Input'!J2507=\"Yes\",'TSA Input'!J2507=\"Contingent\"),'TSA Input'!F2507,\"\"))","v":""},"","Required","Required"]
["",null,{"$f":"IF('TSA Input'!J2508=\"\",\"\",IF(OR('TSA Input'!J2508=\"Yes\",'TSA Input'!J2508=\"Contingent\"),'TSA Input'!B2508,\"Ineligible\"))","v":""},{"$f":"IF('TSA Input'!J2508=\"\",\"\",IF(OR('TSA Input'!J2508=\"Yes\",'TSA Input'!J2508=\"Contingent\"),'TSA Input'!I2508,\"\"))","v":""},{"$f":"IF('TSA Input'!J2508=\"\",\"\",IF(OR('TSA Input'!J2508=\"Yes\",'TSA Input'!J2508=\"Contingent\"),'TSA Input'!C2508,\"\"))","v":""},{"$f":"IF('TSA Input'!J2508=\"\",\"\",IF(OR('TSA Input'!J2508=\"Yes\",'TSA Input'!J2508=\"Contingent\"),'TSA Input'!D2508,\"\"))","v":""},{"$f":"IF('TSA Input'!J2508=\"\",\"\",IF(OR('TSA Input'!J2508=\"Yes\",'TSA Input'!J2508=\"Contingent\"),'TSA Input'!G2508,\"\"))","v":""},{"$f":"IF('TSA Input'!J2508=\"\",\"\",IF(OR('TSA Input'!J2508=\"Yes\",'TSA Input'!J2508=\"Contingent\"),'TSA Input'!F2508,\"\"))","v":""},"",{"$f":"IF('TSA Input'!J2508=\"\",\"\",IF(OR('TSA Input'!J2508=\"Yes\",'TSA Input'!J2508=\"Contingent\"),'TSA Input'!D2508,\"\"))","v":""},{"$f":"IF('TSA Input'!J2508=\"\",\"\",IF(OR('TSA Input'!J2508=\"Yes\",'TSA Input'!J2508=\"Contingent\"),'TSA Input'!G2508,\"\"))","v":""},{"$f":"IF('TSA Input'!J2508=\"\",\"\",IF(OR('TSA Input'!J2508=\"Yes\",'TSA Input'!J2508=\"Contingent\"),'TSA Input'!F2508,\"\"))","v":""},"","Required","Required"]
["",null,{"$f":"IF('TSA Input'!J2509=\"\",\"\",IF(OR('TSA Input'!J2509=\"Yes\",'TSA Input'!J2509=\"Contingent\"),'TSA Input'!B2509,\"Ineligible\"))","v":""},{"$f":"IF('TSA Input'!J2509=\"\",\"\",IF(OR('TSA Input'!J2509=\"Yes\",'TSA Input'!J2509=\"Contingent\"),'TSA Input'!I2509,\"\"))","v":""},{"$f":"IF('TSA Input'!J2509=\"\",\"\",IF(OR('TSA Input'!J2509=\"Yes\",'TSA Input'!J2509=\"Contingent\"),'TSA Input'!C2509,\"\"))","v":""},{"$f":"IF('TSA Input'!J2509=\"\",\"\",IF(OR('TSA Input'!J2509=\"Yes\",'TSA Input'!J2509=\"Contingent\"),'TSA Input'!D2509,\"\"))","v":""},{"$f":"IF('TSA Input'!J2509=\"\",\"\",IF(OR('TSA Input'!J2509=\"Yes\",'TSA Input'!J2509=\"Contingent\"),'TSA Input'!G2509,\"\"))","v":""},{"$f":"IF('TSA Input'!J2509=\"\",\"\",IF(OR('TSA Input'!J2509=\"Yes\",'TSA Input'!J2509=\"Contingent\"),'TSA Input'!F2509,\"\"))","v":""},"",{"$f":"IF('TSA Input'!J2509=\"\",\"\",IF(OR('TSA Input'!J2509=\"Yes\",'TSA Input'!J2509=\"Contingent\"),'TSA Input'!D2509,\"\"))","v":""},{"$f":"IF('TSA Input'!J2509=\"\",\"\",IF(OR('TSA Input'!J2509=\"Yes\",'TSA Input'!J2509=\"Contingent\"),'TSA Input'!G2509,\"\"))","v":""},{"$f":"IF('TSA Input'!J2509=\"\",\"\",IF(OR('TSA Input'!J2509=\"Yes\",'TSA Input'!J2509=\"Contingent\"),'TSA Input'!F2509,\"\"))","v":""},"","Required","Required"]
["",null,{"$f":"IF('TSA Input'!J2510=\"\",\"\",IF(OR('TSA Input'!J2510=\"Yes\",'TSA Input'!J2510=\"Contingent\"),'TSA Input'!B2510,\"Ineligible\"))","v":""},{"$f":"IF('TSA Input'!J2510=\"\",\"\",IF(OR('TSA Input'!J2510=\"Yes\",'TSA Input'!J2510=\"Contingent\"),'TSA Input'!I2510,\"\"))","v":""},{"$f":"IF('TSA Input'!J2510=\"\",\"\",IF(OR('TSA Input'!J2510=\"Yes\",'TSA Input'!J2510=\"Contingent\"),'TSA Input'!C2510,\"\"))","v":""},{"$f":"IF('TSA Input'!J2510=\"\",\"\",IF(OR('TSA Input'!J2510=\"Yes\",'TSA Input'!J2510=\"Contingent\"),'TSA Input'!D2510,\"\"))","v":""},{"$f":"IF('TSA Input'!J2510=\"\",\"\",IF(OR('TSA Input'!J2510=\"Yes\",'TSA Input'!J2510=\"Contingent\"),'TSA Input'!G2510,\"\"))","v":""},{"$f":"IF('TSA Input'!J2510=\"\",\"\",IF(OR('TSA Input'!J2510=\"Yes\",'TSA Input'!J2510=\"Contingent\"),'TSA Input'!F2510,\"\"))","v":""},"",{"$f":"IF('TSA Input'!J2510=\"\",\"\",IF(OR('TSA Input'!J2510=\"Yes\",'TSA Input'!J2510=\"Contingent\"),'TSA Input'!D2510,\"\"))","v":""},{"$f":"IF('TSA Input'!J2510=\"\",\"\",IF(OR('TSA Input'!J2510=\"Yes\",'TSA Input'!J2510=\"Contingent\"),'TSA Input'!G2510,\"\"))","v":""},{"$f":"IF('TSA Input'!J2510=\"\",\"\",IF(OR('TSA Input'!J2510=\"Yes\",'TSA Input'!J2510=\"Contingent\"),'TSA Input'!F2510,\"\"))","v":""},"","Required","Required"]
["",null,{"$f":"IF('TSA Input'!J2511=\"\",\"\",IF(OR('TSA Input'!J2511=\"Yes\",'TSA Input'!J2511=\"Contingent\"),'TSA Input'!B2511,\"Ineligible\"))","v":""},{"$f":"IF('TSA Input'!J2511=\"\",\"\",IF(OR('TSA Input'!J2511=\"Yes\",'TSA Input'!J2511=\"Contingent\"),'TSA Input'!I2511,\"\"))","v":""},{"$f":"IF('TSA Input'!J2511=\"\",\"\",IF(OR('TSA Input'!J2511=\"Yes\",'TSA Input'!J2511=\"Contingent\"),'TSA Input'!C2511,\"\"))","v":""},{"$f":"IF('TSA Input'!J2511=\"\",\"\",IF(OR('TSA Input'!J2511=\"Yes\",'TSA Input'!J2511=\"Contingent\"),'TSA Input'!D2511,\"\"))","v":""},{"$f":"IF('TSA Input'!J2511=\"\",\"\",IF(OR('TSA Input'!J2511=\"Yes\",'TSA Input'!J2511=\"Contingent\"),'TSA Input'!G2511,\"\"))","v":""},{"$f":"IF('TSA Input'!J2511=\"\",\"\",IF(OR('TSA Input'!J2511=\"Yes\",'TSA Input'!J2511=\"Contingent\"),'TSA Input'!F2511,\"\"))","v":""},"",{"$f":"IF('TSA Input'!J2511=\"\",\"\",IF(OR('TSA Input'!J2511=\"Yes\",'TSA Input'!J2511=\"Contingent\"),'TSA Input'!D2511,\"\"))","v":""},{"$f":"IF('TSA Input'!J2511=\"\",\"\",IF(OR('TSA Input'!J2511=\"Yes\",'TSA Input'!J2511=\"Contingent\"),'TSA Input'!G2511,\"\"))","v":""},{"$f":"IF('TSA Input'!J2511=\"\",\"\",IF(OR('TSA Input'!J2511=\"Yes\",'TSA Input'!J2511=\"Contingent\"),'TSA Input'!F2511,\"\"))","v":""},"","Required","Required"]
["",null,{"$f":"IF('TSA Input'!J2512=\"\",\"\",IF(OR('TSA Input'!J2512=\"Yes\",'TSA Input'!J2512=\"Contingent\"),'TSA Input'!B2512,\"Ineligible\"))","v":""},{"$f":"IF('TSA Input'!J2512=\"\",\"\",IF(OR('TSA Input'!J2512=\"Yes\",'TSA Input'!J2512=\"Contingent\"),'TSA Input'!I2512,\"\"))","v":""},{"$f":"IF('TSA Input'!J2512=\"\",\"\",IF(OR('TSA Input'!J2512=\"Yes\",'TSA Input'!J2512=\"Contingent\"),'TSA Input'!C2512,\"\"))","v":""},{"$f":"IF('TSA Input'!J2512=\"\",\"\",IF(OR('TSA Input'!J2512=\"Yes\",'TSA Input'!J2512=\"Contingent\"),'TSA Input'!D2512,\"\"))","v":""},{"$f":"IF('TSA Input'!J2512=\"\",\"\",IF(OR('TSA Input'!J2512=\"Yes\",'TSA Input'!J2512=\"Contingent\"),'TSA Input'!G2512,\"\"))","v":""},{"$f":"IF('TSA Input'!J2512=\"\",\"\",IF(OR('TSA Input'!J2512=\"Yes\",'TSA Input'!J2512=\"Contingent\"),'TSA Input'!F2512,\"\"))","v":""},"",{"$f":"IF('TSA Input'!J2512=\"\",\"\",IF(OR('TSA Input'!J2512=\"Yes\",'TSA Input'!J2512=\"Contingent\"),'TSA Input'!D2512,\"\"))","v":""},{"$f":"IF('TSA Input'!J2512=\"\",\"\",IF(OR('TSA Input'!J2512=\"Yes\",'TSA Input'!J2512=\"Contingent\"),'TSA Input'!G2512,\"\"))","v":""},{"$f":"IF('TSA Input'!J2512=\"\",\"\",IF(OR('TSA Input'!J2512=\"Yes\",'TSA Input'!J2512=\"Contingent\"),'TSA Input'!F2512,\"\"))","v":""},"","Required","Required"]
["",null,{"$f":"IF('TSA Input'!J2513=\"\",\"\",IF(OR('TSA Input'!J2513=\"Yes\",'TSA Input'!J2513=\"Contingent\"),'TSA Input'!B2513,\"Ineligible\"))","v":""},{"$f":"IF('TSA Input'!J2513=\"\",\"\",IF(OR('TSA Input'!J2513=\"Yes\",'TSA Input'!J2513=\"Contingent\"),'TSA Input'!I2513,\"\"))","v":""},{"$f":"IF('TSA Input'!J2513=\"\",\"\",IF(OR('TSA Input'!J2513=\"Yes\",'TSA Input'!J2513=\"Contingent\"),'TSA Input'!C2513,\"\"))","v":""},{"$f":"IF('TSA Input'!J2513=\"\",\"\",IF(OR('TSA Input'!J2513=\"Yes\",'TSA Input'!J2513=\"Contingent\"),'TSA Input'!D2513,\"\"))","v":""},{"$f":"IF('TSA Input'!J2513=\"\",\"\",IF(OR('TSA Input'!J2513=\"Yes\",'TSA Input'!J2513=\"Contingent\"),'TSA Input'!G2513,\"\"))","v":""},{"$f":"IF('TSA Input'!J2513=\"\",\"\",IF(OR('TSA Input'!J2513=\"Yes\",'TSA Input'!J2513=\"Contingent\"),'TSA Input'!F2513,\"\"))","v":""},"",{"$f":"IF('TSA Input'!J2513=\"\",\"\",IF(OR('TSA Input'!J2513=\"Yes\",'TSA Input'!J2513=\"Contingent\"),'TSA Input'!D2513,\"\"))","v":""},{"$f":"IF('TSA Input'!J2513=\"\",\"\",IF(OR('TSA Input'!J2513=\"Yes\",'TSA Input'!J2513=\"Contingent\"),'TSA Input'!G2513,\"\"))","v":""},{"$f":"IF('TSA Input'!J2513=\"\",\"\",IF(OR('TSA Input'!J2513=\"Yes\",'TSA Input'!J2513=\"Contingent\"),'TSA Input'!F2513,\"\"))","v":""},"","Required","Required"]
["",null,{"$f":"IF('TSA Input'!J2514=\"\",\"\",IF(OR('TSA Input'!J2514=\"Yes\",'TSA Input'!J2514=\"Contingent\"),'TSA Input'!B2514,\"Ineligible\"))","v":""},{"$f":"IF('TSA Input'!J2514=\"\",\"\",IF(OR('TSA Input'!J2514=\"Yes\",'TSA Input'!J2514=\"Contingent\"),'TSA Input'!I2514,\"\"))","v":""},{"$f":"IF('TSA Input'!J2514=\"\",\"\",IF(OR('TSA Input'!J2514=\"Yes\",'TSA Input'!J2514=\"Contingent\"),'TSA Input'!C2514,\"\"))","v":""},{"$f":"IF('TSA Input'!J2514=\"\",\"\",IF(OR('TSA Input'!J2514=\"Yes\",'TSA Input'!J2514=\"Contingent\"),'TSA Input'!D2514,\"\"))","v":""},{"$f":"IF('TSA Input'!J2514=\"\",\"\",IF(OR('TSA Input'!J2514=\"Yes\",'TSA Input'!J2514=\"Contingent\"),'TSA Input'!G2514,\"\"))","v":""},{"$f":"IF('TSA Input'!J2514=\"\",\"\",IF(OR('TSA Input'!J2514=\"Yes\",'TSA Input'!J2514=\"Contingent\"),'TSA Input'!F2514,\"\"))","v":""},"",{"$f":"IF('TSA Input'!J2514=\"\",\"\",IF(OR('TSA Input'!J2514=\"Yes\",'TSA Input'!J2514=\"Contingent\"),'TSA Input'!D2514,\"\"))","v":""},{"$f":"IF('TSA Input'!J2514=\"\",\"\",IF(OR('TSA Input'!J2514=\"Yes\",'TSA Input'!J2514=\"Contingent\"),'TSA Input'!G2514,\"\"))","v":""},{"$f":"IF('TSA Input'!J2514=\"\",\"\",IF(OR('TSA Input'!J2514=\"Yes\",'TSA Input'!J2514=\"Contingent\"),'TSA Input'!F2514,\"\"))","v":""},"","Required","Required"]
["",null,{"$f":"IF('TSA Input'!J2515=\"\",\"\",IF(OR('TSA Input'!J2515=\"Yes\",'TSA Input'!J2515=\"Contingent\"),'TSA Input'!B2515,\"Ineligible\"))","v":""},{"$f":"IF('TSA Input'!J2515=\"\",\"\",IF(OR('TSA Input'!J2515=\"Yes\",'TSA Input'!J2515=\"Contingent\"),'TSA Input'!I2515,\"\"))","v":""},{"$f":"IF('TSA Input'!J2515=\"\",\"\",IF(OR('TSA Input'!J2515=\"Yes\",'TSA Input'!J2515=\"Contingent\"),'TSA Input'!C2515,\"\"))","v":""},{"$f":"IF('TSA Input'!J2515=\"\",\"\",IF(OR('TSA Input'!J2515=\"Yes\",'TSA Input'!J2515=\"Contingent\"),'TSA Input'!D2515,\"\"))","v":""},{"$f":"IF('TSA Input'!J2515=\"\",\"\",IF(OR('TSA Input'!J2515=\"Yes\",'TSA Input'!J2515=\"Contingent\"),'TSA Input'!G2515,\"\"))","v":""},{"$f":"IF('TSA Input'!J2515=\"\",\"\",IF(OR('TSA Input'!J2515=\"Yes\",'TSA Input'!J2515=\"Contingent\"),'TSA Input'!F2515,\"\"))","v":""},"",{"$f":"IF('TSA Input'!J2515=\"\",\"\",IF(OR('TSA Input'!J2515=\"Yes\",'TSA Input'!J2515=\"Contingent\"),'TSA Input'!D2515,\"\"))","v":""},{"$f":"IF('TSA Input'!J2515=\"\",\"\",IF(OR('TSA Input'!J2515=\"Yes\",'TSA Input'!J2515=\"Contingent\"),'TSA Input'!G2515,\"\"))","v":""},{"$f":"IF('TSA Input'!J2515=\"\",\"\",IF(OR('TSA Input'!J2515=\"Yes\",'TSA Input'!J2515=\"Contingent\"),'TSA Input'!F2515,\"\"))","v":""},"","Required","Required"]
["",null,{"$f":"IF('TSA Input'!J2516=\"\",\"\",IF(OR('TSA Input'!J2516=\"Yes\",'TSA Input'!J2516=\"Contingent\"),'TSA Input'!B2516,\"Ineligible\"))","v":""},{"$f":"IF('TSA Input'!J2516=\"\",\"\",IF(OR('TSA Input'!J2516=\"Yes\",'TSA Input'!J2516=\"Contingent\"),'TSA Input'!I2516,\"\"))","v":""},{"$f":"IF('TSA Input'!J2516=\"\",\"\",IF(OR('TSA Input'!J2516=\"Yes\",'TSA Input'!J2516=\"Contingent\"),'TSA Input'!C2516,\"\"))","v":""},{"$f":"IF('TSA Input'!J2516=\"\",\"\",IF(OR('TSA Input'!J2516=\"Yes\",'TSA Input'!J2516=\"Contingent\"),'TSA Input'!D2516,\"\"))","v":""},{"$f":"IF('TSA Input'!J2516=\"\",\"\",IF(OR('TSA Input'!J2516=\"Yes\",'TSA Input'!J2516=\"Contingent\"),'TSA Input'!G2516,\"\"))","v":""},{"$f":"IF('TSA Input'!J2516=\"\",\"\",IF(OR('TSA Input'!J2516=\"Yes\",'TSA Input'!J2516=\"Contingent\"),'TSA Input'!F2516,\"\"))","v":""},"",{"$f":"IF('TSA Input'!J2516=\"\",\"\",IF(OR('TSA Input'!J2516=\"Yes\",'TSA Input'!J2516=\"Contingent\"),'TSA Input'!D2516,\"\"))","v":""},{"$f":"IF('TSA Input'!J2516=\"\",\"\",IF(OR('TSA Input'!J2516=\"Yes\",'TSA Input'!J2516=\"Contingent\"),'TSA Input'!G2516,\"\"))","v":""},{"$f":"IF('TSA Input'!J2516=\"\",\"\",IF(OR('TSA Input'!J2516=\"Yes\",'TSA Input'!J2516=\"Contingent\"),'TSA Input'!F2516,\"\"))","v":""},"","Required","Required"]
["",null,{"$f":"IF('TSA Input'!J2517=\"\",\"\",IF(OR('TSA Input'!J2517=\"Yes\",'TSA Input'!J2517=\"Contingent\"),'TSA Input'!B2517,\"Ineligible\"))","v":""},{"$f":"IF('TSA Input'!J2517=\"\",\"\",IF(OR('TSA Input'!J2517=\"Yes\",'TSA Input'!J2517=\"Contingent\"),'TSA Input'!I2517,\"\"))","v":""},{"$f":"IF('TSA Input'!J2517=\"\",\"\",IF(OR('TSA Input'!J2517=\"Yes\",'TSA Input'!J2517=\"Contingent\"),'TSA Input'!C2517,\"\"))","v":""},{"$f":"IF('TSA Input'!J2517=\"\",\"\",IF(OR('TSA Input'!J2517=\"Yes\",'TSA Input'!J2517=\"Contingent\"),'TSA Input'!D2517,\"\"))","v":""},{"$f":"IF('TSA Input'!J2517=\"\",\"\",IF(OR('TSA Input'!J2517=\"Yes\",'TSA Input'!J2517=\"Contingent\"),'TSA Input'!G2517,\"\"))","v":""},{"$f":"IF('TSA Input'!J2517=\"\",\"\",IF(OR('TSA Input'!J2517=\"Yes\",'TSA Input'!J2517=\"Contingent\"),'TSA Input'!F2517,\"\"))","v":""},"",{"$f":"IF('TSA Input'!J2517=\"\",\"\",IF(OR('TSA Input'!J2517=\"Yes\",'TSA Input'!J2517=\"Contingent\"),'TSA Input'!D2517,\"\"))","v":""},{"$f":"IF('TSA Input'!J2517=\"\",\"\",IF(OR('TSA Input'!J2517=\"Yes\",'TSA Input'!J2517=\"Contingent\"),'TSA Input'!G2517,\"\"))","v":""},{"$f":"IF('TSA Input'!J2517=\"\",\"\",IF(OR('TSA Input'!J2517=\"Yes\",'TSA Input'!J2517=\"Contingent\"),'TSA Input'!F2517,\"\"))","v":""},"","Required","Required"]
["",null,{"$f":"IF('TSA Input'!J2518=\"\",\"\",IF(OR('TSA Input'!J2518=\"Yes\",'TSA Input'!J2518=\"Contingent\"),'TSA Input'!B2518,\"Ineligible\"))","v":""},{"$f":"IF('TSA Input'!J2518=\"\",\"\",IF(OR('TSA Input'!J2518=\"Yes\",'TSA Input'!J2518=\"Contingent\"),'TSA Input'!I2518,\"\"))","v":""},{"$f":"IF('TSA Input'!J2518=\"\",\"\",IF(OR('TSA Input'!J2518=\"Yes\",'TSA Input'!J2518=\"Contingent\"),'TSA Input'!C2518,\"\"))","v":""},{"$f":"IF('TSA Input'!J2518=\"\",\"\",IF(OR('TSA Input'!J2518=\"Yes\",'TSA Input'!J2518=\"Contingent\"),'TSA Input'!D2518,\"\"))","v":""},{"$f":"IF('TSA Input'!J2518=\"\",\"\",IF(OR('TSA Input'!J2518=\"Yes\",'TSA Input'!J2518=\"Contingent\"),'TSA Input'!G2518,\"\"))","v":""},{"$f":"IF('TSA Input'!J2518=\"\",\"\",IF(OR('TSA Input'!J2518=\"Yes\",'TSA Input'!J2518=\"Contingent\"),'TSA Input'!F2518,\"\"))","v":""},"",{"$f":"IF('TSA Input'!J2518=\"\",\"\",IF(OR('TSA Input'!J2518=\"Yes\",'TSA Input'!J2518=\"Contingent\"),'TSA Input'!D2518,\"\"))","v":""},{"$f":"IF('TSA Input'!J2518=\"\",\"\",IF(OR('TSA Input'!J2518=\"Yes\",'TSA Input'!J2518=\"Contingent\"),'TSA Input'!G2518,\"\"))","v":""},{"$f":"IF('TSA Input'!J2518=\"\",\"\",IF(OR('TSA Input'!J2518=\"Yes\",'TSA Input'!J2518=\"Contingent\"),'TSA Input'!F2518,\"\"))","v":""},"","Required","Required"]
["",null,{"$f":"IF('TSA Input'!J2519=\"\",\"\",IF(OR('TSA Input'!J2519=\"Yes\",'TSA Input'!J2519=\"Contingent\"),'TSA Input'!B2519,\"Ineligible\"))","v":""},{"$f":"IF('TSA Input'!J2519=\"\",\"\",IF(OR('TSA Input'!J2519=\"Yes\",'TSA Input'!J2519=\"Contingent\"),'TSA Input'!I2519,\"\"))","v":""},{"$f":"IF('TSA Input'!J2519=\"\",\"\",IF(OR('TSA Input'!J2519=\"Yes\",'TSA Input'!J2519=\"Contingent\"),'TSA Input'!C2519,\"\"))","v":""},{"$f":"IF('TSA Input'!J2519=\"\",\"\",IF(OR('TSA Input'!J2519=\"Yes\",'TSA Input'!J2519=\"Contingent\"),'TSA Input'!D2519,\"\"))","v":""},{"$f":"IF('TSA Input'!J2519=\"\",\"\",IF(OR('TSA Input'!J2519=\"Yes\",'TSA Input'!J2519=\"Contingent\"),'TSA Input'!G2519,\"\"))","v":""},{"$f":"IF('TSA Input'!J2519=\"\",\"\",IF(OR('TSA Input'!J2519=\"Yes\",'TSA Input'!J2519=\"Contingent\"),'TSA Input'!F2519,\"\"))","v":""},"",{"$f":"IF('TSA Input'!J2519=\"\",\"\",IF(OR('TSA Input'!J2519=\"Yes\",'TSA Input'!J2519=\"Contingent\"),'TSA Input'!D2519,\"\"))","v":""},{"$f":"IF('TSA Input'!J2519=\"\",\"\",IF(OR('TSA Input'!J2519=\"Yes\",'TSA Input'!J2519=\"Contingent\"),'TSA Input'!G2519,\"\"))","v":""},{"$f":"IF('TSA Input'!J2519=\"\",\"\",IF(OR('TSA Input'!J2519=\"Yes\",'TSA Input'!J2519=\"Contingent\"),'TSA Input'!F2519,\"\"))","v":""},"","Required","Required"]
["",null,{"$f":"IF('TSA Input'!J2520=\"\",\"\",IF(OR('TSA Input'!J2520=\"Yes\",'TSA Input'!J2520=\"Contingent\"),'TSA Input'!B2520,\"Ineligible\"))","v":""},{"$f":"IF('TSA Input'!J2520=\"\",\"\",IF(OR('TSA Input'!J2520=\"Yes\",'TSA Input'!J2520=\"Contingent\"),'TSA Input'!I2520,\"\"))","v":""},{"$f":"IF('TSA Input'!J2520=\"\",\"\",IF(OR('TSA Input'!J2520=\"Yes\",'TSA Input'!J2520=\"Contingent\"),'TSA Input'!C2520,\"\"))","v":""},{"$f":"IF('TSA Input'!J2520=\"\",\"\",IF(OR('TSA Input'!J2520=\"Yes\",'TSA Input'!J2520=\"Contingent\"),'TSA Input'!D2520,\"\"))","v":""},{"$f":"IF('TSA Input'!J2520=\"\",\"\",IF(OR('TSA Input'!J2520=\"Yes\",'TSA Input'!J2520=\"Contingent\"),'TSA Input'!G2520,\"\"))","v":""},{"$f":"IF('TSA Input'!J2520=\"\",\"\",IF(OR('TSA Input'!J2520=\"Yes\",'TSA Input'!J2520=\"Contingent\"),'TSA Input'!F2520,\"\"))","v":""},"",{"$f":"IF('TSA Input'!J2520=\"\",\"\",IF(OR('TSA Input'!J2520=\"Yes\",'TSA Input'!J2520=\"Contingent\"),'TSA Input'!D2520,\"\"))","v":""},{"$f":"IF('TSA Input'!J2520=\"\",\"\",IF(OR('TSA Input'!J2520=\"Yes\",'TSA Input'!J2520=\"Contingent\"),'TSA Input'!G2520,\"\"))","v":""},{"$f":"IF('TSA Input'!J2520=\"\",\"\",IF(OR('TSA Input'!J2520=\"Yes\",'TSA Input'!J2520=\"Contingent\"),'TSA Input'!F2520,\"\"))","v":""},"","Required","Required"]
["",null,{"$f":"IF('TSA Input'!J2521=\"\",\"\",IF(OR('TSA Input'!J2521=\"Yes\",'TSA Input'!J2521=\"Contingent\"),'TSA Input'!B2521,\"Ineligible\"))","v":""},{"$f":"IF('TSA Input'!J2521=\"\",\"\",IF(OR('TSA Input'!J2521=\"Yes\",'TSA Input'!J2521=\"Contingent\"),'TSA Input'!I2521,\"\"))","v":""},{"$f":"IF('TSA Input'!J2521=\"\",\"\",IF(OR('TSA Input'!J2521=\"Yes\",'TSA Input'!J2521=\"Contingent\"),'TSA Input'!C2521,\"\"))","v":""},{"$f":"IF('TSA Input'!J2521=\"\",\"\",IF(OR('TSA Input'!J2521=\"Yes\",'TSA Input'!J2521=\"Contingent\"),'TSA Input'!D2521,\"\"))","v":""},{"$f":"IF('TSA Input'!J2521=\"\",\"\",IF(OR('TSA Input'!J2521=\"Yes\",'TSA Input'!J2521=\"Contingent\"),'TSA Input'!G2521,\"\"))","v":""},{"$f":"IF('TSA Input'!J2521=\"\",\"\",IF(OR('TSA Input'!J2521=\"Yes\",'TSA Input'!J2521=\"Contingent\"),'TSA Input'!F2521,\"\"))","v":""},"",{"$f":"IF('TSA Input'!J2521=\"\",\"\",IF(OR('TSA Input'!J2521=\"Yes\",'TSA Input'!J2521=\"Contingent\"),'TSA Input'!D2521,\"\"))","v":""},{"$f":"IF('TSA Input'!J2521=\"\",\"\",IF(OR('TSA Input'!J2521=\"Yes\",'TSA Input'!J2521=\"Contingent\"),'TSA Input'!G2521,\"\"))","v":""},{"$f":"IF('TSA Input'!J2521=\"\",\"\",IF(OR('TSA Input'!J2521=\"Yes\",'TSA Input'!J2521=\"Contingent\"),'TSA Input'!F2521,\"\"))","v":""},"","Required","Required"]
["",null,{"$f":"IF('TSA Input'!J2522=\"\",\"\",IF(OR('TSA Input'!J2522=\"Yes\",'TSA Input'!J2522=\"Contingent\"),'TSA Input'!B2522,\"Ineligible\"))","v":""},{"$f":"IF('TSA Input'!J2522=\"\",\"\",IF(OR('TSA Input'!J2522=\"Yes\",'TSA Input'!J2522=\"Contingent\"),'TSA Input'!I2522,\"\"))","v":""},{"$f":"IF('TSA Input'!J2522=\"\",\"\",IF(OR('TSA Input'!J2522=\"Yes\",'TSA Input'!J2522=\"Contingent\"),'TSA Input'!C2522,\"\"))","v":""},{"$f":"IF('TSA Input'!J2522=\"\",\"\",IF(OR('TSA Input'!J2522=\"Yes\",'TSA Input'!J2522=\"Contingent\"),'TSA Input'!D2522,\"\"))","v":""},{"$f":"IF('TSA Input'!J2522=\"\",\"\",IF(OR('TSA Input'!J2522=\"Yes\",'TSA Input'!J2522=\"Contingent\"),'TSA Input'!G2522,\"\"))","v":""},{"$f":"IF('TSA Input'!J2522=\"\",\"\",IF(OR('TSA Input'!J2522=\"Yes\",'TSA Input'!J2522=\"Contingent\"),'TSA Input'!F2522,\"\"))","v":""},"",{"$f":"IF('TSA Input'!J2522=\"\",\"\",IF(OR('TSA Input'!J2522=\"Yes\",'TSA Input'!J2522=\"Contingent\"),'TSA Input'!D2522,\"\"))","v":""},{"$f":"IF('TSA Input'!J2522=\"\",\"\",IF(OR('TSA Input'!J2522=\"Yes\",'TSA Input'!J2522=\"Contingent\"),'TSA Input'!G2522,\"\"))","v":""},{"$f":"IF('TSA Input'!J2522=\"\",\"\",IF(OR('TSA Input'!J2522=\"Yes\",'TSA Input'!J2522=\"Contingent\"),'TSA Input'!F2522,\"\"))","v":""},"","Required","Required"]
["",null,{"$f":"IF('TSA Input'!J2523=\"\",\"\",IF(OR('TSA Input'!J2523=\"Yes\",'TSA Input'!J2523=\"Contingent\"),'TSA Input'!B2523,\"Ineligible\"))","v":""},{"$f":"IF('TSA Input'!J2523=\"\",\"\",IF(OR('TSA Input'!J2523=\"Yes\",'TSA Input'!J2523=\"Contingent\"),'TSA Input'!I2523,\"\"))","v":""},{"$f":"IF('TSA Input'!J2523=\"\",\"\",IF(OR('TSA Input'!J2523=\"Yes\",'TSA Input'!J2523=\"Contingent\"),'TSA Input'!C2523,\"\"))","v":""},{"$f":"IF('TSA Input'!J2523=\"\",\"\",IF(OR('TSA Input'!J2523=\"Yes\",'TSA Input'!J2523=\"Contingent\"),'TSA Input'!D2523,\"\"))","v":""},{"$f":"IF('TSA Input'!J2523=\"\",\"\",IF(OR('TSA Input'!J2523=\"Yes\",'TSA Input'!J2523=\"Contingent\"),'TSA Input'!G2523,\"\"))","v":""},{"$f":"IF('TSA Input'!J2523=\"\",\"\",IF(OR('TSA Input'!J2523=\"Yes\",'TSA Input'!J2523=\"Contingent\"),'TSA Input'!F2523,\"\"))","v":""},"",{"$f":"IF('TSA Input'!J2523=\"\",\"\",IF(OR('TSA Input'!J2523=\"Yes\",'TSA Input'!J2523=\"Contingent\"),'TSA Input'!D2523,\"\"))","v":""},{"$f":"IF('TSA Input'!J2523=\"\",\"\",IF(OR('TSA Input'!J2523=\"Yes\",'TSA Input'!J2523=\"Contingent\"),'TSA Input'!G2523,\"\"))","v":""},{"$f":"IF('TSA Input'!J2523=\"\",\"\",IF(OR('TSA Input'!J2523=\"Yes\",'TSA Input'!J2523=\"Contingent\"),'TSA Input'!F2523,\"\"))","v":""},"","Required","Required"]
["",null,{"$f":"IF('TSA Input'!J2524=\"\",\"\",IF(OR('TSA Input'!J2524=\"Yes\",'TSA Input'!J2524=\"Contingent\"),'TSA Input'!B2524,\"Ineligible\"))","v":""},{"$f":"IF('TSA Input'!J2524=\"\",\"\",IF(OR('TSA Input'!J2524=\"Yes\",'TSA Input'!J2524=\"Contingent\"),'TSA Input'!I2524,\"\"))","v":""},{"$f":"IF('TSA Input'!J2524=\"\",\"\",IF(OR('TSA Input'!J2524=\"Yes\",'TSA Input'!J2524=\"Contingent\"),'TSA Input'!C2524,\"\"))","v":""},{"$f":"IF('TSA Input'!J2524=\"\",\"\",IF(OR('TSA Input'!J2524=\"Yes\",'TSA Input'!J2524=\"Contingent\"),'TSA Input'!D2524,\"\"))","v":""},{"$f":"IF('TSA Input'!J2524=\"\",\"\",IF(OR('TSA Input'!J2524=\"Yes\",'TSA Input'!J2524=\"Contingent\"),'TSA Input'!G2524,\"\"))","v":""},{"$f":"IF('TSA Input'!J2524=\"\",\"\",IF(OR('TSA Input'!J2524=\"Yes\",'TSA Input'!J2524=\"Contingent\"),'TSA Input'!F2524,\"\"))","v":""},"",{"$f":"IF('TSA Input'!J2524=\"\",\"\",IF(OR('TSA Input'!J2524=\"Yes\",'TSA Input'!J2524=\"Contingent\"),'TSA Input'!D2524,\"\"))","v":""},{"$f":"IF('TSA Input'!J2524=\"\",\"\",IF(OR('TSA Input'!J2524=\"Yes\",'TSA Input'!J2524=\"Contingent\"),'TSA Input'!G2524,\"\"))","v":""},{"$f":"IF('TSA Input'!J2524=\"\",\"\",IF(OR('TSA Input'!J2524=\"Yes\",'TSA Input'!J2524=\"Contingent\"),'TSA Input'!F2524,\"\"))","v":""},"","Required","Required"]
["",null,{"$f":"IF('TSA Input'!J2525=\"\",\"\",IF(OR('TSA Input'!J2525=\"Yes\",'TSA Input'!J2525=\"Contingent\"),'TSA Input'!B2525,\"Ineligible\"))","v":""},{"$f":"IF('TSA Input'!J2525=\"\",\"\",IF(OR('TSA Input'!J2525=\"Yes\",'TSA Input'!J2525=\"Contingent\"),'TSA Input'!I2525,\"\"))","v":""},{"$f":"IF('TSA Input'!J2525=\"\",\"\",IF(OR('TSA Input'!J2525=\"Yes\",'TSA Input'!J2525=\"Contingent\"),'TSA Input'!C2525,\"\"))","v":""},{"$f":"IF('TSA Input'!J2525=\"\",\"\",IF(OR('TSA Input'!J2525=\"Yes\",'TSA Input'!J2525=\"Contingent\"),'TSA Input'!D2525,\"\"))","v":""},{"$f":"IF('TSA Input'!J2525=\"\",\"\",IF(OR('TSA Input'!J2525=\"Yes\",'TSA Input'!J2525=\"Contingent\"),'TSA Input'!G2525,\"\"))","v":""},{"$f":"IF('TSA Input'!J2525=\"\",\"\",IF(OR('TSA Input'!J2525=\"Yes\",'TSA Input'!J2525=\"Contingent\"),'TSA Input'!F2525,\"\"))","v":""},"",{"$f":"IF('TSA Input'!J2525=\"\",\"\",IF(OR('TSA Input'!J2525=\"Yes\",'TSA Input'!J2525=\"Contingent\"),'TSA Input'!D2525,\"\"))","v":""},{"$f":"IF('TSA Input'!J2525=\"\",\"\",IF(OR('TSA Input'!J2525=\"Yes\",'TSA Input'!J2525=\"Contingent\"),'TSA Input'!G2525,\"\"))","v":""},{"$f":"IF('TSA Input'!J2525=\"\",\"\",IF(OR('TSA Input'!J2525=\"Yes\",'TSA Input'!J2525=\"Contingent\"),'TSA Input'!F2525,\"\"))","v":""},"","Required","Required"]
["",null,{"$f":"IF('TSA Input'!J2526=\"\",\"\",IF(OR('TSA Input'!J2526=\"Yes\",'TSA Input'!J2526=\"Contingent\"),'TSA Input'!B2526,\"Ineligible\"))","v":""},{"$f":"IF('TSA Input'!J2526=\"\",\"\",IF(OR('TSA Input'!J2526=\"Yes\",'TSA Input'!J2526=\"Contingent\"),'TSA Input'!I2526,\"\"))","v":""},{"$f":"IF('TSA Input'!J2526=\"\",\"\",IF(OR('TSA Input'!J2526=\"Yes\",'TSA Input'!J2526=\"Contingent\"),'TSA Input'!C2526,\"\"))","v":""},{"$f":"IF('TSA Input'!J2526=\"\",\"\",IF(OR('TSA Input'!J2526=\"Yes\",'TSA Input'!J2526=\"Contingent\"),'TSA Input'!D2526,\"\"))","v":""},{"$f":"IF('TSA Input'!J2526=\"\",\"\",IF(OR('TSA Input'!J2526=\"Yes\",'TSA Input'!J2526=\"Contingent\"),'TSA Input'!G2526,\"\"))","v":""},{"$f":"IF('TSA Input'!J2526=\"\",\"\",IF(OR('TSA Input'!J2526=\"Yes\",'TSA Input'!J2526=\"Contingent\"),'TSA Input'!F2526,\"\"))","v":""},"",{"$f":"IF('TSA Input'!J2526=\"\",\"\",IF(OR('TSA Input'!J2526=\"Yes\",'TSA Input'!J2526=\"Contingent\"),'TSA Input'!D2526,\"\"))","v":""},{"$f":"IF('TSA Input'!J2526=\"\",\"\",IF(OR('TSA Input'!J2526=\"Yes\",'TSA Input'!J2526=\"Contingent\"),'TSA Input'!G2526,\"\"))","v":""},{"$f":"IF('TSA Input'!J2526=\"\",\"\",IF(OR('TSA Input'!J2526=\"Yes\",'TSA Input'!J2526=\"Contingent\"),'TSA Input'!F2526,\"\"))","v":""},"","Required","Required"]
["",null,{"$f":"IF('TSA Input'!J2527=\"\",\"\",IF(OR('TSA Input'!J2527=\"Yes\",'TSA Input'!J2527=\"Contingent\"),'TSA Input'!B2527,\"Ineligible\"))","v":""},{"$f":"IF('TSA Input'!J2527=\"\",\"\",IF(OR('TSA Input'!J2527=\"Yes\",'TSA Input'!J2527=\"Contingent\"),'TSA Input'!I2527,\"\"))","v":""},{"$f":"IF('TSA Input'!J2527=\"\",\"\",IF(OR('TSA Input'!J2527=\"Yes\",'TSA Input'!J2527=\"Contingent\"),'TSA Input'!C2527,\"\"))","v":""},{"$f":"IF('TSA Input'!J2527=\"\",\"\",IF(OR('TSA Input'!J2527=\"Yes\",'TSA Input'!J2527=\"Contingent\"),'TSA Input'!D2527,\"\"))","v":""},{"$f":"IF('TSA Input'!J2527=\"\",\"\",IF(OR('TSA Input'!J2527=\"Yes\",'TSA Input'!J2527=\"Contingent\"),'TSA Input'!G2527,\"\"))","v":""},{"$f":"IF('TSA Input'!J2527=\"\",\"\",IF(OR('TSA Input'!J2527=\"Yes\",'TSA Input'!J2527=\"Contingent\"),'TSA Input'!F2527,\"\"))","v":""},"",{"$f":"IF('TSA Input'!J2527=\"\",\"\",IF(OR('TSA Input'!J2527=\"Yes\",'TSA Input'!J2527=\"Contingent\"),'TSA Input'!D2527,\"\"))","v":""},{"$f":"IF('TSA Input'!J2527=\"\",\"\",IF(OR('TSA Input'!J2527=\"Yes\",'TSA Input'!J2527=\"Contingent\"),'TSA Input'!G2527,\"\"))","v":""},{"$f":"IF('TSA Input'!J2527=\"\",\"\",IF(OR('TSA Input'!J2527=\"Yes\",'TSA Input'!J2527=\"Contingent\"),'TSA Input'!F2527,\"\"))","v":""},"","Required","Required"]
["",null,{"$f":"IF('TSA Input'!J2528=\"\",\"\",IF(OR('TSA Input'!J2528=\"Yes\",'TSA Input'!J2528=\"Contingent\"),'TSA Input'!B2528,\"Ineligible\"))","v":""},{"$f":"IF('TSA Input'!J2528=\"\",\"\",IF(OR('TSA Input'!J2528=\"Yes\",'TSA Input'!J2528=\"Contingent\"),'TSA Input'!I2528,\"\"))","v":""},{"$f":"IF('TSA Input'!J2528=\"\",\"\",IF(OR('TSA Input'!J2528=\"Yes\",'TSA Input'!J2528=\"Contingent\"),'TSA Input'!C2528,\"\"))","v":""},{"$f":"IF('TSA Input'!J2528=\"\",\"\",IF(OR('TSA Input'!J2528=\"Yes\",'TSA Input'!J2528=\"Contingent\"),'TSA Input'!D2528,\"\"))","v":""},{"$f":"IF('TSA Input'!J2528=\"\",\"\",IF(OR('TSA Input'!J2528=\"Yes\",'TSA Input'!J2528=\"Contingent\"),'TSA Input'!G2528,\"\"))","v":""},{"$f":"IF('TSA Input'!J2528=\"\",\"\",IF(OR('TSA Input'!J2528=\"Yes\",'TSA Input'!J2528=\"Contingent\"),'TSA Input'!F2528,\"\"))","v":""},"",{"$f":"IF('TSA Input'!J2528=\"\",\"\",IF(OR('TSA Input'!J2528=\"Yes\",'TSA Input'!J2528=\"Contingent\"),'TSA Input'!D2528,\"\"))","v":""},{"$f":"IF('TSA Input'!J2528=\"\",\"\",IF(OR('TSA Input'!J2528=\"Yes\",'TSA Input'!J2528=\"Contingent\"),'TSA Input'!G2528,\"\"))","v":""},{"$f":"IF('TSA Input'!J2528=\"\",\"\",IF(OR('TSA Input'!J2528=\"Yes\",'TSA Input'!J2528=\"Contingent\"),'TSA Input'!F2528,\"\"))","v":""},"","Required","Required"]
["",null,{"$f":"IF('TSA Input'!J2529=\"\",\"\",IF(OR('TSA Input'!J2529=\"Yes\",'TSA Input'!J2529=\"Contingent\"),'TSA Input'!B2529,\"Ineligible\"))","v":""},{"$f":"IF('TSA Input'!J2529=\"\",\"\",IF(OR('TSA Input'!J2529=\"Yes\",'TSA Input'!J2529=\"Contingent\"),'TSA Input'!I2529,\"\"))","v":""},{"$f":"IF('TSA Input'!J2529=\"\",\"\",IF(OR('TSA Input'!J2529=\"Yes\",'TSA Input'!J2529=\"Contingent\"),'TSA Input'!C2529,\"\"))","v":""},{"$f":"IF('TSA Input'!J2529=\"\",\"\",IF(OR('TSA Input'!J2529=\"Yes\",'TSA Input'!J2529=\"Contingent\"),'TSA Input'!D2529,\"\"))","v":""},{"$f":"IF('TSA Input'!J2529=\"\",\"\",IF(OR('TSA Input'!J2529=\"Yes\",'TSA Input'!J2529=\"Contingent\"),'TSA Input'!G2529,\"\"))","v":""},{"$f":"IF('TSA Input'!J2529=\"\",\"\",IF(OR('TSA Input'!J2529=\"Yes\",'TSA Input'!J2529=\"Contingent\"),'TSA Input'!F2529,\"\"))","v":""},"",{"$f":"IF('TSA Input'!J2529=\"\",\"\",IF(OR('TSA Input'!J2529=\"Yes\",'TSA Input'!J2529=\"Contingent\"),'TSA Input'!D2529,\"\"))","v":""},{"$f":"IF('TSA Input'!J2529=\"\",\"\",IF(OR('TSA Input'!J2529=\"Yes\",'TSA Input'!J2529=\"Contingent\"),'TSA Input'!G2529,\"\"))","v":""},{"$f":"IF('TSA Input'!J2529=\"\",\"\",IF(OR('TSA Input'!J2529=\"Yes\",'TSA Input'!J2529=\"Contingent\"),'TSA Input'!F2529,\"\"))","v":""},"","Required","Required"]
["",null,{"$f":"IF('TSA Input'!J2530=\"\",\"\",IF(OR('TSA Input'!J2530=\"Yes\",'TSA Input'!J2530=\"Contingent\"),'TSA Input'!B2530,\"Ineligible\"))","v":""},{"$f":"IF('TSA Input'!J2530=\"\",\"\",IF(OR('TSA Input'!J2530=\"Yes\",'TSA Input'!J2530=\"Contingent\"),'TSA Input'!I2530,\"\"))","v":""},{"$f":"IF('TSA Input'!J2530=\"\",\"\",IF(OR('TSA Input'!J2530=\"Yes\",'TSA Input'!J2530=\"Contingent\"),'TSA Input'!C2530,\"\"))","v":""},{"$f":"IF('TSA Input'!J2530=\"\",\"\",IF(OR('TSA Input'!J2530=\"Yes\",'TSA Input'!J2530=\"Contingent\"),'TSA Input'!D2530,\"\"))","v":""},{"$f":"IF('TSA Input'!J2530=\"\",\"\",IF(OR('TSA Input'!J2530=\"Yes\",'TSA Input'!J2530=\"Contingent\"),'TSA Input'!G2530,\"\"))","v":""},{"$f":"IF('TSA Input'!J2530=\"\",\"\",IF(OR('TSA Input'!J2530=\"Yes\",'TSA Input'!J2530=\"Contingent\"),'TSA Input'!F2530,\"\"))","v":""},"",{"$f":"IF('TSA Input'!J2530=\"\",\"\",IF(OR('TSA Input'!J2530=\"Yes\",'TSA Input'!J2530=\"Contingent\"),'TSA Input'!D2530,\"\"))","v":""},{"$f":"IF('TSA Input'!J2530=\"\",\"\",IF(OR('TSA Input'!J2530=\"Yes\",'TSA Input'!J2530=\"Contingent\"),'TSA Input'!G2530,\"\"))","v":""},{"$f":"IF('TSA Input'!J2530=\"\",\"\",IF(OR('TSA Input'!J2530=\"Yes\",'TSA Input'!J2530=\"Contingent\"),'TSA Input'!F2530,\"\"))","v":""},"","Required","Required"]
["",null,{"$f":"IF('TSA Input'!J2531=\"\",\"\",IF(OR('TSA Input'!J2531=\"Yes\",'TSA Input'!J2531=\"Contingent\"),'TSA Input'!B2531,\"Ineligible\"))","v":""},{"$f":"IF('TSA Input'!J2531=\"\",\"\",IF(OR('TSA Input'!J2531=\"Yes\",'TSA Input'!J2531=\"Contingent\"),'TSA Input'!I2531,\"\"))","v":""},{"$f":"IF('TSA Input'!J2531=\"\",\"\",IF(OR('TSA Input'!J2531=\"Yes\",'TSA Input'!J2531=\"Contingent\"),'TSA Input'!C2531,\"\"))","v":""},{"$f":"IF('TSA Input'!J2531=\"\",\"\",IF(OR('TSA Input'!J2531=\"Yes\",'TSA Input'!J2531=\"Contingent\"),'TSA Input'!D2531,\"\"))","v":""},{"$f":"IF('TSA Input'!J2531=\"\",\"\",IF(OR('TSA Input'!J2531=\"Yes\",'TSA Input'!J2531=\"Contingent\"),'TSA Input'!G2531,\"\"))","v":""},{"$f":"IF('TSA Input'!J2531=\"\",\"\",IF(OR('TSA Input'!J2531=\"Yes\",'TSA Input'!J2531=\"Contingent\"),'TSA Input'!F2531,\"\"))","v":""},"",{"$f":"IF('TSA Input'!J2531=\"\",\"\",IF(OR('TSA Input'!J2531=\"Yes\",'TSA Input'!J2531=\"Contingent\"),'TSA Input'!D2531,\"\"))","v":""},{"$f":"IF('TSA Input'!J2531=\"\",\"\",IF(OR('TSA Input'!J2531=\"Yes\",'TSA Input'!J2531=\"Contingent\"),'TSA Input'!G2531,\"\"))","v":""},{"$f":"IF('TSA Input'!J2531=\"\",\"\",IF(OR('TSA Input'!J2531=\"Yes\",'TSA Input'!J2531=\"Contingent\"),'TSA Input'!F2531,\"\"))","v":""},"","Required","Required"]
["",null,{"$f":"IF('TSA Input'!J2532=\"\",\"\",IF(OR('TSA Input'!J2532=\"Yes\",'TSA Input'!J2532=\"Contingent\"),'TSA Input'!B2532,\"Ineligible\"))","v":""},{"$f":"IF('TSA Input'!J2532=\"\",\"\",IF(OR('TSA Input'!J2532=\"Yes\",'TSA Input'!J2532=\"Contingent\"),'TSA Input'!I2532,\"\"))","v":""},{"$f":"IF('TSA Input'!J2532=\"\",\"\",IF(OR('TSA Input'!J2532=\"Yes\",'TSA Input'!J2532=\"Contingent\"),'TSA Input'!C2532,\"\"))","v":""},{"$f":"IF('TSA Input'!J2532=\"\",\"\",IF(OR('TSA Input'!J2532=\"Yes\",'TSA Input'!J2532=\"Contingent\"),'TSA Input'!D2532,\"\"))","v":""},{"$f":"IF('TSA Input'!J2532=\"\",\"\",IF(OR('TSA Input'!J2532=\"Yes\",'TSA Input'!J2532=\"Contingent\"),'TSA Input'!G2532,\"\"))","v":""},{"$f":"IF('TSA Input'!J2532=\"\",\"\",IF(OR('TSA Input'!J2532=\"Yes\",'TSA Input'!J2532=\"Contingent\"),'TSA Input'!F2532,\"\"))","v":""},"",{"$f":"IF('TSA Input'!J2532=\"\",\"\",IF(OR('TSA Input'!J2532=\"Yes\",'TSA Input'!J2532=\"Contingent\"),'TSA Input'!D2532,\"\"))","v":""},{"$f":"IF('TSA Input'!J2532=\"\",\"\",IF(OR('TSA Input'!J2532=\"Yes\",'TSA Input'!J2532=\"Contingent\"),'TSA Input'!G2532,\"\"))","v":""},{"$f":"IF('TSA Input'!J2532=\"\",\"\",IF(OR('TSA Input'!J2532=\"Yes\",'TSA Input'!J2532=\"Contingent\"),'TSA Input'!F2532,\"\"))","v":""},"","Required","Required"]
["",null,{"$f":"IF('TSA Input'!J2533=\"\",\"\",IF(OR('TSA Input'!J2533=\"Yes\",'TSA Input'!J2533=\"Contingent\"),'TSA Input'!B2533,\"Ineligible\"))","v":""},{"$f":"IF('TSA Input'!J2533=\"\",\"\",IF(OR('TSA Input'!J2533=\"Yes\",'TSA Input'!J2533=\"Contingent\"),'TSA Input'!I2533,\"\"))","v":""},{"$f":"IF('TSA Input'!J2533=\"\",\"\",IF(OR('TSA Input'!J2533=\"Yes\",'TSA Input'!J2533=\"Contingent\"),'TSA Input'!C2533,\"\"))","v":""},{"$f":"IF('TSA Input'!J2533=\"\",\"\",IF(OR('TSA Input'!J2533=\"Yes\",'TSA Input'!J2533=\"Contingent\"),'TSA Input'!D2533,\"\"))","v":""},{"$f":"IF('TSA Input'!J2533=\"\",\"\",IF(OR('TSA Input'!J2533=\"Yes\",'TSA Input'!J2533=\"Contingent\"),'TSA Input'!G2533,\"\"))","v":""},{"$f":"IF('TSA Input'!J2533=\"\",\"\",IF(OR('TSA Input'!J2533=\"Yes\",'TSA Input'!J2533=\"Contingent\"),'TSA Input'!F2533,\"\"))","v":""},"",{"$f":"IF('TSA Input'!J2533=\"\",\"\",IF(OR('TSA Input'!J2533=\"Yes\",'TSA Input'!J2533=\"Contingent\"),'TSA Input'!D2533,\"\"))","v":""},{"$f":"IF('TSA Input'!J2533=\"\",\"\",IF(OR('TSA Input'!J2533=\"Yes\",'TSA Input'!J2533=\"Contingent\"),'TSA Input'!G2533,\"\"))","v":""},{"$f":"IF('TSA Input'!J2533=\"\",\"\",IF(OR('TSA Input'!J2533=\"Yes\",'TSA Input'!J2533=\"Contingent\"),'TSA Input'!F2533,\"\"))","v":""},"","Required","Required"]
["",null,{"$f":"IF('TSA Input'!J2534=\"\",\"\",IF(OR('TSA Input'!J2534=\"Yes\",'TSA Input'!J2534=\"Contingent\"),'TSA Input'!B2534,\"Ineligible\"))","v":""},{"$f":"IF('TSA Input'!J2534=\"\",\"\",IF(OR('TSA Input'!J2534=\"Yes\",'TSA Input'!J2534=\"Contingent\"),'TSA Input'!I2534,\"\"))","v":""},{"$f":"IF('TSA Input'!J2534=\"\",\"\",IF(OR('TSA Input'!J2534=\"Yes\",'TSA Input'!J2534=\"Contingent\"),'TSA Input'!C2534,\"\"))","v":""},{"$f":"IF('TSA Input'!J2534=\"\",\"\",IF(OR('TSA Input'!J2534=\"Yes\",'TSA Input'!J2534=\"Contingent\"),'TSA Input'!D2534,\"\"))","v":""},{"$f":"IF('TSA Input'!J2534=\"\",\"\",IF(OR('TSA Input'!J2534=\"Yes\",'TSA Input'!J2534=\"Contingent\"),'TSA Input'!G2534,\"\"))","v":""},{"$f":"IF('TSA Input'!J2534=\"\",\"\",IF(OR('TSA Input'!J2534=\"Yes\",'TSA Input'!J2534=\"Contingent\"),'TSA Input'!F2534,\"\"))","v":""},"",{"$f":"IF('TSA Input'!J2534=\"\",\"\",IF(OR('TSA Input'!J2534=\"Yes\",'TSA Input'!J2534=\"Contingent\"),'TSA Input'!D2534,\"\"))","v":""},{"$f":"IF('TSA Input'!J2534=\"\",\"\",IF(OR('TSA Input'!J2534=\"Yes\",'TSA Input'!J2534=\"Contingent\"),'TSA Input'!G2534,\"\"))","v":""},{"$f":"IF('TSA Input'!J2534=\"\",\"\",IF(OR('TSA Input'!J2534=\"Yes\",'TSA Input'!J2534=\"Contingent\"),'TSA Input'!F2534,\"\"))","v":""},"","Required","Required"]
["",null,{"$f":"IF('TSA Input'!J2535=\"\",\"\",IF(OR('TSA Input'!J2535=\"Yes\",'TSA Input'!J2535=\"Contingent\"),'TSA Input'!B2535,\"Ineligible\"))","v":""},{"$f":"IF('TSA Input'!J2535=\"\",\"\",IF(OR('TSA Input'!J2535=\"Yes\",'TSA Input'!J2535=\"Contingent\"),'TSA Input'!I2535,\"\"))","v":""},{"$f":"IF('TSA Input'!J2535=\"\",\"\",IF(OR('TSA Input'!J2535=\"Yes\",'TSA Input'!J2535=\"Contingent\"),'TSA Input'!C2535,\"\"))","v":""},{"$f":"IF('TSA Input'!J2535=\"\",\"\",IF(OR('TSA Input'!J2535=\"Yes\",'TSA Input'!J2535=\"Contingent\"),'TSA Input'!D2535,\"\"))","v":""},{"$f":"IF('TSA Input'!J2535=\"\",\"\",IF(OR('TSA Input'!J2535=\"Yes\",'TSA Input'!J2535=\"Contingent\"),'TSA Input'!G2535,\"\"))","v":""},{"$f":"IF('TSA Input'!J2535=\"\",\"\",IF(OR('TSA Input'!J2535=\"Yes\",'TSA Input'!J2535=\"Contingent\"),'TSA Input'!F2535,\"\"))","v":""},"",{"$f":"IF('TSA Input'!J2535=\"\",\"\",IF(OR('TSA Input'!J2535=\"Yes\",'TSA Input'!J2535=\"Contingent\"),'TSA Input'!D2535,\"\"))","v":""},{"$f":"IF('TSA Input'!J2535=\"\",\"\",IF(OR('TSA Input'!J2535=\"Yes\",'TSA Input'!J2535=\"Contingent\"),'TSA Input'!G2535,\"\"))","v":""},{"$f":"IF('TSA Input'!J2535=\"\",\"\",IF(OR('TSA Input'!J2535=\"Yes\",'TSA Input'!J2535=\"Contingent\"),'TSA Input'!F2535,\"\"))","v":""},"","Required","Required"]
["",null,{"$f":"IF('TSA Input'!J2536=\"\",\"\",IF(OR('TSA Input'!J2536=\"Yes\",'TSA Input'!J2536=\"Contingent\"),'TSA Input'!B2536,\"Ineligible\"))","v":""},{"$f":"IF('TSA Input'!J2536=\"\",\"\",IF(OR('TSA Input'!J2536=\"Yes\",'TSA Input'!J2536=\"Contingent\"),'TSA Input'!I2536,\"\"))","v":""},{"$f":"IF('TSA Input'!J2536=\"\",\"\",IF(OR('TSA Input'!J2536=\"Yes\",'TSA Input'!J2536=\"Contingent\"),'TSA Input'!C2536,\"\"))","v":""},{"$f":"IF('TSA Input'!J2536=\"\",\"\",IF(OR('TSA Input'!J2536=\"Yes\",'TSA Input'!J2536=\"Contingent\"),'TSA Input'!D2536,\"\"))","v":""},{"$f":"IF('TSA Input'!J2536=\"\",\"\",IF(OR('TSA Input'!J2536=\"Yes\",'TSA Input'!J2536=\"Contingent\"),'TSA Input'!G2536,\"\"))","v":""},{"$f":"IF('TSA Input'!J2536=\"\",\"\",IF(OR('TSA Input'!J2536=\"Yes\",'TSA Input'!J2536=\"Contingent\"),'TSA Input'!F2536,\"\"))","v":""},"",{"$f":"IF('TSA Input'!J2536=\"\",\"\",IF(OR('TSA Input'!J2536=\"Yes\",'TSA Input'!J2536=\"Contingent\"),'TSA Input'!D2536,\"\"))","v":""},{"$f":"IF('TSA Input'!J2536=\"\",\"\",IF(OR('TSA Input'!J2536=\"Yes\",'TSA Input'!J2536=\"Contingent\"),'TSA Input'!G2536,\"\"))","v":""},{"$f":"IF('TSA Input'!J2536=\"\",\"\",IF(OR('TSA Input'!J2536=\"Yes\",'TSA Input'!J2536=\"Contingent\"),'TSA Input'!F2536,\"\"))","v":""},"","Required","Required"]
["",null,{"$f":"IF('TSA Input'!J2537=\"\",\"\",IF(OR('TSA Input'!J2537=\"Yes\",'TSA Input'!J2537=\"Contingent\"),'TSA Input'!B2537,\"Ineligible\"))","v":""},{"$f":"IF('TSA Input'!J2537=\"\",\"\",IF(OR('TSA Input'!J2537=\"Yes\",'TSA Input'!J2537=\"Contingent\"),'TSA Input'!I2537,\"\"))","v":""},{"$f":"IF('TSA Input'!J2537=\"\",\"\",IF(OR('TSA Input'!J2537=\"Yes\",'TSA Input'!J2537=\"Contingent\"),'TSA Input'!C2537,\"\"))","v":""},{"$f":"IF('TSA Input'!J2537=\"\",\"\",IF(OR('TSA Input'!J2537=\"Yes\",'TSA Input'!J2537=\"Contingent\"),'TSA Input'!D2537,\"\"))","v":""},{"$f":"IF('TSA Input'!J2537=\"\",\"\",IF(OR('TSA Input'!J2537=\"Yes\",'TSA Input'!J2537=\"Contingent\"),'TSA Input'!G2537,\"\"))","v":""},{"$f":"IF('TSA Input'!J2537=\"\",\"\",IF(OR('TSA Input'!J2537=\"Yes\",'TSA Input'!J2537=\"Contingent\"),'TSA Input'!F2537,\"\"))","v":""},"",{"$f":"IF('TSA Input'!J2537=\"\",\"\",IF(OR('TSA Input'!J2537=\"Yes\",'TSA Input'!J2537=\"Contingent\"),'TSA Input'!D2537,\"\"))","v":""},{"$f":"IF('TSA Input'!J2537=\"\",\"\",IF(OR('TSA Input'!J2537=\"Yes\",'TSA Input'!J2537=\"Contingent\"),'TSA Input'!G2537,\"\"))","v":""},{"$f":"IF('TSA Input'!J2537=\"\",\"\",IF(OR('TSA Input'!J2537=\"Yes\",'TSA Input'!J2537=\"Contingent\"),'TSA Input'!F2537,\"\"))","v":""},"","Required","Required"]
["",null,{"$f":"IF('TSA Input'!J2538=\"\",\"\",IF(OR('TSA Input'!J2538=\"Yes\",'TSA Input'!J2538=\"Contingent\"),'TSA Input'!B2538,\"Ineligible\"))","v":""},{"$f":"IF('TSA Input'!J2538=\"\",\"\",IF(OR('TSA Input'!J2538=\"Yes\",'TSA Input'!J2538=\"Contingent\"),'TSA Input'!I2538,\"\"))","v":""},{"$f":"IF('TSA Input'!J2538=\"\",\"\",IF(OR('TSA Input'!J2538=\"Yes\",'TSA Input'!J2538=\"Contingent\"),'TSA Input'!C2538,\"\"))","v":""},{"$f":"IF('TSA Input'!J2538=\"\",\"\",IF(OR('TSA Input'!J2538=\"Yes\",'TSA Input'!J2538=\"Contingent\"),'TSA Input'!D2538,\"\"))","v":""},{"$f":"IF('TSA Input'!J2538=\"\",\"\",IF(OR('TSA Input'!J2538=\"Yes\",'TSA Input'!J2538=\"Contingent\"),'TSA Input'!G2538,\"\"))","v":""},{"$f":"IF('TSA Input'!J2538=\"\",\"\",IF(OR('TSA Input'!J2538=\"Yes\",'TSA Input'!J2538=\"Contingent\"),'TSA Input'!F2538,\"\"))","v":""},"",{"$f":"IF('TSA Input'!J2538=\"\",\"\",IF(OR('TSA Input'!J2538=\"Yes\",'TSA Input'!J2538=\"Contingent\"),'TSA Input'!D2538,\"\"))","v":""},{"$f":"IF('TSA Input'!J2538=\"\",\"\",IF(OR('TSA Input'!J2538=\"Yes\",'TSA Input'!J2538=\"Contingent\"),'TSA Input'!G2538,\"\"))","v":""},{"$f":"IF('TSA Input'!J2538=\"\",\"\",IF(OR('TSA Input'!J2538=\"Yes\",'TSA Input'!J2538=\"Contingent\"),'TSA Input'!F2538,\"\"))","v":""},"","Required","Required"]
["",null,{"$f":"IF('TSA Input'!J2539=\"\",\"\",IF(OR('TSA Input'!J2539=\"Yes\",'TSA Input'!J2539=\"Contingent\"),'TSA Input'!B2539,\"Ineligible\"))","v":""},{"$f":"IF('TSA Input'!J2539=\"\",\"\",IF(OR('TSA Input'!J2539=\"Yes\",'TSA Input'!J2539=\"Contingent\"),'TSA Input'!I2539,\"\"))","v":""},{"$f":"IF('TSA Input'!J2539=\"\",\"\",IF(OR('TSA Input'!J2539=\"Yes\",'TSA Input'!J2539=\"Contingent\"),'TSA Input'!C2539,\"\"))","v":""},{"$f":"IF('TSA Input'!J2539=\"\",\"\",IF(OR('TSA Input'!J2539=\"Yes\",'TSA Input'!J2539=\"Contingent\"),'TSA Input'!D2539,\"\"))","v":""},{"$f":"IF('TSA Input'!J2539=\"\",\"\",IF(OR('TSA Input'!J2539=\"Yes\",'TSA Input'!J2539=\"Contingent\"),'TSA Input'!G2539,\"\"))","v":""},{"$f":"IF('TSA Input'!J2539=\"\",\"\",IF(OR('TSA Input'!J2539=\"Yes\",'TSA Input'!J2539=\"Contingent\"),'TSA Input'!F2539,\"\"))","v":""},"",{"$f":"IF('TSA Input'!J2539=\"\",\"\",IF(OR('TSA Input'!J2539=\"Yes\",'TSA Input'!J2539=\"Contingent\"),'TSA Input'!D2539,\"\"))","v":""},{"$f":"IF('TSA Input'!J2539=\"\",\"\",IF(OR('TSA Input'!J2539=\"Yes\",'TSA Input'!J2539=\"Contingent\"),'TSA Input'!G2539,\"\"))","v":""},{"$f":"IF('TSA Input'!J2539=\"\",\"\",IF(OR('TSA Input'!J2539=\"Yes\",'TSA Input'!J2539=\"Contingent\"),'TSA Input'!F2539,\"\"))","v":""},"","Required","Required"]
["",null,{"$f":"IF('TSA Input'!J2540=\"\",\"\",IF(OR('TSA Input'!J2540=\"Yes\",'TSA Input'!J2540=\"Contingent\"),'TSA Input'!B2540,\"Ineligible\"))","v":""},{"$f":"IF('TSA Input'!J2540=\"\",\"\",IF(OR('TSA Input'!J2540=\"Yes\",'TSA Input'!J2540=\"Contingent\"),'TSA Input'!I2540,\"\"))","v":""},{"$f":"IF('TSA Input'!J2540=\"\",\"\",IF(OR('TSA Input'!J2540=\"Yes\",'TSA Input'!J2540=\"Contingent\"),'TSA Input'!C2540,\"\"))","v":""},{"$f":"IF('TSA Input'!J2540=\"\",\"\",IF(OR('TSA Input'!J2540=\"Yes\",'TSA Input'!J2540=\"Contingent\"),'TSA Input'!D2540,\"\"))","v":""},{"$f":"IF('TSA Input'!J2540=\"\",\"\",IF(OR('TSA Input'!J2540=\"Yes\",'TSA Input'!J2540=\"Contingent\"),'TSA Input'!G2540,\"\"))","v":""},{"$f":"IF('TSA Input'!J2540=\"\",\"\",IF(OR('TSA Input'!J2540=\"Yes\",'TSA Input'!J2540=\"Contingent\"),'TSA Input'!F2540,\"\"))","v":""},"",{"$f":"IF('TSA Input'!J2540=\"\",\"\",IF(OR('TSA Input'!J2540=\"Yes\",'TSA Input'!J2540=\"Contingent\"),'TSA Input'!D2540,\"\"))","v":""},{"$f":"IF('TSA Input'!J2540=\"\",\"\",IF(OR('TSA Input'!J2540=\"Yes\",'TSA Input'!J2540=\"Contingent\"),'TSA Input'!G2540,\"\"))","v":""},{"$f":"IF('TSA Input'!J2540=\"\",\"\",IF(OR('TSA Input'!J2540=\"Yes\",'TSA Input'!J2540=\"Contingent\"),'TSA Input'!F2540,\"\"))","v":""},"","Required","Required"]
["",null,{"$f":"IF('TSA Input'!J2541=\"\",\"\",IF(OR('TSA Input'!J2541=\"Yes\",'TSA Input'!J2541=\"Contingent\"),'TSA Input'!B2541,\"Ineligible\"))","v":""},{"$f":"IF('TSA Input'!J2541=\"\",\"\",IF(OR('TSA Input'!J2541=\"Yes\",'TSA Input'!J2541=\"Contingent\"),'TSA Input'!I2541,\"\"))","v":""},{"$f":"IF('TSA Input'!J2541=\"\",\"\",IF(OR('TSA Input'!J2541=\"Yes\",'TSA Input'!J2541=\"Contingent\"),'TSA Input'!C2541,\"\"))","v":""},{"$f":"IF('TSA Input'!J2541=\"\",\"\",IF(OR('TSA Input'!J2541=\"Yes\",'TSA Input'!J2541=\"Contingent\"),'TSA Input'!D2541,\"\"))","v":""},{"$f":"IF('TSA Input'!J2541=\"\",\"\",IF(OR('TSA Input'!J2541=\"Yes\",'TSA Input'!J2541=\"Contingent\"),'TSA Input'!G2541,\"\"))","v":""},{"$f":"IF('TSA Input'!J2541=\"\",\"\",IF(OR('TSA Input'!J2541=\"Yes\",'TSA Input'!J2541=\"Contingent\"),'TSA Input'!F2541,\"\"))","v":""},"",{"$f":"IF('TSA Input'!J2541=\"\",\"\",IF(OR('TSA Input'!J2541=\"Yes\",'TSA Input'!J2541=\"Contingent\"),'TSA Input'!D2541,\"\"))","v":""},{"$f":"IF('TSA Input'!J2541=\"\",\"\",IF(OR('TSA Input'!J2541=\"Yes\",'TSA Input'!J2541=\"Contingent\"),'TSA Input'!G2541,\"\"))","v":""},{"$f":"IF('TSA Input'!J2541=\"\",\"\",IF(OR('TSA Input'!J2541=\"Yes\",'TSA Input'!J2541=\"Contingent\"),'TSA Input'!F2541,\"\"))","v":""},"","Required","Required"]
["",null,{"$f":"IF('TSA Input'!J2542=\"\",\"\",IF(OR('TSA Input'!J2542=\"Yes\",'TSA Input'!J2542=\"Contingent\"),'TSA Input'!B2542,\"Ineligible\"))","v":""},{"$f":"IF('TSA Input'!J2542=\"\",\"\",IF(OR('TSA Input'!J2542=\"Yes\",'TSA Input'!J2542=\"Contingent\"),'TSA Input'!I2542,\"\"))","v":""},{"$f":"IF('TSA Input'!J2542=\"\",\"\",IF(OR('TSA Input'!J2542=\"Yes\",'TSA Input'!J2542=\"Contingent\"),'TSA Input'!C2542,\"\"))","v":""},{"$f":"IF('TSA Input'!J2542=\"\",\"\",IF(OR('TSA Input'!J2542=\"Yes\",'TSA Input'!J2542=\"Contingent\"),'TSA Input'!D2542,\"\"))","v":""},{"$f":"IF('TSA Input'!J2542=\"\",\"\",IF(OR('TSA Input'!J2542=\"Yes\",'TSA Input'!J2542=\"Contingent\"),'TSA Input'!G2542,\"\"))","v":""},{"$f":"IF('TSA Input'!J2542=\"\",\"\",IF(OR('TSA Input'!J2542=\"Yes\",'TSA Input'!J2542=\"Contingent\"),'TSA Input'!F2542,\"\"))","v":""},"",{"$f":"IF('TSA Input'!J2542=\"\",\"\",IF(OR('TSA Input'!J2542=\"Yes\",'TSA Input'!J2542=\"Contingent\"),'TSA Input'!D2542,\"\"))","v":""},{"$f":"IF('TSA Input'!J2542=\"\",\"\",IF(OR('TSA Input'!J2542=\"Yes\",'TSA Input'!J2542=\"Contingent\"),'TSA Input'!G2542,\"\"))","v":""},{"$f":"IF('TSA Input'!J2542=\"\",\"\",IF(OR('TSA Input'!J2542=\"Yes\",'TSA Input'!J2542=\"Contingent\"),'TSA Input'!F2542,\"\"))","v":""},"","Required","Required"]
["",null,{"$f":"IF('TSA Input'!J2543=\"\",\"\",IF(OR('TSA Input'!J2543=\"Yes\",'TSA Input'!J2543=\"Contingent\"),'TSA Input'!B2543,\"Ineligible\"))","v":""},{"$f":"IF('TSA Input'!J2543=\"\",\"\",IF(OR('TSA Input'!J2543=\"Yes\",'TSA Input'!J2543=\"Contingent\"),'TSA Input'!I2543,\"\"))","v":""},{"$f":"IF('TSA Input'!J2543=\"\",\"\",IF(OR('TSA Input'!J2543=\"Yes\",'TSA Input'!J2543=\"Contingent\"),'TSA Input'!C2543,\"\"))","v":""},{"$f":"IF('TSA Input'!J2543=\"\",\"\",IF(OR('TSA Input'!J2543=\"Yes\",'TSA Input'!J2543=\"Contingent\"),'TSA Input'!D2543,\"\"))","v":""},{"$f":"IF('TSA Input'!J2543=\"\",\"\",IF(OR('TSA Input'!J2543=\"Yes\",'TSA Input'!J2543=\"Contingent\"),'TSA Input'!G2543,\"\"))","v":""},{"$f":"IF('TSA Input'!J2543=\"\",\"\",IF(OR('TSA Input'!J2543=\"Yes\",'TSA Input'!J2543=\"Contingent\"),'TSA Input'!F2543,\"\"))","v":""},"",{"$f":"IF('TSA Input'!J2543=\"\",\"\",IF(OR('TSA Input'!J2543=\"Yes\",'TSA Input'!J2543=\"Contingent\"),'TSA Input'!D2543,\"\"))","v":""},{"$f":"IF('TSA Input'!J2543=\"\",\"\",IF(OR('TSA Input'!J2543=\"Yes\",'TSA Input'!J2543=\"Contingent\"),'TSA Input'!G2543,\"\"))","v":""},{"$f":"IF('TSA Input'!J2543=\"\",\"\",IF(OR('TSA Input'!J2543=\"Yes\",'TSA Input'!J2543=\"Contingent\"),'TSA Input'!F2543,\"\"))","v":""},"","Required","Required"]
["",null,{"$f":"IF('TSA Input'!J2544=\"\",\"\",IF(OR('TSA Input'!J2544=\"Yes\",'TSA Input'!J2544=\"Contingent\"),'TSA Input'!B2544,\"Ineligible\"))","v":""},{"$f":"IF('TSA Input'!J2544=\"\",\"\",IF(OR('TSA Input'!J2544=\"Yes\",'TSA Input'!J2544=\"Contingent\"),'TSA Input'!I2544,\"\"))","v":""},{"$f":"IF('TSA Input'!J2544=\"\",\"\",IF(OR('TSA Input'!J2544=\"Yes\",'TSA Input'!J2544=\"Contingent\"),'TSA Input'!C2544,\"\"))","v":""},{"$f":"IF('TSA Input'!J2544=\"\",\"\",IF(OR('TSA Input'!J2544=\"Yes\",'TSA Input'!J2544=\"Contingent\"),'TSA Input'!D2544,\"\"))","v":""},{"$f":"IF('TSA Input'!J2544=\"\",\"\",IF(OR('TSA Input'!J2544=\"Yes\",'TSA Input'!J2544=\"Contingent\"),'TSA Input'!G2544,\"\"))","v":""},{"$f":"IF('TSA Input'!J2544=\"\",\"\",IF(OR('TSA Input'!J2544=\"Yes\",'TSA Input'!J2544=\"Contingent\"),'TSA Input'!F2544,\"\"))","v":""},"",{"$f":"IF('TSA Input'!J2544=\"\",\"\",IF(OR('TSA Input'!J2544=\"Yes\",'TSA Input'!J2544=\"Contingent\"),'TSA Input'!D2544,\"\"))","v":""},{"$f":"IF('TSA Input'!J2544=\"\",\"\",IF(OR('TSA Input'!J2544=\"Yes\",'TSA Input'!J2544=\"Contingent\"),'TSA Input'!G2544,\"\"))","v":""},{"$f":"IF('TSA Input'!J2544=\"\",\"\",IF(OR('TSA Input'!J2544=\"Yes\",'TSA Input'!J2544=\"Contingent\"),'TSA Input'!F2544,\"\"))","v":""},"","Required","Required"]
["",null,{"$f":"IF('TSA Input'!J2545=\"\",\"\",IF(OR('TSA Input'!J2545=\"Yes\",'TSA Input'!J2545=\"Contingent\"),'TSA Input'!B2545,\"Ineligible\"))","v":""},{"$f":"IF('TSA Input'!J2545=\"\",\"\",IF(OR('TSA Input'!J2545=\"Yes\",'TSA Input'!J2545=\"Contingent\"),'TSA Input'!I2545,\"\"))","v":""},{"$f":"IF('TSA Input'!J2545=\"\",\"\",IF(OR('TSA Input'!J2545=\"Yes\",'TSA Input'!J2545=\"Contingent\"),'TSA Input'!C2545,\"\"))","v":""},{"$f":"IF('TSA Input'!J2545=\"\",\"\",IF(OR('TSA Input'!J2545=\"Yes\",'TSA Input'!J2545=\"Contingent\"),'TSA Input'!D2545,\"\"))","v":""},{"$f":"IF('TSA Input'!J2545=\"\",\"\",IF(OR('TSA Input'!J2545=\"Yes\",'TSA Input'!J2545=\"Contingent\"),'TSA Input'!G2545,\"\"))","v":""},{"$f":"IF('TSA Input'!J2545=\"\",\"\",IF(OR('TSA Input'!J2545=\"Yes\",'TSA Input'!J2545=\"Contingent\"),'TSA Input'!F2545,\"\"))","v":""},"",{"$f":"IF('TSA Input'!J2545=\"\",\"\",IF(OR('TSA Input'!J2545=\"Yes\",'TSA Input'!J2545=\"Contingent\"),'TSA Input'!D2545,\"\"))","v":""},{"$f":"IF('TSA Input'!J2545=\"\",\"\",IF(OR('TSA Input'!J2545=\"Yes\",'TSA Input'!J2545=\"Contingent\"),'TSA Input'!G2545,\"\"))","v":""},{"$f":"IF('TSA Input'!J2545=\"\",\"\",IF(OR('TSA Input'!J2545=\"Yes\",'TSA Input'!J2545=\"Contingent\"),'TSA Input'!F2545,\"\"))","v":""},"","Required","Required"]
["",null,{"$f":"IF('TSA Input'!J2546=\"\",\"\",IF(OR('TSA Input'!J2546=\"Yes\",'TSA Input'!J2546=\"Contingent\"),'TSA Input'!B2546,\"Ineligible\"))","v":""},{"$f":"IF('TSA Input'!J2546=\"\",\"\",IF(OR('TSA Input'!J2546=\"Yes\",'TSA Input'!J2546=\"Contingent\"),'TSA Input'!I2546,\"\"))","v":""},{"$f":"IF('TSA Input'!J2546=\"\",\"\",IF(OR('TSA Input'!J2546=\"Yes\",'TSA Input'!J2546=\"Contingent\"),'TSA Input'!C2546,\"\"))","v":""},{"$f":"IF('TSA Input'!J2546=\"\",\"\",IF(OR('TSA Input'!J2546=\"Yes\",'TSA Input'!J2546=\"Contingent\"),'TSA Input'!D2546,\"\"))","v":""},{"$f":"IF('TSA Input'!J2546=\"\",\"\",IF(OR('TSA Input'!J2546=\"Yes\",'TSA Input'!J2546=\"Contingent\"),'TSA Input'!G2546,\"\"))","v":""},{"$f":"IF('TSA Input'!J2546=\"\",\"\",IF(OR('TSA Input'!J2546=\"Yes\",'TSA Input'!J2546=\"Contingent\"),'TSA Input'!F2546,\"\"))","v":""},"",{"$f":"IF('TSA Input'!J2546=\"\",\"\",IF(OR('TSA Input'!J2546=\"Yes\",'TSA Input'!J2546=\"Contingent\"),'TSA Input'!D2546,\"\"))","v":""},{"$f":"IF('TSA Input'!J2546=\"\",\"\",IF(OR('TSA Input'!J2546=\"Yes\",'TSA Input'!J2546=\"Contingent\"),'TSA Input'!G2546,\"\"))","v":""},{"$f":"IF('TSA Input'!J2546=\"\",\"\",IF(OR('TSA Input'!J2546=\"Yes\",'TSA Input'!J2546=\"Contingent\"),'TSA Input'!F2546,\"\"))","v":""},"","Required","Required"]
["",null,{"$f":"IF('TSA Input'!J2547=\"\",\"\",IF(OR('TSA Input'!J2547=\"Yes\",'TSA Input'!J2547=\"Contingent\"),'TSA Input'!B2547,\"Ineligible\"))","v":""},{"$f":"IF('TSA Input'!J2547=\"\",\"\",IF(OR('TSA Input'!J2547=\"Yes\",'TSA Input'!J2547=\"Contingent\"),'TSA Input'!I2547,\"\"))","v":""},{"$f":"IF('TSA Input'!J2547=\"\",\"\",IF(OR('TSA Input'!J2547=\"Yes\",'TSA Input'!J2547=\"Contingent\"),'TSA Input'!C2547,\"\"))","v":""},{"$f":"IF('TSA Input'!J2547=\"\",\"\",IF(OR('TSA Input'!J2547=\"Yes\",'TSA Input'!J2547=\"Contingent\"),'TSA Input'!D2547,\"\"))","v":""},{"$f":"IF('TSA Input'!J2547=\"\",\"\",IF(OR('TSA Input'!J2547=\"Yes\",'TSA Input'!J2547=\"Contingent\"),'TSA Input'!G2547,\"\"))","v":""},{"$f":"IF('TSA Input'!J2547=\"\",\"\",IF(OR('TSA Input'!J2547=\"Yes\",'TSA Input'!J2547=\"Contingent\"),'TSA Input'!F2547,\"\"))","v":""},"",{"$f":"IF('TSA Input'!J2547=\"\",\"\",IF(OR('TSA Input'!J2547=\"Yes\",'TSA Input'!J2547=\"Contingent\"),'TSA Input'!D2547,\"\"))","v":""},{"$f":"IF('TSA Input'!J2547=\"\",\"\",IF(OR('TSA Input'!J2547=\"Yes\",'TSA Input'!J2547=\"Contingent\"),'TSA Input'!G2547,\"\"))","v":""},{"$f":"IF('TSA Input'!J2547=\"\",\"\",IF(OR('TSA Input'!J2547=\"Yes\",'TSA Input'!J2547=\"Contingent\"),'TSA Input'!F2547,\"\"))","v":""},"","Required","Required"]
["",null,{"$f":"IF('TSA Input'!J2548=\"\",\"\",IF(OR('TSA Input'!J2548=\"Yes\",'TSA Input'!J2548=\"Contingent\"),'TSA Input'!B2548,\"Ineligible\"))","v":""},{"$f":"IF('TSA Input'!J2548=\"\",\"\",IF(OR('TSA Input'!J2548=\"Yes\",'TSA Input'!J2548=\"Contingent\"),'TSA Input'!I2548,\"\"))","v":""},{"$f":"IF('TSA Input'!J2548=\"\",\"\",IF(OR('TSA Input'!J2548=\"Yes\",'TSA Input'!J2548=\"Contingent\"),'TSA Input'!C2548,\"\"))","v":""},{"$f":"IF('TSA Input'!J2548=\"\",\"\",IF(OR('TSA Input'!J2548=\"Yes\",'TSA Input'!J2548=\"Contingent\"),'TSA Input'!D2548,\"\"))","v":""},{"$f":"IF('TSA Input'!J2548=\"\",\"\",IF(OR('TSA Input'!J2548=\"Yes\",'TSA Input'!J2548=\"Contingent\"),'TSA Input'!G2548,\"\"))","v":""},{"$f":"IF('TSA Input'!J2548=\"\",\"\",IF(OR('TSA Input'!J2548=\"Yes\",'TSA Input'!J2548=\"Contingent\"),'TSA Input'!F2548,\"\"))","v":""},"",{"$f":"IF('TSA Input'!J2548=\"\",\"\",IF(OR('TSA Input'!J2548=\"Yes\",'TSA Input'!J2548=\"Contingent\"),'TSA Input'!D2548,\"\"))","v":""},{"$f":"IF('TSA Input'!J2548=\"\",\"\",IF(OR('TSA Input'!J2548=\"Yes\",'TSA Input'!J2548=\"Contingent\"),'TSA Input'!G2548,\"\"))","v":""},{"$f":"IF('TSA Input'!J2548=\"\",\"\",IF(OR('TSA Input'!J2548=\"Yes\",'TSA Input'!J2548=\"Contingent\"),'TSA Input'!F2548,\"\"))","v":""},"","Required","Required"]
["",null,{"$f":"IF('TSA Input'!J2549=\"\",\"\",IF(OR('TSA Input'!J2549=\"Yes\",'TSA Input'!J2549=\"Contingent\"),'TSA Input'!B2549,\"Ineligible\"))","v":""},{"$f":"IF('TSA Input'!J2549=\"\",\"\",IF(OR('TSA Input'!J2549=\"Yes\",'TSA Input'!J2549=\"Contingent\"),'TSA Input'!I2549,\"\"))","v":""},{"$f":"IF('TSA Input'!J2549=\"\",\"\",IF(OR('TSA Input'!J2549=\"Yes\",'TSA Input'!J2549=\"Contingent\"),'TSA Input'!C2549,\"\"))","v":""},{"$f":"IF('TSA Input'!J2549=\"\",\"\",IF(OR('TSA Input'!J2549=\"Yes\",'TSA Input'!J2549=\"Contingent\"),'TSA Input'!D2549,\"\"))","v":""},{"$f":"IF('TSA Input'!J2549=\"\",\"\",IF(OR('TSA Input'!J2549=\"Yes\",'TSA Input'!J2549=\"Contingent\"),'TSA Input'!G2549,\"\"))","v":""},{"$f":"IF('TSA Input'!J2549=\"\",\"\",IF(OR('TSA Input'!J2549=\"Yes\",'TSA Input'!J2549=\"Contingent\"),'TSA Input'!F2549,\"\"))","v":""},"",{"$f":"IF('TSA Input'!J2549=\"\",\"\",IF(OR('TSA Input'!J2549=\"Yes\",'TSA Input'!J2549=\"Contingent\"),'TSA Input'!D2549,\"\"))","v":""},{"$f":"IF('TSA Input'!J2549=\"\",\"\",IF(OR('TSA Input'!J2549=\"Yes\",'TSA Input'!J2549=\"Contingent\"),'TSA Input'!G2549,\"\"))","v":""},{"$f":"IF('TSA Input'!J2549=\"\",\"\",IF(OR('TSA Input'!J2549=\"Yes\",'TSA Input'!J2549=\"Contingent\"),'TSA Input'!F2549,\"\"))","v":""},"","Required","Required"]
["",null,{"$f":"IF('TSA Input'!J2550=\"\",\"\",IF(OR('TSA Input'!J2550=\"Yes\",'TSA Input'!J2550=\"Contingent\"),'TSA Input'!B2550,\"Ineligible\"))","v":""},{"$f":"IF('TSA Input'!J2550=\"\",\"\",IF(OR('TSA Input'!J2550=\"Yes\",'TSA Input'!J2550=\"Contingent\"),'TSA Input'!I2550,\"\"))","v":""},{"$f":"IF('TSA Input'!J2550=\"\",\"\",IF(OR('TSA Input'!J2550=\"Yes\",'TSA Input'!J2550=\"Contingent\"),'TSA Input'!C2550,\"\"))","v":""},{"$f":"IF('TSA Input'!J2550=\"\",\"\",IF(OR('TSA Input'!J2550=\"Yes\",'TSA Input'!J2550=\"Contingent\"),'TSA Input'!D2550,\"\"))","v":""},{"$f":"IF('TSA Input'!J2550=\"\",\"\",IF(OR('TSA Input'!J2550=\"Yes\",'TSA Input'!J2550=\"Contingent\"),'TSA Input'!G2550,\"\"))","v":""},{"$f":"IF('TSA Input'!J2550=\"\",\"\",IF(OR('TSA Input'!J2550=\"Yes\",'TSA Input'!J2550=\"Contingent\"),'TSA Input'!F2550,\"\"))","v":""},"",{"$f":"IF('TSA Input'!J2550=\"\",\"\",IF(OR('TSA Input'!J2550=\"Yes\",'TSA Input'!J2550=\"Contingent\"),'TSA Input'!D2550,\"\"))","v":""},{"$f":"IF('TSA Input'!J2550=\"\",\"\",IF(OR('TSA Input'!J2550=\"Yes\",'TSA Input'!J2550=\"Contingent\"),'TSA Input'!G2550,\"\"))","v":""},{"$f":"IF('TSA Input'!J2550=\"\",\"\",IF(OR('TSA Input'!J2550=\"Yes\",'TSA Input'!J2550=\"Contingent\"),'TSA Input'!F2550,\"\"))","v":""},"","Required","Required"]
["",null,{"$f":"IF('TSA Input'!J2551=\"\",\"\",IF(OR('TSA Input'!J2551=\"Yes\",'TSA Input'!J2551=\"Contingent\"),'TSA Input'!B2551,\"Ineligible\"))","v":""},{"$f":"IF('TSA Input'!J2551=\"\",\"\",IF(OR('TSA Input'!J2551=\"Yes\",'TSA Input'!J2551=\"Contingent\"),'TSA Input'!I2551,\"\"))","v":""},{"$f":"IF('TSA Input'!J2551=\"\",\"\",IF(OR('TSA Input'!J2551=\"Yes\",'TSA Input'!J2551=\"Contingent\"),'TSA Input'!C2551,\"\"))","v":""},{"$f":"IF('TSA Input'!J2551=\"\",\"\",IF(OR('TSA Input'!J2551=\"Yes\",'TSA Input'!J2551=\"Contingent\"),'TSA Input'!D2551,\"\"))","v":""},{"$f":"IF('TSA Input'!J2551=\"\",\"\",IF(OR('TSA Input'!J2551=\"Yes\",'TSA Input'!J2551=\"Contingent\"),'TSA Input'!G2551,\"\"))","v":""},{"$f":"IF('TSA Input'!J2551=\"\",\"\",IF(OR('TSA Input'!J2551=\"Yes\",'TSA Input'!J2551=\"Contingent\"),'TSA Input'!F2551,\"\"))","v":""},"",{"$f":"IF('TSA Input'!J2551=\"\",\"\",IF(OR('TSA Input'!J2551=\"Yes\",'TSA Input'!J2551=\"Contingent\"),'TSA Input'!D2551,\"\"))","v":""},{"$f":"IF('TSA Input'!J2551=\"\",\"\",IF(OR('TSA Input'!J2551=\"Yes\",'TSA Input'!J2551=\"Contingent\"),'TSA Input'!G2551,\"\"))","v":""},{"$f":"IF('TSA Input'!J2551=\"\",\"\",IF(OR('TSA Input'!J2551=\"Yes\",'TSA Input'!J2551=\"Contingent\"),'TSA Input'!F2551,\"\"))","v":""},"","Required","Required"]
["",null,{"$f":"IF('TSA Input'!J2552=\"\",\"\",IF(OR('TSA Input'!J2552=\"Yes\",'TSA Input'!J2552=\"Contingent\"),'TSA Input'!B2552,\"Ineligible\"))","v":""},{"$f":"IF('TSA Input'!J2552=\"\",\"\",IF(OR('TSA Input'!J2552=\"Yes\",'TSA Input'!J2552=\"Contingent\"),'TSA Input'!I2552,\"\"))","v":""},{"$f":"IF('TSA Input'!J2552=\"\",\"\",IF(OR('TSA Input'!J2552=\"Yes\",'TSA Input'!J2552=\"Contingent\"),'TSA Input'!C2552,\"\"))","v":""},{"$f":"IF('TSA Input'!J2552=\"\",\"\",IF(OR('TSA Input'!J2552=\"Yes\",'TSA Input'!J2552=\"Contingent\"),'TSA Input'!D2552,\"\"))","v":""},{"$f":"IF('TSA Input'!J2552=\"\",\"\",IF(OR('TSA Input'!J2552=\"Yes\",'TSA Input'!J2552=\"Contingent\"),'TSA Input'!G2552,\"\"))","v":""},{"$f":"IF('TSA Input'!J2552=\"\",\"\",IF(OR('TSA Input'!J2552=\"Yes\",'TSA Input'!J2552=\"Contingent\"),'TSA Input'!F2552,\"\"))","v":""},"",{"$f":"IF('TSA Input'!J2552=\"\",\"\",IF(OR('TSA Input'!J2552=\"Yes\",'TSA Input'!J2552=\"Contingent\"),'TSA Input'!D2552,\"\"))","v":""},{"$f":"IF('TSA Input'!J2552=\"\",\"\",IF(OR('TSA Input'!J2552=\"Yes\",'TSA Input'!J2552=\"Contingent\"),'TSA Input'!G2552,\"\"))","v":""},{"$f":"IF('TSA Input'!J2552=\"\",\"\",IF(OR('TSA Input'!J2552=\"Yes\",'TSA Input'!J2552=\"Contingent\"),'TSA Input'!F2552,\"\"))","v":""},"","Required","Required"]
["",null,{"$f":"IF('TSA Input'!J2553=\"\",\"\",IF(OR('TSA Input'!J2553=\"Yes\",'TSA Input'!J2553=\"Contingent\"),'TSA Input'!B2553,\"Ineligible\"))","v":""},{"$f":"IF('TSA Input'!J2553=\"\",\"\",IF(OR('TSA Input'!J2553=\"Yes\",'TSA Input'!J2553=\"Contingent\"),'TSA Input'!I2553,\"\"))","v":""},{"$f":"IF('TSA Input'!J2553=\"\",\"\",IF(OR('TSA Input'!J2553=\"Yes\",'TSA Input'!J2553=\"Contingent\"),'TSA Input'!C2553,\"\"))","v":""},{"$f":"IF('TSA Input'!J2553=\"\",\"\",IF(OR('TSA Input'!J2553=\"Yes\",'TSA Input'!J2553=\"Contingent\"),'TSA Input'!D2553,\"\"))","v":""},{"$f":"IF('TSA Input'!J2553=\"\",\"\",IF(OR('TSA Input'!J2553=\"Yes\",'TSA Input'!J2553=\"Contingent\"),'TSA Input'!G2553,\"\"))","v":""},{"$f":"IF('TSA Input'!J2553=\"\",\"\",IF(OR('TSA Input'!J2553=\"Yes\",'TSA Input'!J2553=\"Contingent\"),'TSA Input'!F2553,\"\"))","v":""},"",{"$f":"IF('TSA Input'!J2553=\"\",\"\",IF(OR('TSA Input'!J2553=\"Yes\",'TSA Input'!J2553=\"Contingent\"),'TSA Input'!D2553,\"\"))","v":""},{"$f":"IF('TSA Input'!J2553=\"\",\"\",IF(OR('TSA Input'!J2553=\"Yes\",'TSA Input'!J2553=\"Contingent\"),'TSA Input'!G2553,\"\"))","v":""},{"$f":"IF('TSA Input'!J2553=\"\",\"\",IF(OR('TSA Input'!J2553=\"Yes\",'TSA Input'!J2553=\"Contingent\"),'TSA Input'!F2553,\"\"))","v":""},"","Required","Required"]
["",null,{"$f":"IF('TSA Input'!J2554=\"\",\"\",IF(OR('TSA Input'!J2554=\"Yes\",'TSA Input'!J2554=\"Contingent\"),'TSA Input'!B2554,\"Ineligible\"))","v":""},{"$f":"IF('TSA Input'!J2554=\"\",\"\",IF(OR('TSA Input'!J2554=\"Yes\",'TSA Input'!J2554=\"Contingent\"),'TSA Input'!I2554,\"\"))","v":""},{"$f":"IF('TSA Input'!J2554=\"\",\"\",IF(OR('TSA Input'!J2554=\"Yes\",'TSA Input'!J2554=\"Contingent\"),'TSA Input'!C2554,\"\"))","v":""},{"$f":"IF('TSA Input'!J2554=\"\",\"\",IF(OR('TSA Input'!J2554=\"Yes\",'TSA Input'!J2554=\"Contingent\"),'TSA Input'!D2554,\"\"))","v":""},{"$f":"IF('TSA Input'!J2554=\"\",\"\",IF(OR('TSA Input'!J2554=\"Yes\",'TSA Input'!J2554=\"Contingent\"),'TSA Input'!G2554,\"\"))","v":""},{"$f":"IF('TSA Input'!J2554=\"\",\"\",IF(OR('TSA Input'!J2554=\"Yes\",'TSA Input'!J2554=\"Contingent\"),'TSA Input'!F2554,\"\"))","v":""},"",{"$f":"IF('TSA Input'!J2554=\"\",\"\",IF(OR('TSA Input'!J2554=\"Yes\",'TSA Input'!J2554=\"Contingent\"),'TSA Input'!D2554,\"\"))","v":""},{"$f":"IF('TSA Input'!J2554=\"\",\"\",IF(OR('TSA Input'!J2554=\"Yes\",'TSA Input'!J2554=\"Contingent\"),'TSA Input'!G2554,\"\"))","v":""},{"$f":"IF('TSA Input'!J2554=\"\",\"\",IF(OR('TSA Input'!J2554=\"Yes\",'TSA Input'!J2554=\"Contingent\"),'TSA Input'!F2554,\"\"))","v":""},"","Required","Required"]
["",null,{"$f":"IF('TSA Input'!J2555=\"\",\"\",IF(OR('TSA Input'!J2555=\"Yes\",'TSA Input'!J2555=\"Contingent\"),'TSA Input'!B2555,\"Ineligible\"))","v":""},{"$f":"IF('TSA Input'!J2555=\"\",\"\",IF(OR('TSA Input'!J2555=\"Yes\",'TSA Input'!J2555=\"Contingent\"),'TSA Input'!I2555,\"\"))","v":""},{"$f":"IF('TSA Input'!J2555=\"\",\"\",IF(OR('TSA Input'!J2555=\"Yes\",'TSA Input'!J2555=\"Contingent\"),'TSA Input'!C2555,\"\"))","v":""},{"$f":"IF('TSA Input'!J2555=\"\",\"\",IF(OR('TSA Input'!J2555=\"Yes\",'TSA Input'!J2555=\"Contingent\"),'TSA Input'!D2555,\"\"))","v":""},{"$f":"IF('TSA Input'!J2555=\"\",\"\",IF(OR('TSA Input'!J2555=\"Yes\",'TSA Input'!J2555=\"Contingent\"),'TSA Input'!G2555,\"\"))","v":""},{"$f":"IF('TSA Input'!J2555=\"\",\"\",IF(OR('TSA Input'!J2555=\"Yes\",'TSA Input'!J2555=\"Contingent\"),'TSA Input'!F2555,\"\"))","v":""},"",{"$f":"IF('TSA Input'!J2555=\"\",\"\",IF(OR('TSA Input'!J2555=\"Yes\",'TSA Input'!J2555=\"Contingent\"),'TSA Input'!D2555,\"\"))","v":""},{"$f":"IF('TSA Input'!J2555=\"\",\"\",IF(OR('TSA Input'!J2555=\"Yes\",'TSA Input'!J2555=\"Contingent\"),'TSA Input'!G2555,\"\"))","v":""},{"$f":"IF('TSA Input'!J2555=\"\",\"\",IF(OR('TSA Input'!J2555=\"Yes\",'TSA Input'!J2555=\"Contingent\"),'TSA Input'!F2555,\"\"))","v":""},"","Required","Required"]
["",null,{"$f":"IF('TSA Input'!J2556=\"\",\"\",IF(OR('TSA Input'!J2556=\"Yes\",'TSA Input'!J2556=\"Contingent\"),'TSA Input'!B2556,\"Ineligible\"))","v":""},{"$f":"IF('TSA Input'!J2556=\"\",\"\",IF(OR('TSA Input'!J2556=\"Yes\",'TSA Input'!J2556=\"Contingent\"),'TSA Input'!I2556,\"\"))","v":""},{"$f":"IF('TSA Input'!J2556=\"\",\"\",IF(OR('TSA Input'!J2556=\"Yes\",'TSA Input'!J2556=\"Contingent\"),'TSA Input'!C2556,\"\"))","v":""},{"$f":"IF('TSA Input'!J2556=\"\",\"\",IF(OR('TSA Input'!J2556=\"Yes\",'TSA Input'!J2556=\"Contingent\"),'TSA Input'!D2556,\"\"))","v":""},{"$f":"IF('TSA Input'!J2556=\"\",\"\",IF(OR('TSA Input'!J2556=\"Yes\",'TSA Input'!J2556=\"Contingent\"),'TSA Input'!G2556,\"\"))","v":""},{"$f":"IF('TSA Input'!J2556=\"\",\"\",IF(OR('TSA Input'!J2556=\"Yes\",'TSA Input'!J2556=\"Contingent\"),'TSA Input'!F2556,\"\"))","v":""},"",{"$f":"IF('TSA Input'!J2556=\"\",\"\",IF(OR('TSA Input'!J2556=\"Yes\",'TSA Input'!J2556=\"Contingent\"),'TSA Input'!D2556,\"\"))","v":""},{"$f":"IF('TSA Input'!J2556=\"\",\"\",IF(OR('TSA Input'!J2556=\"Yes\",'TSA Input'!J2556=\"Contingent\"),'TSA Input'!G2556,\"\"))","v":""},{"$f":"IF('TSA Input'!J2556=\"\",\"\",IF(OR('TSA Input'!J2556=\"Yes\",'TSA Input'!J2556=\"Contingent\"),'TSA Input'!F2556,\"\"))","v":""},"","Required","Required"]
["",null,{"$f":"IF('TSA Input'!J2557=\"\",\"\",IF(OR('TSA Input'!J2557=\"Yes\",'TSA Input'!J2557=\"Contingent\"),'TSA Input'!B2557,\"Ineligible\"))","v":""},{"$f":"IF('TSA Input'!J2557=\"\",\"\",IF(OR('TSA Input'!J2557=\"Yes\",'TSA Input'!J2557=\"Contingent\"),'TSA Input'!I2557,\"\"))","v":""},{"$f":"IF('TSA Input'!J2557=\"\",\"\",IF(OR('TSA Input'!J2557=\"Yes\",'TSA Input'!J2557=\"Contingent\"),'TSA Input'!C2557,\"\"))","v":""},{"$f":"IF('TSA Input'!J2557=\"\",\"\",IF(OR('TSA Input'!J2557=\"Yes\",'TSA Input'!J2557=\"Contingent\"),'TSA Input'!D2557,\"\"))","v":""},{"$f":"IF('TSA Input'!J2557=\"\",\"\",IF(OR('TSA Input'!J2557=\"Yes\",'TSA Input'!J2557=\"Contingent\"),'TSA Input'!G2557,\"\"))","v":""},{"$f":"IF('TSA Input'!J2557=\"\",\"\",IF(OR('TSA Input'!J2557=\"Yes\",'TSA Input'!J2557=\"Contingent\"),'TSA Input'!F2557,\"\"))","v":""},"",{"$f":"IF('TSA Input'!J2557=\"\",\"\",IF(OR('TSA Input'!J2557=\"Yes\",'TSA Input'!J2557=\"Contingent\"),'TSA Input'!D2557,\"\"))","v":""},{"$f":"IF('TSA Input'!J2557=\"\",\"\",IF(OR('TSA Input'!J2557=\"Yes\",'TSA Input'!J2557=\"Contingent\"),'TSA Input'!G2557,\"\"))","v":""},{"$f":"IF('TSA Input'!J2557=\"\",\"\",IF(OR('TSA Input'!J2557=\"Yes\",'TSA Input'!J2557=\"Contingent\"),'TSA Input'!F2557,\"\"))","v":""},"","Required","Required"]
["",null,{"$f":"IF('TSA Input'!J2558=\"\",\"\",IF(OR('TSA Input'!J2558=\"Yes\",'TSA Input'!J2558=\"Contingent\"),'TSA Input'!B2558,\"Ineligible\"))","v":""},{"$f":"IF('TSA Input'!J2558=\"\",\"\",IF(OR('TSA Input'!J2558=\"Yes\",'TSA Input'!J2558=\"Contingent\"),'TSA Input'!I2558,\"\"))","v":""},{"$f":"IF('TSA Input'!J2558=\"\",\"\",IF(OR('TSA Input'!J2558=\"Yes\",'TSA Input'!J2558=\"Contingent\"),'TSA Input'!C2558,\"\"))","v":""},{"$f":"IF('TSA Input'!J2558=\"\",\"\",IF(OR('TSA Input'!J2558=\"Yes\",'TSA Input'!J2558=\"Contingent\"),'TSA Input'!D2558,\"\"))","v":""},{"$f":"IF('TSA Input'!J2558=\"\",\"\",IF(OR('TSA Input'!J2558=\"Yes\",'TSA Input'!J2558=\"Contingent\"),'TSA Input'!G2558,\"\"))","v":""},{"$f":"IF('TSA Input'!J2558=\"\",\"\",IF(OR('TSA Input'!J2558=\"Yes\",'TSA Input'!J2558=\"Contingent\"),'TSA Input'!F2558,\"\"))","v":""},"",{"$f":"IF('TSA Input'!J2558=\"\",\"\",IF(OR('TSA Input'!J2558=\"Yes\",'TSA Input'!J2558=\"Contingent\"),'TSA Input'!D2558,\"\"))","v":""},{"$f":"IF('TSA Input'!J2558=\"\",\"\",IF(OR('TSA Input'!J2558=\"Yes\",'TSA Input'!J2558=\"Contingent\"),'TSA Input'!G2558,\"\"))","v":""},{"$f":"IF('TSA Input'!J2558=\"\",\"\",IF(OR('TSA Input'!J2558=\"Yes\",'TSA Input'!J2558=\"Contingent\"),'TSA Input'!F2558,\"\"))","v":""},"","Required","Required"]
["",null,{"$f":"IF('TSA Input'!J2559=\"\",\"\",IF(OR('TSA Input'!J2559=\"Yes\",'TSA Input'!J2559=\"Contingent\"),'TSA Input'!B2559,\"Ineligible\"))","v":""},{"$f":"IF('TSA Input'!J2559=\"\",\"\",IF(OR('TSA Input'!J2559=\"Yes\",'TSA Input'!J2559=\"Contingent\"),'TSA Input'!I2559,\"\"))","v":""},{"$f":"IF('TSA Input'!J2559=\"\",\"\",IF(OR('TSA Input'!J2559=\"Yes\",'TSA Input'!J2559=\"Contingent\"),'TSA Input'!C2559,\"\"))","v":""},{"$f":"IF('TSA Input'!J2559=\"\",\"\",IF(OR('TSA Input'!J2559=\"Yes\",'TSA Input'!J2559=\"Contingent\"),'TSA Input'!D2559,\"\"))","v":""},{"$f":"IF('TSA Input'!J2559=\"\",\"\",IF(OR('TSA Input'!J2559=\"Yes\",'TSA Input'!J2559=\"Contingent\"),'TSA Input'!G2559,\"\"))","v":""},{"$f":"IF('TSA Input'!J2559=\"\",\"\",IF(OR('TSA Input'!J2559=\"Yes\",'TSA Input'!J2559=\"Contingent\"),'TSA Input'!F2559,\"\"))","v":""},"",{"$f":"IF('TSA Input'!J2559=\"\",\"\",IF(OR('TSA Input'!J2559=\"Yes\",'TSA Input'!J2559=\"Contingent\"),'TSA Input'!D2559,\"\"))","v":""},{"$f":"IF('TSA Input'!J2559=\"\",\"\",IF(OR('TSA Input'!J2559=\"Yes\",'TSA Input'!J2559=\"Contingent\"),'TSA Input'!G2559,\"\"))","v":""},{"$f":"IF('TSA Input'!J2559=\"\",\"\",IF(OR('TSA Input'!J2559=\"Yes\",'TSA Input'!J2559=\"Contingent\"),'TSA Input'!F2559,\"\"))","v":""},"","Required","Required"]
["",null,{"$f":"IF('TSA Input'!J2560=\"\",\"\",IF(OR('TSA Input'!J2560=\"Yes\",'TSA Input'!J2560=\"Contingent\"),'TSA Input'!B2560,\"Ineligible\"))","v":""},{"$f":"IF('TSA Input'!J2560=\"\",\"\",IF(OR('TSA Input'!J2560=\"Yes\",'TSA Input'!J2560=\"Contingent\"),'TSA Input'!I2560,\"\"))","v":""},{"$f":"IF('TSA Input'!J2560=\"\",\"\",IF(OR('TSA Input'!J2560=\"Yes\",'TSA Input'!J2560=\"Contingent\"),'TSA Input'!C2560,\"\"))","v":""},{"$f":"IF('TSA Input'!J2560=\"\",\"\",IF(OR('TSA Input'!J2560=\"Yes\",'TSA Input'!J2560=\"Contingent\"),'TSA Input'!D2560,\"\"))","v":""},{"$f":"IF('TSA Input'!J2560=\"\",\"\",IF(OR('TSA Input'!J2560=\"Yes\",'TSA Input'!J2560=\"Contingent\"),'TSA Input'!G2560,\"\"))","v":""},{"$f":"IF('TSA Input'!J2560=\"\",\"\",IF(OR('TSA Input'!J2560=\"Yes\",'TSA Input'!J2560=\"Contingent\"),'TSA Input'!F2560,\"\"))","v":""},"",{"$f":"IF('TSA Input'!J2560=\"\",\"\",IF(OR('TSA Input'!J2560=\"Yes\",'TSA Input'!J2560=\"Contingent\"),'TSA Input'!D2560,\"\"))","v":""},{"$f":"IF('TSA Input'!J2560=\"\",\"\",IF(OR('TSA Input'!J2560=\"Yes\",'TSA Input'!J2560=\"Contingent\"),'TSA Input'!G2560,\"\"))","v":""},{"$f":"IF('TSA Input'!J2560=\"\",\"\",IF(OR('TSA Input'!J2560=\"Yes\",'TSA Input'!J2560=\"Contingent\"),'TSA Input'!F2560,\"\"))","v":""},"","Required","Required"]
["",null,{"$f":"IF('TSA Input'!J2561=\"\",\"\",IF(OR('TSA Input'!J2561=\"Yes\",'TSA Input'!J2561=\"Contingent\"),'TSA Input'!B2561,\"Ineligible\"))","v":""},{"$f":"IF('TSA Input'!J2561=\"\",\"\",IF(OR('TSA Input'!J2561=\"Yes\",'TSA Input'!J2561=\"Contingent\"),'TSA Input'!I2561,\"\"))","v":""},{"$f":"IF('TSA Input'!J2561=\"\",\"\",IF(OR('TSA Input'!J2561=\"Yes\",'TSA Input'!J2561=\"Contingent\"),'TSA Input'!C2561,\"\"))","v":""},{"$f":"IF('TSA Input'!J2561=\"\",\"\",IF(OR('TSA Input'!J2561=\"Yes\",'TSA Input'!J2561=\"Contingent\"),'TSA Input'!D2561,\"\"))","v":""},{"$f":"IF('TSA Input'!J2561=\"\",\"\",IF(OR('TSA Input'!J2561=\"Yes\",'TSA Input'!J2561=\"Contingent\"),'TSA Input'!G2561,\"\"))","v":""},{"$f":"IF('TSA Input'!J2561=\"\",\"\",IF(OR('TSA Input'!J2561=\"Yes\",'TSA Input'!J2561=\"Contingent\"),'TSA Input'!F2561,\"\"))","v":""},"",{"$f":"IF('TSA Input'!J2561=\"\",\"\",IF(OR('TSA Input'!J2561=\"Yes\",'TSA Input'!J2561=\"Contingent\"),'TSA Input'!D2561,\"\"))","v":""},{"$f":"IF('TSA Input'!J2561=\"\",\"\",IF(OR('TSA Input'!J2561=\"Yes\",'TSA Input'!J2561=\"Contingent\"),'TSA Input'!G2561,\"\"))","v":""},{"$f":"IF('TSA Input'!J2561=\"\",\"\",IF(OR('TSA Input'!J2561=\"Yes\",'TSA Input'!J2561=\"Contingent\"),'TSA Input'!F2561,\"\"))","v":""},"","Required","Required"]
["",null,{"$f":"IF('TSA Input'!J2562=\"\",\"\",IF(OR('TSA Input'!J2562=\"Yes\",'TSA Input'!J2562=\"Contingent\"),'TSA Input'!B2562,\"Ineligible\"))","v":""},{"$f":"IF('TSA Input'!J2562=\"\",\"\",IF(OR('TSA Input'!J2562=\"Yes\",'TSA Input'!J2562=\"Contingent\"),'TSA Input'!I2562,\"\"))","v":""},{"$f":"IF('TSA Input'!J2562=\"\",\"\",IF(OR('TSA Input'!J2562=\"Yes\",'TSA Input'!J2562=\"Contingent\"),'TSA Input'!C2562,\"\"))","v":""},{"$f":"IF('TSA Input'!J2562=\"\",\"\",IF(OR('TSA Input'!J2562=\"Yes\",'TSA Input'!J2562=\"Contingent\"),'TSA Input'!D2562,\"\"))","v":""},{"$f":"IF('TSA Input'!J2562=\"\",\"\",IF(OR('TSA Input'!J2562=\"Yes\",'TSA Input'!J2562=\"Contingent\"),'TSA Input'!G2562,\"\"))","v":""},{"$f":"IF('TSA Input'!J2562=\"\",\"\",IF(OR('TSA Input'!J2562=\"Yes\",'TSA Input'!J2562=\"Contingent\"),'TSA Input'!F2562,\"\"))","v":""},"",{"$f":"IF('TSA Input'!J2562=\"\",\"\",IF(OR('TSA Input'!J2562=\"Yes\",'TSA Input'!J2562=\"Contingent\"),'TSA Input'!D2562,\"\"))","v":""},{"$f":"IF('TSA Input'!J2562=\"\",\"\",IF(OR('TSA Input'!J2562=\"Yes\",'TSA Input'!J2562=\"Contingent\"),'TSA Input'!G2562,\"\"))","v":""},{"$f":"IF('TSA Input'!J2562=\"\",\"\",IF(OR('TSA Input'!J2562=\"Yes\",'TSA Input'!J2562=\"Contingent\"),'TSA Input'!F2562,\"\"))","v":""},"","Required","Required"]
["",null,{"$f":"IF('TSA Input'!J2563=\"\",\"\",IF(OR('TSA Input'!J2563=\"Yes\",'TSA Input'!J2563=\"Contingent\"),'TSA Input'!B2563,\"Ineligible\"))","v":""},{"$f":"IF('TSA Input'!J2563=\"\",\"\",IF(OR('TSA Input'!J2563=\"Yes\",'TSA Input'!J2563=\"Contingent\"),'TSA Input'!I2563,\"\"))","v":""},{"$f":"IF('TSA Input'!J2563=\"\",\"\",IF(OR('TSA Input'!J2563=\"Yes\",'TSA Input'!J2563=\"Contingent\"),'TSA Input'!C2563,\"\"))","v":""},{"$f":"IF('TSA Input'!J2563=\"\",\"\",IF(OR('TSA Input'!J2563=\"Yes\",'TSA Input'!J2563=\"Contingent\"),'TSA Input'!D2563,\"\"))","v":""},{"$f":"IF('TSA Input'!J2563=\"\",\"\",IF(OR('TSA Input'!J2563=\"Yes\",'TSA Input'!J2563=\"Contingent\"),'TSA Input'!G2563,\"\"))","v":""},{"$f":"IF('TSA Input'!J2563=\"\",\"\",IF(OR('TSA Input'!J2563=\"Yes\",'TSA Input'!J2563=\"Contingent\"),'TSA Input'!F2563,\"\"))","v":""},"",{"$f":"IF('TSA Input'!J2563=\"\",\"\",IF(OR('TSA Input'!J2563=\"Yes\",'TSA Input'!J2563=\"Contingent\"),'TSA Input'!D2563,\"\"))","v":""},{"$f":"IF('TSA Input'!J2563=\"\",\"\",IF(OR('TSA Input'!J2563=\"Yes\",'TSA Input'!J2563=\"Contingent\"),'TSA Input'!G2563,\"\"))","v":""},{"$f":"IF('TSA Input'!J2563=\"\",\"\",IF(OR('TSA Input'!J2563=\"Yes\",'TSA Input'!J2563=\"Contingent\"),'TSA Input'!F2563,\"\"))","v":""},"","Required","Required"]
["",null,{"$f":"IF('TSA Input'!J2564=\"\",\"\",IF(OR('TSA Input'!J2564=\"Yes\",'TSA Input'!J2564=\"Contingent\"),'TSA Input'!B2564,\"Ineligible\"))","v":""},{"$f":"IF('TSA Input'!J2564=\"\",\"\",IF(OR('TSA Input'!J2564=\"Yes\",'TSA Input'!J2564=\"Contingent\"),'TSA Input'!I2564,\"\"))","v":""},{"$f":"IF('TSA Input'!J2564=\"\",\"\",IF(OR('TSA Input'!J2564=\"Yes\",'TSA Input'!J2564=\"Contingent\"),'TSA Input'!C2564,\"\"))","v":""},{"$f":"IF('TSA Input'!J2564=\"\",\"\",IF(OR('TSA Input'!J2564=\"Yes\",'TSA Input'!J2564=\"Contingent\"),'TSA Input'!D2564,\"\"))","v":""},{"$f":"IF('TSA Input'!J2564=\"\",\"\",IF(OR('TSA Input'!J2564=\"Yes\",'TSA Input'!J2564=\"Contingent\"),'TSA Input'!G2564,\"\"))","v":""},{"$f":"IF('TSA Input'!J2564=\"\",\"\",IF(OR('TSA Input'!J2564=\"Yes\",'TSA Input'!J2564=\"Contingent\"),'TSA Input'!F2564,\"\"))","v":""},{"$f":"IF($C2602=\"\",\"\",SUM(F2602:H2602))","v":""},{"$f":"IF('TSA Input'!J2564=\"\",\"\",IF(OR('TSA Input'!J2564=\"Yes\",'TSA Input'!J2564=\"Contingent\"),'TSA Input'!D2564,\"\"))","v":""},{"$f":"IF('TSA Input'!J2564=\"\",\"\",IF(OR('TSA Input'!J2564=\"Yes\",'TSA Input'!J2564=\"Contingent\"),'TSA Input'!G2564,\"\"))","v":""},{"$f":"IF('TSA Input'!J2564=\"\",\"\",IF(OR('TSA Input'!J2564=\"Yes\",'TSA Input'!J2564=\"Contingent\"),'TSA Input'!F2564,\"\"))","v":""},{"$f":"IF($C2602=\"\",\"\",SUM(J2602:L2602))","v":""},"Required","Required"]
["",null,{"$f":"IF('TSA Input'!J2565=\"\",\"\",IF(OR('TSA Input'!J2565=\"Yes\",'TSA Input'!J2565=\"Contingent\"),'TSA Input'!B2565,\"Ineligible\"))","v":""},{"$f":"IF('TSA Input'!J2565=\"\",\"\",IF(OR('TSA Input'!J2565=\"Yes\",'TSA Input'!J2565=\"Contingent\"),'TSA Input'!I2565,\"\"))","v":""},{"$f":"IF('TSA Input'!J2565=\"\",\"\",IF(OR('TSA Input'!J2565=\"Yes\",'TSA Input'!J2565=\"Contingent\"),'TSA Input'!C2565,\"\"))","v":""},{"$f":"IF('TSA Input'!J2565=\"\",\"\",IF(OR('TSA Input'!J2565=\"Yes\",'TSA Input'!J2565=\"Contingent\"),'TSA Input'!D2565,\"\"))","v":""},{"$f":"IF('TSA Input'!J2565=\"\",\"\",IF(OR('TSA Input'!J2565=\"Yes\",'TSA Input'!J2565=\"Contingent\"),'TSA Input'!G2565,\"\"))","v":""},{"$f":"IF('TSA Input'!J2565=\"\",\"\",IF(OR('TSA Input'!J2565=\"Yes\",'TSA Input'!J2565=\"Contingent\"),'TSA Input'!F2565,\"\"))","v":""},"",{"$f":"IF('TSA Input'!J2565=\"\",\"\",IF(OR('TSA Input'!J2565=\"Yes\",'TSA Input'!J2565=\"Contingent\"),'TSA Input'!D2565,\"\"))","v":""},{"$f":"IF('TSA Input'!J2565=\"\",\"\",IF(OR('TSA Input'!J2565=\"Yes\",'TSA Input'!J2565=\"Contingent\"),'TSA Input'!G2565,\"\"))","v":""},{"$f":"IF('TSA Input'!J2565=\"\",\"\",IF(OR('TSA Input'!J2565=\"Yes\",'TSA Input'!J2565=\"Contingent\"),'TSA Input'!F2565,\"\"))","v":""},"","Required","Required"]
["",null,{"$f":"IF('TSA Input'!J2566=\"\",\"\",IF(OR('TSA Input'!J2566=\"Yes\",'TSA Input'!J2566=\"Contingent\"),'TSA Input'!B2566,\"Ineligible\"))","v":""},{"$f":"IF('TSA Input'!J2566=\"\",\"\",IF(OR('TSA Input'!J2566=\"Yes\",'TSA Input'!J2566=\"Contingent\"),'TSA Input'!I2566,\"\"))","v":""},{"$f":"IF('TSA Input'!J2566=\"\",\"\",IF(OR('TSA Input'!J2566=\"Yes\",'TSA Input'!J2566=\"Contingent\"),'TSA Input'!C2566,\"\"))","v":""},{"$f":"IF('TSA Input'!J2566=\"\",\"\",IF(OR('TSA Input'!J2566=\"Yes\",'TSA Input'!J2566=\"Contingent\"),'TSA Input'!D2566,\"\"))","v":""},{"$f":"IF('TSA Input'!J2566=\"\",\"\",IF(OR('TSA Input'!J2566=\"Yes\",'TSA Input'!J2566=\"Contingent\"),'TSA Input'!G2566,\"\"))","v":""},{"$f":"IF('TSA Input'!J2566=\"\",\"\",IF(OR('TSA Input'!J2566=\"Yes\",'TSA Input'!J2566=\"Contingent\"),'TSA Input'!F2566,\"\"))","v":""},"",{"$f":"IF('TSA Input'!J2566=\"\",\"\",IF(OR('TSA Input'!J2566=\"Yes\",'TSA Input'!J2566=\"Contingent\"),'TSA Input'!D2566,\"\"))","v":""},{"$f":"IF('TSA Input'!J2566=\"\",\"\",IF(OR('TSA Input'!J2566=\"Yes\",'TSA Input'!J2566=\"Contingent\"),'TSA Input'!G2566,\"\"))","v":""},{"$f":"IF('TSA Input'!J2566=\"\",\"\",IF(OR('TSA Input'!J2566=\"Yes\",'TSA Input'!J2566=\"Contingent\"),'TSA Input'!F2566,\"\"))","v":""},"","Required","Required"]
["",null,{"$f":"IF('TSA Input'!J2567=\"\",\"\",IF(OR('TSA Input'!J2567=\"Yes\",'TSA Input'!J2567=\"Contingent\"),'TSA Input'!B2567,\"Ineligible\"))","v":""},{"$f":"IF('TSA Input'!J2567=\"\",\"\",IF(OR('TSA Input'!J2567=\"Yes\",'TSA Input'!J2567=\"Contingent\"),'TSA Input'!I2567,\"\"))","v":""},{"$f":"IF('TSA Input'!J2567=\"\",\"\",IF(OR('TSA Input'!J2567=\"Yes\",'TSA Input'!J2567=\"Contingent\"),'TSA Input'!C2567,\"\"))","v":""},{"$f":"IF('TSA Input'!J2567=\"\",\"\",IF(OR('TSA Input'!J2567=\"Yes\",'TSA Input'!J2567=\"Contingent\"),'TSA Input'!D2567,\"\"))","v":""},{"$f":"IF('TSA Input'!J2567=\"\",\"\",IF(OR('TSA Input'!J2567=\"Yes\",'TSA Input'!J2567=\"Contingent\"),'TSA Input'!G2567,\"\"))","v":""},{"$f":"IF('TSA Input'!J2567=\"\",\"\",IF(OR('TSA Input'!J2567=\"Yes\",'TSA Input'!J2567=\"Contingent\"),'TSA Input'!F2567,\"\"))","v":""},"",{"$f":"IF('TSA Input'!J2567=\"\",\"\",IF(OR('TSA Input'!J2567=\"Yes\",'TSA Input'!J2567=\"Contingent\"),'TSA Input'!D2567,\"\"))","v":""},{"$f":"IF('TSA Input'!J2567=\"\",\"\",IF(OR('TSA Input'!J2567=\"Yes\",'TSA Input'!J2567=\"Contingent\"),'TSA Input'!G2567,\"\"))","v":""},{"$f":"IF('TSA Input'!J2567=\"\",\"\",IF(OR('TSA Input'!J2567=\"Yes\",'TSA Input'!J2567=\"Contingent\"),'TSA Input'!F2567,\"\"))","v":""},"","Required","Required"]
["",null,{"$f":"IF('TSA Input'!J2568=\"\",\"\",IF(OR('TSA Input'!J2568=\"Yes\",'TSA Input'!J2568=\"Contingent\"),'TSA Input'!B2568,\"Ineligible\"))","v":""},{"$f":"IF('TSA Input'!J2568=\"\",\"\",IF(OR('TSA Input'!J2568=\"Yes\",'TSA Input'!J2568=\"Contingent\"),'TSA Input'!I2568,\"\"))","v":""},{"$f":"IF('TSA Input'!J2568=\"\",\"\",IF(OR('TSA Input'!J2568=\"Yes\",'TSA Input'!J2568=\"Contingent\"),'TSA Input'!C2568,\"\"))","v":""},{"$f":"IF('TSA Input'!J2568=\"\",\"\",IF(OR('TSA Input'!J2568=\"Yes\",'TSA Input'!J2568=\"Contingent\"),'TSA Input'!D2568,\"\"))","v":""},{"$f":"IF('TSA Input'!J2568=\"\",\"\",IF(OR('TSA Input'!J2568=\"Yes\",'TSA Input'!J2568=\"Contingent\"),'TSA Input'!G2568,\"\"))","v":""},{"$f":"IF('TSA Input'!J2568=\"\",\"\",IF(OR('TSA Input'!J2568=\"Yes\",'TSA Input'!J2568=\"Contingent\"),'TSA Input'!F2568,\"\"))","v":""},"",{"$f":"IF('TSA Input'!J2568=\"\",\"\",IF(OR('TSA Input'!J2568=\"Yes\",'TSA Input'!J2568=\"Contingent\"),'TSA Input'!D2568,\"\"))","v":""},{"$f":"IF('TSA Input'!J2568=\"\",\"\",IF(OR('TSA Input'!J2568=\"Yes\",'TSA Input'!J2568=\"Contingent\"),'TSA Input'!G2568,\"\"))","v":""},{"$f":"IF('TSA Input'!J2568=\"\",\"\",IF(OR('TSA Input'!J2568=\"Yes\",'TSA Input'!J2568=\"Contingent\"),'TSA Input'!F2568,\"\"))","v":""},"","Required","Required"]
["",null,{"$f":"IF('TSA Input'!J2569=\"\",\"\",IF(OR('TSA Input'!J2569=\"Yes\",'TSA Input'!J2569=\"Contingent\"),'TSA Input'!B2569,\"Ineligible\"))","v":""},{"$f":"IF('TSA Input'!J2569=\"\",\"\",IF(OR('TSA Input'!J2569=\"Yes\",'TSA Input'!J2569=\"Contingent\"),'TSA Input'!I2569,\"\"))","v":""},{"$f":"IF('TSA Input'!J2569=\"\",\"\",IF(OR('TSA Input'!J2569=\"Yes\",'TSA Input'!J2569=\"Contingent\"),'TSA Input'!C2569,\"\"))","v":""},{"$f":"IF('TSA Input'!J2569=\"\",\"\",IF(OR('TSA Input'!J2569=\"Yes\",'TSA Input'!J2569=\"Contingent\"),'TSA Input'!D2569,\"\"))","v":""},{"$f":"IF('TSA Input'!J2569=\"\",\"\",IF(OR('TSA Input'!J2569=\"Yes\",'TSA Input'!J2569=\"Contingent\"),'TSA Input'!G2569,\"\"))","v":""},{"$f":"IF('TSA Input'!J2569=\"\",\"\",IF(OR('TSA Input'!J2569=\"Yes\",'TSA Input'!J2569=\"Contingent\"),'TSA Input'!F2569,\"\"))","v":""},"",{"$f":"IF('TSA Input'!J2569=\"\",\"\",IF(OR('TSA Input'!J2569=\"Yes\",'TSA Input'!J2569=\"Contingent\"),'TSA Input'!D2569,\"\"))","v":""},{"$f":"IF('TSA Input'!J2569=\"\",\"\",IF(OR('TSA Input'!J2569=\"Yes\",'TSA Input'!J2569=\"Contingent\"),'TSA Input'!G2569,\"\"))","v":""},{"$f":"IF('TSA Input'!J2569=\"\",\"\",IF(OR('TSA Input'!J2569=\"Yes\",'TSA Input'!J2569=\"Contingent\"),'TSA Input'!F2569,\"\"))","v":""},"","Required","Required"]
["",null,{"$f":"IF('TSA Input'!J2570=\"\",\"\",IF(OR('TSA Input'!J2570=\"Yes\",'TSA Input'!J2570=\"Contingent\"),'TSA Input'!B2570,\"Ineligible\"))","v":""},{"$f":"IF('TSA Input'!J2570=\"\",\"\",IF(OR('TSA Input'!J2570=\"Yes\",'TSA Input'!J2570=\"Contingent\"),'TSA Input'!I2570,\"\"))","v":""},{"$f":"IF('TSA Input'!J2570=\"\",\"\",IF(OR('TSA Input'!J2570=\"Yes\",'TSA Input'!J2570=\"Contingent\"),'TSA Input'!C2570,\"\"))","v":""},{"$f":"IF('TSA Input'!J2570=\"\",\"\",IF(OR('TSA Input'!J2570=\"Yes\",'TSA Input'!J2570=\"Contingent\"),'TSA Input'!D2570,\"\"))","v":""},{"$f":"IF('TSA Input'!J2570=\"\",\"\",IF(OR('TSA Input'!J2570=\"Yes\",'TSA Input'!J2570=\"Contingent\"),'TSA Input'!G2570,\"\"))","v":""},{"$f":"IF('TSA Input'!J2570=\"\",\"\",IF(OR('TSA Input'!J2570=\"Yes\",'TSA Input'!J2570=\"Contingent\"),'TSA Input'!F2570,\"\"))","v":""},"",{"$f":"IF('TSA Input'!J2570=\"\",\"\",IF(OR('TSA Input'!J2570=\"Yes\",'TSA Input'!J2570=\"Contingent\"),'TSA Input'!D2570,\"\"))","v":""},{"$f":"IF('TSA Input'!J2570=\"\",\"\",IF(OR('TSA Input'!J2570=\"Yes\",'TSA Input'!J2570=\"Contingent\"),'TSA Input'!G2570,\"\"))","v":""},{"$f":"IF('TSA Input'!J2570=\"\",\"\",IF(OR('TSA Input'!J2570=\"Yes\",'TSA Input'!J2570=\"Contingent\"),'TSA Input'!F2570,\"\"))","v":""},"","Required","Required"]
["",null,{"$f":"IF('TSA Input'!J2571=\"\",\"\",IF(OR('TSA Input'!J2571=\"Yes\",'TSA Input'!J2571=\"Contingent\"),'TSA Input'!B2571,\"Ineligible\"))","v":""},{"$f":"IF('TSA Input'!J2571=\"\",\"\",IF(OR('TSA Input'!J2571=\"Yes\",'TSA Input'!J2571=\"Contingent\"),'TSA Input'!I2571,\"\"))","v":""},{"$f":"IF('TSA Input'!J2571=\"\",\"\",IF(OR('TSA Input'!J2571=\"Yes\",'TSA Input'!J2571=\"Contingent\"),'TSA Input'!C2571,\"\"))","v":""},{"$f":"IF('TSA Input'!J2571=\"\",\"\",IF(OR('TSA Input'!J2571=\"Yes\",'TSA Input'!J2571=\"Contingent\"),'TSA Input'!D2571,\"\"))","v":""},{"$f":"IF('TSA Input'!J2571=\"\",\"\",IF(OR('TSA Input'!J2571=\"Yes\",'TSA Input'!J2571=\"Contingent\"),'TSA Input'!G2571,\"\"))","v":""},{"$f":"IF('TSA Input'!J2571=\"\",\"\",IF(OR('TSA Input'!J2571=\"Yes\",'TSA Input'!J2571=\"Contingent\"),'TSA Input'!F2571,\"\"))","v":""},"",{"$f":"IF('TSA Input'!J2571=\"\",\"\",IF(OR('TSA Input'!J2571=\"Yes\",'TSA Input'!J2571=\"Contingent\"),'TSA Input'!D2571,\"\"))","v":""},{"$f":"IF('TSA Input'!J2571=\"\",\"\",IF(OR('TSA Input'!J2571=\"Yes\",'TSA Input'!J2571=\"Contingent\"),'TSA Input'!G2571,\"\"))","v":""},{"$f":"IF('TSA Input'!J2571=\"\",\"\",IF(OR('TSA Input'!J2571=\"Yes\",'TSA Input'!J2571=\"Contingent\"),'TSA Input'!F2571,\"\"))","v":""},"","Required","Required"]
["",null,{"$f":"IF('TSA Input'!J2572=\"\",\"\",IF(OR('TSA Input'!J2572=\"Yes\",'TSA Input'!J2572=\"Contingent\"),'TSA Input'!B2572,\"Ineligible\"))","v":""},{"$f":"IF('TSA Input'!J2572=\"\",\"\",IF(OR('TSA Input'!J2572=\"Yes\",'TSA Input'!J2572=\"Contingent\"),'TSA Input'!I2572,\"\"))","v":""},{"$f":"IF('TSA Input'!J2572=\"\",\"\",IF(OR('TSA Input'!J2572=\"Yes\",'TSA Input'!J2572=\"Contingent\"),'TSA Input'!C2572,\"\"))","v":""},{"$f":"IF('TSA Input'!J2572=\"\",\"\",IF(OR('TSA Input'!J2572=\"Yes\",'TSA Input'!J2572=\"Contingent\"),'TSA Input'!D2572,\"\"))","v":""},{"$f":"IF('TSA Input'!J2572=\"\",\"\",IF(OR('TSA Input'!J2572=\"Yes\",'TSA Input'!J2572=\"Contingent\"),'TSA Input'!G2572,\"\"))","v":""},{"$f":"IF('TSA Input'!J2572=\"\",\"\",IF(OR('TSA Input'!J2572=\"Yes\",'TSA Input'!J2572=\"Contingent\"),'TSA Input'!F2572,\"\"))","v":""},"",{"$f":"IF('TSA Input'!J2572=\"\",\"\",IF(OR('TSA Input'!J2572=\"Yes\",'TSA Input'!J2572=\"Contingent\"),'TSA Input'!D2572,\"\"))","v":""},{"$f":"IF('TSA Input'!J2572=\"\",\"\",IF(OR('TSA Input'!J2572=\"Yes\",'TSA Input'!J2572=\"Contingent\"),'TSA Input'!G2572,\"\"))","v":""},{"$f":"IF('TSA Input'!J2572=\"\",\"\",IF(OR('TSA Input'!J2572=\"Yes\",'TSA Input'!J2572=\"Contingent\"),'TSA Input'!F2572,\"\"))","v":""},"","Required","Required"]
["",null,{"$f":"IF('TSA Input'!J2573=\"\",\"\",IF(OR('TSA Input'!J2573=\"Yes\",'TSA Input'!J2573=\"Contingent\"),'TSA Input'!B2573,\"Ineligible\"))","v":""},{"$f":"IF('TSA Input'!J2573=\"\",\"\",IF(OR('TSA Input'!J2573=\"Yes\",'TSA Input'!J2573=\"Contingent\"),'TSA Input'!I2573,\"\"))","v":""},{"$f":"IF('TSA Input'!J2573=\"\",\"\",IF(OR('TSA Input'!J2573=\"Yes\",'TSA Input'!J2573=\"Contingent\"),'TSA Input'!C2573,\"\"))","v":""},{"$f":"IF('TSA Input'!J2573=\"\",\"\",IF(OR('TSA Input'!J2573=\"Yes\",'TSA Input'!J2573=\"Contingent\"),'TSA Input'!D2573,\"\"))","v":""},{"$f":"IF('TSA Input'!J2573=\"\",\"\",IF(OR('TSA Input'!J2573=\"Yes\",'TSA Input'!J2573=\"Contingent\"),'TSA Input'!G2573,\"\"))","v":""},{"$f":"IF('TSA Input'!J2573=\"\",\"\",IF(OR('TSA Input'!J2573=\"Yes\",'TSA Input'!J2573=\"Contingent\"),'TSA Input'!F2573,\"\"))","v":""},"",{"$f":"IF('TSA Input'!J2573=\"\",\"\",IF(OR('TSA Input'!J2573=\"Yes\",'TSA Input'!J2573=\"Contingent\"),'TSA Input'!D2573,\"\"))","v":""},{"$f":"IF('TSA Input'!J2573=\"\",\"\",IF(OR('TSA Input'!J2573=\"Yes\",'TSA Input'!J2573=\"Contingent\"),'TSA Input'!G2573,\"\"))","v":""},{"$f":"IF('TSA Input'!J2573=\"\",\"\",IF(OR('TSA Input'!J2573=\"Yes\",'TSA Input'!J2573=\"Contingent\"),'TSA Input'!F2573,\"\"))","v":""},"","Required","Required"]
["",null,{"$f":"IF('TSA Input'!J2574=\"\",\"\",IF(OR('TSA Input'!J2574=\"Yes\",'TSA Input'!J2574=\"Contingent\"),'TSA Input'!B2574,\"Ineligible\"))","v":""},{"$f":"IF('TSA Input'!J2574=\"\",\"\",IF(OR('TSA Input'!J2574=\"Yes\",'TSA Input'!J2574=\"Contingent\"),'TSA Input'!I2574,\"\"))","v":""},{"$f":"IF('TSA Input'!J2574=\"\",\"\",IF(OR('TSA Input'!J2574=\"Yes\",'TSA Input'!J2574=\"Contingent\"),'TSA Input'!C2574,\"\"))","v":""},{"$f":"IF('TSA Input'!J2574=\"\",\"\",IF(OR('TSA Input'!J2574=\"Yes\",'TSA Input'!J2574=\"Contingent\"),'TSA Input'!D2574,\"\"))","v":""},{"$f":"IF('TSA Input'!J2574=\"\",\"\",IF(OR('TSA Input'!J2574=\"Yes\",'TSA Input'!J2574=\"Contingent\"),'TSA Input'!G2574,\"\"))","v":""},{"$f":"IF('TSA Input'!J2574=\"\",\"\",IF(OR('TSA Input'!J2574=\"Yes\",'TSA Input'!J2574=\"Contingent\"),'TSA Input'!F2574,\"\"))","v":""},"",{"$f":"IF('TSA Input'!J2574=\"\",\"\",IF(OR('TSA Input'!J2574=\"Yes\",'TSA Input'!J2574=\"Contingent\"),'TSA Input'!D2574,\"\"))","v":""},{"$f":"IF('TSA Input'!J2574=\"\",\"\",IF(OR('TSA Input'!J2574=\"Yes\",'TSA Input'!J2574=\"Contingent\"),'TSA Input'!G2574,\"\"))","v":""},{"$f":"IF('TSA Input'!J2574=\"\",\"\",IF(OR('TSA Input'!J2574=\"Yes\",'TSA Input'!J2574=\"Contingent\"),'TSA Input'!F2574,\"\"))","v":""},"","Required","Required"]
["",null,{"$f":"IF('TSA Input'!J2575=\"\",\"\",IF(OR('TSA Input'!J2575=\"Yes\",'TSA Input'!J2575=\"Contingent\"),'TSA Input'!B2575,\"Ineligible\"))","v":""},{"$f":"IF('TSA Input'!J2575=\"\",\"\",IF(OR('TSA Input'!J2575=\"Yes\",'TSA Input'!J2575=\"Contingent\"),'TSA Input'!I2575,\"\"))","v":""},{"$f":"IF('TSA Input'!J2575=\"\",\"\",IF(OR('TSA Input'!J2575=\"Yes\",'TSA Input'!J2575=\"Contingent\"),'TSA Input'!C2575,\"\"))","v":""},{"$f":"IF('TSA Input'!J2575=\"\",\"\",IF(OR('TSA Input'!J2575=\"Yes\",'TSA Input'!J2575=\"Contingent\"),'TSA Input'!D2575,\"\"))","v":""},{"$f":"IF('TSA Input'!J2575=\"\",\"\",IF(OR('TSA Input'!J2575=\"Yes\",'TSA Input'!J2575=\"Contingent\"),'TSA Input'!G2575,\"\"))","v":""},{"$f":"IF('TSA Input'!J2575=\"\",\"\",IF(OR('TSA Input'!J2575=\"Yes\",'TSA Input'!J2575=\"Contingent\"),'TSA Input'!F2575,\"\"))","v":""},"",{"$f":"IF('TSA Input'!J2575=\"\",\"\",IF(OR('TSA Input'!J2575=\"Yes\",'TSA Input'!J2575=\"Contingent\"),'TSA Input'!D2575,\"\"))","v":""},{"$f":"IF('TSA Input'!J2575=\"\",\"\",IF(OR('TSA Input'!J2575=\"Yes\",'TSA Input'!J2575=\"Contingent\"),'TSA Input'!G2575,\"\"))","v":""},{"$f":"IF('TSA Input'!J2575=\"\",\"\",IF(OR('TSA Input'!J2575=\"Yes\",'TSA Input'!J2575=\"Contingent\"),'TSA Input'!F2575,\"\"))","v":""},"","Required","Required"]
["",null,{"$f":"IF('TSA Input'!J2576=\"\",\"\",IF(OR('TSA Input'!J2576=\"Yes\",'TSA Input'!J2576=\"Contingent\"),'TSA Input'!B2576,\"Ineligible\"))","v":""},{"$f":"IF('TSA Input'!J2576=\"\",\"\",IF(OR('TSA Input'!J2576=\"Yes\",'TSA Input'!J2576=\"Contingent\"),'TSA Input'!I2576,\"\"))","v":""},{"$f":"IF('TSA Input'!J2576=\"\",\"\",IF(OR('TSA Input'!J2576=\"Yes\",'TSA Input'!J2576=\"Contingent\"),'TSA Input'!C2576,\"\"))","v":""},{"$f":"IF('TSA Input'!J2576=\"\",\"\",IF(OR('TSA Input'!J2576=\"Yes\",'TSA Input'!J2576=\"Contingent\"),'TSA Input'!D2576,\"\"))","v":""},{"$f":"IF('TSA Input'!J2576=\"\",\"\",IF(OR('TSA Input'!J2576=\"Yes\",'TSA Input'!J2576=\"Contingent\"),'TSA Input'!G2576,\"\"))","v":""},{"$f":"IF('TSA Input'!J2576=\"\",\"\",IF(OR('TSA Input'!J2576=\"Yes\",'TSA Input'!J2576=\"Contingent\"),'TSA Input'!F2576,\"\"))","v":""},"",{"$f":"IF('TSA Input'!J2576=\"\",\"\",IF(OR('TSA Input'!J2576=\"Yes\",'TSA Input'!J2576=\"Contingent\"),'TSA Input'!D2576,\"\"))","v":""},{"$f":"IF('TSA Input'!J2576=\"\",\"\",IF(OR('TSA Input'!J2576=\"Yes\",'TSA Input'!J2576=\"Contingent\"),'TSA Input'!G2576,\"\"))","v":""},{"$f":"IF('TSA Input'!J2576=\"\",\"\",IF(OR('TSA Input'!J2576=\"Yes\",'TSA Input'!J2576=\"Contingent\"),'TSA Input'!F2576,\"\"))","v":""},"","Required","Required"]
["",null,{"$f":"IF('TSA Input'!J2577=\"\",\"\",IF(OR('TSA Input'!J2577=\"Yes\",'TSA Input'!J2577=\"Contingent\"),'TSA Input'!B2577,\"Ineligible\"))","v":""},{"$f":"IF('TSA Input'!J2577=\"\",\"\",IF(OR('TSA Input'!J2577=\"Yes\",'TSA Input'!J2577=\"Contingent\"),'TSA Input'!I2577,\"\"))","v":""},{"$f":"IF('TSA Input'!J2577=\"\",\"\",IF(OR('TSA Input'!J2577=\"Yes\",'TSA Input'!J2577=\"Contingent\"),'TSA Input'!C2577,\"\"))","v":""},{"$f":"IF('TSA Input'!J2577=\"\",\"\",IF(OR('TSA Input'!J2577=\"Yes\",'TSA Input'!J2577=\"Contingent\"),'TSA Input'!D2577,\"\"))","v":""},{"$f":"IF('TSA Input'!J2577=\"\",\"\",IF(OR('TSA Input'!J2577=\"Yes\",'TSA Input'!J2577=\"Contingent\"),'TSA Input'!G2577,\"\"))","v":""},{"$f":"IF('TSA Input'!J2577=\"\",\"\",IF(OR('TSA Input'!J2577=\"Yes\",'TSA Input'!J2577=\"Contingent\"),'TSA Input'!F2577,\"\"))","v":""},"",{"$f":"IF('TSA Input'!J2577=\"\",\"\",IF(OR('TSA Input'!J2577=\"Yes\",'TSA Input'!J2577=\"Contingent\"),'TSA Input'!D2577,\"\"))","v":""},{"$f":"IF('TSA Input'!J2577=\"\",\"\",IF(OR('TSA Input'!J2577=\"Yes\",'TSA Input'!J2577=\"Contingent\"),'TSA Input'!G2577,\"\"))","v":""},{"$f":"IF('TSA Input'!J2577=\"\",\"\",IF(OR('TSA Input'!J2577=\"Yes\",'TSA Input'!J2577=\"Contingent\"),'TSA Input'!F2577,\"\"))","v":""},"","Required","Required"]
["",null,{"$f":"IF('TSA Input'!J2578=\"\",\"\",IF(OR('TSA Input'!J2578=\"Yes\",'TSA Input'!J2578=\"Contingent\"),'TSA Input'!B2578,\"Ineligible\"))","v":""},{"$f":"IF('TSA Input'!J2578=\"\",\"\",IF(OR('TSA Input'!J2578=\"Yes\",'TSA Input'!J2578=\"Contingent\"),'TSA Input'!I2578,\"\"))","v":""},{"$f":"IF('TSA Input'!J2578=\"\",\"\",IF(OR('TSA Input'!J2578=\"Yes\",'TSA Input'!J2578=\"Contingent\"),'TSA Input'!C2578,\"\"))","v":""},{"$f":"IF('TSA Input'!J2578=\"\",\"\",IF(OR('TSA Input'!J2578=\"Yes\",'TSA Input'!J2578=\"Contingent\"),'TSA Input'!D2578,\"\"))","v":""},{"$f":"IF('TSA Input'!J2578=\"\",\"\",IF(OR('TSA Input'!J2578=\"Yes\",'TSA Input'!J2578=\"Contingent\"),'TSA Input'!G2578,\"\"))","v":""},{"$f":"IF('TSA Input'!J2578=\"\",\"\",IF(OR('TSA Input'!J2578=\"Yes\",'TSA Input'!J2578=\"Contingent\"),'TSA Input'!F2578,\"\"))","v":""},"",{"$f":"IF('TSA Input'!J2578=\"\",\"\",IF(OR('TSA Input'!J2578=\"Yes\",'TSA Input'!J2578=\"Contingent\"),'TSA Input'!D2578,\"\"))","v":""},{"$f":"IF('TSA Input'!J2578=\"\",\"\",IF(OR('TSA Input'!J2578=\"Yes\",'TSA Input'!J2578=\"Contingent\"),'TSA Input'!G2578,\"\"))","v":""},{"$f":"IF('TSA Input'!J2578=\"\",\"\",IF(OR('TSA Input'!J2578=\"Yes\",'TSA Input'!J2578=\"Contingent\"),'TSA Input'!F2578,\"\"))","v":""},"","Required","Required"]
["",null,{"$f":"IF('TSA Input'!J2579=\"\",\"\",IF(OR('TSA Input'!J2579=\"Yes\",'TSA Input'!J2579=\"Contingent\"),'TSA Input'!B2579,\"Ineligible\"))","v":""},{"$f":"IF('TSA Input'!J2579=\"\",\"\",IF(OR('TSA Input'!J2579=\"Yes\",'TSA Input'!J2579=\"Contingent\"),'TSA Input'!I2579,\"\"))","v":""},{"$f":"IF('TSA Input'!J2579=\"\",\"\",IF(OR('TSA Input'!J2579=\"Yes\",'TSA Input'!J2579=\"Contingent\"),'TSA Input'!C2579,\"\"))","v":""},{"$f":"IF('TSA Input'!J2579=\"\",\"\",IF(OR('TSA Input'!J2579=\"Yes\",'TSA Input'!J2579=\"Contingent\"),'TSA Input'!D2579,\"\"))","v":""},{"$f":"IF('TSA Input'!J2579=\"\",\"\",IF(OR('TSA Input'!J2579=\"Yes\",'TSA Input'!J2579=\"Contingent\"),'TSA Input'!G2579,\"\"))","v":""},{"$f":"IF('TSA Input'!J2579=\"\",\"\",IF(OR('TSA Input'!J2579=\"Yes\",'TSA Input'!J2579=\"Contingent\"),'TSA Input'!F2579,\"\"))","v":""},"",{"$f":"IF('TSA Input'!J2579=\"\",\"\",IF(OR('TSA Input'!J2579=\"Yes\",'TSA Input'!J2579=\"Contingent\"),'TSA Input'!D2579,\"\"))","v":""},{"$f":"IF('TSA Input'!J2579=\"\",\"\",IF(OR('TSA Input'!J2579=\"Yes\",'TSA Input'!J2579=\"Contingent\"),'TSA Input'!G2579,\"\"))","v":""},{"$f":"IF('TSA Input'!J2579=\"\",\"\",IF(OR('TSA Input'!J2579=\"Yes\",'TSA Input'!J2579=\"Contingent\"),'TSA Input'!F2579,\"\"))","v":""},"","Required","Required"]
["",null,{"$f":"IF('TSA Input'!J2580=\"\",\"\",IF(OR('TSA Input'!J2580=\"Yes\",'TSA Input'!J2580=\"Contingent\"),'TSA Input'!B2580,\"Ineligible\"))","v":""},{"$f":"IF('TSA Input'!J2580=\"\",\"\",IF(OR('TSA Input'!J2580=\"Yes\",'TSA Input'!J2580=\"Contingent\"),'TSA Input'!I2580,\"\"))","v":""},{"$f":"IF('TSA Input'!J2580=\"\",\"\",IF(OR('TSA Input'!J2580=\"Yes\",'TSA Input'!J2580=\"Contingent\"),'TSA Input'!C2580,\"\"))","v":""},{"$f":"IF('TSA Input'!J2580=\"\",\"\",IF(OR('TSA Input'!J2580=\"Yes\",'TSA Input'!J2580=\"Contingent\"),'TSA Input'!D2580,\"\"))","v":""},{"$f":"IF('TSA Input'!J2580=\"\",\"\",IF(OR('TSA Input'!J2580=\"Yes\",'TSA Input'!J2580=\"Contingent\"),'TSA Input'!G2580,\"\"))","v":""},{"$f":"IF('TSA Input'!J2580=\"\",\"\",IF(OR('TSA Input'!J2580=\"Yes\",'TSA Input'!J2580=\"Contingent\"),'TSA Input'!F2580,\"\"))","v":""},"",{"$f":"IF('TSA Input'!J2580=\"\",\"\",IF(OR('TSA Input'!J2580=\"Yes\",'TSA Input'!J2580=\"Contingent\"),'TSA Input'!D2580,\"\"))","v":""},{"$f":"IF('TSA Input'!J2580=\"\",\"\",IF(OR('TSA Input'!J2580=\"Yes\",'TSA Input'!J2580=\"Contingent\"),'TSA Input'!G2580,\"\"))","v":""},{"$f":"IF('TSA Input'!J2580=\"\",\"\",IF(OR('TSA Input'!J2580=\"Yes\",'TSA Input'!J2580=\"Contingent\"),'TSA Input'!F2580,\"\"))","v":""},"","Required","Required"]
["",null,{"$f":"IF('TSA Input'!J2581=\"\",\"\",IF(OR('TSA Input'!J2581=\"Yes\",'TSA Input'!J2581=\"Contingent\"),'TSA Input'!B2581,\"Ineligible\"))","v":""},{"$f":"IF('TSA Input'!J2581=\"\",\"\",IF(OR('TSA Input'!J2581=\"Yes\",'TSA Input'!J2581=\"Contingent\"),'TSA Input'!I2581,\"\"))","v":""},{"$f":"IF('TSA Input'!J2581=\"\",\"\",IF(OR('TSA Input'!J2581=\"Yes\",'TSA Input'!J2581=\"Contingent\"),'TSA Input'!C2581,\"\"))","v":""},{"$f":"IF('TSA Input'!J2581=\"\",\"\",IF(OR('TSA Input'!J2581=\"Yes\",'TSA Input'!J2581=\"Contingent\"),'TSA Input'!D2581,\"\"))","v":""},{"$f":"IF('TSA Input'!J2581=\"\",\"\",IF(OR('TSA Input'!J2581=\"Yes\",'TSA Input'!J2581=\"Contingent\"),'TSA Input'!G2581,\"\"))","v":""},{"$f":"IF('TSA Input'!J2581=\"\",\"\",IF(OR('TSA Input'!J2581=\"Yes\",'TSA Input'!J2581=\"Contingent\"),'TSA Input'!F2581,\"\"))","v":""},"",{"$f":"IF('TSA Input'!J2581=\"\",\"\",IF(OR('TSA Input'!J2581=\"Yes\",'TSA Input'!J2581=\"Contingent\"),'TSA Input'!D2581,\"\"))","v":""},{"$f":"IF('TSA Input'!J2581=\"\",\"\",IF(OR('TSA Input'!J2581=\"Yes\",'TSA Input'!J2581=\"Contingent\"),'TSA Input'!G2581,\"\"))","v":""},{"$f":"IF('TSA Input'!J2581=\"\",\"\",IF(OR('TSA Input'!J2581=\"Yes\",'TSA Input'!J2581=\"Contingent\"),'TSA Input'!F2581,\"\"))","v":""},"","Required","Required"]
["",null,{"$f":"IF('TSA Input'!J2582=\"\",\"\",IF(OR('TSA Input'!J2582=\"Yes\",'TSA Input'!J2582=\"Contingent\"),'TSA Input'!B2582,\"Ineligible\"))","v":""},{"$f":"IF('TSA Input'!J2582=\"\",\"\",IF(OR('TSA Input'!J2582=\"Yes\",'TSA Input'!J2582=\"Contingent\"),'TSA Input'!I2582,\"\"))","v":""},{"$f":"IF('TSA Input'!J2582=\"\",\"\",IF(OR('TSA Input'!J2582=\"Yes\",'TSA Input'!J2582=\"Contingent\"),'TSA Input'!C2582,\"\"))","v":""},{"$f":"IF('TSA Input'!J2582=\"\",\"\",IF(OR('TSA Input'!J2582=\"Yes\",'TSA Input'!J2582=\"Contingent\"),'TSA Input'!D2582,\"\"))","v":""},{"$f":"IF('TSA Input'!J2582=\"\",\"\",IF(OR('TSA Input'!J2582=\"Yes\",'TSA Input'!J2582=\"Contingent\"),'TSA Input'!G2582,\"\"))","v":""},{"$f":"IF('TSA Input'!J2582=\"\",\"\",IF(OR('TSA Input'!J2582=\"Yes\",'TSA Input'!J2582=\"Contingent\"),'TSA Input'!F2582,\"\"))","v":""},"",{"$f":"IF('TSA Input'!J2582=\"\",\"\",IF(OR('TSA Input'!J2582=\"Yes\",'TSA Input'!J2582=\"Contingent\"),'TSA Input'!D2582,\"\"))","v":""},{"$f":"IF('TSA Input'!J2582=\"\",\"\",IF(OR('TSA Input'!J2582=\"Yes\",'TSA Input'!J2582=\"Contingent\"),'TSA Input'!G2582,\"\"))","v":""},{"$f":"IF('TSA Input'!J2582=\"\",\"\",IF(OR('TSA Input'!J2582=\"Yes\",'TSA Input'!J2582=\"Contingent\"),'TSA Input'!F2582,\"\"))","v":""},"","Required","Required"]
["",null,{"$f":"IF('TSA Input'!J2583=\"\",\"\",IF(OR('TSA Input'!J2583=\"Yes\",'TSA Input'!J2583=\"Contingent\"),'TSA Input'!B2583,\"Ineligible\"))","v":""},{"$f":"IF('TSA Input'!J2583=\"\",\"\",IF(OR('TSA Input'!J2583=\"Yes\",'TSA Input'!J2583=\"Contingent\"),'TSA Input'!I2583,\"\"))","v":""},{"$f":"IF('TSA Input'!J2583=\"\",\"\",IF(OR('TSA Input'!J2583=\"Yes\",'TSA Input'!J2583=\"Contingent\"),'TSA Input'!C2583,\"\"))","v":""},{"$f":"IF('TSA Input'!J2583=\"\",\"\",IF(OR('TSA Input'!J2583=\"Yes\",'TSA Input'!J2583=\"Contingent\"),'TSA Input'!D2583,\"\"))","v":""},{"$f":"IF('TSA Input'!J2583=\"\",\"\",IF(OR('TSA Input'!J2583=\"Yes\",'TSA Input'!J2583=\"Contingent\"),'TSA Input'!G2583,\"\"))","v":""},{"$f":"IF('TSA Input'!J2583=\"\",\"\",IF(OR('TSA Input'!J2583=\"Yes\",'TSA Input'!J2583=\"Contingent\"),'TSA Input'!F2583,\"\"))","v":""},"",{"$f":"IF('TSA Input'!J2583=\"\",\"\",IF(OR('TSA Input'!J2583=\"Yes\",'TSA Input'!J2583=\"Contingent\"),'TSA Input'!D2583,\"\"))","v":""},{"$f":"IF('TSA Input'!J2583=\"\",\"\",IF(OR('TSA Input'!J2583=\"Yes\",'TSA Input'!J2583=\"Contingent\"),'TSA Input'!G2583,\"\"))","v":""},{"$f":"IF('TSA Input'!J2583=\"\",\"\",IF(OR('TSA Input'!J2583=\"Yes\",'TSA Input'!J2583=\"Contingent\"),'TSA Input'!F2583,\"\"))","v":""},"","Required","Required"]
["",null,{"$f":"IF('TSA Input'!J2584=\"\",\"\",IF(OR('TSA Input'!J2584=\"Yes\",'TSA Input'!J2584=\"Contingent\"),'TSA Input'!B2584,\"Ineligible\"))","v":""},{"$f":"IF('TSA Input'!J2584=\"\",\"\",IF(OR('TSA Input'!J2584=\"Yes\",'TSA Input'!J2584=\"Contingent\"),'TSA Input'!I2584,\"\"))","v":""},{"$f":"IF('TSA Input'!J2584=\"\",\"\",IF(OR('TSA Input'!J2584=\"Yes\",'TSA Input'!J2584=\"Contingent\"),'TSA Input'!C2584,\"\"))","v":""},{"$f":"IF('TSA Input'!J2584=\"\",\"\",IF(OR('TSA Input'!J2584=\"Yes\",'TSA Input'!J2584=\"Contingent\"),'TSA Input'!D2584,\"\"))","v":""},{"$f":"IF('TSA Input'!J2584=\"\",\"\",IF(OR('TSA Input'!J2584=\"Yes\",'TSA Input'!J2584=\"Contingent\"),'TSA Input'!G2584,\"\"))","v":""},{"$f":"IF('TSA Input'!J2584=\"\",\"\",IF(OR('TSA Input'!J2584=\"Yes\",'TSA Input'!J2584=\"Contingent\"),'TSA Input'!F2584,\"\"))","v":""},"",{"$f":"IF('TSA Input'!J2584=\"\",\"\",IF(OR('TSA Input'!J2584=\"Yes\",'TSA Input'!J2584=\"Contingent\"),'TSA Input'!D2584,\"\"))","v":""},{"$f":"IF('TSA Input'!J2584=\"\",\"\",IF(OR('TSA Input'!J2584=\"Yes\",'TSA Input'!J2584=\"Contingent\"),'TSA Input'!G2584,\"\"))","v":""},{"$f":"IF('TSA Input'!J2584=\"\",\"\",IF(OR('TSA Input'!J2584=\"Yes\",'TSA Input'!J2584=\"Contingent\"),'TSA Input'!F2584,\"\"))","v":""},"","Required","Required"]
["",null,{"$f":"IF('TSA Input'!J2585=\"\",\"\",IF(OR('TSA Input'!J2585=\"Yes\",'TSA Input'!J2585=\"Contingent\"),'TSA Input'!B2585,\"Ineligible\"))","v":""},{"$f":"IF('TSA Input'!J2585=\"\",\"\",IF(OR('TSA Input'!J2585=\"Yes\",'TSA Input'!J2585=\"Contingent\"),'TSA Input'!I2585,\"\"))","v":""},{"$f":"IF('TSA Input'!J2585=\"\",\"\",IF(OR('TSA Input'!J2585=\"Yes\",'TSA Input'!J2585=\"Contingent\"),'TSA Input'!C2585,\"\"))","v":""},{"$f":"IF('TSA Input'!J2585=\"\",\"\",IF(OR('TSA Input'!J2585=\"Yes\",'TSA Input'!J2585=\"Contingent\"),'TSA Input'!D2585,\"\"))","v":""},{"$f":"IF('TSA Input'!J2585=\"\",\"\",IF(OR('TSA Input'!J2585=\"Yes\",'TSA Input'!J2585=\"Contingent\"),'TSA Input'!G2585,\"\"))","v":""},{"$f":"IF('TSA Input'!J2585=\"\",\"\",IF(OR('TSA Input'!J2585=\"Yes\",'TSA Input'!J2585=\"Contingent\"),'TSA Input'!F2585,\"\"))","v":""},"",{"$f":"IF('TSA Input'!J2585=\"\",\"\",IF(OR('TSA Input'!J2585=\"Yes\",'TSA Input'!J2585=\"Contingent\"),'TSA Input'!D2585,\"\"))","v":""},{"$f":"IF('TSA Input'!J2585=\"\",\"\",IF(OR('TSA Input'!J2585=\"Yes\",'TSA Input'!J2585=\"Contingent\"),'TSA Input'!G2585,\"\"))","v":""},{"$f":"IF('TSA Input'!J2585=\"\",\"\",IF(OR('TSA Input'!J2585=\"Yes\",'TSA Input'!J2585=\"Contingent\"),'TSA Input'!F2585,\"\"))","v":""},"","Required","Required"]
["",null,{"$f":"IF('TSA Input'!J2586=\"\",\"\",IF(OR('TSA Input'!J2586=\"Yes\",'TSA Input'!J2586=\"Contingent\"),'TSA Input'!B2586,\"Ineligible\"))","v":""},{"$f":"IF('TSA Input'!J2586=\"\",\"\",IF(OR('TSA Input'!J2586=\"Yes\",'TSA Input'!J2586=\"Contingent\"),'TSA Input'!I2586,\"\"))","v":""},{"$f":"IF('TSA Input'!J2586=\"\",\"\",IF(OR('TSA Input'!J2586=\"Yes\",'TSA Input'!J2586=\"Contingent\"),'TSA Input'!C2586,\"\"))","v":""},{"$f":"IF('TSA Input'!J2586=\"\",\"\",IF(OR('TSA Input'!J2586=\"Yes\",'TSA Input'!J2586=\"Contingent\"),'TSA Input'!D2586,\"\"))","v":""},{"$f":"IF('TSA Input'!J2586=\"\",\"\",IF(OR('TSA Input'!J2586=\"Yes\",'TSA Input'!J2586=\"Contingent\"),'TSA Input'!G2586,\"\"))","v":""},{"$f":"IF('TSA Input'!J2586=\"\",\"\",IF(OR('TSA Input'!J2586=\"Yes\",'TSA Input'!J2586=\"Contingent\"),'TSA Input'!F2586,\"\"))","v":""},"",{"$f":"IF('TSA Input'!J2586=\"\",\"\",IF(OR('TSA Input'!J2586=\"Yes\",'TSA Input'!J2586=\"Contingent\"),'TSA Input'!D2586,\"\"))","v":""},{"$f":"IF('TSA Input'!J2586=\"\",\"\",IF(OR('TSA Input'!J2586=\"Yes\",'TSA Input'!J2586=\"Contingent\"),'TSA Input'!G2586,\"\"))","v":""},{"$f":"IF('TSA Input'!J2586=\"\",\"\",IF(OR('TSA Input'!J2586=\"Yes\",'TSA Input'!J2586=\"Contingent\"),'TSA Input'!F2586,\"\"))","v":""},"","Required","Required"]
["",null,{"$f":"IF('TSA Input'!J2587=\"\",\"\",IF(OR('TSA Input'!J2587=\"Yes\",'TSA Input'!J2587=\"Contingent\"),'TSA Input'!B2587,\"Ineligible\"))","v":""},{"$f":"IF('TSA Input'!J2587=\"\",\"\",IF(OR('TSA Input'!J2587=\"Yes\",'TSA Input'!J2587=\"Contingent\"),'TSA Input'!I2587,\"\"))","v":""},{"$f":"IF('TSA Input'!J2587=\"\",\"\",IF(OR('TSA Input'!J2587=\"Yes\",'TSA Input'!J2587=\"Contingent\"),'TSA Input'!C2587,\"\"))","v":""},{"$f":"IF('TSA Input'!J2587=\"\",\"\",IF(OR('TSA Input'!J2587=\"Yes\",'TSA Input'!J2587=\"Contingent\"),'TSA Input'!D2587,\"\"))","v":""},{"$f":"IF('TSA Input'!J2587=\"\",\"\",IF(OR('TSA Input'!J2587=\"Yes\",'TSA Input'!J2587=\"Contingent\"),'TSA Input'!G2587,\"\"))","v":""},{"$f":"IF('TSA Input'!J2587=\"\",\"\",IF(OR('TSA Input'!J2587=\"Yes\",'TSA Input'!J2587=\"Contingent\"),'TSA Input'!F2587,\"\"))","v":""},"",{"$f":"IF('TSA Input'!J2587=\"\",\"\",IF(OR('TSA Input'!J2587=\"Yes\",'TSA Input'!J2587=\"Contingent\"),'TSA Input'!D2587,\"\"))","v":""},{"$f":"IF('TSA Input'!J2587=\"\",\"\",IF(OR('TSA Input'!J2587=\"Yes\",'TSA Input'!J2587=\"Contingent\"),'TSA Input'!G2587,\"\"))","v":""},{"$f":"IF('TSA Input'!J2587=\"\",\"\",IF(OR('TSA Input'!J2587=\"Yes\",'TSA Input'!J2587=\"Contingent\"),'TSA Input'!F2587,\"\"))","v":""},"","Required","Required"]
["",null,{"$f":"IF('TSA Input'!J2588=\"\",\"\",IF(OR('TSA Input'!J2588=\"Yes\",'TSA Input'!J2588=\"Contingent\"),'TSA Input'!B2588,\"Ineligible\"))","v":""},{"$f":"IF('TSA Input'!J2588=\"\",\"\",IF(OR('TSA Input'!J2588=\"Yes\",'TSA Input'!J2588=\"Contingent\"),'TSA Input'!I2588,\"\"))","v":""},{"$f":"IF('TSA Input'!J2588=\"\",\"\",IF(OR('TSA Input'!J2588=\"Yes\",'TSA Input'!J2588=\"Contingent\"),'TSA Input'!C2588,\"\"))","v":""},{"$f":"IF('TSA Input'!J2588=\"\",\"\",IF(OR('TSA Input'!J2588=\"Yes\",'TSA Input'!J2588=\"Contingent\"),'TSA Input'!D2588,\"\"))","v":""},{"$f":"IF('TSA Input'!J2588=\"\",\"\",IF(OR('TSA Input'!J2588=\"Yes\",'TSA Input'!J2588=\"Contingent\"),'TSA Input'!G2588,\"\"))","v":""},{"$f":"IF('TSA Input'!J2588=\"\",\"\",IF(OR('TSA Input'!J2588=\"Yes\",'TSA Input'!J2588=\"Contingent\"),'TSA Input'!F2588,\"\"))","v":""},"",{"$f":"IF('TSA Input'!J2588=\"\",\"\",IF(OR('TSA Input'!J2588=\"Yes\",'TSA Input'!J2588=\"Contingent\"),'TSA Input'!D2588,\"\"))","v":""},{"$f":"IF('TSA Input'!J2588=\"\",\"\",IF(OR('TSA Input'!J2588=\"Yes\",'TSA Input'!J2588=\"Contingent\"),'TSA Input'!G2588,\"\"))","v":""},{"$f":"IF('TSA Input'!J2588=\"\",\"\",IF(OR('TSA Input'!J2588=\"Yes\",'TSA Input'!J2588=\"Contingent\"),'TSA Input'!F2588,\"\"))","v":""},"","Required","Required"]
["",null,{"$f":"IF('TSA Input'!J2589=\"\",\"\",IF(OR('TSA Input'!J2589=\"Yes\",'TSA Input'!J2589=\"Contingent\"),'TSA Input'!B2589,\"Ineligible\"))","v":""},{"$f":"IF('TSA Input'!J2589=\"\",\"\",IF(OR('TSA Input'!J2589=\"Yes\",'TSA Input'!J2589=\"Contingent\"),'TSA Input'!I2589,\"\"))","v":""},{"$f":"IF('TSA Input'!J2589=\"\",\"\",IF(OR('TSA Input'!J2589=\"Yes\",'TSA Input'!J2589=\"Contingent\"),'TSA Input'!C2589,\"\"))","v":""},{"$f":"IF('TSA Input'!J2589=\"\",\"\",IF(OR('TSA Input'!J2589=\"Yes\",'TSA Input'!J2589=\"Contingent\"),'TSA Input'!D2589,\"\"))","v":""},{"$f":"IF('TSA Input'!J2589=\"\",\"\",IF(OR('TSA Input'!J2589=\"Yes\",'TSA Input'!J2589=\"Contingent\"),'TSA Input'!G2589,\"\"))","v":""},{"$f":"IF('TSA Input'!J2589=\"\",\"\",IF(OR('TSA Input'!J2589=\"Yes\",'TSA Input'!J2589=\"Contingent\"),'TSA Input'!F2589,\"\"))","v":""},"",{"$f":"IF('TSA Input'!J2589=\"\",\"\",IF(OR('TSA Input'!J2589=\"Yes\",'TSA Input'!J2589=\"Contingent\"),'TSA Input'!D2589,\"\"))","v":""},{"$f":"IF('TSA Input'!J2589=\"\",\"\",IF(OR('TSA Input'!J2589=\"Yes\",'TSA Input'!J2589=\"Contingent\"),'TSA Input'!G2589,\"\"))","v":""},{"$f":"IF('TSA Input'!J2589=\"\",\"\",IF(OR('TSA Input'!J2589=\"Yes\",'TSA Input'!J2589=\"Contingent\"),'TSA Input'!F2589,\"\"))","v":""},"","Required","Required"]
["",null,{"$f":"IF('TSA Input'!J2590=\"\",\"\",IF(OR('TSA Input'!J2590=\"Yes\",'TSA Input'!J2590=\"Contingent\"),'TSA Input'!B2590,\"Ineligible\"))","v":""},{"$f":"IF('TSA Input'!J2590=\"\",\"\",IF(OR('TSA Input'!J2590=\"Yes\",'TSA Input'!J2590=\"Contingent\"),'TSA Input'!I2590,\"\"))","v":""},{"$f":"IF('TSA Input'!J2590=\"\",\"\",IF(OR('TSA Input'!J2590=\"Yes\",'TSA Input'!J2590=\"Contingent\"),'TSA Input'!C2590,\"\"))","v":""},{"$f":"IF('TSA Input'!J2590=\"\",\"\",IF(OR('TSA Input'!J2590=\"Yes\",'TSA Input'!J2590=\"Contingent\"),'TSA Input'!D2590,\"\"))","v":""},{"$f":"IF('TSA Input'!J2590=\"\",\"\",IF(OR('TSA Input'!J2590=\"Yes\",'TSA Input'!J2590=\"Contingent\"),'TSA Input'!G2590,\"\"))","v":""},{"$f":"IF('TSA Input'!J2590=\"\",\"\",IF(OR('TSA Input'!J2590=\"Yes\",'TSA Input'!J2590=\"Contingent\"),'TSA Input'!F2590,\"\"))","v":""},"",{"$f":"IF('TSA Input'!J2590=\"\",\"\",IF(OR('TSA Input'!J2590=\"Yes\",'TSA Input'!J2590=\"Contingent\"),'TSA Input'!D2590,\"\"))","v":""},{"$f":"IF('TSA Input'!J2590=\"\",\"\",IF(OR('TSA Input'!J2590=\"Yes\",'TSA Input'!J2590=\"Contingent\"),'TSA Input'!G2590,\"\"))","v":""},{"$f":"IF('TSA Input'!J2590=\"\",\"\",IF(OR('TSA Input'!J2590=\"Yes\",'TSA Input'!J2590=\"Contingent\"),'TSA Input'!F2590,\"\"))","v":""},"","Required","Required"]
["",null,{"$f":"IF('TSA Input'!J2591=\"\",\"\",IF(OR('TSA Input'!J2591=\"Yes\",'TSA Input'!J2591=\"Contingent\"),'TSA Input'!B2591,\"Ineligible\"))","v":""},{"$f":"IF('TSA Input'!J2591=\"\",\"\",IF(OR('TSA Input'!J2591=\"Yes\",'TSA Input'!J2591=\"Contingent\"),'TSA Input'!I2591,\"\"))","v":""},{"$f":"IF('TSA Input'!J2591=\"\",\"\",IF(OR('TSA Input'!J2591=\"Yes\",'TSA Input'!J2591=\"Contingent\"),'TSA Input'!C2591,\"\"))","v":""},{"$f":"IF('TSA Input'!J2591=\"\",\"\",IF(OR('TSA Input'!J2591=\"Yes\",'TSA Input'!J2591=\"Contingent\"),'TSA Input'!D2591,\"\"))","v":""},{"$f":"IF('TSA Input'!J2591=\"\",\"\",IF(OR('TSA Input'!J2591=\"Yes\",'TSA Input'!J2591=\"Contingent\"),'TSA Input'!G2591,\"\"))","v":""},{"$f":"IF('TSA Input'!J2591=\"\",\"\",IF(OR('TSA Input'!J2591=\"Yes\",'TSA Input'!J2591=\"Contingent\"),'TSA Input'!F2591,\"\"))","v":""},"",{"$f":"IF('TSA Input'!J2591=\"\",\"\",IF(OR('TSA Input'!J2591=\"Yes\",'TSA Input'!J2591=\"Contingent\"),'TSA Input'!D2591,\"\"))","v":""},{"$f":"IF('TSA Input'!J2591=\"\",\"\",IF(OR('TSA Input'!J2591=\"Yes\",'TSA Input'!J2591=\"Contingent\"),'TSA Input'!G2591,\"\"))","v":""},{"$f":"IF('TSA Input'!J2591=\"\",\"\",IF(OR('TSA Input'!J2591=\"Yes\",'TSA Input'!J2591=\"Contingent\"),'TSA Input'!F2591,\"\"))","v":""},"","Required","Required"]
["",null,{"$f":"IF('TSA Input'!J2592=\"\",\"\",IF(OR('TSA Input'!J2592=\"Yes\",'TSA Input'!J2592=\"Contingent\"),'TSA Input'!B2592,\"Ineligible\"))","v":""},{"$f":"IF('TSA Input'!J2592=\"\",\"\",IF(OR('TSA Input'!J2592=\"Yes\",'TSA Input'!J2592=\"Contingent\"),'TSA Input'!I2592,\"\"))","v":""},{"$f":"IF('TSA Input'!J2592=\"\",\"\",IF(OR('TSA Input'!J2592=\"Yes\",'TSA Input'!J2592=\"Contingent\"),'TSA Input'!C2592,\"\"))","v":""},{"$f":"IF('TSA Input'!J2592=\"\",\"\",IF(OR('TSA Input'!J2592=\"Yes\",'TSA Input'!J2592=\"Contingent\"),'TSA Input'!D2592,\"\"))","v":""},{"$f":"IF('TSA Input'!J2592=\"\",\"\",IF(OR('TSA Input'!J2592=\"Yes\",'TSA Input'!J2592=\"Contingent\"),'TSA Input'!G2592,\"\"))","v":""},{"$f":"IF('TSA Input'!J2592=\"\",\"\",IF(OR('TSA Input'!J2592=\"Yes\",'TSA Input'!J2592=\"Contingent\"),'TSA Input'!F2592,\"\"))","v":""},"",{"$f":"IF('TSA Input'!J2592=\"\",\"\",IF(OR('TSA Input'!J2592=\"Yes\",'TSA Input'!J2592=\"Contingent\"),'TSA Input'!D2592,\"\"))","v":""},{"$f":"IF('TSA Input'!J2592=\"\",\"\",IF(OR('TSA Input'!J2592=\"Yes\",'TSA Input'!J2592=\"Contingent\"),'TSA Input'!G2592,\"\"))","v":""},{"$f":"IF('TSA Input'!J2592=\"\",\"\",IF(OR('TSA Input'!J2592=\"Yes\",'TSA Input'!J2592=\"Contingent\"),'TSA Input'!F2592,\"\"))","v":""},"","Required","Required"]
["",null,{"$f":"IF('TSA Input'!J2593=\"\",\"\",IF(OR('TSA Input'!J2593=\"Yes\",'TSA Input'!J2593=\"Contingent\"),'TSA Input'!B2593,\"Ineligible\"))","v":""},{"$f":"IF('TSA Input'!J2593=\"\",\"\",IF(OR('TSA Input'!J2593=\"Yes\",'TSA Input'!J2593=\"Contingent\"),'TSA Input'!I2593,\"\"))","v":""},{"$f":"IF('TSA Input'!J2593=\"\",\"\",IF(OR('TSA Input'!J2593=\"Yes\",'TSA Input'!J2593=\"Contingent\"),'TSA Input'!C2593,\"\"))","v":""},{"$f":"IF('TSA Input'!J2593=\"\",\"\",IF(OR('TSA Input'!J2593=\"Yes\",'TSA Input'!J2593=\"Contingent\"),'TSA Input'!D2593,\"\"))","v":""},{"$f":"IF('TSA Input'!J2593=\"\",\"\",IF(OR('TSA Input'!J2593=\"Yes\",'TSA Input'!J2593=\"Contingent\"),'TSA Input'!G2593,\"\"))","v":""},{"$f":"IF('TSA Input'!J2593=\"\",\"\",IF(OR('TSA Input'!J2593=\"Yes\",'TSA Input'!J2593=\"Contingent\"),'TSA Input'!F2593,\"\"))","v":""},"",{"$f":"IF('TSA Input'!J2593=\"\",\"\",IF(OR('TSA Input'!J2593=\"Yes\",'TSA Input'!J2593=\"Contingent\"),'TSA Input'!D2593,\"\"))","v":""},{"$f":"IF('TSA Input'!J2593=\"\",\"\",IF(OR('TSA Input'!J2593=\"Yes\",'TSA Input'!J2593=\"Contingent\"),'TSA Input'!G2593,\"\"))","v":""},{"$f":"IF('TSA Input'!J2593=\"\",\"\",IF(OR('TSA Input'!J2593=\"Yes\",'TSA Input'!J2593=\"Contingent\"),'TSA Input'!F2593,\"\"))","v":""},"","Required","Required"]
["",null,{"$f":"IF('TSA Input'!J2594=\"\",\"\",IF(OR('TSA Input'!J2594=\"Yes\",'TSA Input'!J2594=\"Contingent\"),'TSA Input'!B2594,\"Ineligible\"))","v":""},{"$f":"IF('TSA Input'!J2594=\"\",\"\",IF(OR('TSA Input'!J2594=\"Yes\",'TSA Input'!J2594=\"Contingent\"),'TSA Input'!I2594,\"\"))","v":""},{"$f":"IF('TSA Input'!J2594=\"\",\"\",IF(OR('TSA Input'!J2594=\"Yes\",'TSA Input'!J2594=\"Contingent\"),'TSA Input'!C2594,\"\"))","v":""},{"$f":"IF('TSA Input'!J2594=\"\",\"\",IF(OR('TSA Input'!J2594=\"Yes\",'TSA Input'!J2594=\"Contingent\"),'TSA Input'!D2594,\"\"))","v":""},{"$f":"IF('TSA Input'!J2594=\"\",\"\",IF(OR('TSA Input'!J2594=\"Yes\",'TSA Input'!J2594=\"Contingent\"),'TSA Input'!G2594,\"\"))","v":""},{"$f":"IF('TSA Input'!J2594=\"\",\"\",IF(OR('TSA Input'!J2594=\"Yes\",'TSA Input'!J2594=\"Contingent\"),'TSA Input'!F2594,\"\"))","v":""},"",{"$f":"IF('TSA Input'!J2594=\"\",\"\",IF(OR('TSA Input'!J2594=\"Yes\",'TSA Input'!J2594=\"Contingent\"),'TSA Input'!D2594,\"\"))","v":""},{"$f":"IF('TSA Input'!J2594=\"\",\"\",IF(OR('TSA Input'!J2594=\"Yes\",'TSA Input'!J2594=\"Contingent\"),'TSA Input'!G2594,\"\"))","v":""},{"$f":"IF('TSA Input'!J2594=\"\",\"\",IF(OR('TSA Input'!J2594=\"Yes\",'TSA Input'!J2594=\"Contingent\"),'TSA Input'!F2594,\"\"))","v":""},"","Required","Required"]
["",null,{"$f":"IF('TSA Input'!J2595=\"\",\"\",IF(OR('TSA Input'!J2595=\"Yes\",'TSA Input'!J2595=\"Contingent\"),'TSA Input'!B2595,\"Ineligible\"))","v":""},{"$f":"IF('TSA Input'!J2595=\"\",\"\",IF(OR('TSA Input'!J2595=\"Yes\",'TSA Input'!J2595=\"Contingent\"),'TSA Input'!I2595,\"\"))","v":""},{"$f":"IF('TSA Input'!J2595=\"\",\"\",IF(OR('TSA Input'!J2595=\"Yes\",'TSA Input'!J2595=\"Contingent\"),'TSA Input'!C2595,\"\"))","v":""},{"$f":"IF('TSA Input'!J2595=\"\",\"\",IF(OR('TSA Input'!J2595=\"Yes\",'TSA Input'!J2595=\"Contingent\"),'TSA Input'!D2595,\"\"))","v":""},{"$f":"IF('TSA Input'!J2595=\"\",\"\",IF(OR('TSA Input'!J2595=\"Yes\",'TSA Input'!J2595=\"Contingent\"),'TSA Input'!G2595,\"\"))","v":""},{"$f":"IF('TSA Input'!J2595=\"\",\"\",IF(OR('TSA Input'!J2595=\"Yes\",'TSA Input'!J2595=\"Contingent\"),'TSA Input'!F2595,\"\"))","v":""},"",{"$f":"IF('TSA Input'!J2595=\"\",\"\",IF(OR('TSA Input'!J2595=\"Yes\",'TSA Input'!J2595=\"Contingent\"),'TSA Input'!D2595,\"\"))","v":""},{"$f":"IF('TSA Input'!J2595=\"\",\"\",IF(OR('TSA Input'!J2595=\"Yes\",'TSA Input'!J2595=\"Contingent\"),'TSA Input'!G2595,\"\"))","v":""},{"$f":"IF('TSA Input'!J2595=\"\",\"\",IF(OR('TSA Input'!J2595=\"Yes\",'TSA Input'!J2595=\"Contingent\"),'TSA Input'!F2595,\"\"))","v":""},"","Required","Required"]
["",null,{"$f":"IF('TSA Input'!J2596=\"\",\"\",IF(OR('TSA Input'!J2596=\"Yes\",'TSA Input'!J2596=\"Contingent\"),'TSA Input'!B2596,\"Ineligible\"))","v":""},{"$f":"IF('TSA Input'!J2596=\"\",\"\",IF(OR('TSA Input'!J2596=\"Yes\",'TSA Input'!J2596=\"Contingent\"),'TSA Input'!I2596,\"\"))","v":""},{"$f":"IF('TSA Input'!J2596=\"\",\"\",IF(OR('TSA Input'!J2596=\"Yes\",'TSA Input'!J2596=\"Contingent\"),'TSA Input'!C2596,\"\"))","v":""},{"$f":"IF('TSA Input'!J2596=\"\",\"\",IF(OR('TSA Input'!J2596=\"Yes\",'TSA Input'!J2596=\"Contingent\"),'TSA Input'!D2596,\"\"))","v":""},{"$f":"IF('TSA Input'!J2596=\"\",\"\",IF(OR('TSA Input'!J2596=\"Yes\",'TSA Input'!J2596=\"Contingent\"),'TSA Input'!G2596,\"\"))","v":""},{"$f":"IF('TSA Input'!J2596=\"\",\"\",IF(OR('TSA Input'!J2596=\"Yes\",'TSA Input'!J2596=\"Contingent\"),'TSA Input'!F2596,\"\"))","v":""},"",{"$f":"IF('TSA Input'!J2596=\"\",\"\",IF(OR('TSA Input'!J2596=\"Yes\",'TSA Input'!J2596=\"Contingent\"),'TSA Input'!D2596,\"\"))","v":""},{"$f":"IF('TSA Input'!J2596=\"\",\"\",IF(OR('TSA Input'!J2596=\"Yes\",'TSA Input'!J2596=\"Contingent\"),'TSA Input'!G2596,\"\"))","v":""},{"$f":"IF('TSA Input'!J2596=\"\",\"\",IF(OR('TSA Input'!J2596=\"Yes\",'TSA Input'!J2596=\"Contingent\"),'TSA Input'!F2596,\"\"))","v":""},"","Required","Required"]
["",null,{"$f":"IF('TSA Input'!J2597=\"\",\"\",IF(OR('TSA Input'!J2597=\"Yes\",'TSA Input'!J2597=\"Contingent\"),'TSA Input'!B2597,\"Ineligible\"))","v":""},{"$f":"IF('TSA Input'!J2597=\"\",\"\",IF(OR('TSA Input'!J2597=\"Yes\",'TSA Input'!J2597=\"Contingent\"),'TSA Input'!I2597,\"\"))","v":""},{"$f":"IF('TSA Input'!J2597=\"\",\"\",IF(OR('TSA Input'!J2597=\"Yes\",'TSA Input'!J2597=\"Contingent\"),'TSA Input'!C2597,\"\"))","v":""},{"$f":"IF('TSA Input'!J2597=\"\",\"\",IF(OR('TSA Input'!J2597=\"Yes\",'TSA Input'!J2597=\"Contingent\"),'TSA Input'!D2597,\"\"))","v":""},{"$f":"IF('TSA Input'!J2597=\"\",\"\",IF(OR('TSA Input'!J2597=\"Yes\",'TSA Input'!J2597=\"Contingent\"),'TSA Input'!G2597,\"\"))","v":""},{"$f":"IF('TSA Input'!J2597=\"\",\"\",IF(OR('TSA Input'!J2597=\"Yes\",'TSA Input'!J2597=\"Contingent\"),'TSA Input'!F2597,\"\"))","v":""},"",{"$f":"IF('TSA Input'!J2597=\"\",\"\",IF(OR('TSA Input'!J2597=\"Yes\",'TSA Input'!J2597=\"Contingent\"),'TSA Input'!D2597,\"\"))","v":""},{"$f":"IF('TSA Input'!J2597=\"\",\"\",IF(OR('TSA Input'!J2597=\"Yes\",'TSA Input'!J2597=\"Contingent\"),'TSA Input'!G2597,\"\"))","v":""},{"$f":"IF('TSA Input'!J2597=\"\",\"\",IF(OR('TSA Input'!J2597=\"Yes\",'TSA Input'!J2597=\"Contingent\"),'TSA Input'!F2597,\"\"))","v":""},"","Required","Required"]
["",null,{"$f":"IF('TSA Input'!J2598=\"\",\"\",IF(OR('TSA Input'!J2598=\"Yes\",'TSA Input'!J2598=\"Contingent\"),'TSA Input'!B2598,\"Ineligible\"))","v":""},{"$f":"IF('TSA Input'!J2598=\"\",\"\",IF(OR('TSA Input'!J2598=\"Yes\",'TSA Input'!J2598=\"Contingent\"),'TSA Input'!I2598,\"\"))","v":""},{"$f":"IF('TSA Input'!J2598=\"\",\"\",IF(OR('TSA Input'!J2598=\"Yes\",'TSA Input'!J2598=\"Contingent\"),'TSA Input'!C2598,\"\"))","v":""},{"$f":"IF('TSA Input'!J2598=\"\",\"\",IF(OR('TSA Input'!J2598=\"Yes\",'TSA Input'!J2598=\"Contingent\"),'TSA Input'!D2598,\"\"))","v":""},{"$f":"IF('TSA Input'!J2598=\"\",\"\",IF(OR('TSA Input'!J2598=\"Yes\",'TSA Input'!J2598=\"Contingent\"),'TSA Input'!G2598,\"\"))","v":""},{"$f":"IF('TSA Input'!J2598=\"\",\"\",IF(OR('TSA Input'!J2598=\"Yes\",'TSA Input'!J2598=\"Contingent\"),'TSA Input'!F2598,\"\"))","v":""},"",{"$f":"IF('TSA Input'!J2598=\"\",\"\",IF(OR('TSA Input'!J2598=\"Yes\",'TSA Input'!J2598=\"Contingent\"),'TSA Input'!D2598,\"\"))","v":""},{"$f":"IF('TSA Input'!J2598=\"\",\"\",IF(OR('TSA Input'!J2598=\"Yes\",'TSA Input'!J2598=\"Contingent\"),'TSA Input'!G2598,\"\"))","v":""},{"$f":"IF('TSA Input'!J2598=\"\",\"\",IF(OR('TSA Input'!J2598=\"Yes\",'TSA Input'!J2598=\"Contingent\"),'TSA Input'!F2598,\"\"))","v":""},"","Required","Required"]
["",null,{"$f":"IF('TSA Input'!J2599=\"\",\"\",IF(OR('TSA Input'!J2599=\"Yes\",'TSA Input'!J2599=\"Contingent\"),'TSA Input'!B2599,\"Ineligible\"))","v":""},{"$f":"IF('TSA Input'!J2599=\"\",\"\",IF(OR('TSA Input'!J2599=\"Yes\",'TSA Input'!J2599=\"Contingent\"),'TSA Input'!I2599,\"\"))","v":""},{"$f":"IF('TSA Input'!J2599=\"\",\"\",IF(OR('TSA Input'!J2599=\"Yes\",'TSA Input'!J2599=\"Contingent\"),'TSA Input'!C2599,\"\"))","v":""},{"$f":"IF('TSA Input'!J2599=\"\",\"\",IF(OR('TSA Input'!J2599=\"Yes\",'TSA Input'!J2599=\"Contingent\"),'TSA Input'!D2599,\"\"))","v":""},{"$f":"IF('TSA Input'!J2599=\"\",\"\",IF(OR('TSA Input'!J2599=\"Yes\",'TSA Input'!J2599=\"Contingent\"),'TSA Input'!G2599,\"\"))","v":""},{"$f":"IF('TSA Input'!J2599=\"\",\"\",IF(OR('TSA Input'!J2599=\"Yes\",'TSA Input'!J2599=\"Contingent\"),'TSA Input'!F2599,\"\"))","v":""},"",{"$f":"IF('TSA Input'!J2599=\"\",\"\",IF(OR('TSA Input'!J2599=\"Yes\",'TSA Input'!J2599=\"Contingent\"),'TSA Input'!D2599,\"\"))","v":""},{"$f":"IF('TSA Input'!J2599=\"\",\"\",IF(OR('TSA Input'!J2599=\"Yes\",'TSA Input'!J2599=\"Contingent\"),'TSA Input'!G2599,\"\"))","v":""},{"$f":"IF('TSA Input'!J2599=\"\",\"\",IF(OR('TSA Input'!J2599=\"Yes\",'TSA Input'!J2599=\"Contingent\"),'TSA Input'!F2599,\"\"))","v":""},"","Required","Required"]
["",null,{"$f":"IF('TSA Input'!J2600=\"\",\"\",IF(OR('TSA Input'!J2600=\"Yes\",'TSA Input'!J2600=\"Contingent\"),'TSA Input'!B2600,\"Ineligible\"))","v":""},{"$f":"IF('TSA Input'!J2600=\"\",\"\",IF(OR('TSA Input'!J2600=\"Yes\",'TSA Input'!J2600=\"Contingent\"),'TSA Input'!I2600,\"\"))","v":""},{"$f":"IF('TSA Input'!J2600=\"\",\"\",IF(OR('TSA Input'!J2600=\"Yes\",'TSA Input'!J2600=\"Contingent\"),'TSA Input'!C2600,\"\"))","v":""},{"$f":"IF('TSA Input'!J2600=\"\",\"\",IF(OR('TSA Input'!J2600=\"Yes\",'TSA Input'!J2600=\"Contingent\"),'TSA Input'!D2600,\"\"))","v":""},{"$f":"IF('TSA Input'!J2600=\"\",\"\",IF(OR('TSA Input'!J2600=\"Yes\",'TSA Input'!J2600=\"Contingent\"),'TSA Input'!G2600,\"\"))","v":""},{"$f":"IF('TSA Input'!J2600=\"\",\"\",IF(OR('TSA Input'!J2600=\"Yes\",'TSA Input'!J2600=\"Contingent\"),'TSA Input'!F2600,\"\"))","v":""},"",{"$f":"IF('TSA Input'!J2600=\"\",\"\",IF(OR('TSA Input'!J2600=\"Yes\",'TSA Input'!J2600=\"Contingent\"),'TSA Input'!D2600,\"\"))","v":""},{"$f":"IF('TSA Input'!J2600=\"\",\"\",IF(OR('TSA Input'!J2600=\"Yes\",'TSA Input'!J2600=\"Contingent\"),'TSA Input'!G2600,\"\"))","v":""},{"$f":"IF('TSA Input'!J2600=\"\",\"\",IF(OR('TSA Input'!J2600=\"Yes\",'TSA Input'!J2600=\"Contingent\"),'TSA Input'!F2600,\"\"))","v":""},"","Required","Required"]
["",null,{"$f":"IF('TSA Input'!J2601=\"\",\"\",IF(OR('TSA Input'!J2601=\"Yes\",'TSA Input'!J2601=\"Contingent\"),'TSA Input'!B2601,\"Ineligible\"))","v":""},{"$f":"IF('TSA Input'!J2601=\"\",\"\",IF(OR('TSA Input'!J2601=\"Yes\",'TSA Input'!J2601=\"Contingent\"),'TSA Input'!I2601,\"\"))","v":""},{"$f":"IF('TSA Input'!J2601=\"\",\"\",IF(OR('TSA Input'!J2601=\"Yes\",'TSA Input'!J2601=\"Contingent\"),'TSA Input'!C2601,\"\"))","v":""},{"$f":"IF('TSA Input'!J2601=\"\",\"\",IF(OR('TSA Input'!J2601=\"Yes\",'TSA Input'!J2601=\"Contingent\"),'TSA Input'!D2601,\"\"))","v":""},{"$f":"IF('TSA Input'!J2601=\"\",\"\",IF(OR('TSA Input'!J2601=\"Yes\",'TSA Input'!J2601=\"Contingent\"),'TSA Input'!G2601,\"\"))","v":""},{"$f":"IF('TSA Input'!J2601=\"\",\"\",IF(OR('TSA Input'!J2601=\"Yes\",'TSA Input'!J2601=\"Contingent\"),'TSA Input'!F2601,\"\"))","v":""},"",{"$f":"IF('TSA Input'!J2601=\"\",\"\",IF(OR('TSA Input'!J2601=\"Yes\",'TSA Input'!J2601=\"Contingent\"),'TSA Input'!D2601,\"\"))","v":""},{"$f":"IF('TSA Input'!J2601=\"\",\"\",IF(OR('TSA Input'!J2601=\"Yes\",'TSA Input'!J2601=\"Contingent\"),'TSA Input'!G2601,\"\"))","v":""},{"$f":"IF('TSA Input'!J2601=\"\",\"\",IF(OR('TSA Input'!J2601=\"Yes\",'TSA Input'!J2601=\"Contingent\"),'TSA Input'!F2601,\"\"))","v":""},"","Required","Required"]
["",null,{"$f":"IF('TSA Input'!J2602=\"\",\"\",IF(OR('TSA Input'!J2602=\"Yes\",'TSA Input'!J2602=\"Contingent\"),'TSA Input'!B2602,\"Ineligible\"))","v":""},{"$f":"IF('TSA Input'!J2602=\"\",\"\",IF(OR('TSA Input'!J2602=\"Yes\",'TSA Input'!J2602=\"Contingent\"),'TSA Input'!I2602,\"\"))","v":""},{"$f":"IF('TSA Input'!J2602=\"\",\"\",IF(OR('TSA Input'!J2602=\"Yes\",'TSA Input'!J2602=\"Contingent\"),'TSA Input'!C2602,\"\"))","v":""},{"$f":"IF('TSA Input'!J2602=\"\",\"\",IF(OR('TSA Input'!J2602=\"Yes\",'TSA Input'!J2602=\"Contingent\"),'TSA Input'!D2602,\"\"))","v":""},{"$f":"IF('TSA Input'!J2602=\"\",\"\",IF(OR('TSA Input'!J2602=\"Yes\",'TSA Input'!J2602=\"Contingent\"),'TSA Input'!G2602,\"\"))","v":""},{"$f":"IF('TSA Input'!J2602=\"\",\"\",IF(OR('TSA Input'!J2602=\"Yes\",'TSA Input'!J2602=\"Contingent\"),'TSA Input'!F2602,\"\"))","v":""},"",{"$f":"IF('TSA Input'!J2602=\"\",\"\",IF(OR('TSA Input'!J2602=\"Yes\",'TSA Input'!J2602=\"Contingent\"),'TSA Input'!D2602,\"\"))","v":""},{"$f":"IF('TSA Input'!J2602=\"\",\"\",IF(OR('TSA Input'!J2602=\"Yes\",'TSA Input'!J2602=\"Contingent\"),'TSA Input'!G2602,\"\"))","v":""},{"$f":"IF('TSA Input'!J2602=\"\",\"\",IF(OR('TSA Input'!J2602=\"Yes\",'TSA Input'!J2602=\"Contingent\"),'TSA Input'!F2602,\"\"))","v":""},"","Required","Required"]
["",null,{"$f":"IF('TSA Input'!J2603=\"\",\"\",IF(OR('TSA Input'!J2603=\"Yes\",'TSA Input'!J2603=\"Contingent\"),'TSA Input'!B2603,\"Ineligible\"))","v":""},{"$f":"IF('TSA Input'!J2603=\"\",\"\",IF(OR('TSA Input'!J2603=\"Yes\",'TSA Input'!J2603=\"Contingent\"),'TSA Input'!I2603,\"\"))","v":""},{"$f":"IF('TSA Input'!J2603=\"\",\"\",IF(OR('TSA Input'!J2603=\"Yes\",'TSA Input'!J2603=\"Contingent\"),'TSA Input'!C2603,\"\"))","v":""},{"$f":"IF('TSA Input'!J2603=\"\",\"\",IF(OR('TSA Input'!J2603=\"Yes\",'TSA Input'!J2603=\"Contingent\"),'TSA Input'!D2603,\"\"))","v":""},{"$f":"IF('TSA Input'!J2603=\"\",\"\",IF(OR('TSA Input'!J2603=\"Yes\",'TSA Input'!J2603=\"Contingent\"),'TSA Input'!G2603,\"\"))","v":""},{"$f":"IF('TSA Input'!J2603=\"\",\"\",IF(OR('TSA Input'!J2603=\"Yes\",'TSA Input'!J2603=\"Contingent\"),'TSA Input'!F2603,\"\"))","v":""},"",{"$f":"IF('TSA Input'!J2603=\"\",\"\",IF(OR('TSA Input'!J2603=\"Yes\",'TSA Input'!J2603=\"Contingent\"),'TSA Input'!D2603,\"\"))","v":""},{"$f":"IF('TSA Input'!J2603=\"\",\"\",IF(OR('TSA Input'!J2603=\"Yes\",'TSA Input'!J2603=\"Contingent\"),'TSA Input'!G2603,\"\"))","v":""},{"$f":"IF('TSA Input'!J2603=\"\",\"\",IF(OR('TSA Input'!J2603=\"Yes\",'TSA Input'!J2603=\"Contingent\"),'TSA Input'!F2603,\"\"))","v":""},"","Required","Required"]
["",null,{"$f":"IF('TSA Input'!J2604=\"\",\"\",IF(OR('TSA Input'!J2604=\"Yes\",'TSA Input'!J2604=\"Contingent\"),'TSA Input'!B2604,\"Ineligible\"))","v":""},{"$f":"IF('TSA Input'!J2604=\"\",\"\",IF(OR('TSA Input'!J2604=\"Yes\",'TSA Input'!J2604=\"Contingent\"),'TSA Input'!I2604,\"\"))","v":""},{"$f":"IF('TSA Input'!J2604=\"\",\"\",IF(OR('TSA Input'!J2604=\"Yes\",'TSA Input'!J2604=\"Contingent\"),'TSA Input'!C2604,\"\"))","v":""},{"$f":"IF('TSA Input'!J2604=\"\",\"\",IF(OR('TSA Input'!J2604=\"Yes\",'TSA Input'!J2604=\"Contingent\"),'TSA Input'!D2604,\"\"))","v":""},{"$f":"IF('TSA Input'!J2604=\"\",\"\",IF(OR('TSA Input'!J2604=\"Yes\",'TSA Input'!J2604=\"Contingent\"),'TSA Input'!G2604,\"\"))","v":""},{"$f":"IF('TSA Input'!J2604=\"\",\"\",IF(OR('TSA Input'!J2604=\"Yes\",'TSA Input'!J2604=\"Contingent\"),'TSA Input'!F2604,\"\"))","v":""},"",{"$f":"IF('TSA Input'!J2604=\"\",\"\",IF(OR('TSA Input'!J2604=\"Yes\",'TSA Input'!J2604=\"Contingent\"),'TSA Input'!D2604,\"\"))","v":""},{"$f":"IF('TSA Input'!J2604=\"\",\"\",IF(OR('TSA Input'!J2604=\"Yes\",'TSA Input'!J2604=\"Contingent\"),'TSA Input'!G2604,\"\"))","v":""},{"$f":"IF('TSA Input'!J2604=\"\",\"\",IF(OR('TSA Input'!J2604=\"Yes\",'TSA Input'!J2604=\"Contingent\"),'TSA Input'!F2604,\"\"))","v":""},"","Required","Required"]
["",null,{"$f":"IF('TSA Input'!J2605=\"\",\"\",IF(OR('TSA Input'!J2605=\"Yes\",'TSA Input'!J2605=\"Contingent\"),'TSA Input'!B2605,\"Ineligible\"))","v":""},{"$f":"IF('TSA Input'!J2605=\"\",\"\",IF(OR('TSA Input'!J2605=\"Yes\",'TSA Input'!J2605=\"Contingent\"),'TSA Input'!I2605,\"\"))","v":""},{"$f":"IF('TSA Input'!J2605=\"\",\"\",IF(OR('TSA Input'!J2605=\"Yes\",'TSA Input'!J2605=\"Contingent\"),'TSA Input'!C2605,\"\"))","v":""},{"$f":"IF('TSA Input'!J2605=\"\",\"\",IF(OR('TSA Input'!J2605=\"Yes\",'TSA Input'!J2605=\"Contingent\"),'TSA Input'!D2605,\"\"))","v":""},{"$f":"IF('TSA Input'!J2605=\"\",\"\",IF(OR('TSA Input'!J2605=\"Yes\",'TSA Input'!J2605=\"Contingent\"),'TSA Input'!G2605,\"\"))","v":""},{"$f":"IF('TSA Input'!J2605=\"\",\"\",IF(OR('TSA Input'!J2605=\"Yes\",'TSA Input'!J2605=\"Contingent\"),'TSA Input'!F2605,\"\"))","v":""},"",{"$f":"IF('TSA Input'!J2605=\"\",\"\",IF(OR('TSA Input'!J2605=\"Yes\",'TSA Input'!J2605=\"Contingent\"),'TSA Input'!D2605,\"\"))","v":""},{"$f":"IF('TSA Input'!J2605=\"\",\"\",IF(OR('TSA Input'!J2605=\"Yes\",'TSA Input'!J2605=\"Contingent\"),'TSA Input'!G2605,\"\"))","v":""},{"$f":"IF('TSA Input'!J2605=\"\",\"\",IF(OR('TSA Input'!J2605=\"Yes\",'TSA Input'!J2605=\"Contingent\"),'TSA Input'!F2605,\"\"))","v":""},"","Required","Required"]
["",null,{"$f":"IF('TSA Input'!J2606=\"\",\"\",IF(OR('TSA Input'!J2606=\"Yes\",'TSA Input'!J2606=\"Contingent\"),'TSA Input'!B2606,\"Ineligible\"))","v":""},{"$f":"IF('TSA Input'!J2606=\"\",\"\",IF(OR('TSA Input'!J2606=\"Yes\",'TSA Input'!J2606=\"Contingent\"),'TSA Input'!I2606,\"\"))","v":""},{"$f":"IF('TSA Input'!J2606=\"\",\"\",IF(OR('TSA Input'!J2606=\"Yes\",'TSA Input'!J2606=\"Contingent\"),'TSA Input'!C2606,\"\"))","v":""},{"$f":"IF('TSA Input'!J2606=\"\",\"\",IF(OR('TSA Input'!J2606=\"Yes\",'TSA Input'!J2606=\"Contingent\"),'TSA Input'!D2606,\"\"))","v":""},{"$f":"IF('TSA Input'!J2606=\"\",\"\",IF(OR('TSA Input'!J2606=\"Yes\",'TSA Input'!J2606=\"Contingent\"),'TSA Input'!G2606,\"\"))","v":""},{"$f":"IF('TSA Input'!J2606=\"\",\"\",IF(OR('TSA Input'!J2606=\"Yes\",'TSA Input'!J2606=\"Contingent\"),'TSA Input'!F2606,\"\"))","v":""},"",{"$f":"IF('TSA Input'!J2606=\"\",\"\",IF(OR('TSA Input'!J2606=\"Yes\",'TSA Input'!J2606=\"Contingent\"),'TSA Input'!D2606,\"\"))","v":""},{"$f":"IF('TSA Input'!J2606=\"\",\"\",IF(OR('TSA Input'!J2606=\"Yes\",'TSA Input'!J2606=\"Contingent\"),'TSA Input'!G2606,\"\"))","v":""},{"$f":"IF('TSA Input'!J2606=\"\",\"\",IF(OR('TSA Input'!J2606=\"Yes\",'TSA Input'!J2606=\"Contingent\"),'TSA Input'!F2606,\"\"))","v":""},"","Required","Required"]
["",null,{"$f":"IF('TSA Input'!J2607=\"\",\"\",IF(OR('TSA Input'!J2607=\"Yes\",'TSA Input'!J2607=\"Contingent\"),'TSA Input'!B2607,\"Ineligible\"))","v":""},{"$f":"IF('TSA Input'!J2607=\"\",\"\",IF(OR('TSA Input'!J2607=\"Yes\",'TSA Input'!J2607=\"Contingent\"),'TSA Input'!I2607,\"\"))","v":""},{"$f":"IF('TSA Input'!J2607=\"\",\"\",IF(OR('TSA Input'!J2607=\"Yes\",'TSA Input'!J2607=\"Contingent\"),'TSA Input'!C2607,\"\"))","v":""},{"$f":"IF('TSA Input'!J2607=\"\",\"\",IF(OR('TSA Input'!J2607=\"Yes\",'TSA Input'!J2607=\"Contingent\"),'TSA Input'!D2607,\"\"))","v":""},{"$f":"IF('TSA Input'!J2607=\"\",\"\",IF(OR('TSA Input'!J2607=\"Yes\",'TSA Input'!J2607=\"Contingent\"),'TSA Input'!G2607,\"\"))","v":""},{"$f":"IF('TSA Input'!J2607=\"\",\"\",IF(OR('TSA Input'!J2607=\"Yes\",'TSA Input'!J2607=\"Contingent\"),'TSA Input'!F2607,\"\"))","v":""},"",{"$f":"IF('TSA Input'!J2607=\"\",\"\",IF(OR('TSA Input'!J2607=\"Yes\",'TSA Input'!J2607=\"Contingent\"),'TSA Input'!D2607,\"\"))","v":""},{"$f":"IF('TSA Input'!J2607=\"\",\"\",IF(OR('TSA Input'!J2607=\"Yes\",'TSA Input'!J2607=\"Contingent\"),'TSA Input'!G2607,\"\"))","v":""},{"$f":"IF('TSA Input'!J2607=\"\",\"\",IF(OR('TSA Input'!J2607=\"Yes\",'TSA Input'!J2607=\"Contingent\"),'TSA Input'!F2607,\"\"))","v":""},"","Required","Required"]
["",null,{"$f":"IF('TSA Input'!J2608=\"\",\"\",IF(OR('TSA Input'!J2608=\"Yes\",'TSA Input'!J2608=\"Contingent\"),'TSA Input'!B2608,\"Ineligible\"))","v":""},{"$f":"IF('TSA Input'!J2608=\"\",\"\",IF(OR('TSA Input'!J2608=\"Yes\",'TSA Input'!J2608=\"Contingent\"),'TSA Input'!I2608,\"\"))","v":""},{"$f":"IF('TSA Input'!J2608=\"\",\"\",IF(OR('TSA Input'!J2608=\"Yes\",'TSA Input'!J2608=\"Contingent\"),'TSA Input'!C2608,\"\"))","v":""},{"$f":"IF('TSA Input'!J2608=\"\",\"\",IF(OR('TSA Input'!J2608=\"Yes\",'TSA Input'!J2608=\"Contingent\"),'TSA Input'!D2608,\"\"))","v":""},{"$f":"IF('TSA Input'!J2608=\"\",\"\",IF(OR('TSA Input'!J2608=\"Yes\",'TSA Input'!J2608=\"Contingent\"),'TSA Input'!G2608,\"\"))","v":""},{"$f":"IF('TSA Input'!J2608=\"\",\"\",IF(OR('TSA Input'!J2608=\"Yes\",'TSA Input'!J2608=\"Contingent\"),'TSA Input'!F2608,\"\"))","v":""},"",{"$f":"IF('TSA Input'!J2608=\"\",\"\",IF(OR('TSA Input'!J2608=\"Yes\",'TSA Input'!J2608=\"Contingent\"),'TSA Input'!D2608,\"\"))","v":""},{"$f":"IF('TSA Input'!J2608=\"\",\"\",IF(OR('TSA Input'!J2608=\"Yes\",'TSA Input'!J2608=\"Contingent\"),'TSA Input'!G2608,\"\"))","v":""},{"$f":"IF('TSA Input'!J2608=\"\",\"\",IF(OR('TSA Input'!J2608=\"Yes\",'TSA Input'!J2608=\"Contingent\"),'TSA Input'!F2608,\"\"))","v":""},"","Required","Required"]
["",null,{"$f":"IF('TSA Input'!J2609=\"\",\"\",IF(OR('TSA Input'!J2609=\"Yes\",'TSA Input'!J2609=\"Contingent\"),'TSA Input'!B2609,\"Ineligible\"))","v":""},{"$f":"IF('TSA Input'!J2609=\"\",\"\",IF(OR('TSA Input'!J2609=\"Yes\",'TSA Input'!J2609=\"Contingent\"),'TSA Input'!I2609,\"\"))","v":""},{"$f":"IF('TSA Input'!J2609=\"\",\"\",IF(OR('TSA Input'!J2609=\"Yes\",'TSA Input'!J2609=\"Contingent\"),'TSA Input'!C2609,\"\"))","v":""},{"$f":"IF('TSA Input'!J2609=\"\",\"\",IF(OR('TSA Input'!J2609=\"Yes\",'TSA Input'!J2609=\"Contingent\"),'TSA Input'!D2609,\"\"))","v":""},{"$f":"IF('TSA Input'!J2609=\"\",\"\",IF(OR('TSA Input'!J2609=\"Yes\",'TSA Input'!J2609=\"Contingent\"),'TSA Input'!G2609,\"\"))","v":""},{"$f":"IF('TSA Input'!J2609=\"\",\"\",IF(OR('TSA Input'!J2609=\"Yes\",'TSA Input'!J2609=\"Contingent\"),'TSA Input'!F2609,\"\"))","v":""},"",{"$f":"IF('TSA Input'!J2609=\"\",\"\",IF(OR('TSA Input'!J2609=\"Yes\",'TSA Input'!J2609=\"Contingent\"),'TSA Input'!D2609,\"\"))","v":""},{"$f":"IF('TSA Input'!J2609=\"\",\"\",IF(OR('TSA Input'!J2609=\"Yes\",'TSA Input'!J2609=\"Contingent\"),'TSA Input'!G2609,\"\"))","v":""},{"$f":"IF('TSA Input'!J2609=\"\",\"\",IF(OR('TSA Input'!J2609=\"Yes\",'TSA Input'!J2609=\"Contingent\"),'TSA Input'!F2609,\"\"))","v":""},"","Required","Required"]
["",null,{"$f":"IF('TSA Input'!J2610=\"\",\"\",IF(OR('TSA Input'!J2610=\"Yes\",'TSA Input'!J2610=\"Contingent\"),'TSA Input'!B2610,\"Ineligible\"))","v":""},{"$f":"IF('TSA Input'!J2610=\"\",\"\",IF(OR('TSA Input'!J2610=\"Yes\",'TSA Input'!J2610=\"Contingent\"),'TSA Input'!I2610,\"\"))","v":""},{"$f":"IF('TSA Input'!J2610=\"\",\"\",IF(OR('TSA Input'!J2610=\"Yes\",'TSA Input'!J2610=\"Contingent\"),'TSA Input'!C2610,\"\"))","v":""},{"$f":"IF('TSA Input'!J2610=\"\",\"\",IF(OR('TSA Input'!J2610=\"Yes\",'TSA Input'!J2610=\"Contingent\"),'TSA Input'!D2610,\"\"))","v":""},{"$f":"IF('TSA Input'!J2610=\"\",\"\",IF(OR('TSA Input'!J2610=\"Yes\",'TSA Input'!J2610=\"Contingent\"),'TSA Input'!G2610,\"\"))","v":""},{"$f":"IF('TSA Input'!J2610=\"\",\"\",IF(OR('TSA Input'!J2610=\"Yes\",'TSA Input'!J2610=\"Contingent\"),'TSA Input'!F2610,\"\"))","v":""},"",{"$f":"IF('TSA Input'!J2610=\"\",\"\",IF(OR('TSA Input'!J2610=\"Yes\",'TSA Input'!J2610=\"Contingent\"),'TSA Input'!D2610,\"\"))","v":""},{"$f":"IF('TSA Input'!J2610=\"\",\"\",IF(OR('TSA Input'!J2610=\"Yes\",'TSA Input'!J2610=\"Contingent\"),'TSA Input'!G2610,\"\"))","v":""},{"$f":"IF('TSA Input'!J2610=\"\",\"\",IF(OR('TSA Input'!J2610=\"Yes\",'TSA Input'!J2610=\"Contingent\"),'TSA Input'!F2610,\"\"))","v":""},"","Required","Required"]
["",null,{"$f":"IF('TSA Input'!J2611=\"\",\"\",IF(OR('TSA Input'!J2611=\"Yes\",'TSA Input'!J2611=\"Contingent\"),'TSA Input'!B2611,\"Ineligible\"))","v":""},{"$f":"IF('TSA Input'!J2611=\"\",\"\",IF(OR('TSA Input'!J2611=\"Yes\",'TSA Input'!J2611=\"Contingent\"),'TSA Input'!I2611,\"\"))","v":""},{"$f":"IF('TSA Input'!J2611=\"\",\"\",IF(OR('TSA Input'!J2611=\"Yes\",'TSA Input'!J2611=\"Contingent\"),'TSA Input'!C2611,\"\"))","v":""},{"$f":"IF('TSA Input'!J2611=\"\",\"\",IF(OR('TSA Input'!J2611=\"Yes\",'TSA Input'!J2611=\"Contingent\"),'TSA Input'!D2611,\"\"))","v":""},{"$f":"IF('TSA Input'!J2611=\"\",\"\",IF(OR('TSA Input'!J2611=\"Yes\",'TSA Input'!J2611=\"Contingent\"),'TSA Input'!G2611,\"\"))","v":""},{"$f":"IF('TSA Input'!J2611=\"\",\"\",IF(OR('TSA Input'!J2611=\"Yes\",'TSA Input'!J2611=\"Contingent\"),'TSA Input'!F2611,\"\"))","v":""},"",{"$f":"IF('TSA Input'!J2611=\"\",\"\",IF(OR('TSA Input'!J2611=\"Yes\",'TSA Input'!J2611=\"Contingent\"),'TSA Input'!D2611,\"\"))","v":""},{"$f":"IF('TSA Input'!J2611=\"\",\"\",IF(OR('TSA Input'!J2611=\"Yes\",'TSA Input'!J2611=\"Contingent\"),'TSA Input'!G2611,\"\"))","v":""},{"$f":"IF('TSA Input'!J2611=\"\",\"\",IF(OR('TSA Input'!J2611=\"Yes\",'TSA Input'!J2611=\"Contingent\"),'TSA Input'!F2611,\"\"))","v":""},"","Required","Required"]
["",null,{"$f":"IF('TSA Input'!J2612=\"\",\"\",IF(OR('TSA Input'!J2612=\"Yes\",'TSA Input'!J2612=\"Contingent\"),'TSA Input'!B2612,\"Ineligible\"))","v":""},{"$f":"IF('TSA Input'!J2612=\"\",\"\",IF(OR('TSA Input'!J2612=\"Yes\",'TSA Input'!J2612=\"Contingent\"),'TSA Input'!I2612,\"\"))","v":""},{"$f":"IF('TSA Input'!J2612=\"\",\"\",IF(OR('TSA Input'!J2612=\"Yes\",'TSA Input'!J2612=\"Contingent\"),'TSA Input'!C2612,\"\"))","v":""},{"$f":"IF('TSA Input'!J2612=\"\",\"\",IF(OR('TSA Input'!J2612=\"Yes\",'TSA Input'!J2612=\"Contingent\"),'TSA Input'!D2612,\"\"))","v":""},{"$f":"IF('TSA Input'!J2612=\"\",\"\",IF(OR('TSA Input'!J2612=\"Yes\",'TSA Input'!J2612=\"Contingent\"),'TSA Input'!G2612,\"\"))","v":""},{"$f":"IF('TSA Input'!J2612=\"\",\"\",IF(OR('TSA Input'!J2612=\"Yes\",'TSA Input'!J2612=\"Contingent\"),'TSA Input'!F2612,\"\"))","v":""},"",{"$f":"IF('TSA Input'!J2612=\"\",\"\",IF(OR('TSA Input'!J2612=\"Yes\",'TSA Input'!J2612=\"Contingent\"),'TSA Input'!D2612,\"\"))","v":""},{"$f":"IF('TSA Input'!J2612=\"\",\"\",IF(OR('TSA Input'!J2612=\"Yes\",'TSA Input'!J2612=\"Contingent\"),'TSA Input'!G2612,\"\"))","v":""},{"$f":"IF('TSA Input'!J2612=\"\",\"\",IF(OR('TSA Input'!J2612=\"Yes\",'TSA Input'!J2612=\"Contingent\"),'TSA Input'!F2612,\"\"))","v":""},"","Required","Required"]
["",null,{"$f":"IF('TSA Input'!J2613=\"\",\"\",IF(OR('TSA Input'!J2613=\"Yes\",'TSA Input'!J2613=\"Contingent\"),'TSA Input'!B2613,\"Ineligible\"))","v":""},{"$f":"IF('TSA Input'!J2613=\"\",\"\",IF(OR('TSA Input'!J2613=\"Yes\",'TSA Input'!J2613=\"Contingent\"),'TSA Input'!I2613,\"\"))","v":""},{"$f":"IF('TSA Input'!J2613=\"\",\"\",IF(OR('TSA Input'!J2613=\"Yes\",'TSA Input'!J2613=\"Contingent\"),'TSA Input'!C2613,\"\"))","v":""},{"$f":"IF('TSA Input'!J2613=\"\",\"\",IF(OR('TSA Input'!J2613=\"Yes\",'TSA Input'!J2613=\"Contingent\"),'TSA Input'!D2613,\"\"))","v":""},{"$f":"IF('TSA Input'!J2613=\"\",\"\",IF(OR('TSA Input'!J2613=\"Yes\",'TSA Input'!J2613=\"Contingent\"),'TSA Input'!G2613,\"\"))","v":""},{"$f":"IF('TSA Input'!J2613=\"\",\"\",IF(OR('TSA Input'!J2613=\"Yes\",'TSA Input'!J2613=\"Contingent\"),'TSA Input'!F2613,\"\"))","v":""},"",{"$f":"IF('TSA Input'!J2613=\"\",\"\",IF(OR('TSA Input'!J2613=\"Yes\",'TSA Input'!J2613=\"Contingent\"),'TSA Input'!D2613,\"\"))","v":""},{"$f":"IF('TSA Input'!J2613=\"\",\"\",IF(OR('TSA Input'!J2613=\"Yes\",'TSA Input'!J2613=\"Contingent\"),'TSA Input'!G2613,\"\"))","v":""},{"$f":"IF('TSA Input'!J2613=\"\",\"\",IF(OR('TSA Input'!J2613=\"Yes\",'TSA Input'!J2613=\"Contingent\"),'TSA Input'!F2613,\"\"))","v":""},"","Required","Required"]
["",null,{"$f":"IF('TSA Input'!J2614=\"\",\"\",IF(OR('TSA Input'!J2614=\"Yes\",'TSA Input'!J2614=\"Contingent\"),'TSA Input'!B2614,\"Ineligible\"))","v":""},{"$f":"IF('TSA Input'!J2614=\"\",\"\",IF(OR('TSA Input'!J2614=\"Yes\",'TSA Input'!J2614=\"Contingent\"),'TSA Input'!I2614,\"\"))","v":""},{"$f":"IF('TSA Input'!J2614=\"\",\"\",IF(OR('TSA Input'!J2614=\"Yes\",'TSA Input'!J2614=\"Contingent\"),'TSA Input'!C2614,\"\"))","v":""},{"$f":"IF('TSA Input'!J2614=\"\",\"\",IF(OR('TSA Input'!J2614=\"Yes\",'TSA Input'!J2614=\"Contingent\"),'TSA Input'!D2614,\"\"))","v":""},{"$f":"IF('TSA Input'!J2614=\"\",\"\",IF(OR('TSA Input'!J2614=\"Yes\",'TSA Input'!J2614=\"Contingent\"),'TSA Input'!G2614,\"\"))","v":""},{"$f":"IF('TSA Input'!J2614=\"\",\"\",IF(OR('TSA Input'!J2614=\"Yes\",'TSA Input'!J2614=\"Contingent\"),'TSA Input'!F2614,\"\"))","v":""},"",{"$f":"IF('TSA Input'!J2614=\"\",\"\",IF(OR('TSA Input'!J2614=\"Yes\",'TSA Input'!J2614=\"Contingent\"),'TSA Input'!D2614,\"\"))","v":""},{"$f":"IF('TSA Input'!J2614=\"\",\"\",IF(OR('TSA Input'!J2614=\"Yes\",'TSA Input'!J2614=\"Contingent\"),'TSA Input'!G2614,\"\"))","v":""},{"$f":"IF('TSA Input'!J2614=\"\",\"\",IF(OR('TSA Input'!J2614=\"Yes\",'TSA Input'!J2614=\"Contingent\"),'TSA Input'!F2614,\"\"))","v":""},"","Required","Required"]
["",null,{"$f":"IF('TSA Input'!J2615=\"\",\"\",IF(OR('TSA Input'!J2615=\"Yes\",'TSA Input'!J2615=\"Contingent\"),'TSA Input'!B2615,\"Ineligible\"))","v":""},{"$f":"IF('TSA Input'!J2615=\"\",\"\",IF(OR('TSA Input'!J2615=\"Yes\",'TSA Input'!J2615=\"Contingent\"),'TSA Input'!I2615,\"\"))","v":""},{"$f":"IF('TSA Input'!J2615=\"\",\"\",IF(OR('TSA Input'!J2615=\"Yes\",'TSA Input'!J2615=\"Contingent\"),'TSA Input'!C2615,\"\"))","v":""},{"$f":"IF('TSA Input'!J2615=\"\",\"\",IF(OR('TSA Input'!J2615=\"Yes\",'TSA Input'!J2615=\"Contingent\"),'TSA Input'!D2615,\"\"))","v":""},{"$f":"IF('TSA Input'!J2615=\"\",\"\",IF(OR('TSA Input'!J2615=\"Yes\",'TSA Input'!J2615=\"Contingent\"),'TSA Input'!G2615,\"\"))","v":""},{"$f":"IF('TSA Input'!J2615=\"\",\"\",IF(OR('TSA Input'!J2615=\"Yes\",'TSA Input'!J2615=\"Contingent\"),'TSA Input'!F2615,\"\"))","v":""},"",{"$f":"IF('TSA Input'!J2615=\"\",\"\",IF(OR('TSA Input'!J2615=\"Yes\",'TSA Input'!J2615=\"Contingent\"),'TSA Input'!D2615,\"\"))","v":""},{"$f":"IF('TSA Input'!J2615=\"\",\"\",IF(OR('TSA Input'!J2615=\"Yes\",'TSA Input'!J2615=\"Contingent\"),'TSA Input'!G2615,\"\"))","v":""},{"$f":"IF('TSA Input'!J2615=\"\",\"\",IF(OR('TSA Input'!J2615=\"Yes\",'TSA Input'!J2615=\"Contingent\"),'TSA Input'!F2615,\"\"))","v":""},"","Required","Required"]
["",null,{"$f":"IF('TSA Input'!J2616=\"\",\"\",IF(OR('TSA Input'!J2616=\"Yes\",'TSA Input'!J2616=\"Contingent\"),'TSA Input'!B2616,\"Ineligible\"))","v":""},{"$f":"IF('TSA Input'!J2616=\"\",\"\",IF(OR('TSA Input'!J2616=\"Yes\",'TSA Input'!J2616=\"Contingent\"),'TSA Input'!I2616,\"\"))","v":""},{"$f":"IF('TSA Input'!J2616=\"\",\"\",IF(OR('TSA Input'!J2616=\"Yes\",'TSA Input'!J2616=\"Contingent\"),'TSA Input'!C2616,\"\"))","v":""},{"$f":"IF('TSA Input'!J2616=\"\",\"\",IF(OR('TSA Input'!J2616=\"Yes\",'TSA Input'!J2616=\"Contingent\"),'TSA Input'!D2616,\"\"))","v":""},{"$f":"IF('TSA Input'!J2616=\"\",\"\",IF(OR('TSA Input'!J2616=\"Yes\",'TSA Input'!J2616=\"Contingent\"),'TSA Input'!G2616,\"\"))","v":""},{"$f":"IF('TSA Input'!J2616=\"\",\"\",IF(OR('TSA Input'!J2616=\"Yes\",'TSA Input'!J2616=\"Contingent\"),'TSA Input'!F2616,\"\"))","v":""},"",{"$f":"IF('TSA Input'!J2616=\"\",\"\",IF(OR('TSA Input'!J2616=\"Yes\",'TSA Input'!J2616=\"Contingent\"),'TSA Input'!D2616,\"\"))","v":""},{"$f":"IF('TSA Input'!J2616=\"\",\"\",IF(OR('TSA Input'!J2616=\"Yes\",'TSA Input'!J2616=\"Contingent\"),'TSA Input'!G2616,\"\"))","v":""},{"$f":"IF('TSA Input'!J2616=\"\",\"\",IF(OR('TSA Input'!J2616=\"Yes\",'TSA Input'!J2616=\"Contingent\"),'TSA Input'!F2616,\"\"))","v":""},"","Required","Required"]
["",null,{"$f":"IF('TSA Input'!J2617=\"\",\"\",IF(OR('TSA Input'!J2617=\"Yes\",'TSA Input'!J2617=\"Contingent\"),'TSA Input'!B2617,\"Ineligible\"))","v":""},{"$f":"IF('TSA Input'!J2617=\"\",\"\",IF(OR('TSA Input'!J2617=\"Yes\",'TSA Input'!J2617=\"Contingent\"),'TSA Input'!I2617,\"\"))","v":""},{"$f":"IF('TSA Input'!J2617=\"\",\"\",IF(OR('TSA Input'!J2617=\"Yes\",'TSA Input'!J2617=\"Contingent\"),'TSA Input'!C2617,\"\"))","v":""},{"$f":"IF('TSA Input'!J2617=\"\",\"\",IF(OR('TSA Input'!J2617=\"Yes\",'TSA Input'!J2617=\"Contingent\"),'TSA Input'!D2617,\"\"))","v":""},{"$f":"IF('TSA Input'!J2617=\"\",\"\",IF(OR('TSA Input'!J2617=\"Yes\",'TSA Input'!J2617=\"Contingent\"),'TSA Input'!G2617,\"\"))","v":""},{"$f":"IF('TSA Input'!J2617=\"\",\"\",IF(OR('TSA Input'!J2617=\"Yes\",'TSA Input'!J2617=\"Contingent\"),'TSA Input'!F2617,\"\"))","v":""},"",{"$f":"IF('TSA Input'!J2617=\"\",\"\",IF(OR('TSA Input'!J2617=\"Yes\",'TSA Input'!J2617=\"Contingent\"),'TSA Input'!D2617,\"\"))","v":""},{"$f":"IF('TSA Input'!J2617=\"\",\"\",IF(OR('TSA Input'!J2617=\"Yes\",'TSA Input'!J2617=\"Contingent\"),'TSA Input'!G2617,\"\"))","v":""},{"$f":"IF('TSA Input'!J2617=\"\",\"\",IF(OR('TSA Input'!J2617=\"Yes\",'TSA Input'!J2617=\"Contingent\"),'TSA Input'!F2617,\"\"))","v":""},"","Required","Required"]
["",null,{"$f":"IF('TSA Input'!J2618=\"\",\"\",IF(OR('TSA Input'!J2618=\"Yes\",'TSA Input'!J2618=\"Contingent\"),'TSA Input'!B2618,\"Ineligible\"))","v":""},{"$f":"IF('TSA Input'!J2618=\"\",\"\",IF(OR('TSA Input'!J2618=\"Yes\",'TSA Input'!J2618=\"Contingent\"),'TSA Input'!I2618,\"\"))","v":""},{"$f":"IF('TSA Input'!J2618=\"\",\"\",IF(OR('TSA Input'!J2618=\"Yes\",'TSA Input'!J2618=\"Contingent\"),'TSA Input'!C2618,\"\"))","v":""},{"$f":"IF('TSA Input'!J2618=\"\",\"\",IF(OR('TSA Input'!J2618=\"Yes\",'TSA Input'!J2618=\"Contingent\"),'TSA Input'!D2618,\"\"))","v":""},{"$f":"IF('TSA Input'!J2618=\"\",\"\",IF(OR('TSA Input'!J2618=\"Yes\",'TSA Input'!J2618=\"Contingent\"),'TSA Input'!G2618,\"\"))","v":""},{"$f":"IF('TSA Input'!J2618=\"\",\"\",IF(OR('TSA Input'!J2618=\"Yes\",'TSA Input'!J2618=\"Contingent\"),'TSA Input'!F2618,\"\"))","v":""},"",{"$f":"IF('TSA Input'!J2618=\"\",\"\",IF(OR('TSA Input'!J2618=\"Yes\",'TSA Input'!J2618=\"Contingent\"),'TSA Input'!D2618,\"\"))","v":""},{"$f":"IF('TSA Input'!J2618=\"\",\"\",IF(OR('TSA Input'!J2618=\"Yes\",'TSA Input'!J2618=\"Contingent\"),'TSA Input'!G2618,\"\"))","v":""},{"$f":"IF('TSA Input'!J2618=\"\",\"\",IF(OR('TSA Input'!J2618=\"Yes\",'TSA Input'!J2618=\"Contingent\"),'TSA Input'!F2618,\"\"))","v":""},"","Required","Required"]
["",null,{"$f":"IF('TSA Input'!J2619=\"\",\"\",IF(OR('TSA Input'!J2619=\"Yes\",'TSA Input'!J2619=\"Contingent\"),'TSA Input'!B2619,\"Ineligible\"))","v":""},{"$f":"IF('TSA Input'!J2619=\"\",\"\",IF(OR('TSA Input'!J2619=\"Yes\",'TSA Input'!J2619=\"Contingent\"),'TSA Input'!I2619,\"\"))","v":""},{"$f":"IF('TSA Input'!J2619=\"\",\"\",IF(OR('TSA Input'!J2619=\"Yes\",'TSA Input'!J2619=\"Contingent\"),'TSA Input'!C2619,\"\"))","v":""},{"$f":"IF('TSA Input'!J2619=\"\",\"\",IF(OR('TSA Input'!J2619=\"Yes\",'TSA Input'!J2619=\"Contingent\"),'TSA Input'!D2619,\"\"))","v":""},{"$f":"IF('TSA Input'!J2619=\"\",\"\",IF(OR('TSA Input'!J2619=\"Yes\",'TSA Input'!J2619=\"Contingent\"),'TSA Input'!G2619,\"\"))","v":""},{"$f":"IF('TSA Input'!J2619=\"\",\"\",IF(OR('TSA Input'!J2619=\"Yes\",'TSA Input'!J2619=\"Contingent\"),'TSA Input'!F2619,\"\"))","v":""},"",{"$f":"IF('TSA Input'!J2619=\"\",\"\",IF(OR('TSA Input'!J2619=\"Yes\",'TSA Input'!J2619=\"Contingent\"),'TSA Input'!D2619,\"\"))","v":""},{"$f":"IF('TSA Input'!J2619=\"\",\"\",IF(OR('TSA Input'!J2619=\"Yes\",'TSA Input'!J2619=\"Contingent\"),'TSA Input'!G2619,\"\"))","v":""},{"$f":"IF('TSA Input'!J2619=\"\",\"\",IF(OR('TSA Input'!J2619=\"Yes\",'TSA Input'!J2619=\"Contingent\"),'TSA Input'!F2619,\"\"))","v":""},"","Required","Required"]
["",null,{"$f":"IF('TSA Input'!J2620=\"\",\"\",IF(OR('TSA Input'!J2620=\"Yes\",'TSA Input'!J2620=\"Contingent\"),'TSA Input'!B2620,\"Ineligible\"))","v":""},{"$f":"IF('TSA Input'!J2620=\"\",\"\",IF(OR('TSA Input'!J2620=\"Yes\",'TSA Input'!J2620=\"Contingent\"),'TSA Input'!I2620,\"\"))","v":""},{"$f":"IF('TSA Input'!J2620=\"\",\"\",IF(OR('TSA Input'!J2620=\"Yes\",'TSA Input'!J2620=\"Contingent\"),'TSA Input'!C2620,\"\"))","v":""},{"$f":"IF('TSA Input'!J2620=\"\",\"\",IF(OR('TSA Input'!J2620=\"Yes\",'TSA Input'!J2620=\"Contingent\"),'TSA Input'!D2620,\"\"))","v":""},{"$f":"IF('TSA Input'!J2620=\"\",\"\",IF(OR('TSA Input'!J2620=\"Yes\",'TSA Input'!J2620=\"Contingent\"),'TSA Input'!G2620,\"\"))","v":""},{"$f":"IF('TSA Input'!J2620=\"\",\"\",IF(OR('TSA Input'!J2620=\"Yes\",'TSA Input'!J2620=\"Contingent\"),'TSA Input'!F2620,\"\"))","v":""},"",{"$f":"IF('TSA Input'!J2620=\"\",\"\",IF(OR('TSA Input'!J2620=\"Yes\",'TSA Input'!J2620=\"Contingent\"),'TSA Input'!D2620,\"\"))","v":""},{"$f":"IF('TSA Input'!J2620=\"\",\"\",IF(OR('TSA Input'!J2620=\"Yes\",'TSA Input'!J2620=\"Contingent\"),'TSA Input'!G2620,\"\"))","v":""},{"$f":"IF('TSA Input'!J2620=\"\",\"\",IF(OR('TSA Input'!J2620=\"Yes\",'TSA Input'!J2620=\"Contingent\"),'TSA Input'!F2620,\"\"))","v":""},"","Required","Required"]
["",null,{"$f":"IF('TSA Input'!J2621=\"\",\"\",IF(OR('TSA Input'!J2621=\"Yes\",'TSA Input'!J2621=\"Contingent\"),'TSA Input'!B2621,\"Ineligible\"))","v":""},{"$f":"IF('TSA Input'!J2621=\"\",\"\",IF(OR('TSA Input'!J2621=\"Yes\",'TSA Input'!J2621=\"Contingent\"),'TSA Input'!I2621,\"\"))","v":""},{"$f":"IF('TSA Input'!J2621=\"\",\"\",IF(OR('TSA Input'!J2621=\"Yes\",'TSA Input'!J2621=\"Contingent\"),'TSA Input'!C2621,\"\"))","v":""},{"$f":"IF('TSA Input'!J2621=\"\",\"\",IF(OR('TSA Input'!J2621=\"Yes\",'TSA Input'!J2621=\"Contingent\"),'TSA Input'!D2621,\"\"))","v":""},{"$f":"IF('TSA Input'!J2621=\"\",\"\",IF(OR('TSA Input'!J2621=\"Yes\",'TSA Input'!J2621=\"Contingent\"),'TSA Input'!G2621,\"\"))","v":""},{"$f":"IF('TSA Input'!J2621=\"\",\"\",IF(OR('TSA Input'!J2621=\"Yes\",'TSA Input'!J2621=\"Contingent\"),'TSA Input'!F2621,\"\"))","v":""},"",{"$f":"IF('TSA Input'!J2621=\"\",\"\",IF(OR('TSA Input'!J2621=\"Yes\",'TSA Input'!J2621=\"Contingent\"),'TSA Input'!D2621,\"\"))","v":""},{"$f":"IF('TSA Input'!J2621=\"\",\"\",IF(OR('TSA Input'!J2621=\"Yes\",'TSA Input'!J2621=\"Contingent\"),'TSA Input'!G2621,\"\"))","v":""},{"$f":"IF('TSA Input'!J2621=\"\",\"\",IF(OR('TSA Input'!J2621=\"Yes\",'TSA Input'!J2621=\"Contingent\"),'TSA Input'!F2621,\"\"))","v":""},"","Required","Required"]
["",null,{"$f":"IF('TSA Input'!J2622=\"\",\"\",IF(OR('TSA Input'!J2622=\"Yes\",'TSA Input'!J2622=\"Contingent\"),'TSA Input'!B2622,\"Ineligible\"))","v":""},{"$f":"IF('TSA Input'!J2622=\"\",\"\",IF(OR('TSA Input'!J2622=\"Yes\",'TSA Input'!J2622=\"Contingent\"),'TSA Input'!I2622,\"\"))","v":""},{"$f":"IF('TSA Input'!J2622=\"\",\"\",IF(OR('TSA Input'!J2622=\"Yes\",'TSA Input'!J2622=\"Contingent\"),'TSA Input'!C2622,\"\"))","v":""},{"$f":"IF('TSA Input'!J2622=\"\",\"\",IF(OR('TSA Input'!J2622=\"Yes\",'TSA Input'!J2622=\"Contingent\"),'TSA Input'!D2622,\"\"))","v":""},{"$f":"IF('TSA Input'!J2622=\"\",\"\",IF(OR('TSA Input'!J2622=\"Yes\",'TSA Input'!J2622=\"Contingent\"),'TSA Input'!G2622,\"\"))","v":""},{"$f":"IF('TSA Input'!J2622=\"\",\"\",IF(OR('TSA Input'!J2622=\"Yes\",'TSA Input'!J2622=\"Contingent\"),'TSA Input'!F2622,\"\"))","v":""},"",{"$f":"IF('TSA Input'!J2622=\"\",\"\",IF(OR('TSA Input'!J2622=\"Yes\",'TSA Input'!J2622=\"Contingent\"),'TSA Input'!D2622,\"\"))","v":""},{"$f":"IF('TSA Input'!J2622=\"\",\"\",IF(OR('TSA Input'!J2622=\"Yes\",'TSA Input'!J2622=\"Contingent\"),'TSA Input'!G2622,\"\"))","v":""},{"$f":"IF('TSA Input'!J2622=\"\",\"\",IF(OR('TSA Input'!J2622=\"Yes\",'TSA Input'!J2622=\"Contingent\"),'TSA Input'!F2622,\"\"))","v":""},"","Required","Required"]
["",null,{"$f":"IF('TSA Input'!J2623=\"\",\"\",IF(OR('TSA Input'!J2623=\"Yes\",'TSA Input'!J2623=\"Contingent\"),'TSA Input'!B2623,\"Ineligible\"))","v":""},{"$f":"IF('TSA Input'!J2623=\"\",\"\",IF(OR('TSA Input'!J2623=\"Yes\",'TSA Input'!J2623=\"Contingent\"),'TSA Input'!I2623,\"\"))","v":""},{"$f":"IF('TSA Input'!J2623=\"\",\"\",IF(OR('TSA Input'!J2623=\"Yes\",'TSA Input'!J2623=\"Contingent\"),'TSA Input'!C2623,\"\"))","v":""},{"$f":"IF('TSA Input'!J2623=\"\",\"\",IF(OR('TSA Input'!J2623=\"Yes\",'TSA Input'!J2623=\"Contingent\"),'TSA Input'!D2623,\"\"))","v":""},{"$f":"IF('TSA Input'!J2623=\"\",\"\",IF(OR('TSA Input'!J2623=\"Yes\",'TSA Input'!J2623=\"Contingent\"),'TSA Input'!G2623,\"\"))","v":""},{"$f":"IF('TSA Input'!J2623=\"\",\"\",IF(OR('TSA Input'!J2623=\"Yes\",'TSA Input'!J2623=\"Contingent\"),'TSA Input'!F2623,\"\"))","v":""},"",{"$f":"IF('TSA Input'!J2623=\"\",\"\",IF(OR('TSA Input'!J2623=\"Yes\",'TSA Input'!J2623=\"Contingent\"),'TSA Input'!D2623,\"\"))","v":""},{"$f":"IF('TSA Input'!J2623=\"\",\"\",IF(OR('TSA Input'!J2623=\"Yes\",'TSA Input'!J2623=\"Contingent\"),'TSA Input'!G2623,\"\"))","v":""},{"$f":"IF('TSA Input'!J2623=\"\",\"\",IF(OR('TSA Input'!J2623=\"Yes\",'TSA Input'!J2623=\"Contingent\"),'TSA Input'!F2623,\"\"))","v":""},"","Required","Required"]
["",null,{"$f":"IF('TSA Input'!J2624=\"\",\"\",IF(OR('TSA Input'!J2624=\"Yes\",'TSA Input'!J2624=\"Contingent\"),'TSA Input'!B2624,\"Ineligible\"))","v":""},{"$f":"IF('TSA Input'!J2624=\"\",\"\",IF(OR('TSA Input'!J2624=\"Yes\",'TSA Input'!J2624=\"Contingent\"),'TSA Input'!I2624,\"\"))","v":""},{"$f":"IF('TSA Input'!J2624=\"\",\"\",IF(OR('TSA Input'!J2624=\"Yes\",'TSA Input'!J2624=\"Contingent\"),'TSA Input'!C2624,\"\"))","v":""},{"$f":"IF('TSA Input'!J2624=\"\",\"\",IF(OR('TSA Input'!J2624=\"Yes\",'TSA Input'!J2624=\"Contingent\"),'TSA Input'!D2624,\"\"))","v":""},{"$f":"IF('TSA Input'!J2624=\"\",\"\",IF(OR('TSA Input'!J2624=\"Yes\",'TSA Input'!J2624=\"Contingent\"),'TSA Input'!G2624,\"\"))","v":""},{"$f":"IF('TSA Input'!J2624=\"\",\"\",IF(OR('TSA Input'!J2624=\"Yes\",'TSA Input'!J2624=\"Contingent\"),'TSA Input'!F2624,\"\"))","v":""},"",{"$f":"IF('TSA Input'!J2624=\"\",\"\",IF(OR('TSA Input'!J2624=\"Yes\",'TSA Input'!J2624=\"Contingent\"),'TSA Input'!D2624,\"\"))","v":""},{"$f":"IF('TSA Input'!J2624=\"\",\"\",IF(OR('TSA Input'!J2624=\"Yes\",'TSA Input'!J2624=\"Contingent\"),'TSA Input'!G2624,\"\"))","v":""},{"$f":"IF('TSA Input'!J2624=\"\",\"\",IF(OR('TSA Input'!J2624=\"Yes\",'TSA Input'!J2624=\"Contingent\"),'TSA Input'!F2624,\"\"))","v":""},"","Required","Required"]
["",null,{"$f":"IF('TSA Input'!J2625=\"\",\"\",IF(OR('TSA Input'!J2625=\"Yes\",'TSA Input'!J2625=\"Contingent\"),'TSA Input'!B2625,\"Ineligible\"))","v":""},{"$f":"IF('TSA Input'!J2625=\"\",\"\",IF(OR('TSA Input'!J2625=\"Yes\",'TSA Input'!J2625=\"Contingent\"),'TSA Input'!I2625,\"\"))","v":""},{"$f":"IF('TSA Input'!J2625=\"\",\"\",IF(OR('TSA Input'!J2625=\"Yes\",'TSA Input'!J2625=\"Contingent\"),'TSA Input'!C2625,\"\"))","v":""},{"$f":"IF('TSA Input'!J2625=\"\",\"\",IF(OR('TSA Input'!J2625=\"Yes\",'TSA Input'!J2625=\"Contingent\"),'TSA Input'!D2625,\"\"))","v":""},{"$f":"IF('TSA Input'!J2625=\"\",\"\",IF(OR('TSA Input'!J2625=\"Yes\",'TSA Input'!J2625=\"Contingent\"),'TSA Input'!G2625,\"\"))","v":""},{"$f":"IF('TSA Input'!J2625=\"\",\"\",IF(OR('TSA Input'!J2625=\"Yes\",'TSA Input'!J2625=\"Contingent\"),'TSA Input'!F2625,\"\"))","v":""},"",{"$f":"IF('TSA Input'!J2625=\"\",\"\",IF(OR('TSA Input'!J2625=\"Yes\",'TSA Input'!J2625=\"Contingent\"),'TSA Input'!D2625,\"\"))","v":""},{"$f":"IF('TSA Input'!J2625=\"\",\"\",IF(OR('TSA Input'!J2625=\"Yes\",'TSA Input'!J2625=\"Contingent\"),'TSA Input'!G2625,\"\"))","v":""},{"$f":"IF('TSA Input'!J2625=\"\",\"\",IF(OR('TSA Input'!J2625=\"Yes\",'TSA Input'!J2625=\"Contingent\"),'TSA Input'!F2625,\"\"))","v":""},"","Required","Required"]
["",null,{"$f":"IF('TSA Input'!J2626=\"\",\"\",IF(OR('TSA Input'!J2626=\"Yes\",'TSA Input'!J2626=\"Contingent\"),'TSA Input'!B2626,\"Ineligible\"))","v":""},{"$f":"IF('TSA Input'!J2626=\"\",\"\",IF(OR('TSA Input'!J2626=\"Yes\",'TSA Input'!J2626=\"Contingent\"),'TSA Input'!I2626,\"\"))","v":""},{"$f":"IF('TSA Input'!J2626=\"\",\"\",IF(OR('TSA Input'!J2626=\"Yes\",'TSA Input'!J2626=\"Contingent\"),'TSA Input'!C2626,\"\"))","v":""},{"$f":"IF('TSA Input'!J2626=\"\",\"\",IF(OR('TSA Input'!J2626=\"Yes\",'TSA Input'!J2626=\"Contingent\"),'TSA Input'!D2626,\"\"))","v":""},{"$f":"IF('TSA Input'!J2626=\"\",\"\",IF(OR('TSA Input'!J2626=\"Yes\",'TSA Input'!J2626=\"Contingent\"),'TSA Input'!G2626,\"\"))","v":""},{"$f":"IF('TSA Input'!J2626=\"\",\"\",IF(OR('TSA Input'!J2626=\"Yes\",'TSA Input'!J2626=\"Contingent\"),'TSA Input'!F2626,\"\"))","v":""},"",{"$f":"IF('TSA Input'!J2626=\"\",\"\",IF(OR('TSA Input'!J2626=\"Yes\",'TSA Input'!J2626=\"Contingent\"),'TSA Input'!D2626,\"\"))","v":""},{"$f":"IF('TSA Input'!J2626=\"\",\"\",IF(OR('TSA Input'!J2626=\"Yes\",'TSA Input'!J2626=\"Contingent\"),'TSA Input'!G2626,\"\"))","v":""},{"$f":"IF('TSA Input'!J2626=\"\",\"\",IF(OR('TSA Input'!J2626=\"Yes\",'TSA Input'!J2626=\"Contingent\"),'TSA Input'!F2626,\"\"))","v":""},"","Required","Required"]
["",null,{"$f":"IF('TSA Input'!J2627=\"\",\"\",IF(OR('TSA Input'!J2627=\"Yes\",'TSA Input'!J2627=\"Contingent\"),'TSA Input'!B2627,\"Ineligible\"))","v":""},{"$f":"IF('TSA Input'!J2627=\"\",\"\",IF(OR('TSA Input'!J2627=\"Yes\",'TSA Input'!J2627=\"Contingent\"),'TSA Input'!I2627,\"\"))","v":""},{"$f":"IF('TSA Input'!J2627=\"\",\"\",IF(OR('TSA Input'!J2627=\"Yes\",'TSA Input'!J2627=\"Contingent\"),'TSA Input'!C2627,\"\"))","v":""},{"$f":"IF('TSA Input'!J2627=\"\",\"\",IF(OR('TSA Input'!J2627=\"Yes\",'TSA Input'!J2627=\"Contingent\"),'TSA Input'!D2627,\"\"))","v":""},{"$f":"IF('TSA Input'!J2627=\"\",\"\",IF(OR('TSA Input'!J2627=\"Yes\",'TSA Input'!J2627=\"Contingent\"),'TSA Input'!G2627,\"\"))","v":""},{"$f":"IF('TSA Input'!J2627=\"\",\"\",IF(OR('TSA Input'!J2627=\"Yes\",'TSA Input'!J2627=\"Contingent\"),'TSA Input'!F2627,\"\"))","v":""},"",{"$f":"IF('TSA Input'!J2627=\"\",\"\",IF(OR('TSA Input'!J2627=\"Yes\",'TSA Input'!J2627=\"Contingent\"),'TSA Input'!D2627,\"\"))","v":""},{"$f":"IF('TSA Input'!J2627=\"\",\"\",IF(OR('TSA Input'!J2627=\"Yes\",'TSA Input'!J2627=\"Contingent\"),'TSA Input'!G2627,\"\"))","v":""},{"$f":"IF('TSA Input'!J2627=\"\",\"\",IF(OR('TSA Input'!J2627=\"Yes\",'TSA Input'!J2627=\"Contingent\"),'TSA Input'!F2627,\"\"))","v":""},"","Required","Required"]
["",null,{"$f":"IF('TSA Input'!J2628=\"\",\"\",IF(OR('TSA Input'!J2628=\"Yes\",'TSA Input'!J2628=\"Contingent\"),'TSA Input'!B2628,\"Ineligible\"))","v":""},{"$f":"IF('TSA Input'!J2628=\"\",\"\",IF(OR('TSA Input'!J2628=\"Yes\",'TSA Input'!J2628=\"Contingent\"),'TSA Input'!I2628,\"\"))","v":""},{"$f":"IF('TSA Input'!J2628=\"\",\"\",IF(OR('TSA Input'!J2628=\"Yes\",'TSA Input'!J2628=\"Contingent\"),'TSA Input'!C2628,\"\"))","v":""},{"$f":"IF('TSA Input'!J2628=\"\",\"\",IF(OR('TSA Input'!J2628=\"Yes\",'TSA Input'!J2628=\"Contingent\"),'TSA Input'!D2628,\"\"))","v":""},{"$f":"IF('TSA Input'!J2628=\"\",\"\",IF(OR('TSA Input'!J2628=\"Yes\",'TSA Input'!J2628=\"Contingent\"),'TSA Input'!G2628,\"\"))","v":""},{"$f":"IF('TSA Input'!J2628=\"\",\"\",IF(OR('TSA Input'!J2628=\"Yes\",'TSA Input'!J2628=\"Contingent\"),'TSA Input'!F2628,\"\"))","v":""},{"$f":"IF($C2666=\"\",\"\",SUM(F2666:H2666))","v":""},{"$f":"IF('TSA Input'!J2628=\"\",\"\",IF(OR('TSA Input'!J2628=\"Yes\",'TSA Input'!J2628=\"Contingent\"),'TSA Input'!D2628,\"\"))","v":""},{"$f":"IF('TSA Input'!J2628=\"\",\"\",IF(OR('TSA Input'!J2628=\"Yes\",'TSA Input'!J2628=\"Contingent\"),'TSA Input'!G2628,\"\"))","v":""},{"$f":"IF('TSA Input'!J2628=\"\",\"\",IF(OR('TSA Input'!J2628=\"Yes\",'TSA Input'!J2628=\"Contingent\"),'TSA Input'!F2628,\"\"))","v":""},{"$f":"IF($C2666=\"\",\"\",SUM(J2666:L2666))","v":""},"Required","Required"]
["",null,{"$f":"IF('TSA Input'!J2629=\"\",\"\",IF(OR('TSA Input'!J2629=\"Yes\",'TSA Input'!J2629=\"Contingent\"),'TSA Input'!B2629,\"Ineligible\"))","v":""},{"$f":"IF('TSA Input'!J2629=\"\",\"\",IF(OR('TSA Input'!J2629=\"Yes\",'TSA Input'!J2629=\"Contingent\"),'TSA Input'!I2629,\"\"))","v":""},{"$f":"IF('TSA Input'!J2629=\"\",\"\",IF(OR('TSA Input'!J2629=\"Yes\",'TSA Input'!J2629=\"Contingent\"),'TSA Input'!C2629,\"\"))","v":""},{"$f":"IF('TSA Input'!J2629=\"\",\"\",IF(OR('TSA Input'!J2629=\"Yes\",'TSA Input'!J2629=\"Contingent\"),'TSA Input'!D2629,\"\"))","v":""},{"$f":"IF('TSA Input'!J2629=\"\",\"\",IF(OR('TSA Input'!J2629=\"Yes\",'TSA Input'!J2629=\"Contingent\"),'TSA Input'!G2629,\"\"))","v":""},{"$f":"IF('TSA Input'!J2629=\"\",\"\",IF(OR('TSA Input'!J2629=\"Yes\",'TSA Input'!J2629=\"Contingent\"),'TSA Input'!F2629,\"\"))","v":""},"",{"$f":"IF('TSA Input'!J2629=\"\",\"\",IF(OR('TSA Input'!J2629=\"Yes\",'TSA Input'!J2629=\"Contingent\"),'TSA Input'!D2629,\"\"))","v":""},{"$f":"IF('TSA Input'!J2629=\"\",\"\",IF(OR('TSA Input'!J2629=\"Yes\",'TSA Input'!J2629=\"Contingent\"),'TSA Input'!G2629,\"\"))","v":""},{"$f":"IF('TSA Input'!J2629=\"\",\"\",IF(OR('TSA Input'!J2629=\"Yes\",'TSA Input'!J2629=\"Contingent\"),'TSA Input'!F2629,\"\"))","v":""},"","Required","Required"]
["",null,{"$f":"IF('TSA Input'!J2630=\"\",\"\",IF(OR('TSA Input'!J2630=\"Yes\",'TSA Input'!J2630=\"Contingent\"),'TSA Input'!B2630,\"Ineligible\"))","v":""},{"$f":"IF('TSA Input'!J2630=\"\",\"\",IF(OR('TSA Input'!J2630=\"Yes\",'TSA Input'!J2630=\"Contingent\"),'TSA Input'!I2630,\"\"))","v":""},{"$f":"IF('TSA Input'!J2630=\"\",\"\",IF(OR('TSA Input'!J2630=\"Yes\",'TSA Input'!J2630=\"Contingent\"),'TSA Input'!C2630,\"\"))","v":""},{"$f":"IF('TSA Input'!J2630=\"\",\"\",IF(OR('TSA Input'!J2630=\"Yes\",'TSA Input'!J2630=\"Contingent\"),'TSA Input'!D2630,\"\"))","v":""},{"$f":"IF('TSA Input'!J2630=\"\",\"\",IF(OR('TSA Input'!J2630=\"Yes\",'TSA Input'!J2630=\"Contingent\"),'TSA Input'!G2630,\"\"))","v":""},{"$f":"IF('TSA Input'!J2630=\"\",\"\",IF(OR('TSA Input'!J2630=\"Yes\",'TSA Input'!J2630=\"Contingent\"),'TSA Input'!F2630,\"\"))","v":""},"",{"$f":"IF('TSA Input'!J2630=\"\",\"\",IF(OR('TSA Input'!J2630=\"Yes\",'TSA Input'!J2630=\"Contingent\"),'TSA Input'!D2630,\"\"))","v":""},{"$f":"IF('TSA Input'!J2630=\"\",\"\",IF(OR('TSA Input'!J2630=\"Yes\",'TSA Input'!J2630=\"Contingent\"),'TSA Input'!G2630,\"\"))","v":""},{"$f":"IF('TSA Input'!J2630=\"\",\"\",IF(OR('TSA Input'!J2630=\"Yes\",'TSA Input'!J2630=\"Contingent\"),'TSA Input'!F2630,\"\"))","v":""},"","Required","Required"]
["",null,{"$f":"IF('TSA Input'!J2631=\"\",\"\",IF(OR('TSA Input'!J2631=\"Yes\",'TSA Input'!J2631=\"Contingent\"),'TSA Input'!B2631,\"Ineligible\"))","v":""},{"$f":"IF('TSA Input'!J2631=\"\",\"\",IF(OR('TSA Input'!J2631=\"Yes\",'TSA Input'!J2631=\"Contingent\"),'TSA Input'!I2631,\"\"))","v":""},{"$f":"IF('TSA Input'!J2631=\"\",\"\",IF(OR('TSA Input'!J2631=\"Yes\",'TSA Input'!J2631=\"Contingent\"),'TSA Input'!C2631,\"\"))","v":""},{"$f":"IF('TSA Input'!J2631=\"\",\"\",IF(OR('TSA Input'!J2631=\"Yes\",'TSA Input'!J2631=\"Contingent\"),'TSA Input'!D2631,\"\"))","v":""},{"$f":"IF('TSA Input'!J2631=\"\",\"\",IF(OR('TSA Input'!J2631=\"Yes\",'TSA Input'!J2631=\"Contingent\"),'TSA Input'!G2631,\"\"))","v":""},{"$f":"IF('TSA Input'!J2631=\"\",\"\",IF(OR('TSA Input'!J2631=\"Yes\",'TSA Input'!J2631=\"Contingent\"),'TSA Input'!F2631,\"\"))","v":""},"",{"$f":"IF('TSA Input'!J2631=\"\",\"\",IF(OR('TSA Input'!J2631=\"Yes\",'TSA Input'!J2631=\"Contingent\"),'TSA Input'!D2631,\"\"))","v":""},{"$f":"IF('TSA Input'!J2631=\"\",\"\",IF(OR('TSA Input'!J2631=\"Yes\",'TSA Input'!J2631=\"Contingent\"),'TSA Input'!G2631,\"\"))","v":""},{"$f":"IF('TSA Input'!J2631=\"\",\"\",IF(OR('TSA Input'!J2631=\"Yes\",'TSA Input'!J2631=\"Contingent\"),'TSA Input'!F2631,\"\"))","v":""},"","Required","Required"]
["",null,{"$f":"IF('TSA Input'!J2632=\"\",\"\",IF(OR('TSA Input'!J2632=\"Yes\",'TSA Input'!J2632=\"Contingent\"),'TSA Input'!B2632,\"Ineligible\"))","v":""},{"$f":"IF('TSA Input'!J2632=\"\",\"\",IF(OR('TSA Input'!J2632=\"Yes\",'TSA Input'!J2632=\"Contingent\"),'TSA Input'!I2632,\"\"))","v":""},{"$f":"IF('TSA Input'!J2632=\"\",\"\",IF(OR('TSA Input'!J2632=\"Yes\",'TSA Input'!J2632=\"Contingent\"),'TSA Input'!C2632,\"\"))","v":""},{"$f":"IF('TSA Input'!J2632=\"\",\"\",IF(OR('TSA Input'!J2632=\"Yes\",'TSA Input'!J2632=\"Contingent\"),'TSA Input'!D2632,\"\"))","v":""},{"$f":"IF('TSA Input'!J2632=\"\",\"\",IF(OR('TSA Input'!J2632=\"Yes\",'TSA Input'!J2632=\"Contingent\"),'TSA Input'!G2632,\"\"))","v":""},{"$f":"IF('TSA Input'!J2632=\"\",\"\",IF(OR('TSA Input'!J2632=\"Yes\",'TSA Input'!J2632=\"Contingent\"),'TSA Input'!F2632,\"\"))","v":""},"",{"$f":"IF('TSA Input'!J2632=\"\",\"\",IF(OR('TSA Input'!J2632=\"Yes\",'TSA Input'!J2632=\"Contingent\"),'TSA Input'!D2632,\"\"))","v":""},{"$f":"IF('TSA Input'!J2632=\"\",\"\",IF(OR('TSA Input'!J2632=\"Yes\",'TSA Input'!J2632=\"Contingent\"),'TSA Input'!G2632,\"\"))","v":""},{"$f":"IF('TSA Input'!J2632=\"\",\"\",IF(OR('TSA Input'!J2632=\"Yes\",'TSA Input'!J2632=\"Contingent\"),'TSA Input'!F2632,\"\"))","v":""},"","Required","Required"]
["",null,{"$f":"IF('TSA Input'!J2633=\"\",\"\",IF(OR('TSA Input'!J2633=\"Yes\",'TSA Input'!J2633=\"Contingent\"),'TSA Input'!B2633,\"Ineligible\"))","v":""},{"$f":"IF('TSA Input'!J2633=\"\",\"\",IF(OR('TSA Input'!J2633=\"Yes\",'TSA Input'!J2633=\"Contingent\"),'TSA Input'!I2633,\"\"))","v":""},{"$f":"IF('TSA Input'!J2633=\"\",\"\",IF(OR('TSA Input'!J2633=\"Yes\",'TSA Input'!J2633=\"Contingent\"),'TSA Input'!C2633,\"\"))","v":""},{"$f":"IF('TSA Input'!J2633=\"\",\"\",IF(OR('TSA Input'!J2633=\"Yes\",'TSA Input'!J2633=\"Contingent\"),'TSA Input'!D2633,\"\"))","v":""},{"$f":"IF('TSA Input'!J2633=\"\",\"\",IF(OR('TSA Input'!J2633=\"Yes\",'TSA Input'!J2633=\"Contingent\"),'TSA Input'!G2633,\"\"))","v":""},{"$f":"IF('TSA Input'!J2633=\"\",\"\",IF(OR('TSA Input'!J2633=\"Yes\",'TSA Input'!J2633=\"Contingent\"),'TSA Input'!F2633,\"\"))","v":""},"",{"$f":"IF('TSA Input'!J2633=\"\",\"\",IF(OR('TSA Input'!J2633=\"Yes\",'TSA Input'!J2633=\"Contingent\"),'TSA Input'!D2633,\"\"))","v":""},{"$f":"IF('TSA Input'!J2633=\"\",\"\",IF(OR('TSA Input'!J2633=\"Yes\",'TSA Input'!J2633=\"Contingent\"),'TSA Input'!G2633,\"\"))","v":""},{"$f":"IF('TSA Input'!J2633=\"\",\"\",IF(OR('TSA Input'!J2633=\"Yes\",'TSA Input'!J2633=\"Contingent\"),'TSA Input'!F2633,\"\"))","v":""},"","Required","Required"]
["",null,{"$f":"IF('TSA Input'!J2634=\"\",\"\",IF(OR('TSA Input'!J2634=\"Yes\",'TSA Input'!J2634=\"Contingent\"),'TSA Input'!B2634,\"Ineligible\"))","v":""},{"$f":"IF('TSA Input'!J2634=\"\",\"\",IF(OR('TSA Input'!J2634=\"Yes\",'TSA Input'!J2634=\"Contingent\"),'TSA Input'!I2634,\"\"))","v":""},{"$f":"IF('TSA Input'!J2634=\"\",\"\",IF(OR('TSA Input'!J2634=\"Yes\",'TSA Input'!J2634=\"Contingent\"),'TSA Input'!C2634,\"\"))","v":""},{"$f":"IF('TSA Input'!J2634=\"\",\"\",IF(OR('TSA Input'!J2634=\"Yes\",'TSA Input'!J2634=\"Contingent\"),'TSA Input'!D2634,\"\"))","v":""},{"$f":"IF('TSA Input'!J2634=\"\",\"\",IF(OR('TSA Input'!J2634=\"Yes\",'TSA Input'!J2634=\"Contingent\"),'TSA Input'!G2634,\"\"))","v":""},{"$f":"IF('TSA Input'!J2634=\"\",\"\",IF(OR('TSA Input'!J2634=\"Yes\",'TSA Input'!J2634=\"Contingent\"),'TSA Input'!F2634,\"\"))","v":""},"",{"$f":"IF('TSA Input'!J2634=\"\",\"\",IF(OR('TSA Input'!J2634=\"Yes\",'TSA Input'!J2634=\"Contingent\"),'TSA Input'!D2634,\"\"))","v":""},{"$f":"IF('TSA Input'!J2634=\"\",\"\",IF(OR('TSA Input'!J2634=\"Yes\",'TSA Input'!J2634=\"Contingent\"),'TSA Input'!G2634,\"\"))","v":""},{"$f":"IF('TSA Input'!J2634=\"\",\"\",IF(OR('TSA Input'!J2634=\"Yes\",'TSA Input'!J2634=\"Contingent\"),'TSA Input'!F2634,\"\"))","v":""},"","Required","Required"]
["",null,{"$f":"IF('TSA Input'!J2635=\"\",\"\",IF(OR('TSA Input'!J2635=\"Yes\",'TSA Input'!J2635=\"Contingent\"),'TSA Input'!B2635,\"Ineligible\"))","v":""},{"$f":"IF('TSA Input'!J2635=\"\",\"\",IF(OR('TSA Input'!J2635=\"Yes\",'TSA Input'!J2635=\"Contingent\"),'TSA Input'!I2635,\"\"))","v":""},{"$f":"IF('TSA Input'!J2635=\"\",\"\",IF(OR('TSA Input'!J2635=\"Yes\",'TSA Input'!J2635=\"Contingent\"),'TSA Input'!C2635,\"\"))","v":""},{"$f":"IF('TSA Input'!J2635=\"\",\"\",IF(OR('TSA Input'!J2635=\"Yes\",'TSA Input'!J2635=\"Contingent\"),'TSA Input'!D2635,\"\"))","v":""},{"$f":"IF('TSA Input'!J2635=\"\",\"\",IF(OR('TSA Input'!J2635=\"Yes\",'TSA Input'!J2635=\"Contingent\"),'TSA Input'!G2635,\"\"))","v":""},{"$f":"IF('TSA Input'!J2635=\"\",\"\",IF(OR('TSA Input'!J2635=\"Yes\",'TSA Input'!J2635=\"Contingent\"),'TSA Input'!F2635,\"\"))","v":""},"",{"$f":"IF('TSA Input'!J2635=\"\",\"\",IF(OR('TSA Input'!J2635=\"Yes\",'TSA Input'!J2635=\"Contingent\"),'TSA Input'!D2635,\"\"))","v":""},{"$f":"IF('TSA Input'!J2635=\"\",\"\",IF(OR('TSA Input'!J2635=\"Yes\",'TSA Input'!J2635=\"Contingent\"),'TSA Input'!G2635,\"\"))","v":""},{"$f":"IF('TSA Input'!J2635=\"\",\"\",IF(OR('TSA Input'!J2635=\"Yes\",'TSA Input'!J2635=\"Contingent\"),'TSA Input'!F2635,\"\"))","v":""},"","Required","Required"]
["",null,{"$f":"IF('TSA Input'!J2636=\"\",\"\",IF(OR('TSA Input'!J2636=\"Yes\",'TSA Input'!J2636=\"Contingent\"),'TSA Input'!B2636,\"Ineligible\"))","v":""},{"$f":"IF('TSA Input'!J2636=\"\",\"\",IF(OR('TSA Input'!J2636=\"Yes\",'TSA Input'!J2636=\"Contingent\"),'TSA Input'!I2636,\"\"))","v":""},{"$f":"IF('TSA Input'!J2636=\"\",\"\",IF(OR('TSA Input'!J2636=\"Yes\",'TSA Input'!J2636=\"Contingent\"),'TSA Input'!C2636,\"\"))","v":""},{"$f":"IF('TSA Input'!J2636=\"\",\"\",IF(OR('TSA Input'!J2636=\"Yes\",'TSA Input'!J2636=\"Contingent\"),'TSA Input'!D2636,\"\"))","v":""},{"$f":"IF('TSA Input'!J2636=\"\",\"\",IF(OR('TSA Input'!J2636=\"Yes\",'TSA Input'!J2636=\"Contingent\"),'TSA Input'!G2636,\"\"))","v":""},{"$f":"IF('TSA Input'!J2636=\"\",\"\",IF(OR('TSA Input'!J2636=\"Yes\",'TSA Input'!J2636=\"Contingent\"),'TSA Input'!F2636,\"\"))","v":""},"",{"$f":"IF('TSA Input'!J2636=\"\",\"\",IF(OR('TSA Input'!J2636=\"Yes\",'TSA Input'!J2636=\"Contingent\"),'TSA Input'!D2636,\"\"))","v":""},{"$f":"IF('TSA Input'!J2636=\"\",\"\",IF(OR('TSA Input'!J2636=\"Yes\",'TSA Input'!J2636=\"Contingent\"),'TSA Input'!G2636,\"\"))","v":""},{"$f":"IF('TSA Input'!J2636=\"\",\"\",IF(OR('TSA Input'!J2636=\"Yes\",'TSA Input'!J2636=\"Contingent\"),'TSA Input'!F2636,\"\"))","v":""},"","Required","Required"]
["",null,{"$f":"IF('TSA Input'!J2637=\"\",\"\",IF(OR('TSA Input'!J2637=\"Yes\",'TSA Input'!J2637=\"Contingent\"),'TSA Input'!B2637,\"Ineligible\"))","v":""},{"$f":"IF('TSA Input'!J2637=\"\",\"\",IF(OR('TSA Input'!J2637=\"Yes\",'TSA Input'!J2637=\"Contingent\"),'TSA Input'!I2637,\"\"))","v":""},{"$f":"IF('TSA Input'!J2637=\"\",\"\",IF(OR('TSA Input'!J2637=\"Yes\",'TSA Input'!J2637=\"Contingent\"),'TSA Input'!C2637,\"\"))","v":""},{"$f":"IF('TSA Input'!J2637=\"\",\"\",IF(OR('TSA Input'!J2637=\"Yes\",'TSA Input'!J2637=\"Contingent\"),'TSA Input'!D2637,\"\"))","v":""},{"$f":"IF('TSA Input'!J2637=\"\",\"\",IF(OR('TSA Input'!J2637=\"Yes\",'TSA Input'!J2637=\"Contingent\"),'TSA Input'!G2637,\"\"))","v":""},{"$f":"IF('TSA Input'!J2637=\"\",\"\",IF(OR('TSA Input'!J2637=\"Yes\",'TSA Input'!J2637=\"Contingent\"),'TSA Input'!F2637,\"\"))","v":""},"",{"$f":"IF('TSA Input'!J2637=\"\",\"\",IF(OR('TSA Input'!J2637=\"Yes\",'TSA Input'!J2637=\"Contingent\"),'TSA Input'!D2637,\"\"))","v":""},{"$f":"IF('TSA Input'!J2637=\"\",\"\",IF(OR('TSA Input'!J2637=\"Yes\",'TSA Input'!J2637=\"Contingent\"),'TSA Input'!G2637,\"\"))","v":""},{"$f":"IF('TSA Input'!J2637=\"\",\"\",IF(OR('TSA Input'!J2637=\"Yes\",'TSA Input'!J2637=\"Contingent\"),'TSA Input'!F2637,\"\"))","v":""},"","Required","Required"]
["",null,{"$f":"IF('TSA Input'!J2638=\"\",\"\",IF(OR('TSA Input'!J2638=\"Yes\",'TSA Input'!J2638=\"Contingent\"),'TSA Input'!B2638,\"Ineligible\"))","v":""},{"$f":"IF('TSA Input'!J2638=\"\",\"\",IF(OR('TSA Input'!J2638=\"Yes\",'TSA Input'!J2638=\"Contingent\"),'TSA Input'!I2638,\"\"))","v":""},{"$f":"IF('TSA Input'!J2638=\"\",\"\",IF(OR('TSA Input'!J2638=\"Yes\",'TSA Input'!J2638=\"Contingent\"),'TSA Input'!C2638,\"\"))","v":""},{"$f":"IF('TSA Input'!J2638=\"\",\"\",IF(OR('TSA Input'!J2638=\"Yes\",'TSA Input'!J2638=\"Contingent\"),'TSA Input'!D2638,\"\"))","v":""},{"$f":"IF('TSA Input'!J2638=\"\",\"\",IF(OR('TSA Input'!J2638=\"Yes\",'TSA Input'!J2638=\"Contingent\"),'TSA Input'!G2638,\"\"))","v":""},{"$f":"IF('TSA Input'!J2638=\"\",\"\",IF(OR('TSA Input'!J2638=\"Yes\",'TSA Input'!J2638=\"Contingent\"),'TSA Input'!F2638,\"\"))","v":""},"",{"$f":"IF('TSA Input'!J2638=\"\",\"\",IF(OR('TSA Input'!J2638=\"Yes\",'TSA Input'!J2638=\"Contingent\"),'TSA Input'!D2638,\"\"))","v":""},{"$f":"IF('TSA Input'!J2638=\"\",\"\",IF(OR('TSA Input'!J2638=\"Yes\",'TSA Input'!J2638=\"Contingent\"),'TSA Input'!G2638,\"\"))","v":""},{"$f":"IF('TSA Input'!J2638=\"\",\"\",IF(OR('TSA Input'!J2638=\"Yes\",'TSA Input'!J2638=\"Contingent\"),'TSA Input'!F2638,\"\"))","v":""},"","Required","Required"]
["",null,{"$f":"IF('TSA Input'!J2639=\"\",\"\",IF(OR('TSA Input'!J2639=\"Yes\",'TSA Input'!J2639=\"Contingent\"),'TSA Input'!B2639,\"Ineligible\"))","v":""},{"$f":"IF('TSA Input'!J2639=\"\",\"\",IF(OR('TSA Input'!J2639=\"Yes\",'TSA Input'!J2639=\"Contingent\"),'TSA Input'!I2639,\"\"))","v":""},{"$f":"IF('TSA Input'!J2639=\"\",\"\",IF(OR('TSA Input'!J2639=\"Yes\",'TSA Input'!J2639=\"Contingent\"),'TSA Input'!C2639,\"\"))","v":""},{"$f":"IF('TSA Input'!J2639=\"\",\"\",IF(OR('TSA Input'!J2639=\"Yes\",'TSA Input'!J2639=\"Contingent\"),'TSA Input'!D2639,\"\"))","v":""},{"$f":"IF('TSA Input'!J2639=\"\",\"\",IF(OR('TSA Input'!J2639=\"Yes\",'TSA Input'!J2639=\"Contingent\"),'TSA Input'!G2639,\"\"))","v":""},{"$f":"IF('TSA Input'!J2639=\"\",\"\",IF(OR('TSA Input'!J2639=\"Yes\",'TSA Input'!J2639=\"Contingent\"),'TSA Input'!F2639,\"\"))","v":""},"",{"$f":"IF('TSA Input'!J2639=\"\",\"\",IF(OR('TSA Input'!J2639=\"Yes\",'TSA Input'!J2639=\"Contingent\"),'TSA Input'!D2639,\"\"))","v":""},{"$f":"IF('TSA Input'!J2639=\"\",\"\",IF(OR('TSA Input'!J2639=\"Yes\",'TSA Input'!J2639=\"Contingent\"),'TSA Input'!G2639,\"\"))","v":""},{"$f":"IF('TSA Input'!J2639=\"\",\"\",IF(OR('TSA Input'!J2639=\"Yes\",'TSA Input'!J2639=\"Contingent\"),'TSA Input'!F2639,\"\"))","v":""},"","Required","Required"]
["",null,{"$f":"IF('TSA Input'!J2640=\"\",\"\",IF(OR('TSA Input'!J2640=\"Yes\",'TSA Input'!J2640=\"Contingent\"),'TSA Input'!B2640,\"Ineligible\"))","v":""},{"$f":"IF('TSA Input'!J2640=\"\",\"\",IF(OR('TSA Input'!J2640=\"Yes\",'TSA Input'!J2640=\"Contingent\"),'TSA Input'!I2640,\"\"))","v":""},{"$f":"IF('TSA Input'!J2640=\"\",\"\",IF(OR('TSA Input'!J2640=\"Yes\",'TSA Input'!J2640=\"Contingent\"),'TSA Input'!C2640,\"\"))","v":""},{"$f":"IF('TSA Input'!J2640=\"\",\"\",IF(OR('TSA Input'!J2640=\"Yes\",'TSA Input'!J2640=\"Contingent\"),'TSA Input'!D2640,\"\"))","v":""},{"$f":"IF('TSA Input'!J2640=\"\",\"\",IF(OR('TSA Input'!J2640=\"Yes\",'TSA Input'!J2640=\"Contingent\"),'TSA Input'!G2640,\"\"))","v":""},{"$f":"IF('TSA Input'!J2640=\"\",\"\",IF(OR('TSA Input'!J2640=\"Yes\",'TSA Input'!J2640=\"Contingent\"),'TSA Input'!F2640,\"\"))","v":""},"",{"$f":"IF('TSA Input'!J2640=\"\",\"\",IF(OR('TSA Input'!J2640=\"Yes\",'TSA Input'!J2640=\"Contingent\"),'TSA Input'!D2640,\"\"))","v":""},{"$f":"IF('TSA Input'!J2640=\"\",\"\",IF(OR('TSA Input'!J2640=\"Yes\",'TSA Input'!J2640=\"Contingent\"),'TSA Input'!G2640,\"\"))","v":""},{"$f":"IF('TSA Input'!J2640=\"\",\"\",IF(OR('TSA Input'!J2640=\"Yes\",'TSA Input'!J2640=\"Contingent\"),'TSA Input'!F2640,\"\"))","v":""},"","Required","Required"]
["",null,{"$f":"IF('TSA Input'!J2641=\"\",\"\",IF(OR('TSA Input'!J2641=\"Yes\",'TSA Input'!J2641=\"Contingent\"),'TSA Input'!B2641,\"Ineligible\"))","v":""},{"$f":"IF('TSA Input'!J2641=\"\",\"\",IF(OR('TSA Input'!J2641=\"Yes\",'TSA Input'!J2641=\"Contingent\"),'TSA Input'!I2641,\"\"))","v":""},{"$f":"IF('TSA Input'!J2641=\"\",\"\",IF(OR('TSA Input'!J2641=\"Yes\",'TSA Input'!J2641=\"Contingent\"),'TSA Input'!C2641,\"\"))","v":""},{"$f":"IF('TSA Input'!J2641=\"\",\"\",IF(OR('TSA Input'!J2641=\"Yes\",'TSA Input'!J2641=\"Contingent\"),'TSA Input'!D2641,\"\"))","v":""},{"$f":"IF('TSA Input'!J2641=\"\",\"\",IF(OR('TSA Input'!J2641=\"Yes\",'TSA Input'!J2641=\"Contingent\"),'TSA Input'!G2641,\"\"))","v":""},{"$f":"IF('TSA Input'!J2641=\"\",\"\",IF(OR('TSA Input'!J2641=\"Yes\",'TSA Input'!J2641=\"Contingent\"),'TSA Input'!F2641,\"\"))","v":""},"",{"$f":"IF('TSA Input'!J2641=\"\",\"\",IF(OR('TSA Input'!J2641=\"Yes\",'TSA Input'!J2641=\"Contingent\"),'TSA Input'!D2641,\"\"))","v":""},{"$f":"IF('TSA Input'!J2641=\"\",\"\",IF(OR('TSA Input'!J2641=\"Yes\",'TSA Input'!J2641=\"Contingent\"),'TSA Input'!G2641,\"\"))","v":""},{"$f":"IF('TSA Input'!J2641=\"\",\"\",IF(OR('TSA Input'!J2641=\"Yes\",'TSA Input'!J2641=\"Contingent\"),'TSA Input'!F2641,\"\"))","v":""},"","Required","Required"]
["",null,{"$f":"IF('TSA Input'!J2642=\"\",\"\",IF(OR('TSA Input'!J2642=\"Yes\",'TSA Input'!J2642=\"Contingent\"),'TSA Input'!B2642,\"Ineligible\"))","v":""},{"$f":"IF('TSA Input'!J2642=\"\",\"\",IF(OR('TSA Input'!J2642=\"Yes\",'TSA Input'!J2642=\"Contingent\"),'TSA Input'!I2642,\"\"))","v":""},{"$f":"IF('TSA Input'!J2642=\"\",\"\",IF(OR('TSA Input'!J2642=\"Yes\",'TSA Input'!J2642=\"Contingent\"),'TSA Input'!C2642,\"\"))","v":""},{"$f":"IF('TSA Input'!J2642=\"\",\"\",IF(OR('TSA Input'!J2642=\"Yes\",'TSA Input'!J2642=\"Contingent\"),'TSA Input'!D2642,\"\"))","v":""},{"$f":"IF('TSA Input'!J2642=\"\",\"\",IF(OR('TSA Input'!J2642=\"Yes\",'TSA Input'!J2642=\"Contingent\"),'TSA Input'!G2642,\"\"))","v":""},{"$f":"IF('TSA Input'!J2642=\"\",\"\",IF(OR('TSA Input'!J2642=\"Yes\",'TSA Input'!J2642=\"Contingent\"),'TSA Input'!F2642,\"\"))","v":""},"",{"$f":"IF('TSA Input'!J2642=\"\",\"\",IF(OR('TSA Input'!J2642=\"Yes\",'TSA Input'!J2642=\"Contingent\"),'TSA Input'!D2642,\"\"))","v":""},{"$f":"IF('TSA Input'!J2642=\"\",\"\",IF(OR('TSA Input'!J2642=\"Yes\",'TSA Input'!J2642=\"Contingent\"),'TSA Input'!G2642,\"\"))","v":""},{"$f":"IF('TSA Input'!J2642=\"\",\"\",IF(OR('TSA Input'!J2642=\"Yes\",'TSA Input'!J2642=\"Contingent\"),'TSA Input'!F2642,\"\"))","v":""},"","Required","Required"]
["",null,{"$f":"IF('TSA Input'!J2643=\"\",\"\",IF(OR('TSA Input'!J2643=\"Yes\",'TSA Input'!J2643=\"Contingent\"),'TSA Input'!B2643,\"Ineligible\"))","v":""},{"$f":"IF('TSA Input'!J2643=\"\",\"\",IF(OR('TSA Input'!J2643=\"Yes\",'TSA Input'!J2643=\"Contingent\"),'TSA Input'!I2643,\"\"))","v":""},{"$f":"IF('TSA Input'!J2643=\"\",\"\",IF(OR('TSA Input'!J2643=\"Yes\",'TSA Input'!J2643=\"Contingent\"),'TSA Input'!C2643,\"\"))","v":""},{"$f":"IF('TSA Input'!J2643=\"\",\"\",IF(OR('TSA Input'!J2643=\"Yes\",'TSA Input'!J2643=\"Contingent\"),'TSA Input'!D2643,\"\"))","v":""},{"$f":"IF('TSA Input'!J2643=\"\",\"\",IF(OR('TSA Input'!J2643=\"Yes\",'TSA Input'!J2643=\"Contingent\"),'TSA Input'!G2643,\"\"))","v":""},{"$f":"IF('TSA Input'!J2643=\"\",\"\",IF(OR('TSA Input'!J2643=\"Yes\",'TSA Input'!J2643=\"Contingent\"),'TSA Input'!F2643,\"\"))","v":""},"",{"$f":"IF('TSA Input'!J2643=\"\",\"\",IF(OR('TSA Input'!J2643=\"Yes\",'TSA Input'!J2643=\"Contingent\"),'TSA Input'!D2643,\"\"))","v":""},{"$f":"IF('TSA Input'!J2643=\"\",\"\",IF(OR('TSA Input'!J2643=\"Yes\",'TSA Input'!J2643=\"Contingent\"),'TSA Input'!G2643,\"\"))","v":""},{"$f":"IF('TSA Input'!J2643=\"\",\"\",IF(OR('TSA Input'!J2643=\"Yes\",'TSA Input'!J2643=\"Contingent\"),'TSA Input'!F2643,\"\"))","v":""},"","Required","Required"]
["",null,{"$f":"IF('TSA Input'!J2644=\"\",\"\",IF(OR('TSA Input'!J2644=\"Yes\",'TSA Input'!J2644=\"Contingent\"),'TSA Input'!B2644,\"Ineligible\"))","v":""},{"$f":"IF('TSA Input'!J2644=\"\",\"\",IF(OR('TSA Input'!J2644=\"Yes\",'TSA Input'!J2644=\"Contingent\"),'TSA Input'!I2644,\"\"))","v":""},{"$f":"IF('TSA Input'!J2644=\"\",\"\",IF(OR('TSA Input'!J2644=\"Yes\",'TSA Input'!J2644=\"Contingent\"),'TSA Input'!C2644,\"\"))","v":""},{"$f":"IF('TSA Input'!J2644=\"\",\"\",IF(OR('TSA Input'!J2644=\"Yes\",'TSA Input'!J2644=\"Contingent\"),'TSA Input'!D2644,\"\"))","v":""},{"$f":"IF('TSA Input'!J2644=\"\",\"\",IF(OR('TSA Input'!J2644=\"Yes\",'TSA Input'!J2644=\"Contingent\"),'TSA Input'!G2644,\"\"))","v":""},{"$f":"IF('TSA Input'!J2644=\"\",\"\",IF(OR('TSA Input'!J2644=\"Yes\",'TSA Input'!J2644=\"Contingent\"),'TSA Input'!F2644,\"\"))","v":""},"",{"$f":"IF('TSA Input'!J2644=\"\",\"\",IF(OR('TSA Input'!J2644=\"Yes\",'TSA Input'!J2644=\"Contingent\"),'TSA Input'!D2644,\"\"))","v":""},{"$f":"IF('TSA Input'!J2644=\"\",\"\",IF(OR('TSA Input'!J2644=\"Yes\",'TSA Input'!J2644=\"Contingent\"),'TSA Input'!G2644,\"\"))","v":""},{"$f":"IF('TSA Input'!J2644=\"\",\"\",IF(OR('TSA Input'!J2644=\"Yes\",'TSA Input'!J2644=\"Contingent\"),'TSA Input'!F2644,\"\"))","v":""},"","Required","Required"]
["",null,{"$f":"IF('TSA Input'!J2645=\"\",\"\",IF(OR('TSA Input'!J2645=\"Yes\",'TSA Input'!J2645=\"Contingent\"),'TSA Input'!B2645,\"Ineligible\"))","v":""},{"$f":"IF('TSA Input'!J2645=\"\",\"\",IF(OR('TSA Input'!J2645=\"Yes\",'TSA Input'!J2645=\"Contingent\"),'TSA Input'!I2645,\"\"))","v":""},{"$f":"IF('TSA Input'!J2645=\"\",\"\",IF(OR('TSA Input'!J2645=\"Yes\",'TSA Input'!J2645=\"Contingent\"),'TSA Input'!C2645,\"\"))","v":""},{"$f":"IF('TSA Input'!J2645=\"\",\"\",IF(OR('TSA Input'!J2645=\"Yes\",'TSA Input'!J2645=\"Contingent\"),'TSA Input'!D2645,\"\"))","v":""},{"$f":"IF('TSA Input'!J2645=\"\",\"\",IF(OR('TSA Input'!J2645=\"Yes\",'TSA Input'!J2645=\"Contingent\"),'TSA Input'!G2645,\"\"))","v":""},{"$f":"IF('TSA Input'!J2645=\"\",\"\",IF(OR('TSA Input'!J2645=\"Yes\",'TSA Input'!J2645=\"Contingent\"),'TSA Input'!F2645,\"\"))","v":""},"",{"$f":"IF('TSA Input'!J2645=\"\",\"\",IF(OR('TSA Input'!J2645=\"Yes\",'TSA Input'!J2645=\"Contingent\"),'TSA Input'!D2645,\"\"))","v":""},{"$f":"IF('TSA Input'!J2645=\"\",\"\",IF(OR('TSA Input'!J2645=\"Yes\",'TSA Input'!J2645=\"Contingent\"),'TSA Input'!G2645,\"\"))","v":""},{"$f":"IF('TSA Input'!J2645=\"\",\"\",IF(OR('TSA Input'!J2645=\"Yes\",'TSA Input'!J2645=\"Contingent\"),'TSA Input'!F2645,\"\"))","v":""},"","Required","Required"]
["",null,{"$f":"IF('TSA Input'!J2646=\"\",\"\",IF(OR('TSA Input'!J2646=\"Yes\",'TSA Input'!J2646=\"Contingent\"),'TSA Input'!B2646,\"Ineligible\"))","v":""},{"$f":"IF('TSA Input'!J2646=\"\",\"\",IF(OR('TSA Input'!J2646=\"Yes\",'TSA Input'!J2646=\"Contingent\"),'TSA Input'!I2646,\"\"))","v":""},{"$f":"IF('TSA Input'!J2646=\"\",\"\",IF(OR('TSA Input'!J2646=\"Yes\",'TSA Input'!J2646=\"Contingent\"),'TSA Input'!C2646,\"\"))","v":""},{"$f":"IF('TSA Input'!J2646=\"\",\"\",IF(OR('TSA Input'!J2646=\"Yes\",'TSA Input'!J2646=\"Contingent\"),'TSA Input'!D2646,\"\"))","v":""},{"$f":"IF('TSA Input'!J2646=\"\",\"\",IF(OR('TSA Input'!J2646=\"Yes\",'TSA Input'!J2646=\"Contingent\"),'TSA Input'!G2646,\"\"))","v":""},{"$f":"IF('TSA Input'!J2646=\"\",\"\",IF(OR('TSA Input'!J2646=\"Yes\",'TSA Input'!J2646=\"Contingent\"),'TSA Input'!F2646,\"\"))","v":""},"",{"$f":"IF('TSA Input'!J2646=\"\",\"\",IF(OR('TSA Input'!J2646=\"Yes\",'TSA Input'!J2646=\"Contingent\"),'TSA Input'!D2646,\"\"))","v":""},{"$f":"IF('TSA Input'!J2646=\"\",\"\",IF(OR('TSA Input'!J2646=\"Yes\",'TSA Input'!J2646=\"Contingent\"),'TSA Input'!G2646,\"\"))","v":""},{"$f":"IF('TSA Input'!J2646=\"\",\"\",IF(OR('TSA Input'!J2646=\"Yes\",'TSA Input'!J2646=\"Contingent\"),'TSA Input'!F2646,\"\"))","v":""},"","Required","Required"]
["",null,{"$f":"IF('TSA Input'!J2647=\"\",\"\",IF(OR('TSA Input'!J2647=\"Yes\",'TSA Input'!J2647=\"Contingent\"),'TSA Input'!B2647,\"Ineligible\"))","v":""},{"$f":"IF('TSA Input'!J2647=\"\",\"\",IF(OR('TSA Input'!J2647=\"Yes\",'TSA Input'!J2647=\"Contingent\"),'TSA Input'!I2647,\"\"))","v":""},{"$f":"IF('TSA Input'!J2647=\"\",\"\",IF(OR('TSA Input'!J2647=\"Yes\",'TSA Input'!J2647=\"Contingent\"),'TSA Input'!C2647,\"\"))","v":""},{"$f":"IF('TSA Input'!J2647=\"\",\"\",IF(OR('TSA Input'!J2647=\"Yes\",'TSA Input'!J2647=\"Contingent\"),'TSA Input'!D2647,\"\"))","v":""},{"$f":"IF('TSA Input'!J2647=\"\",\"\",IF(OR('TSA Input'!J2647=\"Yes\",'TSA Input'!J2647=\"Contingent\"),'TSA Input'!G2647,\"\"))","v":""},{"$f":"IF('TSA Input'!J2647=\"\",\"\",IF(OR('TSA Input'!J2647=\"Yes\",'TSA Input'!J2647=\"Contingent\"),'TSA Input'!F2647,\"\"))","v":""},"",{"$f":"IF('TSA Input'!J2647=\"\",\"\",IF(OR('TSA Input'!J2647=\"Yes\",'TSA Input'!J2647=\"Contingent\"),'TSA Input'!D2647,\"\"))","v":""},{"$f":"IF('TSA Input'!J2647=\"\",\"\",IF(OR('TSA Input'!J2647=\"Yes\",'TSA Input'!J2647=\"Contingent\"),'TSA Input'!G2647,\"\"))","v":""},{"$f":"IF('TSA Input'!J2647=\"\",\"\",IF(OR('TSA Input'!J2647=\"Yes\",'TSA Input'!J2647=\"Contingent\"),'TSA Input'!F2647,\"\"))","v":""},"","Required","Required"]
["",null,{"$f":"IF('TSA Input'!J2648=\"\",\"\",IF(OR('TSA Input'!J2648=\"Yes\",'TSA Input'!J2648=\"Contingent\"),'TSA Input'!B2648,\"Ineligible\"))","v":""},{"$f":"IF('TSA Input'!J2648=\"\",\"\",IF(OR('TSA Input'!J2648=\"Yes\",'TSA Input'!J2648=\"Contingent\"),'TSA Input'!I2648,\"\"))","v":""},{"$f":"IF('TSA Input'!J2648=\"\",\"\",IF(OR('TSA Input'!J2648=\"Yes\",'TSA Input'!J2648=\"Contingent\"),'TSA Input'!C2648,\"\"))","v":""},{"$f":"IF('TSA Input'!J2648=\"\",\"\",IF(OR('TSA Input'!J2648=\"Yes\",'TSA Input'!J2648=\"Contingent\"),'TSA Input'!D2648,\"\"))","v":""},{"$f":"IF('TSA Input'!J2648=\"\",\"\",IF(OR('TSA Input'!J2648=\"Yes\",'TSA Input'!J2648=\"Contingent\"),'TSA Input'!G2648,\"\"))","v":""},{"$f":"IF('TSA Input'!J2648=\"\",\"\",IF(OR('TSA Input'!J2648=\"Yes\",'TSA Input'!J2648=\"Contingent\"),'TSA Input'!F2648,\"\"))","v":""},"",{"$f":"IF('TSA Input'!J2648=\"\",\"\",IF(OR('TSA Input'!J2648=\"Yes\",'TSA Input'!J2648=\"Contingent\"),'TSA Input'!D2648,\"\"))","v":""},{"$f":"IF('TSA Input'!J2648=\"\",\"\",IF(OR('TSA Input'!J2648=\"Yes\",'TSA Input'!J2648=\"Contingent\"),'TSA Input'!G2648,\"\"))","v":""},{"$f":"IF('TSA Input'!J2648=\"\",\"\",IF(OR('TSA Input'!J2648=\"Yes\",'TSA Input'!J2648=\"Contingent\"),'TSA Input'!F2648,\"\"))","v":""},"","Required","Required"]
["",null,{"$f":"IF('TSA Input'!J2649=\"\",\"\",IF(OR('TSA Input'!J2649=\"Yes\",'TSA Input'!J2649=\"Contingent\"),'TSA Input'!B2649,\"Ineligible\"))","v":""},{"$f":"IF('TSA Input'!J2649=\"\",\"\",IF(OR('TSA Input'!J2649=\"Yes\",'TSA Input'!J2649=\"Contingent\"),'TSA Input'!I2649,\"\"))","v":""},{"$f":"IF('TSA Input'!J2649=\"\",\"\",IF(OR('TSA Input'!J2649=\"Yes\",'TSA Input'!J2649=\"Contingent\"),'TSA Input'!C2649,\"\"))","v":""},{"$f":"IF('TSA Input'!J2649=\"\",\"\",IF(OR('TSA Input'!J2649=\"Yes\",'TSA Input'!J2649=\"Contingent\"),'TSA Input'!D2649,\"\"))","v":""},{"$f":"IF('TSA Input'!J2649=\"\",\"\",IF(OR('TSA Input'!J2649=\"Yes\",'TSA Input'!J2649=\"Contingent\"),'TSA Input'!G2649,\"\"))","v":""},{"$f":"IF('TSA Input'!J2649=\"\",\"\",IF(OR('TSA Input'!J2649=\"Yes\",'TSA Input'!J2649=\"Contingent\"),'TSA Input'!F2649,\"\"))","v":""},"",{"$f":"IF('TSA Input'!J2649=\"\",\"\",IF(OR('TSA Input'!J2649=\"Yes\",'TSA Input'!J2649=\"Contingent\"),'TSA Input'!D2649,\"\"))","v":""},{"$f":"IF('TSA Input'!J2649=\"\",\"\",IF(OR('TSA Input'!J2649=\"Yes\",'TSA Input'!J2649=\"Contingent\"),'TSA Input'!G2649,\"\"))","v":""},{"$f":"IF('TSA Input'!J2649=\"\",\"\",IF(OR('TSA Input'!J2649=\"Yes\",'TSA Input'!J2649=\"Contingent\"),'TSA Input'!F2649,\"\"))","v":""},"","Required","Required"]
["",null,{"$f":"IF('TSA Input'!J2650=\"\",\"\",IF(OR('TSA Input'!J2650=\"Yes\",'TSA Input'!J2650=\"Contingent\"),'TSA Input'!B2650,\"Ineligible\"))","v":""},{"$f":"IF('TSA Input'!J2650=\"\",\"\",IF(OR('TSA Input'!J2650=\"Yes\",'TSA Input'!J2650=\"Contingent\"),'TSA Input'!I2650,\"\"))","v":""},{"$f":"IF('TSA Input'!J2650=\"\",\"\",IF(OR('TSA Input'!J2650=\"Yes\",'TSA Input'!J2650=\"Contingent\"),'TSA Input'!C2650,\"\"))","v":""},{"$f":"IF('TSA Input'!J2650=\"\",\"\",IF(OR('TSA Input'!J2650=\"Yes\",'TSA Input'!J2650=\"Contingent\"),'TSA Input'!D2650,\"\"))","v":""},{"$f":"IF('TSA Input'!J2650=\"\",\"\",IF(OR('TSA Input'!J2650=\"Yes\",'TSA Input'!J2650=\"Contingent\"),'TSA Input'!G2650,\"\"))","v":""},{"$f":"IF('TSA Input'!J2650=\"\",\"\",IF(OR('TSA Input'!J2650=\"Yes\",'TSA Input'!J2650=\"Contingent\"),'TSA Input'!F2650,\"\"))","v":""},"",{"$f":"IF('TSA Input'!J2650=\"\",\"\",IF(OR('TSA Input'!J2650=\"Yes\",'TSA Input'!J2650=\"Contingent\"),'TSA Input'!D2650,\"\"))","v":""},{"$f":"IF('TSA Input'!J2650=\"\",\"\",IF(OR('TSA Input'!J2650=\"Yes\",'TSA Input'!J2650=\"Contingent\"),'TSA Input'!G2650,\"\"))","v":""},{"$f":"IF('TSA Input'!J2650=\"\",\"\",IF(OR('TSA Input'!J2650=\"Yes\",'TSA Input'!J2650=\"Contingent\"),'TSA Input'!F2650,\"\"))","v":""},"","Required","Required"]
["",null,{"$f":"IF('TSA Input'!J2651=\"\",\"\",IF(OR('TSA Input'!J2651=\"Yes\",'TSA Input'!J2651=\"Contingent\"),'TSA Input'!B2651,\"Ineligible\"))","v":""},{"$f":"IF('TSA Input'!J2651=\"\",\"\",IF(OR('TSA Input'!J2651=\"Yes\",'TSA Input'!J2651=\"Contingent\"),'TSA Input'!I2651,\"\"))","v":""},{"$f":"IF('TSA Input'!J2651=\"\",\"\",IF(OR('TSA Input'!J2651=\"Yes\",'TSA Input'!J2651=\"Contingent\"),'TSA Input'!C2651,\"\"))","v":""},{"$f":"IF('TSA Input'!J2651=\"\",\"\",IF(OR('TSA Input'!J2651=\"Yes\",'TSA Input'!J2651=\"Contingent\"),'TSA Input'!D2651,\"\"))","v":""},{"$f":"IF('TSA Input'!J2651=\"\",\"\",IF(OR('TSA Input'!J2651=\"Yes\",'TSA Input'!J2651=\"Contingent\"),'TSA Input'!G2651,\"\"))","v":""},{"$f":"IF('TSA Input'!J2651=\"\",\"\",IF(OR('TSA Input'!J2651=\"Yes\",'TSA Input'!J2651=\"Contingent\"),'TSA Input'!F2651,\"\"))","v":""},"",{"$f":"IF('TSA Input'!J2651=\"\",\"\",IF(OR('TSA Input'!J2651=\"Yes\",'TSA Input'!J2651=\"Contingent\"),'TSA Input'!D2651,\"\"))","v":""},{"$f":"IF('TSA Input'!J2651=\"\",\"\",IF(OR('TSA Input'!J2651=\"Yes\",'TSA Input'!J2651=\"Contingent\"),'TSA Input'!G2651,\"\"))","v":""},{"$f":"IF('TSA Input'!J2651=\"\",\"\",IF(OR('TSA Input'!J2651=\"Yes\",'TSA Input'!J2651=\"Contingent\"),'TSA Input'!F2651,\"\"))","v":""},"","Required","Required"]
["",null,{"$f":"IF('TSA Input'!J2652=\"\",\"\",IF(OR('TSA Input'!J2652=\"Yes\",'TSA Input'!J2652=\"Contingent\"),'TSA Input'!B2652,\"Ineligible\"))","v":""},{"$f":"IF('TSA Input'!J2652=\"\",\"\",IF(OR('TSA Input'!J2652=\"Yes\",'TSA Input'!J2652=\"Contingent\"),'TSA Input'!I2652,\"\"))","v":""},{"$f":"IF('TSA Input'!J2652=\"\",\"\",IF(OR('TSA Input'!J2652=\"Yes\",'TSA Input'!J2652=\"Contingent\"),'TSA Input'!C2652,\"\"))","v":""},{"$f":"IF('TSA Input'!J2652=\"\",\"\",IF(OR('TSA Input'!J2652=\"Yes\",'TSA Input'!J2652=\"Contingent\"),'TSA Input'!D2652,\"\"))","v":""},{"$f":"IF('TSA Input'!J2652=\"\",\"\",IF(OR('TSA Input'!J2652=\"Yes\",'TSA Input'!J2652=\"Contingent\"),'TSA Input'!G2652,\"\"))","v":""},{"$f":"IF('TSA Input'!J2652=\"\",\"\",IF(OR('TSA Input'!J2652=\"Yes\",'TSA Input'!J2652=\"Contingent\"),'TSA Input'!F2652,\"\"))","v":""},"",{"$f":"IF('TSA Input'!J2652=\"\",\"\",IF(OR('TSA Input'!J2652=\"Yes\",'TSA Input'!J2652=\"Contingent\"),'TSA Input'!D2652,\"\"))","v":""},{"$f":"IF('TSA Input'!J2652=\"\",\"\",IF(OR('TSA Input'!J2652=\"Yes\",'TSA Input'!J2652=\"Contingent\"),'TSA Input'!G2652,\"\"))","v":""},{"$f":"IF('TSA Input'!J2652=\"\",\"\",IF(OR('TSA Input'!J2652=\"Yes\",'TSA Input'!J2652=\"Contingent\"),'TSA Input'!F2652,\"\"))","v":""},"","Required","Required"]
["",null,{"$f":"IF('TSA Input'!J2653=\"\",\"\",IF(OR('TSA Input'!J2653=\"Yes\",'TSA Input'!J2653=\"Contingent\"),'TSA Input'!B2653,\"Ineligible\"))","v":""},{"$f":"IF('TSA Input'!J2653=\"\",\"\",IF(OR('TSA Input'!J2653=\"Yes\",'TSA Input'!J2653=\"Contingent\"),'TSA Input'!I2653,\"\"))","v":""},{"$f":"IF('TSA Input'!J2653=\"\",\"\",IF(OR('TSA Input'!J2653=\"Yes\",'TSA Input'!J2653=\"Contingent\"),'TSA Input'!C2653,\"\"))","v":""},{"$f":"IF('TSA Input'!J2653=\"\",\"\",IF(OR('TSA Input'!J2653=\"Yes\",'TSA Input'!J2653=\"Contingent\"),'TSA Input'!D2653,\"\"))","v":""},{"$f":"IF('TSA Input'!J2653=\"\",\"\",IF(OR('TSA Input'!J2653=\"Yes\",'TSA Input'!J2653=\"Contingent\"),'TSA Input'!G2653,\"\"))","v":""},{"$f":"IF('TSA Input'!J2653=\"\",\"\",IF(OR('TSA Input'!J2653=\"Yes\",'TSA Input'!J2653=\"Contingent\"),'TSA Input'!F2653,\"\"))","v":""},"",{"$f":"IF('TSA Input'!J2653=\"\",\"\",IF(OR('TSA Input'!J2653=\"Yes\",'TSA Input'!J2653=\"Contingent\"),'TSA Input'!D2653,\"\"))","v":""},{"$f":"IF('TSA Input'!J2653=\"\",\"\",IF(OR('TSA Input'!J2653=\"Yes\",'TSA Input'!J2653=\"Contingent\"),'TSA Input'!G2653,\"\"))","v":""},{"$f":"IF('TSA Input'!J2653=\"\",\"\",IF(OR('TSA Input'!J2653=\"Yes\",'TSA Input'!J2653=\"Contingent\"),'TSA Input'!F2653,\"\"))","v":""},"","Required","Required"]
["",null,{"$f":"IF('TSA Input'!J2654=\"\",\"\",IF(OR('TSA Input'!J2654=\"Yes\",'TSA Input'!J2654=\"Contingent\"),'TSA Input'!B2654,\"Ineligible\"))","v":""},{"$f":"IF('TSA Input'!J2654=\"\",\"\",IF(OR('TSA Input'!J2654=\"Yes\",'TSA Input'!J2654=\"Contingent\"),'TSA Input'!I2654,\"\"))","v":""},{"$f":"IF('TSA Input'!J2654=\"\",\"\",IF(OR('TSA Input'!J2654=\"Yes\",'TSA Input'!J2654=\"Contingent\"),'TSA Input'!C2654,\"\"))","v":""},{"$f":"IF('TSA Input'!J2654=\"\",\"\",IF(OR('TSA Input'!J2654=\"Yes\",'TSA Input'!J2654=\"Contingent\"),'TSA Input'!D2654,\"\"))","v":""},{"$f":"IF('TSA Input'!J2654=\"\",\"\",IF(OR('TSA Input'!J2654=\"Yes\",'TSA Input'!J2654=\"Contingent\"),'TSA Input'!G2654,\"\"))","v":""},{"$f":"IF('TSA Input'!J2654=\"\",\"\",IF(OR('TSA Input'!J2654=\"Yes\",'TSA Input'!J2654=\"Contingent\"),'TSA Input'!F2654,\"\"))","v":""},"",{"$f":"IF('TSA Input'!J2654=\"\",\"\",IF(OR('TSA Input'!J2654=\"Yes\",'TSA Input'!J2654=\"Contingent\"),'TSA Input'!D2654,\"\"))","v":""},{"$f":"IF('TSA Input'!J2654=\"\",\"\",IF(OR('TSA Input'!J2654=\"Yes\",'TSA Input'!J2654=\"Contingent\"),'TSA Input'!G2654,\"\"))","v":""},{"$f":"IF('TSA Input'!J2654=\"\",\"\",IF(OR('TSA Input'!J2654=\"Yes\",'TSA Input'!J2654=\"Contingent\"),'TSA Input'!F2654,\"\"))","v":""},"","Required","Required"]
["",null,{"$f":"IF('TSA Input'!J2655=\"\",\"\",IF(OR('TSA Input'!J2655=\"Yes\",'TSA Input'!J2655=\"Contingent\"),'TSA Input'!B2655,\"Ineligible\"))","v":""},{"$f":"IF('TSA Input'!J2655=\"\",\"\",IF(OR('TSA Input'!J2655=\"Yes\",'TSA Input'!J2655=\"Contingent\"),'TSA Input'!I2655,\"\"))","v":""},{"$f":"IF('TSA Input'!J2655=\"\",\"\",IF(OR('TSA Input'!J2655=\"Yes\",'TSA Input'!J2655=\"Contingent\"),'TSA Input'!C2655,\"\"))","v":""},{"$f":"IF('TSA Input'!J2655=\"\",\"\",IF(OR('TSA Input'!J2655=\"Yes\",'TSA Input'!J2655=\"Contingent\"),'TSA Input'!D2655,\"\"))","v":""},{"$f":"IF('TSA Input'!J2655=\"\",\"\",IF(OR('TSA Input'!J2655=\"Yes\",'TSA Input'!J2655=\"Contingent\"),'TSA Input'!G2655,\"\"))","v":""},{"$f":"IF('TSA Input'!J2655=\"\",\"\",IF(OR('TSA Input'!J2655=\"Yes\",'TSA Input'!J2655=\"Contingent\"),'TSA Input'!F2655,\"\"))","v":""},"",{"$f":"IF('TSA Input'!J2655=\"\",\"\",IF(OR('TSA Input'!J2655=\"Yes\",'TSA Input'!J2655=\"Contingent\"),'TSA Input'!D2655,\"\"))","v":""},{"$f":"IF('TSA Input'!J2655=\"\",\"\",IF(OR('TSA Input'!J2655=\"Yes\",'TSA Input'!J2655=\"Contingent\"),'TSA Input'!G2655,\"\"))","v":""},{"$f":"IF('TSA Input'!J2655=\"\",\"\",IF(OR('TSA Input'!J2655=\"Yes\",'TSA Input'!J2655=\"Contingent\"),'TSA Input'!F2655,\"\"))","v":""},"","Required","Required"]
["",null,{"$f":"IF('TSA Input'!J2656=\"\",\"\",IF(OR('TSA Input'!J2656=\"Yes\",'TSA Input'!J2656=\"Contingent\"),'TSA Input'!B2656,\"Ineligible\"))","v":""},{"$f":"IF('TSA Input'!J2656=\"\",\"\",IF(OR('TSA Input'!J2656=\"Yes\",'TSA Input'!J2656=\"Contingent\"),'TSA Input'!I2656,\"\"))","v":""},{"$f":"IF('TSA Input'!J2656=\"\",\"\",IF(OR('TSA Input'!J2656=\"Yes\",'TSA Input'!J2656=\"Contingent\"),'TSA Input'!C2656,\"\"))","v":""},{"$f":"IF('TSA Input'!J2656=\"\",\"\",IF(OR('TSA Input'!J2656=\"Yes\",'TSA Input'!J2656=\"Contingent\"),'TSA Input'!D2656,\"\"))","v":""},{"$f":"IF('TSA Input'!J2656=\"\",\"\",IF(OR('TSA Input'!J2656=\"Yes\",'TSA Input'!J2656=\"Contingent\"),'TSA Input'!G2656,\"\"))","v":""},{"$f":"IF('TSA Input'!J2656=\"\",\"\",IF(OR('TSA Input'!J2656=\"Yes\",'TSA Input'!J2656=\"Contingent\"),'TSA Input'!F2656,\"\"))","v":""},"",{"$f":"IF('TSA Input'!J2656=\"\",\"\",IF(OR('TSA Input'!J2656=\"Yes\",'TSA Input'!J2656=\"Contingent\"),'TSA Input'!D2656,\"\"))","v":""},{"$f":"IF('TSA Input'!J2656=\"\",\"\",IF(OR('TSA Input'!J2656=\"Yes\",'TSA Input'!J2656=\"Contingent\"),'TSA Input'!G2656,\"\"))","v":""},{"$f":"IF('TSA Input'!J2656=\"\",\"\",IF(OR('TSA Input'!J2656=\"Yes\",'TSA Input'!J2656=\"Contingent\"),'TSA Input'!F2656,\"\"))","v":""},"","Required","Required"]
["",null,{"$f":"IF('TSA Input'!J2657=\"\",\"\",IF(OR('TSA Input'!J2657=\"Yes\",'TSA Input'!J2657=\"Contingent\"),'TSA Input'!B2657,\"Ineligible\"))","v":""},{"$f":"IF('TSA Input'!J2657=\"\",\"\",IF(OR('TSA Input'!J2657=\"Yes\",'TSA Input'!J2657=\"Contingent\"),'TSA Input'!I2657,\"\"))","v":""},{"$f":"IF('TSA Input'!J2657=\"\",\"\",IF(OR('TSA Input'!J2657=\"Yes\",'TSA Input'!J2657=\"Contingent\"),'TSA Input'!C2657,\"\"))","v":""},{"$f":"IF('TSA Input'!J2657=\"\",\"\",IF(OR('TSA Input'!J2657=\"Yes\",'TSA Input'!J2657=\"Contingent\"),'TSA Input'!D2657,\"\"))","v":""},{"$f":"IF('TSA Input'!J2657=\"\",\"\",IF(OR('TSA Input'!J2657=\"Yes\",'TSA Input'!J2657=\"Contingent\"),'TSA Input'!G2657,\"\"))","v":""},{"$f":"IF('TSA Input'!J2657=\"\",\"\",IF(OR('TSA Input'!J2657=\"Yes\",'TSA Input'!J2657=\"Contingent\"),'TSA Input'!F2657,\"\"))","v":""},"",{"$f":"IF('TSA Input'!J2657=\"\",\"\",IF(OR('TSA Input'!J2657=\"Yes\",'TSA Input'!J2657=\"Contingent\"),'TSA Input'!D2657,\"\"))","v":""},{"$f":"IF('TSA Input'!J2657=\"\",\"\",IF(OR('TSA Input'!J2657=\"Yes\",'TSA Input'!J2657=\"Contingent\"),'TSA Input'!G2657,\"\"))","v":""},{"$f":"IF('TSA Input'!J2657=\"\",\"\",IF(OR('TSA Input'!J2657=\"Yes\",'TSA Input'!J2657=\"Contingent\"),'TSA Input'!F2657,\"\"))","v":""},"","Required","Required"]
["",null,{"$f":"IF('TSA Input'!J2658=\"\",\"\",IF(OR('TSA Input'!J2658=\"Yes\",'TSA Input'!J2658=\"Contingent\"),'TSA Input'!B2658,\"Ineligible\"))","v":""},{"$f":"IF('TSA Input'!J2658=\"\",\"\",IF(OR('TSA Input'!J2658=\"Yes\",'TSA Input'!J2658=\"Contingent\"),'TSA Input'!I2658,\"\"))","v":""},{"$f":"IF('TSA Input'!J2658=\"\",\"\",IF(OR('TSA Input'!J2658=\"Yes\",'TSA Input'!J2658=\"Contingent\"),'TSA Input'!C2658,\"\"))","v":""},{"$f":"IF('TSA Input'!J2658=\"\",\"\",IF(OR('TSA Input'!J2658=\"Yes\",'TSA Input'!J2658=\"Contingent\"),'TSA Input'!D2658,\"\"))","v":""},{"$f":"IF('TSA Input'!J2658=\"\",\"\",IF(OR('TSA Input'!J2658=\"Yes\",'TSA Input'!J2658=\"Contingent\"),'TSA Input'!G2658,\"\"))","v":""},{"$f":"IF('TSA Input'!J2658=\"\",\"\",IF(OR('TSA Input'!J2658=\"Yes\",'TSA Input'!J2658=\"Contingent\"),'TSA Input'!F2658,\"\"))","v":""},"",{"$f":"IF('TSA Input'!J2658=\"\",\"\",IF(OR('TSA Input'!J2658=\"Yes\",'TSA Input'!J2658=\"Contingent\"),'TSA Input'!D2658,\"\"))","v":""},{"$f":"IF('TSA Input'!J2658=\"\",\"\",IF(OR('TSA Input'!J2658=\"Yes\",'TSA Input'!J2658=\"Contingent\"),'TSA Input'!G2658,\"\"))","v":""},{"$f":"IF('TSA Input'!J2658=\"\",\"\",IF(OR('TSA Input'!J2658=\"Yes\",'TSA Input'!J2658=\"Contingent\"),'TSA Input'!F2658,\"\"))","v":""},"","Required","Required"]
["",null,{"$f":"IF('TSA Input'!J2659=\"\",\"\",IF(OR('TSA Input'!J2659=\"Yes\",'TSA Input'!J2659=\"Contingent\"),'TSA Input'!B2659,\"Ineligible\"))","v":""},{"$f":"IF('TSA Input'!J2659=\"\",\"\",IF(OR('TSA Input'!J2659=\"Yes\",'TSA Input'!J2659=\"Contingent\"),'TSA Input'!I2659,\"\"))","v":""},{"$f":"IF('TSA Input'!J2659=\"\",\"\",IF(OR('TSA Input'!J2659=\"Yes\",'TSA Input'!J2659=\"Contingent\"),'TSA Input'!C2659,\"\"))","v":""},{"$f":"IF('TSA Input'!J2659=\"\",\"\",IF(OR('TSA Input'!J2659=\"Yes\",'TSA Input'!J2659=\"Contingent\"),'TSA Input'!D2659,\"\"))","v":""},{"$f":"IF('TSA Input'!J2659=\"\",\"\",IF(OR('TSA Input'!J2659=\"Yes\",'TSA Input'!J2659=\"Contingent\"),'TSA Input'!G2659,\"\"))","v":""},{"$f":"IF('TSA Input'!J2659=\"\",\"\",IF(OR('TSA Input'!J2659=\"Yes\",'TSA Input'!J2659=\"Contingent\"),'TSA Input'!F2659,\"\"))","v":""},"",{"$f":"IF('TSA Input'!J2659=\"\",\"\",IF(OR('TSA Input'!J2659=\"Yes\",'TSA Input'!J2659=\"Contingent\"),'TSA Input'!D2659,\"\"))","v":""},{"$f":"IF('TSA Input'!J2659=\"\",\"\",IF(OR('TSA Input'!J2659=\"Yes\",'TSA Input'!J2659=\"Contingent\"),'TSA Input'!G2659,\"\"))","v":""},{"$f":"IF('TSA Input'!J2659=\"\",\"\",IF(OR('TSA Input'!J2659=\"Yes\",'TSA Input'!J2659=\"Contingent\"),'TSA Input'!F2659,\"\"))","v":""},"","Required","Required"]
["",null,{"$f":"IF('TSA Input'!J2660=\"\",\"\",IF(OR('TSA Input'!J2660=\"Yes\",'TSA Input'!J2660=\"Contingent\"),'TSA Input'!B2660,\"Ineligible\"))","v":""},{"$f":"IF('TSA Input'!J2660=\"\",\"\",IF(OR('TSA Input'!J2660=\"Yes\",'TSA Input'!J2660=\"Contingent\"),'TSA Input'!I2660,\"\"))","v":""},{"$f":"IF('TSA Input'!J2660=\"\",\"\",IF(OR('TSA Input'!J2660=\"Yes\",'TSA Input'!J2660=\"Contingent\"),'TSA Input'!C2660,\"\"))","v":""},{"$f":"IF('TSA Input'!J2660=\"\",\"\",IF(OR('TSA Input'!J2660=\"Yes\",'TSA Input'!J2660=\"Contingent\"),'TSA Input'!D2660,\"\"))","v":""},{"$f":"IF('TSA Input'!J2660=\"\",\"\",IF(OR('TSA Input'!J2660=\"Yes\",'TSA Input'!J2660=\"Contingent\"),'TSA Input'!G2660,\"\"))","v":""},{"$f":"IF('TSA Input'!J2660=\"\",\"\",IF(OR('TSA Input'!J2660=\"Yes\",'TSA Input'!J2660=\"Contingent\"),'TSA Input'!F2660,\"\"))","v":""},"",{"$f":"IF('TSA Input'!J2660=\"\",\"\",IF(OR('TSA Input'!J2660=\"Yes\",'TSA Input'!J2660=\"Contingent\"),'TSA Input'!D2660,\"\"))","v":""},{"$f":"IF('TSA Input'!J2660=\"\",\"\",IF(OR('TSA Input'!J2660=\"Yes\",'TSA Input'!J2660=\"Contingent\"),'TSA Input'!G2660,\"\"))","v":""},{"$f":"IF('TSA Input'!J2660=\"\",\"\",IF(OR('TSA Input'!J2660=\"Yes\",'TSA Input'!J2660=\"Contingent\"),'TSA Input'!F2660,\"\"))","v":""},"","Required","Required"]
["",null,{"$f":"IF('TSA Input'!J2661=\"\",\"\",IF(OR('TSA Input'!J2661=\"Yes\",'TSA Input'!J2661=\"Contingent\"),'TSA Input'!B2661,\"Ineligible\"))","v":""},{"$f":"IF('TSA Input'!J2661=\"\",\"\",IF(OR('TSA Input'!J2661=\"Yes\",'TSA Input'!J2661=\"Contingent\"),'TSA Input'!I2661,\"\"))","v":""},{"$f":"IF('TSA Input'!J2661=\"\",\"\",IF(OR('TSA Input'!J2661=\"Yes\",'TSA Input'!J2661=\"Contingent\"),'TSA Input'!C2661,\"\"))","v":""},{"$f":"IF('TSA Input'!J2661=\"\",\"\",IF(OR('TSA Input'!J2661=\"Yes\",'TSA Input'!J2661=\"Contingent\"),'TSA Input'!D2661,\"\"))","v":""},{"$f":"IF('TSA Input'!J2661=\"\",\"\",IF(OR('TSA Input'!J2661=\"Yes\",'TSA Input'!J2661=\"Contingent\"),'TSA Input'!G2661,\"\"))","v":""},{"$f":"IF('TSA Input'!J2661=\"\",\"\",IF(OR('TSA Input'!J2661=\"Yes\",'TSA Input'!J2661=\"Contingent\"),'TSA Input'!F2661,\"\"))","v":""},"",{"$f":"IF('TSA Input'!J2661=\"\",\"\",IF(OR('TSA Input'!J2661=\"Yes\",'TSA Input'!J2661=\"Contingent\"),'TSA Input'!D2661,\"\"))","v":""},{"$f":"IF('TSA Input'!J2661=\"\",\"\",IF(OR('TSA Input'!J2661=\"Yes\",'TSA Input'!J2661=\"Contingent\"),'TSA Input'!G2661,\"\"))","v":""},{"$f":"IF('TSA Input'!J2661=\"\",\"\",IF(OR('TSA Input'!J2661=\"Yes\",'TSA Input'!J2661=\"Contingent\"),'TSA Input'!F2661,\"\"))","v":""},"","Required","Required"]
["",null,{"$f":"IF('TSA Input'!J2662=\"\",\"\",IF(OR('TSA Input'!J2662=\"Yes\",'TSA Input'!J2662=\"Contingent\"),'TSA Input'!B2662,\"Ineligible\"))","v":""},{"$f":"IF('TSA Input'!J2662=\"\",\"\",IF(OR('TSA Input'!J2662=\"Yes\",'TSA Input'!J2662=\"Contingent\"),'TSA Input'!I2662,\"\"))","v":""},{"$f":"IF('TSA Input'!J2662=\"\",\"\",IF(OR('TSA Input'!J2662=\"Yes\",'TSA Input'!J2662=\"Contingent\"),'TSA Input'!C2662,\"\"))","v":""},{"$f":"IF('TSA Input'!J2662=\"\",\"\",IF(OR('TSA Input'!J2662=\"Yes\",'TSA Input'!J2662=\"Contingent\"),'TSA Input'!D2662,\"\"))","v":""},{"$f":"IF('TSA Input'!J2662=\"\",\"\",IF(OR('TSA Input'!J2662=\"Yes\",'TSA Input'!J2662=\"Contingent\"),'TSA Input'!G2662,\"\"))","v":""},{"$f":"IF('TSA Input'!J2662=\"\",\"\",IF(OR('TSA Input'!J2662=\"Yes\",'TSA Input'!J2662=\"Contingent\"),'TSA Input'!F2662,\"\"))","v":""},"",{"$f":"IF('TSA Input'!J2662=\"\",\"\",IF(OR('TSA Input'!J2662=\"Yes\",'TSA Input'!J2662=\"Contingent\"),'TSA Input'!D2662,\"\"))","v":""},{"$f":"IF('TSA Input'!J2662=\"\",\"\",IF(OR('TSA Input'!J2662=\"Yes\",'TSA Input'!J2662=\"Contingent\"),'TSA Input'!G2662,\"\"))","v":""},{"$f":"IF('TSA Input'!J2662=\"\",\"\",IF(OR('TSA Input'!J2662=\"Yes\",'TSA Input'!J2662=\"Contingent\"),'TSA Input'!F2662,\"\"))","v":""},"","Required","Required"]
["",null,{"$f":"IF('TSA Input'!J2663=\"\",\"\",IF(OR('TSA Input'!J2663=\"Yes\",'TSA Input'!J2663=\"Contingent\"),'TSA Input'!B2663,\"Ineligible\"))","v":""},{"$f":"IF('TSA Input'!J2663=\"\",\"\",IF(OR('TSA Input'!J2663=\"Yes\",'TSA Input'!J2663=\"Contingent\"),'TSA Input'!I2663,\"\"))","v":""},{"$f":"IF('TSA Input'!J2663=\"\",\"\",IF(OR('TSA Input'!J2663=\"Yes\",'TSA Input'!J2663=\"Contingent\"),'TSA Input'!C2663,\"\"))","v":""},{"$f":"IF('TSA Input'!J2663=\"\",\"\",IF(OR('TSA Input'!J2663=\"Yes\",'TSA Input'!J2663=\"Contingent\"),'TSA Input'!D2663,\"\"))","v":""},{"$f":"IF('TSA Input'!J2663=\"\",\"\",IF(OR('TSA Input'!J2663=\"Yes\",'TSA Input'!J2663=\"Contingent\"),'TSA Input'!G2663,\"\"))","v":""},{"$f":"IF('TSA Input'!J2663=\"\",\"\",IF(OR('TSA Input'!J2663=\"Yes\",'TSA Input'!J2663=\"Contingent\"),'TSA Input'!F2663,\"\"))","v":""},"",{"$f":"IF('TSA Input'!J2663=\"\",\"\",IF(OR('TSA Input'!J2663=\"Yes\",'TSA Input'!J2663=\"Contingent\"),'TSA Input'!D2663,\"\"))","v":""},{"$f":"IF('TSA Input'!J2663=\"\",\"\",IF(OR('TSA Input'!J2663=\"Yes\",'TSA Input'!J2663=\"Contingent\"),'TSA Input'!G2663,\"\"))","v":""},{"$f":"IF('TSA Input'!J2663=\"\",\"\",IF(OR('TSA Input'!J2663=\"Yes\",'TSA Input'!J2663=\"Contingent\"),'TSA Input'!F2663,\"\"))","v":""},"","Required","Required"]
["",null,{"$f":"IF('TSA Input'!J2664=\"\",\"\",IF(OR('TSA Input'!J2664=\"Yes\",'TSA Input'!J2664=\"Contingent\"),'TSA Input'!B2664,\"Ineligible\"))","v":""},{"$f":"IF('TSA Input'!J2664=\"\",\"\",IF(OR('TSA Input'!J2664=\"Yes\",'TSA Input'!J2664=\"Contingent\"),'TSA Input'!I2664,\"\"))","v":""},{"$f":"IF('TSA Input'!J2664=\"\",\"\",IF(OR('TSA Input'!J2664=\"Yes\",'TSA Input'!J2664=\"Contingent\"),'TSA Input'!C2664,\"\"))","v":""},{"$f":"IF('TSA Input'!J2664=\"\",\"\",IF(OR('TSA Input'!J2664=\"Yes\",'TSA Input'!J2664=\"Contingent\"),'TSA Input'!D2664,\"\"))","v":""},{"$f":"IF('TSA Input'!J2664=\"\",\"\",IF(OR('TSA Input'!J2664=\"Yes\",'TSA Input'!J2664=\"Contingent\"),'TSA Input'!G2664,\"\"))","v":""},{"$f":"IF('TSA Input'!J2664=\"\",\"\",IF(OR('TSA Input'!J2664=\"Yes\",'TSA Input'!J2664=\"Contingent\"),'TSA Input'!F2664,\"\"))","v":""},"",{"$f":"IF('TSA Input'!J2664=\"\",\"\",IF(OR('TSA Input'!J2664=\"Yes\",'TSA Input'!J2664=\"Contingent\"),'TSA Input'!D2664,\"\"))","v":""},{"$f":"IF('TSA Input'!J2664=\"\",\"\",IF(OR('TSA Input'!J2664=\"Yes\",'TSA Input'!J2664=\"Contingent\"),'TSA Input'!G2664,\"\"))","v":""},{"$f":"IF('TSA Input'!J2664=\"\",\"\",IF(OR('TSA Input'!J2664=\"Yes\",'TSA Input'!J2664=\"Contingent\"),'TSA Input'!F2664,\"\"))","v":""},"","Required","Required"]
["",null,{"$f":"IF('TSA Input'!J2665=\"\",\"\",IF(OR('TSA Input'!J2665=\"Yes\",'TSA Input'!J2665=\"Contingent\"),'TSA Input'!B2665,\"Ineligible\"))","v":""},{"$f":"IF('TSA Input'!J2665=\"\",\"\",IF(OR('TSA Input'!J2665=\"Yes\",'TSA Input'!J2665=\"Contingent\"),'TSA Input'!I2665,\"\"))","v":""},{"$f":"IF('TSA Input'!J2665=\"\",\"\",IF(OR('TSA Input'!J2665=\"Yes\",'TSA Input'!J2665=\"Contingent\"),'TSA Input'!C2665,\"\"))","v":""},{"$f":"IF('TSA Input'!J2665=\"\",\"\",IF(OR('TSA Input'!J2665=\"Yes\",'TSA Input'!J2665=\"Contingent\"),'TSA Input'!D2665,\"\"))","v":""},{"$f":"IF('TSA Input'!J2665=\"\",\"\",IF(OR('TSA Input'!J2665=\"Yes\",'TSA Input'!J2665=\"Contingent\"),'TSA Input'!G2665,\"\"))","v":""},{"$f":"IF('TSA Input'!J2665=\"\",\"\",IF(OR('TSA Input'!J2665=\"Yes\",'TSA Input'!J2665=\"Contingent\"),'TSA Input'!F2665,\"\"))","v":""},"",{"$f":"IF('TSA Input'!J2665=\"\",\"\",IF(OR('TSA Input'!J2665=\"Yes\",'TSA Input'!J2665=\"Contingent\"),'TSA Input'!D2665,\"\"))","v":""},{"$f":"IF('TSA Input'!J2665=\"\",\"\",IF(OR('TSA Input'!J2665=\"Yes\",'TSA Input'!J2665=\"Contingent\"),'TSA Input'!G2665,\"\"))","v":""},{"$f":"IF('TSA Input'!J2665=\"\",\"\",IF(OR('TSA Input'!J2665=\"Yes\",'TSA Input'!J2665=\"Contingent\"),'TSA Input'!F2665,\"\"))","v":""},"","Required","Required"]
["",null,{"$f":"IF('TSA Input'!J2666=\"\",\"\",IF(OR('TSA Input'!J2666=\"Yes\",'TSA Input'!J2666=\"Contingent\"),'TSA Input'!B2666,\"Ineligible\"))","v":""},{"$f":"IF('TSA Input'!J2666=\"\",\"\",IF(OR('TSA Input'!J2666=\"Yes\",'TSA Input'!J2666=\"Contingent\"),'TSA Input'!I2666,\"\"))","v":""},{"$f":"IF('TSA Input'!J2666=\"\",\"\",IF(OR('TSA Input'!J2666=\"Yes\",'TSA Input'!J2666=\"Contingent\"),'TSA Input'!C2666,\"\"))","v":""},{"$f":"IF('TSA Input'!J2666=\"\",\"\",IF(OR('TSA Input'!J2666=\"Yes\",'TSA Input'!J2666=\"Contingent\"),'TSA Input'!D2666,\"\"))","v":""},{"$f":"IF('TSA Input'!J2666=\"\",\"\",IF(OR('TSA Input'!J2666=\"Yes\",'TSA Input'!J2666=\"Contingent\"),'TSA Input'!G2666,\"\"))","v":""},{"$f":"IF('TSA Input'!J2666=\"\",\"\",IF(OR('TSA Input'!J2666=\"Yes\",'TSA Input'!J2666=\"Contingent\"),'TSA Input'!F2666,\"\"))","v":""},"",{"$f":"IF('TSA Input'!J2666=\"\",\"\",IF(OR('TSA Input'!J2666=\"Yes\",'TSA Input'!J2666=\"Contingent\"),'TSA Input'!D2666,\"\"))","v":""},{"$f":"IF('TSA Input'!J2666=\"\",\"\",IF(OR('TSA Input'!J2666=\"Yes\",'TSA Input'!J2666=\"Contingent\"),'TSA Input'!G2666,\"\"))","v":""},{"$f":"IF('TSA Input'!J2666=\"\",\"\",IF(OR('TSA Input'!J2666=\"Yes\",'TSA Input'!J2666=\"Contingent\"),'TSA Input'!F2666,\"\"))","v":""},"","Required","Required"]
["",null,{"$f":"IF('TSA Input'!J2667=\"\",\"\",IF(OR('TSA Input'!J2667=\"Yes\",'TSA Input'!J2667=\"Contingent\"),'TSA Input'!B2667,\"Ineligible\"))","v":""},{"$f":"IF('TSA Input'!J2667=\"\",\"\",IF(OR('TSA Input'!J2667=\"Yes\",'TSA Input'!J2667=\"Contingent\"),'TSA Input'!I2667,\"\"))","v":""},{"$f":"IF('TSA Input'!J2667=\"\",\"\",IF(OR('TSA Input'!J2667=\"Yes\",'TSA Input'!J2667=\"Contingent\"),'TSA Input'!C2667,\"\"))","v":""},{"$f":"IF('TSA Input'!J2667=\"\",\"\",IF(OR('TSA Input'!J2667=\"Yes\",'TSA Input'!J2667=\"Contingent\"),'TSA Input'!D2667,\"\"))","v":""},{"$f":"IF('TSA Input'!J2667=\"\",\"\",IF(OR('TSA Input'!J2667=\"Yes\",'TSA Input'!J2667=\"Contingent\"),'TSA Input'!G2667,\"\"))","v":""},{"$f":"IF('TSA Input'!J2667=\"\",\"\",IF(OR('TSA Input'!J2667=\"Yes\",'TSA Input'!J2667=\"Contingent\"),'TSA Input'!F2667,\"\"))","v":""},"",{"$f":"IF('TSA Input'!J2667=\"\",\"\",IF(OR('TSA Input'!J2667=\"Yes\",'TSA Input'!J2667=\"Contingent\"),'TSA Input'!D2667,\"\"))","v":""},{"$f":"IF('TSA Input'!J2667=\"\",\"\",IF(OR('TSA Input'!J2667=\"Yes\",'TSA Input'!J2667=\"Contingent\"),'TSA Input'!G2667,\"\"))","v":""},{"$f":"IF('TSA Input'!J2667=\"\",\"\",IF(OR('TSA Input'!J2667=\"Yes\",'TSA Input'!J2667=\"Contingent\"),'TSA Input'!F2667,\"\"))","v":""},"","Required","Required"]
["",null,{"$f":"IF('TSA Input'!J2668=\"\",\"\",IF(OR('TSA Input'!J2668=\"Yes\",'TSA Input'!J2668=\"Contingent\"),'TSA Input'!B2668,\"Ineligible\"))","v":""},{"$f":"IF('TSA Input'!J2668=\"\",\"\",IF(OR('TSA Input'!J2668=\"Yes\",'TSA Input'!J2668=\"Contingent\"),'TSA Input'!I2668,\"\"))","v":""},{"$f":"IF('TSA Input'!J2668=\"\",\"\",IF(OR('TSA Input'!J2668=\"Yes\",'TSA Input'!J2668=\"Contingent\"),'TSA Input'!C2668,\"\"))","v":""},{"$f":"IF('TSA Input'!J2668=\"\",\"\",IF(OR('TSA Input'!J2668=\"Yes\",'TSA Input'!J2668=\"Contingent\"),'TSA Input'!D2668,\"\"))","v":""},{"$f":"IF('TSA Input'!J2668=\"\",\"\",IF(OR('TSA Input'!J2668=\"Yes\",'TSA Input'!J2668=\"Contingent\"),'TSA Input'!G2668,\"\"))","v":""},{"$f":"IF('TSA Input'!J2668=\"\",\"\",IF(OR('TSA Input'!J2668=\"Yes\",'TSA Input'!J2668=\"Contingent\"),'TSA Input'!F2668,\"\"))","v":""},"",{"$f":"IF('TSA Input'!J2668=\"\",\"\",IF(OR('TSA Input'!J2668=\"Yes\",'TSA Input'!J2668=\"Contingent\"),'TSA Input'!D2668,\"\"))","v":""},{"$f":"IF('TSA Input'!J2668=\"\",\"\",IF(OR('TSA Input'!J2668=\"Yes\",'TSA Input'!J2668=\"Contingent\"),'TSA Input'!G2668,\"\"))","v":""},{"$f":"IF('TSA Input'!J2668=\"\",\"\",IF(OR('TSA Input'!J2668=\"Yes\",'TSA Input'!J2668=\"Contingent\"),'TSA Input'!F2668,\"\"))","v":""},"","Required","Required"]
["",null,{"$f":"IF('TSA Input'!J2669=\"\",\"\",IF(OR('TSA Input'!J2669=\"Yes\",'TSA Input'!J2669=\"Contingent\"),'TSA Input'!B2669,\"Ineligible\"))","v":""},{"$f":"IF('TSA Input'!J2669=\"\",\"\",IF(OR('TSA Input'!J2669=\"Yes\",'TSA Input'!J2669=\"Contingent\"),'TSA Input'!I2669,\"\"))","v":""},{"$f":"IF('TSA Input'!J2669=\"\",\"\",IF(OR('TSA Input'!J2669=\"Yes\",'TSA Input'!J2669=\"Contingent\"),'TSA Input'!C2669,\"\"))","v":""},{"$f":"IF('TSA Input'!J2669=\"\",\"\",IF(OR('TSA Input'!J2669=\"Yes\",'TSA Input'!J2669=\"Contingent\"),'TSA Input'!D2669,\"\"))","v":""},{"$f":"IF('TSA Input'!J2669=\"\",\"\",IF(OR('TSA Input'!J2669=\"Yes\",'TSA Input'!J2669=\"Contingent\"),'TSA Input'!G2669,\"\"))","v":""},{"$f":"IF('TSA Input'!J2669=\"\",\"\",IF(OR('TSA Input'!J2669=\"Yes\",'TSA Input'!J2669=\"Contingent\"),'TSA Input'!F2669,\"\"))","v":""},"",{"$f":"IF('TSA Input'!J2669=\"\",\"\",IF(OR('TSA Input'!J2669=\"Yes\",'TSA Input'!J2669=\"Contingent\"),'TSA Input'!D2669,\"\"))","v":""},{"$f":"IF('TSA Input'!J2669=\"\",\"\",IF(OR('TSA Input'!J2669=\"Yes\",'TSA Input'!J2669=\"Contingent\"),'TSA Input'!G2669,\"\"))","v":""},{"$f":"IF('TSA Input'!J2669=\"\",\"\",IF(OR('TSA Input'!J2669=\"Yes\",'TSA Input'!J2669=\"Contingent\"),'TSA Input'!F2669,\"\"))","v":""},"","Required","Required"]
["",null,{"$f":"IF('TSA Input'!J2670=\"\",\"\",IF(OR('TSA Input'!J2670=\"Yes\",'TSA Input'!J2670=\"Contingent\"),'TSA Input'!B2670,\"Ineligible\"))","v":""},{"$f":"IF('TSA Input'!J2670=\"\",\"\",IF(OR('TSA Input'!J2670=\"Yes\",'TSA Input'!J2670=\"Contingent\"),'TSA Input'!I2670,\"\"))","v":""},{"$f":"IF('TSA Input'!J2670=\"\",\"\",IF(OR('TSA Input'!J2670=\"Yes\",'TSA Input'!J2670=\"Contingent\"),'TSA Input'!C2670,\"\"))","v":""},{"$f":"IF('TSA Input'!J2670=\"\",\"\",IF(OR('TSA Input'!J2670=\"Yes\",'TSA Input'!J2670=\"Contingent\"),'TSA Input'!D2670,\"\"))","v":""},{"$f":"IF('TSA Input'!J2670=\"\",\"\",IF(OR('TSA Input'!J2670=\"Yes\",'TSA Input'!J2670=\"Contingent\"),'TSA Input'!G2670,\"\"))","v":""},{"$f":"IF('TSA Input'!J2670=\"\",\"\",IF(OR('TSA Input'!J2670=\"Yes\",'TSA Input'!J2670=\"Contingent\"),'TSA Input'!F2670,\"\"))","v":""},"",{"$f":"IF('TSA Input'!J2670=\"\",\"\",IF(OR('TSA Input'!J2670=\"Yes\",'TSA Input'!J2670=\"Contingent\"),'TSA Input'!D2670,\"\"))","v":""},{"$f":"IF('TSA Input'!J2670=\"\",\"\",IF(OR('TSA Input'!J2670=\"Yes\",'TSA Input'!J2670=\"Contingent\"),'TSA Input'!G2670,\"\"))","v":""},{"$f":"IF('TSA Input'!J2670=\"\",\"\",IF(OR('TSA Input'!J2670=\"Yes\",'TSA Input'!J2670=\"Contingent\"),'TSA Input'!F2670,\"\"))","v":""},"","Required","Required"]
["",null,{"$f":"IF('TSA Input'!J2671=\"\",\"\",IF(OR('TSA Input'!J2671=\"Yes\",'TSA Input'!J2671=\"Contingent\"),'TSA Input'!B2671,\"Ineligible\"))","v":""},{"$f":"IF('TSA Input'!J2671=\"\",\"\",IF(OR('TSA Input'!J2671=\"Yes\",'TSA Input'!J2671=\"Contingent\"),'TSA Input'!I2671,\"\"))","v":""},{"$f":"IF('TSA Input'!J2671=\"\",\"\",IF(OR('TSA Input'!J2671=\"Yes\",'TSA Input'!J2671=\"Contingent\"),'TSA Input'!C2671,\"\"))","v":""},{"$f":"IF('TSA Input'!J2671=\"\",\"\",IF(OR('TSA Input'!J2671=\"Yes\",'TSA Input'!J2671=\"Contingent\"),'TSA Input'!D2671,\"\"))","v":""},{"$f":"IF('TSA Input'!J2671=\"\",\"\",IF(OR('TSA Input'!J2671=\"Yes\",'TSA Input'!J2671=\"Contingent\"),'TSA Input'!G2671,\"\"))","v":""},{"$f":"IF('TSA Input'!J2671=\"\",\"\",IF(OR('TSA Input'!J2671=\"Yes\",'TSA Input'!J2671=\"Contingent\"),'TSA Input'!F2671,\"\"))","v":""},"",{"$f":"IF('TSA Input'!J2671=\"\",\"\",IF(OR('TSA Input'!J2671=\"Yes\",'TSA Input'!J2671=\"Contingent\"),'TSA Input'!D2671,\"\"))","v":""},{"$f":"IF('TSA Input'!J2671=\"\",\"\",IF(OR('TSA Input'!J2671=\"Yes\",'TSA Input'!J2671=\"Contingent\"),'TSA Input'!G2671,\"\"))","v":""},{"$f":"IF('TSA Input'!J2671=\"\",\"\",IF(OR('TSA Input'!J2671=\"Yes\",'TSA Input'!J2671=\"Contingent\"),'TSA Input'!F2671,\"\"))","v":""},"","Required","Required"]
["",null,{"$f":"IF('TSA Input'!J2672=\"\",\"\",IF(OR('TSA Input'!J2672=\"Yes\",'TSA Input'!J2672=\"Contingent\"),'TSA Input'!B2672,\"Ineligible\"))","v":""},{"$f":"IF('TSA Input'!J2672=\"\",\"\",IF(OR('TSA Input'!J2672=\"Yes\",'TSA Input'!J2672=\"Contingent\"),'TSA Input'!I2672,\"\"))","v":""},{"$f":"IF('TSA Input'!J2672=\"\",\"\",IF(OR('TSA Input'!J2672=\"Yes\",'TSA Input'!J2672=\"Contingent\"),'TSA Input'!C2672,\"\"))","v":""},{"$f":"IF('TSA Input'!J2672=\"\",\"\",IF(OR('TSA Input'!J2672=\"Yes\",'TSA Input'!J2672=\"Contingent\"),'TSA Input'!D2672,\"\"))","v":""},{"$f":"IF('TSA Input'!J2672=\"\",\"\",IF(OR('TSA Input'!J2672=\"Yes\",'TSA Input'!J2672=\"Contingent\"),'TSA Input'!G2672,\"\"))","v":""},{"$f":"IF('TSA Input'!J2672=\"\",\"\",IF(OR('TSA Input'!J2672=\"Yes\",'TSA Input'!J2672=\"Contingent\"),'TSA Input'!F2672,\"\"))","v":""},"",{"$f":"IF('TSA Input'!J2672=\"\",\"\",IF(OR('TSA Input'!J2672=\"Yes\",'TSA Input'!J2672=\"Contingent\"),'TSA Input'!D2672,\"\"))","v":""},{"$f":"IF('TSA Input'!J2672=\"\",\"\",IF(OR('TSA Input'!J2672=\"Yes\",'TSA Input'!J2672=\"Contingent\"),'TSA Input'!G2672,\"\"))","v":""},{"$f":"IF('TSA Input'!J2672=\"\",\"\",IF(OR('TSA Input'!J2672=\"Yes\",'TSA Input'!J2672=\"Contingent\"),'TSA Input'!F2672,\"\"))","v":""},"","Required","Required"]
["",null,{"$f":"IF('TSA Input'!J2673=\"\",\"\",IF(OR('TSA Input'!J2673=\"Yes\",'TSA Input'!J2673=\"Contingent\"),'TSA Input'!B2673,\"Ineligible\"))","v":""},{"$f":"IF('TSA Input'!J2673=\"\",\"\",IF(OR('TSA Input'!J2673=\"Yes\",'TSA Input'!J2673=\"Contingent\"),'TSA Input'!I2673,\"\"))","v":""},{"$f":"IF('TSA Input'!J2673=\"\",\"\",IF(OR('TSA Input'!J2673=\"Yes\",'TSA Input'!J2673=\"Contingent\"),'TSA Input'!C2673,\"\"))","v":""},{"$f":"IF('TSA Input'!J2673=\"\",\"\",IF(OR('TSA Input'!J2673=\"Yes\",'TSA Input'!J2673=\"Contingent\"),'TSA Input'!D2673,\"\"))","v":""},{"$f":"IF('TSA Input'!J2673=\"\",\"\",IF(OR('TSA Input'!J2673=\"Yes\",'TSA Input'!J2673=\"Contingent\"),'TSA Input'!G2673,\"\"))","v":""},{"$f":"IF('TSA Input'!J2673=\"\",\"\",IF(OR('TSA Input'!J2673=\"Yes\",'TSA Input'!J2673=\"Contingent\"),'TSA Input'!F2673,\"\"))","v":""},"",{"$f":"IF('TSA Input'!J2673=\"\",\"\",IF(OR('TSA Input'!J2673=\"Yes\",'TSA Input'!J2673=\"Contingent\"),'TSA Input'!D2673,\"\"))","v":""},{"$f":"IF('TSA Input'!J2673=\"\",\"\",IF(OR('TSA Input'!J2673=\"Yes\",'TSA Input'!J2673=\"Contingent\"),'TSA Input'!G2673,\"\"))","v":""},{"$f":"IF('TSA Input'!J2673=\"\",\"\",IF(OR('TSA Input'!J2673=\"Yes\",'TSA Input'!J2673=\"Contingent\"),'TSA Input'!F2673,\"\"))","v":""},"","Required","Required"]
["",null,{"$f":"IF('TSA Input'!J2674=\"\",\"\",IF(OR('TSA Input'!J2674=\"Yes\",'TSA Input'!J2674=\"Contingent\"),'TSA Input'!B2674,\"Ineligible\"))","v":""},{"$f":"IF('TSA Input'!J2674=\"\",\"\",IF(OR('TSA Input'!J2674=\"Yes\",'TSA Input'!J2674=\"Contingent\"),'TSA Input'!I2674,\"\"))","v":""},{"$f":"IF('TSA Input'!J2674=\"\",\"\",IF(OR('TSA Input'!J2674=\"Yes\",'TSA Input'!J2674=\"Contingent\"),'TSA Input'!C2674,\"\"))","v":""},{"$f":"IF('TSA Input'!J2674=\"\",\"\",IF(OR('TSA Input'!J2674=\"Yes\",'TSA Input'!J2674=\"Contingent\"),'TSA Input'!D2674,\"\"))","v":""},{"$f":"IF('TSA Input'!J2674=\"\",\"\",IF(OR('TSA Input'!J2674=\"Yes\",'TSA Input'!J2674=\"Contingent\"),'TSA Input'!G2674,\"\"))","v":""},{"$f":"IF('TSA Input'!J2674=\"\",\"\",IF(OR('TSA Input'!J2674=\"Yes\",'TSA Input'!J2674=\"Contingent\"),'TSA Input'!F2674,\"\"))","v":""},"",{"$f":"IF('TSA Input'!J2674=\"\",\"\",IF(OR('TSA Input'!J2674=\"Yes\",'TSA Input'!J2674=\"Contingent\"),'TSA Input'!D2674,\"\"))","v":""},{"$f":"IF('TSA Input'!J2674=\"\",\"\",IF(OR('TSA Input'!J2674=\"Yes\",'TSA Input'!J2674=\"Contingent\"),'TSA Input'!G2674,\"\"))","v":""},{"$f":"IF('TSA Input'!J2674=\"\",\"\",IF(OR('TSA Input'!J2674=\"Yes\",'TSA Input'!J2674=\"Contingent\"),'TSA Input'!F2674,\"\"))","v":""},"","Required","Required"]
["",null,{"$f":"IF('TSA Input'!J2675=\"\",\"\",IF(OR('TSA Input'!J2675=\"Yes\",'TSA Input'!J2675=\"Contingent\"),'TSA Input'!B2675,\"Ineligible\"))","v":""},{"$f":"IF('TSA Input'!J2675=\"\",\"\",IF(OR('TSA Input'!J2675=\"Yes\",'TSA Input'!J2675=\"Contingent\"),'TSA Input'!I2675,\"\"))","v":""},{"$f":"IF('TSA Input'!J2675=\"\",\"\",IF(OR('TSA Input'!J2675=\"Yes\",'TSA Input'!J2675=\"Contingent\"),'TSA Input'!C2675,\"\"))","v":""},{"$f":"IF('TSA Input'!J2675=\"\",\"\",IF(OR('TSA Input'!J2675=\"Yes\",'TSA Input'!J2675=\"Contingent\"),'TSA Input'!D2675,\"\"))","v":""},{"$f":"IF('TSA Input'!J2675=\"\",\"\",IF(OR('TSA Input'!J2675=\"Yes\",'TSA Input'!J2675=\"Contingent\"),'TSA Input'!G2675,\"\"))","v":""},{"$f":"IF('TSA Input'!J2675=\"\",\"\",IF(OR('TSA Input'!J2675=\"Yes\",'TSA Input'!J2675=\"Contingent\"),'TSA Input'!F2675,\"\"))","v":""},"",{"$f":"IF('TSA Input'!J2675=\"\",\"\",IF(OR('TSA Input'!J2675=\"Yes\",'TSA Input'!J2675=\"Contingent\"),'TSA Input'!D2675,\"\"))","v":""},{"$f":"IF('TSA Input'!J2675=\"\",\"\",IF(OR('TSA Input'!J2675=\"Yes\",'TSA Input'!J2675=\"Contingent\"),'TSA Input'!G2675,\"\"))","v":""},{"$f":"IF('TSA Input'!J2675=\"\",\"\",IF(OR('TSA Input'!J2675=\"Yes\",'TSA Input'!J2675=\"Contingent\"),'TSA Input'!F2675,\"\"))","v":""},"","Required","Required"]
["",null,{"$f":"IF('TSA Input'!J2676=\"\",\"\",IF(OR('TSA Input'!J2676=\"Yes\",'TSA Input'!J2676=\"Contingent\"),'TSA Input'!B2676,\"Ineligible\"))","v":""},{"$f":"IF('TSA Input'!J2676=\"\",\"\",IF(OR('TSA Input'!J2676=\"Yes\",'TSA Input'!J2676=\"Contingent\"),'TSA Input'!I2676,\"\"))","v":""},{"$f":"IF('TSA Input'!J2676=\"\",\"\",IF(OR('TSA Input'!J2676=\"Yes\",'TSA Input'!J2676=\"Contingent\"),'TSA Input'!C2676,\"\"))","v":""},{"$f":"IF('TSA Input'!J2676=\"\",\"\",IF(OR('TSA Input'!J2676=\"Yes\",'TSA Input'!J2676=\"Contingent\"),'TSA Input'!D2676,\"\"))","v":""},{"$f":"IF('TSA Input'!J2676=\"\",\"\",IF(OR('TSA Input'!J2676=\"Yes\",'TSA Input'!J2676=\"Contingent\"),'TSA Input'!G2676,\"\"))","v":""},{"$f":"IF('TSA Input'!J2676=\"\",\"\",IF(OR('TSA Input'!J2676=\"Yes\",'TSA Input'!J2676=\"Contingent\"),'TSA Input'!F2676,\"\"))","v":""},"",{"$f":"IF('TSA Input'!J2676=\"\",\"\",IF(OR('TSA Input'!J2676=\"Yes\",'TSA Input'!J2676=\"Contingent\"),'TSA Input'!D2676,\"\"))","v":""},{"$f":"IF('TSA Input'!J2676=\"\",\"\",IF(OR('TSA Input'!J2676=\"Yes\",'TSA Input'!J2676=\"Contingent\"),'TSA Input'!G2676,\"\"))","v":""},{"$f":"IF('TSA Input'!J2676=\"\",\"\",IF(OR('TSA Input'!J2676=\"Yes\",'TSA Input'!J2676=\"Contingent\"),'TSA Input'!F2676,\"\"))","v":""},"","Required","Required"]
["",null,{"$f":"IF('TSA Input'!J2677=\"\",\"\",IF(OR('TSA Input'!J2677=\"Yes\",'TSA Input'!J2677=\"Contingent\"),'TSA Input'!B2677,\"Ineligible\"))","v":""},{"$f":"IF('TSA Input'!J2677=\"\",\"\",IF(OR('TSA Input'!J2677=\"Yes\",'TSA Input'!J2677=\"Contingent\"),'TSA Input'!I2677,\"\"))","v":""},{"$f":"IF('TSA Input'!J2677=\"\",\"\",IF(OR('TSA Input'!J2677=\"Yes\",'TSA Input'!J2677=\"Contingent\"),'TSA Input'!C2677,\"\"))","v":""},{"$f":"IF('TSA Input'!J2677=\"\",\"\",IF(OR('TSA Input'!J2677=\"Yes\",'TSA Input'!J2677=\"Contingent\"),'TSA Input'!D2677,\"\"))","v":""},{"$f":"IF('TSA Input'!J2677=\"\",\"\",IF(OR('TSA Input'!J2677=\"Yes\",'TSA Input'!J2677=\"Contingent\"),'TSA Input'!G2677,\"\"))","v":""},{"$f":"IF('TSA Input'!J2677=\"\",\"\",IF(OR('TSA Input'!J2677=\"Yes\",'TSA Input'!J2677=\"Contingent\"),'TSA Input'!F2677,\"\"))","v":""},"",{"$f":"IF('TSA Input'!J2677=\"\",\"\",IF(OR('TSA Input'!J2677=\"Yes\",'TSA Input'!J2677=\"Contingent\"),'TSA Input'!D2677,\"\"))","v":""},{"$f":"IF('TSA Input'!J2677=\"\",\"\",IF(OR('TSA Input'!J2677=\"Yes\",'TSA Input'!J2677=\"Contingent\"),'TSA Input'!G2677,\"\"))","v":""},{"$f":"IF('TSA Input'!J2677=\"\",\"\",IF(OR('TSA Input'!J2677=\"Yes\",'TSA Input'!J2677=\"Contingent\"),'TSA Input'!F2677,\"\"))","v":""},"","Required","Required"]
["",null,{"$f":"IF('TSA Input'!J2678=\"\",\"\",IF(OR('TSA Input'!J2678=\"Yes\",'TSA Input'!J2678=\"Contingent\"),'TSA Input'!B2678,\"Ineligible\"))","v":""},{"$f":"IF('TSA Input'!J2678=\"\",\"\",IF(OR('TSA Input'!J2678=\"Yes\",'TSA Input'!J2678=\"Contingent\"),'TSA Input'!I2678,\"\"))","v":""},{"$f":"IF('TSA Input'!J2678=\"\",\"\",IF(OR('TSA Input'!J2678=\"Yes\",'TSA Input'!J2678=\"Contingent\"),'TSA Input'!C2678,\"\"))","v":""},{"$f":"IF('TSA Input'!J2678=\"\",\"\",IF(OR('TSA Input'!J2678=\"Yes\",'TSA Input'!J2678=\"Contingent\"),'TSA Input'!D2678,\"\"))","v":""},{"$f":"IF('TSA Input'!J2678=\"\",\"\",IF(OR('TSA Input'!J2678=\"Yes\",'TSA Input'!J2678=\"Contingent\"),'TSA Input'!G2678,\"\"))","v":""},{"$f":"IF('TSA Input'!J2678=\"\",\"\",IF(OR('TSA Input'!J2678=\"Yes\",'TSA Input'!J2678=\"Contingent\"),'TSA Input'!F2678,\"\"))","v":""},"",{"$f":"IF('TSA Input'!J2678=\"\",\"\",IF(OR('TSA Input'!J2678=\"Yes\",'TSA Input'!J2678=\"Contingent\"),'TSA Input'!D2678,\"\"))","v":""},{"$f":"IF('TSA Input'!J2678=\"\",\"\",IF(OR('TSA Input'!J2678=\"Yes\",'TSA Input'!J2678=\"Contingent\"),'TSA Input'!G2678,\"\"))","v":""},{"$f":"IF('TSA Input'!J2678=\"\",\"\",IF(OR('TSA Input'!J2678=\"Yes\",'TSA Input'!J2678=\"Contingent\"),'TSA Input'!F2678,\"\"))","v":""},"","Required","Required"]
["",null,{"$f":"IF('TSA Input'!J2679=\"\",\"\",IF(OR('TSA Input'!J2679=\"Yes\",'TSA Input'!J2679=\"Contingent\"),'TSA Input'!B2679,\"Ineligible\"))","v":""},{"$f":"IF('TSA Input'!J2679=\"\",\"\",IF(OR('TSA Input'!J2679=\"Yes\",'TSA Input'!J2679=\"Contingent\"),'TSA Input'!I2679,\"\"))","v":""},{"$f":"IF('TSA Input'!J2679=\"\",\"\",IF(OR('TSA Input'!J2679=\"Yes\",'TSA Input'!J2679=\"Contingent\"),'TSA Input'!C2679,\"\"))","v":""},{"$f":"IF('TSA Input'!J2679=\"\",\"\",IF(OR('TSA Input'!J2679=\"Yes\",'TSA Input'!J2679=\"Contingent\"),'TSA Input'!D2679,\"\"))","v":""},{"$f":"IF('TSA Input'!J2679=\"\",\"\",IF(OR('TSA Input'!J2679=\"Yes\",'TSA Input'!J2679=\"Contingent\"),'TSA Input'!G2679,\"\"))","v":""},{"$f":"IF('TSA Input'!J2679=\"\",\"\",IF(OR('TSA Input'!J2679=\"Yes\",'TSA Input'!J2679=\"Contingent\"),'TSA Input'!F2679,\"\"))","v":""},"",{"$f":"IF('TSA Input'!J2679=\"\",\"\",IF(OR('TSA Input'!J2679=\"Yes\",'TSA Input'!J2679=\"Contingent\"),'TSA Input'!D2679,\"\"))","v":""},{"$f":"IF('TSA Input'!J2679=\"\",\"\",IF(OR('TSA Input'!J2679=\"Yes\",'TSA Input'!J2679=\"Contingent\"),'TSA Input'!G2679,\"\"))","v":""},{"$f":"IF('TSA Input'!J2679=\"\",\"\",IF(OR('TSA Input'!J2679=\"Yes\",'TSA Input'!J2679=\"Contingent\"),'TSA Input'!F2679,\"\"))","v":""},"","Required","Required"]
["",null,{"$f":"IF('TSA Input'!J2680=\"\",\"\",IF(OR('TSA Input'!J2680=\"Yes\",'TSA Input'!J2680=\"Contingent\"),'TSA Input'!B2680,\"Ineligible\"))","v":""},{"$f":"IF('TSA Input'!J2680=\"\",\"\",IF(OR('TSA Input'!J2680=\"Yes\",'TSA Input'!J2680=\"Contingent\"),'TSA Input'!I2680,\"\"))","v":""},{"$f":"IF('TSA Input'!J2680=\"\",\"\",IF(OR('TSA Input'!J2680=\"Yes\",'TSA Input'!J2680=\"Contingent\"),'TSA Input'!C2680,\"\"))","v":""},{"$f":"IF('TSA Input'!J2680=\"\",\"\",IF(OR('TSA Input'!J2680=\"Yes\",'TSA Input'!J2680=\"Contingent\"),'TSA Input'!D2680,\"\"))","v":""},{"$f":"IF('TSA Input'!J2680=\"\",\"\",IF(OR('TSA Input'!J2680=\"Yes\",'TSA Input'!J2680=\"Contingent\"),'TSA Input'!G2680,\"\"))","v":""},{"$f":"IF('TSA Input'!J2680=\"\",\"\",IF(OR('TSA Input'!J2680=\"Yes\",'TSA Input'!J2680=\"Contingent\"),'TSA Input'!F2680,\"\"))","v":""},"",{"$f":"IF('TSA Input'!J2680=\"\",\"\",IF(OR('TSA Input'!J2680=\"Yes\",'TSA Input'!J2680=\"Contingent\"),'TSA Input'!D2680,\"\"))","v":""},{"$f":"IF('TSA Input'!J2680=\"\",\"\",IF(OR('TSA Input'!J2680=\"Yes\",'TSA Input'!J2680=\"Contingent\"),'TSA Input'!G2680,\"\"))","v":""},{"$f":"IF('TSA Input'!J2680=\"\",\"\",IF(OR('TSA Input'!J2680=\"Yes\",'TSA Input'!J2680=\"Contingent\"),'TSA Input'!F2680,\"\"))","v":""},"","Required","Required"]
["",null,{"$f":"IF('TSA Input'!J2681=\"\",\"\",IF(OR('TSA Input'!J2681=\"Yes\",'TSA Input'!J2681=\"Contingent\"),'TSA Input'!B2681,\"Ineligible\"))","v":""},{"$f":"IF('TSA Input'!J2681=\"\",\"\",IF(OR('TSA Input'!J2681=\"Yes\",'TSA Input'!J2681=\"Contingent\"),'TSA Input'!I2681,\"\"))","v":""},{"$f":"IF('TSA Input'!J2681=\"\",\"\",IF(OR('TSA Input'!J2681=\"Yes\",'TSA Input'!J2681=\"Contingent\"),'TSA Input'!C2681,\"\"))","v":""},{"$f":"IF('TSA Input'!J2681=\"\",\"\",IF(OR('TSA Input'!J2681=\"Yes\",'TSA Input'!J2681=\"Contingent\"),'TSA Input'!D2681,\"\"))","v":""},{"$f":"IF('TSA Input'!J2681=\"\",\"\",IF(OR('TSA Input'!J2681=\"Yes\",'TSA Input'!J2681=\"Contingent\"),'TSA Input'!G2681,\"\"))","v":""},{"$f":"IF('TSA Input'!J2681=\"\",\"\",IF(OR('TSA Input'!J2681=\"Yes\",'TSA Input'!J2681=\"Contingent\"),'TSA Input'!F2681,\"\"))","v":""},"",{"$f":"IF('TSA Input'!J2681=\"\",\"\",IF(OR('TSA Input'!J2681=\"Yes\",'TSA Input'!J2681=\"Contingent\"),'TSA Input'!D2681,\"\"))","v":""},{"$f":"IF('TSA Input'!J2681=\"\",\"\",IF(OR('TSA Input'!J2681=\"Yes\",'TSA Input'!J2681=\"Contingent\"),'TSA Input'!G2681,\"\"))","v":""},{"$f":"IF('TSA Input'!J2681=\"\",\"\",IF(OR('TSA Input'!J2681=\"Yes\",'TSA Input'!J2681=\"Contingent\"),'TSA Input'!F2681,\"\"))","v":""},"","Required","Required"]
["",null,{"$f":"IF('TSA Input'!J2682=\"\",\"\",IF(OR('TSA Input'!J2682=\"Yes\",'TSA Input'!J2682=\"Contingent\"),'TSA Input'!B2682,\"Ineligible\"))","v":""},{"$f":"IF('TSA Input'!J2682=\"\",\"\",IF(OR('TSA Input'!J2682=\"Yes\",'TSA Input'!J2682=\"Contingent\"),'TSA Input'!I2682,\"\"))","v":""},{"$f":"IF('TSA Input'!J2682=\"\",\"\",IF(OR('TSA Input'!J2682=\"Yes\",'TSA Input'!J2682=\"Contingent\"),'TSA Input'!C2682,\"\"))","v":""},{"$f":"IF('TSA Input'!J2682=\"\",\"\",IF(OR('TSA Input'!J2682=\"Yes\",'TSA Input'!J2682=\"Contingent\"),'TSA Input'!D2682,\"\"))","v":""},{"$f":"IF('TSA Input'!J2682=\"\",\"\",IF(OR('TSA Input'!J2682=\"Yes\",'TSA Input'!J2682=\"Contingent\"),'TSA Input'!G2682,\"\"))","v":""},{"$f":"IF('TSA Input'!J2682=\"\",\"\",IF(OR('TSA Input'!J2682=\"Yes\",'TSA Input'!J2682=\"Contingent\"),'TSA Input'!F2682,\"\"))","v":""},"",{"$f":"IF('TSA Input'!J2682=\"\",\"\",IF(OR('TSA Input'!J2682=\"Yes\",'TSA Input'!J2682=\"Contingent\"),'TSA Input'!D2682,\"\"))","v":""},{"$f":"IF('TSA Input'!J2682=\"\",\"\",IF(OR('TSA Input'!J2682=\"Yes\",'TSA Input'!J2682=\"Contingent\"),'TSA Input'!G2682,\"\"))","v":""},{"$f":"IF('TSA Input'!J2682=\"\",\"\",IF(OR('TSA Input'!J2682=\"Yes\",'TSA Input'!J2682=\"Contingent\"),'TSA Input'!F2682,\"\"))","v":""},"","Required","Required"]
["",null,{"$f":"IF('TSA Input'!J2683=\"\",\"\",IF(OR('TSA Input'!J2683=\"Yes\",'TSA Input'!J2683=\"Contingent\"),'TSA Input'!B2683,\"Ineligible\"))","v":""},{"$f":"IF('TSA Input'!J2683=\"\",\"\",IF(OR('TSA Input'!J2683=\"Yes\",'TSA Input'!J2683=\"Contingent\"),'TSA Input'!I2683,\"\"))","v":""},{"$f":"IF('TSA Input'!J2683=\"\",\"\",IF(OR('TSA Input'!J2683=\"Yes\",'TSA Input'!J2683=\"Contingent\"),'TSA Input'!C2683,\"\"))","v":""},{"$f":"IF('TSA Input'!J2683=\"\",\"\",IF(OR('TSA Input'!J2683=\"Yes\",'TSA Input'!J2683=\"Contingent\"),'TSA Input'!D2683,\"\"))","v":""},{"$f":"IF('TSA Input'!J2683=\"\",\"\",IF(OR('TSA Input'!J2683=\"Yes\",'TSA Input'!J2683=\"Contingent\"),'TSA Input'!G2683,\"\"))","v":""},{"$f":"IF('TSA Input'!J2683=\"\",\"\",IF(OR('TSA Input'!J2683=\"Yes\",'TSA Input'!J2683=\"Contingent\"),'TSA Input'!F2683,\"\"))","v":""},"",{"$f":"IF('TSA Input'!J2683=\"\",\"\",IF(OR('TSA Input'!J2683=\"Yes\",'TSA Input'!J2683=\"Contingent\"),'TSA Input'!D2683,\"\"))","v":""},{"$f":"IF('TSA Input'!J2683=\"\",\"\",IF(OR('TSA Input'!J2683=\"Yes\",'TSA Input'!J2683=\"Contingent\"),'TSA Input'!G2683,\"\"))","v":""},{"$f":"IF('TSA Input'!J2683=\"\",\"\",IF(OR('TSA Input'!J2683=\"Yes\",'TSA Input'!J2683=\"Contingent\"),'TSA Input'!F2683,\"\"))","v":""},"","Required","Required"]
["",null,{"$f":"IF('TSA Input'!J2684=\"\",\"\",IF(OR('TSA Input'!J2684=\"Yes\",'TSA Input'!J2684=\"Contingent\"),'TSA Input'!B2684,\"Ineligible\"))","v":""},{"$f":"IF('TSA Input'!J2684=\"\",\"\",IF(OR('TSA Input'!J2684=\"Yes\",'TSA Input'!J2684=\"Contingent\"),'TSA Input'!I2684,\"\"))","v":""},{"$f":"IF('TSA Input'!J2684=\"\",\"\",IF(OR('TSA Input'!J2684=\"Yes\",'TSA Input'!J2684=\"Contingent\"),'TSA Input'!C2684,\"\"))","v":""},{"$f":"IF('TSA Input'!J2684=\"\",\"\",IF(OR('TSA Input'!J2684=\"Yes\",'TSA Input'!J2684=\"Contingent\"),'TSA Input'!D2684,\"\"))","v":""},{"$f":"IF('TSA Input'!J2684=\"\",\"\",IF(OR('TSA Input'!J2684=\"Yes\",'TSA Input'!J2684=\"Contingent\"),'TSA Input'!G2684,\"\"))","v":""},{"$f":"IF('TSA Input'!J2684=\"\",\"\",IF(OR('TSA Input'!J2684=\"Yes\",'TSA Input'!J2684=\"Contingent\"),'TSA Input'!F2684,\"\"))","v":""},"",{"$f":"IF('TSA Input'!J2684=\"\",\"\",IF(OR('TSA Input'!J2684=\"Yes\",'TSA Input'!J2684=\"Contingent\"),'TSA Input'!D2684,\"\"))","v":""},{"$f":"IF('TSA Input'!J2684=\"\",\"\",IF(OR('TSA Input'!J2684=\"Yes\",'TSA Input'!J2684=\"Contingent\"),'TSA Input'!G2684,\"\"))","v":""},{"$f":"IF('TSA Input'!J2684=\"\",\"\",IF(OR('TSA Input'!J2684=\"Yes\",'TSA Input'!J2684=\"Contingent\"),'TSA Input'!F2684,\"\"))","v":""},"","Required","Required"]
["",null,{"$f":"IF('TSA Input'!J2685=\"\",\"\",IF(OR('TSA Input'!J2685=\"Yes\",'TSA Input'!J2685=\"Contingent\"),'TSA Input'!B2685,\"Ineligible\"))","v":""},{"$f":"IF('TSA Input'!J2685=\"\",\"\",IF(OR('TSA Input'!J2685=\"Yes\",'TSA Input'!J2685=\"Contingent\"),'TSA Input'!I2685,\"\"))","v":""},{"$f":"IF('TSA Input'!J2685=\"\",\"\",IF(OR('TSA Input'!J2685=\"Yes\",'TSA Input'!J2685=\"Contingent\"),'TSA Input'!C2685,\"\"))","v":""},{"$f":"IF('TSA Input'!J2685=\"\",\"\",IF(OR('TSA Input'!J2685=\"Yes\",'TSA Input'!J2685=\"Contingent\"),'TSA Input'!D2685,\"\"))","v":""},{"$f":"IF('TSA Input'!J2685=\"\",\"\",IF(OR('TSA Input'!J2685=\"Yes\",'TSA Input'!J2685=\"Contingent\"),'TSA Input'!G2685,\"\"))","v":""},{"$f":"IF('TSA Input'!J2685=\"\",\"\",IF(OR('TSA Input'!J2685=\"Yes\",'TSA Input'!J2685=\"Contingent\"),'TSA Input'!F2685,\"\"))","v":""},"",{"$f":"IF('TSA Input'!J2685=\"\",\"\",IF(OR('TSA Input'!J2685=\"Yes\",'TSA Input'!J2685=\"Contingent\"),'TSA Input'!D2685,\"\"))","v":""},{"$f":"IF('TSA Input'!J2685=\"\",\"\",IF(OR('TSA Input'!J2685=\"Yes\",'TSA Input'!J2685=\"Contingent\"),'TSA Input'!G2685,\"\"))","v":""},{"$f":"IF('TSA Input'!J2685=\"\",\"\",IF(OR('TSA Input'!J2685=\"Yes\",'TSA Input'!J2685=\"Contingent\"),'TSA Input'!F2685,\"\"))","v":""},"","Required","Required"]
["",null,{"$f":"IF('TSA Input'!J2686=\"\",\"\",IF(OR('TSA Input'!J2686=\"Yes\",'TSA Input'!J2686=\"Contingent\"),'TSA Input'!B2686,\"Ineligible\"))","v":""},{"$f":"IF('TSA Input'!J2686=\"\",\"\",IF(OR('TSA Input'!J2686=\"Yes\",'TSA Input'!J2686=\"Contingent\"),'TSA Input'!I2686,\"\"))","v":""},{"$f":"IF('TSA Input'!J2686=\"\",\"\",IF(OR('TSA Input'!J2686=\"Yes\",'TSA Input'!J2686=\"Contingent\"),'TSA Input'!C2686,\"\"))","v":""},{"$f":"IF('TSA Input'!J2686=\"\",\"\",IF(OR('TSA Input'!J2686=\"Yes\",'TSA Input'!J2686=\"Contingent\"),'TSA Input'!D2686,\"\"))","v":""},{"$f":"IF('TSA Input'!J2686=\"\",\"\",IF(OR('TSA Input'!J2686=\"Yes\",'TSA Input'!J2686=\"Contingent\"),'TSA Input'!G2686,\"\"))","v":""},{"$f":"IF('TSA Input'!J2686=\"\",\"\",IF(OR('TSA Input'!J2686=\"Yes\",'TSA Input'!J2686=\"Contingent\"),'TSA Input'!F2686,\"\"))","v":""},"",{"$f":"IF('TSA Input'!J2686=\"\",\"\",IF(OR('TSA Input'!J2686=\"Yes\",'TSA Input'!J2686=\"Contingent\"),'TSA Input'!D2686,\"\"))","v":""},{"$f":"IF('TSA Input'!J2686=\"\",\"\",IF(OR('TSA Input'!J2686=\"Yes\",'TSA Input'!J2686=\"Contingent\"),'TSA Input'!G2686,\"\"))","v":""},{"$f":"IF('TSA Input'!J2686=\"\",\"\",IF(OR('TSA Input'!J2686=\"Yes\",'TSA Input'!J2686=\"Contingent\"),'TSA Input'!F2686,\"\"))","v":""},"","Required","Required"]
["",null,{"$f":"IF('TSA Input'!J2687=\"\",\"\",IF(OR('TSA Input'!J2687=\"Yes\",'TSA Input'!J2687=\"Contingent\"),'TSA Input'!B2687,\"Ineligible\"))","v":""},{"$f":"IF('TSA Input'!J2687=\"\",\"\",IF(OR('TSA Input'!J2687=\"Yes\",'TSA Input'!J2687=\"Contingent\"),'TSA Input'!I2687,\"\"))","v":""},{"$f":"IF('TSA Input'!J2687=\"\",\"\",IF(OR('TSA Input'!J2687=\"Yes\",'TSA Input'!J2687=\"Contingent\"),'TSA Input'!C2687,\"\"))","v":""},{"$f":"IF('TSA Input'!J2687=\"\",\"\",IF(OR('TSA Input'!J2687=\"Yes\",'TSA Input'!J2687=\"Contingent\"),'TSA Input'!D2687,\"\"))","v":""},{"$f":"IF('TSA Input'!J2687=\"\",\"\",IF(OR('TSA Input'!J2687=\"Yes\",'TSA Input'!J2687=\"Contingent\"),'TSA Input'!G2687,\"\"))","v":""},{"$f":"IF('TSA Input'!J2687=\"\",\"\",IF(OR('TSA Input'!J2687=\"Yes\",'TSA Input'!J2687=\"Contingent\"),'TSA Input'!F2687,\"\"))","v":""},"",{"$f":"IF('TSA Input'!J2687=\"\",\"\",IF(OR('TSA Input'!J2687=\"Yes\",'TSA Input'!J2687=\"Contingent\"),'TSA Input'!D2687,\"\"))","v":""},{"$f":"IF('TSA Input'!J2687=\"\",\"\",IF(OR('TSA Input'!J2687=\"Yes\",'TSA Input'!J2687=\"Contingent\"),'TSA Input'!G2687,\"\"))","v":""},{"$f":"IF('TSA Input'!J2687=\"\",\"\",IF(OR('TSA Input'!J2687=\"Yes\",'TSA Input'!J2687=\"Contingent\"),'TSA Input'!F2687,\"\"))","v":""},"","Required","Required"]
["",null,{"$f":"IF('TSA Input'!J2688=\"\",\"\",IF(OR('TSA Input'!J2688=\"Yes\",'TSA Input'!J2688=\"Contingent\"),'TSA Input'!B2688,\"Ineligible\"))","v":""},{"$f":"IF('TSA Input'!J2688=\"\",\"\",IF(OR('TSA Input'!J2688=\"Yes\",'TSA Input'!J2688=\"Contingent\"),'TSA Input'!I2688,\"\"))","v":""},{"$f":"IF('TSA Input'!J2688=\"\",\"\",IF(OR('TSA Input'!J2688=\"Yes\",'TSA Input'!J2688=\"Contingent\"),'TSA Input'!C2688,\"\"))","v":""},{"$f":"IF('TSA Input'!J2688=\"\",\"\",IF(OR('TSA Input'!J2688=\"Yes\",'TSA Input'!J2688=\"Contingent\"),'TSA Input'!D2688,\"\"))","v":""},{"$f":"IF('TSA Input'!J2688=\"\",\"\",IF(OR('TSA Input'!J2688=\"Yes\",'TSA Input'!J2688=\"Contingent\"),'TSA Input'!G2688,\"\"))","v":""},{"$f":"IF('TSA Input'!J2688=\"\",\"\",IF(OR('TSA Input'!J2688=\"Yes\",'TSA Input'!J2688=\"Contingent\"),'TSA Input'!F2688,\"\"))","v":""},"",{"$f":"IF('TSA Input'!J2688=\"\",\"\",IF(OR('TSA Input'!J2688=\"Yes\",'TSA Input'!J2688=\"Contingent\"),'TSA Input'!D2688,\"\"))","v":""},{"$f":"IF('TSA Input'!J2688=\"\",\"\",IF(OR('TSA Input'!J2688=\"Yes\",'TSA Input'!J2688=\"Contingent\"),'TSA Input'!G2688,\"\"))","v":""},{"$f":"IF('TSA Input'!J2688=\"\",\"\",IF(OR('TSA Input'!J2688=\"Yes\",'TSA Input'!J2688=\"Contingent\"),'TSA Input'!F2688,\"\"))","v":""},"","Required","Required"]
["",null,{"$f":"IF('TSA Input'!J2689=\"\",\"\",IF(OR('TSA Input'!J2689=\"Yes\",'TSA Input'!J2689=\"Contingent\"),'TSA Input'!B2689,\"Ineligible\"))","v":""},{"$f":"IF('TSA Input'!J2689=\"\",\"\",IF(OR('TSA Input'!J2689=\"Yes\",'TSA Input'!J2689=\"Contingent\"),'TSA Input'!I2689,\"\"))","v":""},{"$f":"IF('TSA Input'!J2689=\"\",\"\",IF(OR('TSA Input'!J2689=\"Yes\",'TSA Input'!J2689=\"Contingent\"),'TSA Input'!C2689,\"\"))","v":""},{"$f":"IF('TSA Input'!J2689=\"\",\"\",IF(OR('TSA Input'!J2689=\"Yes\",'TSA Input'!J2689=\"Contingent\"),'TSA Input'!D2689,\"\"))","v":""},{"$f":"IF('TSA Input'!J2689=\"\",\"\",IF(OR('TSA Input'!J2689=\"Yes\",'TSA Input'!J2689=\"Contingent\"),'TSA Input'!G2689,\"\"))","v":""},{"$f":"IF('TSA Input'!J2689=\"\",\"\",IF(OR('TSA Input'!J2689=\"Yes\",'TSA Input'!J2689=\"Contingent\"),'TSA Input'!F2689,\"\"))","v":""},"",{"$f":"IF('TSA Input'!J2689=\"\",\"\",IF(OR('TSA Input'!J2689=\"Yes\",'TSA Input'!J2689=\"Contingent\"),'TSA Input'!D2689,\"\"))","v":""},{"$f":"IF('TSA Input'!J2689=\"\",\"\",IF(OR('TSA Input'!J2689=\"Yes\",'TSA Input'!J2689=\"Contingent\"),'TSA Input'!G2689,\"\"))","v":""},{"$f":"IF('TSA Input'!J2689=\"\",\"\",IF(OR('TSA Input'!J2689=\"Yes\",'TSA Input'!J2689=\"Contingent\"),'TSA Input'!F2689,\"\"))","v":""},"","Required","Required"]
["",null,{"$f":"IF('TSA Input'!J2690=\"\",\"\",IF(OR('TSA Input'!J2690=\"Yes\",'TSA Input'!J2690=\"Contingent\"),'TSA Input'!B2690,\"Ineligible\"))","v":""},{"$f":"IF('TSA Input'!J2690=\"\",\"\",IF(OR('TSA Input'!J2690=\"Yes\",'TSA Input'!J2690=\"Contingent\"),'TSA Input'!I2690,\"\"))","v":""},{"$f":"IF('TSA Input'!J2690=\"\",\"\",IF(OR('TSA Input'!J2690=\"Yes\",'TSA Input'!J2690=\"Contingent\"),'TSA Input'!C2690,\"\"))","v":""},{"$f":"IF('TSA Input'!J2690=\"\",\"\",IF(OR('TSA Input'!J2690=\"Yes\",'TSA Input'!J2690=\"Contingent\"),'TSA Input'!D2690,\"\"))","v":""},{"$f":"IF('TSA Input'!J2690=\"\",\"\",IF(OR('TSA Input'!J2690=\"Yes\",'TSA Input'!J2690=\"Contingent\"),'TSA Input'!G2690,\"\"))","v":""},{"$f":"IF('TSA Input'!J2690=\"\",\"\",IF(OR('TSA Input'!J2690=\"Yes\",'TSA Input'!J2690=\"Contingent\"),'TSA Input'!F2690,\"\"))","v":""},"",{"$f":"IF('TSA Input'!J2690=\"\",\"\",IF(OR('TSA Input'!J2690=\"Yes\",'TSA Input'!J2690=\"Contingent\"),'TSA Input'!D2690,\"\"))","v":""},{"$f":"IF('TSA Input'!J2690=\"\",\"\",IF(OR('TSA Input'!J2690=\"Yes\",'TSA Input'!J2690=\"Contingent\"),'TSA Input'!G2690,\"\"))","v":""},{"$f":"IF('TSA Input'!J2690=\"\",\"\",IF(OR('TSA Input'!J2690=\"Yes\",'TSA Input'!J2690=\"Contingent\"),'TSA Input'!F2690,\"\"))","v":""},"","Required","Required"]
["",null,{"$f":"IF('TSA Input'!J2691=\"\",\"\",IF(OR('TSA Input'!J2691=\"Yes\",'TSA Input'!J2691=\"Contingent\"),'TSA Input'!B2691,\"Ineligible\"))","v":""},{"$f":"IF('TSA Input'!J2691=\"\",\"\",IF(OR('TSA Input'!J2691=\"Yes\",'TSA Input'!J2691=\"Contingent\"),'TSA Input'!I2691,\"\"))","v":""},{"$f":"IF('TSA Input'!J2691=\"\",\"\",IF(OR('TSA Input'!J2691=\"Yes\",'TSA Input'!J2691=\"Contingent\"),'TSA Input'!C2691,\"\"))","v":""},{"$f":"IF('TSA Input'!J2691=\"\",\"\",IF(OR('TSA Input'!J2691=\"Yes\",'TSA Input'!J2691=\"Contingent\"),'TSA Input'!D2691,\"\"))","v":""},{"$f":"IF('TSA Input'!J2691=\"\",\"\",IF(OR('TSA Input'!J2691=\"Yes\",'TSA Input'!J2691=\"Contingent\"),'TSA Input'!G2691,\"\"))","v":""},{"$f":"IF('TSA Input'!J2691=\"\",\"\",IF(OR('TSA Input'!J2691=\"Yes\",'TSA Input'!J2691=\"Contingent\"),'TSA Input'!F2691,\"\"))","v":""},"",{"$f":"IF('TSA Input'!J2691=\"\",\"\",IF(OR('TSA Input'!J2691=\"Yes\",'TSA Input'!J2691=\"Contingent\"),'TSA Input'!D2691,\"\"))","v":""},{"$f":"IF('TSA Input'!J2691=\"\",\"\",IF(OR('TSA Input'!J2691=\"Yes\",'TSA Input'!J2691=\"Contingent\"),'TSA Input'!G2691,\"\"))","v":""},{"$f":"IF('TSA Input'!J2691=\"\",\"\",IF(OR('TSA Input'!J2691=\"Yes\",'TSA Input'!J2691=\"Contingent\"),'TSA Input'!F2691,\"\"))","v":""},"","Required","Required"]
["",null,{"$f":"IF('TSA Input'!J2692=\"\",\"\",IF(OR('TSA Input'!J2692=\"Yes\",'TSA Input'!J2692=\"Contingent\"),'TSA Input'!B2692,\"Ineligible\"))","v":""},{"$f":"IF('TSA Input'!J2692=\"\",\"\",IF(OR('TSA Input'!J2692=\"Yes\",'TSA Input'!J2692=\"Contingent\"),'TSA Input'!I2692,\"\"))","v":""},{"$f":"IF('TSA Input'!J2692=\"\",\"\",IF(OR('TSA Input'!J2692=\"Yes\",'TSA Input'!J2692=\"Contingent\"),'TSA Input'!C2692,\"\"))","v":""},{"$f":"IF('TSA Input'!J2692=\"\",\"\",IF(OR('TSA Input'!J2692=\"Yes\",'TSA Input'!J2692=\"Contingent\"),'TSA Input'!D2692,\"\"))","v":""},{"$f":"IF('TSA Input'!J2692=\"\",\"\",IF(OR('TSA Input'!J2692=\"Yes\",'TSA Input'!J2692=\"Contingent\"),'TSA Input'!G2692,\"\"))","v":""},{"$f":"IF('TSA Input'!J2692=\"\",\"\",IF(OR('TSA Input'!J2692=\"Yes\",'TSA Input'!J2692=\"Contingent\"),'TSA Input'!F2692,\"\"))","v":""},{"$f":"IF($C2730=\"\",\"\",SUM(F2730:H2730))","v":""},{"$f":"IF('TSA Input'!J2692=\"\",\"\",IF(OR('TSA Input'!J2692=\"Yes\",'TSA Input'!J2692=\"Contingent\"),'TSA Input'!D2692,\"\"))","v":""},{"$f":"IF('TSA Input'!J2692=\"\",\"\",IF(OR('TSA Input'!J2692=\"Yes\",'TSA Input'!J2692=\"Contingent\"),'TSA Input'!G2692,\"\"))","v":""},{"$f":"IF('TSA Input'!J2692=\"\",\"\",IF(OR('TSA Input'!J2692=\"Yes\",'TSA Input'!J2692=\"Contingent\"),'TSA Input'!F2692,\"\"))","v":""},{"$f":"IF($C2730=\"\",\"\",SUM(J2730:L2730))","v":""},"Required","Required"]
["",null,{"$f":"IF('TSA Input'!J2693=\"\",\"\",IF(OR('TSA Input'!J2693=\"Yes\",'TSA Input'!J2693=\"Contingent\"),'TSA Input'!B2693,\"Ineligible\"))","v":""},{"$f":"IF('TSA Input'!J2693=\"\",\"\",IF(OR('TSA Input'!J2693=\"Yes\",'TSA Input'!J2693=\"Contingent\"),'TSA Input'!I2693,\"\"))","v":""},{"$f":"IF('TSA Input'!J2693=\"\",\"\",IF(OR('TSA Input'!J2693=\"Yes\",'TSA Input'!J2693=\"Contingent\"),'TSA Input'!C2693,\"\"))","v":""},{"$f":"IF('TSA Input'!J2693=\"\",\"\",IF(OR('TSA Input'!J2693=\"Yes\",'TSA Input'!J2693=\"Contingent\"),'TSA Input'!D2693,\"\"))","v":""},{"$f":"IF('TSA Input'!J2693=\"\",\"\",IF(OR('TSA Input'!J2693=\"Yes\",'TSA Input'!J2693=\"Contingent\"),'TSA Input'!G2693,\"\"))","v":""},{"$f":"IF('TSA Input'!J2693=\"\",\"\",IF(OR('TSA Input'!J2693=\"Yes\",'TSA Input'!J2693=\"Contingent\"),'TSA Input'!F2693,\"\"))","v":""},"",{"$f":"IF('TSA Input'!J2693=\"\",\"\",IF(OR('TSA Input'!J2693=\"Yes\",'TSA Input'!J2693=\"Contingent\"),'TSA Input'!D2693,\"\"))","v":""},{"$f":"IF('TSA Input'!J2693=\"\",\"\",IF(OR('TSA Input'!J2693=\"Yes\",'TSA Input'!J2693=\"Contingent\"),'TSA Input'!G2693,\"\"))","v":""},{"$f":"IF('TSA Input'!J2693=\"\",\"\",IF(OR('TSA Input'!J2693=\"Yes\",'TSA Input'!J2693=\"Contingent\"),'TSA Input'!F2693,\"\"))","v":""},"","Required","Required"]
["",null,{"$f":"IF('TSA Input'!J2694=\"\",\"\",IF(OR('TSA Input'!J2694=\"Yes\",'TSA Input'!J2694=\"Contingent\"),'TSA Input'!B2694,\"Ineligible\"))","v":""},{"$f":"IF('TSA Input'!J2694=\"\",\"\",IF(OR('TSA Input'!J2694=\"Yes\",'TSA Input'!J2694=\"Contingent\"),'TSA Input'!I2694,\"\"))","v":""},{"$f":"IF('TSA Input'!J2694=\"\",\"\",IF(OR('TSA Input'!J2694=\"Yes\",'TSA Input'!J2694=\"Contingent\"),'TSA Input'!C2694,\"\"))","v":""},{"$f":"IF('TSA Input'!J2694=\"\",\"\",IF(OR('TSA Input'!J2694=\"Yes\",'TSA Input'!J2694=\"Contingent\"),'TSA Input'!D2694,\"\"))","v":""},{"$f":"IF('TSA Input'!J2694=\"\",\"\",IF(OR('TSA Input'!J2694=\"Yes\",'TSA Input'!J2694=\"Contingent\"),'TSA Input'!G2694,\"\"))","v":""},{"$f":"IF('TSA Input'!J2694=\"\",\"\",IF(OR('TSA Input'!J2694=\"Yes\",'TSA Input'!J2694=\"Contingent\"),'TSA Input'!F2694,\"\"))","v":""},"",{"$f":"IF('TSA Input'!J2694=\"\",\"\",IF(OR('TSA Input'!J2694=\"Yes\",'TSA Input'!J2694=\"Contingent\"),'TSA Input'!D2694,\"\"))","v":""},{"$f":"IF('TSA Input'!J2694=\"\",\"\",IF(OR('TSA Input'!J2694=\"Yes\",'TSA Input'!J2694=\"Contingent\"),'TSA Input'!G2694,\"\"))","v":""},{"$f":"IF('TSA Input'!J2694=\"\",\"\",IF(OR('TSA Input'!J2694=\"Yes\",'TSA Input'!J2694=\"Contingent\"),'TSA Input'!F2694,\"\"))","v":""},"","Required","Required"]
["",null,{"$f":"IF('TSA Input'!J2695=\"\",\"\",IF(OR('TSA Input'!J2695=\"Yes\",'TSA Input'!J2695=\"Contingent\"),'TSA Input'!B2695,\"Ineligible\"))","v":""},{"$f":"IF('TSA Input'!J2695=\"\",\"\",IF(OR('TSA Input'!J2695=\"Yes\",'TSA Input'!J2695=\"Contingent\"),'TSA Input'!I2695,\"\"))","v":""},{"$f":"IF('TSA Input'!J2695=\"\",\"\",IF(OR('TSA Input'!J2695=\"Yes\",'TSA Input'!J2695=\"Contingent\"),'TSA Input'!C2695,\"\"))","v":""},{"$f":"IF('TSA Input'!J2695=\"\",\"\",IF(OR('TSA Input'!J2695=\"Yes\",'TSA Input'!J2695=\"Contingent\"),'TSA Input'!D2695,\"\"))","v":""},{"$f":"IF('TSA Input'!J2695=\"\",\"\",IF(OR('TSA Input'!J2695=\"Yes\",'TSA Input'!J2695=\"Contingent\"),'TSA Input'!G2695,\"\"))","v":""},{"$f":"IF('TSA Input'!J2695=\"\",\"\",IF(OR('TSA Input'!J2695=\"Yes\",'TSA Input'!J2695=\"Contingent\"),'TSA Input'!F2695,\"\"))","v":""},"",{"$f":"IF('TSA Input'!J2695=\"\",\"\",IF(OR('TSA Input'!J2695=\"Yes\",'TSA Input'!J2695=\"Contingent\"),'TSA Input'!D2695,\"\"))","v":""},{"$f":"IF('TSA Input'!J2695=\"\",\"\",IF(OR('TSA Input'!J2695=\"Yes\",'TSA Input'!J2695=\"Contingent\"),'TSA Input'!G2695,\"\"))","v":""},{"$f":"IF('TSA Input'!J2695=\"\",\"\",IF(OR('TSA Input'!J2695=\"Yes\",'TSA Input'!J2695=\"Contingent\"),'TSA Input'!F2695,\"\"))","v":""},"","Required","Required"]
["",null,{"$f":"IF('TSA Input'!J2696=\"\",\"\",IF(OR('TSA Input'!J2696=\"Yes\",'TSA Input'!J2696=\"Contingent\"),'TSA Input'!B2696,\"Ineligible\"))","v":""},{"$f":"IF('TSA Input'!J2696=\"\",\"\",IF(OR('TSA Input'!J2696=\"Yes\",'TSA Input'!J2696=\"Contingent\"),'TSA Input'!I2696,\"\"))","v":""},{"$f":"IF('TSA Input'!J2696=\"\",\"\",IF(OR('TSA Input'!J2696=\"Yes\",'TSA Input'!J2696=\"Contingent\"),'TSA Input'!C2696,\"\"))","v":""},{"$f":"IF('TSA Input'!J2696=\"\",\"\",IF(OR('TSA Input'!J2696=\"Yes\",'TSA Input'!J2696=\"Contingent\"),'TSA Input'!D2696,\"\"))","v":""},{"$f":"IF('TSA Input'!J2696=\"\",\"\",IF(OR('TSA Input'!J2696=\"Yes\",'TSA Input'!J2696=\"Contingent\"),'TSA Input'!G2696,\"\"))","v":""},{"$f":"IF('TSA Input'!J2696=\"\",\"\",IF(OR('TSA Input'!J2696=\"Yes\",'TSA Input'!J2696=\"Contingent\"),'TSA Input'!F2696,\"\"))","v":""},"",{"$f":"IF('TSA Input'!J2696=\"\",\"\",IF(OR('TSA Input'!J2696=\"Yes\",'TSA Input'!J2696=\"Contingent\"),'TSA Input'!D2696,\"\"))","v":""},{"$f":"IF('TSA Input'!J2696=\"\",\"\",IF(OR('TSA Input'!J2696=\"Yes\",'TSA Input'!J2696=\"Contingent\"),'TSA Input'!G2696,\"\"))","v":""},{"$f":"IF('TSA Input'!J2696=\"\",\"\",IF(OR('TSA Input'!J2696=\"Yes\",'TSA Input'!J2696=\"Contingent\"),'TSA Input'!F2696,\"\"))","v":""},"","Required","Required"]
["",null,{"$f":"IF('TSA Input'!J2697=\"\",\"\",IF(OR('TSA Input'!J2697=\"Yes\",'TSA Input'!J2697=\"Contingent\"),'TSA Input'!B2697,\"Ineligible\"))","v":""},{"$f":"IF('TSA Input'!J2697=\"\",\"\",IF(OR('TSA Input'!J2697=\"Yes\",'TSA Input'!J2697=\"Contingent\"),'TSA Input'!I2697,\"\"))","v":""},{"$f":"IF('TSA Input'!J2697=\"\",\"\",IF(OR('TSA Input'!J2697=\"Yes\",'TSA Input'!J2697=\"Contingent\"),'TSA Input'!C2697,\"\"))","v":""},{"$f":"IF('TSA Input'!J2697=\"\",\"\",IF(OR('TSA Input'!J2697=\"Yes\",'TSA Input'!J2697=\"Contingent\"),'TSA Input'!D2697,\"\"))","v":""},{"$f":"IF('TSA Input'!J2697=\"\",\"\",IF(OR('TSA Input'!J2697=\"Yes\",'TSA Input'!J2697=\"Contingent\"),'TSA Input'!G2697,\"\"))","v":""},{"$f":"IF('TSA Input'!J2697=\"\",\"\",IF(OR('TSA Input'!J2697=\"Yes\",'TSA Input'!J2697=\"Contingent\"),'TSA Input'!F2697,\"\"))","v":""},"",{"$f":"IF('TSA Input'!J2697=\"\",\"\",IF(OR('TSA Input'!J2697=\"Yes\",'TSA Input'!J2697=\"Contingent\"),'TSA Input'!D2697,\"\"))","v":""},{"$f":"IF('TSA Input'!J2697=\"\",\"\",IF(OR('TSA Input'!J2697=\"Yes\",'TSA Input'!J2697=\"Contingent\"),'TSA Input'!G2697,\"\"))","v":""},{"$f":"IF('TSA Input'!J2697=\"\",\"\",IF(OR('TSA Input'!J2697=\"Yes\",'TSA Input'!J2697=\"Contingent\"),'TSA Input'!F2697,\"\"))","v":""},"","Required","Required"]
["",null,{"$f":"IF('TSA Input'!J2698=\"\",\"\",IF(OR('TSA Input'!J2698=\"Yes\",'TSA Input'!J2698=\"Contingent\"),'TSA Input'!B2698,\"Ineligible\"))","v":""},{"$f":"IF('TSA Input'!J2698=\"\",\"\",IF(OR('TSA Input'!J2698=\"Yes\",'TSA Input'!J2698=\"Contingent\"),'TSA Input'!I2698,\"\"))","v":""},{"$f":"IF('TSA Input'!J2698=\"\",\"\",IF(OR('TSA Input'!J2698=\"Yes\",'TSA Input'!J2698=\"Contingent\"),'TSA Input'!C2698,\"\"))","v":""},{"$f":"IF('TSA Input'!J2698=\"\",\"\",IF(OR('TSA Input'!J2698=\"Yes\",'TSA Input'!J2698=\"Contingent\"),'TSA Input'!D2698,\"\"))","v":""},{"$f":"IF('TSA Input'!J2698=\"\",\"\",IF(OR('TSA Input'!J2698=\"Yes\",'TSA Input'!J2698=\"Contingent\"),'TSA Input'!G2698,\"\"))","v":""},{"$f":"IF('TSA Input'!J2698=\"\",\"\",IF(OR('TSA Input'!J2698=\"Yes\",'TSA Input'!J2698=\"Contingent\"),'TSA Input'!F2698,\"\"))","v":""},"",{"$f":"IF('TSA Input'!J2698=\"\",\"\",IF(OR('TSA Input'!J2698=\"Yes\",'TSA Input'!J2698=\"Contingent\"),'TSA Input'!D2698,\"\"))","v":""},{"$f":"IF('TSA Input'!J2698=\"\",\"\",IF(OR('TSA Input'!J2698=\"Yes\",'TSA Input'!J2698=\"Contingent\"),'TSA Input'!G2698,\"\"))","v":""},{"$f":"IF('TSA Input'!J2698=\"\",\"\",IF(OR('TSA Input'!J2698=\"Yes\",'TSA Input'!J2698=\"Contingent\"),'TSA Input'!F2698,\"\"))","v":""},"","Required","Required"]
["",null,{"$f":"IF('TSA Input'!J2699=\"\",\"\",IF(OR('TSA Input'!J2699=\"Yes\",'TSA Input'!J2699=\"Contingent\"),'TSA Input'!B2699,\"Ineligible\"))","v":""},{"$f":"IF('TSA Input'!J2699=\"\",\"\",IF(OR('TSA Input'!J2699=\"Yes\",'TSA Input'!J2699=\"Contingent\"),'TSA Input'!I2699,\"\"))","v":""},{"$f":"IF('TSA Input'!J2699=\"\",\"\",IF(OR('TSA Input'!J2699=\"Yes\",'TSA Input'!J2699=\"Contingent\"),'TSA Input'!C2699,\"\"))","v":""},{"$f":"IF('TSA Input'!J2699=\"\",\"\",IF(OR('TSA Input'!J2699=\"Yes\",'TSA Input'!J2699=\"Contingent\"),'TSA Input'!D2699,\"\"))","v":""},{"$f":"IF('TSA Input'!J2699=\"\",\"\",IF(OR('TSA Input'!J2699=\"Yes\",'TSA Input'!J2699=\"Contingent\"),'TSA Input'!G2699,\"\"))","v":""},{"$f":"IF('TSA Input'!J2699=\"\",\"\",IF(OR('TSA Input'!J2699=\"Yes\",'TSA Input'!J2699=\"Contingent\"),'TSA Input'!F2699,\"\"))","v":""},"",{"$f":"IF('TSA Input'!J2699=\"\",\"\",IF(OR('TSA Input'!J2699=\"Yes\",'TSA Input'!J2699=\"Contingent\"),'TSA Input'!D2699,\"\"))","v":""},{"$f":"IF('TSA Input'!J2699=\"\",\"\",IF(OR('TSA Input'!J2699=\"Yes\",'TSA Input'!J2699=\"Contingent\"),'TSA Input'!G2699,\"\"))","v":""},{"$f":"IF('TSA Input'!J2699=\"\",\"\",IF(OR('TSA Input'!J2699=\"Yes\",'TSA Input'!J2699=\"Contingent\"),'TSA Input'!F2699,\"\"))","v":""},"","Required","Required"]
["",null,{"$f":"IF('TSA Input'!J2700=\"\",\"\",IF(OR('TSA Input'!J2700=\"Yes\",'TSA Input'!J2700=\"Contingent\"),'TSA Input'!B2700,\"Ineligible\"))","v":""},{"$f":"IF('TSA Input'!J2700=\"\",\"\",IF(OR('TSA Input'!J2700=\"Yes\",'TSA Input'!J2700=\"Contingent\"),'TSA Input'!I2700,\"\"))","v":""},{"$f":"IF('TSA Input'!J2700=\"\",\"\",IF(OR('TSA Input'!J2700=\"Yes\",'TSA Input'!J2700=\"Contingent\"),'TSA Input'!C2700,\"\"))","v":""},{"$f":"IF('TSA Input'!J2700=\"\",\"\",IF(OR('TSA Input'!J2700=\"Yes\",'TSA Input'!J2700=\"Contingent\"),'TSA Input'!D2700,\"\"))","v":""},{"$f":"IF('TSA Input'!J2700=\"\",\"\",IF(OR('TSA Input'!J2700=\"Yes\",'TSA Input'!J2700=\"Contingent\"),'TSA Input'!G2700,\"\"))","v":""},{"$f":"IF('TSA Input'!J2700=\"\",\"\",IF(OR('TSA Input'!J2700=\"Yes\",'TSA Input'!J2700=\"Contingent\"),'TSA Input'!F2700,\"\"))","v":""},"",{"$f":"IF('TSA Input'!J2700=\"\",\"\",IF(OR('TSA Input'!J2700=\"Yes\",'TSA Input'!J2700=\"Contingent\"),'TSA Input'!D2700,\"\"))","v":""},{"$f":"IF('TSA Input'!J2700=\"\",\"\",IF(OR('TSA Input'!J2700=\"Yes\",'TSA Input'!J2700=\"Contingent\"),'TSA Input'!G2700,\"\"))","v":""},{"$f":"IF('TSA Input'!J2700=\"\",\"\",IF(OR('TSA Input'!J2700=\"Yes\",'TSA Input'!J2700=\"Contingent\"),'TSA Input'!F2700,\"\"))","v":""},"","Required","Required"]
["",null,{"$f":"IF('TSA Input'!J2701=\"\",\"\",IF(OR('TSA Input'!J2701=\"Yes\",'TSA Input'!J2701=\"Contingent\"),'TSA Input'!B2701,\"Ineligible\"))","v":""},{"$f":"IF('TSA Input'!J2701=\"\",\"\",IF(OR('TSA Input'!J2701=\"Yes\",'TSA Input'!J2701=\"Contingent\"),'TSA Input'!I2701,\"\"))","v":""},{"$f":"IF('TSA Input'!J2701=\"\",\"\",IF(OR('TSA Input'!J2701=\"Yes\",'TSA Input'!J2701=\"Contingent\"),'TSA Input'!C2701,\"\"))","v":""},{"$f":"IF('TSA Input'!J2701=\"\",\"\",IF(OR('TSA Input'!J2701=\"Yes\",'TSA Input'!J2701=\"Contingent\"),'TSA Input'!D2701,\"\"))","v":""},{"$f":"IF('TSA Input'!J2701=\"\",\"\",IF(OR('TSA Input'!J2701=\"Yes\",'TSA Input'!J2701=\"Contingent\"),'TSA Input'!G2701,\"\"))","v":""},{"$f":"IF('TSA Input'!J2701=\"\",\"\",IF(OR('TSA Input'!J2701=\"Yes\",'TSA Input'!J2701=\"Contingent\"),'TSA Input'!F2701,\"\"))","v":""},"",{"$f":"IF('TSA Input'!J2701=\"\",\"\",IF(OR('TSA Input'!J2701=\"Yes\",'TSA Input'!J2701=\"Contingent\"),'TSA Input'!D2701,\"\"))","v":""},{"$f":"IF('TSA Input'!J2701=\"\",\"\",IF(OR('TSA Input'!J2701=\"Yes\",'TSA Input'!J2701=\"Contingent\"),'TSA Input'!G2701,\"\"))","v":""},{"$f":"IF('TSA Input'!J2701=\"\",\"\",IF(OR('TSA Input'!J2701=\"Yes\",'TSA Input'!J2701=\"Contingent\"),'TSA Input'!F2701,\"\"))","v":""},"","Required","Required"]
["",null,{"$f":"IF('TSA Input'!J2702=\"\",\"\",IF(OR('TSA Input'!J2702=\"Yes\",'TSA Input'!J2702=\"Contingent\"),'TSA Input'!B2702,\"Ineligible\"))","v":""},{"$f":"IF('TSA Input'!J2702=\"\",\"\",IF(OR('TSA Input'!J2702=\"Yes\",'TSA Input'!J2702=\"Contingent\"),'TSA Input'!I2702,\"\"))","v":""},{"$f":"IF('TSA Input'!J2702=\"\",\"\",IF(OR('TSA Input'!J2702=\"Yes\",'TSA Input'!J2702=\"Contingent\"),'TSA Input'!C2702,\"\"))","v":""},{"$f":"IF('TSA Input'!J2702=\"\",\"\",IF(OR('TSA Input'!J2702=\"Yes\",'TSA Input'!J2702=\"Contingent\"),'TSA Input'!D2702,\"\"))","v":""},{"$f":"IF('TSA Input'!J2702=\"\",\"\",IF(OR('TSA Input'!J2702=\"Yes\",'TSA Input'!J2702=\"Contingent\"),'TSA Input'!G2702,\"\"))","v":""},{"$f":"IF('TSA Input'!J2702=\"\",\"\",IF(OR('TSA Input'!J2702=\"Yes\",'TSA Input'!J2702=\"Contingent\"),'TSA Input'!F2702,\"\"))","v":""},"",{"$f":"IF('TSA Input'!J2702=\"\",\"\",IF(OR('TSA Input'!J2702=\"Yes\",'TSA Input'!J2702=\"Contingent\"),'TSA Input'!D2702,\"\"))","v":""},{"$f":"IF('TSA Input'!J2702=\"\",\"\",IF(OR('TSA Input'!J2702=\"Yes\",'TSA Input'!J2702=\"Contingent\"),'TSA Input'!G2702,\"\"))","v":""},{"$f":"IF('TSA Input'!J2702=\"\",\"\",IF(OR('TSA Input'!J2702=\"Yes\",'TSA Input'!J2702=\"Contingent\"),'TSA Input'!F2702,\"\"))","v":""},"","Required","Required"]
["",null,{"$f":"IF('TSA Input'!J2703=\"\",\"\",IF(OR('TSA Input'!J2703=\"Yes\",'TSA Input'!J2703=\"Contingent\"),'TSA Input'!B2703,\"Ineligible\"))","v":""},{"$f":"IF('TSA Input'!J2703=\"\",\"\",IF(OR('TSA Input'!J2703=\"Yes\",'TSA Input'!J2703=\"Contingent\"),'TSA Input'!I2703,\"\"))","v":""},{"$f":"IF('TSA Input'!J2703=\"\",\"\",IF(OR('TSA Input'!J2703=\"Yes\",'TSA Input'!J2703=\"Contingent\"),'TSA Input'!C2703,\"\"))","v":""},{"$f":"IF('TSA Input'!J2703=\"\",\"\",IF(OR('TSA Input'!J2703=\"Yes\",'TSA Input'!J2703=\"Contingent\"),'TSA Input'!D2703,\"\"))","v":""},{"$f":"IF('TSA Input'!J2703=\"\",\"\",IF(OR('TSA Input'!J2703=\"Yes\",'TSA Input'!J2703=\"Contingent\"),'TSA Input'!G2703,\"\"))","v":""},{"$f":"IF('TSA Input'!J2703=\"\",\"\",IF(OR('TSA Input'!J2703=\"Yes\",'TSA Input'!J2703=\"Contingent\"),'TSA Input'!F2703,\"\"))","v":""},"",{"$f":"IF('TSA Input'!J2703=\"\",\"\",IF(OR('TSA Input'!J2703=\"Yes\",'TSA Input'!J2703=\"Contingent\"),'TSA Input'!D2703,\"\"))","v":""},{"$f":"IF('TSA Input'!J2703=\"\",\"\",IF(OR('TSA Input'!J2703=\"Yes\",'TSA Input'!J2703=\"Contingent\"),'TSA Input'!G2703,\"\"))","v":""},{"$f":"IF('TSA Input'!J2703=\"\",\"\",IF(OR('TSA Input'!J2703=\"Yes\",'TSA Input'!J2703=\"Contingent\"),'TSA Input'!F2703,\"\"))","v":""},"","Required","Required"]
["",null,{"$f":"IF('TSA Input'!J2704=\"\",\"\",IF(OR('TSA Input'!J2704=\"Yes\",'TSA Input'!J2704=\"Contingent\"),'TSA Input'!B2704,\"Ineligible\"))","v":""},{"$f":"IF('TSA Input'!J2704=\"\",\"\",IF(OR('TSA Input'!J2704=\"Yes\",'TSA Input'!J2704=\"Contingent\"),'TSA Input'!I2704,\"\"))","v":""},{"$f":"IF('TSA Input'!J2704=\"\",\"\",IF(OR('TSA Input'!J2704=\"Yes\",'TSA Input'!J2704=\"Contingent\"),'TSA Input'!C2704,\"\"))","v":""},{"$f":"IF('TSA Input'!J2704=\"\",\"\",IF(OR('TSA Input'!J2704=\"Yes\",'TSA Input'!J2704=\"Contingent\"),'TSA Input'!D2704,\"\"))","v":""},{"$f":"IF('TSA Input'!J2704=\"\",\"\",IF(OR('TSA Input'!J2704=\"Yes\",'TSA Input'!J2704=\"Contingent\"),'TSA Input'!G2704,\"\"))","v":""},{"$f":"IF('TSA Input'!J2704=\"\",\"\",IF(OR('TSA Input'!J2704=\"Yes\",'TSA Input'!J2704=\"Contingent\"),'TSA Input'!F2704,\"\"))","v":""},"",{"$f":"IF('TSA Input'!J2704=\"\",\"\",IF(OR('TSA Input'!J2704=\"Yes\",'TSA Input'!J2704=\"Contingent\"),'TSA Input'!D2704,\"\"))","v":""},{"$f":"IF('TSA Input'!J2704=\"\",\"\",IF(OR('TSA Input'!J2704=\"Yes\",'TSA Input'!J2704=\"Contingent\"),'TSA Input'!G2704,\"\"))","v":""},{"$f":"IF('TSA Input'!J2704=\"\",\"\",IF(OR('TSA Input'!J2704=\"Yes\",'TSA Input'!J2704=\"Contingent\"),'TSA Input'!F2704,\"\"))","v":""},"","Required","Required"]
["",null,{"$f":"IF('TSA Input'!J2705=\"\",\"\",IF(OR('TSA Input'!J2705=\"Yes\",'TSA Input'!J2705=\"Contingent\"),'TSA Input'!B2705,\"Ineligible\"))","v":""},{"$f":"IF('TSA Input'!J2705=\"\",\"\",IF(OR('TSA Input'!J2705=\"Yes\",'TSA Input'!J2705=\"Contingent\"),'TSA Input'!I2705,\"\"))","v":""},{"$f":"IF('TSA Input'!J2705=\"\",\"\",IF(OR('TSA Input'!J2705=\"Yes\",'TSA Input'!J2705=\"Contingent\"),'TSA Input'!C2705,\"\"))","v":""},{"$f":"IF('TSA Input'!J2705=\"\",\"\",IF(OR('TSA Input'!J2705=\"Yes\",'TSA Input'!J2705=\"Contingent\"),'TSA Input'!D2705,\"\"))","v":""},{"$f":"IF('TSA Input'!J2705=\"\",\"\",IF(OR('TSA Input'!J2705=\"Yes\",'TSA Input'!J2705=\"Contingent\"),'TSA Input'!G2705,\"\"))","v":""},{"$f":"IF('TSA Input'!J2705=\"\",\"\",IF(OR('TSA Input'!J2705=\"Yes\",'TSA Input'!J2705=\"Contingent\"),'TSA Input'!F2705,\"\"))","v":""},"",{"$f":"IF('TSA Input'!J2705=\"\",\"\",IF(OR('TSA Input'!J2705=\"Yes\",'TSA Input'!J2705=\"Contingent\"),'TSA Input'!D2705,\"\"))","v":""},{"$f":"IF('TSA Input'!J2705=\"\",\"\",IF(OR('TSA Input'!J2705=\"Yes\",'TSA Input'!J2705=\"Contingent\"),'TSA Input'!G2705,\"\"))","v":""},{"$f":"IF('TSA Input'!J2705=\"\",\"\",IF(OR('TSA Input'!J2705=\"Yes\",'TSA Input'!J2705=\"Contingent\"),'TSA Input'!F2705,\"\"))","v":""},"","Required","Required"]
["",null,{"$f":"IF('TSA Input'!J2706=\"\",\"\",IF(OR('TSA Input'!J2706=\"Yes\",'TSA Input'!J2706=\"Contingent\"),'TSA Input'!B2706,\"Ineligible\"))","v":""},{"$f":"IF('TSA Input'!J2706=\"\",\"\",IF(OR('TSA Input'!J2706=\"Yes\",'TSA Input'!J2706=\"Contingent\"),'TSA Input'!I2706,\"\"))","v":""},{"$f":"IF('TSA Input'!J2706=\"\",\"\",IF(OR('TSA Input'!J2706=\"Yes\",'TSA Input'!J2706=\"Contingent\"),'TSA Input'!C2706,\"\"))","v":""},{"$f":"IF('TSA Input'!J2706=\"\",\"\",IF(OR('TSA Input'!J2706=\"Yes\",'TSA Input'!J2706=\"Contingent\"),'TSA Input'!D2706,\"\"))","v":""},{"$f":"IF('TSA Input'!J2706=\"\",\"\",IF(OR('TSA Input'!J2706=\"Yes\",'TSA Input'!J2706=\"Contingent\"),'TSA Input'!G2706,\"\"))","v":""},{"$f":"IF('TSA Input'!J2706=\"\",\"\",IF(OR('TSA Input'!J2706=\"Yes\",'TSA Input'!J2706=\"Contingent\"),'TSA Input'!F2706,\"\"))","v":""},"",{"$f":"IF('TSA Input'!J2706=\"\",\"\",IF(OR('TSA Input'!J2706=\"Yes\",'TSA Input'!J2706=\"Contingent\"),'TSA Input'!D2706,\"\"))","v":""},{"$f":"IF('TSA Input'!J2706=\"\",\"\",IF(OR('TSA Input'!J2706=\"Yes\",'TSA Input'!J2706=\"Contingent\"),'TSA Input'!G2706,\"\"))","v":""},{"$f":"IF('TSA Input'!J2706=\"\",\"\",IF(OR('TSA Input'!J2706=\"Yes\",'TSA Input'!J2706=\"Contingent\"),'TSA Input'!F2706,\"\"))","v":""},"","Required","Required"]
["",null,{"$f":"IF('TSA Input'!J2707=\"\",\"\",IF(OR('TSA Input'!J2707=\"Yes\",'TSA Input'!J2707=\"Contingent\"),'TSA Input'!B2707,\"Ineligible\"))","v":""},{"$f":"IF('TSA Input'!J2707=\"\",\"\",IF(OR('TSA Input'!J2707=\"Yes\",'TSA Input'!J2707=\"Contingent\"),'TSA Input'!I2707,\"\"))","v":""},{"$f":"IF('TSA Input'!J2707=\"\",\"\",IF(OR('TSA Input'!J2707=\"Yes\",'TSA Input'!J2707=\"Contingent\"),'TSA Input'!C2707,\"\"))","v":""},{"$f":"IF('TSA Input'!J2707=\"\",\"\",IF(OR('TSA Input'!J2707=\"Yes\",'TSA Input'!J2707=\"Contingent\"),'TSA Input'!D2707,\"\"))","v":""},{"$f":"IF('TSA Input'!J2707=\"\",\"\",IF(OR('TSA Input'!J2707=\"Yes\",'TSA Input'!J2707=\"Contingent\"),'TSA Input'!G2707,\"\"))","v":""},{"$f":"IF('TSA Input'!J2707=\"\",\"\",IF(OR('TSA Input'!J2707=\"Yes\",'TSA Input'!J2707=\"Contingent\"),'TSA Input'!F2707,\"\"))","v":""},"",{"$f":"IF('TSA Input'!J2707=\"\",\"\",IF(OR('TSA Input'!J2707=\"Yes\",'TSA Input'!J2707=\"Contingent\"),'TSA Input'!D2707,\"\"))","v":""},{"$f":"IF('TSA Input'!J2707=\"\",\"\",IF(OR('TSA Input'!J2707=\"Yes\",'TSA Input'!J2707=\"Contingent\"),'TSA Input'!G2707,\"\"))","v":""},{"$f":"IF('TSA Input'!J2707=\"\",\"\",IF(OR('TSA Input'!J2707=\"Yes\",'TSA Input'!J2707=\"Contingent\"),'TSA Input'!F2707,\"\"))","v":""},"","Required","Required"]
["",null,{"$f":"IF('TSA Input'!J2708=\"\",\"\",IF(OR('TSA Input'!J2708=\"Yes\",'TSA Input'!J2708=\"Contingent\"),'TSA Input'!B2708,\"Ineligible\"))","v":""},{"$f":"IF('TSA Input'!J2708=\"\",\"\",IF(OR('TSA Input'!J2708=\"Yes\",'TSA Input'!J2708=\"Contingent\"),'TSA Input'!I2708,\"\"))","v":""},{"$f":"IF('TSA Input'!J2708=\"\",\"\",IF(OR('TSA Input'!J2708=\"Yes\",'TSA Input'!J2708=\"Contingent\"),'TSA Input'!C2708,\"\"))","v":""},{"$f":"IF('TSA Input'!J2708=\"\",\"\",IF(OR('TSA Input'!J2708=\"Yes\",'TSA Input'!J2708=\"Contingent\"),'TSA Input'!D2708,\"\"))","v":""},{"$f":"IF('TSA Input'!J2708=\"\",\"\",IF(OR('TSA Input'!J2708=\"Yes\",'TSA Input'!J2708=\"Contingent\"),'TSA Input'!G2708,\"\"))","v":""},{"$f":"IF('TSA Input'!J2708=\"\",\"\",IF(OR('TSA Input'!J2708=\"Yes\",'TSA Input'!J2708=\"Contingent\"),'TSA Input'!F2708,\"\"))","v":""},"",{"$f":"IF('TSA Input'!J2708=\"\",\"\",IF(OR('TSA Input'!J2708=\"Yes\",'TSA Input'!J2708=\"Contingent\"),'TSA Input'!D2708,\"\"))","v":""},{"$f":"IF('TSA Input'!J2708=\"\",\"\",IF(OR('TSA Input'!J2708=\"Yes\",'TSA Input'!J2708=\"Contingent\"),'TSA Input'!G2708,\"\"))","v":""},{"$f":"IF('TSA Input'!J2708=\"\",\"\",IF(OR('TSA Input'!J2708=\"Yes\",'TSA Input'!J2708=\"Contingent\"),'TSA Input'!F2708,\"\"))","v":""},"","Required","Required"]
["",null,{"$f":"IF('TSA Input'!J2709=\"\",\"\",IF(OR('TSA Input'!J2709=\"Yes\",'TSA Input'!J2709=\"Contingent\"),'TSA Input'!B2709,\"Ineligible\"))","v":""},{"$f":"IF('TSA Input'!J2709=\"\",\"\",IF(OR('TSA Input'!J2709=\"Yes\",'TSA Input'!J2709=\"Contingent\"),'TSA Input'!I2709,\"\"))","v":""},{"$f":"IF('TSA Input'!J2709=\"\",\"\",IF(OR('TSA Input'!J2709=\"Yes\",'TSA Input'!J2709=\"Contingent\"),'TSA Input'!C2709,\"\"))","v":""},{"$f":"IF('TSA Input'!J2709=\"\",\"\",IF(OR('TSA Input'!J2709=\"Yes\",'TSA Input'!J2709=\"Contingent\"),'TSA Input'!D2709,\"\"))","v":""},{"$f":"IF('TSA Input'!J2709=\"\",\"\",IF(OR('TSA Input'!J2709=\"Yes\",'TSA Input'!J2709=\"Contingent\"),'TSA Input'!G2709,\"\"))","v":""},{"$f":"IF('TSA Input'!J2709=\"\",\"\",IF(OR('TSA Input'!J2709=\"Yes\",'TSA Input'!J2709=\"Contingent\"),'TSA Input'!F2709,\"\"))","v":""},"",{"$f":"IF('TSA Input'!J2709=\"\",\"\",IF(OR('TSA Input'!J2709=\"Yes\",'TSA Input'!J2709=\"Contingent\"),'TSA Input'!D2709,\"\"))","v":""},{"$f":"IF('TSA Input'!J2709=\"\",\"\",IF(OR('TSA Input'!J2709=\"Yes\",'TSA Input'!J2709=\"Contingent\"),'TSA Input'!G2709,\"\"))","v":""},{"$f":"IF('TSA Input'!J2709=\"\",\"\",IF(OR('TSA Input'!J2709=\"Yes\",'TSA Input'!J2709=\"Contingent\"),'TSA Input'!F2709,\"\"))","v":""},"","Required","Required"]
["",null,{"$f":"IF('TSA Input'!J2710=\"\",\"\",IF(OR('TSA Input'!J2710=\"Yes\",'TSA Input'!J2710=\"Contingent\"),'TSA Input'!B2710,\"Ineligible\"))","v":""},{"$f":"IF('TSA Input'!J2710=\"\",\"\",IF(OR('TSA Input'!J2710=\"Yes\",'TSA Input'!J2710=\"Contingent\"),'TSA Input'!I2710,\"\"))","v":""},{"$f":"IF('TSA Input'!J2710=\"\",\"\",IF(OR('TSA Input'!J2710=\"Yes\",'TSA Input'!J2710=\"Contingent\"),'TSA Input'!C2710,\"\"))","v":""},{"$f":"IF('TSA Input'!J2710=\"\",\"\",IF(OR('TSA Input'!J2710=\"Yes\",'TSA Input'!J2710=\"Contingent\"),'TSA Input'!D2710,\"\"))","v":""},{"$f":"IF('TSA Input'!J2710=\"\",\"\",IF(OR('TSA Input'!J2710=\"Yes\",'TSA Input'!J2710=\"Contingent\"),'TSA Input'!G2710,\"\"))","v":""},{"$f":"IF('TSA Input'!J2710=\"\",\"\",IF(OR('TSA Input'!J2710=\"Yes\",'TSA Input'!J2710=\"Contingent\"),'TSA Input'!F2710,\"\"))","v":""},"",{"$f":"IF('TSA Input'!J2710=\"\",\"\",IF(OR('TSA Input'!J2710=\"Yes\",'TSA Input'!J2710=\"Contingent\"),'TSA Input'!D2710,\"\"))","v":""},{"$f":"IF('TSA Input'!J2710=\"\",\"\",IF(OR('TSA Input'!J2710=\"Yes\",'TSA Input'!J2710=\"Contingent\"),'TSA Input'!G2710,\"\"))","v":""},{"$f":"IF('TSA Input'!J2710=\"\",\"\",IF(OR('TSA Input'!J2710=\"Yes\",'TSA Input'!J2710=\"Contingent\"),'TSA Input'!F2710,\"\"))","v":""},"","Required","Required"]
["",null,{"$f":"IF('TSA Input'!J2711=\"\",\"\",IF(OR('TSA Input'!J2711=\"Yes\",'TSA Input'!J2711=\"Contingent\"),'TSA Input'!B2711,\"Ineligible\"))","v":""},{"$f":"IF('TSA Input'!J2711=\"\",\"\",IF(OR('TSA Input'!J2711=\"Yes\",'TSA Input'!J2711=\"Contingent\"),'TSA Input'!I2711,\"\"))","v":""},{"$f":"IF('TSA Input'!J2711=\"\",\"\",IF(OR('TSA Input'!J2711=\"Yes\",'TSA Input'!J2711=\"Contingent\"),'TSA Input'!C2711,\"\"))","v":""},{"$f":"IF('TSA Input'!J2711=\"\",\"\",IF(OR('TSA Input'!J2711=\"Yes\",'TSA Input'!J2711=\"Contingent\"),'TSA Input'!D2711,\"\"))","v":""},{"$f":"IF('TSA Input'!J2711=\"\",\"\",IF(OR('TSA Input'!J2711=\"Yes\",'TSA Input'!J2711=\"Contingent\"),'TSA Input'!G2711,\"\"))","v":""},{"$f":"IF('TSA Input'!J2711=\"\",\"\",IF(OR('TSA Input'!J2711=\"Yes\",'TSA Input'!J2711=\"Contingent\"),'TSA Input'!F2711,\"\"))","v":""},"",{"$f":"IF('TSA Input'!J2711=\"\",\"\",IF(OR('TSA Input'!J2711=\"Yes\",'TSA Input'!J2711=\"Contingent\"),'TSA Input'!D2711,\"\"))","v":""},{"$f":"IF('TSA Input'!J2711=\"\",\"\",IF(OR('TSA Input'!J2711=\"Yes\",'TSA Input'!J2711=\"Contingent\"),'TSA Input'!G2711,\"\"))","v":""},{"$f":"IF('TSA Input'!J2711=\"\",\"\",IF(OR('TSA Input'!J2711=\"Yes\",'TSA Input'!J2711=\"Contingent\"),'TSA Input'!F2711,\"\"))","v":""},"","Required","Required"]
["",null,{"$f":"IF('TSA Input'!J2712=\"\",\"\",IF(OR('TSA Input'!J2712=\"Yes\",'TSA Input'!J2712=\"Contingent\"),'TSA Input'!B2712,\"Ineligible\"))","v":""},{"$f":"IF('TSA Input'!J2712=\"\",\"\",IF(OR('TSA Input'!J2712=\"Yes\",'TSA Input'!J2712=\"Contingent\"),'TSA Input'!I2712,\"\"))","v":""},{"$f":"IF('TSA Input'!J2712=\"\",\"\",IF(OR('TSA Input'!J2712=\"Yes\",'TSA Input'!J2712=\"Contingent\"),'TSA Input'!C2712,\"\"))","v":""},{"$f":"IF('TSA Input'!J2712=\"\",\"\",IF(OR('TSA Input'!J2712=\"Yes\",'TSA Input'!J2712=\"Contingent\"),'TSA Input'!D2712,\"\"))","v":""},{"$f":"IF('TSA Input'!J2712=\"\",\"\",IF(OR('TSA Input'!J2712=\"Yes\",'TSA Input'!J2712=\"Contingent\"),'TSA Input'!G2712,\"\"))","v":""},{"$f":"IF('TSA Input'!J2712=\"\",\"\",IF(OR('TSA Input'!J2712=\"Yes\",'TSA Input'!J2712=\"Contingent\"),'TSA Input'!F2712,\"\"))","v":""},"",{"$f":"IF('TSA Input'!J2712=\"\",\"\",IF(OR('TSA Input'!J2712=\"Yes\",'TSA Input'!J2712=\"Contingent\"),'TSA Input'!D2712,\"\"))","v":""},{"$f":"IF('TSA Input'!J2712=\"\",\"\",IF(OR('TSA Input'!J2712=\"Yes\",'TSA Input'!J2712=\"Contingent\"),'TSA Input'!G2712,\"\"))","v":""},{"$f":"IF('TSA Input'!J2712=\"\",\"\",IF(OR('TSA Input'!J2712=\"Yes\",'TSA Input'!J2712=\"Contingent\"),'TSA Input'!F2712,\"\"))","v":""},"","Required","Required"]
["",null,{"$f":"IF('TSA Input'!J2713=\"\",\"\",IF(OR('TSA Input'!J2713=\"Yes\",'TSA Input'!J2713=\"Contingent\"),'TSA Input'!B2713,\"Ineligible\"))","v":""},{"$f":"IF('TSA Input'!J2713=\"\",\"\",IF(OR('TSA Input'!J2713=\"Yes\",'TSA Input'!J2713=\"Contingent\"),'TSA Input'!I2713,\"\"))","v":""},{"$f":"IF('TSA Input'!J2713=\"\",\"\",IF(OR('TSA Input'!J2713=\"Yes\",'TSA Input'!J2713=\"Contingent\"),'TSA Input'!C2713,\"\"))","v":""},{"$f":"IF('TSA Input'!J2713=\"\",\"\",IF(OR('TSA Input'!J2713=\"Yes\",'TSA Input'!J2713=\"Contingent\"),'TSA Input'!D2713,\"\"))","v":""},{"$f":"IF('TSA Input'!J2713=\"\",\"\",IF(OR('TSA Input'!J2713=\"Yes\",'TSA Input'!J2713=\"Contingent\"),'TSA Input'!G2713,\"\"))","v":""},{"$f":"IF('TSA Input'!J2713=\"\",\"\",IF(OR('TSA Input'!J2713=\"Yes\",'TSA Input'!J2713=\"Contingent\"),'TSA Input'!F2713,\"\"))","v":""},"",{"$f":"IF('TSA Input'!J2713=\"\",\"\",IF(OR('TSA Input'!J2713=\"Yes\",'TSA Input'!J2713=\"Contingent\"),'TSA Input'!D2713,\"\"))","v":""},{"$f":"IF('TSA Input'!J2713=\"\",\"\",IF(OR('TSA Input'!J2713=\"Yes\",'TSA Input'!J2713=\"Contingent\"),'TSA Input'!G2713,\"\"))","v":""},{"$f":"IF('TSA Input'!J2713=\"\",\"\",IF(OR('TSA Input'!J2713=\"Yes\",'TSA Input'!J2713=\"Contingent\"),'TSA Input'!F2713,\"\"))","v":""},"","Required","Required"]
["",null,{"$f":"IF('TSA Input'!J2714=\"\",\"\",IF(OR('TSA Input'!J2714=\"Yes\",'TSA Input'!J2714=\"Contingent\"),'TSA Input'!B2714,\"Ineligible\"))","v":""},{"$f":"IF('TSA Input'!J2714=\"\",\"\",IF(OR('TSA Input'!J2714=\"Yes\",'TSA Input'!J2714=\"Contingent\"),'TSA Input'!I2714,\"\"))","v":""},{"$f":"IF('TSA Input'!J2714=\"\",\"\",IF(OR('TSA Input'!J2714=\"Yes\",'TSA Input'!J2714=\"Contingent\"),'TSA Input'!C2714,\"\"))","v":""},{"$f":"IF('TSA Input'!J2714=\"\",\"\",IF(OR('TSA Input'!J2714=\"Yes\",'TSA Input'!J2714=\"Contingent\"),'TSA Input'!D2714,\"\"))","v":""},{"$f":"IF('TSA Input'!J2714=\"\",\"\",IF(OR('TSA Input'!J2714=\"Yes\",'TSA Input'!J2714=\"Contingent\"),'TSA Input'!G2714,\"\"))","v":""},{"$f":"IF('TSA Input'!J2714=\"\",\"\",IF(OR('TSA Input'!J2714=\"Yes\",'TSA Input'!J2714=\"Contingent\"),'TSA Input'!F2714,\"\"))","v":""},"",{"$f":"IF('TSA Input'!J2714=\"\",\"\",IF(OR('TSA Input'!J2714=\"Yes\",'TSA Input'!J2714=\"Contingent\"),'TSA Input'!D2714,\"\"))","v":""},{"$f":"IF('TSA Input'!J2714=\"\",\"\",IF(OR('TSA Input'!J2714=\"Yes\",'TSA Input'!J2714=\"Contingent\"),'TSA Input'!G2714,\"\"))","v":""},{"$f":"IF('TSA Input'!J2714=\"\",\"\",IF(OR('TSA Input'!J2714=\"Yes\",'TSA Input'!J2714=\"Contingent\"),'TSA Input'!F2714,\"\"))","v":""},"","Required","Required"]
["",null,{"$f":"IF('TSA Input'!J2715=\"\",\"\",IF(OR('TSA Input'!J2715=\"Yes\",'TSA Input'!J2715=\"Contingent\"),'TSA Input'!B2715,\"Ineligible\"))","v":""},{"$f":"IF('TSA Input'!J2715=\"\",\"\",IF(OR('TSA Input'!J2715=\"Yes\",'TSA Input'!J2715=\"Contingent\"),'TSA Input'!I2715,\"\"))","v":""},{"$f":"IF('TSA Input'!J2715=\"\",\"\",IF(OR('TSA Input'!J2715=\"Yes\",'TSA Input'!J2715=\"Contingent\"),'TSA Input'!C2715,\"\"))","v":""},{"$f":"IF('TSA Input'!J2715=\"\",\"\",IF(OR('TSA Input'!J2715=\"Yes\",'TSA Input'!J2715=\"Contingent\"),'TSA Input'!D2715,\"\"))","v":""},{"$f":"IF('TSA Input'!J2715=\"\",\"\",IF(OR('TSA Input'!J2715=\"Yes\",'TSA Input'!J2715=\"Contingent\"),'TSA Input'!G2715,\"\"))","v":""},{"$f":"IF('TSA Input'!J2715=\"\",\"\",IF(OR('TSA Input'!J2715=\"Yes\",'TSA Input'!J2715=\"Contingent\"),'TSA Input'!F2715,\"\"))","v":""},"",{"$f":"IF('TSA Input'!J2715=\"\",\"\",IF(OR('TSA Input'!J2715=\"Yes\",'TSA Input'!J2715=\"Contingent\"),'TSA Input'!D2715,\"\"))","v":""},{"$f":"IF('TSA Input'!J2715=\"\",\"\",IF(OR('TSA Input'!J2715=\"Yes\",'TSA Input'!J2715=\"Contingent\"),'TSA Input'!G2715,\"\"))","v":""},{"$f":"IF('TSA Input'!J2715=\"\",\"\",IF(OR('TSA Input'!J2715=\"Yes\",'TSA Input'!J2715=\"Contingent\"),'TSA Input'!F2715,\"\"))","v":""},"","Required","Required"]
["",null,{"$f":"IF('TSA Input'!J2716=\"\",\"\",IF(OR('TSA Input'!J2716=\"Yes\",'TSA Input'!J2716=\"Contingent\"),'TSA Input'!B2716,\"Ineligible\"))","v":""},{"$f":"IF('TSA Input'!J2716=\"\",\"\",IF(OR('TSA Input'!J2716=\"Yes\",'TSA Input'!J2716=\"Contingent\"),'TSA Input'!I2716,\"\"))","v":""},{"$f":"IF('TSA Input'!J2716=\"\",\"\",IF(OR('TSA Input'!J2716=\"Yes\",'TSA Input'!J2716=\"Contingent\"),'TSA Input'!C2716,\"\"))","v":""},{"$f":"IF('TSA Input'!J2716=\"\",\"\",IF(OR('TSA Input'!J2716=\"Yes\",'TSA Input'!J2716=\"Contingent\"),'TSA Input'!D2716,\"\"))","v":""},{"$f":"IF('TSA Input'!J2716=\"\",\"\",IF(OR('TSA Input'!J2716=\"Yes\",'TSA Input'!J2716=\"Contingent\"),'TSA Input'!G2716,\"\"))","v":""},{"$f":"IF('TSA Input'!J2716=\"\",\"\",IF(OR('TSA Input'!J2716=\"Yes\",'TSA Input'!J2716=\"Contingent\"),'TSA Input'!F2716,\"\"))","v":""},"",{"$f":"IF('TSA Input'!J2716=\"\",\"\",IF(OR('TSA Input'!J2716=\"Yes\",'TSA Input'!J2716=\"Contingent\"),'TSA Input'!D2716,\"\"))","v":""},{"$f":"IF('TSA Input'!J2716=\"\",\"\",IF(OR('TSA Input'!J2716=\"Yes\",'TSA Input'!J2716=\"Contingent\"),'TSA Input'!G2716,\"\"))","v":""},{"$f":"IF('TSA Input'!J2716=\"\",\"\",IF(OR('TSA Input'!J2716=\"Yes\",'TSA Input'!J2716=\"Contingent\"),'TSA Input'!F2716,\"\"))","v":""},"","Required","Required"]
["",null,{"$f":"IF('TSA Input'!J2717=\"\",\"\",IF(OR('TSA Input'!J2717=\"Yes\",'TSA Input'!J2717=\"Contingent\"),'TSA Input'!B2717,\"Ineligible\"))","v":""},{"$f":"IF('TSA Input'!J2717=\"\",\"\",IF(OR('TSA Input'!J2717=\"Yes\",'TSA Input'!J2717=\"Contingent\"),'TSA Input'!I2717,\"\"))","v":""},{"$f":"IF('TSA Input'!J2717=\"\",\"\",IF(OR('TSA Input'!J2717=\"Yes\",'TSA Input'!J2717=\"Contingent\"),'TSA Input'!C2717,\"\"))","v":""},{"$f":"IF('TSA Input'!J2717=\"\",\"\",IF(OR('TSA Input'!J2717=\"Yes\",'TSA Input'!J2717=\"Contingent\"),'TSA Input'!D2717,\"\"))","v":""},{"$f":"IF('TSA Input'!J2717=\"\",\"\",IF(OR('TSA Input'!J2717=\"Yes\",'TSA Input'!J2717=\"Contingent\"),'TSA Input'!G2717,\"\"))","v":""},{"$f":"IF('TSA Input'!J2717=\"\",\"\",IF(OR('TSA Input'!J2717=\"Yes\",'TSA Input'!J2717=\"Contingent\"),'TSA Input'!F2717,\"\"))","v":""},"",{"$f":"IF('TSA Input'!J2717=\"\",\"\",IF(OR('TSA Input'!J2717=\"Yes\",'TSA Input'!J2717=\"Contingent\"),'TSA Input'!D2717,\"\"))","v":""},{"$f":"IF('TSA Input'!J2717=\"\",\"\",IF(OR('TSA Input'!J2717=\"Yes\",'TSA Input'!J2717=\"Contingent\"),'TSA Input'!G2717,\"\"))","v":""},{"$f":"IF('TSA Input'!J2717=\"\",\"\",IF(OR('TSA Input'!J2717=\"Yes\",'TSA Input'!J2717=\"Contingent\"),'TSA Input'!F2717,\"\"))","v":""},"","Required","Required"]
["",null,{"$f":"IF('TSA Input'!J2718=\"\",\"\",IF(OR('TSA Input'!J2718=\"Yes\",'TSA Input'!J2718=\"Contingent\"),'TSA Input'!B2718,\"Ineligible\"))","v":""},{"$f":"IF('TSA Input'!J2718=\"\",\"\",IF(OR('TSA Input'!J2718=\"Yes\",'TSA Input'!J2718=\"Contingent\"),'TSA Input'!I2718,\"\"))","v":""},{"$f":"IF('TSA Input'!J2718=\"\",\"\",IF(OR('TSA Input'!J2718=\"Yes\",'TSA Input'!J2718=\"Contingent\"),'TSA Input'!C2718,\"\"))","v":""},{"$f":"IF('TSA Input'!J2718=\"\",\"\",IF(OR('TSA Input'!J2718=\"Yes\",'TSA Input'!J2718=\"Contingent\"),'TSA Input'!D2718,\"\"))","v":""},{"$f":"IF('TSA Input'!J2718=\"\",\"\",IF(OR('TSA Input'!J2718=\"Yes\",'TSA Input'!J2718=\"Contingent\"),'TSA Input'!G2718,\"\"))","v":""},{"$f":"IF('TSA Input'!J2718=\"\",\"\",IF(OR('TSA Input'!J2718=\"Yes\",'TSA Input'!J2718=\"Contingent\"),'TSA Input'!F2718,\"\"))","v":""},"",{"$f":"IF('TSA Input'!J2718=\"\",\"\",IF(OR('TSA Input'!J2718=\"Yes\",'TSA Input'!J2718=\"Contingent\"),'TSA Input'!D2718,\"\"))","v":""},{"$f":"IF('TSA Input'!J2718=\"\",\"\",IF(OR('TSA Input'!J2718=\"Yes\",'TSA Input'!J2718=\"Contingent\"),'TSA Input'!G2718,\"\"))","v":""},{"$f":"IF('TSA Input'!J2718=\"\",\"\",IF(OR('TSA Input'!J2718=\"Yes\",'TSA Input'!J2718=\"Contingent\"),'TSA Input'!F2718,\"\"))","v":""},"","Required","Required"]
["",null,{"$f":"IF('TSA Input'!J2719=\"\",\"\",IF(OR('TSA Input'!J2719=\"Yes\",'TSA Input'!J2719=\"Contingent\"),'TSA Input'!B2719,\"Ineligible\"))","v":""},{"$f":"IF('TSA Input'!J2719=\"\",\"\",IF(OR('TSA Input'!J2719=\"Yes\",'TSA Input'!J2719=\"Contingent\"),'TSA Input'!I2719,\"\"))","v":""},{"$f":"IF('TSA Input'!J2719=\"\",\"\",IF(OR('TSA Input'!J2719=\"Yes\",'TSA Input'!J2719=\"Contingent\"),'TSA Input'!C2719,\"\"))","v":""},{"$f":"IF('TSA Input'!J2719=\"\",\"\",IF(OR('TSA Input'!J2719=\"Yes\",'TSA Input'!J2719=\"Contingent\"),'TSA Input'!D2719,\"\"))","v":""},{"$f":"IF('TSA Input'!J2719=\"\",\"\",IF(OR('TSA Input'!J2719=\"Yes\",'TSA Input'!J2719=\"Contingent\"),'TSA Input'!G2719,\"\"))","v":""},{"$f":"IF('TSA Input'!J2719=\"\",\"\",IF(OR('TSA Input'!J2719=\"Yes\",'TSA Input'!J2719=\"Contingent\"),'TSA Input'!F2719,\"\"))","v":""},"",{"$f":"IF('TSA Input'!J2719=\"\",\"\",IF(OR('TSA Input'!J2719=\"Yes\",'TSA Input'!J2719=\"Contingent\"),'TSA Input'!D2719,\"\"))","v":""},{"$f":"IF('TSA Input'!J2719=\"\",\"\",IF(OR('TSA Input'!J2719=\"Yes\",'TSA Input'!J2719=\"Contingent\"),'TSA Input'!G2719,\"\"))","v":""},{"$f":"IF('TSA Input'!J2719=\"\",\"\",IF(OR('TSA Input'!J2719=\"Yes\",'TSA Input'!J2719=\"Contingent\"),'TSA Input'!F2719,\"\"))","v":""},"","Required","Required"]
["",null,{"$f":"IF('TSA Input'!J2720=\"\",\"\",IF(OR('TSA Input'!J2720=\"Yes\",'TSA Input'!J2720=\"Contingent\"),'TSA Input'!B2720,\"Ineligible\"))","v":""},{"$f":"IF('TSA Input'!J2720=\"\",\"\",IF(OR('TSA Input'!J2720=\"Yes\",'TSA Input'!J2720=\"Contingent\"),'TSA Input'!I2720,\"\"))","v":""},{"$f":"IF('TSA Input'!J2720=\"\",\"\",IF(OR('TSA Input'!J2720=\"Yes\",'TSA Input'!J2720=\"Contingent\"),'TSA Input'!C2720,\"\"))","v":""},{"$f":"IF('TSA Input'!J2720=\"\",\"\",IF(OR('TSA Input'!J2720=\"Yes\",'TSA Input'!J2720=\"Contingent\"),'TSA Input'!D2720,\"\"))","v":""},{"$f":"IF('TSA Input'!J2720=\"\",\"\",IF(OR('TSA Input'!J2720=\"Yes\",'TSA Input'!J2720=\"Contingent\"),'TSA Input'!G2720,\"\"))","v":""},{"$f":"IF('TSA Input'!J2720=\"\",\"\",IF(OR('TSA Input'!J2720=\"Yes\",'TSA Input'!J2720=\"Contingent\"),'TSA Input'!F2720,\"\"))","v":""},"",{"$f":"IF('TSA Input'!J2720=\"\",\"\",IF(OR('TSA Input'!J2720=\"Yes\",'TSA Input'!J2720=\"Contingent\"),'TSA Input'!D2720,\"\"))","v":""},{"$f":"IF('TSA Input'!J2720=\"\",\"\",IF(OR('TSA Input'!J2720=\"Yes\",'TSA Input'!J2720=\"Contingent\"),'TSA Input'!G2720,\"\"))","v":""},{"$f":"IF('TSA Input'!J2720=\"\",\"\",IF(OR('TSA Input'!J2720=\"Yes\",'TSA Input'!J2720=\"Contingent\"),'TSA Input'!F2720,\"\"))","v":""},"","Required","Required"]
["",null,{"$f":"IF('TSA Input'!J2721=\"\",\"\",IF(OR('TSA Input'!J2721=\"Yes\",'TSA Input'!J2721=\"Contingent\"),'TSA Input'!B2721,\"Ineligible\"))","v":""},{"$f":"IF('TSA Input'!J2721=\"\",\"\",IF(OR('TSA Input'!J2721=\"Yes\",'TSA Input'!J2721=\"Contingent\"),'TSA Input'!I2721,\"\"))","v":""},{"$f":"IF('TSA Input'!J2721=\"\",\"\",IF(OR('TSA Input'!J2721=\"Yes\",'TSA Input'!J2721=\"Contingent\"),'TSA Input'!C2721,\"\"))","v":""},{"$f":"IF('TSA Input'!J2721=\"\",\"\",IF(OR('TSA Input'!J2721=\"Yes\",'TSA Input'!J2721=\"Contingent\"),'TSA Input'!D2721,\"\"))","v":""},{"$f":"IF('TSA Input'!J2721=\"\",\"\",IF(OR('TSA Input'!J2721=\"Yes\",'TSA Input'!J2721=\"Contingent\"),'TSA Input'!G2721,\"\"))","v":""},{"$f":"IF('TSA Input'!J2721=\"\",\"\",IF(OR('TSA Input'!J2721=\"Yes\",'TSA Input'!J2721=\"Contingent\"),'TSA Input'!F2721,\"\"))","v":""},"",{"$f":"IF('TSA Input'!J2721=\"\",\"\",IF(OR('TSA Input'!J2721=\"Yes\",'TSA Input'!J2721=\"Contingent\"),'TSA Input'!D2721,\"\"))","v":""},{"$f":"IF('TSA Input'!J2721=\"\",\"\",IF(OR('TSA Input'!J2721=\"Yes\",'TSA Input'!J2721=\"Contingent\"),'TSA Input'!G2721,\"\"))","v":""},{"$f":"IF('TSA Input'!J2721=\"\",\"\",IF(OR('TSA Input'!J2721=\"Yes\",'TSA Input'!J2721=\"Contingent\"),'TSA Input'!F2721,\"\"))","v":""},"","Required","Required"]
["",null,{"$f":"IF('TSA Input'!J2722=\"\",\"\",IF(OR('TSA Input'!J2722=\"Yes\",'TSA Input'!J2722=\"Contingent\"),'TSA Input'!B2722,\"Ineligible\"))","v":""},{"$f":"IF('TSA Input'!J2722=\"\",\"\",IF(OR('TSA Input'!J2722=\"Yes\",'TSA Input'!J2722=\"Contingent\"),'TSA Input'!I2722,\"\"))","v":""},{"$f":"IF('TSA Input'!J2722=\"\",\"\",IF(OR('TSA Input'!J2722=\"Yes\",'TSA Input'!J2722=\"Contingent\"),'TSA Input'!C2722,\"\"))","v":""},{"$f":"IF('TSA Input'!J2722=\"\",\"\",IF(OR('TSA Input'!J2722=\"Yes\",'TSA Input'!J2722=\"Contingent\"),'TSA Input'!D2722,\"\"))","v":""},{"$f":"IF('TSA Input'!J2722=\"\",\"\",IF(OR('TSA Input'!J2722=\"Yes\",'TSA Input'!J2722=\"Contingent\"),'TSA Input'!G2722,\"\"))","v":""},{"$f":"IF('TSA Input'!J2722=\"\",\"\",IF(OR('TSA Input'!J2722=\"Yes\",'TSA Input'!J2722=\"Contingent\"),'TSA Input'!F2722,\"\"))","v":""},"",{"$f":"IF('TSA Input'!J2722=\"\",\"\",IF(OR('TSA Input'!J2722=\"Yes\",'TSA Input'!J2722=\"Contingent\"),'TSA Input'!D2722,\"\"))","v":""},{"$f":"IF('TSA Input'!J2722=\"\",\"\",IF(OR('TSA Input'!J2722=\"Yes\",'TSA Input'!J2722=\"Contingent\"),'TSA Input'!G2722,\"\"))","v":""},{"$f":"IF('TSA Input'!J2722=\"\",\"\",IF(OR('TSA Input'!J2722=\"Yes\",'TSA Input'!J2722=\"Contingent\"),'TSA Input'!F2722,\"\"))","v":""},"","Required","Required"]
["",null,{"$f":"IF('TSA Input'!J2723=\"\",\"\",IF(OR('TSA Input'!J2723=\"Yes\",'TSA Input'!J2723=\"Contingent\"),'TSA Input'!B2723,\"Ineligible\"))","v":""},{"$f":"IF('TSA Input'!J2723=\"\",\"\",IF(OR('TSA Input'!J2723=\"Yes\",'TSA Input'!J2723=\"Contingent\"),'TSA Input'!I2723,\"\"))","v":""},{"$f":"IF('TSA Input'!J2723=\"\",\"\",IF(OR('TSA Input'!J2723=\"Yes\",'TSA Input'!J2723=\"Contingent\"),'TSA Input'!C2723,\"\"))","v":""},{"$f":"IF('TSA Input'!J2723=\"\",\"\",IF(OR('TSA Input'!J2723=\"Yes\",'TSA Input'!J2723=\"Contingent\"),'TSA Input'!D2723,\"\"))","v":""},{"$f":"IF('TSA Input'!J2723=\"\",\"\",IF(OR('TSA Input'!J2723=\"Yes\",'TSA Input'!J2723=\"Contingent\"),'TSA Input'!G2723,\"\"))","v":""},{"$f":"IF('TSA Input'!J2723=\"\",\"\",IF(OR('TSA Input'!J2723=\"Yes\",'TSA Input'!J2723=\"Contingent\"),'TSA Input'!F2723,\"\"))","v":""},"",{"$f":"IF('TSA Input'!J2723=\"\",\"\",IF(OR('TSA Input'!J2723=\"Yes\",'TSA Input'!J2723=\"Contingent\"),'TSA Input'!D2723,\"\"))","v":""},{"$f":"IF('TSA Input'!J2723=\"\",\"\",IF(OR('TSA Input'!J2723=\"Yes\",'TSA Input'!J2723=\"Contingent\"),'TSA Input'!G2723,\"\"))","v":""},{"$f":"IF('TSA Input'!J2723=\"\",\"\",IF(OR('TSA Input'!J2723=\"Yes\",'TSA Input'!J2723=\"Contingent\"),'TSA Input'!F2723,\"\"))","v":""},"","Required","Required"]
["",null,{"$f":"IF('TSA Input'!J2724=\"\",\"\",IF(OR('TSA Input'!J2724=\"Yes\",'TSA Input'!J2724=\"Contingent\"),'TSA Input'!B2724,\"Ineligible\"))","v":""},{"$f":"IF('TSA Input'!J2724=\"\",\"\",IF(OR('TSA Input'!J2724=\"Yes\",'TSA Input'!J2724=\"Contingent\"),'TSA Input'!I2724,\"\"))","v":""},{"$f":"IF('TSA Input'!J2724=\"\",\"\",IF(OR('TSA Input'!J2724=\"Yes\",'TSA Input'!J2724=\"Contingent\"),'TSA Input'!C2724,\"\"))","v":""},{"$f":"IF('TSA Input'!J2724=\"\",\"\",IF(OR('TSA Input'!J2724=\"Yes\",'TSA Input'!J2724=\"Contingent\"),'TSA Input'!D2724,\"\"))","v":""},{"$f":"IF('TSA Input'!J2724=\"\",\"\",IF(OR('TSA Input'!J2724=\"Yes\",'TSA Input'!J2724=\"Contingent\"),'TSA Input'!G2724,\"\"))","v":""},{"$f":"IF('TSA Input'!J2724=\"\",\"\",IF(OR('TSA Input'!J2724=\"Yes\",'TSA Input'!J2724=\"Contingent\"),'TSA Input'!F2724,\"\"))","v":""},"",{"$f":"IF('TSA Input'!J2724=\"\",\"\",IF(OR('TSA Input'!J2724=\"Yes\",'TSA Input'!J2724=\"Contingent\"),'TSA Input'!D2724,\"\"))","v":""},{"$f":"IF('TSA Input'!J2724=\"\",\"\",IF(OR('TSA Input'!J2724=\"Yes\",'TSA Input'!J2724=\"Contingent\"),'TSA Input'!G2724,\"\"))","v":""},{"$f":"IF('TSA Input'!J2724=\"\",\"\",IF(OR('TSA Input'!J2724=\"Yes\",'TSA Input'!J2724=\"Contingent\"),'TSA Input'!F2724,\"\"))","v":""},"","Required","Required"]
["",null,{"$f":"IF('TSA Input'!J2725=\"\",\"\",IF(OR('TSA Input'!J2725=\"Yes\",'TSA Input'!J2725=\"Contingent\"),'TSA Input'!B2725,\"Ineligible\"))","v":""},{"$f":"IF('TSA Input'!J2725=\"\",\"\",IF(OR('TSA Input'!J2725=\"Yes\",'TSA Input'!J2725=\"Contingent\"),'TSA Input'!I2725,\"\"))","v":""},{"$f":"IF('TSA Input'!J2725=\"\",\"\",IF(OR('TSA Input'!J2725=\"Yes\",'TSA Input'!J2725=\"Contingent\"),'TSA Input'!C2725,\"\"))","v":""},{"$f":"IF('TSA Input'!J2725=\"\",\"\",IF(OR('TSA Input'!J2725=\"Yes\",'TSA Input'!J2725=\"Contingent\"),'TSA Input'!D2725,\"\"))","v":""},{"$f":"IF('TSA Input'!J2725=\"\",\"\",IF(OR('TSA Input'!J2725=\"Yes\",'TSA Input'!J2725=\"Contingent\"),'TSA Input'!G2725,\"\"))","v":""},{"$f":"IF('TSA Input'!J2725=\"\",\"\",IF(OR('TSA Input'!J2725=\"Yes\",'TSA Input'!J2725=\"Contingent\"),'TSA Input'!F2725,\"\"))","v":""},"",{"$f":"IF('TSA Input'!J2725=\"\",\"\",IF(OR('TSA Input'!J2725=\"Yes\",'TSA Input'!J2725=\"Contingent\"),'TSA Input'!D2725,\"\"))","v":""},{"$f":"IF('TSA Input'!J2725=\"\",\"\",IF(OR('TSA Input'!J2725=\"Yes\",'TSA Input'!J2725=\"Contingent\"),'TSA Input'!G2725,\"\"))","v":""},{"$f":"IF('TSA Input'!J2725=\"\",\"\",IF(OR('TSA Input'!J2725=\"Yes\",'TSA Input'!J2725=\"Contingent\"),'TSA Input'!F2725,\"\"))","v":""},"","Required","Required"]
["",null,{"$f":"IF('TSA Input'!J2726=\"\",\"\",IF(OR('TSA Input'!J2726=\"Yes\",'TSA Input'!J2726=\"Contingent\"),'TSA Input'!B2726,\"Ineligible\"))","v":""},{"$f":"IF('TSA Input'!J2726=\"\",\"\",IF(OR('TSA Input'!J2726=\"Yes\",'TSA Input'!J2726=\"Contingent\"),'TSA Input'!I2726,\"\"))","v":""},{"$f":"IF('TSA Input'!J2726=\"\",\"\",IF(OR('TSA Input'!J2726=\"Yes\",'TSA Input'!J2726=\"Contingent\"),'TSA Input'!C2726,\"\"))","v":""},{"$f":"IF('TSA Input'!J2726=\"\",\"\",IF(OR('TSA Input'!J2726=\"Yes\",'TSA Input'!J2726=\"Contingent\"),'TSA Input'!D2726,\"\"))","v":""},{"$f":"IF('TSA Input'!J2726=\"\",\"\",IF(OR('TSA Input'!J2726=\"Yes\",'TSA Input'!J2726=\"Contingent\"),'TSA Input'!G2726,\"\"))","v":""},{"$f":"IF('TSA Input'!J2726=\"\",\"\",IF(OR('TSA Input'!J2726=\"Yes\",'TSA Input'!J2726=\"Contingent\"),'TSA Input'!F2726,\"\"))","v":""},"",{"$f":"IF('TSA Input'!J2726=\"\",\"\",IF(OR('TSA Input'!J2726=\"Yes\",'TSA Input'!J2726=\"Contingent\"),'TSA Input'!D2726,\"\"))","v":""},{"$f":"IF('TSA Input'!J2726=\"\",\"\",IF(OR('TSA Input'!J2726=\"Yes\",'TSA Input'!J2726=\"Contingent\"),'TSA Input'!G2726,\"\"))","v":""},{"$f":"IF('TSA Input'!J2726=\"\",\"\",IF(OR('TSA Input'!J2726=\"Yes\",'TSA Input'!J2726=\"Contingent\"),'TSA Input'!F2726,\"\"))","v":""},"","Required","Required"]
["",null,{"$f":"IF('TSA Input'!J2727=\"\",\"\",IF(OR('TSA Input'!J2727=\"Yes\",'TSA Input'!J2727=\"Contingent\"),'TSA Input'!B2727,\"Ineligible\"))","v":""},{"$f":"IF('TSA Input'!J2727=\"\",\"\",IF(OR('TSA Input'!J2727=\"Yes\",'TSA Input'!J2727=\"Contingent\"),'TSA Input'!I2727,\"\"))","v":""},{"$f":"IF('TSA Input'!J2727=\"\",\"\",IF(OR('TSA Input'!J2727=\"Yes\",'TSA Input'!J2727=\"Contingent\"),'TSA Input'!C2727,\"\"))","v":""},{"$f":"IF('TSA Input'!J2727=\"\",\"\",IF(OR('TSA Input'!J2727=\"Yes\",'TSA Input'!J2727=\"Contingent\"),'TSA Input'!D2727,\"\"))","v":""},{"$f":"IF('TSA Input'!J2727=\"\",\"\",IF(OR('TSA Input'!J2727=\"Yes\",'TSA Input'!J2727=\"Contingent\"),'TSA Input'!G2727,\"\"))","v":""},{"$f":"IF('TSA Input'!J2727=\"\",\"\",IF(OR('TSA Input'!J2727=\"Yes\",'TSA Input'!J2727=\"Contingent\"),'TSA Input'!F2727,\"\"))","v":""},"",{"$f":"IF('TSA Input'!J2727=\"\",\"\",IF(OR('TSA Input'!J2727=\"Yes\",'TSA Input'!J2727=\"Contingent\"),'TSA Input'!D2727,\"\"))","v":""},{"$f":"IF('TSA Input'!J2727=\"\",\"\",IF(OR('TSA Input'!J2727=\"Yes\",'TSA Input'!J2727=\"Contingent\"),'TSA Input'!G2727,\"\"))","v":""},{"$f":"IF('TSA Input'!J2727=\"\",\"\",IF(OR('TSA Input'!J2727=\"Yes\",'TSA Input'!J2727=\"Contingent\"),'TSA Input'!F2727,\"\"))","v":""},"","Required","Required"]
["",null,{"$f":"IF('TSA Input'!J2728=\"\",\"\",IF(OR('TSA Input'!J2728=\"Yes\",'TSA Input'!J2728=\"Contingent\"),'TSA Input'!B2728,\"Ineligible\"))","v":""},{"$f":"IF('TSA Input'!J2728=\"\",\"\",IF(OR('TSA Input'!J2728=\"Yes\",'TSA Input'!J2728=\"Contingent\"),'TSA Input'!I2728,\"\"))","v":""},{"$f":"IF('TSA Input'!J2728=\"\",\"\",IF(OR('TSA Input'!J2728=\"Yes\",'TSA Input'!J2728=\"Contingent\"),'TSA Input'!C2728,\"\"))","v":""},{"$f":"IF('TSA Input'!J2728=\"\",\"\",IF(OR('TSA Input'!J2728=\"Yes\",'TSA Input'!J2728=\"Contingent\"),'TSA Input'!D2728,\"\"))","v":""},{"$f":"IF('TSA Input'!J2728=\"\",\"\",IF(OR('TSA Input'!J2728=\"Yes\",'TSA Input'!J2728=\"Contingent\"),'TSA Input'!G2728,\"\"))","v":""},{"$f":"IF('TSA Input'!J2728=\"\",\"\",IF(OR('TSA Input'!J2728=\"Yes\",'TSA Input'!J2728=\"Contingent\"),'TSA Input'!F2728,\"\"))","v":""},"",{"$f":"IF('TSA Input'!J2728=\"\",\"\",IF(OR('TSA Input'!J2728=\"Yes\",'TSA Input'!J2728=\"Contingent\"),'TSA Input'!D2728,\"\"))","v":""},{"$f":"IF('TSA Input'!J2728=\"\",\"\",IF(OR('TSA Input'!J2728=\"Yes\",'TSA Input'!J2728=\"Contingent\"),'TSA Input'!G2728,\"\"))","v":""},{"$f":"IF('TSA Input'!J2728=\"\",\"\",IF(OR('TSA Input'!J2728=\"Yes\",'TSA Input'!J2728=\"Contingent\"),'TSA Input'!F2728,\"\"))","v":""},"","Required","Required"]
["",null,{"$f":"IF('TSA Input'!J2729=\"\",\"\",IF(OR('TSA Input'!J2729=\"Yes\",'TSA Input'!J2729=\"Contingent\"),'TSA Input'!B2729,\"Ineligible\"))","v":""},{"$f":"IF('TSA Input'!J2729=\"\",\"\",IF(OR('TSA Input'!J2729=\"Yes\",'TSA Input'!J2729=\"Contingent\"),'TSA Input'!I2729,\"\"))","v":""},{"$f":"IF('TSA Input'!J2729=\"\",\"\",IF(OR('TSA Input'!J2729=\"Yes\",'TSA Input'!J2729=\"Contingent\"),'TSA Input'!C2729,\"\"))","v":""},{"$f":"IF('TSA Input'!J2729=\"\",\"\",IF(OR('TSA Input'!J2729=\"Yes\",'TSA Input'!J2729=\"Contingent\"),'TSA Input'!D2729,\"\"))","v":""},{"$f":"IF('TSA Input'!J2729=\"\",\"\",IF(OR('TSA Input'!J2729=\"Yes\",'TSA Input'!J2729=\"Contingent\"),'TSA Input'!G2729,\"\"))","v":""},{"$f":"IF('TSA Input'!J2729=\"\",\"\",IF(OR('TSA Input'!J2729=\"Yes\",'TSA Input'!J2729=\"Contingent\"),'TSA Input'!F2729,\"\"))","v":""},"",{"$f":"IF('TSA Input'!J2729=\"\",\"\",IF(OR('TSA Input'!J2729=\"Yes\",'TSA Input'!J2729=\"Contingent\"),'TSA Input'!D2729,\"\"))","v":""},{"$f":"IF('TSA Input'!J2729=\"\",\"\",IF(OR('TSA Input'!J2729=\"Yes\",'TSA Input'!J2729=\"Contingent\"),'TSA Input'!G2729,\"\"))","v":""},{"$f":"IF('TSA Input'!J2729=\"\",\"\",IF(OR('TSA Input'!J2729=\"Yes\",'TSA Input'!J2729=\"Contingent\"),'TSA Input'!F2729,\"\"))","v":""},"","Required","Required"]
["",null,{"$f":"IF('TSA Input'!J2730=\"\",\"\",IF(OR('TSA Input'!J2730=\"Yes\",'TSA Input'!J2730=\"Contingent\"),'TSA Input'!B2730,\"Ineligible\"))","v":""},{"$f":"IF('TSA Input'!J2730=\"\",\"\",IF(OR('TSA Input'!J2730=\"Yes\",'TSA Input'!J2730=\"Contingent\"),'TSA Input'!I2730,\"\"))","v":""},{"$f":"IF('TSA Input'!J2730=\"\",\"\",IF(OR('TSA Input'!J2730=\"Yes\",'TSA Input'!J2730=\"Contingent\"),'TSA Input'!C2730,\"\"))","v":""},{"$f":"IF('TSA Input'!J2730=\"\",\"\",IF(OR('TSA Input'!J2730=\"Yes\",'TSA Input'!J2730=\"Contingent\"),'TSA Input'!D2730,\"\"))","v":""},{"$f":"IF('TSA Input'!J2730=\"\",\"\",IF(OR('TSA Input'!J2730=\"Yes\",'TSA Input'!J2730=\"Contingent\"),'TSA Input'!G2730,\"\"))","v":""},{"$f":"IF('TSA Input'!J2730=\"\",\"\",IF(OR('TSA Input'!J2730=\"Yes\",'TSA Input'!J2730=\"Contingent\"),'TSA Input'!F2730,\"\"))","v":""},"",{"$f":"IF('TSA Input'!J2730=\"\",\"\",IF(OR('TSA Input'!J2730=\"Yes\",'TSA Input'!J2730=\"Contingent\"),'TSA Input'!D2730,\"\"))","v":""},{"$f":"IF('TSA Input'!J2730=\"\",\"\",IF(OR('TSA Input'!J2730=\"Yes\",'TSA Input'!J2730=\"Contingent\"),'TSA Input'!G2730,\"\"))","v":""},{"$f":"IF('TSA Input'!J2730=\"\",\"\",IF(OR('TSA Input'!J2730=\"Yes\",'TSA Input'!J2730=\"Contingent\"),'TSA Input'!F2730,\"\"))","v":""},"","Required","Required"]
["",null,{"$f":"IF('TSA Input'!J2731=\"\",\"\",IF(OR('TSA Input'!J2731=\"Yes\",'TSA Input'!J2731=\"Contingent\"),'TSA Input'!B2731,\"Ineligible\"))","v":""},{"$f":"IF('TSA Input'!J2731=\"\",\"\",IF(OR('TSA Input'!J2731=\"Yes\",'TSA Input'!J2731=\"Contingent\"),'TSA Input'!I2731,\"\"))","v":""},{"$f":"IF('TSA Input'!J2731=\"\",\"\",IF(OR('TSA Input'!J2731=\"Yes\",'TSA Input'!J2731=\"Contingent\"),'TSA Input'!C2731,\"\"))","v":""},{"$f":"IF('TSA Input'!J2731=\"\",\"\",IF(OR('TSA Input'!J2731=\"Yes\",'TSA Input'!J2731=\"Contingent\"),'TSA Input'!D2731,\"\"))","v":""},{"$f":"IF('TSA Input'!J2731=\"\",\"\",IF(OR('TSA Input'!J2731=\"Yes\",'TSA Input'!J2731=\"Contingent\"),'TSA Input'!G2731,\"\"))","v":""},{"$f":"IF('TSA Input'!J2731=\"\",\"\",IF(OR('TSA Input'!J2731=\"Yes\",'TSA Input'!J2731=\"Contingent\"),'TSA Input'!F2731,\"\"))","v":""},"",{"$f":"IF('TSA Input'!J2731=\"\",\"\",IF(OR('TSA Input'!J2731=\"Yes\",'TSA Input'!J2731=\"Contingent\"),'TSA Input'!D2731,\"\"))","v":""},{"$f":"IF('TSA Input'!J2731=\"\",\"\",IF(OR('TSA Input'!J2731=\"Yes\",'TSA Input'!J2731=\"Contingent\"),'TSA Input'!G2731,\"\"))","v":""},{"$f":"IF('TSA Input'!J2731=\"\",\"\",IF(OR('TSA Input'!J2731=\"Yes\",'TSA Input'!J2731=\"Contingent\"),'TSA Input'!F2731,\"\"))","v":""},"","Required","Required"]
["",null,{"$f":"IF('TSA Input'!J2732=\"\",\"\",IF(OR('TSA Input'!J2732=\"Yes\",'TSA Input'!J2732=\"Contingent\"),'TSA Input'!B2732,\"Ineligible\"))","v":""},{"$f":"IF('TSA Input'!J2732=\"\",\"\",IF(OR('TSA Input'!J2732=\"Yes\",'TSA Input'!J2732=\"Contingent\"),'TSA Input'!I2732,\"\"))","v":""},{"$f":"IF('TSA Input'!J2732=\"\",\"\",IF(OR('TSA Input'!J2732=\"Yes\",'TSA Input'!J2732=\"Contingent\"),'TSA Input'!C2732,\"\"))","v":""},{"$f":"IF('TSA Input'!J2732=\"\",\"\",IF(OR('TSA Input'!J2732=\"Yes\",'TSA Input'!J2732=\"Contingent\"),'TSA Input'!D2732,\"\"))","v":""},{"$f":"IF('TSA Input'!J2732=\"\",\"\",IF(OR('TSA Input'!J2732=\"Yes\",'TSA Input'!J2732=\"Contingent\"),'TSA Input'!G2732,\"\"))","v":""},{"$f":"IF('TSA Input'!J2732=\"\",\"\",IF(OR('TSA Input'!J2732=\"Yes\",'TSA Input'!J2732=\"Contingent\"),'TSA Input'!F2732,\"\"))","v":""},"",{"$f":"IF('TSA Input'!J2732=\"\",\"\",IF(OR('TSA Input'!J2732=\"Yes\",'TSA Input'!J2732=\"Contingent\"),'TSA Input'!D2732,\"\"))","v":""},{"$f":"IF('TSA Input'!J2732=\"\",\"\",IF(OR('TSA Input'!J2732=\"Yes\",'TSA Input'!J2732=\"Contingent\"),'TSA Input'!G2732,\"\"))","v":""},{"$f":"IF('TSA Input'!J2732=\"\",\"\",IF(OR('TSA Input'!J2732=\"Yes\",'TSA Input'!J2732=\"Contingent\"),'TSA Input'!F2732,\"\"))","v":""},"","Required","Required"]
["",null,{"$f":"IF('TSA Input'!J2733=\"\",\"\",IF(OR('TSA Input'!J2733=\"Yes\",'TSA Input'!J2733=\"Contingent\"),'TSA Input'!B2733,\"Ineligible\"))","v":""},{"$f":"IF('TSA Input'!J2733=\"\",\"\",IF(OR('TSA Input'!J2733=\"Yes\",'TSA Input'!J2733=\"Contingent\"),'TSA Input'!I2733,\"\"))","v":""},{"$f":"IF('TSA Input'!J2733=\"\",\"\",IF(OR('TSA Input'!J2733=\"Yes\",'TSA Input'!J2733=\"Contingent\"),'TSA Input'!C2733,\"\"))","v":""},{"$f":"IF('TSA Input'!J2733=\"\",\"\",IF(OR('TSA Input'!J2733=\"Yes\",'TSA Input'!J2733=\"Contingent\"),'TSA Input'!D2733,\"\"))","v":""},{"$f":"IF('TSA Input'!J2733=\"\",\"\",IF(OR('TSA Input'!J2733=\"Yes\",'TSA Input'!J2733=\"Contingent\"),'TSA Input'!G2733,\"\"))","v":""},{"$f":"IF('TSA Input'!J2733=\"\",\"\",IF(OR('TSA Input'!J2733=\"Yes\",'TSA Input'!J2733=\"Contingent\"),'TSA Input'!F2733,\"\"))","v":""},"",{"$f":"IF('TSA Input'!J2733=\"\",\"\",IF(OR('TSA Input'!J2733=\"Yes\",'TSA Input'!J2733=\"Contingent\"),'TSA Input'!D2733,\"\"))","v":""},{"$f":"IF('TSA Input'!J2733=\"\",\"\",IF(OR('TSA Input'!J2733=\"Yes\",'TSA Input'!J2733=\"Contingent\"),'TSA Input'!G2733,\"\"))","v":""},{"$f":"IF('TSA Input'!J2733=\"\",\"\",IF(OR('TSA Input'!J2733=\"Yes\",'TSA Input'!J2733=\"Contingent\"),'TSA Input'!F2733,\"\"))","v":""},"","Required","Required"]
["",null,{"$f":"IF('TSA Input'!J2734=\"\",\"\",IF(OR('TSA Input'!J2734=\"Yes\",'TSA Input'!J2734=\"Contingent\"),'TSA Input'!B2734,\"Ineligible\"))","v":""},{"$f":"IF('TSA Input'!J2734=\"\",\"\",IF(OR('TSA Input'!J2734=\"Yes\",'TSA Input'!J2734=\"Contingent\"),'TSA Input'!I2734,\"\"))","v":""},{"$f":"IF('TSA Input'!J2734=\"\",\"\",IF(OR('TSA Input'!J2734=\"Yes\",'TSA Input'!J2734=\"Contingent\"),'TSA Input'!C2734,\"\"))","v":""},{"$f":"IF('TSA Input'!J2734=\"\",\"\",IF(OR('TSA Input'!J2734=\"Yes\",'TSA Input'!J2734=\"Contingent\"),'TSA Input'!D2734,\"\"))","v":""},{"$f":"IF('TSA Input'!J2734=\"\",\"\",IF(OR('TSA Input'!J2734=\"Yes\",'TSA Input'!J2734=\"Contingent\"),'TSA Input'!G2734,\"\"))","v":""},{"$f":"IF('TSA Input'!J2734=\"\",\"\",IF(OR('TSA Input'!J2734=\"Yes\",'TSA Input'!J2734=\"Contingent\"),'TSA Input'!F2734,\"\"))","v":""},"",{"$f":"IF('TSA Input'!J2734=\"\",\"\",IF(OR('TSA Input'!J2734=\"Yes\",'TSA Input'!J2734=\"Contingent\"),'TSA Input'!D2734,\"\"))","v":""},{"$f":"IF('TSA Input'!J2734=\"\",\"\",IF(OR('TSA Input'!J2734=\"Yes\",'TSA Input'!J2734=\"Contingent\"),'TSA Input'!G2734,\"\"))","v":""},{"$f":"IF('TSA Input'!J2734=\"\",\"\",IF(OR('TSA Input'!J2734=\"Yes\",'TSA Input'!J2734=\"Contingent\"),'TSA Input'!F2734,\"\"))","v":""},"","Required","Required"]
["",null,{"$f":"IF('TSA Input'!J2735=\"\",\"\",IF(OR('TSA Input'!J2735=\"Yes\",'TSA Input'!J2735=\"Contingent\"),'TSA Input'!B2735,\"Ineligible\"))","v":""},{"$f":"IF('TSA Input'!J2735=\"\",\"\",IF(OR('TSA Input'!J2735=\"Yes\",'TSA Input'!J2735=\"Contingent\"),'TSA Input'!I2735,\"\"))","v":""},{"$f":"IF('TSA Input'!J2735=\"\",\"\",IF(OR('TSA Input'!J2735=\"Yes\",'TSA Input'!J2735=\"Contingent\"),'TSA Input'!C2735,\"\"))","v":""},{"$f":"IF('TSA Input'!J2735=\"\",\"\",IF(OR('TSA Input'!J2735=\"Yes\",'TSA Input'!J2735=\"Contingent\"),'TSA Input'!D2735,\"\"))","v":""},{"$f":"IF('TSA Input'!J2735=\"\",\"\",IF(OR('TSA Input'!J2735=\"Yes\",'TSA Input'!J2735=\"Contingent\"),'TSA Input'!G2735,\"\"))","v":""},{"$f":"IF('TSA Input'!J2735=\"\",\"\",IF(OR('TSA Input'!J2735=\"Yes\",'TSA Input'!J2735=\"Contingent\"),'TSA Input'!F2735,\"\"))","v":""},"",{"$f":"IF('TSA Input'!J2735=\"\",\"\",IF(OR('TSA Input'!J2735=\"Yes\",'TSA Input'!J2735=\"Contingent\"),'TSA Input'!D2735,\"\"))","v":""},{"$f":"IF('TSA Input'!J2735=\"\",\"\",IF(OR('TSA Input'!J2735=\"Yes\",'TSA Input'!J2735=\"Contingent\"),'TSA Input'!G2735,\"\"))","v":""},{"$f":"IF('TSA Input'!J2735=\"\",\"\",IF(OR('TSA Input'!J2735=\"Yes\",'TSA Input'!J2735=\"Contingent\"),'TSA Input'!F2735,\"\"))","v":""},"","Required","Required"]
["",null,{"$f":"IF('TSA Input'!J2736=\"\",\"\",IF(OR('TSA Input'!J2736=\"Yes\",'TSA Input'!J2736=\"Contingent\"),'TSA Input'!B2736,\"Ineligible\"))","v":""},{"$f":"IF('TSA Input'!J2736=\"\",\"\",IF(OR('TSA Input'!J2736=\"Yes\",'TSA Input'!J2736=\"Contingent\"),'TSA Input'!I2736,\"\"))","v":""},{"$f":"IF('TSA Input'!J2736=\"\",\"\",IF(OR('TSA Input'!J2736=\"Yes\",'TSA Input'!J2736=\"Contingent\"),'TSA Input'!C2736,\"\"))","v":""},{"$f":"IF('TSA Input'!J2736=\"\",\"\",IF(OR('TSA Input'!J2736=\"Yes\",'TSA Input'!J2736=\"Contingent\"),'TSA Input'!D2736,\"\"))","v":""},{"$f":"IF('TSA Input'!J2736=\"\",\"\",IF(OR('TSA Input'!J2736=\"Yes\",'TSA Input'!J2736=\"Contingent\"),'TSA Input'!G2736,\"\"))","v":""},{"$f":"IF('TSA Input'!J2736=\"\",\"\",IF(OR('TSA Input'!J2736=\"Yes\",'TSA Input'!J2736=\"Contingent\"),'TSA Input'!F2736,\"\"))","v":""},"",{"$f":"IF('TSA Input'!J2736=\"\",\"\",IF(OR('TSA Input'!J2736=\"Yes\",'TSA Input'!J2736=\"Contingent\"),'TSA Input'!D2736,\"\"))","v":""},{"$f":"IF('TSA Input'!J2736=\"\",\"\",IF(OR('TSA Input'!J2736=\"Yes\",'TSA Input'!J2736=\"Contingent\"),'TSA Input'!G2736,\"\"))","v":""},{"$f":"IF('TSA Input'!J2736=\"\",\"\",IF(OR('TSA Input'!J2736=\"Yes\",'TSA Input'!J2736=\"Contingent\"),'TSA Input'!F2736,\"\"))","v":""},"","Required","Required"]
["",null,{"$f":"IF('TSA Input'!J2737=\"\",\"\",IF(OR('TSA Input'!J2737=\"Yes\",'TSA Input'!J2737=\"Contingent\"),'TSA Input'!B2737,\"Ineligible\"))","v":""},{"$f":"IF('TSA Input'!J2737=\"\",\"\",IF(OR('TSA Input'!J2737=\"Yes\",'TSA Input'!J2737=\"Contingent\"),'TSA Input'!I2737,\"\"))","v":""},{"$f":"IF('TSA Input'!J2737=\"\",\"\",IF(OR('TSA Input'!J2737=\"Yes\",'TSA Input'!J2737=\"Contingent\"),'TSA Input'!C2737,\"\"))","v":""},{"$f":"IF('TSA Input'!J2737=\"\",\"\",IF(OR('TSA Input'!J2737=\"Yes\",'TSA Input'!J2737=\"Contingent\"),'TSA Input'!D2737,\"\"))","v":""},{"$f":"IF('TSA Input'!J2737=\"\",\"\",IF(OR('TSA Input'!J2737=\"Yes\",'TSA Input'!J2737=\"Contingent\"),'TSA Input'!G2737,\"\"))","v":""},{"$f":"IF('TSA Input'!J2737=\"\",\"\",IF(OR('TSA Input'!J2737=\"Yes\",'TSA Input'!J2737=\"Contingent\"),'TSA Input'!F2737,\"\"))","v":""},"",{"$f":"IF('TSA Input'!J2737=\"\",\"\",IF(OR('TSA Input'!J2737=\"Yes\",'TSA Input'!J2737=\"Contingent\"),'TSA Input'!D2737,\"\"))","v":""},{"$f":"IF('TSA Input'!J2737=\"\",\"\",IF(OR('TSA Input'!J2737=\"Yes\",'TSA Input'!J2737=\"Contingent\"),'TSA Input'!G2737,\"\"))","v":""},{"$f":"IF('TSA Input'!J2737=\"\",\"\",IF(OR('TSA Input'!J2737=\"Yes\",'TSA Input'!J2737=\"Contingent\"),'TSA Input'!F2737,\"\"))","v":""},"","Required","Required"]
["",null,{"$f":"IF('TSA Input'!J2738=\"\",\"\",IF(OR('TSA Input'!J2738=\"Yes\",'TSA Input'!J2738=\"Contingent\"),'TSA Input'!B2738,\"Ineligible\"))","v":""},{"$f":"IF('TSA Input'!J2738=\"\",\"\",IF(OR('TSA Input'!J2738=\"Yes\",'TSA Input'!J2738=\"Contingent\"),'TSA Input'!I2738,\"\"))","v":""},{"$f":"IF('TSA Input'!J2738=\"\",\"\",IF(OR('TSA Input'!J2738=\"Yes\",'TSA Input'!J2738=\"Contingent\"),'TSA Input'!C2738,\"\"))","v":""},{"$f":"IF('TSA Input'!J2738=\"\",\"\",IF(OR('TSA Input'!J2738=\"Yes\",'TSA Input'!J2738=\"Contingent\"),'TSA Input'!D2738,\"\"))","v":""},{"$f":"IF('TSA Input'!J2738=\"\",\"\",IF(OR('TSA Input'!J2738=\"Yes\",'TSA Input'!J2738=\"Contingent\"),'TSA Input'!G2738,\"\"))","v":""},{"$f":"IF('TSA Input'!J2738=\"\",\"\",IF(OR('TSA Input'!J2738=\"Yes\",'TSA Input'!J2738=\"Contingent\"),'TSA Input'!F2738,\"\"))","v":""},"",{"$f":"IF('TSA Input'!J2738=\"\",\"\",IF(OR('TSA Input'!J2738=\"Yes\",'TSA Input'!J2738=\"Contingent\"),'TSA Input'!D2738,\"\"))","v":""},{"$f":"IF('TSA Input'!J2738=\"\",\"\",IF(OR('TSA Input'!J2738=\"Yes\",'TSA Input'!J2738=\"Contingent\"),'TSA Input'!G2738,\"\"))","v":""},{"$f":"IF('TSA Input'!J2738=\"\",\"\",IF(OR('TSA Input'!J2738=\"Yes\",'TSA Input'!J2738=\"Contingent\"),'TSA Input'!F2738,\"\"))","v":""},"","Required","Required"]
["",null,{"$f":"IF('TSA Input'!J2739=\"\",\"\",IF(OR('TSA Input'!J2739=\"Yes\",'TSA Input'!J2739=\"Contingent\"),'TSA Input'!B2739,\"Ineligible\"))","v":""},{"$f":"IF('TSA Input'!J2739=\"\",\"\",IF(OR('TSA Input'!J2739=\"Yes\",'TSA Input'!J2739=\"Contingent\"),'TSA Input'!I2739,\"\"))","v":""},{"$f":"IF('TSA Input'!J2739=\"\",\"\",IF(OR('TSA Input'!J2739=\"Yes\",'TSA Input'!J2739=\"Contingent\"),'TSA Input'!C2739,\"\"))","v":""},{"$f":"IF('TSA Input'!J2739=\"\",\"\",IF(OR('TSA Input'!J2739=\"Yes\",'TSA Input'!J2739=\"Contingent\"),'TSA Input'!D2739,\"\"))","v":""},{"$f":"IF('TSA Input'!J2739=\"\",\"\",IF(OR('TSA Input'!J2739=\"Yes\",'TSA Input'!J2739=\"Contingent\"),'TSA Input'!G2739,\"\"))","v":""},{"$f":"IF('TSA Input'!J2739=\"\",\"\",IF(OR('TSA Input'!J2739=\"Yes\",'TSA Input'!J2739=\"Contingent\"),'TSA Input'!F2739,\"\"))","v":""},"",{"$f":"IF('TSA Input'!J2739=\"\",\"\",IF(OR('TSA Input'!J2739=\"Yes\",'TSA Input'!J2739=\"Contingent\"),'TSA Input'!D2739,\"\"))","v":""},{"$f":"IF('TSA Input'!J2739=\"\",\"\",IF(OR('TSA Input'!J2739=\"Yes\",'TSA Input'!J2739=\"Contingent\"),'TSA Input'!G2739,\"\"))","v":""},{"$f":"IF('TSA Input'!J2739=\"\",\"\",IF(OR('TSA Input'!J2739=\"Yes\",'TSA Input'!J2739=\"Contingent\"),'TSA Input'!F2739,\"\"))","v":""},"","Required","Required"]
["",null,{"$f":"IF('TSA Input'!J2740=\"\",\"\",IF(OR('TSA Input'!J2740=\"Yes\",'TSA Input'!J2740=\"Contingent\"),'TSA Input'!B2740,\"Ineligible\"))","v":""},{"$f":"IF('TSA Input'!J2740=\"\",\"\",IF(OR('TSA Input'!J2740=\"Yes\",'TSA Input'!J2740=\"Contingent\"),'TSA Input'!I2740,\"\"))","v":""},{"$f":"IF('TSA Input'!J2740=\"\",\"\",IF(OR('TSA Input'!J2740=\"Yes\",'TSA Input'!J2740=\"Contingent\"),'TSA Input'!C2740,\"\"))","v":""},{"$f":"IF('TSA Input'!J2740=\"\",\"\",IF(OR('TSA Input'!J2740=\"Yes\",'TSA Input'!J2740=\"Contingent\"),'TSA Input'!D2740,\"\"))","v":""},{"$f":"IF('TSA Input'!J2740=\"\",\"\",IF(OR('TSA Input'!J2740=\"Yes\",'TSA Input'!J2740=\"Contingent\"),'TSA Input'!G2740,\"\"))","v":""},{"$f":"IF('TSA Input'!J2740=\"\",\"\",IF(OR('TSA Input'!J2740=\"Yes\",'TSA Input'!J2740=\"Contingent\"),'TSA Input'!F2740,\"\"))","v":""},"",{"$f":"IF('TSA Input'!J2740=\"\",\"\",IF(OR('TSA Input'!J2740=\"Yes\",'TSA Input'!J2740=\"Contingent\"),'TSA Input'!D2740,\"\"))","v":""},{"$f":"IF('TSA Input'!J2740=\"\",\"\",IF(OR('TSA Input'!J2740=\"Yes\",'TSA Input'!J2740=\"Contingent\"),'TSA Input'!G2740,\"\"))","v":""},{"$f":"IF('TSA Input'!J2740=\"\",\"\",IF(OR('TSA Input'!J2740=\"Yes\",'TSA Input'!J2740=\"Contingent\"),'TSA Input'!F2740,\"\"))","v":""},"","Required","Required"]
["",null,{"$f":"IF('TSA Input'!J2741=\"\",\"\",IF(OR('TSA Input'!J2741=\"Yes\",'TSA Input'!J2741=\"Contingent\"),'TSA Input'!B2741,\"Ineligible\"))","v":""},{"$f":"IF('TSA Input'!J2741=\"\",\"\",IF(OR('TSA Input'!J2741=\"Yes\",'TSA Input'!J2741=\"Contingent\"),'TSA Input'!I2741,\"\"))","v":""},{"$f":"IF('TSA Input'!J2741=\"\",\"\",IF(OR('TSA Input'!J2741=\"Yes\",'TSA Input'!J2741=\"Contingent\"),'TSA Input'!C2741,\"\"))","v":""},{"$f":"IF('TSA Input'!J2741=\"\",\"\",IF(OR('TSA Input'!J2741=\"Yes\",'TSA Input'!J2741=\"Contingent\"),'TSA Input'!D2741,\"\"))","v":""},{"$f":"IF('TSA Input'!J2741=\"\",\"\",IF(OR('TSA Input'!J2741=\"Yes\",'TSA Input'!J2741=\"Contingent\"),'TSA Input'!G2741,\"\"))","v":""},{"$f":"IF('TSA Input'!J2741=\"\",\"\",IF(OR('TSA Input'!J2741=\"Yes\",'TSA Input'!J2741=\"Contingent\"),'TSA Input'!F2741,\"\"))","v":""},"",{"$f":"IF('TSA Input'!J2741=\"\",\"\",IF(OR('TSA Input'!J2741=\"Yes\",'TSA Input'!J2741=\"Contingent\"),'TSA Input'!D2741,\"\"))","v":""},{"$f":"IF('TSA Input'!J2741=\"\",\"\",IF(OR('TSA Input'!J2741=\"Yes\",'TSA Input'!J2741=\"Contingent\"),'TSA Input'!G2741,\"\"))","v":""},{"$f":"IF('TSA Input'!J2741=\"\",\"\",IF(OR('TSA Input'!J2741=\"Yes\",'TSA Input'!J2741=\"Contingent\"),'TSA Input'!F2741,\"\"))","v":""},"","Required","Required"]
["",null,{"$f":"IF('TSA Input'!J2742=\"\",\"\",IF(OR('TSA Input'!J2742=\"Yes\",'TSA Input'!J2742=\"Contingent\"),'TSA Input'!B2742,\"Ineligible\"))","v":""},{"$f":"IF('TSA Input'!J2742=\"\",\"\",IF(OR('TSA Input'!J2742=\"Yes\",'TSA Input'!J2742=\"Contingent\"),'TSA Input'!I2742,\"\"))","v":""},{"$f":"IF('TSA Input'!J2742=\"\",\"\",IF(OR('TSA Input'!J2742=\"Yes\",'TSA Input'!J2742=\"Contingent\"),'TSA Input'!C2742,\"\"))","v":""},{"$f":"IF('TSA Input'!J2742=\"\",\"\",IF(OR('TSA Input'!J2742=\"Yes\",'TSA Input'!J2742=\"Contingent\"),'TSA Input'!D2742,\"\"))","v":""},{"$f":"IF('TSA Input'!J2742=\"\",\"\",IF(OR('TSA Input'!J2742=\"Yes\",'TSA Input'!J2742=\"Contingent\"),'TSA Input'!G2742,\"\"))","v":""},{"$f":"IF('TSA Input'!J2742=\"\",\"\",IF(OR('TSA Input'!J2742=\"Yes\",'TSA Input'!J2742=\"Contingent\"),'TSA Input'!F2742,\"\"))","v":""},"",{"$f":"IF('TSA Input'!J2742=\"\",\"\",IF(OR('TSA Input'!J2742=\"Yes\",'TSA Input'!J2742=\"Contingent\"),'TSA Input'!D2742,\"\"))","v":""},{"$f":"IF('TSA Input'!J2742=\"\",\"\",IF(OR('TSA Input'!J2742=\"Yes\",'TSA Input'!J2742=\"Contingent\"),'TSA Input'!G2742,\"\"))","v":""},{"$f":"IF('TSA Input'!J2742=\"\",\"\",IF(OR('TSA Input'!J2742=\"Yes\",'TSA Input'!J2742=\"Contingent\"),'TSA Input'!F2742,\"\"))","v":""},"","Required","Required"]
["",null,{"$f":"IF('TSA Input'!J2743=\"\",\"\",IF(OR('TSA Input'!J2743=\"Yes\",'TSA Input'!J2743=\"Contingent\"),'TSA Input'!B2743,\"Ineligible\"))","v":""},{"$f":"IF('TSA Input'!J2743=\"\",\"\",IF(OR('TSA Input'!J2743=\"Yes\",'TSA Input'!J2743=\"Contingent\"),'TSA Input'!I2743,\"\"))","v":""},{"$f":"IF('TSA Input'!J2743=\"\",\"\",IF(OR('TSA Input'!J2743=\"Yes\",'TSA Input'!J2743=\"Contingent\"),'TSA Input'!C2743,\"\"))","v":""},{"$f":"IF('TSA Input'!J2743=\"\",\"\",IF(OR('TSA Input'!J2743=\"Yes\",'TSA Input'!J2743=\"Contingent\"),'TSA Input'!D2743,\"\"))","v":""},{"$f":"IF('TSA Input'!J2743=\"\",\"\",IF(OR('TSA Input'!J2743=\"Yes\",'TSA Input'!J2743=\"Contingent\"),'TSA Input'!G2743,\"\"))","v":""},{"$f":"IF('TSA Input'!J2743=\"\",\"\",IF(OR('TSA Input'!J2743=\"Yes\",'TSA Input'!J2743=\"Contingent\"),'TSA Input'!F2743,\"\"))","v":""},"",{"$f":"IF('TSA Input'!J2743=\"\",\"\",IF(OR('TSA Input'!J2743=\"Yes\",'TSA Input'!J2743=\"Contingent\"),'TSA Input'!D2743,\"\"))","v":""},{"$f":"IF('TSA Input'!J2743=\"\",\"\",IF(OR('TSA Input'!J2743=\"Yes\",'TSA Input'!J2743=\"Contingent\"),'TSA Input'!G2743,\"\"))","v":""},{"$f":"IF('TSA Input'!J2743=\"\",\"\",IF(OR('TSA Input'!J2743=\"Yes\",'TSA Input'!J2743=\"Contingent\"),'TSA Input'!F2743,\"\"))","v":""},"","Required","Required"]
["",null,{"$f":"IF('TSA Input'!J2744=\"\",\"\",IF(OR('TSA Input'!J2744=\"Yes\",'TSA Input'!J2744=\"Contingent\"),'TSA Input'!B2744,\"Ineligible\"))","v":""},{"$f":"IF('TSA Input'!J2744=\"\",\"\",IF(OR('TSA Input'!J2744=\"Yes\",'TSA Input'!J2744=\"Contingent\"),'TSA Input'!I2744,\"\"))","v":""},{"$f":"IF('TSA Input'!J2744=\"\",\"\",IF(OR('TSA Input'!J2744=\"Yes\",'TSA Input'!J2744=\"Contingent\"),'TSA Input'!C2744,\"\"))","v":""},{"$f":"IF('TSA Input'!J2744=\"\",\"\",IF(OR('TSA Input'!J2744=\"Yes\",'TSA Input'!J2744=\"Contingent\"),'TSA Input'!D2744,\"\"))","v":""},{"$f":"IF('TSA Input'!J2744=\"\",\"\",IF(OR('TSA Input'!J2744=\"Yes\",'TSA Input'!J2744=\"Contingent\"),'TSA Input'!G2744,\"\"))","v":""},{"$f":"IF('TSA Input'!J2744=\"\",\"\",IF(OR('TSA Input'!J2744=\"Yes\",'TSA Input'!J2744=\"Contingent\"),'TSA Input'!F2744,\"\"))","v":""},"",{"$f":"IF('TSA Input'!J2744=\"\",\"\",IF(OR('TSA Input'!J2744=\"Yes\",'TSA Input'!J2744=\"Contingent\"),'TSA Input'!D2744,\"\"))","v":""},{"$f":"IF('TSA Input'!J2744=\"\",\"\",IF(OR('TSA Input'!J2744=\"Yes\",'TSA Input'!J2744=\"Contingent\"),'TSA Input'!G2744,\"\"))","v":""},{"$f":"IF('TSA Input'!J2744=\"\",\"\",IF(OR('TSA Input'!J2744=\"Yes\",'TSA Input'!J2744=\"Contingent\"),'TSA Input'!F2744,\"\"))","v":""},"","Required","Required"]
["",null,{"$f":"IF('TSA Input'!J2745=\"\",\"\",IF(OR('TSA Input'!J2745=\"Yes\",'TSA Input'!J2745=\"Contingent\"),'TSA Input'!B2745,\"Ineligible\"))","v":""},{"$f":"IF('TSA Input'!J2745=\"\",\"\",IF(OR('TSA Input'!J2745=\"Yes\",'TSA Input'!J2745=\"Contingent\"),'TSA Input'!I2745,\"\"))","v":""},{"$f":"IF('TSA Input'!J2745=\"\",\"\",IF(OR('TSA Input'!J2745=\"Yes\",'TSA Input'!J2745=\"Contingent\"),'TSA Input'!C2745,\"\"))","v":""},{"$f":"IF('TSA Input'!J2745=\"\",\"\",IF(OR('TSA Input'!J2745=\"Yes\",'TSA Input'!J2745=\"Contingent\"),'TSA Input'!D2745,\"\"))","v":""},{"$f":"IF('TSA Input'!J2745=\"\",\"\",IF(OR('TSA Input'!J2745=\"Yes\",'TSA Input'!J2745=\"Contingent\"),'TSA Input'!G2745,\"\"))","v":""},{"$f":"IF('TSA Input'!J2745=\"\",\"\",IF(OR('TSA Input'!J2745=\"Yes\",'TSA Input'!J2745=\"Contingent\"),'TSA Input'!F2745,\"\"))","v":""},"",{"$f":"IF('TSA Input'!J2745=\"\",\"\",IF(OR('TSA Input'!J2745=\"Yes\",'TSA Input'!J2745=\"Contingent\"),'TSA Input'!D2745,\"\"))","v":""},{"$f":"IF('TSA Input'!J2745=\"\",\"\",IF(OR('TSA Input'!J2745=\"Yes\",'TSA Input'!J2745=\"Contingent\"),'TSA Input'!G2745,\"\"))","v":""},{"$f":"IF('TSA Input'!J2745=\"\",\"\",IF(OR('TSA Input'!J2745=\"Yes\",'TSA Input'!J2745=\"Contingent\"),'TSA Input'!F2745,\"\"))","v":""},"","Required","Required"]
["",null,{"$f":"IF('TSA Input'!J2746=\"\",\"\",IF(OR('TSA Input'!J2746=\"Yes\",'TSA Input'!J2746=\"Contingent\"),'TSA Input'!B2746,\"Ineligible\"))","v":""},{"$f":"IF('TSA Input'!J2746=\"\",\"\",IF(OR('TSA Input'!J2746=\"Yes\",'TSA Input'!J2746=\"Contingent\"),'TSA Input'!I2746,\"\"))","v":""},{"$f":"IF('TSA Input'!J2746=\"\",\"\",IF(OR('TSA Input'!J2746=\"Yes\",'TSA Input'!J2746=\"Contingent\"),'TSA Input'!C2746,\"\"))","v":""},{"$f":"IF('TSA Input'!J2746=\"\",\"\",IF(OR('TSA Input'!J2746=\"Yes\",'TSA Input'!J2746=\"Contingent\"),'TSA Input'!D2746,\"\"))","v":""},{"$f":"IF('TSA Input'!J2746=\"\",\"\",IF(OR('TSA Input'!J2746=\"Yes\",'TSA Input'!J2746=\"Contingent\"),'TSA Input'!G2746,\"\"))","v":""},{"$f":"IF('TSA Input'!J2746=\"\",\"\",IF(OR('TSA Input'!J2746=\"Yes\",'TSA Input'!J2746=\"Contingent\"),'TSA Input'!F2746,\"\"))","v":""},"",{"$f":"IF('TSA Input'!J2746=\"\",\"\",IF(OR('TSA Input'!J2746=\"Yes\",'TSA Input'!J2746=\"Contingent\"),'TSA Input'!D2746,\"\"))","v":""},{"$f":"IF('TSA Input'!J2746=\"\",\"\",IF(OR('TSA Input'!J2746=\"Yes\",'TSA Input'!J2746=\"Contingent\"),'TSA Input'!G2746,\"\"))","v":""},{"$f":"IF('TSA Input'!J2746=\"\",\"\",IF(OR('TSA Input'!J2746=\"Yes\",'TSA Input'!J2746=\"Contingent\"),'TSA Input'!F2746,\"\"))","v":""},"","Required","Required"]
["",null,{"$f":"IF('TSA Input'!J2747=\"\",\"\",IF(OR('TSA Input'!J2747=\"Yes\",'TSA Input'!J2747=\"Contingent\"),'TSA Input'!B2747,\"Ineligible\"))","v":""},{"$f":"IF('TSA Input'!J2747=\"\",\"\",IF(OR('TSA Input'!J2747=\"Yes\",'TSA Input'!J2747=\"Contingent\"),'TSA Input'!I2747,\"\"))","v":""},{"$f":"IF('TSA Input'!J2747=\"\",\"\",IF(OR('TSA Input'!J2747=\"Yes\",'TSA Input'!J2747=\"Contingent\"),'TSA Input'!C2747,\"\"))","v":""},{"$f":"IF('TSA Input'!J2747=\"\",\"\",IF(OR('TSA Input'!J2747=\"Yes\",'TSA Input'!J2747=\"Contingent\"),'TSA Input'!D2747,\"\"))","v":""},{"$f":"IF('TSA Input'!J2747=\"\",\"\",IF(OR('TSA Input'!J2747=\"Yes\",'TSA Input'!J2747=\"Contingent\"),'TSA Input'!G2747,\"\"))","v":""},{"$f":"IF('TSA Input'!J2747=\"\",\"\",IF(OR('TSA Input'!J2747=\"Yes\",'TSA Input'!J2747=\"Contingent\"),'TSA Input'!F2747,\"\"))","v":""},"",{"$f":"IF('TSA Input'!J2747=\"\",\"\",IF(OR('TSA Input'!J2747=\"Yes\",'TSA Input'!J2747=\"Contingent\"),'TSA Input'!D2747,\"\"))","v":""},{"$f":"IF('TSA Input'!J2747=\"\",\"\",IF(OR('TSA Input'!J2747=\"Yes\",'TSA Input'!J2747=\"Contingent\"),'TSA Input'!G2747,\"\"))","v":""},{"$f":"IF('TSA Input'!J2747=\"\",\"\",IF(OR('TSA Input'!J2747=\"Yes\",'TSA Input'!J2747=\"Contingent\"),'TSA Input'!F2747,\"\"))","v":""},"","Required","Required"]
["",null,{"$f":"IF('TSA Input'!J2748=\"\",\"\",IF(OR('TSA Input'!J2748=\"Yes\",'TSA Input'!J2748=\"Contingent\"),'TSA Input'!B2748,\"Ineligible\"))","v":""},{"$f":"IF('TSA Input'!J2748=\"\",\"\",IF(OR('TSA Input'!J2748=\"Yes\",'TSA Input'!J2748=\"Contingent\"),'TSA Input'!I2748,\"\"))","v":""},{"$f":"IF('TSA Input'!J2748=\"\",\"\",IF(OR('TSA Input'!J2748=\"Yes\",'TSA Input'!J2748=\"Contingent\"),'TSA Input'!C2748,\"\"))","v":""},{"$f":"IF('TSA Input'!J2748=\"\",\"\",IF(OR('TSA Input'!J2748=\"Yes\",'TSA Input'!J2748=\"Contingent\"),'TSA Input'!D2748,\"\"))","v":""},{"$f":"IF('TSA Input'!J2748=\"\",\"\",IF(OR('TSA Input'!J2748=\"Yes\",'TSA Input'!J2748=\"Contingent\"),'TSA Input'!G2748,\"\"))","v":""},{"$f":"IF('TSA Input'!J2748=\"\",\"\",IF(OR('TSA Input'!J2748=\"Yes\",'TSA Input'!J2748=\"Contingent\"),'TSA Input'!F2748,\"\"))","v":""},"",{"$f":"IF('TSA Input'!J2748=\"\",\"\",IF(OR('TSA Input'!J2748=\"Yes\",'TSA Input'!J2748=\"Contingent\"),'TSA Input'!D2748,\"\"))","v":""},{"$f":"IF('TSA Input'!J2748=\"\",\"\",IF(OR('TSA Input'!J2748=\"Yes\",'TSA Input'!J2748=\"Contingent\"),'TSA Input'!G2748,\"\"))","v":""},{"$f":"IF('TSA Input'!J2748=\"\",\"\",IF(OR('TSA Input'!J2748=\"Yes\",'TSA Input'!J2748=\"Contingent\"),'TSA Input'!F2748,\"\"))","v":""},"","Required","Required"]
["",null,{"$f":"IF('TSA Input'!J2749=\"\",\"\",IF(OR('TSA Input'!J2749=\"Yes\",'TSA Input'!J2749=\"Contingent\"),'TSA Input'!B2749,\"Ineligible\"))","v":""},{"$f":"IF('TSA Input'!J2749=\"\",\"\",IF(OR('TSA Input'!J2749=\"Yes\",'TSA Input'!J2749=\"Contingent\"),'TSA Input'!I2749,\"\"))","v":""},{"$f":"IF('TSA Input'!J2749=\"\",\"\",IF(OR('TSA Input'!J2749=\"Yes\",'TSA Input'!J2749=\"Contingent\"),'TSA Input'!C2749,\"\"))","v":""},{"$f":"IF('TSA Input'!J2749=\"\",\"\",IF(OR('TSA Input'!J2749=\"Yes\",'TSA Input'!J2749=\"Contingent\"),'TSA Input'!D2749,\"\"))","v":""},{"$f":"IF('TSA Input'!J2749=\"\",\"\",IF(OR('TSA Input'!J2749=\"Yes\",'TSA Input'!J2749=\"Contingent\"),'TSA Input'!G2749,\"\"))","v":""},{"$f":"IF('TSA Input'!J2749=\"\",\"\",IF(OR('TSA Input'!J2749=\"Yes\",'TSA Input'!J2749=\"Contingent\"),'TSA Input'!F2749,\"\"))","v":""},"",{"$f":"IF('TSA Input'!J2749=\"\",\"\",IF(OR('TSA Input'!J2749=\"Yes\",'TSA Input'!J2749=\"Contingent\"),'TSA Input'!D2749,\"\"))","v":""},{"$f":"IF('TSA Input'!J2749=\"\",\"\",IF(OR('TSA Input'!J2749=\"Yes\",'TSA Input'!J2749=\"Contingent\"),'TSA Input'!G2749,\"\"))","v":""},{"$f":"IF('TSA Input'!J2749=\"\",\"\",IF(OR('TSA Input'!J2749=\"Yes\",'TSA Input'!J2749=\"Contingent\"),'TSA Input'!F2749,\"\"))","v":""},"","Required","Required"]
["",null,{"$f":"IF('TSA Input'!J2750=\"\",\"\",IF(OR('TSA Input'!J2750=\"Yes\",'TSA Input'!J2750=\"Contingent\"),'TSA Input'!B2750,\"Ineligible\"))","v":""},{"$f":"IF('TSA Input'!J2750=\"\",\"\",IF(OR('TSA Input'!J2750=\"Yes\",'TSA Input'!J2750=\"Contingent\"),'TSA Input'!I2750,\"\"))","v":""},{"$f":"IF('TSA Input'!J2750=\"\",\"\",IF(OR('TSA Input'!J2750=\"Yes\",'TSA Input'!J2750=\"Contingent\"),'TSA Input'!C2750,\"\"))","v":""},{"$f":"IF('TSA Input'!J2750=\"\",\"\",IF(OR('TSA Input'!J2750=\"Yes\",'TSA Input'!J2750=\"Contingent\"),'TSA Input'!D2750,\"\"))","v":""},{"$f":"IF('TSA Input'!J2750=\"\",\"\",IF(OR('TSA Input'!J2750=\"Yes\",'TSA Input'!J2750=\"Contingent\"),'TSA Input'!G2750,\"\"))","v":""},{"$f":"IF('TSA Input'!J2750=\"\",\"\",IF(OR('TSA Input'!J2750=\"Yes\",'TSA Input'!J2750=\"Contingent\"),'TSA Input'!F2750,\"\"))","v":""},"",{"$f":"IF('TSA Input'!J2750=\"\",\"\",IF(OR('TSA Input'!J2750=\"Yes\",'TSA Input'!J2750=\"Contingent\"),'TSA Input'!D2750,\"\"))","v":""},{"$f":"IF('TSA Input'!J2750=\"\",\"\",IF(OR('TSA Input'!J2750=\"Yes\",'TSA Input'!J2750=\"Contingent\"),'TSA Input'!G2750,\"\"))","v":""},{"$f":"IF('TSA Input'!J2750=\"\",\"\",IF(OR('TSA Input'!J2750=\"Yes\",'TSA Input'!J2750=\"Contingent\"),'TSA Input'!F2750,\"\"))","v":""},"","Required","Required"]
["",null,{"$f":"IF('TSA Input'!J2751=\"\",\"\",IF(OR('TSA Input'!J2751=\"Yes\",'TSA Input'!J2751=\"Contingent\"),'TSA Input'!B2751,\"Ineligible\"))","v":""},{"$f":"IF('TSA Input'!J2751=\"\",\"\",IF(OR('TSA Input'!J2751=\"Yes\",'TSA Input'!J2751=\"Contingent\"),'TSA Input'!I2751,\"\"))","v":""},{"$f":"IF('TSA Input'!J2751=\"\",\"\",IF(OR('TSA Input'!J2751=\"Yes\",'TSA Input'!J2751=\"Contingent\"),'TSA Input'!C2751,\"\"))","v":""},{"$f":"IF('TSA Input'!J2751=\"\",\"\",IF(OR('TSA Input'!J2751=\"Yes\",'TSA Input'!J2751=\"Contingent\"),'TSA Input'!D2751,\"\"))","v":""},{"$f":"IF('TSA Input'!J2751=\"\",\"\",IF(OR('TSA Input'!J2751=\"Yes\",'TSA Input'!J2751=\"Contingent\"),'TSA Input'!G2751,\"\"))","v":""},{"$f":"IF('TSA Input'!J2751=\"\",\"\",IF(OR('TSA Input'!J2751=\"Yes\",'TSA Input'!J2751=\"Contingent\"),'TSA Input'!F2751,\"\"))","v":""},"",{"$f":"IF('TSA Input'!J2751=\"\",\"\",IF(OR('TSA Input'!J2751=\"Yes\",'TSA Input'!J2751=\"Contingent\"),'TSA Input'!D2751,\"\"))","v":""},{"$f":"IF('TSA Input'!J2751=\"\",\"\",IF(OR('TSA Input'!J2751=\"Yes\",'TSA Input'!J2751=\"Contingent\"),'TSA Input'!G2751,\"\"))","v":""},{"$f":"IF('TSA Input'!J2751=\"\",\"\",IF(OR('TSA Input'!J2751=\"Yes\",'TSA Input'!J2751=\"Contingent\"),'TSA Input'!F2751,\"\"))","v":""},"","Required","Required"]
["",null,{"$f":"IF('TSA Input'!J2752=\"\",\"\",IF(OR('TSA Input'!J2752=\"Yes\",'TSA Input'!J2752=\"Contingent\"),'TSA Input'!B2752,\"Ineligible\"))","v":""},{"$f":"IF('TSA Input'!J2752=\"\",\"\",IF(OR('TSA Input'!J2752=\"Yes\",'TSA Input'!J2752=\"Contingent\"),'TSA Input'!I2752,\"\"))","v":""},{"$f":"IF('TSA Input'!J2752=\"\",\"\",IF(OR('TSA Input'!J2752=\"Yes\",'TSA Input'!J2752=\"Contingent\"),'TSA Input'!C2752,\"\"))","v":""},{"$f":"IF('TSA Input'!J2752=\"\",\"\",IF(OR('TSA Input'!J2752=\"Yes\",'TSA Input'!J2752=\"Contingent\"),'TSA Input'!D2752,\"\"))","v":""},{"$f":"IF('TSA Input'!J2752=\"\",\"\",IF(OR('TSA Input'!J2752=\"Yes\",'TSA Input'!J2752=\"Contingent\"),'TSA Input'!G2752,\"\"))","v":""},{"$f":"IF('TSA Input'!J2752=\"\",\"\",IF(OR('TSA Input'!J2752=\"Yes\",'TSA Input'!J2752=\"Contingent\"),'TSA Input'!F2752,\"\"))","v":""},"",{"$f":"IF('TSA Input'!J2752=\"\",\"\",IF(OR('TSA Input'!J2752=\"Yes\",'TSA Input'!J2752=\"Contingent\"),'TSA Input'!D2752,\"\"))","v":""},{"$f":"IF('TSA Input'!J2752=\"\",\"\",IF(OR('TSA Input'!J2752=\"Yes\",'TSA Input'!J2752=\"Contingent\"),'TSA Input'!G2752,\"\"))","v":""},{"$f":"IF('TSA Input'!J2752=\"\",\"\",IF(OR('TSA Input'!J2752=\"Yes\",'TSA Input'!J2752=\"Contingent\"),'TSA Input'!F2752,\"\"))","v":""},"","Required","Required"]
["",null,{"$f":"IF('TSA Input'!J2753=\"\",\"\",IF(OR('TSA Input'!J2753=\"Yes\",'TSA Input'!J2753=\"Contingent\"),'TSA Input'!B2753,\"Ineligible\"))","v":""},{"$f":"IF('TSA Input'!J2753=\"\",\"\",IF(OR('TSA Input'!J2753=\"Yes\",'TSA Input'!J2753=\"Contingent\"),'TSA Input'!I2753,\"\"))","v":""},{"$f":"IF('TSA Input'!J2753=\"\",\"\",IF(OR('TSA Input'!J2753=\"Yes\",'TSA Input'!J2753=\"Contingent\"),'TSA Input'!C2753,\"\"))","v":""},{"$f":"IF('TSA Input'!J2753=\"\",\"\",IF(OR('TSA Input'!J2753=\"Yes\",'TSA Input'!J2753=\"Contingent\"),'TSA Input'!D2753,\"\"))","v":""},{"$f":"IF('TSA Input'!J2753=\"\",\"\",IF(OR('TSA Input'!J2753=\"Yes\",'TSA Input'!J2753=\"Contingent\"),'TSA Input'!G2753,\"\"))","v":""},{"$f":"IF('TSA Input'!J2753=\"\",\"\",IF(OR('TSA Input'!J2753=\"Yes\",'TSA Input'!J2753=\"Contingent\"),'TSA Input'!F2753,\"\"))","v":""},"",{"$f":"IF('TSA Input'!J2753=\"\",\"\",IF(OR('TSA Input'!J2753=\"Yes\",'TSA Input'!J2753=\"Contingent\"),'TSA Input'!D2753,\"\"))","v":""},{"$f":"IF('TSA Input'!J2753=\"\",\"\",IF(OR('TSA Input'!J2753=\"Yes\",'TSA Input'!J2753=\"Contingent\"),'TSA Input'!G2753,\"\"))","v":""},{"$f":"IF('TSA Input'!J2753=\"\",\"\",IF(OR('TSA Input'!J2753=\"Yes\",'TSA Input'!J2753=\"Contingent\"),'TSA Input'!F2753,\"\"))","v":""},"","Required","Required"]
["",null,{"$f":"IF('TSA Input'!J2754=\"\",\"\",IF(OR('TSA Input'!J2754=\"Yes\",'TSA Input'!J2754=\"Contingent\"),'TSA Input'!B2754,\"Ineligible\"))","v":""},{"$f":"IF('TSA Input'!J2754=\"\",\"\",IF(OR('TSA Input'!J2754=\"Yes\",'TSA Input'!J2754=\"Contingent\"),'TSA Input'!I2754,\"\"))","v":""},{"$f":"IF('TSA Input'!J2754=\"\",\"\",IF(OR('TSA Input'!J2754=\"Yes\",'TSA Input'!J2754=\"Contingent\"),'TSA Input'!C2754,\"\"))","v":""},{"$f":"IF('TSA Input'!J2754=\"\",\"\",IF(OR('TSA Input'!J2754=\"Yes\",'TSA Input'!J2754=\"Contingent\"),'TSA Input'!D2754,\"\"))","v":""},{"$f":"IF('TSA Input'!J2754=\"\",\"\",IF(OR('TSA Input'!J2754=\"Yes\",'TSA Input'!J2754=\"Contingent\"),'TSA Input'!G2754,\"\"))","v":""},{"$f":"IF('TSA Input'!J2754=\"\",\"\",IF(OR('TSA Input'!J2754=\"Yes\",'TSA Input'!J2754=\"Contingent\"),'TSA Input'!F2754,\"\"))","v":""},"",{"$f":"IF('TSA Input'!J2754=\"\",\"\",IF(OR('TSA Input'!J2754=\"Yes\",'TSA Input'!J2754=\"Contingent\"),'TSA Input'!D2754,\"\"))","v":""},{"$f":"IF('TSA Input'!J2754=\"\",\"\",IF(OR('TSA Input'!J2754=\"Yes\",'TSA Input'!J2754=\"Contingent\"),'TSA Input'!G2754,\"\"))","v":""},{"$f":"IF('TSA Input'!J2754=\"\",\"\",IF(OR('TSA Input'!J2754=\"Yes\",'TSA Input'!J2754=\"Contingent\"),'TSA Input'!F2754,\"\"))","v":""},"","Required","Required"]
["",null,{"$f":"IF('TSA Input'!J2755=\"\",\"\",IF(OR('TSA Input'!J2755=\"Yes\",'TSA Input'!J2755=\"Contingent\"),'TSA Input'!B2755,\"Ineligible\"))","v":""},{"$f":"IF('TSA Input'!J2755=\"\",\"\",IF(OR('TSA Input'!J2755=\"Yes\",'TSA Input'!J2755=\"Contingent\"),'TSA Input'!I2755,\"\"))","v":""},{"$f":"IF('TSA Input'!J2755=\"\",\"\",IF(OR('TSA Input'!J2755=\"Yes\",'TSA Input'!J2755=\"Contingent\"),'TSA Input'!C2755,\"\"))","v":""},{"$f":"IF('TSA Input'!J2755=\"\",\"\",IF(OR('TSA Input'!J2755=\"Yes\",'TSA Input'!J2755=\"Contingent\"),'TSA Input'!D2755,\"\"))","v":""},{"$f":"IF('TSA Input'!J2755=\"\",\"\",IF(OR('TSA Input'!J2755=\"Yes\",'TSA Input'!J2755=\"Contingent\"),'TSA Input'!G2755,\"\"))","v":""},{"$f":"IF('TSA Input'!J2755=\"\",\"\",IF(OR('TSA Input'!J2755=\"Yes\",'TSA Input'!J2755=\"Contingent\"),'TSA Input'!F2755,\"\"))","v":""},"",{"$f":"IF('TSA Input'!J2755=\"\",\"\",IF(OR('TSA Input'!J2755=\"Yes\",'TSA Input'!J2755=\"Contingent\"),'TSA Input'!D2755,\"\"))","v":""},{"$f":"IF('TSA Input'!J2755=\"\",\"\",IF(OR('TSA Input'!J2755=\"Yes\",'TSA Input'!J2755=\"Contingent\"),'TSA Input'!G2755,\"\"))","v":""},{"$f":"IF('TSA Input'!J2755=\"\",\"\",IF(OR('TSA Input'!J2755=\"Yes\",'TSA Input'!J2755=\"Contingent\"),'TSA Input'!F2755,\"\"))","v":""},"","Required","Required"]
["",null,{"$f":"IF('TSA Input'!J2756=\"\",\"\",IF(OR('TSA Input'!J2756=\"Yes\",'TSA Input'!J2756=\"Contingent\"),'TSA Input'!B2756,\"Ineligible\"))","v":""},{"$f":"IF('TSA Input'!J2756=\"\",\"\",IF(OR('TSA Input'!J2756=\"Yes\",'TSA Input'!J2756=\"Contingent\"),'TSA Input'!I2756,\"\"))","v":""},{"$f":"IF('TSA Input'!J2756=\"\",\"\",IF(OR('TSA Input'!J2756=\"Yes\",'TSA Input'!J2756=\"Contingent\"),'TSA Input'!C2756,\"\"))","v":""},{"$f":"IF('TSA Input'!J2756=\"\",\"\",IF(OR('TSA Input'!J2756=\"Yes\",'TSA Input'!J2756=\"Contingent\"),'TSA Input'!D2756,\"\"))","v":""},{"$f":"IF('TSA Input'!J2756=\"\",\"\",IF(OR('TSA Input'!J2756=\"Yes\",'TSA Input'!J2756=\"Contingent\"),'TSA Input'!G2756,\"\"))","v":""},{"$f":"IF('TSA Input'!J2756=\"\",\"\",IF(OR('TSA Input'!J2756=\"Yes\",'TSA Input'!J2756=\"Contingent\"),'TSA Input'!F2756,\"\"))","v":""},{"$f":"IF($C2794=\"\",\"\",SUM(F2794:H2794))","v":""},{"$f":"IF('TSA Input'!J2756=\"\",\"\",IF(OR('TSA Input'!J2756=\"Yes\",'TSA Input'!J2756=\"Contingent\"),'TSA Input'!D2756,\"\"))","v":""},{"$f":"IF('TSA Input'!J2756=\"\",\"\",IF(OR('TSA Input'!J2756=\"Yes\",'TSA Input'!J2756=\"Contingent\"),'TSA Input'!G2756,\"\"))","v":""},{"$f":"IF('TSA Input'!J2756=\"\",\"\",IF(OR('TSA Input'!J2756=\"Yes\",'TSA Input'!J2756=\"Contingent\"),'TSA Input'!F2756,\"\"))","v":""},{"$f":"IF($C2794=\"\",\"\",SUM(J2794:L2794))","v":""},"Required","Required"]
["",null,{"$f":"IF('TSA Input'!J2757=\"\",\"\",IF(OR('TSA Input'!J2757=\"Yes\",'TSA Input'!J2757=\"Contingent\"),'TSA Input'!B2757,\"Ineligible\"))","v":""},{"$f":"IF('TSA Input'!J2757=\"\",\"\",IF(OR('TSA Input'!J2757=\"Yes\",'TSA Input'!J2757=\"Contingent\"),'TSA Input'!I2757,\"\"))","v":""},{"$f":"IF('TSA Input'!J2757=\"\",\"\",IF(OR('TSA Input'!J2757=\"Yes\",'TSA Input'!J2757=\"Contingent\"),'TSA Input'!C2757,\"\"))","v":""},{"$f":"IF('TSA Input'!J2757=\"\",\"\",IF(OR('TSA Input'!J2757=\"Yes\",'TSA Input'!J2757=\"Contingent\"),'TSA Input'!D2757,\"\"))","v":""},{"$f":"IF('TSA Input'!J2757=\"\",\"\",IF(OR('TSA Input'!J2757=\"Yes\",'TSA Input'!J2757=\"Contingent\"),'TSA Input'!G2757,\"\"))","v":""},{"$f":"IF('TSA Input'!J2757=\"\",\"\",IF(OR('TSA Input'!J2757=\"Yes\",'TSA Input'!J2757=\"Contingent\"),'TSA Input'!F2757,\"\"))","v":""},"",{"$f":"IF('TSA Input'!J2757=\"\",\"\",IF(OR('TSA Input'!J2757=\"Yes\",'TSA Input'!J2757=\"Contingent\"),'TSA Input'!D2757,\"\"))","v":""},{"$f":"IF('TSA Input'!J2757=\"\",\"\",IF(OR('TSA Input'!J2757=\"Yes\",'TSA Input'!J2757=\"Contingent\"),'TSA Input'!G2757,\"\"))","v":""},{"$f":"IF('TSA Input'!J2757=\"\",\"\",IF(OR('TSA Input'!J2757=\"Yes\",'TSA Input'!J2757=\"Contingent\"),'TSA Input'!F2757,\"\"))","v":""},"","Required","Required"]
["",null,{"$f":"IF('TSA Input'!J2758=\"\",\"\",IF(OR('TSA Input'!J2758=\"Yes\",'TSA Input'!J2758=\"Contingent\"),'TSA Input'!B2758,\"Ineligible\"))","v":""},{"$f":"IF('TSA Input'!J2758=\"\",\"\",IF(OR('TSA Input'!J2758=\"Yes\",'TSA Input'!J2758=\"Contingent\"),'TSA Input'!I2758,\"\"))","v":""},{"$f":"IF('TSA Input'!J2758=\"\",\"\",IF(OR('TSA Input'!J2758=\"Yes\",'TSA Input'!J2758=\"Contingent\"),'TSA Input'!C2758,\"\"))","v":""},{"$f":"IF('TSA Input'!J2758=\"\",\"\",IF(OR('TSA Input'!J2758=\"Yes\",'TSA Input'!J2758=\"Contingent\"),'TSA Input'!D2758,\"\"))","v":""},{"$f":"IF('TSA Input'!J2758=\"\",\"\",IF(OR('TSA Input'!J2758=\"Yes\",'TSA Input'!J2758=\"Contingent\"),'TSA Input'!G2758,\"\"))","v":""},{"$f":"IF('TSA Input'!J2758=\"\",\"\",IF(OR('TSA Input'!J2758=\"Yes\",'TSA Input'!J2758=\"Contingent\"),'TSA Input'!F2758,\"\"))","v":""},"",{"$f":"IF('TSA Input'!J2758=\"\",\"\",IF(OR('TSA Input'!J2758=\"Yes\",'TSA Input'!J2758=\"Contingent\"),'TSA Input'!D2758,\"\"))","v":""},{"$f":"IF('TSA Input'!J2758=\"\",\"\",IF(OR('TSA Input'!J2758=\"Yes\",'TSA Input'!J2758=\"Contingent\"),'TSA Input'!G2758,\"\"))","v":""},{"$f":"IF('TSA Input'!J2758=\"\",\"\",IF(OR('TSA Input'!J2758=\"Yes\",'TSA Input'!J2758=\"Contingent\"),'TSA Input'!F2758,\"\"))","v":""},"","Required","Required"]
["",null,{"$f":"IF('TSA Input'!J2759=\"\",\"\",IF(OR('TSA Input'!J2759=\"Yes\",'TSA Input'!J2759=\"Contingent\"),'TSA Input'!B2759,\"Ineligible\"))","v":""},{"$f":"IF('TSA Input'!J2759=\"\",\"\",IF(OR('TSA Input'!J2759=\"Yes\",'TSA Input'!J2759=\"Contingent\"),'TSA Input'!I2759,\"\"))","v":""},{"$f":"IF('TSA Input'!J2759=\"\",\"\",IF(OR('TSA Input'!J2759=\"Yes\",'TSA Input'!J2759=\"Contingent\"),'TSA Input'!C2759,\"\"))","v":""},{"$f":"IF('TSA Input'!J2759=\"\",\"\",IF(OR('TSA Input'!J2759=\"Yes\",'TSA Input'!J2759=\"Contingent\"),'TSA Input'!D2759,\"\"))","v":""},{"$f":"IF('TSA Input'!J2759=\"\",\"\",IF(OR('TSA Input'!J2759=\"Yes\",'TSA Input'!J2759=\"Contingent\"),'TSA Input'!G2759,\"\"))","v":""},{"$f":"IF('TSA Input'!J2759=\"\",\"\",IF(OR('TSA Input'!J2759=\"Yes\",'TSA Input'!J2759=\"Contingent\"),'TSA Input'!F2759,\"\"))","v":""},"",{"$f":"IF('TSA Input'!J2759=\"\",\"\",IF(OR('TSA Input'!J2759=\"Yes\",'TSA Input'!J2759=\"Contingent\"),'TSA Input'!D2759,\"\"))","v":""},{"$f":"IF('TSA Input'!J2759=\"\",\"\",IF(OR('TSA Input'!J2759=\"Yes\",'TSA Input'!J2759=\"Contingent\"),'TSA Input'!G2759,\"\"))","v":""},{"$f":"IF('TSA Input'!J2759=\"\",\"\",IF(OR('TSA Input'!J2759=\"Yes\",'TSA Input'!J2759=\"Contingent\"),'TSA Input'!F2759,\"\"))","v":""},"","Required","Required"]
["",null,{"$f":"IF('TSA Input'!J2760=\"\",\"\",IF(OR('TSA Input'!J2760=\"Yes\",'TSA Input'!J2760=\"Contingent\"),'TSA Input'!B2760,\"Ineligible\"))","v":""},{"$f":"IF('TSA Input'!J2760=\"\",\"\",IF(OR('TSA Input'!J2760=\"Yes\",'TSA Input'!J2760=\"Contingent\"),'TSA Input'!I2760,\"\"))","v":""},{"$f":"IF('TSA Input'!J2760=\"\",\"\",IF(OR('TSA Input'!J2760=\"Yes\",'TSA Input'!J2760=\"Contingent\"),'TSA Input'!C2760,\"\"))","v":""},{"$f":"IF('TSA Input'!J2760=\"\",\"\",IF(OR('TSA Input'!J2760=\"Yes\",'TSA Input'!J2760=\"Contingent\"),'TSA Input'!D2760,\"\"))","v":""},{"$f":"IF('TSA Input'!J2760=\"\",\"\",IF(OR('TSA Input'!J2760=\"Yes\",'TSA Input'!J2760=\"Contingent\"),'TSA Input'!G2760,\"\"))","v":""},{"$f":"IF('TSA Input'!J2760=\"\",\"\",IF(OR('TSA Input'!J2760=\"Yes\",'TSA Input'!J2760=\"Contingent\"),'TSA Input'!F2760,\"\"))","v":""},"",{"$f":"IF('TSA Input'!J2760=\"\",\"\",IF(OR('TSA Input'!J2760=\"Yes\",'TSA Input'!J2760=\"Contingent\"),'TSA Input'!D2760,\"\"))","v":""},{"$f":"IF('TSA Input'!J2760=\"\",\"\",IF(OR('TSA Input'!J2760=\"Yes\",'TSA Input'!J2760=\"Contingent\"),'TSA Input'!G2760,\"\"))","v":""},{"$f":"IF('TSA Input'!J2760=\"\",\"\",IF(OR('TSA Input'!J2760=\"Yes\",'TSA Input'!J2760=\"Contingent\"),'TSA Input'!F2760,\"\"))","v":""},"","Required","Required"]
["",null,{"$f":"IF('TSA Input'!J2761=\"\",\"\",IF(OR('TSA Input'!J2761=\"Yes\",'TSA Input'!J2761=\"Contingent\"),'TSA Input'!B2761,\"Ineligible\"))","v":""},{"$f":"IF('TSA Input'!J2761=\"\",\"\",IF(OR('TSA Input'!J2761=\"Yes\",'TSA Input'!J2761=\"Contingent\"),'TSA Input'!I2761,\"\"))","v":""},{"$f":"IF('TSA Input'!J2761=\"\",\"\",IF(OR('TSA Input'!J2761=\"Yes\",'TSA Input'!J2761=\"Contingent\"),'TSA Input'!C2761,\"\"))","v":""},{"$f":"IF('TSA Input'!J2761=\"\",\"\",IF(OR('TSA Input'!J2761=\"Yes\",'TSA Input'!J2761=\"Contingent\"),'TSA Input'!D2761,\"\"))","v":""},{"$f":"IF('TSA Input'!J2761=\"\",\"\",IF(OR('TSA Input'!J2761=\"Yes\",'TSA Input'!J2761=\"Contingent\"),'TSA Input'!G2761,\"\"))","v":""},{"$f":"IF('TSA Input'!J2761=\"\",\"\",IF(OR('TSA Input'!J2761=\"Yes\",'TSA Input'!J2761=\"Contingent\"),'TSA Input'!F2761,\"\"))","v":""},"",{"$f":"IF('TSA Input'!J2761=\"\",\"\",IF(OR('TSA Input'!J2761=\"Yes\",'TSA Input'!J2761=\"Contingent\"),'TSA Input'!D2761,\"\"))","v":""},{"$f":"IF('TSA Input'!J2761=\"\",\"\",IF(OR('TSA Input'!J2761=\"Yes\",'TSA Input'!J2761=\"Contingent\"),'TSA Input'!G2761,\"\"))","v":""},{"$f":"IF('TSA Input'!J2761=\"\",\"\",IF(OR('TSA Input'!J2761=\"Yes\",'TSA Input'!J2761=\"Contingent\"),'TSA Input'!F2761,\"\"))","v":""},"","Required","Required"]
["",null,{"$f":"IF('TSA Input'!J2762=\"\",\"\",IF(OR('TSA Input'!J2762=\"Yes\",'TSA Input'!J2762=\"Contingent\"),'TSA Input'!B2762,\"Ineligible\"))","v":""},{"$f":"IF('TSA Input'!J2762=\"\",\"\",IF(OR('TSA Input'!J2762=\"Yes\",'TSA Input'!J2762=\"Contingent\"),'TSA Input'!I2762,\"\"))","v":""},{"$f":"IF('TSA Input'!J2762=\"\",\"\",IF(OR('TSA Input'!J2762=\"Yes\",'TSA Input'!J2762=\"Contingent\"),'TSA Input'!C2762,\"\"))","v":""},{"$f":"IF('TSA Input'!J2762=\"\",\"\",IF(OR('TSA Input'!J2762=\"Yes\",'TSA Input'!J2762=\"Contingent\"),'TSA Input'!D2762,\"\"))","v":""},{"$f":"IF('TSA Input'!J2762=\"\",\"\",IF(OR('TSA Input'!J2762=\"Yes\",'TSA Input'!J2762=\"Contingent\"),'TSA Input'!G2762,\"\"))","v":""},{"$f":"IF('TSA Input'!J2762=\"\",\"\",IF(OR('TSA Input'!J2762=\"Yes\",'TSA Input'!J2762=\"Contingent\"),'TSA Input'!F2762,\"\"))","v":""},"",{"$f":"IF('TSA Input'!J2762=\"\",\"\",IF(OR('TSA Input'!J2762=\"Yes\",'TSA Input'!J2762=\"Contingent\"),'TSA Input'!D2762,\"\"))","v":""},{"$f":"IF('TSA Input'!J2762=\"\",\"\",IF(OR('TSA Input'!J2762=\"Yes\",'TSA Input'!J2762=\"Contingent\"),'TSA Input'!G2762,\"\"))","v":""},{"$f":"IF('TSA Input'!J2762=\"\",\"\",IF(OR('TSA Input'!J2762=\"Yes\",'TSA Input'!J2762=\"Contingent\"),'TSA Input'!F2762,\"\"))","v":""},"","Required","Required"]
["",null,{"$f":"IF('TSA Input'!J2763=\"\",\"\",IF(OR('TSA Input'!J2763=\"Yes\",'TSA Input'!J2763=\"Contingent\"),'TSA Input'!B2763,\"Ineligible\"))","v":""},{"$f":"IF('TSA Input'!J2763=\"\",\"\",IF(OR('TSA Input'!J2763=\"Yes\",'TSA Input'!J2763=\"Contingent\"),'TSA Input'!I2763,\"\"))","v":""},{"$f":"IF('TSA Input'!J2763=\"\",\"\",IF(OR('TSA Input'!J2763=\"Yes\",'TSA Input'!J2763=\"Contingent\"),'TSA Input'!C2763,\"\"))","v":""},{"$f":"IF('TSA Input'!J2763=\"\",\"\",IF(OR('TSA Input'!J2763=\"Yes\",'TSA Input'!J2763=\"Contingent\"),'TSA Input'!D2763,\"\"))","v":""},{"$f":"IF('TSA Input'!J2763=\"\",\"\",IF(OR('TSA Input'!J2763=\"Yes\",'TSA Input'!J2763=\"Contingent\"),'TSA Input'!G2763,\"\"))","v":""},{"$f":"IF('TSA Input'!J2763=\"\",\"\",IF(OR('TSA Input'!J2763=\"Yes\",'TSA Input'!J2763=\"Contingent\"),'TSA Input'!F2763,\"\"))","v":""},"",{"$f":"IF('TSA Input'!J2763=\"\",\"\",IF(OR('TSA Input'!J2763=\"Yes\",'TSA Input'!J2763=\"Contingent\"),'TSA Input'!D2763,\"\"))","v":""},{"$f":"IF('TSA Input'!J2763=\"\",\"\",IF(OR('TSA Input'!J2763=\"Yes\",'TSA Input'!J2763=\"Contingent\"),'TSA Input'!G2763,\"\"))","v":""},{"$f":"IF('TSA Input'!J2763=\"\",\"\",IF(OR('TSA Input'!J2763=\"Yes\",'TSA Input'!J2763=\"Contingent\"),'TSA Input'!F2763,\"\"))","v":""},"","Required","Required"]
["",null,{"$f":"IF('TSA Input'!J2764=\"\",\"\",IF(OR('TSA Input'!J2764=\"Yes\",'TSA Input'!J2764=\"Contingent\"),'TSA Input'!B2764,\"Ineligible\"))","v":""},{"$f":"IF('TSA Input'!J2764=\"\",\"\",IF(OR('TSA Input'!J2764=\"Yes\",'TSA Input'!J2764=\"Contingent\"),'TSA Input'!I2764,\"\"))","v":""},{"$f":"IF('TSA Input'!J2764=\"\",\"\",IF(OR('TSA Input'!J2764=\"Yes\",'TSA Input'!J2764=\"Contingent\"),'TSA Input'!C2764,\"\"))","v":""},{"$f":"IF('TSA Input'!J2764=\"\",\"\",IF(OR('TSA Input'!J2764=\"Yes\",'TSA Input'!J2764=\"Contingent\"),'TSA Input'!D2764,\"\"))","v":""},{"$f":"IF('TSA Input'!J2764=\"\",\"\",IF(OR('TSA Input'!J2764=\"Yes\",'TSA Input'!J2764=\"Contingent\"),'TSA Input'!G2764,\"\"))","v":""},{"$f":"IF('TSA Input'!J2764=\"\",\"\",IF(OR('TSA Input'!J2764=\"Yes\",'TSA Input'!J2764=\"Contingent\"),'TSA Input'!F2764,\"\"))","v":""},"",{"$f":"IF('TSA Input'!J2764=\"\",\"\",IF(OR('TSA Input'!J2764=\"Yes\",'TSA Input'!J2764=\"Contingent\"),'TSA Input'!D2764,\"\"))","v":""},{"$f":"IF('TSA Input'!J2764=\"\",\"\",IF(OR('TSA Input'!J2764=\"Yes\",'TSA Input'!J2764=\"Contingent\"),'TSA Input'!G2764,\"\"))","v":""},{"$f":"IF('TSA Input'!J2764=\"\",\"\",IF(OR('TSA Input'!J2764=\"Yes\",'TSA Input'!J2764=\"Contingent\"),'TSA Input'!F2764,\"\"))","v":""},"","Required","Required"]
["",null,{"$f":"IF('TSA Input'!J2765=\"\",\"\",IF(OR('TSA Input'!J2765=\"Yes\",'TSA Input'!J2765=\"Contingent\"),'TSA Input'!B2765,\"Ineligible\"))","v":""},{"$f":"IF('TSA Input'!J2765=\"\",\"\",IF(OR('TSA Input'!J2765=\"Yes\",'TSA Input'!J2765=\"Contingent\"),'TSA Input'!I2765,\"\"))","v":""},{"$f":"IF('TSA Input'!J2765=\"\",\"\",IF(OR('TSA Input'!J2765=\"Yes\",'TSA Input'!J2765=\"Contingent\"),'TSA Input'!C2765,\"\"))","v":""},{"$f":"IF('TSA Input'!J2765=\"\",\"\",IF(OR('TSA Input'!J2765=\"Yes\",'TSA Input'!J2765=\"Contingent\"),'TSA Input'!D2765,\"\"))","v":""},{"$f":"IF('TSA Input'!J2765=\"\",\"\",IF(OR('TSA Input'!J2765=\"Yes\",'TSA Input'!J2765=\"Contingent\"),'TSA Input'!G2765,\"\"))","v":""},{"$f":"IF('TSA Input'!J2765=\"\",\"\",IF(OR('TSA Input'!J2765=\"Yes\",'TSA Input'!J2765=\"Contingent\"),'TSA Input'!F2765,\"\"))","v":""},"",{"$f":"IF('TSA Input'!J2765=\"\",\"\",IF(OR('TSA Input'!J2765=\"Yes\",'TSA Input'!J2765=\"Contingent\"),'TSA Input'!D2765,\"\"))","v":""},{"$f":"IF('TSA Input'!J2765=\"\",\"\",IF(OR('TSA Input'!J2765=\"Yes\",'TSA Input'!J2765=\"Contingent\"),'TSA Input'!G2765,\"\"))","v":""},{"$f":"IF('TSA Input'!J2765=\"\",\"\",IF(OR('TSA Input'!J2765=\"Yes\",'TSA Input'!J2765=\"Contingent\"),'TSA Input'!F2765,\"\"))","v":""},"","Required","Required"]
["",null,{"$f":"IF('TSA Input'!J2766=\"\",\"\",IF(OR('TSA Input'!J2766=\"Yes\",'TSA Input'!J2766=\"Contingent\"),'TSA Input'!B2766,\"Ineligible\"))","v":""},{"$f":"IF('TSA Input'!J2766=\"\",\"\",IF(OR('TSA Input'!J2766=\"Yes\",'TSA Input'!J2766=\"Contingent\"),'TSA Input'!I2766,\"\"))","v":""},{"$f":"IF('TSA Input'!J2766=\"\",\"\",IF(OR('TSA Input'!J2766=\"Yes\",'TSA Input'!J2766=\"Contingent\"),'TSA Input'!C2766,\"\"))","v":""},{"$f":"IF('TSA Input'!J2766=\"\",\"\",IF(OR('TSA Input'!J2766=\"Yes\",'TSA Input'!J2766=\"Contingent\"),'TSA Input'!D2766,\"\"))","v":""},{"$f":"IF('TSA Input'!J2766=\"\",\"\",IF(OR('TSA Input'!J2766=\"Yes\",'TSA Input'!J2766=\"Contingent\"),'TSA Input'!G2766,\"\"))","v":""},{"$f":"IF('TSA Input'!J2766=\"\",\"\",IF(OR('TSA Input'!J2766=\"Yes\",'TSA Input'!J2766=\"Contingent\"),'TSA Input'!F2766,\"\"))","v":""},"",{"$f":"IF('TSA Input'!J2766=\"\",\"\",IF(OR('TSA Input'!J2766=\"Yes\",'TSA Input'!J2766=\"Contingent\"),'TSA Input'!D2766,\"\"))","v":""},{"$f":"IF('TSA Input'!J2766=\"\",\"\",IF(OR('TSA Input'!J2766=\"Yes\",'TSA Input'!J2766=\"Contingent\"),'TSA Input'!G2766,\"\"))","v":""},{"$f":"IF('TSA Input'!J2766=\"\",\"\",IF(OR('TSA Input'!J2766=\"Yes\",'TSA Input'!J2766=\"Contingent\"),'TSA Input'!F2766,\"\"))","v":""},"","Required","Required"]
["",null,{"$f":"IF('TSA Input'!J2767=\"\",\"\",IF(OR('TSA Input'!J2767=\"Yes\",'TSA Input'!J2767=\"Contingent\"),'TSA Input'!B2767,\"Ineligible\"))","v":""},{"$f":"IF('TSA Input'!J2767=\"\",\"\",IF(OR('TSA Input'!J2767=\"Yes\",'TSA Input'!J2767=\"Contingent\"),'TSA Input'!I2767,\"\"))","v":""},{"$f":"IF('TSA Input'!J2767=\"\",\"\",IF(OR('TSA Input'!J2767=\"Yes\",'TSA Input'!J2767=\"Contingent\"),'TSA Input'!C2767,\"\"))","v":""},{"$f":"IF('TSA Input'!J2767=\"\",\"\",IF(OR('TSA Input'!J2767=\"Yes\",'TSA Input'!J2767=\"Contingent\"),'TSA Input'!D2767,\"\"))","v":""},{"$f":"IF('TSA Input'!J2767=\"\",\"\",IF(OR('TSA Input'!J2767=\"Yes\",'TSA Input'!J2767=\"Contingent\"),'TSA Input'!G2767,\"\"))","v":""},{"$f":"IF('TSA Input'!J2767=\"\",\"\",IF(OR('TSA Input'!J2767=\"Yes\",'TSA Input'!J2767=\"Contingent\"),'TSA Input'!F2767,\"\"))","v":""},"",{"$f":"IF('TSA Input'!J2767=\"\",\"\",IF(OR('TSA Input'!J2767=\"Yes\",'TSA Input'!J2767=\"Contingent\"),'TSA Input'!D2767,\"\"))","v":""},{"$f":"IF('TSA Input'!J2767=\"\",\"\",IF(OR('TSA Input'!J2767=\"Yes\",'TSA Input'!J2767=\"Contingent\"),'TSA Input'!G2767,\"\"))","v":""},{"$f":"IF('TSA Input'!J2767=\"\",\"\",IF(OR('TSA Input'!J2767=\"Yes\",'TSA Input'!J2767=\"Contingent\"),'TSA Input'!F2767,\"\"))","v":""},"","Required","Required"]
["",null,{"$f":"IF('TSA Input'!J2768=\"\",\"\",IF(OR('TSA Input'!J2768=\"Yes\",'TSA Input'!J2768=\"Contingent\"),'TSA Input'!B2768,\"Ineligible\"))","v":""},{"$f":"IF('TSA Input'!J2768=\"\",\"\",IF(OR('TSA Input'!J2768=\"Yes\",'TSA Input'!J2768=\"Contingent\"),'TSA Input'!I2768,\"\"))","v":""},{"$f":"IF('TSA Input'!J2768=\"\",\"\",IF(OR('TSA Input'!J2768=\"Yes\",'TSA Input'!J2768=\"Contingent\"),'TSA Input'!C2768,\"\"))","v":""},{"$f":"IF('TSA Input'!J2768=\"\",\"\",IF(OR('TSA Input'!J2768=\"Yes\",'TSA Input'!J2768=\"Contingent\"),'TSA Input'!D2768,\"\"))","v":""},{"$f":"IF('TSA Input'!J2768=\"\",\"\",IF(OR('TSA Input'!J2768=\"Yes\",'TSA Input'!J2768=\"Contingent\"),'TSA Input'!G2768,\"\"))","v":""},{"$f":"IF('TSA Input'!J2768=\"\",\"\",IF(OR('TSA Input'!J2768=\"Yes\",'TSA Input'!J2768=\"Contingent\"),'TSA Input'!F2768,\"\"))","v":""},"",{"$f":"IF('TSA Input'!J2768=\"\",\"\",IF(OR('TSA Input'!J2768=\"Yes\",'TSA Input'!J2768=\"Contingent\"),'TSA Input'!D2768,\"\"))","v":""},{"$f":"IF('TSA Input'!J2768=\"\",\"\",IF(OR('TSA Input'!J2768=\"Yes\",'TSA Input'!J2768=\"Contingent\"),'TSA Input'!G2768,\"\"))","v":""},{"$f":"IF('TSA Input'!J2768=\"\",\"\",IF(OR('TSA Input'!J2768=\"Yes\",'TSA Input'!J2768=\"Contingent\"),'TSA Input'!F2768,\"\"))","v":""},"","Required","Required"]
["",null,{"$f":"IF('TSA Input'!J2769=\"\",\"\",IF(OR('TSA Input'!J2769=\"Yes\",'TSA Input'!J2769=\"Contingent\"),'TSA Input'!B2769,\"Ineligible\"))","v":""},{"$f":"IF('TSA Input'!J2769=\"\",\"\",IF(OR('TSA Input'!J2769=\"Yes\",'TSA Input'!J2769=\"Contingent\"),'TSA Input'!I2769,\"\"))","v":""},{"$f":"IF('TSA Input'!J2769=\"\",\"\",IF(OR('TSA Input'!J2769=\"Yes\",'TSA Input'!J2769=\"Contingent\"),'TSA Input'!C2769,\"\"))","v":""},{"$f":"IF('TSA Input'!J2769=\"\",\"\",IF(OR('TSA Input'!J2769=\"Yes\",'TSA Input'!J2769=\"Contingent\"),'TSA Input'!D2769,\"\"))","v":""},{"$f":"IF('TSA Input'!J2769=\"\",\"\",IF(OR('TSA Input'!J2769=\"Yes\",'TSA Input'!J2769=\"Contingent\"),'TSA Input'!G2769,\"\"))","v":""},{"$f":"IF('TSA Input'!J2769=\"\",\"\",IF(OR('TSA Input'!J2769=\"Yes\",'TSA Input'!J2769=\"Contingent\"),'TSA Input'!F2769,\"\"))","v":""},"",{"$f":"IF('TSA Input'!J2769=\"\",\"\",IF(OR('TSA Input'!J2769=\"Yes\",'TSA Input'!J2769=\"Contingent\"),'TSA Input'!D2769,\"\"))","v":""},{"$f":"IF('TSA Input'!J2769=\"\",\"\",IF(OR('TSA Input'!J2769=\"Yes\",'TSA Input'!J2769=\"Contingent\"),'TSA Input'!G2769,\"\"))","v":""},{"$f":"IF('TSA Input'!J2769=\"\",\"\",IF(OR('TSA Input'!J2769=\"Yes\",'TSA Input'!J2769=\"Contingent\"),'TSA Input'!F2769,\"\"))","v":""},"","Required","Required"]
["",null,{"$f":"IF('TSA Input'!J2770=\"\",\"\",IF(OR('TSA Input'!J2770=\"Yes\",'TSA Input'!J2770=\"Contingent\"),'TSA Input'!B2770,\"Ineligible\"))","v":""},{"$f":"IF('TSA Input'!J2770=\"\",\"\",IF(OR('TSA Input'!J2770=\"Yes\",'TSA Input'!J2770=\"Contingent\"),'TSA Input'!I2770,\"\"))","v":""},{"$f":"IF('TSA Input'!J2770=\"\",\"\",IF(OR('TSA Input'!J2770=\"Yes\",'TSA Input'!J2770=\"Contingent\"),'TSA Input'!C2770,\"\"))","v":""},{"$f":"IF('TSA Input'!J2770=\"\",\"\",IF(OR('TSA Input'!J2770=\"Yes\",'TSA Input'!J2770=\"Contingent\"),'TSA Input'!D2770,\"\"))","v":""},{"$f":"IF('TSA Input'!J2770=\"\",\"\",IF(OR('TSA Input'!J2770=\"Yes\",'TSA Input'!J2770=\"Contingent\"),'TSA Input'!G2770,\"\"))","v":""},{"$f":"IF('TSA Input'!J2770=\"\",\"\",IF(OR('TSA Input'!J2770=\"Yes\",'TSA Input'!J2770=\"Contingent\"),'TSA Input'!F2770,\"\"))","v":""},"",{"$f":"IF('TSA Input'!J2770=\"\",\"\",IF(OR('TSA Input'!J2770=\"Yes\",'TSA Input'!J2770=\"Contingent\"),'TSA Input'!D2770,\"\"))","v":""},{"$f":"IF('TSA Input'!J2770=\"\",\"\",IF(OR('TSA Input'!J2770=\"Yes\",'TSA Input'!J2770=\"Contingent\"),'TSA Input'!G2770,\"\"))","v":""},{"$f":"IF('TSA Input'!J2770=\"\",\"\",IF(OR('TSA Input'!J2770=\"Yes\",'TSA Input'!J2770=\"Contingent\"),'TSA Input'!F2770,\"\"))","v":""},"","Required","Required"]
["",null,{"$f":"IF('TSA Input'!J2771=\"\",\"\",IF(OR('TSA Input'!J2771=\"Yes\",'TSA Input'!J2771=\"Contingent\"),'TSA Input'!B2771,\"Ineligible\"))","v":""},{"$f":"IF('TSA Input'!J2771=\"\",\"\",IF(OR('TSA Input'!J2771=\"Yes\",'TSA Input'!J2771=\"Contingent\"),'TSA Input'!I2771,\"\"))","v":""},{"$f":"IF('TSA Input'!J2771=\"\",\"\",IF(OR('TSA Input'!J2771=\"Yes\",'TSA Input'!J2771=\"Contingent\"),'TSA Input'!C2771,\"\"))","v":""},{"$f":"IF('TSA Input'!J2771=\"\",\"\",IF(OR('TSA Input'!J2771=\"Yes\",'TSA Input'!J2771=\"Contingent\"),'TSA Input'!D2771,\"\"))","v":""},{"$f":"IF('TSA Input'!J2771=\"\",\"\",IF(OR('TSA Input'!J2771=\"Yes\",'TSA Input'!J2771=\"Contingent\"),'TSA Input'!G2771,\"\"))","v":""},{"$f":"IF('TSA Input'!J2771=\"\",\"\",IF(OR('TSA Input'!J2771=\"Yes\",'TSA Input'!J2771=\"Contingent\"),'TSA Input'!F2771,\"\"))","v":""},"",{"$f":"IF('TSA Input'!J2771=\"\",\"\",IF(OR('TSA Input'!J2771=\"Yes\",'TSA Input'!J2771=\"Contingent\"),'TSA Input'!D2771,\"\"))","v":""},{"$f":"IF('TSA Input'!J2771=\"\",\"\",IF(OR('TSA Input'!J2771=\"Yes\",'TSA Input'!J2771=\"Contingent\"),'TSA Input'!G2771,\"\"))","v":""},{"$f":"IF('TSA Input'!J2771=\"\",\"\",IF(OR('TSA Input'!J2771=\"Yes\",'TSA Input'!J2771=\"Contingent\"),'TSA Input'!F2771,\"\"))","v":""},"","Required","Required"]
["",null,{"$f":"IF('TSA Input'!J2772=\"\",\"\",IF(OR('TSA Input'!J2772=\"Yes\",'TSA Input'!J2772=\"Contingent\"),'TSA Input'!B2772,\"Ineligible\"))","v":""},{"$f":"IF('TSA Input'!J2772=\"\",\"\",IF(OR('TSA Input'!J2772=\"Yes\",'TSA Input'!J2772=\"Contingent\"),'TSA Input'!I2772,\"\"))","v":""},{"$f":"IF('TSA Input'!J2772=\"\",\"\",IF(OR('TSA Input'!J2772=\"Yes\",'TSA Input'!J2772=\"Contingent\"),'TSA Input'!C2772,\"\"))","v":""},{"$f":"IF('TSA Input'!J2772=\"\",\"\",IF(OR('TSA Input'!J2772=\"Yes\",'TSA Input'!J2772=\"Contingent\"),'TSA Input'!D2772,\"\"))","v":""},{"$f":"IF('TSA Input'!J2772=\"\",\"\",IF(OR('TSA Input'!J2772=\"Yes\",'TSA Input'!J2772=\"Contingent\"),'TSA Input'!G2772,\"\"))","v":""},{"$f":"IF('TSA Input'!J2772=\"\",\"\",IF(OR('TSA Input'!J2772=\"Yes\",'TSA Input'!J2772=\"Contingent\"),'TSA Input'!F2772,\"\"))","v":""},"",{"$f":"IF('TSA Input'!J2772=\"\",\"\",IF(OR('TSA Input'!J2772=\"Yes\",'TSA Input'!J2772=\"Contingent\"),'TSA Input'!D2772,\"\"))","v":""},{"$f":"IF('TSA Input'!J2772=\"\",\"\",IF(OR('TSA Input'!J2772=\"Yes\",'TSA Input'!J2772=\"Contingent\"),'TSA Input'!G2772,\"\"))","v":""},{"$f":"IF('TSA Input'!J2772=\"\",\"\",IF(OR('TSA Input'!J2772=\"Yes\",'TSA Input'!J2772=\"Contingent\"),'TSA Input'!F2772,\"\"))","v":""},"","Required","Required"]
["",null,{"$f":"IF('TSA Input'!J2773=\"\",\"\",IF(OR('TSA Input'!J2773=\"Yes\",'TSA Input'!J2773=\"Contingent\"),'TSA Input'!B2773,\"Ineligible\"))","v":""},{"$f":"IF('TSA Input'!J2773=\"\",\"\",IF(OR('TSA Input'!J2773=\"Yes\",'TSA Input'!J2773=\"Contingent\"),'TSA Input'!I2773,\"\"))","v":""},{"$f":"IF('TSA Input'!J2773=\"\",\"\",IF(OR('TSA Input'!J2773=\"Yes\",'TSA Input'!J2773=\"Contingent\"),'TSA Input'!C2773,\"\"))","v":""},{"$f":"IF('TSA Input'!J2773=\"\",\"\",IF(OR('TSA Input'!J2773=\"Yes\",'TSA Input'!J2773=\"Contingent\"),'TSA Input'!D2773,\"\"))","v":""},{"$f":"IF('TSA Input'!J2773=\"\",\"\",IF(OR('TSA Input'!J2773=\"Yes\",'TSA Input'!J2773=\"Contingent\"),'TSA Input'!G2773,\"\"))","v":""},{"$f":"IF('TSA Input'!J2773=\"\",\"\",IF(OR('TSA Input'!J2773=\"Yes\",'TSA Input'!J2773=\"Contingent\"),'TSA Input'!F2773,\"\"))","v":""},"",{"$f":"IF('TSA Input'!J2773=\"\",\"\",IF(OR('TSA Input'!J2773=\"Yes\",'TSA Input'!J2773=\"Contingent\"),'TSA Input'!D2773,\"\"))","v":""},{"$f":"IF('TSA Input'!J2773=\"\",\"\",IF(OR('TSA Input'!J2773=\"Yes\",'TSA Input'!J2773=\"Contingent\"),'TSA Input'!G2773,\"\"))","v":""},{"$f":"IF('TSA Input'!J2773=\"\",\"\",IF(OR('TSA Input'!J2773=\"Yes\",'TSA Input'!J2773=\"Contingent\"),'TSA Input'!F2773,\"\"))","v":""},"","Required","Required"]
["",null,{"$f":"IF('TSA Input'!J2774=\"\",\"\",IF(OR('TSA Input'!J2774=\"Yes\",'TSA Input'!J2774=\"Contingent\"),'TSA Input'!B2774,\"Ineligible\"))","v":""},{"$f":"IF('TSA Input'!J2774=\"\",\"\",IF(OR('TSA Input'!J2774=\"Yes\",'TSA Input'!J2774=\"Contingent\"),'TSA Input'!I2774,\"\"))","v":""},{"$f":"IF('TSA Input'!J2774=\"\",\"\",IF(OR('TSA Input'!J2774=\"Yes\",'TSA Input'!J2774=\"Contingent\"),'TSA Input'!C2774,\"\"))","v":""},{"$f":"IF('TSA Input'!J2774=\"\",\"\",IF(OR('TSA Input'!J2774=\"Yes\",'TSA Input'!J2774=\"Contingent\"),'TSA Input'!D2774,\"\"))","v":""},{"$f":"IF('TSA Input'!J2774=\"\",\"\",IF(OR('TSA Input'!J2774=\"Yes\",'TSA Input'!J2774=\"Contingent\"),'TSA Input'!G2774,\"\"))","v":""},{"$f":"IF('TSA Input'!J2774=\"\",\"\",IF(OR('TSA Input'!J2774=\"Yes\",'TSA Input'!J2774=\"Contingent\"),'TSA Input'!F2774,\"\"))","v":""},"",{"$f":"IF('TSA Input'!J2774=\"\",\"\",IF(OR('TSA Input'!J2774=\"Yes\",'TSA Input'!J2774=\"Contingent\"),'TSA Input'!D2774,\"\"))","v":""},{"$f":"IF('TSA Input'!J2774=\"\",\"\",IF(OR('TSA Input'!J2774=\"Yes\",'TSA Input'!J2774=\"Contingent\"),'TSA Input'!G2774,\"\"))","v":""},{"$f":"IF('TSA Input'!J2774=\"\",\"\",IF(OR('TSA Input'!J2774=\"Yes\",'TSA Input'!J2774=\"Contingent\"),'TSA Input'!F2774,\"\"))","v":""},"","Required","Required"]
["",null,{"$f":"IF('TSA Input'!J2775=\"\",\"\",IF(OR('TSA Input'!J2775=\"Yes\",'TSA Input'!J2775=\"Contingent\"),'TSA Input'!B2775,\"Ineligible\"))","v":""},{"$f":"IF('TSA Input'!J2775=\"\",\"\",IF(OR('TSA Input'!J2775=\"Yes\",'TSA Input'!J2775=\"Contingent\"),'TSA Input'!I2775,\"\"))","v":""},{"$f":"IF('TSA Input'!J2775=\"\",\"\",IF(OR('TSA Input'!J2775=\"Yes\",'TSA Input'!J2775=\"Contingent\"),'TSA Input'!C2775,\"\"))","v":""},{"$f":"IF('TSA Input'!J2775=\"\",\"\",IF(OR('TSA Input'!J2775=\"Yes\",'TSA Input'!J2775=\"Contingent\"),'TSA Input'!D2775,\"\"))","v":""},{"$f":"IF('TSA Input'!J2775=\"\",\"\",IF(OR('TSA Input'!J2775=\"Yes\",'TSA Input'!J2775=\"Contingent\"),'TSA Input'!G2775,\"\"))","v":""},{"$f":"IF('TSA Input'!J2775=\"\",\"\",IF(OR('TSA Input'!J2775=\"Yes\",'TSA Input'!J2775=\"Contingent\"),'TSA Input'!F2775,\"\"))","v":""},"",{"$f":"IF('TSA Input'!J2775=\"\",\"\",IF(OR('TSA Input'!J2775=\"Yes\",'TSA Input'!J2775=\"Contingent\"),'TSA Input'!D2775,\"\"))","v":""},{"$f":"IF('TSA Input'!J2775=\"\",\"\",IF(OR('TSA Input'!J2775=\"Yes\",'TSA Input'!J2775=\"Contingent\"),'TSA Input'!G2775,\"\"))","v":""},{"$f":"IF('TSA Input'!J2775=\"\",\"\",IF(OR('TSA Input'!J2775=\"Yes\",'TSA Input'!J2775=\"Contingent\"),'TSA Input'!F2775,\"\"))","v":""},"","Required","Required"]
["",null,{"$f":"IF('TSA Input'!J2776=\"\",\"\",IF(OR('TSA Input'!J2776=\"Yes\",'TSA Input'!J2776=\"Contingent\"),'TSA Input'!B2776,\"Ineligible\"))","v":""},{"$f":"IF('TSA Input'!J2776=\"\",\"\",IF(OR('TSA Input'!J2776=\"Yes\",'TSA Input'!J2776=\"Contingent\"),'TSA Input'!I2776,\"\"))","v":""},{"$f":"IF('TSA Input'!J2776=\"\",\"\",IF(OR('TSA Input'!J2776=\"Yes\",'TSA Input'!J2776=\"Contingent\"),'TSA Input'!C2776,\"\"))","v":""},{"$f":"IF('TSA Input'!J2776=\"\",\"\",IF(OR('TSA Input'!J2776=\"Yes\",'TSA Input'!J2776=\"Contingent\"),'TSA Input'!D2776,\"\"))","v":""},{"$f":"IF('TSA Input'!J2776=\"\",\"\",IF(OR('TSA Input'!J2776=\"Yes\",'TSA Input'!J2776=\"Contingent\"),'TSA Input'!G2776,\"\"))","v":""},{"$f":"IF('TSA Input'!J2776=\"\",\"\",IF(OR('TSA Input'!J2776=\"Yes\",'TSA Input'!J2776=\"Contingent\"),'TSA Input'!F2776,\"\"))","v":""},"",{"$f":"IF('TSA Input'!J2776=\"\",\"\",IF(OR('TSA Input'!J2776=\"Yes\",'TSA Input'!J2776=\"Contingent\"),'TSA Input'!D2776,\"\"))","v":""},{"$f":"IF('TSA Input'!J2776=\"\",\"\",IF(OR('TSA Input'!J2776=\"Yes\",'TSA Input'!J2776=\"Contingent\"),'TSA Input'!G2776,\"\"))","v":""},{"$f":"IF('TSA Input'!J2776=\"\",\"\",IF(OR('TSA Input'!J2776=\"Yes\",'TSA Input'!J2776=\"Contingent\"),'TSA Input'!F2776,\"\"))","v":""},"","Required","Required"]
["",null,{"$f":"IF('TSA Input'!J2777=\"\",\"\",IF(OR('TSA Input'!J2777=\"Yes\",'TSA Input'!J2777=\"Contingent\"),'TSA Input'!B2777,\"Ineligible\"))","v":""},{"$f":"IF('TSA Input'!J2777=\"\",\"\",IF(OR('TSA Input'!J2777=\"Yes\",'TSA Input'!J2777=\"Contingent\"),'TSA Input'!I2777,\"\"))","v":""},{"$f":"IF('TSA Input'!J2777=\"\",\"\",IF(OR('TSA Input'!J2777=\"Yes\",'TSA Input'!J2777=\"Contingent\"),'TSA Input'!C2777,\"\"))","v":""},{"$f":"IF('TSA Input'!J2777=\"\",\"\",IF(OR('TSA Input'!J2777=\"Yes\",'TSA Input'!J2777=\"Contingent\"),'TSA Input'!D2777,\"\"))","v":""},{"$f":"IF('TSA Input'!J2777=\"\",\"\",IF(OR('TSA Input'!J2777=\"Yes\",'TSA Input'!J2777=\"Contingent\"),'TSA Input'!G2777,\"\"))","v":""},{"$f":"IF('TSA Input'!J2777=\"\",\"\",IF(OR('TSA Input'!J2777=\"Yes\",'TSA Input'!J2777=\"Contingent\"),'TSA Input'!F2777,\"\"))","v":""},"",{"$f":"IF('TSA Input'!J2777=\"\",\"\",IF(OR('TSA Input'!J2777=\"Yes\",'TSA Input'!J2777=\"Contingent\"),'TSA Input'!D2777,\"\"))","v":""},{"$f":"IF('TSA Input'!J2777=\"\",\"\",IF(OR('TSA Input'!J2777=\"Yes\",'TSA Input'!J2777=\"Contingent\"),'TSA Input'!G2777,\"\"))","v":""},{"$f":"IF('TSA Input'!J2777=\"\",\"\",IF(OR('TSA Input'!J2777=\"Yes\",'TSA Input'!J2777=\"Contingent\"),'TSA Input'!F2777,\"\"))","v":""},"","Required","Required"]
["",null,{"$f":"IF('TSA Input'!J2778=\"\",\"\",IF(OR('TSA Input'!J2778=\"Yes\",'TSA Input'!J2778=\"Contingent\"),'TSA Input'!B2778,\"Ineligible\"))","v":""},{"$f":"IF('TSA Input'!J2778=\"\",\"\",IF(OR('TSA Input'!J2778=\"Yes\",'TSA Input'!J2778=\"Contingent\"),'TSA Input'!I2778,\"\"))","v":""},{"$f":"IF('TSA Input'!J2778=\"\",\"\",IF(OR('TSA Input'!J2778=\"Yes\",'TSA Input'!J2778=\"Contingent\"),'TSA Input'!C2778,\"\"))","v":""},{"$f":"IF('TSA Input'!J2778=\"\",\"\",IF(OR('TSA Input'!J2778=\"Yes\",'TSA Input'!J2778=\"Contingent\"),'TSA Input'!D2778,\"\"))","v":""},{"$f":"IF('TSA Input'!J2778=\"\",\"\",IF(OR('TSA Input'!J2778=\"Yes\",'TSA Input'!J2778=\"Contingent\"),'TSA Input'!G2778,\"\"))","v":""},{"$f":"IF('TSA Input'!J2778=\"\",\"\",IF(OR('TSA Input'!J2778=\"Yes\",'TSA Input'!J2778=\"Contingent\"),'TSA Input'!F2778,\"\"))","v":""},"",{"$f":"IF('TSA Input'!J2778=\"\",\"\",IF(OR('TSA Input'!J2778=\"Yes\",'TSA Input'!J2778=\"Contingent\"),'TSA Input'!D2778,\"\"))","v":""},{"$f":"IF('TSA Input'!J2778=\"\",\"\",IF(OR('TSA Input'!J2778=\"Yes\",'TSA Input'!J2778=\"Contingent\"),'TSA Input'!G2778,\"\"))","v":""},{"$f":"IF('TSA Input'!J2778=\"\",\"\",IF(OR('TSA Input'!J2778=\"Yes\",'TSA Input'!J2778=\"Contingent\"),'TSA Input'!F2778,\"\"))","v":""},"","Required","Required"]
["",null,{"$f":"IF('TSA Input'!J2779=\"\",\"\",IF(OR('TSA Input'!J2779=\"Yes\",'TSA Input'!J2779=\"Contingent\"),'TSA Input'!B2779,\"Ineligible\"))","v":""},{"$f":"IF('TSA Input'!J2779=\"\",\"\",IF(OR('TSA Input'!J2779=\"Yes\",'TSA Input'!J2779=\"Contingent\"),'TSA Input'!I2779,\"\"))","v":""},{"$f":"IF('TSA Input'!J2779=\"\",\"\",IF(OR('TSA Input'!J2779=\"Yes\",'TSA Input'!J2779=\"Contingent\"),'TSA Input'!C2779,\"\"))","v":""},{"$f":"IF('TSA Input'!J2779=\"\",\"\",IF(OR('TSA Input'!J2779=\"Yes\",'TSA Input'!J2779=\"Contingent\"),'TSA Input'!D2779,\"\"))","v":""},{"$f":"IF('TSA Input'!J2779=\"\",\"\",IF(OR('TSA Input'!J2779=\"Yes\",'TSA Input'!J2779=\"Contingent\"),'TSA Input'!G2779,\"\"))","v":""},{"$f":"IF('TSA Input'!J2779=\"\",\"\",IF(OR('TSA Input'!J2779=\"Yes\",'TSA Input'!J2779=\"Contingent\"),'TSA Input'!F2779,\"\"))","v":""},"",{"$f":"IF('TSA Input'!J2779=\"\",\"\",IF(OR('TSA Input'!J2779=\"Yes\",'TSA Input'!J2779=\"Contingent\"),'TSA Input'!D2779,\"\"))","v":""},{"$f":"IF('TSA Input'!J2779=\"\",\"\",IF(OR('TSA Input'!J2779=\"Yes\",'TSA Input'!J2779=\"Contingent\"),'TSA Input'!G2779,\"\"))","v":""},{"$f":"IF('TSA Input'!J2779=\"\",\"\",IF(OR('TSA Input'!J2779=\"Yes\",'TSA Input'!J2779=\"Contingent\"),'TSA Input'!F2779,\"\"))","v":""},"","Required","Required"]
["",null,{"$f":"IF('TSA Input'!J2780=\"\",\"\",IF(OR('TSA Input'!J2780=\"Yes\",'TSA Input'!J2780=\"Contingent\"),'TSA Input'!B2780,\"Ineligible\"))","v":""},{"$f":"IF('TSA Input'!J2780=\"\",\"\",IF(OR('TSA Input'!J2780=\"Yes\",'TSA Input'!J2780=\"Contingent\"),'TSA Input'!I2780,\"\"))","v":""},{"$f":"IF('TSA Input'!J2780=\"\",\"\",IF(OR('TSA Input'!J2780=\"Yes\",'TSA Input'!J2780=\"Contingent\"),'TSA Input'!C2780,\"\"))","v":""},{"$f":"IF('TSA Input'!J2780=\"\",\"\",IF(OR('TSA Input'!J2780=\"Yes\",'TSA Input'!J2780=\"Contingent\"),'TSA Input'!D2780,\"\"))","v":""},{"$f":"IF('TSA Input'!J2780=\"\",\"\",IF(OR('TSA Input'!J2780=\"Yes\",'TSA Input'!J2780=\"Contingent\"),'TSA Input'!G2780,\"\"))","v":""},{"$f":"IF('TSA Input'!J2780=\"\",\"\",IF(OR('TSA Input'!J2780=\"Yes\",'TSA Input'!J2780=\"Contingent\"),'TSA Input'!F2780,\"\"))","v":""},"",{"$f":"IF('TSA Input'!J2780=\"\",\"\",IF(OR('TSA Input'!J2780=\"Yes\",'TSA Input'!J2780=\"Contingent\"),'TSA Input'!D2780,\"\"))","v":""},{"$f":"IF('TSA Input'!J2780=\"\",\"\",IF(OR('TSA Input'!J2780=\"Yes\",'TSA Input'!J2780=\"Contingent\"),'TSA Input'!G2780,\"\"))","v":""},{"$f":"IF('TSA Input'!J2780=\"\",\"\",IF(OR('TSA Input'!J2780=\"Yes\",'TSA Input'!J2780=\"Contingent\"),'TSA Input'!F2780,\"\"))","v":""},"","Required","Required"]
["",null,{"$f":"IF('TSA Input'!J2781=\"\",\"\",IF(OR('TSA Input'!J2781=\"Yes\",'TSA Input'!J2781=\"Contingent\"),'TSA Input'!B2781,\"Ineligible\"))","v":""},{"$f":"IF('TSA Input'!J2781=\"\",\"\",IF(OR('TSA Input'!J2781=\"Yes\",'TSA Input'!J2781=\"Contingent\"),'TSA Input'!I2781,\"\"))","v":""},{"$f":"IF('TSA Input'!J2781=\"\",\"\",IF(OR('TSA Input'!J2781=\"Yes\",'TSA Input'!J2781=\"Contingent\"),'TSA Input'!C2781,\"\"))","v":""},{"$f":"IF('TSA Input'!J2781=\"\",\"\",IF(OR('TSA Input'!J2781=\"Yes\",'TSA Input'!J2781=\"Contingent\"),'TSA Input'!D2781,\"\"))","v":""},{"$f":"IF('TSA Input'!J2781=\"\",\"\",IF(OR('TSA Input'!J2781=\"Yes\",'TSA Input'!J2781=\"Contingent\"),'TSA Input'!G2781,\"\"))","v":""},{"$f":"IF('TSA Input'!J2781=\"\",\"\",IF(OR('TSA Input'!J2781=\"Yes\",'TSA Input'!J2781=\"Contingent\"),'TSA Input'!F2781,\"\"))","v":""},"",{"$f":"IF('TSA Input'!J2781=\"\",\"\",IF(OR('TSA Input'!J2781=\"Yes\",'TSA Input'!J2781=\"Contingent\"),'TSA Input'!D2781,\"\"))","v":""},{"$f":"IF('TSA Input'!J2781=\"\",\"\",IF(OR('TSA Input'!J2781=\"Yes\",'TSA Input'!J2781=\"Contingent\"),'TSA Input'!G2781,\"\"))","v":""},{"$f":"IF('TSA Input'!J2781=\"\",\"\",IF(OR('TSA Input'!J2781=\"Yes\",'TSA Input'!J2781=\"Contingent\"),'TSA Input'!F2781,\"\"))","v":""},"","Required","Required"]
["",null,{"$f":"IF('TSA Input'!J2782=\"\",\"\",IF(OR('TSA Input'!J2782=\"Yes\",'TSA Input'!J2782=\"Contingent\"),'TSA Input'!B2782,\"Ineligible\"))","v":""},{"$f":"IF('TSA Input'!J2782=\"\",\"\",IF(OR('TSA Input'!J2782=\"Yes\",'TSA Input'!J2782=\"Contingent\"),'TSA Input'!I2782,\"\"))","v":""},{"$f":"IF('TSA Input'!J2782=\"\",\"\",IF(OR('TSA Input'!J2782=\"Yes\",'TSA Input'!J2782=\"Contingent\"),'TSA Input'!C2782,\"\"))","v":""},{"$f":"IF('TSA Input'!J2782=\"\",\"\",IF(OR('TSA Input'!J2782=\"Yes\",'TSA Input'!J2782=\"Contingent\"),'TSA Input'!D2782,\"\"))","v":""},{"$f":"IF('TSA Input'!J2782=\"\",\"\",IF(OR('TSA Input'!J2782=\"Yes\",'TSA Input'!J2782=\"Contingent\"),'TSA Input'!G2782,\"\"))","v":""},{"$f":"IF('TSA Input'!J2782=\"\",\"\",IF(OR('TSA Input'!J2782=\"Yes\",'TSA Input'!J2782=\"Contingent\"),'TSA Input'!F2782,\"\"))","v":""},"",{"$f":"IF('TSA Input'!J2782=\"\",\"\",IF(OR('TSA Input'!J2782=\"Yes\",'TSA Input'!J2782=\"Contingent\"),'TSA Input'!D2782,\"\"))","v":""},{"$f":"IF('TSA Input'!J2782=\"\",\"\",IF(OR('TSA Input'!J2782=\"Yes\",'TSA Input'!J2782=\"Contingent\"),'TSA Input'!G2782,\"\"))","v":""},{"$f":"IF('TSA Input'!J2782=\"\",\"\",IF(OR('TSA Input'!J2782=\"Yes\",'TSA Input'!J2782=\"Contingent\"),'TSA Input'!F2782,\"\"))","v":""},"","Required","Required"]
["",null,{"$f":"IF('TSA Input'!J2783=\"\",\"\",IF(OR('TSA Input'!J2783=\"Yes\",'TSA Input'!J2783=\"Contingent\"),'TSA Input'!B2783,\"Ineligible\"))","v":""},{"$f":"IF('TSA Input'!J2783=\"\",\"\",IF(OR('TSA Input'!J2783=\"Yes\",'TSA Input'!J2783=\"Contingent\"),'TSA Input'!I2783,\"\"))","v":""},{"$f":"IF('TSA Input'!J2783=\"\",\"\",IF(OR('TSA Input'!J2783=\"Yes\",'TSA Input'!J2783=\"Contingent\"),'TSA Input'!C2783,\"\"))","v":""},{"$f":"IF('TSA Input'!J2783=\"\",\"\",IF(OR('TSA Input'!J2783=\"Yes\",'TSA Input'!J2783=\"Contingent\"),'TSA Input'!D2783,\"\"))","v":""},{"$f":"IF('TSA Input'!J2783=\"\",\"\",IF(OR('TSA Input'!J2783=\"Yes\",'TSA Input'!J2783=\"Contingent\"),'TSA Input'!G2783,\"\"))","v":""},{"$f":"IF('TSA Input'!J2783=\"\",\"\",IF(OR('TSA Input'!J2783=\"Yes\",'TSA Input'!J2783=\"Contingent\"),'TSA Input'!F2783,\"\"))","v":""},"",{"$f":"IF('TSA Input'!J2783=\"\",\"\",IF(OR('TSA Input'!J2783=\"Yes\",'TSA Input'!J2783=\"Contingent\"),'TSA Input'!D2783,\"\"))","v":""},{"$f":"IF('TSA Input'!J2783=\"\",\"\",IF(OR('TSA Input'!J2783=\"Yes\",'TSA Input'!J2783=\"Contingent\"),'TSA Input'!G2783,\"\"))","v":""},{"$f":"IF('TSA Input'!J2783=\"\",\"\",IF(OR('TSA Input'!J2783=\"Yes\",'TSA Input'!J2783=\"Contingent\"),'TSA Input'!F2783,\"\"))","v":""},"","Required","Required"]
["",null,{"$f":"IF('TSA Input'!J2784=\"\",\"\",IF(OR('TSA Input'!J2784=\"Yes\",'TSA Input'!J2784=\"Contingent\"),'TSA Input'!B2784,\"Ineligible\"))","v":""},{"$f":"IF('TSA Input'!J2784=\"\",\"\",IF(OR('TSA Input'!J2784=\"Yes\",'TSA Input'!J2784=\"Contingent\"),'TSA Input'!I2784,\"\"))","v":""},{"$f":"IF('TSA Input'!J2784=\"\",\"\",IF(OR('TSA Input'!J2784=\"Yes\",'TSA Input'!J2784=\"Contingent\"),'TSA Input'!C2784,\"\"))","v":""},{"$f":"IF('TSA Input'!J2784=\"\",\"\",IF(OR('TSA Input'!J2784=\"Yes\",'TSA Input'!J2784=\"Contingent\"),'TSA Input'!D2784,\"\"))","v":""},{"$f":"IF('TSA Input'!J2784=\"\",\"\",IF(OR('TSA Input'!J2784=\"Yes\",'TSA Input'!J2784=\"Contingent\"),'TSA Input'!G2784,\"\"))","v":""},{"$f":"IF('TSA Input'!J2784=\"\",\"\",IF(OR('TSA Input'!J2784=\"Yes\",'TSA Input'!J2784=\"Contingent\"),'TSA Input'!F2784,\"\"))","v":""},"",{"$f":"IF('TSA Input'!J2784=\"\",\"\",IF(OR('TSA Input'!J2784=\"Yes\",'TSA Input'!J2784=\"Contingent\"),'TSA Input'!D2784,\"\"))","v":""},{"$f":"IF('TSA Input'!J2784=\"\",\"\",IF(OR('TSA Input'!J2784=\"Yes\",'TSA Input'!J2784=\"Contingent\"),'TSA Input'!G2784,\"\"))","v":""},{"$f":"IF('TSA Input'!J2784=\"\",\"\",IF(OR('TSA Input'!J2784=\"Yes\",'TSA Input'!J2784=\"Contingent\"),'TSA Input'!F2784,\"\"))","v":""},"","Required","Required"]
["",null,{"$f":"IF('TSA Input'!J2785=\"\",\"\",IF(OR('TSA Input'!J2785=\"Yes\",'TSA Input'!J2785=\"Contingent\"),'TSA Input'!B2785,\"Ineligible\"))","v":""},{"$f":"IF('TSA Input'!J2785=\"\",\"\",IF(OR('TSA Input'!J2785=\"Yes\",'TSA Input'!J2785=\"Contingent\"),'TSA Input'!I2785,\"\"))","v":""},{"$f":"IF('TSA Input'!J2785=\"\",\"\",IF(OR('TSA Input'!J2785=\"Yes\",'TSA Input'!J2785=\"Contingent\"),'TSA Input'!C2785,\"\"))","v":""},{"$f":"IF('TSA Input'!J2785=\"\",\"\",IF(OR('TSA Input'!J2785=\"Yes\",'TSA Input'!J2785=\"Contingent\"),'TSA Input'!D2785,\"\"))","v":""},{"$f":"IF('TSA Input'!J2785=\"\",\"\",IF(OR('TSA Input'!J2785=\"Yes\",'TSA Input'!J2785=\"Contingent\"),'TSA Input'!G2785,\"\"))","v":""},{"$f":"IF('TSA Input'!J2785=\"\",\"\",IF(OR('TSA Input'!J2785=\"Yes\",'TSA Input'!J2785=\"Contingent\"),'TSA Input'!F2785,\"\"))","v":""},"",{"$f":"IF('TSA Input'!J2785=\"\",\"\",IF(OR('TSA Input'!J2785=\"Yes\",'TSA Input'!J2785=\"Contingent\"),'TSA Input'!D2785,\"\"))","v":""},{"$f":"IF('TSA Input'!J2785=\"\",\"\",IF(OR('TSA Input'!J2785=\"Yes\",'TSA Input'!J2785=\"Contingent\"),'TSA Input'!G2785,\"\"))","v":""},{"$f":"IF('TSA Input'!J2785=\"\",\"\",IF(OR('TSA Input'!J2785=\"Yes\",'TSA Input'!J2785=\"Contingent\"),'TSA Input'!F2785,\"\"))","v":""},"","Required","Required"]
["",null,{"$f":"IF('TSA Input'!J2786=\"\",\"\",IF(OR('TSA Input'!J2786=\"Yes\",'TSA Input'!J2786=\"Contingent\"),'TSA Input'!B2786,\"Ineligible\"))","v":""},{"$f":"IF('TSA Input'!J2786=\"\",\"\",IF(OR('TSA Input'!J2786=\"Yes\",'TSA Input'!J2786=\"Contingent\"),'TSA Input'!I2786,\"\"))","v":""},{"$f":"IF('TSA Input'!J2786=\"\",\"\",IF(OR('TSA Input'!J2786=\"Yes\",'TSA Input'!J2786=\"Contingent\"),'TSA Input'!C2786,\"\"))","v":""},{"$f":"IF('TSA Input'!J2786=\"\",\"\",IF(OR('TSA Input'!J2786=\"Yes\",'TSA Input'!J2786=\"Contingent\"),'TSA Input'!D2786,\"\"))","v":""},{"$f":"IF('TSA Input'!J2786=\"\",\"\",IF(OR('TSA Input'!J2786=\"Yes\",'TSA Input'!J2786=\"Contingent\"),'TSA Input'!G2786,\"\"))","v":""},{"$f":"IF('TSA Input'!J2786=\"\",\"\",IF(OR('TSA Input'!J2786=\"Yes\",'TSA Input'!J2786=\"Contingent\"),'TSA Input'!F2786,\"\"))","v":""},"",{"$f":"IF('TSA Input'!J2786=\"\",\"\",IF(OR('TSA Input'!J2786=\"Yes\",'TSA Input'!J2786=\"Contingent\"),'TSA Input'!D2786,\"\"))","v":""},{"$f":"IF('TSA Input'!J2786=\"\",\"\",IF(OR('TSA Input'!J2786=\"Yes\",'TSA Input'!J2786=\"Contingent\"),'TSA Input'!G2786,\"\"))","v":""},{"$f":"IF('TSA Input'!J2786=\"\",\"\",IF(OR('TSA Input'!J2786=\"Yes\",'TSA Input'!J2786=\"Contingent\"),'TSA Input'!F2786,\"\"))","v":""},"","Required","Required"]
["",null,{"$f":"IF('TSA Input'!J2787=\"\",\"\",IF(OR('TSA Input'!J2787=\"Yes\",'TSA Input'!J2787=\"Contingent\"),'TSA Input'!B2787,\"Ineligible\"))","v":""},{"$f":"IF('TSA Input'!J2787=\"\",\"\",IF(OR('TSA Input'!J2787=\"Yes\",'TSA Input'!J2787=\"Contingent\"),'TSA Input'!I2787,\"\"))","v":""},{"$f":"IF('TSA Input'!J2787=\"\",\"\",IF(OR('TSA Input'!J2787=\"Yes\",'TSA Input'!J2787=\"Contingent\"),'TSA Input'!C2787,\"\"))","v":""},{"$f":"IF('TSA Input'!J2787=\"\",\"\",IF(OR('TSA Input'!J2787=\"Yes\",'TSA Input'!J2787=\"Contingent\"),'TSA Input'!D2787,\"\"))","v":""},{"$f":"IF('TSA Input'!J2787=\"\",\"\",IF(OR('TSA Input'!J2787=\"Yes\",'TSA Input'!J2787=\"Contingent\"),'TSA Input'!G2787,\"\"))","v":""},{"$f":"IF('TSA Input'!J2787=\"\",\"\",IF(OR('TSA Input'!J2787=\"Yes\",'TSA Input'!J2787=\"Contingent\"),'TSA Input'!F2787,\"\"))","v":""},"",{"$f":"IF('TSA Input'!J2787=\"\",\"\",IF(OR('TSA Input'!J2787=\"Yes\",'TSA Input'!J2787=\"Contingent\"),'TSA Input'!D2787,\"\"))","v":""},{"$f":"IF('TSA Input'!J2787=\"\",\"\",IF(OR('TSA Input'!J2787=\"Yes\",'TSA Input'!J2787=\"Contingent\"),'TSA Input'!G2787,\"\"))","v":""},{"$f":"IF('TSA Input'!J2787=\"\",\"\",IF(OR('TSA Input'!J2787=\"Yes\",'TSA Input'!J2787=\"Contingent\"),'TSA Input'!F2787,\"\"))","v":""},"","Required","Required"]
["",null,{"$f":"IF('TSA Input'!J2788=\"\",\"\",IF(OR('TSA Input'!J2788=\"Yes\",'TSA Input'!J2788=\"Contingent\"),'TSA Input'!B2788,\"Ineligible\"))","v":""},{"$f":"IF('TSA Input'!J2788=\"\",\"\",IF(OR('TSA Input'!J2788=\"Yes\",'TSA Input'!J2788=\"Contingent\"),'TSA Input'!I2788,\"\"))","v":""},{"$f":"IF('TSA Input'!J2788=\"\",\"\",IF(OR('TSA Input'!J2788=\"Yes\",'TSA Input'!J2788=\"Contingent\"),'TSA Input'!C2788,\"\"))","v":""},{"$f":"IF('TSA Input'!J2788=\"\",\"\",IF(OR('TSA Input'!J2788=\"Yes\",'TSA Input'!J2788=\"Contingent\"),'TSA Input'!D2788,\"\"))","v":""},{"$f":"IF('TSA Input'!J2788=\"\",\"\",IF(OR('TSA Input'!J2788=\"Yes\",'TSA Input'!J2788=\"Contingent\"),'TSA Input'!G2788,\"\"))","v":""},{"$f":"IF('TSA Input'!J2788=\"\",\"\",IF(OR('TSA Input'!J2788=\"Yes\",'TSA Input'!J2788=\"Contingent\"),'TSA Input'!F2788,\"\"))","v":""},"",{"$f":"IF('TSA Input'!J2788=\"\",\"\",IF(OR('TSA Input'!J2788=\"Yes\",'TSA Input'!J2788=\"Contingent\"),'TSA Input'!D2788,\"\"))","v":""},{"$f":"IF('TSA Input'!J2788=\"\",\"\",IF(OR('TSA Input'!J2788=\"Yes\",'TSA Input'!J2788=\"Contingent\"),'TSA Input'!G2788,\"\"))","v":""},{"$f":"IF('TSA Input'!J2788=\"\",\"\",IF(OR('TSA Input'!J2788=\"Yes\",'TSA Input'!J2788=\"Contingent\"),'TSA Input'!F2788,\"\"))","v":""},"","Required","Required"]
["",null,{"$f":"IF('TSA Input'!J2789=\"\",\"\",IF(OR('TSA Input'!J2789=\"Yes\",'TSA Input'!J2789=\"Contingent\"),'TSA Input'!B2789,\"Ineligible\"))","v":""},{"$f":"IF('TSA Input'!J2789=\"\",\"\",IF(OR('TSA Input'!J2789=\"Yes\",'TSA Input'!J2789=\"Contingent\"),'TSA Input'!I2789,\"\"))","v":""},{"$f":"IF('TSA Input'!J2789=\"\",\"\",IF(OR('TSA Input'!J2789=\"Yes\",'TSA Input'!J2789=\"Contingent\"),'TSA Input'!C2789,\"\"))","v":""},{"$f":"IF('TSA Input'!J2789=\"\",\"\",IF(OR('TSA Input'!J2789=\"Yes\",'TSA Input'!J2789=\"Contingent\"),'TSA Input'!D2789,\"\"))","v":""},{"$f":"IF('TSA Input'!J2789=\"\",\"\",IF(OR('TSA Input'!J2789=\"Yes\",'TSA Input'!J2789=\"Contingent\"),'TSA Input'!G2789,\"\"))","v":""},{"$f":"IF('TSA Input'!J2789=\"\",\"\",IF(OR('TSA Input'!J2789=\"Yes\",'TSA Input'!J2789=\"Contingent\"),'TSA Input'!F2789,\"\"))","v":""},"",{"$f":"IF('TSA Input'!J2789=\"\",\"\",IF(OR('TSA Input'!J2789=\"Yes\",'TSA Input'!J2789=\"Contingent\"),'TSA Input'!D2789,\"\"))","v":""},{"$f":"IF('TSA Input'!J2789=\"\",\"\",IF(OR('TSA Input'!J2789=\"Yes\",'TSA Input'!J2789=\"Contingent\"),'TSA Input'!G2789,\"\"))","v":""},{"$f":"IF('TSA Input'!J2789=\"\",\"\",IF(OR('TSA Input'!J2789=\"Yes\",'TSA Input'!J2789=\"Contingent\"),'TSA Input'!F2789,\"\"))","v":""},"","Required","Required"]
["",null,{"$f":"IF('TSA Input'!J2790=\"\",\"\",IF(OR('TSA Input'!J2790=\"Yes\",'TSA Input'!J2790=\"Contingent\"),'TSA Input'!B2790,\"Ineligible\"))","v":""},{"$f":"IF('TSA Input'!J2790=\"\",\"\",IF(OR('TSA Input'!J2790=\"Yes\",'TSA Input'!J2790=\"Contingent\"),'TSA Input'!I2790,\"\"))","v":""},{"$f":"IF('TSA Input'!J2790=\"\",\"\",IF(OR('TSA Input'!J2790=\"Yes\",'TSA Input'!J2790=\"Contingent\"),'TSA Input'!C2790,\"\"))","v":""},{"$f":"IF('TSA Input'!J2790=\"\",\"\",IF(OR('TSA Input'!J2790=\"Yes\",'TSA Input'!J2790=\"Contingent\"),'TSA Input'!D2790,\"\"))","v":""},{"$f":"IF('TSA Input'!J2790=\"\",\"\",IF(OR('TSA Input'!J2790=\"Yes\",'TSA Input'!J2790=\"Contingent\"),'TSA Input'!G2790,\"\"))","v":""},{"$f":"IF('TSA Input'!J2790=\"\",\"\",IF(OR('TSA Input'!J2790=\"Yes\",'TSA Input'!J2790=\"Contingent\"),'TSA Input'!F2790,\"\"))","v":""},"",{"$f":"IF('TSA Input'!J2790=\"\",\"\",IF(OR('TSA Input'!J2790=\"Yes\",'TSA Input'!J2790=\"Contingent\"),'TSA Input'!D2790,\"\"))","v":""},{"$f":"IF('TSA Input'!J2790=\"\",\"\",IF(OR('TSA Input'!J2790=\"Yes\",'TSA Input'!J2790=\"Contingent\"),'TSA Input'!G2790,\"\"))","v":""},{"$f":"IF('TSA Input'!J2790=\"\",\"\",IF(OR('TSA Input'!J2790=\"Yes\",'TSA Input'!J2790=\"Contingent\"),'TSA Input'!F2790,\"\"))","v":""},"","Required","Required"]
["",null,{"$f":"IF('TSA Input'!J2791=\"\",\"\",IF(OR('TSA Input'!J2791=\"Yes\",'TSA Input'!J2791=\"Contingent\"),'TSA Input'!B2791,\"Ineligible\"))","v":""},{"$f":"IF('TSA Input'!J2791=\"\",\"\",IF(OR('TSA Input'!J2791=\"Yes\",'TSA Input'!J2791=\"Contingent\"),'TSA Input'!I2791,\"\"))","v":""},{"$f":"IF('TSA Input'!J2791=\"\",\"\",IF(OR('TSA Input'!J2791=\"Yes\",'TSA Input'!J2791=\"Contingent\"),'TSA Input'!C2791,\"\"))","v":""},{"$f":"IF('TSA Input'!J2791=\"\",\"\",IF(OR('TSA Input'!J2791=\"Yes\",'TSA Input'!J2791=\"Contingent\"),'TSA Input'!D2791,\"\"))","v":""},{"$f":"IF('TSA Input'!J2791=\"\",\"\",IF(OR('TSA Input'!J2791=\"Yes\",'TSA Input'!J2791=\"Contingent\"),'TSA Input'!G2791,\"\"))","v":""},{"$f":"IF('TSA Input'!J2791=\"\",\"\",IF(OR('TSA Input'!J2791=\"Yes\",'TSA Input'!J2791=\"Contingent\"),'TSA Input'!F2791,\"\"))","v":""},"",{"$f":"IF('TSA Input'!J2791=\"\",\"\",IF(OR('TSA Input'!J2791=\"Yes\",'TSA Input'!J2791=\"Contingent\"),'TSA Input'!D2791,\"\"))","v":""},{"$f":"IF('TSA Input'!J2791=\"\",\"\",IF(OR('TSA Input'!J2791=\"Yes\",'TSA Input'!J2791=\"Contingent\"),'TSA Input'!G2791,\"\"))","v":""},{"$f":"IF('TSA Input'!J2791=\"\",\"\",IF(OR('TSA Input'!J2791=\"Yes\",'TSA Input'!J2791=\"Contingent\"),'TSA Input'!F2791,\"\"))","v":""},"","Required","Required"]
["",null,{"$f":"IF('TSA Input'!J2792=\"\",\"\",IF(OR('TSA Input'!J2792=\"Yes\",'TSA Input'!J2792=\"Contingent\"),'TSA Input'!B2792,\"Ineligible\"))","v":""},{"$f":"IF('TSA Input'!J2792=\"\",\"\",IF(OR('TSA Input'!J2792=\"Yes\",'TSA Input'!J2792=\"Contingent\"),'TSA Input'!I2792,\"\"))","v":""},{"$f":"IF('TSA Input'!J2792=\"\",\"\",IF(OR('TSA Input'!J2792=\"Yes\",'TSA Input'!J2792=\"Contingent\"),'TSA Input'!C2792,\"\"))","v":""},{"$f":"IF('TSA Input'!J2792=\"\",\"\",IF(OR('TSA Input'!J2792=\"Yes\",'TSA Input'!J2792=\"Contingent\"),'TSA Input'!D2792,\"\"))","v":""},{"$f":"IF('TSA Input'!J2792=\"\",\"\",IF(OR('TSA Input'!J2792=\"Yes\",'TSA Input'!J2792=\"Contingent\"),'TSA Input'!G2792,\"\"))","v":""},{"$f":"IF('TSA Input'!J2792=\"\",\"\",IF(OR('TSA Input'!J2792=\"Yes\",'TSA Input'!J2792=\"Contingent\"),'TSA Input'!F2792,\"\"))","v":""},"",{"$f":"IF('TSA Input'!J2792=\"\",\"\",IF(OR('TSA Input'!J2792=\"Yes\",'TSA Input'!J2792=\"Contingent\"),'TSA Input'!D2792,\"\"))","v":""},{"$f":"IF('TSA Input'!J2792=\"\",\"\",IF(OR('TSA Input'!J2792=\"Yes\",'TSA Input'!J2792=\"Contingent\"),'TSA Input'!G2792,\"\"))","v":""},{"$f":"IF('TSA Input'!J2792=\"\",\"\",IF(OR('TSA Input'!J2792=\"Yes\",'TSA Input'!J2792=\"Contingent\"),'TSA Input'!F2792,\"\"))","v":""},"","Required","Required"]
["",null,{"$f":"IF('TSA Input'!J2793=\"\",\"\",IF(OR('TSA Input'!J2793=\"Yes\",'TSA Input'!J2793=\"Contingent\"),'TSA Input'!B2793,\"Ineligible\"))","v":""},{"$f":"IF('TSA Input'!J2793=\"\",\"\",IF(OR('TSA Input'!J2793=\"Yes\",'TSA Input'!J2793=\"Contingent\"),'TSA Input'!I2793,\"\"))","v":""},{"$f":"IF('TSA Input'!J2793=\"\",\"\",IF(OR('TSA Input'!J2793=\"Yes\",'TSA Input'!J2793=\"Contingent\"),'TSA Input'!C2793,\"\"))","v":""},{"$f":"IF('TSA Input'!J2793=\"\",\"\",IF(OR('TSA Input'!J2793=\"Yes\",'TSA Input'!J2793=\"Contingent\"),'TSA Input'!D2793,\"\"))","v":""},{"$f":"IF('TSA Input'!J2793=\"\",\"\",IF(OR('TSA Input'!J2793=\"Yes\",'TSA Input'!J2793=\"Contingent\"),'TSA Input'!G2793,\"\"))","v":""},{"$f":"IF('TSA Input'!J2793=\"\",\"\",IF(OR('TSA Input'!J2793=\"Yes\",'TSA Input'!J2793=\"Contingent\"),'TSA Input'!F2793,\"\"))","v":""},"",{"$f":"IF('TSA Input'!J2793=\"\",\"\",IF(OR('TSA Input'!J2793=\"Yes\",'TSA Input'!J2793=\"Contingent\"),'TSA Input'!D2793,\"\"))","v":""},{"$f":"IF('TSA Input'!J2793=\"\",\"\",IF(OR('TSA Input'!J2793=\"Yes\",'TSA Input'!J2793=\"Contingent\"),'TSA Input'!G2793,\"\"))","v":""},{"$f":"IF('TSA Input'!J2793=\"\",\"\",IF(OR('TSA Input'!J2793=\"Yes\",'TSA Input'!J2793=\"Contingent\"),'TSA Input'!F2793,\"\"))","v":""},"","Required","Required"]
["",null,{"$f":"IF('TSA Input'!J2794=\"\",\"\",IF(OR('TSA Input'!J2794=\"Yes\",'TSA Input'!J2794=\"Contingent\"),'TSA Input'!B2794,\"Ineligible\"))","v":""},{"$f":"IF('TSA Input'!J2794=\"\",\"\",IF(OR('TSA Input'!J2794=\"Yes\",'TSA Input'!J2794=\"Contingent\"),'TSA Input'!I2794,\"\"))","v":""},{"$f":"IF('TSA Input'!J2794=\"\",\"\",IF(OR('TSA Input'!J2794=\"Yes\",'TSA Input'!J2794=\"Contingent\"),'TSA Input'!C2794,\"\"))","v":""},{"$f":"IF('TSA Input'!J2794=\"\",\"\",IF(OR('TSA Input'!J2794=\"Yes\",'TSA Input'!J2794=\"Contingent\"),'TSA Input'!D2794,\"\"))","v":""},{"$f":"IF('TSA Input'!J2794=\"\",\"\",IF(OR('TSA Input'!J2794=\"Yes\",'TSA Input'!J2794=\"Contingent\"),'TSA Input'!G2794,\"\"))","v":""},{"$f":"IF('TSA Input'!J2794=\"\",\"\",IF(OR('TSA Input'!J2794=\"Yes\",'TSA Input'!J2794=\"Contingent\"),'TSA Input'!F2794,\"\"))","v":""},"",{"$f":"IF('TSA Input'!J2794=\"\",\"\",IF(OR('TSA Input'!J2794=\"Yes\",'TSA Input'!J2794=\"Contingent\"),'TSA Input'!D2794,\"\"))","v":""},{"$f":"IF('TSA Input'!J2794=\"\",\"\",IF(OR('TSA Input'!J2794=\"Yes\",'TSA Input'!J2794=\"Contingent\"),'TSA Input'!G2794,\"\"))","v":""},{"$f":"IF('TSA Input'!J2794=\"\",\"\",IF(OR('TSA Input'!J2794=\"Yes\",'TSA Input'!J2794=\"Contingent\"),'TSA Input'!F2794,\"\"))","v":""},"","Required","Required"]
["",null,{"$f":"IF('TSA Input'!J2795=\"\",\"\",IF(OR('TSA Input'!J2795=\"Yes\",'TSA Input'!J2795=\"Contingent\"),'TSA Input'!B2795,\"Ineligible\"))","v":""},{"$f":"IF('TSA Input'!J2795=\"\",\"\",IF(OR('TSA Input'!J2795=\"Yes\",'TSA Input'!J2795=\"Contingent\"),'TSA Input'!I2795,\"\"))","v":""},{"$f":"IF('TSA Input'!J2795=\"\",\"\",IF(OR('TSA Input'!J2795=\"Yes\",'TSA Input'!J2795=\"Contingent\"),'TSA Input'!C2795,\"\"))","v":""},{"$f":"IF('TSA Input'!J2795=\"\",\"\",IF(OR('TSA Input'!J2795=\"Yes\",'TSA Input'!J2795=\"Contingent\"),'TSA Input'!D2795,\"\"))","v":""},{"$f":"IF('TSA Input'!J2795=\"\",\"\",IF(OR('TSA Input'!J2795=\"Yes\",'TSA Input'!J2795=\"Contingent\"),'TSA Input'!G2795,\"\"))","v":""},{"$f":"IF('TSA Input'!J2795=\"\",\"\",IF(OR('TSA Input'!J2795=\"Yes\",'TSA Input'!J2795=\"Contingent\"),'TSA Input'!F2795,\"\"))","v":""},"",{"$f":"IF('TSA Input'!J2795=\"\",\"\",IF(OR('TSA Input'!J2795=\"Yes\",'TSA Input'!J2795=\"Contingent\"),'TSA Input'!D2795,\"\"))","v":""},{"$f":"IF('TSA Input'!J2795=\"\",\"\",IF(OR('TSA Input'!J2795=\"Yes\",'TSA Input'!J2795=\"Contingent\"),'TSA Input'!G2795,\"\"))","v":""},{"$f":"IF('TSA Input'!J2795=\"\",\"\",IF(OR('TSA Input'!J2795=\"Yes\",'TSA Input'!J2795=\"Contingent\"),'TSA Input'!F2795,\"\"))","v":""},"","Required","Required"]
["",null,{"$f":"IF('TSA Input'!J2796=\"\",\"\",IF(OR('TSA Input'!J2796=\"Yes\",'TSA Input'!J2796=\"Contingent\"),'TSA Input'!B2796,\"Ineligible\"))","v":""},{"$f":"IF('TSA Input'!J2796=\"\",\"\",IF(OR('TSA Input'!J2796=\"Yes\",'TSA Input'!J2796=\"Contingent\"),'TSA Input'!I2796,\"\"))","v":""},{"$f":"IF('TSA Input'!J2796=\"\",\"\",IF(OR('TSA Input'!J2796=\"Yes\",'TSA Input'!J2796=\"Contingent\"),'TSA Input'!C2796,\"\"))","v":""},{"$f":"IF('TSA Input'!J2796=\"\",\"\",IF(OR('TSA Input'!J2796=\"Yes\",'TSA Input'!J2796=\"Contingent\"),'TSA Input'!D2796,\"\"))","v":""},{"$f":"IF('TSA Input'!J2796=\"\",\"\",IF(OR('TSA Input'!J2796=\"Yes\",'TSA Input'!J2796=\"Contingent\"),'TSA Input'!G2796,\"\"))","v":""},{"$f":"IF('TSA Input'!J2796=\"\",\"\",IF(OR('TSA Input'!J2796=\"Yes\",'TSA Input'!J2796=\"Contingent\"),'TSA Input'!F2796,\"\"))","v":""},"",{"$f":"IF('TSA Input'!J2796=\"\",\"\",IF(OR('TSA Input'!J2796=\"Yes\",'TSA Input'!J2796=\"Contingent\"),'TSA Input'!D2796,\"\"))","v":""},{"$f":"IF('TSA Input'!J2796=\"\",\"\",IF(OR('TSA Input'!J2796=\"Yes\",'TSA Input'!J2796=\"Contingent\"),'TSA Input'!G2796,\"\"))","v":""},{"$f":"IF('TSA Input'!J2796=\"\",\"\",IF(OR('TSA Input'!J2796=\"Yes\",'TSA Input'!J2796=\"Contingent\"),'TSA Input'!F2796,\"\"))","v":""},"","Required","Required"]
["",null,{"$f":"IF('TSA Input'!J2797=\"\",\"\",IF(OR('TSA Input'!J2797=\"Yes\",'TSA Input'!J2797=\"Contingent\"),'TSA Input'!B2797,\"Ineligible\"))","v":""},{"$f":"IF('TSA Input'!J2797=\"\",\"\",IF(OR('TSA Input'!J2797=\"Yes\",'TSA Input'!J2797=\"Contingent\"),'TSA Input'!I2797,\"\"))","v":""},{"$f":"IF('TSA Input'!J2797=\"\",\"\",IF(OR('TSA Input'!J2797=\"Yes\",'TSA Input'!J2797=\"Contingent\"),'TSA Input'!C2797,\"\"))","v":""},{"$f":"IF('TSA Input'!J2797=\"\",\"\",IF(OR('TSA Input'!J2797=\"Yes\",'TSA Input'!J2797=\"Contingent\"),'TSA Input'!D2797,\"\"))","v":""},{"$f":"IF('TSA Input'!J2797=\"\",\"\",IF(OR('TSA Input'!J2797=\"Yes\",'TSA Input'!J2797=\"Contingent\"),'TSA Input'!G2797,\"\"))","v":""},{"$f":"IF('TSA Input'!J2797=\"\",\"\",IF(OR('TSA Input'!J2797=\"Yes\",'TSA Input'!J2797=\"Contingent\"),'TSA Input'!F2797,\"\"))","v":""},"",{"$f":"IF('TSA Input'!J2797=\"\",\"\",IF(OR('TSA Input'!J2797=\"Yes\",'TSA Input'!J2797=\"Contingent\"),'TSA Input'!D2797,\"\"))","v":""},{"$f":"IF('TSA Input'!J2797=\"\",\"\",IF(OR('TSA Input'!J2797=\"Yes\",'TSA Input'!J2797=\"Contingent\"),'TSA Input'!G2797,\"\"))","v":""},{"$f":"IF('TSA Input'!J2797=\"\",\"\",IF(OR('TSA Input'!J2797=\"Yes\",'TSA Input'!J2797=\"Contingent\"),'TSA Input'!F2797,\"\"))","v":""},"","Required","Required"]
["",null,{"$f":"IF('TSA Input'!J2798=\"\",\"\",IF(OR('TSA Input'!J2798=\"Yes\",'TSA Input'!J2798=\"Contingent\"),'TSA Input'!B2798,\"Ineligible\"))","v":""},{"$f":"IF('TSA Input'!J2798=\"\",\"\",IF(OR('TSA Input'!J2798=\"Yes\",'TSA Input'!J2798=\"Contingent\"),'TSA Input'!I2798,\"\"))","v":""},{"$f":"IF('TSA Input'!J2798=\"\",\"\",IF(OR('TSA Input'!J2798=\"Yes\",'TSA Input'!J2798=\"Contingent\"),'TSA Input'!C2798,\"\"))","v":""},{"$f":"IF('TSA Input'!J2798=\"\",\"\",IF(OR('TSA Input'!J2798=\"Yes\",'TSA Input'!J2798=\"Contingent\"),'TSA Input'!D2798,\"\"))","v":""},{"$f":"IF('TSA Input'!J2798=\"\",\"\",IF(OR('TSA Input'!J2798=\"Yes\",'TSA Input'!J2798=\"Contingent\"),'TSA Input'!G2798,\"\"))","v":""},{"$f":"IF('TSA Input'!J2798=\"\",\"\",IF(OR('TSA Input'!J2798=\"Yes\",'TSA Input'!J2798=\"Contingent\"),'TSA Input'!F2798,\"\"))","v":""},"",{"$f":"IF('TSA Input'!J2798=\"\",\"\",IF(OR('TSA Input'!J2798=\"Yes\",'TSA Input'!J2798=\"Contingent\"),'TSA Input'!D2798,\"\"))","v":""},{"$f":"IF('TSA Input'!J2798=\"\",\"\",IF(OR('TSA Input'!J2798=\"Yes\",'TSA Input'!J2798=\"Contingent\"),'TSA Input'!G2798,\"\"))","v":""},{"$f":"IF('TSA Input'!J2798=\"\",\"\",IF(OR('TSA Input'!J2798=\"Yes\",'TSA Input'!J2798=\"Contingent\"),'TSA Input'!F2798,\"\"))","v":""},"","Required","Required"]
["",null,{"$f":"IF('TSA Input'!J2799=\"\",\"\",IF(OR('TSA Input'!J2799=\"Yes\",'TSA Input'!J2799=\"Contingent\"),'TSA Input'!B2799,\"Ineligible\"))","v":""},{"$f":"IF('TSA Input'!J2799=\"\",\"\",IF(OR('TSA Input'!J2799=\"Yes\",'TSA Input'!J2799=\"Contingent\"),'TSA Input'!I2799,\"\"))","v":""},{"$f":"IF('TSA Input'!J2799=\"\",\"\",IF(OR('TSA Input'!J2799=\"Yes\",'TSA Input'!J2799=\"Contingent\"),'TSA Input'!C2799,\"\"))","v":""},{"$f":"IF('TSA Input'!J2799=\"\",\"\",IF(OR('TSA Input'!J2799=\"Yes\",'TSA Input'!J2799=\"Contingent\"),'TSA Input'!D2799,\"\"))","v":""},{"$f":"IF('TSA Input'!J2799=\"\",\"\",IF(OR('TSA Input'!J2799=\"Yes\",'TSA Input'!J2799=\"Contingent\"),'TSA Input'!G2799,\"\"))","v":""},{"$f":"IF('TSA Input'!J2799=\"\",\"\",IF(OR('TSA Input'!J2799=\"Yes\",'TSA Input'!J2799=\"Contingent\"),'TSA Input'!F2799,\"\"))","v":""},"",{"$f":"IF('TSA Input'!J2799=\"\",\"\",IF(OR('TSA Input'!J2799=\"Yes\",'TSA Input'!J2799=\"Contingent\"),'TSA Input'!D2799,\"\"))","v":""},{"$f":"IF('TSA Input'!J2799=\"\",\"\",IF(OR('TSA Input'!J2799=\"Yes\",'TSA Input'!J2799=\"Contingent\"),'TSA Input'!G2799,\"\"))","v":""},{"$f":"IF('TSA Input'!J2799=\"\",\"\",IF(OR('TSA Input'!J2799=\"Yes\",'TSA Input'!J2799=\"Contingent\"),'TSA Input'!F2799,\"\"))","v":""},"","Required","Required"]
["",null,{"$f":"IF('TSA Input'!J2800=\"\",\"\",IF(OR('TSA Input'!J2800=\"Yes\",'TSA Input'!J2800=\"Contingent\"),'TSA Input'!B2800,\"Ineligible\"))","v":""},{"$f":"IF('TSA Input'!J2800=\"\",\"\",IF(OR('TSA Input'!J2800=\"Yes\",'TSA Input'!J2800=\"Contingent\"),'TSA Input'!I2800,\"\"))","v":""},{"$f":"IF('TSA Input'!J2800=\"\",\"\",IF(OR('TSA Input'!J2800=\"Yes\",'TSA Input'!J2800=\"Contingent\"),'TSA Input'!C2800,\"\"))","v":""},{"$f":"IF('TSA Input'!J2800=\"\",\"\",IF(OR('TSA Input'!J2800=\"Yes\",'TSA Input'!J2800=\"Contingent\"),'TSA Input'!D2800,\"\"))","v":""},{"$f":"IF('TSA Input'!J2800=\"\",\"\",IF(OR('TSA Input'!J2800=\"Yes\",'TSA Input'!J2800=\"Contingent\"),'TSA Input'!G2800,\"\"))","v":""},{"$f":"IF('TSA Input'!J2800=\"\",\"\",IF(OR('TSA Input'!J2800=\"Yes\",'TSA Input'!J2800=\"Contingent\"),'TSA Input'!F2800,\"\"))","v":""},"",{"$f":"IF('TSA Input'!J2800=\"\",\"\",IF(OR('TSA Input'!J2800=\"Yes\",'TSA Input'!J2800=\"Contingent\"),'TSA Input'!D2800,\"\"))","v":""},{"$f":"IF('TSA Input'!J2800=\"\",\"\",IF(OR('TSA Input'!J2800=\"Yes\",'TSA Input'!J2800=\"Contingent\"),'TSA Input'!G2800,\"\"))","v":""},{"$f":"IF('TSA Input'!J2800=\"\",\"\",IF(OR('TSA Input'!J2800=\"Yes\",'TSA Input'!J2800=\"Contingent\"),'TSA Input'!F2800,\"\"))","v":""},"","Required","Required"]
["",null,{"$f":"IF('TSA Input'!J2801=\"\",\"\",IF(OR('TSA Input'!J2801=\"Yes\",'TSA Input'!J2801=\"Contingent\"),'TSA Input'!B2801,\"Ineligible\"))","v":""},{"$f":"IF('TSA Input'!J2801=\"\",\"\",IF(OR('TSA Input'!J2801=\"Yes\",'TSA Input'!J2801=\"Contingent\"),'TSA Input'!I2801,\"\"))","v":""},{"$f":"IF('TSA Input'!J2801=\"\",\"\",IF(OR('TSA Input'!J2801=\"Yes\",'TSA Input'!J2801=\"Contingent\"),'TSA Input'!C2801,\"\"))","v":""},{"$f":"IF('TSA Input'!J2801=\"\",\"\",IF(OR('TSA Input'!J2801=\"Yes\",'TSA Input'!J2801=\"Contingent\"),'TSA Input'!D2801,\"\"))","v":""},{"$f":"IF('TSA Input'!J2801=\"\",\"\",IF(OR('TSA Input'!J2801=\"Yes\",'TSA Input'!J2801=\"Contingent\"),'TSA Input'!G2801,\"\"))","v":""},{"$f":"IF('TSA Input'!J2801=\"\",\"\",IF(OR('TSA Input'!J2801=\"Yes\",'TSA Input'!J2801=\"Contingent\"),'TSA Input'!F2801,\"\"))","v":""},"",{"$f":"IF('TSA Input'!J2801=\"\",\"\",IF(OR('TSA Input'!J2801=\"Yes\",'TSA Input'!J2801=\"Contingent\"),'TSA Input'!D2801,\"\"))","v":""},{"$f":"IF('TSA Input'!J2801=\"\",\"\",IF(OR('TSA Input'!J2801=\"Yes\",'TSA Input'!J2801=\"Contingent\"),'TSA Input'!G2801,\"\"))","v":""},{"$f":"IF('TSA Input'!J2801=\"\",\"\",IF(OR('TSA Input'!J2801=\"Yes\",'TSA Input'!J2801=\"Contingent\"),'TSA Input'!F2801,\"\"))","v":""},"","Required","Required"]
["",null,{"$f":"IF('TSA Input'!J2802=\"\",\"\",IF(OR('TSA Input'!J2802=\"Yes\",'TSA Input'!J2802=\"Contingent\"),'TSA Input'!B2802,\"Ineligible\"))","v":""},{"$f":"IF('TSA Input'!J2802=\"\",\"\",IF(OR('TSA Input'!J2802=\"Yes\",'TSA Input'!J2802=\"Contingent\"),'TSA Input'!I2802,\"\"))","v":""},{"$f":"IF('TSA Input'!J2802=\"\",\"\",IF(OR('TSA Input'!J2802=\"Yes\",'TSA Input'!J2802=\"Contingent\"),'TSA Input'!C2802,\"\"))","v":""},{"$f":"IF('TSA Input'!J2802=\"\",\"\",IF(OR('TSA Input'!J2802=\"Yes\",'TSA Input'!J2802=\"Contingent\"),'TSA Input'!D2802,\"\"))","v":""},{"$f":"IF('TSA Input'!J2802=\"\",\"\",IF(OR('TSA Input'!J2802=\"Yes\",'TSA Input'!J2802=\"Contingent\"),'TSA Input'!G2802,\"\"))","v":""},{"$f":"IF('TSA Input'!J2802=\"\",\"\",IF(OR('TSA Input'!J2802=\"Yes\",'TSA Input'!J2802=\"Contingent\"),'TSA Input'!F2802,\"\"))","v":""},"",{"$f":"IF('TSA Input'!J2802=\"\",\"\",IF(OR('TSA Input'!J2802=\"Yes\",'TSA Input'!J2802=\"Contingent\"),'TSA Input'!D2802,\"\"))","v":""},{"$f":"IF('TSA Input'!J2802=\"\",\"\",IF(OR('TSA Input'!J2802=\"Yes\",'TSA Input'!J2802=\"Contingent\"),'TSA Input'!G2802,\"\"))","v":""},{"$f":"IF('TSA Input'!J2802=\"\",\"\",IF(OR('TSA Input'!J2802=\"Yes\",'TSA Input'!J2802=\"Contingent\"),'TSA Input'!F2802,\"\"))","v":""},"","Required","Required"]
["",null,{"$f":"IF('TSA Input'!J2803=\"\",\"\",IF(OR('TSA Input'!J2803=\"Yes\",'TSA Input'!J2803=\"Contingent\"),'TSA Input'!B2803,\"Ineligible\"))","v":""},{"$f":"IF('TSA Input'!J2803=\"\",\"\",IF(OR('TSA Input'!J2803=\"Yes\",'TSA Input'!J2803=\"Contingent\"),'TSA Input'!I2803,\"\"))","v":""},{"$f":"IF('TSA Input'!J2803=\"\",\"\",IF(OR('TSA Input'!J2803=\"Yes\",'TSA Input'!J2803=\"Contingent\"),'TSA Input'!C2803,\"\"))","v":""},{"$f":"IF('TSA Input'!J2803=\"\",\"\",IF(OR('TSA Input'!J2803=\"Yes\",'TSA Input'!J2803=\"Contingent\"),'TSA Input'!D2803,\"\"))","v":""},{"$f":"IF('TSA Input'!J2803=\"\",\"\",IF(OR('TSA Input'!J2803=\"Yes\",'TSA Input'!J2803=\"Contingent\"),'TSA Input'!G2803,\"\"))","v":""},{"$f":"IF('TSA Input'!J2803=\"\",\"\",IF(OR('TSA Input'!J2803=\"Yes\",'TSA Input'!J2803=\"Contingent\"),'TSA Input'!F2803,\"\"))","v":""},"",{"$f":"IF('TSA Input'!J2803=\"\",\"\",IF(OR('TSA Input'!J2803=\"Yes\",'TSA Input'!J2803=\"Contingent\"),'TSA Input'!D2803,\"\"))","v":""},{"$f":"IF('TSA Input'!J2803=\"\",\"\",IF(OR('TSA Input'!J2803=\"Yes\",'TSA Input'!J2803=\"Contingent\"),'TSA Input'!G2803,\"\"))","v":""},{"$f":"IF('TSA Input'!J2803=\"\",\"\",IF(OR('TSA Input'!J2803=\"Yes\",'TSA Input'!J2803=\"Contingent\"),'TSA Input'!F2803,\"\"))","v":""},"","Required","Required"]
["",null,{"$f":"IF('TSA Input'!J2804=\"\",\"\",IF(OR('TSA Input'!J2804=\"Yes\",'TSA Input'!J2804=\"Contingent\"),'TSA Input'!B2804,\"Ineligible\"))","v":""},{"$f":"IF('TSA Input'!J2804=\"\",\"\",IF(OR('TSA Input'!J2804=\"Yes\",'TSA Input'!J2804=\"Contingent\"),'TSA Input'!I2804,\"\"))","v":""},{"$f":"IF('TSA Input'!J2804=\"\",\"\",IF(OR('TSA Input'!J2804=\"Yes\",'TSA Input'!J2804=\"Contingent\"),'TSA Input'!C2804,\"\"))","v":""},{"$f":"IF('TSA Input'!J2804=\"\",\"\",IF(OR('TSA Input'!J2804=\"Yes\",'TSA Input'!J2804=\"Contingent\"),'TSA Input'!D2804,\"\"))","v":""},{"$f":"IF('TSA Input'!J2804=\"\",\"\",IF(OR('TSA Input'!J2804=\"Yes\",'TSA Input'!J2804=\"Contingent\"),'TSA Input'!G2804,\"\"))","v":""},{"$f":"IF('TSA Input'!J2804=\"\",\"\",IF(OR('TSA Input'!J2804=\"Yes\",'TSA Input'!J2804=\"Contingent\"),'TSA Input'!F2804,\"\"))","v":""},"",{"$f":"IF('TSA Input'!J2804=\"\",\"\",IF(OR('TSA Input'!J2804=\"Yes\",'TSA Input'!J2804=\"Contingent\"),'TSA Input'!D2804,\"\"))","v":""},{"$f":"IF('TSA Input'!J2804=\"\",\"\",IF(OR('TSA Input'!J2804=\"Yes\",'TSA Input'!J2804=\"Contingent\"),'TSA Input'!G2804,\"\"))","v":""},{"$f":"IF('TSA Input'!J2804=\"\",\"\",IF(OR('TSA Input'!J2804=\"Yes\",'TSA Input'!J2804=\"Contingent\"),'TSA Input'!F2804,\"\"))","v":""},"","Required","Required"]
["",null,{"$f":"IF('TSA Input'!J2805=\"\",\"\",IF(OR('TSA Input'!J2805=\"Yes\",'TSA Input'!J2805=\"Contingent\"),'TSA Input'!B2805,\"Ineligible\"))","v":""},{"$f":"IF('TSA Input'!J2805=\"\",\"\",IF(OR('TSA Input'!J2805=\"Yes\",'TSA Input'!J2805=\"Contingent\"),'TSA Input'!I2805,\"\"))","v":""},{"$f":"IF('TSA Input'!J2805=\"\",\"\",IF(OR('TSA Input'!J2805=\"Yes\",'TSA Input'!J2805=\"Contingent\"),'TSA Input'!C2805,\"\"))","v":""},{"$f":"IF('TSA Input'!J2805=\"\",\"\",IF(OR('TSA Input'!J2805=\"Yes\",'TSA Input'!J2805=\"Contingent\"),'TSA Input'!D2805,\"\"))","v":""},{"$f":"IF('TSA Input'!J2805=\"\",\"\",IF(OR('TSA Input'!J2805=\"Yes\",'TSA Input'!J2805=\"Contingent\"),'TSA Input'!G2805,\"\"))","v":""},{"$f":"IF('TSA Input'!J2805=\"\",\"\",IF(OR('TSA Input'!J2805=\"Yes\",'TSA Input'!J2805=\"Contingent\"),'TSA Input'!F2805,\"\"))","v":""},"",{"$f":"IF('TSA Input'!J2805=\"\",\"\",IF(OR('TSA Input'!J2805=\"Yes\",'TSA Input'!J2805=\"Contingent\"),'TSA Input'!D2805,\"\"))","v":""},{"$f":"IF('TSA Input'!J2805=\"\",\"\",IF(OR('TSA Input'!J2805=\"Yes\",'TSA Input'!J2805=\"Contingent\"),'TSA Input'!G2805,\"\"))","v":""},{"$f":"IF('TSA Input'!J2805=\"\",\"\",IF(OR('TSA Input'!J2805=\"Yes\",'TSA Input'!J2805=\"Contingent\"),'TSA Input'!F2805,\"\"))","v":""},"","Required","Required"]
["",null,{"$f":"IF('TSA Input'!J2806=\"\",\"\",IF(OR('TSA Input'!J2806=\"Yes\",'TSA Input'!J2806=\"Contingent\"),'TSA Input'!B2806,\"Ineligible\"))","v":""},{"$f":"IF('TSA Input'!J2806=\"\",\"\",IF(OR('TSA Input'!J2806=\"Yes\",'TSA Input'!J2806=\"Contingent\"),'TSA Input'!I2806,\"\"))","v":""},{"$f":"IF('TSA Input'!J2806=\"\",\"\",IF(OR('TSA Input'!J2806=\"Yes\",'TSA Input'!J2806=\"Contingent\"),'TSA Input'!C2806,\"\"))","v":""},{"$f":"IF('TSA Input'!J2806=\"\",\"\",IF(OR('TSA Input'!J2806=\"Yes\",'TSA Input'!J2806=\"Contingent\"),'TSA Input'!D2806,\"\"))","v":""},{"$f":"IF('TSA Input'!J2806=\"\",\"\",IF(OR('TSA Input'!J2806=\"Yes\",'TSA Input'!J2806=\"Contingent\"),'TSA Input'!G2806,\"\"))","v":""},{"$f":"IF('TSA Input'!J2806=\"\",\"\",IF(OR('TSA Input'!J2806=\"Yes\",'TSA Input'!J2806=\"Contingent\"),'TSA Input'!F2806,\"\"))","v":""},"",{"$f":"IF('TSA Input'!J2806=\"\",\"\",IF(OR('TSA Input'!J2806=\"Yes\",'TSA Input'!J2806=\"Contingent\"),'TSA Input'!D2806,\"\"))","v":""},{"$f":"IF('TSA Input'!J2806=\"\",\"\",IF(OR('TSA Input'!J2806=\"Yes\",'TSA Input'!J2806=\"Contingent\"),'TSA Input'!G2806,\"\"))","v":""},{"$f":"IF('TSA Input'!J2806=\"\",\"\",IF(OR('TSA Input'!J2806=\"Yes\",'TSA Input'!J2806=\"Contingent\"),'TSA Input'!F2806,\"\"))","v":""},"","Required","Required"]
["",null,{"$f":"IF('TSA Input'!J2807=\"\",\"\",IF(OR('TSA Input'!J2807=\"Yes\",'TSA Input'!J2807=\"Contingent\"),'TSA Input'!B2807,\"Ineligible\"))","v":""},{"$f":"IF('TSA Input'!J2807=\"\",\"\",IF(OR('TSA Input'!J2807=\"Yes\",'TSA Input'!J2807=\"Contingent\"),'TSA Input'!I2807,\"\"))","v":""},{"$f":"IF('TSA Input'!J2807=\"\",\"\",IF(OR('TSA Input'!J2807=\"Yes\",'TSA Input'!J2807=\"Contingent\"),'TSA Input'!C2807,\"\"))","v":""},{"$f":"IF('TSA Input'!J2807=\"\",\"\",IF(OR('TSA Input'!J2807=\"Yes\",'TSA Input'!J2807=\"Contingent\"),'TSA Input'!D2807,\"\"))","v":""},{"$f":"IF('TSA Input'!J2807=\"\",\"\",IF(OR('TSA Input'!J2807=\"Yes\",'TSA Input'!J2807=\"Contingent\"),'TSA Input'!G2807,\"\"))","v":""},{"$f":"IF('TSA Input'!J2807=\"\",\"\",IF(OR('TSA Input'!J2807=\"Yes\",'TSA Input'!J2807=\"Contingent\"),'TSA Input'!F2807,\"\"))","v":""},"",{"$f":"IF('TSA Input'!J2807=\"\",\"\",IF(OR('TSA Input'!J2807=\"Yes\",'TSA Input'!J2807=\"Contingent\"),'TSA Input'!D2807,\"\"))","v":""},{"$f":"IF('TSA Input'!J2807=\"\",\"\",IF(OR('TSA Input'!J2807=\"Yes\",'TSA Input'!J2807=\"Contingent\"),'TSA Input'!G2807,\"\"))","v":""},{"$f":"IF('TSA Input'!J2807=\"\",\"\",IF(OR('TSA Input'!J2807=\"Yes\",'TSA Input'!J2807=\"Contingent\"),'TSA Input'!F2807,\"\"))","v":""},"","Required","Required"]
["",null,{"$f":"IF('TSA Input'!J2808=\"\",\"\",IF(OR('TSA Input'!J2808=\"Yes\",'TSA Input'!J2808=\"Contingent\"),'TSA Input'!B2808,\"Ineligible\"))","v":""},{"$f":"IF('TSA Input'!J2808=\"\",\"\",IF(OR('TSA Input'!J2808=\"Yes\",'TSA Input'!J2808=\"Contingent\"),'TSA Input'!I2808,\"\"))","v":""},{"$f":"IF('TSA Input'!J2808=\"\",\"\",IF(OR('TSA Input'!J2808=\"Yes\",'TSA Input'!J2808=\"Contingent\"),'TSA Input'!C2808,\"\"))","v":""},{"$f":"IF('TSA Input'!J2808=\"\",\"\",IF(OR('TSA Input'!J2808=\"Yes\",'TSA Input'!J2808=\"Contingent\"),'TSA Input'!D2808,\"\"))","v":""},{"$f":"IF('TSA Input'!J2808=\"\",\"\",IF(OR('TSA Input'!J2808=\"Yes\",'TSA Input'!J2808=\"Contingent\"),'TSA Input'!G2808,\"\"))","v":""},{"$f":"IF('TSA Input'!J2808=\"\",\"\",IF(OR('TSA Input'!J2808=\"Yes\",'TSA Input'!J2808=\"Contingent\"),'TSA Input'!F2808,\"\"))","v":""},"",{"$f":"IF('TSA Input'!J2808=\"\",\"\",IF(OR('TSA Input'!J2808=\"Yes\",'TSA Input'!J2808=\"Contingent\"),'TSA Input'!D2808,\"\"))","v":""},{"$f":"IF('TSA Input'!J2808=\"\",\"\",IF(OR('TSA Input'!J2808=\"Yes\",'TSA Input'!J2808=\"Contingent\"),'TSA Input'!G2808,\"\"))","v":""},{"$f":"IF('TSA Input'!J2808=\"\",\"\",IF(OR('TSA Input'!J2808=\"Yes\",'TSA Input'!J2808=\"Contingent\"),'TSA Input'!F2808,\"\"))","v":""},"","Required","Required"]
["",null,{"$f":"IF('TSA Input'!J2809=\"\",\"\",IF(OR('TSA Input'!J2809=\"Yes\",'TSA Input'!J2809=\"Contingent\"),'TSA Input'!B2809,\"Ineligible\"))","v":""},{"$f":"IF('TSA Input'!J2809=\"\",\"\",IF(OR('TSA Input'!J2809=\"Yes\",'TSA Input'!J2809=\"Contingent\"),'TSA Input'!I2809,\"\"))","v":""},{"$f":"IF('TSA Input'!J2809=\"\",\"\",IF(OR('TSA Input'!J2809=\"Yes\",'TSA Input'!J2809=\"Contingent\"),'TSA Input'!C2809,\"\"))","v":""},{"$f":"IF('TSA Input'!J2809=\"\",\"\",IF(OR('TSA Input'!J2809=\"Yes\",'TSA Input'!J2809=\"Contingent\"),'TSA Input'!D2809,\"\"))","v":""},{"$f":"IF('TSA Input'!J2809=\"\",\"\",IF(OR('TSA Input'!J2809=\"Yes\",'TSA Input'!J2809=\"Contingent\"),'TSA Input'!G2809,\"\"))","v":""},{"$f":"IF('TSA Input'!J2809=\"\",\"\",IF(OR('TSA Input'!J2809=\"Yes\",'TSA Input'!J2809=\"Contingent\"),'TSA Input'!F2809,\"\"))","v":""},"",{"$f":"IF('TSA Input'!J2809=\"\",\"\",IF(OR('TSA Input'!J2809=\"Yes\",'TSA Input'!J2809=\"Contingent\"),'TSA Input'!D2809,\"\"))","v":""},{"$f":"IF('TSA Input'!J2809=\"\",\"\",IF(OR('TSA Input'!J2809=\"Yes\",'TSA Input'!J2809=\"Contingent\"),'TSA Input'!G2809,\"\"))","v":""},{"$f":"IF('TSA Input'!J2809=\"\",\"\",IF(OR('TSA Input'!J2809=\"Yes\",'TSA Input'!J2809=\"Contingent\"),'TSA Input'!F2809,\"\"))","v":""},"","Required","Required"]
["",null,{"$f":"IF('TSA Input'!J2810=\"\",\"\",IF(OR('TSA Input'!J2810=\"Yes\",'TSA Input'!J2810=\"Contingent\"),'TSA Input'!B2810,\"Ineligible\"))","v":""},{"$f":"IF('TSA Input'!J2810=\"\",\"\",IF(OR('TSA Input'!J2810=\"Yes\",'TSA Input'!J2810=\"Contingent\"),'TSA Input'!I2810,\"\"))","v":""},{"$f":"IF('TSA Input'!J2810=\"\",\"\",IF(OR('TSA Input'!J2810=\"Yes\",'TSA Input'!J2810=\"Contingent\"),'TSA Input'!C2810,\"\"))","v":""},{"$f":"IF('TSA Input'!J2810=\"\",\"\",IF(OR('TSA Input'!J2810=\"Yes\",'TSA Input'!J2810=\"Contingent\"),'TSA Input'!D2810,\"\"))","v":""},{"$f":"IF('TSA Input'!J2810=\"\",\"\",IF(OR('TSA Input'!J2810=\"Yes\",'TSA Input'!J2810=\"Contingent\"),'TSA Input'!G2810,\"\"))","v":""},{"$f":"IF('TSA Input'!J2810=\"\",\"\",IF(OR('TSA Input'!J2810=\"Yes\",'TSA Input'!J2810=\"Contingent\"),'TSA Input'!F2810,\"\"))","v":""},"",{"$f":"IF('TSA Input'!J2810=\"\",\"\",IF(OR('TSA Input'!J2810=\"Yes\",'TSA Input'!J2810=\"Contingent\"),'TSA Input'!D2810,\"\"))","v":""},{"$f":"IF('TSA Input'!J2810=\"\",\"\",IF(OR('TSA Input'!J2810=\"Yes\",'TSA Input'!J2810=\"Contingent\"),'TSA Input'!G2810,\"\"))","v":""},{"$f":"IF('TSA Input'!J2810=\"\",\"\",IF(OR('TSA Input'!J2810=\"Yes\",'TSA Input'!J2810=\"Contingent\"),'TSA Input'!F2810,\"\"))","v":""},"","Required","Required"]
["",null,{"$f":"IF('TSA Input'!J2811=\"\",\"\",IF(OR('TSA Input'!J2811=\"Yes\",'TSA Input'!J2811=\"Contingent\"),'TSA Input'!B2811,\"Ineligible\"))","v":""},{"$f":"IF('TSA Input'!J2811=\"\",\"\",IF(OR('TSA Input'!J2811=\"Yes\",'TSA Input'!J2811=\"Contingent\"),'TSA Input'!I2811,\"\"))","v":""},{"$f":"IF('TSA Input'!J2811=\"\",\"\",IF(OR('TSA Input'!J2811=\"Yes\",'TSA Input'!J2811=\"Contingent\"),'TSA Input'!C2811,\"\"))","v":""},{"$f":"IF('TSA Input'!J2811=\"\",\"\",IF(OR('TSA Input'!J2811=\"Yes\",'TSA Input'!J2811=\"Contingent\"),'TSA Input'!D2811,\"\"))","v":""},{"$f":"IF('TSA Input'!J2811=\"\",\"\",IF(OR('TSA Input'!J2811=\"Yes\",'TSA Input'!J2811=\"Contingent\"),'TSA Input'!G2811,\"\"))","v":""},{"$f":"IF('TSA Input'!J2811=\"\",\"\",IF(OR('TSA Input'!J2811=\"Yes\",'TSA Input'!J2811=\"Contingent\"),'TSA Input'!F2811,\"\"))","v":""},"",{"$f":"IF('TSA Input'!J2811=\"\",\"\",IF(OR('TSA Input'!J2811=\"Yes\",'TSA Input'!J2811=\"Contingent\"),'TSA Input'!D2811,\"\"))","v":""},{"$f":"IF('TSA Input'!J2811=\"\",\"\",IF(OR('TSA Input'!J2811=\"Yes\",'TSA Input'!J2811=\"Contingent\"),'TSA Input'!G2811,\"\"))","v":""},{"$f":"IF('TSA Input'!J2811=\"\",\"\",IF(OR('TSA Input'!J2811=\"Yes\",'TSA Input'!J2811=\"Contingent\"),'TSA Input'!F2811,\"\"))","v":""},"","Required","Required"]
["",null,{"$f":"IF('TSA Input'!J2812=\"\",\"\",IF(OR('TSA Input'!J2812=\"Yes\",'TSA Input'!J2812=\"Contingent\"),'TSA Input'!B2812,\"Ineligible\"))","v":""},{"$f":"IF('TSA Input'!J2812=\"\",\"\",IF(OR('TSA Input'!J2812=\"Yes\",'TSA Input'!J2812=\"Contingent\"),'TSA Input'!I2812,\"\"))","v":""},{"$f":"IF('TSA Input'!J2812=\"\",\"\",IF(OR('TSA Input'!J2812=\"Yes\",'TSA Input'!J2812=\"Contingent\"),'TSA Input'!C2812,\"\"))","v":""},{"$f":"IF('TSA Input'!J2812=\"\",\"\",IF(OR('TSA Input'!J2812=\"Yes\",'TSA Input'!J2812=\"Contingent\"),'TSA Input'!D2812,\"\"))","v":""},{"$f":"IF('TSA Input'!J2812=\"\",\"\",IF(OR('TSA Input'!J2812=\"Yes\",'TSA Input'!J2812=\"Contingent\"),'TSA Input'!G2812,\"\"))","v":""},{"$f":"IF('TSA Input'!J2812=\"\",\"\",IF(OR('TSA Input'!J2812=\"Yes\",'TSA Input'!J2812=\"Contingent\"),'TSA Input'!F2812,\"\"))","v":""},"",{"$f":"IF('TSA Input'!J2812=\"\",\"\",IF(OR('TSA Input'!J2812=\"Yes\",'TSA Input'!J2812=\"Contingent\"),'TSA Input'!D2812,\"\"))","v":""},{"$f":"IF('TSA Input'!J2812=\"\",\"\",IF(OR('TSA Input'!J2812=\"Yes\",'TSA Input'!J2812=\"Contingent\"),'TSA Input'!G2812,\"\"))","v":""},{"$f":"IF('TSA Input'!J2812=\"\",\"\",IF(OR('TSA Input'!J2812=\"Yes\",'TSA Input'!J2812=\"Contingent\"),'TSA Input'!F2812,\"\"))","v":""},"","Required","Required"]
["",null,{"$f":"IF('TSA Input'!J2813=\"\",\"\",IF(OR('TSA Input'!J2813=\"Yes\",'TSA Input'!J2813=\"Contingent\"),'TSA Input'!B2813,\"Ineligible\"))","v":""},{"$f":"IF('TSA Input'!J2813=\"\",\"\",IF(OR('TSA Input'!J2813=\"Yes\",'TSA Input'!J2813=\"Contingent\"),'TSA Input'!I2813,\"\"))","v":""},{"$f":"IF('TSA Input'!J2813=\"\",\"\",IF(OR('TSA Input'!J2813=\"Yes\",'TSA Input'!J2813=\"Contingent\"),'TSA Input'!C2813,\"\"))","v":""},{"$f":"IF('TSA Input'!J2813=\"\",\"\",IF(OR('TSA Input'!J2813=\"Yes\",'TSA Input'!J2813=\"Contingent\"),'TSA Input'!D2813,\"\"))","v":""},{"$f":"IF('TSA Input'!J2813=\"\",\"\",IF(OR('TSA Input'!J2813=\"Yes\",'TSA Input'!J2813=\"Contingent\"),'TSA Input'!G2813,\"\"))","v":""},{"$f":"IF('TSA Input'!J2813=\"\",\"\",IF(OR('TSA Input'!J2813=\"Yes\",'TSA Input'!J2813=\"Contingent\"),'TSA Input'!F2813,\"\"))","v":""},"",{"$f":"IF('TSA Input'!J2813=\"\",\"\",IF(OR('TSA Input'!J2813=\"Yes\",'TSA Input'!J2813=\"Contingent\"),'TSA Input'!D2813,\"\"))","v":""},{"$f":"IF('TSA Input'!J2813=\"\",\"\",IF(OR('TSA Input'!J2813=\"Yes\",'TSA Input'!J2813=\"Contingent\"),'TSA Input'!G2813,\"\"))","v":""},{"$f":"IF('TSA Input'!J2813=\"\",\"\",IF(OR('TSA Input'!J2813=\"Yes\",'TSA Input'!J2813=\"Contingent\"),'TSA Input'!F2813,\"\"))","v":""},"","Required","Required"]
["",null,{"$f":"IF('TSA Input'!J2814=\"\",\"\",IF(OR('TSA Input'!J2814=\"Yes\",'TSA Input'!J2814=\"Contingent\"),'TSA Input'!B2814,\"Ineligible\"))","v":""},{"$f":"IF('TSA Input'!J2814=\"\",\"\",IF(OR('TSA Input'!J2814=\"Yes\",'TSA Input'!J2814=\"Contingent\"),'TSA Input'!I2814,\"\"))","v":""},{"$f":"IF('TSA Input'!J2814=\"\",\"\",IF(OR('TSA Input'!J2814=\"Yes\",'TSA Input'!J2814=\"Contingent\"),'TSA Input'!C2814,\"\"))","v":""},{"$f":"IF('TSA Input'!J2814=\"\",\"\",IF(OR('TSA Input'!J2814=\"Yes\",'TSA Input'!J2814=\"Contingent\"),'TSA Input'!D2814,\"\"))","v":""},{"$f":"IF('TSA Input'!J2814=\"\",\"\",IF(OR('TSA Input'!J2814=\"Yes\",'TSA Input'!J2814=\"Contingent\"),'TSA Input'!G2814,\"\"))","v":""},{"$f":"IF('TSA Input'!J2814=\"\",\"\",IF(OR('TSA Input'!J2814=\"Yes\",'TSA Input'!J2814=\"Contingent\"),'TSA Input'!F2814,\"\"))","v":""},"",{"$f":"IF('TSA Input'!J2814=\"\",\"\",IF(OR('TSA Input'!J2814=\"Yes\",'TSA Input'!J2814=\"Contingent\"),'TSA Input'!D2814,\"\"))","v":""},{"$f":"IF('TSA Input'!J2814=\"\",\"\",IF(OR('TSA Input'!J2814=\"Yes\",'TSA Input'!J2814=\"Contingent\"),'TSA Input'!G2814,\"\"))","v":""},{"$f":"IF('TSA Input'!J2814=\"\",\"\",IF(OR('TSA Input'!J2814=\"Yes\",'TSA Input'!J2814=\"Contingent\"),'TSA Input'!F2814,\"\"))","v":""},"","Required","Required"]
["",null,{"$f":"IF('TSA Input'!J2815=\"\",\"\",IF(OR('TSA Input'!J2815=\"Yes\",'TSA Input'!J2815=\"Contingent\"),'TSA Input'!B2815,\"Ineligible\"))","v":""},{"$f":"IF('TSA Input'!J2815=\"\",\"\",IF(OR('TSA Input'!J2815=\"Yes\",'TSA Input'!J2815=\"Contingent\"),'TSA Input'!I2815,\"\"))","v":""},{"$f":"IF('TSA Input'!J2815=\"\",\"\",IF(OR('TSA Input'!J2815=\"Yes\",'TSA Input'!J2815=\"Contingent\"),'TSA Input'!C2815,\"\"))","v":""},{"$f":"IF('TSA Input'!J2815=\"\",\"\",IF(OR('TSA Input'!J2815=\"Yes\",'TSA Input'!J2815=\"Contingent\"),'TSA Input'!D2815,\"\"))","v":""},{"$f":"IF('TSA Input'!J2815=\"\",\"\",IF(OR('TSA Input'!J2815=\"Yes\",'TSA Input'!J2815=\"Contingent\"),'TSA Input'!G2815,\"\"))","v":""},{"$f":"IF('TSA Input'!J2815=\"\",\"\",IF(OR('TSA Input'!J2815=\"Yes\",'TSA Input'!J2815=\"Contingent\"),'TSA Input'!F2815,\"\"))","v":""},"",{"$f":"IF('TSA Input'!J2815=\"\",\"\",IF(OR('TSA Input'!J2815=\"Yes\",'TSA Input'!J2815=\"Contingent\"),'TSA Input'!D2815,\"\"))","v":""},{"$f":"IF('TSA Input'!J2815=\"\",\"\",IF(OR('TSA Input'!J2815=\"Yes\",'TSA Input'!J2815=\"Contingent\"),'TSA Input'!G2815,\"\"))","v":""},{"$f":"IF('TSA Input'!J2815=\"\",\"\",IF(OR('TSA Input'!J2815=\"Yes\",'TSA Input'!J2815=\"Contingent\"),'TSA Input'!F2815,\"\"))","v":""},"","Required","Required"]
["",null,{"$f":"IF('TSA Input'!J2816=\"\",\"\",IF(OR('TSA Input'!J2816=\"Yes\",'TSA Input'!J2816=\"Contingent\"),'TSA Input'!B2816,\"Ineligible\"))","v":""},{"$f":"IF('TSA Input'!J2816=\"\",\"\",IF(OR('TSA Input'!J2816=\"Yes\",'TSA Input'!J2816=\"Contingent\"),'TSA Input'!I2816,\"\"))","v":""},{"$f":"IF('TSA Input'!J2816=\"\",\"\",IF(OR('TSA Input'!J2816=\"Yes\",'TSA Input'!J2816=\"Contingent\"),'TSA Input'!C2816,\"\"))","v":""},{"$f":"IF('TSA Input'!J2816=\"\",\"\",IF(OR('TSA Input'!J2816=\"Yes\",'TSA Input'!J2816=\"Contingent\"),'TSA Input'!D2816,\"\"))","v":""},{"$f":"IF('TSA Input'!J2816=\"\",\"\",IF(OR('TSA Input'!J2816=\"Yes\",'TSA Input'!J2816=\"Contingent\"),'TSA Input'!G2816,\"\"))","v":""},{"$f":"IF('TSA Input'!J2816=\"\",\"\",IF(OR('TSA Input'!J2816=\"Yes\",'TSA Input'!J2816=\"Contingent\"),'TSA Input'!F2816,\"\"))","v":""},"",{"$f":"IF('TSA Input'!J2816=\"\",\"\",IF(OR('TSA Input'!J2816=\"Yes\",'TSA Input'!J2816=\"Contingent\"),'TSA Input'!D2816,\"\"))","v":""},{"$f":"IF('TSA Input'!J2816=\"\",\"\",IF(OR('TSA Input'!J2816=\"Yes\",'TSA Input'!J2816=\"Contingent\"),'TSA Input'!G2816,\"\"))","v":""},{"$f":"IF('TSA Input'!J2816=\"\",\"\",IF(OR('TSA Input'!J2816=\"Yes\",'TSA Input'!J2816=\"Contingent\"),'TSA Input'!F2816,\"\"))","v":""},"","Required","Required"]
["",null,{"$f":"IF('TSA Input'!J2817=\"\",\"\",IF(OR('TSA Input'!J2817=\"Yes\",'TSA Input'!J2817=\"Contingent\"),'TSA Input'!B2817,\"Ineligible\"))","v":""},{"$f":"IF('TSA Input'!J2817=\"\",\"\",IF(OR('TSA Input'!J2817=\"Yes\",'TSA Input'!J2817=\"Contingent\"),'TSA Input'!I2817,\"\"))","v":""},{"$f":"IF('TSA Input'!J2817=\"\",\"\",IF(OR('TSA Input'!J2817=\"Yes\",'TSA Input'!J2817=\"Contingent\"),'TSA Input'!C2817,\"\"))","v":""},{"$f":"IF('TSA Input'!J2817=\"\",\"\",IF(OR('TSA Input'!J2817=\"Yes\",'TSA Input'!J2817=\"Contingent\"),'TSA Input'!D2817,\"\"))","v":""},{"$f":"IF('TSA Input'!J2817=\"\",\"\",IF(OR('TSA Input'!J2817=\"Yes\",'TSA Input'!J2817=\"Contingent\"),'TSA Input'!G2817,\"\"))","v":""},{"$f":"IF('TSA Input'!J2817=\"\",\"\",IF(OR('TSA Input'!J2817=\"Yes\",'TSA Input'!J2817=\"Contingent\"),'TSA Input'!F2817,\"\"))","v":""},"",{"$f":"IF('TSA Input'!J2817=\"\",\"\",IF(OR('TSA Input'!J2817=\"Yes\",'TSA Input'!J2817=\"Contingent\"),'TSA Input'!D2817,\"\"))","v":""},{"$f":"IF('TSA Input'!J2817=\"\",\"\",IF(OR('TSA Input'!J2817=\"Yes\",'TSA Input'!J2817=\"Contingent\"),'TSA Input'!G2817,\"\"))","v":""},{"$f":"IF('TSA Input'!J2817=\"\",\"\",IF(OR('TSA Input'!J2817=\"Yes\",'TSA Input'!J2817=\"Contingent\"),'TSA Input'!F2817,\"\"))","v":""},"","Required","Required"]
["",null,{"$f":"IF('TSA Input'!J2818=\"\",\"\",IF(OR('TSA Input'!J2818=\"Yes\",'TSA Input'!J2818=\"Contingent\"),'TSA Input'!B2818,\"Ineligible\"))","v":""},{"$f":"IF('TSA Input'!J2818=\"\",\"\",IF(OR('TSA Input'!J2818=\"Yes\",'TSA Input'!J2818=\"Contingent\"),'TSA Input'!I2818,\"\"))","v":""},{"$f":"IF('TSA Input'!J2818=\"\",\"\",IF(OR('TSA Input'!J2818=\"Yes\",'TSA Input'!J2818=\"Contingent\"),'TSA Input'!C2818,\"\"))","v":""},{"$f":"IF('TSA Input'!J2818=\"\",\"\",IF(OR('TSA Input'!J2818=\"Yes\",'TSA Input'!J2818=\"Contingent\"),'TSA Input'!D2818,\"\"))","v":""},{"$f":"IF('TSA Input'!J2818=\"\",\"\",IF(OR('TSA Input'!J2818=\"Yes\",'TSA Input'!J2818=\"Contingent\"),'TSA Input'!G2818,\"\"))","v":""},{"$f":"IF('TSA Input'!J2818=\"\",\"\",IF(OR('TSA Input'!J2818=\"Yes\",'TSA Input'!J2818=\"Contingent\"),'TSA Input'!F2818,\"\"))","v":""},"",{"$f":"IF('TSA Input'!J2818=\"\",\"\",IF(OR('TSA Input'!J2818=\"Yes\",'TSA Input'!J2818=\"Contingent\"),'TSA Input'!D2818,\"\"))","v":""},{"$f":"IF('TSA Input'!J2818=\"\",\"\",IF(OR('TSA Input'!J2818=\"Yes\",'TSA Input'!J2818=\"Contingent\"),'TSA Input'!G2818,\"\"))","v":""},{"$f":"IF('TSA Input'!J2818=\"\",\"\",IF(OR('TSA Input'!J2818=\"Yes\",'TSA Input'!J2818=\"Contingent\"),'TSA Input'!F2818,\"\"))","v":""},"","Required","Required"]
["",null,{"$f":"IF('TSA Input'!J2819=\"\",\"\",IF(OR('TSA Input'!J2819=\"Yes\",'TSA Input'!J2819=\"Contingent\"),'TSA Input'!B2819,\"Ineligible\"))","v":""},{"$f":"IF('TSA Input'!J2819=\"\",\"\",IF(OR('TSA Input'!J2819=\"Yes\",'TSA Input'!J2819=\"Contingent\"),'TSA Input'!I2819,\"\"))","v":""},{"$f":"IF('TSA Input'!J2819=\"\",\"\",IF(OR('TSA Input'!J2819=\"Yes\",'TSA Input'!J2819=\"Contingent\"),'TSA Input'!C2819,\"\"))","v":""},{"$f":"IF('TSA Input'!J2819=\"\",\"\",IF(OR('TSA Input'!J2819=\"Yes\",'TSA Input'!J2819=\"Contingent\"),'TSA Input'!D2819,\"\"))","v":""},{"$f":"IF('TSA Input'!J2819=\"\",\"\",IF(OR('TSA Input'!J2819=\"Yes\",'TSA Input'!J2819=\"Contingent\"),'TSA Input'!G2819,\"\"))","v":""},{"$f":"IF('TSA Input'!J2819=\"\",\"\",IF(OR('TSA Input'!J2819=\"Yes\",'TSA Input'!J2819=\"Contingent\"),'TSA Input'!F2819,\"\"))","v":""},"",{"$f":"IF('TSA Input'!J2819=\"\",\"\",IF(OR('TSA Input'!J2819=\"Yes\",'TSA Input'!J2819=\"Contingent\"),'TSA Input'!D2819,\"\"))","v":""},{"$f":"IF('TSA Input'!J2819=\"\",\"\",IF(OR('TSA Input'!J2819=\"Yes\",'TSA Input'!J2819=\"Contingent\"),'TSA Input'!G2819,\"\"))","v":""},{"$f":"IF('TSA Input'!J2819=\"\",\"\",IF(OR('TSA Input'!J2819=\"Yes\",'TSA Input'!J2819=\"Contingent\"),'TSA Input'!F2819,\"\"))","v":""},"","Required","Required"]
["",null,{"$f":"IF('TSA Input'!J2820=\"\",\"\",IF(OR('TSA Input'!J2820=\"Yes\",'TSA Input'!J2820=\"Contingent\"),'TSA Input'!B2820,\"Ineligible\"))","v":""},{"$f":"IF('TSA Input'!J2820=\"\",\"\",IF(OR('TSA Input'!J2820=\"Yes\",'TSA Input'!J2820=\"Contingent\"),'TSA Input'!I2820,\"\"))","v":""},{"$f":"IF('TSA Input'!J2820=\"\",\"\",IF(OR('TSA Input'!J2820=\"Yes\",'TSA Input'!J2820=\"Contingent\"),'TSA Input'!C2820,\"\"))","v":""},{"$f":"IF('TSA Input'!J2820=\"\",\"\",IF(OR('TSA Input'!J2820=\"Yes\",'TSA Input'!J2820=\"Contingent\"),'TSA Input'!D2820,\"\"))","v":""},{"$f":"IF('TSA Input'!J2820=\"\",\"\",IF(OR('TSA Input'!J2820=\"Yes\",'TSA Input'!J2820=\"Contingent\"),'TSA Input'!G2820,\"\"))","v":""},{"$f":"IF('TSA Input'!J2820=\"\",\"\",IF(OR('TSA Input'!J2820=\"Yes\",'TSA Input'!J2820=\"Contingent\"),'TSA Input'!F2820,\"\"))","v":""},{"$f":"IF($C2858=\"\",\"\",SUM(F2858:H2858))","v":""},{"$f":"IF('TSA Input'!J2820=\"\",\"\",IF(OR('TSA Input'!J2820=\"Yes\",'TSA Input'!J2820=\"Contingent\"),'TSA Input'!D2820,\"\"))","v":""},{"$f":"IF('TSA Input'!J2820=\"\",\"\",IF(OR('TSA Input'!J2820=\"Yes\",'TSA Input'!J2820=\"Contingent\"),'TSA Input'!G2820,\"\"))","v":""},{"$f":"IF('TSA Input'!J2820=\"\",\"\",IF(OR('TSA Input'!J2820=\"Yes\",'TSA Input'!J2820=\"Contingent\"),'TSA Input'!F2820,\"\"))","v":""},{"$f":"IF($C2858=\"\",\"\",SUM(J2858:L2858))","v":""},"Required","Required"]
["",null,{"$f":"IF('TSA Input'!J2821=\"\",\"\",IF(OR('TSA Input'!J2821=\"Yes\",'TSA Input'!J2821=\"Contingent\"),'TSA Input'!B2821,\"Ineligible\"))","v":""},{"$f":"IF('TSA Input'!J2821=\"\",\"\",IF(OR('TSA Input'!J2821=\"Yes\",'TSA Input'!J2821=\"Contingent\"),'TSA Input'!I2821,\"\"))","v":""},{"$f":"IF('TSA Input'!J2821=\"\",\"\",IF(OR('TSA Input'!J2821=\"Yes\",'TSA Input'!J2821=\"Contingent\"),'TSA Input'!C2821,\"\"))","v":""},{"$f":"IF('TSA Input'!J2821=\"\",\"\",IF(OR('TSA Input'!J2821=\"Yes\",'TSA Input'!J2821=\"Contingent\"),'TSA Input'!D2821,\"\"))","v":""},{"$f":"IF('TSA Input'!J2821=\"\",\"\",IF(OR('TSA Input'!J2821=\"Yes\",'TSA Input'!J2821=\"Contingent\"),'TSA Input'!G2821,\"\"))","v":""},{"$f":"IF('TSA Input'!J2821=\"\",\"\",IF(OR('TSA Input'!J2821=\"Yes\",'TSA Input'!J2821=\"Contingent\"),'TSA Input'!F2821,\"\"))","v":""},"",{"$f":"IF('TSA Input'!J2821=\"\",\"\",IF(OR('TSA Input'!J2821=\"Yes\",'TSA Input'!J2821=\"Contingent\"),'TSA Input'!D2821,\"\"))","v":""},{"$f":"IF('TSA Input'!J2821=\"\",\"\",IF(OR('TSA Input'!J2821=\"Yes\",'TSA Input'!J2821=\"Contingent\"),'TSA Input'!G2821,\"\"))","v":""},{"$f":"IF('TSA Input'!J2821=\"\",\"\",IF(OR('TSA Input'!J2821=\"Yes\",'TSA Input'!J2821=\"Contingent\"),'TSA Input'!F2821,\"\"))","v":""},"","Required","Required"]
["",null,{"$f":"IF('TSA Input'!J2822=\"\",\"\",IF(OR('TSA Input'!J2822=\"Yes\",'TSA Input'!J2822=\"Contingent\"),'TSA Input'!B2822,\"Ineligible\"))","v":""},{"$f":"IF('TSA Input'!J2822=\"\",\"\",IF(OR('TSA Input'!J2822=\"Yes\",'TSA Input'!J2822=\"Contingent\"),'TSA Input'!I2822,\"\"))","v":""},{"$f":"IF('TSA Input'!J2822=\"\",\"\",IF(OR('TSA Input'!J2822=\"Yes\",'TSA Input'!J2822=\"Contingent\"),'TSA Input'!C2822,\"\"))","v":""},{"$f":"IF('TSA Input'!J2822=\"\",\"\",IF(OR('TSA Input'!J2822=\"Yes\",'TSA Input'!J2822=\"Contingent\"),'TSA Input'!D2822,\"\"))","v":""},{"$f":"IF('TSA Input'!J2822=\"\",\"\",IF(OR('TSA Input'!J2822=\"Yes\",'TSA Input'!J2822=\"Contingent\"),'TSA Input'!G2822,\"\"))","v":""},{"$f":"IF('TSA Input'!J2822=\"\",\"\",IF(OR('TSA Input'!J2822=\"Yes\",'TSA Input'!J2822=\"Contingent\"),'TSA Input'!F2822,\"\"))","v":""},"",{"$f":"IF('TSA Input'!J2822=\"\",\"\",IF(OR('TSA Input'!J2822=\"Yes\",'TSA Input'!J2822=\"Contingent\"),'TSA Input'!D2822,\"\"))","v":""},{"$f":"IF('TSA Input'!J2822=\"\",\"\",IF(OR('TSA Input'!J2822=\"Yes\",'TSA Input'!J2822=\"Contingent\"),'TSA Input'!G2822,\"\"))","v":""},{"$f":"IF('TSA Input'!J2822=\"\",\"\",IF(OR('TSA Input'!J2822=\"Yes\",'TSA Input'!J2822=\"Contingent\"),'TSA Input'!F2822,\"\"))","v":""},"","Required","Required"]
["",null,{"$f":"IF('TSA Input'!J2823=\"\",\"\",IF(OR('TSA Input'!J2823=\"Yes\",'TSA Input'!J2823=\"Contingent\"),'TSA Input'!B2823,\"Ineligible\"))","v":""},{"$f":"IF('TSA Input'!J2823=\"\",\"\",IF(OR('TSA Input'!J2823=\"Yes\",'TSA Input'!J2823=\"Contingent\"),'TSA Input'!I2823,\"\"))","v":""},{"$f":"IF('TSA Input'!J2823=\"\",\"\",IF(OR('TSA Input'!J2823=\"Yes\",'TSA Input'!J2823=\"Contingent\"),'TSA Input'!C2823,\"\"))","v":""},{"$f":"IF('TSA Input'!J2823=\"\",\"\",IF(OR('TSA Input'!J2823=\"Yes\",'TSA Input'!J2823=\"Contingent\"),'TSA Input'!D2823,\"\"))","v":""},{"$f":"IF('TSA Input'!J2823=\"\",\"\",IF(OR('TSA Input'!J2823=\"Yes\",'TSA Input'!J2823=\"Contingent\"),'TSA Input'!G2823,\"\"))","v":""},{"$f":"IF('TSA Input'!J2823=\"\",\"\",IF(OR('TSA Input'!J2823=\"Yes\",'TSA Input'!J2823=\"Contingent\"),'TSA Input'!F2823,\"\"))","v":""},"",{"$f":"IF('TSA Input'!J2823=\"\",\"\",IF(OR('TSA Input'!J2823=\"Yes\",'TSA Input'!J2823=\"Contingent\"),'TSA Input'!D2823,\"\"))","v":""},{"$f":"IF('TSA Input'!J2823=\"\",\"\",IF(OR('TSA Input'!J2823=\"Yes\",'TSA Input'!J2823=\"Contingent\"),'TSA Input'!G2823,\"\"))","v":""},{"$f":"IF('TSA Input'!J2823=\"\",\"\",IF(OR('TSA Input'!J2823=\"Yes\",'TSA Input'!J2823=\"Contingent\"),'TSA Input'!F2823,\"\"))","v":""},"","Required","Required"]
["",null,{"$f":"IF('TSA Input'!J2824=\"\",\"\",IF(OR('TSA Input'!J2824=\"Yes\",'TSA Input'!J2824=\"Contingent\"),'TSA Input'!B2824,\"Ineligible\"))","v":""},{"$f":"IF('TSA Input'!J2824=\"\",\"\",IF(OR('TSA Input'!J2824=\"Yes\",'TSA Input'!J2824=\"Contingent\"),'TSA Input'!I2824,\"\"))","v":""},{"$f":"IF('TSA Input'!J2824=\"\",\"\",IF(OR('TSA Input'!J2824=\"Yes\",'TSA Input'!J2824=\"Contingent\"),'TSA Input'!C2824,\"\"))","v":""},{"$f":"IF('TSA Input'!J2824=\"\",\"\",IF(OR('TSA Input'!J2824=\"Yes\",'TSA Input'!J2824=\"Contingent\"),'TSA Input'!D2824,\"\"))","v":""},{"$f":"IF('TSA Input'!J2824=\"\",\"\",IF(OR('TSA Input'!J2824=\"Yes\",'TSA Input'!J2824=\"Contingent\"),'TSA Input'!G2824,\"\"))","v":""},{"$f":"IF('TSA Input'!J2824=\"\",\"\",IF(OR('TSA Input'!J2824=\"Yes\",'TSA Input'!J2824=\"Contingent\"),'TSA Input'!F2824,\"\"))","v":""},"",{"$f":"IF('TSA Input'!J2824=\"\",\"\",IF(OR('TSA Input'!J2824=\"Yes\",'TSA Input'!J2824=\"Contingent\"),'TSA Input'!D2824,\"\"))","v":""},{"$f":"IF('TSA Input'!J2824=\"\",\"\",IF(OR('TSA Input'!J2824=\"Yes\",'TSA Input'!J2824=\"Contingent\"),'TSA Input'!G2824,\"\"))","v":""},{"$f":"IF('TSA Input'!J2824=\"\",\"\",IF(OR('TSA Input'!J2824=\"Yes\",'TSA Input'!J2824=\"Contingent\"),'TSA Input'!F2824,\"\"))","v":""},"","Required","Required"]
["",null,{"$f":"IF('TSA Input'!J2825=\"\",\"\",IF(OR('TSA Input'!J2825=\"Yes\",'TSA Input'!J2825=\"Contingent\"),'TSA Input'!B2825,\"Ineligible\"))","v":""},{"$f":"IF('TSA Input'!J2825=\"\",\"\",IF(OR('TSA Input'!J2825=\"Yes\",'TSA Input'!J2825=\"Contingent\"),'TSA Input'!I2825,\"\"))","v":""},{"$f":"IF('TSA Input'!J2825=\"\",\"\",IF(OR('TSA Input'!J2825=\"Yes\",'TSA Input'!J2825=\"Contingent\"),'TSA Input'!C2825,\"\"))","v":""},{"$f":"IF('TSA Input'!J2825=\"\",\"\",IF(OR('TSA Input'!J2825=\"Yes\",'TSA Input'!J2825=\"Contingent\"),'TSA Input'!D2825,\"\"))","v":""},{"$f":"IF('TSA Input'!J2825=\"\",\"\",IF(OR('TSA Input'!J2825=\"Yes\",'TSA Input'!J2825=\"Contingent\"),'TSA Input'!G2825,\"\"))","v":""},{"$f":"IF('TSA Input'!J2825=\"\",\"\",IF(OR('TSA Input'!J2825=\"Yes\",'TSA Input'!J2825=\"Contingent\"),'TSA Input'!F2825,\"\"))","v":""},"",{"$f":"IF('TSA Input'!J2825=\"\",\"\",IF(OR('TSA Input'!J2825=\"Yes\",'TSA Input'!J2825=\"Contingent\"),'TSA Input'!D2825,\"\"))","v":""},{"$f":"IF('TSA Input'!J2825=\"\",\"\",IF(OR('TSA Input'!J2825=\"Yes\",'TSA Input'!J2825=\"Contingent\"),'TSA Input'!G2825,\"\"))","v":""},{"$f":"IF('TSA Input'!J2825=\"\",\"\",IF(OR('TSA Input'!J2825=\"Yes\",'TSA Input'!J2825=\"Contingent\"),'TSA Input'!F2825,\"\"))","v":""},"","Required","Required"]
["",null,{"$f":"IF('TSA Input'!J2826=\"\",\"\",IF(OR('TSA Input'!J2826=\"Yes\",'TSA Input'!J2826=\"Contingent\"),'TSA Input'!B2826,\"Ineligible\"))","v":""},{"$f":"IF('TSA Input'!J2826=\"\",\"\",IF(OR('TSA Input'!J2826=\"Yes\",'TSA Input'!J2826=\"Contingent\"),'TSA Input'!I2826,\"\"))","v":""},{"$f":"IF('TSA Input'!J2826=\"\",\"\",IF(OR('TSA Input'!J2826=\"Yes\",'TSA Input'!J2826=\"Contingent\"),'TSA Input'!C2826,\"\"))","v":""},{"$f":"IF('TSA Input'!J2826=\"\",\"\",IF(OR('TSA Input'!J2826=\"Yes\",'TSA Input'!J2826=\"Contingent\"),'TSA Input'!D2826,\"\"))","v":""},{"$f":"IF('TSA Input'!J2826=\"\",\"\",IF(OR('TSA Input'!J2826=\"Yes\",'TSA Input'!J2826=\"Contingent\"),'TSA Input'!G2826,\"\"))","v":""},{"$f":"IF('TSA Input'!J2826=\"\",\"\",IF(OR('TSA Input'!J2826=\"Yes\",'TSA Input'!J2826=\"Contingent\"),'TSA Input'!F2826,\"\"))","v":""},"",{"$f":"IF('TSA Input'!J2826=\"\",\"\",IF(OR('TSA Input'!J2826=\"Yes\",'TSA Input'!J2826=\"Contingent\"),'TSA Input'!D2826,\"\"))","v":""},{"$f":"IF('TSA Input'!J2826=\"\",\"\",IF(OR('TSA Input'!J2826=\"Yes\",'TSA Input'!J2826=\"Contingent\"),'TSA Input'!G2826,\"\"))","v":""},{"$f":"IF('TSA Input'!J2826=\"\",\"\",IF(OR('TSA Input'!J2826=\"Yes\",'TSA Input'!J2826=\"Contingent\"),'TSA Input'!F2826,\"\"))","v":""},"","Required","Required"]
["",null,{"$f":"IF('TSA Input'!J2827=\"\",\"\",IF(OR('TSA Input'!J2827=\"Yes\",'TSA Input'!J2827=\"Contingent\"),'TSA Input'!B2827,\"Ineligible\"))","v":""},{"$f":"IF('TSA Input'!J2827=\"\",\"\",IF(OR('TSA Input'!J2827=\"Yes\",'TSA Input'!J2827=\"Contingent\"),'TSA Input'!I2827,\"\"))","v":""},{"$f":"IF('TSA Input'!J2827=\"\",\"\",IF(OR('TSA Input'!J2827=\"Yes\",'TSA Input'!J2827=\"Contingent\"),'TSA Input'!C2827,\"\"))","v":""},{"$f":"IF('TSA Input'!J2827=\"\",\"\",IF(OR('TSA Input'!J2827=\"Yes\",'TSA Input'!J2827=\"Contingent\"),'TSA Input'!D2827,\"\"))","v":""},{"$f":"IF('TSA Input'!J2827=\"\",\"\",IF(OR('TSA Input'!J2827=\"Yes\",'TSA Input'!J2827=\"Contingent\"),'TSA Input'!G2827,\"\"))","v":""},{"$f":"IF('TSA Input'!J2827=\"\",\"\",IF(OR('TSA Input'!J2827=\"Yes\",'TSA Input'!J2827=\"Contingent\"),'TSA Input'!F2827,\"\"))","v":""},"",{"$f":"IF('TSA Input'!J2827=\"\",\"\",IF(OR('TSA Input'!J2827=\"Yes\",'TSA Input'!J2827=\"Contingent\"),'TSA Input'!D2827,\"\"))","v":""},{"$f":"IF('TSA Input'!J2827=\"\",\"\",IF(OR('TSA Input'!J2827=\"Yes\",'TSA Input'!J2827=\"Contingent\"),'TSA Input'!G2827,\"\"))","v":""},{"$f":"IF('TSA Input'!J2827=\"\",\"\",IF(OR('TSA Input'!J2827=\"Yes\",'TSA Input'!J2827=\"Contingent\"),'TSA Input'!F2827,\"\"))","v":""},"","Required","Required"]
["",null,{"$f":"IF('TSA Input'!J2828=\"\",\"\",IF(OR('TSA Input'!J2828=\"Yes\",'TSA Input'!J2828=\"Contingent\"),'TSA Input'!B2828,\"Ineligible\"))","v":""},{"$f":"IF('TSA Input'!J2828=\"\",\"\",IF(OR('TSA Input'!J2828=\"Yes\",'TSA Input'!J2828=\"Contingent\"),'TSA Input'!I2828,\"\"))","v":""},{"$f":"IF('TSA Input'!J2828=\"\",\"\",IF(OR('TSA Input'!J2828=\"Yes\",'TSA Input'!J2828=\"Contingent\"),'TSA Input'!C2828,\"\"))","v":""},{"$f":"IF('TSA Input'!J2828=\"\",\"\",IF(OR('TSA Input'!J2828=\"Yes\",'TSA Input'!J2828=\"Contingent\"),'TSA Input'!D2828,\"\"))","v":""},{"$f":"IF('TSA Input'!J2828=\"\",\"\",IF(OR('TSA Input'!J2828=\"Yes\",'TSA Input'!J2828=\"Contingent\"),'TSA Input'!G2828,\"\"))","v":""},{"$f":"IF('TSA Input'!J2828=\"\",\"\",IF(OR('TSA Input'!J2828=\"Yes\",'TSA Input'!J2828=\"Contingent\"),'TSA Input'!F2828,\"\"))","v":""},"",{"$f":"IF('TSA Input'!J2828=\"\",\"\",IF(OR('TSA Input'!J2828=\"Yes\",'TSA Input'!J2828=\"Contingent\"),'TSA Input'!D2828,\"\"))","v":""},{"$f":"IF('TSA Input'!J2828=\"\",\"\",IF(OR('TSA Input'!J2828=\"Yes\",'TSA Input'!J2828=\"Contingent\"),'TSA Input'!G2828,\"\"))","v":""},{"$f":"IF('TSA Input'!J2828=\"\",\"\",IF(OR('TSA Input'!J2828=\"Yes\",'TSA Input'!J2828=\"Contingent\"),'TSA Input'!F2828,\"\"))","v":""},"","Required","Required"]
["",null,{"$f":"IF('TSA Input'!J2829=\"\",\"\",IF(OR('TSA Input'!J2829=\"Yes\",'TSA Input'!J2829=\"Contingent\"),'TSA Input'!B2829,\"Ineligible\"))","v":""},{"$f":"IF('TSA Input'!J2829=\"\",\"\",IF(OR('TSA Input'!J2829=\"Yes\",'TSA Input'!J2829=\"Contingent\"),'TSA Input'!I2829,\"\"))","v":""},{"$f":"IF('TSA Input'!J2829=\"\",\"\",IF(OR('TSA Input'!J2829=\"Yes\",'TSA Input'!J2829=\"Contingent\"),'TSA Input'!C2829,\"\"))","v":""},{"$f":"IF('TSA Input'!J2829=\"\",\"\",IF(OR('TSA Input'!J2829=\"Yes\",'TSA Input'!J2829=\"Contingent\"),'TSA Input'!D2829,\"\"))","v":""},{"$f":"IF('TSA Input'!J2829=\"\",\"\",IF(OR('TSA Input'!J2829=\"Yes\",'TSA Input'!J2829=\"Contingent\"),'TSA Input'!G2829,\"\"))","v":""},{"$f":"IF('TSA Input'!J2829=\"\",\"\",IF(OR('TSA Input'!J2829=\"Yes\",'TSA Input'!J2829=\"Contingent\"),'TSA Input'!F2829,\"\"))","v":""},"",{"$f":"IF('TSA Input'!J2829=\"\",\"\",IF(OR('TSA Input'!J2829=\"Yes\",'TSA Input'!J2829=\"Contingent\"),'TSA Input'!D2829,\"\"))","v":""},{"$f":"IF('TSA Input'!J2829=\"\",\"\",IF(OR('TSA Input'!J2829=\"Yes\",'TSA Input'!J2829=\"Contingent\"),'TSA Input'!G2829,\"\"))","v":""},{"$f":"IF('TSA Input'!J2829=\"\",\"\",IF(OR('TSA Input'!J2829=\"Yes\",'TSA Input'!J2829=\"Contingent\"),'TSA Input'!F2829,\"\"))","v":""},"","Required","Required"]
["",null,{"$f":"IF('TSA Input'!J2830=\"\",\"\",IF(OR('TSA Input'!J2830=\"Yes\",'TSA Input'!J2830=\"Contingent\"),'TSA Input'!B2830,\"Ineligible\"))","v":""},{"$f":"IF('TSA Input'!J2830=\"\",\"\",IF(OR('TSA Input'!J2830=\"Yes\",'TSA Input'!J2830=\"Contingent\"),'TSA Input'!I2830,\"\"))","v":""},{"$f":"IF('TSA Input'!J2830=\"\",\"\",IF(OR('TSA Input'!J2830=\"Yes\",'TSA Input'!J2830=\"Contingent\"),'TSA Input'!C2830,\"\"))","v":""},{"$f":"IF('TSA Input'!J2830=\"\",\"\",IF(OR('TSA Input'!J2830=\"Yes\",'TSA Input'!J2830=\"Contingent\"),'TSA Input'!D2830,\"\"))","v":""},{"$f":"IF('TSA Input'!J2830=\"\",\"\",IF(OR('TSA Input'!J2830=\"Yes\",'TSA Input'!J2830=\"Contingent\"),'TSA Input'!G2830,\"\"))","v":""},{"$f":"IF('TSA Input'!J2830=\"\",\"\",IF(OR('TSA Input'!J2830=\"Yes\",'TSA Input'!J2830=\"Contingent\"),'TSA Input'!F2830,\"\"))","v":""},"",{"$f":"IF('TSA Input'!J2830=\"\",\"\",IF(OR('TSA Input'!J2830=\"Yes\",'TSA Input'!J2830=\"Contingent\"),'TSA Input'!D2830,\"\"))","v":""},{"$f":"IF('TSA Input'!J2830=\"\",\"\",IF(OR('TSA Input'!J2830=\"Yes\",'TSA Input'!J2830=\"Contingent\"),'TSA Input'!G2830,\"\"))","v":""},{"$f":"IF('TSA Input'!J2830=\"\",\"\",IF(OR('TSA Input'!J2830=\"Yes\",'TSA Input'!J2830=\"Contingent\"),'TSA Input'!F2830,\"\"))","v":""},"","Required","Required"]
["",null,{"$f":"IF('TSA Input'!J2831=\"\",\"\",IF(OR('TSA Input'!J2831=\"Yes\",'TSA Input'!J2831=\"Contingent\"),'TSA Input'!B2831,\"Ineligible\"))","v":""},{"$f":"IF('TSA Input'!J2831=\"\",\"\",IF(OR('TSA Input'!J2831=\"Yes\",'TSA Input'!J2831=\"Contingent\"),'TSA Input'!I2831,\"\"))","v":""},{"$f":"IF('TSA Input'!J2831=\"\",\"\",IF(OR('TSA Input'!J2831=\"Yes\",'TSA Input'!J2831=\"Contingent\"),'TSA Input'!C2831,\"\"))","v":""},{"$f":"IF('TSA Input'!J2831=\"\",\"\",IF(OR('TSA Input'!J2831=\"Yes\",'TSA Input'!J2831=\"Contingent\"),'TSA Input'!D2831,\"\"))","v":""},{"$f":"IF('TSA Input'!J2831=\"\",\"\",IF(OR('TSA Input'!J2831=\"Yes\",'TSA Input'!J2831=\"Contingent\"),'TSA Input'!G2831,\"\"))","v":""},{"$f":"IF('TSA Input'!J2831=\"\",\"\",IF(OR('TSA Input'!J2831=\"Yes\",'TSA Input'!J2831=\"Contingent\"),'TSA Input'!F2831,\"\"))","v":""},"",{"$f":"IF('TSA Input'!J2831=\"\",\"\",IF(OR('TSA Input'!J2831=\"Yes\",'TSA Input'!J2831=\"Contingent\"),'TSA Input'!D2831,\"\"))","v":""},{"$f":"IF('TSA Input'!J2831=\"\",\"\",IF(OR('TSA Input'!J2831=\"Yes\",'TSA Input'!J2831=\"Contingent\"),'TSA Input'!G2831,\"\"))","v":""},{"$f":"IF('TSA Input'!J2831=\"\",\"\",IF(OR('TSA Input'!J2831=\"Yes\",'TSA Input'!J2831=\"Contingent\"),'TSA Input'!F2831,\"\"))","v":""},"","Required","Required"]
["",null,{"$f":"IF('TSA Input'!J2832=\"\",\"\",IF(OR('TSA Input'!J2832=\"Yes\",'TSA Input'!J2832=\"Contingent\"),'TSA Input'!B2832,\"Ineligible\"))","v":""},{"$f":"IF('TSA Input'!J2832=\"\",\"\",IF(OR('TSA Input'!J2832=\"Yes\",'TSA Input'!J2832=\"Contingent\"),'TSA Input'!I2832,\"\"))","v":""},{"$f":"IF('TSA Input'!J2832=\"\",\"\",IF(OR('TSA Input'!J2832=\"Yes\",'TSA Input'!J2832=\"Contingent\"),'TSA Input'!C2832,\"\"))","v":""},{"$f":"IF('TSA Input'!J2832=\"\",\"\",IF(OR('TSA Input'!J2832=\"Yes\",'TSA Input'!J2832=\"Contingent\"),'TSA Input'!D2832,\"\"))","v":""},{"$f":"IF('TSA Input'!J2832=\"\",\"\",IF(OR('TSA Input'!J2832=\"Yes\",'TSA Input'!J2832=\"Contingent\"),'TSA Input'!G2832,\"\"))","v":""},{"$f":"IF('TSA Input'!J2832=\"\",\"\",IF(OR('TSA Input'!J2832=\"Yes\",'TSA Input'!J2832=\"Contingent\"),'TSA Input'!F2832,\"\"))","v":""},"",{"$f":"IF('TSA Input'!J2832=\"\",\"\",IF(OR('TSA Input'!J2832=\"Yes\",'TSA Input'!J2832=\"Contingent\"),'TSA Input'!D2832,\"\"))","v":""},{"$f":"IF('TSA Input'!J2832=\"\",\"\",IF(OR('TSA Input'!J2832=\"Yes\",'TSA Input'!J2832=\"Contingent\"),'TSA Input'!G2832,\"\"))","v":""},{"$f":"IF('TSA Input'!J2832=\"\",\"\",IF(OR('TSA Input'!J2832=\"Yes\",'TSA Input'!J2832=\"Contingent\"),'TSA Input'!F2832,\"\"))","v":""},"","Required","Required"]
["",null,{"$f":"IF('TSA Input'!J2833=\"\",\"\",IF(OR('TSA Input'!J2833=\"Yes\",'TSA Input'!J2833=\"Contingent\"),'TSA Input'!B2833,\"Ineligible\"))","v":""},{"$f":"IF('TSA Input'!J2833=\"\",\"\",IF(OR('TSA Input'!J2833=\"Yes\",'TSA Input'!J2833=\"Contingent\"),'TSA Input'!I2833,\"\"))","v":""},{"$f":"IF('TSA Input'!J2833=\"\",\"\",IF(OR('TSA Input'!J2833=\"Yes\",'TSA Input'!J2833=\"Contingent\"),'TSA Input'!C2833,\"\"))","v":""},{"$f":"IF('TSA Input'!J2833=\"\",\"\",IF(OR('TSA Input'!J2833=\"Yes\",'TSA Input'!J2833=\"Contingent\"),'TSA Input'!D2833,\"\"))","v":""},{"$f":"IF('TSA Input'!J2833=\"\",\"\",IF(OR('TSA Input'!J2833=\"Yes\",'TSA Input'!J2833=\"Contingent\"),'TSA Input'!G2833,\"\"))","v":""},{"$f":"IF('TSA Input'!J2833=\"\",\"\",IF(OR('TSA Input'!J2833=\"Yes\",'TSA Input'!J2833=\"Contingent\"),'TSA Input'!F2833,\"\"))","v":""},"",{"$f":"IF('TSA Input'!J2833=\"\",\"\",IF(OR('TSA Input'!J2833=\"Yes\",'TSA Input'!J2833=\"Contingent\"),'TSA Input'!D2833,\"\"))","v":""},{"$f":"IF('TSA Input'!J2833=\"\",\"\",IF(OR('TSA Input'!J2833=\"Yes\",'TSA Input'!J2833=\"Contingent\"),'TSA Input'!G2833,\"\"))","v":""},{"$f":"IF('TSA Input'!J2833=\"\",\"\",IF(OR('TSA Input'!J2833=\"Yes\",'TSA Input'!J2833=\"Contingent\"),'TSA Input'!F2833,\"\"))","v":""},"","Required","Required"]
["",null,{"$f":"IF('TSA Input'!J2834=\"\",\"\",IF(OR('TSA Input'!J2834=\"Yes\",'TSA Input'!J2834=\"Contingent\"),'TSA Input'!B2834,\"Ineligible\"))","v":""},{"$f":"IF('TSA Input'!J2834=\"\",\"\",IF(OR('TSA Input'!J2834=\"Yes\",'TSA Input'!J2834=\"Contingent\"),'TSA Input'!I2834,\"\"))","v":""},{"$f":"IF('TSA Input'!J2834=\"\",\"\",IF(OR('TSA Input'!J2834=\"Yes\",'TSA Input'!J2834=\"Contingent\"),'TSA Input'!C2834,\"\"))","v":""},{"$f":"IF('TSA Input'!J2834=\"\",\"\",IF(OR('TSA Input'!J2834=\"Yes\",'TSA Input'!J2834=\"Contingent\"),'TSA Input'!D2834,\"\"))","v":""},{"$f":"IF('TSA Input'!J2834=\"\",\"\",IF(OR('TSA Input'!J2834=\"Yes\",'TSA Input'!J2834=\"Contingent\"),'TSA Input'!G2834,\"\"))","v":""},{"$f":"IF('TSA Input'!J2834=\"\",\"\",IF(OR('TSA Input'!J2834=\"Yes\",'TSA Input'!J2834=\"Contingent\"),'TSA Input'!F2834,\"\"))","v":""},"",{"$f":"IF('TSA Input'!J2834=\"\",\"\",IF(OR('TSA Input'!J2834=\"Yes\",'TSA Input'!J2834=\"Contingent\"),'TSA Input'!D2834,\"\"))","v":""},{"$f":"IF('TSA Input'!J2834=\"\",\"\",IF(OR('TSA Input'!J2834=\"Yes\",'TSA Input'!J2834=\"Contingent\"),'TSA Input'!G2834,\"\"))","v":""},{"$f":"IF('TSA Input'!J2834=\"\",\"\",IF(OR('TSA Input'!J2834=\"Yes\",'TSA Input'!J2834=\"Contingent\"),'TSA Input'!F2834,\"\"))","v":""},"","Required","Required"]
["",null,{"$f":"IF('TSA Input'!J2835=\"\",\"\",IF(OR('TSA Input'!J2835=\"Yes\",'TSA Input'!J2835=\"Contingent\"),'TSA Input'!B2835,\"Ineligible\"))","v":""},{"$f":"IF('TSA Input'!J2835=\"\",\"\",IF(OR('TSA Input'!J2835=\"Yes\",'TSA Input'!J2835=\"Contingent\"),'TSA Input'!I2835,\"\"))","v":""},{"$f":"IF('TSA Input'!J2835=\"\",\"\",IF(OR('TSA Input'!J2835=\"Yes\",'TSA Input'!J2835=\"Contingent\"),'TSA Input'!C2835,\"\"))","v":""},{"$f":"IF('TSA Input'!J2835=\"\",\"\",IF(OR('TSA Input'!J2835=\"Yes\",'TSA Input'!J2835=\"Contingent\"),'TSA Input'!D2835,\"\"))","v":""},{"$f":"IF('TSA Input'!J2835=\"\",\"\",IF(OR('TSA Input'!J2835=\"Yes\",'TSA Input'!J2835=\"Contingent\"),'TSA Input'!G2835,\"\"))","v":""},{"$f":"IF('TSA Input'!J2835=\"\",\"\",IF(OR('TSA Input'!J2835=\"Yes\",'TSA Input'!J2835=\"Contingent\"),'TSA Input'!F2835,\"\"))","v":""},"",{"$f":"IF('TSA Input'!J2835=\"\",\"\",IF(OR('TSA Input'!J2835=\"Yes\",'TSA Input'!J2835=\"Contingent\"),'TSA Input'!D2835,\"\"))","v":""},{"$f":"IF('TSA Input'!J2835=\"\",\"\",IF(OR('TSA Input'!J2835=\"Yes\",'TSA Input'!J2835=\"Contingent\"),'TSA Input'!G2835,\"\"))","v":""},{"$f":"IF('TSA Input'!J2835=\"\",\"\",IF(OR('TSA Input'!J2835=\"Yes\",'TSA Input'!J2835=\"Contingent\"),'TSA Input'!F2835,\"\"))","v":""},"","Required","Required"]
["",null,{"$f":"IF('TSA Input'!J2836=\"\",\"\",IF(OR('TSA Input'!J2836=\"Yes\",'TSA Input'!J2836=\"Contingent\"),'TSA Input'!B2836,\"Ineligible\"))","v":""},{"$f":"IF('TSA Input'!J2836=\"\",\"\",IF(OR('TSA Input'!J2836=\"Yes\",'TSA Input'!J2836=\"Contingent\"),'TSA Input'!I2836,\"\"))","v":""},{"$f":"IF('TSA Input'!J2836=\"\",\"\",IF(OR('TSA Input'!J2836=\"Yes\",'TSA Input'!J2836=\"Contingent\"),'TSA Input'!C2836,\"\"))","v":""},{"$f":"IF('TSA Input'!J2836=\"\",\"\",IF(OR('TSA Input'!J2836=\"Yes\",'TSA Input'!J2836=\"Contingent\"),'TSA Input'!D2836,\"\"))","v":""},{"$f":"IF('TSA Input'!J2836=\"\",\"\",IF(OR('TSA Input'!J2836=\"Yes\",'TSA Input'!J2836=\"Contingent\"),'TSA Input'!G2836,\"\"))","v":""},{"$f":"IF('TSA Input'!J2836=\"\",\"\",IF(OR('TSA Input'!J2836=\"Yes\",'TSA Input'!J2836=\"Contingent\"),'TSA Input'!F2836,\"\"))","v":""},"",{"$f":"IF('TSA Input'!J2836=\"\",\"\",IF(OR('TSA Input'!J2836=\"Yes\",'TSA Input'!J2836=\"Contingent\"),'TSA Input'!D2836,\"\"))","v":""},{"$f":"IF('TSA Input'!J2836=\"\",\"\",IF(OR('TSA Input'!J2836=\"Yes\",'TSA Input'!J2836=\"Contingent\"),'TSA Input'!G2836,\"\"))","v":""},{"$f":"IF('TSA Input'!J2836=\"\",\"\",IF(OR('TSA Input'!J2836=\"Yes\",'TSA Input'!J2836=\"Contingent\"),'TSA Input'!F2836,\"\"))","v":""},"","Required","Required"]
["",null,{"$f":"IF('TSA Input'!J2837=\"\",\"\",IF(OR('TSA Input'!J2837=\"Yes\",'TSA Input'!J2837=\"Contingent\"),'TSA Input'!B2837,\"Ineligible\"))","v":""},{"$f":"IF('TSA Input'!J2837=\"\",\"\",IF(OR('TSA Input'!J2837=\"Yes\",'TSA Input'!J2837=\"Contingent\"),'TSA Input'!I2837,\"\"))","v":""},{"$f":"IF('TSA Input'!J2837=\"\",\"\",IF(OR('TSA Input'!J2837=\"Yes\",'TSA Input'!J2837=\"Contingent\"),'TSA Input'!C2837,\"\"))","v":""},{"$f":"IF('TSA Input'!J2837=\"\",\"\",IF(OR('TSA Input'!J2837=\"Yes\",'TSA Input'!J2837=\"Contingent\"),'TSA Input'!D2837,\"\"))","v":""},{"$f":"IF('TSA Input'!J2837=\"\",\"\",IF(OR('TSA Input'!J2837=\"Yes\",'TSA Input'!J2837=\"Contingent\"),'TSA Input'!G2837,\"\"))","v":""},{"$f":"IF('TSA Input'!J2837=\"\",\"\",IF(OR('TSA Input'!J2837=\"Yes\",'TSA Input'!J2837=\"Contingent\"),'TSA Input'!F2837,\"\"))","v":""},"",{"$f":"IF('TSA Input'!J2837=\"\",\"\",IF(OR('TSA Input'!J2837=\"Yes\",'TSA Input'!J2837=\"Contingent\"),'TSA Input'!D2837,\"\"))","v":""},{"$f":"IF('TSA Input'!J2837=\"\",\"\",IF(OR('TSA Input'!J2837=\"Yes\",'TSA Input'!J2837=\"Contingent\"),'TSA Input'!G2837,\"\"))","v":""},{"$f":"IF('TSA Input'!J2837=\"\",\"\",IF(OR('TSA Input'!J2837=\"Yes\",'TSA Input'!J2837=\"Contingent\"),'TSA Input'!F2837,\"\"))","v":""},"","Required","Required"]
["",null,{"$f":"IF('TSA Input'!J2838=\"\",\"\",IF(OR('TSA Input'!J2838=\"Yes\",'TSA Input'!J2838=\"Contingent\"),'TSA Input'!B2838,\"Ineligible\"))","v":""},{"$f":"IF('TSA Input'!J2838=\"\",\"\",IF(OR('TSA Input'!J2838=\"Yes\",'TSA Input'!J2838=\"Contingent\"),'TSA Input'!I2838,\"\"))","v":""},{"$f":"IF('TSA Input'!J2838=\"\",\"\",IF(OR('TSA Input'!J2838=\"Yes\",'TSA Input'!J2838=\"Contingent\"),'TSA Input'!C2838,\"\"))","v":""},{"$f":"IF('TSA Input'!J2838=\"\",\"\",IF(OR('TSA Input'!J2838=\"Yes\",'TSA Input'!J2838=\"Contingent\"),'TSA Input'!D2838,\"\"))","v":""},{"$f":"IF('TSA Input'!J2838=\"\",\"\",IF(OR('TSA Input'!J2838=\"Yes\",'TSA Input'!J2838=\"Contingent\"),'TSA Input'!G2838,\"\"))","v":""},{"$f":"IF('TSA Input'!J2838=\"\",\"\",IF(OR('TSA Input'!J2838=\"Yes\",'TSA Input'!J2838=\"Contingent\"),'TSA Input'!F2838,\"\"))","v":""},"",{"$f":"IF('TSA Input'!J2838=\"\",\"\",IF(OR('TSA Input'!J2838=\"Yes\",'TSA Input'!J2838=\"Contingent\"),'TSA Input'!D2838,\"\"))","v":""},{"$f":"IF('TSA Input'!J2838=\"\",\"\",IF(OR('TSA Input'!J2838=\"Yes\",'TSA Input'!J2838=\"Contingent\"),'TSA Input'!G2838,\"\"))","v":""},{"$f":"IF('TSA Input'!J2838=\"\",\"\",IF(OR('TSA Input'!J2838=\"Yes\",'TSA Input'!J2838=\"Contingent\"),'TSA Input'!F2838,\"\"))","v":""},"","Required","Required"]
["",null,{"$f":"IF('TSA Input'!J2839=\"\",\"\",IF(OR('TSA Input'!J2839=\"Yes\",'TSA Input'!J2839=\"Contingent\"),'TSA Input'!B2839,\"Ineligible\"))","v":""},{"$f":"IF('TSA Input'!J2839=\"\",\"\",IF(OR('TSA Input'!J2839=\"Yes\",'TSA Input'!J2839=\"Contingent\"),'TSA Input'!I2839,\"\"))","v":""},{"$f":"IF('TSA Input'!J2839=\"\",\"\",IF(OR('TSA Input'!J2839=\"Yes\",'TSA Input'!J2839=\"Contingent\"),'TSA Input'!C2839,\"\"))","v":""},{"$f":"IF('TSA Input'!J2839=\"\",\"\",IF(OR('TSA Input'!J2839=\"Yes\",'TSA Input'!J2839=\"Contingent\"),'TSA Input'!D2839,\"\"))","v":""},{"$f":"IF('TSA Input'!J2839=\"\",\"\",IF(OR('TSA Input'!J2839=\"Yes\",'TSA Input'!J2839=\"Contingent\"),'TSA Input'!G2839,\"\"))","v":""},{"$f":"IF('TSA Input'!J2839=\"\",\"\",IF(OR('TSA Input'!J2839=\"Yes\",'TSA Input'!J2839=\"Contingent\"),'TSA Input'!F2839,\"\"))","v":""},"",{"$f":"IF('TSA Input'!J2839=\"\",\"\",IF(OR('TSA Input'!J2839=\"Yes\",'TSA Input'!J2839=\"Contingent\"),'TSA Input'!D2839,\"\"))","v":""},{"$f":"IF('TSA Input'!J2839=\"\",\"\",IF(OR('TSA Input'!J2839=\"Yes\",'TSA Input'!J2839=\"Contingent\"),'TSA Input'!G2839,\"\"))","v":""},{"$f":"IF('TSA Input'!J2839=\"\",\"\",IF(OR('TSA Input'!J2839=\"Yes\",'TSA Input'!J2839=\"Contingent\"),'TSA Input'!F2839,\"\"))","v":""},"","Required","Required"]
["",null,{"$f":"IF('TSA Input'!J2840=\"\",\"\",IF(OR('TSA Input'!J2840=\"Yes\",'TSA Input'!J2840=\"Contingent\"),'TSA Input'!B2840,\"Ineligible\"))","v":""},{"$f":"IF('TSA Input'!J2840=\"\",\"\",IF(OR('TSA Input'!J2840=\"Yes\",'TSA Input'!J2840=\"Contingent\"),'TSA Input'!I2840,\"\"))","v":""},{"$f":"IF('TSA Input'!J2840=\"\",\"\",IF(OR('TSA Input'!J2840=\"Yes\",'TSA Input'!J2840=\"Contingent\"),'TSA Input'!C2840,\"\"))","v":""},{"$f":"IF('TSA Input'!J2840=\"\",\"\",IF(OR('TSA Input'!J2840=\"Yes\",'TSA Input'!J2840=\"Contingent\"),'TSA Input'!D2840,\"\"))","v":""},{"$f":"IF('TSA Input'!J2840=\"\",\"\",IF(OR('TSA Input'!J2840=\"Yes\",'TSA Input'!J2840=\"Contingent\"),'TSA Input'!G2840,\"\"))","v":""},{"$f":"IF('TSA Input'!J2840=\"\",\"\",IF(OR('TSA Input'!J2840=\"Yes\",'TSA Input'!J2840=\"Contingent\"),'TSA Input'!F2840,\"\"))","v":""},"",{"$f":"IF('TSA Input'!J2840=\"\",\"\",IF(OR('TSA Input'!J2840=\"Yes\",'TSA Input'!J2840=\"Contingent\"),'TSA Input'!D2840,\"\"))","v":""},{"$f":"IF('TSA Input'!J2840=\"\",\"\",IF(OR('TSA Input'!J2840=\"Yes\",'TSA Input'!J2840=\"Contingent\"),'TSA Input'!G2840,\"\"))","v":""},{"$f":"IF('TSA Input'!J2840=\"\",\"\",IF(OR('TSA Input'!J2840=\"Yes\",'TSA Input'!J2840=\"Contingent\"),'TSA Input'!F2840,\"\"))","v":""},"","Required","Required"]
["",null,{"$f":"IF('TSA Input'!J2841=\"\",\"\",IF(OR('TSA Input'!J2841=\"Yes\",'TSA Input'!J2841=\"Contingent\"),'TSA Input'!B2841,\"Ineligible\"))","v":""},{"$f":"IF('TSA Input'!J2841=\"\",\"\",IF(OR('TSA Input'!J2841=\"Yes\",'TSA Input'!J2841=\"Contingent\"),'TSA Input'!I2841,\"\"))","v":""},{"$f":"IF('TSA Input'!J2841=\"\",\"\",IF(OR('TSA Input'!J2841=\"Yes\",'TSA Input'!J2841=\"Contingent\"),'TSA Input'!C2841,\"\"))","v":""},{"$f":"IF('TSA Input'!J2841=\"\",\"\",IF(OR('TSA Input'!J2841=\"Yes\",'TSA Input'!J2841=\"Contingent\"),'TSA Input'!D2841,\"\"))","v":""},{"$f":"IF('TSA Input'!J2841=\"\",\"\",IF(OR('TSA Input'!J2841=\"Yes\",'TSA Input'!J2841=\"Contingent\"),'TSA Input'!G2841,\"\"))","v":""},{"$f":"IF('TSA Input'!J2841=\"\",\"\",IF(OR('TSA Input'!J2841=\"Yes\",'TSA Input'!J2841=\"Contingent\"),'TSA Input'!F2841,\"\"))","v":""},"",{"$f":"IF('TSA Input'!J2841=\"\",\"\",IF(OR('TSA Input'!J2841=\"Yes\",'TSA Input'!J2841=\"Contingent\"),'TSA Input'!D2841,\"\"))","v":""},{"$f":"IF('TSA Input'!J2841=\"\",\"\",IF(OR('TSA Input'!J2841=\"Yes\",'TSA Input'!J2841=\"Contingent\"),'TSA Input'!G2841,\"\"))","v":""},{"$f":"IF('TSA Input'!J2841=\"\",\"\",IF(OR('TSA Input'!J2841=\"Yes\",'TSA Input'!J2841=\"Contingent\"),'TSA Input'!F2841,\"\"))","v":""},"","Required","Required"]
["",null,{"$f":"IF('TSA Input'!J2842=\"\",\"\",IF(OR('TSA Input'!J2842=\"Yes\",'TSA Input'!J2842=\"Contingent\"),'TSA Input'!B2842,\"Ineligible\"))","v":""},{"$f":"IF('TSA Input'!J2842=\"\",\"\",IF(OR('TSA Input'!J2842=\"Yes\",'TSA Input'!J2842=\"Contingent\"),'TSA Input'!I2842,\"\"))","v":""},{"$f":"IF('TSA Input'!J2842=\"\",\"\",IF(OR('TSA Input'!J2842=\"Yes\",'TSA Input'!J2842=\"Contingent\"),'TSA Input'!C2842,\"\"))","v":""},{"$f":"IF('TSA Input'!J2842=\"\",\"\",IF(OR('TSA Input'!J2842=\"Yes\",'TSA Input'!J2842=\"Contingent\"),'TSA Input'!D2842,\"\"))","v":""},{"$f":"IF('TSA Input'!J2842=\"\",\"\",IF(OR('TSA Input'!J2842=\"Yes\",'TSA Input'!J2842=\"Contingent\"),'TSA Input'!G2842,\"\"))","v":""},{"$f":"IF('TSA Input'!J2842=\"\",\"\",IF(OR('TSA Input'!J2842=\"Yes\",'TSA Input'!J2842=\"Contingent\"),'TSA Input'!F2842,\"\"))","v":""},"",{"$f":"IF('TSA Input'!J2842=\"\",\"\",IF(OR('TSA Input'!J2842=\"Yes\",'TSA Input'!J2842=\"Contingent\"),'TSA Input'!D2842,\"\"))","v":""},{"$f":"IF('TSA Input'!J2842=\"\",\"\",IF(OR('TSA Input'!J2842=\"Yes\",'TSA Input'!J2842=\"Contingent\"),'TSA Input'!G2842,\"\"))","v":""},{"$f":"IF('TSA Input'!J2842=\"\",\"\",IF(OR('TSA Input'!J2842=\"Yes\",'TSA Input'!J2842=\"Contingent\"),'TSA Input'!F2842,\"\"))","v":""},"","Required","Required"]
["",null,{"$f":"IF('TSA Input'!J2843=\"\",\"\",IF(OR('TSA Input'!J2843=\"Yes\",'TSA Input'!J2843=\"Contingent\"),'TSA Input'!B2843,\"Ineligible\"))","v":""},{"$f":"IF('TSA Input'!J2843=\"\",\"\",IF(OR('TSA Input'!J2843=\"Yes\",'TSA Input'!J2843=\"Contingent\"),'TSA Input'!I2843,\"\"))","v":""},{"$f":"IF('TSA Input'!J2843=\"\",\"\",IF(OR('TSA Input'!J2843=\"Yes\",'TSA Input'!J2843=\"Contingent\"),'TSA Input'!C2843,\"\"))","v":""},{"$f":"IF('TSA Input'!J2843=\"\",\"\",IF(OR('TSA Input'!J2843=\"Yes\",'TSA Input'!J2843=\"Contingent\"),'TSA Input'!D2843,\"\"))","v":""},{"$f":"IF('TSA Input'!J2843=\"\",\"\",IF(OR('TSA Input'!J2843=\"Yes\",'TSA Input'!J2843=\"Contingent\"),'TSA Input'!G2843,\"\"))","v":""},{"$f":"IF('TSA Input'!J2843=\"\",\"\",IF(OR('TSA Input'!J2843=\"Yes\",'TSA Input'!J2843=\"Contingent\"),'TSA Input'!F2843,\"\"))","v":""},"",{"$f":"IF('TSA Input'!J2843=\"\",\"\",IF(OR('TSA Input'!J2843=\"Yes\",'TSA Input'!J2843=\"Contingent\"),'TSA Input'!D2843,\"\"))","v":""},{"$f":"IF('TSA Input'!J2843=\"\",\"\",IF(OR('TSA Input'!J2843=\"Yes\",'TSA Input'!J2843=\"Contingent\"),'TSA Input'!G2843,\"\"))","v":""},{"$f":"IF('TSA Input'!J2843=\"\",\"\",IF(OR('TSA Input'!J2843=\"Yes\",'TSA Input'!J2843=\"Contingent\"),'TSA Input'!F2843,\"\"))","v":""},"","Required","Required"]
["",null,{"$f":"IF('TSA Input'!J2844=\"\",\"\",IF(OR('TSA Input'!J2844=\"Yes\",'TSA Input'!J2844=\"Contingent\"),'TSA Input'!B2844,\"Ineligible\"))","v":""},{"$f":"IF('TSA Input'!J2844=\"\",\"\",IF(OR('TSA Input'!J2844=\"Yes\",'TSA Input'!J2844=\"Contingent\"),'TSA Input'!I2844,\"\"))","v":""},{"$f":"IF('TSA Input'!J2844=\"\",\"\",IF(OR('TSA Input'!J2844=\"Yes\",'TSA Input'!J2844=\"Contingent\"),'TSA Input'!C2844,\"\"))","v":""},{"$f":"IF('TSA Input'!J2844=\"\",\"\",IF(OR('TSA Input'!J2844=\"Yes\",'TSA Input'!J2844=\"Contingent\"),'TSA Input'!D2844,\"\"))","v":""},{"$f":"IF('TSA Input'!J2844=\"\",\"\",IF(OR('TSA Input'!J2844=\"Yes\",'TSA Input'!J2844=\"Contingent\"),'TSA Input'!G2844,\"\"))","v":""},{"$f":"IF('TSA Input'!J2844=\"\",\"\",IF(OR('TSA Input'!J2844=\"Yes\",'TSA Input'!J2844=\"Contingent\"),'TSA Input'!F2844,\"\"))","v":""},"",{"$f":"IF('TSA Input'!J2844=\"\",\"\",IF(OR('TSA Input'!J2844=\"Yes\",'TSA Input'!J2844=\"Contingent\"),'TSA Input'!D2844,\"\"))","v":""},{"$f":"IF('TSA Input'!J2844=\"\",\"\",IF(OR('TSA Input'!J2844=\"Yes\",'TSA Input'!J2844=\"Contingent\"),'TSA Input'!G2844,\"\"))","v":""},{"$f":"IF('TSA Input'!J2844=\"\",\"\",IF(OR('TSA Input'!J2844=\"Yes\",'TSA Input'!J2844=\"Contingent\"),'TSA Input'!F2844,\"\"))","v":""},"","Required","Required"]
["",null,{"$f":"IF('TSA Input'!J2845=\"\",\"\",IF(OR('TSA Input'!J2845=\"Yes\",'TSA Input'!J2845=\"Contingent\"),'TSA Input'!B2845,\"Ineligible\"))","v":""},{"$f":"IF('TSA Input'!J2845=\"\",\"\",IF(OR('TSA Input'!J2845=\"Yes\",'TSA Input'!J2845=\"Contingent\"),'TSA Input'!I2845,\"\"))","v":""},{"$f":"IF('TSA Input'!J2845=\"\",\"\",IF(OR('TSA Input'!J2845=\"Yes\",'TSA Input'!J2845=\"Contingent\"),'TSA Input'!C2845,\"\"))","v":""},{"$f":"IF('TSA Input'!J2845=\"\",\"\",IF(OR('TSA Input'!J2845=\"Yes\",'TSA Input'!J2845=\"Contingent\"),'TSA Input'!D2845,\"\"))","v":""},{"$f":"IF('TSA Input'!J2845=\"\",\"\",IF(OR('TSA Input'!J2845=\"Yes\",'TSA Input'!J2845=\"Contingent\"),'TSA Input'!G2845,\"\"))","v":""},{"$f":"IF('TSA Input'!J2845=\"\",\"\",IF(OR('TSA Input'!J2845=\"Yes\",'TSA Input'!J2845=\"Contingent\"),'TSA Input'!F2845,\"\"))","v":""},"",{"$f":"IF('TSA Input'!J2845=\"\",\"\",IF(OR('TSA Input'!J2845=\"Yes\",'TSA Input'!J2845=\"Contingent\"),'TSA Input'!D2845,\"\"))","v":""},{"$f":"IF('TSA Input'!J2845=\"\",\"\",IF(OR('TSA Input'!J2845=\"Yes\",'TSA Input'!J2845=\"Contingent\"),'TSA Input'!G2845,\"\"))","v":""},{"$f":"IF('TSA Input'!J2845=\"\",\"\",IF(OR('TSA Input'!J2845=\"Yes\",'TSA Input'!J2845=\"Contingent\"),'TSA Input'!F2845,\"\"))","v":""},"","Required","Required"]
["",null,{"$f":"IF('TSA Input'!J2846=\"\",\"\",IF(OR('TSA Input'!J2846=\"Yes\",'TSA Input'!J2846=\"Contingent\"),'TSA Input'!B2846,\"Ineligible\"))","v":""},{"$f":"IF('TSA Input'!J2846=\"\",\"\",IF(OR('TSA Input'!J2846=\"Yes\",'TSA Input'!J2846=\"Contingent\"),'TSA Input'!I2846,\"\"))","v":""},{"$f":"IF('TSA Input'!J2846=\"\",\"\",IF(OR('TSA Input'!J2846=\"Yes\",'TSA Input'!J2846=\"Contingent\"),'TSA Input'!C2846,\"\"))","v":""},{"$f":"IF('TSA Input'!J2846=\"\",\"\",IF(OR('TSA Input'!J2846=\"Yes\",'TSA Input'!J2846=\"Contingent\"),'TSA Input'!D2846,\"\"))","v":""},{"$f":"IF('TSA Input'!J2846=\"\",\"\",IF(OR('TSA Input'!J2846=\"Yes\",'TSA Input'!J2846=\"Contingent\"),'TSA Input'!G2846,\"\"))","v":""},{"$f":"IF('TSA Input'!J2846=\"\",\"\",IF(OR('TSA Input'!J2846=\"Yes\",'TSA Input'!J2846=\"Contingent\"),'TSA Input'!F2846,\"\"))","v":""},"",{"$f":"IF('TSA Input'!J2846=\"\",\"\",IF(OR('TSA Input'!J2846=\"Yes\",'TSA Input'!J2846=\"Contingent\"),'TSA Input'!D2846,\"\"))","v":""},{"$f":"IF('TSA Input'!J2846=\"\",\"\",IF(OR('TSA Input'!J2846=\"Yes\",'TSA Input'!J2846=\"Contingent\"),'TSA Input'!G2846,\"\"))","v":""},{"$f":"IF('TSA Input'!J2846=\"\",\"\",IF(OR('TSA Input'!J2846=\"Yes\",'TSA Input'!J2846=\"Contingent\"),'TSA Input'!F2846,\"\"))","v":""},"","Required","Required"]
["",null,{"$f":"IF('TSA Input'!J2847=\"\",\"\",IF(OR('TSA Input'!J2847=\"Yes\",'TSA Input'!J2847=\"Contingent\"),'TSA Input'!B2847,\"Ineligible\"))","v":""},{"$f":"IF('TSA Input'!J2847=\"\",\"\",IF(OR('TSA Input'!J2847=\"Yes\",'TSA Input'!J2847=\"Contingent\"),'TSA Input'!I2847,\"\"))","v":""},{"$f":"IF('TSA Input'!J2847=\"\",\"\",IF(OR('TSA Input'!J2847=\"Yes\",'TSA Input'!J2847=\"Contingent\"),'TSA Input'!C2847,\"\"))","v":""},{"$f":"IF('TSA Input'!J2847=\"\",\"\",IF(OR('TSA Input'!J2847=\"Yes\",'TSA Input'!J2847=\"Contingent\"),'TSA Input'!D2847,\"\"))","v":""},{"$f":"IF('TSA Input'!J2847=\"\",\"\",IF(OR('TSA Input'!J2847=\"Yes\",'TSA Input'!J2847=\"Contingent\"),'TSA Input'!G2847,\"\"))","v":""},{"$f":"IF('TSA Input'!J2847=\"\",\"\",IF(OR('TSA Input'!J2847=\"Yes\",'TSA Input'!J2847=\"Contingent\"),'TSA Input'!F2847,\"\"))","v":""},"",{"$f":"IF('TSA Input'!J2847=\"\",\"\",IF(OR('TSA Input'!J2847=\"Yes\",'TSA Input'!J2847=\"Contingent\"),'TSA Input'!D2847,\"\"))","v":""},{"$f":"IF('TSA Input'!J2847=\"\",\"\",IF(OR('TSA Input'!J2847=\"Yes\",'TSA Input'!J2847=\"Contingent\"),'TSA Input'!G2847,\"\"))","v":""},{"$f":"IF('TSA Input'!J2847=\"\",\"\",IF(OR('TSA Input'!J2847=\"Yes\",'TSA Input'!J2847=\"Contingent\"),'TSA Input'!F2847,\"\"))","v":""},"","Required","Required"]
["",null,{"$f":"IF('TSA Input'!J2848=\"\",\"\",IF(OR('TSA Input'!J2848=\"Yes\",'TSA Input'!J2848=\"Contingent\"),'TSA Input'!B2848,\"Ineligible\"))","v":""},{"$f":"IF('TSA Input'!J2848=\"\",\"\",IF(OR('TSA Input'!J2848=\"Yes\",'TSA Input'!J2848=\"Contingent\"),'TSA Input'!I2848,\"\"))","v":""},{"$f":"IF('TSA Input'!J2848=\"\",\"\",IF(OR('TSA Input'!J2848=\"Yes\",'TSA Input'!J2848=\"Contingent\"),'TSA Input'!C2848,\"\"))","v":""},{"$f":"IF('TSA Input'!J2848=\"\",\"\",IF(OR('TSA Input'!J2848=\"Yes\",'TSA Input'!J2848=\"Contingent\"),'TSA Input'!D2848,\"\"))","v":""},{"$f":"IF('TSA Input'!J2848=\"\",\"\",IF(OR('TSA Input'!J2848=\"Yes\",'TSA Input'!J2848=\"Contingent\"),'TSA Input'!G2848,\"\"))","v":""},{"$f":"IF('TSA Input'!J2848=\"\",\"\",IF(OR('TSA Input'!J2848=\"Yes\",'TSA Input'!J2848=\"Contingent\"),'TSA Input'!F2848,\"\"))","v":""},"",{"$f":"IF('TSA Input'!J2848=\"\",\"\",IF(OR('TSA Input'!J2848=\"Yes\",'TSA Input'!J2848=\"Contingent\"),'TSA Input'!D2848,\"\"))","v":""},{"$f":"IF('TSA Input'!J2848=\"\",\"\",IF(OR('TSA Input'!J2848=\"Yes\",'TSA Input'!J2848=\"Contingent\"),'TSA Input'!G2848,\"\"))","v":""},{"$f":"IF('TSA Input'!J2848=\"\",\"\",IF(OR('TSA Input'!J2848=\"Yes\",'TSA Input'!J2848=\"Contingent\"),'TSA Input'!F2848,\"\"))","v":""},"","Required","Required"]
["",null,{"$f":"IF('TSA Input'!J2849=\"\",\"\",IF(OR('TSA Input'!J2849=\"Yes\",'TSA Input'!J2849=\"Contingent\"),'TSA Input'!B2849,\"Ineligible\"))","v":""},{"$f":"IF('TSA Input'!J2849=\"\",\"\",IF(OR('TSA Input'!J2849=\"Yes\",'TSA Input'!J2849=\"Contingent\"),'TSA Input'!I2849,\"\"))","v":""},{"$f":"IF('TSA Input'!J2849=\"\",\"\",IF(OR('TSA Input'!J2849=\"Yes\",'TSA Input'!J2849=\"Contingent\"),'TSA Input'!C2849,\"\"))","v":""},{"$f":"IF('TSA Input'!J2849=\"\",\"\",IF(OR('TSA Input'!J2849=\"Yes\",'TSA Input'!J2849=\"Contingent\"),'TSA Input'!D2849,\"\"))","v":""},{"$f":"IF('TSA Input'!J2849=\"\",\"\",IF(OR('TSA Input'!J2849=\"Yes\",'TSA Input'!J2849=\"Contingent\"),'TSA Input'!G2849,\"\"))","v":""},{"$f":"IF('TSA Input'!J2849=\"\",\"\",IF(OR('TSA Input'!J2849=\"Yes\",'TSA Input'!J2849=\"Contingent\"),'TSA Input'!F2849,\"\"))","v":""},"",{"$f":"IF('TSA Input'!J2849=\"\",\"\",IF(OR('TSA Input'!J2849=\"Yes\",'TSA Input'!J2849=\"Contingent\"),'TSA Input'!D2849,\"\"))","v":""},{"$f":"IF('TSA Input'!J2849=\"\",\"\",IF(OR('TSA Input'!J2849=\"Yes\",'TSA Input'!J2849=\"Contingent\"),'TSA Input'!G2849,\"\"))","v":""},{"$f":"IF('TSA Input'!J2849=\"\",\"\",IF(OR('TSA Input'!J2849=\"Yes\",'TSA Input'!J2849=\"Contingent\"),'TSA Input'!F2849,\"\"))","v":""},"","Required","Required"]
["",null,{"$f":"IF('TSA Input'!J2850=\"\",\"\",IF(OR('TSA Input'!J2850=\"Yes\",'TSA Input'!J2850=\"Contingent\"),'TSA Input'!B2850,\"Ineligible\"))","v":""},{"$f":"IF('TSA Input'!J2850=\"\",\"\",IF(OR('TSA Input'!J2850=\"Yes\",'TSA Input'!J2850=\"Contingent\"),'TSA Input'!I2850,\"\"))","v":""},{"$f":"IF('TSA Input'!J2850=\"\",\"\",IF(OR('TSA Input'!J2850=\"Yes\",'TSA Input'!J2850=\"Contingent\"),'TSA Input'!C2850,\"\"))","v":""},{"$f":"IF('TSA Input'!J2850=\"\",\"\",IF(OR('TSA Input'!J2850=\"Yes\",'TSA Input'!J2850=\"Contingent\"),'TSA Input'!D2850,\"\"))","v":""},{"$f":"IF('TSA Input'!J2850=\"\",\"\",IF(OR('TSA Input'!J2850=\"Yes\",'TSA Input'!J2850=\"Contingent\"),'TSA Input'!G2850,\"\"))","v":""},{"$f":"IF('TSA Input'!J2850=\"\",\"\",IF(OR('TSA Input'!J2850=\"Yes\",'TSA Input'!J2850=\"Contingent\"),'TSA Input'!F2850,\"\"))","v":""},"",{"$f":"IF('TSA Input'!J2850=\"\",\"\",IF(OR('TSA Input'!J2850=\"Yes\",'TSA Input'!J2850=\"Contingent\"),'TSA Input'!D2850,\"\"))","v":""},{"$f":"IF('TSA Input'!J2850=\"\",\"\",IF(OR('TSA Input'!J2850=\"Yes\",'TSA Input'!J2850=\"Contingent\"),'TSA Input'!G2850,\"\"))","v":""},{"$f":"IF('TSA Input'!J2850=\"\",\"\",IF(OR('TSA Input'!J2850=\"Yes\",'TSA Input'!J2850=\"Contingent\"),'TSA Input'!F2850,\"\"))","v":""},"","Required","Required"]
["",null,{"$f":"IF('TSA Input'!J2851=\"\",\"\",IF(OR('TSA Input'!J2851=\"Yes\",'TSA Input'!J2851=\"Contingent\"),'TSA Input'!B2851,\"Ineligible\"))","v":""},{"$f":"IF('TSA Input'!J2851=\"\",\"\",IF(OR('TSA Input'!J2851=\"Yes\",'TSA Input'!J2851=\"Contingent\"),'TSA Input'!I2851,\"\"))","v":""},{"$f":"IF('TSA Input'!J2851=\"\",\"\",IF(OR('TSA Input'!J2851=\"Yes\",'TSA Input'!J2851=\"Contingent\"),'TSA Input'!C2851,\"\"))","v":""},{"$f":"IF('TSA Input'!J2851=\"\",\"\",IF(OR('TSA Input'!J2851=\"Yes\",'TSA Input'!J2851=\"Contingent\"),'TSA Input'!D2851,\"\"))","v":""},{"$f":"IF('TSA Input'!J2851=\"\",\"\",IF(OR('TSA Input'!J2851=\"Yes\",'TSA Input'!J2851=\"Contingent\"),'TSA Input'!G2851,\"\"))","v":""},{"$f":"IF('TSA Input'!J2851=\"\",\"\",IF(OR('TSA Input'!J2851=\"Yes\",'TSA Input'!J2851=\"Contingent\"),'TSA Input'!F2851,\"\"))","v":""},"",{"$f":"IF('TSA Input'!J2851=\"\",\"\",IF(OR('TSA Input'!J2851=\"Yes\",'TSA Input'!J2851=\"Contingent\"),'TSA Input'!D2851,\"\"))","v":""},{"$f":"IF('TSA Input'!J2851=\"\",\"\",IF(OR('TSA Input'!J2851=\"Yes\",'TSA Input'!J2851=\"Contingent\"),'TSA Input'!G2851,\"\"))","v":""},{"$f":"IF('TSA Input'!J2851=\"\",\"\",IF(OR('TSA Input'!J2851=\"Yes\",'TSA Input'!J2851=\"Contingent\"),'TSA Input'!F2851,\"\"))","v":""},"","Required","Required"]
["",null,{"$f":"IF('TSA Input'!J2852=\"\",\"\",IF(OR('TSA Input'!J2852=\"Yes\",'TSA Input'!J2852=\"Contingent\"),'TSA Input'!B2852,\"Ineligible\"))","v":""},{"$f":"IF('TSA Input'!J2852=\"\",\"\",IF(OR('TSA Input'!J2852=\"Yes\",'TSA Input'!J2852=\"Contingent\"),'TSA Input'!I2852,\"\"))","v":""},{"$f":"IF('TSA Input'!J2852=\"\",\"\",IF(OR('TSA Input'!J2852=\"Yes\",'TSA Input'!J2852=\"Contingent\"),'TSA Input'!C2852,\"\"))","v":""},{"$f":"IF('TSA Input'!J2852=\"\",\"\",IF(OR('TSA Input'!J2852=\"Yes\",'TSA Input'!J2852=\"Contingent\"),'TSA Input'!D2852,\"\"))","v":""},{"$f":"IF('TSA Input'!J2852=\"\",\"\",IF(OR('TSA Input'!J2852=\"Yes\",'TSA Input'!J2852=\"Contingent\"),'TSA Input'!G2852,\"\"))","v":""},{"$f":"IF('TSA Input'!J2852=\"\",\"\",IF(OR('TSA Input'!J2852=\"Yes\",'TSA Input'!J2852=\"Contingent\"),'TSA Input'!F2852,\"\"))","v":""},"",{"$f":"IF('TSA Input'!J2852=\"\",\"\",IF(OR('TSA Input'!J2852=\"Yes\",'TSA Input'!J2852=\"Contingent\"),'TSA Input'!D2852,\"\"))","v":""},{"$f":"IF('TSA Input'!J2852=\"\",\"\",IF(OR('TSA Input'!J2852=\"Yes\",'TSA Input'!J2852=\"Contingent\"),'TSA Input'!G2852,\"\"))","v":""},{"$f":"IF('TSA Input'!J2852=\"\",\"\",IF(OR('TSA Input'!J2852=\"Yes\",'TSA Input'!J2852=\"Contingent\"),'TSA Input'!F2852,\"\"))","v":""},"","Required","Required"]
["",null,{"$f":"IF('TSA Input'!J2853=\"\",\"\",IF(OR('TSA Input'!J2853=\"Yes\",'TSA Input'!J2853=\"Contingent\"),'TSA Input'!B2853,\"Ineligible\"))","v":""},{"$f":"IF('TSA Input'!J2853=\"\",\"\",IF(OR('TSA Input'!J2853=\"Yes\",'TSA Input'!J2853=\"Contingent\"),'TSA Input'!I2853,\"\"))","v":""},{"$f":"IF('TSA Input'!J2853=\"\",\"\",IF(OR('TSA Input'!J2853=\"Yes\",'TSA Input'!J2853=\"Contingent\"),'TSA Input'!C2853,\"\"))","v":""},{"$f":"IF('TSA Input'!J2853=\"\",\"\",IF(OR('TSA Input'!J2853=\"Yes\",'TSA Input'!J2853=\"Contingent\"),'TSA Input'!D2853,\"\"))","v":""},{"$f":"IF('TSA Input'!J2853=\"\",\"\",IF(OR('TSA Input'!J2853=\"Yes\",'TSA Input'!J2853=\"Contingent\"),'TSA Input'!G2853,\"\"))","v":""},{"$f":"IF('TSA Input'!J2853=\"\",\"\",IF(OR('TSA Input'!J2853=\"Yes\",'TSA Input'!J2853=\"Contingent\"),'TSA Input'!F2853,\"\"))","v":""},"",{"$f":"IF('TSA Input'!J2853=\"\",\"\",IF(OR('TSA Input'!J2853=\"Yes\",'TSA Input'!J2853=\"Contingent\"),'TSA Input'!D2853,\"\"))","v":""},{"$f":"IF('TSA Input'!J2853=\"\",\"\",IF(OR('TSA Input'!J2853=\"Yes\",'TSA Input'!J2853=\"Contingent\"),'TSA Input'!G2853,\"\"))","v":""},{"$f":"IF('TSA Input'!J2853=\"\",\"\",IF(OR('TSA Input'!J2853=\"Yes\",'TSA Input'!J2853=\"Contingent\"),'TSA Input'!F2853,\"\"))","v":""},"","Required","Required"]
["",null,{"$f":"IF('TSA Input'!J2854=\"\",\"\",IF(OR('TSA Input'!J2854=\"Yes\",'TSA Input'!J2854=\"Contingent\"),'TSA Input'!B2854,\"Ineligible\"))","v":""},{"$f":"IF('TSA Input'!J2854=\"\",\"\",IF(OR('TSA Input'!J2854=\"Yes\",'TSA Input'!J2854=\"Contingent\"),'TSA Input'!I2854,\"\"))","v":""},{"$f":"IF('TSA Input'!J2854=\"\",\"\",IF(OR('TSA Input'!J2854=\"Yes\",'TSA Input'!J2854=\"Contingent\"),'TSA Input'!C2854,\"\"))","v":""},{"$f":"IF('TSA Input'!J2854=\"\",\"\",IF(OR('TSA Input'!J2854=\"Yes\",'TSA Input'!J2854=\"Contingent\"),'TSA Input'!D2854,\"\"))","v":""},{"$f":"IF('TSA Input'!J2854=\"\",\"\",IF(OR('TSA Input'!J2854=\"Yes\",'TSA Input'!J2854=\"Contingent\"),'TSA Input'!G2854,\"\"))","v":""},{"$f":"IF('TSA Input'!J2854=\"\",\"\",IF(OR('TSA Input'!J2854=\"Yes\",'TSA Input'!J2854=\"Contingent\"),'TSA Input'!F2854,\"\"))","v":""},"",{"$f":"IF('TSA Input'!J2854=\"\",\"\",IF(OR('TSA Input'!J2854=\"Yes\",'TSA Input'!J2854=\"Contingent\"),'TSA Input'!D2854,\"\"))","v":""},{"$f":"IF('TSA Input'!J2854=\"\",\"\",IF(OR('TSA Input'!J2854=\"Yes\",'TSA Input'!J2854=\"Contingent\"),'TSA Input'!G2854,\"\"))","v":""},{"$f":"IF('TSA Input'!J2854=\"\",\"\",IF(OR('TSA Input'!J2854=\"Yes\",'TSA Input'!J2854=\"Contingent\"),'TSA Input'!F2854,\"\"))","v":""},"","Required","Required"]
["",null,{"$f":"IF('TSA Input'!J2855=\"\",\"\",IF(OR('TSA Input'!J2855=\"Yes\",'TSA Input'!J2855=\"Contingent\"),'TSA Input'!B2855,\"Ineligible\"))","v":""},{"$f":"IF('TSA Input'!J2855=\"\",\"\",IF(OR('TSA Input'!J2855=\"Yes\",'TSA Input'!J2855=\"Contingent\"),'TSA Input'!I2855,\"\"))","v":""},{"$f":"IF('TSA Input'!J2855=\"\",\"\",IF(OR('TSA Input'!J2855=\"Yes\",'TSA Input'!J2855=\"Contingent\"),'TSA Input'!C2855,\"\"))","v":""},{"$f":"IF('TSA Input'!J2855=\"\",\"\",IF(OR('TSA Input'!J2855=\"Yes\",'TSA Input'!J2855=\"Contingent\"),'TSA Input'!D2855,\"\"))","v":""},{"$f":"IF('TSA Input'!J2855=\"\",\"\",IF(OR('TSA Input'!J2855=\"Yes\",'TSA Input'!J2855=\"Contingent\"),'TSA Input'!G2855,\"\"))","v":""},{"$f":"IF('TSA Input'!J2855=\"\",\"\",IF(OR('TSA Input'!J2855=\"Yes\",'TSA Input'!J2855=\"Contingent\"),'TSA Input'!F2855,\"\"))","v":""},"",{"$f":"IF('TSA Input'!J2855=\"\",\"\",IF(OR('TSA Input'!J2855=\"Yes\",'TSA Input'!J2855=\"Contingent\"),'TSA Input'!D2855,\"\"))","v":""},{"$f":"IF('TSA Input'!J2855=\"\",\"\",IF(OR('TSA Input'!J2855=\"Yes\",'TSA Input'!J2855=\"Contingent\"),'TSA Input'!G2855,\"\"))","v":""},{"$f":"IF('TSA Input'!J2855=\"\",\"\",IF(OR('TSA Input'!J2855=\"Yes\",'TSA Input'!J2855=\"Contingent\"),'TSA Input'!F2855,\"\"))","v":""},"","Required","Required"]
["",null,{"$f":"IF('TSA Input'!J2856=\"\",\"\",IF(OR('TSA Input'!J2856=\"Yes\",'TSA Input'!J2856=\"Contingent\"),'TSA Input'!B2856,\"Ineligible\"))","v":""},{"$f":"IF('TSA Input'!J2856=\"\",\"\",IF(OR('TSA Input'!J2856=\"Yes\",'TSA Input'!J2856=\"Contingent\"),'TSA Input'!I2856,\"\"))","v":""},{"$f":"IF('TSA Input'!J2856=\"\",\"\",IF(OR('TSA Input'!J2856=\"Yes\",'TSA Input'!J2856=\"Contingent\"),'TSA Input'!C2856,\"\"))","v":""},{"$f":"IF('TSA Input'!J2856=\"\",\"\",IF(OR('TSA Input'!J2856=\"Yes\",'TSA Input'!J2856=\"Contingent\"),'TSA Input'!D2856,\"\"))","v":""},{"$f":"IF('TSA Input'!J2856=\"\",\"\",IF(OR('TSA Input'!J2856=\"Yes\",'TSA Input'!J2856=\"Contingent\"),'TSA Input'!G2856,\"\"))","v":""},{"$f":"IF('TSA Input'!J2856=\"\",\"\",IF(OR('TSA Input'!J2856=\"Yes\",'TSA Input'!J2856=\"Contingent\"),'TSA Input'!F2856,\"\"))","v":""},"",{"$f":"IF('TSA Input'!J2856=\"\",\"\",IF(OR('TSA Input'!J2856=\"Yes\",'TSA Input'!J2856=\"Contingent\"),'TSA Input'!D2856,\"\"))","v":""},{"$f":"IF('TSA Input'!J2856=\"\",\"\",IF(OR('TSA Input'!J2856=\"Yes\",'TSA Input'!J2856=\"Contingent\"),'TSA Input'!G2856,\"\"))","v":""},{"$f":"IF('TSA Input'!J2856=\"\",\"\",IF(OR('TSA Input'!J2856=\"Yes\",'TSA Input'!J2856=\"Contingent\"),'TSA Input'!F2856,\"\"))","v":""},"","Required","Required"]
["",null,{"$f":"IF('TSA Input'!J2857=\"\",\"\",IF(OR('TSA Input'!J2857=\"Yes\",'TSA Input'!J2857=\"Contingent\"),'TSA Input'!B2857,\"Ineligible\"))","v":""},{"$f":"IF('TSA Input'!J2857=\"\",\"\",IF(OR('TSA Input'!J2857=\"Yes\",'TSA Input'!J2857=\"Contingent\"),'TSA Input'!I2857,\"\"))","v":""},{"$f":"IF('TSA Input'!J2857=\"\",\"\",IF(OR('TSA Input'!J2857=\"Yes\",'TSA Input'!J2857=\"Contingent\"),'TSA Input'!C2857,\"\"))","v":""},{"$f":"IF('TSA Input'!J2857=\"\",\"\",IF(OR('TSA Input'!J2857=\"Yes\",'TSA Input'!J2857=\"Contingent\"),'TSA Input'!D2857,\"\"))","v":""},{"$f":"IF('TSA Input'!J2857=\"\",\"\",IF(OR('TSA Input'!J2857=\"Yes\",'TSA Input'!J2857=\"Contingent\"),'TSA Input'!G2857,\"\"))","v":""},{"$f":"IF('TSA Input'!J2857=\"\",\"\",IF(OR('TSA Input'!J2857=\"Yes\",'TSA Input'!J2857=\"Contingent\"),'TSA Input'!F2857,\"\"))","v":""},"",{"$f":"IF('TSA Input'!J2857=\"\",\"\",IF(OR('TSA Input'!J2857=\"Yes\",'TSA Input'!J2857=\"Contingent\"),'TSA Input'!D2857,\"\"))","v":""},{"$f":"IF('TSA Input'!J2857=\"\",\"\",IF(OR('TSA Input'!J2857=\"Yes\",'TSA Input'!J2857=\"Contingent\"),'TSA Input'!G2857,\"\"))","v":""},{"$f":"IF('TSA Input'!J2857=\"\",\"\",IF(OR('TSA Input'!J2857=\"Yes\",'TSA Input'!J2857=\"Contingent\"),'TSA Input'!F2857,\"\"))","v":""},"","Required","Required"]
["",null,{"$f":"IF('TSA Input'!J2858=\"\",\"\",IF(OR('TSA Input'!J2858=\"Yes\",'TSA Input'!J2858=\"Contingent\"),'TSA Input'!B2858,\"Ineligible\"))","v":""},{"$f":"IF('TSA Input'!J2858=\"\",\"\",IF(OR('TSA Input'!J2858=\"Yes\",'TSA Input'!J2858=\"Contingent\"),'TSA Input'!I2858,\"\"))","v":""},{"$f":"IF('TSA Input'!J2858=\"\",\"\",IF(OR('TSA Input'!J2858=\"Yes\",'TSA Input'!J2858=\"Contingent\"),'TSA Input'!C2858,\"\"))","v":""},{"$f":"IF('TSA Input'!J2858=\"\",\"\",IF(OR('TSA Input'!J2858=\"Yes\",'TSA Input'!J2858=\"Contingent\"),'TSA Input'!D2858,\"\"))","v":""},{"$f":"IF('TSA Input'!J2858=\"\",\"\",IF(OR('TSA Input'!J2858=\"Yes\",'TSA Input'!J2858=\"Contingent\"),'TSA Input'!G2858,\"\"))","v":""},{"$f":"IF('TSA Input'!J2858=\"\",\"\",IF(OR('TSA Input'!J2858=\"Yes\",'TSA Input'!J2858=\"Contingent\"),'TSA Input'!F2858,\"\"))","v":""},"",{"$f":"IF('TSA Input'!J2858=\"\",\"\",IF(OR('TSA Input'!J2858=\"Yes\",'TSA Input'!J2858=\"Contingent\"),'TSA Input'!D2858,\"\"))","v":""},{"$f":"IF('TSA Input'!J2858=\"\",\"\",IF(OR('TSA Input'!J2858=\"Yes\",'TSA Input'!J2858=\"Contingent\"),'TSA Input'!G2858,\"\"))","v":""},{"$f":"IF('TSA Input'!J2858=\"\",\"\",IF(OR('TSA Input'!J2858=\"Yes\",'TSA Input'!J2858=\"Contingent\"),'TSA Input'!F2858,\"\"))","v":""},"","Required","Required"]
["",null,{"$f":"IF('TSA Input'!J2859=\"\",\"\",IF(OR('TSA Input'!J2859=\"Yes\",'TSA Input'!J2859=\"Contingent\"),'TSA Input'!B2859,\"Ineligible\"))","v":""},{"$f":"IF('TSA Input'!J2859=\"\",\"\",IF(OR('TSA Input'!J2859=\"Yes\",'TSA Input'!J2859=\"Contingent\"),'TSA Input'!I2859,\"\"))","v":""},{"$f":"IF('TSA Input'!J2859=\"\",\"\",IF(OR('TSA Input'!J2859=\"Yes\",'TSA Input'!J2859=\"Contingent\"),'TSA Input'!C2859,\"\"))","v":""},{"$f":"IF('TSA Input'!J2859=\"\",\"\",IF(OR('TSA Input'!J2859=\"Yes\",'TSA Input'!J2859=\"Contingent\"),'TSA Input'!D2859,\"\"))","v":""},{"$f":"IF('TSA Input'!J2859=\"\",\"\",IF(OR('TSA Input'!J2859=\"Yes\",'TSA Input'!J2859=\"Contingent\"),'TSA Input'!G2859,\"\"))","v":""},{"$f":"IF('TSA Input'!J2859=\"\",\"\",IF(OR('TSA Input'!J2859=\"Yes\",'TSA Input'!J2859=\"Contingent\"),'TSA Input'!F2859,\"\"))","v":""},"",{"$f":"IF('TSA Input'!J2859=\"\",\"\",IF(OR('TSA Input'!J2859=\"Yes\",'TSA Input'!J2859=\"Contingent\"),'TSA Input'!D2859,\"\"))","v":""},{"$f":"IF('TSA Input'!J2859=\"\",\"\",IF(OR('TSA Input'!J2859=\"Yes\",'TSA Input'!J2859=\"Contingent\"),'TSA Input'!G2859,\"\"))","v":""},{"$f":"IF('TSA Input'!J2859=\"\",\"\",IF(OR('TSA Input'!J2859=\"Yes\",'TSA Input'!J2859=\"Contingent\"),'TSA Input'!F2859,\"\"))","v":""},"","Required","Required"]
["",null,{"$f":"IF('TSA Input'!J2860=\"\",\"\",IF(OR('TSA Input'!J2860=\"Yes\",'TSA Input'!J2860=\"Contingent\"),'TSA Input'!B2860,\"Ineligible\"))","v":""},{"$f":"IF('TSA Input'!J2860=\"\",\"\",IF(OR('TSA Input'!J2860=\"Yes\",'TSA Input'!J2860=\"Contingent\"),'TSA Input'!I2860,\"\"))","v":""},{"$f":"IF('TSA Input'!J2860=\"\",\"\",IF(OR('TSA Input'!J2860=\"Yes\",'TSA Input'!J2860=\"Contingent\"),'TSA Input'!C2860,\"\"))","v":""},{"$f":"IF('TSA Input'!J2860=\"\",\"\",IF(OR('TSA Input'!J2860=\"Yes\",'TSA Input'!J2860=\"Contingent\"),'TSA Input'!D2860,\"\"))","v":""},{"$f":"IF('TSA Input'!J2860=\"\",\"\",IF(OR('TSA Input'!J2860=\"Yes\",'TSA Input'!J2860=\"Contingent\"),'TSA Input'!G2860,\"\"))","v":""},{"$f":"IF('TSA Input'!J2860=\"\",\"\",IF(OR('TSA Input'!J2860=\"Yes\",'TSA Input'!J2860=\"Contingent\"),'TSA Input'!F2860,\"\"))","v":""},"",{"$f":"IF('TSA Input'!J2860=\"\",\"\",IF(OR('TSA Input'!J2860=\"Yes\",'TSA Input'!J2860=\"Contingent\"),'TSA Input'!D2860,\"\"))","v":""},{"$f":"IF('TSA Input'!J2860=\"\",\"\",IF(OR('TSA Input'!J2860=\"Yes\",'TSA Input'!J2860=\"Contingent\"),'TSA Input'!G2860,\"\"))","v":""},{"$f":"IF('TSA Input'!J2860=\"\",\"\",IF(OR('TSA Input'!J2860=\"Yes\",'TSA Input'!J2860=\"Contingent\"),'TSA Input'!F2860,\"\"))","v":""},"","Required","Required"]
["",null,{"$f":"IF('TSA Input'!J2861=\"\",\"\",IF(OR('TSA Input'!J2861=\"Yes\",'TSA Input'!J2861=\"Contingent\"),'TSA Input'!B2861,\"Ineligible\"))","v":""},{"$f":"IF('TSA Input'!J2861=\"\",\"\",IF(OR('TSA Input'!J2861=\"Yes\",'TSA Input'!J2861=\"Contingent\"),'TSA Input'!I2861,\"\"))","v":""},{"$f":"IF('TSA Input'!J2861=\"\",\"\",IF(OR('TSA Input'!J2861=\"Yes\",'TSA Input'!J2861=\"Contingent\"),'TSA Input'!C2861,\"\"))","v":""},{"$f":"IF('TSA Input'!J2861=\"\",\"\",IF(OR('TSA Input'!J2861=\"Yes\",'TSA Input'!J2861=\"Contingent\"),'TSA Input'!D2861,\"\"))","v":""},{"$f":"IF('TSA Input'!J2861=\"\",\"\",IF(OR('TSA Input'!J2861=\"Yes\",'TSA Input'!J2861=\"Contingent\"),'TSA Input'!G2861,\"\"))","v":""},{"$f":"IF('TSA Input'!J2861=\"\",\"\",IF(OR('TSA Input'!J2861=\"Yes\",'TSA Input'!J2861=\"Contingent\"),'TSA Input'!F2861,\"\"))","v":""},"",{"$f":"IF('TSA Input'!J2861=\"\",\"\",IF(OR('TSA Input'!J2861=\"Yes\",'TSA Input'!J2861=\"Contingent\"),'TSA Input'!D2861,\"\"))","v":""},{"$f":"IF('TSA Input'!J2861=\"\",\"\",IF(OR('TSA Input'!J2861=\"Yes\",'TSA Input'!J2861=\"Contingent\"),'TSA Input'!G2861,\"\"))","v":""},{"$f":"IF('TSA Input'!J2861=\"\",\"\",IF(OR('TSA Input'!J2861=\"Yes\",'TSA Input'!J2861=\"Contingent\"),'TSA Input'!F2861,\"\"))","v":""},"","Required","Required"]
["",null,{"$f":"IF('TSA Input'!J2862=\"\",\"\",IF(OR('TSA Input'!J2862=\"Yes\",'TSA Input'!J2862=\"Contingent\"),'TSA Input'!B2862,\"Ineligible\"))","v":""},{"$f":"IF('TSA Input'!J2862=\"\",\"\",IF(OR('TSA Input'!J2862=\"Yes\",'TSA Input'!J2862=\"Contingent\"),'TSA Input'!I2862,\"\"))","v":""},{"$f":"IF('TSA Input'!J2862=\"\",\"\",IF(OR('TSA Input'!J2862=\"Yes\",'TSA Input'!J2862=\"Contingent\"),'TSA Input'!C2862,\"\"))","v":""},{"$f":"IF('TSA Input'!J2862=\"\",\"\",IF(OR('TSA Input'!J2862=\"Yes\",'TSA Input'!J2862=\"Contingent\"),'TSA Input'!D2862,\"\"))","v":""},{"$f":"IF('TSA Input'!J2862=\"\",\"\",IF(OR('TSA Input'!J2862=\"Yes\",'TSA Input'!J2862=\"Contingent\"),'TSA Input'!G2862,\"\"))","v":""},{"$f":"IF('TSA Input'!J2862=\"\",\"\",IF(OR('TSA Input'!J2862=\"Yes\",'TSA Input'!J2862=\"Contingent\"),'TSA Input'!F2862,\"\"))","v":""},"",{"$f":"IF('TSA Input'!J2862=\"\",\"\",IF(OR('TSA Input'!J2862=\"Yes\",'TSA Input'!J2862=\"Contingent\"),'TSA Input'!D2862,\"\"))","v":""},{"$f":"IF('TSA Input'!J2862=\"\",\"\",IF(OR('TSA Input'!J2862=\"Yes\",'TSA Input'!J2862=\"Contingent\"),'TSA Input'!G2862,\"\"))","v":""},{"$f":"IF('TSA Input'!J2862=\"\",\"\",IF(OR('TSA Input'!J2862=\"Yes\",'TSA Input'!J2862=\"Contingent\"),'TSA Input'!F2862,\"\"))","v":""},"","Required","Required"]
["",null,{"$f":"IF('TSA Input'!J2863=\"\",\"\",IF(OR('TSA Input'!J2863=\"Yes\",'TSA Input'!J2863=\"Contingent\"),'TSA Input'!B2863,\"Ineligible\"))","v":""},{"$f":"IF('TSA Input'!J2863=\"\",\"\",IF(OR('TSA Input'!J2863=\"Yes\",'TSA Input'!J2863=\"Contingent\"),'TSA Input'!I2863,\"\"))","v":""},{"$f":"IF('TSA Input'!J2863=\"\",\"\",IF(OR('TSA Input'!J2863=\"Yes\",'TSA Input'!J2863=\"Contingent\"),'TSA Input'!C2863,\"\"))","v":""},{"$f":"IF('TSA Input'!J2863=\"\",\"\",IF(OR('TSA Input'!J2863=\"Yes\",'TSA Input'!J2863=\"Contingent\"),'TSA Input'!D2863,\"\"))","v":""},{"$f":"IF('TSA Input'!J2863=\"\",\"\",IF(OR('TSA Input'!J2863=\"Yes\",'TSA Input'!J2863=\"Contingent\"),'TSA Input'!G2863,\"\"))","v":""},{"$f":"IF('TSA Input'!J2863=\"\",\"\",IF(OR('TSA Input'!J2863=\"Yes\",'TSA Input'!J2863=\"Contingent\"),'TSA Input'!F2863,\"\"))","v":""},"",{"$f":"IF('TSA Input'!J2863=\"\",\"\",IF(OR('TSA Input'!J2863=\"Yes\",'TSA Input'!J2863=\"Contingent\"),'TSA Input'!D2863,\"\"))","v":""},{"$f":"IF('TSA Input'!J2863=\"\",\"\",IF(OR('TSA Input'!J2863=\"Yes\",'TSA Input'!J2863=\"Contingent\"),'TSA Input'!G2863,\"\"))","v":""},{"$f":"IF('TSA Input'!J2863=\"\",\"\",IF(OR('TSA Input'!J2863=\"Yes\",'TSA Input'!J2863=\"Contingent\"),'TSA Input'!F2863,\"\"))","v":""},"","Required","Required"]
["",null,{"$f":"IF('TSA Input'!J2864=\"\",\"\",IF(OR('TSA Input'!J2864=\"Yes\",'TSA Input'!J2864=\"Contingent\"),'TSA Input'!B2864,\"Ineligible\"))","v":""},{"$f":"IF('TSA Input'!J2864=\"\",\"\",IF(OR('TSA Input'!J2864=\"Yes\",'TSA Input'!J2864=\"Contingent\"),'TSA Input'!I2864,\"\"))","v":""},{"$f":"IF('TSA Input'!J2864=\"\",\"\",IF(OR('TSA Input'!J2864=\"Yes\",'TSA Input'!J2864=\"Contingent\"),'TSA Input'!C2864,\"\"))","v":""},{"$f":"IF('TSA Input'!J2864=\"\",\"\",IF(OR('TSA Input'!J2864=\"Yes\",'TSA Input'!J2864=\"Contingent\"),'TSA Input'!D2864,\"\"))","v":""},{"$f":"IF('TSA Input'!J2864=\"\",\"\",IF(OR('TSA Input'!J2864=\"Yes\",'TSA Input'!J2864=\"Contingent\"),'TSA Input'!G2864,\"\"))","v":""},{"$f":"IF('TSA Input'!J2864=\"\",\"\",IF(OR('TSA Input'!J2864=\"Yes\",'TSA Input'!J2864=\"Contingent\"),'TSA Input'!F2864,\"\"))","v":""},"",{"$f":"IF('TSA Input'!J2864=\"\",\"\",IF(OR('TSA Input'!J2864=\"Yes\",'TSA Input'!J2864=\"Contingent\"),'TSA Input'!D2864,\"\"))","v":""},{"$f":"IF('TSA Input'!J2864=\"\",\"\",IF(OR('TSA Input'!J2864=\"Yes\",'TSA Input'!J2864=\"Contingent\"),'TSA Input'!G2864,\"\"))","v":""},{"$f":"IF('TSA Input'!J2864=\"\",\"\",IF(OR('TSA Input'!J2864=\"Yes\",'TSA Input'!J2864=\"Contingent\"),'TSA Input'!F2864,\"\"))","v":""},"","Required","Required"]
["",null,{"$f":"IF('TSA Input'!J2865=\"\",\"\",IF(OR('TSA Input'!J2865=\"Yes\",'TSA Input'!J2865=\"Contingent\"),'TSA Input'!B2865,\"Ineligible\"))","v":""},{"$f":"IF('TSA Input'!J2865=\"\",\"\",IF(OR('TSA Input'!J2865=\"Yes\",'TSA Input'!J2865=\"Contingent\"),'TSA Input'!I2865,\"\"))","v":""},{"$f":"IF('TSA Input'!J2865=\"\",\"\",IF(OR('TSA Input'!J2865=\"Yes\",'TSA Input'!J2865=\"Contingent\"),'TSA Input'!C2865,\"\"))","v":""},{"$f":"IF('TSA Input'!J2865=\"\",\"\",IF(OR('TSA Input'!J2865=\"Yes\",'TSA Input'!J2865=\"Contingent\"),'TSA Input'!D2865,\"\"))","v":""},{"$f":"IF('TSA Input'!J2865=\"\",\"\",IF(OR('TSA Input'!J2865=\"Yes\",'TSA Input'!J2865=\"Contingent\"),'TSA Input'!G2865,\"\"))","v":""},{"$f":"IF('TSA Input'!J2865=\"\",\"\",IF(OR('TSA Input'!J2865=\"Yes\",'TSA Input'!J2865=\"Contingent\"),'TSA Input'!F2865,\"\"))","v":""},"",{"$f":"IF('TSA Input'!J2865=\"\",\"\",IF(OR('TSA Input'!J2865=\"Yes\",'TSA Input'!J2865=\"Contingent\"),'TSA Input'!D2865,\"\"))","v":""},{"$f":"IF('TSA Input'!J2865=\"\",\"\",IF(OR('TSA Input'!J2865=\"Yes\",'TSA Input'!J2865=\"Contingent\"),'TSA Input'!G2865,\"\"))","v":""},{"$f":"IF('TSA Input'!J2865=\"\",\"\",IF(OR('TSA Input'!J2865=\"Yes\",'TSA Input'!J2865=\"Contingent\"),'TSA Input'!F2865,\"\"))","v":""},"","Required","Required"]
["",null,{"$f":"IF('TSA Input'!J2866=\"\",\"\",IF(OR('TSA Input'!J2866=\"Yes\",'TSA Input'!J2866=\"Contingent\"),'TSA Input'!B2866,\"Ineligible\"))","v":""},{"$f":"IF('TSA Input'!J2866=\"\",\"\",IF(OR('TSA Input'!J2866=\"Yes\",'TSA Input'!J2866=\"Contingent\"),'TSA Input'!I2866,\"\"))","v":""},{"$f":"IF('TSA Input'!J2866=\"\",\"\",IF(OR('TSA Input'!J2866=\"Yes\",'TSA Input'!J2866=\"Contingent\"),'TSA Input'!C2866,\"\"))","v":""},{"$f":"IF('TSA Input'!J2866=\"\",\"\",IF(OR('TSA Input'!J2866=\"Yes\",'TSA Input'!J2866=\"Contingent\"),'TSA Input'!D2866,\"\"))","v":""},{"$f":"IF('TSA Input'!J2866=\"\",\"\",IF(OR('TSA Input'!J2866=\"Yes\",'TSA Input'!J2866=\"Contingent\"),'TSA Input'!G2866,\"\"))","v":""},{"$f":"IF('TSA Input'!J2866=\"\",\"\",IF(OR('TSA Input'!J2866=\"Yes\",'TSA Input'!J2866=\"Contingent\"),'TSA Input'!F2866,\"\"))","v":""},"",{"$f":"IF('TSA Input'!J2866=\"\",\"\",IF(OR('TSA Input'!J2866=\"Yes\",'TSA Input'!J2866=\"Contingent\"),'TSA Input'!D2866,\"\"))","v":""},{"$f":"IF('TSA Input'!J2866=\"\",\"\",IF(OR('TSA Input'!J2866=\"Yes\",'TSA Input'!J2866=\"Contingent\"),'TSA Input'!G2866,\"\"))","v":""},{"$f":"IF('TSA Input'!J2866=\"\",\"\",IF(OR('TSA Input'!J2866=\"Yes\",'TSA Input'!J2866=\"Contingent\"),'TSA Input'!F2866,\"\"))","v":""},"","Required","Required"]
["",null,{"$f":"IF('TSA Input'!J2867=\"\",\"\",IF(OR('TSA Input'!J2867=\"Yes\",'TSA Input'!J2867=\"Contingent\"),'TSA Input'!B2867,\"Ineligible\"))","v":""},{"$f":"IF('TSA Input'!J2867=\"\",\"\",IF(OR('TSA Input'!J2867=\"Yes\",'TSA Input'!J2867=\"Contingent\"),'TSA Input'!I2867,\"\"))","v":""},{"$f":"IF('TSA Input'!J2867=\"\",\"\",IF(OR('TSA Input'!J2867=\"Yes\",'TSA Input'!J2867=\"Contingent\"),'TSA Input'!C2867,\"\"))","v":""},{"$f":"IF('TSA Input'!J2867=\"\",\"\",IF(OR('TSA Input'!J2867=\"Yes\",'TSA Input'!J2867=\"Contingent\"),'TSA Input'!D2867,\"\"))","v":""},{"$f":"IF('TSA Input'!J2867=\"\",\"\",IF(OR('TSA Input'!J2867=\"Yes\",'TSA Input'!J2867=\"Contingent\"),'TSA Input'!G2867,\"\"))","v":""},{"$f":"IF('TSA Input'!J2867=\"\",\"\",IF(OR('TSA Input'!J2867=\"Yes\",'TSA Input'!J2867=\"Contingent\"),'TSA Input'!F2867,\"\"))","v":""},"",{"$f":"IF('TSA Input'!J2867=\"\",\"\",IF(OR('TSA Input'!J2867=\"Yes\",'TSA Input'!J2867=\"Contingent\"),'TSA Input'!D2867,\"\"))","v":""},{"$f":"IF('TSA Input'!J2867=\"\",\"\",IF(OR('TSA Input'!J2867=\"Yes\",'TSA Input'!J2867=\"Contingent\"),'TSA Input'!G2867,\"\"))","v":""},{"$f":"IF('TSA Input'!J2867=\"\",\"\",IF(OR('TSA Input'!J2867=\"Yes\",'TSA Input'!J2867=\"Contingent\"),'TSA Input'!F2867,\"\"))","v":""},"","Required","Required"]
["",null,{"$f":"IF('TSA Input'!J2868=\"\",\"\",IF(OR('TSA Input'!J2868=\"Yes\",'TSA Input'!J2868=\"Contingent\"),'TSA Input'!B2868,\"Ineligible\"))","v":""},{"$f":"IF('TSA Input'!J2868=\"\",\"\",IF(OR('TSA Input'!J2868=\"Yes\",'TSA Input'!J2868=\"Contingent\"),'TSA Input'!I2868,\"\"))","v":""},{"$f":"IF('TSA Input'!J2868=\"\",\"\",IF(OR('TSA Input'!J2868=\"Yes\",'TSA Input'!J2868=\"Contingent\"),'TSA Input'!C2868,\"\"))","v":""},{"$f":"IF('TSA Input'!J2868=\"\",\"\",IF(OR('TSA Input'!J2868=\"Yes\",'TSA Input'!J2868=\"Contingent\"),'TSA Input'!D2868,\"\"))","v":""},{"$f":"IF('TSA Input'!J2868=\"\",\"\",IF(OR('TSA Input'!J2868=\"Yes\",'TSA Input'!J2868=\"Contingent\"),'TSA Input'!G2868,\"\"))","v":""},{"$f":"IF('TSA Input'!J2868=\"\",\"\",IF(OR('TSA Input'!J2868=\"Yes\",'TSA Input'!J2868=\"Contingent\"),'TSA Input'!F2868,\"\"))","v":""},"",{"$f":"IF('TSA Input'!J2868=\"\",\"\",IF(OR('TSA Input'!J2868=\"Yes\",'TSA Input'!J2868=\"Contingent\"),'TSA Input'!D2868,\"\"))","v":""},{"$f":"IF('TSA Input'!J2868=\"\",\"\",IF(OR('TSA Input'!J2868=\"Yes\",'TSA Input'!J2868=\"Contingent\"),'TSA Input'!G2868,\"\"))","v":""},{"$f":"IF('TSA Input'!J2868=\"\",\"\",IF(OR('TSA Input'!J2868=\"Yes\",'TSA Input'!J2868=\"Contingent\"),'TSA Input'!F2868,\"\"))","v":""},"","Required","Required"]
["",null,{"$f":"IF('TSA Input'!J2869=\"\",\"\",IF(OR('TSA Input'!J2869=\"Yes\",'TSA Input'!J2869=\"Contingent\"),'TSA Input'!B2869,\"Ineligible\"))","v":""},{"$f":"IF('TSA Input'!J2869=\"\",\"\",IF(OR('TSA Input'!J2869=\"Yes\",'TSA Input'!J2869=\"Contingent\"),'TSA Input'!I2869,\"\"))","v":""},{"$f":"IF('TSA Input'!J2869=\"\",\"\",IF(OR('TSA Input'!J2869=\"Yes\",'TSA Input'!J2869=\"Contingent\"),'TSA Input'!C2869,\"\"))","v":""},{"$f":"IF('TSA Input'!J2869=\"\",\"\",IF(OR('TSA Input'!J2869=\"Yes\",'TSA Input'!J2869=\"Contingent\"),'TSA Input'!D2869,\"\"))","v":""},{"$f":"IF('TSA Input'!J2869=\"\",\"\",IF(OR('TSA Input'!J2869=\"Yes\",'TSA Input'!J2869=\"Contingent\"),'TSA Input'!G2869,\"\"))","v":""},{"$f":"IF('TSA Input'!J2869=\"\",\"\",IF(OR('TSA Input'!J2869=\"Yes\",'TSA Input'!J2869=\"Contingent\"),'TSA Input'!F2869,\"\"))","v":""},"",{"$f":"IF('TSA Input'!J2869=\"\",\"\",IF(OR('TSA Input'!J2869=\"Yes\",'TSA Input'!J2869=\"Contingent\"),'TSA Input'!D2869,\"\"))","v":""},{"$f":"IF('TSA Input'!J2869=\"\",\"\",IF(OR('TSA Input'!J2869=\"Yes\",'TSA Input'!J2869=\"Contingent\"),'TSA Input'!G2869,\"\"))","v":""},{"$f":"IF('TSA Input'!J2869=\"\",\"\",IF(OR('TSA Input'!J2869=\"Yes\",'TSA Input'!J2869=\"Contingent\"),'TSA Input'!F2869,\"\"))","v":""},"","Required","Required"]
["",null,{"$f":"IF('TSA Input'!J2870=\"\",\"\",IF(OR('TSA Input'!J2870=\"Yes\",'TSA Input'!J2870=\"Contingent\"),'TSA Input'!B2870,\"Ineligible\"))","v":""},{"$f":"IF('TSA Input'!J2870=\"\",\"\",IF(OR('TSA Input'!J2870=\"Yes\",'TSA Input'!J2870=\"Contingent\"),'TSA Input'!I2870,\"\"))","v":""},{"$f":"IF('TSA Input'!J2870=\"\",\"\",IF(OR('TSA Input'!J2870=\"Yes\",'TSA Input'!J2870=\"Contingent\"),'TSA Input'!C2870,\"\"))","v":""},{"$f":"IF('TSA Input'!J2870=\"\",\"\",IF(OR('TSA Input'!J2870=\"Yes\",'TSA Input'!J2870=\"Contingent\"),'TSA Input'!D2870,\"\"))","v":""},{"$f":"IF('TSA Input'!J2870=\"\",\"\",IF(OR('TSA Input'!J2870=\"Yes\",'TSA Input'!J2870=\"Contingent\"),'TSA Input'!G2870,\"\"))","v":""},{"$f":"IF('TSA Input'!J2870=\"\",\"\",IF(OR('TSA Input'!J2870=\"Yes\",'TSA Input'!J2870=\"Contingent\"),'TSA Input'!F2870,\"\"))","v":""},"",{"$f":"IF('TSA Input'!J2870=\"\",\"\",IF(OR('TSA Input'!J2870=\"Yes\",'TSA Input'!J2870=\"Contingent\"),'TSA Input'!D2870,\"\"))","v":""},{"$f":"IF('TSA Input'!J2870=\"\",\"\",IF(OR('TSA Input'!J2870=\"Yes\",'TSA Input'!J2870=\"Contingent\"),'TSA Input'!G2870,\"\"))","v":""},{"$f":"IF('TSA Input'!J2870=\"\",\"\",IF(OR('TSA Input'!J2870=\"Yes\",'TSA Input'!J2870=\"Contingent\"),'TSA Input'!F2870,\"\"))","v":""},"","Required","Required"]
["",null,{"$f":"IF('TSA Input'!J2871=\"\",\"\",IF(OR('TSA Input'!J2871=\"Yes\",'TSA Input'!J2871=\"Contingent\"),'TSA Input'!B2871,\"Ineligible\"))","v":""},{"$f":"IF('TSA Input'!J2871=\"\",\"\",IF(OR('TSA Input'!J2871=\"Yes\",'TSA Input'!J2871=\"Contingent\"),'TSA Input'!I2871,\"\"))","v":""},{"$f":"IF('TSA Input'!J2871=\"\",\"\",IF(OR('TSA Input'!J2871=\"Yes\",'TSA Input'!J2871=\"Contingent\"),'TSA Input'!C2871,\"\"))","v":""},{"$f":"IF('TSA Input'!J2871=\"\",\"\",IF(OR('TSA Input'!J2871=\"Yes\",'TSA Input'!J2871=\"Contingent\"),'TSA Input'!D2871,\"\"))","v":""},{"$f":"IF('TSA Input'!J2871=\"\",\"\",IF(OR('TSA Input'!J2871=\"Yes\",'TSA Input'!J2871=\"Contingent\"),'TSA Input'!G2871,\"\"))","v":""},{"$f":"IF('TSA Input'!J2871=\"\",\"\",IF(OR('TSA Input'!J2871=\"Yes\",'TSA Input'!J2871=\"Contingent\"),'TSA Input'!F2871,\"\"))","v":""},"",{"$f":"IF('TSA Input'!J2871=\"\",\"\",IF(OR('TSA Input'!J2871=\"Yes\",'TSA Input'!J2871=\"Contingent\"),'TSA Input'!D2871,\"\"))","v":""},{"$f":"IF('TSA Input'!J2871=\"\",\"\",IF(OR('TSA Input'!J2871=\"Yes\",'TSA Input'!J2871=\"Contingent\"),'TSA Input'!G2871,\"\"))","v":""},{"$f":"IF('TSA Input'!J2871=\"\",\"\",IF(OR('TSA Input'!J2871=\"Yes\",'TSA Input'!J2871=\"Contingent\"),'TSA Input'!F2871,\"\"))","v":""},"","Required","Required"]
["",null,{"$f":"IF('TSA Input'!J2872=\"\",\"\",IF(OR('TSA Input'!J2872=\"Yes\",'TSA Input'!J2872=\"Contingent\"),'TSA Input'!B2872,\"Ineligible\"))","v":""},{"$f":"IF('TSA Input'!J2872=\"\",\"\",IF(OR('TSA Input'!J2872=\"Yes\",'TSA Input'!J2872=\"Contingent\"),'TSA Input'!I2872,\"\"))","v":""},{"$f":"IF('TSA Input'!J2872=\"\",\"\",IF(OR('TSA Input'!J2872=\"Yes\",'TSA Input'!J2872=\"Contingent\"),'TSA Input'!C2872,\"\"))","v":""},{"$f":"IF('TSA Input'!J2872=\"\",\"\",IF(OR('TSA Input'!J2872=\"Yes\",'TSA Input'!J2872=\"Contingent\"),'TSA Input'!D2872,\"\"))","v":""},{"$f":"IF('TSA Input'!J2872=\"\",\"\",IF(OR('TSA Input'!J2872=\"Yes\",'TSA Input'!J2872=\"Contingent\"),'TSA Input'!G2872,\"\"))","v":""},{"$f":"IF('TSA Input'!J2872=\"\",\"\",IF(OR('TSA Input'!J2872=\"Yes\",'TSA Input'!J2872=\"Contingent\"),'TSA Input'!F2872,\"\"))","v":""},"",{"$f":"IF('TSA Input'!J2872=\"\",\"\",IF(OR('TSA Input'!J2872=\"Yes\",'TSA Input'!J2872=\"Contingent\"),'TSA Input'!D2872,\"\"))","v":""},{"$f":"IF('TSA Input'!J2872=\"\",\"\",IF(OR('TSA Input'!J2872=\"Yes\",'TSA Input'!J2872=\"Contingent\"),'TSA Input'!G2872,\"\"))","v":""},{"$f":"IF('TSA Input'!J2872=\"\",\"\",IF(OR('TSA Input'!J2872=\"Yes\",'TSA Input'!J2872=\"Contingent\"),'TSA Input'!F2872,\"\"))","v":""},"","Required","Required"]
["",null,{"$f":"IF('TSA Input'!J2873=\"\",\"\",IF(OR('TSA Input'!J2873=\"Yes\",'TSA Input'!J2873=\"Contingent\"),'TSA Input'!B2873,\"Ineligible\"))","v":""},{"$f":"IF('TSA Input'!J2873=\"\",\"\",IF(OR('TSA Input'!J2873=\"Yes\",'TSA Input'!J2873=\"Contingent\"),'TSA Input'!I2873,\"\"))","v":""},{"$f":"IF('TSA Input'!J2873=\"\",\"\",IF(OR('TSA Input'!J2873=\"Yes\",'TSA Input'!J2873=\"Contingent\"),'TSA Input'!C2873,\"\"))","v":""},{"$f":"IF('TSA Input'!J2873=\"\",\"\",IF(OR('TSA Input'!J2873=\"Yes\",'TSA Input'!J2873=\"Contingent\"),'TSA Input'!D2873,\"\"))","v":""},{"$f":"IF('TSA Input'!J2873=\"\",\"\",IF(OR('TSA Input'!J2873=\"Yes\",'TSA Input'!J2873=\"Contingent\"),'TSA Input'!G2873,\"\"))","v":""},{"$f":"IF('TSA Input'!J2873=\"\",\"\",IF(OR('TSA Input'!J2873=\"Yes\",'TSA Input'!J2873=\"Contingent\"),'TSA Input'!F2873,\"\"))","v":""},"",{"$f":"IF('TSA Input'!J2873=\"\",\"\",IF(OR('TSA Input'!J2873=\"Yes\",'TSA Input'!J2873=\"Contingent\"),'TSA Input'!D2873,\"\"))","v":""},{"$f":"IF('TSA Input'!J2873=\"\",\"\",IF(OR('TSA Input'!J2873=\"Yes\",'TSA Input'!J2873=\"Contingent\"),'TSA Input'!G2873,\"\"))","v":""},{"$f":"IF('TSA Input'!J2873=\"\",\"\",IF(OR('TSA Input'!J2873=\"Yes\",'TSA Input'!J2873=\"Contingent\"),'TSA Input'!F2873,\"\"))","v":""},"","Required","Required"]
["",null,{"$f":"IF('TSA Input'!J2874=\"\",\"\",IF(OR('TSA Input'!J2874=\"Yes\",'TSA Input'!J2874=\"Contingent\"),'TSA Input'!B2874,\"Ineligible\"))","v":""},{"$f":"IF('TSA Input'!J2874=\"\",\"\",IF(OR('TSA Input'!J2874=\"Yes\",'TSA Input'!J2874=\"Contingent\"),'TSA Input'!I2874,\"\"))","v":""},{"$f":"IF('TSA Input'!J2874=\"\",\"\",IF(OR('TSA Input'!J2874=\"Yes\",'TSA Input'!J2874=\"Contingent\"),'TSA Input'!C2874,\"\"))","v":""},{"$f":"IF('TSA Input'!J2874=\"\",\"\",IF(OR('TSA Input'!J2874=\"Yes\",'TSA Input'!J2874=\"Contingent\"),'TSA Input'!D2874,\"\"))","v":""},{"$f":"IF('TSA Input'!J2874=\"\",\"\",IF(OR('TSA Input'!J2874=\"Yes\",'TSA Input'!J2874=\"Contingent\"),'TSA Input'!G2874,\"\"))","v":""},{"$f":"IF('TSA Input'!J2874=\"\",\"\",IF(OR('TSA Input'!J2874=\"Yes\",'TSA Input'!J2874=\"Contingent\"),'TSA Input'!F2874,\"\"))","v":""},"",{"$f":"IF('TSA Input'!J2874=\"\",\"\",IF(OR('TSA Input'!J2874=\"Yes\",'TSA Input'!J2874=\"Contingent\"),'TSA Input'!D2874,\"\"))","v":""},{"$f":"IF('TSA Input'!J2874=\"\",\"\",IF(OR('TSA Input'!J2874=\"Yes\",'TSA Input'!J2874=\"Contingent\"),'TSA Input'!G2874,\"\"))","v":""},{"$f":"IF('TSA Input'!J2874=\"\",\"\",IF(OR('TSA Input'!J2874=\"Yes\",'TSA Input'!J2874=\"Contingent\"),'TSA Input'!F2874,\"\"))","v":""},"","Required","Required"]
["",null,{"$f":"IF('TSA Input'!J2875=\"\",\"\",IF(OR('TSA Input'!J2875=\"Yes\",'TSA Input'!J2875=\"Contingent\"),'TSA Input'!B2875,\"Ineligible\"))","v":""},{"$f":"IF('TSA Input'!J2875=\"\",\"\",IF(OR('TSA Input'!J2875=\"Yes\",'TSA Input'!J2875=\"Contingent\"),'TSA Input'!I2875,\"\"))","v":""},{"$f":"IF('TSA Input'!J2875=\"\",\"\",IF(OR('TSA Input'!J2875=\"Yes\",'TSA Input'!J2875=\"Contingent\"),'TSA Input'!C2875,\"\"))","v":""},{"$f":"IF('TSA Input'!J2875=\"\",\"\",IF(OR('TSA Input'!J2875=\"Yes\",'TSA Input'!J2875=\"Contingent\"),'TSA Input'!D2875,\"\"))","v":""},{"$f":"IF('TSA Input'!J2875=\"\",\"\",IF(OR('TSA Input'!J2875=\"Yes\",'TSA Input'!J2875=\"Contingent\"),'TSA Input'!G2875,\"\"))","v":""},{"$f":"IF('TSA Input'!J2875=\"\",\"\",IF(OR('TSA Input'!J2875=\"Yes\",'TSA Input'!J2875=\"Contingent\"),'TSA Input'!F2875,\"\"))","v":""},"",{"$f":"IF('TSA Input'!J2875=\"\",\"\",IF(OR('TSA Input'!J2875=\"Yes\",'TSA Input'!J2875=\"Contingent\"),'TSA Input'!D2875,\"\"))","v":""},{"$f":"IF('TSA Input'!J2875=\"\",\"\",IF(OR('TSA Input'!J2875=\"Yes\",'TSA Input'!J2875=\"Contingent\"),'TSA Input'!G2875,\"\"))","v":""},{"$f":"IF('TSA Input'!J2875=\"\",\"\",IF(OR('TSA Input'!J2875=\"Yes\",'TSA Input'!J2875=\"Contingent\"),'TSA Input'!F2875,\"\"))","v":""},"","Required","Required"]
["",null,{"$f":"IF('TSA Input'!J2876=\"\",\"\",IF(OR('TSA Input'!J2876=\"Yes\",'TSA Input'!J2876=\"Contingent\"),'TSA Input'!B2876,\"Ineligible\"))","v":""},{"$f":"IF('TSA Input'!J2876=\"\",\"\",IF(OR('TSA Input'!J2876=\"Yes\",'TSA Input'!J2876=\"Contingent\"),'TSA Input'!I2876,\"\"))","v":""},{"$f":"IF('TSA Input'!J2876=\"\",\"\",IF(OR('TSA Input'!J2876=\"Yes\",'TSA Input'!J2876=\"Contingent\"),'TSA Input'!C2876,\"\"))","v":""},{"$f":"IF('TSA Input'!J2876=\"\",\"\",IF(OR('TSA Input'!J2876=\"Yes\",'TSA Input'!J2876=\"Contingent\"),'TSA Input'!D2876,\"\"))","v":""},{"$f":"IF('TSA Input'!J2876=\"\",\"\",IF(OR('TSA Input'!J2876=\"Yes\",'TSA Input'!J2876=\"Contingent\"),'TSA Input'!G2876,\"\"))","v":""},{"$f":"IF('TSA Input'!J2876=\"\",\"\",IF(OR('TSA Input'!J2876=\"Yes\",'TSA Input'!J2876=\"Contingent\"),'TSA Input'!F2876,\"\"))","v":""},"",{"$f":"IF('TSA Input'!J2876=\"\",\"\",IF(OR('TSA Input'!J2876=\"Yes\",'TSA Input'!J2876=\"Contingent\"),'TSA Input'!D2876,\"\"))","v":""},{"$f":"IF('TSA Input'!J2876=\"\",\"\",IF(OR('TSA Input'!J2876=\"Yes\",'TSA Input'!J2876=\"Contingent\"),'TSA Input'!G2876,\"\"))","v":""},{"$f":"IF('TSA Input'!J2876=\"\",\"\",IF(OR('TSA Input'!J2876=\"Yes\",'TSA Input'!J2876=\"Contingent\"),'TSA Input'!F2876,\"\"))","v":""},"","Required","Required"]
["",null,{"$f":"IF('TSA Input'!J2877=\"\",\"\",IF(OR('TSA Input'!J2877=\"Yes\",'TSA Input'!J2877=\"Contingent\"),'TSA Input'!B2877,\"Ineligible\"))","v":""},{"$f":"IF('TSA Input'!J2877=\"\",\"\",IF(OR('TSA Input'!J2877=\"Yes\",'TSA Input'!J2877=\"Contingent\"),'TSA Input'!I2877,\"\"))","v":""},{"$f":"IF('TSA Input'!J2877=\"\",\"\",IF(OR('TSA Input'!J2877=\"Yes\",'TSA Input'!J2877=\"Contingent\"),'TSA Input'!C2877,\"\"))","v":""},{"$f":"IF('TSA Input'!J2877=\"\",\"\",IF(OR('TSA Input'!J2877=\"Yes\",'TSA Input'!J2877=\"Contingent\"),'TSA Input'!D2877,\"\"))","v":""},{"$f":"IF('TSA Input'!J2877=\"\",\"\",IF(OR('TSA Input'!J2877=\"Yes\",'TSA Input'!J2877=\"Contingent\"),'TSA Input'!G2877,\"\"))","v":""},{"$f":"IF('TSA Input'!J2877=\"\",\"\",IF(OR('TSA Input'!J2877=\"Yes\",'TSA Input'!J2877=\"Contingent\"),'TSA Input'!F2877,\"\"))","v":""},"",{"$f":"IF('TSA Input'!J2877=\"\",\"\",IF(OR('TSA Input'!J2877=\"Yes\",'TSA Input'!J2877=\"Contingent\"),'TSA Input'!D2877,\"\"))","v":""},{"$f":"IF('TSA Input'!J2877=\"\",\"\",IF(OR('TSA Input'!J2877=\"Yes\",'TSA Input'!J2877=\"Contingent\"),'TSA Input'!G2877,\"\"))","v":""},{"$f":"IF('TSA Input'!J2877=\"\",\"\",IF(OR('TSA Input'!J2877=\"Yes\",'TSA Input'!J2877=\"Contingent\"),'TSA Input'!F2877,\"\"))","v":""},"","Required","Required"]
["",null,{"$f":"IF('TSA Input'!J2878=\"\",\"\",IF(OR('TSA Input'!J2878=\"Yes\",'TSA Input'!J2878=\"Contingent\"),'TSA Input'!B2878,\"Ineligible\"))","v":""},{"$f":"IF('TSA Input'!J2878=\"\",\"\",IF(OR('TSA Input'!J2878=\"Yes\",'TSA Input'!J2878=\"Contingent\"),'TSA Input'!I2878,\"\"))","v":""},{"$f":"IF('TSA Input'!J2878=\"\",\"\",IF(OR('TSA Input'!J2878=\"Yes\",'TSA Input'!J2878=\"Contingent\"),'TSA Input'!C2878,\"\"))","v":""},{"$f":"IF('TSA Input'!J2878=\"\",\"\",IF(OR('TSA Input'!J2878=\"Yes\",'TSA Input'!J2878=\"Contingent\"),'TSA Input'!D2878,\"\"))","v":""},{"$f":"IF('TSA Input'!J2878=\"\",\"\",IF(OR('TSA Input'!J2878=\"Yes\",'TSA Input'!J2878=\"Contingent\"),'TSA Input'!G2878,\"\"))","v":""},{"$f":"IF('TSA Input'!J2878=\"\",\"\",IF(OR('TSA Input'!J2878=\"Yes\",'TSA Input'!J2878=\"Contingent\"),'TSA Input'!F2878,\"\"))","v":""},"",{"$f":"IF('TSA Input'!J2878=\"\",\"\",IF(OR('TSA Input'!J2878=\"Yes\",'TSA Input'!J2878=\"Contingent\"),'TSA Input'!D2878,\"\"))","v":""},{"$f":"IF('TSA Input'!J2878=\"\",\"\",IF(OR('TSA Input'!J2878=\"Yes\",'TSA Input'!J2878=\"Contingent\"),'TSA Input'!G2878,\"\"))","v":""},{"$f":"IF('TSA Input'!J2878=\"\",\"\",IF(OR('TSA Input'!J2878=\"Yes\",'TSA Input'!J2878=\"Contingent\"),'TSA Input'!F2878,\"\"))","v":""},"","Required","Required"]
["",null,{"$f":"IF('TSA Input'!J2879=\"\",\"\",IF(OR('TSA Input'!J2879=\"Yes\",'TSA Input'!J2879=\"Contingent\"),'TSA Input'!B2879,\"Ineligible\"))","v":""},{"$f":"IF('TSA Input'!J2879=\"\",\"\",IF(OR('TSA Input'!J2879=\"Yes\",'TSA Input'!J2879=\"Contingent\"),'TSA Input'!I2879,\"\"))","v":""},{"$f":"IF('TSA Input'!J2879=\"\",\"\",IF(OR('TSA Input'!J2879=\"Yes\",'TSA Input'!J2879=\"Contingent\"),'TSA Input'!C2879,\"\"))","v":""},{"$f":"IF('TSA Input'!J2879=\"\",\"\",IF(OR('TSA Input'!J2879=\"Yes\",'TSA Input'!J2879=\"Contingent\"),'TSA Input'!D2879,\"\"))","v":""},{"$f":"IF('TSA Input'!J2879=\"\",\"\",IF(OR('TSA Input'!J2879=\"Yes\",'TSA Input'!J2879=\"Contingent\"),'TSA Input'!G2879,\"\"))","v":""},{"$f":"IF('TSA Input'!J2879=\"\",\"\",IF(OR('TSA Input'!J2879=\"Yes\",'TSA Input'!J2879=\"Contingent\"),'TSA Input'!F2879,\"\"))","v":""},"",{"$f":"IF('TSA Input'!J2879=\"\",\"\",IF(OR('TSA Input'!J2879=\"Yes\",'TSA Input'!J2879=\"Contingent\"),'TSA Input'!D2879,\"\"))","v":""},{"$f":"IF('TSA Input'!J2879=\"\",\"\",IF(OR('TSA Input'!J2879=\"Yes\",'TSA Input'!J2879=\"Contingent\"),'TSA Input'!G2879,\"\"))","v":""},{"$f":"IF('TSA Input'!J2879=\"\",\"\",IF(OR('TSA Input'!J2879=\"Yes\",'TSA Input'!J2879=\"Contingent\"),'TSA Input'!F2879,\"\"))","v":""},"","Required","Required"]
["",null,{"$f":"IF('TSA Input'!J2880=\"\",\"\",IF(OR('TSA Input'!J2880=\"Yes\",'TSA Input'!J2880=\"Contingent\"),'TSA Input'!B2880,\"Ineligible\"))","v":""},{"$f":"IF('TSA Input'!J2880=\"\",\"\",IF(OR('TSA Input'!J2880=\"Yes\",'TSA Input'!J2880=\"Contingent\"),'TSA Input'!I2880,\"\"))","v":""},{"$f":"IF('TSA Input'!J2880=\"\",\"\",IF(OR('TSA Input'!J2880=\"Yes\",'TSA Input'!J2880=\"Contingent\"),'TSA Input'!C2880,\"\"))","v":""},{"$f":"IF('TSA Input'!J2880=\"\",\"\",IF(OR('TSA Input'!J2880=\"Yes\",'TSA Input'!J2880=\"Contingent\"),'TSA Input'!D2880,\"\"))","v":""},{"$f":"IF('TSA Input'!J2880=\"\",\"\",IF(OR('TSA Input'!J2880=\"Yes\",'TSA Input'!J2880=\"Contingent\"),'TSA Input'!G2880,\"\"))","v":""},{"$f":"IF('TSA Input'!J2880=\"\",\"\",IF(OR('TSA Input'!J2880=\"Yes\",'TSA Input'!J2880=\"Contingent\"),'TSA Input'!F2880,\"\"))","v":""},"",{"$f":"IF('TSA Input'!J2880=\"\",\"\",IF(OR('TSA Input'!J2880=\"Yes\",'TSA Input'!J2880=\"Contingent\"),'TSA Input'!D2880,\"\"))","v":""},{"$f":"IF('TSA Input'!J2880=\"\",\"\",IF(OR('TSA Input'!J2880=\"Yes\",'TSA Input'!J2880=\"Contingent\"),'TSA Input'!G2880,\"\"))","v":""},{"$f":"IF('TSA Input'!J2880=\"\",\"\",IF(OR('TSA Input'!J2880=\"Yes\",'TSA Input'!J2880=\"Contingent\"),'TSA Input'!F2880,\"\"))","v":""},"","Required","Required"]
["",null,{"$f":"IF('TSA Input'!J2881=\"\",\"\",IF(OR('TSA Input'!J2881=\"Yes\",'TSA Input'!J2881=\"Contingent\"),'TSA Input'!B2881,\"Ineligible\"))","v":""},{"$f":"IF('TSA Input'!J2881=\"\",\"\",IF(OR('TSA Input'!J2881=\"Yes\",'TSA Input'!J2881=\"Contingent\"),'TSA Input'!I2881,\"\"))","v":""},{"$f":"IF('TSA Input'!J2881=\"\",\"\",IF(OR('TSA Input'!J2881=\"Yes\",'TSA Input'!J2881=\"Contingent\"),'TSA Input'!C2881,\"\"))","v":""},{"$f":"IF('TSA Input'!J2881=\"\",\"\",IF(OR('TSA Input'!J2881=\"Yes\",'TSA Input'!J2881=\"Contingent\"),'TSA Input'!D2881,\"\"))","v":""},{"$f":"IF('TSA Input'!J2881=\"\",\"\",IF(OR('TSA Input'!J2881=\"Yes\",'TSA Input'!J2881=\"Contingent\"),'TSA Input'!G2881,\"\"))","v":""},{"$f":"IF('TSA Input'!J2881=\"\",\"\",IF(OR('TSA Input'!J2881=\"Yes\",'TSA Input'!J2881=\"Contingent\"),'TSA Input'!F2881,\"\"))","v":""},"",{"$f":"IF('TSA Input'!J2881=\"\",\"\",IF(OR('TSA Input'!J2881=\"Yes\",'TSA Input'!J2881=\"Contingent\"),'TSA Input'!D2881,\"\"))","v":""},{"$f":"IF('TSA Input'!J2881=\"\",\"\",IF(OR('TSA Input'!J2881=\"Yes\",'TSA Input'!J2881=\"Contingent\"),'TSA Input'!G2881,\"\"))","v":""},{"$f":"IF('TSA Input'!J2881=\"\",\"\",IF(OR('TSA Input'!J2881=\"Yes\",'TSA Input'!J2881=\"Contingent\"),'TSA Input'!F2881,\"\"))","v":""},"","Required","Required"]
["",null,{"$f":"IF('TSA Input'!J2882=\"\",\"\",IF(OR('TSA Input'!J2882=\"Yes\",'TSA Input'!J2882=\"Contingent\"),'TSA Input'!B2882,\"Ineligible\"))","v":""},{"$f":"IF('TSA Input'!J2882=\"\",\"\",IF(OR('TSA Input'!J2882=\"Yes\",'TSA Input'!J2882=\"Contingent\"),'TSA Input'!I2882,\"\"))","v":""},{"$f":"IF('TSA Input'!J2882=\"\",\"\",IF(OR('TSA Input'!J2882=\"Yes\",'TSA Input'!J2882=\"Contingent\"),'TSA Input'!C2882,\"\"))","v":""},{"$f":"IF('TSA Input'!J2882=\"\",\"\",IF(OR('TSA Input'!J2882=\"Yes\",'TSA Input'!J2882=\"Contingent\"),'TSA Input'!D2882,\"\"))","v":""},{"$f":"IF('TSA Input'!J2882=\"\",\"\",IF(OR('TSA Input'!J2882=\"Yes\",'TSA Input'!J2882=\"Contingent\"),'TSA Input'!G2882,\"\"))","v":""},{"$f":"IF('TSA Input'!J2882=\"\",\"\",IF(OR('TSA Input'!J2882=\"Yes\",'TSA Input'!J2882=\"Contingent\"),'TSA Input'!F2882,\"\"))","v":""},"",{"$f":"IF('TSA Input'!J2882=\"\",\"\",IF(OR('TSA Input'!J2882=\"Yes\",'TSA Input'!J2882=\"Contingent\"),'TSA Input'!D2882,\"\"))","v":""},{"$f":"IF('TSA Input'!J2882=\"\",\"\",IF(OR('TSA Input'!J2882=\"Yes\",'TSA Input'!J2882=\"Contingent\"),'TSA Input'!G2882,\"\"))","v":""},{"$f":"IF('TSA Input'!J2882=\"\",\"\",IF(OR('TSA Input'!J2882=\"Yes\",'TSA Input'!J2882=\"Contingent\"),'TSA Input'!F2882,\"\"))","v":""},"","Required","Required"]
["",null,{"$f":"IF('TSA Input'!J2883=\"\",\"\",IF(OR('TSA Input'!J2883=\"Yes\",'TSA Input'!J2883=\"Contingent\"),'TSA Input'!B2883,\"Ineligible\"))","v":""},{"$f":"IF('TSA Input'!J2883=\"\",\"\",IF(OR('TSA Input'!J2883=\"Yes\",'TSA Input'!J2883=\"Contingent\"),'TSA Input'!I2883,\"\"))","v":""},{"$f":"IF('TSA Input'!J2883=\"\",\"\",IF(OR('TSA Input'!J2883=\"Yes\",'TSA Input'!J2883=\"Contingent\"),'TSA Input'!C2883,\"\"))","v":""},{"$f":"IF('TSA Input'!J2883=\"\",\"\",IF(OR('TSA Input'!J2883=\"Yes\",'TSA Input'!J2883=\"Contingent\"),'TSA Input'!D2883,\"\"))","v":""},{"$f":"IF('TSA Input'!J2883=\"\",\"\",IF(OR('TSA Input'!J2883=\"Yes\",'TSA Input'!J2883=\"Contingent\"),'TSA Input'!G2883,\"\"))","v":""},{"$f":"IF('TSA Input'!J2883=\"\",\"\",IF(OR('TSA Input'!J2883=\"Yes\",'TSA Input'!J2883=\"Contingent\"),'TSA Input'!F2883,\"\"))","v":""},"",{"$f":"IF('TSA Input'!J2883=\"\",\"\",IF(OR('TSA Input'!J2883=\"Yes\",'TSA Input'!J2883=\"Contingent\"),'TSA Input'!D2883,\"\"))","v":""},{"$f":"IF('TSA Input'!J2883=\"\",\"\",IF(OR('TSA Input'!J2883=\"Yes\",'TSA Input'!J2883=\"Contingent\"),'TSA Input'!G2883,\"\"))","v":""},{"$f":"IF('TSA Input'!J2883=\"\",\"\",IF(OR('TSA Input'!J2883=\"Yes\",'TSA Input'!J2883=\"Contingent\"),'TSA Input'!F2883,\"\"))","v":""},"","Required","Required"]
["",null,{"$f":"IF('TSA Input'!J2884=\"\",\"\",IF(OR('TSA Input'!J2884=\"Yes\",'TSA Input'!J2884=\"Contingent\"),'TSA Input'!B2884,\"Ineligible\"))","v":""},{"$f":"IF('TSA Input'!J2884=\"\",\"\",IF(OR('TSA Input'!J2884=\"Yes\",'TSA Input'!J2884=\"Contingent\"),'TSA Input'!I2884,\"\"))","v":""},{"$f":"IF('TSA Input'!J2884=\"\",\"\",IF(OR('TSA Input'!J2884=\"Yes\",'TSA Input'!J2884=\"Contingent\"),'TSA Input'!C2884,\"\"))","v":""},{"$f":"IF('TSA Input'!J2884=\"\",\"\",IF(OR('TSA Input'!J2884=\"Yes\",'TSA Input'!J2884=\"Contingent\"),'TSA Input'!D2884,\"\"))","v":""},{"$f":"IF('TSA Input'!J2884=\"\",\"\",IF(OR('TSA Input'!J2884=\"Yes\",'TSA Input'!J2884=\"Contingent\"),'TSA Input'!G2884,\"\"))","v":""},{"$f":"IF('TSA Input'!J2884=\"\",\"\",IF(OR('TSA Input'!J2884=\"Yes\",'TSA Input'!J2884=\"Contingent\"),'TSA Input'!F2884,\"\"))","v":""},{"$f":"IF($C2922=\"\",\"\",SUM(F2922:H2922))","v":""},{"$f":"IF('TSA Input'!J2884=\"\",\"\",IF(OR('TSA Input'!J2884=\"Yes\",'TSA Input'!J2884=\"Contingent\"),'TSA Input'!D2884,\"\"))","v":""},{"$f":"IF('TSA Input'!J2884=\"\",\"\",IF(OR('TSA Input'!J2884=\"Yes\",'TSA Input'!J2884=\"Contingent\"),'TSA Input'!G2884,\"\"))","v":""},{"$f":"IF('TSA Input'!J2884=\"\",\"\",IF(OR('TSA Input'!J2884=\"Yes\",'TSA Input'!J2884=\"Contingent\"),'TSA Input'!F2884,\"\"))","v":""},{"$f":"IF($C2922=\"\",\"\",SUM(J2922:L2922))","v":""},"Required","Required"]
["",null,{"$f":"IF('TSA Input'!J2885=\"\",\"\",IF(OR('TSA Input'!J2885=\"Yes\",'TSA Input'!J2885=\"Contingent\"),'TSA Input'!B2885,\"Ineligible\"))","v":""},{"$f":"IF('TSA Input'!J2885=\"\",\"\",IF(OR('TSA Input'!J2885=\"Yes\",'TSA Input'!J2885=\"Contingent\"),'TSA Input'!I2885,\"\"))","v":""},{"$f":"IF('TSA Input'!J2885=\"\",\"\",IF(OR('TSA Input'!J2885=\"Yes\",'TSA Input'!J2885=\"Contingent\"),'TSA Input'!C2885,\"\"))","v":""},{"$f":"IF('TSA Input'!J2885=\"\",\"\",IF(OR('TSA Input'!J2885=\"Yes\",'TSA Input'!J2885=\"Contingent\"),'TSA Input'!D2885,\"\"))","v":""},{"$f":"IF('TSA Input'!J2885=\"\",\"\",IF(OR('TSA Input'!J2885=\"Yes\",'TSA Input'!J2885=\"Contingent\"),'TSA Input'!G2885,\"\"))","v":""},{"$f":"IF('TSA Input'!J2885=\"\",\"\",IF(OR('TSA Input'!J2885=\"Yes\",'TSA Input'!J2885=\"Contingent\"),'TSA Input'!F2885,\"\"))","v":""},"",{"$f":"IF('TSA Input'!J2885=\"\",\"\",IF(OR('TSA Input'!J2885=\"Yes\",'TSA Input'!J2885=\"Contingent\"),'TSA Input'!D2885,\"\"))","v":""},{"$f":"IF('TSA Input'!J2885=\"\",\"\",IF(OR('TSA Input'!J2885=\"Yes\",'TSA Input'!J2885=\"Contingent\"),'TSA Input'!G2885,\"\"))","v":""},{"$f":"IF('TSA Input'!J2885=\"\",\"\",IF(OR('TSA Input'!J2885=\"Yes\",'TSA Input'!J2885=\"Contingent\"),'TSA Input'!F2885,\"\"))","v":""},"","Required","Required"]
["",null,{"$f":"IF('TSA Input'!J2886=\"\",\"\",IF(OR('TSA Input'!J2886=\"Yes\",'TSA Input'!J2886=\"Contingent\"),'TSA Input'!B2886,\"Ineligible\"))","v":""},{"$f":"IF('TSA Input'!J2886=\"\",\"\",IF(OR('TSA Input'!J2886=\"Yes\",'TSA Input'!J2886=\"Contingent\"),'TSA Input'!I2886,\"\"))","v":""},{"$f":"IF('TSA Input'!J2886=\"\",\"\",IF(OR('TSA Input'!J2886=\"Yes\",'TSA Input'!J2886=\"Contingent\"),'TSA Input'!C2886,\"\"))","v":""},{"$f":"IF('TSA Input'!J2886=\"\",\"\",IF(OR('TSA Input'!J2886=\"Yes\",'TSA Input'!J2886=\"Contingent\"),'TSA Input'!D2886,\"\"))","v":""},{"$f":"IF('TSA Input'!J2886=\"\",\"\",IF(OR('TSA Input'!J2886=\"Yes\",'TSA Input'!J2886=\"Contingent\"),'TSA Input'!G2886,\"\"))","v":""},{"$f":"IF('TSA Input'!J2886=\"\",\"\",IF(OR('TSA Input'!J2886=\"Yes\",'TSA Input'!J2886=\"Contingent\"),'TSA Input'!F2886,\"\"))","v":""},"",{"$f":"IF('TSA Input'!J2886=\"\",\"\",IF(OR('TSA Input'!J2886=\"Yes\",'TSA Input'!J2886=\"Contingent\"),'TSA Input'!D2886,\"\"))","v":""},{"$f":"IF('TSA Input'!J2886=\"\",\"\",IF(OR('TSA Input'!J2886=\"Yes\",'TSA Input'!J2886=\"Contingent\"),'TSA Input'!G2886,\"\"))","v":""},{"$f":"IF('TSA Input'!J2886=\"\",\"\",IF(OR('TSA Input'!J2886=\"Yes\",'TSA Input'!J2886=\"Contingent\"),'TSA Input'!F2886,\"\"))","v":""},"","Required","Required"]
["",null,{"$f":"IF('TSA Input'!J2887=\"\",\"\",IF(OR('TSA Input'!J2887=\"Yes\",'TSA Input'!J2887=\"Contingent\"),'TSA Input'!B2887,\"Ineligible\"))","v":""},{"$f":"IF('TSA Input'!J2887=\"\",\"\",IF(OR('TSA Input'!J2887=\"Yes\",'TSA Input'!J2887=\"Contingent\"),'TSA Input'!I2887,\"\"))","v":""},{"$f":"IF('TSA Input'!J2887=\"\",\"\",IF(OR('TSA Input'!J2887=\"Yes\",'TSA Input'!J2887=\"Contingent\"),'TSA Input'!C2887,\"\"))","v":""},{"$f":"IF('TSA Input'!J2887=\"\",\"\",IF(OR('TSA Input'!J2887=\"Yes\",'TSA Input'!J2887=\"Contingent\"),'TSA Input'!D2887,\"\"))","v":""},{"$f":"IF('TSA Input'!J2887=\"\",\"\",IF(OR('TSA Input'!J2887=\"Yes\",'TSA Input'!J2887=\"Contingent\"),'TSA Input'!G2887,\"\"))","v":""},{"$f":"IF('TSA Input'!J2887=\"\",\"\",IF(OR('TSA Input'!J2887=\"Yes\",'TSA Input'!J2887=\"Contingent\"),'TSA Input'!F2887,\"\"))","v":""},"",{"$f":"IF('TSA Input'!J2887=\"\",\"\",IF(OR('TSA Input'!J2887=\"Yes\",'TSA Input'!J2887=\"Contingent\"),'TSA Input'!D2887,\"\"))","v":""},{"$f":"IF('TSA Input'!J2887=\"\",\"\",IF(OR('TSA Input'!J2887=\"Yes\",'TSA Input'!J2887=\"Contingent\"),'TSA Input'!G2887,\"\"))","v":""},{"$f":"IF('TSA Input'!J2887=\"\",\"\",IF(OR('TSA Input'!J2887=\"Yes\",'TSA Input'!J2887=\"Contingent\"),'TSA Input'!F2887,\"\"))","v":""},"","Required","Required"]
["",null,{"$f":"IF('TSA Input'!J2888=\"\",\"\",IF(OR('TSA Input'!J2888=\"Yes\",'TSA Input'!J2888=\"Contingent\"),'TSA Input'!B2888,\"Ineligible\"))","v":""},{"$f":"IF('TSA Input'!J2888=\"\",\"\",IF(OR('TSA Input'!J2888=\"Yes\",'TSA Input'!J2888=\"Contingent\"),'TSA Input'!I2888,\"\"))","v":""},{"$f":"IF('TSA Input'!J2888=\"\",\"\",IF(OR('TSA Input'!J2888=\"Yes\",'TSA Input'!J2888=\"Contingent\"),'TSA Input'!C2888,\"\"))","v":""},{"$f":"IF('TSA Input'!J2888=\"\",\"\",IF(OR('TSA Input'!J2888=\"Yes\",'TSA Input'!J2888=\"Contingent\"),'TSA Input'!D2888,\"\"))","v":""},{"$f":"IF('TSA Input'!J2888=\"\",\"\",IF(OR('TSA Input'!J2888=\"Yes\",'TSA Input'!J2888=\"Contingent\"),'TSA Input'!G2888,\"\"))","v":""},{"$f":"IF('TSA Input'!J2888=\"\",\"\",IF(OR('TSA Input'!J2888=\"Yes\",'TSA Input'!J2888=\"Contingent\"),'TSA Input'!F2888,\"\"))","v":""},"",{"$f":"IF('TSA Input'!J2888=\"\",\"\",IF(OR('TSA Input'!J2888=\"Yes\",'TSA Input'!J2888=\"Contingent\"),'TSA Input'!D2888,\"\"))","v":""},{"$f":"IF('TSA Input'!J2888=\"\",\"\",IF(OR('TSA Input'!J2888=\"Yes\",'TSA Input'!J2888=\"Contingent\"),'TSA Input'!G2888,\"\"))","v":""},{"$f":"IF('TSA Input'!J2888=\"\",\"\",IF(OR('TSA Input'!J2888=\"Yes\",'TSA Input'!J2888=\"Contingent\"),'TSA Input'!F2888,\"\"))","v":""},"","Required","Required"]
["",null,{"$f":"IF('TSA Input'!J2889=\"\",\"\",IF(OR('TSA Input'!J2889=\"Yes\",'TSA Input'!J2889=\"Contingent\"),'TSA Input'!B2889,\"Ineligible\"))","v":""},{"$f":"IF('TSA Input'!J2889=\"\",\"\",IF(OR('TSA Input'!J2889=\"Yes\",'TSA Input'!J2889=\"Contingent\"),'TSA Input'!I2889,\"\"))","v":""},{"$f":"IF('TSA Input'!J2889=\"\",\"\",IF(OR('TSA Input'!J2889=\"Yes\",'TSA Input'!J2889=\"Contingent\"),'TSA Input'!C2889,\"\"))","v":""},{"$f":"IF('TSA Input'!J2889=\"\",\"\",IF(OR('TSA Input'!J2889=\"Yes\",'TSA Input'!J2889=\"Contingent\"),'TSA Input'!D2889,\"\"))","v":""},{"$f":"IF('TSA Input'!J2889=\"\",\"\",IF(OR('TSA Input'!J2889=\"Yes\",'TSA Input'!J2889=\"Contingent\"),'TSA Input'!G2889,\"\"))","v":""},{"$f":"IF('TSA Input'!J2889=\"\",\"\",IF(OR('TSA Input'!J2889=\"Yes\",'TSA Input'!J2889=\"Contingent\"),'TSA Input'!F2889,\"\"))","v":""},"",{"$f":"IF('TSA Input'!J2889=\"\",\"\",IF(OR('TSA Input'!J2889=\"Yes\",'TSA Input'!J2889=\"Contingent\"),'TSA Input'!D2889,\"\"))","v":""},{"$f":"IF('TSA Input'!J2889=\"\",\"\",IF(OR('TSA Input'!J2889=\"Yes\",'TSA Input'!J2889=\"Contingent\"),'TSA Input'!G2889,\"\"))","v":""},{"$f":"IF('TSA Input'!J2889=\"\",\"\",IF(OR('TSA Input'!J2889=\"Yes\",'TSA Input'!J2889=\"Contingent\"),'TSA Input'!F2889,\"\"))","v":""},"","Required","Required"]
["",null,{"$f":"IF('TSA Input'!J2890=\"\",\"\",IF(OR('TSA Input'!J2890=\"Yes\",'TSA Input'!J2890=\"Contingent\"),'TSA Input'!B2890,\"Ineligible\"))","v":""},{"$f":"IF('TSA Input'!J2890=\"\",\"\",IF(OR('TSA Input'!J2890=\"Yes\",'TSA Input'!J2890=\"Contingent\"),'TSA Input'!I2890,\"\"))","v":""},{"$f":"IF('TSA Input'!J2890=\"\",\"\",IF(OR('TSA Input'!J2890=\"Yes\",'TSA Input'!J2890=\"Contingent\"),'TSA Input'!C2890,\"\"))","v":""},{"$f":"IF('TSA Input'!J2890=\"\",\"\",IF(OR('TSA Input'!J2890=\"Yes\",'TSA Input'!J2890=\"Contingent\"),'TSA Input'!D2890,\"\"))","v":""},{"$f":"IF('TSA Input'!J2890=\"\",\"\",IF(OR('TSA Input'!J2890=\"Yes\",'TSA Input'!J2890=\"Contingent\"),'TSA Input'!G2890,\"\"))","v":""},{"$f":"IF('TSA Input'!J2890=\"\",\"\",IF(OR('TSA Input'!J2890=\"Yes\",'TSA Input'!J2890=\"Contingent\"),'TSA Input'!F2890,\"\"))","v":""},"",{"$f":"IF('TSA Input'!J2890=\"\",\"\",IF(OR('TSA Input'!J2890=\"Yes\",'TSA Input'!J2890=\"Contingent\"),'TSA Input'!D2890,\"\"))","v":""},{"$f":"IF('TSA Input'!J2890=\"\",\"\",IF(OR('TSA Input'!J2890=\"Yes\",'TSA Input'!J2890=\"Contingent\"),'TSA Input'!G2890,\"\"))","v":""},{"$f":"IF('TSA Input'!J2890=\"\",\"\",IF(OR('TSA Input'!J2890=\"Yes\",'TSA Input'!J2890=\"Contingent\"),'TSA Input'!F2890,\"\"))","v":""},"","Required","Required"]
["",null,{"$f":"IF('TSA Input'!J2891=\"\",\"\",IF(OR('TSA Input'!J2891=\"Yes\",'TSA Input'!J2891=\"Contingent\"),'TSA Input'!B2891,\"Ineligible\"))","v":""},{"$f":"IF('TSA Input'!J2891=\"\",\"\",IF(OR('TSA Input'!J2891=\"Yes\",'TSA Input'!J2891=\"Contingent\"),'TSA Input'!I2891,\"\"))","v":""},{"$f":"IF('TSA Input'!J2891=\"\",\"\",IF(OR('TSA Input'!J2891=\"Yes\",'TSA Input'!J2891=\"Contingent\"),'TSA Input'!C2891,\"\"))","v":""},{"$f":"IF('TSA Input'!J2891=\"\",\"\",IF(OR('TSA Input'!J2891=\"Yes\",'TSA Input'!J2891=\"Contingent\"),'TSA Input'!D2891,\"\"))","v":""},{"$f":"IF('TSA Input'!J2891=\"\",\"\",IF(OR('TSA Input'!J2891=\"Yes\",'TSA Input'!J2891=\"Contingent\"),'TSA Input'!G2891,\"\"))","v":""},{"$f":"IF('TSA Input'!J2891=\"\",\"\",IF(OR('TSA Input'!J2891=\"Yes\",'TSA Input'!J2891=\"Contingent\"),'TSA Input'!F2891,\"\"))","v":""},"",{"$f":"IF('TSA Input'!J2891=\"\",\"\",IF(OR('TSA Input'!J2891=\"Yes\",'TSA Input'!J2891=\"Contingent\"),'TSA Input'!D2891,\"\"))","v":""},{"$f":"IF('TSA Input'!J2891=\"\",\"\",IF(OR('TSA Input'!J2891=\"Yes\",'TSA Input'!J2891=\"Contingent\"),'TSA Input'!G2891,\"\"))","v":""},{"$f":"IF('TSA Input'!J2891=\"\",\"\",IF(OR('TSA Input'!J2891=\"Yes\",'TSA Input'!J2891=\"Contingent\"),'TSA Input'!F2891,\"\"))","v":""},"","Required","Required"]
["",null,{"$f":"IF('TSA Input'!J2892=\"\",\"\",IF(OR('TSA Input'!J2892=\"Yes\",'TSA Input'!J2892=\"Contingent\"),'TSA Input'!B2892,\"Ineligible\"))","v":""},{"$f":"IF('TSA Input'!J2892=\"\",\"\",IF(OR('TSA Input'!J2892=\"Yes\",'TSA Input'!J2892=\"Contingent\"),'TSA Input'!I2892,\"\"))","v":""},{"$f":"IF('TSA Input'!J2892=\"\",\"\",IF(OR('TSA Input'!J2892=\"Yes\",'TSA Input'!J2892=\"Contingent\"),'TSA Input'!C2892,\"\"))","v":""},{"$f":"IF('TSA Input'!J2892=\"\",\"\",IF(OR('TSA Input'!J2892=\"Yes\",'TSA Input'!J2892=\"Contingent\"),'TSA Input'!D2892,\"\"))","v":""},{"$f":"IF('TSA Input'!J2892=\"\",\"\",IF(OR('TSA Input'!J2892=\"Yes\",'TSA Input'!J2892=\"Contingent\"),'TSA Input'!G2892,\"\"))","v":""},{"$f":"IF('TSA Input'!J2892=\"\",\"\",IF(OR('TSA Input'!J2892=\"Yes\",'TSA Input'!J2892=\"Contingent\"),'TSA Input'!F2892,\"\"))","v":""},"",{"$f":"IF('TSA Input'!J2892=\"\",\"\",IF(OR('TSA Input'!J2892=\"Yes\",'TSA Input'!J2892=\"Contingent\"),'TSA Input'!D2892,\"\"))","v":""},{"$f":"IF('TSA Input'!J2892=\"\",\"\",IF(OR('TSA Input'!J2892=\"Yes\",'TSA Input'!J2892=\"Contingent\"),'TSA Input'!G2892,\"\"))","v":""},{"$f":"IF('TSA Input'!J2892=\"\",\"\",IF(OR('TSA Input'!J2892=\"Yes\",'TSA Input'!J2892=\"Contingent\"),'TSA Input'!F2892,\"\"))","v":""},"","Required","Required"]
["",null,{"$f":"IF('TSA Input'!J2893=\"\",\"\",IF(OR('TSA Input'!J2893=\"Yes\",'TSA Input'!J2893=\"Contingent\"),'TSA Input'!B2893,\"Ineligible\"))","v":""},{"$f":"IF('TSA Input'!J2893=\"\",\"\",IF(OR('TSA Input'!J2893=\"Yes\",'TSA Input'!J2893=\"Contingent\"),'TSA Input'!I2893,\"\"))","v":""},{"$f":"IF('TSA Input'!J2893=\"\",\"\",IF(OR('TSA Input'!J2893=\"Yes\",'TSA Input'!J2893=\"Contingent\"),'TSA Input'!C2893,\"\"))","v":""},{"$f":"IF('TSA Input'!J2893=\"\",\"\",IF(OR('TSA Input'!J2893=\"Yes\",'TSA Input'!J2893=\"Contingent\"),'TSA Input'!D2893,\"\"))","v":""},{"$f":"IF('TSA Input'!J2893=\"\",\"\",IF(OR('TSA Input'!J2893=\"Yes\",'TSA Input'!J2893=\"Contingent\"),'TSA Input'!G2893,\"\"))","v":""},{"$f":"IF('TSA Input'!J2893=\"\",\"\",IF(OR('TSA Input'!J2893=\"Yes\",'TSA Input'!J2893=\"Contingent\"),'TSA Input'!F2893,\"\"))","v":""},"",{"$f":"IF('TSA Input'!J2893=\"\",\"\",IF(OR('TSA Input'!J2893=\"Yes\",'TSA Input'!J2893=\"Contingent\"),'TSA Input'!D2893,\"\"))","v":""},{"$f":"IF('TSA Input'!J2893=\"\",\"\",IF(OR('TSA Input'!J2893=\"Yes\",'TSA Input'!J2893=\"Contingent\"),'TSA Input'!G2893,\"\"))","v":""},{"$f":"IF('TSA Input'!J2893=\"\",\"\",IF(OR('TSA Input'!J2893=\"Yes\",'TSA Input'!J2893=\"Contingent\"),'TSA Input'!F2893,\"\"))","v":""},"","Required","Required"]
["",null,{"$f":"IF('TSA Input'!J2894=\"\",\"\",IF(OR('TSA Input'!J2894=\"Yes\",'TSA Input'!J2894=\"Contingent\"),'TSA Input'!B2894,\"Ineligible\"))","v":""},{"$f":"IF('TSA Input'!J2894=\"\",\"\",IF(OR('TSA Input'!J2894=\"Yes\",'TSA Input'!J2894=\"Contingent\"),'TSA Input'!I2894,\"\"))","v":""},{"$f":"IF('TSA Input'!J2894=\"\",\"\",IF(OR('TSA Input'!J2894=\"Yes\",'TSA Input'!J2894=\"Contingent\"),'TSA Input'!C2894,\"\"))","v":""},{"$f":"IF('TSA Input'!J2894=\"\",\"\",IF(OR('TSA Input'!J2894=\"Yes\",'TSA Input'!J2894=\"Contingent\"),'TSA Input'!D2894,\"\"))","v":""},{"$f":"IF('TSA Input'!J2894=\"\",\"\",IF(OR('TSA Input'!J2894=\"Yes\",'TSA Input'!J2894=\"Contingent\"),'TSA Input'!G2894,\"\"))","v":""},{"$f":"IF('TSA Input'!J2894=\"\",\"\",IF(OR('TSA Input'!J2894=\"Yes\",'TSA Input'!J2894=\"Contingent\"),'TSA Input'!F2894,\"\"))","v":""},"",{"$f":"IF('TSA Input'!J2894=\"\",\"\",IF(OR('TSA Input'!J2894=\"Yes\",'TSA Input'!J2894=\"Contingent\"),'TSA Input'!D2894,\"\"))","v":""},{"$f":"IF('TSA Input'!J2894=\"\",\"\",IF(OR('TSA Input'!J2894=\"Yes\",'TSA Input'!J2894=\"Contingent\"),'TSA Input'!G2894,\"\"))","v":""},{"$f":"IF('TSA Input'!J2894=\"\",\"\",IF(OR('TSA Input'!J2894=\"Yes\",'TSA Input'!J2894=\"Contingent\"),'TSA Input'!F2894,\"\"))","v":""},"","Required","Required"]
["",null,{"$f":"IF('TSA Input'!J2895=\"\",\"\",IF(OR('TSA Input'!J2895=\"Yes\",'TSA Input'!J2895=\"Contingent\"),'TSA Input'!B2895,\"Ineligible\"))","v":""},{"$f":"IF('TSA Input'!J2895=\"\",\"\",IF(OR('TSA Input'!J2895=\"Yes\",'TSA Input'!J2895=\"Contingent\"),'TSA Input'!I2895,\"\"))","v":""},{"$f":"IF('TSA Input'!J2895=\"\",\"\",IF(OR('TSA Input'!J2895=\"Yes\",'TSA Input'!J2895=\"Contingent\"),'TSA Input'!C2895,\"\"))","v":""},{"$f":"IF('TSA Input'!J2895=\"\",\"\",IF(OR('TSA Input'!J2895=\"Yes\",'TSA Input'!J2895=\"Contingent\"),'TSA Input'!D2895,\"\"))","v":""},{"$f":"IF('TSA Input'!J2895=\"\",\"\",IF(OR('TSA Input'!J2895=\"Yes\",'TSA Input'!J2895=\"Contingent\"),'TSA Input'!G2895,\"\"))","v":""},{"$f":"IF('TSA Input'!J2895=\"\",\"\",IF(OR('TSA Input'!J2895=\"Yes\",'TSA Input'!J2895=\"Contingent\"),'TSA Input'!F2895,\"\"))","v":""},"",{"$f":"IF('TSA Input'!J2895=\"\",\"\",IF(OR('TSA Input'!J2895=\"Yes\",'TSA Input'!J2895=\"Contingent\"),'TSA Input'!D2895,\"\"))","v":""},{"$f":"IF('TSA Input'!J2895=\"\",\"\",IF(OR('TSA Input'!J2895=\"Yes\",'TSA Input'!J2895=\"Contingent\"),'TSA Input'!G2895,\"\"))","v":""},{"$f":"IF('TSA Input'!J2895=\"\",\"\",IF(OR('TSA Input'!J2895=\"Yes\",'TSA Input'!J2895=\"Contingent\"),'TSA Input'!F2895,\"\"))","v":""},"","Required","Required"]
["",null,{"$f":"IF('TSA Input'!J2896=\"\",\"\",IF(OR('TSA Input'!J2896=\"Yes\",'TSA Input'!J2896=\"Contingent\"),'TSA Input'!B2896,\"Ineligible\"))","v":""},{"$f":"IF('TSA Input'!J2896=\"\",\"\",IF(OR('TSA Input'!J2896=\"Yes\",'TSA Input'!J2896=\"Contingent\"),'TSA Input'!I2896,\"\"))","v":""},{"$f":"IF('TSA Input'!J2896=\"\",\"\",IF(OR('TSA Input'!J2896=\"Yes\",'TSA Input'!J2896=\"Contingent\"),'TSA Input'!C2896,\"\"))","v":""},{"$f":"IF('TSA Input'!J2896=\"\",\"\",IF(OR('TSA Input'!J2896=\"Yes\",'TSA Input'!J2896=\"Contingent\"),'TSA Input'!D2896,\"\"))","v":""},{"$f":"IF('TSA Input'!J2896=\"\",\"\",IF(OR('TSA Input'!J2896=\"Yes\",'TSA Input'!J2896=\"Contingent\"),'TSA Input'!G2896,\"\"))","v":""},{"$f":"IF('TSA Input'!J2896=\"\",\"\",IF(OR('TSA Input'!J2896=\"Yes\",'TSA Input'!J2896=\"Contingent\"),'TSA Input'!F2896,\"\"))","v":""},"",{"$f":"IF('TSA Input'!J2896=\"\",\"\",IF(OR('TSA Input'!J2896=\"Yes\",'TSA Input'!J2896=\"Contingent\"),'TSA Input'!D2896,\"\"))","v":""},{"$f":"IF('TSA Input'!J2896=\"\",\"\",IF(OR('TSA Input'!J2896=\"Yes\",'TSA Input'!J2896=\"Contingent\"),'TSA Input'!G2896,\"\"))","v":""},{"$f":"IF('TSA Input'!J2896=\"\",\"\",IF(OR('TSA Input'!J2896=\"Yes\",'TSA Input'!J2896=\"Contingent\"),'TSA Input'!F2896,\"\"))","v":""},"","Required","Required"]
["",null,{"$f":"IF('TSA Input'!J2897=\"\",\"\",IF(OR('TSA Input'!J2897=\"Yes\",'TSA Input'!J2897=\"Contingent\"),'TSA Input'!B2897,\"Ineligible\"))","v":""},{"$f":"IF('TSA Input'!J2897=\"\",\"\",IF(OR('TSA Input'!J2897=\"Yes\",'TSA Input'!J2897=\"Contingent\"),'TSA Input'!I2897,\"\"))","v":""},{"$f":"IF('TSA Input'!J2897=\"\",\"\",IF(OR('TSA Input'!J2897=\"Yes\",'TSA Input'!J2897=\"Contingent\"),'TSA Input'!C2897,\"\"))","v":""},{"$f":"IF('TSA Input'!J2897=\"\",\"\",IF(OR('TSA Input'!J2897=\"Yes\",'TSA Input'!J2897=\"Contingent\"),'TSA Input'!D2897,\"\"))","v":""},{"$f":"IF('TSA Input'!J2897=\"\",\"\",IF(OR('TSA Input'!J2897=\"Yes\",'TSA Input'!J2897=\"Contingent\"),'TSA Input'!G2897,\"\"))","v":""},{"$f":"IF('TSA Input'!J2897=\"\",\"\",IF(OR('TSA Input'!J2897=\"Yes\",'TSA Input'!J2897=\"Contingent\"),'TSA Input'!F2897,\"\"))","v":""},"",{"$f":"IF('TSA Input'!J2897=\"\",\"\",IF(OR('TSA Input'!J2897=\"Yes\",'TSA Input'!J2897=\"Contingent\"),'TSA Input'!D2897,\"\"))","v":""},{"$f":"IF('TSA Input'!J2897=\"\",\"\",IF(OR('TSA Input'!J2897=\"Yes\",'TSA Input'!J2897=\"Contingent\"),'TSA Input'!G2897,\"\"))","v":""},{"$f":"IF('TSA Input'!J2897=\"\",\"\",IF(OR('TSA Input'!J2897=\"Yes\",'TSA Input'!J2897=\"Contingent\"),'TSA Input'!F2897,\"\"))","v":""},"","Required","Required"]
["",null,{"$f":"IF('TSA Input'!J2898=\"\",\"\",IF(OR('TSA Input'!J2898=\"Yes\",'TSA Input'!J2898=\"Contingent\"),'TSA Input'!B2898,\"Ineligible\"))","v":""},{"$f":"IF('TSA Input'!J2898=\"\",\"\",IF(OR('TSA Input'!J2898=\"Yes\",'TSA Input'!J2898=\"Contingent\"),'TSA Input'!I2898,\"\"))","v":""},{"$f":"IF('TSA Input'!J2898=\"\",\"\",IF(OR('TSA Input'!J2898=\"Yes\",'TSA Input'!J2898=\"Contingent\"),'TSA Input'!C2898,\"\"))","v":""},{"$f":"IF('TSA Input'!J2898=\"\",\"\",IF(OR('TSA Input'!J2898=\"Yes\",'TSA Input'!J2898=\"Contingent\"),'TSA Input'!D2898,\"\"))","v":""},{"$f":"IF('TSA Input'!J2898=\"\",\"\",IF(OR('TSA Input'!J2898=\"Yes\",'TSA Input'!J2898=\"Contingent\"),'TSA Input'!G2898,\"\"))","v":""},{"$f":"IF('TSA Input'!J2898=\"\",\"\",IF(OR('TSA Input'!J2898=\"Yes\",'TSA Input'!J2898=\"Contingent\"),'TSA Input'!F2898,\"\"))","v":""},"",{"$f":"IF('TSA Input'!J2898=\"\",\"\",IF(OR('TSA Input'!J2898=\"Yes\",'TSA Input'!J2898=\"Contingent\"),'TSA Input'!D2898,\"\"))","v":""},{"$f":"IF('TSA Input'!J2898=\"\",\"\",IF(OR('TSA Input'!J2898=\"Yes\",'TSA Input'!J2898=\"Contingent\"),'TSA Input'!G2898,\"\"))","v":""},{"$f":"IF('TSA Input'!J2898=\"\",\"\",IF(OR('TSA Input'!J2898=\"Yes\",'TSA Input'!J2898=\"Contingent\"),'TSA Input'!F2898,\"\"))","v":""},"","Required","Required"]
["",null,{"$f":"IF('TSA Input'!J2899=\"\",\"\",IF(OR('TSA Input'!J2899=\"Yes\",'TSA Input'!J2899=\"Contingent\"),'TSA Input'!B2899,\"Ineligible\"))","v":""},{"$f":"IF('TSA Input'!J2899=\"\",\"\",IF(OR('TSA Input'!J2899=\"Yes\",'TSA Input'!J2899=\"Contingent\"),'TSA Input'!I2899,\"\"))","v":""},{"$f":"IF('TSA Input'!J2899=\"\",\"\",IF(OR('TSA Input'!J2899=\"Yes\",'TSA Input'!J2899=\"Contingent\"),'TSA Input'!C2899,\"\"))","v":""},{"$f":"IF('TSA Input'!J2899=\"\",\"\",IF(OR('TSA Input'!J2899=\"Yes\",'TSA Input'!J2899=\"Contingent\"),'TSA Input'!D2899,\"\"))","v":""},{"$f":"IF('TSA Input'!J2899=\"\",\"\",IF(OR('TSA Input'!J2899=\"Yes\",'TSA Input'!J2899=\"Contingent\"),'TSA Input'!G2899,\"\"))","v":""},{"$f":"IF('TSA Input'!J2899=\"\",\"\",IF(OR('TSA Input'!J2899=\"Yes\",'TSA Input'!J2899=\"Contingent\"),'TSA Input'!F2899,\"\"))","v":""},"",{"$f":"IF('TSA Input'!J2899=\"\",\"\",IF(OR('TSA Input'!J2899=\"Yes\",'TSA Input'!J2899=\"Contingent\"),'TSA Input'!D2899,\"\"))","v":""},{"$f":"IF('TSA Input'!J2899=\"\",\"\",IF(OR('TSA Input'!J2899=\"Yes\",'TSA Input'!J2899=\"Contingent\"),'TSA Input'!G2899,\"\"))","v":""},{"$f":"IF('TSA Input'!J2899=\"\",\"\",IF(OR('TSA Input'!J2899=\"Yes\",'TSA Input'!J2899=\"Contingent\"),'TSA Input'!F2899,\"\"))","v":""},"","Required","Required"]
["",null,{"$f":"IF('TSA Input'!J2900=\"\",\"\",IF(OR('TSA Input'!J2900=\"Yes\",'TSA Input'!J2900=\"Contingent\"),'TSA Input'!B2900,\"Ineligible\"))","v":""},{"$f":"IF('TSA Input'!J2900=\"\",\"\",IF(OR('TSA Input'!J2900=\"Yes\",'TSA Input'!J2900=\"Contingent\"),'TSA Input'!I2900,\"\"))","v":""},{"$f":"IF('TSA Input'!J2900=\"\",\"\",IF(OR('TSA Input'!J2900=\"Yes\",'TSA Input'!J2900=\"Contingent\"),'TSA Input'!C2900,\"\"))","v":""},{"$f":"IF('TSA Input'!J2900=\"\",\"\",IF(OR('TSA Input'!J2900=\"Yes\",'TSA Input'!J2900=\"Contingent\"),'TSA Input'!D2900,\"\"))","v":""},{"$f":"IF('TSA Input'!J2900=\"\",\"\",IF(OR('TSA Input'!J2900=\"Yes\",'TSA Input'!J2900=\"Contingent\"),'TSA Input'!G2900,\"\"))","v":""},{"$f":"IF('TSA Input'!J2900=\"\",\"\",IF(OR('TSA Input'!J2900=\"Yes\",'TSA Input'!J2900=\"Contingent\"),'TSA Input'!F2900,\"\"))","v":""},"",{"$f":"IF('TSA Input'!J2900=\"\",\"\",IF(OR('TSA Input'!J2900=\"Yes\",'TSA Input'!J2900=\"Contingent\"),'TSA Input'!D2900,\"\"))","v":""},{"$f":"IF('TSA Input'!J2900=\"\",\"\",IF(OR('TSA Input'!J2900=\"Yes\",'TSA Input'!J2900=\"Contingent\"),'TSA Input'!G2900,\"\"))","v":""},{"$f":"IF('TSA Input'!J2900=\"\",\"\",IF(OR('TSA Input'!J2900=\"Yes\",'TSA Input'!J2900=\"Contingent\"),'TSA Input'!F2900,\"\"))","v":""},"","Required","Required"]
["",null,{"$f":"IF('TSA Input'!J2901=\"\",\"\",IF(OR('TSA Input'!J2901=\"Yes\",'TSA Input'!J2901=\"Contingent\"),'TSA Input'!B2901,\"Ineligible\"))","v":""},{"$f":"IF('TSA Input'!J2901=\"\",\"\",IF(OR('TSA Input'!J2901=\"Yes\",'TSA Input'!J2901=\"Contingent\"),'TSA Input'!I2901,\"\"))","v":""},{"$f":"IF('TSA Input'!J2901=\"\",\"\",IF(OR('TSA Input'!J2901=\"Yes\",'TSA Input'!J2901=\"Contingent\"),'TSA Input'!C2901,\"\"))","v":""},{"$f":"IF('TSA Input'!J2901=\"\",\"\",IF(OR('TSA Input'!J2901=\"Yes\",'TSA Input'!J2901=\"Contingent\"),'TSA Input'!D2901,\"\"))","v":""},{"$f":"IF('TSA Input'!J2901=\"\",\"\",IF(OR('TSA Input'!J2901=\"Yes\",'TSA Input'!J2901=\"Contingent\"),'TSA Input'!G2901,\"\"))","v":""},{"$f":"IF('TSA Input'!J2901=\"\",\"\",IF(OR('TSA Input'!J2901=\"Yes\",'TSA Input'!J2901=\"Contingent\"),'TSA Input'!F2901,\"\"))","v":""},"",{"$f":"IF('TSA Input'!J2901=\"\",\"\",IF(OR('TSA Input'!J2901=\"Yes\",'TSA Input'!J2901=\"Contingent\"),'TSA Input'!D2901,\"\"))","v":""},{"$f":"IF('TSA Input'!J2901=\"\",\"\",IF(OR('TSA Input'!J2901=\"Yes\",'TSA Input'!J2901=\"Contingent\"),'TSA Input'!G2901,\"\"))","v":""},{"$f":"IF('TSA Input'!J2901=\"\",\"\",IF(OR('TSA Input'!J2901=\"Yes\",'TSA Input'!J2901=\"Contingent\"),'TSA Input'!F2901,\"\"))","v":""},"","Required","Required"]
["",null,{"$f":"IF('TSA Input'!J2902=\"\",\"\",IF(OR('TSA Input'!J2902=\"Yes\",'TSA Input'!J2902=\"Contingent\"),'TSA Input'!B2902,\"Ineligible\"))","v":""},{"$f":"IF('TSA Input'!J2902=\"\",\"\",IF(OR('TSA Input'!J2902=\"Yes\",'TSA Input'!J2902=\"Contingent\"),'TSA Input'!I2902,\"\"))","v":""},{"$f":"IF('TSA Input'!J2902=\"\",\"\",IF(OR('TSA Input'!J2902=\"Yes\",'TSA Input'!J2902=\"Contingent\"),'TSA Input'!C2902,\"\"))","v":""},{"$f":"IF('TSA Input'!J2902=\"\",\"\",IF(OR('TSA Input'!J2902=\"Yes\",'TSA Input'!J2902=\"Contingent\"),'TSA Input'!D2902,\"\"))","v":""},{"$f":"IF('TSA Input'!J2902=\"\",\"\",IF(OR('TSA Input'!J2902=\"Yes\",'TSA Input'!J2902=\"Contingent\"),'TSA Input'!G2902,\"\"))","v":""},{"$f":"IF('TSA Input'!J2902=\"\",\"\",IF(OR('TSA Input'!J2902=\"Yes\",'TSA Input'!J2902=\"Contingent\"),'TSA Input'!F2902,\"\"))","v":""},"",{"$f":"IF('TSA Input'!J2902=\"\",\"\",IF(OR('TSA Input'!J2902=\"Yes\",'TSA Input'!J2902=\"Contingent\"),'TSA Input'!D2902,\"\"))","v":""},{"$f":"IF('TSA Input'!J2902=\"\",\"\",IF(OR('TSA Input'!J2902=\"Yes\",'TSA Input'!J2902=\"Contingent\"),'TSA Input'!G2902,\"\"))","v":""},{"$f":"IF('TSA Input'!J2902=\"\",\"\",IF(OR('TSA Input'!J2902=\"Yes\",'TSA Input'!J2902=\"Contingent\"),'TSA Input'!F2902,\"\"))","v":""},"","Required","Required"]
["",null,{"$f":"IF('TSA Input'!J2903=\"\",\"\",IF(OR('TSA Input'!J2903=\"Yes\",'TSA Input'!J2903=\"Contingent\"),'TSA Input'!B2903,\"Ineligible\"))","v":""},{"$f":"IF('TSA Input'!J2903=\"\",\"\",IF(OR('TSA Input'!J2903=\"Yes\",'TSA Input'!J2903=\"Contingent\"),'TSA Input'!I2903,\"\"))","v":""},{"$f":"IF('TSA Input'!J2903=\"\",\"\",IF(OR('TSA Input'!J2903=\"Yes\",'TSA Input'!J2903=\"Contingent\"),'TSA Input'!C2903,\"\"))","v":""},{"$f":"IF('TSA Input'!J2903=\"\",\"\",IF(OR('TSA Input'!J2903=\"Yes\",'TSA Input'!J2903=\"Contingent\"),'TSA Input'!D2903,\"\"))","v":""},{"$f":"IF('TSA Input'!J2903=\"\",\"\",IF(OR('TSA Input'!J2903=\"Yes\",'TSA Input'!J2903=\"Contingent\"),'TSA Input'!G2903,\"\"))","v":""},{"$f":"IF('TSA Input'!J2903=\"\",\"\",IF(OR('TSA Input'!J2903=\"Yes\",'TSA Input'!J2903=\"Contingent\"),'TSA Input'!F2903,\"\"))","v":""},"",{"$f":"IF('TSA Input'!J2903=\"\",\"\",IF(OR('TSA Input'!J2903=\"Yes\",'TSA Input'!J2903=\"Contingent\"),'TSA Input'!D2903,\"\"))","v":""},{"$f":"IF('TSA Input'!J2903=\"\",\"\",IF(OR('TSA Input'!J2903=\"Yes\",'TSA Input'!J2903=\"Contingent\"),'TSA Input'!G2903,\"\"))","v":""},{"$f":"IF('TSA Input'!J2903=\"\",\"\",IF(OR('TSA Input'!J2903=\"Yes\",'TSA Input'!J2903=\"Contingent\"),'TSA Input'!F2903,\"\"))","v":""},"","Required","Required"]
["",null,{"$f":"IF('TSA Input'!J2904=\"\",\"\",IF(OR('TSA Input'!J2904=\"Yes\",'TSA Input'!J2904=\"Contingent\"),'TSA Input'!B2904,\"Ineligible\"))","v":""},{"$f":"IF('TSA Input'!J2904=\"\",\"\",IF(OR('TSA Input'!J2904=\"Yes\",'TSA Input'!J2904=\"Contingent\"),'TSA Input'!I2904,\"\"))","v":""},{"$f":"IF('TSA Input'!J2904=\"\",\"\",IF(OR('TSA Input'!J2904=\"Yes\",'TSA Input'!J2904=\"Contingent\"),'TSA Input'!C2904,\"\"))","v":""},{"$f":"IF('TSA Input'!J2904=\"\",\"\",IF(OR('TSA Input'!J2904=\"Yes\",'TSA Input'!J2904=\"Contingent\"),'TSA Input'!D2904,\"\"))","v":""},{"$f":"IF('TSA Input'!J2904=\"\",\"\",IF(OR('TSA Input'!J2904=\"Yes\",'TSA Input'!J2904=\"Contingent\"),'TSA Input'!G2904,\"\"))","v":""},{"$f":"IF('TSA Input'!J2904=\"\",\"\",IF(OR('TSA Input'!J2904=\"Yes\",'TSA Input'!J2904=\"Contingent\"),'TSA Input'!F2904,\"\"))","v":""},"",{"$f":"IF('TSA Input'!J2904=\"\",\"\",IF(OR('TSA Input'!J2904=\"Yes\",'TSA Input'!J2904=\"Contingent\"),'TSA Input'!D2904,\"\"))","v":""},{"$f":"IF('TSA Input'!J2904=\"\",\"\",IF(OR('TSA Input'!J2904=\"Yes\",'TSA Input'!J2904=\"Contingent\"),'TSA Input'!G2904,\"\"))","v":""},{"$f":"IF('TSA Input'!J2904=\"\",\"\",IF(OR('TSA Input'!J2904=\"Yes\",'TSA Input'!J2904=\"Contingent\"),'TSA Input'!F2904,\"\"))","v":""},"","Required","Required"]
["",null,{"$f":"IF('TSA Input'!J2905=\"\",\"\",IF(OR('TSA Input'!J2905=\"Yes\",'TSA Input'!J2905=\"Contingent\"),'TSA Input'!B2905,\"Ineligible\"))","v":""},{"$f":"IF('TSA Input'!J2905=\"\",\"\",IF(OR('TSA Input'!J2905=\"Yes\",'TSA Input'!J2905=\"Contingent\"),'TSA Input'!I2905,\"\"))","v":""},{"$f":"IF('TSA Input'!J2905=\"\",\"\",IF(OR('TSA Input'!J2905=\"Yes\",'TSA Input'!J2905=\"Contingent\"),'TSA Input'!C2905,\"\"))","v":""},{"$f":"IF('TSA Input'!J2905=\"\",\"\",IF(OR('TSA Input'!J2905=\"Yes\",'TSA Input'!J2905=\"Contingent\"),'TSA Input'!D2905,\"\"))","v":""},{"$f":"IF('TSA Input'!J2905=\"\",\"\",IF(OR('TSA Input'!J2905=\"Yes\",'TSA Input'!J2905=\"Contingent\"),'TSA Input'!G2905,\"\"))","v":""},{"$f":"IF('TSA Input'!J2905=\"\",\"\",IF(OR('TSA Input'!J2905=\"Yes\",'TSA Input'!J2905=\"Contingent\"),'TSA Input'!F2905,\"\"))","v":""},"",{"$f":"IF('TSA Input'!J2905=\"\",\"\",IF(OR('TSA Input'!J2905=\"Yes\",'TSA Input'!J2905=\"Contingent\"),'TSA Input'!D2905,\"\"))","v":""},{"$f":"IF('TSA Input'!J2905=\"\",\"\",IF(OR('TSA Input'!J2905=\"Yes\",'TSA Input'!J2905=\"Contingent\"),'TSA Input'!G2905,\"\"))","v":""},{"$f":"IF('TSA Input'!J2905=\"\",\"\",IF(OR('TSA Input'!J2905=\"Yes\",'TSA Input'!J2905=\"Contingent\"),'TSA Input'!F2905,\"\"))","v":""},"","Required","Required"]
["",null,{"$f":"IF('TSA Input'!J2906=\"\",\"\",IF(OR('TSA Input'!J2906=\"Yes\",'TSA Input'!J2906=\"Contingent\"),'TSA Input'!B2906,\"Ineligible\"))","v":""},{"$f":"IF('TSA Input'!J2906=\"\",\"\",IF(OR('TSA Input'!J2906=\"Yes\",'TSA Input'!J2906=\"Contingent\"),'TSA Input'!I2906,\"\"))","v":""},{"$f":"IF('TSA Input'!J2906=\"\",\"\",IF(OR('TSA Input'!J2906=\"Yes\",'TSA Input'!J2906=\"Contingent\"),'TSA Input'!C2906,\"\"))","v":""},{"$f":"IF('TSA Input'!J2906=\"\",\"\",IF(OR('TSA Input'!J2906=\"Yes\",'TSA Input'!J2906=\"Contingent\"),'TSA Input'!D2906,\"\"))","v":""},{"$f":"IF('TSA Input'!J2906=\"\",\"\",IF(OR('TSA Input'!J2906=\"Yes\",'TSA Input'!J2906=\"Contingent\"),'TSA Input'!G2906,\"\"))","v":""},{"$f":"IF('TSA Input'!J2906=\"\",\"\",IF(OR('TSA Input'!J2906=\"Yes\",'TSA Input'!J2906=\"Contingent\"),'TSA Input'!F2906,\"\"))","v":""},"",{"$f":"IF('TSA Input'!J2906=\"\",\"\",IF(OR('TSA Input'!J2906=\"Yes\",'TSA Input'!J2906=\"Contingent\"),'TSA Input'!D2906,\"\"))","v":""},{"$f":"IF('TSA Input'!J2906=\"\",\"\",IF(OR('TSA Input'!J2906=\"Yes\",'TSA Input'!J2906=\"Contingent\"),'TSA Input'!G2906,\"\"))","v":""},{"$f":"IF('TSA Input'!J2906=\"\",\"\",IF(OR('TSA Input'!J2906=\"Yes\",'TSA Input'!J2906=\"Contingent\"),'TSA Input'!F2906,\"\"))","v":""},"","Required","Required"]
["",null,{"$f":"IF('TSA Input'!J2907=\"\",\"\",IF(OR('TSA Input'!J2907=\"Yes\",'TSA Input'!J2907=\"Contingent\"),'TSA Input'!B2907,\"Ineligible\"))","v":""},{"$f":"IF('TSA Input'!J2907=\"\",\"\",IF(OR('TSA Input'!J2907=\"Yes\",'TSA Input'!J2907=\"Contingent\"),'TSA Input'!I2907,\"\"))","v":""},{"$f":"IF('TSA Input'!J2907=\"\",\"\",IF(OR('TSA Input'!J2907=\"Yes\",'TSA Input'!J2907=\"Contingent\"),'TSA Input'!C2907,\"\"))","v":""},{"$f":"IF('TSA Input'!J2907=\"\",\"\",IF(OR('TSA Input'!J2907=\"Yes\",'TSA Input'!J2907=\"Contingent\"),'TSA Input'!D2907,\"\"))","v":""},{"$f":"IF('TSA Input'!J2907=\"\",\"\",IF(OR('TSA Input'!J2907=\"Yes\",'TSA Input'!J2907=\"Contingent\"),'TSA Input'!G2907,\"\"))","v":""},{"$f":"IF('TSA Input'!J2907=\"\",\"\",IF(OR('TSA Input'!J2907=\"Yes\",'TSA Input'!J2907=\"Contingent\"),'TSA Input'!F2907,\"\"))","v":""},"",{"$f":"IF('TSA Input'!J2907=\"\",\"\",IF(OR('TSA Input'!J2907=\"Yes\",'TSA Input'!J2907=\"Contingent\"),'TSA Input'!D2907,\"\"))","v":""},{"$f":"IF('TSA Input'!J2907=\"\",\"\",IF(OR('TSA Input'!J2907=\"Yes\",'TSA Input'!J2907=\"Contingent\"),'TSA Input'!G2907,\"\"))","v":""},{"$f":"IF('TSA Input'!J2907=\"\",\"\",IF(OR('TSA Input'!J2907=\"Yes\",'TSA Input'!J2907=\"Contingent\"),'TSA Input'!F2907,\"\"))","v":""},"","Required","Required"]
["",null,{"$f":"IF('TSA Input'!J2908=\"\",\"\",IF(OR('TSA Input'!J2908=\"Yes\",'TSA Input'!J2908=\"Contingent\"),'TSA Input'!B2908,\"Ineligible\"))","v":""},{"$f":"IF('TSA Input'!J2908=\"\",\"\",IF(OR('TSA Input'!J2908=\"Yes\",'TSA Input'!J2908=\"Contingent\"),'TSA Input'!I2908,\"\"))","v":""},{"$f":"IF('TSA Input'!J2908=\"\",\"\",IF(OR('TSA Input'!J2908=\"Yes\",'TSA Input'!J2908=\"Contingent\"),'TSA Input'!C2908,\"\"))","v":""},{"$f":"IF('TSA Input'!J2908=\"\",\"\",IF(OR('TSA Input'!J2908=\"Yes\",'TSA Input'!J2908=\"Contingent\"),'TSA Input'!D2908,\"\"))","v":""},{"$f":"IF('TSA Input'!J2908=\"\",\"\",IF(OR('TSA Input'!J2908=\"Yes\",'TSA Input'!J2908=\"Contingent\"),'TSA Input'!G2908,\"\"))","v":""},{"$f":"IF('TSA Input'!J2908=\"\",\"\",IF(OR('TSA Input'!J2908=\"Yes\",'TSA Input'!J2908=\"Contingent\"),'TSA Input'!F2908,\"\"))","v":""},"",{"$f":"IF('TSA Input'!J2908=\"\",\"\",IF(OR('TSA Input'!J2908=\"Yes\",'TSA Input'!J2908=\"Contingent\"),'TSA Input'!D2908,\"\"))","v":""},{"$f":"IF('TSA Input'!J2908=\"\",\"\",IF(OR('TSA Input'!J2908=\"Yes\",'TSA Input'!J2908=\"Contingent\"),'TSA Input'!G2908,\"\"))","v":""},{"$f":"IF('TSA Input'!J2908=\"\",\"\",IF(OR('TSA Input'!J2908=\"Yes\",'TSA Input'!J2908=\"Contingent\"),'TSA Input'!F2908,\"\"))","v":""},"","Required","Required"]
["",null,{"$f":"IF('TSA Input'!J2909=\"\",\"\",IF(OR('TSA Input'!J2909=\"Yes\",'TSA Input'!J2909=\"Contingent\"),'TSA Input'!B2909,\"Ineligible\"))","v":""},{"$f":"IF('TSA Input'!J2909=\"\",\"\",IF(OR('TSA Input'!J2909=\"Yes\",'TSA Input'!J2909=\"Contingent\"),'TSA Input'!I2909,\"\"))","v":""},{"$f":"IF('TSA Input'!J2909=\"\",\"\",IF(OR('TSA Input'!J2909=\"Yes\",'TSA Input'!J2909=\"Contingent\"),'TSA Input'!C2909,\"\"))","v":""},{"$f":"IF('TSA Input'!J2909=\"\",\"\",IF(OR('TSA Input'!J2909=\"Yes\",'TSA Input'!J2909=\"Contingent\"),'TSA Input'!D2909,\"\"))","v":""},{"$f":"IF('TSA Input'!J2909=\"\",\"\",IF(OR('TSA Input'!J2909=\"Yes\",'TSA Input'!J2909=\"Contingent\"),'TSA Input'!G2909,\"\"))","v":""},{"$f":"IF('TSA Input'!J2909=\"\",\"\",IF(OR('TSA Input'!J2909=\"Yes\",'TSA Input'!J2909=\"Contingent\"),'TSA Input'!F2909,\"\"))","v":""},"",{"$f":"IF('TSA Input'!J2909=\"\",\"\",IF(OR('TSA Input'!J2909=\"Yes\",'TSA Input'!J2909=\"Contingent\"),'TSA Input'!D2909,\"\"))","v":""},{"$f":"IF('TSA Input'!J2909=\"\",\"\",IF(OR('TSA Input'!J2909=\"Yes\",'TSA Input'!J2909=\"Contingent\"),'TSA Input'!G2909,\"\"))","v":""},{"$f":"IF('TSA Input'!J2909=\"\",\"\",IF(OR('TSA Input'!J2909=\"Yes\",'TSA Input'!J2909=\"Contingent\"),'TSA Input'!F2909,\"\"))","v":""},"","Required","Required"]
["",null,{"$f":"IF('TSA Input'!J2910=\"\",\"\",IF(OR('TSA Input'!J2910=\"Yes\",'TSA Input'!J2910=\"Contingent\"),'TSA Input'!B2910,\"Ineligible\"))","v":""},{"$f":"IF('TSA Input'!J2910=\"\",\"\",IF(OR('TSA Input'!J2910=\"Yes\",'TSA Input'!J2910=\"Contingent\"),'TSA Input'!I2910,\"\"))","v":""},{"$f":"IF('TSA Input'!J2910=\"\",\"\",IF(OR('TSA Input'!J2910=\"Yes\",'TSA Input'!J2910=\"Contingent\"),'TSA Input'!C2910,\"\"))","v":""},{"$f":"IF('TSA Input'!J2910=\"\",\"\",IF(OR('TSA Input'!J2910=\"Yes\",'TSA Input'!J2910=\"Contingent\"),'TSA Input'!D2910,\"\"))","v":""},{"$f":"IF('TSA Input'!J2910=\"\",\"\",IF(OR('TSA Input'!J2910=\"Yes\",'TSA Input'!J2910=\"Contingent\"),'TSA Input'!G2910,\"\"))","v":""},{"$f":"IF('TSA Input'!J2910=\"\",\"\",IF(OR('TSA Input'!J2910=\"Yes\",'TSA Input'!J2910=\"Contingent\"),'TSA Input'!F2910,\"\"))","v":""},"",{"$f":"IF('TSA Input'!J2910=\"\",\"\",IF(OR('TSA Input'!J2910=\"Yes\",'TSA Input'!J2910=\"Contingent\"),'TSA Input'!D2910,\"\"))","v":""},{"$f":"IF('TSA Input'!J2910=\"\",\"\",IF(OR('TSA Input'!J2910=\"Yes\",'TSA Input'!J2910=\"Contingent\"),'TSA Input'!G2910,\"\"))","v":""},{"$f":"IF('TSA Input'!J2910=\"\",\"\",IF(OR('TSA Input'!J2910=\"Yes\",'TSA Input'!J2910=\"Contingent\"),'TSA Input'!F2910,\"\"))","v":""},"","Required","Required"]
["",null,{"$f":"IF('TSA Input'!J2911=\"\",\"\",IF(OR('TSA Input'!J2911=\"Yes\",'TSA Input'!J2911=\"Contingent\"),'TSA Input'!B2911,\"Ineligible\"))","v":""},{"$f":"IF('TSA Input'!J2911=\"\",\"\",IF(OR('TSA Input'!J2911=\"Yes\",'TSA Input'!J2911=\"Contingent\"),'TSA Input'!I2911,\"\"))","v":""},{"$f":"IF('TSA Input'!J2911=\"\",\"\",IF(OR('TSA Input'!J2911=\"Yes\",'TSA Input'!J2911=\"Contingent\"),'TSA Input'!C2911,\"\"))","v":""},{"$f":"IF('TSA Input'!J2911=\"\",\"\",IF(OR('TSA Input'!J2911=\"Yes\",'TSA Input'!J2911=\"Contingent\"),'TSA Input'!D2911,\"\"))","v":""},{"$f":"IF('TSA Input'!J2911=\"\",\"\",IF(OR('TSA Input'!J2911=\"Yes\",'TSA Input'!J2911=\"Contingent\"),'TSA Input'!G2911,\"\"))","v":""},{"$f":"IF('TSA Input'!J2911=\"\",\"\",IF(OR('TSA Input'!J2911=\"Yes\",'TSA Input'!J2911=\"Contingent\"),'TSA Input'!F2911,\"\"))","v":""},"",{"$f":"IF('TSA Input'!J2911=\"\",\"\",IF(OR('TSA Input'!J2911=\"Yes\",'TSA Input'!J2911=\"Contingent\"),'TSA Input'!D2911,\"\"))","v":""},{"$f":"IF('TSA Input'!J2911=\"\",\"\",IF(OR('TSA Input'!J2911=\"Yes\",'TSA Input'!J2911=\"Contingent\"),'TSA Input'!G2911,\"\"))","v":""},{"$f":"IF('TSA Input'!J2911=\"\",\"\",IF(OR('TSA Input'!J2911=\"Yes\",'TSA Input'!J2911=\"Contingent\"),'TSA Input'!F2911,\"\"))","v":""},"","Required","Required"]
["",null,{"$f":"IF('TSA Input'!J2912=\"\",\"\",IF(OR('TSA Input'!J2912=\"Yes\",'TSA Input'!J2912=\"Contingent\"),'TSA Input'!B2912,\"Ineligible\"))","v":""},{"$f":"IF('TSA Input'!J2912=\"\",\"\",IF(OR('TSA Input'!J2912=\"Yes\",'TSA Input'!J2912=\"Contingent\"),'TSA Input'!I2912,\"\"))","v":""},{"$f":"IF('TSA Input'!J2912=\"\",\"\",IF(OR('TSA Input'!J2912=\"Yes\",'TSA Input'!J2912=\"Contingent\"),'TSA Input'!C2912,\"\"))","v":""},{"$f":"IF('TSA Input'!J2912=\"\",\"\",IF(OR('TSA Input'!J2912=\"Yes\",'TSA Input'!J2912=\"Contingent\"),'TSA Input'!D2912,\"\"))","v":""},{"$f":"IF('TSA Input'!J2912=\"\",\"\",IF(OR('TSA Input'!J2912=\"Yes\",'TSA Input'!J2912=\"Contingent\"),'TSA Input'!G2912,\"\"))","v":""},{"$f":"IF('TSA Input'!J2912=\"\",\"\",IF(OR('TSA Input'!J2912=\"Yes\",'TSA Input'!J2912=\"Contingent\"),'TSA Input'!F2912,\"\"))","v":""},"",{"$f":"IF('TSA Input'!J2912=\"\",\"\",IF(OR('TSA Input'!J2912=\"Yes\",'TSA Input'!J2912=\"Contingent\"),'TSA Input'!D2912,\"\"))","v":""},{"$f":"IF('TSA Input'!J2912=\"\",\"\",IF(OR('TSA Input'!J2912=\"Yes\",'TSA Input'!J2912=\"Contingent\"),'TSA Input'!G2912,\"\"))","v":""},{"$f":"IF('TSA Input'!J2912=\"\",\"\",IF(OR('TSA Input'!J2912=\"Yes\",'TSA Input'!J2912=\"Contingent\"),'TSA Input'!F2912,\"\"))","v":""},"","Required","Required"]
["",null,{"$f":"IF('TSA Input'!J2913=\"\",\"\",IF(OR('TSA Input'!J2913=\"Yes\",'TSA Input'!J2913=\"Contingent\"),'TSA Input'!B2913,\"Ineligible\"))","v":""},{"$f":"IF('TSA Input'!J2913=\"\",\"\",IF(OR('TSA Input'!J2913=\"Yes\",'TSA Input'!J2913=\"Contingent\"),'TSA Input'!I2913,\"\"))","v":""},{"$f":"IF('TSA Input'!J2913=\"\",\"\",IF(OR('TSA Input'!J2913=\"Yes\",'TSA Input'!J2913=\"Contingent\"),'TSA Input'!C2913,\"\"))","v":""},{"$f":"IF('TSA Input'!J2913=\"\",\"\",IF(OR('TSA Input'!J2913=\"Yes\",'TSA Input'!J2913=\"Contingent\"),'TSA Input'!D2913,\"\"))","v":""},{"$f":"IF('TSA Input'!J2913=\"\",\"\",IF(OR('TSA Input'!J2913=\"Yes\",'TSA Input'!J2913=\"Contingent\"),'TSA Input'!G2913,\"\"))","v":""},{"$f":"IF('TSA Input'!J2913=\"\",\"\",IF(OR('TSA Input'!J2913=\"Yes\",'TSA Input'!J2913=\"Contingent\"),'TSA Input'!F2913,\"\"))","v":""},"",{"$f":"IF('TSA Input'!J2913=\"\",\"\",IF(OR('TSA Input'!J2913=\"Yes\",'TSA Input'!J2913=\"Contingent\"),'TSA Input'!D2913,\"\"))","v":""},{"$f":"IF('TSA Input'!J2913=\"\",\"\",IF(OR('TSA Input'!J2913=\"Yes\",'TSA Input'!J2913=\"Contingent\"),'TSA Input'!G2913,\"\"))","v":""},{"$f":"IF('TSA Input'!J2913=\"\",\"\",IF(OR('TSA Input'!J2913=\"Yes\",'TSA Input'!J2913=\"Contingent\"),'TSA Input'!F2913,\"\"))","v":""},"","Required","Required"]
["",null,{"$f":"IF('TSA Input'!J2914=\"\",\"\",IF(OR('TSA Input'!J2914=\"Yes\",'TSA Input'!J2914=\"Contingent\"),'TSA Input'!B2914,\"Ineligible\"))","v":""},{"$f":"IF('TSA Input'!J2914=\"\",\"\",IF(OR('TSA Input'!J2914=\"Yes\",'TSA Input'!J2914=\"Contingent\"),'TSA Input'!I2914,\"\"))","v":""},{"$f":"IF('TSA Input'!J2914=\"\",\"\",IF(OR('TSA Input'!J2914=\"Yes\",'TSA Input'!J2914=\"Contingent\"),'TSA Input'!C2914,\"\"))","v":""},{"$f":"IF('TSA Input'!J2914=\"\",\"\",IF(OR('TSA Input'!J2914=\"Yes\",'TSA Input'!J2914=\"Contingent\"),'TSA Input'!D2914,\"\"))","v":""},{"$f":"IF('TSA Input'!J2914=\"\",\"\",IF(OR('TSA Input'!J2914=\"Yes\",'TSA Input'!J2914=\"Contingent\"),'TSA Input'!G2914,\"\"))","v":""},{"$f":"IF('TSA Input'!J2914=\"\",\"\",IF(OR('TSA Input'!J2914=\"Yes\",'TSA Input'!J2914=\"Contingent\"),'TSA Input'!F2914,\"\"))","v":""},"",{"$f":"IF('TSA Input'!J2914=\"\",\"\",IF(OR('TSA Input'!J2914=\"Yes\",'TSA Input'!J2914=\"Contingent\"),'TSA Input'!D2914,\"\"))","v":""},{"$f":"IF('TSA Input'!J2914=\"\",\"\",IF(OR('TSA Input'!J2914=\"Yes\",'TSA Input'!J2914=\"Contingent\"),'TSA Input'!G2914,\"\"))","v":""},{"$f":"IF('TSA Input'!J2914=\"\",\"\",IF(OR('TSA Input'!J2914=\"Yes\",'TSA Input'!J2914=\"Contingent\"),'TSA Input'!F2914,\"\"))","v":""},"","Required","Required"]
["",null,{"$f":"IF('TSA Input'!J2915=\"\",\"\",IF(OR('TSA Input'!J2915=\"Yes\",'TSA Input'!J2915=\"Contingent\"),'TSA Input'!B2915,\"Ineligible\"))","v":""},{"$f":"IF('TSA Input'!J2915=\"\",\"\",IF(OR('TSA Input'!J2915=\"Yes\",'TSA Input'!J2915=\"Contingent\"),'TSA Input'!I2915,\"\"))","v":""},{"$f":"IF('TSA Input'!J2915=\"\",\"\",IF(OR('TSA Input'!J2915=\"Yes\",'TSA Input'!J2915=\"Contingent\"),'TSA Input'!C2915,\"\"))","v":""},{"$f":"IF('TSA Input'!J2915=\"\",\"\",IF(OR('TSA Input'!J2915=\"Yes\",'TSA Input'!J2915=\"Contingent\"),'TSA Input'!D2915,\"\"))","v":""},{"$f":"IF('TSA Input'!J2915=\"\",\"\",IF(OR('TSA Input'!J2915=\"Yes\",'TSA Input'!J2915=\"Contingent\"),'TSA Input'!G2915,\"\"))","v":""},{"$f":"IF('TSA Input'!J2915=\"\",\"\",IF(OR('TSA Input'!J2915=\"Yes\",'TSA Input'!J2915=\"Contingent\"),'TSA Input'!F2915,\"\"))","v":""},"",{"$f":"IF('TSA Input'!J2915=\"\",\"\",IF(OR('TSA Input'!J2915=\"Yes\",'TSA Input'!J2915=\"Contingent\"),'TSA Input'!D2915,\"\"))","v":""},{"$f":"IF('TSA Input'!J2915=\"\",\"\",IF(OR('TSA Input'!J2915=\"Yes\",'TSA Input'!J2915=\"Contingent\"),'TSA Input'!G2915,\"\"))","v":""},{"$f":"IF('TSA Input'!J2915=\"\",\"\",IF(OR('TSA Input'!J2915=\"Yes\",'TSA Input'!J2915=\"Contingent\"),'TSA Input'!F2915,\"\"))","v":""},"","Required","Required"]
["",null,{"$f":"IF('TSA Input'!J2916=\"\",\"\",IF(OR('TSA Input'!J2916=\"Yes\",'TSA Input'!J2916=\"Contingent\"),'TSA Input'!B2916,\"Ineligible\"))","v":""},{"$f":"IF('TSA Input'!J2916=\"\",\"\",IF(OR('TSA Input'!J2916=\"Yes\",'TSA Input'!J2916=\"Contingent\"),'TSA Input'!I2916,\"\"))","v":""},{"$f":"IF('TSA Input'!J2916=\"\",\"\",IF(OR('TSA Input'!J2916=\"Yes\",'TSA Input'!J2916=\"Contingent\"),'TSA Input'!C2916,\"\"))","v":""},{"$f":"IF('TSA Input'!J2916=\"\",\"\",IF(OR('TSA Input'!J2916=\"Yes\",'TSA Input'!J2916=\"Contingent\"),'TSA Input'!D2916,\"\"))","v":""},{"$f":"IF('TSA Input'!J2916=\"\",\"\",IF(OR('TSA Input'!J2916=\"Yes\",'TSA Input'!J2916=\"Contingent\"),'TSA Input'!G2916,\"\"))","v":""},{"$f":"IF('TSA Input'!J2916=\"\",\"\",IF(OR('TSA Input'!J2916=\"Yes\",'TSA Input'!J2916=\"Contingent\"),'TSA Input'!F2916,\"\"))","v":""},"",{"$f":"IF('TSA Input'!J2916=\"\",\"\",IF(OR('TSA Input'!J2916=\"Yes\",'TSA Input'!J2916=\"Contingent\"),'TSA Input'!D2916,\"\"))","v":""},{"$f":"IF('TSA Input'!J2916=\"\",\"\",IF(OR('TSA Input'!J2916=\"Yes\",'TSA Input'!J2916=\"Contingent\"),'TSA Input'!G2916,\"\"))","v":""},{"$f":"IF('TSA Input'!J2916=\"\",\"\",IF(OR('TSA Input'!J2916=\"Yes\",'TSA Input'!J2916=\"Contingent\"),'TSA Input'!F2916,\"\"))","v":""},"","Required","Required"]
["",null,{"$f":"IF('TSA Input'!J2917=\"\",\"\",IF(OR('TSA Input'!J2917=\"Yes\",'TSA Input'!J2917=\"Contingent\"),'TSA Input'!B2917,\"Ineligible\"))","v":""},{"$f":"IF('TSA Input'!J2917=\"\",\"\",IF(OR('TSA Input'!J2917=\"Yes\",'TSA Input'!J2917=\"Contingent\"),'TSA Input'!I2917,\"\"))","v":""},{"$f":"IF('TSA Input'!J2917=\"\",\"\",IF(OR('TSA Input'!J2917=\"Yes\",'TSA Input'!J2917=\"Contingent\"),'TSA Input'!C2917,\"\"))","v":""},{"$f":"IF('TSA Input'!J2917=\"\",\"\",IF(OR('TSA Input'!J2917=\"Yes\",'TSA Input'!J2917=\"Contingent\"),'TSA Input'!D2917,\"\"))","v":""},{"$f":"IF('TSA Input'!J2917=\"\",\"\",IF(OR('TSA Input'!J2917=\"Yes\",'TSA Input'!J2917=\"Contingent\"),'TSA Input'!G2917,\"\"))","v":""},{"$f":"IF('TSA Input'!J2917=\"\",\"\",IF(OR('TSA Input'!J2917=\"Yes\",'TSA Input'!J2917=\"Contingent\"),'TSA Input'!F2917,\"\"))","v":""},"",{"$f":"IF('TSA Input'!J2917=\"\",\"\",IF(OR('TSA Input'!J2917=\"Yes\",'TSA Input'!J2917=\"Contingent\"),'TSA Input'!D2917,\"\"))","v":""},{"$f":"IF('TSA Input'!J2917=\"\",\"\",IF(OR('TSA Input'!J2917=\"Yes\",'TSA Input'!J2917=\"Contingent\"),'TSA Input'!G2917,\"\"))","v":""},{"$f":"IF('TSA Input'!J2917=\"\",\"\",IF(OR('TSA Input'!J2917=\"Yes\",'TSA Input'!J2917=\"Contingent\"),'TSA Input'!F2917,\"\"))","v":""},"","Required","Required"]
["",null,{"$f":"IF('TSA Input'!J2918=\"\",\"\",IF(OR('TSA Input'!J2918=\"Yes\",'TSA Input'!J2918=\"Contingent\"),'TSA Input'!B2918,\"Ineligible\"))","v":""},{"$f":"IF('TSA Input'!J2918=\"\",\"\",IF(OR('TSA Input'!J2918=\"Yes\",'TSA Input'!J2918=\"Contingent\"),'TSA Input'!I2918,\"\"))","v":""},{"$f":"IF('TSA Input'!J2918=\"\",\"\",IF(OR('TSA Input'!J2918=\"Yes\",'TSA Input'!J2918=\"Contingent\"),'TSA Input'!C2918,\"\"))","v":""},{"$f":"IF('TSA Input'!J2918=\"\",\"\",IF(OR('TSA Input'!J2918=\"Yes\",'TSA Input'!J2918=\"Contingent\"),'TSA Input'!D2918,\"\"))","v":""},{"$f":"IF('TSA Input'!J2918=\"\",\"\",IF(OR('TSA Input'!J2918=\"Yes\",'TSA Input'!J2918=\"Contingent\"),'TSA Input'!G2918,\"\"))","v":""},{"$f":"IF('TSA Input'!J2918=\"\",\"\",IF(OR('TSA Input'!J2918=\"Yes\",'TSA Input'!J2918=\"Contingent\"),'TSA Input'!F2918,\"\"))","v":""},"",{"$f":"IF('TSA Input'!J2918=\"\",\"\",IF(OR('TSA Input'!J2918=\"Yes\",'TSA Input'!J2918=\"Contingent\"),'TSA Input'!D2918,\"\"))","v":""},{"$f":"IF('TSA Input'!J2918=\"\",\"\",IF(OR('TSA Input'!J2918=\"Yes\",'TSA Input'!J2918=\"Contingent\"),'TSA Input'!G2918,\"\"))","v":""},{"$f":"IF('TSA Input'!J2918=\"\",\"\",IF(OR('TSA Input'!J2918=\"Yes\",'TSA Input'!J2918=\"Contingent\"),'TSA Input'!F2918,\"\"))","v":""},"","Required","Required"]
["",null,{"$f":"IF('TSA Input'!J2919=\"\",\"\",IF(OR('TSA Input'!J2919=\"Yes\",'TSA Input'!J2919=\"Contingent\"),'TSA Input'!B2919,\"Ineligible\"))","v":""},{"$f":"IF('TSA Input'!J2919=\"\",\"\",IF(OR('TSA Input'!J2919=\"Yes\",'TSA Input'!J2919=\"Contingent\"),'TSA Input'!I2919,\"\"))","v":""},{"$f":"IF('TSA Input'!J2919=\"\",\"\",IF(OR('TSA Input'!J2919=\"Yes\",'TSA Input'!J2919=\"Contingent\"),'TSA Input'!C2919,\"\"))","v":""},{"$f":"IF('TSA Input'!J2919=\"\",\"\",IF(OR('TSA Input'!J2919=\"Yes\",'TSA Input'!J2919=\"Contingent\"),'TSA Input'!D2919,\"\"))","v":""},{"$f":"IF('TSA Input'!J2919=\"\",\"\",IF(OR('TSA Input'!J2919=\"Yes\",'TSA Input'!J2919=\"Contingent\"),'TSA Input'!G2919,\"\"))","v":""},{"$f":"IF('TSA Input'!J2919=\"\",\"\",IF(OR('TSA Input'!J2919=\"Yes\",'TSA Input'!J2919=\"Contingent\"),'TSA Input'!F2919,\"\"))","v":""},"",{"$f":"IF('TSA Input'!J2919=\"\",\"\",IF(OR('TSA Input'!J2919=\"Yes\",'TSA Input'!J2919=\"Contingent\"),'TSA Input'!D2919,\"\"))","v":""},{"$f":"IF('TSA Input'!J2919=\"\",\"\",IF(OR('TSA Input'!J2919=\"Yes\",'TSA Input'!J2919=\"Contingent\"),'TSA Input'!G2919,\"\"))","v":""},{"$f":"IF('TSA Input'!J2919=\"\",\"\",IF(OR('TSA Input'!J2919=\"Yes\",'TSA Input'!J2919=\"Contingent\"),'TSA Input'!F2919,\"\"))","v":""},"","Required","Required"]
["",null,{"$f":"IF('TSA Input'!J2920=\"\",\"\",IF(OR('TSA Input'!J2920=\"Yes\",'TSA Input'!J2920=\"Contingent\"),'TSA Input'!B2920,\"Ineligible\"))","v":""},{"$f":"IF('TSA Input'!J2920=\"\",\"\",IF(OR('TSA Input'!J2920=\"Yes\",'TSA Input'!J2920=\"Contingent\"),'TSA Input'!I2920,\"\"))","v":""},{"$f":"IF('TSA Input'!J2920=\"\",\"\",IF(OR('TSA Input'!J2920=\"Yes\",'TSA Input'!J2920=\"Contingent\"),'TSA Input'!C2920,\"\"))","v":""},{"$f":"IF('TSA Input'!J2920=\"\",\"\",IF(OR('TSA Input'!J2920=\"Yes\",'TSA Input'!J2920=\"Contingent\"),'TSA Input'!D2920,\"\"))","v":""},{"$f":"IF('TSA Input'!J2920=\"\",\"\",IF(OR('TSA Input'!J2920=\"Yes\",'TSA Input'!J2920=\"Contingent\"),'TSA Input'!G2920,\"\"))","v":""},{"$f":"IF('TSA Input'!J2920=\"\",\"\",IF(OR('TSA Input'!J2920=\"Yes\",'TSA Input'!J2920=\"Contingent\"),'TSA Input'!F2920,\"\"))","v":""},"",{"$f":"IF('TSA Input'!J2920=\"\",\"\",IF(OR('TSA Input'!J2920=\"Yes\",'TSA Input'!J2920=\"Contingent\"),'TSA Input'!D2920,\"\"))","v":""},{"$f":"IF('TSA Input'!J2920=\"\",\"\",IF(OR('TSA Input'!J2920=\"Yes\",'TSA Input'!J2920=\"Contingent\"),'TSA Input'!G2920,\"\"))","v":""},{"$f":"IF('TSA Input'!J2920=\"\",\"\",IF(OR('TSA Input'!J2920=\"Yes\",'TSA Input'!J2920=\"Contingent\"),'TSA Input'!F2920,\"\"))","v":""},"","Required","Required"]
["",null,{"$f":"IF('TSA Input'!J2921=\"\",\"\",IF(OR('TSA Input'!J2921=\"Yes\",'TSA Input'!J2921=\"Contingent\"),'TSA Input'!B2921,\"Ineligible\"))","v":""},{"$f":"IF('TSA Input'!J2921=\"\",\"\",IF(OR('TSA Input'!J2921=\"Yes\",'TSA Input'!J2921=\"Contingent\"),'TSA Input'!I2921,\"\"))","v":""},{"$f":"IF('TSA Input'!J2921=\"\",\"\",IF(OR('TSA Input'!J2921=\"Yes\",'TSA Input'!J2921=\"Contingent\"),'TSA Input'!C2921,\"\"))","v":""},{"$f":"IF('TSA Input'!J2921=\"\",\"\",IF(OR('TSA Input'!J2921=\"Yes\",'TSA Input'!J2921=\"Contingent\"),'TSA Input'!D2921,\"\"))","v":""},{"$f":"IF('TSA Input'!J2921=\"\",\"\",IF(OR('TSA Input'!J2921=\"Yes\",'TSA Input'!J2921=\"Contingent\"),'TSA Input'!G2921,\"\"))","v":""},{"$f":"IF('TSA Input'!J2921=\"\",\"\",IF(OR('TSA Input'!J2921=\"Yes\",'TSA Input'!J2921=\"Contingent\"),'TSA Input'!F2921,\"\"))","v":""},"",{"$f":"IF('TSA Input'!J2921=\"\",\"\",IF(OR('TSA Input'!J2921=\"Yes\",'TSA Input'!J2921=\"Contingent\"),'TSA Input'!D2921,\"\"))","v":""},{"$f":"IF('TSA Input'!J2921=\"\",\"\",IF(OR('TSA Input'!J2921=\"Yes\",'TSA Input'!J2921=\"Contingent\"),'TSA Input'!G2921,\"\"))","v":""},{"$f":"IF('TSA Input'!J2921=\"\",\"\",IF(OR('TSA Input'!J2921=\"Yes\",'TSA Input'!J2921=\"Contingent\"),'TSA Input'!F2921,\"\"))","v":""},"","Required","Required"]
["",null,{"$f":"IF('TSA Input'!J2922=\"\",\"\",IF(OR('TSA Input'!J2922=\"Yes\",'TSA Input'!J2922=\"Contingent\"),'TSA Input'!B2922,\"Ineligible\"))","v":""},{"$f":"IF('TSA Input'!J2922=\"\",\"\",IF(OR('TSA Input'!J2922=\"Yes\",'TSA Input'!J2922=\"Contingent\"),'TSA Input'!I2922,\"\"))","v":""},{"$f":"IF('TSA Input'!J2922=\"\",\"\",IF(OR('TSA Input'!J2922=\"Yes\",'TSA Input'!J2922=\"Contingent\"),'TSA Input'!C2922,\"\"))","v":""},{"$f":"IF('TSA Input'!J2922=\"\",\"\",IF(OR('TSA Input'!J2922=\"Yes\",'TSA Input'!J2922=\"Contingent\"),'TSA Input'!D2922,\"\"))","v":""},{"$f":"IF('TSA Input'!J2922=\"\",\"\",IF(OR('TSA Input'!J2922=\"Yes\",'TSA Input'!J2922=\"Contingent\"),'TSA Input'!G2922,\"\"))","v":""},{"$f":"IF('TSA Input'!J2922=\"\",\"\",IF(OR('TSA Input'!J2922=\"Yes\",'TSA Input'!J2922=\"Contingent\"),'TSA Input'!F2922,\"\"))","v":""},"",{"$f":"IF('TSA Input'!J2922=\"\",\"\",IF(OR('TSA Input'!J2922=\"Yes\",'TSA Input'!J2922=\"Contingent\"),'TSA Input'!D2922,\"\"))","v":""},{"$f":"IF('TSA Input'!J2922=\"\",\"\",IF(OR('TSA Input'!J2922=\"Yes\",'TSA Input'!J2922=\"Contingent\"),'TSA Input'!G2922,\"\"))","v":""},{"$f":"IF('TSA Input'!J2922=\"\",\"\",IF(OR('TSA Input'!J2922=\"Yes\",'TSA Input'!J2922=\"Contingent\"),'TSA Input'!F2922,\"\"))","v":""},"","Required","Required"]
["",null,{"$f":"IF('TSA Input'!J2923=\"\",\"\",IF(OR('TSA Input'!J2923=\"Yes\",'TSA Input'!J2923=\"Contingent\"),'TSA Input'!B2923,\"Ineligible\"))","v":""},{"$f":"IF('TSA Input'!J2923=\"\",\"\",IF(OR('TSA Input'!J2923=\"Yes\",'TSA Input'!J2923=\"Contingent\"),'TSA Input'!I2923,\"\"))","v":""},{"$f":"IF('TSA Input'!J2923=\"\",\"\",IF(OR('TSA Input'!J2923=\"Yes\",'TSA Input'!J2923=\"Contingent\"),'TSA Input'!C2923,\"\"))","v":""},{"$f":"IF('TSA Input'!J2923=\"\",\"\",IF(OR('TSA Input'!J2923=\"Yes\",'TSA Input'!J2923=\"Contingent\"),'TSA Input'!D2923,\"\"))","v":""},{"$f":"IF('TSA Input'!J2923=\"\",\"\",IF(OR('TSA Input'!J2923=\"Yes\",'TSA Input'!J2923=\"Contingent\"),'TSA Input'!G2923,\"\"))","v":""},{"$f":"IF('TSA Input'!J2923=\"\",\"\",IF(OR('TSA Input'!J2923=\"Yes\",'TSA Input'!J2923=\"Contingent\"),'TSA Input'!F2923,\"\"))","v":""},"",{"$f":"IF('TSA Input'!J2923=\"\",\"\",IF(OR('TSA Input'!J2923=\"Yes\",'TSA Input'!J2923=\"Contingent\"),'TSA Input'!D2923,\"\"))","v":""},{"$f":"IF('TSA Input'!J2923=\"\",\"\",IF(OR('TSA Input'!J2923=\"Yes\",'TSA Input'!J2923=\"Contingent\"),'TSA Input'!G2923,\"\"))","v":""},{"$f":"IF('TSA Input'!J2923=\"\",\"\",IF(OR('TSA Input'!J2923=\"Yes\",'TSA Input'!J2923=\"Contingent\"),'TSA Input'!F2923,\"\"))","v":""},"","Required","Required"]
["",null,{"$f":"IF('TSA Input'!J2924=\"\",\"\",IF(OR('TSA Input'!J2924=\"Yes\",'TSA Input'!J2924=\"Contingent\"),'TSA Input'!B2924,\"Ineligible\"))","v":""},{"$f":"IF('TSA Input'!J2924=\"\",\"\",IF(OR('TSA Input'!J2924=\"Yes\",'TSA Input'!J2924=\"Contingent\"),'TSA Input'!I2924,\"\"))","v":""},{"$f":"IF('TSA Input'!J2924=\"\",\"\",IF(OR('TSA Input'!J2924=\"Yes\",'TSA Input'!J2924=\"Contingent\"),'TSA Input'!C2924,\"\"))","v":""},{"$f":"IF('TSA Input'!J2924=\"\",\"\",IF(OR('TSA Input'!J2924=\"Yes\",'TSA Input'!J2924=\"Contingent\"),'TSA Input'!D2924,\"\"))","v":""},{"$f":"IF('TSA Input'!J2924=\"\",\"\",IF(OR('TSA Input'!J2924=\"Yes\",'TSA Input'!J2924=\"Contingent\"),'TSA Input'!G2924,\"\"))","v":""},{"$f":"IF('TSA Input'!J2924=\"\",\"\",IF(OR('TSA Input'!J2924=\"Yes\",'TSA Input'!J2924=\"Contingent\"),'TSA Input'!F2924,\"\"))","v":""},"",{"$f":"IF('TSA Input'!J2924=\"\",\"\",IF(OR('TSA Input'!J2924=\"Yes\",'TSA Input'!J2924=\"Contingent\"),'TSA Input'!D2924,\"\"))","v":""},{"$f":"IF('TSA Input'!J2924=\"\",\"\",IF(OR('TSA Input'!J2924=\"Yes\",'TSA Input'!J2924=\"Contingent\"),'TSA Input'!G2924,\"\"))","v":""},{"$f":"IF('TSA Input'!J2924=\"\",\"\",IF(OR('TSA Input'!J2924=\"Yes\",'TSA Input'!J2924=\"Contingent\"),'TSA Input'!F2924,\"\"))","v":""},"","Required","Required"]
["",null,{"$f":"IF('TSA Input'!J2925=\"\",\"\",IF(OR('TSA Input'!J2925=\"Yes\",'TSA Input'!J2925=\"Contingent\"),'TSA Input'!B2925,\"Ineligible\"))","v":""},{"$f":"IF('TSA Input'!J2925=\"\",\"\",IF(OR('TSA Input'!J2925=\"Yes\",'TSA Input'!J2925=\"Contingent\"),'TSA Input'!I2925,\"\"))","v":""},{"$f":"IF('TSA Input'!J2925=\"\",\"\",IF(OR('TSA Input'!J2925=\"Yes\",'TSA Input'!J2925=\"Contingent\"),'TSA Input'!C2925,\"\"))","v":""},{"$f":"IF('TSA Input'!J2925=\"\",\"\",IF(OR('TSA Input'!J2925=\"Yes\",'TSA Input'!J2925=\"Contingent\"),'TSA Input'!D2925,\"\"))","v":""},{"$f":"IF('TSA Input'!J2925=\"\",\"\",IF(OR('TSA Input'!J2925=\"Yes\",'TSA Input'!J2925=\"Contingent\"),'TSA Input'!G2925,\"\"))","v":""},{"$f":"IF('TSA Input'!J2925=\"\",\"\",IF(OR('TSA Input'!J2925=\"Yes\",'TSA Input'!J2925=\"Contingent\"),'TSA Input'!F2925,\"\"))","v":""},"",{"$f":"IF('TSA Input'!J2925=\"\",\"\",IF(OR('TSA Input'!J2925=\"Yes\",'TSA Input'!J2925=\"Contingent\"),'TSA Input'!D2925,\"\"))","v":""},{"$f":"IF('TSA Input'!J2925=\"\",\"\",IF(OR('TSA Input'!J2925=\"Yes\",'TSA Input'!J2925=\"Contingent\"),'TSA Input'!G2925,\"\"))","v":""},{"$f":"IF('TSA Input'!J2925=\"\",\"\",IF(OR('TSA Input'!J2925=\"Yes\",'TSA Input'!J2925=\"Contingent\"),'TSA Input'!F2925,\"\"))","v":""},"","Required","Required"]
["",null,{"$f":"IF('TSA Input'!J2926=\"\",\"\",IF(OR('TSA Input'!J2926=\"Yes\",'TSA Input'!J2926=\"Contingent\"),'TSA Input'!B2926,\"Ineligible\"))","v":""},{"$f":"IF('TSA Input'!J2926=\"\",\"\",IF(OR('TSA Input'!J2926=\"Yes\",'TSA Input'!J2926=\"Contingent\"),'TSA Input'!I2926,\"\"))","v":""},{"$f":"IF('TSA Input'!J2926=\"\",\"\",IF(OR('TSA Input'!J2926=\"Yes\",'TSA Input'!J2926=\"Contingent\"),'TSA Input'!C2926,\"\"))","v":""},{"$f":"IF('TSA Input'!J2926=\"\",\"\",IF(OR('TSA Input'!J2926=\"Yes\",'TSA Input'!J2926=\"Contingent\"),'TSA Input'!D2926,\"\"))","v":""},{"$f":"IF('TSA Input'!J2926=\"\",\"\",IF(OR('TSA Input'!J2926=\"Yes\",'TSA Input'!J2926=\"Contingent\"),'TSA Input'!G2926,\"\"))","v":""},{"$f":"IF('TSA Input'!J2926=\"\",\"\",IF(OR('TSA Input'!J2926=\"Yes\",'TSA Input'!J2926=\"Contingent\"),'TSA Input'!F2926,\"\"))","v":""},"",{"$f":"IF('TSA Input'!J2926=\"\",\"\",IF(OR('TSA Input'!J2926=\"Yes\",'TSA Input'!J2926=\"Contingent\"),'TSA Input'!D2926,\"\"))","v":""},{"$f":"IF('TSA Input'!J2926=\"\",\"\",IF(OR('TSA Input'!J2926=\"Yes\",'TSA Input'!J2926=\"Contingent\"),'TSA Input'!G2926,\"\"))","v":""},{"$f":"IF('TSA Input'!J2926=\"\",\"\",IF(OR('TSA Input'!J2926=\"Yes\",'TSA Input'!J2926=\"Contingent\"),'TSA Input'!F2926,\"\"))","v":""},"","Required","Required"]
["",null,{"$f":"IF('TSA Input'!J2927=\"\",\"\",IF(OR('TSA Input'!J2927=\"Yes\",'TSA Input'!J2927=\"Contingent\"),'TSA Input'!B2927,\"Ineligible\"))","v":""},{"$f":"IF('TSA Input'!J2927=\"\",\"\",IF(OR('TSA Input'!J2927=\"Yes\",'TSA Input'!J2927=\"Contingent\"),'TSA Input'!I2927,\"\"))","v":""},{"$f":"IF('TSA Input'!J2927=\"\",\"\",IF(OR('TSA Input'!J2927=\"Yes\",'TSA Input'!J2927=\"Contingent\"),'TSA Input'!C2927,\"\"))","v":""},{"$f":"IF('TSA Input'!J2927=\"\",\"\",IF(OR('TSA Input'!J2927=\"Yes\",'TSA Input'!J2927=\"Contingent\"),'TSA Input'!D2927,\"\"))","v":""},{"$f":"IF('TSA Input'!J2927=\"\",\"\",IF(OR('TSA Input'!J2927=\"Yes\",'TSA Input'!J2927=\"Contingent\"),'TSA Input'!G2927,\"\"))","v":""},{"$f":"IF('TSA Input'!J2927=\"\",\"\",IF(OR('TSA Input'!J2927=\"Yes\",'TSA Input'!J2927=\"Contingent\"),'TSA Input'!F2927,\"\"))","v":""},"",{"$f":"IF('TSA Input'!J2927=\"\",\"\",IF(OR('TSA Input'!J2927=\"Yes\",'TSA Input'!J2927=\"Contingent\"),'TSA Input'!D2927,\"\"))","v":""},{"$f":"IF('TSA Input'!J2927=\"\",\"\",IF(OR('TSA Input'!J2927=\"Yes\",'TSA Input'!J2927=\"Contingent\"),'TSA Input'!G2927,\"\"))","v":""},{"$f":"IF('TSA Input'!J2927=\"\",\"\",IF(OR('TSA Input'!J2927=\"Yes\",'TSA Input'!J2927=\"Contingent\"),'TSA Input'!F2927,\"\"))","v":""},"","Required","Required"]
["",null,{"$f":"IF('TSA Input'!J2928=\"\",\"\",IF(OR('TSA Input'!J2928=\"Yes\",'TSA Input'!J2928=\"Contingent\"),'TSA Input'!B2928,\"Ineligible\"))","v":""},{"$f":"IF('TSA Input'!J2928=\"\",\"\",IF(OR('TSA Input'!J2928=\"Yes\",'TSA Input'!J2928=\"Contingent\"),'TSA Input'!I2928,\"\"))","v":""},{"$f":"IF('TSA Input'!J2928=\"\",\"\",IF(OR('TSA Input'!J2928=\"Yes\",'TSA Input'!J2928=\"Contingent\"),'TSA Input'!C2928,\"\"))","v":""},{"$f":"IF('TSA Input'!J2928=\"\",\"\",IF(OR('TSA Input'!J2928=\"Yes\",'TSA Input'!J2928=\"Contingent\"),'TSA Input'!D2928,\"\"))","v":""},{"$f":"IF('TSA Input'!J2928=\"\",\"\",IF(OR('TSA Input'!J2928=\"Yes\",'TSA Input'!J2928=\"Contingent\"),'TSA Input'!G2928,\"\"))","v":""},{"$f":"IF('TSA Input'!J2928=\"\",\"\",IF(OR('TSA Input'!J2928=\"Yes\",'TSA Input'!J2928=\"Contingent\"),'TSA Input'!F2928,\"\"))","v":""},"",{"$f":"IF('TSA Input'!J2928=\"\",\"\",IF(OR('TSA Input'!J2928=\"Yes\",'TSA Input'!J2928=\"Contingent\"),'TSA Input'!D2928,\"\"))","v":""},{"$f":"IF('TSA Input'!J2928=\"\",\"\",IF(OR('TSA Input'!J2928=\"Yes\",'TSA Input'!J2928=\"Contingent\"),'TSA Input'!G2928,\"\"))","v":""},{"$f":"IF('TSA Input'!J2928=\"\",\"\",IF(OR('TSA Input'!J2928=\"Yes\",'TSA Input'!J2928=\"Contingent\"),'TSA Input'!F2928,\"\"))","v":""},"","Required","Required"]
["",null,{"$f":"IF('TSA Input'!J2929=\"\",\"\",IF(OR('TSA Input'!J2929=\"Yes\",'TSA Input'!J2929=\"Contingent\"),'TSA Input'!B2929,\"Ineligible\"))","v":""},{"$f":"IF('TSA Input'!J2929=\"\",\"\",IF(OR('TSA Input'!J2929=\"Yes\",'TSA Input'!J2929=\"Contingent\"),'TSA Input'!I2929,\"\"))","v":""},{"$f":"IF('TSA Input'!J2929=\"\",\"\",IF(OR('TSA Input'!J2929=\"Yes\",'TSA Input'!J2929=\"Contingent\"),'TSA Input'!C2929,\"\"))","v":""},{"$f":"IF('TSA Input'!J2929=\"\",\"\",IF(OR('TSA Input'!J2929=\"Yes\",'TSA Input'!J2929=\"Contingent\"),'TSA Input'!D2929,\"\"))","v":""},{"$f":"IF('TSA Input'!J2929=\"\",\"\",IF(OR('TSA Input'!J2929=\"Yes\",'TSA Input'!J2929=\"Contingent\"),'TSA Input'!G2929,\"\"))","v":""},{"$f":"IF('TSA Input'!J2929=\"\",\"\",IF(OR('TSA Input'!J2929=\"Yes\",'TSA Input'!J2929=\"Contingent\"),'TSA Input'!F2929,\"\"))","v":""},"",{"$f":"IF('TSA Input'!J2929=\"\",\"\",IF(OR('TSA Input'!J2929=\"Yes\",'TSA Input'!J2929=\"Contingent\"),'TSA Input'!D2929,\"\"))","v":""},{"$f":"IF('TSA Input'!J2929=\"\",\"\",IF(OR('TSA Input'!J2929=\"Yes\",'TSA Input'!J2929=\"Contingent\"),'TSA Input'!G2929,\"\"))","v":""},{"$f":"IF('TSA Input'!J2929=\"\",\"\",IF(OR('TSA Input'!J2929=\"Yes\",'TSA Input'!J2929=\"Contingent\"),'TSA Input'!F2929,\"\"))","v":""},"","Required","Required"]
["",null,{"$f":"IF('TSA Input'!J2930=\"\",\"\",IF(OR('TSA Input'!J2930=\"Yes\",'TSA Input'!J2930=\"Contingent\"),'TSA Input'!B2930,\"Ineligible\"))","v":""},{"$f":"IF('TSA Input'!J2930=\"\",\"\",IF(OR('TSA Input'!J2930=\"Yes\",'TSA Input'!J2930=\"Contingent\"),'TSA Input'!I2930,\"\"))","v":""},{"$f":"IF('TSA Input'!J2930=\"\",\"\",IF(OR('TSA Input'!J2930=\"Yes\",'TSA Input'!J2930=\"Contingent\"),'TSA Input'!C2930,\"\"))","v":""},{"$f":"IF('TSA Input'!J2930=\"\",\"\",IF(OR('TSA Input'!J2930=\"Yes\",'TSA Input'!J2930=\"Contingent\"),'TSA Input'!D2930,\"\"))","v":""},{"$f":"IF('TSA Input'!J2930=\"\",\"\",IF(OR('TSA Input'!J2930=\"Yes\",'TSA Input'!J2930=\"Contingent\"),'TSA Input'!G2930,\"\"))","v":""},{"$f":"IF('TSA Input'!J2930=\"\",\"\",IF(OR('TSA Input'!J2930=\"Yes\",'TSA Input'!J2930=\"Contingent\"),'TSA Input'!F2930,\"\"))","v":""},"",{"$f":"IF('TSA Input'!J2930=\"\",\"\",IF(OR('TSA Input'!J2930=\"Yes\",'TSA Input'!J2930=\"Contingent\"),'TSA Input'!D2930,\"\"))","v":""},{"$f":"IF('TSA Input'!J2930=\"\",\"\",IF(OR('TSA Input'!J2930=\"Yes\",'TSA Input'!J2930=\"Contingent\"),'TSA Input'!G2930,\"\"))","v":""},{"$f":"IF('TSA Input'!J2930=\"\",\"\",IF(OR('TSA Input'!J2930=\"Yes\",'TSA Input'!J2930=\"Contingent\"),'TSA Input'!F2930,\"\"))","v":""},"","Required","Required"]
["",null,{"$f":"IF('TSA Input'!J2931=\"\",\"\",IF(OR('TSA Input'!J2931=\"Yes\",'TSA Input'!J2931=\"Contingent\"),'TSA Input'!B2931,\"Ineligible\"))","v":""},{"$f":"IF('TSA Input'!J2931=\"\",\"\",IF(OR('TSA Input'!J2931=\"Yes\",'TSA Input'!J2931=\"Contingent\"),'TSA Input'!I2931,\"\"))","v":""},{"$f":"IF('TSA Input'!J2931=\"\",\"\",IF(OR('TSA Input'!J2931=\"Yes\",'TSA Input'!J2931=\"Contingent\"),'TSA Input'!C2931,\"\"))","v":""},{"$f":"IF('TSA Input'!J2931=\"\",\"\",IF(OR('TSA Input'!J2931=\"Yes\",'TSA Input'!J2931=\"Contingent\"),'TSA Input'!D2931,\"\"))","v":""},{"$f":"IF('TSA Input'!J2931=\"\",\"\",IF(OR('TSA Input'!J2931=\"Yes\",'TSA Input'!J2931=\"Contingent\"),'TSA Input'!G2931,\"\"))","v":""},{"$f":"IF('TSA Input'!J2931=\"\",\"\",IF(OR('TSA Input'!J2931=\"Yes\",'TSA Input'!J2931=\"Contingent\"),'TSA Input'!F2931,\"\"))","v":""},"",{"$f":"IF('TSA Input'!J2931=\"\",\"\",IF(OR('TSA Input'!J2931=\"Yes\",'TSA Input'!J2931=\"Contingent\"),'TSA Input'!D2931,\"\"))","v":""},{"$f":"IF('TSA Input'!J2931=\"\",\"\",IF(OR('TSA Input'!J2931=\"Yes\",'TSA Input'!J2931=\"Contingent\"),'TSA Input'!G2931,\"\"))","v":""},{"$f":"IF('TSA Input'!J2931=\"\",\"\",IF(OR('TSA Input'!J2931=\"Yes\",'TSA Input'!J2931=\"Contingent\"),'TSA Input'!F2931,\"\"))","v":""},"","Required","Required"]
["",null,{"$f":"IF('TSA Input'!J2932=\"\",\"\",IF(OR('TSA Input'!J2932=\"Yes\",'TSA Input'!J2932=\"Contingent\"),'TSA Input'!B2932,\"Ineligible\"))","v":""},{"$f":"IF('TSA Input'!J2932=\"\",\"\",IF(OR('TSA Input'!J2932=\"Yes\",'TSA Input'!J2932=\"Contingent\"),'TSA Input'!I2932,\"\"))","v":""},{"$f":"IF('TSA Input'!J2932=\"\",\"\",IF(OR('TSA Input'!J2932=\"Yes\",'TSA Input'!J2932=\"Contingent\"),'TSA Input'!C2932,\"\"))","v":""},{"$f":"IF('TSA Input'!J2932=\"\",\"\",IF(OR('TSA Input'!J2932=\"Yes\",'TSA Input'!J2932=\"Contingent\"),'TSA Input'!D2932,\"\"))","v":""},{"$f":"IF('TSA Input'!J2932=\"\",\"\",IF(OR('TSA Input'!J2932=\"Yes\",'TSA Input'!J2932=\"Contingent\"),'TSA Input'!G2932,\"\"))","v":""},{"$f":"IF('TSA Input'!J2932=\"\",\"\",IF(OR('TSA Input'!J2932=\"Yes\",'TSA Input'!J2932=\"Contingent\"),'TSA Input'!F2932,\"\"))","v":""},"",{"$f":"IF('TSA Input'!J2932=\"\",\"\",IF(OR('TSA Input'!J2932=\"Yes\",'TSA Input'!J2932=\"Contingent\"),'TSA Input'!D2932,\"\"))","v":""},{"$f":"IF('TSA Input'!J2932=\"\",\"\",IF(OR('TSA Input'!J2932=\"Yes\",'TSA Input'!J2932=\"Contingent\"),'TSA Input'!G2932,\"\"))","v":""},{"$f":"IF('TSA Input'!J2932=\"\",\"\",IF(OR('TSA Input'!J2932=\"Yes\",'TSA Input'!J2932=\"Contingent\"),'TSA Input'!F2932,\"\"))","v":""},"","Required","Required"]
["",null,{"$f":"IF('TSA Input'!J2933=\"\",\"\",IF(OR('TSA Input'!J2933=\"Yes\",'TSA Input'!J2933=\"Contingent\"),'TSA Input'!B2933,\"Ineligible\"))","v":""},{"$f":"IF('TSA Input'!J2933=\"\",\"\",IF(OR('TSA Input'!J2933=\"Yes\",'TSA Input'!J2933=\"Contingent\"),'TSA Input'!I2933,\"\"))","v":""},{"$f":"IF('TSA Input'!J2933=\"\",\"\",IF(OR('TSA Input'!J2933=\"Yes\",'TSA Input'!J2933=\"Contingent\"),'TSA Input'!C2933,\"\"))","v":""},{"$f":"IF('TSA Input'!J2933=\"\",\"\",IF(OR('TSA Input'!J2933=\"Yes\",'TSA Input'!J2933=\"Contingent\"),'TSA Input'!D2933,\"\"))","v":""},{"$f":"IF('TSA Input'!J2933=\"\",\"\",IF(OR('TSA Input'!J2933=\"Yes\",'TSA Input'!J2933=\"Contingent\"),'TSA Input'!G2933,\"\"))","v":""},{"$f":"IF('TSA Input'!J2933=\"\",\"\",IF(OR('TSA Input'!J2933=\"Yes\",'TSA Input'!J2933=\"Contingent\"),'TSA Input'!F2933,\"\"))","v":""},"",{"$f":"IF('TSA Input'!J2933=\"\",\"\",IF(OR('TSA Input'!J2933=\"Yes\",'TSA Input'!J2933=\"Contingent\"),'TSA Input'!D2933,\"\"))","v":""},{"$f":"IF('TSA Input'!J2933=\"\",\"\",IF(OR('TSA Input'!J2933=\"Yes\",'TSA Input'!J2933=\"Contingent\"),'TSA Input'!G2933,\"\"))","v":""},{"$f":"IF('TSA Input'!J2933=\"\",\"\",IF(OR('TSA Input'!J2933=\"Yes\",'TSA Input'!J2933=\"Contingent\"),'TSA Input'!F2933,\"\"))","v":""},"","Required","Required"]
["",null,{"$f":"IF('TSA Input'!J2934=\"\",\"\",IF(OR('TSA Input'!J2934=\"Yes\",'TSA Input'!J2934=\"Contingent\"),'TSA Input'!B2934,\"Ineligible\"))","v":""},{"$f":"IF('TSA Input'!J2934=\"\",\"\",IF(OR('TSA Input'!J2934=\"Yes\",'TSA Input'!J2934=\"Contingent\"),'TSA Input'!I2934,\"\"))","v":""},{"$f":"IF('TSA Input'!J2934=\"\",\"\",IF(OR('TSA Input'!J2934=\"Yes\",'TSA Input'!J2934=\"Contingent\"),'TSA Input'!C2934,\"\"))","v":""},{"$f":"IF('TSA Input'!J2934=\"\",\"\",IF(OR('TSA Input'!J2934=\"Yes\",'TSA Input'!J2934=\"Contingent\"),'TSA Input'!D2934,\"\"))","v":""},{"$f":"IF('TSA Input'!J2934=\"\",\"\",IF(OR('TSA Input'!J2934=\"Yes\",'TSA Input'!J2934=\"Contingent\"),'TSA Input'!G2934,\"\"))","v":""},{"$f":"IF('TSA Input'!J2934=\"\",\"\",IF(OR('TSA Input'!J2934=\"Yes\",'TSA Input'!J2934=\"Contingent\"),'TSA Input'!F2934,\"\"))","v":""},"",{"$f":"IF('TSA Input'!J2934=\"\",\"\",IF(OR('TSA Input'!J2934=\"Yes\",'TSA Input'!J2934=\"Contingent\"),'TSA Input'!D2934,\"\"))","v":""},{"$f":"IF('TSA Input'!J2934=\"\",\"\",IF(OR('TSA Input'!J2934=\"Yes\",'TSA Input'!J2934=\"Contingent\"),'TSA Input'!G2934,\"\"))","v":""},{"$f":"IF('TSA Input'!J2934=\"\",\"\",IF(OR('TSA Input'!J2934=\"Yes\",'TSA Input'!J2934=\"Contingent\"),'TSA Input'!F2934,\"\"))","v":""},"","Required","Required"]
["",null,{"$f":"IF('TSA Input'!J2935=\"\",\"\",IF(OR('TSA Input'!J2935=\"Yes\",'TSA Input'!J2935=\"Contingent\"),'TSA Input'!B2935,\"Ineligible\"))","v":""},{"$f":"IF('TSA Input'!J2935=\"\",\"\",IF(OR('TSA Input'!J2935=\"Yes\",'TSA Input'!J2935=\"Contingent\"),'TSA Input'!I2935,\"\"))","v":""},{"$f":"IF('TSA Input'!J2935=\"\",\"\",IF(OR('TSA Input'!J2935=\"Yes\",'TSA Input'!J2935=\"Contingent\"),'TSA Input'!C2935,\"\"))","v":""},{"$f":"IF('TSA Input'!J2935=\"\",\"\",IF(OR('TSA Input'!J2935=\"Yes\",'TSA Input'!J2935=\"Contingent\"),'TSA Input'!D2935,\"\"))","v":""},{"$f":"IF('TSA Input'!J2935=\"\",\"\",IF(OR('TSA Input'!J2935=\"Yes\",'TSA Input'!J2935=\"Contingent\"),'TSA Input'!G2935,\"\"))","v":""},{"$f":"IF('TSA Input'!J2935=\"\",\"\",IF(OR('TSA Input'!J2935=\"Yes\",'TSA Input'!J2935=\"Contingent\"),'TSA Input'!F2935,\"\"))","v":""},"",{"$f":"IF('TSA Input'!J2935=\"\",\"\",IF(OR('TSA Input'!J2935=\"Yes\",'TSA Input'!J2935=\"Contingent\"),'TSA Input'!D2935,\"\"))","v":""},{"$f":"IF('TSA Input'!J2935=\"\",\"\",IF(OR('TSA Input'!J2935=\"Yes\",'TSA Input'!J2935=\"Contingent\"),'TSA Input'!G2935,\"\"))","v":""},{"$f":"IF('TSA Input'!J2935=\"\",\"\",IF(OR('TSA Input'!J2935=\"Yes\",'TSA Input'!J2935=\"Contingent\"),'TSA Input'!F2935,\"\"))","v":""},"","Required","Required"]
["",null,{"$f":"IF('TSA Input'!J2936=\"\",\"\",IF(OR('TSA Input'!J2936=\"Yes\",'TSA Input'!J2936=\"Contingent\"),'TSA Input'!B2936,\"Ineligible\"))","v":""},{"$f":"IF('TSA Input'!J2936=\"\",\"\",IF(OR('TSA Input'!J2936=\"Yes\",'TSA Input'!J2936=\"Contingent\"),'TSA Input'!I2936,\"\"))","v":""},{"$f":"IF('TSA Input'!J2936=\"\",\"\",IF(OR('TSA Input'!J2936=\"Yes\",'TSA Input'!J2936=\"Contingent\"),'TSA Input'!C2936,\"\"))","v":""},{"$f":"IF('TSA Input'!J2936=\"\",\"\",IF(OR('TSA Input'!J2936=\"Yes\",'TSA Input'!J2936=\"Contingent\"),'TSA Input'!D2936,\"\"))","v":""},{"$f":"IF('TSA Input'!J2936=\"\",\"\",IF(OR('TSA Input'!J2936=\"Yes\",'TSA Input'!J2936=\"Contingent\"),'TSA Input'!G2936,\"\"))","v":""},{"$f":"IF('TSA Input'!J2936=\"\",\"\",IF(OR('TSA Input'!J2936=\"Yes\",'TSA Input'!J2936=\"Contingent\"),'TSA Input'!F2936,\"\"))","v":""},"",{"$f":"IF('TSA Input'!J2936=\"\",\"\",IF(OR('TSA Input'!J2936=\"Yes\",'TSA Input'!J2936=\"Contingent\"),'TSA Input'!D2936,\"\"))","v":""},{"$f":"IF('TSA Input'!J2936=\"\",\"\",IF(OR('TSA Input'!J2936=\"Yes\",'TSA Input'!J2936=\"Contingent\"),'TSA Input'!G2936,\"\"))","v":""},{"$f":"IF('TSA Input'!J2936=\"\",\"\",IF(OR('TSA Input'!J2936=\"Yes\",'TSA Input'!J2936=\"Contingent\"),'TSA Input'!F2936,\"\"))","v":""},"","Required","Required"]
["",null,{"$f":"IF('TSA Input'!J2937=\"\",\"\",IF(OR('TSA Input'!J2937=\"Yes\",'TSA Input'!J2937=\"Contingent\"),'TSA Input'!B2937,\"Ineligible\"))","v":""},{"$f":"IF('TSA Input'!J2937=\"\",\"\",IF(OR('TSA Input'!J2937=\"Yes\",'TSA Input'!J2937=\"Contingent\"),'TSA Input'!I2937,\"\"))","v":""},{"$f":"IF('TSA Input'!J2937=\"\",\"\",IF(OR('TSA Input'!J2937=\"Yes\",'TSA Input'!J2937=\"Contingent\"),'TSA Input'!C2937,\"\"))","v":""},{"$f":"IF('TSA Input'!J2937=\"\",\"\",IF(OR('TSA Input'!J2937=\"Yes\",'TSA Input'!J2937=\"Contingent\"),'TSA Input'!D2937,\"\"))","v":""},{"$f":"IF('TSA Input'!J2937=\"\",\"\",IF(OR('TSA Input'!J2937=\"Yes\",'TSA Input'!J2937=\"Contingent\"),'TSA Input'!G2937,\"\"))","v":""},{"$f":"IF('TSA Input'!J2937=\"\",\"\",IF(OR('TSA Input'!J2937=\"Yes\",'TSA Input'!J2937=\"Contingent\"),'TSA Input'!F2937,\"\"))","v":""},"",{"$f":"IF('TSA Input'!J2937=\"\",\"\",IF(OR('TSA Input'!J2937=\"Yes\",'TSA Input'!J2937=\"Contingent\"),'TSA Input'!D2937,\"\"))","v":""},{"$f":"IF('TSA Input'!J2937=\"\",\"\",IF(OR('TSA Input'!J2937=\"Yes\",'TSA Input'!J2937=\"Contingent\"),'TSA Input'!G2937,\"\"))","v":""},{"$f":"IF('TSA Input'!J2937=\"\",\"\",IF(OR('TSA Input'!J2937=\"Yes\",'TSA Input'!J2937=\"Contingent\"),'TSA Input'!F2937,\"\"))","v":""},"","Required","Required"]
["",null,{"$f":"IF('TSA Input'!J2938=\"\",\"\",IF(OR('TSA Input'!J2938=\"Yes\",'TSA Input'!J2938=\"Contingent\"),'TSA Input'!B2938,\"Ineligible\"))","v":""},{"$f":"IF('TSA Input'!J2938=\"\",\"\",IF(OR('TSA Input'!J2938=\"Yes\",'TSA Input'!J2938=\"Contingent\"),'TSA Input'!I2938,\"\"))","v":""},{"$f":"IF('TSA Input'!J2938=\"\",\"\",IF(OR('TSA Input'!J2938=\"Yes\",'TSA Input'!J2938=\"Contingent\"),'TSA Input'!C2938,\"\"))","v":""},{"$f":"IF('TSA Input'!J2938=\"\",\"\",IF(OR('TSA Input'!J2938=\"Yes\",'TSA Input'!J2938=\"Contingent\"),'TSA Input'!D2938,\"\"))","v":""},{"$f":"IF('TSA Input'!J2938=\"\",\"\",IF(OR('TSA Input'!J2938=\"Yes\",'TSA Input'!J2938=\"Contingent\"),'TSA Input'!G2938,\"\"))","v":""},{"$f":"IF('TSA Input'!J2938=\"\",\"\",IF(OR('TSA Input'!J2938=\"Yes\",'TSA Input'!J2938=\"Contingent\"),'TSA Input'!F2938,\"\"))","v":""},"",{"$f":"IF('TSA Input'!J2938=\"\",\"\",IF(OR('TSA Input'!J2938=\"Yes\",'TSA Input'!J2938=\"Contingent\"),'TSA Input'!D2938,\"\"))","v":""},{"$f":"IF('TSA Input'!J2938=\"\",\"\",IF(OR('TSA Input'!J2938=\"Yes\",'TSA Input'!J2938=\"Contingent\"),'TSA Input'!G2938,\"\"))","v":""},{"$f":"IF('TSA Input'!J2938=\"\",\"\",IF(OR('TSA Input'!J2938=\"Yes\",'TSA Input'!J2938=\"Contingent\"),'TSA Input'!F2938,\"\"))","v":""},"","Required","Required"]
["",null,{"$f":"IF('TSA Input'!J2939=\"\",\"\",IF(OR('TSA Input'!J2939=\"Yes\",'TSA Input'!J2939=\"Contingent\"),'TSA Input'!B2939,\"Ineligible\"))","v":""},{"$f":"IF('TSA Input'!J2939=\"\",\"\",IF(OR('TSA Input'!J2939=\"Yes\",'TSA Input'!J2939=\"Contingent\"),'TSA Input'!I2939,\"\"))","v":""},{"$f":"IF('TSA Input'!J2939=\"\",\"\",IF(OR('TSA Input'!J2939=\"Yes\",'TSA Input'!J2939=\"Contingent\"),'TSA Input'!C2939,\"\"))","v":""},{"$f":"IF('TSA Input'!J2939=\"\",\"\",IF(OR('TSA Input'!J2939=\"Yes\",'TSA Input'!J2939=\"Contingent\"),'TSA Input'!D2939,\"\"))","v":""},{"$f":"IF('TSA Input'!J2939=\"\",\"\",IF(OR('TSA Input'!J2939=\"Yes\",'TSA Input'!J2939=\"Contingent\"),'TSA Input'!G2939,\"\"))","v":""},{"$f":"IF('TSA Input'!J2939=\"\",\"\",IF(OR('TSA Input'!J2939=\"Yes\",'TSA Input'!J2939=\"Contingent\"),'TSA Input'!F2939,\"\"))","v":""},"",{"$f":"IF('TSA Input'!J2939=\"\",\"\",IF(OR('TSA Input'!J2939=\"Yes\",'TSA Input'!J2939=\"Contingent\"),'TSA Input'!D2939,\"\"))","v":""},{"$f":"IF('TSA Input'!J2939=\"\",\"\",IF(OR('TSA Input'!J2939=\"Yes\",'TSA Input'!J2939=\"Contingent\"),'TSA Input'!G2939,\"\"))","v":""},{"$f":"IF('TSA Input'!J2939=\"\",\"\",IF(OR('TSA Input'!J2939=\"Yes\",'TSA Input'!J2939=\"Contingent\"),'TSA Input'!F2939,\"\"))","v":""},"","Required","Required"]
["",null,{"$f":"IF('TSA Input'!J2940=\"\",\"\",IF(OR('TSA Input'!J2940=\"Yes\",'TSA Input'!J2940=\"Contingent\"),'TSA Input'!B2940,\"Ineligible\"))","v":""},{"$f":"IF('TSA Input'!J2940=\"\",\"\",IF(OR('TSA Input'!J2940=\"Yes\",'TSA Input'!J2940=\"Contingent\"),'TSA Input'!I2940,\"\"))","v":""},{"$f":"IF('TSA Input'!J2940=\"\",\"\",IF(OR('TSA Input'!J2940=\"Yes\",'TSA Input'!J2940=\"Contingent\"),'TSA Input'!C2940,\"\"))","v":""},{"$f":"IF('TSA Input'!J2940=\"\",\"\",IF(OR('TSA Input'!J2940=\"Yes\",'TSA Input'!J2940=\"Contingent\"),'TSA Input'!D2940,\"\"))","v":""},{"$f":"IF('TSA Input'!J2940=\"\",\"\",IF(OR('TSA Input'!J2940=\"Yes\",'TSA Input'!J2940=\"Contingent\"),'TSA Input'!G2940,\"\"))","v":""},{"$f":"IF('TSA Input'!J2940=\"\",\"\",IF(OR('TSA Input'!J2940=\"Yes\",'TSA Input'!J2940=\"Contingent\"),'TSA Input'!F2940,\"\"))","v":""},"",{"$f":"IF('TSA Input'!J2940=\"\",\"\",IF(OR('TSA Input'!J2940=\"Yes\",'TSA Input'!J2940=\"Contingent\"),'TSA Input'!D2940,\"\"))","v":""},{"$f":"IF('TSA Input'!J2940=\"\",\"\",IF(OR('TSA Input'!J2940=\"Yes\",'TSA Input'!J2940=\"Contingent\"),'TSA Input'!G2940,\"\"))","v":""},{"$f":"IF('TSA Input'!J2940=\"\",\"\",IF(OR('TSA Input'!J2940=\"Yes\",'TSA Input'!J2940=\"Contingent\"),'TSA Input'!F2940,\"\"))","v":""},"","Required","Required"]
["",null,{"$f":"IF('TSA Input'!J2941=\"\",\"\",IF(OR('TSA Input'!J2941=\"Yes\",'TSA Input'!J2941=\"Contingent\"),'TSA Input'!B2941,\"Ineligible\"))","v":""},{"$f":"IF('TSA Input'!J2941=\"\",\"\",IF(OR('TSA Input'!J2941=\"Yes\",'TSA Input'!J2941=\"Contingent\"),'TSA Input'!I2941,\"\"))","v":""},{"$f":"IF('TSA Input'!J2941=\"\",\"\",IF(OR('TSA Input'!J2941=\"Yes\",'TSA Input'!J2941=\"Contingent\"),'TSA Input'!C2941,\"\"))","v":""},{"$f":"IF('TSA Input'!J2941=\"\",\"\",IF(OR('TSA Input'!J2941=\"Yes\",'TSA Input'!J2941=\"Contingent\"),'TSA Input'!D2941,\"\"))","v":""},{"$f":"IF('TSA Input'!J2941=\"\",\"\",IF(OR('TSA Input'!J2941=\"Yes\",'TSA Input'!J2941=\"Contingent\"),'TSA Input'!G2941,\"\"))","v":""},{"$f":"IF('TSA Input'!J2941=\"\",\"\",IF(OR('TSA Input'!J2941=\"Yes\",'TSA Input'!J2941=\"Contingent\"),'TSA Input'!F2941,\"\"))","v":""},"",{"$f":"IF('TSA Input'!J2941=\"\",\"\",IF(OR('TSA Input'!J2941=\"Yes\",'TSA Input'!J2941=\"Contingent\"),'TSA Input'!D2941,\"\"))","v":""},{"$f":"IF('TSA Input'!J2941=\"\",\"\",IF(OR('TSA Input'!J2941=\"Yes\",'TSA Input'!J2941=\"Contingent\"),'TSA Input'!G2941,\"\"))","v":""},{"$f":"IF('TSA Input'!J2941=\"\",\"\",IF(OR('TSA Input'!J2941=\"Yes\",'TSA Input'!J2941=\"Contingent\"),'TSA Input'!F2941,\"\"))","v":""},"","Required","Required"]
["",null,{"$f":"IF('TSA Input'!J2942=\"\",\"\",IF(OR('TSA Input'!J2942=\"Yes\",'TSA Input'!J2942=\"Contingent\"),'TSA Input'!B2942,\"Ineligible\"))","v":""},{"$f":"IF('TSA Input'!J2942=\"\",\"\",IF(OR('TSA Input'!J2942=\"Yes\",'TSA Input'!J2942=\"Contingent\"),'TSA Input'!I2942,\"\"))","v":""},{"$f":"IF('TSA Input'!J2942=\"\",\"\",IF(OR('TSA Input'!J2942=\"Yes\",'TSA Input'!J2942=\"Contingent\"),'TSA Input'!C2942,\"\"))","v":""},{"$f":"IF('TSA Input'!J2942=\"\",\"\",IF(OR('TSA Input'!J2942=\"Yes\",'TSA Input'!J2942=\"Contingent\"),'TSA Input'!D2942,\"\"))","v":""},{"$f":"IF('TSA Input'!J2942=\"\",\"\",IF(OR('TSA Input'!J2942=\"Yes\",'TSA Input'!J2942=\"Contingent\"),'TSA Input'!G2942,\"\"))","v":""},{"$f":"IF('TSA Input'!J2942=\"\",\"\",IF(OR('TSA Input'!J2942=\"Yes\",'TSA Input'!J2942=\"Contingent\"),'TSA Input'!F2942,\"\"))","v":""},"",{"$f":"IF('TSA Input'!J2942=\"\",\"\",IF(OR('TSA Input'!J2942=\"Yes\",'TSA Input'!J2942=\"Contingent\"),'TSA Input'!D2942,\"\"))","v":""},{"$f":"IF('TSA Input'!J2942=\"\",\"\",IF(OR('TSA Input'!J2942=\"Yes\",'TSA Input'!J2942=\"Contingent\"),'TSA Input'!G2942,\"\"))","v":""},{"$f":"IF('TSA Input'!J2942=\"\",\"\",IF(OR('TSA Input'!J2942=\"Yes\",'TSA Input'!J2942=\"Contingent\"),'TSA Input'!F2942,\"\"))","v":""},"","Required","Required"]
["",null,{"$f":"IF('TSA Input'!J2943=\"\",\"\",IF(OR('TSA Input'!J2943=\"Yes\",'TSA Input'!J2943=\"Contingent\"),'TSA Input'!B2943,\"Ineligible\"))","v":""},{"$f":"IF('TSA Input'!J2943=\"\",\"\",IF(OR('TSA Input'!J2943=\"Yes\",'TSA Input'!J2943=\"Contingent\"),'TSA Input'!I2943,\"\"))","v":""},{"$f":"IF('TSA Input'!J2943=\"\",\"\",IF(OR('TSA Input'!J2943=\"Yes\",'TSA Input'!J2943=\"Contingent\"),'TSA Input'!C2943,\"\"))","v":""},{"$f":"IF('TSA Input'!J2943=\"\",\"\",IF(OR('TSA Input'!J2943=\"Yes\",'TSA Input'!J2943=\"Contingent\"),'TSA Input'!D2943,\"\"))","v":""},{"$f":"IF('TSA Input'!J2943=\"\",\"\",IF(OR('TSA Input'!J2943=\"Yes\",'TSA Input'!J2943=\"Contingent\"),'TSA Input'!G2943,\"\"))","v":""},{"$f":"IF('TSA Input'!J2943=\"\",\"\",IF(OR('TSA Input'!J2943=\"Yes\",'TSA Input'!J2943=\"Contingent\"),'TSA Input'!F2943,\"\"))","v":""},"",{"$f":"IF('TSA Input'!J2943=\"\",\"\",IF(OR('TSA Input'!J2943=\"Yes\",'TSA Input'!J2943=\"Contingent\"),'TSA Input'!D2943,\"\"))","v":""},{"$f":"IF('TSA Input'!J2943=\"\",\"\",IF(OR('TSA Input'!J2943=\"Yes\",'TSA Input'!J2943=\"Contingent\"),'TSA Input'!G2943,\"\"))","v":""},{"$f":"IF('TSA Input'!J2943=\"\",\"\",IF(OR('TSA Input'!J2943=\"Yes\",'TSA Input'!J2943=\"Contingent\"),'TSA Input'!F2943,\"\"))","v":""},"","Required","Required"]
["",null,{"$f":"IF('TSA Input'!J2944=\"\",\"\",IF(OR('TSA Input'!J2944=\"Yes\",'TSA Input'!J2944=\"Contingent\"),'TSA Input'!B2944,\"Ineligible\"))","v":""},{"$f":"IF('TSA Input'!J2944=\"\",\"\",IF(OR('TSA Input'!J2944=\"Yes\",'TSA Input'!J2944=\"Contingent\"),'TSA Input'!I2944,\"\"))","v":""},{"$f":"IF('TSA Input'!J2944=\"\",\"\",IF(OR('TSA Input'!J2944=\"Yes\",'TSA Input'!J2944=\"Contingent\"),'TSA Input'!C2944,\"\"))","v":""},{"$f":"IF('TSA Input'!J2944=\"\",\"\",IF(OR('TSA Input'!J2944=\"Yes\",'TSA Input'!J2944=\"Contingent\"),'TSA Input'!D2944,\"\"))","v":""},{"$f":"IF('TSA Input'!J2944=\"\",\"\",IF(OR('TSA Input'!J2944=\"Yes\",'TSA Input'!J2944=\"Contingent\"),'TSA Input'!G2944,\"\"))","v":""},{"$f":"IF('TSA Input'!J2944=\"\",\"\",IF(OR('TSA Input'!J2944=\"Yes\",'TSA Input'!J2944=\"Contingent\"),'TSA Input'!F2944,\"\"))","v":""},"",{"$f":"IF('TSA Input'!J2944=\"\",\"\",IF(OR('TSA Input'!J2944=\"Yes\",'TSA Input'!J2944=\"Contingent\"),'TSA Input'!D2944,\"\"))","v":""},{"$f":"IF('TSA Input'!J2944=\"\",\"\",IF(OR('TSA Input'!J2944=\"Yes\",'TSA Input'!J2944=\"Contingent\"),'TSA Input'!G2944,\"\"))","v":""},{"$f":"IF('TSA Input'!J2944=\"\",\"\",IF(OR('TSA Input'!J2944=\"Yes\",'TSA Input'!J2944=\"Contingent\"),'TSA Input'!F2944,\"\"))","v":""},"","Required","Required"]
["",null,{"$f":"IF('TSA Input'!J2945=\"\",\"\",IF(OR('TSA Input'!J2945=\"Yes\",'TSA Input'!J2945=\"Contingent\"),'TSA Input'!B2945,\"Ineligible\"))","v":""},{"$f":"IF('TSA Input'!J2945=\"\",\"\",IF(OR('TSA Input'!J2945=\"Yes\",'TSA Input'!J2945=\"Contingent\"),'TSA Input'!I2945,\"\"))","v":""},{"$f":"IF('TSA Input'!J2945=\"\",\"\",IF(OR('TSA Input'!J2945=\"Yes\",'TSA Input'!J2945=\"Contingent\"),'TSA Input'!C2945,\"\"))","v":""},{"$f":"IF('TSA Input'!J2945=\"\",\"\",IF(OR('TSA Input'!J2945=\"Yes\",'TSA Input'!J2945=\"Contingent\"),'TSA Input'!D2945,\"\"))","v":""},{"$f":"IF('TSA Input'!J2945=\"\",\"\",IF(OR('TSA Input'!J2945=\"Yes\",'TSA Input'!J2945=\"Contingent\"),'TSA Input'!G2945,\"\"))","v":""},{"$f":"IF('TSA Input'!J2945=\"\",\"\",IF(OR('TSA Input'!J2945=\"Yes\",'TSA Input'!J2945=\"Contingent\"),'TSA Input'!F2945,\"\"))","v":""},"",{"$f":"IF('TSA Input'!J2945=\"\",\"\",IF(OR('TSA Input'!J2945=\"Yes\",'TSA Input'!J2945=\"Contingent\"),'TSA Input'!D2945,\"\"))","v":""},{"$f":"IF('TSA Input'!J2945=\"\",\"\",IF(OR('TSA Input'!J2945=\"Yes\",'TSA Input'!J2945=\"Contingent\"),'TSA Input'!G2945,\"\"))","v":""},{"$f":"IF('TSA Input'!J2945=\"\",\"\",IF(OR('TSA Input'!J2945=\"Yes\",'TSA Input'!J2945=\"Contingent\"),'TSA Input'!F2945,\"\"))","v":""},"","Required","Required"]
["",null,{"$f":"IF('TSA Input'!J2946=\"\",\"\",IF(OR('TSA Input'!J2946=\"Yes\",'TSA Input'!J2946=\"Contingent\"),'TSA Input'!B2946,\"Ineligible\"))","v":""},{"$f":"IF('TSA Input'!J2946=\"\",\"\",IF(OR('TSA Input'!J2946=\"Yes\",'TSA Input'!J2946=\"Contingent\"),'TSA Input'!I2946,\"\"))","v":""},{"$f":"IF('TSA Input'!J2946=\"\",\"\",IF(OR('TSA Input'!J2946=\"Yes\",'TSA Input'!J2946=\"Contingent\"),'TSA Input'!C2946,\"\"))","v":""},{"$f":"IF('TSA Input'!J2946=\"\",\"\",IF(OR('TSA Input'!J2946=\"Yes\",'TSA Input'!J2946=\"Contingent\"),'TSA Input'!D2946,\"\"))","v":""},{"$f":"IF('TSA Input'!J2946=\"\",\"\",IF(OR('TSA Input'!J2946=\"Yes\",'TSA Input'!J2946=\"Contingent\"),'TSA Input'!G2946,\"\"))","v":""},{"$f":"IF('TSA Input'!J2946=\"\",\"\",IF(OR('TSA Input'!J2946=\"Yes\",'TSA Input'!J2946=\"Contingent\"),'TSA Input'!F2946,\"\"))","v":""},"",{"$f":"IF('TSA Input'!J2946=\"\",\"\",IF(OR('TSA Input'!J2946=\"Yes\",'TSA Input'!J2946=\"Contingent\"),'TSA Input'!D2946,\"\"))","v":""},{"$f":"IF('TSA Input'!J2946=\"\",\"\",IF(OR('TSA Input'!J2946=\"Yes\",'TSA Input'!J2946=\"Contingent\"),'TSA Input'!G2946,\"\"))","v":""},{"$f":"IF('TSA Input'!J2946=\"\",\"\",IF(OR('TSA Input'!J2946=\"Yes\",'TSA Input'!J2946=\"Contingent\"),'TSA Input'!F2946,\"\"))","v":""},"","Required","Required"]
["",null,{"$f":"IF('TSA Input'!J2947=\"\",\"\",IF(OR('TSA Input'!J2947=\"Yes\",'TSA Input'!J2947=\"Contingent\"),'TSA Input'!B2947,\"Ineligible\"))","v":""},{"$f":"IF('TSA Input'!J2947=\"\",\"\",IF(OR('TSA Input'!J2947=\"Yes\",'TSA Input'!J2947=\"Contingent\"),'TSA Input'!I2947,\"\"))","v":""},{"$f":"IF('TSA Input'!J2947=\"\",\"\",IF(OR('TSA Input'!J2947=\"Yes\",'TSA Input'!J2947=\"Contingent\"),'TSA Input'!C2947,\"\"))","v":""},{"$f":"IF('TSA Input'!J2947=\"\",\"\",IF(OR('TSA Input'!J2947=\"Yes\",'TSA Input'!J2947=\"Contingent\"),'TSA Input'!D2947,\"\"))","v":""},{"$f":"IF('TSA Input'!J2947=\"\",\"\",IF(OR('TSA Input'!J2947=\"Yes\",'TSA Input'!J2947=\"Contingent\"),'TSA Input'!G2947,\"\"))","v":""},{"$f":"IF('TSA Input'!J2947=\"\",\"\",IF(OR('TSA Input'!J2947=\"Yes\",'TSA Input'!J2947=\"Contingent\"),'TSA Input'!F2947,\"\"))","v":""},"",{"$f":"IF('TSA Input'!J2947=\"\",\"\",IF(OR('TSA Input'!J2947=\"Yes\",'TSA Input'!J2947=\"Contingent\"),'TSA Input'!D2947,\"\"))","v":""},{"$f":"IF('TSA Input'!J2947=\"\",\"\",IF(OR('TSA Input'!J2947=\"Yes\",'TSA Input'!J2947=\"Contingent\"),'TSA Input'!G2947,\"\"))","v":""},{"$f":"IF('TSA Input'!J2947=\"\",\"\",IF(OR('TSA Input'!J2947=\"Yes\",'TSA Input'!J2947=\"Contingent\"),'TSA Input'!F2947,\"\"))","v":""},"","Required","Required"]
["",null,{"$f":"IF('TSA Input'!J2948=\"\",\"\",IF(OR('TSA Input'!J2948=\"Yes\",'TSA Input'!J2948=\"Contingent\"),'TSA Input'!B2948,\"Ineligible\"))","v":""},{"$f":"IF('TSA Input'!J2948=\"\",\"\",IF(OR('TSA Input'!J2948=\"Yes\",'TSA Input'!J2948=\"Contingent\"),'TSA Input'!I2948,\"\"))","v":""},{"$f":"IF('TSA Input'!J2948=\"\",\"\",IF(OR('TSA Input'!J2948=\"Yes\",'TSA Input'!J2948=\"Contingent\"),'TSA Input'!C2948,\"\"))","v":""},{"$f":"IF('TSA Input'!J2948=\"\",\"\",IF(OR('TSA Input'!J2948=\"Yes\",'TSA Input'!J2948=\"Contingent\"),'TSA Input'!D2948,\"\"))","v":""},{"$f":"IF('TSA Input'!J2948=\"\",\"\",IF(OR('TSA Input'!J2948=\"Yes\",'TSA Input'!J2948=\"Contingent\"),'TSA Input'!G2948,\"\"))","v":""},{"$f":"IF('TSA Input'!J2948=\"\",\"\",IF(OR('TSA Input'!J2948=\"Yes\",'TSA Input'!J2948=\"Contingent\"),'TSA Input'!F2948,\"\"))","v":""},{"$f":"IF($C2986=\"\",\"\",SUM(F2986:H2986))","v":""},{"$f":"IF('TSA Input'!J2948=\"\",\"\",IF(OR('TSA Input'!J2948=\"Yes\",'TSA Input'!J2948=\"Contingent\"),'TSA Input'!D2948,\"\"))","v":""},{"$f":"IF('TSA Input'!J2948=\"\",\"\",IF(OR('TSA Input'!J2948=\"Yes\",'TSA Input'!J2948=\"Contingent\"),'TSA Input'!G2948,\"\"))","v":""},{"$f":"IF('TSA Input'!J2948=\"\",\"\",IF(OR('TSA Input'!J2948=\"Yes\",'TSA Input'!J2948=\"Contingent\"),'TSA Input'!F2948,\"\"))","v":""},{"$f":"IF($C2986=\"\",\"\",SUM(J2986:L2986))","v":""},"Required","Required"]
["",null,{"$f":"IF('TSA Input'!J2949=\"\",\"\",IF(OR('TSA Input'!J2949=\"Yes\",'TSA Input'!J2949=\"Contingent\"),'TSA Input'!B2949,\"Ineligible\"))","v":""},{"$f":"IF('TSA Input'!J2949=\"\",\"\",IF(OR('TSA Input'!J2949=\"Yes\",'TSA Input'!J2949=\"Contingent\"),'TSA Input'!I2949,\"\"))","v":""},{"$f":"IF('TSA Input'!J2949=\"\",\"\",IF(OR('TSA Input'!J2949=\"Yes\",'TSA Input'!J2949=\"Contingent\"),'TSA Input'!C2949,\"\"))","v":""},{"$f":"IF('TSA Input'!J2949=\"\",\"\",IF(OR('TSA Input'!J2949=\"Yes\",'TSA Input'!J2949=\"Contingent\"),'TSA Input'!D2949,\"\"))","v":""},{"$f":"IF('TSA Input'!J2949=\"\",\"\",IF(OR('TSA Input'!J2949=\"Yes\",'TSA Input'!J2949=\"Contingent\"),'TSA Input'!G2949,\"\"))","v":""},{"$f":"IF('TSA Input'!J2949=\"\",\"\",IF(OR('TSA Input'!J2949=\"Yes\",'TSA Input'!J2949=\"Contingent\"),'TSA Input'!F2949,\"\"))","v":""},"",{"$f":"IF('TSA Input'!J2949=\"\",\"\",IF(OR('TSA Input'!J2949=\"Yes\",'TSA Input'!J2949=\"Contingent\"),'TSA Input'!D2949,\"\"))","v":""},{"$f":"IF('TSA Input'!J2949=\"\",\"\",IF(OR('TSA Input'!J2949=\"Yes\",'TSA Input'!J2949=\"Contingent\"),'TSA Input'!G2949,\"\"))","v":""},{"$f":"IF('TSA Input'!J2949=\"\",\"\",IF(OR('TSA Input'!J2949=\"Yes\",'TSA Input'!J2949=\"Contingent\"),'TSA Input'!F2949,\"\"))","v":""},"","Required","Required"]
["",null,{"$f":"IF('TSA Input'!J2950=\"\",\"\",IF(OR('TSA Input'!J2950=\"Yes\",'TSA Input'!J2950=\"Contingent\"),'TSA Input'!B2950,\"Ineligible\"))","v":""},{"$f":"IF('TSA Input'!J2950=\"\",\"\",IF(OR('TSA Input'!J2950=\"Yes\",'TSA Input'!J2950=\"Contingent\"),'TSA Input'!I2950,\"\"))","v":""},{"$f":"IF('TSA Input'!J2950=\"\",\"\",IF(OR('TSA Input'!J2950=\"Yes\",'TSA Input'!J2950=\"Contingent\"),'TSA Input'!C2950,\"\"))","v":""},{"$f":"IF('TSA Input'!J2950=\"\",\"\",IF(OR('TSA Input'!J2950=\"Yes\",'TSA Input'!J2950=\"Contingent\"),'TSA Input'!D2950,\"\"))","v":""},{"$f":"IF('TSA Input'!J2950=\"\",\"\",IF(OR('TSA Input'!J2950=\"Yes\",'TSA Input'!J2950=\"Contingent\"),'TSA Input'!G2950,\"\"))","v":""},{"$f":"IF('TSA Input'!J2950=\"\",\"\",IF(OR('TSA Input'!J2950=\"Yes\",'TSA Input'!J2950=\"Contingent\"),'TSA Input'!F2950,\"\"))","v":""},"",{"$f":"IF('TSA Input'!J2950=\"\",\"\",IF(OR('TSA Input'!J2950=\"Yes\",'TSA Input'!J2950=\"Contingent\"),'TSA Input'!D2950,\"\"))","v":""},{"$f":"IF('TSA Input'!J2950=\"\",\"\",IF(OR('TSA Input'!J2950=\"Yes\",'TSA Input'!J2950=\"Contingent\"),'TSA Input'!G2950,\"\"))","v":""},{"$f":"IF('TSA Input'!J2950=\"\",\"\",IF(OR('TSA Input'!J2950=\"Yes\",'TSA Input'!J2950=\"Contingent\"),'TSA Input'!F2950,\"\"))","v":""},"","Required","Required"]
["",null,{"$f":"IF('TSA Input'!J2951=\"\",\"\",IF(OR('TSA Input'!J2951=\"Yes\",'TSA Input'!J2951=\"Contingent\"),'TSA Input'!B2951,\"Ineligible\"))","v":""},{"$f":"IF('TSA Input'!J2951=\"\",\"\",IF(OR('TSA Input'!J2951=\"Yes\",'TSA Input'!J2951=\"Contingent\"),'TSA Input'!I2951,\"\"))","v":""},{"$f":"IF('TSA Input'!J2951=\"\",\"\",IF(OR('TSA Input'!J2951=\"Yes\",'TSA Input'!J2951=\"Contingent\"),'TSA Input'!C2951,\"\"))","v":""},{"$f":"IF('TSA Input'!J2951=\"\",\"\",IF(OR('TSA Input'!J2951=\"Yes\",'TSA Input'!J2951=\"Contingent\"),'TSA Input'!D2951,\"\"))","v":""},{"$f":"IF('TSA Input'!J2951=\"\",\"\",IF(OR('TSA Input'!J2951=\"Yes\",'TSA Input'!J2951=\"Contingent\"),'TSA Input'!G2951,\"\"))","v":""},{"$f":"IF('TSA Input'!J2951=\"\",\"\",IF(OR('TSA Input'!J2951=\"Yes\",'TSA Input'!J2951=\"Contingent\"),'TSA Input'!F2951,\"\"))","v":""},"",{"$f":"IF('TSA Input'!J2951=\"\",\"\",IF(OR('TSA Input'!J2951=\"Yes\",'TSA Input'!J2951=\"Contingent\"),'TSA Input'!D2951,\"\"))","v":""},{"$f":"IF('TSA Input'!J2951=\"\",\"\",IF(OR('TSA Input'!J2951=\"Yes\",'TSA Input'!J2951=\"Contingent\"),'TSA Input'!G2951,\"\"))","v":""},{"$f":"IF('TSA Input'!J2951=\"\",\"\",IF(OR('TSA Input'!J2951=\"Yes\",'TSA Input'!J2951=\"Contingent\"),'TSA Input'!F2951,\"\"))","v":""},"","Required","Required"]
["",null,{"$f":"IF('TSA Input'!J2952=\"\",\"\",IF(OR('TSA Input'!J2952=\"Yes\",'TSA Input'!J2952=\"Contingent\"),'TSA Input'!B2952,\"Ineligible\"))","v":""},{"$f":"IF('TSA Input'!J2952=\"\",\"\",IF(OR('TSA Input'!J2952=\"Yes\",'TSA Input'!J2952=\"Contingent\"),'TSA Input'!I2952,\"\"))","v":""},{"$f":"IF('TSA Input'!J2952=\"\",\"\",IF(OR('TSA Input'!J2952=\"Yes\",'TSA Input'!J2952=\"Contingent\"),'TSA Input'!C2952,\"\"))","v":""},{"$f":"IF('TSA Input'!J2952=\"\",\"\",IF(OR('TSA Input'!J2952=\"Yes\",'TSA Input'!J2952=\"Contingent\"),'TSA Input'!D2952,\"\"))","v":""},{"$f":"IF('TSA Input'!J2952=\"\",\"\",IF(OR('TSA Input'!J2952=\"Yes\",'TSA Input'!J2952=\"Contingent\"),'TSA Input'!G2952,\"\"))","v":""},{"$f":"IF('TSA Input'!J2952=\"\",\"\",IF(OR('TSA Input'!J2952=\"Yes\",'TSA Input'!J2952=\"Contingent\"),'TSA Input'!F2952,\"\"))","v":""},"",{"$f":"IF('TSA Input'!J2952=\"\",\"\",IF(OR('TSA Input'!J2952=\"Yes\",'TSA Input'!J2952=\"Contingent\"),'TSA Input'!D2952,\"\"))","v":""},{"$f":"IF('TSA Input'!J2952=\"\",\"\",IF(OR('TSA Input'!J2952=\"Yes\",'TSA Input'!J2952=\"Contingent\"),'TSA Input'!G2952,\"\"))","v":""},{"$f":"IF('TSA Input'!J2952=\"\",\"\",IF(OR('TSA Input'!J2952=\"Yes\",'TSA Input'!J2952=\"Contingent\"),'TSA Input'!F2952,\"\"))","v":""},"","Required","Required"]
["",null,{"$f":"IF('TSA Input'!J2953=\"\",\"\",IF(OR('TSA Input'!J2953=\"Yes\",'TSA Input'!J2953=\"Contingent\"),'TSA Input'!B2953,\"Ineligible\"))","v":""},{"$f":"IF('TSA Input'!J2953=\"\",\"\",IF(OR('TSA Input'!J2953=\"Yes\",'TSA Input'!J2953=\"Contingent\"),'TSA Input'!I2953,\"\"))","v":""},{"$f":"IF('TSA Input'!J2953=\"\",\"\",IF(OR('TSA Input'!J2953=\"Yes\",'TSA Input'!J2953=\"Contingent\"),'TSA Input'!C2953,\"\"))","v":""},{"$f":"IF('TSA Input'!J2953=\"\",\"\",IF(OR('TSA Input'!J2953=\"Yes\",'TSA Input'!J2953=\"Contingent\"),'TSA Input'!D2953,\"\"))","v":""},{"$f":"IF('TSA Input'!J2953=\"\",\"\",IF(OR('TSA Input'!J2953=\"Yes\",'TSA Input'!J2953=\"Contingent\"),'TSA Input'!G2953,\"\"))","v":""},{"$f":"IF('TSA Input'!J2953=\"\",\"\",IF(OR('TSA Input'!J2953=\"Yes\",'TSA Input'!J2953=\"Contingent\"),'TSA Input'!F2953,\"\"))","v":""},"",{"$f":"IF('TSA Input'!J2953=\"\",\"\",IF(OR('TSA Input'!J2953=\"Yes\",'TSA Input'!J2953=\"Contingent\"),'TSA Input'!D2953,\"\"))","v":""},{"$f":"IF('TSA Input'!J2953=\"\",\"\",IF(OR('TSA Input'!J2953=\"Yes\",'TSA Input'!J2953=\"Contingent\"),'TSA Input'!G2953,\"\"))","v":""},{"$f":"IF('TSA Input'!J2953=\"\",\"\",IF(OR('TSA Input'!J2953=\"Yes\",'TSA Input'!J2953=\"Contingent\"),'TSA Input'!F2953,\"\"))","v":""},"","Required","Required"]
["",null,{"$f":"IF('TSA Input'!J2954=\"\",\"\",IF(OR('TSA Input'!J2954=\"Yes\",'TSA Input'!J2954=\"Contingent\"),'TSA Input'!B2954,\"Ineligible\"))","v":""},{"$f":"IF('TSA Input'!J2954=\"\",\"\",IF(OR('TSA Input'!J2954=\"Yes\",'TSA Input'!J2954=\"Contingent\"),'TSA Input'!I2954,\"\"))","v":""},{"$f":"IF('TSA Input'!J2954=\"\",\"\",IF(OR('TSA Input'!J2954=\"Yes\",'TSA Input'!J2954=\"Contingent\"),'TSA Input'!C2954,\"\"))","v":""},{"$f":"IF('TSA Input'!J2954=\"\",\"\",IF(OR('TSA Input'!J2954=\"Yes\",'TSA Input'!J2954=\"Contingent\"),'TSA Input'!D2954,\"\"))","v":""},{"$f":"IF('TSA Input'!J2954=\"\",\"\",IF(OR('TSA Input'!J2954=\"Yes\",'TSA Input'!J2954=\"Contingent\"),'TSA Input'!G2954,\"\"))","v":""},{"$f":"IF('TSA Input'!J2954=\"\",\"\",IF(OR('TSA Input'!J2954=\"Yes\",'TSA Input'!J2954=\"Contingent\"),'TSA Input'!F2954,\"\"))","v":""},"",{"$f":"IF('TSA Input'!J2954=\"\",\"\",IF(OR('TSA Input'!J2954=\"Yes\",'TSA Input'!J2954=\"Contingent\"),'TSA Input'!D2954,\"\"))","v":""},{"$f":"IF('TSA Input'!J2954=\"\",\"\",IF(OR('TSA Input'!J2954=\"Yes\",'TSA Input'!J2954=\"Contingent\"),'TSA Input'!G2954,\"\"))","v":""},{"$f":"IF('TSA Input'!J2954=\"\",\"\",IF(OR('TSA Input'!J2954=\"Yes\",'TSA Input'!J2954=\"Contingent\"),'TSA Input'!F2954,\"\"))","v":""},"","Required","Required"]
["",null,{"$f":"IF('TSA Input'!J2955=\"\",\"\",IF(OR('TSA Input'!J2955=\"Yes\",'TSA Input'!J2955=\"Contingent\"),'TSA Input'!B2955,\"Ineligible\"))","v":""},{"$f":"IF('TSA Input'!J2955=\"\",\"\",IF(OR('TSA Input'!J2955=\"Yes\",'TSA Input'!J2955=\"Contingent\"),'TSA Input'!I2955,\"\"))","v":""},{"$f":"IF('TSA Input'!J2955=\"\",\"\",IF(OR('TSA Input'!J2955=\"Yes\",'TSA Input'!J2955=\"Contingent\"),'TSA Input'!C2955,\"\"))","v":""},{"$f":"IF('TSA Input'!J2955=\"\",\"\",IF(OR('TSA Input'!J2955=\"Yes\",'TSA Input'!J2955=\"Contingent\"),'TSA Input'!D2955,\"\"))","v":""},{"$f":"IF('TSA Input'!J2955=\"\",\"\",IF(OR('TSA Input'!J2955=\"Yes\",'TSA Input'!J2955=\"Contingent\"),'TSA Input'!G2955,\"\"))","v":""},{"$f":"IF('TSA Input'!J2955=\"\",\"\",IF(OR('TSA Input'!J2955=\"Yes\",'TSA Input'!J2955=\"Contingent\"),'TSA Input'!F2955,\"\"))","v":""},"",{"$f":"IF('TSA Input'!J2955=\"\",\"\",IF(OR('TSA Input'!J2955=\"Yes\",'TSA Input'!J2955=\"Contingent\"),'TSA Input'!D2955,\"\"))","v":""},{"$f":"IF('TSA Input'!J2955=\"\",\"\",IF(OR('TSA Input'!J2955=\"Yes\",'TSA Input'!J2955=\"Contingent\"),'TSA Input'!G2955,\"\"))","v":""},{"$f":"IF('TSA Input'!J2955=\"\",\"\",IF(OR('TSA Input'!J2955=\"Yes\",'TSA Input'!J2955=\"Contingent\"),'TSA Input'!F2955,\"\"))","v":""},"","Required","Required"]
["",null,{"$f":"IF('TSA Input'!J2956=\"\",\"\",IF(OR('TSA Input'!J2956=\"Yes\",'TSA Input'!J2956=\"Contingent\"),'TSA Input'!B2956,\"Ineligible\"))","v":""},{"$f":"IF('TSA Input'!J2956=\"\",\"\",IF(OR('TSA Input'!J2956=\"Yes\",'TSA Input'!J2956=\"Contingent\"),'TSA Input'!I2956,\"\"))","v":""},{"$f":"IF('TSA Input'!J2956=\"\",\"\",IF(OR('TSA Input'!J2956=\"Yes\",'TSA Input'!J2956=\"Contingent\"),'TSA Input'!C2956,\"\"))","v":""},{"$f":"IF('TSA Input'!J2956=\"\",\"\",IF(OR('TSA Input'!J2956=\"Yes\",'TSA Input'!J2956=\"Contingent\"),'TSA Input'!D2956,\"\"))","v":""},{"$f":"IF('TSA Input'!J2956=\"\",\"\",IF(OR('TSA Input'!J2956=\"Yes\",'TSA Input'!J2956=\"Contingent\"),'TSA Input'!G2956,\"\"))","v":""},{"$f":"IF('TSA Input'!J2956=\"\",\"\",IF(OR('TSA Input'!J2956=\"Yes\",'TSA Input'!J2956=\"Contingent\"),'TSA Input'!F2956,\"\"))","v":""},"",{"$f":"IF('TSA Input'!J2956=\"\",\"\",IF(OR('TSA Input'!J2956=\"Yes\",'TSA Input'!J2956=\"Contingent\"),'TSA Input'!D2956,\"\"))","v":""},{"$f":"IF('TSA Input'!J2956=\"\",\"\",IF(OR('TSA Input'!J2956=\"Yes\",'TSA Input'!J2956=\"Contingent\"),'TSA Input'!G2956,\"\"))","v":""},{"$f":"IF('TSA Input'!J2956=\"\",\"\",IF(OR('TSA Input'!J2956=\"Yes\",'TSA Input'!J2956=\"Contingent\"),'TSA Input'!F2956,\"\"))","v":""},"","Required","Required"]
["",null,{"$f":"IF('TSA Input'!J2957=\"\",\"\",IF(OR('TSA Input'!J2957=\"Yes\",'TSA Input'!J2957=\"Contingent\"),'TSA Input'!B2957,\"Ineligible\"))","v":""},{"$f":"IF('TSA Input'!J2957=\"\",\"\",IF(OR('TSA Input'!J2957=\"Yes\",'TSA Input'!J2957=\"Contingent\"),'TSA Input'!I2957,\"\"))","v":""},{"$f":"IF('TSA Input'!J2957=\"\",\"\",IF(OR('TSA Input'!J2957=\"Yes\",'TSA Input'!J2957=\"Contingent\"),'TSA Input'!C2957,\"\"))","v":""},{"$f":"IF('TSA Input'!J2957=\"\",\"\",IF(OR('TSA Input'!J2957=\"Yes\",'TSA Input'!J2957=\"Contingent\"),'TSA Input'!D2957,\"\"))","v":""},{"$f":"IF('TSA Input'!J2957=\"\",\"\",IF(OR('TSA Input'!J2957=\"Yes\",'TSA Input'!J2957=\"Contingent\"),'TSA Input'!G2957,\"\"))","v":""},{"$f":"IF('TSA Input'!J2957=\"\",\"\",IF(OR('TSA Input'!J2957=\"Yes\",'TSA Input'!J2957=\"Contingent\"),'TSA Input'!F2957,\"\"))","v":""},"",{"$f":"IF('TSA Input'!J2957=\"\",\"\",IF(OR('TSA Input'!J2957=\"Yes\",'TSA Input'!J2957=\"Contingent\"),'TSA Input'!D2957,\"\"))","v":""},{"$f":"IF('TSA Input'!J2957=\"\",\"\",IF(OR('TSA Input'!J2957=\"Yes\",'TSA Input'!J2957=\"Contingent\"),'TSA Input'!G2957,\"\"))","v":""},{"$f":"IF('TSA Input'!J2957=\"\",\"\",IF(OR('TSA Input'!J2957=\"Yes\",'TSA Input'!J2957=\"Contingent\"),'TSA Input'!F2957,\"\"))","v":""},"","Required","Required"]
["",null,{"$f":"IF('TSA Input'!J2958=\"\",\"\",IF(OR('TSA Input'!J2958=\"Yes\",'TSA Input'!J2958=\"Contingent\"),'TSA Input'!B2958,\"Ineligible\"))","v":""},{"$f":"IF('TSA Input'!J2958=\"\",\"\",IF(OR('TSA Input'!J2958=\"Yes\",'TSA Input'!J2958=\"Contingent\"),'TSA Input'!I2958,\"\"))","v":""},{"$f":"IF('TSA Input'!J2958=\"\",\"\",IF(OR('TSA Input'!J2958=\"Yes\",'TSA Input'!J2958=\"Contingent\"),'TSA Input'!C2958,\"\"))","v":""},{"$f":"IF('TSA Input'!J2958=\"\",\"\",IF(OR('TSA Input'!J2958=\"Yes\",'TSA Input'!J2958=\"Contingent\"),'TSA Input'!D2958,\"\"))","v":""},{"$f":"IF('TSA Input'!J2958=\"\",\"\",IF(OR('TSA Input'!J2958=\"Yes\",'TSA Input'!J2958=\"Contingent\"),'TSA Input'!G2958,\"\"))","v":""},{"$f":"IF('TSA Input'!J2958=\"\",\"\",IF(OR('TSA Input'!J2958=\"Yes\",'TSA Input'!J2958=\"Contingent\"),'TSA Input'!F2958,\"\"))","v":""},"",{"$f":"IF('TSA Input'!J2958=\"\",\"\",IF(OR('TSA Input'!J2958=\"Yes\",'TSA Input'!J2958=\"Contingent\"),'TSA Input'!D2958,\"\"))","v":""},{"$f":"IF('TSA Input'!J2958=\"\",\"\",IF(OR('TSA Input'!J2958=\"Yes\",'TSA Input'!J2958=\"Contingent\"),'TSA Input'!G2958,\"\"))","v":""},{"$f":"IF('TSA Input'!J2958=\"\",\"\",IF(OR('TSA Input'!J2958=\"Yes\",'TSA Input'!J2958=\"Contingent\"),'TSA Input'!F2958,\"\"))","v":""},"","Required","Required"]
["",null,{"$f":"IF('TSA Input'!J2959=\"\",\"\",IF(OR('TSA Input'!J2959=\"Yes\",'TSA Input'!J2959=\"Contingent\"),'TSA Input'!B2959,\"Ineligible\"))","v":""},{"$f":"IF('TSA Input'!J2959=\"\",\"\",IF(OR('TSA Input'!J2959=\"Yes\",'TSA Input'!J2959=\"Contingent\"),'TSA Input'!I2959,\"\"))","v":""},{"$f":"IF('TSA Input'!J2959=\"\",\"\",IF(OR('TSA Input'!J2959=\"Yes\",'TSA Input'!J2959=\"Contingent\"),'TSA Input'!C2959,\"\"))","v":""},{"$f":"IF('TSA Input'!J2959=\"\",\"\",IF(OR('TSA Input'!J2959=\"Yes\",'TSA Input'!J2959=\"Contingent\"),'TSA Input'!D2959,\"\"))","v":""},{"$f":"IF('TSA Input'!J2959=\"\",\"\",IF(OR('TSA Input'!J2959=\"Yes\",'TSA Input'!J2959=\"Contingent\"),'TSA Input'!G2959,\"\"))","v":""},{"$f":"IF('TSA Input'!J2959=\"\",\"\",IF(OR('TSA Input'!J2959=\"Yes\",'TSA Input'!J2959=\"Contingent\"),'TSA Input'!F2959,\"\"))","v":""},"",{"$f":"IF('TSA Input'!J2959=\"\",\"\",IF(OR('TSA Input'!J2959=\"Yes\",'TSA Input'!J2959=\"Contingent\"),'TSA Input'!D2959,\"\"))","v":""},{"$f":"IF('TSA Input'!J2959=\"\",\"\",IF(OR('TSA Input'!J2959=\"Yes\",'TSA Input'!J2959=\"Contingent\"),'TSA Input'!G2959,\"\"))","v":""},{"$f":"IF('TSA Input'!J2959=\"\",\"\",IF(OR('TSA Input'!J2959=\"Yes\",'TSA Input'!J2959=\"Contingent\"),'TSA Input'!F2959,\"\"))","v":""},"","Required","Required"]
["",null,{"$f":"IF('TSA Input'!J2960=\"\",\"\",IF(OR('TSA Input'!J2960=\"Yes\",'TSA Input'!J2960=\"Contingent\"),'TSA Input'!B2960,\"Ineligible\"))","v":""},{"$f":"IF('TSA Input'!J2960=\"\",\"\",IF(OR('TSA Input'!J2960=\"Yes\",'TSA Input'!J2960=\"Contingent\"),'TSA Input'!I2960,\"\"))","v":""},{"$f":"IF('TSA Input'!J2960=\"\",\"\",IF(OR('TSA Input'!J2960=\"Yes\",'TSA Input'!J2960=\"Contingent\"),'TSA Input'!C2960,\"\"))","v":""},{"$f":"IF('TSA Input'!J2960=\"\",\"\",IF(OR('TSA Input'!J2960=\"Yes\",'TSA Input'!J2960=\"Contingent\"),'TSA Input'!D2960,\"\"))","v":""},{"$f":"IF('TSA Input'!J2960=\"\",\"\",IF(OR('TSA Input'!J2960=\"Yes\",'TSA Input'!J2960=\"Contingent\"),'TSA Input'!G2960,\"\"))","v":""},{"$f":"IF('TSA Input'!J2960=\"\",\"\",IF(OR('TSA Input'!J2960=\"Yes\",'TSA Input'!J2960=\"Contingent\"),'TSA Input'!F2960,\"\"))","v":""},"",{"$f":"IF('TSA Input'!J2960=\"\",\"\",IF(OR('TSA Input'!J2960=\"Yes\",'TSA Input'!J2960=\"Contingent\"),'TSA Input'!D2960,\"\"))","v":""},{"$f":"IF('TSA Input'!J2960=\"\",\"\",IF(OR('TSA Input'!J2960=\"Yes\",'TSA Input'!J2960=\"Contingent\"),'TSA Input'!G2960,\"\"))","v":""},{"$f":"IF('TSA Input'!J2960=\"\",\"\",IF(OR('TSA Input'!J2960=\"Yes\",'TSA Input'!J2960=\"Contingent\"),'TSA Input'!F2960,\"\"))","v":""},"","Required","Required"]
["",null,{"$f":"IF('TSA Input'!J2961=\"\",\"\",IF(OR('TSA Input'!J2961=\"Yes\",'TSA Input'!J2961=\"Contingent\"),'TSA Input'!B2961,\"Ineligible\"))","v":""},{"$f":"IF('TSA Input'!J2961=\"\",\"\",IF(OR('TSA Input'!J2961=\"Yes\",'TSA Input'!J2961=\"Contingent\"),'TSA Input'!I2961,\"\"))","v":""},{"$f":"IF('TSA Input'!J2961=\"\",\"\",IF(OR('TSA Input'!J2961=\"Yes\",'TSA Input'!J2961=\"Contingent\"),'TSA Input'!C2961,\"\"))","v":""},{"$f":"IF('TSA Input'!J2961=\"\",\"\",IF(OR('TSA Input'!J2961=\"Yes\",'TSA Input'!J2961=\"Contingent\"),'TSA Input'!D2961,\"\"))","v":""},{"$f":"IF('TSA Input'!J2961=\"\",\"\",IF(OR('TSA Input'!J2961=\"Yes\",'TSA Input'!J2961=\"Contingent\"),'TSA Input'!G2961,\"\"))","v":""},{"$f":"IF('TSA Input'!J2961=\"\",\"\",IF(OR('TSA Input'!J2961=\"Yes\",'TSA Input'!J2961=\"Contingent\"),'TSA Input'!F2961,\"\"))","v":""},"",{"$f":"IF('TSA Input'!J2961=\"\",\"\",IF(OR('TSA Input'!J2961=\"Yes\",'TSA Input'!J2961=\"Contingent\"),'TSA Input'!D2961,\"\"))","v":""},{"$f":"IF('TSA Input'!J2961=\"\",\"\",IF(OR('TSA Input'!J2961=\"Yes\",'TSA Input'!J2961=\"Contingent\"),'TSA Input'!G2961,\"\"))","v":""},{"$f":"IF('TSA Input'!J2961=\"\",\"\",IF(OR('TSA Input'!J2961=\"Yes\",'TSA Input'!J2961=\"Contingent\"),'TSA Input'!F2961,\"\"))","v":""},"","Required","Required"]
["",null,{"$f":"IF('TSA Input'!J2962=\"\",\"\",IF(OR('TSA Input'!J2962=\"Yes\",'TSA Input'!J2962=\"Contingent\"),'TSA Input'!B2962,\"Ineligible\"))","v":""},{"$f":"IF('TSA Input'!J2962=\"\",\"\",IF(OR('TSA Input'!J2962=\"Yes\",'TSA Input'!J2962=\"Contingent\"),'TSA Input'!I2962,\"\"))","v":""},{"$f":"IF('TSA Input'!J2962=\"\",\"\",IF(OR('TSA Input'!J2962=\"Yes\",'TSA Input'!J2962=\"Contingent\"),'TSA Input'!C2962,\"\"))","v":""},{"$f":"IF('TSA Input'!J2962=\"\",\"\",IF(OR('TSA Input'!J2962=\"Yes\",'TSA Input'!J2962=\"Contingent\"),'TSA Input'!D2962,\"\"))","v":""},{"$f":"IF('TSA Input'!J2962=\"\",\"\",IF(OR('TSA Input'!J2962=\"Yes\",'TSA Input'!J2962=\"Contingent\"),'TSA Input'!G2962,\"\"))","v":""},{"$f":"IF('TSA Input'!J2962=\"\",\"\",IF(OR('TSA Input'!J2962=\"Yes\",'TSA Input'!J2962=\"Contingent\"),'TSA Input'!F2962,\"\"))","v":""},"",{"$f":"IF('TSA Input'!J2962=\"\",\"\",IF(OR('TSA Input'!J2962=\"Yes\",'TSA Input'!J2962=\"Contingent\"),'TSA Input'!D2962,\"\"))","v":""},{"$f":"IF('TSA Input'!J2962=\"\",\"\",IF(OR('TSA Input'!J2962=\"Yes\",'TSA Input'!J2962=\"Contingent\"),'TSA Input'!G2962,\"\"))","v":""},{"$f":"IF('TSA Input'!J2962=\"\",\"\",IF(OR('TSA Input'!J2962=\"Yes\",'TSA Input'!J2962=\"Contingent\"),'TSA Input'!F2962,\"\"))","v":""},"","Required","Required"]
["",null,{"$f":"IF('TSA Input'!J2963=\"\",\"\",IF(OR('TSA Input'!J2963=\"Yes\",'TSA Input'!J2963=\"Contingent\"),'TSA Input'!B2963,\"Ineligible\"))","v":""},{"$f":"IF('TSA Input'!J2963=\"\",\"\",IF(OR('TSA Input'!J2963=\"Yes\",'TSA Input'!J2963=\"Contingent\"),'TSA Input'!I2963,\"\"))","v":""},{"$f":"IF('TSA Input'!J2963=\"\",\"\",IF(OR('TSA Input'!J2963=\"Yes\",'TSA Input'!J2963=\"Contingent\"),'TSA Input'!C2963,\"\"))","v":""},{"$f":"IF('TSA Input'!J2963=\"\",\"\",IF(OR('TSA Input'!J2963=\"Yes\",'TSA Input'!J2963=\"Contingent\"),'TSA Input'!D2963,\"\"))","v":""},{"$f":"IF('TSA Input'!J2963=\"\",\"\",IF(OR('TSA Input'!J2963=\"Yes\",'TSA Input'!J2963=\"Contingent\"),'TSA Input'!G2963,\"\"))","v":""},{"$f":"IF('TSA Input'!J2963=\"\",\"\",IF(OR('TSA Input'!J2963=\"Yes\",'TSA Input'!J2963=\"Contingent\"),'TSA Input'!F2963,\"\"))","v":""},"",{"$f":"IF('TSA Input'!J2963=\"\",\"\",IF(OR('TSA Input'!J2963=\"Yes\",'TSA Input'!J2963=\"Contingent\"),'TSA Input'!D2963,\"\"))","v":""},{"$f":"IF('TSA Input'!J2963=\"\",\"\",IF(OR('TSA Input'!J2963=\"Yes\",'TSA Input'!J2963=\"Contingent\"),'TSA Input'!G2963,\"\"))","v":""},{"$f":"IF('TSA Input'!J2963=\"\",\"\",IF(OR('TSA Input'!J2963=\"Yes\",'TSA Input'!J2963=\"Contingent\"),'TSA Input'!F2963,\"\"))","v":""},"","Required","Required"]
["",null,{"$f":"IF('TSA Input'!J2964=\"\",\"\",IF(OR('TSA Input'!J2964=\"Yes\",'TSA Input'!J2964=\"Contingent\"),'TSA Input'!B2964,\"Ineligible\"))","v":""},{"$f":"IF('TSA Input'!J2964=\"\",\"\",IF(OR('TSA Input'!J2964=\"Yes\",'TSA Input'!J2964=\"Contingent\"),'TSA Input'!I2964,\"\"))","v":""},{"$f":"IF('TSA Input'!J2964=\"\",\"\",IF(OR('TSA Input'!J2964=\"Yes\",'TSA Input'!J2964=\"Contingent\"),'TSA Input'!C2964,\"\"))","v":""},{"$f":"IF('TSA Input'!J2964=\"\",\"\",IF(OR('TSA Input'!J2964=\"Yes\",'TSA Input'!J2964=\"Contingent\"),'TSA Input'!D2964,\"\"))","v":""},{"$f":"IF('TSA Input'!J2964=\"\",\"\",IF(OR('TSA Input'!J2964=\"Yes\",'TSA Input'!J2964=\"Contingent\"),'TSA Input'!G2964,\"\"))","v":""},{"$f":"IF('TSA Input'!J2964=\"\",\"\",IF(OR('TSA Input'!J2964=\"Yes\",'TSA Input'!J2964=\"Contingent\"),'TSA Input'!F2964,\"\"))","v":""},"",{"$f":"IF('TSA Input'!J2964=\"\",\"\",IF(OR('TSA Input'!J2964=\"Yes\",'TSA Input'!J2964=\"Contingent\"),'TSA Input'!D2964,\"\"))","v":""},{"$f":"IF('TSA Input'!J2964=\"\",\"\",IF(OR('TSA Input'!J2964=\"Yes\",'TSA Input'!J2964=\"Contingent\"),'TSA Input'!G2964,\"\"))","v":""},{"$f":"IF('TSA Input'!J2964=\"\",\"\",IF(OR('TSA Input'!J2964=\"Yes\",'TSA Input'!J2964=\"Contingent\"),'TSA Input'!F2964,\"\"))","v":""},"","Required","Required"]
["",null,{"$f":"IF('TSA Input'!J2965=\"\",\"\",IF(OR('TSA Input'!J2965=\"Yes\",'TSA Input'!J2965=\"Contingent\"),'TSA Input'!B2965,\"Ineligible\"))","v":""},{"$f":"IF('TSA Input'!J2965=\"\",\"\",IF(OR('TSA Input'!J2965=\"Yes\",'TSA Input'!J2965=\"Contingent\"),'TSA Input'!I2965,\"\"))","v":""},{"$f":"IF('TSA Input'!J2965=\"\",\"\",IF(OR('TSA Input'!J2965=\"Yes\",'TSA Input'!J2965=\"Contingent\"),'TSA Input'!C2965,\"\"))","v":""},{"$f":"IF('TSA Input'!J2965=\"\",\"\",IF(OR('TSA Input'!J2965=\"Yes\",'TSA Input'!J2965=\"Contingent\"),'TSA Input'!D2965,\"\"))","v":""},{"$f":"IF('TSA Input'!J2965=\"\",\"\",IF(OR('TSA Input'!J2965=\"Yes\",'TSA Input'!J2965=\"Contingent\"),'TSA Input'!G2965,\"\"))","v":""},{"$f":"IF('TSA Input'!J2965=\"\",\"\",IF(OR('TSA Input'!J2965=\"Yes\",'TSA Input'!J2965=\"Contingent\"),'TSA Input'!F2965,\"\"))","v":""},"",{"$f":"IF('TSA Input'!J2965=\"\",\"\",IF(OR('TSA Input'!J2965=\"Yes\",'TSA Input'!J2965=\"Contingent\"),'TSA Input'!D2965,\"\"))","v":""},{"$f":"IF('TSA Input'!J2965=\"\",\"\",IF(OR('TSA Input'!J2965=\"Yes\",'TSA Input'!J2965=\"Contingent\"),'TSA Input'!G2965,\"\"))","v":""},{"$f":"IF('TSA Input'!J2965=\"\",\"\",IF(OR('TSA Input'!J2965=\"Yes\",'TSA Input'!J2965=\"Contingent\"),'TSA Input'!F2965,\"\"))","v":""},"","Required","Required"]
["",null,{"$f":"IF('TSA Input'!J2966=\"\",\"\",IF(OR('TSA Input'!J2966=\"Yes\",'TSA Input'!J2966=\"Contingent\"),'TSA Input'!B2966,\"Ineligible\"))","v":""},{"$f":"IF('TSA Input'!J2966=\"\",\"\",IF(OR('TSA Input'!J2966=\"Yes\",'TSA Input'!J2966=\"Contingent\"),'TSA Input'!I2966,\"\"))","v":""},{"$f":"IF('TSA Input'!J2966=\"\",\"\",IF(OR('TSA Input'!J2966=\"Yes\",'TSA Input'!J2966=\"Contingent\"),'TSA Input'!C2966,\"\"))","v":""},{"$f":"IF('TSA Input'!J2966=\"\",\"\",IF(OR('TSA Input'!J2966=\"Yes\",'TSA Input'!J2966=\"Contingent\"),'TSA Input'!D2966,\"\"))","v":""},{"$f":"IF('TSA Input'!J2966=\"\",\"\",IF(OR('TSA Input'!J2966=\"Yes\",'TSA Input'!J2966=\"Contingent\"),'TSA Input'!G2966,\"\"))","v":""},{"$f":"IF('TSA Input'!J2966=\"\",\"\",IF(OR('TSA Input'!J2966=\"Yes\",'TSA Input'!J2966=\"Contingent\"),'TSA Input'!F2966,\"\"))","v":""},"",{"$f":"IF('TSA Input'!J2966=\"\",\"\",IF(OR('TSA Input'!J2966=\"Yes\",'TSA Input'!J2966=\"Contingent\"),'TSA Input'!D2966,\"\"))","v":""},{"$f":"IF('TSA Input'!J2966=\"\",\"\",IF(OR('TSA Input'!J2966=\"Yes\",'TSA Input'!J2966=\"Contingent\"),'TSA Input'!G2966,\"\"))","v":""},{"$f":"IF('TSA Input'!J2966=\"\",\"\",IF(OR('TSA Input'!J2966=\"Yes\",'TSA Input'!J2966=\"Contingent\"),'TSA Input'!F2966,\"\"))","v":""},"","Required","Required"]
["",null,{"$f":"IF('TSA Input'!J2967=\"\",\"\",IF(OR('TSA Input'!J2967=\"Yes\",'TSA Input'!J2967=\"Contingent\"),'TSA Input'!B2967,\"Ineligible\"))","v":""},{"$f":"IF('TSA Input'!J2967=\"\",\"\",IF(OR('TSA Input'!J2967=\"Yes\",'TSA Input'!J2967=\"Contingent\"),'TSA Input'!I2967,\"\"))","v":""},{"$f":"IF('TSA Input'!J2967=\"\",\"\",IF(OR('TSA Input'!J2967=\"Yes\",'TSA Input'!J2967=\"Contingent\"),'TSA Input'!C2967,\"\"))","v":""},{"$f":"IF('TSA Input'!J2967=\"\",\"\",IF(OR('TSA Input'!J2967=\"Yes\",'TSA Input'!J2967=\"Contingent\"),'TSA Input'!D2967,\"\"))","v":""},{"$f":"IF('TSA Input'!J2967=\"\",\"\",IF(OR('TSA Input'!J2967=\"Yes\",'TSA Input'!J2967=\"Contingent\"),'TSA Input'!G2967,\"\"))","v":""},{"$f":"IF('TSA Input'!J2967=\"\",\"\",IF(OR('TSA Input'!J2967=\"Yes\",'TSA Input'!J2967=\"Contingent\"),'TSA Input'!F2967,\"\"))","v":""},"",{"$f":"IF('TSA Input'!J2967=\"\",\"\",IF(OR('TSA Input'!J2967=\"Yes\",'TSA Input'!J2967=\"Contingent\"),'TSA Input'!D2967,\"\"))","v":""},{"$f":"IF('TSA Input'!J2967=\"\",\"\",IF(OR('TSA Input'!J2967=\"Yes\",'TSA Input'!J2967=\"Contingent\"),'TSA Input'!G2967,\"\"))","v":""},{"$f":"IF('TSA Input'!J2967=\"\",\"\",IF(OR('TSA Input'!J2967=\"Yes\",'TSA Input'!J2967=\"Contingent\"),'TSA Input'!F2967,\"\"))","v":""},"","Required","Required"]
["",null,{"$f":"IF('TSA Input'!J2968=\"\",\"\",IF(OR('TSA Input'!J2968=\"Yes\",'TSA Input'!J2968=\"Contingent\"),'TSA Input'!B2968,\"Ineligible\"))","v":""},{"$f":"IF('TSA Input'!J2968=\"\",\"\",IF(OR('TSA Input'!J2968=\"Yes\",'TSA Input'!J2968=\"Contingent\"),'TSA Input'!I2968,\"\"))","v":""},{"$f":"IF('TSA Input'!J2968=\"\",\"\",IF(OR('TSA Input'!J2968=\"Yes\",'TSA Input'!J2968=\"Contingent\"),'TSA Input'!C2968,\"\"))","v":""},{"$f":"IF('TSA Input'!J2968=\"\",\"\",IF(OR('TSA Input'!J2968=\"Yes\",'TSA Input'!J2968=\"Contingent\"),'TSA Input'!D2968,\"\"))","v":""},{"$f":"IF('TSA Input'!J2968=\"\",\"\",IF(OR('TSA Input'!J2968=\"Yes\",'TSA Input'!J2968=\"Contingent\"),'TSA Input'!G2968,\"\"))","v":""},{"$f":"IF('TSA Input'!J2968=\"\",\"\",IF(OR('TSA Input'!J2968=\"Yes\",'TSA Input'!J2968=\"Contingent\"),'TSA Input'!F2968,\"\"))","v":""},"",{"$f":"IF('TSA Input'!J2968=\"\",\"\",IF(OR('TSA Input'!J2968=\"Yes\",'TSA Input'!J2968=\"Contingent\"),'TSA Input'!D2968,\"\"))","v":""},{"$f":"IF('TSA Input'!J2968=\"\",\"\",IF(OR('TSA Input'!J2968=\"Yes\",'TSA Input'!J2968=\"Contingent\"),'TSA Input'!G2968,\"\"))","v":""},{"$f":"IF('TSA Input'!J2968=\"\",\"\",IF(OR('TSA Input'!J2968=\"Yes\",'TSA Input'!J2968=\"Contingent\"),'TSA Input'!F2968,\"\"))","v":""},"","Required","Required"]
["",null,{"$f":"IF('TSA Input'!J2969=\"\",\"\",IF(OR('TSA Input'!J2969=\"Yes\",'TSA Input'!J2969=\"Contingent\"),'TSA Input'!B2969,\"Ineligible\"))","v":""},{"$f":"IF('TSA Input'!J2969=\"\",\"\",IF(OR('TSA Input'!J2969=\"Yes\",'TSA Input'!J2969=\"Contingent\"),'TSA Input'!I2969,\"\"))","v":""},{"$f":"IF('TSA Input'!J2969=\"\",\"\",IF(OR('TSA Input'!J2969=\"Yes\",'TSA Input'!J2969=\"Contingent\"),'TSA Input'!C2969,\"\"))","v":""},{"$f":"IF('TSA Input'!J2969=\"\",\"\",IF(OR('TSA Input'!J2969=\"Yes\",'TSA Input'!J2969=\"Contingent\"),'TSA Input'!D2969,\"\"))","v":""},{"$f":"IF('TSA Input'!J2969=\"\",\"\",IF(OR('TSA Input'!J2969=\"Yes\",'TSA Input'!J2969=\"Contingent\"),'TSA Input'!G2969,\"\"))","v":""},{"$f":"IF('TSA Input'!J2969=\"\",\"\",IF(OR('TSA Input'!J2969=\"Yes\",'TSA Input'!J2969=\"Contingent\"),'TSA Input'!F2969,\"\"))","v":""},"",{"$f":"IF('TSA Input'!J2969=\"\",\"\",IF(OR('TSA Input'!J2969=\"Yes\",'TSA Input'!J2969=\"Contingent\"),'TSA Input'!D2969,\"\"))","v":""},{"$f":"IF('TSA Input'!J2969=\"\",\"\",IF(OR('TSA Input'!J2969=\"Yes\",'TSA Input'!J2969=\"Contingent\"),'TSA Input'!G2969,\"\"))","v":""},{"$f":"IF('TSA Input'!J2969=\"\",\"\",IF(OR('TSA Input'!J2969=\"Yes\",'TSA Input'!J2969=\"Contingent\"),'TSA Input'!F2969,\"\"))","v":""},"","Required","Required"]
["",null,{"$f":"IF('TSA Input'!J2970=\"\",\"\",IF(OR('TSA Input'!J2970=\"Yes\",'TSA Input'!J2970=\"Contingent\"),'TSA Input'!B2970,\"Ineligible\"))","v":""},{"$f":"IF('TSA Input'!J2970=\"\",\"\",IF(OR('TSA Input'!J2970=\"Yes\",'TSA Input'!J2970=\"Contingent\"),'TSA Input'!I2970,\"\"))","v":""},{"$f":"IF('TSA Input'!J2970=\"\",\"\",IF(OR('TSA Input'!J2970=\"Yes\",'TSA Input'!J2970=\"Contingent\"),'TSA Input'!C2970,\"\"))","v":""},{"$f":"IF('TSA Input'!J2970=\"\",\"\",IF(OR('TSA Input'!J2970=\"Yes\",'TSA Input'!J2970=\"Contingent\"),'TSA Input'!D2970,\"\"))","v":""},{"$f":"IF('TSA Input'!J2970=\"\",\"\",IF(OR('TSA Input'!J2970=\"Yes\",'TSA Input'!J2970=\"Contingent\"),'TSA Input'!G2970,\"\"))","v":""},{"$f":"IF('TSA Input'!J2970=\"\",\"\",IF(OR('TSA Input'!J2970=\"Yes\",'TSA Input'!J2970=\"Contingent\"),'TSA Input'!F2970,\"\"))","v":""},"",{"$f":"IF('TSA Input'!J2970=\"\",\"\",IF(OR('TSA Input'!J2970=\"Yes\",'TSA Input'!J2970=\"Contingent\"),'TSA Input'!D2970,\"\"))","v":""},{"$f":"IF('TSA Input'!J2970=\"\",\"\",IF(OR('TSA Input'!J2970=\"Yes\",'TSA Input'!J2970=\"Contingent\"),'TSA Input'!G2970,\"\"))","v":""},{"$f":"IF('TSA Input'!J2970=\"\",\"\",IF(OR('TSA Input'!J2970=\"Yes\",'TSA Input'!J2970=\"Contingent\"),'TSA Input'!F2970,\"\"))","v":""},"","Required","Required"]
["",null,{"$f":"IF('TSA Input'!J2971=\"\",\"\",IF(OR('TSA Input'!J2971=\"Yes\",'TSA Input'!J2971=\"Contingent\"),'TSA Input'!B2971,\"Ineligible\"))","v":""},{"$f":"IF('TSA Input'!J2971=\"\",\"\",IF(OR('TSA Input'!J2971=\"Yes\",'TSA Input'!J2971=\"Contingent\"),'TSA Input'!I2971,\"\"))","v":""},{"$f":"IF('TSA Input'!J2971=\"\",\"\",IF(OR('TSA Input'!J2971=\"Yes\",'TSA Input'!J2971=\"Contingent\"),'TSA Input'!C2971,\"\"))","v":""},{"$f":"IF('TSA Input'!J2971=\"\",\"\",IF(OR('TSA Input'!J2971=\"Yes\",'TSA Input'!J2971=\"Contingent\"),'TSA Input'!D2971,\"\"))","v":""},{"$f":"IF('TSA Input'!J2971=\"\",\"\",IF(OR('TSA Input'!J2971=\"Yes\",'TSA Input'!J2971=\"Contingent\"),'TSA Input'!G2971,\"\"))","v":""},{"$f":"IF('TSA Input'!J2971=\"\",\"\",IF(OR('TSA Input'!J2971=\"Yes\",'TSA Input'!J2971=\"Contingent\"),'TSA Input'!F2971,\"\"))","v":""},"",{"$f":"IF('TSA Input'!J2971=\"\",\"\",IF(OR('TSA Input'!J2971=\"Yes\",'TSA Input'!J2971=\"Contingent\"),'TSA Input'!D2971,\"\"))","v":""},{"$f":"IF('TSA Input'!J2971=\"\",\"\",IF(OR('TSA Input'!J2971=\"Yes\",'TSA Input'!J2971=\"Contingent\"),'TSA Input'!G2971,\"\"))","v":""},{"$f":"IF('TSA Input'!J2971=\"\",\"\",IF(OR('TSA Input'!J2971=\"Yes\",'TSA Input'!J2971=\"Contingent\"),'TSA Input'!F2971,\"\"))","v":""},"","Required","Required"]
["",null,{"$f":"IF('TSA Input'!J2972=\"\",\"\",IF(OR('TSA Input'!J2972=\"Yes\",'TSA Input'!J2972=\"Contingent\"),'TSA Input'!B2972,\"Ineligible\"))","v":""},{"$f":"IF('TSA Input'!J2972=\"\",\"\",IF(OR('TSA Input'!J2972=\"Yes\",'TSA Input'!J2972=\"Contingent\"),'TSA Input'!I2972,\"\"))","v":""},{"$f":"IF('TSA Input'!J2972=\"\",\"\",IF(OR('TSA Input'!J2972=\"Yes\",'TSA Input'!J2972=\"Contingent\"),'TSA Input'!C2972,\"\"))","v":""},{"$f":"IF('TSA Input'!J2972=\"\",\"\",IF(OR('TSA Input'!J2972=\"Yes\",'TSA Input'!J2972=\"Contingent\"),'TSA Input'!D2972,\"\"))","v":""},{"$f":"IF('TSA Input'!J2972=\"\",\"\",IF(OR('TSA Input'!J2972=\"Yes\",'TSA Input'!J2972=\"Contingent\"),'TSA Input'!G2972,\"\"))","v":""},{"$f":"IF('TSA Input'!J2972=\"\",\"\",IF(OR('TSA Input'!J2972=\"Yes\",'TSA Input'!J2972=\"Contingent\"),'TSA Input'!F2972,\"\"))","v":""},"",{"$f":"IF('TSA Input'!J2972=\"\",\"\",IF(OR('TSA Input'!J2972=\"Yes\",'TSA Input'!J2972=\"Contingent\"),'TSA Input'!D2972,\"\"))","v":""},{"$f":"IF('TSA Input'!J2972=\"\",\"\",IF(OR('TSA Input'!J2972=\"Yes\",'TSA Input'!J2972=\"Contingent\"),'TSA Input'!G2972,\"\"))","v":""},{"$f":"IF('TSA Input'!J2972=\"\",\"\",IF(OR('TSA Input'!J2972=\"Yes\",'TSA Input'!J2972=\"Contingent\"),'TSA Input'!F2972,\"\"))","v":""},"","Required","Required"]
["",null,{"$f":"IF('TSA Input'!J2973=\"\",\"\",IF(OR('TSA Input'!J2973=\"Yes\",'TSA Input'!J2973=\"Contingent\"),'TSA Input'!B2973,\"Ineligible\"))","v":""},{"$f":"IF('TSA Input'!J2973=\"\",\"\",IF(OR('TSA Input'!J2973=\"Yes\",'TSA Input'!J2973=\"Contingent\"),'TSA Input'!I2973,\"\"))","v":""},{"$f":"IF('TSA Input'!J2973=\"\",\"\",IF(OR('TSA Input'!J2973=\"Yes\",'TSA Input'!J2973=\"Contingent\"),'TSA Input'!C2973,\"\"))","v":""},{"$f":"IF('TSA Input'!J2973=\"\",\"\",IF(OR('TSA Input'!J2973=\"Yes\",'TSA Input'!J2973=\"Contingent\"),'TSA Input'!D2973,\"\"))","v":""},{"$f":"IF('TSA Input'!J2973=\"\",\"\",IF(OR('TSA Input'!J2973=\"Yes\",'TSA Input'!J2973=\"Contingent\"),'TSA Input'!G2973,\"\"))","v":""},{"$f":"IF('TSA Input'!J2973=\"\",\"\",IF(OR('TSA Input'!J2973=\"Yes\",'TSA Input'!J2973=\"Contingent\"),'TSA Input'!F2973,\"\"))","v":""},"",{"$f":"IF('TSA Input'!J2973=\"\",\"\",IF(OR('TSA Input'!J2973=\"Yes\",'TSA Input'!J2973=\"Contingent\"),'TSA Input'!D2973,\"\"))","v":""},{"$f":"IF('TSA Input'!J2973=\"\",\"\",IF(OR('TSA Input'!J2973=\"Yes\",'TSA Input'!J2973=\"Contingent\"),'TSA Input'!G2973,\"\"))","v":""},{"$f":"IF('TSA Input'!J2973=\"\",\"\",IF(OR('TSA Input'!J2973=\"Yes\",'TSA Input'!J2973=\"Contingent\"),'TSA Input'!F2973,\"\"))","v":""},"","Required","Required"]
["",null,{"$f":"IF('TSA Input'!J2974=\"\",\"\",IF(OR('TSA Input'!J2974=\"Yes\",'TSA Input'!J2974=\"Contingent\"),'TSA Input'!B2974,\"Ineligible\"))","v":""},{"$f":"IF('TSA Input'!J2974=\"\",\"\",IF(OR('TSA Input'!J2974=\"Yes\",'TSA Input'!J2974=\"Contingent\"),'TSA Input'!I2974,\"\"))","v":""},{"$f":"IF('TSA Input'!J2974=\"\",\"\",IF(OR('TSA Input'!J2974=\"Yes\",'TSA Input'!J2974=\"Contingent\"),'TSA Input'!C2974,\"\"))","v":""},{"$f":"IF('TSA Input'!J2974=\"\",\"\",IF(OR('TSA Input'!J2974=\"Yes\",'TSA Input'!J2974=\"Contingent\"),'TSA Input'!D2974,\"\"))","v":""},{"$f":"IF('TSA Input'!J2974=\"\",\"\",IF(OR('TSA Input'!J2974=\"Yes\",'TSA Input'!J2974=\"Contingent\"),'TSA Input'!G2974,\"\"))","v":""},{"$f":"IF('TSA Input'!J2974=\"\",\"\",IF(OR('TSA Input'!J2974=\"Yes\",'TSA Input'!J2974=\"Contingent\"),'TSA Input'!F2974,\"\"))","v":""},"",{"$f":"IF('TSA Input'!J2974=\"\",\"\",IF(OR('TSA Input'!J2974=\"Yes\",'TSA Input'!J2974=\"Contingent\"),'TSA Input'!D2974,\"\"))","v":""},{"$f":"IF('TSA Input'!J2974=\"\",\"\",IF(OR('TSA Input'!J2974=\"Yes\",'TSA Input'!J2974=\"Contingent\"),'TSA Input'!G2974,\"\"))","v":""},{"$f":"IF('TSA Input'!J2974=\"\",\"\",IF(OR('TSA Input'!J2974=\"Yes\",'TSA Input'!J2974=\"Contingent\"),'TSA Input'!F2974,\"\"))","v":""},"","Required","Required"]
["",null,{"$f":"IF('TSA Input'!J2975=\"\",\"\",IF(OR('TSA Input'!J2975=\"Yes\",'TSA Input'!J2975=\"Contingent\"),'TSA Input'!B2975,\"Ineligible\"))","v":""},{"$f":"IF('TSA Input'!J2975=\"\",\"\",IF(OR('TSA Input'!J2975=\"Yes\",'TSA Input'!J2975=\"Contingent\"),'TSA Input'!I2975,\"\"))","v":""},{"$f":"IF('TSA Input'!J2975=\"\",\"\",IF(OR('TSA Input'!J2975=\"Yes\",'TSA Input'!J2975=\"Contingent\"),'TSA Input'!C2975,\"\"))","v":""},{"$f":"IF('TSA Input'!J2975=\"\",\"\",IF(OR('TSA Input'!J2975=\"Yes\",'TSA Input'!J2975=\"Contingent\"),'TSA Input'!D2975,\"\"))","v":""},{"$f":"IF('TSA Input'!J2975=\"\",\"\",IF(OR('TSA Input'!J2975=\"Yes\",'TSA Input'!J2975=\"Contingent\"),'TSA Input'!G2975,\"\"))","v":""},{"$f":"IF('TSA Input'!J2975=\"\",\"\",IF(OR('TSA Input'!J2975=\"Yes\",'TSA Input'!J2975=\"Contingent\"),'TSA Input'!F2975,\"\"))","v":""},"",{"$f":"IF('TSA Input'!J2975=\"\",\"\",IF(OR('TSA Input'!J2975=\"Yes\",'TSA Input'!J2975=\"Contingent\"),'TSA Input'!D2975,\"\"))","v":""},{"$f":"IF('TSA Input'!J2975=\"\",\"\",IF(OR('TSA Input'!J2975=\"Yes\",'TSA Input'!J2975=\"Contingent\"),'TSA Input'!G2975,\"\"))","v":""},{"$f":"IF('TSA Input'!J2975=\"\",\"\",IF(OR('TSA Input'!J2975=\"Yes\",'TSA Input'!J2975=\"Contingent\"),'TSA Input'!F2975,\"\"))","v":""},"","Required","Required"]
["",null,{"$f":"IF('TSA Input'!J2976=\"\",\"\",IF(OR('TSA Input'!J2976=\"Yes\",'TSA Input'!J2976=\"Contingent\"),'TSA Input'!B2976,\"Ineligible\"))","v":""},{"$f":"IF('TSA Input'!J2976=\"\",\"\",IF(OR('TSA Input'!J2976=\"Yes\",'TSA Input'!J2976=\"Contingent\"),'TSA Input'!I2976,\"\"))","v":""},{"$f":"IF('TSA Input'!J2976=\"\",\"\",IF(OR('TSA Input'!J2976=\"Yes\",'TSA Input'!J2976=\"Contingent\"),'TSA Input'!C2976,\"\"))","v":""},{"$f":"IF('TSA Input'!J2976=\"\",\"\",IF(OR('TSA Input'!J2976=\"Yes\",'TSA Input'!J2976=\"Contingent\"),'TSA Input'!D2976,\"\"))","v":""},{"$f":"IF('TSA Input'!J2976=\"\",\"\",IF(OR('TSA Input'!J2976=\"Yes\",'TSA Input'!J2976=\"Contingent\"),'TSA Input'!G2976,\"\"))","v":""},{"$f":"IF('TSA Input'!J2976=\"\",\"\",IF(OR('TSA Input'!J2976=\"Yes\",'TSA Input'!J2976=\"Contingent\"),'TSA Input'!F2976,\"\"))","v":""},"",{"$f":"IF('TSA Input'!J2976=\"\",\"\",IF(OR('TSA Input'!J2976=\"Yes\",'TSA Input'!J2976=\"Contingent\"),'TSA Input'!D2976,\"\"))","v":""},{"$f":"IF('TSA Input'!J2976=\"\",\"\",IF(OR('TSA Input'!J2976=\"Yes\",'TSA Input'!J2976=\"Contingent\"),'TSA Input'!G2976,\"\"))","v":""},{"$f":"IF('TSA Input'!J2976=\"\",\"\",IF(OR('TSA Input'!J2976=\"Yes\",'TSA Input'!J2976=\"Contingent\"),'TSA Input'!F2976,\"\"))","v":""},"","Required","Required"]
["",null,{"$f":"IF('TSA Input'!J2977=\"\",\"\",IF(OR('TSA Input'!J2977=\"Yes\",'TSA Input'!J2977=\"Contingent\"),'TSA Input'!B2977,\"Ineligible\"))","v":""},{"$f":"IF('TSA Input'!J2977=\"\",\"\",IF(OR('TSA Input'!J2977=\"Yes\",'TSA Input'!J2977=\"Contingent\"),'TSA Input'!I2977,\"\"))","v":""},{"$f":"IF('TSA Input'!J2977=\"\",\"\",IF(OR('TSA Input'!J2977=\"Yes\",'TSA Input'!J2977=\"Contingent\"),'TSA Input'!C2977,\"\"))","v":""},{"$f":"IF('TSA Input'!J2977=\"\",\"\",IF(OR('TSA Input'!J2977=\"Yes\",'TSA Input'!J2977=\"Contingent\"),'TSA Input'!D2977,\"\"))","v":""},{"$f":"IF('TSA Input'!J2977=\"\",\"\",IF(OR('TSA Input'!J2977=\"Yes\",'TSA Input'!J2977=\"Contingent\"),'TSA Input'!G2977,\"\"))","v":""},{"$f":"IF('TSA Input'!J2977=\"\",\"\",IF(OR('TSA Input'!J2977=\"Yes\",'TSA Input'!J2977=\"Contingent\"),'TSA Input'!F2977,\"\"))","v":""},"",{"$f":"IF('TSA Input'!J2977=\"\",\"\",IF(OR('TSA Input'!J2977=\"Yes\",'TSA Input'!J2977=\"Contingent\"),'TSA Input'!D2977,\"\"))","v":""},{"$f":"IF('TSA Input'!J2977=\"\",\"\",IF(OR('TSA Input'!J2977=\"Yes\",'TSA Input'!J2977=\"Contingent\"),'TSA Input'!G2977,\"\"))","v":""},{"$f":"IF('TSA Input'!J2977=\"\",\"\",IF(OR('TSA Input'!J2977=\"Yes\",'TSA Input'!J2977=\"Contingent\"),'TSA Input'!F2977,\"\"))","v":""},"","Required","Required"]
["",null,{"$f":"IF('TSA Input'!J2978=\"\",\"\",IF(OR('TSA Input'!J2978=\"Yes\",'TSA Input'!J2978=\"Contingent\"),'TSA Input'!B2978,\"Ineligible\"))","v":""},{"$f":"IF('TSA Input'!J2978=\"\",\"\",IF(OR('TSA Input'!J2978=\"Yes\",'TSA Input'!J2978=\"Contingent\"),'TSA Input'!I2978,\"\"))","v":""},{"$f":"IF('TSA Input'!J2978=\"\",\"\",IF(OR('TSA Input'!J2978=\"Yes\",'TSA Input'!J2978=\"Contingent\"),'TSA Input'!C2978,\"\"))","v":""},{"$f":"IF('TSA Input'!J2978=\"\",\"\",IF(OR('TSA Input'!J2978=\"Yes\",'TSA Input'!J2978=\"Contingent\"),'TSA Input'!D2978,\"\"))","v":""},{"$f":"IF('TSA Input'!J2978=\"\",\"\",IF(OR('TSA Input'!J2978=\"Yes\",'TSA Input'!J2978=\"Contingent\"),'TSA Input'!G2978,\"\"))","v":""},{"$f":"IF('TSA Input'!J2978=\"\",\"\",IF(OR('TSA Input'!J2978=\"Yes\",'TSA Input'!J2978=\"Contingent\"),'TSA Input'!F2978,\"\"))","v":""},"",{"$f":"IF('TSA Input'!J2978=\"\",\"\",IF(OR('TSA Input'!J2978=\"Yes\",'TSA Input'!J2978=\"Contingent\"),'TSA Input'!D2978,\"\"))","v":""},{"$f":"IF('TSA Input'!J2978=\"\",\"\",IF(OR('TSA Input'!J2978=\"Yes\",'TSA Input'!J2978=\"Contingent\"),'TSA Input'!G2978,\"\"))","v":""},{"$f":"IF('TSA Input'!J2978=\"\",\"\",IF(OR('TSA Input'!J2978=\"Yes\",'TSA Input'!J2978=\"Contingent\"),'TSA Input'!F2978,\"\"))","v":""},"","Required","Required"]
["",null,{"$f":"IF('TSA Input'!J2979=\"\",\"\",IF(OR('TSA Input'!J2979=\"Yes\",'TSA Input'!J2979=\"Contingent\"),'TSA Input'!B2979,\"Ineligible\"))","v":""},{"$f":"IF('TSA Input'!J2979=\"\",\"\",IF(OR('TSA Input'!J2979=\"Yes\",'TSA Input'!J2979=\"Contingent\"),'TSA Input'!I2979,\"\"))","v":""},{"$f":"IF('TSA Input'!J2979=\"\",\"\",IF(OR('TSA Input'!J2979=\"Yes\",'TSA Input'!J2979=\"Contingent\"),'TSA Input'!C2979,\"\"))","v":""},{"$f":"IF('TSA Input'!J2979=\"\",\"\",IF(OR('TSA Input'!J2979=\"Yes\",'TSA Input'!J2979=\"Contingent\"),'TSA Input'!D2979,\"\"))","v":""},{"$f":"IF('TSA Input'!J2979=\"\",\"\",IF(OR('TSA Input'!J2979=\"Yes\",'TSA Input'!J2979=\"Contingent\"),'TSA Input'!G2979,\"\"))","v":""},{"$f":"IF('TSA Input'!J2979=\"\",\"\",IF(OR('TSA Input'!J2979=\"Yes\",'TSA Input'!J2979=\"Contingent\"),'TSA Input'!F2979,\"\"))","v":""},"",{"$f":"IF('TSA Input'!J2979=\"\",\"\",IF(OR('TSA Input'!J2979=\"Yes\",'TSA Input'!J2979=\"Contingent\"),'TSA Input'!D2979,\"\"))","v":""},{"$f":"IF('TSA Input'!J2979=\"\",\"\",IF(OR('TSA Input'!J2979=\"Yes\",'TSA Input'!J2979=\"Contingent\"),'TSA Input'!G2979,\"\"))","v":""},{"$f":"IF('TSA Input'!J2979=\"\",\"\",IF(OR('TSA Input'!J2979=\"Yes\",'TSA Input'!J2979=\"Contingent\"),'TSA Input'!F2979,\"\"))","v":""},"","Required","Required"]
["",null,{"$f":"IF('TSA Input'!J2980=\"\",\"\",IF(OR('TSA Input'!J2980=\"Yes\",'TSA Input'!J2980=\"Contingent\"),'TSA Input'!B2980,\"Ineligible\"))","v":""},{"$f":"IF('TSA Input'!J2980=\"\",\"\",IF(OR('TSA Input'!J2980=\"Yes\",'TSA Input'!J2980=\"Contingent\"),'TSA Input'!I2980,\"\"))","v":""},{"$f":"IF('TSA Input'!J2980=\"\",\"\",IF(OR('TSA Input'!J2980=\"Yes\",'TSA Input'!J2980=\"Contingent\"),'TSA Input'!C2980,\"\"))","v":""},{"$f":"IF('TSA Input'!J2980=\"\",\"\",IF(OR('TSA Input'!J2980=\"Yes\",'TSA Input'!J2980=\"Contingent\"),'TSA Input'!D2980,\"\"))","v":""},{"$f":"IF('TSA Input'!J2980=\"\",\"\",IF(OR('TSA Input'!J2980=\"Yes\",'TSA Input'!J2980=\"Contingent\"),'TSA Input'!G2980,\"\"))","v":""},{"$f":"IF('TSA Input'!J2980=\"\",\"\",IF(OR('TSA Input'!J2980=\"Yes\",'TSA Input'!J2980=\"Contingent\"),'TSA Input'!F2980,\"\"))","v":""},"",{"$f":"IF('TSA Input'!J2980=\"\",\"\",IF(OR('TSA Input'!J2980=\"Yes\",'TSA Input'!J2980=\"Contingent\"),'TSA Input'!D2980,\"\"))","v":""},{"$f":"IF('TSA Input'!J2980=\"\",\"\",IF(OR('TSA Input'!J2980=\"Yes\",'TSA Input'!J2980=\"Contingent\"),'TSA Input'!G2980,\"\"))","v":""},{"$f":"IF('TSA Input'!J2980=\"\",\"\",IF(OR('TSA Input'!J2980=\"Yes\",'TSA Input'!J2980=\"Contingent\"),'TSA Input'!F2980,\"\"))","v":""},"","Required","Required"]
["",null,{"$f":"IF('TSA Input'!J2981=\"\",\"\",IF(OR('TSA Input'!J2981=\"Yes\",'TSA Input'!J2981=\"Contingent\"),'TSA Input'!B2981,\"Ineligible\"))","v":""},{"$f":"IF('TSA Input'!J2981=\"\",\"\",IF(OR('TSA Input'!J2981=\"Yes\",'TSA Input'!J2981=\"Contingent\"),'TSA Input'!I2981,\"\"))","v":""},{"$f":"IF('TSA Input'!J2981=\"\",\"\",IF(OR('TSA Input'!J2981=\"Yes\",'TSA Input'!J2981=\"Contingent\"),'TSA Input'!C2981,\"\"))","v":""},{"$f":"IF('TSA Input'!J2981=\"\",\"\",IF(OR('TSA Input'!J2981=\"Yes\",'TSA Input'!J2981=\"Contingent\"),'TSA Input'!D2981,\"\"))","v":""},{"$f":"IF('TSA Input'!J2981=\"\",\"\",IF(OR('TSA Input'!J2981=\"Yes\",'TSA Input'!J2981=\"Contingent\"),'TSA Input'!G2981,\"\"))","v":""},{"$f":"IF('TSA Input'!J2981=\"\",\"\",IF(OR('TSA Input'!J2981=\"Yes\",'TSA Input'!J2981=\"Contingent\"),'TSA Input'!F2981,\"\"))","v":""},"",{"$f":"IF('TSA Input'!J2981=\"\",\"\",IF(OR('TSA Input'!J2981=\"Yes\",'TSA Input'!J2981=\"Contingent\"),'TSA Input'!D2981,\"\"))","v":""},{"$f":"IF('TSA Input'!J2981=\"\",\"\",IF(OR('TSA Input'!J2981=\"Yes\",'TSA Input'!J2981=\"Contingent\"),'TSA Input'!G2981,\"\"))","v":""},{"$f":"IF('TSA Input'!J2981=\"\",\"\",IF(OR('TSA Input'!J2981=\"Yes\",'TSA Input'!J2981=\"Contingent\"),'TSA Input'!F2981,\"\"))","v":""},"","Required","Required"]
["",null,{"$f":"IF('TSA Input'!J2982=\"\",\"\",IF(OR('TSA Input'!J2982=\"Yes\",'TSA Input'!J2982=\"Contingent\"),'TSA Input'!B2982,\"Ineligible\"))","v":""},{"$f":"IF('TSA Input'!J2982=\"\",\"\",IF(OR('TSA Input'!J2982=\"Yes\",'TSA Input'!J2982=\"Contingent\"),'TSA Input'!I2982,\"\"))","v":""},{"$f":"IF('TSA Input'!J2982=\"\",\"\",IF(OR('TSA Input'!J2982=\"Yes\",'TSA Input'!J2982=\"Contingent\"),'TSA Input'!C2982,\"\"))","v":""},{"$f":"IF('TSA Input'!J2982=\"\",\"\",IF(OR('TSA Input'!J2982=\"Yes\",'TSA Input'!J2982=\"Contingent\"),'TSA Input'!D2982,\"\"))","v":""},{"$f":"IF('TSA Input'!J2982=\"\",\"\",IF(OR('TSA Input'!J2982=\"Yes\",'TSA Input'!J2982=\"Contingent\"),'TSA Input'!G2982,\"\"))","v":""},{"$f":"IF('TSA Input'!J2982=\"\",\"\",IF(OR('TSA Input'!J2982=\"Yes\",'TSA Input'!J2982=\"Contingent\"),'TSA Input'!F2982,\"\"))","v":""},"",{"$f":"IF('TSA Input'!J2982=\"\",\"\",IF(OR('TSA Input'!J2982=\"Yes\",'TSA Input'!J2982=\"Contingent\"),'TSA Input'!D2982,\"\"))","v":""},{"$f":"IF('TSA Input'!J2982=\"\",\"\",IF(OR('TSA Input'!J2982=\"Yes\",'TSA Input'!J2982=\"Contingent\"),'TSA Input'!G2982,\"\"))","v":""},{"$f":"IF('TSA Input'!J2982=\"\",\"\",IF(OR('TSA Input'!J2982=\"Yes\",'TSA Input'!J2982=\"Contingent\"),'TSA Input'!F2982,\"\"))","v":""},"","Required","Required"]
["",null,{"$f":"IF('TSA Input'!J2983=\"\",\"\",IF(OR('TSA Input'!J2983=\"Yes\",'TSA Input'!J2983=\"Contingent\"),'TSA Input'!B2983,\"Ineligible\"))","v":""},{"$f":"IF('TSA Input'!J2983=\"\",\"\",IF(OR('TSA Input'!J2983=\"Yes\",'TSA Input'!J2983=\"Contingent\"),'TSA Input'!I2983,\"\"))","v":""},{"$f":"IF('TSA Input'!J2983=\"\",\"\",IF(OR('TSA Input'!J2983=\"Yes\",'TSA Input'!J2983=\"Contingent\"),'TSA Input'!C2983,\"\"))","v":""},{"$f":"IF('TSA Input'!J2983=\"\",\"\",IF(OR('TSA Input'!J2983=\"Yes\",'TSA Input'!J2983=\"Contingent\"),'TSA Input'!D2983,\"\"))","v":""},{"$f":"IF('TSA Input'!J2983=\"\",\"\",IF(OR('TSA Input'!J2983=\"Yes\",'TSA Input'!J2983=\"Contingent\"),'TSA Input'!G2983,\"\"))","v":""},{"$f":"IF('TSA Input'!J2983=\"\",\"\",IF(OR('TSA Input'!J2983=\"Yes\",'TSA Input'!J2983=\"Contingent\"),'TSA Input'!F2983,\"\"))","v":""},"",{"$f":"IF('TSA Input'!J2983=\"\",\"\",IF(OR('TSA Input'!J2983=\"Yes\",'TSA Input'!J2983=\"Contingent\"),'TSA Input'!D2983,\"\"))","v":""},{"$f":"IF('TSA Input'!J2983=\"\",\"\",IF(OR('TSA Input'!J2983=\"Yes\",'TSA Input'!J2983=\"Contingent\"),'TSA Input'!G2983,\"\"))","v":""},{"$f":"IF('TSA Input'!J2983=\"\",\"\",IF(OR('TSA Input'!J2983=\"Yes\",'TSA Input'!J2983=\"Contingent\"),'TSA Input'!F2983,\"\"))","v":""},"","Required","Required"]
["",null,{"$f":"IF('TSA Input'!J2984=\"\",\"\",IF(OR('TSA Input'!J2984=\"Yes\",'TSA Input'!J2984=\"Contingent\"),'TSA Input'!B2984,\"Ineligible\"))","v":""},{"$f":"IF('TSA Input'!J2984=\"\",\"\",IF(OR('TSA Input'!J2984=\"Yes\",'TSA Input'!J2984=\"Contingent\"),'TSA Input'!I2984,\"\"))","v":""},{"$f":"IF('TSA Input'!J2984=\"\",\"\",IF(OR('TSA Input'!J2984=\"Yes\",'TSA Input'!J2984=\"Contingent\"),'TSA Input'!C2984,\"\"))","v":""},{"$f":"IF('TSA Input'!J2984=\"\",\"\",IF(OR('TSA Input'!J2984=\"Yes\",'TSA Input'!J2984=\"Contingent\"),'TSA Input'!D2984,\"\"))","v":""},{"$f":"IF('TSA Input'!J2984=\"\",\"\",IF(OR('TSA Input'!J2984=\"Yes\",'TSA Input'!J2984=\"Contingent\"),'TSA Input'!G2984,\"\"))","v":""},{"$f":"IF('TSA Input'!J2984=\"\",\"\",IF(OR('TSA Input'!J2984=\"Yes\",'TSA Input'!J2984=\"Contingent\"),'TSA Input'!F2984,\"\"))","v":""},"",{"$f":"IF('TSA Input'!J2984=\"\",\"\",IF(OR('TSA Input'!J2984=\"Yes\",'TSA Input'!J2984=\"Contingent\"),'TSA Input'!D2984,\"\"))","v":""},{"$f":"IF('TSA Input'!J2984=\"\",\"\",IF(OR('TSA Input'!J2984=\"Yes\",'TSA Input'!J2984=\"Contingent\"),'TSA Input'!G2984,\"\"))","v":""},{"$f":"IF('TSA Input'!J2984=\"\",\"\",IF(OR('TSA Input'!J2984=\"Yes\",'TSA Input'!J2984=\"Contingent\"),'TSA Input'!F2984,\"\"))","v":""},"","Required","Required"]
["",null,{"$f":"IF('TSA Input'!J2985=\"\",\"\",IF(OR('TSA Input'!J2985=\"Yes\",'TSA Input'!J2985=\"Contingent\"),'TSA Input'!B2985,\"Ineligible\"))","v":""},{"$f":"IF('TSA Input'!J2985=\"\",\"\",IF(OR('TSA Input'!J2985=\"Yes\",'TSA Input'!J2985=\"Contingent\"),'TSA Input'!I2985,\"\"))","v":""},{"$f":"IF('TSA Input'!J2985=\"\",\"\",IF(OR('TSA Input'!J2985=\"Yes\",'TSA Input'!J2985=\"Contingent\"),'TSA Input'!C2985,\"\"))","v":""},{"$f":"IF('TSA Input'!J2985=\"\",\"\",IF(OR('TSA Input'!J2985=\"Yes\",'TSA Input'!J2985=\"Contingent\"),'TSA Input'!D2985,\"\"))","v":""},{"$f":"IF('TSA Input'!J2985=\"\",\"\",IF(OR('TSA Input'!J2985=\"Yes\",'TSA Input'!J2985=\"Contingent\"),'TSA Input'!G2985,\"\"))","v":""},{"$f":"IF('TSA Input'!J2985=\"\",\"\",IF(OR('TSA Input'!J2985=\"Yes\",'TSA Input'!J2985=\"Contingent\"),'TSA Input'!F2985,\"\"))","v":""},"",{"$f":"IF('TSA Input'!J2985=\"\",\"\",IF(OR('TSA Input'!J2985=\"Yes\",'TSA Input'!J2985=\"Contingent\"),'TSA Input'!D2985,\"\"))","v":""},{"$f":"IF('TSA Input'!J2985=\"\",\"\",IF(OR('TSA Input'!J2985=\"Yes\",'TSA Input'!J2985=\"Contingent\"),'TSA Input'!G2985,\"\"))","v":""},{"$f":"IF('TSA Input'!J2985=\"\",\"\",IF(OR('TSA Input'!J2985=\"Yes\",'TSA Input'!J2985=\"Contingent\"),'TSA Input'!F2985,\"\"))","v":""},"","Required","Required"]
["",null,{"$f":"IF('TSA Input'!J2986=\"\",\"\",IF(OR('TSA Input'!J2986=\"Yes\",'TSA Input'!J2986=\"Contingent\"),'TSA Input'!B2986,\"Ineligible\"))","v":""},{"$f":"IF('TSA Input'!J2986=\"\",\"\",IF(OR('TSA Input'!J2986=\"Yes\",'TSA Input'!J2986=\"Contingent\"),'TSA Input'!I2986,\"\"))","v":""},{"$f":"IF('TSA Input'!J2986=\"\",\"\",IF(OR('TSA Input'!J2986=\"Yes\",'TSA Input'!J2986=\"Contingent\"),'TSA Input'!C2986,\"\"))","v":""},{"$f":"IF('TSA Input'!J2986=\"\",\"\",IF(OR('TSA Input'!J2986=\"Yes\",'TSA Input'!J2986=\"Contingent\"),'TSA Input'!D2986,\"\"))","v":""},{"$f":"IF('TSA Input'!J2986=\"\",\"\",IF(OR('TSA Input'!J2986=\"Yes\",'TSA Input'!J2986=\"Contingent\"),'TSA Input'!G2986,\"\"))","v":""},{"$f":"IF('TSA Input'!J2986=\"\",\"\",IF(OR('TSA Input'!J2986=\"Yes\",'TSA Input'!J2986=\"Contingent\"),'TSA Input'!F2986,\"\"))","v":""},"",{"$f":"IF('TSA Input'!J2986=\"\",\"\",IF(OR('TSA Input'!J2986=\"Yes\",'TSA Input'!J2986=\"Contingent\"),'TSA Input'!D2986,\"\"))","v":""},{"$f":"IF('TSA Input'!J2986=\"\",\"\",IF(OR('TSA Input'!J2986=\"Yes\",'TSA Input'!J2986=\"Contingent\"),'TSA Input'!G2986,\"\"))","v":""},{"$f":"IF('TSA Input'!J2986=\"\",\"\",IF(OR('TSA Input'!J2986=\"Yes\",'TSA Input'!J2986=\"Contingent\"),'TSA Input'!F2986,\"\"))","v":""},"","Required","Required"]
["",null,{"$f":"IF('TSA Input'!J2987=\"\",\"\",IF(OR('TSA Input'!J2987=\"Yes\",'TSA Input'!J2987=\"Contingent\"),'TSA Input'!B2987,\"Ineligible\"))","v":""},{"$f":"IF('TSA Input'!J2987=\"\",\"\",IF(OR('TSA Input'!J2987=\"Yes\",'TSA Input'!J2987=\"Contingent\"),'TSA Input'!I2987,\"\"))","v":""},{"$f":"IF('TSA Input'!J2987=\"\",\"\",IF(OR('TSA Input'!J2987=\"Yes\",'TSA Input'!J2987=\"Contingent\"),'TSA Input'!C2987,\"\"))","v":""},{"$f":"IF('TSA Input'!J2987=\"\",\"\",IF(OR('TSA Input'!J2987=\"Yes\",'TSA Input'!J2987=\"Contingent\"),'TSA Input'!D2987,\"\"))","v":""},{"$f":"IF('TSA Input'!J2987=\"\",\"\",IF(OR('TSA Input'!J2987=\"Yes\",'TSA Input'!J2987=\"Contingent\"),'TSA Input'!G2987,\"\"))","v":""},{"$f":"IF('TSA Input'!J2987=\"\",\"\",IF(OR('TSA Input'!J2987=\"Yes\",'TSA Input'!J2987=\"Contingent\"),'TSA Input'!F2987,\"\"))","v":""},"",{"$f":"IF('TSA Input'!J2987=\"\",\"\",IF(OR('TSA Input'!J2987=\"Yes\",'TSA Input'!J2987=\"Contingent\"),'TSA Input'!D2987,\"\"))","v":""},{"$f":"IF('TSA Input'!J2987=\"\",\"\",IF(OR('TSA Input'!J2987=\"Yes\",'TSA Input'!J2987=\"Contingent\"),'TSA Input'!G2987,\"\"))","v":""},{"$f":"IF('TSA Input'!J2987=\"\",\"\",IF(OR('TSA Input'!J2987=\"Yes\",'TSA Input'!J2987=\"Contingent\"),'TSA Input'!F2987,\"\"))","v":""},"","Required","Required"]
["",null,{"$f":"IF('TSA Input'!J2988=\"\",\"\",IF(OR('TSA Input'!J2988=\"Yes\",'TSA Input'!J2988=\"Contingent\"),'TSA Input'!B2988,\"Ineligible\"))","v":""},{"$f":"IF('TSA Input'!J2988=\"\",\"\",IF(OR('TSA Input'!J2988=\"Yes\",'TSA Input'!J2988=\"Contingent\"),'TSA Input'!I2988,\"\"))","v":""},{"$f":"IF('TSA Input'!J2988=\"\",\"\",IF(OR('TSA Input'!J2988=\"Yes\",'TSA Input'!J2988=\"Contingent\"),'TSA Input'!C2988,\"\"))","v":""},{"$f":"IF('TSA Input'!J2988=\"\",\"\",IF(OR('TSA Input'!J2988=\"Yes\",'TSA Input'!J2988=\"Contingent\"),'TSA Input'!D2988,\"\"))","v":""},{"$f":"IF('TSA Input'!J2988=\"\",\"\",IF(OR('TSA Input'!J2988=\"Yes\",'TSA Input'!J2988=\"Contingent\"),'TSA Input'!G2988,\"\"))","v":""},{"$f":"IF('TSA Input'!J2988=\"\",\"\",IF(OR('TSA Input'!J2988=\"Yes\",'TSA Input'!J2988=\"Contingent\"),'TSA Input'!F2988,\"\"))","v":""},"",{"$f":"IF('TSA Input'!J2988=\"\",\"\",IF(OR('TSA Input'!J2988=\"Yes\",'TSA Input'!J2988=\"Contingent\"),'TSA Input'!D2988,\"\"))","v":""},{"$f":"IF('TSA Input'!J2988=\"\",\"\",IF(OR('TSA Input'!J2988=\"Yes\",'TSA Input'!J2988=\"Contingent\"),'TSA Input'!G2988,\"\"))","v":""},{"$f":"IF('TSA Input'!J2988=\"\",\"\",IF(OR('TSA Input'!J2988=\"Yes\",'TSA Input'!J2988=\"Contingent\"),'TSA Input'!F2988,\"\"))","v":""},"","Required","Required"]
["",null,{"$f":"IF('TSA Input'!J2989=\"\",\"\",IF(OR('TSA Input'!J2989=\"Yes\",'TSA Input'!J2989=\"Contingent\"),'TSA Input'!B2989,\"Ineligible\"))","v":""},{"$f":"IF('TSA Input'!J2989=\"\",\"\",IF(OR('TSA Input'!J2989=\"Yes\",'TSA Input'!J2989=\"Contingent\"),'TSA Input'!I2989,\"\"))","v":""},{"$f":"IF('TSA Input'!J2989=\"\",\"\",IF(OR('TSA Input'!J2989=\"Yes\",'TSA Input'!J2989=\"Contingent\"),'TSA Input'!C2989,\"\"))","v":""},{"$f":"IF('TSA Input'!J2989=\"\",\"\",IF(OR('TSA Input'!J2989=\"Yes\",'TSA Input'!J2989=\"Contingent\"),'TSA Input'!D2989,\"\"))","v":""},{"$f":"IF('TSA Input'!J2989=\"\",\"\",IF(OR('TSA Input'!J2989=\"Yes\",'TSA Input'!J2989=\"Contingent\"),'TSA Input'!G2989,\"\"))","v":""},{"$f":"IF('TSA Input'!J2989=\"\",\"\",IF(OR('TSA Input'!J2989=\"Yes\",'TSA Input'!J2989=\"Contingent\"),'TSA Input'!F2989,\"\"))","v":""},"",{"$f":"IF('TSA Input'!J2989=\"\",\"\",IF(OR('TSA Input'!J2989=\"Yes\",'TSA Input'!J2989=\"Contingent\"),'TSA Input'!D2989,\"\"))","v":""},{"$f":"IF('TSA Input'!J2989=\"\",\"\",IF(OR('TSA Input'!J2989=\"Yes\",'TSA Input'!J2989=\"Contingent\"),'TSA Input'!G2989,\"\"))","v":""},{"$f":"IF('TSA Input'!J2989=\"\",\"\",IF(OR('TSA Input'!J2989=\"Yes\",'TSA Input'!J2989=\"Contingent\"),'TSA Input'!F2989,\"\"))","v":""},"","Required","Required"]
["",null,{"$f":"IF('TSA Input'!J2990=\"\",\"\",IF(OR('TSA Input'!J2990=\"Yes\",'TSA Input'!J2990=\"Contingent\"),'TSA Input'!B2990,\"Ineligible\"))","v":""},{"$f":"IF('TSA Input'!J2990=\"\",\"\",IF(OR('TSA Input'!J2990=\"Yes\",'TSA Input'!J2990=\"Contingent\"),'TSA Input'!I2990,\"\"))","v":""},{"$f":"IF('TSA Input'!J2990=\"\",\"\",IF(OR('TSA Input'!J2990=\"Yes\",'TSA Input'!J2990=\"Contingent\"),'TSA Input'!C2990,\"\"))","v":""},{"$f":"IF('TSA Input'!J2990=\"\",\"\",IF(OR('TSA Input'!J2990=\"Yes\",'TSA Input'!J2990=\"Contingent\"),'TSA Input'!D2990,\"\"))","v":""},{"$f":"IF('TSA Input'!J2990=\"\",\"\",IF(OR('TSA Input'!J2990=\"Yes\",'TSA Input'!J2990=\"Contingent\"),'TSA Input'!G2990,\"\"))","v":""},{"$f":"IF('TSA Input'!J2990=\"\",\"\",IF(OR('TSA Input'!J2990=\"Yes\",'TSA Input'!J2990=\"Contingent\"),'TSA Input'!F2990,\"\"))","v":""},"",{"$f":"IF('TSA Input'!J2990=\"\",\"\",IF(OR('TSA Input'!J2990=\"Yes\",'TSA Input'!J2990=\"Contingent\"),'TSA Input'!D2990,\"\"))","v":""},{"$f":"IF('TSA Input'!J2990=\"\",\"\",IF(OR('TSA Input'!J2990=\"Yes\",'TSA Input'!J2990=\"Contingent\"),'TSA Input'!G2990,\"\"))","v":""},{"$f":"IF('TSA Input'!J2990=\"\",\"\",IF(OR('TSA Input'!J2990=\"Yes\",'TSA Input'!J2990=\"Contingent\"),'TSA Input'!F2990,\"\"))","v":""},"","Required","Required"]
["",null,{"$f":"IF('TSA Input'!J2991=\"\",\"\",IF(OR('TSA Input'!J2991=\"Yes\",'TSA Input'!J2991=\"Contingent\"),'TSA Input'!B2991,\"Ineligible\"))","v":""},{"$f":"IF('TSA Input'!J2991=\"\",\"\",IF(OR('TSA Input'!J2991=\"Yes\",'TSA Input'!J2991=\"Contingent\"),'TSA Input'!I2991,\"\"))","v":""},{"$f":"IF('TSA Input'!J2991=\"\",\"\",IF(OR('TSA Input'!J2991=\"Yes\",'TSA Input'!J2991=\"Contingent\"),'TSA Input'!C2991,\"\"))","v":""},{"$f":"IF('TSA Input'!J2991=\"\",\"\",IF(OR('TSA Input'!J2991=\"Yes\",'TSA Input'!J2991=\"Contingent\"),'TSA Input'!D2991,\"\"))","v":""},{"$f":"IF('TSA Input'!J2991=\"\",\"\",IF(OR('TSA Input'!J2991=\"Yes\",'TSA Input'!J2991=\"Contingent\"),'TSA Input'!G2991,\"\"))","v":""},{"$f":"IF('TSA Input'!J2991=\"\",\"\",IF(OR('TSA Input'!J2991=\"Yes\",'TSA Input'!J2991=\"Contingent\"),'TSA Input'!F2991,\"\"))","v":""},"",{"$f":"IF('TSA Input'!J2991=\"\",\"\",IF(OR('TSA Input'!J2991=\"Yes\",'TSA Input'!J2991=\"Contingent\"),'TSA Input'!D2991,\"\"))","v":""},{"$f":"IF('TSA Input'!J2991=\"\",\"\",IF(OR('TSA Input'!J2991=\"Yes\",'TSA Input'!J2991=\"Contingent\"),'TSA Input'!G2991,\"\"))","v":""},{"$f":"IF('TSA Input'!J2991=\"\",\"\",IF(OR('TSA Input'!J2991=\"Yes\",'TSA Input'!J2991=\"Contingent\"),'TSA Input'!F2991,\"\"))","v":""},"","Required","Required"]
["",null,{"$f":"IF('TSA Input'!J2992=\"\",\"\",IF(OR('TSA Input'!J2992=\"Yes\",'TSA Input'!J2992=\"Contingent\"),'TSA Input'!B2992,\"Ineligible\"))","v":""},{"$f":"IF('TSA Input'!J2992=\"\",\"\",IF(OR('TSA Input'!J2992=\"Yes\",'TSA Input'!J2992=\"Contingent\"),'TSA Input'!I2992,\"\"))","v":""},{"$f":"IF('TSA Input'!J2992=\"\",\"\",IF(OR('TSA Input'!J2992=\"Yes\",'TSA Input'!J2992=\"Contingent\"),'TSA Input'!C2992,\"\"))","v":""},{"$f":"IF('TSA Input'!J2992=\"\",\"\",IF(OR('TSA Input'!J2992=\"Yes\",'TSA Input'!J2992=\"Contingent\"),'TSA Input'!D2992,\"\"))","v":""},{"$f":"IF('TSA Input'!J2992=\"\",\"\",IF(OR('TSA Input'!J2992=\"Yes\",'TSA Input'!J2992=\"Contingent\"),'TSA Input'!G2992,\"\"))","v":""},{"$f":"IF('TSA Input'!J2992=\"\",\"\",IF(OR('TSA Input'!J2992=\"Yes\",'TSA Input'!J2992=\"Contingent\"),'TSA Input'!F2992,\"\"))","v":""},"",{"$f":"IF('TSA Input'!J2992=\"\",\"\",IF(OR('TSA Input'!J2992=\"Yes\",'TSA Input'!J2992=\"Contingent\"),'TSA Input'!D2992,\"\"))","v":""},{"$f":"IF('TSA Input'!J2992=\"\",\"\",IF(OR('TSA Input'!J2992=\"Yes\",'TSA Input'!J2992=\"Contingent\"),'TSA Input'!G2992,\"\"))","v":""},{"$f":"IF('TSA Input'!J2992=\"\",\"\",IF(OR('TSA Input'!J2992=\"Yes\",'TSA Input'!J2992=\"Contingent\"),'TSA Input'!F2992,\"\"))","v":""},"","Required","Required"]
["",null,{"$f":"IF('TSA Input'!J2993=\"\",\"\",IF(OR('TSA Input'!J2993=\"Yes\",'TSA Input'!J2993=\"Contingent\"),'TSA Input'!B2993,\"Ineligible\"))","v":""},{"$f":"IF('TSA Input'!J2993=\"\",\"\",IF(OR('TSA Input'!J2993=\"Yes\",'TSA Input'!J2993=\"Contingent\"),'TSA Input'!I2993,\"\"))","v":""},{"$f":"IF('TSA Input'!J2993=\"\",\"\",IF(OR('TSA Input'!J2993=\"Yes\",'TSA Input'!J2993=\"Contingent\"),'TSA Input'!C2993,\"\"))","v":""},{"$f":"IF('TSA Input'!J2993=\"\",\"\",IF(OR('TSA Input'!J2993=\"Yes\",'TSA Input'!J2993=\"Contingent\"),'TSA Input'!D2993,\"\"))","v":""},{"$f":"IF('TSA Input'!J2993=\"\",\"\",IF(OR('TSA Input'!J2993=\"Yes\",'TSA Input'!J2993=\"Contingent\"),'TSA Input'!G2993,\"\"))","v":""},{"$f":"IF('TSA Input'!J2993=\"\",\"\",IF(OR('TSA Input'!J2993=\"Yes\",'TSA Input'!J2993=\"Contingent\"),'TSA Input'!F2993,\"\"))","v":""},"",{"$f":"IF('TSA Input'!J2993=\"\",\"\",IF(OR('TSA Input'!J2993=\"Yes\",'TSA Input'!J2993=\"Contingent\"),'TSA Input'!D2993,\"\"))","v":""},{"$f":"IF('TSA Input'!J2993=\"\",\"\",IF(OR('TSA Input'!J2993=\"Yes\",'TSA Input'!J2993=\"Contingent\"),'TSA Input'!G2993,\"\"))","v":""},{"$f":"IF('TSA Input'!J2993=\"\",\"\",IF(OR('TSA Input'!J2993=\"Yes\",'TSA Input'!J2993=\"Contingent\"),'TSA Input'!F2993,\"\"))","v":""},"","Required","Required"]
["",null,{"$f":"IF('TSA Input'!J2994=\"\",\"\",IF(OR('TSA Input'!J2994=\"Yes\",'TSA Input'!J2994=\"Contingent\"),'TSA Input'!B2994,\"Ineligible\"))","v":""},{"$f":"IF('TSA Input'!J2994=\"\",\"\",IF(OR('TSA Input'!J2994=\"Yes\",'TSA Input'!J2994=\"Contingent\"),'TSA Input'!I2994,\"\"))","v":""},{"$f":"IF('TSA Input'!J2994=\"\",\"\",IF(OR('TSA Input'!J2994=\"Yes\",'TSA Input'!J2994=\"Contingent\"),'TSA Input'!C2994,\"\"))","v":""},{"$f":"IF('TSA Input'!J2994=\"\",\"\",IF(OR('TSA Input'!J2994=\"Yes\",'TSA Input'!J2994=\"Contingent\"),'TSA Input'!D2994,\"\"))","v":""},{"$f":"IF('TSA Input'!J2994=\"\",\"\",IF(OR('TSA Input'!J2994=\"Yes\",'TSA Input'!J2994=\"Contingent\"),'TSA Input'!G2994,\"\"))","v":""},{"$f":"IF('TSA Input'!J2994=\"\",\"\",IF(OR('TSA Input'!J2994=\"Yes\",'TSA Input'!J2994=\"Contingent\"),'TSA Input'!F2994,\"\"))","v":""},"",{"$f":"IF('TSA Input'!J2994=\"\",\"\",IF(OR('TSA Input'!J2994=\"Yes\",'TSA Input'!J2994=\"Contingent\"),'TSA Input'!D2994,\"\"))","v":""},{"$f":"IF('TSA Input'!J2994=\"\",\"\",IF(OR('TSA Input'!J2994=\"Yes\",'TSA Input'!J2994=\"Contingent\"),'TSA Input'!G2994,\"\"))","v":""},{"$f":"IF('TSA Input'!J2994=\"\",\"\",IF(OR('TSA Input'!J2994=\"Yes\",'TSA Input'!J2994=\"Contingent\"),'TSA Input'!F2994,\"\"))","v":""},"","Required","Required"]
["",null,{"$f":"IF('TSA Input'!J2995=\"\",\"\",IF(OR('TSA Input'!J2995=\"Yes\",'TSA Input'!J2995=\"Contingent\"),'TSA Input'!B2995,\"Ineligible\"))","v":""},{"$f":"IF('TSA Input'!J2995=\"\",\"\",IF(OR('TSA Input'!J2995=\"Yes\",'TSA Input'!J2995=\"Contingent\"),'TSA Input'!I2995,\"\"))","v":""},{"$f":"IF('TSA Input'!J2995=\"\",\"\",IF(OR('TSA Input'!J2995=\"Yes\",'TSA Input'!J2995=\"Contingent\"),'TSA Input'!C2995,\"\"))","v":""},{"$f":"IF('TSA Input'!J2995=\"\",\"\",IF(OR('TSA Input'!J2995=\"Yes\",'TSA Input'!J2995=\"Contingent\"),'TSA Input'!D2995,\"\"))","v":""},{"$f":"IF('TSA Input'!J2995=\"\",\"\",IF(OR('TSA Input'!J2995=\"Yes\",'TSA Input'!J2995=\"Contingent\"),'TSA Input'!G2995,\"\"))","v":""},{"$f":"IF('TSA Input'!J2995=\"\",\"\",IF(OR('TSA Input'!J2995=\"Yes\",'TSA Input'!J2995=\"Contingent\"),'TSA Input'!F2995,\"\"))","v":""},"",{"$f":"IF('TSA Input'!J2995=\"\",\"\",IF(OR('TSA Input'!J2995=\"Yes\",'TSA Input'!J2995=\"Contingent\"),'TSA Input'!D2995,\"\"))","v":""},{"$f":"IF('TSA Input'!J2995=\"\",\"\",IF(OR('TSA Input'!J2995=\"Yes\",'TSA Input'!J2995=\"Contingent\"),'TSA Input'!G2995,\"\"))","v":""},{"$f":"IF('TSA Input'!J2995=\"\",\"\",IF(OR('TSA Input'!J2995=\"Yes\",'TSA Input'!J2995=\"Contingent\"),'TSA Input'!F2995,\"\"))","v":""},"","Required","Required"]
["",null,{"$f":"IF('TSA Input'!J2996=\"\",\"\",IF(OR('TSA Input'!J2996=\"Yes\",'TSA Input'!J2996=\"Contingent\"),'TSA Input'!B2996,\"Ineligible\"))","v":""},{"$f":"IF('TSA Input'!J2996=\"\",\"\",IF(OR('TSA Input'!J2996=\"Yes\",'TSA Input'!J2996=\"Contingent\"),'TSA Input'!I2996,\"\"))","v":""},{"$f":"IF('TSA Input'!J2996=\"\",\"\",IF(OR('TSA Input'!J2996=\"Yes\",'TSA Input'!J2996=\"Contingent\"),'TSA Input'!C2996,\"\"))","v":""},{"$f":"IF('TSA Input'!J2996=\"\",\"\",IF(OR('TSA Input'!J2996=\"Yes\",'TSA Input'!J2996=\"Contingent\"),'TSA Input'!D2996,\"\"))","v":""},{"$f":"IF('TSA Input'!J2996=\"\",\"\",IF(OR('TSA Input'!J2996=\"Yes\",'TSA Input'!J2996=\"Contingent\"),'TSA Input'!G2996,\"\"))","v":""},{"$f":"IF('TSA Input'!J2996=\"\",\"\",IF(OR('TSA Input'!J2996=\"Yes\",'TSA Input'!J2996=\"Contingent\"),'TSA Input'!F2996,\"\"))","v":""},"",{"$f":"IF('TSA Input'!J2996=\"\",\"\",IF(OR('TSA Input'!J2996=\"Yes\",'TSA Input'!J2996=\"Contingent\"),'TSA Input'!D2996,\"\"))","v":""},{"$f":"IF('TSA Input'!J2996=\"\",\"\",IF(OR('TSA Input'!J2996=\"Yes\",'TSA Input'!J2996=\"Contingent\"),'TSA Input'!G2996,\"\"))","v":""},{"$f":"IF('TSA Input'!J2996=\"\",\"\",IF(OR('TSA Input'!J2996=\"Yes\",'TSA Input'!J2996=\"Contingent\"),'TSA Input'!F2996,\"\"))","v":""},"","Required","Required"]
["",null,{"$f":"IF('TSA Input'!J2997=\"\",\"\",IF(OR('TSA Input'!J2997=\"Yes\",'TSA Input'!J2997=\"Contingent\"),'TSA Input'!B2997,\"Ineligible\"))","v":""},{"$f":"IF('TSA Input'!J2997=\"\",\"\",IF(OR('TSA Input'!J2997=\"Yes\",'TSA Input'!J2997=\"Contingent\"),'TSA Input'!I2997,\"\"))","v":""},{"$f":"IF('TSA Input'!J2997=\"\",\"\",IF(OR('TSA Input'!J2997=\"Yes\",'TSA Input'!J2997=\"Contingent\"),'TSA Input'!C2997,\"\"))","v":""},{"$f":"IF('TSA Input'!J2997=\"\",\"\",IF(OR('TSA Input'!J2997=\"Yes\",'TSA Input'!J2997=\"Contingent\"),'TSA Input'!D2997,\"\"))","v":""},{"$f":"IF('TSA Input'!J2997=\"\",\"\",IF(OR('TSA Input'!J2997=\"Yes\",'TSA Input'!J2997=\"Contingent\"),'TSA Input'!G2997,\"\"))","v":""},{"$f":"IF('TSA Input'!J2997=\"\",\"\",IF(OR('TSA Input'!J2997=\"Yes\",'TSA Input'!J2997=\"Contingent\"),'TSA Input'!F2997,\"\"))","v":""},"",{"$f":"IF('TSA Input'!J2997=\"\",\"\",IF(OR('TSA Input'!J2997=\"Yes\",'TSA Input'!J2997=\"Contingent\"),'TSA Input'!D2997,\"\"))","v":""},{"$f":"IF('TSA Input'!J2997=\"\",\"\",IF(OR('TSA Input'!J2997=\"Yes\",'TSA Input'!J2997=\"Contingent\"),'TSA Input'!G2997,\"\"))","v":""},{"$f":"IF('TSA Input'!J2997=\"\",\"\",IF(OR('TSA Input'!J2997=\"Yes\",'TSA Input'!J2997=\"Contingent\"),'TSA Input'!F2997,\"\"))","v":""},"","Required","Required"]
["",null,{"$f":"IF('TSA Input'!J2998=\"\",\"\",IF(OR('TSA Input'!J2998=\"Yes\",'TSA Input'!J2998=\"Contingent\"),'TSA Input'!B2998,\"Ineligible\"))","v":""},{"$f":"IF('TSA Input'!J2998=\"\",\"\",IF(OR('TSA Input'!J2998=\"Yes\",'TSA Input'!J2998=\"Contingent\"),'TSA Input'!I2998,\"\"))","v":""},{"$f":"IF('TSA Input'!J2998=\"\",\"\",IF(OR('TSA Input'!J2998=\"Yes\",'TSA Input'!J2998=\"Contingent\"),'TSA Input'!C2998,\"\"))","v":""},{"$f":"IF('TSA Input'!J2998=\"\",\"\",IF(OR('TSA Input'!J2998=\"Yes\",'TSA Input'!J2998=\"Contingent\"),'TSA Input'!D2998,\"\"))","v":""},{"$f":"IF('TSA Input'!J2998=\"\",\"\",IF(OR('TSA Input'!J2998=\"Yes\",'TSA Input'!J2998=\"Contingent\"),'TSA Input'!G2998,\"\"))","v":""},{"$f":"IF('TSA Input'!J2998=\"\",\"\",IF(OR('TSA Input'!J2998=\"Yes\",'TSA Input'!J2998=\"Contingent\"),'TSA Input'!F2998,\"\"))","v":""},"",{"$f":"IF('TSA Input'!J2998=\"\",\"\",IF(OR('TSA Input'!J2998=\"Yes\",'TSA Input'!J2998=\"Contingent\"),'TSA Input'!D2998,\"\"))","v":""},{"$f":"IF('TSA Input'!J2998=\"\",\"\",IF(OR('TSA Input'!J2998=\"Yes\",'TSA Input'!J2998=\"Contingent\"),'TSA Input'!G2998,\"\"))","v":""},{"$f":"IF('TSA Input'!J2998=\"\",\"\",IF(OR('TSA Input'!J2998=\"Yes\",'TSA Input'!J2998=\"Contingent\"),'TSA Input'!F2998,\"\"))","v":""},"","Required","Required"]
["",null,{"$f":"IF('TSA Input'!J2999=\"\",\"\",IF(OR('TSA Input'!J2999=\"Yes\",'TSA Input'!J2999=\"Contingent\"),'TSA Input'!B2999,\"Ineligible\"))","v":""},{"$f":"IF('TSA Input'!J2999=\"\",\"\",IF(OR('TSA Input'!J2999=\"Yes\",'TSA Input'!J2999=\"Contingent\"),'TSA Input'!I2999,\"\"))","v":""},{"$f":"IF('TSA Input'!J2999=\"\",\"\",IF(OR('TSA Input'!J2999=\"Yes\",'TSA Input'!J2999=\"Contingent\"),'TSA Input'!C2999,\"\"))","v":""},{"$f":"IF('TSA Input'!J2999=\"\",\"\",IF(OR('TSA Input'!J2999=\"Yes\",'TSA Input'!J2999=\"Contingent\"),'TSA Input'!D2999,\"\"))","v":""},{"$f":"IF('TSA Input'!J2999=\"\",\"\",IF(OR('TSA Input'!J2999=\"Yes\",'TSA Input'!J2999=\"Contingent\"),'TSA Input'!G2999,\"\"))","v":""},{"$f":"IF('TSA Input'!J2999=\"\",\"\",IF(OR('TSA Input'!J2999=\"Yes\",'TSA Input'!J2999=\"Contingent\"),'TSA Input'!F2999,\"\"))","v":""},"",{"$f":"IF('TSA Input'!J2999=\"\",\"\",IF(OR('TSA Input'!J2999=\"Yes\",'TSA Input'!J2999=\"Contingent\"),'TSA Input'!D2999,\"\"))","v":""},{"$f":"IF('TSA Input'!J2999=\"\",\"\",IF(OR('TSA Input'!J2999=\"Yes\",'TSA Input'!J2999=\"Contingent\"),'TSA Input'!G2999,\"\"))","v":""},{"$f":"IF('TSA Input'!J2999=\"\",\"\",IF(OR('TSA Input'!J2999=\"Yes\",'TSA Input'!J2999=\"Contingent\"),'TSA Input'!F2999,\"\"))","v":""},"","Required","Required"]
["",null,{"$f":"IF('TSA Input'!J3000=\"\",\"\",IF(OR('TSA Input'!J3000=\"Yes\",'TSA Input'!J3000=\"Contingent\"),'TSA Input'!B3000,\"Ineligible\"))","v":""},{"$f":"IF('TSA Input'!J3000=\"\",\"\",IF(OR('TSA Input'!J3000=\"Yes\",'TSA Input'!J3000=\"Contingent\"),'TSA Input'!I3000,\"\"))","v":""},{"$f":"IF('TSA Input'!J3000=\"\",\"\",IF(OR('TSA Input'!J3000=\"Yes\",'TSA Input'!J3000=\"Contingent\"),'TSA Input'!C3000,\"\"))","v":""},{"$f":"IF('TSA Input'!J3000=\"\",\"\",IF(OR('TSA Input'!J3000=\"Yes\",'TSA Input'!J3000=\"Contingent\"),'TSA Input'!D3000,\"\"))","v":""},{"$f":"IF('TSA Input'!J3000=\"\",\"\",IF(OR('TSA Input'!J3000=\"Yes\",'TSA Input'!J3000=\"Contingent\"),'TSA Input'!G3000,\"\"))","v":""},{"$f":"IF('TSA Input'!J3000=\"\",\"\",IF(OR('TSA Input'!J3000=\"Yes\",'TSA Input'!J3000=\"Contingent\"),'TSA Input'!F3000,\"\"))","v":""},"",{"$f":"IF('TSA Input'!J3000=\"\",\"\",IF(OR('TSA Input'!J3000=\"Yes\",'TSA Input'!J3000=\"Contingent\"),'TSA Input'!D3000,\"\"))","v":""},{"$f":"IF('TSA Input'!J3000=\"\",\"\",IF(OR('TSA Input'!J3000=\"Yes\",'TSA Input'!J3000=\"Contingent\"),'TSA Input'!G3000,\"\"))","v":""},{"$f":"IF('TSA Input'!J3000=\"\",\"\",IF(OR('TSA Input'!J3000=\"Yes\",'TSA Input'!J3000=\"Contingent\"),'TSA Input'!F3000,\"\"))","v":""},"","Required","Required"]
["",null,{"$f":"IF('TSA Input'!J3001=\"\",\"\",IF(OR('TSA Input'!J3001=\"Yes\",'TSA Input'!J3001=\"Contingent\"),'TSA Input'!B3001,\"Ineligible\"))","v":""},{"$f":"IF('TSA Input'!J3001=\"\",\"\",IF(OR('TSA Input'!J3001=\"Yes\",'TSA Input'!J3001=\"Contingent\"),'TSA Input'!I3001,\"\"))","v":""},{"$f":"IF('TSA Input'!J3001=\"\",\"\",IF(OR('TSA Input'!J3001=\"Yes\",'TSA Input'!J3001=\"Contingent\"),'TSA Input'!C3001,\"\"))","v":""},{"$f":"IF('TSA Input'!J3001=\"\",\"\",IF(OR('TSA Input'!J3001=\"Yes\",'TSA Input'!J3001=\"Contingent\"),'TSA Input'!D3001,\"\"))","v":""},{"$f":"IF('TSA Input'!J3001=\"\",\"\",IF(OR('TSA Input'!J3001=\"Yes\",'TSA Input'!J3001=\"Contingent\"),'TSA Input'!G3001,\"\"))","v":""},{"$f":"IF('TSA Input'!J3001=\"\",\"\",IF(OR('TSA Input'!J3001=\"Yes\",'TSA Input'!J3001=\"Contingent\"),'TSA Input'!F3001,\"\"))","v":""},"",{"$f":"IF('TSA Input'!J3001=\"\",\"\",IF(OR('TSA Input'!J3001=\"Yes\",'TSA Input'!J3001=\"Contingent\"),'TSA Input'!D3001,\"\"))","v":""},{"$f":"IF('TSA Input'!J3001=\"\",\"\",IF(OR('TSA Input'!J3001=\"Yes\",'TSA Input'!J3001=\"Contingent\"),'TSA Input'!G3001,\"\"))","v":""},{"$f":"IF('TSA Input'!J3001=\"\",\"\",IF(OR('TSA Input'!J3001=\"Yes\",'TSA Input'!J3001=\"Contingent\"),'TSA Input'!F3001,\"\"))","v":""},"","Required","Required"]
["",null,{"$f":"IF('TSA Input'!J3002=\"\",\"\",IF(OR('TSA Input'!J3002=\"Yes\",'TSA Input'!J3002=\"Contingent\"),'TSA Input'!B3002,\"Ineligible\"))","v":""},{"$f":"IF('TSA Input'!J3002=\"\",\"\",IF(OR('TSA Input'!J3002=\"Yes\",'TSA Input'!J3002=\"Contingent\"),'TSA Input'!I3002,\"\"))","v":""},{"$f":"IF('TSA Input'!J3002=\"\",\"\",IF(OR('TSA Input'!J3002=\"Yes\",'TSA Input'!J3002=\"Contingent\"),'TSA Input'!C3002,\"\"))","v":""},{"$f":"IF('TSA Input'!J3002=\"\",\"\",IF(OR('TSA Input'!J3002=\"Yes\",'TSA Input'!J3002=\"Contingent\"),'TSA Input'!D3002,\"\"))","v":""},{"$f":"IF('TSA Input'!J3002=\"\",\"\",IF(OR('TSA Input'!J3002=\"Yes\",'TSA Input'!J3002=\"Contingent\"),'TSA Input'!G3002,\"\"))","v":""},{"$f":"IF('TSA Input'!J3002=\"\",\"\",IF(OR('TSA Input'!J3002=\"Yes\",'TSA Input'!J3002=\"Contingent\"),'TSA Input'!F3002,\"\"))","v":""},"",{"$f":"IF('TSA Input'!J3002=\"\",\"\",IF(OR('TSA Input'!J3002=\"Yes\",'TSA Input'!J3002=\"Contingent\"),'TSA Input'!D3002,\"\"))","v":""},{"$f":"IF('TSA Input'!J3002=\"\",\"\",IF(OR('TSA Input'!J3002=\"Yes\",'TSA Input'!J3002=\"Contingent\"),'TSA Input'!G3002,\"\"))","v":""},{"$f":"IF('TSA Input'!J3002=\"\",\"\",IF(OR('TSA Input'!J3002=\"Yes\",'TSA Input'!J3002=\"Contingent\"),'TSA Input'!F3002,\"\"))","v":""},"","Required","Required"]
["",null,{"$f":"IF('TSA Input'!J3003=\"\",\"\",IF(OR('TSA Input'!J3003=\"Yes\",'TSA Input'!J3003=\"Contingent\"),'TSA Input'!B3003,\"Ineligible\"))","v":""},{"$f":"IF('TSA Input'!J3003=\"\",\"\",IF(OR('TSA Input'!J3003=\"Yes\",'TSA Input'!J3003=\"Contingent\"),'TSA Input'!I3003,\"\"))","v":""},{"$f":"IF('TSA Input'!J3003=\"\",\"\",IF(OR('TSA Input'!J3003=\"Yes\",'TSA Input'!J3003=\"Contingent\"),'TSA Input'!C3003,\"\"))","v":""},{"$f":"IF('TSA Input'!J3003=\"\",\"\",IF(OR('TSA Input'!J3003=\"Yes\",'TSA Input'!J3003=\"Contingent\"),'TSA Input'!D3003,\"\"))","v":""},{"$f":"IF('TSA Input'!J3003=\"\",\"\",IF(OR('TSA Input'!J3003=\"Yes\",'TSA Input'!J3003=\"Contingent\"),'TSA Input'!G3003,\"\"))","v":""},{"$f":"IF('TSA Input'!J3003=\"\",\"\",IF(OR('TSA Input'!J3003=\"Yes\",'TSA Input'!J3003=\"Contingent\"),'TSA Input'!F3003,\"\"))","v":""},"",{"$f":"IF('TSA Input'!J3003=\"\",\"\",IF(OR('TSA Input'!J3003=\"Yes\",'TSA Input'!J3003=\"Contingent\"),'TSA Input'!D3003,\"\"))","v":""},{"$f":"IF('TSA Input'!J3003=\"\",\"\",IF(OR('TSA Input'!J3003=\"Yes\",'TSA Input'!J3003=\"Contingent\"),'TSA Input'!G3003,\"\"))","v":""},{"$f":"IF('TSA Input'!J3003=\"\",\"\",IF(OR('TSA Input'!J3003=\"Yes\",'TSA Input'!J3003=\"Contingent\"),'TSA Input'!F3003,\"\"))","v":""},"","Required","Required"]
["",null,{"$f":"IF('TSA Input'!J3004=\"\",\"\",IF(OR('TSA Input'!J3004=\"Yes\",'TSA Input'!J3004=\"Contingent\"),'TSA Input'!B3004,\"Ineligible\"))","v":""},{"$f":"IF('TSA Input'!J3004=\"\",\"\",IF(OR('TSA Input'!J3004=\"Yes\",'TSA Input'!J3004=\"Contingent\"),'TSA Input'!I3004,\"\"))","v":""},{"$f":"IF('TSA Input'!J3004=\"\",\"\",IF(OR('TSA Input'!J3004=\"Yes\",'TSA Input'!J3004=\"Contingent\"),'TSA Input'!C3004,\"\"))","v":""},{"$f":"IF('TSA Input'!J3004=\"\",\"\",IF(OR('TSA Input'!J3004=\"Yes\",'TSA Input'!J3004=\"Contingent\"),'TSA Input'!D3004,\"\"))","v":""},{"$f":"IF('TSA Input'!J3004=\"\",\"\",IF(OR('TSA Input'!J3004=\"Yes\",'TSA Input'!J3004=\"Contingent\"),'TSA Input'!G3004,\"\"))","v":""},{"$f":"IF('TSA Input'!J3004=\"\",\"\",IF(OR('TSA Input'!J3004=\"Yes\",'TSA Input'!J3004=\"Contingent\"),'TSA Input'!F3004,\"\"))","v":""},"",{"$f":"IF('TSA Input'!J3004=\"\",\"\",IF(OR('TSA Input'!J3004=\"Yes\",'TSA Input'!J3004=\"Contingent\"),'TSA Input'!D3004,\"\"))","v":""},{"$f":"IF('TSA Input'!J3004=\"\",\"\",IF(OR('TSA Input'!J3004=\"Yes\",'TSA Input'!J3004=\"Contingent\"),'TSA Input'!G3004,\"\"))","v":""},{"$f":"IF('TSA Input'!J3004=\"\",\"\",IF(OR('TSA Input'!J3004=\"Yes\",'TSA Input'!J3004=\"Contingent\"),'TSA Input'!F3004,\"\"))","v":""},"","Required","Required"]
["",null,{"$f":"IF('TSA Input'!J3005=\"\",\"\",IF(OR('TSA Input'!J3005=\"Yes\",'TSA Input'!J3005=\"Contingent\"),'TSA Input'!B3005,\"Ineligible\"))","v":""},{"$f":"IF('TSA Input'!J3005=\"\",\"\",IF(OR('TSA Input'!J3005=\"Yes\",'TSA Input'!J3005=\"Contingent\"),'TSA Input'!I3005,\"\"))","v":""},{"$f":"IF('TSA Input'!J3005=\"\",\"\",IF(OR('TSA Input'!J3005=\"Yes\",'TSA Input'!J3005=\"Contingent\"),'TSA Input'!C3005,\"\"))","v":""},{"$f":"IF('TSA Input'!J3005=\"\",\"\",IF(OR('TSA Input'!J3005=\"Yes\",'TSA Input'!J3005=\"Contingent\"),'TSA Input'!D3005,\"\"))","v":""},{"$f":"IF('TSA Input'!J3005=\"\",\"\",IF(OR('TSA Input'!J3005=\"Yes\",'TSA Input'!J3005=\"Contingent\"),'TSA Input'!G3005,\"\"))","v":""},{"$f":"IF('TSA Input'!J3005=\"\",\"\",IF(OR('TSA Input'!J3005=\"Yes\",'TSA Input'!J3005=\"Contingent\"),'TSA Input'!F3005,\"\"))","v":""},"",{"$f":"IF('TSA Input'!J3005=\"\",\"\",IF(OR('TSA Input'!J3005=\"Yes\",'TSA Input'!J3005=\"Contingent\"),'TSA Input'!D3005,\"\"))","v":""},{"$f":"IF('TSA Input'!J3005=\"\",\"\",IF(OR('TSA Input'!J3005=\"Yes\",'TSA Input'!J3005=\"Contingent\"),'TSA Input'!G3005,\"\"))","v":""},{"$f":"IF('TSA Input'!J3005=\"\",\"\",IF(OR('TSA Input'!J3005=\"Yes\",'TSA Input'!J3005=\"Contingent\"),'TSA Input'!F3005,\"\"))","v":""},"","Required","Required"]
["",null,{"$f":"IF('TSA Input'!J3006=\"\",\"\",IF(OR('TSA Input'!J3006=\"Yes\",'TSA Input'!J3006=\"Contingent\"),'TSA Input'!B3006,\"Ineligible\"))","v":""},{"$f":"IF('TSA Input'!J3006=\"\",\"\",IF(OR('TSA Input'!J3006=\"Yes\",'TSA Input'!J3006=\"Contingent\"),'TSA Input'!I3006,\"\"))","v":""},{"$f":"IF('TSA Input'!J3006=\"\",\"\",IF(OR('TSA Input'!J3006=\"Yes\",'TSA Input'!J3006=\"Contingent\"),'TSA Input'!C3006,\"\"))","v":""},{"$f":"IF('TSA Input'!J3006=\"\",\"\",IF(OR('TSA Input'!J3006=\"Yes\",'TSA Input'!J3006=\"Contingent\"),'TSA Input'!D3006,\"\"))","v":""},{"$f":"IF('TSA Input'!J3006=\"\",\"\",IF(OR('TSA Input'!J3006=\"Yes\",'TSA Input'!J3006=\"Contingent\"),'TSA Input'!G3006,\"\"))","v":""},{"$f":"IF('TSA Input'!J3006=\"\",\"\",IF(OR('TSA Input'!J3006=\"Yes\",'TSA Input'!J3006=\"Contingent\"),'TSA Input'!F3006,\"\"))","v":""},"",{"$f":"IF('TSA Input'!J3006=\"\",\"\",IF(OR('TSA Input'!J3006=\"Yes\",'TSA Input'!J3006=\"Contingent\"),'TSA Input'!D3006,\"\"))","v":""},{"$f":"IF('TSA Input'!J3006=\"\",\"\",IF(OR('TSA Input'!J3006=\"Yes\",'TSA Input'!J3006=\"Contingent\"),'TSA Input'!G3006,\"\"))","v":""},{"$f":"IF('TSA Input'!J3006=\"\",\"\",IF(OR('TSA Input'!J3006=\"Yes\",'TSA Input'!J3006=\"Contingent\"),'TSA Input'!F3006,\"\"))","v":""},"","Required","Required"]
["",null,{"$f":"IF('TSA Input'!J3007=\"\",\"\",IF(OR('TSA Input'!J3007=\"Yes\",'TSA Input'!J3007=\"Contingent\"),'TSA Input'!B3007,\"Ineligible\"))","v":""},{"$f":"IF('TSA Input'!J3007=\"\",\"\",IF(OR('TSA Input'!J3007=\"Yes\",'TSA Input'!J3007=\"Contingent\"),'TSA Input'!I3007,\"\"))","v":""},{"$f":"IF('TSA Input'!J3007=\"\",\"\",IF(OR('TSA Input'!J3007=\"Yes\",'TSA Input'!J3007=\"Contingent\"),'TSA Input'!C3007,\"\"))","v":""},{"$f":"IF('TSA Input'!J3007=\"\",\"\",IF(OR('TSA Input'!J3007=\"Yes\",'TSA Input'!J3007=\"Contingent\"),'TSA Input'!D3007,\"\"))","v":""},{"$f":"IF('TSA Input'!J3007=\"\",\"\",IF(OR('TSA Input'!J3007=\"Yes\",'TSA Input'!J3007=\"Contingent\"),'TSA Input'!G3007,\"\"))","v":""},{"$f":"IF('TSA Input'!J3007=\"\",\"\",IF(OR('TSA Input'!J3007=\"Yes\",'TSA Input'!J3007=\"Contingent\"),'TSA Input'!F3007,\"\"))","v":""},"",{"$f":"IF('TSA Input'!J3007=\"\",\"\",IF(OR('TSA Input'!J3007=\"Yes\",'TSA Input'!J3007=\"Contingent\"),'TSA Input'!D3007,\"\"))","v":""},{"$f":"IF('TSA Input'!J3007=\"\",\"\",IF(OR('TSA Input'!J3007=\"Yes\",'TSA Input'!J3007=\"Contingent\"),'TSA Input'!G3007,\"\"))","v":""},{"$f":"IF('TSA Input'!J3007=\"\",\"\",IF(OR('TSA Input'!J3007=\"Yes\",'TSA Input'!J3007=\"Contingent\"),'TSA Input'!F3007,\"\"))","v":""},"","Required","Required"]
["",null,{"$f":"IF('TSA Input'!J3008=\"\",\"\",IF(OR('TSA Input'!J3008=\"Yes\",'TSA Input'!J3008=\"Contingent\"),'TSA Input'!B3008,\"Ineligible\"))","v":""},{"$f":"IF('TSA Input'!J3008=\"\",\"\",IF(OR('TSA Input'!J3008=\"Yes\",'TSA Input'!J3008=\"Contingent\"),'TSA Input'!I3008,\"\"))","v":""},{"$f":"IF('TSA Input'!J3008=\"\",\"\",IF(OR('TSA Input'!J3008=\"Yes\",'TSA Input'!J3008=\"Contingent\"),'TSA Input'!C3008,\"\"))","v":""},{"$f":"IF('TSA Input'!J3008=\"\",\"\",IF(OR('TSA Input'!J3008=\"Yes\",'TSA Input'!J3008=\"Contingent\"),'TSA Input'!D3008,\"\"))","v":""},{"$f":"IF('TSA Input'!J3008=\"\",\"\",IF(OR('TSA Input'!J3008=\"Yes\",'TSA Input'!J3008=\"Contingent\"),'TSA Input'!G3008,\"\"))","v":""},{"$f":"IF('TSA Input'!J3008=\"\",\"\",IF(OR('TSA Input'!J3008=\"Yes\",'TSA Input'!J3008=\"Contingent\"),'TSA Input'!F3008,\"\"))","v":""},"",{"$f":"IF('TSA Input'!J3008=\"\",\"\",IF(OR('TSA Input'!J3008=\"Yes\",'TSA Input'!J3008=\"Contingent\"),'TSA Input'!D3008,\"\"))","v":""},{"$f":"IF('TSA Input'!J3008=\"\",\"\",IF(OR('TSA Input'!J3008=\"Yes\",'TSA Input'!J3008=\"Contingent\"),'TSA Input'!G3008,\"\"))","v":""},{"$f":"IF('TSA Input'!J3008=\"\",\"\",IF(OR('TSA Input'!J3008=\"Yes\",'TSA Input'!J3008=\"Contingent\"),'TSA Input'!F3008,\"\"))","v":""},"","Required","Required"]
["",null,{"$f":"IF('TSA Input'!J3009=\"\",\"\",IF(OR('TSA Input'!J3009=\"Yes\",'TSA Input'!J3009=\"Contingent\"),'TSA Input'!B3009,\"Ineligible\"))","v":""},{"$f":"IF('TSA Input'!J3009=\"\",\"\",IF(OR('TSA Input'!J3009=\"Yes\",'TSA Input'!J3009=\"Contingent\"),'TSA Input'!I3009,\"\"))","v":""},{"$f":"IF('TSA Input'!J3009=\"\",\"\",IF(OR('TSA Input'!J3009=\"Yes\",'TSA Input'!J3009=\"Contingent\"),'TSA Input'!C3009,\"\"))","v":""},{"$f":"IF('TSA Input'!J3009=\"\",\"\",IF(OR('TSA Input'!J3009=\"Yes\",'TSA Input'!J3009=\"Contingent\"),'TSA Input'!D3009,\"\"))","v":""},{"$f":"IF('TSA Input'!J3009=\"\",\"\",IF(OR('TSA Input'!J3009=\"Yes\",'TSA Input'!J3009=\"Contingent\"),'TSA Input'!G3009,\"\"))","v":""},{"$f":"IF('TSA Input'!J3009=\"\",\"\",IF(OR('TSA Input'!J3009=\"Yes\",'TSA Input'!J3009=\"Contingent\"),'TSA Input'!F3009,\"\"))","v":""},"",{"$f":"IF('TSA Input'!J3009=\"\",\"\",IF(OR('TSA Input'!J3009=\"Yes\",'TSA Input'!J3009=\"Contingent\"),'TSA Input'!D3009,\"\"))","v":""},{"$f":"IF('TSA Input'!J3009=\"\",\"\",IF(OR('TSA Input'!J3009=\"Yes\",'TSA Input'!J3009=\"Contingent\"),'TSA Input'!G3009,\"\"))","v":""},{"$f":"IF('TSA Input'!J3009=\"\",\"\",IF(OR('TSA Input'!J3009=\"Yes\",'TSA Input'!J3009=\"Contingent\"),'TSA Input'!F3009,\"\"))","v":""},"","Required","Required"]
["",null,{"$f":"IF('TSA Input'!J3010=\"\",\"\",IF(OR('TSA Input'!J3010=\"Yes\",'TSA Input'!J3010=\"Contingent\"),'TSA Input'!B3010,\"Ineligible\"))","v":""},{"$f":"IF('TSA Input'!J3010=\"\",\"\",IF(OR('TSA Input'!J3010=\"Yes\",'TSA Input'!J3010=\"Contingent\"),'TSA Input'!I3010,\"\"))","v":""},{"$f":"IF('TSA Input'!J3010=\"\",\"\",IF(OR('TSA Input'!J3010=\"Yes\",'TSA Input'!J3010=\"Contingent\"),'TSA Input'!C3010,\"\"))","v":""},{"$f":"IF('TSA Input'!J3010=\"\",\"\",IF(OR('TSA Input'!J3010=\"Yes\",'TSA Input'!J3010=\"Contingent\"),'TSA Input'!D3010,\"\"))","v":""},{"$f":"IF('TSA Input'!J3010=\"\",\"\",IF(OR('TSA Input'!J3010=\"Yes\",'TSA Input'!J3010=\"Contingent\"),'TSA Input'!G3010,\"\"))","v":""},{"$f":"IF('TSA Input'!J3010=\"\",\"\",IF(OR('TSA Input'!J3010=\"Yes\",'TSA Input'!J3010=\"Contingent\"),'TSA Input'!F3010,\"\"))","v":""},"",{"$f":"IF('TSA Input'!J3010=\"\",\"\",IF(OR('TSA Input'!J3010=\"Yes\",'TSA Input'!J3010=\"Contingent\"),'TSA Input'!D3010,\"\"))","v":""},{"$f":"IF('TSA Input'!J3010=\"\",\"\",IF(OR('TSA Input'!J3010=\"Yes\",'TSA Input'!J3010=\"Contingent\"),'TSA Input'!G3010,\"\"))","v":""},{"$f":"IF('TSA Input'!J3010=\"\",\"\",IF(OR('TSA Input'!J3010=\"Yes\",'TSA Input'!J3010=\"Contingent\"),'TSA Input'!F3010,\"\"))","v":""},"","Required","Required"]
["",null,{"$f":"IF('TSA Input'!J3011=\"\",\"\",IF(OR('TSA Input'!J3011=\"Yes\",'TSA Input'!J3011=\"Contingent\"),'TSA Input'!B3011,\"Ineligible\"))","v":""},{"$f":"IF('TSA Input'!J3011=\"\",\"\",IF(OR('TSA Input'!J3011=\"Yes\",'TSA Input'!J3011=\"Contingent\"),'TSA Input'!I3011,\"\"))","v":""},{"$f":"IF('TSA Input'!J3011=\"\",\"\",IF(OR('TSA Input'!J3011=\"Yes\",'TSA Input'!J3011=\"Contingent\"),'TSA Input'!C3011,\"\"))","v":""},{"$f":"IF('TSA Input'!J3011=\"\",\"\",IF(OR('TSA Input'!J3011=\"Yes\",'TSA Input'!J3011=\"Contingent\"),'TSA Input'!D3011,\"\"))","v":""},{"$f":"IF('TSA Input'!J3011=\"\",\"\",IF(OR('TSA Input'!J3011=\"Yes\",'TSA Input'!J3011=\"Contingent\"),'TSA Input'!G3011,\"\"))","v":""},{"$f":"IF('TSA Input'!J3011=\"\",\"\",IF(OR('TSA Input'!J3011=\"Yes\",'TSA Input'!J3011=\"Contingent\"),'TSA Input'!F3011,\"\"))","v":""},"",{"$f":"IF('TSA Input'!J3011=\"\",\"\",IF(OR('TSA Input'!J3011=\"Yes\",'TSA Input'!J3011=\"Contingent\"),'TSA Input'!D3011,\"\"))","v":""},{"$f":"IF('TSA Input'!J3011=\"\",\"\",IF(OR('TSA Input'!J3011=\"Yes\",'TSA Input'!J3011=\"Contingent\"),'TSA Input'!G3011,\"\"))","v":""},{"$f":"IF('TSA Input'!J3011=\"\",\"\",IF(OR('TSA Input'!J3011=\"Yes\",'TSA Input'!J3011=\"Contingent\"),'TSA Input'!F3011,\"\"))","v":""},"","Required","Required"]
["",null,{"$f":"IF('TSA Input'!J3012=\"\",\"\",IF(OR('TSA Input'!J3012=\"Yes\",'TSA Input'!J3012=\"Contingent\"),'TSA Input'!B3012,\"Ineligible\"))","v":""},{"$f":"IF('TSA Input'!J3012=\"\",\"\",IF(OR('TSA Input'!J3012=\"Yes\",'TSA Input'!J3012=\"Contingent\"),'TSA Input'!I3012,\"\"))","v":""},{"$f":"IF('TSA Input'!J3012=\"\",\"\",IF(OR('TSA Input'!J3012=\"Yes\",'TSA Input'!J3012=\"Contingent\"),'TSA Input'!C3012,\"\"))","v":""},{"$f":"IF('TSA Input'!J3012=\"\",\"\",IF(OR('TSA Input'!J3012=\"Yes\",'TSA Input'!J3012=\"Contingent\"),'TSA Input'!D3012,\"\"))","v":""},{"$f":"IF('TSA Input'!J3012=\"\",\"\",IF(OR('TSA Input'!J3012=\"Yes\",'TSA Input'!J3012=\"Contingent\"),'TSA Input'!G3012,\"\"))","v":""},{"$f":"IF('TSA Input'!J3012=\"\",\"\",IF(OR('TSA Input'!J3012=\"Yes\",'TSA Input'!J3012=\"Contingent\"),'TSA Input'!F3012,\"\"))","v":""},{"$f":"IF($C3050=\"\",\"\",SUM(F3050:H3050))","v":""},{"$f":"IF('TSA Input'!J3012=\"\",\"\",IF(OR('TSA Input'!J3012=\"Yes\",'TSA Input'!J3012=\"Contingent\"),'TSA Input'!D3012,\"\"))","v":""},{"$f":"IF('TSA Input'!J3012=\"\",\"\",IF(OR('TSA Input'!J3012=\"Yes\",'TSA Input'!J3012=\"Contingent\"),'TSA Input'!G3012,\"\"))","v":""},{"$f":"IF('TSA Input'!J3012=\"\",\"\",IF(OR('TSA Input'!J3012=\"Yes\",'TSA Input'!J3012=\"Contingent\"),'TSA Input'!F3012,\"\"))","v":""},{"$f":"IF($C3050=\"\",\"\",SUM(J3050:L3050))","v":""},"Required","Required"]
["",null,{"$f":"IF('TSA Input'!J3013=\"\",\"\",IF(OR('TSA Input'!J3013=\"Yes\",'TSA Input'!J3013=\"Contingent\"),'TSA Input'!B3013,\"Ineligible\"))","v":""},{"$f":"IF('TSA Input'!J3013=\"\",\"\",IF(OR('TSA Input'!J3013=\"Yes\",'TSA Input'!J3013=\"Contingent\"),'TSA Input'!I3013,\"\"))","v":""},{"$f":"IF('TSA Input'!J3013=\"\",\"\",IF(OR('TSA Input'!J3013=\"Yes\",'TSA Input'!J3013=\"Contingent\"),'TSA Input'!C3013,\"\"))","v":""},{"$f":"IF('TSA Input'!J3013=\"\",\"\",IF(OR('TSA Input'!J3013=\"Yes\",'TSA Input'!J3013=\"Contingent\"),'TSA Input'!D3013,\"\"))","v":""},{"$f":"IF('TSA Input'!J3013=\"\",\"\",IF(OR('TSA Input'!J3013=\"Yes\",'TSA Input'!J3013=\"Contingent\"),'TSA Input'!G3013,\"\"))","v":""},{"$f":"IF('TSA Input'!J3013=\"\",\"\",IF(OR('TSA Input'!J3013=\"Yes\",'TSA Input'!J3013=\"Contingent\"),'TSA Input'!F3013,\"\"))","v":""},"",{"$f":"IF('TSA Input'!J3013=\"\",\"\",IF(OR('TSA Input'!J3013=\"Yes\",'TSA Input'!J3013=\"Contingent\"),'TSA Input'!D3013,\"\"))","v":""},{"$f":"IF('TSA Input'!J3013=\"\",\"\",IF(OR('TSA Input'!J3013=\"Yes\",'TSA Input'!J3013=\"Contingent\"),'TSA Input'!G3013,\"\"))","v":""},{"$f":"IF('TSA Input'!J3013=\"\",\"\",IF(OR('TSA Input'!J3013=\"Yes\",'TSA Input'!J3013=\"Contingent\"),'TSA Input'!F3013,\"\"))","v":""},"","Required","Required"]
["",null,{"$f":"IF('TSA Input'!J3014=\"\",\"\",IF(OR('TSA Input'!J3014=\"Yes\",'TSA Input'!J3014=\"Contingent\"),'TSA Input'!B3014,\"Ineligible\"))","v":""},{"$f":"IF('TSA Input'!J3014=\"\",\"\",IF(OR('TSA Input'!J3014=\"Yes\",'TSA Input'!J3014=\"Contingent\"),'TSA Input'!I3014,\"\"))","v":""},{"$f":"IF('TSA Input'!J3014=\"\",\"\",IF(OR('TSA Input'!J3014=\"Yes\",'TSA Input'!J3014=\"Contingent\"),'TSA Input'!C3014,\"\"))","v":""},{"$f":"IF('TSA Input'!J3014=\"\",\"\",IF(OR('TSA Input'!J3014=\"Yes\",'TSA Input'!J3014=\"Contingent\"),'TSA Input'!D3014,\"\"))","v":""},{"$f":"IF('TSA Input'!J3014=\"\",\"\",IF(OR('TSA Input'!J3014=\"Yes\",'TSA Input'!J3014=\"Contingent\"),'TSA Input'!G3014,\"\"))","v":""},{"$f":"IF('TSA Input'!J3014=\"\",\"\",IF(OR('TSA Input'!J3014=\"Yes\",'TSA Input'!J3014=\"Contingent\"),'TSA Input'!F3014,\"\"))","v":""},"",{"$f":"IF('TSA Input'!J3014=\"\",\"\",IF(OR('TSA Input'!J3014=\"Yes\",'TSA Input'!J3014=\"Contingent\"),'TSA Input'!D3014,\"\"))","v":""},{"$f":"IF('TSA Input'!J3014=\"\",\"\",IF(OR('TSA Input'!J3014=\"Yes\",'TSA Input'!J3014=\"Contingent\"),'TSA Input'!G3014,\"\"))","v":""},{"$f":"IF('TSA Input'!J3014=\"\",\"\",IF(OR('TSA Input'!J3014=\"Yes\",'TSA Input'!J3014=\"Contingent\"),'TSA Input'!F3014,\"\"))","v":""},"","Required","Required"]
["",null,{"$f":"IF('TSA Input'!J3015=\"\",\"\",IF(OR('TSA Input'!J3015=\"Yes\",'TSA Input'!J3015=\"Contingent\"),'TSA Input'!B3015,\"Ineligible\"))","v":""},{"$f":"IF('TSA Input'!J3015=\"\",\"\",IF(OR('TSA Input'!J3015=\"Yes\",'TSA Input'!J3015=\"Contingent\"),'TSA Input'!I3015,\"\"))","v":""},{"$f":"IF('TSA Input'!J3015=\"\",\"\",IF(OR('TSA Input'!J3015=\"Yes\",'TSA Input'!J3015=\"Contingent\"),'TSA Input'!C3015,\"\"))","v":""},{"$f":"IF('TSA Input'!J3015=\"\",\"\",IF(OR('TSA Input'!J3015=\"Yes\",'TSA Input'!J3015=\"Contingent\"),'TSA Input'!D3015,\"\"))","v":""},{"$f":"IF('TSA Input'!J3015=\"\",\"\",IF(OR('TSA Input'!J3015=\"Yes\",'TSA Input'!J3015=\"Contingent\"),'TSA Input'!G3015,\"\"))","v":""},{"$f":"IF('TSA Input'!J3015=\"\",\"\",IF(OR('TSA Input'!J3015=\"Yes\",'TSA Input'!J3015=\"Contingent\"),'TSA Input'!F3015,\"\"))","v":""},"",{"$f":"IF('TSA Input'!J3015=\"\",\"\",IF(OR('TSA Input'!J3015=\"Yes\",'TSA Input'!J3015=\"Contingent\"),'TSA Input'!D3015,\"\"))","v":""},{"$f":"IF('TSA Input'!J3015=\"\",\"\",IF(OR('TSA Input'!J3015=\"Yes\",'TSA Input'!J3015=\"Contingent\"),'TSA Input'!G3015,\"\"))","v":""},{"$f":"IF('TSA Input'!J3015=\"\",\"\",IF(OR('TSA Input'!J3015=\"Yes\",'TSA Input'!J3015=\"Contingent\"),'TSA Input'!F3015,\"\"))","v":""},"","Required","Required"]
["",null,{"$f":"IF('TSA Input'!J3016=\"\",\"\",IF(OR('TSA Input'!J3016=\"Yes\",'TSA Input'!J3016=\"Contingent\"),'TSA Input'!B3016,\"Ineligible\"))","v":""},{"$f":"IF('TSA Input'!J3016=\"\",\"\",IF(OR('TSA Input'!J3016=\"Yes\",'TSA Input'!J3016=\"Contingent\"),'TSA Input'!I3016,\"\"))","v":""},{"$f":"IF('TSA Input'!J3016=\"\",\"\",IF(OR('TSA Input'!J3016=\"Yes\",'TSA Input'!J3016=\"Contingent\"),'TSA Input'!C3016,\"\"))","v":""},{"$f":"IF('TSA Input'!J3016=\"\",\"\",IF(OR('TSA Input'!J3016=\"Yes\",'TSA Input'!J3016=\"Contingent\"),'TSA Input'!D3016,\"\"))","v":""},{"$f":"IF('TSA Input'!J3016=\"\",\"\",IF(OR('TSA Input'!J3016=\"Yes\",'TSA Input'!J3016=\"Contingent\"),'TSA Input'!G3016,\"\"))","v":""},{"$f":"IF('TSA Input'!J3016=\"\",\"\",IF(OR('TSA Input'!J3016=\"Yes\",'TSA Input'!J3016=\"Contingent\"),'TSA Input'!F3016,\"\"))","v":""},"",{"$f":"IF('TSA Input'!J3016=\"\",\"\",IF(OR('TSA Input'!J3016=\"Yes\",'TSA Input'!J3016=\"Contingent\"),'TSA Input'!D3016,\"\"))","v":""},{"$f":"IF('TSA Input'!J3016=\"\",\"\",IF(OR('TSA Input'!J3016=\"Yes\",'TSA Input'!J3016=\"Contingent\"),'TSA Input'!G3016,\"\"))","v":""},{"$f":"IF('TSA Input'!J3016=\"\",\"\",IF(OR('TSA Input'!J3016=\"Yes\",'TSA Input'!J3016=\"Contingent\"),'TSA Input'!F3016,\"\"))","v":""},"","Required","Required"]
["",null,{"$f":"IF('TSA Input'!J3017=\"\",\"\",IF(OR('TSA Input'!J3017=\"Yes\",'TSA Input'!J3017=\"Contingent\"),'TSA Input'!B3017,\"Ineligible\"))","v":""},{"$f":"IF('TSA Input'!J3017=\"\",\"\",IF(OR('TSA Input'!J3017=\"Yes\",'TSA Input'!J3017=\"Contingent\"),'TSA Input'!I3017,\"\"))","v":""},{"$f":"IF('TSA Input'!J3017=\"\",\"\",IF(OR('TSA Input'!J3017=\"Yes\",'TSA Input'!J3017=\"Contingent\"),'TSA Input'!C3017,\"\"))","v":""},{"$f":"IF('TSA Input'!J3017=\"\",\"\",IF(OR('TSA Input'!J3017=\"Yes\",'TSA Input'!J3017=\"Contingent\"),'TSA Input'!D3017,\"\"))","v":""},{"$f":"IF('TSA Input'!J3017=\"\",\"\",IF(OR('TSA Input'!J3017=\"Yes\",'TSA Input'!J3017=\"Contingent\"),'TSA Input'!G3017,\"\"))","v":""},{"$f":"IF('TSA Input'!J3017=\"\",\"\",IF(OR('TSA Input'!J3017=\"Yes\",'TSA Input'!J3017=\"Contingent\"),'TSA Input'!F3017,\"\"))","v":""},"",{"$f":"IF('TSA Input'!J3017=\"\",\"\",IF(OR('TSA Input'!J3017=\"Yes\",'TSA Input'!J3017=\"Contingent\"),'TSA Input'!D3017,\"\"))","v":""},{"$f":"IF('TSA Input'!J3017=\"\",\"\",IF(OR('TSA Input'!J3017=\"Yes\",'TSA Input'!J3017=\"Contingent\"),'TSA Input'!G3017,\"\"))","v":""},{"$f":"IF('TSA Input'!J3017=\"\",\"\",IF(OR('TSA Input'!J3017=\"Yes\",'TSA Input'!J3017=\"Contingent\"),'TSA Input'!F3017,\"\"))","v":""},"","Required","Required"]
["",null,{"$f":"IF('TSA Input'!J3018=\"\",\"\",IF(OR('TSA Input'!J3018=\"Yes\",'TSA Input'!J3018=\"Contingent\"),'TSA Input'!B3018,\"Ineligible\"))","v":""},{"$f":"IF('TSA Input'!J3018=\"\",\"\",IF(OR('TSA Input'!J3018=\"Yes\",'TSA Input'!J3018=\"Contingent\"),'TSA Input'!I3018,\"\"))","v":""},{"$f":"IF('TSA Input'!J3018=\"\",\"\",IF(OR('TSA Input'!J3018=\"Yes\",'TSA Input'!J3018=\"Contingent\"),'TSA Input'!C3018,\"\"))","v":""},{"$f":"IF('TSA Input'!J3018=\"\",\"\",IF(OR('TSA Input'!J3018=\"Yes\",'TSA Input'!J3018=\"Contingent\"),'TSA Input'!D3018,\"\"))","v":""},{"$f":"IF('TSA Input'!J3018=\"\",\"\",IF(OR('TSA Input'!J3018=\"Yes\",'TSA Input'!J3018=\"Contingent\"),'TSA Input'!G3018,\"\"))","v":""},{"$f":"IF('TSA Input'!J3018=\"\",\"\",IF(OR('TSA Input'!J3018=\"Yes\",'TSA Input'!J3018=\"Contingent\"),'TSA Input'!F3018,\"\"))","v":""},"",{"$f":"IF('TSA Input'!J3018=\"\",\"\",IF(OR('TSA Input'!J3018=\"Yes\",'TSA Input'!J3018=\"Contingent\"),'TSA Input'!D3018,\"\"))","v":""},{"$f":"IF('TSA Input'!J3018=\"\",\"\",IF(OR('TSA Input'!J3018=\"Yes\",'TSA Input'!J3018=\"Contingent\"),'TSA Input'!G3018,\"\"))","v":""},{"$f":"IF('TSA Input'!J3018=\"\",\"\",IF(OR('TSA Input'!J3018=\"Yes\",'TSA Input'!J3018=\"Contingent\"),'TSA Input'!F3018,\"\"))","v":""},"","Required","Required"]
["",null,{"$f":"IF('TSA Input'!J3019=\"\",\"\",IF(OR('TSA Input'!J3019=\"Yes\",'TSA Input'!J3019=\"Contingent\"),'TSA Input'!B3019,\"Ineligible\"))","v":""},{"$f":"IF('TSA Input'!J3019=\"\",\"\",IF(OR('TSA Input'!J3019=\"Yes\",'TSA Input'!J3019=\"Contingent\"),'TSA Input'!I3019,\"\"))","v":""},{"$f":"IF('TSA Input'!J3019=\"\",\"\",IF(OR('TSA Input'!J3019=\"Yes\",'TSA Input'!J3019=\"Contingent\"),'TSA Input'!C3019,\"\"))","v":""},{"$f":"IF('TSA Input'!J3019=\"\",\"\",IF(OR('TSA Input'!J3019=\"Yes\",'TSA Input'!J3019=\"Contingent\"),'TSA Input'!D3019,\"\"))","v":""},{"$f":"IF('TSA Input'!J3019=\"\",\"\",IF(OR('TSA Input'!J3019=\"Yes\",'TSA Input'!J3019=\"Contingent\"),'TSA Input'!G3019,\"\"))","v":""},{"$f":"IF('TSA Input'!J3019=\"\",\"\",IF(OR('TSA Input'!J3019=\"Yes\",'TSA Input'!J3019=\"Contingent\"),'TSA Input'!F3019,\"\"))","v":""},"",{"$f":"IF('TSA Input'!J3019=\"\",\"\",IF(OR('TSA Input'!J3019=\"Yes\",'TSA Input'!J3019=\"Contingent\"),'TSA Input'!D3019,\"\"))","v":""},{"$f":"IF('TSA Input'!J3019=\"\",\"\",IF(OR('TSA Input'!J3019=\"Yes\",'TSA Input'!J3019=\"Contingent\"),'TSA Input'!G3019,\"\"))","v":""},{"$f":"IF('TSA Input'!J3019=\"\",\"\",IF(OR('TSA Input'!J3019=\"Yes\",'TSA Input'!J3019=\"Contingent\"),'TSA Input'!F3019,\"\"))","v":""},"","Required","Required"]
["",null,{"$f":"IF('TSA Input'!J3020=\"\",\"\",IF(OR('TSA Input'!J3020=\"Yes\",'TSA Input'!J3020=\"Contingent\"),'TSA Input'!B3020,\"Ineligible\"))","v":""},{"$f":"IF('TSA Input'!J3020=\"\",\"\",IF(OR('TSA Input'!J3020=\"Yes\",'TSA Input'!J3020=\"Contingent\"),'TSA Input'!I3020,\"\"))","v":""},{"$f":"IF('TSA Input'!J3020=\"\",\"\",IF(OR('TSA Input'!J3020=\"Yes\",'TSA Input'!J3020=\"Contingent\"),'TSA Input'!C3020,\"\"))","v":""},{"$f":"IF('TSA Input'!J3020=\"\",\"\",IF(OR('TSA Input'!J3020=\"Yes\",'TSA Input'!J3020=\"Contingent\"),'TSA Input'!D3020,\"\"))","v":""},{"$f":"IF('TSA Input'!J3020=\"\",\"\",IF(OR('TSA Input'!J3020=\"Yes\",'TSA Input'!J3020=\"Contingent\"),'TSA Input'!G3020,\"\"))","v":""},{"$f":"IF('TSA Input'!J3020=\"\",\"\",IF(OR('TSA Input'!J3020=\"Yes\",'TSA Input'!J3020=\"Contingent\"),'TSA Input'!F3020,\"\"))","v":""},"",{"$f":"IF('TSA Input'!J3020=\"\",\"\",IF(OR('TSA Input'!J3020=\"Yes\",'TSA Input'!J3020=\"Contingent\"),'TSA Input'!D3020,\"\"))","v":""},{"$f":"IF('TSA Input'!J3020=\"\",\"\",IF(OR('TSA Input'!J3020=\"Yes\",'TSA Input'!J3020=\"Contingent\"),'TSA Input'!G3020,\"\"))","v":""},{"$f":"IF('TSA Input'!J3020=\"\",\"\",IF(OR('TSA Input'!J3020=\"Yes\",'TSA Input'!J3020=\"Contingent\"),'TSA Input'!F3020,\"\"))","v":""},"","Required","Required"]
["",null,{"$f":"IF('TSA Input'!J3021=\"\",\"\",IF(OR('TSA Input'!J3021=\"Yes\",'TSA Input'!J3021=\"Contingent\"),'TSA Input'!B3021,\"Ineligible\"))","v":""},{"$f":"IF('TSA Input'!J3021=\"\",\"\",IF(OR('TSA Input'!J3021=\"Yes\",'TSA Input'!J3021=\"Contingent\"),'TSA Input'!I3021,\"\"))","v":""},{"$f":"IF('TSA Input'!J3021=\"\",\"\",IF(OR('TSA Input'!J3021=\"Yes\",'TSA Input'!J3021=\"Contingent\"),'TSA Input'!C3021,\"\"))","v":""},{"$f":"IF('TSA Input'!J3021=\"\",\"\",IF(OR('TSA Input'!J3021=\"Yes\",'TSA Input'!J3021=\"Contingent\"),'TSA Input'!D3021,\"\"))","v":""},{"$f":"IF('TSA Input'!J3021=\"\",\"\",IF(OR('TSA Input'!J3021=\"Yes\",'TSA Input'!J3021=\"Contingent\"),'TSA Input'!G3021,\"\"))","v":""},{"$f":"IF('TSA Input'!J3021=\"\",\"\",IF(OR('TSA Input'!J3021=\"Yes\",'TSA Input'!J3021=\"Contingent\"),'TSA Input'!F3021,\"\"))","v":""},"",{"$f":"IF('TSA Input'!J3021=\"\",\"\",IF(OR('TSA Input'!J3021=\"Yes\",'TSA Input'!J3021=\"Contingent\"),'TSA Input'!D3021,\"\"))","v":""},{"$f":"IF('TSA Input'!J3021=\"\",\"\",IF(OR('TSA Input'!J3021=\"Yes\",'TSA Input'!J3021=\"Contingent\"),'TSA Input'!G3021,\"\"))","v":""},{"$f":"IF('TSA Input'!J3021=\"\",\"\",IF(OR('TSA Input'!J3021=\"Yes\",'TSA Input'!J3021=\"Contingent\"),'TSA Input'!F3021,\"\"))","v":""},"","Required","Required"]
["",null,{"$f":"IF('TSA Input'!J3022=\"\",\"\",IF(OR('TSA Input'!J3022=\"Yes\",'TSA Input'!J3022=\"Contingent\"),'TSA Input'!B3022,\"Ineligible\"))","v":""},{"$f":"IF('TSA Input'!J3022=\"\",\"\",IF(OR('TSA Input'!J3022=\"Yes\",'TSA Input'!J3022=\"Contingent\"),'TSA Input'!I3022,\"\"))","v":""},{"$f":"IF('TSA Input'!J3022=\"\",\"\",IF(OR('TSA Input'!J3022=\"Yes\",'TSA Input'!J3022=\"Contingent\"),'TSA Input'!C3022,\"\"))","v":""},{"$f":"IF('TSA Input'!J3022=\"\",\"\",IF(OR('TSA Input'!J3022=\"Yes\",'TSA Input'!J3022=\"Contingent\"),'TSA Input'!D3022,\"\"))","v":""},{"$f":"IF('TSA Input'!J3022=\"\",\"\",IF(OR('TSA Input'!J3022=\"Yes\",'TSA Input'!J3022=\"Contingent\"),'TSA Input'!G3022,\"\"))","v":""},{"$f":"IF('TSA Input'!J3022=\"\",\"\",IF(OR('TSA Input'!J3022=\"Yes\",'TSA Input'!J3022=\"Contingent\"),'TSA Input'!F3022,\"\"))","v":""},"",{"$f":"IF('TSA Input'!J3022=\"\",\"\",IF(OR('TSA Input'!J3022=\"Yes\",'TSA Input'!J3022=\"Contingent\"),'TSA Input'!D3022,\"\"))","v":""},{"$f":"IF('TSA Input'!J3022=\"\",\"\",IF(OR('TSA Input'!J3022=\"Yes\",'TSA Input'!J3022=\"Contingent\"),'TSA Input'!G3022,\"\"))","v":""},{"$f":"IF('TSA Input'!J3022=\"\",\"\",IF(OR('TSA Input'!J3022=\"Yes\",'TSA Input'!J3022=\"Contingent\"),'TSA Input'!F3022,\"\"))","v":""},"","Required","Required"]
["",null,{"$f":"IF('TSA Input'!J3023=\"\",\"\",IF(OR('TSA Input'!J3023=\"Yes\",'TSA Input'!J3023=\"Contingent\"),'TSA Input'!B3023,\"Ineligible\"))","v":""},{"$f":"IF('TSA Input'!J3023=\"\",\"\",IF(OR('TSA Input'!J3023=\"Yes\",'TSA Input'!J3023=\"Contingent\"),'TSA Input'!I3023,\"\"))","v":""},{"$f":"IF('TSA Input'!J3023=\"\",\"\",IF(OR('TSA Input'!J3023=\"Yes\",'TSA Input'!J3023=\"Contingent\"),'TSA Input'!C3023,\"\"))","v":""},{"$f":"IF('TSA Input'!J3023=\"\",\"\",IF(OR('TSA Input'!J3023=\"Yes\",'TSA Input'!J3023=\"Contingent\"),'TSA Input'!D3023,\"\"))","v":""},{"$f":"IF('TSA Input'!J3023=\"\",\"\",IF(OR('TSA Input'!J3023=\"Yes\",'TSA Input'!J3023=\"Contingent\"),'TSA Input'!G3023,\"\"))","v":""},{"$f":"IF('TSA Input'!J3023=\"\",\"\",IF(OR('TSA Input'!J3023=\"Yes\",'TSA Input'!J3023=\"Contingent\"),'TSA Input'!F3023,\"\"))","v":""},"",{"$f":"IF('TSA Input'!J3023=\"\",\"\",IF(OR('TSA Input'!J3023=\"Yes\",'TSA Input'!J3023=\"Contingent\"),'TSA Input'!D3023,\"\"))","v":""},{"$f":"IF('TSA Input'!J3023=\"\",\"\",IF(OR('TSA Input'!J3023=\"Yes\",'TSA Input'!J3023=\"Contingent\"),'TSA Input'!G3023,\"\"))","v":""},{"$f":"IF('TSA Input'!J3023=\"\",\"\",IF(OR('TSA Input'!J3023=\"Yes\",'TSA Input'!J3023=\"Contingent\"),'TSA Input'!F3023,\"\"))","v":""},"","Required","Required"]
["",null,{"$f":"IF('TSA Input'!J3024=\"\",\"\",IF(OR('TSA Input'!J3024=\"Yes\",'TSA Input'!J3024=\"Contingent\"),'TSA Input'!B3024,\"Ineligible\"))","v":""},{"$f":"IF('TSA Input'!J3024=\"\",\"\",IF(OR('TSA Input'!J3024=\"Yes\",'TSA Input'!J3024=\"Contingent\"),'TSA Input'!I3024,\"\"))","v":""},{"$f":"IF('TSA Input'!J3024=\"\",\"\",IF(OR('TSA Input'!J3024=\"Yes\",'TSA Input'!J3024=\"Contingent\"),'TSA Input'!C3024,\"\"))","v":""},{"$f":"IF('TSA Input'!J3024=\"\",\"\",IF(OR('TSA Input'!J3024=\"Yes\",'TSA Input'!J3024=\"Contingent\"),'TSA Input'!D3024,\"\"))","v":""},{"$f":"IF('TSA Input'!J3024=\"\",\"\",IF(OR('TSA Input'!J3024=\"Yes\",'TSA Input'!J3024=\"Contingent\"),'TSA Input'!G3024,\"\"))","v":""},{"$f":"IF('TSA Input'!J3024=\"\",\"\",IF(OR('TSA Input'!J3024=\"Yes\",'TSA Input'!J3024=\"Contingent\"),'TSA Input'!F3024,\"\"))","v":""},"",{"$f":"IF('TSA Input'!J3024=\"\",\"\",IF(OR('TSA Input'!J3024=\"Yes\",'TSA Input'!J3024=\"Contingent\"),'TSA Input'!D3024,\"\"))","v":""},{"$f":"IF('TSA Input'!J3024=\"\",\"\",IF(OR('TSA Input'!J3024=\"Yes\",'TSA Input'!J3024=\"Contingent\"),'TSA Input'!G3024,\"\"))","v":""},{"$f":"IF('TSA Input'!J3024=\"\",\"\",IF(OR('TSA Input'!J3024=\"Yes\",'TSA Input'!J3024=\"Contingent\"),'TSA Input'!F3024,\"\"))","v":""},"","Required","Required"]
["",null,{"$f":"IF('TSA Input'!J3025=\"\",\"\",IF(OR('TSA Input'!J3025=\"Yes\",'TSA Input'!J3025=\"Contingent\"),'TSA Input'!B3025,\"Ineligible\"))","v":""},{"$f":"IF('TSA Input'!J3025=\"\",\"\",IF(OR('TSA Input'!J3025=\"Yes\",'TSA Input'!J3025=\"Contingent\"),'TSA Input'!I3025,\"\"))","v":""},{"$f":"IF('TSA Input'!J3025=\"\",\"\",IF(OR('TSA Input'!J3025=\"Yes\",'TSA Input'!J3025=\"Contingent\"),'TSA Input'!C3025,\"\"))","v":""},{"$f":"IF('TSA Input'!J3025=\"\",\"\",IF(OR('TSA Input'!J3025=\"Yes\",'TSA Input'!J3025=\"Contingent\"),'TSA Input'!D3025,\"\"))","v":""},{"$f":"IF('TSA Input'!J3025=\"\",\"\",IF(OR('TSA Input'!J3025=\"Yes\",'TSA Input'!J3025=\"Contingent\"),'TSA Input'!G3025,\"\"))","v":""},{"$f":"IF('TSA Input'!J3025=\"\",\"\",IF(OR('TSA Input'!J3025=\"Yes\",'TSA Input'!J3025=\"Contingent\"),'TSA Input'!F3025,\"\"))","v":""},"",{"$f":"IF('TSA Input'!J3025=\"\",\"\",IF(OR('TSA Input'!J3025=\"Yes\",'TSA Input'!J3025=\"Contingent\"),'TSA Input'!D3025,\"\"))","v":""},{"$f":"IF('TSA Input'!J3025=\"\",\"\",IF(OR('TSA Input'!J3025=\"Yes\",'TSA Input'!J3025=\"Contingent\"),'TSA Input'!G3025,\"\"))","v":""},{"$f":"IF('TSA Input'!J3025=\"\",\"\",IF(OR('TSA Input'!J3025=\"Yes\",'TSA Input'!J3025=\"Contingent\"),'TSA Input'!F3025,\"\"))","v":""},"","Required","Required"]
["",null,{"$f":"IF('TSA Input'!J3026=\"\",\"\",IF(OR('TSA Input'!J3026=\"Yes\",'TSA Input'!J3026=\"Contingent\"),'TSA Input'!B3026,\"Ineligible\"))","v":""},{"$f":"IF('TSA Input'!J3026=\"\",\"\",IF(OR('TSA Input'!J3026=\"Yes\",'TSA Input'!J3026=\"Contingent\"),'TSA Input'!I3026,\"\"))","v":""},{"$f":"IF('TSA Input'!J3026=\"\",\"\",IF(OR('TSA Input'!J3026=\"Yes\",'TSA Input'!J3026=\"Contingent\"),'TSA Input'!C3026,\"\"))","v":""},{"$f":"IF('TSA Input'!J3026=\"\",\"\",IF(OR('TSA Input'!J3026=\"Yes\",'TSA Input'!J3026=\"Contingent\"),'TSA Input'!D3026,\"\"))","v":""},{"$f":"IF('TSA Input'!J3026=\"\",\"\",IF(OR('TSA Input'!J3026=\"Yes\",'TSA Input'!J3026=\"Contingent\"),'TSA Input'!G3026,\"\"))","v":""},{"$f":"IF('TSA Input'!J3026=\"\",\"\",IF(OR('TSA Input'!J3026=\"Yes\",'TSA Input'!J3026=\"Contingent\"),'TSA Input'!F3026,\"\"))","v":""},"",{"$f":"IF('TSA Input'!J3026=\"\",\"\",IF(OR('TSA Input'!J3026=\"Yes\",'TSA Input'!J3026=\"Contingent\"),'TSA Input'!D3026,\"\"))","v":""},{"$f":"IF('TSA Input'!J3026=\"\",\"\",IF(OR('TSA Input'!J3026=\"Yes\",'TSA Input'!J3026=\"Contingent\"),'TSA Input'!G3026,\"\"))","v":""},{"$f":"IF('TSA Input'!J3026=\"\",\"\",IF(OR('TSA Input'!J3026=\"Yes\",'TSA Input'!J3026=\"Contingent\"),'TSA Input'!F3026,\"\"))","v":""},"","Required","Required"]
["",null,{"$f":"IF('TSA Input'!J3027=\"\",\"\",IF(OR('TSA Input'!J3027=\"Yes\",'TSA Input'!J3027=\"Contingent\"),'TSA Input'!B3027,\"Ineligible\"))","v":""},{"$f":"IF('TSA Input'!J3027=\"\",\"\",IF(OR('TSA Input'!J3027=\"Yes\",'TSA Input'!J3027=\"Contingent\"),'TSA Input'!I3027,\"\"))","v":""},{"$f":"IF('TSA Input'!J3027=\"\",\"\",IF(OR('TSA Input'!J3027=\"Yes\",'TSA Input'!J3027=\"Contingent\"),'TSA Input'!C3027,\"\"))","v":""},{"$f":"IF('TSA Input'!J3027=\"\",\"\",IF(OR('TSA Input'!J3027=\"Yes\",'TSA Input'!J3027=\"Contingent\"),'TSA Input'!D3027,\"\"))","v":""},{"$f":"IF('TSA Input'!J3027=\"\",\"\",IF(OR('TSA Input'!J3027=\"Yes\",'TSA Input'!J3027=\"Contingent\"),'TSA Input'!G3027,\"\"))","v":""},{"$f":"IF('TSA Input'!J3027=\"\",\"\",IF(OR('TSA Input'!J3027=\"Yes\",'TSA Input'!J3027=\"Contingent\"),'TSA Input'!F3027,\"\"))","v":""},"",{"$f":"IF('TSA Input'!J3027=\"\",\"\",IF(OR('TSA Input'!J3027=\"Yes\",'TSA Input'!J3027=\"Contingent\"),'TSA Input'!D3027,\"\"))","v":""},{"$f":"IF('TSA Input'!J3027=\"\",\"\",IF(OR('TSA Input'!J3027=\"Yes\",'TSA Input'!J3027=\"Contingent\"),'TSA Input'!G3027,\"\"))","v":""},{"$f":"IF('TSA Input'!J3027=\"\",\"\",IF(OR('TSA Input'!J3027=\"Yes\",'TSA Input'!J3027=\"Contingent\"),'TSA Input'!F3027,\"\"))","v":""},"","Required","Required"]
["",null,{"$f":"IF('TSA Input'!J3028=\"\",\"\",IF(OR('TSA Input'!J3028=\"Yes\",'TSA Input'!J3028=\"Contingent\"),'TSA Input'!B3028,\"Ineligible\"))","v":""},{"$f":"IF('TSA Input'!J3028=\"\",\"\",IF(OR('TSA Input'!J3028=\"Yes\",'TSA Input'!J3028=\"Contingent\"),'TSA Input'!I3028,\"\"))","v":""},{"$f":"IF('TSA Input'!J3028=\"\",\"\",IF(OR('TSA Input'!J3028=\"Yes\",'TSA Input'!J3028=\"Contingent\"),'TSA Input'!C3028,\"\"))","v":""},{"$f":"IF('TSA Input'!J3028=\"\",\"\",IF(OR('TSA Input'!J3028=\"Yes\",'TSA Input'!J3028=\"Contingent\"),'TSA Input'!D3028,\"\"))","v":""},{"$f":"IF('TSA Input'!J3028=\"\",\"\",IF(OR('TSA Input'!J3028=\"Yes\",'TSA Input'!J3028=\"Contingent\"),'TSA Input'!G3028,\"\"))","v":""},{"$f":"IF('TSA Input'!J3028=\"\",\"\",IF(OR('TSA Input'!J3028=\"Yes\",'TSA Input'!J3028=\"Contingent\"),'TSA Input'!F3028,\"\"))","v":""},"",{"$f":"IF('TSA Input'!J3028=\"\",\"\",IF(OR('TSA Input'!J3028=\"Yes\",'TSA Input'!J3028=\"Contingent\"),'TSA Input'!D3028,\"\"))","v":""},{"$f":"IF('TSA Input'!J3028=\"\",\"\",IF(OR('TSA Input'!J3028=\"Yes\",'TSA Input'!J3028=\"Contingent\"),'TSA Input'!G3028,\"\"))","v":""},{"$f":"IF('TSA Input'!J3028=\"\",\"\",IF(OR('TSA Input'!J3028=\"Yes\",'TSA Input'!J3028=\"Contingent\"),'TSA Input'!F3028,\"\"))","v":""},"","Required","Required"]
["",null,{"$f":"IF('TSA Input'!J3029=\"\",\"\",IF(OR('TSA Input'!J3029=\"Yes\",'TSA Input'!J3029=\"Contingent\"),'TSA Input'!B3029,\"Ineligible\"))","v":""},{"$f":"IF('TSA Input'!J3029=\"\",\"\",IF(OR('TSA Input'!J3029=\"Yes\",'TSA Input'!J3029=\"Contingent\"),'TSA Input'!I3029,\"\"))","v":""},{"$f":"IF('TSA Input'!J3029=\"\",\"\",IF(OR('TSA Input'!J3029=\"Yes\",'TSA Input'!J3029=\"Contingent\"),'TSA Input'!C3029,\"\"))","v":""},{"$f":"IF('TSA Input'!J3029=\"\",\"\",IF(OR('TSA Input'!J3029=\"Yes\",'TSA Input'!J3029=\"Contingent\"),'TSA Input'!D3029,\"\"))","v":""},{"$f":"IF('TSA Input'!J3029=\"\",\"\",IF(OR('TSA Input'!J3029=\"Yes\",'TSA Input'!J3029=\"Contingent\"),'TSA Input'!G3029,\"\"))","v":""},{"$f":"IF('TSA Input'!J3029=\"\",\"\",IF(OR('TSA Input'!J3029=\"Yes\",'TSA Input'!J3029=\"Contingent\"),'TSA Input'!F3029,\"\"))","v":""},"",{"$f":"IF('TSA Input'!J3029=\"\",\"\",IF(OR('TSA Input'!J3029=\"Yes\",'TSA Input'!J3029=\"Contingent\"),'TSA Input'!D3029,\"\"))","v":""},{"$f":"IF('TSA Input'!J3029=\"\",\"\",IF(OR('TSA Input'!J3029=\"Yes\",'TSA Input'!J3029=\"Contingent\"),'TSA Input'!G3029,\"\"))","v":""},{"$f":"IF('TSA Input'!J3029=\"\",\"\",IF(OR('TSA Input'!J3029=\"Yes\",'TSA Input'!J3029=\"Contingent\"),'TSA Input'!F3029,\"\"))","v":""},"","Required","Required"]
["",null,{"$f":"IF('TSA Input'!J3030=\"\",\"\",IF(OR('TSA Input'!J3030=\"Yes\",'TSA Input'!J3030=\"Contingent\"),'TSA Input'!B3030,\"Ineligible\"))","v":""},{"$f":"IF('TSA Input'!J3030=\"\",\"\",IF(OR('TSA Input'!J3030=\"Yes\",'TSA Input'!J3030=\"Contingent\"),'TSA Input'!I3030,\"\"))","v":""},{"$f":"IF('TSA Input'!J3030=\"\",\"\",IF(OR('TSA Input'!J3030=\"Yes\",'TSA Input'!J3030=\"Contingent\"),'TSA Input'!C3030,\"\"))","v":""},{"$f":"IF('TSA Input'!J3030=\"\",\"\",IF(OR('TSA Input'!J3030=\"Yes\",'TSA Input'!J3030=\"Contingent\"),'TSA Input'!D3030,\"\"))","v":""},{"$f":"IF('TSA Input'!J3030=\"\",\"\",IF(OR('TSA Input'!J3030=\"Yes\",'TSA Input'!J3030=\"Contingent\"),'TSA Input'!G3030,\"\"))","v":""},{"$f":"IF('TSA Input'!J3030=\"\",\"\",IF(OR('TSA Input'!J3030=\"Yes\",'TSA Input'!J3030=\"Contingent\"),'TSA Input'!F3030,\"\"))","v":""},"",{"$f":"IF('TSA Input'!J3030=\"\",\"\",IF(OR('TSA Input'!J3030=\"Yes\",'TSA Input'!J3030=\"Contingent\"),'TSA Input'!D3030,\"\"))","v":""},{"$f":"IF('TSA Input'!J3030=\"\",\"\",IF(OR('TSA Input'!J3030=\"Yes\",'TSA Input'!J3030=\"Contingent\"),'TSA Input'!G3030,\"\"))","v":""},{"$f":"IF('TSA Input'!J3030=\"\",\"\",IF(OR('TSA Input'!J3030=\"Yes\",'TSA Input'!J3030=\"Contingent\"),'TSA Input'!F3030,\"\"))","v":""},"","Required","Required"]
["",null,{"$f":"IF('TSA Input'!J3031=\"\",\"\",IF(OR('TSA Input'!J3031=\"Yes\",'TSA Input'!J3031=\"Contingent\"),'TSA Input'!B3031,\"Ineligible\"))","v":""},{"$f":"IF('TSA Input'!J3031=\"\",\"\",IF(OR('TSA Input'!J3031=\"Yes\",'TSA Input'!J3031=\"Contingent\"),'TSA Input'!I3031,\"\"))","v":""},{"$f":"IF('TSA Input'!J3031=\"\",\"\",IF(OR('TSA Input'!J3031=\"Yes\",'TSA Input'!J3031=\"Contingent\"),'TSA Input'!C3031,\"\"))","v":""},{"$f":"IF('TSA Input'!J3031=\"\",\"\",IF(OR('TSA Input'!J3031=\"Yes\",'TSA Input'!J3031=\"Contingent\"),'TSA Input'!D3031,\"\"))","v":""},{"$f":"IF('TSA Input'!J3031=\"\",\"\",IF(OR('TSA Input'!J3031=\"Yes\",'TSA Input'!J3031=\"Contingent\"),'TSA Input'!G3031,\"\"))","v":""},{"$f":"IF('TSA Input'!J3031=\"\",\"\",IF(OR('TSA Input'!J3031=\"Yes\",'TSA Input'!J3031=\"Contingent\"),'TSA Input'!F3031,\"\"))","v":""},"",{"$f":"IF('TSA Input'!J3031=\"\",\"\",IF(OR('TSA Input'!J3031=\"Yes\",'TSA Input'!J3031=\"Contingent\"),'TSA Input'!D3031,\"\"))","v":""},{"$f":"IF('TSA Input'!J3031=\"\",\"\",IF(OR('TSA Input'!J3031=\"Yes\",'TSA Input'!J3031=\"Contingent\"),'TSA Input'!G3031,\"\"))","v":""},{"$f":"IF('TSA Input'!J3031=\"\",\"\",IF(OR('TSA Input'!J3031=\"Yes\",'TSA Input'!J3031=\"Contingent\"),'TSA Input'!F3031,\"\"))","v":""},"","Required","Required"]
["",null,{"$f":"IF('TSA Input'!J3032=\"\",\"\",IF(OR('TSA Input'!J3032=\"Yes\",'TSA Input'!J3032=\"Contingent\"),'TSA Input'!B3032,\"Ineligible\"))","v":""},{"$f":"IF('TSA Input'!J3032=\"\",\"\",IF(OR('TSA Input'!J3032=\"Yes\",'TSA Input'!J3032=\"Contingent\"),'TSA Input'!I3032,\"\"))","v":""},{"$f":"IF('TSA Input'!J3032=\"\",\"\",IF(OR('TSA Input'!J3032=\"Yes\",'TSA Input'!J3032=\"Contingent\"),'TSA Input'!C3032,\"\"))","v":""},{"$f":"IF('TSA Input'!J3032=\"\",\"\",IF(OR('TSA Input'!J3032=\"Yes\",'TSA Input'!J3032=\"Contingent\"),'TSA Input'!D3032,\"\"))","v":""},{"$f":"IF('TSA Input'!J3032=\"\",\"\",IF(OR('TSA Input'!J3032=\"Yes\",'TSA Input'!J3032=\"Contingent\"),'TSA Input'!G3032,\"\"))","v":""},{"$f":"IF('TSA Input'!J3032=\"\",\"\",IF(OR('TSA Input'!J3032=\"Yes\",'TSA Input'!J3032=\"Contingent\"),'TSA Input'!F3032,\"\"))","v":""},"",{"$f":"IF('TSA Input'!J3032=\"\",\"\",IF(OR('TSA Input'!J3032=\"Yes\",'TSA Input'!J3032=\"Contingent\"),'TSA Input'!D3032,\"\"))","v":""},{"$f":"IF('TSA Input'!J3032=\"\",\"\",IF(OR('TSA Input'!J3032=\"Yes\",'TSA Input'!J3032=\"Contingent\"),'TSA Input'!G3032,\"\"))","v":""},{"$f":"IF('TSA Input'!J3032=\"\",\"\",IF(OR('TSA Input'!J3032=\"Yes\",'TSA Input'!J3032=\"Contingent\"),'TSA Input'!F3032,\"\"))","v":""},"","Required","Required"]
["",null,{"$f":"IF('TSA Input'!J3033=\"\",\"\",IF(OR('TSA Input'!J3033=\"Yes\",'TSA Input'!J3033=\"Contingent\"),'TSA Input'!B3033,\"Ineligible\"))","v":""},{"$f":"IF('TSA Input'!J3033=\"\",\"\",IF(OR('TSA Input'!J3033=\"Yes\",'TSA Input'!J3033=\"Contingent\"),'TSA Input'!I3033,\"\"))","v":""},{"$f":"IF('TSA Input'!J3033=\"\",\"\",IF(OR('TSA Input'!J3033=\"Yes\",'TSA Input'!J3033=\"Contingent\"),'TSA Input'!C3033,\"\"))","v":""},{"$f":"IF('TSA Input'!J3033=\"\",\"\",IF(OR('TSA Input'!J3033=\"Yes\",'TSA Input'!J3033=\"Contingent\"),'TSA Input'!D3033,\"\"))","v":""},{"$f":"IF('TSA Input'!J3033=\"\",\"\",IF(OR('TSA Input'!J3033=\"Yes\",'TSA Input'!J3033=\"Contingent\"),'TSA Input'!G3033,\"\"))","v":""},{"$f":"IF('TSA Input'!J3033=\"\",\"\",IF(OR('TSA Input'!J3033=\"Yes\",'TSA Input'!J3033=\"Contingent\"),'TSA Input'!F3033,\"\"))","v":""},"",{"$f":"IF('TSA Input'!J3033=\"\",\"\",IF(OR('TSA Input'!J3033=\"Yes\",'TSA Input'!J3033=\"Contingent\"),'TSA Input'!D3033,\"\"))","v":""},{"$f":"IF('TSA Input'!J3033=\"\",\"\",IF(OR('TSA Input'!J3033=\"Yes\",'TSA Input'!J3033=\"Contingent\"),'TSA Input'!G3033,\"\"))","v":""},{"$f":"IF('TSA Input'!J3033=\"\",\"\",IF(OR('TSA Input'!J3033=\"Yes\",'TSA Input'!J3033=\"Contingent\"),'TSA Input'!F3033,\"\"))","v":""},"","Required","Required"]
["",null,{"$f":"IF('TSA Input'!J3034=\"\",\"\",IF(OR('TSA Input'!J3034=\"Yes\",'TSA Input'!J3034=\"Contingent\"),'TSA Input'!B3034,\"Ineligible\"))","v":""},{"$f":"IF('TSA Input'!J3034=\"\",\"\",IF(OR('TSA Input'!J3034=\"Yes\",'TSA Input'!J3034=\"Contingent\"),'TSA Input'!I3034,\"\"))","v":""},{"$f":"IF('TSA Input'!J3034=\"\",\"\",IF(OR('TSA Input'!J3034=\"Yes\",'TSA Input'!J3034=\"Contingent\"),'TSA Input'!C3034,\"\"))","v":""},{"$f":"IF('TSA Input'!J3034=\"\",\"\",IF(OR('TSA Input'!J3034=\"Yes\",'TSA Input'!J3034=\"Contingent\"),'TSA Input'!D3034,\"\"))","v":""},{"$f":"IF('TSA Input'!J3034=\"\",\"\",IF(OR('TSA Input'!J3034=\"Yes\",'TSA Input'!J3034=\"Contingent\"),'TSA Input'!G3034,\"\"))","v":""},{"$f":"IF('TSA Input'!J3034=\"\",\"\",IF(OR('TSA Input'!J3034=\"Yes\",'TSA Input'!J3034=\"Contingent\"),'TSA Input'!F3034,\"\"))","v":""},"",{"$f":"IF('TSA Input'!J3034=\"\",\"\",IF(OR('TSA Input'!J3034=\"Yes\",'TSA Input'!J3034=\"Contingent\"),'TSA Input'!D3034,\"\"))","v":""},{"$f":"IF('TSA Input'!J3034=\"\",\"\",IF(OR('TSA Input'!J3034=\"Yes\",'TSA Input'!J3034=\"Contingent\"),'TSA Input'!G3034,\"\"))","v":""},{"$f":"IF('TSA Input'!J3034=\"\",\"\",IF(OR('TSA Input'!J3034=\"Yes\",'TSA Input'!J3034=\"Contingent\"),'TSA Input'!F3034,\"\"))","v":""},"","Required","Required"]
["",null,{"$f":"IF('TSA Input'!J3035=\"\",\"\",IF(OR('TSA Input'!J3035=\"Yes\",'TSA Input'!J3035=\"Contingent\"),'TSA Input'!B3035,\"Ineligible\"))","v":""},{"$f":"IF('TSA Input'!J3035=\"\",\"\",IF(OR('TSA Input'!J3035=\"Yes\",'TSA Input'!J3035=\"Contingent\"),'TSA Input'!I3035,\"\"))","v":""},{"$f":"IF('TSA Input'!J3035=\"\",\"\",IF(OR('TSA Input'!J3035=\"Yes\",'TSA Input'!J3035=\"Contingent\"),'TSA Input'!C3035,\"\"))","v":""},{"$f":"IF('TSA Input'!J3035=\"\",\"\",IF(OR('TSA Input'!J3035=\"Yes\",'TSA Input'!J3035=\"Contingent\"),'TSA Input'!D3035,\"\"))","v":""},{"$f":"IF('TSA Input'!J3035=\"\",\"\",IF(OR('TSA Input'!J3035=\"Yes\",'TSA Input'!J3035=\"Contingent\"),'TSA Input'!G3035,\"\"))","v":""},{"$f":"IF('TSA Input'!J3035=\"\",\"\",IF(OR('TSA Input'!J3035=\"Yes\",'TSA Input'!J3035=\"Contingent\"),'TSA Input'!F3035,\"\"))","v":""},"",{"$f":"IF('TSA Input'!J3035=\"\",\"\",IF(OR('TSA Input'!J3035=\"Yes\",'TSA Input'!J3035=\"Contingent\"),'TSA Input'!D3035,\"\"))","v":""},{"$f":"IF('TSA Input'!J3035=\"\",\"\",IF(OR('TSA Input'!J3035=\"Yes\",'TSA Input'!J3035=\"Contingent\"),'TSA Input'!G3035,\"\"))","v":""},{"$f":"IF('TSA Input'!J3035=\"\",\"\",IF(OR('TSA Input'!J3035=\"Yes\",'TSA Input'!J3035=\"Contingent\"),'TSA Input'!F3035,\"\"))","v":""},"","Required","Required"]
["",null,{"$f":"IF('TSA Input'!J3036=\"\",\"\",IF(OR('TSA Input'!J3036=\"Yes\",'TSA Input'!J3036=\"Contingent\"),'TSA Input'!B3036,\"Ineligible\"))","v":""},{"$f":"IF('TSA Input'!J3036=\"\",\"\",IF(OR('TSA Input'!J3036=\"Yes\",'TSA Input'!J3036=\"Contingent\"),'TSA Input'!I3036,\"\"))","v":""},{"$f":"IF('TSA Input'!J3036=\"\",\"\",IF(OR('TSA Input'!J3036=\"Yes\",'TSA Input'!J3036=\"Contingent\"),'TSA Input'!C3036,\"\"))","v":""},{"$f":"IF('TSA Input'!J3036=\"\",\"\",IF(OR('TSA Input'!J3036=\"Yes\",'TSA Input'!J3036=\"Contingent\"),'TSA Input'!D3036,\"\"))","v":""},{"$f":"IF('TSA Input'!J3036=\"\",\"\",IF(OR('TSA Input'!J3036=\"Yes\",'TSA Input'!J3036=\"Contingent\"),'TSA Input'!G3036,\"\"))","v":""},{"$f":"IF('TSA Input'!J3036=\"\",\"\",IF(OR('TSA Input'!J3036=\"Yes\",'TSA Input'!J3036=\"Contingent\"),'TSA Input'!F3036,\"\"))","v":""},"",{"$f":"IF('TSA Input'!J3036=\"\",\"\",IF(OR('TSA Input'!J3036=\"Yes\",'TSA Input'!J3036=\"Contingent\"),'TSA Input'!D3036,\"\"))","v":""},{"$f":"IF('TSA Input'!J3036=\"\",\"\",IF(OR('TSA Input'!J3036=\"Yes\",'TSA Input'!J3036=\"Contingent\"),'TSA Input'!G3036,\"\"))","v":""},{"$f":"IF('TSA Input'!J3036=\"\",\"\",IF(OR('TSA Input'!J3036=\"Yes\",'TSA Input'!J3036=\"Contingent\"),'TSA Input'!F3036,\"\"))","v":""},"","Required","Required"]
["",null,{"$f":"IF('TSA Input'!J3037=\"\",\"\",IF(OR('TSA Input'!J3037=\"Yes\",'TSA Input'!J3037=\"Contingent\"),'TSA Input'!B3037,\"Ineligible\"))","v":""},{"$f":"IF('TSA Input'!J3037=\"\",\"\",IF(OR('TSA Input'!J3037=\"Yes\",'TSA Input'!J3037=\"Contingent\"),'TSA Input'!I3037,\"\"))","v":""},{"$f":"IF('TSA Input'!J3037=\"\",\"\",IF(OR('TSA Input'!J3037=\"Yes\",'TSA Input'!J3037=\"Contingent\"),'TSA Input'!C3037,\"\"))","v":""},{"$f":"IF('TSA Input'!J3037=\"\",\"\",IF(OR('TSA Input'!J3037=\"Yes\",'TSA Input'!J3037=\"Contingent\"),'TSA Input'!D3037,\"\"))","v":""},{"$f":"IF('TSA Input'!J3037=\"\",\"\",IF(OR('TSA Input'!J3037=\"Yes\",'TSA Input'!J3037=\"Contingent\"),'TSA Input'!G3037,\"\"))","v":""},{"$f":"IF('TSA Input'!J3037=\"\",\"\",IF(OR('TSA Input'!J3037=\"Yes\",'TSA Input'!J3037=\"Contingent\"),'TSA Input'!F3037,\"\"))","v":""},"",{"$f":"IF('TSA Input'!J3037=\"\",\"\",IF(OR('TSA Input'!J3037=\"Yes\",'TSA Input'!J3037=\"Contingent\"),'TSA Input'!D3037,\"\"))","v":""},{"$f":"IF('TSA Input'!J3037=\"\",\"\",IF(OR('TSA Input'!J3037=\"Yes\",'TSA Input'!J3037=\"Contingent\"),'TSA Input'!G3037,\"\"))","v":""},{"$f":"IF('TSA Input'!J3037=\"\",\"\",IF(OR('TSA Input'!J3037=\"Yes\",'TSA Input'!J3037=\"Contingent\"),'TSA Input'!F3037,\"\"))","v":""},"","Required","Required"]
["",null,{"$f":"IF('TSA Input'!J3038=\"\",\"\",IF(OR('TSA Input'!J3038=\"Yes\",'TSA Input'!J3038=\"Contingent\"),'TSA Input'!B3038,\"Ineligible\"))","v":""},{"$f":"IF('TSA Input'!J3038=\"\",\"\",IF(OR('TSA Input'!J3038=\"Yes\",'TSA Input'!J3038=\"Contingent\"),'TSA Input'!I3038,\"\"))","v":""},{"$f":"IF('TSA Input'!J3038=\"\",\"\",IF(OR('TSA Input'!J3038=\"Yes\",'TSA Input'!J3038=\"Contingent\"),'TSA Input'!C3038,\"\"))","v":""},{"$f":"IF('TSA Input'!J3038=\"\",\"\",IF(OR('TSA Input'!J3038=\"Yes\",'TSA Input'!J3038=\"Contingent\"),'TSA Input'!D3038,\"\"))","v":""},{"$f":"IF('TSA Input'!J3038=\"\",\"\",IF(OR('TSA Input'!J3038=\"Yes\",'TSA Input'!J3038=\"Contingent\"),'TSA Input'!G3038,\"\"))","v":""},{"$f":"IF('TSA Input'!J3038=\"\",\"\",IF(OR('TSA Input'!J3038=\"Yes\",'TSA Input'!J3038=\"Contingent\"),'TSA Input'!F3038,\"\"))","v":""},"",{"$f":"IF('TSA Input'!J3038=\"\",\"\",IF(OR('TSA Input'!J3038=\"Yes\",'TSA Input'!J3038=\"Contingent\"),'TSA Input'!D3038,\"\"))","v":""},{"$f":"IF('TSA Input'!J3038=\"\",\"\",IF(OR('TSA Input'!J3038=\"Yes\",'TSA Input'!J3038=\"Contingent\"),'TSA Input'!G3038,\"\"))","v":""},{"$f":"IF('TSA Input'!J3038=\"\",\"\",IF(OR('TSA Input'!J3038=\"Yes\",'TSA Input'!J3038=\"Contingent\"),'TSA Input'!F3038,\"\"))","v":""},"","Required","Required"]
["",null,{"$f":"IF('TSA Input'!J3039=\"\",\"\",IF(OR('TSA Input'!J3039=\"Yes\",'TSA Input'!J3039=\"Contingent\"),'TSA Input'!B3039,\"Ineligible\"))","v":""},{"$f":"IF('TSA Input'!J3039=\"\",\"\",IF(OR('TSA Input'!J3039=\"Yes\",'TSA Input'!J3039=\"Contingent\"),'TSA Input'!I3039,\"\"))","v":""},{"$f":"IF('TSA Input'!J3039=\"\",\"\",IF(OR('TSA Input'!J3039=\"Yes\",'TSA Input'!J3039=\"Contingent\"),'TSA Input'!C3039,\"\"))","v":""},{"$f":"IF('TSA Input'!J3039=\"\",\"\",IF(OR('TSA Input'!J3039=\"Yes\",'TSA Input'!J3039=\"Contingent\"),'TSA Input'!D3039,\"\"))","v":""},{"$f":"IF('TSA Input'!J3039=\"\",\"\",IF(OR('TSA Input'!J3039=\"Yes\",'TSA Input'!J3039=\"Contingent\"),'TSA Input'!G3039,\"\"))","v":""},{"$f":"IF('TSA Input'!J3039=\"\",\"\",IF(OR('TSA Input'!J3039=\"Yes\",'TSA Input'!J3039=\"Contingent\"),'TSA Input'!F3039,\"\"))","v":""},"",{"$f":"IF('TSA Input'!J3039=\"\",\"\",IF(OR('TSA Input'!J3039=\"Yes\",'TSA Input'!J3039=\"Contingent\"),'TSA Input'!D3039,\"\"))","v":""},{"$f":"IF('TSA Input'!J3039=\"\",\"\",IF(OR('TSA Input'!J3039=\"Yes\",'TSA Input'!J3039=\"Contingent\"),'TSA Input'!G3039,\"\"))","v":""},{"$f":"IF('TSA Input'!J3039=\"\",\"\",IF(OR('TSA Input'!J3039=\"Yes\",'TSA Input'!J3039=\"Contingent\"),'TSA Input'!F3039,\"\"))","v":""},"","Required","Required"]
["",null,{"$f":"IF('TSA Input'!J3040=\"\",\"\",IF(OR('TSA Input'!J3040=\"Yes\",'TSA Input'!J3040=\"Contingent\"),'TSA Input'!B3040,\"Ineligible\"))","v":""},{"$f":"IF('TSA Input'!J3040=\"\",\"\",IF(OR('TSA Input'!J3040=\"Yes\",'TSA Input'!J3040=\"Contingent\"),'TSA Input'!I3040,\"\"))","v":""},{"$f":"IF('TSA Input'!J3040=\"\",\"\",IF(OR('TSA Input'!J3040=\"Yes\",'TSA Input'!J3040=\"Contingent\"),'TSA Input'!C3040,\"\"))","v":""},{"$f":"IF('TSA Input'!J3040=\"\",\"\",IF(OR('TSA Input'!J3040=\"Yes\",'TSA Input'!J3040=\"Contingent\"),'TSA Input'!D3040,\"\"))","v":""},{"$f":"IF('TSA Input'!J3040=\"\",\"\",IF(OR('TSA Input'!J3040=\"Yes\",'TSA Input'!J3040=\"Contingent\"),'TSA Input'!G3040,\"\"))","v":""},{"$f":"IF('TSA Input'!J3040=\"\",\"\",IF(OR('TSA Input'!J3040=\"Yes\",'TSA Input'!J3040=\"Contingent\"),'TSA Input'!F3040,\"\"))","v":""},"",{"$f":"IF('TSA Input'!J3040=\"\",\"\",IF(OR('TSA Input'!J3040=\"Yes\",'TSA Input'!J3040=\"Contingent\"),'TSA Input'!D3040,\"\"))","v":""},{"$f":"IF('TSA Input'!J3040=\"\",\"\",IF(OR('TSA Input'!J3040=\"Yes\",'TSA Input'!J3040=\"Contingent\"),'TSA Input'!G3040,\"\"))","v":""},{"$f":"IF('TSA Input'!J3040=\"\",\"\",IF(OR('TSA Input'!J3040=\"Yes\",'TSA Input'!J3040=\"Contingent\"),'TSA Input'!F3040,\"\"))","v":""},"","Required","Required"]
["",null,{"$f":"IF('TSA Input'!J3041=\"\",\"\",IF(OR('TSA Input'!J3041=\"Yes\",'TSA Input'!J3041=\"Contingent\"),'TSA Input'!B3041,\"Ineligible\"))","v":""},{"$f":"IF('TSA Input'!J3041=\"\",\"\",IF(OR('TSA Input'!J3041=\"Yes\",'TSA Input'!J3041=\"Contingent\"),'TSA Input'!I3041,\"\"))","v":""},{"$f":"IF('TSA Input'!J3041=\"\",\"\",IF(OR('TSA Input'!J3041=\"Yes\",'TSA Input'!J3041=\"Contingent\"),'TSA Input'!C3041,\"\"))","v":""},{"$f":"IF('TSA Input'!J3041=\"\",\"\",IF(OR('TSA Input'!J3041=\"Yes\",'TSA Input'!J3041=\"Contingent\"),'TSA Input'!D3041,\"\"))","v":""},{"$f":"IF('TSA Input'!J3041=\"\",\"\",IF(OR('TSA Input'!J3041=\"Yes\",'TSA Input'!J3041=\"Contingent\"),'TSA Input'!G3041,\"\"))","v":""},{"$f":"IF('TSA Input'!J3041=\"\",\"\",IF(OR('TSA Input'!J3041=\"Yes\",'TSA Input'!J3041=\"Contingent\"),'TSA Input'!F3041,\"\"))","v":""},"",{"$f":"IF('TSA Input'!J3041=\"\",\"\",IF(OR('TSA Input'!J3041=\"Yes\",'TSA Input'!J3041=\"Contingent\"),'TSA Input'!D3041,\"\"))","v":""},{"$f":"IF('TSA Input'!J3041=\"\",\"\",IF(OR('TSA Input'!J3041=\"Yes\",'TSA Input'!J3041=\"Contingent\"),'TSA Input'!G3041,\"\"))","v":""},{"$f":"IF('TSA Input'!J3041=\"\",\"\",IF(OR('TSA Input'!J3041=\"Yes\",'TSA Input'!J3041=\"Contingent\"),'TSA Input'!F3041,\"\"))","v":""},"","Required","Required"]
["",null,{"$f":"IF('TSA Input'!J3042=\"\",\"\",IF(OR('TSA Input'!J3042=\"Yes\",'TSA Input'!J3042=\"Contingent\"),'TSA Input'!B3042,\"Ineligible\"))","v":""},{"$f":"IF('TSA Input'!J3042=\"\",\"\",IF(OR('TSA Input'!J3042=\"Yes\",'TSA Input'!J3042=\"Contingent\"),'TSA Input'!I3042,\"\"))","v":""},{"$f":"IF('TSA Input'!J3042=\"\",\"\",IF(OR('TSA Input'!J3042=\"Yes\",'TSA Input'!J3042=\"Contingent\"),'TSA Input'!C3042,\"\"))","v":""},{"$f":"IF('TSA Input'!J3042=\"\",\"\",IF(OR('TSA Input'!J3042=\"Yes\",'TSA Input'!J3042=\"Contingent\"),'TSA Input'!D3042,\"\"))","v":""},{"$f":"IF('TSA Input'!J3042=\"\",\"\",IF(OR('TSA Input'!J3042=\"Yes\",'TSA Input'!J3042=\"Contingent\"),'TSA Input'!G3042,\"\"))","v":""},{"$f":"IF('TSA Input'!J3042=\"\",\"\",IF(OR('TSA Input'!J3042=\"Yes\",'TSA Input'!J3042=\"Contingent\"),'TSA Input'!F3042,\"\"))","v":""},"",{"$f":"IF('TSA Input'!J3042=\"\",\"\",IF(OR('TSA Input'!J3042=\"Yes\",'TSA Input'!J3042=\"Contingent\"),'TSA Input'!D3042,\"\"))","v":""},{"$f":"IF('TSA Input'!J3042=\"\",\"\",IF(OR('TSA Input'!J3042=\"Yes\",'TSA Input'!J3042=\"Contingent\"),'TSA Input'!G3042,\"\"))","v":""},{"$f":"IF('TSA Input'!J3042=\"\",\"\",IF(OR('TSA Input'!J3042=\"Yes\",'TSA Input'!J3042=\"Contingent\"),'TSA Input'!F3042,\"\"))","v":""},"","Required","Required"]
["",null,{"$f":"IF('TSA Input'!J3043=\"\",\"\",IF(OR('TSA Input'!J3043=\"Yes\",'TSA Input'!J3043=\"Contingent\"),'TSA Input'!B3043,\"Ineligible\"))","v":""},{"$f":"IF('TSA Input'!J3043=\"\",\"\",IF(OR('TSA Input'!J3043=\"Yes\",'TSA Input'!J3043=\"Contingent\"),'TSA Input'!I3043,\"\"))","v":""},{"$f":"IF('TSA Input'!J3043=\"\",\"\",IF(OR('TSA Input'!J3043=\"Yes\",'TSA Input'!J3043=\"Contingent\"),'TSA Input'!C3043,\"\"))","v":""},{"$f":"IF('TSA Input'!J3043=\"\",\"\",IF(OR('TSA Input'!J3043=\"Yes\",'TSA Input'!J3043=\"Contingent\"),'TSA Input'!D3043,\"\"))","v":""},{"$f":"IF('TSA Input'!J3043=\"\",\"\",IF(OR('TSA Input'!J3043=\"Yes\",'TSA Input'!J3043=\"Contingent\"),'TSA Input'!G3043,\"\"))","v":""},{"$f":"IF('TSA Input'!J3043=\"\",\"\",IF(OR('TSA Input'!J3043=\"Yes\",'TSA Input'!J3043=\"Contingent\"),'TSA Input'!F3043,\"\"))","v":""},"",{"$f":"IF('TSA Input'!J3043=\"\",\"\",IF(OR('TSA Input'!J3043=\"Yes\",'TSA Input'!J3043=\"Contingent\"),'TSA Input'!D3043,\"\"))","v":""},{"$f":"IF('TSA Input'!J3043=\"\",\"\",IF(OR('TSA Input'!J3043=\"Yes\",'TSA Input'!J3043=\"Contingent\"),'TSA Input'!G3043,\"\"))","v":""},{"$f":"IF('TSA Input'!J3043=\"\",\"\",IF(OR('TSA Input'!J3043=\"Yes\",'TSA Input'!J3043=\"Contingent\"),'TSA Input'!F3043,\"\"))","v":""},"","Required","Required"]
["",null,{"$f":"IF('TSA Input'!J3044=\"\",\"\",IF(OR('TSA Input'!J3044=\"Yes\",'TSA Input'!J3044=\"Contingent\"),'TSA Input'!B3044,\"Ineligible\"))","v":""},{"$f":"IF('TSA Input'!J3044=\"\",\"\",IF(OR('TSA Input'!J3044=\"Yes\",'TSA Input'!J3044=\"Contingent\"),'TSA Input'!I3044,\"\"))","v":""},{"$f":"IF('TSA Input'!J3044=\"\",\"\",IF(OR('TSA Input'!J3044=\"Yes\",'TSA Input'!J3044=\"Contingent\"),'TSA Input'!C3044,\"\"))","v":""},{"$f":"IF('TSA Input'!J3044=\"\",\"\",IF(OR('TSA Input'!J3044=\"Yes\",'TSA Input'!J3044=\"Contingent\"),'TSA Input'!D3044,\"\"))","v":""},{"$f":"IF('TSA Input'!J3044=\"\",\"\",IF(OR('TSA Input'!J3044=\"Yes\",'TSA Input'!J3044=\"Contingent\"),'TSA Input'!G3044,\"\"))","v":""},{"$f":"IF('TSA Input'!J3044=\"\",\"\",IF(OR('TSA Input'!J3044=\"Yes\",'TSA Input'!J3044=\"Contingent\"),'TSA Input'!F3044,\"\"))","v":""},"",{"$f":"IF('TSA Input'!J3044=\"\",\"\",IF(OR('TSA Input'!J3044=\"Yes\",'TSA Input'!J3044=\"Contingent\"),'TSA Input'!D3044,\"\"))","v":""},{"$f":"IF('TSA Input'!J3044=\"\",\"\",IF(OR('TSA Input'!J3044=\"Yes\",'TSA Input'!J3044=\"Contingent\"),'TSA Input'!G3044,\"\"))","v":""},{"$f":"IF('TSA Input'!J3044=\"\",\"\",IF(OR('TSA Input'!J3044=\"Yes\",'TSA Input'!J3044=\"Contingent\"),'TSA Input'!F3044,\"\"))","v":""},"","Required","Required"]
["",null,{"$f":"IF('TSA Input'!J3045=\"\",\"\",IF(OR('TSA Input'!J3045=\"Yes\",'TSA Input'!J3045=\"Contingent\"),'TSA Input'!B3045,\"Ineligible\"))","v":""},{"$f":"IF('TSA Input'!J3045=\"\",\"\",IF(OR('TSA Input'!J3045=\"Yes\",'TSA Input'!J3045=\"Contingent\"),'TSA Input'!I3045,\"\"))","v":""},{"$f":"IF('TSA Input'!J3045=\"\",\"\",IF(OR('TSA Input'!J3045=\"Yes\",'TSA Input'!J3045=\"Contingent\"),'TSA Input'!C3045,\"\"))","v":""},{"$f":"IF('TSA Input'!J3045=\"\",\"\",IF(OR('TSA Input'!J3045=\"Yes\",'TSA Input'!J3045=\"Contingent\"),'TSA Input'!D3045,\"\"))","v":""},{"$f":"IF('TSA Input'!J3045=\"\",\"\",IF(OR('TSA Input'!J3045=\"Yes\",'TSA Input'!J3045=\"Contingent\"),'TSA Input'!G3045,\"\"))","v":""},{"$f":"IF('TSA Input'!J3045=\"\",\"\",IF(OR('TSA Input'!J3045=\"Yes\",'TSA Input'!J3045=\"Contingent\"),'TSA Input'!F3045,\"\"))","v":""},"",{"$f":"IF('TSA Input'!J3045=\"\",\"\",IF(OR('TSA Input'!J3045=\"Yes\",'TSA Input'!J3045=\"Contingent\"),'TSA Input'!D3045,\"\"))","v":""},{"$f":"IF('TSA Input'!J3045=\"\",\"\",IF(OR('TSA Input'!J3045=\"Yes\",'TSA Input'!J3045=\"Contingent\"),'TSA Input'!G3045,\"\"))","v":""},{"$f":"IF('TSA Input'!J3045=\"\",\"\",IF(OR('TSA Input'!J3045=\"Yes\",'TSA Input'!J3045=\"Contingent\"),'TSA Input'!F3045,\"\"))","v":""},"","Required","Required"]
["",null,{"$f":"IF('TSA Input'!J3046=\"\",\"\",IF(OR('TSA Input'!J3046=\"Yes\",'TSA Input'!J3046=\"Contingent\"),'TSA Input'!B3046,\"Ineligible\"))","v":""},{"$f":"IF('TSA Input'!J3046=\"\",\"\",IF(OR('TSA Input'!J3046=\"Yes\",'TSA Input'!J3046=\"Contingent\"),'TSA Input'!I3046,\"\"))","v":""},{"$f":"IF('TSA Input'!J3046=\"\",\"\",IF(OR('TSA Input'!J3046=\"Yes\",'TSA Input'!J3046=\"Contingent\"),'TSA Input'!C3046,\"\"))","v":""},{"$f":"IF('TSA Input'!J3046=\"\",\"\",IF(OR('TSA Input'!J3046=\"Yes\",'TSA Input'!J3046=\"Contingent\"),'TSA Input'!D3046,\"\"))","v":""},{"$f":"IF('TSA Input'!J3046=\"\",\"\",IF(OR('TSA Input'!J3046=\"Yes\",'TSA Input'!J3046=\"Contingent\"),'TSA Input'!G3046,\"\"))","v":""},{"$f":"IF('TSA Input'!J3046=\"\",\"\",IF(OR('TSA Input'!J3046=\"Yes\",'TSA Input'!J3046=\"Contingent\"),'TSA Input'!F3046,\"\"))","v":""},"",{"$f":"IF('TSA Input'!J3046=\"\",\"\",IF(OR('TSA Input'!J3046=\"Yes\",'TSA Input'!J3046=\"Contingent\"),'TSA Input'!D3046,\"\"))","v":""},{"$f":"IF('TSA Input'!J3046=\"\",\"\",IF(OR('TSA Input'!J3046=\"Yes\",'TSA Input'!J3046=\"Contingent\"),'TSA Input'!G3046,\"\"))","v":""},{"$f":"IF('TSA Input'!J3046=\"\",\"\",IF(OR('TSA Input'!J3046=\"Yes\",'TSA Input'!J3046=\"Contingent\"),'TSA Input'!F3046,\"\"))","v":""},"","Required","Required"]
["",null,{"$f":"IF('TSA Input'!J3047=\"\",\"\",IF(OR('TSA Input'!J3047=\"Yes\",'TSA Input'!J3047=\"Contingent\"),'TSA Input'!B3047,\"Ineligible\"))","v":""},{"$f":"IF('TSA Input'!J3047=\"\",\"\",IF(OR('TSA Input'!J3047=\"Yes\",'TSA Input'!J3047=\"Contingent\"),'TSA Input'!I3047,\"\"))","v":""},{"$f":"IF('TSA Input'!J3047=\"\",\"\",IF(OR('TSA Input'!J3047=\"Yes\",'TSA Input'!J3047=\"Contingent\"),'TSA Input'!C3047,\"\"))","v":""},{"$f":"IF('TSA Input'!J3047=\"\",\"\",IF(OR('TSA Input'!J3047=\"Yes\",'TSA Input'!J3047=\"Contingent\"),'TSA Input'!D3047,\"\"))","v":""},{"$f":"IF('TSA Input'!J3047=\"\",\"\",IF(OR('TSA Input'!J3047=\"Yes\",'TSA Input'!J3047=\"Contingent\"),'TSA Input'!G3047,\"\"))","v":""},{"$f":"IF('TSA Input'!J3047=\"\",\"\",IF(OR('TSA Input'!J3047=\"Yes\",'TSA Input'!J3047=\"Contingent\"),'TSA Input'!F3047,\"\"))","v":""},"",{"$f":"IF('TSA Input'!J3047=\"\",\"\",IF(OR('TSA Input'!J3047=\"Yes\",'TSA Input'!J3047=\"Contingent\"),'TSA Input'!D3047,\"\"))","v":""},{"$f":"IF('TSA Input'!J3047=\"\",\"\",IF(OR('TSA Input'!J3047=\"Yes\",'TSA Input'!J3047=\"Contingent\"),'TSA Input'!G3047,\"\"))","v":""},{"$f":"IF('TSA Input'!J3047=\"\",\"\",IF(OR('TSA Input'!J3047=\"Yes\",'TSA Input'!J3047=\"Contingent\"),'TSA Input'!F3047,\"\"))","v":""},"","Required","Required"]
["",null,{"$f":"IF('TSA Input'!J3048=\"\",\"\",IF(OR('TSA Input'!J3048=\"Yes\",'TSA Input'!J3048=\"Contingent\"),'TSA Input'!B3048,\"Ineligible\"))","v":""},{"$f":"IF('TSA Input'!J3048=\"\",\"\",IF(OR('TSA Input'!J3048=\"Yes\",'TSA Input'!J3048=\"Contingent\"),'TSA Input'!I3048,\"\"))","v":""},{"$f":"IF('TSA Input'!J3048=\"\",\"\",IF(OR('TSA Input'!J3048=\"Yes\",'TSA Input'!J3048=\"Contingent\"),'TSA Input'!C3048,\"\"))","v":""},{"$f":"IF('TSA Input'!J3048=\"\",\"\",IF(OR('TSA Input'!J3048=\"Yes\",'TSA Input'!J3048=\"Contingent\"),'TSA Input'!D3048,\"\"))","v":""},{"$f":"IF('TSA Input'!J3048=\"\",\"\",IF(OR('TSA Input'!J3048=\"Yes\",'TSA Input'!J3048=\"Contingent\"),'TSA Input'!G3048,\"\"))","v":""},{"$f":"IF('TSA Input'!J3048=\"\",\"\",IF(OR('TSA Input'!J3048=\"Yes\",'TSA Input'!J3048=\"Contingent\"),'TSA Input'!F3048,\"\"))","v":""},"",{"$f":"IF('TSA Input'!J3048=\"\",\"\",IF(OR('TSA Input'!J3048=\"Yes\",'TSA Input'!J3048=\"Contingent\"),'TSA Input'!D3048,\"\"))","v":""},{"$f":"IF('TSA Input'!J3048=\"\",\"\",IF(OR('TSA Input'!J3048=\"Yes\",'TSA Input'!J3048=\"Contingent\"),'TSA Input'!G3048,\"\"))","v":""},{"$f":"IF('TSA Input'!J3048=\"\",\"\",IF(OR('TSA Input'!J3048=\"Yes\",'TSA Input'!J3048=\"Contingent\"),'TSA Input'!F3048,\"\"))","v":""},"","Required","Required"]
["",null,{"$f":"IF('TSA Input'!J3049=\"\",\"\",IF(OR('TSA Input'!J3049=\"Yes\",'TSA Input'!J3049=\"Contingent\"),'TSA Input'!B3049,\"Ineligible\"))","v":""},{"$f":"IF('TSA Input'!J3049=\"\",\"\",IF(OR('TSA Input'!J3049=\"Yes\",'TSA Input'!J3049=\"Contingent\"),'TSA Input'!I3049,\"\"))","v":""},{"$f":"IF('TSA Input'!J3049=\"\",\"\",IF(OR('TSA Input'!J3049=\"Yes\",'TSA Input'!J3049=\"Contingent\"),'TSA Input'!C3049,\"\"))","v":""},{"$f":"IF('TSA Input'!J3049=\"\",\"\",IF(OR('TSA Input'!J3049=\"Yes\",'TSA Input'!J3049=\"Contingent\"),'TSA Input'!D3049,\"\"))","v":""},{"$f":"IF('TSA Input'!J3049=\"\",\"\",IF(OR('TSA Input'!J3049=\"Yes\",'TSA Input'!J3049=\"Contingent\"),'TSA Input'!G3049,\"\"))","v":""},{"$f":"IF('TSA Input'!J3049=\"\",\"\",IF(OR('TSA Input'!J3049=\"Yes\",'TSA Input'!J3049=\"Contingent\"),'TSA Input'!F3049,\"\"))","v":""},"",{"$f":"IF('TSA Input'!J3049=\"\",\"\",IF(OR('TSA Input'!J3049=\"Yes\",'TSA Input'!J3049=\"Contingent\"),'TSA Input'!D3049,\"\"))","v":""},{"$f":"IF('TSA Input'!J3049=\"\",\"\",IF(OR('TSA Input'!J3049=\"Yes\",'TSA Input'!J3049=\"Contingent\"),'TSA Input'!G3049,\"\"))","v":""},{"$f":"IF('TSA Input'!J3049=\"\",\"\",IF(OR('TSA Input'!J3049=\"Yes\",'TSA Input'!J3049=\"Contingent\"),'TSA Input'!F3049,\"\"))","v":""},"","Required","Required"]
["",null,{"$f":"IF('TSA Input'!J3050=\"\",\"\",IF(OR('TSA Input'!J3050=\"Yes\",'TSA Input'!J3050=\"Contingent\"),'TSA Input'!B3050,\"Ineligible\"))","v":""},{"$f":"IF('TSA Input'!J3050=\"\",\"\",IF(OR('TSA Input'!J3050=\"Yes\",'TSA Input'!J3050=\"Contingent\"),'TSA Input'!I3050,\"\"))","v":""},{"$f":"IF('TSA Input'!J3050=\"\",\"\",IF(OR('TSA Input'!J3050=\"Yes\",'TSA Input'!J3050=\"Contingent\"),'TSA Input'!C3050,\"\"))","v":""},{"$f":"IF('TSA Input'!J3050=\"\",\"\",IF(OR('TSA Input'!J3050=\"Yes\",'TSA Input'!J3050=\"Contingent\"),'TSA Input'!D3050,\"\"))","v":""},{"$f":"IF('TSA Input'!J3050=\"\",\"\",IF(OR('TSA Input'!J3050=\"Yes\",'TSA Input'!J3050=\"Contingent\"),'TSA Input'!G3050,\"\"))","v":""},{"$f":"IF('TSA Input'!J3050=\"\",\"\",IF(OR('TSA Input'!J3050=\"Yes\",'TSA Input'!J3050=\"Contingent\"),'TSA Input'!F3050,\"\"))","v":""},"",{"$f":"IF('TSA Input'!J3050=\"\",\"\",IF(OR('TSA Input'!J3050=\"Yes\",'TSA Input'!J3050=\"Contingent\"),'TSA Input'!D3050,\"\"))","v":""},{"$f":"IF('TSA Input'!J3050=\"\",\"\",IF(OR('TSA Input'!J3050=\"Yes\",'TSA Input'!J3050=\"Contingent\"),'TSA Input'!G3050,\"\"))","v":""},{"$f":"IF('TSA Input'!J3050=\"\",\"\",IF(OR('TSA Input'!J3050=\"Yes\",'TSA Input'!J3050=\"Contingent\"),'TSA Input'!F3050,\"\"))","v":""},"","Required","Required"]
["",null,{"$f":"IF('TSA Input'!J3051=\"\",\"\",IF(OR('TSA Input'!J3051=\"Yes\",'TSA Input'!J3051=\"Contingent\"),'TSA Input'!B3051,\"Ineligible\"))","v":""},{"$f":"IF('TSA Input'!J3051=\"\",\"\",IF(OR('TSA Input'!J3051=\"Yes\",'TSA Input'!J3051=\"Contingent\"),'TSA Input'!I3051,\"\"))","v":""},{"$f":"IF('TSA Input'!J3051=\"\",\"\",IF(OR('TSA Input'!J3051=\"Yes\",'TSA Input'!J3051=\"Contingent\"),'TSA Input'!C3051,\"\"))","v":""},{"$f":"IF('TSA Input'!J3051=\"\",\"\",IF(OR('TSA Input'!J3051=\"Yes\",'TSA Input'!J3051=\"Contingent\"),'TSA Input'!D3051,\"\"))","v":""},{"$f":"IF('TSA Input'!J3051=\"\",\"\",IF(OR('TSA Input'!J3051=\"Yes\",'TSA Input'!J3051=\"Contingent\"),'TSA Input'!G3051,\"\"))","v":""},{"$f":"IF('TSA Input'!J3051=\"\",\"\",IF(OR('TSA Input'!J3051=\"Yes\",'TSA Input'!J3051=\"Contingent\"),'TSA Input'!F3051,\"\"))","v":""},"",{"$f":"IF('TSA Input'!J3051=\"\",\"\",IF(OR('TSA Input'!J3051=\"Yes\",'TSA Input'!J3051=\"Contingent\"),'TSA Input'!D3051,\"\"))","v":""},{"$f":"IF('TSA Input'!J3051=\"\",\"\",IF(OR('TSA Input'!J3051=\"Yes\",'TSA Input'!J3051=\"Contingent\"),'TSA Input'!G3051,\"\"))","v":""},{"$f":"IF('TSA Input'!J3051=\"\",\"\",IF(OR('TSA Input'!J3051=\"Yes\",'TSA Input'!J3051=\"Contingent\"),'TSA Input'!F3051,\"\"))","v":""},"","Required","Required"]
["",null,{"$f":"IF('TSA Input'!J3052=\"\",\"\",IF(OR('TSA Input'!J3052=\"Yes\",'TSA Input'!J3052=\"Contingent\"),'TSA Input'!B3052,\"Ineligible\"))","v":""},{"$f":"IF('TSA Input'!J3052=\"\",\"\",IF(OR('TSA Input'!J3052=\"Yes\",'TSA Input'!J3052=\"Contingent\"),'TSA Input'!I3052,\"\"))","v":""},{"$f":"IF('TSA Input'!J3052=\"\",\"\",IF(OR('TSA Input'!J3052=\"Yes\",'TSA Input'!J3052=\"Contingent\"),'TSA Input'!C3052,\"\"))","v":""},{"$f":"IF('TSA Input'!J3052=\"\",\"\",IF(OR('TSA Input'!J3052=\"Yes\",'TSA Input'!J3052=\"Contingent\"),'TSA Input'!D3052,\"\"))","v":""},{"$f":"IF('TSA Input'!J3052=\"\",\"\",IF(OR('TSA Input'!J3052=\"Yes\",'TSA Input'!J3052=\"Contingent\"),'TSA Input'!G3052,\"\"))","v":""},{"$f":"IF('TSA Input'!J3052=\"\",\"\",IF(OR('TSA Input'!J3052=\"Yes\",'TSA Input'!J3052=\"Contingent\"),'TSA Input'!F3052,\"\"))","v":""},"",{"$f":"IF('TSA Input'!J3052=\"\",\"\",IF(OR('TSA Input'!J3052=\"Yes\",'TSA Input'!J3052=\"Contingent\"),'TSA Input'!D3052,\"\"))","v":""},{"$f":"IF('TSA Input'!J3052=\"\",\"\",IF(OR('TSA Input'!J3052=\"Yes\",'TSA Input'!J3052=\"Contingent\"),'TSA Input'!G3052,\"\"))","v":""},{"$f":"IF('TSA Input'!J3052=\"\",\"\",IF(OR('TSA Input'!J3052=\"Yes\",'TSA Input'!J3052=\"Contingent\"),'TSA Input'!F3052,\"\"))","v":""},"","Required","Required"]
["",null,{"$f":"IF('TSA Input'!J3053=\"\",\"\",IF(OR('TSA Input'!J3053=\"Yes\",'TSA Input'!J3053=\"Contingent\"),'TSA Input'!B3053,\"Ineligible\"))","v":""},{"$f":"IF('TSA Input'!J3053=\"\",\"\",IF(OR('TSA Input'!J3053=\"Yes\",'TSA Input'!J3053=\"Contingent\"),'TSA Input'!I3053,\"\"))","v":""},{"$f":"IF('TSA Input'!J3053=\"\",\"\",IF(OR('TSA Input'!J3053=\"Yes\",'TSA Input'!J3053=\"Contingent\"),'TSA Input'!C3053,\"\"))","v":""},{"$f":"IF('TSA Input'!J3053=\"\",\"\",IF(OR('TSA Input'!J3053=\"Yes\",'TSA Input'!J3053=\"Contingent\"),'TSA Input'!D3053,\"\"))","v":""},{"$f":"IF('TSA Input'!J3053=\"\",\"\",IF(OR('TSA Input'!J3053=\"Yes\",'TSA Input'!J3053=\"Contingent\"),'TSA Input'!G3053,\"\"))","v":""},{"$f":"IF('TSA Input'!J3053=\"\",\"\",IF(OR('TSA Input'!J3053=\"Yes\",'TSA Input'!J3053=\"Contingent\"),'TSA Input'!F3053,\"\"))","v":""},"",{"$f":"IF('TSA Input'!J3053=\"\",\"\",IF(OR('TSA Input'!J3053=\"Yes\",'TSA Input'!J3053=\"Contingent\"),'TSA Input'!D3053,\"\"))","v":""},{"$f":"IF('TSA Input'!J3053=\"\",\"\",IF(OR('TSA Input'!J3053=\"Yes\",'TSA Input'!J3053=\"Contingent\"),'TSA Input'!G3053,\"\"))","v":""},{"$f":"IF('TSA Input'!J3053=\"\",\"\",IF(OR('TSA Input'!J3053=\"Yes\",'TSA Input'!J3053=\"Contingent\"),'TSA Input'!F3053,\"\"))","v":""},"","Required","Required"]
["",null,{"$f":"IF('TSA Input'!J3054=\"\",\"\",IF(OR('TSA Input'!J3054=\"Yes\",'TSA Input'!J3054=\"Contingent\"),'TSA Input'!B3054,\"Ineligible\"))","v":""},{"$f":"IF('TSA Input'!J3054=\"\",\"\",IF(OR('TSA Input'!J3054=\"Yes\",'TSA Input'!J3054=\"Contingent\"),'TSA Input'!I3054,\"\"))","v":""},{"$f":"IF('TSA Input'!J3054=\"\",\"\",IF(OR('TSA Input'!J3054=\"Yes\",'TSA Input'!J3054=\"Contingent\"),'TSA Input'!C3054,\"\"))","v":""},{"$f":"IF('TSA Input'!J3054=\"\",\"\",IF(OR('TSA Input'!J3054=\"Yes\",'TSA Input'!J3054=\"Contingent\"),'TSA Input'!D3054,\"\"))","v":""},{"$f":"IF('TSA Input'!J3054=\"\",\"\",IF(OR('TSA Input'!J3054=\"Yes\",'TSA Input'!J3054=\"Contingent\"),'TSA Input'!G3054,\"\"))","v":""},{"$f":"IF('TSA Input'!J3054=\"\",\"\",IF(OR('TSA Input'!J3054=\"Yes\",'TSA Input'!J3054=\"Contingent\"),'TSA Input'!F3054,\"\"))","v":""},"",{"$f":"IF('TSA Input'!J3054=\"\",\"\",IF(OR('TSA Input'!J3054=\"Yes\",'TSA Input'!J3054=\"Contingent\"),'TSA Input'!D3054,\"\"))","v":""},{"$f":"IF('TSA Input'!J3054=\"\",\"\",IF(OR('TSA Input'!J3054=\"Yes\",'TSA Input'!J3054=\"Contingent\"),'TSA Input'!G3054,\"\"))","v":""},{"$f":"IF('TSA Input'!J3054=\"\",\"\",IF(OR('TSA Input'!J3054=\"Yes\",'TSA Input'!J3054=\"Contingent\"),'TSA Input'!F3054,\"\"))","v":""},"","Required","Required"]
["",null,{"$f":"IF('TSA Input'!J3055=\"\",\"\",IF(OR('TSA Input'!J3055=\"Yes\",'TSA Input'!J3055=\"Contingent\"),'TSA Input'!B3055,\"Ineligible\"))","v":""},{"$f":"IF('TSA Input'!J3055=\"\",\"\",IF(OR('TSA Input'!J3055=\"Yes\",'TSA Input'!J3055=\"Contingent\"),'TSA Input'!I3055,\"\"))","v":""},{"$f":"IF('TSA Input'!J3055=\"\",\"\",IF(OR('TSA Input'!J3055=\"Yes\",'TSA Input'!J3055=\"Contingent\"),'TSA Input'!C3055,\"\"))","v":""},{"$f":"IF('TSA Input'!J3055=\"\",\"\",IF(OR('TSA Input'!J3055=\"Yes\",'TSA Input'!J3055=\"Contingent\"),'TSA Input'!D3055,\"\"))","v":""},{"$f":"IF('TSA Input'!J3055=\"\",\"\",IF(OR('TSA Input'!J3055=\"Yes\",'TSA Input'!J3055=\"Contingent\"),'TSA Input'!G3055,\"\"))","v":""},{"$f":"IF('TSA Input'!J3055=\"\",\"\",IF(OR('TSA Input'!J3055=\"Yes\",'TSA Input'!J3055=\"Contingent\"),'TSA Input'!F3055,\"\"))","v":""},"",{"$f":"IF('TSA Input'!J3055=\"\",\"\",IF(OR('TSA Input'!J3055=\"Yes\",'TSA Input'!J3055=\"Contingent\"),'TSA Input'!D3055,\"\"))","v":""},{"$f":"IF('TSA Input'!J3055=\"\",\"\",IF(OR('TSA Input'!J3055=\"Yes\",'TSA Input'!J3055=\"Contingent\"),'TSA Input'!G3055,\"\"))","v":""},{"$f":"IF('TSA Input'!J3055=\"\",\"\",IF(OR('TSA Input'!J3055=\"Yes\",'TSA Input'!J3055=\"Contingent\"),'TSA Input'!F3055,\"\"))","v":""},"","Required","Required"]
["",null,{"$f":"IF('TSA Input'!J3056=\"\",\"\",IF(OR('TSA Input'!J3056=\"Yes\",'TSA Input'!J3056=\"Contingent\"),'TSA Input'!B3056,\"Ineligible\"))","v":""},{"$f":"IF('TSA Input'!J3056=\"\",\"\",IF(OR('TSA Input'!J3056=\"Yes\",'TSA Input'!J3056=\"Contingent\"),'TSA Input'!I3056,\"\"))","v":""},{"$f":"IF('TSA Input'!J3056=\"\",\"\",IF(OR('TSA Input'!J3056=\"Yes\",'TSA Input'!J3056=\"Contingent\"),'TSA Input'!C3056,\"\"))","v":""},{"$f":"IF('TSA Input'!J3056=\"\",\"\",IF(OR('TSA Input'!J3056=\"Yes\",'TSA Input'!J3056=\"Contingent\"),'TSA Input'!D3056,\"\"))","v":""},{"$f":"IF('TSA Input'!J3056=\"\",\"\",IF(OR('TSA Input'!J3056=\"Yes\",'TSA Input'!J3056=\"Contingent\"),'TSA Input'!G3056,\"\"))","v":""},{"$f":"IF('TSA Input'!J3056=\"\",\"\",IF(OR('TSA Input'!J3056=\"Yes\",'TSA Input'!J3056=\"Contingent\"),'TSA Input'!F3056,\"\"))","v":""},"",{"$f":"IF('TSA Input'!J3056=\"\",\"\",IF(OR('TSA Input'!J3056=\"Yes\",'TSA Input'!J3056=\"Contingent\"),'TSA Input'!D3056,\"\"))","v":""},{"$f":"IF('TSA Input'!J3056=\"\",\"\",IF(OR('TSA Input'!J3056=\"Yes\",'TSA Input'!J3056=\"Contingent\"),'TSA Input'!G3056,\"\"))","v":""},{"$f":"IF('TSA Input'!J3056=\"\",\"\",IF(OR('TSA Input'!J3056=\"Yes\",'TSA Input'!J3056=\"Contingent\"),'TSA Input'!F3056,\"\"))","v":""},"","Required","Required"]
["",null,{"$f":"IF('TSA Input'!J3057=\"\",\"\",IF(OR('TSA Input'!J3057=\"Yes\",'TSA Input'!J3057=\"Contingent\"),'TSA Input'!B3057,\"Ineligible\"))","v":""},{"$f":"IF('TSA Input'!J3057=\"\",\"\",IF(OR('TSA Input'!J3057=\"Yes\",'TSA Input'!J3057=\"Contingent\"),'TSA Input'!I3057,\"\"))","v":""},{"$f":"IF('TSA Input'!J3057=\"\",\"\",IF(OR('TSA Input'!J3057=\"Yes\",'TSA Input'!J3057=\"Contingent\"),'TSA Input'!C3057,\"\"))","v":""},{"$f":"IF('TSA Input'!J3057=\"\",\"\",IF(OR('TSA Input'!J3057=\"Yes\",'TSA Input'!J3057=\"Contingent\"),'TSA Input'!D3057,\"\"))","v":""},{"$f":"IF('TSA Input'!J3057=\"\",\"\",IF(OR('TSA Input'!J3057=\"Yes\",'TSA Input'!J3057=\"Contingent\"),'TSA Input'!G3057,\"\"))","v":""},{"$f":"IF('TSA Input'!J3057=\"\",\"\",IF(OR('TSA Input'!J3057=\"Yes\",'TSA Input'!J3057=\"Contingent\"),'TSA Input'!F3057,\"\"))","v":""},"",{"$f":"IF('TSA Input'!J3057=\"\",\"\",IF(OR('TSA Input'!J3057=\"Yes\",'TSA Input'!J3057=\"Contingent\"),'TSA Input'!D3057,\"\"))","v":""},{"$f":"IF('TSA Input'!J3057=\"\",\"\",IF(OR('TSA Input'!J3057=\"Yes\",'TSA Input'!J3057=\"Contingent\"),'TSA Input'!G3057,\"\"))","v":""},{"$f":"IF('TSA Input'!J3057=\"\",\"\",IF(OR('TSA Input'!J3057=\"Yes\",'TSA Input'!J3057=\"Contingent\"),'TSA Input'!F3057,\"\"))","v":""},"","Required","Required"]
["",null,{"$f":"IF('TSA Input'!J3058=\"\",\"\",IF(OR('TSA Input'!J3058=\"Yes\",'TSA Input'!J3058=\"Contingent\"),'TSA Input'!B3058,\"Ineligible\"))","v":""},{"$f":"IF('TSA Input'!J3058=\"\",\"\",IF(OR('TSA Input'!J3058=\"Yes\",'TSA Input'!J3058=\"Contingent\"),'TSA Input'!I3058,\"\"))","v":""},{"$f":"IF('TSA Input'!J3058=\"\",\"\",IF(OR('TSA Input'!J3058=\"Yes\",'TSA Input'!J3058=\"Contingent\"),'TSA Input'!C3058,\"\"))","v":""},{"$f":"IF('TSA Input'!J3058=\"\",\"\",IF(OR('TSA Input'!J3058=\"Yes\",'TSA Input'!J3058=\"Contingent\"),'TSA Input'!D3058,\"\"))","v":""},{"$f":"IF('TSA Input'!J3058=\"\",\"\",IF(OR('TSA Input'!J3058=\"Yes\",'TSA Input'!J3058=\"Contingent\"),'TSA Input'!G3058,\"\"))","v":""},{"$f":"IF('TSA Input'!J3058=\"\",\"\",IF(OR('TSA Input'!J3058=\"Yes\",'TSA Input'!J3058=\"Contingent\"),'TSA Input'!F3058,\"\"))","v":""},"",{"$f":"IF('TSA Input'!J3058=\"\",\"\",IF(OR('TSA Input'!J3058=\"Yes\",'TSA Input'!J3058=\"Contingent\"),'TSA Input'!D3058,\"\"))","v":""},{"$f":"IF('TSA Input'!J3058=\"\",\"\",IF(OR('TSA Input'!J3058=\"Yes\",'TSA Input'!J3058=\"Contingent\"),'TSA Input'!G3058,\"\"))","v":""},{"$f":"IF('TSA Input'!J3058=\"\",\"\",IF(OR('TSA Input'!J3058=\"Yes\",'TSA Input'!J3058=\"Contingent\"),'TSA Input'!F3058,\"\"))","v":""},"","Required","Required"]
["",null,{"$f":"IF('TSA Input'!J3059=\"\",\"\",IF(OR('TSA Input'!J3059=\"Yes\",'TSA Input'!J3059=\"Contingent\"),'TSA Input'!B3059,\"Ineligible\"))","v":""},{"$f":"IF('TSA Input'!J3059=\"\",\"\",IF(OR('TSA Input'!J3059=\"Yes\",'TSA Input'!J3059=\"Contingent\"),'TSA Input'!I3059,\"\"))","v":""},{"$f":"IF('TSA Input'!J3059=\"\",\"\",IF(OR('TSA Input'!J3059=\"Yes\",'TSA Input'!J3059=\"Contingent\"),'TSA Input'!C3059,\"\"))","v":""},{"$f":"IF('TSA Input'!J3059=\"\",\"\",IF(OR('TSA Input'!J3059=\"Yes\",'TSA Input'!J3059=\"Contingent\"),'TSA Input'!D3059,\"\"))","v":""},{"$f":"IF('TSA Input'!J3059=\"\",\"\",IF(OR('TSA Input'!J3059=\"Yes\",'TSA Input'!J3059=\"Contingent\"),'TSA Input'!G3059,\"\"))","v":""},{"$f":"IF('TSA Input'!J3059=\"\",\"\",IF(OR('TSA Input'!J3059=\"Yes\",'TSA Input'!J3059=\"Contingent\"),'TSA Input'!F3059,\"\"))","v":""},"",{"$f":"IF('TSA Input'!J3059=\"\",\"\",IF(OR('TSA Input'!J3059=\"Yes\",'TSA Input'!J3059=\"Contingent\"),'TSA Input'!D3059,\"\"))","v":""},{"$f":"IF('TSA Input'!J3059=\"\",\"\",IF(OR('TSA Input'!J3059=\"Yes\",'TSA Input'!J3059=\"Contingent\"),'TSA Input'!G3059,\"\"))","v":""},{"$f":"IF('TSA Input'!J3059=\"\",\"\",IF(OR('TSA Input'!J3059=\"Yes\",'TSA Input'!J3059=\"Contingent\"),'TSA Input'!F3059,\"\"))","v":""},"","Required","Required"]
["",null,{"$f":"IF('TSA Input'!J3060=\"\",\"\",IF(OR('TSA Input'!J3060=\"Yes\",'TSA Input'!J3060=\"Contingent\"),'TSA Input'!B3060,\"Ineligible\"))","v":""},{"$f":"IF('TSA Input'!J3060=\"\",\"\",IF(OR('TSA Input'!J3060=\"Yes\",'TSA Input'!J3060=\"Contingent\"),'TSA Input'!I3060,\"\"))","v":""},{"$f":"IF('TSA Input'!J3060=\"\",\"\",IF(OR('TSA Input'!J3060=\"Yes\",'TSA Input'!J3060=\"Contingent\"),'TSA Input'!C3060,\"\"))","v":""},{"$f":"IF('TSA Input'!J3060=\"\",\"\",IF(OR('TSA Input'!J3060=\"Yes\",'TSA Input'!J3060=\"Contingent\"),'TSA Input'!D3060,\"\"))","v":""},{"$f":"IF('TSA Input'!J3060=\"\",\"\",IF(OR('TSA Input'!J3060=\"Yes\",'TSA Input'!J3060=\"Contingent\"),'TSA Input'!G3060,\"\"))","v":""},{"$f":"IF('TSA Input'!J3060=\"\",\"\",IF(OR('TSA Input'!J3060=\"Yes\",'TSA Input'!J3060=\"Contingent\"),'TSA Input'!F3060,\"\"))","v":""},"",{"$f":"IF('TSA Input'!J3060=\"\",\"\",IF(OR('TSA Input'!J3060=\"Yes\",'TSA Input'!J3060=\"Contingent\"),'TSA Input'!D3060,\"\"))","v":""},{"$f":"IF('TSA Input'!J3060=\"\",\"\",IF(OR('TSA Input'!J3060=\"Yes\",'TSA Input'!J3060=\"Contingent\"),'TSA Input'!G3060,\"\"))","v":""},{"$f":"IF('TSA Input'!J3060=\"\",\"\",IF(OR('TSA Input'!J3060=\"Yes\",'TSA Input'!J3060=\"Contingent\"),'TSA Input'!F3060,\"\"))","v":""},"","Required","Required"]
["",null,{"$f":"IF('TSA Input'!J3061=\"\",\"\",IF(OR('TSA Input'!J3061=\"Yes\",'TSA Input'!J3061=\"Contingent\"),'TSA Input'!B3061,\"Ineligible\"))","v":""},{"$f":"IF('TSA Input'!J3061=\"\",\"\",IF(OR('TSA Input'!J3061=\"Yes\",'TSA Input'!J3061=\"Contingent\"),'TSA Input'!I3061,\"\"))","v":""},{"$f":"IF('TSA Input'!J3061=\"\",\"\",IF(OR('TSA Input'!J3061=\"Yes\",'TSA Input'!J3061=\"Contingent\"),'TSA Input'!C3061,\"\"))","v":""},{"$f":"IF('TSA Input'!J3061=\"\",\"\",IF(OR('TSA Input'!J3061=\"Yes\",'TSA Input'!J3061=\"Contingent\"),'TSA Input'!D3061,\"\"))","v":""},{"$f":"IF('TSA Input'!J3061=\"\",\"\",IF(OR('TSA Input'!J3061=\"Yes\",'TSA Input'!J3061=\"Contingent\"),'TSA Input'!G3061,\"\"))","v":""},{"$f":"IF('TSA Input'!J3061=\"\",\"\",IF(OR('TSA Input'!J3061=\"Yes\",'TSA Input'!J3061=\"Contingent\"),'TSA Input'!F3061,\"\"))","v":""},"",{"$f":"IF('TSA Input'!J3061=\"\",\"\",IF(OR('TSA Input'!J3061=\"Yes\",'TSA Input'!J3061=\"Contingent\"),'TSA Input'!D3061,\"\"))","v":""},{"$f":"IF('TSA Input'!J3061=\"\",\"\",IF(OR('TSA Input'!J3061=\"Yes\",'TSA Input'!J3061=\"Contingent\"),'TSA Input'!G3061,\"\"))","v":""},{"$f":"IF('TSA Input'!J3061=\"\",\"\",IF(OR('TSA Input'!J3061=\"Yes\",'TSA Input'!J3061=\"Contingent\"),'TSA Input'!F3061,\"\"))","v":""},"","Required","Required"]
["",null,{"$f":"IF('TSA Input'!J3062=\"\",\"\",IF(OR('TSA Input'!J3062=\"Yes\",'TSA Input'!J3062=\"Contingent\"),'TSA Input'!B3062,\"Ineligible\"))","v":""},{"$f":"IF('TSA Input'!J3062=\"\",\"\",IF(OR('TSA Input'!J3062=\"Yes\",'TSA Input'!J3062=\"Contingent\"),'TSA Input'!I3062,\"\"))","v":""},{"$f":"IF('TSA Input'!J3062=\"\",\"\",IF(OR('TSA Input'!J3062=\"Yes\",'TSA Input'!J3062=\"Contingent\"),'TSA Input'!C3062,\"\"))","v":""},{"$f":"IF('TSA Input'!J3062=\"\",\"\",IF(OR('TSA Input'!J3062=\"Yes\",'TSA Input'!J3062=\"Contingent\"),'TSA Input'!D3062,\"\"))","v":""},{"$f":"IF('TSA Input'!J3062=\"\",\"\",IF(OR('TSA Input'!J3062=\"Yes\",'TSA Input'!J3062=\"Contingent\"),'TSA Input'!G3062,\"\"))","v":""},{"$f":"IF('TSA Input'!J3062=\"\",\"\",IF(OR('TSA Input'!J3062=\"Yes\",'TSA Input'!J3062=\"Contingent\"),'TSA Input'!F3062,\"\"))","v":""},"",{"$f":"IF('TSA Input'!J3062=\"\",\"\",IF(OR('TSA Input'!J3062=\"Yes\",'TSA Input'!J3062=\"Contingent\"),'TSA Input'!D3062,\"\"))","v":""},{"$f":"IF('TSA Input'!J3062=\"\",\"\",IF(OR('TSA Input'!J3062=\"Yes\",'TSA Input'!J3062=\"Contingent\"),'TSA Input'!G3062,\"\"))","v":""},{"$f":"IF('TSA Input'!J3062=\"\",\"\",IF(OR('TSA Input'!J3062=\"Yes\",'TSA Input'!J3062=\"Contingent\"),'TSA Input'!F3062,\"\"))","v":""},"","Required","Required"]
["",null,{"$f":"IF('TSA Input'!J3063=\"\",\"\",IF(OR('TSA Input'!J3063=\"Yes\",'TSA Input'!J3063=\"Contingent\"),'TSA Input'!B3063,\"Ineligible\"))","v":""},{"$f":"IF('TSA Input'!J3063=\"\",\"\",IF(OR('TSA Input'!J3063=\"Yes\",'TSA Input'!J3063=\"Contingent\"),'TSA Input'!I3063,\"\"))","v":""},{"$f":"IF('TSA Input'!J3063=\"\",\"\",IF(OR('TSA Input'!J3063=\"Yes\",'TSA Input'!J3063=\"Contingent\"),'TSA Input'!C3063,\"\"))","v":""},{"$f":"IF('TSA Input'!J3063=\"\",\"\",IF(OR('TSA Input'!J3063=\"Yes\",'TSA Input'!J3063=\"Contingent\"),'TSA Input'!D3063,\"\"))","v":""},{"$f":"IF('TSA Input'!J3063=\"\",\"\",IF(OR('TSA Input'!J3063=\"Yes\",'TSA Input'!J3063=\"Contingent\"),'TSA Input'!G3063,\"\"))","v":""},{"$f":"IF('TSA Input'!J3063=\"\",\"\",IF(OR('TSA Input'!J3063=\"Yes\",'TSA Input'!J3063=\"Contingent\"),'TSA Input'!F3063,\"\"))","v":""},"",{"$f":"IF('TSA Input'!J3063=\"\",\"\",IF(OR('TSA Input'!J3063=\"Yes\",'TSA Input'!J3063=\"Contingent\"),'TSA Input'!D3063,\"\"))","v":""},{"$f":"IF('TSA Input'!J3063=\"\",\"\",IF(OR('TSA Input'!J3063=\"Yes\",'TSA Input'!J3063=\"Contingent\"),'TSA Input'!G3063,\"\"))","v":""},{"$f":"IF('TSA Input'!J3063=\"\",\"\",IF(OR('TSA Input'!J3063=\"Yes\",'TSA Input'!J3063=\"Contingent\"),'TSA Input'!F3063,\"\"))","v":""},"","Required","Required"]
["",null,{"$f":"IF('TSA Input'!J3064=\"\",\"\",IF(OR('TSA Input'!J3064=\"Yes\",'TSA Input'!J3064=\"Contingent\"),'TSA Input'!B3064,\"Ineligible\"))","v":""},{"$f":"IF('TSA Input'!J3064=\"\",\"\",IF(OR('TSA Input'!J3064=\"Yes\",'TSA Input'!J3064=\"Contingent\"),'TSA Input'!I3064,\"\"))","v":""},{"$f":"IF('TSA Input'!J3064=\"\",\"\",IF(OR('TSA Input'!J3064=\"Yes\",'TSA Input'!J3064=\"Contingent\"),'TSA Input'!C3064,\"\"))","v":""},{"$f":"IF('TSA Input'!J3064=\"\",\"\",IF(OR('TSA Input'!J3064=\"Yes\",'TSA Input'!J3064=\"Contingent\"),'TSA Input'!D3064,\"\"))","v":""},{"$f":"IF('TSA Input'!J3064=\"\",\"\",IF(OR('TSA Input'!J3064=\"Yes\",'TSA Input'!J3064=\"Contingent\"),'TSA Input'!G3064,\"\"))","v":""},{"$f":"IF('TSA Input'!J3064=\"\",\"\",IF(OR('TSA Input'!J3064=\"Yes\",'TSA Input'!J3064=\"Contingent\"),'TSA Input'!F3064,\"\"))","v":""},"",{"$f":"IF('TSA Input'!J3064=\"\",\"\",IF(OR('TSA Input'!J3064=\"Yes\",'TSA Input'!J3064=\"Contingent\"),'TSA Input'!D3064,\"\"))","v":""},{"$f":"IF('TSA Input'!J3064=\"\",\"\",IF(OR('TSA Input'!J3064=\"Yes\",'TSA Input'!J3064=\"Contingent\"),'TSA Input'!G3064,\"\"))","v":""},{"$f":"IF('TSA Input'!J3064=\"\",\"\",IF(OR('TSA Input'!J3064=\"Yes\",'TSA Input'!J3064=\"Contingent\"),'TSA Input'!F3064,\"\"))","v":""},"","Required","Required"]
["",null,{"$f":"IF('TSA Input'!J3065=\"\",\"\",IF(OR('TSA Input'!J3065=\"Yes\",'TSA Input'!J3065=\"Contingent\"),'TSA Input'!B3065,\"Ineligible\"))","v":""},{"$f":"IF('TSA Input'!J3065=\"\",\"\",IF(OR('TSA Input'!J3065=\"Yes\",'TSA Input'!J3065=\"Contingent\"),'TSA Input'!I3065,\"\"))","v":""},{"$f":"IF('TSA Input'!J3065=\"\",\"\",IF(OR('TSA Input'!J3065=\"Yes\",'TSA Input'!J3065=\"Contingent\"),'TSA Input'!C3065,\"\"))","v":""},{"$f":"IF('TSA Input'!J3065=\"\",\"\",IF(OR('TSA Input'!J3065=\"Yes\",'TSA Input'!J3065=\"Contingent\"),'TSA Input'!D3065,\"\"))","v":""},{"$f":"IF('TSA Input'!J3065=\"\",\"\",IF(OR('TSA Input'!J3065=\"Yes\",'TSA Input'!J3065=\"Contingent\"),'TSA Input'!G3065,\"\"))","v":""},{"$f":"IF('TSA Input'!J3065=\"\",\"\",IF(OR('TSA Input'!J3065=\"Yes\",'TSA Input'!J3065=\"Contingent\"),'TSA Input'!F3065,\"\"))","v":""},"",{"$f":"IF('TSA Input'!J3065=\"\",\"\",IF(OR('TSA Input'!J3065=\"Yes\",'TSA Input'!J3065=\"Contingent\"),'TSA Input'!D3065,\"\"))","v":""},{"$f":"IF('TSA Input'!J3065=\"\",\"\",IF(OR('TSA Input'!J3065=\"Yes\",'TSA Input'!J3065=\"Contingent\"),'TSA Input'!G3065,\"\"))","v":""},{"$f":"IF('TSA Input'!J3065=\"\",\"\",IF(OR('TSA Input'!J3065=\"Yes\",'TSA Input'!J3065=\"Contingent\"),'TSA Input'!F3065,\"\"))","v":""},"","Required","Required"]
["",null,{"$f":"IF('TSA Input'!J3066=\"\",\"\",IF(OR('TSA Input'!J3066=\"Yes\",'TSA Input'!J3066=\"Contingent\"),'TSA Input'!B3066,\"Ineligible\"))","v":""},{"$f":"IF('TSA Input'!J3066=\"\",\"\",IF(OR('TSA Input'!J3066=\"Yes\",'TSA Input'!J3066=\"Contingent\"),'TSA Input'!I3066,\"\"))","v":""},{"$f":"IF('TSA Input'!J3066=\"\",\"\",IF(OR('TSA Input'!J3066=\"Yes\",'TSA Input'!J3066=\"Contingent\"),'TSA Input'!C3066,\"\"))","v":""},{"$f":"IF('TSA Input'!J3066=\"\",\"\",IF(OR('TSA Input'!J3066=\"Yes\",'TSA Input'!J3066=\"Contingent\"),'TSA Input'!D3066,\"\"))","v":""},{"$f":"IF('TSA Input'!J3066=\"\",\"\",IF(OR('TSA Input'!J3066=\"Yes\",'TSA Input'!J3066=\"Contingent\"),'TSA Input'!G3066,\"\"))","v":""},{"$f":"IF('TSA Input'!J3066=\"\",\"\",IF(OR('TSA Input'!J3066=\"Yes\",'TSA Input'!J3066=\"Contingent\"),'TSA Input'!F3066,\"\"))","v":""},"",{"$f":"IF('TSA Input'!J3066=\"\",\"\",IF(OR('TSA Input'!J3066=\"Yes\",'TSA Input'!J3066=\"Contingent\"),'TSA Input'!D3066,\"\"))","v":""},{"$f":"IF('TSA Input'!J3066=\"\",\"\",IF(OR('TSA Input'!J3066=\"Yes\",'TSA Input'!J3066=\"Contingent\"),'TSA Input'!G3066,\"\"))","v":""},{"$f":"IF('TSA Input'!J3066=\"\",\"\",IF(OR('TSA Input'!J3066=\"Yes\",'TSA Input'!J3066=\"Contingent\"),'TSA Input'!F3066,\"\"))","v":""},"","Required","Required"]
["",null,{"$f":"IF('TSA Input'!J3067=\"\",\"\",IF(OR('TSA Input'!J3067=\"Yes\",'TSA Input'!J3067=\"Contingent\"),'TSA Input'!B3067,\"Ineligible\"))","v":""},{"$f":"IF('TSA Input'!J3067=\"\",\"\",IF(OR('TSA Input'!J3067=\"Yes\",'TSA Input'!J3067=\"Contingent\"),'TSA Input'!I3067,\"\"))","v":""},{"$f":"IF('TSA Input'!J3067=\"\",\"\",IF(OR('TSA Input'!J3067=\"Yes\",'TSA Input'!J3067=\"Contingent\"),'TSA Input'!C3067,\"\"))","v":""},{"$f":"IF('TSA Input'!J3067=\"\",\"\",IF(OR('TSA Input'!J3067=\"Yes\",'TSA Input'!J3067=\"Contingent\"),'TSA Input'!D3067,\"\"))","v":""},{"$f":"IF('TSA Input'!J3067=\"\",\"\",IF(OR('TSA Input'!J3067=\"Yes\",'TSA Input'!J3067=\"Contingent\"),'TSA Input'!G3067,\"\"))","v":""},{"$f":"IF('TSA Input'!J3067=\"\",\"\",IF(OR('TSA Input'!J3067=\"Yes\",'TSA Input'!J3067=\"Contingent\"),'TSA Input'!F3067,\"\"))","v":""},"",{"$f":"IF('TSA Input'!J3067=\"\",\"\",IF(OR('TSA Input'!J3067=\"Yes\",'TSA Input'!J3067=\"Contingent\"),'TSA Input'!D3067,\"\"))","v":""},{"$f":"IF('TSA Input'!J3067=\"\",\"\",IF(OR('TSA Input'!J3067=\"Yes\",'TSA Input'!J3067=\"Contingent\"),'TSA Input'!G3067,\"\"))","v":""},{"$f":"IF('TSA Input'!J3067=\"\",\"\",IF(OR('TSA Input'!J3067=\"Yes\",'TSA Input'!J3067=\"Contingent\"),'TSA Input'!F3067,\"\"))","v":""},"","Required","Required"]
["",null,{"$f":"IF('TSA Input'!J3068=\"\",\"\",IF(OR('TSA Input'!J3068=\"Yes\",'TSA Input'!J3068=\"Contingent\"),'TSA Input'!B3068,\"Ineligible\"))","v":""},{"$f":"IF('TSA Input'!J3068=\"\",\"\",IF(OR('TSA Input'!J3068=\"Yes\",'TSA Input'!J3068=\"Contingent\"),'TSA Input'!I3068,\"\"))","v":""},{"$f":"IF('TSA Input'!J3068=\"\",\"\",IF(OR('TSA Input'!J3068=\"Yes\",'TSA Input'!J3068=\"Contingent\"),'TSA Input'!C3068,\"\"))","v":""},{"$f":"IF('TSA Input'!J3068=\"\",\"\",IF(OR('TSA Input'!J3068=\"Yes\",'TSA Input'!J3068=\"Contingent\"),'TSA Input'!D3068,\"\"))","v":""},{"$f":"IF('TSA Input'!J3068=\"\",\"\",IF(OR('TSA Input'!J3068=\"Yes\",'TSA Input'!J3068=\"Contingent\"),'TSA Input'!G3068,\"\"))","v":""},{"$f":"IF('TSA Input'!J3068=\"\",\"\",IF(OR('TSA Input'!J3068=\"Yes\",'TSA Input'!J3068=\"Contingent\"),'TSA Input'!F3068,\"\"))","v":""},"",{"$f":"IF('TSA Input'!J3068=\"\",\"\",IF(OR('TSA Input'!J3068=\"Yes\",'TSA Input'!J3068=\"Contingent\"),'TSA Input'!D3068,\"\"))","v":""},{"$f":"IF('TSA Input'!J3068=\"\",\"\",IF(OR('TSA Input'!J3068=\"Yes\",'TSA Input'!J3068=\"Contingent\"),'TSA Input'!G3068,\"\"))","v":""},{"$f":"IF('TSA Input'!J3068=\"\",\"\",IF(OR('TSA Input'!J3068=\"Yes\",'TSA Input'!J3068=\"Contingent\"),'TSA Input'!F3068,\"\"))","v":""},"","Required","Required"]
["",null,{"$f":"IF('TSA Input'!J3069=\"\",\"\",IF(OR('TSA Input'!J3069=\"Yes\",'TSA Input'!J3069=\"Contingent\"),'TSA Input'!B3069,\"Ineligible\"))","v":""},{"$f":"IF('TSA Input'!J3069=\"\",\"\",IF(OR('TSA Input'!J3069=\"Yes\",'TSA Input'!J3069=\"Contingent\"),'TSA Input'!I3069,\"\"))","v":""},{"$f":"IF('TSA Input'!J3069=\"\",\"\",IF(OR('TSA Input'!J3069=\"Yes\",'TSA Input'!J3069=\"Contingent\"),'TSA Input'!C3069,\"\"))","v":""},{"$f":"IF('TSA Input'!J3069=\"\",\"\",IF(OR('TSA Input'!J3069=\"Yes\",'TSA Input'!J3069=\"Contingent\"),'TSA Input'!D3069,\"\"))","v":""},{"$f":"IF('TSA Input'!J3069=\"\",\"\",IF(OR('TSA Input'!J3069=\"Yes\",'TSA Input'!J3069=\"Contingent\"),'TSA Input'!G3069,\"\"))","v":""},{"$f":"IF('TSA Input'!J3069=\"\",\"\",IF(OR('TSA Input'!J3069=\"Yes\",'TSA Input'!J3069=\"Contingent\"),'TSA Input'!F3069,\"\"))","v":""},"",{"$f":"IF('TSA Input'!J3069=\"\",\"\",IF(OR('TSA Input'!J3069=\"Yes\",'TSA Input'!J3069=\"Contingent\"),'TSA Input'!D3069,\"\"))","v":""},{"$f":"IF('TSA Input'!J3069=\"\",\"\",IF(OR('TSA Input'!J3069=\"Yes\",'TSA Input'!J3069=\"Contingent\"),'TSA Input'!G3069,\"\"))","v":""},{"$f":"IF('TSA Input'!J3069=\"\",\"\",IF(OR('TSA Input'!J3069=\"Yes\",'TSA Input'!J3069=\"Contingent\"),'TSA Input'!F3069,\"\"))","v":""},"","Required","Required"]
["",null,{"$f":"IF('TSA Input'!J3070=\"\",\"\",IF(OR('TSA Input'!J3070=\"Yes\",'TSA Input'!J3070=\"Contingent\"),'TSA Input'!B3070,\"Ineligible\"))","v":""},{"$f":"IF('TSA Input'!J3070=\"\",\"\",IF(OR('TSA Input'!J3070=\"Yes\",'TSA Input'!J3070=\"Contingent\"),'TSA Input'!I3070,\"\"))","v":""},{"$f":"IF('TSA Input'!J3070=\"\",\"\",IF(OR('TSA Input'!J3070=\"Yes\",'TSA Input'!J3070=\"Contingent\"),'TSA Input'!C3070,\"\"))","v":""},{"$f":"IF('TSA Input'!J3070=\"\",\"\",IF(OR('TSA Input'!J3070=\"Yes\",'TSA Input'!J3070=\"Contingent\"),'TSA Input'!D3070,\"\"))","v":""},{"$f":"IF('TSA Input'!J3070=\"\",\"\",IF(OR('TSA Input'!J3070=\"Yes\",'TSA Input'!J3070=\"Contingent\"),'TSA Input'!G3070,\"\"))","v":""},{"$f":"IF('TSA Input'!J3070=\"\",\"\",IF(OR('TSA Input'!J3070=\"Yes\",'TSA Input'!J3070=\"Contingent\"),'TSA Input'!F3070,\"\"))","v":""},"",{"$f":"IF('TSA Input'!J3070=\"\",\"\",IF(OR('TSA Input'!J3070=\"Yes\",'TSA Input'!J3070=\"Contingent\"),'TSA Input'!D3070,\"\"))","v":""},{"$f":"IF('TSA Input'!J3070=\"\",\"\",IF(OR('TSA Input'!J3070=\"Yes\",'TSA Input'!J3070=\"Contingent\"),'TSA Input'!G3070,\"\"))","v":""},{"$f":"IF('TSA Input'!J3070=\"\",\"\",IF(OR('TSA Input'!J3070=\"Yes\",'TSA Input'!J3070=\"Contingent\"),'TSA Input'!F3070,\"\"))","v":""},"","Required","Required"]
["",null,{"$f":"IF('TSA Input'!J3071=\"\",\"\",IF(OR('TSA Input'!J3071=\"Yes\",'TSA Input'!J3071=\"Contingent\"),'TSA Input'!B3071,\"Ineligible\"))","v":""},{"$f":"IF('TSA Input'!J3071=\"\",\"\",IF(OR('TSA Input'!J3071=\"Yes\",'TSA Input'!J3071=\"Contingent\"),'TSA Input'!I3071,\"\"))","v":""},{"$f":"IF('TSA Input'!J3071=\"\",\"\",IF(OR('TSA Input'!J3071=\"Yes\",'TSA Input'!J3071=\"Contingent\"),'TSA Input'!C3071,\"\"))","v":""},{"$f":"IF('TSA Input'!J3071=\"\",\"\",IF(OR('TSA Input'!J3071=\"Yes\",'TSA Input'!J3071=\"Contingent\"),'TSA Input'!D3071,\"\"))","v":""},{"$f":"IF('TSA Input'!J3071=\"\",\"\",IF(OR('TSA Input'!J3071=\"Yes\",'TSA Input'!J3071=\"Contingent\"),'TSA Input'!G3071,\"\"))","v":""},{"$f":"IF('TSA Input'!J3071=\"\",\"\",IF(OR('TSA Input'!J3071=\"Yes\",'TSA Input'!J3071=\"Contingent\"),'TSA Input'!F3071,\"\"))","v":""},"",{"$f":"IF('TSA Input'!J3071=\"\",\"\",IF(OR('TSA Input'!J3071=\"Yes\",'TSA Input'!J3071=\"Contingent\"),'TSA Input'!D3071,\"\"))","v":""},{"$f":"IF('TSA Input'!J3071=\"\",\"\",IF(OR('TSA Input'!J3071=\"Yes\",'TSA Input'!J3071=\"Contingent\"),'TSA Input'!G3071,\"\"))","v":""},{"$f":"IF('TSA Input'!J3071=\"\",\"\",IF(OR('TSA Input'!J3071=\"Yes\",'TSA Input'!J3071=\"Contingent\"),'TSA Input'!F3071,\"\"))","v":""},"","Required","Required"]
["",null,{"$f":"IF('TSA Input'!J3072=\"\",\"\",IF(OR('TSA Input'!J3072=\"Yes\",'TSA Input'!J3072=\"Contingent\"),'TSA Input'!B3072,\"Ineligible\"))","v":""},{"$f":"IF('TSA Input'!J3072=\"\",\"\",IF(OR('TSA Input'!J3072=\"Yes\",'TSA Input'!J3072=\"Contingent\"),'TSA Input'!I3072,\"\"))","v":""},{"$f":"IF('TSA Input'!J3072=\"\",\"\",IF(OR('TSA Input'!J3072=\"Yes\",'TSA Input'!J3072=\"Contingent\"),'TSA Input'!C3072,\"\"))","v":""},{"$f":"IF('TSA Input'!J3072=\"\",\"\",IF(OR('TSA Input'!J3072=\"Yes\",'TSA Input'!J3072=\"Contingent\"),'TSA Input'!D3072,\"\"))","v":""},{"$f":"IF('TSA Input'!J3072=\"\",\"\",IF(OR('TSA Input'!J3072=\"Yes\",'TSA Input'!J3072=\"Contingent\"),'TSA Input'!G3072,\"\"))","v":""},{"$f":"IF('TSA Input'!J3072=\"\",\"\",IF(OR('TSA Input'!J3072=\"Yes\",'TSA Input'!J3072=\"Contingent\"),'TSA Input'!F3072,\"\"))","v":""},"",{"$f":"IF('TSA Input'!J3072=\"\",\"\",IF(OR('TSA Input'!J3072=\"Yes\",'TSA Input'!J3072=\"Contingent\"),'TSA Input'!D3072,\"\"))","v":""},{"$f":"IF('TSA Input'!J3072=\"\",\"\",IF(OR('TSA Input'!J3072=\"Yes\",'TSA Input'!J3072=\"Contingent\"),'TSA Input'!G3072,\"\"))","v":""},{"$f":"IF('TSA Input'!J3072=\"\",\"\",IF(OR('TSA Input'!J3072=\"Yes\",'TSA Input'!J3072=\"Contingent\"),'TSA Input'!F3072,\"\"))","v":""},"","Required","Required"]
["",null,{"$f":"IF('TSA Input'!J3073=\"\",\"\",IF(OR('TSA Input'!J3073=\"Yes\",'TSA Input'!J3073=\"Contingent\"),'TSA Input'!B3073,\"Ineligible\"))","v":""},{"$f":"IF('TSA Input'!J3073=\"\",\"\",IF(OR('TSA Input'!J3073=\"Yes\",'TSA Input'!J3073=\"Contingent\"),'TSA Input'!I3073,\"\"))","v":""},{"$f":"IF('TSA Input'!J3073=\"\",\"\",IF(OR('TSA Input'!J3073=\"Yes\",'TSA Input'!J3073=\"Contingent\"),'TSA Input'!C3073,\"\"))","v":""},{"$f":"IF('TSA Input'!J3073=\"\",\"\",IF(OR('TSA Input'!J3073=\"Yes\",'TSA Input'!J3073=\"Contingent\"),'TSA Input'!D3073,\"\"))","v":""},{"$f":"IF('TSA Input'!J3073=\"\",\"\",IF(OR('TSA Input'!J3073=\"Yes\",'TSA Input'!J3073=\"Contingent\"),'TSA Input'!G3073,\"\"))","v":""},{"$f":"IF('TSA Input'!J3073=\"\",\"\",IF(OR('TSA Input'!J3073=\"Yes\",'TSA Input'!J3073=\"Contingent\"),'TSA Input'!F3073,\"\"))","v":""},"",{"$f":"IF('TSA Input'!J3073=\"\",\"\",IF(OR('TSA Input'!J3073=\"Yes\",'TSA Input'!J3073=\"Contingent\"),'TSA Input'!D3073,\"\"))","v":""},{"$f":"IF('TSA Input'!J3073=\"\",\"\",IF(OR('TSA Input'!J3073=\"Yes\",'TSA Input'!J3073=\"Contingent\"),'TSA Input'!G3073,\"\"))","v":""},{"$f":"IF('TSA Input'!J3073=\"\",\"\",IF(OR('TSA Input'!J3073=\"Yes\",'TSA Input'!J3073=\"Contingent\"),'TSA Input'!F3073,\"\"))","v":""},"","Required","Required"]
["",null,{"$f":"IF('TSA Input'!J3074=\"\",\"\",IF(OR('TSA Input'!J3074=\"Yes\",'TSA Input'!J3074=\"Contingent\"),'TSA Input'!B3074,\"Ineligible\"))","v":""},{"$f":"IF('TSA Input'!J3074=\"\",\"\",IF(OR('TSA Input'!J3074=\"Yes\",'TSA Input'!J3074=\"Contingent\"),'TSA Input'!I3074,\"\"))","v":""},{"$f":"IF('TSA Input'!J3074=\"\",\"\",IF(OR('TSA Input'!J3074=\"Yes\",'TSA Input'!J3074=\"Contingent\"),'TSA Input'!C3074,\"\"))","v":""},{"$f":"IF('TSA Input'!J3074=\"\",\"\",IF(OR('TSA Input'!J3074=\"Yes\",'TSA Input'!J3074=\"Contingent\"),'TSA Input'!D3074,\"\"))","v":""},{"$f":"IF('TSA Input'!J3074=\"\",\"\",IF(OR('TSA Input'!J3074=\"Yes\",'TSA Input'!J3074=\"Contingent\"),'TSA Input'!G3074,\"\"))","v":""},{"$f":"IF('TSA Input'!J3074=\"\",\"\",IF(OR('TSA Input'!J3074=\"Yes\",'TSA Input'!J3074=\"Contingent\"),'TSA Input'!F3074,\"\"))","v":""},"",{"$f":"IF('TSA Input'!J3074=\"\",\"\",IF(OR('TSA Input'!J3074=\"Yes\",'TSA Input'!J3074=\"Contingent\"),'TSA Input'!D3074,\"\"))","v":""},{"$f":"IF('TSA Input'!J3074=\"\",\"\",IF(OR('TSA Input'!J3074=\"Yes\",'TSA Input'!J3074=\"Contingent\"),'TSA Input'!G3074,\"\"))","v":""},{"$f":"IF('TSA Input'!J3074=\"\",\"\",IF(OR('TSA Input'!J3074=\"Yes\",'TSA Input'!J3074=\"Contingent\"),'TSA Input'!F3074,\"\"))","v":""},"","Required","Required"]
["",null,{"$f":"IF('TSA Input'!J3075=\"\",\"\",IF(OR('TSA Input'!J3075=\"Yes\",'TSA Input'!J3075=\"Contingent\"),'TSA Input'!B3075,\"Ineligible\"))","v":""},{"$f":"IF('TSA Input'!J3075=\"\",\"\",IF(OR('TSA Input'!J3075=\"Yes\",'TSA Input'!J3075=\"Contingent\"),'TSA Input'!I3075,\"\"))","v":""},{"$f":"IF('TSA Input'!J3075=\"\",\"\",IF(OR('TSA Input'!J3075=\"Yes\",'TSA Input'!J3075=\"Contingent\"),'TSA Input'!C3075,\"\"))","v":""},{"$f":"IF('TSA Input'!J3075=\"\",\"\",IF(OR('TSA Input'!J3075=\"Yes\",'TSA Input'!J3075=\"Contingent\"),'TSA Input'!D3075,\"\"))","v":""},{"$f":"IF('TSA Input'!J3075=\"\",\"\",IF(OR('TSA Input'!J3075=\"Yes\",'TSA Input'!J3075=\"Contingent\"),'TSA Input'!G3075,\"\"))","v":""},{"$f":"IF('TSA Input'!J3075=\"\",\"\",IF(OR('TSA Input'!J3075=\"Yes\",'TSA Input'!J3075=\"Contingent\"),'TSA Input'!F3075,\"\"))","v":""},"",{"$f":"IF('TSA Input'!J3075=\"\",\"\",IF(OR('TSA Input'!J3075=\"Yes\",'TSA Input'!J3075=\"Contingent\"),'TSA Input'!D3075,\"\"))","v":""},{"$f":"IF('TSA Input'!J3075=\"\",\"\",IF(OR('TSA Input'!J3075=\"Yes\",'TSA Input'!J3075=\"Contingent\"),'TSA Input'!G3075,\"\"))","v":""},{"$f":"IF('TSA Input'!J3075=\"\",\"\",IF(OR('TSA Input'!J3075=\"Yes\",'TSA Input'!J3075=\"Contingent\"),'TSA Input'!F3075,\"\"))","v":""},"","Required","Required"]
["",null,{"$f":"IF('TSA Input'!J3076=\"\",\"\",IF(OR('TSA Input'!J3076=\"Yes\",'TSA Input'!J3076=\"Contingent\"),'TSA Input'!B3076,\"Ineligible\"))","v":""},{"$f":"IF('TSA Input'!J3076=\"\",\"\",IF(OR('TSA Input'!J3076=\"Yes\",'TSA Input'!J3076=\"Contingent\"),'TSA Input'!I3076,\"\"))","v":""},{"$f":"IF('TSA Input'!J3076=\"\",\"\",IF(OR('TSA Input'!J3076=\"Yes\",'TSA Input'!J3076=\"Contingent\"),'TSA Input'!C3076,\"\"))","v":""},{"$f":"IF('TSA Input'!J3076=\"\",\"\",IF(OR('TSA Input'!J3076=\"Yes\",'TSA Input'!J3076=\"Contingent\"),'TSA Input'!D3076,\"\"))","v":""},{"$f":"IF('TSA Input'!J3076=\"\",\"\",IF(OR('TSA Input'!J3076=\"Yes\",'TSA Input'!J3076=\"Contingent\"),'TSA Input'!G3076,\"\"))","v":""},{"$f":"IF('TSA Input'!J3076=\"\",\"\",IF(OR('TSA Input'!J3076=\"Yes\",'TSA Input'!J3076=\"Contingent\"),'TSA Input'!F3076,\"\"))","v":""},{"$f":"IF($C3114=\"\",\"\",SUM(F3114:H3114))","v":""},{"$f":"IF('TSA Input'!J3076=\"\",\"\",IF(OR('TSA Input'!J3076=\"Yes\",'TSA Input'!J3076=\"Contingent\"),'TSA Input'!D3076,\"\"))","v":""},{"$f":"IF('TSA Input'!J3076=\"\",\"\",IF(OR('TSA Input'!J3076=\"Yes\",'TSA Input'!J3076=\"Contingent\"),'TSA Input'!G3076,\"\"))","v":""},{"$f":"IF('TSA Input'!J3076=\"\",\"\",IF(OR('TSA Input'!J3076=\"Yes\",'TSA Input'!J3076=\"Contingent\"),'TSA Input'!F3076,\"\"))","v":""},{"$f":"IF($C3114=\"\",\"\",SUM(J3114:L3114))","v":""},"Required","Required"]
["",null,{"$f":"IF('TSA Input'!J3077=\"\",\"\",IF(OR('TSA Input'!J3077=\"Yes\",'TSA Input'!J3077=\"Contingent\"),'TSA Input'!B3077,\"Ineligible\"))","v":""},{"$f":"IF('TSA Input'!J3077=\"\",\"\",IF(OR('TSA Input'!J3077=\"Yes\",'TSA Input'!J3077=\"Contingent\"),'TSA Input'!I3077,\"\"))","v":""},{"$f":"IF('TSA Input'!J3077=\"\",\"\",IF(OR('TSA Input'!J3077=\"Yes\",'TSA Input'!J3077=\"Contingent\"),'TSA Input'!C3077,\"\"))","v":""},{"$f":"IF('TSA Input'!J3077=\"\",\"\",IF(OR('TSA Input'!J3077=\"Yes\",'TSA Input'!J3077=\"Contingent\"),'TSA Input'!D3077,\"\"))","v":""},{"$f":"IF('TSA Input'!J3077=\"\",\"\",IF(OR('TSA Input'!J3077=\"Yes\",'TSA Input'!J3077=\"Contingent\"),'TSA Input'!G3077,\"\"))","v":""},{"$f":"IF('TSA Input'!J3077=\"\",\"\",IF(OR('TSA Input'!J3077=\"Yes\",'TSA Input'!J3077=\"Contingent\"),'TSA Input'!F3077,\"\"))","v":""},"",{"$f":"IF('TSA Input'!J3077=\"\",\"\",IF(OR('TSA Input'!J3077=\"Yes\",'TSA Input'!J3077=\"Contingent\"),'TSA Input'!D3077,\"\"))","v":""},{"$f":"IF('TSA Input'!J3077=\"\",\"\",IF(OR('TSA Input'!J3077=\"Yes\",'TSA Input'!J3077=\"Contingent\"),'TSA Input'!G3077,\"\"))","v":""},{"$f":"IF('TSA Input'!J3077=\"\",\"\",IF(OR('TSA Input'!J3077=\"Yes\",'TSA Input'!J3077=\"Contingent\"),'TSA Input'!F3077,\"\"))","v":""},"","Required","Required"]
["",null,{"$f":"IF('TSA Input'!J3078=\"\",\"\",IF(OR('TSA Input'!J3078=\"Yes\",'TSA Input'!J3078=\"Contingent\"),'TSA Input'!B3078,\"Ineligible\"))","v":""},{"$f":"IF('TSA Input'!J3078=\"\",\"\",IF(OR('TSA Input'!J3078=\"Yes\",'TSA Input'!J3078=\"Contingent\"),'TSA Input'!I3078,\"\"))","v":""},{"$f":"IF('TSA Input'!J3078=\"\",\"\",IF(OR('TSA Input'!J3078=\"Yes\",'TSA Input'!J3078=\"Contingent\"),'TSA Input'!C3078,\"\"))","v":""},{"$f":"IF('TSA Input'!J3078=\"\",\"\",IF(OR('TSA Input'!J3078=\"Yes\",'TSA Input'!J3078=\"Contingent\"),'TSA Input'!D3078,\"\"))","v":""},{"$f":"IF('TSA Input'!J3078=\"\",\"\",IF(OR('TSA Input'!J3078=\"Yes\",'TSA Input'!J3078=\"Contingent\"),'TSA Input'!G3078,\"\"))","v":""},{"$f":"IF('TSA Input'!J3078=\"\",\"\",IF(OR('TSA Input'!J3078=\"Yes\",'TSA Input'!J3078=\"Contingent\"),'TSA Input'!F3078,\"\"))","v":""},"",{"$f":"IF('TSA Input'!J3078=\"\",\"\",IF(OR('TSA Input'!J3078=\"Yes\",'TSA Input'!J3078=\"Contingent\"),'TSA Input'!D3078,\"\"))","v":""},{"$f":"IF('TSA Input'!J3078=\"\",\"\",IF(OR('TSA Input'!J3078=\"Yes\",'TSA Input'!J3078=\"Contingent\"),'TSA Input'!G3078,\"\"))","v":""},{"$f":"IF('TSA Input'!J3078=\"\",\"\",IF(OR('TSA Input'!J3078=\"Yes\",'TSA Input'!J3078=\"Contingent\"),'TSA Input'!F3078,\"\"))","v":""},"","Required","Required"]
["",null,{"$f":"IF('TSA Input'!J3079=\"\",\"\",IF(OR('TSA Input'!J3079=\"Yes\",'TSA Input'!J3079=\"Contingent\"),'TSA Input'!B3079,\"Ineligible\"))","v":""},{"$f":"IF('TSA Input'!J3079=\"\",\"\",IF(OR('TSA Input'!J3079=\"Yes\",'TSA Input'!J3079=\"Contingent\"),'TSA Input'!I3079,\"\"))","v":""},{"$f":"IF('TSA Input'!J3079=\"\",\"\",IF(OR('TSA Input'!J3079=\"Yes\",'TSA Input'!J3079=\"Contingent\"),'TSA Input'!C3079,\"\"))","v":""},{"$f":"IF('TSA Input'!J3079=\"\",\"\",IF(OR('TSA Input'!J3079=\"Yes\",'TSA Input'!J3079=\"Contingent\"),'TSA Input'!D3079,\"\"))","v":""},{"$f":"IF('TSA Input'!J3079=\"\",\"\",IF(OR('TSA Input'!J3079=\"Yes\",'TSA Input'!J3079=\"Contingent\"),'TSA Input'!G3079,\"\"))","v":""},{"$f":"IF('TSA Input'!J3079=\"\",\"\",IF(OR('TSA Input'!J3079=\"Yes\",'TSA Input'!J3079=\"Contingent\"),'TSA Input'!F3079,\"\"))","v":""},"",{"$f":"IF('TSA Input'!J3079=\"\",\"\",IF(OR('TSA Input'!J3079=\"Yes\",'TSA Input'!J3079=\"Contingent\"),'TSA Input'!D3079,\"\"))","v":""},{"$f":"IF('TSA Input'!J3079=\"\",\"\",IF(OR('TSA Input'!J3079=\"Yes\",'TSA Input'!J3079=\"Contingent\"),'TSA Input'!G3079,\"\"))","v":""},{"$f":"IF('TSA Input'!J3079=\"\",\"\",IF(OR('TSA Input'!J3079=\"Yes\",'TSA Input'!J3079=\"Contingent\"),'TSA Input'!F3079,\"\"))","v":""},"","Required","Required"]
["",null,{"$f":"IF('TSA Input'!J3080=\"\",\"\",IF(OR('TSA Input'!J3080=\"Yes\",'TSA Input'!J3080=\"Contingent\"),'TSA Input'!B3080,\"Ineligible\"))","v":""},{"$f":"IF('TSA Input'!J3080=\"\",\"\",IF(OR('TSA Input'!J3080=\"Yes\",'TSA Input'!J3080=\"Contingent\"),'TSA Input'!I3080,\"\"))","v":""},{"$f":"IF('TSA Input'!J3080=\"\",\"\",IF(OR('TSA Input'!J3080=\"Yes\",'TSA Input'!J3080=\"Contingent\"),'TSA Input'!C3080,\"\"))","v":""},{"$f":"IF('TSA Input'!J3080=\"\",\"\",IF(OR('TSA Input'!J3080=\"Yes\",'TSA Input'!J3080=\"Contingent\"),'TSA Input'!D3080,\"\"))","v":""},{"$f":"IF('TSA Input'!J3080=\"\",\"\",IF(OR('TSA Input'!J3080=\"Yes\",'TSA Input'!J3080=\"Contingent\"),'TSA Input'!G3080,\"\"))","v":""},{"$f":"IF('TSA Input'!J3080=\"\",\"\",IF(OR('TSA Input'!J3080=\"Yes\",'TSA Input'!J3080=\"Contingent\"),'TSA Input'!F3080,\"\"))","v":""},"",{"$f":"IF('TSA Input'!J3080=\"\",\"\",IF(OR('TSA Input'!J3080=\"Yes\",'TSA Input'!J3080=\"Contingent\"),'TSA Input'!D3080,\"\"))","v":""},{"$f":"IF('TSA Input'!J3080=\"\",\"\",IF(OR('TSA Input'!J3080=\"Yes\",'TSA Input'!J3080=\"Contingent\"),'TSA Input'!G3080,\"\"))","v":""},{"$f":"IF('TSA Input'!J3080=\"\",\"\",IF(OR('TSA Input'!J3080=\"Yes\",'TSA Input'!J3080=\"Contingent\"),'TSA Input'!F3080,\"\"))","v":""},"","Required","Required"]
["",null,{"$f":"IF('TSA Input'!J3081=\"\",\"\",IF(OR('TSA Input'!J3081=\"Yes\",'TSA Input'!J3081=\"Contingent\"),'TSA Input'!B3081,\"Ineligible\"))","v":""},{"$f":"IF('TSA Input'!J3081=\"\",\"\",IF(OR('TSA Input'!J3081=\"Yes\",'TSA Input'!J3081=\"Contingent\"),'TSA Input'!I3081,\"\"))","v":""},{"$f":"IF('TSA Input'!J3081=\"\",\"\",IF(OR('TSA Input'!J3081=\"Yes\",'TSA Input'!J3081=\"Contingent\"),'TSA Input'!C3081,\"\"))","v":""},{"$f":"IF('TSA Input'!J3081=\"\",\"\",IF(OR('TSA Input'!J3081=\"Yes\",'TSA Input'!J3081=\"Contingent\"),'TSA Input'!D3081,\"\"))","v":""},{"$f":"IF('TSA Input'!J3081=\"\",\"\",IF(OR('TSA Input'!J3081=\"Yes\",'TSA Input'!J3081=\"Contingent\"),'TSA Input'!G3081,\"\"))","v":""},{"$f":"IF('TSA Input'!J3081=\"\",\"\",IF(OR('TSA Input'!J3081=\"Yes\",'TSA Input'!J3081=\"Contingent\"),'TSA Input'!F3081,\"\"))","v":""},"",{"$f":"IF('TSA Input'!J3081=\"\",\"\",IF(OR('TSA Input'!J3081=\"Yes\",'TSA Input'!J3081=\"Contingent\"),'TSA Input'!D3081,\"\"))","v":""},{"$f":"IF('TSA Input'!J3081=\"\",\"\",IF(OR('TSA Input'!J3081=\"Yes\",'TSA Input'!J3081=\"Contingent\"),'TSA Input'!G3081,\"\"))","v":""},{"$f":"IF('TSA Input'!J3081=\"\",\"\",IF(OR('TSA Input'!J3081=\"Yes\",'TSA Input'!J3081=\"Contingent\"),'TSA Input'!F3081,\"\"))","v":""},"","Required","Required"]
["",null,{"$f":"IF('TSA Input'!J3082=\"\",\"\",IF(OR('TSA Input'!J3082=\"Yes\",'TSA Input'!J3082=\"Contingent\"),'TSA Input'!B3082,\"Ineligible\"))","v":""},{"$f":"IF('TSA Input'!J3082=\"\",\"\",IF(OR('TSA Input'!J3082=\"Yes\",'TSA Input'!J3082=\"Contingent\"),'TSA Input'!I3082,\"\"))","v":""},{"$f":"IF('TSA Input'!J3082=\"\",\"\",IF(OR('TSA Input'!J3082=\"Yes\",'TSA Input'!J3082=\"Contingent\"),'TSA Input'!C3082,\"\"))","v":""},{"$f":"IF('TSA Input'!J3082=\"\",\"\",IF(OR('TSA Input'!J3082=\"Yes\",'TSA Input'!J3082=\"Contingent\"),'TSA Input'!D3082,\"\"))","v":""},{"$f":"IF('TSA Input'!J3082=\"\",\"\",IF(OR('TSA Input'!J3082=\"Yes\",'TSA Input'!J3082=\"Contingent\"),'TSA Input'!G3082,\"\"))","v":""},{"$f":"IF('TSA Input'!J3082=\"\",\"\",IF(OR('TSA Input'!J3082=\"Yes\",'TSA Input'!J3082=\"Contingent\"),'TSA Input'!F3082,\"\"))","v":""},"",{"$f":"IF('TSA Input'!J3082=\"\",\"\",IF(OR('TSA Input'!J3082=\"Yes\",'TSA Input'!J3082=\"Contingent\"),'TSA Input'!D3082,\"\"))","v":""},{"$f":"IF('TSA Input'!J3082=\"\",\"\",IF(OR('TSA Input'!J3082=\"Yes\",'TSA Input'!J3082=\"Contingent\"),'TSA Input'!G3082,\"\"))","v":""},{"$f":"IF('TSA Input'!J3082=\"\",\"\",IF(OR('TSA Input'!J3082=\"Yes\",'TSA Input'!J3082=\"Contingent\"),'TSA Input'!F3082,\"\"))","v":""},"","Required","Required"]
["",null,{"$f":"IF('TSA Input'!J3083=\"\",\"\",IF(OR('TSA Input'!J3083=\"Yes\",'TSA Input'!J3083=\"Contingent\"),'TSA Input'!B3083,\"Ineligible\"))","v":""},{"$f":"IF('TSA Input'!J3083=\"\",\"\",IF(OR('TSA Input'!J3083=\"Yes\",'TSA Input'!J3083=\"Contingent\"),'TSA Input'!I3083,\"\"))","v":""},{"$f":"IF('TSA Input'!J3083=\"\",\"\",IF(OR('TSA Input'!J3083=\"Yes\",'TSA Input'!J3083=\"Contingent\"),'TSA Input'!C3083,\"\"))","v":""},{"$f":"IF('TSA Input'!J3083=\"\",\"\",IF(OR('TSA Input'!J3083=\"Yes\",'TSA Input'!J3083=\"Contingent\"),'TSA Input'!D3083,\"\"))","v":""},{"$f":"IF('TSA Input'!J3083=\"\",\"\",IF(OR('TSA Input'!J3083=\"Yes\",'TSA Input'!J3083=\"Contingent\"),'TSA Input'!G3083,\"\"))","v":""},{"$f":"IF('TSA Input'!J3083=\"\",\"\",IF(OR('TSA Input'!J3083=\"Yes\",'TSA Input'!J3083=\"Contingent\"),'TSA Input'!F3083,\"\"))","v":""},"",{"$f":"IF('TSA Input'!J3083=\"\",\"\",IF(OR('TSA Input'!J3083=\"Yes\",'TSA Input'!J3083=\"Contingent\"),'TSA Input'!D3083,\"\"))","v":""},{"$f":"IF('TSA Input'!J3083=\"\",\"\",IF(OR('TSA Input'!J3083=\"Yes\",'TSA Input'!J3083=\"Contingent\"),'TSA Input'!G3083,\"\"))","v":""},{"$f":"IF('TSA Input'!J3083=\"\",\"\",IF(OR('TSA Input'!J3083=\"Yes\",'TSA Input'!J3083=\"Contingent\"),'TSA Input'!F3083,\"\"))","v":""},"","Required","Required"]
["",null,{"$f":"IF('TSA Input'!J3084=\"\",\"\",IF(OR('TSA Input'!J3084=\"Yes\",'TSA Input'!J3084=\"Contingent\"),'TSA Input'!B3084,\"Ineligible\"))","v":""},{"$f":"IF('TSA Input'!J3084=\"\",\"\",IF(OR('TSA Input'!J3084=\"Yes\",'TSA Input'!J3084=\"Contingent\"),'TSA Input'!I3084,\"\"))","v":""},{"$f":"IF('TSA Input'!J3084=\"\",\"\",IF(OR('TSA Input'!J3084=\"Yes\",'TSA Input'!J3084=\"Contingent\"),'TSA Input'!C3084,\"\"))","v":""},{"$f":"IF('TSA Input'!J3084=\"\",\"\",IF(OR('TSA Input'!J3084=\"Yes\",'TSA Input'!J3084=\"Contingent\"),'TSA Input'!D3084,\"\"))","v":""},{"$f":"IF('TSA Input'!J3084=\"\",\"\",IF(OR('TSA Input'!J3084=\"Yes\",'TSA Input'!J3084=\"Contingent\"),'TSA Input'!G3084,\"\"))","v":""},{"$f":"IF('TSA Input'!J3084=\"\",\"\",IF(OR('TSA Input'!J3084=\"Yes\",'TSA Input'!J3084=\"Contingent\"),'TSA Input'!F3084,\"\"))","v":""},"",{"$f":"IF('TSA Input'!J3084=\"\",\"\",IF(OR('TSA Input'!J3084=\"Yes\",'TSA Input'!J3084=\"Contingent\"),'TSA Input'!D3084,\"\"))","v":""},{"$f":"IF('TSA Input'!J3084=\"\",\"\",IF(OR('TSA Input'!J3084=\"Yes\",'TSA Input'!J3084=\"Contingent\"),'TSA Input'!G3084,\"\"))","v":""},{"$f":"IF('TSA Input'!J3084=\"\",\"\",IF(OR('TSA Input'!J3084=\"Yes\",'TSA Input'!J3084=\"Contingent\"),'TSA Input'!F3084,\"\"))","v":""},"","Required","Required"]
["",null,{"$f":"IF('TSA Input'!J3085=\"\",\"\",IF(OR('TSA Input'!J3085=\"Yes\",'TSA Input'!J3085=\"Contingent\"),'TSA Input'!B3085,\"Ineligible\"))","v":""},{"$f":"IF('TSA Input'!J3085=\"\",\"\",IF(OR('TSA Input'!J3085=\"Yes\",'TSA Input'!J3085=\"Contingent\"),'TSA Input'!I3085,\"\"))","v":""},{"$f":"IF('TSA Input'!J3085=\"\",\"\",IF(OR('TSA Input'!J3085=\"Yes\",'TSA Input'!J3085=\"Contingent\"),'TSA Input'!C3085,\"\"))","v":""},{"$f":"IF('TSA Input'!J3085=\"\",\"\",IF(OR('TSA Input'!J3085=\"Yes\",'TSA Input'!J3085=\"Contingent\"),'TSA Input'!D3085,\"\"))","v":""},{"$f":"IF('TSA Input'!J3085=\"\",\"\",IF(OR('TSA Input'!J3085=\"Yes\",'TSA Input'!J3085=\"Contingent\"),'TSA Input'!G3085,\"\"))","v":""},{"$f":"IF('TSA Input'!J3085=\"\",\"\",IF(OR('TSA Input'!J3085=\"Yes\",'TSA Input'!J3085=\"Contingent\"),'TSA Input'!F3085,\"\"))","v":""},"",{"$f":"IF('TSA Input'!J3085=\"\",\"\",IF(OR('TSA Input'!J3085=\"Yes\",'TSA Input'!J3085=\"Contingent\"),'TSA Input'!D3085,\"\"))","v":""},{"$f":"IF('TSA Input'!J3085=\"\",\"\",IF(OR('TSA Input'!J3085=\"Yes\",'TSA Input'!J3085=\"Contingent\"),'TSA Input'!G3085,\"\"))","v":""},{"$f":"IF('TSA Input'!J3085=\"\",\"\",IF(OR('TSA Input'!J3085=\"Yes\",'TSA Input'!J3085=\"Contingent\"),'TSA Input'!F3085,\"\"))","v":""},"","Required","Required"]
["",null,{"$f":"IF('TSA Input'!J3086=\"\",\"\",IF(OR('TSA Input'!J3086=\"Yes\",'TSA Input'!J3086=\"Contingent\"),'TSA Input'!B3086,\"Ineligible\"))","v":""},{"$f":"IF('TSA Input'!J3086=\"\",\"\",IF(OR('TSA Input'!J3086=\"Yes\",'TSA Input'!J3086=\"Contingent\"),'TSA Input'!I3086,\"\"))","v":""},{"$f":"IF('TSA Input'!J3086=\"\",\"\",IF(OR('TSA Input'!J3086=\"Yes\",'TSA Input'!J3086=\"Contingent\"),'TSA Input'!C3086,\"\"))","v":""},{"$f":"IF('TSA Input'!J3086=\"\",\"\",IF(OR('TSA Input'!J3086=\"Yes\",'TSA Input'!J3086=\"Contingent\"),'TSA Input'!D3086,\"\"))","v":""},{"$f":"IF('TSA Input'!J3086=\"\",\"\",IF(OR('TSA Input'!J3086=\"Yes\",'TSA Input'!J3086=\"Contingent\"),'TSA Input'!G3086,\"\"))","v":""},{"$f":"IF('TSA Input'!J3086=\"\",\"\",IF(OR('TSA Input'!J3086=\"Yes\",'TSA Input'!J3086=\"Contingent\"),'TSA Input'!F3086,\"\"))","v":""},"",{"$f":"IF('TSA Input'!J3086=\"\",\"\",IF(OR('TSA Input'!J3086=\"Yes\",'TSA Input'!J3086=\"Contingent\"),'TSA Input'!D3086,\"\"))","v":""},{"$f":"IF('TSA Input'!J3086=\"\",\"\",IF(OR('TSA Input'!J3086=\"Yes\",'TSA Input'!J3086=\"Contingent\"),'TSA Input'!G3086,\"\"))","v":""},{"$f":"IF('TSA Input'!J3086=\"\",\"\",IF(OR('TSA Input'!J3086=\"Yes\",'TSA Input'!J3086=\"Contingent\"),'TSA Input'!F3086,\"\"))","v":""},"","Required","Required"]
["",null,{"$f":"IF('TSA Input'!J3087=\"\",\"\",IF(OR('TSA Input'!J3087=\"Yes\",'TSA Input'!J3087=\"Contingent\"),'TSA Input'!B3087,\"Ineligible\"))","v":""},{"$f":"IF('TSA Input'!J3087=\"\",\"\",IF(OR('TSA Input'!J3087=\"Yes\",'TSA Input'!J3087=\"Contingent\"),'TSA Input'!I3087,\"\"))","v":""},{"$f":"IF('TSA Input'!J3087=\"\",\"\",IF(OR('TSA Input'!J3087=\"Yes\",'TSA Input'!J3087=\"Contingent\"),'TSA Input'!C3087,\"\"))","v":""},{"$f":"IF('TSA Input'!J3087=\"\",\"\",IF(OR('TSA Input'!J3087=\"Yes\",'TSA Input'!J3087=\"Contingent\"),'TSA Input'!D3087,\"\"))","v":""},{"$f":"IF('TSA Input'!J3087=\"\",\"\",IF(OR('TSA Input'!J3087=\"Yes\",'TSA Input'!J3087=\"Contingent\"),'TSA Input'!G3087,\"\"))","v":""},{"$f":"IF('TSA Input'!J3087=\"\",\"\",IF(OR('TSA Input'!J3087=\"Yes\",'TSA Input'!J3087=\"Contingent\"),'TSA Input'!F3087,\"\"))","v":""},"",{"$f":"IF('TSA Input'!J3087=\"\",\"\",IF(OR('TSA Input'!J3087=\"Yes\",'TSA Input'!J3087=\"Contingent\"),'TSA Input'!D3087,\"\"))","v":""},{"$f":"IF('TSA Input'!J3087=\"\",\"\",IF(OR('TSA Input'!J3087=\"Yes\",'TSA Input'!J3087=\"Contingent\"),'TSA Input'!G3087,\"\"))","v":""},{"$f":"IF('TSA Input'!J3087=\"\",\"\",IF(OR('TSA Input'!J3087=\"Yes\",'TSA Input'!J3087=\"Contingent\"),'TSA Input'!F3087,\"\"))","v":""},"","Required","Required"]
["",null,{"$f":"IF('TSA Input'!J3088=\"\",\"\",IF(OR('TSA Input'!J3088=\"Yes\",'TSA Input'!J3088=\"Contingent\"),'TSA Input'!B3088,\"Ineligible\"))","v":""},{"$f":"IF('TSA Input'!J3088=\"\",\"\",IF(OR('TSA Input'!J3088=\"Yes\",'TSA Input'!J3088=\"Contingent\"),'TSA Input'!I3088,\"\"))","v":""},{"$f":"IF('TSA Input'!J3088=\"\",\"\",IF(OR('TSA Input'!J3088=\"Yes\",'TSA Input'!J3088=\"Contingent\"),'TSA Input'!C3088,\"\"))","v":""},{"$f":"IF('TSA Input'!J3088=\"\",\"\",IF(OR('TSA Input'!J3088=\"Yes\",'TSA Input'!J3088=\"Contingent\"),'TSA Input'!D3088,\"\"))","v":""},{"$f":"IF('TSA Input'!J3088=\"\",\"\",IF(OR('TSA Input'!J3088=\"Yes\",'TSA Input'!J3088=\"Contingent\"),'TSA Input'!G3088,\"\"))","v":""},{"$f":"IF('TSA Input'!J3088=\"\",\"\",IF(OR('TSA Input'!J3088=\"Yes\",'TSA Input'!J3088=\"Contingent\"),'TSA Input'!F3088,\"\"))","v":""},"",{"$f":"IF('TSA Input'!J3088=\"\",\"\",IF(OR('TSA Input'!J3088=\"Yes\",'TSA Input'!J3088=\"Contingent\"),'TSA Input'!D3088,\"\"))","v":""},{"$f":"IF('TSA Input'!J3088=\"\",\"\",IF(OR('TSA Input'!J3088=\"Yes\",'TSA Input'!J3088=\"Contingent\"),'TSA Input'!G3088,\"\"))","v":""},{"$f":"IF('TSA Input'!J3088=\"\",\"\",IF(OR('TSA Input'!J3088=\"Yes\",'TSA Input'!J3088=\"Contingent\"),'TSA Input'!F3088,\"\"))","v":""},"","Required","Required"]
["",null,{"$f":"IF('TSA Input'!J3089=\"\",\"\",IF(OR('TSA Input'!J3089=\"Yes\",'TSA Input'!J3089=\"Contingent\"),'TSA Input'!B3089,\"Ineligible\"))","v":""},{"$f":"IF('TSA Input'!J3089=\"\",\"\",IF(OR('TSA Input'!J3089=\"Yes\",'TSA Input'!J3089=\"Contingent\"),'TSA Input'!I3089,\"\"))","v":""},{"$f":"IF('TSA Input'!J3089=\"\",\"\",IF(OR('TSA Input'!J3089=\"Yes\",'TSA Input'!J3089=\"Contingent\"),'TSA Input'!C3089,\"\"))","v":""},{"$f":"IF('TSA Input'!J3089=\"\",\"\",IF(OR('TSA Input'!J3089=\"Yes\",'TSA Input'!J3089=\"Contingent\"),'TSA Input'!D3089,\"\"))","v":""},{"$f":"IF('TSA Input'!J3089=\"\",\"\",IF(OR('TSA Input'!J3089=\"Yes\",'TSA Input'!J3089=\"Contingent\"),'TSA Input'!G3089,\"\"))","v":""},{"$f":"IF('TSA Input'!J3089=\"\",\"\",IF(OR('TSA Input'!J3089=\"Yes\",'TSA Input'!J3089=\"Contingent\"),'TSA Input'!F3089,\"\"))","v":""},"",{"$f":"IF('TSA Input'!J3089=\"\",\"\",IF(OR('TSA Input'!J3089=\"Yes\",'TSA Input'!J3089=\"Contingent\"),'TSA Input'!D3089,\"\"))","v":""},{"$f":"IF('TSA Input'!J3089=\"\",\"\",IF(OR('TSA Input'!J3089=\"Yes\",'TSA Input'!J3089=\"Contingent\"),'TSA Input'!G3089,\"\"))","v":""},{"$f":"IF('TSA Input'!J3089=\"\",\"\",IF(OR('TSA Input'!J3089=\"Yes\",'TSA Input'!J3089=\"Contingent\"),'TSA Input'!F3089,\"\"))","v":""},"","Required","Required"]
["",null,{"$f":"IF('TSA Input'!J3090=\"\",\"\",IF(OR('TSA Input'!J3090=\"Yes\",'TSA Input'!J3090=\"Contingent\"),'TSA Input'!B3090,\"Ineligible\"))","v":""},{"$f":"IF('TSA Input'!J3090=\"\",\"\",IF(OR('TSA Input'!J3090=\"Yes\",'TSA Input'!J3090=\"Contingent\"),'TSA Input'!I3090,\"\"))","v":""},{"$f":"IF('TSA Input'!J3090=\"\",\"\",IF(OR('TSA Input'!J3090=\"Yes\",'TSA Input'!J3090=\"Contingent\"),'TSA Input'!C3090,\"\"))","v":""},{"$f":"IF('TSA Input'!J3090=\"\",\"\",IF(OR('TSA Input'!J3090=\"Yes\",'TSA Input'!J3090=\"Contingent\"),'TSA Input'!D3090,\"\"))","v":""},{"$f":"IF('TSA Input'!J3090=\"\",\"\",IF(OR('TSA Input'!J3090=\"Yes\",'TSA Input'!J3090=\"Contingent\"),'TSA Input'!G3090,\"\"))","v":""},{"$f":"IF('TSA Input'!J3090=\"\",\"\",IF(OR('TSA Input'!J3090=\"Yes\",'TSA Input'!J3090=\"Contingent\"),'TSA Input'!F3090,\"\"))","v":""},"",{"$f":"IF('TSA Input'!J3090=\"\",\"\",IF(OR('TSA Input'!J3090=\"Yes\",'TSA Input'!J3090=\"Contingent\"),'TSA Input'!D3090,\"\"))","v":""},{"$f":"IF('TSA Input'!J3090=\"\",\"\",IF(OR('TSA Input'!J3090=\"Yes\",'TSA Input'!J3090=\"Contingent\"),'TSA Input'!G3090,\"\"))","v":""},{"$f":"IF('TSA Input'!J3090=\"\",\"\",IF(OR('TSA Input'!J3090=\"Yes\",'TSA Input'!J3090=\"Contingent\"),'TSA Input'!F3090,\"\"))","v":""},"","Required","Required"]
["",null,{"$f":"IF('TSA Input'!J3091=\"\",\"\",IF(OR('TSA Input'!J3091=\"Yes\",'TSA Input'!J3091=\"Contingent\"),'TSA Input'!B3091,\"Ineligible\"))","v":""},{"$f":"IF('TSA Input'!J3091=\"\",\"\",IF(OR('TSA Input'!J3091=\"Yes\",'TSA Input'!J3091=\"Contingent\"),'TSA Input'!I3091,\"\"))","v":""},{"$f":"IF('TSA Input'!J3091=\"\",\"\",IF(OR('TSA Input'!J3091=\"Yes\",'TSA Input'!J3091=\"Contingent\"),'TSA Input'!C3091,\"\"))","v":""},{"$f":"IF('TSA Input'!J3091=\"\",\"\",IF(OR('TSA Input'!J3091=\"Yes\",'TSA Input'!J3091=\"Contingent\"),'TSA Input'!D3091,\"\"))","v":""},{"$f":"IF('TSA Input'!J3091=\"\",\"\",IF(OR('TSA Input'!J3091=\"Yes\",'TSA Input'!J3091=\"Contingent\"),'TSA Input'!G3091,\"\"))","v":""},{"$f":"IF('TSA Input'!J3091=\"\",\"\",IF(OR('TSA Input'!J3091=\"Yes\",'TSA Input'!J3091=\"Contingent\"),'TSA Input'!F3091,\"\"))","v":""},"",{"$f":"IF('TSA Input'!J3091=\"\",\"\",IF(OR('TSA Input'!J3091=\"Yes\",'TSA Input'!J3091=\"Contingent\"),'TSA Input'!D3091,\"\"))","v":""},{"$f":"IF('TSA Input'!J3091=\"\",\"\",IF(OR('TSA Input'!J3091=\"Yes\",'TSA Input'!J3091=\"Contingent\"),'TSA Input'!G3091,\"\"))","v":""},{"$f":"IF('TSA Input'!J3091=\"\",\"\",IF(OR('TSA Input'!J3091=\"Yes\",'TSA Input'!J3091=\"Contingent\"),'TSA Input'!F3091,\"\"))","v":""},"","Required","Required"]
["",null,{"$f":"IF('TSA Input'!J3092=\"\",\"\",IF(OR('TSA Input'!J3092=\"Yes\",'TSA Input'!J3092=\"Contingent\"),'TSA Input'!B3092,\"Ineligible\"))","v":""},{"$f":"IF('TSA Input'!J3092=\"\",\"\",IF(OR('TSA Input'!J3092=\"Yes\",'TSA Input'!J3092=\"Contingent\"),'TSA Input'!I3092,\"\"))","v":""},{"$f":"IF('TSA Input'!J3092=\"\",\"\",IF(OR('TSA Input'!J3092=\"Yes\",'TSA Input'!J3092=\"Contingent\"),'TSA Input'!C3092,\"\"))","v":""},{"$f":"IF('TSA Input'!J3092=\"\",\"\",IF(OR('TSA Input'!J3092=\"Yes\",'TSA Input'!J3092=\"Contingent\"),'TSA Input'!D3092,\"\"))","v":""},{"$f":"IF('TSA Input'!J3092=\"\",\"\",IF(OR('TSA Input'!J3092=\"Yes\",'TSA Input'!J3092=\"Contingent\"),'TSA Input'!G3092,\"\"))","v":""},{"$f":"IF('TSA Input'!J3092=\"\",\"\",IF(OR('TSA Input'!J3092=\"Yes\",'TSA Input'!J3092=\"Contingent\"),'TSA Input'!F3092,\"\"))","v":""},"",{"$f":"IF('TSA Input'!J3092=\"\",\"\",IF(OR('TSA Input'!J3092=\"Yes\",'TSA Input'!J3092=\"Contingent\"),'TSA Input'!D3092,\"\"))","v":""},{"$f":"IF('TSA Input'!J3092=\"\",\"\",IF(OR('TSA Input'!J3092=\"Yes\",'TSA Input'!J3092=\"Contingent\"),'TSA Input'!G3092,\"\"))","v":""},{"$f":"IF('TSA Input'!J3092=\"\",\"\",IF(OR('TSA Input'!J3092=\"Yes\",'TSA Input'!J3092=\"Contingent\"),'TSA Input'!F3092,\"\"))","v":""},"","Required","Required"]
["",null,{"$f":"IF('TSA Input'!J3093=\"\",\"\",IF(OR('TSA Input'!J3093=\"Yes\",'TSA Input'!J3093=\"Contingent\"),'TSA Input'!B3093,\"Ineligible\"))","v":""},{"$f":"IF('TSA Input'!J3093=\"\",\"\",IF(OR('TSA Input'!J3093=\"Yes\",'TSA Input'!J3093=\"Contingent\"),'TSA Input'!I3093,\"\"))","v":""},{"$f":"IF('TSA Input'!J3093=\"\",\"\",IF(OR('TSA Input'!J3093=\"Yes\",'TSA Input'!J3093=\"Contingent\"),'TSA Input'!C3093,\"\"))","v":""},{"$f":"IF('TSA Input'!J3093=\"\",\"\",IF(OR('TSA Input'!J3093=\"Yes\",'TSA Input'!J3093=\"Contingent\"),'TSA Input'!D3093,\"\"))","v":""},{"$f":"IF('TSA Input'!J3093=\"\",\"\",IF(OR('TSA Input'!J3093=\"Yes\",'TSA Input'!J3093=\"Contingent\"),'TSA Input'!G3093,\"\"))","v":""},{"$f":"IF('TSA Input'!J3093=\"\",\"\",IF(OR('TSA Input'!J3093=\"Yes\",'TSA Input'!J3093=\"Contingent\"),'TSA Input'!F3093,\"\"))","v":""},"",{"$f":"IF('TSA Input'!J3093=\"\",\"\",IF(OR('TSA Input'!J3093=\"Yes\",'TSA Input'!J3093=\"Contingent\"),'TSA Input'!D3093,\"\"))","v":""},{"$f":"IF('TSA Input'!J3093=\"\",\"\",IF(OR('TSA Input'!J3093=\"Yes\",'TSA Input'!J3093=\"Contingent\"),'TSA Input'!G3093,\"\"))","v":""},{"$f":"IF('TSA Input'!J3093=\"\",\"\",IF(OR('TSA Input'!J3093=\"Yes\",'TSA Input'!J3093=\"Contingent\"),'TSA Input'!F3093,\"\"))","v":""},"","Required","Required"]
["",null,{"$f":"IF('TSA Input'!J3094=\"\",\"\",IF(OR('TSA Input'!J3094=\"Yes\",'TSA Input'!J3094=\"Contingent\"),'TSA Input'!B3094,\"Ineligible\"))","v":""},{"$f":"IF('TSA Input'!J3094=\"\",\"\",IF(OR('TSA Input'!J3094=\"Yes\",'TSA Input'!J3094=\"Contingent\"),'TSA Input'!I3094,\"\"))","v":""},{"$f":"IF('TSA Input'!J3094=\"\",\"\",IF(OR('TSA Input'!J3094=\"Yes\",'TSA Input'!J3094=\"Contingent\"),'TSA Input'!C3094,\"\"))","v":""},{"$f":"IF('TSA Input'!J3094=\"\",\"\",IF(OR('TSA Input'!J3094=\"Yes\",'TSA Input'!J3094=\"Contingent\"),'TSA Input'!D3094,\"\"))","v":""},{"$f":"IF('TSA Input'!J3094=\"\",\"\",IF(OR('TSA Input'!J3094=\"Yes\",'TSA Input'!J3094=\"Contingent\"),'TSA Input'!G3094,\"\"))","v":""},{"$f":"IF('TSA Input'!J3094=\"\",\"\",IF(OR('TSA Input'!J3094=\"Yes\",'TSA Input'!J3094=\"Contingent\"),'TSA Input'!F3094,\"\"))","v":""},"",{"$f":"IF('TSA Input'!J3094=\"\",\"\",IF(OR('TSA Input'!J3094=\"Yes\",'TSA Input'!J3094=\"Contingent\"),'TSA Input'!D3094,\"\"))","v":""},{"$f":"IF('TSA Input'!J3094=\"\",\"\",IF(OR('TSA Input'!J3094=\"Yes\",'TSA Input'!J3094=\"Contingent\"),'TSA Input'!G3094,\"\"))","v":""},{"$f":"IF('TSA Input'!J3094=\"\",\"\",IF(OR('TSA Input'!J3094=\"Yes\",'TSA Input'!J3094=\"Contingent\"),'TSA Input'!F3094,\"\"))","v":""},"","Required","Required"]
["",null,{"$f":"IF('TSA Input'!J3095=\"\",\"\",IF(OR('TSA Input'!J3095=\"Yes\",'TSA Input'!J3095=\"Contingent\"),'TSA Input'!B3095,\"Ineligible\"))","v":""},{"$f":"IF('TSA Input'!J3095=\"\",\"\",IF(OR('TSA Input'!J3095=\"Yes\",'TSA Input'!J3095=\"Contingent\"),'TSA Input'!I3095,\"\"))","v":""},{"$f":"IF('TSA Input'!J3095=\"\",\"\",IF(OR('TSA Input'!J3095=\"Yes\",'TSA Input'!J3095=\"Contingent\"),'TSA Input'!C3095,\"\"))","v":""},{"$f":"IF('TSA Input'!J3095=\"\",\"\",IF(OR('TSA Input'!J3095=\"Yes\",'TSA Input'!J3095=\"Contingent\"),'TSA Input'!D3095,\"\"))","v":""},{"$f":"IF('TSA Input'!J3095=\"\",\"\",IF(OR('TSA Input'!J3095=\"Yes\",'TSA Input'!J3095=\"Contingent\"),'TSA Input'!G3095,\"\"))","v":""},{"$f":"IF('TSA Input'!J3095=\"\",\"\",IF(OR('TSA Input'!J3095=\"Yes\",'TSA Input'!J3095=\"Contingent\"),'TSA Input'!F3095,\"\"))","v":""},"",{"$f":"IF('TSA Input'!J3095=\"\",\"\",IF(OR('TSA Input'!J3095=\"Yes\",'TSA Input'!J3095=\"Contingent\"),'TSA Input'!D3095,\"\"))","v":""},{"$f":"IF('TSA Input'!J3095=\"\",\"\",IF(OR('TSA Input'!J3095=\"Yes\",'TSA Input'!J3095=\"Contingent\"),'TSA Input'!G3095,\"\"))","v":""},{"$f":"IF('TSA Input'!J3095=\"\",\"\",IF(OR('TSA Input'!J3095=\"Yes\",'TSA Input'!J3095=\"Contingent\"),'TSA Input'!F3095,\"\"))","v":""},"","Required","Required"]
["",null,{"$f":"IF('TSA Input'!J3096=\"\",\"\",IF(OR('TSA Input'!J3096=\"Yes\",'TSA Input'!J3096=\"Contingent\"),'TSA Input'!B3096,\"Ineligible\"))","v":""},{"$f":"IF('TSA Input'!J3096=\"\",\"\",IF(OR('TSA Input'!J3096=\"Yes\",'TSA Input'!J3096=\"Contingent\"),'TSA Input'!I3096,\"\"))","v":""},{"$f":"IF('TSA Input'!J3096=\"\",\"\",IF(OR('TSA Input'!J3096=\"Yes\",'TSA Input'!J3096=\"Contingent\"),'TSA Input'!C3096,\"\"))","v":""},{"$f":"IF('TSA Input'!J3096=\"\",\"\",IF(OR('TSA Input'!J3096=\"Yes\",'TSA Input'!J3096=\"Contingent\"),'TSA Input'!D3096,\"\"))","v":""},{"$f":"IF('TSA Input'!J3096=\"\",\"\",IF(OR('TSA Input'!J3096=\"Yes\",'TSA Input'!J3096=\"Contingent\"),'TSA Input'!G3096,\"\"))","v":""},{"$f":"IF('TSA Input'!J3096=\"\",\"\",IF(OR('TSA Input'!J3096=\"Yes\",'TSA Input'!J3096=\"Contingent\"),'TSA Input'!F3096,\"\"))","v":""},"",{"$f":"IF('TSA Input'!J3096=\"\",\"\",IF(OR('TSA Input'!J3096=\"Yes\",'TSA Input'!J3096=\"Contingent\"),'TSA Input'!D3096,\"\"))","v":""},{"$f":"IF('TSA Input'!J3096=\"\",\"\",IF(OR('TSA Input'!J3096=\"Yes\",'TSA Input'!J3096=\"Contingent\"),'TSA Input'!G3096,\"\"))","v":""},{"$f":"IF('TSA Input'!J3096=\"\",\"\",IF(OR('TSA Input'!J3096=\"Yes\",'TSA Input'!J3096=\"Contingent\"),'TSA Input'!F3096,\"\"))","v":""},"","Required","Required"]
["",null,{"$f":"IF('TSA Input'!J3097=\"\",\"\",IF(OR('TSA Input'!J3097=\"Yes\",'TSA Input'!J3097=\"Contingent\"),'TSA Input'!B3097,\"Ineligible\"))","v":""},{"$f":"IF('TSA Input'!J3097=\"\",\"\",IF(OR('TSA Input'!J3097=\"Yes\",'TSA Input'!J3097=\"Contingent\"),'TSA Input'!I3097,\"\"))","v":""},{"$f":"IF('TSA Input'!J3097=\"\",\"\",IF(OR('TSA Input'!J3097=\"Yes\",'TSA Input'!J3097=\"Contingent\"),'TSA Input'!C3097,\"\"))","v":""},{"$f":"IF('TSA Input'!J3097=\"\",\"\",IF(OR('TSA Input'!J3097=\"Yes\",'TSA Input'!J3097=\"Contingent\"),'TSA Input'!D3097,\"\"))","v":""},{"$f":"IF('TSA Input'!J3097=\"\",\"\",IF(OR('TSA Input'!J3097=\"Yes\",'TSA Input'!J3097=\"Contingent\"),'TSA Input'!G3097,\"\"))","v":""},{"$f":"IF('TSA Input'!J3097=\"\",\"\",IF(OR('TSA Input'!J3097=\"Yes\",'TSA Input'!J3097=\"Contingent\"),'TSA Input'!F3097,\"\"))","v":""},"",{"$f":"IF('TSA Input'!J3097=\"\",\"\",IF(OR('TSA Input'!J3097=\"Yes\",'TSA Input'!J3097=\"Contingent\"),'TSA Input'!D3097,\"\"))","v":""},{"$f":"IF('TSA Input'!J3097=\"\",\"\",IF(OR('TSA Input'!J3097=\"Yes\",'TSA Input'!J3097=\"Contingent\"),'TSA Input'!G3097,\"\"))","v":""},{"$f":"IF('TSA Input'!J3097=\"\",\"\",IF(OR('TSA Input'!J3097=\"Yes\",'TSA Input'!J3097=\"Contingent\"),'TSA Input'!F3097,\"\"))","v":""},"","Required","Required"]
["",null,{"$f":"IF('TSA Input'!J3098=\"\",\"\",IF(OR('TSA Input'!J3098=\"Yes\",'TSA Input'!J3098=\"Contingent\"),'TSA Input'!B3098,\"Ineligible\"))","v":""},{"$f":"IF('TSA Input'!J3098=\"\",\"\",IF(OR('TSA Input'!J3098=\"Yes\",'TSA Input'!J3098=\"Contingent\"),'TSA Input'!I3098,\"\"))","v":""},{"$f":"IF('TSA Input'!J3098=\"\",\"\",IF(OR('TSA Input'!J3098=\"Yes\",'TSA Input'!J3098=\"Contingent\"),'TSA Input'!C3098,\"\"))","v":""},{"$f":"IF('TSA Input'!J3098=\"\",\"\",IF(OR('TSA Input'!J3098=\"Yes\",'TSA Input'!J3098=\"Contingent\"),'TSA Input'!D3098,\"\"))","v":""},{"$f":"IF('TSA Input'!J3098=\"\",\"\",IF(OR('TSA Input'!J3098=\"Yes\",'TSA Input'!J3098=\"Contingent\"),'TSA Input'!G3098,\"\"))","v":""},{"$f":"IF('TSA Input'!J3098=\"\",\"\",IF(OR('TSA Input'!J3098=\"Yes\",'TSA Input'!J3098=\"Contingent\"),'TSA Input'!F3098,\"\"))","v":""},"",{"$f":"IF('TSA Input'!J3098=\"\",\"\",IF(OR('TSA Input'!J3098=\"Yes\",'TSA Input'!J3098=\"Contingent\"),'TSA Input'!D3098,\"\"))","v":""},{"$f":"IF('TSA Input'!J3098=\"\",\"\",IF(OR('TSA Input'!J3098=\"Yes\",'TSA Input'!J3098=\"Contingent\"),'TSA Input'!G3098,\"\"))","v":""},{"$f":"IF('TSA Input'!J3098=\"\",\"\",IF(OR('TSA Input'!J3098=\"Yes\",'TSA Input'!J3098=\"Contingent\"),'TSA Input'!F3098,\"\"))","v":""},"","Required","Required"]
["",null,{"$f":"IF('TSA Input'!J3099=\"\",\"\",IF(OR('TSA Input'!J3099=\"Yes\",'TSA Input'!J3099=\"Contingent\"),'TSA Input'!B3099,\"Ineligible\"))","v":""},{"$f":"IF('TSA Input'!J3099=\"\",\"\",IF(OR('TSA Input'!J3099=\"Yes\",'TSA Input'!J3099=\"Contingent\"),'TSA Input'!I3099,\"\"))","v":""},{"$f":"IF('TSA Input'!J3099=\"\",\"\",IF(OR('TSA Input'!J3099=\"Yes\",'TSA Input'!J3099=\"Contingent\"),'TSA Input'!C3099,\"\"))","v":""},{"$f":"IF('TSA Input'!J3099=\"\",\"\",IF(OR('TSA Input'!J3099=\"Yes\",'TSA Input'!J3099=\"Contingent\"),'TSA Input'!D3099,\"\"))","v":""},{"$f":"IF('TSA Input'!J3099=\"\",\"\",IF(OR('TSA Input'!J3099=\"Yes\",'TSA Input'!J3099=\"Contingent\"),'TSA Input'!G3099,\"\"))","v":""},{"$f":"IF('TSA Input'!J3099=\"\",\"\",IF(OR('TSA Input'!J3099=\"Yes\",'TSA Input'!J3099=\"Contingent\"),'TSA Input'!F3099,\"\"))","v":""},"",{"$f":"IF('TSA Input'!J3099=\"\",\"\",IF(OR('TSA Input'!J3099=\"Yes\",'TSA Input'!J3099=\"Contingent\"),'TSA Input'!D3099,\"\"))","v":""},{"$f":"IF('TSA Input'!J3099=\"\",\"\",IF(OR('TSA Input'!J3099=\"Yes\",'TSA Input'!J3099=\"Contingent\"),'TSA Input'!G3099,\"\"))","v":""},{"$f":"IF('TSA Input'!J3099=\"\",\"\",IF(OR('TSA Input'!J3099=\"Yes\",'TSA Input'!J3099=\"Contingent\"),'TSA Input'!F3099,\"\"))","v":""},"","Required","Required"]
["",null,{"$f":"IF('TSA Input'!J3100=\"\",\"\",IF(OR('TSA Input'!J3100=\"Yes\",'TSA Input'!J3100=\"Contingent\"),'TSA Input'!B3100,\"Ineligible\"))","v":""},{"$f":"IF('TSA Input'!J3100=\"\",\"\",IF(OR('TSA Input'!J3100=\"Yes\",'TSA Input'!J3100=\"Contingent\"),'TSA Input'!I3100,\"\"))","v":""},{"$f":"IF('TSA Input'!J3100=\"\",\"\",IF(OR('TSA Input'!J3100=\"Yes\",'TSA Input'!J3100=\"Contingent\"),'TSA Input'!C3100,\"\"))","v":""},{"$f":"IF('TSA Input'!J3100=\"\",\"\",IF(OR('TSA Input'!J3100=\"Yes\",'TSA Input'!J3100=\"Contingent\"),'TSA Input'!D3100,\"\"))","v":""},{"$f":"IF('TSA Input'!J3100=\"\",\"\",IF(OR('TSA Input'!J3100=\"Yes\",'TSA Input'!J3100=\"Contingent\"),'TSA Input'!G3100,\"\"))","v":""},{"$f":"IF('TSA Input'!J3100=\"\",\"\",IF(OR('TSA Input'!J3100=\"Yes\",'TSA Input'!J3100=\"Contingent\"),'TSA Input'!F3100,\"\"))","v":""},"",{"$f":"IF('TSA Input'!J3100=\"\",\"\",IF(OR('TSA Input'!J3100=\"Yes\",'TSA Input'!J3100=\"Contingent\"),'TSA Input'!D3100,\"\"))","v":""},{"$f":"IF('TSA Input'!J3100=\"\",\"\",IF(OR('TSA Input'!J3100=\"Yes\",'TSA Input'!J3100=\"Contingent\"),'TSA Input'!G3100,\"\"))","v":""},{"$f":"IF('TSA Input'!J3100=\"\",\"\",IF(OR('TSA Input'!J3100=\"Yes\",'TSA Input'!J3100=\"Contingent\"),'TSA Input'!F3100,\"\"))","v":""},"","Required","Required"]
["",null,{"$f":"IF('TSA Input'!J3101=\"\",\"\",IF(OR('TSA Input'!J3101=\"Yes\",'TSA Input'!J3101=\"Contingent\"),'TSA Input'!B3101,\"Ineligible\"))","v":""},{"$f":"IF('TSA Input'!J3101=\"\",\"\",IF(OR('TSA Input'!J3101=\"Yes\",'TSA Input'!J3101=\"Contingent\"),'TSA Input'!I3101,\"\"))","v":""},{"$f":"IF('TSA Input'!J3101=\"\",\"\",IF(OR('TSA Input'!J3101=\"Yes\",'TSA Input'!J3101=\"Contingent\"),'TSA Input'!C3101,\"\"))","v":""},{"$f":"IF('TSA Input'!J3101=\"\",\"\",IF(OR('TSA Input'!J3101=\"Yes\",'TSA Input'!J3101=\"Contingent\"),'TSA Input'!D3101,\"\"))","v":""},{"$f":"IF('TSA Input'!J3101=\"\",\"\",IF(OR('TSA Input'!J3101=\"Yes\",'TSA Input'!J3101=\"Contingent\"),'TSA Input'!G3101,\"\"))","v":""},{"$f":"IF('TSA Input'!J3101=\"\",\"\",IF(OR('TSA Input'!J3101=\"Yes\",'TSA Input'!J3101=\"Contingent\"),'TSA Input'!F3101,\"\"))","v":""},"",{"$f":"IF('TSA Input'!J3101=\"\",\"\",IF(OR('TSA Input'!J3101=\"Yes\",'TSA Input'!J3101=\"Contingent\"),'TSA Input'!D3101,\"\"))","v":""},{"$f":"IF('TSA Input'!J3101=\"\",\"\",IF(OR('TSA Input'!J3101=\"Yes\",'TSA Input'!J3101=\"Contingent\"),'TSA Input'!G3101,\"\"))","v":""},{"$f":"IF('TSA Input'!J3101=\"\",\"\",IF(OR('TSA Input'!J3101=\"Yes\",'TSA Input'!J3101=\"Contingent\"),'TSA Input'!F3101,\"\"))","v":""},"","Required","Required"]
["",null,{"$f":"IF('TSA Input'!J3102=\"\",\"\",IF(OR('TSA Input'!J3102=\"Yes\",'TSA Input'!J3102=\"Contingent\"),'TSA Input'!B3102,\"Ineligible\"))","v":""},{"$f":"IF('TSA Input'!J3102=\"\",\"\",IF(OR('TSA Input'!J3102=\"Yes\",'TSA Input'!J3102=\"Contingent\"),'TSA Input'!I3102,\"\"))","v":""},{"$f":"IF('TSA Input'!J3102=\"\",\"\",IF(OR('TSA Input'!J3102=\"Yes\",'TSA Input'!J3102=\"Contingent\"),'TSA Input'!C3102,\"\"))","v":""},{"$f":"IF('TSA Input'!J3102=\"\",\"\",IF(OR('TSA Input'!J3102=\"Yes\",'TSA Input'!J3102=\"Contingent\"),'TSA Input'!D3102,\"\"))","v":""},{"$f":"IF('TSA Input'!J3102=\"\",\"\",IF(OR('TSA Input'!J3102=\"Yes\",'TSA Input'!J3102=\"Contingent\"),'TSA Input'!G3102,\"\"))","v":""},{"$f":"IF('TSA Input'!J3102=\"\",\"\",IF(OR('TSA Input'!J3102=\"Yes\",'TSA Input'!J3102=\"Contingent\"),'TSA Input'!F3102,\"\"))","v":""},"",{"$f":"IF('TSA Input'!J3102=\"\",\"\",IF(OR('TSA Input'!J3102=\"Yes\",'TSA Input'!J3102=\"Contingent\"),'TSA Input'!D3102,\"\"))","v":""},{"$f":"IF('TSA Input'!J3102=\"\",\"\",IF(OR('TSA Input'!J3102=\"Yes\",'TSA Input'!J3102=\"Contingent\"),'TSA Input'!G3102,\"\"))","v":""},{"$f":"IF('TSA Input'!J3102=\"\",\"\",IF(OR('TSA Input'!J3102=\"Yes\",'TSA Input'!J3102=\"Contingent\"),'TSA Input'!F3102,\"\"))","v":""},"","Required","Required"]
["",null,{"$f":"IF('TSA Input'!J3103=\"\",\"\",IF(OR('TSA Input'!J3103=\"Yes\",'TSA Input'!J3103=\"Contingent\"),'TSA Input'!B3103,\"Ineligible\"))","v":""},{"$f":"IF('TSA Input'!J3103=\"\",\"\",IF(OR('TSA Input'!J3103=\"Yes\",'TSA Input'!J3103=\"Contingent\"),'TSA Input'!I3103,\"\"))","v":""},{"$f":"IF('TSA Input'!J3103=\"\",\"\",IF(OR('TSA Input'!J3103=\"Yes\",'TSA Input'!J3103=\"Contingent\"),'TSA Input'!C3103,\"\"))","v":""},{"$f":"IF('TSA Input'!J3103=\"\",\"\",IF(OR('TSA Input'!J3103=\"Yes\",'TSA Input'!J3103=\"Contingent\"),'TSA Input'!D3103,\"\"))","v":""},{"$f":"IF('TSA Input'!J3103=\"\",\"\",IF(OR('TSA Input'!J3103=\"Yes\",'TSA Input'!J3103=\"Contingent\"),'TSA Input'!G3103,\"\"))","v":""},{"$f":"IF('TSA Input'!J3103=\"\",\"\",IF(OR('TSA Input'!J3103=\"Yes\",'TSA Input'!J3103=\"Contingent\"),'TSA Input'!F3103,\"\"))","v":""},"",{"$f":"IF('TSA Input'!J3103=\"\",\"\",IF(OR('TSA Input'!J3103=\"Yes\",'TSA Input'!J3103=\"Contingent\"),'TSA Input'!D3103,\"\"))","v":""},{"$f":"IF('TSA Input'!J3103=\"\",\"\",IF(OR('TSA Input'!J3103=\"Yes\",'TSA Input'!J3103=\"Contingent\"),'TSA Input'!G3103,\"\"))","v":""},{"$f":"IF('TSA Input'!J3103=\"\",\"\",IF(OR('TSA Input'!J3103=\"Yes\",'TSA Input'!J3103=\"Contingent\"),'TSA Input'!F3103,\"\"))","v":""},"","Required","Required"]
["",null,{"$f":"IF('TSA Input'!J3104=\"\",\"\",IF(OR('TSA Input'!J3104=\"Yes\",'TSA Input'!J3104=\"Contingent\"),'TSA Input'!B3104,\"Ineligible\"))","v":""},{"$f":"IF('TSA Input'!J3104=\"\",\"\",IF(OR('TSA Input'!J3104=\"Yes\",'TSA Input'!J3104=\"Contingent\"),'TSA Input'!I3104,\"\"))","v":""},{"$f":"IF('TSA Input'!J3104=\"\",\"\",IF(OR('TSA Input'!J3104=\"Yes\",'TSA Input'!J3104=\"Contingent\"),'TSA Input'!C3104,\"\"))","v":""},{"$f":"IF('TSA Input'!J3104=\"\",\"\",IF(OR('TSA Input'!J3104=\"Yes\",'TSA Input'!J3104=\"Contingent\"),'TSA Input'!D3104,\"\"))","v":""},{"$f":"IF('TSA Input'!J3104=\"\",\"\",IF(OR('TSA Input'!J3104=\"Yes\",'TSA Input'!J3104=\"Contingent\"),'TSA Input'!G3104,\"\"))","v":""},{"$f":"IF('TSA Input'!J3104=\"\",\"\",IF(OR('TSA Input'!J3104=\"Yes\",'TSA Input'!J3104=\"Contingent\"),'TSA Input'!F3104,\"\"))","v":""},"",{"$f":"IF('TSA Input'!J3104=\"\",\"\",IF(OR('TSA Input'!J3104=\"Yes\",'TSA Input'!J3104=\"Contingent\"),'TSA Input'!D3104,\"\"))","v":""},{"$f":"IF('TSA Input'!J3104=\"\",\"\",IF(OR('TSA Input'!J3104=\"Yes\",'TSA Input'!J3104=\"Contingent\"),'TSA Input'!G3104,\"\"))","v":""},{"$f":"IF('TSA Input'!J3104=\"\",\"\",IF(OR('TSA Input'!J3104=\"Yes\",'TSA Input'!J3104=\"Contingent\"),'TSA Input'!F3104,\"\"))","v":""},"","Required","Required"]
["",null,{"$f":"IF('TSA Input'!J3105=\"\",\"\",IF(OR('TSA Input'!J3105=\"Yes\",'TSA Input'!J3105=\"Contingent\"),'TSA Input'!B3105,\"Ineligible\"))","v":""},{"$f":"IF('TSA Input'!J3105=\"\",\"\",IF(OR('TSA Input'!J3105=\"Yes\",'TSA Input'!J3105=\"Contingent\"),'TSA Input'!I3105,\"\"))","v":""},{"$f":"IF('TSA Input'!J3105=\"\",\"\",IF(OR('TSA Input'!J3105=\"Yes\",'TSA Input'!J3105=\"Contingent\"),'TSA Input'!C3105,\"\"))","v":""},{"$f":"IF('TSA Input'!J3105=\"\",\"\",IF(OR('TSA Input'!J3105=\"Yes\",'TSA Input'!J3105=\"Contingent\"),'TSA Input'!D3105,\"\"))","v":""},{"$f":"IF('TSA Input'!J3105=\"\",\"\",IF(OR('TSA Input'!J3105=\"Yes\",'TSA Input'!J3105=\"Contingent\"),'TSA Input'!G3105,\"\"))","v":""},{"$f":"IF('TSA Input'!J3105=\"\",\"\",IF(OR('TSA Input'!J3105=\"Yes\",'TSA Input'!J3105=\"Contingent\"),'TSA Input'!F3105,\"\"))","v":""},"",{"$f":"IF('TSA Input'!J3105=\"\",\"\",IF(OR('TSA Input'!J3105=\"Yes\",'TSA Input'!J3105=\"Contingent\"),'TSA Input'!D3105,\"\"))","v":""},{"$f":"IF('TSA Input'!J3105=\"\",\"\",IF(OR('TSA Input'!J3105=\"Yes\",'TSA Input'!J3105=\"Contingent\"),'TSA Input'!G3105,\"\"))","v":""},{"$f":"IF('TSA Input'!J3105=\"\",\"\",IF(OR('TSA Input'!J3105=\"Yes\",'TSA Input'!J3105=\"Contingent\"),'TSA Input'!F3105,\"\"))","v":""},"","Required","Required"]
["",null,{"$f":"IF('TSA Input'!J3106=\"\",\"\",IF(OR('TSA Input'!J3106=\"Yes\",'TSA Input'!J3106=\"Contingent\"),'TSA Input'!B3106,\"Ineligible\"))","v":""},{"$f":"IF('TSA Input'!J3106=\"\",\"\",IF(OR('TSA Input'!J3106=\"Yes\",'TSA Input'!J3106=\"Contingent\"),'TSA Input'!I3106,\"\"))","v":""},{"$f":"IF('TSA Input'!J3106=\"\",\"\",IF(OR('TSA Input'!J3106=\"Yes\",'TSA Input'!J3106=\"Contingent\"),'TSA Input'!C3106,\"\"))","v":""},{"$f":"IF('TSA Input'!J3106=\"\",\"\",IF(OR('TSA Input'!J3106=\"Yes\",'TSA Input'!J3106=\"Contingent\"),'TSA Input'!D3106,\"\"))","v":""},{"$f":"IF('TSA Input'!J3106=\"\",\"\",IF(OR('TSA Input'!J3106=\"Yes\",'TSA Input'!J3106=\"Contingent\"),'TSA Input'!G3106,\"\"))","v":""},{"$f":"IF('TSA Input'!J3106=\"\",\"\",IF(OR('TSA Input'!J3106=\"Yes\",'TSA Input'!J3106=\"Contingent\"),'TSA Input'!F3106,\"\"))","v":""},"",{"$f":"IF('TSA Input'!J3106=\"\",\"\",IF(OR('TSA Input'!J3106=\"Yes\",'TSA Input'!J3106=\"Contingent\"),'TSA Input'!D3106,\"\"))","v":""},{"$f":"IF('TSA Input'!J3106=\"\",\"\",IF(OR('TSA Input'!J3106=\"Yes\",'TSA Input'!J3106=\"Contingent\"),'TSA Input'!G3106,\"\"))","v":""},{"$f":"IF('TSA Input'!J3106=\"\",\"\",IF(OR('TSA Input'!J3106=\"Yes\",'TSA Input'!J3106=\"Contingent\"),'TSA Input'!F3106,\"\"))","v":""},"","Required","Required"]
["",null,{"$f":"IF('TSA Input'!J3107=\"\",\"\",IF(OR('TSA Input'!J3107=\"Yes\",'TSA Input'!J3107=\"Contingent\"),'TSA Input'!B3107,\"Ineligible\"))","v":""},{"$f":"IF('TSA Input'!J3107=\"\",\"\",IF(OR('TSA Input'!J3107=\"Yes\",'TSA Input'!J3107=\"Contingent\"),'TSA Input'!I3107,\"\"))","v":""},{"$f":"IF('TSA Input'!J3107=\"\",\"\",IF(OR('TSA Input'!J3107=\"Yes\",'TSA Input'!J3107=\"Contingent\"),'TSA Input'!C3107,\"\"))","v":""},{"$f":"IF('TSA Input'!J3107=\"\",\"\",IF(OR('TSA Input'!J3107=\"Yes\",'TSA Input'!J3107=\"Contingent\"),'TSA Input'!D3107,\"\"))","v":""},{"$f":"IF('TSA Input'!J3107=\"\",\"\",IF(OR('TSA Input'!J3107=\"Yes\",'TSA Input'!J3107=\"Contingent\"),'TSA Input'!G3107,\"\"))","v":""},{"$f":"IF('TSA Input'!J3107=\"\",\"\",IF(OR('TSA Input'!J3107=\"Yes\",'TSA Input'!J3107=\"Contingent\"),'TSA Input'!F3107,\"\"))","v":""},"",{"$f":"IF('TSA Input'!J3107=\"\",\"\",IF(OR('TSA Input'!J3107=\"Yes\",'TSA Input'!J3107=\"Contingent\"),'TSA Input'!D3107,\"\"))","v":""},{"$f":"IF('TSA Input'!J3107=\"\",\"\",IF(OR('TSA Input'!J3107=\"Yes\",'TSA Input'!J3107=\"Contingent\"),'TSA Input'!G3107,\"\"))","v":""},{"$f":"IF('TSA Input'!J3107=\"\",\"\",IF(OR('TSA Input'!J3107=\"Yes\",'TSA Input'!J3107=\"Contingent\"),'TSA Input'!F3107,\"\"))","v":""},"","Required","Required"]
["",null,{"$f":"IF('TSA Input'!J3108=\"\",\"\",IF(OR('TSA Input'!J3108=\"Yes\",'TSA Input'!J3108=\"Contingent\"),'TSA Input'!B3108,\"Ineligible\"))","v":""},{"$f":"IF('TSA Input'!J3108=\"\",\"\",IF(OR('TSA Input'!J3108=\"Yes\",'TSA Input'!J3108=\"Contingent\"),'TSA Input'!I3108,\"\"))","v":""},{"$f":"IF('TSA Input'!J3108=\"\",\"\",IF(OR('TSA Input'!J3108=\"Yes\",'TSA Input'!J3108=\"Contingent\"),'TSA Input'!C3108,\"\"))","v":""},{"$f":"IF('TSA Input'!J3108=\"\",\"\",IF(OR('TSA Input'!J3108=\"Yes\",'TSA Input'!J3108=\"Contingent\"),'TSA Input'!D3108,\"\"))","v":""},{"$f":"IF('TSA Input'!J3108=\"\",\"\",IF(OR('TSA Input'!J3108=\"Yes\",'TSA Input'!J3108=\"Contingent\"),'TSA Input'!G3108,\"\"))","v":""},{"$f":"IF('TSA Input'!J3108=\"\",\"\",IF(OR('TSA Input'!J3108=\"Yes\",'TSA Input'!J3108=\"Contingent\"),'TSA Input'!F3108,\"\"))","v":""},"",{"$f":"IF('TSA Input'!J3108=\"\",\"\",IF(OR('TSA Input'!J3108=\"Yes\",'TSA Input'!J3108=\"Contingent\"),'TSA Input'!D3108,\"\"))","v":""},{"$f":"IF('TSA Input'!J3108=\"\",\"\",IF(OR('TSA Input'!J3108=\"Yes\",'TSA Input'!J3108=\"Contingent\"),'TSA Input'!G3108,\"\"))","v":""},{"$f":"IF('TSA Input'!J3108=\"\",\"\",IF(OR('TSA Input'!J3108=\"Yes\",'TSA Input'!J3108=\"Contingent\"),'TSA Input'!F3108,\"\"))","v":""},"","Required","Required"]
["",null,{"$f":"IF('TSA Input'!J3109=\"\",\"\",IF(OR('TSA Input'!J3109=\"Yes\",'TSA Input'!J3109=\"Contingent\"),'TSA Input'!B3109,\"Ineligible\"))","v":""},{"$f":"IF('TSA Input'!J3109=\"\",\"\",IF(OR('TSA Input'!J3109=\"Yes\",'TSA Input'!J3109=\"Contingent\"),'TSA Input'!I3109,\"\"))","v":""},{"$f":"IF('TSA Input'!J3109=\"\",\"\",IF(OR('TSA Input'!J3109=\"Yes\",'TSA Input'!J3109=\"Contingent\"),'TSA Input'!C3109,\"\"))","v":""},{"$f":"IF('TSA Input'!J3109=\"\",\"\",IF(OR('TSA Input'!J3109=\"Yes\",'TSA Input'!J3109=\"Contingent\"),'TSA Input'!D3109,\"\"))","v":""},{"$f":"IF('TSA Input'!J3109=\"\",\"\",IF(OR('TSA Input'!J3109=\"Yes\",'TSA Input'!J3109=\"Contingent\"),'TSA Input'!G3109,\"\"))","v":""},{"$f":"IF('TSA Input'!J3109=\"\",\"\",IF(OR('TSA Input'!J3109=\"Yes\",'TSA Input'!J3109=\"Contingent\"),'TSA Input'!F3109,\"\"))","v":""},"",{"$f":"IF('TSA Input'!J3109=\"\",\"\",IF(OR('TSA Input'!J3109=\"Yes\",'TSA Input'!J3109=\"Contingent\"),'TSA Input'!D3109,\"\"))","v":""},{"$f":"IF('TSA Input'!J3109=\"\",\"\",IF(OR('TSA Input'!J3109=\"Yes\",'TSA Input'!J3109=\"Contingent\"),'TSA Input'!G3109,\"\"))","v":""},{"$f":"IF('TSA Input'!J3109=\"\",\"\",IF(OR('TSA Input'!J3109=\"Yes\",'TSA Input'!J3109=\"Contingent\"),'TSA Input'!F3109,\"\"))","v":""},"","Required","Required"]
["",null,{"$f":"IF('TSA Input'!J3110=\"\",\"\",IF(OR('TSA Input'!J3110=\"Yes\",'TSA Input'!J3110=\"Contingent\"),'TSA Input'!B3110,\"Ineligible\"))","v":""},{"$f":"IF('TSA Input'!J3110=\"\",\"\",IF(OR('TSA Input'!J3110=\"Yes\",'TSA Input'!J3110=\"Contingent\"),'TSA Input'!I3110,\"\"))","v":""},{"$f":"IF('TSA Input'!J3110=\"\",\"\",IF(OR('TSA Input'!J3110=\"Yes\",'TSA Input'!J3110=\"Contingent\"),'TSA Input'!C3110,\"\"))","v":""},{"$f":"IF('TSA Input'!J3110=\"\",\"\",IF(OR('TSA Input'!J3110=\"Yes\",'TSA Input'!J3110=\"Contingent\"),'TSA Input'!D3110,\"\"))","v":""},{"$f":"IF('TSA Input'!J3110=\"\",\"\",IF(OR('TSA Input'!J3110=\"Yes\",'TSA Input'!J3110=\"Contingent\"),'TSA Input'!G3110,\"\"))","v":""},{"$f":"IF('TSA Input'!J3110=\"\",\"\",IF(OR('TSA Input'!J3110=\"Yes\",'TSA Input'!J3110=\"Contingent\"),'TSA Input'!F3110,\"\"))","v":""},"",{"$f":"IF('TSA Input'!J3110=\"\",\"\",IF(OR('TSA Input'!J3110=\"Yes\",'TSA Input'!J3110=\"Contingent\"),'TSA Input'!D3110,\"\"))","v":""},{"$f":"IF('TSA Input'!J3110=\"\",\"\",IF(OR('TSA Input'!J3110=\"Yes\",'TSA Input'!J3110=\"Contingent\"),'TSA Input'!G3110,\"\"))","v":""},{"$f":"IF('TSA Input'!J3110=\"\",\"\",IF(OR('TSA Input'!J3110=\"Yes\",'TSA Input'!J3110=\"Contingent\"),'TSA Input'!F3110,\"\"))","v":""},"","Required","Required"]
["",null,{"$f":"IF('TSA Input'!J3111=\"\",\"\",IF(OR('TSA Input'!J3111=\"Yes\",'TSA Input'!J3111=\"Contingent\"),'TSA Input'!B3111,\"Ineligible\"))","v":""},{"$f":"IF('TSA Input'!J3111=\"\",\"\",IF(OR('TSA Input'!J3111=\"Yes\",'TSA Input'!J3111=\"Contingent\"),'TSA Input'!I3111,\"\"))","v":""},{"$f":"IF('TSA Input'!J3111=\"\",\"\",IF(OR('TSA Input'!J3111=\"Yes\",'TSA Input'!J3111=\"Contingent\"),'TSA Input'!C3111,\"\"))","v":""},{"$f":"IF('TSA Input'!J3111=\"\",\"\",IF(OR('TSA Input'!J3111=\"Yes\",'TSA Input'!J3111=\"Contingent\"),'TSA Input'!D3111,\"\"))","v":""},{"$f":"IF('TSA Input'!J3111=\"\",\"\",IF(OR('TSA Input'!J3111=\"Yes\",'TSA Input'!J3111=\"Contingent\"),'TSA Input'!G3111,\"\"))","v":""},{"$f":"IF('TSA Input'!J3111=\"\",\"\",IF(OR('TSA Input'!J3111=\"Yes\",'TSA Input'!J3111=\"Contingent\"),'TSA Input'!F3111,\"\"))","v":""},"",{"$f":"IF('TSA Input'!J3111=\"\",\"\",IF(OR('TSA Input'!J3111=\"Yes\",'TSA Input'!J3111=\"Contingent\"),'TSA Input'!D3111,\"\"))","v":""},{"$f":"IF('TSA Input'!J3111=\"\",\"\",IF(OR('TSA Input'!J3111=\"Yes\",'TSA Input'!J3111=\"Contingent\"),'TSA Input'!G3111,\"\"))","v":""},{"$f":"IF('TSA Input'!J3111=\"\",\"\",IF(OR('TSA Input'!J3111=\"Yes\",'TSA Input'!J3111=\"Contingent\"),'TSA Input'!F3111,\"\"))","v":""},"","Required","Required"]
["",null,{"$f":"IF('TSA Input'!J3112=\"\",\"\",IF(OR('TSA Input'!J3112=\"Yes\",'TSA Input'!J3112=\"Contingent\"),'TSA Input'!B3112,\"Ineligible\"))","v":""},{"$f":"IF('TSA Input'!J3112=\"\",\"\",IF(OR('TSA Input'!J3112=\"Yes\",'TSA Input'!J3112=\"Contingent\"),'TSA Input'!I3112,\"\"))","v":""},{"$f":"IF('TSA Input'!J3112=\"\",\"\",IF(OR('TSA Input'!J3112=\"Yes\",'TSA Input'!J3112=\"Contingent\"),'TSA Input'!C3112,\"\"))","v":""},{"$f":"IF('TSA Input'!J3112=\"\",\"\",IF(OR('TSA Input'!J3112=\"Yes\",'TSA Input'!J3112=\"Contingent\"),'TSA Input'!D3112,\"\"))","v":""},{"$f":"IF('TSA Input'!J3112=\"\",\"\",IF(OR('TSA Input'!J3112=\"Yes\",'TSA Input'!J3112=\"Contingent\"),'TSA Input'!G3112,\"\"))","v":""},{"$f":"IF('TSA Input'!J3112=\"\",\"\",IF(OR('TSA Input'!J3112=\"Yes\",'TSA Input'!J3112=\"Contingent\"),'TSA Input'!F3112,\"\"))","v":""},"",{"$f":"IF('TSA Input'!J3112=\"\",\"\",IF(OR('TSA Input'!J3112=\"Yes\",'TSA Input'!J3112=\"Contingent\"),'TSA Input'!D3112,\"\"))","v":""},{"$f":"IF('TSA Input'!J3112=\"\",\"\",IF(OR('TSA Input'!J3112=\"Yes\",'TSA Input'!J3112=\"Contingent\"),'TSA Input'!G3112,\"\"))","v":""},{"$f":"IF('TSA Input'!J3112=\"\",\"\",IF(OR('TSA Input'!J3112=\"Yes\",'TSA Input'!J3112=\"Contingent\"),'TSA Input'!F3112,\"\"))","v":""},"","Required","Required"]
["",null,{"$f":"IF('TSA Input'!J3113=\"\",\"\",IF(OR('TSA Input'!J3113=\"Yes\",'TSA Input'!J3113=\"Contingent\"),'TSA Input'!B3113,\"Ineligible\"))","v":""},{"$f":"IF('TSA Input'!J3113=\"\",\"\",IF(OR('TSA Input'!J3113=\"Yes\",'TSA Input'!J3113=\"Contingent\"),'TSA Input'!I3113,\"\"))","v":""},{"$f":"IF('TSA Input'!J3113=\"\",\"\",IF(OR('TSA Input'!J3113=\"Yes\",'TSA Input'!J3113=\"Contingent\"),'TSA Input'!C3113,\"\"))","v":""},{"$f":"IF('TSA Input'!J3113=\"\",\"\",IF(OR('TSA Input'!J3113=\"Yes\",'TSA Input'!J3113=\"Contingent\"),'TSA Input'!D3113,\"\"))","v":""},{"$f":"IF('TSA Input'!J3113=\"\",\"\",IF(OR('TSA Input'!J3113=\"Yes\",'TSA Input'!J3113=\"Contingent\"),'TSA Input'!G3113,\"\"))","v":""},{"$f":"IF('TSA Input'!J3113=\"\",\"\",IF(OR('TSA Input'!J3113=\"Yes\",'TSA Input'!J3113=\"Contingent\"),'TSA Input'!F3113,\"\"))","v":""},"",{"$f":"IF('TSA Input'!J3113=\"\",\"\",IF(OR('TSA Input'!J3113=\"Yes\",'TSA Input'!J3113=\"Contingent\"),'TSA Input'!D3113,\"\"))","v":""},{"$f":"IF('TSA Input'!J3113=\"\",\"\",IF(OR('TSA Input'!J3113=\"Yes\",'TSA Input'!J3113=\"Contingent\"),'TSA Input'!G3113,\"\"))","v":""},{"$f":"IF('TSA Input'!J3113=\"\",\"\",IF(OR('TSA Input'!J3113=\"Yes\",'TSA Input'!J3113=\"Contingent\"),'TSA Input'!F3113,\"\"))","v":""},"","Required","Required"]
["",null,{"$f":"IF('TSA Input'!J3114=\"\",\"\",IF(OR('TSA Input'!J3114=\"Yes\",'TSA Input'!J3114=\"Contingent\"),'TSA Input'!B3114,\"Ineligible\"))","v":""},{"$f":"IF('TSA Input'!J3114=\"\",\"\",IF(OR('TSA Input'!J3114=\"Yes\",'TSA Input'!J3114=\"Contingent\"),'TSA Input'!I3114,\"\"))","v":""},{"$f":"IF('TSA Input'!J3114=\"\",\"\",IF(OR('TSA Input'!J3114=\"Yes\",'TSA Input'!J3114=\"Contingent\"),'TSA Input'!C3114,\"\"))","v":""},{"$f":"IF('TSA Input'!J3114=\"\",\"\",IF(OR('TSA Input'!J3114=\"Yes\",'TSA Input'!J3114=\"Contingent\"),'TSA Input'!D3114,\"\"))","v":""},{"$f":"IF('TSA Input'!J3114=\"\",\"\",IF(OR('TSA Input'!J3114=\"Yes\",'TSA Input'!J3114=\"Contingent\"),'TSA Input'!G3114,\"\"))","v":""},{"$f":"IF('TSA Input'!J3114=\"\",\"\",IF(OR('TSA Input'!J3114=\"Yes\",'TSA Input'!J3114=\"Contingent\"),'TSA Input'!F3114,\"\"))","v":""},"",{"$f":"IF('TSA Input'!J3114=\"\",\"\",IF(OR('TSA Input'!J3114=\"Yes\",'TSA Input'!J3114=\"Contingent\"),'TSA Input'!D3114,\"\"))","v":""},{"$f":"IF('TSA Input'!J3114=\"\",\"\",IF(OR('TSA Input'!J3114=\"Yes\",'TSA Input'!J3114=\"Contingent\"),'TSA Input'!G3114,\"\"))","v":""},{"$f":"IF('TSA Input'!J3114=\"\",\"\",IF(OR('TSA Input'!J3114=\"Yes\",'TSA Input'!J3114=\"Contingent\"),'TSA Input'!F3114,\"\"))","v":""},"","Required","Required"]
["",null,{"$f":"IF('TSA Input'!J3115=\"\",\"\",IF(OR('TSA Input'!J3115=\"Yes\",'TSA Input'!J3115=\"Contingent\"),'TSA Input'!B3115,\"Ineligible\"))","v":""},{"$f":"IF('TSA Input'!J3115=\"\",\"\",IF(OR('TSA Input'!J3115=\"Yes\",'TSA Input'!J3115=\"Contingent\"),'TSA Input'!I3115,\"\"))","v":""},{"$f":"IF('TSA Input'!J3115=\"\",\"\",IF(OR('TSA Input'!J3115=\"Yes\",'TSA Input'!J3115=\"Contingent\"),'TSA Input'!C3115,\"\"))","v":""},{"$f":"IF('TSA Input'!J3115=\"\",\"\",IF(OR('TSA Input'!J3115=\"Yes\",'TSA Input'!J3115=\"Contingent\"),'TSA Input'!D3115,\"\"))","v":""},{"$f":"IF('TSA Input'!J3115=\"\",\"\",IF(OR('TSA Input'!J3115=\"Yes\",'TSA Input'!J3115=\"Contingent\"),'TSA Input'!G3115,\"\"))","v":""},{"$f":"IF('TSA Input'!J3115=\"\",\"\",IF(OR('TSA Input'!J3115=\"Yes\",'TSA Input'!J3115=\"Contingent\"),'TSA Input'!F3115,\"\"))","v":""},"",{"$f":"IF('TSA Input'!J3115=\"\",\"\",IF(OR('TSA Input'!J3115=\"Yes\",'TSA Input'!J3115=\"Contingent\"),'TSA Input'!D3115,\"\"))","v":""},{"$f":"IF('TSA Input'!J3115=\"\",\"\",IF(OR('TSA Input'!J3115=\"Yes\",'TSA Input'!J3115=\"Contingent\"),'TSA Input'!G3115,\"\"))","v":""},{"$f":"IF('TSA Input'!J3115=\"\",\"\",IF(OR('TSA Input'!J3115=\"Yes\",'TSA Input'!J3115=\"Contingent\"),'TSA Input'!F3115,\"\"))","v":""},"","Required","Required"]
["",null,{"$f":"IF('TSA Input'!J3116=\"\",\"\",IF(OR('TSA Input'!J3116=\"Yes\",'TSA Input'!J3116=\"Contingent\"),'TSA Input'!B3116,\"Ineligible\"))","v":""},{"$f":"IF('TSA Input'!J3116=\"\",\"\",IF(OR('TSA Input'!J3116=\"Yes\",'TSA Input'!J3116=\"Contingent\"),'TSA Input'!I3116,\"\"))","v":""},{"$f":"IF('TSA Input'!J3116=\"\",\"\",IF(OR('TSA Input'!J3116=\"Yes\",'TSA Input'!J3116=\"Contingent\"),'TSA Input'!C3116,\"\"))","v":""},{"$f":"IF('TSA Input'!J3116=\"\",\"\",IF(OR('TSA Input'!J3116=\"Yes\",'TSA Input'!J3116=\"Contingent\"),'TSA Input'!D3116,\"\"))","v":""},{"$f":"IF('TSA Input'!J3116=\"\",\"\",IF(OR('TSA Input'!J3116=\"Yes\",'TSA Input'!J3116=\"Contingent\"),'TSA Input'!G3116,\"\"))","v":""},{"$f":"IF('TSA Input'!J3116=\"\",\"\",IF(OR('TSA Input'!J3116=\"Yes\",'TSA Input'!J3116=\"Contingent\"),'TSA Input'!F3116,\"\"))","v":""},"",{"$f":"IF('TSA Input'!J3116=\"\",\"\",IF(OR('TSA Input'!J3116=\"Yes\",'TSA Input'!J3116=\"Contingent\"),'TSA Input'!D3116,\"\"))","v":""},{"$f":"IF('TSA Input'!J3116=\"\",\"\",IF(OR('TSA Input'!J3116=\"Yes\",'TSA Input'!J3116=\"Contingent\"),'TSA Input'!G3116,\"\"))","v":""},{"$f":"IF('TSA Input'!J3116=\"\",\"\",IF(OR('TSA Input'!J3116=\"Yes\",'TSA Input'!J3116=\"Contingent\"),'TSA Input'!F3116,\"\"))","v":""},"","Required","Required"]
["",null,{"$f":"IF('TSA Input'!J3117=\"\",\"\",IF(OR('TSA Input'!J3117=\"Yes\",'TSA Input'!J3117=\"Contingent\"),'TSA Input'!B3117,\"Ineligible\"))","v":""},{"$f":"IF('TSA Input'!J3117=\"\",\"\",IF(OR('TSA Input'!J3117=\"Yes\",'TSA Input'!J3117=\"Contingent\"),'TSA Input'!I3117,\"\"))","v":""},{"$f":"IF('TSA Input'!J3117=\"\",\"\",IF(OR('TSA Input'!J3117=\"Yes\",'TSA Input'!J3117=\"Contingent\"),'TSA Input'!C3117,\"\"))","v":""},{"$f":"IF('TSA Input'!J3117=\"\",\"\",IF(OR('TSA Input'!J3117=\"Yes\",'TSA Input'!J3117=\"Contingent\"),'TSA Input'!D3117,\"\"))","v":""},{"$f":"IF('TSA Input'!J3117=\"\",\"\",IF(OR('TSA Input'!J3117=\"Yes\",'TSA Input'!J3117=\"Contingent\"),'TSA Input'!G3117,\"\"))","v":""},{"$f":"IF('TSA Input'!J3117=\"\",\"\",IF(OR('TSA Input'!J3117=\"Yes\",'TSA Input'!J3117=\"Contingent\"),'TSA Input'!F3117,\"\"))","v":""},"",{"$f":"IF('TSA Input'!J3117=\"\",\"\",IF(OR('TSA Input'!J3117=\"Yes\",'TSA Input'!J3117=\"Contingent\"),'TSA Input'!D3117,\"\"))","v":""},{"$f":"IF('TSA Input'!J3117=\"\",\"\",IF(OR('TSA Input'!J3117=\"Yes\",'TSA Input'!J3117=\"Contingent\"),'TSA Input'!G3117,\"\"))","v":""},{"$f":"IF('TSA Input'!J3117=\"\",\"\",IF(OR('TSA Input'!J3117=\"Yes\",'TSA Input'!J3117=\"Contingent\"),'TSA Input'!F3117,\"\"))","v":""},"","Required","Required"]
["",null,{"$f":"IF('TSA Input'!J3118=\"\",\"\",IF(OR('TSA Input'!J3118=\"Yes\",'TSA Input'!J3118=\"Contingent\"),'TSA Input'!B3118,\"Ineligible\"))","v":""},{"$f":"IF('TSA Input'!J3118=\"\",\"\",IF(OR('TSA Input'!J3118=\"Yes\",'TSA Input'!J3118=\"Contingent\"),'TSA Input'!I3118,\"\"))","v":""},{"$f":"IF('TSA Input'!J3118=\"\",\"\",IF(OR('TSA Input'!J3118=\"Yes\",'TSA Input'!J3118=\"Contingent\"),'TSA Input'!C3118,\"\"))","v":""},{"$f":"IF('TSA Input'!J3118=\"\",\"\",IF(OR('TSA Input'!J3118=\"Yes\",'TSA Input'!J3118=\"Contingent\"),'TSA Input'!D3118,\"\"))","v":""},{"$f":"IF('TSA Input'!J3118=\"\",\"\",IF(OR('TSA Input'!J3118=\"Yes\",'TSA Input'!J3118=\"Contingent\"),'TSA Input'!G3118,\"\"))","v":""},{"$f":"IF('TSA Input'!J3118=\"\",\"\",IF(OR('TSA Input'!J3118=\"Yes\",'TSA Input'!J3118=\"Contingent\"),'TSA Input'!F3118,\"\"))","v":""},"",{"$f":"IF('TSA Input'!J3118=\"\",\"\",IF(OR('TSA Input'!J3118=\"Yes\",'TSA Input'!J3118=\"Contingent\"),'TSA Input'!D3118,\"\"))","v":""},{"$f":"IF('TSA Input'!J3118=\"\",\"\",IF(OR('TSA Input'!J3118=\"Yes\",'TSA Input'!J3118=\"Contingent\"),'TSA Input'!G3118,\"\"))","v":""},{"$f":"IF('TSA Input'!J3118=\"\",\"\",IF(OR('TSA Input'!J3118=\"Yes\",'TSA Input'!J3118=\"Contingent\"),'TSA Input'!F3118,\"\"))","v":""},"","Required","Required"]
["",null,{"$f":"IF('TSA Input'!J3119=\"\",\"\",IF(OR('TSA Input'!J3119=\"Yes\",'TSA Input'!J3119=\"Contingent\"),'TSA Input'!B3119,\"Ineligible\"))","v":""},{"$f":"IF('TSA Input'!J3119=\"\",\"\",IF(OR('TSA Input'!J3119=\"Yes\",'TSA Input'!J3119=\"Contingent\"),'TSA Input'!I3119,\"\"))","v":""},{"$f":"IF('TSA Input'!J3119=\"\",\"\",IF(OR('TSA Input'!J3119=\"Yes\",'TSA Input'!J3119=\"Contingent\"),'TSA Input'!C3119,\"\"))","v":""},{"$f":"IF('TSA Input'!J3119=\"\",\"\",IF(OR('TSA Input'!J3119=\"Yes\",'TSA Input'!J3119=\"Contingent\"),'TSA Input'!D3119,\"\"))","v":""},{"$f":"IF('TSA Input'!J3119=\"\",\"\",IF(OR('TSA Input'!J3119=\"Yes\",'TSA Input'!J3119=\"Contingent\"),'TSA Input'!G3119,\"\"))","v":""},{"$f":"IF('TSA Input'!J3119=\"\",\"\",IF(OR('TSA Input'!J3119=\"Yes\",'TSA Input'!J3119=\"Contingent\"),'TSA Input'!F3119,\"\"))","v":""},"",{"$f":"IF('TSA Input'!J3119=\"\",\"\",IF(OR('TSA Input'!J3119=\"Yes\",'TSA Input'!J3119=\"Contingent\"),'TSA Input'!D3119,\"\"))","v":""},{"$f":"IF('TSA Input'!J3119=\"\",\"\",IF(OR('TSA Input'!J3119=\"Yes\",'TSA Input'!J3119=\"Contingent\"),'TSA Input'!G3119,\"\"))","v":""},{"$f":"IF('TSA Input'!J3119=\"\",\"\",IF(OR('TSA Input'!J3119=\"Yes\",'TSA Input'!J3119=\"Contingent\"),'TSA Input'!F3119,\"\"))","v":""},"","Required","Required"]
["",null,{"$f":"IF('TSA Input'!J3120=\"\",\"\",IF(OR('TSA Input'!J3120=\"Yes\",'TSA Input'!J3120=\"Contingent\"),'TSA Input'!B3120,\"Ineligible\"))","v":""},{"$f":"IF('TSA Input'!J3120=\"\",\"\",IF(OR('TSA Input'!J3120=\"Yes\",'TSA Input'!J3120=\"Contingent\"),'TSA Input'!I3120,\"\"))","v":""},{"$f":"IF('TSA Input'!J3120=\"\",\"\",IF(OR('TSA Input'!J3120=\"Yes\",'TSA Input'!J3120=\"Contingent\"),'TSA Input'!C3120,\"\"))","v":""},{"$f":"IF('TSA Input'!J3120=\"\",\"\",IF(OR('TSA Input'!J3120=\"Yes\",'TSA Input'!J3120=\"Contingent\"),'TSA Input'!D3120,\"\"))","v":""},{"$f":"IF('TSA Input'!J3120=\"\",\"\",IF(OR('TSA Input'!J3120=\"Yes\",'TSA Input'!J3120=\"Contingent\"),'TSA Input'!G3120,\"\"))","v":""},{"$f":"IF('TSA Input'!J3120=\"\",\"\",IF(OR('TSA Input'!J3120=\"Yes\",'TSA Input'!J3120=\"Contingent\"),'TSA Input'!F3120,\"\"))","v":""},"",{"$f":"IF('TSA Input'!J3120=\"\",\"\",IF(OR('TSA Input'!J3120=\"Yes\",'TSA Input'!J3120=\"Contingent\"),'TSA Input'!D3120,\"\"))","v":""},{"$f":"IF('TSA Input'!J3120=\"\",\"\",IF(OR('TSA Input'!J3120=\"Yes\",'TSA Input'!J3120=\"Contingent\"),'TSA Input'!G3120,\"\"))","v":""},{"$f":"IF('TSA Input'!J3120=\"\",\"\",IF(OR('TSA Input'!J3120=\"Yes\",'TSA Input'!J3120=\"Contingent\"),'TSA Input'!F3120,\"\"))","v":""},"","Required","Required"]
["",null,{"$f":"IF('TSA Input'!J3121=\"\",\"\",IF(OR('TSA Input'!J3121=\"Yes\",'TSA Input'!J3121=\"Contingent\"),'TSA Input'!B3121,\"Ineligible\"))","v":""},{"$f":"IF('TSA Input'!J3121=\"\",\"\",IF(OR('TSA Input'!J3121=\"Yes\",'TSA Input'!J3121=\"Contingent\"),'TSA Input'!I3121,\"\"))","v":""},{"$f":"IF('TSA Input'!J3121=\"\",\"\",IF(OR('TSA Input'!J3121=\"Yes\",'TSA Input'!J3121=\"Contingent\"),'TSA Input'!C3121,\"\"))","v":""},{"$f":"IF('TSA Input'!J3121=\"\",\"\",IF(OR('TSA Input'!J3121=\"Yes\",'TSA Input'!J3121=\"Contingent\"),'TSA Input'!D3121,\"\"))","v":""},{"$f":"IF('TSA Input'!J3121=\"\",\"\",IF(OR('TSA Input'!J3121=\"Yes\",'TSA Input'!J3121=\"Contingent\"),'TSA Input'!G3121,\"\"))","v":""},{"$f":"IF('TSA Input'!J3121=\"\",\"\",IF(OR('TSA Input'!J3121=\"Yes\",'TSA Input'!J3121=\"Contingent\"),'TSA Input'!F3121,\"\"))","v":""},"",{"$f":"IF('TSA Input'!J3121=\"\",\"\",IF(OR('TSA Input'!J3121=\"Yes\",'TSA Input'!J3121=\"Contingent\"),'TSA Input'!D3121,\"\"))","v":""},{"$f":"IF('TSA Input'!J3121=\"\",\"\",IF(OR('TSA Input'!J3121=\"Yes\",'TSA Input'!J3121=\"Contingent\"),'TSA Input'!G3121,\"\"))","v":""},{"$f":"IF('TSA Input'!J3121=\"\",\"\",IF(OR('TSA Input'!J3121=\"Yes\",'TSA Input'!J3121=\"Contingent\"),'TSA Input'!F3121,\"\"))","v":""},"","Required","Required"]
["",null,{"$f":"IF('TSA Input'!J3122=\"\",\"\",IF(OR('TSA Input'!J3122=\"Yes\",'TSA Input'!J3122=\"Contingent\"),'TSA Input'!B3122,\"Ineligible\"))","v":""},{"$f":"IF('TSA Input'!J3122=\"\",\"\",IF(OR('TSA Input'!J3122=\"Yes\",'TSA Input'!J3122=\"Contingent\"),'TSA Input'!I3122,\"\"))","v":""},{"$f":"IF('TSA Input'!J3122=\"\",\"\",IF(OR('TSA Input'!J3122=\"Yes\",'TSA Input'!J3122=\"Contingent\"),'TSA Input'!C3122,\"\"))","v":""},{"$f":"IF('TSA Input'!J3122=\"\",\"\",IF(OR('TSA Input'!J3122=\"Yes\",'TSA Input'!J3122=\"Contingent\"),'TSA Input'!D3122,\"\"))","v":""},{"$f":"IF('TSA Input'!J3122=\"\",\"\",IF(OR('TSA Input'!J3122=\"Yes\",'TSA Input'!J3122=\"Contingent\"),'TSA Input'!G3122,\"\"))","v":""},{"$f":"IF('TSA Input'!J3122=\"\",\"\",IF(OR('TSA Input'!J3122=\"Yes\",'TSA Input'!J3122=\"Contingent\"),'TSA Input'!F3122,\"\"))","v":""},"",{"$f":"IF('TSA Input'!J3122=\"\",\"\",IF(OR('TSA Input'!J3122=\"Yes\",'TSA Input'!J3122=\"Contingent\"),'TSA Input'!D3122,\"\"))","v":""},{"$f":"IF('TSA Input'!J3122=\"\",\"\",IF(OR('TSA Input'!J3122=\"Yes\",'TSA Input'!J3122=\"Contingent\"),'TSA Input'!G3122,\"\"))","v":""},{"$f":"IF('TSA Input'!J3122=\"\",\"\",IF(OR('TSA Input'!J3122=\"Yes\",'TSA Input'!J3122=\"Contingent\"),'TSA Input'!F3122,\"\"))","v":""},"","Required","Required"]
["",null,{"$f":"IF('TSA Input'!J3123=\"\",\"\",IF(OR('TSA Input'!J3123=\"Yes\",'TSA Input'!J3123=\"Contingent\"),'TSA Input'!B3123,\"Ineligible\"))","v":""},{"$f":"IF('TSA Input'!J3123=\"\",\"\",IF(OR('TSA Input'!J3123=\"Yes\",'TSA Input'!J3123=\"Contingent\"),'TSA Input'!I3123,\"\"))","v":""},{"$f":"IF('TSA Input'!J3123=\"\",\"\",IF(OR('TSA Input'!J3123=\"Yes\",'TSA Input'!J3123=\"Contingent\"),'TSA Input'!C3123,\"\"))","v":""},{"$f":"IF('TSA Input'!J3123=\"\",\"\",IF(OR('TSA Input'!J3123=\"Yes\",'TSA Input'!J3123=\"Contingent\"),'TSA Input'!D3123,\"\"))","v":""},{"$f":"IF('TSA Input'!J3123=\"\",\"\",IF(OR('TSA Input'!J3123=\"Yes\",'TSA Input'!J3123=\"Contingent\"),'TSA Input'!G3123,\"\"))","v":""},{"$f":"IF('TSA Input'!J3123=\"\",\"\",IF(OR('TSA Input'!J3123=\"Yes\",'TSA Input'!J3123=\"Contingent\"),'TSA Input'!F3123,\"\"))","v":""},"",{"$f":"IF('TSA Input'!J3123=\"\",\"\",IF(OR('TSA Input'!J3123=\"Yes\",'TSA Input'!J3123=\"Contingent\"),'TSA Input'!D3123,\"\"))","v":""},{"$f":"IF('TSA Input'!J3123=\"\",\"\",IF(OR('TSA Input'!J3123=\"Yes\",'TSA Input'!J3123=\"Contingent\"),'TSA Input'!G3123,\"\"))","v":""},{"$f":"IF('TSA Input'!J3123=\"\",\"\",IF(OR('TSA Input'!J3123=\"Yes\",'TSA Input'!J3123=\"Contingent\"),'TSA Input'!F3123,\"\"))","v":""},"","Required","Required"]
["",null,{"$f":"IF('TSA Input'!J3124=\"\",\"\",IF(OR('TSA Input'!J3124=\"Yes\",'TSA Input'!J3124=\"Contingent\"),'TSA Input'!B3124,\"Ineligible\"))","v":""},{"$f":"IF('TSA Input'!J3124=\"\",\"\",IF(OR('TSA Input'!J3124=\"Yes\",'TSA Input'!J3124=\"Contingent\"),'TSA Input'!I3124,\"\"))","v":""},{"$f":"IF('TSA Input'!J3124=\"\",\"\",IF(OR('TSA Input'!J3124=\"Yes\",'TSA Input'!J3124=\"Contingent\"),'TSA Input'!C3124,\"\"))","v":""},{"$f":"IF('TSA Input'!J3124=\"\",\"\",IF(OR('TSA Input'!J3124=\"Yes\",'TSA Input'!J3124=\"Contingent\"),'TSA Input'!D3124,\"\"))","v":""},{"$f":"IF('TSA Input'!J3124=\"\",\"\",IF(OR('TSA Input'!J3124=\"Yes\",'TSA Input'!J3124=\"Contingent\"),'TSA Input'!G3124,\"\"))","v":""},{"$f":"IF('TSA Input'!J3124=\"\",\"\",IF(OR('TSA Input'!J3124=\"Yes\",'TSA Input'!J3124=\"Contingent\"),'TSA Input'!F3124,\"\"))","v":""},"",{"$f":"IF('TSA Input'!J3124=\"\",\"\",IF(OR('TSA Input'!J3124=\"Yes\",'TSA Input'!J3124=\"Contingent\"),'TSA Input'!D3124,\"\"))","v":""},{"$f":"IF('TSA Input'!J3124=\"\",\"\",IF(OR('TSA Input'!J3124=\"Yes\",'TSA Input'!J3124=\"Contingent\"),'TSA Input'!G3124,\"\"))","v":""},{"$f":"IF('TSA Input'!J3124=\"\",\"\",IF(OR('TSA Input'!J3124=\"Yes\",'TSA Input'!J3124=\"Contingent\"),'TSA Input'!F3124,\"\"))","v":""},"","Required","Required"]
["",null,{"$f":"IF('TSA Input'!J3125=\"\",\"\",IF(OR('TSA Input'!J3125=\"Yes\",'TSA Input'!J3125=\"Contingent\"),'TSA Input'!B3125,\"Ineligible\"))","v":""},{"$f":"IF('TSA Input'!J3125=\"\",\"\",IF(OR('TSA Input'!J3125=\"Yes\",'TSA Input'!J3125=\"Contingent\"),'TSA Input'!I3125,\"\"))","v":""},{"$f":"IF('TSA Input'!J3125=\"\",\"\",IF(OR('TSA Input'!J3125=\"Yes\",'TSA Input'!J3125=\"Contingent\"),'TSA Input'!C3125,\"\"))","v":""},{"$f":"IF('TSA Input'!J3125=\"\",\"\",IF(OR('TSA Input'!J3125=\"Yes\",'TSA Input'!J3125=\"Contingent\"),'TSA Input'!D3125,\"\"))","v":""},{"$f":"IF('TSA Input'!J3125=\"\",\"\",IF(OR('TSA Input'!J3125=\"Yes\",'TSA Input'!J3125=\"Contingent\"),'TSA Input'!G3125,\"\"))","v":""},{"$f":"IF('TSA Input'!J3125=\"\",\"\",IF(OR('TSA Input'!J3125=\"Yes\",'TSA Input'!J3125=\"Contingent\"),'TSA Input'!F3125,\"\"))","v":""},"",{"$f":"IF('TSA Input'!J3125=\"\",\"\",IF(OR('TSA Input'!J3125=\"Yes\",'TSA Input'!J3125=\"Contingent\"),'TSA Input'!D3125,\"\"))","v":""},{"$f":"IF('TSA Input'!J3125=\"\",\"\",IF(OR('TSA Input'!J3125=\"Yes\",'TSA Input'!J3125=\"Contingent\"),'TSA Input'!G3125,\"\"))","v":""},{"$f":"IF('TSA Input'!J3125=\"\",\"\",IF(OR('TSA Input'!J3125=\"Yes\",'TSA Input'!J3125=\"Contingent\"),'TSA Input'!F3125,\"\"))","v":""},"","Required","Required"]
["",null,{"$f":"IF('TSA Input'!J3126=\"\",\"\",IF(OR('TSA Input'!J3126=\"Yes\",'TSA Input'!J3126=\"Contingent\"),'TSA Input'!B3126,\"Ineligible\"))","v":""},{"$f":"IF('TSA Input'!J3126=\"\",\"\",IF(OR('TSA Input'!J3126=\"Yes\",'TSA Input'!J3126=\"Contingent\"),'TSA Input'!I3126,\"\"))","v":""},{"$f":"IF('TSA Input'!J3126=\"\",\"\",IF(OR('TSA Input'!J3126=\"Yes\",'TSA Input'!J3126=\"Contingent\"),'TSA Input'!C3126,\"\"))","v":""},{"$f":"IF('TSA Input'!J3126=\"\",\"\",IF(OR('TSA Input'!J3126=\"Yes\",'TSA Input'!J3126=\"Contingent\"),'TSA Input'!D3126,\"\"))","v":""},{"$f":"IF('TSA Input'!J3126=\"\",\"\",IF(OR('TSA Input'!J3126=\"Yes\",'TSA Input'!J3126=\"Contingent\"),'TSA Input'!G3126,\"\"))","v":""},{"$f":"IF('TSA Input'!J3126=\"\",\"\",IF(OR('TSA Input'!J3126=\"Yes\",'TSA Input'!J3126=\"Contingent\"),'TSA Input'!F3126,\"\"))","v":""},"",{"$f":"IF('TSA Input'!J3126=\"\",\"\",IF(OR('TSA Input'!J3126=\"Yes\",'TSA Input'!J3126=\"Contingent\"),'TSA Input'!D3126,\"\"))","v":""},{"$f":"IF('TSA Input'!J3126=\"\",\"\",IF(OR('TSA Input'!J3126=\"Yes\",'TSA Input'!J3126=\"Contingent\"),'TSA Input'!G3126,\"\"))","v":""},{"$f":"IF('TSA Input'!J3126=\"\",\"\",IF(OR('TSA Input'!J3126=\"Yes\",'TSA Input'!J3126=\"Contingent\"),'TSA Input'!F3126,\"\"))","v":""},"","Required","Required"]
["",null,{"$f":"IF('TSA Input'!J3127=\"\",\"\",IF(OR('TSA Input'!J3127=\"Yes\",'TSA Input'!J3127=\"Contingent\"),'TSA Input'!B3127,\"Ineligible\"))","v":""},{"$f":"IF('TSA Input'!J3127=\"\",\"\",IF(OR('TSA Input'!J3127=\"Yes\",'TSA Input'!J3127=\"Contingent\"),'TSA Input'!I3127,\"\"))","v":""},{"$f":"IF('TSA Input'!J3127=\"\",\"\",IF(OR('TSA Input'!J3127=\"Yes\",'TSA Input'!J3127=\"Contingent\"),'TSA Input'!C3127,\"\"))","v":""},{"$f":"IF('TSA Input'!J3127=\"\",\"\",IF(OR('TSA Input'!J3127=\"Yes\",'TSA Input'!J3127=\"Contingent\"),'TSA Input'!D3127,\"\"))","v":""},{"$f":"IF('TSA Input'!J3127=\"\",\"\",IF(OR('TSA Input'!J3127=\"Yes\",'TSA Input'!J3127=\"Contingent\"),'TSA Input'!G3127,\"\"))","v":""},{"$f":"IF('TSA Input'!J3127=\"\",\"\",IF(OR('TSA Input'!J3127=\"Yes\",'TSA Input'!J3127=\"Contingent\"),'TSA Input'!F3127,\"\"))","v":""},"",{"$f":"IF('TSA Input'!J3127=\"\",\"\",IF(OR('TSA Input'!J3127=\"Yes\",'TSA Input'!J3127=\"Contingent\"),'TSA Input'!D3127,\"\"))","v":""},{"$f":"IF('TSA Input'!J3127=\"\",\"\",IF(OR('TSA Input'!J3127=\"Yes\",'TSA Input'!J3127=\"Contingent\"),'TSA Input'!G3127,\"\"))","v":""},{"$f":"IF('TSA Input'!J3127=\"\",\"\",IF(OR('TSA Input'!J3127=\"Yes\",'TSA Input'!J3127=\"Contingent\"),'TSA Input'!F3127,\"\"))","v":""},"","Required","Required"]
["",null,{"$f":"IF('TSA Input'!J3128=\"\",\"\",IF(OR('TSA Input'!J3128=\"Yes\",'TSA Input'!J3128=\"Contingent\"),'TSA Input'!B3128,\"Ineligible\"))","v":""},{"$f":"IF('TSA Input'!J3128=\"\",\"\",IF(OR('TSA Input'!J3128=\"Yes\",'TSA Input'!J3128=\"Contingent\"),'TSA Input'!I3128,\"\"))","v":""},{"$f":"IF('TSA Input'!J3128=\"\",\"\",IF(OR('TSA Input'!J3128=\"Yes\",'TSA Input'!J3128=\"Contingent\"),'TSA Input'!C3128,\"\"))","v":""},{"$f":"IF('TSA Input'!J3128=\"\",\"\",IF(OR('TSA Input'!J3128=\"Yes\",'TSA Input'!J3128=\"Contingent\"),'TSA Input'!D3128,\"\"))","v":""},{"$f":"IF('TSA Input'!J3128=\"\",\"\",IF(OR('TSA Input'!J3128=\"Yes\",'TSA Input'!J3128=\"Contingent\"),'TSA Input'!G3128,\"\"))","v":""},{"$f":"IF('TSA Input'!J3128=\"\",\"\",IF(OR('TSA Input'!J3128=\"Yes\",'TSA Input'!J3128=\"Contingent\"),'TSA Input'!F3128,\"\"))","v":""},"",{"$f":"IF('TSA Input'!J3128=\"\",\"\",IF(OR('TSA Input'!J3128=\"Yes\",'TSA Input'!J3128=\"Contingent\"),'TSA Input'!D3128,\"\"))","v":""},{"$f":"IF('TSA Input'!J3128=\"\",\"\",IF(OR('TSA Input'!J3128=\"Yes\",'TSA Input'!J3128=\"Contingent\"),'TSA Input'!G3128,\"\"))","v":""},{"$f":"IF('TSA Input'!J3128=\"\",\"\",IF(OR('TSA Input'!J3128=\"Yes\",'TSA Input'!J3128=\"Contingent\"),'TSA Input'!F3128,\"\"))","v":""},"","Required","Required"]
["",null,{"$f":"IF('TSA Input'!J3129=\"\",\"\",IF(OR('TSA Input'!J3129=\"Yes\",'TSA Input'!J3129=\"Contingent\"),'TSA Input'!B3129,\"Ineligible\"))","v":""},{"$f":"IF('TSA Input'!J3129=\"\",\"\",IF(OR('TSA Input'!J3129=\"Yes\",'TSA Input'!J3129=\"Contingent\"),'TSA Input'!I3129,\"\"))","v":""},{"$f":"IF('TSA Input'!J3129=\"\",\"\",IF(OR('TSA Input'!J3129=\"Yes\",'TSA Input'!J3129=\"Contingent\"),'TSA Input'!C3129,\"\"))","v":""},{"$f":"IF('TSA Input'!J3129=\"\",\"\",IF(OR('TSA Input'!J3129=\"Yes\",'TSA Input'!J3129=\"Contingent\"),'TSA Input'!D3129,\"\"))","v":""},{"$f":"IF('TSA Input'!J3129=\"\",\"\",IF(OR('TSA Input'!J3129=\"Yes\",'TSA Input'!J3129=\"Contingent\"),'TSA Input'!G3129,\"\"))","v":""},{"$f":"IF('TSA Input'!J3129=\"\",\"\",IF(OR('TSA Input'!J3129=\"Yes\",'TSA Input'!J3129=\"Contingent\"),'TSA Input'!F3129,\"\"))","v":""},"",{"$f":"IF('TSA Input'!J3129=\"\",\"\",IF(OR('TSA Input'!J3129=\"Yes\",'TSA Input'!J3129=\"Contingent\"),'TSA Input'!D3129,\"\"))","v":""},{"$f":"IF('TSA Input'!J3129=\"\",\"\",IF(OR('TSA Input'!J3129=\"Yes\",'TSA Input'!J3129=\"Contingent\"),'TSA Input'!G3129,\"\"))","v":""},{"$f":"IF('TSA Input'!J3129=\"\",\"\",IF(OR('TSA Input'!J3129=\"Yes\",'TSA Input'!J3129=\"Contingent\"),'TSA Input'!F3129,\"\"))","v":""},"","Required","Required"]
["",null,{"$f":"IF('TSA Input'!J3130=\"\",\"\",IF(OR('TSA Input'!J3130=\"Yes\",'TSA Input'!J3130=\"Contingent\"),'TSA Input'!B3130,\"Ineligible\"))","v":""},{"$f":"IF('TSA Input'!J3130=\"\",\"\",IF(OR('TSA Input'!J3130=\"Yes\",'TSA Input'!J3130=\"Contingent\"),'TSA Input'!I3130,\"\"))","v":""},{"$f":"IF('TSA Input'!J3130=\"\",\"\",IF(OR('TSA Input'!J3130=\"Yes\",'TSA Input'!J3130=\"Contingent\"),'TSA Input'!C3130,\"\"))","v":""},{"$f":"IF('TSA Input'!J3130=\"\",\"\",IF(OR('TSA Input'!J3130=\"Yes\",'TSA Input'!J3130=\"Contingent\"),'TSA Input'!D3130,\"\"))","v":""},{"$f":"IF('TSA Input'!J3130=\"\",\"\",IF(OR('TSA Input'!J3130=\"Yes\",'TSA Input'!J3130=\"Contingent\"),'TSA Input'!G3130,\"\"))","v":""},{"$f":"IF('TSA Input'!J3130=\"\",\"\",IF(OR('TSA Input'!J3130=\"Yes\",'TSA Input'!J3130=\"Contingent\"),'TSA Input'!F3130,\"\"))","v":""},"",{"$f":"IF('TSA Input'!J3130=\"\",\"\",IF(OR('TSA Input'!J3130=\"Yes\",'TSA Input'!J3130=\"Contingent\"),'TSA Input'!D3130,\"\"))","v":""},{"$f":"IF('TSA Input'!J3130=\"\",\"\",IF(OR('TSA Input'!J3130=\"Yes\",'TSA Input'!J3130=\"Contingent\"),'TSA Input'!G3130,\"\"))","v":""},{"$f":"IF('TSA Input'!J3130=\"\",\"\",IF(OR('TSA Input'!J3130=\"Yes\",'TSA Input'!J3130=\"Contingent\"),'TSA Input'!F3130,\"\"))","v":""},"","Required","Required"]
["",null,{"$f":"IF('TSA Input'!J3131=\"\",\"\",IF(OR('TSA Input'!J3131=\"Yes\",'TSA Input'!J3131=\"Contingent\"),'TSA Input'!B3131,\"Ineligible\"))","v":""},{"$f":"IF('TSA Input'!J3131=\"\",\"\",IF(OR('TSA Input'!J3131=\"Yes\",'TSA Input'!J3131=\"Contingent\"),'TSA Input'!I3131,\"\"))","v":""},{"$f":"IF('TSA Input'!J3131=\"\",\"\",IF(OR('TSA Input'!J3131=\"Yes\",'TSA Input'!J3131=\"Contingent\"),'TSA Input'!C3131,\"\"))","v":""},{"$f":"IF('TSA Input'!J3131=\"\",\"\",IF(OR('TSA Input'!J3131=\"Yes\",'TSA Input'!J3131=\"Contingent\"),'TSA Input'!D3131,\"\"))","v":""},{"$f":"IF('TSA Input'!J3131=\"\",\"\",IF(OR('TSA Input'!J3131=\"Yes\",'TSA Input'!J3131=\"Contingent\"),'TSA Input'!G3131,\"\"))","v":""},{"$f":"IF('TSA Input'!J3131=\"\",\"\",IF(OR('TSA Input'!J3131=\"Yes\",'TSA Input'!J3131=\"Contingent\"),'TSA Input'!F3131,\"\"))","v":""},"",{"$f":"IF('TSA Input'!J3131=\"\",\"\",IF(OR('TSA Input'!J3131=\"Yes\",'TSA Input'!J3131=\"Contingent\"),'TSA Input'!D3131,\"\"))","v":""},{"$f":"IF('TSA Input'!J3131=\"\",\"\",IF(OR('TSA Input'!J3131=\"Yes\",'TSA Input'!J3131=\"Contingent\"),'TSA Input'!G3131,\"\"))","v":""},{"$f":"IF('TSA Input'!J3131=\"\",\"\",IF(OR('TSA Input'!J3131=\"Yes\",'TSA Input'!J3131=\"Contingent\"),'TSA Input'!F3131,\"\"))","v":""},"","Required","Required"]
["",null,{"$f":"IF('TSA Input'!J3132=\"\",\"\",IF(OR('TSA Input'!J3132=\"Yes\",'TSA Input'!J3132=\"Contingent\"),'TSA Input'!B3132,\"Ineligible\"))","v":""},{"$f":"IF('TSA Input'!J3132=\"\",\"\",IF(OR('TSA Input'!J3132=\"Yes\",'TSA Input'!J3132=\"Contingent\"),'TSA Input'!I3132,\"\"))","v":""},{"$f":"IF('TSA Input'!J3132=\"\",\"\",IF(OR('TSA Input'!J3132=\"Yes\",'TSA Input'!J3132=\"Contingent\"),'TSA Input'!C3132,\"\"))","v":""},{"$f":"IF('TSA Input'!J3132=\"\",\"\",IF(OR('TSA Input'!J3132=\"Yes\",'TSA Input'!J3132=\"Contingent\"),'TSA Input'!D3132,\"\"))","v":""},{"$f":"IF('TSA Input'!J3132=\"\",\"\",IF(OR('TSA Input'!J3132=\"Yes\",'TSA Input'!J3132=\"Contingent\"),'TSA Input'!G3132,\"\"))","v":""},{"$f":"IF('TSA Input'!J3132=\"\",\"\",IF(OR('TSA Input'!J3132=\"Yes\",'TSA Input'!J3132=\"Contingent\"),'TSA Input'!F3132,\"\"))","v":""},"",{"$f":"IF('TSA Input'!J3132=\"\",\"\",IF(OR('TSA Input'!J3132=\"Yes\",'TSA Input'!J3132=\"Contingent\"),'TSA Input'!D3132,\"\"))","v":""},{"$f":"IF('TSA Input'!J3132=\"\",\"\",IF(OR('TSA Input'!J3132=\"Yes\",'TSA Input'!J3132=\"Contingent\"),'TSA Input'!G3132,\"\"))","v":""},{"$f":"IF('TSA Input'!J3132=\"\",\"\",IF(OR('TSA Input'!J3132=\"Yes\",'TSA Input'!J3132=\"Contingent\"),'TSA Input'!F3132,\"\"))","v":""},"","Required","Required"]
["",null,{"$f":"IF('TSA Input'!J3133=\"\",\"\",IF(OR('TSA Input'!J3133=\"Yes\",'TSA Input'!J3133=\"Contingent\"),'TSA Input'!B3133,\"Ineligible\"))","v":""},{"$f":"IF('TSA Input'!J3133=\"\",\"\",IF(OR('TSA Input'!J3133=\"Yes\",'TSA Input'!J3133=\"Contingent\"),'TSA Input'!I3133,\"\"))","v":""},{"$f":"IF('TSA Input'!J3133=\"\",\"\",IF(OR('TSA Input'!J3133=\"Yes\",'TSA Input'!J3133=\"Contingent\"),'TSA Input'!C3133,\"\"))","v":""},{"$f":"IF('TSA Input'!J3133=\"\",\"\",IF(OR('TSA Input'!J3133=\"Yes\",'TSA Input'!J3133=\"Contingent\"),'TSA Input'!D3133,\"\"))","v":""},{"$f":"IF('TSA Input'!J3133=\"\",\"\",IF(OR('TSA Input'!J3133=\"Yes\",'TSA Input'!J3133=\"Contingent\"),'TSA Input'!G3133,\"\"))","v":""},{"$f":"IF('TSA Input'!J3133=\"\",\"\",IF(OR('TSA Input'!J3133=\"Yes\",'TSA Input'!J3133=\"Contingent\"),'TSA Input'!F3133,\"\"))","v":""},"",{"$f":"IF('TSA Input'!J3133=\"\",\"\",IF(OR('TSA Input'!J3133=\"Yes\",'TSA Input'!J3133=\"Contingent\"),'TSA Input'!D3133,\"\"))","v":""},{"$f":"IF('TSA Input'!J3133=\"\",\"\",IF(OR('TSA Input'!J3133=\"Yes\",'TSA Input'!J3133=\"Contingent\"),'TSA Input'!G3133,\"\"))","v":""},{"$f":"IF('TSA Input'!J3133=\"\",\"\",IF(OR('TSA Input'!J3133=\"Yes\",'TSA Input'!J3133=\"Contingent\"),'TSA Input'!F3133,\"\"))","v":""},"","Required","Required"]
["",null,{"$f":"IF('TSA Input'!J3134=\"\",\"\",IF(OR('TSA Input'!J3134=\"Yes\",'TSA Input'!J3134=\"Contingent\"),'TSA Input'!B3134,\"Ineligible\"))","v":""},{"$f":"IF('TSA Input'!J3134=\"\",\"\",IF(OR('TSA Input'!J3134=\"Yes\",'TSA Input'!J3134=\"Contingent\"),'TSA Input'!I3134,\"\"))","v":""},{"$f":"IF('TSA Input'!J3134=\"\",\"\",IF(OR('TSA Input'!J3134=\"Yes\",'TSA Input'!J3134=\"Contingent\"),'TSA Input'!C3134,\"\"))","v":""},{"$f":"IF('TSA Input'!J3134=\"\",\"\",IF(OR('TSA Input'!J3134=\"Yes\",'TSA Input'!J3134=\"Contingent\"),'TSA Input'!D3134,\"\"))","v":""},{"$f":"IF('TSA Input'!J3134=\"\",\"\",IF(OR('TSA Input'!J3134=\"Yes\",'TSA Input'!J3134=\"Contingent\"),'TSA Input'!G3134,\"\"))","v":""},{"$f":"IF('TSA Input'!J3134=\"\",\"\",IF(OR('TSA Input'!J3134=\"Yes\",'TSA Input'!J3134=\"Contingent\"),'TSA Input'!F3134,\"\"))","v":""},"",{"$f":"IF('TSA Input'!J3134=\"\",\"\",IF(OR('TSA Input'!J3134=\"Yes\",'TSA Input'!J3134=\"Contingent\"),'TSA Input'!D3134,\"\"))","v":""},{"$f":"IF('TSA Input'!J3134=\"\",\"\",IF(OR('TSA Input'!J3134=\"Yes\",'TSA Input'!J3134=\"Contingent\"),'TSA Input'!G3134,\"\"))","v":""},{"$f":"IF('TSA Input'!J3134=\"\",\"\",IF(OR('TSA Input'!J3134=\"Yes\",'TSA Input'!J3134=\"Contingent\"),'TSA Input'!F3134,\"\"))","v":""},"","Required","Required"]
["",null,{"$f":"IF('TSA Input'!J3135=\"\",\"\",IF(OR('TSA Input'!J3135=\"Yes\",'TSA Input'!J3135=\"Contingent\"),'TSA Input'!B3135,\"Ineligible\"))","v":""},{"$f":"IF('TSA Input'!J3135=\"\",\"\",IF(OR('TSA Input'!J3135=\"Yes\",'TSA Input'!J3135=\"Contingent\"),'TSA Input'!I3135,\"\"))","v":""},{"$f":"IF('TSA Input'!J3135=\"\",\"\",IF(OR('TSA Input'!J3135=\"Yes\",'TSA Input'!J3135=\"Contingent\"),'TSA Input'!C3135,\"\"))","v":""},{"$f":"IF('TSA Input'!J3135=\"\",\"\",IF(OR('TSA Input'!J3135=\"Yes\",'TSA Input'!J3135=\"Contingent\"),'TSA Input'!D3135,\"\"))","v":""},{"$f":"IF('TSA Input'!J3135=\"\",\"\",IF(OR('TSA Input'!J3135=\"Yes\",'TSA Input'!J3135=\"Contingent\"),'TSA Input'!G3135,\"\"))","v":""},{"$f":"IF('TSA Input'!J3135=\"\",\"\",IF(OR('TSA Input'!J3135=\"Yes\",'TSA Input'!J3135=\"Contingent\"),'TSA Input'!F3135,\"\"))","v":""},"",{"$f":"IF('TSA Input'!J3135=\"\",\"\",IF(OR('TSA Input'!J3135=\"Yes\",'TSA Input'!J3135=\"Contingent\"),'TSA Input'!D3135,\"\"))","v":""},{"$f":"IF('TSA Input'!J3135=\"\",\"\",IF(OR('TSA Input'!J3135=\"Yes\",'TSA Input'!J3135=\"Contingent\"),'TSA Input'!G3135,\"\"))","v":""},{"$f":"IF('TSA Input'!J3135=\"\",\"\",IF(OR('TSA Input'!J3135=\"Yes\",'TSA Input'!J3135=\"Contingent\"),'TSA Input'!F3135,\"\"))","v":""},"","Required","Required"]
["",null,{"$f":"IF('TSA Input'!J3136=\"\",\"\",IF(OR('TSA Input'!J3136=\"Yes\",'TSA Input'!J3136=\"Contingent\"),'TSA Input'!B3136,\"Ineligible\"))","v":""},{"$f":"IF('TSA Input'!J3136=\"\",\"\",IF(OR('TSA Input'!J3136=\"Yes\",'TSA Input'!J3136=\"Contingent\"),'TSA Input'!I3136,\"\"))","v":""},{"$f":"IF('TSA Input'!J3136=\"\",\"\",IF(OR('TSA Input'!J3136=\"Yes\",'TSA Input'!J3136=\"Contingent\"),'TSA Input'!C3136,\"\"))","v":""},{"$f":"IF('TSA Input'!J3136=\"\",\"\",IF(OR('TSA Input'!J3136=\"Yes\",'TSA Input'!J3136=\"Contingent\"),'TSA Input'!D3136,\"\"))","v":""},{"$f":"IF('TSA Input'!J3136=\"\",\"\",IF(OR('TSA Input'!J3136=\"Yes\",'TSA Input'!J3136=\"Contingent\"),'TSA Input'!G3136,\"\"))","v":""},{"$f":"IF('TSA Input'!J3136=\"\",\"\",IF(OR('TSA Input'!J3136=\"Yes\",'TSA Input'!J3136=\"Contingent\"),'TSA Input'!F3136,\"\"))","v":""},"",{"$f":"IF('TSA Input'!J3136=\"\",\"\",IF(OR('TSA Input'!J3136=\"Yes\",'TSA Input'!J3136=\"Contingent\"),'TSA Input'!D3136,\"\"))","v":""},{"$f":"IF('TSA Input'!J3136=\"\",\"\",IF(OR('TSA Input'!J3136=\"Yes\",'TSA Input'!J3136=\"Contingent\"),'TSA Input'!G3136,\"\"))","v":""},{"$f":"IF('TSA Input'!J3136=\"\",\"\",IF(OR('TSA Input'!J3136=\"Yes\",'TSA Input'!J3136=\"Contingent\"),'TSA Input'!F3136,\"\"))","v":""},"","Required","Required"]
["",null,{"$f":"IF('TSA Input'!J3137=\"\",\"\",IF(OR('TSA Input'!J3137=\"Yes\",'TSA Input'!J3137=\"Contingent\"),'TSA Input'!B3137,\"Ineligible\"))","v":""},{"$f":"IF('TSA Input'!J3137=\"\",\"\",IF(OR('TSA Input'!J3137=\"Yes\",'TSA Input'!J3137=\"Contingent\"),'TSA Input'!I3137,\"\"))","v":""},{"$f":"IF('TSA Input'!J3137=\"\",\"\",IF(OR('TSA Input'!J3137=\"Yes\",'TSA Input'!J3137=\"Contingent\"),'TSA Input'!C3137,\"\"))","v":""},{"$f":"IF('TSA Input'!J3137=\"\",\"\",IF(OR('TSA Input'!J3137=\"Yes\",'TSA Input'!J3137=\"Contingent\"),'TSA Input'!D3137,\"\"))","v":""},{"$f":"IF('TSA Input'!J3137=\"\",\"\",IF(OR('TSA Input'!J3137=\"Yes\",'TSA Input'!J3137=\"Contingent\"),'TSA Input'!G3137,\"\"))","v":""},{"$f":"IF('TSA Input'!J3137=\"\",\"\",IF(OR('TSA Input'!J3137=\"Yes\",'TSA Input'!J3137=\"Contingent\"),'TSA Input'!F3137,\"\"))","v":""},"",{"$f":"IF('TSA Input'!J3137=\"\",\"\",IF(OR('TSA Input'!J3137=\"Yes\",'TSA Input'!J3137=\"Contingent\"),'TSA Input'!D3137,\"\"))","v":""},{"$f":"IF('TSA Input'!J3137=\"\",\"\",IF(OR('TSA Input'!J3137=\"Yes\",'TSA Input'!J3137=\"Contingent\"),'TSA Input'!G3137,\"\"))","v":""},{"$f":"IF('TSA Input'!J3137=\"\",\"\",IF(OR('TSA Input'!J3137=\"Yes\",'TSA Input'!J3137=\"Contingent\"),'TSA Input'!F3137,\"\"))","v":""},"","Required","Required"]
["",null,{"$f":"IF('TSA Input'!J3138=\"\",\"\",IF(OR('TSA Input'!J3138=\"Yes\",'TSA Input'!J3138=\"Contingent\"),'TSA Input'!B3138,\"Ineligible\"))","v":""},{"$f":"IF('TSA Input'!J3138=\"\",\"\",IF(OR('TSA Input'!J3138=\"Yes\",'TSA Input'!J3138=\"Contingent\"),'TSA Input'!I3138,\"\"))","v":""},{"$f":"IF('TSA Input'!J3138=\"\",\"\",IF(OR('TSA Input'!J3138=\"Yes\",'TSA Input'!J3138=\"Contingent\"),'TSA Input'!C3138,\"\"))","v":""},{"$f":"IF('TSA Input'!J3138=\"\",\"\",IF(OR('TSA Input'!J3138=\"Yes\",'TSA Input'!J3138=\"Contingent\"),'TSA Input'!D3138,\"\"))","v":""},{"$f":"IF('TSA Input'!J3138=\"\",\"\",IF(OR('TSA Input'!J3138=\"Yes\",'TSA Input'!J3138=\"Contingent\"),'TSA Input'!G3138,\"\"))","v":""},{"$f":"IF('TSA Input'!J3138=\"\",\"\",IF(OR('TSA Input'!J3138=\"Yes\",'TSA Input'!J3138=\"Contingent\"),'TSA Input'!F3138,\"\"))","v":""},"",{"$f":"IF('TSA Input'!J3138=\"\",\"\",IF(OR('TSA Input'!J3138=\"Yes\",'TSA Input'!J3138=\"Contingent\"),'TSA Input'!D3138,\"\"))","v":""},{"$f":"IF('TSA Input'!J3138=\"\",\"\",IF(OR('TSA Input'!J3138=\"Yes\",'TSA Input'!J3138=\"Contingent\"),'TSA Input'!G3138,\"\"))","v":""},{"$f":"IF('TSA Input'!J3138=\"\",\"\",IF(OR('TSA Input'!J3138=\"Yes\",'TSA Input'!J3138=\"Contingent\"),'TSA Input'!F3138,\"\"))","v":""},"","Required","Required"]
["",null,{"$f":"IF('TSA Input'!J3139=\"\",\"\",IF(OR('TSA Input'!J3139=\"Yes\",'TSA Input'!J3139=\"Contingent\"),'TSA Input'!B3139,\"Ineligible\"))","v":""},{"$f":"IF('TSA Input'!J3139=\"\",\"\",IF(OR('TSA Input'!J3139=\"Yes\",'TSA Input'!J3139=\"Contingent\"),'TSA Input'!I3139,\"\"))","v":""},{"$f":"IF('TSA Input'!J3139=\"\",\"\",IF(OR('TSA Input'!J3139=\"Yes\",'TSA Input'!J3139=\"Contingent\"),'TSA Input'!C3139,\"\"))","v":""},{"$f":"IF('TSA Input'!J3139=\"\",\"\",IF(OR('TSA Input'!J3139=\"Yes\",'TSA Input'!J3139=\"Contingent\"),'TSA Input'!D3139,\"\"))","v":""},{"$f":"IF('TSA Input'!J3139=\"\",\"\",IF(OR('TSA Input'!J3139=\"Yes\",'TSA Input'!J3139=\"Contingent\"),'TSA Input'!G3139,\"\"))","v":""},{"$f":"IF('TSA Input'!J3139=\"\",\"\",IF(OR('TSA Input'!J3139=\"Yes\",'TSA Input'!J3139=\"Contingent\"),'TSA Input'!F3139,\"\"))","v":""},"",{"$f":"IF('TSA Input'!J3139=\"\",\"\",IF(OR('TSA Input'!J3139=\"Yes\",'TSA Input'!J3139=\"Contingent\"),'TSA Input'!D3139,\"\"))","v":""},{"$f":"IF('TSA Input'!J3139=\"\",\"\",IF(OR('TSA Input'!J3139=\"Yes\",'TSA Input'!J3139=\"Contingent\"),'TSA Input'!G3139,\"\"))","v":""},{"$f":"IF('TSA Input'!J3139=\"\",\"\",IF(OR('TSA Input'!J3139=\"Yes\",'TSA Input'!J3139=\"Contingent\"),'TSA Input'!F3139,\"\"))","v":""},"","Required","Required"]
["",null,{"$f":"IF('TSA Input'!J3140=\"\",\"\",IF(OR('TSA Input'!J3140=\"Yes\",'TSA Input'!J3140=\"Contingent\"),'TSA Input'!B3140,\"Ineligible\"))","v":""},{"$f":"IF('TSA Input'!J3140=\"\",\"\",IF(OR('TSA Input'!J3140=\"Yes\",'TSA Input'!J3140=\"Contingent\"),'TSA Input'!I3140,\"\"))","v":""},{"$f":"IF('TSA Input'!J3140=\"\",\"\",IF(OR('TSA Input'!J3140=\"Yes\",'TSA Input'!J3140=\"Contingent\"),'TSA Input'!C3140,\"\"))","v":""},{"$f":"IF('TSA Input'!J3140=\"\",\"\",IF(OR('TSA Input'!J3140=\"Yes\",'TSA Input'!J3140=\"Contingent\"),'TSA Input'!D3140,\"\"))","v":""},{"$f":"IF('TSA Input'!J3140=\"\",\"\",IF(OR('TSA Input'!J3140=\"Yes\",'TSA Input'!J3140=\"Contingent\"),'TSA Input'!G3140,\"\"))","v":""},{"$f":"IF('TSA Input'!J3140=\"\",\"\",IF(OR('TSA Input'!J3140=\"Yes\",'TSA Input'!J3140=\"Contingent\"),'TSA Input'!F3140,\"\"))","v":""},{"$f":"IF($C3178=\"\",\"\",SUM(F3178:H3178))","v":""},{"$f":"IF('TSA Input'!J3140=\"\",\"\",IF(OR('TSA Input'!J3140=\"Yes\",'TSA Input'!J3140=\"Contingent\"),'TSA Input'!D3140,\"\"))","v":""},{"$f":"IF('TSA Input'!J3140=\"\",\"\",IF(OR('TSA Input'!J3140=\"Yes\",'TSA Input'!J3140=\"Contingent\"),'TSA Input'!G3140,\"\"))","v":""},{"$f":"IF('TSA Input'!J3140=\"\",\"\",IF(OR('TSA Input'!J3140=\"Yes\",'TSA Input'!J3140=\"Contingent\"),'TSA Input'!F3140,\"\"))","v":""},{"$f":"IF($C3178=\"\",\"\",SUM(J3178:L3178))","v":""},"Required","Required"]
["",null,{"$f":"IF('TSA Input'!J3141=\"\",\"\",IF(OR('TSA Input'!J3141=\"Yes\",'TSA Input'!J3141=\"Contingent\"),'TSA Input'!B3141,\"Ineligible\"))","v":""},{"$f":"IF('TSA Input'!J3141=\"\",\"\",IF(OR('TSA Input'!J3141=\"Yes\",'TSA Input'!J3141=\"Contingent\"),'TSA Input'!I3141,\"\"))","v":""},{"$f":"IF('TSA Input'!J3141=\"\",\"\",IF(OR('TSA Input'!J3141=\"Yes\",'TSA Input'!J3141=\"Contingent\"),'TSA Input'!C3141,\"\"))","v":""},{"$f":"IF('TSA Input'!J3141=\"\",\"\",IF(OR('TSA Input'!J3141=\"Yes\",'TSA Input'!J3141=\"Contingent\"),'TSA Input'!D3141,\"\"))","v":""},{"$f":"IF('TSA Input'!J3141=\"\",\"\",IF(OR('TSA Input'!J3141=\"Yes\",'TSA Input'!J3141=\"Contingent\"),'TSA Input'!G3141,\"\"))","v":""},{"$f":"IF('TSA Input'!J3141=\"\",\"\",IF(OR('TSA Input'!J3141=\"Yes\",'TSA Input'!J3141=\"Contingent\"),'TSA Input'!F3141,\"\"))","v":""},"",{"$f":"IF('TSA Input'!J3141=\"\",\"\",IF(OR('TSA Input'!J3141=\"Yes\",'TSA Input'!J3141=\"Contingent\"),'TSA Input'!D3141,\"\"))","v":""},{"$f":"IF('TSA Input'!J3141=\"\",\"\",IF(OR('TSA Input'!J3141=\"Yes\",'TSA Input'!J3141=\"Contingent\"),'TSA Input'!G3141,\"\"))","v":""},{"$f":"IF('TSA Input'!J3141=\"\",\"\",IF(OR('TSA Input'!J3141=\"Yes\",'TSA Input'!J3141=\"Contingent\"),'TSA Input'!F3141,\"\"))","v":""},"","Required","Required"]
["",null,{"$f":"IF('TSA Input'!J3142=\"\",\"\",IF(OR('TSA Input'!J3142=\"Yes\",'TSA Input'!J3142=\"Contingent\"),'TSA Input'!B3142,\"Ineligible\"))","v":""},{"$f":"IF('TSA Input'!J3142=\"\",\"\",IF(OR('TSA Input'!J3142=\"Yes\",'TSA Input'!J3142=\"Contingent\"),'TSA Input'!I3142,\"\"))","v":""},{"$f":"IF('TSA Input'!J3142=\"\",\"\",IF(OR('TSA Input'!J3142=\"Yes\",'TSA Input'!J3142=\"Contingent\"),'TSA Input'!C3142,\"\"))","v":""},{"$f":"IF('TSA Input'!J3142=\"\",\"\",IF(OR('TSA Input'!J3142=\"Yes\",'TSA Input'!J3142=\"Contingent\"),'TSA Input'!D3142,\"\"))","v":""},{"$f":"IF('TSA Input'!J3142=\"\",\"\",IF(OR('TSA Input'!J3142=\"Yes\",'TSA Input'!J3142=\"Contingent\"),'TSA Input'!G3142,\"\"))","v":""},{"$f":"IF('TSA Input'!J3142=\"\",\"\",IF(OR('TSA Input'!J3142=\"Yes\",'TSA Input'!J3142=\"Contingent\"),'TSA Input'!F3142,\"\"))","v":""},"",{"$f":"IF('TSA Input'!J3142=\"\",\"\",IF(OR('TSA Input'!J3142=\"Yes\",'TSA Input'!J3142=\"Contingent\"),'TSA Input'!D3142,\"\"))","v":""},{"$f":"IF('TSA Input'!J3142=\"\",\"\",IF(OR('TSA Input'!J3142=\"Yes\",'TSA Input'!J3142=\"Contingent\"),'TSA Input'!G3142,\"\"))","v":""},{"$f":"IF('TSA Input'!J3142=\"\",\"\",IF(OR('TSA Input'!J3142=\"Yes\",'TSA Input'!J3142=\"Contingent\"),'TSA Input'!F3142,\"\"))","v":""},"","Required","Required"]
["",null,{"$f":"IF('TSA Input'!J3143=\"\",\"\",IF(OR('TSA Input'!J3143=\"Yes\",'TSA Input'!J3143=\"Contingent\"),'TSA Input'!B3143,\"Ineligible\"))","v":""},{"$f":"IF('TSA Input'!J3143=\"\",\"\",IF(OR('TSA Input'!J3143=\"Yes\",'TSA Input'!J3143=\"Contingent\"),'TSA Input'!I3143,\"\"))","v":""},{"$f":"IF('TSA Input'!J3143=\"\",\"\",IF(OR('TSA Input'!J3143=\"Yes\",'TSA Input'!J3143=\"Contingent\"),'TSA Input'!C3143,\"\"))","v":""},{"$f":"IF('TSA Input'!J3143=\"\",\"\",IF(OR('TSA Input'!J3143=\"Yes\",'TSA Input'!J3143=\"Contingent\"),'TSA Input'!D3143,\"\"))","v":""},{"$f":"IF('TSA Input'!J3143=\"\",\"\",IF(OR('TSA Input'!J3143=\"Yes\",'TSA Input'!J3143=\"Contingent\"),'TSA Input'!G3143,\"\"))","v":""},{"$f":"IF('TSA Input'!J3143=\"\",\"\",IF(OR('TSA Input'!J3143=\"Yes\",'TSA Input'!J3143=\"Contingent\"),'TSA Input'!F3143,\"\"))","v":""},"",{"$f":"IF('TSA Input'!J3143=\"\",\"\",IF(OR('TSA Input'!J3143=\"Yes\",'TSA Input'!J3143=\"Contingent\"),'TSA Input'!D3143,\"\"))","v":""},{"$f":"IF('TSA Input'!J3143=\"\",\"\",IF(OR('TSA Input'!J3143=\"Yes\",'TSA Input'!J3143=\"Contingent\"),'TSA Input'!G3143,\"\"))","v":""},{"$f":"IF('TSA Input'!J3143=\"\",\"\",IF(OR('TSA Input'!J3143=\"Yes\",'TSA Input'!J3143=\"Contingent\"),'TSA Input'!F3143,\"\"))","v":""},"","Required","Required"]
["",null,{"$f":"IF('TSA Input'!J3144=\"\",\"\",IF(OR('TSA Input'!J3144=\"Yes\",'TSA Input'!J3144=\"Contingent\"),'TSA Input'!B3144,\"Ineligible\"))","v":""},{"$f":"IF('TSA Input'!J3144=\"\",\"\",IF(OR('TSA Input'!J3144=\"Yes\",'TSA Input'!J3144=\"Contingent\"),'TSA Input'!I3144,\"\"))","v":""},{"$f":"IF('TSA Input'!J3144=\"\",\"\",IF(OR('TSA Input'!J3144=\"Yes\",'TSA Input'!J3144=\"Contingent\"),'TSA Input'!C3144,\"\"))","v":""},{"$f":"IF('TSA Input'!J3144=\"\",\"\",IF(OR('TSA Input'!J3144=\"Yes\",'TSA Input'!J3144=\"Contingent\"),'TSA Input'!D3144,\"\"))","v":""},{"$f":"IF('TSA Input'!J3144=\"\",\"\",IF(OR('TSA Input'!J3144=\"Yes\",'TSA Input'!J3144=\"Contingent\"),'TSA Input'!G3144,\"\"))","v":""},{"$f":"IF('TSA Input'!J3144=\"\",\"\",IF(OR('TSA Input'!J3144=\"Yes\",'TSA Input'!J3144=\"Contingent\"),'TSA Input'!F3144,\"\"))","v":""},"",{"$f":"IF('TSA Input'!J3144=\"\",\"\",IF(OR('TSA Input'!J3144=\"Yes\",'TSA Input'!J3144=\"Contingent\"),'TSA Input'!D3144,\"\"))","v":""},{"$f":"IF('TSA Input'!J3144=\"\",\"\",IF(OR('TSA Input'!J3144=\"Yes\",'TSA Input'!J3144=\"Contingent\"),'TSA Input'!G3144,\"\"))","v":""},{"$f":"IF('TSA Input'!J3144=\"\",\"\",IF(OR('TSA Input'!J3144=\"Yes\",'TSA Input'!J3144=\"Contingent\"),'TSA Input'!F3144,\"\"))","v":""},"","Required","Required"]
["",null,{"$f":"IF('TSA Input'!J3145=\"\",\"\",IF(OR('TSA Input'!J3145=\"Yes\",'TSA Input'!J3145=\"Contingent\"),'TSA Input'!B3145,\"Ineligible\"))","v":""},{"$f":"IF('TSA Input'!J3145=\"\",\"\",IF(OR('TSA Input'!J3145=\"Yes\",'TSA Input'!J3145=\"Contingent\"),'TSA Input'!I3145,\"\"))","v":""},{"$f":"IF('TSA Input'!J3145=\"\",\"\",IF(OR('TSA Input'!J3145=\"Yes\",'TSA Input'!J3145=\"Contingent\"),'TSA Input'!C3145,\"\"))","v":""},{"$f":"IF('TSA Input'!J3145=\"\",\"\",IF(OR('TSA Input'!J3145=\"Yes\",'TSA Input'!J3145=\"Contingent\"),'TSA Input'!D3145,\"\"))","v":""},{"$f":"IF('TSA Input'!J3145=\"\",\"\",IF(OR('TSA Input'!J3145=\"Yes\",'TSA Input'!J3145=\"Contingent\"),'TSA Input'!G3145,\"\"))","v":""},{"$f":"IF('TSA Input'!J3145=\"\",\"\",IF(OR('TSA Input'!J3145=\"Yes\",'TSA Input'!J3145=\"Contingent\"),'TSA Input'!F3145,\"\"))","v":""},"",{"$f":"IF('TSA Input'!J3145=\"\",\"\",IF(OR('TSA Input'!J3145=\"Yes\",'TSA Input'!J3145=\"Contingent\"),'TSA Input'!D3145,\"\"))","v":""},{"$f":"IF('TSA Input'!J3145=\"\",\"\",IF(OR('TSA Input'!J3145=\"Yes\",'TSA Input'!J3145=\"Contingent\"),'TSA Input'!G3145,\"\"))","v":""},{"$f":"IF('TSA Input'!J3145=\"\",\"\",IF(OR('TSA Input'!J3145=\"Yes\",'TSA Input'!J3145=\"Contingent\"),'TSA Input'!F3145,\"\"))","v":""},"","Required","Required"]
["",null,{"$f":"IF('TSA Input'!J3146=\"\",\"\",IF(OR('TSA Input'!J3146=\"Yes\",'TSA Input'!J3146=\"Contingent\"),'TSA Input'!B3146,\"Ineligible\"))","v":""},{"$f":"IF('TSA Input'!J3146=\"\",\"\",IF(OR('TSA Input'!J3146=\"Yes\",'TSA Input'!J3146=\"Contingent\"),'TSA Input'!I3146,\"\"))","v":""},{"$f":"IF('TSA Input'!J3146=\"\",\"\",IF(OR('TSA Input'!J3146=\"Yes\",'TSA Input'!J3146=\"Contingent\"),'TSA Input'!C3146,\"\"))","v":""},{"$f":"IF('TSA Input'!J3146=\"\",\"\",IF(OR('TSA Input'!J3146=\"Yes\",'TSA Input'!J3146=\"Contingent\"),'TSA Input'!D3146,\"\"))","v":""},{"$f":"IF('TSA Input'!J3146=\"\",\"\",IF(OR('TSA Input'!J3146=\"Yes\",'TSA Input'!J3146=\"Contingent\"),'TSA Input'!G3146,\"\"))","v":""},{"$f":"IF('TSA Input'!J3146=\"\",\"\",IF(OR('TSA Input'!J3146=\"Yes\",'TSA Input'!J3146=\"Contingent\"),'TSA Input'!F3146,\"\"))","v":""},"",{"$f":"IF('TSA Input'!J3146=\"\",\"\",IF(OR('TSA Input'!J3146=\"Yes\",'TSA Input'!J3146=\"Contingent\"),'TSA Input'!D3146,\"\"))","v":""},{"$f":"IF('TSA Input'!J3146=\"\",\"\",IF(OR('TSA Input'!J3146=\"Yes\",'TSA Input'!J3146=\"Contingent\"),'TSA Input'!G3146,\"\"))","v":""},{"$f":"IF('TSA Input'!J3146=\"\",\"\",IF(OR('TSA Input'!J3146=\"Yes\",'TSA Input'!J3146=\"Contingent\"),'TSA Input'!F3146,\"\"))","v":""},"","Required","Required"]
["",null,{"$f":"IF('TSA Input'!J3147=\"\",\"\",IF(OR('TSA Input'!J3147=\"Yes\",'TSA Input'!J3147=\"Contingent\"),'TSA Input'!B3147,\"Ineligible\"))","v":""},{"$f":"IF('TSA Input'!J3147=\"\",\"\",IF(OR('TSA Input'!J3147=\"Yes\",'TSA Input'!J3147=\"Contingent\"),'TSA Input'!I3147,\"\"))","v":""},{"$f":"IF('TSA Input'!J3147=\"\",\"\",IF(OR('TSA Input'!J3147=\"Yes\",'TSA Input'!J3147=\"Contingent\"),'TSA Input'!C3147,\"\"))","v":""},{"$f":"IF('TSA Input'!J3147=\"\",\"\",IF(OR('TSA Input'!J3147=\"Yes\",'TSA Input'!J3147=\"Contingent\"),'TSA Input'!D3147,\"\"))","v":""},{"$f":"IF('TSA Input'!J3147=\"\",\"\",IF(OR('TSA Input'!J3147=\"Yes\",'TSA Input'!J3147=\"Contingent\"),'TSA Input'!G3147,\"\"))","v":""},{"$f":"IF('TSA Input'!J3147=\"\",\"\",IF(OR('TSA Input'!J3147=\"Yes\",'TSA Input'!J3147=\"Contingent\"),'TSA Input'!F3147,\"\"))","v":""},"",{"$f":"IF('TSA Input'!J3147=\"\",\"\",IF(OR('TSA Input'!J3147=\"Yes\",'TSA Input'!J3147=\"Contingent\"),'TSA Input'!D3147,\"\"))","v":""},{"$f":"IF('TSA Input'!J3147=\"\",\"\",IF(OR('TSA Input'!J3147=\"Yes\",'TSA Input'!J3147=\"Contingent\"),'TSA Input'!G3147,\"\"))","v":""},{"$f":"IF('TSA Input'!J3147=\"\",\"\",IF(OR('TSA Input'!J3147=\"Yes\",'TSA Input'!J3147=\"Contingent\"),'TSA Input'!F3147,\"\"))","v":""},"","Required","Required"]
["",null,{"$f":"IF('TSA Input'!J3148=\"\",\"\",IF(OR('TSA Input'!J3148=\"Yes\",'TSA Input'!J3148=\"Contingent\"),'TSA Input'!B3148,\"Ineligible\"))","v":""},{"$f":"IF('TSA Input'!J3148=\"\",\"\",IF(OR('TSA Input'!J3148=\"Yes\",'TSA Input'!J3148=\"Contingent\"),'TSA Input'!I3148,\"\"))","v":""},{"$f":"IF('TSA Input'!J3148=\"\",\"\",IF(OR('TSA Input'!J3148=\"Yes\",'TSA Input'!J3148=\"Contingent\"),'TSA Input'!C3148,\"\"))","v":""},{"$f":"IF('TSA Input'!J3148=\"\",\"\",IF(OR('TSA Input'!J3148=\"Yes\",'TSA Input'!J3148=\"Contingent\"),'TSA Input'!D3148,\"\"))","v":""},{"$f":"IF('TSA Input'!J3148=\"\",\"\",IF(OR('TSA Input'!J3148=\"Yes\",'TSA Input'!J3148=\"Contingent\"),'TSA Input'!G3148,\"\"))","v":""},{"$f":"IF('TSA Input'!J3148=\"\",\"\",IF(OR('TSA Input'!J3148=\"Yes\",'TSA Input'!J3148=\"Contingent\"),'TSA Input'!F3148,\"\"))","v":""},"",{"$f":"IF('TSA Input'!J3148=\"\",\"\",IF(OR('TSA Input'!J3148=\"Yes\",'TSA Input'!J3148=\"Contingent\"),'TSA Input'!D3148,\"\"))","v":""},{"$f":"IF('TSA Input'!J3148=\"\",\"\",IF(OR('TSA Input'!J3148=\"Yes\",'TSA Input'!J3148=\"Contingent\"),'TSA Input'!G3148,\"\"))","v":""},{"$f":"IF('TSA Input'!J3148=\"\",\"\",IF(OR('TSA Input'!J3148=\"Yes\",'TSA Input'!J3148=\"Contingent\"),'TSA Input'!F3148,\"\"))","v":""},"","Required","Required"]
["",null,{"$f":"IF('TSA Input'!J3149=\"\",\"\",IF(OR('TSA Input'!J3149=\"Yes\",'TSA Input'!J3149=\"Contingent\"),'TSA Input'!B3149,\"Ineligible\"))","v":""},{"$f":"IF('TSA Input'!J3149=\"\",\"\",IF(OR('TSA Input'!J3149=\"Yes\",'TSA Input'!J3149=\"Contingent\"),'TSA Input'!I3149,\"\"))","v":""},{"$f":"IF('TSA Input'!J3149=\"\",\"\",IF(OR('TSA Input'!J3149=\"Yes\",'TSA Input'!J3149=\"Contingent\"),'TSA Input'!C3149,\"\"))","v":""},{"$f":"IF('TSA Input'!J3149=\"\",\"\",IF(OR('TSA Input'!J3149=\"Yes\",'TSA Input'!J3149=\"Contingent\"),'TSA Input'!D3149,\"\"))","v":""},{"$f":"IF('TSA Input'!J3149=\"\",\"\",IF(OR('TSA Input'!J3149=\"Yes\",'TSA Input'!J3149=\"Contingent\"),'TSA Input'!G3149,\"\"))","v":""},{"$f":"IF('TSA Input'!J3149=\"\",\"\",IF(OR('TSA Input'!J3149=\"Yes\",'TSA Input'!J3149=\"Contingent\"),'TSA Input'!F3149,\"\"))","v":""},"",{"$f":"IF('TSA Input'!J3149=\"\",\"\",IF(OR('TSA Input'!J3149=\"Yes\",'TSA Input'!J3149=\"Contingent\"),'TSA Input'!D3149,\"\"))","v":""},{"$f":"IF('TSA Input'!J3149=\"\",\"\",IF(OR('TSA Input'!J3149=\"Yes\",'TSA Input'!J3149=\"Contingent\"),'TSA Input'!G3149,\"\"))","v":""},{"$f":"IF('TSA Input'!J3149=\"\",\"\",IF(OR('TSA Input'!J3149=\"Yes\",'TSA Input'!J3149=\"Contingent\"),'TSA Input'!F3149,\"\"))","v":""},"","Required","Required"]
["",null,{"$f":"IF('TSA Input'!J3150=\"\",\"\",IF(OR('TSA Input'!J3150=\"Yes\",'TSA Input'!J3150=\"Contingent\"),'TSA Input'!B3150,\"Ineligible\"))","v":""},{"$f":"IF('TSA Input'!J3150=\"\",\"\",IF(OR('TSA Input'!J3150=\"Yes\",'TSA Input'!J3150=\"Contingent\"),'TSA Input'!I3150,\"\"))","v":""},{"$f":"IF('TSA Input'!J3150=\"\",\"\",IF(OR('TSA Input'!J3150=\"Yes\",'TSA Input'!J3150=\"Contingent\"),'TSA Input'!C3150,\"\"))","v":""},{"$f":"IF('TSA Input'!J3150=\"\",\"\",IF(OR('TSA Input'!J3150=\"Yes\",'TSA Input'!J3150=\"Contingent\"),'TSA Input'!D3150,\"\"))","v":""},{"$f":"IF('TSA Input'!J3150=\"\",\"\",IF(OR('TSA Input'!J3150=\"Yes\",'TSA Input'!J3150=\"Contingent\"),'TSA Input'!G3150,\"\"))","v":""},{"$f":"IF('TSA Input'!J3150=\"\",\"\",IF(OR('TSA Input'!J3150=\"Yes\",'TSA Input'!J3150=\"Contingent\"),'TSA Input'!F3150,\"\"))","v":""},"",{"$f":"IF('TSA Input'!J3150=\"\",\"\",IF(OR('TSA Input'!J3150=\"Yes\",'TSA Input'!J3150=\"Contingent\"),'TSA Input'!D3150,\"\"))","v":""},{"$f":"IF('TSA Input'!J3150=\"\",\"\",IF(OR('TSA Input'!J3150=\"Yes\",'TSA Input'!J3150=\"Contingent\"),'TSA Input'!G3150,\"\"))","v":""},{"$f":"IF('TSA Input'!J3150=\"\",\"\",IF(OR('TSA Input'!J3150=\"Yes\",'TSA Input'!J3150=\"Contingent\"),'TSA Input'!F3150,\"\"))","v":""},"","Required","Required"]
["",null,{"$f":"IF('TSA Input'!J3151=\"\",\"\",IF(OR('TSA Input'!J3151=\"Yes\",'TSA Input'!J3151=\"Contingent\"),'TSA Input'!B3151,\"Ineligible\"))","v":""},{"$f":"IF('TSA Input'!J3151=\"\",\"\",IF(OR('TSA Input'!J3151=\"Yes\",'TSA Input'!J3151=\"Contingent\"),'TSA Input'!I3151,\"\"))","v":""},{"$f":"IF('TSA Input'!J3151=\"\",\"\",IF(OR('TSA Input'!J3151=\"Yes\",'TSA Input'!J3151=\"Contingent\"),'TSA Input'!C3151,\"\"))","v":""},{"$f":"IF('TSA Input'!J3151=\"\",\"\",IF(OR('TSA Input'!J3151=\"Yes\",'TSA Input'!J3151=\"Contingent\"),'TSA Input'!D3151,\"\"))","v":""},{"$f":"IF('TSA Input'!J3151=\"\",\"\",IF(OR('TSA Input'!J3151=\"Yes\",'TSA Input'!J3151=\"Contingent\"),'TSA Input'!G3151,\"\"))","v":""},{"$f":"IF('TSA Input'!J3151=\"\",\"\",IF(OR('TSA Input'!J3151=\"Yes\",'TSA Input'!J3151=\"Contingent\"),'TSA Input'!F3151,\"\"))","v":""},"",{"$f":"IF('TSA Input'!J3151=\"\",\"\",IF(OR('TSA Input'!J3151=\"Yes\",'TSA Input'!J3151=\"Contingent\"),'TSA Input'!D3151,\"\"))","v":""},{"$f":"IF('TSA Input'!J3151=\"\",\"\",IF(OR('TSA Input'!J3151=\"Yes\",'TSA Input'!J3151=\"Contingent\"),'TSA Input'!G3151,\"\"))","v":""},{"$f":"IF('TSA Input'!J3151=\"\",\"\",IF(OR('TSA Input'!J3151=\"Yes\",'TSA Input'!J3151=\"Contingent\"),'TSA Input'!F3151,\"\"))","v":""},"","Required","Required"]
["",null,{"$f":"IF('TSA Input'!J3152=\"\",\"\",IF(OR('TSA Input'!J3152=\"Yes\",'TSA Input'!J3152=\"Contingent\"),'TSA Input'!B3152,\"Ineligible\"))","v":""},{"$f":"IF('TSA Input'!J3152=\"\",\"\",IF(OR('TSA Input'!J3152=\"Yes\",'TSA Input'!J3152=\"Contingent\"),'TSA Input'!I3152,\"\"))","v":""},{"$f":"IF('TSA Input'!J3152=\"\",\"\",IF(OR('TSA Input'!J3152=\"Yes\",'TSA Input'!J3152=\"Contingent\"),'TSA Input'!C3152,\"\"))","v":""},{"$f":"IF('TSA Input'!J3152=\"\",\"\",IF(OR('TSA Input'!J3152=\"Yes\",'TSA Input'!J3152=\"Contingent\"),'TSA Input'!D3152,\"\"))","v":""},{"$f":"IF('TSA Input'!J3152=\"\",\"\",IF(OR('TSA Input'!J3152=\"Yes\",'TSA Input'!J3152=\"Contingent\"),'TSA Input'!G3152,\"\"))","v":""},{"$f":"IF('TSA Input'!J3152=\"\",\"\",IF(OR('TSA Input'!J3152=\"Yes\",'TSA Input'!J3152=\"Contingent\"),'TSA Input'!F3152,\"\"))","v":""},"",{"$f":"IF('TSA Input'!J3152=\"\",\"\",IF(OR('TSA Input'!J3152=\"Yes\",'TSA Input'!J3152=\"Contingent\"),'TSA Input'!D3152,\"\"))","v":""},{"$f":"IF('TSA Input'!J3152=\"\",\"\",IF(OR('TSA Input'!J3152=\"Yes\",'TSA Input'!J3152=\"Contingent\"),'TSA Input'!G3152,\"\"))","v":""},{"$f":"IF('TSA Input'!J3152=\"\",\"\",IF(OR('TSA Input'!J3152=\"Yes\",'TSA Input'!J3152=\"Contingent\"),'TSA Input'!F3152,\"\"))","v":""},"","Required","Required"]
["",null,{"$f":"IF('TSA Input'!J3153=\"\",\"\",IF(OR('TSA Input'!J3153=\"Yes\",'TSA Input'!J3153=\"Contingent\"),'TSA Input'!B3153,\"Ineligible\"))","v":""},{"$f":"IF('TSA Input'!J3153=\"\",\"\",IF(OR('TSA Input'!J3153=\"Yes\",'TSA Input'!J3153=\"Contingent\"),'TSA Input'!I3153,\"\"))","v":""},{"$f":"IF('TSA Input'!J3153=\"\",\"\",IF(OR('TSA Input'!J3153=\"Yes\",'TSA Input'!J3153=\"Contingent\"),'TSA Input'!C3153,\"\"))","v":""},{"$f":"IF('TSA Input'!J3153=\"\",\"\",IF(OR('TSA Input'!J3153=\"Yes\",'TSA Input'!J3153=\"Contingent\"),'TSA Input'!D3153,\"\"))","v":""},{"$f":"IF('TSA Input'!J3153=\"\",\"\",IF(OR('TSA Input'!J3153=\"Yes\",'TSA Input'!J3153=\"Contingent\"),'TSA Input'!G3153,\"\"))","v":""},{"$f":"IF('TSA Input'!J3153=\"\",\"\",IF(OR('TSA Input'!J3153=\"Yes\",'TSA Input'!J3153=\"Contingent\"),'TSA Input'!F3153,\"\"))","v":""},"",{"$f":"IF('TSA Input'!J3153=\"\",\"\",IF(OR('TSA Input'!J3153=\"Yes\",'TSA Input'!J3153=\"Contingent\"),'TSA Input'!D3153,\"\"))","v":""},{"$f":"IF('TSA Input'!J3153=\"\",\"\",IF(OR('TSA Input'!J3153=\"Yes\",'TSA Input'!J3153=\"Contingent\"),'TSA Input'!G3153,\"\"))","v":""},{"$f":"IF('TSA Input'!J3153=\"\",\"\",IF(OR('TSA Input'!J3153=\"Yes\",'TSA Input'!J3153=\"Contingent\"),'TSA Input'!F3153,\"\"))","v":""},"","Required","Required"]
["",null,{"$f":"IF('TSA Input'!J3154=\"\",\"\",IF(OR('TSA Input'!J3154=\"Yes\",'TSA Input'!J3154=\"Contingent\"),'TSA Input'!B3154,\"Ineligible\"))","v":""},{"$f":"IF('TSA Input'!J3154=\"\",\"\",IF(OR('TSA Input'!J3154=\"Yes\",'TSA Input'!J3154=\"Contingent\"),'TSA Input'!I3154,\"\"))","v":""},{"$f":"IF('TSA Input'!J3154=\"\",\"\",IF(OR('TSA Input'!J3154=\"Yes\",'TSA Input'!J3154=\"Contingent\"),'TSA Input'!C3154,\"\"))","v":""},{"$f":"IF('TSA Input'!J3154=\"\",\"\",IF(OR('TSA Input'!J3154=\"Yes\",'TSA Input'!J3154=\"Contingent\"),'TSA Input'!D3154,\"\"))","v":""},{"$f":"IF('TSA Input'!J3154=\"\",\"\",IF(OR('TSA Input'!J3154=\"Yes\",'TSA Input'!J3154=\"Contingent\"),'TSA Input'!G3154,\"\"))","v":""},{"$f":"IF('TSA Input'!J3154=\"\",\"\",IF(OR('TSA Input'!J3154=\"Yes\",'TSA Input'!J3154=\"Contingent\"),'TSA Input'!F3154,\"\"))","v":""},"",{"$f":"IF('TSA Input'!J3154=\"\",\"\",IF(OR('TSA Input'!J3154=\"Yes\",'TSA Input'!J3154=\"Contingent\"),'TSA Input'!D3154,\"\"))","v":""},{"$f":"IF('TSA Input'!J3154=\"\",\"\",IF(OR('TSA Input'!J3154=\"Yes\",'TSA Input'!J3154=\"Contingent\"),'TSA Input'!G3154,\"\"))","v":""},{"$f":"IF('TSA Input'!J3154=\"\",\"\",IF(OR('TSA Input'!J3154=\"Yes\",'TSA Input'!J3154=\"Contingent\"),'TSA Input'!F3154,\"\"))","v":""},"","Required","Required"]
["",null,{"$f":"IF('TSA Input'!J3155=\"\",\"\",IF(OR('TSA Input'!J3155=\"Yes\",'TSA Input'!J3155=\"Contingent\"),'TSA Input'!B3155,\"Ineligible\"))","v":""},{"$f":"IF('TSA Input'!J3155=\"\",\"\",IF(OR('TSA Input'!J3155=\"Yes\",'TSA Input'!J3155=\"Contingent\"),'TSA Input'!I3155,\"\"))","v":""},{"$f":"IF('TSA Input'!J3155=\"\",\"\",IF(OR('TSA Input'!J3155=\"Yes\",'TSA Input'!J3155=\"Contingent\"),'TSA Input'!C3155,\"\"))","v":""},{"$f":"IF('TSA Input'!J3155=\"\",\"\",IF(OR('TSA Input'!J3155=\"Yes\",'TSA Input'!J3155=\"Contingent\"),'TSA Input'!D3155,\"\"))","v":""},{"$f":"IF('TSA Input'!J3155=\"\",\"\",IF(OR('TSA Input'!J3155=\"Yes\",'TSA Input'!J3155=\"Contingent\"),'TSA Input'!G3155,\"\"))","v":""},{"$f":"IF('TSA Input'!J3155=\"\",\"\",IF(OR('TSA Input'!J3155=\"Yes\",'TSA Input'!J3155=\"Contingent\"),'TSA Input'!F3155,\"\"))","v":""},"",{"$f":"IF('TSA Input'!J3155=\"\",\"\",IF(OR('TSA Input'!J3155=\"Yes\",'TSA Input'!J3155=\"Contingent\"),'TSA Input'!D3155,\"\"))","v":""},{"$f":"IF('TSA Input'!J3155=\"\",\"\",IF(OR('TSA Input'!J3155=\"Yes\",'TSA Input'!J3155=\"Contingent\"),'TSA Input'!G3155,\"\"))","v":""},{"$f":"IF('TSA Input'!J3155=\"\",\"\",IF(OR('TSA Input'!J3155=\"Yes\",'TSA Input'!J3155=\"Contingent\"),'TSA Input'!F3155,\"\"))","v":""},"","Required","Required"]
["",null,{"$f":"IF('TSA Input'!J3156=\"\",\"\",IF(OR('TSA Input'!J3156=\"Yes\",'TSA Input'!J3156=\"Contingent\"),'TSA Input'!B3156,\"Ineligible\"))","v":""},{"$f":"IF('TSA Input'!J3156=\"\",\"\",IF(OR('TSA Input'!J3156=\"Yes\",'TSA Input'!J3156=\"Contingent\"),'TSA Input'!I3156,\"\"))","v":""},{"$f":"IF('TSA Input'!J3156=\"\",\"\",IF(OR('TSA Input'!J3156=\"Yes\",'TSA Input'!J3156=\"Contingent\"),'TSA Input'!C3156,\"\"))","v":""},{"$f":"IF('TSA Input'!J3156=\"\",\"\",IF(OR('TSA Input'!J3156=\"Yes\",'TSA Input'!J3156=\"Contingent\"),'TSA Input'!D3156,\"\"))","v":""},{"$f":"IF('TSA Input'!J3156=\"\",\"\",IF(OR('TSA Input'!J3156=\"Yes\",'TSA Input'!J3156=\"Contingent\"),'TSA Input'!G3156,\"\"))","v":""},{"$f":"IF('TSA Input'!J3156=\"\",\"\",IF(OR('TSA Input'!J3156=\"Yes\",'TSA Input'!J3156=\"Contingent\"),'TSA Input'!F3156,\"\"))","v":""},"",{"$f":"IF('TSA Input'!J3156=\"\",\"\",IF(OR('TSA Input'!J3156=\"Yes\",'TSA Input'!J3156=\"Contingent\"),'TSA Input'!D3156,\"\"))","v":""},{"$f":"IF('TSA Input'!J3156=\"\",\"\",IF(OR('TSA Input'!J3156=\"Yes\",'TSA Input'!J3156=\"Contingent\"),'TSA Input'!G3156,\"\"))","v":""},{"$f":"IF('TSA Input'!J3156=\"\",\"\",IF(OR('TSA Input'!J3156=\"Yes\",'TSA Input'!J3156=\"Contingent\"),'TSA Input'!F3156,\"\"))","v":""},"","Required","Required"]
["",null,{"$f":"IF('TSA Input'!J3157=\"\",\"\",IF(OR('TSA Input'!J3157=\"Yes\",'TSA Input'!J3157=\"Contingent\"),'TSA Input'!B3157,\"Ineligible\"))","v":""},{"$f":"IF('TSA Input'!J3157=\"\",\"\",IF(OR('TSA Input'!J3157=\"Yes\",'TSA Input'!J3157=\"Contingent\"),'TSA Input'!I3157,\"\"))","v":""},{"$f":"IF('TSA Input'!J3157=\"\",\"\",IF(OR('TSA Input'!J3157=\"Yes\",'TSA Input'!J3157=\"Contingent\"),'TSA Input'!C3157,\"\"))","v":""},{"$f":"IF('TSA Input'!J3157=\"\",\"\",IF(OR('TSA Input'!J3157=\"Yes\",'TSA Input'!J3157=\"Contingent\"),'TSA Input'!D3157,\"\"))","v":""},{"$f":"IF('TSA Input'!J3157=\"\",\"\",IF(OR('TSA Input'!J3157=\"Yes\",'TSA Input'!J3157=\"Contingent\"),'TSA Input'!G3157,\"\"))","v":""},{"$f":"IF('TSA Input'!J3157=\"\",\"\",IF(OR('TSA Input'!J3157=\"Yes\",'TSA Input'!J3157=\"Contingent\"),'TSA Input'!F3157,\"\"))","v":""},"",{"$f":"IF('TSA Input'!J3157=\"\",\"\",IF(OR('TSA Input'!J3157=\"Yes\",'TSA Input'!J3157=\"Contingent\"),'TSA Input'!D3157,\"\"))","v":""},{"$f":"IF('TSA Input'!J3157=\"\",\"\",IF(OR('TSA Input'!J3157=\"Yes\",'TSA Input'!J3157=\"Contingent\"),'TSA Input'!G3157,\"\"))","v":""},{"$f":"IF('TSA Input'!J3157=\"\",\"\",IF(OR('TSA Input'!J3157=\"Yes\",'TSA Input'!J3157=\"Contingent\"),'TSA Input'!F3157,\"\"))","v":""},"","Required","Required"]
["",null,{"$f":"IF('TSA Input'!J3158=\"\",\"\",IF(OR('TSA Input'!J3158=\"Yes\",'TSA Input'!J3158=\"Contingent\"),'TSA Input'!B3158,\"Ineligible\"))","v":""},{"$f":"IF('TSA Input'!J3158=\"\",\"\",IF(OR('TSA Input'!J3158=\"Yes\",'TSA Input'!J3158=\"Contingent\"),'TSA Input'!I3158,\"\"))","v":""},{"$f":"IF('TSA Input'!J3158=\"\",\"\",IF(OR('TSA Input'!J3158=\"Yes\",'TSA Input'!J3158=\"Contingent\"),'TSA Input'!C3158,\"\"))","v":""},{"$f":"IF('TSA Input'!J3158=\"\",\"\",IF(OR('TSA Input'!J3158=\"Yes\",'TSA Input'!J3158=\"Contingent\"),'TSA Input'!D3158,\"\"))","v":""},{"$f":"IF('TSA Input'!J3158=\"\",\"\",IF(OR('TSA Input'!J3158=\"Yes\",'TSA Input'!J3158=\"Contingent\"),'TSA Input'!G3158,\"\"))","v":""},{"$f":"IF('TSA Input'!J3158=\"\",\"\",IF(OR('TSA Input'!J3158=\"Yes\",'TSA Input'!J3158=\"Contingent\"),'TSA Input'!F3158,\"\"))","v":""},"",{"$f":"IF('TSA Input'!J3158=\"\",\"\",IF(OR('TSA Input'!J3158=\"Yes\",'TSA Input'!J3158=\"Contingent\"),'TSA Input'!D3158,\"\"))","v":""},{"$f":"IF('TSA Input'!J3158=\"\",\"\",IF(OR('TSA Input'!J3158=\"Yes\",'TSA Input'!J3158=\"Contingent\"),'TSA Input'!G3158,\"\"))","v":""},{"$f":"IF('TSA Input'!J3158=\"\",\"\",IF(OR('TSA Input'!J3158=\"Yes\",'TSA Input'!J3158=\"Contingent\"),'TSA Input'!F3158,\"\"))","v":""},"","Required","Required"]
["",null,{"$f":"IF('TSA Input'!J3159=\"\",\"\",IF(OR('TSA Input'!J3159=\"Yes\",'TSA Input'!J3159=\"Contingent\"),'TSA Input'!B3159,\"Ineligible\"))","v":""},{"$f":"IF('TSA Input'!J3159=\"\",\"\",IF(OR('TSA Input'!J3159=\"Yes\",'TSA Input'!J3159=\"Contingent\"),'TSA Input'!I3159,\"\"))","v":""},{"$f":"IF('TSA Input'!J3159=\"\",\"\",IF(OR('TSA Input'!J3159=\"Yes\",'TSA Input'!J3159=\"Contingent\"),'TSA Input'!C3159,\"\"))","v":""},{"$f":"IF('TSA Input'!J3159=\"\",\"\",IF(OR('TSA Input'!J3159=\"Yes\",'TSA Input'!J3159=\"Contingent\"),'TSA Input'!D3159,\"\"))","v":""},{"$f":"IF('TSA Input'!J3159=\"\",\"\",IF(OR('TSA Input'!J3159=\"Yes\",'TSA Input'!J3159=\"Contingent\"),'TSA Input'!G3159,\"\"))","v":""},{"$f":"IF('TSA Input'!J3159=\"\",\"\",IF(OR('TSA Input'!J3159=\"Yes\",'TSA Input'!J3159=\"Contingent\"),'TSA Input'!F3159,\"\"))","v":""},"",{"$f":"IF('TSA Input'!J3159=\"\",\"\",IF(OR('TSA Input'!J3159=\"Yes\",'TSA Input'!J3159=\"Contingent\"),'TSA Input'!D3159,\"\"))","v":""},{"$f":"IF('TSA Input'!J3159=\"\",\"\",IF(OR('TSA Input'!J3159=\"Yes\",'TSA Input'!J3159=\"Contingent\"),'TSA Input'!G3159,\"\"))","v":""},{"$f":"IF('TSA Input'!J3159=\"\",\"\",IF(OR('TSA Input'!J3159=\"Yes\",'TSA Input'!J3159=\"Contingent\"),'TSA Input'!F3159,\"\"))","v":""},"","Required","Required"]
["",null,{"$f":"IF('TSA Input'!J3160=\"\",\"\",IF(OR('TSA Input'!J3160=\"Yes\",'TSA Input'!J3160=\"Contingent\"),'TSA Input'!B3160,\"Ineligible\"))","v":""},{"$f":"IF('TSA Input'!J3160=\"\",\"\",IF(OR('TSA Input'!J3160=\"Yes\",'TSA Input'!J3160=\"Contingent\"),'TSA Input'!I3160,\"\"))","v":""},{"$f":"IF('TSA Input'!J3160=\"\",\"\",IF(OR('TSA Input'!J3160=\"Yes\",'TSA Input'!J3160=\"Contingent\"),'TSA Input'!C3160,\"\"))","v":""},{"$f":"IF('TSA Input'!J3160=\"\",\"\",IF(OR('TSA Input'!J3160=\"Yes\",'TSA Input'!J3160=\"Contingent\"),'TSA Input'!D3160,\"\"))","v":""},{"$f":"IF('TSA Input'!J3160=\"\",\"\",IF(OR('TSA Input'!J3160=\"Yes\",'TSA Input'!J3160=\"Contingent\"),'TSA Input'!G3160,\"\"))","v":""},{"$f":"IF('TSA Input'!J3160=\"\",\"\",IF(OR('TSA Input'!J3160=\"Yes\",'TSA Input'!J3160=\"Contingent\"),'TSA Input'!F3160,\"\"))","v":""},"",{"$f":"IF('TSA Input'!J3160=\"\",\"\",IF(OR('TSA Input'!J3160=\"Yes\",'TSA Input'!J3160=\"Contingent\"),'TSA Input'!D3160,\"\"))","v":""},{"$f":"IF('TSA Input'!J3160=\"\",\"\",IF(OR('TSA Input'!J3160=\"Yes\",'TSA Input'!J3160=\"Contingent\"),'TSA Input'!G3160,\"\"))","v":""},{"$f":"IF('TSA Input'!J3160=\"\",\"\",IF(OR('TSA Input'!J3160=\"Yes\",'TSA Input'!J3160=\"Contingent\"),'TSA Input'!F3160,\"\"))","v":""},"","Required","Required"]
["",null,{"$f":"IF('TSA Input'!J3161=\"\",\"\",IF(OR('TSA Input'!J3161=\"Yes\",'TSA Input'!J3161=\"Contingent\"),'TSA Input'!B3161,\"Ineligible\"))","v":""},{"$f":"IF('TSA Input'!J3161=\"\",\"\",IF(OR('TSA Input'!J3161=\"Yes\",'TSA Input'!J3161=\"Contingent\"),'TSA Input'!I3161,\"\"))","v":""},{"$f":"IF('TSA Input'!J3161=\"\",\"\",IF(OR('TSA Input'!J3161=\"Yes\",'TSA Input'!J3161=\"Contingent\"),'TSA Input'!C3161,\"\"))","v":""},{"$f":"IF('TSA Input'!J3161=\"\",\"\",IF(OR('TSA Input'!J3161=\"Yes\",'TSA Input'!J3161=\"Contingent\"),'TSA Input'!D3161,\"\"))","v":""},{"$f":"IF('TSA Input'!J3161=\"\",\"\",IF(OR('TSA Input'!J3161=\"Yes\",'TSA Input'!J3161=\"Contingent\"),'TSA Input'!G3161,\"\"))","v":""},{"$f":"IF('TSA Input'!J3161=\"\",\"\",IF(OR('TSA Input'!J3161=\"Yes\",'TSA Input'!J3161=\"Contingent\"),'TSA Input'!F3161,\"\"))","v":""},"",{"$f":"IF('TSA Input'!J3161=\"\",\"\",IF(OR('TSA Input'!J3161=\"Yes\",'TSA Input'!J3161=\"Contingent\"),'TSA Input'!D3161,\"\"))","v":""},{"$f":"IF('TSA Input'!J3161=\"\",\"\",IF(OR('TSA Input'!J3161=\"Yes\",'TSA Input'!J3161=\"Contingent\"),'TSA Input'!G3161,\"\"))","v":""},{"$f":"IF('TSA Input'!J3161=\"\",\"\",IF(OR('TSA Input'!J3161=\"Yes\",'TSA Input'!J3161=\"Contingent\"),'TSA Input'!F3161,\"\"))","v":""},"","Required","Required"]
["",null,{"$f":"IF('TSA Input'!J3162=\"\",\"\",IF(OR('TSA Input'!J3162=\"Yes\",'TSA Input'!J3162=\"Contingent\"),'TSA Input'!B3162,\"Ineligible\"))","v":""},{"$f":"IF('TSA Input'!J3162=\"\",\"\",IF(OR('TSA Input'!J3162=\"Yes\",'TSA Input'!J3162=\"Contingent\"),'TSA Input'!I3162,\"\"))","v":""},{"$f":"IF('TSA Input'!J3162=\"\",\"\",IF(OR('TSA Input'!J3162=\"Yes\",'TSA Input'!J3162=\"Contingent\"),'TSA Input'!C3162,\"\"))","v":""},{"$f":"IF('TSA Input'!J3162=\"\",\"\",IF(OR('TSA Input'!J3162=\"Yes\",'TSA Input'!J3162=\"Contingent\"),'TSA Input'!D3162,\"\"))","v":""},{"$f":"IF('TSA Input'!J3162=\"\",\"\",IF(OR('TSA Input'!J3162=\"Yes\",'TSA Input'!J3162=\"Contingent\"),'TSA Input'!G3162,\"\"))","v":""},{"$f":"IF('TSA Input'!J3162=\"\",\"\",IF(OR('TSA Input'!J3162=\"Yes\",'TSA Input'!J3162=\"Contingent\"),'TSA Input'!F3162,\"\"))","v":""},"",{"$f":"IF('TSA Input'!J3162=\"\",\"\",IF(OR('TSA Input'!J3162=\"Yes\",'TSA Input'!J3162=\"Contingent\"),'TSA Input'!D3162,\"\"))","v":""},{"$f":"IF('TSA Input'!J3162=\"\",\"\",IF(OR('TSA Input'!J3162=\"Yes\",'TSA Input'!J3162=\"Contingent\"),'TSA Input'!G3162,\"\"))","v":""},{"$f":"IF('TSA Input'!J3162=\"\",\"\",IF(OR('TSA Input'!J3162=\"Yes\",'TSA Input'!J3162=\"Contingent\"),'TSA Input'!F3162,\"\"))","v":""},"","Required","Required"]
["",null,{"$f":"IF('TSA Input'!J3163=\"\",\"\",IF(OR('TSA Input'!J3163=\"Yes\",'TSA Input'!J3163=\"Contingent\"),'TSA Input'!B3163,\"Ineligible\"))","v":""},{"$f":"IF('TSA Input'!J3163=\"\",\"\",IF(OR('TSA Input'!J3163=\"Yes\",'TSA Input'!J3163=\"Contingent\"),'TSA Input'!I3163,\"\"))","v":""},{"$f":"IF('TSA Input'!J3163=\"\",\"\",IF(OR('TSA Input'!J3163=\"Yes\",'TSA Input'!J3163=\"Contingent\"),'TSA Input'!C3163,\"\"))","v":""},{"$f":"IF('TSA Input'!J3163=\"\",\"\",IF(OR('TSA Input'!J3163=\"Yes\",'TSA Input'!J3163=\"Contingent\"),'TSA Input'!D3163,\"\"))","v":""},{"$f":"IF('TSA Input'!J3163=\"\",\"\",IF(OR('TSA Input'!J3163=\"Yes\",'TSA Input'!J3163=\"Contingent\"),'TSA Input'!G3163,\"\"))","v":""},{"$f":"IF('TSA Input'!J3163=\"\",\"\",IF(OR('TSA Input'!J3163=\"Yes\",'TSA Input'!J3163=\"Contingent\"),'TSA Input'!F3163,\"\"))","v":""},"",{"$f":"IF('TSA Input'!J3163=\"\",\"\",IF(OR('TSA Input'!J3163=\"Yes\",'TSA Input'!J3163=\"Contingent\"),'TSA Input'!D3163,\"\"))","v":""},{"$f":"IF('TSA Input'!J3163=\"\",\"\",IF(OR('TSA Input'!J3163=\"Yes\",'TSA Input'!J3163=\"Contingent\"),'TSA Input'!G3163,\"\"))","v":""},{"$f":"IF('TSA Input'!J3163=\"\",\"\",IF(OR('TSA Input'!J3163=\"Yes\",'TSA Input'!J3163=\"Contingent\"),'TSA Input'!F3163,\"\"))","v":""},"","Required","Required"]
["",null,{"$f":"IF('TSA Input'!J3164=\"\",\"\",IF(OR('TSA Input'!J3164=\"Yes\",'TSA Input'!J3164=\"Contingent\"),'TSA Input'!B3164,\"Ineligible\"))","v":""},{"$f":"IF('TSA Input'!J3164=\"\",\"\",IF(OR('TSA Input'!J3164=\"Yes\",'TSA Input'!J3164=\"Contingent\"),'TSA Input'!I3164,\"\"))","v":""},{"$f":"IF('TSA Input'!J3164=\"\",\"\",IF(OR('TSA Input'!J3164=\"Yes\",'TSA Input'!J3164=\"Contingent\"),'TSA Input'!C3164,\"\"))","v":""},{"$f":"IF('TSA Input'!J3164=\"\",\"\",IF(OR('TSA Input'!J3164=\"Yes\",'TSA Input'!J3164=\"Contingent\"),'TSA Input'!D3164,\"\"))","v":""},{"$f":"IF('TSA Input'!J3164=\"\",\"\",IF(OR('TSA Input'!J3164=\"Yes\",'TSA Input'!J3164=\"Contingent\"),'TSA Input'!G3164,\"\"))","v":""},{"$f":"IF('TSA Input'!J3164=\"\",\"\",IF(OR('TSA Input'!J3164=\"Yes\",'TSA Input'!J3164=\"Contingent\"),'TSA Input'!F3164,\"\"))","v":""},"",{"$f":"IF('TSA Input'!J3164=\"\",\"\",IF(OR('TSA Input'!J3164=\"Yes\",'TSA Input'!J3164=\"Contingent\"),'TSA Input'!D3164,\"\"))","v":""},{"$f":"IF('TSA Input'!J3164=\"\",\"\",IF(OR('TSA Input'!J3164=\"Yes\",'TSA Input'!J3164=\"Contingent\"),'TSA Input'!G3164,\"\"))","v":""},{"$f":"IF('TSA Input'!J3164=\"\",\"\",IF(OR('TSA Input'!J3164=\"Yes\",'TSA Input'!J3164=\"Contingent\"),'TSA Input'!F3164,\"\"))","v":""},"","Required","Required"]
["",null,{"$f":"IF('TSA Input'!J3165=\"\",\"\",IF(OR('TSA Input'!J3165=\"Yes\",'TSA Input'!J3165=\"Contingent\"),'TSA Input'!B3165,\"Ineligible\"))","v":""},{"$f":"IF('TSA Input'!J3165=\"\",\"\",IF(OR('TSA Input'!J3165=\"Yes\",'TSA Input'!J3165=\"Contingent\"),'TSA Input'!I3165,\"\"))","v":""},{"$f":"IF('TSA Input'!J3165=\"\",\"\",IF(OR('TSA Input'!J3165=\"Yes\",'TSA Input'!J3165=\"Contingent\"),'TSA Input'!C3165,\"\"))","v":""},{"$f":"IF('TSA Input'!J3165=\"\",\"\",IF(OR('TSA Input'!J3165=\"Yes\",'TSA Input'!J3165=\"Contingent\"),'TSA Input'!D3165,\"\"))","v":""},{"$f":"IF('TSA Input'!J3165=\"\",\"\",IF(OR('TSA Input'!J3165=\"Yes\",'TSA Input'!J3165=\"Contingent\"),'TSA Input'!G3165,\"\"))","v":""},{"$f":"IF('TSA Input'!J3165=\"\",\"\",IF(OR('TSA Input'!J3165=\"Yes\",'TSA Input'!J3165=\"Contingent\"),'TSA Input'!F3165,\"\"))","v":""},"",{"$f":"IF('TSA Input'!J3165=\"\",\"\",IF(OR('TSA Input'!J3165=\"Yes\",'TSA Input'!J3165=\"Contingent\"),'TSA Input'!D3165,\"\"))","v":""},{"$f":"IF('TSA Input'!J3165=\"\",\"\",IF(OR('TSA Input'!J3165=\"Yes\",'TSA Input'!J3165=\"Contingent\"),'TSA Input'!G3165,\"\"))","v":""},{"$f":"IF('TSA Input'!J3165=\"\",\"\",IF(OR('TSA Input'!J3165=\"Yes\",'TSA Input'!J3165=\"Contingent\"),'TSA Input'!F3165,\"\"))","v":""},"","Required","Required"]
["",null,{"$f":"IF('TSA Input'!J3166=\"\",\"\",IF(OR('TSA Input'!J3166=\"Yes\",'TSA Input'!J3166=\"Contingent\"),'TSA Input'!B3166,\"Ineligible\"))","v":""},{"$f":"IF('TSA Input'!J3166=\"\",\"\",IF(OR('TSA Input'!J3166=\"Yes\",'TSA Input'!J3166=\"Contingent\"),'TSA Input'!I3166,\"\"))","v":""},{"$f":"IF('TSA Input'!J3166=\"\",\"\",IF(OR('TSA Input'!J3166=\"Yes\",'TSA Input'!J3166=\"Contingent\"),'TSA Input'!C3166,\"\"))","v":""},{"$f":"IF('TSA Input'!J3166=\"\",\"\",IF(OR('TSA Input'!J3166=\"Yes\",'TSA Input'!J3166=\"Contingent\"),'TSA Input'!D3166,\"\"))","v":""},{"$f":"IF('TSA Input'!J3166=\"\",\"\",IF(OR('TSA Input'!J3166=\"Yes\",'TSA Input'!J3166=\"Contingent\"),'TSA Input'!G3166,\"\"))","v":""},{"$f":"IF('TSA Input'!J3166=\"\",\"\",IF(OR('TSA Input'!J3166=\"Yes\",'TSA Input'!J3166=\"Contingent\"),'TSA Input'!F3166,\"\"))","v":""},"",{"$f":"IF('TSA Input'!J3166=\"\",\"\",IF(OR('TSA Input'!J3166=\"Yes\",'TSA Input'!J3166=\"Contingent\"),'TSA Input'!D3166,\"\"))","v":""},{"$f":"IF('TSA Input'!J3166=\"\",\"\",IF(OR('TSA Input'!J3166=\"Yes\",'TSA Input'!J3166=\"Contingent\"),'TSA Input'!G3166,\"\"))","v":""},{"$f":"IF('TSA Input'!J3166=\"\",\"\",IF(OR('TSA Input'!J3166=\"Yes\",'TSA Input'!J3166=\"Contingent\"),'TSA Input'!F3166,\"\"))","v":""},"","Required","Required"]
["",null,{"$f":"IF('TSA Input'!J3167=\"\",\"\",IF(OR('TSA Input'!J3167=\"Yes\",'TSA Input'!J3167=\"Contingent\"),'TSA Input'!B3167,\"Ineligible\"))","v":""},{"$f":"IF('TSA Input'!J3167=\"\",\"\",IF(OR('TSA Input'!J3167=\"Yes\",'TSA Input'!J3167=\"Contingent\"),'TSA Input'!I3167,\"\"))","v":""},{"$f":"IF('TSA Input'!J3167=\"\",\"\",IF(OR('TSA Input'!J3167=\"Yes\",'TSA Input'!J3167=\"Contingent\"),'TSA Input'!C3167,\"\"))","v":""},{"$f":"IF('TSA Input'!J3167=\"\",\"\",IF(OR('TSA Input'!J3167=\"Yes\",'TSA Input'!J3167=\"Contingent\"),'TSA Input'!D3167,\"\"))","v":""},{"$f":"IF('TSA Input'!J3167=\"\",\"\",IF(OR('TSA Input'!J3167=\"Yes\",'TSA Input'!J3167=\"Contingent\"),'TSA Input'!G3167,\"\"))","v":""},{"$f":"IF('TSA Input'!J3167=\"\",\"\",IF(OR('TSA Input'!J3167=\"Yes\",'TSA Input'!J3167=\"Contingent\"),'TSA Input'!F3167,\"\"))","v":""},"",{"$f":"IF('TSA Input'!J3167=\"\",\"\",IF(OR('TSA Input'!J3167=\"Yes\",'TSA Input'!J3167=\"Contingent\"),'TSA Input'!D3167,\"\"))","v":""},{"$f":"IF('TSA Input'!J3167=\"\",\"\",IF(OR('TSA Input'!J3167=\"Yes\",'TSA Input'!J3167=\"Contingent\"),'TSA Input'!G3167,\"\"))","v":""},{"$f":"IF('TSA Input'!J3167=\"\",\"\",IF(OR('TSA Input'!J3167=\"Yes\",'TSA Input'!J3167=\"Contingent\"),'TSA Input'!F3167,\"\"))","v":""},"","Required","Required"]
["",null,{"$f":"IF('TSA Input'!J3168=\"\",\"\",IF(OR('TSA Input'!J3168=\"Yes\",'TSA Input'!J3168=\"Contingent\"),'TSA Input'!B3168,\"Ineligible\"))","v":""},{"$f":"IF('TSA Input'!J3168=\"\",\"\",IF(OR('TSA Input'!J3168=\"Yes\",'TSA Input'!J3168=\"Contingent\"),'TSA Input'!I3168,\"\"))","v":""},{"$f":"IF('TSA Input'!J3168=\"\",\"\",IF(OR('TSA Input'!J3168=\"Yes\",'TSA Input'!J3168=\"Contingent\"),'TSA Input'!C3168,\"\"))","v":""},{"$f":"IF('TSA Input'!J3168=\"\",\"\",IF(OR('TSA Input'!J3168=\"Yes\",'TSA Input'!J3168=\"Contingent\"),'TSA Input'!D3168,\"\"))","v":""},{"$f":"IF('TSA Input'!J3168=\"\",\"\",IF(OR('TSA Input'!J3168=\"Yes\",'TSA Input'!J3168=\"Contingent\"),'TSA Input'!G3168,\"\"))","v":""},{"$f":"IF('TSA Input'!J3168=\"\",\"\",IF(OR('TSA Input'!J3168=\"Yes\",'TSA Input'!J3168=\"Contingent\"),'TSA Input'!F3168,\"\"))","v":""},"",{"$f":"IF('TSA Input'!J3168=\"\",\"\",IF(OR('TSA Input'!J3168=\"Yes\",'TSA Input'!J3168=\"Contingent\"),'TSA Input'!D3168,\"\"))","v":""},{"$f":"IF('TSA Input'!J3168=\"\",\"\",IF(OR('TSA Input'!J3168=\"Yes\",'TSA Input'!J3168=\"Contingent\"),'TSA Input'!G3168,\"\"))","v":""},{"$f":"IF('TSA Input'!J3168=\"\",\"\",IF(OR('TSA Input'!J3168=\"Yes\",'TSA Input'!J3168=\"Contingent\"),'TSA Input'!F3168,\"\"))","v":""},"","Required","Required"]
["",null,{"$f":"IF('TSA Input'!J3169=\"\",\"\",IF(OR('TSA Input'!J3169=\"Yes\",'TSA Input'!J3169=\"Contingent\"),'TSA Input'!B3169,\"Ineligible\"))","v":""},{"$f":"IF('TSA Input'!J3169=\"\",\"\",IF(OR('TSA Input'!J3169=\"Yes\",'TSA Input'!J3169=\"Contingent\"),'TSA Input'!I3169,\"\"))","v":""},{"$f":"IF('TSA Input'!J3169=\"\",\"\",IF(OR('TSA Input'!J3169=\"Yes\",'TSA Input'!J3169=\"Contingent\"),'TSA Input'!C3169,\"\"))","v":""},{"$f":"IF('TSA Input'!J3169=\"\",\"\",IF(OR('TSA Input'!J3169=\"Yes\",'TSA Input'!J3169=\"Contingent\"),'TSA Input'!D3169,\"\"))","v":""},{"$f":"IF('TSA Input'!J3169=\"\",\"\",IF(OR('TSA Input'!J3169=\"Yes\",'TSA Input'!J3169=\"Contingent\"),'TSA Input'!G3169,\"\"))","v":""},{"$f":"IF('TSA Input'!J3169=\"\",\"\",IF(OR('TSA Input'!J3169=\"Yes\",'TSA Input'!J3169=\"Contingent\"),'TSA Input'!F3169,\"\"))","v":""},"",{"$f":"IF('TSA Input'!J3169=\"\",\"\",IF(OR('TSA Input'!J3169=\"Yes\",'TSA Input'!J3169=\"Contingent\"),'TSA Input'!D3169,\"\"))","v":""},{"$f":"IF('TSA Input'!J3169=\"\",\"\",IF(OR('TSA Input'!J3169=\"Yes\",'TSA Input'!J3169=\"Contingent\"),'TSA Input'!G3169,\"\"))","v":""},{"$f":"IF('TSA Input'!J3169=\"\",\"\",IF(OR('TSA Input'!J3169=\"Yes\",'TSA Input'!J3169=\"Contingent\"),'TSA Input'!F3169,\"\"))","v":""},"","Required","Required"]
["",null,{"$f":"IF('TSA Input'!J3170=\"\",\"\",IF(OR('TSA Input'!J3170=\"Yes\",'TSA Input'!J3170=\"Contingent\"),'TSA Input'!B3170,\"Ineligible\"))","v":""},{"$f":"IF('TSA Input'!J3170=\"\",\"\",IF(OR('TSA Input'!J3170=\"Yes\",'TSA Input'!J3170=\"Contingent\"),'TSA Input'!I3170,\"\"))","v":""},{"$f":"IF('TSA Input'!J3170=\"\",\"\",IF(OR('TSA Input'!J3170=\"Yes\",'TSA Input'!J3170=\"Contingent\"),'TSA Input'!C3170,\"\"))","v":""},{"$f":"IF('TSA Input'!J3170=\"\",\"\",IF(OR('TSA Input'!J3170=\"Yes\",'TSA Input'!J3170=\"Contingent\"),'TSA Input'!D3170,\"\"))","v":""},{"$f":"IF('TSA Input'!J3170=\"\",\"\",IF(OR('TSA Input'!J3170=\"Yes\",'TSA Input'!J3170=\"Contingent\"),'TSA Input'!G3170,\"\"))","v":""},{"$f":"IF('TSA Input'!J3170=\"\",\"\",IF(OR('TSA Input'!J3170=\"Yes\",'TSA Input'!J3170=\"Contingent\"),'TSA Input'!F3170,\"\"))","v":""},"",{"$f":"IF('TSA Input'!J3170=\"\",\"\",IF(OR('TSA Input'!J3170=\"Yes\",'TSA Input'!J3170=\"Contingent\"),'TSA Input'!D3170,\"\"))","v":""},{"$f":"IF('TSA Input'!J3170=\"\",\"\",IF(OR('TSA Input'!J3170=\"Yes\",'TSA Input'!J3170=\"Contingent\"),'TSA Input'!G3170,\"\"))","v":""},{"$f":"IF('TSA Input'!J3170=\"\",\"\",IF(OR('TSA Input'!J3170=\"Yes\",'TSA Input'!J3170=\"Contingent\"),'TSA Input'!F3170,\"\"))","v":""},"","Required","Required"]
["",null,{"$f":"IF('TSA Input'!J3171=\"\",\"\",IF(OR('TSA Input'!J3171=\"Yes\",'TSA Input'!J3171=\"Contingent\"),'TSA Input'!B3171,\"Ineligible\"))","v":""},{"$f":"IF('TSA Input'!J3171=\"\",\"\",IF(OR('TSA Input'!J3171=\"Yes\",'TSA Input'!J3171=\"Contingent\"),'TSA Input'!I3171,\"\"))","v":""},{"$f":"IF('TSA Input'!J3171=\"\",\"\",IF(OR('TSA Input'!J3171=\"Yes\",'TSA Input'!J3171=\"Contingent\"),'TSA Input'!C3171,\"\"))","v":""},{"$f":"IF('TSA Input'!J3171=\"\",\"\",IF(OR('TSA Input'!J3171=\"Yes\",'TSA Input'!J3171=\"Contingent\"),'TSA Input'!D3171,\"\"))","v":""},{"$f":"IF('TSA Input'!J3171=\"\",\"\",IF(OR('TSA Input'!J3171=\"Yes\",'TSA Input'!J3171=\"Contingent\"),'TSA Input'!G3171,\"\"))","v":""},{"$f":"IF('TSA Input'!J3171=\"\",\"\",IF(OR('TSA Input'!J3171=\"Yes\",'TSA Input'!J3171=\"Contingent\"),'TSA Input'!F3171,\"\"))","v":""},"",{"$f":"IF('TSA Input'!J3171=\"\",\"\",IF(OR('TSA Input'!J3171=\"Yes\",'TSA Input'!J3171=\"Contingent\"),'TSA Input'!D3171,\"\"))","v":""},{"$f":"IF('TSA Input'!J3171=\"\",\"\",IF(OR('TSA Input'!J3171=\"Yes\",'TSA Input'!J3171=\"Contingent\"),'TSA Input'!G3171,\"\"))","v":""},{"$f":"IF('TSA Input'!J3171=\"\",\"\",IF(OR('TSA Input'!J3171=\"Yes\",'TSA Input'!J3171=\"Contingent\"),'TSA Input'!F3171,\"\"))","v":""},"","Required","Required"]
["",null,{"$f":"IF('TSA Input'!J3172=\"\",\"\",IF(OR('TSA Input'!J3172=\"Yes\",'TSA Input'!J3172=\"Contingent\"),'TSA Input'!B3172,\"Ineligible\"))","v":""},{"$f":"IF('TSA Input'!J3172=\"\",\"\",IF(OR('TSA Input'!J3172=\"Yes\",'TSA Input'!J3172=\"Contingent\"),'TSA Input'!I3172,\"\"))","v":""},{"$f":"IF('TSA Input'!J3172=\"\",\"\",IF(OR('TSA Input'!J3172=\"Yes\",'TSA Input'!J3172=\"Contingent\"),'TSA Input'!C3172,\"\"))","v":""},{"$f":"IF('TSA Input'!J3172=\"\",\"\",IF(OR('TSA Input'!J3172=\"Yes\",'TSA Input'!J3172=\"Contingent\"),'TSA Input'!D3172,\"\"))","v":""},{"$f":"IF('TSA Input'!J3172=\"\",\"\",IF(OR('TSA Input'!J3172=\"Yes\",'TSA Input'!J3172=\"Contingent\"),'TSA Input'!G3172,\"\"))","v":""},{"$f":"IF('TSA Input'!J3172=\"\",\"\",IF(OR('TSA Input'!J3172=\"Yes\",'TSA Input'!J3172=\"Contingent\"),'TSA Input'!F3172,\"\"))","v":""},"",{"$f":"IF('TSA Input'!J3172=\"\",\"\",IF(OR('TSA Input'!J3172=\"Yes\",'TSA Input'!J3172=\"Contingent\"),'TSA Input'!D3172,\"\"))","v":""},{"$f":"IF('TSA Input'!J3172=\"\",\"\",IF(OR('TSA Input'!J3172=\"Yes\",'TSA Input'!J3172=\"Contingent\"),'TSA Input'!G3172,\"\"))","v":""},{"$f":"IF('TSA Input'!J3172=\"\",\"\",IF(OR('TSA Input'!J3172=\"Yes\",'TSA Input'!J3172=\"Contingent\"),'TSA Input'!F3172,\"\"))","v":""},"","Required","Required"]
["",null,{"$f":"IF('TSA Input'!J3173=\"\",\"\",IF(OR('TSA Input'!J3173=\"Yes\",'TSA Input'!J3173=\"Contingent\"),'TSA Input'!B3173,\"Ineligible\"))","v":""},{"$f":"IF('TSA Input'!J3173=\"\",\"\",IF(OR('TSA Input'!J3173=\"Yes\",'TSA Input'!J3173=\"Contingent\"),'TSA Input'!I3173,\"\"))","v":""},{"$f":"IF('TSA Input'!J3173=\"\",\"\",IF(OR('TSA Input'!J3173=\"Yes\",'TSA Input'!J3173=\"Contingent\"),'TSA Input'!C3173,\"\"))","v":""},{"$f":"IF('TSA Input'!J3173=\"\",\"\",IF(OR('TSA Input'!J3173=\"Yes\",'TSA Input'!J3173=\"Contingent\"),'TSA Input'!D3173,\"\"))","v":""},{"$f":"IF('TSA Input'!J3173=\"\",\"\",IF(OR('TSA Input'!J3173=\"Yes\",'TSA Input'!J3173=\"Contingent\"),'TSA Input'!G3173,\"\"))","v":""},{"$f":"IF('TSA Input'!J3173=\"\",\"\",IF(OR('TSA Input'!J3173=\"Yes\",'TSA Input'!J3173=\"Contingent\"),'TSA Input'!F3173,\"\"))","v":""},"",{"$f":"IF('TSA Input'!J3173=\"\",\"\",IF(OR('TSA Input'!J3173=\"Yes\",'TSA Input'!J3173=\"Contingent\"),'TSA Input'!D3173,\"\"))","v":""},{"$f":"IF('TSA Input'!J3173=\"\",\"\",IF(OR('TSA Input'!J3173=\"Yes\",'TSA Input'!J3173=\"Contingent\"),'TSA Input'!G3173,\"\"))","v":""},{"$f":"IF('TSA Input'!J3173=\"\",\"\",IF(OR('TSA Input'!J3173=\"Yes\",'TSA Input'!J3173=\"Contingent\"),'TSA Input'!F3173,\"\"))","v":""},"","Required","Required"]
["",null,{"$f":"IF('TSA Input'!J3174=\"\",\"\",IF(OR('TSA Input'!J3174=\"Yes\",'TSA Input'!J3174=\"Contingent\"),'TSA Input'!B3174,\"Ineligible\"))","v":""},{"$f":"IF('TSA Input'!J3174=\"\",\"\",IF(OR('TSA Input'!J3174=\"Yes\",'TSA Input'!J3174=\"Contingent\"),'TSA Input'!I3174,\"\"))","v":""},{"$f":"IF('TSA Input'!J3174=\"\",\"\",IF(OR('TSA Input'!J3174=\"Yes\",'TSA Input'!J3174=\"Contingent\"),'TSA Input'!C3174,\"\"))","v":""},{"$f":"IF('TSA Input'!J3174=\"\",\"\",IF(OR('TSA Input'!J3174=\"Yes\",'TSA Input'!J3174=\"Contingent\"),'TSA Input'!D3174,\"\"))","v":""},{"$f":"IF('TSA Input'!J3174=\"\",\"\",IF(OR('TSA Input'!J3174=\"Yes\",'TSA Input'!J3174=\"Contingent\"),'TSA Input'!G3174,\"\"))","v":""},{"$f":"IF('TSA Input'!J3174=\"\",\"\",IF(OR('TSA Input'!J3174=\"Yes\",'TSA Input'!J3174=\"Contingent\"),'TSA Input'!F3174,\"\"))","v":""},"",{"$f":"IF('TSA Input'!J3174=\"\",\"\",IF(OR('TSA Input'!J3174=\"Yes\",'TSA Input'!J3174=\"Contingent\"),'TSA Input'!D3174,\"\"))","v":""},{"$f":"IF('TSA Input'!J3174=\"\",\"\",IF(OR('TSA Input'!J3174=\"Yes\",'TSA Input'!J3174=\"Contingent\"),'TSA Input'!G3174,\"\"))","v":""},{"$f":"IF('TSA Input'!J3174=\"\",\"\",IF(OR('TSA Input'!J3174=\"Yes\",'TSA Input'!J3174=\"Contingent\"),'TSA Input'!F3174,\"\"))","v":""},"","Required","Required"]
["",null,{"$f":"IF('TSA Input'!J3175=\"\",\"\",IF(OR('TSA Input'!J3175=\"Yes\",'TSA Input'!J3175=\"Contingent\"),'TSA Input'!B3175,\"Ineligible\"))","v":""},{"$f":"IF('TSA Input'!J3175=\"\",\"\",IF(OR('TSA Input'!J3175=\"Yes\",'TSA Input'!J3175=\"Contingent\"),'TSA Input'!I3175,\"\"))","v":""},{"$f":"IF('TSA Input'!J3175=\"\",\"\",IF(OR('TSA Input'!J3175=\"Yes\",'TSA Input'!J3175=\"Contingent\"),'TSA Input'!C3175,\"\"))","v":""},{"$f":"IF('TSA Input'!J3175=\"\",\"\",IF(OR('TSA Input'!J3175=\"Yes\",'TSA Input'!J3175=\"Contingent\"),'TSA Input'!D3175,\"\"))","v":""},{"$f":"IF('TSA Input'!J3175=\"\",\"\",IF(OR('TSA Input'!J3175=\"Yes\",'TSA Input'!J3175=\"Contingent\"),'TSA Input'!G3175,\"\"))","v":""},{"$f":"IF('TSA Input'!J3175=\"\",\"\",IF(OR('TSA Input'!J3175=\"Yes\",'TSA Input'!J3175=\"Contingent\"),'TSA Input'!F3175,\"\"))","v":""},"",{"$f":"IF('TSA Input'!J3175=\"\",\"\",IF(OR('TSA Input'!J3175=\"Yes\",'TSA Input'!J3175=\"Contingent\"),'TSA Input'!D3175,\"\"))","v":""},{"$f":"IF('TSA Input'!J3175=\"\",\"\",IF(OR('TSA Input'!J3175=\"Yes\",'TSA Input'!J3175=\"Contingent\"),'TSA Input'!G3175,\"\"))","v":""},{"$f":"IF('TSA Input'!J3175=\"\",\"\",IF(OR('TSA Input'!J3175=\"Yes\",'TSA Input'!J3175=\"Contingent\"),'TSA Input'!F3175,\"\"))","v":""},"","Required","Required"]
["",null,{"$f":"IF('TSA Input'!J3176=\"\",\"\",IF(OR('TSA Input'!J3176=\"Yes\",'TSA Input'!J3176=\"Contingent\"),'TSA Input'!B3176,\"Ineligible\"))","v":""},{"$f":"IF('TSA Input'!J3176=\"\",\"\",IF(OR('TSA Input'!J3176=\"Yes\",'TSA Input'!J3176=\"Contingent\"),'TSA Input'!I3176,\"\"))","v":""},{"$f":"IF('TSA Input'!J3176=\"\",\"\",IF(OR('TSA Input'!J3176=\"Yes\",'TSA Input'!J3176=\"Contingent\"),'TSA Input'!C3176,\"\"))","v":""},{"$f":"IF('TSA Input'!J3176=\"\",\"\",IF(OR('TSA Input'!J3176=\"Yes\",'TSA Input'!J3176=\"Contingent\"),'TSA Input'!D3176,\"\"))","v":""},{"$f":"IF('TSA Input'!J3176=\"\",\"\",IF(OR('TSA Input'!J3176=\"Yes\",'TSA Input'!J3176=\"Contingent\"),'TSA Input'!G3176,\"\"))","v":""},{"$f":"IF('TSA Input'!J3176=\"\",\"\",IF(OR('TSA Input'!J3176=\"Yes\",'TSA Input'!J3176=\"Contingent\"),'TSA Input'!F3176,\"\"))","v":""},"",{"$f":"IF('TSA Input'!J3176=\"\",\"\",IF(OR('TSA Input'!J3176=\"Yes\",'TSA Input'!J3176=\"Contingent\"),'TSA Input'!D3176,\"\"))","v":""},{"$f":"IF('TSA Input'!J3176=\"\",\"\",IF(OR('TSA Input'!J3176=\"Yes\",'TSA Input'!J3176=\"Contingent\"),'TSA Input'!G3176,\"\"))","v":""},{"$f":"IF('TSA Input'!J3176=\"\",\"\",IF(OR('TSA Input'!J3176=\"Yes\",'TSA Input'!J3176=\"Contingent\"),'TSA Input'!F3176,\"\"))","v":""},"","Required","Required"]
["",null,{"$f":"IF('TSA Input'!J3177=\"\",\"\",IF(OR('TSA Input'!J3177=\"Yes\",'TSA Input'!J3177=\"Contingent\"),'TSA Input'!B3177,\"Ineligible\"))","v":""},{"$f":"IF('TSA Input'!J3177=\"\",\"\",IF(OR('TSA Input'!J3177=\"Yes\",'TSA Input'!J3177=\"Contingent\"),'TSA Input'!I3177,\"\"))","v":""},{"$f":"IF('TSA Input'!J3177=\"\",\"\",IF(OR('TSA Input'!J3177=\"Yes\",'TSA Input'!J3177=\"Contingent\"),'TSA Input'!C3177,\"\"))","v":""},{"$f":"IF('TSA Input'!J3177=\"\",\"\",IF(OR('TSA Input'!J3177=\"Yes\",'TSA Input'!J3177=\"Contingent\"),'TSA Input'!D3177,\"\"))","v":""},{"$f":"IF('TSA Input'!J3177=\"\",\"\",IF(OR('TSA Input'!J3177=\"Yes\",'TSA Input'!J3177=\"Contingent\"),'TSA Input'!G3177,\"\"))","v":""},{"$f":"IF('TSA Input'!J3177=\"\",\"\",IF(OR('TSA Input'!J3177=\"Yes\",'TSA Input'!J3177=\"Contingent\"),'TSA Input'!F3177,\"\"))","v":""},"",{"$f":"IF('TSA Input'!J3177=\"\",\"\",IF(OR('TSA Input'!J3177=\"Yes\",'TSA Input'!J3177=\"Contingent\"),'TSA Input'!D3177,\"\"))","v":""},{"$f":"IF('TSA Input'!J3177=\"\",\"\",IF(OR('TSA Input'!J3177=\"Yes\",'TSA Input'!J3177=\"Contingent\"),'TSA Input'!G3177,\"\"))","v":""},{"$f":"IF('TSA Input'!J3177=\"\",\"\",IF(OR('TSA Input'!J3177=\"Yes\",'TSA Input'!J3177=\"Contingent\"),'TSA Input'!F3177,\"\"))","v":""},"","Required","Required"]
["",null,{"$f":"IF('TSA Input'!J3178=\"\",\"\",IF(OR('TSA Input'!J3178=\"Yes\",'TSA Input'!J3178=\"Contingent\"),'TSA Input'!B3178,\"Ineligible\"))","v":""},{"$f":"IF('TSA Input'!J3178=\"\",\"\",IF(OR('TSA Input'!J3178=\"Yes\",'TSA Input'!J3178=\"Contingent\"),'TSA Input'!I3178,\"\"))","v":""},{"$f":"IF('TSA Input'!J3178=\"\",\"\",IF(OR('TSA Input'!J3178=\"Yes\",'TSA Input'!J3178=\"Contingent\"),'TSA Input'!C3178,\"\"))","v":""},{"$f":"IF('TSA Input'!J3178=\"\",\"\",IF(OR('TSA Input'!J3178=\"Yes\",'TSA Input'!J3178=\"Contingent\"),'TSA Input'!D3178,\"\"))","v":""},{"$f":"IF('TSA Input'!J3178=\"\",\"\",IF(OR('TSA Input'!J3178=\"Yes\",'TSA Input'!J3178=\"Contingent\"),'TSA Input'!G3178,\"\"))","v":""},{"$f":"IF('TSA Input'!J3178=\"\",\"\",IF(OR('TSA Input'!J3178=\"Yes\",'TSA Input'!J3178=\"Contingent\"),'TSA Input'!F3178,\"\"))","v":""},"",{"$f":"IF('TSA Input'!J3178=\"\",\"\",IF(OR('TSA Input'!J3178=\"Yes\",'TSA Input'!J3178=\"Contingent\"),'TSA Input'!D3178,\"\"))","v":""},{"$f":"IF('TSA Input'!J3178=\"\",\"\",IF(OR('TSA Input'!J3178=\"Yes\",'TSA Input'!J3178=\"Contingent\"),'TSA Input'!G3178,\"\"))","v":""},{"$f":"IF('TSA Input'!J3178=\"\",\"\",IF(OR('TSA Input'!J3178=\"Yes\",'TSA Input'!J3178=\"Contingent\"),'TSA Input'!F3178,\"\"))","v":""},"","Required","Required"]
["",null,{"$f":"IF('TSA Input'!J3179=\"\",\"\",IF(OR('TSA Input'!J3179=\"Yes\",'TSA Input'!J3179=\"Contingent\"),'TSA Input'!B3179,\"Ineligible\"))","v":""},{"$f":"IF('TSA Input'!J3179=\"\",\"\",IF(OR('TSA Input'!J3179=\"Yes\",'TSA Input'!J3179=\"Contingent\"),'TSA Input'!I3179,\"\"))","v":""},{"$f":"IF('TSA Input'!J3179=\"\",\"\",IF(OR('TSA Input'!J3179=\"Yes\",'TSA Input'!J3179=\"Contingent\"),'TSA Input'!C3179,\"\"))","v":""},{"$f":"IF('TSA Input'!J3179=\"\",\"\",IF(OR('TSA Input'!J3179=\"Yes\",'TSA Input'!J3179=\"Contingent\"),'TSA Input'!D3179,\"\"))","v":""},{"$f":"IF('TSA Input'!J3179=\"\",\"\",IF(OR('TSA Input'!J3179=\"Yes\",'TSA Input'!J3179=\"Contingent\"),'TSA Input'!G3179,\"\"))","v":""},{"$f":"IF('TSA Input'!J3179=\"\",\"\",IF(OR('TSA Input'!J3179=\"Yes\",'TSA Input'!J3179=\"Contingent\"),'TSA Input'!F3179,\"\"))","v":""},"",{"$f":"IF('TSA Input'!J3179=\"\",\"\",IF(OR('TSA Input'!J3179=\"Yes\",'TSA Input'!J3179=\"Contingent\"),'TSA Input'!D3179,\"\"))","v":""},{"$f":"IF('TSA Input'!J3179=\"\",\"\",IF(OR('TSA Input'!J3179=\"Yes\",'TSA Input'!J3179=\"Contingent\"),'TSA Input'!G3179,\"\"))","v":""},{"$f":"IF('TSA Input'!J3179=\"\",\"\",IF(OR('TSA Input'!J3179=\"Yes\",'TSA Input'!J3179=\"Contingent\"),'TSA Input'!F3179,\"\"))","v":""},"","Required","Required"]
["",null,{"$f":"IF('TSA Input'!J3180=\"\",\"\",IF(OR('TSA Input'!J3180=\"Yes\",'TSA Input'!J3180=\"Contingent\"),'TSA Input'!B3180,\"Ineligible\"))","v":""},{"$f":"IF('TSA Input'!J3180=\"\",\"\",IF(OR('TSA Input'!J3180=\"Yes\",'TSA Input'!J3180=\"Contingent\"),'TSA Input'!I3180,\"\"))","v":""},{"$f":"IF('TSA Input'!J3180=\"\",\"\",IF(OR('TSA Input'!J3180=\"Yes\",'TSA Input'!J3180=\"Contingent\"),'TSA Input'!C3180,\"\"))","v":""},{"$f":"IF('TSA Input'!J3180=\"\",\"\",IF(OR('TSA Input'!J3180=\"Yes\",'TSA Input'!J3180=\"Contingent\"),'TSA Input'!D3180,\"\"))","v":""},{"$f":"IF('TSA Input'!J3180=\"\",\"\",IF(OR('TSA Input'!J3180=\"Yes\",'TSA Input'!J3180=\"Contingent\"),'TSA Input'!G3180,\"\"))","v":""},{"$f":"IF('TSA Input'!J3180=\"\",\"\",IF(OR('TSA Input'!J3180=\"Yes\",'TSA Input'!J3180=\"Contingent\"),'TSA Input'!F3180,\"\"))","v":""},"",{"$f":"IF('TSA Input'!J3180=\"\",\"\",IF(OR('TSA Input'!J3180=\"Yes\",'TSA Input'!J3180=\"Contingent\"),'TSA Input'!D3180,\"\"))","v":""},{"$f":"IF('TSA Input'!J3180=\"\",\"\",IF(OR('TSA Input'!J3180=\"Yes\",'TSA Input'!J3180=\"Contingent\"),'TSA Input'!G3180,\"\"))","v":""},{"$f":"IF('TSA Input'!J3180=\"\",\"\",IF(OR('TSA Input'!J3180=\"Yes\",'TSA Input'!J3180=\"Contingent\"),'TSA Input'!F3180,\"\"))","v":""},"","Required","Required"]
["",null,{"$f":"IF('TSA Input'!J3181=\"\",\"\",IF(OR('TSA Input'!J3181=\"Yes\",'TSA Input'!J3181=\"Contingent\"),'TSA Input'!B3181,\"Ineligible\"))","v":""},{"$f":"IF('TSA Input'!J3181=\"\",\"\",IF(OR('TSA Input'!J3181=\"Yes\",'TSA Input'!J3181=\"Contingent\"),'TSA Input'!I3181,\"\"))","v":""},{"$f":"IF('TSA Input'!J3181=\"\",\"\",IF(OR('TSA Input'!J3181=\"Yes\",'TSA Input'!J3181=\"Contingent\"),'TSA Input'!C3181,\"\"))","v":""},{"$f":"IF('TSA Input'!J3181=\"\",\"\",IF(OR('TSA Input'!J3181=\"Yes\",'TSA Input'!J3181=\"Contingent\"),'TSA Input'!D3181,\"\"))","v":""},{"$f":"IF('TSA Input'!J3181=\"\",\"\",IF(OR('TSA Input'!J3181=\"Yes\",'TSA Input'!J3181=\"Contingent\"),'TSA Input'!G3181,\"\"))","v":""},{"$f":"IF('TSA Input'!J3181=\"\",\"\",IF(OR('TSA Input'!J3181=\"Yes\",'TSA Input'!J3181=\"Contingent\"),'TSA Input'!F3181,\"\"))","v":""},"",{"$f":"IF('TSA Input'!J3181=\"\",\"\",IF(OR('TSA Input'!J3181=\"Yes\",'TSA Input'!J3181=\"Contingent\"),'TSA Input'!D3181,\"\"))","v":""},{"$f":"IF('TSA Input'!J3181=\"\",\"\",IF(OR('TSA Input'!J3181=\"Yes\",'TSA Input'!J3181=\"Contingent\"),'TSA Input'!G3181,\"\"))","v":""},{"$f":"IF('TSA Input'!J3181=\"\",\"\",IF(OR('TSA Input'!J3181=\"Yes\",'TSA Input'!J3181=\"Contingent\"),'TSA Input'!F3181,\"\"))","v":""},"","Required","Required"]
["",null,{"$f":"IF('TSA Input'!J3182=\"\",\"\",IF(OR('TSA Input'!J3182=\"Yes\",'TSA Input'!J3182=\"Contingent\"),'TSA Input'!B3182,\"Ineligible\"))","v":""},{"$f":"IF('TSA Input'!J3182=\"\",\"\",IF(OR('TSA Input'!J3182=\"Yes\",'TSA Input'!J3182=\"Contingent\"),'TSA Input'!I3182,\"\"))","v":""},{"$f":"IF('TSA Input'!J3182=\"\",\"\",IF(OR('TSA Input'!J3182=\"Yes\",'TSA Input'!J3182=\"Contingent\"),'TSA Input'!C3182,\"\"))","v":""},{"$f":"IF('TSA Input'!J3182=\"\",\"\",IF(OR('TSA Input'!J3182=\"Yes\",'TSA Input'!J3182=\"Contingent\"),'TSA Input'!D3182,\"\"))","v":""},{"$f":"IF('TSA Input'!J3182=\"\",\"\",IF(OR('TSA Input'!J3182=\"Yes\",'TSA Input'!J3182=\"Contingent\"),'TSA Input'!G3182,\"\"))","v":""},{"$f":"IF('TSA Input'!J3182=\"\",\"\",IF(OR('TSA Input'!J3182=\"Yes\",'TSA Input'!J3182=\"Contingent\"),'TSA Input'!F3182,\"\"))","v":""},"",{"$f":"IF('TSA Input'!J3182=\"\",\"\",IF(OR('TSA Input'!J3182=\"Yes\",'TSA Input'!J3182=\"Contingent\"),'TSA Input'!D3182,\"\"))","v":""},{"$f":"IF('TSA Input'!J3182=\"\",\"\",IF(OR('TSA Input'!J3182=\"Yes\",'TSA Input'!J3182=\"Contingent\"),'TSA Input'!G3182,\"\"))","v":""},{"$f":"IF('TSA Input'!J3182=\"\",\"\",IF(OR('TSA Input'!J3182=\"Yes\",'TSA Input'!J3182=\"Contingent\"),'TSA Input'!F3182,\"\"))","v":""},"","Required","Required"]
["",null,{"$f":"IF('TSA Input'!J3183=\"\",\"\",IF(OR('TSA Input'!J3183=\"Yes\",'TSA Input'!J3183=\"Contingent\"),'TSA Input'!B3183,\"Ineligible\"))","v":""},{"$f":"IF('TSA Input'!J3183=\"\",\"\",IF(OR('TSA Input'!J3183=\"Yes\",'TSA Input'!J3183=\"Contingent\"),'TSA Input'!I3183,\"\"))","v":""},{"$f":"IF('TSA Input'!J3183=\"\",\"\",IF(OR('TSA Input'!J3183=\"Yes\",'TSA Input'!J3183=\"Contingent\"),'TSA Input'!C3183,\"\"))","v":""},{"$f":"IF('TSA Input'!J3183=\"\",\"\",IF(OR('TSA Input'!J3183=\"Yes\",'TSA Input'!J3183=\"Contingent\"),'TSA Input'!D3183,\"\"))","v":""},{"$f":"IF('TSA Input'!J3183=\"\",\"\",IF(OR('TSA Input'!J3183=\"Yes\",'TSA Input'!J3183=\"Contingent\"),'TSA Input'!G3183,\"\"))","v":""},{"$f":"IF('TSA Input'!J3183=\"\",\"\",IF(OR('TSA Input'!J3183=\"Yes\",'TSA Input'!J3183=\"Contingent\"),'TSA Input'!F3183,\"\"))","v":""},"",{"$f":"IF('TSA Input'!J3183=\"\",\"\",IF(OR('TSA Input'!J3183=\"Yes\",'TSA Input'!J3183=\"Contingent\"),'TSA Input'!D3183,\"\"))","v":""},{"$f":"IF('TSA Input'!J3183=\"\",\"\",IF(OR('TSA Input'!J3183=\"Yes\",'TSA Input'!J3183=\"Contingent\"),'TSA Input'!G3183,\"\"))","v":""},{"$f":"IF('TSA Input'!J3183=\"\",\"\",IF(OR('TSA Input'!J3183=\"Yes\",'TSA Input'!J3183=\"Contingent\"),'TSA Input'!F3183,\"\"))","v":""},"","Required","Required"]
["",null,{"$f":"IF('TSA Input'!J3184=\"\",\"\",IF(OR('TSA Input'!J3184=\"Yes\",'TSA Input'!J3184=\"Contingent\"),'TSA Input'!B3184,\"Ineligible\"))","v":""},{"$f":"IF('TSA Input'!J3184=\"\",\"\",IF(OR('TSA Input'!J3184=\"Yes\",'TSA Input'!J3184=\"Contingent\"),'TSA Input'!I3184,\"\"))","v":""},{"$f":"IF('TSA Input'!J3184=\"\",\"\",IF(OR('TSA Input'!J3184=\"Yes\",'TSA Input'!J3184=\"Contingent\"),'TSA Input'!C3184,\"\"))","v":""},{"$f":"IF('TSA Input'!J3184=\"\",\"\",IF(OR('TSA Input'!J3184=\"Yes\",'TSA Input'!J3184=\"Contingent\"),'TSA Input'!D3184,\"\"))","v":""},{"$f":"IF('TSA Input'!J3184=\"\",\"\",IF(OR('TSA Input'!J3184=\"Yes\",'TSA Input'!J3184=\"Contingent\"),'TSA Input'!G3184,\"\"))","v":""},{"$f":"IF('TSA Input'!J3184=\"\",\"\",IF(OR('TSA Input'!J3184=\"Yes\",'TSA Input'!J3184=\"Contingent\"),'TSA Input'!F3184,\"\"))","v":""},"",{"$f":"IF('TSA Input'!J3184=\"\",\"\",IF(OR('TSA Input'!J3184=\"Yes\",'TSA Input'!J3184=\"Contingent\"),'TSA Input'!D3184,\"\"))","v":""},{"$f":"IF('TSA Input'!J3184=\"\",\"\",IF(OR('TSA Input'!J3184=\"Yes\",'TSA Input'!J3184=\"Contingent\"),'TSA Input'!G3184,\"\"))","v":""},{"$f":"IF('TSA Input'!J3184=\"\",\"\",IF(OR('TSA Input'!J3184=\"Yes\",'TSA Input'!J3184=\"Contingent\"),'TSA Input'!F3184,\"\"))","v":""},"","Required","Required"]
["",null,{"$f":"IF('TSA Input'!J3185=\"\",\"\",IF(OR('TSA Input'!J3185=\"Yes\",'TSA Input'!J3185=\"Contingent\"),'TSA Input'!B3185,\"Ineligible\"))","v":""},{"$f":"IF('TSA Input'!J3185=\"\",\"\",IF(OR('TSA Input'!J3185=\"Yes\",'TSA Input'!J3185=\"Contingent\"),'TSA Input'!I3185,\"\"))","v":""},{"$f":"IF('TSA Input'!J3185=\"\",\"\",IF(OR('TSA Input'!J3185=\"Yes\",'TSA Input'!J3185=\"Contingent\"),'TSA Input'!C3185,\"\"))","v":""},{"$f":"IF('TSA Input'!J3185=\"\",\"\",IF(OR('TSA Input'!J3185=\"Yes\",'TSA Input'!J3185=\"Contingent\"),'TSA Input'!D3185,\"\"))","v":""},{"$f":"IF('TSA Input'!J3185=\"\",\"\",IF(OR('TSA Input'!J3185=\"Yes\",'TSA Input'!J3185=\"Contingent\"),'TSA Input'!G3185,\"\"))","v":""},{"$f":"IF('TSA Input'!J3185=\"\",\"\",IF(OR('TSA Input'!J3185=\"Yes\",'TSA Input'!J3185=\"Contingent\"),'TSA Input'!F3185,\"\"))","v":""},"",{"$f":"IF('TSA Input'!J3185=\"\",\"\",IF(OR('TSA Input'!J3185=\"Yes\",'TSA Input'!J3185=\"Contingent\"),'TSA Input'!D3185,\"\"))","v":""},{"$f":"IF('TSA Input'!J3185=\"\",\"\",IF(OR('TSA Input'!J3185=\"Yes\",'TSA Input'!J3185=\"Contingent\"),'TSA Input'!G3185,\"\"))","v":""},{"$f":"IF('TSA Input'!J3185=\"\",\"\",IF(OR('TSA Input'!J3185=\"Yes\",'TSA Input'!J3185=\"Contingent\"),'TSA Input'!F3185,\"\"))","v":""},"","Required","Required"]
["",null,{"$f":"IF('TSA Input'!J3186=\"\",\"\",IF(OR('TSA Input'!J3186=\"Yes\",'TSA Input'!J3186=\"Contingent\"),'TSA Input'!B3186,\"Ineligible\"))","v":""},{"$f":"IF('TSA Input'!J3186=\"\",\"\",IF(OR('TSA Input'!J3186=\"Yes\",'TSA Input'!J3186=\"Contingent\"),'TSA Input'!I3186,\"\"))","v":""},{"$f":"IF('TSA Input'!J3186=\"\",\"\",IF(OR('TSA Input'!J3186=\"Yes\",'TSA Input'!J3186=\"Contingent\"),'TSA Input'!C3186,\"\"))","v":""},{"$f":"IF('TSA Input'!J3186=\"\",\"\",IF(OR('TSA Input'!J3186=\"Yes\",'TSA Input'!J3186=\"Contingent\"),'TSA Input'!D3186,\"\"))","v":""},{"$f":"IF('TSA Input'!J3186=\"\",\"\",IF(OR('TSA Input'!J3186=\"Yes\",'TSA Input'!J3186=\"Contingent\"),'TSA Input'!G3186,\"\"))","v":""},{"$f":"IF('TSA Input'!J3186=\"\",\"\",IF(OR('TSA Input'!J3186=\"Yes\",'TSA Input'!J3186=\"Contingent\"),'TSA Input'!F3186,\"\"))","v":""},"",{"$f":"IF('TSA Input'!J3186=\"\",\"\",IF(OR('TSA Input'!J3186=\"Yes\",'TSA Input'!J3186=\"Contingent\"),'TSA Input'!D3186,\"\"))","v":""},{"$f":"IF('TSA Input'!J3186=\"\",\"\",IF(OR('TSA Input'!J3186=\"Yes\",'TSA Input'!J3186=\"Contingent\"),'TSA Input'!G3186,\"\"))","v":""},{"$f":"IF('TSA Input'!J3186=\"\",\"\",IF(OR('TSA Input'!J3186=\"Yes\",'TSA Input'!J3186=\"Contingent\"),'TSA Input'!F3186,\"\"))","v":""},"","Required","Required"]
["",null,{"$f":"IF('TSA Input'!J3187=\"\",\"\",IF(OR('TSA Input'!J3187=\"Yes\",'TSA Input'!J3187=\"Contingent\"),'TSA Input'!B3187,\"Ineligible\"))","v":""},{"$f":"IF('TSA Input'!J3187=\"\",\"\",IF(OR('TSA Input'!J3187=\"Yes\",'TSA Input'!J3187=\"Contingent\"),'TSA Input'!I3187,\"\"))","v":""},{"$f":"IF('TSA Input'!J3187=\"\",\"\",IF(OR('TSA Input'!J3187=\"Yes\",'TSA Input'!J3187=\"Contingent\"),'TSA Input'!C3187,\"\"))","v":""},{"$f":"IF('TSA Input'!J3187=\"\",\"\",IF(OR('TSA Input'!J3187=\"Yes\",'TSA Input'!J3187=\"Contingent\"),'TSA Input'!D3187,\"\"))","v":""},{"$f":"IF('TSA Input'!J3187=\"\",\"\",IF(OR('TSA Input'!J3187=\"Yes\",'TSA Input'!J3187=\"Contingent\"),'TSA Input'!G3187,\"\"))","v":""},{"$f":"IF('TSA Input'!J3187=\"\",\"\",IF(OR('TSA Input'!J3187=\"Yes\",'TSA Input'!J3187=\"Contingent\"),'TSA Input'!F3187,\"\"))","v":""},"",{"$f":"IF('TSA Input'!J3187=\"\",\"\",IF(OR('TSA Input'!J3187=\"Yes\",'TSA Input'!J3187=\"Contingent\"),'TSA Input'!D3187,\"\"))","v":""},{"$f":"IF('TSA Input'!J3187=\"\",\"\",IF(OR('TSA Input'!J3187=\"Yes\",'TSA Input'!J3187=\"Contingent\"),'TSA Input'!G3187,\"\"))","v":""},{"$f":"IF('TSA Input'!J3187=\"\",\"\",IF(OR('TSA Input'!J3187=\"Yes\",'TSA Input'!J3187=\"Contingent\"),'TSA Input'!F3187,\"\"))","v":""},"","Required","Required"]
["",null,{"$f":"IF('TSA Input'!J3188=\"\",\"\",IF(OR('TSA Input'!J3188=\"Yes\",'TSA Input'!J3188=\"Contingent\"),'TSA Input'!B3188,\"Ineligible\"))","v":""},{"$f":"IF('TSA Input'!J3188=\"\",\"\",IF(OR('TSA Input'!J3188=\"Yes\",'TSA Input'!J3188=\"Contingent\"),'TSA Input'!I3188,\"\"))","v":""},{"$f":"IF('TSA Input'!J3188=\"\",\"\",IF(OR('TSA Input'!J3188=\"Yes\",'TSA Input'!J3188=\"Contingent\"),'TSA Input'!C3188,\"\"))","v":""},{"$f":"IF('TSA Input'!J3188=\"\",\"\",IF(OR('TSA Input'!J3188=\"Yes\",'TSA Input'!J3188=\"Contingent\"),'TSA Input'!D3188,\"\"))","v":""},{"$f":"IF('TSA Input'!J3188=\"\",\"\",IF(OR('TSA Input'!J3188=\"Yes\",'TSA Input'!J3188=\"Contingent\"),'TSA Input'!G3188,\"\"))","v":""},{"$f":"IF('TSA Input'!J3188=\"\",\"\",IF(OR('TSA Input'!J3188=\"Yes\",'TSA Input'!J3188=\"Contingent\"),'TSA Input'!F3188,\"\"))","v":""},"",{"$f":"IF('TSA Input'!J3188=\"\",\"\",IF(OR('TSA Input'!J3188=\"Yes\",'TSA Input'!J3188=\"Contingent\"),'TSA Input'!D3188,\"\"))","v":""},{"$f":"IF('TSA Input'!J3188=\"\",\"\",IF(OR('TSA Input'!J3188=\"Yes\",'TSA Input'!J3188=\"Contingent\"),'TSA Input'!G3188,\"\"))","v":""},{"$f":"IF('TSA Input'!J3188=\"\",\"\",IF(OR('TSA Input'!J3188=\"Yes\",'TSA Input'!J3188=\"Contingent\"),'TSA Input'!F3188,\"\"))","v":""},"","Required","Required"]
["",null,{"$f":"IF('TSA Input'!J3189=\"\",\"\",IF(OR('TSA Input'!J3189=\"Yes\",'TSA Input'!J3189=\"Contingent\"),'TSA Input'!B3189,\"Ineligible\"))","v":""},{"$f":"IF('TSA Input'!J3189=\"\",\"\",IF(OR('TSA Input'!J3189=\"Yes\",'TSA Input'!J3189=\"Contingent\"),'TSA Input'!I3189,\"\"))","v":""},{"$f":"IF('TSA Input'!J3189=\"\",\"\",IF(OR('TSA Input'!J3189=\"Yes\",'TSA Input'!J3189=\"Contingent\"),'TSA Input'!C3189,\"\"))","v":""},{"$f":"IF('TSA Input'!J3189=\"\",\"\",IF(OR('TSA Input'!J3189=\"Yes\",'TSA Input'!J3189=\"Contingent\"),'TSA Input'!D3189,\"\"))","v":""},{"$f":"IF('TSA Input'!J3189=\"\",\"\",IF(OR('TSA Input'!J3189=\"Yes\",'TSA Input'!J3189=\"Contingent\"),'TSA Input'!G3189,\"\"))","v":""},{"$f":"IF('TSA Input'!J3189=\"\",\"\",IF(OR('TSA Input'!J3189=\"Yes\",'TSA Input'!J3189=\"Contingent\"),'TSA Input'!F3189,\"\"))","v":""},"",{"$f":"IF('TSA Input'!J3189=\"\",\"\",IF(OR('TSA Input'!J3189=\"Yes\",'TSA Input'!J3189=\"Contingent\"),'TSA Input'!D3189,\"\"))","v":""},{"$f":"IF('TSA Input'!J3189=\"\",\"\",IF(OR('TSA Input'!J3189=\"Yes\",'TSA Input'!J3189=\"Contingent\"),'TSA Input'!G3189,\"\"))","v":""},{"$f":"IF('TSA Input'!J3189=\"\",\"\",IF(OR('TSA Input'!J3189=\"Yes\",'TSA Input'!J3189=\"Contingent\"),'TSA Input'!F3189,\"\"))","v":""},"","Required","Required"]
["",null,{"$f":"IF('TSA Input'!J3190=\"\",\"\",IF(OR('TSA Input'!J3190=\"Yes\",'TSA Input'!J3190=\"Contingent\"),'TSA Input'!B3190,\"Ineligible\"))","v":""},{"$f":"IF('TSA Input'!J3190=\"\",\"\",IF(OR('TSA Input'!J3190=\"Yes\",'TSA Input'!J3190=\"Contingent\"),'TSA Input'!I3190,\"\"))","v":""},{"$f":"IF('TSA Input'!J3190=\"\",\"\",IF(OR('TSA Input'!J3190=\"Yes\",'TSA Input'!J3190=\"Contingent\"),'TSA Input'!C3190,\"\"))","v":""},{"$f":"IF('TSA Input'!J3190=\"\",\"\",IF(OR('TSA Input'!J3190=\"Yes\",'TSA Input'!J3190=\"Contingent\"),'TSA Input'!D3190,\"\"))","v":""},{"$f":"IF('TSA Input'!J3190=\"\",\"\",IF(OR('TSA Input'!J3190=\"Yes\",'TSA Input'!J3190=\"Contingent\"),'TSA Input'!G3190,\"\"))","v":""},{"$f":"IF('TSA Input'!J3190=\"\",\"\",IF(OR('TSA Input'!J3190=\"Yes\",'TSA Input'!J3190=\"Contingent\"),'TSA Input'!F3190,\"\"))","v":""},"",{"$f":"IF('TSA Input'!J3190=\"\",\"\",IF(OR('TSA Input'!J3190=\"Yes\",'TSA Input'!J3190=\"Contingent\"),'TSA Input'!D3190,\"\"))","v":""},{"$f":"IF('TSA Input'!J3190=\"\",\"\",IF(OR('TSA Input'!J3190=\"Yes\",'TSA Input'!J3190=\"Contingent\"),'TSA Input'!G3190,\"\"))","v":""},{"$f":"IF('TSA Input'!J3190=\"\",\"\",IF(OR('TSA Input'!J3190=\"Yes\",'TSA Input'!J3190=\"Contingent\"),'TSA Input'!F3190,\"\"))","v":""},"","Required","Required"]
["",null,{"$f":"IF('TSA Input'!J3191=\"\",\"\",IF(OR('TSA Input'!J3191=\"Yes\",'TSA Input'!J3191=\"Contingent\"),'TSA Input'!B3191,\"Ineligible\"))","v":""},{"$f":"IF('TSA Input'!J3191=\"\",\"\",IF(OR('TSA Input'!J3191=\"Yes\",'TSA Input'!J3191=\"Contingent\"),'TSA Input'!I3191,\"\"))","v":""},{"$f":"IF('TSA Input'!J3191=\"\",\"\",IF(OR('TSA Input'!J3191=\"Yes\",'TSA Input'!J3191=\"Contingent\"),'TSA Input'!C3191,\"\"))","v":""},{"$f":"IF('TSA Input'!J3191=\"\",\"\",IF(OR('TSA Input'!J3191=\"Yes\",'TSA Input'!J3191=\"Contingent\"),'TSA Input'!D3191,\"\"))","v":""},{"$f":"IF('TSA Input'!J3191=\"\",\"\",IF(OR('TSA Input'!J3191=\"Yes\",'TSA Input'!J3191=\"Contingent\"),'TSA Input'!G3191,\"\"))","v":""},{"$f":"IF('TSA Input'!J3191=\"\",\"\",IF(OR('TSA Input'!J3191=\"Yes\",'TSA Input'!J3191=\"Contingent\"),'TSA Input'!F3191,\"\"))","v":""},"",{"$f":"IF('TSA Input'!J3191=\"\",\"\",IF(OR('TSA Input'!J3191=\"Yes\",'TSA Input'!J3191=\"Contingent\"),'TSA Input'!D3191,\"\"))","v":""},{"$f":"IF('TSA Input'!J3191=\"\",\"\",IF(OR('TSA Input'!J3191=\"Yes\",'TSA Input'!J3191=\"Contingent\"),'TSA Input'!G3191,\"\"))","v":""},{"$f":"IF('TSA Input'!J3191=\"\",\"\",IF(OR('TSA Input'!J3191=\"Yes\",'TSA Input'!J3191=\"Contingent\"),'TSA Input'!F3191,\"\"))","v":""},"","Required","Required"]
["",null,{"$f":"IF('TSA Input'!J3192=\"\",\"\",IF(OR('TSA Input'!J3192=\"Yes\",'TSA Input'!J3192=\"Contingent\"),'TSA Input'!B3192,\"Ineligible\"))","v":""},{"$f":"IF('TSA Input'!J3192=\"\",\"\",IF(OR('TSA Input'!J3192=\"Yes\",'TSA Input'!J3192=\"Contingent\"),'TSA Input'!I3192,\"\"))","v":""},{"$f":"IF('TSA Input'!J3192=\"\",\"\",IF(OR('TSA Input'!J3192=\"Yes\",'TSA Input'!J3192=\"Contingent\"),'TSA Input'!C3192,\"\"))","v":""},{"$f":"IF('TSA Input'!J3192=\"\",\"\",IF(OR('TSA Input'!J3192=\"Yes\",'TSA Input'!J3192=\"Contingent\"),'TSA Input'!D3192,\"\"))","v":""},{"$f":"IF('TSA Input'!J3192=\"\",\"\",IF(OR('TSA Input'!J3192=\"Yes\",'TSA Input'!J3192=\"Contingent\"),'TSA Input'!G3192,\"\"))","v":""},{"$f":"IF('TSA Input'!J3192=\"\",\"\",IF(OR('TSA Input'!J3192=\"Yes\",'TSA Input'!J3192=\"Contingent\"),'TSA Input'!F3192,\"\"))","v":""},"",{"$f":"IF('TSA Input'!J3192=\"\",\"\",IF(OR('TSA Input'!J3192=\"Yes\",'TSA Input'!J3192=\"Contingent\"),'TSA Input'!D3192,\"\"))","v":""},{"$f":"IF('TSA Input'!J3192=\"\",\"\",IF(OR('TSA Input'!J3192=\"Yes\",'TSA Input'!J3192=\"Contingent\"),'TSA Input'!G3192,\"\"))","v":""},{"$f":"IF('TSA Input'!J3192=\"\",\"\",IF(OR('TSA Input'!J3192=\"Yes\",'TSA Input'!J3192=\"Contingent\"),'TSA Input'!F3192,\"\"))","v":""},"","Required","Required"]
["",null,{"$f":"IF('TSA Input'!J3193=\"\",\"\",IF(OR('TSA Input'!J3193=\"Yes\",'TSA Input'!J3193=\"Contingent\"),'TSA Input'!B3193,\"Ineligible\"))","v":""},{"$f":"IF('TSA Input'!J3193=\"\",\"\",IF(OR('TSA Input'!J3193=\"Yes\",'TSA Input'!J3193=\"Contingent\"),'TSA Input'!I3193,\"\"))","v":""},{"$f":"IF('TSA Input'!J3193=\"\",\"\",IF(OR('TSA Input'!J3193=\"Yes\",'TSA Input'!J3193=\"Contingent\"),'TSA Input'!C3193,\"\"))","v":""},{"$f":"IF('TSA Input'!J3193=\"\",\"\",IF(OR('TSA Input'!J3193=\"Yes\",'TSA Input'!J3193=\"Contingent\"),'TSA Input'!D3193,\"\"))","v":""},{"$f":"IF('TSA Input'!J3193=\"\",\"\",IF(OR('TSA Input'!J3193=\"Yes\",'TSA Input'!J3193=\"Contingent\"),'TSA Input'!G3193,\"\"))","v":""},{"$f":"IF('TSA Input'!J3193=\"\",\"\",IF(OR('TSA Input'!J3193=\"Yes\",'TSA Input'!J3193=\"Contingent\"),'TSA Input'!F3193,\"\"))","v":""},"",{"$f":"IF('TSA Input'!J3193=\"\",\"\",IF(OR('TSA Input'!J3193=\"Yes\",'TSA Input'!J3193=\"Contingent\"),'TSA Input'!D3193,\"\"))","v":""},{"$f":"IF('TSA Input'!J3193=\"\",\"\",IF(OR('TSA Input'!J3193=\"Yes\",'TSA Input'!J3193=\"Contingent\"),'TSA Input'!G3193,\"\"))","v":""},{"$f":"IF('TSA Input'!J3193=\"\",\"\",IF(OR('TSA Input'!J3193=\"Yes\",'TSA Input'!J3193=\"Contingent\"),'TSA Input'!F3193,\"\"))","v":""},"","Required","Required"]
["",null,{"$f":"IF('TSA Input'!J3194=\"\",\"\",IF(OR('TSA Input'!J3194=\"Yes\",'TSA Input'!J3194=\"Contingent\"),'TSA Input'!B3194,\"Ineligible\"))","v":""},{"$f":"IF('TSA Input'!J3194=\"\",\"\",IF(OR('TSA Input'!J3194=\"Yes\",'TSA Input'!J3194=\"Contingent\"),'TSA Input'!I3194,\"\"))","v":""},{"$f":"IF('TSA Input'!J3194=\"\",\"\",IF(OR('TSA Input'!J3194=\"Yes\",'TSA Input'!J3194=\"Contingent\"),'TSA Input'!C3194,\"\"))","v":""},{"$f":"IF('TSA Input'!J3194=\"\",\"\",IF(OR('TSA Input'!J3194=\"Yes\",'TSA Input'!J3194=\"Contingent\"),'TSA Input'!D3194,\"\"))","v":""},{"$f":"IF('TSA Input'!J3194=\"\",\"\",IF(OR('TSA Input'!J3194=\"Yes\",'TSA Input'!J3194=\"Contingent\"),'TSA Input'!G3194,\"\"))","v":""},{"$f":"IF('TSA Input'!J3194=\"\",\"\",IF(OR('TSA Input'!J3194=\"Yes\",'TSA Input'!J3194=\"Contingent\"),'TSA Input'!F3194,\"\"))","v":""},"",{"$f":"IF('TSA Input'!J3194=\"\",\"\",IF(OR('TSA Input'!J3194=\"Yes\",'TSA Input'!J3194=\"Contingent\"),'TSA Input'!D3194,\"\"))","v":""},{"$f":"IF('TSA Input'!J3194=\"\",\"\",IF(OR('TSA Input'!J3194=\"Yes\",'TSA Input'!J3194=\"Contingent\"),'TSA Input'!G3194,\"\"))","v":""},{"$f":"IF('TSA Input'!J3194=\"\",\"\",IF(OR('TSA Input'!J3194=\"Yes\",'TSA Input'!J3194=\"Contingent\"),'TSA Input'!F3194,\"\"))","v":""},"","Required","Required"]
["",null,{"$f":"IF('TSA Input'!J3195=\"\",\"\",IF(OR('TSA Input'!J3195=\"Yes\",'TSA Input'!J3195=\"Contingent\"),'TSA Input'!B3195,\"Ineligible\"))","v":""},{"$f":"IF('TSA Input'!J3195=\"\",\"\",IF(OR('TSA Input'!J3195=\"Yes\",'TSA Input'!J3195=\"Contingent\"),'TSA Input'!I3195,\"\"))","v":""},{"$f":"IF('TSA Input'!J3195=\"\",\"\",IF(OR('TSA Input'!J3195=\"Yes\",'TSA Input'!J3195=\"Contingent\"),'TSA Input'!C3195,\"\"))","v":""},{"$f":"IF('TSA Input'!J3195=\"\",\"\",IF(OR('TSA Input'!J3195=\"Yes\",'TSA Input'!J3195=\"Contingent\"),'TSA Input'!D3195,\"\"))","v":""},{"$f":"IF('TSA Input'!J3195=\"\",\"\",IF(OR('TSA Input'!J3195=\"Yes\",'TSA Input'!J3195=\"Contingent\"),'TSA Input'!G3195,\"\"))","v":""},{"$f":"IF('TSA Input'!J3195=\"\",\"\",IF(OR('TSA Input'!J3195=\"Yes\",'TSA Input'!J3195=\"Contingent\"),'TSA Input'!F3195,\"\"))","v":""},"",{"$f":"IF('TSA Input'!J3195=\"\",\"\",IF(OR('TSA Input'!J3195=\"Yes\",'TSA Input'!J3195=\"Contingent\"),'TSA Input'!D3195,\"\"))","v":""},{"$f":"IF('TSA Input'!J3195=\"\",\"\",IF(OR('TSA Input'!J3195=\"Yes\",'TSA Input'!J3195=\"Contingent\"),'TSA Input'!G3195,\"\"))","v":""},{"$f":"IF('TSA Input'!J3195=\"\",\"\",IF(OR('TSA Input'!J3195=\"Yes\",'TSA Input'!J3195=\"Contingent\"),'TSA Input'!F3195,\"\"))","v":""},"","Required","Required"]
["",null,{"$f":"IF('TSA Input'!J3196=\"\",\"\",IF(OR('TSA Input'!J3196=\"Yes\",'TSA Input'!J3196=\"Contingent\"),'TSA Input'!B3196,\"Ineligible\"))","v":""},{"$f":"IF('TSA Input'!J3196=\"\",\"\",IF(OR('TSA Input'!J3196=\"Yes\",'TSA Input'!J3196=\"Contingent\"),'TSA Input'!I3196,\"\"))","v":""},{"$f":"IF('TSA Input'!J3196=\"\",\"\",IF(OR('TSA Input'!J3196=\"Yes\",'TSA Input'!J3196=\"Contingent\"),'TSA Input'!C3196,\"\"))","v":""},{"$f":"IF('TSA Input'!J3196=\"\",\"\",IF(OR('TSA Input'!J3196=\"Yes\",'TSA Input'!J3196=\"Contingent\"),'TSA Input'!D3196,\"\"))","v":""},{"$f":"IF('TSA Input'!J3196=\"\",\"\",IF(OR('TSA Input'!J3196=\"Yes\",'TSA Input'!J3196=\"Contingent\"),'TSA Input'!G3196,\"\"))","v":""},{"$f":"IF('TSA Input'!J3196=\"\",\"\",IF(OR('TSA Input'!J3196=\"Yes\",'TSA Input'!J3196=\"Contingent\"),'TSA Input'!F3196,\"\"))","v":""},"",{"$f":"IF('TSA Input'!J3196=\"\",\"\",IF(OR('TSA Input'!J3196=\"Yes\",'TSA Input'!J3196=\"Contingent\"),'TSA Input'!D3196,\"\"))","v":""},{"$f":"IF('TSA Input'!J3196=\"\",\"\",IF(OR('TSA Input'!J3196=\"Yes\",'TSA Input'!J3196=\"Contingent\"),'TSA Input'!G3196,\"\"))","v":""},{"$f":"IF('TSA Input'!J3196=\"\",\"\",IF(OR('TSA Input'!J3196=\"Yes\",'TSA Input'!J3196=\"Contingent\"),'TSA Input'!F3196,\"\"))","v":""},"","Required","Required"]
["",null,{"$f":"IF('TSA Input'!J3197=\"\",\"\",IF(OR('TSA Input'!J3197=\"Yes\",'TSA Input'!J3197=\"Contingent\"),'TSA Input'!B3197,\"Ineligible\"))","v":""},{"$f":"IF('TSA Input'!J3197=\"\",\"\",IF(OR('TSA Input'!J3197=\"Yes\",'TSA Input'!J3197=\"Contingent\"),'TSA Input'!I3197,\"\"))","v":""},{"$f":"IF('TSA Input'!J3197=\"\",\"\",IF(OR('TSA Input'!J3197=\"Yes\",'TSA Input'!J3197=\"Contingent\"),'TSA Input'!C3197,\"\"))","v":""},{"$f":"IF('TSA Input'!J3197=\"\",\"\",IF(OR('TSA Input'!J3197=\"Yes\",'TSA Input'!J3197=\"Contingent\"),'TSA Input'!D3197,\"\"))","v":""},{"$f":"IF('TSA Input'!J3197=\"\",\"\",IF(OR('TSA Input'!J3197=\"Yes\",'TSA Input'!J3197=\"Contingent\"),'TSA Input'!G3197,\"\"))","v":""},{"$f":"IF('TSA Input'!J3197=\"\",\"\",IF(OR('TSA Input'!J3197=\"Yes\",'TSA Input'!J3197=\"Contingent\"),'TSA Input'!F3197,\"\"))","v":""},"",{"$f":"IF('TSA Input'!J3197=\"\",\"\",IF(OR('TSA Input'!J3197=\"Yes\",'TSA Input'!J3197=\"Contingent\"),'TSA Input'!D3197,\"\"))","v":""},{"$f":"IF('TSA Input'!J3197=\"\",\"\",IF(OR('TSA Input'!J3197=\"Yes\",'TSA Input'!J3197=\"Contingent\"),'TSA Input'!G3197,\"\"))","v":""},{"$f":"IF('TSA Input'!J3197=\"\",\"\",IF(OR('TSA Input'!J3197=\"Yes\",'TSA Input'!J3197=\"Contingent\"),'TSA Input'!F3197,\"\"))","v":""},"","Required","Required"]
["",null,{"$f":"IF('TSA Input'!J3198=\"\",\"\",IF(OR('TSA Input'!J3198=\"Yes\",'TSA Input'!J3198=\"Contingent\"),'TSA Input'!B3198,\"Ineligible\"))","v":""},{"$f":"IF('TSA Input'!J3198=\"\",\"\",IF(OR('TSA Input'!J3198=\"Yes\",'TSA Input'!J3198=\"Contingent\"),'TSA Input'!I3198,\"\"))","v":""},{"$f":"IF('TSA Input'!J3198=\"\",\"\",IF(OR('TSA Input'!J3198=\"Yes\",'TSA Input'!J3198=\"Contingent\"),'TSA Input'!C3198,\"\"))","v":""},{"$f":"IF('TSA Input'!J3198=\"\",\"\",IF(OR('TSA Input'!J3198=\"Yes\",'TSA Input'!J3198=\"Contingent\"),'TSA Input'!D3198,\"\"))","v":""},{"$f":"IF('TSA Input'!J3198=\"\",\"\",IF(OR('TSA Input'!J3198=\"Yes\",'TSA Input'!J3198=\"Contingent\"),'TSA Input'!G3198,\"\"))","v":""},{"$f":"IF('TSA Input'!J3198=\"\",\"\",IF(OR('TSA Input'!J3198=\"Yes\",'TSA Input'!J3198=\"Contingent\"),'TSA Input'!F3198,\"\"))","v":""},"",{"$f":"IF('TSA Input'!J3198=\"\",\"\",IF(OR('TSA Input'!J3198=\"Yes\",'TSA Input'!J3198=\"Contingent\"),'TSA Input'!D3198,\"\"))","v":""},{"$f":"IF('TSA Input'!J3198=\"\",\"\",IF(OR('TSA Input'!J3198=\"Yes\",'TSA Input'!J3198=\"Contingent\"),'TSA Input'!G3198,\"\"))","v":""},{"$f":"IF('TSA Input'!J3198=\"\",\"\",IF(OR('TSA Input'!J3198=\"Yes\",'TSA Input'!J3198=\"Contingent\"),'TSA Input'!F3198,\"\"))","v":""},"","Required","Required"]
["",null,{"$f":"IF('TSA Input'!J3199=\"\",\"\",IF(OR('TSA Input'!J3199=\"Yes\",'TSA Input'!J3199=\"Contingent\"),'TSA Input'!B3199,\"Ineligible\"))","v":""},{"$f":"IF('TSA Input'!J3199=\"\",\"\",IF(OR('TSA Input'!J3199=\"Yes\",'TSA Input'!J3199=\"Contingent\"),'TSA Input'!I3199,\"\"))","v":""},{"$f":"IF('TSA Input'!J3199=\"\",\"\",IF(OR('TSA Input'!J3199=\"Yes\",'TSA Input'!J3199=\"Contingent\"),'TSA Input'!C3199,\"\"))","v":""},{"$f":"IF('TSA Input'!J3199=\"\",\"\",IF(OR('TSA Input'!J3199=\"Yes\",'TSA Input'!J3199=\"Contingent\"),'TSA Input'!D3199,\"\"))","v":""},{"$f":"IF('TSA Input'!J3199=\"\",\"\",IF(OR('TSA Input'!J3199=\"Yes\",'TSA Input'!J3199=\"Contingent\"),'TSA Input'!G3199,\"\"))","v":""},{"$f":"IF('TSA Input'!J3199=\"\",\"\",IF(OR('TSA Input'!J3199=\"Yes\",'TSA Input'!J3199=\"Contingent\"),'TSA Input'!F3199,\"\"))","v":""},"",{"$f":"IF('TSA Input'!J3199=\"\",\"\",IF(OR('TSA Input'!J3199=\"Yes\",'TSA Input'!J3199=\"Contingent\"),'TSA Input'!D3199,\"\"))","v":""},{"$f":"IF('TSA Input'!J3199=\"\",\"\",IF(OR('TSA Input'!J3199=\"Yes\",'TSA Input'!J3199=\"Contingent\"),'TSA Input'!G3199,\"\"))","v":""},{"$f":"IF('TSA Input'!J3199=\"\",\"\",IF(OR('TSA Input'!J3199=\"Yes\",'TSA Input'!J3199=\"Contingent\"),'TSA Input'!F3199,\"\"))","v":""},"","Required","Required"]
["",null,{"$f":"IF('TSA Input'!J3200=\"\",\"\",IF(OR('TSA Input'!J3200=\"Yes\",'TSA Input'!J3200=\"Contingent\"),'TSA Input'!B3200,\"Ineligible\"))","v":""},{"$f":"IF('TSA Input'!J3200=\"\",\"\",IF(OR('TSA Input'!J3200=\"Yes\",'TSA Input'!J3200=\"Contingent\"),'TSA Input'!I3200,\"\"))","v":""},{"$f":"IF('TSA Input'!J3200=\"\",\"\",IF(OR('TSA Input'!J3200=\"Yes\",'TSA Input'!J3200=\"Contingent\"),'TSA Input'!C3200,\"\"))","v":""},{"$f":"IF('TSA Input'!J3200=\"\",\"\",IF(OR('TSA Input'!J3200=\"Yes\",'TSA Input'!J3200=\"Contingent\"),'TSA Input'!D3200,\"\"))","v":""},{"$f":"IF('TSA Input'!J3200=\"\",\"\",IF(OR('TSA Input'!J3200=\"Yes\",'TSA Input'!J3200=\"Contingent\"),'TSA Input'!G3200,\"\"))","v":""},{"$f":"IF('TSA Input'!J3200=\"\",\"\",IF(OR('TSA Input'!J3200=\"Yes\",'TSA Input'!J3200=\"Contingent\"),'TSA Input'!F3200,\"\"))","v":""},"",{"$f":"IF('TSA Input'!J3200=\"\",\"\",IF(OR('TSA Input'!J3200=\"Yes\",'TSA Input'!J3200=\"Contingent\"),'TSA Input'!D3200,\"\"))","v":""},{"$f":"IF('TSA Input'!J3200=\"\",\"\",IF(OR('TSA Input'!J3200=\"Yes\",'TSA Input'!J3200=\"Contingent\"),'TSA Input'!G3200,\"\"))","v":""},{"$f":"IF('TSA Input'!J3200=\"\",\"\",IF(OR('TSA Input'!J3200=\"Yes\",'TSA Input'!J3200=\"Contingent\"),'TSA Input'!F3200,\"\"))","v":""},"","Required","Required"]
["",null,{"$f":"IF('TSA Input'!J3201=\"\",\"\",IF(OR('TSA Input'!J3201=\"Yes\",'TSA Input'!J3201=\"Contingent\"),'TSA Input'!B3201,\"Ineligible\"))","v":""},{"$f":"IF('TSA Input'!J3201=\"\",\"\",IF(OR('TSA Input'!J3201=\"Yes\",'TSA Input'!J3201=\"Contingent\"),'TSA Input'!I3201,\"\"))","v":""},{"$f":"IF('TSA Input'!J3201=\"\",\"\",IF(OR('TSA Input'!J3201=\"Yes\",'TSA Input'!J3201=\"Contingent\"),'TSA Input'!C3201,\"\"))","v":""},{"$f":"IF('TSA Input'!J3201=\"\",\"\",IF(OR('TSA Input'!J3201=\"Yes\",'TSA Input'!J3201=\"Contingent\"),'TSA Input'!D3201,\"\"))","v":""},{"$f":"IF('TSA Input'!J3201=\"\",\"\",IF(OR('TSA Input'!J3201=\"Yes\",'TSA Input'!J3201=\"Contingent\"),'TSA Input'!G3201,\"\"))","v":""},{"$f":"IF('TSA Input'!J3201=\"\",\"\",IF(OR('TSA Input'!J3201=\"Yes\",'TSA Input'!J3201=\"Contingent\"),'TSA Input'!F3201,\"\"))","v":""},"",{"$f":"IF('TSA Input'!J3201=\"\",\"\",IF(OR('TSA Input'!J3201=\"Yes\",'TSA Input'!J3201=\"Contingent\"),'TSA Input'!D3201,\"\"))","v":""},{"$f":"IF('TSA Input'!J3201=\"\",\"\",IF(OR('TSA Input'!J3201=\"Yes\",'TSA Input'!J3201=\"Contingent\"),'TSA Input'!G3201,\"\"))","v":""},{"$f":"IF('TSA Input'!J3201=\"\",\"\",IF(OR('TSA Input'!J3201=\"Yes\",'TSA Input'!J3201=\"Contingent\"),'TSA Input'!F3201,\"\"))","v":""},"","Required","Required"]
["",null,{"$f":"IF('TSA Input'!J3202=\"\",\"\",IF(OR('TSA Input'!J3202=\"Yes\",'TSA Input'!J3202=\"Contingent\"),'TSA Input'!B3202,\"Ineligible\"))","v":""},{"$f":"IF('TSA Input'!J3202=\"\",\"\",IF(OR('TSA Input'!J3202=\"Yes\",'TSA Input'!J3202=\"Contingent\"),'TSA Input'!I3202,\"\"))","v":""},{"$f":"IF('TSA Input'!J3202=\"\",\"\",IF(OR('TSA Input'!J3202=\"Yes\",'TSA Input'!J3202=\"Contingent\"),'TSA Input'!C3202,\"\"))","v":""},{"$f":"IF('TSA Input'!J3202=\"\",\"\",IF(OR('TSA Input'!J3202=\"Yes\",'TSA Input'!J3202=\"Contingent\"),'TSA Input'!D3202,\"\"))","v":""},{"$f":"IF('TSA Input'!J3202=\"\",\"\",IF(OR('TSA Input'!J3202=\"Yes\",'TSA Input'!J3202=\"Contingent\"),'TSA Input'!G3202,\"\"))","v":""},{"$f":"IF('TSA Input'!J3202=\"\",\"\",IF(OR('TSA Input'!J3202=\"Yes\",'TSA Input'!J3202=\"Contingent\"),'TSA Input'!F3202,\"\"))","v":""},"",{"$f":"IF('TSA Input'!J3202=\"\",\"\",IF(OR('TSA Input'!J3202=\"Yes\",'TSA Input'!J3202=\"Contingent\"),'TSA Input'!D3202,\"\"))","v":""},{"$f":"IF('TSA Input'!J3202=\"\",\"\",IF(OR('TSA Input'!J3202=\"Yes\",'TSA Input'!J3202=\"Contingent\"),'TSA Input'!G3202,\"\"))","v":""},{"$f":"IF('TSA Input'!J3202=\"\",\"\",IF(OR('TSA Input'!J3202=\"Yes\",'TSA Input'!J3202=\"Contingent\"),'TSA Input'!F3202,\"\"))","v":""},"","Required","Required"]
["",null,{"$f":"IF('TSA Input'!J3203=\"\",\"\",IF(OR('TSA Input'!J3203=\"Yes\",'TSA Input'!J3203=\"Contingent\"),'TSA Input'!B3203,\"Ineligible\"))","v":""},{"$f":"IF('TSA Input'!J3203=\"\",\"\",IF(OR('TSA Input'!J3203=\"Yes\",'TSA Input'!J3203=\"Contingent\"),'TSA Input'!I3203,\"\"))","v":""},{"$f":"IF('TSA Input'!J3203=\"\",\"\",IF(OR('TSA Input'!J3203=\"Yes\",'TSA Input'!J3203=\"Contingent\"),'TSA Input'!C3203,\"\"))","v":""},{"$f":"IF('TSA Input'!J3203=\"\",\"\",IF(OR('TSA Input'!J3203=\"Yes\",'TSA Input'!J3203=\"Contingent\"),'TSA Input'!D3203,\"\"))","v":""},{"$f":"IF('TSA Input'!J3203=\"\",\"\",IF(OR('TSA Input'!J3203=\"Yes\",'TSA Input'!J3203=\"Contingent\"),'TSA Input'!G3203,\"\"))","v":""},{"$f":"IF('TSA Input'!J3203=\"\",\"\",IF(OR('TSA Input'!J3203=\"Yes\",'TSA Input'!J3203=\"Contingent\"),'TSA Input'!F3203,\"\"))","v":""},"",{"$f":"IF('TSA Input'!J3203=\"\",\"\",IF(OR('TSA Input'!J3203=\"Yes\",'TSA Input'!J3203=\"Contingent\"),'TSA Input'!D3203,\"\"))","v":""},{"$f":"IF('TSA Input'!J3203=\"\",\"\",IF(OR('TSA Input'!J3203=\"Yes\",'TSA Input'!J3203=\"Contingent\"),'TSA Input'!G3203,\"\"))","v":""},{"$f":"IF('TSA Input'!J3203=\"\",\"\",IF(OR('TSA Input'!J3203=\"Yes\",'TSA Input'!J3203=\"Contingent\"),'TSA Input'!F3203,\"\"))","v":""},"","Required","Required"]
["",null,{"$f":"IF('TSA Input'!J3204=\"\",\"\",IF(OR('TSA Input'!J3204=\"Yes\",'TSA Input'!J3204=\"Contingent\"),'TSA Input'!B3204,\"Ineligible\"))","v":""},{"$f":"IF('TSA Input'!J3204=\"\",\"\",IF(OR('TSA Input'!J3204=\"Yes\",'TSA Input'!J3204=\"Contingent\"),'TSA Input'!I3204,\"\"))","v":""},{"$f":"IF('TSA Input'!J3204=\"\",\"\",IF(OR('TSA Input'!J3204=\"Yes\",'TSA Input'!J3204=\"Contingent\"),'TSA Input'!C3204,\"\"))","v":""},{"$f":"IF('TSA Input'!J3204=\"\",\"\",IF(OR('TSA Input'!J3204=\"Yes\",'TSA Input'!J3204=\"Contingent\"),'TSA Input'!D3204,\"\"))","v":""},{"$f":"IF('TSA Input'!J3204=\"\",\"\",IF(OR('TSA Input'!J3204=\"Yes\",'TSA Input'!J3204=\"Contingent\"),'TSA Input'!G3204,\"\"))","v":""},{"$f":"IF('TSA Input'!J3204=\"\",\"\",IF(OR('TSA Input'!J3204=\"Yes\",'TSA Input'!J3204=\"Contingent\"),'TSA Input'!F3204,\"\"))","v":""},{"$f":"IF($C3242=\"\",\"\",SUM(F3242:H3242))","v":""},{"$f":"IF('TSA Input'!J3204=\"\",\"\",IF(OR('TSA Input'!J3204=\"Yes\",'TSA Input'!J3204=\"Contingent\"),'TSA Input'!D3204,\"\"))","v":""},{"$f":"IF('TSA Input'!J3204=\"\",\"\",IF(OR('TSA Input'!J3204=\"Yes\",'TSA Input'!J3204=\"Contingent\"),'TSA Input'!G3204,\"\"))","v":""},{"$f":"IF('TSA Input'!J3204=\"\",\"\",IF(OR('TSA Input'!J3204=\"Yes\",'TSA Input'!J3204=\"Contingent\"),'TSA Input'!F3204,\"\"))","v":""},{"$f":"IF($C3242=\"\",\"\",SUM(J3242:L3242))","v":""},"Required","Required"]
["",null,{"$f":"IF('TSA Input'!J3205=\"\",\"\",IF(OR('TSA Input'!J3205=\"Yes\",'TSA Input'!J3205=\"Contingent\"),'TSA Input'!B3205,\"Ineligible\"))","v":""},{"$f":"IF('TSA Input'!J3205=\"\",\"\",IF(OR('TSA Input'!J3205=\"Yes\",'TSA Input'!J3205=\"Contingent\"),'TSA Input'!I3205,\"\"))","v":""},{"$f":"IF('TSA Input'!J3205=\"\",\"\",IF(OR('TSA Input'!J3205=\"Yes\",'TSA Input'!J3205=\"Contingent\"),'TSA Input'!C3205,\"\"))","v":""},{"$f":"IF('TSA Input'!J3205=\"\",\"\",IF(OR('TSA Input'!J3205=\"Yes\",'TSA Input'!J3205=\"Contingent\"),'TSA Input'!D3205,\"\"))","v":""},{"$f":"IF('TSA Input'!J3205=\"\",\"\",IF(OR('TSA Input'!J3205=\"Yes\",'TSA Input'!J3205=\"Contingent\"),'TSA Input'!G3205,\"\"))","v":""},{"$f":"IF('TSA Input'!J3205=\"\",\"\",IF(OR('TSA Input'!J3205=\"Yes\",'TSA Input'!J3205=\"Contingent\"),'TSA Input'!F3205,\"\"))","v":""},"",{"$f":"IF('TSA Input'!J3205=\"\",\"\",IF(OR('TSA Input'!J3205=\"Yes\",'TSA Input'!J3205=\"Contingent\"),'TSA Input'!D3205,\"\"))","v":""},{"$f":"IF('TSA Input'!J3205=\"\",\"\",IF(OR('TSA Input'!J3205=\"Yes\",'TSA Input'!J3205=\"Contingent\"),'TSA Input'!G3205,\"\"))","v":""},{"$f":"IF('TSA Input'!J3205=\"\",\"\",IF(OR('TSA Input'!J3205=\"Yes\",'TSA Input'!J3205=\"Contingent\"),'TSA Input'!F3205,\"\"))","v":""},"","Required","Required"]
["",null,{"$f":"IF('TSA Input'!J3206=\"\",\"\",IF(OR('TSA Input'!J3206=\"Yes\",'TSA Input'!J3206=\"Contingent\"),'TSA Input'!B3206,\"Ineligible\"))","v":""},{"$f":"IF('TSA Input'!J3206=\"\",\"\",IF(OR('TSA Input'!J3206=\"Yes\",'TSA Input'!J3206=\"Contingent\"),'TSA Input'!I3206,\"\"))","v":""},{"$f":"IF('TSA Input'!J3206=\"\",\"\",IF(OR('TSA Input'!J3206=\"Yes\",'TSA Input'!J3206=\"Contingent\"),'TSA Input'!C3206,\"\"))","v":""},{"$f":"IF('TSA Input'!J3206=\"\",\"\",IF(OR('TSA Input'!J3206=\"Yes\",'TSA Input'!J3206=\"Contingent\"),'TSA Input'!D3206,\"\"))","v":""},{"$f":"IF('TSA Input'!J3206=\"\",\"\",IF(OR('TSA Input'!J3206=\"Yes\",'TSA Input'!J3206=\"Contingent\"),'TSA Input'!G3206,\"\"))","v":""},{"$f":"IF('TSA Input'!J3206=\"\",\"\",IF(OR('TSA Input'!J3206=\"Yes\",'TSA Input'!J3206=\"Contingent\"),'TSA Input'!F3206,\"\"))","v":""},"",{"$f":"IF('TSA Input'!J3206=\"\",\"\",IF(OR('TSA Input'!J3206=\"Yes\",'TSA Input'!J3206=\"Contingent\"),'TSA Input'!D3206,\"\"))","v":""},{"$f":"IF('TSA Input'!J3206=\"\",\"\",IF(OR('TSA Input'!J3206=\"Yes\",'TSA Input'!J3206=\"Contingent\"),'TSA Input'!G3206,\"\"))","v":""},{"$f":"IF('TSA Input'!J3206=\"\",\"\",IF(OR('TSA Input'!J3206=\"Yes\",'TSA Input'!J3206=\"Contingent\"),'TSA Input'!F3206,\"\"))","v":""},"","Required","Required"]
["",null,{"$f":"IF('TSA Input'!J3207=\"\",\"\",IF(OR('TSA Input'!J3207=\"Yes\",'TSA Input'!J3207=\"Contingent\"),'TSA Input'!B3207,\"Ineligible\"))","v":""},{"$f":"IF('TSA Input'!J3207=\"\",\"\",IF(OR('TSA Input'!J3207=\"Yes\",'TSA Input'!J3207=\"Contingent\"),'TSA Input'!I3207,\"\"))","v":""},{"$f":"IF('TSA Input'!J3207=\"\",\"\",IF(OR('TSA Input'!J3207=\"Yes\",'TSA Input'!J3207=\"Contingent\"),'TSA Input'!C3207,\"\"))","v":""},{"$f":"IF('TSA Input'!J3207=\"\",\"\",IF(OR('TSA Input'!J3207=\"Yes\",'TSA Input'!J3207=\"Contingent\"),'TSA Input'!D3207,\"\"))","v":""},{"$f":"IF('TSA Input'!J3207=\"\",\"\",IF(OR('TSA Input'!J3207=\"Yes\",'TSA Input'!J3207=\"Contingent\"),'TSA Input'!G3207,\"\"))","v":""},{"$f":"IF('TSA Input'!J3207=\"\",\"\",IF(OR('TSA Input'!J3207=\"Yes\",'TSA Input'!J3207=\"Contingent\"),'TSA Input'!F3207,\"\"))","v":""},"",{"$f":"IF('TSA Input'!J3207=\"\",\"\",IF(OR('TSA Input'!J3207=\"Yes\",'TSA Input'!J3207=\"Contingent\"),'TSA Input'!D3207,\"\"))","v":""},{"$f":"IF('TSA Input'!J3207=\"\",\"\",IF(OR('TSA Input'!J3207=\"Yes\",'TSA Input'!J3207=\"Contingent\"),'TSA Input'!G3207,\"\"))","v":""},{"$f":"IF('TSA Input'!J3207=\"\",\"\",IF(OR('TSA Input'!J3207=\"Yes\",'TSA Input'!J3207=\"Contingent\"),'TSA Input'!F3207,\"\"))","v":""},"","Required","Required"]
["",null,{"$f":"IF('TSA Input'!J3208=\"\",\"\",IF(OR('TSA Input'!J3208=\"Yes\",'TSA Input'!J3208=\"Contingent\"),'TSA Input'!B3208,\"Ineligible\"))","v":""},{"$f":"IF('TSA Input'!J3208=\"\",\"\",IF(OR('TSA Input'!J3208=\"Yes\",'TSA Input'!J3208=\"Contingent\"),'TSA Input'!I3208,\"\"))","v":""},{"$f":"IF('TSA Input'!J3208=\"\",\"\",IF(OR('TSA Input'!J3208=\"Yes\",'TSA Input'!J3208=\"Contingent\"),'TSA Input'!C3208,\"\"))","v":""},{"$f":"IF('TSA Input'!J3208=\"\",\"\",IF(OR('TSA Input'!J3208=\"Yes\",'TSA Input'!J3208=\"Contingent\"),'TSA Input'!D3208,\"\"))","v":""},{"$f":"IF('TSA Input'!J3208=\"\",\"\",IF(OR('TSA Input'!J3208=\"Yes\",'TSA Input'!J3208=\"Contingent\"),'TSA Input'!G3208,\"\"))","v":""},{"$f":"IF('TSA Input'!J3208=\"\",\"\",IF(OR('TSA Input'!J3208=\"Yes\",'TSA Input'!J3208=\"Contingent\"),'TSA Input'!F3208,\"\"))","v":""},"",{"$f":"IF('TSA Input'!J3208=\"\",\"\",IF(OR('TSA Input'!J3208=\"Yes\",'TSA Input'!J3208=\"Contingent\"),'TSA Input'!D3208,\"\"))","v":""},{"$f":"IF('TSA Input'!J3208=\"\",\"\",IF(OR('TSA Input'!J3208=\"Yes\",'TSA Input'!J3208=\"Contingent\"),'TSA Input'!G3208,\"\"))","v":""},{"$f":"IF('TSA Input'!J3208=\"\",\"\",IF(OR('TSA Input'!J3208=\"Yes\",'TSA Input'!J3208=\"Contingent\"),'TSA Input'!F3208,\"\"))","v":""},"","Required","Required"]
["",null,{"$f":"IF('TSA Input'!J3209=\"\",\"\",IF(OR('TSA Input'!J3209=\"Yes\",'TSA Input'!J3209=\"Contingent\"),'TSA Input'!B3209,\"Ineligible\"))","v":""},{"$f":"IF('TSA Input'!J3209=\"\",\"\",IF(OR('TSA Input'!J3209=\"Yes\",'TSA Input'!J3209=\"Contingent\"),'TSA Input'!I3209,\"\"))","v":""},{"$f":"IF('TSA Input'!J3209=\"\",\"\",IF(OR('TSA Input'!J3209=\"Yes\",'TSA Input'!J3209=\"Contingent\"),'TSA Input'!C3209,\"\"))","v":""},{"$f":"IF('TSA Input'!J3209=\"\",\"\",IF(OR('TSA Input'!J3209=\"Yes\",'TSA Input'!J3209=\"Contingent\"),'TSA Input'!D3209,\"\"))","v":""},{"$f":"IF('TSA Input'!J3209=\"\",\"\",IF(OR('TSA Input'!J3209=\"Yes\",'TSA Input'!J3209=\"Contingent\"),'TSA Input'!G3209,\"\"))","v":""},{"$f":"IF('TSA Input'!J3209=\"\",\"\",IF(OR('TSA Input'!J3209=\"Yes\",'TSA Input'!J3209=\"Contingent\"),'TSA Input'!F3209,\"\"))","v":""},"",{"$f":"IF('TSA Input'!J3209=\"\",\"\",IF(OR('TSA Input'!J3209=\"Yes\",'TSA Input'!J3209=\"Contingent\"),'TSA Input'!D3209,\"\"))","v":""},{"$f":"IF('TSA Input'!J3209=\"\",\"\",IF(OR('TSA Input'!J3209=\"Yes\",'TSA Input'!J3209=\"Contingent\"),'TSA Input'!G3209,\"\"))","v":""},{"$f":"IF('TSA Input'!J3209=\"\",\"\",IF(OR('TSA Input'!J3209=\"Yes\",'TSA Input'!J3209=\"Contingent\"),'TSA Input'!F3209,\"\"))","v":""},"","Required","Required"]
["",null,{"$f":"IF('TSA Input'!J3210=\"\",\"\",IF(OR('TSA Input'!J3210=\"Yes\",'TSA Input'!J3210=\"Contingent\"),'TSA Input'!B3210,\"Ineligible\"))","v":""},{"$f":"IF('TSA Input'!J3210=\"\",\"\",IF(OR('TSA Input'!J3210=\"Yes\",'TSA Input'!J3210=\"Contingent\"),'TSA Input'!I3210,\"\"))","v":""},{"$f":"IF('TSA Input'!J3210=\"\",\"\",IF(OR('TSA Input'!J3210=\"Yes\",'TSA Input'!J3210=\"Contingent\"),'TSA Input'!C3210,\"\"))","v":""},{"$f":"IF('TSA Input'!J3210=\"\",\"\",IF(OR('TSA Input'!J3210=\"Yes\",'TSA Input'!J3210=\"Contingent\"),'TSA Input'!D3210,\"\"))","v":""},{"$f":"IF('TSA Input'!J3210=\"\",\"\",IF(OR('TSA Input'!J3210=\"Yes\",'TSA Input'!J3210=\"Contingent\"),'TSA Input'!G3210,\"\"))","v":""},{"$f":"IF('TSA Input'!J3210=\"\",\"\",IF(OR('TSA Input'!J3210=\"Yes\",'TSA Input'!J3210=\"Contingent\"),'TSA Input'!F3210,\"\"))","v":""},"",{"$f":"IF('TSA Input'!J3210=\"\",\"\",IF(OR('TSA Input'!J3210=\"Yes\",'TSA Input'!J3210=\"Contingent\"),'TSA Input'!D3210,\"\"))","v":""},{"$f":"IF('TSA Input'!J3210=\"\",\"\",IF(OR('TSA Input'!J3210=\"Yes\",'TSA Input'!J3210=\"Contingent\"),'TSA Input'!G3210,\"\"))","v":""},{"$f":"IF('TSA Input'!J3210=\"\",\"\",IF(OR('TSA Input'!J3210=\"Yes\",'TSA Input'!J3210=\"Contingent\"),'TSA Input'!F3210,\"\"))","v":""},"","Required","Required"]
["",null,{"$f":"IF('TSA Input'!J3211=\"\",\"\",IF(OR('TSA Input'!J3211=\"Yes\",'TSA Input'!J3211=\"Contingent\"),'TSA Input'!B3211,\"Ineligible\"))","v":""},{"$f":"IF('TSA Input'!J3211=\"\",\"\",IF(OR('TSA Input'!J3211=\"Yes\",'TSA Input'!J3211=\"Contingent\"),'TSA Input'!I3211,\"\"))","v":""},{"$f":"IF('TSA Input'!J3211=\"\",\"\",IF(OR('TSA Input'!J3211=\"Yes\",'TSA Input'!J3211=\"Contingent\"),'TSA Input'!C3211,\"\"))","v":""},{"$f":"IF('TSA Input'!J3211=\"\",\"\",IF(OR('TSA Input'!J3211=\"Yes\",'TSA Input'!J3211=\"Contingent\"),'TSA Input'!D3211,\"\"))","v":""},{"$f":"IF('TSA Input'!J3211=\"\",\"\",IF(OR('TSA Input'!J3211=\"Yes\",'TSA Input'!J3211=\"Contingent\"),'TSA Input'!G3211,\"\"))","v":""},{"$f":"IF('TSA Input'!J3211=\"\",\"\",IF(OR('TSA Input'!J3211=\"Yes\",'TSA Input'!J3211=\"Contingent\"),'TSA Input'!F3211,\"\"))","v":""},"",{"$f":"IF('TSA Input'!J3211=\"\",\"\",IF(OR('TSA Input'!J3211=\"Yes\",'TSA Input'!J3211=\"Contingent\"),'TSA Input'!D3211,\"\"))","v":""},{"$f":"IF('TSA Input'!J3211=\"\",\"\",IF(OR('TSA Input'!J3211=\"Yes\",'TSA Input'!J3211=\"Contingent\"),'TSA Input'!G3211,\"\"))","v":""},{"$f":"IF('TSA Input'!J3211=\"\",\"\",IF(OR('TSA Input'!J3211=\"Yes\",'TSA Input'!J3211=\"Contingent\"),'TSA Input'!F3211,\"\"))","v":""},"","Required","Required"]
["",null,{"$f":"IF('TSA Input'!J3212=\"\",\"\",IF(OR('TSA Input'!J3212=\"Yes\",'TSA Input'!J3212=\"Contingent\"),'TSA Input'!B3212,\"Ineligible\"))","v":""},{"$f":"IF('TSA Input'!J3212=\"\",\"\",IF(OR('TSA Input'!J3212=\"Yes\",'TSA Input'!J3212=\"Contingent\"),'TSA Input'!I3212,\"\"))","v":""},{"$f":"IF('TSA Input'!J3212=\"\",\"\",IF(OR('TSA Input'!J3212=\"Yes\",'TSA Input'!J3212=\"Contingent\"),'TSA Input'!C3212,\"\"))","v":""},{"$f":"IF('TSA Input'!J3212=\"\",\"\",IF(OR('TSA Input'!J3212=\"Yes\",'TSA Input'!J3212=\"Contingent\"),'TSA Input'!D3212,\"\"))","v":""},{"$f":"IF('TSA Input'!J3212=\"\",\"\",IF(OR('TSA Input'!J3212=\"Yes\",'TSA Input'!J3212=\"Contingent\"),'TSA Input'!G3212,\"\"))","v":""},{"$f":"IF('TSA Input'!J3212=\"\",\"\",IF(OR('TSA Input'!J3212=\"Yes\",'TSA Input'!J3212=\"Contingent\"),'TSA Input'!F3212,\"\"))","v":""},"",{"$f":"IF('TSA Input'!J3212=\"\",\"\",IF(OR('TSA Input'!J3212=\"Yes\",'TSA Input'!J3212=\"Contingent\"),'TSA Input'!D3212,\"\"))","v":""},{"$f":"IF('TSA Input'!J3212=\"\",\"\",IF(OR('TSA Input'!J3212=\"Yes\",'TSA Input'!J3212=\"Contingent\"),'TSA Input'!G3212,\"\"))","v":""},{"$f":"IF('TSA Input'!J3212=\"\",\"\",IF(OR('TSA Input'!J3212=\"Yes\",'TSA Input'!J3212=\"Contingent\"),'TSA Input'!F3212,\"\"))","v":""},"","Required","Required"]
["",null,{"$f":"IF('TSA Input'!J3213=\"\",\"\",IF(OR('TSA Input'!J3213=\"Yes\",'TSA Input'!J3213=\"Contingent\"),'TSA Input'!B3213,\"Ineligible\"))","v":""},{"$f":"IF('TSA Input'!J3213=\"\",\"\",IF(OR('TSA Input'!J3213=\"Yes\",'TSA Input'!J3213=\"Contingent\"),'TSA Input'!I3213,\"\"))","v":""},{"$f":"IF('TSA Input'!J3213=\"\",\"\",IF(OR('TSA Input'!J3213=\"Yes\",'TSA Input'!J3213=\"Contingent\"),'TSA Input'!C3213,\"\"))","v":""},{"$f":"IF('TSA Input'!J3213=\"\",\"\",IF(OR('TSA Input'!J3213=\"Yes\",'TSA Input'!J3213=\"Contingent\"),'TSA Input'!D3213,\"\"))","v":""},{"$f":"IF('TSA Input'!J3213=\"\",\"\",IF(OR('TSA Input'!J3213=\"Yes\",'TSA Input'!J3213=\"Contingent\"),'TSA Input'!G3213,\"\"))","v":""},{"$f":"IF('TSA Input'!J3213=\"\",\"\",IF(OR('TSA Input'!J3213=\"Yes\",'TSA Input'!J3213=\"Contingent\"),'TSA Input'!F3213,\"\"))","v":""},"",{"$f":"IF('TSA Input'!J3213=\"\",\"\",IF(OR('TSA Input'!J3213=\"Yes\",'TSA Input'!J3213=\"Contingent\"),'TSA Input'!D3213,\"\"))","v":""},{"$f":"IF('TSA Input'!J3213=\"\",\"\",IF(OR('TSA Input'!J3213=\"Yes\",'TSA Input'!J3213=\"Contingent\"),'TSA Input'!G3213,\"\"))","v":""},{"$f":"IF('TSA Input'!J3213=\"\",\"\",IF(OR('TSA Input'!J3213=\"Yes\",'TSA Input'!J3213=\"Contingent\"),'TSA Input'!F3213,\"\"))","v":""},"","Required","Required"]
["",null,{"$f":"IF('TSA Input'!J3214=\"\",\"\",IF(OR('TSA Input'!J3214=\"Yes\",'TSA Input'!J3214=\"Contingent\"),'TSA Input'!B3214,\"Ineligible\"))","v":""},{"$f":"IF('TSA Input'!J3214=\"\",\"\",IF(OR('TSA Input'!J3214=\"Yes\",'TSA Input'!J3214=\"Contingent\"),'TSA Input'!I3214,\"\"))","v":""},{"$f":"IF('TSA Input'!J3214=\"\",\"\",IF(OR('TSA Input'!J3214=\"Yes\",'TSA Input'!J3214=\"Contingent\"),'TSA Input'!C3214,\"\"))","v":""},{"$f":"IF('TSA Input'!J3214=\"\",\"\",IF(OR('TSA Input'!J3214=\"Yes\",'TSA Input'!J3214=\"Contingent\"),'TSA Input'!D3214,\"\"))","v":""},{"$f":"IF('TSA Input'!J3214=\"\",\"\",IF(OR('TSA Input'!J3214=\"Yes\",'TSA Input'!J3214=\"Contingent\"),'TSA Input'!G3214,\"\"))","v":""},{"$f":"IF('TSA Input'!J3214=\"\",\"\",IF(OR('TSA Input'!J3214=\"Yes\",'TSA Input'!J3214=\"Contingent\"),'TSA Input'!F3214,\"\"))","v":""},"",{"$f":"IF('TSA Input'!J3214=\"\",\"\",IF(OR('TSA Input'!J3214=\"Yes\",'TSA Input'!J3214=\"Contingent\"),'TSA Input'!D3214,\"\"))","v":""},{"$f":"IF('TSA Input'!J3214=\"\",\"\",IF(OR('TSA Input'!J3214=\"Yes\",'TSA Input'!J3214=\"Contingent\"),'TSA Input'!G3214,\"\"))","v":""},{"$f":"IF('TSA Input'!J3214=\"\",\"\",IF(OR('TSA Input'!J3214=\"Yes\",'TSA Input'!J3214=\"Contingent\"),'TSA Input'!F3214,\"\"))","v":""},"","Required","Required"]
["",null,{"$f":"IF('TSA Input'!J3215=\"\",\"\",IF(OR('TSA Input'!J3215=\"Yes\",'TSA Input'!J3215=\"Contingent\"),'TSA Input'!B3215,\"Ineligible\"))","v":""},{"$f":"IF('TSA Input'!J3215=\"\",\"\",IF(OR('TSA Input'!J3215=\"Yes\",'TSA Input'!J3215=\"Contingent\"),'TSA Input'!I3215,\"\"))","v":""},{"$f":"IF('TSA Input'!J3215=\"\",\"\",IF(OR('TSA Input'!J3215=\"Yes\",'TSA Input'!J3215=\"Contingent\"),'TSA Input'!C3215,\"\"))","v":""},{"$f":"IF('TSA Input'!J3215=\"\",\"\",IF(OR('TSA Input'!J3215=\"Yes\",'TSA Input'!J3215=\"Contingent\"),'TSA Input'!D3215,\"\"))","v":""},{"$f":"IF('TSA Input'!J3215=\"\",\"\",IF(OR('TSA Input'!J3215=\"Yes\",'TSA Input'!J3215=\"Contingent\"),'TSA Input'!G3215,\"\"))","v":""},{"$f":"IF('TSA Input'!J3215=\"\",\"\",IF(OR('TSA Input'!J3215=\"Yes\",'TSA Input'!J3215=\"Contingent\"),'TSA Input'!F3215,\"\"))","v":""},"",{"$f":"IF('TSA Input'!J3215=\"\",\"\",IF(OR('TSA Input'!J3215=\"Yes\",'TSA Input'!J3215=\"Contingent\"),'TSA Input'!D3215,\"\"))","v":""},{"$f":"IF('TSA Input'!J3215=\"\",\"\",IF(OR('TSA Input'!J3215=\"Yes\",'TSA Input'!J3215=\"Contingent\"),'TSA Input'!G3215,\"\"))","v":""},{"$f":"IF('TSA Input'!J3215=\"\",\"\",IF(OR('TSA Input'!J3215=\"Yes\",'TSA Input'!J3215=\"Contingent\"),'TSA Input'!F3215,\"\"))","v":""},"","Required","Required"]
["",null,{"$f":"IF('TSA Input'!J3216=\"\",\"\",IF(OR('TSA Input'!J3216=\"Yes\",'TSA Input'!J3216=\"Contingent\"),'TSA Input'!B3216,\"Ineligible\"))","v":""},{"$f":"IF('TSA Input'!J3216=\"\",\"\",IF(OR('TSA Input'!J3216=\"Yes\",'TSA Input'!J3216=\"Contingent\"),'TSA Input'!I3216,\"\"))","v":""},{"$f":"IF('TSA Input'!J3216=\"\",\"\",IF(OR('TSA Input'!J3216=\"Yes\",'TSA Input'!J3216=\"Contingent\"),'TSA Input'!C3216,\"\"))","v":""},{"$f":"IF('TSA Input'!J3216=\"\",\"\",IF(OR('TSA Input'!J3216=\"Yes\",'TSA Input'!J3216=\"Contingent\"),'TSA Input'!D3216,\"\"))","v":""},{"$f":"IF('TSA Input'!J3216=\"\",\"\",IF(OR('TSA Input'!J3216=\"Yes\",'TSA Input'!J3216=\"Contingent\"),'TSA Input'!G3216,\"\"))","v":""},{"$f":"IF('TSA Input'!J3216=\"\",\"\",IF(OR('TSA Input'!J3216=\"Yes\",'TSA Input'!J3216=\"Contingent\"),'TSA Input'!F3216,\"\"))","v":""},"",{"$f":"IF('TSA Input'!J3216=\"\",\"\",IF(OR('TSA Input'!J3216=\"Yes\",'TSA Input'!J3216=\"Contingent\"),'TSA Input'!D3216,\"\"))","v":""},{"$f":"IF('TSA Input'!J3216=\"\",\"\",IF(OR('TSA Input'!J3216=\"Yes\",'TSA Input'!J3216=\"Contingent\"),'TSA Input'!G3216,\"\"))","v":""},{"$f":"IF('TSA Input'!J3216=\"\",\"\",IF(OR('TSA Input'!J3216=\"Yes\",'TSA Input'!J3216=\"Contingent\"),'TSA Input'!F3216,\"\"))","v":""},"","Required","Required"]
["",null,{"$f":"IF('TSA Input'!J3217=\"\",\"\",IF(OR('TSA Input'!J3217=\"Yes\",'TSA Input'!J3217=\"Contingent\"),'TSA Input'!B3217,\"Ineligible\"))","v":""},{"$f":"IF('TSA Input'!J3217=\"\",\"\",IF(OR('TSA Input'!J3217=\"Yes\",'TSA Input'!J3217=\"Contingent\"),'TSA Input'!I3217,\"\"))","v":""},{"$f":"IF('TSA Input'!J3217=\"\",\"\",IF(OR('TSA Input'!J3217=\"Yes\",'TSA Input'!J3217=\"Contingent\"),'TSA Input'!C3217,\"\"))","v":""},{"$f":"IF('TSA Input'!J3217=\"\",\"\",IF(OR('TSA Input'!J3217=\"Yes\",'TSA Input'!J3217=\"Contingent\"),'TSA Input'!D3217,\"\"))","v":""},{"$f":"IF('TSA Input'!J3217=\"\",\"\",IF(OR('TSA Input'!J3217=\"Yes\",'TSA Input'!J3217=\"Contingent\"),'TSA Input'!G3217,\"\"))","v":""},{"$f":"IF('TSA Input'!J3217=\"\",\"\",IF(OR('TSA Input'!J3217=\"Yes\",'TSA Input'!J3217=\"Contingent\"),'TSA Input'!F3217,\"\"))","v":""},"",{"$f":"IF('TSA Input'!J3217=\"\",\"\",IF(OR('TSA Input'!J3217=\"Yes\",'TSA Input'!J3217=\"Contingent\"),'TSA Input'!D3217,\"\"))","v":""},{"$f":"IF('TSA Input'!J3217=\"\",\"\",IF(OR('TSA Input'!J3217=\"Yes\",'TSA Input'!J3217=\"Contingent\"),'TSA Input'!G3217,\"\"))","v":""},{"$f":"IF('TSA Input'!J3217=\"\",\"\",IF(OR('TSA Input'!J3217=\"Yes\",'TSA Input'!J3217=\"Contingent\"),'TSA Input'!F3217,\"\"))","v":""},"","Required","Required"]
["",null,{"$f":"IF('TSA Input'!J3218=\"\",\"\",IF(OR('TSA Input'!J3218=\"Yes\",'TSA Input'!J3218=\"Contingent\"),'TSA Input'!B3218,\"Ineligible\"))","v":""},{"$f":"IF('TSA Input'!J3218=\"\",\"\",IF(OR('TSA Input'!J3218=\"Yes\",'TSA Input'!J3218=\"Contingent\"),'TSA Input'!I3218,\"\"))","v":""},{"$f":"IF('TSA Input'!J3218=\"\",\"\",IF(OR('TSA Input'!J3218=\"Yes\",'TSA Input'!J3218=\"Contingent\"),'TSA Input'!C3218,\"\"))","v":""},{"$f":"IF('TSA Input'!J3218=\"\",\"\",IF(OR('TSA Input'!J3218=\"Yes\",'TSA Input'!J3218=\"Contingent\"),'TSA Input'!D3218,\"\"))","v":""},{"$f":"IF('TSA Input'!J3218=\"\",\"\",IF(OR('TSA Input'!J3218=\"Yes\",'TSA Input'!J3218=\"Contingent\"),'TSA Input'!G3218,\"\"))","v":""},{"$f":"IF('TSA Input'!J3218=\"\",\"\",IF(OR('TSA Input'!J3218=\"Yes\",'TSA Input'!J3218=\"Contingent\"),'TSA Input'!F3218,\"\"))","v":""},"",{"$f":"IF('TSA Input'!J3218=\"\",\"\",IF(OR('TSA Input'!J3218=\"Yes\",'TSA Input'!J3218=\"Contingent\"),'TSA Input'!D3218,\"\"))","v":""},{"$f":"IF('TSA Input'!J3218=\"\",\"\",IF(OR('TSA Input'!J3218=\"Yes\",'TSA Input'!J3218=\"Contingent\"),'TSA Input'!G3218,\"\"))","v":""},{"$f":"IF('TSA Input'!J3218=\"\",\"\",IF(OR('TSA Input'!J3218=\"Yes\",'TSA Input'!J3218=\"Contingent\"),'TSA Input'!F3218,\"\"))","v":""},"","Required","Required"]
["",null,{"$f":"IF('TSA Input'!J3219=\"\",\"\",IF(OR('TSA Input'!J3219=\"Yes\",'TSA Input'!J3219=\"Contingent\"),'TSA Input'!B3219,\"Ineligible\"))","v":""},{"$f":"IF('TSA Input'!J3219=\"\",\"\",IF(OR('TSA Input'!J3219=\"Yes\",'TSA Input'!J3219=\"Contingent\"),'TSA Input'!I3219,\"\"))","v":""},{"$f":"IF('TSA Input'!J3219=\"\",\"\",IF(OR('TSA Input'!J3219=\"Yes\",'TSA Input'!J3219=\"Contingent\"),'TSA Input'!C3219,\"\"))","v":""},{"$f":"IF('TSA Input'!J3219=\"\",\"\",IF(OR('TSA Input'!J3219=\"Yes\",'TSA Input'!J3219=\"Contingent\"),'TSA Input'!D3219,\"\"))","v":""},{"$f":"IF('TSA Input'!J3219=\"\",\"\",IF(OR('TSA Input'!J3219=\"Yes\",'TSA Input'!J3219=\"Contingent\"),'TSA Input'!G3219,\"\"))","v":""},{"$f":"IF('TSA Input'!J3219=\"\",\"\",IF(OR('TSA Input'!J3219=\"Yes\",'TSA Input'!J3219=\"Contingent\"),'TSA Input'!F3219,\"\"))","v":""},"",{"$f":"IF('TSA Input'!J3219=\"\",\"\",IF(OR('TSA Input'!J3219=\"Yes\",'TSA Input'!J3219=\"Contingent\"),'TSA Input'!D3219,\"\"))","v":""},{"$f":"IF('TSA Input'!J3219=\"\",\"\",IF(OR('TSA Input'!J3219=\"Yes\",'TSA Input'!J3219=\"Contingent\"),'TSA Input'!G3219,\"\"))","v":""},{"$f":"IF('TSA Input'!J3219=\"\",\"\",IF(OR('TSA Input'!J3219=\"Yes\",'TSA Input'!J3219=\"Contingent\"),'TSA Input'!F3219,\"\"))","v":""},"","Required","Required"]
["",null,{"$f":"IF('TSA Input'!J3220=\"\",\"\",IF(OR('TSA Input'!J3220=\"Yes\",'TSA Input'!J3220=\"Contingent\"),'TSA Input'!B3220,\"Ineligible\"))","v":""},{"$f":"IF('TSA Input'!J3220=\"\",\"\",IF(OR('TSA Input'!J3220=\"Yes\",'TSA Input'!J3220=\"Contingent\"),'TSA Input'!I3220,\"\"))","v":""},{"$f":"IF('TSA Input'!J3220=\"\",\"\",IF(OR('TSA Input'!J3220=\"Yes\",'TSA Input'!J3220=\"Contingent\"),'TSA Input'!C3220,\"\"))","v":""},{"$f":"IF('TSA Input'!J3220=\"\",\"\",IF(OR('TSA Input'!J3220=\"Yes\",'TSA Input'!J3220=\"Contingent\"),'TSA Input'!D3220,\"\"))","v":""},{"$f":"IF('TSA Input'!J3220=\"\",\"\",IF(OR('TSA Input'!J3220=\"Yes\",'TSA Input'!J3220=\"Contingent\"),'TSA Input'!G3220,\"\"))","v":""},{"$f":"IF('TSA Input'!J3220=\"\",\"\",IF(OR('TSA Input'!J3220=\"Yes\",'TSA Input'!J3220=\"Contingent\"),'TSA Input'!F3220,\"\"))","v":""},"",{"$f":"IF('TSA Input'!J3220=\"\",\"\",IF(OR('TSA Input'!J3220=\"Yes\",'TSA Input'!J3220=\"Contingent\"),'TSA Input'!D3220,\"\"))","v":""},{"$f":"IF('TSA Input'!J3220=\"\",\"\",IF(OR('TSA Input'!J3220=\"Yes\",'TSA Input'!J3220=\"Contingent\"),'TSA Input'!G3220,\"\"))","v":""},{"$f":"IF('TSA Input'!J3220=\"\",\"\",IF(OR('TSA Input'!J3220=\"Yes\",'TSA Input'!J3220=\"Contingent\"),'TSA Input'!F3220,\"\"))","v":""},"","Required","Required"]
["",null,{"$f":"IF('TSA Input'!J3221=\"\",\"\",IF(OR('TSA Input'!J3221=\"Yes\",'TSA Input'!J3221=\"Contingent\"),'TSA Input'!B3221,\"Ineligible\"))","v":""},{"$f":"IF('TSA Input'!J3221=\"\",\"\",IF(OR('TSA Input'!J3221=\"Yes\",'TSA Input'!J3221=\"Contingent\"),'TSA Input'!I3221,\"\"))","v":""},{"$f":"IF('TSA Input'!J3221=\"\",\"\",IF(OR('TSA Input'!J3221=\"Yes\",'TSA Input'!J3221=\"Contingent\"),'TSA Input'!C3221,\"\"))","v":""},{"$f":"IF('TSA Input'!J3221=\"\",\"\",IF(OR('TSA Input'!J3221=\"Yes\",'TSA Input'!J3221=\"Contingent\"),'TSA Input'!D3221,\"\"))","v":""},{"$f":"IF('TSA Input'!J3221=\"\",\"\",IF(OR('TSA Input'!J3221=\"Yes\",'TSA Input'!J3221=\"Contingent\"),'TSA Input'!G3221,\"\"))","v":""},{"$f":"IF('TSA Input'!J3221=\"\",\"\",IF(OR('TSA Input'!J3221=\"Yes\",'TSA Input'!J3221=\"Contingent\"),'TSA Input'!F3221,\"\"))","v":""},"",{"$f":"IF('TSA Input'!J3221=\"\",\"\",IF(OR('TSA Input'!J3221=\"Yes\",'TSA Input'!J3221=\"Contingent\"),'TSA Input'!D3221,\"\"))","v":""},{"$f":"IF('TSA Input'!J3221=\"\",\"\",IF(OR('TSA Input'!J3221=\"Yes\",'TSA Input'!J3221=\"Contingent\"),'TSA Input'!G3221,\"\"))","v":""},{"$f":"IF('TSA Input'!J3221=\"\",\"\",IF(OR('TSA Input'!J3221=\"Yes\",'TSA Input'!J3221=\"Contingent\"),'TSA Input'!F3221,\"\"))","v":""},"","Required","Required"]
["",null,{"$f":"IF('TSA Input'!J3222=\"\",\"\",IF(OR('TSA Input'!J3222=\"Yes\",'TSA Input'!J3222=\"Contingent\"),'TSA Input'!B3222,\"Ineligible\"))","v":""},{"$f":"IF('TSA Input'!J3222=\"\",\"\",IF(OR('TSA Input'!J3222=\"Yes\",'TSA Input'!J3222=\"Contingent\"),'TSA Input'!I3222,\"\"))","v":""},{"$f":"IF('TSA Input'!J3222=\"\",\"\",IF(OR('TSA Input'!J3222=\"Yes\",'TSA Input'!J3222=\"Contingent\"),'TSA Input'!C3222,\"\"))","v":""},{"$f":"IF('TSA Input'!J3222=\"\",\"\",IF(OR('TSA Input'!J3222=\"Yes\",'TSA Input'!J3222=\"Contingent\"),'TSA Input'!D3222,\"\"))","v":""},{"$f":"IF('TSA Input'!J3222=\"\",\"\",IF(OR('TSA Input'!J3222=\"Yes\",'TSA Input'!J3222=\"Contingent\"),'TSA Input'!G3222,\"\"))","v":""},{"$f":"IF('TSA Input'!J3222=\"\",\"\",IF(OR('TSA Input'!J3222=\"Yes\",'TSA Input'!J3222=\"Contingent\"),'TSA Input'!F3222,\"\"))","v":""},"",{"$f":"IF('TSA Input'!J3222=\"\",\"\",IF(OR('TSA Input'!J3222=\"Yes\",'TSA Input'!J3222=\"Contingent\"),'TSA Input'!D3222,\"\"))","v":""},{"$f":"IF('TSA Input'!J3222=\"\",\"\",IF(OR('TSA Input'!J3222=\"Yes\",'TSA Input'!J3222=\"Contingent\"),'TSA Input'!G3222,\"\"))","v":""},{"$f":"IF('TSA Input'!J3222=\"\",\"\",IF(OR('TSA Input'!J3222=\"Yes\",'TSA Input'!J3222=\"Contingent\"),'TSA Input'!F3222,\"\"))","v":""},"","Required","Required"]
["",null,{"$f":"IF('TSA Input'!J3223=\"\",\"\",IF(OR('TSA Input'!J3223=\"Yes\",'TSA Input'!J3223=\"Contingent\"),'TSA Input'!B3223,\"Ineligible\"))","v":""},{"$f":"IF('TSA Input'!J3223=\"\",\"\",IF(OR('TSA Input'!J3223=\"Yes\",'TSA Input'!J3223=\"Contingent\"),'TSA Input'!I3223,\"\"))","v":""},{"$f":"IF('TSA Input'!J3223=\"\",\"\",IF(OR('TSA Input'!J3223=\"Yes\",'TSA Input'!J3223=\"Contingent\"),'TSA Input'!C3223,\"\"))","v":""},{"$f":"IF('TSA Input'!J3223=\"\",\"\",IF(OR('TSA Input'!J3223=\"Yes\",'TSA Input'!J3223=\"Contingent\"),'TSA Input'!D3223,\"\"))","v":""},{"$f":"IF('TSA Input'!J3223=\"\",\"\",IF(OR('TSA Input'!J3223=\"Yes\",'TSA Input'!J3223=\"Contingent\"),'TSA Input'!G3223,\"\"))","v":""},{"$f":"IF('TSA Input'!J3223=\"\",\"\",IF(OR('TSA Input'!J3223=\"Yes\",'TSA Input'!J3223=\"Contingent\"),'TSA Input'!F3223,\"\"))","v":""},"",{"$f":"IF('TSA Input'!J3223=\"\",\"\",IF(OR('TSA Input'!J3223=\"Yes\",'TSA Input'!J3223=\"Contingent\"),'TSA Input'!D3223,\"\"))","v":""},{"$f":"IF('TSA Input'!J3223=\"\",\"\",IF(OR('TSA Input'!J3223=\"Yes\",'TSA Input'!J3223=\"Contingent\"),'TSA Input'!G3223,\"\"))","v":""},{"$f":"IF('TSA Input'!J3223=\"\",\"\",IF(OR('TSA Input'!J3223=\"Yes\",'TSA Input'!J3223=\"Contingent\"),'TSA Input'!F3223,\"\"))","v":""},"","Required","Required"]
["",null,{"$f":"IF('TSA Input'!J3224=\"\",\"\",IF(OR('TSA Input'!J3224=\"Yes\",'TSA Input'!J3224=\"Contingent\"),'TSA Input'!B3224,\"Ineligible\"))","v":""},{"$f":"IF('TSA Input'!J3224=\"\",\"\",IF(OR('TSA Input'!J3224=\"Yes\",'TSA Input'!J3224=\"Contingent\"),'TSA Input'!I3224,\"\"))","v":""},{"$f":"IF('TSA Input'!J3224=\"\",\"\",IF(OR('TSA Input'!J3224=\"Yes\",'TSA Input'!J3224=\"Contingent\"),'TSA Input'!C3224,\"\"))","v":""},{"$f":"IF('TSA Input'!J3224=\"\",\"\",IF(OR('TSA Input'!J3224=\"Yes\",'TSA Input'!J3224=\"Contingent\"),'TSA Input'!D3224,\"\"))","v":""},{"$f":"IF('TSA Input'!J3224=\"\",\"\",IF(OR('TSA Input'!J3224=\"Yes\",'TSA Input'!J3224=\"Contingent\"),'TSA Input'!G3224,\"\"))","v":""},{"$f":"IF('TSA Input'!J3224=\"\",\"\",IF(OR('TSA Input'!J3224=\"Yes\",'TSA Input'!J3224=\"Contingent\"),'TSA Input'!F3224,\"\"))","v":""},"",{"$f":"IF('TSA Input'!J3224=\"\",\"\",IF(OR('TSA Input'!J3224=\"Yes\",'TSA Input'!J3224=\"Contingent\"),'TSA Input'!D3224,\"\"))","v":""},{"$f":"IF('TSA Input'!J3224=\"\",\"\",IF(OR('TSA Input'!J3224=\"Yes\",'TSA Input'!J3224=\"Contingent\"),'TSA Input'!G3224,\"\"))","v":""},{"$f":"IF('TSA Input'!J3224=\"\",\"\",IF(OR('TSA Input'!J3224=\"Yes\",'TSA Input'!J3224=\"Contingent\"),'TSA Input'!F3224,\"\"))","v":""},"","Required","Required"]
["",null,{"$f":"IF('TSA Input'!J3225=\"\",\"\",IF(OR('TSA Input'!J3225=\"Yes\",'TSA Input'!J3225=\"Contingent\"),'TSA Input'!B3225,\"Ineligible\"))","v":""},{"$f":"IF('TSA Input'!J3225=\"\",\"\",IF(OR('TSA Input'!J3225=\"Yes\",'TSA Input'!J3225=\"Contingent\"),'TSA Input'!I3225,\"\"))","v":""},{"$f":"IF('TSA Input'!J3225=\"\",\"\",IF(OR('TSA Input'!J3225=\"Yes\",'TSA Input'!J3225=\"Contingent\"),'TSA Input'!C3225,\"\"))","v":""},{"$f":"IF('TSA Input'!J3225=\"\",\"\",IF(OR('TSA Input'!J3225=\"Yes\",'TSA Input'!J3225=\"Contingent\"),'TSA Input'!D3225,\"\"))","v":""},{"$f":"IF('TSA Input'!J3225=\"\",\"\",IF(OR('TSA Input'!J3225=\"Yes\",'TSA Input'!J3225=\"Contingent\"),'TSA Input'!G3225,\"\"))","v":""},{"$f":"IF('TSA Input'!J3225=\"\",\"\",IF(OR('TSA Input'!J3225=\"Yes\",'TSA Input'!J3225=\"Contingent\"),'TSA Input'!F3225,\"\"))","v":""},"",{"$f":"IF('TSA Input'!J3225=\"\",\"\",IF(OR('TSA Input'!J3225=\"Yes\",'TSA Input'!J3225=\"Contingent\"),'TSA Input'!D3225,\"\"))","v":""},{"$f":"IF('TSA Input'!J3225=\"\",\"\",IF(OR('TSA Input'!J3225=\"Yes\",'TSA Input'!J3225=\"Contingent\"),'TSA Input'!G3225,\"\"))","v":""},{"$f":"IF('TSA Input'!J3225=\"\",\"\",IF(OR('TSA Input'!J3225=\"Yes\",'TSA Input'!J3225=\"Contingent\"),'TSA Input'!F3225,\"\"))","v":""},"","Required","Required"]
["",null,{"$f":"IF('TSA Input'!J3226=\"\",\"\",IF(OR('TSA Input'!J3226=\"Yes\",'TSA Input'!J3226=\"Contingent\"),'TSA Input'!B3226,\"Ineligible\"))","v":""},{"$f":"IF('TSA Input'!J3226=\"\",\"\",IF(OR('TSA Input'!J3226=\"Yes\",'TSA Input'!J3226=\"Contingent\"),'TSA Input'!I3226,\"\"))","v":""},{"$f":"IF('TSA Input'!J3226=\"\",\"\",IF(OR('TSA Input'!J3226=\"Yes\",'TSA Input'!J3226=\"Contingent\"),'TSA Input'!C3226,\"\"))","v":""},{"$f":"IF('TSA Input'!J3226=\"\",\"\",IF(OR('TSA Input'!J3226=\"Yes\",'TSA Input'!J3226=\"Contingent\"),'TSA Input'!D3226,\"\"))","v":""},{"$f":"IF('TSA Input'!J3226=\"\",\"\",IF(OR('TSA Input'!J3226=\"Yes\",'TSA Input'!J3226=\"Contingent\"),'TSA Input'!G3226,\"\"))","v":""},{"$f":"IF('TSA Input'!J3226=\"\",\"\",IF(OR('TSA Input'!J3226=\"Yes\",'TSA Input'!J3226=\"Contingent\"),'TSA Input'!F3226,\"\"))","v":""},"",{"$f":"IF('TSA Input'!J3226=\"\",\"\",IF(OR('TSA Input'!J3226=\"Yes\",'TSA Input'!J3226=\"Contingent\"),'TSA Input'!D3226,\"\"))","v":""},{"$f":"IF('TSA Input'!J3226=\"\",\"\",IF(OR('TSA Input'!J3226=\"Yes\",'TSA Input'!J3226=\"Contingent\"),'TSA Input'!G3226,\"\"))","v":""},{"$f":"IF('TSA Input'!J3226=\"\",\"\",IF(OR('TSA Input'!J3226=\"Yes\",'TSA Input'!J3226=\"Contingent\"),'TSA Input'!F3226,\"\"))","v":""},"","Required","Required"]
["",null,{"$f":"IF('TSA Input'!J3227=\"\",\"\",IF(OR('TSA Input'!J3227=\"Yes\",'TSA Input'!J3227=\"Contingent\"),'TSA Input'!B3227,\"Ineligible\"))","v":""},{"$f":"IF('TSA Input'!J3227=\"\",\"\",IF(OR('TSA Input'!J3227=\"Yes\",'TSA Input'!J3227=\"Contingent\"),'TSA Input'!I3227,\"\"))","v":""},{"$f":"IF('TSA Input'!J3227=\"\",\"\",IF(OR('TSA Input'!J3227=\"Yes\",'TSA Input'!J3227=\"Contingent\"),'TSA Input'!C3227,\"\"))","v":""},{"$f":"IF('TSA Input'!J3227=\"\",\"\",IF(OR('TSA Input'!J3227=\"Yes\",'TSA Input'!J3227=\"Contingent\"),'TSA Input'!D3227,\"\"))","v":""},{"$f":"IF('TSA Input'!J3227=\"\",\"\",IF(OR('TSA Input'!J3227=\"Yes\",'TSA Input'!J3227=\"Contingent\"),'TSA Input'!G3227,\"\"))","v":""},{"$f":"IF('TSA Input'!J3227=\"\",\"\",IF(OR('TSA Input'!J3227=\"Yes\",'TSA Input'!J3227=\"Contingent\"),'TSA Input'!F3227,\"\"))","v":""},"",{"$f":"IF('TSA Input'!J3227=\"\",\"\",IF(OR('TSA Input'!J3227=\"Yes\",'TSA Input'!J3227=\"Contingent\"),'TSA Input'!D3227,\"\"))","v":""},{"$f":"IF('TSA Input'!J3227=\"\",\"\",IF(OR('TSA Input'!J3227=\"Yes\",'TSA Input'!J3227=\"Contingent\"),'TSA Input'!G3227,\"\"))","v":""},{"$f":"IF('TSA Input'!J3227=\"\",\"\",IF(OR('TSA Input'!J3227=\"Yes\",'TSA Input'!J3227=\"Contingent\"),'TSA Input'!F3227,\"\"))","v":""},"","Required","Required"]
["",null,{"$f":"IF('TSA Input'!J3228=\"\",\"\",IF(OR('TSA Input'!J3228=\"Yes\",'TSA Input'!J3228=\"Contingent\"),'TSA Input'!B3228,\"Ineligible\"))","v":""},{"$f":"IF('TSA Input'!J3228=\"\",\"\",IF(OR('TSA Input'!J3228=\"Yes\",'TSA Input'!J3228=\"Contingent\"),'TSA Input'!I3228,\"\"))","v":""},{"$f":"IF('TSA Input'!J3228=\"\",\"\",IF(OR('TSA Input'!J3228=\"Yes\",'TSA Input'!J3228=\"Contingent\"),'TSA Input'!C3228,\"\"))","v":""},{"$f":"IF('TSA Input'!J3228=\"\",\"\",IF(OR('TSA Input'!J3228=\"Yes\",'TSA Input'!J3228=\"Contingent\"),'TSA Input'!D3228,\"\"))","v":""},{"$f":"IF('TSA Input'!J3228=\"\",\"\",IF(OR('TSA Input'!J3228=\"Yes\",'TSA Input'!J3228=\"Contingent\"),'TSA Input'!G3228,\"\"))","v":""},{"$f":"IF('TSA Input'!J3228=\"\",\"\",IF(OR('TSA Input'!J3228=\"Yes\",'TSA Input'!J3228=\"Contingent\"),'TSA Input'!F3228,\"\"))","v":""},"",{"$f":"IF('TSA Input'!J3228=\"\",\"\",IF(OR('TSA Input'!J3228=\"Yes\",'TSA Input'!J3228=\"Contingent\"),'TSA Input'!D3228,\"\"))","v":""},{"$f":"IF('TSA Input'!J3228=\"\",\"\",IF(OR('TSA Input'!J3228=\"Yes\",'TSA Input'!J3228=\"Contingent\"),'TSA Input'!G3228,\"\"))","v":""},{"$f":"IF('TSA Input'!J3228=\"\",\"\",IF(OR('TSA Input'!J3228=\"Yes\",'TSA Input'!J3228=\"Contingent\"),'TSA Input'!F3228,\"\"))","v":""},"","Required","Required"]
["",null,{"$f":"IF('TSA Input'!J3229=\"\",\"\",IF(OR('TSA Input'!J3229=\"Yes\",'TSA Input'!J3229=\"Contingent\"),'TSA Input'!B3229,\"Ineligible\"))","v":""},{"$f":"IF('TSA Input'!J3229=\"\",\"\",IF(OR('TSA Input'!J3229=\"Yes\",'TSA Input'!J3229=\"Contingent\"),'TSA Input'!I3229,\"\"))","v":""},{"$f":"IF('TSA Input'!J3229=\"\",\"\",IF(OR('TSA Input'!J3229=\"Yes\",'TSA Input'!J3229=\"Contingent\"),'TSA Input'!C3229,\"\"))","v":""},{"$f":"IF('TSA Input'!J3229=\"\",\"\",IF(OR('TSA Input'!J3229=\"Yes\",'TSA Input'!J3229=\"Contingent\"),'TSA Input'!D3229,\"\"))","v":""},{"$f":"IF('TSA Input'!J3229=\"\",\"\",IF(OR('TSA Input'!J3229=\"Yes\",'TSA Input'!J3229=\"Contingent\"),'TSA Input'!G3229,\"\"))","v":""},{"$f":"IF('TSA Input'!J3229=\"\",\"\",IF(OR('TSA Input'!J3229=\"Yes\",'TSA Input'!J3229=\"Contingent\"),'TSA Input'!F3229,\"\"))","v":""},"",{"$f":"IF('TSA Input'!J3229=\"\",\"\",IF(OR('TSA Input'!J3229=\"Yes\",'TSA Input'!J3229=\"Contingent\"),'TSA Input'!D3229,\"\"))","v":""},{"$f":"IF('TSA Input'!J3229=\"\",\"\",IF(OR('TSA Input'!J3229=\"Yes\",'TSA Input'!J3229=\"Contingent\"),'TSA Input'!G3229,\"\"))","v":""},{"$f":"IF('TSA Input'!J3229=\"\",\"\",IF(OR('TSA Input'!J3229=\"Yes\",'TSA Input'!J3229=\"Contingent\"),'TSA Input'!F3229,\"\"))","v":""},"","Required","Required"]
["",null,{"$f":"IF('TSA Input'!J3230=\"\",\"\",IF(OR('TSA Input'!J3230=\"Yes\",'TSA Input'!J3230=\"Contingent\"),'TSA Input'!B3230,\"Ineligible\"))","v":""},{"$f":"IF('TSA Input'!J3230=\"\",\"\",IF(OR('TSA Input'!J3230=\"Yes\",'TSA Input'!J3230=\"Contingent\"),'TSA Input'!I3230,\"\"))","v":""},{"$f":"IF('TSA Input'!J3230=\"\",\"\",IF(OR('TSA Input'!J3230=\"Yes\",'TSA Input'!J3230=\"Contingent\"),'TSA Input'!C3230,\"\"))","v":""},{"$f":"IF('TSA Input'!J3230=\"\",\"\",IF(OR('TSA Input'!J3230=\"Yes\",'TSA Input'!J3230=\"Contingent\"),'TSA Input'!D3230,\"\"))","v":""},{"$f":"IF('TSA Input'!J3230=\"\",\"\",IF(OR('TSA Input'!J3230=\"Yes\",'TSA Input'!J3230=\"Contingent\"),'TSA Input'!G3230,\"\"))","v":""},{"$f":"IF('TSA Input'!J3230=\"\",\"\",IF(OR('TSA Input'!J3230=\"Yes\",'TSA Input'!J3230=\"Contingent\"),'TSA Input'!F3230,\"\"))","v":""},"",{"$f":"IF('TSA Input'!J3230=\"\",\"\",IF(OR('TSA Input'!J3230=\"Yes\",'TSA Input'!J3230=\"Contingent\"),'TSA Input'!D3230,\"\"))","v":""},{"$f":"IF('TSA Input'!J3230=\"\",\"\",IF(OR('TSA Input'!J3230=\"Yes\",'TSA Input'!J3230=\"Contingent\"),'TSA Input'!G3230,\"\"))","v":""},{"$f":"IF('TSA Input'!J3230=\"\",\"\",IF(OR('TSA Input'!J3230=\"Yes\",'TSA Input'!J3230=\"Contingent\"),'TSA Input'!F3230,\"\"))","v":""},"","Required","Required"]
["",null,{"$f":"IF('TSA Input'!J3231=\"\",\"\",IF(OR('TSA Input'!J3231=\"Yes\",'TSA Input'!J3231=\"Contingent\"),'TSA Input'!B3231,\"Ineligible\"))","v":""},{"$f":"IF('TSA Input'!J3231=\"\",\"\",IF(OR('TSA Input'!J3231=\"Yes\",'TSA Input'!J3231=\"Contingent\"),'TSA Input'!I3231,\"\"))","v":""},{"$f":"IF('TSA Input'!J3231=\"\",\"\",IF(OR('TSA Input'!J3231=\"Yes\",'TSA Input'!J3231=\"Contingent\"),'TSA Input'!C3231,\"\"))","v":""},{"$f":"IF('TSA Input'!J3231=\"\",\"\",IF(OR('TSA Input'!J3231=\"Yes\",'TSA Input'!J3231=\"Contingent\"),'TSA Input'!D3231,\"\"))","v":""},{"$f":"IF('TSA Input'!J3231=\"\",\"\",IF(OR('TSA Input'!J3231=\"Yes\",'TSA Input'!J3231=\"Contingent\"),'TSA Input'!G3231,\"\"))","v":""},{"$f":"IF('TSA Input'!J3231=\"\",\"\",IF(OR('TSA Input'!J3231=\"Yes\",'TSA Input'!J3231=\"Contingent\"),'TSA Input'!F3231,\"\"))","v":""},"",{"$f":"IF('TSA Input'!J3231=\"\",\"\",IF(OR('TSA Input'!J3231=\"Yes\",'TSA Input'!J3231=\"Contingent\"),'TSA Input'!D3231,\"\"))","v":""},{"$f":"IF('TSA Input'!J3231=\"\",\"\",IF(OR('TSA Input'!J3231=\"Yes\",'TSA Input'!J3231=\"Contingent\"),'TSA Input'!G3231,\"\"))","v":""},{"$f":"IF('TSA Input'!J3231=\"\",\"\",IF(OR('TSA Input'!J3231=\"Yes\",'TSA Input'!J3231=\"Contingent\"),'TSA Input'!F3231,\"\"))","v":""},"","Required","Required"]
["",null,{"$f":"IF('TSA Input'!J3232=\"\",\"\",IF(OR('TSA Input'!J3232=\"Yes\",'TSA Input'!J3232=\"Contingent\"),'TSA Input'!B3232,\"Ineligible\"))","v":""},{"$f":"IF('TSA Input'!J3232=\"\",\"\",IF(OR('TSA Input'!J3232=\"Yes\",'TSA Input'!J3232=\"Contingent\"),'TSA Input'!I3232,\"\"))","v":""},{"$f":"IF('TSA Input'!J3232=\"\",\"\",IF(OR('TSA Input'!J3232=\"Yes\",'TSA Input'!J3232=\"Contingent\"),'TSA Input'!C3232,\"\"))","v":""},{"$f":"IF('TSA Input'!J3232=\"\",\"\",IF(OR('TSA Input'!J3232=\"Yes\",'TSA Input'!J3232=\"Contingent\"),'TSA Input'!D3232,\"\"))","v":""},{"$f":"IF('TSA Input'!J3232=\"\",\"\",IF(OR('TSA Input'!J3232=\"Yes\",'TSA Input'!J3232=\"Contingent\"),'TSA Input'!G3232,\"\"))","v":""},{"$f":"IF('TSA Input'!J3232=\"\",\"\",IF(OR('TSA Input'!J3232=\"Yes\",'TSA Input'!J3232=\"Contingent\"),'TSA Input'!F3232,\"\"))","v":""},"",{"$f":"IF('TSA Input'!J3232=\"\",\"\",IF(OR('TSA Input'!J3232=\"Yes\",'TSA Input'!J3232=\"Contingent\"),'TSA Input'!D3232,\"\"))","v":""},{"$f":"IF('TSA Input'!J3232=\"\",\"\",IF(OR('TSA Input'!J3232=\"Yes\",'TSA Input'!J3232=\"Contingent\"),'TSA Input'!G3232,\"\"))","v":""},{"$f":"IF('TSA Input'!J3232=\"\",\"\",IF(OR('TSA Input'!J3232=\"Yes\",'TSA Input'!J3232=\"Contingent\"),'TSA Input'!F3232,\"\"))","v":""},"","Required","Required"]
["",null,{"$f":"IF('TSA Input'!J3233=\"\",\"\",IF(OR('TSA Input'!J3233=\"Yes\",'TSA Input'!J3233=\"Contingent\"),'TSA Input'!B3233,\"Ineligible\"))","v":""},{"$f":"IF('TSA Input'!J3233=\"\",\"\",IF(OR('TSA Input'!J3233=\"Yes\",'TSA Input'!J3233=\"Contingent\"),'TSA Input'!I3233,\"\"))","v":""},{"$f":"IF('TSA Input'!J3233=\"\",\"\",IF(OR('TSA Input'!J3233=\"Yes\",'TSA Input'!J3233=\"Contingent\"),'TSA Input'!C3233,\"\"))","v":""},{"$f":"IF('TSA Input'!J3233=\"\",\"\",IF(OR('TSA Input'!J3233=\"Yes\",'TSA Input'!J3233=\"Contingent\"),'TSA Input'!D3233,\"\"))","v":""},{"$f":"IF('TSA Input'!J3233=\"\",\"\",IF(OR('TSA Input'!J3233=\"Yes\",'TSA Input'!J3233=\"Contingent\"),'TSA Input'!G3233,\"\"))","v":""},{"$f":"IF('TSA Input'!J3233=\"\",\"\",IF(OR('TSA Input'!J3233=\"Yes\",'TSA Input'!J3233=\"Contingent\"),'TSA Input'!F3233,\"\"))","v":""},"",{"$f":"IF('TSA Input'!J3233=\"\",\"\",IF(OR('TSA Input'!J3233=\"Yes\",'TSA Input'!J3233=\"Contingent\"),'TSA Input'!D3233,\"\"))","v":""},{"$f":"IF('TSA Input'!J3233=\"\",\"\",IF(OR('TSA Input'!J3233=\"Yes\",'TSA Input'!J3233=\"Contingent\"),'TSA Input'!G3233,\"\"))","v":""},{"$f":"IF('TSA Input'!J3233=\"\",\"\",IF(OR('TSA Input'!J3233=\"Yes\",'TSA Input'!J3233=\"Contingent\"),'TSA Input'!F3233,\"\"))","v":""},"","Required","Required"]
["",null,{"$f":"IF('TSA Input'!J3234=\"\",\"\",IF(OR('TSA Input'!J3234=\"Yes\",'TSA Input'!J3234=\"Contingent\"),'TSA Input'!B3234,\"Ineligible\"))","v":""},{"$f":"IF('TSA Input'!J3234=\"\",\"\",IF(OR('TSA Input'!J3234=\"Yes\",'TSA Input'!J3234=\"Contingent\"),'TSA Input'!I3234,\"\"))","v":""},{"$f":"IF('TSA Input'!J3234=\"\",\"\",IF(OR('TSA Input'!J3234=\"Yes\",'TSA Input'!J3234=\"Contingent\"),'TSA Input'!C3234,\"\"))","v":""},{"$f":"IF('TSA Input'!J3234=\"\",\"\",IF(OR('TSA Input'!J3234=\"Yes\",'TSA Input'!J3234=\"Contingent\"),'TSA Input'!D3234,\"\"))","v":""},{"$f":"IF('TSA Input'!J3234=\"\",\"\",IF(OR('TSA Input'!J3234=\"Yes\",'TSA Input'!J3234=\"Contingent\"),'TSA Input'!G3234,\"\"))","v":""},{"$f":"IF('TSA Input'!J3234=\"\",\"\",IF(OR('TSA Input'!J3234=\"Yes\",'TSA Input'!J3234=\"Contingent\"),'TSA Input'!F3234,\"\"))","v":""},"",{"$f":"IF('TSA Input'!J3234=\"\",\"\",IF(OR('TSA Input'!J3234=\"Yes\",'TSA Input'!J3234=\"Contingent\"),'TSA Input'!D3234,\"\"))","v":""},{"$f":"IF('TSA Input'!J3234=\"\",\"\",IF(OR('TSA Input'!J3234=\"Yes\",'TSA Input'!J3234=\"Contingent\"),'TSA Input'!G3234,\"\"))","v":""},{"$f":"IF('TSA Input'!J3234=\"\",\"\",IF(OR('TSA Input'!J3234=\"Yes\",'TSA Input'!J3234=\"Contingent\"),'TSA Input'!F3234,\"\"))","v":""},"","Required","Required"]
["",null,{"$f":"IF('TSA Input'!J3235=\"\",\"\",IF(OR('TSA Input'!J3235=\"Yes\",'TSA Input'!J3235=\"Contingent\"),'TSA Input'!B3235,\"Ineligible\"))","v":""},{"$f":"IF('TSA Input'!J3235=\"\",\"\",IF(OR('TSA Input'!J3235=\"Yes\",'TSA Input'!J3235=\"Contingent\"),'TSA Input'!I3235,\"\"))","v":""},{"$f":"IF('TSA Input'!J3235=\"\",\"\",IF(OR('TSA Input'!J3235=\"Yes\",'TSA Input'!J3235=\"Contingent\"),'TSA Input'!C3235,\"\"))","v":""},{"$f":"IF('TSA Input'!J3235=\"\",\"\",IF(OR('TSA Input'!J3235=\"Yes\",'TSA Input'!J3235=\"Contingent\"),'TSA Input'!D3235,\"\"))","v":""},{"$f":"IF('TSA Input'!J3235=\"\",\"\",IF(OR('TSA Input'!J3235=\"Yes\",'TSA Input'!J3235=\"Contingent\"),'TSA Input'!G3235,\"\"))","v":""},{"$f":"IF('TSA Input'!J3235=\"\",\"\",IF(OR('TSA Input'!J3235=\"Yes\",'TSA Input'!J3235=\"Contingent\"),'TSA Input'!F3235,\"\"))","v":""},"",{"$f":"IF('TSA Input'!J3235=\"\",\"\",IF(OR('TSA Input'!J3235=\"Yes\",'TSA Input'!J3235=\"Contingent\"),'TSA Input'!D3235,\"\"))","v":""},{"$f":"IF('TSA Input'!J3235=\"\",\"\",IF(OR('TSA Input'!J3235=\"Yes\",'TSA Input'!J3235=\"Contingent\"),'TSA Input'!G3235,\"\"))","v":""},{"$f":"IF('TSA Input'!J3235=\"\",\"\",IF(OR('TSA Input'!J3235=\"Yes\",'TSA Input'!J3235=\"Contingent\"),'TSA Input'!F3235,\"\"))","v":""},"","Required","Required"]
["",null,{"$f":"IF('TSA Input'!J3236=\"\",\"\",IF(OR('TSA Input'!J3236=\"Yes\",'TSA Input'!J3236=\"Contingent\"),'TSA Input'!B3236,\"Ineligible\"))","v":""},{"$f":"IF('TSA Input'!J3236=\"\",\"\",IF(OR('TSA Input'!J3236=\"Yes\",'TSA Input'!J3236=\"Contingent\"),'TSA Input'!I3236,\"\"))","v":""},{"$f":"IF('TSA Input'!J3236=\"\",\"\",IF(OR('TSA Input'!J3236=\"Yes\",'TSA Input'!J3236=\"Contingent\"),'TSA Input'!C3236,\"\"))","v":""},{"$f":"IF('TSA Input'!J3236=\"\",\"\",IF(OR('TSA Input'!J3236=\"Yes\",'TSA Input'!J3236=\"Contingent\"),'TSA Input'!D3236,\"\"))","v":""},{"$f":"IF('TSA Input'!J3236=\"\",\"\",IF(OR('TSA Input'!J3236=\"Yes\",'TSA Input'!J3236=\"Contingent\"),'TSA Input'!G3236,\"\"))","v":""},{"$f":"IF('TSA Input'!J3236=\"\",\"\",IF(OR('TSA Input'!J3236=\"Yes\",'TSA Input'!J3236=\"Contingent\"),'TSA Input'!F3236,\"\"))","v":""},"",{"$f":"IF('TSA Input'!J3236=\"\",\"\",IF(OR('TSA Input'!J3236=\"Yes\",'TSA Input'!J3236=\"Contingent\"),'TSA Input'!D3236,\"\"))","v":""},{"$f":"IF('TSA Input'!J3236=\"\",\"\",IF(OR('TSA Input'!J3236=\"Yes\",'TSA Input'!J3236=\"Contingent\"),'TSA Input'!G3236,\"\"))","v":""},{"$f":"IF('TSA Input'!J3236=\"\",\"\",IF(OR('TSA Input'!J3236=\"Yes\",'TSA Input'!J3236=\"Contingent\"),'TSA Input'!F3236,\"\"))","v":""},"","Required","Required"]
["",null,{"$f":"IF('TSA Input'!J3237=\"\",\"\",IF(OR('TSA Input'!J3237=\"Yes\",'TSA Input'!J3237=\"Contingent\"),'TSA Input'!B3237,\"Ineligible\"))","v":""},{"$f":"IF('TSA Input'!J3237=\"\",\"\",IF(OR('TSA Input'!J3237=\"Yes\",'TSA Input'!J3237=\"Contingent\"),'TSA Input'!I3237,\"\"))","v":""},{"$f":"IF('TSA Input'!J3237=\"\",\"\",IF(OR('TSA Input'!J3237=\"Yes\",'TSA Input'!J3237=\"Contingent\"),'TSA Input'!C3237,\"\"))","v":""},{"$f":"IF('TSA Input'!J3237=\"\",\"\",IF(OR('TSA Input'!J3237=\"Yes\",'TSA Input'!J3237=\"Contingent\"),'TSA Input'!D3237,\"\"))","v":""},{"$f":"IF('TSA Input'!J3237=\"\",\"\",IF(OR('TSA Input'!J3237=\"Yes\",'TSA Input'!J3237=\"Contingent\"),'TSA Input'!G3237,\"\"))","v":""},{"$f":"IF('TSA Input'!J3237=\"\",\"\",IF(OR('TSA Input'!J3237=\"Yes\",'TSA Input'!J3237=\"Contingent\"),'TSA Input'!F3237,\"\"))","v":""},"",{"$f":"IF('TSA Input'!J3237=\"\",\"\",IF(OR('TSA Input'!J3237=\"Yes\",'TSA Input'!J3237=\"Contingent\"),'TSA Input'!D3237,\"\"))","v":""},{"$f":"IF('TSA Input'!J3237=\"\",\"\",IF(OR('TSA Input'!J3237=\"Yes\",'TSA Input'!J3237=\"Contingent\"),'TSA Input'!G3237,\"\"))","v":""},{"$f":"IF('TSA Input'!J3237=\"\",\"\",IF(OR('TSA Input'!J3237=\"Yes\",'TSA Input'!J3237=\"Contingent\"),'TSA Input'!F3237,\"\"))","v":""},"","Required","Required"]
["",null,{"$f":"IF('TSA Input'!J3238=\"\",\"\",IF(OR('TSA Input'!J3238=\"Yes\",'TSA Input'!J3238=\"Contingent\"),'TSA Input'!B3238,\"Ineligible\"))","v":""},{"$f":"IF('TSA Input'!J3238=\"\",\"\",IF(OR('TSA Input'!J3238=\"Yes\",'TSA Input'!J3238=\"Contingent\"),'TSA Input'!I3238,\"\"))","v":""},{"$f":"IF('TSA Input'!J3238=\"\",\"\",IF(OR('TSA Input'!J3238=\"Yes\",'TSA Input'!J3238=\"Contingent\"),'TSA Input'!C3238,\"\"))","v":""},{"$f":"IF('TSA Input'!J3238=\"\",\"\",IF(OR('TSA Input'!J3238=\"Yes\",'TSA Input'!J3238=\"Contingent\"),'TSA Input'!D3238,\"\"))","v":""},{"$f":"IF('TSA Input'!J3238=\"\",\"\",IF(OR('TSA Input'!J3238=\"Yes\",'TSA Input'!J3238=\"Contingent\"),'TSA Input'!G3238,\"\"))","v":""},{"$f":"IF('TSA Input'!J3238=\"\",\"\",IF(OR('TSA Input'!J3238=\"Yes\",'TSA Input'!J3238=\"Contingent\"),'TSA Input'!F3238,\"\"))","v":""},"",{"$f":"IF('TSA Input'!J3238=\"\",\"\",IF(OR('TSA Input'!J3238=\"Yes\",'TSA Input'!J3238=\"Contingent\"),'TSA Input'!D3238,\"\"))","v":""},{"$f":"IF('TSA Input'!J3238=\"\",\"\",IF(OR('TSA Input'!J3238=\"Yes\",'TSA Input'!J3238=\"Contingent\"),'TSA Input'!G3238,\"\"))","v":""},{"$f":"IF('TSA Input'!J3238=\"\",\"\",IF(OR('TSA Input'!J3238=\"Yes\",'TSA Input'!J3238=\"Contingent\"),'TSA Input'!F3238,\"\"))","v":""},"","Required","Required"]
["",null,{"$f":"IF('TSA Input'!J3239=\"\",\"\",IF(OR('TSA Input'!J3239=\"Yes\",'TSA Input'!J3239=\"Contingent\"),'TSA Input'!B3239,\"Ineligible\"))","v":""},{"$f":"IF('TSA Input'!J3239=\"\",\"\",IF(OR('TSA Input'!J3239=\"Yes\",'TSA Input'!J3239=\"Contingent\"),'TSA Input'!I3239,\"\"))","v":""},{"$f":"IF('TSA Input'!J3239=\"\",\"\",IF(OR('TSA Input'!J3239=\"Yes\",'TSA Input'!J3239=\"Contingent\"),'TSA Input'!C3239,\"\"))","v":""},{"$f":"IF('TSA Input'!J3239=\"\",\"\",IF(OR('TSA Input'!J3239=\"Yes\",'TSA Input'!J3239=\"Contingent\"),'TSA Input'!D3239,\"\"))","v":""},{"$f":"IF('TSA Input'!J3239=\"\",\"\",IF(OR('TSA Input'!J3239=\"Yes\",'TSA Input'!J3239=\"Contingent\"),'TSA Input'!G3239,\"\"))","v":""},{"$f":"IF('TSA Input'!J3239=\"\",\"\",IF(OR('TSA Input'!J3239=\"Yes\",'TSA Input'!J3239=\"Contingent\"),'TSA Input'!F3239,\"\"))","v":""},"",{"$f":"IF('TSA Input'!J3239=\"\",\"\",IF(OR('TSA Input'!J3239=\"Yes\",'TSA Input'!J3239=\"Contingent\"),'TSA Input'!D3239,\"\"))","v":""},{"$f":"IF('TSA Input'!J3239=\"\",\"\",IF(OR('TSA Input'!J3239=\"Yes\",'TSA Input'!J3239=\"Contingent\"),'TSA Input'!G3239,\"\"))","v":""},{"$f":"IF('TSA Input'!J3239=\"\",\"\",IF(OR('TSA Input'!J3239=\"Yes\",'TSA Input'!J3239=\"Contingent\"),'TSA Input'!F3239,\"\"))","v":""},"","Required","Required"]
["",null,{"$f":"IF('TSA Input'!J3240=\"\",\"\",IF(OR('TSA Input'!J3240=\"Yes\",'TSA Input'!J3240=\"Contingent\"),'TSA Input'!B3240,\"Ineligible\"))","v":""},{"$f":"IF('TSA Input'!J3240=\"\",\"\",IF(OR('TSA Input'!J3240=\"Yes\",'TSA Input'!J3240=\"Contingent\"),'TSA Input'!I3240,\"\"))","v":""},{"$f":"IF('TSA Input'!J3240=\"\",\"\",IF(OR('TSA Input'!J3240=\"Yes\",'TSA Input'!J3240=\"Contingent\"),'TSA Input'!C3240,\"\"))","v":""},{"$f":"IF('TSA Input'!J3240=\"\",\"\",IF(OR('TSA Input'!J3240=\"Yes\",'TSA Input'!J3240=\"Contingent\"),'TSA Input'!D3240,\"\"))","v":""},{"$f":"IF('TSA Input'!J3240=\"\",\"\",IF(OR('TSA Input'!J3240=\"Yes\",'TSA Input'!J3240=\"Contingent\"),'TSA Input'!G3240,\"\"))","v":""},{"$f":"IF('TSA Input'!J3240=\"\",\"\",IF(OR('TSA Input'!J3240=\"Yes\",'TSA Input'!J3240=\"Contingent\"),'TSA Input'!F3240,\"\"))","v":""},"",{"$f":"IF('TSA Input'!J3240=\"\",\"\",IF(OR('TSA Input'!J3240=\"Yes\",'TSA Input'!J3240=\"Contingent\"),'TSA Input'!D3240,\"\"))","v":""},{"$f":"IF('TSA Input'!J3240=\"\",\"\",IF(OR('TSA Input'!J3240=\"Yes\",'TSA Input'!J3240=\"Contingent\"),'TSA Input'!G3240,\"\"))","v":""},{"$f":"IF('TSA Input'!J3240=\"\",\"\",IF(OR('TSA Input'!J3240=\"Yes\",'TSA Input'!J3240=\"Contingent\"),'TSA Input'!F3240,\"\"))","v":""},"","Required","Required"]
["",null,{"$f":"IF('TSA Input'!J3241=\"\",\"\",IF(OR('TSA Input'!J3241=\"Yes\",'TSA Input'!J3241=\"Contingent\"),'TSA Input'!B3241,\"Ineligible\"))","v":""},{"$f":"IF('TSA Input'!J3241=\"\",\"\",IF(OR('TSA Input'!J3241=\"Yes\",'TSA Input'!J3241=\"Contingent\"),'TSA Input'!I3241,\"\"))","v":""},{"$f":"IF('TSA Input'!J3241=\"\",\"\",IF(OR('TSA Input'!J3241=\"Yes\",'TSA Input'!J3241=\"Contingent\"),'TSA Input'!C3241,\"\"))","v":""},{"$f":"IF('TSA Input'!J3241=\"\",\"\",IF(OR('TSA Input'!J3241=\"Yes\",'TSA Input'!J3241=\"Contingent\"),'TSA Input'!D3241,\"\"))","v":""},{"$f":"IF('TSA Input'!J3241=\"\",\"\",IF(OR('TSA Input'!J3241=\"Yes\",'TSA Input'!J3241=\"Contingent\"),'TSA Input'!G3241,\"\"))","v":""},{"$f":"IF('TSA Input'!J3241=\"\",\"\",IF(OR('TSA Input'!J3241=\"Yes\",'TSA Input'!J3241=\"Contingent\"),'TSA Input'!F3241,\"\"))","v":""},"",{"$f":"IF('TSA Input'!J3241=\"\",\"\",IF(OR('TSA Input'!J3241=\"Yes\",'TSA Input'!J3241=\"Contingent\"),'TSA Input'!D3241,\"\"))","v":""},{"$f":"IF('TSA Input'!J3241=\"\",\"\",IF(OR('TSA Input'!J3241=\"Yes\",'TSA Input'!J3241=\"Contingent\"),'TSA Input'!G3241,\"\"))","v":""},{"$f":"IF('TSA Input'!J3241=\"\",\"\",IF(OR('TSA Input'!J3241=\"Yes\",'TSA Input'!J3241=\"Contingent\"),'TSA Input'!F3241,\"\"))","v":""},"","Required","Required"]
["",null,{"$f":"IF('TSA Input'!J3242=\"\",\"\",IF(OR('TSA Input'!J3242=\"Yes\",'TSA Input'!J3242=\"Contingent\"),'TSA Input'!B3242,\"Ineligible\"))","v":""},{"$f":"IF('TSA Input'!J3242=\"\",\"\",IF(OR('TSA Input'!J3242=\"Yes\",'TSA Input'!J3242=\"Contingent\"),'TSA Input'!I3242,\"\"))","v":""},{"$f":"IF('TSA Input'!J3242=\"\",\"\",IF(OR('TSA Input'!J3242=\"Yes\",'TSA Input'!J3242=\"Contingent\"),'TSA Input'!C3242,\"\"))","v":""},{"$f":"IF('TSA Input'!J3242=\"\",\"\",IF(OR('TSA Input'!J3242=\"Yes\",'TSA Input'!J3242=\"Contingent\"),'TSA Input'!D3242,\"\"))","v":""},{"$f":"IF('TSA Input'!J3242=\"\",\"\",IF(OR('TSA Input'!J3242=\"Yes\",'TSA Input'!J3242=\"Contingent\"),'TSA Input'!G3242,\"\"))","v":""},{"$f":"IF('TSA Input'!J3242=\"\",\"\",IF(OR('TSA Input'!J3242=\"Yes\",'TSA Input'!J3242=\"Contingent\"),'TSA Input'!F3242,\"\"))","v":""},"",{"$f":"IF('TSA Input'!J3242=\"\",\"\",IF(OR('TSA Input'!J3242=\"Yes\",'TSA Input'!J3242=\"Contingent\"),'TSA Input'!D3242,\"\"))","v":""},{"$f":"IF('TSA Input'!J3242=\"\",\"\",IF(OR('TSA Input'!J3242=\"Yes\",'TSA Input'!J3242=\"Contingent\"),'TSA Input'!G3242,\"\"))","v":""},{"$f":"IF('TSA Input'!J3242=\"\",\"\",IF(OR('TSA Input'!J3242=\"Yes\",'TSA Input'!J3242=\"Contingent\"),'TSA Input'!F3242,\"\"))","v":""},"","Required","Required"]
["",null,{"$f":"IF('TSA Input'!J3243=\"\",\"\",IF(OR('TSA Input'!J3243=\"Yes\",'TSA Input'!J3243=\"Contingent\"),'TSA Input'!B3243,\"Ineligible\"))","v":""},{"$f":"IF('TSA Input'!J3243=\"\",\"\",IF(OR('TSA Input'!J3243=\"Yes\",'TSA Input'!J3243=\"Contingent\"),'TSA Input'!I3243,\"\"))","v":""},{"$f":"IF('TSA Input'!J3243=\"\",\"\",IF(OR('TSA Input'!J3243=\"Yes\",'TSA Input'!J3243=\"Contingent\"),'TSA Input'!C3243,\"\"))","v":""},{"$f":"IF('TSA Input'!J3243=\"\",\"\",IF(OR('TSA Input'!J3243=\"Yes\",'TSA Input'!J3243=\"Contingent\"),'TSA Input'!D3243,\"\"))","v":""},{"$f":"IF('TSA Input'!J3243=\"\",\"\",IF(OR('TSA Input'!J3243=\"Yes\",'TSA Input'!J3243=\"Contingent\"),'TSA Input'!G3243,\"\"))","v":""},{"$f":"IF('TSA Input'!J3243=\"\",\"\",IF(OR('TSA Input'!J3243=\"Yes\",'TSA Input'!J3243=\"Contingent\"),'TSA Input'!F3243,\"\"))","v":""},"",{"$f":"IF('TSA Input'!J3243=\"\",\"\",IF(OR('TSA Input'!J3243=\"Yes\",'TSA Input'!J3243=\"Contingent\"),'TSA Input'!D3243,\"\"))","v":""},{"$f":"IF('TSA Input'!J3243=\"\",\"\",IF(OR('TSA Input'!J3243=\"Yes\",'TSA Input'!J3243=\"Contingent\"),'TSA Input'!G3243,\"\"))","v":""},{"$f":"IF('TSA Input'!J3243=\"\",\"\",IF(OR('TSA Input'!J3243=\"Yes\",'TSA Input'!J3243=\"Contingent\"),'TSA Input'!F3243,\"\"))","v":""},"","Required","Required"]
["",null,{"$f":"IF('TSA Input'!J3244=\"\",\"\",IF(OR('TSA Input'!J3244=\"Yes\",'TSA Input'!J3244=\"Contingent\"),'TSA Input'!B3244,\"Ineligible\"))","v":""},{"$f":"IF('TSA Input'!J3244=\"\",\"\",IF(OR('TSA Input'!J3244=\"Yes\",'TSA Input'!J3244=\"Contingent\"),'TSA Input'!I3244,\"\"))","v":""},{"$f":"IF('TSA Input'!J3244=\"\",\"\",IF(OR('TSA Input'!J3244=\"Yes\",'TSA Input'!J3244=\"Contingent\"),'TSA Input'!C3244,\"\"))","v":""},{"$f":"IF('TSA Input'!J3244=\"\",\"\",IF(OR('TSA Input'!J3244=\"Yes\",'TSA Input'!J3244=\"Contingent\"),'TSA Input'!D3244,\"\"))","v":""},{"$f":"IF('TSA Input'!J3244=\"\",\"\",IF(OR('TSA Input'!J3244=\"Yes\",'TSA Input'!J3244=\"Contingent\"),'TSA Input'!G3244,\"\"))","v":""},{"$f":"IF('TSA Input'!J3244=\"\",\"\",IF(OR('TSA Input'!J3244=\"Yes\",'TSA Input'!J3244=\"Contingent\"),'TSA Input'!F3244,\"\"))","v":""},"",{"$f":"IF('TSA Input'!J3244=\"\",\"\",IF(OR('TSA Input'!J3244=\"Yes\",'TSA Input'!J3244=\"Contingent\"),'TSA Input'!D3244,\"\"))","v":""},{"$f":"IF('TSA Input'!J3244=\"\",\"\",IF(OR('TSA Input'!J3244=\"Yes\",'TSA Input'!J3244=\"Contingent\"),'TSA Input'!G3244,\"\"))","v":""},{"$f":"IF('TSA Input'!J3244=\"\",\"\",IF(OR('TSA Input'!J3244=\"Yes\",'TSA Input'!J3244=\"Contingent\"),'TSA Input'!F3244,\"\"))","v":""},"","Required","Required"]
["",null,{"$f":"IF('TSA Input'!J3245=\"\",\"\",IF(OR('TSA Input'!J3245=\"Yes\",'TSA Input'!J3245=\"Contingent\"),'TSA Input'!B3245,\"Ineligible\"))","v":""},{"$f":"IF('TSA Input'!J3245=\"\",\"\",IF(OR('TSA Input'!J3245=\"Yes\",'TSA Input'!J3245=\"Contingent\"),'TSA Input'!I3245,\"\"))","v":""},{"$f":"IF('TSA Input'!J3245=\"\",\"\",IF(OR('TSA Input'!J3245=\"Yes\",'TSA Input'!J3245=\"Contingent\"),'TSA Input'!C3245,\"\"))","v":""},{"$f":"IF('TSA Input'!J3245=\"\",\"\",IF(OR('TSA Input'!J3245=\"Yes\",'TSA Input'!J3245=\"Contingent\"),'TSA Input'!D3245,\"\"))","v":""},{"$f":"IF('TSA Input'!J3245=\"\",\"\",IF(OR('TSA Input'!J3245=\"Yes\",'TSA Input'!J3245=\"Contingent\"),'TSA Input'!G3245,\"\"))","v":""},{"$f":"IF('TSA Input'!J3245=\"\",\"\",IF(OR('TSA Input'!J3245=\"Yes\",'TSA Input'!J3245=\"Contingent\"),'TSA Input'!F3245,\"\"))","v":""},"",{"$f":"IF('TSA Input'!J3245=\"\",\"\",IF(OR('TSA Input'!J3245=\"Yes\",'TSA Input'!J3245=\"Contingent\"),'TSA Input'!D3245,\"\"))","v":""},{"$f":"IF('TSA Input'!J3245=\"\",\"\",IF(OR('TSA Input'!J3245=\"Yes\",'TSA Input'!J3245=\"Contingent\"),'TSA Input'!G3245,\"\"))","v":""},{"$f":"IF('TSA Input'!J3245=\"\",\"\",IF(OR('TSA Input'!J3245=\"Yes\",'TSA Input'!J3245=\"Contingent\"),'TSA Input'!F3245,\"\"))","v":""},"","Required","Required"]
["",null,{"$f":"IF('TSA Input'!J3246=\"\",\"\",IF(OR('TSA Input'!J3246=\"Yes\",'TSA Input'!J3246=\"Contingent\"),'TSA Input'!B3246,\"Ineligible\"))","v":""},{"$f":"IF('TSA Input'!J3246=\"\",\"\",IF(OR('TSA Input'!J3246=\"Yes\",'TSA Input'!J3246=\"Contingent\"),'TSA Input'!I3246,\"\"))","v":""},{"$f":"IF('TSA Input'!J3246=\"\",\"\",IF(OR('TSA Input'!J3246=\"Yes\",'TSA Input'!J3246=\"Contingent\"),'TSA Input'!C3246,\"\"))","v":""},{"$f":"IF('TSA Input'!J3246=\"\",\"\",IF(OR('TSA Input'!J3246=\"Yes\",'TSA Input'!J3246=\"Contingent\"),'TSA Input'!D3246,\"\"))","v":""},{"$f":"IF('TSA Input'!J3246=\"\",\"\",IF(OR('TSA Input'!J3246=\"Yes\",'TSA Input'!J3246=\"Contingent\"),'TSA Input'!G3246,\"\"))","v":""},{"$f":"IF('TSA Input'!J3246=\"\",\"\",IF(OR('TSA Input'!J3246=\"Yes\",'TSA Input'!J3246=\"Contingent\"),'TSA Input'!F3246,\"\"))","v":""},"",{"$f":"IF('TSA Input'!J3246=\"\",\"\",IF(OR('TSA Input'!J3246=\"Yes\",'TSA Input'!J3246=\"Contingent\"),'TSA Input'!D3246,\"\"))","v":""},{"$f":"IF('TSA Input'!J3246=\"\",\"\",IF(OR('TSA Input'!J3246=\"Yes\",'TSA Input'!J3246=\"Contingent\"),'TSA Input'!G3246,\"\"))","v":""},{"$f":"IF('TSA Input'!J3246=\"\",\"\",IF(OR('TSA Input'!J3246=\"Yes\",'TSA Input'!J3246=\"Contingent\"),'TSA Input'!F3246,\"\"))","v":""},"","Required","Required"]
["",null,{"$f":"IF('TSA Input'!J3247=\"\",\"\",IF(OR('TSA Input'!J3247=\"Yes\",'TSA Input'!J3247=\"Contingent\"),'TSA Input'!B3247,\"Ineligible\"))","v":""},{"$f":"IF('TSA Input'!J3247=\"\",\"\",IF(OR('TSA Input'!J3247=\"Yes\",'TSA Input'!J3247=\"Contingent\"),'TSA Input'!I3247,\"\"))","v":""},{"$f":"IF('TSA Input'!J3247=\"\",\"\",IF(OR('TSA Input'!J3247=\"Yes\",'TSA Input'!J3247=\"Contingent\"),'TSA Input'!C3247,\"\"))","v":""},{"$f":"IF('TSA Input'!J3247=\"\",\"\",IF(OR('TSA Input'!J3247=\"Yes\",'TSA Input'!J3247=\"Contingent\"),'TSA Input'!D3247,\"\"))","v":""},{"$f":"IF('TSA Input'!J3247=\"\",\"\",IF(OR('TSA Input'!J3247=\"Yes\",'TSA Input'!J3247=\"Contingent\"),'TSA Input'!G3247,\"\"))","v":""},{"$f":"IF('TSA Input'!J3247=\"\",\"\",IF(OR('TSA Input'!J3247=\"Yes\",'TSA Input'!J3247=\"Contingent\"),'TSA Input'!F3247,\"\"))","v":""},"",{"$f":"IF('TSA Input'!J3247=\"\",\"\",IF(OR('TSA Input'!J3247=\"Yes\",'TSA Input'!J3247=\"Contingent\"),'TSA Input'!D3247,\"\"))","v":""},{"$f":"IF('TSA Input'!J3247=\"\",\"\",IF(OR('TSA Input'!J3247=\"Yes\",'TSA Input'!J3247=\"Contingent\"),'TSA Input'!G3247,\"\"))","v":""},{"$f":"IF('TSA Input'!J3247=\"\",\"\",IF(OR('TSA Input'!J3247=\"Yes\",'TSA Input'!J3247=\"Contingent\"),'TSA Input'!F3247,\"\"))","v":""},"","Required","Required"]
["",null,{"$f":"IF('TSA Input'!J3248=\"\",\"\",IF(OR('TSA Input'!J3248=\"Yes\",'TSA Input'!J3248=\"Contingent\"),'TSA Input'!B3248,\"Ineligible\"))","v":""},{"$f":"IF('TSA Input'!J3248=\"\",\"\",IF(OR('TSA Input'!J3248=\"Yes\",'TSA Input'!J3248=\"Contingent\"),'TSA Input'!I3248,\"\"))","v":""},{"$f":"IF('TSA Input'!J3248=\"\",\"\",IF(OR('TSA Input'!J3248=\"Yes\",'TSA Input'!J3248=\"Contingent\"),'TSA Input'!C3248,\"\"))","v":""},{"$f":"IF('TSA Input'!J3248=\"\",\"\",IF(OR('TSA Input'!J3248=\"Yes\",'TSA Input'!J3248=\"Contingent\"),'TSA Input'!D3248,\"\"))","v":""},{"$f":"IF('TSA Input'!J3248=\"\",\"\",IF(OR('TSA Input'!J3248=\"Yes\",'TSA Input'!J3248=\"Contingent\"),'TSA Input'!G3248,\"\"))","v":""},{"$f":"IF('TSA Input'!J3248=\"\",\"\",IF(OR('TSA Input'!J3248=\"Yes\",'TSA Input'!J3248=\"Contingent\"),'TSA Input'!F3248,\"\"))","v":""},"",{"$f":"IF('TSA Input'!J3248=\"\",\"\",IF(OR('TSA Input'!J3248=\"Yes\",'TSA Input'!J3248=\"Contingent\"),'TSA Input'!D3248,\"\"))","v":""},{"$f":"IF('TSA Input'!J3248=\"\",\"\",IF(OR('TSA Input'!J3248=\"Yes\",'TSA Input'!J3248=\"Contingent\"),'TSA Input'!G3248,\"\"))","v":""},{"$f":"IF('TSA Input'!J3248=\"\",\"\",IF(OR('TSA Input'!J3248=\"Yes\",'TSA Input'!J3248=\"Contingent\"),'TSA Input'!F3248,\"\"))","v":""},"","Required","Required"]
["",null,{"$f":"IF('TSA Input'!J3249=\"\",\"\",IF(OR('TSA Input'!J3249=\"Yes\",'TSA Input'!J3249=\"Contingent\"),'TSA Input'!B3249,\"Ineligible\"))","v":""},{"$f":"IF('TSA Input'!J3249=\"\",\"\",IF(OR('TSA Input'!J3249=\"Yes\",'TSA Input'!J3249=\"Contingent\"),'TSA Input'!I3249,\"\"))","v":""},{"$f":"IF('TSA Input'!J3249=\"\",\"\",IF(OR('TSA Input'!J3249=\"Yes\",'TSA Input'!J3249=\"Contingent\"),'TSA Input'!C3249,\"\"))","v":""},{"$f":"IF('TSA Input'!J3249=\"\",\"\",IF(OR('TSA Input'!J3249=\"Yes\",'TSA Input'!J3249=\"Contingent\"),'TSA Input'!D3249,\"\"))","v":""},{"$f":"IF('TSA Input'!J3249=\"\",\"\",IF(OR('TSA Input'!J3249=\"Yes\",'TSA Input'!J3249=\"Contingent\"),'TSA Input'!G3249,\"\"))","v":""},{"$f":"IF('TSA Input'!J3249=\"\",\"\",IF(OR('TSA Input'!J3249=\"Yes\",'TSA Input'!J3249=\"Contingent\"),'TSA Input'!F3249,\"\"))","v":""},"",{"$f":"IF('TSA Input'!J3249=\"\",\"\",IF(OR('TSA Input'!J3249=\"Yes\",'TSA Input'!J3249=\"Contingent\"),'TSA Input'!D3249,\"\"))","v":""},{"$f":"IF('TSA Input'!J3249=\"\",\"\",IF(OR('TSA Input'!J3249=\"Yes\",'TSA Input'!J3249=\"Contingent\"),'TSA Input'!G3249,\"\"))","v":""},{"$f":"IF('TSA Input'!J3249=\"\",\"\",IF(OR('TSA Input'!J3249=\"Yes\",'TSA Input'!J3249=\"Contingent\"),'TSA Input'!F3249,\"\"))","v":""},"","Required","Required"]
["",null,{"$f":"IF('TSA Input'!J3250=\"\",\"\",IF(OR('TSA Input'!J3250=\"Yes\",'TSA Input'!J3250=\"Contingent\"),'TSA Input'!B3250,\"Ineligible\"))","v":""},{"$f":"IF('TSA Input'!J3250=\"\",\"\",IF(OR('TSA Input'!J3250=\"Yes\",'TSA Input'!J3250=\"Contingent\"),'TSA Input'!I3250,\"\"))","v":""},{"$f":"IF('TSA Input'!J3250=\"\",\"\",IF(OR('TSA Input'!J3250=\"Yes\",'TSA Input'!J3250=\"Contingent\"),'TSA Input'!C3250,\"\"))","v":""},{"$f":"IF('TSA Input'!J3250=\"\",\"\",IF(OR('TSA Input'!J3250=\"Yes\",'TSA Input'!J3250=\"Contingent\"),'TSA Input'!D3250,\"\"))","v":""},{"$f":"IF('TSA Input'!J3250=\"\",\"\",IF(OR('TSA Input'!J3250=\"Yes\",'TSA Input'!J3250=\"Contingent\"),'TSA Input'!G3250,\"\"))","v":""},{"$f":"IF('TSA Input'!J3250=\"\",\"\",IF(OR('TSA Input'!J3250=\"Yes\",'TSA Input'!J3250=\"Contingent\"),'TSA Input'!F3250,\"\"))","v":""},"",{"$f":"IF('TSA Input'!J3250=\"\",\"\",IF(OR('TSA Input'!J3250=\"Yes\",'TSA Input'!J3250=\"Contingent\"),'TSA Input'!D3250,\"\"))","v":""},{"$f":"IF('TSA Input'!J3250=\"\",\"\",IF(OR('TSA Input'!J3250=\"Yes\",'TSA Input'!J3250=\"Contingent\"),'TSA Input'!G3250,\"\"))","v":""},{"$f":"IF('TSA Input'!J3250=\"\",\"\",IF(OR('TSA Input'!J3250=\"Yes\",'TSA Input'!J3250=\"Contingent\"),'TSA Input'!F3250,\"\"))","v":""},"","Required","Required"]
["",null,{"$f":"IF('TSA Input'!J3251=\"\",\"\",IF(OR('TSA Input'!J3251=\"Yes\",'TSA Input'!J3251=\"Contingent\"),'TSA Input'!B3251,\"Ineligible\"))","v":""},{"$f":"IF('TSA Input'!J3251=\"\",\"\",IF(OR('TSA Input'!J3251=\"Yes\",'TSA Input'!J3251=\"Contingent\"),'TSA Input'!I3251,\"\"))","v":""},{"$f":"IF('TSA Input'!J3251=\"\",\"\",IF(OR('TSA Input'!J3251=\"Yes\",'TSA Input'!J3251=\"Contingent\"),'TSA Input'!C3251,\"\"))","v":""},{"$f":"IF('TSA Input'!J3251=\"\",\"\",IF(OR('TSA Input'!J3251=\"Yes\",'TSA Input'!J3251=\"Contingent\"),'TSA Input'!D3251,\"\"))","v":""},{"$f":"IF('TSA Input'!J3251=\"\",\"\",IF(OR('TSA Input'!J3251=\"Yes\",'TSA Input'!J3251=\"Contingent\"),'TSA Input'!G3251,\"\"))","v":""},{"$f":"IF('TSA Input'!J3251=\"\",\"\",IF(OR('TSA Input'!J3251=\"Yes\",'TSA Input'!J3251=\"Contingent\"),'TSA Input'!F3251,\"\"))","v":""},"",{"$f":"IF('TSA Input'!J3251=\"\",\"\",IF(OR('TSA Input'!J3251=\"Yes\",'TSA Input'!J3251=\"Contingent\"),'TSA Input'!D3251,\"\"))","v":""},{"$f":"IF('TSA Input'!J3251=\"\",\"\",IF(OR('TSA Input'!J3251=\"Yes\",'TSA Input'!J3251=\"Contingent\"),'TSA Input'!G3251,\"\"))","v":""},{"$f":"IF('TSA Input'!J3251=\"\",\"\",IF(OR('TSA Input'!J3251=\"Yes\",'TSA Input'!J3251=\"Contingent\"),'TSA Input'!F3251,\"\"))","v":""},"","Required","Required"]
["",null,{"$f":"IF('TSA Input'!J3252=\"\",\"\",IF(OR('TSA Input'!J3252=\"Yes\",'TSA Input'!J3252=\"Contingent\"),'TSA Input'!B3252,\"Ineligible\"))","v":""},{"$f":"IF('TSA Input'!J3252=\"\",\"\",IF(OR('TSA Input'!J3252=\"Yes\",'TSA Input'!J3252=\"Contingent\"),'TSA Input'!I3252,\"\"))","v":""},{"$f":"IF('TSA Input'!J3252=\"\",\"\",IF(OR('TSA Input'!J3252=\"Yes\",'TSA Input'!J3252=\"Contingent\"),'TSA Input'!C3252,\"\"))","v":""},{"$f":"IF('TSA Input'!J3252=\"\",\"\",IF(OR('TSA Input'!J3252=\"Yes\",'TSA Input'!J3252=\"Contingent\"),'TSA Input'!D3252,\"\"))","v":""},{"$f":"IF('TSA Input'!J3252=\"\",\"\",IF(OR('TSA Input'!J3252=\"Yes\",'TSA Input'!J3252=\"Contingent\"),'TSA Input'!G3252,\"\"))","v":""},{"$f":"IF('TSA Input'!J3252=\"\",\"\",IF(OR('TSA Input'!J3252=\"Yes\",'TSA Input'!J3252=\"Contingent\"),'TSA Input'!F3252,\"\"))","v":""},"",{"$f":"IF('TSA Input'!J3252=\"\",\"\",IF(OR('TSA Input'!J3252=\"Yes\",'TSA Input'!J3252=\"Contingent\"),'TSA Input'!D3252,\"\"))","v":""},{"$f":"IF('TSA Input'!J3252=\"\",\"\",IF(OR('TSA Input'!J3252=\"Yes\",'TSA Input'!J3252=\"Contingent\"),'TSA Input'!G3252,\"\"))","v":""},{"$f":"IF('TSA Input'!J3252=\"\",\"\",IF(OR('TSA Input'!J3252=\"Yes\",'TSA Input'!J3252=\"Contingent\"),'TSA Input'!F3252,\"\"))","v":""},"","Required","Required"]
["",null,{"$f":"IF('TSA Input'!J3253=\"\",\"\",IF(OR('TSA Input'!J3253=\"Yes\",'TSA Input'!J3253=\"Contingent\"),'TSA Input'!B3253,\"Ineligible\"))","v":""},{"$f":"IF('TSA Input'!J3253=\"\",\"\",IF(OR('TSA Input'!J3253=\"Yes\",'TSA Input'!J3253=\"Contingent\"),'TSA Input'!I3253,\"\"))","v":""},{"$f":"IF('TSA Input'!J3253=\"\",\"\",IF(OR('TSA Input'!J3253=\"Yes\",'TSA Input'!J3253=\"Contingent\"),'TSA Input'!C3253,\"\"))","v":""},{"$f":"IF('TSA Input'!J3253=\"\",\"\",IF(OR('TSA Input'!J3253=\"Yes\",'TSA Input'!J3253=\"Contingent\"),'TSA Input'!D3253,\"\"))","v":""},{"$f":"IF('TSA Input'!J3253=\"\",\"\",IF(OR('TSA Input'!J3253=\"Yes\",'TSA Input'!J3253=\"Contingent\"),'TSA Input'!G3253,\"\"))","v":""},{"$f":"IF('TSA Input'!J3253=\"\",\"\",IF(OR('TSA Input'!J3253=\"Yes\",'TSA Input'!J3253=\"Contingent\"),'TSA Input'!F3253,\"\"))","v":""},"",{"$f":"IF('TSA Input'!J3253=\"\",\"\",IF(OR('TSA Input'!J3253=\"Yes\",'TSA Input'!J3253=\"Contingent\"),'TSA Input'!D3253,\"\"))","v":""},{"$f":"IF('TSA Input'!J3253=\"\",\"\",IF(OR('TSA Input'!J3253=\"Yes\",'TSA Input'!J3253=\"Contingent\"),'TSA Input'!G3253,\"\"))","v":""},{"$f":"IF('TSA Input'!J3253=\"\",\"\",IF(OR('TSA Input'!J3253=\"Yes\",'TSA Input'!J3253=\"Contingent\"),'TSA Input'!F3253,\"\"))","v":""},"","Required","Required"]
["",null,{"$f":"IF('TSA Input'!J3254=\"\",\"\",IF(OR('TSA Input'!J3254=\"Yes\",'TSA Input'!J3254=\"Contingent\"),'TSA Input'!B3254,\"Ineligible\"))","v":""},{"$f":"IF('TSA Input'!J3254=\"\",\"\",IF(OR('TSA Input'!J3254=\"Yes\",'TSA Input'!J3254=\"Contingent\"),'TSA Input'!I3254,\"\"))","v":""},{"$f":"IF('TSA Input'!J3254=\"\",\"\",IF(OR('TSA Input'!J3254=\"Yes\",'TSA Input'!J3254=\"Contingent\"),'TSA Input'!C3254,\"\"))","v":""},{"$f":"IF('TSA Input'!J3254=\"\",\"\",IF(OR('TSA Input'!J3254=\"Yes\",'TSA Input'!J3254=\"Contingent\"),'TSA Input'!D3254,\"\"))","v":""},{"$f":"IF('TSA Input'!J3254=\"\",\"\",IF(OR('TSA Input'!J3254=\"Yes\",'TSA Input'!J3254=\"Contingent\"),'TSA Input'!G3254,\"\"))","v":""},{"$f":"IF('TSA Input'!J3254=\"\",\"\",IF(OR('TSA Input'!J3254=\"Yes\",'TSA Input'!J3254=\"Contingent\"),'TSA Input'!F3254,\"\"))","v":""},"",{"$f":"IF('TSA Input'!J3254=\"\",\"\",IF(OR('TSA Input'!J3254=\"Yes\",'TSA Input'!J3254=\"Contingent\"),'TSA Input'!D3254,\"\"))","v":""},{"$f":"IF('TSA Input'!J3254=\"\",\"\",IF(OR('TSA Input'!J3254=\"Yes\",'TSA Input'!J3254=\"Contingent\"),'TSA Input'!G3254,\"\"))","v":""},{"$f":"IF('TSA Input'!J3254=\"\",\"\",IF(OR('TSA Input'!J3254=\"Yes\",'TSA Input'!J3254=\"Contingent\"),'TSA Input'!F3254,\"\"))","v":""},"","Required","Required"]
["",null,{"$f":"IF('TSA Input'!J3255=\"\",\"\",IF(OR('TSA Input'!J3255=\"Yes\",'TSA Input'!J3255=\"Contingent\"),'TSA Input'!B3255,\"Ineligible\"))","v":""},{"$f":"IF('TSA Input'!J3255=\"\",\"\",IF(OR('TSA Input'!J3255=\"Yes\",'TSA Input'!J3255=\"Contingent\"),'TSA Input'!I3255,\"\"))","v":""},{"$f":"IF('TSA Input'!J3255=\"\",\"\",IF(OR('TSA Input'!J3255=\"Yes\",'TSA Input'!J3255=\"Contingent\"),'TSA Input'!C3255,\"\"))","v":""},{"$f":"IF('TSA Input'!J3255=\"\",\"\",IF(OR('TSA Input'!J3255=\"Yes\",'TSA Input'!J3255=\"Contingent\"),'TSA Input'!D3255,\"\"))","v":""},{"$f":"IF('TSA Input'!J3255=\"\",\"\",IF(OR('TSA Input'!J3255=\"Yes\",'TSA Input'!J3255=\"Contingent\"),'TSA Input'!G3255,\"\"))","v":""},{"$f":"IF('TSA Input'!J3255=\"\",\"\",IF(OR('TSA Input'!J3255=\"Yes\",'TSA Input'!J3255=\"Contingent\"),'TSA Input'!F3255,\"\"))","v":""},"",{"$f":"IF('TSA Input'!J3255=\"\",\"\",IF(OR('TSA Input'!J3255=\"Yes\",'TSA Input'!J3255=\"Contingent\"),'TSA Input'!D3255,\"\"))","v":""},{"$f":"IF('TSA Input'!J3255=\"\",\"\",IF(OR('TSA Input'!J3255=\"Yes\",'TSA Input'!J3255=\"Contingent\"),'TSA Input'!G3255,\"\"))","v":""},{"$f":"IF('TSA Input'!J3255=\"\",\"\",IF(OR('TSA Input'!J3255=\"Yes\",'TSA Input'!J3255=\"Contingent\"),'TSA Input'!F3255,\"\"))","v":""},"","Required","Required"]
["",null,{"$f":"IF('TSA Input'!J3256=\"\",\"\",IF(OR('TSA Input'!J3256=\"Yes\",'TSA Input'!J3256=\"Contingent\"),'TSA Input'!B3256,\"Ineligible\"))","v":""},{"$f":"IF('TSA Input'!J3256=\"\",\"\",IF(OR('TSA Input'!J3256=\"Yes\",'TSA Input'!J3256=\"Contingent\"),'TSA Input'!I3256,\"\"))","v":""},{"$f":"IF('TSA Input'!J3256=\"\",\"\",IF(OR('TSA Input'!J3256=\"Yes\",'TSA Input'!J3256=\"Contingent\"),'TSA Input'!C3256,\"\"))","v":""},{"$f":"IF('TSA Input'!J3256=\"\",\"\",IF(OR('TSA Input'!J3256=\"Yes\",'TSA Input'!J3256=\"Contingent\"),'TSA Input'!D3256,\"\"))","v":""},{"$f":"IF('TSA Input'!J3256=\"\",\"\",IF(OR('TSA Input'!J3256=\"Yes\",'TSA Input'!J3256=\"Contingent\"),'TSA Input'!G3256,\"\"))","v":""},{"$f":"IF('TSA Input'!J3256=\"\",\"\",IF(OR('TSA Input'!J3256=\"Yes\",'TSA Input'!J3256=\"Contingent\"),'TSA Input'!F3256,\"\"))","v":""},"",{"$f":"IF('TSA Input'!J3256=\"\",\"\",IF(OR('TSA Input'!J3256=\"Yes\",'TSA Input'!J3256=\"Contingent\"),'TSA Input'!D3256,\"\"))","v":""},{"$f":"IF('TSA Input'!J3256=\"\",\"\",IF(OR('TSA Input'!J3256=\"Yes\",'TSA Input'!J3256=\"Contingent\"),'TSA Input'!G3256,\"\"))","v":""},{"$f":"IF('TSA Input'!J3256=\"\",\"\",IF(OR('TSA Input'!J3256=\"Yes\",'TSA Input'!J3256=\"Contingent\"),'TSA Input'!F3256,\"\"))","v":""},"","Required","Required"]
["",null,{"$f":"IF('TSA Input'!J3257=\"\",\"\",IF(OR('TSA Input'!J3257=\"Yes\",'TSA Input'!J3257=\"Contingent\"),'TSA Input'!B3257,\"Ineligible\"))","v":""},{"$f":"IF('TSA Input'!J3257=\"\",\"\",IF(OR('TSA Input'!J3257=\"Yes\",'TSA Input'!J3257=\"Contingent\"),'TSA Input'!I3257,\"\"))","v":""},{"$f":"IF('TSA Input'!J3257=\"\",\"\",IF(OR('TSA Input'!J3257=\"Yes\",'TSA Input'!J3257=\"Contingent\"),'TSA Input'!C3257,\"\"))","v":""},{"$f":"IF('TSA Input'!J3257=\"\",\"\",IF(OR('TSA Input'!J3257=\"Yes\",'TSA Input'!J3257=\"Contingent\"),'TSA Input'!D3257,\"\"))","v":""},{"$f":"IF('TSA Input'!J3257=\"\",\"\",IF(OR('TSA Input'!J3257=\"Yes\",'TSA Input'!J3257=\"Contingent\"),'TSA Input'!G3257,\"\"))","v":""},{"$f":"IF('TSA Input'!J3257=\"\",\"\",IF(OR('TSA Input'!J3257=\"Yes\",'TSA Input'!J3257=\"Contingent\"),'TSA Input'!F3257,\"\"))","v":""},"",{"$f":"IF('TSA Input'!J3257=\"\",\"\",IF(OR('TSA Input'!J3257=\"Yes\",'TSA Input'!J3257=\"Contingent\"),'TSA Input'!D3257,\"\"))","v":""},{"$f":"IF('TSA Input'!J3257=\"\",\"\",IF(OR('TSA Input'!J3257=\"Yes\",'TSA Input'!J3257=\"Contingent\"),'TSA Input'!G3257,\"\"))","v":""},{"$f":"IF('TSA Input'!J3257=\"\",\"\",IF(OR('TSA Input'!J3257=\"Yes\",'TSA Input'!J3257=\"Contingent\"),'TSA Input'!F3257,\"\"))","v":""},"","Required","Required"]
["",null,{"$f":"IF('TSA Input'!J3258=\"\",\"\",IF(OR('TSA Input'!J3258=\"Yes\",'TSA Input'!J3258=\"Contingent\"),'TSA Input'!B3258,\"Ineligible\"))","v":""},{"$f":"IF('TSA Input'!J3258=\"\",\"\",IF(OR('TSA Input'!J3258=\"Yes\",'TSA Input'!J3258=\"Contingent\"),'TSA Input'!I3258,\"\"))","v":""},{"$f":"IF('TSA Input'!J3258=\"\",\"\",IF(OR('TSA Input'!J3258=\"Yes\",'TSA Input'!J3258=\"Contingent\"),'TSA Input'!C3258,\"\"))","v":""},{"$f":"IF('TSA Input'!J3258=\"\",\"\",IF(OR('TSA Input'!J3258=\"Yes\",'TSA Input'!J3258=\"Contingent\"),'TSA Input'!D3258,\"\"))","v":""},{"$f":"IF('TSA Input'!J3258=\"\",\"\",IF(OR('TSA Input'!J3258=\"Yes\",'TSA Input'!J3258=\"Contingent\"),'TSA Input'!G3258,\"\"))","v":""},{"$f":"IF('TSA Input'!J3258=\"\",\"\",IF(OR('TSA Input'!J3258=\"Yes\",'TSA Input'!J3258=\"Contingent\"),'TSA Input'!F3258,\"\"))","v":""},"",{"$f":"IF('TSA Input'!J3258=\"\",\"\",IF(OR('TSA Input'!J3258=\"Yes\",'TSA Input'!J3258=\"Contingent\"),'TSA Input'!D3258,\"\"))","v":""},{"$f":"IF('TSA Input'!J3258=\"\",\"\",IF(OR('TSA Input'!J3258=\"Yes\",'TSA Input'!J3258=\"Contingent\"),'TSA Input'!G3258,\"\"))","v":""},{"$f":"IF('TSA Input'!J3258=\"\",\"\",IF(OR('TSA Input'!J3258=\"Yes\",'TSA Input'!J3258=\"Contingent\"),'TSA Input'!F3258,\"\"))","v":""},"","Required","Required"]
["",null,{"$f":"IF('TSA Input'!J3259=\"\",\"\",IF(OR('TSA Input'!J3259=\"Yes\",'TSA Input'!J3259=\"Contingent\"),'TSA Input'!B3259,\"Ineligible\"))","v":""},{"$f":"IF('TSA Input'!J3259=\"\",\"\",IF(OR('TSA Input'!J3259=\"Yes\",'TSA Input'!J3259=\"Contingent\"),'TSA Input'!I3259,\"\"))","v":""},{"$f":"IF('TSA Input'!J3259=\"\",\"\",IF(OR('TSA Input'!J3259=\"Yes\",'TSA Input'!J3259=\"Contingent\"),'TSA Input'!C3259,\"\"))","v":""},{"$f":"IF('TSA Input'!J3259=\"\",\"\",IF(OR('TSA Input'!J3259=\"Yes\",'TSA Input'!J3259=\"Contingent\"),'TSA Input'!D3259,\"\"))","v":""},{"$f":"IF('TSA Input'!J3259=\"\",\"\",IF(OR('TSA Input'!J3259=\"Yes\",'TSA Input'!J3259=\"Contingent\"),'TSA Input'!G3259,\"\"))","v":""},{"$f":"IF('TSA Input'!J3259=\"\",\"\",IF(OR('TSA Input'!J3259=\"Yes\",'TSA Input'!J3259=\"Contingent\"),'TSA Input'!F3259,\"\"))","v":""},"",{"$f":"IF('TSA Input'!J3259=\"\",\"\",IF(OR('TSA Input'!J3259=\"Yes\",'TSA Input'!J3259=\"Contingent\"),'TSA Input'!D3259,\"\"))","v":""},{"$f":"IF('TSA Input'!J3259=\"\",\"\",IF(OR('TSA Input'!J3259=\"Yes\",'TSA Input'!J3259=\"Contingent\"),'TSA Input'!G3259,\"\"))","v":""},{"$f":"IF('TSA Input'!J3259=\"\",\"\",IF(OR('TSA Input'!J3259=\"Yes\",'TSA Input'!J3259=\"Contingent\"),'TSA Input'!F3259,\"\"))","v":""},"","Required","Required"]
["",null,{"$f":"IF('TSA Input'!J3260=\"\",\"\",IF(OR('TSA Input'!J3260=\"Yes\",'TSA Input'!J3260=\"Contingent\"),'TSA Input'!B3260,\"Ineligible\"))","v":""},{"$f":"IF('TSA Input'!J3260=\"\",\"\",IF(OR('TSA Input'!J3260=\"Yes\",'TSA Input'!J3260=\"Contingent\"),'TSA Input'!I3260,\"\"))","v":""},{"$f":"IF('TSA Input'!J3260=\"\",\"\",IF(OR('TSA Input'!J3260=\"Yes\",'TSA Input'!J3260=\"Contingent\"),'TSA Input'!C3260,\"\"))","v":""},{"$f":"IF('TSA Input'!J3260=\"\",\"\",IF(OR('TSA Input'!J3260=\"Yes\",'TSA Input'!J3260=\"Contingent\"),'TSA Input'!D3260,\"\"))","v":""},{"$f":"IF('TSA Input'!J3260=\"\",\"\",IF(OR('TSA Input'!J3260=\"Yes\",'TSA Input'!J3260=\"Contingent\"),'TSA Input'!G3260,\"\"))","v":""},{"$f":"IF('TSA Input'!J3260=\"\",\"\",IF(OR('TSA Input'!J3260=\"Yes\",'TSA Input'!J3260=\"Contingent\"),'TSA Input'!F3260,\"\"))","v":""},"",{"$f":"IF('TSA Input'!J3260=\"\",\"\",IF(OR('TSA Input'!J3260=\"Yes\",'TSA Input'!J3260=\"Contingent\"),'TSA Input'!D3260,\"\"))","v":""},{"$f":"IF('TSA Input'!J3260=\"\",\"\",IF(OR('TSA Input'!J3260=\"Yes\",'TSA Input'!J3260=\"Contingent\"),'TSA Input'!G3260,\"\"))","v":""},{"$f":"IF('TSA Input'!J3260=\"\",\"\",IF(OR('TSA Input'!J3260=\"Yes\",'TSA Input'!J3260=\"Contingent\"),'TSA Input'!F3260,\"\"))","v":""},"","Required","Required"]
["",null,{"$f":"IF('TSA Input'!J3261=\"\",\"\",IF(OR('TSA Input'!J3261=\"Yes\",'TSA Input'!J3261=\"Contingent\"),'TSA Input'!B3261,\"Ineligible\"))","v":""},{"$f":"IF('TSA Input'!J3261=\"\",\"\",IF(OR('TSA Input'!J3261=\"Yes\",'TSA Input'!J3261=\"Contingent\"),'TSA Input'!I3261,\"\"))","v":""},{"$f":"IF('TSA Input'!J3261=\"\",\"\",IF(OR('TSA Input'!J3261=\"Yes\",'TSA Input'!J3261=\"Contingent\"),'TSA Input'!C3261,\"\"))","v":""},{"$f":"IF('TSA Input'!J3261=\"\",\"\",IF(OR('TSA Input'!J3261=\"Yes\",'TSA Input'!J3261=\"Contingent\"),'TSA Input'!D3261,\"\"))","v":""},{"$f":"IF('TSA Input'!J3261=\"\",\"\",IF(OR('TSA Input'!J3261=\"Yes\",'TSA Input'!J3261=\"Contingent\"),'TSA Input'!G3261,\"\"))","v":""},{"$f":"IF('TSA Input'!J3261=\"\",\"\",IF(OR('TSA Input'!J3261=\"Yes\",'TSA Input'!J3261=\"Contingent\"),'TSA Input'!F3261,\"\"))","v":""},"",{"$f":"IF('TSA Input'!J3261=\"\",\"\",IF(OR('TSA Input'!J3261=\"Yes\",'TSA Input'!J3261=\"Contingent\"),'TSA Input'!D3261,\"\"))","v":""},{"$f":"IF('TSA Input'!J3261=\"\",\"\",IF(OR('TSA Input'!J3261=\"Yes\",'TSA Input'!J3261=\"Contingent\"),'TSA Input'!G3261,\"\"))","v":""},{"$f":"IF('TSA Input'!J3261=\"\",\"\",IF(OR('TSA Input'!J3261=\"Yes\",'TSA Input'!J3261=\"Contingent\"),'TSA Input'!F3261,\"\"))","v":""},"","Required","Required"]
["",null,{"$f":"IF('TSA Input'!J3262=\"\",\"\",IF(OR('TSA Input'!J3262=\"Yes\",'TSA Input'!J3262=\"Contingent\"),'TSA Input'!B3262,\"Ineligible\"))","v":""},{"$f":"IF('TSA Input'!J3262=\"\",\"\",IF(OR('TSA Input'!J3262=\"Yes\",'TSA Input'!J3262=\"Contingent\"),'TSA Input'!I3262,\"\"))","v":""},{"$f":"IF('TSA Input'!J3262=\"\",\"\",IF(OR('TSA Input'!J3262=\"Yes\",'TSA Input'!J3262=\"Contingent\"),'TSA Input'!C3262,\"\"))","v":""},{"$f":"IF('TSA Input'!J3262=\"\",\"\",IF(OR('TSA Input'!J3262=\"Yes\",'TSA Input'!J3262=\"Contingent\"),'TSA Input'!D3262,\"\"))","v":""},{"$f":"IF('TSA Input'!J3262=\"\",\"\",IF(OR('TSA Input'!J3262=\"Yes\",'TSA Input'!J3262=\"Contingent\"),'TSA Input'!G3262,\"\"))","v":""},{"$f":"IF('TSA Input'!J3262=\"\",\"\",IF(OR('TSA Input'!J3262=\"Yes\",'TSA Input'!J3262=\"Contingent\"),'TSA Input'!F3262,\"\"))","v":""},"",{"$f":"IF('TSA Input'!J3262=\"\",\"\",IF(OR('TSA Input'!J3262=\"Yes\",'TSA Input'!J3262=\"Contingent\"),'TSA Input'!D3262,\"\"))","v":""},{"$f":"IF('TSA Input'!J3262=\"\",\"\",IF(OR('TSA Input'!J3262=\"Yes\",'TSA Input'!J3262=\"Contingent\"),'TSA Input'!G3262,\"\"))","v":""},{"$f":"IF('TSA Input'!J3262=\"\",\"\",IF(OR('TSA Input'!J3262=\"Yes\",'TSA Input'!J3262=\"Contingent\"),'TSA Input'!F3262,\"\"))","v":""},"","Required","Required"]
["",null,{"$f":"IF('TSA Input'!J3263=\"\",\"\",IF(OR('TSA Input'!J3263=\"Yes\",'TSA Input'!J3263=\"Contingent\"),'TSA Input'!B3263,\"Ineligible\"))","v":""},{"$f":"IF('TSA Input'!J3263=\"\",\"\",IF(OR('TSA Input'!J3263=\"Yes\",'TSA Input'!J3263=\"Contingent\"),'TSA Input'!I3263,\"\"))","v":""},{"$f":"IF('TSA Input'!J3263=\"\",\"\",IF(OR('TSA Input'!J3263=\"Yes\",'TSA Input'!J3263=\"Contingent\"),'TSA Input'!C3263,\"\"))","v":""},{"$f":"IF('TSA Input'!J3263=\"\",\"\",IF(OR('TSA Input'!J3263=\"Yes\",'TSA Input'!J3263=\"Contingent\"),'TSA Input'!D3263,\"\"))","v":""},{"$f":"IF('TSA Input'!J3263=\"\",\"\",IF(OR('TSA Input'!J3263=\"Yes\",'TSA Input'!J3263=\"Contingent\"),'TSA Input'!G3263,\"\"))","v":""},{"$f":"IF('TSA Input'!J3263=\"\",\"\",IF(OR('TSA Input'!J3263=\"Yes\",'TSA Input'!J3263=\"Contingent\"),'TSA Input'!F3263,\"\"))","v":""},"",{"$f":"IF('TSA Input'!J3263=\"\",\"\",IF(OR('TSA Input'!J3263=\"Yes\",'TSA Input'!J3263=\"Contingent\"),'TSA Input'!D3263,\"\"))","v":""},{"$f":"IF('TSA Input'!J3263=\"\",\"\",IF(OR('TSA Input'!J3263=\"Yes\",'TSA Input'!J3263=\"Contingent\"),'TSA Input'!G3263,\"\"))","v":""},{"$f":"IF('TSA Input'!J3263=\"\",\"\",IF(OR('TSA Input'!J3263=\"Yes\",'TSA Input'!J3263=\"Contingent\"),'TSA Input'!F3263,\"\"))","v":""},"","Required","Required"]
["",null,{"$f":"IF('TSA Input'!J3264=\"\",\"\",IF(OR('TSA Input'!J3264=\"Yes\",'TSA Input'!J3264=\"Contingent\"),'TSA Input'!B3264,\"Ineligible\"))","v":""},{"$f":"IF('TSA Input'!J3264=\"\",\"\",IF(OR('TSA Input'!J3264=\"Yes\",'TSA Input'!J3264=\"Contingent\"),'TSA Input'!I3264,\"\"))","v":""},{"$f":"IF('TSA Input'!J3264=\"\",\"\",IF(OR('TSA Input'!J3264=\"Yes\",'TSA Input'!J3264=\"Contingent\"),'TSA Input'!C3264,\"\"))","v":""},{"$f":"IF('TSA Input'!J3264=\"\",\"\",IF(OR('TSA Input'!J3264=\"Yes\",'TSA Input'!J3264=\"Contingent\"),'TSA Input'!D3264,\"\"))","v":""},{"$f":"IF('TSA Input'!J3264=\"\",\"\",IF(OR('TSA Input'!J3264=\"Yes\",'TSA Input'!J3264=\"Contingent\"),'TSA Input'!G3264,\"\"))","v":""},{"$f":"IF('TSA Input'!J3264=\"\",\"\",IF(OR('TSA Input'!J3264=\"Yes\",'TSA Input'!J3264=\"Contingent\"),'TSA Input'!F3264,\"\"))","v":""},"",{"$f":"IF('TSA Input'!J3264=\"\",\"\",IF(OR('TSA Input'!J3264=\"Yes\",'TSA Input'!J3264=\"Contingent\"),'TSA Input'!D3264,\"\"))","v":""},{"$f":"IF('TSA Input'!J3264=\"\",\"\",IF(OR('TSA Input'!J3264=\"Yes\",'TSA Input'!J3264=\"Contingent\"),'TSA Input'!G3264,\"\"))","v":""},{"$f":"IF('TSA Input'!J3264=\"\",\"\",IF(OR('TSA Input'!J3264=\"Yes\",'TSA Input'!J3264=\"Contingent\"),'TSA Input'!F3264,\"\"))","v":""},"","Required","Required"]
["",null,{"$f":"IF('TSA Input'!J3265=\"\",\"\",IF(OR('TSA Input'!J3265=\"Yes\",'TSA Input'!J3265=\"Contingent\"),'TSA Input'!B3265,\"Ineligible\"))","v":""},{"$f":"IF('TSA Input'!J3265=\"\",\"\",IF(OR('TSA Input'!J3265=\"Yes\",'TSA Input'!J3265=\"Contingent\"),'TSA Input'!I3265,\"\"))","v":""},{"$f":"IF('TSA Input'!J3265=\"\",\"\",IF(OR('TSA Input'!J3265=\"Yes\",'TSA Input'!J3265=\"Contingent\"),'TSA Input'!C3265,\"\"))","v":""},{"$f":"IF('TSA Input'!J3265=\"\",\"\",IF(OR('TSA Input'!J3265=\"Yes\",'TSA Input'!J3265=\"Contingent\"),'TSA Input'!D3265,\"\"))","v":""},{"$f":"IF('TSA Input'!J3265=\"\",\"\",IF(OR('TSA Input'!J3265=\"Yes\",'TSA Input'!J3265=\"Contingent\"),'TSA Input'!G3265,\"\"))","v":""},{"$f":"IF('TSA Input'!J3265=\"\",\"\",IF(OR('TSA Input'!J3265=\"Yes\",'TSA Input'!J3265=\"Contingent\"),'TSA Input'!F3265,\"\"))","v":""},"",{"$f":"IF('TSA Input'!J3265=\"\",\"\",IF(OR('TSA Input'!J3265=\"Yes\",'TSA Input'!J3265=\"Contingent\"),'TSA Input'!D3265,\"\"))","v":""},{"$f":"IF('TSA Input'!J3265=\"\",\"\",IF(OR('TSA Input'!J3265=\"Yes\",'TSA Input'!J3265=\"Contingent\"),'TSA Input'!G3265,\"\"))","v":""},{"$f":"IF('TSA Input'!J3265=\"\",\"\",IF(OR('TSA Input'!J3265=\"Yes\",'TSA Input'!J3265=\"Contingent\"),'TSA Input'!F3265,\"\"))","v":""},"","Required","Required"]
["",null,{"$f":"IF('TSA Input'!J3266=\"\",\"\",IF(OR('TSA Input'!J3266=\"Yes\",'TSA Input'!J3266=\"Contingent\"),'TSA Input'!B3266,\"Ineligible\"))","v":""},{"$f":"IF('TSA Input'!J3266=\"\",\"\",IF(OR('TSA Input'!J3266=\"Yes\",'TSA Input'!J3266=\"Contingent\"),'TSA Input'!I3266,\"\"))","v":""},{"$f":"IF('TSA Input'!J3266=\"\",\"\",IF(OR('TSA Input'!J3266=\"Yes\",'TSA Input'!J3266=\"Contingent\"),'TSA Input'!C3266,\"\"))","v":""},{"$f":"IF('TSA Input'!J3266=\"\",\"\",IF(OR('TSA Input'!J3266=\"Yes\",'TSA Input'!J3266=\"Contingent\"),'TSA Input'!D3266,\"\"))","v":""},{"$f":"IF('TSA Input'!J3266=\"\",\"\",IF(OR('TSA Input'!J3266=\"Yes\",'TSA Input'!J3266=\"Contingent\"),'TSA Input'!G3266,\"\"))","v":""},{"$f":"IF('TSA Input'!J3266=\"\",\"\",IF(OR('TSA Input'!J3266=\"Yes\",'TSA Input'!J3266=\"Contingent\"),'TSA Input'!F3266,\"\"))","v":""},"",{"$f":"IF('TSA Input'!J3266=\"\",\"\",IF(OR('TSA Input'!J3266=\"Yes\",'TSA Input'!J3266=\"Contingent\"),'TSA Input'!D3266,\"\"))","v":""},{"$f":"IF('TSA Input'!J3266=\"\",\"\",IF(OR('TSA Input'!J3266=\"Yes\",'TSA Input'!J3266=\"Contingent\"),'TSA Input'!G3266,\"\"))","v":""},{"$f":"IF('TSA Input'!J3266=\"\",\"\",IF(OR('TSA Input'!J3266=\"Yes\",'TSA Input'!J3266=\"Contingent\"),'TSA Input'!F3266,\"\"))","v":""},"","Required","Required"]
["",null,{"$f":"IF('TSA Input'!J3267=\"\",\"\",IF(OR('TSA Input'!J3267=\"Yes\",'TSA Input'!J3267=\"Contingent\"),'TSA Input'!B3267,\"Ineligible\"))","v":""},{"$f":"IF('TSA Input'!J3267=\"\",\"\",IF(OR('TSA Input'!J3267=\"Yes\",'TSA Input'!J3267=\"Contingent\"),'TSA Input'!I3267,\"\"))","v":""},{"$f":"IF('TSA Input'!J3267=\"\",\"\",IF(OR('TSA Input'!J3267=\"Yes\",'TSA Input'!J3267=\"Contingent\"),'TSA Input'!C3267,\"\"))","v":""},{"$f":"IF('TSA Input'!J3267=\"\",\"\",IF(OR('TSA Input'!J3267=\"Yes\",'TSA Input'!J3267=\"Contingent\"),'TSA Input'!D3267,\"\"))","v":""},{"$f":"IF('TSA Input'!J3267=\"\",\"\",IF(OR('TSA Input'!J3267=\"Yes\",'TSA Input'!J3267=\"Contingent\"),'TSA Input'!G3267,\"\"))","v":""},{"$f":"IF('TSA Input'!J3267=\"\",\"\",IF(OR('TSA Input'!J3267=\"Yes\",'TSA Input'!J3267=\"Contingent\"),'TSA Input'!F3267,\"\"))","v":""},"",{"$f":"IF('TSA Input'!J3267=\"\",\"\",IF(OR('TSA Input'!J3267=\"Yes\",'TSA Input'!J3267=\"Contingent\"),'TSA Input'!D3267,\"\"))","v":""},{"$f":"IF('TSA Input'!J3267=\"\",\"\",IF(OR('TSA Input'!J3267=\"Yes\",'TSA Input'!J3267=\"Contingent\"),'TSA Input'!G3267,\"\"))","v":""},{"$f":"IF('TSA Input'!J3267=\"\",\"\",IF(OR('TSA Input'!J3267=\"Yes\",'TSA Input'!J3267=\"Contingent\"),'TSA Input'!F3267,\"\"))","v":""},"","Required","Required"]
["",null,{"$f":"IF('TSA Input'!J3268=\"\",\"\",IF(OR('TSA Input'!J3268=\"Yes\",'TSA Input'!J3268=\"Contingent\"),'TSA Input'!B3268,\"Ineligible\"))","v":""},{"$f":"IF('TSA Input'!J3268=\"\",\"\",IF(OR('TSA Input'!J3268=\"Yes\",'TSA Input'!J3268=\"Contingent\"),'TSA Input'!I3268,\"\"))","v":""},{"$f":"IF('TSA Input'!J3268=\"\",\"\",IF(OR('TSA Input'!J3268=\"Yes\",'TSA Input'!J3268=\"Contingent\"),'TSA Input'!C3268,\"\"))","v":""},{"$f":"IF('TSA Input'!J3268=\"\",\"\",IF(OR('TSA Input'!J3268=\"Yes\",'TSA Input'!J3268=\"Contingent\"),'TSA Input'!D3268,\"\"))","v":""},{"$f":"IF('TSA Input'!J3268=\"\",\"\",IF(OR('TSA Input'!J3268=\"Yes\",'TSA Input'!J3268=\"Contingent\"),'TSA Input'!G3268,\"\"))","v":""},{"$f":"IF('TSA Input'!J3268=\"\",\"\",IF(OR('TSA Input'!J3268=\"Yes\",'TSA Input'!J3268=\"Contingent\"),'TSA Input'!F3268,\"\"))","v":""},{"$f":"IF($C3306=\"\",\"\",SUM(F3306:H3306))","v":""},{"$f":"IF('TSA Input'!J3268=\"\",\"\",IF(OR('TSA Input'!J3268=\"Yes\",'TSA Input'!J3268=\"Contingent\"),'TSA Input'!D3268,\"\"))","v":""},{"$f":"IF('TSA Input'!J3268=\"\",\"\",IF(OR('TSA Input'!J3268=\"Yes\",'TSA Input'!J3268=\"Contingent\"),'TSA Input'!G3268,\"\"))","v":""},{"$f":"IF('TSA Input'!J3268=\"\",\"\",IF(OR('TSA Input'!J3268=\"Yes\",'TSA Input'!J3268=\"Contingent\"),'TSA Input'!F3268,\"\"))","v":""},{"$f":"IF($C3306=\"\",\"\",SUM(J3306:L3306))","v":""},"Required","Required"]
["",null,{"$f":"IF('TSA Input'!J3269=\"\",\"\",IF(OR('TSA Input'!J3269=\"Yes\",'TSA Input'!J3269=\"Contingent\"),'TSA Input'!B3269,\"Ineligible\"))","v":""},{"$f":"IF('TSA Input'!J3269=\"\",\"\",IF(OR('TSA Input'!J3269=\"Yes\",'TSA Input'!J3269=\"Contingent\"),'TSA Input'!I3269,\"\"))","v":""},{"$f":"IF('TSA Input'!J3269=\"\",\"\",IF(OR('TSA Input'!J3269=\"Yes\",'TSA Input'!J3269=\"Contingent\"),'TSA Input'!C3269,\"\"))","v":""},{"$f":"IF('TSA Input'!J3269=\"\",\"\",IF(OR('TSA Input'!J3269=\"Yes\",'TSA Input'!J3269=\"Contingent\"),'TSA Input'!D3269,\"\"))","v":""},{"$f":"IF('TSA Input'!J3269=\"\",\"\",IF(OR('TSA Input'!J3269=\"Yes\",'TSA Input'!J3269=\"Contingent\"),'TSA Input'!G3269,\"\"))","v":""},{"$f":"IF('TSA Input'!J3269=\"\",\"\",IF(OR('TSA Input'!J3269=\"Yes\",'TSA Input'!J3269=\"Contingent\"),'TSA Input'!F3269,\"\"))","v":""},"",{"$f":"IF('TSA Input'!J3269=\"\",\"\",IF(OR('TSA Input'!J3269=\"Yes\",'TSA Input'!J3269=\"Contingent\"),'TSA Input'!D3269,\"\"))","v":""},{"$f":"IF('TSA Input'!J3269=\"\",\"\",IF(OR('TSA Input'!J3269=\"Yes\",'TSA Input'!J3269=\"Contingent\"),'TSA Input'!G3269,\"\"))","v":""},{"$f":"IF('TSA Input'!J3269=\"\",\"\",IF(OR('TSA Input'!J3269=\"Yes\",'TSA Input'!J3269=\"Contingent\"),'TSA Input'!F3269,\"\"))","v":""},"","Required","Required"]
["",null,{"$f":"IF('TSA Input'!J3270=\"\",\"\",IF(OR('TSA Input'!J3270=\"Yes\",'TSA Input'!J3270=\"Contingent\"),'TSA Input'!B3270,\"Ineligible\"))","v":""},{"$f":"IF('TSA Input'!J3270=\"\",\"\",IF(OR('TSA Input'!J3270=\"Yes\",'TSA Input'!J3270=\"Contingent\"),'TSA Input'!I3270,\"\"))","v":""},{"$f":"IF('TSA Input'!J3270=\"\",\"\",IF(OR('TSA Input'!J3270=\"Yes\",'TSA Input'!J3270=\"Contingent\"),'TSA Input'!C3270,\"\"))","v":""},{"$f":"IF('TSA Input'!J3270=\"\",\"\",IF(OR('TSA Input'!J3270=\"Yes\",'TSA Input'!J3270=\"Contingent\"),'TSA Input'!D3270,\"\"))","v":""},{"$f":"IF('TSA Input'!J3270=\"\",\"\",IF(OR('TSA Input'!J3270=\"Yes\",'TSA Input'!J3270=\"Contingent\"),'TSA Input'!G3270,\"\"))","v":""},{"$f":"IF('TSA Input'!J3270=\"\",\"\",IF(OR('TSA Input'!J3270=\"Yes\",'TSA Input'!J3270=\"Contingent\"),'TSA Input'!F3270,\"\"))","v":""},"",{"$f":"IF('TSA Input'!J3270=\"\",\"\",IF(OR('TSA Input'!J3270=\"Yes\",'TSA Input'!J3270=\"Contingent\"),'TSA Input'!D3270,\"\"))","v":""},{"$f":"IF('TSA Input'!J3270=\"\",\"\",IF(OR('TSA Input'!J3270=\"Yes\",'TSA Input'!J3270=\"Contingent\"),'TSA Input'!G3270,\"\"))","v":""},{"$f":"IF('TSA Input'!J3270=\"\",\"\",IF(OR('TSA Input'!J3270=\"Yes\",'TSA Input'!J3270=\"Contingent\"),'TSA Input'!F3270,\"\"))","v":""},"","Required","Required"]
["",null,{"$f":"IF('TSA Input'!J3271=\"\",\"\",IF(OR('TSA Input'!J3271=\"Yes\",'TSA Input'!J3271=\"Contingent\"),'TSA Input'!B3271,\"Ineligible\"))","v":""},{"$f":"IF('TSA Input'!J3271=\"\",\"\",IF(OR('TSA Input'!J3271=\"Yes\",'TSA Input'!J3271=\"Contingent\"),'TSA Input'!I3271,\"\"))","v":""},{"$f":"IF('TSA Input'!J3271=\"\",\"\",IF(OR('TSA Input'!J3271=\"Yes\",'TSA Input'!J3271=\"Contingent\"),'TSA Input'!C3271,\"\"))","v":""},{"$f":"IF('TSA Input'!J3271=\"\",\"\",IF(OR('TSA Input'!J3271=\"Yes\",'TSA Input'!J3271=\"Contingent\"),'TSA Input'!D3271,\"\"))","v":""},{"$f":"IF('TSA Input'!J3271=\"\",\"\",IF(OR('TSA Input'!J3271=\"Yes\",'TSA Input'!J3271=\"Contingent\"),'TSA Input'!G3271,\"\"))","v":""},{"$f":"IF('TSA Input'!J3271=\"\",\"\",IF(OR('TSA Input'!J3271=\"Yes\",'TSA Input'!J3271=\"Contingent\"),'TSA Input'!F3271,\"\"))","v":""},"",{"$f":"IF('TSA Input'!J3271=\"\",\"\",IF(OR('TSA Input'!J3271=\"Yes\",'TSA Input'!J3271=\"Contingent\"),'TSA Input'!D3271,\"\"))","v":""},{"$f":"IF('TSA Input'!J3271=\"\",\"\",IF(OR('TSA Input'!J3271=\"Yes\",'TSA Input'!J3271=\"Contingent\"),'TSA Input'!G3271,\"\"))","v":""},{"$f":"IF('TSA Input'!J3271=\"\",\"\",IF(OR('TSA Input'!J3271=\"Yes\",'TSA Input'!J3271=\"Contingent\"),'TSA Input'!F3271,\"\"))","v":""},"","Required","Required"]
["",null,{"$f":"IF('TSA Input'!J3272=\"\",\"\",IF(OR('TSA Input'!J3272=\"Yes\",'TSA Input'!J3272=\"Contingent\"),'TSA Input'!B3272,\"Ineligible\"))","v":""},{"$f":"IF('TSA Input'!J3272=\"\",\"\",IF(OR('TSA Input'!J3272=\"Yes\",'TSA Input'!J3272=\"Contingent\"),'TSA Input'!I3272,\"\"))","v":""},{"$f":"IF('TSA Input'!J3272=\"\",\"\",IF(OR('TSA Input'!J3272=\"Yes\",'TSA Input'!J3272=\"Contingent\"),'TSA Input'!C3272,\"\"))","v":""},{"$f":"IF('TSA Input'!J3272=\"\",\"\",IF(OR('TSA Input'!J3272=\"Yes\",'TSA Input'!J3272=\"Contingent\"),'TSA Input'!D3272,\"\"))","v":""},{"$f":"IF('TSA Input'!J3272=\"\",\"\",IF(OR('TSA Input'!J3272=\"Yes\",'TSA Input'!J3272=\"Contingent\"),'TSA Input'!G3272,\"\"))","v":""},{"$f":"IF('TSA Input'!J3272=\"\",\"\",IF(OR('TSA Input'!J3272=\"Yes\",'TSA Input'!J3272=\"Contingent\"),'TSA Input'!F3272,\"\"))","v":""},"",{"$f":"IF('TSA Input'!J3272=\"\",\"\",IF(OR('TSA Input'!J3272=\"Yes\",'TSA Input'!J3272=\"Contingent\"),'TSA Input'!D3272,\"\"))","v":""},{"$f":"IF('TSA Input'!J3272=\"\",\"\",IF(OR('TSA Input'!J3272=\"Yes\",'TSA Input'!J3272=\"Contingent\"),'TSA Input'!G3272,\"\"))","v":""},{"$f":"IF('TSA Input'!J3272=\"\",\"\",IF(OR('TSA Input'!J3272=\"Yes\",'TSA Input'!J3272=\"Contingent\"),'TSA Input'!F3272,\"\"))","v":""},"","Required","Required"]
["",null,{"$f":"IF('TSA Input'!J3273=\"\",\"\",IF(OR('TSA Input'!J3273=\"Yes\",'TSA Input'!J3273=\"Contingent\"),'TSA Input'!B3273,\"Ineligible\"))","v":""},{"$f":"IF('TSA Input'!J3273=\"\",\"\",IF(OR('TSA Input'!J3273=\"Yes\",'TSA Input'!J3273=\"Contingent\"),'TSA Input'!I3273,\"\"))","v":""},{"$f":"IF('TSA Input'!J3273=\"\",\"\",IF(OR('TSA Input'!J3273=\"Yes\",'TSA Input'!J3273=\"Contingent\"),'TSA Input'!C3273,\"\"))","v":""},{"$f":"IF('TSA Input'!J3273=\"\",\"\",IF(OR('TSA Input'!J3273=\"Yes\",'TSA Input'!J3273=\"Contingent\"),'TSA Input'!D3273,\"\"))","v":""},{"$f":"IF('TSA Input'!J3273=\"\",\"\",IF(OR('TSA Input'!J3273=\"Yes\",'TSA Input'!J3273=\"Contingent\"),'TSA Input'!G3273,\"\"))","v":""},{"$f":"IF('TSA Input'!J3273=\"\",\"\",IF(OR('TSA Input'!J3273=\"Yes\",'TSA Input'!J3273=\"Contingent\"),'TSA Input'!F3273,\"\"))","v":""},"",{"$f":"IF('TSA Input'!J3273=\"\",\"\",IF(OR('TSA Input'!J3273=\"Yes\",'TSA Input'!J3273=\"Contingent\"),'TSA Input'!D3273,\"\"))","v":""},{"$f":"IF('TSA Input'!J3273=\"\",\"\",IF(OR('TSA Input'!J3273=\"Yes\",'TSA Input'!J3273=\"Contingent\"),'TSA Input'!G3273,\"\"))","v":""},{"$f":"IF('TSA Input'!J3273=\"\",\"\",IF(OR('TSA Input'!J3273=\"Yes\",'TSA Input'!J3273=\"Contingent\"),'TSA Input'!F3273,\"\"))","v":""},"","Required","Required"]
["",null,{"$f":"IF('TSA Input'!J3274=\"\",\"\",IF(OR('TSA Input'!J3274=\"Yes\",'TSA Input'!J3274=\"Contingent\"),'TSA Input'!B3274,\"Ineligible\"))","v":""},{"$f":"IF('TSA Input'!J3274=\"\",\"\",IF(OR('TSA Input'!J3274=\"Yes\",'TSA Input'!J3274=\"Contingent\"),'TSA Input'!I3274,\"\"))","v":""},{"$f":"IF('TSA Input'!J3274=\"\",\"\",IF(OR('TSA Input'!J3274=\"Yes\",'TSA Input'!J3274=\"Contingent\"),'TSA Input'!C3274,\"\"))","v":""},{"$f":"IF('TSA Input'!J3274=\"\",\"\",IF(OR('TSA Input'!J3274=\"Yes\",'TSA Input'!J3274=\"Contingent\"),'TSA Input'!D3274,\"\"))","v":""},{"$f":"IF('TSA Input'!J3274=\"\",\"\",IF(OR('TSA Input'!J3274=\"Yes\",'TSA Input'!J3274=\"Contingent\"),'TSA Input'!G3274,\"\"))","v":""},{"$f":"IF('TSA Input'!J3274=\"\",\"\",IF(OR('TSA Input'!J3274=\"Yes\",'TSA Input'!J3274=\"Contingent\"),'TSA Input'!F3274,\"\"))","v":""},"",{"$f":"IF('TSA Input'!J3274=\"\",\"\",IF(OR('TSA Input'!J3274=\"Yes\",'TSA Input'!J3274=\"Contingent\"),'TSA Input'!D3274,\"\"))","v":""},{"$f":"IF('TSA Input'!J3274=\"\",\"\",IF(OR('TSA Input'!J3274=\"Yes\",'TSA Input'!J3274=\"Contingent\"),'TSA Input'!G3274,\"\"))","v":""},{"$f":"IF('TSA Input'!J3274=\"\",\"\",IF(OR('TSA Input'!J3274=\"Yes\",'TSA Input'!J3274=\"Contingent\"),'TSA Input'!F3274,\"\"))","v":""},"","Required","Required"]
["",null,{"$f":"IF('TSA Input'!J3275=\"\",\"\",IF(OR('TSA Input'!J3275=\"Yes\",'TSA Input'!J3275=\"Contingent\"),'TSA Input'!B3275,\"Ineligible\"))","v":""},{"$f":"IF('TSA Input'!J3275=\"\",\"\",IF(OR('TSA Input'!J3275=\"Yes\",'TSA Input'!J3275=\"Contingent\"),'TSA Input'!I3275,\"\"))","v":""},{"$f":"IF('TSA Input'!J3275=\"\",\"\",IF(OR('TSA Input'!J3275=\"Yes\",'TSA Input'!J3275=\"Contingent\"),'TSA Input'!C3275,\"\"))","v":""},{"$f":"IF('TSA Input'!J3275=\"\",\"\",IF(OR('TSA Input'!J3275=\"Yes\",'TSA Input'!J3275=\"Contingent\"),'TSA Input'!D3275,\"\"))","v":""},{"$f":"IF('TSA Input'!J3275=\"\",\"\",IF(OR('TSA Input'!J3275=\"Yes\",'TSA Input'!J3275=\"Contingent\"),'TSA Input'!G3275,\"\"))","v":""},{"$f":"IF('TSA Input'!J3275=\"\",\"\",IF(OR('TSA Input'!J3275=\"Yes\",'TSA Input'!J3275=\"Contingent\"),'TSA Input'!F3275,\"\"))","v":""},"",{"$f":"IF('TSA Input'!J3275=\"\",\"\",IF(OR('TSA Input'!J3275=\"Yes\",'TSA Input'!J3275=\"Contingent\"),'TSA Input'!D3275,\"\"))","v":""},{"$f":"IF('TSA Input'!J3275=\"\",\"\",IF(OR('TSA Input'!J3275=\"Yes\",'TSA Input'!J3275=\"Contingent\"),'TSA Input'!G3275,\"\"))","v":""},{"$f":"IF('TSA Input'!J3275=\"\",\"\",IF(OR('TSA Input'!J3275=\"Yes\",'TSA Input'!J3275=\"Contingent\"),'TSA Input'!F3275,\"\"))","v":""},"","Required","Required"]
["",null,{"$f":"IF('TSA Input'!J3276=\"\",\"\",IF(OR('TSA Input'!J3276=\"Yes\",'TSA Input'!J3276=\"Contingent\"),'TSA Input'!B3276,\"Ineligible\"))","v":""},{"$f":"IF('TSA Input'!J3276=\"\",\"\",IF(OR('TSA Input'!J3276=\"Yes\",'TSA Input'!J3276=\"Contingent\"),'TSA Input'!I3276,\"\"))","v":""},{"$f":"IF('TSA Input'!J3276=\"\",\"\",IF(OR('TSA Input'!J3276=\"Yes\",'TSA Input'!J3276=\"Contingent\"),'TSA Input'!C3276,\"\"))","v":""},{"$f":"IF('TSA Input'!J3276=\"\",\"\",IF(OR('TSA Input'!J3276=\"Yes\",'TSA Input'!J3276=\"Contingent\"),'TSA Input'!D3276,\"\"))","v":""},{"$f":"IF('TSA Input'!J3276=\"\",\"\",IF(OR('TSA Input'!J3276=\"Yes\",'TSA Input'!J3276=\"Contingent\"),'TSA Input'!G3276,\"\"))","v":""},{"$f":"IF('TSA Input'!J3276=\"\",\"\",IF(OR('TSA Input'!J3276=\"Yes\",'TSA Input'!J3276=\"Contingent\"),'TSA Input'!F3276,\"\"))","v":""},"",{"$f":"IF('TSA Input'!J3276=\"\",\"\",IF(OR('TSA Input'!J3276=\"Yes\",'TSA Input'!J3276=\"Contingent\"),'TSA Input'!D3276,\"\"))","v":""},{"$f":"IF('TSA Input'!J3276=\"\",\"\",IF(OR('TSA Input'!J3276=\"Yes\",'TSA Input'!J3276=\"Contingent\"),'TSA Input'!G3276,\"\"))","v":""},{"$f":"IF('TSA Input'!J3276=\"\",\"\",IF(OR('TSA Input'!J3276=\"Yes\",'TSA Input'!J3276=\"Contingent\"),'TSA Input'!F3276,\"\"))","v":""},"","Required","Required"]
["",null,{"$f":"IF('TSA Input'!J3277=\"\",\"\",IF(OR('TSA Input'!J3277=\"Yes\",'TSA Input'!J3277=\"Contingent\"),'TSA Input'!B3277,\"Ineligible\"))","v":""},{"$f":"IF('TSA Input'!J3277=\"\",\"\",IF(OR('TSA Input'!J3277=\"Yes\",'TSA Input'!J3277=\"Contingent\"),'TSA Input'!I3277,\"\"))","v":""},{"$f":"IF('TSA Input'!J3277=\"\",\"\",IF(OR('TSA Input'!J3277=\"Yes\",'TSA Input'!J3277=\"Contingent\"),'TSA Input'!C3277,\"\"))","v":""},{"$f":"IF('TSA Input'!J3277=\"\",\"\",IF(OR('TSA Input'!J3277=\"Yes\",'TSA Input'!J3277=\"Contingent\"),'TSA Input'!D3277,\"\"))","v":""},{"$f":"IF('TSA Input'!J3277=\"\",\"\",IF(OR('TSA Input'!J3277=\"Yes\",'TSA Input'!J3277=\"Contingent\"),'TSA Input'!G3277,\"\"))","v":""},{"$f":"IF('TSA Input'!J3277=\"\",\"\",IF(OR('TSA Input'!J3277=\"Yes\",'TSA Input'!J3277=\"Contingent\"),'TSA Input'!F3277,\"\"))","v":""},"",{"$f":"IF('TSA Input'!J3277=\"\",\"\",IF(OR('TSA Input'!J3277=\"Yes\",'TSA Input'!J3277=\"Contingent\"),'TSA Input'!D3277,\"\"))","v":""},{"$f":"IF('TSA Input'!J3277=\"\",\"\",IF(OR('TSA Input'!J3277=\"Yes\",'TSA Input'!J3277=\"Contingent\"),'TSA Input'!G3277,\"\"))","v":""},{"$f":"IF('TSA Input'!J3277=\"\",\"\",IF(OR('TSA Input'!J3277=\"Yes\",'TSA Input'!J3277=\"Contingent\"),'TSA Input'!F3277,\"\"))","v":""},"","Required","Required"]
["",null,{"$f":"IF('TSA Input'!J3278=\"\",\"\",IF(OR('TSA Input'!J3278=\"Yes\",'TSA Input'!J3278=\"Contingent\"),'TSA Input'!B3278,\"Ineligible\"))","v":""},{"$f":"IF('TSA Input'!J3278=\"\",\"\",IF(OR('TSA Input'!J3278=\"Yes\",'TSA Input'!J3278=\"Contingent\"),'TSA Input'!I3278,\"\"))","v":""},{"$f":"IF('TSA Input'!J3278=\"\",\"\",IF(OR('TSA Input'!J3278=\"Yes\",'TSA Input'!J3278=\"Contingent\"),'TSA Input'!C3278,\"\"))","v":""},{"$f":"IF('TSA Input'!J3278=\"\",\"\",IF(OR('TSA Input'!J3278=\"Yes\",'TSA Input'!J3278=\"Contingent\"),'TSA Input'!D3278,\"\"))","v":""},{"$f":"IF('TSA Input'!J3278=\"\",\"\",IF(OR('TSA Input'!J3278=\"Yes\",'TSA Input'!J3278=\"Contingent\"),'TSA Input'!G3278,\"\"))","v":""},{"$f":"IF('TSA Input'!J3278=\"\",\"\",IF(OR('TSA Input'!J3278=\"Yes\",'TSA Input'!J3278=\"Contingent\"),'TSA Input'!F3278,\"\"))","v":""},"",{"$f":"IF('TSA Input'!J3278=\"\",\"\",IF(OR('TSA Input'!J3278=\"Yes\",'TSA Input'!J3278=\"Contingent\"),'TSA Input'!D3278,\"\"))","v":""},{"$f":"IF('TSA Input'!J3278=\"\",\"\",IF(OR('TSA Input'!J3278=\"Yes\",'TSA Input'!J3278=\"Contingent\"),'TSA Input'!G3278,\"\"))","v":""},{"$f":"IF('TSA Input'!J3278=\"\",\"\",IF(OR('TSA Input'!J3278=\"Yes\",'TSA Input'!J3278=\"Contingent\"),'TSA Input'!F3278,\"\"))","v":""},"","Required","Required"]
["",null,{"$f":"IF('TSA Input'!J3279=\"\",\"\",IF(OR('TSA Input'!J3279=\"Yes\",'TSA Input'!J3279=\"Contingent\"),'TSA Input'!B3279,\"Ineligible\"))","v":""},{"$f":"IF('TSA Input'!J3279=\"\",\"\",IF(OR('TSA Input'!J3279=\"Yes\",'TSA Input'!J3279=\"Contingent\"),'TSA Input'!I3279,\"\"))","v":""},{"$f":"IF('TSA Input'!J3279=\"\",\"\",IF(OR('TSA Input'!J3279=\"Yes\",'TSA Input'!J3279=\"Contingent\"),'TSA Input'!C3279,\"\"))","v":""},{"$f":"IF('TSA Input'!J3279=\"\",\"\",IF(OR('TSA Input'!J3279=\"Yes\",'TSA Input'!J3279=\"Contingent\"),'TSA Input'!D3279,\"\"))","v":""},{"$f":"IF('TSA Input'!J3279=\"\",\"\",IF(OR('TSA Input'!J3279=\"Yes\",'TSA Input'!J3279=\"Contingent\"),'TSA Input'!G3279,\"\"))","v":""},{"$f":"IF('TSA Input'!J3279=\"\",\"\",IF(OR('TSA Input'!J3279=\"Yes\",'TSA Input'!J3279=\"Contingent\"),'TSA Input'!F3279,\"\"))","v":""},"",{"$f":"IF('TSA Input'!J3279=\"\",\"\",IF(OR('TSA Input'!J3279=\"Yes\",'TSA Input'!J3279=\"Contingent\"),'TSA Input'!D3279,\"\"))","v":""},{"$f":"IF('TSA Input'!J3279=\"\",\"\",IF(OR('TSA Input'!J3279=\"Yes\",'TSA Input'!J3279=\"Contingent\"),'TSA Input'!G3279,\"\"))","v":""},{"$f":"IF('TSA Input'!J3279=\"\",\"\",IF(OR('TSA Input'!J3279=\"Yes\",'TSA Input'!J3279=\"Contingent\"),'TSA Input'!F3279,\"\"))","v":""},"","Required","Required"]
["",null,{"$f":"IF('TSA Input'!J3280=\"\",\"\",IF(OR('TSA Input'!J3280=\"Yes\",'TSA Input'!J3280=\"Contingent\"),'TSA Input'!B3280,\"Ineligible\"))","v":""},{"$f":"IF('TSA Input'!J3280=\"\",\"\",IF(OR('TSA Input'!J3280=\"Yes\",'TSA Input'!J3280=\"Contingent\"),'TSA Input'!I3280,\"\"))","v":""},{"$f":"IF('TSA Input'!J3280=\"\",\"\",IF(OR('TSA Input'!J3280=\"Yes\",'TSA Input'!J3280=\"Contingent\"),'TSA Input'!C3280,\"\"))","v":""},{"$f":"IF('TSA Input'!J3280=\"\",\"\",IF(OR('TSA Input'!J3280=\"Yes\",'TSA Input'!J3280=\"Contingent\"),'TSA Input'!D3280,\"\"))","v":""},{"$f":"IF('TSA Input'!J3280=\"\",\"\",IF(OR('TSA Input'!J3280=\"Yes\",'TSA Input'!J3280=\"Contingent\"),'TSA Input'!G3280,\"\"))","v":""},{"$f":"IF('TSA Input'!J3280=\"\",\"\",IF(OR('TSA Input'!J3280=\"Yes\",'TSA Input'!J3280=\"Contingent\"),'TSA Input'!F3280,\"\"))","v":""},"",{"$f":"IF('TSA Input'!J3280=\"\",\"\",IF(OR('TSA Input'!J3280=\"Yes\",'TSA Input'!J3280=\"Contingent\"),'TSA Input'!D3280,\"\"))","v":""},{"$f":"IF('TSA Input'!J3280=\"\",\"\",IF(OR('TSA Input'!J3280=\"Yes\",'TSA Input'!J3280=\"Contingent\"),'TSA Input'!G3280,\"\"))","v":""},{"$f":"IF('TSA Input'!J3280=\"\",\"\",IF(OR('TSA Input'!J3280=\"Yes\",'TSA Input'!J3280=\"Contingent\"),'TSA Input'!F3280,\"\"))","v":""},"","Required","Required"]
["",null,{"$f":"IF('TSA Input'!J3281=\"\",\"\",IF(OR('TSA Input'!J3281=\"Yes\",'TSA Input'!J3281=\"Contingent\"),'TSA Input'!B3281,\"Ineligible\"))","v":""},{"$f":"IF('TSA Input'!J3281=\"\",\"\",IF(OR('TSA Input'!J3281=\"Yes\",'TSA Input'!J3281=\"Contingent\"),'TSA Input'!I3281,\"\"))","v":""},{"$f":"IF('TSA Input'!J3281=\"\",\"\",IF(OR('TSA Input'!J3281=\"Yes\",'TSA Input'!J3281=\"Contingent\"),'TSA Input'!C3281,\"\"))","v":""},{"$f":"IF('TSA Input'!J3281=\"\",\"\",IF(OR('TSA Input'!J3281=\"Yes\",'TSA Input'!J3281=\"Contingent\"),'TSA Input'!D3281,\"\"))","v":""},{"$f":"IF('TSA Input'!J3281=\"\",\"\",IF(OR('TSA Input'!J3281=\"Yes\",'TSA Input'!J3281=\"Contingent\"),'TSA Input'!G3281,\"\"))","v":""},{"$f":"IF('TSA Input'!J3281=\"\",\"\",IF(OR('TSA Input'!J3281=\"Yes\",'TSA Input'!J3281=\"Contingent\"),'TSA Input'!F3281,\"\"))","v":""},"",{"$f":"IF('TSA Input'!J3281=\"\",\"\",IF(OR('TSA Input'!J3281=\"Yes\",'TSA Input'!J3281=\"Contingent\"),'TSA Input'!D3281,\"\"))","v":""},{"$f":"IF('TSA Input'!J3281=\"\",\"\",IF(OR('TSA Input'!J3281=\"Yes\",'TSA Input'!J3281=\"Contingent\"),'TSA Input'!G3281,\"\"))","v":""},{"$f":"IF('TSA Input'!J3281=\"\",\"\",IF(OR('TSA Input'!J3281=\"Yes\",'TSA Input'!J3281=\"Contingent\"),'TSA Input'!F3281,\"\"))","v":""},"","Required","Required"]
["",null,{"$f":"IF('TSA Input'!J3282=\"\",\"\",IF(OR('TSA Input'!J3282=\"Yes\",'TSA Input'!J3282=\"Contingent\"),'TSA Input'!B3282,\"Ineligible\"))","v":""},{"$f":"IF('TSA Input'!J3282=\"\",\"\",IF(OR('TSA Input'!J3282=\"Yes\",'TSA Input'!J3282=\"Contingent\"),'TSA Input'!I3282,\"\"))","v":""},{"$f":"IF('TSA Input'!J3282=\"\",\"\",IF(OR('TSA Input'!J3282=\"Yes\",'TSA Input'!J3282=\"Contingent\"),'TSA Input'!C3282,\"\"))","v":""},{"$f":"IF('TSA Input'!J3282=\"\",\"\",IF(OR('TSA Input'!J3282=\"Yes\",'TSA Input'!J3282=\"Contingent\"),'TSA Input'!D3282,\"\"))","v":""},{"$f":"IF('TSA Input'!J3282=\"\",\"\",IF(OR('TSA Input'!J3282=\"Yes\",'TSA Input'!J3282=\"Contingent\"),'TSA Input'!G3282,\"\"))","v":""},{"$f":"IF('TSA Input'!J3282=\"\",\"\",IF(OR('TSA Input'!J3282=\"Yes\",'TSA Input'!J3282=\"Contingent\"),'TSA Input'!F3282,\"\"))","v":""},"",{"$f":"IF('TSA Input'!J3282=\"\",\"\",IF(OR('TSA Input'!J3282=\"Yes\",'TSA Input'!J3282=\"Contingent\"),'TSA Input'!D3282,\"\"))","v":""},{"$f":"IF('TSA Input'!J3282=\"\",\"\",IF(OR('TSA Input'!J3282=\"Yes\",'TSA Input'!J3282=\"Contingent\"),'TSA Input'!G3282,\"\"))","v":""},{"$f":"IF('TSA Input'!J3282=\"\",\"\",IF(OR('TSA Input'!J3282=\"Yes\",'TSA Input'!J3282=\"Contingent\"),'TSA Input'!F3282,\"\"))","v":""},"","Required","Required"]
["",null,{"$f":"IF('TSA Input'!J3283=\"\",\"\",IF(OR('TSA Input'!J3283=\"Yes\",'TSA Input'!J3283=\"Contingent\"),'TSA Input'!B3283,\"Ineligible\"))","v":""},{"$f":"IF('TSA Input'!J3283=\"\",\"\",IF(OR('TSA Input'!J3283=\"Yes\",'TSA Input'!J3283=\"Contingent\"),'TSA Input'!I3283,\"\"))","v":""},{"$f":"IF('TSA Input'!J3283=\"\",\"\",IF(OR('TSA Input'!J3283=\"Yes\",'TSA Input'!J3283=\"Contingent\"),'TSA Input'!C3283,\"\"))","v":""},{"$f":"IF('TSA Input'!J3283=\"\",\"\",IF(OR('TSA Input'!J3283=\"Yes\",'TSA Input'!J3283=\"Contingent\"),'TSA Input'!D3283,\"\"))","v":""},{"$f":"IF('TSA Input'!J3283=\"\",\"\",IF(OR('TSA Input'!J3283=\"Yes\",'TSA Input'!J3283=\"Contingent\"),'TSA Input'!G3283,\"\"))","v":""},{"$f":"IF('TSA Input'!J3283=\"\",\"\",IF(OR('TSA Input'!J3283=\"Yes\",'TSA Input'!J3283=\"Contingent\"),'TSA Input'!F3283,\"\"))","v":""},"",{"$f":"IF('TSA Input'!J3283=\"\",\"\",IF(OR('TSA Input'!J3283=\"Yes\",'TSA Input'!J3283=\"Contingent\"),'TSA Input'!D3283,\"\"))","v":""},{"$f":"IF('TSA Input'!J3283=\"\",\"\",IF(OR('TSA Input'!J3283=\"Yes\",'TSA Input'!J3283=\"Contingent\"),'TSA Input'!G3283,\"\"))","v":""},{"$f":"IF('TSA Input'!J3283=\"\",\"\",IF(OR('TSA Input'!J3283=\"Yes\",'TSA Input'!J3283=\"Contingent\"),'TSA Input'!F3283,\"\"))","v":""},"","Required","Required"]
["",null,{"$f":"IF('TSA Input'!J3284=\"\",\"\",IF(OR('TSA Input'!J3284=\"Yes\",'TSA Input'!J3284=\"Contingent\"),'TSA Input'!B3284,\"Ineligible\"))","v":""},{"$f":"IF('TSA Input'!J3284=\"\",\"\",IF(OR('TSA Input'!J3284=\"Yes\",'TSA Input'!J3284=\"Contingent\"),'TSA Input'!I3284,\"\"))","v":""},{"$f":"IF('TSA Input'!J3284=\"\",\"\",IF(OR('TSA Input'!J3284=\"Yes\",'TSA Input'!J3284=\"Contingent\"),'TSA Input'!C3284,\"\"))","v":""},{"$f":"IF('TSA Input'!J3284=\"\",\"\",IF(OR('TSA Input'!J3284=\"Yes\",'TSA Input'!J3284=\"Contingent\"),'TSA Input'!D3284,\"\"))","v":""},{"$f":"IF('TSA Input'!J3284=\"\",\"\",IF(OR('TSA Input'!J3284=\"Yes\",'TSA Input'!J3284=\"Contingent\"),'TSA Input'!G3284,\"\"))","v":""},{"$f":"IF('TSA Input'!J3284=\"\",\"\",IF(OR('TSA Input'!J3284=\"Yes\",'TSA Input'!J3284=\"Contingent\"),'TSA Input'!F3284,\"\"))","v":""},"",{"$f":"IF('TSA Input'!J3284=\"\",\"\",IF(OR('TSA Input'!J3284=\"Yes\",'TSA Input'!J3284=\"Contingent\"),'TSA Input'!D3284,\"\"))","v":""},{"$f":"IF('TSA Input'!J3284=\"\",\"\",IF(OR('TSA Input'!J3284=\"Yes\",'TSA Input'!J3284=\"Contingent\"),'TSA Input'!G3284,\"\"))","v":""},{"$f":"IF('TSA Input'!J3284=\"\",\"\",IF(OR('TSA Input'!J3284=\"Yes\",'TSA Input'!J3284=\"Contingent\"),'TSA Input'!F3284,\"\"))","v":""},"","Required","Required"]
["",null,{"$f":"IF('TSA Input'!J3285=\"\",\"\",IF(OR('TSA Input'!J3285=\"Yes\",'TSA Input'!J3285=\"Contingent\"),'TSA Input'!B3285,\"Ineligible\"))","v":""},{"$f":"IF('TSA Input'!J3285=\"\",\"\",IF(OR('TSA Input'!J3285=\"Yes\",'TSA Input'!J3285=\"Contingent\"),'TSA Input'!I3285,\"\"))","v":""},{"$f":"IF('TSA Input'!J3285=\"\",\"\",IF(OR('TSA Input'!J3285=\"Yes\",'TSA Input'!J3285=\"Contingent\"),'TSA Input'!C3285,\"\"))","v":""},{"$f":"IF('TSA Input'!J3285=\"\",\"\",IF(OR('TSA Input'!J3285=\"Yes\",'TSA Input'!J3285=\"Contingent\"),'TSA Input'!D3285,\"\"))","v":""},{"$f":"IF('TSA Input'!J3285=\"\",\"\",IF(OR('TSA Input'!J3285=\"Yes\",'TSA Input'!J3285=\"Contingent\"),'TSA Input'!G3285,\"\"))","v":""},{"$f":"IF('TSA Input'!J3285=\"\",\"\",IF(OR('TSA Input'!J3285=\"Yes\",'TSA Input'!J3285=\"Contingent\"),'TSA Input'!F3285,\"\"))","v":""},"",{"$f":"IF('TSA Input'!J3285=\"\",\"\",IF(OR('TSA Input'!J3285=\"Yes\",'TSA Input'!J3285=\"Contingent\"),'TSA Input'!D3285,\"\"))","v":""},{"$f":"IF('TSA Input'!J3285=\"\",\"\",IF(OR('TSA Input'!J3285=\"Yes\",'TSA Input'!J3285=\"Contingent\"),'TSA Input'!G3285,\"\"))","v":""},{"$f":"IF('TSA Input'!J3285=\"\",\"\",IF(OR('TSA Input'!J3285=\"Yes\",'TSA Input'!J3285=\"Contingent\"),'TSA Input'!F3285,\"\"))","v":""},"","Required","Required"]
["",null,{"$f":"IF('TSA Input'!J3286=\"\",\"\",IF(OR('TSA Input'!J3286=\"Yes\",'TSA Input'!J3286=\"Contingent\"),'TSA Input'!B3286,\"Ineligible\"))","v":""},{"$f":"IF('TSA Input'!J3286=\"\",\"\",IF(OR('TSA Input'!J3286=\"Yes\",'TSA Input'!J3286=\"Contingent\"),'TSA Input'!I3286,\"\"))","v":""},{"$f":"IF('TSA Input'!J3286=\"\",\"\",IF(OR('TSA Input'!J3286=\"Yes\",'TSA Input'!J3286=\"Contingent\"),'TSA Input'!C3286,\"\"))","v":""},{"$f":"IF('TSA Input'!J3286=\"\",\"\",IF(OR('TSA Input'!J3286=\"Yes\",'TSA Input'!J3286=\"Contingent\"),'TSA Input'!D3286,\"\"))","v":""},{"$f":"IF('TSA Input'!J3286=\"\",\"\",IF(OR('TSA Input'!J3286=\"Yes\",'TSA Input'!J3286=\"Contingent\"),'TSA Input'!G3286,\"\"))","v":""},{"$f":"IF('TSA Input'!J3286=\"\",\"\",IF(OR('TSA Input'!J3286=\"Yes\",'TSA Input'!J3286=\"Contingent\"),'TSA Input'!F3286,\"\"))","v":""},"",{"$f":"IF('TSA Input'!J3286=\"\",\"\",IF(OR('TSA Input'!J3286=\"Yes\",'TSA Input'!J3286=\"Contingent\"),'TSA Input'!D3286,\"\"))","v":""},{"$f":"IF('TSA Input'!J3286=\"\",\"\",IF(OR('TSA Input'!J3286=\"Yes\",'TSA Input'!J3286=\"Contingent\"),'TSA Input'!G3286,\"\"))","v":""},{"$f":"IF('TSA Input'!J3286=\"\",\"\",IF(OR('TSA Input'!J3286=\"Yes\",'TSA Input'!J3286=\"Contingent\"),'TSA Input'!F3286,\"\"))","v":""},"","Required","Required"]
["",null,{"$f":"IF('TSA Input'!J3287=\"\",\"\",IF(OR('TSA Input'!J3287=\"Yes\",'TSA Input'!J3287=\"Contingent\"),'TSA Input'!B3287,\"Ineligible\"))","v":""},{"$f":"IF('TSA Input'!J3287=\"\",\"\",IF(OR('TSA Input'!J3287=\"Yes\",'TSA Input'!J3287=\"Contingent\"),'TSA Input'!I3287,\"\"))","v":""},{"$f":"IF('TSA Input'!J3287=\"\",\"\",IF(OR('TSA Input'!J3287=\"Yes\",'TSA Input'!J3287=\"Contingent\"),'TSA Input'!C3287,\"\"))","v":""},{"$f":"IF('TSA Input'!J3287=\"\",\"\",IF(OR('TSA Input'!J3287=\"Yes\",'TSA Input'!J3287=\"Contingent\"),'TSA Input'!D3287,\"\"))","v":""},{"$f":"IF('TSA Input'!J3287=\"\",\"\",IF(OR('TSA Input'!J3287=\"Yes\",'TSA Input'!J3287=\"Contingent\"),'TSA Input'!G3287,\"\"))","v":""},{"$f":"IF('TSA Input'!J3287=\"\",\"\",IF(OR('TSA Input'!J3287=\"Yes\",'TSA Input'!J3287=\"Contingent\"),'TSA Input'!F3287,\"\"))","v":""},"",{"$f":"IF('TSA Input'!J3287=\"\",\"\",IF(OR('TSA Input'!J3287=\"Yes\",'TSA Input'!J3287=\"Contingent\"),'TSA Input'!D3287,\"\"))","v":""},{"$f":"IF('TSA Input'!J3287=\"\",\"\",IF(OR('TSA Input'!J3287=\"Yes\",'TSA Input'!J3287=\"Contingent\"),'TSA Input'!G3287,\"\"))","v":""},{"$f":"IF('TSA Input'!J3287=\"\",\"\",IF(OR('TSA Input'!J3287=\"Yes\",'TSA Input'!J3287=\"Contingent\"),'TSA Input'!F3287,\"\"))","v":""},"","Required","Required"]
["",null,{"$f":"IF('TSA Input'!J3288=\"\",\"\",IF(OR('TSA Input'!J3288=\"Yes\",'TSA Input'!J3288=\"Contingent\"),'TSA Input'!B3288,\"Ineligible\"))","v":""},{"$f":"IF('TSA Input'!J3288=\"\",\"\",IF(OR('TSA Input'!J3288=\"Yes\",'TSA Input'!J3288=\"Contingent\"),'TSA Input'!I3288,\"\"))","v":""},{"$f":"IF('TSA Input'!J3288=\"\",\"\",IF(OR('TSA Input'!J3288=\"Yes\",'TSA Input'!J3288=\"Contingent\"),'TSA Input'!C3288,\"\"))","v":""},{"$f":"IF('TSA Input'!J3288=\"\",\"\",IF(OR('TSA Input'!J3288=\"Yes\",'TSA Input'!J3288=\"Contingent\"),'TSA Input'!D3288,\"\"))","v":""},{"$f":"IF('TSA Input'!J3288=\"\",\"\",IF(OR('TSA Input'!J3288=\"Yes\",'TSA Input'!J3288=\"Contingent\"),'TSA Input'!G3288,\"\"))","v":""},{"$f":"IF('TSA Input'!J3288=\"\",\"\",IF(OR('TSA Input'!J3288=\"Yes\",'TSA Input'!J3288=\"Contingent\"),'TSA Input'!F3288,\"\"))","v":""},"",{"$f":"IF('TSA Input'!J3288=\"\",\"\",IF(OR('TSA Input'!J3288=\"Yes\",'TSA Input'!J3288=\"Contingent\"),'TSA Input'!D3288,\"\"))","v":""},{"$f":"IF('TSA Input'!J3288=\"\",\"\",IF(OR('TSA Input'!J3288=\"Yes\",'TSA Input'!J3288=\"Contingent\"),'TSA Input'!G3288,\"\"))","v":""},{"$f":"IF('TSA Input'!J3288=\"\",\"\",IF(OR('TSA Input'!J3288=\"Yes\",'TSA Input'!J3288=\"Contingent\"),'TSA Input'!F3288,\"\"))","v":""},"","Required","Required"]
["",null,{"$f":"IF('TSA Input'!J3289=\"\",\"\",IF(OR('TSA Input'!J3289=\"Yes\",'TSA Input'!J3289=\"Contingent\"),'TSA Input'!B3289,\"Ineligible\"))","v":""},{"$f":"IF('TSA Input'!J3289=\"\",\"\",IF(OR('TSA Input'!J3289=\"Yes\",'TSA Input'!J3289=\"Contingent\"),'TSA Input'!I3289,\"\"))","v":""},{"$f":"IF('TSA Input'!J3289=\"\",\"\",IF(OR('TSA Input'!J3289=\"Yes\",'TSA Input'!J3289=\"Contingent\"),'TSA Input'!C3289,\"\"))","v":""},{"$f":"IF('TSA Input'!J3289=\"\",\"\",IF(OR('TSA Input'!J3289=\"Yes\",'TSA Input'!J3289=\"Contingent\"),'TSA Input'!D3289,\"\"))","v":""},{"$f":"IF('TSA Input'!J3289=\"\",\"\",IF(OR('TSA Input'!J3289=\"Yes\",'TSA Input'!J3289=\"Contingent\"),'TSA Input'!G3289,\"\"))","v":""},{"$f":"IF('TSA Input'!J3289=\"\",\"\",IF(OR('TSA Input'!J3289=\"Yes\",'TSA Input'!J3289=\"Contingent\"),'TSA Input'!F3289,\"\"))","v":""},"",{"$f":"IF('TSA Input'!J3289=\"\",\"\",IF(OR('TSA Input'!J3289=\"Yes\",'TSA Input'!J3289=\"Contingent\"),'TSA Input'!D3289,\"\"))","v":""},{"$f":"IF('TSA Input'!J3289=\"\",\"\",IF(OR('TSA Input'!J3289=\"Yes\",'TSA Input'!J3289=\"Contingent\"),'TSA Input'!G3289,\"\"))","v":""},{"$f":"IF('TSA Input'!J3289=\"\",\"\",IF(OR('TSA Input'!J3289=\"Yes\",'TSA Input'!J3289=\"Contingent\"),'TSA Input'!F3289,\"\"))","v":""},"","Required","Required"]
["",null,{"$f":"IF('TSA Input'!J3290=\"\",\"\",IF(OR('TSA Input'!J3290=\"Yes\",'TSA Input'!J3290=\"Contingent\"),'TSA Input'!B3290,\"Ineligible\"))","v":""},{"$f":"IF('TSA Input'!J3290=\"\",\"\",IF(OR('TSA Input'!J3290=\"Yes\",'TSA Input'!J3290=\"Contingent\"),'TSA Input'!I3290,\"\"))","v":""},{"$f":"IF('TSA Input'!J3290=\"\",\"\",IF(OR('TSA Input'!J3290=\"Yes\",'TSA Input'!J3290=\"Contingent\"),'TSA Input'!C3290,\"\"))","v":""},{"$f":"IF('TSA Input'!J3290=\"\",\"\",IF(OR('TSA Input'!J3290=\"Yes\",'TSA Input'!J3290=\"Contingent\"),'TSA Input'!D3290,\"\"))","v":""},{"$f":"IF('TSA Input'!J3290=\"\",\"\",IF(OR('TSA Input'!J3290=\"Yes\",'TSA Input'!J3290=\"Contingent\"),'TSA Input'!G3290,\"\"))","v":""},{"$f":"IF('TSA Input'!J3290=\"\",\"\",IF(OR('TSA Input'!J3290=\"Yes\",'TSA Input'!J3290=\"Contingent\"),'TSA Input'!F3290,\"\"))","v":""},"",{"$f":"IF('TSA Input'!J3290=\"\",\"\",IF(OR('TSA Input'!J3290=\"Yes\",'TSA Input'!J3290=\"Contingent\"),'TSA Input'!D3290,\"\"))","v":""},{"$f":"IF('TSA Input'!J3290=\"\",\"\",IF(OR('TSA Input'!J3290=\"Yes\",'TSA Input'!J3290=\"Contingent\"),'TSA Input'!G3290,\"\"))","v":""},{"$f":"IF('TSA Input'!J3290=\"\",\"\",IF(OR('TSA Input'!J3290=\"Yes\",'TSA Input'!J3290=\"Contingent\"),'TSA Input'!F3290,\"\"))","v":""},"","Required","Required"]
["",null,{"$f":"IF('TSA Input'!J3291=\"\",\"\",IF(OR('TSA Input'!J3291=\"Yes\",'TSA Input'!J3291=\"Contingent\"),'TSA Input'!B3291,\"Ineligible\"))","v":""},{"$f":"IF('TSA Input'!J3291=\"\",\"\",IF(OR('TSA Input'!J3291=\"Yes\",'TSA Input'!J3291=\"Contingent\"),'TSA Input'!I3291,\"\"))","v":""},{"$f":"IF('TSA Input'!J3291=\"\",\"\",IF(OR('TSA Input'!J3291=\"Yes\",'TSA Input'!J3291=\"Contingent\"),'TSA Input'!C3291,\"\"))","v":""},{"$f":"IF('TSA Input'!J3291=\"\",\"\",IF(OR('TSA Input'!J3291=\"Yes\",'TSA Input'!J3291=\"Contingent\"),'TSA Input'!D3291,\"\"))","v":""},{"$f":"IF('TSA Input'!J3291=\"\",\"\",IF(OR('TSA Input'!J3291=\"Yes\",'TSA Input'!J3291=\"Contingent\"),'TSA Input'!G3291,\"\"))","v":""},{"$f":"IF('TSA Input'!J3291=\"\",\"\",IF(OR('TSA Input'!J3291=\"Yes\",'TSA Input'!J3291=\"Contingent\"),'TSA Input'!F3291,\"\"))","v":""},"",{"$f":"IF('TSA Input'!J3291=\"\",\"\",IF(OR('TSA Input'!J3291=\"Yes\",'TSA Input'!J3291=\"Contingent\"),'TSA Input'!D3291,\"\"))","v":""},{"$f":"IF('TSA Input'!J3291=\"\",\"\",IF(OR('TSA Input'!J3291=\"Yes\",'TSA Input'!J3291=\"Contingent\"),'TSA Input'!G3291,\"\"))","v":""},{"$f":"IF('TSA Input'!J3291=\"\",\"\",IF(OR('TSA Input'!J3291=\"Yes\",'TSA Input'!J3291=\"Contingent\"),'TSA Input'!F3291,\"\"))","v":""},"","Required","Required"]
["",null,{"$f":"IF('TSA Input'!J3292=\"\",\"\",IF(OR('TSA Input'!J3292=\"Yes\",'TSA Input'!J3292=\"Contingent\"),'TSA Input'!B3292,\"Ineligible\"))","v":""},{"$f":"IF('TSA Input'!J3292=\"\",\"\",IF(OR('TSA Input'!J3292=\"Yes\",'TSA Input'!J3292=\"Contingent\"),'TSA Input'!I3292,\"\"))","v":""},{"$f":"IF('TSA Input'!J3292=\"\",\"\",IF(OR('TSA Input'!J3292=\"Yes\",'TSA Input'!J3292=\"Contingent\"),'TSA Input'!C3292,\"\"))","v":""},{"$f":"IF('TSA Input'!J3292=\"\",\"\",IF(OR('TSA Input'!J3292=\"Yes\",'TSA Input'!J3292=\"Contingent\"),'TSA Input'!D3292,\"\"))","v":""},{"$f":"IF('TSA Input'!J3292=\"\",\"\",IF(OR('TSA Input'!J3292=\"Yes\",'TSA Input'!J3292=\"Contingent\"),'TSA Input'!G3292,\"\"))","v":""},{"$f":"IF('TSA Input'!J3292=\"\",\"\",IF(OR('TSA Input'!J3292=\"Yes\",'TSA Input'!J3292=\"Contingent\"),'TSA Input'!F3292,\"\"))","v":""},"",{"$f":"IF('TSA Input'!J3292=\"\",\"\",IF(OR('TSA Input'!J3292=\"Yes\",'TSA Input'!J3292=\"Contingent\"),'TSA Input'!D3292,\"\"))","v":""},{"$f":"IF('TSA Input'!J3292=\"\",\"\",IF(OR('TSA Input'!J3292=\"Yes\",'TSA Input'!J3292=\"Contingent\"),'TSA Input'!G3292,\"\"))","v":""},{"$f":"IF('TSA Input'!J3292=\"\",\"\",IF(OR('TSA Input'!J3292=\"Yes\",'TSA Input'!J3292=\"Contingent\"),'TSA Input'!F3292,\"\"))","v":""},"","Required","Required"]
["",null,{"$f":"IF('TSA Input'!J3293=\"\",\"\",IF(OR('TSA Input'!J3293=\"Yes\",'TSA Input'!J3293=\"Contingent\"),'TSA Input'!B3293,\"Ineligible\"))","v":""},{"$f":"IF('TSA Input'!J3293=\"\",\"\",IF(OR('TSA Input'!J3293=\"Yes\",'TSA Input'!J3293=\"Contingent\"),'TSA Input'!I3293,\"\"))","v":""},{"$f":"IF('TSA Input'!J3293=\"\",\"\",IF(OR('TSA Input'!J3293=\"Yes\",'TSA Input'!J3293=\"Contingent\"),'TSA Input'!C3293,\"\"))","v":""},{"$f":"IF('TSA Input'!J3293=\"\",\"\",IF(OR('TSA Input'!J3293=\"Yes\",'TSA Input'!J3293=\"Contingent\"),'TSA Input'!D3293,\"\"))","v":""},{"$f":"IF('TSA Input'!J3293=\"\",\"\",IF(OR('TSA Input'!J3293=\"Yes\",'TSA Input'!J3293=\"Contingent\"),'TSA Input'!G3293,\"\"))","v":""},{"$f":"IF('TSA Input'!J3293=\"\",\"\",IF(OR('TSA Input'!J3293=\"Yes\",'TSA Input'!J3293=\"Contingent\"),'TSA Input'!F3293,\"\"))","v":""},"",{"$f":"IF('TSA Input'!J3293=\"\",\"\",IF(OR('TSA Input'!J3293=\"Yes\",'TSA Input'!J3293=\"Contingent\"),'TSA Input'!D3293,\"\"))","v":""},{"$f":"IF('TSA Input'!J3293=\"\",\"\",IF(OR('TSA Input'!J3293=\"Yes\",'TSA Input'!J3293=\"Contingent\"),'TSA Input'!G3293,\"\"))","v":""},{"$f":"IF('TSA Input'!J3293=\"\",\"\",IF(OR('TSA Input'!J3293=\"Yes\",'TSA Input'!J3293=\"Contingent\"),'TSA Input'!F3293,\"\"))","v":""},"","Required","Required"]
["",null,{"$f":"IF('TSA Input'!J3294=\"\",\"\",IF(OR('TSA Input'!J3294=\"Yes\",'TSA Input'!J3294=\"Contingent\"),'TSA Input'!B3294,\"Ineligible\"))","v":""},{"$f":"IF('TSA Input'!J3294=\"\",\"\",IF(OR('TSA Input'!J3294=\"Yes\",'TSA Input'!J3294=\"Contingent\"),'TSA Input'!I3294,\"\"))","v":""},{"$f":"IF('TSA Input'!J3294=\"\",\"\",IF(OR('TSA Input'!J3294=\"Yes\",'TSA Input'!J3294=\"Contingent\"),'TSA Input'!C3294,\"\"))","v":""},{"$f":"IF('TSA Input'!J3294=\"\",\"\",IF(OR('TSA Input'!J3294=\"Yes\",'TSA Input'!J3294=\"Contingent\"),'TSA Input'!D3294,\"\"))","v":""},{"$f":"IF('TSA Input'!J3294=\"\",\"\",IF(OR('TSA Input'!J3294=\"Yes\",'TSA Input'!J3294=\"Contingent\"),'TSA Input'!G3294,\"\"))","v":""},{"$f":"IF('TSA Input'!J3294=\"\",\"\",IF(OR('TSA Input'!J3294=\"Yes\",'TSA Input'!J3294=\"Contingent\"),'TSA Input'!F3294,\"\"))","v":""},"",{"$f":"IF('TSA Input'!J3294=\"\",\"\",IF(OR('TSA Input'!J3294=\"Yes\",'TSA Input'!J3294=\"Contingent\"),'TSA Input'!D3294,\"\"))","v":""},{"$f":"IF('TSA Input'!J3294=\"\",\"\",IF(OR('TSA Input'!J3294=\"Yes\",'TSA Input'!J3294=\"Contingent\"),'TSA Input'!G3294,\"\"))","v":""},{"$f":"IF('TSA Input'!J3294=\"\",\"\",IF(OR('TSA Input'!J3294=\"Yes\",'TSA Input'!J3294=\"Contingent\"),'TSA Input'!F3294,\"\"))","v":""},"","Required","Required"]
["",null,{"$f":"IF('TSA Input'!J3295=\"\",\"\",IF(OR('TSA Input'!J3295=\"Yes\",'TSA Input'!J3295=\"Contingent\"),'TSA Input'!B3295,\"Ineligible\"))","v":""},{"$f":"IF('TSA Input'!J3295=\"\",\"\",IF(OR('TSA Input'!J3295=\"Yes\",'TSA Input'!J3295=\"Contingent\"),'TSA Input'!I3295,\"\"))","v":""},{"$f":"IF('TSA Input'!J3295=\"\",\"\",IF(OR('TSA Input'!J3295=\"Yes\",'TSA Input'!J3295=\"Contingent\"),'TSA Input'!C3295,\"\"))","v":""},{"$f":"IF('TSA Input'!J3295=\"\",\"\",IF(OR('TSA Input'!J3295=\"Yes\",'TSA Input'!J3295=\"Contingent\"),'TSA Input'!D3295,\"\"))","v":""},{"$f":"IF('TSA Input'!J3295=\"\",\"\",IF(OR('TSA Input'!J3295=\"Yes\",'TSA Input'!J3295=\"Contingent\"),'TSA Input'!G3295,\"\"))","v":""},{"$f":"IF('TSA Input'!J3295=\"\",\"\",IF(OR('TSA Input'!J3295=\"Yes\",'TSA Input'!J3295=\"Contingent\"),'TSA Input'!F3295,\"\"))","v":""},"",{"$f":"IF('TSA Input'!J3295=\"\",\"\",IF(OR('TSA Input'!J3295=\"Yes\",'TSA Input'!J3295=\"Contingent\"),'TSA Input'!D3295,\"\"))","v":""},{"$f":"IF('TSA Input'!J3295=\"\",\"\",IF(OR('TSA Input'!J3295=\"Yes\",'TSA Input'!J3295=\"Contingent\"),'TSA Input'!G3295,\"\"))","v":""},{"$f":"IF('TSA Input'!J3295=\"\",\"\",IF(OR('TSA Input'!J3295=\"Yes\",'TSA Input'!J3295=\"Contingent\"),'TSA Input'!F3295,\"\"))","v":""},"","Required","Required"]
["",null,{"$f":"IF('TSA Input'!J3296=\"\",\"\",IF(OR('TSA Input'!J3296=\"Yes\",'TSA Input'!J3296=\"Contingent\"),'TSA Input'!B3296,\"Ineligible\"))","v":""},{"$f":"IF('TSA Input'!J3296=\"\",\"\",IF(OR('TSA Input'!J3296=\"Yes\",'TSA Input'!J3296=\"Contingent\"),'TSA Input'!I3296,\"\"))","v":""},{"$f":"IF('TSA Input'!J3296=\"\",\"\",IF(OR('TSA Input'!J3296=\"Yes\",'TSA Input'!J3296=\"Contingent\"),'TSA Input'!C3296,\"\"))","v":""},{"$f":"IF('TSA Input'!J3296=\"\",\"\",IF(OR('TSA Input'!J3296=\"Yes\",'TSA Input'!J3296=\"Contingent\"),'TSA Input'!D3296,\"\"))","v":""},{"$f":"IF('TSA Input'!J3296=\"\",\"\",IF(OR('TSA Input'!J3296=\"Yes\",'TSA Input'!J3296=\"Contingent\"),'TSA Input'!G3296,\"\"))","v":""},{"$f":"IF('TSA Input'!J3296=\"\",\"\",IF(OR('TSA Input'!J3296=\"Yes\",'TSA Input'!J3296=\"Contingent\"),'TSA Input'!F3296,\"\"))","v":""},"",{"$f":"IF('TSA Input'!J3296=\"\",\"\",IF(OR('TSA Input'!J3296=\"Yes\",'TSA Input'!J3296=\"Contingent\"),'TSA Input'!D3296,\"\"))","v":""},{"$f":"IF('TSA Input'!J3296=\"\",\"\",IF(OR('TSA Input'!J3296=\"Yes\",'TSA Input'!J3296=\"Contingent\"),'TSA Input'!G3296,\"\"))","v":""},{"$f":"IF('TSA Input'!J3296=\"\",\"\",IF(OR('TSA Input'!J3296=\"Yes\",'TSA Input'!J3296=\"Contingent\"),'TSA Input'!F3296,\"\"))","v":""},"","Required","Required"]
["",null,{"$f":"IF('TSA Input'!J3297=\"\",\"\",IF(OR('TSA Input'!J3297=\"Yes\",'TSA Input'!J3297=\"Contingent\"),'TSA Input'!B3297,\"Ineligible\"))","v":""},{"$f":"IF('TSA Input'!J3297=\"\",\"\",IF(OR('TSA Input'!J3297=\"Yes\",'TSA Input'!J3297=\"Contingent\"),'TSA Input'!I3297,\"\"))","v":""},{"$f":"IF('TSA Input'!J3297=\"\",\"\",IF(OR('TSA Input'!J3297=\"Yes\",'TSA Input'!J3297=\"Contingent\"),'TSA Input'!C3297,\"\"))","v":""},{"$f":"IF('TSA Input'!J3297=\"\",\"\",IF(OR('TSA Input'!J3297=\"Yes\",'TSA Input'!J3297=\"Contingent\"),'TSA Input'!D3297,\"\"))","v":""},{"$f":"IF('TSA Input'!J3297=\"\",\"\",IF(OR('TSA Input'!J3297=\"Yes\",'TSA Input'!J3297=\"Contingent\"),'TSA Input'!G3297,\"\"))","v":""},{"$f":"IF('TSA Input'!J3297=\"\",\"\",IF(OR('TSA Input'!J3297=\"Yes\",'TSA Input'!J3297=\"Contingent\"),'TSA Input'!F3297,\"\"))","v":""},"",{"$f":"IF('TSA Input'!J3297=\"\",\"\",IF(OR('TSA Input'!J3297=\"Yes\",'TSA Input'!J3297=\"Contingent\"),'TSA Input'!D3297,\"\"))","v":""},{"$f":"IF('TSA Input'!J3297=\"\",\"\",IF(OR('TSA Input'!J3297=\"Yes\",'TSA Input'!J3297=\"Contingent\"),'TSA Input'!G3297,\"\"))","v":""},{"$f":"IF('TSA Input'!J3297=\"\",\"\",IF(OR('TSA Input'!J3297=\"Yes\",'TSA Input'!J3297=\"Contingent\"),'TSA Input'!F3297,\"\"))","v":""},"","Required","Required"]
["",null,{"$f":"IF('TSA Input'!J3298=\"\",\"\",IF(OR('TSA Input'!J3298=\"Yes\",'TSA Input'!J3298=\"Contingent\"),'TSA Input'!B3298,\"Ineligible\"))","v":""},{"$f":"IF('TSA Input'!J3298=\"\",\"\",IF(OR('TSA Input'!J3298=\"Yes\",'TSA Input'!J3298=\"Contingent\"),'TSA Input'!I3298,\"\"))","v":""},{"$f":"IF('TSA Input'!J3298=\"\",\"\",IF(OR('TSA Input'!J3298=\"Yes\",'TSA Input'!J3298=\"Contingent\"),'TSA Input'!C3298,\"\"))","v":""},{"$f":"IF('TSA Input'!J3298=\"\",\"\",IF(OR('TSA Input'!J3298=\"Yes\",'TSA Input'!J3298=\"Contingent\"),'TSA Input'!D3298,\"\"))","v":""},{"$f":"IF('TSA Input'!J3298=\"\",\"\",IF(OR('TSA Input'!J3298=\"Yes\",'TSA Input'!J3298=\"Contingent\"),'TSA Input'!G3298,\"\"))","v":""},{"$f":"IF('TSA Input'!J3298=\"\",\"\",IF(OR('TSA Input'!J3298=\"Yes\",'TSA Input'!J3298=\"Contingent\"),'TSA Input'!F3298,\"\"))","v":""},"",{"$f":"IF('TSA Input'!J3298=\"\",\"\",IF(OR('TSA Input'!J3298=\"Yes\",'TSA Input'!J3298=\"Contingent\"),'TSA Input'!D3298,\"\"))","v":""},{"$f":"IF('TSA Input'!J3298=\"\",\"\",IF(OR('TSA Input'!J3298=\"Yes\",'TSA Input'!J3298=\"Contingent\"),'TSA Input'!G3298,\"\"))","v":""},{"$f":"IF('TSA Input'!J3298=\"\",\"\",IF(OR('TSA Input'!J3298=\"Yes\",'TSA Input'!J3298=\"Contingent\"),'TSA Input'!F3298,\"\"))","v":""},"","Required","Required"]
["",null,{"$f":"IF('TSA Input'!J3299=\"\",\"\",IF(OR('TSA Input'!J3299=\"Yes\",'TSA Input'!J3299=\"Contingent\"),'TSA Input'!B3299,\"Ineligible\"))","v":""},{"$f":"IF('TSA Input'!J3299=\"\",\"\",IF(OR('TSA Input'!J3299=\"Yes\",'TSA Input'!J3299=\"Contingent\"),'TSA Input'!I3299,\"\"))","v":""},{"$f":"IF('TSA Input'!J3299=\"\",\"\",IF(OR('TSA Input'!J3299=\"Yes\",'TSA Input'!J3299=\"Contingent\"),'TSA Input'!C3299,\"\"))","v":""},{"$f":"IF('TSA Input'!J3299=\"\",\"\",IF(OR('TSA Input'!J3299=\"Yes\",'TSA Input'!J3299=\"Contingent\"),'TSA Input'!D3299,\"\"))","v":""},{"$f":"IF('TSA Input'!J3299=\"\",\"\",IF(OR('TSA Input'!J3299=\"Yes\",'TSA Input'!J3299=\"Contingent\"),'TSA Input'!G3299,\"\"))","v":""},{"$f":"IF('TSA Input'!J3299=\"\",\"\",IF(OR('TSA Input'!J3299=\"Yes\",'TSA Input'!J3299=\"Contingent\"),'TSA Input'!F3299,\"\"))","v":""},"",{"$f":"IF('TSA Input'!J3299=\"\",\"\",IF(OR('TSA Input'!J3299=\"Yes\",'TSA Input'!J3299=\"Contingent\"),'TSA Input'!D3299,\"\"))","v":""},{"$f":"IF('TSA Input'!J3299=\"\",\"\",IF(OR('TSA Input'!J3299=\"Yes\",'TSA Input'!J3299=\"Contingent\"),'TSA Input'!G3299,\"\"))","v":""},{"$f":"IF('TSA Input'!J3299=\"\",\"\",IF(OR('TSA Input'!J3299=\"Yes\",'TSA Input'!J3299=\"Contingent\"),'TSA Input'!F3299,\"\"))","v":""},"","Required","Required"]
["",null,{"$f":"IF('TSA Input'!J3300=\"\",\"\",IF(OR('TSA Input'!J3300=\"Yes\",'TSA Input'!J3300=\"Contingent\"),'TSA Input'!B3300,\"Ineligible\"))","v":""},{"$f":"IF('TSA Input'!J3300=\"\",\"\",IF(OR('TSA Input'!J3300=\"Yes\",'TSA Input'!J3300=\"Contingent\"),'TSA Input'!I3300,\"\"))","v":""},{"$f":"IF('TSA Input'!J3300=\"\",\"\",IF(OR('TSA Input'!J3300=\"Yes\",'TSA Input'!J3300=\"Contingent\"),'TSA Input'!C3300,\"\"))","v":""},{"$f":"IF('TSA Input'!J3300=\"\",\"\",IF(OR('TSA Input'!J3300=\"Yes\",'TSA Input'!J3300=\"Contingent\"),'TSA Input'!D3300,\"\"))","v":""},{"$f":"IF('TSA Input'!J3300=\"\",\"\",IF(OR('TSA Input'!J3300=\"Yes\",'TSA Input'!J3300=\"Contingent\"),'TSA Input'!G3300,\"\"))","v":""},{"$f":"IF('TSA Input'!J3300=\"\",\"\",IF(OR('TSA Input'!J3300=\"Yes\",'TSA Input'!J3300=\"Contingent\"),'TSA Input'!F3300,\"\"))","v":""},"",{"$f":"IF('TSA Input'!J3300=\"\",\"\",IF(OR('TSA Input'!J3300=\"Yes\",'TSA Input'!J3300=\"Contingent\"),'TSA Input'!D3300,\"\"))","v":""},{"$f":"IF('TSA Input'!J3300=\"\",\"\",IF(OR('TSA Input'!J3300=\"Yes\",'TSA Input'!J3300=\"Contingent\"),'TSA Input'!G3300,\"\"))","v":""},{"$f":"IF('TSA Input'!J3300=\"\",\"\",IF(OR('TSA Input'!J3300=\"Yes\",'TSA Input'!J3300=\"Contingent\"),'TSA Input'!F3300,\"\"))","v":""},"","Required","Required"]
["",null,{"$f":"IF('TSA Input'!J3301=\"\",\"\",IF(OR('TSA Input'!J3301=\"Yes\",'TSA Input'!J3301=\"Contingent\"),'TSA Input'!B3301,\"Ineligible\"))","v":""},{"$f":"IF('TSA Input'!J3301=\"\",\"\",IF(OR('TSA Input'!J3301=\"Yes\",'TSA Input'!J3301=\"Contingent\"),'TSA Input'!I3301,\"\"))","v":""},{"$f":"IF('TSA Input'!J3301=\"\",\"\",IF(OR('TSA Input'!J3301=\"Yes\",'TSA Input'!J3301=\"Contingent\"),'TSA Input'!C3301,\"\"))","v":""},{"$f":"IF('TSA Input'!J3301=\"\",\"\",IF(OR('TSA Input'!J3301=\"Yes\",'TSA Input'!J3301=\"Contingent\"),'TSA Input'!D3301,\"\"))","v":""},{"$f":"IF('TSA Input'!J3301=\"\",\"\",IF(OR('TSA Input'!J3301=\"Yes\",'TSA Input'!J3301=\"Contingent\"),'TSA Input'!G3301,\"\"))","v":""},{"$f":"IF('TSA Input'!J3301=\"\",\"\",IF(OR('TSA Input'!J3301=\"Yes\",'TSA Input'!J3301=\"Contingent\"),'TSA Input'!F3301,\"\"))","v":""},"",{"$f":"IF('TSA Input'!J3301=\"\",\"\",IF(OR('TSA Input'!J3301=\"Yes\",'TSA Input'!J3301=\"Contingent\"),'TSA Input'!D3301,\"\"))","v":""},{"$f":"IF('TSA Input'!J3301=\"\",\"\",IF(OR('TSA Input'!J3301=\"Yes\",'TSA Input'!J3301=\"Contingent\"),'TSA Input'!G3301,\"\"))","v":""},{"$f":"IF('TSA Input'!J3301=\"\",\"\",IF(OR('TSA Input'!J3301=\"Yes\",'TSA Input'!J3301=\"Contingent\"),'TSA Input'!F3301,\"\"))","v":""},"","Required","Required"]
["",null,{"$f":"IF('TSA Input'!J3302=\"\",\"\",IF(OR('TSA Input'!J3302=\"Yes\",'TSA Input'!J3302=\"Contingent\"),'TSA Input'!B3302,\"Ineligible\"))","v":""},{"$f":"IF('TSA Input'!J3302=\"\",\"\",IF(OR('TSA Input'!J3302=\"Yes\",'TSA Input'!J3302=\"Contingent\"),'TSA Input'!I3302,\"\"))","v":""},{"$f":"IF('TSA Input'!J3302=\"\",\"\",IF(OR('TSA Input'!J3302=\"Yes\",'TSA Input'!J3302=\"Contingent\"),'TSA Input'!C3302,\"\"))","v":""},{"$f":"IF('TSA Input'!J3302=\"\",\"\",IF(OR('TSA Input'!J3302=\"Yes\",'TSA Input'!J3302=\"Contingent\"),'TSA Input'!D3302,\"\"))","v":""},{"$f":"IF('TSA Input'!J3302=\"\",\"\",IF(OR('TSA Input'!J3302=\"Yes\",'TSA Input'!J3302=\"Contingent\"),'TSA Input'!G3302,\"\"))","v":""},{"$f":"IF('TSA Input'!J3302=\"\",\"\",IF(OR('TSA Input'!J3302=\"Yes\",'TSA Input'!J3302=\"Contingent\"),'TSA Input'!F3302,\"\"))","v":""},"",{"$f":"IF('TSA Input'!J3302=\"\",\"\",IF(OR('TSA Input'!J3302=\"Yes\",'TSA Input'!J3302=\"Contingent\"),'TSA Input'!D3302,\"\"))","v":""},{"$f":"IF('TSA Input'!J3302=\"\",\"\",IF(OR('TSA Input'!J3302=\"Yes\",'TSA Input'!J3302=\"Contingent\"),'TSA Input'!G3302,\"\"))","v":""},{"$f":"IF('TSA Input'!J3302=\"\",\"\",IF(OR('TSA Input'!J3302=\"Yes\",'TSA Input'!J3302=\"Contingent\"),'TSA Input'!F3302,\"\"))","v":""},"","Required","Required"]
["",null,{"$f":"IF('TSA Input'!J3303=\"\",\"\",IF(OR('TSA Input'!J3303=\"Yes\",'TSA Input'!J3303=\"Contingent\"),'TSA Input'!B3303,\"Ineligible\"))","v":""},{"$f":"IF('TSA Input'!J3303=\"\",\"\",IF(OR('TSA Input'!J3303=\"Yes\",'TSA Input'!J3303=\"Contingent\"),'TSA Input'!I3303,\"\"))","v":""},{"$f":"IF('TSA Input'!J3303=\"\",\"\",IF(OR('TSA Input'!J3303=\"Yes\",'TSA Input'!J3303=\"Contingent\"),'TSA Input'!C3303,\"\"))","v":""},{"$f":"IF('TSA Input'!J3303=\"\",\"\",IF(OR('TSA Input'!J3303=\"Yes\",'TSA Input'!J3303=\"Contingent\"),'TSA Input'!D3303,\"\"))","v":""},{"$f":"IF('TSA Input'!J3303=\"\",\"\",IF(OR('TSA Input'!J3303=\"Yes\",'TSA Input'!J3303=\"Contingent\"),'TSA Input'!G3303,\"\"))","v":""},{"$f":"IF('TSA Input'!J3303=\"\",\"\",IF(OR('TSA Input'!J3303=\"Yes\",'TSA Input'!J3303=\"Contingent\"),'TSA Input'!F3303,\"\"))","v":""},"",{"$f":"IF('TSA Input'!J3303=\"\",\"\",IF(OR('TSA Input'!J3303=\"Yes\",'TSA Input'!J3303=\"Contingent\"),'TSA Input'!D3303,\"\"))","v":""},{"$f":"IF('TSA Input'!J3303=\"\",\"\",IF(OR('TSA Input'!J3303=\"Yes\",'TSA Input'!J3303=\"Contingent\"),'TSA Input'!G3303,\"\"))","v":""},{"$f":"IF('TSA Input'!J3303=\"\",\"\",IF(OR('TSA Input'!J3303=\"Yes\",'TSA Input'!J3303=\"Contingent\"),'TSA Input'!F3303,\"\"))","v":""},"","Required","Required"]
["",null,{"$f":"IF('TSA Input'!J3304=\"\",\"\",IF(OR('TSA Input'!J3304=\"Yes\",'TSA Input'!J3304=\"Contingent\"),'TSA Input'!B3304,\"Ineligible\"))","v":""},{"$f":"IF('TSA Input'!J3304=\"\",\"\",IF(OR('TSA Input'!J3304=\"Yes\",'TSA Input'!J3304=\"Contingent\"),'TSA Input'!I3304,\"\"))","v":""},{"$f":"IF('TSA Input'!J3304=\"\",\"\",IF(OR('TSA Input'!J3304=\"Yes\",'TSA Input'!J3304=\"Contingent\"),'TSA Input'!C3304,\"\"))","v":""},{"$f":"IF('TSA Input'!J3304=\"\",\"\",IF(OR('TSA Input'!J3304=\"Yes\",'TSA Input'!J3304=\"Contingent\"),'TSA Input'!D3304,\"\"))","v":""},{"$f":"IF('TSA Input'!J3304=\"\",\"\",IF(OR('TSA Input'!J3304=\"Yes\",'TSA Input'!J3304=\"Contingent\"),'TSA Input'!G3304,\"\"))","v":""},{"$f":"IF('TSA Input'!J3304=\"\",\"\",IF(OR('TSA Input'!J3304=\"Yes\",'TSA Input'!J3304=\"Contingent\"),'TSA Input'!F3304,\"\"))","v":""},"",{"$f":"IF('TSA Input'!J3304=\"\",\"\",IF(OR('TSA Input'!J3304=\"Yes\",'TSA Input'!J3304=\"Contingent\"),'TSA Input'!D3304,\"\"))","v":""},{"$f":"IF('TSA Input'!J3304=\"\",\"\",IF(OR('TSA Input'!J3304=\"Yes\",'TSA Input'!J3304=\"Contingent\"),'TSA Input'!G3304,\"\"))","v":""},{"$f":"IF('TSA Input'!J3304=\"\",\"\",IF(OR('TSA Input'!J3304=\"Yes\",'TSA Input'!J3304=\"Contingent\"),'TSA Input'!F3304,\"\"))","v":""},"","Required","Required"]
["",null,{"$f":"IF('TSA Input'!J3305=\"\",\"\",IF(OR('TSA Input'!J3305=\"Yes\",'TSA Input'!J3305=\"Contingent\"),'TSA Input'!B3305,\"Ineligible\"))","v":""},{"$f":"IF('TSA Input'!J3305=\"\",\"\",IF(OR('TSA Input'!J3305=\"Yes\",'TSA Input'!J3305=\"Contingent\"),'TSA Input'!I3305,\"\"))","v":""},{"$f":"IF('TSA Input'!J3305=\"\",\"\",IF(OR('TSA Input'!J3305=\"Yes\",'TSA Input'!J3305=\"Contingent\"),'TSA Input'!C3305,\"\"))","v":""},{"$f":"IF('TSA Input'!J3305=\"\",\"\",IF(OR('TSA Input'!J3305=\"Yes\",'TSA Input'!J3305=\"Contingent\"),'TSA Input'!D3305,\"\"))","v":""},{"$f":"IF('TSA Input'!J3305=\"\",\"\",IF(OR('TSA Input'!J3305=\"Yes\",'TSA Input'!J3305=\"Contingent\"),'TSA Input'!G3305,\"\"))","v":""},{"$f":"IF('TSA Input'!J3305=\"\",\"\",IF(OR('TSA Input'!J3305=\"Yes\",'TSA Input'!J3305=\"Contingent\"),'TSA Input'!F3305,\"\"))","v":""},"",{"$f":"IF('TSA Input'!J3305=\"\",\"\",IF(OR('TSA Input'!J3305=\"Yes\",'TSA Input'!J3305=\"Contingent\"),'TSA Input'!D3305,\"\"))","v":""},{"$f":"IF('TSA Input'!J3305=\"\",\"\",IF(OR('TSA Input'!J3305=\"Yes\",'TSA Input'!J3305=\"Contingent\"),'TSA Input'!G3305,\"\"))","v":""},{"$f":"IF('TSA Input'!J3305=\"\",\"\",IF(OR('TSA Input'!J3305=\"Yes\",'TSA Input'!J3305=\"Contingent\"),'TSA Input'!F3305,\"\"))","v":""},"","Required","Required"]
["",null,{"$f":"IF('TSA Input'!J3306=\"\",\"\",IF(OR('TSA Input'!J3306=\"Yes\",'TSA Input'!J3306=\"Contingent\"),'TSA Input'!B3306,\"Ineligible\"))","v":""},{"$f":"IF('TSA Input'!J3306=\"\",\"\",IF(OR('TSA Input'!J3306=\"Yes\",'TSA Input'!J3306=\"Contingent\"),'TSA Input'!I3306,\"\"))","v":""},{"$f":"IF('TSA Input'!J3306=\"\",\"\",IF(OR('TSA Input'!J3306=\"Yes\",'TSA Input'!J3306=\"Contingent\"),'TSA Input'!C3306,\"\"))","v":""},{"$f":"IF('TSA Input'!J3306=\"\",\"\",IF(OR('TSA Input'!J3306=\"Yes\",'TSA Input'!J3306=\"Contingent\"),'TSA Input'!D3306,\"\"))","v":""},{"$f":"IF('TSA Input'!J3306=\"\",\"\",IF(OR('TSA Input'!J3306=\"Yes\",'TSA Input'!J3306=\"Contingent\"),'TSA Input'!G3306,\"\"))","v":""},{"$f":"IF('TSA Input'!J3306=\"\",\"\",IF(OR('TSA Input'!J3306=\"Yes\",'TSA Input'!J3306=\"Contingent\"),'TSA Input'!F3306,\"\"))","v":""},"",{"$f":"IF('TSA Input'!J3306=\"\",\"\",IF(OR('TSA Input'!J3306=\"Yes\",'TSA Input'!J3306=\"Contingent\"),'TSA Input'!D3306,\"\"))","v":""},{"$f":"IF('TSA Input'!J3306=\"\",\"\",IF(OR('TSA Input'!J3306=\"Yes\",'TSA Input'!J3306=\"Contingent\"),'TSA Input'!G3306,\"\"))","v":""},{"$f":"IF('TSA Input'!J3306=\"\",\"\",IF(OR('TSA Input'!J3306=\"Yes\",'TSA Input'!J3306=\"Contingent\"),'TSA Input'!F3306,\"\"))","v":""},"","Required","Required"]
["",null,{"$f":"IF('TSA Input'!J3307=\"\",\"\",IF(OR('TSA Input'!J3307=\"Yes\",'TSA Input'!J3307=\"Contingent\"),'TSA Input'!B3307,\"Ineligible\"))","v":""},{"$f":"IF('TSA Input'!J3307=\"\",\"\",IF(OR('TSA Input'!J3307=\"Yes\",'TSA Input'!J3307=\"Contingent\"),'TSA Input'!I3307,\"\"))","v":""},{"$f":"IF('TSA Input'!J3307=\"\",\"\",IF(OR('TSA Input'!J3307=\"Yes\",'TSA Input'!J3307=\"Contingent\"),'TSA Input'!C3307,\"\"))","v":""},{"$f":"IF('TSA Input'!J3307=\"\",\"\",IF(OR('TSA Input'!J3307=\"Yes\",'TSA Input'!J3307=\"Contingent\"),'TSA Input'!D3307,\"\"))","v":""},{"$f":"IF('TSA Input'!J3307=\"\",\"\",IF(OR('TSA Input'!J3307=\"Yes\",'TSA Input'!J3307=\"Contingent\"),'TSA Input'!G3307,\"\"))","v":""},{"$f":"IF('TSA Input'!J3307=\"\",\"\",IF(OR('TSA Input'!J3307=\"Yes\",'TSA Input'!J3307=\"Contingent\"),'TSA Input'!F3307,\"\"))","v":""},"",{"$f":"IF('TSA Input'!J3307=\"\",\"\",IF(OR('TSA Input'!J3307=\"Yes\",'TSA Input'!J3307=\"Contingent\"),'TSA Input'!D3307,\"\"))","v":""},{"$f":"IF('TSA Input'!J3307=\"\",\"\",IF(OR('TSA Input'!J3307=\"Yes\",'TSA Input'!J3307=\"Contingent\"),'TSA Input'!G3307,\"\"))","v":""},{"$f":"IF('TSA Input'!J3307=\"\",\"\",IF(OR('TSA Input'!J3307=\"Yes\",'TSA Input'!J3307=\"Contingent\"),'TSA Input'!F3307,\"\"))","v":""},"","Required","Required"]
["",null,{"$f":"IF('TSA Input'!J3308=\"\",\"\",IF(OR('TSA Input'!J3308=\"Yes\",'TSA Input'!J3308=\"Contingent\"),'TSA Input'!B3308,\"Ineligible\"))","v":""},{"$f":"IF('TSA Input'!J3308=\"\",\"\",IF(OR('TSA Input'!J3308=\"Yes\",'TSA Input'!J3308=\"Contingent\"),'TSA Input'!I3308,\"\"))","v":""},{"$f":"IF('TSA Input'!J3308=\"\",\"\",IF(OR('TSA Input'!J3308=\"Yes\",'TSA Input'!J3308=\"Contingent\"),'TSA Input'!C3308,\"\"))","v":""},{"$f":"IF('TSA Input'!J3308=\"\",\"\",IF(OR('TSA Input'!J3308=\"Yes\",'TSA Input'!J3308=\"Contingent\"),'TSA Input'!D3308,\"\"))","v":""},{"$f":"IF('TSA Input'!J3308=\"\",\"\",IF(OR('TSA Input'!J3308=\"Yes\",'TSA Input'!J3308=\"Contingent\"),'TSA Input'!G3308,\"\"))","v":""},{"$f":"IF('TSA Input'!J3308=\"\",\"\",IF(OR('TSA Input'!J3308=\"Yes\",'TSA Input'!J3308=\"Contingent\"),'TSA Input'!F3308,\"\"))","v":""},"",{"$f":"IF('TSA Input'!J3308=\"\",\"\",IF(OR('TSA Input'!J3308=\"Yes\",'TSA Input'!J3308=\"Contingent\"),'TSA Input'!D3308,\"\"))","v":""},{"$f":"IF('TSA Input'!J3308=\"\",\"\",IF(OR('TSA Input'!J3308=\"Yes\",'TSA Input'!J3308=\"Contingent\"),'TSA Input'!G3308,\"\"))","v":""},{"$f":"IF('TSA Input'!J3308=\"\",\"\",IF(OR('TSA Input'!J3308=\"Yes\",'TSA Input'!J3308=\"Contingent\"),'TSA Input'!F3308,\"\"))","v":""},"","Required","Required"]
["",null,{"$f":"IF('TSA Input'!J3309=\"\",\"\",IF(OR('TSA Input'!J3309=\"Yes\",'TSA Input'!J3309=\"Contingent\"),'TSA Input'!B3309,\"Ineligible\"))","v":""},{"$f":"IF('TSA Input'!J3309=\"\",\"\",IF(OR('TSA Input'!J3309=\"Yes\",'TSA Input'!J3309=\"Contingent\"),'TSA Input'!I3309,\"\"))","v":""},{"$f":"IF('TSA Input'!J3309=\"\",\"\",IF(OR('TSA Input'!J3309=\"Yes\",'TSA Input'!J3309=\"Contingent\"),'TSA Input'!C3309,\"\"))","v":""},{"$f":"IF('TSA Input'!J3309=\"\",\"\",IF(OR('TSA Input'!J3309=\"Yes\",'TSA Input'!J3309=\"Contingent\"),'TSA Input'!D3309,\"\"))","v":""},{"$f":"IF('TSA Input'!J3309=\"\",\"\",IF(OR('TSA Input'!J3309=\"Yes\",'TSA Input'!J3309=\"Contingent\"),'TSA Input'!G3309,\"\"))","v":""},{"$f":"IF('TSA Input'!J3309=\"\",\"\",IF(OR('TSA Input'!J3309=\"Yes\",'TSA Input'!J3309=\"Contingent\"),'TSA Input'!F3309,\"\"))","v":""},"",{"$f":"IF('TSA Input'!J3309=\"\",\"\",IF(OR('TSA Input'!J3309=\"Yes\",'TSA Input'!J3309=\"Contingent\"),'TSA Input'!D3309,\"\"))","v":""},{"$f":"IF('TSA Input'!J3309=\"\",\"\",IF(OR('TSA Input'!J3309=\"Yes\",'TSA Input'!J3309=\"Contingent\"),'TSA Input'!G3309,\"\"))","v":""},{"$f":"IF('TSA Input'!J3309=\"\",\"\",IF(OR('TSA Input'!J3309=\"Yes\",'TSA Input'!J3309=\"Contingent\"),'TSA Input'!F3309,\"\"))","v":""},"","Required","Required"]
["",null,{"$f":"IF('TSA Input'!J3310=\"\",\"\",IF(OR('TSA Input'!J3310=\"Yes\",'TSA Input'!J3310=\"Contingent\"),'TSA Input'!B3310,\"Ineligible\"))","v":""},{"$f":"IF('TSA Input'!J3310=\"\",\"\",IF(OR('TSA Input'!J3310=\"Yes\",'TSA Input'!J3310=\"Contingent\"),'TSA Input'!I3310,\"\"))","v":""},{"$f":"IF('TSA Input'!J3310=\"\",\"\",IF(OR('TSA Input'!J3310=\"Yes\",'TSA Input'!J3310=\"Contingent\"),'TSA Input'!C3310,\"\"))","v":""},{"$f":"IF('TSA Input'!J3310=\"\",\"\",IF(OR('TSA Input'!J3310=\"Yes\",'TSA Input'!J3310=\"Contingent\"),'TSA Input'!D3310,\"\"))","v":""},{"$f":"IF('TSA Input'!J3310=\"\",\"\",IF(OR('TSA Input'!J3310=\"Yes\",'TSA Input'!J3310=\"Contingent\"),'TSA Input'!G3310,\"\"))","v":""},{"$f":"IF('TSA Input'!J3310=\"\",\"\",IF(OR('TSA Input'!J3310=\"Yes\",'TSA Input'!J3310=\"Contingent\"),'TSA Input'!F3310,\"\"))","v":""},"",{"$f":"IF('TSA Input'!J3310=\"\",\"\",IF(OR('TSA Input'!J3310=\"Yes\",'TSA Input'!J3310=\"Contingent\"),'TSA Input'!D3310,\"\"))","v":""},{"$f":"IF('TSA Input'!J3310=\"\",\"\",IF(OR('TSA Input'!J3310=\"Yes\",'TSA Input'!J3310=\"Contingent\"),'TSA Input'!G3310,\"\"))","v":""},{"$f":"IF('TSA Input'!J3310=\"\",\"\",IF(OR('TSA Input'!J3310=\"Yes\",'TSA Input'!J3310=\"Contingent\"),'TSA Input'!F3310,\"\"))","v":""},"","Required","Required"]
["",null,{"$f":"IF('TSA Input'!J3311=\"\",\"\",IF(OR('TSA Input'!J3311=\"Yes\",'TSA Input'!J3311=\"Contingent\"),'TSA Input'!B3311,\"Ineligible\"))","v":""},{"$f":"IF('TSA Input'!J3311=\"\",\"\",IF(OR('TSA Input'!J3311=\"Yes\",'TSA Input'!J3311=\"Contingent\"),'TSA Input'!I3311,\"\"))","v":""},{"$f":"IF('TSA Input'!J3311=\"\",\"\",IF(OR('TSA Input'!J3311=\"Yes\",'TSA Input'!J3311=\"Contingent\"),'TSA Input'!C3311,\"\"))","v":""},{"$f":"IF('TSA Input'!J3311=\"\",\"\",IF(OR('TSA Input'!J3311=\"Yes\",'TSA Input'!J3311=\"Contingent\"),'TSA Input'!D3311,\"\"))","v":""},{"$f":"IF('TSA Input'!J3311=\"\",\"\",IF(OR('TSA Input'!J3311=\"Yes\",'TSA Input'!J3311=\"Contingent\"),'TSA Input'!G3311,\"\"))","v":""},{"$f":"IF('TSA Input'!J3311=\"\",\"\",IF(OR('TSA Input'!J3311=\"Yes\",'TSA Input'!J3311=\"Contingent\"),'TSA Input'!F3311,\"\"))","v":""},"",{"$f":"IF('TSA Input'!J3311=\"\",\"\",IF(OR('TSA Input'!J3311=\"Yes\",'TSA Input'!J3311=\"Contingent\"),'TSA Input'!D3311,\"\"))","v":""},{"$f":"IF('TSA Input'!J3311=\"\",\"\",IF(OR('TSA Input'!J3311=\"Yes\",'TSA Input'!J3311=\"Contingent\"),'TSA Input'!G3311,\"\"))","v":""},{"$f":"IF('TSA Input'!J3311=\"\",\"\",IF(OR('TSA Input'!J3311=\"Yes\",'TSA Input'!J3311=\"Contingent\"),'TSA Input'!F3311,\"\"))","v":""},"","Required","Required"]
["",null,{"$f":"IF('TSA Input'!J3312=\"\",\"\",IF(OR('TSA Input'!J3312=\"Yes\",'TSA Input'!J3312=\"Contingent\"),'TSA Input'!B3312,\"Ineligible\"))","v":""},{"$f":"IF('TSA Input'!J3312=\"\",\"\",IF(OR('TSA Input'!J3312=\"Yes\",'TSA Input'!J3312=\"Contingent\"),'TSA Input'!I3312,\"\"))","v":""},{"$f":"IF('TSA Input'!J3312=\"\",\"\",IF(OR('TSA Input'!J3312=\"Yes\",'TSA Input'!J3312=\"Contingent\"),'TSA Input'!C3312,\"\"))","v":""},{"$f":"IF('TSA Input'!J3312=\"\",\"\",IF(OR('TSA Input'!J3312=\"Yes\",'TSA Input'!J3312=\"Contingent\"),'TSA Input'!D3312,\"\"))","v":""},{"$f":"IF('TSA Input'!J3312=\"\",\"\",IF(OR('TSA Input'!J3312=\"Yes\",'TSA Input'!J3312=\"Contingent\"),'TSA Input'!G3312,\"\"))","v":""},{"$f":"IF('TSA Input'!J3312=\"\",\"\",IF(OR('TSA Input'!J3312=\"Yes\",'TSA Input'!J3312=\"Contingent\"),'TSA Input'!F3312,\"\"))","v":""},"",{"$f":"IF('TSA Input'!J3312=\"\",\"\",IF(OR('TSA Input'!J3312=\"Yes\",'TSA Input'!J3312=\"Contingent\"),'TSA Input'!D3312,\"\"))","v":""},{"$f":"IF('TSA Input'!J3312=\"\",\"\",IF(OR('TSA Input'!J3312=\"Yes\",'TSA Input'!J3312=\"Contingent\"),'TSA Input'!G3312,\"\"))","v":""},{"$f":"IF('TSA Input'!J3312=\"\",\"\",IF(OR('TSA Input'!J3312=\"Yes\",'TSA Input'!J3312=\"Contingent\"),'TSA Input'!F3312,\"\"))","v":""},"","Required","Required"]
["",null,{"$f":"IF('TSA Input'!J3313=\"\",\"\",IF(OR('TSA Input'!J3313=\"Yes\",'TSA Input'!J3313=\"Contingent\"),'TSA Input'!B3313,\"Ineligible\"))","v":""},{"$f":"IF('TSA Input'!J3313=\"\",\"\",IF(OR('TSA Input'!J3313=\"Yes\",'TSA Input'!J3313=\"Contingent\"),'TSA Input'!I3313,\"\"))","v":""},{"$f":"IF('TSA Input'!J3313=\"\",\"\",IF(OR('TSA Input'!J3313=\"Yes\",'TSA Input'!J3313=\"Contingent\"),'TSA Input'!C3313,\"\"))","v":""},{"$f":"IF('TSA Input'!J3313=\"\",\"\",IF(OR('TSA Input'!J3313=\"Yes\",'TSA Input'!J3313=\"Contingent\"),'TSA Input'!D3313,\"\"))","v":""},{"$f":"IF('TSA Input'!J3313=\"\",\"\",IF(OR('TSA Input'!J3313=\"Yes\",'TSA Input'!J3313=\"Contingent\"),'TSA Input'!G3313,\"\"))","v":""},{"$f":"IF('TSA Input'!J3313=\"\",\"\",IF(OR('TSA Input'!J3313=\"Yes\",'TSA Input'!J3313=\"Contingent\"),'TSA Input'!F3313,\"\"))","v":""},"",{"$f":"IF('TSA Input'!J3313=\"\",\"\",IF(OR('TSA Input'!J3313=\"Yes\",'TSA Input'!J3313=\"Contingent\"),'TSA Input'!D3313,\"\"))","v":""},{"$f":"IF('TSA Input'!J3313=\"\",\"\",IF(OR('TSA Input'!J3313=\"Yes\",'TSA Input'!J3313=\"Contingent\"),'TSA Input'!G3313,\"\"))","v":""},{"$f":"IF('TSA Input'!J3313=\"\",\"\",IF(OR('TSA Input'!J3313=\"Yes\",'TSA Input'!J3313=\"Contingent\"),'TSA Input'!F3313,\"\"))","v":""},"","Required","Required"]
["",null,{"$f":"IF('TSA Input'!J3314=\"\",\"\",IF(OR('TSA Input'!J3314=\"Yes\",'TSA Input'!J3314=\"Contingent\"),'TSA Input'!B3314,\"Ineligible\"))","v":""},{"$f":"IF('TSA Input'!J3314=\"\",\"\",IF(OR('TSA Input'!J3314=\"Yes\",'TSA Input'!J3314=\"Contingent\"),'TSA Input'!I3314,\"\"))","v":""},{"$f":"IF('TSA Input'!J3314=\"\",\"\",IF(OR('TSA Input'!J3314=\"Yes\",'TSA Input'!J3314=\"Contingent\"),'TSA Input'!C3314,\"\"))","v":""},{"$f":"IF('TSA Input'!J3314=\"\",\"\",IF(OR('TSA Input'!J3314=\"Yes\",'TSA Input'!J3314=\"Contingent\"),'TSA Input'!D3314,\"\"))","v":""},{"$f":"IF('TSA Input'!J3314=\"\",\"\",IF(OR('TSA Input'!J3314=\"Yes\",'TSA Input'!J3314=\"Contingent\"),'TSA Input'!G3314,\"\"))","v":""},{"$f":"IF('TSA Input'!J3314=\"\",\"\",IF(OR('TSA Input'!J3314=\"Yes\",'TSA Input'!J3314=\"Contingent\"),'TSA Input'!F3314,\"\"))","v":""},"",{"$f":"IF('TSA Input'!J3314=\"\",\"\",IF(OR('TSA Input'!J3314=\"Yes\",'TSA Input'!J3314=\"Contingent\"),'TSA Input'!D3314,\"\"))","v":""},{"$f":"IF('TSA Input'!J3314=\"\",\"\",IF(OR('TSA Input'!J3314=\"Yes\",'TSA Input'!J3314=\"Contingent\"),'TSA Input'!G3314,\"\"))","v":""},{"$f":"IF('TSA Input'!J3314=\"\",\"\",IF(OR('TSA Input'!J3314=\"Yes\",'TSA Input'!J3314=\"Contingent\"),'TSA Input'!F3314,\"\"))","v":""},"","Required","Required"]
["",null,{"$f":"IF('TSA Input'!J3315=\"\",\"\",IF(OR('TSA Input'!J3315=\"Yes\",'TSA Input'!J3315=\"Contingent\"),'TSA Input'!B3315,\"Ineligible\"))","v":""},{"$f":"IF('TSA Input'!J3315=\"\",\"\",IF(OR('TSA Input'!J3315=\"Yes\",'TSA Input'!J3315=\"Contingent\"),'TSA Input'!I3315,\"\"))","v":""},{"$f":"IF('TSA Input'!J3315=\"\",\"\",IF(OR('TSA Input'!J3315=\"Yes\",'TSA Input'!J3315=\"Contingent\"),'TSA Input'!C3315,\"\"))","v":""},{"$f":"IF('TSA Input'!J3315=\"\",\"\",IF(OR('TSA Input'!J3315=\"Yes\",'TSA Input'!J3315=\"Contingent\"),'TSA Input'!D3315,\"\"))","v":""},{"$f":"IF('TSA Input'!J3315=\"\",\"\",IF(OR('TSA Input'!J3315=\"Yes\",'TSA Input'!J3315=\"Contingent\"),'TSA Input'!G3315,\"\"))","v":""},{"$f":"IF('TSA Input'!J3315=\"\",\"\",IF(OR('TSA Input'!J3315=\"Yes\",'TSA Input'!J3315=\"Contingent\"),'TSA Input'!F3315,\"\"))","v":""},"",{"$f":"IF('TSA Input'!J3315=\"\",\"\",IF(OR('TSA Input'!J3315=\"Yes\",'TSA Input'!J3315=\"Contingent\"),'TSA Input'!D3315,\"\"))","v":""},{"$f":"IF('TSA Input'!J3315=\"\",\"\",IF(OR('TSA Input'!J3315=\"Yes\",'TSA Input'!J3315=\"Contingent\"),'TSA Input'!G3315,\"\"))","v":""},{"$f":"IF('TSA Input'!J3315=\"\",\"\",IF(OR('TSA Input'!J3315=\"Yes\",'TSA Input'!J3315=\"Contingent\"),'TSA Input'!F3315,\"\"))","v":""},"","Required","Required"]
["",null,{"$f":"IF('TSA Input'!J3316=\"\",\"\",IF(OR('TSA Input'!J3316=\"Yes\",'TSA Input'!J3316=\"Contingent\"),'TSA Input'!B3316,\"Ineligible\"))","v":""},{"$f":"IF('TSA Input'!J3316=\"\",\"\",IF(OR('TSA Input'!J3316=\"Yes\",'TSA Input'!J3316=\"Contingent\"),'TSA Input'!I3316,\"\"))","v":""},{"$f":"IF('TSA Input'!J3316=\"\",\"\",IF(OR('TSA Input'!J3316=\"Yes\",'TSA Input'!J3316=\"Contingent\"),'TSA Input'!C3316,\"\"))","v":""},{"$f":"IF('TSA Input'!J3316=\"\",\"\",IF(OR('TSA Input'!J3316=\"Yes\",'TSA Input'!J3316=\"Contingent\"),'TSA Input'!D3316,\"\"))","v":""},{"$f":"IF('TSA Input'!J3316=\"\",\"\",IF(OR('TSA Input'!J3316=\"Yes\",'TSA Input'!J3316=\"Contingent\"),'TSA Input'!G3316,\"\"))","v":""},{"$f":"IF('TSA Input'!J3316=\"\",\"\",IF(OR('TSA Input'!J3316=\"Yes\",'TSA Input'!J3316=\"Contingent\"),'TSA Input'!F3316,\"\"))","v":""},"",{"$f":"IF('TSA Input'!J3316=\"\",\"\",IF(OR('TSA Input'!J3316=\"Yes\",'TSA Input'!J3316=\"Contingent\"),'TSA Input'!D3316,\"\"))","v":""},{"$f":"IF('TSA Input'!J3316=\"\",\"\",IF(OR('TSA Input'!J3316=\"Yes\",'TSA Input'!J3316=\"Contingent\"),'TSA Input'!G3316,\"\"))","v":""},{"$f":"IF('TSA Input'!J3316=\"\",\"\",IF(OR('TSA Input'!J3316=\"Yes\",'TSA Input'!J3316=\"Contingent\"),'TSA Input'!F3316,\"\"))","v":""},"","Required","Required"]
["",null,{"$f":"IF('TSA Input'!J3317=\"\",\"\",IF(OR('TSA Input'!J3317=\"Yes\",'TSA Input'!J3317=\"Contingent\"),'TSA Input'!B3317,\"Ineligible\"))","v":""},{"$f":"IF('TSA Input'!J3317=\"\",\"\",IF(OR('TSA Input'!J3317=\"Yes\",'TSA Input'!J3317=\"Contingent\"),'TSA Input'!I3317,\"\"))","v":""},{"$f":"IF('TSA Input'!J3317=\"\",\"\",IF(OR('TSA Input'!J3317=\"Yes\",'TSA Input'!J3317=\"Contingent\"),'TSA Input'!C3317,\"\"))","v":""},{"$f":"IF('TSA Input'!J3317=\"\",\"\",IF(OR('TSA Input'!J3317=\"Yes\",'TSA Input'!J3317=\"Contingent\"),'TSA Input'!D3317,\"\"))","v":""},{"$f":"IF('TSA Input'!J3317=\"\",\"\",IF(OR('TSA Input'!J3317=\"Yes\",'TSA Input'!J3317=\"Contingent\"),'TSA Input'!G3317,\"\"))","v":""},{"$f":"IF('TSA Input'!J3317=\"\",\"\",IF(OR('TSA Input'!J3317=\"Yes\",'TSA Input'!J3317=\"Contingent\"),'TSA Input'!F3317,\"\"))","v":""},"",{"$f":"IF('TSA Input'!J3317=\"\",\"\",IF(OR('TSA Input'!J3317=\"Yes\",'TSA Input'!J3317=\"Contingent\"),'TSA Input'!D3317,\"\"))","v":""},{"$f":"IF('TSA Input'!J3317=\"\",\"\",IF(OR('TSA Input'!J3317=\"Yes\",'TSA Input'!J3317=\"Contingent\"),'TSA Input'!G3317,\"\"))","v":""},{"$f":"IF('TSA Input'!J3317=\"\",\"\",IF(OR('TSA Input'!J3317=\"Yes\",'TSA Input'!J3317=\"Contingent\"),'TSA Input'!F3317,\"\"))","v":""},"","Required","Required"]
["",null,{"$f":"IF('TSA Input'!J3318=\"\",\"\",IF(OR('TSA Input'!J3318=\"Yes\",'TSA Input'!J3318=\"Contingent\"),'TSA Input'!B3318,\"Ineligible\"))","v":""},{"$f":"IF('TSA Input'!J3318=\"\",\"\",IF(OR('TSA Input'!J3318=\"Yes\",'TSA Input'!J3318=\"Contingent\"),'TSA Input'!I3318,\"\"))","v":""},{"$f":"IF('TSA Input'!J3318=\"\",\"\",IF(OR('TSA Input'!J3318=\"Yes\",'TSA Input'!J3318=\"Contingent\"),'TSA Input'!C3318,\"\"))","v":""},{"$f":"IF('TSA Input'!J3318=\"\",\"\",IF(OR('TSA Input'!J3318=\"Yes\",'TSA Input'!J3318=\"Contingent\"),'TSA Input'!D3318,\"\"))","v":""},{"$f":"IF('TSA Input'!J3318=\"\",\"\",IF(OR('TSA Input'!J3318=\"Yes\",'TSA Input'!J3318=\"Contingent\"),'TSA Input'!G3318,\"\"))","v":""},{"$f":"IF('TSA Input'!J3318=\"\",\"\",IF(OR('TSA Input'!J3318=\"Yes\",'TSA Input'!J3318=\"Contingent\"),'TSA Input'!F3318,\"\"))","v":""},"",{"$f":"IF('TSA Input'!J3318=\"\",\"\",IF(OR('TSA Input'!J3318=\"Yes\",'TSA Input'!J3318=\"Contingent\"),'TSA Input'!D3318,\"\"))","v":""},{"$f":"IF('TSA Input'!J3318=\"\",\"\",IF(OR('TSA Input'!J3318=\"Yes\",'TSA Input'!J3318=\"Contingent\"),'TSA Input'!G3318,\"\"))","v":""},{"$f":"IF('TSA Input'!J3318=\"\",\"\",IF(OR('TSA Input'!J3318=\"Yes\",'TSA Input'!J3318=\"Contingent\"),'TSA Input'!F3318,\"\"))","v":""},"","Required","Required"]
["",null,{"$f":"IF('TSA Input'!J3319=\"\",\"\",IF(OR('TSA Input'!J3319=\"Yes\",'TSA Input'!J3319=\"Contingent\"),'TSA Input'!B3319,\"Ineligible\"))","v":""},{"$f":"IF('TSA Input'!J3319=\"\",\"\",IF(OR('TSA Input'!J3319=\"Yes\",'TSA Input'!J3319=\"Contingent\"),'TSA Input'!I3319,\"\"))","v":""},{"$f":"IF('TSA Input'!J3319=\"\",\"\",IF(OR('TSA Input'!J3319=\"Yes\",'TSA Input'!J3319=\"Contingent\"),'TSA Input'!C3319,\"\"))","v":""},{"$f":"IF('TSA Input'!J3319=\"\",\"\",IF(OR('TSA Input'!J3319=\"Yes\",'TSA Input'!J3319=\"Contingent\"),'TSA Input'!D3319,\"\"))","v":""},{"$f":"IF('TSA Input'!J3319=\"\",\"\",IF(OR('TSA Input'!J3319=\"Yes\",'TSA Input'!J3319=\"Contingent\"),'TSA Input'!G3319,\"\"))","v":""},{"$f":"IF('TSA Input'!J3319=\"\",\"\",IF(OR('TSA Input'!J3319=\"Yes\",'TSA Input'!J3319=\"Contingent\"),'TSA Input'!F3319,\"\"))","v":""},"",{"$f":"IF('TSA Input'!J3319=\"\",\"\",IF(OR('TSA Input'!J3319=\"Yes\",'TSA Input'!J3319=\"Contingent\"),'TSA Input'!D3319,\"\"))","v":""},{"$f":"IF('TSA Input'!J3319=\"\",\"\",IF(OR('TSA Input'!J3319=\"Yes\",'TSA Input'!J3319=\"Contingent\"),'TSA Input'!G3319,\"\"))","v":""},{"$f":"IF('TSA Input'!J3319=\"\",\"\",IF(OR('TSA Input'!J3319=\"Yes\",'TSA Input'!J3319=\"Contingent\"),'TSA Input'!F3319,\"\"))","v":""},"","Required","Required"]
["",null,{"$f":"IF('TSA Input'!J3320=\"\",\"\",IF(OR('TSA Input'!J3320=\"Yes\",'TSA Input'!J3320=\"Contingent\"),'TSA Input'!B3320,\"Ineligible\"))","v":""},{"$f":"IF('TSA Input'!J3320=\"\",\"\",IF(OR('TSA Input'!J3320=\"Yes\",'TSA Input'!J3320=\"Contingent\"),'TSA Input'!I3320,\"\"))","v":""},{"$f":"IF('TSA Input'!J3320=\"\",\"\",IF(OR('TSA Input'!J3320=\"Yes\",'TSA Input'!J3320=\"Contingent\"),'TSA Input'!C3320,\"\"))","v":""},{"$f":"IF('TSA Input'!J3320=\"\",\"\",IF(OR('TSA Input'!J3320=\"Yes\",'TSA Input'!J3320=\"Contingent\"),'TSA Input'!D3320,\"\"))","v":""},{"$f":"IF('TSA Input'!J3320=\"\",\"\",IF(OR('TSA Input'!J3320=\"Yes\",'TSA Input'!J3320=\"Contingent\"),'TSA Input'!G3320,\"\"))","v":""},{"$f":"IF('TSA Input'!J3320=\"\",\"\",IF(OR('TSA Input'!J3320=\"Yes\",'TSA Input'!J3320=\"Contingent\"),'TSA Input'!F3320,\"\"))","v":""},"",{"$f":"IF('TSA Input'!J3320=\"\",\"\",IF(OR('TSA Input'!J3320=\"Yes\",'TSA Input'!J3320=\"Contingent\"),'TSA Input'!D3320,\"\"))","v":""},{"$f":"IF('TSA Input'!J3320=\"\",\"\",IF(OR('TSA Input'!J3320=\"Yes\",'TSA Input'!J3320=\"Contingent\"),'TSA Input'!G3320,\"\"))","v":""},{"$f":"IF('TSA Input'!J3320=\"\",\"\",IF(OR('TSA Input'!J3320=\"Yes\",'TSA Input'!J3320=\"Contingent\"),'TSA Input'!F3320,\"\"))","v":""},"","Required","Required"]
["",null,{"$f":"IF('TSA Input'!J3321=\"\",\"\",IF(OR('TSA Input'!J3321=\"Yes\",'TSA Input'!J3321=\"Contingent\"),'TSA Input'!B3321,\"Ineligible\"))","v":""},{"$f":"IF('TSA Input'!J3321=\"\",\"\",IF(OR('TSA Input'!J3321=\"Yes\",'TSA Input'!J3321=\"Contingent\"),'TSA Input'!I3321,\"\"))","v":""},{"$f":"IF('TSA Input'!J3321=\"\",\"\",IF(OR('TSA Input'!J3321=\"Yes\",'TSA Input'!J3321=\"Contingent\"),'TSA Input'!C3321,\"\"))","v":""},{"$f":"IF('TSA Input'!J3321=\"\",\"\",IF(OR('TSA Input'!J3321=\"Yes\",'TSA Input'!J3321=\"Contingent\"),'TSA Input'!D3321,\"\"))","v":""},{"$f":"IF('TSA Input'!J3321=\"\",\"\",IF(OR('TSA Input'!J3321=\"Yes\",'TSA Input'!J3321=\"Contingent\"),'TSA Input'!G3321,\"\"))","v":""},{"$f":"IF('TSA Input'!J3321=\"\",\"\",IF(OR('TSA Input'!J3321=\"Yes\",'TSA Input'!J3321=\"Contingent\"),'TSA Input'!F3321,\"\"))","v":""},"",{"$f":"IF('TSA Input'!J3321=\"\",\"\",IF(OR('TSA Input'!J3321=\"Yes\",'TSA Input'!J3321=\"Contingent\"),'TSA Input'!D3321,\"\"))","v":""},{"$f":"IF('TSA Input'!J3321=\"\",\"\",IF(OR('TSA Input'!J3321=\"Yes\",'TSA Input'!J3321=\"Contingent\"),'TSA Input'!G3321,\"\"))","v":""},{"$f":"IF('TSA Input'!J3321=\"\",\"\",IF(OR('TSA Input'!J3321=\"Yes\",'TSA Input'!J3321=\"Contingent\"),'TSA Input'!F3321,\"\"))","v":""},"","Required","Required"]
["",null,{"$f":"IF('TSA Input'!J3322=\"\",\"\",IF(OR('TSA Input'!J3322=\"Yes\",'TSA Input'!J3322=\"Contingent\"),'TSA Input'!B3322,\"Ineligible\"))","v":""},{"$f":"IF('TSA Input'!J3322=\"\",\"\",IF(OR('TSA Input'!J3322=\"Yes\",'TSA Input'!J3322=\"Contingent\"),'TSA Input'!I3322,\"\"))","v":""},{"$f":"IF('TSA Input'!J3322=\"\",\"\",IF(OR('TSA Input'!J3322=\"Yes\",'TSA Input'!J3322=\"Contingent\"),'TSA Input'!C3322,\"\"))","v":""},{"$f":"IF('TSA Input'!J3322=\"\",\"\",IF(OR('TSA Input'!J3322=\"Yes\",'TSA Input'!J3322=\"Contingent\"),'TSA Input'!D3322,\"\"))","v":""},{"$f":"IF('TSA Input'!J3322=\"\",\"\",IF(OR('TSA Input'!J3322=\"Yes\",'TSA Input'!J3322=\"Contingent\"),'TSA Input'!G3322,\"\"))","v":""},{"$f":"IF('TSA Input'!J3322=\"\",\"\",IF(OR('TSA Input'!J3322=\"Yes\",'TSA Input'!J3322=\"Contingent\"),'TSA Input'!F3322,\"\"))","v":""},"",{"$f":"IF('TSA Input'!J3322=\"\",\"\",IF(OR('TSA Input'!J3322=\"Yes\",'TSA Input'!J3322=\"Contingent\"),'TSA Input'!D3322,\"\"))","v":""},{"$f":"IF('TSA Input'!J3322=\"\",\"\",IF(OR('TSA Input'!J3322=\"Yes\",'TSA Input'!J3322=\"Contingent\"),'TSA Input'!G3322,\"\"))","v":""},{"$f":"IF('TSA Input'!J3322=\"\",\"\",IF(OR('TSA Input'!J3322=\"Yes\",'TSA Input'!J3322=\"Contingent\"),'TSA Input'!F3322,\"\"))","v":""},"","Required","Required"]
["",null,{"$f":"IF('TSA Input'!J3323=\"\",\"\",IF(OR('TSA Input'!J3323=\"Yes\",'TSA Input'!J3323=\"Contingent\"),'TSA Input'!B3323,\"Ineligible\"))","v":""},{"$f":"IF('TSA Input'!J3323=\"\",\"\",IF(OR('TSA Input'!J3323=\"Yes\",'TSA Input'!J3323=\"Contingent\"),'TSA Input'!I3323,\"\"))","v":""},{"$f":"IF('TSA Input'!J3323=\"\",\"\",IF(OR('TSA Input'!J3323=\"Yes\",'TSA Input'!J3323=\"Contingent\"),'TSA Input'!C3323,\"\"))","v":""},{"$f":"IF('TSA Input'!J3323=\"\",\"\",IF(OR('TSA Input'!J3323=\"Yes\",'TSA Input'!J3323=\"Contingent\"),'TSA Input'!D3323,\"\"))","v":""},{"$f":"IF('TSA Input'!J3323=\"\",\"\",IF(OR('TSA Input'!J3323=\"Yes\",'TSA Input'!J3323=\"Contingent\"),'TSA Input'!G3323,\"\"))","v":""},{"$f":"IF('TSA Input'!J3323=\"\",\"\",IF(OR('TSA Input'!J3323=\"Yes\",'TSA Input'!J3323=\"Contingent\"),'TSA Input'!F3323,\"\"))","v":""},"",{"$f":"IF('TSA Input'!J3323=\"\",\"\",IF(OR('TSA Input'!J3323=\"Yes\",'TSA Input'!J3323=\"Contingent\"),'TSA Input'!D3323,\"\"))","v":""},{"$f":"IF('TSA Input'!J3323=\"\",\"\",IF(OR('TSA Input'!J3323=\"Yes\",'TSA Input'!J3323=\"Contingent\"),'TSA Input'!G3323,\"\"))","v":""},{"$f":"IF('TSA Input'!J3323=\"\",\"\",IF(OR('TSA Input'!J3323=\"Yes\",'TSA Input'!J3323=\"Contingent\"),'TSA Input'!F3323,\"\"))","v":""},"","Required","Required"]
["",null,{"$f":"IF('TSA Input'!J3324=\"\",\"\",IF(OR('TSA Input'!J3324=\"Yes\",'TSA Input'!J3324=\"Contingent\"),'TSA Input'!B3324,\"Ineligible\"))","v":""},{"$f":"IF('TSA Input'!J3324=\"\",\"\",IF(OR('TSA Input'!J3324=\"Yes\",'TSA Input'!J3324=\"Contingent\"),'TSA Input'!I3324,\"\"))","v":""},{"$f":"IF('TSA Input'!J3324=\"\",\"\",IF(OR('TSA Input'!J3324=\"Yes\",'TSA Input'!J3324=\"Contingent\"),'TSA Input'!C3324,\"\"))","v":""},{"$f":"IF('TSA Input'!J3324=\"\",\"\",IF(OR('TSA Input'!J3324=\"Yes\",'TSA Input'!J3324=\"Contingent\"),'TSA Input'!D3324,\"\"))","v":""},{"$f":"IF('TSA Input'!J3324=\"\",\"\",IF(OR('TSA Input'!J3324=\"Yes\",'TSA Input'!J3324=\"Contingent\"),'TSA Input'!G3324,\"\"))","v":""},{"$f":"IF('TSA Input'!J3324=\"\",\"\",IF(OR('TSA Input'!J3324=\"Yes\",'TSA Input'!J3324=\"Contingent\"),'TSA Input'!F3324,\"\"))","v":""},"",{"$f":"IF('TSA Input'!J3324=\"\",\"\",IF(OR('TSA Input'!J3324=\"Yes\",'TSA Input'!J3324=\"Contingent\"),'TSA Input'!D3324,\"\"))","v":""},{"$f":"IF('TSA Input'!J3324=\"\",\"\",IF(OR('TSA Input'!J3324=\"Yes\",'TSA Input'!J3324=\"Contingent\"),'TSA Input'!G3324,\"\"))","v":""},{"$f":"IF('TSA Input'!J3324=\"\",\"\",IF(OR('TSA Input'!J3324=\"Yes\",'TSA Input'!J3324=\"Contingent\"),'TSA Input'!F3324,\"\"))","v":""},"","Required","Required"]
["",null,{"$f":"IF('TSA Input'!J3325=\"\",\"\",IF(OR('TSA Input'!J3325=\"Yes\",'TSA Input'!J3325=\"Contingent\"),'TSA Input'!B3325,\"Ineligible\"))","v":""},{"$f":"IF('TSA Input'!J3325=\"\",\"\",IF(OR('TSA Input'!J3325=\"Yes\",'TSA Input'!J3325=\"Contingent\"),'TSA Input'!I3325,\"\"))","v":""},{"$f":"IF('TSA Input'!J3325=\"\",\"\",IF(OR('TSA Input'!J3325=\"Yes\",'TSA Input'!J3325=\"Contingent\"),'TSA Input'!C3325,\"\"))","v":""},{"$f":"IF('TSA Input'!J3325=\"\",\"\",IF(OR('TSA Input'!J3325=\"Yes\",'TSA Input'!J3325=\"Contingent\"),'TSA Input'!D3325,\"\"))","v":""},{"$f":"IF('TSA Input'!J3325=\"\",\"\",IF(OR('TSA Input'!J3325=\"Yes\",'TSA Input'!J3325=\"Contingent\"),'TSA Input'!G3325,\"\"))","v":""},{"$f":"IF('TSA Input'!J3325=\"\",\"\",IF(OR('TSA Input'!J3325=\"Yes\",'TSA Input'!J3325=\"Contingent\"),'TSA Input'!F3325,\"\"))","v":""},"",{"$f":"IF('TSA Input'!J3325=\"\",\"\",IF(OR('TSA Input'!J3325=\"Yes\",'TSA Input'!J3325=\"Contingent\"),'TSA Input'!D3325,\"\"))","v":""},{"$f":"IF('TSA Input'!J3325=\"\",\"\",IF(OR('TSA Input'!J3325=\"Yes\",'TSA Input'!J3325=\"Contingent\"),'TSA Input'!G3325,\"\"))","v":""},{"$f":"IF('TSA Input'!J3325=\"\",\"\",IF(OR('TSA Input'!J3325=\"Yes\",'TSA Input'!J3325=\"Contingent\"),'TSA Input'!F3325,\"\"))","v":""},"","Required","Required"]
["",null,{"$f":"IF('TSA Input'!J3326=\"\",\"\",IF(OR('TSA Input'!J3326=\"Yes\",'TSA Input'!J3326=\"Contingent\"),'TSA Input'!B3326,\"Ineligible\"))","v":""},{"$f":"IF('TSA Input'!J3326=\"\",\"\",IF(OR('TSA Input'!J3326=\"Yes\",'TSA Input'!J3326=\"Contingent\"),'TSA Input'!I3326,\"\"))","v":""},{"$f":"IF('TSA Input'!J3326=\"\",\"\",IF(OR('TSA Input'!J3326=\"Yes\",'TSA Input'!J3326=\"Contingent\"),'TSA Input'!C3326,\"\"))","v":""},{"$f":"IF('TSA Input'!J3326=\"\",\"\",IF(OR('TSA Input'!J3326=\"Yes\",'TSA Input'!J3326=\"Contingent\"),'TSA Input'!D3326,\"\"))","v":""},{"$f":"IF('TSA Input'!J3326=\"\",\"\",IF(OR('TSA Input'!J3326=\"Yes\",'TSA Input'!J3326=\"Contingent\"),'TSA Input'!G3326,\"\"))","v":""},{"$f":"IF('TSA Input'!J3326=\"\",\"\",IF(OR('TSA Input'!J3326=\"Yes\",'TSA Input'!J3326=\"Contingent\"),'TSA Input'!F3326,\"\"))","v":""},"",{"$f":"IF('TSA Input'!J3326=\"\",\"\",IF(OR('TSA Input'!J3326=\"Yes\",'TSA Input'!J3326=\"Contingent\"),'TSA Input'!D3326,\"\"))","v":""},{"$f":"IF('TSA Input'!J3326=\"\",\"\",IF(OR('TSA Input'!J3326=\"Yes\",'TSA Input'!J3326=\"Contingent\"),'TSA Input'!G3326,\"\"))","v":""},{"$f":"IF('TSA Input'!J3326=\"\",\"\",IF(OR('TSA Input'!J3326=\"Yes\",'TSA Input'!J3326=\"Contingent\"),'TSA Input'!F3326,\"\"))","v":""},"","Required","Required"]
["",null,{"$f":"IF('TSA Input'!J3327=\"\",\"\",IF(OR('TSA Input'!J3327=\"Yes\",'TSA Input'!J3327=\"Contingent\"),'TSA Input'!B3327,\"Ineligible\"))","v":""},{"$f":"IF('TSA Input'!J3327=\"\",\"\",IF(OR('TSA Input'!J3327=\"Yes\",'TSA Input'!J3327=\"Contingent\"),'TSA Input'!I3327,\"\"))","v":""},{"$f":"IF('TSA Input'!J3327=\"\",\"\",IF(OR('TSA Input'!J3327=\"Yes\",'TSA Input'!J3327=\"Contingent\"),'TSA Input'!C3327,\"\"))","v":""},{"$f":"IF('TSA Input'!J3327=\"\",\"\",IF(OR('TSA Input'!J3327=\"Yes\",'TSA Input'!J3327=\"Contingent\"),'TSA Input'!D3327,\"\"))","v":""},{"$f":"IF('TSA Input'!J3327=\"\",\"\",IF(OR('TSA Input'!J3327=\"Yes\",'TSA Input'!J3327=\"Contingent\"),'TSA Input'!G3327,\"\"))","v":""},{"$f":"IF('TSA Input'!J3327=\"\",\"\",IF(OR('TSA Input'!J3327=\"Yes\",'TSA Input'!J3327=\"Contingent\"),'TSA Input'!F3327,\"\"))","v":""},"",{"$f":"IF('TSA Input'!J3327=\"\",\"\",IF(OR('TSA Input'!J3327=\"Yes\",'TSA Input'!J3327=\"Contingent\"),'TSA Input'!D3327,\"\"))","v":""},{"$f":"IF('TSA Input'!J3327=\"\",\"\",IF(OR('TSA Input'!J3327=\"Yes\",'TSA Input'!J3327=\"Contingent\"),'TSA Input'!G3327,\"\"))","v":""},{"$f":"IF('TSA Input'!J3327=\"\",\"\",IF(OR('TSA Input'!J3327=\"Yes\",'TSA Input'!J3327=\"Contingent\"),'TSA Input'!F3327,\"\"))","v":""},"","Required","Required"]
["",null,{"$f":"IF('TSA Input'!J3328=\"\",\"\",IF(OR('TSA Input'!J3328=\"Yes\",'TSA Input'!J3328=\"Contingent\"),'TSA Input'!B3328,\"Ineligible\"))","v":""},{"$f":"IF('TSA Input'!J3328=\"\",\"\",IF(OR('TSA Input'!J3328=\"Yes\",'TSA Input'!J3328=\"Contingent\"),'TSA Input'!I3328,\"\"))","v":""},{"$f":"IF('TSA Input'!J3328=\"\",\"\",IF(OR('TSA Input'!J3328=\"Yes\",'TSA Input'!J3328=\"Contingent\"),'TSA Input'!C3328,\"\"))","v":""},{"$f":"IF('TSA Input'!J3328=\"\",\"\",IF(OR('TSA Input'!J3328=\"Yes\",'TSA Input'!J3328=\"Contingent\"),'TSA Input'!D3328,\"\"))","v":""},{"$f":"IF('TSA Input'!J3328=\"\",\"\",IF(OR('TSA Input'!J3328=\"Yes\",'TSA Input'!J3328=\"Contingent\"),'TSA Input'!G3328,\"\"))","v":""},{"$f":"IF('TSA Input'!J3328=\"\",\"\",IF(OR('TSA Input'!J3328=\"Yes\",'TSA Input'!J3328=\"Contingent\"),'TSA Input'!F3328,\"\"))","v":""},"",{"$f":"IF('TSA Input'!J3328=\"\",\"\",IF(OR('TSA Input'!J3328=\"Yes\",'TSA Input'!J3328=\"Contingent\"),'TSA Input'!D3328,\"\"))","v":""},{"$f":"IF('TSA Input'!J3328=\"\",\"\",IF(OR('TSA Input'!J3328=\"Yes\",'TSA Input'!J3328=\"Contingent\"),'TSA Input'!G3328,\"\"))","v":""},{"$f":"IF('TSA Input'!J3328=\"\",\"\",IF(OR('TSA Input'!J3328=\"Yes\",'TSA Input'!J3328=\"Contingent\"),'TSA Input'!F3328,\"\"))","v":""},"","Required","Required"]
["",null,{"$f":"IF('TSA Input'!J3329=\"\",\"\",IF(OR('TSA Input'!J3329=\"Yes\",'TSA Input'!J3329=\"Contingent\"),'TSA Input'!B3329,\"Ineligible\"))","v":""},{"$f":"IF('TSA Input'!J3329=\"\",\"\",IF(OR('TSA Input'!J3329=\"Yes\",'TSA Input'!J3329=\"Contingent\"),'TSA Input'!I3329,\"\"))","v":""},{"$f":"IF('TSA Input'!J3329=\"\",\"\",IF(OR('TSA Input'!J3329=\"Yes\",'TSA Input'!J3329=\"Contingent\"),'TSA Input'!C3329,\"\"))","v":""},{"$f":"IF('TSA Input'!J3329=\"\",\"\",IF(OR('TSA Input'!J3329=\"Yes\",'TSA Input'!J3329=\"Contingent\"),'TSA Input'!D3329,\"\"))","v":""},{"$f":"IF('TSA Input'!J3329=\"\",\"\",IF(OR('TSA Input'!J3329=\"Yes\",'TSA Input'!J3329=\"Contingent\"),'TSA Input'!G3329,\"\"))","v":""},{"$f":"IF('TSA Input'!J3329=\"\",\"\",IF(OR('TSA Input'!J3329=\"Yes\",'TSA Input'!J3329=\"Contingent\"),'TSA Input'!F3329,\"\"))","v":""},"",{"$f":"IF('TSA Input'!J3329=\"\",\"\",IF(OR('TSA Input'!J3329=\"Yes\",'TSA Input'!J3329=\"Contingent\"),'TSA Input'!D3329,\"\"))","v":""},{"$f":"IF('TSA Input'!J3329=\"\",\"\",IF(OR('TSA Input'!J3329=\"Yes\",'TSA Input'!J3329=\"Contingent\"),'TSA Input'!G3329,\"\"))","v":""},{"$f":"IF('TSA Input'!J3329=\"\",\"\",IF(OR('TSA Input'!J3329=\"Yes\",'TSA Input'!J3329=\"Contingent\"),'TSA Input'!F3329,\"\"))","v":""},"","Required","Required"]
["",null,{"$f":"IF('TSA Input'!J3330=\"\",\"\",IF(OR('TSA Input'!J3330=\"Yes\",'TSA Input'!J3330=\"Contingent\"),'TSA Input'!B3330,\"Ineligible\"))","v":""},{"$f":"IF('TSA Input'!J3330=\"\",\"\",IF(OR('TSA Input'!J3330=\"Yes\",'TSA Input'!J3330=\"Contingent\"),'TSA Input'!I3330,\"\"))","v":""},{"$f":"IF('TSA Input'!J3330=\"\",\"\",IF(OR('TSA Input'!J3330=\"Yes\",'TSA Input'!J3330=\"Contingent\"),'TSA Input'!C3330,\"\"))","v":""},{"$f":"IF('TSA Input'!J3330=\"\",\"\",IF(OR('TSA Input'!J3330=\"Yes\",'TSA Input'!J3330=\"Contingent\"),'TSA Input'!D3330,\"\"))","v":""},{"$f":"IF('TSA Input'!J3330=\"\",\"\",IF(OR('TSA Input'!J3330=\"Yes\",'TSA Input'!J3330=\"Contingent\"),'TSA Input'!G3330,\"\"))","v":""},{"$f":"IF('TSA Input'!J3330=\"\",\"\",IF(OR('TSA Input'!J3330=\"Yes\",'TSA Input'!J3330=\"Contingent\"),'TSA Input'!F3330,\"\"))","v":""},"",{"$f":"IF('TSA Input'!J3330=\"\",\"\",IF(OR('TSA Input'!J3330=\"Yes\",'TSA Input'!J3330=\"Contingent\"),'TSA Input'!D3330,\"\"))","v":""},{"$f":"IF('TSA Input'!J3330=\"\",\"\",IF(OR('TSA Input'!J3330=\"Yes\",'TSA Input'!J3330=\"Contingent\"),'TSA Input'!G3330,\"\"))","v":""},{"$f":"IF('TSA Input'!J3330=\"\",\"\",IF(OR('TSA Input'!J3330=\"Yes\",'TSA Input'!J3330=\"Contingent\"),'TSA Input'!F3330,\"\"))","v":""},"","Required","Required"]
["",null,{"$f":"IF('TSA Input'!J3331=\"\",\"\",IF(OR('TSA Input'!J3331=\"Yes\",'TSA Input'!J3331=\"Contingent\"),'TSA Input'!B3331,\"Ineligible\"))","v":""},{"$f":"IF('TSA Input'!J3331=\"\",\"\",IF(OR('TSA Input'!J3331=\"Yes\",'TSA Input'!J3331=\"Contingent\"),'TSA Input'!I3331,\"\"))","v":""},{"$f":"IF('TSA Input'!J3331=\"\",\"\",IF(OR('TSA Input'!J3331=\"Yes\",'TSA Input'!J3331=\"Contingent\"),'TSA Input'!C3331,\"\"))","v":""},{"$f":"IF('TSA Input'!J3331=\"\",\"\",IF(OR('TSA Input'!J3331=\"Yes\",'TSA Input'!J3331=\"Contingent\"),'TSA Input'!D3331,\"\"))","v":""},{"$f":"IF('TSA Input'!J3331=\"\",\"\",IF(OR('TSA Input'!J3331=\"Yes\",'TSA Input'!J3331=\"Contingent\"),'TSA Input'!G3331,\"\"))","v":""},{"$f":"IF('TSA Input'!J3331=\"\",\"\",IF(OR('TSA Input'!J3331=\"Yes\",'TSA Input'!J3331=\"Contingent\"),'TSA Input'!F3331,\"\"))","v":""},"",{"$f":"IF('TSA Input'!J3331=\"\",\"\",IF(OR('TSA Input'!J3331=\"Yes\",'TSA Input'!J3331=\"Contingent\"),'TSA Input'!D3331,\"\"))","v":""},{"$f":"IF('TSA Input'!J3331=\"\",\"\",IF(OR('TSA Input'!J3331=\"Yes\",'TSA Input'!J3331=\"Contingent\"),'TSA Input'!G3331,\"\"))","v":""},{"$f":"IF('TSA Input'!J3331=\"\",\"\",IF(OR('TSA Input'!J3331=\"Yes\",'TSA Input'!J3331=\"Contingent\"),'TSA Input'!F3331,\"\"))","v":""},"","Required","Required"]
["",null,{"$f":"IF('TSA Input'!J3332=\"\",\"\",IF(OR('TSA Input'!J3332=\"Yes\",'TSA Input'!J3332=\"Contingent\"),'TSA Input'!B3332,\"Ineligible\"))","v":""},{"$f":"IF('TSA Input'!J3332=\"\",\"\",IF(OR('TSA Input'!J3332=\"Yes\",'TSA Input'!J3332=\"Contingent\"),'TSA Input'!I3332,\"\"))","v":""},{"$f":"IF('TSA Input'!J3332=\"\",\"\",IF(OR('TSA Input'!J3332=\"Yes\",'TSA Input'!J3332=\"Contingent\"),'TSA Input'!C3332,\"\"))","v":""},{"$f":"IF('TSA Input'!J3332=\"\",\"\",IF(OR('TSA Input'!J3332=\"Yes\",'TSA Input'!J3332=\"Contingent\"),'TSA Input'!D3332,\"\"))","v":""},{"$f":"IF('TSA Input'!J3332=\"\",\"\",IF(OR('TSA Input'!J3332=\"Yes\",'TSA Input'!J3332=\"Contingent\"),'TSA Input'!G3332,\"\"))","v":""},{"$f":"IF('TSA Input'!J3332=\"\",\"\",IF(OR('TSA Input'!J3332=\"Yes\",'TSA Input'!J3332=\"Contingent\"),'TSA Input'!F3332,\"\"))","v":""},{"$f":"IF($C3370=\"\",\"\",SUM(F3370:H3370))","v":""},{"$f":"IF('TSA Input'!J3332=\"\",\"\",IF(OR('TSA Input'!J3332=\"Yes\",'TSA Input'!J3332=\"Contingent\"),'TSA Input'!D3332,\"\"))","v":""},{"$f":"IF('TSA Input'!J3332=\"\",\"\",IF(OR('TSA Input'!J3332=\"Yes\",'TSA Input'!J3332=\"Contingent\"),'TSA Input'!G3332,\"\"))","v":""},{"$f":"IF('TSA Input'!J3332=\"\",\"\",IF(OR('TSA Input'!J3332=\"Yes\",'TSA Input'!J3332=\"Contingent\"),'TSA Input'!F3332,\"\"))","v":""},{"$f":"IF($C3370=\"\",\"\",SUM(J3370:L3370))","v":""},"Required","Required"]
["",null,{"$f":"IF('TSA Input'!J3333=\"\",\"\",IF(OR('TSA Input'!J3333=\"Yes\",'TSA Input'!J3333=\"Contingent\"),'TSA Input'!B3333,\"Ineligible\"))","v":""},{"$f":"IF('TSA Input'!J3333=\"\",\"\",IF(OR('TSA Input'!J3333=\"Yes\",'TSA Input'!J3333=\"Contingent\"),'TSA Input'!I3333,\"\"))","v":""},{"$f":"IF('TSA Input'!J3333=\"\",\"\",IF(OR('TSA Input'!J3333=\"Yes\",'TSA Input'!J3333=\"Contingent\"),'TSA Input'!C3333,\"\"))","v":""},{"$f":"IF('TSA Input'!J3333=\"\",\"\",IF(OR('TSA Input'!J3333=\"Yes\",'TSA Input'!J3333=\"Contingent\"),'TSA Input'!D3333,\"\"))","v":""},{"$f":"IF('TSA Input'!J3333=\"\",\"\",IF(OR('TSA Input'!J3333=\"Yes\",'TSA Input'!J3333=\"Contingent\"),'TSA Input'!G3333,\"\"))","v":""},{"$f":"IF('TSA Input'!J3333=\"\",\"\",IF(OR('TSA Input'!J3333=\"Yes\",'TSA Input'!J3333=\"Contingent\"),'TSA Input'!F3333,\"\"))","v":""},"",{"$f":"IF('TSA Input'!J3333=\"\",\"\",IF(OR('TSA Input'!J3333=\"Yes\",'TSA Input'!J3333=\"Contingent\"),'TSA Input'!D3333,\"\"))","v":""},{"$f":"IF('TSA Input'!J3333=\"\",\"\",IF(OR('TSA Input'!J3333=\"Yes\",'TSA Input'!J3333=\"Contingent\"),'TSA Input'!G3333,\"\"))","v":""},{"$f":"IF('TSA Input'!J3333=\"\",\"\",IF(OR('TSA Input'!J3333=\"Yes\",'TSA Input'!J3333=\"Contingent\"),'TSA Input'!F3333,\"\"))","v":""},"","Required","Required"]
["",null,{"$f":"IF('TSA Input'!J3334=\"\",\"\",IF(OR('TSA Input'!J3334=\"Yes\",'TSA Input'!J3334=\"Contingent\"),'TSA Input'!B3334,\"Ineligible\"))","v":""},{"$f":"IF('TSA Input'!J3334=\"\",\"\",IF(OR('TSA Input'!J3334=\"Yes\",'TSA Input'!J3334=\"Contingent\"),'TSA Input'!I3334,\"\"))","v":""},{"$f":"IF('TSA Input'!J3334=\"\",\"\",IF(OR('TSA Input'!J3334=\"Yes\",'TSA Input'!J3334=\"Contingent\"),'TSA Input'!C3334,\"\"))","v":""},{"$f":"IF('TSA Input'!J3334=\"\",\"\",IF(OR('TSA Input'!J3334=\"Yes\",'TSA Input'!J3334=\"Contingent\"),'TSA Input'!D3334,\"\"))","v":""},{"$f":"IF('TSA Input'!J3334=\"\",\"\",IF(OR('TSA Input'!J3334=\"Yes\",'TSA Input'!J3334=\"Contingent\"),'TSA Input'!G3334,\"\"))","v":""},{"$f":"IF('TSA Input'!J3334=\"\",\"\",IF(OR('TSA Input'!J3334=\"Yes\",'TSA Input'!J3334=\"Contingent\"),'TSA Input'!F3334,\"\"))","v":""},"",{"$f":"IF('TSA Input'!J3334=\"\",\"\",IF(OR('TSA Input'!J3334=\"Yes\",'TSA Input'!J3334=\"Contingent\"),'TSA Input'!D3334,\"\"))","v":""},{"$f":"IF('TSA Input'!J3334=\"\",\"\",IF(OR('TSA Input'!J3334=\"Yes\",'TSA Input'!J3334=\"Contingent\"),'TSA Input'!G3334,\"\"))","v":""},{"$f":"IF('TSA Input'!J3334=\"\",\"\",IF(OR('TSA Input'!J3334=\"Yes\",'TSA Input'!J3334=\"Contingent\"),'TSA Input'!F3334,\"\"))","v":""},"","Required","Required"]
["",null,{"$f":"IF('TSA Input'!J3335=\"\",\"\",IF(OR('TSA Input'!J3335=\"Yes\",'TSA Input'!J3335=\"Contingent\"),'TSA Input'!B3335,\"Ineligible\"))","v":""},{"$f":"IF('TSA Input'!J3335=\"\",\"\",IF(OR('TSA Input'!J3335=\"Yes\",'TSA Input'!J3335=\"Contingent\"),'TSA Input'!I3335,\"\"))","v":""},{"$f":"IF('TSA Input'!J3335=\"\",\"\",IF(OR('TSA Input'!J3335=\"Yes\",'TSA Input'!J3335=\"Contingent\"),'TSA Input'!C3335,\"\"))","v":""},{"$f":"IF('TSA Input'!J3335=\"\",\"\",IF(OR('TSA Input'!J3335=\"Yes\",'TSA Input'!J3335=\"Contingent\"),'TSA Input'!D3335,\"\"))","v":""},{"$f":"IF('TSA Input'!J3335=\"\",\"\",IF(OR('TSA Input'!J3335=\"Yes\",'TSA Input'!J3335=\"Contingent\"),'TSA Input'!G3335,\"\"))","v":""},{"$f":"IF('TSA Input'!J3335=\"\",\"\",IF(OR('TSA Input'!J3335=\"Yes\",'TSA Input'!J3335=\"Contingent\"),'TSA Input'!F3335,\"\"))","v":""},"",{"$f":"IF('TSA Input'!J3335=\"\",\"\",IF(OR('TSA Input'!J3335=\"Yes\",'TSA Input'!J3335=\"Contingent\"),'TSA Input'!D3335,\"\"))","v":""},{"$f":"IF('TSA Input'!J3335=\"\",\"\",IF(OR('TSA Input'!J3335=\"Yes\",'TSA Input'!J3335=\"Contingent\"),'TSA Input'!G3335,\"\"))","v":""},{"$f":"IF('TSA Input'!J3335=\"\",\"\",IF(OR('TSA Input'!J3335=\"Yes\",'TSA Input'!J3335=\"Contingent\"),'TSA Input'!F3335,\"\"))","v":""},"","Required","Required"]
["",null,{"$f":"IF('TSA Input'!J3336=\"\",\"\",IF(OR('TSA Input'!J3336=\"Yes\",'TSA Input'!J3336=\"Contingent\"),'TSA Input'!B3336,\"Ineligible\"))","v":""},{"$f":"IF('TSA Input'!J3336=\"\",\"\",IF(OR('TSA Input'!J3336=\"Yes\",'TSA Input'!J3336=\"Contingent\"),'TSA Input'!I3336,\"\"))","v":""},{"$f":"IF('TSA Input'!J3336=\"\",\"\",IF(OR('TSA Input'!J3336=\"Yes\",'TSA Input'!J3336=\"Contingent\"),'TSA Input'!C3336,\"\"))","v":""},{"$f":"IF('TSA Input'!J3336=\"\",\"\",IF(OR('TSA Input'!J3336=\"Yes\",'TSA Input'!J3336=\"Contingent\"),'TSA Input'!D3336,\"\"))","v":""},{"$f":"IF('TSA Input'!J3336=\"\",\"\",IF(OR('TSA Input'!J3336=\"Yes\",'TSA Input'!J3336=\"Contingent\"),'TSA Input'!G3336,\"\"))","v":""},{"$f":"IF('TSA Input'!J3336=\"\",\"\",IF(OR('TSA Input'!J3336=\"Yes\",'TSA Input'!J3336=\"Contingent\"),'TSA Input'!F3336,\"\"))","v":""},"",{"$f":"IF('TSA Input'!J3336=\"\",\"\",IF(OR('TSA Input'!J3336=\"Yes\",'TSA Input'!J3336=\"Contingent\"),'TSA Input'!D3336,\"\"))","v":""},{"$f":"IF('TSA Input'!J3336=\"\",\"\",IF(OR('TSA Input'!J3336=\"Yes\",'TSA Input'!J3336=\"Contingent\"),'TSA Input'!G3336,\"\"))","v":""},{"$f":"IF('TSA Input'!J3336=\"\",\"\",IF(OR('TSA Input'!J3336=\"Yes\",'TSA Input'!J3336=\"Contingent\"),'TSA Input'!F3336,\"\"))","v":""},"","Required","Required"]
["",null,{"$f":"IF('TSA Input'!J3337=\"\",\"\",IF(OR('TSA Input'!J3337=\"Yes\",'TSA Input'!J3337=\"Contingent\"),'TSA Input'!B3337,\"Ineligible\"))","v":""},{"$f":"IF('TSA Input'!J3337=\"\",\"\",IF(OR('TSA Input'!J3337=\"Yes\",'TSA Input'!J3337=\"Contingent\"),'TSA Input'!I3337,\"\"))","v":""},{"$f":"IF('TSA Input'!J3337=\"\",\"\",IF(OR('TSA Input'!J3337=\"Yes\",'TSA Input'!J3337=\"Contingent\"),'TSA Input'!C3337,\"\"))","v":""},{"$f":"IF('TSA Input'!J3337=\"\",\"\",IF(OR('TSA Input'!J3337=\"Yes\",'TSA Input'!J3337=\"Contingent\"),'TSA Input'!D3337,\"\"))","v":""},{"$f":"IF('TSA Input'!J3337=\"\",\"\",IF(OR('TSA Input'!J3337=\"Yes\",'TSA Input'!J3337=\"Contingent\"),'TSA Input'!G3337,\"\"))","v":""},{"$f":"IF('TSA Input'!J3337=\"\",\"\",IF(OR('TSA Input'!J3337=\"Yes\",'TSA Input'!J3337=\"Contingent\"),'TSA Input'!F3337,\"\"))","v":""},"",{"$f":"IF('TSA Input'!J3337=\"\",\"\",IF(OR('TSA Input'!J3337=\"Yes\",'TSA Input'!J3337=\"Contingent\"),'TSA Input'!D3337,\"\"))","v":""},{"$f":"IF('TSA Input'!J3337=\"\",\"\",IF(OR('TSA Input'!J3337=\"Yes\",'TSA Input'!J3337=\"Contingent\"),'TSA Input'!G3337,\"\"))","v":""},{"$f":"IF('TSA Input'!J3337=\"\",\"\",IF(OR('TSA Input'!J3337=\"Yes\",'TSA Input'!J3337=\"Contingent\"),'TSA Input'!F3337,\"\"))","v":""},"","Required","Required"]
["",null,{"$f":"IF('TSA Input'!J3338=\"\",\"\",IF(OR('TSA Input'!J3338=\"Yes\",'TSA Input'!J3338=\"Contingent\"),'TSA Input'!B3338,\"Ineligible\"))","v":""},{"$f":"IF('TSA Input'!J3338=\"\",\"\",IF(OR('TSA Input'!J3338=\"Yes\",'TSA Input'!J3338=\"Contingent\"),'TSA Input'!I3338,\"\"))","v":""},{"$f":"IF('TSA Input'!J3338=\"\",\"\",IF(OR('TSA Input'!J3338=\"Yes\",'TSA Input'!J3338=\"Contingent\"),'TSA Input'!C3338,\"\"))","v":""},{"$f":"IF('TSA Input'!J3338=\"\",\"\",IF(OR('TSA Input'!J3338=\"Yes\",'TSA Input'!J3338=\"Contingent\"),'TSA Input'!D3338,\"\"))","v":""},{"$f":"IF('TSA Input'!J3338=\"\",\"\",IF(OR('TSA Input'!J3338=\"Yes\",'TSA Input'!J3338=\"Contingent\"),'TSA Input'!G3338,\"\"))","v":""},{"$f":"IF('TSA Input'!J3338=\"\",\"\",IF(OR('TSA Input'!J3338=\"Yes\",'TSA Input'!J3338=\"Contingent\"),'TSA Input'!F3338,\"\"))","v":""},"",{"$f":"IF('TSA Input'!J3338=\"\",\"\",IF(OR('TSA Input'!J3338=\"Yes\",'TSA Input'!J3338=\"Contingent\"),'TSA Input'!D3338,\"\"))","v":""},{"$f":"IF('TSA Input'!J3338=\"\",\"\",IF(OR('TSA Input'!J3338=\"Yes\",'TSA Input'!J3338=\"Contingent\"),'TSA Input'!G3338,\"\"))","v":""},{"$f":"IF('TSA Input'!J3338=\"\",\"\",IF(OR('TSA Input'!J3338=\"Yes\",'TSA Input'!J3338=\"Contingent\"),'TSA Input'!F3338,\"\"))","v":""},"","Required","Required"]
["",null,{"$f":"IF('TSA Input'!J3339=\"\",\"\",IF(OR('TSA Input'!J3339=\"Yes\",'TSA Input'!J3339=\"Contingent\"),'TSA Input'!B3339,\"Ineligible\"))","v":""},{"$f":"IF('TSA Input'!J3339=\"\",\"\",IF(OR('TSA Input'!J3339=\"Yes\",'TSA Input'!J3339=\"Contingent\"),'TSA Input'!I3339,\"\"))","v":""},{"$f":"IF('TSA Input'!J3339=\"\",\"\",IF(OR('TSA Input'!J3339=\"Yes\",'TSA Input'!J3339=\"Contingent\"),'TSA Input'!C3339,\"\"))","v":""},{"$f":"IF('TSA Input'!J3339=\"\",\"\",IF(OR('TSA Input'!J3339=\"Yes\",'TSA Input'!J3339=\"Contingent\"),'TSA Input'!D3339,\"\"))","v":""},{"$f":"IF('TSA Input'!J3339=\"\",\"\",IF(OR('TSA Input'!J3339=\"Yes\",'TSA Input'!J3339=\"Contingent\"),'TSA Input'!G3339,\"\"))","v":""},{"$f":"IF('TSA Input'!J3339=\"\",\"\",IF(OR('TSA Input'!J3339=\"Yes\",'TSA Input'!J3339=\"Contingent\"),'TSA Input'!F3339,\"\"))","v":""},"",{"$f":"IF('TSA Input'!J3339=\"\",\"\",IF(OR('TSA Input'!J3339=\"Yes\",'TSA Input'!J3339=\"Contingent\"),'TSA Input'!D3339,\"\"))","v":""},{"$f":"IF('TSA Input'!J3339=\"\",\"\",IF(OR('TSA Input'!J3339=\"Yes\",'TSA Input'!J3339=\"Contingent\"),'TSA Input'!G3339,\"\"))","v":""},{"$f":"IF('TSA Input'!J3339=\"\",\"\",IF(OR('TSA Input'!J3339=\"Yes\",'TSA Input'!J3339=\"Contingent\"),'TSA Input'!F3339,\"\"))","v":""},"","Required","Required"]
["",null,{"$f":"IF('TSA Input'!J3340=\"\",\"\",IF(OR('TSA Input'!J3340=\"Yes\",'TSA Input'!J3340=\"Contingent\"),'TSA Input'!B3340,\"Ineligible\"))","v":""},{"$f":"IF('TSA Input'!J3340=\"\",\"\",IF(OR('TSA Input'!J3340=\"Yes\",'TSA Input'!J3340=\"Contingent\"),'TSA Input'!I3340,\"\"))","v":""},{"$f":"IF('TSA Input'!J3340=\"\",\"\",IF(OR('TSA Input'!J3340=\"Yes\",'TSA Input'!J3340=\"Contingent\"),'TSA Input'!C3340,\"\"))","v":""},{"$f":"IF('TSA Input'!J3340=\"\",\"\",IF(OR('TSA Input'!J3340=\"Yes\",'TSA Input'!J3340=\"Contingent\"),'TSA Input'!D3340,\"\"))","v":""},{"$f":"IF('TSA Input'!J3340=\"\",\"\",IF(OR('TSA Input'!J3340=\"Yes\",'TSA Input'!J3340=\"Contingent\"),'TSA Input'!G3340,\"\"))","v":""},{"$f":"IF('TSA Input'!J3340=\"\",\"\",IF(OR('TSA Input'!J3340=\"Yes\",'TSA Input'!J3340=\"Contingent\"),'TSA Input'!F3340,\"\"))","v":""},"",{"$f":"IF('TSA Input'!J3340=\"\",\"\",IF(OR('TSA Input'!J3340=\"Yes\",'TSA Input'!J3340=\"Contingent\"),'TSA Input'!D3340,\"\"))","v":""},{"$f":"IF('TSA Input'!J3340=\"\",\"\",IF(OR('TSA Input'!J3340=\"Yes\",'TSA Input'!J3340=\"Contingent\"),'TSA Input'!G3340,\"\"))","v":""},{"$f":"IF('TSA Input'!J3340=\"\",\"\",IF(OR('TSA Input'!J3340=\"Yes\",'TSA Input'!J3340=\"Contingent\"),'TSA Input'!F3340,\"\"))","v":""},"","Required","Required"]
["",null,{"$f":"IF('TSA Input'!J3341=\"\",\"\",IF(OR('TSA Input'!J3341=\"Yes\",'TSA Input'!J3341=\"Contingent\"),'TSA Input'!B3341,\"Ineligible\"))","v":""},{"$f":"IF('TSA Input'!J3341=\"\",\"\",IF(OR('TSA Input'!J3341=\"Yes\",'TSA Input'!J3341=\"Contingent\"),'TSA Input'!I3341,\"\"))","v":""},{"$f":"IF('TSA Input'!J3341=\"\",\"\",IF(OR('TSA Input'!J3341=\"Yes\",'TSA Input'!J3341=\"Contingent\"),'TSA Input'!C3341,\"\"))","v":""},{"$f":"IF('TSA Input'!J3341=\"\",\"\",IF(OR('TSA Input'!J3341=\"Yes\",'TSA Input'!J3341=\"Contingent\"),'TSA Input'!D3341,\"\"))","v":""},{"$f":"IF('TSA Input'!J3341=\"\",\"\",IF(OR('TSA Input'!J3341=\"Yes\",'TSA Input'!J3341=\"Contingent\"),'TSA Input'!G3341,\"\"))","v":""},{"$f":"IF('TSA Input'!J3341=\"\",\"\",IF(OR('TSA Input'!J3341=\"Yes\",'TSA Input'!J3341=\"Contingent\"),'TSA Input'!F3341,\"\"))","v":""},"",{"$f":"IF('TSA Input'!J3341=\"\",\"\",IF(OR('TSA Input'!J3341=\"Yes\",'TSA Input'!J3341=\"Contingent\"),'TSA Input'!D3341,\"\"))","v":""},{"$f":"IF('TSA Input'!J3341=\"\",\"\",IF(OR('TSA Input'!J3341=\"Yes\",'TSA Input'!J3341=\"Contingent\"),'TSA Input'!G3341,\"\"))","v":""},{"$f":"IF('TSA Input'!J3341=\"\",\"\",IF(OR('TSA Input'!J3341=\"Yes\",'TSA Input'!J3341=\"Contingent\"),'TSA Input'!F3341,\"\"))","v":""},"","Required","Required"]
["",null,{"$f":"IF('TSA Input'!J3342=\"\",\"\",IF(OR('TSA Input'!J3342=\"Yes\",'TSA Input'!J3342=\"Contingent\"),'TSA Input'!B3342,\"Ineligible\"))","v":""},{"$f":"IF('TSA Input'!J3342=\"\",\"\",IF(OR('TSA Input'!J3342=\"Yes\",'TSA Input'!J3342=\"Contingent\"),'TSA Input'!I3342,\"\"))","v":""},{"$f":"IF('TSA Input'!J3342=\"\",\"\",IF(OR('TSA Input'!J3342=\"Yes\",'TSA Input'!J3342=\"Contingent\"),'TSA Input'!C3342,\"\"))","v":""},{"$f":"IF('TSA Input'!J3342=\"\",\"\",IF(OR('TSA Input'!J3342=\"Yes\",'TSA Input'!J3342=\"Contingent\"),'TSA Input'!D3342,\"\"))","v":""},{"$f":"IF('TSA Input'!J3342=\"\",\"\",IF(OR('TSA Input'!J3342=\"Yes\",'TSA Input'!J3342=\"Contingent\"),'TSA Input'!G3342,\"\"))","v":""},{"$f":"IF('TSA Input'!J3342=\"\",\"\",IF(OR('TSA Input'!J3342=\"Yes\",'TSA Input'!J3342=\"Contingent\"),'TSA Input'!F3342,\"\"))","v":""},"",{"$f":"IF('TSA Input'!J3342=\"\",\"\",IF(OR('TSA Input'!J3342=\"Yes\",'TSA Input'!J3342=\"Contingent\"),'TSA Input'!D3342,\"\"))","v":""},{"$f":"IF('TSA Input'!J3342=\"\",\"\",IF(OR('TSA Input'!J3342=\"Yes\",'TSA Input'!J3342=\"Contingent\"),'TSA Input'!G3342,\"\"))","v":""},{"$f":"IF('TSA Input'!J3342=\"\",\"\",IF(OR('TSA Input'!J3342=\"Yes\",'TSA Input'!J3342=\"Contingent\"),'TSA Input'!F3342,\"\"))","v":""},"","Required","Required"]
["",null,{"$f":"IF('TSA Input'!J3343=\"\",\"\",IF(OR('TSA Input'!J3343=\"Yes\",'TSA Input'!J3343=\"Contingent\"),'TSA Input'!B3343,\"Ineligible\"))","v":""},{"$f":"IF('TSA Input'!J3343=\"\",\"\",IF(OR('TSA Input'!J3343=\"Yes\",'TSA Input'!J3343=\"Contingent\"),'TSA Input'!I3343,\"\"))","v":""},{"$f":"IF('TSA Input'!J3343=\"\",\"\",IF(OR('TSA Input'!J3343=\"Yes\",'TSA Input'!J3343=\"Contingent\"),'TSA Input'!C3343,\"\"))","v":""},{"$f":"IF('TSA Input'!J3343=\"\",\"\",IF(OR('TSA Input'!J3343=\"Yes\",'TSA Input'!J3343=\"Contingent\"),'TSA Input'!D3343,\"\"))","v":""},{"$f":"IF('TSA Input'!J3343=\"\",\"\",IF(OR('TSA Input'!J3343=\"Yes\",'TSA Input'!J3343=\"Contingent\"),'TSA Input'!G3343,\"\"))","v":""},{"$f":"IF('TSA Input'!J3343=\"\",\"\",IF(OR('TSA Input'!J3343=\"Yes\",'TSA Input'!J3343=\"Contingent\"),'TSA Input'!F3343,\"\"))","v":""},"",{"$f":"IF('TSA Input'!J3343=\"\",\"\",IF(OR('TSA Input'!J3343=\"Yes\",'TSA Input'!J3343=\"Contingent\"),'TSA Input'!D3343,\"\"))","v":""},{"$f":"IF('TSA Input'!J3343=\"\",\"\",IF(OR('TSA Input'!J3343=\"Yes\",'TSA Input'!J3343=\"Contingent\"),'TSA Input'!G3343,\"\"))","v":""},{"$f":"IF('TSA Input'!J3343=\"\",\"\",IF(OR('TSA Input'!J3343=\"Yes\",'TSA Input'!J3343=\"Contingent\"),'TSA Input'!F3343,\"\"))","v":""},"","Required","Required"]
["",null,{"$f":"IF('TSA Input'!J3344=\"\",\"\",IF(OR('TSA Input'!J3344=\"Yes\",'TSA Input'!J3344=\"Contingent\"),'TSA Input'!B3344,\"Ineligible\"))","v":""},{"$f":"IF('TSA Input'!J3344=\"\",\"\",IF(OR('TSA Input'!J3344=\"Yes\",'TSA Input'!J3344=\"Contingent\"),'TSA Input'!I3344,\"\"))","v":""},{"$f":"IF('TSA Input'!J3344=\"\",\"\",IF(OR('TSA Input'!J3344=\"Yes\",'TSA Input'!J3344=\"Contingent\"),'TSA Input'!C3344,\"\"))","v":""},{"$f":"IF('TSA Input'!J3344=\"\",\"\",IF(OR('TSA Input'!J3344=\"Yes\",'TSA Input'!J3344=\"Contingent\"),'TSA Input'!D3344,\"\"))","v":""},{"$f":"IF('TSA Input'!J3344=\"\",\"\",IF(OR('TSA Input'!J3344=\"Yes\",'TSA Input'!J3344=\"Contingent\"),'TSA Input'!G3344,\"\"))","v":""},{"$f":"IF('TSA Input'!J3344=\"\",\"\",IF(OR('TSA Input'!J3344=\"Yes\",'TSA Input'!J3344=\"Contingent\"),'TSA Input'!F3344,\"\"))","v":""},"",{"$f":"IF('TSA Input'!J3344=\"\",\"\",IF(OR('TSA Input'!J3344=\"Yes\",'TSA Input'!J3344=\"Contingent\"),'TSA Input'!D3344,\"\"))","v":""},{"$f":"IF('TSA Input'!J3344=\"\",\"\",IF(OR('TSA Input'!J3344=\"Yes\",'TSA Input'!J3344=\"Contingent\"),'TSA Input'!G3344,\"\"))","v":""},{"$f":"IF('TSA Input'!J3344=\"\",\"\",IF(OR('TSA Input'!J3344=\"Yes\",'TSA Input'!J3344=\"Contingent\"),'TSA Input'!F3344,\"\"))","v":""},"","Required","Required"]
["",null,{"$f":"IF('TSA Input'!J3345=\"\",\"\",IF(OR('TSA Input'!J3345=\"Yes\",'TSA Input'!J3345=\"Contingent\"),'TSA Input'!B3345,\"Ineligible\"))","v":""},{"$f":"IF('TSA Input'!J3345=\"\",\"\",IF(OR('TSA Input'!J3345=\"Yes\",'TSA Input'!J3345=\"Contingent\"),'TSA Input'!I3345,\"\"))","v":""},{"$f":"IF('TSA Input'!J3345=\"\",\"\",IF(OR('TSA Input'!J3345=\"Yes\",'TSA Input'!J3345=\"Contingent\"),'TSA Input'!C3345,\"\"))","v":""},{"$f":"IF('TSA Input'!J3345=\"\",\"\",IF(OR('TSA Input'!J3345=\"Yes\",'TSA Input'!J3345=\"Contingent\"),'TSA Input'!D3345,\"\"))","v":""},{"$f":"IF('TSA Input'!J3345=\"\",\"\",IF(OR('TSA Input'!J3345=\"Yes\",'TSA Input'!J3345=\"Contingent\"),'TSA Input'!G3345,\"\"))","v":""},{"$f":"IF('TSA Input'!J3345=\"\",\"\",IF(OR('TSA Input'!J3345=\"Yes\",'TSA Input'!J3345=\"Contingent\"),'TSA Input'!F3345,\"\"))","v":""},"",{"$f":"IF('TSA Input'!J3345=\"\",\"\",IF(OR('TSA Input'!J3345=\"Yes\",'TSA Input'!J3345=\"Contingent\"),'TSA Input'!D3345,\"\"))","v":""},{"$f":"IF('TSA Input'!J3345=\"\",\"\",IF(OR('TSA Input'!J3345=\"Yes\",'TSA Input'!J3345=\"Contingent\"),'TSA Input'!G3345,\"\"))","v":""},{"$f":"IF('TSA Input'!J3345=\"\",\"\",IF(OR('TSA Input'!J3345=\"Yes\",'TSA Input'!J3345=\"Contingent\"),'TSA Input'!F3345,\"\"))","v":""},"","Required","Required"]
["",null,{"$f":"IF('TSA Input'!J3346=\"\",\"\",IF(OR('TSA Input'!J3346=\"Yes\",'TSA Input'!J3346=\"Contingent\"),'TSA Input'!B3346,\"Ineligible\"))","v":""},{"$f":"IF('TSA Input'!J3346=\"\",\"\",IF(OR('TSA Input'!J3346=\"Yes\",'TSA Input'!J3346=\"Contingent\"),'TSA Input'!I3346,\"\"))","v":""},{"$f":"IF('TSA Input'!J3346=\"\",\"\",IF(OR('TSA Input'!J3346=\"Yes\",'TSA Input'!J3346=\"Contingent\"),'TSA Input'!C3346,\"\"))","v":""},{"$f":"IF('TSA Input'!J3346=\"\",\"\",IF(OR('TSA Input'!J3346=\"Yes\",'TSA Input'!J3346=\"Contingent\"),'TSA Input'!D3346,\"\"))","v":""},{"$f":"IF('TSA Input'!J3346=\"\",\"\",IF(OR('TSA Input'!J3346=\"Yes\",'TSA Input'!J3346=\"Contingent\"),'TSA Input'!G3346,\"\"))","v":""},{"$f":"IF('TSA Input'!J3346=\"\",\"\",IF(OR('TSA Input'!J3346=\"Yes\",'TSA Input'!J3346=\"Contingent\"),'TSA Input'!F3346,\"\"))","v":""},"",{"$f":"IF('TSA Input'!J3346=\"\",\"\",IF(OR('TSA Input'!J3346=\"Yes\",'TSA Input'!J3346=\"Contingent\"),'TSA Input'!D3346,\"\"))","v":""},{"$f":"IF('TSA Input'!J3346=\"\",\"\",IF(OR('TSA Input'!J3346=\"Yes\",'TSA Input'!J3346=\"Contingent\"),'TSA Input'!G3346,\"\"))","v":""},{"$f":"IF('TSA Input'!J3346=\"\",\"\",IF(OR('TSA Input'!J3346=\"Yes\",'TSA Input'!J3346=\"Contingent\"),'TSA Input'!F3346,\"\"))","v":""},"","Required","Required"]
["",null,{"$f":"IF('TSA Input'!J3347=\"\",\"\",IF(OR('TSA Input'!J3347=\"Yes\",'TSA Input'!J3347=\"Contingent\"),'TSA Input'!B3347,\"Ineligible\"))","v":""},{"$f":"IF('TSA Input'!J3347=\"\",\"\",IF(OR('TSA Input'!J3347=\"Yes\",'TSA Input'!J3347=\"Contingent\"),'TSA Input'!I3347,\"\"))","v":""},{"$f":"IF('TSA Input'!J3347=\"\",\"\",IF(OR('TSA Input'!J3347=\"Yes\",'TSA Input'!J3347=\"Contingent\"),'TSA Input'!C3347,\"\"))","v":""},{"$f":"IF('TSA Input'!J3347=\"\",\"\",IF(OR('TSA Input'!J3347=\"Yes\",'TSA Input'!J3347=\"Contingent\"),'TSA Input'!D3347,\"\"))","v":""},{"$f":"IF('TSA Input'!J3347=\"\",\"\",IF(OR('TSA Input'!J3347=\"Yes\",'TSA Input'!J3347=\"Contingent\"),'TSA Input'!G3347,\"\"))","v":""},{"$f":"IF('TSA Input'!J3347=\"\",\"\",IF(OR('TSA Input'!J3347=\"Yes\",'TSA Input'!J3347=\"Contingent\"),'TSA Input'!F3347,\"\"))","v":""},"",{"$f":"IF('TSA Input'!J3347=\"\",\"\",IF(OR('TSA Input'!J3347=\"Yes\",'TSA Input'!J3347=\"Contingent\"),'TSA Input'!D3347,\"\"))","v":""},{"$f":"IF('TSA Input'!J3347=\"\",\"\",IF(OR('TSA Input'!J3347=\"Yes\",'TSA Input'!J3347=\"Contingent\"),'TSA Input'!G3347,\"\"))","v":""},{"$f":"IF('TSA Input'!J3347=\"\",\"\",IF(OR('TSA Input'!J3347=\"Yes\",'TSA Input'!J3347=\"Contingent\"),'TSA Input'!F3347,\"\"))","v":""},"","Required","Required"]
["",null,{"$f":"IF('TSA Input'!J3348=\"\",\"\",IF(OR('TSA Input'!J3348=\"Yes\",'TSA Input'!J3348=\"Contingent\"),'TSA Input'!B3348,\"Ineligible\"))","v":""},{"$f":"IF('TSA Input'!J3348=\"\",\"\",IF(OR('TSA Input'!J3348=\"Yes\",'TSA Input'!J3348=\"Contingent\"),'TSA Input'!I3348,\"\"))","v":""},{"$f":"IF('TSA Input'!J3348=\"\",\"\",IF(OR('TSA Input'!J3348=\"Yes\",'TSA Input'!J3348=\"Contingent\"),'TSA Input'!C3348,\"\"))","v":""},{"$f":"IF('TSA Input'!J3348=\"\",\"\",IF(OR('TSA Input'!J3348=\"Yes\",'TSA Input'!J3348=\"Contingent\"),'TSA Input'!D3348,\"\"))","v":""},{"$f":"IF('TSA Input'!J3348=\"\",\"\",IF(OR('TSA Input'!J3348=\"Yes\",'TSA Input'!J3348=\"Contingent\"),'TSA Input'!G3348,\"\"))","v":""},{"$f":"IF('TSA Input'!J3348=\"\",\"\",IF(OR('TSA Input'!J3348=\"Yes\",'TSA Input'!J3348=\"Contingent\"),'TSA Input'!F3348,\"\"))","v":""},"",{"$f":"IF('TSA Input'!J3348=\"\",\"\",IF(OR('TSA Input'!J3348=\"Yes\",'TSA Input'!J3348=\"Contingent\"),'TSA Input'!D3348,\"\"))","v":""},{"$f":"IF('TSA Input'!J3348=\"\",\"\",IF(OR('TSA Input'!J3348=\"Yes\",'TSA Input'!J3348=\"Contingent\"),'TSA Input'!G3348,\"\"))","v":""},{"$f":"IF('TSA Input'!J3348=\"\",\"\",IF(OR('TSA Input'!J3348=\"Yes\",'TSA Input'!J3348=\"Contingent\"),'TSA Input'!F3348,\"\"))","v":""},"","Required","Required"]
["",null,{"$f":"IF('TSA Input'!J3349=\"\",\"\",IF(OR('TSA Input'!J3349=\"Yes\",'TSA Input'!J3349=\"Contingent\"),'TSA Input'!B3349,\"Ineligible\"))","v":""},{"$f":"IF('TSA Input'!J3349=\"\",\"\",IF(OR('TSA Input'!J3349=\"Yes\",'TSA Input'!J3349=\"Contingent\"),'TSA Input'!I3349,\"\"))","v":""},{"$f":"IF('TSA Input'!J3349=\"\",\"\",IF(OR('TSA Input'!J3349=\"Yes\",'TSA Input'!J3349=\"Contingent\"),'TSA Input'!C3349,\"\"))","v":""},{"$f":"IF('TSA Input'!J3349=\"\",\"\",IF(OR('TSA Input'!J3349=\"Yes\",'TSA Input'!J3349=\"Contingent\"),'TSA Input'!D3349,\"\"))","v":""},{"$f":"IF('TSA Input'!J3349=\"\",\"\",IF(OR('TSA Input'!J3349=\"Yes\",'TSA Input'!J3349=\"Contingent\"),'TSA Input'!G3349,\"\"))","v":""},{"$f":"IF('TSA Input'!J3349=\"\",\"\",IF(OR('TSA Input'!J3349=\"Yes\",'TSA Input'!J3349=\"Contingent\"),'TSA Input'!F3349,\"\"))","v":""},"",{"$f":"IF('TSA Input'!J3349=\"\",\"\",IF(OR('TSA Input'!J3349=\"Yes\",'TSA Input'!J3349=\"Contingent\"),'TSA Input'!D3349,\"\"))","v":""},{"$f":"IF('TSA Input'!J3349=\"\",\"\",IF(OR('TSA Input'!J3349=\"Yes\",'TSA Input'!J3349=\"Contingent\"),'TSA Input'!G3349,\"\"))","v":""},{"$f":"IF('TSA Input'!J3349=\"\",\"\",IF(OR('TSA Input'!J3349=\"Yes\",'TSA Input'!J3349=\"Contingent\"),'TSA Input'!F3349,\"\"))","v":""},"","Required","Required"]
["",null,{"$f":"IF('TSA Input'!J3350=\"\",\"\",IF(OR('TSA Input'!J3350=\"Yes\",'TSA Input'!J3350=\"Contingent\"),'TSA Input'!B3350,\"Ineligible\"))","v":""},{"$f":"IF('TSA Input'!J3350=\"\",\"\",IF(OR('TSA Input'!J3350=\"Yes\",'TSA Input'!J3350=\"Contingent\"),'TSA Input'!I3350,\"\"))","v":""},{"$f":"IF('TSA Input'!J3350=\"\",\"\",IF(OR('TSA Input'!J3350=\"Yes\",'TSA Input'!J3350=\"Contingent\"),'TSA Input'!C3350,\"\"))","v":""},{"$f":"IF('TSA Input'!J3350=\"\",\"\",IF(OR('TSA Input'!J3350=\"Yes\",'TSA Input'!J3350=\"Contingent\"),'TSA Input'!D3350,\"\"))","v":""},{"$f":"IF('TSA Input'!J3350=\"\",\"\",IF(OR('TSA Input'!J3350=\"Yes\",'TSA Input'!J3350=\"Contingent\"),'TSA Input'!G3350,\"\"))","v":""},{"$f":"IF('TSA Input'!J3350=\"\",\"\",IF(OR('TSA Input'!J3350=\"Yes\",'TSA Input'!J3350=\"Contingent\"),'TSA Input'!F3350,\"\"))","v":""},"",{"$f":"IF('TSA Input'!J3350=\"\",\"\",IF(OR('TSA Input'!J3350=\"Yes\",'TSA Input'!J3350=\"Contingent\"),'TSA Input'!D3350,\"\"))","v":""},{"$f":"IF('TSA Input'!J3350=\"\",\"\",IF(OR('TSA Input'!J3350=\"Yes\",'TSA Input'!J3350=\"Contingent\"),'TSA Input'!G3350,\"\"))","v":""},{"$f":"IF('TSA Input'!J3350=\"\",\"\",IF(OR('TSA Input'!J3350=\"Yes\",'TSA Input'!J3350=\"Contingent\"),'TSA Input'!F3350,\"\"))","v":""},"","Required","Required"]
["",null,{"$f":"IF('TSA Input'!J3351=\"\",\"\",IF(OR('TSA Input'!J3351=\"Yes\",'TSA Input'!J3351=\"Contingent\"),'TSA Input'!B3351,\"Ineligible\"))","v":""},{"$f":"IF('TSA Input'!J3351=\"\",\"\",IF(OR('TSA Input'!J3351=\"Yes\",'TSA Input'!J3351=\"Contingent\"),'TSA Input'!I3351,\"\"))","v":""},{"$f":"IF('TSA Input'!J3351=\"\",\"\",IF(OR('TSA Input'!J3351=\"Yes\",'TSA Input'!J3351=\"Contingent\"),'TSA Input'!C3351,\"\"))","v":""},{"$f":"IF('TSA Input'!J3351=\"\",\"\",IF(OR('TSA Input'!J3351=\"Yes\",'TSA Input'!J3351=\"Contingent\"),'TSA Input'!D3351,\"\"))","v":""},{"$f":"IF('TSA Input'!J3351=\"\",\"\",IF(OR('TSA Input'!J3351=\"Yes\",'TSA Input'!J3351=\"Contingent\"),'TSA Input'!G3351,\"\"))","v":""},{"$f":"IF('TSA Input'!J3351=\"\",\"\",IF(OR('TSA Input'!J3351=\"Yes\",'TSA Input'!J3351=\"Contingent\"),'TSA Input'!F3351,\"\"))","v":""},"",{"$f":"IF('TSA Input'!J3351=\"\",\"\",IF(OR('TSA Input'!J3351=\"Yes\",'TSA Input'!J3351=\"Contingent\"),'TSA Input'!D3351,\"\"))","v":""},{"$f":"IF('TSA Input'!J3351=\"\",\"\",IF(OR('TSA Input'!J3351=\"Yes\",'TSA Input'!J3351=\"Contingent\"),'TSA Input'!G3351,\"\"))","v":""},{"$f":"IF('TSA Input'!J3351=\"\",\"\",IF(OR('TSA Input'!J3351=\"Yes\",'TSA Input'!J3351=\"Contingent\"),'TSA Input'!F3351,\"\"))","v":""},"","Required","Required"]
["",null,{"$f":"IF('TSA Input'!J3352=\"\",\"\",IF(OR('TSA Input'!J3352=\"Yes\",'TSA Input'!J3352=\"Contingent\"),'TSA Input'!B3352,\"Ineligible\"))","v":""},{"$f":"IF('TSA Input'!J3352=\"\",\"\",IF(OR('TSA Input'!J3352=\"Yes\",'TSA Input'!J3352=\"Contingent\"),'TSA Input'!I3352,\"\"))","v":""},{"$f":"IF('TSA Input'!J3352=\"\",\"\",IF(OR('TSA Input'!J3352=\"Yes\",'TSA Input'!J3352=\"Contingent\"),'TSA Input'!C3352,\"\"))","v":""},{"$f":"IF('TSA Input'!J3352=\"\",\"\",IF(OR('TSA Input'!J3352=\"Yes\",'TSA Input'!J3352=\"Contingent\"),'TSA Input'!D3352,\"\"))","v":""},{"$f":"IF('TSA Input'!J3352=\"\",\"\",IF(OR('TSA Input'!J3352=\"Yes\",'TSA Input'!J3352=\"Contingent\"),'TSA Input'!G3352,\"\"))","v":""},{"$f":"IF('TSA Input'!J3352=\"\",\"\",IF(OR('TSA Input'!J3352=\"Yes\",'TSA Input'!J3352=\"Contingent\"),'TSA Input'!F3352,\"\"))","v":""},"",{"$f":"IF('TSA Input'!J3352=\"\",\"\",IF(OR('TSA Input'!J3352=\"Yes\",'TSA Input'!J3352=\"Contingent\"),'TSA Input'!D3352,\"\"))","v":""},{"$f":"IF('TSA Input'!J3352=\"\",\"\",IF(OR('TSA Input'!J3352=\"Yes\",'TSA Input'!J3352=\"Contingent\"),'TSA Input'!G3352,\"\"))","v":""},{"$f":"IF('TSA Input'!J3352=\"\",\"\",IF(OR('TSA Input'!J3352=\"Yes\",'TSA Input'!J3352=\"Contingent\"),'TSA Input'!F3352,\"\"))","v":""},"","Required","Required"]
["",null,{"$f":"IF('TSA Input'!J3353=\"\",\"\",IF(OR('TSA Input'!J3353=\"Yes\",'TSA Input'!J3353=\"Contingent\"),'TSA Input'!B3353,\"Ineligible\"))","v":""},{"$f":"IF('TSA Input'!J3353=\"\",\"\",IF(OR('TSA Input'!J3353=\"Yes\",'TSA Input'!J3353=\"Contingent\"),'TSA Input'!I3353,\"\"))","v":""},{"$f":"IF('TSA Input'!J3353=\"\",\"\",IF(OR('TSA Input'!J3353=\"Yes\",'TSA Input'!J3353=\"Contingent\"),'TSA Input'!C3353,\"\"))","v":""},{"$f":"IF('TSA Input'!J3353=\"\",\"\",IF(OR('TSA Input'!J3353=\"Yes\",'TSA Input'!J3353=\"Contingent\"),'TSA Input'!D3353,\"\"))","v":""},{"$f":"IF('TSA Input'!J3353=\"\",\"\",IF(OR('TSA Input'!J3353=\"Yes\",'TSA Input'!J3353=\"Contingent\"),'TSA Input'!G3353,\"\"))","v":""},{"$f":"IF('TSA Input'!J3353=\"\",\"\",IF(OR('TSA Input'!J3353=\"Yes\",'TSA Input'!J3353=\"Contingent\"),'TSA Input'!F3353,\"\"))","v":""},"",{"$f":"IF('TSA Input'!J3353=\"\",\"\",IF(OR('TSA Input'!J3353=\"Yes\",'TSA Input'!J3353=\"Contingent\"),'TSA Input'!D3353,\"\"))","v":""},{"$f":"IF('TSA Input'!J3353=\"\",\"\",IF(OR('TSA Input'!J3353=\"Yes\",'TSA Input'!J3353=\"Contingent\"),'TSA Input'!G3353,\"\"))","v":""},{"$f":"IF('TSA Input'!J3353=\"\",\"\",IF(OR('TSA Input'!J3353=\"Yes\",'TSA Input'!J3353=\"Contingent\"),'TSA Input'!F3353,\"\"))","v":""},"","Required","Required"]
["",null,{"$f":"IF('TSA Input'!J3354=\"\",\"\",IF(OR('TSA Input'!J3354=\"Yes\",'TSA Input'!J3354=\"Contingent\"),'TSA Input'!B3354,\"Ineligible\"))","v":""},{"$f":"IF('TSA Input'!J3354=\"\",\"\",IF(OR('TSA Input'!J3354=\"Yes\",'TSA Input'!J3354=\"Contingent\"),'TSA Input'!I3354,\"\"))","v":""},{"$f":"IF('TSA Input'!J3354=\"\",\"\",IF(OR('TSA Input'!J3354=\"Yes\",'TSA Input'!J3354=\"Contingent\"),'TSA Input'!C3354,\"\"))","v":""},{"$f":"IF('TSA Input'!J3354=\"\",\"\",IF(OR('TSA Input'!J3354=\"Yes\",'TSA Input'!J3354=\"Contingent\"),'TSA Input'!D3354,\"\"))","v":""},{"$f":"IF('TSA Input'!J3354=\"\",\"\",IF(OR('TSA Input'!J3354=\"Yes\",'TSA Input'!J3354=\"Contingent\"),'TSA Input'!G3354,\"\"))","v":""},{"$f":"IF('TSA Input'!J3354=\"\",\"\",IF(OR('TSA Input'!J3354=\"Yes\",'TSA Input'!J3354=\"Contingent\"),'TSA Input'!F3354,\"\"))","v":""},"",{"$f":"IF('TSA Input'!J3354=\"\",\"\",IF(OR('TSA Input'!J3354=\"Yes\",'TSA Input'!J3354=\"Contingent\"),'TSA Input'!D3354,\"\"))","v":""},{"$f":"IF('TSA Input'!J3354=\"\",\"\",IF(OR('TSA Input'!J3354=\"Yes\",'TSA Input'!J3354=\"Contingent\"),'TSA Input'!G3354,\"\"))","v":""},{"$f":"IF('TSA Input'!J3354=\"\",\"\",IF(OR('TSA Input'!J3354=\"Yes\",'TSA Input'!J3354=\"Contingent\"),'TSA Input'!F3354,\"\"))","v":""},"","Required","Required"]
["",null,{"$f":"IF('TSA Input'!J3355=\"\",\"\",IF(OR('TSA Input'!J3355=\"Yes\",'TSA Input'!J3355=\"Contingent\"),'TSA Input'!B3355,\"Ineligible\"))","v":""},{"$f":"IF('TSA Input'!J3355=\"\",\"\",IF(OR('TSA Input'!J3355=\"Yes\",'TSA Input'!J3355=\"Contingent\"),'TSA Input'!I3355,\"\"))","v":""},{"$f":"IF('TSA Input'!J3355=\"\",\"\",IF(OR('TSA Input'!J3355=\"Yes\",'TSA Input'!J3355=\"Contingent\"),'TSA Input'!C3355,\"\"))","v":""},{"$f":"IF('TSA Input'!J3355=\"\",\"\",IF(OR('TSA Input'!J3355=\"Yes\",'TSA Input'!J3355=\"Contingent\"),'TSA Input'!D3355,\"\"))","v":""},{"$f":"IF('TSA Input'!J3355=\"\",\"\",IF(OR('TSA Input'!J3355=\"Yes\",'TSA Input'!J3355=\"Contingent\"),'TSA Input'!G3355,\"\"))","v":""},{"$f":"IF('TSA Input'!J3355=\"\",\"\",IF(OR('TSA Input'!J3355=\"Yes\",'TSA Input'!J3355=\"Contingent\"),'TSA Input'!F3355,\"\"))","v":""},"",{"$f":"IF('TSA Input'!J3355=\"\",\"\",IF(OR('TSA Input'!J3355=\"Yes\",'TSA Input'!J3355=\"Contingent\"),'TSA Input'!D3355,\"\"))","v":""},{"$f":"IF('TSA Input'!J3355=\"\",\"\",IF(OR('TSA Input'!J3355=\"Yes\",'TSA Input'!J3355=\"Contingent\"),'TSA Input'!G3355,\"\"))","v":""},{"$f":"IF('TSA Input'!J3355=\"\",\"\",IF(OR('TSA Input'!J3355=\"Yes\",'TSA Input'!J3355=\"Contingent\"),'TSA Input'!F3355,\"\"))","v":""},"","Required","Required"]
["",null,{"$f":"IF('TSA Input'!J3356=\"\",\"\",IF(OR('TSA Input'!J3356=\"Yes\",'TSA Input'!J3356=\"Contingent\"),'TSA Input'!B3356,\"Ineligible\"))","v":""},{"$f":"IF('TSA Input'!J3356=\"\",\"\",IF(OR('TSA Input'!J3356=\"Yes\",'TSA Input'!J3356=\"Contingent\"),'TSA Input'!I3356,\"\"))","v":""},{"$f":"IF('TSA Input'!J3356=\"\",\"\",IF(OR('TSA Input'!J3356=\"Yes\",'TSA Input'!J3356=\"Contingent\"),'TSA Input'!C3356,\"\"))","v":""},{"$f":"IF('TSA Input'!J3356=\"\",\"\",IF(OR('TSA Input'!J3356=\"Yes\",'TSA Input'!J3356=\"Contingent\"),'TSA Input'!D3356,\"\"))","v":""},{"$f":"IF('TSA Input'!J3356=\"\",\"\",IF(OR('TSA Input'!J3356=\"Yes\",'TSA Input'!J3356=\"Contingent\"),'TSA Input'!G3356,\"\"))","v":""},{"$f":"IF('TSA Input'!J3356=\"\",\"\",IF(OR('TSA Input'!J3356=\"Yes\",'TSA Input'!J3356=\"Contingent\"),'TSA Input'!F3356,\"\"))","v":""},"",{"$f":"IF('TSA Input'!J3356=\"\",\"\",IF(OR('TSA Input'!J3356=\"Yes\",'TSA Input'!J3356=\"Contingent\"),'TSA Input'!D3356,\"\"))","v":""},{"$f":"IF('TSA Input'!J3356=\"\",\"\",IF(OR('TSA Input'!J3356=\"Yes\",'TSA Input'!J3356=\"Contingent\"),'TSA Input'!G3356,\"\"))","v":""},{"$f":"IF('TSA Input'!J3356=\"\",\"\",IF(OR('TSA Input'!J3356=\"Yes\",'TSA Input'!J3356=\"Contingent\"),'TSA Input'!F3356,\"\"))","v":""},"","Required","Required"]
["",null,{"$f":"IF('TSA Input'!J3357=\"\",\"\",IF(OR('TSA Input'!J3357=\"Yes\",'TSA Input'!J3357=\"Contingent\"),'TSA Input'!B3357,\"Ineligible\"))","v":""},{"$f":"IF('TSA Input'!J3357=\"\",\"\",IF(OR('TSA Input'!J3357=\"Yes\",'TSA Input'!J3357=\"Contingent\"),'TSA Input'!I3357,\"\"))","v":""},{"$f":"IF('TSA Input'!J3357=\"\",\"\",IF(OR('TSA Input'!J3357=\"Yes\",'TSA Input'!J3357=\"Contingent\"),'TSA Input'!C3357,\"\"))","v":""},{"$f":"IF('TSA Input'!J3357=\"\",\"\",IF(OR('TSA Input'!J3357=\"Yes\",'TSA Input'!J3357=\"Contingent\"),'TSA Input'!D3357,\"\"))","v":""},{"$f":"IF('TSA Input'!J3357=\"\",\"\",IF(OR('TSA Input'!J3357=\"Yes\",'TSA Input'!J3357=\"Contingent\"),'TSA Input'!G3357,\"\"))","v":""},{"$f":"IF('TSA Input'!J3357=\"\",\"\",IF(OR('TSA Input'!J3357=\"Yes\",'TSA Input'!J3357=\"Contingent\"),'TSA Input'!F3357,\"\"))","v":""},"",{"$f":"IF('TSA Input'!J3357=\"\",\"\",IF(OR('TSA Input'!J3357=\"Yes\",'TSA Input'!J3357=\"Contingent\"),'TSA Input'!D3357,\"\"))","v":""},{"$f":"IF('TSA Input'!J3357=\"\",\"\",IF(OR('TSA Input'!J3357=\"Yes\",'TSA Input'!J3357=\"Contingent\"),'TSA Input'!G3357,\"\"))","v":""},{"$f":"IF('TSA Input'!J3357=\"\",\"\",IF(OR('TSA Input'!J3357=\"Yes\",'TSA Input'!J3357=\"Contingent\"),'TSA Input'!F3357,\"\"))","v":""},"","Required","Required"]
["",null,{"$f":"IF('TSA Input'!J3358=\"\",\"\",IF(OR('TSA Input'!J3358=\"Yes\",'TSA Input'!J3358=\"Contingent\"),'TSA Input'!B3358,\"Ineligible\"))","v":""},{"$f":"IF('TSA Input'!J3358=\"\",\"\",IF(OR('TSA Input'!J3358=\"Yes\",'TSA Input'!J3358=\"Contingent\"),'TSA Input'!I3358,\"\"))","v":""},{"$f":"IF('TSA Input'!J3358=\"\",\"\",IF(OR('TSA Input'!J3358=\"Yes\",'TSA Input'!J3358=\"Contingent\"),'TSA Input'!C3358,\"\"))","v":""},{"$f":"IF('TSA Input'!J3358=\"\",\"\",IF(OR('TSA Input'!J3358=\"Yes\",'TSA Input'!J3358=\"Contingent\"),'TSA Input'!D3358,\"\"))","v":""},{"$f":"IF('TSA Input'!J3358=\"\",\"\",IF(OR('TSA Input'!J3358=\"Yes\",'TSA Input'!J3358=\"Contingent\"),'TSA Input'!G3358,\"\"))","v":""},{"$f":"IF('TSA Input'!J3358=\"\",\"\",IF(OR('TSA Input'!J3358=\"Yes\",'TSA Input'!J3358=\"Contingent\"),'TSA Input'!F3358,\"\"))","v":""},"",{"$f":"IF('TSA Input'!J3358=\"\",\"\",IF(OR('TSA Input'!J3358=\"Yes\",'TSA Input'!J3358=\"Contingent\"),'TSA Input'!D3358,\"\"))","v":""},{"$f":"IF('TSA Input'!J3358=\"\",\"\",IF(OR('TSA Input'!J3358=\"Yes\",'TSA Input'!J3358=\"Contingent\"),'TSA Input'!G3358,\"\"))","v":""},{"$f":"IF('TSA Input'!J3358=\"\",\"\",IF(OR('TSA Input'!J3358=\"Yes\",'TSA Input'!J3358=\"Contingent\"),'TSA Input'!F3358,\"\"))","v":""},"","Required","Required"]
["",null,{"$f":"IF('TSA Input'!J3359=\"\",\"\",IF(OR('TSA Input'!J3359=\"Yes\",'TSA Input'!J3359=\"Contingent\"),'TSA Input'!B3359,\"Ineligible\"))","v":""},{"$f":"IF('TSA Input'!J3359=\"\",\"\",IF(OR('TSA Input'!J3359=\"Yes\",'TSA Input'!J3359=\"Contingent\"),'TSA Input'!I3359,\"\"))","v":""},{"$f":"IF('TSA Input'!J3359=\"\",\"\",IF(OR('TSA Input'!J3359=\"Yes\",'TSA Input'!J3359=\"Contingent\"),'TSA Input'!C3359,\"\"))","v":""},{"$f":"IF('TSA Input'!J3359=\"\",\"\",IF(OR('TSA Input'!J3359=\"Yes\",'TSA Input'!J3359=\"Contingent\"),'TSA Input'!D3359,\"\"))","v":""},{"$f":"IF('TSA Input'!J3359=\"\",\"\",IF(OR('TSA Input'!J3359=\"Yes\",'TSA Input'!J3359=\"Contingent\"),'TSA Input'!G3359,\"\"))","v":""},{"$f":"IF('TSA Input'!J3359=\"\",\"\",IF(OR('TSA Input'!J3359=\"Yes\",'TSA Input'!J3359=\"Contingent\"),'TSA Input'!F3359,\"\"))","v":""},"",{"$f":"IF('TSA Input'!J3359=\"\",\"\",IF(OR('TSA Input'!J3359=\"Yes\",'TSA Input'!J3359=\"Contingent\"),'TSA Input'!D3359,\"\"))","v":""},{"$f":"IF('TSA Input'!J3359=\"\",\"\",IF(OR('TSA Input'!J3359=\"Yes\",'TSA Input'!J3359=\"Contingent\"),'TSA Input'!G3359,\"\"))","v":""},{"$f":"IF('TSA Input'!J3359=\"\",\"\",IF(OR('TSA Input'!J3359=\"Yes\",'TSA Input'!J3359=\"Contingent\"),'TSA Input'!F3359,\"\"))","v":""},"","Required","Required"]
["",null,{"$f":"IF('TSA Input'!J3360=\"\",\"\",IF(OR('TSA Input'!J3360=\"Yes\",'TSA Input'!J3360=\"Contingent\"),'TSA Input'!B3360,\"Ineligible\"))","v":""},{"$f":"IF('TSA Input'!J3360=\"\",\"\",IF(OR('TSA Input'!J3360=\"Yes\",'TSA Input'!J3360=\"Contingent\"),'TSA Input'!I3360,\"\"))","v":""},{"$f":"IF('TSA Input'!J3360=\"\",\"\",IF(OR('TSA Input'!J3360=\"Yes\",'TSA Input'!J3360=\"Contingent\"),'TSA Input'!C3360,\"\"))","v":""},{"$f":"IF('TSA Input'!J3360=\"\",\"\",IF(OR('TSA Input'!J3360=\"Yes\",'TSA Input'!J3360=\"Contingent\"),'TSA Input'!D3360,\"\"))","v":""},{"$f":"IF('TSA Input'!J3360=\"\",\"\",IF(OR('TSA Input'!J3360=\"Yes\",'TSA Input'!J3360=\"Contingent\"),'TSA Input'!G3360,\"\"))","v":""},{"$f":"IF('TSA Input'!J3360=\"\",\"\",IF(OR('TSA Input'!J3360=\"Yes\",'TSA Input'!J3360=\"Contingent\"),'TSA Input'!F3360,\"\"))","v":""},"",{"$f":"IF('TSA Input'!J3360=\"\",\"\",IF(OR('TSA Input'!J3360=\"Yes\",'TSA Input'!J3360=\"Contingent\"),'TSA Input'!D3360,\"\"))","v":""},{"$f":"IF('TSA Input'!J3360=\"\",\"\",IF(OR('TSA Input'!J3360=\"Yes\",'TSA Input'!J3360=\"Contingent\"),'TSA Input'!G3360,\"\"))","v":""},{"$f":"IF('TSA Input'!J3360=\"\",\"\",IF(OR('TSA Input'!J3360=\"Yes\",'TSA Input'!J3360=\"Contingent\"),'TSA Input'!F3360,\"\"))","v":""},"","Required","Required"]
["",null,{"$f":"IF('TSA Input'!J3361=\"\",\"\",IF(OR('TSA Input'!J3361=\"Yes\",'TSA Input'!J3361=\"Contingent\"),'TSA Input'!B3361,\"Ineligible\"))","v":""},{"$f":"IF('TSA Input'!J3361=\"\",\"\",IF(OR('TSA Input'!J3361=\"Yes\",'TSA Input'!J3361=\"Contingent\"),'TSA Input'!I3361,\"\"))","v":""},{"$f":"IF('TSA Input'!J3361=\"\",\"\",IF(OR('TSA Input'!J3361=\"Yes\",'TSA Input'!J3361=\"Contingent\"),'TSA Input'!C3361,\"\"))","v":""},{"$f":"IF('TSA Input'!J3361=\"\",\"\",IF(OR('TSA Input'!J3361=\"Yes\",'TSA Input'!J3361=\"Contingent\"),'TSA Input'!D3361,\"\"))","v":""},{"$f":"IF('TSA Input'!J3361=\"\",\"\",IF(OR('TSA Input'!J3361=\"Yes\",'TSA Input'!J3361=\"Contingent\"),'TSA Input'!G3361,\"\"))","v":""},{"$f":"IF('TSA Input'!J3361=\"\",\"\",IF(OR('TSA Input'!J3361=\"Yes\",'TSA Input'!J3361=\"Contingent\"),'TSA Input'!F3361,\"\"))","v":""},"",{"$f":"IF('TSA Input'!J3361=\"\",\"\",IF(OR('TSA Input'!J3361=\"Yes\",'TSA Input'!J3361=\"Contingent\"),'TSA Input'!D3361,\"\"))","v":""},{"$f":"IF('TSA Input'!J3361=\"\",\"\",IF(OR('TSA Input'!J3361=\"Yes\",'TSA Input'!J3361=\"Contingent\"),'TSA Input'!G3361,\"\"))","v":""},{"$f":"IF('TSA Input'!J3361=\"\",\"\",IF(OR('TSA Input'!J3361=\"Yes\",'TSA Input'!J3361=\"Contingent\"),'TSA Input'!F3361,\"\"))","v":""},"","Required","Required"]
["",null,{"$f":"IF('TSA Input'!J3362=\"\",\"\",IF(OR('TSA Input'!J3362=\"Yes\",'TSA Input'!J3362=\"Contingent\"),'TSA Input'!B3362,\"Ineligible\"))","v":""},{"$f":"IF('TSA Input'!J3362=\"\",\"\",IF(OR('TSA Input'!J3362=\"Yes\",'TSA Input'!J3362=\"Contingent\"),'TSA Input'!I3362,\"\"))","v":""},{"$f":"IF('TSA Input'!J3362=\"\",\"\",IF(OR('TSA Input'!J3362=\"Yes\",'TSA Input'!J3362=\"Contingent\"),'TSA Input'!C3362,\"\"))","v":""},{"$f":"IF('TSA Input'!J3362=\"\",\"\",IF(OR('TSA Input'!J3362=\"Yes\",'TSA Input'!J3362=\"Contingent\"),'TSA Input'!D3362,\"\"))","v":""},{"$f":"IF('TSA Input'!J3362=\"\",\"\",IF(OR('TSA Input'!J3362=\"Yes\",'TSA Input'!J3362=\"Contingent\"),'TSA Input'!G3362,\"\"))","v":""},{"$f":"IF('TSA Input'!J3362=\"\",\"\",IF(OR('TSA Input'!J3362=\"Yes\",'TSA Input'!J3362=\"Contingent\"),'TSA Input'!F3362,\"\"))","v":""},"",{"$f":"IF('TSA Input'!J3362=\"\",\"\",IF(OR('TSA Input'!J3362=\"Yes\",'TSA Input'!J3362=\"Contingent\"),'TSA Input'!D3362,\"\"))","v":""},{"$f":"IF('TSA Input'!J3362=\"\",\"\",IF(OR('TSA Input'!J3362=\"Yes\",'TSA Input'!J3362=\"Contingent\"),'TSA Input'!G3362,\"\"))","v":""},{"$f":"IF('TSA Input'!J3362=\"\",\"\",IF(OR('TSA Input'!J3362=\"Yes\",'TSA Input'!J3362=\"Contingent\"),'TSA Input'!F3362,\"\"))","v":""},"","Required","Required"]
["",null,{"$f":"IF('TSA Input'!J3363=\"\",\"\",IF(OR('TSA Input'!J3363=\"Yes\",'TSA Input'!J3363=\"Contingent\"),'TSA Input'!B3363,\"Ineligible\"))","v":""},{"$f":"IF('TSA Input'!J3363=\"\",\"\",IF(OR('TSA Input'!J3363=\"Yes\",'TSA Input'!J3363=\"Contingent\"),'TSA Input'!I3363,\"\"))","v":""},{"$f":"IF('TSA Input'!J3363=\"\",\"\",IF(OR('TSA Input'!J3363=\"Yes\",'TSA Input'!J3363=\"Contingent\"),'TSA Input'!C3363,\"\"))","v":""},{"$f":"IF('TSA Input'!J3363=\"\",\"\",IF(OR('TSA Input'!J3363=\"Yes\",'TSA Input'!J3363=\"Contingent\"),'TSA Input'!D3363,\"\"))","v":""},{"$f":"IF('TSA Input'!J3363=\"\",\"\",IF(OR('TSA Input'!J3363=\"Yes\",'TSA Input'!J3363=\"Contingent\"),'TSA Input'!G3363,\"\"))","v":""},{"$f":"IF('TSA Input'!J3363=\"\",\"\",IF(OR('TSA Input'!J3363=\"Yes\",'TSA Input'!J3363=\"Contingent\"),'TSA Input'!F3363,\"\"))","v":""},"",{"$f":"IF('TSA Input'!J3363=\"\",\"\",IF(OR('TSA Input'!J3363=\"Yes\",'TSA Input'!J3363=\"Contingent\"),'TSA Input'!D3363,\"\"))","v":""},{"$f":"IF('TSA Input'!J3363=\"\",\"\",IF(OR('TSA Input'!J3363=\"Yes\",'TSA Input'!J3363=\"Contingent\"),'TSA Input'!G3363,\"\"))","v":""},{"$f":"IF('TSA Input'!J3363=\"\",\"\",IF(OR('TSA Input'!J3363=\"Yes\",'TSA Input'!J3363=\"Contingent\"),'TSA Input'!F3363,\"\"))","v":""},"","Required","Required"]
["",null,{"$f":"IF('TSA Input'!J3364=\"\",\"\",IF(OR('TSA Input'!J3364=\"Yes\",'TSA Input'!J3364=\"Contingent\"),'TSA Input'!B3364,\"Ineligible\"))","v":""},{"$f":"IF('TSA Input'!J3364=\"\",\"\",IF(OR('TSA Input'!J3364=\"Yes\",'TSA Input'!J3364=\"Contingent\"),'TSA Input'!I3364,\"\"))","v":""},{"$f":"IF('TSA Input'!J3364=\"\",\"\",IF(OR('TSA Input'!J3364=\"Yes\",'TSA Input'!J3364=\"Contingent\"),'TSA Input'!C3364,\"\"))","v":""},{"$f":"IF('TSA Input'!J3364=\"\",\"\",IF(OR('TSA Input'!J3364=\"Yes\",'TSA Input'!J3364=\"Contingent\"),'TSA Input'!D3364,\"\"))","v":""},{"$f":"IF('TSA Input'!J3364=\"\",\"\",IF(OR('TSA Input'!J3364=\"Yes\",'TSA Input'!J3364=\"Contingent\"),'TSA Input'!G3364,\"\"))","v":""},{"$f":"IF('TSA Input'!J3364=\"\",\"\",IF(OR('TSA Input'!J3364=\"Yes\",'TSA Input'!J3364=\"Contingent\"),'TSA Input'!F3364,\"\"))","v":""},"",{"$f":"IF('TSA Input'!J3364=\"\",\"\",IF(OR('TSA Input'!J3364=\"Yes\",'TSA Input'!J3364=\"Contingent\"),'TSA Input'!D3364,\"\"))","v":""},{"$f":"IF('TSA Input'!J3364=\"\",\"\",IF(OR('TSA Input'!J3364=\"Yes\",'TSA Input'!J3364=\"Contingent\"),'TSA Input'!G3364,\"\"))","v":""},{"$f":"IF('TSA Input'!J3364=\"\",\"\",IF(OR('TSA Input'!J3364=\"Yes\",'TSA Input'!J3364=\"Contingent\"),'TSA Input'!F3364,\"\"))","v":""},"","Required","Required"]
["",null,{"$f":"IF('TSA Input'!J3365=\"\",\"\",IF(OR('TSA Input'!J3365=\"Yes\",'TSA Input'!J3365=\"Contingent\"),'TSA Input'!B3365,\"Ineligible\"))","v":""},{"$f":"IF('TSA Input'!J3365=\"\",\"\",IF(OR('TSA Input'!J3365=\"Yes\",'TSA Input'!J3365=\"Contingent\"),'TSA Input'!I3365,\"\"))","v":""},{"$f":"IF('TSA Input'!J3365=\"\",\"\",IF(OR('TSA Input'!J3365=\"Yes\",'TSA Input'!J3365=\"Contingent\"),'TSA Input'!C3365,\"\"))","v":""},{"$f":"IF('TSA Input'!J3365=\"\",\"\",IF(OR('TSA Input'!J3365=\"Yes\",'TSA Input'!J3365=\"Contingent\"),'TSA Input'!D3365,\"\"))","v":""},{"$f":"IF('TSA Input'!J3365=\"\",\"\",IF(OR('TSA Input'!J3365=\"Yes\",'TSA Input'!J3365=\"Contingent\"),'TSA Input'!G3365,\"\"))","v":""},{"$f":"IF('TSA Input'!J3365=\"\",\"\",IF(OR('TSA Input'!J3365=\"Yes\",'TSA Input'!J3365=\"Contingent\"),'TSA Input'!F3365,\"\"))","v":""},"",{"$f":"IF('TSA Input'!J3365=\"\",\"\",IF(OR('TSA Input'!J3365=\"Yes\",'TSA Input'!J3365=\"Contingent\"),'TSA Input'!D3365,\"\"))","v":""},{"$f":"IF('TSA Input'!J3365=\"\",\"\",IF(OR('TSA Input'!J3365=\"Yes\",'TSA Input'!J3365=\"Contingent\"),'TSA Input'!G3365,\"\"))","v":""},{"$f":"IF('TSA Input'!J3365=\"\",\"\",IF(OR('TSA Input'!J3365=\"Yes\",'TSA Input'!J3365=\"Contingent\"),'TSA Input'!F3365,\"\"))","v":""},"","Required","Required"]
["",null,{"$f":"IF('TSA Input'!J3366=\"\",\"\",IF(OR('TSA Input'!J3366=\"Yes\",'TSA Input'!J3366=\"Contingent\"),'TSA Input'!B3366,\"Ineligible\"))","v":""},{"$f":"IF('TSA Input'!J3366=\"\",\"\",IF(OR('TSA Input'!J3366=\"Yes\",'TSA Input'!J3366=\"Contingent\"),'TSA Input'!I3366,\"\"))","v":""},{"$f":"IF('TSA Input'!J3366=\"\",\"\",IF(OR('TSA Input'!J3366=\"Yes\",'TSA Input'!J3366=\"Contingent\"),'TSA Input'!C3366,\"\"))","v":""},{"$f":"IF('TSA Input'!J3366=\"\",\"\",IF(OR('TSA Input'!J3366=\"Yes\",'TSA Input'!J3366=\"Contingent\"),'TSA Input'!D3366,\"\"))","v":""},{"$f":"IF('TSA Input'!J3366=\"\",\"\",IF(OR('TSA Input'!J3366=\"Yes\",'TSA Input'!J3366=\"Contingent\"),'TSA Input'!G3366,\"\"))","v":""},{"$f":"IF('TSA Input'!J3366=\"\",\"\",IF(OR('TSA Input'!J3366=\"Yes\",'TSA Input'!J3366=\"Contingent\"),'TSA Input'!F3366,\"\"))","v":""},"",{"$f":"IF('TSA Input'!J3366=\"\",\"\",IF(OR('TSA Input'!J3366=\"Yes\",'TSA Input'!J3366=\"Contingent\"),'TSA Input'!D3366,\"\"))","v":""},{"$f":"IF('TSA Input'!J3366=\"\",\"\",IF(OR('TSA Input'!J3366=\"Yes\",'TSA Input'!J3366=\"Contingent\"),'TSA Input'!G3366,\"\"))","v":""},{"$f":"IF('TSA Input'!J3366=\"\",\"\",IF(OR('TSA Input'!J3366=\"Yes\",'TSA Input'!J3366=\"Contingent\"),'TSA Input'!F3366,\"\"))","v":""},"","Required","Required"]
["",null,{"$f":"IF('TSA Input'!J3367=\"\",\"\",IF(OR('TSA Input'!J3367=\"Yes\",'TSA Input'!J3367=\"Contingent\"),'TSA Input'!B3367,\"Ineligible\"))","v":""},{"$f":"IF('TSA Input'!J3367=\"\",\"\",IF(OR('TSA Input'!J3367=\"Yes\",'TSA Input'!J3367=\"Contingent\"),'TSA Input'!I3367,\"\"))","v":""},{"$f":"IF('TSA Input'!J3367=\"\",\"\",IF(OR('TSA Input'!J3367=\"Yes\",'TSA Input'!J3367=\"Contingent\"),'TSA Input'!C3367,\"\"))","v":""},{"$f":"IF('TSA Input'!J3367=\"\",\"\",IF(OR('TSA Input'!J3367=\"Yes\",'TSA Input'!J3367=\"Contingent\"),'TSA Input'!D3367,\"\"))","v":""},{"$f":"IF('TSA Input'!J3367=\"\",\"\",IF(OR('TSA Input'!J3367=\"Yes\",'TSA Input'!J3367=\"Contingent\"),'TSA Input'!G3367,\"\"))","v":""},{"$f":"IF('TSA Input'!J3367=\"\",\"\",IF(OR('TSA Input'!J3367=\"Yes\",'TSA Input'!J3367=\"Contingent\"),'TSA Input'!F3367,\"\"))","v":""},"",{"$f":"IF('TSA Input'!J3367=\"\",\"\",IF(OR('TSA Input'!J3367=\"Yes\",'TSA Input'!J3367=\"Contingent\"),'TSA Input'!D3367,\"\"))","v":""},{"$f":"IF('TSA Input'!J3367=\"\",\"\",IF(OR('TSA Input'!J3367=\"Yes\",'TSA Input'!J3367=\"Contingent\"),'TSA Input'!G3367,\"\"))","v":""},{"$f":"IF('TSA Input'!J3367=\"\",\"\",IF(OR('TSA Input'!J3367=\"Yes\",'TSA Input'!J3367=\"Contingent\"),'TSA Input'!F3367,\"\"))","v":""},"","Required","Required"]
["",null,{"$f":"IF('TSA Input'!J3368=\"\",\"\",IF(OR('TSA Input'!J3368=\"Yes\",'TSA Input'!J3368=\"Contingent\"),'TSA Input'!B3368,\"Ineligible\"))","v":""},{"$f":"IF('TSA Input'!J3368=\"\",\"\",IF(OR('TSA Input'!J3368=\"Yes\",'TSA Input'!J3368=\"Contingent\"),'TSA Input'!I3368,\"\"))","v":""},{"$f":"IF('TSA Input'!J3368=\"\",\"\",IF(OR('TSA Input'!J3368=\"Yes\",'TSA Input'!J3368=\"Contingent\"),'TSA Input'!C3368,\"\"))","v":""},{"$f":"IF('TSA Input'!J3368=\"\",\"\",IF(OR('TSA Input'!J3368=\"Yes\",'TSA Input'!J3368=\"Contingent\"),'TSA Input'!D3368,\"\"))","v":""},{"$f":"IF('TSA Input'!J3368=\"\",\"\",IF(OR('TSA Input'!J3368=\"Yes\",'TSA Input'!J3368=\"Contingent\"),'TSA Input'!G3368,\"\"))","v":""},{"$f":"IF('TSA Input'!J3368=\"\",\"\",IF(OR('TSA Input'!J3368=\"Yes\",'TSA Input'!J3368=\"Contingent\"),'TSA Input'!F3368,\"\"))","v":""},"",{"$f":"IF('TSA Input'!J3368=\"\",\"\",IF(OR('TSA Input'!J3368=\"Yes\",'TSA Input'!J3368=\"Contingent\"),'TSA Input'!D3368,\"\"))","v":""},{"$f":"IF('TSA Input'!J3368=\"\",\"\",IF(OR('TSA Input'!J3368=\"Yes\",'TSA Input'!J3368=\"Contingent\"),'TSA Input'!G3368,\"\"))","v":""},{"$f":"IF('TSA Input'!J3368=\"\",\"\",IF(OR('TSA Input'!J3368=\"Yes\",'TSA Input'!J3368=\"Contingent\"),'TSA Input'!F3368,\"\"))","v":""},"","Required","Required"]
["",null,{"$f":"IF('TSA Input'!J3369=\"\",\"\",IF(OR('TSA Input'!J3369=\"Yes\",'TSA Input'!J3369=\"Contingent\"),'TSA Input'!B3369,\"Ineligible\"))","v":""},{"$f":"IF('TSA Input'!J3369=\"\",\"\",IF(OR('TSA Input'!J3369=\"Yes\",'TSA Input'!J3369=\"Contingent\"),'TSA Input'!I3369,\"\"))","v":""},{"$f":"IF('TSA Input'!J3369=\"\",\"\",IF(OR('TSA Input'!J3369=\"Yes\",'TSA Input'!J3369=\"Contingent\"),'TSA Input'!C3369,\"\"))","v":""},{"$f":"IF('TSA Input'!J3369=\"\",\"\",IF(OR('TSA Input'!J3369=\"Yes\",'TSA Input'!J3369=\"Contingent\"),'TSA Input'!D3369,\"\"))","v":""},{"$f":"IF('TSA Input'!J3369=\"\",\"\",IF(OR('TSA Input'!J3369=\"Yes\",'TSA Input'!J3369=\"Contingent\"),'TSA Input'!G3369,\"\"))","v":""},{"$f":"IF('TSA Input'!J3369=\"\",\"\",IF(OR('TSA Input'!J3369=\"Yes\",'TSA Input'!J3369=\"Contingent\"),'TSA Input'!F3369,\"\"))","v":""},"",{"$f":"IF('TSA Input'!J3369=\"\",\"\",IF(OR('TSA Input'!J3369=\"Yes\",'TSA Input'!J3369=\"Contingent\"),'TSA Input'!D3369,\"\"))","v":""},{"$f":"IF('TSA Input'!J3369=\"\",\"\",IF(OR('TSA Input'!J3369=\"Yes\",'TSA Input'!J3369=\"Contingent\"),'TSA Input'!G3369,\"\"))","v":""},{"$f":"IF('TSA Input'!J3369=\"\",\"\",IF(OR('TSA Input'!J3369=\"Yes\",'TSA Input'!J3369=\"Contingent\"),'TSA Input'!F3369,\"\"))","v":""},"","Required","Required"]
["",null,{"$f":"IF('TSA Input'!J3370=\"\",\"\",IF(OR('TSA Input'!J3370=\"Yes\",'TSA Input'!J3370=\"Contingent\"),'TSA Input'!B3370,\"Ineligible\"))","v":""},{"$f":"IF('TSA Input'!J3370=\"\",\"\",IF(OR('TSA Input'!J3370=\"Yes\",'TSA Input'!J3370=\"Contingent\"),'TSA Input'!I3370,\"\"))","v":""},{"$f":"IF('TSA Input'!J3370=\"\",\"\",IF(OR('TSA Input'!J3370=\"Yes\",'TSA Input'!J3370=\"Contingent\"),'TSA Input'!C3370,\"\"))","v":""},{"$f":"IF('TSA Input'!J3370=\"\",\"\",IF(OR('TSA Input'!J3370=\"Yes\",'TSA Input'!J3370=\"Contingent\"),'TSA Input'!D3370,\"\"))","v":""},{"$f":"IF('TSA Input'!J3370=\"\",\"\",IF(OR('TSA Input'!J3370=\"Yes\",'TSA Input'!J3370=\"Contingent\"),'TSA Input'!G3370,\"\"))","v":""},{"$f":"IF('TSA Input'!J3370=\"\",\"\",IF(OR('TSA Input'!J3370=\"Yes\",'TSA Input'!J3370=\"Contingent\"),'TSA Input'!F3370,\"\"))","v":""},"",{"$f":"IF('TSA Input'!J3370=\"\",\"\",IF(OR('TSA Input'!J3370=\"Yes\",'TSA Input'!J3370=\"Contingent\"),'TSA Input'!D3370,\"\"))","v":""},{"$f":"IF('TSA Input'!J3370=\"\",\"\",IF(OR('TSA Input'!J3370=\"Yes\",'TSA Input'!J3370=\"Contingent\"),'TSA Input'!G3370,\"\"))","v":""},{"$f":"IF('TSA Input'!J3370=\"\",\"\",IF(OR('TSA Input'!J3370=\"Yes\",'TSA Input'!J3370=\"Contingent\"),'TSA Input'!F3370,\"\"))","v":""},"","Required","Required"]
["",null,{"$f":"IF('TSA Input'!J3371=\"\",\"\",IF(OR('TSA Input'!J3371=\"Yes\",'TSA Input'!J3371=\"Contingent\"),'TSA Input'!B3371,\"Ineligible\"))","v":""},{"$f":"IF('TSA Input'!J3371=\"\",\"\",IF(OR('TSA Input'!J3371=\"Yes\",'TSA Input'!J3371=\"Contingent\"),'TSA Input'!I3371,\"\"))","v":""},{"$f":"IF('TSA Input'!J3371=\"\",\"\",IF(OR('TSA Input'!J3371=\"Yes\",'TSA Input'!J3371=\"Contingent\"),'TSA Input'!C3371,\"\"))","v":""},{"$f":"IF('TSA Input'!J3371=\"\",\"\",IF(OR('TSA Input'!J3371=\"Yes\",'TSA Input'!J3371=\"Contingent\"),'TSA Input'!D3371,\"\"))","v":""},{"$f":"IF('TSA Input'!J3371=\"\",\"\",IF(OR('TSA Input'!J3371=\"Yes\",'TSA Input'!J3371=\"Contingent\"),'TSA Input'!G3371,\"\"))","v":""},{"$f":"IF('TSA Input'!J3371=\"\",\"\",IF(OR('TSA Input'!J3371=\"Yes\",'TSA Input'!J3371=\"Contingent\"),'TSA Input'!F3371,\"\"))","v":""},"",{"$f":"IF('TSA Input'!J3371=\"\",\"\",IF(OR('TSA Input'!J3371=\"Yes\",'TSA Input'!J3371=\"Contingent\"),'TSA Input'!D3371,\"\"))","v":""},{"$f":"IF('TSA Input'!J3371=\"\",\"\",IF(OR('TSA Input'!J3371=\"Yes\",'TSA Input'!J3371=\"Contingent\"),'TSA Input'!G3371,\"\"))","v":""},{"$f":"IF('TSA Input'!J3371=\"\",\"\",IF(OR('TSA Input'!J3371=\"Yes\",'TSA Input'!J3371=\"Contingent\"),'TSA Input'!F3371,\"\"))","v":""},"","Required","Required"]
["",null,{"$f":"IF('TSA Input'!J3372=\"\",\"\",IF(OR('TSA Input'!J3372=\"Yes\",'TSA Input'!J3372=\"Contingent\"),'TSA Input'!B3372,\"Ineligible\"))","v":""},{"$f":"IF('TSA Input'!J3372=\"\",\"\",IF(OR('TSA Input'!J3372=\"Yes\",'TSA Input'!J3372=\"Contingent\"),'TSA Input'!I3372,\"\"))","v":""},{"$f":"IF('TSA Input'!J3372=\"\",\"\",IF(OR('TSA Input'!J3372=\"Yes\",'TSA Input'!J3372=\"Contingent\"),'TSA Input'!C3372,\"\"))","v":""},{"$f":"IF('TSA Input'!J3372=\"\",\"\",IF(OR('TSA Input'!J3372=\"Yes\",'TSA Input'!J3372=\"Contingent\"),'TSA Input'!D3372,\"\"))","v":""},{"$f":"IF('TSA Input'!J3372=\"\",\"\",IF(OR('TSA Input'!J3372=\"Yes\",'TSA Input'!J3372=\"Contingent\"),'TSA Input'!G3372,\"\"))","v":""},{"$f":"IF('TSA Input'!J3372=\"\",\"\",IF(OR('TSA Input'!J3372=\"Yes\",'TSA Input'!J3372=\"Contingent\"),'TSA Input'!F3372,\"\"))","v":""},"",{"$f":"IF('TSA Input'!J3372=\"\",\"\",IF(OR('TSA Input'!J3372=\"Yes\",'TSA Input'!J3372=\"Contingent\"),'TSA Input'!D3372,\"\"))","v":""},{"$f":"IF('TSA Input'!J3372=\"\",\"\",IF(OR('TSA Input'!J3372=\"Yes\",'TSA Input'!J3372=\"Contingent\"),'TSA Input'!G3372,\"\"))","v":""},{"$f":"IF('TSA Input'!J3372=\"\",\"\",IF(OR('TSA Input'!J3372=\"Yes\",'TSA Input'!J3372=\"Contingent\"),'TSA Input'!F3372,\"\"))","v":""},"","Required","Required"]
["",null,{"$f":"IF('TSA Input'!J3373=\"\",\"\",IF(OR('TSA Input'!J3373=\"Yes\",'TSA Input'!J3373=\"Contingent\"),'TSA Input'!B3373,\"Ineligible\"))","v":""},{"$f":"IF('TSA Input'!J3373=\"\",\"\",IF(OR('TSA Input'!J3373=\"Yes\",'TSA Input'!J3373=\"Contingent\"),'TSA Input'!I3373,\"\"))","v":""},{"$f":"IF('TSA Input'!J3373=\"\",\"\",IF(OR('TSA Input'!J3373=\"Yes\",'TSA Input'!J3373=\"Contingent\"),'TSA Input'!C3373,\"\"))","v":""},{"$f":"IF('TSA Input'!J3373=\"\",\"\",IF(OR('TSA Input'!J3373=\"Yes\",'TSA Input'!J3373=\"Contingent\"),'TSA Input'!D3373,\"\"))","v":""},{"$f":"IF('TSA Input'!J3373=\"\",\"\",IF(OR('TSA Input'!J3373=\"Yes\",'TSA Input'!J3373=\"Contingent\"),'TSA Input'!G3373,\"\"))","v":""},{"$f":"IF('TSA Input'!J3373=\"\",\"\",IF(OR('TSA Input'!J3373=\"Yes\",'TSA Input'!J3373=\"Contingent\"),'TSA Input'!F3373,\"\"))","v":""},"",{"$f":"IF('TSA Input'!J3373=\"\",\"\",IF(OR('TSA Input'!J3373=\"Yes\",'TSA Input'!J3373=\"Contingent\"),'TSA Input'!D3373,\"\"))","v":""},{"$f":"IF('TSA Input'!J3373=\"\",\"\",IF(OR('TSA Input'!J3373=\"Yes\",'TSA Input'!J3373=\"Contingent\"),'TSA Input'!G3373,\"\"))","v":""},{"$f":"IF('TSA Input'!J3373=\"\",\"\",IF(OR('TSA Input'!J3373=\"Yes\",'TSA Input'!J3373=\"Contingent\"),'TSA Input'!F3373,\"\"))","v":""},"","Required","Required"]
["",null,{"$f":"IF('TSA Input'!J3374=\"\",\"\",IF(OR('TSA Input'!J3374=\"Yes\",'TSA Input'!J3374=\"Contingent\"),'TSA Input'!B3374,\"Ineligible\"))","v":""},{"$f":"IF('TSA Input'!J3374=\"\",\"\",IF(OR('TSA Input'!J3374=\"Yes\",'TSA Input'!J3374=\"Contingent\"),'TSA Input'!I3374,\"\"))","v":""},{"$f":"IF('TSA Input'!J3374=\"\",\"\",IF(OR('TSA Input'!J3374=\"Yes\",'TSA Input'!J3374=\"Contingent\"),'TSA Input'!C3374,\"\"))","v":""},{"$f":"IF('TSA Input'!J3374=\"\",\"\",IF(OR('TSA Input'!J3374=\"Yes\",'TSA Input'!J3374=\"Contingent\"),'TSA Input'!D3374,\"\"))","v":""},{"$f":"IF('TSA Input'!J3374=\"\",\"\",IF(OR('TSA Input'!J3374=\"Yes\",'TSA Input'!J3374=\"Contingent\"),'TSA Input'!G3374,\"\"))","v":""},{"$f":"IF('TSA Input'!J3374=\"\",\"\",IF(OR('TSA Input'!J3374=\"Yes\",'TSA Input'!J3374=\"Contingent\"),'TSA Input'!F3374,\"\"))","v":""},"",{"$f":"IF('TSA Input'!J3374=\"\",\"\",IF(OR('TSA Input'!J3374=\"Yes\",'TSA Input'!J3374=\"Contingent\"),'TSA Input'!D3374,\"\"))","v":""},{"$f":"IF('TSA Input'!J3374=\"\",\"\",IF(OR('TSA Input'!J3374=\"Yes\",'TSA Input'!J3374=\"Contingent\"),'TSA Input'!G3374,\"\"))","v":""},{"$f":"IF('TSA Input'!J3374=\"\",\"\",IF(OR('TSA Input'!J3374=\"Yes\",'TSA Input'!J3374=\"Contingent\"),'TSA Input'!F3374,\"\"))","v":""},"","Required","Required"]
["",null,{"$f":"IF('TSA Input'!J3375=\"\",\"\",IF(OR('TSA Input'!J3375=\"Yes\",'TSA Input'!J3375=\"Contingent\"),'TSA Input'!B3375,\"Ineligible\"))","v":""},{"$f":"IF('TSA Input'!J3375=\"\",\"\",IF(OR('TSA Input'!J3375=\"Yes\",'TSA Input'!J3375=\"Contingent\"),'TSA Input'!I3375,\"\"))","v":""},{"$f":"IF('TSA Input'!J3375=\"\",\"\",IF(OR('TSA Input'!J3375=\"Yes\",'TSA Input'!J3375=\"Contingent\"),'TSA Input'!C3375,\"\"))","v":""},{"$f":"IF('TSA Input'!J3375=\"\",\"\",IF(OR('TSA Input'!J3375=\"Yes\",'TSA Input'!J3375=\"Contingent\"),'TSA Input'!D3375,\"\"))","v":""},{"$f":"IF('TSA Input'!J3375=\"\",\"\",IF(OR('TSA Input'!J3375=\"Yes\",'TSA Input'!J3375=\"Contingent\"),'TSA Input'!G3375,\"\"))","v":""},{"$f":"IF('TSA Input'!J3375=\"\",\"\",IF(OR('TSA Input'!J3375=\"Yes\",'TSA Input'!J3375=\"Contingent\"),'TSA Input'!F3375,\"\"))","v":""},"",{"$f":"IF('TSA Input'!J3375=\"\",\"\",IF(OR('TSA Input'!J3375=\"Yes\",'TSA Input'!J3375=\"Contingent\"),'TSA Input'!D3375,\"\"))","v":""},{"$f":"IF('TSA Input'!J3375=\"\",\"\",IF(OR('TSA Input'!J3375=\"Yes\",'TSA Input'!J3375=\"Contingent\"),'TSA Input'!G3375,\"\"))","v":""},{"$f":"IF('TSA Input'!J3375=\"\",\"\",IF(OR('TSA Input'!J3375=\"Yes\",'TSA Input'!J3375=\"Contingent\"),'TSA Input'!F3375,\"\"))","v":""},"","Required","Required"]
["",null,{"$f":"IF('TSA Input'!J3376=\"\",\"\",IF(OR('TSA Input'!J3376=\"Yes\",'TSA Input'!J3376=\"Contingent\"),'TSA Input'!B3376,\"Ineligible\"))","v":""},{"$f":"IF('TSA Input'!J3376=\"\",\"\",IF(OR('TSA Input'!J3376=\"Yes\",'TSA Input'!J3376=\"Contingent\"),'TSA Input'!I3376,\"\"))","v":""},{"$f":"IF('TSA Input'!J3376=\"\",\"\",IF(OR('TSA Input'!J3376=\"Yes\",'TSA Input'!J3376=\"Contingent\"),'TSA Input'!C3376,\"\"))","v":""},{"$f":"IF('TSA Input'!J3376=\"\",\"\",IF(OR('TSA Input'!J3376=\"Yes\",'TSA Input'!J3376=\"Contingent\"),'TSA Input'!D3376,\"\"))","v":""},{"$f":"IF('TSA Input'!J3376=\"\",\"\",IF(OR('TSA Input'!J3376=\"Yes\",'TSA Input'!J3376=\"Contingent\"),'TSA Input'!G3376,\"\"))","v":""},{"$f":"IF('TSA Input'!J3376=\"\",\"\",IF(OR('TSA Input'!J3376=\"Yes\",'TSA Input'!J3376=\"Contingent\"),'TSA Input'!F3376,\"\"))","v":""},"",{"$f":"IF('TSA Input'!J3376=\"\",\"\",IF(OR('TSA Input'!J3376=\"Yes\",'TSA Input'!J3376=\"Contingent\"),'TSA Input'!D3376,\"\"))","v":""},{"$f":"IF('TSA Input'!J3376=\"\",\"\",IF(OR('TSA Input'!J3376=\"Yes\",'TSA Input'!J3376=\"Contingent\"),'TSA Input'!G3376,\"\"))","v":""},{"$f":"IF('TSA Input'!J3376=\"\",\"\",IF(OR('TSA Input'!J3376=\"Yes\",'TSA Input'!J3376=\"Contingent\"),'TSA Input'!F3376,\"\"))","v":""},"","Required","Required"]
["",null,{"$f":"IF('TSA Input'!J3377=\"\",\"\",IF(OR('TSA Input'!J3377=\"Yes\",'TSA Input'!J3377=\"Contingent\"),'TSA Input'!B3377,\"Ineligible\"))","v":""},{"$f":"IF('TSA Input'!J3377=\"\",\"\",IF(OR('TSA Input'!J3377=\"Yes\",'TSA Input'!J3377=\"Contingent\"),'TSA Input'!I3377,\"\"))","v":""},{"$f":"IF('TSA Input'!J3377=\"\",\"\",IF(OR('TSA Input'!J3377=\"Yes\",'TSA Input'!J3377=\"Contingent\"),'TSA Input'!C3377,\"\"))","v":""},{"$f":"IF('TSA Input'!J3377=\"\",\"\",IF(OR('TSA Input'!J3377=\"Yes\",'TSA Input'!J3377=\"Contingent\"),'TSA Input'!D3377,\"\"))","v":""},{"$f":"IF('TSA Input'!J3377=\"\",\"\",IF(OR('TSA Input'!J3377=\"Yes\",'TSA Input'!J3377=\"Contingent\"),'TSA Input'!G3377,\"\"))","v":""},{"$f":"IF('TSA Input'!J3377=\"\",\"\",IF(OR('TSA Input'!J3377=\"Yes\",'TSA Input'!J3377=\"Contingent\"),'TSA Input'!F3377,\"\"))","v":""},"",{"$f":"IF('TSA Input'!J3377=\"\",\"\",IF(OR('TSA Input'!J3377=\"Yes\",'TSA Input'!J3377=\"Contingent\"),'TSA Input'!D3377,\"\"))","v":""},{"$f":"IF('TSA Input'!J3377=\"\",\"\",IF(OR('TSA Input'!J3377=\"Yes\",'TSA Input'!J3377=\"Contingent\"),'TSA Input'!G3377,\"\"))","v":""},{"$f":"IF('TSA Input'!J3377=\"\",\"\",IF(OR('TSA Input'!J3377=\"Yes\",'TSA Input'!J3377=\"Contingent\"),'TSA Input'!F3377,\"\"))","v":""},"","Required","Required"]
["",null,{"$f":"IF('TSA Input'!J3378=\"\",\"\",IF(OR('TSA Input'!J3378=\"Yes\",'TSA Input'!J3378=\"Contingent\"),'TSA Input'!B3378,\"Ineligible\"))","v":""},{"$f":"IF('TSA Input'!J3378=\"\",\"\",IF(OR('TSA Input'!J3378=\"Yes\",'TSA Input'!J3378=\"Contingent\"),'TSA Input'!I3378,\"\"))","v":""},{"$f":"IF('TSA Input'!J3378=\"\",\"\",IF(OR('TSA Input'!J3378=\"Yes\",'TSA Input'!J3378=\"Contingent\"),'TSA Input'!C3378,\"\"))","v":""},{"$f":"IF('TSA Input'!J3378=\"\",\"\",IF(OR('TSA Input'!J3378=\"Yes\",'TSA Input'!J3378=\"Contingent\"),'TSA Input'!D3378,\"\"))","v":""},{"$f":"IF('TSA Input'!J3378=\"\",\"\",IF(OR('TSA Input'!J3378=\"Yes\",'TSA Input'!J3378=\"Contingent\"),'TSA Input'!G3378,\"\"))","v":""},{"$f":"IF('TSA Input'!J3378=\"\",\"\",IF(OR('TSA Input'!J3378=\"Yes\",'TSA Input'!J3378=\"Contingent\"),'TSA Input'!F3378,\"\"))","v":""},"",{"$f":"IF('TSA Input'!J3378=\"\",\"\",IF(OR('TSA Input'!J3378=\"Yes\",'TSA Input'!J3378=\"Contingent\"),'TSA Input'!D3378,\"\"))","v":""},{"$f":"IF('TSA Input'!J3378=\"\",\"\",IF(OR('TSA Input'!J3378=\"Yes\",'TSA Input'!J3378=\"Contingent\"),'TSA Input'!G3378,\"\"))","v":""},{"$f":"IF('TSA Input'!J3378=\"\",\"\",IF(OR('TSA Input'!J3378=\"Yes\",'TSA Input'!J3378=\"Contingent\"),'TSA Input'!F3378,\"\"))","v":""},"","Required","Required"]
["",null,{"$f":"IF('TSA Input'!J3379=\"\",\"\",IF(OR('TSA Input'!J3379=\"Yes\",'TSA Input'!J3379=\"Contingent\"),'TSA Input'!B3379,\"Ineligible\"))","v":""},{"$f":"IF('TSA Input'!J3379=\"\",\"\",IF(OR('TSA Input'!J3379=\"Yes\",'TSA Input'!J3379=\"Contingent\"),'TSA Input'!I3379,\"\"))","v":""},{"$f":"IF('TSA Input'!J3379=\"\",\"\",IF(OR('TSA Input'!J3379=\"Yes\",'TSA Input'!J3379=\"Contingent\"),'TSA Input'!C3379,\"\"))","v":""},{"$f":"IF('TSA Input'!J3379=\"\",\"\",IF(OR('TSA Input'!J3379=\"Yes\",'TSA Input'!J3379=\"Contingent\"),'TSA Input'!D3379,\"\"))","v":""},{"$f":"IF('TSA Input'!J3379=\"\",\"\",IF(OR('TSA Input'!J3379=\"Yes\",'TSA Input'!J3379=\"Contingent\"),'TSA Input'!G3379,\"\"))","v":""},{"$f":"IF('TSA Input'!J3379=\"\",\"\",IF(OR('TSA Input'!J3379=\"Yes\",'TSA Input'!J3379=\"Contingent\"),'TSA Input'!F3379,\"\"))","v":""},"",{"$f":"IF('TSA Input'!J3379=\"\",\"\",IF(OR('TSA Input'!J3379=\"Yes\",'TSA Input'!J3379=\"Contingent\"),'TSA Input'!D3379,\"\"))","v":""},{"$f":"IF('TSA Input'!J3379=\"\",\"\",IF(OR('TSA Input'!J3379=\"Yes\",'TSA Input'!J3379=\"Contingent\"),'TSA Input'!G3379,\"\"))","v":""},{"$f":"IF('TSA Input'!J3379=\"\",\"\",IF(OR('TSA Input'!J3379=\"Yes\",'TSA Input'!J3379=\"Contingent\"),'TSA Input'!F3379,\"\"))","v":""},"","Required","Required"]
["",null,{"$f":"IF('TSA Input'!J3380=\"\",\"\",IF(OR('TSA Input'!J3380=\"Yes\",'TSA Input'!J3380=\"Contingent\"),'TSA Input'!B3380,\"Ineligible\"))","v":""},{"$f":"IF('TSA Input'!J3380=\"\",\"\",IF(OR('TSA Input'!J3380=\"Yes\",'TSA Input'!J3380=\"Contingent\"),'TSA Input'!I3380,\"\"))","v":""},{"$f":"IF('TSA Input'!J3380=\"\",\"\",IF(OR('TSA Input'!J3380=\"Yes\",'TSA Input'!J3380=\"Contingent\"),'TSA Input'!C3380,\"\"))","v":""},{"$f":"IF('TSA Input'!J3380=\"\",\"\",IF(OR('TSA Input'!J3380=\"Yes\",'TSA Input'!J3380=\"Contingent\"),'TSA Input'!D3380,\"\"))","v":""},{"$f":"IF('TSA Input'!J3380=\"\",\"\",IF(OR('TSA Input'!J3380=\"Yes\",'TSA Input'!J3380=\"Contingent\"),'TSA Input'!G3380,\"\"))","v":""},{"$f":"IF('TSA Input'!J3380=\"\",\"\",IF(OR('TSA Input'!J3380=\"Yes\",'TSA Input'!J3380=\"Contingent\"),'TSA Input'!F3380,\"\"))","v":""},"",{"$f":"IF('TSA Input'!J3380=\"\",\"\",IF(OR('TSA Input'!J3380=\"Yes\",'TSA Input'!J3380=\"Contingent\"),'TSA Input'!D3380,\"\"))","v":""},{"$f":"IF('TSA Input'!J3380=\"\",\"\",IF(OR('TSA Input'!J3380=\"Yes\",'TSA Input'!J3380=\"Contingent\"),'TSA Input'!G3380,\"\"))","v":""},{"$f":"IF('TSA Input'!J3380=\"\",\"\",IF(OR('TSA Input'!J3380=\"Yes\",'TSA Input'!J3380=\"Contingent\"),'TSA Input'!F3380,\"\"))","v":""},"","Required","Required"]
["",null,{"$f":"IF('TSA Input'!J3381=\"\",\"\",IF(OR('TSA Input'!J3381=\"Yes\",'TSA Input'!J3381=\"Contingent\"),'TSA Input'!B3381,\"Ineligible\"))","v":""},{"$f":"IF('TSA Input'!J3381=\"\",\"\",IF(OR('TSA Input'!J3381=\"Yes\",'TSA Input'!J3381=\"Contingent\"),'TSA Input'!I3381,\"\"))","v":""},{"$f":"IF('TSA Input'!J3381=\"\",\"\",IF(OR('TSA Input'!J3381=\"Yes\",'TSA Input'!J3381=\"Contingent\"),'TSA Input'!C3381,\"\"))","v":""},{"$f":"IF('TSA Input'!J3381=\"\",\"\",IF(OR('TSA Input'!J3381=\"Yes\",'TSA Input'!J3381=\"Contingent\"),'TSA Input'!D3381,\"\"))","v":""},{"$f":"IF('TSA Input'!J3381=\"\",\"\",IF(OR('TSA Input'!J3381=\"Yes\",'TSA Input'!J3381=\"Contingent\"),'TSA Input'!G3381,\"\"))","v":""},{"$f":"IF('TSA Input'!J3381=\"\",\"\",IF(OR('TSA Input'!J3381=\"Yes\",'TSA Input'!J3381=\"Contingent\"),'TSA Input'!F3381,\"\"))","v":""},"",{"$f":"IF('TSA Input'!J3381=\"\",\"\",IF(OR('TSA Input'!J3381=\"Yes\",'TSA Input'!J3381=\"Contingent\"),'TSA Input'!D3381,\"\"))","v":""},{"$f":"IF('TSA Input'!J3381=\"\",\"\",IF(OR('TSA Input'!J3381=\"Yes\",'TSA Input'!J3381=\"Contingent\"),'TSA Input'!G3381,\"\"))","v":""},{"$f":"IF('TSA Input'!J3381=\"\",\"\",IF(OR('TSA Input'!J3381=\"Yes\",'TSA Input'!J3381=\"Contingent\"),'TSA Input'!F3381,\"\"))","v":""},"","Required","Required"]
["",null,{"$f":"IF('TSA Input'!J3382=\"\",\"\",IF(OR('TSA Input'!J3382=\"Yes\",'TSA Input'!J3382=\"Contingent\"),'TSA Input'!B3382,\"Ineligible\"))","v":""},{"$f":"IF('TSA Input'!J3382=\"\",\"\",IF(OR('TSA Input'!J3382=\"Yes\",'TSA Input'!J3382=\"Contingent\"),'TSA Input'!I3382,\"\"))","v":""},{"$f":"IF('TSA Input'!J3382=\"\",\"\",IF(OR('TSA Input'!J3382=\"Yes\",'TSA Input'!J3382=\"Contingent\"),'TSA Input'!C3382,\"\"))","v":""},{"$f":"IF('TSA Input'!J3382=\"\",\"\",IF(OR('TSA Input'!J3382=\"Yes\",'TSA Input'!J3382=\"Contingent\"),'TSA Input'!D3382,\"\"))","v":""},{"$f":"IF('TSA Input'!J3382=\"\",\"\",IF(OR('TSA Input'!J3382=\"Yes\",'TSA Input'!J3382=\"Contingent\"),'TSA Input'!G3382,\"\"))","v":""},{"$f":"IF('TSA Input'!J3382=\"\",\"\",IF(OR('TSA Input'!J3382=\"Yes\",'TSA Input'!J3382=\"Contingent\"),'TSA Input'!F3382,\"\"))","v":""},"",{"$f":"IF('TSA Input'!J3382=\"\",\"\",IF(OR('TSA Input'!J3382=\"Yes\",'TSA Input'!J3382=\"Contingent\"),'TSA Input'!D3382,\"\"))","v":""},{"$f":"IF('TSA Input'!J3382=\"\",\"\",IF(OR('TSA Input'!J3382=\"Yes\",'TSA Input'!J3382=\"Contingent\"),'TSA Input'!G3382,\"\"))","v":""},{"$f":"IF('TSA Input'!J3382=\"\",\"\",IF(OR('TSA Input'!J3382=\"Yes\",'TSA Input'!J3382=\"Contingent\"),'TSA Input'!F3382,\"\"))","v":""},"","Required","Required"]
["",null,{"$f":"IF('TSA Input'!J3383=\"\",\"\",IF(OR('TSA Input'!J3383=\"Yes\",'TSA Input'!J3383=\"Contingent\"),'TSA Input'!B3383,\"Ineligible\"))","v":""},{"$f":"IF('TSA Input'!J3383=\"\",\"\",IF(OR('TSA Input'!J3383=\"Yes\",'TSA Input'!J3383=\"Contingent\"),'TSA Input'!I3383,\"\"))","v":""},{"$f":"IF('TSA Input'!J3383=\"\",\"\",IF(OR('TSA Input'!J3383=\"Yes\",'TSA Input'!J3383=\"Contingent\"),'TSA Input'!C3383,\"\"))","v":""},{"$f":"IF('TSA Input'!J3383=\"\",\"\",IF(OR('TSA Input'!J3383=\"Yes\",'TSA Input'!J3383=\"Contingent\"),'TSA Input'!D3383,\"\"))","v":""},{"$f":"IF('TSA Input'!J3383=\"\",\"\",IF(OR('TSA Input'!J3383=\"Yes\",'TSA Input'!J3383=\"Contingent\"),'TSA Input'!G3383,\"\"))","v":""},{"$f":"IF('TSA Input'!J3383=\"\",\"\",IF(OR('TSA Input'!J3383=\"Yes\",'TSA Input'!J3383=\"Contingent\"),'TSA Input'!F3383,\"\"))","v":""},"",{"$f":"IF('TSA Input'!J3383=\"\",\"\",IF(OR('TSA Input'!J3383=\"Yes\",'TSA Input'!J3383=\"Contingent\"),'TSA Input'!D3383,\"\"))","v":""},{"$f":"IF('TSA Input'!J3383=\"\",\"\",IF(OR('TSA Input'!J3383=\"Yes\",'TSA Input'!J3383=\"Contingent\"),'TSA Input'!G3383,\"\"))","v":""},{"$f":"IF('TSA Input'!J3383=\"\",\"\",IF(OR('TSA Input'!J3383=\"Yes\",'TSA Input'!J3383=\"Contingent\"),'TSA Input'!F3383,\"\"))","v":""},"","Required","Required"]
["",null,{"$f":"IF('TSA Input'!J3384=\"\",\"\",IF(OR('TSA Input'!J3384=\"Yes\",'TSA Input'!J3384=\"Contingent\"),'TSA Input'!B3384,\"Ineligible\"))","v":""},{"$f":"IF('TSA Input'!J3384=\"\",\"\",IF(OR('TSA Input'!J3384=\"Yes\",'TSA Input'!J3384=\"Contingent\"),'TSA Input'!I3384,\"\"))","v":""},{"$f":"IF('TSA Input'!J3384=\"\",\"\",IF(OR('TSA Input'!J3384=\"Yes\",'TSA Input'!J3384=\"Contingent\"),'TSA Input'!C3384,\"\"))","v":""},{"$f":"IF('TSA Input'!J3384=\"\",\"\",IF(OR('TSA Input'!J3384=\"Yes\",'TSA Input'!J3384=\"Contingent\"),'TSA Input'!D3384,\"\"))","v":""},{"$f":"IF('TSA Input'!J3384=\"\",\"\",IF(OR('TSA Input'!J3384=\"Yes\",'TSA Input'!J3384=\"Contingent\"),'TSA Input'!G3384,\"\"))","v":""},{"$f":"IF('TSA Input'!J3384=\"\",\"\",IF(OR('TSA Input'!J3384=\"Yes\",'TSA Input'!J3384=\"Contingent\"),'TSA Input'!F3384,\"\"))","v":""},"",{"$f":"IF('TSA Input'!J3384=\"\",\"\",IF(OR('TSA Input'!J3384=\"Yes\",'TSA Input'!J3384=\"Contingent\"),'TSA Input'!D3384,\"\"))","v":""},{"$f":"IF('TSA Input'!J3384=\"\",\"\",IF(OR('TSA Input'!J3384=\"Yes\",'TSA Input'!J3384=\"Contingent\"),'TSA Input'!G3384,\"\"))","v":""},{"$f":"IF('TSA Input'!J3384=\"\",\"\",IF(OR('TSA Input'!J3384=\"Yes\",'TSA Input'!J3384=\"Contingent\"),'TSA Input'!F3384,\"\"))","v":""},"","Required","Required"]
["",null,{"$f":"IF('TSA Input'!J3385=\"\",\"\",IF(OR('TSA Input'!J3385=\"Yes\",'TSA Input'!J3385=\"Contingent\"),'TSA Input'!B3385,\"Ineligible\"))","v":""},{"$f":"IF('TSA Input'!J3385=\"\",\"\",IF(OR('TSA Input'!J3385=\"Yes\",'TSA Input'!J3385=\"Contingent\"),'TSA Input'!I3385,\"\"))","v":""},{"$f":"IF('TSA Input'!J3385=\"\",\"\",IF(OR('TSA Input'!J3385=\"Yes\",'TSA Input'!J3385=\"Contingent\"),'TSA Input'!C3385,\"\"))","v":""},{"$f":"IF('TSA Input'!J3385=\"\",\"\",IF(OR('TSA Input'!J3385=\"Yes\",'TSA Input'!J3385=\"Contingent\"),'TSA Input'!D3385,\"\"))","v":""},{"$f":"IF('TSA Input'!J3385=\"\",\"\",IF(OR('TSA Input'!J3385=\"Yes\",'TSA Input'!J3385=\"Contingent\"),'TSA Input'!G3385,\"\"))","v":""},{"$f":"IF('TSA Input'!J3385=\"\",\"\",IF(OR('TSA Input'!J3385=\"Yes\",'TSA Input'!J3385=\"Contingent\"),'TSA Input'!F3385,\"\"))","v":""},"",{"$f":"IF('TSA Input'!J3385=\"\",\"\",IF(OR('TSA Input'!J3385=\"Yes\",'TSA Input'!J3385=\"Contingent\"),'TSA Input'!D3385,\"\"))","v":""},{"$f":"IF('TSA Input'!J3385=\"\",\"\",IF(OR('TSA Input'!J3385=\"Yes\",'TSA Input'!J3385=\"Contingent\"),'TSA Input'!G3385,\"\"))","v":""},{"$f":"IF('TSA Input'!J3385=\"\",\"\",IF(OR('TSA Input'!J3385=\"Yes\",'TSA Input'!J3385=\"Contingent\"),'TSA Input'!F3385,\"\"))","v":""},"","Required","Required"]
["",null,{"$f":"IF('TSA Input'!J3386=\"\",\"\",IF(OR('TSA Input'!J3386=\"Yes\",'TSA Input'!J3386=\"Contingent\"),'TSA Input'!B3386,\"Ineligible\"))","v":""},{"$f":"IF('TSA Input'!J3386=\"\",\"\",IF(OR('TSA Input'!J3386=\"Yes\",'TSA Input'!J3386=\"Contingent\"),'TSA Input'!I3386,\"\"))","v":""},{"$f":"IF('TSA Input'!J3386=\"\",\"\",IF(OR('TSA Input'!J3386=\"Yes\",'TSA Input'!J3386=\"Contingent\"),'TSA Input'!C3386,\"\"))","v":""},{"$f":"IF('TSA Input'!J3386=\"\",\"\",IF(OR('TSA Input'!J3386=\"Yes\",'TSA Input'!J3386=\"Contingent\"),'TSA Input'!D3386,\"\"))","v":""},{"$f":"IF('TSA Input'!J3386=\"\",\"\",IF(OR('TSA Input'!J3386=\"Yes\",'TSA Input'!J3386=\"Contingent\"),'TSA Input'!G3386,\"\"))","v":""},{"$f":"IF('TSA Input'!J3386=\"\",\"\",IF(OR('TSA Input'!J3386=\"Yes\",'TSA Input'!J3386=\"Contingent\"),'TSA Input'!F3386,\"\"))","v":""},"",{"$f":"IF('TSA Input'!J3386=\"\",\"\",IF(OR('TSA Input'!J3386=\"Yes\",'TSA Input'!J3386=\"Contingent\"),'TSA Input'!D3386,\"\"))","v":""},{"$f":"IF('TSA Input'!J3386=\"\",\"\",IF(OR('TSA Input'!J3386=\"Yes\",'TSA Input'!J3386=\"Contingent\"),'TSA Input'!G3386,\"\"))","v":""},{"$f":"IF('TSA Input'!J3386=\"\",\"\",IF(OR('TSA Input'!J3386=\"Yes\",'TSA Input'!J3386=\"Contingent\"),'TSA Input'!F3386,\"\"))","v":""},"","Required","Required"]
["",null,{"$f":"IF('TSA Input'!J3387=\"\",\"\",IF(OR('TSA Input'!J3387=\"Yes\",'TSA Input'!J3387=\"Contingent\"),'TSA Input'!B3387,\"Ineligible\"))","v":""},{"$f":"IF('TSA Input'!J3387=\"\",\"\",IF(OR('TSA Input'!J3387=\"Yes\",'TSA Input'!J3387=\"Contingent\"),'TSA Input'!I3387,\"\"))","v":""},{"$f":"IF('TSA Input'!J3387=\"\",\"\",IF(OR('TSA Input'!J3387=\"Yes\",'TSA Input'!J3387=\"Contingent\"),'TSA Input'!C3387,\"\"))","v":""},{"$f":"IF('TSA Input'!J3387=\"\",\"\",IF(OR('TSA Input'!J3387=\"Yes\",'TSA Input'!J3387=\"Contingent\"),'TSA Input'!D3387,\"\"))","v":""},{"$f":"IF('TSA Input'!J3387=\"\",\"\",IF(OR('TSA Input'!J3387=\"Yes\",'TSA Input'!J3387=\"Contingent\"),'TSA Input'!G3387,\"\"))","v":""},{"$f":"IF('TSA Input'!J3387=\"\",\"\",IF(OR('TSA Input'!J3387=\"Yes\",'TSA Input'!J3387=\"Contingent\"),'TSA Input'!F3387,\"\"))","v":""},"",{"$f":"IF('TSA Input'!J3387=\"\",\"\",IF(OR('TSA Input'!J3387=\"Yes\",'TSA Input'!J3387=\"Contingent\"),'TSA Input'!D3387,\"\"))","v":""},{"$f":"IF('TSA Input'!J3387=\"\",\"\",IF(OR('TSA Input'!J3387=\"Yes\",'TSA Input'!J3387=\"Contingent\"),'TSA Input'!G3387,\"\"))","v":""},{"$f":"IF('TSA Input'!J3387=\"\",\"\",IF(OR('TSA Input'!J3387=\"Yes\",'TSA Input'!J3387=\"Contingent\"),'TSA Input'!F3387,\"\"))","v":""},"","Required","Required"]
["",null,{"$f":"IF('TSA Input'!J3388=\"\",\"\",IF(OR('TSA Input'!J3388=\"Yes\",'TSA Input'!J3388=\"Contingent\"),'TSA Input'!B3388,\"Ineligible\"))","v":""},{"$f":"IF('TSA Input'!J3388=\"\",\"\",IF(OR('TSA Input'!J3388=\"Yes\",'TSA Input'!J3388=\"Contingent\"),'TSA Input'!I3388,\"\"))","v":""},{"$f":"IF('TSA Input'!J3388=\"\",\"\",IF(OR('TSA Input'!J3388=\"Yes\",'TSA Input'!J3388=\"Contingent\"),'TSA Input'!C3388,\"\"))","v":""},{"$f":"IF('TSA Input'!J3388=\"\",\"\",IF(OR('TSA Input'!J3388=\"Yes\",'TSA Input'!J3388=\"Contingent\"),'TSA Input'!D3388,\"\"))","v":""},{"$f":"IF('TSA Input'!J3388=\"\",\"\",IF(OR('TSA Input'!J3388=\"Yes\",'TSA Input'!J3388=\"Contingent\"),'TSA Input'!G3388,\"\"))","v":""},{"$f":"IF('TSA Input'!J3388=\"\",\"\",IF(OR('TSA Input'!J3388=\"Yes\",'TSA Input'!J3388=\"Contingent\"),'TSA Input'!F3388,\"\"))","v":""},"",{"$f":"IF('TSA Input'!J3388=\"\",\"\",IF(OR('TSA Input'!J3388=\"Yes\",'TSA Input'!J3388=\"Contingent\"),'TSA Input'!D3388,\"\"))","v":""},{"$f":"IF('TSA Input'!J3388=\"\",\"\",IF(OR('TSA Input'!J3388=\"Yes\",'TSA Input'!J3388=\"Contingent\"),'TSA Input'!G3388,\"\"))","v":""},{"$f":"IF('TSA Input'!J3388=\"\",\"\",IF(OR('TSA Input'!J3388=\"Yes\",'TSA Input'!J3388=\"Contingent\"),'TSA Input'!F3388,\"\"))","v":""},"","Required","Required"]
["",null,{"$f":"IF('TSA Input'!J3389=\"\",\"\",IF(OR('TSA Input'!J3389=\"Yes\",'TSA Input'!J3389=\"Contingent\"),'TSA Input'!B3389,\"Ineligible\"))","v":""},{"$f":"IF('TSA Input'!J3389=\"\",\"\",IF(OR('TSA Input'!J3389=\"Yes\",'TSA Input'!J3389=\"Contingent\"),'TSA Input'!I3389,\"\"))","v":""},{"$f":"IF('TSA Input'!J3389=\"\",\"\",IF(OR('TSA Input'!J3389=\"Yes\",'TSA Input'!J3389=\"Contingent\"),'TSA Input'!C3389,\"\"))","v":""},{"$f":"IF('TSA Input'!J3389=\"\",\"\",IF(OR('TSA Input'!J3389=\"Yes\",'TSA Input'!J3389=\"Contingent\"),'TSA Input'!D3389,\"\"))","v":""},{"$f":"IF('TSA Input'!J3389=\"\",\"\",IF(OR('TSA Input'!J3389=\"Yes\",'TSA Input'!J3389=\"Contingent\"),'TSA Input'!G3389,\"\"))","v":""},{"$f":"IF('TSA Input'!J3389=\"\",\"\",IF(OR('TSA Input'!J3389=\"Yes\",'TSA Input'!J3389=\"Contingent\"),'TSA Input'!F3389,\"\"))","v":""},"",{"$f":"IF('TSA Input'!J3389=\"\",\"\",IF(OR('TSA Input'!J3389=\"Yes\",'TSA Input'!J3389=\"Contingent\"),'TSA Input'!D3389,\"\"))","v":""},{"$f":"IF('TSA Input'!J3389=\"\",\"\",IF(OR('TSA Input'!J3389=\"Yes\",'TSA Input'!J3389=\"Contingent\"),'TSA Input'!G3389,\"\"))","v":""},{"$f":"IF('TSA Input'!J3389=\"\",\"\",IF(OR('TSA Input'!J3389=\"Yes\",'TSA Input'!J3389=\"Contingent\"),'TSA Input'!F3389,\"\"))","v":""},"","Required","Required"]
["",null,{"$f":"IF('TSA Input'!J3390=\"\",\"\",IF(OR('TSA Input'!J3390=\"Yes\",'TSA Input'!J3390=\"Contingent\"),'TSA Input'!B3390,\"Ineligible\"))","v":""},{"$f":"IF('TSA Input'!J3390=\"\",\"\",IF(OR('TSA Input'!J3390=\"Yes\",'TSA Input'!J3390=\"Contingent\"),'TSA Input'!I3390,\"\"))","v":""},{"$f":"IF('TSA Input'!J3390=\"\",\"\",IF(OR('TSA Input'!J3390=\"Yes\",'TSA Input'!J3390=\"Contingent\"),'TSA Input'!C3390,\"\"))","v":""},{"$f":"IF('TSA Input'!J3390=\"\",\"\",IF(OR('TSA Input'!J3390=\"Yes\",'TSA Input'!J3390=\"Contingent\"),'TSA Input'!D3390,\"\"))","v":""},{"$f":"IF('TSA Input'!J3390=\"\",\"\",IF(OR('TSA Input'!J3390=\"Yes\",'TSA Input'!J3390=\"Contingent\"),'TSA Input'!G3390,\"\"))","v":""},{"$f":"IF('TSA Input'!J3390=\"\",\"\",IF(OR('TSA Input'!J3390=\"Yes\",'TSA Input'!J3390=\"Contingent\"),'TSA Input'!F3390,\"\"))","v":""},"",{"$f":"IF('TSA Input'!J3390=\"\",\"\",IF(OR('TSA Input'!J3390=\"Yes\",'TSA Input'!J3390=\"Contingent\"),'TSA Input'!D3390,\"\"))","v":""},{"$f":"IF('TSA Input'!J3390=\"\",\"\",IF(OR('TSA Input'!J3390=\"Yes\",'TSA Input'!J3390=\"Contingent\"),'TSA Input'!G3390,\"\"))","v":""},{"$f":"IF('TSA Input'!J3390=\"\",\"\",IF(OR('TSA Input'!J3390=\"Yes\",'TSA Input'!J3390=\"Contingent\"),'TSA Input'!F3390,\"\"))","v":""},"","Required","Required"]
["",null,{"$f":"IF('TSA Input'!J3391=\"\",\"\",IF(OR('TSA Input'!J3391=\"Yes\",'TSA Input'!J3391=\"Contingent\"),'TSA Input'!B3391,\"Ineligible\"))","v":""},{"$f":"IF('TSA Input'!J3391=\"\",\"\",IF(OR('TSA Input'!J3391=\"Yes\",'TSA Input'!J3391=\"Contingent\"),'TSA Input'!I3391,\"\"))","v":""},{"$f":"IF('TSA Input'!J3391=\"\",\"\",IF(OR('TSA Input'!J3391=\"Yes\",'TSA Input'!J3391=\"Contingent\"),'TSA Input'!C3391,\"\"))","v":""},{"$f":"IF('TSA Input'!J3391=\"\",\"\",IF(OR('TSA Input'!J3391=\"Yes\",'TSA Input'!J3391=\"Contingent\"),'TSA Input'!D3391,\"\"))","v":""},{"$f":"IF('TSA Input'!J3391=\"\",\"\",IF(OR('TSA Input'!J3391=\"Yes\",'TSA Input'!J3391=\"Contingent\"),'TSA Input'!G3391,\"\"))","v":""},{"$f":"IF('TSA Input'!J3391=\"\",\"\",IF(OR('TSA Input'!J3391=\"Yes\",'TSA Input'!J3391=\"Contingent\"),'TSA Input'!F3391,\"\"))","v":""},"",{"$f":"IF('TSA Input'!J3391=\"\",\"\",IF(OR('TSA Input'!J3391=\"Yes\",'TSA Input'!J3391=\"Contingent\"),'TSA Input'!D3391,\"\"))","v":""},{"$f":"IF('TSA Input'!J3391=\"\",\"\",IF(OR('TSA Input'!J3391=\"Yes\",'TSA Input'!J3391=\"Contingent\"),'TSA Input'!G3391,\"\"))","v":""},{"$f":"IF('TSA Input'!J3391=\"\",\"\",IF(OR('TSA Input'!J3391=\"Yes\",'TSA Input'!J3391=\"Contingent\"),'TSA Input'!F3391,\"\"))","v":""},"","Required","Required"]
["",null,{"$f":"IF('TSA Input'!J3392=\"\",\"\",IF(OR('TSA Input'!J3392=\"Yes\",'TSA Input'!J3392=\"Contingent\"),'TSA Input'!B3392,\"Ineligible\"))","v":""},{"$f":"IF('TSA Input'!J3392=\"\",\"\",IF(OR('TSA Input'!J3392=\"Yes\",'TSA Input'!J3392=\"Contingent\"),'TSA Input'!I3392,\"\"))","v":""},{"$f":"IF('TSA Input'!J3392=\"\",\"\",IF(OR('TSA Input'!J3392=\"Yes\",'TSA Input'!J3392=\"Contingent\"),'TSA Input'!C3392,\"\"))","v":""},{"$f":"IF('TSA Input'!J3392=\"\",\"\",IF(OR('TSA Input'!J3392=\"Yes\",'TSA Input'!J3392=\"Contingent\"),'TSA Input'!D3392,\"\"))","v":""},{"$f":"IF('TSA Input'!J3392=\"\",\"\",IF(OR('TSA Input'!J3392=\"Yes\",'TSA Input'!J3392=\"Contingent\"),'TSA Input'!G3392,\"\"))","v":""},{"$f":"IF('TSA Input'!J3392=\"\",\"\",IF(OR('TSA Input'!J3392=\"Yes\",'TSA Input'!J3392=\"Contingent\"),'TSA Input'!F3392,\"\"))","v":""},"",{"$f":"IF('TSA Input'!J3392=\"\",\"\",IF(OR('TSA Input'!J3392=\"Yes\",'TSA Input'!J3392=\"Contingent\"),'TSA Input'!D3392,\"\"))","v":""},{"$f":"IF('TSA Input'!J3392=\"\",\"\",IF(OR('TSA Input'!J3392=\"Yes\",'TSA Input'!J3392=\"Contingent\"),'TSA Input'!G3392,\"\"))","v":""},{"$f":"IF('TSA Input'!J3392=\"\",\"\",IF(OR('TSA Input'!J3392=\"Yes\",'TSA Input'!J3392=\"Contingent\"),'TSA Input'!F3392,\"\"))","v":""},"","Required","Required"]
["",null,{"$f":"IF('TSA Input'!J3393=\"\",\"\",IF(OR('TSA Input'!J3393=\"Yes\",'TSA Input'!J3393=\"Contingent\"),'TSA Input'!B3393,\"Ineligible\"))","v":""},{"$f":"IF('TSA Input'!J3393=\"\",\"\",IF(OR('TSA Input'!J3393=\"Yes\",'TSA Input'!J3393=\"Contingent\"),'TSA Input'!I3393,\"\"))","v":""},{"$f":"IF('TSA Input'!J3393=\"\",\"\",IF(OR('TSA Input'!J3393=\"Yes\",'TSA Input'!J3393=\"Contingent\"),'TSA Input'!C3393,\"\"))","v":""},{"$f":"IF('TSA Input'!J3393=\"\",\"\",IF(OR('TSA Input'!J3393=\"Yes\",'TSA Input'!J3393=\"Contingent\"),'TSA Input'!D3393,\"\"))","v":""},{"$f":"IF('TSA Input'!J3393=\"\",\"\",IF(OR('TSA Input'!J3393=\"Yes\",'TSA Input'!J3393=\"Contingent\"),'TSA Input'!G3393,\"\"))","v":""},{"$f":"IF('TSA Input'!J3393=\"\",\"\",IF(OR('TSA Input'!J3393=\"Yes\",'TSA Input'!J3393=\"Contingent\"),'TSA Input'!F3393,\"\"))","v":""},"",{"$f":"IF('TSA Input'!J3393=\"\",\"\",IF(OR('TSA Input'!J3393=\"Yes\",'TSA Input'!J3393=\"Contingent\"),'TSA Input'!D3393,\"\"))","v":""},{"$f":"IF('TSA Input'!J3393=\"\",\"\",IF(OR('TSA Input'!J3393=\"Yes\",'TSA Input'!J3393=\"Contingent\"),'TSA Input'!G3393,\"\"))","v":""},{"$f":"IF('TSA Input'!J3393=\"\",\"\",IF(OR('TSA Input'!J3393=\"Yes\",'TSA Input'!J3393=\"Contingent\"),'TSA Input'!F3393,\"\"))","v":""},"","Required","Required"]
["",null,{"$f":"IF('TSA Input'!J3394=\"\",\"\",IF(OR('TSA Input'!J3394=\"Yes\",'TSA Input'!J3394=\"Contingent\"),'TSA Input'!B3394,\"Ineligible\"))","v":""},{"$f":"IF('TSA Input'!J3394=\"\",\"\",IF(OR('TSA Input'!J3394=\"Yes\",'TSA Input'!J3394=\"Contingent\"),'TSA Input'!I3394,\"\"))","v":""},{"$f":"IF('TSA Input'!J3394=\"\",\"\",IF(OR('TSA Input'!J3394=\"Yes\",'TSA Input'!J3394=\"Contingent\"),'TSA Input'!C3394,\"\"))","v":""},{"$f":"IF('TSA Input'!J3394=\"\",\"\",IF(OR('TSA Input'!J3394=\"Yes\",'TSA Input'!J3394=\"Contingent\"),'TSA Input'!D3394,\"\"))","v":""},{"$f":"IF('TSA Input'!J3394=\"\",\"\",IF(OR('TSA Input'!J3394=\"Yes\",'TSA Input'!J3394=\"Contingent\"),'TSA Input'!G3394,\"\"))","v":""},{"$f":"IF('TSA Input'!J3394=\"\",\"\",IF(OR('TSA Input'!J3394=\"Yes\",'TSA Input'!J3394=\"Contingent\"),'TSA Input'!F3394,\"\"))","v":""},"",{"$f":"IF('TSA Input'!J3394=\"\",\"\",IF(OR('TSA Input'!J3394=\"Yes\",'TSA Input'!J3394=\"Contingent\"),'TSA Input'!D3394,\"\"))","v":""},{"$f":"IF('TSA Input'!J3394=\"\",\"\",IF(OR('TSA Input'!J3394=\"Yes\",'TSA Input'!J3394=\"Contingent\"),'TSA Input'!G3394,\"\"))","v":""},{"$f":"IF('TSA Input'!J3394=\"\",\"\",IF(OR('TSA Input'!J3394=\"Yes\",'TSA Input'!J3394=\"Contingent\"),'TSA Input'!F3394,\"\"))","v":""},"","Required","Required"]
["",null,{"$f":"IF('TSA Input'!J3395=\"\",\"\",IF(OR('TSA Input'!J3395=\"Yes\",'TSA Input'!J3395=\"Contingent\"),'TSA Input'!B3395,\"Ineligible\"))","v":""},{"$f":"IF('TSA Input'!J3395=\"\",\"\",IF(OR('TSA Input'!J3395=\"Yes\",'TSA Input'!J3395=\"Contingent\"),'TSA Input'!I3395,\"\"))","v":""},{"$f":"IF('TSA Input'!J3395=\"\",\"\",IF(OR('TSA Input'!J3395=\"Yes\",'TSA Input'!J3395=\"Contingent\"),'TSA Input'!C3395,\"\"))","v":""},{"$f":"IF('TSA Input'!J3395=\"\",\"\",IF(OR('TSA Input'!J3395=\"Yes\",'TSA Input'!J3395=\"Contingent\"),'TSA Input'!D3395,\"\"))","v":""},{"$f":"IF('TSA Input'!J3395=\"\",\"\",IF(OR('TSA Input'!J3395=\"Yes\",'TSA Input'!J3395=\"Contingent\"),'TSA Input'!G3395,\"\"))","v":""},{"$f":"IF('TSA Input'!J3395=\"\",\"\",IF(OR('TSA Input'!J3395=\"Yes\",'TSA Input'!J3395=\"Contingent\"),'TSA Input'!F3395,\"\"))","v":""},"",{"$f":"IF('TSA Input'!J3395=\"\",\"\",IF(OR('TSA Input'!J3395=\"Yes\",'TSA Input'!J3395=\"Contingent\"),'TSA Input'!D3395,\"\"))","v":""},{"$f":"IF('TSA Input'!J3395=\"\",\"\",IF(OR('TSA Input'!J3395=\"Yes\",'TSA Input'!J3395=\"Contingent\"),'TSA Input'!G3395,\"\"))","v":""},{"$f":"IF('TSA Input'!J3395=\"\",\"\",IF(OR('TSA Input'!J3395=\"Yes\",'TSA Input'!J3395=\"Contingent\"),'TSA Input'!F3395,\"\"))","v":""},"","Required","Required"]
["",null,{"$f":"IF('TSA Input'!J3396=\"\",\"\",IF(OR('TSA Input'!J3396=\"Yes\",'TSA Input'!J3396=\"Contingent\"),'TSA Input'!B3396,\"Ineligible\"))","v":""},{"$f":"IF('TSA Input'!J3396=\"\",\"\",IF(OR('TSA Input'!J3396=\"Yes\",'TSA Input'!J3396=\"Contingent\"),'TSA Input'!I3396,\"\"))","v":""},{"$f":"IF('TSA Input'!J3396=\"\",\"\",IF(OR('TSA Input'!J3396=\"Yes\",'TSA Input'!J3396=\"Contingent\"),'TSA Input'!C3396,\"\"))","v":""},{"$f":"IF('TSA Input'!J3396=\"\",\"\",IF(OR('TSA Input'!J3396=\"Yes\",'TSA Input'!J3396=\"Contingent\"),'TSA Input'!D3396,\"\"))","v":""},{"$f":"IF('TSA Input'!J3396=\"\",\"\",IF(OR('TSA Input'!J3396=\"Yes\",'TSA Input'!J3396=\"Contingent\"),'TSA Input'!G3396,\"\"))","v":""},{"$f":"IF('TSA Input'!J3396=\"\",\"\",IF(OR('TSA Input'!J3396=\"Yes\",'TSA Input'!J3396=\"Contingent\"),'TSA Input'!F3396,\"\"))","v":""},{"$f":"IF($C3434=\"\",\"\",SUM(F3434:H3434))","v":""},{"$f":"IF('TSA Input'!J3396=\"\",\"\",IF(OR('TSA Input'!J3396=\"Yes\",'TSA Input'!J3396=\"Contingent\"),'TSA Input'!D3396,\"\"))","v":""},{"$f":"IF('TSA Input'!J3396=\"\",\"\",IF(OR('TSA Input'!J3396=\"Yes\",'TSA Input'!J3396=\"Contingent\"),'TSA Input'!G3396,\"\"))","v":""},{"$f":"IF('TSA Input'!J3396=\"\",\"\",IF(OR('TSA Input'!J3396=\"Yes\",'TSA Input'!J3396=\"Contingent\"),'TSA Input'!F3396,\"\"))","v":""},{"$f":"IF($C3434=\"\",\"\",SUM(J3434:L3434))","v":""},"Required","Required"]
["",null,{"$f":"IF('TSA Input'!J3397=\"\",\"\",IF(OR('TSA Input'!J3397=\"Yes\",'TSA Input'!J3397=\"Contingent\"),'TSA Input'!B3397,\"Ineligible\"))","v":""},{"$f":"IF('TSA Input'!J3397=\"\",\"\",IF(OR('TSA Input'!J3397=\"Yes\",'TSA Input'!J3397=\"Contingent\"),'TSA Input'!I3397,\"\"))","v":""},{"$f":"IF('TSA Input'!J3397=\"\",\"\",IF(OR('TSA Input'!J3397=\"Yes\",'TSA Input'!J3397=\"Contingent\"),'TSA Input'!C3397,\"\"))","v":""},{"$f":"IF('TSA Input'!J3397=\"\",\"\",IF(OR('TSA Input'!J3397=\"Yes\",'TSA Input'!J3397=\"Contingent\"),'TSA Input'!D3397,\"\"))","v":""},{"$f":"IF('TSA Input'!J3397=\"\",\"\",IF(OR('TSA Input'!J3397=\"Yes\",'TSA Input'!J3397=\"Contingent\"),'TSA Input'!G3397,\"\"))","v":""},{"$f":"IF('TSA Input'!J3397=\"\",\"\",IF(OR('TSA Input'!J3397=\"Yes\",'TSA Input'!J3397=\"Contingent\"),'TSA Input'!F3397,\"\"))","v":""},"",{"$f":"IF('TSA Input'!J3397=\"\",\"\",IF(OR('TSA Input'!J3397=\"Yes\",'TSA Input'!J3397=\"Contingent\"),'TSA Input'!D3397,\"\"))","v":""},{"$f":"IF('TSA Input'!J3397=\"\",\"\",IF(OR('TSA Input'!J3397=\"Yes\",'TSA Input'!J3397=\"Contingent\"),'TSA Input'!G3397,\"\"))","v":""},{"$f":"IF('TSA Input'!J3397=\"\",\"\",IF(OR('TSA Input'!J3397=\"Yes\",'TSA Input'!J3397=\"Contingent\"),'TSA Input'!F3397,\"\"))","v":""},"","Required","Required"]
["",null,{"$f":"IF('TSA Input'!J3398=\"\",\"\",IF(OR('TSA Input'!J3398=\"Yes\",'TSA Input'!J3398=\"Contingent\"),'TSA Input'!B3398,\"Ineligible\"))","v":""},{"$f":"IF('TSA Input'!J3398=\"\",\"\",IF(OR('TSA Input'!J3398=\"Yes\",'TSA Input'!J3398=\"Contingent\"),'TSA Input'!I3398,\"\"))","v":""},{"$f":"IF('TSA Input'!J3398=\"\",\"\",IF(OR('TSA Input'!J3398=\"Yes\",'TSA Input'!J3398=\"Contingent\"),'TSA Input'!C3398,\"\"))","v":""},{"$f":"IF('TSA Input'!J3398=\"\",\"\",IF(OR('TSA Input'!J3398=\"Yes\",'TSA Input'!J3398=\"Contingent\"),'TSA Input'!D3398,\"\"))","v":""},{"$f":"IF('TSA Input'!J3398=\"\",\"\",IF(OR('TSA Input'!J3398=\"Yes\",'TSA Input'!J3398=\"Contingent\"),'TSA Input'!G3398,\"\"))","v":""},{"$f":"IF('TSA Input'!J3398=\"\",\"\",IF(OR('TSA Input'!J3398=\"Yes\",'TSA Input'!J3398=\"Contingent\"),'TSA Input'!F3398,\"\"))","v":""},"",{"$f":"IF('TSA Input'!J3398=\"\",\"\",IF(OR('TSA Input'!J3398=\"Yes\",'TSA Input'!J3398=\"Contingent\"),'TSA Input'!D3398,\"\"))","v":""},{"$f":"IF('TSA Input'!J3398=\"\",\"\",IF(OR('TSA Input'!J3398=\"Yes\",'TSA Input'!J3398=\"Contingent\"),'TSA Input'!G3398,\"\"))","v":""},{"$f":"IF('TSA Input'!J3398=\"\",\"\",IF(OR('TSA Input'!J3398=\"Yes\",'TSA Input'!J3398=\"Contingent\"),'TSA Input'!F3398,\"\"))","v":""},"","Required","Required"]
["",null,{"$f":"IF('TSA Input'!J3399=\"\",\"\",IF(OR('TSA Input'!J3399=\"Yes\",'TSA Input'!J3399=\"Contingent\"),'TSA Input'!B3399,\"Ineligible\"))","v":""},{"$f":"IF('TSA Input'!J3399=\"\",\"\",IF(OR('TSA Input'!J3399=\"Yes\",'TSA Input'!J3399=\"Contingent\"),'TSA Input'!I3399,\"\"))","v":""},{"$f":"IF('TSA Input'!J3399=\"\",\"\",IF(OR('TSA Input'!J3399=\"Yes\",'TSA Input'!J3399=\"Contingent\"),'TSA Input'!C3399,\"\"))","v":""},{"$f":"IF('TSA Input'!J3399=\"\",\"\",IF(OR('TSA Input'!J3399=\"Yes\",'TSA Input'!J3399=\"Contingent\"),'TSA Input'!D3399,\"\"))","v":""},{"$f":"IF('TSA Input'!J3399=\"\",\"\",IF(OR('TSA Input'!J3399=\"Yes\",'TSA Input'!J3399=\"Contingent\"),'TSA Input'!G3399,\"\"))","v":""},{"$f":"IF('TSA Input'!J3399=\"\",\"\",IF(OR('TSA Input'!J3399=\"Yes\",'TSA Input'!J3399=\"Contingent\"),'TSA Input'!F3399,\"\"))","v":""},"",{"$f":"IF('TSA Input'!J3399=\"\",\"\",IF(OR('TSA Input'!J3399=\"Yes\",'TSA Input'!J3399=\"Contingent\"),'TSA Input'!D3399,\"\"))","v":""},{"$f":"IF('TSA Input'!J3399=\"\",\"\",IF(OR('TSA Input'!J3399=\"Yes\",'TSA Input'!J3399=\"Contingent\"),'TSA Input'!G3399,\"\"))","v":""},{"$f":"IF('TSA Input'!J3399=\"\",\"\",IF(OR('TSA Input'!J3399=\"Yes\",'TSA Input'!J3399=\"Contingent\"),'TSA Input'!F3399,\"\"))","v":""},"","Required","Required"]
["",null,{"$f":"IF('TSA Input'!J3400=\"\",\"\",IF(OR('TSA Input'!J3400=\"Yes\",'TSA Input'!J3400=\"Contingent\"),'TSA Input'!B3400,\"Ineligible\"))","v":""},{"$f":"IF('TSA Input'!J3400=\"\",\"\",IF(OR('TSA Input'!J3400=\"Yes\",'TSA Input'!J3400=\"Contingent\"),'TSA Input'!I3400,\"\"))","v":""},{"$f":"IF('TSA Input'!J3400=\"\",\"\",IF(OR('TSA Input'!J3400=\"Yes\",'TSA Input'!J3400=\"Contingent\"),'TSA Input'!C3400,\"\"))","v":""},{"$f":"IF('TSA Input'!J3400=\"\",\"\",IF(OR('TSA Input'!J3400=\"Yes\",'TSA Input'!J3400=\"Contingent\"),'TSA Input'!D3400,\"\"))","v":""},{"$f":"IF('TSA Input'!J3400=\"\",\"\",IF(OR('TSA Input'!J3400=\"Yes\",'TSA Input'!J3400=\"Contingent\"),'TSA Input'!G3400,\"\"))","v":""},{"$f":"IF('TSA Input'!J3400=\"\",\"\",IF(OR('TSA Input'!J3400=\"Yes\",'TSA Input'!J3400=\"Contingent\"),'TSA Input'!F3400,\"\"))","v":""},"",{"$f":"IF('TSA Input'!J3400=\"\",\"\",IF(OR('TSA Input'!J3400=\"Yes\",'TSA Input'!J3400=\"Contingent\"),'TSA Input'!D3400,\"\"))","v":""},{"$f":"IF('TSA Input'!J3400=\"\",\"\",IF(OR('TSA Input'!J3400=\"Yes\",'TSA Input'!J3400=\"Contingent\"),'TSA Input'!G3400,\"\"))","v":""},{"$f":"IF('TSA Input'!J3400=\"\",\"\",IF(OR('TSA Input'!J3400=\"Yes\",'TSA Input'!J3400=\"Contingent\"),'TSA Input'!F3400,\"\"))","v":""},"","Required","Required"]
["",null,{"$f":"IF('TSA Input'!J3401=\"\",\"\",IF(OR('TSA Input'!J3401=\"Yes\",'TSA Input'!J3401=\"Contingent\"),'TSA Input'!B3401,\"Ineligible\"))","v":""},{"$f":"IF('TSA Input'!J3401=\"\",\"\",IF(OR('TSA Input'!J3401=\"Yes\",'TSA Input'!J3401=\"Contingent\"),'TSA Input'!I3401,\"\"))","v":""},{"$f":"IF('TSA Input'!J3401=\"\",\"\",IF(OR('TSA Input'!J3401=\"Yes\",'TSA Input'!J3401=\"Contingent\"),'TSA Input'!C3401,\"\"))","v":""},{"$f":"IF('TSA Input'!J3401=\"\",\"\",IF(OR('TSA Input'!J3401=\"Yes\",'TSA Input'!J3401=\"Contingent\"),'TSA Input'!D3401,\"\"))","v":""},{"$f":"IF('TSA Input'!J3401=\"\",\"\",IF(OR('TSA Input'!J3401=\"Yes\",'TSA Input'!J3401=\"Contingent\"),'TSA Input'!G3401,\"\"))","v":""},{"$f":"IF('TSA Input'!J3401=\"\",\"\",IF(OR('TSA Input'!J3401=\"Yes\",'TSA Input'!J3401=\"Contingent\"),'TSA Input'!F3401,\"\"))","v":""},"",{"$f":"IF('TSA Input'!J3401=\"\",\"\",IF(OR('TSA Input'!J3401=\"Yes\",'TSA Input'!J3401=\"Contingent\"),'TSA Input'!D3401,\"\"))","v":""},{"$f":"IF('TSA Input'!J3401=\"\",\"\",IF(OR('TSA Input'!J3401=\"Yes\",'TSA Input'!J3401=\"Contingent\"),'TSA Input'!G3401,\"\"))","v":""},{"$f":"IF('TSA Input'!J3401=\"\",\"\",IF(OR('TSA Input'!J3401=\"Yes\",'TSA Input'!J3401=\"Contingent\"),'TSA Input'!F3401,\"\"))","v":""},"","Required","Required"]
["",null,{"$f":"IF('TSA Input'!J3402=\"\",\"\",IF(OR('TSA Input'!J3402=\"Yes\",'TSA Input'!J3402=\"Contingent\"),'TSA Input'!B3402,\"Ineligible\"))","v":""},{"$f":"IF('TSA Input'!J3402=\"\",\"\",IF(OR('TSA Input'!J3402=\"Yes\",'TSA Input'!J3402=\"Contingent\"),'TSA Input'!I3402,\"\"))","v":""},{"$f":"IF('TSA Input'!J3402=\"\",\"\",IF(OR('TSA Input'!J3402=\"Yes\",'TSA Input'!J3402=\"Contingent\"),'TSA Input'!C3402,\"\"))","v":""},{"$f":"IF('TSA Input'!J3402=\"\",\"\",IF(OR('TSA Input'!J3402=\"Yes\",'TSA Input'!J3402=\"Contingent\"),'TSA Input'!D3402,\"\"))","v":""},{"$f":"IF('TSA Input'!J3402=\"\",\"\",IF(OR('TSA Input'!J3402=\"Yes\",'TSA Input'!J3402=\"Contingent\"),'TSA Input'!G3402,\"\"))","v":""},{"$f":"IF('TSA Input'!J3402=\"\",\"\",IF(OR('TSA Input'!J3402=\"Yes\",'TSA Input'!J3402=\"Contingent\"),'TSA Input'!F3402,\"\"))","v":""},"",{"$f":"IF('TSA Input'!J3402=\"\",\"\",IF(OR('TSA Input'!J3402=\"Yes\",'TSA Input'!J3402=\"Contingent\"),'TSA Input'!D3402,\"\"))","v":""},{"$f":"IF('TSA Input'!J3402=\"\",\"\",IF(OR('TSA Input'!J3402=\"Yes\",'TSA Input'!J3402=\"Contingent\"),'TSA Input'!G3402,\"\"))","v":""},{"$f":"IF('TSA Input'!J3402=\"\",\"\",IF(OR('TSA Input'!J3402=\"Yes\",'TSA Input'!J3402=\"Contingent\"),'TSA Input'!F3402,\"\"))","v":""},"","Required","Required"]
["",null,{"$f":"IF('TSA Input'!J3403=\"\",\"\",IF(OR('TSA Input'!J3403=\"Yes\",'TSA Input'!J3403=\"Contingent\"),'TSA Input'!B3403,\"Ineligible\"))","v":""},{"$f":"IF('TSA Input'!J3403=\"\",\"\",IF(OR('TSA Input'!J3403=\"Yes\",'TSA Input'!J3403=\"Contingent\"),'TSA Input'!I3403,\"\"))","v":""},{"$f":"IF('TSA Input'!J3403=\"\",\"\",IF(OR('TSA Input'!J3403=\"Yes\",'TSA Input'!J3403=\"Contingent\"),'TSA Input'!C3403,\"\"))","v":""},{"$f":"IF('TSA Input'!J3403=\"\",\"\",IF(OR('TSA Input'!J3403=\"Yes\",'TSA Input'!J3403=\"Contingent\"),'TSA Input'!D3403,\"\"))","v":""},{"$f":"IF('TSA Input'!J3403=\"\",\"\",IF(OR('TSA Input'!J3403=\"Yes\",'TSA Input'!J3403=\"Contingent\"),'TSA Input'!G3403,\"\"))","v":""},{"$f":"IF('TSA Input'!J3403=\"\",\"\",IF(OR('TSA Input'!J3403=\"Yes\",'TSA Input'!J3403=\"Contingent\"),'TSA Input'!F3403,\"\"))","v":""},"",{"$f":"IF('TSA Input'!J3403=\"\",\"\",IF(OR('TSA Input'!J3403=\"Yes\",'TSA Input'!J3403=\"Contingent\"),'TSA Input'!D3403,\"\"))","v":""},{"$f":"IF('TSA Input'!J3403=\"\",\"\",IF(OR('TSA Input'!J3403=\"Yes\",'TSA Input'!J3403=\"Contingent\"),'TSA Input'!G3403,\"\"))","v":""},{"$f":"IF('TSA Input'!J3403=\"\",\"\",IF(OR('TSA Input'!J3403=\"Yes\",'TSA Input'!J3403=\"Contingent\"),'TSA Input'!F3403,\"\"))","v":""},"","Required","Required"]
["",null,{"$f":"IF('TSA Input'!J3404=\"\",\"\",IF(OR('TSA Input'!J3404=\"Yes\",'TSA Input'!J3404=\"Contingent\"),'TSA Input'!B3404,\"Ineligible\"))","v":""},{"$f":"IF('TSA Input'!J3404=\"\",\"\",IF(OR('TSA Input'!J3404=\"Yes\",'TSA Input'!J3404=\"Contingent\"),'TSA Input'!I3404,\"\"))","v":""},{"$f":"IF('TSA Input'!J3404=\"\",\"\",IF(OR('TSA Input'!J3404=\"Yes\",'TSA Input'!J3404=\"Contingent\"),'TSA Input'!C3404,\"\"))","v":""},{"$f":"IF('TSA Input'!J3404=\"\",\"\",IF(OR('TSA Input'!J3404=\"Yes\",'TSA Input'!J3404=\"Contingent\"),'TSA Input'!D3404,\"\"))","v":""},{"$f":"IF('TSA Input'!J3404=\"\",\"\",IF(OR('TSA Input'!J3404=\"Yes\",'TSA Input'!J3404=\"Contingent\"),'TSA Input'!G3404,\"\"))","v":""},{"$f":"IF('TSA Input'!J3404=\"\",\"\",IF(OR('TSA Input'!J3404=\"Yes\",'TSA Input'!J3404=\"Contingent\"),'TSA Input'!F3404,\"\"))","v":""},"",{"$f":"IF('TSA Input'!J3404=\"\",\"\",IF(OR('TSA Input'!J3404=\"Yes\",'TSA Input'!J3404=\"Contingent\"),'TSA Input'!D3404,\"\"))","v":""},{"$f":"IF('TSA Input'!J3404=\"\",\"\",IF(OR('TSA Input'!J3404=\"Yes\",'TSA Input'!J3404=\"Contingent\"),'TSA Input'!G3404,\"\"))","v":""},{"$f":"IF('TSA Input'!J3404=\"\",\"\",IF(OR('TSA Input'!J3404=\"Yes\",'TSA Input'!J3404=\"Contingent\"),'TSA Input'!F3404,\"\"))","v":""},"","Required","Required"]
["",null,{"$f":"IF('TSA Input'!J3405=\"\",\"\",IF(OR('TSA Input'!J3405=\"Yes\",'TSA Input'!J3405=\"Contingent\"),'TSA Input'!B3405,\"Ineligible\"))","v":""},{"$f":"IF('TSA Input'!J3405=\"\",\"\",IF(OR('TSA Input'!J3405=\"Yes\",'TSA Input'!J3405=\"Contingent\"),'TSA Input'!I3405,\"\"))","v":""},{"$f":"IF('TSA Input'!J3405=\"\",\"\",IF(OR('TSA Input'!J3405=\"Yes\",'TSA Input'!J3405=\"Contingent\"),'TSA Input'!C3405,\"\"))","v":""},{"$f":"IF('TSA Input'!J3405=\"\",\"\",IF(OR('TSA Input'!J3405=\"Yes\",'TSA Input'!J3405=\"Contingent\"),'TSA Input'!D3405,\"\"))","v":""},{"$f":"IF('TSA Input'!J3405=\"\",\"\",IF(OR('TSA Input'!J3405=\"Yes\",'TSA Input'!J3405=\"Contingent\"),'TSA Input'!G3405,\"\"))","v":""},{"$f":"IF('TSA Input'!J3405=\"\",\"\",IF(OR('TSA Input'!J3405=\"Yes\",'TSA Input'!J3405=\"Contingent\"),'TSA Input'!F3405,\"\"))","v":""},"",{"$f":"IF('TSA Input'!J3405=\"\",\"\",IF(OR('TSA Input'!J3405=\"Yes\",'TSA Input'!J3405=\"Contingent\"),'TSA Input'!D3405,\"\"))","v":""},{"$f":"IF('TSA Input'!J3405=\"\",\"\",IF(OR('TSA Input'!J3405=\"Yes\",'TSA Input'!J3405=\"Contingent\"),'TSA Input'!G3405,\"\"))","v":""},{"$f":"IF('TSA Input'!J3405=\"\",\"\",IF(OR('TSA Input'!J3405=\"Yes\",'TSA Input'!J3405=\"Contingent\"),'TSA Input'!F3405,\"\"))","v":""},"","Required","Required"]
["",null,{"$f":"IF('TSA Input'!J3406=\"\",\"\",IF(OR('TSA Input'!J3406=\"Yes\",'TSA Input'!J3406=\"Contingent\"),'TSA Input'!B3406,\"Ineligible\"))","v":""},{"$f":"IF('TSA Input'!J3406=\"\",\"\",IF(OR('TSA Input'!J3406=\"Yes\",'TSA Input'!J3406=\"Contingent\"),'TSA Input'!I3406,\"\"))","v":""},{"$f":"IF('TSA Input'!J3406=\"\",\"\",IF(OR('TSA Input'!J3406=\"Yes\",'TSA Input'!J3406=\"Contingent\"),'TSA Input'!C3406,\"\"))","v":""},{"$f":"IF('TSA Input'!J3406=\"\",\"\",IF(OR('TSA Input'!J3406=\"Yes\",'TSA Input'!J3406=\"Contingent\"),'TSA Input'!D3406,\"\"))","v":""},{"$f":"IF('TSA Input'!J3406=\"\",\"\",IF(OR('TSA Input'!J3406=\"Yes\",'TSA Input'!J3406=\"Contingent\"),'TSA Input'!G3406,\"\"))","v":""},{"$f":"IF('TSA Input'!J3406=\"\",\"\",IF(OR('TSA Input'!J3406=\"Yes\",'TSA Input'!J3406=\"Contingent\"),'TSA Input'!F3406,\"\"))","v":""},"",{"$f":"IF('TSA Input'!J3406=\"\",\"\",IF(OR('TSA Input'!J3406=\"Yes\",'TSA Input'!J3406=\"Contingent\"),'TSA Input'!D3406,\"\"))","v":""},{"$f":"IF('TSA Input'!J3406=\"\",\"\",IF(OR('TSA Input'!J3406=\"Yes\",'TSA Input'!J3406=\"Contingent\"),'TSA Input'!G3406,\"\"))","v":""},{"$f":"IF('TSA Input'!J3406=\"\",\"\",IF(OR('TSA Input'!J3406=\"Yes\",'TSA Input'!J3406=\"Contingent\"),'TSA Input'!F3406,\"\"))","v":""},"","Required","Required"]
["",null,{"$f":"IF('TSA Input'!J3407=\"\",\"\",IF(OR('TSA Input'!J3407=\"Yes\",'TSA Input'!J3407=\"Contingent\"),'TSA Input'!B3407,\"Ineligible\"))","v":""},{"$f":"IF('TSA Input'!J3407=\"\",\"\",IF(OR('TSA Input'!J3407=\"Yes\",'TSA Input'!J3407=\"Contingent\"),'TSA Input'!I3407,\"\"))","v":""},{"$f":"IF('TSA Input'!J3407=\"\",\"\",IF(OR('TSA Input'!J3407=\"Yes\",'TSA Input'!J3407=\"Contingent\"),'TSA Input'!C3407,\"\"))","v":""},{"$f":"IF('TSA Input'!J3407=\"\",\"\",IF(OR('TSA Input'!J3407=\"Yes\",'TSA Input'!J3407=\"Contingent\"),'TSA Input'!D3407,\"\"))","v":""},{"$f":"IF('TSA Input'!J3407=\"\",\"\",IF(OR('TSA Input'!J3407=\"Yes\",'TSA Input'!J3407=\"Contingent\"),'TSA Input'!G3407,\"\"))","v":""},{"$f":"IF('TSA Input'!J3407=\"\",\"\",IF(OR('TSA Input'!J3407=\"Yes\",'TSA Input'!J3407=\"Contingent\"),'TSA Input'!F3407,\"\"))","v":""},"",{"$f":"IF('TSA Input'!J3407=\"\",\"\",IF(OR('TSA Input'!J3407=\"Yes\",'TSA Input'!J3407=\"Contingent\"),'TSA Input'!D3407,\"\"))","v":""},{"$f":"IF('TSA Input'!J3407=\"\",\"\",IF(OR('TSA Input'!J3407=\"Yes\",'TSA Input'!J3407=\"Contingent\"),'TSA Input'!G3407,\"\"))","v":""},{"$f":"IF('TSA Input'!J3407=\"\",\"\",IF(OR('TSA Input'!J3407=\"Yes\",'TSA Input'!J3407=\"Contingent\"),'TSA Input'!F3407,\"\"))","v":""},"","Required","Required"]
["",null,{"$f":"IF('TSA Input'!J3408=\"\",\"\",IF(OR('TSA Input'!J3408=\"Yes\",'TSA Input'!J3408=\"Contingent\"),'TSA Input'!B3408,\"Ineligible\"))","v":""},{"$f":"IF('TSA Input'!J3408=\"\",\"\",IF(OR('TSA Input'!J3408=\"Yes\",'TSA Input'!J3408=\"Contingent\"),'TSA Input'!I3408,\"\"))","v":""},{"$f":"IF('TSA Input'!J3408=\"\",\"\",IF(OR('TSA Input'!J3408=\"Yes\",'TSA Input'!J3408=\"Contingent\"),'TSA Input'!C3408,\"\"))","v":""},{"$f":"IF('TSA Input'!J3408=\"\",\"\",IF(OR('TSA Input'!J3408=\"Yes\",'TSA Input'!J3408=\"Contingent\"),'TSA Input'!D3408,\"\"))","v":""},{"$f":"IF('TSA Input'!J3408=\"\",\"\",IF(OR('TSA Input'!J3408=\"Yes\",'TSA Input'!J3408=\"Contingent\"),'TSA Input'!G3408,\"\"))","v":""},{"$f":"IF('TSA Input'!J3408=\"\",\"\",IF(OR('TSA Input'!J3408=\"Yes\",'TSA Input'!J3408=\"Contingent\"),'TSA Input'!F3408,\"\"))","v":""},"",{"$f":"IF('TSA Input'!J3408=\"\",\"\",IF(OR('TSA Input'!J3408=\"Yes\",'TSA Input'!J3408=\"Contingent\"),'TSA Input'!D3408,\"\"))","v":""},{"$f":"IF('TSA Input'!J3408=\"\",\"\",IF(OR('TSA Input'!J3408=\"Yes\",'TSA Input'!J3408=\"Contingent\"),'TSA Input'!G3408,\"\"))","v":""},{"$f":"IF('TSA Input'!J3408=\"\",\"\",IF(OR('TSA Input'!J3408=\"Yes\",'TSA Input'!J3408=\"Contingent\"),'TSA Input'!F3408,\"\"))","v":""},"","Required","Required"]
["",null,{"$f":"IF('TSA Input'!J3409=\"\",\"\",IF(OR('TSA Input'!J3409=\"Yes\",'TSA Input'!J3409=\"Contingent\"),'TSA Input'!B3409,\"Ineligible\"))","v":""},{"$f":"IF('TSA Input'!J3409=\"\",\"\",IF(OR('TSA Input'!J3409=\"Yes\",'TSA Input'!J3409=\"Contingent\"),'TSA Input'!I3409,\"\"))","v":""},{"$f":"IF('TSA Input'!J3409=\"\",\"\",IF(OR('TSA Input'!J3409=\"Yes\",'TSA Input'!J3409=\"Contingent\"),'TSA Input'!C3409,\"\"))","v":""},{"$f":"IF('TSA Input'!J3409=\"\",\"\",IF(OR('TSA Input'!J3409=\"Yes\",'TSA Input'!J3409=\"Contingent\"),'TSA Input'!D3409,\"\"))","v":""},{"$f":"IF('TSA Input'!J3409=\"\",\"\",IF(OR('TSA Input'!J3409=\"Yes\",'TSA Input'!J3409=\"Contingent\"),'TSA Input'!G3409,\"\"))","v":""},{"$f":"IF('TSA Input'!J3409=\"\",\"\",IF(OR('TSA Input'!J3409=\"Yes\",'TSA Input'!J3409=\"Contingent\"),'TSA Input'!F3409,\"\"))","v":""},"",{"$f":"IF('TSA Input'!J3409=\"\",\"\",IF(OR('TSA Input'!J3409=\"Yes\",'TSA Input'!J3409=\"Contingent\"),'TSA Input'!D3409,\"\"))","v":""},{"$f":"IF('TSA Input'!J3409=\"\",\"\",IF(OR('TSA Input'!J3409=\"Yes\",'TSA Input'!J3409=\"Contingent\"),'TSA Input'!G3409,\"\"))","v":""},{"$f":"IF('TSA Input'!J3409=\"\",\"\",IF(OR('TSA Input'!J3409=\"Yes\",'TSA Input'!J3409=\"Contingent\"),'TSA Input'!F3409,\"\"))","v":""},"","Required","Required"]
["",null,{"$f":"IF('TSA Input'!J3410=\"\",\"\",IF(OR('TSA Input'!J3410=\"Yes\",'TSA Input'!J3410=\"Contingent\"),'TSA Input'!B3410,\"Ineligible\"))","v":""},{"$f":"IF('TSA Input'!J3410=\"\",\"\",IF(OR('TSA Input'!J3410=\"Yes\",'TSA Input'!J3410=\"Contingent\"),'TSA Input'!I3410,\"\"))","v":""},{"$f":"IF('TSA Input'!J3410=\"\",\"\",IF(OR('TSA Input'!J3410=\"Yes\",'TSA Input'!J3410=\"Contingent\"),'TSA Input'!C3410,\"\"))","v":""},{"$f":"IF('TSA Input'!J3410=\"\",\"\",IF(OR('TSA Input'!J3410=\"Yes\",'TSA Input'!J3410=\"Contingent\"),'TSA Input'!D3410,\"\"))","v":""},{"$f":"IF('TSA Input'!J3410=\"\",\"\",IF(OR('TSA Input'!J3410=\"Yes\",'TSA Input'!J3410=\"Contingent\"),'TSA Input'!G3410,\"\"))","v":""},{"$f":"IF('TSA Input'!J3410=\"\",\"\",IF(OR('TSA Input'!J3410=\"Yes\",'TSA Input'!J3410=\"Contingent\"),'TSA Input'!F3410,\"\"))","v":""},"",{"$f":"IF('TSA Input'!J3410=\"\",\"\",IF(OR('TSA Input'!J3410=\"Yes\",'TSA Input'!J3410=\"Contingent\"),'TSA Input'!D3410,\"\"))","v":""},{"$f":"IF('TSA Input'!J3410=\"\",\"\",IF(OR('TSA Input'!J3410=\"Yes\",'TSA Input'!J3410=\"Contingent\"),'TSA Input'!G3410,\"\"))","v":""},{"$f":"IF('TSA Input'!J3410=\"\",\"\",IF(OR('TSA Input'!J3410=\"Yes\",'TSA Input'!J3410=\"Contingent\"),'TSA Input'!F3410,\"\"))","v":""},"","Required","Required"]
["",null,{"$f":"IF('TSA Input'!J3411=\"\",\"\",IF(OR('TSA Input'!J3411=\"Yes\",'TSA Input'!J3411=\"Contingent\"),'TSA Input'!B3411,\"Ineligible\"))","v":""},{"$f":"IF('TSA Input'!J3411=\"\",\"\",IF(OR('TSA Input'!J3411=\"Yes\",'TSA Input'!J3411=\"Contingent\"),'TSA Input'!I3411,\"\"))","v":""},{"$f":"IF('TSA Input'!J3411=\"\",\"\",IF(OR('TSA Input'!J3411=\"Yes\",'TSA Input'!J3411=\"Contingent\"),'TSA Input'!C3411,\"\"))","v":""},{"$f":"IF('TSA Input'!J3411=\"\",\"\",IF(OR('TSA Input'!J3411=\"Yes\",'TSA Input'!J3411=\"Contingent\"),'TSA Input'!D3411,\"\"))","v":""},{"$f":"IF('TSA Input'!J3411=\"\",\"\",IF(OR('TSA Input'!J3411=\"Yes\",'TSA Input'!J3411=\"Contingent\"),'TSA Input'!G3411,\"\"))","v":""},{"$f":"IF('TSA Input'!J3411=\"\",\"\",IF(OR('TSA Input'!J3411=\"Yes\",'TSA Input'!J3411=\"Contingent\"),'TSA Input'!F3411,\"\"))","v":""},"",{"$f":"IF('TSA Input'!J3411=\"\",\"\",IF(OR('TSA Input'!J3411=\"Yes\",'TSA Input'!J3411=\"Contingent\"),'TSA Input'!D3411,\"\"))","v":""},{"$f":"IF('TSA Input'!J3411=\"\",\"\",IF(OR('TSA Input'!J3411=\"Yes\",'TSA Input'!J3411=\"Contingent\"),'TSA Input'!G3411,\"\"))","v":""},{"$f":"IF('TSA Input'!J3411=\"\",\"\",IF(OR('TSA Input'!J3411=\"Yes\",'TSA Input'!J3411=\"Contingent\"),'TSA Input'!F3411,\"\"))","v":""},"","Required","Required"]
["",null,{"$f":"IF('TSA Input'!J3412=\"\",\"\",IF(OR('TSA Input'!J3412=\"Yes\",'TSA Input'!J3412=\"Contingent\"),'TSA Input'!B3412,\"Ineligible\"))","v":""},{"$f":"IF('TSA Input'!J3412=\"\",\"\",IF(OR('TSA Input'!J3412=\"Yes\",'TSA Input'!J3412=\"Contingent\"),'TSA Input'!I3412,\"\"))","v":""},{"$f":"IF('TSA Input'!J3412=\"\",\"\",IF(OR('TSA Input'!J3412=\"Yes\",'TSA Input'!J3412=\"Contingent\"),'TSA Input'!C3412,\"\"))","v":""},{"$f":"IF('TSA Input'!J3412=\"\",\"\",IF(OR('TSA Input'!J3412=\"Yes\",'TSA Input'!J3412=\"Contingent\"),'TSA Input'!D3412,\"\"))","v":""},{"$f":"IF('TSA Input'!J3412=\"\",\"\",IF(OR('TSA Input'!J3412=\"Yes\",'TSA Input'!J3412=\"Contingent\"),'TSA Input'!G3412,\"\"))","v":""},{"$f":"IF('TSA Input'!J3412=\"\",\"\",IF(OR('TSA Input'!J3412=\"Yes\",'TSA Input'!J3412=\"Contingent\"),'TSA Input'!F3412,\"\"))","v":""},"",{"$f":"IF('TSA Input'!J3412=\"\",\"\",IF(OR('TSA Input'!J3412=\"Yes\",'TSA Input'!J3412=\"Contingent\"),'TSA Input'!D3412,\"\"))","v":""},{"$f":"IF('TSA Input'!J3412=\"\",\"\",IF(OR('TSA Input'!J3412=\"Yes\",'TSA Input'!J3412=\"Contingent\"),'TSA Input'!G3412,\"\"))","v":""},{"$f":"IF('TSA Input'!J3412=\"\",\"\",IF(OR('TSA Input'!J3412=\"Yes\",'TSA Input'!J3412=\"Contingent\"),'TSA Input'!F3412,\"\"))","v":""},"","Required","Required"]
["",null,{"$f":"IF('TSA Input'!J3413=\"\",\"\",IF(OR('TSA Input'!J3413=\"Yes\",'TSA Input'!J3413=\"Contingent\"),'TSA Input'!B3413,\"Ineligible\"))","v":""},{"$f":"IF('TSA Input'!J3413=\"\",\"\",IF(OR('TSA Input'!J3413=\"Yes\",'TSA Input'!J3413=\"Contingent\"),'TSA Input'!I3413,\"\"))","v":""},{"$f":"IF('TSA Input'!J3413=\"\",\"\",IF(OR('TSA Input'!J3413=\"Yes\",'TSA Input'!J3413=\"Contingent\"),'TSA Input'!C3413,\"\"))","v":""},{"$f":"IF('TSA Input'!J3413=\"\",\"\",IF(OR('TSA Input'!J3413=\"Yes\",'TSA Input'!J3413=\"Contingent\"),'TSA Input'!D3413,\"\"))","v":""},{"$f":"IF('TSA Input'!J3413=\"\",\"\",IF(OR('TSA Input'!J3413=\"Yes\",'TSA Input'!J3413=\"Contingent\"),'TSA Input'!G3413,\"\"))","v":""},{"$f":"IF('TSA Input'!J3413=\"\",\"\",IF(OR('TSA Input'!J3413=\"Yes\",'TSA Input'!J3413=\"Contingent\"),'TSA Input'!F3413,\"\"))","v":""},"",{"$f":"IF('TSA Input'!J3413=\"\",\"\",IF(OR('TSA Input'!J3413=\"Yes\",'TSA Input'!J3413=\"Contingent\"),'TSA Input'!D3413,\"\"))","v":""},{"$f":"IF('TSA Input'!J3413=\"\",\"\",IF(OR('TSA Input'!J3413=\"Yes\",'TSA Input'!J3413=\"Contingent\"),'TSA Input'!G3413,\"\"))","v":""},{"$f":"IF('TSA Input'!J3413=\"\",\"\",IF(OR('TSA Input'!J3413=\"Yes\",'TSA Input'!J3413=\"Contingent\"),'TSA Input'!F3413,\"\"))","v":""},"","Required","Required"]
["",null,{"$f":"IF('TSA Input'!J3414=\"\",\"\",IF(OR('TSA Input'!J3414=\"Yes\",'TSA Input'!J3414=\"Contingent\"),'TSA Input'!B3414,\"Ineligible\"))","v":""},{"$f":"IF('TSA Input'!J3414=\"\",\"\",IF(OR('TSA Input'!J3414=\"Yes\",'TSA Input'!J3414=\"Contingent\"),'TSA Input'!I3414,\"\"))","v":""},{"$f":"IF('TSA Input'!J3414=\"\",\"\",IF(OR('TSA Input'!J3414=\"Yes\",'TSA Input'!J3414=\"Contingent\"),'TSA Input'!C3414,\"\"))","v":""},{"$f":"IF('TSA Input'!J3414=\"\",\"\",IF(OR('TSA Input'!J3414=\"Yes\",'TSA Input'!J3414=\"Contingent\"),'TSA Input'!D3414,\"\"))","v":""},{"$f":"IF('TSA Input'!J3414=\"\",\"\",IF(OR('TSA Input'!J3414=\"Yes\",'TSA Input'!J3414=\"Contingent\"),'TSA Input'!G3414,\"\"))","v":""},{"$f":"IF('TSA Input'!J3414=\"\",\"\",IF(OR('TSA Input'!J3414=\"Yes\",'TSA Input'!J3414=\"Contingent\"),'TSA Input'!F3414,\"\"))","v":""},"",{"$f":"IF('TSA Input'!J3414=\"\",\"\",IF(OR('TSA Input'!J3414=\"Yes\",'TSA Input'!J3414=\"Contingent\"),'TSA Input'!D3414,\"\"))","v":""},{"$f":"IF('TSA Input'!J3414=\"\",\"\",IF(OR('TSA Input'!J3414=\"Yes\",'TSA Input'!J3414=\"Contingent\"),'TSA Input'!G3414,\"\"))","v":""},{"$f":"IF('TSA Input'!J3414=\"\",\"\",IF(OR('TSA Input'!J3414=\"Yes\",'TSA Input'!J3414=\"Contingent\"),'TSA Input'!F3414,\"\"))","v":""},"","Required","Required"]
["",null,{"$f":"IF('TSA Input'!J3415=\"\",\"\",IF(OR('TSA Input'!J3415=\"Yes\",'TSA Input'!J3415=\"Contingent\"),'TSA Input'!B3415,\"Ineligible\"))","v":""},{"$f":"IF('TSA Input'!J3415=\"\",\"\",IF(OR('TSA Input'!J3415=\"Yes\",'TSA Input'!J3415=\"Contingent\"),'TSA Input'!I3415,\"\"))","v":""},{"$f":"IF('TSA Input'!J3415=\"\",\"\",IF(OR('TSA Input'!J3415=\"Yes\",'TSA Input'!J3415=\"Contingent\"),'TSA Input'!C3415,\"\"))","v":""},{"$f":"IF('TSA Input'!J3415=\"\",\"\",IF(OR('TSA Input'!J3415=\"Yes\",'TSA Input'!J3415=\"Contingent\"),'TSA Input'!D3415,\"\"))","v":""},{"$f":"IF('TSA Input'!J3415=\"\",\"\",IF(OR('TSA Input'!J3415=\"Yes\",'TSA Input'!J3415=\"Contingent\"),'TSA Input'!G3415,\"\"))","v":""},{"$f":"IF('TSA Input'!J3415=\"\",\"\",IF(OR('TSA Input'!J3415=\"Yes\",'TSA Input'!J3415=\"Contingent\"),'TSA Input'!F3415,\"\"))","v":""},"",{"$f":"IF('TSA Input'!J3415=\"\",\"\",IF(OR('TSA Input'!J3415=\"Yes\",'TSA Input'!J3415=\"Contingent\"),'TSA Input'!D3415,\"\"))","v":""},{"$f":"IF('TSA Input'!J3415=\"\",\"\",IF(OR('TSA Input'!J3415=\"Yes\",'TSA Input'!J3415=\"Contingent\"),'TSA Input'!G3415,\"\"))","v":""},{"$f":"IF('TSA Input'!J3415=\"\",\"\",IF(OR('TSA Input'!J3415=\"Yes\",'TSA Input'!J3415=\"Contingent\"),'TSA Input'!F3415,\"\"))","v":""},"","Required","Required"]
["",null,{"$f":"IF('TSA Input'!J3416=\"\",\"\",IF(OR('TSA Input'!J3416=\"Yes\",'TSA Input'!J3416=\"Contingent\"),'TSA Input'!B3416,\"Ineligible\"))","v":""},{"$f":"IF('TSA Input'!J3416=\"\",\"\",IF(OR('TSA Input'!J3416=\"Yes\",'TSA Input'!J3416=\"Contingent\"),'TSA Input'!I3416,\"\"))","v":""},{"$f":"IF('TSA Input'!J3416=\"\",\"\",IF(OR('TSA Input'!J3416=\"Yes\",'TSA Input'!J3416=\"Contingent\"),'TSA Input'!C3416,\"\"))","v":""},{"$f":"IF('TSA Input'!J3416=\"\",\"\",IF(OR('TSA Input'!J3416=\"Yes\",'TSA Input'!J3416=\"Contingent\"),'TSA Input'!D3416,\"\"))","v":""},{"$f":"IF('TSA Input'!J3416=\"\",\"\",IF(OR('TSA Input'!J3416=\"Yes\",'TSA Input'!J3416=\"Contingent\"),'TSA Input'!G3416,\"\"))","v":""},{"$f":"IF('TSA Input'!J3416=\"\",\"\",IF(OR('TSA Input'!J3416=\"Yes\",'TSA Input'!J3416=\"Contingent\"),'TSA Input'!F3416,\"\"))","v":""},"",{"$f":"IF('TSA Input'!J3416=\"\",\"\",IF(OR('TSA Input'!J3416=\"Yes\",'TSA Input'!J3416=\"Contingent\"),'TSA Input'!D3416,\"\"))","v":""},{"$f":"IF('TSA Input'!J3416=\"\",\"\",IF(OR('TSA Input'!J3416=\"Yes\",'TSA Input'!J3416=\"Contingent\"),'TSA Input'!G3416,\"\"))","v":""},{"$f":"IF('TSA Input'!J3416=\"\",\"\",IF(OR('TSA Input'!J3416=\"Yes\",'TSA Input'!J3416=\"Contingent\"),'TSA Input'!F3416,\"\"))","v":""},"","Required","Required"]
["",null,{"$f":"IF('TSA Input'!J3417=\"\",\"\",IF(OR('TSA Input'!J3417=\"Yes\",'TSA Input'!J3417=\"Contingent\"),'TSA Input'!B3417,\"Ineligible\"))","v":""},{"$f":"IF('TSA Input'!J3417=\"\",\"\",IF(OR('TSA Input'!J3417=\"Yes\",'TSA Input'!J3417=\"Contingent\"),'TSA Input'!I3417,\"\"))","v":""},{"$f":"IF('TSA Input'!J3417=\"\",\"\",IF(OR('TSA Input'!J3417=\"Yes\",'TSA Input'!J3417=\"Contingent\"),'TSA Input'!C3417,\"\"))","v":""},{"$f":"IF('TSA Input'!J3417=\"\",\"\",IF(OR('TSA Input'!J3417=\"Yes\",'TSA Input'!J3417=\"Contingent\"),'TSA Input'!D3417,\"\"))","v":""},{"$f":"IF('TSA Input'!J3417=\"\",\"\",IF(OR('TSA Input'!J3417=\"Yes\",'TSA Input'!J3417=\"Contingent\"),'TSA Input'!G3417,\"\"))","v":""},{"$f":"IF('TSA Input'!J3417=\"\",\"\",IF(OR('TSA Input'!J3417=\"Yes\",'TSA Input'!J3417=\"Contingent\"),'TSA Input'!F3417,\"\"))","v":""},"",{"$f":"IF('TSA Input'!J3417=\"\",\"\",IF(OR('TSA Input'!J3417=\"Yes\",'TSA Input'!J3417=\"Contingent\"),'TSA Input'!D3417,\"\"))","v":""},{"$f":"IF('TSA Input'!J3417=\"\",\"\",IF(OR('TSA Input'!J3417=\"Yes\",'TSA Input'!J3417=\"Contingent\"),'TSA Input'!G3417,\"\"))","v":""},{"$f":"IF('TSA Input'!J3417=\"\",\"\",IF(OR('TSA Input'!J3417=\"Yes\",'TSA Input'!J3417=\"Contingent\"),'TSA Input'!F3417,\"\"))","v":""},"","Required","Required"]
["",null,{"$f":"IF('TSA Input'!J3418=\"\",\"\",IF(OR('TSA Input'!J3418=\"Yes\",'TSA Input'!J3418=\"Contingent\"),'TSA Input'!B3418,\"Ineligible\"))","v":""},{"$f":"IF('TSA Input'!J3418=\"\",\"\",IF(OR('TSA Input'!J3418=\"Yes\",'TSA Input'!J3418=\"Contingent\"),'TSA Input'!I3418,\"\"))","v":""},{"$f":"IF('TSA Input'!J3418=\"\",\"\",IF(OR('TSA Input'!J3418=\"Yes\",'TSA Input'!J3418=\"Contingent\"),'TSA Input'!C3418,\"\"))","v":""},{"$f":"IF('TSA Input'!J3418=\"\",\"\",IF(OR('TSA Input'!J3418=\"Yes\",'TSA Input'!J3418=\"Contingent\"),'TSA Input'!D3418,\"\"))","v":""},{"$f":"IF('TSA Input'!J3418=\"\",\"\",IF(OR('TSA Input'!J3418=\"Yes\",'TSA Input'!J3418=\"Contingent\"),'TSA Input'!G3418,\"\"))","v":""},{"$f":"IF('TSA Input'!J3418=\"\",\"\",IF(OR('TSA Input'!J3418=\"Yes\",'TSA Input'!J3418=\"Contingent\"),'TSA Input'!F3418,\"\"))","v":""},"",{"$f":"IF('TSA Input'!J3418=\"\",\"\",IF(OR('TSA Input'!J3418=\"Yes\",'TSA Input'!J3418=\"Contingent\"),'TSA Input'!D3418,\"\"))","v":""},{"$f":"IF('TSA Input'!J3418=\"\",\"\",IF(OR('TSA Input'!J3418=\"Yes\",'TSA Input'!J3418=\"Contingent\"),'TSA Input'!G3418,\"\"))","v":""},{"$f":"IF('TSA Input'!J3418=\"\",\"\",IF(OR('TSA Input'!J3418=\"Yes\",'TSA Input'!J3418=\"Contingent\"),'TSA Input'!F3418,\"\"))","v":""},"","Required","Required"]
["",null,{"$f":"IF('TSA Input'!J3419=\"\",\"\",IF(OR('TSA Input'!J3419=\"Yes\",'TSA Input'!J3419=\"Contingent\"),'TSA Input'!B3419,\"Ineligible\"))","v":""},{"$f":"IF('TSA Input'!J3419=\"\",\"\",IF(OR('TSA Input'!J3419=\"Yes\",'TSA Input'!J3419=\"Contingent\"),'TSA Input'!I3419,\"\"))","v":""},{"$f":"IF('TSA Input'!J3419=\"\",\"\",IF(OR('TSA Input'!J3419=\"Yes\",'TSA Input'!J3419=\"Contingent\"),'TSA Input'!C3419,\"\"))","v":""},{"$f":"IF('TSA Input'!J3419=\"\",\"\",IF(OR('TSA Input'!J3419=\"Yes\",'TSA Input'!J3419=\"Contingent\"),'TSA Input'!D3419,\"\"))","v":""},{"$f":"IF('TSA Input'!J3419=\"\",\"\",IF(OR('TSA Input'!J3419=\"Yes\",'TSA Input'!J3419=\"Contingent\"),'TSA Input'!G3419,\"\"))","v":""},{"$f":"IF('TSA Input'!J3419=\"\",\"\",IF(OR('TSA Input'!J3419=\"Yes\",'TSA Input'!J3419=\"Contingent\"),'TSA Input'!F3419,\"\"))","v":""},"",{"$f":"IF('TSA Input'!J3419=\"\",\"\",IF(OR('TSA Input'!J3419=\"Yes\",'TSA Input'!J3419=\"Contingent\"),'TSA Input'!D3419,\"\"))","v":""},{"$f":"IF('TSA Input'!J3419=\"\",\"\",IF(OR('TSA Input'!J3419=\"Yes\",'TSA Input'!J3419=\"Contingent\"),'TSA Input'!G3419,\"\"))","v":""},{"$f":"IF('TSA Input'!J3419=\"\",\"\",IF(OR('TSA Input'!J3419=\"Yes\",'TSA Input'!J3419=\"Contingent\"),'TSA Input'!F3419,\"\"))","v":""},"","Required","Required"]
["",null,{"$f":"IF('TSA Input'!J3420=\"\",\"\",IF(OR('TSA Input'!J3420=\"Yes\",'TSA Input'!J3420=\"Contingent\"),'TSA Input'!B3420,\"Ineligible\"))","v":""},{"$f":"IF('TSA Input'!J3420=\"\",\"\",IF(OR('TSA Input'!J3420=\"Yes\",'TSA Input'!J3420=\"Contingent\"),'TSA Input'!I3420,\"\"))","v":""},{"$f":"IF('TSA Input'!J3420=\"\",\"\",IF(OR('TSA Input'!J3420=\"Yes\",'TSA Input'!J3420=\"Contingent\"),'TSA Input'!C3420,\"\"))","v":""},{"$f":"IF('TSA Input'!J3420=\"\",\"\",IF(OR('TSA Input'!J3420=\"Yes\",'TSA Input'!J3420=\"Contingent\"),'TSA Input'!D3420,\"\"))","v":""},{"$f":"IF('TSA Input'!J3420=\"\",\"\",IF(OR('TSA Input'!J3420=\"Yes\",'TSA Input'!J3420=\"Contingent\"),'TSA Input'!G3420,\"\"))","v":""},{"$f":"IF('TSA Input'!J3420=\"\",\"\",IF(OR('TSA Input'!J3420=\"Yes\",'TSA Input'!J3420=\"Contingent\"),'TSA Input'!F3420,\"\"))","v":""},"",{"$f":"IF('TSA Input'!J3420=\"\",\"\",IF(OR('TSA Input'!J3420=\"Yes\",'TSA Input'!J3420=\"Contingent\"),'TSA Input'!D3420,\"\"))","v":""},{"$f":"IF('TSA Input'!J3420=\"\",\"\",IF(OR('TSA Input'!J3420=\"Yes\",'TSA Input'!J3420=\"Contingent\"),'TSA Input'!G3420,\"\"))","v":""},{"$f":"IF('TSA Input'!J3420=\"\",\"\",IF(OR('TSA Input'!J3420=\"Yes\",'TSA Input'!J3420=\"Contingent\"),'TSA Input'!F3420,\"\"))","v":""},"","Required","Required"]
["",null,{"$f":"IF('TSA Input'!J3421=\"\",\"\",IF(OR('TSA Input'!J3421=\"Yes\",'TSA Input'!J3421=\"Contingent\"),'TSA Input'!B3421,\"Ineligible\"))","v":""},{"$f":"IF('TSA Input'!J3421=\"\",\"\",IF(OR('TSA Input'!J3421=\"Yes\",'TSA Input'!J3421=\"Contingent\"),'TSA Input'!I3421,\"\"))","v":""},{"$f":"IF('TSA Input'!J3421=\"\",\"\",IF(OR('TSA Input'!J3421=\"Yes\",'TSA Input'!J3421=\"Contingent\"),'TSA Input'!C3421,\"\"))","v":""},{"$f":"IF('TSA Input'!J3421=\"\",\"\",IF(OR('TSA Input'!J3421=\"Yes\",'TSA Input'!J3421=\"Contingent\"),'TSA Input'!D3421,\"\"))","v":""},{"$f":"IF('TSA Input'!J3421=\"\",\"\",IF(OR('TSA Input'!J3421=\"Yes\",'TSA Input'!J3421=\"Contingent\"),'TSA Input'!G3421,\"\"))","v":""},{"$f":"IF('TSA Input'!J3421=\"\",\"\",IF(OR('TSA Input'!J3421=\"Yes\",'TSA Input'!J3421=\"Contingent\"),'TSA Input'!F3421,\"\"))","v":""},"",{"$f":"IF('TSA Input'!J3421=\"\",\"\",IF(OR('TSA Input'!J3421=\"Yes\",'TSA Input'!J3421=\"Contingent\"),'TSA Input'!D3421,\"\"))","v":""},{"$f":"IF('TSA Input'!J3421=\"\",\"\",IF(OR('TSA Input'!J3421=\"Yes\",'TSA Input'!J3421=\"Contingent\"),'TSA Input'!G3421,\"\"))","v":""},{"$f":"IF('TSA Input'!J3421=\"\",\"\",IF(OR('TSA Input'!J3421=\"Yes\",'TSA Input'!J3421=\"Contingent\"),'TSA Input'!F3421,\"\"))","v":""},"","Required","Required"]
["",null,{"$f":"IF('TSA Input'!J3422=\"\",\"\",IF(OR('TSA Input'!J3422=\"Yes\",'TSA Input'!J3422=\"Contingent\"),'TSA Input'!B3422,\"Ineligible\"))","v":""},{"$f":"IF('TSA Input'!J3422=\"\",\"\",IF(OR('TSA Input'!J3422=\"Yes\",'TSA Input'!J3422=\"Contingent\"),'TSA Input'!I3422,\"\"))","v":""},{"$f":"IF('TSA Input'!J3422=\"\",\"\",IF(OR('TSA Input'!J3422=\"Yes\",'TSA Input'!J3422=\"Contingent\"),'TSA Input'!C3422,\"\"))","v":""},{"$f":"IF('TSA Input'!J3422=\"\",\"\",IF(OR('TSA Input'!J3422=\"Yes\",'TSA Input'!J3422=\"Contingent\"),'TSA Input'!D3422,\"\"))","v":""},{"$f":"IF('TSA Input'!J3422=\"\",\"\",IF(OR('TSA Input'!J3422=\"Yes\",'TSA Input'!J3422=\"Contingent\"),'TSA Input'!G3422,\"\"))","v":""},{"$f":"IF('TSA Input'!J3422=\"\",\"\",IF(OR('TSA Input'!J3422=\"Yes\",'TSA Input'!J3422=\"Contingent\"),'TSA Input'!F3422,\"\"))","v":""},"",{"$f":"IF('TSA Input'!J3422=\"\",\"\",IF(OR('TSA Input'!J3422=\"Yes\",'TSA Input'!J3422=\"Contingent\"),'TSA Input'!D3422,\"\"))","v":""},{"$f":"IF('TSA Input'!J3422=\"\",\"\",IF(OR('TSA Input'!J3422=\"Yes\",'TSA Input'!J3422=\"Contingent\"),'TSA Input'!G3422,\"\"))","v":""},{"$f":"IF('TSA Input'!J3422=\"\",\"\",IF(OR('TSA Input'!J3422=\"Yes\",'TSA Input'!J3422=\"Contingent\"),'TSA Input'!F3422,\"\"))","v":""},"","Required","Required"]
["",null,{"$f":"IF('TSA Input'!J3423=\"\",\"\",IF(OR('TSA Input'!J3423=\"Yes\",'TSA Input'!J3423=\"Contingent\"),'TSA Input'!B3423,\"Ineligible\"))","v":""},{"$f":"IF('TSA Input'!J3423=\"\",\"\",IF(OR('TSA Input'!J3423=\"Yes\",'TSA Input'!J3423=\"Contingent\"),'TSA Input'!I3423,\"\"))","v":""},{"$f":"IF('TSA Input'!J3423=\"\",\"\",IF(OR('TSA Input'!J3423=\"Yes\",'TSA Input'!J3423=\"Contingent\"),'TSA Input'!C3423,\"\"))","v":""},{"$f":"IF('TSA Input'!J3423=\"\",\"\",IF(OR('TSA Input'!J3423=\"Yes\",'TSA Input'!J3423=\"Contingent\"),'TSA Input'!D3423,\"\"))","v":""},{"$f":"IF('TSA Input'!J3423=\"\",\"\",IF(OR('TSA Input'!J3423=\"Yes\",'TSA Input'!J3423=\"Contingent\"),'TSA Input'!G3423,\"\"))","v":""},{"$f":"IF('TSA Input'!J3423=\"\",\"\",IF(OR('TSA Input'!J3423=\"Yes\",'TSA Input'!J3423=\"Contingent\"),'TSA Input'!F3423,\"\"))","v":""},"",{"$f":"IF('TSA Input'!J3423=\"\",\"\",IF(OR('TSA Input'!J3423=\"Yes\",'TSA Input'!J3423=\"Contingent\"),'TSA Input'!D3423,\"\"))","v":""},{"$f":"IF('TSA Input'!J3423=\"\",\"\",IF(OR('TSA Input'!J3423=\"Yes\",'TSA Input'!J3423=\"Contingent\"),'TSA Input'!G3423,\"\"))","v":""},{"$f":"IF('TSA Input'!J3423=\"\",\"\",IF(OR('TSA Input'!J3423=\"Yes\",'TSA Input'!J3423=\"Contingent\"),'TSA Input'!F3423,\"\"))","v":""},"","Required","Required"]
["",null,{"$f":"IF('TSA Input'!J3424=\"\",\"\",IF(OR('TSA Input'!J3424=\"Yes\",'TSA Input'!J3424=\"Contingent\"),'TSA Input'!B3424,\"Ineligible\"))","v":""},{"$f":"IF('TSA Input'!J3424=\"\",\"\",IF(OR('TSA Input'!J3424=\"Yes\",'TSA Input'!J3424=\"Contingent\"),'TSA Input'!I3424,\"\"))","v":""},{"$f":"IF('TSA Input'!J3424=\"\",\"\",IF(OR('TSA Input'!J3424=\"Yes\",'TSA Input'!J3424=\"Contingent\"),'TSA Input'!C3424,\"\"))","v":""},{"$f":"IF('TSA Input'!J3424=\"\",\"\",IF(OR('TSA Input'!J3424=\"Yes\",'TSA Input'!J3424=\"Contingent\"),'TSA Input'!D3424,\"\"))","v":""},{"$f":"IF('TSA Input'!J3424=\"\",\"\",IF(OR('TSA Input'!J3424=\"Yes\",'TSA Input'!J3424=\"Contingent\"),'TSA Input'!G3424,\"\"))","v":""},{"$f":"IF('TSA Input'!J3424=\"\",\"\",IF(OR('TSA Input'!J3424=\"Yes\",'TSA Input'!J3424=\"Contingent\"),'TSA Input'!F3424,\"\"))","v":""},"",{"$f":"IF('TSA Input'!J3424=\"\",\"\",IF(OR('TSA Input'!J3424=\"Yes\",'TSA Input'!J3424=\"Contingent\"),'TSA Input'!D3424,\"\"))","v":""},{"$f":"IF('TSA Input'!J3424=\"\",\"\",IF(OR('TSA Input'!J3424=\"Yes\",'TSA Input'!J3424=\"Contingent\"),'TSA Input'!G3424,\"\"))","v":""},{"$f":"IF('TSA Input'!J3424=\"\",\"\",IF(OR('TSA Input'!J3424=\"Yes\",'TSA Input'!J3424=\"Contingent\"),'TSA Input'!F3424,\"\"))","v":""},"","Required","Required"]
["",null,{"$f":"IF('TSA Input'!J3425=\"\",\"\",IF(OR('TSA Input'!J3425=\"Yes\",'TSA Input'!J3425=\"Contingent\"),'TSA Input'!B3425,\"Ineligible\"))","v":""},{"$f":"IF('TSA Input'!J3425=\"\",\"\",IF(OR('TSA Input'!J3425=\"Yes\",'TSA Input'!J3425=\"Contingent\"),'TSA Input'!I3425,\"\"))","v":""},{"$f":"IF('TSA Input'!J3425=\"\",\"\",IF(OR('TSA Input'!J3425=\"Yes\",'TSA Input'!J3425=\"Contingent\"),'TSA Input'!C3425,\"\"))","v":""},{"$f":"IF('TSA Input'!J3425=\"\",\"\",IF(OR('TSA Input'!J3425=\"Yes\",'TSA Input'!J3425=\"Contingent\"),'TSA Input'!D3425,\"\"))","v":""},{"$f":"IF('TSA Input'!J3425=\"\",\"\",IF(OR('TSA Input'!J3425=\"Yes\",'TSA Input'!J3425=\"Contingent\"),'TSA Input'!G3425,\"\"))","v":""},{"$f":"IF('TSA Input'!J3425=\"\",\"\",IF(OR('TSA Input'!J3425=\"Yes\",'TSA Input'!J3425=\"Contingent\"),'TSA Input'!F3425,\"\"))","v":""},"",{"$f":"IF('TSA Input'!J3425=\"\",\"\",IF(OR('TSA Input'!J3425=\"Yes\",'TSA Input'!J3425=\"Contingent\"),'TSA Input'!D3425,\"\"))","v":""},{"$f":"IF('TSA Input'!J3425=\"\",\"\",IF(OR('TSA Input'!J3425=\"Yes\",'TSA Input'!J3425=\"Contingent\"),'TSA Input'!G3425,\"\"))","v":""},{"$f":"IF('TSA Input'!J3425=\"\",\"\",IF(OR('TSA Input'!J3425=\"Yes\",'TSA Input'!J3425=\"Contingent\"),'TSA Input'!F3425,\"\"))","v":""},"","Required","Required"]
["",null,{"$f":"IF('TSA Input'!J3426=\"\",\"\",IF(OR('TSA Input'!J3426=\"Yes\",'TSA Input'!J3426=\"Contingent\"),'TSA Input'!B3426,\"Ineligible\"))","v":""},{"$f":"IF('TSA Input'!J3426=\"\",\"\",IF(OR('TSA Input'!J3426=\"Yes\",'TSA Input'!J3426=\"Contingent\"),'TSA Input'!I3426,\"\"))","v":""},{"$f":"IF('TSA Input'!J3426=\"\",\"\",IF(OR('TSA Input'!J3426=\"Yes\",'TSA Input'!J3426=\"Contingent\"),'TSA Input'!C3426,\"\"))","v":""},{"$f":"IF('TSA Input'!J3426=\"\",\"\",IF(OR('TSA Input'!J3426=\"Yes\",'TSA Input'!J3426=\"Contingent\"),'TSA Input'!D3426,\"\"))","v":""},{"$f":"IF('TSA Input'!J3426=\"\",\"\",IF(OR('TSA Input'!J3426=\"Yes\",'TSA Input'!J3426=\"Contingent\"),'TSA Input'!G3426,\"\"))","v":""},{"$f":"IF('TSA Input'!J3426=\"\",\"\",IF(OR('TSA Input'!J3426=\"Yes\",'TSA Input'!J3426=\"Contingent\"),'TSA Input'!F3426,\"\"))","v":""},"",{"$f":"IF('TSA Input'!J3426=\"\",\"\",IF(OR('TSA Input'!J3426=\"Yes\",'TSA Input'!J3426=\"Contingent\"),'TSA Input'!D3426,\"\"))","v":""},{"$f":"IF('TSA Input'!J3426=\"\",\"\",IF(OR('TSA Input'!J3426=\"Yes\",'TSA Input'!J3426=\"Contingent\"),'TSA Input'!G3426,\"\"))","v":""},{"$f":"IF('TSA Input'!J3426=\"\",\"\",IF(OR('TSA Input'!J3426=\"Yes\",'TSA Input'!J3426=\"Contingent\"),'TSA Input'!F3426,\"\"))","v":""},"","Required","Required"]
["",null,{"$f":"IF('TSA Input'!J3427=\"\",\"\",IF(OR('TSA Input'!J3427=\"Yes\",'TSA Input'!J3427=\"Contingent\"),'TSA Input'!B3427,\"Ineligible\"))","v":""},{"$f":"IF('TSA Input'!J3427=\"\",\"\",IF(OR('TSA Input'!J3427=\"Yes\",'TSA Input'!J3427=\"Contingent\"),'TSA Input'!I3427,\"\"))","v":""},{"$f":"IF('TSA Input'!J3427=\"\",\"\",IF(OR('TSA Input'!J3427=\"Yes\",'TSA Input'!J3427=\"Contingent\"),'TSA Input'!C3427,\"\"))","v":""},{"$f":"IF('TSA Input'!J3427=\"\",\"\",IF(OR('TSA Input'!J3427=\"Yes\",'TSA Input'!J3427=\"Contingent\"),'TSA Input'!D3427,\"\"))","v":""},{"$f":"IF('TSA Input'!J3427=\"\",\"\",IF(OR('TSA Input'!J3427=\"Yes\",'TSA Input'!J3427=\"Contingent\"),'TSA Input'!G3427,\"\"))","v":""},{"$f":"IF('TSA Input'!J3427=\"\",\"\",IF(OR('TSA Input'!J3427=\"Yes\",'TSA Input'!J3427=\"Contingent\"),'TSA Input'!F3427,\"\"))","v":""},"",{"$f":"IF('TSA Input'!J3427=\"\",\"\",IF(OR('TSA Input'!J3427=\"Yes\",'TSA Input'!J3427=\"Contingent\"),'TSA Input'!D3427,\"\"))","v":""},{"$f":"IF('TSA Input'!J3427=\"\",\"\",IF(OR('TSA Input'!J3427=\"Yes\",'TSA Input'!J3427=\"Contingent\"),'TSA Input'!G3427,\"\"))","v":""},{"$f":"IF('TSA Input'!J3427=\"\",\"\",IF(OR('TSA Input'!J3427=\"Yes\",'TSA Input'!J3427=\"Contingent\"),'TSA Input'!F3427,\"\"))","v":""},"","Required","Required"]
["",null,{"$f":"IF('TSA Input'!J3428=\"\",\"\",IF(OR('TSA Input'!J3428=\"Yes\",'TSA Input'!J3428=\"Contingent\"),'TSA Input'!B3428,\"Ineligible\"))","v":""},{"$f":"IF('TSA Input'!J3428=\"\",\"\",IF(OR('TSA Input'!J3428=\"Yes\",'TSA Input'!J3428=\"Contingent\"),'TSA Input'!I3428,\"\"))","v":""},{"$f":"IF('TSA Input'!J3428=\"\",\"\",IF(OR('TSA Input'!J3428=\"Yes\",'TSA Input'!J3428=\"Contingent\"),'TSA Input'!C3428,\"\"))","v":""},{"$f":"IF('TSA Input'!J3428=\"\",\"\",IF(OR('TSA Input'!J3428=\"Yes\",'TSA Input'!J3428=\"Contingent\"),'TSA Input'!D3428,\"\"))","v":""},{"$f":"IF('TSA Input'!J3428=\"\",\"\",IF(OR('TSA Input'!J3428=\"Yes\",'TSA Input'!J3428=\"Contingent\"),'TSA Input'!G3428,\"\"))","v":""},{"$f":"IF('TSA Input'!J3428=\"\",\"\",IF(OR('TSA Input'!J3428=\"Yes\",'TSA Input'!J3428=\"Contingent\"),'TSA Input'!F3428,\"\"))","v":""},"",{"$f":"IF('TSA Input'!J3428=\"\",\"\",IF(OR('TSA Input'!J3428=\"Yes\",'TSA Input'!J3428=\"Contingent\"),'TSA Input'!D3428,\"\"))","v":""},{"$f":"IF('TSA Input'!J3428=\"\",\"\",IF(OR('TSA Input'!J3428=\"Yes\",'TSA Input'!J3428=\"Contingent\"),'TSA Input'!G3428,\"\"))","v":""},{"$f":"IF('TSA Input'!J3428=\"\",\"\",IF(OR('TSA Input'!J3428=\"Yes\",'TSA Input'!J3428=\"Contingent\"),'TSA Input'!F3428,\"\"))","v":""},"","Required","Required"]
["",null,{"$f":"IF('TSA Input'!J3429=\"\",\"\",IF(OR('TSA Input'!J3429=\"Yes\",'TSA Input'!J3429=\"Contingent\"),'TSA Input'!B3429,\"Ineligible\"))","v":""},{"$f":"IF('TSA Input'!J3429=\"\",\"\",IF(OR('TSA Input'!J3429=\"Yes\",'TSA Input'!J3429=\"Contingent\"),'TSA Input'!I3429,\"\"))","v":""},{"$f":"IF('TSA Input'!J3429=\"\",\"\",IF(OR('TSA Input'!J3429=\"Yes\",'TSA Input'!J3429=\"Contingent\"),'TSA Input'!C3429,\"\"))","v":""},{"$f":"IF('TSA Input'!J3429=\"\",\"\",IF(OR('TSA Input'!J3429=\"Yes\",'TSA Input'!J3429=\"Contingent\"),'TSA Input'!D3429,\"\"))","v":""},{"$f":"IF('TSA Input'!J3429=\"\",\"\",IF(OR('TSA Input'!J3429=\"Yes\",'TSA Input'!J3429=\"Contingent\"),'TSA Input'!G3429,\"\"))","v":""},{"$f":"IF('TSA Input'!J3429=\"\",\"\",IF(OR('TSA Input'!J3429=\"Yes\",'TSA Input'!J3429=\"Contingent\"),'TSA Input'!F3429,\"\"))","v":""},"",{"$f":"IF('TSA Input'!J3429=\"\",\"\",IF(OR('TSA Input'!J3429=\"Yes\",'TSA Input'!J3429=\"Contingent\"),'TSA Input'!D3429,\"\"))","v":""},{"$f":"IF('TSA Input'!J3429=\"\",\"\",IF(OR('TSA Input'!J3429=\"Yes\",'TSA Input'!J3429=\"Contingent\"),'TSA Input'!G3429,\"\"))","v":""},{"$f":"IF('TSA Input'!J3429=\"\",\"\",IF(OR('TSA Input'!J3429=\"Yes\",'TSA Input'!J3429=\"Contingent\"),'TSA Input'!F3429,\"\"))","v":""},"","Required","Required"]
["",null,{"$f":"IF('TSA Input'!J3430=\"\",\"\",IF(OR('TSA Input'!J3430=\"Yes\",'TSA Input'!J3430=\"Contingent\"),'TSA Input'!B3430,\"Ineligible\"))","v":""},{"$f":"IF('TSA Input'!J3430=\"\",\"\",IF(OR('TSA Input'!J3430=\"Yes\",'TSA Input'!J3430=\"Contingent\"),'TSA Input'!I3430,\"\"))","v":""},{"$f":"IF('TSA Input'!J3430=\"\",\"\",IF(OR('TSA Input'!J3430=\"Yes\",'TSA Input'!J3430=\"Contingent\"),'TSA Input'!C3430,\"\"))","v":""},{"$f":"IF('TSA Input'!J3430=\"\",\"\",IF(OR('TSA Input'!J3430=\"Yes\",'TSA Input'!J3430=\"Contingent\"),'TSA Input'!D3430,\"\"))","v":""},{"$f":"IF('TSA Input'!J3430=\"\",\"\",IF(OR('TSA Input'!J3430=\"Yes\",'TSA Input'!J3430=\"Contingent\"),'TSA Input'!G3430,\"\"))","v":""},{"$f":"IF('TSA Input'!J3430=\"\",\"\",IF(OR('TSA Input'!J3430=\"Yes\",'TSA Input'!J3430=\"Contingent\"),'TSA Input'!F3430,\"\"))","v":""},"",{"$f":"IF('TSA Input'!J3430=\"\",\"\",IF(OR('TSA Input'!J3430=\"Yes\",'TSA Input'!J3430=\"Contingent\"),'TSA Input'!D3430,\"\"))","v":""},{"$f":"IF('TSA Input'!J3430=\"\",\"\",IF(OR('TSA Input'!J3430=\"Yes\",'TSA Input'!J3430=\"Contingent\"),'TSA Input'!G3430,\"\"))","v":""},{"$f":"IF('TSA Input'!J3430=\"\",\"\",IF(OR('TSA Input'!J3430=\"Yes\",'TSA Input'!J3430=\"Contingent\"),'TSA Input'!F3430,\"\"))","v":""},"","Required","Required"]
["",null,{"$f":"IF('TSA Input'!J3431=\"\",\"\",IF(OR('TSA Input'!J3431=\"Yes\",'TSA Input'!J3431=\"Contingent\"),'TSA Input'!B3431,\"Ineligible\"))","v":""},{"$f":"IF('TSA Input'!J3431=\"\",\"\",IF(OR('TSA Input'!J3431=\"Yes\",'TSA Input'!J3431=\"Contingent\"),'TSA Input'!I3431,\"\"))","v":""},{"$f":"IF('TSA Input'!J3431=\"\",\"\",IF(OR('TSA Input'!J3431=\"Yes\",'TSA Input'!J3431=\"Contingent\"),'TSA Input'!C3431,\"\"))","v":""},{"$f":"IF('TSA Input'!J3431=\"\",\"\",IF(OR('TSA Input'!J3431=\"Yes\",'TSA Input'!J3431=\"Contingent\"),'TSA Input'!D3431,\"\"))","v":""},{"$f":"IF('TSA Input'!J3431=\"\",\"\",IF(OR('TSA Input'!J3431=\"Yes\",'TSA Input'!J3431=\"Contingent\"),'TSA Input'!G3431,\"\"))","v":""},{"$f":"IF('TSA Input'!J3431=\"\",\"\",IF(OR('TSA Input'!J3431=\"Yes\",'TSA Input'!J3431=\"Contingent\"),'TSA Input'!F3431,\"\"))","v":""},"",{"$f":"IF('TSA Input'!J3431=\"\",\"\",IF(OR('TSA Input'!J3431=\"Yes\",'TSA Input'!J3431=\"Contingent\"),'TSA Input'!D3431,\"\"))","v":""},{"$f":"IF('TSA Input'!J3431=\"\",\"\",IF(OR('TSA Input'!J3431=\"Yes\",'TSA Input'!J3431=\"Contingent\"),'TSA Input'!G3431,\"\"))","v":""},{"$f":"IF('TSA Input'!J3431=\"\",\"\",IF(OR('TSA Input'!J3431=\"Yes\",'TSA Input'!J3431=\"Contingent\"),'TSA Input'!F3431,\"\"))","v":""},"","Required","Required"]
["",null,{"$f":"IF('TSA Input'!J3432=\"\",\"\",IF(OR('TSA Input'!J3432=\"Yes\",'TSA Input'!J3432=\"Contingent\"),'TSA Input'!B3432,\"Ineligible\"))","v":""},{"$f":"IF('TSA Input'!J3432=\"\",\"\",IF(OR('TSA Input'!J3432=\"Yes\",'TSA Input'!J3432=\"Contingent\"),'TSA Input'!I3432,\"\"))","v":""},{"$f":"IF('TSA Input'!J3432=\"\",\"\",IF(OR('TSA Input'!J3432=\"Yes\",'TSA Input'!J3432=\"Contingent\"),'TSA Input'!C3432,\"\"))","v":""},{"$f":"IF('TSA Input'!J3432=\"\",\"\",IF(OR('TSA Input'!J3432=\"Yes\",'TSA Input'!J3432=\"Contingent\"),'TSA Input'!D3432,\"\"))","v":""},{"$f":"IF('TSA Input'!J3432=\"\",\"\",IF(OR('TSA Input'!J3432=\"Yes\",'TSA Input'!J3432=\"Contingent\"),'TSA Input'!G3432,\"\"))","v":""},{"$f":"IF('TSA Input'!J3432=\"\",\"\",IF(OR('TSA Input'!J3432=\"Yes\",'TSA Input'!J3432=\"Contingent\"),'TSA Input'!F3432,\"\"))","v":""},"",{"$f":"IF('TSA Input'!J3432=\"\",\"\",IF(OR('TSA Input'!J3432=\"Yes\",'TSA Input'!J3432=\"Contingent\"),'TSA Input'!D3432,\"\"))","v":""},{"$f":"IF('TSA Input'!J3432=\"\",\"\",IF(OR('TSA Input'!J3432=\"Yes\",'TSA Input'!J3432=\"Contingent\"),'TSA Input'!G3432,\"\"))","v":""},{"$f":"IF('TSA Input'!J3432=\"\",\"\",IF(OR('TSA Input'!J3432=\"Yes\",'TSA Input'!J3432=\"Contingent\"),'TSA Input'!F3432,\"\"))","v":""},"","Required","Required"]
["",null,{"$f":"IF('TSA Input'!J3433=\"\",\"\",IF(OR('TSA Input'!J3433=\"Yes\",'TSA Input'!J3433=\"Contingent\"),'TSA Input'!B3433,\"Ineligible\"))","v":""},{"$f":"IF('TSA Input'!J3433=\"\",\"\",IF(OR('TSA Input'!J3433=\"Yes\",'TSA Input'!J3433=\"Contingent\"),'TSA Input'!I3433,\"\"))","v":""},{"$f":"IF('TSA Input'!J3433=\"\",\"\",IF(OR('TSA Input'!J3433=\"Yes\",'TSA Input'!J3433=\"Contingent\"),'TSA Input'!C3433,\"\"))","v":""},{"$f":"IF('TSA Input'!J3433=\"\",\"\",IF(OR('TSA Input'!J3433=\"Yes\",'TSA Input'!J3433=\"Contingent\"),'TSA Input'!D3433,\"\"))","v":""},{"$f":"IF('TSA Input'!J3433=\"\",\"\",IF(OR('TSA Input'!J3433=\"Yes\",'TSA Input'!J3433=\"Contingent\"),'TSA Input'!G3433,\"\"))","v":""},{"$f":"IF('TSA Input'!J3433=\"\",\"\",IF(OR('TSA Input'!J3433=\"Yes\",'TSA Input'!J3433=\"Contingent\"),'TSA Input'!F3433,\"\"))","v":""},"",{"$f":"IF('TSA Input'!J3433=\"\",\"\",IF(OR('TSA Input'!J3433=\"Yes\",'TSA Input'!J3433=\"Contingent\"),'TSA Input'!D3433,\"\"))","v":""},{"$f":"IF('TSA Input'!J3433=\"\",\"\",IF(OR('TSA Input'!J3433=\"Yes\",'TSA Input'!J3433=\"Contingent\"),'TSA Input'!G3433,\"\"))","v":""},{"$f":"IF('TSA Input'!J3433=\"\",\"\",IF(OR('TSA Input'!J3433=\"Yes\",'TSA Input'!J3433=\"Contingent\"),'TSA Input'!F3433,\"\"))","v":""},"","Required","Required"]
["",null,{"$f":"IF('TSA Input'!J3434=\"\",\"\",IF(OR('TSA Input'!J3434=\"Yes\",'TSA Input'!J3434=\"Contingent\"),'TSA Input'!B3434,\"Ineligible\"))","v":""},{"$f":"IF('TSA Input'!J3434=\"\",\"\",IF(OR('TSA Input'!J3434=\"Yes\",'TSA Input'!J3434=\"Contingent\"),'TSA Input'!I3434,\"\"))","v":""},{"$f":"IF('TSA Input'!J3434=\"\",\"\",IF(OR('TSA Input'!J3434=\"Yes\",'TSA Input'!J3434=\"Contingent\"),'TSA Input'!C3434,\"\"))","v":""},{"$f":"IF('TSA Input'!J3434=\"\",\"\",IF(OR('TSA Input'!J3434=\"Yes\",'TSA Input'!J3434=\"Contingent\"),'TSA Input'!D3434,\"\"))","v":""},{"$f":"IF('TSA Input'!J3434=\"\",\"\",IF(OR('TSA Input'!J3434=\"Yes\",'TSA Input'!J3434=\"Contingent\"),'TSA Input'!G3434,\"\"))","v":""},{"$f":"IF('TSA Input'!J3434=\"\",\"\",IF(OR('TSA Input'!J3434=\"Yes\",'TSA Input'!J3434=\"Contingent\"),'TSA Input'!F3434,\"\"))","v":""},"",{"$f":"IF('TSA Input'!J3434=\"\",\"\",IF(OR('TSA Input'!J3434=\"Yes\",'TSA Input'!J3434=\"Contingent\"),'TSA Input'!D3434,\"\"))","v":""},{"$f":"IF('TSA Input'!J3434=\"\",\"\",IF(OR('TSA Input'!J3434=\"Yes\",'TSA Input'!J3434=\"Contingent\"),'TSA Input'!G3434,\"\"))","v":""},{"$f":"IF('TSA Input'!J3434=\"\",\"\",IF(OR('TSA Input'!J3434=\"Yes\",'TSA Input'!J3434=\"Contingent\"),'TSA Input'!F3434,\"\"))","v":""},"","Required","Required"]
["",null,{"$f":"IF('TSA Input'!J3435=\"\",\"\",IF(OR('TSA Input'!J3435=\"Yes\",'TSA Input'!J3435=\"Contingent\"),'TSA Input'!B3435,\"Ineligible\"))","v":""},{"$f":"IF('TSA Input'!J3435=\"\",\"\",IF(OR('TSA Input'!J3435=\"Yes\",'TSA Input'!J3435=\"Contingent\"),'TSA Input'!I3435,\"\"))","v":""},{"$f":"IF('TSA Input'!J3435=\"\",\"\",IF(OR('TSA Input'!J3435=\"Yes\",'TSA Input'!J3435=\"Contingent\"),'TSA Input'!C3435,\"\"))","v":""},{"$f":"IF('TSA Input'!J3435=\"\",\"\",IF(OR('TSA Input'!J3435=\"Yes\",'TSA Input'!J3435=\"Contingent\"),'TSA Input'!D3435,\"\"))","v":""},{"$f":"IF('TSA Input'!J3435=\"\",\"\",IF(OR('TSA Input'!J3435=\"Yes\",'TSA Input'!J3435=\"Contingent\"),'TSA Input'!G3435,\"\"))","v":""},{"$f":"IF('TSA Input'!J3435=\"\",\"\",IF(OR('TSA Input'!J3435=\"Yes\",'TSA Input'!J3435=\"Contingent\"),'TSA Input'!F3435,\"\"))","v":""},"",{"$f":"IF('TSA Input'!J3435=\"\",\"\",IF(OR('TSA Input'!J3435=\"Yes\",'TSA Input'!J3435=\"Contingent\"),'TSA Input'!D3435,\"\"))","v":""},{"$f":"IF('TSA Input'!J3435=\"\",\"\",IF(OR('TSA Input'!J3435=\"Yes\",'TSA Input'!J3435=\"Contingent\"),'TSA Input'!G3435,\"\"))","v":""},{"$f":"IF('TSA Input'!J3435=\"\",\"\",IF(OR('TSA Input'!J3435=\"Yes\",'TSA Input'!J3435=\"Contingent\"),'TSA Input'!F3435,\"\"))","v":""},"","Required","Required"]
["",null,{"$f":"IF('TSA Input'!J3436=\"\",\"\",IF(OR('TSA Input'!J3436=\"Yes\",'TSA Input'!J3436=\"Contingent\"),'TSA Input'!B3436,\"Ineligible\"))","v":""},{"$f":"IF('TSA Input'!J3436=\"\",\"\",IF(OR('TSA Input'!J3436=\"Yes\",'TSA Input'!J3436=\"Contingent\"),'TSA Input'!I3436,\"\"))","v":""},{"$f":"IF('TSA Input'!J3436=\"\",\"\",IF(OR('TSA Input'!J3436=\"Yes\",'TSA Input'!J3436=\"Contingent\"),'TSA Input'!C3436,\"\"))","v":""},{"$f":"IF('TSA Input'!J3436=\"\",\"\",IF(OR('TSA Input'!J3436=\"Yes\",'TSA Input'!J3436=\"Contingent\"),'TSA Input'!D3436,\"\"))","v":""},{"$f":"IF('TSA Input'!J3436=\"\",\"\",IF(OR('TSA Input'!J3436=\"Yes\",'TSA Input'!J3436=\"Contingent\"),'TSA Input'!G3436,\"\"))","v":""},{"$f":"IF('TSA Input'!J3436=\"\",\"\",IF(OR('TSA Input'!J3436=\"Yes\",'TSA Input'!J3436=\"Contingent\"),'TSA Input'!F3436,\"\"))","v":""},"",{"$f":"IF('TSA Input'!J3436=\"\",\"\",IF(OR('TSA Input'!J3436=\"Yes\",'TSA Input'!J3436=\"Contingent\"),'TSA Input'!D3436,\"\"))","v":""},{"$f":"IF('TSA Input'!J3436=\"\",\"\",IF(OR('TSA Input'!J3436=\"Yes\",'TSA Input'!J3436=\"Contingent\"),'TSA Input'!G3436,\"\"))","v":""},{"$f":"IF('TSA Input'!J3436=\"\",\"\",IF(OR('TSA Input'!J3436=\"Yes\",'TSA Input'!J3436=\"Contingent\"),'TSA Input'!F3436,\"\"))","v":""},"","Required","Required"]
["",null,{"$f":"IF('TSA Input'!J3437=\"\",\"\",IF(OR('TSA Input'!J3437=\"Yes\",'TSA Input'!J3437=\"Contingent\"),'TSA Input'!B3437,\"Ineligible\"))","v":""},{"$f":"IF('TSA Input'!J3437=\"\",\"\",IF(OR('TSA Input'!J3437=\"Yes\",'TSA Input'!J3437=\"Contingent\"),'TSA Input'!I3437,\"\"))","v":""},{"$f":"IF('TSA Input'!J3437=\"\",\"\",IF(OR('TSA Input'!J3437=\"Yes\",'TSA Input'!J3437=\"Contingent\"),'TSA Input'!C3437,\"\"))","v":""},{"$f":"IF('TSA Input'!J3437=\"\",\"\",IF(OR('TSA Input'!J3437=\"Yes\",'TSA Input'!J3437=\"Contingent\"),'TSA Input'!D3437,\"\"))","v":""},{"$f":"IF('TSA Input'!J3437=\"\",\"\",IF(OR('TSA Input'!J3437=\"Yes\",'TSA Input'!J3437=\"Contingent\"),'TSA Input'!G3437,\"\"))","v":""},{"$f":"IF('TSA Input'!J3437=\"\",\"\",IF(OR('TSA Input'!J3437=\"Yes\",'TSA Input'!J3437=\"Contingent\"),'TSA Input'!F3437,\"\"))","v":""},"",{"$f":"IF('TSA Input'!J3437=\"\",\"\",IF(OR('TSA Input'!J3437=\"Yes\",'TSA Input'!J3437=\"Contingent\"),'TSA Input'!D3437,\"\"))","v":""},{"$f":"IF('TSA Input'!J3437=\"\",\"\",IF(OR('TSA Input'!J3437=\"Yes\",'TSA Input'!J3437=\"Contingent\"),'TSA Input'!G3437,\"\"))","v":""},{"$f":"IF('TSA Input'!J3437=\"\",\"\",IF(OR('TSA Input'!J3437=\"Yes\",'TSA Input'!J3437=\"Contingent\"),'TSA Input'!F3437,\"\"))","v":""},"","Required","Required"]
["",null,{"$f":"IF('TSA Input'!J3438=\"\",\"\",IF(OR('TSA Input'!J3438=\"Yes\",'TSA Input'!J3438=\"Contingent\"),'TSA Input'!B3438,\"Ineligible\"))","v":""},{"$f":"IF('TSA Input'!J3438=\"\",\"\",IF(OR('TSA Input'!J3438=\"Yes\",'TSA Input'!J3438=\"Contingent\"),'TSA Input'!I3438,\"\"))","v":""},{"$f":"IF('TSA Input'!J3438=\"\",\"\",IF(OR('TSA Input'!J3438=\"Yes\",'TSA Input'!J3438=\"Contingent\"),'TSA Input'!C3438,\"\"))","v":""},{"$f":"IF('TSA Input'!J3438=\"\",\"\",IF(OR('TSA Input'!J3438=\"Yes\",'TSA Input'!J3438=\"Contingent\"),'TSA Input'!D3438,\"\"))","v":""},{"$f":"IF('TSA Input'!J3438=\"\",\"\",IF(OR('TSA Input'!J3438=\"Yes\",'TSA Input'!J3438=\"Contingent\"),'TSA Input'!G3438,\"\"))","v":""},{"$f":"IF('TSA Input'!J3438=\"\",\"\",IF(OR('TSA Input'!J3438=\"Yes\",'TSA Input'!J3438=\"Contingent\"),'TSA Input'!F3438,\"\"))","v":""},"",{"$f":"IF('TSA Input'!J3438=\"\",\"\",IF(OR('TSA Input'!J3438=\"Yes\",'TSA Input'!J3438=\"Contingent\"),'TSA Input'!D3438,\"\"))","v":""},{"$f":"IF('TSA Input'!J3438=\"\",\"\",IF(OR('TSA Input'!J3438=\"Yes\",'TSA Input'!J3438=\"Contingent\"),'TSA Input'!G3438,\"\"))","v":""},{"$f":"IF('TSA Input'!J3438=\"\",\"\",IF(OR('TSA Input'!J3438=\"Yes\",'TSA Input'!J3438=\"Contingent\"),'TSA Input'!F3438,\"\"))","v":""},"","Required","Required"]
["",null,{"$f":"IF('TSA Input'!J3439=\"\",\"\",IF(OR('TSA Input'!J3439=\"Yes\",'TSA Input'!J3439=\"Contingent\"),'TSA Input'!B3439,\"Ineligible\"))","v":""},{"$f":"IF('TSA Input'!J3439=\"\",\"\",IF(OR('TSA Input'!J3439=\"Yes\",'TSA Input'!J3439=\"Contingent\"),'TSA Input'!I3439,\"\"))","v":""},{"$f":"IF('TSA Input'!J3439=\"\",\"\",IF(OR('TSA Input'!J3439=\"Yes\",'TSA Input'!J3439=\"Contingent\"),'TSA Input'!C3439,\"\"))","v":""},{"$f":"IF('TSA Input'!J3439=\"\",\"\",IF(OR('TSA Input'!J3439=\"Yes\",'TSA Input'!J3439=\"Contingent\"),'TSA Input'!D3439,\"\"))","v":""},{"$f":"IF('TSA Input'!J3439=\"\",\"\",IF(OR('TSA Input'!J3439=\"Yes\",'TSA Input'!J3439=\"Contingent\"),'TSA Input'!G3439,\"\"))","v":""},{"$f":"IF('TSA Input'!J3439=\"\",\"\",IF(OR('TSA Input'!J3439=\"Yes\",'TSA Input'!J3439=\"Contingent\"),'TSA Input'!F3439,\"\"))","v":""},"",{"$f":"IF('TSA Input'!J3439=\"\",\"\",IF(OR('TSA Input'!J3439=\"Yes\",'TSA Input'!J3439=\"Contingent\"),'TSA Input'!D3439,\"\"))","v":""},{"$f":"IF('TSA Input'!J3439=\"\",\"\",IF(OR('TSA Input'!J3439=\"Yes\",'TSA Input'!J3439=\"Contingent\"),'TSA Input'!G3439,\"\"))","v":""},{"$f":"IF('TSA Input'!J3439=\"\",\"\",IF(OR('TSA Input'!J3439=\"Yes\",'TSA Input'!J3439=\"Contingent\"),'TSA Input'!F3439,\"\"))","v":""},"","Required","Required"]
["",null,{"$f":"IF('TSA Input'!J3440=\"\",\"\",IF(OR('TSA Input'!J3440=\"Yes\",'TSA Input'!J3440=\"Contingent\"),'TSA Input'!B3440,\"Ineligible\"))","v":""},{"$f":"IF('TSA Input'!J3440=\"\",\"\",IF(OR('TSA Input'!J3440=\"Yes\",'TSA Input'!J3440=\"Contingent\"),'TSA Input'!I3440,\"\"))","v":""},{"$f":"IF('TSA Input'!J3440=\"\",\"\",IF(OR('TSA Input'!J3440=\"Yes\",'TSA Input'!J3440=\"Contingent\"),'TSA Input'!C3440,\"\"))","v":""},{"$f":"IF('TSA Input'!J3440=\"\",\"\",IF(OR('TSA Input'!J3440=\"Yes\",'TSA Input'!J3440=\"Contingent\"),'TSA Input'!D3440,\"\"))","v":""},{"$f":"IF('TSA Input'!J3440=\"\",\"\",IF(OR('TSA Input'!J3440=\"Yes\",'TSA Input'!J3440=\"Contingent\"),'TSA Input'!G3440,\"\"))","v":""},{"$f":"IF('TSA Input'!J3440=\"\",\"\",IF(OR('TSA Input'!J3440=\"Yes\",'TSA Input'!J3440=\"Contingent\"),'TSA Input'!F3440,\"\"))","v":""},"",{"$f":"IF('TSA Input'!J3440=\"\",\"\",IF(OR('TSA Input'!J3440=\"Yes\",'TSA Input'!J3440=\"Contingent\"),'TSA Input'!D3440,\"\"))","v":""},{"$f":"IF('TSA Input'!J3440=\"\",\"\",IF(OR('TSA Input'!J3440=\"Yes\",'TSA Input'!J3440=\"Contingent\"),'TSA Input'!G3440,\"\"))","v":""},{"$f":"IF('TSA Input'!J3440=\"\",\"\",IF(OR('TSA Input'!J3440=\"Yes\",'TSA Input'!J3440=\"Contingent\"),'TSA Input'!F3440,\"\"))","v":""},"","Required","Required"]
["",null,{"$f":"IF('TSA Input'!J3441=\"\",\"\",IF(OR('TSA Input'!J3441=\"Yes\",'TSA Input'!J3441=\"Contingent\"),'TSA Input'!B3441,\"Ineligible\"))","v":""},{"$f":"IF('TSA Input'!J3441=\"\",\"\",IF(OR('TSA Input'!J3441=\"Yes\",'TSA Input'!J3441=\"Contingent\"),'TSA Input'!I3441,\"\"))","v":""},{"$f":"IF('TSA Input'!J3441=\"\",\"\",IF(OR('TSA Input'!J3441=\"Yes\",'TSA Input'!J3441=\"Contingent\"),'TSA Input'!C3441,\"\"))","v":""},{"$f":"IF('TSA Input'!J3441=\"\",\"\",IF(OR('TSA Input'!J3441=\"Yes\",'TSA Input'!J3441=\"Contingent\"),'TSA Input'!D3441,\"\"))","v":""},{"$f":"IF('TSA Input'!J3441=\"\",\"\",IF(OR('TSA Input'!J3441=\"Yes\",'TSA Input'!J3441=\"Contingent\"),'TSA Input'!G3441,\"\"))","v":""},{"$f":"IF('TSA Input'!J3441=\"\",\"\",IF(OR('TSA Input'!J3441=\"Yes\",'TSA Input'!J3441=\"Contingent\"),'TSA Input'!F3441,\"\"))","v":""},"",{"$f":"IF('TSA Input'!J3441=\"\",\"\",IF(OR('TSA Input'!J3441=\"Yes\",'TSA Input'!J3441=\"Contingent\"),'TSA Input'!D3441,\"\"))","v":""},{"$f":"IF('TSA Input'!J3441=\"\",\"\",IF(OR('TSA Input'!J3441=\"Yes\",'TSA Input'!J3441=\"Contingent\"),'TSA Input'!G3441,\"\"))","v":""},{"$f":"IF('TSA Input'!J3441=\"\",\"\",IF(OR('TSA Input'!J3441=\"Yes\",'TSA Input'!J3441=\"Contingent\"),'TSA Input'!F3441,\"\"))","v":""},"","Required","Required"]
["",null,{"$f":"IF('TSA Input'!J3442=\"\",\"\",IF(OR('TSA Input'!J3442=\"Yes\",'TSA Input'!J3442=\"Contingent\"),'TSA Input'!B3442,\"Ineligible\"))","v":""},{"$f":"IF('TSA Input'!J3442=\"\",\"\",IF(OR('TSA Input'!J3442=\"Yes\",'TSA Input'!J3442=\"Contingent\"),'TSA Input'!I3442,\"\"))","v":""},{"$f":"IF('TSA Input'!J3442=\"\",\"\",IF(OR('TSA Input'!J3442=\"Yes\",'TSA Input'!J3442=\"Contingent\"),'TSA Input'!C3442,\"\"))","v":""},{"$f":"IF('TSA Input'!J3442=\"\",\"\",IF(OR('TSA Input'!J3442=\"Yes\",'TSA Input'!J3442=\"Contingent\"),'TSA Input'!D3442,\"\"))","v":""},{"$f":"IF('TSA Input'!J3442=\"\",\"\",IF(OR('TSA Input'!J3442=\"Yes\",'TSA Input'!J3442=\"Contingent\"),'TSA Input'!G3442,\"\"))","v":""},{"$f":"IF('TSA Input'!J3442=\"\",\"\",IF(OR('TSA Input'!J3442=\"Yes\",'TSA Input'!J3442=\"Contingent\"),'TSA Input'!F3442,\"\"))","v":""},"",{"$f":"IF('TSA Input'!J3442=\"\",\"\",IF(OR('TSA Input'!J3442=\"Yes\",'TSA Input'!J3442=\"Contingent\"),'TSA Input'!D3442,\"\"))","v":""},{"$f":"IF('TSA Input'!J3442=\"\",\"\",IF(OR('TSA Input'!J3442=\"Yes\",'TSA Input'!J3442=\"Contingent\"),'TSA Input'!G3442,\"\"))","v":""},{"$f":"IF('TSA Input'!J3442=\"\",\"\",IF(OR('TSA Input'!J3442=\"Yes\",'TSA Input'!J3442=\"Contingent\"),'TSA Input'!F3442,\"\"))","v":""},"","Required","Required"]
["",null,{"$f":"IF('TSA Input'!J3443=\"\",\"\",IF(OR('TSA Input'!J3443=\"Yes\",'TSA Input'!J3443=\"Contingent\"),'TSA Input'!B3443,\"Ineligible\"))","v":""},{"$f":"IF('TSA Input'!J3443=\"\",\"\",IF(OR('TSA Input'!J3443=\"Yes\",'TSA Input'!J3443=\"Contingent\"),'TSA Input'!I3443,\"\"))","v":""},{"$f":"IF('TSA Input'!J3443=\"\",\"\",IF(OR('TSA Input'!J3443=\"Yes\",'TSA Input'!J3443=\"Contingent\"),'TSA Input'!C3443,\"\"))","v":""},{"$f":"IF('TSA Input'!J3443=\"\",\"\",IF(OR('TSA Input'!J3443=\"Yes\",'TSA Input'!J3443=\"Contingent\"),'TSA Input'!D3443,\"\"))","v":""},{"$f":"IF('TSA Input'!J3443=\"\",\"\",IF(OR('TSA Input'!J3443=\"Yes\",'TSA Input'!J3443=\"Contingent\"),'TSA Input'!G3443,\"\"))","v":""},{"$f":"IF('TSA Input'!J3443=\"\",\"\",IF(OR('TSA Input'!J3443=\"Yes\",'TSA Input'!J3443=\"Contingent\"),'TSA Input'!F3443,\"\"))","v":""},"",{"$f":"IF('TSA Input'!J3443=\"\",\"\",IF(OR('TSA Input'!J3443=\"Yes\",'TSA Input'!J3443=\"Contingent\"),'TSA Input'!D3443,\"\"))","v":""},{"$f":"IF('TSA Input'!J3443=\"\",\"\",IF(OR('TSA Input'!J3443=\"Yes\",'TSA Input'!J3443=\"Contingent\"),'TSA Input'!G3443,\"\"))","v":""},{"$f":"IF('TSA Input'!J3443=\"\",\"\",IF(OR('TSA Input'!J3443=\"Yes\",'TSA Input'!J3443=\"Contingent\"),'TSA Input'!F3443,\"\"))","v":""},"","Required","Required"]
["",null,{"$f":"IF('TSA Input'!J3444=\"\",\"\",IF(OR('TSA Input'!J3444=\"Yes\",'TSA Input'!J3444=\"Contingent\"),'TSA Input'!B3444,\"Ineligible\"))","v":""},{"$f":"IF('TSA Input'!J3444=\"\",\"\",IF(OR('TSA Input'!J3444=\"Yes\",'TSA Input'!J3444=\"Contingent\"),'TSA Input'!I3444,\"\"))","v":""},{"$f":"IF('TSA Input'!J3444=\"\",\"\",IF(OR('TSA Input'!J3444=\"Yes\",'TSA Input'!J3444=\"Contingent\"),'TSA Input'!C3444,\"\"))","v":""},{"$f":"IF('TSA Input'!J3444=\"\",\"\",IF(OR('TSA Input'!J3444=\"Yes\",'TSA Input'!J3444=\"Contingent\"),'TSA Input'!D3444,\"\"))","v":""},{"$f":"IF('TSA Input'!J3444=\"\",\"\",IF(OR('TSA Input'!J3444=\"Yes\",'TSA Input'!J3444=\"Contingent\"),'TSA Input'!G3444,\"\"))","v":""},{"$f":"IF('TSA Input'!J3444=\"\",\"\",IF(OR('TSA Input'!J3444=\"Yes\",'TSA Input'!J3444=\"Contingent\"),'TSA Input'!F3444,\"\"))","v":""},"",{"$f":"IF('TSA Input'!J3444=\"\",\"\",IF(OR('TSA Input'!J3444=\"Yes\",'TSA Input'!J3444=\"Contingent\"),'TSA Input'!D3444,\"\"))","v":""},{"$f":"IF('TSA Input'!J3444=\"\",\"\",IF(OR('TSA Input'!J3444=\"Yes\",'TSA Input'!J3444=\"Contingent\"),'TSA Input'!G3444,\"\"))","v":""},{"$f":"IF('TSA Input'!J3444=\"\",\"\",IF(OR('TSA Input'!J3444=\"Yes\",'TSA Input'!J3444=\"Contingent\"),'TSA Input'!F3444,\"\"))","v":""},"","Required","Required"]
["",null,{"$f":"IF('TSA Input'!J3445=\"\",\"\",IF(OR('TSA Input'!J3445=\"Yes\",'TSA Input'!J3445=\"Contingent\"),'TSA Input'!B3445,\"Ineligible\"))","v":""},{"$f":"IF('TSA Input'!J3445=\"\",\"\",IF(OR('TSA Input'!J3445=\"Yes\",'TSA Input'!J3445=\"Contingent\"),'TSA Input'!I3445,\"\"))","v":""},{"$f":"IF('TSA Input'!J3445=\"\",\"\",IF(OR('TSA Input'!J3445=\"Yes\",'TSA Input'!J3445=\"Contingent\"),'TSA Input'!C3445,\"\"))","v":""},{"$f":"IF('TSA Input'!J3445=\"\",\"\",IF(OR('TSA Input'!J3445=\"Yes\",'TSA Input'!J3445=\"Contingent\"),'TSA Input'!D3445,\"\"))","v":""},{"$f":"IF('TSA Input'!J3445=\"\",\"\",IF(OR('TSA Input'!J3445=\"Yes\",'TSA Input'!J3445=\"Contingent\"),'TSA Input'!G3445,\"\"))","v":""},{"$f":"IF('TSA Input'!J3445=\"\",\"\",IF(OR('TSA Input'!J3445=\"Yes\",'TSA Input'!J3445=\"Contingent\"),'TSA Input'!F3445,\"\"))","v":""},"",{"$f":"IF('TSA Input'!J3445=\"\",\"\",IF(OR('TSA Input'!J3445=\"Yes\",'TSA Input'!J3445=\"Contingent\"),'TSA Input'!D3445,\"\"))","v":""},{"$f":"IF('TSA Input'!J3445=\"\",\"\",IF(OR('TSA Input'!J3445=\"Yes\",'TSA Input'!J3445=\"Contingent\"),'TSA Input'!G3445,\"\"))","v":""},{"$f":"IF('TSA Input'!J3445=\"\",\"\",IF(OR('TSA Input'!J3445=\"Yes\",'TSA Input'!J3445=\"Contingent\"),'TSA Input'!F3445,\"\"))","v":""},"","Required","Required"]
["",null,{"$f":"IF('TSA Input'!J3446=\"\",\"\",IF(OR('TSA Input'!J3446=\"Yes\",'TSA Input'!J3446=\"Contingent\"),'TSA Input'!B3446,\"Ineligible\"))","v":""},{"$f":"IF('TSA Input'!J3446=\"\",\"\",IF(OR('TSA Input'!J3446=\"Yes\",'TSA Input'!J3446=\"Contingent\"),'TSA Input'!I3446,\"\"))","v":""},{"$f":"IF('TSA Input'!J3446=\"\",\"\",IF(OR('TSA Input'!J3446=\"Yes\",'TSA Input'!J3446=\"Contingent\"),'TSA Input'!C3446,\"\"))","v":""},{"$f":"IF('TSA Input'!J3446=\"\",\"\",IF(OR('TSA Input'!J3446=\"Yes\",'TSA Input'!J3446=\"Contingent\"),'TSA Input'!D3446,\"\"))","v":""},{"$f":"IF('TSA Input'!J3446=\"\",\"\",IF(OR('TSA Input'!J3446=\"Yes\",'TSA Input'!J3446=\"Contingent\"),'TSA Input'!G3446,\"\"))","v":""},{"$f":"IF('TSA Input'!J3446=\"\",\"\",IF(OR('TSA Input'!J3446=\"Yes\",'TSA Input'!J3446=\"Contingent\"),'TSA Input'!F3446,\"\"))","v":""},"",{"$f":"IF('TSA Input'!J3446=\"\",\"\",IF(OR('TSA Input'!J3446=\"Yes\",'TSA Input'!J3446=\"Contingent\"),'TSA Input'!D3446,\"\"))","v":""},{"$f":"IF('TSA Input'!J3446=\"\",\"\",IF(OR('TSA Input'!J3446=\"Yes\",'TSA Input'!J3446=\"Contingent\"),'TSA Input'!G3446,\"\"))","v":""},{"$f":"IF('TSA Input'!J3446=\"\",\"\",IF(OR('TSA Input'!J3446=\"Yes\",'TSA Input'!J3446=\"Contingent\"),'TSA Input'!F3446,\"\"))","v":""},"","Required","Required"]
["",null,{"$f":"IF('TSA Input'!J3447=\"\",\"\",IF(OR('TSA Input'!J3447=\"Yes\",'TSA Input'!J3447=\"Contingent\"),'TSA Input'!B3447,\"Ineligible\"))","v":""},{"$f":"IF('TSA Input'!J3447=\"\",\"\",IF(OR('TSA Input'!J3447=\"Yes\",'TSA Input'!J3447=\"Contingent\"),'TSA Input'!I3447,\"\"))","v":""},{"$f":"IF('TSA Input'!J3447=\"\",\"\",IF(OR('TSA Input'!J3447=\"Yes\",'TSA Input'!J3447=\"Contingent\"),'TSA Input'!C3447,\"\"))","v":""},{"$f":"IF('TSA Input'!J3447=\"\",\"\",IF(OR('TSA Input'!J3447=\"Yes\",'TSA Input'!J3447=\"Contingent\"),'TSA Input'!D3447,\"\"))","v":""},{"$f":"IF('TSA Input'!J3447=\"\",\"\",IF(OR('TSA Input'!J3447=\"Yes\",'TSA Input'!J3447=\"Contingent\"),'TSA Input'!G3447,\"\"))","v":""},{"$f":"IF('TSA Input'!J3447=\"\",\"\",IF(OR('TSA Input'!J3447=\"Yes\",'TSA Input'!J3447=\"Contingent\"),'TSA Input'!F3447,\"\"))","v":""},"",{"$f":"IF('TSA Input'!J3447=\"\",\"\",IF(OR('TSA Input'!J3447=\"Yes\",'TSA Input'!J3447=\"Contingent\"),'TSA Input'!D3447,\"\"))","v":""},{"$f":"IF('TSA Input'!J3447=\"\",\"\",IF(OR('TSA Input'!J3447=\"Yes\",'TSA Input'!J3447=\"Contingent\"),'TSA Input'!G3447,\"\"))","v":""},{"$f":"IF('TSA Input'!J3447=\"\",\"\",IF(OR('TSA Input'!J3447=\"Yes\",'TSA Input'!J3447=\"Contingent\"),'TSA Input'!F3447,\"\"))","v":""},"","Required","Required"]
["",null,{"$f":"IF('TSA Input'!J3448=\"\",\"\",IF(OR('TSA Input'!J3448=\"Yes\",'TSA Input'!J3448=\"Contingent\"),'TSA Input'!B3448,\"Ineligible\"))","v":""},{"$f":"IF('TSA Input'!J3448=\"\",\"\",IF(OR('TSA Input'!J3448=\"Yes\",'TSA Input'!J3448=\"Contingent\"),'TSA Input'!I3448,\"\"))","v":""},{"$f":"IF('TSA Input'!J3448=\"\",\"\",IF(OR('TSA Input'!J3448=\"Yes\",'TSA Input'!J3448=\"Contingent\"),'TSA Input'!C3448,\"\"))","v":""},{"$f":"IF('TSA Input'!J3448=\"\",\"\",IF(OR('TSA Input'!J3448=\"Yes\",'TSA Input'!J3448=\"Contingent\"),'TSA Input'!D3448,\"\"))","v":""},{"$f":"IF('TSA Input'!J3448=\"\",\"\",IF(OR('TSA Input'!J3448=\"Yes\",'TSA Input'!J3448=\"Contingent\"),'TSA Input'!G3448,\"\"))","v":""},{"$f":"IF('TSA Input'!J3448=\"\",\"\",IF(OR('TSA Input'!J3448=\"Yes\",'TSA Input'!J3448=\"Contingent\"),'TSA Input'!F3448,\"\"))","v":""},"",{"$f":"IF('TSA Input'!J3448=\"\",\"\",IF(OR('TSA Input'!J3448=\"Yes\",'TSA Input'!J3448=\"Contingent\"),'TSA Input'!D3448,\"\"))","v":""},{"$f":"IF('TSA Input'!J3448=\"\",\"\",IF(OR('TSA Input'!J3448=\"Yes\",'TSA Input'!J3448=\"Contingent\"),'TSA Input'!G3448,\"\"))","v":""},{"$f":"IF('TSA Input'!J3448=\"\",\"\",IF(OR('TSA Input'!J3448=\"Yes\",'TSA Input'!J3448=\"Contingent\"),'TSA Input'!F3448,\"\"))","v":""},"","Required","Required"]
["",null,{"$f":"IF('TSA Input'!J3449=\"\",\"\",IF(OR('TSA Input'!J3449=\"Yes\",'TSA Input'!J3449=\"Contingent\"),'TSA Input'!B3449,\"Ineligible\"))","v":""},{"$f":"IF('TSA Input'!J3449=\"\",\"\",IF(OR('TSA Input'!J3449=\"Yes\",'TSA Input'!J3449=\"Contingent\"),'TSA Input'!I3449,\"\"))","v":""},{"$f":"IF('TSA Input'!J3449=\"\",\"\",IF(OR('TSA Input'!J3449=\"Yes\",'TSA Input'!J3449=\"Contingent\"),'TSA Input'!C3449,\"\"))","v":""},{"$f":"IF('TSA Input'!J3449=\"\",\"\",IF(OR('TSA Input'!J3449=\"Yes\",'TSA Input'!J3449=\"Contingent\"),'TSA Input'!D3449,\"\"))","v":""},{"$f":"IF('TSA Input'!J3449=\"\",\"\",IF(OR('TSA Input'!J3449=\"Yes\",'TSA Input'!J3449=\"Contingent\"),'TSA Input'!G3449,\"\"))","v":""},{"$f":"IF('TSA Input'!J3449=\"\",\"\",IF(OR('TSA Input'!J3449=\"Yes\",'TSA Input'!J3449=\"Contingent\"),'TSA Input'!F3449,\"\"))","v":""},"",{"$f":"IF('TSA Input'!J3449=\"\",\"\",IF(OR('TSA Input'!J3449=\"Yes\",'TSA Input'!J3449=\"Contingent\"),'TSA Input'!D3449,\"\"))","v":""},{"$f":"IF('TSA Input'!J3449=\"\",\"\",IF(OR('TSA Input'!J3449=\"Yes\",'TSA Input'!J3449=\"Contingent\"),'TSA Input'!G3449,\"\"))","v":""},{"$f":"IF('TSA Input'!J3449=\"\",\"\",IF(OR('TSA Input'!J3449=\"Yes\",'TSA Input'!J3449=\"Contingent\"),'TSA Input'!F3449,\"\"))","v":""},"","Required","Required"]
["",null,{"$f":"IF('TSA Input'!J3450=\"\",\"\",IF(OR('TSA Input'!J3450=\"Yes\",'TSA Input'!J3450=\"Contingent\"),'TSA Input'!B3450,\"Ineligible\"))","v":""},{"$f":"IF('TSA Input'!J3450=\"\",\"\",IF(OR('TSA Input'!J3450=\"Yes\",'TSA Input'!J3450=\"Contingent\"),'TSA Input'!I3450,\"\"))","v":""},{"$f":"IF('TSA Input'!J3450=\"\",\"\",IF(OR('TSA Input'!J3450=\"Yes\",'TSA Input'!J3450=\"Contingent\"),'TSA Input'!C3450,\"\"))","v":""},{"$f":"IF('TSA Input'!J3450=\"\",\"\",IF(OR('TSA Input'!J3450=\"Yes\",'TSA Input'!J3450=\"Contingent\"),'TSA Input'!D3450,\"\"))","v":""},{"$f":"IF('TSA Input'!J3450=\"\",\"\",IF(OR('TSA Input'!J3450=\"Yes\",'TSA Input'!J3450=\"Contingent\"),'TSA Input'!G3450,\"\"))","v":""},{"$f":"IF('TSA Input'!J3450=\"\",\"\",IF(OR('TSA Input'!J3450=\"Yes\",'TSA Input'!J3450=\"Contingent\"),'TSA Input'!F3450,\"\"))","v":""},"",{"$f":"IF('TSA Input'!J3450=\"\",\"\",IF(OR('TSA Input'!J3450=\"Yes\",'TSA Input'!J3450=\"Contingent\"),'TSA Input'!D3450,\"\"))","v":""},{"$f":"IF('TSA Input'!J3450=\"\",\"\",IF(OR('TSA Input'!J3450=\"Yes\",'TSA Input'!J3450=\"Contingent\"),'TSA Input'!G3450,\"\"))","v":""},{"$f":"IF('TSA Input'!J3450=\"\",\"\",IF(OR('TSA Input'!J3450=\"Yes\",'TSA Input'!J3450=\"Contingent\"),'TSA Input'!F3450,\"\"))","v":""},"","Required","Required"]
["",null,{"$f":"IF('TSA Input'!J3451=\"\",\"\",IF(OR('TSA Input'!J3451=\"Yes\",'TSA Input'!J3451=\"Contingent\"),'TSA Input'!B3451,\"Ineligible\"))","v":""},{"$f":"IF('TSA Input'!J3451=\"\",\"\",IF(OR('TSA Input'!J3451=\"Yes\",'TSA Input'!J3451=\"Contingent\"),'TSA Input'!I3451,\"\"))","v":""},{"$f":"IF('TSA Input'!J3451=\"\",\"\",IF(OR('TSA Input'!J3451=\"Yes\",'TSA Input'!J3451=\"Contingent\"),'TSA Input'!C3451,\"\"))","v":""},{"$f":"IF('TSA Input'!J3451=\"\",\"\",IF(OR('TSA Input'!J3451=\"Yes\",'TSA Input'!J3451=\"Contingent\"),'TSA Input'!D3451,\"\"))","v":""},{"$f":"IF('TSA Input'!J3451=\"\",\"\",IF(OR('TSA Input'!J3451=\"Yes\",'TSA Input'!J3451=\"Contingent\"),'TSA Input'!G3451,\"\"))","v":""},{"$f":"IF('TSA Input'!J3451=\"\",\"\",IF(OR('TSA Input'!J3451=\"Yes\",'TSA Input'!J3451=\"Contingent\"),'TSA Input'!F3451,\"\"))","v":""},"",{"$f":"IF('TSA Input'!J3451=\"\",\"\",IF(OR('TSA Input'!J3451=\"Yes\",'TSA Input'!J3451=\"Contingent\"),'TSA Input'!D3451,\"\"))","v":""},{"$f":"IF('TSA Input'!J3451=\"\",\"\",IF(OR('TSA Input'!J3451=\"Yes\",'TSA Input'!J3451=\"Contingent\"),'TSA Input'!G3451,\"\"))","v":""},{"$f":"IF('TSA Input'!J3451=\"\",\"\",IF(OR('TSA Input'!J3451=\"Yes\",'TSA Input'!J3451=\"Contingent\"),'TSA Input'!F3451,\"\"))","v":""},"","Required","Required"]
["",null,{"$f":"IF('TSA Input'!J3452=\"\",\"\",IF(OR('TSA Input'!J3452=\"Yes\",'TSA Input'!J3452=\"Contingent\"),'TSA Input'!B3452,\"Ineligible\"))","v":""},{"$f":"IF('TSA Input'!J3452=\"\",\"\",IF(OR('TSA Input'!J3452=\"Yes\",'TSA Input'!J3452=\"Contingent\"),'TSA Input'!I3452,\"\"))","v":""},{"$f":"IF('TSA Input'!J3452=\"\",\"\",IF(OR('TSA Input'!J3452=\"Yes\",'TSA Input'!J3452=\"Contingent\"),'TSA Input'!C3452,\"\"))","v":""},{"$f":"IF('TSA Input'!J3452=\"\",\"\",IF(OR('TSA Input'!J3452=\"Yes\",'TSA Input'!J3452=\"Contingent\"),'TSA Input'!D3452,\"\"))","v":""},{"$f":"IF('TSA Input'!J3452=\"\",\"\",IF(OR('TSA Input'!J3452=\"Yes\",'TSA Input'!J3452=\"Contingent\"),'TSA Input'!G3452,\"\"))","v":""},{"$f":"IF('TSA Input'!J3452=\"\",\"\",IF(OR('TSA Input'!J3452=\"Yes\",'TSA Input'!J3452=\"Contingent\"),'TSA Input'!F3452,\"\"))","v":""},"",{"$f":"IF('TSA Input'!J3452=\"\",\"\",IF(OR('TSA Input'!J3452=\"Yes\",'TSA Input'!J3452=\"Contingent\"),'TSA Input'!D3452,\"\"))","v":""},{"$f":"IF('TSA Input'!J3452=\"\",\"\",IF(OR('TSA Input'!J3452=\"Yes\",'TSA Input'!J3452=\"Contingent\"),'TSA Input'!G3452,\"\"))","v":""},{"$f":"IF('TSA Input'!J3452=\"\",\"\",IF(OR('TSA Input'!J3452=\"Yes\",'TSA Input'!J3452=\"Contingent\"),'TSA Input'!F3452,\"\"))","v":""},"","Required","Required"]
["",null,{"$f":"IF('TSA Input'!J3453=\"\",\"\",IF(OR('TSA Input'!J3453=\"Yes\",'TSA Input'!J3453=\"Contingent\"),'TSA Input'!B3453,\"Ineligible\"))","v":""},{"$f":"IF('TSA Input'!J3453=\"\",\"\",IF(OR('TSA Input'!J3453=\"Yes\",'TSA Input'!J3453=\"Contingent\"),'TSA Input'!I3453,\"\"))","v":""},{"$f":"IF('TSA Input'!J3453=\"\",\"\",IF(OR('TSA Input'!J3453=\"Yes\",'TSA Input'!J3453=\"Contingent\"),'TSA Input'!C3453,\"\"))","v":""},{"$f":"IF('TSA Input'!J3453=\"\",\"\",IF(OR('TSA Input'!J3453=\"Yes\",'TSA Input'!J3453=\"Contingent\"),'TSA Input'!D3453,\"\"))","v":""},{"$f":"IF('TSA Input'!J3453=\"\",\"\",IF(OR('TSA Input'!J3453=\"Yes\",'TSA Input'!J3453=\"Contingent\"),'TSA Input'!G3453,\"\"))","v":""},{"$f":"IF('TSA Input'!J3453=\"\",\"\",IF(OR('TSA Input'!J3453=\"Yes\",'TSA Input'!J3453=\"Contingent\"),'TSA Input'!F3453,\"\"))","v":""},"",{"$f":"IF('TSA Input'!J3453=\"\",\"\",IF(OR('TSA Input'!J3453=\"Yes\",'TSA Input'!J3453=\"Contingent\"),'TSA Input'!D3453,\"\"))","v":""},{"$f":"IF('TSA Input'!J3453=\"\",\"\",IF(OR('TSA Input'!J3453=\"Yes\",'TSA Input'!J3453=\"Contingent\"),'TSA Input'!G3453,\"\"))","v":""},{"$f":"IF('TSA Input'!J3453=\"\",\"\",IF(OR('TSA Input'!J3453=\"Yes\",'TSA Input'!J3453=\"Contingent\"),'TSA Input'!F3453,\"\"))","v":""},"","Required","Required"]
["",null,{"$f":"IF('TSA Input'!J3454=\"\",\"\",IF(OR('TSA Input'!J3454=\"Yes\",'TSA Input'!J3454=\"Contingent\"),'TSA Input'!B3454,\"Ineligible\"))","v":""},{"$f":"IF('TSA Input'!J3454=\"\",\"\",IF(OR('TSA Input'!J3454=\"Yes\",'TSA Input'!J3454=\"Contingent\"),'TSA Input'!I3454,\"\"))","v":""},{"$f":"IF('TSA Input'!J3454=\"\",\"\",IF(OR('TSA Input'!J3454=\"Yes\",'TSA Input'!J3454=\"Contingent\"),'TSA Input'!C3454,\"\"))","v":""},{"$f":"IF('TSA Input'!J3454=\"\",\"\",IF(OR('TSA Input'!J3454=\"Yes\",'TSA Input'!J3454=\"Contingent\"),'TSA Input'!D3454,\"\"))","v":""},{"$f":"IF('TSA Input'!J3454=\"\",\"\",IF(OR('TSA Input'!J3454=\"Yes\",'TSA Input'!J3454=\"Contingent\"),'TSA Input'!G3454,\"\"))","v":""},{"$f":"IF('TSA Input'!J3454=\"\",\"\",IF(OR('TSA Input'!J3454=\"Yes\",'TSA Input'!J3454=\"Contingent\"),'TSA Input'!F3454,\"\"))","v":""},"",{"$f":"IF('TSA Input'!J3454=\"\",\"\",IF(OR('TSA Input'!J3454=\"Yes\",'TSA Input'!J3454=\"Contingent\"),'TSA Input'!D3454,\"\"))","v":""},{"$f":"IF('TSA Input'!J3454=\"\",\"\",IF(OR('TSA Input'!J3454=\"Yes\",'TSA Input'!J3454=\"Contingent\"),'TSA Input'!G3454,\"\"))","v":""},{"$f":"IF('TSA Input'!J3454=\"\",\"\",IF(OR('TSA Input'!J3454=\"Yes\",'TSA Input'!J3454=\"Contingent\"),'TSA Input'!F3454,\"\"))","v":""},"","Required","Required"]
["",null,{"$f":"IF('TSA Input'!J3455=\"\",\"\",IF(OR('TSA Input'!J3455=\"Yes\",'TSA Input'!J3455=\"Contingent\"),'TSA Input'!B3455,\"Ineligible\"))","v":""},{"$f":"IF('TSA Input'!J3455=\"\",\"\",IF(OR('TSA Input'!J3455=\"Yes\",'TSA Input'!J3455=\"Contingent\"),'TSA Input'!I3455,\"\"))","v":""},{"$f":"IF('TSA Input'!J3455=\"\",\"\",IF(OR('TSA Input'!J3455=\"Yes\",'TSA Input'!J3455=\"Contingent\"),'TSA Input'!C3455,\"\"))","v":""},{"$f":"IF('TSA Input'!J3455=\"\",\"\",IF(OR('TSA Input'!J3455=\"Yes\",'TSA Input'!J3455=\"Contingent\"),'TSA Input'!D3455,\"\"))","v":""},{"$f":"IF('TSA Input'!J3455=\"\",\"\",IF(OR('TSA Input'!J3455=\"Yes\",'TSA Input'!J3455=\"Contingent\"),'TSA Input'!G3455,\"\"))","v":""},{"$f":"IF('TSA Input'!J3455=\"\",\"\",IF(OR('TSA Input'!J3455=\"Yes\",'TSA Input'!J3455=\"Contingent\"),'TSA Input'!F3455,\"\"))","v":""},"",{"$f":"IF('TSA Input'!J3455=\"\",\"\",IF(OR('TSA Input'!J3455=\"Yes\",'TSA Input'!J3455=\"Contingent\"),'TSA Input'!D3455,\"\"))","v":""},{"$f":"IF('TSA Input'!J3455=\"\",\"\",IF(OR('TSA Input'!J3455=\"Yes\",'TSA Input'!J3455=\"Contingent\"),'TSA Input'!G3455,\"\"))","v":""},{"$f":"IF('TSA Input'!J3455=\"\",\"\",IF(OR('TSA Input'!J3455=\"Yes\",'TSA Input'!J3455=\"Contingent\"),'TSA Input'!F3455,\"\"))","v":""},"","Required","Required"]
["",null,{"$f":"IF('TSA Input'!J3456=\"\",\"\",IF(OR('TSA Input'!J3456=\"Yes\",'TSA Input'!J3456=\"Contingent\"),'TSA Input'!B3456,\"Ineligible\"))","v":""},{"$f":"IF('TSA Input'!J3456=\"\",\"\",IF(OR('TSA Input'!J3456=\"Yes\",'TSA Input'!J3456=\"Contingent\"),'TSA Input'!I3456,\"\"))","v":""},{"$f":"IF('TSA Input'!J3456=\"\",\"\",IF(OR('TSA Input'!J3456=\"Yes\",'TSA Input'!J3456=\"Contingent\"),'TSA Input'!C3456,\"\"))","v":""},{"$f":"IF('TSA Input'!J3456=\"\",\"\",IF(OR('TSA Input'!J3456=\"Yes\",'TSA Input'!J3456=\"Contingent\"),'TSA Input'!D3456,\"\"))","v":""},{"$f":"IF('TSA Input'!J3456=\"\",\"\",IF(OR('TSA Input'!J3456=\"Yes\",'TSA Input'!J3456=\"Contingent\"),'TSA Input'!G3456,\"\"))","v":""},{"$f":"IF('TSA Input'!J3456=\"\",\"\",IF(OR('TSA Input'!J3456=\"Yes\",'TSA Input'!J3456=\"Contingent\"),'TSA Input'!F3456,\"\"))","v":""},"",{"$f":"IF('TSA Input'!J3456=\"\",\"\",IF(OR('TSA Input'!J3456=\"Yes\",'TSA Input'!J3456=\"Contingent\"),'TSA Input'!D3456,\"\"))","v":""},{"$f":"IF('TSA Input'!J3456=\"\",\"\",IF(OR('TSA Input'!J3456=\"Yes\",'TSA Input'!J3456=\"Contingent\"),'TSA Input'!G3456,\"\"))","v":""},{"$f":"IF('TSA Input'!J3456=\"\",\"\",IF(OR('TSA Input'!J3456=\"Yes\",'TSA Input'!J3456=\"Contingent\"),'TSA Input'!F3456,\"\"))","v":""},"","Required","Required"]
["",null,{"$f":"IF('TSA Input'!J3457=\"\",\"\",IF(OR('TSA Input'!J3457=\"Yes\",'TSA Input'!J3457=\"Contingent\"),'TSA Input'!B3457,\"Ineligible\"))","v":""},{"$f":"IF('TSA Input'!J3457=\"\",\"\",IF(OR('TSA Input'!J3457=\"Yes\",'TSA Input'!J3457=\"Contingent\"),'TSA Input'!I3457,\"\"))","v":""},{"$f":"IF('TSA Input'!J3457=\"\",\"\",IF(OR('TSA Input'!J3457=\"Yes\",'TSA Input'!J3457=\"Contingent\"),'TSA Input'!C3457,\"\"))","v":""},{"$f":"IF('TSA Input'!J3457=\"\",\"\",IF(OR('TSA Input'!J3457=\"Yes\",'TSA Input'!J3457=\"Contingent\"),'TSA Input'!D3457,\"\"))","v":""},{"$f":"IF('TSA Input'!J3457=\"\",\"\",IF(OR('TSA Input'!J3457=\"Yes\",'TSA Input'!J3457=\"Contingent\"),'TSA Input'!G3457,\"\"))","v":""},{"$f":"IF('TSA Input'!J3457=\"\",\"\",IF(OR('TSA Input'!J3457=\"Yes\",'TSA Input'!J3457=\"Contingent\"),'TSA Input'!F3457,\"\"))","v":""},"",{"$f":"IF('TSA Input'!J3457=\"\",\"\",IF(OR('TSA Input'!J3457=\"Yes\",'TSA Input'!J3457=\"Contingent\"),'TSA Input'!D3457,\"\"))","v":""},{"$f":"IF('TSA Input'!J3457=\"\",\"\",IF(OR('TSA Input'!J3457=\"Yes\",'TSA Input'!J3457=\"Contingent\"),'TSA Input'!G3457,\"\"))","v":""},{"$f":"IF('TSA Input'!J3457=\"\",\"\",IF(OR('TSA Input'!J3457=\"Yes\",'TSA Input'!J3457=\"Contingent\"),'TSA Input'!F3457,\"\"))","v":""},"","Required","Required"]
["",null,{"$f":"IF('TSA Input'!J3458=\"\",\"\",IF(OR('TSA Input'!J3458=\"Yes\",'TSA Input'!J3458=\"Contingent\"),'TSA Input'!B3458,\"Ineligible\"))","v":""},{"$f":"IF('TSA Input'!J3458=\"\",\"\",IF(OR('TSA Input'!J3458=\"Yes\",'TSA Input'!J3458=\"Contingent\"),'TSA Input'!I3458,\"\"))","v":""},{"$f":"IF('TSA Input'!J3458=\"\",\"\",IF(OR('TSA Input'!J3458=\"Yes\",'TSA Input'!J3458=\"Contingent\"),'TSA Input'!C3458,\"\"))","v":""},{"$f":"IF('TSA Input'!J3458=\"\",\"\",IF(OR('TSA Input'!J3458=\"Yes\",'TSA Input'!J3458=\"Contingent\"),'TSA Input'!D3458,\"\"))","v":""},{"$f":"IF('TSA Input'!J3458=\"\",\"\",IF(OR('TSA Input'!J3458=\"Yes\",'TSA Input'!J3458=\"Contingent\"),'TSA Input'!G3458,\"\"))","v":""},{"$f":"IF('TSA Input'!J3458=\"\",\"\",IF(OR('TSA Input'!J3458=\"Yes\",'TSA Input'!J3458=\"Contingent\"),'TSA Input'!F3458,\"\"))","v":""},"",{"$f":"IF('TSA Input'!J3458=\"\",\"\",IF(OR('TSA Input'!J3458=\"Yes\",'TSA Input'!J3458=\"Contingent\"),'TSA Input'!D3458,\"\"))","v":""},{"$f":"IF('TSA Input'!J3458=\"\",\"\",IF(OR('TSA Input'!J3458=\"Yes\",'TSA Input'!J3458=\"Contingent\"),'TSA Input'!G3458,\"\"))","v":""},{"$f":"IF('TSA Input'!J3458=\"\",\"\",IF(OR('TSA Input'!J3458=\"Yes\",'TSA Input'!J3458=\"Contingent\"),'TSA Input'!F3458,\"\"))","v":""},"","Required","Required"]
["",null,{"$f":"IF('TSA Input'!J3459=\"\",\"\",IF(OR('TSA Input'!J3459=\"Yes\",'TSA Input'!J3459=\"Contingent\"),'TSA Input'!B3459,\"Ineligible\"))","v":""},{"$f":"IF('TSA Input'!J3459=\"\",\"\",IF(OR('TSA Input'!J3459=\"Yes\",'TSA Input'!J3459=\"Contingent\"),'TSA Input'!I3459,\"\"))","v":""},{"$f":"IF('TSA Input'!J3459=\"\",\"\",IF(OR('TSA Input'!J3459=\"Yes\",'TSA Input'!J3459=\"Contingent\"),'TSA Input'!C3459,\"\"))","v":""},{"$f":"IF('TSA Input'!J3459=\"\",\"\",IF(OR('TSA Input'!J3459=\"Yes\",'TSA Input'!J3459=\"Contingent\"),'TSA Input'!D3459,\"\"))","v":""},{"$f":"IF('TSA Input'!J3459=\"\",\"\",IF(OR('TSA Input'!J3459=\"Yes\",'TSA Input'!J3459=\"Contingent\"),'TSA Input'!G3459,\"\"))","v":""},{"$f":"IF('TSA Input'!J3459=\"\",\"\",IF(OR('TSA Input'!J3459=\"Yes\",'TSA Input'!J3459=\"Contingent\"),'TSA Input'!F3459,\"\"))","v":""},"",{"$f":"IF('TSA Input'!J3459=\"\",\"\",IF(OR('TSA Input'!J3459=\"Yes\",'TSA Input'!J3459=\"Contingent\"),'TSA Input'!D3459,\"\"))","v":""},{"$f":"IF('TSA Input'!J3459=\"\",\"\",IF(OR('TSA Input'!J3459=\"Yes\",'TSA Input'!J3459=\"Contingent\"),'TSA Input'!G3459,\"\"))","v":""},{"$f":"IF('TSA Input'!J3459=\"\",\"\",IF(OR('TSA Input'!J3459=\"Yes\",'TSA Input'!J3459=\"Contingent\"),'TSA Input'!F3459,\"\"))","v":""},"","Required","Required"]
["",null,{"$f":"IF('TSA Input'!J3460=\"\",\"\",IF(OR('TSA Input'!J3460=\"Yes\",'TSA Input'!J3460=\"Contingent\"),'TSA Input'!B3460,\"Ineligible\"))","v":""},{"$f":"IF('TSA Input'!J3460=\"\",\"\",IF(OR('TSA Input'!J3460=\"Yes\",'TSA Input'!J3460=\"Contingent\"),'TSA Input'!I3460,\"\"))","v":""},{"$f":"IF('TSA Input'!J3460=\"\",\"\",IF(OR('TSA Input'!J3460=\"Yes\",'TSA Input'!J3460=\"Contingent\"),'TSA Input'!C3460,\"\"))","v":""},{"$f":"IF('TSA Input'!J3460=\"\",\"\",IF(OR('TSA Input'!J3460=\"Yes\",'TSA Input'!J3460=\"Contingent\"),'TSA Input'!D3460,\"\"))","v":""},{"$f":"IF('TSA Input'!J3460=\"\",\"\",IF(OR('TSA Input'!J3460=\"Yes\",'TSA Input'!J3460=\"Contingent\"),'TSA Input'!G3460,\"\"))","v":""},{"$f":"IF('TSA Input'!J3460=\"\",\"\",IF(OR('TSA Input'!J3460=\"Yes\",'TSA Input'!J3460=\"Contingent\"),'TSA Input'!F3460,\"\"))","v":""},{"$f":"IF($C3498=\"\",\"\",SUM(F3498:H3498))","v":""},{"$f":"IF('TSA Input'!J3460=\"\",\"\",IF(OR('TSA Input'!J3460=\"Yes\",'TSA Input'!J3460=\"Contingent\"),'TSA Input'!D3460,\"\"))","v":""},{"$f":"IF('TSA Input'!J3460=\"\",\"\",IF(OR('TSA Input'!J3460=\"Yes\",'TSA Input'!J3460=\"Contingent\"),'TSA Input'!G3460,\"\"))","v":""},{"$f":"IF('TSA Input'!J3460=\"\",\"\",IF(OR('TSA Input'!J3460=\"Yes\",'TSA Input'!J3460=\"Contingent\"),'TSA Input'!F3460,\"\"))","v":""},{"$f":"IF($C3498=\"\",\"\",SUM(J3498:L3498))","v":""},"Required","Required"]
["",null,{"$f":"IF('TSA Input'!J3461=\"\",\"\",IF(OR('TSA Input'!J3461=\"Yes\",'TSA Input'!J3461=\"Contingent\"),'TSA Input'!B3461,\"Ineligible\"))","v":""},{"$f":"IF('TSA Input'!J3461=\"\",\"\",IF(OR('TSA Input'!J3461=\"Yes\",'TSA Input'!J3461=\"Contingent\"),'TSA Input'!I3461,\"\"))","v":""},{"$f":"IF('TSA Input'!J3461=\"\",\"\",IF(OR('TSA Input'!J3461=\"Yes\",'TSA Input'!J3461=\"Contingent\"),'TSA Input'!C3461,\"\"))","v":""},{"$f":"IF('TSA Input'!J3461=\"\",\"\",IF(OR('TSA Input'!J3461=\"Yes\",'TSA Input'!J3461=\"Contingent\"),'TSA Input'!D3461,\"\"))","v":""},{"$f":"IF('TSA Input'!J3461=\"\",\"\",IF(OR('TSA Input'!J3461=\"Yes\",'TSA Input'!J3461=\"Contingent\"),'TSA Input'!G3461,\"\"))","v":""},{"$f":"IF('TSA Input'!J3461=\"\",\"\",IF(OR('TSA Input'!J3461=\"Yes\",'TSA Input'!J3461=\"Contingent\"),'TSA Input'!F3461,\"\"))","v":""},"",{"$f":"IF('TSA Input'!J3461=\"\",\"\",IF(OR('TSA Input'!J3461=\"Yes\",'TSA Input'!J3461=\"Contingent\"),'TSA Input'!D3461,\"\"))","v":""},{"$f":"IF('TSA Input'!J3461=\"\",\"\",IF(OR('TSA Input'!J3461=\"Yes\",'TSA Input'!J3461=\"Contingent\"),'TSA Input'!G3461,\"\"))","v":""},{"$f":"IF('TSA Input'!J3461=\"\",\"\",IF(OR('TSA Input'!J3461=\"Yes\",'TSA Input'!J3461=\"Contingent\"),'TSA Input'!F3461,\"\"))","v":""},"","Required","Required"]
["",null,{"$f":"IF('TSA Input'!J3462=\"\",\"\",IF(OR('TSA Input'!J3462=\"Yes\",'TSA Input'!J3462=\"Contingent\"),'TSA Input'!B3462,\"Ineligible\"))","v":""},{"$f":"IF('TSA Input'!J3462=\"\",\"\",IF(OR('TSA Input'!J3462=\"Yes\",'TSA Input'!J3462=\"Contingent\"),'TSA Input'!I3462,\"\"))","v":""},{"$f":"IF('TSA Input'!J3462=\"\",\"\",IF(OR('TSA Input'!J3462=\"Yes\",'TSA Input'!J3462=\"Contingent\"),'TSA Input'!C3462,\"\"))","v":""},{"$f":"IF('TSA Input'!J3462=\"\",\"\",IF(OR('TSA Input'!J3462=\"Yes\",'TSA Input'!J3462=\"Contingent\"),'TSA Input'!D3462,\"\"))","v":""},{"$f":"IF('TSA Input'!J3462=\"\",\"\",IF(OR('TSA Input'!J3462=\"Yes\",'TSA Input'!J3462=\"Contingent\"),'TSA Input'!G3462,\"\"))","v":""},{"$f":"IF('TSA Input'!J3462=\"\",\"\",IF(OR('TSA Input'!J3462=\"Yes\",'TSA Input'!J3462=\"Contingent\"),'TSA Input'!F3462,\"\"))","v":""},"",{"$f":"IF('TSA Input'!J3462=\"\",\"\",IF(OR('TSA Input'!J3462=\"Yes\",'TSA Input'!J3462=\"Contingent\"),'TSA Input'!D3462,\"\"))","v":""},{"$f":"IF('TSA Input'!J3462=\"\",\"\",IF(OR('TSA Input'!J3462=\"Yes\",'TSA Input'!J3462=\"Contingent\"),'TSA Input'!G3462,\"\"))","v":""},{"$f":"IF('TSA Input'!J3462=\"\",\"\",IF(OR('TSA Input'!J3462=\"Yes\",'TSA Input'!J3462=\"Contingent\"),'TSA Input'!F3462,\"\"))","v":""},"","Required","Required"]
["",null,{"$f":"IF('TSA Input'!J3463=\"\",\"\",IF(OR('TSA Input'!J3463=\"Yes\",'TSA Input'!J3463=\"Contingent\"),'TSA Input'!B3463,\"Ineligible\"))","v":""},{"$f":"IF('TSA Input'!J3463=\"\",\"\",IF(OR('TSA Input'!J3463=\"Yes\",'TSA Input'!J3463=\"Contingent\"),'TSA Input'!I3463,\"\"))","v":""},{"$f":"IF('TSA Input'!J3463=\"\",\"\",IF(OR('TSA Input'!J3463=\"Yes\",'TSA Input'!J3463=\"Contingent\"),'TSA Input'!C3463,\"\"))","v":""},{"$f":"IF('TSA Input'!J3463=\"\",\"\",IF(OR('TSA Input'!J3463=\"Yes\",'TSA Input'!J3463=\"Contingent\"),'TSA Input'!D3463,\"\"))","v":""},{"$f":"IF('TSA Input'!J3463=\"\",\"\",IF(OR('TSA Input'!J3463=\"Yes\",'TSA Input'!J3463=\"Contingent\"),'TSA Input'!G3463,\"\"))","v":""},{"$f":"IF('TSA Input'!J3463=\"\",\"\",IF(OR('TSA Input'!J3463=\"Yes\",'TSA Input'!J3463=\"Contingent\"),'TSA Input'!F3463,\"\"))","v":""},"",{"$f":"IF('TSA Input'!J3463=\"\",\"\",IF(OR('TSA Input'!J3463=\"Yes\",'TSA Input'!J3463=\"Contingent\"),'TSA Input'!D3463,\"\"))","v":""},{"$f":"IF('TSA Input'!J3463=\"\",\"\",IF(OR('TSA Input'!J3463=\"Yes\",'TSA Input'!J3463=\"Contingent\"),'TSA Input'!G3463,\"\"))","v":""},{"$f":"IF('TSA Input'!J3463=\"\",\"\",IF(OR('TSA Input'!J3463=\"Yes\",'TSA Input'!J3463=\"Contingent\"),'TSA Input'!F3463,\"\"))","v":""},"","Required","Required"]
["",null,{"$f":"IF('TSA Input'!J3464=\"\",\"\",IF(OR('TSA Input'!J3464=\"Yes\",'TSA Input'!J3464=\"Contingent\"),'TSA Input'!B3464,\"Ineligible\"))","v":""},{"$f":"IF('TSA Input'!J3464=\"\",\"\",IF(OR('TSA Input'!J3464=\"Yes\",'TSA Input'!J3464=\"Contingent\"),'TSA Input'!I3464,\"\"))","v":""},{"$f":"IF('TSA Input'!J3464=\"\",\"\",IF(OR('TSA Input'!J3464=\"Yes\",'TSA Input'!J3464=\"Contingent\"),'TSA Input'!C3464,\"\"))","v":""},{"$f":"IF('TSA Input'!J3464=\"\",\"\",IF(OR('TSA Input'!J3464=\"Yes\",'TSA Input'!J3464=\"Contingent\"),'TSA Input'!D3464,\"\"))","v":""},{"$f":"IF('TSA Input'!J3464=\"\",\"\",IF(OR('TSA Input'!J3464=\"Yes\",'TSA Input'!J3464=\"Contingent\"),'TSA Input'!G3464,\"\"))","v":""},{"$f":"IF('TSA Input'!J3464=\"\",\"\",IF(OR('TSA Input'!J3464=\"Yes\",'TSA Input'!J3464=\"Contingent\"),'TSA Input'!F3464,\"\"))","v":""},"",{"$f":"IF('TSA Input'!J3464=\"\",\"\",IF(OR('TSA Input'!J3464=\"Yes\",'TSA Input'!J3464=\"Contingent\"),'TSA Input'!D3464,\"\"))","v":""},{"$f":"IF('TSA Input'!J3464=\"\",\"\",IF(OR('TSA Input'!J3464=\"Yes\",'TSA Input'!J3464=\"Contingent\"),'TSA Input'!G3464,\"\"))","v":""},{"$f":"IF('TSA Input'!J3464=\"\",\"\",IF(OR('TSA Input'!J3464=\"Yes\",'TSA Input'!J3464=\"Contingent\"),'TSA Input'!F3464,\"\"))","v":""},"","Required","Required"]
["",null,{"$f":"IF('TSA Input'!J3465=\"\",\"\",IF(OR('TSA Input'!J3465=\"Yes\",'TSA Input'!J3465=\"Contingent\"),'TSA Input'!B3465,\"Ineligible\"))","v":""},{"$f":"IF('TSA Input'!J3465=\"\",\"\",IF(OR('TSA Input'!J3465=\"Yes\",'TSA Input'!J3465=\"Contingent\"),'TSA Input'!I3465,\"\"))","v":""},{"$f":"IF('TSA Input'!J3465=\"\",\"\",IF(OR('TSA Input'!J3465=\"Yes\",'TSA Input'!J3465=\"Contingent\"),'TSA Input'!C3465,\"\"))","v":""},{"$f":"IF('TSA Input'!J3465=\"\",\"\",IF(OR('TSA Input'!J3465=\"Yes\",'TSA Input'!J3465=\"Contingent\"),'TSA Input'!D3465,\"\"))","v":""},{"$f":"IF('TSA Input'!J3465=\"\",\"\",IF(OR('TSA Input'!J3465=\"Yes\",'TSA Input'!J3465=\"Contingent\"),'TSA Input'!G3465,\"\"))","v":""},{"$f":"IF('TSA Input'!J3465=\"\",\"\",IF(OR('TSA Input'!J3465=\"Yes\",'TSA Input'!J3465=\"Contingent\"),'TSA Input'!F3465,\"\"))","v":""},"",{"$f":"IF('TSA Input'!J3465=\"\",\"\",IF(OR('TSA Input'!J3465=\"Yes\",'TSA Input'!J3465=\"Contingent\"),'TSA Input'!D3465,\"\"))","v":""},{"$f":"IF('TSA Input'!J3465=\"\",\"\",IF(OR('TSA Input'!J3465=\"Yes\",'TSA Input'!J3465=\"Contingent\"),'TSA Input'!G3465,\"\"))","v":""},{"$f":"IF('TSA Input'!J3465=\"\",\"\",IF(OR('TSA Input'!J3465=\"Yes\",'TSA Input'!J3465=\"Contingent\"),'TSA Input'!F3465,\"\"))","v":""},"","Required","Required"]
["",null,{"$f":"IF('TSA Input'!J3466=\"\",\"\",IF(OR('TSA Input'!J3466=\"Yes\",'TSA Input'!J3466=\"Contingent\"),'TSA Input'!B3466,\"Ineligible\"))","v":""},{"$f":"IF('TSA Input'!J3466=\"\",\"\",IF(OR('TSA Input'!J3466=\"Yes\",'TSA Input'!J3466=\"Contingent\"),'TSA Input'!I3466,\"\"))","v":""},{"$f":"IF('TSA Input'!J3466=\"\",\"\",IF(OR('TSA Input'!J3466=\"Yes\",'TSA Input'!J3466=\"Contingent\"),'TSA Input'!C3466,\"\"))","v":""},{"$f":"IF('TSA Input'!J3466=\"\",\"\",IF(OR('TSA Input'!J3466=\"Yes\",'TSA Input'!J3466=\"Contingent\"),'TSA Input'!D3466,\"\"))","v":""},{"$f":"IF('TSA Input'!J3466=\"\",\"\",IF(OR('TSA Input'!J3466=\"Yes\",'TSA Input'!J3466=\"Contingent\"),'TSA Input'!G3466,\"\"))","v":""},{"$f":"IF('TSA Input'!J3466=\"\",\"\",IF(OR('TSA Input'!J3466=\"Yes\",'TSA Input'!J3466=\"Contingent\"),'TSA Input'!F3466,\"\"))","v":""},"",{"$f":"IF('TSA Input'!J3466=\"\",\"\",IF(OR('TSA Input'!J3466=\"Yes\",'TSA Input'!J3466=\"Contingent\"),'TSA Input'!D3466,\"\"))","v":""},{"$f":"IF('TSA Input'!J3466=\"\",\"\",IF(OR('TSA Input'!J3466=\"Yes\",'TSA Input'!J3466=\"Contingent\"),'TSA Input'!G3466,\"\"))","v":""},{"$f":"IF('TSA Input'!J3466=\"\",\"\",IF(OR('TSA Input'!J3466=\"Yes\",'TSA Input'!J3466=\"Contingent\"),'TSA Input'!F3466,\"\"))","v":""},"","Required","Required"]
["",null,{"$f":"IF('TSA Input'!J3467=\"\",\"\",IF(OR('TSA Input'!J3467=\"Yes\",'TSA Input'!J3467=\"Contingent\"),'TSA Input'!B3467,\"Ineligible\"))","v":""},{"$f":"IF('TSA Input'!J3467=\"\",\"\",IF(OR('TSA Input'!J3467=\"Yes\",'TSA Input'!J3467=\"Contingent\"),'TSA Input'!I3467,\"\"))","v":""},{"$f":"IF('TSA Input'!J3467=\"\",\"\",IF(OR('TSA Input'!J3467=\"Yes\",'TSA Input'!J3467=\"Contingent\"),'TSA Input'!C3467,\"\"))","v":""},{"$f":"IF('TSA Input'!J3467=\"\",\"\",IF(OR('TSA Input'!J3467=\"Yes\",'TSA Input'!J3467=\"Contingent\"),'TSA Input'!D3467,\"\"))","v":""},{"$f":"IF('TSA Input'!J3467=\"\",\"\",IF(OR('TSA Input'!J3467=\"Yes\",'TSA Input'!J3467=\"Contingent\"),'TSA Input'!G3467,\"\"))","v":""},{"$f":"IF('TSA Input'!J3467=\"\",\"\",IF(OR('TSA Input'!J3467=\"Yes\",'TSA Input'!J3467=\"Contingent\"),'TSA Input'!F3467,\"\"))","v":""},"",{"$f":"IF('TSA Input'!J3467=\"\",\"\",IF(OR('TSA Input'!J3467=\"Yes\",'TSA Input'!J3467=\"Contingent\"),'TSA Input'!D3467,\"\"))","v":""},{"$f":"IF('TSA Input'!J3467=\"\",\"\",IF(OR('TSA Input'!J3467=\"Yes\",'TSA Input'!J3467=\"Contingent\"),'TSA Input'!G3467,\"\"))","v":""},{"$f":"IF('TSA Input'!J3467=\"\",\"\",IF(OR('TSA Input'!J3467=\"Yes\",'TSA Input'!J3467=\"Contingent\"),'TSA Input'!F3467,\"\"))","v":""},"","Required","Required"]
["",null,{"$f":"IF('TSA Input'!J3468=\"\",\"\",IF(OR('TSA Input'!J3468=\"Yes\",'TSA Input'!J3468=\"Contingent\"),'TSA Input'!B3468,\"Ineligible\"))","v":""},{"$f":"IF('TSA Input'!J3468=\"\",\"\",IF(OR('TSA Input'!J3468=\"Yes\",'TSA Input'!J3468=\"Contingent\"),'TSA Input'!I3468,\"\"))","v":""},{"$f":"IF('TSA Input'!J3468=\"\",\"\",IF(OR('TSA Input'!J3468=\"Yes\",'TSA Input'!J3468=\"Contingent\"),'TSA Input'!C3468,\"\"))","v":""},{"$f":"IF('TSA Input'!J3468=\"\",\"\",IF(OR('TSA Input'!J3468=\"Yes\",'TSA Input'!J3468=\"Contingent\"),'TSA Input'!D3468,\"\"))","v":""},{"$f":"IF('TSA Input'!J3468=\"\",\"\",IF(OR('TSA Input'!J3468=\"Yes\",'TSA Input'!J3468=\"Contingent\"),'TSA Input'!G3468,\"\"))","v":""},{"$f":"IF('TSA Input'!J3468=\"\",\"\",IF(OR('TSA Input'!J3468=\"Yes\",'TSA Input'!J3468=\"Contingent\"),'TSA Input'!F3468,\"\"))","v":""},"",{"$f":"IF('TSA Input'!J3468=\"\",\"\",IF(OR('TSA Input'!J3468=\"Yes\",'TSA Input'!J3468=\"Contingent\"),'TSA Input'!D3468,\"\"))","v":""},{"$f":"IF('TSA Input'!J3468=\"\",\"\",IF(OR('TSA Input'!J3468=\"Yes\",'TSA Input'!J3468=\"Contingent\"),'TSA Input'!G3468,\"\"))","v":""},{"$f":"IF('TSA Input'!J3468=\"\",\"\",IF(OR('TSA Input'!J3468=\"Yes\",'TSA Input'!J3468=\"Contingent\"),'TSA Input'!F3468,\"\"))","v":""},"","Required","Required"]
["",null,{"$f":"IF('TSA Input'!J3469=\"\",\"\",IF(OR('TSA Input'!J3469=\"Yes\",'TSA Input'!J3469=\"Contingent\"),'TSA Input'!B3469,\"Ineligible\"))","v":""},{"$f":"IF('TSA Input'!J3469=\"\",\"\",IF(OR('TSA Input'!J3469=\"Yes\",'TSA Input'!J3469=\"Contingent\"),'TSA Input'!I3469,\"\"))","v":""},{"$f":"IF('TSA Input'!J3469=\"\",\"\",IF(OR('TSA Input'!J3469=\"Yes\",'TSA Input'!J3469=\"Contingent\"),'TSA Input'!C3469,\"\"))","v":""},{"$f":"IF('TSA Input'!J3469=\"\",\"\",IF(OR('TSA Input'!J3469=\"Yes\",'TSA Input'!J3469=\"Contingent\"),'TSA Input'!D3469,\"\"))","v":""},{"$f":"IF('TSA Input'!J3469=\"\",\"\",IF(OR('TSA Input'!J3469=\"Yes\",'TSA Input'!J3469=\"Contingent\"),'TSA Input'!G3469,\"\"))","v":""},{"$f":"IF('TSA Input'!J3469=\"\",\"\",IF(OR('TSA Input'!J3469=\"Yes\",'TSA Input'!J3469=\"Contingent\"),'TSA Input'!F3469,\"\"))","v":""},"",{"$f":"IF('TSA Input'!J3469=\"\",\"\",IF(OR('TSA Input'!J3469=\"Yes\",'TSA Input'!J3469=\"Contingent\"),'TSA Input'!D3469,\"\"))","v":""},{"$f":"IF('TSA Input'!J3469=\"\",\"\",IF(OR('TSA Input'!J3469=\"Yes\",'TSA Input'!J3469=\"Contingent\"),'TSA Input'!G3469,\"\"))","v":""},{"$f":"IF('TSA Input'!J3469=\"\",\"\",IF(OR('TSA Input'!J3469=\"Yes\",'TSA Input'!J3469=\"Contingent\"),'TSA Input'!F3469,\"\"))","v":""},"","Required","Required"]
["",null,{"$f":"IF('TSA Input'!J3470=\"\",\"\",IF(OR('TSA Input'!J3470=\"Yes\",'TSA Input'!J3470=\"Contingent\"),'TSA Input'!B3470,\"Ineligible\"))","v":""},{"$f":"IF('TSA Input'!J3470=\"\",\"\",IF(OR('TSA Input'!J3470=\"Yes\",'TSA Input'!J3470=\"Contingent\"),'TSA Input'!I3470,\"\"))","v":""},{"$f":"IF('TSA Input'!J3470=\"\",\"\",IF(OR('TSA Input'!J3470=\"Yes\",'TSA Input'!J3470=\"Contingent\"),'TSA Input'!C3470,\"\"))","v":""},{"$f":"IF('TSA Input'!J3470=\"\",\"\",IF(OR('TSA Input'!J3470=\"Yes\",'TSA Input'!J3470=\"Contingent\"),'TSA Input'!D3470,\"\"))","v":""},{"$f":"IF('TSA Input'!J3470=\"\",\"\",IF(OR('TSA Input'!J3470=\"Yes\",'TSA Input'!J3470=\"Contingent\"),'TSA Input'!G3470,\"\"))","v":""},{"$f":"IF('TSA Input'!J3470=\"\",\"\",IF(OR('TSA Input'!J3470=\"Yes\",'TSA Input'!J3470=\"Contingent\"),'TSA Input'!F3470,\"\"))","v":""},"",{"$f":"IF('TSA Input'!J3470=\"\",\"\",IF(OR('TSA Input'!J3470=\"Yes\",'TSA Input'!J3470=\"Contingent\"),'TSA Input'!D3470,\"\"))","v":""},{"$f":"IF('TSA Input'!J3470=\"\",\"\",IF(OR('TSA Input'!J3470=\"Yes\",'TSA Input'!J3470=\"Contingent\"),'TSA Input'!G3470,\"\"))","v":""},{"$f":"IF('TSA Input'!J3470=\"\",\"\",IF(OR('TSA Input'!J3470=\"Yes\",'TSA Input'!J3470=\"Contingent\"),'TSA Input'!F3470,\"\"))","v":""},"","Required","Required"]
["",null,{"$f":"IF('TSA Input'!J3471=\"\",\"\",IF(OR('TSA Input'!J3471=\"Yes\",'TSA Input'!J3471=\"Contingent\"),'TSA Input'!B3471,\"Ineligible\"))","v":""},{"$f":"IF('TSA Input'!J3471=\"\",\"\",IF(OR('TSA Input'!J3471=\"Yes\",'TSA Input'!J3471=\"Contingent\"),'TSA Input'!I3471,\"\"))","v":""},{"$f":"IF('TSA Input'!J3471=\"\",\"\",IF(OR('TSA Input'!J3471=\"Yes\",'TSA Input'!J3471=\"Contingent\"),'TSA Input'!C3471,\"\"))","v":""},{"$f":"IF('TSA Input'!J3471=\"\",\"\",IF(OR('TSA Input'!J3471=\"Yes\",'TSA Input'!J3471=\"Contingent\"),'TSA Input'!D3471,\"\"))","v":""},{"$f":"IF('TSA Input'!J3471=\"\",\"\",IF(OR('TSA Input'!J3471=\"Yes\",'TSA Input'!J3471=\"Contingent\"),'TSA Input'!G3471,\"\"))","v":""},{"$f":"IF('TSA Input'!J3471=\"\",\"\",IF(OR('TSA Input'!J3471=\"Yes\",'TSA Input'!J3471=\"Contingent\"),'TSA Input'!F3471,\"\"))","v":""},"",{"$f":"IF('TSA Input'!J3471=\"\",\"\",IF(OR('TSA Input'!J3471=\"Yes\",'TSA Input'!J3471=\"Contingent\"),'TSA Input'!D3471,\"\"))","v":""},{"$f":"IF('TSA Input'!J3471=\"\",\"\",IF(OR('TSA Input'!J3471=\"Yes\",'TSA Input'!J3471=\"Contingent\"),'TSA Input'!G3471,\"\"))","v":""},{"$f":"IF('TSA Input'!J3471=\"\",\"\",IF(OR('TSA Input'!J3471=\"Yes\",'TSA Input'!J3471=\"Contingent\"),'TSA Input'!F3471,\"\"))","v":""},"","Required","Required"]
["",null,{"$f":"IF('TSA Input'!J3472=\"\",\"\",IF(OR('TSA Input'!J3472=\"Yes\",'TSA Input'!J3472=\"Contingent\"),'TSA Input'!B3472,\"Ineligible\"))","v":""},{"$f":"IF('TSA Input'!J3472=\"\",\"\",IF(OR('TSA Input'!J3472=\"Yes\",'TSA Input'!J3472=\"Contingent\"),'TSA Input'!I3472,\"\"))","v":""},{"$f":"IF('TSA Input'!J3472=\"\",\"\",IF(OR('TSA Input'!J3472=\"Yes\",'TSA Input'!J3472=\"Contingent\"),'TSA Input'!C3472,\"\"))","v":""},{"$f":"IF('TSA Input'!J3472=\"\",\"\",IF(OR('TSA Input'!J3472=\"Yes\",'TSA Input'!J3472=\"Contingent\"),'TSA Input'!D3472,\"\"))","v":""},{"$f":"IF('TSA Input'!J3472=\"\",\"\",IF(OR('TSA Input'!J3472=\"Yes\",'TSA Input'!J3472=\"Contingent\"),'TSA Input'!G3472,\"\"))","v":""},{"$f":"IF('TSA Input'!J3472=\"\",\"\",IF(OR('TSA Input'!J3472=\"Yes\",'TSA Input'!J3472=\"Contingent\"),'TSA Input'!F3472,\"\"))","v":""},"",{"$f":"IF('TSA Input'!J3472=\"\",\"\",IF(OR('TSA Input'!J3472=\"Yes\",'TSA Input'!J3472=\"Contingent\"),'TSA Input'!D3472,\"\"))","v":""},{"$f":"IF('TSA Input'!J3472=\"\",\"\",IF(OR('TSA Input'!J3472=\"Yes\",'TSA Input'!J3472=\"Contingent\"),'TSA Input'!G3472,\"\"))","v":""},{"$f":"IF('TSA Input'!J3472=\"\",\"\",IF(OR('TSA Input'!J3472=\"Yes\",'TSA Input'!J3472=\"Contingent\"),'TSA Input'!F3472,\"\"))","v":""},"","Required","Required"]
["",null,{"$f":"IF('TSA Input'!J3473=\"\",\"\",IF(OR('TSA Input'!J3473=\"Yes\",'TSA Input'!J3473=\"Contingent\"),'TSA Input'!B3473,\"Ineligible\"))","v":""},{"$f":"IF('TSA Input'!J3473=\"\",\"\",IF(OR('TSA Input'!J3473=\"Yes\",'TSA Input'!J3473=\"Contingent\"),'TSA Input'!I3473,\"\"))","v":""},{"$f":"IF('TSA Input'!J3473=\"\",\"\",IF(OR('TSA Input'!J3473=\"Yes\",'TSA Input'!J3473=\"Contingent\"),'TSA Input'!C3473,\"\"))","v":""},{"$f":"IF('TSA Input'!J3473=\"\",\"\",IF(OR('TSA Input'!J3473=\"Yes\",'TSA Input'!J3473=\"Contingent\"),'TSA Input'!D3473,\"\"))","v":""},{"$f":"IF('TSA Input'!J3473=\"\",\"\",IF(OR('TSA Input'!J3473=\"Yes\",'TSA Input'!J3473=\"Contingent\"),'TSA Input'!G3473,\"\"))","v":""},{"$f":"IF('TSA Input'!J3473=\"\",\"\",IF(OR('TSA Input'!J3473=\"Yes\",'TSA Input'!J3473=\"Contingent\"),'TSA Input'!F3473,\"\"))","v":""},"",{"$f":"IF('TSA Input'!J3473=\"\",\"\",IF(OR('TSA Input'!J3473=\"Yes\",'TSA Input'!J3473=\"Contingent\"),'TSA Input'!D3473,\"\"))","v":""},{"$f":"IF('TSA Input'!J3473=\"\",\"\",IF(OR('TSA Input'!J3473=\"Yes\",'TSA Input'!J3473=\"Contingent\"),'TSA Input'!G3473,\"\"))","v":""},{"$f":"IF('TSA Input'!J3473=\"\",\"\",IF(OR('TSA Input'!J3473=\"Yes\",'TSA Input'!J3473=\"Contingent\"),'TSA Input'!F3473,\"\"))","v":""},"","Required","Required"]
["",null,{"$f":"IF('TSA Input'!J3474=\"\",\"\",IF(OR('TSA Input'!J3474=\"Yes\",'TSA Input'!J3474=\"Contingent\"),'TSA Input'!B3474,\"Ineligible\"))","v":""},{"$f":"IF('TSA Input'!J3474=\"\",\"\",IF(OR('TSA Input'!J3474=\"Yes\",'TSA Input'!J3474=\"Contingent\"),'TSA Input'!I3474,\"\"))","v":""},{"$f":"IF('TSA Input'!J3474=\"\",\"\",IF(OR('TSA Input'!J3474=\"Yes\",'TSA Input'!J3474=\"Contingent\"),'TSA Input'!C3474,\"\"))","v":""},{"$f":"IF('TSA Input'!J3474=\"\",\"\",IF(OR('TSA Input'!J3474=\"Yes\",'TSA Input'!J3474=\"Contingent\"),'TSA Input'!D3474,\"\"))","v":""},{"$f":"IF('TSA Input'!J3474=\"\",\"\",IF(OR('TSA Input'!J3474=\"Yes\",'TSA Input'!J3474=\"Contingent\"),'TSA Input'!G3474,\"\"))","v":""},{"$f":"IF('TSA Input'!J3474=\"\",\"\",IF(OR('TSA Input'!J3474=\"Yes\",'TSA Input'!J3474=\"Contingent\"),'TSA Input'!F3474,\"\"))","v":""},"",{"$f":"IF('TSA Input'!J3474=\"\",\"\",IF(OR('TSA Input'!J3474=\"Yes\",'TSA Input'!J3474=\"Contingent\"),'TSA Input'!D3474,\"\"))","v":""},{"$f":"IF('TSA Input'!J3474=\"\",\"\",IF(OR('TSA Input'!J3474=\"Yes\",'TSA Input'!J3474=\"Contingent\"),'TSA Input'!G3474,\"\"))","v":""},{"$f":"IF('TSA Input'!J3474=\"\",\"\",IF(OR('TSA Input'!J3474=\"Yes\",'TSA Input'!J3474=\"Contingent\"),'TSA Input'!F3474,\"\"))","v":""},"","Required","Required"]
["",null,{"$f":"IF('TSA Input'!J3475=\"\",\"\",IF(OR('TSA Input'!J3475=\"Yes\",'TSA Input'!J3475=\"Contingent\"),'TSA Input'!B3475,\"Ineligible\"))","v":""},{"$f":"IF('TSA Input'!J3475=\"\",\"\",IF(OR('TSA Input'!J3475=\"Yes\",'TSA Input'!J3475=\"Contingent\"),'TSA Input'!I3475,\"\"))","v":""},{"$f":"IF('TSA Input'!J3475=\"\",\"\",IF(OR('TSA Input'!J3475=\"Yes\",'TSA Input'!J3475=\"Contingent\"),'TSA Input'!C3475,\"\"))","v":""},{"$f":"IF('TSA Input'!J3475=\"\",\"\",IF(OR('TSA Input'!J3475=\"Yes\",'TSA Input'!J3475=\"Contingent\"),'TSA Input'!D3475,\"\"))","v":""},{"$f":"IF('TSA Input'!J3475=\"\",\"\",IF(OR('TSA Input'!J3475=\"Yes\",'TSA Input'!J3475=\"Contingent\"),'TSA Input'!G3475,\"\"))","v":""},{"$f":"IF('TSA Input'!J3475=\"\",\"\",IF(OR('TSA Input'!J3475=\"Yes\",'TSA Input'!J3475=\"Contingent\"),'TSA Input'!F3475,\"\"))","v":""},"",{"$f":"IF('TSA Input'!J3475=\"\",\"\",IF(OR('TSA Input'!J3475=\"Yes\",'TSA Input'!J3475=\"Contingent\"),'TSA Input'!D3475,\"\"))","v":""},{"$f":"IF('TSA Input'!J3475=\"\",\"\",IF(OR('TSA Input'!J3475=\"Yes\",'TSA Input'!J3475=\"Contingent\"),'TSA Input'!G3475,\"\"))","v":""},{"$f":"IF('TSA Input'!J3475=\"\",\"\",IF(OR('TSA Input'!J3475=\"Yes\",'TSA Input'!J3475=\"Contingent\"),'TSA Input'!F3475,\"\"))","v":""},"","Required","Required"]
["",null,{"$f":"IF('TSA Input'!J3476=\"\",\"\",IF(OR('TSA Input'!J3476=\"Yes\",'TSA Input'!J3476=\"Contingent\"),'TSA Input'!B3476,\"Ineligible\"))","v":""},{"$f":"IF('TSA Input'!J3476=\"\",\"\",IF(OR('TSA Input'!J3476=\"Yes\",'TSA Input'!J3476=\"Contingent\"),'TSA Input'!I3476,\"\"))","v":""},{"$f":"IF('TSA Input'!J3476=\"\",\"\",IF(OR('TSA Input'!J3476=\"Yes\",'TSA Input'!J3476=\"Contingent\"),'TSA Input'!C3476,\"\"))","v":""},{"$f":"IF('TSA Input'!J3476=\"\",\"\",IF(OR('TSA Input'!J3476=\"Yes\",'TSA Input'!J3476=\"Contingent\"),'TSA Input'!D3476,\"\"))","v":""},{"$f":"IF('TSA Input'!J3476=\"\",\"\",IF(OR('TSA Input'!J3476=\"Yes\",'TSA Input'!J3476=\"Contingent\"),'TSA Input'!G3476,\"\"))","v":""},{"$f":"IF('TSA Input'!J3476=\"\",\"\",IF(OR('TSA Input'!J3476=\"Yes\",'TSA Input'!J3476=\"Contingent\"),'TSA Input'!F3476,\"\"))","v":""},"",{"$f":"IF('TSA Input'!J3476=\"\",\"\",IF(OR('TSA Input'!J3476=\"Yes\",'TSA Input'!J3476=\"Contingent\"),'TSA Input'!D3476,\"\"))","v":""},{"$f":"IF('TSA Input'!J3476=\"\",\"\",IF(OR('TSA Input'!J3476=\"Yes\",'TSA Input'!J3476=\"Contingent\"),'TSA Input'!G3476,\"\"))","v":""},{"$f":"IF('TSA Input'!J3476=\"\",\"\",IF(OR('TSA Input'!J3476=\"Yes\",'TSA Input'!J3476=\"Contingent\"),'TSA Input'!F3476,\"\"))","v":""},"","Required","Required"]
["",null,{"$f":"IF('TSA Input'!J3477=\"\",\"\",IF(OR('TSA Input'!J3477=\"Yes\",'TSA Input'!J3477=\"Contingent\"),'TSA Input'!B3477,\"Ineligible\"))","v":""},{"$f":"IF('TSA Input'!J3477=\"\",\"\",IF(OR('TSA Input'!J3477=\"Yes\",'TSA Input'!J3477=\"Contingent\"),'TSA Input'!I3477,\"\"))","v":""},{"$f":"IF('TSA Input'!J3477=\"\",\"\",IF(OR('TSA Input'!J3477=\"Yes\",'TSA Input'!J3477=\"Contingent\"),'TSA Input'!C3477,\"\"))","v":""},{"$f":"IF('TSA Input'!J3477=\"\",\"\",IF(OR('TSA Input'!J3477=\"Yes\",'TSA Input'!J3477=\"Contingent\"),'TSA Input'!D3477,\"\"))","v":""},{"$f":"IF('TSA Input'!J3477=\"\",\"\",IF(OR('TSA Input'!J3477=\"Yes\",'TSA Input'!J3477=\"Contingent\"),'TSA Input'!G3477,\"\"))","v":""},{"$f":"IF('TSA Input'!J3477=\"\",\"\",IF(OR('TSA Input'!J3477=\"Yes\",'TSA Input'!J3477=\"Contingent\"),'TSA Input'!F3477,\"\"))","v":""},"",{"$f":"IF('TSA Input'!J3477=\"\",\"\",IF(OR('TSA Input'!J3477=\"Yes\",'TSA Input'!J3477=\"Contingent\"),'TSA Input'!D3477,\"\"))","v":""},{"$f":"IF('TSA Input'!J3477=\"\",\"\",IF(OR('TSA Input'!J3477=\"Yes\",'TSA Input'!J3477=\"Contingent\"),'TSA Input'!G3477,\"\"))","v":""},{"$f":"IF('TSA Input'!J3477=\"\",\"\",IF(OR('TSA Input'!J3477=\"Yes\",'TSA Input'!J3477=\"Contingent\"),'TSA Input'!F3477,\"\"))","v":""},"","Required","Required"]
["",null,{"$f":"IF('TSA Input'!J3478=\"\",\"\",IF(OR('TSA Input'!J3478=\"Yes\",'TSA Input'!J3478=\"Contingent\"),'TSA Input'!B3478,\"Ineligible\"))","v":""},{"$f":"IF('TSA Input'!J3478=\"\",\"\",IF(OR('TSA Input'!J3478=\"Yes\",'TSA Input'!J3478=\"Contingent\"),'TSA Input'!I3478,\"\"))","v":""},{"$f":"IF('TSA Input'!J3478=\"\",\"\",IF(OR('TSA Input'!J3478=\"Yes\",'TSA Input'!J3478=\"Contingent\"),'TSA Input'!C3478,\"\"))","v":""},{"$f":"IF('TSA Input'!J3478=\"\",\"\",IF(OR('TSA Input'!J3478=\"Yes\",'TSA Input'!J3478=\"Contingent\"),'TSA Input'!D3478,\"\"))","v":""},{"$f":"IF('TSA Input'!J3478=\"\",\"\",IF(OR('TSA Input'!J3478=\"Yes\",'TSA Input'!J3478=\"Contingent\"),'TSA Input'!G3478,\"\"))","v":""},{"$f":"IF('TSA Input'!J3478=\"\",\"\",IF(OR('TSA Input'!J3478=\"Yes\",'TSA Input'!J3478=\"Contingent\"),'TSA Input'!F3478,\"\"))","v":""},"",{"$f":"IF('TSA Input'!J3478=\"\",\"\",IF(OR('TSA Input'!J3478=\"Yes\",'TSA Input'!J3478=\"Contingent\"),'TSA Input'!D3478,\"\"))","v":""},{"$f":"IF('TSA Input'!J3478=\"\",\"\",IF(OR('TSA Input'!J3478=\"Yes\",'TSA Input'!J3478=\"Contingent\"),'TSA Input'!G3478,\"\"))","v":""},{"$f":"IF('TSA Input'!J3478=\"\",\"\",IF(OR('TSA Input'!J3478=\"Yes\",'TSA Input'!J3478=\"Contingent\"),'TSA Input'!F3478,\"\"))","v":""},"","Required","Required"]
["",null,{"$f":"IF('TSA Input'!J3479=\"\",\"\",IF(OR('TSA Input'!J3479=\"Yes\",'TSA Input'!J3479=\"Contingent\"),'TSA Input'!B3479,\"Ineligible\"))","v":""},{"$f":"IF('TSA Input'!J3479=\"\",\"\",IF(OR('TSA Input'!J3479=\"Yes\",'TSA Input'!J3479=\"Contingent\"),'TSA Input'!I3479,\"\"))","v":""},{"$f":"IF('TSA Input'!J3479=\"\",\"\",IF(OR('TSA Input'!J3479=\"Yes\",'TSA Input'!J3479=\"Contingent\"),'TSA Input'!C3479,\"\"))","v":""},{"$f":"IF('TSA Input'!J3479=\"\",\"\",IF(OR('TSA Input'!J3479=\"Yes\",'TSA Input'!J3479=\"Contingent\"),'TSA Input'!D3479,\"\"))","v":""},{"$f":"IF('TSA Input'!J3479=\"\",\"\",IF(OR('TSA Input'!J3479=\"Yes\",'TSA Input'!J3479=\"Contingent\"),'TSA Input'!G3479,\"\"))","v":""},{"$f":"IF('TSA Input'!J3479=\"\",\"\",IF(OR('TSA Input'!J3479=\"Yes\",'TSA Input'!J3479=\"Contingent\"),'TSA Input'!F3479,\"\"))","v":""},"",{"$f":"IF('TSA Input'!J3479=\"\",\"\",IF(OR('TSA Input'!J3479=\"Yes\",'TSA Input'!J3479=\"Contingent\"),'TSA Input'!D3479,\"\"))","v":""},{"$f":"IF('TSA Input'!J3479=\"\",\"\",IF(OR('TSA Input'!J3479=\"Yes\",'TSA Input'!J3479=\"Contingent\"),'TSA Input'!G3479,\"\"))","v":""},{"$f":"IF('TSA Input'!J3479=\"\",\"\",IF(OR('TSA Input'!J3479=\"Yes\",'TSA Input'!J3479=\"Contingent\"),'TSA Input'!F3479,\"\"))","v":""},"","Required","Required"]
["",null,{"$f":"IF('TSA Input'!J3480=\"\",\"\",IF(OR('TSA Input'!J3480=\"Yes\",'TSA Input'!J3480=\"Contingent\"),'TSA Input'!B3480,\"Ineligible\"))","v":""},{"$f":"IF('TSA Input'!J3480=\"\",\"\",IF(OR('TSA Input'!J3480=\"Yes\",'TSA Input'!J3480=\"Contingent\"),'TSA Input'!I3480,\"\"))","v":""},{"$f":"IF('TSA Input'!J3480=\"\",\"\",IF(OR('TSA Input'!J3480=\"Yes\",'TSA Input'!J3480=\"Contingent\"),'TSA Input'!C3480,\"\"))","v":""},{"$f":"IF('TSA Input'!J3480=\"\",\"\",IF(OR('TSA Input'!J3480=\"Yes\",'TSA Input'!J3480=\"Contingent\"),'TSA Input'!D3480,\"\"))","v":""},{"$f":"IF('TSA Input'!J3480=\"\",\"\",IF(OR('TSA Input'!J3480=\"Yes\",'TSA Input'!J3480=\"Contingent\"),'TSA Input'!G3480,\"\"))","v":""},{"$f":"IF('TSA Input'!J3480=\"\",\"\",IF(OR('TSA Input'!J3480=\"Yes\",'TSA Input'!J3480=\"Contingent\"),'TSA Input'!F3480,\"\"))","v":""},"",{"$f":"IF('TSA Input'!J3480=\"\",\"\",IF(OR('TSA Input'!J3480=\"Yes\",'TSA Input'!J3480=\"Contingent\"),'TSA Input'!D3480,\"\"))","v":""},{"$f":"IF('TSA Input'!J3480=\"\",\"\",IF(OR('TSA Input'!J3480=\"Yes\",'TSA Input'!J3480=\"Contingent\"),'TSA Input'!G3480,\"\"))","v":""},{"$f":"IF('TSA Input'!J3480=\"\",\"\",IF(OR('TSA Input'!J3480=\"Yes\",'TSA Input'!J3480=\"Contingent\"),'TSA Input'!F3480,\"\"))","v":""},"","Required","Required"]
["",null,{"$f":"IF('TSA Input'!J3481=\"\",\"\",IF(OR('TSA Input'!J3481=\"Yes\",'TSA Input'!J3481=\"Contingent\"),'TSA Input'!B3481,\"Ineligible\"))","v":""},{"$f":"IF('TSA Input'!J3481=\"\",\"\",IF(OR('TSA Input'!J3481=\"Yes\",'TSA Input'!J3481=\"Contingent\"),'TSA Input'!I3481,\"\"))","v":""},{"$f":"IF('TSA Input'!J3481=\"\",\"\",IF(OR('TSA Input'!J3481=\"Yes\",'TSA Input'!J3481=\"Contingent\"),'TSA Input'!C3481,\"\"))","v":""},{"$f":"IF('TSA Input'!J3481=\"\",\"\",IF(OR('TSA Input'!J3481=\"Yes\",'TSA Input'!J3481=\"Contingent\"),'TSA Input'!D3481,\"\"))","v":""},{"$f":"IF('TSA Input'!J3481=\"\",\"\",IF(OR('TSA Input'!J3481=\"Yes\",'TSA Input'!J3481=\"Contingent\"),'TSA Input'!G3481,\"\"))","v":""},{"$f":"IF('TSA Input'!J3481=\"\",\"\",IF(OR('TSA Input'!J3481=\"Yes\",'TSA Input'!J3481=\"Contingent\"),'TSA Input'!F3481,\"\"))","v":""},"",{"$f":"IF('TSA Input'!J3481=\"\",\"\",IF(OR('TSA Input'!J3481=\"Yes\",'TSA Input'!J3481=\"Contingent\"),'TSA Input'!D3481,\"\"))","v":""},{"$f":"IF('TSA Input'!J3481=\"\",\"\",IF(OR('TSA Input'!J3481=\"Yes\",'TSA Input'!J3481=\"Contingent\"),'TSA Input'!G3481,\"\"))","v":""},{"$f":"IF('TSA Input'!J3481=\"\",\"\",IF(OR('TSA Input'!J3481=\"Yes\",'TSA Input'!J3481=\"Contingent\"),'TSA Input'!F3481,\"\"))","v":""},"","Required","Required"]
["",null,{"$f":"IF('TSA Input'!J3482=\"\",\"\",IF(OR('TSA Input'!J3482=\"Yes\",'TSA Input'!J3482=\"Contingent\"),'TSA Input'!B3482,\"Ineligible\"))","v":""},{"$f":"IF('TSA Input'!J3482=\"\",\"\",IF(OR('TSA Input'!J3482=\"Yes\",'TSA Input'!J3482=\"Contingent\"),'TSA Input'!I3482,\"\"))","v":""},{"$f":"IF('TSA Input'!J3482=\"\",\"\",IF(OR('TSA Input'!J3482=\"Yes\",'TSA Input'!J3482=\"Contingent\"),'TSA Input'!C3482,\"\"))","v":""},{"$f":"IF('TSA Input'!J3482=\"\",\"\",IF(OR('TSA Input'!J3482=\"Yes\",'TSA Input'!J3482=\"Contingent\"),'TSA Input'!D3482,\"\"))","v":""},{"$f":"IF('TSA Input'!J3482=\"\",\"\",IF(OR('TSA Input'!J3482=\"Yes\",'TSA Input'!J3482=\"Contingent\"),'TSA Input'!G3482,\"\"))","v":""},{"$f":"IF('TSA Input'!J3482=\"\",\"\",IF(OR('TSA Input'!J3482=\"Yes\",'TSA Input'!J3482=\"Contingent\"),'TSA Input'!F3482,\"\"))","v":""},"",{"$f":"IF('TSA Input'!J3482=\"\",\"\",IF(OR('TSA Input'!J3482=\"Yes\",'TSA Input'!J3482=\"Contingent\"),'TSA Input'!D3482,\"\"))","v":""},{"$f":"IF('TSA Input'!J3482=\"\",\"\",IF(OR('TSA Input'!J3482=\"Yes\",'TSA Input'!J3482=\"Contingent\"),'TSA Input'!G3482,\"\"))","v":""},{"$f":"IF('TSA Input'!J3482=\"\",\"\",IF(OR('TSA Input'!J3482=\"Yes\",'TSA Input'!J3482=\"Contingent\"),'TSA Input'!F3482,\"\"))","v":""},"","Required","Required"]
["",null,{"$f":"IF('TSA Input'!J3483=\"\",\"\",IF(OR('TSA Input'!J3483=\"Yes\",'TSA Input'!J3483=\"Contingent\"),'TSA Input'!B3483,\"Ineligible\"))","v":""},{"$f":"IF('TSA Input'!J3483=\"\",\"\",IF(OR('TSA Input'!J3483=\"Yes\",'TSA Input'!J3483=\"Contingent\"),'TSA Input'!I3483,\"\"))","v":""},{"$f":"IF('TSA Input'!J3483=\"\",\"\",IF(OR('TSA Input'!J3483=\"Yes\",'TSA Input'!J3483=\"Contingent\"),'TSA Input'!C3483,\"\"))","v":""},{"$f":"IF('TSA Input'!J3483=\"\",\"\",IF(OR('TSA Input'!J3483=\"Yes\",'TSA Input'!J3483=\"Contingent\"),'TSA Input'!D3483,\"\"))","v":""},{"$f":"IF('TSA Input'!J3483=\"\",\"\",IF(OR('TSA Input'!J3483=\"Yes\",'TSA Input'!J3483=\"Contingent\"),'TSA Input'!G3483,\"\"))","v":""},{"$f":"IF('TSA Input'!J3483=\"\",\"\",IF(OR('TSA Input'!J3483=\"Yes\",'TSA Input'!J3483=\"Contingent\"),'TSA Input'!F3483,\"\"))","v":""},"",{"$f":"IF('TSA Input'!J3483=\"\",\"\",IF(OR('TSA Input'!J3483=\"Yes\",'TSA Input'!J3483=\"Contingent\"),'TSA Input'!D3483,\"\"))","v":""},{"$f":"IF('TSA Input'!J3483=\"\",\"\",IF(OR('TSA Input'!J3483=\"Yes\",'TSA Input'!J3483=\"Contingent\"),'TSA Input'!G3483,\"\"))","v":""},{"$f":"IF('TSA Input'!J3483=\"\",\"\",IF(OR('TSA Input'!J3483=\"Yes\",'TSA Input'!J3483=\"Contingent\"),'TSA Input'!F3483,\"\"))","v":""},"","Required","Required"]
["",null,{"$f":"IF('TSA Input'!J3484=\"\",\"\",IF(OR('TSA Input'!J3484=\"Yes\",'TSA Input'!J3484=\"Contingent\"),'TSA Input'!B3484,\"Ineligible\"))","v":""},{"$f":"IF('TSA Input'!J3484=\"\",\"\",IF(OR('TSA Input'!J3484=\"Yes\",'TSA Input'!J3484=\"Contingent\"),'TSA Input'!I3484,\"\"))","v":""},{"$f":"IF('TSA Input'!J3484=\"\",\"\",IF(OR('TSA Input'!J3484=\"Yes\",'TSA Input'!J3484=\"Contingent\"),'TSA Input'!C3484,\"\"))","v":""},{"$f":"IF('TSA Input'!J3484=\"\",\"\",IF(OR('TSA Input'!J3484=\"Yes\",'TSA Input'!J3484=\"Contingent\"),'TSA Input'!D3484,\"\"))","v":""},{"$f":"IF('TSA Input'!J3484=\"\",\"\",IF(OR('TSA Input'!J3484=\"Yes\",'TSA Input'!J3484=\"Contingent\"),'TSA Input'!G3484,\"\"))","v":""},{"$f":"IF('TSA Input'!J3484=\"\",\"\",IF(OR('TSA Input'!J3484=\"Yes\",'TSA Input'!J3484=\"Contingent\"),'TSA Input'!F3484,\"\"))","v":""},"",{"$f":"IF('TSA Input'!J3484=\"\",\"\",IF(OR('TSA Input'!J3484=\"Yes\",'TSA Input'!J3484=\"Contingent\"),'TSA Input'!D3484,\"\"))","v":""},{"$f":"IF('TSA Input'!J3484=\"\",\"\",IF(OR('TSA Input'!J3484=\"Yes\",'TSA Input'!J3484=\"Contingent\"),'TSA Input'!G3484,\"\"))","v":""},{"$f":"IF('TSA Input'!J3484=\"\",\"\",IF(OR('TSA Input'!J3484=\"Yes\",'TSA Input'!J3484=\"Contingent\"),'TSA Input'!F3484,\"\"))","v":""},"","Required","Required"]
["",null,{"$f":"IF('TSA Input'!J3485=\"\",\"\",IF(OR('TSA Input'!J3485=\"Yes\",'TSA Input'!J3485=\"Contingent\"),'TSA Input'!B3485,\"Ineligible\"))","v":""},{"$f":"IF('TSA Input'!J3485=\"\",\"\",IF(OR('TSA Input'!J3485=\"Yes\",'TSA Input'!J3485=\"Contingent\"),'TSA Input'!I3485,\"\"))","v":""},{"$f":"IF('TSA Input'!J3485=\"\",\"\",IF(OR('TSA Input'!J3485=\"Yes\",'TSA Input'!J3485=\"Contingent\"),'TSA Input'!C3485,\"\"))","v":""},{"$f":"IF('TSA Input'!J3485=\"\",\"\",IF(OR('TSA Input'!J3485=\"Yes\",'TSA Input'!J3485=\"Contingent\"),'TSA Input'!D3485,\"\"))","v":""},{"$f":"IF('TSA Input'!J3485=\"\",\"\",IF(OR('TSA Input'!J3485=\"Yes\",'TSA Input'!J3485=\"Contingent\"),'TSA Input'!G3485,\"\"))","v":""},{"$f":"IF('TSA Input'!J3485=\"\",\"\",IF(OR('TSA Input'!J3485=\"Yes\",'TSA Input'!J3485=\"Contingent\"),'TSA Input'!F3485,\"\"))","v":""},"",{"$f":"IF('TSA Input'!J3485=\"\",\"\",IF(OR('TSA Input'!J3485=\"Yes\",'TSA Input'!J3485=\"Contingent\"),'TSA Input'!D3485,\"\"))","v":""},{"$f":"IF('TSA Input'!J3485=\"\",\"\",IF(OR('TSA Input'!J3485=\"Yes\",'TSA Input'!J3485=\"Contingent\"),'TSA Input'!G3485,\"\"))","v":""},{"$f":"IF('TSA Input'!J3485=\"\",\"\",IF(OR('TSA Input'!J3485=\"Yes\",'TSA Input'!J3485=\"Contingent\"),'TSA Input'!F3485,\"\"))","v":""},"","Required","Required"]
["",null,{"$f":"IF('TSA Input'!J3486=\"\",\"\",IF(OR('TSA Input'!J3486=\"Yes\",'TSA Input'!J3486=\"Contingent\"),'TSA Input'!B3486,\"Ineligible\"))","v":""},{"$f":"IF('TSA Input'!J3486=\"\",\"\",IF(OR('TSA Input'!J3486=\"Yes\",'TSA Input'!J3486=\"Contingent\"),'TSA Input'!I3486,\"\"))","v":""},{"$f":"IF('TSA Input'!J3486=\"\",\"\",IF(OR('TSA Input'!J3486=\"Yes\",'TSA Input'!J3486=\"Contingent\"),'TSA Input'!C3486,\"\"))","v":""},{"$f":"IF('TSA Input'!J3486=\"\",\"\",IF(OR('TSA Input'!J3486=\"Yes\",'TSA Input'!J3486=\"Contingent\"),'TSA Input'!D3486,\"\"))","v":""},{"$f":"IF('TSA Input'!J3486=\"\",\"\",IF(OR('TSA Input'!J3486=\"Yes\",'TSA Input'!J3486=\"Contingent\"),'TSA Input'!G3486,\"\"))","v":""},{"$f":"IF('TSA Input'!J3486=\"\",\"\",IF(OR('TSA Input'!J3486=\"Yes\",'TSA Input'!J3486=\"Contingent\"),'TSA Input'!F3486,\"\"))","v":""},"",{"$f":"IF('TSA Input'!J3486=\"\",\"\",IF(OR('TSA Input'!J3486=\"Yes\",'TSA Input'!J3486=\"Contingent\"),'TSA Input'!D3486,\"\"))","v":""},{"$f":"IF('TSA Input'!J3486=\"\",\"\",IF(OR('TSA Input'!J3486=\"Yes\",'TSA Input'!J3486=\"Contingent\"),'TSA Input'!G3486,\"\"))","v":""},{"$f":"IF('TSA Input'!J3486=\"\",\"\",IF(OR('TSA Input'!J3486=\"Yes\",'TSA Input'!J3486=\"Contingent\"),'TSA Input'!F3486,\"\"))","v":""},"","Required","Required"]
["",null,{"$f":"IF('TSA Input'!J3487=\"\",\"\",IF(OR('TSA Input'!J3487=\"Yes\",'TSA Input'!J3487=\"Contingent\"),'TSA Input'!B3487,\"Ineligible\"))","v":""},{"$f":"IF('TSA Input'!J3487=\"\",\"\",IF(OR('TSA Input'!J3487=\"Yes\",'TSA Input'!J3487=\"Contingent\"),'TSA Input'!I3487,\"\"))","v":""},{"$f":"IF('TSA Input'!J3487=\"\",\"\",IF(OR('TSA Input'!J3487=\"Yes\",'TSA Input'!J3487=\"Contingent\"),'TSA Input'!C3487,\"\"))","v":""},{"$f":"IF('TSA Input'!J3487=\"\",\"\",IF(OR('TSA Input'!J3487=\"Yes\",'TSA Input'!J3487=\"Contingent\"),'TSA Input'!D3487,\"\"))","v":""},{"$f":"IF('TSA Input'!J3487=\"\",\"\",IF(OR('TSA Input'!J3487=\"Yes\",'TSA Input'!J3487=\"Contingent\"),'TSA Input'!G3487,\"\"))","v":""},{"$f":"IF('TSA Input'!J3487=\"\",\"\",IF(OR('TSA Input'!J3487=\"Yes\",'TSA Input'!J3487=\"Contingent\"),'TSA Input'!F3487,\"\"))","v":""},"",{"$f":"IF('TSA Input'!J3487=\"\",\"\",IF(OR('TSA Input'!J3487=\"Yes\",'TSA Input'!J3487=\"Contingent\"),'TSA Input'!D3487,\"\"))","v":""},{"$f":"IF('TSA Input'!J3487=\"\",\"\",IF(OR('TSA Input'!J3487=\"Yes\",'TSA Input'!J3487=\"Contingent\"),'TSA Input'!G3487,\"\"))","v":""},{"$f":"IF('TSA Input'!J3487=\"\",\"\",IF(OR('TSA Input'!J3487=\"Yes\",'TSA Input'!J3487=\"Contingent\"),'TSA Input'!F3487,\"\"))","v":""},"","Required","Required"]
["",null,{"$f":"IF('TSA Input'!J3488=\"\",\"\",IF(OR('TSA Input'!J3488=\"Yes\",'TSA Input'!J3488=\"Contingent\"),'TSA Input'!B3488,\"Ineligible\"))","v":""},{"$f":"IF('TSA Input'!J3488=\"\",\"\",IF(OR('TSA Input'!J3488=\"Yes\",'TSA Input'!J3488=\"Contingent\"),'TSA Input'!I3488,\"\"))","v":""},{"$f":"IF('TSA Input'!J3488=\"\",\"\",IF(OR('TSA Input'!J3488=\"Yes\",'TSA Input'!J3488=\"Contingent\"),'TSA Input'!C3488,\"\"))","v":""},{"$f":"IF('TSA Input'!J3488=\"\",\"\",IF(OR('TSA Input'!J3488=\"Yes\",'TSA Input'!J3488=\"Contingent\"),'TSA Input'!D3488,\"\"))","v":""},{"$f":"IF('TSA Input'!J3488=\"\",\"\",IF(OR('TSA Input'!J3488=\"Yes\",'TSA Input'!J3488=\"Contingent\"),'TSA Input'!G3488,\"\"))","v":""},{"$f":"IF('TSA Input'!J3488=\"\",\"\",IF(OR('TSA Input'!J3488=\"Yes\",'TSA Input'!J3488=\"Contingent\"),'TSA Input'!F3488,\"\"))","v":""},"",{"$f":"IF('TSA Input'!J3488=\"\",\"\",IF(OR('TSA Input'!J3488=\"Yes\",'TSA Input'!J3488=\"Contingent\"),'TSA Input'!D3488,\"\"))","v":""},{"$f":"IF('TSA Input'!J3488=\"\",\"\",IF(OR('TSA Input'!J3488=\"Yes\",'TSA Input'!J3488=\"Contingent\"),'TSA Input'!G3488,\"\"))","v":""},{"$f":"IF('TSA Input'!J3488=\"\",\"\",IF(OR('TSA Input'!J3488=\"Yes\",'TSA Input'!J3488=\"Contingent\"),'TSA Input'!F3488,\"\"))","v":""},"","Required","Required"]
["",null,{"$f":"IF('TSA Input'!J3489=\"\",\"\",IF(OR('TSA Input'!J3489=\"Yes\",'TSA Input'!J3489=\"Contingent\"),'TSA Input'!B3489,\"Ineligible\"))","v":""},{"$f":"IF('TSA Input'!J3489=\"\",\"\",IF(OR('TSA Input'!J3489=\"Yes\",'TSA Input'!J3489=\"Contingent\"),'TSA Input'!I3489,\"\"))","v":""},{"$f":"IF('TSA Input'!J3489=\"\",\"\",IF(OR('TSA Input'!J3489=\"Yes\",'TSA Input'!J3489=\"Contingent\"),'TSA Input'!C3489,\"\"))","v":""},{"$f":"IF('TSA Input'!J3489=\"\",\"\",IF(OR('TSA Input'!J3489=\"Yes\",'TSA Input'!J3489=\"Contingent\"),'TSA Input'!D3489,\"\"))","v":""},{"$f":"IF('TSA Input'!J3489=\"\",\"\",IF(OR('TSA Input'!J3489=\"Yes\",'TSA Input'!J3489=\"Contingent\"),'TSA Input'!G3489,\"\"))","v":""},{"$f":"IF('TSA Input'!J3489=\"\",\"\",IF(OR('TSA Input'!J3489=\"Yes\",'TSA Input'!J3489=\"Contingent\"),'TSA Input'!F3489,\"\"))","v":""},"",{"$f":"IF('TSA Input'!J3489=\"\",\"\",IF(OR('TSA Input'!J3489=\"Yes\",'TSA Input'!J3489=\"Contingent\"),'TSA Input'!D3489,\"\"))","v":""},{"$f":"IF('TSA Input'!J3489=\"\",\"\",IF(OR('TSA Input'!J3489=\"Yes\",'TSA Input'!J3489=\"Contingent\"),'TSA Input'!G3489,\"\"))","v":""},{"$f":"IF('TSA Input'!J3489=\"\",\"\",IF(OR('TSA Input'!J3489=\"Yes\",'TSA Input'!J3489=\"Contingent\"),'TSA Input'!F3489,\"\"))","v":""},"","Required","Required"]
["",null,{"$f":"IF('TSA Input'!J3490=\"\",\"\",IF(OR('TSA Input'!J3490=\"Yes\",'TSA Input'!J3490=\"Contingent\"),'TSA Input'!B3490,\"Ineligible\"))","v":""},{"$f":"IF('TSA Input'!J3490=\"\",\"\",IF(OR('TSA Input'!J3490=\"Yes\",'TSA Input'!J3490=\"Contingent\"),'TSA Input'!I3490,\"\"))","v":""},{"$f":"IF('TSA Input'!J3490=\"\",\"\",IF(OR('TSA Input'!J3490=\"Yes\",'TSA Input'!J3490=\"Contingent\"),'TSA Input'!C3490,\"\"))","v":""},{"$f":"IF('TSA Input'!J3490=\"\",\"\",IF(OR('TSA Input'!J3490=\"Yes\",'TSA Input'!J3490=\"Contingent\"),'TSA Input'!D3490,\"\"))","v":""},{"$f":"IF('TSA Input'!J3490=\"\",\"\",IF(OR('TSA Input'!J3490=\"Yes\",'TSA Input'!J3490=\"Contingent\"),'TSA Input'!G3490,\"\"))","v":""},{"$f":"IF('TSA Input'!J3490=\"\",\"\",IF(OR('TSA Input'!J3490=\"Yes\",'TSA Input'!J3490=\"Contingent\"),'TSA Input'!F3490,\"\"))","v":""},"",{"$f":"IF('TSA Input'!J3490=\"\",\"\",IF(OR('TSA Input'!J3490=\"Yes\",'TSA Input'!J3490=\"Contingent\"),'TSA Input'!D3490,\"\"))","v":""},{"$f":"IF('TSA Input'!J3490=\"\",\"\",IF(OR('TSA Input'!J3490=\"Yes\",'TSA Input'!J3490=\"Contingent\"),'TSA Input'!G3490,\"\"))","v":""},{"$f":"IF('TSA Input'!J3490=\"\",\"\",IF(OR('TSA Input'!J3490=\"Yes\",'TSA Input'!J3490=\"Contingent\"),'TSA Input'!F3490,\"\"))","v":""},"","Required","Required"]
["",null,{"$f":"IF('TSA Input'!J3491=\"\",\"\",IF(OR('TSA Input'!J3491=\"Yes\",'TSA Input'!J3491=\"Contingent\"),'TSA Input'!B3491,\"Ineligible\"))","v":""},{"$f":"IF('TSA Input'!J3491=\"\",\"\",IF(OR('TSA Input'!J3491=\"Yes\",'TSA Input'!J3491=\"Contingent\"),'TSA Input'!I3491,\"\"))","v":""},{"$f":"IF('TSA Input'!J3491=\"\",\"\",IF(OR('TSA Input'!J3491=\"Yes\",'TSA Input'!J3491=\"Contingent\"),'TSA Input'!C3491,\"\"))","v":""},{"$f":"IF('TSA Input'!J3491=\"\",\"\",IF(OR('TSA Input'!J3491=\"Yes\",'TSA Input'!J3491=\"Contingent\"),'TSA Input'!D3491,\"\"))","v":""},{"$f":"IF('TSA Input'!J3491=\"\",\"\",IF(OR('TSA Input'!J3491=\"Yes\",'TSA Input'!J3491=\"Contingent\"),'TSA Input'!G3491,\"\"))","v":""},{"$f":"IF('TSA Input'!J3491=\"\",\"\",IF(OR('TSA Input'!J3491=\"Yes\",'TSA Input'!J3491=\"Contingent\"),'TSA Input'!F3491,\"\"))","v":""},"",{"$f":"IF('TSA Input'!J3491=\"\",\"\",IF(OR('TSA Input'!J3491=\"Yes\",'TSA Input'!J3491=\"Contingent\"),'TSA Input'!D3491,\"\"))","v":""},{"$f":"IF('TSA Input'!J3491=\"\",\"\",IF(OR('TSA Input'!J3491=\"Yes\",'TSA Input'!J3491=\"Contingent\"),'TSA Input'!G3491,\"\"))","v":""},{"$f":"IF('TSA Input'!J3491=\"\",\"\",IF(OR('TSA Input'!J3491=\"Yes\",'TSA Input'!J3491=\"Contingent\"),'TSA Input'!F3491,\"\"))","v":""},"","Required","Required"]
["",null,{"$f":"IF('TSA Input'!J3492=\"\",\"\",IF(OR('TSA Input'!J3492=\"Yes\",'TSA Input'!J3492=\"Contingent\"),'TSA Input'!B3492,\"Ineligible\"))","v":""},{"$f":"IF('TSA Input'!J3492=\"\",\"\",IF(OR('TSA Input'!J3492=\"Yes\",'TSA Input'!J3492=\"Contingent\"),'TSA Input'!I3492,\"\"))","v":""},{"$f":"IF('TSA Input'!J3492=\"\",\"\",IF(OR('TSA Input'!J3492=\"Yes\",'TSA Input'!J3492=\"Contingent\"),'TSA Input'!C3492,\"\"))","v":""},{"$f":"IF('TSA Input'!J3492=\"\",\"\",IF(OR('TSA Input'!J3492=\"Yes\",'TSA Input'!J3492=\"Contingent\"),'TSA Input'!D3492,\"\"))","v":""},{"$f":"IF('TSA Input'!J3492=\"\",\"\",IF(OR('TSA Input'!J3492=\"Yes\",'TSA Input'!J3492=\"Contingent\"),'TSA Input'!G3492,\"\"))","v":""},{"$f":"IF('TSA Input'!J3492=\"\",\"\",IF(OR('TSA Input'!J3492=\"Yes\",'TSA Input'!J3492=\"Contingent\"),'TSA Input'!F3492,\"\"))","v":""},"",{"$f":"IF('TSA Input'!J3492=\"\",\"\",IF(OR('TSA Input'!J3492=\"Yes\",'TSA Input'!J3492=\"Contingent\"),'TSA Input'!D3492,\"\"))","v":""},{"$f":"IF('TSA Input'!J3492=\"\",\"\",IF(OR('TSA Input'!J3492=\"Yes\",'TSA Input'!J3492=\"Contingent\"),'TSA Input'!G3492,\"\"))","v":""},{"$f":"IF('TSA Input'!J3492=\"\",\"\",IF(OR('TSA Input'!J3492=\"Yes\",'TSA Input'!J3492=\"Contingent\"),'TSA Input'!F3492,\"\"))","v":""},"","Required","Required"]
["",null,{"$f":"IF('TSA Input'!J3493=\"\",\"\",IF(OR('TSA Input'!J3493=\"Yes\",'TSA Input'!J3493=\"Contingent\"),'TSA Input'!B3493,\"Ineligible\"))","v":""},{"$f":"IF('TSA Input'!J3493=\"\",\"\",IF(OR('TSA Input'!J3493=\"Yes\",'TSA Input'!J3493=\"Contingent\"),'TSA Input'!I3493,\"\"))","v":""},{"$f":"IF('TSA Input'!J3493=\"\",\"\",IF(OR('TSA Input'!J3493=\"Yes\",'TSA Input'!J3493=\"Contingent\"),'TSA Input'!C3493,\"\"))","v":""},{"$f":"IF('TSA Input'!J3493=\"\",\"\",IF(OR('TSA Input'!J3493=\"Yes\",'TSA Input'!J3493=\"Contingent\"),'TSA Input'!D3493,\"\"))","v":""},{"$f":"IF('TSA Input'!J3493=\"\",\"\",IF(OR('TSA Input'!J3493=\"Yes\",'TSA Input'!J3493=\"Contingent\"),'TSA Input'!G3493,\"\"))","v":""},{"$f":"IF('TSA Input'!J3493=\"\",\"\",IF(OR('TSA Input'!J3493=\"Yes\",'TSA Input'!J3493=\"Contingent\"),'TSA Input'!F3493,\"\"))","v":""},"",{"$f":"IF('TSA Input'!J3493=\"\",\"\",IF(OR('TSA Input'!J3493=\"Yes\",'TSA Input'!J3493=\"Contingent\"),'TSA Input'!D3493,\"\"))","v":""},{"$f":"IF('TSA Input'!J3493=\"\",\"\",IF(OR('TSA Input'!J3493=\"Yes\",'TSA Input'!J3493=\"Contingent\"),'TSA Input'!G3493,\"\"))","v":""},{"$f":"IF('TSA Input'!J3493=\"\",\"\",IF(OR('TSA Input'!J3493=\"Yes\",'TSA Input'!J3493=\"Contingent\"),'TSA Input'!F3493,\"\"))","v":""},"","Required","Required"]
["",null,{"$f":"IF('TSA Input'!J3494=\"\",\"\",IF(OR('TSA Input'!J3494=\"Yes\",'TSA Input'!J3494=\"Contingent\"),'TSA Input'!B3494,\"Ineligible\"))","v":""},{"$f":"IF('TSA Input'!J3494=\"\",\"\",IF(OR('TSA Input'!J3494=\"Yes\",'TSA Input'!J3494=\"Contingent\"),'TSA Input'!I3494,\"\"))","v":""},{"$f":"IF('TSA Input'!J3494=\"\",\"\",IF(OR('TSA Input'!J3494=\"Yes\",'TSA Input'!J3494=\"Contingent\"),'TSA Input'!C3494,\"\"))","v":""},{"$f":"IF('TSA Input'!J3494=\"\",\"\",IF(OR('TSA Input'!J3494=\"Yes\",'TSA Input'!J3494=\"Contingent\"),'TSA Input'!D3494,\"\"))","v":""},{"$f":"IF('TSA Input'!J3494=\"\",\"\",IF(OR('TSA Input'!J3494=\"Yes\",'TSA Input'!J3494=\"Contingent\"),'TSA Input'!G3494,\"\"))","v":""},{"$f":"IF('TSA Input'!J3494=\"\",\"\",IF(OR('TSA Input'!J3494=\"Yes\",'TSA Input'!J3494=\"Contingent\"),'TSA Input'!F3494,\"\"))","v":""},"",{"$f":"IF('TSA Input'!J3494=\"\",\"\",IF(OR('TSA Input'!J3494=\"Yes\",'TSA Input'!J3494=\"Contingent\"),'TSA Input'!D3494,\"\"))","v":""},{"$f":"IF('TSA Input'!J3494=\"\",\"\",IF(OR('TSA Input'!J3494=\"Yes\",'TSA Input'!J3494=\"Contingent\"),'TSA Input'!G3494,\"\"))","v":""},{"$f":"IF('TSA Input'!J3494=\"\",\"\",IF(OR('TSA Input'!J3494=\"Yes\",'TSA Input'!J3494=\"Contingent\"),'TSA Input'!F3494,\"\"))","v":""},"","Required","Required"]
["",null,{"$f":"IF('TSA Input'!J3495=\"\",\"\",IF(OR('TSA Input'!J3495=\"Yes\",'TSA Input'!J3495=\"Contingent\"),'TSA Input'!B3495,\"Ineligible\"))","v":""},{"$f":"IF('TSA Input'!J3495=\"\",\"\",IF(OR('TSA Input'!J3495=\"Yes\",'TSA Input'!J3495=\"Contingent\"),'TSA Input'!I3495,\"\"))","v":""},{"$f":"IF('TSA Input'!J3495=\"\",\"\",IF(OR('TSA Input'!J3495=\"Yes\",'TSA Input'!J3495=\"Contingent\"),'TSA Input'!C3495,\"\"))","v":""},{"$f":"IF('TSA Input'!J3495=\"\",\"\",IF(OR('TSA Input'!J3495=\"Yes\",'TSA Input'!J3495=\"Contingent\"),'TSA Input'!D3495,\"\"))","v":""},{"$f":"IF('TSA Input'!J3495=\"\",\"\",IF(OR('TSA Input'!J3495=\"Yes\",'TSA Input'!J3495=\"Contingent\"),'TSA Input'!G3495,\"\"))","v":""},{"$f":"IF('TSA Input'!J3495=\"\",\"\",IF(OR('TSA Input'!J3495=\"Yes\",'TSA Input'!J3495=\"Contingent\"),'TSA Input'!F3495,\"\"))","v":""},"",{"$f":"IF('TSA Input'!J3495=\"\",\"\",IF(OR('TSA Input'!J3495=\"Yes\",'TSA Input'!J3495=\"Contingent\"),'TSA Input'!D3495,\"\"))","v":""},{"$f":"IF('TSA Input'!J3495=\"\",\"\",IF(OR('TSA Input'!J3495=\"Yes\",'TSA Input'!J3495=\"Contingent\"),'TSA Input'!G3495,\"\"))","v":""},{"$f":"IF('TSA Input'!J3495=\"\",\"\",IF(OR('TSA Input'!J3495=\"Yes\",'TSA Input'!J3495=\"Contingent\"),'TSA Input'!F3495,\"\"))","v":""},"","Required","Required"]
["",null,{"$f":"IF('TSA Input'!J3496=\"\",\"\",IF(OR('TSA Input'!J3496=\"Yes\",'TSA Input'!J3496=\"Contingent\"),'TSA Input'!B3496,\"Ineligible\"))","v":""},{"$f":"IF('TSA Input'!J3496=\"\",\"\",IF(OR('TSA Input'!J3496=\"Yes\",'TSA Input'!J3496=\"Contingent\"),'TSA Input'!I3496,\"\"))","v":""},{"$f":"IF('TSA Input'!J3496=\"\",\"\",IF(OR('TSA Input'!J3496=\"Yes\",'TSA Input'!J3496=\"Contingent\"),'TSA Input'!C3496,\"\"))","v":""},{"$f":"IF('TSA Input'!J3496=\"\",\"\",IF(OR('TSA Input'!J3496=\"Yes\",'TSA Input'!J3496=\"Contingent\"),'TSA Input'!D3496,\"\"))","v":""},{"$f":"IF('TSA Input'!J3496=\"\",\"\",IF(OR('TSA Input'!J3496=\"Yes\",'TSA Input'!J3496=\"Contingent\"),'TSA Input'!G3496,\"\"))","v":""},{"$f":"IF('TSA Input'!J3496=\"\",\"\",IF(OR('TSA Input'!J3496=\"Yes\",'TSA Input'!J3496=\"Contingent\"),'TSA Input'!F3496,\"\"))","v":""},"",{"$f":"IF('TSA Input'!J3496=\"\",\"\",IF(OR('TSA Input'!J3496=\"Yes\",'TSA Input'!J3496=\"Contingent\"),'TSA Input'!D3496,\"\"))","v":""},{"$f":"IF('TSA Input'!J3496=\"\",\"\",IF(OR('TSA Input'!J3496=\"Yes\",'TSA Input'!J3496=\"Contingent\"),'TSA Input'!G3496,\"\"))","v":""},{"$f":"IF('TSA Input'!J3496=\"\",\"\",IF(OR('TSA Input'!J3496=\"Yes\",'TSA Input'!J3496=\"Contingent\"),'TSA Input'!F3496,\"\"))","v":""},"","Required","Required"]
["",null,{"$f":"IF('TSA Input'!J3497=\"\",\"\",IF(OR('TSA Input'!J3497=\"Yes\",'TSA Input'!J3497=\"Contingent\"),'TSA Input'!B3497,\"Ineligible\"))","v":""},{"$f":"IF('TSA Input'!J3497=\"\",\"\",IF(OR('TSA Input'!J3497=\"Yes\",'TSA Input'!J3497=\"Contingent\"),'TSA Input'!I3497,\"\"))","v":""},{"$f":"IF('TSA Input'!J3497=\"\",\"\",IF(OR('TSA Input'!J3497=\"Yes\",'TSA Input'!J3497=\"Contingent\"),'TSA Input'!C3497,\"\"))","v":""},{"$f":"IF('TSA Input'!J3497=\"\",\"\",IF(OR('TSA Input'!J3497=\"Yes\",'TSA Input'!J3497=\"Contingent\"),'TSA Input'!D3497,\"\"))","v":""},{"$f":"IF('TSA Input'!J3497=\"\",\"\",IF(OR('TSA Input'!J3497=\"Yes\",'TSA Input'!J3497=\"Contingent\"),'TSA Input'!G3497,\"\"))","v":""},{"$f":"IF('TSA Input'!J3497=\"\",\"\",IF(OR('TSA Input'!J3497=\"Yes\",'TSA Input'!J3497=\"Contingent\"),'TSA Input'!F3497,\"\"))","v":""},"",{"$f":"IF('TSA Input'!J3497=\"\",\"\",IF(OR('TSA Input'!J3497=\"Yes\",'TSA Input'!J3497=\"Contingent\"),'TSA Input'!D3497,\"\"))","v":""},{"$f":"IF('TSA Input'!J3497=\"\",\"\",IF(OR('TSA Input'!J3497=\"Yes\",'TSA Input'!J3497=\"Contingent\"),'TSA Input'!G3497,\"\"))","v":""},{"$f":"IF('TSA Input'!J3497=\"\",\"\",IF(OR('TSA Input'!J3497=\"Yes\",'TSA Input'!J3497=\"Contingent\"),'TSA Input'!F3497,\"\"))","v":""},"","Required","Required"]
["",null,{"$f":"IF('TSA Input'!J3498=\"\",\"\",IF(OR('TSA Input'!J3498=\"Yes\",'TSA Input'!J3498=\"Contingent\"),'TSA Input'!B3498,\"Ineligible\"))","v":""},{"$f":"IF('TSA Input'!J3498=\"\",\"\",IF(OR('TSA Input'!J3498=\"Yes\",'TSA Input'!J3498=\"Contingent\"),'TSA Input'!I3498,\"\"))","v":""},{"$f":"IF('TSA Input'!J3498=\"\",\"\",IF(OR('TSA Input'!J3498=\"Yes\",'TSA Input'!J3498=\"Contingent\"),'TSA Input'!C3498,\"\"))","v":""},{"$f":"IF('TSA Input'!J3498=\"\",\"\",IF(OR('TSA Input'!J3498=\"Yes\",'TSA Input'!J3498=\"Contingent\"),'TSA Input'!D3498,\"\"))","v":""},{"$f":"IF('TSA Input'!J3498=\"\",\"\",IF(OR('TSA Input'!J3498=\"Yes\",'TSA Input'!J3498=\"Contingent\"),'TSA Input'!G3498,\"\"))","v":""},{"$f":"IF('TSA Input'!J3498=\"\",\"\",IF(OR('TSA Input'!J3498=\"Yes\",'TSA Input'!J3498=\"Contingent\"),'TSA Input'!F3498,\"\"))","v":""},"",{"$f":"IF('TSA Input'!J3498=\"\",\"\",IF(OR('TSA Input'!J3498=\"Yes\",'TSA Input'!J3498=\"Contingent\"),'TSA Input'!D3498,\"\"))","v":""},{"$f":"IF('TSA Input'!J3498=\"\",\"\",IF(OR('TSA Input'!J3498=\"Yes\",'TSA Input'!J3498=\"Contingent\"),'TSA Input'!G3498,\"\"))","v":""},{"$f":"IF('TSA Input'!J3498=\"\",\"\",IF(OR('TSA Input'!J3498=\"Yes\",'TSA Input'!J3498=\"Contingent\"),'TSA Input'!F3498,\"\"))","v":""},"","Required","Required"]
["",null,{"$f":"IF('TSA Input'!J3499=\"\",\"\",IF(OR('TSA Input'!J3499=\"Yes\",'TSA Input'!J3499=\"Contingent\"),'TSA Input'!B3499,\"Ineligible\"))","v":""},{"$f":"IF('TSA Input'!J3499=\"\",\"\",IF(OR('TSA Input'!J3499=\"Yes\",'TSA Input'!J3499=\"Contingent\"),'TSA Input'!I3499,\"\"))","v":""},{"$f":"IF('TSA Input'!J3499=\"\",\"\",IF(OR('TSA Input'!J3499=\"Yes\",'TSA Input'!J3499=\"Contingent\"),'TSA Input'!C3499,\"\"))","v":""},{"$f":"IF('TSA Input'!J3499=\"\",\"\",IF(OR('TSA Input'!J3499=\"Yes\",'TSA Input'!J3499=\"Contingent\"),'TSA Input'!D3499,\"\"))","v":""},{"$f":"IF('TSA Input'!J3499=\"\",\"\",IF(OR('TSA Input'!J3499=\"Yes\",'TSA Input'!J3499=\"Contingent\"),'TSA Input'!G3499,\"\"))","v":""},{"$f":"IF('TSA Input'!J3499=\"\",\"\",IF(OR('TSA Input'!J3499=\"Yes\",'TSA Input'!J3499=\"Contingent\"),'TSA Input'!F3499,\"\"))","v":""},"",{"$f":"IF('TSA Input'!J3499=\"\",\"\",IF(OR('TSA Input'!J3499=\"Yes\",'TSA Input'!J3499=\"Contingent\"),'TSA Input'!D3499,\"\"))","v":""},{"$f":"IF('TSA Input'!J3499=\"\",\"\",IF(OR('TSA Input'!J3499=\"Yes\",'TSA Input'!J3499=\"Contingent\"),'TSA Input'!G3499,\"\"))","v":""},{"$f":"IF('TSA Input'!J3499=\"\",\"\",IF(OR('TSA Input'!J3499=\"Yes\",'TSA Input'!J3499=\"Contingent\"),'TSA Input'!F3499,\"\"))","v":""},"","Required","Required"]
["",null,{"$f":"IF('TSA Input'!J3500=\"\",\"\",IF(OR('TSA Input'!J3500=\"Yes\",'TSA Input'!J3500=\"Contingent\"),'TSA Input'!B3500,\"Ineligible\"))","v":""},{"$f":"IF('TSA Input'!J3500=\"\",\"\",IF(OR('TSA Input'!J3500=\"Yes\",'TSA Input'!J3500=\"Contingent\"),'TSA Input'!I3500,\"\"))","v":""},{"$f":"IF('TSA Input'!J3500=\"\",\"\",IF(OR('TSA Input'!J3500=\"Yes\",'TSA Input'!J3500=\"Contingent\"),'TSA Input'!C3500,\"\"))","v":""},{"$f":"IF('TSA Input'!J3500=\"\",\"\",IF(OR('TSA Input'!J3500=\"Yes\",'TSA Input'!J3500=\"Contingent\"),'TSA Input'!D3500,\"\"))","v":""},{"$f":"IF('TSA Input'!J3500=\"\",\"\",IF(OR('TSA Input'!J3500=\"Yes\",'TSA Input'!J3500=\"Contingent\"),'TSA Input'!G3500,\"\"))","v":""},{"$f":"IF('TSA Input'!J3500=\"\",\"\",IF(OR('TSA Input'!J3500=\"Yes\",'TSA Input'!J3500=\"Contingent\"),'TSA Input'!F3500,\"\"))","v":""},"",{"$f":"IF('TSA Input'!J3500=\"\",\"\",IF(OR('TSA Input'!J3500=\"Yes\",'TSA Input'!J3500=\"Contingent\"),'TSA Input'!D3500,\"\"))","v":""},{"$f":"IF('TSA Input'!J3500=\"\",\"\",IF(OR('TSA Input'!J3500=\"Yes\",'TSA Input'!J3500=\"Contingent\"),'TSA Input'!G3500,\"\"))","v":""},{"$f":"IF('TSA Input'!J3500=\"\",\"\",IF(OR('TSA Input'!J3500=\"Yes\",'TSA Input'!J3500=\"Contingent\"),'TSA Input'!F3500,\"\"))","v":""},"","Required","Required"]
["",null,{"$f":"IF('TSA Input'!J3501=\"\",\"\",IF(OR('TSA Input'!J3501=\"Yes\",'TSA Input'!J3501=\"Contingent\"),'TSA Input'!B3501,\"Ineligible\"))","v":""},{"$f":"IF('TSA Input'!J3501=\"\",\"\",IF(OR('TSA Input'!J3501=\"Yes\",'TSA Input'!J3501=\"Contingent\"),'TSA Input'!I3501,\"\"))","v":""},{"$f":"IF('TSA Input'!J3501=\"\",\"\",IF(OR('TSA Input'!J3501=\"Yes\",'TSA Input'!J3501=\"Contingent\"),'TSA Input'!C3501,\"\"))","v":""},{"$f":"IF('TSA Input'!J3501=\"\",\"\",IF(OR('TSA Input'!J3501=\"Yes\",'TSA Input'!J3501=\"Contingent\"),'TSA Input'!D3501,\"\"))","v":""},{"$f":"IF('TSA Input'!J3501=\"\",\"\",IF(OR('TSA Input'!J3501=\"Yes\",'TSA Input'!J3501=\"Contingent\"),'TSA Input'!G3501,\"\"))","v":""},{"$f":"IF('TSA Input'!J3501=\"\",\"\",IF(OR('TSA Input'!J3501=\"Yes\",'TSA Input'!J3501=\"Contingent\"),'TSA Input'!F3501,\"\"))","v":""},"",{"$f":"IF('TSA Input'!J3501=\"\",\"\",IF(OR('TSA Input'!J3501=\"Yes\",'TSA Input'!J3501=\"Contingent\"),'TSA Input'!D3501,\"\"))","v":""},{"$f":"IF('TSA Input'!J3501=\"\",\"\",IF(OR('TSA Input'!J3501=\"Yes\",'TSA Input'!J3501=\"Contingent\"),'TSA Input'!G3501,\"\"))","v":""},{"$f":"IF('TSA Input'!J3501=\"\",\"\",IF(OR('TSA Input'!J3501=\"Yes\",'TSA Input'!J3501=\"Contingent\"),'TSA Input'!F3501,\"\"))","v":""},"","Required","Required"]
["",null,{"$f":"IF('TSA Input'!J3502=\"\",\"\",IF(OR('TSA Input'!J3502=\"Yes\",'TSA Input'!J3502=\"Contingent\"),'TSA Input'!B3502,\"Ineligible\"))","v":""},{"$f":"IF('TSA Input'!J3502=\"\",\"\",IF(OR('TSA Input'!J3502=\"Yes\",'TSA Input'!J3502=\"Contingent\"),'TSA Input'!I3502,\"\"))","v":""},{"$f":"IF('TSA Input'!J3502=\"\",\"\",IF(OR('TSA Input'!J3502=\"Yes\",'TSA Input'!J3502=\"Contingent\"),'TSA Input'!C3502,\"\"))","v":""},{"$f":"IF('TSA Input'!J3502=\"\",\"\",IF(OR('TSA Input'!J3502=\"Yes\",'TSA Input'!J3502=\"Contingent\"),'TSA Input'!D3502,\"\"))","v":""},{"$f":"IF('TSA Input'!J3502=\"\",\"\",IF(OR('TSA Input'!J3502=\"Yes\",'TSA Input'!J3502=\"Contingent\"),'TSA Input'!G3502,\"\"))","v":""},{"$f":"IF('TSA Input'!J3502=\"\",\"\",IF(OR('TSA Input'!J3502=\"Yes\",'TSA Input'!J3502=\"Contingent\"),'TSA Input'!F3502,\"\"))","v":""},"",{"$f":"IF('TSA Input'!J3502=\"\",\"\",IF(OR('TSA Input'!J3502=\"Yes\",'TSA Input'!J3502=\"Contingent\"),'TSA Input'!D3502,\"\"))","v":""},{"$f":"IF('TSA Input'!J3502=\"\",\"\",IF(OR('TSA Input'!J3502=\"Yes\",'TSA Input'!J3502=\"Contingent\"),'TSA Input'!G3502,\"\"))","v":""},{"$f":"IF('TSA Input'!J3502=\"\",\"\",IF(OR('TSA Input'!J3502=\"Yes\",'TSA Input'!J3502=\"Contingent\"),'TSA Input'!F3502,\"\"))","v":""},"","Required","Required"]
["",null,{"$f":"IF('TSA Input'!J3503=\"\",\"\",IF(OR('TSA Input'!J3503=\"Yes\",'TSA Input'!J3503=\"Contingent\"),'TSA Input'!B3503,\"Ineligible\"))","v":""},{"$f":"IF('TSA Input'!J3503=\"\",\"\",IF(OR('TSA Input'!J3503=\"Yes\",'TSA Input'!J3503=\"Contingent\"),'TSA Input'!I3503,\"\"))","v":""},{"$f":"IF('TSA Input'!J3503=\"\",\"\",IF(OR('TSA Input'!J3503=\"Yes\",'TSA Input'!J3503=\"Contingent\"),'TSA Input'!C3503,\"\"))","v":""},{"$f":"IF('TSA Input'!J3503=\"\",\"\",IF(OR('TSA Input'!J3503=\"Yes\",'TSA Input'!J3503=\"Contingent\"),'TSA Input'!D3503,\"\"))","v":""},{"$f":"IF('TSA Input'!J3503=\"\",\"\",IF(OR('TSA Input'!J3503=\"Yes\",'TSA Input'!J3503=\"Contingent\"),'TSA Input'!G3503,\"\"))","v":""},{"$f":"IF('TSA Input'!J3503=\"\",\"\",IF(OR('TSA Input'!J3503=\"Yes\",'TSA Input'!J3503=\"Contingent\"),'TSA Input'!F3503,\"\"))","v":""},"",{"$f":"IF('TSA Input'!J3503=\"\",\"\",IF(OR('TSA Input'!J3503=\"Yes\",'TSA Input'!J3503=\"Contingent\"),'TSA Input'!D3503,\"\"))","v":""},{"$f":"IF('TSA Input'!J3503=\"\",\"\",IF(OR('TSA Input'!J3503=\"Yes\",'TSA Input'!J3503=\"Contingent\"),'TSA Input'!G3503,\"\"))","v":""},{"$f":"IF('TSA Input'!J3503=\"\",\"\",IF(OR('TSA Input'!J3503=\"Yes\",'TSA Input'!J3503=\"Contingent\"),'TSA Input'!F3503,\"\"))","v":""},"","Required","Required"]
["",null,{"$f":"IF('TSA Input'!J3504=\"\",\"\",IF(OR('TSA Input'!J3504=\"Yes\",'TSA Input'!J3504=\"Contingent\"),'TSA Input'!B3504,\"Ineligible\"))","v":""},{"$f":"IF('TSA Input'!J3504=\"\",\"\",IF(OR('TSA Input'!J3504=\"Yes\",'TSA Input'!J3504=\"Contingent\"),'TSA Input'!I3504,\"\"))","v":""},{"$f":"IF('TSA Input'!J3504=\"\",\"\",IF(OR('TSA Input'!J3504=\"Yes\",'TSA Input'!J3504=\"Contingent\"),'TSA Input'!C3504,\"\"))","v":""},{"$f":"IF('TSA Input'!J3504=\"\",\"\",IF(OR('TSA Input'!J3504=\"Yes\",'TSA Input'!J3504=\"Contingent\"),'TSA Input'!D3504,\"\"))","v":""},{"$f":"IF('TSA Input'!J3504=\"\",\"\",IF(OR('TSA Input'!J3504=\"Yes\",'TSA Input'!J3504=\"Contingent\"),'TSA Input'!G3504,\"\"))","v":""},{"$f":"IF('TSA Input'!J3504=\"\",\"\",IF(OR('TSA Input'!J3504=\"Yes\",'TSA Input'!J3504=\"Contingent\"),'TSA Input'!F3504,\"\"))","v":""},"",{"$f":"IF('TSA Input'!J3504=\"\",\"\",IF(OR('TSA Input'!J3504=\"Yes\",'TSA Input'!J3504=\"Contingent\"),'TSA Input'!D3504,\"\"))","v":""},{"$f":"IF('TSA Input'!J3504=\"\",\"\",IF(OR('TSA Input'!J3504=\"Yes\",'TSA Input'!J3504=\"Contingent\"),'TSA Input'!G3504,\"\"))","v":""},{"$f":"IF('TSA Input'!J3504=\"\",\"\",IF(OR('TSA Input'!J3504=\"Yes\",'TSA Input'!J3504=\"Contingent\"),'TSA Input'!F3504,\"\"))","v":""},"","Required","Required"]
["",null,{"$f":"IF('TSA Input'!J3505=\"\",\"\",IF(OR('TSA Input'!J3505=\"Yes\",'TSA Input'!J3505=\"Contingent\"),'TSA Input'!B3505,\"Ineligible\"))","v":""},{"$f":"IF('TSA Input'!J3505=\"\",\"\",IF(OR('TSA Input'!J3505=\"Yes\",'TSA Input'!J3505=\"Contingent\"),'TSA Input'!I3505,\"\"))","v":""},{"$f":"IF('TSA Input'!J3505=\"\",\"\",IF(OR('TSA Input'!J3505=\"Yes\",'TSA Input'!J3505=\"Contingent\"),'TSA Input'!C3505,\"\"))","v":""},{"$f":"IF('TSA Input'!J3505=\"\",\"\",IF(OR('TSA Input'!J3505=\"Yes\",'TSA Input'!J3505=\"Contingent\"),'TSA Input'!D3505,\"\"))","v":""},{"$f":"IF('TSA Input'!J3505=\"\",\"\",IF(OR('TSA Input'!J3505=\"Yes\",'TSA Input'!J3505=\"Contingent\"),'TSA Input'!G3505,\"\"))","v":""},{"$f":"IF('TSA Input'!J3505=\"\",\"\",IF(OR('TSA Input'!J3505=\"Yes\",'TSA Input'!J3505=\"Contingent\"),'TSA Input'!F3505,\"\"))","v":""},"",{"$f":"IF('TSA Input'!J3505=\"\",\"\",IF(OR('TSA Input'!J3505=\"Yes\",'TSA Input'!J3505=\"Contingent\"),'TSA Input'!D3505,\"\"))","v":""},{"$f":"IF('TSA Input'!J3505=\"\",\"\",IF(OR('TSA Input'!J3505=\"Yes\",'TSA Input'!J3505=\"Contingent\"),'TSA Input'!G3505,\"\"))","v":""},{"$f":"IF('TSA Input'!J3505=\"\",\"\",IF(OR('TSA Input'!J3505=\"Yes\",'TSA Input'!J3505=\"Contingent\"),'TSA Input'!F3505,\"\"))","v":""},"","Required","Required"]
["",null,{"$f":"IF('TSA Input'!J3506=\"\",\"\",IF(OR('TSA Input'!J3506=\"Yes\",'TSA Input'!J3506=\"Contingent\"),'TSA Input'!B3506,\"Ineligible\"))","v":""},{"$f":"IF('TSA Input'!J3506=\"\",\"\",IF(OR('TSA Input'!J3506=\"Yes\",'TSA Input'!J3506=\"Contingent\"),'TSA Input'!I3506,\"\"))","v":""},{"$f":"IF('TSA Input'!J3506=\"\",\"\",IF(OR('TSA Input'!J3506=\"Yes\",'TSA Input'!J3506=\"Contingent\"),'TSA Input'!C3506,\"\"))","v":""},{"$f":"IF('TSA Input'!J3506=\"\",\"\",IF(OR('TSA Input'!J3506=\"Yes\",'TSA Input'!J3506=\"Contingent\"),'TSA Input'!D3506,\"\"))","v":""},{"$f":"IF('TSA Input'!J3506=\"\",\"\",IF(OR('TSA Input'!J3506=\"Yes\",'TSA Input'!J3506=\"Contingent\"),'TSA Input'!G3506,\"\"))","v":""},{"$f":"IF('TSA Input'!J3506=\"\",\"\",IF(OR('TSA Input'!J3506=\"Yes\",'TSA Input'!J3506=\"Contingent\"),'TSA Input'!F3506,\"\"))","v":""},"",{"$f":"IF('TSA Input'!J3506=\"\",\"\",IF(OR('TSA Input'!J3506=\"Yes\",'TSA Input'!J3506=\"Contingent\"),'TSA Input'!D3506,\"\"))","v":""},{"$f":"IF('TSA Input'!J3506=\"\",\"\",IF(OR('TSA Input'!J3506=\"Yes\",'TSA Input'!J3506=\"Contingent\"),'TSA Input'!G3506,\"\"))","v":""},{"$f":"IF('TSA Input'!J3506=\"\",\"\",IF(OR('TSA Input'!J3506=\"Yes\",'TSA Input'!J3506=\"Contingent\"),'TSA Input'!F3506,\"\"))","v":""},"","Required","Required"]
["",null,{"$f":"IF('TSA Input'!J3507=\"\",\"\",IF(OR('TSA Input'!J3507=\"Yes\",'TSA Input'!J3507=\"Contingent\"),'TSA Input'!B3507,\"Ineligible\"))","v":""},{"$f":"IF('TSA Input'!J3507=\"\",\"\",IF(OR('TSA Input'!J3507=\"Yes\",'TSA Input'!J3507=\"Contingent\"),'TSA Input'!I3507,\"\"))","v":""},{"$f":"IF('TSA Input'!J3507=\"\",\"\",IF(OR('TSA Input'!J3507=\"Yes\",'TSA Input'!J3507=\"Contingent\"),'TSA Input'!C3507,\"\"))","v":""},{"$f":"IF('TSA Input'!J3507=\"\",\"\",IF(OR('TSA Input'!J3507=\"Yes\",'TSA Input'!J3507=\"Contingent\"),'TSA Input'!D3507,\"\"))","v":""},{"$f":"IF('TSA Input'!J3507=\"\",\"\",IF(OR('TSA Input'!J3507=\"Yes\",'TSA Input'!J3507=\"Contingent\"),'TSA Input'!G3507,\"\"))","v":""},{"$f":"IF('TSA Input'!J3507=\"\",\"\",IF(OR('TSA Input'!J3507=\"Yes\",'TSA Input'!J3507=\"Contingent\"),'TSA Input'!F3507,\"\"))","v":""},"",{"$f":"IF('TSA Input'!J3507=\"\",\"\",IF(OR('TSA Input'!J3507=\"Yes\",'TSA Input'!J3507=\"Contingent\"),'TSA Input'!D3507,\"\"))","v":""},{"$f":"IF('TSA Input'!J3507=\"\",\"\",IF(OR('TSA Input'!J3507=\"Yes\",'TSA Input'!J3507=\"Contingent\"),'TSA Input'!G3507,\"\"))","v":""},{"$f":"IF('TSA Input'!J3507=\"\",\"\",IF(OR('TSA Input'!J3507=\"Yes\",'TSA Input'!J3507=\"Contingent\"),'TSA Input'!F3507,\"\"))","v":""},"","Required","Required"]
["",null,{"$f":"IF('TSA Input'!J3508=\"\",\"\",IF(OR('TSA Input'!J3508=\"Yes\",'TSA Input'!J3508=\"Contingent\"),'TSA Input'!B3508,\"Ineligible\"))","v":""},{"$f":"IF('TSA Input'!J3508=\"\",\"\",IF(OR('TSA Input'!J3508=\"Yes\",'TSA Input'!J3508=\"Contingent\"),'TSA Input'!I3508,\"\"))","v":""},{"$f":"IF('TSA Input'!J3508=\"\",\"\",IF(OR('TSA Input'!J3508=\"Yes\",'TSA Input'!J3508=\"Contingent\"),'TSA Input'!C3508,\"\"))","v":""},{"$f":"IF('TSA Input'!J3508=\"\",\"\",IF(OR('TSA Input'!J3508=\"Yes\",'TSA Input'!J3508=\"Contingent\"),'TSA Input'!D3508,\"\"))","v":""},{"$f":"IF('TSA Input'!J3508=\"\",\"\",IF(OR('TSA Input'!J3508=\"Yes\",'TSA Input'!J3508=\"Contingent\"),'TSA Input'!G3508,\"\"))","v":""},{"$f":"IF('TSA Input'!J3508=\"\",\"\",IF(OR('TSA Input'!J3508=\"Yes\",'TSA Input'!J3508=\"Contingent\"),'TSA Input'!F3508,\"\"))","v":""},"",{"$f":"IF('TSA Input'!J3508=\"\",\"\",IF(OR('TSA Input'!J3508=\"Yes\",'TSA Input'!J3508=\"Contingent\"),'TSA Input'!D3508,\"\"))","v":""},{"$f":"IF('TSA Input'!J3508=\"\",\"\",IF(OR('TSA Input'!J3508=\"Yes\",'TSA Input'!J3508=\"Contingent\"),'TSA Input'!G3508,\"\"))","v":""},{"$f":"IF('TSA Input'!J3508=\"\",\"\",IF(OR('TSA Input'!J3508=\"Yes\",'TSA Input'!J3508=\"Contingent\"),'TSA Input'!F3508,\"\"))","v":""},"","Required","Required"]
["",null,{"$f":"IF('TSA Input'!J3509=\"\",\"\",IF(OR('TSA Input'!J3509=\"Yes\",'TSA Input'!J3509=\"Contingent\"),'TSA Input'!B3509,\"Ineligible\"))","v":""},{"$f":"IF('TSA Input'!J3509=\"\",\"\",IF(OR('TSA Input'!J3509=\"Yes\",'TSA Input'!J3509=\"Contingent\"),'TSA Input'!I3509,\"\"))","v":""},{"$f":"IF('TSA Input'!J3509=\"\",\"\",IF(OR('TSA Input'!J3509=\"Yes\",'TSA Input'!J3509=\"Contingent\"),'TSA Input'!C3509,\"\"))","v":""},{"$f":"IF('TSA Input'!J3509=\"\",\"\",IF(OR('TSA Input'!J3509=\"Yes\",'TSA Input'!J3509=\"Contingent\"),'TSA Input'!D3509,\"\"))","v":""},{"$f":"IF('TSA Input'!J3509=\"\",\"\",IF(OR('TSA Input'!J3509=\"Yes\",'TSA Input'!J3509=\"Contingent\"),'TSA Input'!G3509,\"\"))","v":""},{"$f":"IF('TSA Input'!J3509=\"\",\"\",IF(OR('TSA Input'!J3509=\"Yes\",'TSA Input'!J3509=\"Contingent\"),'TSA Input'!F3509,\"\"))","v":""},"",{"$f":"IF('TSA Input'!J3509=\"\",\"\",IF(OR('TSA Input'!J3509=\"Yes\",'TSA Input'!J3509=\"Contingent\"),'TSA Input'!D3509,\"\"))","v":""},{"$f":"IF('TSA Input'!J3509=\"\",\"\",IF(OR('TSA Input'!J3509=\"Yes\",'TSA Input'!J3509=\"Contingent\"),'TSA Input'!G3509,\"\"))","v":""},{"$f":"IF('TSA Input'!J3509=\"\",\"\",IF(OR('TSA Input'!J3509=\"Yes\",'TSA Input'!J3509=\"Contingent\"),'TSA Input'!F3509,\"\"))","v":""},"","Required","Required"]
["",null,{"$f":"IF('TSA Input'!J3510=\"\",\"\",IF(OR('TSA Input'!J3510=\"Yes\",'TSA Input'!J3510=\"Contingent\"),'TSA Input'!B3510,\"Ineligible\"))","v":""},{"$f":"IF('TSA Input'!J3510=\"\",\"\",IF(OR('TSA Input'!J3510=\"Yes\",'TSA Input'!J3510=\"Contingent\"),'TSA Input'!I3510,\"\"))","v":""},{"$f":"IF('TSA Input'!J3510=\"\",\"\",IF(OR('TSA Input'!J3510=\"Yes\",'TSA Input'!J3510=\"Contingent\"),'TSA Input'!C3510,\"\"))","v":""},{"$f":"IF('TSA Input'!J3510=\"\",\"\",IF(OR('TSA Input'!J3510=\"Yes\",'TSA Input'!J3510=\"Contingent\"),'TSA Input'!D3510,\"\"))","v":""},{"$f":"IF('TSA Input'!J3510=\"\",\"\",IF(OR('TSA Input'!J3510=\"Yes\",'TSA Input'!J3510=\"Contingent\"),'TSA Input'!G3510,\"\"))","v":""},{"$f":"IF('TSA Input'!J3510=\"\",\"\",IF(OR('TSA Input'!J3510=\"Yes\",'TSA Input'!J3510=\"Contingent\"),'TSA Input'!F3510,\"\"))","v":""},"",{"$f":"IF('TSA Input'!J3510=\"\",\"\",IF(OR('TSA Input'!J3510=\"Yes\",'TSA Input'!J3510=\"Contingent\"),'TSA Input'!D3510,\"\"))","v":""},{"$f":"IF('TSA Input'!J3510=\"\",\"\",IF(OR('TSA Input'!J3510=\"Yes\",'TSA Input'!J3510=\"Contingent\"),'TSA Input'!G3510,\"\"))","v":""},{"$f":"IF('TSA Input'!J3510=\"\",\"\",IF(OR('TSA Input'!J3510=\"Yes\",'TSA Input'!J3510=\"Contingent\"),'TSA Input'!F3510,\"\"))","v":""},"","Required","Required"]
["",null,{"$f":"IF('TSA Input'!J3511=\"\",\"\",IF(OR('TSA Input'!J3511=\"Yes\",'TSA Input'!J3511=\"Contingent\"),'TSA Input'!B3511,\"Ineligible\"))","v":""},{"$f":"IF('TSA Input'!J3511=\"\",\"\",IF(OR('TSA Input'!J3511=\"Yes\",'TSA Input'!J3511=\"Contingent\"),'TSA Input'!I3511,\"\"))","v":""},{"$f":"IF('TSA Input'!J3511=\"\",\"\",IF(OR('TSA Input'!J3511=\"Yes\",'TSA Input'!J3511=\"Contingent\"),'TSA Input'!C3511,\"\"))","v":""},{"$f":"IF('TSA Input'!J3511=\"\",\"\",IF(OR('TSA Input'!J3511=\"Yes\",'TSA Input'!J3511=\"Contingent\"),'TSA Input'!D3511,\"\"))","v":""},{"$f":"IF('TSA Input'!J3511=\"\",\"\",IF(OR('TSA Input'!J3511=\"Yes\",'TSA Input'!J3511=\"Contingent\"),'TSA Input'!G3511,\"\"))","v":""},{"$f":"IF('TSA Input'!J3511=\"\",\"\",IF(OR('TSA Input'!J3511=\"Yes\",'TSA Input'!J3511=\"Contingent\"),'TSA Input'!F3511,\"\"))","v":""},"",{"$f":"IF('TSA Input'!J3511=\"\",\"\",IF(OR('TSA Input'!J3511=\"Yes\",'TSA Input'!J3511=\"Contingent\"),'TSA Input'!D3511,\"\"))","v":""},{"$f":"IF('TSA Input'!J3511=\"\",\"\",IF(OR('TSA Input'!J3511=\"Yes\",'TSA Input'!J3511=\"Contingent\"),'TSA Input'!G3511,\"\"))","v":""},{"$f":"IF('TSA Input'!J3511=\"\",\"\",IF(OR('TSA Input'!J3511=\"Yes\",'TSA Input'!J3511=\"Contingent\"),'TSA Input'!F3511,\"\"))","v":""},"","Required","Required"]
["",null,{"$f":"IF('TSA Input'!J3512=\"\",\"\",IF(OR('TSA Input'!J3512=\"Yes\",'TSA Input'!J3512=\"Contingent\"),'TSA Input'!B3512,\"Ineligible\"))","v":""},{"$f":"IF('TSA Input'!J3512=\"\",\"\",IF(OR('TSA Input'!J3512=\"Yes\",'TSA Input'!J3512=\"Contingent\"),'TSA Input'!I3512,\"\"))","v":""},{"$f":"IF('TSA Input'!J3512=\"\",\"\",IF(OR('TSA Input'!J3512=\"Yes\",'TSA Input'!J3512=\"Contingent\"),'TSA Input'!C3512,\"\"))","v":""},{"$f":"IF('TSA Input'!J3512=\"\",\"\",IF(OR('TSA Input'!J3512=\"Yes\",'TSA Input'!J3512=\"Contingent\"),'TSA Input'!D3512,\"\"))","v":""},{"$f":"IF('TSA Input'!J3512=\"\",\"\",IF(OR('TSA Input'!J3512=\"Yes\",'TSA Input'!J3512=\"Contingent\"),'TSA Input'!G3512,\"\"))","v":""},{"$f":"IF('TSA Input'!J3512=\"\",\"\",IF(OR('TSA Input'!J3512=\"Yes\",'TSA Input'!J3512=\"Contingent\"),'TSA Input'!F3512,\"\"))","v":""},"",{"$f":"IF('TSA Input'!J3512=\"\",\"\",IF(OR('TSA Input'!J3512=\"Yes\",'TSA Input'!J3512=\"Contingent\"),'TSA Input'!D3512,\"\"))","v":""},{"$f":"IF('TSA Input'!J3512=\"\",\"\",IF(OR('TSA Input'!J3512=\"Yes\",'TSA Input'!J3512=\"Contingent\"),'TSA Input'!G3512,\"\"))","v":""},{"$f":"IF('TSA Input'!J3512=\"\",\"\",IF(OR('TSA Input'!J3512=\"Yes\",'TSA Input'!J3512=\"Contingent\"),'TSA Input'!F3512,\"\"))","v":""},"","Required","Required"]
["",null,{"$f":"IF('TSA Input'!J3513=\"\",\"\",IF(OR('TSA Input'!J3513=\"Yes\",'TSA Input'!J3513=\"Contingent\"),'TSA Input'!B3513,\"Ineligible\"))","v":""},{"$f":"IF('TSA Input'!J3513=\"\",\"\",IF(OR('TSA Input'!J3513=\"Yes\",'TSA Input'!J3513=\"Contingent\"),'TSA Input'!I3513,\"\"))","v":""},{"$f":"IF('TSA Input'!J3513=\"\",\"\",IF(OR('TSA Input'!J3513=\"Yes\",'TSA Input'!J3513=\"Contingent\"),'TSA Input'!C3513,\"\"))","v":""},{"$f":"IF('TSA Input'!J3513=\"\",\"\",IF(OR('TSA Input'!J3513=\"Yes\",'TSA Input'!J3513=\"Contingent\"),'TSA Input'!D3513,\"\"))","v":""},{"$f":"IF('TSA Input'!J3513=\"\",\"\",IF(OR('TSA Input'!J3513=\"Yes\",'TSA Input'!J3513=\"Contingent\"),'TSA Input'!G3513,\"\"))","v":""},{"$f":"IF('TSA Input'!J3513=\"\",\"\",IF(OR('TSA Input'!J3513=\"Yes\",'TSA Input'!J3513=\"Contingent\"),'TSA Input'!F3513,\"\"))","v":""},"",{"$f":"IF('TSA Input'!J3513=\"\",\"\",IF(OR('TSA Input'!J3513=\"Yes\",'TSA Input'!J3513=\"Contingent\"),'TSA Input'!D3513,\"\"))","v":""},{"$f":"IF('TSA Input'!J3513=\"\",\"\",IF(OR('TSA Input'!J3513=\"Yes\",'TSA Input'!J3513=\"Contingent\"),'TSA Input'!G3513,\"\"))","v":""},{"$f":"IF('TSA Input'!J3513=\"\",\"\",IF(OR('TSA Input'!J3513=\"Yes\",'TSA Input'!J3513=\"Contingent\"),'TSA Input'!F3513,\"\"))","v":""},"","Required","Required"]
["",null,{"$f":"IF('TSA Input'!J3514=\"\",\"\",IF(OR('TSA Input'!J3514=\"Yes\",'TSA Input'!J3514=\"Contingent\"),'TSA Input'!B3514,\"Ineligible\"))","v":""},{"$f":"IF('TSA Input'!J3514=\"\",\"\",IF(OR('TSA Input'!J3514=\"Yes\",'TSA Input'!J3514=\"Contingent\"),'TSA Input'!I3514,\"\"))","v":""},{"$f":"IF('TSA Input'!J3514=\"\",\"\",IF(OR('TSA Input'!J3514=\"Yes\",'TSA Input'!J3514=\"Contingent\"),'TSA Input'!C3514,\"\"))","v":""},{"$f":"IF('TSA Input'!J3514=\"\",\"\",IF(OR('TSA Input'!J3514=\"Yes\",'TSA Input'!J3514=\"Contingent\"),'TSA Input'!D3514,\"\"))","v":""},{"$f":"IF('TSA Input'!J3514=\"\",\"\",IF(OR('TSA Input'!J3514=\"Yes\",'TSA Input'!J3514=\"Contingent\"),'TSA Input'!G3514,\"\"))","v":""},{"$f":"IF('TSA Input'!J3514=\"\",\"\",IF(OR('TSA Input'!J3514=\"Yes\",'TSA Input'!J3514=\"Contingent\"),'TSA Input'!F3514,\"\"))","v":""},"",{"$f":"IF('TSA Input'!J3514=\"\",\"\",IF(OR('TSA Input'!J3514=\"Yes\",'TSA Input'!J3514=\"Contingent\"),'TSA Input'!D3514,\"\"))","v":""},{"$f":"IF('TSA Input'!J3514=\"\",\"\",IF(OR('TSA Input'!J3514=\"Yes\",'TSA Input'!J3514=\"Contingent\"),'TSA Input'!G3514,\"\"))","v":""},{"$f":"IF('TSA Input'!J3514=\"\",\"\",IF(OR('TSA Input'!J3514=\"Yes\",'TSA Input'!J3514=\"Contingent\"),'TSA Input'!F3514,\"\"))","v":""},"","Required","Required"]
["",null,{"$f":"IF('TSA Input'!J3515=\"\",\"\",IF(OR('TSA Input'!J3515=\"Yes\",'TSA Input'!J3515=\"Contingent\"),'TSA Input'!B3515,\"Ineligible\"))","v":""},{"$f":"IF('TSA Input'!J3515=\"\",\"\",IF(OR('TSA Input'!J3515=\"Yes\",'TSA Input'!J3515=\"Contingent\"),'TSA Input'!I3515,\"\"))","v":""},{"$f":"IF('TSA Input'!J3515=\"\",\"\",IF(OR('TSA Input'!J3515=\"Yes\",'TSA Input'!J3515=\"Contingent\"),'TSA Input'!C3515,\"\"))","v":""},{"$f":"IF('TSA Input'!J3515=\"\",\"\",IF(OR('TSA Input'!J3515=\"Yes\",'TSA Input'!J3515=\"Contingent\"),'TSA Input'!D3515,\"\"))","v":""},{"$f":"IF('TSA Input'!J3515=\"\",\"\",IF(OR('TSA Input'!J3515=\"Yes\",'TSA Input'!J3515=\"Contingent\"),'TSA Input'!G3515,\"\"))","v":""},{"$f":"IF('TSA Input'!J3515=\"\",\"\",IF(OR('TSA Input'!J3515=\"Yes\",'TSA Input'!J3515=\"Contingent\"),'TSA Input'!F3515,\"\"))","v":""},"",{"$f":"IF('TSA Input'!J3515=\"\",\"\",IF(OR('TSA Input'!J3515=\"Yes\",'TSA Input'!J3515=\"Contingent\"),'TSA Input'!D3515,\"\"))","v":""},{"$f":"IF('TSA Input'!J3515=\"\",\"\",IF(OR('TSA Input'!J3515=\"Yes\",'TSA Input'!J3515=\"Contingent\"),'TSA Input'!G3515,\"\"))","v":""},{"$f":"IF('TSA Input'!J3515=\"\",\"\",IF(OR('TSA Input'!J3515=\"Yes\",'TSA Input'!J3515=\"Contingent\"),'TSA Input'!F3515,\"\"))","v":""},"","Required","Required"]
["",null,{"$f":"IF('TSA Input'!J3516=\"\",\"\",IF(OR('TSA Input'!J3516=\"Yes\",'TSA Input'!J3516=\"Contingent\"),'TSA Input'!B3516,\"Ineligible\"))","v":""},{"$f":"IF('TSA Input'!J3516=\"\",\"\",IF(OR('TSA Input'!J3516=\"Yes\",'TSA Input'!J3516=\"Contingent\"),'TSA Input'!I3516,\"\"))","v":""},{"$f":"IF('TSA Input'!J3516=\"\",\"\",IF(OR('TSA Input'!J3516=\"Yes\",'TSA Input'!J3516=\"Contingent\"),'TSA Input'!C3516,\"\"))","v":""},{"$f":"IF('TSA Input'!J3516=\"\",\"\",IF(OR('TSA Input'!J3516=\"Yes\",'TSA Input'!J3516=\"Contingent\"),'TSA Input'!D3516,\"\"))","v":""},{"$f":"IF('TSA Input'!J3516=\"\",\"\",IF(OR('TSA Input'!J3516=\"Yes\",'TSA Input'!J3516=\"Contingent\"),'TSA Input'!G3516,\"\"))","v":""},{"$f":"IF('TSA Input'!J3516=\"\",\"\",IF(OR('TSA Input'!J3516=\"Yes\",'TSA Input'!J3516=\"Contingent\"),'TSA Input'!F3516,\"\"))","v":""},"",{"$f":"IF('TSA Input'!J3516=\"\",\"\",IF(OR('TSA Input'!J3516=\"Yes\",'TSA Input'!J3516=\"Contingent\"),'TSA Input'!D3516,\"\"))","v":""},{"$f":"IF('TSA Input'!J3516=\"\",\"\",IF(OR('TSA Input'!J3516=\"Yes\",'TSA Input'!J3516=\"Contingent\"),'TSA Input'!G3516,\"\"))","v":""},{"$f":"IF('TSA Input'!J3516=\"\",\"\",IF(OR('TSA Input'!J3516=\"Yes\",'TSA Input'!J3516=\"Contingent\"),'TSA Input'!F3516,\"\"))","v":""},"","Required","Required"]
["",null,{"$f":"IF('TSA Input'!J3517=\"\",\"\",IF(OR('TSA Input'!J3517=\"Yes\",'TSA Input'!J3517=\"Contingent\"),'TSA Input'!B3517,\"Ineligible\"))","v":""},{"$f":"IF('TSA Input'!J3517=\"\",\"\",IF(OR('TSA Input'!J3517=\"Yes\",'TSA Input'!J3517=\"Contingent\"),'TSA Input'!I3517,\"\"))","v":""},{"$f":"IF('TSA Input'!J3517=\"\",\"\",IF(OR('TSA Input'!J3517=\"Yes\",'TSA Input'!J3517=\"Contingent\"),'TSA Input'!C3517,\"\"))","v":""},{"$f":"IF('TSA Input'!J3517=\"\",\"\",IF(OR('TSA Input'!J3517=\"Yes\",'TSA Input'!J3517=\"Contingent\"),'TSA Input'!D3517,\"\"))","v":""},{"$f":"IF('TSA Input'!J3517=\"\",\"\",IF(OR('TSA Input'!J3517=\"Yes\",'TSA Input'!J3517=\"Contingent\"),'TSA Input'!G3517,\"\"))","v":""},{"$f":"IF('TSA Input'!J3517=\"\",\"\",IF(OR('TSA Input'!J3517=\"Yes\",'TSA Input'!J3517=\"Contingent\"),'TSA Input'!F3517,\"\"))","v":""},"",{"$f":"IF('TSA Input'!J3517=\"\",\"\",IF(OR('TSA Input'!J3517=\"Yes\",'TSA Input'!J3517=\"Contingent\"),'TSA Input'!D3517,\"\"))","v":""},{"$f":"IF('TSA Input'!J3517=\"\",\"\",IF(OR('TSA Input'!J3517=\"Yes\",'TSA Input'!J3517=\"Contingent\"),'TSA Input'!G3517,\"\"))","v":""},{"$f":"IF('TSA Input'!J3517=\"\",\"\",IF(OR('TSA Input'!J3517=\"Yes\",'TSA Input'!J3517=\"Contingent\"),'TSA Input'!F3517,\"\"))","v":""},"","Required","Required"]
["",null,{"$f":"IF('TSA Input'!J3518=\"\",\"\",IF(OR('TSA Input'!J3518=\"Yes\",'TSA Input'!J3518=\"Contingent\"),'TSA Input'!B3518,\"Ineligible\"))","v":""},{"$f":"IF('TSA Input'!J3518=\"\",\"\",IF(OR('TSA Input'!J3518=\"Yes\",'TSA Input'!J3518=\"Contingent\"),'TSA Input'!I3518,\"\"))","v":""},{"$f":"IF('TSA Input'!J3518=\"\",\"\",IF(OR('TSA Input'!J3518=\"Yes\",'TSA Input'!J3518=\"Contingent\"),'TSA Input'!C3518,\"\"))","v":""},{"$f":"IF('TSA Input'!J3518=\"\",\"\",IF(OR('TSA Input'!J3518=\"Yes\",'TSA Input'!J3518=\"Contingent\"),'TSA Input'!D3518,\"\"))","v":""},{"$f":"IF('TSA Input'!J3518=\"\",\"\",IF(OR('TSA Input'!J3518=\"Yes\",'TSA Input'!J3518=\"Contingent\"),'TSA Input'!G3518,\"\"))","v":""},{"$f":"IF('TSA Input'!J3518=\"\",\"\",IF(OR('TSA Input'!J3518=\"Yes\",'TSA Input'!J3518=\"Contingent\"),'TSA Input'!F3518,\"\"))","v":""},"",{"$f":"IF('TSA Input'!J3518=\"\",\"\",IF(OR('TSA Input'!J3518=\"Yes\",'TSA Input'!J3518=\"Contingent\"),'TSA Input'!D3518,\"\"))","v":""},{"$f":"IF('TSA Input'!J3518=\"\",\"\",IF(OR('TSA Input'!J3518=\"Yes\",'TSA Input'!J3518=\"Contingent\"),'TSA Input'!G3518,\"\"))","v":""},{"$f":"IF('TSA Input'!J3518=\"\",\"\",IF(OR('TSA Input'!J3518=\"Yes\",'TSA Input'!J3518=\"Contingent\"),'TSA Input'!F3518,\"\"))","v":""},"","Required","Required"]
["",null,{"$f":"IF('TSA Input'!J3519=\"\",\"\",IF(OR('TSA Input'!J3519=\"Yes\",'TSA Input'!J3519=\"Contingent\"),'TSA Input'!B3519,\"Ineligible\"))","v":""},{"$f":"IF('TSA Input'!J3519=\"\",\"\",IF(OR('TSA Input'!J3519=\"Yes\",'TSA Input'!J3519=\"Contingent\"),'TSA Input'!I3519,\"\"))","v":""},{"$f":"IF('TSA Input'!J3519=\"\",\"\",IF(OR('TSA Input'!J3519=\"Yes\",'TSA Input'!J3519=\"Contingent\"),'TSA Input'!C3519,\"\"))","v":""},{"$f":"IF('TSA Input'!J3519=\"\",\"\",IF(OR('TSA Input'!J3519=\"Yes\",'TSA Input'!J3519=\"Contingent\"),'TSA Input'!D3519,\"\"))","v":""},{"$f":"IF('TSA Input'!J3519=\"\",\"\",IF(OR('TSA Input'!J3519=\"Yes\",'TSA Input'!J3519=\"Contingent\"),'TSA Input'!G3519,\"\"))","v":""},{"$f":"IF('TSA Input'!J3519=\"\",\"\",IF(OR('TSA Input'!J3519=\"Yes\",'TSA Input'!J3519=\"Contingent\"),'TSA Input'!F3519,\"\"))","v":""},"",{"$f":"IF('TSA Input'!J3519=\"\",\"\",IF(OR('TSA Input'!J3519=\"Yes\",'TSA Input'!J3519=\"Contingent\"),'TSA Input'!D3519,\"\"))","v":""},{"$f":"IF('TSA Input'!J3519=\"\",\"\",IF(OR('TSA Input'!J3519=\"Yes\",'TSA Input'!J3519=\"Contingent\"),'TSA Input'!G3519,\"\"))","v":""},{"$f":"IF('TSA Input'!J3519=\"\",\"\",IF(OR('TSA Input'!J3519=\"Yes\",'TSA Input'!J3519=\"Contingent\"),'TSA Input'!F3519,\"\"))","v":""},"","Required","Required"]
["",null,{"$f":"IF('TSA Input'!J3520=\"\",\"\",IF(OR('TSA Input'!J3520=\"Yes\",'TSA Input'!J3520=\"Contingent\"),'TSA Input'!B3520,\"Ineligible\"))","v":""},{"$f":"IF('TSA Input'!J3520=\"\",\"\",IF(OR('TSA Input'!J3520=\"Yes\",'TSA Input'!J3520=\"Contingent\"),'TSA Input'!I3520,\"\"))","v":""},{"$f":"IF('TSA Input'!J3520=\"\",\"\",IF(OR('TSA Input'!J3520=\"Yes\",'TSA Input'!J3520=\"Contingent\"),'TSA Input'!C3520,\"\"))","v":""},{"$f":"IF('TSA Input'!J3520=\"\",\"\",IF(OR('TSA Input'!J3520=\"Yes\",'TSA Input'!J3520=\"Contingent\"),'TSA Input'!D3520,\"\"))","v":""},{"$f":"IF('TSA Input'!J3520=\"\",\"\",IF(OR('TSA Input'!J3520=\"Yes\",'TSA Input'!J3520=\"Contingent\"),'TSA Input'!G3520,\"\"))","v":""},{"$f":"IF('TSA Input'!J3520=\"\",\"\",IF(OR('TSA Input'!J3520=\"Yes\",'TSA Input'!J3520=\"Contingent\"),'TSA Input'!F3520,\"\"))","v":""},"",{"$f":"IF('TSA Input'!J3520=\"\",\"\",IF(OR('TSA Input'!J3520=\"Yes\",'TSA Input'!J3520=\"Contingent\"),'TSA Input'!D3520,\"\"))","v":""},{"$f":"IF('TSA Input'!J3520=\"\",\"\",IF(OR('TSA Input'!J3520=\"Yes\",'TSA Input'!J3520=\"Contingent\"),'TSA Input'!G3520,\"\"))","v":""},{"$f":"IF('TSA Input'!J3520=\"\",\"\",IF(OR('TSA Input'!J3520=\"Yes\",'TSA Input'!J3520=\"Contingent\"),'TSA Input'!F3520,\"\"))","v":""},"","Required","Required"]
["",null,{"$f":"IF('TSA Input'!J3521=\"\",\"\",IF(OR('TSA Input'!J3521=\"Yes\",'TSA Input'!J3521=\"Contingent\"),'TSA Input'!B3521,\"Ineligible\"))","v":""},{"$f":"IF('TSA Input'!J3521=\"\",\"\",IF(OR('TSA Input'!J3521=\"Yes\",'TSA Input'!J3521=\"Contingent\"),'TSA Input'!I3521,\"\"))","v":""},{"$f":"IF('TSA Input'!J3521=\"\",\"\",IF(OR('TSA Input'!J3521=\"Yes\",'TSA Input'!J3521=\"Contingent\"),'TSA Input'!C3521,\"\"))","v":""},{"$f":"IF('TSA Input'!J3521=\"\",\"\",IF(OR('TSA Input'!J3521=\"Yes\",'TSA Input'!J3521=\"Contingent\"),'TSA Input'!D3521,\"\"))","v":""},{"$f":"IF('TSA Input'!J3521=\"\",\"\",IF(OR('TSA Input'!J3521=\"Yes\",'TSA Input'!J3521=\"Contingent\"),'TSA Input'!G3521,\"\"))","v":""},{"$f":"IF('TSA Input'!J3521=\"\",\"\",IF(OR('TSA Input'!J3521=\"Yes\",'TSA Input'!J3521=\"Contingent\"),'TSA Input'!F3521,\"\"))","v":""},"",{"$f":"IF('TSA Input'!J3521=\"\",\"\",IF(OR('TSA Input'!J3521=\"Yes\",'TSA Input'!J3521=\"Contingent\"),'TSA Input'!D3521,\"\"))","v":""},{"$f":"IF('TSA Input'!J3521=\"\",\"\",IF(OR('TSA Input'!J3521=\"Yes\",'TSA Input'!J3521=\"Contingent\"),'TSA Input'!G3521,\"\"))","v":""},{"$f":"IF('TSA Input'!J3521=\"\",\"\",IF(OR('TSA Input'!J3521=\"Yes\",'TSA Input'!J3521=\"Contingent\"),'TSA Input'!F3521,\"\"))","v":""},"","Required","Required"]
["",null,{"$f":"IF('TSA Input'!J3522=\"\",\"\",IF(OR('TSA Input'!J3522=\"Yes\",'TSA Input'!J3522=\"Contingent\"),'TSA Input'!B3522,\"Ineligible\"))","v":""},{"$f":"IF('TSA Input'!J3522=\"\",\"\",IF(OR('TSA Input'!J3522=\"Yes\",'TSA Input'!J3522=\"Contingent\"),'TSA Input'!I3522,\"\"))","v":""},{"$f":"IF('TSA Input'!J3522=\"\",\"\",IF(OR('TSA Input'!J3522=\"Yes\",'TSA Input'!J3522=\"Contingent\"),'TSA Input'!C3522,\"\"))","v":""},{"$f":"IF('TSA Input'!J3522=\"\",\"\",IF(OR('TSA Input'!J3522=\"Yes\",'TSA Input'!J3522=\"Contingent\"),'TSA Input'!D3522,\"\"))","v":""},{"$f":"IF('TSA Input'!J3522=\"\",\"\",IF(OR('TSA Input'!J3522=\"Yes\",'TSA Input'!J3522=\"Contingent\"),'TSA Input'!G3522,\"\"))","v":""},{"$f":"IF('TSA Input'!J3522=\"\",\"\",IF(OR('TSA Input'!J3522=\"Yes\",'TSA Input'!J3522=\"Contingent\"),'TSA Input'!F3522,\"\"))","v":""},"",{"$f":"IF('TSA Input'!J3522=\"\",\"\",IF(OR('TSA Input'!J3522=\"Yes\",'TSA Input'!J3522=\"Contingent\"),'TSA Input'!D3522,\"\"))","v":""},{"$f":"IF('TSA Input'!J3522=\"\",\"\",IF(OR('TSA Input'!J3522=\"Yes\",'TSA Input'!J3522=\"Contingent\"),'TSA Input'!G3522,\"\"))","v":""},{"$f":"IF('TSA Input'!J3522=\"\",\"\",IF(OR('TSA Input'!J3522=\"Yes\",'TSA Input'!J3522=\"Contingent\"),'TSA Input'!F3522,\"\"))","v":""},"","Required","Required"]
["",null,{"$f":"IF('TSA Input'!J3523=\"\",\"\",IF(OR('TSA Input'!J3523=\"Yes\",'TSA Input'!J3523=\"Contingent\"),'TSA Input'!B3523,\"Ineligible\"))","v":""},{"$f":"IF('TSA Input'!J3523=\"\",\"\",IF(OR('TSA Input'!J3523=\"Yes\",'TSA Input'!J3523=\"Contingent\"),'TSA Input'!I3523,\"\"))","v":""},{"$f":"IF('TSA Input'!J3523=\"\",\"\",IF(OR('TSA Input'!J3523=\"Yes\",'TSA Input'!J3523=\"Contingent\"),'TSA Input'!C3523,\"\"))","v":""},{"$f":"IF('TSA Input'!J3523=\"\",\"\",IF(OR('TSA Input'!J3523=\"Yes\",'TSA Input'!J3523=\"Contingent\"),'TSA Input'!D3523,\"\"))","v":""},{"$f":"IF('TSA Input'!J3523=\"\",\"\",IF(OR('TSA Input'!J3523=\"Yes\",'TSA Input'!J3523=\"Contingent\"),'TSA Input'!G3523,\"\"))","v":""},{"$f":"IF('TSA Input'!J3523=\"\",\"\",IF(OR('TSA Input'!J3523=\"Yes\",'TSA Input'!J3523=\"Contingent\"),'TSA Input'!F3523,\"\"))","v":""},"",{"$f":"IF('TSA Input'!J3523=\"\",\"\",IF(OR('TSA Input'!J3523=\"Yes\",'TSA Input'!J3523=\"Contingent\"),'TSA Input'!D3523,\"\"))","v":""},{"$f":"IF('TSA Input'!J3523=\"\",\"\",IF(OR('TSA Input'!J3523=\"Yes\",'TSA Input'!J3523=\"Contingent\"),'TSA Input'!G3523,\"\"))","v":""},{"$f":"IF('TSA Input'!J3523=\"\",\"\",IF(OR('TSA Input'!J3523=\"Yes\",'TSA Input'!J3523=\"Contingent\"),'TSA Input'!F3523,\"\"))","v":""},"","Required","Required"]
["",null,{"$f":"IF('TSA Input'!J3524=\"\",\"\",IF(OR('TSA Input'!J3524=\"Yes\",'TSA Input'!J3524=\"Contingent\"),'TSA Input'!B3524,\"Ineligible\"))","v":""},{"$f":"IF('TSA Input'!J3524=\"\",\"\",IF(OR('TSA Input'!J3524=\"Yes\",'TSA Input'!J3524=\"Contingent\"),'TSA Input'!I3524,\"\"))","v":""},{"$f":"IF('TSA Input'!J3524=\"\",\"\",IF(OR('TSA Input'!J3524=\"Yes\",'TSA Input'!J3524=\"Contingent\"),'TSA Input'!C3524,\"\"))","v":""},{"$f":"IF('TSA Input'!J3524=\"\",\"\",IF(OR('TSA Input'!J3524=\"Yes\",'TSA Input'!J3524=\"Contingent\"),'TSA Input'!D3524,\"\"))","v":""},{"$f":"IF('TSA Input'!J3524=\"\",\"\",IF(OR('TSA Input'!J3524=\"Yes\",'TSA Input'!J3524=\"Contingent\"),'TSA Input'!G3524,\"\"))","v":""},{"$f":"IF('TSA Input'!J3524=\"\",\"\",IF(OR('TSA Input'!J3524=\"Yes\",'TSA Input'!J3524=\"Contingent\"),'TSA Input'!F3524,\"\"))","v":""},{"$f":"IF($C3562=\"\",\"\",SUM(F3562:H3562))","v":""},{"$f":"IF('TSA Input'!J3524=\"\",\"\",IF(OR('TSA Input'!J3524=\"Yes\",'TSA Input'!J3524=\"Contingent\"),'TSA Input'!D3524,\"\"))","v":""},{"$f":"IF('TSA Input'!J3524=\"\",\"\",IF(OR('TSA Input'!J3524=\"Yes\",'TSA Input'!J3524=\"Contingent\"),'TSA Input'!G3524,\"\"))","v":""},{"$f":"IF('TSA Input'!J3524=\"\",\"\",IF(OR('TSA Input'!J3524=\"Yes\",'TSA Input'!J3524=\"Contingent\"),'TSA Input'!F3524,\"\"))","v":""},{"$f":"IF($C3562=\"\",\"\",SUM(J3562:L3562))","v":""},"Required","Required"]
["",null,{"$f":"IF('TSA Input'!J3525=\"\",\"\",IF(OR('TSA Input'!J3525=\"Yes\",'TSA Input'!J3525=\"Contingent\"),'TSA Input'!B3525,\"Ineligible\"))","v":""},{"$f":"IF('TSA Input'!J3525=\"\",\"\",IF(OR('TSA Input'!J3525=\"Yes\",'TSA Input'!J3525=\"Contingent\"),'TSA Input'!I3525,\"\"))","v":""},{"$f":"IF('TSA Input'!J3525=\"\",\"\",IF(OR('TSA Input'!J3525=\"Yes\",'TSA Input'!J3525=\"Contingent\"),'TSA Input'!C3525,\"\"))","v":""},{"$f":"IF('TSA Input'!J3525=\"\",\"\",IF(OR('TSA Input'!J3525=\"Yes\",'TSA Input'!J3525=\"Contingent\"),'TSA Input'!D3525,\"\"))","v":""},{"$f":"IF('TSA Input'!J3525=\"\",\"\",IF(OR('TSA Input'!J3525=\"Yes\",'TSA Input'!J3525=\"Contingent\"),'TSA Input'!G3525,\"\"))","v":""},{"$f":"IF('TSA Input'!J3525=\"\",\"\",IF(OR('TSA Input'!J3525=\"Yes\",'TSA Input'!J3525=\"Contingent\"),'TSA Input'!F3525,\"\"))","v":""},"",{"$f":"IF('TSA Input'!J3525=\"\",\"\",IF(OR('TSA Input'!J3525=\"Yes\",'TSA Input'!J3525=\"Contingent\"),'TSA Input'!D3525,\"\"))","v":""},{"$f":"IF('TSA Input'!J3525=\"\",\"\",IF(OR('TSA Input'!J3525=\"Yes\",'TSA Input'!J3525=\"Contingent\"),'TSA Input'!G3525,\"\"))","v":""},{"$f":"IF('TSA Input'!J3525=\"\",\"\",IF(OR('TSA Input'!J3525=\"Yes\",'TSA Input'!J3525=\"Contingent\"),'TSA Input'!F3525,\"\"))","v":""},"","Required","Required"]
["",null,{"$f":"IF('TSA Input'!J3526=\"\",\"\",IF(OR('TSA Input'!J3526=\"Yes\",'TSA Input'!J3526=\"Contingent\"),'TSA Input'!B3526,\"Ineligible\"))","v":""},{"$f":"IF('TSA Input'!J3526=\"\",\"\",IF(OR('TSA Input'!J3526=\"Yes\",'TSA Input'!J3526=\"Contingent\"),'TSA Input'!I3526,\"\"))","v":""},{"$f":"IF('TSA Input'!J3526=\"\",\"\",IF(OR('TSA Input'!J3526=\"Yes\",'TSA Input'!J3526=\"Contingent\"),'TSA Input'!C3526,\"\"))","v":""},{"$f":"IF('TSA Input'!J3526=\"\",\"\",IF(OR('TSA Input'!J3526=\"Yes\",'TSA Input'!J3526=\"Contingent\"),'TSA Input'!D3526,\"\"))","v":""},{"$f":"IF('TSA Input'!J3526=\"\",\"\",IF(OR('TSA Input'!J3526=\"Yes\",'TSA Input'!J3526=\"Contingent\"),'TSA Input'!G3526,\"\"))","v":""},{"$f":"IF('TSA Input'!J3526=\"\",\"\",IF(OR('TSA Input'!J3526=\"Yes\",'TSA Input'!J3526=\"Contingent\"),'TSA Input'!F3526,\"\"))","v":""},"",{"$f":"IF('TSA Input'!J3526=\"\",\"\",IF(OR('TSA Input'!J3526=\"Yes\",'TSA Input'!J3526=\"Contingent\"),'TSA Input'!D3526,\"\"))","v":""},{"$f":"IF('TSA Input'!J3526=\"\",\"\",IF(OR('TSA Input'!J3526=\"Yes\",'TSA Input'!J3526=\"Contingent\"),'TSA Input'!G3526,\"\"))","v":""},{"$f":"IF('TSA Input'!J3526=\"\",\"\",IF(OR('TSA Input'!J3526=\"Yes\",'TSA Input'!J3526=\"Contingent\"),'TSA Input'!F3526,\"\"))","v":""},"","Required","Required"]
["",null,{"$f":"IF('TSA Input'!J3527=\"\",\"\",IF(OR('TSA Input'!J3527=\"Yes\",'TSA Input'!J3527=\"Contingent\"),'TSA Input'!B3527,\"Ineligible\"))","v":""},{"$f":"IF('TSA Input'!J3527=\"\",\"\",IF(OR('TSA Input'!J3527=\"Yes\",'TSA Input'!J3527=\"Contingent\"),'TSA Input'!I3527,\"\"))","v":""},{"$f":"IF('TSA Input'!J3527=\"\",\"\",IF(OR('TSA Input'!J3527=\"Yes\",'TSA Input'!J3527=\"Contingent\"),'TSA Input'!C3527,\"\"))","v":""},{"$f":"IF('TSA Input'!J3527=\"\",\"\",IF(OR('TSA Input'!J3527=\"Yes\",'TSA Input'!J3527=\"Contingent\"),'TSA Input'!D3527,\"\"))","v":""},{"$f":"IF('TSA Input'!J3527=\"\",\"\",IF(OR('TSA Input'!J3527=\"Yes\",'TSA Input'!J3527=\"Contingent\"),'TSA Input'!G3527,\"\"))","v":""},{"$f":"IF('TSA Input'!J3527=\"\",\"\",IF(OR('TSA Input'!J3527=\"Yes\",'TSA Input'!J3527=\"Contingent\"),'TSA Input'!F3527,\"\"))","v":""},"",{"$f":"IF('TSA Input'!J3527=\"\",\"\",IF(OR('TSA Input'!J3527=\"Yes\",'TSA Input'!J3527=\"Contingent\"),'TSA Input'!D3527,\"\"))","v":""},{"$f":"IF('TSA Input'!J3527=\"\",\"\",IF(OR('TSA Input'!J3527=\"Yes\",'TSA Input'!J3527=\"Contingent\"),'TSA Input'!G3527,\"\"))","v":""},{"$f":"IF('TSA Input'!J3527=\"\",\"\",IF(OR('TSA Input'!J3527=\"Yes\",'TSA Input'!J3527=\"Contingent\"),'TSA Input'!F3527,\"\"))","v":""},"","Required","Required"]
["",null,{"$f":"IF('TSA Input'!J3528=\"\",\"\",IF(OR('TSA Input'!J3528=\"Yes\",'TSA Input'!J3528=\"Contingent\"),'TSA Input'!B3528,\"Ineligible\"))","v":""},{"$f":"IF('TSA Input'!J3528=\"\",\"\",IF(OR('TSA Input'!J3528=\"Yes\",'TSA Input'!J3528=\"Contingent\"),'TSA Input'!I3528,\"\"))","v":""},{"$f":"IF('TSA Input'!J3528=\"\",\"\",IF(OR('TSA Input'!J3528=\"Yes\",'TSA Input'!J3528=\"Contingent\"),'TSA Input'!C3528,\"\"))","v":""},{"$f":"IF('TSA Input'!J3528=\"\",\"\",IF(OR('TSA Input'!J3528=\"Yes\",'TSA Input'!J3528=\"Contingent\"),'TSA Input'!D3528,\"\"))","v":""},{"$f":"IF('TSA Input'!J3528=\"\",\"\",IF(OR('TSA Input'!J3528=\"Yes\",'TSA Input'!J3528=\"Contingent\"),'TSA Input'!G3528,\"\"))","v":""},{"$f":"IF('TSA Input'!J3528=\"\",\"\",IF(OR('TSA Input'!J3528=\"Yes\",'TSA Input'!J3528=\"Contingent\"),'TSA Input'!F3528,\"\"))","v":""},"",{"$f":"IF('TSA Input'!J3528=\"\",\"\",IF(OR('TSA Input'!J3528=\"Yes\",'TSA Input'!J3528=\"Contingent\"),'TSA Input'!D3528,\"\"))","v":""},{"$f":"IF('TSA Input'!J3528=\"\",\"\",IF(OR('TSA Input'!J3528=\"Yes\",'TSA Input'!J3528=\"Contingent\"),'TSA Input'!G3528,\"\"))","v":""},{"$f":"IF('TSA Input'!J3528=\"\",\"\",IF(OR('TSA Input'!J3528=\"Yes\",'TSA Input'!J3528=\"Contingent\"),'TSA Input'!F3528,\"\"))","v":""},"","Required","Required"]
["",null,{"$f":"IF('TSA Input'!J3529=\"\",\"\",IF(OR('TSA Input'!J3529=\"Yes\",'TSA Input'!J3529=\"Contingent\"),'TSA Input'!B3529,\"Ineligible\"))","v":""},{"$f":"IF('TSA Input'!J3529=\"\",\"\",IF(OR('TSA Input'!J3529=\"Yes\",'TSA Input'!J3529=\"Contingent\"),'TSA Input'!I3529,\"\"))","v":""},{"$f":"IF('TSA Input'!J3529=\"\",\"\",IF(OR('TSA Input'!J3529=\"Yes\",'TSA Input'!J3529=\"Contingent\"),'TSA Input'!C3529,\"\"))","v":""},{"$f":"IF('TSA Input'!J3529=\"\",\"\",IF(OR('TSA Input'!J3529=\"Yes\",'TSA Input'!J3529=\"Contingent\"),'TSA Input'!D3529,\"\"))","v":""},{"$f":"IF('TSA Input'!J3529=\"\",\"\",IF(OR('TSA Input'!J3529=\"Yes\",'TSA Input'!J3529=\"Contingent\"),'TSA Input'!G3529,\"\"))","v":""},{"$f":"IF('TSA Input'!J3529=\"\",\"\",IF(OR('TSA Input'!J3529=\"Yes\",'TSA Input'!J3529=\"Contingent\"),'TSA Input'!F3529,\"\"))","v":""},"",{"$f":"IF('TSA Input'!J3529=\"\",\"\",IF(OR('TSA Input'!J3529=\"Yes\",'TSA Input'!J3529=\"Contingent\"),'TSA Input'!D3529,\"\"))","v":""},{"$f":"IF('TSA Input'!J3529=\"\",\"\",IF(OR('TSA Input'!J3529=\"Yes\",'TSA Input'!J3529=\"Contingent\"),'TSA Input'!G3529,\"\"))","v":""},{"$f":"IF('TSA Input'!J3529=\"\",\"\",IF(OR('TSA Input'!J3529=\"Yes\",'TSA Input'!J3529=\"Contingent\"),'TSA Input'!F3529,\"\"))","v":""},"","Required","Required"]
["",null,{"$f":"IF('TSA Input'!J3530=\"\",\"\",IF(OR('TSA Input'!J3530=\"Yes\",'TSA Input'!J3530=\"Contingent\"),'TSA Input'!B3530,\"Ineligible\"))","v":""},{"$f":"IF('TSA Input'!J3530=\"\",\"\",IF(OR('TSA Input'!J3530=\"Yes\",'TSA Input'!J3530=\"Contingent\"),'TSA Input'!I3530,\"\"))","v":""},{"$f":"IF('TSA Input'!J3530=\"\",\"\",IF(OR('TSA Input'!J3530=\"Yes\",'TSA Input'!J3530=\"Contingent\"),'TSA Input'!C3530,\"\"))","v":""},{"$f":"IF('TSA Input'!J3530=\"\",\"\",IF(OR('TSA Input'!J3530=\"Yes\",'TSA Input'!J3530=\"Contingent\"),'TSA Input'!D3530,\"\"))","v":""},{"$f":"IF('TSA Input'!J3530=\"\",\"\",IF(OR('TSA Input'!J3530=\"Yes\",'TSA Input'!J3530=\"Contingent\"),'TSA Input'!G3530,\"\"))","v":""},{"$f":"IF('TSA Input'!J3530=\"\",\"\",IF(OR('TSA Input'!J3530=\"Yes\",'TSA Input'!J3530=\"Contingent\"),'TSA Input'!F3530,\"\"))","v":""},"",{"$f":"IF('TSA Input'!J3530=\"\",\"\",IF(OR('TSA Input'!J3530=\"Yes\",'TSA Input'!J3530=\"Contingent\"),'TSA Input'!D3530,\"\"))","v":""},{"$f":"IF('TSA Input'!J3530=\"\",\"\",IF(OR('TSA Input'!J3530=\"Yes\",'TSA Input'!J3530=\"Contingent\"),'TSA Input'!G3530,\"\"))","v":""},{"$f":"IF('TSA Input'!J3530=\"\",\"\",IF(OR('TSA Input'!J3530=\"Yes\",'TSA Input'!J3530=\"Contingent\"),'TSA Input'!F3530,\"\"))","v":""},"","Required","Required"]
["",null,{"$f":"IF('TSA Input'!J3531=\"\",\"\",IF(OR('TSA Input'!J3531=\"Yes\",'TSA Input'!J3531=\"Contingent\"),'TSA Input'!B3531,\"Ineligible\"))","v":""},{"$f":"IF('TSA Input'!J3531=\"\",\"\",IF(OR('TSA Input'!J3531=\"Yes\",'TSA Input'!J3531=\"Contingent\"),'TSA Input'!I3531,\"\"))","v":""},{"$f":"IF('TSA Input'!J3531=\"\",\"\",IF(OR('TSA Input'!J3531=\"Yes\",'TSA Input'!J3531=\"Contingent\"),'TSA Input'!C3531,\"\"))","v":""},{"$f":"IF('TSA Input'!J3531=\"\",\"\",IF(OR('TSA Input'!J3531=\"Yes\",'TSA Input'!J3531=\"Contingent\"),'TSA Input'!D3531,\"\"))","v":""},{"$f":"IF('TSA Input'!J3531=\"\",\"\",IF(OR('TSA Input'!J3531=\"Yes\",'TSA Input'!J3531=\"Contingent\"),'TSA Input'!G3531,\"\"))","v":""},{"$f":"IF('TSA Input'!J3531=\"\",\"\",IF(OR('TSA Input'!J3531=\"Yes\",'TSA Input'!J3531=\"Contingent\"),'TSA Input'!F3531,\"\"))","v":""},"",{"$f":"IF('TSA Input'!J3531=\"\",\"\",IF(OR('TSA Input'!J3531=\"Yes\",'TSA Input'!J3531=\"Contingent\"),'TSA Input'!D3531,\"\"))","v":""},{"$f":"IF('TSA Input'!J3531=\"\",\"\",IF(OR('TSA Input'!J3531=\"Yes\",'TSA Input'!J3531=\"Contingent\"),'TSA Input'!G3531,\"\"))","v":""},{"$f":"IF('TSA Input'!J3531=\"\",\"\",IF(OR('TSA Input'!J3531=\"Yes\",'TSA Input'!J3531=\"Contingent\"),'TSA Input'!F3531,\"\"))","v":""},"","Required","Required"]
["",null,{"$f":"IF('TSA Input'!J3532=\"\",\"\",IF(OR('TSA Input'!J3532=\"Yes\",'TSA Input'!J3532=\"Contingent\"),'TSA Input'!B3532,\"Ineligible\"))","v":""},{"$f":"IF('TSA Input'!J3532=\"\",\"\",IF(OR('TSA Input'!J3532=\"Yes\",'TSA Input'!J3532=\"Contingent\"),'TSA Input'!I3532,\"\"))","v":""},{"$f":"IF('TSA Input'!J3532=\"\",\"\",IF(OR('TSA Input'!J3532=\"Yes\",'TSA Input'!J3532=\"Contingent\"),'TSA Input'!C3532,\"\"))","v":""},{"$f":"IF('TSA Input'!J3532=\"\",\"\",IF(OR('TSA Input'!J3532=\"Yes\",'TSA Input'!J3532=\"Contingent\"),'TSA Input'!D3532,\"\"))","v":""},{"$f":"IF('TSA Input'!J3532=\"\",\"\",IF(OR('TSA Input'!J3532=\"Yes\",'TSA Input'!J3532=\"Contingent\"),'TSA Input'!G3532,\"\"))","v":""},{"$f":"IF('TSA Input'!J3532=\"\",\"\",IF(OR('TSA Input'!J3532=\"Yes\",'TSA Input'!J3532=\"Contingent\"),'TSA Input'!F3532,\"\"))","v":""},"",{"$f":"IF('TSA Input'!J3532=\"\",\"\",IF(OR('TSA Input'!J3532=\"Yes\",'TSA Input'!J3532=\"Contingent\"),'TSA Input'!D3532,\"\"))","v":""},{"$f":"IF('TSA Input'!J3532=\"\",\"\",IF(OR('TSA Input'!J3532=\"Yes\",'TSA Input'!J3532=\"Contingent\"),'TSA Input'!G3532,\"\"))","v":""},{"$f":"IF('TSA Input'!J3532=\"\",\"\",IF(OR('TSA Input'!J3532=\"Yes\",'TSA Input'!J3532=\"Contingent\"),'TSA Input'!F3532,\"\"))","v":""},"","Required","Required"]
["",null,{"$f":"IF('TSA Input'!J3533=\"\",\"\",IF(OR('TSA Input'!J3533=\"Yes\",'TSA Input'!J3533=\"Contingent\"),'TSA Input'!B3533,\"Ineligible\"))","v":""},{"$f":"IF('TSA Input'!J3533=\"\",\"\",IF(OR('TSA Input'!J3533=\"Yes\",'TSA Input'!J3533=\"Contingent\"),'TSA Input'!I3533,\"\"))","v":""},{"$f":"IF('TSA Input'!J3533=\"\",\"\",IF(OR('TSA Input'!J3533=\"Yes\",'TSA Input'!J3533=\"Contingent\"),'TSA Input'!C3533,\"\"))","v":""},{"$f":"IF('TSA Input'!J3533=\"\",\"\",IF(OR('TSA Input'!J3533=\"Yes\",'TSA Input'!J3533=\"Contingent\"),'TSA Input'!D3533,\"\"))","v":""},{"$f":"IF('TSA Input'!J3533=\"\",\"\",IF(OR('TSA Input'!J3533=\"Yes\",'TSA Input'!J3533=\"Contingent\"),'TSA Input'!G3533,\"\"))","v":""},{"$f":"IF('TSA Input'!J3533=\"\",\"\",IF(OR('TSA Input'!J3533=\"Yes\",'TSA Input'!J3533=\"Contingent\"),'TSA Input'!F3533,\"\"))","v":""},"",{"$f":"IF('TSA Input'!J3533=\"\",\"\",IF(OR('TSA Input'!J3533=\"Yes\",'TSA Input'!J3533=\"Contingent\"),'TSA Input'!D3533,\"\"))","v":""},{"$f":"IF('TSA Input'!J3533=\"\",\"\",IF(OR('TSA Input'!J3533=\"Yes\",'TSA Input'!J3533=\"Contingent\"),'TSA Input'!G3533,\"\"))","v":""},{"$f":"IF('TSA Input'!J3533=\"\",\"\",IF(OR('TSA Input'!J3533=\"Yes\",'TSA Input'!J3533=\"Contingent\"),'TSA Input'!F3533,\"\"))","v":""},"","Required","Required"]
["",null,{"$f":"IF('TSA Input'!J3534=\"\",\"\",IF(OR('TSA Input'!J3534=\"Yes\",'TSA Input'!J3534=\"Contingent\"),'TSA Input'!B3534,\"Ineligible\"))","v":""},{"$f":"IF('TSA Input'!J3534=\"\",\"\",IF(OR('TSA Input'!J3534=\"Yes\",'TSA Input'!J3534=\"Contingent\"),'TSA Input'!I3534,\"\"))","v":""},{"$f":"IF('TSA Input'!J3534=\"\",\"\",IF(OR('TSA Input'!J3534=\"Yes\",'TSA Input'!J3534=\"Contingent\"),'TSA Input'!C3534,\"\"))","v":""},{"$f":"IF('TSA Input'!J3534=\"\",\"\",IF(OR('TSA Input'!J3534=\"Yes\",'TSA Input'!J3534=\"Contingent\"),'TSA Input'!D3534,\"\"))","v":""},{"$f":"IF('TSA Input'!J3534=\"\",\"\",IF(OR('TSA Input'!J3534=\"Yes\",'TSA Input'!J3534=\"Contingent\"),'TSA Input'!G3534,\"\"))","v":""},{"$f":"IF('TSA Input'!J3534=\"\",\"\",IF(OR('TSA Input'!J3534=\"Yes\",'TSA Input'!J3534=\"Contingent\"),'TSA Input'!F3534,\"\"))","v":""},"",{"$f":"IF('TSA Input'!J3534=\"\",\"\",IF(OR('TSA Input'!J3534=\"Yes\",'TSA Input'!J3534=\"Contingent\"),'TSA Input'!D3534,\"\"))","v":""},{"$f":"IF('TSA Input'!J3534=\"\",\"\",IF(OR('TSA Input'!J3534=\"Yes\",'TSA Input'!J3534=\"Contingent\"),'TSA Input'!G3534,\"\"))","v":""},{"$f":"IF('TSA Input'!J3534=\"\",\"\",IF(OR('TSA Input'!J3534=\"Yes\",'TSA Input'!J3534=\"Contingent\"),'TSA Input'!F3534,\"\"))","v":""},"","Required","Required"]
["",null,{"$f":"IF('TSA Input'!J3535=\"\",\"\",IF(OR('TSA Input'!J3535=\"Yes\",'TSA Input'!J3535=\"Contingent\"),'TSA Input'!B3535,\"Ineligible\"))","v":""},{"$f":"IF('TSA Input'!J3535=\"\",\"\",IF(OR('TSA Input'!J3535=\"Yes\",'TSA Input'!J3535=\"Contingent\"),'TSA Input'!I3535,\"\"))","v":""},{"$f":"IF('TSA Input'!J3535=\"\",\"\",IF(OR('TSA Input'!J3535=\"Yes\",'TSA Input'!J3535=\"Contingent\"),'TSA Input'!C3535,\"\"))","v":""},{"$f":"IF('TSA Input'!J3535=\"\",\"\",IF(OR('TSA Input'!J3535=\"Yes\",'TSA Input'!J3535=\"Contingent\"),'TSA Input'!D3535,\"\"))","v":""},{"$f":"IF('TSA Input'!J3535=\"\",\"\",IF(OR('TSA Input'!J3535=\"Yes\",'TSA Input'!J3535=\"Contingent\"),'TSA Input'!G3535,\"\"))","v":""},{"$f":"IF('TSA Input'!J3535=\"\",\"\",IF(OR('TSA Input'!J3535=\"Yes\",'TSA Input'!J3535=\"Contingent\"),'TSA Input'!F3535,\"\"))","v":""},"",{"$f":"IF('TSA Input'!J3535=\"\",\"\",IF(OR('TSA Input'!J3535=\"Yes\",'TSA Input'!J3535=\"Contingent\"),'TSA Input'!D3535,\"\"))","v":""},{"$f":"IF('TSA Input'!J3535=\"\",\"\",IF(OR('TSA Input'!J3535=\"Yes\",'TSA Input'!J3535=\"Contingent\"),'TSA Input'!G3535,\"\"))","v":""},{"$f":"IF('TSA Input'!J3535=\"\",\"\",IF(OR('TSA Input'!J3535=\"Yes\",'TSA Input'!J3535=\"Contingent\"),'TSA Input'!F3535,\"\"))","v":""},"","Required","Required"]
["",null,{"$f":"IF('TSA Input'!J3536=\"\",\"\",IF(OR('TSA Input'!J3536=\"Yes\",'TSA Input'!J3536=\"Contingent\"),'TSA Input'!B3536,\"Ineligible\"))","v":""},{"$f":"IF('TSA Input'!J3536=\"\",\"\",IF(OR('TSA Input'!J3536=\"Yes\",'TSA Input'!J3536=\"Contingent\"),'TSA Input'!I3536,\"\"))","v":""},{"$f":"IF('TSA Input'!J3536=\"\",\"\",IF(OR('TSA Input'!J3536=\"Yes\",'TSA Input'!J3536=\"Contingent\"),'TSA Input'!C3536,\"\"))","v":""},{"$f":"IF('TSA Input'!J3536=\"\",\"\",IF(OR('TSA Input'!J3536=\"Yes\",'TSA Input'!J3536=\"Contingent\"),'TSA Input'!D3536,\"\"))","v":""},{"$f":"IF('TSA Input'!J3536=\"\",\"\",IF(OR('TSA Input'!J3536=\"Yes\",'TSA Input'!J3536=\"Contingent\"),'TSA Input'!G3536,\"\"))","v":""},{"$f":"IF('TSA Input'!J3536=\"\",\"\",IF(OR('TSA Input'!J3536=\"Yes\",'TSA Input'!J3536=\"Contingent\"),'TSA Input'!F3536,\"\"))","v":""},"",{"$f":"IF('TSA Input'!J3536=\"\",\"\",IF(OR('TSA Input'!J3536=\"Yes\",'TSA Input'!J3536=\"Contingent\"),'TSA Input'!D3536,\"\"))","v":""},{"$f":"IF('TSA Input'!J3536=\"\",\"\",IF(OR('TSA Input'!J3536=\"Yes\",'TSA Input'!J3536=\"Contingent\"),'TSA Input'!G3536,\"\"))","v":""},{"$f":"IF('TSA Input'!J3536=\"\",\"\",IF(OR('TSA Input'!J3536=\"Yes\",'TSA Input'!J3536=\"Contingent\"),'TSA Input'!F3536,\"\"))","v":""},"","Required","Required"]
["",null,{"$f":"IF('TSA Input'!J3537=\"\",\"\",IF(OR('TSA Input'!J3537=\"Yes\",'TSA Input'!J3537=\"Contingent\"),'TSA Input'!B3537,\"Ineligible\"))","v":""},{"$f":"IF('TSA Input'!J3537=\"\",\"\",IF(OR('TSA Input'!J3537=\"Yes\",'TSA Input'!J3537=\"Contingent\"),'TSA Input'!I3537,\"\"))","v":""},{"$f":"IF('TSA Input'!J3537=\"\",\"\",IF(OR('TSA Input'!J3537=\"Yes\",'TSA Input'!J3537=\"Contingent\"),'TSA Input'!C3537,\"\"))","v":""},{"$f":"IF('TSA Input'!J3537=\"\",\"\",IF(OR('TSA Input'!J3537=\"Yes\",'TSA Input'!J3537=\"Contingent\"),'TSA Input'!D3537,\"\"))","v":""},{"$f":"IF('TSA Input'!J3537=\"\",\"\",IF(OR('TSA Input'!J3537=\"Yes\",'TSA Input'!J3537=\"Contingent\"),'TSA Input'!G3537,\"\"))","v":""},{"$f":"IF('TSA Input'!J3537=\"\",\"\",IF(OR('TSA Input'!J3537=\"Yes\",'TSA Input'!J3537=\"Contingent\"),'TSA Input'!F3537,\"\"))","v":""},"",{"$f":"IF('TSA Input'!J3537=\"\",\"\",IF(OR('TSA Input'!J3537=\"Yes\",'TSA Input'!J3537=\"Contingent\"),'TSA Input'!D3537,\"\"))","v":""},{"$f":"IF('TSA Input'!J3537=\"\",\"\",IF(OR('TSA Input'!J3537=\"Yes\",'TSA Input'!J3537=\"Contingent\"),'TSA Input'!G3537,\"\"))","v":""},{"$f":"IF('TSA Input'!J3537=\"\",\"\",IF(OR('TSA Input'!J3537=\"Yes\",'TSA Input'!J3537=\"Contingent\"),'TSA Input'!F3537,\"\"))","v":""},"","Required","Required"]
["",null,{"$f":"IF('TSA Input'!J3538=\"\",\"\",IF(OR('TSA Input'!J3538=\"Yes\",'TSA Input'!J3538=\"Contingent\"),'TSA Input'!B3538,\"Ineligible\"))","v":""},{"$f":"IF('TSA Input'!J3538=\"\",\"\",IF(OR('TSA Input'!J3538=\"Yes\",'TSA Input'!J3538=\"Contingent\"),'TSA Input'!I3538,\"\"))","v":""},{"$f":"IF('TSA Input'!J3538=\"\",\"\",IF(OR('TSA Input'!J3538=\"Yes\",'TSA Input'!J3538=\"Contingent\"),'TSA Input'!C3538,\"\"))","v":""},{"$f":"IF('TSA Input'!J3538=\"\",\"\",IF(OR('TSA Input'!J3538=\"Yes\",'TSA Input'!J3538=\"Contingent\"),'TSA Input'!D3538,\"\"))","v":""},{"$f":"IF('TSA Input'!J3538=\"\",\"\",IF(OR('TSA Input'!J3538=\"Yes\",'TSA Input'!J3538=\"Contingent\"),'TSA Input'!G3538,\"\"))","v":""},{"$f":"IF('TSA Input'!J3538=\"\",\"\",IF(OR('TSA Input'!J3538=\"Yes\",'TSA Input'!J3538=\"Contingent\"),'TSA Input'!F3538,\"\"))","v":""},"",{"$f":"IF('TSA Input'!J3538=\"\",\"\",IF(OR('TSA Input'!J3538=\"Yes\",'TSA Input'!J3538=\"Contingent\"),'TSA Input'!D3538,\"\"))","v":""},{"$f":"IF('TSA Input'!J3538=\"\",\"\",IF(OR('TSA Input'!J3538=\"Yes\",'TSA Input'!J3538=\"Contingent\"),'TSA Input'!G3538,\"\"))","v":""},{"$f":"IF('TSA Input'!J3538=\"\",\"\",IF(OR('TSA Input'!J3538=\"Yes\",'TSA Input'!J3538=\"Contingent\"),'TSA Input'!F3538,\"\"))","v":""},"","Required","Required"]
["",null,{"$f":"IF('TSA Input'!J3539=\"\",\"\",IF(OR('TSA Input'!J3539=\"Yes\",'TSA Input'!J3539=\"Contingent\"),'TSA Input'!B3539,\"Ineligible\"))","v":""},{"$f":"IF('TSA Input'!J3539=\"\",\"\",IF(OR('TSA Input'!J3539=\"Yes\",'TSA Input'!J3539=\"Contingent\"),'TSA Input'!I3539,\"\"))","v":""},{"$f":"IF('TSA Input'!J3539=\"\",\"\",IF(OR('TSA Input'!J3539=\"Yes\",'TSA Input'!J3539=\"Contingent\"),'TSA Input'!C3539,\"\"))","v":""},{"$f":"IF('TSA Input'!J3539=\"\",\"\",IF(OR('TSA Input'!J3539=\"Yes\",'TSA Input'!J3539=\"Contingent\"),'TSA Input'!D3539,\"\"))","v":""},{"$f":"IF('TSA Input'!J3539=\"\",\"\",IF(OR('TSA Input'!J3539=\"Yes\",'TSA Input'!J3539=\"Contingent\"),'TSA Input'!G3539,\"\"))","v":""},{"$f":"IF('TSA Input'!J3539=\"\",\"\",IF(OR('TSA Input'!J3539=\"Yes\",'TSA Input'!J3539=\"Contingent\"),'TSA Input'!F3539,\"\"))","v":""},"",{"$f":"IF('TSA Input'!J3539=\"\",\"\",IF(OR('TSA Input'!J3539=\"Yes\",'TSA Input'!J3539=\"Contingent\"),'TSA Input'!D3539,\"\"))","v":""},{"$f":"IF('TSA Input'!J3539=\"\",\"\",IF(OR('TSA Input'!J3539=\"Yes\",'TSA Input'!J3539=\"Contingent\"),'TSA Input'!G3539,\"\"))","v":""},{"$f":"IF('TSA Input'!J3539=\"\",\"\",IF(OR('TSA Input'!J3539=\"Yes\",'TSA Input'!J3539=\"Contingent\"),'TSA Input'!F3539,\"\"))","v":""},"","Required","Required"]
["",null,{"$f":"IF('TSA Input'!J3540=\"\",\"\",IF(OR('TSA Input'!J3540=\"Yes\",'TSA Input'!J3540=\"Contingent\"),'TSA Input'!B3540,\"Ineligible\"))","v":""},{"$f":"IF('TSA Input'!J3540=\"\",\"\",IF(OR('TSA Input'!J3540=\"Yes\",'TSA Input'!J3540=\"Contingent\"),'TSA Input'!I3540,\"\"))","v":""},{"$f":"IF('TSA Input'!J3540=\"\",\"\",IF(OR('TSA Input'!J3540=\"Yes\",'TSA Input'!J3540=\"Contingent\"),'TSA Input'!C3540,\"\"))","v":""},{"$f":"IF('TSA Input'!J3540=\"\",\"\",IF(OR('TSA Input'!J3540=\"Yes\",'TSA Input'!J3540=\"Contingent\"),'TSA Input'!D3540,\"\"))","v":""},{"$f":"IF('TSA Input'!J3540=\"\",\"\",IF(OR('TSA Input'!J3540=\"Yes\",'TSA Input'!J3540=\"Contingent\"),'TSA Input'!G3540,\"\"))","v":""},{"$f":"IF('TSA Input'!J3540=\"\",\"\",IF(OR('TSA Input'!J3540=\"Yes\",'TSA Input'!J3540=\"Contingent\"),'TSA Input'!F3540,\"\"))","v":""},"",{"$f":"IF('TSA Input'!J3540=\"\",\"\",IF(OR('TSA Input'!J3540=\"Yes\",'TSA Input'!J3540=\"Contingent\"),'TSA Input'!D3540,\"\"))","v":""},{"$f":"IF('TSA Input'!J3540=\"\",\"\",IF(OR('TSA Input'!J3540=\"Yes\",'TSA Input'!J3540=\"Contingent\"),'TSA Input'!G3540,\"\"))","v":""},{"$f":"IF('TSA Input'!J3540=\"\",\"\",IF(OR('TSA Input'!J3540=\"Yes\",'TSA Input'!J3540=\"Contingent\"),'TSA Input'!F3540,\"\"))","v":""},"","Required","Required"]
["",null,{"$f":"IF('TSA Input'!J3541=\"\",\"\",IF(OR('TSA Input'!J3541=\"Yes\",'TSA Input'!J3541=\"Contingent\"),'TSA Input'!B3541,\"Ineligible\"))","v":""},{"$f":"IF('TSA Input'!J3541=\"\",\"\",IF(OR('TSA Input'!J3541=\"Yes\",'TSA Input'!J3541=\"Contingent\"),'TSA Input'!I3541,\"\"))","v":""},{"$f":"IF('TSA Input'!J3541=\"\",\"\",IF(OR('TSA Input'!J3541=\"Yes\",'TSA Input'!J3541=\"Contingent\"),'TSA Input'!C3541,\"\"))","v":""},{"$f":"IF('TSA Input'!J3541=\"\",\"\",IF(OR('TSA Input'!J3541=\"Yes\",'TSA Input'!J3541=\"Contingent\"),'TSA Input'!D3541,\"\"))","v":""},{"$f":"IF('TSA Input'!J3541=\"\",\"\",IF(OR('TSA Input'!J3541=\"Yes\",'TSA Input'!J3541=\"Contingent\"),'TSA Input'!G3541,\"\"))","v":""},{"$f":"IF('TSA Input'!J3541=\"\",\"\",IF(OR('TSA Input'!J3541=\"Yes\",'TSA Input'!J3541=\"Contingent\"),'TSA Input'!F3541,\"\"))","v":""},"",{"$f":"IF('TSA Input'!J3541=\"\",\"\",IF(OR('TSA Input'!J3541=\"Yes\",'TSA Input'!J3541=\"Contingent\"),'TSA Input'!D3541,\"\"))","v":""},{"$f":"IF('TSA Input'!J3541=\"\",\"\",IF(OR('TSA Input'!J3541=\"Yes\",'TSA Input'!J3541=\"Contingent\"),'TSA Input'!G3541,\"\"))","v":""},{"$f":"IF('TSA Input'!J3541=\"\",\"\",IF(OR('TSA Input'!J3541=\"Yes\",'TSA Input'!J3541=\"Contingent\"),'TSA Input'!F3541,\"\"))","v":""},"","Required","Required"]
["",null,{"$f":"IF('TSA Input'!J3542=\"\",\"\",IF(OR('TSA Input'!J3542=\"Yes\",'TSA Input'!J3542=\"Contingent\"),'TSA Input'!B3542,\"Ineligible\"))","v":""},{"$f":"IF('TSA Input'!J3542=\"\",\"\",IF(OR('TSA Input'!J3542=\"Yes\",'TSA Input'!J3542=\"Contingent\"),'TSA Input'!I3542,\"\"))","v":""},{"$f":"IF('TSA Input'!J3542=\"\",\"\",IF(OR('TSA Input'!J3542=\"Yes\",'TSA Input'!J3542=\"Contingent\"),'TSA Input'!C3542,\"\"))","v":""},{"$f":"IF('TSA Input'!J3542=\"\",\"\",IF(OR('TSA Input'!J3542=\"Yes\",'TSA Input'!J3542=\"Contingent\"),'TSA Input'!D3542,\"\"))","v":""},{"$f":"IF('TSA Input'!J3542=\"\",\"\",IF(OR('TSA Input'!J3542=\"Yes\",'TSA Input'!J3542=\"Contingent\"),'TSA Input'!G3542,\"\"))","v":""},{"$f":"IF('TSA Input'!J3542=\"\",\"\",IF(OR('TSA Input'!J3542=\"Yes\",'TSA Input'!J3542=\"Contingent\"),'TSA Input'!F3542,\"\"))","v":""},"",{"$f":"IF('TSA Input'!J3542=\"\",\"\",IF(OR('TSA Input'!J3542=\"Yes\",'TSA Input'!J3542=\"Contingent\"),'TSA Input'!D3542,\"\"))","v":""},{"$f":"IF('TSA Input'!J3542=\"\",\"\",IF(OR('TSA Input'!J3542=\"Yes\",'TSA Input'!J3542=\"Contingent\"),'TSA Input'!G3542,\"\"))","v":""},{"$f":"IF('TSA Input'!J3542=\"\",\"\",IF(OR('TSA Input'!J3542=\"Yes\",'TSA Input'!J3542=\"Contingent\"),'TSA Input'!F3542,\"\"))","v":""},"","Required","Required"]
["",null,{"$f":"IF('TSA Input'!J3543=\"\",\"\",IF(OR('TSA Input'!J3543=\"Yes\",'TSA Input'!J3543=\"Contingent\"),'TSA Input'!B3543,\"Ineligible\"))","v":""},{"$f":"IF('TSA Input'!J3543=\"\",\"\",IF(OR('TSA Input'!J3543=\"Yes\",'TSA Input'!J3543=\"Contingent\"),'TSA Input'!I3543,\"\"))","v":""},{"$f":"IF('TSA Input'!J3543=\"\",\"\",IF(OR('TSA Input'!J3543=\"Yes\",'TSA Input'!J3543=\"Contingent\"),'TSA Input'!C3543,\"\"))","v":""},{"$f":"IF('TSA Input'!J3543=\"\",\"\",IF(OR('TSA Input'!J3543=\"Yes\",'TSA Input'!J3543=\"Contingent\"),'TSA Input'!D3543,\"\"))","v":""},{"$f":"IF('TSA Input'!J3543=\"\",\"\",IF(OR('TSA Input'!J3543=\"Yes\",'TSA Input'!J3543=\"Contingent\"),'TSA Input'!G3543,\"\"))","v":""},{"$f":"IF('TSA Input'!J3543=\"\",\"\",IF(OR('TSA Input'!J3543=\"Yes\",'TSA Input'!J3543=\"Contingent\"),'TSA Input'!F3543,\"\"))","v":""},"",{"$f":"IF('TSA Input'!J3543=\"\",\"\",IF(OR('TSA Input'!J3543=\"Yes\",'TSA Input'!J3543=\"Contingent\"),'TSA Input'!D3543,\"\"))","v":""},{"$f":"IF('TSA Input'!J3543=\"\",\"\",IF(OR('TSA Input'!J3543=\"Yes\",'TSA Input'!J3543=\"Contingent\"),'TSA Input'!G3543,\"\"))","v":""},{"$f":"IF('TSA Input'!J3543=\"\",\"\",IF(OR('TSA Input'!J3543=\"Yes\",'TSA Input'!J3543=\"Contingent\"),'TSA Input'!F3543,\"\"))","v":""},"","Required","Required"]
["",null,{"$f":"IF('TSA Input'!J3544=\"\",\"\",IF(OR('TSA Input'!J3544=\"Yes\",'TSA Input'!J3544=\"Contingent\"),'TSA Input'!B3544,\"Ineligible\"))","v":""},{"$f":"IF('TSA Input'!J3544=\"\",\"\",IF(OR('TSA Input'!J3544=\"Yes\",'TSA Input'!J3544=\"Contingent\"),'TSA Input'!I3544,\"\"))","v":""},{"$f":"IF('TSA Input'!J3544=\"\",\"\",IF(OR('TSA Input'!J3544=\"Yes\",'TSA Input'!J3544=\"Contingent\"),'TSA Input'!C3544,\"\"))","v":""},{"$f":"IF('TSA Input'!J3544=\"\",\"\",IF(OR('TSA Input'!J3544=\"Yes\",'TSA Input'!J3544=\"Contingent\"),'TSA Input'!D3544,\"\"))","v":""},{"$f":"IF('TSA Input'!J3544=\"\",\"\",IF(OR('TSA Input'!J3544=\"Yes\",'TSA Input'!J3544=\"Contingent\"),'TSA Input'!G3544,\"\"))","v":""},{"$f":"IF('TSA Input'!J3544=\"\",\"\",IF(OR('TSA Input'!J3544=\"Yes\",'TSA Input'!J3544=\"Contingent\"),'TSA Input'!F3544,\"\"))","v":""},"",{"$f":"IF('TSA Input'!J3544=\"\",\"\",IF(OR('TSA Input'!J3544=\"Yes\",'TSA Input'!J3544=\"Contingent\"),'TSA Input'!D3544,\"\"))","v":""},{"$f":"IF('TSA Input'!J3544=\"\",\"\",IF(OR('TSA Input'!J3544=\"Yes\",'TSA Input'!J3544=\"Contingent\"),'TSA Input'!G3544,\"\"))","v":""},{"$f":"IF('TSA Input'!J3544=\"\",\"\",IF(OR('TSA Input'!J3544=\"Yes\",'TSA Input'!J3544=\"Contingent\"),'TSA Input'!F3544,\"\"))","v":""},"","Required","Required"]
["",null,{"$f":"IF('TSA Input'!J3545=\"\",\"\",IF(OR('TSA Input'!J3545=\"Yes\",'TSA Input'!J3545=\"Contingent\"),'TSA Input'!B3545,\"Ineligible\"))","v":""},{"$f":"IF('TSA Input'!J3545=\"\",\"\",IF(OR('TSA Input'!J3545=\"Yes\",'TSA Input'!J3545=\"Contingent\"),'TSA Input'!I3545,\"\"))","v":""},{"$f":"IF('TSA Input'!J3545=\"\",\"\",IF(OR('TSA Input'!J3545=\"Yes\",'TSA Input'!J3545=\"Contingent\"),'TSA Input'!C3545,\"\"))","v":""},{"$f":"IF('TSA Input'!J3545=\"\",\"\",IF(OR('TSA Input'!J3545=\"Yes\",'TSA Input'!J3545=\"Contingent\"),'TSA Input'!D3545,\"\"))","v":""},{"$f":"IF('TSA Input'!J3545=\"\",\"\",IF(OR('TSA Input'!J3545=\"Yes\",'TSA Input'!J3545=\"Contingent\"),'TSA Input'!G3545,\"\"))","v":""},{"$f":"IF('TSA Input'!J3545=\"\",\"\",IF(OR('TSA Input'!J3545=\"Yes\",'TSA Input'!J3545=\"Contingent\"),'TSA Input'!F3545,\"\"))","v":""},"",{"$f":"IF('TSA Input'!J3545=\"\",\"\",IF(OR('TSA Input'!J3545=\"Yes\",'TSA Input'!J3545=\"Contingent\"),'TSA Input'!D3545,\"\"))","v":""},{"$f":"IF('TSA Input'!J3545=\"\",\"\",IF(OR('TSA Input'!J3545=\"Yes\",'TSA Input'!J3545=\"Contingent\"),'TSA Input'!G3545,\"\"))","v":""},{"$f":"IF('TSA Input'!J3545=\"\",\"\",IF(OR('TSA Input'!J3545=\"Yes\",'TSA Input'!J3545=\"Contingent\"),'TSA Input'!F3545,\"\"))","v":""},"","Required","Required"]
["",null,{"$f":"IF('TSA Input'!J3546=\"\",\"\",IF(OR('TSA Input'!J3546=\"Yes\",'TSA Input'!J3546=\"Contingent\"),'TSA Input'!B3546,\"Ineligible\"))","v":""},{"$f":"IF('TSA Input'!J3546=\"\",\"\",IF(OR('TSA Input'!J3546=\"Yes\",'TSA Input'!J3546=\"Contingent\"),'TSA Input'!I3546,\"\"))","v":""},{"$f":"IF('TSA Input'!J3546=\"\",\"\",IF(OR('TSA Input'!J3546=\"Yes\",'TSA Input'!J3546=\"Contingent\"),'TSA Input'!C3546,\"\"))","v":""},{"$f":"IF('TSA Input'!J3546=\"\",\"\",IF(OR('TSA Input'!J3546=\"Yes\",'TSA Input'!J3546=\"Contingent\"),'TSA Input'!D3546,\"\"))","v":""},{"$f":"IF('TSA Input'!J3546=\"\",\"\",IF(OR('TSA Input'!J3546=\"Yes\",'TSA Input'!J3546=\"Contingent\"),'TSA Input'!G3546,\"\"))","v":""},{"$f":"IF('TSA Input'!J3546=\"\",\"\",IF(OR('TSA Input'!J3546=\"Yes\",'TSA Input'!J3546=\"Contingent\"),'TSA Input'!F3546,\"\"))","v":""},"",{"$f":"IF('TSA Input'!J3546=\"\",\"\",IF(OR('TSA Input'!J3546=\"Yes\",'TSA Input'!J3546=\"Contingent\"),'TSA Input'!D3546,\"\"))","v":""},{"$f":"IF('TSA Input'!J3546=\"\",\"\",IF(OR('TSA Input'!J3546=\"Yes\",'TSA Input'!J3546=\"Contingent\"),'TSA Input'!G3546,\"\"))","v":""},{"$f":"IF('TSA Input'!J3546=\"\",\"\",IF(OR('TSA Input'!J3546=\"Yes\",'TSA Input'!J3546=\"Contingent\"),'TSA Input'!F3546,\"\"))","v":""},"","Required","Required"]
["",null,{"$f":"IF('TSA Input'!J3547=\"\",\"\",IF(OR('TSA Input'!J3547=\"Yes\",'TSA Input'!J3547=\"Contingent\"),'TSA Input'!B3547,\"Ineligible\"))","v":""},{"$f":"IF('TSA Input'!J3547=\"\",\"\",IF(OR('TSA Input'!J3547=\"Yes\",'TSA Input'!J3547=\"Contingent\"),'TSA Input'!I3547,\"\"))","v":""},{"$f":"IF('TSA Input'!J3547=\"\",\"\",IF(OR('TSA Input'!J3547=\"Yes\",'TSA Input'!J3547=\"Contingent\"),'TSA Input'!C3547,\"\"))","v":""},{"$f":"IF('TSA Input'!J3547=\"\",\"\",IF(OR('TSA Input'!J3547=\"Yes\",'TSA Input'!J3547=\"Contingent\"),'TSA Input'!D3547,\"\"))","v":""},{"$f":"IF('TSA Input'!J3547=\"\",\"\",IF(OR('TSA Input'!J3547=\"Yes\",'TSA Input'!J3547=\"Contingent\"),'TSA Input'!G3547,\"\"))","v":""},{"$f":"IF('TSA Input'!J3547=\"\",\"\",IF(OR('TSA Input'!J3547=\"Yes\",'TSA Input'!J3547=\"Contingent\"),'TSA Input'!F3547,\"\"))","v":""},"",{"$f":"IF('TSA Input'!J3547=\"\",\"\",IF(OR('TSA Input'!J3547=\"Yes\",'TSA Input'!J3547=\"Contingent\"),'TSA Input'!D3547,\"\"))","v":""},{"$f":"IF('TSA Input'!J3547=\"\",\"\",IF(OR('TSA Input'!J3547=\"Yes\",'TSA Input'!J3547=\"Contingent\"),'TSA Input'!G3547,\"\"))","v":""},{"$f":"IF('TSA Input'!J3547=\"\",\"\",IF(OR('TSA Input'!J3547=\"Yes\",'TSA Input'!J3547=\"Contingent\"),'TSA Input'!F3547,\"\"))","v":""},"","Required","Required"]
["",null,{"$f":"IF('TSA Input'!J3548=\"\",\"\",IF(OR('TSA Input'!J3548=\"Yes\",'TSA Input'!J3548=\"Contingent\"),'TSA Input'!B3548,\"Ineligible\"))","v":""},{"$f":"IF('TSA Input'!J3548=\"\",\"\",IF(OR('TSA Input'!J3548=\"Yes\",'TSA Input'!J3548=\"Contingent\"),'TSA Input'!I3548,\"\"))","v":""},{"$f":"IF('TSA Input'!J3548=\"\",\"\",IF(OR('TSA Input'!J3548=\"Yes\",'TSA Input'!J3548=\"Contingent\"),'TSA Input'!C3548,\"\"))","v":""},{"$f":"IF('TSA Input'!J3548=\"\",\"\",IF(OR('TSA Input'!J3548=\"Yes\",'TSA Input'!J3548=\"Contingent\"),'TSA Input'!D3548,\"\"))","v":""},{"$f":"IF('TSA Input'!J3548=\"\",\"\",IF(OR('TSA Input'!J3548=\"Yes\",'TSA Input'!J3548=\"Contingent\"),'TSA Input'!G3548,\"\"))","v":""},{"$f":"IF('TSA Input'!J3548=\"\",\"\",IF(OR('TSA Input'!J3548=\"Yes\",'TSA Input'!J3548=\"Contingent\"),'TSA Input'!F3548,\"\"))","v":""},"",{"$f":"IF('TSA Input'!J3548=\"\",\"\",IF(OR('TSA Input'!J3548=\"Yes\",'TSA Input'!J3548=\"Contingent\"),'TSA Input'!D3548,\"\"))","v":""},{"$f":"IF('TSA Input'!J3548=\"\",\"\",IF(OR('TSA Input'!J3548=\"Yes\",'TSA Input'!J3548=\"Contingent\"),'TSA Input'!G3548,\"\"))","v":""},{"$f":"IF('TSA Input'!J3548=\"\",\"\",IF(OR('TSA Input'!J3548=\"Yes\",'TSA Input'!J3548=\"Contingent\"),'TSA Input'!F3548,\"\"))","v":""},"","Required","Required"]
["",null,{"$f":"IF('TSA Input'!J3549=\"\",\"\",IF(OR('TSA Input'!J3549=\"Yes\",'TSA Input'!J3549=\"Contingent\"),'TSA Input'!B3549,\"Ineligible\"))","v":""},{"$f":"IF('TSA Input'!J3549=\"\",\"\",IF(OR('TSA Input'!J3549=\"Yes\",'TSA Input'!J3549=\"Contingent\"),'TSA Input'!I3549,\"\"))","v":""},{"$f":"IF('TSA Input'!J3549=\"\",\"\",IF(OR('TSA Input'!J3549=\"Yes\",'TSA Input'!J3549=\"Contingent\"),'TSA Input'!C3549,\"\"))","v":""},{"$f":"IF('TSA Input'!J3549=\"\",\"\",IF(OR('TSA Input'!J3549=\"Yes\",'TSA Input'!J3549=\"Contingent\"),'TSA Input'!D3549,\"\"))","v":""},{"$f":"IF('TSA Input'!J3549=\"\",\"\",IF(OR('TSA Input'!J3549=\"Yes\",'TSA Input'!J3549=\"Contingent\"),'TSA Input'!G3549,\"\"))","v":""},{"$f":"IF('TSA Input'!J3549=\"\",\"\",IF(OR('TSA Input'!J3549=\"Yes\",'TSA Input'!J3549=\"Contingent\"),'TSA Input'!F3549,\"\"))","v":""},"",{"$f":"IF('TSA Input'!J3549=\"\",\"\",IF(OR('TSA Input'!J3549=\"Yes\",'TSA Input'!J3549=\"Contingent\"),'TSA Input'!D3549,\"\"))","v":""},{"$f":"IF('TSA Input'!J3549=\"\",\"\",IF(OR('TSA Input'!J3549=\"Yes\",'TSA Input'!J3549=\"Contingent\"),'TSA Input'!G3549,\"\"))","v":""},{"$f":"IF('TSA Input'!J3549=\"\",\"\",IF(OR('TSA Input'!J3549=\"Yes\",'TSA Input'!J3549=\"Contingent\"),'TSA Input'!F3549,\"\"))","v":""},"","Required","Required"]
["",null,{"$f":"IF('TSA Input'!J3550=\"\",\"\",IF(OR('TSA Input'!J3550=\"Yes\",'TSA Input'!J3550=\"Contingent\"),'TSA Input'!B3550,\"Ineligible\"))","v":""},{"$f":"IF('TSA Input'!J3550=\"\",\"\",IF(OR('TSA Input'!J3550=\"Yes\",'TSA Input'!J3550=\"Contingent\"),'TSA Input'!I3550,\"\"))","v":""},{"$f":"IF('TSA Input'!J3550=\"\",\"\",IF(OR('TSA Input'!J3550=\"Yes\",'TSA Input'!J3550=\"Contingent\"),'TSA Input'!C3550,\"\"))","v":""},{"$f":"IF('TSA Input'!J3550=\"\",\"\",IF(OR('TSA Input'!J3550=\"Yes\",'TSA Input'!J3550=\"Contingent\"),'TSA Input'!D3550,\"\"))","v":""},{"$f":"IF('TSA Input'!J3550=\"\",\"\",IF(OR('TSA Input'!J3550=\"Yes\",'TSA Input'!J3550=\"Contingent\"),'TSA Input'!G3550,\"\"))","v":""},{"$f":"IF('TSA Input'!J3550=\"\",\"\",IF(OR('TSA Input'!J3550=\"Yes\",'TSA Input'!J3550=\"Contingent\"),'TSA Input'!F3550,\"\"))","v":""},"",{"$f":"IF('TSA Input'!J3550=\"\",\"\",IF(OR('TSA Input'!J3550=\"Yes\",'TSA Input'!J3550=\"Contingent\"),'TSA Input'!D3550,\"\"))","v":""},{"$f":"IF('TSA Input'!J3550=\"\",\"\",IF(OR('TSA Input'!J3550=\"Yes\",'TSA Input'!J3550=\"Contingent\"),'TSA Input'!G3550,\"\"))","v":""},{"$f":"IF('TSA Input'!J3550=\"\",\"\",IF(OR('TSA Input'!J3550=\"Yes\",'TSA Input'!J3550=\"Contingent\"),'TSA Input'!F3550,\"\"))","v":""},"","Required","Required"]
["",null,{"$f":"IF('TSA Input'!J3551=\"\",\"\",IF(OR('TSA Input'!J3551=\"Yes\",'TSA Input'!J3551=\"Contingent\"),'TSA Input'!B3551,\"Ineligible\"))","v":""},{"$f":"IF('TSA Input'!J3551=\"\",\"\",IF(OR('TSA Input'!J3551=\"Yes\",'TSA Input'!J3551=\"Contingent\"),'TSA Input'!I3551,\"\"))","v":""},{"$f":"IF('TSA Input'!J3551=\"\",\"\",IF(OR('TSA Input'!J3551=\"Yes\",'TSA Input'!J3551=\"Contingent\"),'TSA Input'!C3551,\"\"))","v":""},{"$f":"IF('TSA Input'!J3551=\"\",\"\",IF(OR('TSA Input'!J3551=\"Yes\",'TSA Input'!J3551=\"Contingent\"),'TSA Input'!D3551,\"\"))","v":""},{"$f":"IF('TSA Input'!J3551=\"\",\"\",IF(OR('TSA Input'!J3551=\"Yes\",'TSA Input'!J3551=\"Contingent\"),'TSA Input'!G3551,\"\"))","v":""},{"$f":"IF('TSA Input'!J3551=\"\",\"\",IF(OR('TSA Input'!J3551=\"Yes\",'TSA Input'!J3551=\"Contingent\"),'TSA Input'!F3551,\"\"))","v":""},"",{"$f":"IF('TSA Input'!J3551=\"\",\"\",IF(OR('TSA Input'!J3551=\"Yes\",'TSA Input'!J3551=\"Contingent\"),'TSA Input'!D3551,\"\"))","v":""},{"$f":"IF('TSA Input'!J3551=\"\",\"\",IF(OR('TSA Input'!J3551=\"Yes\",'TSA Input'!J3551=\"Contingent\"),'TSA Input'!G3551,\"\"))","v":""},{"$f":"IF('TSA Input'!J3551=\"\",\"\",IF(OR('TSA Input'!J3551=\"Yes\",'TSA Input'!J3551=\"Contingent\"),'TSA Input'!F3551,\"\"))","v":""},"","Required","Required"]
["",null,{"$f":"IF('TSA Input'!J3552=\"\",\"\",IF(OR('TSA Input'!J3552=\"Yes\",'TSA Input'!J3552=\"Contingent\"),'TSA Input'!B3552,\"Ineligible\"))","v":""},{"$f":"IF('TSA Input'!J3552=\"\",\"\",IF(OR('TSA Input'!J3552=\"Yes\",'TSA Input'!J3552=\"Contingent\"),'TSA Input'!I3552,\"\"))","v":""},{"$f":"IF('TSA Input'!J3552=\"\",\"\",IF(OR('TSA Input'!J3552=\"Yes\",'TSA Input'!J3552=\"Contingent\"),'TSA Input'!C3552,\"\"))","v":""},{"$f":"IF('TSA Input'!J3552=\"\",\"\",IF(OR('TSA Input'!J3552=\"Yes\",'TSA Input'!J3552=\"Contingent\"),'TSA Input'!D3552,\"\"))","v":""},{"$f":"IF('TSA Input'!J3552=\"\",\"\",IF(OR('TSA Input'!J3552=\"Yes\",'TSA Input'!J3552=\"Contingent\"),'TSA Input'!G3552,\"\"))","v":""},{"$f":"IF('TSA Input'!J3552=\"\",\"\",IF(OR('TSA Input'!J3552=\"Yes\",'TSA Input'!J3552=\"Contingent\"),'TSA Input'!F3552,\"\"))","v":""},"",{"$f":"IF('TSA Input'!J3552=\"\",\"\",IF(OR('TSA Input'!J3552=\"Yes\",'TSA Input'!J3552=\"Contingent\"),'TSA Input'!D3552,\"\"))","v":""},{"$f":"IF('TSA Input'!J3552=\"\",\"\",IF(OR('TSA Input'!J3552=\"Yes\",'TSA Input'!J3552=\"Contingent\"),'TSA Input'!G3552,\"\"))","v":""},{"$f":"IF('TSA Input'!J3552=\"\",\"\",IF(OR('TSA Input'!J3552=\"Yes\",'TSA Input'!J3552=\"Contingent\"),'TSA Input'!F3552,\"\"))","v":""},"","Required","Required"]
["",null,{"$f":"IF('TSA Input'!J3553=\"\",\"\",IF(OR('TSA Input'!J3553=\"Yes\",'TSA Input'!J3553=\"Contingent\"),'TSA Input'!B3553,\"Ineligible\"))","v":""},{"$f":"IF('TSA Input'!J3553=\"\",\"\",IF(OR('TSA Input'!J3553=\"Yes\",'TSA Input'!J3553=\"Contingent\"),'TSA Input'!I3553,\"\"))","v":""},{"$f":"IF('TSA Input'!J3553=\"\",\"\",IF(OR('TSA Input'!J3553=\"Yes\",'TSA Input'!J3553=\"Contingent\"),'TSA Input'!C3553,\"\"))","v":""},{"$f":"IF('TSA Input'!J3553=\"\",\"\",IF(OR('TSA Input'!J3553=\"Yes\",'TSA Input'!J3553=\"Contingent\"),'TSA Input'!D3553,\"\"))","v":""},{"$f":"IF('TSA Input'!J3553=\"\",\"\",IF(OR('TSA Input'!J3553=\"Yes\",'TSA Input'!J3553=\"Contingent\"),'TSA Input'!G3553,\"\"))","v":""},{"$f":"IF('TSA Input'!J3553=\"\",\"\",IF(OR('TSA Input'!J3553=\"Yes\",'TSA Input'!J3553=\"Contingent\"),'TSA Input'!F3553,\"\"))","v":""},"",{"$f":"IF('TSA Input'!J3553=\"\",\"\",IF(OR('TSA Input'!J3553=\"Yes\",'TSA Input'!J3553=\"Contingent\"),'TSA Input'!D3553,\"\"))","v":""},{"$f":"IF('TSA Input'!J3553=\"\",\"\",IF(OR('TSA Input'!J3553=\"Yes\",'TSA Input'!J3553=\"Contingent\"),'TSA Input'!G3553,\"\"))","v":""},{"$f":"IF('TSA Input'!J3553=\"\",\"\",IF(OR('TSA Input'!J3553=\"Yes\",'TSA Input'!J3553=\"Contingent\"),'TSA Input'!F3553,\"\"))","v":""},"","Required","Required"]
["",null,{"$f":"IF('TSA Input'!J3554=\"\",\"\",IF(OR('TSA Input'!J3554=\"Yes\",'TSA Input'!J3554=\"Contingent\"),'TSA Input'!B3554,\"Ineligible\"))","v":""},{"$f":"IF('TSA Input'!J3554=\"\",\"\",IF(OR('TSA Input'!J3554=\"Yes\",'TSA Input'!J3554=\"Contingent\"),'TSA Input'!I3554,\"\"))","v":""},{"$f":"IF('TSA Input'!J3554=\"\",\"\",IF(OR('TSA Input'!J3554=\"Yes\",'TSA Input'!J3554=\"Contingent\"),'TSA Input'!C3554,\"\"))","v":""},{"$f":"IF('TSA Input'!J3554=\"\",\"\",IF(OR('TSA Input'!J3554=\"Yes\",'TSA Input'!J3554=\"Contingent\"),'TSA Input'!D3554,\"\"))","v":""},{"$f":"IF('TSA Input'!J3554=\"\",\"\",IF(OR('TSA Input'!J3554=\"Yes\",'TSA Input'!J3554=\"Contingent\"),'TSA Input'!G3554,\"\"))","v":""},{"$f":"IF('TSA Input'!J3554=\"\",\"\",IF(OR('TSA Input'!J3554=\"Yes\",'TSA Input'!J3554=\"Contingent\"),'TSA Input'!F3554,\"\"))","v":""},"",{"$f":"IF('TSA Input'!J3554=\"\",\"\",IF(OR('TSA Input'!J3554=\"Yes\",'TSA Input'!J3554=\"Contingent\"),'TSA Input'!D3554,\"\"))","v":""},{"$f":"IF('TSA Input'!J3554=\"\",\"\",IF(OR('TSA Input'!J3554=\"Yes\",'TSA Input'!J3554=\"Contingent\"),'TSA Input'!G3554,\"\"))","v":""},{"$f":"IF('TSA Input'!J3554=\"\",\"\",IF(OR('TSA Input'!J3554=\"Yes\",'TSA Input'!J3554=\"Contingent\"),'TSA Input'!F3554,\"\"))","v":""},"","Required","Required"]
["",null,{"$f":"IF('TSA Input'!J3555=\"\",\"\",IF(OR('TSA Input'!J3555=\"Yes\",'TSA Input'!J3555=\"Contingent\"),'TSA Input'!B3555,\"Ineligible\"))","v":""},{"$f":"IF('TSA Input'!J3555=\"\",\"\",IF(OR('TSA Input'!J3555=\"Yes\",'TSA Input'!J3555=\"Contingent\"),'TSA Input'!I3555,\"\"))","v":""},{"$f":"IF('TSA Input'!J3555=\"\",\"\",IF(OR('TSA Input'!J3555=\"Yes\",'TSA Input'!J3555=\"Contingent\"),'TSA Input'!C3555,\"\"))","v":""},{"$f":"IF('TSA Input'!J3555=\"\",\"\",IF(OR('TSA Input'!J3555=\"Yes\",'TSA Input'!J3555=\"Contingent\"),'TSA Input'!D3555,\"\"))","v":""},{"$f":"IF('TSA Input'!J3555=\"\",\"\",IF(OR('TSA Input'!J3555=\"Yes\",'TSA Input'!J3555=\"Contingent\"),'TSA Input'!G3555,\"\"))","v":""},{"$f":"IF('TSA Input'!J3555=\"\",\"\",IF(OR('TSA Input'!J3555=\"Yes\",'TSA Input'!J3555=\"Contingent\"),'TSA Input'!F3555,\"\"))","v":""},"",{"$f":"IF('TSA Input'!J3555=\"\",\"\",IF(OR('TSA Input'!J3555=\"Yes\",'TSA Input'!J3555=\"Contingent\"),'TSA Input'!D3555,\"\"))","v":""},{"$f":"IF('TSA Input'!J3555=\"\",\"\",IF(OR('TSA Input'!J3555=\"Yes\",'TSA Input'!J3555=\"Contingent\"),'TSA Input'!G3555,\"\"))","v":""},{"$f":"IF('TSA Input'!J3555=\"\",\"\",IF(OR('TSA Input'!J3555=\"Yes\",'TSA Input'!J3555=\"Contingent\"),'TSA Input'!F3555,\"\"))","v":""},"","Required","Required"]
["",null,{"$f":"IF('TSA Input'!J3556=\"\",\"\",IF(OR('TSA Input'!J3556=\"Yes\",'TSA Input'!J3556=\"Contingent\"),'TSA Input'!B3556,\"Ineligible\"))","v":""},{"$f":"IF('TSA Input'!J3556=\"\",\"\",IF(OR('TSA Input'!J3556=\"Yes\",'TSA Input'!J3556=\"Contingent\"),'TSA Input'!I3556,\"\"))","v":""},{"$f":"IF('TSA Input'!J3556=\"\",\"\",IF(OR('TSA Input'!J3556=\"Yes\",'TSA Input'!J3556=\"Contingent\"),'TSA Input'!C3556,\"\"))","v":""},{"$f":"IF('TSA Input'!J3556=\"\",\"\",IF(OR('TSA Input'!J3556=\"Yes\",'TSA Input'!J3556=\"Contingent\"),'TSA Input'!D3556,\"\"))","v":""},{"$f":"IF('TSA Input'!J3556=\"\",\"\",IF(OR('TSA Input'!J3556=\"Yes\",'TSA Input'!J3556=\"Contingent\"),'TSA Input'!G3556,\"\"))","v":""},{"$f":"IF('TSA Input'!J3556=\"\",\"\",IF(OR('TSA Input'!J3556=\"Yes\",'TSA Input'!J3556=\"Contingent\"),'TSA Input'!F3556,\"\"))","v":""},"",{"$f":"IF('TSA Input'!J3556=\"\",\"\",IF(OR('TSA Input'!J3556=\"Yes\",'TSA Input'!J3556=\"Contingent\"),'TSA Input'!D3556,\"\"))","v":""},{"$f":"IF('TSA Input'!J3556=\"\",\"\",IF(OR('TSA Input'!J3556=\"Yes\",'TSA Input'!J3556=\"Contingent\"),'TSA Input'!G3556,\"\"))","v":""},{"$f":"IF('TSA Input'!J3556=\"\",\"\",IF(OR('TSA Input'!J3556=\"Yes\",'TSA Input'!J3556=\"Contingent\"),'TSA Input'!F3556,\"\"))","v":""},"","Required","Required"]
["",null,{"$f":"IF('TSA Input'!J3557=\"\",\"\",IF(OR('TSA Input'!J3557=\"Yes\",'TSA Input'!J3557=\"Contingent\"),'TSA Input'!B3557,\"Ineligible\"))","v":""},{"$f":"IF('TSA Input'!J3557=\"\",\"\",IF(OR('TSA Input'!J3557=\"Yes\",'TSA Input'!J3557=\"Contingent\"),'TSA Input'!I3557,\"\"))","v":""},{"$f":"IF('TSA Input'!J3557=\"\",\"\",IF(OR('TSA Input'!J3557=\"Yes\",'TSA Input'!J3557=\"Contingent\"),'TSA Input'!C3557,\"\"))","v":""},{"$f":"IF('TSA Input'!J3557=\"\",\"\",IF(OR('TSA Input'!J3557=\"Yes\",'TSA Input'!J3557=\"Contingent\"),'TSA Input'!D3557,\"\"))","v":""},{"$f":"IF('TSA Input'!J3557=\"\",\"\",IF(OR('TSA Input'!J3557=\"Yes\",'TSA Input'!J3557=\"Contingent\"),'TSA Input'!G3557,\"\"))","v":""},{"$f":"IF('TSA Input'!J3557=\"\",\"\",IF(OR('TSA Input'!J3557=\"Yes\",'TSA Input'!J3557=\"Contingent\"),'TSA Input'!F3557,\"\"))","v":""},"",{"$f":"IF('TSA Input'!J3557=\"\",\"\",IF(OR('TSA Input'!J3557=\"Yes\",'TSA Input'!J3557=\"Contingent\"),'TSA Input'!D3557,\"\"))","v":""},{"$f":"IF('TSA Input'!J3557=\"\",\"\",IF(OR('TSA Input'!J3557=\"Yes\",'TSA Input'!J3557=\"Contingent\"),'TSA Input'!G3557,\"\"))","v":""},{"$f":"IF('TSA Input'!J3557=\"\",\"\",IF(OR('TSA Input'!J3557=\"Yes\",'TSA Input'!J3557=\"Contingent\"),'TSA Input'!F3557,\"\"))","v":""},"","Required","Required"]
["",null,{"$f":"IF('TSA Input'!J3558=\"\",\"\",IF(OR('TSA Input'!J3558=\"Yes\",'TSA Input'!J3558=\"Contingent\"),'TSA Input'!B3558,\"Ineligible\"))","v":""},{"$f":"IF('TSA Input'!J3558=\"\",\"\",IF(OR('TSA Input'!J3558=\"Yes\",'TSA Input'!J3558=\"Contingent\"),'TSA Input'!I3558,\"\"))","v":""},{"$f":"IF('TSA Input'!J3558=\"\",\"\",IF(OR('TSA Input'!J3558=\"Yes\",'TSA Input'!J3558=\"Contingent\"),'TSA Input'!C3558,\"\"))","v":""},{"$f":"IF('TSA Input'!J3558=\"\",\"\",IF(OR('TSA Input'!J3558=\"Yes\",'TSA Input'!J3558=\"Contingent\"),'TSA Input'!D3558,\"\"))","v":""},{"$f":"IF('TSA Input'!J3558=\"\",\"\",IF(OR('TSA Input'!J3558=\"Yes\",'TSA Input'!J3558=\"Contingent\"),'TSA Input'!G3558,\"\"))","v":""},{"$f":"IF('TSA Input'!J3558=\"\",\"\",IF(OR('TSA Input'!J3558=\"Yes\",'TSA Input'!J3558=\"Contingent\"),'TSA Input'!F3558,\"\"))","v":""},"",{"$f":"IF('TSA Input'!J3558=\"\",\"\",IF(OR('TSA Input'!J3558=\"Yes\",'TSA Input'!J3558=\"Contingent\"),'TSA Input'!D3558,\"\"))","v":""},{"$f":"IF('TSA Input'!J3558=\"\",\"\",IF(OR('TSA Input'!J3558=\"Yes\",'TSA Input'!J3558=\"Contingent\"),'TSA Input'!G3558,\"\"))","v":""},{"$f":"IF('TSA Input'!J3558=\"\",\"\",IF(OR('TSA Input'!J3558=\"Yes\",'TSA Input'!J3558=\"Contingent\"),'TSA Input'!F3558,\"\"))","v":""},"","Required","Required"]
["",null,{"$f":"IF('TSA Input'!J3559=\"\",\"\",IF(OR('TSA Input'!J3559=\"Yes\",'TSA Input'!J3559=\"Contingent\"),'TSA Input'!B3559,\"Ineligible\"))","v":""},{"$f":"IF('TSA Input'!J3559=\"\",\"\",IF(OR('TSA Input'!J3559=\"Yes\",'TSA Input'!J3559=\"Contingent\"),'TSA Input'!I3559,\"\"))","v":""},{"$f":"IF('TSA Input'!J3559=\"\",\"\",IF(OR('TSA Input'!J3559=\"Yes\",'TSA Input'!J3559=\"Contingent\"),'TSA Input'!C3559,\"\"))","v":""},{"$f":"IF('TSA Input'!J3559=\"\",\"\",IF(OR('TSA Input'!J3559=\"Yes\",'TSA Input'!J3559=\"Contingent\"),'TSA Input'!D3559,\"\"))","v":""},{"$f":"IF('TSA Input'!J3559=\"\",\"\",IF(OR('TSA Input'!J3559=\"Yes\",'TSA Input'!J3559=\"Contingent\"),'TSA Input'!G3559,\"\"))","v":""},{"$f":"IF('TSA Input'!J3559=\"\",\"\",IF(OR('TSA Input'!J3559=\"Yes\",'TSA Input'!J3559=\"Contingent\"),'TSA Input'!F3559,\"\"))","v":""},"",{"$f":"IF('TSA Input'!J3559=\"\",\"\",IF(OR('TSA Input'!J3559=\"Yes\",'TSA Input'!J3559=\"Contingent\"),'TSA Input'!D3559,\"\"))","v":""},{"$f":"IF('TSA Input'!J3559=\"\",\"\",IF(OR('TSA Input'!J3559=\"Yes\",'TSA Input'!J3559=\"Contingent\"),'TSA Input'!G3559,\"\"))","v":""},{"$f":"IF('TSA Input'!J3559=\"\",\"\",IF(OR('TSA Input'!J3559=\"Yes\",'TSA Input'!J3559=\"Contingent\"),'TSA Input'!F3559,\"\"))","v":""},"","Required","Required"]
["",null,{"$f":"IF('TSA Input'!J3560=\"\",\"\",IF(OR('TSA Input'!J3560=\"Yes\",'TSA Input'!J3560=\"Contingent\"),'TSA Input'!B3560,\"Ineligible\"))","v":""},{"$f":"IF('TSA Input'!J3560=\"\",\"\",IF(OR('TSA Input'!J3560=\"Yes\",'TSA Input'!J3560=\"Contingent\"),'TSA Input'!I3560,\"\"))","v":""},{"$f":"IF('TSA Input'!J3560=\"\",\"\",IF(OR('TSA Input'!J3560=\"Yes\",'TSA Input'!J3560=\"Contingent\"),'TSA Input'!C3560,\"\"))","v":""},{"$f":"IF('TSA Input'!J3560=\"\",\"\",IF(OR('TSA Input'!J3560=\"Yes\",'TSA Input'!J3560=\"Contingent\"),'TSA Input'!D3560,\"\"))","v":""},{"$f":"IF('TSA Input'!J3560=\"\",\"\",IF(OR('TSA Input'!J3560=\"Yes\",'TSA Input'!J3560=\"Contingent\"),'TSA Input'!G3560,\"\"))","v":""},{"$f":"IF('TSA Input'!J3560=\"\",\"\",IF(OR('TSA Input'!J3560=\"Yes\",'TSA Input'!J3560=\"Contingent\"),'TSA Input'!F3560,\"\"))","v":""},"",{"$f":"IF('TSA Input'!J3560=\"\",\"\",IF(OR('TSA Input'!J3560=\"Yes\",'TSA Input'!J3560=\"Contingent\"),'TSA Input'!D3560,\"\"))","v":""},{"$f":"IF('TSA Input'!J3560=\"\",\"\",IF(OR('TSA Input'!J3560=\"Yes\",'TSA Input'!J3560=\"Contingent\"),'TSA Input'!G3560,\"\"))","v":""},{"$f":"IF('TSA Input'!J3560=\"\",\"\",IF(OR('TSA Input'!J3560=\"Yes\",'TSA Input'!J3560=\"Contingent\"),'TSA Input'!F3560,\"\"))","v":""},"","Required","Required"]
["",null,{"$f":"IF('TSA Input'!J3561=\"\",\"\",IF(OR('TSA Input'!J3561=\"Yes\",'TSA Input'!J3561=\"Contingent\"),'TSA Input'!B3561,\"Ineligible\"))","v":""},{"$f":"IF('TSA Input'!J3561=\"\",\"\",IF(OR('TSA Input'!J3561=\"Yes\",'TSA Input'!J3561=\"Contingent\"),'TSA Input'!I3561,\"\"))","v":""},{"$f":"IF('TSA Input'!J3561=\"\",\"\",IF(OR('TSA Input'!J3561=\"Yes\",'TSA Input'!J3561=\"Contingent\"),'TSA Input'!C3561,\"\"))","v":""},{"$f":"IF('TSA Input'!J3561=\"\",\"\",IF(OR('TSA Input'!J3561=\"Yes\",'TSA Input'!J3561=\"Contingent\"),'TSA Input'!D3561,\"\"))","v":""},{"$f":"IF('TSA Input'!J3561=\"\",\"\",IF(OR('TSA Input'!J3561=\"Yes\",'TSA Input'!J3561=\"Contingent\"),'TSA Input'!G3561,\"\"))","v":""},{"$f":"IF('TSA Input'!J3561=\"\",\"\",IF(OR('TSA Input'!J3561=\"Yes\",'TSA Input'!J3561=\"Contingent\"),'TSA Input'!F3561,\"\"))","v":""},"",{"$f":"IF('TSA Input'!J3561=\"\",\"\",IF(OR('TSA Input'!J3561=\"Yes\",'TSA Input'!J3561=\"Contingent\"),'TSA Input'!D3561,\"\"))","v":""},{"$f":"IF('TSA Input'!J3561=\"\",\"\",IF(OR('TSA Input'!J3561=\"Yes\",'TSA Input'!J3561=\"Contingent\"),'TSA Input'!G3561,\"\"))","v":""},{"$f":"IF('TSA Input'!J3561=\"\",\"\",IF(OR('TSA Input'!J3561=\"Yes\",'TSA Input'!J3561=\"Contingent\"),'TSA Input'!F3561,\"\"))","v":""},"","Required","Required"]
["",null,{"$f":"IF('TSA Input'!J3562=\"\",\"\",IF(OR('TSA Input'!J3562=\"Yes\",'TSA Input'!J3562=\"Contingent\"),'TSA Input'!B3562,\"Ineligible\"))","v":""},{"$f":"IF('TSA Input'!J3562=\"\",\"\",IF(OR('TSA Input'!J3562=\"Yes\",'TSA Input'!J3562=\"Contingent\"),'TSA Input'!I3562,\"\"))","v":""},{"$f":"IF('TSA Input'!J3562=\"\",\"\",IF(OR('TSA Input'!J3562=\"Yes\",'TSA Input'!J3562=\"Contingent\"),'TSA Input'!C3562,\"\"))","v":""},{"$f":"IF('TSA Input'!J3562=\"\",\"\",IF(OR('TSA Input'!J3562=\"Yes\",'TSA Input'!J3562=\"Contingent\"),'TSA Input'!D3562,\"\"))","v":""},{"$f":"IF('TSA Input'!J3562=\"\",\"\",IF(OR('TSA Input'!J3562=\"Yes\",'TSA Input'!J3562=\"Contingent\"),'TSA Input'!G3562,\"\"))","v":""},{"$f":"IF('TSA Input'!J3562=\"\",\"\",IF(OR('TSA Input'!J3562=\"Yes\",'TSA Input'!J3562=\"Contingent\"),'TSA Input'!F3562,\"\"))","v":""},"",{"$f":"IF('TSA Input'!J3562=\"\",\"\",IF(OR('TSA Input'!J3562=\"Yes\",'TSA Input'!J3562=\"Contingent\"),'TSA Input'!D3562,\"\"))","v":""},{"$f":"IF('TSA Input'!J3562=\"\",\"\",IF(OR('TSA Input'!J3562=\"Yes\",'TSA Input'!J3562=\"Contingent\"),'TSA Input'!G3562,\"\"))","v":""},{"$f":"IF('TSA Input'!J3562=\"\",\"\",IF(OR('TSA Input'!J3562=\"Yes\",'TSA Input'!J3562=\"Contingent\"),'TSA Input'!F3562,\"\"))","v":""},"","Required","Required"]
["",null,{"$f":"IF('TSA Input'!J3563=\"\",\"\",IF(OR('TSA Input'!J3563=\"Yes\",'TSA Input'!J3563=\"Contingent\"),'TSA Input'!B3563,\"Ineligible\"))","v":""},{"$f":"IF('TSA Input'!J3563=\"\",\"\",IF(OR('TSA Input'!J3563=\"Yes\",'TSA Input'!J3563=\"Contingent\"),'TSA Input'!I3563,\"\"))","v":""},{"$f":"IF('TSA Input'!J3563=\"\",\"\",IF(OR('TSA Input'!J3563=\"Yes\",'TSA Input'!J3563=\"Contingent\"),'TSA Input'!C3563,\"\"))","v":""},{"$f":"IF('TSA Input'!J3563=\"\",\"\",IF(OR('TSA Input'!J3563=\"Yes\",'TSA Input'!J3563=\"Contingent\"),'TSA Input'!D3563,\"\"))","v":""},{"$f":"IF('TSA Input'!J3563=\"\",\"\",IF(OR('TSA Input'!J3563=\"Yes\",'TSA Input'!J3563=\"Contingent\"),'TSA Input'!G3563,\"\"))","v":""},{"$f":"IF('TSA Input'!J3563=\"\",\"\",IF(OR('TSA Input'!J3563=\"Yes\",'TSA Input'!J3563=\"Contingent\"),'TSA Input'!F3563,\"\"))","v":""},"",{"$f":"IF('TSA Input'!J3563=\"\",\"\",IF(OR('TSA Input'!J3563=\"Yes\",'TSA Input'!J3563=\"Contingent\"),'TSA Input'!D3563,\"\"))","v":""},{"$f":"IF('TSA Input'!J3563=\"\",\"\",IF(OR('TSA Input'!J3563=\"Yes\",'TSA Input'!J3563=\"Contingent\"),'TSA Input'!G3563,\"\"))","v":""},{"$f":"IF('TSA Input'!J3563=\"\",\"\",IF(OR('TSA Input'!J3563=\"Yes\",'TSA Input'!J3563=\"Contingent\"),'TSA Input'!F3563,\"\"))","v":""},"","Required","Required"]
["",null,{"$f":"IF('TSA Input'!J3564=\"\",\"\",IF(OR('TSA Input'!J3564=\"Yes\",'TSA Input'!J3564=\"Contingent\"),'TSA Input'!B3564,\"Ineligible\"))","v":""},{"$f":"IF('TSA Input'!J3564=\"\",\"\",IF(OR('TSA Input'!J3564=\"Yes\",'TSA Input'!J3564=\"Contingent\"),'TSA Input'!I3564,\"\"))","v":""},{"$f":"IF('TSA Input'!J3564=\"\",\"\",IF(OR('TSA Input'!J3564=\"Yes\",'TSA Input'!J3564=\"Contingent\"),'TSA Input'!C3564,\"\"))","v":""},{"$f":"IF('TSA Input'!J3564=\"\",\"\",IF(OR('TSA Input'!J3564=\"Yes\",'TSA Input'!J3564=\"Contingent\"),'TSA Input'!D3564,\"\"))","v":""},{"$f":"IF('TSA Input'!J3564=\"\",\"\",IF(OR('TSA Input'!J3564=\"Yes\",'TSA Input'!J3564=\"Contingent\"),'TSA Input'!G3564,\"\"))","v":""},{"$f":"IF('TSA Input'!J3564=\"\",\"\",IF(OR('TSA Input'!J3564=\"Yes\",'TSA Input'!J3564=\"Contingent\"),'TSA Input'!F3564,\"\"))","v":""},"",{"$f":"IF('TSA Input'!J3564=\"\",\"\",IF(OR('TSA Input'!J3564=\"Yes\",'TSA Input'!J3564=\"Contingent\"),'TSA Input'!D3564,\"\"))","v":""},{"$f":"IF('TSA Input'!J3564=\"\",\"\",IF(OR('TSA Input'!J3564=\"Yes\",'TSA Input'!J3564=\"Contingent\"),'TSA Input'!G3564,\"\"))","v":""},{"$f":"IF('TSA Input'!J3564=\"\",\"\",IF(OR('TSA Input'!J3564=\"Yes\",'TSA Input'!J3564=\"Contingent\"),'TSA Input'!F3564,\"\"))","v":""},"","Required","Required"]
["",null,{"$f":"IF('TSA Input'!J3565=\"\",\"\",IF(OR('TSA Input'!J3565=\"Yes\",'TSA Input'!J3565=\"Contingent\"),'TSA Input'!B3565,\"Ineligible\"))","v":""},{"$f":"IF('TSA Input'!J3565=\"\",\"\",IF(OR('TSA Input'!J3565=\"Yes\",'TSA Input'!J3565=\"Contingent\"),'TSA Input'!I3565,\"\"))","v":""},{"$f":"IF('TSA Input'!J3565=\"\",\"\",IF(OR('TSA Input'!J3565=\"Yes\",'TSA Input'!J3565=\"Contingent\"),'TSA Input'!C3565,\"\"))","v":""},{"$f":"IF('TSA Input'!J3565=\"\",\"\",IF(OR('TSA Input'!J3565=\"Yes\",'TSA Input'!J3565=\"Contingent\"),'TSA Input'!D3565,\"\"))","v":""},{"$f":"IF('TSA Input'!J3565=\"\",\"\",IF(OR('TSA Input'!J3565=\"Yes\",'TSA Input'!J3565=\"Contingent\"),'TSA Input'!G3565,\"\"))","v":""},{"$f":"IF('TSA Input'!J3565=\"\",\"\",IF(OR('TSA Input'!J3565=\"Yes\",'TSA Input'!J3565=\"Contingent\"),'TSA Input'!F3565,\"\"))","v":""},"",{"$f":"IF('TSA Input'!J3565=\"\",\"\",IF(OR('TSA Input'!J3565=\"Yes\",'TSA Input'!J3565=\"Contingent\"),'TSA Input'!D3565,\"\"))","v":""},{"$f":"IF('TSA Input'!J3565=\"\",\"\",IF(OR('TSA Input'!J3565=\"Yes\",'TSA Input'!J3565=\"Contingent\"),'TSA Input'!G3565,\"\"))","v":""},{"$f":"IF('TSA Input'!J3565=\"\",\"\",IF(OR('TSA Input'!J3565=\"Yes\",'TSA Input'!J3565=\"Contingent\"),'TSA Input'!F3565,\"\"))","v":""},"","Required","Required"]
["",null,{"$f":"IF('TSA Input'!J3566=\"\",\"\",IF(OR('TSA Input'!J3566=\"Yes\",'TSA Input'!J3566=\"Contingent\"),'TSA Input'!B3566,\"Ineligible\"))","v":""},{"$f":"IF('TSA Input'!J3566=\"\",\"\",IF(OR('TSA Input'!J3566=\"Yes\",'TSA Input'!J3566=\"Contingent\"),'TSA Input'!I3566,\"\"))","v":""},{"$f":"IF('TSA Input'!J3566=\"\",\"\",IF(OR('TSA Input'!J3566=\"Yes\",'TSA Input'!J3566=\"Contingent\"),'TSA Input'!C3566,\"\"))","v":""},{"$f":"IF('TSA Input'!J3566=\"\",\"\",IF(OR('TSA Input'!J3566=\"Yes\",'TSA Input'!J3566=\"Contingent\"),'TSA Input'!D3566,\"\"))","v":""},{"$f":"IF('TSA Input'!J3566=\"\",\"\",IF(OR('TSA Input'!J3566=\"Yes\",'TSA Input'!J3566=\"Contingent\"),'TSA Input'!G3566,\"\"))","v":""},{"$f":"IF('TSA Input'!J3566=\"\",\"\",IF(OR('TSA Input'!J3566=\"Yes\",'TSA Input'!J3566=\"Contingent\"),'TSA Input'!F3566,\"\"))","v":""},"",{"$f":"IF('TSA Input'!J3566=\"\",\"\",IF(OR('TSA Input'!J3566=\"Yes\",'TSA Input'!J3566=\"Contingent\"),'TSA Input'!D3566,\"\"))","v":""},{"$f":"IF('TSA Input'!J3566=\"\",\"\",IF(OR('TSA Input'!J3566=\"Yes\",'TSA Input'!J3566=\"Contingent\"),'TSA Input'!G3566,\"\"))","v":""},{"$f":"IF('TSA Input'!J3566=\"\",\"\",IF(OR('TSA Input'!J3566=\"Yes\",'TSA Input'!J3566=\"Contingent\"),'TSA Input'!F3566,\"\"))","v":""},"","Required","Required"]
["",null,{"$f":"IF('TSA Input'!J3567=\"\",\"\",IF(OR('TSA Input'!J3567=\"Yes\",'TSA Input'!J3567=\"Contingent\"),'TSA Input'!B3567,\"Ineligible\"))","v":""},{"$f":"IF('TSA Input'!J3567=\"\",\"\",IF(OR('TSA Input'!J3567=\"Yes\",'TSA Input'!J3567=\"Contingent\"),'TSA Input'!I3567,\"\"))","v":""},{"$f":"IF('TSA Input'!J3567=\"\",\"\",IF(OR('TSA Input'!J3567=\"Yes\",'TSA Input'!J3567=\"Contingent\"),'TSA Input'!C3567,\"\"))","v":""},{"$f":"IF('TSA Input'!J3567=\"\",\"\",IF(OR('TSA Input'!J3567=\"Yes\",'TSA Input'!J3567=\"Contingent\"),'TSA Input'!D3567,\"\"))","v":""},{"$f":"IF('TSA Input'!J3567=\"\",\"\",IF(OR('TSA Input'!J3567=\"Yes\",'TSA Input'!J3567=\"Contingent\"),'TSA Input'!G3567,\"\"))","v":""},{"$f":"IF('TSA Input'!J3567=\"\",\"\",IF(OR('TSA Input'!J3567=\"Yes\",'TSA Input'!J3567=\"Contingent\"),'TSA Input'!F3567,\"\"))","v":""},"",{"$f":"IF('TSA Input'!J3567=\"\",\"\",IF(OR('TSA Input'!J3567=\"Yes\",'TSA Input'!J3567=\"Contingent\"),'TSA Input'!D3567,\"\"))","v":""},{"$f":"IF('TSA Input'!J3567=\"\",\"\",IF(OR('TSA Input'!J3567=\"Yes\",'TSA Input'!J3567=\"Contingent\"),'TSA Input'!G3567,\"\"))","v":""},{"$f":"IF('TSA Input'!J3567=\"\",\"\",IF(OR('TSA Input'!J3567=\"Yes\",'TSA Input'!J3567=\"Contingent\"),'TSA Input'!F3567,\"\"))","v":""},"","Required","Required"]
["",null,{"$f":"IF('TSA Input'!J3568=\"\",\"\",IF(OR('TSA Input'!J3568=\"Yes\",'TSA Input'!J3568=\"Contingent\"),'TSA Input'!B3568,\"Ineligible\"))","v":""},{"$f":"IF('TSA Input'!J3568=\"\",\"\",IF(OR('TSA Input'!J3568=\"Yes\",'TSA Input'!J3568=\"Contingent\"),'TSA Input'!I3568,\"\"))","v":""},{"$f":"IF('TSA Input'!J3568=\"\",\"\",IF(OR('TSA Input'!J3568=\"Yes\",'TSA Input'!J3568=\"Contingent\"),'TSA Input'!C3568,\"\"))","v":""},{"$f":"IF('TSA Input'!J3568=\"\",\"\",IF(OR('TSA Input'!J3568=\"Yes\",'TSA Input'!J3568=\"Contingent\"),'TSA Input'!D3568,\"\"))","v":""},{"$f":"IF('TSA Input'!J3568=\"\",\"\",IF(OR('TSA Input'!J3568=\"Yes\",'TSA Input'!J3568=\"Contingent\"),'TSA Input'!G3568,\"\"))","v":""},{"$f":"IF('TSA Input'!J3568=\"\",\"\",IF(OR('TSA Input'!J3568=\"Yes\",'TSA Input'!J3568=\"Contingent\"),'TSA Input'!F3568,\"\"))","v":""},"",{"$f":"IF('TSA Input'!J3568=\"\",\"\",IF(OR('TSA Input'!J3568=\"Yes\",'TSA Input'!J3568=\"Contingent\"),'TSA Input'!D3568,\"\"))","v":""},{"$f":"IF('TSA Input'!J3568=\"\",\"\",IF(OR('TSA Input'!J3568=\"Yes\",'TSA Input'!J3568=\"Contingent\"),'TSA Input'!G3568,\"\"))","v":""},{"$f":"IF('TSA Input'!J3568=\"\",\"\",IF(OR('TSA Input'!J3568=\"Yes\",'TSA Input'!J3568=\"Contingent\"),'TSA Input'!F3568,\"\"))","v":""},"","Required","Required"]
["",null,{"$f":"IF('TSA Input'!J3569=\"\",\"\",IF(OR('TSA Input'!J3569=\"Yes\",'TSA Input'!J3569=\"Contingent\"),'TSA Input'!B3569,\"Ineligible\"))","v":""},{"$f":"IF('TSA Input'!J3569=\"\",\"\",IF(OR('TSA Input'!J3569=\"Yes\",'TSA Input'!J3569=\"Contingent\"),'TSA Input'!I3569,\"\"))","v":""},{"$f":"IF('TSA Input'!J3569=\"\",\"\",IF(OR('TSA Input'!J3569=\"Yes\",'TSA Input'!J3569=\"Contingent\"),'TSA Input'!C3569,\"\"))","v":""},{"$f":"IF('TSA Input'!J3569=\"\",\"\",IF(OR('TSA Input'!J3569=\"Yes\",'TSA Input'!J3569=\"Contingent\"),'TSA Input'!D3569,\"\"))","v":""},{"$f":"IF('TSA Input'!J3569=\"\",\"\",IF(OR('TSA Input'!J3569=\"Yes\",'TSA Input'!J3569=\"Contingent\"),'TSA Input'!G3569,\"\"))","v":""},{"$f":"IF('TSA Input'!J3569=\"\",\"\",IF(OR('TSA Input'!J3569=\"Yes\",'TSA Input'!J3569=\"Contingent\"),'TSA Input'!F3569,\"\"))","v":""},"",{"$f":"IF('TSA Input'!J3569=\"\",\"\",IF(OR('TSA Input'!J3569=\"Yes\",'TSA Input'!J3569=\"Contingent\"),'TSA Input'!D3569,\"\"))","v":""},{"$f":"IF('TSA Input'!J3569=\"\",\"\",IF(OR('TSA Input'!J3569=\"Yes\",'TSA Input'!J3569=\"Contingent\"),'TSA Input'!G3569,\"\"))","v":""},{"$f":"IF('TSA Input'!J3569=\"\",\"\",IF(OR('TSA Input'!J3569=\"Yes\",'TSA Input'!J3569=\"Contingent\"),'TSA Input'!F3569,\"\"))","v":""},"","Required","Required"]
["",null,{"$f":"IF('TSA Input'!J3570=\"\",\"\",IF(OR('TSA Input'!J3570=\"Yes\",'TSA Input'!J3570=\"Contingent\"),'TSA Input'!B3570,\"Ineligible\"))","v":""},{"$f":"IF('TSA Input'!J3570=\"\",\"\",IF(OR('TSA Input'!J3570=\"Yes\",'TSA Input'!J3570=\"Contingent\"),'TSA Input'!I3570,\"\"))","v":""},{"$f":"IF('TSA Input'!J3570=\"\",\"\",IF(OR('TSA Input'!J3570=\"Yes\",'TSA Input'!J3570=\"Contingent\"),'TSA Input'!C3570,\"\"))","v":""},{"$f":"IF('TSA Input'!J3570=\"\",\"\",IF(OR('TSA Input'!J3570=\"Yes\",'TSA Input'!J3570=\"Contingent\"),'TSA Input'!D3570,\"\"))","v":""},{"$f":"IF('TSA Input'!J3570=\"\",\"\",IF(OR('TSA Input'!J3570=\"Yes\",'TSA Input'!J3570=\"Contingent\"),'TSA Input'!G3570,\"\"))","v":""},{"$f":"IF('TSA Input'!J3570=\"\",\"\",IF(OR('TSA Input'!J3570=\"Yes\",'TSA Input'!J3570=\"Contingent\"),'TSA Input'!F3570,\"\"))","v":""},"",{"$f":"IF('TSA Input'!J3570=\"\",\"\",IF(OR('TSA Input'!J3570=\"Yes\",'TSA Input'!J3570=\"Contingent\"),'TSA Input'!D3570,\"\"))","v":""},{"$f":"IF('TSA Input'!J3570=\"\",\"\",IF(OR('TSA Input'!J3570=\"Yes\",'TSA Input'!J3570=\"Contingent\"),'TSA Input'!G3570,\"\"))","v":""},{"$f":"IF('TSA Input'!J3570=\"\",\"\",IF(OR('TSA Input'!J3570=\"Yes\",'TSA Input'!J3570=\"Contingent\"),'TSA Input'!F3570,\"\"))","v":""},"","Required","Required"]
["",null,{"$f":"IF('TSA Input'!J3571=\"\",\"\",IF(OR('TSA Input'!J3571=\"Yes\",'TSA Input'!J3571=\"Contingent\"),'TSA Input'!B3571,\"Ineligible\"))","v":""},{"$f":"IF('TSA Input'!J3571=\"\",\"\",IF(OR('TSA Input'!J3571=\"Yes\",'TSA Input'!J3571=\"Contingent\"),'TSA Input'!I3571,\"\"))","v":""},{"$f":"IF('TSA Input'!J3571=\"\",\"\",IF(OR('TSA Input'!J3571=\"Yes\",'TSA Input'!J3571=\"Contingent\"),'TSA Input'!C3571,\"\"))","v":""},{"$f":"IF('TSA Input'!J3571=\"\",\"\",IF(OR('TSA Input'!J3571=\"Yes\",'TSA Input'!J3571=\"Contingent\"),'TSA Input'!D3571,\"\"))","v":""},{"$f":"IF('TSA Input'!J3571=\"\",\"\",IF(OR('TSA Input'!J3571=\"Yes\",'TSA Input'!J3571=\"Contingent\"),'TSA Input'!G3571,\"\"))","v":""},{"$f":"IF('TSA Input'!J3571=\"\",\"\",IF(OR('TSA Input'!J3571=\"Yes\",'TSA Input'!J3571=\"Contingent\"),'TSA Input'!F3571,\"\"))","v":""},"",{"$f":"IF('TSA Input'!J3571=\"\",\"\",IF(OR('TSA Input'!J3571=\"Yes\",'TSA Input'!J3571=\"Contingent\"),'TSA Input'!D3571,\"\"))","v":""},{"$f":"IF('TSA Input'!J3571=\"\",\"\",IF(OR('TSA Input'!J3571=\"Yes\",'TSA Input'!J3571=\"Contingent\"),'TSA Input'!G3571,\"\"))","v":""},{"$f":"IF('TSA Input'!J3571=\"\",\"\",IF(OR('TSA Input'!J3571=\"Yes\",'TSA Input'!J3571=\"Contingent\"),'TSA Input'!F3571,\"\"))","v":""},"","Required","Required"]
["",null,{"$f":"IF('TSA Input'!J3572=\"\",\"\",IF(OR('TSA Input'!J3572=\"Yes\",'TSA Input'!J3572=\"Contingent\"),'TSA Input'!B3572,\"Ineligible\"))","v":""},{"$f":"IF('TSA Input'!J3572=\"\",\"\",IF(OR('TSA Input'!J3572=\"Yes\",'TSA Input'!J3572=\"Contingent\"),'TSA Input'!I3572,\"\"))","v":""},{"$f":"IF('TSA Input'!J3572=\"\",\"\",IF(OR('TSA Input'!J3572=\"Yes\",'TSA Input'!J3572=\"Contingent\"),'TSA Input'!C3572,\"\"))","v":""},{"$f":"IF('TSA Input'!J3572=\"\",\"\",IF(OR('TSA Input'!J3572=\"Yes\",'TSA Input'!J3572=\"Contingent\"),'TSA Input'!D3572,\"\"))","v":""},{"$f":"IF('TSA Input'!J3572=\"\",\"\",IF(OR('TSA Input'!J3572=\"Yes\",'TSA Input'!J3572=\"Contingent\"),'TSA Input'!G3572,\"\"))","v":""},{"$f":"IF('TSA Input'!J3572=\"\",\"\",IF(OR('TSA Input'!J3572=\"Yes\",'TSA Input'!J3572=\"Contingent\"),'TSA Input'!F3572,\"\"))","v":""},"",{"$f":"IF('TSA Input'!J3572=\"\",\"\",IF(OR('TSA Input'!J3572=\"Yes\",'TSA Input'!J3572=\"Contingent\"),'TSA Input'!D3572,\"\"))","v":""},{"$f":"IF('TSA Input'!J3572=\"\",\"\",IF(OR('TSA Input'!J3572=\"Yes\",'TSA Input'!J3572=\"Contingent\"),'TSA Input'!G3572,\"\"))","v":""},{"$f":"IF('TSA Input'!J3572=\"\",\"\",IF(OR('TSA Input'!J3572=\"Yes\",'TSA Input'!J3572=\"Contingent\"),'TSA Input'!F3572,\"\"))","v":""},"","Required","Required"]
["",null,{"$f":"IF('TSA Input'!J3573=\"\",\"\",IF(OR('TSA Input'!J3573=\"Yes\",'TSA Input'!J3573=\"Contingent\"),'TSA Input'!B3573,\"Ineligible\"))","v":""},{"$f":"IF('TSA Input'!J3573=\"\",\"\",IF(OR('TSA Input'!J3573=\"Yes\",'TSA Input'!J3573=\"Contingent\"),'TSA Input'!I3573,\"\"))","v":""},{"$f":"IF('TSA Input'!J3573=\"\",\"\",IF(OR('TSA Input'!J3573=\"Yes\",'TSA Input'!J3573=\"Contingent\"),'TSA Input'!C3573,\"\"))","v":""},{"$f":"IF('TSA Input'!J3573=\"\",\"\",IF(OR('TSA Input'!J3573=\"Yes\",'TSA Input'!J3573=\"Contingent\"),'TSA Input'!D3573,\"\"))","v":""},{"$f":"IF('TSA Input'!J3573=\"\",\"\",IF(OR('TSA Input'!J3573=\"Yes\",'TSA Input'!J3573=\"Contingent\"),'TSA Input'!G3573,\"\"))","v":""},{"$f":"IF('TSA Input'!J3573=\"\",\"\",IF(OR('TSA Input'!J3573=\"Yes\",'TSA Input'!J3573=\"Contingent\"),'TSA Input'!F3573,\"\"))","v":""},"",{"$f":"IF('TSA Input'!J3573=\"\",\"\",IF(OR('TSA Input'!J3573=\"Yes\",'TSA Input'!J3573=\"Contingent\"),'TSA Input'!D3573,\"\"))","v":""},{"$f":"IF('TSA Input'!J3573=\"\",\"\",IF(OR('TSA Input'!J3573=\"Yes\",'TSA Input'!J3573=\"Contingent\"),'TSA Input'!G3573,\"\"))","v":""},{"$f":"IF('TSA Input'!J3573=\"\",\"\",IF(OR('TSA Input'!J3573=\"Yes\",'TSA Input'!J3573=\"Contingent\"),'TSA Input'!F3573,\"\"))","v":""},"","Required","Required"]
["",null,{"$f":"IF('TSA Input'!J3574=\"\",\"\",IF(OR('TSA Input'!J3574=\"Yes\",'TSA Input'!J3574=\"Contingent\"),'TSA Input'!B3574,\"Ineligible\"))","v":""},{"$f":"IF('TSA Input'!J3574=\"\",\"\",IF(OR('TSA Input'!J3574=\"Yes\",'TSA Input'!J3574=\"Contingent\"),'TSA Input'!I3574,\"\"))","v":""},{"$f":"IF('TSA Input'!J3574=\"\",\"\",IF(OR('TSA Input'!J3574=\"Yes\",'TSA Input'!J3574=\"Contingent\"),'TSA Input'!C3574,\"\"))","v":""},{"$f":"IF('TSA Input'!J3574=\"\",\"\",IF(OR('TSA Input'!J3574=\"Yes\",'TSA Input'!J3574=\"Contingent\"),'TSA Input'!D3574,\"\"))","v":""},{"$f":"IF('TSA Input'!J3574=\"\",\"\",IF(OR('TSA Input'!J3574=\"Yes\",'TSA Input'!J3574=\"Contingent\"),'TSA Input'!G3574,\"\"))","v":""},{"$f":"IF('TSA Input'!J3574=\"\",\"\",IF(OR('TSA Input'!J3574=\"Yes\",'TSA Input'!J3574=\"Contingent\"),'TSA Input'!F3574,\"\"))","v":""},"",{"$f":"IF('TSA Input'!J3574=\"\",\"\",IF(OR('TSA Input'!J3574=\"Yes\",'TSA Input'!J3574=\"Contingent\"),'TSA Input'!D3574,\"\"))","v":""},{"$f":"IF('TSA Input'!J3574=\"\",\"\",IF(OR('TSA Input'!J3574=\"Yes\",'TSA Input'!J3574=\"Contingent\"),'TSA Input'!G3574,\"\"))","v":""},{"$f":"IF('TSA Input'!J3574=\"\",\"\",IF(OR('TSA Input'!J3574=\"Yes\",'TSA Input'!J3574=\"Contingent\"),'TSA Input'!F3574,\"\"))","v":""},"","Required","Required"]
["",null,{"$f":"IF('TSA Input'!J3575=\"\",\"\",IF(OR('TSA Input'!J3575=\"Yes\",'TSA Input'!J3575=\"Contingent\"),'TSA Input'!B3575,\"Ineligible\"))","v":""},{"$f":"IF('TSA Input'!J3575=\"\",\"\",IF(OR('TSA Input'!J3575=\"Yes\",'TSA Input'!J3575=\"Contingent\"),'TSA Input'!I3575,\"\"))","v":""},{"$f":"IF('TSA Input'!J3575=\"\",\"\",IF(OR('TSA Input'!J3575=\"Yes\",'TSA Input'!J3575=\"Contingent\"),'TSA Input'!C3575,\"\"))","v":""},{"$f":"IF('TSA Input'!J3575=\"\",\"\",IF(OR('TSA Input'!J3575=\"Yes\",'TSA Input'!J3575=\"Contingent\"),'TSA Input'!D3575,\"\"))","v":""},{"$f":"IF('TSA Input'!J3575=\"\",\"\",IF(OR('TSA Input'!J3575=\"Yes\",'TSA Input'!J3575=\"Contingent\"),'TSA Input'!G3575,\"\"))","v":""},{"$f":"IF('TSA Input'!J3575=\"\",\"\",IF(OR('TSA Input'!J3575=\"Yes\",'TSA Input'!J3575=\"Contingent\"),'TSA Input'!F3575,\"\"))","v":""},"",{"$f":"IF('TSA Input'!J3575=\"\",\"\",IF(OR('TSA Input'!J3575=\"Yes\",'TSA Input'!J3575=\"Contingent\"),'TSA Input'!D3575,\"\"))","v":""},{"$f":"IF('TSA Input'!J3575=\"\",\"\",IF(OR('TSA Input'!J3575=\"Yes\",'TSA Input'!J3575=\"Contingent\"),'TSA Input'!G3575,\"\"))","v":""},{"$f":"IF('TSA Input'!J3575=\"\",\"\",IF(OR('TSA Input'!J3575=\"Yes\",'TSA Input'!J3575=\"Contingent\"),'TSA Input'!F3575,\"\"))","v":""},"","Required","Required"]
["",null,{"$f":"IF('TSA Input'!J3576=\"\",\"\",IF(OR('TSA Input'!J3576=\"Yes\",'TSA Input'!J3576=\"Contingent\"),'TSA Input'!B3576,\"Ineligible\"))","v":""},{"$f":"IF('TSA Input'!J3576=\"\",\"\",IF(OR('TSA Input'!J3576=\"Yes\",'TSA Input'!J3576=\"Contingent\"),'TSA Input'!I3576,\"\"))","v":""},{"$f":"IF('TSA Input'!J3576=\"\",\"\",IF(OR('TSA Input'!J3576=\"Yes\",'TSA Input'!J3576=\"Contingent\"),'TSA Input'!C3576,\"\"))","v":""},{"$f":"IF('TSA Input'!J3576=\"\",\"\",IF(OR('TSA Input'!J3576=\"Yes\",'TSA Input'!J3576=\"Contingent\"),'TSA Input'!D3576,\"\"))","v":""},{"$f":"IF('TSA Input'!J3576=\"\",\"\",IF(OR('TSA Input'!J3576=\"Yes\",'TSA Input'!J3576=\"Contingent\"),'TSA Input'!G3576,\"\"))","v":""},{"$f":"IF('TSA Input'!J3576=\"\",\"\",IF(OR('TSA Input'!J3576=\"Yes\",'TSA Input'!J3576=\"Contingent\"),'TSA Input'!F3576,\"\"))","v":""},"",{"$f":"IF('TSA Input'!J3576=\"\",\"\",IF(OR('TSA Input'!J3576=\"Yes\",'TSA Input'!J3576=\"Contingent\"),'TSA Input'!D3576,\"\"))","v":""},{"$f":"IF('TSA Input'!J3576=\"\",\"\",IF(OR('TSA Input'!J3576=\"Yes\",'TSA Input'!J3576=\"Contingent\"),'TSA Input'!G3576,\"\"))","v":""},{"$f":"IF('TSA Input'!J3576=\"\",\"\",IF(OR('TSA Input'!J3576=\"Yes\",'TSA Input'!J3576=\"Contingent\"),'TSA Input'!F3576,\"\"))","v":""},"","Required","Required"]
["",null,{"$f":"IF('TSA Input'!J3577=\"\",\"\",IF(OR('TSA Input'!J3577=\"Yes\",'TSA Input'!J3577=\"Contingent\"),'TSA Input'!B3577,\"Ineligible\"))","v":""},{"$f":"IF('TSA Input'!J3577=\"\",\"\",IF(OR('TSA Input'!J3577=\"Yes\",'TSA Input'!J3577=\"Contingent\"),'TSA Input'!I3577,\"\"))","v":""},{"$f":"IF('TSA Input'!J3577=\"\",\"\",IF(OR('TSA Input'!J3577=\"Yes\",'TSA Input'!J3577=\"Contingent\"),'TSA Input'!C3577,\"\"))","v":""},{"$f":"IF('TSA Input'!J3577=\"\",\"\",IF(OR('TSA Input'!J3577=\"Yes\",'TSA Input'!J3577=\"Contingent\"),'TSA Input'!D3577,\"\"))","v":""},{"$f":"IF('TSA Input'!J3577=\"\",\"\",IF(OR('TSA Input'!J3577=\"Yes\",'TSA Input'!J3577=\"Contingent\"),'TSA Input'!G3577,\"\"))","v":""},{"$f":"IF('TSA Input'!J3577=\"\",\"\",IF(OR('TSA Input'!J3577=\"Yes\",'TSA Input'!J3577=\"Contingent\"),'TSA Input'!F3577,\"\"))","v":""},"",{"$f":"IF('TSA Input'!J3577=\"\",\"\",IF(OR('TSA Input'!J3577=\"Yes\",'TSA Input'!J3577=\"Contingent\"),'TSA Input'!D3577,\"\"))","v":""},{"$f":"IF('TSA Input'!J3577=\"\",\"\",IF(OR('TSA Input'!J3577=\"Yes\",'TSA Input'!J3577=\"Contingent\"),'TSA Input'!G3577,\"\"))","v":""},{"$f":"IF('TSA Input'!J3577=\"\",\"\",IF(OR('TSA Input'!J3577=\"Yes\",'TSA Input'!J3577=\"Contingent\"),'TSA Input'!F3577,\"\"))","v":""},"","Required","Required"]
["",null,{"$f":"IF('TSA Input'!J3578=\"\",\"\",IF(OR('TSA Input'!J3578=\"Yes\",'TSA Input'!J3578=\"Contingent\"),'TSA Input'!B3578,\"Ineligible\"))","v":""},{"$f":"IF('TSA Input'!J3578=\"\",\"\",IF(OR('TSA Input'!J3578=\"Yes\",'TSA Input'!J3578=\"Contingent\"),'TSA Input'!I3578,\"\"))","v":""},{"$f":"IF('TSA Input'!J3578=\"\",\"\",IF(OR('TSA Input'!J3578=\"Yes\",'TSA Input'!J3578=\"Contingent\"),'TSA Input'!C3578,\"\"))","v":""},{"$f":"IF('TSA Input'!J3578=\"\",\"\",IF(OR('TSA Input'!J3578=\"Yes\",'TSA Input'!J3578=\"Contingent\"),'TSA Input'!D3578,\"\"))","v":""},{"$f":"IF('TSA Input'!J3578=\"\",\"\",IF(OR('TSA Input'!J3578=\"Yes\",'TSA Input'!J3578=\"Contingent\"),'TSA Input'!G3578,\"\"))","v":""},{"$f":"IF('TSA Input'!J3578=\"\",\"\",IF(OR('TSA Input'!J3578=\"Yes\",'TSA Input'!J3578=\"Contingent\"),'TSA Input'!F3578,\"\"))","v":""},"",{"$f":"IF('TSA Input'!J3578=\"\",\"\",IF(OR('TSA Input'!J3578=\"Yes\",'TSA Input'!J3578=\"Contingent\"),'TSA Input'!D3578,\"\"))","v":""},{"$f":"IF('TSA Input'!J3578=\"\",\"\",IF(OR('TSA Input'!J3578=\"Yes\",'TSA Input'!J3578=\"Contingent\"),'TSA Input'!G3578,\"\"))","v":""},{"$f":"IF('TSA Input'!J3578=\"\",\"\",IF(OR('TSA Input'!J3578=\"Yes\",'TSA Input'!J3578=\"Contingent\"),'TSA Input'!F3578,\"\"))","v":""},"","Required","Required"]
["",null,{"$f":"IF('TSA Input'!J3579=\"\",\"\",IF(OR('TSA Input'!J3579=\"Yes\",'TSA Input'!J3579=\"Contingent\"),'TSA Input'!B3579,\"Ineligible\"))","v":""},{"$f":"IF('TSA Input'!J3579=\"\",\"\",IF(OR('TSA Input'!J3579=\"Yes\",'TSA Input'!J3579=\"Contingent\"),'TSA Input'!I3579,\"\"))","v":""},{"$f":"IF('TSA Input'!J3579=\"\",\"\",IF(OR('TSA Input'!J3579=\"Yes\",'TSA Input'!J3579=\"Contingent\"),'TSA Input'!C3579,\"\"))","v":""},{"$f":"IF('TSA Input'!J3579=\"\",\"\",IF(OR('TSA Input'!J3579=\"Yes\",'TSA Input'!J3579=\"Contingent\"),'TSA Input'!D3579,\"\"))","v":""},{"$f":"IF('TSA Input'!J3579=\"\",\"\",IF(OR('TSA Input'!J3579=\"Yes\",'TSA Input'!J3579=\"Contingent\"),'TSA Input'!G3579,\"\"))","v":""},{"$f":"IF('TSA Input'!J3579=\"\",\"\",IF(OR('TSA Input'!J3579=\"Yes\",'TSA Input'!J3579=\"Contingent\"),'TSA Input'!F3579,\"\"))","v":""},"",{"$f":"IF('TSA Input'!J3579=\"\",\"\",IF(OR('TSA Input'!J3579=\"Yes\",'TSA Input'!J3579=\"Contingent\"),'TSA Input'!D3579,\"\"))","v":""},{"$f":"IF('TSA Input'!J3579=\"\",\"\",IF(OR('TSA Input'!J3579=\"Yes\",'TSA Input'!J3579=\"Contingent\"),'TSA Input'!G3579,\"\"))","v":""},{"$f":"IF('TSA Input'!J3579=\"\",\"\",IF(OR('TSA Input'!J3579=\"Yes\",'TSA Input'!J3579=\"Contingent\"),'TSA Input'!F3579,\"\"))","v":""},"","Required","Required"]
["",null,{"$f":"IF('TSA Input'!J3580=\"\",\"\",IF(OR('TSA Input'!J3580=\"Yes\",'TSA Input'!J3580=\"Contingent\"),'TSA Input'!B3580,\"Ineligible\"))","v":""},{"$f":"IF('TSA Input'!J3580=\"\",\"\",IF(OR('TSA Input'!J3580=\"Yes\",'TSA Input'!J3580=\"Contingent\"),'TSA Input'!I3580,\"\"))","v":""},{"$f":"IF('TSA Input'!J3580=\"\",\"\",IF(OR('TSA Input'!J3580=\"Yes\",'TSA Input'!J3580=\"Contingent\"),'TSA Input'!C3580,\"\"))","v":""},{"$f":"IF('TSA Input'!J3580=\"\",\"\",IF(OR('TSA Input'!J3580=\"Yes\",'TSA Input'!J3580=\"Contingent\"),'TSA Input'!D3580,\"\"))","v":""},{"$f":"IF('TSA Input'!J3580=\"\",\"\",IF(OR('TSA Input'!J3580=\"Yes\",'TSA Input'!J3580=\"Contingent\"),'TSA Input'!G3580,\"\"))","v":""},{"$f":"IF('TSA Input'!J3580=\"\",\"\",IF(OR('TSA Input'!J3580=\"Yes\",'TSA Input'!J3580=\"Contingent\"),'TSA Input'!F3580,\"\"))","v":""},"",{"$f":"IF('TSA Input'!J3580=\"\",\"\",IF(OR('TSA Input'!J3580=\"Yes\",'TSA Input'!J3580=\"Contingent\"),'TSA Input'!D3580,\"\"))","v":""},{"$f":"IF('TSA Input'!J3580=\"\",\"\",IF(OR('TSA Input'!J3580=\"Yes\",'TSA Input'!J3580=\"Contingent\"),'TSA Input'!G3580,\"\"))","v":""},{"$f":"IF('TSA Input'!J3580=\"\",\"\",IF(OR('TSA Input'!J3580=\"Yes\",'TSA Input'!J3580=\"Contingent\"),'TSA Input'!F3580,\"\"))","v":""},"","Required","Required"]
["",null,{"$f":"IF('TSA Input'!J3581=\"\",\"\",IF(OR('TSA Input'!J3581=\"Yes\",'TSA Input'!J3581=\"Contingent\"),'TSA Input'!B3581,\"Ineligible\"))","v":""},{"$f":"IF('TSA Input'!J3581=\"\",\"\",IF(OR('TSA Input'!J3581=\"Yes\",'TSA Input'!J3581=\"Contingent\"),'TSA Input'!I3581,\"\"))","v":""},{"$f":"IF('TSA Input'!J3581=\"\",\"\",IF(OR('TSA Input'!J3581=\"Yes\",'TSA Input'!J3581=\"Contingent\"),'TSA Input'!C3581,\"\"))","v":""},{"$f":"IF('TSA Input'!J3581=\"\",\"\",IF(OR('TSA Input'!J3581=\"Yes\",'TSA Input'!J3581=\"Contingent\"),'TSA Input'!D3581,\"\"))","v":""},{"$f":"IF('TSA Input'!J3581=\"\",\"\",IF(OR('TSA Input'!J3581=\"Yes\",'TSA Input'!J3581=\"Contingent\"),'TSA Input'!G3581,\"\"))","v":""},{"$f":"IF('TSA Input'!J3581=\"\",\"\",IF(OR('TSA Input'!J3581=\"Yes\",'TSA Input'!J3581=\"Contingent\"),'TSA Input'!F3581,\"\"))","v":""},"",{"$f":"IF('TSA Input'!J3581=\"\",\"\",IF(OR('TSA Input'!J3581=\"Yes\",'TSA Input'!J3581=\"Contingent\"),'TSA Input'!D3581,\"\"))","v":""},{"$f":"IF('TSA Input'!J3581=\"\",\"\",IF(OR('TSA Input'!J3581=\"Yes\",'TSA Input'!J3581=\"Contingent\"),'TSA Input'!G3581,\"\"))","v":""},{"$f":"IF('TSA Input'!J3581=\"\",\"\",IF(OR('TSA Input'!J3581=\"Yes\",'TSA Input'!J3581=\"Contingent\"),'TSA Input'!F3581,\"\"))","v":""},"","Required","Required"]
["",null,{"$f":"IF('TSA Input'!J3582=\"\",\"\",IF(OR('TSA Input'!J3582=\"Yes\",'TSA Input'!J3582=\"Contingent\"),'TSA Input'!B3582,\"Ineligible\"))","v":""},{"$f":"IF('TSA Input'!J3582=\"\",\"\",IF(OR('TSA Input'!J3582=\"Yes\",'TSA Input'!J3582=\"Contingent\"),'TSA Input'!I3582,\"\"))","v":""},{"$f":"IF('TSA Input'!J3582=\"\",\"\",IF(OR('TSA Input'!J3582=\"Yes\",'TSA Input'!J3582=\"Contingent\"),'TSA Input'!C3582,\"\"))","v":""},{"$f":"IF('TSA Input'!J3582=\"\",\"\",IF(OR('TSA Input'!J3582=\"Yes\",'TSA Input'!J3582=\"Contingent\"),'TSA Input'!D3582,\"\"))","v":""},{"$f":"IF('TSA Input'!J3582=\"\",\"\",IF(OR('TSA Input'!J3582=\"Yes\",'TSA Input'!J3582=\"Contingent\"),'TSA Input'!G3582,\"\"))","v":""},{"$f":"IF('TSA Input'!J3582=\"\",\"\",IF(OR('TSA Input'!J3582=\"Yes\",'TSA Input'!J3582=\"Contingent\"),'TSA Input'!F3582,\"\"))","v":""},"",{"$f":"IF('TSA Input'!J3582=\"\",\"\",IF(OR('TSA Input'!J3582=\"Yes\",'TSA Input'!J3582=\"Contingent\"),'TSA Input'!D3582,\"\"))","v":""},{"$f":"IF('TSA Input'!J3582=\"\",\"\",IF(OR('TSA Input'!J3582=\"Yes\",'TSA Input'!J3582=\"Contingent\"),'TSA Input'!G3582,\"\"))","v":""},{"$f":"IF('TSA Input'!J3582=\"\",\"\",IF(OR('TSA Input'!J3582=\"Yes\",'TSA Input'!J3582=\"Contingent\"),'TSA Input'!F3582,\"\"))","v":""},"","Required","Required"]
["",null,{"$f":"IF('TSA Input'!J3583=\"\",\"\",IF(OR('TSA Input'!J3583=\"Yes\",'TSA Input'!J3583=\"Contingent\"),'TSA Input'!B3583,\"Ineligible\"))","v":""},{"$f":"IF('TSA Input'!J3583=\"\",\"\",IF(OR('TSA Input'!J3583=\"Yes\",'TSA Input'!J3583=\"Contingent\"),'TSA Input'!I3583,\"\"))","v":""},{"$f":"IF('TSA Input'!J3583=\"\",\"\",IF(OR('TSA Input'!J3583=\"Yes\",'TSA Input'!J3583=\"Contingent\"),'TSA Input'!C3583,\"\"))","v":""},{"$f":"IF('TSA Input'!J3583=\"\",\"\",IF(OR('TSA Input'!J3583=\"Yes\",'TSA Input'!J3583=\"Contingent\"),'TSA Input'!D3583,\"\"))","v":""},{"$f":"IF('TSA Input'!J3583=\"\",\"\",IF(OR('TSA Input'!J3583=\"Yes\",'TSA Input'!J3583=\"Contingent\"),'TSA Input'!G3583,\"\"))","v":""},{"$f":"IF('TSA Input'!J3583=\"\",\"\",IF(OR('TSA Input'!J3583=\"Yes\",'TSA Input'!J3583=\"Contingent\"),'TSA Input'!F3583,\"\"))","v":""},"",{"$f":"IF('TSA Input'!J3583=\"\",\"\",IF(OR('TSA Input'!J3583=\"Yes\",'TSA Input'!J3583=\"Contingent\"),'TSA Input'!D3583,\"\"))","v":""},{"$f":"IF('TSA Input'!J3583=\"\",\"\",IF(OR('TSA Input'!J3583=\"Yes\",'TSA Input'!J3583=\"Contingent\"),'TSA Input'!G3583,\"\"))","v":""},{"$f":"IF('TSA Input'!J3583=\"\",\"\",IF(OR('TSA Input'!J3583=\"Yes\",'TSA Input'!J3583=\"Contingent\"),'TSA Input'!F3583,\"\"))","v":""},"","Required","Required"]
["",null,{"$f":"IF('TSA Input'!J3584=\"\",\"\",IF(OR('TSA Input'!J3584=\"Yes\",'TSA Input'!J3584=\"Contingent\"),'TSA Input'!B3584,\"Ineligible\"))","v":""},{"$f":"IF('TSA Input'!J3584=\"\",\"\",IF(OR('TSA Input'!J3584=\"Yes\",'TSA Input'!J3584=\"Contingent\"),'TSA Input'!I3584,\"\"))","v":""},{"$f":"IF('TSA Input'!J3584=\"\",\"\",IF(OR('TSA Input'!J3584=\"Yes\",'TSA Input'!J3584=\"Contingent\"),'TSA Input'!C3584,\"\"))","v":""},{"$f":"IF('TSA Input'!J3584=\"\",\"\",IF(OR('TSA Input'!J3584=\"Yes\",'TSA Input'!J3584=\"Contingent\"),'TSA Input'!D3584,\"\"))","v":""},{"$f":"IF('TSA Input'!J3584=\"\",\"\",IF(OR('TSA Input'!J3584=\"Yes\",'TSA Input'!J3584=\"Contingent\"),'TSA Input'!G3584,\"\"))","v":""},{"$f":"IF('TSA Input'!J3584=\"\",\"\",IF(OR('TSA Input'!J3584=\"Yes\",'TSA Input'!J3584=\"Contingent\"),'TSA Input'!F3584,\"\"))","v":""},"",{"$f":"IF('TSA Input'!J3584=\"\",\"\",IF(OR('TSA Input'!J3584=\"Yes\",'TSA Input'!J3584=\"Contingent\"),'TSA Input'!D3584,\"\"))","v":""},{"$f":"IF('TSA Input'!J3584=\"\",\"\",IF(OR('TSA Input'!J3584=\"Yes\",'TSA Input'!J3584=\"Contingent\"),'TSA Input'!G3584,\"\"))","v":""},{"$f":"IF('TSA Input'!J3584=\"\",\"\",IF(OR('TSA Input'!J3584=\"Yes\",'TSA Input'!J3584=\"Contingent\"),'TSA Input'!F3584,\"\"))","v":""},"","Required","Required"]
["",null,{"$f":"IF('TSA Input'!J3585=\"\",\"\",IF(OR('TSA Input'!J3585=\"Yes\",'TSA Input'!J3585=\"Contingent\"),'TSA Input'!B3585,\"Ineligible\"))","v":""},{"$f":"IF('TSA Input'!J3585=\"\",\"\",IF(OR('TSA Input'!J3585=\"Yes\",'TSA Input'!J3585=\"Contingent\"),'TSA Input'!I3585,\"\"))","v":""},{"$f":"IF('TSA Input'!J3585=\"\",\"\",IF(OR('TSA Input'!J3585=\"Yes\",'TSA Input'!J3585=\"Contingent\"),'TSA Input'!C3585,\"\"))","v":""},{"$f":"IF('TSA Input'!J3585=\"\",\"\",IF(OR('TSA Input'!J3585=\"Yes\",'TSA Input'!J3585=\"Contingent\"),'TSA Input'!D3585,\"\"))","v":""},{"$f":"IF('TSA Input'!J3585=\"\",\"\",IF(OR('TSA Input'!J3585=\"Yes\",'TSA Input'!J3585=\"Contingent\"),'TSA Input'!G3585,\"\"))","v":""},{"$f":"IF('TSA Input'!J3585=\"\",\"\",IF(OR('TSA Input'!J3585=\"Yes\",'TSA Input'!J3585=\"Contingent\"),'TSA Input'!F3585,\"\"))","v":""},"",{"$f":"IF('TSA Input'!J3585=\"\",\"\",IF(OR('TSA Input'!J3585=\"Yes\",'TSA Input'!J3585=\"Contingent\"),'TSA Input'!D3585,\"\"))","v":""},{"$f":"IF('TSA Input'!J3585=\"\",\"\",IF(OR('TSA Input'!J3585=\"Yes\",'TSA Input'!J3585=\"Contingent\"),'TSA Input'!G3585,\"\"))","v":""},{"$f":"IF('TSA Input'!J3585=\"\",\"\",IF(OR('TSA Input'!J3585=\"Yes\",'TSA Input'!J3585=\"Contingent\"),'TSA Input'!F3585,\"\"))","v":""},"","Required","Required"]
["",null,{"$f":"IF('TSA Input'!J3586=\"\",\"\",IF(OR('TSA Input'!J3586=\"Yes\",'TSA Input'!J3586=\"Contingent\"),'TSA Input'!B3586,\"Ineligible\"))","v":""},{"$f":"IF('TSA Input'!J3586=\"\",\"\",IF(OR('TSA Input'!J3586=\"Yes\",'TSA Input'!J3586=\"Contingent\"),'TSA Input'!I3586,\"\"))","v":""},{"$f":"IF('TSA Input'!J3586=\"\",\"\",IF(OR('TSA Input'!J3586=\"Yes\",'TSA Input'!J3586=\"Contingent\"),'TSA Input'!C3586,\"\"))","v":""},{"$f":"IF('TSA Input'!J3586=\"\",\"\",IF(OR('TSA Input'!J3586=\"Yes\",'TSA Input'!J3586=\"Contingent\"),'TSA Input'!D3586,\"\"))","v":""},{"$f":"IF('TSA Input'!J3586=\"\",\"\",IF(OR('TSA Input'!J3586=\"Yes\",'TSA Input'!J3586=\"Contingent\"),'TSA Input'!G3586,\"\"))","v":""},{"$f":"IF('TSA Input'!J3586=\"\",\"\",IF(OR('TSA Input'!J3586=\"Yes\",'TSA Input'!J3586=\"Contingent\"),'TSA Input'!F3586,\"\"))","v":""},"",{"$f":"IF('TSA Input'!J3586=\"\",\"\",IF(OR('TSA Input'!J3586=\"Yes\",'TSA Input'!J3586=\"Contingent\"),'TSA Input'!D3586,\"\"))","v":""},{"$f":"IF('TSA Input'!J3586=\"\",\"\",IF(OR('TSA Input'!J3586=\"Yes\",'TSA Input'!J3586=\"Contingent\"),'TSA Input'!G3586,\"\"))","v":""},{"$f":"IF('TSA Input'!J3586=\"\",\"\",IF(OR('TSA Input'!J3586=\"Yes\",'TSA Input'!J3586=\"Contingent\"),'TSA Input'!F3586,\"\"))","v":""},"","Required","Required"]
["",null,{"$f":"IF('TSA Input'!J3587=\"\",\"\",IF(OR('TSA Input'!J3587=\"Yes\",'TSA Input'!J3587=\"Contingent\"),'TSA Input'!B3587,\"Ineligible\"))","v":""},{"$f":"IF('TSA Input'!J3587=\"\",\"\",IF(OR('TSA Input'!J3587=\"Yes\",'TSA Input'!J3587=\"Contingent\"),'TSA Input'!I3587,\"\"))","v":""},{"$f":"IF('TSA Input'!J3587=\"\",\"\",IF(OR('TSA Input'!J3587=\"Yes\",'TSA Input'!J3587=\"Contingent\"),'TSA Input'!C3587,\"\"))","v":""},{"$f":"IF('TSA Input'!J3587=\"\",\"\",IF(OR('TSA Input'!J3587=\"Yes\",'TSA Input'!J3587=\"Contingent\"),'TSA Input'!D3587,\"\"))","v":""},{"$f":"IF('TSA Input'!J3587=\"\",\"\",IF(OR('TSA Input'!J3587=\"Yes\",'TSA Input'!J3587=\"Contingent\"),'TSA Input'!G3587,\"\"))","v":""},{"$f":"IF('TSA Input'!J3587=\"\",\"\",IF(OR('TSA Input'!J3587=\"Yes\",'TSA Input'!J3587=\"Contingent\"),'TSA Input'!F3587,\"\"))","v":""},"",{"$f":"IF('TSA Input'!J3587=\"\",\"\",IF(OR('TSA Input'!J3587=\"Yes\",'TSA Input'!J3587=\"Contingent\"),'TSA Input'!D3587,\"\"))","v":""},{"$f":"IF('TSA Input'!J3587=\"\",\"\",IF(OR('TSA Input'!J3587=\"Yes\",'TSA Input'!J3587=\"Contingent\"),'TSA Input'!G3587,\"\"))","v":""},{"$f":"IF('TSA Input'!J3587=\"\",\"\",IF(OR('TSA Input'!J3587=\"Yes\",'TSA Input'!J3587=\"Contingent\"),'TSA Input'!F3587,\"\"))","v":""},"","Required","Required"]
["",null,{"$f":"IF('TSA Input'!J3588=\"\",\"\",IF(OR('TSA Input'!J3588=\"Yes\",'TSA Input'!J3588=\"Contingent\"),'TSA Input'!B3588,\"Ineligible\"))","v":""},{"$f":"IF('TSA Input'!J3588=\"\",\"\",IF(OR('TSA Input'!J3588=\"Yes\",'TSA Input'!J3588=\"Contingent\"),'TSA Input'!I3588,\"\"))","v":""},{"$f":"IF('TSA Input'!J3588=\"\",\"\",IF(OR('TSA Input'!J3588=\"Yes\",'TSA Input'!J3588=\"Contingent\"),'TSA Input'!C3588,\"\"))","v":""},{"$f":"IF('TSA Input'!J3588=\"\",\"\",IF(OR('TSA Input'!J3588=\"Yes\",'TSA Input'!J3588=\"Contingent\"),'TSA Input'!D3588,\"\"))","v":""},{"$f":"IF('TSA Input'!J3588=\"\",\"\",IF(OR('TSA Input'!J3588=\"Yes\",'TSA Input'!J3588=\"Contingent\"),'TSA Input'!G3588,\"\"))","v":""},{"$f":"IF('TSA Input'!J3588=\"\",\"\",IF(OR('TSA Input'!J3588=\"Yes\",'TSA Input'!J3588=\"Contingent\"),'TSA Input'!F3588,\"\"))","v":""},{"$f":"IF($C3626=\"\",\"\",SUM(F3626:H3626))","v":""},{"$f":"IF('TSA Input'!J3588=\"\",\"\",IF(OR('TSA Input'!J3588=\"Yes\",'TSA Input'!J3588=\"Contingent\"),'TSA Input'!D3588,\"\"))","v":""},{"$f":"IF('TSA Input'!J3588=\"\",\"\",IF(OR('TSA Input'!J3588=\"Yes\",'TSA Input'!J3588=\"Contingent\"),'TSA Input'!G3588,\"\"))","v":""},{"$f":"IF('TSA Input'!J3588=\"\",\"\",IF(OR('TSA Input'!J3588=\"Yes\",'TSA Input'!J3588=\"Contingent\"),'TSA Input'!F3588,\"\"))","v":""},{"$f":"IF($C3626=\"\",\"\",SUM(J3626:L3626))","v":""},"Required","Required"]
["",null,{"$f":"IF('TSA Input'!J3589=\"\",\"\",IF(OR('TSA Input'!J3589=\"Yes\",'TSA Input'!J3589=\"Contingent\"),'TSA Input'!B3589,\"Ineligible\"))","v":""},{"$f":"IF('TSA Input'!J3589=\"\",\"\",IF(OR('TSA Input'!J3589=\"Yes\",'TSA Input'!J3589=\"Contingent\"),'TSA Input'!I3589,\"\"))","v":""},{"$f":"IF('TSA Input'!J3589=\"\",\"\",IF(OR('TSA Input'!J3589=\"Yes\",'TSA Input'!J3589=\"Contingent\"),'TSA Input'!C3589,\"\"))","v":""},{"$f":"IF('TSA Input'!J3589=\"\",\"\",IF(OR('TSA Input'!J3589=\"Yes\",'TSA Input'!J3589=\"Contingent\"),'TSA Input'!D3589,\"\"))","v":""},{"$f":"IF('TSA Input'!J3589=\"\",\"\",IF(OR('TSA Input'!J3589=\"Yes\",'TSA Input'!J3589=\"Contingent\"),'TSA Input'!G3589,\"\"))","v":""},{"$f":"IF('TSA Input'!J3589=\"\",\"\",IF(OR('TSA Input'!J3589=\"Yes\",'TSA Input'!J3589=\"Contingent\"),'TSA Input'!F3589,\"\"))","v":""},"",{"$f":"IF('TSA Input'!J3589=\"\",\"\",IF(OR('TSA Input'!J3589=\"Yes\",'TSA Input'!J3589=\"Contingent\"),'TSA Input'!D3589,\"\"))","v":""},{"$f":"IF('TSA Input'!J3589=\"\",\"\",IF(OR('TSA Input'!J3589=\"Yes\",'TSA Input'!J3589=\"Contingent\"),'TSA Input'!G3589,\"\"))","v":""},{"$f":"IF('TSA Input'!J3589=\"\",\"\",IF(OR('TSA Input'!J3589=\"Yes\",'TSA Input'!J3589=\"Contingent\"),'TSA Input'!F3589,\"\"))","v":""},"","Required","Required"]
["",null,{"$f":"IF('TSA Input'!J3590=\"\",\"\",IF(OR('TSA Input'!J3590=\"Yes\",'TSA Input'!J3590=\"Contingent\"),'TSA Input'!B3590,\"Ineligible\"))","v":""},{"$f":"IF('TSA Input'!J3590=\"\",\"\",IF(OR('TSA Input'!J3590=\"Yes\",'TSA Input'!J3590=\"Contingent\"),'TSA Input'!I3590,\"\"))","v":""},{"$f":"IF('TSA Input'!J3590=\"\",\"\",IF(OR('TSA Input'!J3590=\"Yes\",'TSA Input'!J3590=\"Contingent\"),'TSA Input'!C3590,\"\"))","v":""},{"$f":"IF('TSA Input'!J3590=\"\",\"\",IF(OR('TSA Input'!J3590=\"Yes\",'TSA Input'!J3590=\"Contingent\"),'TSA Input'!D3590,\"\"))","v":""},{"$f":"IF('TSA Input'!J3590=\"\",\"\",IF(OR('TSA Input'!J3590=\"Yes\",'TSA Input'!J3590=\"Contingent\"),'TSA Input'!G3590,\"\"))","v":""},{"$f":"IF('TSA Input'!J3590=\"\",\"\",IF(OR('TSA Input'!J3590=\"Yes\",'TSA Input'!J3590=\"Contingent\"),'TSA Input'!F3590,\"\"))","v":""},"",{"$f":"IF('TSA Input'!J3590=\"\",\"\",IF(OR('TSA Input'!J3590=\"Yes\",'TSA Input'!J3590=\"Contingent\"),'TSA Input'!D3590,\"\"))","v":""},{"$f":"IF('TSA Input'!J3590=\"\",\"\",IF(OR('TSA Input'!J3590=\"Yes\",'TSA Input'!J3590=\"Contingent\"),'TSA Input'!G3590,\"\"))","v":""},{"$f":"IF('TSA Input'!J3590=\"\",\"\",IF(OR('TSA Input'!J3590=\"Yes\",'TSA Input'!J3590=\"Contingent\"),'TSA Input'!F3590,\"\"))","v":""},"","Required","Required"]
["",null,{"$f":"IF('TSA Input'!J3591=\"\",\"\",IF(OR('TSA Input'!J3591=\"Yes\",'TSA Input'!J3591=\"Contingent\"),'TSA Input'!B3591,\"Ineligible\"))","v":""},{"$f":"IF('TSA Input'!J3591=\"\",\"\",IF(OR('TSA Input'!J3591=\"Yes\",'TSA Input'!J3591=\"Contingent\"),'TSA Input'!I3591,\"\"))","v":""},{"$f":"IF('TSA Input'!J3591=\"\",\"\",IF(OR('TSA Input'!J3591=\"Yes\",'TSA Input'!J3591=\"Contingent\"),'TSA Input'!C3591,\"\"))","v":""},{"$f":"IF('TSA Input'!J3591=\"\",\"\",IF(OR('TSA Input'!J3591=\"Yes\",'TSA Input'!J3591=\"Contingent\"),'TSA Input'!D3591,\"\"))","v":""},{"$f":"IF('TSA Input'!J3591=\"\",\"\",IF(OR('TSA Input'!J3591=\"Yes\",'TSA Input'!J3591=\"Contingent\"),'TSA Input'!G3591,\"\"))","v":""},{"$f":"IF('TSA Input'!J3591=\"\",\"\",IF(OR('TSA Input'!J3591=\"Yes\",'TSA Input'!J3591=\"Contingent\"),'TSA Input'!F3591,\"\"))","v":""},"",{"$f":"IF('TSA Input'!J3591=\"\",\"\",IF(OR('TSA Input'!J3591=\"Yes\",'TSA Input'!J3591=\"Contingent\"),'TSA Input'!D3591,\"\"))","v":""},{"$f":"IF('TSA Input'!J3591=\"\",\"\",IF(OR('TSA Input'!J3591=\"Yes\",'TSA Input'!J3591=\"Contingent\"),'TSA Input'!G3591,\"\"))","v":""},{"$f":"IF('TSA Input'!J3591=\"\",\"\",IF(OR('TSA Input'!J3591=\"Yes\",'TSA Input'!J3591=\"Contingent\"),'TSA Input'!F3591,\"\"))","v":""},"","Required","Required"]
["",null,{"$f":"IF('TSA Input'!J3592=\"\",\"\",IF(OR('TSA Input'!J3592=\"Yes\",'TSA Input'!J3592=\"Contingent\"),'TSA Input'!B3592,\"Ineligible\"))","v":""},{"$f":"IF('TSA Input'!J3592=\"\",\"\",IF(OR('TSA Input'!J3592=\"Yes\",'TSA Input'!J3592=\"Contingent\"),'TSA Input'!I3592,\"\"))","v":""},{"$f":"IF('TSA Input'!J3592=\"\",\"\",IF(OR('TSA Input'!J3592=\"Yes\",'TSA Input'!J3592=\"Contingent\"),'TSA Input'!C3592,\"\"))","v":""},{"$f":"IF('TSA Input'!J3592=\"\",\"\",IF(OR('TSA Input'!J3592=\"Yes\",'TSA Input'!J3592=\"Contingent\"),'TSA Input'!D3592,\"\"))","v":""},{"$f":"IF('TSA Input'!J3592=\"\",\"\",IF(OR('TSA Input'!J3592=\"Yes\",'TSA Input'!J3592=\"Contingent\"),'TSA Input'!G3592,\"\"))","v":""},{"$f":"IF('TSA Input'!J3592=\"\",\"\",IF(OR('TSA Input'!J3592=\"Yes\",'TSA Input'!J3592=\"Contingent\"),'TSA Input'!F3592,\"\"))","v":""},"",{"$f":"IF('TSA Input'!J3592=\"\",\"\",IF(OR('TSA Input'!J3592=\"Yes\",'TSA Input'!J3592=\"Contingent\"),'TSA Input'!D3592,\"\"))","v":""},{"$f":"IF('TSA Input'!J3592=\"\",\"\",IF(OR('TSA Input'!J3592=\"Yes\",'TSA Input'!J3592=\"Contingent\"),'TSA Input'!G3592,\"\"))","v":""},{"$f":"IF('TSA Input'!J3592=\"\",\"\",IF(OR('TSA Input'!J3592=\"Yes\",'TSA Input'!J3592=\"Contingent\"),'TSA Input'!F3592,\"\"))","v":""},"","Required","Required"]
["",null,{"$f":"IF('TSA Input'!J3593=\"\",\"\",IF(OR('TSA Input'!J3593=\"Yes\",'TSA Input'!J3593=\"Contingent\"),'TSA Input'!B3593,\"Ineligible\"))","v":""},{"$f":"IF('TSA Input'!J3593=\"\",\"\",IF(OR('TSA Input'!J3593=\"Yes\",'TSA Input'!J3593=\"Contingent\"),'TSA Input'!I3593,\"\"))","v":""},{"$f":"IF('TSA Input'!J3593=\"\",\"\",IF(OR('TSA Input'!J3593=\"Yes\",'TSA Input'!J3593=\"Contingent\"),'TSA Input'!C3593,\"\"))","v":""},{"$f":"IF('TSA Input'!J3593=\"\",\"\",IF(OR('TSA Input'!J3593=\"Yes\",'TSA Input'!J3593=\"Contingent\"),'TSA Input'!D3593,\"\"))","v":""},{"$f":"IF('TSA Input'!J3593=\"\",\"\",IF(OR('TSA Input'!J3593=\"Yes\",'TSA Input'!J3593=\"Contingent\"),'TSA Input'!G3593,\"\"))","v":""},{"$f":"IF('TSA Input'!J3593=\"\",\"\",IF(OR('TSA Input'!J3593=\"Yes\",'TSA Input'!J3593=\"Contingent\"),'TSA Input'!F3593,\"\"))","v":""},"",{"$f":"IF('TSA Input'!J3593=\"\",\"\",IF(OR('TSA Input'!J3593=\"Yes\",'TSA Input'!J3593=\"Contingent\"),'TSA Input'!D3593,\"\"))","v":""},{"$f":"IF('TSA Input'!J3593=\"\",\"\",IF(OR('TSA Input'!J3593=\"Yes\",'TSA Input'!J3593=\"Contingent\"),'TSA Input'!G3593,\"\"))","v":""},{"$f":"IF('TSA Input'!J3593=\"\",\"\",IF(OR('TSA Input'!J3593=\"Yes\",'TSA Input'!J3593=\"Contingent\"),'TSA Input'!F3593,\"\"))","v":""},"","Required","Required"]
["",null,{"$f":"IF('TSA Input'!J3594=\"\",\"\",IF(OR('TSA Input'!J3594=\"Yes\",'TSA Input'!J3594=\"Contingent\"),'TSA Input'!B3594,\"Ineligible\"))","v":""},{"$f":"IF('TSA Input'!J3594=\"\",\"\",IF(OR('TSA Input'!J3594=\"Yes\",'TSA Input'!J3594=\"Contingent\"),'TSA Input'!I3594,\"\"))","v":""},{"$f":"IF('TSA Input'!J3594=\"\",\"\",IF(OR('TSA Input'!J3594=\"Yes\",'TSA Input'!J3594=\"Contingent\"),'TSA Input'!C3594,\"\"))","v":""},{"$f":"IF('TSA Input'!J3594=\"\",\"\",IF(OR('TSA Input'!J3594=\"Yes\",'TSA Input'!J3594=\"Contingent\"),'TSA Input'!D3594,\"\"))","v":""},{"$f":"IF('TSA Input'!J3594=\"\",\"\",IF(OR('TSA Input'!J3594=\"Yes\",'TSA Input'!J3594=\"Contingent\"),'TSA Input'!G3594,\"\"))","v":""},{"$f":"IF('TSA Input'!J3594=\"\",\"\",IF(OR('TSA Input'!J3594=\"Yes\",'TSA Input'!J3594=\"Contingent\"),'TSA Input'!F3594,\"\"))","v":""},"",{"$f":"IF('TSA Input'!J3594=\"\",\"\",IF(OR('TSA Input'!J3594=\"Yes\",'TSA Input'!J3594=\"Contingent\"),'TSA Input'!D3594,\"\"))","v":""},{"$f":"IF('TSA Input'!J3594=\"\",\"\",IF(OR('TSA Input'!J3594=\"Yes\",'TSA Input'!J3594=\"Contingent\"),'TSA Input'!G3594,\"\"))","v":""},{"$f":"IF('TSA Input'!J3594=\"\",\"\",IF(OR('TSA Input'!J3594=\"Yes\",'TSA Input'!J3594=\"Contingent\"),'TSA Input'!F3594,\"\"))","v":""},"","Required","Required"]
["",null,{"$f":"IF('TSA Input'!J3595=\"\",\"\",IF(OR('TSA Input'!J3595=\"Yes\",'TSA Input'!J3595=\"Contingent\"),'TSA Input'!B3595,\"Ineligible\"))","v":""},{"$f":"IF('TSA Input'!J3595=\"\",\"\",IF(OR('TSA Input'!J3595=\"Yes\",'TSA Input'!J3595=\"Contingent\"),'TSA Input'!I3595,\"\"))","v":""},{"$f":"IF('TSA Input'!J3595=\"\",\"\",IF(OR('TSA Input'!J3595=\"Yes\",'TSA Input'!J3595=\"Contingent\"),'TSA Input'!C3595,\"\"))","v":""},{"$f":"IF('TSA Input'!J3595=\"\",\"\",IF(OR('TSA Input'!J3595=\"Yes\",'TSA Input'!J3595=\"Contingent\"),'TSA Input'!D3595,\"\"))","v":""},{"$f":"IF('TSA Input'!J3595=\"\",\"\",IF(OR('TSA Input'!J3595=\"Yes\",'TSA Input'!J3595=\"Contingent\"),'TSA Input'!G3595,\"\"))","v":""},{"$f":"IF('TSA Input'!J3595=\"\",\"\",IF(OR('TSA Input'!J3595=\"Yes\",'TSA Input'!J3595=\"Contingent\"),'TSA Input'!F3595,\"\"))","v":""},"",{"$f":"IF('TSA Input'!J3595=\"\",\"\",IF(OR('TSA Input'!J3595=\"Yes\",'TSA Input'!J3595=\"Contingent\"),'TSA Input'!D3595,\"\"))","v":""},{"$f":"IF('TSA Input'!J3595=\"\",\"\",IF(OR('TSA Input'!J3595=\"Yes\",'TSA Input'!J3595=\"Contingent\"),'TSA Input'!G3595,\"\"))","v":""},{"$f":"IF('TSA Input'!J3595=\"\",\"\",IF(OR('TSA Input'!J3595=\"Yes\",'TSA Input'!J3595=\"Contingent\"),'TSA Input'!F3595,\"\"))","v":""},"","Required","Required"]
["",null,{"$f":"IF('TSA Input'!J3596=\"\",\"\",IF(OR('TSA Input'!J3596=\"Yes\",'TSA Input'!J3596=\"Contingent\"),'TSA Input'!B3596,\"Ineligible\"))","v":""},{"$f":"IF('TSA Input'!J3596=\"\",\"\",IF(OR('TSA Input'!J3596=\"Yes\",'TSA Input'!J3596=\"Contingent\"),'TSA Input'!I3596,\"\"))","v":""},{"$f":"IF('TSA Input'!J3596=\"\",\"\",IF(OR('TSA Input'!J3596=\"Yes\",'TSA Input'!J3596=\"Contingent\"),'TSA Input'!C3596,\"\"))","v":""},{"$f":"IF('TSA Input'!J3596=\"\",\"\",IF(OR('TSA Input'!J3596=\"Yes\",'TSA Input'!J3596=\"Contingent\"),'TSA Input'!D3596,\"\"))","v":""},{"$f":"IF('TSA Input'!J3596=\"\",\"\",IF(OR('TSA Input'!J3596=\"Yes\",'TSA Input'!J3596=\"Contingent\"),'TSA Input'!G3596,\"\"))","v":""},{"$f":"IF('TSA Input'!J3596=\"\",\"\",IF(OR('TSA Input'!J3596=\"Yes\",'TSA Input'!J3596=\"Contingent\"),'TSA Input'!F3596,\"\"))","v":""},"",{"$f":"IF('TSA Input'!J3596=\"\",\"\",IF(OR('TSA Input'!J3596=\"Yes\",'TSA Input'!J3596=\"Contingent\"),'TSA Input'!D3596,\"\"))","v":""},{"$f":"IF('TSA Input'!J3596=\"\",\"\",IF(OR('TSA Input'!J3596=\"Yes\",'TSA Input'!J3596=\"Contingent\"),'TSA Input'!G3596,\"\"))","v":""},{"$f":"IF('TSA Input'!J3596=\"\",\"\",IF(OR('TSA Input'!J3596=\"Yes\",'TSA Input'!J3596=\"Contingent\"),'TSA Input'!F3596,\"\"))","v":""},"","Required","Required"]
["",null,{"$f":"IF('TSA Input'!J3597=\"\",\"\",IF(OR('TSA Input'!J3597=\"Yes\",'TSA Input'!J3597=\"Contingent\"),'TSA Input'!B3597,\"Ineligible\"))","v":""},{"$f":"IF('TSA Input'!J3597=\"\",\"\",IF(OR('TSA Input'!J3597=\"Yes\",'TSA Input'!J3597=\"Contingent\"),'TSA Input'!I3597,\"\"))","v":""},{"$f":"IF('TSA Input'!J3597=\"\",\"\",IF(OR('TSA Input'!J3597=\"Yes\",'TSA Input'!J3597=\"Contingent\"),'TSA Input'!C3597,\"\"))","v":""},{"$f":"IF('TSA Input'!J3597=\"\",\"\",IF(OR('TSA Input'!J3597=\"Yes\",'TSA Input'!J3597=\"Contingent\"),'TSA Input'!D3597,\"\"))","v":""},{"$f":"IF('TSA Input'!J3597=\"\",\"\",IF(OR('TSA Input'!J3597=\"Yes\",'TSA Input'!J3597=\"Contingent\"),'TSA Input'!G3597,\"\"))","v":""},{"$f":"IF('TSA Input'!J3597=\"\",\"\",IF(OR('TSA Input'!J3597=\"Yes\",'TSA Input'!J3597=\"Contingent\"),'TSA Input'!F3597,\"\"))","v":""},"",{"$f":"IF('TSA Input'!J3597=\"\",\"\",IF(OR('TSA Input'!J3597=\"Yes\",'TSA Input'!J3597=\"Contingent\"),'TSA Input'!D3597,\"\"))","v":""},{"$f":"IF('TSA Input'!J3597=\"\",\"\",IF(OR('TSA Input'!J3597=\"Yes\",'TSA Input'!J3597=\"Contingent\"),'TSA Input'!G3597,\"\"))","v":""},{"$f":"IF('TSA Input'!J3597=\"\",\"\",IF(OR('TSA Input'!J3597=\"Yes\",'TSA Input'!J3597=\"Contingent\"),'TSA Input'!F3597,\"\"))","v":""},"","Required","Required"]
["",null,{"$f":"IF('TSA Input'!J3598=\"\",\"\",IF(OR('TSA Input'!J3598=\"Yes\",'TSA Input'!J3598=\"Contingent\"),'TSA Input'!B3598,\"Ineligible\"))","v":""},{"$f":"IF('TSA Input'!J3598=\"\",\"\",IF(OR('TSA Input'!J3598=\"Yes\",'TSA Input'!J3598=\"Contingent\"),'TSA Input'!I3598,\"\"))","v":""},{"$f":"IF('TSA Input'!J3598=\"\",\"\",IF(OR('TSA Input'!J3598=\"Yes\",'TSA Input'!J3598=\"Contingent\"),'TSA Input'!C3598,\"\"))","v":""},{"$f":"IF('TSA Input'!J3598=\"\",\"\",IF(OR('TSA Input'!J3598=\"Yes\",'TSA Input'!J3598=\"Contingent\"),'TSA Input'!D3598,\"\"))","v":""},{"$f":"IF('TSA Input'!J3598=\"\",\"\",IF(OR('TSA Input'!J3598=\"Yes\",'TSA Input'!J3598=\"Contingent\"),'TSA Input'!G3598,\"\"))","v":""},{"$f":"IF('TSA Input'!J3598=\"\",\"\",IF(OR('TSA Input'!J3598=\"Yes\",'TSA Input'!J3598=\"Contingent\"),'TSA Input'!F3598,\"\"))","v":""},"",{"$f":"IF('TSA Input'!J3598=\"\",\"\",IF(OR('TSA Input'!J3598=\"Yes\",'TSA Input'!J3598=\"Contingent\"),'TSA Input'!D3598,\"\"))","v":""},{"$f":"IF('TSA Input'!J3598=\"\",\"\",IF(OR('TSA Input'!J3598=\"Yes\",'TSA Input'!J3598=\"Contingent\"),'TSA Input'!G3598,\"\"))","v":""},{"$f":"IF('TSA Input'!J3598=\"\",\"\",IF(OR('TSA Input'!J3598=\"Yes\",'TSA Input'!J3598=\"Contingent\"),'TSA Input'!F3598,\"\"))","v":""},"","Required","Required"]
["",null,{"$f":"IF('TSA Input'!J3599=\"\",\"\",IF(OR('TSA Input'!J3599=\"Yes\",'TSA Input'!J3599=\"Contingent\"),'TSA Input'!B3599,\"Ineligible\"))","v":""},{"$f":"IF('TSA Input'!J3599=\"\",\"\",IF(OR('TSA Input'!J3599=\"Yes\",'TSA Input'!J3599=\"Contingent\"),'TSA Input'!I3599,\"\"))","v":""},{"$f":"IF('TSA Input'!J3599=\"\",\"\",IF(OR('TSA Input'!J3599=\"Yes\",'TSA Input'!J3599=\"Contingent\"),'TSA Input'!C3599,\"\"))","v":""},{"$f":"IF('TSA Input'!J3599=\"\",\"\",IF(OR('TSA Input'!J3599=\"Yes\",'TSA Input'!J3599=\"Contingent\"),'TSA Input'!D3599,\"\"))","v":""},{"$f":"IF('TSA Input'!J3599=\"\",\"\",IF(OR('TSA Input'!J3599=\"Yes\",'TSA Input'!J3599=\"Contingent\"),'TSA Input'!G3599,\"\"))","v":""},{"$f":"IF('TSA Input'!J3599=\"\",\"\",IF(OR('TSA Input'!J3599=\"Yes\",'TSA Input'!J3599=\"Contingent\"),'TSA Input'!F3599,\"\"))","v":""},"",{"$f":"IF('TSA Input'!J3599=\"\",\"\",IF(OR('TSA Input'!J3599=\"Yes\",'TSA Input'!J3599=\"Contingent\"),'TSA Input'!D3599,\"\"))","v":""},{"$f":"IF('TSA Input'!J3599=\"\",\"\",IF(OR('TSA Input'!J3599=\"Yes\",'TSA Input'!J3599=\"Contingent\"),'TSA Input'!G3599,\"\"))","v":""},{"$f":"IF('TSA Input'!J3599=\"\",\"\",IF(OR('TSA Input'!J3599=\"Yes\",'TSA Input'!J3599=\"Contingent\"),'TSA Input'!F3599,\"\"))","v":""},"","Required","Required"]
["",null,{"$f":"IF('TSA Input'!J3600=\"\",\"\",IF(OR('TSA Input'!J3600=\"Yes\",'TSA Input'!J3600=\"Contingent\"),'TSA Input'!B3600,\"Ineligible\"))","v":""},{"$f":"IF('TSA Input'!J3600=\"\",\"\",IF(OR('TSA Input'!J3600=\"Yes\",'TSA Input'!J3600=\"Contingent\"),'TSA Input'!I3600,\"\"))","v":""},{"$f":"IF('TSA Input'!J3600=\"\",\"\",IF(OR('TSA Input'!J3600=\"Yes\",'TSA Input'!J3600=\"Contingent\"),'TSA Input'!C3600,\"\"))","v":""},{"$f":"IF('TSA Input'!J3600=\"\",\"\",IF(OR('TSA Input'!J3600=\"Yes\",'TSA Input'!J3600=\"Contingent\"),'TSA Input'!D3600,\"\"))","v":""},{"$f":"IF('TSA Input'!J3600=\"\",\"\",IF(OR('TSA Input'!J3600=\"Yes\",'TSA Input'!J3600=\"Contingent\"),'TSA Input'!G3600,\"\"))","v":""},{"$f":"IF('TSA Input'!J3600=\"\",\"\",IF(OR('TSA Input'!J3600=\"Yes\",'TSA Input'!J3600=\"Contingent\"),'TSA Input'!F3600,\"\"))","v":""},"",{"$f":"IF('TSA Input'!J3600=\"\",\"\",IF(OR('TSA Input'!J3600=\"Yes\",'TSA Input'!J3600=\"Contingent\"),'TSA Input'!D3600,\"\"))","v":""},{"$f":"IF('TSA Input'!J3600=\"\",\"\",IF(OR('TSA Input'!J3600=\"Yes\",'TSA Input'!J3600=\"Contingent\"),'TSA Input'!G3600,\"\"))","v":""},{"$f":"IF('TSA Input'!J3600=\"\",\"\",IF(OR('TSA Input'!J3600=\"Yes\",'TSA Input'!J3600=\"Contingent\"),'TSA Input'!F3600,\"\"))","v":""},"","Required","Required"]
["",null,{"$f":"IF('TSA Input'!J3601=\"\",\"\",IF(OR('TSA Input'!J3601=\"Yes\",'TSA Input'!J3601=\"Contingent\"),'TSA Input'!B3601,\"Ineligible\"))","v":""},{"$f":"IF('TSA Input'!J3601=\"\",\"\",IF(OR('TSA Input'!J3601=\"Yes\",'TSA Input'!J3601=\"Contingent\"),'TSA Input'!I3601,\"\"))","v":""},{"$f":"IF('TSA Input'!J3601=\"\",\"\",IF(OR('TSA Input'!J3601=\"Yes\",'TSA Input'!J3601=\"Contingent\"),'TSA Input'!C3601,\"\"))","v":""},{"$f":"IF('TSA Input'!J3601=\"\",\"\",IF(OR('TSA Input'!J3601=\"Yes\",'TSA Input'!J3601=\"Contingent\"),'TSA Input'!D3601,\"\"))","v":""},{"$f":"IF('TSA Input'!J3601=\"\",\"\",IF(OR('TSA Input'!J3601=\"Yes\",'TSA Input'!J3601=\"Contingent\"),'TSA Input'!G3601,\"\"))","v":""},{"$f":"IF('TSA Input'!J3601=\"\",\"\",IF(OR('TSA Input'!J3601=\"Yes\",'TSA Input'!J3601=\"Contingent\"),'TSA Input'!F3601,\"\"))","v":""},"",{"$f":"IF('TSA Input'!J3601=\"\",\"\",IF(OR('TSA Input'!J3601=\"Yes\",'TSA Input'!J3601=\"Contingent\"),'TSA Input'!D3601,\"\"))","v":""},{"$f":"IF('TSA Input'!J3601=\"\",\"\",IF(OR('TSA Input'!J3601=\"Yes\",'TSA Input'!J3601=\"Contingent\"),'TSA Input'!G3601,\"\"))","v":""},{"$f":"IF('TSA Input'!J3601=\"\",\"\",IF(OR('TSA Input'!J3601=\"Yes\",'TSA Input'!J3601=\"Contingent\"),'TSA Input'!F3601,\"\"))","v":""},"","Required","Required"]
["",null,{"$f":"IF('TSA Input'!J3602=\"\",\"\",IF(OR('TSA Input'!J3602=\"Yes\",'TSA Input'!J3602=\"Contingent\"),'TSA Input'!B3602,\"Ineligible\"))","v":""},{"$f":"IF('TSA Input'!J3602=\"\",\"\",IF(OR('TSA Input'!J3602=\"Yes\",'TSA Input'!J3602=\"Contingent\"),'TSA Input'!I3602,\"\"))","v":""},{"$f":"IF('TSA Input'!J3602=\"\",\"\",IF(OR('TSA Input'!J3602=\"Yes\",'TSA Input'!J3602=\"Contingent\"),'TSA Input'!C3602,\"\"))","v":""},{"$f":"IF('TSA Input'!J3602=\"\",\"\",IF(OR('TSA Input'!J3602=\"Yes\",'TSA Input'!J3602=\"Contingent\"),'TSA Input'!D3602,\"\"))","v":""},{"$f":"IF('TSA Input'!J3602=\"\",\"\",IF(OR('TSA Input'!J3602=\"Yes\",'TSA Input'!J3602=\"Contingent\"),'TSA Input'!G3602,\"\"))","v":""},{"$f":"IF('TSA Input'!J3602=\"\",\"\",IF(OR('TSA Input'!J3602=\"Yes\",'TSA Input'!J3602=\"Contingent\"),'TSA Input'!F3602,\"\"))","v":""},"",{"$f":"IF('TSA Input'!J3602=\"\",\"\",IF(OR('TSA Input'!J3602=\"Yes\",'TSA Input'!J3602=\"Contingent\"),'TSA Input'!D3602,\"\"))","v":""},{"$f":"IF('TSA Input'!J3602=\"\",\"\",IF(OR('TSA Input'!J3602=\"Yes\",'TSA Input'!J3602=\"Contingent\"),'TSA Input'!G3602,\"\"))","v":""},{"$f":"IF('TSA Input'!J3602=\"\",\"\",IF(OR('TSA Input'!J3602=\"Yes\",'TSA Input'!J3602=\"Contingent\"),'TSA Input'!F3602,\"\"))","v":""},"","Required","Required"]
["",null,{"$f":"IF('TSA Input'!J3603=\"\",\"\",IF(OR('TSA Input'!J3603=\"Yes\",'TSA Input'!J3603=\"Contingent\"),'TSA Input'!B3603,\"Ineligible\"))","v":""},{"$f":"IF('TSA Input'!J3603=\"\",\"\",IF(OR('TSA Input'!J3603=\"Yes\",'TSA Input'!J3603=\"Contingent\"),'TSA Input'!I3603,\"\"))","v":""},{"$f":"IF('TSA Input'!J3603=\"\",\"\",IF(OR('TSA Input'!J3603=\"Yes\",'TSA Input'!J3603=\"Contingent\"),'TSA Input'!C3603,\"\"))","v":""},{"$f":"IF('TSA Input'!J3603=\"\",\"\",IF(OR('TSA Input'!J3603=\"Yes\",'TSA Input'!J3603=\"Contingent\"),'TSA Input'!D3603,\"\"))","v":""},{"$f":"IF('TSA Input'!J3603=\"\",\"\",IF(OR('TSA Input'!J3603=\"Yes\",'TSA Input'!J3603=\"Contingent\"),'TSA Input'!G3603,\"\"))","v":""},{"$f":"IF('TSA Input'!J3603=\"\",\"\",IF(OR('TSA Input'!J3603=\"Yes\",'TSA Input'!J3603=\"Contingent\"),'TSA Input'!F3603,\"\"))","v":""},"",{"$f":"IF('TSA Input'!J3603=\"\",\"\",IF(OR('TSA Input'!J3603=\"Yes\",'TSA Input'!J3603=\"Contingent\"),'TSA Input'!D3603,\"\"))","v":""},{"$f":"IF('TSA Input'!J3603=\"\",\"\",IF(OR('TSA Input'!J3603=\"Yes\",'TSA Input'!J3603=\"Contingent\"),'TSA Input'!G3603,\"\"))","v":""},{"$f":"IF('TSA Input'!J3603=\"\",\"\",IF(OR('TSA Input'!J3603=\"Yes\",'TSA Input'!J3603=\"Contingent\"),'TSA Input'!F3603,\"\"))","v":""},"","Required","Required"]
["",null,{"$f":"IF('TSA Input'!J3604=\"\",\"\",IF(OR('TSA Input'!J3604=\"Yes\",'TSA Input'!J3604=\"Contingent\"),'TSA Input'!B3604,\"Ineligible\"))","v":""},{"$f":"IF('TSA Input'!J3604=\"\",\"\",IF(OR('TSA Input'!J3604=\"Yes\",'TSA Input'!J3604=\"Contingent\"),'TSA Input'!I3604,\"\"))","v":""},{"$f":"IF('TSA Input'!J3604=\"\",\"\",IF(OR('TSA Input'!J3604=\"Yes\",'TSA Input'!J3604=\"Contingent\"),'TSA Input'!C3604,\"\"))","v":""},{"$f":"IF('TSA Input'!J3604=\"\",\"\",IF(OR('TSA Input'!J3604=\"Yes\",'TSA Input'!J3604=\"Contingent\"),'TSA Input'!D3604,\"\"))","v":""},{"$f":"IF('TSA Input'!J3604=\"\",\"\",IF(OR('TSA Input'!J3604=\"Yes\",'TSA Input'!J3604=\"Contingent\"),'TSA Input'!G3604,\"\"))","v":""},{"$f":"IF('TSA Input'!J3604=\"\",\"\",IF(OR('TSA Input'!J3604=\"Yes\",'TSA Input'!J3604=\"Contingent\"),'TSA Input'!F3604,\"\"))","v":""},"",{"$f":"IF('TSA Input'!J3604=\"\",\"\",IF(OR('TSA Input'!J3604=\"Yes\",'TSA Input'!J3604=\"Contingent\"),'TSA Input'!D3604,\"\"))","v":""},{"$f":"IF('TSA Input'!J3604=\"\",\"\",IF(OR('TSA Input'!J3604=\"Yes\",'TSA Input'!J3604=\"Contingent\"),'TSA Input'!G3604,\"\"))","v":""},{"$f":"IF('TSA Input'!J3604=\"\",\"\",IF(OR('TSA Input'!J3604=\"Yes\",'TSA Input'!J3604=\"Contingent\"),'TSA Input'!F3604,\"\"))","v":""},"","Required","Required"]
["",null,{"$f":"IF('TSA Input'!J3605=\"\",\"\",IF(OR('TSA Input'!J3605=\"Yes\",'TSA Input'!J3605=\"Contingent\"),'TSA Input'!B3605,\"Ineligible\"))","v":""},{"$f":"IF('TSA Input'!J3605=\"\",\"\",IF(OR('TSA Input'!J3605=\"Yes\",'TSA Input'!J3605=\"Contingent\"),'TSA Input'!I3605,\"\"))","v":""},{"$f":"IF('TSA Input'!J3605=\"\",\"\",IF(OR('TSA Input'!J3605=\"Yes\",'TSA Input'!J3605=\"Contingent\"),'TSA Input'!C3605,\"\"))","v":""},{"$f":"IF('TSA Input'!J3605=\"\",\"\",IF(OR('TSA Input'!J3605=\"Yes\",'TSA Input'!J3605=\"Contingent\"),'TSA Input'!D3605,\"\"))","v":""},{"$f":"IF('TSA Input'!J3605=\"\",\"\",IF(OR('TSA Input'!J3605=\"Yes\",'TSA Input'!J3605=\"Contingent\"),'TSA Input'!G3605,\"\"))","v":""},{"$f":"IF('TSA Input'!J3605=\"\",\"\",IF(OR('TSA Input'!J3605=\"Yes\",'TSA Input'!J3605=\"Contingent\"),'TSA Input'!F3605,\"\"))","v":""},"",{"$f":"IF('TSA Input'!J3605=\"\",\"\",IF(OR('TSA Input'!J3605=\"Yes\",'TSA Input'!J3605=\"Contingent\"),'TSA Input'!D3605,\"\"))","v":""},{"$f":"IF('TSA Input'!J3605=\"\",\"\",IF(OR('TSA Input'!J3605=\"Yes\",'TSA Input'!J3605=\"Contingent\"),'TSA Input'!G3605,\"\"))","v":""},{"$f":"IF('TSA Input'!J3605=\"\",\"\",IF(OR('TSA Input'!J3605=\"Yes\",'TSA Input'!J3605=\"Contingent\"),'TSA Input'!F3605,\"\"))","v":""},"","Required","Required"]
["",null,{"$f":"IF('TSA Input'!J3606=\"\",\"\",IF(OR('TSA Input'!J3606=\"Yes\",'TSA Input'!J3606=\"Contingent\"),'TSA Input'!B3606,\"Ineligible\"))","v":""},{"$f":"IF('TSA Input'!J3606=\"\",\"\",IF(OR('TSA Input'!J3606=\"Yes\",'TSA Input'!J3606=\"Contingent\"),'TSA Input'!I3606,\"\"))","v":""},{"$f":"IF('TSA Input'!J3606=\"\",\"\",IF(OR('TSA Input'!J3606=\"Yes\",'TSA Input'!J3606=\"Contingent\"),'TSA Input'!C3606,\"\"))","v":""},{"$f":"IF('TSA Input'!J3606=\"\",\"\",IF(OR('TSA Input'!J3606=\"Yes\",'TSA Input'!J3606=\"Contingent\"),'TSA Input'!D3606,\"\"))","v":""},{"$f":"IF('TSA Input'!J3606=\"\",\"\",IF(OR('TSA Input'!J3606=\"Yes\",'TSA Input'!J3606=\"Contingent\"),'TSA Input'!G3606,\"\"))","v":""},{"$f":"IF('TSA Input'!J3606=\"\",\"\",IF(OR('TSA Input'!J3606=\"Yes\",'TSA Input'!J3606=\"Contingent\"),'TSA Input'!F3606,\"\"))","v":""},"",{"$f":"IF('TSA Input'!J3606=\"\",\"\",IF(OR('TSA Input'!J3606=\"Yes\",'TSA Input'!J3606=\"Contingent\"),'TSA Input'!D3606,\"\"))","v":""},{"$f":"IF('TSA Input'!J3606=\"\",\"\",IF(OR('TSA Input'!J3606=\"Yes\",'TSA Input'!J3606=\"Contingent\"),'TSA Input'!G3606,\"\"))","v":""},{"$f":"IF('TSA Input'!J3606=\"\",\"\",IF(OR('TSA Input'!J3606=\"Yes\",'TSA Input'!J3606=\"Contingent\"),'TSA Input'!F3606,\"\"))","v":""},"","Required","Required"]
["",null,{"$f":"IF('TSA Input'!J3607=\"\",\"\",IF(OR('TSA Input'!J3607=\"Yes\",'TSA Input'!J3607=\"Contingent\"),'TSA Input'!B3607,\"Ineligible\"))","v":""},{"$f":"IF('TSA Input'!J3607=\"\",\"\",IF(OR('TSA Input'!J3607=\"Yes\",'TSA Input'!J3607=\"Contingent\"),'TSA Input'!I3607,\"\"))","v":""},{"$f":"IF('TSA Input'!J3607=\"\",\"\",IF(OR('TSA Input'!J3607=\"Yes\",'TSA Input'!J3607=\"Contingent\"),'TSA Input'!C3607,\"\"))","v":""},{"$f":"IF('TSA Input'!J3607=\"\",\"\",IF(OR('TSA Input'!J3607=\"Yes\",'TSA Input'!J3607=\"Contingent\"),'TSA Input'!D3607,\"\"))","v":""},{"$f":"IF('TSA Input'!J3607=\"\",\"\",IF(OR('TSA Input'!J3607=\"Yes\",'TSA Input'!J3607=\"Contingent\"),'TSA Input'!G3607,\"\"))","v":""},{"$f":"IF('TSA Input'!J3607=\"\",\"\",IF(OR('TSA Input'!J3607=\"Yes\",'TSA Input'!J3607=\"Contingent\"),'TSA Input'!F3607,\"\"))","v":""},"",{"$f":"IF('TSA Input'!J3607=\"\",\"\",IF(OR('TSA Input'!J3607=\"Yes\",'TSA Input'!J3607=\"Contingent\"),'TSA Input'!D3607,\"\"))","v":""},{"$f":"IF('TSA Input'!J3607=\"\",\"\",IF(OR('TSA Input'!J3607=\"Yes\",'TSA Input'!J3607=\"Contingent\"),'TSA Input'!G3607,\"\"))","v":""},{"$f":"IF('TSA Input'!J3607=\"\",\"\",IF(OR('TSA Input'!J3607=\"Yes\",'TSA Input'!J3607=\"Contingent\"),'TSA Input'!F3607,\"\"))","v":""},"","Required","Required"]
["",null,{"$f":"IF('TSA Input'!J3608=\"\",\"\",IF(OR('TSA Input'!J3608=\"Yes\",'TSA Input'!J3608=\"Contingent\"),'TSA Input'!B3608,\"Ineligible\"))","v":""},{"$f":"IF('TSA Input'!J3608=\"\",\"\",IF(OR('TSA Input'!J3608=\"Yes\",'TSA Input'!J3608=\"Contingent\"),'TSA Input'!I3608,\"\"))","v":""},{"$f":"IF('TSA Input'!J3608=\"\",\"\",IF(OR('TSA Input'!J3608=\"Yes\",'TSA Input'!J3608=\"Contingent\"),'TSA Input'!C3608,\"\"))","v":""},{"$f":"IF('TSA Input'!J3608=\"\",\"\",IF(OR('TSA Input'!J3608=\"Yes\",'TSA Input'!J3608=\"Contingent\"),'TSA Input'!D3608,\"\"))","v":""},{"$f":"IF('TSA Input'!J3608=\"\",\"\",IF(OR('TSA Input'!J3608=\"Yes\",'TSA Input'!J3608=\"Contingent\"),'TSA Input'!G3608,\"\"))","v":""},{"$f":"IF('TSA Input'!J3608=\"\",\"\",IF(OR('TSA Input'!J3608=\"Yes\",'TSA Input'!J3608=\"Contingent\"),'TSA Input'!F3608,\"\"))","v":""},"",{"$f":"IF('TSA Input'!J3608=\"\",\"\",IF(OR('TSA Input'!J3608=\"Yes\",'TSA Input'!J3608=\"Contingent\"),'TSA Input'!D3608,\"\"))","v":""},{"$f":"IF('TSA Input'!J3608=\"\",\"\",IF(OR('TSA Input'!J3608=\"Yes\",'TSA Input'!J3608=\"Contingent\"),'TSA Input'!G3608,\"\"))","v":""},{"$f":"IF('TSA Input'!J3608=\"\",\"\",IF(OR('TSA Input'!J3608=\"Yes\",'TSA Input'!J3608=\"Contingent\"),'TSA Input'!F3608,\"\"))","v":""},"","Required","Required"]
["",null,{"$f":"IF('TSA Input'!J3609=\"\",\"\",IF(OR('TSA Input'!J3609=\"Yes\",'TSA Input'!J3609=\"Contingent\"),'TSA Input'!B3609,\"Ineligible\"))","v":""},{"$f":"IF('TSA Input'!J3609=\"\",\"\",IF(OR('TSA Input'!J3609=\"Yes\",'TSA Input'!J3609=\"Contingent\"),'TSA Input'!I3609,\"\"))","v":""},{"$f":"IF('TSA Input'!J3609=\"\",\"\",IF(OR('TSA Input'!J3609=\"Yes\",'TSA Input'!J3609=\"Contingent\"),'TSA Input'!C3609,\"\"))","v":""},{"$f":"IF('TSA Input'!J3609=\"\",\"\",IF(OR('TSA Input'!J3609=\"Yes\",'TSA Input'!J3609=\"Contingent\"),'TSA Input'!D3609,\"\"))","v":""},{"$f":"IF('TSA Input'!J3609=\"\",\"\",IF(OR('TSA Input'!J3609=\"Yes\",'TSA Input'!J3609=\"Contingent\"),'TSA Input'!G3609,\"\"))","v":""},{"$f":"IF('TSA Input'!J3609=\"\",\"\",IF(OR('TSA Input'!J3609=\"Yes\",'TSA Input'!J3609=\"Contingent\"),'TSA Input'!F3609,\"\"))","v":""},"",{"$f":"IF('TSA Input'!J3609=\"\",\"\",IF(OR('TSA Input'!J3609=\"Yes\",'TSA Input'!J3609=\"Contingent\"),'TSA Input'!D3609,\"\"))","v":""},{"$f":"IF('TSA Input'!J3609=\"\",\"\",IF(OR('TSA Input'!J3609=\"Yes\",'TSA Input'!J3609=\"Contingent\"),'TSA Input'!G3609,\"\"))","v":""},{"$f":"IF('TSA Input'!J3609=\"\",\"\",IF(OR('TSA Input'!J3609=\"Yes\",'TSA Input'!J3609=\"Contingent\"),'TSA Input'!F3609,\"\"))","v":""},"","Required","Required"]
["",null,{"$f":"IF('TSA Input'!J3610=\"\",\"\",IF(OR('TSA Input'!J3610=\"Yes\",'TSA Input'!J3610=\"Contingent\"),'TSA Input'!B3610,\"Ineligible\"))","v":""},{"$f":"IF('TSA Input'!J3610=\"\",\"\",IF(OR('TSA Input'!J3610=\"Yes\",'TSA Input'!J3610=\"Contingent\"),'TSA Input'!I3610,\"\"))","v":""},{"$f":"IF('TSA Input'!J3610=\"\",\"\",IF(OR('TSA Input'!J3610=\"Yes\",'TSA Input'!J3610=\"Contingent\"),'TSA Input'!C3610,\"\"))","v":""},{"$f":"IF('TSA Input'!J3610=\"\",\"\",IF(OR('TSA Input'!J3610=\"Yes\",'TSA Input'!J3610=\"Contingent\"),'TSA Input'!D3610,\"\"))","v":""},{"$f":"IF('TSA Input'!J3610=\"\",\"\",IF(OR('TSA Input'!J3610=\"Yes\",'TSA Input'!J3610=\"Contingent\"),'TSA Input'!G3610,\"\"))","v":""},{"$f":"IF('TSA Input'!J3610=\"\",\"\",IF(OR('TSA Input'!J3610=\"Yes\",'TSA Input'!J3610=\"Contingent\"),'TSA Input'!F3610,\"\"))","v":""},"",{"$f":"IF('TSA Input'!J3610=\"\",\"\",IF(OR('TSA Input'!J3610=\"Yes\",'TSA Input'!J3610=\"Contingent\"),'TSA Input'!D3610,\"\"))","v":""},{"$f":"IF('TSA Input'!J3610=\"\",\"\",IF(OR('TSA Input'!J3610=\"Yes\",'TSA Input'!J3610=\"Contingent\"),'TSA Input'!G3610,\"\"))","v":""},{"$f":"IF('TSA Input'!J3610=\"\",\"\",IF(OR('TSA Input'!J3610=\"Yes\",'TSA Input'!J3610=\"Contingent\"),'TSA Input'!F3610,\"\"))","v":""},"","Required","Required"]
["",null,{"$f":"IF('TSA Input'!J3611=\"\",\"\",IF(OR('TSA Input'!J3611=\"Yes\",'TSA Input'!J3611=\"Contingent\"),'TSA Input'!B3611,\"Ineligible\"))","v":""},{"$f":"IF('TSA Input'!J3611=\"\",\"\",IF(OR('TSA Input'!J3611=\"Yes\",'TSA Input'!J3611=\"Contingent\"),'TSA Input'!I3611,\"\"))","v":""},{"$f":"IF('TSA Input'!J3611=\"\",\"\",IF(OR('TSA Input'!J3611=\"Yes\",'TSA Input'!J3611=\"Contingent\"),'TSA Input'!C3611,\"\"))","v":""},{"$f":"IF('TSA Input'!J3611=\"\",\"\",IF(OR('TSA Input'!J3611=\"Yes\",'TSA Input'!J3611=\"Contingent\"),'TSA Input'!D3611,\"\"))","v":""},{"$f":"IF('TSA Input'!J3611=\"\",\"\",IF(OR('TSA Input'!J3611=\"Yes\",'TSA Input'!J3611=\"Contingent\"),'TSA Input'!G3611,\"\"))","v":""},{"$f":"IF('TSA Input'!J3611=\"\",\"\",IF(OR('TSA Input'!J3611=\"Yes\",'TSA Input'!J3611=\"Contingent\"),'TSA Input'!F3611,\"\"))","v":""},"",{"$f":"IF('TSA Input'!J3611=\"\",\"\",IF(OR('TSA Input'!J3611=\"Yes\",'TSA Input'!J3611=\"Contingent\"),'TSA Input'!D3611,\"\"))","v":""},{"$f":"IF('TSA Input'!J3611=\"\",\"\",IF(OR('TSA Input'!J3611=\"Yes\",'TSA Input'!J3611=\"Contingent\"),'TSA Input'!G3611,\"\"))","v":""},{"$f":"IF('TSA Input'!J3611=\"\",\"\",IF(OR('TSA Input'!J3611=\"Yes\",'TSA Input'!J3611=\"Contingent\"),'TSA Input'!F3611,\"\"))","v":""},"","Required","Required"]
["",null,{"$f":"IF('TSA Input'!J3612=\"\",\"\",IF(OR('TSA Input'!J3612=\"Yes\",'TSA Input'!J3612=\"Contingent\"),'TSA Input'!B3612,\"Ineligible\"))","v":""},{"$f":"IF('TSA Input'!J3612=\"\",\"\",IF(OR('TSA Input'!J3612=\"Yes\",'TSA Input'!J3612=\"Contingent\"),'TSA Input'!I3612,\"\"))","v":""},{"$f":"IF('TSA Input'!J3612=\"\",\"\",IF(OR('TSA Input'!J3612=\"Yes\",'TSA Input'!J3612=\"Contingent\"),'TSA Input'!C3612,\"\"))","v":""},{"$f":"IF('TSA Input'!J3612=\"\",\"\",IF(OR('TSA Input'!J3612=\"Yes\",'TSA Input'!J3612=\"Contingent\"),'TSA Input'!D3612,\"\"))","v":""},{"$f":"IF('TSA Input'!J3612=\"\",\"\",IF(OR('TSA Input'!J3612=\"Yes\",'TSA Input'!J3612=\"Contingent\"),'TSA Input'!G3612,\"\"))","v":""},{"$f":"IF('TSA Input'!J3612=\"\",\"\",IF(OR('TSA Input'!J3612=\"Yes\",'TSA Input'!J3612=\"Contingent\"),'TSA Input'!F3612,\"\"))","v":""},"",{"$f":"IF('TSA Input'!J3612=\"\",\"\",IF(OR('TSA Input'!J3612=\"Yes\",'TSA Input'!J3612=\"Contingent\"),'TSA Input'!D3612,\"\"))","v":""},{"$f":"IF('TSA Input'!J3612=\"\",\"\",IF(OR('TSA Input'!J3612=\"Yes\",'TSA Input'!J3612=\"Contingent\"),'TSA Input'!G3612,\"\"))","v":""},{"$f":"IF('TSA Input'!J3612=\"\",\"\",IF(OR('TSA Input'!J3612=\"Yes\",'TSA Input'!J3612=\"Contingent\"),'TSA Input'!F3612,\"\"))","v":""},"","Required","Required"]
["",null,{"$f":"IF('TSA Input'!J3613=\"\",\"\",IF(OR('TSA Input'!J3613=\"Yes\",'TSA Input'!J3613=\"Contingent\"),'TSA Input'!B3613,\"Ineligible\"))","v":""},{"$f":"IF('TSA Input'!J3613=\"\",\"\",IF(OR('TSA Input'!J3613=\"Yes\",'TSA Input'!J3613=\"Contingent\"),'TSA Input'!I3613,\"\"))","v":""},{"$f":"IF('TSA Input'!J3613=\"\",\"\",IF(OR('TSA Input'!J3613=\"Yes\",'TSA Input'!J3613=\"Contingent\"),'TSA Input'!C3613,\"\"))","v":""},{"$f":"IF('TSA Input'!J3613=\"\",\"\",IF(OR('TSA Input'!J3613=\"Yes\",'TSA Input'!J3613=\"Contingent\"),'TSA Input'!D3613,\"\"))","v":""},{"$f":"IF('TSA Input'!J3613=\"\",\"\",IF(OR('TSA Input'!J3613=\"Yes\",'TSA Input'!J3613=\"Contingent\"),'TSA Input'!G3613,\"\"))","v":""},{"$f":"IF('TSA Input'!J3613=\"\",\"\",IF(OR('TSA Input'!J3613=\"Yes\",'TSA Input'!J3613=\"Contingent\"),'TSA Input'!F3613,\"\"))","v":""},"",{"$f":"IF('TSA Input'!J3613=\"\",\"\",IF(OR('TSA Input'!J3613=\"Yes\",'TSA Input'!J3613=\"Contingent\"),'TSA Input'!D3613,\"\"))","v":""},{"$f":"IF('TSA Input'!J3613=\"\",\"\",IF(OR('TSA Input'!J3613=\"Yes\",'TSA Input'!J3613=\"Contingent\"),'TSA Input'!G3613,\"\"))","v":""},{"$f":"IF('TSA Input'!J3613=\"\",\"\",IF(OR('TSA Input'!J3613=\"Yes\",'TSA Input'!J3613=\"Contingent\"),'TSA Input'!F3613,\"\"))","v":""},"","Required","Required"]
["",null,{"$f":"IF('TSA Input'!J3614=\"\",\"\",IF(OR('TSA Input'!J3614=\"Yes\",'TSA Input'!J3614=\"Contingent\"),'TSA Input'!B3614,\"Ineligible\"))","v":""},{"$f":"IF('TSA Input'!J3614=\"\",\"\",IF(OR('TSA Input'!J3614=\"Yes\",'TSA Input'!J3614=\"Contingent\"),'TSA Input'!I3614,\"\"))","v":""},{"$f":"IF('TSA Input'!J3614=\"\",\"\",IF(OR('TSA Input'!J3614=\"Yes\",'TSA Input'!J3614=\"Contingent\"),'TSA Input'!C3614,\"\"))","v":""},{"$f":"IF('TSA Input'!J3614=\"\",\"\",IF(OR('TSA Input'!J3614=\"Yes\",'TSA Input'!J3614=\"Contingent\"),'TSA Input'!D3614,\"\"))","v":""},{"$f":"IF('TSA Input'!J3614=\"\",\"\",IF(OR('TSA Input'!J3614=\"Yes\",'TSA Input'!J3614=\"Contingent\"),'TSA Input'!G3614,\"\"))","v":""},{"$f":"IF('TSA Input'!J3614=\"\",\"\",IF(OR('TSA Input'!J3614=\"Yes\",'TSA Input'!J3614=\"Contingent\"),'TSA Input'!F3614,\"\"))","v":""},"",{"$f":"IF('TSA Input'!J3614=\"\",\"\",IF(OR('TSA Input'!J3614=\"Yes\",'TSA Input'!J3614=\"Contingent\"),'TSA Input'!D3614,\"\"))","v":""},{"$f":"IF('TSA Input'!J3614=\"\",\"\",IF(OR('TSA Input'!J3614=\"Yes\",'TSA Input'!J3614=\"Contingent\"),'TSA Input'!G3614,\"\"))","v":""},{"$f":"IF('TSA Input'!J3614=\"\",\"\",IF(OR('TSA Input'!J3614=\"Yes\",'TSA Input'!J3614=\"Contingent\"),'TSA Input'!F3614,\"\"))","v":""},"","Required","Required"]
["",null,{"$f":"IF('TSA Input'!J3615=\"\",\"\",IF(OR('TSA Input'!J3615=\"Yes\",'TSA Input'!J3615=\"Contingent\"),'TSA Input'!B3615,\"Ineligible\"))","v":""},{"$f":"IF('TSA Input'!J3615=\"\",\"\",IF(OR('TSA Input'!J3615=\"Yes\",'TSA Input'!J3615=\"Contingent\"),'TSA Input'!I3615,\"\"))","v":""},{"$f":"IF('TSA Input'!J3615=\"\",\"\",IF(OR('TSA Input'!J3615=\"Yes\",'TSA Input'!J3615=\"Contingent\"),'TSA Input'!C3615,\"\"))","v":""},{"$f":"IF('TSA Input'!J3615=\"\",\"\",IF(OR('TSA Input'!J3615=\"Yes\",'TSA Input'!J3615=\"Contingent\"),'TSA Input'!D3615,\"\"))","v":""},{"$f":"IF('TSA Input'!J3615=\"\",\"\",IF(OR('TSA Input'!J3615=\"Yes\",'TSA Input'!J3615=\"Contingent\"),'TSA Input'!G3615,\"\"))","v":""},{"$f":"IF('TSA Input'!J3615=\"\",\"\",IF(OR('TSA Input'!J3615=\"Yes\",'TSA Input'!J3615=\"Contingent\"),'TSA Input'!F3615,\"\"))","v":""},"",{"$f":"IF('TSA Input'!J3615=\"\",\"\",IF(OR('TSA Input'!J3615=\"Yes\",'TSA Input'!J3615=\"Contingent\"),'TSA Input'!D3615,\"\"))","v":""},{"$f":"IF('TSA Input'!J3615=\"\",\"\",IF(OR('TSA Input'!J3615=\"Yes\",'TSA Input'!J3615=\"Contingent\"),'TSA Input'!G3615,\"\"))","v":""},{"$f":"IF('TSA Input'!J3615=\"\",\"\",IF(OR('TSA Input'!J3615=\"Yes\",'TSA Input'!J3615=\"Contingent\"),'TSA Input'!F3615,\"\"))","v":""},"","Required","Required"]
["",null,{"$f":"IF('TSA Input'!J3616=\"\",\"\",IF(OR('TSA Input'!J3616=\"Yes\",'TSA Input'!J3616=\"Contingent\"),'TSA Input'!B3616,\"Ineligible\"))","v":""},{"$f":"IF('TSA Input'!J3616=\"\",\"\",IF(OR('TSA Input'!J3616=\"Yes\",'TSA Input'!J3616=\"Contingent\"),'TSA Input'!I3616,\"\"))","v":""},{"$f":"IF('TSA Input'!J3616=\"\",\"\",IF(OR('TSA Input'!J3616=\"Yes\",'TSA Input'!J3616=\"Contingent\"),'TSA Input'!C3616,\"\"))","v":""},{"$f":"IF('TSA Input'!J3616=\"\",\"\",IF(OR('TSA Input'!J3616=\"Yes\",'TSA Input'!J3616=\"Contingent\"),'TSA Input'!D3616,\"\"))","v":""},{"$f":"IF('TSA Input'!J3616=\"\",\"\",IF(OR('TSA Input'!J3616=\"Yes\",'TSA Input'!J3616=\"Contingent\"),'TSA Input'!G3616,\"\"))","v":""},{"$f":"IF('TSA Input'!J3616=\"\",\"\",IF(OR('TSA Input'!J3616=\"Yes\",'TSA Input'!J3616=\"Contingent\"),'TSA Input'!F3616,\"\"))","v":""},"",{"$f":"IF('TSA Input'!J3616=\"\",\"\",IF(OR('TSA Input'!J3616=\"Yes\",'TSA Input'!J3616=\"Contingent\"),'TSA Input'!D3616,\"\"))","v":""},{"$f":"IF('TSA Input'!J3616=\"\",\"\",IF(OR('TSA Input'!J3616=\"Yes\",'TSA Input'!J3616=\"Contingent\"),'TSA Input'!G3616,\"\"))","v":""},{"$f":"IF('TSA Input'!J3616=\"\",\"\",IF(OR('TSA Input'!J3616=\"Yes\",'TSA Input'!J3616=\"Contingent\"),'TSA Input'!F3616,\"\"))","v":""},"","Required","Required"]
["",null,{"$f":"IF('TSA Input'!J3617=\"\",\"\",IF(OR('TSA Input'!J3617=\"Yes\",'TSA Input'!J3617=\"Contingent\"),'TSA Input'!B3617,\"Ineligible\"))","v":""},{"$f":"IF('TSA Input'!J3617=\"\",\"\",IF(OR('TSA Input'!J3617=\"Yes\",'TSA Input'!J3617=\"Contingent\"),'TSA Input'!I3617,\"\"))","v":""},{"$f":"IF('TSA Input'!J3617=\"\",\"\",IF(OR('TSA Input'!J3617=\"Yes\",'TSA Input'!J3617=\"Contingent\"),'TSA Input'!C3617,\"\"))","v":""},{"$f":"IF('TSA Input'!J3617=\"\",\"\",IF(OR('TSA Input'!J3617=\"Yes\",'TSA Input'!J3617=\"Contingent\"),'TSA Input'!D3617,\"\"))","v":""},{"$f":"IF('TSA Input'!J3617=\"\",\"\",IF(OR('TSA Input'!J3617=\"Yes\",'TSA Input'!J3617=\"Contingent\"),'TSA Input'!G3617,\"\"))","v":""},{"$f":"IF('TSA Input'!J3617=\"\",\"\",IF(OR('TSA Input'!J3617=\"Yes\",'TSA Input'!J3617=\"Contingent\"),'TSA Input'!F3617,\"\"))","v":""},"",{"$f":"IF('TSA Input'!J3617=\"\",\"\",IF(OR('TSA Input'!J3617=\"Yes\",'TSA Input'!J3617=\"Contingent\"),'TSA Input'!D3617,\"\"))","v":""},{"$f":"IF('TSA Input'!J3617=\"\",\"\",IF(OR('TSA Input'!J3617=\"Yes\",'TSA Input'!J3617=\"Contingent\"),'TSA Input'!G3617,\"\"))","v":""},{"$f":"IF('TSA Input'!J3617=\"\",\"\",IF(OR('TSA Input'!J3617=\"Yes\",'TSA Input'!J3617=\"Contingent\"),'TSA Input'!F3617,\"\"))","v":""},"","Required","Required"]
["",null,{"$f":"IF('TSA Input'!J3618=\"\",\"\",IF(OR('TSA Input'!J3618=\"Yes\",'TSA Input'!J3618=\"Contingent\"),'TSA Input'!B3618,\"Ineligible\"))","v":""},{"$f":"IF('TSA Input'!J3618=\"\",\"\",IF(OR('TSA Input'!J3618=\"Yes\",'TSA Input'!J3618=\"Contingent\"),'TSA Input'!I3618,\"\"))","v":""},{"$f":"IF('TSA Input'!J3618=\"\",\"\",IF(OR('TSA Input'!J3618=\"Yes\",'TSA Input'!J3618=\"Contingent\"),'TSA Input'!C3618,\"\"))","v":""},{"$f":"IF('TSA Input'!J3618=\"\",\"\",IF(OR('TSA Input'!J3618=\"Yes\",'TSA Input'!J3618=\"Contingent\"),'TSA Input'!D3618,\"\"))","v":""},{"$f":"IF('TSA Input'!J3618=\"\",\"\",IF(OR('TSA Input'!J3618=\"Yes\",'TSA Input'!J3618=\"Contingent\"),'TSA Input'!G3618,\"\"))","v":""},{"$f":"IF('TSA Input'!J3618=\"\",\"\",IF(OR('TSA Input'!J3618=\"Yes\",'TSA Input'!J3618=\"Contingent\"),'TSA Input'!F3618,\"\"))","v":""},"",{"$f":"IF('TSA Input'!J3618=\"\",\"\",IF(OR('TSA Input'!J3618=\"Yes\",'TSA Input'!J3618=\"Contingent\"),'TSA Input'!D3618,\"\"))","v":""},{"$f":"IF('TSA Input'!J3618=\"\",\"\",IF(OR('TSA Input'!J3618=\"Yes\",'TSA Input'!J3618=\"Contingent\"),'TSA Input'!G3618,\"\"))","v":""},{"$f":"IF('TSA Input'!J3618=\"\",\"\",IF(OR('TSA Input'!J3618=\"Yes\",'TSA Input'!J3618=\"Contingent\"),'TSA Input'!F3618,\"\"))","v":""},"","Required","Required"]
["",null,{"$f":"IF('TSA Input'!J3619=\"\",\"\",IF(OR('TSA Input'!J3619=\"Yes\",'TSA Input'!J3619=\"Contingent\"),'TSA Input'!B3619,\"Ineligible\"))","v":""},{"$f":"IF('TSA Input'!J3619=\"\",\"\",IF(OR('TSA Input'!J3619=\"Yes\",'TSA Input'!J3619=\"Contingent\"),'TSA Input'!I3619,\"\"))","v":""},{"$f":"IF('TSA Input'!J3619=\"\",\"\",IF(OR('TSA Input'!J3619=\"Yes\",'TSA Input'!J3619=\"Contingent\"),'TSA Input'!C3619,\"\"))","v":""},{"$f":"IF('TSA Input'!J3619=\"\",\"\",IF(OR('TSA Input'!J3619=\"Yes\",'TSA Input'!J3619=\"Contingent\"),'TSA Input'!D3619,\"\"))","v":""},{"$f":"IF('TSA Input'!J3619=\"\",\"\",IF(OR('TSA Input'!J3619=\"Yes\",'TSA Input'!J3619=\"Contingent\"),'TSA Input'!G3619,\"\"))","v":""},{"$f":"IF('TSA Input'!J3619=\"\",\"\",IF(OR('TSA Input'!J3619=\"Yes\",'TSA Input'!J3619=\"Contingent\"),'TSA Input'!F3619,\"\"))","v":""},"",{"$f":"IF('TSA Input'!J3619=\"\",\"\",IF(OR('TSA Input'!J3619=\"Yes\",'TSA Input'!J3619=\"Contingent\"),'TSA Input'!D3619,\"\"))","v":""},{"$f":"IF('TSA Input'!J3619=\"\",\"\",IF(OR('TSA Input'!J3619=\"Yes\",'TSA Input'!J3619=\"Contingent\"),'TSA Input'!G3619,\"\"))","v":""},{"$f":"IF('TSA Input'!J3619=\"\",\"\",IF(OR('TSA Input'!J3619=\"Yes\",'TSA Input'!J3619=\"Contingent\"),'TSA Input'!F3619,\"\"))","v":""},"","Required","Required"]
["",null,{"$f":"IF('TSA Input'!J3620=\"\",\"\",IF(OR('TSA Input'!J3620=\"Yes\",'TSA Input'!J3620=\"Contingent\"),'TSA Input'!B3620,\"Ineligible\"))","v":""},{"$f":"IF('TSA Input'!J3620=\"\",\"\",IF(OR('TSA Input'!J3620=\"Yes\",'TSA Input'!J3620=\"Contingent\"),'TSA Input'!I3620,\"\"))","v":""},{"$f":"IF('TSA Input'!J3620=\"\",\"\",IF(OR('TSA Input'!J3620=\"Yes\",'TSA Input'!J3620=\"Contingent\"),'TSA Input'!C3620,\"\"))","v":""},{"$f":"IF('TSA Input'!J3620=\"\",\"\",IF(OR('TSA Input'!J3620=\"Yes\",'TSA Input'!J3620=\"Contingent\"),'TSA Input'!D3620,\"\"))","v":""},{"$f":"IF('TSA Input'!J3620=\"\",\"\",IF(OR('TSA Input'!J3620=\"Yes\",'TSA Input'!J3620=\"Contingent\"),'TSA Input'!G3620,\"\"))","v":""},{"$f":"IF('TSA Input'!J3620=\"\",\"\",IF(OR('TSA Input'!J3620=\"Yes\",'TSA Input'!J3620=\"Contingent\"),'TSA Input'!F3620,\"\"))","v":""},"",{"$f":"IF('TSA Input'!J3620=\"\",\"\",IF(OR('TSA Input'!J3620=\"Yes\",'TSA Input'!J3620=\"Contingent\"),'TSA Input'!D3620,\"\"))","v":""},{"$f":"IF('TSA Input'!J3620=\"\",\"\",IF(OR('TSA Input'!J3620=\"Yes\",'TSA Input'!J3620=\"Contingent\"),'TSA Input'!G3620,\"\"))","v":""},{"$f":"IF('TSA Input'!J3620=\"\",\"\",IF(OR('TSA Input'!J3620=\"Yes\",'TSA Input'!J3620=\"Contingent\"),'TSA Input'!F3620,\"\"))","v":""},"","Required","Required"]
["",null,{"$f":"IF('TSA Input'!J3621=\"\",\"\",IF(OR('TSA Input'!J3621=\"Yes\",'TSA Input'!J3621=\"Contingent\"),'TSA Input'!B3621,\"Ineligible\"))","v":""},{"$f":"IF('TSA Input'!J3621=\"\",\"\",IF(OR('TSA Input'!J3621=\"Yes\",'TSA Input'!J3621=\"Contingent\"),'TSA Input'!I3621,\"\"))","v":""},{"$f":"IF('TSA Input'!J3621=\"\",\"\",IF(OR('TSA Input'!J3621=\"Yes\",'TSA Input'!J3621=\"Contingent\"),'TSA Input'!C3621,\"\"))","v":""},{"$f":"IF('TSA Input'!J3621=\"\",\"\",IF(OR('TSA Input'!J3621=\"Yes\",'TSA Input'!J3621=\"Contingent\"),'TSA Input'!D3621,\"\"))","v":""},{"$f":"IF('TSA Input'!J3621=\"\",\"\",IF(OR('TSA Input'!J3621=\"Yes\",'TSA Input'!J3621=\"Contingent\"),'TSA Input'!G3621,\"\"))","v":""},{"$f":"IF('TSA Input'!J3621=\"\",\"\",IF(OR('TSA Input'!J3621=\"Yes\",'TSA Input'!J3621=\"Contingent\"),'TSA Input'!F3621,\"\"))","v":""},"",{"$f":"IF('TSA Input'!J3621=\"\",\"\",IF(OR('TSA Input'!J3621=\"Yes\",'TSA Input'!J3621=\"Contingent\"),'TSA Input'!D3621,\"\"))","v":""},{"$f":"IF('TSA Input'!J3621=\"\",\"\",IF(OR('TSA Input'!J3621=\"Yes\",'TSA Input'!J3621=\"Contingent\"),'TSA Input'!G3621,\"\"))","v":""},{"$f":"IF('TSA Input'!J3621=\"\",\"\",IF(OR('TSA Input'!J3621=\"Yes\",'TSA Input'!J3621=\"Contingent\"),'TSA Input'!F3621,\"\"))","v":""},"","Required","Required"]
["",null,{"$f":"IF('TSA Input'!J3622=\"\",\"\",IF(OR('TSA Input'!J3622=\"Yes\",'TSA Input'!J3622=\"Contingent\"),'TSA Input'!B3622,\"Ineligible\"))","v":""},{"$f":"IF('TSA Input'!J3622=\"\",\"\",IF(OR('TSA Input'!J3622=\"Yes\",'TSA Input'!J3622=\"Contingent\"),'TSA Input'!I3622,\"\"))","v":""},{"$f":"IF('TSA Input'!J3622=\"\",\"\",IF(OR('TSA Input'!J3622=\"Yes\",'TSA Input'!J3622=\"Contingent\"),'TSA Input'!C3622,\"\"))","v":""},{"$f":"IF('TSA Input'!J3622=\"\",\"\",IF(OR('TSA Input'!J3622=\"Yes\",'TSA Input'!J3622=\"Contingent\"),'TSA Input'!D3622,\"\"))","v":""},{"$f":"IF('TSA Input'!J3622=\"\",\"\",IF(OR('TSA Input'!J3622=\"Yes\",'TSA Input'!J3622=\"Contingent\"),'TSA Input'!G3622,\"\"))","v":""},{"$f":"IF('TSA Input'!J3622=\"\",\"\",IF(OR('TSA Input'!J3622=\"Yes\",'TSA Input'!J3622=\"Contingent\"),'TSA Input'!F3622,\"\"))","v":""},"",{"$f":"IF('TSA Input'!J3622=\"\",\"\",IF(OR('TSA Input'!J3622=\"Yes\",'TSA Input'!J3622=\"Contingent\"),'TSA Input'!D3622,\"\"))","v":""},{"$f":"IF('TSA Input'!J3622=\"\",\"\",IF(OR('TSA Input'!J3622=\"Yes\",'TSA Input'!J3622=\"Contingent\"),'TSA Input'!G3622,\"\"))","v":""},{"$f":"IF('TSA Input'!J3622=\"\",\"\",IF(OR('TSA Input'!J3622=\"Yes\",'TSA Input'!J3622=\"Contingent\"),'TSA Input'!F3622,\"\"))","v":""},"","Required","Required"]
["",null,{"$f":"IF('TSA Input'!J3623=\"\",\"\",IF(OR('TSA Input'!J3623=\"Yes\",'TSA Input'!J3623=\"Contingent\"),'TSA Input'!B3623,\"Ineligible\"))","v":""},{"$f":"IF('TSA Input'!J3623=\"\",\"\",IF(OR('TSA Input'!J3623=\"Yes\",'TSA Input'!J3623=\"Contingent\"),'TSA Input'!I3623,\"\"))","v":""},{"$f":"IF('TSA Input'!J3623=\"\",\"\",IF(OR('TSA Input'!J3623=\"Yes\",'TSA Input'!J3623=\"Contingent\"),'TSA Input'!C3623,\"\"))","v":""},{"$f":"IF('TSA Input'!J3623=\"\",\"\",IF(OR('TSA Input'!J3623=\"Yes\",'TSA Input'!J3623=\"Contingent\"),'TSA Input'!D3623,\"\"))","v":""},{"$f":"IF('TSA Input'!J3623=\"\",\"\",IF(OR('TSA Input'!J3623=\"Yes\",'TSA Input'!J3623=\"Contingent\"),'TSA Input'!G3623,\"\"))","v":""},{"$f":"IF('TSA Input'!J3623=\"\",\"\",IF(OR('TSA Input'!J3623=\"Yes\",'TSA Input'!J3623=\"Contingent\"),'TSA Input'!F3623,\"\"))","v":""},"",{"$f":"IF('TSA Input'!J3623=\"\",\"\",IF(OR('TSA Input'!J3623=\"Yes\",'TSA Input'!J3623=\"Contingent\"),'TSA Input'!D3623,\"\"))","v":""},{"$f":"IF('TSA Input'!J3623=\"\",\"\",IF(OR('TSA Input'!J3623=\"Yes\",'TSA Input'!J3623=\"Contingent\"),'TSA Input'!G3623,\"\"))","v":""},{"$f":"IF('TSA Input'!J3623=\"\",\"\",IF(OR('TSA Input'!J3623=\"Yes\",'TSA Input'!J3623=\"Contingent\"),'TSA Input'!F3623,\"\"))","v":""},"","Required","Required"]
["",null,{"$f":"IF('TSA Input'!J3624=\"\",\"\",IF(OR('TSA Input'!J3624=\"Yes\",'TSA Input'!J3624=\"Contingent\"),'TSA Input'!B3624,\"Ineligible\"))","v":""},{"$f":"IF('TSA Input'!J3624=\"\",\"\",IF(OR('TSA Input'!J3624=\"Yes\",'TSA Input'!J3624=\"Contingent\"),'TSA Input'!I3624,\"\"))","v":""},{"$f":"IF('TSA Input'!J3624=\"\",\"\",IF(OR('TSA Input'!J3624=\"Yes\",'TSA Input'!J3624=\"Contingent\"),'TSA Input'!C3624,\"\"))","v":""},{"$f":"IF('TSA Input'!J3624=\"\",\"\",IF(OR('TSA Input'!J3624=\"Yes\",'TSA Input'!J3624=\"Contingent\"),'TSA Input'!D3624,\"\"))","v":""},{"$f":"IF('TSA Input'!J3624=\"\",\"\",IF(OR('TSA Input'!J3624=\"Yes\",'TSA Input'!J3624=\"Contingent\"),'TSA Input'!G3624,\"\"))","v":""},{"$f":"IF('TSA Input'!J3624=\"\",\"\",IF(OR('TSA Input'!J3624=\"Yes\",'TSA Input'!J3624=\"Contingent\"),'TSA Input'!F3624,\"\"))","v":""},"",{"$f":"IF('TSA Input'!J3624=\"\",\"\",IF(OR('TSA Input'!J3624=\"Yes\",'TSA Input'!J3624=\"Contingent\"),'TSA Input'!D3624,\"\"))","v":""},{"$f":"IF('TSA Input'!J3624=\"\",\"\",IF(OR('TSA Input'!J3624=\"Yes\",'TSA Input'!J3624=\"Contingent\"),'TSA Input'!G3624,\"\"))","v":""},{"$f":"IF('TSA Input'!J3624=\"\",\"\",IF(OR('TSA Input'!J3624=\"Yes\",'TSA Input'!J3624=\"Contingent\"),'TSA Input'!F3624,\"\"))","v":""},"","Required","Required"]
["",null,{"$f":"IF('TSA Input'!J3625=\"\",\"\",IF(OR('TSA Input'!J3625=\"Yes\",'TSA Input'!J3625=\"Contingent\"),'TSA Input'!B3625,\"Ineligible\"))","v":""},{"$f":"IF('TSA Input'!J3625=\"\",\"\",IF(OR('TSA Input'!J3625=\"Yes\",'TSA Input'!J3625=\"Contingent\"),'TSA Input'!I3625,\"\"))","v":""},{"$f":"IF('TSA Input'!J3625=\"\",\"\",IF(OR('TSA Input'!J3625=\"Yes\",'TSA Input'!J3625=\"Contingent\"),'TSA Input'!C3625,\"\"))","v":""},{"$f":"IF('TSA Input'!J3625=\"\",\"\",IF(OR('TSA Input'!J3625=\"Yes\",'TSA Input'!J3625=\"Contingent\"),'TSA Input'!D3625,\"\"))","v":""},{"$f":"IF('TSA Input'!J3625=\"\",\"\",IF(OR('TSA Input'!J3625=\"Yes\",'TSA Input'!J3625=\"Contingent\"),'TSA Input'!G3625,\"\"))","v":""},{"$f":"IF('TSA Input'!J3625=\"\",\"\",IF(OR('TSA Input'!J3625=\"Yes\",'TSA Input'!J3625=\"Contingent\"),'TSA Input'!F3625,\"\"))","v":""},"",{"$f":"IF('TSA Input'!J3625=\"\",\"\",IF(OR('TSA Input'!J3625=\"Yes\",'TSA Input'!J3625=\"Contingent\"),'TSA Input'!D3625,\"\"))","v":""},{"$f":"IF('TSA Input'!J3625=\"\",\"\",IF(OR('TSA Input'!J3625=\"Yes\",'TSA Input'!J3625=\"Contingent\"),'TSA Input'!G3625,\"\"))","v":""},{"$f":"IF('TSA Input'!J3625=\"\",\"\",IF(OR('TSA Input'!J3625=\"Yes\",'TSA Input'!J3625=\"Contingent\"),'TSA Input'!F3625,\"\"))","v":""},"","Required","Required"]
["",null,{"$f":"IF('TSA Input'!J3626=\"\",\"\",IF(OR('TSA Input'!J3626=\"Yes\",'TSA Input'!J3626=\"Contingent\"),'TSA Input'!B3626,\"Ineligible\"))","v":""},{"$f":"IF('TSA Input'!J3626=\"\",\"\",IF(OR('TSA Input'!J3626=\"Yes\",'TSA Input'!J3626=\"Contingent\"),'TSA Input'!I3626,\"\"))","v":""},{"$f":"IF('TSA Input'!J3626=\"\",\"\",IF(OR('TSA Input'!J3626=\"Yes\",'TSA Input'!J3626=\"Contingent\"),'TSA Input'!C3626,\"\"))","v":""},{"$f":"IF('TSA Input'!J3626=\"\",\"\",IF(OR('TSA Input'!J3626=\"Yes\",'TSA Input'!J3626=\"Contingent\"),'TSA Input'!D3626,\"\"))","v":""},{"$f":"IF('TSA Input'!J3626=\"\",\"\",IF(OR('TSA Input'!J3626=\"Yes\",'TSA Input'!J3626=\"Contingent\"),'TSA Input'!G3626,\"\"))","v":""},{"$f":"IF('TSA Input'!J3626=\"\",\"\",IF(OR('TSA Input'!J3626=\"Yes\",'TSA Input'!J3626=\"Contingent\"),'TSA Input'!F3626,\"\"))","v":""},"",{"$f":"IF('TSA Input'!J3626=\"\",\"\",IF(OR('TSA Input'!J3626=\"Yes\",'TSA Input'!J3626=\"Contingent\"),'TSA Input'!D3626,\"\"))","v":""},{"$f":"IF('TSA Input'!J3626=\"\",\"\",IF(OR('TSA Input'!J3626=\"Yes\",'TSA Input'!J3626=\"Contingent\"),'TSA Input'!G3626,\"\"))","v":""},{"$f":"IF('TSA Input'!J3626=\"\",\"\",IF(OR('TSA Input'!J3626=\"Yes\",'TSA Input'!J3626=\"Contingent\"),'TSA Input'!F3626,\"\"))","v":""},"","Required","Required"]
["",null,{"$f":"IF('TSA Input'!J3627=\"\",\"\",IF(OR('TSA Input'!J3627=\"Yes\",'TSA Input'!J3627=\"Contingent\"),'TSA Input'!B3627,\"Ineligible\"))","v":""},{"$f":"IF('TSA Input'!J3627=\"\",\"\",IF(OR('TSA Input'!J3627=\"Yes\",'TSA Input'!J3627=\"Contingent\"),'TSA Input'!I3627,\"\"))","v":""},{"$f":"IF('TSA Input'!J3627=\"\",\"\",IF(OR('TSA Input'!J3627=\"Yes\",'TSA Input'!J3627=\"Contingent\"),'TSA Input'!C3627,\"\"))","v":""},{"$f":"IF('TSA Input'!J3627=\"\",\"\",IF(OR('TSA Input'!J3627=\"Yes\",'TSA Input'!J3627=\"Contingent\"),'TSA Input'!D3627,\"\"))","v":""},{"$f":"IF('TSA Input'!J3627=\"\",\"\",IF(OR('TSA Input'!J3627=\"Yes\",'TSA Input'!J3627=\"Contingent\"),'TSA Input'!G3627,\"\"))","v":""},{"$f":"IF('TSA Input'!J3627=\"\",\"\",IF(OR('TSA Input'!J3627=\"Yes\",'TSA Input'!J3627=\"Contingent\"),'TSA Input'!F3627,\"\"))","v":""},"",{"$f":"IF('TSA Input'!J3627=\"\",\"\",IF(OR('TSA Input'!J3627=\"Yes\",'TSA Input'!J3627=\"Contingent\"),'TSA Input'!D3627,\"\"))","v":""},{"$f":"IF('TSA Input'!J3627=\"\",\"\",IF(OR('TSA Input'!J3627=\"Yes\",'TSA Input'!J3627=\"Contingent\"),'TSA Input'!G3627,\"\"))","v":""},{"$f":"IF('TSA Input'!J3627=\"\",\"\",IF(OR('TSA Input'!J3627=\"Yes\",'TSA Input'!J3627=\"Contingent\"),'TSA Input'!F3627,\"\"))","v":""},"","Required","Required"]
["",null,{"$f":"IF('TSA Input'!J3628=\"\",\"\",IF(OR('TSA Input'!J3628=\"Yes\",'TSA Input'!J3628=\"Contingent\"),'TSA Input'!B3628,\"Ineligible\"))","v":""},{"$f":"IF('TSA Input'!J3628=\"\",\"\",IF(OR('TSA Input'!J3628=\"Yes\",'TSA Input'!J3628=\"Contingent\"),'TSA Input'!I3628,\"\"))","v":""},{"$f":"IF('TSA Input'!J3628=\"\",\"\",IF(OR('TSA Input'!J3628=\"Yes\",'TSA Input'!J3628=\"Contingent\"),'TSA Input'!C3628,\"\"))","v":""},{"$f":"IF('TSA Input'!J3628=\"\",\"\",IF(OR('TSA Input'!J3628=\"Yes\",'TSA Input'!J3628=\"Contingent\"),'TSA Input'!D3628,\"\"))","v":""},{"$f":"IF('TSA Input'!J3628=\"\",\"\",IF(OR('TSA Input'!J3628=\"Yes\",'TSA Input'!J3628=\"Contingent\"),'TSA Input'!G3628,\"\"))","v":""},{"$f":"IF('TSA Input'!J3628=\"\",\"\",IF(OR('TSA Input'!J3628=\"Yes\",'TSA Input'!J3628=\"Contingent\"),'TSA Input'!F3628,\"\"))","v":""},"",{"$f":"IF('TSA Input'!J3628=\"\",\"\",IF(OR('TSA Input'!J3628=\"Yes\",'TSA Input'!J3628=\"Contingent\"),'TSA Input'!D3628,\"\"))","v":""},{"$f":"IF('TSA Input'!J3628=\"\",\"\",IF(OR('TSA Input'!J3628=\"Yes\",'TSA Input'!J3628=\"Contingent\"),'TSA Input'!G3628,\"\"))","v":""},{"$f":"IF('TSA Input'!J3628=\"\",\"\",IF(OR('TSA Input'!J3628=\"Yes\",'TSA Input'!J3628=\"Contingent\"),'TSA Input'!F3628,\"\"))","v":""},"","Required","Required"]
["",null,{"$f":"IF('TSA Input'!J3629=\"\",\"\",IF(OR('TSA Input'!J3629=\"Yes\",'TSA Input'!J3629=\"Contingent\"),'TSA Input'!B3629,\"Ineligible\"))","v":""},{"$f":"IF('TSA Input'!J3629=\"\",\"\",IF(OR('TSA Input'!J3629=\"Yes\",'TSA Input'!J3629=\"Contingent\"),'TSA Input'!I3629,\"\"))","v":""},{"$f":"IF('TSA Input'!J3629=\"\",\"\",IF(OR('TSA Input'!J3629=\"Yes\",'TSA Input'!J3629=\"Contingent\"),'TSA Input'!C3629,\"\"))","v":""},{"$f":"IF('TSA Input'!J3629=\"\",\"\",IF(OR('TSA Input'!J3629=\"Yes\",'TSA Input'!J3629=\"Contingent\"),'TSA Input'!D3629,\"\"))","v":""},{"$f":"IF('TSA Input'!J3629=\"\",\"\",IF(OR('TSA Input'!J3629=\"Yes\",'TSA Input'!J3629=\"Contingent\"),'TSA Input'!G3629,\"\"))","v":""},{"$f":"IF('TSA Input'!J3629=\"\",\"\",IF(OR('TSA Input'!J3629=\"Yes\",'TSA Input'!J3629=\"Contingent\"),'TSA Input'!F3629,\"\"))","v":""},"",{"$f":"IF('TSA Input'!J3629=\"\",\"\",IF(OR('TSA Input'!J3629=\"Yes\",'TSA Input'!J3629=\"Contingent\"),'TSA Input'!D3629,\"\"))","v":""},{"$f":"IF('TSA Input'!J3629=\"\",\"\",IF(OR('TSA Input'!J3629=\"Yes\",'TSA Input'!J3629=\"Contingent\"),'TSA Input'!G3629,\"\"))","v":""},{"$f":"IF('TSA Input'!J3629=\"\",\"\",IF(OR('TSA Input'!J3629=\"Yes\",'TSA Input'!J3629=\"Contingent\"),'TSA Input'!F3629,\"\"))","v":""},"","Required","Required"]
["",null,{"$f":"IF('TSA Input'!J3630=\"\",\"\",IF(OR('TSA Input'!J3630=\"Yes\",'TSA Input'!J3630=\"Contingent\"),'TSA Input'!B3630,\"Ineligible\"))","v":""},{"$f":"IF('TSA Input'!J3630=\"\",\"\",IF(OR('TSA Input'!J3630=\"Yes\",'TSA Input'!J3630=\"Contingent\"),'TSA Input'!I3630,\"\"))","v":""},{"$f":"IF('TSA Input'!J3630=\"\",\"\",IF(OR('TSA Input'!J3630=\"Yes\",'TSA Input'!J3630=\"Contingent\"),'TSA Input'!C3630,\"\"))","v":""},{"$f":"IF('TSA Input'!J3630=\"\",\"\",IF(OR('TSA Input'!J3630=\"Yes\",'TSA Input'!J3630=\"Contingent\"),'TSA Input'!D3630,\"\"))","v":""},{"$f":"IF('TSA Input'!J3630=\"\",\"\",IF(OR('TSA Input'!J3630=\"Yes\",'TSA Input'!J3630=\"Contingent\"),'TSA Input'!G3630,\"\"))","v":""},{"$f":"IF('TSA Input'!J3630=\"\",\"\",IF(OR('TSA Input'!J3630=\"Yes\",'TSA Input'!J3630=\"Contingent\"),'TSA Input'!F3630,\"\"))","v":""},"",{"$f":"IF('TSA Input'!J3630=\"\",\"\",IF(OR('TSA Input'!J3630=\"Yes\",'TSA Input'!J3630=\"Contingent\"),'TSA Input'!D3630,\"\"))","v":""},{"$f":"IF('TSA Input'!J3630=\"\",\"\",IF(OR('TSA Input'!J3630=\"Yes\",'TSA Input'!J3630=\"Contingent\"),'TSA Input'!G3630,\"\"))","v":""},{"$f":"IF('TSA Input'!J3630=\"\",\"\",IF(OR('TSA Input'!J3630=\"Yes\",'TSA Input'!J3630=\"Contingent\"),'TSA Input'!F3630,\"\"))","v":""},"","Required","Required"]
["",null,{"$f":"IF('TSA Input'!J3631=\"\",\"\",IF(OR('TSA Input'!J3631=\"Yes\",'TSA Input'!J3631=\"Contingent\"),'TSA Input'!B3631,\"Ineligible\"))","v":""},{"$f":"IF('TSA Input'!J3631=\"\",\"\",IF(OR('TSA Input'!J3631=\"Yes\",'TSA Input'!J3631=\"Contingent\"),'TSA Input'!I3631,\"\"))","v":""},{"$f":"IF('TSA Input'!J3631=\"\",\"\",IF(OR('TSA Input'!J3631=\"Yes\",'TSA Input'!J3631=\"Contingent\"),'TSA Input'!C3631,\"\"))","v":""},{"$f":"IF('TSA Input'!J3631=\"\",\"\",IF(OR('TSA Input'!J3631=\"Yes\",'TSA Input'!J3631=\"Contingent\"),'TSA Input'!D3631,\"\"))","v":""},{"$f":"IF('TSA Input'!J3631=\"\",\"\",IF(OR('TSA Input'!J3631=\"Yes\",'TSA Input'!J3631=\"Contingent\"),'TSA Input'!G3631,\"\"))","v":""},{"$f":"IF('TSA Input'!J3631=\"\",\"\",IF(OR('TSA Input'!J3631=\"Yes\",'TSA Input'!J3631=\"Contingent\"),'TSA Input'!F3631,\"\"))","v":""},"",{"$f":"IF('TSA Input'!J3631=\"\",\"\",IF(OR('TSA Input'!J3631=\"Yes\",'TSA Input'!J3631=\"Contingent\"),'TSA Input'!D3631,\"\"))","v":""},{"$f":"IF('TSA Input'!J3631=\"\",\"\",IF(OR('TSA Input'!J3631=\"Yes\",'TSA Input'!J3631=\"Contingent\"),'TSA Input'!G3631,\"\"))","v":""},{"$f":"IF('TSA Input'!J3631=\"\",\"\",IF(OR('TSA Input'!J3631=\"Yes\",'TSA Input'!J3631=\"Contingent\"),'TSA Input'!F3631,\"\"))","v":""},"","Required","Required"]
["",null,{"$f":"IF('TSA Input'!J3632=\"\",\"\",IF(OR('TSA Input'!J3632=\"Yes\",'TSA Input'!J3632=\"Contingent\"),'TSA Input'!B3632,\"Ineligible\"))","v":""},{"$f":"IF('TSA Input'!J3632=\"\",\"\",IF(OR('TSA Input'!J3632=\"Yes\",'TSA Input'!J3632=\"Contingent\"),'TSA Input'!I3632,\"\"))","v":""},{"$f":"IF('TSA Input'!J3632=\"\",\"\",IF(OR('TSA Input'!J3632=\"Yes\",'TSA Input'!J3632=\"Contingent\"),'TSA Input'!C3632,\"\"))","v":""},{"$f":"IF('TSA Input'!J3632=\"\",\"\",IF(OR('TSA Input'!J3632=\"Yes\",'TSA Input'!J3632=\"Contingent\"),'TSA Input'!D3632,\"\"))","v":""},{"$f":"IF('TSA Input'!J3632=\"\",\"\",IF(OR('TSA Input'!J3632=\"Yes\",'TSA Input'!J3632=\"Contingent\"),'TSA Input'!G3632,\"\"))","v":""},{"$f":"IF('TSA Input'!J3632=\"\",\"\",IF(OR('TSA Input'!J3632=\"Yes\",'TSA Input'!J3632=\"Contingent\"),'TSA Input'!F3632,\"\"))","v":""},"",{"$f":"IF('TSA Input'!J3632=\"\",\"\",IF(OR('TSA Input'!J3632=\"Yes\",'TSA Input'!J3632=\"Contingent\"),'TSA Input'!D3632,\"\"))","v":""},{"$f":"IF('TSA Input'!J3632=\"\",\"\",IF(OR('TSA Input'!J3632=\"Yes\",'TSA Input'!J3632=\"Contingent\"),'TSA Input'!G3632,\"\"))","v":""},{"$f":"IF('TSA Input'!J3632=\"\",\"\",IF(OR('TSA Input'!J3632=\"Yes\",'TSA Input'!J3632=\"Contingent\"),'TSA Input'!F3632,\"\"))","v":""},"","Required","Required"]
["",null,{"$f":"IF('TSA Input'!J3633=\"\",\"\",IF(OR('TSA Input'!J3633=\"Yes\",'TSA Input'!J3633=\"Contingent\"),'TSA Input'!B3633,\"Ineligible\"))","v":""},{"$f":"IF('TSA Input'!J3633=\"\",\"\",IF(OR('TSA Input'!J3633=\"Yes\",'TSA Input'!J3633=\"Contingent\"),'TSA Input'!I3633,\"\"))","v":""},{"$f":"IF('TSA Input'!J3633=\"\",\"\",IF(OR('TSA Input'!J3633=\"Yes\",'TSA Input'!J3633=\"Contingent\"),'TSA Input'!C3633,\"\"))","v":""},{"$f":"IF('TSA Input'!J3633=\"\",\"\",IF(OR('TSA Input'!J3633=\"Yes\",'TSA Input'!J3633=\"Contingent\"),'TSA Input'!D3633,\"\"))","v":""},{"$f":"IF('TSA Input'!J3633=\"\",\"\",IF(OR('TSA Input'!J3633=\"Yes\",'TSA Input'!J3633=\"Contingent\"),'TSA Input'!G3633,\"\"))","v":""},{"$f":"IF('TSA Input'!J3633=\"\",\"\",IF(OR('TSA Input'!J3633=\"Yes\",'TSA Input'!J3633=\"Contingent\"),'TSA Input'!F3633,\"\"))","v":""},"",{"$f":"IF('TSA Input'!J3633=\"\",\"\",IF(OR('TSA Input'!J3633=\"Yes\",'TSA Input'!J3633=\"Contingent\"),'TSA Input'!D3633,\"\"))","v":""},{"$f":"IF('TSA Input'!J3633=\"\",\"\",IF(OR('TSA Input'!J3633=\"Yes\",'TSA Input'!J3633=\"Contingent\"),'TSA Input'!G3633,\"\"))","v":""},{"$f":"IF('TSA Input'!J3633=\"\",\"\",IF(OR('TSA Input'!J3633=\"Yes\",'TSA Input'!J3633=\"Contingent\"),'TSA Input'!F3633,\"\"))","v":""},"","Required","Required"]
["",null,{"$f":"IF('TSA Input'!J3634=\"\",\"\",IF(OR('TSA Input'!J3634=\"Yes\",'TSA Input'!J3634=\"Contingent\"),'TSA Input'!B3634,\"Ineligible\"))","v":""},{"$f":"IF('TSA Input'!J3634=\"\",\"\",IF(OR('TSA Input'!J3634=\"Yes\",'TSA Input'!J3634=\"Contingent\"),'TSA Input'!I3634,\"\"))","v":""},{"$f":"IF('TSA Input'!J3634=\"\",\"\",IF(OR('TSA Input'!J3634=\"Yes\",'TSA Input'!J3634=\"Contingent\"),'TSA Input'!C3634,\"\"))","v":""},{"$f":"IF('TSA Input'!J3634=\"\",\"\",IF(OR('TSA Input'!J3634=\"Yes\",'TSA Input'!J3634=\"Contingent\"),'TSA Input'!D3634,\"\"))","v":""},{"$f":"IF('TSA Input'!J3634=\"\",\"\",IF(OR('TSA Input'!J3634=\"Yes\",'TSA Input'!J3634=\"Contingent\"),'TSA Input'!G3634,\"\"))","v":""},{"$f":"IF('TSA Input'!J3634=\"\",\"\",IF(OR('TSA Input'!J3634=\"Yes\",'TSA Input'!J3634=\"Contingent\"),'TSA Input'!F3634,\"\"))","v":""},"",{"$f":"IF('TSA Input'!J3634=\"\",\"\",IF(OR('TSA Input'!J3634=\"Yes\",'TSA Input'!J3634=\"Contingent\"),'TSA Input'!D3634,\"\"))","v":""},{"$f":"IF('TSA Input'!J3634=\"\",\"\",IF(OR('TSA Input'!J3634=\"Yes\",'TSA Input'!J3634=\"Contingent\"),'TSA Input'!G3634,\"\"))","v":""},{"$f":"IF('TSA Input'!J3634=\"\",\"\",IF(OR('TSA Input'!J3634=\"Yes\",'TSA Input'!J3634=\"Contingent\"),'TSA Input'!F3634,\"\"))","v":""},"","Required","Required"]
["",null,{"$f":"IF('TSA Input'!J3635=\"\",\"\",IF(OR('TSA Input'!J3635=\"Yes\",'TSA Input'!J3635=\"Contingent\"),'TSA Input'!B3635,\"Ineligible\"))","v":""},{"$f":"IF('TSA Input'!J3635=\"\",\"\",IF(OR('TSA Input'!J3635=\"Yes\",'TSA Input'!J3635=\"Contingent\"),'TSA Input'!I3635,\"\"))","v":""},{"$f":"IF('TSA Input'!J3635=\"\",\"\",IF(OR('TSA Input'!J3635=\"Yes\",'TSA Input'!J3635=\"Contingent\"),'TSA Input'!C3635,\"\"))","v":""},{"$f":"IF('TSA Input'!J3635=\"\",\"\",IF(OR('TSA Input'!J3635=\"Yes\",'TSA Input'!J3635=\"Contingent\"),'TSA Input'!D3635,\"\"))","v":""},{"$f":"IF('TSA Input'!J3635=\"\",\"\",IF(OR('TSA Input'!J3635=\"Yes\",'TSA Input'!J3635=\"Contingent\"),'TSA Input'!G3635,\"\"))","v":""},{"$f":"IF('TSA Input'!J3635=\"\",\"\",IF(OR('TSA Input'!J3635=\"Yes\",'TSA Input'!J3635=\"Contingent\"),'TSA Input'!F3635,\"\"))","v":""},"",{"$f":"IF('TSA Input'!J3635=\"\",\"\",IF(OR('TSA Input'!J3635=\"Yes\",'TSA Input'!J3635=\"Contingent\"),'TSA Input'!D3635,\"\"))","v":""},{"$f":"IF('TSA Input'!J3635=\"\",\"\",IF(OR('TSA Input'!J3635=\"Yes\",'TSA Input'!J3635=\"Contingent\"),'TSA Input'!G3635,\"\"))","v":""},{"$f":"IF('TSA Input'!J3635=\"\",\"\",IF(OR('TSA Input'!J3635=\"Yes\",'TSA Input'!J3635=\"Contingent\"),'TSA Input'!F3635,\"\"))","v":""},"","Required","Required"]
["",null,{"$f":"IF('TSA Input'!J3636=\"\",\"\",IF(OR('TSA Input'!J3636=\"Yes\",'TSA Input'!J3636=\"Contingent\"),'TSA Input'!B3636,\"Ineligible\"))","v":""},{"$f":"IF('TSA Input'!J3636=\"\",\"\",IF(OR('TSA Input'!J3636=\"Yes\",'TSA Input'!J3636=\"Contingent\"),'TSA Input'!I3636,\"\"))","v":""},{"$f":"IF('TSA Input'!J3636=\"\",\"\",IF(OR('TSA Input'!J3636=\"Yes\",'TSA Input'!J3636=\"Contingent\"),'TSA Input'!C3636,\"\"))","v":""},{"$f":"IF('TSA Input'!J3636=\"\",\"\",IF(OR('TSA Input'!J3636=\"Yes\",'TSA Input'!J3636=\"Contingent\"),'TSA Input'!D3636,\"\"))","v":""},{"$f":"IF('TSA Input'!J3636=\"\",\"\",IF(OR('TSA Input'!J3636=\"Yes\",'TSA Input'!J3636=\"Contingent\"),'TSA Input'!G3636,\"\"))","v":""},{"$f":"IF('TSA Input'!J3636=\"\",\"\",IF(OR('TSA Input'!J3636=\"Yes\",'TSA Input'!J3636=\"Contingent\"),'TSA Input'!F3636,\"\"))","v":""},"",{"$f":"IF('TSA Input'!J3636=\"\",\"\",IF(OR('TSA Input'!J3636=\"Yes\",'TSA Input'!J3636=\"Contingent\"),'TSA Input'!D3636,\"\"))","v":""},{"$f":"IF('TSA Input'!J3636=\"\",\"\",IF(OR('TSA Input'!J3636=\"Yes\",'TSA Input'!J3636=\"Contingent\"),'TSA Input'!G3636,\"\"))","v":""},{"$f":"IF('TSA Input'!J3636=\"\",\"\",IF(OR('TSA Input'!J3636=\"Yes\",'TSA Input'!J3636=\"Contingent\"),'TSA Input'!F3636,\"\"))","v":""},"","Required","Required"]
["",null,{"$f":"IF('TSA Input'!J3637=\"\",\"\",IF(OR('TSA Input'!J3637=\"Yes\",'TSA Input'!J3637=\"Contingent\"),'TSA Input'!B3637,\"Ineligible\"))","v":""},{"$f":"IF('TSA Input'!J3637=\"\",\"\",IF(OR('TSA Input'!J3637=\"Yes\",'TSA Input'!J3637=\"Contingent\"),'TSA Input'!I3637,\"\"))","v":""},{"$f":"IF('TSA Input'!J3637=\"\",\"\",IF(OR('TSA Input'!J3637=\"Yes\",'TSA Input'!J3637=\"Contingent\"),'TSA Input'!C3637,\"\"))","v":""},{"$f":"IF('TSA Input'!J3637=\"\",\"\",IF(OR('TSA Input'!J3637=\"Yes\",'TSA Input'!J3637=\"Contingent\"),'TSA Input'!D3637,\"\"))","v":""},{"$f":"IF('TSA Input'!J3637=\"\",\"\",IF(OR('TSA Input'!J3637=\"Yes\",'TSA Input'!J3637=\"Contingent\"),'TSA Input'!G3637,\"\"))","v":""},{"$f":"IF('TSA Input'!J3637=\"\",\"\",IF(OR('TSA Input'!J3637=\"Yes\",'TSA Input'!J3637=\"Contingent\"),'TSA Input'!F3637,\"\"))","v":""},"",{"$f":"IF('TSA Input'!J3637=\"\",\"\",IF(OR('TSA Input'!J3637=\"Yes\",'TSA Input'!J3637=\"Contingent\"),'TSA Input'!D3637,\"\"))","v":""},{"$f":"IF('TSA Input'!J3637=\"\",\"\",IF(OR('TSA Input'!J3637=\"Yes\",'TSA Input'!J3637=\"Contingent\"),'TSA Input'!G3637,\"\"))","v":""},{"$f":"IF('TSA Input'!J3637=\"\",\"\",IF(OR('TSA Input'!J3637=\"Yes\",'TSA Input'!J3637=\"Contingent\"),'TSA Input'!F3637,\"\"))","v":""},"","Required","Required"]
["",null,{"$f":"IF('TSA Input'!J3638=\"\",\"\",IF(OR('TSA Input'!J3638=\"Yes\",'TSA Input'!J3638=\"Contingent\"),'TSA Input'!B3638,\"Ineligible\"))","v":""},{"$f":"IF('TSA Input'!J3638=\"\",\"\",IF(OR('TSA Input'!J3638=\"Yes\",'TSA Input'!J3638=\"Contingent\"),'TSA Input'!I3638,\"\"))","v":""},{"$f":"IF('TSA Input'!J3638=\"\",\"\",IF(OR('TSA Input'!J3638=\"Yes\",'TSA Input'!J3638=\"Contingent\"),'TSA Input'!C3638,\"\"))","v":""},{"$f":"IF('TSA Input'!J3638=\"\",\"\",IF(OR('TSA Input'!J3638=\"Yes\",'TSA Input'!J3638=\"Contingent\"),'TSA Input'!D3638,\"\"))","v":""},{"$f":"IF('TSA Input'!J3638=\"\",\"\",IF(OR('TSA Input'!J3638=\"Yes\",'TSA Input'!J3638=\"Contingent\"),'TSA Input'!G3638,\"\"))","v":""},{"$f":"IF('TSA Input'!J3638=\"\",\"\",IF(OR('TSA Input'!J3638=\"Yes\",'TSA Input'!J3638=\"Contingent\"),'TSA Input'!F3638,\"\"))","v":""},"",{"$f":"IF('TSA Input'!J3638=\"\",\"\",IF(OR('TSA Input'!J3638=\"Yes\",'TSA Input'!J3638=\"Contingent\"),'TSA Input'!D3638,\"\"))","v":""},{"$f":"IF('TSA Input'!J3638=\"\",\"\",IF(OR('TSA Input'!J3638=\"Yes\",'TSA Input'!J3638=\"Contingent\"),'TSA Input'!G3638,\"\"))","v":""},{"$f":"IF('TSA Input'!J3638=\"\",\"\",IF(OR('TSA Input'!J3638=\"Yes\",'TSA Input'!J3638=\"Contingent\"),'TSA Input'!F3638,\"\"))","v":""},"","Required","Required"]
["",null,{"$f":"IF('TSA Input'!J3639=\"\",\"\",IF(OR('TSA Input'!J3639=\"Yes\",'TSA Input'!J3639=\"Contingent\"),'TSA Input'!B3639,\"Ineligible\"))","v":""},{"$f":"IF('TSA Input'!J3639=\"\",\"\",IF(OR('TSA Input'!J3639=\"Yes\",'TSA Input'!J3639=\"Contingent\"),'TSA Input'!I3639,\"\"))","v":""},{"$f":"IF('TSA Input'!J3639=\"\",\"\",IF(OR('TSA Input'!J3639=\"Yes\",'TSA Input'!J3639=\"Contingent\"),'TSA Input'!C3639,\"\"))","v":""},{"$f":"IF('TSA Input'!J3639=\"\",\"\",IF(OR('TSA Input'!J3639=\"Yes\",'TSA Input'!J3639=\"Contingent\"),'TSA Input'!D3639,\"\"))","v":""},{"$f":"IF('TSA Input'!J3639=\"\",\"\",IF(OR('TSA Input'!J3639=\"Yes\",'TSA Input'!J3639=\"Contingent\"),'TSA Input'!G3639,\"\"))","v":""},{"$f":"IF('TSA Input'!J3639=\"\",\"\",IF(OR('TSA Input'!J3639=\"Yes\",'TSA Input'!J3639=\"Contingent\"),'TSA Input'!F3639,\"\"))","v":""},"",{"$f":"IF('TSA Input'!J3639=\"\",\"\",IF(OR('TSA Input'!J3639=\"Yes\",'TSA Input'!J3639=\"Contingent\"),'TSA Input'!D3639,\"\"))","v":""},{"$f":"IF('TSA Input'!J3639=\"\",\"\",IF(OR('TSA Input'!J3639=\"Yes\",'TSA Input'!J3639=\"Contingent\"),'TSA Input'!G3639,\"\"))","v":""},{"$f":"IF('TSA Input'!J3639=\"\",\"\",IF(OR('TSA Input'!J3639=\"Yes\",'TSA Input'!J3639=\"Contingent\"),'TSA Input'!F3639,\"\"))","v":""},"","Required","Required"]
["",null,{"$f":"IF('TSA Input'!J3640=\"\",\"\",IF(OR('TSA Input'!J3640=\"Yes\",'TSA Input'!J3640=\"Contingent\"),'TSA Input'!B3640,\"Ineligible\"))","v":""},{"$f":"IF('TSA Input'!J3640=\"\",\"\",IF(OR('TSA Input'!J3640=\"Yes\",'TSA Input'!J3640=\"Contingent\"),'TSA Input'!I3640,\"\"))","v":""},{"$f":"IF('TSA Input'!J3640=\"\",\"\",IF(OR('TSA Input'!J3640=\"Yes\",'TSA Input'!J3640=\"Contingent\"),'TSA Input'!C3640,\"\"))","v":""},{"$f":"IF('TSA Input'!J3640=\"\",\"\",IF(OR('TSA Input'!J3640=\"Yes\",'TSA Input'!J3640=\"Contingent\"),'TSA Input'!D3640,\"\"))","v":""},{"$f":"IF('TSA Input'!J3640=\"\",\"\",IF(OR('TSA Input'!J3640=\"Yes\",'TSA Input'!J3640=\"Contingent\"),'TSA Input'!G3640,\"\"))","v":""},{"$f":"IF('TSA Input'!J3640=\"\",\"\",IF(OR('TSA Input'!J3640=\"Yes\",'TSA Input'!J3640=\"Contingent\"),'TSA Input'!F3640,\"\"))","v":""},"",{"$f":"IF('TSA Input'!J3640=\"\",\"\",IF(OR('TSA Input'!J3640=\"Yes\",'TSA Input'!J3640=\"Contingent\"),'TSA Input'!D3640,\"\"))","v":""},{"$f":"IF('TSA Input'!J3640=\"\",\"\",IF(OR('TSA Input'!J3640=\"Yes\",'TSA Input'!J3640=\"Contingent\"),'TSA Input'!G3640,\"\"))","v":""},{"$f":"IF('TSA Input'!J3640=\"\",\"\",IF(OR('TSA Input'!J3640=\"Yes\",'TSA Input'!J3640=\"Contingent\"),'TSA Input'!F3640,\"\"))","v":""},"","Required","Required"]
["",null,{"$f":"IF('TSA Input'!J3641=\"\",\"\",IF(OR('TSA Input'!J3641=\"Yes\",'TSA Input'!J3641=\"Contingent\"),'TSA Input'!B3641,\"Ineligible\"))","v":""},{"$f":"IF('TSA Input'!J3641=\"\",\"\",IF(OR('TSA Input'!J3641=\"Yes\",'TSA Input'!J3641=\"Contingent\"),'TSA Input'!I3641,\"\"))","v":""},{"$f":"IF('TSA Input'!J3641=\"\",\"\",IF(OR('TSA Input'!J3641=\"Yes\",'TSA Input'!J3641=\"Contingent\"),'TSA Input'!C3641,\"\"))","v":""},{"$f":"IF('TSA Input'!J3641=\"\",\"\",IF(OR('TSA Input'!J3641=\"Yes\",'TSA Input'!J3641=\"Contingent\"),'TSA Input'!D3641,\"\"))","v":""},{"$f":"IF('TSA Input'!J3641=\"\",\"\",IF(OR('TSA Input'!J3641=\"Yes\",'TSA Input'!J3641=\"Contingent\"),'TSA Input'!G3641,\"\"))","v":""},{"$f":"IF('TSA Input'!J3641=\"\",\"\",IF(OR('TSA Input'!J3641=\"Yes\",'TSA Input'!J3641=\"Contingent\"),'TSA Input'!F3641,\"\"))","v":""},"",{"$f":"IF('TSA Input'!J3641=\"\",\"\",IF(OR('TSA Input'!J3641=\"Yes\",'TSA Input'!J3641=\"Contingent\"),'TSA Input'!D3641,\"\"))","v":""},{"$f":"IF('TSA Input'!J3641=\"\",\"\",IF(OR('TSA Input'!J3641=\"Yes\",'TSA Input'!J3641=\"Contingent\"),'TSA Input'!G3641,\"\"))","v":""},{"$f":"IF('TSA Input'!J3641=\"\",\"\",IF(OR('TSA Input'!J3641=\"Yes\",'TSA Input'!J3641=\"Contingent\"),'TSA Input'!F3641,\"\"))","v":""},"","Required","Required"]
["",null,{"$f":"IF('TSA Input'!J3642=\"\",\"\",IF(OR('TSA Input'!J3642=\"Yes\",'TSA Input'!J3642=\"Contingent\"),'TSA Input'!B3642,\"Ineligible\"))","v":""},{"$f":"IF('TSA Input'!J3642=\"\",\"\",IF(OR('TSA Input'!J3642=\"Yes\",'TSA Input'!J3642=\"Contingent\"),'TSA Input'!I3642,\"\"))","v":""},{"$f":"IF('TSA Input'!J3642=\"\",\"\",IF(OR('TSA Input'!J3642=\"Yes\",'TSA Input'!J3642=\"Contingent\"),'TSA Input'!C3642,\"\"))","v":""},{"$f":"IF('TSA Input'!J3642=\"\",\"\",IF(OR('TSA Input'!J3642=\"Yes\",'TSA Input'!J3642=\"Contingent\"),'TSA Input'!D3642,\"\"))","v":""},{"$f":"IF('TSA Input'!J3642=\"\",\"\",IF(OR('TSA Input'!J3642=\"Yes\",'TSA Input'!J3642=\"Contingent\"),'TSA Input'!G3642,\"\"))","v":""},{"$f":"IF('TSA Input'!J3642=\"\",\"\",IF(OR('TSA Input'!J3642=\"Yes\",'TSA Input'!J3642=\"Contingent\"),'TSA Input'!F3642,\"\"))","v":""},"",{"$f":"IF('TSA Input'!J3642=\"\",\"\",IF(OR('TSA Input'!J3642=\"Yes\",'TSA Input'!J3642=\"Contingent\"),'TSA Input'!D3642,\"\"))","v":""},{"$f":"IF('TSA Input'!J3642=\"\",\"\",IF(OR('TSA Input'!J3642=\"Yes\",'TSA Input'!J3642=\"Contingent\"),'TSA Input'!G3642,\"\"))","v":""},{"$f":"IF('TSA Input'!J3642=\"\",\"\",IF(OR('TSA Input'!J3642=\"Yes\",'TSA Input'!J3642=\"Contingent\"),'TSA Input'!F3642,\"\"))","v":""},"","Required","Required"]
["",null,{"$f":"IF('TSA Input'!J3643=\"\",\"\",IF(OR('TSA Input'!J3643=\"Yes\",'TSA Input'!J3643=\"Contingent\"),'TSA Input'!B3643,\"Ineligible\"))","v":""},{"$f":"IF('TSA Input'!J3643=\"\",\"\",IF(OR('TSA Input'!J3643=\"Yes\",'TSA Input'!J3643=\"Contingent\"),'TSA Input'!I3643,\"\"))","v":""},{"$f":"IF('TSA Input'!J3643=\"\",\"\",IF(OR('TSA Input'!J3643=\"Yes\",'TSA Input'!J3643=\"Contingent\"),'TSA Input'!C3643,\"\"))","v":""},{"$f":"IF('TSA Input'!J3643=\"\",\"\",IF(OR('TSA Input'!J3643=\"Yes\",'TSA Input'!J3643=\"Contingent\"),'TSA Input'!D3643,\"\"))","v":""},{"$f":"IF('TSA Input'!J3643=\"\",\"\",IF(OR('TSA Input'!J3643=\"Yes\",'TSA Input'!J3643=\"Contingent\"),'TSA Input'!G3643,\"\"))","v":""},{"$f":"IF('TSA Input'!J3643=\"\",\"\",IF(OR('TSA Input'!J3643=\"Yes\",'TSA Input'!J3643=\"Contingent\"),'TSA Input'!F3643,\"\"))","v":""},"",{"$f":"IF('TSA Input'!J3643=\"\",\"\",IF(OR('TSA Input'!J3643=\"Yes\",'TSA Input'!J3643=\"Contingent\"),'TSA Input'!D3643,\"\"))","v":""},{"$f":"IF('TSA Input'!J3643=\"\",\"\",IF(OR('TSA Input'!J3643=\"Yes\",'TSA Input'!J3643=\"Contingent\"),'TSA Input'!G3643,\"\"))","v":""},{"$f":"IF('TSA Input'!J3643=\"\",\"\",IF(OR('TSA Input'!J3643=\"Yes\",'TSA Input'!J3643=\"Contingent\"),'TSA Input'!F3643,\"\"))","v":""},"","Required","Required"]
["",null,{"$f":"IF('TSA Input'!J3644=\"\",\"\",IF(OR('TSA Input'!J3644=\"Yes\",'TSA Input'!J3644=\"Contingent\"),'TSA Input'!B3644,\"Ineligible\"))","v":""},{"$f":"IF('TSA Input'!J3644=\"\",\"\",IF(OR('TSA Input'!J3644=\"Yes\",'TSA Input'!J3644=\"Contingent\"),'TSA Input'!I3644,\"\"))","v":""},{"$f":"IF('TSA Input'!J3644=\"\",\"\",IF(OR('TSA Input'!J3644=\"Yes\",'TSA Input'!J3644=\"Contingent\"),'TSA Input'!C3644,\"\"))","v":""},{"$f":"IF('TSA Input'!J3644=\"\",\"\",IF(OR('TSA Input'!J3644=\"Yes\",'TSA Input'!J3644=\"Contingent\"),'TSA Input'!D3644,\"\"))","v":""},{"$f":"IF('TSA Input'!J3644=\"\",\"\",IF(OR('TSA Input'!J3644=\"Yes\",'TSA Input'!J3644=\"Contingent\"),'TSA Input'!G3644,\"\"))","v":""},{"$f":"IF('TSA Input'!J3644=\"\",\"\",IF(OR('TSA Input'!J3644=\"Yes\",'TSA Input'!J3644=\"Contingent\"),'TSA Input'!F3644,\"\"))","v":""},"",{"$f":"IF('TSA Input'!J3644=\"\",\"\",IF(OR('TSA Input'!J3644=\"Yes\",'TSA Input'!J3644=\"Contingent\"),'TSA Input'!D3644,\"\"))","v":""},{"$f":"IF('TSA Input'!J3644=\"\",\"\",IF(OR('TSA Input'!J3644=\"Yes\",'TSA Input'!J3644=\"Contingent\"),'TSA Input'!G3644,\"\"))","v":""},{"$f":"IF('TSA Input'!J3644=\"\",\"\",IF(OR('TSA Input'!J3644=\"Yes\",'TSA Input'!J3644=\"Contingent\"),'TSA Input'!F3644,\"\"))","v":""},"","Required","Required"]
["",null,{"$f":"IF('TSA Input'!J3645=\"\",\"\",IF(OR('TSA Input'!J3645=\"Yes\",'TSA Input'!J3645=\"Contingent\"),'TSA Input'!B3645,\"Ineligible\"))","v":""},{"$f":"IF('TSA Input'!J3645=\"\",\"\",IF(OR('TSA Input'!J3645=\"Yes\",'TSA Input'!J3645=\"Contingent\"),'TSA Input'!I3645,\"\"))","v":""},{"$f":"IF('TSA Input'!J3645=\"\",\"\",IF(OR('TSA Input'!J3645=\"Yes\",'TSA Input'!J3645=\"Contingent\"),'TSA Input'!C3645,\"\"))","v":""},{"$f":"IF('TSA Input'!J3645=\"\",\"\",IF(OR('TSA Input'!J3645=\"Yes\",'TSA Input'!J3645=\"Contingent\"),'TSA Input'!D3645,\"\"))","v":""},{"$f":"IF('TSA Input'!J3645=\"\",\"\",IF(OR('TSA Input'!J3645=\"Yes\",'TSA Input'!J3645=\"Contingent\"),'TSA Input'!G3645,\"\"))","v":""},{"$f":"IF('TSA Input'!J3645=\"\",\"\",IF(OR('TSA Input'!J3645=\"Yes\",'TSA Input'!J3645=\"Contingent\"),'TSA Input'!F3645,\"\"))","v":""},"",{"$f":"IF('TSA Input'!J3645=\"\",\"\",IF(OR('TSA Input'!J3645=\"Yes\",'TSA Input'!J3645=\"Contingent\"),'TSA Input'!D3645,\"\"))","v":""},{"$f":"IF('TSA Input'!J3645=\"\",\"\",IF(OR('TSA Input'!J3645=\"Yes\",'TSA Input'!J3645=\"Contingent\"),'TSA Input'!G3645,\"\"))","v":""},{"$f":"IF('TSA Input'!J3645=\"\",\"\",IF(OR('TSA Input'!J3645=\"Yes\",'TSA Input'!J3645=\"Contingent\"),'TSA Input'!F3645,\"\"))","v":""},"","Required","Required"]
["",null,{"$f":"IF('TSA Input'!J3646=\"\",\"\",IF(OR('TSA Input'!J3646=\"Yes\",'TSA Input'!J3646=\"Contingent\"),'TSA Input'!B3646,\"Ineligible\"))","v":""},{"$f":"IF('TSA Input'!J3646=\"\",\"\",IF(OR('TSA Input'!J3646=\"Yes\",'TSA Input'!J3646=\"Contingent\"),'TSA Input'!I3646,\"\"))","v":""},{"$f":"IF('TSA Input'!J3646=\"\",\"\",IF(OR('TSA Input'!J3646=\"Yes\",'TSA Input'!J3646=\"Contingent\"),'TSA Input'!C3646,\"\"))","v":""},{"$f":"IF('TSA Input'!J3646=\"\",\"\",IF(OR('TSA Input'!J3646=\"Yes\",'TSA Input'!J3646=\"Contingent\"),'TSA Input'!D3646,\"\"))","v":""},{"$f":"IF('TSA Input'!J3646=\"\",\"\",IF(OR('TSA Input'!J3646=\"Yes\",'TSA Input'!J3646=\"Contingent\"),'TSA Input'!G3646,\"\"))","v":""},{"$f":"IF('TSA Input'!J3646=\"\",\"\",IF(OR('TSA Input'!J3646=\"Yes\",'TSA Input'!J3646=\"Contingent\"),'TSA Input'!F3646,\"\"))","v":""},"",{"$f":"IF('TSA Input'!J3646=\"\",\"\",IF(OR('TSA Input'!J3646=\"Yes\",'TSA Input'!J3646=\"Contingent\"),'TSA Input'!D3646,\"\"))","v":""},{"$f":"IF('TSA Input'!J3646=\"\",\"\",IF(OR('TSA Input'!J3646=\"Yes\",'TSA Input'!J3646=\"Contingent\"),'TSA Input'!G3646,\"\"))","v":""},{"$f":"IF('TSA Input'!J3646=\"\",\"\",IF(OR('TSA Input'!J3646=\"Yes\",'TSA Input'!J3646=\"Contingent\"),'TSA Input'!F3646,\"\"))","v":""},"","Required","Required"]
["",null,{"$f":"IF('TSA Input'!J3647=\"\",\"\",IF(OR('TSA Input'!J3647=\"Yes\",'TSA Input'!J3647=\"Contingent\"),'TSA Input'!B3647,\"Ineligible\"))","v":""},{"$f":"IF('TSA Input'!J3647=\"\",\"\",IF(OR('TSA Input'!J3647=\"Yes\",'TSA Input'!J3647=\"Contingent\"),'TSA Input'!I3647,\"\"))","v":""},{"$f":"IF('TSA Input'!J3647=\"\",\"\",IF(OR('TSA Input'!J3647=\"Yes\",'TSA Input'!J3647=\"Contingent\"),'TSA Input'!C3647,\"\"))","v":""},{"$f":"IF('TSA Input'!J3647=\"\",\"\",IF(OR('TSA Input'!J3647=\"Yes\",'TSA Input'!J3647=\"Contingent\"),'TSA Input'!D3647,\"\"))","v":""},{"$f":"IF('TSA Input'!J3647=\"\",\"\",IF(OR('TSA Input'!J3647=\"Yes\",'TSA Input'!J3647=\"Contingent\"),'TSA Input'!G3647,\"\"))","v":""},{"$f":"IF('TSA Input'!J3647=\"\",\"\",IF(OR('TSA Input'!J3647=\"Yes\",'TSA Input'!J3647=\"Contingent\"),'TSA Input'!F3647,\"\"))","v":""},"",{"$f":"IF('TSA Input'!J3647=\"\",\"\",IF(OR('TSA Input'!J3647=\"Yes\",'TSA Input'!J3647=\"Contingent\"),'TSA Input'!D3647,\"\"))","v":""},{"$f":"IF('TSA Input'!J3647=\"\",\"\",IF(OR('TSA Input'!J3647=\"Yes\",'TSA Input'!J3647=\"Contingent\"),'TSA Input'!G3647,\"\"))","v":""},{"$f":"IF('TSA Input'!J3647=\"\",\"\",IF(OR('TSA Input'!J3647=\"Yes\",'TSA Input'!J3647=\"Contingent\"),'TSA Input'!F3647,\"\"))","v":""},"","Required","Required"]
["",null,{"$f":"IF('TSA Input'!J3648=\"\",\"\",IF(OR('TSA Input'!J3648=\"Yes\",'TSA Input'!J3648=\"Contingent\"),'TSA Input'!B3648,\"Ineligible\"))","v":""},{"$f":"IF('TSA Input'!J3648=\"\",\"\",IF(OR('TSA Input'!J3648=\"Yes\",'TSA Input'!J3648=\"Contingent\"),'TSA Input'!I3648,\"\"))","v":""},{"$f":"IF('TSA Input'!J3648=\"\",\"\",IF(OR('TSA Input'!J3648=\"Yes\",'TSA Input'!J3648=\"Contingent\"),'TSA Input'!C3648,\"\"))","v":""},{"$f":"IF('TSA Input'!J3648=\"\",\"\",IF(OR('TSA Input'!J3648=\"Yes\",'TSA Input'!J3648=\"Contingent\"),'TSA Input'!D3648,\"\"))","v":""},{"$f":"IF('TSA Input'!J3648=\"\",\"\",IF(OR('TSA Input'!J3648=\"Yes\",'TSA Input'!J3648=\"Contingent\"),'TSA Input'!G3648,\"\"))","v":""},{"$f":"IF('TSA Input'!J3648=\"\",\"\",IF(OR('TSA Input'!J3648=\"Yes\",'TSA Input'!J3648=\"Contingent\"),'TSA Input'!F3648,\"\"))","v":""},"",{"$f":"IF('TSA Input'!J3648=\"\",\"\",IF(OR('TSA Input'!J3648=\"Yes\",'TSA Input'!J3648=\"Contingent\"),'TSA Input'!D3648,\"\"))","v":""},{"$f":"IF('TSA Input'!J3648=\"\",\"\",IF(OR('TSA Input'!J3648=\"Yes\",'TSA Input'!J3648=\"Contingent\"),'TSA Input'!G3648,\"\"))","v":""},{"$f":"IF('TSA Input'!J3648=\"\",\"\",IF(OR('TSA Input'!J3648=\"Yes\",'TSA Input'!J3648=\"Contingent\"),'TSA Input'!F3648,\"\"))","v":""},"","Required","Required"]
["",null,{"$f":"IF('TSA Input'!J3649=\"\",\"\",IF(OR('TSA Input'!J3649=\"Yes\",'TSA Input'!J3649=\"Contingent\"),'TSA Input'!B3649,\"Ineligible\"))","v":""},{"$f":"IF('TSA Input'!J3649=\"\",\"\",IF(OR('TSA Input'!J3649=\"Yes\",'TSA Input'!J3649=\"Contingent\"),'TSA Input'!I3649,\"\"))","v":""},{"$f":"IF('TSA Input'!J3649=\"\",\"\",IF(OR('TSA Input'!J3649=\"Yes\",'TSA Input'!J3649=\"Contingent\"),'TSA Input'!C3649,\"\"))","v":""},{"$f":"IF('TSA Input'!J3649=\"\",\"\",IF(OR('TSA Input'!J3649=\"Yes\",'TSA Input'!J3649=\"Contingent\"),'TSA Input'!D3649,\"\"))","v":""},{"$f":"IF('TSA Input'!J3649=\"\",\"\",IF(OR('TSA Input'!J3649=\"Yes\",'TSA Input'!J3649=\"Contingent\"),'TSA Input'!G3649,\"\"))","v":""},{"$f":"IF('TSA Input'!J3649=\"\",\"\",IF(OR('TSA Input'!J3649=\"Yes\",'TSA Input'!J3649=\"Contingent\"),'TSA Input'!F3649,\"\"))","v":""},"",{"$f":"IF('TSA Input'!J3649=\"\",\"\",IF(OR('TSA Input'!J3649=\"Yes\",'TSA Input'!J3649=\"Contingent\"),'TSA Input'!D3649,\"\"))","v":""},{"$f":"IF('TSA Input'!J3649=\"\",\"\",IF(OR('TSA Input'!J3649=\"Yes\",'TSA Input'!J3649=\"Contingent\"),'TSA Input'!G3649,\"\"))","v":""},{"$f":"IF('TSA Input'!J3649=\"\",\"\",IF(OR('TSA Input'!J3649=\"Yes\",'TSA Input'!J3649=\"Contingent\"),'TSA Input'!F3649,\"\"))","v":""},"","Required","Required"]
["",null,{"$f":"IF('TSA Input'!J3650=\"\",\"\",IF(OR('TSA Input'!J3650=\"Yes\",'TSA Input'!J3650=\"Contingent\"),'TSA Input'!B3650,\"Ineligible\"))","v":""},{"$f":"IF('TSA Input'!J3650=\"\",\"\",IF(OR('TSA Input'!J3650=\"Yes\",'TSA Input'!J3650=\"Contingent\"),'TSA Input'!I3650,\"\"))","v":""},{"$f":"IF('TSA Input'!J3650=\"\",\"\",IF(OR('TSA Input'!J3650=\"Yes\",'TSA Input'!J3650=\"Contingent\"),'TSA Input'!C3650,\"\"))","v":""},{"$f":"IF('TSA Input'!J3650=\"\",\"\",IF(OR('TSA Input'!J3650=\"Yes\",'TSA Input'!J3650=\"Contingent\"),'TSA Input'!D3650,\"\"))","v":""},{"$f":"IF('TSA Input'!J3650=\"\",\"\",IF(OR('TSA Input'!J3650=\"Yes\",'TSA Input'!J3650=\"Contingent\"),'TSA Input'!G3650,\"\"))","v":""},{"$f":"IF('TSA Input'!J3650=\"\",\"\",IF(OR('TSA Input'!J3650=\"Yes\",'TSA Input'!J3650=\"Contingent\"),'TSA Input'!F3650,\"\"))","v":""},"",{"$f":"IF('TSA Input'!J3650=\"\",\"\",IF(OR('TSA Input'!J3650=\"Yes\",'TSA Input'!J3650=\"Contingent\"),'TSA Input'!D3650,\"\"))","v":""},{"$f":"IF('TSA Input'!J3650=\"\",\"\",IF(OR('TSA Input'!J3650=\"Yes\",'TSA Input'!J3650=\"Contingent\"),'TSA Input'!G3650,\"\"))","v":""},{"$f":"IF('TSA Input'!J3650=\"\",\"\",IF(OR('TSA Input'!J3650=\"Yes\",'TSA Input'!J3650=\"Contingent\"),'TSA Input'!F3650,\"\"))","v":""},"","Required","Required"]
["",null,{"$f":"IF('TSA Input'!J3651=\"\",\"\",IF(OR('TSA Input'!J3651=\"Yes\",'TSA Input'!J3651=\"Contingent\"),'TSA Input'!B3651,\"Ineligible\"))","v":""},{"$f":"IF('TSA Input'!J3651=\"\",\"\",IF(OR('TSA Input'!J3651=\"Yes\",'TSA Input'!J3651=\"Contingent\"),'TSA Input'!I3651,\"\"))","v":""},{"$f":"IF('TSA Input'!J3651=\"\",\"\",IF(OR('TSA Input'!J3651=\"Yes\",'TSA Input'!J3651=\"Contingent\"),'TSA Input'!C3651,\"\"))","v":""},{"$f":"IF('TSA Input'!J3651=\"\",\"\",IF(OR('TSA Input'!J3651=\"Yes\",'TSA Input'!J3651=\"Contingent\"),'TSA Input'!D3651,\"\"))","v":""},{"$f":"IF('TSA Input'!J3651=\"\",\"\",IF(OR('TSA Input'!J3651=\"Yes\",'TSA Input'!J3651=\"Contingent\"),'TSA Input'!G3651,\"\"))","v":""},{"$f":"IF('TSA Input'!J3651=\"\",\"\",IF(OR('TSA Input'!J3651=\"Yes\",'TSA Input'!J3651=\"Contingent\"),'TSA Input'!F3651,\"\"))","v":""},"",{"$f":"IF('TSA Input'!J3651=\"\",\"\",IF(OR('TSA Input'!J3651=\"Yes\",'TSA Input'!J3651=\"Contingent\"),'TSA Input'!D3651,\"\"))","v":""},{"$f":"IF('TSA Input'!J3651=\"\",\"\",IF(OR('TSA Input'!J3651=\"Yes\",'TSA Input'!J3651=\"Contingent\"),'TSA Input'!G3651,\"\"))","v":""},{"$f":"IF('TSA Input'!J3651=\"\",\"\",IF(OR('TSA Input'!J3651=\"Yes\",'TSA Input'!J3651=\"Contingent\"),'TSA Input'!F3651,\"\"))","v":""},"","Required","Required"]
["",null,{"$f":"IF('TSA Input'!J3652=\"\",\"\",IF(OR('TSA Input'!J3652=\"Yes\",'TSA Input'!J3652=\"Contingent\"),'TSA Input'!B3652,\"Ineligible\"))","v":""},{"$f":"IF('TSA Input'!J3652=\"\",\"\",IF(OR('TSA Input'!J3652=\"Yes\",'TSA Input'!J3652=\"Contingent\"),'TSA Input'!I3652,\"\"))","v":""},{"$f":"IF('TSA Input'!J3652=\"\",\"\",IF(OR('TSA Input'!J3652=\"Yes\",'TSA Input'!J3652=\"Contingent\"),'TSA Input'!C3652,\"\"))","v":""},{"$f":"IF('TSA Input'!J3652=\"\",\"\",IF(OR('TSA Input'!J3652=\"Yes\",'TSA Input'!J3652=\"Contingent\"),'TSA Input'!D3652,\"\"))","v":""},{"$f":"IF('TSA Input'!J3652=\"\",\"\",IF(OR('TSA Input'!J3652=\"Yes\",'TSA Input'!J3652=\"Contingent\"),'TSA Input'!G3652,\"\"))","v":""},{"$f":"IF('TSA Input'!J3652=\"\",\"\",IF(OR('TSA Input'!J3652=\"Yes\",'TSA Input'!J3652=\"Contingent\"),'TSA Input'!F3652,\"\"))","v":""},{"$f":"IF($C3690=\"\",\"\",SUM(F3690:H3690))","v":""},{"$f":"IF('TSA Input'!J3652=\"\",\"\",IF(OR('TSA Input'!J3652=\"Yes\",'TSA Input'!J3652=\"Contingent\"),'TSA Input'!D3652,\"\"))","v":""},{"$f":"IF('TSA Input'!J3652=\"\",\"\",IF(OR('TSA Input'!J3652=\"Yes\",'TSA Input'!J3652=\"Contingent\"),'TSA Input'!G3652,\"\"))","v":""},{"$f":"IF('TSA Input'!J3652=\"\",\"\",IF(OR('TSA Input'!J3652=\"Yes\",'TSA Input'!J3652=\"Contingent\"),'TSA Input'!F3652,\"\"))","v":""},{"$f":"IF($C3690=\"\",\"\",SUM(J3690:L3690))","v":""},"Required","Required"]
["",null,{"$f":"IF('TSA Input'!J3653=\"\",\"\",IF(OR('TSA Input'!J3653=\"Yes\",'TSA Input'!J3653=\"Contingent\"),'TSA Input'!B3653,\"Ineligible\"))","v":""},{"$f":"IF('TSA Input'!J3653=\"\",\"\",IF(OR('TSA Input'!J3653=\"Yes\",'TSA Input'!J3653=\"Contingent\"),'TSA Input'!I3653,\"\"))","v":""},{"$f":"IF('TSA Input'!J3653=\"\",\"\",IF(OR('TSA Input'!J3653=\"Yes\",'TSA Input'!J3653=\"Contingent\"),'TSA Input'!C3653,\"\"))","v":""},{"$f":"IF('TSA Input'!J3653=\"\",\"\",IF(OR('TSA Input'!J3653=\"Yes\",'TSA Input'!J3653=\"Contingent\"),'TSA Input'!D3653,\"\"))","v":""},{"$f":"IF('TSA Input'!J3653=\"\",\"\",IF(OR('TSA Input'!J3653=\"Yes\",'TSA Input'!J3653=\"Contingent\"),'TSA Input'!G3653,\"\"))","v":""},{"$f":"IF('TSA Input'!J3653=\"\",\"\",IF(OR('TSA Input'!J3653=\"Yes\",'TSA Input'!J3653=\"Contingent\"),'TSA Input'!F3653,\"\"))","v":""},"",{"$f":"IF('TSA Input'!J3653=\"\",\"\",IF(OR('TSA Input'!J3653=\"Yes\",'TSA Input'!J3653=\"Contingent\"),'TSA Input'!D3653,\"\"))","v":""},{"$f":"IF('TSA Input'!J3653=\"\",\"\",IF(OR('TSA Input'!J3653=\"Yes\",'TSA Input'!J3653=\"Contingent\"),'TSA Input'!G3653,\"\"))","v":""},{"$f":"IF('TSA Input'!J3653=\"\",\"\",IF(OR('TSA Input'!J3653=\"Yes\",'TSA Input'!J3653=\"Contingent\"),'TSA Input'!F3653,\"\"))","v":""},"","Required","Required"]
["",null,{"$f":"IF('TSA Input'!J3654=\"\",\"\",IF(OR('TSA Input'!J3654=\"Yes\",'TSA Input'!J3654=\"Contingent\"),'TSA Input'!B3654,\"Ineligible\"))","v":""},{"$f":"IF('TSA Input'!J3654=\"\",\"\",IF(OR('TSA Input'!J3654=\"Yes\",'TSA Input'!J3654=\"Contingent\"),'TSA Input'!I3654,\"\"))","v":""},{"$f":"IF('TSA Input'!J3654=\"\",\"\",IF(OR('TSA Input'!J3654=\"Yes\",'TSA Input'!J3654=\"Contingent\"),'TSA Input'!C3654,\"\"))","v":""},{"$f":"IF('TSA Input'!J3654=\"\",\"\",IF(OR('TSA Input'!J3654=\"Yes\",'TSA Input'!J3654=\"Contingent\"),'TSA Input'!D3654,\"\"))","v":""},{"$f":"IF('TSA Input'!J3654=\"\",\"\",IF(OR('TSA Input'!J3654=\"Yes\",'TSA Input'!J3654=\"Contingent\"),'TSA Input'!G3654,\"\"))","v":""},{"$f":"IF('TSA Input'!J3654=\"\",\"\",IF(OR('TSA Input'!J3654=\"Yes\",'TSA Input'!J3654=\"Contingent\"),'TSA Input'!F3654,\"\"))","v":""},"",{"$f":"IF('TSA Input'!J3654=\"\",\"\",IF(OR('TSA Input'!J3654=\"Yes\",'TSA Input'!J3654=\"Contingent\"),'TSA Input'!D3654,\"\"))","v":""},{"$f":"IF('TSA Input'!J3654=\"\",\"\",IF(OR('TSA Input'!J3654=\"Yes\",'TSA Input'!J3654=\"Contingent\"),'TSA Input'!G3654,\"\"))","v":""},{"$f":"IF('TSA Input'!J3654=\"\",\"\",IF(OR('TSA Input'!J3654=\"Yes\",'TSA Input'!J3654=\"Contingent\"),'TSA Input'!F3654,\"\"))","v":""},"","Required","Required"]
["",null,{"$f":"IF('TSA Input'!J3655=\"\",\"\",IF(OR('TSA Input'!J3655=\"Yes\",'TSA Input'!J3655=\"Contingent\"),'TSA Input'!B3655,\"Ineligible\"))","v":""},{"$f":"IF('TSA Input'!J3655=\"\",\"\",IF(OR('TSA Input'!J3655=\"Yes\",'TSA Input'!J3655=\"Contingent\"),'TSA Input'!I3655,\"\"))","v":""},{"$f":"IF('TSA Input'!J3655=\"\",\"\",IF(OR('TSA Input'!J3655=\"Yes\",'TSA Input'!J3655=\"Contingent\"),'TSA Input'!C3655,\"\"))","v":""},{"$f":"IF('TSA Input'!J3655=\"\",\"\",IF(OR('TSA Input'!J3655=\"Yes\",'TSA Input'!J3655=\"Contingent\"),'TSA Input'!D3655,\"\"))","v":""},{"$f":"IF('TSA Input'!J3655=\"\",\"\",IF(OR('TSA Input'!J3655=\"Yes\",'TSA Input'!J3655=\"Contingent\"),'TSA Input'!G3655,\"\"))","v":""},{"$f":"IF('TSA Input'!J3655=\"\",\"\",IF(OR('TSA Input'!J3655=\"Yes\",'TSA Input'!J3655=\"Contingent\"),'TSA Input'!F3655,\"\"))","v":""},"",{"$f":"IF('TSA Input'!J3655=\"\",\"\",IF(OR('TSA Input'!J3655=\"Yes\",'TSA Input'!J3655=\"Contingent\"),'TSA Input'!D3655,\"\"))","v":""},{"$f":"IF('TSA Input'!J3655=\"\",\"\",IF(OR('TSA Input'!J3655=\"Yes\",'TSA Input'!J3655=\"Contingent\"),'TSA Input'!G3655,\"\"))","v":""},{"$f":"IF('TSA Input'!J3655=\"\",\"\",IF(OR('TSA Input'!J3655=\"Yes\",'TSA Input'!J3655=\"Contingent\"),'TSA Input'!F3655,\"\"))","v":""},"","Required","Required"]
["",null,{"$f":"IF('TSA Input'!J3656=\"\",\"\",IF(OR('TSA Input'!J3656=\"Yes\",'TSA Input'!J3656=\"Contingent\"),'TSA Input'!B3656,\"Ineligible\"))","v":""},{"$f":"IF('TSA Input'!J3656=\"\",\"\",IF(OR('TSA Input'!J3656=\"Yes\",'TSA Input'!J3656=\"Contingent\"),'TSA Input'!I3656,\"\"))","v":""},{"$f":"IF('TSA Input'!J3656=\"\",\"\",IF(OR('TSA Input'!J3656=\"Yes\",'TSA Input'!J3656=\"Contingent\"),'TSA Input'!C3656,\"\"))","v":""},{"$f":"IF('TSA Input'!J3656=\"\",\"\",IF(OR('TSA Input'!J3656=\"Yes\",'TSA Input'!J3656=\"Contingent\"),'TSA Input'!D3656,\"\"))","v":""},{"$f":"IF('TSA Input'!J3656=\"\",\"\",IF(OR('TSA Input'!J3656=\"Yes\",'TSA Input'!J3656=\"Contingent\"),'TSA Input'!G3656,\"\"))","v":""},{"$f":"IF('TSA Input'!J3656=\"\",\"\",IF(OR('TSA Input'!J3656=\"Yes\",'TSA Input'!J3656=\"Contingent\"),'TSA Input'!F3656,\"\"))","v":""},"",{"$f":"IF('TSA Input'!J3656=\"\",\"\",IF(OR('TSA Input'!J3656=\"Yes\",'TSA Input'!J3656=\"Contingent\"),'TSA Input'!D3656,\"\"))","v":""},{"$f":"IF('TSA Input'!J3656=\"\",\"\",IF(OR('TSA Input'!J3656=\"Yes\",'TSA Input'!J3656=\"Contingent\"),'TSA Input'!G3656,\"\"))","v":""},{"$f":"IF('TSA Input'!J3656=\"\",\"\",IF(OR('TSA Input'!J3656=\"Yes\",'TSA Input'!J3656=\"Contingent\"),'TSA Input'!F3656,\"\"))","v":""},"","Required","Required"]
["",null,{"$f":"IF('TSA Input'!J3657=\"\",\"\",IF(OR('TSA Input'!J3657=\"Yes\",'TSA Input'!J3657=\"Contingent\"),'TSA Input'!B3657,\"Ineligible\"))","v":""},{"$f":"IF('TSA Input'!J3657=\"\",\"\",IF(OR('TSA Input'!J3657=\"Yes\",'TSA Input'!J3657=\"Contingent\"),'TSA Input'!I3657,\"\"))","v":""},{"$f":"IF('TSA Input'!J3657=\"\",\"\",IF(OR('TSA Input'!J3657=\"Yes\",'TSA Input'!J3657=\"Contingent\"),'TSA Input'!C3657,\"\"))","v":""},{"$f":"IF('TSA Input'!J3657=\"\",\"\",IF(OR('TSA Input'!J3657=\"Yes\",'TSA Input'!J3657=\"Contingent\"),'TSA Input'!D3657,\"\"))","v":""},{"$f":"IF('TSA Input'!J3657=\"\",\"\",IF(OR('TSA Input'!J3657=\"Yes\",'TSA Input'!J3657=\"Contingent\"),'TSA Input'!G3657,\"\"))","v":""},{"$f":"IF('TSA Input'!J3657=\"\",\"\",IF(OR('TSA Input'!J3657=\"Yes\",'TSA Input'!J3657=\"Contingent\"),'TSA Input'!F3657,\"\"))","v":""},"",{"$f":"IF('TSA Input'!J3657=\"\",\"\",IF(OR('TSA Input'!J3657=\"Yes\",'TSA Input'!J3657=\"Contingent\"),'TSA Input'!D3657,\"\"))","v":""},{"$f":"IF('TSA Input'!J3657=\"\",\"\",IF(OR('TSA Input'!J3657=\"Yes\",'TSA Input'!J3657=\"Contingent\"),'TSA Input'!G3657,\"\"))","v":""},{"$f":"IF('TSA Input'!J3657=\"\",\"\",IF(OR('TSA Input'!J3657=\"Yes\",'TSA Input'!J3657=\"Contingent\"),'TSA Input'!F3657,\"\"))","v":""},"","Required","Required"]
["",null,{"$f":"IF('TSA Input'!J3658=\"\",\"\",IF(OR('TSA Input'!J3658=\"Yes\",'TSA Input'!J3658=\"Contingent\"),'TSA Input'!B3658,\"Ineligible\"))","v":""},{"$f":"IF('TSA Input'!J3658=\"\",\"\",IF(OR('TSA Input'!J3658=\"Yes\",'TSA Input'!J3658=\"Contingent\"),'TSA Input'!I3658,\"\"))","v":""},{"$f":"IF('TSA Input'!J3658=\"\",\"\",IF(OR('TSA Input'!J3658=\"Yes\",'TSA Input'!J3658=\"Contingent\"),'TSA Input'!C3658,\"\"))","v":""},{"$f":"IF('TSA Input'!J3658=\"\",\"\",IF(OR('TSA Input'!J3658=\"Yes\",'TSA Input'!J3658=\"Contingent\"),'TSA Input'!D3658,\"\"))","v":""},{"$f":"IF('TSA Input'!J3658=\"\",\"\",IF(OR('TSA Input'!J3658=\"Yes\",'TSA Input'!J3658=\"Contingent\"),'TSA Input'!G3658,\"\"))","v":""},{"$f":"IF('TSA Input'!J3658=\"\",\"\",IF(OR('TSA Input'!J3658=\"Yes\",'TSA Input'!J3658=\"Contingent\"),'TSA Input'!F3658,\"\"))","v":""},"",{"$f":"IF('TSA Input'!J3658=\"\",\"\",IF(OR('TSA Input'!J3658=\"Yes\",'TSA Input'!J3658=\"Contingent\"),'TSA Input'!D3658,\"\"))","v":""},{"$f":"IF('TSA Input'!J3658=\"\",\"\",IF(OR('TSA Input'!J3658=\"Yes\",'TSA Input'!J3658=\"Contingent\"),'TSA Input'!G3658,\"\"))","v":""},{"$f":"IF('TSA Input'!J3658=\"\",\"\",IF(OR('TSA Input'!J3658=\"Yes\",'TSA Input'!J3658=\"Contingent\"),'TSA Input'!F3658,\"\"))","v":""},"","Required","Required"]
["",null,{"$f":"IF('TSA Input'!J3659=\"\",\"\",IF(OR('TSA Input'!J3659=\"Yes\",'TSA Input'!J3659=\"Contingent\"),'TSA Input'!B3659,\"Ineligible\"))","v":""},{"$f":"IF('TSA Input'!J3659=\"\",\"\",IF(OR('TSA Input'!J3659=\"Yes\",'TSA Input'!J3659=\"Contingent\"),'TSA Input'!I3659,\"\"))","v":""},{"$f":"IF('TSA Input'!J3659=\"\",\"\",IF(OR('TSA Input'!J3659=\"Yes\",'TSA Input'!J3659=\"Contingent\"),'TSA Input'!C3659,\"\"))","v":""},{"$f":"IF('TSA Input'!J3659=\"\",\"\",IF(OR('TSA Input'!J3659=\"Yes\",'TSA Input'!J3659=\"Contingent\"),'TSA Input'!D3659,\"\"))","v":""},{"$f":"IF('TSA Input'!J3659=\"\",\"\",IF(OR('TSA Input'!J3659=\"Yes\",'TSA Input'!J3659=\"Contingent\"),'TSA Input'!G3659,\"\"))","v":""},{"$f":"IF('TSA Input'!J3659=\"\",\"\",IF(OR('TSA Input'!J3659=\"Yes\",'TSA Input'!J3659=\"Contingent\"),'TSA Input'!F3659,\"\"))","v":""},"",{"$f":"IF('TSA Input'!J3659=\"\",\"\",IF(OR('TSA Input'!J3659=\"Yes\",'TSA Input'!J3659=\"Contingent\"),'TSA Input'!D3659,\"\"))","v":""},{"$f":"IF('TSA Input'!J3659=\"\",\"\",IF(OR('TSA Input'!J3659=\"Yes\",'TSA Input'!J3659=\"Contingent\"),'TSA Input'!G3659,\"\"))","v":""},{"$f":"IF('TSA Input'!J3659=\"\",\"\",IF(OR('TSA Input'!J3659=\"Yes\",'TSA Input'!J3659=\"Contingent\"),'TSA Input'!F3659,\"\"))","v":""},"","Required","Required"]
["",null,{"$f":"IF('TSA Input'!J3660=\"\",\"\",IF(OR('TSA Input'!J3660=\"Yes\",'TSA Input'!J3660=\"Contingent\"),'TSA Input'!B3660,\"Ineligible\"))","v":""},{"$f":"IF('TSA Input'!J3660=\"\",\"\",IF(OR('TSA Input'!J3660=\"Yes\",'TSA Input'!J3660=\"Contingent\"),'TSA Input'!I3660,\"\"))","v":""},{"$f":"IF('TSA Input'!J3660=\"\",\"\",IF(OR('TSA Input'!J3660=\"Yes\",'TSA Input'!J3660=\"Contingent\"),'TSA Input'!C3660,\"\"))","v":""},{"$f":"IF('TSA Input'!J3660=\"\",\"\",IF(OR('TSA Input'!J3660=\"Yes\",'TSA Input'!J3660=\"Contingent\"),'TSA Input'!D3660,\"\"))","v":""},{"$f":"IF('TSA Input'!J3660=\"\",\"\",IF(OR('TSA Input'!J3660=\"Yes\",'TSA Input'!J3660=\"Contingent\"),'TSA Input'!G3660,\"\"))","v":""},{"$f":"IF('TSA Input'!J3660=\"\",\"\",IF(OR('TSA Input'!J3660=\"Yes\",'TSA Input'!J3660=\"Contingent\"),'TSA Input'!F3660,\"\"))","v":""},"",{"$f":"IF('TSA Input'!J3660=\"\",\"\",IF(OR('TSA Input'!J3660=\"Yes\",'TSA Input'!J3660=\"Contingent\"),'TSA Input'!D3660,\"\"))","v":""},{"$f":"IF('TSA Input'!J3660=\"\",\"\",IF(OR('TSA Input'!J3660=\"Yes\",'TSA Input'!J3660=\"Contingent\"),'TSA Input'!G3660,\"\"))","v":""},{"$f":"IF('TSA Input'!J3660=\"\",\"\",IF(OR('TSA Input'!J3660=\"Yes\",'TSA Input'!J3660=\"Contingent\"),'TSA Input'!F3660,\"\"))","v":""},"","Required","Required"]
["",null,{"$f":"IF('TSA Input'!J3661=\"\",\"\",IF(OR('TSA Input'!J3661=\"Yes\",'TSA Input'!J3661=\"Contingent\"),'TSA Input'!B3661,\"Ineligible\"))","v":""},{"$f":"IF('TSA Input'!J3661=\"\",\"\",IF(OR('TSA Input'!J3661=\"Yes\",'TSA Input'!J3661=\"Contingent\"),'TSA Input'!I3661,\"\"))","v":""},{"$f":"IF('TSA Input'!J3661=\"\",\"\",IF(OR('TSA Input'!J3661=\"Yes\",'TSA Input'!J3661=\"Contingent\"),'TSA Input'!C3661,\"\"))","v":""},{"$f":"IF('TSA Input'!J3661=\"\",\"\",IF(OR('TSA Input'!J3661=\"Yes\",'TSA Input'!J3661=\"Contingent\"),'TSA Input'!D3661,\"\"))","v":""},{"$f":"IF('TSA Input'!J3661=\"\",\"\",IF(OR('TSA Input'!J3661=\"Yes\",'TSA Input'!J3661=\"Contingent\"),'TSA Input'!G3661,\"\"))","v":""},{"$f":"IF('TSA Input'!J3661=\"\",\"\",IF(OR('TSA Input'!J3661=\"Yes\",'TSA Input'!J3661=\"Contingent\"),'TSA Input'!F3661,\"\"))","v":""},"",{"$f":"IF('TSA Input'!J3661=\"\",\"\",IF(OR('TSA Input'!J3661=\"Yes\",'TSA Input'!J3661=\"Contingent\"),'TSA Input'!D3661,\"\"))","v":""},{"$f":"IF('TSA Input'!J3661=\"\",\"\",IF(OR('TSA Input'!J3661=\"Yes\",'TSA Input'!J3661=\"Contingent\"),'TSA Input'!G3661,\"\"))","v":""},{"$f":"IF('TSA Input'!J3661=\"\",\"\",IF(OR('TSA Input'!J3661=\"Yes\",'TSA Input'!J3661=\"Contingent\"),'TSA Input'!F3661,\"\"))","v":""},"","Required","Required"]
["",null,{"$f":"IF('TSA Input'!J3662=\"\",\"\",IF(OR('TSA Input'!J3662=\"Yes\",'TSA Input'!J3662=\"Contingent\"),'TSA Input'!B3662,\"Ineligible\"))","v":""},{"$f":"IF('TSA Input'!J3662=\"\",\"\",IF(OR('TSA Input'!J3662=\"Yes\",'TSA Input'!J3662=\"Contingent\"),'TSA Input'!I3662,\"\"))","v":""},{"$f":"IF('TSA Input'!J3662=\"\",\"\",IF(OR('TSA Input'!J3662=\"Yes\",'TSA Input'!J3662=\"Contingent\"),'TSA Input'!C3662,\"\"))","v":""},{"$f":"IF('TSA Input'!J3662=\"\",\"\",IF(OR('TSA Input'!J3662=\"Yes\",'TSA Input'!J3662=\"Contingent\"),'TSA Input'!D3662,\"\"))","v":""},{"$f":"IF('TSA Input'!J3662=\"\",\"\",IF(OR('TSA Input'!J3662=\"Yes\",'TSA Input'!J3662=\"Contingent\"),'TSA Input'!G3662,\"\"))","v":""},{"$f":"IF('TSA Input'!J3662=\"\",\"\",IF(OR('TSA Input'!J3662=\"Yes\",'TSA Input'!J3662=\"Contingent\"),'TSA Input'!F3662,\"\"))","v":""},"",{"$f":"IF('TSA Input'!J3662=\"\",\"\",IF(OR('TSA Input'!J3662=\"Yes\",'TSA Input'!J3662=\"Contingent\"),'TSA Input'!D3662,\"\"))","v":""},{"$f":"IF('TSA Input'!J3662=\"\",\"\",IF(OR('TSA Input'!J3662=\"Yes\",'TSA Input'!J3662=\"Contingent\"),'TSA Input'!G3662,\"\"))","v":""},{"$f":"IF('TSA Input'!J3662=\"\",\"\",IF(OR('TSA Input'!J3662=\"Yes\",'TSA Input'!J3662=\"Contingent\"),'TSA Input'!F3662,\"\"))","v":""},"","Required","Required"]
["",null,{"$f":"IF('TSA Input'!J3663=\"\",\"\",IF(OR('TSA Input'!J3663=\"Yes\",'TSA Input'!J3663=\"Contingent\"),'TSA Input'!B3663,\"Ineligible\"))","v":""},{"$f":"IF('TSA Input'!J3663=\"\",\"\",IF(OR('TSA Input'!J3663=\"Yes\",'TSA Input'!J3663=\"Contingent\"),'TSA Input'!I3663,\"\"))","v":""},{"$f":"IF('TSA Input'!J3663=\"\",\"\",IF(OR('TSA Input'!J3663=\"Yes\",'TSA Input'!J3663=\"Contingent\"),'TSA Input'!C3663,\"\"))","v":""},{"$f":"IF('TSA Input'!J3663=\"\",\"\",IF(OR('TSA Input'!J3663=\"Yes\",'TSA Input'!J3663=\"Contingent\"),'TSA Input'!D3663,\"\"))","v":""},{"$f":"IF('TSA Input'!J3663=\"\",\"\",IF(OR('TSA Input'!J3663=\"Yes\",'TSA Input'!J3663=\"Contingent\"),'TSA Input'!G3663,\"\"))","v":""},{"$f":"IF('TSA Input'!J3663=\"\",\"\",IF(OR('TSA Input'!J3663=\"Yes\",'TSA Input'!J3663=\"Contingent\"),'TSA Input'!F3663,\"\"))","v":""},"",{"$f":"IF('TSA Input'!J3663=\"\",\"\",IF(OR('TSA Input'!J3663=\"Yes\",'TSA Input'!J3663=\"Contingent\"),'TSA Input'!D3663,\"\"))","v":""},{"$f":"IF('TSA Input'!J3663=\"\",\"\",IF(OR('TSA Input'!J3663=\"Yes\",'TSA Input'!J3663=\"Contingent\"),'TSA Input'!G3663,\"\"))","v":""},{"$f":"IF('TSA Input'!J3663=\"\",\"\",IF(OR('TSA Input'!J3663=\"Yes\",'TSA Input'!J3663=\"Contingent\"),'TSA Input'!F3663,\"\"))","v":""},"","Required","Required"]
["",null,{"$f":"IF('TSA Input'!J3664=\"\",\"\",IF(OR('TSA Input'!J3664=\"Yes\",'TSA Input'!J3664=\"Contingent\"),'TSA Input'!B3664,\"Ineligible\"))","v":""},{"$f":"IF('TSA Input'!J3664=\"\",\"\",IF(OR('TSA Input'!J3664=\"Yes\",'TSA Input'!J3664=\"Contingent\"),'TSA Input'!I3664,\"\"))","v":""},{"$f":"IF('TSA Input'!J3664=\"\",\"\",IF(OR('TSA Input'!J3664=\"Yes\",'TSA Input'!J3664=\"Contingent\"),'TSA Input'!C3664,\"\"))","v":""},{"$f":"IF('TSA Input'!J3664=\"\",\"\",IF(OR('TSA Input'!J3664=\"Yes\",'TSA Input'!J3664=\"Contingent\"),'TSA Input'!D3664,\"\"))","v":""},{"$f":"IF('TSA Input'!J3664=\"\",\"\",IF(OR('TSA Input'!J3664=\"Yes\",'TSA Input'!J3664=\"Contingent\"),'TSA Input'!G3664,\"\"))","v":""},{"$f":"IF('TSA Input'!J3664=\"\",\"\",IF(OR('TSA Input'!J3664=\"Yes\",'TSA Input'!J3664=\"Contingent\"),'TSA Input'!F3664,\"\"))","v":""},"",{"$f":"IF('TSA Input'!J3664=\"\",\"\",IF(OR('TSA Input'!J3664=\"Yes\",'TSA Input'!J3664=\"Contingent\"),'TSA Input'!D3664,\"\"))","v":""},{"$f":"IF('TSA Input'!J3664=\"\",\"\",IF(OR('TSA Input'!J3664=\"Yes\",'TSA Input'!J3664=\"Contingent\"),'TSA Input'!G3664,\"\"))","v":""},{"$f":"IF('TSA Input'!J3664=\"\",\"\",IF(OR('TSA Input'!J3664=\"Yes\",'TSA Input'!J3664=\"Contingent\"),'TSA Input'!F3664,\"\"))","v":""},"","Required","Required"]
["",null,{"$f":"IF('TSA Input'!J3665=\"\",\"\",IF(OR('TSA Input'!J3665=\"Yes\",'TSA Input'!J3665=\"Contingent\"),'TSA Input'!B3665,\"Ineligible\"))","v":""},{"$f":"IF('TSA Input'!J3665=\"\",\"\",IF(OR('TSA Input'!J3665=\"Yes\",'TSA Input'!J3665=\"Contingent\"),'TSA Input'!I3665,\"\"))","v":""},{"$f":"IF('TSA Input'!J3665=\"\",\"\",IF(OR('TSA Input'!J3665=\"Yes\",'TSA Input'!J3665=\"Contingent\"),'TSA Input'!C3665,\"\"))","v":""},{"$f":"IF('TSA Input'!J3665=\"\",\"\",IF(OR('TSA Input'!J3665=\"Yes\",'TSA Input'!J3665=\"Contingent\"),'TSA Input'!D3665,\"\"))","v":""},{"$f":"IF('TSA Input'!J3665=\"\",\"\",IF(OR('TSA Input'!J3665=\"Yes\",'TSA Input'!J3665=\"Contingent\"),'TSA Input'!G3665,\"\"))","v":""},{"$f":"IF('TSA Input'!J3665=\"\",\"\",IF(OR('TSA Input'!J3665=\"Yes\",'TSA Input'!J3665=\"Contingent\"),'TSA Input'!F3665,\"\"))","v":""},"",{"$f":"IF('TSA Input'!J3665=\"\",\"\",IF(OR('TSA Input'!J3665=\"Yes\",'TSA Input'!J3665=\"Contingent\"),'TSA Input'!D3665,\"\"))","v":""},{"$f":"IF('TSA Input'!J3665=\"\",\"\",IF(OR('TSA Input'!J3665=\"Yes\",'TSA Input'!J3665=\"Contingent\"),'TSA Input'!G3665,\"\"))","v":""},{"$f":"IF('TSA Input'!J3665=\"\",\"\",IF(OR('TSA Input'!J3665=\"Yes\",'TSA Input'!J3665=\"Contingent\"),'TSA Input'!F3665,\"\"))","v":""},"","Required","Required"]
["",null,{"$f":"IF('TSA Input'!J3666=\"\",\"\",IF(OR('TSA Input'!J3666=\"Yes\",'TSA Input'!J3666=\"Contingent\"),'TSA Input'!B3666,\"Ineligible\"))","v":""},{"$f":"IF('TSA Input'!J3666=\"\",\"\",IF(OR('TSA Input'!J3666=\"Yes\",'TSA Input'!J3666=\"Contingent\"),'TSA Input'!I3666,\"\"))","v":""},{"$f":"IF('TSA Input'!J3666=\"\",\"\",IF(OR('TSA Input'!J3666=\"Yes\",'TSA Input'!J3666=\"Contingent\"),'TSA Input'!C3666,\"\"))","v":""},{"$f":"IF('TSA Input'!J3666=\"\",\"\",IF(OR('TSA Input'!J3666=\"Yes\",'TSA Input'!J3666=\"Contingent\"),'TSA Input'!D3666,\"\"))","v":""},{"$f":"IF('TSA Input'!J3666=\"\",\"\",IF(OR('TSA Input'!J3666=\"Yes\",'TSA Input'!J3666=\"Contingent\"),'TSA Input'!G3666,\"\"))","v":""},{"$f":"IF('TSA Input'!J3666=\"\",\"\",IF(OR('TSA Input'!J3666=\"Yes\",'TSA Input'!J3666=\"Contingent\"),'TSA Input'!F3666,\"\"))","v":""},"",{"$f":"IF('TSA Input'!J3666=\"\",\"\",IF(OR('TSA Input'!J3666=\"Yes\",'TSA Input'!J3666=\"Contingent\"),'TSA Input'!D3666,\"\"))","v":""},{"$f":"IF('TSA Input'!J3666=\"\",\"\",IF(OR('TSA Input'!J3666=\"Yes\",'TSA Input'!J3666=\"Contingent\"),'TSA Input'!G3666,\"\"))","v":""},{"$f":"IF('TSA Input'!J3666=\"\",\"\",IF(OR('TSA Input'!J3666=\"Yes\",'TSA Input'!J3666=\"Contingent\"),'TSA Input'!F3666,\"\"))","v":""},"","Required","Required"]
["",null,{"$f":"IF('TSA Input'!J3667=\"\",\"\",IF(OR('TSA Input'!J3667=\"Yes\",'TSA Input'!J3667=\"Contingent\"),'TSA Input'!B3667,\"Ineligible\"))","v":""},{"$f":"IF('TSA Input'!J3667=\"\",\"\",IF(OR('TSA Input'!J3667=\"Yes\",'TSA Input'!J3667=\"Contingent\"),'TSA Input'!I3667,\"\"))","v":""},{"$f":"IF('TSA Input'!J3667=\"\",\"\",IF(OR('TSA Input'!J3667=\"Yes\",'TSA Input'!J3667=\"Contingent\"),'TSA Input'!C3667,\"\"))","v":""},{"$f":"IF('TSA Input'!J3667=\"\",\"\",IF(OR('TSA Input'!J3667=\"Yes\",'TSA Input'!J3667=\"Contingent\"),'TSA Input'!D3667,\"\"))","v":""},{"$f":"IF('TSA Input'!J3667=\"\",\"\",IF(OR('TSA Input'!J3667=\"Yes\",'TSA Input'!J3667=\"Contingent\"),'TSA Input'!G3667,\"\"))","v":""},{"$f":"IF('TSA Input'!J3667=\"\",\"\",IF(OR('TSA Input'!J3667=\"Yes\",'TSA Input'!J3667=\"Contingent\"),'TSA Input'!F3667,\"\"))","v":""},"",{"$f":"IF('TSA Input'!J3667=\"\",\"\",IF(OR('TSA Input'!J3667=\"Yes\",'TSA Input'!J3667=\"Contingent\"),'TSA Input'!D3667,\"\"))","v":""},{"$f":"IF('TSA Input'!J3667=\"\",\"\",IF(OR('TSA Input'!J3667=\"Yes\",'TSA Input'!J3667=\"Contingent\"),'TSA Input'!G3667,\"\"))","v":""},{"$f":"IF('TSA Input'!J3667=\"\",\"\",IF(OR('TSA Input'!J3667=\"Yes\",'TSA Input'!J3667=\"Contingent\"),'TSA Input'!F3667,\"\"))","v":""},"","Required","Required"]
["",null,{"$f":"IF('TSA Input'!J3668=\"\",\"\",IF(OR('TSA Input'!J3668=\"Yes\",'TSA Input'!J3668=\"Contingent\"),'TSA Input'!B3668,\"Ineligible\"))","v":""},{"$f":"IF('TSA Input'!J3668=\"\",\"\",IF(OR('TSA Input'!J3668=\"Yes\",'TSA Input'!J3668=\"Contingent\"),'TSA Input'!I3668,\"\"))","v":""},{"$f":"IF('TSA Input'!J3668=\"\",\"\",IF(OR('TSA Input'!J3668=\"Yes\",'TSA Input'!J3668=\"Contingent\"),'TSA Input'!C3668,\"\"))","v":""},{"$f":"IF('TSA Input'!J3668=\"\",\"\",IF(OR('TSA Input'!J3668=\"Yes\",'TSA Input'!J3668=\"Contingent\"),'TSA Input'!D3668,\"\"))","v":""},{"$f":"IF('TSA Input'!J3668=\"\",\"\",IF(OR('TSA Input'!J3668=\"Yes\",'TSA Input'!J3668=\"Contingent\"),'TSA Input'!G3668,\"\"))","v":""},{"$f":"IF('TSA Input'!J3668=\"\",\"\",IF(OR('TSA Input'!J3668=\"Yes\",'TSA Input'!J3668=\"Contingent\"),'TSA Input'!F3668,\"\"))","v":""},"",{"$f":"IF('TSA Input'!J3668=\"\",\"\",IF(OR('TSA Input'!J3668=\"Yes\",'TSA Input'!J3668=\"Contingent\"),'TSA Input'!D3668,\"\"))","v":""},{"$f":"IF('TSA Input'!J3668=\"\",\"\",IF(OR('TSA Input'!J3668=\"Yes\",'TSA Input'!J3668=\"Contingent\"),'TSA Input'!G3668,\"\"))","v":""},{"$f":"IF('TSA Input'!J3668=\"\",\"\",IF(OR('TSA Input'!J3668=\"Yes\",'TSA Input'!J3668=\"Contingent\"),'TSA Input'!F3668,\"\"))","v":""},"","Required","Required"]
["",null,{"$f":"IF('TSA Input'!J3669=\"\",\"\",IF(OR('TSA Input'!J3669=\"Yes\",'TSA Input'!J3669=\"Contingent\"),'TSA Input'!B3669,\"Ineligible\"))","v":""},{"$f":"IF('TSA Input'!J3669=\"\",\"\",IF(OR('TSA Input'!J3669=\"Yes\",'TSA Input'!J3669=\"Contingent\"),'TSA Input'!I3669,\"\"))","v":""},{"$f":"IF('TSA Input'!J3669=\"\",\"\",IF(OR('TSA Input'!J3669=\"Yes\",'TSA Input'!J3669=\"Contingent\"),'TSA Input'!C3669,\"\"))","v":""},{"$f":"IF('TSA Input'!J3669=\"\",\"\",IF(OR('TSA Input'!J3669=\"Yes\",'TSA Input'!J3669=\"Contingent\"),'TSA Input'!D3669,\"\"))","v":""},{"$f":"IF('TSA Input'!J3669=\"\",\"\",IF(OR('TSA Input'!J3669=\"Yes\",'TSA Input'!J3669=\"Contingent\"),'TSA Input'!G3669,\"\"))","v":""},{"$f":"IF('TSA Input'!J3669=\"\",\"\",IF(OR('TSA Input'!J3669=\"Yes\",'TSA Input'!J3669=\"Contingent\"),'TSA Input'!F3669,\"\"))","v":""},"",{"$f":"IF('TSA Input'!J3669=\"\",\"\",IF(OR('TSA Input'!J3669=\"Yes\",'TSA Input'!J3669=\"Contingent\"),'TSA Input'!D3669,\"\"))","v":""},{"$f":"IF('TSA Input'!J3669=\"\",\"\",IF(OR('TSA Input'!J3669=\"Yes\",'TSA Input'!J3669=\"Contingent\"),'TSA Input'!G3669,\"\"))","v":""},{"$f":"IF('TSA Input'!J3669=\"\",\"\",IF(OR('TSA Input'!J3669=\"Yes\",'TSA Input'!J3669=\"Contingent\"),'TSA Input'!F3669,\"\"))","v":""},"","Required","Required"]
["",null,{"$f":"IF('TSA Input'!J3670=\"\",\"\",IF(OR('TSA Input'!J3670=\"Yes\",'TSA Input'!J3670=\"Contingent\"),'TSA Input'!B3670,\"Ineligible\"))","v":""},{"$f":"IF('TSA Input'!J3670=\"\",\"\",IF(OR('TSA Input'!J3670=\"Yes\",'TSA Input'!J3670=\"Contingent\"),'TSA Input'!I3670,\"\"))","v":""},{"$f":"IF('TSA Input'!J3670=\"\",\"\",IF(OR('TSA Input'!J3670=\"Yes\",'TSA Input'!J3670=\"Contingent\"),'TSA Input'!C3670,\"\"))","v":""},{"$f":"IF('TSA Input'!J3670=\"\",\"\",IF(OR('TSA Input'!J3670=\"Yes\",'TSA Input'!J3670=\"Contingent\"),'TSA Input'!D3670,\"\"))","v":""},{"$f":"IF('TSA Input'!J3670=\"\",\"\",IF(OR('TSA Input'!J3670=\"Yes\",'TSA Input'!J3670=\"Contingent\"),'TSA Input'!G3670,\"\"))","v":""},{"$f":"IF('TSA Input'!J3670=\"\",\"\",IF(OR('TSA Input'!J3670=\"Yes\",'TSA Input'!J3670=\"Contingent\"),'TSA Input'!F3670,\"\"))","v":""},"",{"$f":"IF('TSA Input'!J3670=\"\",\"\",IF(OR('TSA Input'!J3670=\"Yes\",'TSA Input'!J3670=\"Contingent\"),'TSA Input'!D3670,\"\"))","v":""},{"$f":"IF('TSA Input'!J3670=\"\",\"\",IF(OR('TSA Input'!J3670=\"Yes\",'TSA Input'!J3670=\"Contingent\"),'TSA Input'!G3670,\"\"))","v":""},{"$f":"IF('TSA Input'!J3670=\"\",\"\",IF(OR('TSA Input'!J3670=\"Yes\",'TSA Input'!J3670=\"Contingent\"),'TSA Input'!F3670,\"\"))","v":""},"","Required","Required"]
["",null,{"$f":"IF('TSA Input'!J3671=\"\",\"\",IF(OR('TSA Input'!J3671=\"Yes\",'TSA Input'!J3671=\"Contingent\"),'TSA Input'!B3671,\"Ineligible\"))","v":""},{"$f":"IF('TSA Input'!J3671=\"\",\"\",IF(OR('TSA Input'!J3671=\"Yes\",'TSA Input'!J3671=\"Contingent\"),'TSA Input'!I3671,\"\"))","v":""},{"$f":"IF('TSA Input'!J3671=\"\",\"\",IF(OR('TSA Input'!J3671=\"Yes\",'TSA Input'!J3671=\"Contingent\"),'TSA Input'!C3671,\"\"))","v":""},{"$f":"IF('TSA Input'!J3671=\"\",\"\",IF(OR('TSA Input'!J3671=\"Yes\",'TSA Input'!J3671=\"Contingent\"),'TSA Input'!D3671,\"\"))","v":""},{"$f":"IF('TSA Input'!J3671=\"\",\"\",IF(OR('TSA Input'!J3671=\"Yes\",'TSA Input'!J3671=\"Contingent\"),'TSA Input'!G3671,\"\"))","v":""},{"$f":"IF('TSA Input'!J3671=\"\",\"\",IF(OR('TSA Input'!J3671=\"Yes\",'TSA Input'!J3671=\"Contingent\"),'TSA Input'!F3671,\"\"))","v":""},"",{"$f":"IF('TSA Input'!J3671=\"\",\"\",IF(OR('TSA Input'!J3671=\"Yes\",'TSA Input'!J3671=\"Contingent\"),'TSA Input'!D3671,\"\"))","v":""},{"$f":"IF('TSA Input'!J3671=\"\",\"\",IF(OR('TSA Input'!J3671=\"Yes\",'TSA Input'!J3671=\"Contingent\"),'TSA Input'!G3671,\"\"))","v":""},{"$f":"IF('TSA Input'!J3671=\"\",\"\",IF(OR('TSA Input'!J3671=\"Yes\",'TSA Input'!J3671=\"Contingent\"),'TSA Input'!F3671,\"\"))","v":""},"","Required","Required"]
["",null,{"$f":"IF('TSA Input'!J3672=\"\",\"\",IF(OR('TSA Input'!J3672=\"Yes\",'TSA Input'!J3672=\"Contingent\"),'TSA Input'!B3672,\"Ineligible\"))","v":""},{"$f":"IF('TSA Input'!J3672=\"\",\"\",IF(OR('TSA Input'!J3672=\"Yes\",'TSA Input'!J3672=\"Contingent\"),'TSA Input'!I3672,\"\"))","v":""},{"$f":"IF('TSA Input'!J3672=\"\",\"\",IF(OR('TSA Input'!J3672=\"Yes\",'TSA Input'!J3672=\"Contingent\"),'TSA Input'!C3672,\"\"))","v":""},{"$f":"IF('TSA Input'!J3672=\"\",\"\",IF(OR('TSA Input'!J3672=\"Yes\",'TSA Input'!J3672=\"Contingent\"),'TSA Input'!D3672,\"\"))","v":""},{"$f":"IF('TSA Input'!J3672=\"\",\"\",IF(OR('TSA Input'!J3672=\"Yes\",'TSA Input'!J3672=\"Contingent\"),'TSA Input'!G3672,\"\"))","v":""},{"$f":"IF('TSA Input'!J3672=\"\",\"\",IF(OR('TSA Input'!J3672=\"Yes\",'TSA Input'!J3672=\"Contingent\"),'TSA Input'!F3672,\"\"))","v":""},"",{"$f":"IF('TSA Input'!J3672=\"\",\"\",IF(OR('TSA Input'!J3672=\"Yes\",'TSA Input'!J3672=\"Contingent\"),'TSA Input'!D3672,\"\"))","v":""},{"$f":"IF('TSA Input'!J3672=\"\",\"\",IF(OR('TSA Input'!J3672=\"Yes\",'TSA Input'!J3672=\"Contingent\"),'TSA Input'!G3672,\"\"))","v":""},{"$f":"IF('TSA Input'!J3672=\"\",\"\",IF(OR('TSA Input'!J3672=\"Yes\",'TSA Input'!J3672=\"Contingent\"),'TSA Input'!F3672,\"\"))","v":""},"","Required","Required"]
["",null,{"$f":"IF('TSA Input'!J3673=\"\",\"\",IF(OR('TSA Input'!J3673=\"Yes\",'TSA Input'!J3673=\"Contingent\"),'TSA Input'!B3673,\"Ineligible\"))","v":""},{"$f":"IF('TSA Input'!J3673=\"\",\"\",IF(OR('TSA Input'!J3673=\"Yes\",'TSA Input'!J3673=\"Contingent\"),'TSA Input'!I3673,\"\"))","v":""},{"$f":"IF('TSA Input'!J3673=\"\",\"\",IF(OR('TSA Input'!J3673=\"Yes\",'TSA Input'!J3673=\"Contingent\"),'TSA Input'!C3673,\"\"))","v":""},{"$f":"IF('TSA Input'!J3673=\"\",\"\",IF(OR('TSA Input'!J3673=\"Yes\",'TSA Input'!J3673=\"Contingent\"),'TSA Input'!D3673,\"\"))","v":""},{"$f":"IF('TSA Input'!J3673=\"\",\"\",IF(OR('TSA Input'!J3673=\"Yes\",'TSA Input'!J3673=\"Contingent\"),'TSA Input'!G3673,\"\"))","v":""},{"$f":"IF('TSA Input'!J3673=\"\",\"\",IF(OR('TSA Input'!J3673=\"Yes\",'TSA Input'!J3673=\"Contingent\"),'TSA Input'!F3673,\"\"))","v":""},"",{"$f":"IF('TSA Input'!J3673=\"\",\"\",IF(OR('TSA Input'!J3673=\"Yes\",'TSA Input'!J3673=\"Contingent\"),'TSA Input'!D3673,\"\"))","v":""},{"$f":"IF('TSA Input'!J3673=\"\",\"\",IF(OR('TSA Input'!J3673=\"Yes\",'TSA Input'!J3673=\"Contingent\"),'TSA Input'!G3673,\"\"))","v":""},{"$f":"IF('TSA Input'!J3673=\"\",\"\",IF(OR('TSA Input'!J3673=\"Yes\",'TSA Input'!J3673=\"Contingent\"),'TSA Input'!F3673,\"\"))","v":""},"","Required","Required"]
["",null,{"$f":"IF('TSA Input'!J3674=\"\",\"\",IF(OR('TSA Input'!J3674=\"Yes\",'TSA Input'!J3674=\"Contingent\"),'TSA Input'!B3674,\"Ineligible\"))","v":""},{"$f":"IF('TSA Input'!J3674=\"\",\"\",IF(OR('TSA Input'!J3674=\"Yes\",'TSA Input'!J3674=\"Contingent\"),'TSA Input'!I3674,\"\"))","v":""},{"$f":"IF('TSA Input'!J3674=\"\",\"\",IF(OR('TSA Input'!J3674=\"Yes\",'TSA Input'!J3674=\"Contingent\"),'TSA Input'!C3674,\"\"))","v":""},{"$f":"IF('TSA Input'!J3674=\"\",\"\",IF(OR('TSA Input'!J3674=\"Yes\",'TSA Input'!J3674=\"Contingent\"),'TSA Input'!D3674,\"\"))","v":""},{"$f":"IF('TSA Input'!J3674=\"\",\"\",IF(OR('TSA Input'!J3674=\"Yes\",'TSA Input'!J3674=\"Contingent\"),'TSA Input'!G3674,\"\"))","v":""},{"$f":"IF('TSA Input'!J3674=\"\",\"\",IF(OR('TSA Input'!J3674=\"Yes\",'TSA Input'!J3674=\"Contingent\"),'TSA Input'!F3674,\"\"))","v":""},"",{"$f":"IF('TSA Input'!J3674=\"\",\"\",IF(OR('TSA Input'!J3674=\"Yes\",'TSA Input'!J3674=\"Contingent\"),'TSA Input'!D3674,\"\"))","v":""},{"$f":"IF('TSA Input'!J3674=\"\",\"\",IF(OR('TSA Input'!J3674=\"Yes\",'TSA Input'!J3674=\"Contingent\"),'TSA Input'!G3674,\"\"))","v":""},{"$f":"IF('TSA Input'!J3674=\"\",\"\",IF(OR('TSA Input'!J3674=\"Yes\",'TSA Input'!J3674=\"Contingent\"),'TSA Input'!F3674,\"\"))","v":""},"","Required","Required"]
["",null,{"$f":"IF('TSA Input'!J3675=\"\",\"\",IF(OR('TSA Input'!J3675=\"Yes\",'TSA Input'!J3675=\"Contingent\"),'TSA Input'!B3675,\"Ineligible\"))","v":""},{"$f":"IF('TSA Input'!J3675=\"\",\"\",IF(OR('TSA Input'!J3675=\"Yes\",'TSA Input'!J3675=\"Contingent\"),'TSA Input'!I3675,\"\"))","v":""},{"$f":"IF('TSA Input'!J3675=\"\",\"\",IF(OR('TSA Input'!J3675=\"Yes\",'TSA Input'!J3675=\"Contingent\"),'TSA Input'!C3675,\"\"))","v":""},{"$f":"IF('TSA Input'!J3675=\"\",\"\",IF(OR('TSA Input'!J3675=\"Yes\",'TSA Input'!J3675=\"Contingent\"),'TSA Input'!D3675,\"\"))","v":""},{"$f":"IF('TSA Input'!J3675=\"\",\"\",IF(OR('TSA Input'!J3675=\"Yes\",'TSA Input'!J3675=\"Contingent\"),'TSA Input'!G3675,\"\"))","v":""},{"$f":"IF('TSA Input'!J3675=\"\",\"\",IF(OR('TSA Input'!J3675=\"Yes\",'TSA Input'!J3675=\"Contingent\"),'TSA Input'!F3675,\"\"))","v":""},"",{"$f":"IF('TSA Input'!J3675=\"\",\"\",IF(OR('TSA Input'!J3675=\"Yes\",'TSA Input'!J3675=\"Contingent\"),'TSA Input'!D3675,\"\"))","v":""},{"$f":"IF('TSA Input'!J3675=\"\",\"\",IF(OR('TSA Input'!J3675=\"Yes\",'TSA Input'!J3675=\"Contingent\"),'TSA Input'!G3675,\"\"))","v":""},{"$f":"IF('TSA Input'!J3675=\"\",\"\",IF(OR('TSA Input'!J3675=\"Yes\",'TSA Input'!J3675=\"Contingent\"),'TSA Input'!F3675,\"\"))","v":""},"","Required","Required"]
["",null,{"$f":"IF('TSA Input'!J3676=\"\",\"\",IF(OR('TSA Input'!J3676=\"Yes\",'TSA Input'!J3676=\"Contingent\"),'TSA Input'!B3676,\"Ineligible\"))","v":""},{"$f":"IF('TSA Input'!J3676=\"\",\"\",IF(OR('TSA Input'!J3676=\"Yes\",'TSA Input'!J3676=\"Contingent\"),'TSA Input'!I3676,\"\"))","v":""},{"$f":"IF('TSA Input'!J3676=\"\",\"\",IF(OR('TSA Input'!J3676=\"Yes\",'TSA Input'!J3676=\"Contingent\"),'TSA Input'!C3676,\"\"))","v":""},{"$f":"IF('TSA Input'!J3676=\"\",\"\",IF(OR('TSA Input'!J3676=\"Yes\",'TSA Input'!J3676=\"Contingent\"),'TSA Input'!D3676,\"\"))","v":""},{"$f":"IF('TSA Input'!J3676=\"\",\"\",IF(OR('TSA Input'!J3676=\"Yes\",'TSA Input'!J3676=\"Contingent\"),'TSA Input'!G3676,\"\"))","v":""},{"$f":"IF('TSA Input'!J3676=\"\",\"\",IF(OR('TSA Input'!J3676=\"Yes\",'TSA Input'!J3676=\"Contingent\"),'TSA Input'!F3676,\"\"))","v":""},"",{"$f":"IF('TSA Input'!J3676=\"\",\"\",IF(OR('TSA Input'!J3676=\"Yes\",'TSA Input'!J3676=\"Contingent\"),'TSA Input'!D3676,\"\"))","v":""},{"$f":"IF('TSA Input'!J3676=\"\",\"\",IF(OR('TSA Input'!J3676=\"Yes\",'TSA Input'!J3676=\"Contingent\"),'TSA Input'!G3676,\"\"))","v":""},{"$f":"IF('TSA Input'!J3676=\"\",\"\",IF(OR('TSA Input'!J3676=\"Yes\",'TSA Input'!J3676=\"Contingent\"),'TSA Input'!F3676,\"\"))","v":""},"","Required","Required"]
["",null,{"$f":"IF('TSA Input'!J3677=\"\",\"\",IF(OR('TSA Input'!J3677=\"Yes\",'TSA Input'!J3677=\"Contingent\"),'TSA Input'!B3677,\"Ineligible\"))","v":""},{"$f":"IF('TSA Input'!J3677=\"\",\"\",IF(OR('TSA Input'!J3677=\"Yes\",'TSA Input'!J3677=\"Contingent\"),'TSA Input'!I3677,\"\"))","v":""},{"$f":"IF('TSA Input'!J3677=\"\",\"\",IF(OR('TSA Input'!J3677=\"Yes\",'TSA Input'!J3677=\"Contingent\"),'TSA Input'!C3677,\"\"))","v":""},{"$f":"IF('TSA Input'!J3677=\"\",\"\",IF(OR('TSA Input'!J3677=\"Yes\",'TSA Input'!J3677=\"Contingent\"),'TSA Input'!D3677,\"\"))","v":""},{"$f":"IF('TSA Input'!J3677=\"\",\"\",IF(OR('TSA Input'!J3677=\"Yes\",'TSA Input'!J3677=\"Contingent\"),'TSA Input'!G3677,\"\"))","v":""},{"$f":"IF('TSA Input'!J3677=\"\",\"\",IF(OR('TSA Input'!J3677=\"Yes\",'TSA Input'!J3677=\"Contingent\"),'TSA Input'!F3677,\"\"))","v":""},"",{"$f":"IF('TSA Input'!J3677=\"\",\"\",IF(OR('TSA Input'!J3677=\"Yes\",'TSA Input'!J3677=\"Contingent\"),'TSA Input'!D3677,\"\"))","v":""},{"$f":"IF('TSA Input'!J3677=\"\",\"\",IF(OR('TSA Input'!J3677=\"Yes\",'TSA Input'!J3677=\"Contingent\"),'TSA Input'!G3677,\"\"))","v":""},{"$f":"IF('TSA Input'!J3677=\"\",\"\",IF(OR('TSA Input'!J3677=\"Yes\",'TSA Input'!J3677=\"Contingent\"),'TSA Input'!F3677,\"\"))","v":""},"","Required","Required"]
["",null,{"$f":"IF('TSA Input'!J3678=\"\",\"\",IF(OR('TSA Input'!J3678=\"Yes\",'TSA Input'!J3678=\"Contingent\"),'TSA Input'!B3678,\"Ineligible\"))","v":""},{"$f":"IF('TSA Input'!J3678=\"\",\"\",IF(OR('TSA Input'!J3678=\"Yes\",'TSA Input'!J3678=\"Contingent\"),'TSA Input'!I3678,\"\"))","v":""},{"$f":"IF('TSA Input'!J3678=\"\",\"\",IF(OR('TSA Input'!J3678=\"Yes\",'TSA Input'!J3678=\"Contingent\"),'TSA Input'!C3678,\"\"))","v":""},{"$f":"IF('TSA Input'!J3678=\"\",\"\",IF(OR('TSA Input'!J3678=\"Yes\",'TSA Input'!J3678=\"Contingent\"),'TSA Input'!D3678,\"\"))","v":""},{"$f":"IF('TSA Input'!J3678=\"\",\"\",IF(OR('TSA Input'!J3678=\"Yes\",'TSA Input'!J3678=\"Contingent\"),'TSA Input'!G3678,\"\"))","v":""},{"$f":"IF('TSA Input'!J3678=\"\",\"\",IF(OR('TSA Input'!J3678=\"Yes\",'TSA Input'!J3678=\"Contingent\"),'TSA Input'!F3678,\"\"))","v":""},"",{"$f":"IF('TSA Input'!J3678=\"\",\"\",IF(OR('TSA Input'!J3678=\"Yes\",'TSA Input'!J3678=\"Contingent\"),'TSA Input'!D3678,\"\"))","v":""},{"$f":"IF('TSA Input'!J3678=\"\",\"\",IF(OR('TSA Input'!J3678=\"Yes\",'TSA Input'!J3678=\"Contingent\"),'TSA Input'!G3678,\"\"))","v":""},{"$f":"IF('TSA Input'!J3678=\"\",\"\",IF(OR('TSA Input'!J3678=\"Yes\",'TSA Input'!J3678=\"Contingent\"),'TSA Input'!F3678,\"\"))","v":""},"","Required","Required"]
["",null,{"$f":"IF('TSA Input'!J3679=\"\",\"\",IF(OR('TSA Input'!J3679=\"Yes\",'TSA Input'!J3679=\"Contingent\"),'TSA Input'!B3679,\"Ineligible\"))","v":""},{"$f":"IF('TSA Input'!J3679=\"\",\"\",IF(OR('TSA Input'!J3679=\"Yes\",'TSA Input'!J3679=\"Contingent\"),'TSA Input'!I3679,\"\"))","v":""},{"$f":"IF('TSA Input'!J3679=\"\",\"\",IF(OR('TSA Input'!J3679=\"Yes\",'TSA Input'!J3679=\"Contingent\"),'TSA Input'!C3679,\"\"))","v":""},{"$f":"IF('TSA Input'!J3679=\"\",\"\",IF(OR('TSA Input'!J3679=\"Yes\",'TSA Input'!J3679=\"Contingent\"),'TSA Input'!D3679,\"\"))","v":""},{"$f":"IF('TSA Input'!J3679=\"\",\"\",IF(OR('TSA Input'!J3679=\"Yes\",'TSA Input'!J3679=\"Contingent\"),'TSA Input'!G3679,\"\"))","v":""},{"$f":"IF('TSA Input'!J3679=\"\",\"\",IF(OR('TSA Input'!J3679=\"Yes\",'TSA Input'!J3679=\"Contingent\"),'TSA Input'!F3679,\"\"))","v":""},"",{"$f":"IF('TSA Input'!J3679=\"\",\"\",IF(OR('TSA Input'!J3679=\"Yes\",'TSA Input'!J3679=\"Contingent\"),'TSA Input'!D3679,\"\"))","v":""},{"$f":"IF('TSA Input'!J3679=\"\",\"\",IF(OR('TSA Input'!J3679=\"Yes\",'TSA Input'!J3679=\"Contingent\"),'TSA Input'!G3679,\"\"))","v":""},{"$f":"IF('TSA Input'!J3679=\"\",\"\",IF(OR('TSA Input'!J3679=\"Yes\",'TSA Input'!J3679=\"Contingent\"),'TSA Input'!F3679,\"\"))","v":""},"","Required","Required"]
["",null,{"$f":"IF('TSA Input'!J3680=\"\",\"\",IF(OR('TSA Input'!J3680=\"Yes\",'TSA Input'!J3680=\"Contingent\"),'TSA Input'!B3680,\"Ineligible\"))","v":""},{"$f":"IF('TSA Input'!J3680=\"\",\"\",IF(OR('TSA Input'!J3680=\"Yes\",'TSA Input'!J3680=\"Contingent\"),'TSA Input'!I3680,\"\"))","v":""},{"$f":"IF('TSA Input'!J3680=\"\",\"\",IF(OR('TSA Input'!J3680=\"Yes\",'TSA Input'!J3680=\"Contingent\"),'TSA Input'!C3680,\"\"))","v":""},{"$f":"IF('TSA Input'!J3680=\"\",\"\",IF(OR('TSA Input'!J3680=\"Yes\",'TSA Input'!J3680=\"Contingent\"),'TSA Input'!D3680,\"\"))","v":""},{"$f":"IF('TSA Input'!J3680=\"\",\"\",IF(OR('TSA Input'!J3680=\"Yes\",'TSA Input'!J3680=\"Contingent\"),'TSA Input'!G3680,\"\"))","v":""},{"$f":"IF('TSA Input'!J3680=\"\",\"\",IF(OR('TSA Input'!J3680=\"Yes\",'TSA Input'!J3680=\"Contingent\"),'TSA Input'!F3680,\"\"))","v":""},"",{"$f":"IF('TSA Input'!J3680=\"\",\"\",IF(OR('TSA Input'!J3680=\"Yes\",'TSA Input'!J3680=\"Contingent\"),'TSA Input'!D3680,\"\"))","v":""},{"$f":"IF('TSA Input'!J3680=\"\",\"\",IF(OR('TSA Input'!J3680=\"Yes\",'TSA Input'!J3680=\"Contingent\"),'TSA Input'!G3680,\"\"))","v":""},{"$f":"IF('TSA Input'!J3680=\"\",\"\",IF(OR('TSA Input'!J3680=\"Yes\",'TSA Input'!J3680=\"Contingent\"),'TSA Input'!F3680,\"\"))","v":""},"","Required","Required"]
["",null,{"$f":"IF('TSA Input'!J3681=\"\",\"\",IF(OR('TSA Input'!J3681=\"Yes\",'TSA Input'!J3681=\"Contingent\"),'TSA Input'!B3681,\"Ineligible\"))","v":""},{"$f":"IF('TSA Input'!J3681=\"\",\"\",IF(OR('TSA Input'!J3681=\"Yes\",'TSA Input'!J3681=\"Contingent\"),'TSA Input'!I3681,\"\"))","v":""},{"$f":"IF('TSA Input'!J3681=\"\",\"\",IF(OR('TSA Input'!J3681=\"Yes\",'TSA Input'!J3681=\"Contingent\"),'TSA Input'!C3681,\"\"))","v":""},{"$f":"IF('TSA Input'!J3681=\"\",\"\",IF(OR('TSA Input'!J3681=\"Yes\",'TSA Input'!J3681=\"Contingent\"),'TSA Input'!D3681,\"\"))","v":""},{"$f":"IF('TSA Input'!J3681=\"\",\"\",IF(OR('TSA Input'!J3681=\"Yes\",'TSA Input'!J3681=\"Contingent\"),'TSA Input'!G3681,\"\"))","v":""},{"$f":"IF('TSA Input'!J3681=\"\",\"\",IF(OR('TSA Input'!J3681=\"Yes\",'TSA Input'!J3681=\"Contingent\"),'TSA Input'!F3681,\"\"))","v":""},"",{"$f":"IF('TSA Input'!J3681=\"\",\"\",IF(OR('TSA Input'!J3681=\"Yes\",'TSA Input'!J3681=\"Contingent\"),'TSA Input'!D3681,\"\"))","v":""},{"$f":"IF('TSA Input'!J3681=\"\",\"\",IF(OR('TSA Input'!J3681=\"Yes\",'TSA Input'!J3681=\"Contingent\"),'TSA Input'!G3681,\"\"))","v":""},{"$f":"IF('TSA Input'!J3681=\"\",\"\",IF(OR('TSA Input'!J3681=\"Yes\",'TSA Input'!J3681=\"Contingent\"),'TSA Input'!F3681,\"\"))","v":""},"","Required","Required"]
["",null,{"$f":"IF('TSA Input'!J3682=\"\",\"\",IF(OR('TSA Input'!J3682=\"Yes\",'TSA Input'!J3682=\"Contingent\"),'TSA Input'!B3682,\"Ineligible\"))","v":""},{"$f":"IF('TSA Input'!J3682=\"\",\"\",IF(OR('TSA Input'!J3682=\"Yes\",'TSA Input'!J3682=\"Contingent\"),'TSA Input'!I3682,\"\"))","v":""},{"$f":"IF('TSA Input'!J3682=\"\",\"\",IF(OR('TSA Input'!J3682=\"Yes\",'TSA Input'!J3682=\"Contingent\"),'TSA Input'!C3682,\"\"))","v":""},{"$f":"IF('TSA Input'!J3682=\"\",\"\",IF(OR('TSA Input'!J3682=\"Yes\",'TSA Input'!J3682=\"Contingent\"),'TSA Input'!D3682,\"\"))","v":""},{"$f":"IF('TSA Input'!J3682=\"\",\"\",IF(OR('TSA Input'!J3682=\"Yes\",'TSA Input'!J3682=\"Contingent\"),'TSA Input'!G3682,\"\"))","v":""},{"$f":"IF('TSA Input'!J3682=\"\",\"\",IF(OR('TSA Input'!J3682=\"Yes\",'TSA Input'!J3682=\"Contingent\"),'TSA Input'!F3682,\"\"))","v":""},"",{"$f":"IF('TSA Input'!J3682=\"\",\"\",IF(OR('TSA Input'!J3682=\"Yes\",'TSA Input'!J3682=\"Contingent\"),'TSA Input'!D3682,\"\"))","v":""},{"$f":"IF('TSA Input'!J3682=\"\",\"\",IF(OR('TSA Input'!J3682=\"Yes\",'TSA Input'!J3682=\"Contingent\"),'TSA Input'!G3682,\"\"))","v":""},{"$f":"IF('TSA Input'!J3682=\"\",\"\",IF(OR('TSA Input'!J3682=\"Yes\",'TSA Input'!J3682=\"Contingent\"),'TSA Input'!F3682,\"\"))","v":""},"","Required","Required"]
["",null,{"$f":"IF('TSA Input'!J3683=\"\",\"\",IF(OR('TSA Input'!J3683=\"Yes\",'TSA Input'!J3683=\"Contingent\"),'TSA Input'!B3683,\"Ineligible\"))","v":""},{"$f":"IF('TSA Input'!J3683=\"\",\"\",IF(OR('TSA Input'!J3683=\"Yes\",'TSA Input'!J3683=\"Contingent\"),'TSA Input'!I3683,\"\"))","v":""},{"$f":"IF('TSA Input'!J3683=\"\",\"\",IF(OR('TSA Input'!J3683=\"Yes\",'TSA Input'!J3683=\"Contingent\"),'TSA Input'!C3683,\"\"))","v":""},{"$f":"IF('TSA Input'!J3683=\"\",\"\",IF(OR('TSA Input'!J3683=\"Yes\",'TSA Input'!J3683=\"Contingent\"),'TSA Input'!D3683,\"\"))","v":""},{"$f":"IF('TSA Input'!J3683=\"\",\"\",IF(OR('TSA Input'!J3683=\"Yes\",'TSA Input'!J3683=\"Contingent\"),'TSA Input'!G3683,\"\"))","v":""},{"$f":"IF('TSA Input'!J3683=\"\",\"\",IF(OR('TSA Input'!J3683=\"Yes\",'TSA Input'!J3683=\"Contingent\"),'TSA Input'!F3683,\"\"))","v":""},"",{"$f":"IF('TSA Input'!J3683=\"\",\"\",IF(OR('TSA Input'!J3683=\"Yes\",'TSA Input'!J3683=\"Contingent\"),'TSA Input'!D3683,\"\"))","v":""},{"$f":"IF('TSA Input'!J3683=\"\",\"\",IF(OR('TSA Input'!J3683=\"Yes\",'TSA Input'!J3683=\"Contingent\"),'TSA Input'!G3683,\"\"))","v":""},{"$f":"IF('TSA Input'!J3683=\"\",\"\",IF(OR('TSA Input'!J3683=\"Yes\",'TSA Input'!J3683=\"Contingent\"),'TSA Input'!F3683,\"\"))","v":""},"","Required","Required"]
["",null,{"$f":"IF('TSA Input'!J3684=\"\",\"\",IF(OR('TSA Input'!J3684=\"Yes\",'TSA Input'!J3684=\"Contingent\"),'TSA Input'!B3684,\"Ineligible\"))","v":""},{"$f":"IF('TSA Input'!J3684=\"\",\"\",IF(OR('TSA Input'!J3684=\"Yes\",'TSA Input'!J3684=\"Contingent\"),'TSA Input'!I3684,\"\"))","v":""},{"$f":"IF('TSA Input'!J3684=\"\",\"\",IF(OR('TSA Input'!J3684=\"Yes\",'TSA Input'!J3684=\"Contingent\"),'TSA Input'!C3684,\"\"))","v":""},{"$f":"IF('TSA Input'!J3684=\"\",\"\",IF(OR('TSA Input'!J3684=\"Yes\",'TSA Input'!J3684=\"Contingent\"),'TSA Input'!D3684,\"\"))","v":""},{"$f":"IF('TSA Input'!J3684=\"\",\"\",IF(OR('TSA Input'!J3684=\"Yes\",'TSA Input'!J3684=\"Contingent\"),'TSA Input'!G3684,\"\"))","v":""},{"$f":"IF('TSA Input'!J3684=\"\",\"\",IF(OR('TSA Input'!J3684=\"Yes\",'TSA Input'!J3684=\"Contingent\"),'TSA Input'!F3684,\"\"))","v":""},"",{"$f":"IF('TSA Input'!J3684=\"\",\"\",IF(OR('TSA Input'!J3684=\"Yes\",'TSA Input'!J3684=\"Contingent\"),'TSA Input'!D3684,\"\"))","v":""},{"$f":"IF('TSA Input'!J3684=\"\",\"\",IF(OR('TSA Input'!J3684=\"Yes\",'TSA Input'!J3684=\"Contingent\"),'TSA Input'!G3684,\"\"))","v":""},{"$f":"IF('TSA Input'!J3684=\"\",\"\",IF(OR('TSA Input'!J3684=\"Yes\",'TSA Input'!J3684=\"Contingent\"),'TSA Input'!F3684,\"\"))","v":""},"","Required","Required"]
["",null,{"$f":"IF('TSA Input'!J3685=\"\",\"\",IF(OR('TSA Input'!J3685=\"Yes\",'TSA Input'!J3685=\"Contingent\"),'TSA Input'!B3685,\"Ineligible\"))","v":""},{"$f":"IF('TSA Input'!J3685=\"\",\"\",IF(OR('TSA Input'!J3685=\"Yes\",'TSA Input'!J3685=\"Contingent\"),'TSA Input'!I3685,\"\"))","v":""},{"$f":"IF('TSA Input'!J3685=\"\",\"\",IF(OR('TSA Input'!J3685=\"Yes\",'TSA Input'!J3685=\"Contingent\"),'TSA Input'!C3685,\"\"))","v":""},{"$f":"IF('TSA Input'!J3685=\"\",\"\",IF(OR('TSA Input'!J3685=\"Yes\",'TSA Input'!J3685=\"Contingent\"),'TSA Input'!D3685,\"\"))","v":""},{"$f":"IF('TSA Input'!J3685=\"\",\"\",IF(OR('TSA Input'!J3685=\"Yes\",'TSA Input'!J3685=\"Contingent\"),'TSA Input'!G3685,\"\"))","v":""},{"$f":"IF('TSA Input'!J3685=\"\",\"\",IF(OR('TSA Input'!J3685=\"Yes\",'TSA Input'!J3685=\"Contingent\"),'TSA Input'!F3685,\"\"))","v":""},"",{"$f":"IF('TSA Input'!J3685=\"\",\"\",IF(OR('TSA Input'!J3685=\"Yes\",'TSA Input'!J3685=\"Contingent\"),'TSA Input'!D3685,\"\"))","v":""},{"$f":"IF('TSA Input'!J3685=\"\",\"\",IF(OR('TSA Input'!J3685=\"Yes\",'TSA Input'!J3685=\"Contingent\"),'TSA Input'!G3685,\"\"))","v":""},{"$f":"IF('TSA Input'!J3685=\"\",\"\",IF(OR('TSA Input'!J3685=\"Yes\",'TSA Input'!J3685=\"Contingent\"),'TSA Input'!F3685,\"\"))","v":""},"","Required","Required"]
["",null,{"$f":"IF('TSA Input'!J3686=\"\",\"\",IF(OR('TSA Input'!J3686=\"Yes\",'TSA Input'!J3686=\"Contingent\"),'TSA Input'!B3686,\"Ineligible\"))","v":""},{"$f":"IF('TSA Input'!J3686=\"\",\"\",IF(OR('TSA Input'!J3686=\"Yes\",'TSA Input'!J3686=\"Contingent\"),'TSA Input'!I3686,\"\"))","v":""},{"$f":"IF('TSA Input'!J3686=\"\",\"\",IF(OR('TSA Input'!J3686=\"Yes\",'TSA Input'!J3686=\"Contingent\"),'TSA Input'!C3686,\"\"))","v":""},{"$f":"IF('TSA Input'!J3686=\"\",\"\",IF(OR('TSA Input'!J3686=\"Yes\",'TSA Input'!J3686=\"Contingent\"),'TSA Input'!D3686,\"\"))","v":""},{"$f":"IF('TSA Input'!J3686=\"\",\"\",IF(OR('TSA Input'!J3686=\"Yes\",'TSA Input'!J3686=\"Contingent\"),'TSA Input'!G3686,\"\"))","v":""},{"$f":"IF('TSA Input'!J3686=\"\",\"\",IF(OR('TSA Input'!J3686=\"Yes\",'TSA Input'!J3686=\"Contingent\"),'TSA Input'!F3686,\"\"))","v":""},"",{"$f":"IF('TSA Input'!J3686=\"\",\"\",IF(OR('TSA Input'!J3686=\"Yes\",'TSA Input'!J3686=\"Contingent\"),'TSA Input'!D3686,\"\"))","v":""},{"$f":"IF('TSA Input'!J3686=\"\",\"\",IF(OR('TSA Input'!J3686=\"Yes\",'TSA Input'!J3686=\"Contingent\"),'TSA Input'!G3686,\"\"))","v":""},{"$f":"IF('TSA Input'!J3686=\"\",\"\",IF(OR('TSA Input'!J3686=\"Yes\",'TSA Input'!J3686=\"Contingent\"),'TSA Input'!F3686,\"\"))","v":""},"","Required","Required"]
["",null,{"$f":"IF('TSA Input'!J3687=\"\",\"\",IF(OR('TSA Input'!J3687=\"Yes\",'TSA Input'!J3687=\"Contingent\"),'TSA Input'!B3687,\"Ineligible\"))","v":""},{"$f":"IF('TSA Input'!J3687=\"\",\"\",IF(OR('TSA Input'!J3687=\"Yes\",'TSA Input'!J3687=\"Contingent\"),'TSA Input'!I3687,\"\"))","v":""},{"$f":"IF('TSA Input'!J3687=\"\",\"\",IF(OR('TSA Input'!J3687=\"Yes\",'TSA Input'!J3687=\"Contingent\"),'TSA Input'!C3687,\"\"))","v":""},{"$f":"IF('TSA Input'!J3687=\"\",\"\",IF(OR('TSA Input'!J3687=\"Yes\",'TSA Input'!J3687=\"Contingent\"),'TSA Input'!D3687,\"\"))","v":""},{"$f":"IF('TSA Input'!J3687=\"\",\"\",IF(OR('TSA Input'!J3687=\"Yes\",'TSA Input'!J3687=\"Contingent\"),'TSA Input'!G3687,\"\"))","v":""},{"$f":"IF('TSA Input'!J3687=\"\",\"\",IF(OR('TSA Input'!J3687=\"Yes\",'TSA Input'!J3687=\"Contingent\"),'TSA Input'!F3687,\"\"))","v":""},"",{"$f":"IF('TSA Input'!J3687=\"\",\"\",IF(OR('TSA Input'!J3687=\"Yes\",'TSA Input'!J3687=\"Contingent\"),'TSA Input'!D3687,\"\"))","v":""},{"$f":"IF('TSA Input'!J3687=\"\",\"\",IF(OR('TSA Input'!J3687=\"Yes\",'TSA Input'!J3687=\"Contingent\"),'TSA Input'!G3687,\"\"))","v":""},{"$f":"IF('TSA Input'!J3687=\"\",\"\",IF(OR('TSA Input'!J3687=\"Yes\",'TSA Input'!J3687=\"Contingent\"),'TSA Input'!F3687,\"\"))","v":""},"","Required","Required"]
["",null,{"$f":"IF('TSA Input'!J3688=\"\",\"\",IF(OR('TSA Input'!J3688=\"Yes\",'TSA Input'!J3688=\"Contingent\"),'TSA Input'!B3688,\"Ineligible\"))","v":""},{"$f":"IF('TSA Input'!J3688=\"\",\"\",IF(OR('TSA Input'!J3688=\"Yes\",'TSA Input'!J3688=\"Contingent\"),'TSA Input'!I3688,\"\"))","v":""},{"$f":"IF('TSA Input'!J3688=\"\",\"\",IF(OR('TSA Input'!J3688=\"Yes\",'TSA Input'!J3688=\"Contingent\"),'TSA Input'!C3688,\"\"))","v":""},{"$f":"IF('TSA Input'!J3688=\"\",\"\",IF(OR('TSA Input'!J3688=\"Yes\",'TSA Input'!J3688=\"Contingent\"),'TSA Input'!D3688,\"\"))","v":""},{"$f":"IF('TSA Input'!J3688=\"\",\"\",IF(OR('TSA Input'!J3688=\"Yes\",'TSA Input'!J3688=\"Contingent\"),'TSA Input'!G3688,\"\"))","v":""},{"$f":"IF('TSA Input'!J3688=\"\",\"\",IF(OR('TSA Input'!J3688=\"Yes\",'TSA Input'!J3688=\"Contingent\"),'TSA Input'!F3688,\"\"))","v":""},"",{"$f":"IF('TSA Input'!J3688=\"\",\"\",IF(OR('TSA Input'!J3688=\"Yes\",'TSA Input'!J3688=\"Contingent\"),'TSA Input'!D3688,\"\"))","v":""},{"$f":"IF('TSA Input'!J3688=\"\",\"\",IF(OR('TSA Input'!J3688=\"Yes\",'TSA Input'!J3688=\"Contingent\"),'TSA Input'!G3688,\"\"))","v":""},{"$f":"IF('TSA Input'!J3688=\"\",\"\",IF(OR('TSA Input'!J3688=\"Yes\",'TSA Input'!J3688=\"Contingent\"),'TSA Input'!F3688,\"\"))","v":""},"","Required","Required"]
["",null,{"$f":"IF('TSA Input'!J3689=\"\",\"\",IF(OR('TSA Input'!J3689=\"Yes\",'TSA Input'!J3689=\"Contingent\"),'TSA Input'!B3689,\"Ineligible\"))","v":""},{"$f":"IF('TSA Input'!J3689=\"\",\"\",IF(OR('TSA Input'!J3689=\"Yes\",'TSA Input'!J3689=\"Contingent\"),'TSA Input'!I3689,\"\"))","v":""},{"$f":"IF('TSA Input'!J3689=\"\",\"\",IF(OR('TSA Input'!J3689=\"Yes\",'TSA Input'!J3689=\"Contingent\"),'TSA Input'!C3689,\"\"))","v":""},{"$f":"IF('TSA Input'!J3689=\"\",\"\",IF(OR('TSA Input'!J3689=\"Yes\",'TSA Input'!J3689=\"Contingent\"),'TSA Input'!D3689,\"\"))","v":""},{"$f":"IF('TSA Input'!J3689=\"\",\"\",IF(OR('TSA Input'!J3689=\"Yes\",'TSA Input'!J3689=\"Contingent\"),'TSA Input'!G3689,\"\"))","v":""},{"$f":"IF('TSA Input'!J3689=\"\",\"\",IF(OR('TSA Input'!J3689=\"Yes\",'TSA Input'!J3689=\"Contingent\"),'TSA Input'!F3689,\"\"))","v":""},"",{"$f":"IF('TSA Input'!J3689=\"\",\"\",IF(OR('TSA Input'!J3689=\"Yes\",'TSA Input'!J3689=\"Contingent\"),'TSA Input'!D3689,\"\"))","v":""},{"$f":"IF('TSA Input'!J3689=\"\",\"\",IF(OR('TSA Input'!J3689=\"Yes\",'TSA Input'!J3689=\"Contingent\"),'TSA Input'!G3689,\"\"))","v":""},{"$f":"IF('TSA Input'!J3689=\"\",\"\",IF(OR('TSA Input'!J3689=\"Yes\",'TSA Input'!J3689=\"Contingent\"),'TSA Input'!F3689,\"\"))","v":""},"","Required","Required"]
["",null,{"$f":"IF('TSA Input'!J3690=\"\",\"\",IF(OR('TSA Input'!J3690=\"Yes\",'TSA Input'!J3690=\"Contingent\"),'TSA Input'!B3690,\"Ineligible\"))","v":""},{"$f":"IF('TSA Input'!J3690=\"\",\"\",IF(OR('TSA Input'!J3690=\"Yes\",'TSA Input'!J3690=\"Contingent\"),'TSA Input'!I3690,\"\"))","v":""},{"$f":"IF('TSA Input'!J3690=\"\",\"\",IF(OR('TSA Input'!J3690=\"Yes\",'TSA Input'!J3690=\"Contingent\"),'TSA Input'!C3690,\"\"))","v":""},{"$f":"IF('TSA Input'!J3690=\"\",\"\",IF(OR('TSA Input'!J3690=\"Yes\",'TSA Input'!J3690=\"Contingent\"),'TSA Input'!D3690,\"\"))","v":""},{"$f":"IF('TSA Input'!J3690=\"\",\"\",IF(OR('TSA Input'!J3690=\"Yes\",'TSA Input'!J3690=\"Contingent\"),'TSA Input'!G3690,\"\"))","v":""},{"$f":"IF('TSA Input'!J3690=\"\",\"\",IF(OR('TSA Input'!J3690=\"Yes\",'TSA Input'!J3690=\"Contingent\"),'TSA Input'!F3690,\"\"))","v":""},"",{"$f":"IF('TSA Input'!J3690=\"\",\"\",IF(OR('TSA Input'!J3690=\"Yes\",'TSA Input'!J3690=\"Contingent\"),'TSA Input'!D3690,\"\"))","v":""},{"$f":"IF('TSA Input'!J3690=\"\",\"\",IF(OR('TSA Input'!J3690=\"Yes\",'TSA Input'!J3690=\"Contingent\"),'TSA Input'!G3690,\"\"))","v":""},{"$f":"IF('TSA Input'!J3690=\"\",\"\",IF(OR('TSA Input'!J3690=\"Yes\",'TSA Input'!J3690=\"Contingent\"),'TSA Input'!F3690,\"\"))","v":""},"","Required","Required"]
["",null,{"$f":"IF('TSA Input'!J3691=\"\",\"\",IF(OR('TSA Input'!J3691=\"Yes\",'TSA Input'!J3691=\"Contingent\"),'TSA Input'!B3691,\"Ineligible\"))","v":""},{"$f":"IF('TSA Input'!J3691=\"\",\"\",IF(OR('TSA Input'!J3691=\"Yes\",'TSA Input'!J3691=\"Contingent\"),'TSA Input'!I3691,\"\"))","v":""},{"$f":"IF('TSA Input'!J3691=\"\",\"\",IF(OR('TSA Input'!J3691=\"Yes\",'TSA Input'!J3691=\"Contingent\"),'TSA Input'!C3691,\"\"))","v":""},{"$f":"IF('TSA Input'!J3691=\"\",\"\",IF(OR('TSA Input'!J3691=\"Yes\",'TSA Input'!J3691=\"Contingent\"),'TSA Input'!D3691,\"\"))","v":""},{"$f":"IF('TSA Input'!J3691=\"\",\"\",IF(OR('TSA Input'!J3691=\"Yes\",'TSA Input'!J3691=\"Contingent\"),'TSA Input'!G3691,\"\"))","v":""},{"$f":"IF('TSA Input'!J3691=\"\",\"\",IF(OR('TSA Input'!J3691=\"Yes\",'TSA Input'!J3691=\"Contingent\"),'TSA Input'!F3691,\"\"))","v":""},"",{"$f":"IF('TSA Input'!J3691=\"\",\"\",IF(OR('TSA Input'!J3691=\"Yes\",'TSA Input'!J3691=\"Contingent\"),'TSA Input'!D3691,\"\"))","v":""},{"$f":"IF('TSA Input'!J3691=\"\",\"\",IF(OR('TSA Input'!J3691=\"Yes\",'TSA Input'!J3691=\"Contingent\"),'TSA Input'!G3691,\"\"))","v":""},{"$f":"IF('TSA Input'!J3691=\"\",\"\",IF(OR('TSA Input'!J3691=\"Yes\",'TSA Input'!J3691=\"Contingent\"),'TSA Input'!F3691,\"\"))","v":""},"","Required","Required"]
["",null,{"$f":"IF('TSA Input'!J3692=\"\",\"\",IF(OR('TSA Input'!J3692=\"Yes\",'TSA Input'!J3692=\"Contingent\"),'TSA Input'!B3692,\"Ineligible\"))","v":""},{"$f":"IF('TSA Input'!J3692=\"\",\"\",IF(OR('TSA Input'!J3692=\"Yes\",'TSA Input'!J3692=\"Contingent\"),'TSA Input'!I3692,\"\"))","v":""},{"$f":"IF('TSA Input'!J3692=\"\",\"\",IF(OR('TSA Input'!J3692=\"Yes\",'TSA Input'!J3692=\"Contingent\"),'TSA Input'!C3692,\"\"))","v":""},{"$f":"IF('TSA Input'!J3692=\"\",\"\",IF(OR('TSA Input'!J3692=\"Yes\",'TSA Input'!J3692=\"Contingent\"),'TSA Input'!D3692,\"\"))","v":""},{"$f":"IF('TSA Input'!J3692=\"\",\"\",IF(OR('TSA Input'!J3692=\"Yes\",'TSA Input'!J3692=\"Contingent\"),'TSA Input'!G3692,\"\"))","v":""},{"$f":"IF('TSA Input'!J3692=\"\",\"\",IF(OR('TSA Input'!J3692=\"Yes\",'TSA Input'!J3692=\"Contingent\"),'TSA Input'!F3692,\"\"))","v":""},"",{"$f":"IF('TSA Input'!J3692=\"\",\"\",IF(OR('TSA Input'!J3692=\"Yes\",'TSA Input'!J3692=\"Contingent\"),'TSA Input'!D3692,\"\"))","v":""},{"$f":"IF('TSA Input'!J3692=\"\",\"\",IF(OR('TSA Input'!J3692=\"Yes\",'TSA Input'!J3692=\"Contingent\"),'TSA Input'!G3692,\"\"))","v":""},{"$f":"IF('TSA Input'!J3692=\"\",\"\",IF(OR('TSA Input'!J3692=\"Yes\",'TSA Input'!J3692=\"Contingent\"),'TSA Input'!F3692,\"\"))","v":""},"","Required","Required"]
["",null,{"$f":"IF('TSA Input'!J3693=\"\",\"\",IF(OR('TSA Input'!J3693=\"Yes\",'TSA Input'!J3693=\"Contingent\"),'TSA Input'!B3693,\"Ineligible\"))","v":""},{"$f":"IF('TSA Input'!J3693=\"\",\"\",IF(OR('TSA Input'!J3693=\"Yes\",'TSA Input'!J3693=\"Contingent\"),'TSA Input'!I3693,\"\"))","v":""},{"$f":"IF('TSA Input'!J3693=\"\",\"\",IF(OR('TSA Input'!J3693=\"Yes\",'TSA Input'!J3693=\"Contingent\"),'TSA Input'!C3693,\"\"))","v":""},{"$f":"IF('TSA Input'!J3693=\"\",\"\",IF(OR('TSA Input'!J3693=\"Yes\",'TSA Input'!J3693=\"Contingent\"),'TSA Input'!D3693,\"\"))","v":""},{"$f":"IF('TSA Input'!J3693=\"\",\"\",IF(OR('TSA Input'!J3693=\"Yes\",'TSA Input'!J3693=\"Contingent\"),'TSA Input'!G3693,\"\"))","v":""},{"$f":"IF('TSA Input'!J3693=\"\",\"\",IF(OR('TSA Input'!J3693=\"Yes\",'TSA Input'!J3693=\"Contingent\"),'TSA Input'!F3693,\"\"))","v":""},"",{"$f":"IF('TSA Input'!J3693=\"\",\"\",IF(OR('TSA Input'!J3693=\"Yes\",'TSA Input'!J3693=\"Contingent\"),'TSA Input'!D3693,\"\"))","v":""},{"$f":"IF('TSA Input'!J3693=\"\",\"\",IF(OR('TSA Input'!J3693=\"Yes\",'TSA Input'!J3693=\"Contingent\"),'TSA Input'!G3693,\"\"))","v":""},{"$f":"IF('TSA Input'!J3693=\"\",\"\",IF(OR('TSA Input'!J3693=\"Yes\",'TSA Input'!J3693=\"Contingent\"),'TSA Input'!F3693,\"\"))","v":""},"","Required","Required"]
["",null,{"$f":"IF('TSA Input'!J3694=\"\",\"\",IF(OR('TSA Input'!J3694=\"Yes\",'TSA Input'!J3694=\"Contingent\"),'TSA Input'!B3694,\"Ineligible\"))","v":""},{"$f":"IF('TSA Input'!J3694=\"\",\"\",IF(OR('TSA Input'!J3694=\"Yes\",'TSA Input'!J3694=\"Contingent\"),'TSA Input'!I3694,\"\"))","v":""},{"$f":"IF('TSA Input'!J3694=\"\",\"\",IF(OR('TSA Input'!J3694=\"Yes\",'TSA Input'!J3694=\"Contingent\"),'TSA Input'!C3694,\"\"))","v":""},{"$f":"IF('TSA Input'!J3694=\"\",\"\",IF(OR('TSA Input'!J3694=\"Yes\",'TSA Input'!J3694=\"Contingent\"),'TSA Input'!D3694,\"\"))","v":""},{"$f":"IF('TSA Input'!J3694=\"\",\"\",IF(OR('TSA Input'!J3694=\"Yes\",'TSA Input'!J3694=\"Contingent\"),'TSA Input'!G3694,\"\"))","v":""},{"$f":"IF('TSA Input'!J3694=\"\",\"\",IF(OR('TSA Input'!J3694=\"Yes\",'TSA Input'!J3694=\"Contingent\"),'TSA Input'!F3694,\"\"))","v":""},"",{"$f":"IF('TSA Input'!J3694=\"\",\"\",IF(OR('TSA Input'!J3694=\"Yes\",'TSA Input'!J3694=\"Contingent\"),'TSA Input'!D3694,\"\"))","v":""},{"$f":"IF('TSA Input'!J3694=\"\",\"\",IF(OR('TSA Input'!J3694=\"Yes\",'TSA Input'!J3694=\"Contingent\"),'TSA Input'!G3694,\"\"))","v":""},{"$f":"IF('TSA Input'!J3694=\"\",\"\",IF(OR('TSA Input'!J3694=\"Yes\",'TSA Input'!J3694=\"Contingent\"),'TSA Input'!F3694,\"\"))","v":""},"","Required","Required"]
["",null,{"$f":"IF('TSA Input'!J3695=\"\",\"\",IF(OR('TSA Input'!J3695=\"Yes\",'TSA Input'!J3695=\"Contingent\"),'TSA Input'!B3695,\"Ineligible\"))","v":""},{"$f":"IF('TSA Input'!J3695=\"\",\"\",IF(OR('TSA Input'!J3695=\"Yes\",'TSA Input'!J3695=\"Contingent\"),'TSA Input'!I3695,\"\"))","v":""},{"$f":"IF('TSA Input'!J3695=\"\",\"\",IF(OR('TSA Input'!J3695=\"Yes\",'TSA Input'!J3695=\"Contingent\"),'TSA Input'!C3695,\"\"))","v":""},{"$f":"IF('TSA Input'!J3695=\"\",\"\",IF(OR('TSA Input'!J3695=\"Yes\",'TSA Input'!J3695=\"Contingent\"),'TSA Input'!D3695,\"\"))","v":""},{"$f":"IF('TSA Input'!J3695=\"\",\"\",IF(OR('TSA Input'!J3695=\"Yes\",'TSA Input'!J3695=\"Contingent\"),'TSA Input'!G3695,\"\"))","v":""},{"$f":"IF('TSA Input'!J3695=\"\",\"\",IF(OR('TSA Input'!J3695=\"Yes\",'TSA Input'!J3695=\"Contingent\"),'TSA Input'!F3695,\"\"))","v":""},"",{"$f":"IF('TSA Input'!J3695=\"\",\"\",IF(OR('TSA Input'!J3695=\"Yes\",'TSA Input'!J3695=\"Contingent\"),'TSA Input'!D3695,\"\"))","v":""},{"$f":"IF('TSA Input'!J3695=\"\",\"\",IF(OR('TSA Input'!J3695=\"Yes\",'TSA Input'!J3695=\"Contingent\"),'TSA Input'!G3695,\"\"))","v":""},{"$f":"IF('TSA Input'!J3695=\"\",\"\",IF(OR('TSA Input'!J3695=\"Yes\",'TSA Input'!J3695=\"Contingent\"),'TSA Input'!F3695,\"\"))","v":""},"","Required","Required"]
["",null,{"$f":"IF('TSA Input'!J3696=\"\",\"\",IF(OR('TSA Input'!J3696=\"Yes\",'TSA Input'!J3696=\"Contingent\"),'TSA Input'!B3696,\"Ineligible\"))","v":""},{"$f":"IF('TSA Input'!J3696=\"\",\"\",IF(OR('TSA Input'!J3696=\"Yes\",'TSA Input'!J3696=\"Contingent\"),'TSA Input'!I3696,\"\"))","v":""},{"$f":"IF('TSA Input'!J3696=\"\",\"\",IF(OR('TSA Input'!J3696=\"Yes\",'TSA Input'!J3696=\"Contingent\"),'TSA Input'!C3696,\"\"))","v":""},{"$f":"IF('TSA Input'!J3696=\"\",\"\",IF(OR('TSA Input'!J3696=\"Yes\",'TSA Input'!J3696=\"Contingent\"),'TSA Input'!D3696,\"\"))","v":""},{"$f":"IF('TSA Input'!J3696=\"\",\"\",IF(OR('TSA Input'!J3696=\"Yes\",'TSA Input'!J3696=\"Contingent\"),'TSA Input'!G3696,\"\"))","v":""},{"$f":"IF('TSA Input'!J3696=\"\",\"\",IF(OR('TSA Input'!J3696=\"Yes\",'TSA Input'!J3696=\"Contingent\"),'TSA Input'!F3696,\"\"))","v":""},"",{"$f":"IF('TSA Input'!J3696=\"\",\"\",IF(OR('TSA Input'!J3696=\"Yes\",'TSA Input'!J3696=\"Contingent\"),'TSA Input'!D3696,\"\"))","v":""},{"$f":"IF('TSA Input'!J3696=\"\",\"\",IF(OR('TSA Input'!J3696=\"Yes\",'TSA Input'!J3696=\"Contingent\"),'TSA Input'!G3696,\"\"))","v":""},{"$f":"IF('TSA Input'!J3696=\"\",\"\",IF(OR('TSA Input'!J3696=\"Yes\",'TSA Input'!J3696=\"Contingent\"),'TSA Input'!F3696,\"\"))","v":""},"","Required","Required"]
["",null,{"$f":"IF('TSA Input'!J3697=\"\",\"\",IF(OR('TSA Input'!J3697=\"Yes\",'TSA Input'!J3697=\"Contingent\"),'TSA Input'!B3697,\"Ineligible\"))","v":""},{"$f":"IF('TSA Input'!J3697=\"\",\"\",IF(OR('TSA Input'!J3697=\"Yes\",'TSA Input'!J3697=\"Contingent\"),'TSA Input'!I3697,\"\"))","v":""},{"$f":"IF('TSA Input'!J3697=\"\",\"\",IF(OR('TSA Input'!J3697=\"Yes\",'TSA Input'!J3697=\"Contingent\"),'TSA Input'!C3697,\"\"))","v":""},{"$f":"IF('TSA Input'!J3697=\"\",\"\",IF(OR('TSA Input'!J3697=\"Yes\",'TSA Input'!J3697=\"Contingent\"),'TSA Input'!D3697,\"\"))","v":""},{"$f":"IF('TSA Input'!J3697=\"\",\"\",IF(OR('TSA Input'!J3697=\"Yes\",'TSA Input'!J3697=\"Contingent\"),'TSA Input'!G3697,\"\"))","v":""},{"$f":"IF('TSA Input'!J3697=\"\",\"\",IF(OR('TSA Input'!J3697=\"Yes\",'TSA Input'!J3697=\"Contingent\"),'TSA Input'!F3697,\"\"))","v":""},"",{"$f":"IF('TSA Input'!J3697=\"\",\"\",IF(OR('TSA Input'!J3697=\"Yes\",'TSA Input'!J3697=\"Contingent\"),'TSA Input'!D3697,\"\"))","v":""},{"$f":"IF('TSA Input'!J3697=\"\",\"\",IF(OR('TSA Input'!J3697=\"Yes\",'TSA Input'!J3697=\"Contingent\"),'TSA Input'!G3697,\"\"))","v":""},{"$f":"IF('TSA Input'!J3697=\"\",\"\",IF(OR('TSA Input'!J3697=\"Yes\",'TSA Input'!J3697=\"Contingent\"),'TSA Input'!F3697,\"\"))","v":""},"","Required","Required"]
["",null,{"$f":"IF('TSA Input'!J3698=\"\",\"\",IF(OR('TSA Input'!J3698=\"Yes\",'TSA Input'!J3698=\"Contingent\"),'TSA Input'!B3698,\"Ineligible\"))","v":""},{"$f":"IF('TSA Input'!J3698=\"\",\"\",IF(OR('TSA Input'!J3698=\"Yes\",'TSA Input'!J3698=\"Contingent\"),'TSA Input'!I3698,\"\"))","v":""},{"$f":"IF('TSA Input'!J3698=\"\",\"\",IF(OR('TSA Input'!J3698=\"Yes\",'TSA Input'!J3698=\"Contingent\"),'TSA Input'!C3698,\"\"))","v":""},{"$f":"IF('TSA Input'!J3698=\"\",\"\",IF(OR('TSA Input'!J3698=\"Yes\",'TSA Input'!J3698=\"Contingent\"),'TSA Input'!D3698,\"\"))","v":""},{"$f":"IF('TSA Input'!J3698=\"\",\"\",IF(OR('TSA Input'!J3698=\"Yes\",'TSA Input'!J3698=\"Contingent\"),'TSA Input'!G3698,\"\"))","v":""},{"$f":"IF('TSA Input'!J3698=\"\",\"\",IF(OR('TSA Input'!J3698=\"Yes\",'TSA Input'!J3698=\"Contingent\"),'TSA Input'!F3698,\"\"))","v":""},"",{"$f":"IF('TSA Input'!J3698=\"\",\"\",IF(OR('TSA Input'!J3698=\"Yes\",'TSA Input'!J3698=\"Contingent\"),'TSA Input'!D3698,\"\"))","v":""},{"$f":"IF('TSA Input'!J3698=\"\",\"\",IF(OR('TSA Input'!J3698=\"Yes\",'TSA Input'!J3698=\"Contingent\"),'TSA Input'!G3698,\"\"))","v":""},{"$f":"IF('TSA Input'!J3698=\"\",\"\",IF(OR('TSA Input'!J3698=\"Yes\",'TSA Input'!J3698=\"Contingent\"),'TSA Input'!F3698,\"\"))","v":""},"","Required","Required"]
["",null,{"$f":"IF('TSA Input'!J3699=\"\",\"\",IF(OR('TSA Input'!J3699=\"Yes\",'TSA Input'!J3699=\"Contingent\"),'TSA Input'!B3699,\"Ineligible\"))","v":""},{"$f":"IF('TSA Input'!J3699=\"\",\"\",IF(OR('TSA Input'!J3699=\"Yes\",'TSA Input'!J3699=\"Contingent\"),'TSA Input'!I3699,\"\"))","v":""},{"$f":"IF('TSA Input'!J3699=\"\",\"\",IF(OR('TSA Input'!J3699=\"Yes\",'TSA Input'!J3699=\"Contingent\"),'TSA Input'!C3699,\"\"))","v":""},{"$f":"IF('TSA Input'!J3699=\"\",\"\",IF(OR('TSA Input'!J3699=\"Yes\",'TSA Input'!J3699=\"Contingent\"),'TSA Input'!D3699,\"\"))","v":""},{"$f":"IF('TSA Input'!J3699=\"\",\"\",IF(OR('TSA Input'!J3699=\"Yes\",'TSA Input'!J3699=\"Contingent\"),'TSA Input'!G3699,\"\"))","v":""},{"$f":"IF('TSA Input'!J3699=\"\",\"\",IF(OR('TSA Input'!J3699=\"Yes\",'TSA Input'!J3699=\"Contingent\"),'TSA Input'!F3699,\"\"))","v":""},"",{"$f":"IF('TSA Input'!J3699=\"\",\"\",IF(OR('TSA Input'!J3699=\"Yes\",'TSA Input'!J3699=\"Contingent\"),'TSA Input'!D3699,\"\"))","v":""},{"$f":"IF('TSA Input'!J3699=\"\",\"\",IF(OR('TSA Input'!J3699=\"Yes\",'TSA Input'!J3699=\"Contingent\"),'TSA Input'!G3699,\"\"))","v":""},{"$f":"IF('TSA Input'!J3699=\"\",\"\",IF(OR('TSA Input'!J3699=\"Yes\",'TSA Input'!J3699=\"Contingent\"),'TSA Input'!F3699,\"\"))","v":""},"","Required","Required"]
["",null,{"$f":"IF('TSA Input'!J3700=\"\",\"\",IF(OR('TSA Input'!J3700=\"Yes\",'TSA Input'!J3700=\"Contingent\"),'TSA Input'!B3700,\"Ineligible\"))","v":""},{"$f":"IF('TSA Input'!J3700=\"\",\"\",IF(OR('TSA Input'!J3700=\"Yes\",'TSA Input'!J3700=\"Contingent\"),'TSA Input'!I3700,\"\"))","v":""},{"$f":"IF('TSA Input'!J3700=\"\",\"\",IF(OR('TSA Input'!J3700=\"Yes\",'TSA Input'!J3700=\"Contingent\"),'TSA Input'!C3700,\"\"))","v":""},{"$f":"IF('TSA Input'!J3700=\"\",\"\",IF(OR('TSA Input'!J3700=\"Yes\",'TSA Input'!J3700=\"Contingent\"),'TSA Input'!D3700,\"\"))","v":""},{"$f":"IF('TSA Input'!J3700=\"\",\"\",IF(OR('TSA Input'!J3700=\"Yes\",'TSA Input'!J3700=\"Contingent\"),'TSA Input'!G3700,\"\"))","v":""},{"$f":"IF('TSA Input'!J3700=\"\",\"\",IF(OR('TSA Input'!J3700=\"Yes\",'TSA Input'!J3700=\"Contingent\"),'TSA Input'!F3700,\"\"))","v":""},"",{"$f":"IF('TSA Input'!J3700=\"\",\"\",IF(OR('TSA Input'!J3700=\"Yes\",'TSA Input'!J3700=\"Contingent\"),'TSA Input'!D3700,\"\"))","v":""},{"$f":"IF('TSA Input'!J3700=\"\",\"\",IF(OR('TSA Input'!J3700=\"Yes\",'TSA Input'!J3700=\"Contingent\"),'TSA Input'!G3700,\"\"))","v":""},{"$f":"IF('TSA Input'!J3700=\"\",\"\",IF(OR('TSA Input'!J3700=\"Yes\",'TSA Input'!J3700=\"Contingent\"),'TSA Input'!F3700,\"\"))","v":""},"","Required","Required"]
["",null,{"$f":"IF('TSA Input'!J3701=\"\",\"\",IF(OR('TSA Input'!J3701=\"Yes\",'TSA Input'!J3701=\"Contingent\"),'TSA Input'!B3701,\"Ineligible\"))","v":""},{"$f":"IF('TSA Input'!J3701=\"\",\"\",IF(OR('TSA Input'!J3701=\"Yes\",'TSA Input'!J3701=\"Contingent\"),'TSA Input'!I3701,\"\"))","v":""},{"$f":"IF('TSA Input'!J3701=\"\",\"\",IF(OR('TSA Input'!J3701=\"Yes\",'TSA Input'!J3701=\"Contingent\"),'TSA Input'!C3701,\"\"))","v":""},{"$f":"IF('TSA Input'!J3701=\"\",\"\",IF(OR('TSA Input'!J3701=\"Yes\",'TSA Input'!J3701=\"Contingent\"),'TSA Input'!D3701,\"\"))","v":""},{"$f":"IF('TSA Input'!J3701=\"\",\"\",IF(OR('TSA Input'!J3701=\"Yes\",'TSA Input'!J3701=\"Contingent\"),'TSA Input'!G3701,\"\"))","v":""},{"$f":"IF('TSA Input'!J3701=\"\",\"\",IF(OR('TSA Input'!J3701=\"Yes\",'TSA Input'!J3701=\"Contingent\"),'TSA Input'!F3701,\"\"))","v":""},"",{"$f":"IF('TSA Input'!J3701=\"\",\"\",IF(OR('TSA Input'!J3701=\"Yes\",'TSA Input'!J3701=\"Contingent\"),'TSA Input'!D3701,\"\"))","v":""},{"$f":"IF('TSA Input'!J3701=\"\",\"\",IF(OR('TSA Input'!J3701=\"Yes\",'TSA Input'!J3701=\"Contingent\"),'TSA Input'!G3701,\"\"))","v":""},{"$f":"IF('TSA Input'!J3701=\"\",\"\",IF(OR('TSA Input'!J3701=\"Yes\",'TSA Input'!J3701=\"Contingent\"),'TSA Input'!F3701,\"\"))","v":""},"","Required","Required"]
["",null,{"$f":"IF('TSA Input'!J3702=\"\",\"\",IF(OR('TSA Input'!J3702=\"Yes\",'TSA Input'!J3702=\"Contingent\"),'TSA Input'!B3702,\"Ineligible\"))","v":""},{"$f":"IF('TSA Input'!J3702=\"\",\"\",IF(OR('TSA Input'!J3702=\"Yes\",'TSA Input'!J3702=\"Contingent\"),'TSA Input'!I3702,\"\"))","v":""},{"$f":"IF('TSA Input'!J3702=\"\",\"\",IF(OR('TSA Input'!J3702=\"Yes\",'TSA Input'!J3702=\"Contingent\"),'TSA Input'!C3702,\"\"))","v":""},{"$f":"IF('TSA Input'!J3702=\"\",\"\",IF(OR('TSA Input'!J3702=\"Yes\",'TSA Input'!J3702=\"Contingent\"),'TSA Input'!D3702,\"\"))","v":""},{"$f":"IF('TSA Input'!J3702=\"\",\"\",IF(OR('TSA Input'!J3702=\"Yes\",'TSA Input'!J3702=\"Contingent\"),'TSA Input'!G3702,\"\"))","v":""},{"$f":"IF('TSA Input'!J3702=\"\",\"\",IF(OR('TSA Input'!J3702=\"Yes\",'TSA Input'!J3702=\"Contingent\"),'TSA Input'!F3702,\"\"))","v":""},"",{"$f":"IF('TSA Input'!J3702=\"\",\"\",IF(OR('TSA Input'!J3702=\"Yes\",'TSA Input'!J3702=\"Contingent\"),'TSA Input'!D3702,\"\"))","v":""},{"$f":"IF('TSA Input'!J3702=\"\",\"\",IF(OR('TSA Input'!J3702=\"Yes\",'TSA Input'!J3702=\"Contingent\"),'TSA Input'!G3702,\"\"))","v":""},{"$f":"IF('TSA Input'!J3702=\"\",\"\",IF(OR('TSA Input'!J3702=\"Yes\",'TSA Input'!J3702=\"Contingent\"),'TSA Input'!F3702,\"\"))","v":""},"","Required","Required"]
["",null,{"$f":"IF('TSA Input'!J3703=\"\",\"\",IF(OR('TSA Input'!J3703=\"Yes\",'TSA Input'!J3703=\"Contingent\"),'TSA Input'!B3703,\"Ineligible\"))","v":""},{"$f":"IF('TSA Input'!J3703=\"\",\"\",IF(OR('TSA Input'!J3703=\"Yes\",'TSA Input'!J3703=\"Contingent\"),'TSA Input'!I3703,\"\"))","v":""},{"$f":"IF('TSA Input'!J3703=\"\",\"\",IF(OR('TSA Input'!J3703=\"Yes\",'TSA Input'!J3703=\"Contingent\"),'TSA Input'!C3703,\"\"))","v":""},{"$f":"IF('TSA Input'!J3703=\"\",\"\",IF(OR('TSA Input'!J3703=\"Yes\",'TSA Input'!J3703=\"Contingent\"),'TSA Input'!D3703,\"\"))","v":""},{"$f":"IF('TSA Input'!J3703=\"\",\"\",IF(OR('TSA Input'!J3703=\"Yes\",'TSA Input'!J3703=\"Contingent\"),'TSA Input'!G3703,\"\"))","v":""},{"$f":"IF('TSA Input'!J3703=\"\",\"\",IF(OR('TSA Input'!J3703=\"Yes\",'TSA Input'!J3703=\"Contingent\"),'TSA Input'!F3703,\"\"))","v":""},"",{"$f":"IF('TSA Input'!J3703=\"\",\"\",IF(OR('TSA Input'!J3703=\"Yes\",'TSA Input'!J3703=\"Contingent\"),'TSA Input'!D3703,\"\"))","v":""},{"$f":"IF('TSA Input'!J3703=\"\",\"\",IF(OR('TSA Input'!J3703=\"Yes\",'TSA Input'!J3703=\"Contingent\"),'TSA Input'!G3703,\"\"))","v":""},{"$f":"IF('TSA Input'!J3703=\"\",\"\",IF(OR('TSA Input'!J3703=\"Yes\",'TSA Input'!J3703=\"Contingent\"),'TSA Input'!F3703,\"\"))","v":""},"","Required","Required"]
["",null,{"$f":"IF('TSA Input'!J3704=\"\",\"\",IF(OR('TSA Input'!J3704=\"Yes\",'TSA Input'!J3704=\"Contingent\"),'TSA Input'!B3704,\"Ineligible\"))","v":""},{"$f":"IF('TSA Input'!J3704=\"\",\"\",IF(OR('TSA Input'!J3704=\"Yes\",'TSA Input'!J3704=\"Contingent\"),'TSA Input'!I3704,\"\"))","v":""},{"$f":"IF('TSA Input'!J3704=\"\",\"\",IF(OR('TSA Input'!J3704=\"Yes\",'TSA Input'!J3704=\"Contingent\"),'TSA Input'!C3704,\"\"))","v":""},{"$f":"IF('TSA Input'!J3704=\"\",\"\",IF(OR('TSA Input'!J3704=\"Yes\",'TSA Input'!J3704=\"Contingent\"),'TSA Input'!D3704,\"\"))","v":""},{"$f":"IF('TSA Input'!J3704=\"\",\"\",IF(OR('TSA Input'!J3704=\"Yes\",'TSA Input'!J3704=\"Contingent\"),'TSA Input'!G3704,\"\"))","v":""},{"$f":"IF('TSA Input'!J3704=\"\",\"\",IF(OR('TSA Input'!J3704=\"Yes\",'TSA Input'!J3704=\"Contingent\"),'TSA Input'!F3704,\"\"))","v":""},"",{"$f":"IF('TSA Input'!J3704=\"\",\"\",IF(OR('TSA Input'!J3704=\"Yes\",'TSA Input'!J3704=\"Contingent\"),'TSA Input'!D3704,\"\"))","v":""},{"$f":"IF('TSA Input'!J3704=\"\",\"\",IF(OR('TSA Input'!J3704=\"Yes\",'TSA Input'!J3704=\"Contingent\"),'TSA Input'!G3704,\"\"))","v":""},{"$f":"IF('TSA Input'!J3704=\"\",\"\",IF(OR('TSA Input'!J3704=\"Yes\",'TSA Input'!J3704=\"Contingent\"),'TSA Input'!F3704,\"\"))","v":""},"","Required","Required"]
["",null,{"$f":"IF('TSA Input'!J3705=\"\",\"\",IF(OR('TSA Input'!J3705=\"Yes\",'TSA Input'!J3705=\"Contingent\"),'TSA Input'!B3705,\"Ineligible\"))","v":""},{"$f":"IF('TSA Input'!J3705=\"\",\"\",IF(OR('TSA Input'!J3705=\"Yes\",'TSA Input'!J3705=\"Contingent\"),'TSA Input'!I3705,\"\"))","v":""},{"$f":"IF('TSA Input'!J3705=\"\",\"\",IF(OR('TSA Input'!J3705=\"Yes\",'TSA Input'!J3705=\"Contingent\"),'TSA Input'!C3705,\"\"))","v":""},{"$f":"IF('TSA Input'!J3705=\"\",\"\",IF(OR('TSA Input'!J3705=\"Yes\",'TSA Input'!J3705=\"Contingent\"),'TSA Input'!D3705,\"\"))","v":""},{"$f":"IF('TSA Input'!J3705=\"\",\"\",IF(OR('TSA Input'!J3705=\"Yes\",'TSA Input'!J3705=\"Contingent\"),'TSA Input'!G3705,\"\"))","v":""},{"$f":"IF('TSA Input'!J3705=\"\",\"\",IF(OR('TSA Input'!J3705=\"Yes\",'TSA Input'!J3705=\"Contingent\"),'TSA Input'!F3705,\"\"))","v":""},"",{"$f":"IF('TSA Input'!J3705=\"\",\"\",IF(OR('TSA Input'!J3705=\"Yes\",'TSA Input'!J3705=\"Contingent\"),'TSA Input'!D3705,\"\"))","v":""},{"$f":"IF('TSA Input'!J3705=\"\",\"\",IF(OR('TSA Input'!J3705=\"Yes\",'TSA Input'!J3705=\"Contingent\"),'TSA Input'!G3705,\"\"))","v":""},{"$f":"IF('TSA Input'!J3705=\"\",\"\",IF(OR('TSA Input'!J3705=\"Yes\",'TSA Input'!J3705=\"Contingent\"),'TSA Input'!F3705,\"\"))","v":""},"","Required","Required"]
["",null,{"$f":"IF('TSA Input'!J3706=\"\",\"\",IF(OR('TSA Input'!J3706=\"Yes\",'TSA Input'!J3706=\"Contingent\"),'TSA Input'!B3706,\"Ineligible\"))","v":""},{"$f":"IF('TSA Input'!J3706=\"\",\"\",IF(OR('TSA Input'!J3706=\"Yes\",'TSA Input'!J3706=\"Contingent\"),'TSA Input'!I3706,\"\"))","v":""},{"$f":"IF('TSA Input'!J3706=\"\",\"\",IF(OR('TSA Input'!J3706=\"Yes\",'TSA Input'!J3706=\"Contingent\"),'TSA Input'!C3706,\"\"))","v":""},{"$f":"IF('TSA Input'!J3706=\"\",\"\",IF(OR('TSA Input'!J3706=\"Yes\",'TSA Input'!J3706=\"Contingent\"),'TSA Input'!D3706,\"\"))","v":""},{"$f":"IF('TSA Input'!J3706=\"\",\"\",IF(OR('TSA Input'!J3706=\"Yes\",'TSA Input'!J3706=\"Contingent\"),'TSA Input'!G3706,\"\"))","v":""},{"$f":"IF('TSA Input'!J3706=\"\",\"\",IF(OR('TSA Input'!J3706=\"Yes\",'TSA Input'!J3706=\"Contingent\"),'TSA Input'!F3706,\"\"))","v":""},"",{"$f":"IF('TSA Input'!J3706=\"\",\"\",IF(OR('TSA Input'!J3706=\"Yes\",'TSA Input'!J3706=\"Contingent\"),'TSA Input'!D3706,\"\"))","v":""},{"$f":"IF('TSA Input'!J3706=\"\",\"\",IF(OR('TSA Input'!J3706=\"Yes\",'TSA Input'!J3706=\"Contingent\"),'TSA Input'!G3706,\"\"))","v":""},{"$f":"IF('TSA Input'!J3706=\"\",\"\",IF(OR('TSA Input'!J3706=\"Yes\",'TSA Input'!J3706=\"Contingent\"),'TSA Input'!F3706,\"\"))","v":""},"","Required","Required"]
["",null,{"$f":"IF('TSA Input'!J3707=\"\",\"\",IF(OR('TSA Input'!J3707=\"Yes\",'TSA Input'!J3707=\"Contingent\"),'TSA Input'!B3707,\"Ineligible\"))","v":""},{"$f":"IF('TSA Input'!J3707=\"\",\"\",IF(OR('TSA Input'!J3707=\"Yes\",'TSA Input'!J3707=\"Contingent\"),'TSA Input'!I3707,\"\"))","v":""},{"$f":"IF('TSA Input'!J3707=\"\",\"\",IF(OR('TSA Input'!J3707=\"Yes\",'TSA Input'!J3707=\"Contingent\"),'TSA Input'!C3707,\"\"))","v":""},{"$f":"IF('TSA Input'!J3707=\"\",\"\",IF(OR('TSA Input'!J3707=\"Yes\",'TSA Input'!J3707=\"Contingent\"),'TSA Input'!D3707,\"\"))","v":""},{"$f":"IF('TSA Input'!J3707=\"\",\"\",IF(OR('TSA Input'!J3707=\"Yes\",'TSA Input'!J3707=\"Contingent\"),'TSA Input'!G3707,\"\"))","v":""},{"$f":"IF('TSA Input'!J3707=\"\",\"\",IF(OR('TSA Input'!J3707=\"Yes\",'TSA Input'!J3707=\"Contingent\"),'TSA Input'!F3707,\"\"))","v":""},"",{"$f":"IF('TSA Input'!J3707=\"\",\"\",IF(OR('TSA Input'!J3707=\"Yes\",'TSA Input'!J3707=\"Contingent\"),'TSA Input'!D3707,\"\"))","v":""},{"$f":"IF('TSA Input'!J3707=\"\",\"\",IF(OR('TSA Input'!J3707=\"Yes\",'TSA Input'!J3707=\"Contingent\"),'TSA Input'!G3707,\"\"))","v":""},{"$f":"IF('TSA Input'!J3707=\"\",\"\",IF(OR('TSA Input'!J3707=\"Yes\",'TSA Input'!J3707=\"Contingent\"),'TSA Input'!F3707,\"\"))","v":""},"","Required","Required"]
["",null,{"$f":"IF('TSA Input'!J3708=\"\",\"\",IF(OR('TSA Input'!J3708=\"Yes\",'TSA Input'!J3708=\"Contingent\"),'TSA Input'!B3708,\"Ineligible\"))","v":""},{"$f":"IF('TSA Input'!J3708=\"\",\"\",IF(OR('TSA Input'!J3708=\"Yes\",'TSA Input'!J3708=\"Contingent\"),'TSA Input'!I3708,\"\"))","v":""},{"$f":"IF('TSA Input'!J3708=\"\",\"\",IF(OR('TSA Input'!J3708=\"Yes\",'TSA Input'!J3708=\"Contingent\"),'TSA Input'!C3708,\"\"))","v":""},{"$f":"IF('TSA Input'!J3708=\"\",\"\",IF(OR('TSA Input'!J3708=\"Yes\",'TSA Input'!J3708=\"Contingent\"),'TSA Input'!D3708,\"\"))","v":""},{"$f":"IF('TSA Input'!J3708=\"\",\"\",IF(OR('TSA Input'!J3708=\"Yes\",'TSA Input'!J3708=\"Contingent\"),'TSA Input'!G3708,\"\"))","v":""},{"$f":"IF('TSA Input'!J3708=\"\",\"\",IF(OR('TSA Input'!J3708=\"Yes\",'TSA Input'!J3708=\"Contingent\"),'TSA Input'!F3708,\"\"))","v":""},"",{"$f":"IF('TSA Input'!J3708=\"\",\"\",IF(OR('TSA Input'!J3708=\"Yes\",'TSA Input'!J3708=\"Contingent\"),'TSA Input'!D3708,\"\"))","v":""},{"$f":"IF('TSA Input'!J3708=\"\",\"\",IF(OR('TSA Input'!J3708=\"Yes\",'TSA Input'!J3708=\"Contingent\"),'TSA Input'!G3708,\"\"))","v":""},{"$f":"IF('TSA Input'!J3708=\"\",\"\",IF(OR('TSA Input'!J3708=\"Yes\",'TSA Input'!J3708=\"Contingent\"),'TSA Input'!F3708,\"\"))","v":""},"","Required","Required"]
["",null,{"$f":"IF('TSA Input'!J3709=\"\",\"\",IF(OR('TSA Input'!J3709=\"Yes\",'TSA Input'!J3709=\"Contingent\"),'TSA Input'!B3709,\"Ineligible\"))","v":""},{"$f":"IF('TSA Input'!J3709=\"\",\"\",IF(OR('TSA Input'!J3709=\"Yes\",'TSA Input'!J3709=\"Contingent\"),'TSA Input'!I3709,\"\"))","v":""},{"$f":"IF('TSA Input'!J3709=\"\",\"\",IF(OR('TSA Input'!J3709=\"Yes\",'TSA Input'!J3709=\"Contingent\"),'TSA Input'!C3709,\"\"))","v":""},{"$f":"IF('TSA Input'!J3709=\"\",\"\",IF(OR('TSA Input'!J3709=\"Yes\",'TSA Input'!J3709=\"Contingent\"),'TSA Input'!D3709,\"\"))","v":""},{"$f":"IF('TSA Input'!J3709=\"\",\"\",IF(OR('TSA Input'!J3709=\"Yes\",'TSA Input'!J3709=\"Contingent\"),'TSA Input'!G3709,\"\"))","v":""},{"$f":"IF('TSA Input'!J3709=\"\",\"\",IF(OR('TSA Input'!J3709=\"Yes\",'TSA Input'!J3709=\"Contingent\"),'TSA Input'!F3709,\"\"))","v":""},"",{"$f":"IF('TSA Input'!J3709=\"\",\"\",IF(OR('TSA Input'!J3709=\"Yes\",'TSA Input'!J3709=\"Contingent\"),'TSA Input'!D3709,\"\"))","v":""},{"$f":"IF('TSA Input'!J3709=\"\",\"\",IF(OR('TSA Input'!J3709=\"Yes\",'TSA Input'!J3709=\"Contingent\"),'TSA Input'!G3709,\"\"))","v":""},{"$f":"IF('TSA Input'!J3709=\"\",\"\",IF(OR('TSA Input'!J3709=\"Yes\",'TSA Input'!J3709=\"Contingent\"),'TSA Input'!F3709,\"\"))","v":""},"","Required","Required"]
["",null,{"$f":"IF('TSA Input'!J3710=\"\",\"\",IF(OR('TSA Input'!J3710=\"Yes\",'TSA Input'!J3710=\"Contingent\"),'TSA Input'!B3710,\"Ineligible\"))","v":""},{"$f":"IF('TSA Input'!J3710=\"\",\"\",IF(OR('TSA Input'!J3710=\"Yes\",'TSA Input'!J3710=\"Contingent\"),'TSA Input'!I3710,\"\"))","v":""},{"$f":"IF('TSA Input'!J3710=\"\",\"\",IF(OR('TSA Input'!J3710=\"Yes\",'TSA Input'!J3710=\"Contingent\"),'TSA Input'!C3710,\"\"))","v":""},{"$f":"IF('TSA Input'!J3710=\"\",\"\",IF(OR('TSA Input'!J3710=\"Yes\",'TSA Input'!J3710=\"Contingent\"),'TSA Input'!D3710,\"\"))","v":""},{"$f":"IF('TSA Input'!J3710=\"\",\"\",IF(OR('TSA Input'!J3710=\"Yes\",'TSA Input'!J3710=\"Contingent\"),'TSA Input'!G3710,\"\"))","v":""},{"$f":"IF('TSA Input'!J3710=\"\",\"\",IF(OR('TSA Input'!J3710=\"Yes\",'TSA Input'!J3710=\"Contingent\"),'TSA Input'!F3710,\"\"))","v":""},"",{"$f":"IF('TSA Input'!J3710=\"\",\"\",IF(OR('TSA Input'!J3710=\"Yes\",'TSA Input'!J3710=\"Contingent\"),'TSA Input'!D3710,\"\"))","v":""},{"$f":"IF('TSA Input'!J3710=\"\",\"\",IF(OR('TSA Input'!J3710=\"Yes\",'TSA Input'!J3710=\"Contingent\"),'TSA Input'!G3710,\"\"))","v":""},{"$f":"IF('TSA Input'!J3710=\"\",\"\",IF(OR('TSA Input'!J3710=\"Yes\",'TSA Input'!J3710=\"Contingent\"),'TSA Input'!F3710,\"\"))","v":""},"","Required","Required"]
["",null,{"$f":"IF('TSA Input'!J3711=\"\",\"\",IF(OR('TSA Input'!J3711=\"Yes\",'TSA Input'!J3711=\"Contingent\"),'TSA Input'!B3711,\"Ineligible\"))","v":""},{"$f":"IF('TSA Input'!J3711=\"\",\"\",IF(OR('TSA Input'!J3711=\"Yes\",'TSA Input'!J3711=\"Contingent\"),'TSA Input'!I3711,\"\"))","v":""},{"$f":"IF('TSA Input'!J3711=\"\",\"\",IF(OR('TSA Input'!J3711=\"Yes\",'TSA Input'!J3711=\"Contingent\"),'TSA Input'!C3711,\"\"))","v":""},{"$f":"IF('TSA Input'!J3711=\"\",\"\",IF(OR('TSA Input'!J3711=\"Yes\",'TSA Input'!J3711=\"Contingent\"),'TSA Input'!D3711,\"\"))","v":""},{"$f":"IF('TSA Input'!J3711=\"\",\"\",IF(OR('TSA Input'!J3711=\"Yes\",'TSA Input'!J3711=\"Contingent\"),'TSA Input'!G3711,\"\"))","v":""},{"$f":"IF('TSA Input'!J3711=\"\",\"\",IF(OR('TSA Input'!J3711=\"Yes\",'TSA Input'!J3711=\"Contingent\"),'TSA Input'!F3711,\"\"))","v":""},"",{"$f":"IF('TSA Input'!J3711=\"\",\"\",IF(OR('TSA Input'!J3711=\"Yes\",'TSA Input'!J3711=\"Contingent\"),'TSA Input'!D3711,\"\"))","v":""},{"$f":"IF('TSA Input'!J3711=\"\",\"\",IF(OR('TSA Input'!J3711=\"Yes\",'TSA Input'!J3711=\"Contingent\"),'TSA Input'!G3711,\"\"))","v":""},{"$f":"IF('TSA Input'!J3711=\"\",\"\",IF(OR('TSA Input'!J3711=\"Yes\",'TSA Input'!J3711=\"Contingent\"),'TSA Input'!F3711,\"\"))","v":""},"","Required","Required"]
["",null,{"$f":"IF('TSA Input'!J3712=\"\",\"\",IF(OR('TSA Input'!J3712=\"Yes\",'TSA Input'!J3712=\"Contingent\"),'TSA Input'!B3712,\"Ineligible\"))","v":""},{"$f":"IF('TSA Input'!J3712=\"\",\"\",IF(OR('TSA Input'!J3712=\"Yes\",'TSA Input'!J3712=\"Contingent\"),'TSA Input'!I3712,\"\"))","v":""},{"$f":"IF('TSA Input'!J3712=\"\",\"\",IF(OR('TSA Input'!J3712=\"Yes\",'TSA Input'!J3712=\"Contingent\"),'TSA Input'!C3712,\"\"))","v":""},{"$f":"IF('TSA Input'!J3712=\"\",\"\",IF(OR('TSA Input'!J3712=\"Yes\",'TSA Input'!J3712=\"Contingent\"),'TSA Input'!D3712,\"\"))","v":""},{"$f":"IF('TSA Input'!J3712=\"\",\"\",IF(OR('TSA Input'!J3712=\"Yes\",'TSA Input'!J3712=\"Contingent\"),'TSA Input'!G3712,\"\"))","v":""},{"$f":"IF('TSA Input'!J3712=\"\",\"\",IF(OR('TSA Input'!J3712=\"Yes\",'TSA Input'!J3712=\"Contingent\"),'TSA Input'!F3712,\"\"))","v":""},"",{"$f":"IF('TSA Input'!J3712=\"\",\"\",IF(OR('TSA Input'!J3712=\"Yes\",'TSA Input'!J3712=\"Contingent\"),'TSA Input'!D3712,\"\"))","v":""},{"$f":"IF('TSA Input'!J3712=\"\",\"\",IF(OR('TSA Input'!J3712=\"Yes\",'TSA Input'!J3712=\"Contingent\"),'TSA Input'!G3712,\"\"))","v":""},{"$f":"IF('TSA Input'!J3712=\"\",\"\",IF(OR('TSA Input'!J3712=\"Yes\",'TSA Input'!J3712=\"Contingent\"),'TSA Input'!F3712,\"\"))","v":""},"","Required","Required"]
["",null,{"$f":"IF('TSA Input'!J3713=\"\",\"\",IF(OR('TSA Input'!J3713=\"Yes\",'TSA Input'!J3713=\"Contingent\"),'TSA Input'!B3713,\"Ineligible\"))","v":""},{"$f":"IF('TSA Input'!J3713=\"\",\"\",IF(OR('TSA Input'!J3713=\"Yes\",'TSA Input'!J3713=\"Contingent\"),'TSA Input'!I3713,\"\"))","v":""},{"$f":"IF('TSA Input'!J3713=\"\",\"\",IF(OR('TSA Input'!J3713=\"Yes\",'TSA Input'!J3713=\"Contingent\"),'TSA Input'!C3713,\"\"))","v":""},{"$f":"IF('TSA Input'!J3713=\"\",\"\",IF(OR('TSA Input'!J3713=\"Yes\",'TSA Input'!J3713=\"Contingent\"),'TSA Input'!D3713,\"\"))","v":""},{"$f":"IF('TSA Input'!J3713=\"\",\"\",IF(OR('TSA Input'!J3713=\"Yes\",'TSA Input'!J3713=\"Contingent\"),'TSA Input'!G3713,\"\"))","v":""},{"$f":"IF('TSA Input'!J3713=\"\",\"\",IF(OR('TSA Input'!J3713=\"Yes\",'TSA Input'!J3713=\"Contingent\"),'TSA Input'!F3713,\"\"))","v":""},"",{"$f":"IF('TSA Input'!J3713=\"\",\"\",IF(OR('TSA Input'!J3713=\"Yes\",'TSA Input'!J3713=\"Contingent\"),'TSA Input'!D3713,\"\"))","v":""},{"$f":"IF('TSA Input'!J3713=\"\",\"\",IF(OR('TSA Input'!J3713=\"Yes\",'TSA Input'!J3713=\"Contingent\"),'TSA Input'!G3713,\"\"))","v":""},{"$f":"IF('TSA Input'!J3713=\"\",\"\",IF(OR('TSA Input'!J3713=\"Yes\",'TSA Input'!J3713=\"Contingent\"),'TSA Input'!F3713,\"\"))","v":""},"","Required","Required"]
["",null,{"$f":"IF('TSA Input'!J3714=\"\",\"\",IF(OR('TSA Input'!J3714=\"Yes\",'TSA Input'!J3714=\"Contingent\"),'TSA Input'!B3714,\"Ineligible\"))","v":""},{"$f":"IF('TSA Input'!J3714=\"\",\"\",IF(OR('TSA Input'!J3714=\"Yes\",'TSA Input'!J3714=\"Contingent\"),'TSA Input'!I3714,\"\"))","v":""},{"$f":"IF('TSA Input'!J3714=\"\",\"\",IF(OR('TSA Input'!J3714=\"Yes\",'TSA Input'!J3714=\"Contingent\"),'TSA Input'!C3714,\"\"))","v":""},{"$f":"IF('TSA Input'!J3714=\"\",\"\",IF(OR('TSA Input'!J3714=\"Yes\",'TSA Input'!J3714=\"Contingent\"),'TSA Input'!D3714,\"\"))","v":""},{"$f":"IF('TSA Input'!J3714=\"\",\"\",IF(OR('TSA Input'!J3714=\"Yes\",'TSA Input'!J3714=\"Contingent\"),'TSA Input'!G3714,\"\"))","v":""},{"$f":"IF('TSA Input'!J3714=\"\",\"\",IF(OR('TSA Input'!J3714=\"Yes\",'TSA Input'!J3714=\"Contingent\"),'TSA Input'!F3714,\"\"))","v":""},"",{"$f":"IF('TSA Input'!J3714=\"\",\"\",IF(OR('TSA Input'!J3714=\"Yes\",'TSA Input'!J3714=\"Contingent\"),'TSA Input'!D3714,\"\"))","v":""},{"$f":"IF('TSA Input'!J3714=\"\",\"\",IF(OR('TSA Input'!J3714=\"Yes\",'TSA Input'!J3714=\"Contingent\"),'TSA Input'!G3714,\"\"))","v":""},{"$f":"IF('TSA Input'!J3714=\"\",\"\",IF(OR('TSA Input'!J3714=\"Yes\",'TSA Input'!J3714=\"Contingent\"),'TSA Input'!F3714,\"\"))","v":""},"","Required","Required"]
["",null,{"$f":"IF('TSA Input'!J3715=\"\",\"\",IF(OR('TSA Input'!J3715=\"Yes\",'TSA Input'!J3715=\"Contingent\"),'TSA Input'!B3715,\"Ineligible\"))","v":""},{"$f":"IF('TSA Input'!J3715=\"\",\"\",IF(OR('TSA Input'!J3715=\"Yes\",'TSA Input'!J3715=\"Contingent\"),'TSA Input'!I3715,\"\"))","v":""},{"$f":"IF('TSA Input'!J3715=\"\",\"\",IF(OR('TSA Input'!J3715=\"Yes\",'TSA Input'!J3715=\"Contingent\"),'TSA Input'!C3715,\"\"))","v":""},{"$f":"IF('TSA Input'!J3715=\"\",\"\",IF(OR('TSA Input'!J3715=\"Yes\",'TSA Input'!J3715=\"Contingent\"),'TSA Input'!D3715,\"\"))","v":""},{"$f":"IF('TSA Input'!J3715=\"\",\"\",IF(OR('TSA Input'!J3715=\"Yes\",'TSA Input'!J3715=\"Contingent\"),'TSA Input'!G3715,\"\"))","v":""},{"$f":"IF('TSA Input'!J3715=\"\",\"\",IF(OR('TSA Input'!J3715=\"Yes\",'TSA Input'!J3715=\"Contingent\"),'TSA Input'!F3715,\"\"))","v":""},"",{"$f":"IF('TSA Input'!J3715=\"\",\"\",IF(OR('TSA Input'!J3715=\"Yes\",'TSA Input'!J3715=\"Contingent\"),'TSA Input'!D3715,\"\"))","v":""},{"$f":"IF('TSA Input'!J3715=\"\",\"\",IF(OR('TSA Input'!J3715=\"Yes\",'TSA Input'!J3715=\"Contingent\"),'TSA Input'!G3715,\"\"))","v":""},{"$f":"IF('TSA Input'!J3715=\"\",\"\",IF(OR('TSA Input'!J3715=\"Yes\",'TSA Input'!J3715=\"Contingent\"),'TSA Input'!F3715,\"\"))","v":""},"","Required","Required"]
["",null,{"$f":"IF('TSA Input'!J3716=\"\",\"\",IF(OR('TSA Input'!J3716=\"Yes\",'TSA Input'!J3716=\"Contingent\"),'TSA Input'!B3716,\"Ineligible\"))","v":""},{"$f":"IF('TSA Input'!J3716=\"\",\"\",IF(OR('TSA Input'!J3716=\"Yes\",'TSA Input'!J3716=\"Contingent\"),'TSA Input'!I3716,\"\"))","v":""},{"$f":"IF('TSA Input'!J3716=\"\",\"\",IF(OR('TSA Input'!J3716=\"Yes\",'TSA Input'!J3716=\"Contingent\"),'TSA Input'!C3716,\"\"))","v":""},{"$f":"IF('TSA Input'!J3716=\"\",\"\",IF(OR('TSA Input'!J3716=\"Yes\",'TSA Input'!J3716=\"Contingent\"),'TSA Input'!D3716,\"\"))","v":""},{"$f":"IF('TSA Input'!J3716=\"\",\"\",IF(OR('TSA Input'!J3716=\"Yes\",'TSA Input'!J3716=\"Contingent\"),'TSA Input'!G3716,\"\"))","v":""},{"$f":"IF('TSA Input'!J3716=\"\",\"\",IF(OR('TSA Input'!J3716=\"Yes\",'TSA Input'!J3716=\"Contingent\"),'TSA Input'!F3716,\"\"))","v":""},{"$f":"IF($C3754=\"\",\"\",SUM(F3754:H3754))","v":""},{"$f":"IF('TSA Input'!J3716=\"\",\"\",IF(OR('TSA Input'!J3716=\"Yes\",'TSA Input'!J3716=\"Contingent\"),'TSA Input'!D3716,\"\"))","v":""},{"$f":"IF('TSA Input'!J3716=\"\",\"\",IF(OR('TSA Input'!J3716=\"Yes\",'TSA Input'!J3716=\"Contingent\"),'TSA Input'!G3716,\"\"))","v":""},{"$f":"IF('TSA Input'!J3716=\"\",\"\",IF(OR('TSA Input'!J3716=\"Yes\",'TSA Input'!J3716=\"Contingent\"),'TSA Input'!F3716,\"\"))","v":""},{"$f":"IF($C3754=\"\",\"\",SUM(J3754:L3754))","v":""},"Required","Required"]
["",null,{"$f":"IF('TSA Input'!J3717=\"\",\"\",IF(OR('TSA Input'!J3717=\"Yes\",'TSA Input'!J3717=\"Contingent\"),'TSA Input'!B3717,\"Ineligible\"))","v":""},{"$f":"IF('TSA Input'!J3717=\"\",\"\",IF(OR('TSA Input'!J3717=\"Yes\",'TSA Input'!J3717=\"Contingent\"),'TSA Input'!I3717,\"\"))","v":""},{"$f":"IF('TSA Input'!J3717=\"\",\"\",IF(OR('TSA Input'!J3717=\"Yes\",'TSA Input'!J3717=\"Contingent\"),'TSA Input'!C3717,\"\"))","v":""},{"$f":"IF('TSA Input'!J3717=\"\",\"\",IF(OR('TSA Input'!J3717=\"Yes\",'TSA Input'!J3717=\"Contingent\"),'TSA Input'!D3717,\"\"))","v":""},{"$f":"IF('TSA Input'!J3717=\"\",\"\",IF(OR('TSA Input'!J3717=\"Yes\",'TSA Input'!J3717=\"Contingent\"),'TSA Input'!G3717,\"\"))","v":""},{"$f":"IF('TSA Input'!J3717=\"\",\"\",IF(OR('TSA Input'!J3717=\"Yes\",'TSA Input'!J3717=\"Contingent\"),'TSA Input'!F3717,\"\"))","v":""},"",{"$f":"IF('TSA Input'!J3717=\"\",\"\",IF(OR('TSA Input'!J3717=\"Yes\",'TSA Input'!J3717=\"Contingent\"),'TSA Input'!D3717,\"\"))","v":""},{"$f":"IF('TSA Input'!J3717=\"\",\"\",IF(OR('TSA Input'!J3717=\"Yes\",'TSA Input'!J3717=\"Contingent\"),'TSA Input'!G3717,\"\"))","v":""},{"$f":"IF('TSA Input'!J3717=\"\",\"\",IF(OR('TSA Input'!J3717=\"Yes\",'TSA Input'!J3717=\"Contingent\"),'TSA Input'!F3717,\"\"))","v":""},"","Required","Required"]
["",null,{"$f":"IF('TSA Input'!J3718=\"\",\"\",IF(OR('TSA Input'!J3718=\"Yes\",'TSA Input'!J3718=\"Contingent\"),'TSA Input'!B3718,\"Ineligible\"))","v":""},{"$f":"IF('TSA Input'!J3718=\"\",\"\",IF(OR('TSA Input'!J3718=\"Yes\",'TSA Input'!J3718=\"Contingent\"),'TSA Input'!I3718,\"\"))","v":""},{"$f":"IF('TSA Input'!J3718=\"\",\"\",IF(OR('TSA Input'!J3718=\"Yes\",'TSA Input'!J3718=\"Contingent\"),'TSA Input'!C3718,\"\"))","v":""},{"$f":"IF('TSA Input'!J3718=\"\",\"\",IF(OR('TSA Input'!J3718=\"Yes\",'TSA Input'!J3718=\"Contingent\"),'TSA Input'!D3718,\"\"))","v":""},{"$f":"IF('TSA Input'!J3718=\"\",\"\",IF(OR('TSA Input'!J3718=\"Yes\",'TSA Input'!J3718=\"Contingent\"),'TSA Input'!G3718,\"\"))","v":""},{"$f":"IF('TSA Input'!J3718=\"\",\"\",IF(OR('TSA Input'!J3718=\"Yes\",'TSA Input'!J3718=\"Contingent\"),'TSA Input'!F3718,\"\"))","v":""},"",{"$f":"IF('TSA Input'!J3718=\"\",\"\",IF(OR('TSA Input'!J3718=\"Yes\",'TSA Input'!J3718=\"Contingent\"),'TSA Input'!D3718,\"\"))","v":""},{"$f":"IF('TSA Input'!J3718=\"\",\"\",IF(OR('TSA Input'!J3718=\"Yes\",'TSA Input'!J3718=\"Contingent\"),'TSA Input'!G3718,\"\"))","v":""},{"$f":"IF('TSA Input'!J3718=\"\",\"\",IF(OR('TSA Input'!J3718=\"Yes\",'TSA Input'!J3718=\"Contingent\"),'TSA Input'!F3718,\"\"))","v":""},"","Required","Required"]
["",null,{"$f":"IF('TSA Input'!J3719=\"\",\"\",IF(OR('TSA Input'!J3719=\"Yes\",'TSA Input'!J3719=\"Contingent\"),'TSA Input'!B3719,\"Ineligible\"))","v":""},{"$f":"IF('TSA Input'!J3719=\"\",\"\",IF(OR('TSA Input'!J3719=\"Yes\",'TSA Input'!J3719=\"Contingent\"),'TSA Input'!I3719,\"\"))","v":""},{"$f":"IF('TSA Input'!J3719=\"\",\"\",IF(OR('TSA Input'!J3719=\"Yes\",'TSA Input'!J3719=\"Contingent\"),'TSA Input'!C3719,\"\"))","v":""},{"$f":"IF('TSA Input'!J3719=\"\",\"\",IF(OR('TSA Input'!J3719=\"Yes\",'TSA Input'!J3719=\"Contingent\"),'TSA Input'!D3719,\"\"))","v":""},{"$f":"IF('TSA Input'!J3719=\"\",\"\",IF(OR('TSA Input'!J3719=\"Yes\",'TSA Input'!J3719=\"Contingent\"),'TSA Input'!G3719,\"\"))","v":""},{"$f":"IF('TSA Input'!J3719=\"\",\"\",IF(OR('TSA Input'!J3719=\"Yes\",'TSA Input'!J3719=\"Contingent\"),'TSA Input'!F3719,\"\"))","v":""},"",{"$f":"IF('TSA Input'!J3719=\"\",\"\",IF(OR('TSA Input'!J3719=\"Yes\",'TSA Input'!J3719=\"Contingent\"),'TSA Input'!D3719,\"\"))","v":""},{"$f":"IF('TSA Input'!J3719=\"\",\"\",IF(OR('TSA Input'!J3719=\"Yes\",'TSA Input'!J3719=\"Contingent\"),'TSA Input'!G3719,\"\"))","v":""},{"$f":"IF('TSA Input'!J3719=\"\",\"\",IF(OR('TSA Input'!J3719=\"Yes\",'TSA Input'!J3719=\"Contingent\"),'TSA Input'!F3719,\"\"))","v":""},"","Required","Required"]
["",null,{"$f":"IF('TSA Input'!J3720=\"\",\"\",IF(OR('TSA Input'!J3720=\"Yes\",'TSA Input'!J3720=\"Contingent\"),'TSA Input'!B3720,\"Ineligible\"))","v":""},{"$f":"IF('TSA Input'!J3720=\"\",\"\",IF(OR('TSA Input'!J3720=\"Yes\",'TSA Input'!J3720=\"Contingent\"),'TSA Input'!I3720,\"\"))","v":""},{"$f":"IF('TSA Input'!J3720=\"\",\"\",IF(OR('TSA Input'!J3720=\"Yes\",'TSA Input'!J3720=\"Contingent\"),'TSA Input'!C3720,\"\"))","v":""},{"$f":"IF('TSA Input'!J3720=\"\",\"\",IF(OR('TSA Input'!J3720=\"Yes\",'TSA Input'!J3720=\"Contingent\"),'TSA Input'!D3720,\"\"))","v":""},{"$f":"IF('TSA Input'!J3720=\"\",\"\",IF(OR('TSA Input'!J3720=\"Yes\",'TSA Input'!J3720=\"Contingent\"),'TSA Input'!G3720,\"\"))","v":""},{"$f":"IF('TSA Input'!J3720=\"\",\"\",IF(OR('TSA Input'!J3720=\"Yes\",'TSA Input'!J3720=\"Contingent\"),'TSA Input'!F3720,\"\"))","v":""},"",{"$f":"IF('TSA Input'!J3720=\"\",\"\",IF(OR('TSA Input'!J3720=\"Yes\",'TSA Input'!J3720=\"Contingent\"),'TSA Input'!D3720,\"\"))","v":""},{"$f":"IF('TSA Input'!J3720=\"\",\"\",IF(OR('TSA Input'!J3720=\"Yes\",'TSA Input'!J3720=\"Contingent\"),'TSA Input'!G3720,\"\"))","v":""},{"$f":"IF('TSA Input'!J3720=\"\",\"\",IF(OR('TSA Input'!J3720=\"Yes\",'TSA Input'!J3720=\"Contingent\"),'TSA Input'!F3720,\"\"))","v":""},"","Required","Required"]
["",null,{"$f":"IF('TSA Input'!J3721=\"\",\"\",IF(OR('TSA Input'!J3721=\"Yes\",'TSA Input'!J3721=\"Contingent\"),'TSA Input'!B3721,\"Ineligible\"))","v":""},{"$f":"IF('TSA Input'!J3721=\"\",\"\",IF(OR('TSA Input'!J3721=\"Yes\",'TSA Input'!J3721=\"Contingent\"),'TSA Input'!I3721,\"\"))","v":""},{"$f":"IF('TSA Input'!J3721=\"\",\"\",IF(OR('TSA Input'!J3721=\"Yes\",'TSA Input'!J3721=\"Contingent\"),'TSA Input'!C3721,\"\"))","v":""},{"$f":"IF('TSA Input'!J3721=\"\",\"\",IF(OR('TSA Input'!J3721=\"Yes\",'TSA Input'!J3721=\"Contingent\"),'TSA Input'!D3721,\"\"))","v":""},{"$f":"IF('TSA Input'!J3721=\"\",\"\",IF(OR('TSA Input'!J3721=\"Yes\",'TSA Input'!J3721=\"Contingent\"),'TSA Input'!G3721,\"\"))","v":""},{"$f":"IF('TSA Input'!J3721=\"\",\"\",IF(OR('TSA Input'!J3721=\"Yes\",'TSA Input'!J3721=\"Contingent\"),'TSA Input'!F3721,\"\"))","v":""},"",{"$f":"IF('TSA Input'!J3721=\"\",\"\",IF(OR('TSA Input'!J3721=\"Yes\",'TSA Input'!J3721=\"Contingent\"),'TSA Input'!D3721,\"\"))","v":""},{"$f":"IF('TSA Input'!J3721=\"\",\"\",IF(OR('TSA Input'!J3721=\"Yes\",'TSA Input'!J3721=\"Contingent\"),'TSA Input'!G3721,\"\"))","v":""},{"$f":"IF('TSA Input'!J3721=\"\",\"\",IF(OR('TSA Input'!J3721=\"Yes\",'TSA Input'!J3721=\"Contingent\"),'TSA Input'!F3721,\"\"))","v":""},"","Required","Required"]
["",null,{"$f":"IF('TSA Input'!J3722=\"\",\"\",IF(OR('TSA Input'!J3722=\"Yes\",'TSA Input'!J3722=\"Contingent\"),'TSA Input'!B3722,\"Ineligible\"))","v":""},{"$f":"IF('TSA Input'!J3722=\"\",\"\",IF(OR('TSA Input'!J3722=\"Yes\",'TSA Input'!J3722=\"Contingent\"),'TSA Input'!I3722,\"\"))","v":""},{"$f":"IF('TSA Input'!J3722=\"\",\"\",IF(OR('TSA Input'!J3722=\"Yes\",'TSA Input'!J3722=\"Contingent\"),'TSA Input'!C3722,\"\"))","v":""},{"$f":"IF('TSA Input'!J3722=\"\",\"\",IF(OR('TSA Input'!J3722=\"Yes\",'TSA Input'!J3722=\"Contingent\"),'TSA Input'!D3722,\"\"))","v":""},{"$f":"IF('TSA Input'!J3722=\"\",\"\",IF(OR('TSA Input'!J3722=\"Yes\",'TSA Input'!J3722=\"Contingent\"),'TSA Input'!G3722,\"\"))","v":""},{"$f":"IF('TSA Input'!J3722=\"\",\"\",IF(OR('TSA Input'!J3722=\"Yes\",'TSA Input'!J3722=\"Contingent\"),'TSA Input'!F3722,\"\"))","v":""},"",{"$f":"IF('TSA Input'!J3722=\"\",\"\",IF(OR('TSA Input'!J3722=\"Yes\",'TSA Input'!J3722=\"Contingent\"),'TSA Input'!D3722,\"\"))","v":""},{"$f":"IF('TSA Input'!J3722=\"\",\"\",IF(OR('TSA Input'!J3722=\"Yes\",'TSA Input'!J3722=\"Contingent\"),'TSA Input'!G3722,\"\"))","v":""},{"$f":"IF('TSA Input'!J3722=\"\",\"\",IF(OR('TSA Input'!J3722=\"Yes\",'TSA Input'!J3722=\"Contingent\"),'TSA Input'!F3722,\"\"))","v":""},"","Required","Required"]
["",null,{"$f":"IF('TSA Input'!J3723=\"\",\"\",IF(OR('TSA Input'!J3723=\"Yes\",'TSA Input'!J3723=\"Contingent\"),'TSA Input'!B3723,\"Ineligible\"))","v":""},{"$f":"IF('TSA Input'!J3723=\"\",\"\",IF(OR('TSA Input'!J3723=\"Yes\",'TSA Input'!J3723=\"Contingent\"),'TSA Input'!I3723,\"\"))","v":""},{"$f":"IF('TSA Input'!J3723=\"\",\"\",IF(OR('TSA Input'!J3723=\"Yes\",'TSA Input'!J3723=\"Contingent\"),'TSA Input'!C3723,\"\"))","v":""},{"$f":"IF('TSA Input'!J3723=\"\",\"\",IF(OR('TSA Input'!J3723=\"Yes\",'TSA Input'!J3723=\"Contingent\"),'TSA Input'!D3723,\"\"))","v":""},{"$f":"IF('TSA Input'!J3723=\"\",\"\",IF(OR('TSA Input'!J3723=\"Yes\",'TSA Input'!J3723=\"Contingent\"),'TSA Input'!G3723,\"\"))","v":""},{"$f":"IF('TSA Input'!J3723=\"\",\"\",IF(OR('TSA Input'!J3723=\"Yes\",'TSA Input'!J3723=\"Contingent\"),'TSA Input'!F3723,\"\"))","v":""},"",{"$f":"IF('TSA Input'!J3723=\"\",\"\",IF(OR('TSA Input'!J3723=\"Yes\",'TSA Input'!J3723=\"Contingent\"),'TSA Input'!D3723,\"\"))","v":""},{"$f":"IF('TSA Input'!J3723=\"\",\"\",IF(OR('TSA Input'!J3723=\"Yes\",'TSA Input'!J3723=\"Contingent\"),'TSA Input'!G3723,\"\"))","v":""},{"$f":"IF('TSA Input'!J3723=\"\",\"\",IF(OR('TSA Input'!J3723=\"Yes\",'TSA Input'!J3723=\"Contingent\"),'TSA Input'!F3723,\"\"))","v":""},"","Required","Required"]
["",null,{"$f":"IF('TSA Input'!J3724=\"\",\"\",IF(OR('TSA Input'!J3724=\"Yes\",'TSA Input'!J3724=\"Contingent\"),'TSA Input'!B3724,\"Ineligible\"))","v":""},{"$f":"IF('TSA Input'!J3724=\"\",\"\",IF(OR('TSA Input'!J3724=\"Yes\",'TSA Input'!J3724=\"Contingent\"),'TSA Input'!I3724,\"\"))","v":""},{"$f":"IF('TSA Input'!J3724=\"\",\"\",IF(OR('TSA Input'!J3724=\"Yes\",'TSA Input'!J3724=\"Contingent\"),'TSA Input'!C3724,\"\"))","v":""},{"$f":"IF('TSA Input'!J3724=\"\",\"\",IF(OR('TSA Input'!J3724=\"Yes\",'TSA Input'!J3724=\"Contingent\"),'TSA Input'!D3724,\"\"))","v":""},{"$f":"IF('TSA Input'!J3724=\"\",\"\",IF(OR('TSA Input'!J3724=\"Yes\",'TSA Input'!J3724=\"Contingent\"),'TSA Input'!G3724,\"\"))","v":""},{"$f":"IF('TSA Input'!J3724=\"\",\"\",IF(OR('TSA Input'!J3724=\"Yes\",'TSA Input'!J3724=\"Contingent\"),'TSA Input'!F3724,\"\"))","v":""},"",{"$f":"IF('TSA Input'!J3724=\"\",\"\",IF(OR('TSA Input'!J3724=\"Yes\",'TSA Input'!J3724=\"Contingent\"),'TSA Input'!D3724,\"\"))","v":""},{"$f":"IF('TSA Input'!J3724=\"\",\"\",IF(OR('TSA Input'!J3724=\"Yes\",'TSA Input'!J3724=\"Contingent\"),'TSA Input'!G3724,\"\"))","v":""},{"$f":"IF('TSA Input'!J3724=\"\",\"\",IF(OR('TSA Input'!J3724=\"Yes\",'TSA Input'!J3724=\"Contingent\"),'TSA Input'!F3724,\"\"))","v":""},"","Required","Required"]
["",null,{"$f":"IF('TSA Input'!J3725=\"\",\"\",IF(OR('TSA Input'!J3725=\"Yes\",'TSA Input'!J3725=\"Contingent\"),'TSA Input'!B3725,\"Ineligible\"))","v":""},{"$f":"IF('TSA Input'!J3725=\"\",\"\",IF(OR('TSA Input'!J3725=\"Yes\",'TSA Input'!J3725=\"Contingent\"),'TSA Input'!I3725,\"\"))","v":""},{"$f":"IF('TSA Input'!J3725=\"\",\"\",IF(OR('TSA Input'!J3725=\"Yes\",'TSA Input'!J3725=\"Contingent\"),'TSA Input'!C3725,\"\"))","v":""},{"$f":"IF('TSA Input'!J3725=\"\",\"\",IF(OR('TSA Input'!J3725=\"Yes\",'TSA Input'!J3725=\"Contingent\"),'TSA Input'!D3725,\"\"))","v":""},{"$f":"IF('TSA Input'!J3725=\"\",\"\",IF(OR('TSA Input'!J3725=\"Yes\",'TSA Input'!J3725=\"Contingent\"),'TSA Input'!G3725,\"\"))","v":""},{"$f":"IF('TSA Input'!J3725=\"\",\"\",IF(OR('TSA Input'!J3725=\"Yes\",'TSA Input'!J3725=\"Contingent\"),'TSA Input'!F3725,\"\"))","v":""},"",{"$f":"IF('TSA Input'!J3725=\"\",\"\",IF(OR('TSA Input'!J3725=\"Yes\",'TSA Input'!J3725=\"Contingent\"),'TSA Input'!D3725,\"\"))","v":""},{"$f":"IF('TSA Input'!J3725=\"\",\"\",IF(OR('TSA Input'!J3725=\"Yes\",'TSA Input'!J3725=\"Contingent\"),'TSA Input'!G3725,\"\"))","v":""},{"$f":"IF('TSA Input'!J3725=\"\",\"\",IF(OR('TSA Input'!J3725=\"Yes\",'TSA Input'!J3725=\"Contingent\"),'TSA Input'!F3725,\"\"))","v":""},"","Required","Required"]
["",null,{"$f":"IF('TSA Input'!J3726=\"\",\"\",IF(OR('TSA Input'!J3726=\"Yes\",'TSA Input'!J3726=\"Contingent\"),'TSA Input'!B3726,\"Ineligible\"))","v":""},{"$f":"IF('TSA Input'!J3726=\"\",\"\",IF(OR('TSA Input'!J3726=\"Yes\",'TSA Input'!J3726=\"Contingent\"),'TSA Input'!I3726,\"\"))","v":""},{"$f":"IF('TSA Input'!J3726=\"\",\"\",IF(OR('TSA Input'!J3726=\"Yes\",'TSA Input'!J3726=\"Contingent\"),'TSA Input'!C3726,\"\"))","v":""},{"$f":"IF('TSA Input'!J3726=\"\",\"\",IF(OR('TSA Input'!J3726=\"Yes\",'TSA Input'!J3726=\"Contingent\"),'TSA Input'!D3726,\"\"))","v":""},{"$f":"IF('TSA Input'!J3726=\"\",\"\",IF(OR('TSA Input'!J3726=\"Yes\",'TSA Input'!J3726=\"Contingent\"),'TSA Input'!G3726,\"\"))","v":""},{"$f":"IF('TSA Input'!J3726=\"\",\"\",IF(OR('TSA Input'!J3726=\"Yes\",'TSA Input'!J3726=\"Contingent\"),'TSA Input'!F3726,\"\"))","v":""},"",{"$f":"IF('TSA Input'!J3726=\"\",\"\",IF(OR('TSA Input'!J3726=\"Yes\",'TSA Input'!J3726=\"Contingent\"),'TSA Input'!D3726,\"\"))","v":""},{"$f":"IF('TSA Input'!J3726=\"\",\"\",IF(OR('TSA Input'!J3726=\"Yes\",'TSA Input'!J3726=\"Contingent\"),'TSA Input'!G3726,\"\"))","v":""},{"$f":"IF('TSA Input'!J3726=\"\",\"\",IF(OR('TSA Input'!J3726=\"Yes\",'TSA Input'!J3726=\"Contingent\"),'TSA Input'!F3726,\"\"))","v":""},"","Required","Required"]
["",null,{"$f":"IF('TSA Input'!J3727=\"\",\"\",IF(OR('TSA Input'!J3727=\"Yes\",'TSA Input'!J3727=\"Contingent\"),'TSA Input'!B3727,\"Ineligible\"))","v":""},{"$f":"IF('TSA Input'!J3727=\"\",\"\",IF(OR('TSA Input'!J3727=\"Yes\",'TSA Input'!J3727=\"Contingent\"),'TSA Input'!I3727,\"\"))","v":""},{"$f":"IF('TSA Input'!J3727=\"\",\"\",IF(OR('TSA Input'!J3727=\"Yes\",'TSA Input'!J3727=\"Contingent\"),'TSA Input'!C3727,\"\"))","v":""},{"$f":"IF('TSA Input'!J3727=\"\",\"\",IF(OR('TSA Input'!J3727=\"Yes\",'TSA Input'!J3727=\"Contingent\"),'TSA Input'!D3727,\"\"))","v":""},{"$f":"IF('TSA Input'!J3727=\"\",\"\",IF(OR('TSA Input'!J3727=\"Yes\",'TSA Input'!J3727=\"Contingent\"),'TSA Input'!G3727,\"\"))","v":""},{"$f":"IF('TSA Input'!J3727=\"\",\"\",IF(OR('TSA Input'!J3727=\"Yes\",'TSA Input'!J3727=\"Contingent\"),'TSA Input'!F3727,\"\"))","v":""},"",{"$f":"IF('TSA Input'!J3727=\"\",\"\",IF(OR('TSA Input'!J3727=\"Yes\",'TSA Input'!J3727=\"Contingent\"),'TSA Input'!D3727,\"\"))","v":""},{"$f":"IF('TSA Input'!J3727=\"\",\"\",IF(OR('TSA Input'!J3727=\"Yes\",'TSA Input'!J3727=\"Contingent\"),'TSA Input'!G3727,\"\"))","v":""},{"$f":"IF('TSA Input'!J3727=\"\",\"\",IF(OR('TSA Input'!J3727=\"Yes\",'TSA Input'!J3727=\"Contingent\"),'TSA Input'!F3727,\"\"))","v":""},"","Required","Required"]
["",null,{"$f":"IF('TSA Input'!J3728=\"\",\"\",IF(OR('TSA Input'!J3728=\"Yes\",'TSA Input'!J3728=\"Contingent\"),'TSA Input'!B3728,\"Ineligible\"))","v":""},{"$f":"IF('TSA Input'!J3728=\"\",\"\",IF(OR('TSA Input'!J3728=\"Yes\",'TSA Input'!J3728=\"Contingent\"),'TSA Input'!I3728,\"\"))","v":""},{"$f":"IF('TSA Input'!J3728=\"\",\"\",IF(OR('TSA Input'!J3728=\"Yes\",'TSA Input'!J3728=\"Contingent\"),'TSA Input'!C3728,\"\"))","v":""},{"$f":"IF('TSA Input'!J3728=\"\",\"\",IF(OR('TSA Input'!J3728=\"Yes\",'TSA Input'!J3728=\"Contingent\"),'TSA Input'!D3728,\"\"))","v":""},{"$f":"IF('TSA Input'!J3728=\"\",\"\",IF(OR('TSA Input'!J3728=\"Yes\",'TSA Input'!J3728=\"Contingent\"),'TSA Input'!G3728,\"\"))","v":""},{"$f":"IF('TSA Input'!J3728=\"\",\"\",IF(OR('TSA Input'!J3728=\"Yes\",'TSA Input'!J3728=\"Contingent\"),'TSA Input'!F3728,\"\"))","v":""},"",{"$f":"IF('TSA Input'!J3728=\"\",\"\",IF(OR('TSA Input'!J3728=\"Yes\",'TSA Input'!J3728=\"Contingent\"),'TSA Input'!D3728,\"\"))","v":""},{"$f":"IF('TSA Input'!J3728=\"\",\"\",IF(OR('TSA Input'!J3728=\"Yes\",'TSA Input'!J3728=\"Contingent\"),'TSA Input'!G3728,\"\"))","v":""},{"$f":"IF('TSA Input'!J3728=\"\",\"\",IF(OR('TSA Input'!J3728=\"Yes\",'TSA Input'!J3728=\"Contingent\"),'TSA Input'!F3728,\"\"))","v":""},"","Required","Required"]
["",null,{"$f":"IF('TSA Input'!J3729=\"\",\"\",IF(OR('TSA Input'!J3729=\"Yes\",'TSA Input'!J3729=\"Contingent\"),'TSA Input'!B3729,\"Ineligible\"))","v":""},{"$f":"IF('TSA Input'!J3729=\"\",\"\",IF(OR('TSA Input'!J3729=\"Yes\",'TSA Input'!J3729=\"Contingent\"),'TSA Input'!I3729,\"\"))","v":""},{"$f":"IF('TSA Input'!J3729=\"\",\"\",IF(OR('TSA Input'!J3729=\"Yes\",'TSA Input'!J3729=\"Contingent\"),'TSA Input'!C3729,\"\"))","v":""},{"$f":"IF('TSA Input'!J3729=\"\",\"\",IF(OR('TSA Input'!J3729=\"Yes\",'TSA Input'!J3729=\"Contingent\"),'TSA Input'!D3729,\"\"))","v":""},{"$f":"IF('TSA Input'!J3729=\"\",\"\",IF(OR('TSA Input'!J3729=\"Yes\",'TSA Input'!J3729=\"Contingent\"),'TSA Input'!G3729,\"\"))","v":""},{"$f":"IF('TSA Input'!J3729=\"\",\"\",IF(OR('TSA Input'!J3729=\"Yes\",'TSA Input'!J3729=\"Contingent\"),'TSA Input'!F3729,\"\"))","v":""},"",{"$f":"IF('TSA Input'!J3729=\"\",\"\",IF(OR('TSA Input'!J3729=\"Yes\",'TSA Input'!J3729=\"Contingent\"),'TSA Input'!D3729,\"\"))","v":""},{"$f":"IF('TSA Input'!J3729=\"\",\"\",IF(OR('TSA Input'!J3729=\"Yes\",'TSA Input'!J3729=\"Contingent\"),'TSA Input'!G3729,\"\"))","v":""},{"$f":"IF('TSA Input'!J3729=\"\",\"\",IF(OR('TSA Input'!J3729=\"Yes\",'TSA Input'!J3729=\"Contingent\"),'TSA Input'!F3729,\"\"))","v":""},"","Required","Required"]
["",null,{"$f":"IF('TSA Input'!J3730=\"\",\"\",IF(OR('TSA Input'!J3730=\"Yes\",'TSA Input'!J3730=\"Contingent\"),'TSA Input'!B3730,\"Ineligible\"))","v":""},{"$f":"IF('TSA Input'!J3730=\"\",\"\",IF(OR('TSA Input'!J3730=\"Yes\",'TSA Input'!J3730=\"Contingent\"),'TSA Input'!I3730,\"\"))","v":""},{"$f":"IF('TSA Input'!J3730=\"\",\"\",IF(OR('TSA Input'!J3730=\"Yes\",'TSA Input'!J3730=\"Contingent\"),'TSA Input'!C3730,\"\"))","v":""},{"$f":"IF('TSA Input'!J3730=\"\",\"\",IF(OR('TSA Input'!J3730=\"Yes\",'TSA Input'!J3730=\"Contingent\"),'TSA Input'!D3730,\"\"))","v":""},{"$f":"IF('TSA Input'!J3730=\"\",\"\",IF(OR('TSA Input'!J3730=\"Yes\",'TSA Input'!J3730=\"Contingent\"),'TSA Input'!G3730,\"\"))","v":""},{"$f":"IF('TSA Input'!J3730=\"\",\"\",IF(OR('TSA Input'!J3730=\"Yes\",'TSA Input'!J3730=\"Contingent\"),'TSA Input'!F3730,\"\"))","v":""},"",{"$f":"IF('TSA Input'!J3730=\"\",\"\",IF(OR('TSA Input'!J3730=\"Yes\",'TSA Input'!J3730=\"Contingent\"),'TSA Input'!D3730,\"\"))","v":""},{"$f":"IF('TSA Input'!J3730=\"\",\"\",IF(OR('TSA Input'!J3730=\"Yes\",'TSA Input'!J3730=\"Contingent\"),'TSA Input'!G3730,\"\"))","v":""},{"$f":"IF('TSA Input'!J3730=\"\",\"\",IF(OR('TSA Input'!J3730=\"Yes\",'TSA Input'!J3730=\"Contingent\"),'TSA Input'!F3730,\"\"))","v":""},"","Required","Required"]
["",null,{"$f":"IF('TSA Input'!J3731=\"\",\"\",IF(OR('TSA Input'!J3731=\"Yes\",'TSA Input'!J3731=\"Contingent\"),'TSA Input'!B3731,\"Ineligible\"))","v":""},{"$f":"IF('TSA Input'!J3731=\"\",\"\",IF(OR('TSA Input'!J3731=\"Yes\",'TSA Input'!J3731=\"Contingent\"),'TSA Input'!I3731,\"\"))","v":""},{"$f":"IF('TSA Input'!J3731=\"\",\"\",IF(OR('TSA Input'!J3731=\"Yes\",'TSA Input'!J3731=\"Contingent\"),'TSA Input'!C3731,\"\"))","v":""},{"$f":"IF('TSA Input'!J3731=\"\",\"\",IF(OR('TSA Input'!J3731=\"Yes\",'TSA Input'!J3731=\"Contingent\"),'TSA Input'!D3731,\"\"))","v":""},{"$f":"IF('TSA Input'!J3731=\"\",\"\",IF(OR('TSA Input'!J3731=\"Yes\",'TSA Input'!J3731=\"Contingent\"),'TSA Input'!G3731,\"\"))","v":""},{"$f":"IF('TSA Input'!J3731=\"\",\"\",IF(OR('TSA Input'!J3731=\"Yes\",'TSA Input'!J3731=\"Contingent\"),'TSA Input'!F3731,\"\"))","v":""},"",{"$f":"IF('TSA Input'!J3731=\"\",\"\",IF(OR('TSA Input'!J3731=\"Yes\",'TSA Input'!J3731=\"Contingent\"),'TSA Input'!D3731,\"\"))","v":""},{"$f":"IF('TSA Input'!J3731=\"\",\"\",IF(OR('TSA Input'!J3731=\"Yes\",'TSA Input'!J3731=\"Contingent\"),'TSA Input'!G3731,\"\"))","v":""},{"$f":"IF('TSA Input'!J3731=\"\",\"\",IF(OR('TSA Input'!J3731=\"Yes\",'TSA Input'!J3731=\"Contingent\"),'TSA Input'!F3731,\"\"))","v":""},"","Required","Required"]
["",null,{"$f":"IF('TSA Input'!J3732=\"\",\"\",IF(OR('TSA Input'!J3732=\"Yes\",'TSA Input'!J3732=\"Contingent\"),'TSA Input'!B3732,\"Ineligible\"))","v":""},{"$f":"IF('TSA Input'!J3732=\"\",\"\",IF(OR('TSA Input'!J3732=\"Yes\",'TSA Input'!J3732=\"Contingent\"),'TSA Input'!I3732,\"\"))","v":""},{"$f":"IF('TSA Input'!J3732=\"\",\"\",IF(OR('TSA Input'!J3732=\"Yes\",'TSA Input'!J3732=\"Contingent\"),'TSA Input'!C3732,\"\"))","v":""},{"$f":"IF('TSA Input'!J3732=\"\",\"\",IF(OR('TSA Input'!J3732=\"Yes\",'TSA Input'!J3732=\"Contingent\"),'TSA Input'!D3732,\"\"))","v":""},{"$f":"IF('TSA Input'!J3732=\"\",\"\",IF(OR('TSA Input'!J3732=\"Yes\",'TSA Input'!J3732=\"Contingent\"),'TSA Input'!G3732,\"\"))","v":""},{"$f":"IF('TSA Input'!J3732=\"\",\"\",IF(OR('TSA Input'!J3732=\"Yes\",'TSA Input'!J3732=\"Contingent\"),'TSA Input'!F3732,\"\"))","v":""},"",{"$f":"IF('TSA Input'!J3732=\"\",\"\",IF(OR('TSA Input'!J3732=\"Yes\",'TSA Input'!J3732=\"Contingent\"),'TSA Input'!D3732,\"\"))","v":""},{"$f":"IF('TSA Input'!J3732=\"\",\"\",IF(OR('TSA Input'!J3732=\"Yes\",'TSA Input'!J3732=\"Contingent\"),'TSA Input'!G3732,\"\"))","v":""},{"$f":"IF('TSA Input'!J3732=\"\",\"\",IF(OR('TSA Input'!J3732=\"Yes\",'TSA Input'!J3732=\"Contingent\"),'TSA Input'!F3732,\"\"))","v":""},"","Required","Required"]
["",null,{"$f":"IF('TSA Input'!J3733=\"\",\"\",IF(OR('TSA Input'!J3733=\"Yes\",'TSA Input'!J3733=\"Contingent\"),'TSA Input'!B3733,\"Ineligible\"))","v":""},{"$f":"IF('TSA Input'!J3733=\"\",\"\",IF(OR('TSA Input'!J3733=\"Yes\",'TSA Input'!J3733=\"Contingent\"),'TSA Input'!I3733,\"\"))","v":""},{"$f":"IF('TSA Input'!J3733=\"\",\"\",IF(OR('TSA Input'!J3733=\"Yes\",'TSA Input'!J3733=\"Contingent\"),'TSA Input'!C3733,\"\"))","v":""},{"$f":"IF('TSA Input'!J3733=\"\",\"\",IF(OR('TSA Input'!J3733=\"Yes\",'TSA Input'!J3733=\"Contingent\"),'TSA Input'!D3733,\"\"))","v":""},{"$f":"IF('TSA Input'!J3733=\"\",\"\",IF(OR('TSA Input'!J3733=\"Yes\",'TSA Input'!J3733=\"Contingent\"),'TSA Input'!G3733,\"\"))","v":""},{"$f":"IF('TSA Input'!J3733=\"\",\"\",IF(OR('TSA Input'!J3733=\"Yes\",'TSA Input'!J3733=\"Contingent\"),'TSA Input'!F3733,\"\"))","v":""},"",{"$f":"IF('TSA Input'!J3733=\"\",\"\",IF(OR('TSA Input'!J3733=\"Yes\",'TSA Input'!J3733=\"Contingent\"),'TSA Input'!D3733,\"\"))","v":""},{"$f":"IF('TSA Input'!J3733=\"\",\"\",IF(OR('TSA Input'!J3733=\"Yes\",'TSA Input'!J3733=\"Contingent\"),'TSA Input'!G3733,\"\"))","v":""},{"$f":"IF('TSA Input'!J3733=\"\",\"\",IF(OR('TSA Input'!J3733=\"Yes\",'TSA Input'!J3733=\"Contingent\"),'TSA Input'!F3733,\"\"))","v":""},"","Required","Required"]
["",null,{"$f":"IF('TSA Input'!J3734=\"\",\"\",IF(OR('TSA Input'!J3734=\"Yes\",'TSA Input'!J3734=\"Contingent\"),'TSA Input'!B3734,\"Ineligible\"))","v":""},{"$f":"IF('TSA Input'!J3734=\"\",\"\",IF(OR('TSA Input'!J3734=\"Yes\",'TSA Input'!J3734=\"Contingent\"),'TSA Input'!I3734,\"\"))","v":""},{"$f":"IF('TSA Input'!J3734=\"\",\"\",IF(OR('TSA Input'!J3734=\"Yes\",'TSA Input'!J3734=\"Contingent\"),'TSA Input'!C3734,\"\"))","v":""},{"$f":"IF('TSA Input'!J3734=\"\",\"\",IF(OR('TSA Input'!J3734=\"Yes\",'TSA Input'!J3734=\"Contingent\"),'TSA Input'!D3734,\"\"))","v":""},{"$f":"IF('TSA Input'!J3734=\"\",\"\",IF(OR('TSA Input'!J3734=\"Yes\",'TSA Input'!J3734=\"Contingent\"),'TSA Input'!G3734,\"\"))","v":""},{"$f":"IF('TSA Input'!J3734=\"\",\"\",IF(OR('TSA Input'!J3734=\"Yes\",'TSA Input'!J3734=\"Contingent\"),'TSA Input'!F3734,\"\"))","v":""},"",{"$f":"IF('TSA Input'!J3734=\"\",\"\",IF(OR('TSA Input'!J3734=\"Yes\",'TSA Input'!J3734=\"Contingent\"),'TSA Input'!D3734,\"\"))","v":""},{"$f":"IF('TSA Input'!J3734=\"\",\"\",IF(OR('TSA Input'!J3734=\"Yes\",'TSA Input'!J3734=\"Contingent\"),'TSA Input'!G3734,\"\"))","v":""},{"$f":"IF('TSA Input'!J3734=\"\",\"\",IF(OR('TSA Input'!J3734=\"Yes\",'TSA Input'!J3734=\"Contingent\"),'TSA Input'!F3734,\"\"))","v":""},"","Required","Required"]
["",null,{"$f":"IF('TSA Input'!J3735=\"\",\"\",IF(OR('TSA Input'!J3735=\"Yes\",'TSA Input'!J3735=\"Contingent\"),'TSA Input'!B3735,\"Ineligible\"))","v":""},{"$f":"IF('TSA Input'!J3735=\"\",\"\",IF(OR('TSA Input'!J3735=\"Yes\",'TSA Input'!J3735=\"Contingent\"),'TSA Input'!I3735,\"\"))","v":""},{"$f":"IF('TSA Input'!J3735=\"\",\"\",IF(OR('TSA Input'!J3735=\"Yes\",'TSA Input'!J3735=\"Contingent\"),'TSA Input'!C3735,\"\"))","v":""},{"$f":"IF('TSA Input'!J3735=\"\",\"\",IF(OR('TSA Input'!J3735=\"Yes\",'TSA Input'!J3735=\"Contingent\"),'TSA Input'!D3735,\"\"))","v":""},{"$f":"IF('TSA Input'!J3735=\"\",\"\",IF(OR('TSA Input'!J3735=\"Yes\",'TSA Input'!J3735=\"Contingent\"),'TSA Input'!G3735,\"\"))","v":""},{"$f":"IF('TSA Input'!J3735=\"\",\"\",IF(OR('TSA Input'!J3735=\"Yes\",'TSA Input'!J3735=\"Contingent\"),'TSA Input'!F3735,\"\"))","v":""},"",{"$f":"IF('TSA Input'!J3735=\"\",\"\",IF(OR('TSA Input'!J3735=\"Yes\",'TSA Input'!J3735=\"Contingent\"),'TSA Input'!D3735,\"\"))","v":""},{"$f":"IF('TSA Input'!J3735=\"\",\"\",IF(OR('TSA Input'!J3735=\"Yes\",'TSA Input'!J3735=\"Contingent\"),'TSA Input'!G3735,\"\"))","v":""},{"$f":"IF('TSA Input'!J3735=\"\",\"\",IF(OR('TSA Input'!J3735=\"Yes\",'TSA Input'!J3735=\"Contingent\"),'TSA Input'!F3735,\"\"))","v":""},"","Required","Required"]
["",null,{"$f":"IF('TSA Input'!J3736=\"\",\"\",IF(OR('TSA Input'!J3736=\"Yes\",'TSA Input'!J3736=\"Contingent\"),'TSA Input'!B3736,\"Ineligible\"))","v":""},{"$f":"IF('TSA Input'!J3736=\"\",\"\",IF(OR('TSA Input'!J3736=\"Yes\",'TSA Input'!J3736=\"Contingent\"),'TSA Input'!I3736,\"\"))","v":""},{"$f":"IF('TSA Input'!J3736=\"\",\"\",IF(OR('TSA Input'!J3736=\"Yes\",'TSA Input'!J3736=\"Contingent\"),'TSA Input'!C3736,\"\"))","v":""},{"$f":"IF('TSA Input'!J3736=\"\",\"\",IF(OR('TSA Input'!J3736=\"Yes\",'TSA Input'!J3736=\"Contingent\"),'TSA Input'!D3736,\"\"))","v":""},{"$f":"IF('TSA Input'!J3736=\"\",\"\",IF(OR('TSA Input'!J3736=\"Yes\",'TSA Input'!J3736=\"Contingent\"),'TSA Input'!G3736,\"\"))","v":""},{"$f":"IF('TSA Input'!J3736=\"\",\"\",IF(OR('TSA Input'!J3736=\"Yes\",'TSA Input'!J3736=\"Contingent\"),'TSA Input'!F3736,\"\"))","v":""},"",{"$f":"IF('TSA Input'!J3736=\"\",\"\",IF(OR('TSA Input'!J3736=\"Yes\",'TSA Input'!J3736=\"Contingent\"),'TSA Input'!D3736,\"\"))","v":""},{"$f":"IF('TSA Input'!J3736=\"\",\"\",IF(OR('TSA Input'!J3736=\"Yes\",'TSA Input'!J3736=\"Contingent\"),'TSA Input'!G3736,\"\"))","v":""},{"$f":"IF('TSA Input'!J3736=\"\",\"\",IF(OR('TSA Input'!J3736=\"Yes\",'TSA Input'!J3736=\"Contingent\"),'TSA Input'!F3736,\"\"))","v":""},"","Required","Required"]
["",null,{"$f":"IF('TSA Input'!J3737=\"\",\"\",IF(OR('TSA Input'!J3737=\"Yes\",'TSA Input'!J3737=\"Contingent\"),'TSA Input'!B3737,\"Ineligible\"))","v":""},{"$f":"IF('TSA Input'!J3737=\"\",\"\",IF(OR('TSA Input'!J3737=\"Yes\",'TSA Input'!J3737=\"Contingent\"),'TSA Input'!I3737,\"\"))","v":""},{"$f":"IF('TSA Input'!J3737=\"\",\"\",IF(OR('TSA Input'!J3737=\"Yes\",'TSA Input'!J3737=\"Contingent\"),'TSA Input'!C3737,\"\"))","v":""},{"$f":"IF('TSA Input'!J3737=\"\",\"\",IF(OR('TSA Input'!J3737=\"Yes\",'TSA Input'!J3737=\"Contingent\"),'TSA Input'!D3737,\"\"))","v":""},{"$f":"IF('TSA Input'!J3737=\"\",\"\",IF(OR('TSA Input'!J3737=\"Yes\",'TSA Input'!J3737=\"Contingent\"),'TSA Input'!G3737,\"\"))","v":""},{"$f":"IF('TSA Input'!J3737=\"\",\"\",IF(OR('TSA Input'!J3737=\"Yes\",'TSA Input'!J3737=\"Contingent\"),'TSA Input'!F3737,\"\"))","v":""},"",{"$f":"IF('TSA Input'!J3737=\"\",\"\",IF(OR('TSA Input'!J3737=\"Yes\",'TSA Input'!J3737=\"Contingent\"),'TSA Input'!D3737,\"\"))","v":""},{"$f":"IF('TSA Input'!J3737=\"\",\"\",IF(OR('TSA Input'!J3737=\"Yes\",'TSA Input'!J3737=\"Contingent\"),'TSA Input'!G3737,\"\"))","v":""},{"$f":"IF('TSA Input'!J3737=\"\",\"\",IF(OR('TSA Input'!J3737=\"Yes\",'TSA Input'!J3737=\"Contingent\"),'TSA Input'!F3737,\"\"))","v":""},"","Required","Required"]
["",null,{"$f":"IF('TSA Input'!J3738=\"\",\"\",IF(OR('TSA Input'!J3738=\"Yes\",'TSA Input'!J3738=\"Contingent\"),'TSA Input'!B3738,\"Ineligible\"))","v":""},{"$f":"IF('TSA Input'!J3738=\"\",\"\",IF(OR('TSA Input'!J3738=\"Yes\",'TSA Input'!J3738=\"Contingent\"),'TSA Input'!I3738,\"\"))","v":""},{"$f":"IF('TSA Input'!J3738=\"\",\"\",IF(OR('TSA Input'!J3738=\"Yes\",'TSA Input'!J3738=\"Contingent\"),'TSA Input'!C3738,\"\"))","v":""},{"$f":"IF('TSA Input'!J3738=\"\",\"\",IF(OR('TSA Input'!J3738=\"Yes\",'TSA Input'!J3738=\"Contingent\"),'TSA Input'!D3738,\"\"))","v":""},{"$f":"IF('TSA Input'!J3738=\"\",\"\",IF(OR('TSA Input'!J3738=\"Yes\",'TSA Input'!J3738=\"Contingent\"),'TSA Input'!G3738,\"\"))","v":""},{"$f":"IF('TSA Input'!J3738=\"\",\"\",IF(OR('TSA Input'!J3738=\"Yes\",'TSA Input'!J3738=\"Contingent\"),'TSA Input'!F3738,\"\"))","v":""},"",{"$f":"IF('TSA Input'!J3738=\"\",\"\",IF(OR('TSA Input'!J3738=\"Yes\",'TSA Input'!J3738=\"Contingent\"),'TSA Input'!D3738,\"\"))","v":""},{"$f":"IF('TSA Input'!J3738=\"\",\"\",IF(OR('TSA Input'!J3738=\"Yes\",'TSA Input'!J3738=\"Contingent\"),'TSA Input'!G3738,\"\"))","v":""},{"$f":"IF('TSA Input'!J3738=\"\",\"\",IF(OR('TSA Input'!J3738=\"Yes\",'TSA Input'!J3738=\"Contingent\"),'TSA Input'!F3738,\"\"))","v":""},"","Required","Required"]
["",null,{"$f":"IF('TSA Input'!J3739=\"\",\"\",IF(OR('TSA Input'!J3739=\"Yes\",'TSA Input'!J3739=\"Contingent\"),'TSA Input'!B3739,\"Ineligible\"))","v":""},{"$f":"IF('TSA Input'!J3739=\"\",\"\",IF(OR('TSA Input'!J3739=\"Yes\",'TSA Input'!J3739=\"Contingent\"),'TSA Input'!I3739,\"\"))","v":""},{"$f":"IF('TSA Input'!J3739=\"\",\"\",IF(OR('TSA Input'!J3739=\"Yes\",'TSA Input'!J3739=\"Contingent\"),'TSA Input'!C3739,\"\"))","v":""},{"$f":"IF('TSA Input'!J3739=\"\",\"\",IF(OR('TSA Input'!J3739=\"Yes\",'TSA Input'!J3739=\"Contingent\"),'TSA Input'!D3739,\"\"))","v":""},{"$f":"IF('TSA Input'!J3739=\"\",\"\",IF(OR('TSA Input'!J3739=\"Yes\",'TSA Input'!J3739=\"Contingent\"),'TSA Input'!G3739,\"\"))","v":""},{"$f":"IF('TSA Input'!J3739=\"\",\"\",IF(OR('TSA Input'!J3739=\"Yes\",'TSA Input'!J3739=\"Contingent\"),'TSA Input'!F3739,\"\"))","v":""},"",{"$f":"IF('TSA Input'!J3739=\"\",\"\",IF(OR('TSA Input'!J3739=\"Yes\",'TSA Input'!J3739=\"Contingent\"),'TSA Input'!D3739,\"\"))","v":""},{"$f":"IF('TSA Input'!J3739=\"\",\"\",IF(OR('TSA Input'!J3739=\"Yes\",'TSA Input'!J3739=\"Contingent\"),'TSA Input'!G3739,\"\"))","v":""},{"$f":"IF('TSA Input'!J3739=\"\",\"\",IF(OR('TSA Input'!J3739=\"Yes\",'TSA Input'!J3739=\"Contingent\"),'TSA Input'!F3739,\"\"))","v":""},"","Required","Required"]
["",null,{"$f":"IF('TSA Input'!J3740=\"\",\"\",IF(OR('TSA Input'!J3740=\"Yes\",'TSA Input'!J3740=\"Contingent\"),'TSA Input'!B3740,\"Ineligible\"))","v":""},{"$f":"IF('TSA Input'!J3740=\"\",\"\",IF(OR('TSA Input'!J3740=\"Yes\",'TSA Input'!J3740=\"Contingent\"),'TSA Input'!I3740,\"\"))","v":""},{"$f":"IF('TSA Input'!J3740=\"\",\"\",IF(OR('TSA Input'!J3740=\"Yes\",'TSA Input'!J3740=\"Contingent\"),'TSA Input'!C3740,\"\"))","v":""},{"$f":"IF('TSA Input'!J3740=\"\",\"\",IF(OR('TSA Input'!J3740=\"Yes\",'TSA Input'!J3740=\"Contingent\"),'TSA Input'!D3740,\"\"))","v":""},{"$f":"IF('TSA Input'!J3740=\"\",\"\",IF(OR('TSA Input'!J3740=\"Yes\",'TSA Input'!J3740=\"Contingent\"),'TSA Input'!G3740,\"\"))","v":""},{"$f":"IF('TSA Input'!J3740=\"\",\"\",IF(OR('TSA Input'!J3740=\"Yes\",'TSA Input'!J3740=\"Contingent\"),'TSA Input'!F3740,\"\"))","v":""},"",{"$f":"IF('TSA Input'!J3740=\"\",\"\",IF(OR('TSA Input'!J3740=\"Yes\",'TSA Input'!J3740=\"Contingent\"),'TSA Input'!D3740,\"\"))","v":""},{"$f":"IF('TSA Input'!J3740=\"\",\"\",IF(OR('TSA Input'!J3740=\"Yes\",'TSA Input'!J3740=\"Contingent\"),'TSA Input'!G3740,\"\"))","v":""},{"$f":"IF('TSA Input'!J3740=\"\",\"\",IF(OR('TSA Input'!J3740=\"Yes\",'TSA Input'!J3740=\"Contingent\"),'TSA Input'!F3740,\"\"))","v":""},"","Required","Required"]
["",null,{"$f":"IF('TSA Input'!J3741=\"\",\"\",IF(OR('TSA Input'!J3741=\"Yes\",'TSA Input'!J3741=\"Contingent\"),'TSA Input'!B3741,\"Ineligible\"))","v":""},{"$f":"IF('TSA Input'!J3741=\"\",\"\",IF(OR('TSA Input'!J3741=\"Yes\",'TSA Input'!J3741=\"Contingent\"),'TSA Input'!I3741,\"\"))","v":""},{"$f":"IF('TSA Input'!J3741=\"\",\"\",IF(OR('TSA Input'!J3741=\"Yes\",'TSA Input'!J3741=\"Contingent\"),'TSA Input'!C3741,\"\"))","v":""},{"$f":"IF('TSA Input'!J3741=\"\",\"\",IF(OR('TSA Input'!J3741=\"Yes\",'TSA Input'!J3741=\"Contingent\"),'TSA Input'!D3741,\"\"))","v":""},{"$f":"IF('TSA Input'!J3741=\"\",\"\",IF(OR('TSA Input'!J3741=\"Yes\",'TSA Input'!J3741=\"Contingent\"),'TSA Input'!G3741,\"\"))","v":""},{"$f":"IF('TSA Input'!J3741=\"\",\"\",IF(OR('TSA Input'!J3741=\"Yes\",'TSA Input'!J3741=\"Contingent\"),'TSA Input'!F3741,\"\"))","v":""},"",{"$f":"IF('TSA Input'!J3741=\"\",\"\",IF(OR('TSA Input'!J3741=\"Yes\",'TSA Input'!J3741=\"Contingent\"),'TSA Input'!D3741,\"\"))","v":""},{"$f":"IF('TSA Input'!J3741=\"\",\"\",IF(OR('TSA Input'!J3741=\"Yes\",'TSA Input'!J3741=\"Contingent\"),'TSA Input'!G3741,\"\"))","v":""},{"$f":"IF('TSA Input'!J3741=\"\",\"\",IF(OR('TSA Input'!J3741=\"Yes\",'TSA Input'!J3741=\"Contingent\"),'TSA Input'!F3741,\"\"))","v":""},"","Required","Required"]
["",null,{"$f":"IF('TSA Input'!J3742=\"\",\"\",IF(OR('TSA Input'!J3742=\"Yes\",'TSA Input'!J3742=\"Contingent\"),'TSA Input'!B3742,\"Ineligible\"))","v":""},{"$f":"IF('TSA Input'!J3742=\"\",\"\",IF(OR('TSA Input'!J3742=\"Yes\",'TSA Input'!J3742=\"Contingent\"),'TSA Input'!I3742,\"\"))","v":""},{"$f":"IF('TSA Input'!J3742=\"\",\"\",IF(OR('TSA Input'!J3742=\"Yes\",'TSA Input'!J3742=\"Contingent\"),'TSA Input'!C3742,\"\"))","v":""},{"$f":"IF('TSA Input'!J3742=\"\",\"\",IF(OR('TSA Input'!J3742=\"Yes\",'TSA Input'!J3742=\"Contingent\"),'TSA Input'!D3742,\"\"))","v":""},{"$f":"IF('TSA Input'!J3742=\"\",\"\",IF(OR('TSA Input'!J3742=\"Yes\",'TSA Input'!J3742=\"Contingent\"),'TSA Input'!G3742,\"\"))","v":""},{"$f":"IF('TSA Input'!J3742=\"\",\"\",IF(OR('TSA Input'!J3742=\"Yes\",'TSA Input'!J3742=\"Contingent\"),'TSA Input'!F3742,\"\"))","v":""},"",{"$f":"IF('TSA Input'!J3742=\"\",\"\",IF(OR('TSA Input'!J3742=\"Yes\",'TSA Input'!J3742=\"Contingent\"),'TSA Input'!D3742,\"\"))","v":""},{"$f":"IF('TSA Input'!J3742=\"\",\"\",IF(OR('TSA Input'!J3742=\"Yes\",'TSA Input'!J3742=\"Contingent\"),'TSA Input'!G3742,\"\"))","v":""},{"$f":"IF('TSA Input'!J3742=\"\",\"\",IF(OR('TSA Input'!J3742=\"Yes\",'TSA Input'!J3742=\"Contingent\"),'TSA Input'!F3742,\"\"))","v":""},"","Required","Required"]
["",null,{"$f":"IF('TSA Input'!J3743=\"\",\"\",IF(OR('TSA Input'!J3743=\"Yes\",'TSA Input'!J3743=\"Contingent\"),'TSA Input'!B3743,\"Ineligible\"))","v":""},{"$f":"IF('TSA Input'!J3743=\"\",\"\",IF(OR('TSA Input'!J3743=\"Yes\",'TSA Input'!J3743=\"Contingent\"),'TSA Input'!I3743,\"\"))","v":""},{"$f":"IF('TSA Input'!J3743=\"\",\"\",IF(OR('TSA Input'!J3743=\"Yes\",'TSA Input'!J3743=\"Contingent\"),'TSA Input'!C3743,\"\"))","v":""},{"$f":"IF('TSA Input'!J3743=\"\",\"\",IF(OR('TSA Input'!J3743=\"Yes\",'TSA Input'!J3743=\"Contingent\"),'TSA Input'!D3743,\"\"))","v":""},{"$f":"IF('TSA Input'!J3743=\"\",\"\",IF(OR('TSA Input'!J3743=\"Yes\",'TSA Input'!J3743=\"Contingent\"),'TSA Input'!G3743,\"\"))","v":""},{"$f":"IF('TSA Input'!J3743=\"\",\"\",IF(OR('TSA Input'!J3743=\"Yes\",'TSA Input'!J3743=\"Contingent\"),'TSA Input'!F3743,\"\"))","v":""},"",{"$f":"IF('TSA Input'!J3743=\"\",\"\",IF(OR('TSA Input'!J3743=\"Yes\",'TSA Input'!J3743=\"Contingent\"),'TSA Input'!D3743,\"\"))","v":""},{"$f":"IF('TSA Input'!J3743=\"\",\"\",IF(OR('TSA Input'!J3743=\"Yes\",'TSA Input'!J3743=\"Contingent\"),'TSA Input'!G3743,\"\"))","v":""},{"$f":"IF('TSA Input'!J3743=\"\",\"\",IF(OR('TSA Input'!J3743=\"Yes\",'TSA Input'!J3743=\"Contingent\"),'TSA Input'!F3743,\"\"))","v":""},"","Required","Required"]
["",null,{"$f":"IF('TSA Input'!J3744=\"\",\"\",IF(OR('TSA Input'!J3744=\"Yes\",'TSA Input'!J3744=\"Contingent\"),'TSA Input'!B3744,\"Ineligible\"))","v":""},{"$f":"IF('TSA Input'!J3744=\"\",\"\",IF(OR('TSA Input'!J3744=\"Yes\",'TSA Input'!J3744=\"Contingent\"),'TSA Input'!I3744,\"\"))","v":""},{"$f":"IF('TSA Input'!J3744=\"\",\"\",IF(OR('TSA Input'!J3744=\"Yes\",'TSA Input'!J3744=\"Contingent\"),'TSA Input'!C3744,\"\"))","v":""},{"$f":"IF('TSA Input'!J3744=\"\",\"\",IF(OR('TSA Input'!J3744=\"Yes\",'TSA Input'!J3744=\"Contingent\"),'TSA Input'!D3744,\"\"))","v":""},{"$f":"IF('TSA Input'!J3744=\"\",\"\",IF(OR('TSA Input'!J3744=\"Yes\",'TSA Input'!J3744=\"Contingent\"),'TSA Input'!G3744,\"\"))","v":""},{"$f":"IF('TSA Input'!J3744=\"\",\"\",IF(OR('TSA Input'!J3744=\"Yes\",'TSA Input'!J3744=\"Contingent\"),'TSA Input'!F3744,\"\"))","v":""},"",{"$f":"IF('TSA Input'!J3744=\"\",\"\",IF(OR('TSA Input'!J3744=\"Yes\",'TSA Input'!J3744=\"Contingent\"),'TSA Input'!D3744,\"\"))","v":""},{"$f":"IF('TSA Input'!J3744=\"\",\"\",IF(OR('TSA Input'!J3744=\"Yes\",'TSA Input'!J3744=\"Contingent\"),'TSA Input'!G3744,\"\"))","v":""},{"$f":"IF('TSA Input'!J3744=\"\",\"\",IF(OR('TSA Input'!J3744=\"Yes\",'TSA Input'!J3744=\"Contingent\"),'TSA Input'!F3744,\"\"))","v":""},"","Required","Required"]
["",null,{"$f":"IF('TSA Input'!J3745=\"\",\"\",IF(OR('TSA Input'!J3745=\"Yes\",'TSA Input'!J3745=\"Contingent\"),'TSA Input'!B3745,\"Ineligible\"))","v":""},{"$f":"IF('TSA Input'!J3745=\"\",\"\",IF(OR('TSA Input'!J3745=\"Yes\",'TSA Input'!J3745=\"Contingent\"),'TSA Input'!I3745,\"\"))","v":""},{"$f":"IF('TSA Input'!J3745=\"\",\"\",IF(OR('TSA Input'!J3745=\"Yes\",'TSA Input'!J3745=\"Contingent\"),'TSA Input'!C3745,\"\"))","v":""},{"$f":"IF('TSA Input'!J3745=\"\",\"\",IF(OR('TSA Input'!J3745=\"Yes\",'TSA Input'!J3745=\"Contingent\"),'TSA Input'!D3745,\"\"))","v":""},{"$f":"IF('TSA Input'!J3745=\"\",\"\",IF(OR('TSA Input'!J3745=\"Yes\",'TSA Input'!J3745=\"Contingent\"),'TSA Input'!G3745,\"\"))","v":""},{"$f":"IF('TSA Input'!J3745=\"\",\"\",IF(OR('TSA Input'!J3745=\"Yes\",'TSA Input'!J3745=\"Contingent\"),'TSA Input'!F3745,\"\"))","v":""},"",{"$f":"IF('TSA Input'!J3745=\"\",\"\",IF(OR('TSA Input'!J3745=\"Yes\",'TSA Input'!J3745=\"Contingent\"),'TSA Input'!D3745,\"\"))","v":""},{"$f":"IF('TSA Input'!J3745=\"\",\"\",IF(OR('TSA Input'!J3745=\"Yes\",'TSA Input'!J3745=\"Contingent\"),'TSA Input'!G3745,\"\"))","v":""},{"$f":"IF('TSA Input'!J3745=\"\",\"\",IF(OR('TSA Input'!J3745=\"Yes\",'TSA Input'!J3745=\"Contingent\"),'TSA Input'!F3745,\"\"))","v":""},"","Required","Required"]
["",null,{"$f":"IF('TSA Input'!J3746=\"\",\"\",IF(OR('TSA Input'!J3746=\"Yes\",'TSA Input'!J3746=\"Contingent\"),'TSA Input'!B3746,\"Ineligible\"))","v":""},{"$f":"IF('TSA Input'!J3746=\"\",\"\",IF(OR('TSA Input'!J3746=\"Yes\",'TSA Input'!J3746=\"Contingent\"),'TSA Input'!I3746,\"\"))","v":""},{"$f":"IF('TSA Input'!J3746=\"\",\"\",IF(OR('TSA Input'!J3746=\"Yes\",'TSA Input'!J3746=\"Contingent\"),'TSA Input'!C3746,\"\"))","v":""},{"$f":"IF('TSA Input'!J3746=\"\",\"\",IF(OR('TSA Input'!J3746=\"Yes\",'TSA Input'!J3746=\"Contingent\"),'TSA Input'!D3746,\"\"))","v":""},{"$f":"IF('TSA Input'!J3746=\"\",\"\",IF(OR('TSA Input'!J3746=\"Yes\",'TSA Input'!J3746=\"Contingent\"),'TSA Input'!G3746,\"\"))","v":""},{"$f":"IF('TSA Input'!J3746=\"\",\"\",IF(OR('TSA Input'!J3746=\"Yes\",'TSA Input'!J3746=\"Contingent\"),'TSA Input'!F3746,\"\"))","v":""},"",{"$f":"IF('TSA Input'!J3746=\"\",\"\",IF(OR('TSA Input'!J3746=\"Yes\",'TSA Input'!J3746=\"Contingent\"),'TSA Input'!D3746,\"\"))","v":""},{"$f":"IF('TSA Input'!J3746=\"\",\"\",IF(OR('TSA Input'!J3746=\"Yes\",'TSA Input'!J3746=\"Contingent\"),'TSA Input'!G3746,\"\"))","v":""},{"$f":"IF('TSA Input'!J3746=\"\",\"\",IF(OR('TSA Input'!J3746=\"Yes\",'TSA Input'!J3746=\"Contingent\"),'TSA Input'!F3746,\"\"))","v":""},"","Required","Required"]
["",null,{"$f":"IF('TSA Input'!J3747=\"\",\"\",IF(OR('TSA Input'!J3747=\"Yes\",'TSA Input'!J3747=\"Contingent\"),'TSA Input'!B3747,\"Ineligible\"))","v":""},{"$f":"IF('TSA Input'!J3747=\"\",\"\",IF(OR('TSA Input'!J3747=\"Yes\",'TSA Input'!J3747=\"Contingent\"),'TSA Input'!I3747,\"\"))","v":""},{"$f":"IF('TSA Input'!J3747=\"\",\"\",IF(OR('TSA Input'!J3747=\"Yes\",'TSA Input'!J3747=\"Contingent\"),'TSA Input'!C3747,\"\"))","v":""},{"$f":"IF('TSA Input'!J3747=\"\",\"\",IF(OR('TSA Input'!J3747=\"Yes\",'TSA Input'!J3747=\"Contingent\"),'TSA Input'!D3747,\"\"))","v":""},{"$f":"IF('TSA Input'!J3747=\"\",\"\",IF(OR('TSA Input'!J3747=\"Yes\",'TSA Input'!J3747=\"Contingent\"),'TSA Input'!G3747,\"\"))","v":""},{"$f":"IF('TSA Input'!J3747=\"\",\"\",IF(OR('TSA Input'!J3747=\"Yes\",'TSA Input'!J3747=\"Contingent\"),'TSA Input'!F3747,\"\"))","v":""},"",{"$f":"IF('TSA Input'!J3747=\"\",\"\",IF(OR('TSA Input'!J3747=\"Yes\",'TSA Input'!J3747=\"Contingent\"),'TSA Input'!D3747,\"\"))","v":""},{"$f":"IF('TSA Input'!J3747=\"\",\"\",IF(OR('TSA Input'!J3747=\"Yes\",'TSA Input'!J3747=\"Contingent\"),'TSA Input'!G3747,\"\"))","v":""},{"$f":"IF('TSA Input'!J3747=\"\",\"\",IF(OR('TSA Input'!J3747=\"Yes\",'TSA Input'!J3747=\"Contingent\"),'TSA Input'!F3747,\"\"))","v":""},"","Required","Required"]
["",null,{"$f":"IF('TSA Input'!J3748=\"\",\"\",IF(OR('TSA Input'!J3748=\"Yes\",'TSA Input'!J3748=\"Contingent\"),'TSA Input'!B3748,\"Ineligible\"))","v":""},{"$f":"IF('TSA Input'!J3748=\"\",\"\",IF(OR('TSA Input'!J3748=\"Yes\",'TSA Input'!J3748=\"Contingent\"),'TSA Input'!I3748,\"\"))","v":""},{"$f":"IF('TSA Input'!J3748=\"\",\"\",IF(OR('TSA Input'!J3748=\"Yes\",'TSA Input'!J3748=\"Contingent\"),'TSA Input'!C3748,\"\"))","v":""},{"$f":"IF('TSA Input'!J3748=\"\",\"\",IF(OR('TSA Input'!J3748=\"Yes\",'TSA Input'!J3748=\"Contingent\"),'TSA Input'!D3748,\"\"))","v":""},{"$f":"IF('TSA Input'!J3748=\"\",\"\",IF(OR('TSA Input'!J3748=\"Yes\",'TSA Input'!J3748=\"Contingent\"),'TSA Input'!G3748,\"\"))","v":""},{"$f":"IF('TSA Input'!J3748=\"\",\"\",IF(OR('TSA Input'!J3748=\"Yes\",'TSA Input'!J3748=\"Contingent\"),'TSA Input'!F3748,\"\"))","v":""},"",{"$f":"IF('TSA Input'!J3748=\"\",\"\",IF(OR('TSA Input'!J3748=\"Yes\",'TSA Input'!J3748=\"Contingent\"),'TSA Input'!D3748,\"\"))","v":""},{"$f":"IF('TSA Input'!J3748=\"\",\"\",IF(OR('TSA Input'!J3748=\"Yes\",'TSA Input'!J3748=\"Contingent\"),'TSA Input'!G3748,\"\"))","v":""},{"$f":"IF('TSA Input'!J3748=\"\",\"\",IF(OR('TSA Input'!J3748=\"Yes\",'TSA Input'!J3748=\"Contingent\"),'TSA Input'!F3748,\"\"))","v":""},"","Required","Required"]
["",null,{"$f":"IF('TSA Input'!J3749=\"\",\"\",IF(OR('TSA Input'!J3749=\"Yes\",'TSA Input'!J3749=\"Contingent\"),'TSA Input'!B3749,\"Ineligible\"))","v":""},{"$f":"IF('TSA Input'!J3749=\"\",\"\",IF(OR('TSA Input'!J3749=\"Yes\",'TSA Input'!J3749=\"Contingent\"),'TSA Input'!I3749,\"\"))","v":""},{"$f":"IF('TSA Input'!J3749=\"\",\"\",IF(OR('TSA Input'!J3749=\"Yes\",'TSA Input'!J3749=\"Contingent\"),'TSA Input'!C3749,\"\"))","v":""},{"$f":"IF('TSA Input'!J3749=\"\",\"\",IF(OR('TSA Input'!J3749=\"Yes\",'TSA Input'!J3749=\"Contingent\"),'TSA Input'!D3749,\"\"))","v":""},{"$f":"IF('TSA Input'!J3749=\"\",\"\",IF(OR('TSA Input'!J3749=\"Yes\",'TSA Input'!J3749=\"Contingent\"),'TSA Input'!G3749,\"\"))","v":""},{"$f":"IF('TSA Input'!J3749=\"\",\"\",IF(OR('TSA Input'!J3749=\"Yes\",'TSA Input'!J3749=\"Contingent\"),'TSA Input'!F3749,\"\"))","v":""},"",{"$f":"IF('TSA Input'!J3749=\"\",\"\",IF(OR('TSA Input'!J3749=\"Yes\",'TSA Input'!J3749=\"Contingent\"),'TSA Input'!D3749,\"\"))","v":""},{"$f":"IF('TSA Input'!J3749=\"\",\"\",IF(OR('TSA Input'!J3749=\"Yes\",'TSA Input'!J3749=\"Contingent\"),'TSA Input'!G3749,\"\"))","v":""},{"$f":"IF('TSA Input'!J3749=\"\",\"\",IF(OR('TSA Input'!J3749=\"Yes\",'TSA Input'!J3749=\"Contingent\"),'TSA Input'!F3749,\"\"))","v":""},"","Required","Required"]
["",null,{"$f":"IF('TSA Input'!J3750=\"\",\"\",IF(OR('TSA Input'!J3750=\"Yes\",'TSA Input'!J3750=\"Contingent\"),'TSA Input'!B3750,\"Ineligible\"))","v":""},{"$f":"IF('TSA Input'!J3750=\"\",\"\",IF(OR('TSA Input'!J3750=\"Yes\",'TSA Input'!J3750=\"Contingent\"),'TSA Input'!I3750,\"\"))","v":""},{"$f":"IF('TSA Input'!J3750=\"\",\"\",IF(OR('TSA Input'!J3750=\"Yes\",'TSA Input'!J3750=\"Contingent\"),'TSA Input'!C3750,\"\"))","v":""},{"$f":"IF('TSA Input'!J3750=\"\",\"\",IF(OR('TSA Input'!J3750=\"Yes\",'TSA Input'!J3750=\"Contingent\"),'TSA Input'!D3750,\"\"))","v":""},{"$f":"IF('TSA Input'!J3750=\"\",\"\",IF(OR('TSA Input'!J3750=\"Yes\",'TSA Input'!J3750=\"Contingent\"),'TSA Input'!G3750,\"\"))","v":""},{"$f":"IF('TSA Input'!J3750=\"\",\"\",IF(OR('TSA Input'!J3750=\"Yes\",'TSA Input'!J3750=\"Contingent\"),'TSA Input'!F3750,\"\"))","v":""},"",{"$f":"IF('TSA Input'!J3750=\"\",\"\",IF(OR('TSA Input'!J3750=\"Yes\",'TSA Input'!J3750=\"Contingent\"),'TSA Input'!D3750,\"\"))","v":""},{"$f":"IF('TSA Input'!J3750=\"\",\"\",IF(OR('TSA Input'!J3750=\"Yes\",'TSA Input'!J3750=\"Contingent\"),'TSA Input'!G3750,\"\"))","v":""},{"$f":"IF('TSA Input'!J3750=\"\",\"\",IF(OR('TSA Input'!J3750=\"Yes\",'TSA Input'!J3750=\"Contingent\"),'TSA Input'!F3750,\"\"))","v":""},"","Required","Required"]
["",null,{"$f":"IF('TSA Input'!J3751=\"\",\"\",IF(OR('TSA Input'!J3751=\"Yes\",'TSA Input'!J3751=\"Contingent\"),'TSA Input'!B3751,\"Ineligible\"))","v":""},{"$f":"IF('TSA Input'!J3751=\"\",\"\",IF(OR('TSA Input'!J3751=\"Yes\",'TSA Input'!J3751=\"Contingent\"),'TSA Input'!I3751,\"\"))","v":""},{"$f":"IF('TSA Input'!J3751=\"\",\"\",IF(OR('TSA Input'!J3751=\"Yes\",'TSA Input'!J3751=\"Contingent\"),'TSA Input'!C3751,\"\"))","v":""},{"$f":"IF('TSA Input'!J3751=\"\",\"\",IF(OR('TSA Input'!J3751=\"Yes\",'TSA Input'!J3751=\"Contingent\"),'TSA Input'!D3751,\"\"))","v":""},{"$f":"IF('TSA Input'!J3751=\"\",\"\",IF(OR('TSA Input'!J3751=\"Yes\",'TSA Input'!J3751=\"Contingent\"),'TSA Input'!G3751,\"\"))","v":""},{"$f":"IF('TSA Input'!J3751=\"\",\"\",IF(OR('TSA Input'!J3751=\"Yes\",'TSA Input'!J3751=\"Contingent\"),'TSA Input'!F3751,\"\"))","v":""},"",{"$f":"IF('TSA Input'!J3751=\"\",\"\",IF(OR('TSA Input'!J3751=\"Yes\",'TSA Input'!J3751=\"Contingent\"),'TSA Input'!D3751,\"\"))","v":""},{"$f":"IF('TSA Input'!J3751=\"\",\"\",IF(OR('TSA Input'!J3751=\"Yes\",'TSA Input'!J3751=\"Contingent\"),'TSA Input'!G3751,\"\"))","v":""},{"$f":"IF('TSA Input'!J3751=\"\",\"\",IF(OR('TSA Input'!J3751=\"Yes\",'TSA Input'!J3751=\"Contingent\"),'TSA Input'!F3751,\"\"))","v":""},"","Required","Required"]
["",null,{"$f":"IF('TSA Input'!J3752=\"\",\"\",IF(OR('TSA Input'!J3752=\"Yes\",'TSA Input'!J3752=\"Contingent\"),'TSA Input'!B3752,\"Ineligible\"))","v":""},{"$f":"IF('TSA Input'!J3752=\"\",\"\",IF(OR('TSA Input'!J3752=\"Yes\",'TSA Input'!J3752=\"Contingent\"),'TSA Input'!I3752,\"\"))","v":""},{"$f":"IF('TSA Input'!J3752=\"\",\"\",IF(OR('TSA Input'!J3752=\"Yes\",'TSA Input'!J3752=\"Contingent\"),'TSA Input'!C3752,\"\"))","v":""},{"$f":"IF('TSA Input'!J3752=\"\",\"\",IF(OR('TSA Input'!J3752=\"Yes\",'TSA Input'!J3752=\"Contingent\"),'TSA Input'!D3752,\"\"))","v":""},{"$f":"IF('TSA Input'!J3752=\"\",\"\",IF(OR('TSA Input'!J3752=\"Yes\",'TSA Input'!J3752=\"Contingent\"),'TSA Input'!G3752,\"\"))","v":""},{"$f":"IF('TSA Input'!J3752=\"\",\"\",IF(OR('TSA Input'!J3752=\"Yes\",'TSA Input'!J3752=\"Contingent\"),'TSA Input'!F3752,\"\"))","v":""},"",{"$f":"IF('TSA Input'!J3752=\"\",\"\",IF(OR('TSA Input'!J3752=\"Yes\",'TSA Input'!J3752=\"Contingent\"),'TSA Input'!D3752,\"\"))","v":""},{"$f":"IF('TSA Input'!J3752=\"\",\"\",IF(OR('TSA Input'!J3752=\"Yes\",'TSA Input'!J3752=\"Contingent\"),'TSA Input'!G3752,\"\"))","v":""},{"$f":"IF('TSA Input'!J3752=\"\",\"\",IF(OR('TSA Input'!J3752=\"Yes\",'TSA Input'!J3752=\"Contingent\"),'TSA Input'!F3752,\"\"))","v":""},"","Required","Required"]
["",null,{"$f":"IF('TSA Input'!J3753=\"\",\"\",IF(OR('TSA Input'!J3753=\"Yes\",'TSA Input'!J3753=\"Contingent\"),'TSA Input'!B3753,\"Ineligible\"))","v":""},{"$f":"IF('TSA Input'!J3753=\"\",\"\",IF(OR('TSA Input'!J3753=\"Yes\",'TSA Input'!J3753=\"Contingent\"),'TSA Input'!I3753,\"\"))","v":""},{"$f":"IF('TSA Input'!J3753=\"\",\"\",IF(OR('TSA Input'!J3753=\"Yes\",'TSA Input'!J3753=\"Contingent\"),'TSA Input'!C3753,\"\"))","v":""},{"$f":"IF('TSA Input'!J3753=\"\",\"\",IF(OR('TSA Input'!J3753=\"Yes\",'TSA Input'!J3753=\"Contingent\"),'TSA Input'!D3753,\"\"))","v":""},{"$f":"IF('TSA Input'!J3753=\"\",\"\",IF(OR('TSA Input'!J3753=\"Yes\",'TSA Input'!J3753=\"Contingent\"),'TSA Input'!G3753,\"\"))","v":""},{"$f":"IF('TSA Input'!J3753=\"\",\"\",IF(OR('TSA Input'!J3753=\"Yes\",'TSA Input'!J3753=\"Contingent\"),'TSA Input'!F3753,\"\"))","v":""},"",{"$f":"IF('TSA Input'!J3753=\"\",\"\",IF(OR('TSA Input'!J3753=\"Yes\",'TSA Input'!J3753=\"Contingent\"),'TSA Input'!D3753,\"\"))","v":""},{"$f":"IF('TSA Input'!J3753=\"\",\"\",IF(OR('TSA Input'!J3753=\"Yes\",'TSA Input'!J3753=\"Contingent\"),'TSA Input'!G3753,\"\"))","v":""},{"$f":"IF('TSA Input'!J3753=\"\",\"\",IF(OR('TSA Input'!J3753=\"Yes\",'TSA Input'!J3753=\"Contingent\"),'TSA Input'!F3753,\"\"))","v":""},"","Required","Required"]
["",null,{"$f":"IF('TSA Input'!J3754=\"\",\"\",IF(OR('TSA Input'!J3754=\"Yes\",'TSA Input'!J3754=\"Contingent\"),'TSA Input'!B3754,\"Ineligible\"))","v":""},{"$f":"IF('TSA Input'!J3754=\"\",\"\",IF(OR('TSA Input'!J3754=\"Yes\",'TSA Input'!J3754=\"Contingent\"),'TSA Input'!I3754,\"\"))","v":""},{"$f":"IF('TSA Input'!J3754=\"\",\"\",IF(OR('TSA Input'!J3754=\"Yes\",'TSA Input'!J3754=\"Contingent\"),'TSA Input'!C3754,\"\"))","v":""},{"$f":"IF('TSA Input'!J3754=\"\",\"\",IF(OR('TSA Input'!J3754=\"Yes\",'TSA Input'!J3754=\"Contingent\"),'TSA Input'!D3754,\"\"))","v":""},{"$f":"IF('TSA Input'!J3754=\"\",\"\",IF(OR('TSA Input'!J3754=\"Yes\",'TSA Input'!J3754=\"Contingent\"),'TSA Input'!G3754,\"\"))","v":""},{"$f":"IF('TSA Input'!J3754=\"\",\"\",IF(OR('TSA Input'!J3754=\"Yes\",'TSA Input'!J3754=\"Contingent\"),'TSA Input'!F3754,\"\"))","v":""},"",{"$f":"IF('TSA Input'!J3754=\"\",\"\",IF(OR('TSA Input'!J3754=\"Yes\",'TSA Input'!J3754=\"Contingent\"),'TSA Input'!D3754,\"\"))","v":""},{"$f":"IF('TSA Input'!J3754=\"\",\"\",IF(OR('TSA Input'!J3754=\"Yes\",'TSA Input'!J3754=\"Contingent\"),'TSA Input'!G3754,\"\"))","v":""},{"$f":"IF('TSA Input'!J3754=\"\",\"\",IF(OR('TSA Input'!J3754=\"Yes\",'TSA Input'!J3754=\"Contingent\"),'TSA Input'!F3754,\"\"))","v":""},"","Required","Required"]
["",null,{"$f":"IF('TSA Input'!J3755=\"\",\"\",IF(OR('TSA Input'!J3755=\"Yes\",'TSA Input'!J3755=\"Contingent\"),'TSA Input'!B3755,\"Ineligible\"))","v":""},{"$f":"IF('TSA Input'!J3755=\"\",\"\",IF(OR('TSA Input'!J3755=\"Yes\",'TSA Input'!J3755=\"Contingent\"),'TSA Input'!I3755,\"\"))","v":""},{"$f":"IF('TSA Input'!J3755=\"\",\"\",IF(OR('TSA Input'!J3755=\"Yes\",'TSA Input'!J3755=\"Contingent\"),'TSA Input'!C3755,\"\"))","v":""},{"$f":"IF('TSA Input'!J3755=\"\",\"\",IF(OR('TSA Input'!J3755=\"Yes\",'TSA Input'!J3755=\"Contingent\"),'TSA Input'!D3755,\"\"))","v":""},{"$f":"IF('TSA Input'!J3755=\"\",\"\",IF(OR('TSA Input'!J3755=\"Yes\",'TSA Input'!J3755=\"Contingent\"),'TSA Input'!G3755,\"\"))","v":""},{"$f":"IF('TSA Input'!J3755=\"\",\"\",IF(OR('TSA Input'!J3755=\"Yes\",'TSA Input'!J3755=\"Contingent\"),'TSA Input'!F3755,\"\"))","v":""},"",{"$f":"IF('TSA Input'!J3755=\"\",\"\",IF(OR('TSA Input'!J3755=\"Yes\",'TSA Input'!J3755=\"Contingent\"),'TSA Input'!D3755,\"\"))","v":""},{"$f":"IF('TSA Input'!J3755=\"\",\"\",IF(OR('TSA Input'!J3755=\"Yes\",'TSA Input'!J3755=\"Contingent\"),'TSA Input'!G3755,\"\"))","v":""},{"$f":"IF('TSA Input'!J3755=\"\",\"\",IF(OR('TSA Input'!J3755=\"Yes\",'TSA Input'!J3755=\"Contingent\"),'TSA Input'!F3755,\"\"))","v":""},"","Required","Required"]
["",null,{"$f":"IF('TSA Input'!J3756=\"\",\"\",IF(OR('TSA Input'!J3756=\"Yes\",'TSA Input'!J3756=\"Contingent\"),'TSA Input'!B3756,\"Ineligible\"))","v":""},{"$f":"IF('TSA Input'!J3756=\"\",\"\",IF(OR('TSA Input'!J3756=\"Yes\",'TSA Input'!J3756=\"Contingent\"),'TSA Input'!I3756,\"\"))","v":""},{"$f":"IF('TSA Input'!J3756=\"\",\"\",IF(OR('TSA Input'!J3756=\"Yes\",'TSA Input'!J3756=\"Contingent\"),'TSA Input'!C3756,\"\"))","v":""},{"$f":"IF('TSA Input'!J3756=\"\",\"\",IF(OR('TSA Input'!J3756=\"Yes\",'TSA Input'!J3756=\"Contingent\"),'TSA Input'!D3756,\"\"))","v":""},{"$f":"IF('TSA Input'!J3756=\"\",\"\",IF(OR('TSA Input'!J3756=\"Yes\",'TSA Input'!J3756=\"Contingent\"),'TSA Input'!G3756,\"\"))","v":""},{"$f":"IF('TSA Input'!J3756=\"\",\"\",IF(OR('TSA Input'!J3756=\"Yes\",'TSA Input'!J3756=\"Contingent\"),'TSA Input'!F3756,\"\"))","v":""},"",{"$f":"IF('TSA Input'!J3756=\"\",\"\",IF(OR('TSA Input'!J3756=\"Yes\",'TSA Input'!J3756=\"Contingent\"),'TSA Input'!D3756,\"\"))","v":""},{"$f":"IF('TSA Input'!J3756=\"\",\"\",IF(OR('TSA Input'!J3756=\"Yes\",'TSA Input'!J3756=\"Contingent\"),'TSA Input'!G3756,\"\"))","v":""},{"$f":"IF('TSA Input'!J3756=\"\",\"\",IF(OR('TSA Input'!J3756=\"Yes\",'TSA Input'!J3756=\"Contingent\"),'TSA Input'!F3756,\"\"))","v":""},"","Required","Required"]
["",null,{"$f":"IF('TSA Input'!J3757=\"\",\"\",IF(OR('TSA Input'!J3757=\"Yes\",'TSA Input'!J3757=\"Contingent\"),'TSA Input'!B3757,\"Ineligible\"))","v":""},{"$f":"IF('TSA Input'!J3757=\"\",\"\",IF(OR('TSA Input'!J3757=\"Yes\",'TSA Input'!J3757=\"Contingent\"),'TSA Input'!I3757,\"\"))","v":""},{"$f":"IF('TSA Input'!J3757=\"\",\"\",IF(OR('TSA Input'!J3757=\"Yes\",'TSA Input'!J3757=\"Contingent\"),'TSA Input'!C3757,\"\"))","v":""},{"$f":"IF('TSA Input'!J3757=\"\",\"\",IF(OR('TSA Input'!J3757=\"Yes\",'TSA Input'!J3757=\"Contingent\"),'TSA Input'!D3757,\"\"))","v":""},{"$f":"IF('TSA Input'!J3757=\"\",\"\",IF(OR('TSA Input'!J3757=\"Yes\",'TSA Input'!J3757=\"Contingent\"),'TSA Input'!G3757,\"\"))","v":""},{"$f":"IF('TSA Input'!J3757=\"\",\"\",IF(OR('TSA Input'!J3757=\"Yes\",'TSA Input'!J3757=\"Contingent\"),'TSA Input'!F3757,\"\"))","v":""},"",{"$f":"IF('TSA Input'!J3757=\"\",\"\",IF(OR('TSA Input'!J3757=\"Yes\",'TSA Input'!J3757=\"Contingent\"),'TSA Input'!D3757,\"\"))","v":""},{"$f":"IF('TSA Input'!J3757=\"\",\"\",IF(OR('TSA Input'!J3757=\"Yes\",'TSA Input'!J3757=\"Contingent\"),'TSA Input'!G3757,\"\"))","v":""},{"$f":"IF('TSA Input'!J3757=\"\",\"\",IF(OR('TSA Input'!J3757=\"Yes\",'TSA Input'!J3757=\"Contingent\"),'TSA Input'!F3757,\"\"))","v":""},"","Required","Required"]
["",null,{"$f":"IF('TSA Input'!J3758=\"\",\"\",IF(OR('TSA Input'!J3758=\"Yes\",'TSA Input'!J3758=\"Contingent\"),'TSA Input'!B3758,\"Ineligible\"))","v":""},{"$f":"IF('TSA Input'!J3758=\"\",\"\",IF(OR('TSA Input'!J3758=\"Yes\",'TSA Input'!J3758=\"Contingent\"),'TSA Input'!I3758,\"\"))","v":""},{"$f":"IF('TSA Input'!J3758=\"\",\"\",IF(OR('TSA Input'!J3758=\"Yes\",'TSA Input'!J3758=\"Contingent\"),'TSA Input'!C3758,\"\"))","v":""},{"$f":"IF('TSA Input'!J3758=\"\",\"\",IF(OR('TSA Input'!J3758=\"Yes\",'TSA Input'!J3758=\"Contingent\"),'TSA Input'!D3758,\"\"))","v":""},{"$f":"IF('TSA Input'!J3758=\"\",\"\",IF(OR('TSA Input'!J3758=\"Yes\",'TSA Input'!J3758=\"Contingent\"),'TSA Input'!G3758,\"\"))","v":""},{"$f":"IF('TSA Input'!J3758=\"\",\"\",IF(OR('TSA Input'!J3758=\"Yes\",'TSA Input'!J3758=\"Contingent\"),'TSA Input'!F3758,\"\"))","v":""},"",{"$f":"IF('TSA Input'!J3758=\"\",\"\",IF(OR('TSA Input'!J3758=\"Yes\",'TSA Input'!J3758=\"Contingent\"),'TSA Input'!D3758,\"\"))","v":""},{"$f":"IF('TSA Input'!J3758=\"\",\"\",IF(OR('TSA Input'!J3758=\"Yes\",'TSA Input'!J3758=\"Contingent\"),'TSA Input'!G3758,\"\"))","v":""},{"$f":"IF('TSA Input'!J3758=\"\",\"\",IF(OR('TSA Input'!J3758=\"Yes\",'TSA Input'!J3758=\"Contingent\"),'TSA Input'!F3758,\"\"))","v":""},"","Required","Required"]
["",null,{"$f":"IF('TSA Input'!J3759=\"\",\"\",IF(OR('TSA Input'!J3759=\"Yes\",'TSA Input'!J3759=\"Contingent\"),'TSA Input'!B3759,\"Ineligible\"))","v":""},{"$f":"IF('TSA Input'!J3759=\"\",\"\",IF(OR('TSA Input'!J3759=\"Yes\",'TSA Input'!J3759=\"Contingent\"),'TSA Input'!I3759,\"\"))","v":""},{"$f":"IF('TSA Input'!J3759=\"\",\"\",IF(OR('TSA Input'!J3759=\"Yes\",'TSA Input'!J3759=\"Contingent\"),'TSA Input'!C3759,\"\"))","v":""},{"$f":"IF('TSA Input'!J3759=\"\",\"\",IF(OR('TSA Input'!J3759=\"Yes\",'TSA Input'!J3759=\"Contingent\"),'TSA Input'!D3759,\"\"))","v":""},{"$f":"IF('TSA Input'!J3759=\"\",\"\",IF(OR('TSA Input'!J3759=\"Yes\",'TSA Input'!J3759=\"Contingent\"),'TSA Input'!G3759,\"\"))","v":""},{"$f":"IF('TSA Input'!J3759=\"\",\"\",IF(OR('TSA Input'!J3759=\"Yes\",'TSA Input'!J3759=\"Contingent\"),'TSA Input'!F3759,\"\"))","v":""},"",{"$f":"IF('TSA Input'!J3759=\"\",\"\",IF(OR('TSA Input'!J3759=\"Yes\",'TSA Input'!J3759=\"Contingent\"),'TSA Input'!D3759,\"\"))","v":""},{"$f":"IF('TSA Input'!J3759=\"\",\"\",IF(OR('TSA Input'!J3759=\"Yes\",'TSA Input'!J3759=\"Contingent\"),'TSA Input'!G3759,\"\"))","v":""},{"$f":"IF('TSA Input'!J3759=\"\",\"\",IF(OR('TSA Input'!J3759=\"Yes\",'TSA Input'!J3759=\"Contingent\"),'TSA Input'!F3759,\"\"))","v":""},"","Required","Required"]
["",null,{"$f":"IF('TSA Input'!J3760=\"\",\"\",IF(OR('TSA Input'!J3760=\"Yes\",'TSA Input'!J3760=\"Contingent\"),'TSA Input'!B3760,\"Ineligible\"))","v":""},{"$f":"IF('TSA Input'!J3760=\"\",\"\",IF(OR('TSA Input'!J3760=\"Yes\",'TSA Input'!J3760=\"Contingent\"),'TSA Input'!I3760,\"\"))","v":""},{"$f":"IF('TSA Input'!J3760=\"\",\"\",IF(OR('TSA Input'!J3760=\"Yes\",'TSA Input'!J3760=\"Contingent\"),'TSA Input'!C3760,\"\"))","v":""},{"$f":"IF('TSA Input'!J3760=\"\",\"\",IF(OR('TSA Input'!J3760=\"Yes\",'TSA Input'!J3760=\"Contingent\"),'TSA Input'!D3760,\"\"))","v":""},{"$f":"IF('TSA Input'!J3760=\"\",\"\",IF(OR('TSA Input'!J3760=\"Yes\",'TSA Input'!J3760=\"Contingent\"),'TSA Input'!G3760,\"\"))","v":""},{"$f":"IF('TSA Input'!J3760=\"\",\"\",IF(OR('TSA Input'!J3760=\"Yes\",'TSA Input'!J3760=\"Contingent\"),'TSA Input'!F3760,\"\"))","v":""},"",{"$f":"IF('TSA Input'!J3760=\"\",\"\",IF(OR('TSA Input'!J3760=\"Yes\",'TSA Input'!J3760=\"Contingent\"),'TSA Input'!D3760,\"\"))","v":""},{"$f":"IF('TSA Input'!J3760=\"\",\"\",IF(OR('TSA Input'!J3760=\"Yes\",'TSA Input'!J3760=\"Contingent\"),'TSA Input'!G3760,\"\"))","v":""},{"$f":"IF('TSA Input'!J3760=\"\",\"\",IF(OR('TSA Input'!J3760=\"Yes\",'TSA Input'!J3760=\"Contingent\"),'TSA Input'!F3760,\"\"))","v":""},"","Required","Required"]
["",null,{"$f":"IF('TSA Input'!J3761=\"\",\"\",IF(OR('TSA Input'!J3761=\"Yes\",'TSA Input'!J3761=\"Contingent\"),'TSA Input'!B3761,\"Ineligible\"))","v":""},{"$f":"IF('TSA Input'!J3761=\"\",\"\",IF(OR('TSA Input'!J3761=\"Yes\",'TSA Input'!J3761=\"Contingent\"),'TSA Input'!I3761,\"\"))","v":""},{"$f":"IF('TSA Input'!J3761=\"\",\"\",IF(OR('TSA Input'!J3761=\"Yes\",'TSA Input'!J3761=\"Contingent\"),'TSA Input'!C3761,\"\"))","v":""},{"$f":"IF('TSA Input'!J3761=\"\",\"\",IF(OR('TSA Input'!J3761=\"Yes\",'TSA Input'!J3761=\"Contingent\"),'TSA Input'!D3761,\"\"))","v":""},{"$f":"IF('TSA Input'!J3761=\"\",\"\",IF(OR('TSA Input'!J3761=\"Yes\",'TSA Input'!J3761=\"Contingent\"),'TSA Input'!G3761,\"\"))","v":""},{"$f":"IF('TSA Input'!J3761=\"\",\"\",IF(OR('TSA Input'!J3761=\"Yes\",'TSA Input'!J3761=\"Contingent\"),'TSA Input'!F3761,\"\"))","v":""},"",{"$f":"IF('TSA Input'!J3761=\"\",\"\",IF(OR('TSA Input'!J3761=\"Yes\",'TSA Input'!J3761=\"Contingent\"),'TSA Input'!D3761,\"\"))","v":""},{"$f":"IF('TSA Input'!J3761=\"\",\"\",IF(OR('TSA Input'!J3761=\"Yes\",'TSA Input'!J3761=\"Contingent\"),'TSA Input'!G3761,\"\"))","v":""},{"$f":"IF('TSA Input'!J3761=\"\",\"\",IF(OR('TSA Input'!J3761=\"Yes\",'TSA Input'!J3761=\"Contingent\"),'TSA Input'!F3761,\"\"))","v":""},"","Required","Required"]
["",null,{"$f":"IF('TSA Input'!J3762=\"\",\"\",IF(OR('TSA Input'!J3762=\"Yes\",'TSA Input'!J3762=\"Contingent\"),'TSA Input'!B3762,\"Ineligible\"))","v":""},{"$f":"IF('TSA Input'!J3762=\"\",\"\",IF(OR('TSA Input'!J3762=\"Yes\",'TSA Input'!J3762=\"Contingent\"),'TSA Input'!I3762,\"\"))","v":""},{"$f":"IF('TSA Input'!J3762=\"\",\"\",IF(OR('TSA Input'!J3762=\"Yes\",'TSA Input'!J3762=\"Contingent\"),'TSA Input'!C3762,\"\"))","v":""},{"$f":"IF('TSA Input'!J3762=\"\",\"\",IF(OR('TSA Input'!J3762=\"Yes\",'TSA Input'!J3762=\"Contingent\"),'TSA Input'!D3762,\"\"))","v":""},{"$f":"IF('TSA Input'!J3762=\"\",\"\",IF(OR('TSA Input'!J3762=\"Yes\",'TSA Input'!J3762=\"Contingent\"),'TSA Input'!G3762,\"\"))","v":""},{"$f":"IF('TSA Input'!J3762=\"\",\"\",IF(OR('TSA Input'!J3762=\"Yes\",'TSA Input'!J3762=\"Contingent\"),'TSA Input'!F3762,\"\"))","v":""},"",{"$f":"IF('TSA Input'!J3762=\"\",\"\",IF(OR('TSA Input'!J3762=\"Yes\",'TSA Input'!J3762=\"Contingent\"),'TSA Input'!D3762,\"\"))","v":""},{"$f":"IF('TSA Input'!J3762=\"\",\"\",IF(OR('TSA Input'!J3762=\"Yes\",'TSA Input'!J3762=\"Contingent\"),'TSA Input'!G3762,\"\"))","v":""},{"$f":"IF('TSA Input'!J3762=\"\",\"\",IF(OR('TSA Input'!J3762=\"Yes\",'TSA Input'!J3762=\"Contingent\"),'TSA Input'!F3762,\"\"))","v":""},"","Required","Required"]
["",null,{"$f":"IF('TSA Input'!J3763=\"\",\"\",IF(OR('TSA Input'!J3763=\"Yes\",'TSA Input'!J3763=\"Contingent\"),'TSA Input'!B3763,\"Ineligible\"))","v":""},{"$f":"IF('TSA Input'!J3763=\"\",\"\",IF(OR('TSA Input'!J3763=\"Yes\",'TSA Input'!J3763=\"Contingent\"),'TSA Input'!I3763,\"\"))","v":""},{"$f":"IF('TSA Input'!J3763=\"\",\"\",IF(OR('TSA Input'!J3763=\"Yes\",'TSA Input'!J3763=\"Contingent\"),'TSA Input'!C3763,\"\"))","v":""},{"$f":"IF('TSA Input'!J3763=\"\",\"\",IF(OR('TSA Input'!J3763=\"Yes\",'TSA Input'!J3763=\"Contingent\"),'TSA Input'!D3763,\"\"))","v":""},{"$f":"IF('TSA Input'!J3763=\"\",\"\",IF(OR('TSA Input'!J3763=\"Yes\",'TSA Input'!J3763=\"Contingent\"),'TSA Input'!G3763,\"\"))","v":""},{"$f":"IF('TSA Input'!J3763=\"\",\"\",IF(OR('TSA Input'!J3763=\"Yes\",'TSA Input'!J3763=\"Contingent\"),'TSA Input'!F3763,\"\"))","v":""},"",{"$f":"IF('TSA Input'!J3763=\"\",\"\",IF(OR('TSA Input'!J3763=\"Yes\",'TSA Input'!J3763=\"Contingent\"),'TSA Input'!D3763,\"\"))","v":""},{"$f":"IF('TSA Input'!J3763=\"\",\"\",IF(OR('TSA Input'!J3763=\"Yes\",'TSA Input'!J3763=\"Contingent\"),'TSA Input'!G3763,\"\"))","v":""},{"$f":"IF('TSA Input'!J3763=\"\",\"\",IF(OR('TSA Input'!J3763=\"Yes\",'TSA Input'!J3763=\"Contingent\"),'TSA Input'!F3763,\"\"))","v":""},"","Required","Required"]
["",null,{"$f":"IF('TSA Input'!J3764=\"\",\"\",IF(OR('TSA Input'!J3764=\"Yes\",'TSA Input'!J3764=\"Contingent\"),'TSA Input'!B3764,\"Ineligible\"))","v":""},{"$f":"IF('TSA Input'!J3764=\"\",\"\",IF(OR('TSA Input'!J3764=\"Yes\",'TSA Input'!J3764=\"Contingent\"),'TSA Input'!I3764,\"\"))","v":""},{"$f":"IF('TSA Input'!J3764=\"\",\"\",IF(OR('TSA Input'!J3764=\"Yes\",'TSA Input'!J3764=\"Contingent\"),'TSA Input'!C3764,\"\"))","v":""},{"$f":"IF('TSA Input'!J3764=\"\",\"\",IF(OR('TSA Input'!J3764=\"Yes\",'TSA Input'!J3764=\"Contingent\"),'TSA Input'!D3764,\"\"))","v":""},{"$f":"IF('TSA Input'!J3764=\"\",\"\",IF(OR('TSA Input'!J3764=\"Yes\",'TSA Input'!J3764=\"Contingent\"),'TSA Input'!G3764,\"\"))","v":""},{"$f":"IF('TSA Input'!J3764=\"\",\"\",IF(OR('TSA Input'!J3764=\"Yes\",'TSA Input'!J3764=\"Contingent\"),'TSA Input'!F3764,\"\"))","v":""},"",{"$f":"IF('TSA Input'!J3764=\"\",\"\",IF(OR('TSA Input'!J3764=\"Yes\",'TSA Input'!J3764=\"Contingent\"),'TSA Input'!D3764,\"\"))","v":""},{"$f":"IF('TSA Input'!J3764=\"\",\"\",IF(OR('TSA Input'!J3764=\"Yes\",'TSA Input'!J3764=\"Contingent\"),'TSA Input'!G3764,\"\"))","v":""},{"$f":"IF('TSA Input'!J3764=\"\",\"\",IF(OR('TSA Input'!J3764=\"Yes\",'TSA Input'!J3764=\"Contingent\"),'TSA Input'!F3764,\"\"))","v":""},"","Required","Required"]
["",null,{"$f":"IF('TSA Input'!J3765=\"\",\"\",IF(OR('TSA Input'!J3765=\"Yes\",'TSA Input'!J3765=\"Contingent\"),'TSA Input'!B3765,\"Ineligible\"))","v":""},{"$f":"IF('TSA Input'!J3765=\"\",\"\",IF(OR('TSA Input'!J3765=\"Yes\",'TSA Input'!J3765=\"Contingent\"),'TSA Input'!I3765,\"\"))","v":""},{"$f":"IF('TSA Input'!J3765=\"\",\"\",IF(OR('TSA Input'!J3765=\"Yes\",'TSA Input'!J3765=\"Contingent\"),'TSA Input'!C3765,\"\"))","v":""},{"$f":"IF('TSA Input'!J3765=\"\",\"\",IF(OR('TSA Input'!J3765=\"Yes\",'TSA Input'!J3765=\"Contingent\"),'TSA Input'!D3765,\"\"))","v":""},{"$f":"IF('TSA Input'!J3765=\"\",\"\",IF(OR('TSA Input'!J3765=\"Yes\",'TSA Input'!J3765=\"Contingent\"),'TSA Input'!G3765,\"\"))","v":""},{"$f":"IF('TSA Input'!J3765=\"\",\"\",IF(OR('TSA Input'!J3765=\"Yes\",'TSA Input'!J3765=\"Contingent\"),'TSA Input'!F3765,\"\"))","v":""},"",{"$f":"IF('TSA Input'!J3765=\"\",\"\",IF(OR('TSA Input'!J3765=\"Yes\",'TSA Input'!J3765=\"Contingent\"),'TSA Input'!D3765,\"\"))","v":""},{"$f":"IF('TSA Input'!J3765=\"\",\"\",IF(OR('TSA Input'!J3765=\"Yes\",'TSA Input'!J3765=\"Contingent\"),'TSA Input'!G3765,\"\"))","v":""},{"$f":"IF('TSA Input'!J3765=\"\",\"\",IF(OR('TSA Input'!J3765=\"Yes\",'TSA Input'!J3765=\"Contingent\"),'TSA Input'!F3765,\"\"))","v":""},"","Required","Required"]
["",null,{"$f":"IF('TSA Input'!J3766=\"\",\"\",IF(OR('TSA Input'!J3766=\"Yes\",'TSA Input'!J3766=\"Contingent\"),'TSA Input'!B3766,\"Ineligible\"))","v":""},{"$f":"IF('TSA Input'!J3766=\"\",\"\",IF(OR('TSA Input'!J3766=\"Yes\",'TSA Input'!J3766=\"Contingent\"),'TSA Input'!I3766,\"\"))","v":""},{"$f":"IF('TSA Input'!J3766=\"\",\"\",IF(OR('TSA Input'!J3766=\"Yes\",'TSA Input'!J3766=\"Contingent\"),'TSA Input'!C3766,\"\"))","v":""},{"$f":"IF('TSA Input'!J3766=\"\",\"\",IF(OR('TSA Input'!J3766=\"Yes\",'TSA Input'!J3766=\"Contingent\"),'TSA Input'!D3766,\"\"))","v":""},{"$f":"IF('TSA Input'!J3766=\"\",\"\",IF(OR('TSA Input'!J3766=\"Yes\",'TSA Input'!J3766=\"Contingent\"),'TSA Input'!G3766,\"\"))","v":""},{"$f":"IF('TSA Input'!J3766=\"\",\"\",IF(OR('TSA Input'!J3766=\"Yes\",'TSA Input'!J3766=\"Contingent\"),'TSA Input'!F3766,\"\"))","v":""},"",{"$f":"IF('TSA Input'!J3766=\"\",\"\",IF(OR('TSA Input'!J3766=\"Yes\",'TSA Input'!J3766=\"Contingent\"),'TSA Input'!D3766,\"\"))","v":""},{"$f":"IF('TSA Input'!J3766=\"\",\"\",IF(OR('TSA Input'!J3766=\"Yes\",'TSA Input'!J3766=\"Contingent\"),'TSA Input'!G3766,\"\"))","v":""},{"$f":"IF('TSA Input'!J3766=\"\",\"\",IF(OR('TSA Input'!J3766=\"Yes\",'TSA Input'!J3766=\"Contingent\"),'TSA Input'!F3766,\"\"))","v":""},"","Required","Required"]
["",null,{"$f":"IF('TSA Input'!J3767=\"\",\"\",IF(OR('TSA Input'!J3767=\"Yes\",'TSA Input'!J3767=\"Contingent\"),'TSA Input'!B3767,\"Ineligible\"))","v":""},{"$f":"IF('TSA Input'!J3767=\"\",\"\",IF(OR('TSA Input'!J3767=\"Yes\",'TSA Input'!J3767=\"Contingent\"),'TSA Input'!I3767,\"\"))","v":""},{"$f":"IF('TSA Input'!J3767=\"\",\"\",IF(OR('TSA Input'!J3767=\"Yes\",'TSA Input'!J3767=\"Contingent\"),'TSA Input'!C3767,\"\"))","v":""},{"$f":"IF('TSA Input'!J3767=\"\",\"\",IF(OR('TSA Input'!J3767=\"Yes\",'TSA Input'!J3767=\"Contingent\"),'TSA Input'!D3767,\"\"))","v":""},{"$f":"IF('TSA Input'!J3767=\"\",\"\",IF(OR('TSA Input'!J3767=\"Yes\",'TSA Input'!J3767=\"Contingent\"),'TSA Input'!G3767,\"\"))","v":""},{"$f":"IF('TSA Input'!J3767=\"\",\"\",IF(OR('TSA Input'!J3767=\"Yes\",'TSA Input'!J3767=\"Contingent\"),'TSA Input'!F3767,\"\"))","v":""},"",{"$f":"IF('TSA Input'!J3767=\"\",\"\",IF(OR('TSA Input'!J3767=\"Yes\",'TSA Input'!J3767=\"Contingent\"),'TSA Input'!D3767,\"\"))","v":""},{"$f":"IF('TSA Input'!J3767=\"\",\"\",IF(OR('TSA Input'!J3767=\"Yes\",'TSA Input'!J3767=\"Contingent\"),'TSA Input'!G3767,\"\"))","v":""},{"$f":"IF('TSA Input'!J3767=\"\",\"\",IF(OR('TSA Input'!J3767=\"Yes\",'TSA Input'!J3767=\"Contingent\"),'TSA Input'!F3767,\"\"))","v":""},"","Required","Required"]
["",null,{"$f":"IF('TSA Input'!J3768=\"\",\"\",IF(OR('TSA Input'!J3768=\"Yes\",'TSA Input'!J3768=\"Contingent\"),'TSA Input'!B3768,\"Ineligible\"))","v":""},{"$f":"IF('TSA Input'!J3768=\"\",\"\",IF(OR('TSA Input'!J3768=\"Yes\",'TSA Input'!J3768=\"Contingent\"),'TSA Input'!I3768,\"\"))","v":""},{"$f":"IF('TSA Input'!J3768=\"\",\"\",IF(OR('TSA Input'!J3768=\"Yes\",'TSA Input'!J3768=\"Contingent\"),'TSA Input'!C3768,\"\"))","v":""},{"$f":"IF('TSA Input'!J3768=\"\",\"\",IF(OR('TSA Input'!J3768=\"Yes\",'TSA Input'!J3768=\"Contingent\"),'TSA Input'!D3768,\"\"))","v":""},{"$f":"IF('TSA Input'!J3768=\"\",\"\",IF(OR('TSA Input'!J3768=\"Yes\",'TSA Input'!J3768=\"Contingent\"),'TSA Input'!G3768,\"\"))","v":""},{"$f":"IF('TSA Input'!J3768=\"\",\"\",IF(OR('TSA Input'!J3768=\"Yes\",'TSA Input'!J3768=\"Contingent\"),'TSA Input'!F3768,\"\"))","v":""},"",{"$f":"IF('TSA Input'!J3768=\"\",\"\",IF(OR('TSA Input'!J3768=\"Yes\",'TSA Input'!J3768=\"Contingent\"),'TSA Input'!D3768,\"\"))","v":""},{"$f":"IF('TSA Input'!J3768=\"\",\"\",IF(OR('TSA Input'!J3768=\"Yes\",'TSA Input'!J3768=\"Contingent\"),'TSA Input'!G3768,\"\"))","v":""},{"$f":"IF('TSA Input'!J3768=\"\",\"\",IF(OR('TSA Input'!J3768=\"Yes\",'TSA Input'!J3768=\"Contingent\"),'TSA Input'!F3768,\"\"))","v":""},"","Required","Required"]
["",null,{"$f":"IF('TSA Input'!J3769=\"\",\"\",IF(OR('TSA Input'!J3769=\"Yes\",'TSA Input'!J3769=\"Contingent\"),'TSA Input'!B3769,\"Ineligible\"))","v":""},{"$f":"IF('TSA Input'!J3769=\"\",\"\",IF(OR('TSA Input'!J3769=\"Yes\",'TSA Input'!J3769=\"Contingent\"),'TSA Input'!I3769,\"\"))","v":""},{"$f":"IF('TSA Input'!J3769=\"\",\"\",IF(OR('TSA Input'!J3769=\"Yes\",'TSA Input'!J3769=\"Contingent\"),'TSA Input'!C3769,\"\"))","v":""},{"$f":"IF('TSA Input'!J3769=\"\",\"\",IF(OR('TSA Input'!J3769=\"Yes\",'TSA Input'!J3769=\"Contingent\"),'TSA Input'!D3769,\"\"))","v":""},{"$f":"IF('TSA Input'!J3769=\"\",\"\",IF(OR('TSA Input'!J3769=\"Yes\",'TSA Input'!J3769=\"Contingent\"),'TSA Input'!G3769,\"\"))","v":""},{"$f":"IF('TSA Input'!J3769=\"\",\"\",IF(OR('TSA Input'!J3769=\"Yes\",'TSA Input'!J3769=\"Contingent\"),'TSA Input'!F3769,\"\"))","v":""},"",{"$f":"IF('TSA Input'!J3769=\"\",\"\",IF(OR('TSA Input'!J3769=\"Yes\",'TSA Input'!J3769=\"Contingent\"),'TSA Input'!D3769,\"\"))","v":""},{"$f":"IF('TSA Input'!J3769=\"\",\"\",IF(OR('TSA Input'!J3769=\"Yes\",'TSA Input'!J3769=\"Contingent\"),'TSA Input'!G3769,\"\"))","v":""},{"$f":"IF('TSA Input'!J3769=\"\",\"\",IF(OR('TSA Input'!J3769=\"Yes\",'TSA Input'!J3769=\"Contingent\"),'TSA Input'!F3769,\"\"))","v":""},"","Required","Required"]
["",null,{"$f":"IF('TSA Input'!J3770=\"\",\"\",IF(OR('TSA Input'!J3770=\"Yes\",'TSA Input'!J3770=\"Contingent\"),'TSA Input'!B3770,\"Ineligible\"))","v":""},{"$f":"IF('TSA Input'!J3770=\"\",\"\",IF(OR('TSA Input'!J3770=\"Yes\",'TSA Input'!J3770=\"Contingent\"),'TSA Input'!I3770,\"\"))","v":""},{"$f":"IF('TSA Input'!J3770=\"\",\"\",IF(OR('TSA Input'!J3770=\"Yes\",'TSA Input'!J3770=\"Contingent\"),'TSA Input'!C3770,\"\"))","v":""},{"$f":"IF('TSA Input'!J3770=\"\",\"\",IF(OR('TSA Input'!J3770=\"Yes\",'TSA Input'!J3770=\"Contingent\"),'TSA Input'!D3770,\"\"))","v":""},{"$f":"IF('TSA Input'!J3770=\"\",\"\",IF(OR('TSA Input'!J3770=\"Yes\",'TSA Input'!J3770=\"Contingent\"),'TSA Input'!G3770,\"\"))","v":""},{"$f":"IF('TSA Input'!J3770=\"\",\"\",IF(OR('TSA Input'!J3770=\"Yes\",'TSA Input'!J3770=\"Contingent\"),'TSA Input'!F3770,\"\"))","v":""},"",{"$f":"IF('TSA Input'!J3770=\"\",\"\",IF(OR('TSA Input'!J3770=\"Yes\",'TSA Input'!J3770=\"Contingent\"),'TSA Input'!D3770,\"\"))","v":""},{"$f":"IF('TSA Input'!J3770=\"\",\"\",IF(OR('TSA Input'!J3770=\"Yes\",'TSA Input'!J3770=\"Contingent\"),'TSA Input'!G3770,\"\"))","v":""},{"$f":"IF('TSA Input'!J3770=\"\",\"\",IF(OR('TSA Input'!J3770=\"Yes\",'TSA Input'!J3770=\"Contingent\"),'TSA Input'!F3770,\"\"))","v":""},"","Required","Required"]
["",null,{"$f":"IF('TSA Input'!J3771=\"\",\"\",IF(OR('TSA Input'!J3771=\"Yes\",'TSA Input'!J3771=\"Contingent\"),'TSA Input'!B3771,\"Ineligible\"))","v":""},{"$f":"IF('TSA Input'!J3771=\"\",\"\",IF(OR('TSA Input'!J3771=\"Yes\",'TSA Input'!J3771=\"Contingent\"),'TSA Input'!I3771,\"\"))","v":""},{"$f":"IF('TSA Input'!J3771=\"\",\"\",IF(OR('TSA Input'!J3771=\"Yes\",'TSA Input'!J3771=\"Contingent\"),'TSA Input'!C3771,\"\"))","v":""},{"$f":"IF('TSA Input'!J3771=\"\",\"\",IF(OR('TSA Input'!J3771=\"Yes\",'TSA Input'!J3771=\"Contingent\"),'TSA Input'!D3771,\"\"))","v":""},{"$f":"IF('TSA Input'!J3771=\"\",\"\",IF(OR('TSA Input'!J3771=\"Yes\",'TSA Input'!J3771=\"Contingent\"),'TSA Input'!G3771,\"\"))","v":""},{"$f":"IF('TSA Input'!J3771=\"\",\"\",IF(OR('TSA Input'!J3771=\"Yes\",'TSA Input'!J3771=\"Contingent\"),'TSA Input'!F3771,\"\"))","v":""},"",{"$f":"IF('TSA Input'!J3771=\"\",\"\",IF(OR('TSA Input'!J3771=\"Yes\",'TSA Input'!J3771=\"Contingent\"),'TSA Input'!D3771,\"\"))","v":""},{"$f":"IF('TSA Input'!J3771=\"\",\"\",IF(OR('TSA Input'!J3771=\"Yes\",'TSA Input'!J3771=\"Contingent\"),'TSA Input'!G3771,\"\"))","v":""},{"$f":"IF('TSA Input'!J3771=\"\",\"\",IF(OR('TSA Input'!J3771=\"Yes\",'TSA Input'!J3771=\"Contingent\"),'TSA Input'!F3771,\"\"))","v":""},"","Required","Required"]
["",null,{"$f":"IF('TSA Input'!J3772=\"\",\"\",IF(OR('TSA Input'!J3772=\"Yes\",'TSA Input'!J3772=\"Contingent\"),'TSA Input'!B3772,\"Ineligible\"))","v":""},{"$f":"IF('TSA Input'!J3772=\"\",\"\",IF(OR('TSA Input'!J3772=\"Yes\",'TSA Input'!J3772=\"Contingent\"),'TSA Input'!I3772,\"\"))","v":""},{"$f":"IF('TSA Input'!J3772=\"\",\"\",IF(OR('TSA Input'!J3772=\"Yes\",'TSA Input'!J3772=\"Contingent\"),'TSA Input'!C3772,\"\"))","v":""},{"$f":"IF('TSA Input'!J3772=\"\",\"\",IF(OR('TSA Input'!J3772=\"Yes\",'TSA Input'!J3772=\"Contingent\"),'TSA Input'!D3772,\"\"))","v":""},{"$f":"IF('TSA Input'!J3772=\"\",\"\",IF(OR('TSA Input'!J3772=\"Yes\",'TSA Input'!J3772=\"Contingent\"),'TSA Input'!G3772,\"\"))","v":""},{"$f":"IF('TSA Input'!J3772=\"\",\"\",IF(OR('TSA Input'!J3772=\"Yes\",'TSA Input'!J3772=\"Contingent\"),'TSA Input'!F3772,\"\"))","v":""},"",{"$f":"IF('TSA Input'!J3772=\"\",\"\",IF(OR('TSA Input'!J3772=\"Yes\",'TSA Input'!J3772=\"Contingent\"),'TSA Input'!D3772,\"\"))","v":""},{"$f":"IF('TSA Input'!J3772=\"\",\"\",IF(OR('TSA Input'!J3772=\"Yes\",'TSA Input'!J3772=\"Contingent\"),'TSA Input'!G3772,\"\"))","v":""},{"$f":"IF('TSA Input'!J3772=\"\",\"\",IF(OR('TSA Input'!J3772=\"Yes\",'TSA Input'!J3772=\"Contingent\"),'TSA Input'!F3772,\"\"))","v":""},"","Required","Required"]
["",null,{"$f":"IF('TSA Input'!J3773=\"\",\"\",IF(OR('TSA Input'!J3773=\"Yes\",'TSA Input'!J3773=\"Contingent\"),'TSA Input'!B3773,\"Ineligible\"))","v":""},{"$f":"IF('TSA Input'!J3773=\"\",\"\",IF(OR('TSA Input'!J3773=\"Yes\",'TSA Input'!J3773=\"Contingent\"),'TSA Input'!I3773,\"\"))","v":""},{"$f":"IF('TSA Input'!J3773=\"\",\"\",IF(OR('TSA Input'!J3773=\"Yes\",'TSA Input'!J3773=\"Contingent\"),'TSA Input'!C3773,\"\"))","v":""},{"$f":"IF('TSA Input'!J3773=\"\",\"\",IF(OR('TSA Input'!J3773=\"Yes\",'TSA Input'!J3773=\"Contingent\"),'TSA Input'!D3773,\"\"))","v":""},{"$f":"IF('TSA Input'!J3773=\"\",\"\",IF(OR('TSA Input'!J3773=\"Yes\",'TSA Input'!J3773=\"Contingent\"),'TSA Input'!G3773,\"\"))","v":""},{"$f":"IF('TSA Input'!J3773=\"\",\"\",IF(OR('TSA Input'!J3773=\"Yes\",'TSA Input'!J3773=\"Contingent\"),'TSA Input'!F3773,\"\"))","v":""},"",{"$f":"IF('TSA Input'!J3773=\"\",\"\",IF(OR('TSA Input'!J3773=\"Yes\",'TSA Input'!J3773=\"Contingent\"),'TSA Input'!D3773,\"\"))","v":""},{"$f":"IF('TSA Input'!J3773=\"\",\"\",IF(OR('TSA Input'!J3773=\"Yes\",'TSA Input'!J3773=\"Contingent\"),'TSA Input'!G3773,\"\"))","v":""},{"$f":"IF('TSA Input'!J3773=\"\",\"\",IF(OR('TSA Input'!J3773=\"Yes\",'TSA Input'!J3773=\"Contingent\"),'TSA Input'!F3773,\"\"))","v":""},"","Required","Required"]
["",null,{"$f":"IF('TSA Input'!J3774=\"\",\"\",IF(OR('TSA Input'!J3774=\"Yes\",'TSA Input'!J3774=\"Contingent\"),'TSA Input'!B3774,\"Ineligible\"))","v":""},{"$f":"IF('TSA Input'!J3774=\"\",\"\",IF(OR('TSA Input'!J3774=\"Yes\",'TSA Input'!J3774=\"Contingent\"),'TSA Input'!I3774,\"\"))","v":""},{"$f":"IF('TSA Input'!J3774=\"\",\"\",IF(OR('TSA Input'!J3774=\"Yes\",'TSA Input'!J3774=\"Contingent\"),'TSA Input'!C3774,\"\"))","v":""},{"$f":"IF('TSA Input'!J3774=\"\",\"\",IF(OR('TSA Input'!J3774=\"Yes\",'TSA Input'!J3774=\"Contingent\"),'TSA Input'!D3774,\"\"))","v":""},{"$f":"IF('TSA Input'!J3774=\"\",\"\",IF(OR('TSA Input'!J3774=\"Yes\",'TSA Input'!J3774=\"Contingent\"),'TSA Input'!G3774,\"\"))","v":""},{"$f":"IF('TSA Input'!J3774=\"\",\"\",IF(OR('TSA Input'!J3774=\"Yes\",'TSA Input'!J3774=\"Contingent\"),'TSA Input'!F3774,\"\"))","v":""},"",{"$f":"IF('TSA Input'!J3774=\"\",\"\",IF(OR('TSA Input'!J3774=\"Yes\",'TSA Input'!J3774=\"Contingent\"),'TSA Input'!D3774,\"\"))","v":""},{"$f":"IF('TSA Input'!J3774=\"\",\"\",IF(OR('TSA Input'!J3774=\"Yes\",'TSA Input'!J3774=\"Contingent\"),'TSA Input'!G3774,\"\"))","v":""},{"$f":"IF('TSA Input'!J3774=\"\",\"\",IF(OR('TSA Input'!J3774=\"Yes\",'TSA Input'!J3774=\"Contingent\"),'TSA Input'!F3774,\"\"))","v":""},"","Required","Required"]
["",null,{"$f":"IF('TSA Input'!J3775=\"\",\"\",IF(OR('TSA Input'!J3775=\"Yes\",'TSA Input'!J3775=\"Contingent\"),'TSA Input'!B3775,\"Ineligible\"))","v":""},{"$f":"IF('TSA Input'!J3775=\"\",\"\",IF(OR('TSA Input'!J3775=\"Yes\",'TSA Input'!J3775=\"Contingent\"),'TSA Input'!I3775,\"\"))","v":""},{"$f":"IF('TSA Input'!J3775=\"\",\"\",IF(OR('TSA Input'!J3775=\"Yes\",'TSA Input'!J3775=\"Contingent\"),'TSA Input'!C3775,\"\"))","v":""},{"$f":"IF('TSA Input'!J3775=\"\",\"\",IF(OR('TSA Input'!J3775=\"Yes\",'TSA Input'!J3775=\"Contingent\"),'TSA Input'!D3775,\"\"))","v":""},{"$f":"IF('TSA Input'!J3775=\"\",\"\",IF(OR('TSA Input'!J3775=\"Yes\",'TSA Input'!J3775=\"Contingent\"),'TSA Input'!G3775,\"\"))","v":""},{"$f":"IF('TSA Input'!J3775=\"\",\"\",IF(OR('TSA Input'!J3775=\"Yes\",'TSA Input'!J3775=\"Contingent\"),'TSA Input'!F3775,\"\"))","v":""},"",{"$f":"IF('TSA Input'!J3775=\"\",\"\",IF(OR('TSA Input'!J3775=\"Yes\",'TSA Input'!J3775=\"Contingent\"),'TSA Input'!D3775,\"\"))","v":""},{"$f":"IF('TSA Input'!J3775=\"\",\"\",IF(OR('TSA Input'!J3775=\"Yes\",'TSA Input'!J3775=\"Contingent\"),'TSA Input'!G3775,\"\"))","v":""},{"$f":"IF('TSA Input'!J3775=\"\",\"\",IF(OR('TSA Input'!J3775=\"Yes\",'TSA Input'!J3775=\"Contingent\"),'TSA Input'!F3775,\"\"))","v":""},"","Required","Required"]
["",null,{"$f":"IF('TSA Input'!J3776=\"\",\"\",IF(OR('TSA Input'!J3776=\"Yes\",'TSA Input'!J3776=\"Contingent\"),'TSA Input'!B3776,\"Ineligible\"))","v":""},{"$f":"IF('TSA Input'!J3776=\"\",\"\",IF(OR('TSA Input'!J3776=\"Yes\",'TSA Input'!J3776=\"Contingent\"),'TSA Input'!I3776,\"\"))","v":""},{"$f":"IF('TSA Input'!J3776=\"\",\"\",IF(OR('TSA Input'!J3776=\"Yes\",'TSA Input'!J3776=\"Contingent\"),'TSA Input'!C3776,\"\"))","v":""},{"$f":"IF('TSA Input'!J3776=\"\",\"\",IF(OR('TSA Input'!J3776=\"Yes\",'TSA Input'!J3776=\"Contingent\"),'TSA Input'!D3776,\"\"))","v":""},{"$f":"IF('TSA Input'!J3776=\"\",\"\",IF(OR('TSA Input'!J3776=\"Yes\",'TSA Input'!J3776=\"Contingent\"),'TSA Input'!G3776,\"\"))","v":""},{"$f":"IF('TSA Input'!J3776=\"\",\"\",IF(OR('TSA Input'!J3776=\"Yes\",'TSA Input'!J3776=\"Contingent\"),'TSA Input'!F3776,\"\"))","v":""},"",{"$f":"IF('TSA Input'!J3776=\"\",\"\",IF(OR('TSA Input'!J3776=\"Yes\",'TSA Input'!J3776=\"Contingent\"),'TSA Input'!D3776,\"\"))","v":""},{"$f":"IF('TSA Input'!J3776=\"\",\"\",IF(OR('TSA Input'!J3776=\"Yes\",'TSA Input'!J3776=\"Contingent\"),'TSA Input'!G3776,\"\"))","v":""},{"$f":"IF('TSA Input'!J3776=\"\",\"\",IF(OR('TSA Input'!J3776=\"Yes\",'TSA Input'!J3776=\"Contingent\"),'TSA Input'!F3776,\"\"))","v":""},"","Required","Required"]
["",null,{"$f":"IF('TSA Input'!J3777=\"\",\"\",IF(OR('TSA Input'!J3777=\"Yes\",'TSA Input'!J3777=\"Contingent\"),'TSA Input'!B3777,\"Ineligible\"))","v":""},{"$f":"IF('TSA Input'!J3777=\"\",\"\",IF(OR('TSA Input'!J3777=\"Yes\",'TSA Input'!J3777=\"Contingent\"),'TSA Input'!I3777,\"\"))","v":""},{"$f":"IF('TSA Input'!J3777=\"\",\"\",IF(OR('TSA Input'!J3777=\"Yes\",'TSA Input'!J3777=\"Contingent\"),'TSA Input'!C3777,\"\"))","v":""},{"$f":"IF('TSA Input'!J3777=\"\",\"\",IF(OR('TSA Input'!J3777=\"Yes\",'TSA Input'!J3777=\"Contingent\"),'TSA Input'!D3777,\"\"))","v":""},{"$f":"IF('TSA Input'!J3777=\"\",\"\",IF(OR('TSA Input'!J3777=\"Yes\",'TSA Input'!J3777=\"Contingent\"),'TSA Input'!G3777,\"\"))","v":""},{"$f":"IF('TSA Input'!J3777=\"\",\"\",IF(OR('TSA Input'!J3777=\"Yes\",'TSA Input'!J3777=\"Contingent\"),'TSA Input'!F3777,\"\"))","v":""},"",{"$f":"IF('TSA Input'!J3777=\"\",\"\",IF(OR('TSA Input'!J3777=\"Yes\",'TSA Input'!J3777=\"Contingent\"),'TSA Input'!D3777,\"\"))","v":""},{"$f":"IF('TSA Input'!J3777=\"\",\"\",IF(OR('TSA Input'!J3777=\"Yes\",'TSA Input'!J3777=\"Contingent\"),'TSA Input'!G3777,\"\"))","v":""},{"$f":"IF('TSA Input'!J3777=\"\",\"\",IF(OR('TSA Input'!J3777=\"Yes\",'TSA Input'!J3777=\"Contingent\"),'TSA Input'!F3777,\"\"))","v":""},"","Required","Required"]
["",null,{"$f":"IF('TSA Input'!J3778=\"\",\"\",IF(OR('TSA Input'!J3778=\"Yes\",'TSA Input'!J3778=\"Contingent\"),'TSA Input'!B3778,\"Ineligible\"))","v":""},{"$f":"IF('TSA Input'!J3778=\"\",\"\",IF(OR('TSA Input'!J3778=\"Yes\",'TSA Input'!J3778=\"Contingent\"),'TSA Input'!I3778,\"\"))","v":""},{"$f":"IF('TSA Input'!J3778=\"\",\"\",IF(OR('TSA Input'!J3778=\"Yes\",'TSA Input'!J3778=\"Contingent\"),'TSA Input'!C3778,\"\"))","v":""},{"$f":"IF('TSA Input'!J3778=\"\",\"\",IF(OR('TSA Input'!J3778=\"Yes\",'TSA Input'!J3778=\"Contingent\"),'TSA Input'!D3778,\"\"))","v":""},{"$f":"IF('TSA Input'!J3778=\"\",\"\",IF(OR('TSA Input'!J3778=\"Yes\",'TSA Input'!J3778=\"Contingent\"),'TSA Input'!G3778,\"\"))","v":""},{"$f":"IF('TSA Input'!J3778=\"\",\"\",IF(OR('TSA Input'!J3778=\"Yes\",'TSA Input'!J3778=\"Contingent\"),'TSA Input'!F3778,\"\"))","v":""},"",{"$f":"IF('TSA Input'!J3778=\"\",\"\",IF(OR('TSA Input'!J3778=\"Yes\",'TSA Input'!J3778=\"Contingent\"),'TSA Input'!D3778,\"\"))","v":""},{"$f":"IF('TSA Input'!J3778=\"\",\"\",IF(OR('TSA Input'!J3778=\"Yes\",'TSA Input'!J3778=\"Contingent\"),'TSA Input'!G3778,\"\"))","v":""},{"$f":"IF('TSA Input'!J3778=\"\",\"\",IF(OR('TSA Input'!J3778=\"Yes\",'TSA Input'!J3778=\"Contingent\"),'TSA Input'!F3778,\"\"))","v":""},"","Required","Required"]
["",null,{"$f":"IF('TSA Input'!J3779=\"\",\"\",IF(OR('TSA Input'!J3779=\"Yes\",'TSA Input'!J3779=\"Contingent\"),'TSA Input'!B3779,\"Ineligible\"))","v":""},{"$f":"IF('TSA Input'!J3779=\"\",\"\",IF(OR('TSA Input'!J3779=\"Yes\",'TSA Input'!J3779=\"Contingent\"),'TSA Input'!I3779,\"\"))","v":""},{"$f":"IF('TSA Input'!J3779=\"\",\"\",IF(OR('TSA Input'!J3779=\"Yes\",'TSA Input'!J3779=\"Contingent\"),'TSA Input'!C3779,\"\"))","v":""},{"$f":"IF('TSA Input'!J3779=\"\",\"\",IF(OR('TSA Input'!J3779=\"Yes\",'TSA Input'!J3779=\"Contingent\"),'TSA Input'!D3779,\"\"))","v":""},{"$f":"IF('TSA Input'!J3779=\"\",\"\",IF(OR('TSA Input'!J3779=\"Yes\",'TSA Input'!J3779=\"Contingent\"),'TSA Input'!G3779,\"\"))","v":""},{"$f":"IF('TSA Input'!J3779=\"\",\"\",IF(OR('TSA Input'!J3779=\"Yes\",'TSA Input'!J3779=\"Contingent\"),'TSA Input'!F3779,\"\"))","v":""},"",{"$f":"IF('TSA Input'!J3779=\"\",\"\",IF(OR('TSA Input'!J3779=\"Yes\",'TSA Input'!J3779=\"Contingent\"),'TSA Input'!D3779,\"\"))","v":""},{"$f":"IF('TSA Input'!J3779=\"\",\"\",IF(OR('TSA Input'!J3779=\"Yes\",'TSA Input'!J3779=\"Contingent\"),'TSA Input'!G3779,\"\"))","v":""},{"$f":"IF('TSA Input'!J3779=\"\",\"\",IF(OR('TSA Input'!J3779=\"Yes\",'TSA Input'!J3779=\"Contingent\"),'TSA Input'!F3779,\"\"))","v":""},"","Required","Required"]
["",null,{"$f":"IF('TSA Input'!J3780=\"\",\"\",IF(OR('TSA Input'!J3780=\"Yes\",'TSA Input'!J3780=\"Contingent\"),'TSA Input'!B3780,\"Ineligible\"))","v":""},{"$f":"IF('TSA Input'!J3780=\"\",\"\",IF(OR('TSA Input'!J3780=\"Yes\",'TSA Input'!J3780=\"Contingent\"),'TSA Input'!I3780,\"\"))","v":""},{"$f":"IF('TSA Input'!J3780=\"\",\"\",IF(OR('TSA Input'!J3780=\"Yes\",'TSA Input'!J3780=\"Contingent\"),'TSA Input'!C3780,\"\"))","v":""},{"$f":"IF('TSA Input'!J3780=\"\",\"\",IF(OR('TSA Input'!J3780=\"Yes\",'TSA Input'!J3780=\"Contingent\"),'TSA Input'!D3780,\"\"))","v":""},{"$f":"IF('TSA Input'!J3780=\"\",\"\",IF(OR('TSA Input'!J3780=\"Yes\",'TSA Input'!J3780=\"Contingent\"),'TSA Input'!G3780,\"\"))","v":""},{"$f":"IF('TSA Input'!J3780=\"\",\"\",IF(OR('TSA Input'!J3780=\"Yes\",'TSA Input'!J3780=\"Contingent\"),'TSA Input'!F3780,\"\"))","v":""},{"$f":"IF($C3818=\"\",\"\",SUM(F3818:H3818))","v":""},{"$f":"IF('TSA Input'!J3780=\"\",\"\",IF(OR('TSA Input'!J3780=\"Yes\",'TSA Input'!J3780=\"Contingent\"),'TSA Input'!D3780,\"\"))","v":""},{"$f":"IF('TSA Input'!J3780=\"\",\"\",IF(OR('TSA Input'!J3780=\"Yes\",'TSA Input'!J3780=\"Contingent\"),'TSA Input'!G3780,\"\"))","v":""},{"$f":"IF('TSA Input'!J3780=\"\",\"\",IF(OR('TSA Input'!J3780=\"Yes\",'TSA Input'!J3780=\"Contingent\"),'TSA Input'!F3780,\"\"))","v":""},{"$f":"IF($C3818=\"\",\"\",SUM(J3818:L3818))","v":""},"Required","Required"]
["",null,{"$f":"IF('TSA Input'!J3781=\"\",\"\",IF(OR('TSA Input'!J3781=\"Yes\",'TSA Input'!J3781=\"Contingent\"),'TSA Input'!B3781,\"Ineligible\"))","v":""},{"$f":"IF('TSA Input'!J3781=\"\",\"\",IF(OR('TSA Input'!J3781=\"Yes\",'TSA Input'!J3781=\"Contingent\"),'TSA Input'!I3781,\"\"))","v":""},{"$f":"IF('TSA Input'!J3781=\"\",\"\",IF(OR('TSA Input'!J3781=\"Yes\",'TSA Input'!J3781=\"Contingent\"),'TSA Input'!C3781,\"\"))","v":""},{"$f":"IF('TSA Input'!J3781=\"\",\"\",IF(OR('TSA Input'!J3781=\"Yes\",'TSA Input'!J3781=\"Contingent\"),'TSA Input'!D3781,\"\"))","v":""},{"$f":"IF('TSA Input'!J3781=\"\",\"\",IF(OR('TSA Input'!J3781=\"Yes\",'TSA Input'!J3781=\"Contingent\"),'TSA Input'!G3781,\"\"))","v":""},{"$f":"IF('TSA Input'!J3781=\"\",\"\",IF(OR('TSA Input'!J3781=\"Yes\",'TSA Input'!J3781=\"Contingent\"),'TSA Input'!F3781,\"\"))","v":""},"",{"$f":"IF('TSA Input'!J3781=\"\",\"\",IF(OR('TSA Input'!J3781=\"Yes\",'TSA Input'!J3781=\"Contingent\"),'TSA Input'!D3781,\"\"))","v":""},{"$f":"IF('TSA Input'!J3781=\"\",\"\",IF(OR('TSA Input'!J3781=\"Yes\",'TSA Input'!J3781=\"Contingent\"),'TSA Input'!G3781,\"\"))","v":""},{"$f":"IF('TSA Input'!J3781=\"\",\"\",IF(OR('TSA Input'!J3781=\"Yes\",'TSA Input'!J3781=\"Contingent\"),'TSA Input'!F3781,\"\"))","v":""},"","Required","Required"]
["",null,{"$f":"IF('TSA Input'!J3782=\"\",\"\",IF(OR('TSA Input'!J3782=\"Yes\",'TSA Input'!J3782=\"Contingent\"),'TSA Input'!B3782,\"Ineligible\"))","v":""},{"$f":"IF('TSA Input'!J3782=\"\",\"\",IF(OR('TSA Input'!J3782=\"Yes\",'TSA Input'!J3782=\"Contingent\"),'TSA Input'!I3782,\"\"))","v":""},{"$f":"IF('TSA Input'!J3782=\"\",\"\",IF(OR('TSA Input'!J3782=\"Yes\",'TSA Input'!J3782=\"Contingent\"),'TSA Input'!C3782,\"\"))","v":""},{"$f":"IF('TSA Input'!J3782=\"\",\"\",IF(OR('TSA Input'!J3782=\"Yes\",'TSA Input'!J3782=\"Contingent\"),'TSA Input'!D3782,\"\"))","v":""},{"$f":"IF('TSA Input'!J3782=\"\",\"\",IF(OR('TSA Input'!J3782=\"Yes\",'TSA Input'!J3782=\"Contingent\"),'TSA Input'!G3782,\"\"))","v":""},{"$f":"IF('TSA Input'!J3782=\"\",\"\",IF(OR('TSA Input'!J3782=\"Yes\",'TSA Input'!J3782=\"Contingent\"),'TSA Input'!F3782,\"\"))","v":""},"",{"$f":"IF('TSA Input'!J3782=\"\",\"\",IF(OR('TSA Input'!J3782=\"Yes\",'TSA Input'!J3782=\"Contingent\"),'TSA Input'!D3782,\"\"))","v":""},{"$f":"IF('TSA Input'!J3782=\"\",\"\",IF(OR('TSA Input'!J3782=\"Yes\",'TSA Input'!J3782=\"Contingent\"),'TSA Input'!G3782,\"\"))","v":""},{"$f":"IF('TSA Input'!J3782=\"\",\"\",IF(OR('TSA Input'!J3782=\"Yes\",'TSA Input'!J3782=\"Contingent\"),'TSA Input'!F3782,\"\"))","v":""},"","Required","Required"]
["",null,{"$f":"IF('TSA Input'!J3783=\"\",\"\",IF(OR('TSA Input'!J3783=\"Yes\",'TSA Input'!J3783=\"Contingent\"),'TSA Input'!B3783,\"Ineligible\"))","v":""},{"$f":"IF('TSA Input'!J3783=\"\",\"\",IF(OR('TSA Input'!J3783=\"Yes\",'TSA Input'!J3783=\"Contingent\"),'TSA Input'!I3783,\"\"))","v":""},{"$f":"IF('TSA Input'!J3783=\"\",\"\",IF(OR('TSA Input'!J3783=\"Yes\",'TSA Input'!J3783=\"Contingent\"),'TSA Input'!C3783,\"\"))","v":""},{"$f":"IF('TSA Input'!J3783=\"\",\"\",IF(OR('TSA Input'!J3783=\"Yes\",'TSA Input'!J3783=\"Contingent\"),'TSA Input'!D3783,\"\"))","v":""},{"$f":"IF('TSA Input'!J3783=\"\",\"\",IF(OR('TSA Input'!J3783=\"Yes\",'TSA Input'!J3783=\"Contingent\"),'TSA Input'!G3783,\"\"))","v":""},{"$f":"IF('TSA Input'!J3783=\"\",\"\",IF(OR('TSA Input'!J3783=\"Yes\",'TSA Input'!J3783=\"Contingent\"),'TSA Input'!F3783,\"\"))","v":""},"",{"$f":"IF('TSA Input'!J3783=\"\",\"\",IF(OR('TSA Input'!J3783=\"Yes\",'TSA Input'!J3783=\"Contingent\"),'TSA Input'!D3783,\"\"))","v":""},{"$f":"IF('TSA Input'!J3783=\"\",\"\",IF(OR('TSA Input'!J3783=\"Yes\",'TSA Input'!J3783=\"Contingent\"),'TSA Input'!G3783,\"\"))","v":""},{"$f":"IF('TSA Input'!J3783=\"\",\"\",IF(OR('TSA Input'!J3783=\"Yes\",'TSA Input'!J3783=\"Contingent\"),'TSA Input'!F3783,\"\"))","v":""},"","Required","Required"]
["",null,{"$f":"IF('TSA Input'!J3784=\"\",\"\",IF(OR('TSA Input'!J3784=\"Yes\",'TSA Input'!J3784=\"Contingent\"),'TSA Input'!B3784,\"Ineligible\"))","v":""},{"$f":"IF('TSA Input'!J3784=\"\",\"\",IF(OR('TSA Input'!J3784=\"Yes\",'TSA Input'!J3784=\"Contingent\"),'TSA Input'!I3784,\"\"))","v":""},{"$f":"IF('TSA Input'!J3784=\"\",\"\",IF(OR('TSA Input'!J3784=\"Yes\",'TSA Input'!J3784=\"Contingent\"),'TSA Input'!C3784,\"\"))","v":""},{"$f":"IF('TSA Input'!J3784=\"\",\"\",IF(OR('TSA Input'!J3784=\"Yes\",'TSA Input'!J3784=\"Contingent\"),'TSA Input'!D3784,\"\"))","v":""},{"$f":"IF('TSA Input'!J3784=\"\",\"\",IF(OR('TSA Input'!J3784=\"Yes\",'TSA Input'!J3784=\"Contingent\"),'TSA Input'!G3784,\"\"))","v":""},{"$f":"IF('TSA Input'!J3784=\"\",\"\",IF(OR('TSA Input'!J3784=\"Yes\",'TSA Input'!J3784=\"Contingent\"),'TSA Input'!F3784,\"\"))","v":""},"",{"$f":"IF('TSA Input'!J3784=\"\",\"\",IF(OR('TSA Input'!J3784=\"Yes\",'TSA Input'!J3784=\"Contingent\"),'TSA Input'!D3784,\"\"))","v":""},{"$f":"IF('TSA Input'!J3784=\"\",\"\",IF(OR('TSA Input'!J3784=\"Yes\",'TSA Input'!J3784=\"Contingent\"),'TSA Input'!G3784,\"\"))","v":""},{"$f":"IF('TSA Input'!J3784=\"\",\"\",IF(OR('TSA Input'!J3784=\"Yes\",'TSA Input'!J3784=\"Contingent\"),'TSA Input'!F3784,\"\"))","v":""},"","Required","Required"]
["",null,{"$f":"IF('TSA Input'!J3785=\"\",\"\",IF(OR('TSA Input'!J3785=\"Yes\",'TSA Input'!J3785=\"Contingent\"),'TSA Input'!B3785,\"Ineligible\"))","v":""},{"$f":"IF('TSA Input'!J3785=\"\",\"\",IF(OR('TSA Input'!J3785=\"Yes\",'TSA Input'!J3785=\"Contingent\"),'TSA Input'!I3785,\"\"))","v":""},{"$f":"IF('TSA Input'!J3785=\"\",\"\",IF(OR('TSA Input'!J3785=\"Yes\",'TSA Input'!J3785=\"Contingent\"),'TSA Input'!C3785,\"\"))","v":""},{"$f":"IF('TSA Input'!J3785=\"\",\"\",IF(OR('TSA Input'!J3785=\"Yes\",'TSA Input'!J3785=\"Contingent\"),'TSA Input'!D3785,\"\"))","v":""},{"$f":"IF('TSA Input'!J3785=\"\",\"\",IF(OR('TSA Input'!J3785=\"Yes\",'TSA Input'!J3785=\"Contingent\"),'TSA Input'!G3785,\"\"))","v":""},{"$f":"IF('TSA Input'!J3785=\"\",\"\",IF(OR('TSA Input'!J3785=\"Yes\",'TSA Input'!J3785=\"Contingent\"),'TSA Input'!F3785,\"\"))","v":""},"",{"$f":"IF('TSA Input'!J3785=\"\",\"\",IF(OR('TSA Input'!J3785=\"Yes\",'TSA Input'!J3785=\"Contingent\"),'TSA Input'!D3785,\"\"))","v":""},{"$f":"IF('TSA Input'!J3785=\"\",\"\",IF(OR('TSA Input'!J3785=\"Yes\",'TSA Input'!J3785=\"Contingent\"),'TSA Input'!G3785,\"\"))","v":""},{"$f":"IF('TSA Input'!J3785=\"\",\"\",IF(OR('TSA Input'!J3785=\"Yes\",'TSA Input'!J3785=\"Contingent\"),'TSA Input'!F3785,\"\"))","v":""},"","Required","Required"]
["",null,{"$f":"IF('TSA Input'!J3786=\"\",\"\",IF(OR('TSA Input'!J3786=\"Yes\",'TSA Input'!J3786=\"Contingent\"),'TSA Input'!B3786,\"Ineligible\"))","v":""},{"$f":"IF('TSA Input'!J3786=\"\",\"\",IF(OR('TSA Input'!J3786=\"Yes\",'TSA Input'!J3786=\"Contingent\"),'TSA Input'!I3786,\"\"))","v":""},{"$f":"IF('TSA Input'!J3786=\"\",\"\",IF(OR('TSA Input'!J3786=\"Yes\",'TSA Input'!J3786=\"Contingent\"),'TSA Input'!C3786,\"\"))","v":""},{"$f":"IF('TSA Input'!J3786=\"\",\"\",IF(OR('TSA Input'!J3786=\"Yes\",'TSA Input'!J3786=\"Contingent\"),'TSA Input'!D3786,\"\"))","v":""},{"$f":"IF('TSA Input'!J3786=\"\",\"\",IF(OR('TSA Input'!J3786=\"Yes\",'TSA Input'!J3786=\"Contingent\"),'TSA Input'!G3786,\"\"))","v":""},{"$f":"IF('TSA Input'!J3786=\"\",\"\",IF(OR('TSA Input'!J3786=\"Yes\",'TSA Input'!J3786=\"Contingent\"),'TSA Input'!F3786,\"\"))","v":""},"",{"$f":"IF('TSA Input'!J3786=\"\",\"\",IF(OR('TSA Input'!J3786=\"Yes\",'TSA Input'!J3786=\"Contingent\"),'TSA Input'!D3786,\"\"))","v":""},{"$f":"IF('TSA Input'!J3786=\"\",\"\",IF(OR('TSA Input'!J3786=\"Yes\",'TSA Input'!J3786=\"Contingent\"),'TSA Input'!G3786,\"\"))","v":""},{"$f":"IF('TSA Input'!J3786=\"\",\"\",IF(OR('TSA Input'!J3786=\"Yes\",'TSA Input'!J3786=\"Contingent\"),'TSA Input'!F3786,\"\"))","v":""},"","Required","Required"]
["",null,{"$f":"IF('TSA Input'!J3787=\"\",\"\",IF(OR('TSA Input'!J3787=\"Yes\",'TSA Input'!J3787=\"Contingent\"),'TSA Input'!B3787,\"Ineligible\"))","v":""},{"$f":"IF('TSA Input'!J3787=\"\",\"\",IF(OR('TSA Input'!J3787=\"Yes\",'TSA Input'!J3787=\"Contingent\"),'TSA Input'!I3787,\"\"))","v":""},{"$f":"IF('TSA Input'!J3787=\"\",\"\",IF(OR('TSA Input'!J3787=\"Yes\",'TSA Input'!J3787=\"Contingent\"),'TSA Input'!C3787,\"\"))","v":""},{"$f":"IF('TSA Input'!J3787=\"\",\"\",IF(OR('TSA Input'!J3787=\"Yes\",'TSA Input'!J3787=\"Contingent\"),'TSA Input'!D3787,\"\"))","v":""},{"$f":"IF('TSA Input'!J3787=\"\",\"\",IF(OR('TSA Input'!J3787=\"Yes\",'TSA Input'!J3787=\"Contingent\"),'TSA Input'!G3787,\"\"))","v":""},{"$f":"IF('TSA Input'!J3787=\"\",\"\",IF(OR('TSA Input'!J3787=\"Yes\",'TSA Input'!J3787=\"Contingent\"),'TSA Input'!F3787,\"\"))","v":""},"",{"$f":"IF('TSA Input'!J3787=\"\",\"\",IF(OR('TSA Input'!J3787=\"Yes\",'TSA Input'!J3787=\"Contingent\"),'TSA Input'!D3787,\"\"))","v":""},{"$f":"IF('TSA Input'!J3787=\"\",\"\",IF(OR('TSA Input'!J3787=\"Yes\",'TSA Input'!J3787=\"Contingent\"),'TSA Input'!G3787,\"\"))","v":""},{"$f":"IF('TSA Input'!J3787=\"\",\"\",IF(OR('TSA Input'!J3787=\"Yes\",'TSA Input'!J3787=\"Contingent\"),'TSA Input'!F3787,\"\"))","v":""},"","Required","Required"]
["",null,{"$f":"IF('TSA Input'!J3788=\"\",\"\",IF(OR('TSA Input'!J3788=\"Yes\",'TSA Input'!J3788=\"Contingent\"),'TSA Input'!B3788,\"Ineligible\"))","v":""},{"$f":"IF('TSA Input'!J3788=\"\",\"\",IF(OR('TSA Input'!J3788=\"Yes\",'TSA Input'!J3788=\"Contingent\"),'TSA Input'!I3788,\"\"))","v":""},{"$f":"IF('TSA Input'!J3788=\"\",\"\",IF(OR('TSA Input'!J3788=\"Yes\",'TSA Input'!J3788=\"Contingent\"),'TSA Input'!C3788,\"\"))","v":""},{"$f":"IF('TSA Input'!J3788=\"\",\"\",IF(OR('TSA Input'!J3788=\"Yes\",'TSA Input'!J3788=\"Contingent\"),'TSA Input'!D3788,\"\"))","v":""},{"$f":"IF('TSA Input'!J3788=\"\",\"\",IF(OR('TSA Input'!J3788=\"Yes\",'TSA Input'!J3788=\"Contingent\"),'TSA Input'!G3788,\"\"))","v":""},{"$f":"IF('TSA Input'!J3788=\"\",\"\",IF(OR('TSA Input'!J3788=\"Yes\",'TSA Input'!J3788=\"Contingent\"),'TSA Input'!F3788,\"\"))","v":""},"",{"$f":"IF('TSA Input'!J3788=\"\",\"\",IF(OR('TSA Input'!J3788=\"Yes\",'TSA Input'!J3788=\"Contingent\"),'TSA Input'!D3788,\"\"))","v":""},{"$f":"IF('TSA Input'!J3788=\"\",\"\",IF(OR('TSA Input'!J3788=\"Yes\",'TSA Input'!J3788=\"Contingent\"),'TSA Input'!G3788,\"\"))","v":""},{"$f":"IF('TSA Input'!J3788=\"\",\"\",IF(OR('TSA Input'!J3788=\"Yes\",'TSA Input'!J3788=\"Contingent\"),'TSA Input'!F3788,\"\"))","v":""},"","Required","Required"]
["",null,{"$f":"IF('TSA Input'!J3789=\"\",\"\",IF(OR('TSA Input'!J3789=\"Yes\",'TSA Input'!J3789=\"Contingent\"),'TSA Input'!B3789,\"Ineligible\"))","v":""},{"$f":"IF('TSA Input'!J3789=\"\",\"\",IF(OR('TSA Input'!J3789=\"Yes\",'TSA Input'!J3789=\"Contingent\"),'TSA Input'!I3789,\"\"))","v":""},{"$f":"IF('TSA Input'!J3789=\"\",\"\",IF(OR('TSA Input'!J3789=\"Yes\",'TSA Input'!J3789=\"Contingent\"),'TSA Input'!C3789,\"\"))","v":""},{"$f":"IF('TSA Input'!J3789=\"\",\"\",IF(OR('TSA Input'!J3789=\"Yes\",'TSA Input'!J3789=\"Contingent\"),'TSA Input'!D3789,\"\"))","v":""},{"$f":"IF('TSA Input'!J3789=\"\",\"\",IF(OR('TSA Input'!J3789=\"Yes\",'TSA Input'!J3789=\"Contingent\"),'TSA Input'!G3789,\"\"))","v":""},{"$f":"IF('TSA Input'!J3789=\"\",\"\",IF(OR('TSA Input'!J3789=\"Yes\",'TSA Input'!J3789=\"Contingent\"),'TSA Input'!F3789,\"\"))","v":""},"",{"$f":"IF('TSA Input'!J3789=\"\",\"\",IF(OR('TSA Input'!J3789=\"Yes\",'TSA Input'!J3789=\"Contingent\"),'TSA Input'!D3789,\"\"))","v":""},{"$f":"IF('TSA Input'!J3789=\"\",\"\",IF(OR('TSA Input'!J3789=\"Yes\",'TSA Input'!J3789=\"Contingent\"),'TSA Input'!G3789,\"\"))","v":""},{"$f":"IF('TSA Input'!J3789=\"\",\"\",IF(OR('TSA Input'!J3789=\"Yes\",'TSA Input'!J3789=\"Contingent\"),'TSA Input'!F3789,\"\"))","v":""},"","Required","Required"]
["",null,{"$f":"IF('TSA Input'!J3790=\"\",\"\",IF(OR('TSA Input'!J3790=\"Yes\",'TSA Input'!J3790=\"Contingent\"),'TSA Input'!B3790,\"Ineligible\"))","v":""},{"$f":"IF('TSA Input'!J3790=\"\",\"\",IF(OR('TSA Input'!J3790=\"Yes\",'TSA Input'!J3790=\"Contingent\"),'TSA Input'!I3790,\"\"))","v":""},{"$f":"IF('TSA Input'!J3790=\"\",\"\",IF(OR('TSA Input'!J3790=\"Yes\",'TSA Input'!J3790=\"Contingent\"),'TSA Input'!C3790,\"\"))","v":""},{"$f":"IF('TSA Input'!J3790=\"\",\"\",IF(OR('TSA Input'!J3790=\"Yes\",'TSA Input'!J3790=\"Contingent\"),'TSA Input'!D3790,\"\"))","v":""},{"$f":"IF('TSA Input'!J3790=\"\",\"\",IF(OR('TSA Input'!J3790=\"Yes\",'TSA Input'!J3790=\"Contingent\"),'TSA Input'!G3790,\"\"))","v":""},{"$f":"IF('TSA Input'!J3790=\"\",\"\",IF(OR('TSA Input'!J3790=\"Yes\",'TSA Input'!J3790=\"Contingent\"),'TSA Input'!F3790,\"\"))","v":""},"",{"$f":"IF('TSA Input'!J3790=\"\",\"\",IF(OR('TSA Input'!J3790=\"Yes\",'TSA Input'!J3790=\"Contingent\"),'TSA Input'!D3790,\"\"))","v":""},{"$f":"IF('TSA Input'!J3790=\"\",\"\",IF(OR('TSA Input'!J3790=\"Yes\",'TSA Input'!J3790=\"Contingent\"),'TSA Input'!G3790,\"\"))","v":""},{"$f":"IF('TSA Input'!J3790=\"\",\"\",IF(OR('TSA Input'!J3790=\"Yes\",'TSA Input'!J3790=\"Contingent\"),'TSA Input'!F3790,\"\"))","v":""},"","Required","Required"]
["",null,{"$f":"IF('TSA Input'!J3791=\"\",\"\",IF(OR('TSA Input'!J3791=\"Yes\",'TSA Input'!J3791=\"Contingent\"),'TSA Input'!B3791,\"Ineligible\"))","v":""},{"$f":"IF('TSA Input'!J3791=\"\",\"\",IF(OR('TSA Input'!J3791=\"Yes\",'TSA Input'!J3791=\"Contingent\"),'TSA Input'!I3791,\"\"))","v":""},{"$f":"IF('TSA Input'!J3791=\"\",\"\",IF(OR('TSA Input'!J3791=\"Yes\",'TSA Input'!J3791=\"Contingent\"),'TSA Input'!C3791,\"\"))","v":""},{"$f":"IF('TSA Input'!J3791=\"\",\"\",IF(OR('TSA Input'!J3791=\"Yes\",'TSA Input'!J3791=\"Contingent\"),'TSA Input'!D3791,\"\"))","v":""},{"$f":"IF('TSA Input'!J3791=\"\",\"\",IF(OR('TSA Input'!J3791=\"Yes\",'TSA Input'!J3791=\"Contingent\"),'TSA Input'!G3791,\"\"))","v":""},{"$f":"IF('TSA Input'!J3791=\"\",\"\",IF(OR('TSA Input'!J3791=\"Yes\",'TSA Input'!J3791=\"Contingent\"),'TSA Input'!F3791,\"\"))","v":""},"",{"$f":"IF('TSA Input'!J3791=\"\",\"\",IF(OR('TSA Input'!J3791=\"Yes\",'TSA Input'!J3791=\"Contingent\"),'TSA Input'!D3791,\"\"))","v":""},{"$f":"IF('TSA Input'!J3791=\"\",\"\",IF(OR('TSA Input'!J3791=\"Yes\",'TSA Input'!J3791=\"Contingent\"),'TSA Input'!G3791,\"\"))","v":""},{"$f":"IF('TSA Input'!J3791=\"\",\"\",IF(OR('TSA Input'!J3791=\"Yes\",'TSA Input'!J3791=\"Contingent\"),'TSA Input'!F3791,\"\"))","v":""},"","Required","Required"]
["",null,{"$f":"IF('TSA Input'!J3792=\"\",\"\",IF(OR('TSA Input'!J3792=\"Yes\",'TSA Input'!J3792=\"Contingent\"),'TSA Input'!B3792,\"Ineligible\"))","v":""},{"$f":"IF('TSA Input'!J3792=\"\",\"\",IF(OR('TSA Input'!J3792=\"Yes\",'TSA Input'!J3792=\"Contingent\"),'TSA Input'!I3792,\"\"))","v":""},{"$f":"IF('TSA Input'!J3792=\"\",\"\",IF(OR('TSA Input'!J3792=\"Yes\",'TSA Input'!J3792=\"Contingent\"),'TSA Input'!C3792,\"\"))","v":""},{"$f":"IF('TSA Input'!J3792=\"\",\"\",IF(OR('TSA Input'!J3792=\"Yes\",'TSA Input'!J3792=\"Contingent\"),'TSA Input'!D3792,\"\"))","v":""},{"$f":"IF('TSA Input'!J3792=\"\",\"\",IF(OR('TSA Input'!J3792=\"Yes\",'TSA Input'!J3792=\"Contingent\"),'TSA Input'!G3792,\"\"))","v":""},{"$f":"IF('TSA Input'!J3792=\"\",\"\",IF(OR('TSA Input'!J3792=\"Yes\",'TSA Input'!J3792=\"Contingent\"),'TSA Input'!F3792,\"\"))","v":""},"",{"$f":"IF('TSA Input'!J3792=\"\",\"\",IF(OR('TSA Input'!J3792=\"Yes\",'TSA Input'!J3792=\"Contingent\"),'TSA Input'!D3792,\"\"))","v":""},{"$f":"IF('TSA Input'!J3792=\"\",\"\",IF(OR('TSA Input'!J3792=\"Yes\",'TSA Input'!J3792=\"Contingent\"),'TSA Input'!G3792,\"\"))","v":""},{"$f":"IF('TSA Input'!J3792=\"\",\"\",IF(OR('TSA Input'!J3792=\"Yes\",'TSA Input'!J3792=\"Contingent\"),'TSA Input'!F3792,\"\"))","v":""},"","Required","Required"]
["",null,{"$f":"IF('TSA Input'!J3793=\"\",\"\",IF(OR('TSA Input'!J3793=\"Yes\",'TSA Input'!J3793=\"Contingent\"),'TSA Input'!B3793,\"Ineligible\"))","v":""},{"$f":"IF('TSA Input'!J3793=\"\",\"\",IF(OR('TSA Input'!J3793=\"Yes\",'TSA Input'!J3793=\"Contingent\"),'TSA Input'!I3793,\"\"))","v":""},{"$f":"IF('TSA Input'!J3793=\"\",\"\",IF(OR('TSA Input'!J3793=\"Yes\",'TSA Input'!J3793=\"Contingent\"),'TSA Input'!C3793,\"\"))","v":""},{"$f":"IF('TSA Input'!J3793=\"\",\"\",IF(OR('TSA Input'!J3793=\"Yes\",'TSA Input'!J3793=\"Contingent\"),'TSA Input'!D3793,\"\"))","v":""},{"$f":"IF('TSA Input'!J3793=\"\",\"\",IF(OR('TSA Input'!J3793=\"Yes\",'TSA Input'!J3793=\"Contingent\"),'TSA Input'!G3793,\"\"))","v":""},{"$f":"IF('TSA Input'!J3793=\"\",\"\",IF(OR('TSA Input'!J3793=\"Yes\",'TSA Input'!J3793=\"Contingent\"),'TSA Input'!F3793,\"\"))","v":""},"",{"$f":"IF('TSA Input'!J3793=\"\",\"\",IF(OR('TSA Input'!J3793=\"Yes\",'TSA Input'!J3793=\"Contingent\"),'TSA Input'!D3793,\"\"))","v":""},{"$f":"IF('TSA Input'!J3793=\"\",\"\",IF(OR('TSA Input'!J3793=\"Yes\",'TSA Input'!J3793=\"Contingent\"),'TSA Input'!G3793,\"\"))","v":""},{"$f":"IF('TSA Input'!J3793=\"\",\"\",IF(OR('TSA Input'!J3793=\"Yes\",'TSA Input'!J3793=\"Contingent\"),'TSA Input'!F3793,\"\"))","v":""},"","Required","Required"]
["",null,{"$f":"IF('TSA Input'!J3794=\"\",\"\",IF(OR('TSA Input'!J3794=\"Yes\",'TSA Input'!J3794=\"Contingent\"),'TSA Input'!B3794,\"Ineligible\"))","v":""},{"$f":"IF('TSA Input'!J3794=\"\",\"\",IF(OR('TSA Input'!J3794=\"Yes\",'TSA Input'!J3794=\"Contingent\"),'TSA Input'!I3794,\"\"))","v":""},{"$f":"IF('TSA Input'!J3794=\"\",\"\",IF(OR('TSA Input'!J3794=\"Yes\",'TSA Input'!J3794=\"Contingent\"),'TSA Input'!C3794,\"\"))","v":""},{"$f":"IF('TSA Input'!J3794=\"\",\"\",IF(OR('TSA Input'!J3794=\"Yes\",'TSA Input'!J3794=\"Contingent\"),'TSA Input'!D3794,\"\"))","v":""},{"$f":"IF('TSA Input'!J3794=\"\",\"\",IF(OR('TSA Input'!J3794=\"Yes\",'TSA Input'!J3794=\"Contingent\"),'TSA Input'!G3794,\"\"))","v":""},{"$f":"IF('TSA Input'!J3794=\"\",\"\",IF(OR('TSA Input'!J3794=\"Yes\",'TSA Input'!J3794=\"Contingent\"),'TSA Input'!F3794,\"\"))","v":""},"",{"$f":"IF('TSA Input'!J3794=\"\",\"\",IF(OR('TSA Input'!J3794=\"Yes\",'TSA Input'!J3794=\"Contingent\"),'TSA Input'!D3794,\"\"))","v":""},{"$f":"IF('TSA Input'!J3794=\"\",\"\",IF(OR('TSA Input'!J3794=\"Yes\",'TSA Input'!J3794=\"Contingent\"),'TSA Input'!G3794,\"\"))","v":""},{"$f":"IF('TSA Input'!J3794=\"\",\"\",IF(OR('TSA Input'!J3794=\"Yes\",'TSA Input'!J3794=\"Contingent\"),'TSA Input'!F3794,\"\"))","v":""},"","Required","Required"]
["",null,{"$f":"IF('TSA Input'!J3795=\"\",\"\",IF(OR('TSA Input'!J3795=\"Yes\",'TSA Input'!J3795=\"Contingent\"),'TSA Input'!B3795,\"Ineligible\"))","v":""},{"$f":"IF('TSA Input'!J3795=\"\",\"\",IF(OR('TSA Input'!J3795=\"Yes\",'TSA Input'!J3795=\"Contingent\"),'TSA Input'!I3795,\"\"))","v":""},{"$f":"IF('TSA Input'!J3795=\"\",\"\",IF(OR('TSA Input'!J3795=\"Yes\",'TSA Input'!J3795=\"Contingent\"),'TSA Input'!C3795,\"\"))","v":""},{"$f":"IF('TSA Input'!J3795=\"\",\"\",IF(OR('TSA Input'!J3795=\"Yes\",'TSA Input'!J3795=\"Contingent\"),'TSA Input'!D3795,\"\"))","v":""},{"$f":"IF('TSA Input'!J3795=\"\",\"\",IF(OR('TSA Input'!J3795=\"Yes\",'TSA Input'!J3795=\"Contingent\"),'TSA Input'!G3795,\"\"))","v":""},{"$f":"IF('TSA Input'!J3795=\"\",\"\",IF(OR('TSA Input'!J3795=\"Yes\",'TSA Input'!J3795=\"Contingent\"),'TSA Input'!F3795,\"\"))","v":""},"",{"$f":"IF('TSA Input'!J3795=\"\",\"\",IF(OR('TSA Input'!J3795=\"Yes\",'TSA Input'!J3795=\"Contingent\"),'TSA Input'!D3795,\"\"))","v":""},{"$f":"IF('TSA Input'!J3795=\"\",\"\",IF(OR('TSA Input'!J3795=\"Yes\",'TSA Input'!J3795=\"Contingent\"),'TSA Input'!G3795,\"\"))","v":""},{"$f":"IF('TSA Input'!J3795=\"\",\"\",IF(OR('TSA Input'!J3795=\"Yes\",'TSA Input'!J3795=\"Contingent\"),'TSA Input'!F3795,\"\"))","v":""},"","Required","Required"]
["",null,{"$f":"IF('TSA Input'!J3796=\"\",\"\",IF(OR('TSA Input'!J3796=\"Yes\",'TSA Input'!J3796=\"Contingent\"),'TSA Input'!B3796,\"Ineligible\"))","v":""},{"$f":"IF('TSA Input'!J3796=\"\",\"\",IF(OR('TSA Input'!J3796=\"Yes\",'TSA Input'!J3796=\"Contingent\"),'TSA Input'!I3796,\"\"))","v":""},{"$f":"IF('TSA Input'!J3796=\"\",\"\",IF(OR('TSA Input'!J3796=\"Yes\",'TSA Input'!J3796=\"Contingent\"),'TSA Input'!C3796,\"\"))","v":""},{"$f":"IF('TSA Input'!J3796=\"\",\"\",IF(OR('TSA Input'!J3796=\"Yes\",'TSA Input'!J3796=\"Contingent\"),'TSA Input'!D3796,\"\"))","v":""},{"$f":"IF('TSA Input'!J3796=\"\",\"\",IF(OR('TSA Input'!J3796=\"Yes\",'TSA Input'!J3796=\"Contingent\"),'TSA Input'!G3796,\"\"))","v":""},{"$f":"IF('TSA Input'!J3796=\"\",\"\",IF(OR('TSA Input'!J3796=\"Yes\",'TSA Input'!J3796=\"Contingent\"),'TSA Input'!F3796,\"\"))","v":""},"",{"$f":"IF('TSA Input'!J3796=\"\",\"\",IF(OR('TSA Input'!J3796=\"Yes\",'TSA Input'!J3796=\"Contingent\"),'TSA Input'!D3796,\"\"))","v":""},{"$f":"IF('TSA Input'!J3796=\"\",\"\",IF(OR('TSA Input'!J3796=\"Yes\",'TSA Input'!J3796=\"Contingent\"),'TSA Input'!G3796,\"\"))","v":""},{"$f":"IF('TSA Input'!J3796=\"\",\"\",IF(OR('TSA Input'!J3796=\"Yes\",'TSA Input'!J3796=\"Contingent\"),'TSA Input'!F3796,\"\"))","v":""},"","Required","Required"]
["",null,{"$f":"IF('TSA Input'!J3797=\"\",\"\",IF(OR('TSA Input'!J3797=\"Yes\",'TSA Input'!J3797=\"Contingent\"),'TSA Input'!B3797,\"Ineligible\"))","v":""},{"$f":"IF('TSA Input'!J3797=\"\",\"\",IF(OR('TSA Input'!J3797=\"Yes\",'TSA Input'!J3797=\"Contingent\"),'TSA Input'!I3797,\"\"))","v":""},{"$f":"IF('TSA Input'!J3797=\"\",\"\",IF(OR('TSA Input'!J3797=\"Yes\",'TSA Input'!J3797=\"Contingent\"),'TSA Input'!C3797,\"\"))","v":""},{"$f":"IF('TSA Input'!J3797=\"\",\"\",IF(OR('TSA Input'!J3797=\"Yes\",'TSA Input'!J3797=\"Contingent\"),'TSA Input'!D3797,\"\"))","v":""},{"$f":"IF('TSA Input'!J3797=\"\",\"\",IF(OR('TSA Input'!J3797=\"Yes\",'TSA Input'!J3797=\"Contingent\"),'TSA Input'!G3797,\"\"))","v":""},{"$f":"IF('TSA Input'!J3797=\"\",\"\",IF(OR('TSA Input'!J3797=\"Yes\",'TSA Input'!J3797=\"Contingent\"),'TSA Input'!F3797,\"\"))","v":""},"",{"$f":"IF('TSA Input'!J3797=\"\",\"\",IF(OR('TSA Input'!J3797=\"Yes\",'TSA Input'!J3797=\"Contingent\"),'TSA Input'!D3797,\"\"))","v":""},{"$f":"IF('TSA Input'!J3797=\"\",\"\",IF(OR('TSA Input'!J3797=\"Yes\",'TSA Input'!J3797=\"Contingent\"),'TSA Input'!G3797,\"\"))","v":""},{"$f":"IF('TSA Input'!J3797=\"\",\"\",IF(OR('TSA Input'!J3797=\"Yes\",'TSA Input'!J3797=\"Contingent\"),'TSA Input'!F3797,\"\"))","v":""},"","Required","Required"]
["",null,{"$f":"IF('TSA Input'!J3798=\"\",\"\",IF(OR('TSA Input'!J3798=\"Yes\",'TSA Input'!J3798=\"Contingent\"),'TSA Input'!B3798,\"Ineligible\"))","v":""},{"$f":"IF('TSA Input'!J3798=\"\",\"\",IF(OR('TSA Input'!J3798=\"Yes\",'TSA Input'!J3798=\"Contingent\"),'TSA Input'!I3798,\"\"))","v":""},{"$f":"IF('TSA Input'!J3798=\"\",\"\",IF(OR('TSA Input'!J3798=\"Yes\",'TSA Input'!J3798=\"Contingent\"),'TSA Input'!C3798,\"\"))","v":""},{"$f":"IF('TSA Input'!J3798=\"\",\"\",IF(OR('TSA Input'!J3798=\"Yes\",'TSA Input'!J3798=\"Contingent\"),'TSA Input'!D3798,\"\"))","v":""},{"$f":"IF('TSA Input'!J3798=\"\",\"\",IF(OR('TSA Input'!J3798=\"Yes\",'TSA Input'!J3798=\"Contingent\"),'TSA Input'!G3798,\"\"))","v":""},{"$f":"IF('TSA Input'!J3798=\"\",\"\",IF(OR('TSA Input'!J3798=\"Yes\",'TSA Input'!J3798=\"Contingent\"),'TSA Input'!F3798,\"\"))","v":""},"",{"$f":"IF('TSA Input'!J3798=\"\",\"\",IF(OR('TSA Input'!J3798=\"Yes\",'TSA Input'!J3798=\"Contingent\"),'TSA Input'!D3798,\"\"))","v":""},{"$f":"IF('TSA Input'!J3798=\"\",\"\",IF(OR('TSA Input'!J3798=\"Yes\",'TSA Input'!J3798=\"Contingent\"),'TSA Input'!G3798,\"\"))","v":""},{"$f":"IF('TSA Input'!J3798=\"\",\"\",IF(OR('TSA Input'!J3798=\"Yes\",'TSA Input'!J3798=\"Contingent\"),'TSA Input'!F3798,\"\"))","v":""},"","Required","Required"]
["",null,{"$f":"IF('TSA Input'!J3799=\"\",\"\",IF(OR('TSA Input'!J3799=\"Yes\",'TSA Input'!J3799=\"Contingent\"),'TSA Input'!B3799,\"Ineligible\"))","v":""},{"$f":"IF('TSA Input'!J3799=\"\",\"\",IF(OR('TSA Input'!J3799=\"Yes\",'TSA Input'!J3799=\"Contingent\"),'TSA Input'!I3799,\"\"))","v":""},{"$f":"IF('TSA Input'!J3799=\"\",\"\",IF(OR('TSA Input'!J3799=\"Yes\",'TSA Input'!J3799=\"Contingent\"),'TSA Input'!C3799,\"\"))","v":""},{"$f":"IF('TSA Input'!J3799=\"\",\"\",IF(OR('TSA Input'!J3799=\"Yes\",'TSA Input'!J3799=\"Contingent\"),'TSA Input'!D3799,\"\"))","v":""},{"$f":"IF('TSA Input'!J3799=\"\",\"\",IF(OR('TSA Input'!J3799=\"Yes\",'TSA Input'!J3799=\"Contingent\"),'TSA Input'!G3799,\"\"))","v":""},{"$f":"IF('TSA Input'!J3799=\"\",\"\",IF(OR('TSA Input'!J3799=\"Yes\",'TSA Input'!J3799=\"Contingent\"),'TSA Input'!F3799,\"\"))","v":""},"",{"$f":"IF('TSA Input'!J3799=\"\",\"\",IF(OR('TSA Input'!J3799=\"Yes\",'TSA Input'!J3799=\"Contingent\"),'TSA Input'!D3799,\"\"))","v":""},{"$f":"IF('TSA Input'!J3799=\"\",\"\",IF(OR('TSA Input'!J3799=\"Yes\",'TSA Input'!J3799=\"Contingent\"),'TSA Input'!G3799,\"\"))","v":""},{"$f":"IF('TSA Input'!J3799=\"\",\"\",IF(OR('TSA Input'!J3799=\"Yes\",'TSA Input'!J3799=\"Contingent\"),'TSA Input'!F3799,\"\"))","v":""},"","Required","Required"]
["",null,{"$f":"IF('TSA Input'!J3800=\"\",\"\",IF(OR('TSA Input'!J3800=\"Yes\",'TSA Input'!J3800=\"Contingent\"),'TSA Input'!B3800,\"Ineligible\"))","v":""},{"$f":"IF('TSA Input'!J3800=\"\",\"\",IF(OR('TSA Input'!J3800=\"Yes\",'TSA Input'!J3800=\"Contingent\"),'TSA Input'!I3800,\"\"))","v":""},{"$f":"IF('TSA Input'!J3800=\"\",\"\",IF(OR('TSA Input'!J3800=\"Yes\",'TSA Input'!J3800=\"Contingent\"),'TSA Input'!C3800,\"\"))","v":""},{"$f":"IF('TSA Input'!J3800=\"\",\"\",IF(OR('TSA Input'!J3800=\"Yes\",'TSA Input'!J3800=\"Contingent\"),'TSA Input'!D3800,\"\"))","v":""},{"$f":"IF('TSA Input'!J3800=\"\",\"\",IF(OR('TSA Input'!J3800=\"Yes\",'TSA Input'!J3800=\"Contingent\"),'TSA Input'!G3800,\"\"))","v":""},{"$f":"IF('TSA Input'!J3800=\"\",\"\",IF(OR('TSA Input'!J3800=\"Yes\",'TSA Input'!J3800=\"Contingent\"),'TSA Input'!F3800,\"\"))","v":""},"",{"$f":"IF('TSA Input'!J3800=\"\",\"\",IF(OR('TSA Input'!J3800=\"Yes\",'TSA Input'!J3800=\"Contingent\"),'TSA Input'!D3800,\"\"))","v":""},{"$f":"IF('TSA Input'!J3800=\"\",\"\",IF(OR('TSA Input'!J3800=\"Yes\",'TSA Input'!J3800=\"Contingent\"),'TSA Input'!G3800,\"\"))","v":""},{"$f":"IF('TSA Input'!J3800=\"\",\"\",IF(OR('TSA Input'!J3800=\"Yes\",'TSA Input'!J3800=\"Contingent\"),'TSA Input'!F3800,\"\"))","v":""},"","Required","Required"]
["",null,{"$f":"IF('TSA Input'!J3801=\"\",\"\",IF(OR('TSA Input'!J3801=\"Yes\",'TSA Input'!J3801=\"Contingent\"),'TSA Input'!B3801,\"Ineligible\"))","v":""},{"$f":"IF('TSA Input'!J3801=\"\",\"\",IF(OR('TSA Input'!J3801=\"Yes\",'TSA Input'!J3801=\"Contingent\"),'TSA Input'!I3801,\"\"))","v":""},{"$f":"IF('TSA Input'!J3801=\"\",\"\",IF(OR('TSA Input'!J3801=\"Yes\",'TSA Input'!J3801=\"Contingent\"),'TSA Input'!C3801,\"\"))","v":""},{"$f":"IF('TSA Input'!J3801=\"\",\"\",IF(OR('TSA Input'!J3801=\"Yes\",'TSA Input'!J3801=\"Contingent\"),'TSA Input'!D3801,\"\"))","v":""},{"$f":"IF('TSA Input'!J3801=\"\",\"\",IF(OR('TSA Input'!J3801=\"Yes\",'TSA Input'!J3801=\"Contingent\"),'TSA Input'!G3801,\"\"))","v":""},{"$f":"IF('TSA Input'!J3801=\"\",\"\",IF(OR('TSA Input'!J3801=\"Yes\",'TSA Input'!J3801=\"Contingent\"),'TSA Input'!F3801,\"\"))","v":""},"",{"$f":"IF('TSA Input'!J3801=\"\",\"\",IF(OR('TSA Input'!J3801=\"Yes\",'TSA Input'!J3801=\"Contingent\"),'TSA Input'!D3801,\"\"))","v":""},{"$f":"IF('TSA Input'!J3801=\"\",\"\",IF(OR('TSA Input'!J3801=\"Yes\",'TSA Input'!J3801=\"Contingent\"),'TSA Input'!G3801,\"\"))","v":""},{"$f":"IF('TSA Input'!J3801=\"\",\"\",IF(OR('TSA Input'!J3801=\"Yes\",'TSA Input'!J3801=\"Contingent\"),'TSA Input'!F3801,\"\"))","v":""},"","Required","Required"]
["",null,{"$f":"IF('TSA Input'!J3802=\"\",\"\",IF(OR('TSA Input'!J3802=\"Yes\",'TSA Input'!J3802=\"Contingent\"),'TSA Input'!B3802,\"Ineligible\"))","v":""},{"$f":"IF('TSA Input'!J3802=\"\",\"\",IF(OR('TSA Input'!J3802=\"Yes\",'TSA Input'!J3802=\"Contingent\"),'TSA Input'!I3802,\"\"))","v":""},{"$f":"IF('TSA Input'!J3802=\"\",\"\",IF(OR('TSA Input'!J3802=\"Yes\",'TSA Input'!J3802=\"Contingent\"),'TSA Input'!C3802,\"\"))","v":""},{"$f":"IF('TSA Input'!J3802=\"\",\"\",IF(OR('TSA Input'!J3802=\"Yes\",'TSA Input'!J3802=\"Contingent\"),'TSA Input'!D3802,\"\"))","v":""},{"$f":"IF('TSA Input'!J3802=\"\",\"\",IF(OR('TSA Input'!J3802=\"Yes\",'TSA Input'!J3802=\"Contingent\"),'TSA Input'!G3802,\"\"))","v":""},{"$f":"IF('TSA Input'!J3802=\"\",\"\",IF(OR('TSA Input'!J3802=\"Yes\",'TSA Input'!J3802=\"Contingent\"),'TSA Input'!F3802,\"\"))","v":""},"",{"$f":"IF('TSA Input'!J3802=\"\",\"\",IF(OR('TSA Input'!J3802=\"Yes\",'TSA Input'!J3802=\"Contingent\"),'TSA Input'!D3802,\"\"))","v":""},{"$f":"IF('TSA Input'!J3802=\"\",\"\",IF(OR('TSA Input'!J3802=\"Yes\",'TSA Input'!J3802=\"Contingent\"),'TSA Input'!G3802,\"\"))","v":""},{"$f":"IF('TSA Input'!J3802=\"\",\"\",IF(OR('TSA Input'!J3802=\"Yes\",'TSA Input'!J3802=\"Contingent\"),'TSA Input'!F3802,\"\"))","v":""},"","Required","Required"]
["",null,{"$f":"IF('TSA Input'!J3803=\"\",\"\",IF(OR('TSA Input'!J3803=\"Yes\",'TSA Input'!J3803=\"Contingent\"),'TSA Input'!B3803,\"Ineligible\"))","v":""},{"$f":"IF('TSA Input'!J3803=\"\",\"\",IF(OR('TSA Input'!J3803=\"Yes\",'TSA Input'!J3803=\"Contingent\"),'TSA Input'!I3803,\"\"))","v":""},{"$f":"IF('TSA Input'!J3803=\"\",\"\",IF(OR('TSA Input'!J3803=\"Yes\",'TSA Input'!J3803=\"Contingent\"),'TSA Input'!C3803,\"\"))","v":""},{"$f":"IF('TSA Input'!J3803=\"\",\"\",IF(OR('TSA Input'!J3803=\"Yes\",'TSA Input'!J3803=\"Contingent\"),'TSA Input'!D3803,\"\"))","v":""},{"$f":"IF('TSA Input'!J3803=\"\",\"\",IF(OR('TSA Input'!J3803=\"Yes\",'TSA Input'!J3803=\"Contingent\"),'TSA Input'!G3803,\"\"))","v":""},{"$f":"IF('TSA Input'!J3803=\"\",\"\",IF(OR('TSA Input'!J3803=\"Yes\",'TSA Input'!J3803=\"Contingent\"),'TSA Input'!F3803,\"\"))","v":""},"",{"$f":"IF('TSA Input'!J3803=\"\",\"\",IF(OR('TSA Input'!J3803=\"Yes\",'TSA Input'!J3803=\"Contingent\"),'TSA Input'!D3803,\"\"))","v":""},{"$f":"IF('TSA Input'!J3803=\"\",\"\",IF(OR('TSA Input'!J3803=\"Yes\",'TSA Input'!J3803=\"Contingent\"),'TSA Input'!G3803,\"\"))","v":""},{"$f":"IF('TSA Input'!J3803=\"\",\"\",IF(OR('TSA Input'!J3803=\"Yes\",'TSA Input'!J3803=\"Contingent\"),'TSA Input'!F3803,\"\"))","v":""},"","Required","Required"]
["",null,{"$f":"IF('TSA Input'!J3804=\"\",\"\",IF(OR('TSA Input'!J3804=\"Yes\",'TSA Input'!J3804=\"Contingent\"),'TSA Input'!B3804,\"Ineligible\"))","v":""},{"$f":"IF('TSA Input'!J3804=\"\",\"\",IF(OR('TSA Input'!J3804=\"Yes\",'TSA Input'!J3804=\"Contingent\"),'TSA Input'!I3804,\"\"))","v":""},{"$f":"IF('TSA Input'!J3804=\"\",\"\",IF(OR('TSA Input'!J3804=\"Yes\",'TSA Input'!J3804=\"Contingent\"),'TSA Input'!C3804,\"\"))","v":""},{"$f":"IF('TSA Input'!J3804=\"\",\"\",IF(OR('TSA Input'!J3804=\"Yes\",'TSA Input'!J3804=\"Contingent\"),'TSA Input'!D3804,\"\"))","v":""},{"$f":"IF('TSA Input'!J3804=\"\",\"\",IF(OR('TSA Input'!J3804=\"Yes\",'TSA Input'!J3804=\"Contingent\"),'TSA Input'!G3804,\"\"))","v":""},{"$f":"IF('TSA Input'!J3804=\"\",\"\",IF(OR('TSA Input'!J3804=\"Yes\",'TSA Input'!J3804=\"Contingent\"),'TSA Input'!F3804,\"\"))","v":""},"",{"$f":"IF('TSA Input'!J3804=\"\",\"\",IF(OR('TSA Input'!J3804=\"Yes\",'TSA Input'!J3804=\"Contingent\"),'TSA Input'!D3804,\"\"))","v":""},{"$f":"IF('TSA Input'!J3804=\"\",\"\",IF(OR('TSA Input'!J3804=\"Yes\",'TSA Input'!J3804=\"Contingent\"),'TSA Input'!G3804,\"\"))","v":""},{"$f":"IF('TSA Input'!J3804=\"\",\"\",IF(OR('TSA Input'!J3804=\"Yes\",'TSA Input'!J3804=\"Contingent\"),'TSA Input'!F3804,\"\"))","v":""},"","Required","Required"]
["",null,{"$f":"IF('TSA Input'!J3805=\"\",\"\",IF(OR('TSA Input'!J3805=\"Yes\",'TSA Input'!J3805=\"Contingent\"),'TSA Input'!B3805,\"Ineligible\"))","v":""},{"$f":"IF('TSA Input'!J3805=\"\",\"\",IF(OR('TSA Input'!J3805=\"Yes\",'TSA Input'!J3805=\"Contingent\"),'TSA Input'!I3805,\"\"))","v":""},{"$f":"IF('TSA Input'!J3805=\"\",\"\",IF(OR('TSA Input'!J3805=\"Yes\",'TSA Input'!J3805=\"Contingent\"),'TSA Input'!C3805,\"\"))","v":""},{"$f":"IF('TSA Input'!J3805=\"\",\"\",IF(OR('TSA Input'!J3805=\"Yes\",'TSA Input'!J3805=\"Contingent\"),'TSA Input'!D3805,\"\"))","v":""},{"$f":"IF('TSA Input'!J3805=\"\",\"\",IF(OR('TSA Input'!J3805=\"Yes\",'TSA Input'!J3805=\"Contingent\"),'TSA Input'!G3805,\"\"))","v":""},{"$f":"IF('TSA Input'!J3805=\"\",\"\",IF(OR('TSA Input'!J3805=\"Yes\",'TSA Input'!J3805=\"Contingent\"),'TSA Input'!F3805,\"\"))","v":""},"",{"$f":"IF('TSA Input'!J3805=\"\",\"\",IF(OR('TSA Input'!J3805=\"Yes\",'TSA Input'!J3805=\"Contingent\"),'TSA Input'!D3805,\"\"))","v":""},{"$f":"IF('TSA Input'!J3805=\"\",\"\",IF(OR('TSA Input'!J3805=\"Yes\",'TSA Input'!J3805=\"Contingent\"),'TSA Input'!G3805,\"\"))","v":""},{"$f":"IF('TSA Input'!J3805=\"\",\"\",IF(OR('TSA Input'!J3805=\"Yes\",'TSA Input'!J3805=\"Contingent\"),'TSA Input'!F3805,\"\"))","v":""},"","Required","Required"]
["",null,{"$f":"IF('TSA Input'!J3806=\"\",\"\",IF(OR('TSA Input'!J3806=\"Yes\",'TSA Input'!J3806=\"Contingent\"),'TSA Input'!B3806,\"Ineligible\"))","v":""},{"$f":"IF('TSA Input'!J3806=\"\",\"\",IF(OR('TSA Input'!J3806=\"Yes\",'TSA Input'!J3806=\"Contingent\"),'TSA Input'!I3806,\"\"))","v":""},{"$f":"IF('TSA Input'!J3806=\"\",\"\",IF(OR('TSA Input'!J3806=\"Yes\",'TSA Input'!J3806=\"Contingent\"),'TSA Input'!C3806,\"\"))","v":""},{"$f":"IF('TSA Input'!J3806=\"\",\"\",IF(OR('TSA Input'!J3806=\"Yes\",'TSA Input'!J3806=\"Contingent\"),'TSA Input'!D3806,\"\"))","v":""},{"$f":"IF('TSA Input'!J3806=\"\",\"\",IF(OR('TSA Input'!J3806=\"Yes\",'TSA Input'!J3806=\"Contingent\"),'TSA Input'!G3806,\"\"))","v":""},{"$f":"IF('TSA Input'!J3806=\"\",\"\",IF(OR('TSA Input'!J3806=\"Yes\",'TSA Input'!J3806=\"Contingent\"),'TSA Input'!F3806,\"\"))","v":""},"",{"$f":"IF('TSA Input'!J3806=\"\",\"\",IF(OR('TSA Input'!J3806=\"Yes\",'TSA Input'!J3806=\"Contingent\"),'TSA Input'!D3806,\"\"))","v":""},{"$f":"IF('TSA Input'!J3806=\"\",\"\",IF(OR('TSA Input'!J3806=\"Yes\",'TSA Input'!J3806=\"Contingent\"),'TSA Input'!G3806,\"\"))","v":""},{"$f":"IF('TSA Input'!J3806=\"\",\"\",IF(OR('TSA Input'!J3806=\"Yes\",'TSA Input'!J3806=\"Contingent\"),'TSA Input'!F3806,\"\"))","v":""},"","Required","Required"]
["",null,{"$f":"IF('TSA Input'!J3807=\"\",\"\",IF(OR('TSA Input'!J3807=\"Yes\",'TSA Input'!J3807=\"Contingent\"),'TSA Input'!B3807,\"Ineligible\"))","v":""},{"$f":"IF('TSA Input'!J3807=\"\",\"\",IF(OR('TSA Input'!J3807=\"Yes\",'TSA Input'!J3807=\"Contingent\"),'TSA Input'!I3807,\"\"))","v":""},{"$f":"IF('TSA Input'!J3807=\"\",\"\",IF(OR('TSA Input'!J3807=\"Yes\",'TSA Input'!J3807=\"Contingent\"),'TSA Input'!C3807,\"\"))","v":""},{"$f":"IF('TSA Input'!J3807=\"\",\"\",IF(OR('TSA Input'!J3807=\"Yes\",'TSA Input'!J3807=\"Contingent\"),'TSA Input'!D3807,\"\"))","v":""},{"$f":"IF('TSA Input'!J3807=\"\",\"\",IF(OR('TSA Input'!J3807=\"Yes\",'TSA Input'!J3807=\"Contingent\"),'TSA Input'!G3807,\"\"))","v":""},{"$f":"IF('TSA Input'!J3807=\"\",\"\",IF(OR('TSA Input'!J3807=\"Yes\",'TSA Input'!J3807=\"Contingent\"),'TSA Input'!F3807,\"\"))","v":""},"",{"$f":"IF('TSA Input'!J3807=\"\",\"\",IF(OR('TSA Input'!J3807=\"Yes\",'TSA Input'!J3807=\"Contingent\"),'TSA Input'!D3807,\"\"))","v":""},{"$f":"IF('TSA Input'!J3807=\"\",\"\",IF(OR('TSA Input'!J3807=\"Yes\",'TSA Input'!J3807=\"Contingent\"),'TSA Input'!G3807,\"\"))","v":""},{"$f":"IF('TSA Input'!J3807=\"\",\"\",IF(OR('TSA Input'!J3807=\"Yes\",'TSA Input'!J3807=\"Contingent\"),'TSA Input'!F3807,\"\"))","v":""},"","Required","Required"]
["",null,{"$f":"IF('TSA Input'!J3808=\"\",\"\",IF(OR('TSA Input'!J3808=\"Yes\",'TSA Input'!J3808=\"Contingent\"),'TSA Input'!B3808,\"Ineligible\"))","v":""},{"$f":"IF('TSA Input'!J3808=\"\",\"\",IF(OR('TSA Input'!J3808=\"Yes\",'TSA Input'!J3808=\"Contingent\"),'TSA Input'!I3808,\"\"))","v":""},{"$f":"IF('TSA Input'!J3808=\"\",\"\",IF(OR('TSA Input'!J3808=\"Yes\",'TSA Input'!J3808=\"Contingent\"),'TSA Input'!C3808,\"\"))","v":""},{"$f":"IF('TSA Input'!J3808=\"\",\"\",IF(OR('TSA Input'!J3808=\"Yes\",'TSA Input'!J3808=\"Contingent\"),'TSA Input'!D3808,\"\"))","v":""},{"$f":"IF('TSA Input'!J3808=\"\",\"\",IF(OR('TSA Input'!J3808=\"Yes\",'TSA Input'!J3808=\"Contingent\"),'TSA Input'!G3808,\"\"))","v":""},{"$f":"IF('TSA Input'!J3808=\"\",\"\",IF(OR('TSA Input'!J3808=\"Yes\",'TSA Input'!J3808=\"Contingent\"),'TSA Input'!F3808,\"\"))","v":""},"",{"$f":"IF('TSA Input'!J3808=\"\",\"\",IF(OR('TSA Input'!J3808=\"Yes\",'TSA Input'!J3808=\"Contingent\"),'TSA Input'!D3808,\"\"))","v":""},{"$f":"IF('TSA Input'!J3808=\"\",\"\",IF(OR('TSA Input'!J3808=\"Yes\",'TSA Input'!J3808=\"Contingent\"),'TSA Input'!G3808,\"\"))","v":""},{"$f":"IF('TSA Input'!J3808=\"\",\"\",IF(OR('TSA Input'!J3808=\"Yes\",'TSA Input'!J3808=\"Contingent\"),'TSA Input'!F3808,\"\"))","v":""},"","Required","Required"]
["",null,{"$f":"IF('TSA Input'!J3809=\"\",\"\",IF(OR('TSA Input'!J3809=\"Yes\",'TSA Input'!J3809=\"Contingent\"),'TSA Input'!B3809,\"Ineligible\"))","v":""},{"$f":"IF('TSA Input'!J3809=\"\",\"\",IF(OR('TSA Input'!J3809=\"Yes\",'TSA Input'!J3809=\"Contingent\"),'TSA Input'!I3809,\"\"))","v":""},{"$f":"IF('TSA Input'!J3809=\"\",\"\",IF(OR('TSA Input'!J3809=\"Yes\",'TSA Input'!J3809=\"Contingent\"),'TSA Input'!C3809,\"\"))","v":""},{"$f":"IF('TSA Input'!J3809=\"\",\"\",IF(OR('TSA Input'!J3809=\"Yes\",'TSA Input'!J3809=\"Contingent\"),'TSA Input'!D3809,\"\"))","v":""},{"$f":"IF('TSA Input'!J3809=\"\",\"\",IF(OR('TSA Input'!J3809=\"Yes\",'TSA Input'!J3809=\"Contingent\"),'TSA Input'!G3809,\"\"))","v":""},{"$f":"IF('TSA Input'!J3809=\"\",\"\",IF(OR('TSA Input'!J3809=\"Yes\",'TSA Input'!J3809=\"Contingent\"),'TSA Input'!F3809,\"\"))","v":""},"",{"$f":"IF('TSA Input'!J3809=\"\",\"\",IF(OR('TSA Input'!J3809=\"Yes\",'TSA Input'!J3809=\"Contingent\"),'TSA Input'!D3809,\"\"))","v":""},{"$f":"IF('TSA Input'!J3809=\"\",\"\",IF(OR('TSA Input'!J3809=\"Yes\",'TSA Input'!J3809=\"Contingent\"),'TSA Input'!G3809,\"\"))","v":""},{"$f":"IF('TSA Input'!J3809=\"\",\"\",IF(OR('TSA Input'!J3809=\"Yes\",'TSA Input'!J3809=\"Contingent\"),'TSA Input'!F3809,\"\"))","v":""},"","Required","Required"]
["",null,{"$f":"IF('TSA Input'!J3810=\"\",\"\",IF(OR('TSA Input'!J3810=\"Yes\",'TSA Input'!J3810=\"Contingent\"),'TSA Input'!B3810,\"Ineligible\"))","v":""},{"$f":"IF('TSA Input'!J3810=\"\",\"\",IF(OR('TSA Input'!J3810=\"Yes\",'TSA Input'!J3810=\"Contingent\"),'TSA Input'!I3810,\"\"))","v":""},{"$f":"IF('TSA Input'!J3810=\"\",\"\",IF(OR('TSA Input'!J3810=\"Yes\",'TSA Input'!J3810=\"Contingent\"),'TSA Input'!C3810,\"\"))","v":""},{"$f":"IF('TSA Input'!J3810=\"\",\"\",IF(OR('TSA Input'!J3810=\"Yes\",'TSA Input'!J3810=\"Contingent\"),'TSA Input'!D3810,\"\"))","v":""},{"$f":"IF('TSA Input'!J3810=\"\",\"\",IF(OR('TSA Input'!J3810=\"Yes\",'TSA Input'!J3810=\"Contingent\"),'TSA Input'!G3810,\"\"))","v":""},{"$f":"IF('TSA Input'!J3810=\"\",\"\",IF(OR('TSA Input'!J3810=\"Yes\",'TSA Input'!J3810=\"Contingent\"),'TSA Input'!F3810,\"\"))","v":""},"",{"$f":"IF('TSA Input'!J3810=\"\",\"\",IF(OR('TSA Input'!J3810=\"Yes\",'TSA Input'!J3810=\"Contingent\"),'TSA Input'!D3810,\"\"))","v":""},{"$f":"IF('TSA Input'!J3810=\"\",\"\",IF(OR('TSA Input'!J3810=\"Yes\",'TSA Input'!J3810=\"Contingent\"),'TSA Input'!G3810,\"\"))","v":""},{"$f":"IF('TSA Input'!J3810=\"\",\"\",IF(OR('TSA Input'!J3810=\"Yes\",'TSA Input'!J3810=\"Contingent\"),'TSA Input'!F3810,\"\"))","v":""},"","Required","Required"]
["",null,{"$f":"IF('TSA Input'!J3811=\"\",\"\",IF(OR('TSA Input'!J3811=\"Yes\",'TSA Input'!J3811=\"Contingent\"),'TSA Input'!B3811,\"Ineligible\"))","v":""},{"$f":"IF('TSA Input'!J3811=\"\",\"\",IF(OR('TSA Input'!J3811=\"Yes\",'TSA Input'!J3811=\"Contingent\"),'TSA Input'!I3811,\"\"))","v":""},{"$f":"IF('TSA Input'!J3811=\"\",\"\",IF(OR('TSA Input'!J3811=\"Yes\",'TSA Input'!J3811=\"Contingent\"),'TSA Input'!C3811,\"\"))","v":""},{"$f":"IF('TSA Input'!J3811=\"\",\"\",IF(OR('TSA Input'!J3811=\"Yes\",'TSA Input'!J3811=\"Contingent\"),'TSA Input'!D3811,\"\"))","v":""},{"$f":"IF('TSA Input'!J3811=\"\",\"\",IF(OR('TSA Input'!J3811=\"Yes\",'TSA Input'!J3811=\"Contingent\"),'TSA Input'!G3811,\"\"))","v":""},{"$f":"IF('TSA Input'!J3811=\"\",\"\",IF(OR('TSA Input'!J3811=\"Yes\",'TSA Input'!J3811=\"Contingent\"),'TSA Input'!F3811,\"\"))","v":""},"",{"$f":"IF('TSA Input'!J3811=\"\",\"\",IF(OR('TSA Input'!J3811=\"Yes\",'TSA Input'!J3811=\"Contingent\"),'TSA Input'!D3811,\"\"))","v":""},{"$f":"IF('TSA Input'!J3811=\"\",\"\",IF(OR('TSA Input'!J3811=\"Yes\",'TSA Input'!J3811=\"Contingent\"),'TSA Input'!G3811,\"\"))","v":""},{"$f":"IF('TSA Input'!J3811=\"\",\"\",IF(OR('TSA Input'!J3811=\"Yes\",'TSA Input'!J3811=\"Contingent\"),'TSA Input'!F3811,\"\"))","v":""},"","Required","Required"]
["",null,{"$f":"IF('TSA Input'!J3812=\"\",\"\",IF(OR('TSA Input'!J3812=\"Yes\",'TSA Input'!J3812=\"Contingent\"),'TSA Input'!B3812,\"Ineligible\"))","v":""},{"$f":"IF('TSA Input'!J3812=\"\",\"\",IF(OR('TSA Input'!J3812=\"Yes\",'TSA Input'!J3812=\"Contingent\"),'TSA Input'!I3812,\"\"))","v":""},{"$f":"IF('TSA Input'!J3812=\"\",\"\",IF(OR('TSA Input'!J3812=\"Yes\",'TSA Input'!J3812=\"Contingent\"),'TSA Input'!C3812,\"\"))","v":""},{"$f":"IF('TSA Input'!J3812=\"\",\"\",IF(OR('TSA Input'!J3812=\"Yes\",'TSA Input'!J3812=\"Contingent\"),'TSA Input'!D3812,\"\"))","v":""},{"$f":"IF('TSA Input'!J3812=\"\",\"\",IF(OR('TSA Input'!J3812=\"Yes\",'TSA Input'!J3812=\"Contingent\"),'TSA Input'!G3812,\"\"))","v":""},{"$f":"IF('TSA Input'!J3812=\"\",\"\",IF(OR('TSA Input'!J3812=\"Yes\",'TSA Input'!J3812=\"Contingent\"),'TSA Input'!F3812,\"\"))","v":""},"",{"$f":"IF('TSA Input'!J3812=\"\",\"\",IF(OR('TSA Input'!J3812=\"Yes\",'TSA Input'!J3812=\"Contingent\"),'TSA Input'!D3812,\"\"))","v":""},{"$f":"IF('TSA Input'!J3812=\"\",\"\",IF(OR('TSA Input'!J3812=\"Yes\",'TSA Input'!J3812=\"Contingent\"),'TSA Input'!G3812,\"\"))","v":""},{"$f":"IF('TSA Input'!J3812=\"\",\"\",IF(OR('TSA Input'!J3812=\"Yes\",'TSA Input'!J3812=\"Contingent\"),'TSA Input'!F3812,\"\"))","v":""},"","Required","Required"]
["",null,{"$f":"IF('TSA Input'!J3813=\"\",\"\",IF(OR('TSA Input'!J3813=\"Yes\",'TSA Input'!J3813=\"Contingent\"),'TSA Input'!B3813,\"Ineligible\"))","v":""},{"$f":"IF('TSA Input'!J3813=\"\",\"\",IF(OR('TSA Input'!J3813=\"Yes\",'TSA Input'!J3813=\"Contingent\"),'TSA Input'!I3813,\"\"))","v":""},{"$f":"IF('TSA Input'!J3813=\"\",\"\",IF(OR('TSA Input'!J3813=\"Yes\",'TSA Input'!J3813=\"Contingent\"),'TSA Input'!C3813,\"\"))","v":""},{"$f":"IF('TSA Input'!J3813=\"\",\"\",IF(OR('TSA Input'!J3813=\"Yes\",'TSA Input'!J3813=\"Contingent\"),'TSA Input'!D3813,\"\"))","v":""},{"$f":"IF('TSA Input'!J3813=\"\",\"\",IF(OR('TSA Input'!J3813=\"Yes\",'TSA Input'!J3813=\"Contingent\"),'TSA Input'!G3813,\"\"))","v":""},{"$f":"IF('TSA Input'!J3813=\"\",\"\",IF(OR('TSA Input'!J3813=\"Yes\",'TSA Input'!J3813=\"Contingent\"),'TSA Input'!F3813,\"\"))","v":""},"",{"$f":"IF('TSA Input'!J3813=\"\",\"\",IF(OR('TSA Input'!J3813=\"Yes\",'TSA Input'!J3813=\"Contingent\"),'TSA Input'!D3813,\"\"))","v":""},{"$f":"IF('TSA Input'!J3813=\"\",\"\",IF(OR('TSA Input'!J3813=\"Yes\",'TSA Input'!J3813=\"Contingent\"),'TSA Input'!G3813,\"\"))","v":""},{"$f":"IF('TSA Input'!J3813=\"\",\"\",IF(OR('TSA Input'!J3813=\"Yes\",'TSA Input'!J3813=\"Contingent\"),'TSA Input'!F3813,\"\"))","v":""},"","Required","Required"]
["",null,{"$f":"IF('TSA Input'!J3814=\"\",\"\",IF(OR('TSA Input'!J3814=\"Yes\",'TSA Input'!J3814=\"Contingent\"),'TSA Input'!B3814,\"Ineligible\"))","v":""},{"$f":"IF('TSA Input'!J3814=\"\",\"\",IF(OR('TSA Input'!J3814=\"Yes\",'TSA Input'!J3814=\"Contingent\"),'TSA Input'!I3814,\"\"))","v":""},{"$f":"IF('TSA Input'!J3814=\"\",\"\",IF(OR('TSA Input'!J3814=\"Yes\",'TSA Input'!J3814=\"Contingent\"),'TSA Input'!C3814,\"\"))","v":""},{"$f":"IF('TSA Input'!J3814=\"\",\"\",IF(OR('TSA Input'!J3814=\"Yes\",'TSA Input'!J3814=\"Contingent\"),'TSA Input'!D3814,\"\"))","v":""},{"$f":"IF('TSA Input'!J3814=\"\",\"\",IF(OR('TSA Input'!J3814=\"Yes\",'TSA Input'!J3814=\"Contingent\"),'TSA Input'!G3814,\"\"))","v":""},{"$f":"IF('TSA Input'!J3814=\"\",\"\",IF(OR('TSA Input'!J3814=\"Yes\",'TSA Input'!J3814=\"Contingent\"),'TSA Input'!F3814,\"\"))","v":""},"",{"$f":"IF('TSA Input'!J3814=\"\",\"\",IF(OR('TSA Input'!J3814=\"Yes\",'TSA Input'!J3814=\"Contingent\"),'TSA Input'!D3814,\"\"))","v":""},{"$f":"IF('TSA Input'!J3814=\"\",\"\",IF(OR('TSA Input'!J3814=\"Yes\",'TSA Input'!J3814=\"Contingent\"),'TSA Input'!G3814,\"\"))","v":""},{"$f":"IF('TSA Input'!J3814=\"\",\"\",IF(OR('TSA Input'!J3814=\"Yes\",'TSA Input'!J3814=\"Contingent\"),'TSA Input'!F3814,\"\"))","v":""},"","Required","Required"]
["",null,{"$f":"IF('TSA Input'!J3815=\"\",\"\",IF(OR('TSA Input'!J3815=\"Yes\",'TSA Input'!J3815=\"Contingent\"),'TSA Input'!B3815,\"Ineligible\"))","v":""},{"$f":"IF('TSA Input'!J3815=\"\",\"\",IF(OR('TSA Input'!J3815=\"Yes\",'TSA Input'!J3815=\"Contingent\"),'TSA Input'!I3815,\"\"))","v":""},{"$f":"IF('TSA Input'!J3815=\"\",\"\",IF(OR('TSA Input'!J3815=\"Yes\",'TSA Input'!J3815=\"Contingent\"),'TSA Input'!C3815,\"\"))","v":""},{"$f":"IF('TSA Input'!J3815=\"\",\"\",IF(OR('TSA Input'!J3815=\"Yes\",'TSA Input'!J3815=\"Contingent\"),'TSA Input'!D3815,\"\"))","v":""},{"$f":"IF('TSA Input'!J3815=\"\",\"\",IF(OR('TSA Input'!J3815=\"Yes\",'TSA Input'!J3815=\"Contingent\"),'TSA Input'!G3815,\"\"))","v":""},{"$f":"IF('TSA Input'!J3815=\"\",\"\",IF(OR('TSA Input'!J3815=\"Yes\",'TSA Input'!J3815=\"Contingent\"),'TSA Input'!F3815,\"\"))","v":""},"",{"$f":"IF('TSA Input'!J3815=\"\",\"\",IF(OR('TSA Input'!J3815=\"Yes\",'TSA Input'!J3815=\"Contingent\"),'TSA Input'!D3815,\"\"))","v":""},{"$f":"IF('TSA Input'!J3815=\"\",\"\",IF(OR('TSA Input'!J3815=\"Yes\",'TSA Input'!J3815=\"Contingent\"),'TSA Input'!G3815,\"\"))","v":""},{"$f":"IF('TSA Input'!J3815=\"\",\"\",IF(OR('TSA Input'!J3815=\"Yes\",'TSA Input'!J3815=\"Contingent\"),'TSA Input'!F3815,\"\"))","v":""},"","Required","Required"]
["",null,{"$f":"IF('TSA Input'!J3816=\"\",\"\",IF(OR('TSA Input'!J3816=\"Yes\",'TSA Input'!J3816=\"Contingent\"),'TSA Input'!B3816,\"Ineligible\"))","v":""},{"$f":"IF('TSA Input'!J3816=\"\",\"\",IF(OR('TSA Input'!J3816=\"Yes\",'TSA Input'!J3816=\"Contingent\"),'TSA Input'!I3816,\"\"))","v":""},{"$f":"IF('TSA Input'!J3816=\"\",\"\",IF(OR('TSA Input'!J3816=\"Yes\",'TSA Input'!J3816=\"Contingent\"),'TSA Input'!C3816,\"\"))","v":""},{"$f":"IF('TSA Input'!J3816=\"\",\"\",IF(OR('TSA Input'!J3816=\"Yes\",'TSA Input'!J3816=\"Contingent\"),'TSA Input'!D3816,\"\"))","v":""},{"$f":"IF('TSA Input'!J3816=\"\",\"\",IF(OR('TSA Input'!J3816=\"Yes\",'TSA Input'!J3816=\"Contingent\"),'TSA Input'!G3816,\"\"))","v":""},{"$f":"IF('TSA Input'!J3816=\"\",\"\",IF(OR('TSA Input'!J3816=\"Yes\",'TSA Input'!J3816=\"Contingent\"),'TSA Input'!F3816,\"\"))","v":""},"",{"$f":"IF('TSA Input'!J3816=\"\",\"\",IF(OR('TSA Input'!J3816=\"Yes\",'TSA Input'!J3816=\"Contingent\"),'TSA Input'!D3816,\"\"))","v":""},{"$f":"IF('TSA Input'!J3816=\"\",\"\",IF(OR('TSA Input'!J3816=\"Yes\",'TSA Input'!J3816=\"Contingent\"),'TSA Input'!G3816,\"\"))","v":""},{"$f":"IF('TSA Input'!J3816=\"\",\"\",IF(OR('TSA Input'!J3816=\"Yes\",'TSA Input'!J3816=\"Contingent\"),'TSA Input'!F3816,\"\"))","v":""},"","Required","Required"]
["",null,{"$f":"IF('TSA Input'!J3817=\"\",\"\",IF(OR('TSA Input'!J3817=\"Yes\",'TSA Input'!J3817=\"Contingent\"),'TSA Input'!B3817,\"Ineligible\"))","v":""},{"$f":"IF('TSA Input'!J3817=\"\",\"\",IF(OR('TSA Input'!J3817=\"Yes\",'TSA Input'!J3817=\"Contingent\"),'TSA Input'!I3817,\"\"))","v":""},{"$f":"IF('TSA Input'!J3817=\"\",\"\",IF(OR('TSA Input'!J3817=\"Yes\",'TSA Input'!J3817=\"Contingent\"),'TSA Input'!C3817,\"\"))","v":""},{"$f":"IF('TSA Input'!J3817=\"\",\"\",IF(OR('TSA Input'!J3817=\"Yes\",'TSA Input'!J3817=\"Contingent\"),'TSA Input'!D3817,\"\"))","v":""},{"$f":"IF('TSA Input'!J3817=\"\",\"\",IF(OR('TSA Input'!J3817=\"Yes\",'TSA Input'!J3817=\"Contingent\"),'TSA Input'!G3817,\"\"))","v":""},{"$f":"IF('TSA Input'!J3817=\"\",\"\",IF(OR('TSA Input'!J3817=\"Yes\",'TSA Input'!J3817=\"Contingent\"),'TSA Input'!F3817,\"\"))","v":""},"",{"$f":"IF('TSA Input'!J3817=\"\",\"\",IF(OR('TSA Input'!J3817=\"Yes\",'TSA Input'!J3817=\"Contingent\"),'TSA Input'!D3817,\"\"))","v":""},{"$f":"IF('TSA Input'!J3817=\"\",\"\",IF(OR('TSA Input'!J3817=\"Yes\",'TSA Input'!J3817=\"Contingent\"),'TSA Input'!G3817,\"\"))","v":""},{"$f":"IF('TSA Input'!J3817=\"\",\"\",IF(OR('TSA Input'!J3817=\"Yes\",'TSA Input'!J3817=\"Contingent\"),'TSA Input'!F3817,\"\"))","v":""},"","Required","Required"]
["",null,{"$f":"IF('TSA Input'!J3818=\"\",\"\",IF(OR('TSA Input'!J3818=\"Yes\",'TSA Input'!J3818=\"Contingent\"),'TSA Input'!B3818,\"Ineligible\"))","v":""},{"$f":"IF('TSA Input'!J3818=\"\",\"\",IF(OR('TSA Input'!J3818=\"Yes\",'TSA Input'!J3818=\"Contingent\"),'TSA Input'!I3818,\"\"))","v":""},{"$f":"IF('TSA Input'!J3818=\"\",\"\",IF(OR('TSA Input'!J3818=\"Yes\",'TSA Input'!J3818=\"Contingent\"),'TSA Input'!C3818,\"\"))","v":""},{"$f":"IF('TSA Input'!J3818=\"\",\"\",IF(OR('TSA Input'!J3818=\"Yes\",'TSA Input'!J3818=\"Contingent\"),'TSA Input'!D3818,\"\"))","v":""},{"$f":"IF('TSA Input'!J3818=\"\",\"\",IF(OR('TSA Input'!J3818=\"Yes\",'TSA Input'!J3818=\"Contingent\"),'TSA Input'!G3818,\"\"))","v":""},{"$f":"IF('TSA Input'!J3818=\"\",\"\",IF(OR('TSA Input'!J3818=\"Yes\",'TSA Input'!J3818=\"Contingent\"),'TSA Input'!F3818,\"\"))","v":""},"",{"$f":"IF('TSA Input'!J3818=\"\",\"\",IF(OR('TSA Input'!J3818=\"Yes\",'TSA Input'!J3818=\"Contingent\"),'TSA Input'!D3818,\"\"))","v":""},{"$f":"IF('TSA Input'!J3818=\"\",\"\",IF(OR('TSA Input'!J3818=\"Yes\",'TSA Input'!J3818=\"Contingent\"),'TSA Input'!G3818,\"\"))","v":""},{"$f":"IF('TSA Input'!J3818=\"\",\"\",IF(OR('TSA Input'!J3818=\"Yes\",'TSA Input'!J3818=\"Contingent\"),'TSA Input'!F3818,\"\"))","v":""},"","Required","Required"]
["",null,{"$f":"IF('TSA Input'!J3819=\"\",\"\",IF(OR('TSA Input'!J3819=\"Yes\",'TSA Input'!J3819=\"Contingent\"),'TSA Input'!B3819,\"Ineligible\"))","v":""},{"$f":"IF('TSA Input'!J3819=\"\",\"\",IF(OR('TSA Input'!J3819=\"Yes\",'TSA Input'!J3819=\"Contingent\"),'TSA Input'!I3819,\"\"))","v":""},{"$f":"IF('TSA Input'!J3819=\"\",\"\",IF(OR('TSA Input'!J3819=\"Yes\",'TSA Input'!J3819=\"Contingent\"),'TSA Input'!C3819,\"\"))","v":""},{"$f":"IF('TSA Input'!J3819=\"\",\"\",IF(OR('TSA Input'!J3819=\"Yes\",'TSA Input'!J3819=\"Contingent\"),'TSA Input'!D3819,\"\"))","v":""},{"$f":"IF('TSA Input'!J3819=\"\",\"\",IF(OR('TSA Input'!J3819=\"Yes\",'TSA Input'!J3819=\"Contingent\"),'TSA Input'!G3819,\"\"))","v":""},{"$f":"IF('TSA Input'!J3819=\"\",\"\",IF(OR('TSA Input'!J3819=\"Yes\",'TSA Input'!J3819=\"Contingent\"),'TSA Input'!F3819,\"\"))","v":""},"",{"$f":"IF('TSA Input'!J3819=\"\",\"\",IF(OR('TSA Input'!J3819=\"Yes\",'TSA Input'!J3819=\"Contingent\"),'TSA Input'!D3819,\"\"))","v":""},{"$f":"IF('TSA Input'!J3819=\"\",\"\",IF(OR('TSA Input'!J3819=\"Yes\",'TSA Input'!J3819=\"Contingent\"),'TSA Input'!G3819,\"\"))","v":""},{"$f":"IF('TSA Input'!J3819=\"\",\"\",IF(OR('TSA Input'!J3819=\"Yes\",'TSA Input'!J3819=\"Contingent\"),'TSA Input'!F3819,\"\"))","v":""},"","Required","Required"]
["",null,{"$f":"IF('TSA Input'!J3820=\"\",\"\",IF(OR('TSA Input'!J3820=\"Yes\",'TSA Input'!J3820=\"Contingent\"),'TSA Input'!B3820,\"Ineligible\"))","v":""},{"$f":"IF('TSA Input'!J3820=\"\",\"\",IF(OR('TSA Input'!J3820=\"Yes\",'TSA Input'!J3820=\"Contingent\"),'TSA Input'!I3820,\"\"))","v":""},{"$f":"IF('TSA Input'!J3820=\"\",\"\",IF(OR('TSA Input'!J3820=\"Yes\",'TSA Input'!J3820=\"Contingent\"),'TSA Input'!C3820,\"\"))","v":""},{"$f":"IF('TSA Input'!J3820=\"\",\"\",IF(OR('TSA Input'!J3820=\"Yes\",'TSA Input'!J3820=\"Contingent\"),'TSA Input'!D3820,\"\"))","v":""},{"$f":"IF('TSA Input'!J3820=\"\",\"\",IF(OR('TSA Input'!J3820=\"Yes\",'TSA Input'!J3820=\"Contingent\"),'TSA Input'!G3820,\"\"))","v":""},{"$f":"IF('TSA Input'!J3820=\"\",\"\",IF(OR('TSA Input'!J3820=\"Yes\",'TSA Input'!J3820=\"Contingent\"),'TSA Input'!F3820,\"\"))","v":""},"",{"$f":"IF('TSA Input'!J3820=\"\",\"\",IF(OR('TSA Input'!J3820=\"Yes\",'TSA Input'!J3820=\"Contingent\"),'TSA Input'!D3820,\"\"))","v":""},{"$f":"IF('TSA Input'!J3820=\"\",\"\",IF(OR('TSA Input'!J3820=\"Yes\",'TSA Input'!J3820=\"Contingent\"),'TSA Input'!G3820,\"\"))","v":""},{"$f":"IF('TSA Input'!J3820=\"\",\"\",IF(OR('TSA Input'!J3820=\"Yes\",'TSA Input'!J3820=\"Contingent\"),'TSA Input'!F3820,\"\"))","v":""},"","Required","Required"]
["",null,{"$f":"IF('TSA Input'!J3821=\"\",\"\",IF(OR('TSA Input'!J3821=\"Yes\",'TSA Input'!J3821=\"Contingent\"),'TSA Input'!B3821,\"Ineligible\"))","v":""},{"$f":"IF('TSA Input'!J3821=\"\",\"\",IF(OR('TSA Input'!J3821=\"Yes\",'TSA Input'!J3821=\"Contingent\"),'TSA Input'!I3821,\"\"))","v":""},{"$f":"IF('TSA Input'!J3821=\"\",\"\",IF(OR('TSA Input'!J3821=\"Yes\",'TSA Input'!J3821=\"Contingent\"),'TSA Input'!C3821,\"\"))","v":""},{"$f":"IF('TSA Input'!J3821=\"\",\"\",IF(OR('TSA Input'!J3821=\"Yes\",'TSA Input'!J3821=\"Contingent\"),'TSA Input'!D3821,\"\"))","v":""},{"$f":"IF('TSA Input'!J3821=\"\",\"\",IF(OR('TSA Input'!J3821=\"Yes\",'TSA Input'!J3821=\"Contingent\"),'TSA Input'!G3821,\"\"))","v":""},{"$f":"IF('TSA Input'!J3821=\"\",\"\",IF(OR('TSA Input'!J3821=\"Yes\",'TSA Input'!J3821=\"Contingent\"),'TSA Input'!F3821,\"\"))","v":""},"",{"$f":"IF('TSA Input'!J3821=\"\",\"\",IF(OR('TSA Input'!J3821=\"Yes\",'TSA Input'!J3821=\"Contingent\"),'TSA Input'!D3821,\"\"))","v":""},{"$f":"IF('TSA Input'!J3821=\"\",\"\",IF(OR('TSA Input'!J3821=\"Yes\",'TSA Input'!J3821=\"Contingent\"),'TSA Input'!G3821,\"\"))","v":""},{"$f":"IF('TSA Input'!J3821=\"\",\"\",IF(OR('TSA Input'!J3821=\"Yes\",'TSA Input'!J3821=\"Contingent\"),'TSA Input'!F3821,\"\"))","v":""},"","Required","Required"]
["",null,{"$f":"IF('TSA Input'!J3822=\"\",\"\",IF(OR('TSA Input'!J3822=\"Yes\",'TSA Input'!J3822=\"Contingent\"),'TSA Input'!B3822,\"Ineligible\"))","v":""},{"$f":"IF('TSA Input'!J3822=\"\",\"\",IF(OR('TSA Input'!J3822=\"Yes\",'TSA Input'!J3822=\"Contingent\"),'TSA Input'!I3822,\"\"))","v":""},{"$f":"IF('TSA Input'!J3822=\"\",\"\",IF(OR('TSA Input'!J3822=\"Yes\",'TSA Input'!J3822=\"Contingent\"),'TSA Input'!C3822,\"\"))","v":""},{"$f":"IF('TSA Input'!J3822=\"\",\"\",IF(OR('TSA Input'!J3822=\"Yes\",'TSA Input'!J3822=\"Contingent\"),'TSA Input'!D3822,\"\"))","v":""},{"$f":"IF('TSA Input'!J3822=\"\",\"\",IF(OR('TSA Input'!J3822=\"Yes\",'TSA Input'!J3822=\"Contingent\"),'TSA Input'!G3822,\"\"))","v":""},{"$f":"IF('TSA Input'!J3822=\"\",\"\",IF(OR('TSA Input'!J3822=\"Yes\",'TSA Input'!J3822=\"Contingent\"),'TSA Input'!F3822,\"\"))","v":""},"",{"$f":"IF('TSA Input'!J3822=\"\",\"\",IF(OR('TSA Input'!J3822=\"Yes\",'TSA Input'!J3822=\"Contingent\"),'TSA Input'!D3822,\"\"))","v":""},{"$f":"IF('TSA Input'!J3822=\"\",\"\",IF(OR('TSA Input'!J3822=\"Yes\",'TSA Input'!J3822=\"Contingent\"),'TSA Input'!G3822,\"\"))","v":""},{"$f":"IF('TSA Input'!J3822=\"\",\"\",IF(OR('TSA Input'!J3822=\"Yes\",'TSA Input'!J3822=\"Contingent\"),'TSA Input'!F3822,\"\"))","v":""},"","Required","Required"]
["",null,{"$f":"IF('TSA Input'!J3823=\"\",\"\",IF(OR('TSA Input'!J3823=\"Yes\",'TSA Input'!J3823=\"Contingent\"),'TSA Input'!B3823,\"Ineligible\"))","v":""},{"$f":"IF('TSA Input'!J3823=\"\",\"\",IF(OR('TSA Input'!J3823=\"Yes\",'TSA Input'!J3823=\"Contingent\"),'TSA Input'!I3823,\"\"))","v":""},{"$f":"IF('TSA Input'!J3823=\"\",\"\",IF(OR('TSA Input'!J3823=\"Yes\",'TSA Input'!J3823=\"Contingent\"),'TSA Input'!C3823,\"\"))","v":""},{"$f":"IF('TSA Input'!J3823=\"\",\"\",IF(OR('TSA Input'!J3823=\"Yes\",'TSA Input'!J3823=\"Contingent\"),'TSA Input'!D3823,\"\"))","v":""},{"$f":"IF('TSA Input'!J3823=\"\",\"\",IF(OR('TSA Input'!J3823=\"Yes\",'TSA Input'!J3823=\"Contingent\"),'TSA Input'!G3823,\"\"))","v":""},{"$f":"IF('TSA Input'!J3823=\"\",\"\",IF(OR('TSA Input'!J3823=\"Yes\",'TSA Input'!J3823=\"Contingent\"),'TSA Input'!F3823,\"\"))","v":""},"",{"$f":"IF('TSA Input'!J3823=\"\",\"\",IF(OR('TSA Input'!J3823=\"Yes\",'TSA Input'!J3823=\"Contingent\"),'TSA Input'!D3823,\"\"))","v":""},{"$f":"IF('TSA Input'!J3823=\"\",\"\",IF(OR('TSA Input'!J3823=\"Yes\",'TSA Input'!J3823=\"Contingent\"),'TSA Input'!G3823,\"\"))","v":""},{"$f":"IF('TSA Input'!J3823=\"\",\"\",IF(OR('TSA Input'!J3823=\"Yes\",'TSA Input'!J3823=\"Contingent\"),'TSA Input'!F3823,\"\"))","v":""},"","Required","Required"]
["",null,{"$f":"IF('TSA Input'!J3824=\"\",\"\",IF(OR('TSA Input'!J3824=\"Yes\",'TSA Input'!J3824=\"Contingent\"),'TSA Input'!B3824,\"Ineligible\"))","v":""},{"$f":"IF('TSA Input'!J3824=\"\",\"\",IF(OR('TSA Input'!J3824=\"Yes\",'TSA Input'!J3824=\"Contingent\"),'TSA Input'!I3824,\"\"))","v":""},{"$f":"IF('TSA Input'!J3824=\"\",\"\",IF(OR('TSA Input'!J3824=\"Yes\",'TSA Input'!J3824=\"Contingent\"),'TSA Input'!C3824,\"\"))","v":""},{"$f":"IF('TSA Input'!J3824=\"\",\"\",IF(OR('TSA Input'!J3824=\"Yes\",'TSA Input'!J3824=\"Contingent\"),'TSA Input'!D3824,\"\"))","v":""},{"$f":"IF('TSA Input'!J3824=\"\",\"\",IF(OR('TSA Input'!J3824=\"Yes\",'TSA Input'!J3824=\"Contingent\"),'TSA Input'!G3824,\"\"))","v":""},{"$f":"IF('TSA Input'!J3824=\"\",\"\",IF(OR('TSA Input'!J3824=\"Yes\",'TSA Input'!J3824=\"Contingent\"),'TSA Input'!F3824,\"\"))","v":""},"",{"$f":"IF('TSA Input'!J3824=\"\",\"\",IF(OR('TSA Input'!J3824=\"Yes\",'TSA Input'!J3824=\"Contingent\"),'TSA Input'!D3824,\"\"))","v":""},{"$f":"IF('TSA Input'!J3824=\"\",\"\",IF(OR('TSA Input'!J3824=\"Yes\",'TSA Input'!J3824=\"Contingent\"),'TSA Input'!G3824,\"\"))","v":""},{"$f":"IF('TSA Input'!J3824=\"\",\"\",IF(OR('TSA Input'!J3824=\"Yes\",'TSA Input'!J3824=\"Contingent\"),'TSA Input'!F3824,\"\"))","v":""},"","Required","Required"]
["",null,{"$f":"IF('TSA Input'!J3825=\"\",\"\",IF(OR('TSA Input'!J3825=\"Yes\",'TSA Input'!J3825=\"Contingent\"),'TSA Input'!B3825,\"Ineligible\"))","v":""},{"$f":"IF('TSA Input'!J3825=\"\",\"\",IF(OR('TSA Input'!J3825=\"Yes\",'TSA Input'!J3825=\"Contingent\"),'TSA Input'!I3825,\"\"))","v":""},{"$f":"IF('TSA Input'!J3825=\"\",\"\",IF(OR('TSA Input'!J3825=\"Yes\",'TSA Input'!J3825=\"Contingent\"),'TSA Input'!C3825,\"\"))","v":""},{"$f":"IF('TSA Input'!J3825=\"\",\"\",IF(OR('TSA Input'!J3825=\"Yes\",'TSA Input'!J3825=\"Contingent\"),'TSA Input'!D3825,\"\"))","v":""},{"$f":"IF('TSA Input'!J3825=\"\",\"\",IF(OR('TSA Input'!J3825=\"Yes\",'TSA Input'!J3825=\"Contingent\"),'TSA Input'!G3825,\"\"))","v":""},{"$f":"IF('TSA Input'!J3825=\"\",\"\",IF(OR('TSA Input'!J3825=\"Yes\",'TSA Input'!J3825=\"Contingent\"),'TSA Input'!F3825,\"\"))","v":""},"",{"$f":"IF('TSA Input'!J3825=\"\",\"\",IF(OR('TSA Input'!J3825=\"Yes\",'TSA Input'!J3825=\"Contingent\"),'TSA Input'!D3825,\"\"))","v":""},{"$f":"IF('TSA Input'!J3825=\"\",\"\",IF(OR('TSA Input'!J3825=\"Yes\",'TSA Input'!J3825=\"Contingent\"),'TSA Input'!G3825,\"\"))","v":""},{"$f":"IF('TSA Input'!J3825=\"\",\"\",IF(OR('TSA Input'!J3825=\"Yes\",'TSA Input'!J3825=\"Contingent\"),'TSA Input'!F3825,\"\"))","v":""},"","Required","Required"]
["",null,{"$f":"IF('TSA Input'!J3826=\"\",\"\",IF(OR('TSA Input'!J3826=\"Yes\",'TSA Input'!J3826=\"Contingent\"),'TSA Input'!B3826,\"Ineligible\"))","v":""},{"$f":"IF('TSA Input'!J3826=\"\",\"\",IF(OR('TSA Input'!J3826=\"Yes\",'TSA Input'!J3826=\"Contingent\"),'TSA Input'!I3826,\"\"))","v":""},{"$f":"IF('TSA Input'!J3826=\"\",\"\",IF(OR('TSA Input'!J3826=\"Yes\",'TSA Input'!J3826=\"Contingent\"),'TSA Input'!C3826,\"\"))","v":""},{"$f":"IF('TSA Input'!J3826=\"\",\"\",IF(OR('TSA Input'!J3826=\"Yes\",'TSA Input'!J3826=\"Contingent\"),'TSA Input'!D3826,\"\"))","v":""},{"$f":"IF('TSA Input'!J3826=\"\",\"\",IF(OR('TSA Input'!J3826=\"Yes\",'TSA Input'!J3826=\"Contingent\"),'TSA Input'!G3826,\"\"))","v":""},{"$f":"IF('TSA Input'!J3826=\"\",\"\",IF(OR('TSA Input'!J3826=\"Yes\",'TSA Input'!J3826=\"Contingent\"),'TSA Input'!F3826,\"\"))","v":""},"",{"$f":"IF('TSA Input'!J3826=\"\",\"\",IF(OR('TSA Input'!J3826=\"Yes\",'TSA Input'!J3826=\"Contingent\"),'TSA Input'!D3826,\"\"))","v":""},{"$f":"IF('TSA Input'!J3826=\"\",\"\",IF(OR('TSA Input'!J3826=\"Yes\",'TSA Input'!J3826=\"Contingent\"),'TSA Input'!G3826,\"\"))","v":""},{"$f":"IF('TSA Input'!J3826=\"\",\"\",IF(OR('TSA Input'!J3826=\"Yes\",'TSA Input'!J3826=\"Contingent\"),'TSA Input'!F3826,\"\"))","v":""},"","Required","Required"]
["",null,{"$f":"IF('TSA Input'!J3827=\"\",\"\",IF(OR('TSA Input'!J3827=\"Yes\",'TSA Input'!J3827=\"Contingent\"),'TSA Input'!B3827,\"Ineligible\"))","v":""},{"$f":"IF('TSA Input'!J3827=\"\",\"\",IF(OR('TSA Input'!J3827=\"Yes\",'TSA Input'!J3827=\"Contingent\"),'TSA Input'!I3827,\"\"))","v":""},{"$f":"IF('TSA Input'!J3827=\"\",\"\",IF(OR('TSA Input'!J3827=\"Yes\",'TSA Input'!J3827=\"Contingent\"),'TSA Input'!C3827,\"\"))","v":""},{"$f":"IF('TSA Input'!J3827=\"\",\"\",IF(OR('TSA Input'!J3827=\"Yes\",'TSA Input'!J3827=\"Contingent\"),'TSA Input'!D3827,\"\"))","v":""},{"$f":"IF('TSA Input'!J3827=\"\",\"\",IF(OR('TSA Input'!J3827=\"Yes\",'TSA Input'!J3827=\"Contingent\"),'TSA Input'!G3827,\"\"))","v":""},{"$f":"IF('TSA Input'!J3827=\"\",\"\",IF(OR('TSA Input'!J3827=\"Yes\",'TSA Input'!J3827=\"Contingent\"),'TSA Input'!F3827,\"\"))","v":""},"",{"$f":"IF('TSA Input'!J3827=\"\",\"\",IF(OR('TSA Input'!J3827=\"Yes\",'TSA Input'!J3827=\"Contingent\"),'TSA Input'!D3827,\"\"))","v":""},{"$f":"IF('TSA Input'!J3827=\"\",\"\",IF(OR('TSA Input'!J3827=\"Yes\",'TSA Input'!J3827=\"Contingent\"),'TSA Input'!G3827,\"\"))","v":""},{"$f":"IF('TSA Input'!J3827=\"\",\"\",IF(OR('TSA Input'!J3827=\"Yes\",'TSA Input'!J3827=\"Contingent\"),'TSA Input'!F3827,\"\"))","v":""},"","Required","Required"]
["",null,{"$f":"IF('TSA Input'!J3828=\"\",\"\",IF(OR('TSA Input'!J3828=\"Yes\",'TSA Input'!J3828=\"Contingent\"),'TSA Input'!B3828,\"Ineligible\"))","v":""},{"$f":"IF('TSA Input'!J3828=\"\",\"\",IF(OR('TSA Input'!J3828=\"Yes\",'TSA Input'!J3828=\"Contingent\"),'TSA Input'!I3828,\"\"))","v":""},{"$f":"IF('TSA Input'!J3828=\"\",\"\",IF(OR('TSA Input'!J3828=\"Yes\",'TSA Input'!J3828=\"Contingent\"),'TSA Input'!C3828,\"\"))","v":""},{"$f":"IF('TSA Input'!J3828=\"\",\"\",IF(OR('TSA Input'!J3828=\"Yes\",'TSA Input'!J3828=\"Contingent\"),'TSA Input'!D3828,\"\"))","v":""},{"$f":"IF('TSA Input'!J3828=\"\",\"\",IF(OR('TSA Input'!J3828=\"Yes\",'TSA Input'!J3828=\"Contingent\"),'TSA Input'!G3828,\"\"))","v":""},{"$f":"IF('TSA Input'!J3828=\"\",\"\",IF(OR('TSA Input'!J3828=\"Yes\",'TSA Input'!J3828=\"Contingent\"),'TSA Input'!F3828,\"\"))","v":""},"",{"$f":"IF('TSA Input'!J3828=\"\",\"\",IF(OR('TSA Input'!J3828=\"Yes\",'TSA Input'!J3828=\"Contingent\"),'TSA Input'!D3828,\"\"))","v":""},{"$f":"IF('TSA Input'!J3828=\"\",\"\",IF(OR('TSA Input'!J3828=\"Yes\",'TSA Input'!J3828=\"Contingent\"),'TSA Input'!G3828,\"\"))","v":""},{"$f":"IF('TSA Input'!J3828=\"\",\"\",IF(OR('TSA Input'!J3828=\"Yes\",'TSA Input'!J3828=\"Contingent\"),'TSA Input'!F3828,\"\"))","v":""},"","Required","Required"]
["",null,{"$f":"IF('TSA Input'!J3829=\"\",\"\",IF(OR('TSA Input'!J3829=\"Yes\",'TSA Input'!J3829=\"Contingent\"),'TSA Input'!B3829,\"Ineligible\"))","v":""},{"$f":"IF('TSA Input'!J3829=\"\",\"\",IF(OR('TSA Input'!J3829=\"Yes\",'TSA Input'!J3829=\"Contingent\"),'TSA Input'!I3829,\"\"))","v":""},{"$f":"IF('TSA Input'!J3829=\"\",\"\",IF(OR('TSA Input'!J3829=\"Yes\",'TSA Input'!J3829=\"Contingent\"),'TSA Input'!C3829,\"\"))","v":""},{"$f":"IF('TSA Input'!J3829=\"\",\"\",IF(OR('TSA Input'!J3829=\"Yes\",'TSA Input'!J3829=\"Contingent\"),'TSA Input'!D3829,\"\"))","v":""},{"$f":"IF('TSA Input'!J3829=\"\",\"\",IF(OR('TSA Input'!J3829=\"Yes\",'TSA Input'!J3829=\"Contingent\"),'TSA Input'!G3829,\"\"))","v":""},{"$f":"IF('TSA Input'!J3829=\"\",\"\",IF(OR('TSA Input'!J3829=\"Yes\",'TSA Input'!J3829=\"Contingent\"),'TSA Input'!F3829,\"\"))","v":""},"",{"$f":"IF('TSA Input'!J3829=\"\",\"\",IF(OR('TSA Input'!J3829=\"Yes\",'TSA Input'!J3829=\"Contingent\"),'TSA Input'!D3829,\"\"))","v":""},{"$f":"IF('TSA Input'!J3829=\"\",\"\",IF(OR('TSA Input'!J3829=\"Yes\",'TSA Input'!J3829=\"Contingent\"),'TSA Input'!G3829,\"\"))","v":""},{"$f":"IF('TSA Input'!J3829=\"\",\"\",IF(OR('TSA Input'!J3829=\"Yes\",'TSA Input'!J3829=\"Contingent\"),'TSA Input'!F3829,\"\"))","v":""},"","Required","Required"]
["",null,{"$f":"IF('TSA Input'!J3830=\"\",\"\",IF(OR('TSA Input'!J3830=\"Yes\",'TSA Input'!J3830=\"Contingent\"),'TSA Input'!B3830,\"Ineligible\"))","v":""},{"$f":"IF('TSA Input'!J3830=\"\",\"\",IF(OR('TSA Input'!J3830=\"Yes\",'TSA Input'!J3830=\"Contingent\"),'TSA Input'!I3830,\"\"))","v":""},{"$f":"IF('TSA Input'!J3830=\"\",\"\",IF(OR('TSA Input'!J3830=\"Yes\",'TSA Input'!J3830=\"Contingent\"),'TSA Input'!C3830,\"\"))","v":""},{"$f":"IF('TSA Input'!J3830=\"\",\"\",IF(OR('TSA Input'!J3830=\"Yes\",'TSA Input'!J3830=\"Contingent\"),'TSA Input'!D3830,\"\"))","v":""},{"$f":"IF('TSA Input'!J3830=\"\",\"\",IF(OR('TSA Input'!J3830=\"Yes\",'TSA Input'!J3830=\"Contingent\"),'TSA Input'!G3830,\"\"))","v":""},{"$f":"IF('TSA Input'!J3830=\"\",\"\",IF(OR('TSA Input'!J3830=\"Yes\",'TSA Input'!J3830=\"Contingent\"),'TSA Input'!F3830,\"\"))","v":""},"",{"$f":"IF('TSA Input'!J3830=\"\",\"\",IF(OR('TSA Input'!J3830=\"Yes\",'TSA Input'!J3830=\"Contingent\"),'TSA Input'!D3830,\"\"))","v":""},{"$f":"IF('TSA Input'!J3830=\"\",\"\",IF(OR('TSA Input'!J3830=\"Yes\",'TSA Input'!J3830=\"Contingent\"),'TSA Input'!G3830,\"\"))","v":""},{"$f":"IF('TSA Input'!J3830=\"\",\"\",IF(OR('TSA Input'!J3830=\"Yes\",'TSA Input'!J3830=\"Contingent\"),'TSA Input'!F3830,\"\"))","v":""},"","Required","Required"]
["",null,{"$f":"IF('TSA Input'!J3831=\"\",\"\",IF(OR('TSA Input'!J3831=\"Yes\",'TSA Input'!J3831=\"Contingent\"),'TSA Input'!B3831,\"Ineligible\"))","v":""},{"$f":"IF('TSA Input'!J3831=\"\",\"\",IF(OR('TSA Input'!J3831=\"Yes\",'TSA Input'!J3831=\"Contingent\"),'TSA Input'!I3831,\"\"))","v":""},{"$f":"IF('TSA Input'!J3831=\"\",\"\",IF(OR('TSA Input'!J3831=\"Yes\",'TSA Input'!J3831=\"Contingent\"),'TSA Input'!C3831,\"\"))","v":""},{"$f":"IF('TSA Input'!J3831=\"\",\"\",IF(OR('TSA Input'!J3831=\"Yes\",'TSA Input'!J3831=\"Contingent\"),'TSA Input'!D3831,\"\"))","v":""},{"$f":"IF('TSA Input'!J3831=\"\",\"\",IF(OR('TSA Input'!J3831=\"Yes\",'TSA Input'!J3831=\"Contingent\"),'TSA Input'!G3831,\"\"))","v":""},{"$f":"IF('TSA Input'!J3831=\"\",\"\",IF(OR('TSA Input'!J3831=\"Yes\",'TSA Input'!J3831=\"Contingent\"),'TSA Input'!F3831,\"\"))","v":""},"",{"$f":"IF('TSA Input'!J3831=\"\",\"\",IF(OR('TSA Input'!J3831=\"Yes\",'TSA Input'!J3831=\"Contingent\"),'TSA Input'!D3831,\"\"))","v":""},{"$f":"IF('TSA Input'!J3831=\"\",\"\",IF(OR('TSA Input'!J3831=\"Yes\",'TSA Input'!J3831=\"Contingent\"),'TSA Input'!G3831,\"\"))","v":""},{"$f":"IF('TSA Input'!J3831=\"\",\"\",IF(OR('TSA Input'!J3831=\"Yes\",'TSA Input'!J3831=\"Contingent\"),'TSA Input'!F3831,\"\"))","v":""},"","Required","Required"]
["",null,{"$f":"IF('TSA Input'!J3832=\"\",\"\",IF(OR('TSA Input'!J3832=\"Yes\",'TSA Input'!J3832=\"Contingent\"),'TSA Input'!B3832,\"Ineligible\"))","v":""},{"$f":"IF('TSA Input'!J3832=\"\",\"\",IF(OR('TSA Input'!J3832=\"Yes\",'TSA Input'!J3832=\"Contingent\"),'TSA Input'!I3832,\"\"))","v":""},{"$f":"IF('TSA Input'!J3832=\"\",\"\",IF(OR('TSA Input'!J3832=\"Yes\",'TSA Input'!J3832=\"Contingent\"),'TSA Input'!C3832,\"\"))","v":""},{"$f":"IF('TSA Input'!J3832=\"\",\"\",IF(OR('TSA Input'!J3832=\"Yes\",'TSA Input'!J3832=\"Contingent\"),'TSA Input'!D3832,\"\"))","v":""},{"$f":"IF('TSA Input'!J3832=\"\",\"\",IF(OR('TSA Input'!J3832=\"Yes\",'TSA Input'!J3832=\"Contingent\"),'TSA Input'!G3832,\"\"))","v":""},{"$f":"IF('TSA Input'!J3832=\"\",\"\",IF(OR('TSA Input'!J3832=\"Yes\",'TSA Input'!J3832=\"Contingent\"),'TSA Input'!F3832,\"\"))","v":""},"",{"$f":"IF('TSA Input'!J3832=\"\",\"\",IF(OR('TSA Input'!J3832=\"Yes\",'TSA Input'!J3832=\"Contingent\"),'TSA Input'!D3832,\"\"))","v":""},{"$f":"IF('TSA Input'!J3832=\"\",\"\",IF(OR('TSA Input'!J3832=\"Yes\",'TSA Input'!J3832=\"Contingent\"),'TSA Input'!G3832,\"\"))","v":""},{"$f":"IF('TSA Input'!J3832=\"\",\"\",IF(OR('TSA Input'!J3832=\"Yes\",'TSA Input'!J3832=\"Contingent\"),'TSA Input'!F3832,\"\"))","v":""},"","Required","Required"]
["",null,{"$f":"IF('TSA Input'!J3833=\"\",\"\",IF(OR('TSA Input'!J3833=\"Yes\",'TSA Input'!J3833=\"Contingent\"),'TSA Input'!B3833,\"Ineligible\"))","v":""},{"$f":"IF('TSA Input'!J3833=\"\",\"\",IF(OR('TSA Input'!J3833=\"Yes\",'TSA Input'!J3833=\"Contingent\"),'TSA Input'!I3833,\"\"))","v":""},{"$f":"IF('TSA Input'!J3833=\"\",\"\",IF(OR('TSA Input'!J3833=\"Yes\",'TSA Input'!J3833=\"Contingent\"),'TSA Input'!C3833,\"\"))","v":""},{"$f":"IF('TSA Input'!J3833=\"\",\"\",IF(OR('TSA Input'!J3833=\"Yes\",'TSA Input'!J3833=\"Contingent\"),'TSA Input'!D3833,\"\"))","v":""},{"$f":"IF('TSA Input'!J3833=\"\",\"\",IF(OR('TSA Input'!J3833=\"Yes\",'TSA Input'!J3833=\"Contingent\"),'TSA Input'!G3833,\"\"))","v":""},{"$f":"IF('TSA Input'!J3833=\"\",\"\",IF(OR('TSA Input'!J3833=\"Yes\",'TSA Input'!J3833=\"Contingent\"),'TSA Input'!F3833,\"\"))","v":""},"",{"$f":"IF('TSA Input'!J3833=\"\",\"\",IF(OR('TSA Input'!J3833=\"Yes\",'TSA Input'!J3833=\"Contingent\"),'TSA Input'!D3833,\"\"))","v":""},{"$f":"IF('TSA Input'!J3833=\"\",\"\",IF(OR('TSA Input'!J3833=\"Yes\",'TSA Input'!J3833=\"Contingent\"),'TSA Input'!G3833,\"\"))","v":""},{"$f":"IF('TSA Input'!J3833=\"\",\"\",IF(OR('TSA Input'!J3833=\"Yes\",'TSA Input'!J3833=\"Contingent\"),'TSA Input'!F3833,\"\"))","v":""},"","Required","Required"]
["",null,{"$f":"IF('TSA Input'!J3834=\"\",\"\",IF(OR('TSA Input'!J3834=\"Yes\",'TSA Input'!J3834=\"Contingent\"),'TSA Input'!B3834,\"Ineligible\"))","v":""},{"$f":"IF('TSA Input'!J3834=\"\",\"\",IF(OR('TSA Input'!J3834=\"Yes\",'TSA Input'!J3834=\"Contingent\"),'TSA Input'!I3834,\"\"))","v":""},{"$f":"IF('TSA Input'!J3834=\"\",\"\",IF(OR('TSA Input'!J3834=\"Yes\",'TSA Input'!J3834=\"Contingent\"),'TSA Input'!C3834,\"\"))","v":""},{"$f":"IF('TSA Input'!J3834=\"\",\"\",IF(OR('TSA Input'!J3834=\"Yes\",'TSA Input'!J3834=\"Contingent\"),'TSA Input'!D3834,\"\"))","v":""},{"$f":"IF('TSA Input'!J3834=\"\",\"\",IF(OR('TSA Input'!J3834=\"Yes\",'TSA Input'!J3834=\"Contingent\"),'TSA Input'!G3834,\"\"))","v":""},{"$f":"IF('TSA Input'!J3834=\"\",\"\",IF(OR('TSA Input'!J3834=\"Yes\",'TSA Input'!J3834=\"Contingent\"),'TSA Input'!F3834,\"\"))","v":""},"",{"$f":"IF('TSA Input'!J3834=\"\",\"\",IF(OR('TSA Input'!J3834=\"Yes\",'TSA Input'!J3834=\"Contingent\"),'TSA Input'!D3834,\"\"))","v":""},{"$f":"IF('TSA Input'!J3834=\"\",\"\",IF(OR('TSA Input'!J3834=\"Yes\",'TSA Input'!J3834=\"Contingent\"),'TSA Input'!G3834,\"\"))","v":""},{"$f":"IF('TSA Input'!J3834=\"\",\"\",IF(OR('TSA Input'!J3834=\"Yes\",'TSA Input'!J3834=\"Contingent\"),'TSA Input'!F3834,\"\"))","v":""},"","Required","Required"]
["",null,{"$f":"IF('TSA Input'!J3835=\"\",\"\",IF(OR('TSA Input'!J3835=\"Yes\",'TSA Input'!J3835=\"Contingent\"),'TSA Input'!B3835,\"Ineligible\"))","v":""},{"$f":"IF('TSA Input'!J3835=\"\",\"\",IF(OR('TSA Input'!J3835=\"Yes\",'TSA Input'!J3835=\"Contingent\"),'TSA Input'!I3835,\"\"))","v":""},{"$f":"IF('TSA Input'!J3835=\"\",\"\",IF(OR('TSA Input'!J3835=\"Yes\",'TSA Input'!J3835=\"Contingent\"),'TSA Input'!C3835,\"\"))","v":""},{"$f":"IF('TSA Input'!J3835=\"\",\"\",IF(OR('TSA Input'!J3835=\"Yes\",'TSA Input'!J3835=\"Contingent\"),'TSA Input'!D3835,\"\"))","v":""},{"$f":"IF('TSA Input'!J3835=\"\",\"\",IF(OR('TSA Input'!J3835=\"Yes\",'TSA Input'!J3835=\"Contingent\"),'TSA Input'!G3835,\"\"))","v":""},{"$f":"IF('TSA Input'!J3835=\"\",\"\",IF(OR('TSA Input'!J3835=\"Yes\",'TSA Input'!J3835=\"Contingent\"),'TSA Input'!F3835,\"\"))","v":""},"",{"$f":"IF('TSA Input'!J3835=\"\",\"\",IF(OR('TSA Input'!J3835=\"Yes\",'TSA Input'!J3835=\"Contingent\"),'TSA Input'!D3835,\"\"))","v":""},{"$f":"IF('TSA Input'!J3835=\"\",\"\",IF(OR('TSA Input'!J3835=\"Yes\",'TSA Input'!J3835=\"Contingent\"),'TSA Input'!G3835,\"\"))","v":""},{"$f":"IF('TSA Input'!J3835=\"\",\"\",IF(OR('TSA Input'!J3835=\"Yes\",'TSA Input'!J3835=\"Contingent\"),'TSA Input'!F3835,\"\"))","v":""},"","Required","Required"]
["",null,{"$f":"IF('TSA Input'!J3836=\"\",\"\",IF(OR('TSA Input'!J3836=\"Yes\",'TSA Input'!J3836=\"Contingent\"),'TSA Input'!B3836,\"Ineligible\"))","v":""},{"$f":"IF('TSA Input'!J3836=\"\",\"\",IF(OR('TSA Input'!J3836=\"Yes\",'TSA Input'!J3836=\"Contingent\"),'TSA Input'!I3836,\"\"))","v":""},{"$f":"IF('TSA Input'!J3836=\"\",\"\",IF(OR('TSA Input'!J3836=\"Yes\",'TSA Input'!J3836=\"Contingent\"),'TSA Input'!C3836,\"\"))","v":""},{"$f":"IF('TSA Input'!J3836=\"\",\"\",IF(OR('TSA Input'!J3836=\"Yes\",'TSA Input'!J3836=\"Contingent\"),'TSA Input'!D3836,\"\"))","v":""},{"$f":"IF('TSA Input'!J3836=\"\",\"\",IF(OR('TSA Input'!J3836=\"Yes\",'TSA Input'!J3836=\"Contingent\"),'TSA Input'!G3836,\"\"))","v":""},{"$f":"IF('TSA Input'!J3836=\"\",\"\",IF(OR('TSA Input'!J3836=\"Yes\",'TSA Input'!J3836=\"Contingent\"),'TSA Input'!F3836,\"\"))","v":""},"",{"$f":"IF('TSA Input'!J3836=\"\",\"\",IF(OR('TSA Input'!J3836=\"Yes\",'TSA Input'!J3836=\"Contingent\"),'TSA Input'!D3836,\"\"))","v":""},{"$f":"IF('TSA Input'!J3836=\"\",\"\",IF(OR('TSA Input'!J3836=\"Yes\",'TSA Input'!J3836=\"Contingent\"),'TSA Input'!G3836,\"\"))","v":""},{"$f":"IF('TSA Input'!J3836=\"\",\"\",IF(OR('TSA Input'!J3836=\"Yes\",'TSA Input'!J3836=\"Contingent\"),'TSA Input'!F3836,\"\"))","v":""},"","Required","Required"]
["",null,{"$f":"IF('TSA Input'!J3837=\"\",\"\",IF(OR('TSA Input'!J3837=\"Yes\",'TSA Input'!J3837=\"Contingent\"),'TSA Input'!B3837,\"Ineligible\"))","v":""},{"$f":"IF('TSA Input'!J3837=\"\",\"\",IF(OR('TSA Input'!J3837=\"Yes\",'TSA Input'!J3837=\"Contingent\"),'TSA Input'!I3837,\"\"))","v":""},{"$f":"IF('TSA Input'!J3837=\"\",\"\",IF(OR('TSA Input'!J3837=\"Yes\",'TSA Input'!J3837=\"Contingent\"),'TSA Input'!C3837,\"\"))","v":""},{"$f":"IF('TSA Input'!J3837=\"\",\"\",IF(OR('TSA Input'!J3837=\"Yes\",'TSA Input'!J3837=\"Contingent\"),'TSA Input'!D3837,\"\"))","v":""},{"$f":"IF('TSA Input'!J3837=\"\",\"\",IF(OR('TSA Input'!J3837=\"Yes\",'TSA Input'!J3837=\"Contingent\"),'TSA Input'!G3837,\"\"))","v":""},{"$f":"IF('TSA Input'!J3837=\"\",\"\",IF(OR('TSA Input'!J3837=\"Yes\",'TSA Input'!J3837=\"Contingent\"),'TSA Input'!F3837,\"\"))","v":""},"",{"$f":"IF('TSA Input'!J3837=\"\",\"\",IF(OR('TSA Input'!J3837=\"Yes\",'TSA Input'!J3837=\"Contingent\"),'TSA Input'!D3837,\"\"))","v":""},{"$f":"IF('TSA Input'!J3837=\"\",\"\",IF(OR('TSA Input'!J3837=\"Yes\",'TSA Input'!J3837=\"Contingent\"),'TSA Input'!G3837,\"\"))","v":""},{"$f":"IF('TSA Input'!J3837=\"\",\"\",IF(OR('TSA Input'!J3837=\"Yes\",'TSA Input'!J3837=\"Contingent\"),'TSA Input'!F3837,\"\"))","v":""},"","Required","Required"]
["",null,{"$f":"IF('TSA Input'!J3838=\"\",\"\",IF(OR('TSA Input'!J3838=\"Yes\",'TSA Input'!J3838=\"Contingent\"),'TSA Input'!B3838,\"Ineligible\"))","v":""},{"$f":"IF('TSA Input'!J3838=\"\",\"\",IF(OR('TSA Input'!J3838=\"Yes\",'TSA Input'!J3838=\"Contingent\"),'TSA Input'!I3838,\"\"))","v":""},{"$f":"IF('TSA Input'!J3838=\"\",\"\",IF(OR('TSA Input'!J3838=\"Yes\",'TSA Input'!J3838=\"Contingent\"),'TSA Input'!C3838,\"\"))","v":""},{"$f":"IF('TSA Input'!J3838=\"\",\"\",IF(OR('TSA Input'!J3838=\"Yes\",'TSA Input'!J3838=\"Contingent\"),'TSA Input'!D3838,\"\"))","v":""},{"$f":"IF('TSA Input'!J3838=\"\",\"\",IF(OR('TSA Input'!J3838=\"Yes\",'TSA Input'!J3838=\"Contingent\"),'TSA Input'!G3838,\"\"))","v":""},{"$f":"IF('TSA Input'!J3838=\"\",\"\",IF(OR('TSA Input'!J3838=\"Yes\",'TSA Input'!J3838=\"Contingent\"),'TSA Input'!F3838,\"\"))","v":""},"",{"$f":"IF('TSA Input'!J3838=\"\",\"\",IF(OR('TSA Input'!J3838=\"Yes\",'TSA Input'!J3838=\"Contingent\"),'TSA Input'!D3838,\"\"))","v":""},{"$f":"IF('TSA Input'!J3838=\"\",\"\",IF(OR('TSA Input'!J3838=\"Yes\",'TSA Input'!J3838=\"Contingent\"),'TSA Input'!G3838,\"\"))","v":""},{"$f":"IF('TSA Input'!J3838=\"\",\"\",IF(OR('TSA Input'!J3838=\"Yes\",'TSA Input'!J3838=\"Contingent\"),'TSA Input'!F3838,\"\"))","v":""},"","Required","Required"]
["",null,{"$f":"IF('TSA Input'!J3839=\"\",\"\",IF(OR('TSA Input'!J3839=\"Yes\",'TSA Input'!J3839=\"Contingent\"),'TSA Input'!B3839,\"Ineligible\"))","v":""},{"$f":"IF('TSA Input'!J3839=\"\",\"\",IF(OR('TSA Input'!J3839=\"Yes\",'TSA Input'!J3839=\"Contingent\"),'TSA Input'!I3839,\"\"))","v":""},{"$f":"IF('TSA Input'!J3839=\"\",\"\",IF(OR('TSA Input'!J3839=\"Yes\",'TSA Input'!J3839=\"Contingent\"),'TSA Input'!C3839,\"\"))","v":""},{"$f":"IF('TSA Input'!J3839=\"\",\"\",IF(OR('TSA Input'!J3839=\"Yes\",'TSA Input'!J3839=\"Contingent\"),'TSA Input'!D3839,\"\"))","v":""},{"$f":"IF('TSA Input'!J3839=\"\",\"\",IF(OR('TSA Input'!J3839=\"Yes\",'TSA Input'!J3839=\"Contingent\"),'TSA Input'!G3839,\"\"))","v":""},{"$f":"IF('TSA Input'!J3839=\"\",\"\",IF(OR('TSA Input'!J3839=\"Yes\",'TSA Input'!J3839=\"Contingent\"),'TSA Input'!F3839,\"\"))","v":""},"",{"$f":"IF('TSA Input'!J3839=\"\",\"\",IF(OR('TSA Input'!J3839=\"Yes\",'TSA Input'!J3839=\"Contingent\"),'TSA Input'!D3839,\"\"))","v":""},{"$f":"IF('TSA Input'!J3839=\"\",\"\",IF(OR('TSA Input'!J3839=\"Yes\",'TSA Input'!J3839=\"Contingent\"),'TSA Input'!G3839,\"\"))","v":""},{"$f":"IF('TSA Input'!J3839=\"\",\"\",IF(OR('TSA Input'!J3839=\"Yes\",'TSA Input'!J3839=\"Contingent\"),'TSA Input'!F3839,\"\"))","v":""},"","Required","Required"]
["",null,{"$f":"IF('TSA Input'!J3840=\"\",\"\",IF(OR('TSA Input'!J3840=\"Yes\",'TSA Input'!J3840=\"Contingent\"),'TSA Input'!B3840,\"Ineligible\"))","v":""},{"$f":"IF('TSA Input'!J3840=\"\",\"\",IF(OR('TSA Input'!J3840=\"Yes\",'TSA Input'!J3840=\"Contingent\"),'TSA Input'!I3840,\"\"))","v":""},{"$f":"IF('TSA Input'!J3840=\"\",\"\",IF(OR('TSA Input'!J3840=\"Yes\",'TSA Input'!J3840=\"Contingent\"),'TSA Input'!C3840,\"\"))","v":""},{"$f":"IF('TSA Input'!J3840=\"\",\"\",IF(OR('TSA Input'!J3840=\"Yes\",'TSA Input'!J3840=\"Contingent\"),'TSA Input'!D3840,\"\"))","v":""},{"$f":"IF('TSA Input'!J3840=\"\",\"\",IF(OR('TSA Input'!J3840=\"Yes\",'TSA Input'!J3840=\"Contingent\"),'TSA Input'!G3840,\"\"))","v":""},{"$f":"IF('TSA Input'!J3840=\"\",\"\",IF(OR('TSA Input'!J3840=\"Yes\",'TSA Input'!J3840=\"Contingent\"),'TSA Input'!F3840,\"\"))","v":""},"",{"$f":"IF('TSA Input'!J3840=\"\",\"\",IF(OR('TSA Input'!J3840=\"Yes\",'TSA Input'!J3840=\"Contingent\"),'TSA Input'!D3840,\"\"))","v":""},{"$f":"IF('TSA Input'!J3840=\"\",\"\",IF(OR('TSA Input'!J3840=\"Yes\",'TSA Input'!J3840=\"Contingent\"),'TSA Input'!G3840,\"\"))","v":""},{"$f":"IF('TSA Input'!J3840=\"\",\"\",IF(OR('TSA Input'!J3840=\"Yes\",'TSA Input'!J3840=\"Contingent\"),'TSA Input'!F3840,\"\"))","v":""},"","Required","Required"]
["",null,{"$f":"IF('TSA Input'!J3841=\"\",\"\",IF(OR('TSA Input'!J3841=\"Yes\",'TSA Input'!J3841=\"Contingent\"),'TSA Input'!B3841,\"Ineligible\"))","v":""},{"$f":"IF('TSA Input'!J3841=\"\",\"\",IF(OR('TSA Input'!J3841=\"Yes\",'TSA Input'!J3841=\"Contingent\"),'TSA Input'!I3841,\"\"))","v":""},{"$f":"IF('TSA Input'!J3841=\"\",\"\",IF(OR('TSA Input'!J3841=\"Yes\",'TSA Input'!J3841=\"Contingent\"),'TSA Input'!C3841,\"\"))","v":""},{"$f":"IF('TSA Input'!J3841=\"\",\"\",IF(OR('TSA Input'!J3841=\"Yes\",'TSA Input'!J3841=\"Contingent\"),'TSA Input'!D3841,\"\"))","v":""},{"$f":"IF('TSA Input'!J3841=\"\",\"\",IF(OR('TSA Input'!J3841=\"Yes\",'TSA Input'!J3841=\"Contingent\"),'TSA Input'!G3841,\"\"))","v":""},{"$f":"IF('TSA Input'!J3841=\"\",\"\",IF(OR('TSA Input'!J3841=\"Yes\",'TSA Input'!J3841=\"Contingent\"),'TSA Input'!F3841,\"\"))","v":""},"",{"$f":"IF('TSA Input'!J3841=\"\",\"\",IF(OR('TSA Input'!J3841=\"Yes\",'TSA Input'!J3841=\"Contingent\"),'TSA Input'!D3841,\"\"))","v":""},{"$f":"IF('TSA Input'!J3841=\"\",\"\",IF(OR('TSA Input'!J3841=\"Yes\",'TSA Input'!J3841=\"Contingent\"),'TSA Input'!G3841,\"\"))","v":""},{"$f":"IF('TSA Input'!J3841=\"\",\"\",IF(OR('TSA Input'!J3841=\"Yes\",'TSA Input'!J3841=\"Contingent\"),'TSA Input'!F3841,\"\"))","v":""},"","Required","Required"]
["",null,{"$f":"IF('TSA Input'!J3842=\"\",\"\",IF(OR('TSA Input'!J3842=\"Yes\",'TSA Input'!J3842=\"Contingent\"),'TSA Input'!B3842,\"Ineligible\"))","v":""},{"$f":"IF('TSA Input'!J3842=\"\",\"\",IF(OR('TSA Input'!J3842=\"Yes\",'TSA Input'!J3842=\"Contingent\"),'TSA Input'!I3842,\"\"))","v":""},{"$f":"IF('TSA Input'!J3842=\"\",\"\",IF(OR('TSA Input'!J3842=\"Yes\",'TSA Input'!J3842=\"Contingent\"),'TSA Input'!C3842,\"\"))","v":""},{"$f":"IF('TSA Input'!J3842=\"\",\"\",IF(OR('TSA Input'!J3842=\"Yes\",'TSA Input'!J3842=\"Contingent\"),'TSA Input'!D3842,\"\"))","v":""},{"$f":"IF('TSA Input'!J3842=\"\",\"\",IF(OR('TSA Input'!J3842=\"Yes\",'TSA Input'!J3842=\"Contingent\"),'TSA Input'!G3842,\"\"))","v":""},{"$f":"IF('TSA Input'!J3842=\"\",\"\",IF(OR('TSA Input'!J3842=\"Yes\",'TSA Input'!J3842=\"Contingent\"),'TSA Input'!F3842,\"\"))","v":""},"",{"$f":"IF('TSA Input'!J3842=\"\",\"\",IF(OR('TSA Input'!J3842=\"Yes\",'TSA Input'!J3842=\"Contingent\"),'TSA Input'!D3842,\"\"))","v":""},{"$f":"IF('TSA Input'!J3842=\"\",\"\",IF(OR('TSA Input'!J3842=\"Yes\",'TSA Input'!J3842=\"Contingent\"),'TSA Input'!G3842,\"\"))","v":""},{"$f":"IF('TSA Input'!J3842=\"\",\"\",IF(OR('TSA Input'!J3842=\"Yes\",'TSA Input'!J3842=\"Contingent\"),'TSA Input'!F3842,\"\"))","v":""},"","Required","Required"]
["",null,{"$f":"IF('TSA Input'!J3843=\"\",\"\",IF(OR('TSA Input'!J3843=\"Yes\",'TSA Input'!J3843=\"Contingent\"),'TSA Input'!B3843,\"Ineligible\"))","v":""},{"$f":"IF('TSA Input'!J3843=\"\",\"\",IF(OR('TSA Input'!J3843=\"Yes\",'TSA Input'!J3843=\"Contingent\"),'TSA Input'!I3843,\"\"))","v":""},{"$f":"IF('TSA Input'!J3843=\"\",\"\",IF(OR('TSA Input'!J3843=\"Yes\",'TSA Input'!J3843=\"Contingent\"),'TSA Input'!C3843,\"\"))","v":""},{"$f":"IF('TSA Input'!J3843=\"\",\"\",IF(OR('TSA Input'!J3843=\"Yes\",'TSA Input'!J3843=\"Contingent\"),'TSA Input'!D3843,\"\"))","v":""},{"$f":"IF('TSA Input'!J3843=\"\",\"\",IF(OR('TSA Input'!J3843=\"Yes\",'TSA Input'!J3843=\"Contingent\"),'TSA Input'!G3843,\"\"))","v":""},{"$f":"IF('TSA Input'!J3843=\"\",\"\",IF(OR('TSA Input'!J3843=\"Yes\",'TSA Input'!J3843=\"Contingent\"),'TSA Input'!F3843,\"\"))","v":""},"",{"$f":"IF('TSA Input'!J3843=\"\",\"\",IF(OR('TSA Input'!J3843=\"Yes\",'TSA Input'!J3843=\"Contingent\"),'TSA Input'!D3843,\"\"))","v":""},{"$f":"IF('TSA Input'!J3843=\"\",\"\",IF(OR('TSA Input'!J3843=\"Yes\",'TSA Input'!J3843=\"Contingent\"),'TSA Input'!G3843,\"\"))","v":""},{"$f":"IF('TSA Input'!J3843=\"\",\"\",IF(OR('TSA Input'!J3843=\"Yes\",'TSA Input'!J3843=\"Contingent\"),'TSA Input'!F3843,\"\"))","v":""},"","Required","Required"]
["",null,{"$f":"IF('TSA Input'!J3844=\"\",\"\",IF(OR('TSA Input'!J3844=\"Yes\",'TSA Input'!J3844=\"Contingent\"),'TSA Input'!B3844,\"Ineligible\"))","v":""},{"$f":"IF('TSA Input'!J3844=\"\",\"\",IF(OR('TSA Input'!J3844=\"Yes\",'TSA Input'!J3844=\"Contingent\"),'TSA Input'!I3844,\"\"))","v":""},{"$f":"IF('TSA Input'!J3844=\"\",\"\",IF(OR('TSA Input'!J3844=\"Yes\",'TSA Input'!J3844=\"Contingent\"),'TSA Input'!C3844,\"\"))","v":""},{"$f":"IF('TSA Input'!J3844=\"\",\"\",IF(OR('TSA Input'!J3844=\"Yes\",'TSA Input'!J3844=\"Contingent\"),'TSA Input'!D3844,\"\"))","v":""},{"$f":"IF('TSA Input'!J3844=\"\",\"\",IF(OR('TSA Input'!J3844=\"Yes\",'TSA Input'!J3844=\"Contingent\"),'TSA Input'!G3844,\"\"))","v":""},{"$f":"IF('TSA Input'!J3844=\"\",\"\",IF(OR('TSA Input'!J3844=\"Yes\",'TSA Input'!J3844=\"Contingent\"),'TSA Input'!F3844,\"\"))","v":""},{"$f":"IF($C3882=\"\",\"\",SUM(F3882:H3882))","v":""},{"$f":"IF('TSA Input'!J3844=\"\",\"\",IF(OR('TSA Input'!J3844=\"Yes\",'TSA Input'!J3844=\"Contingent\"),'TSA Input'!D3844,\"\"))","v":""},{"$f":"IF('TSA Input'!J3844=\"\",\"\",IF(OR('TSA Input'!J3844=\"Yes\",'TSA Input'!J3844=\"Contingent\"),'TSA Input'!G3844,\"\"))","v":""},{"$f":"IF('TSA Input'!J3844=\"\",\"\",IF(OR('TSA Input'!J3844=\"Yes\",'TSA Input'!J3844=\"Contingent\"),'TSA Input'!F3844,\"\"))","v":""},{"$f":"IF($C3882=\"\",\"\",SUM(J3882:L3882))","v":""},"Required","Required"]
["",null,{"$f":"IF('TSA Input'!J3845=\"\",\"\",IF(OR('TSA Input'!J3845=\"Yes\",'TSA Input'!J3845=\"Contingent\"),'TSA Input'!B3845,\"Ineligible\"))","v":""},{"$f":"IF('TSA Input'!J3845=\"\",\"\",IF(OR('TSA Input'!J3845=\"Yes\",'TSA Input'!J3845=\"Contingent\"),'TSA Input'!I3845,\"\"))","v":""},{"$f":"IF('TSA Input'!J3845=\"\",\"\",IF(OR('TSA Input'!J3845=\"Yes\",'TSA Input'!J3845=\"Contingent\"),'TSA Input'!C3845,\"\"))","v":""},{"$f":"IF('TSA Input'!J3845=\"\",\"\",IF(OR('TSA Input'!J3845=\"Yes\",'TSA Input'!J3845=\"Contingent\"),'TSA Input'!D3845,\"\"))","v":""},{"$f":"IF('TSA Input'!J3845=\"\",\"\",IF(OR('TSA Input'!J3845=\"Yes\",'TSA Input'!J3845=\"Contingent\"),'TSA Input'!G3845,\"\"))","v":""},{"$f":"IF('TSA Input'!J3845=\"\",\"\",IF(OR('TSA Input'!J3845=\"Yes\",'TSA Input'!J3845=\"Contingent\"),'TSA Input'!F3845,\"\"))","v":""},"",{"$f":"IF('TSA Input'!J3845=\"\",\"\",IF(OR('TSA Input'!J3845=\"Yes\",'TSA Input'!J3845=\"Contingent\"),'TSA Input'!D3845,\"\"))","v":""},{"$f":"IF('TSA Input'!J3845=\"\",\"\",IF(OR('TSA Input'!J3845=\"Yes\",'TSA Input'!J3845=\"Contingent\"),'TSA Input'!G3845,\"\"))","v":""},{"$f":"IF('TSA Input'!J3845=\"\",\"\",IF(OR('TSA Input'!J3845=\"Yes\",'TSA Input'!J3845=\"Contingent\"),'TSA Input'!F3845,\"\"))","v":""},"","Required","Required"]
["",null,{"$f":"IF('TSA Input'!J3846=\"\",\"\",IF(OR('TSA Input'!J3846=\"Yes\",'TSA Input'!J3846=\"Contingent\"),'TSA Input'!B3846,\"Ineligible\"))","v":""},{"$f":"IF('TSA Input'!J3846=\"\",\"\",IF(OR('TSA Input'!J3846=\"Yes\",'TSA Input'!J3846=\"Contingent\"),'TSA Input'!I3846,\"\"))","v":""},{"$f":"IF('TSA Input'!J3846=\"\",\"\",IF(OR('TSA Input'!J3846=\"Yes\",'TSA Input'!J3846=\"Contingent\"),'TSA Input'!C3846,\"\"))","v":""},{"$f":"IF('TSA Input'!J3846=\"\",\"\",IF(OR('TSA Input'!J3846=\"Yes\",'TSA Input'!J3846=\"Contingent\"),'TSA Input'!D3846,\"\"))","v":""},{"$f":"IF('TSA Input'!J3846=\"\",\"\",IF(OR('TSA Input'!J3846=\"Yes\",'TSA Input'!J3846=\"Contingent\"),'TSA Input'!G3846,\"\"))","v":""},{"$f":"IF('TSA Input'!J3846=\"\",\"\",IF(OR('TSA Input'!J3846=\"Yes\",'TSA Input'!J3846=\"Contingent\"),'TSA Input'!F3846,\"\"))","v":""},"",{"$f":"IF('TSA Input'!J3846=\"\",\"\",IF(OR('TSA Input'!J3846=\"Yes\",'TSA Input'!J3846=\"Contingent\"),'TSA Input'!D3846,\"\"))","v":""},{"$f":"IF('TSA Input'!J3846=\"\",\"\",IF(OR('TSA Input'!J3846=\"Yes\",'TSA Input'!J3846=\"Contingent\"),'TSA Input'!G3846,\"\"))","v":""},{"$f":"IF('TSA Input'!J3846=\"\",\"\",IF(OR('TSA Input'!J3846=\"Yes\",'TSA Input'!J3846=\"Contingent\"),'TSA Input'!F3846,\"\"))","v":""},"","Required","Required"]
["",null,{"$f":"IF('TSA Input'!J3847=\"\",\"\",IF(OR('TSA Input'!J3847=\"Yes\",'TSA Input'!J3847=\"Contingent\"),'TSA Input'!B3847,\"Ineligible\"))","v":""},{"$f":"IF('TSA Input'!J3847=\"\",\"\",IF(OR('TSA Input'!J3847=\"Yes\",'TSA Input'!J3847=\"Contingent\"),'TSA Input'!I3847,\"\"))","v":""},{"$f":"IF('TSA Input'!J3847=\"\",\"\",IF(OR('TSA Input'!J3847=\"Yes\",'TSA Input'!J3847=\"Contingent\"),'TSA Input'!C3847,\"\"))","v":""},{"$f":"IF('TSA Input'!J3847=\"\",\"\",IF(OR('TSA Input'!J3847=\"Yes\",'TSA Input'!J3847=\"Contingent\"),'TSA Input'!D3847,\"\"))","v":""},{"$f":"IF('TSA Input'!J3847=\"\",\"\",IF(OR('TSA Input'!J3847=\"Yes\",'TSA Input'!J3847=\"Contingent\"),'TSA Input'!G3847,\"\"))","v":""},{"$f":"IF('TSA Input'!J3847=\"\",\"\",IF(OR('TSA Input'!J3847=\"Yes\",'TSA Input'!J3847=\"Contingent\"),'TSA Input'!F3847,\"\"))","v":""},"",{"$f":"IF('TSA Input'!J3847=\"\",\"\",IF(OR('TSA Input'!J3847=\"Yes\",'TSA Input'!J3847=\"Contingent\"),'TSA Input'!D3847,\"\"))","v":""},{"$f":"IF('TSA Input'!J3847=\"\",\"\",IF(OR('TSA Input'!J3847=\"Yes\",'TSA Input'!J3847=\"Contingent\"),'TSA Input'!G3847,\"\"))","v":""},{"$f":"IF('TSA Input'!J3847=\"\",\"\",IF(OR('TSA Input'!J3847=\"Yes\",'TSA Input'!J3847=\"Contingent\"),'TSA Input'!F3847,\"\"))","v":""},"","Required","Required"]
["",null,{"$f":"IF('TSA Input'!J3848=\"\",\"\",IF(OR('TSA Input'!J3848=\"Yes\",'TSA Input'!J3848=\"Contingent\"),'TSA Input'!B3848,\"Ineligible\"))","v":""},{"$f":"IF('TSA Input'!J3848=\"\",\"\",IF(OR('TSA Input'!J3848=\"Yes\",'TSA Input'!J3848=\"Contingent\"),'TSA Input'!I3848,\"\"))","v":""},{"$f":"IF('TSA Input'!J3848=\"\",\"\",IF(OR('TSA Input'!J3848=\"Yes\",'TSA Input'!J3848=\"Contingent\"),'TSA Input'!C3848,\"\"))","v":""},{"$f":"IF('TSA Input'!J3848=\"\",\"\",IF(OR('TSA Input'!J3848=\"Yes\",'TSA Input'!J3848=\"Contingent\"),'TSA Input'!D3848,\"\"))","v":""},{"$f":"IF('TSA Input'!J3848=\"\",\"\",IF(OR('TSA Input'!J3848=\"Yes\",'TSA Input'!J3848=\"Contingent\"),'TSA Input'!G3848,\"\"))","v":""},{"$f":"IF('TSA Input'!J3848=\"\",\"\",IF(OR('TSA Input'!J3848=\"Yes\",'TSA Input'!J3848=\"Contingent\"),'TSA Input'!F3848,\"\"))","v":""},"",{"$f":"IF('TSA Input'!J3848=\"\",\"\",IF(OR('TSA Input'!J3848=\"Yes\",'TSA Input'!J3848=\"Contingent\"),'TSA Input'!D3848,\"\"))","v":""},{"$f":"IF('TSA Input'!J3848=\"\",\"\",IF(OR('TSA Input'!J3848=\"Yes\",'TSA Input'!J3848=\"Contingent\"),'TSA Input'!G3848,\"\"))","v":""},{"$f":"IF('TSA Input'!J3848=\"\",\"\",IF(OR('TSA Input'!J3848=\"Yes\",'TSA Input'!J3848=\"Contingent\"),'TSA Input'!F3848,\"\"))","v":""},"","Required","Required"]
["",null,{"$f":"IF('TSA Input'!J3849=\"\",\"\",IF(OR('TSA Input'!J3849=\"Yes\",'TSA Input'!J3849=\"Contingent\"),'TSA Input'!B3849,\"Ineligible\"))","v":""},{"$f":"IF('TSA Input'!J3849=\"\",\"\",IF(OR('TSA Input'!J3849=\"Yes\",'TSA Input'!J3849=\"Contingent\"),'TSA Input'!I3849,\"\"))","v":""},{"$f":"IF('TSA Input'!J3849=\"\",\"\",IF(OR('TSA Input'!J3849=\"Yes\",'TSA Input'!J3849=\"Contingent\"),'TSA Input'!C3849,\"\"))","v":""},{"$f":"IF('TSA Input'!J3849=\"\",\"\",IF(OR('TSA Input'!J3849=\"Yes\",'TSA Input'!J3849=\"Contingent\"),'TSA Input'!D3849,\"\"))","v":""},{"$f":"IF('TSA Input'!J3849=\"\",\"\",IF(OR('TSA Input'!J3849=\"Yes\",'TSA Input'!J3849=\"Contingent\"),'TSA Input'!G3849,\"\"))","v":""},{"$f":"IF('TSA Input'!J3849=\"\",\"\",IF(OR('TSA Input'!J3849=\"Yes\",'TSA Input'!J3849=\"Contingent\"),'TSA Input'!F3849,\"\"))","v":""},"",{"$f":"IF('TSA Input'!J3849=\"\",\"\",IF(OR('TSA Input'!J3849=\"Yes\",'TSA Input'!J3849=\"Contingent\"),'TSA Input'!D3849,\"\"))","v":""},{"$f":"IF('TSA Input'!J3849=\"\",\"\",IF(OR('TSA Input'!J3849=\"Yes\",'TSA Input'!J3849=\"Contingent\"),'TSA Input'!G3849,\"\"))","v":""},{"$f":"IF('TSA Input'!J3849=\"\",\"\",IF(OR('TSA Input'!J3849=\"Yes\",'TSA Input'!J3849=\"Contingent\"),'TSA Input'!F3849,\"\"))","v":""},"","Required","Required"]
["",null,{"$f":"IF('TSA Input'!J3850=\"\",\"\",IF(OR('TSA Input'!J3850=\"Yes\",'TSA Input'!J3850=\"Contingent\"),'TSA Input'!B3850,\"Ineligible\"))","v":""},{"$f":"IF('TSA Input'!J3850=\"\",\"\",IF(OR('TSA Input'!J3850=\"Yes\",'TSA Input'!J3850=\"Contingent\"),'TSA Input'!I3850,\"\"))","v":""},{"$f":"IF('TSA Input'!J3850=\"\",\"\",IF(OR('TSA Input'!J3850=\"Yes\",'TSA Input'!J3850=\"Contingent\"),'TSA Input'!C3850,\"\"))","v":""},{"$f":"IF('TSA Input'!J3850=\"\",\"\",IF(OR('TSA Input'!J3850=\"Yes\",'TSA Input'!J3850=\"Contingent\"),'TSA Input'!D3850,\"\"))","v":""},{"$f":"IF('TSA Input'!J3850=\"\",\"\",IF(OR('TSA Input'!J3850=\"Yes\",'TSA Input'!J3850=\"Contingent\"),'TSA Input'!G3850,\"\"))","v":""},{"$f":"IF('TSA Input'!J3850=\"\",\"\",IF(OR('TSA Input'!J3850=\"Yes\",'TSA Input'!J3850=\"Contingent\"),'TSA Input'!F3850,\"\"))","v":""},"",{"$f":"IF('TSA Input'!J3850=\"\",\"\",IF(OR('TSA Input'!J3850=\"Yes\",'TSA Input'!J3850=\"Contingent\"),'TSA Input'!D3850,\"\"))","v":""},{"$f":"IF('TSA Input'!J3850=\"\",\"\",IF(OR('TSA Input'!J3850=\"Yes\",'TSA Input'!J3850=\"Contingent\"),'TSA Input'!G3850,\"\"))","v":""},{"$f":"IF('TSA Input'!J3850=\"\",\"\",IF(OR('TSA Input'!J3850=\"Yes\",'TSA Input'!J3850=\"Contingent\"),'TSA Input'!F3850,\"\"))","v":""},"","Required","Required"]
["",null,{"$f":"IF('TSA Input'!J3851=\"\",\"\",IF(OR('TSA Input'!J3851=\"Yes\",'TSA Input'!J3851=\"Contingent\"),'TSA Input'!B3851,\"Ineligible\"))","v":""},{"$f":"IF('TSA Input'!J3851=\"\",\"\",IF(OR('TSA Input'!J3851=\"Yes\",'TSA Input'!J3851=\"Contingent\"),'TSA Input'!I3851,\"\"))","v":""},{"$f":"IF('TSA Input'!J3851=\"\",\"\",IF(OR('TSA Input'!J3851=\"Yes\",'TSA Input'!J3851=\"Contingent\"),'TSA Input'!C3851,\"\"))","v":""},{"$f":"IF('TSA Input'!J3851=\"\",\"\",IF(OR('TSA Input'!J3851=\"Yes\",'TSA Input'!J3851=\"Contingent\"),'TSA Input'!D3851,\"\"))","v":""},{"$f":"IF('TSA Input'!J3851=\"\",\"\",IF(OR('TSA Input'!J3851=\"Yes\",'TSA Input'!J3851=\"Contingent\"),'TSA Input'!G3851,\"\"))","v":""},{"$f":"IF('TSA Input'!J3851=\"\",\"\",IF(OR('TSA Input'!J3851=\"Yes\",'TSA Input'!J3851=\"Contingent\"),'TSA Input'!F3851,\"\"))","v":""},"",{"$f":"IF('TSA Input'!J3851=\"\",\"\",IF(OR('TSA Input'!J3851=\"Yes\",'TSA Input'!J3851=\"Contingent\"),'TSA Input'!D3851,\"\"))","v":""},{"$f":"IF('TSA Input'!J3851=\"\",\"\",IF(OR('TSA Input'!J3851=\"Yes\",'TSA Input'!J3851=\"Contingent\"),'TSA Input'!G3851,\"\"))","v":""},{"$f":"IF('TSA Input'!J3851=\"\",\"\",IF(OR('TSA Input'!J3851=\"Yes\",'TSA Input'!J3851=\"Contingent\"),'TSA Input'!F3851,\"\"))","v":""},"","Required","Required"]
["",null,{"$f":"IF('TSA Input'!J3852=\"\",\"\",IF(OR('TSA Input'!J3852=\"Yes\",'TSA Input'!J3852=\"Contingent\"),'TSA Input'!B3852,\"Ineligible\"))","v":""},{"$f":"IF('TSA Input'!J3852=\"\",\"\",IF(OR('TSA Input'!J3852=\"Yes\",'TSA Input'!J3852=\"Contingent\"),'TSA Input'!I3852,\"\"))","v":""},{"$f":"IF('TSA Input'!J3852=\"\",\"\",IF(OR('TSA Input'!J3852=\"Yes\",'TSA Input'!J3852=\"Contingent\"),'TSA Input'!C3852,\"\"))","v":""},{"$f":"IF('TSA Input'!J3852=\"\",\"\",IF(OR('TSA Input'!J3852=\"Yes\",'TSA Input'!J3852=\"Contingent\"),'TSA Input'!D3852,\"\"))","v":""},{"$f":"IF('TSA Input'!J3852=\"\",\"\",IF(OR('TSA Input'!J3852=\"Yes\",'TSA Input'!J3852=\"Contingent\"),'TSA Input'!G3852,\"\"))","v":""},{"$f":"IF('TSA Input'!J3852=\"\",\"\",IF(OR('TSA Input'!J3852=\"Yes\",'TSA Input'!J3852=\"Contingent\"),'TSA Input'!F3852,\"\"))","v":""},"",{"$f":"IF('TSA Input'!J3852=\"\",\"\",IF(OR('TSA Input'!J3852=\"Yes\",'TSA Input'!J3852=\"Contingent\"),'TSA Input'!D3852,\"\"))","v":""},{"$f":"IF('TSA Input'!J3852=\"\",\"\",IF(OR('TSA Input'!J3852=\"Yes\",'TSA Input'!J3852=\"Contingent\"),'TSA Input'!G3852,\"\"))","v":""},{"$f":"IF('TSA Input'!J3852=\"\",\"\",IF(OR('TSA Input'!J3852=\"Yes\",'TSA Input'!J3852=\"Contingent\"),'TSA Input'!F3852,\"\"))","v":""},"","Required","Required"]
["",null,{"$f":"IF('TSA Input'!J3853=\"\",\"\",IF(OR('TSA Input'!J3853=\"Yes\",'TSA Input'!J3853=\"Contingent\"),'TSA Input'!B3853,\"Ineligible\"))","v":""},{"$f":"IF('TSA Input'!J3853=\"\",\"\",IF(OR('TSA Input'!J3853=\"Yes\",'TSA Input'!J3853=\"Contingent\"),'TSA Input'!I3853,\"\"))","v":""},{"$f":"IF('TSA Input'!J3853=\"\",\"\",IF(OR('TSA Input'!J3853=\"Yes\",'TSA Input'!J3853=\"Contingent\"),'TSA Input'!C3853,\"\"))","v":""},{"$f":"IF('TSA Input'!J3853=\"\",\"\",IF(OR('TSA Input'!J3853=\"Yes\",'TSA Input'!J3853=\"Contingent\"),'TSA Input'!D3853,\"\"))","v":""},{"$f":"IF('TSA Input'!J3853=\"\",\"\",IF(OR('TSA Input'!J3853=\"Yes\",'TSA Input'!J3853=\"Contingent\"),'TSA Input'!G3853,\"\"))","v":""},{"$f":"IF('TSA Input'!J3853=\"\",\"\",IF(OR('TSA Input'!J3853=\"Yes\",'TSA Input'!J3853=\"Contingent\"),'TSA Input'!F3853,\"\"))","v":""},"",{"$f":"IF('TSA Input'!J3853=\"\",\"\",IF(OR('TSA Input'!J3853=\"Yes\",'TSA Input'!J3853=\"Contingent\"),'TSA Input'!D3853,\"\"))","v":""},{"$f":"IF('TSA Input'!J3853=\"\",\"\",IF(OR('TSA Input'!J3853=\"Yes\",'TSA Input'!J3853=\"Contingent\"),'TSA Input'!G3853,\"\"))","v":""},{"$f":"IF('TSA Input'!J3853=\"\",\"\",IF(OR('TSA Input'!J3853=\"Yes\",'TSA Input'!J3853=\"Contingent\"),'TSA Input'!F3853,\"\"))","v":""},"","Required","Required"]
["",null,{"$f":"IF('TSA Input'!J3854=\"\",\"\",IF(OR('TSA Input'!J3854=\"Yes\",'TSA Input'!J3854=\"Contingent\"),'TSA Input'!B3854,\"Ineligible\"))","v":""},{"$f":"IF('TSA Input'!J3854=\"\",\"\",IF(OR('TSA Input'!J3854=\"Yes\",'TSA Input'!J3854=\"Contingent\"),'TSA Input'!I3854,\"\"))","v":""},{"$f":"IF('TSA Input'!J3854=\"\",\"\",IF(OR('TSA Input'!J3854=\"Yes\",'TSA Input'!J3854=\"Contingent\"),'TSA Input'!C3854,\"\"))","v":""},{"$f":"IF('TSA Input'!J3854=\"\",\"\",IF(OR('TSA Input'!J3854=\"Yes\",'TSA Input'!J3854=\"Contingent\"),'TSA Input'!D3854,\"\"))","v":""},{"$f":"IF('TSA Input'!J3854=\"\",\"\",IF(OR('TSA Input'!J3854=\"Yes\",'TSA Input'!J3854=\"Contingent\"),'TSA Input'!G3854,\"\"))","v":""},{"$f":"IF('TSA Input'!J3854=\"\",\"\",IF(OR('TSA Input'!J3854=\"Yes\",'TSA Input'!J3854=\"Contingent\"),'TSA Input'!F3854,\"\"))","v":""},"",{"$f":"IF('TSA Input'!J3854=\"\",\"\",IF(OR('TSA Input'!J3854=\"Yes\",'TSA Input'!J3854=\"Contingent\"),'TSA Input'!D3854,\"\"))","v":""},{"$f":"IF('TSA Input'!J3854=\"\",\"\",IF(OR('TSA Input'!J3854=\"Yes\",'TSA Input'!J3854=\"Contingent\"),'TSA Input'!G3854,\"\"))","v":""},{"$f":"IF('TSA Input'!J3854=\"\",\"\",IF(OR('TSA Input'!J3854=\"Yes\",'TSA Input'!J3854=\"Contingent\"),'TSA Input'!F3854,\"\"))","v":""},"","Required","Required"]
["",null,{"$f":"IF('TSA Input'!J3855=\"\",\"\",IF(OR('TSA Input'!J3855=\"Yes\",'TSA Input'!J3855=\"Contingent\"),'TSA Input'!B3855,\"Ineligible\"))","v":""},{"$f":"IF('TSA Input'!J3855=\"\",\"\",IF(OR('TSA Input'!J3855=\"Yes\",'TSA Input'!J3855=\"Contingent\"),'TSA Input'!I3855,\"\"))","v":""},{"$f":"IF('TSA Input'!J3855=\"\",\"\",IF(OR('TSA Input'!J3855=\"Yes\",'TSA Input'!J3855=\"Contingent\"),'TSA Input'!C3855,\"\"))","v":""},{"$f":"IF('TSA Input'!J3855=\"\",\"\",IF(OR('TSA Input'!J3855=\"Yes\",'TSA Input'!J3855=\"Contingent\"),'TSA Input'!D3855,\"\"))","v":""},{"$f":"IF('TSA Input'!J3855=\"\",\"\",IF(OR('TSA Input'!J3855=\"Yes\",'TSA Input'!J3855=\"Contingent\"),'TSA Input'!G3855,\"\"))","v":""},{"$f":"IF('TSA Input'!J3855=\"\",\"\",IF(OR('TSA Input'!J3855=\"Yes\",'TSA Input'!J3855=\"Contingent\"),'TSA Input'!F3855,\"\"))","v":""},"",{"$f":"IF('TSA Input'!J3855=\"\",\"\",IF(OR('TSA Input'!J3855=\"Yes\",'TSA Input'!J3855=\"Contingent\"),'TSA Input'!D3855,\"\"))","v":""},{"$f":"IF('TSA Input'!J3855=\"\",\"\",IF(OR('TSA Input'!J3855=\"Yes\",'TSA Input'!J3855=\"Contingent\"),'TSA Input'!G3855,\"\"))","v":""},{"$f":"IF('TSA Input'!J3855=\"\",\"\",IF(OR('TSA Input'!J3855=\"Yes\",'TSA Input'!J3855=\"Contingent\"),'TSA Input'!F3855,\"\"))","v":""},"","Required","Required"]
["",null,{"$f":"IF('TSA Input'!J3856=\"\",\"\",IF(OR('TSA Input'!J3856=\"Yes\",'TSA Input'!J3856=\"Contingent\"),'TSA Input'!B3856,\"Ineligible\"))","v":""},{"$f":"IF('TSA Input'!J3856=\"\",\"\",IF(OR('TSA Input'!J3856=\"Yes\",'TSA Input'!J3856=\"Contingent\"),'TSA Input'!I3856,\"\"))","v":""},{"$f":"IF('TSA Input'!J3856=\"\",\"\",IF(OR('TSA Input'!J3856=\"Yes\",'TSA Input'!J3856=\"Contingent\"),'TSA Input'!C3856,\"\"))","v":""},{"$f":"IF('TSA Input'!J3856=\"\",\"\",IF(OR('TSA Input'!J3856=\"Yes\",'TSA Input'!J3856=\"Contingent\"),'TSA Input'!D3856,\"\"))","v":""},{"$f":"IF('TSA Input'!J3856=\"\",\"\",IF(OR('TSA Input'!J3856=\"Yes\",'TSA Input'!J3856=\"Contingent\"),'TSA Input'!G3856,\"\"))","v":""},{"$f":"IF('TSA Input'!J3856=\"\",\"\",IF(OR('TSA Input'!J3856=\"Yes\",'TSA Input'!J3856=\"Contingent\"),'TSA Input'!F3856,\"\"))","v":""},"",{"$f":"IF('TSA Input'!J3856=\"\",\"\",IF(OR('TSA Input'!J3856=\"Yes\",'TSA Input'!J3856=\"Contingent\"),'TSA Input'!D3856,\"\"))","v":""},{"$f":"IF('TSA Input'!J3856=\"\",\"\",IF(OR('TSA Input'!J3856=\"Yes\",'TSA Input'!J3856=\"Contingent\"),'TSA Input'!G3856,\"\"))","v":""},{"$f":"IF('TSA Input'!J3856=\"\",\"\",IF(OR('TSA Input'!J3856=\"Yes\",'TSA Input'!J3856=\"Contingent\"),'TSA Input'!F3856,\"\"))","v":""},"","Required","Required"]
["",null,{"$f":"IF('TSA Input'!J3857=\"\",\"\",IF(OR('TSA Input'!J3857=\"Yes\",'TSA Input'!J3857=\"Contingent\"),'TSA Input'!B3857,\"Ineligible\"))","v":""},{"$f":"IF('TSA Input'!J3857=\"\",\"\",IF(OR('TSA Input'!J3857=\"Yes\",'TSA Input'!J3857=\"Contingent\"),'TSA Input'!I3857,\"\"))","v":""},{"$f":"IF('TSA Input'!J3857=\"\",\"\",IF(OR('TSA Input'!J3857=\"Yes\",'TSA Input'!J3857=\"Contingent\"),'TSA Input'!C3857,\"\"))","v":""},{"$f":"IF('TSA Input'!J3857=\"\",\"\",IF(OR('TSA Input'!J3857=\"Yes\",'TSA Input'!J3857=\"Contingent\"),'TSA Input'!D3857,\"\"))","v":""},{"$f":"IF('TSA Input'!J3857=\"\",\"\",IF(OR('TSA Input'!J3857=\"Yes\",'TSA Input'!J3857=\"Contingent\"),'TSA Input'!G3857,\"\"))","v":""},{"$f":"IF('TSA Input'!J3857=\"\",\"\",IF(OR('TSA Input'!J3857=\"Yes\",'TSA Input'!J3857=\"Contingent\"),'TSA Input'!F3857,\"\"))","v":""},"",{"$f":"IF('TSA Input'!J3857=\"\",\"\",IF(OR('TSA Input'!J3857=\"Yes\",'TSA Input'!J3857=\"Contingent\"),'TSA Input'!D3857,\"\"))","v":""},{"$f":"IF('TSA Input'!J3857=\"\",\"\",IF(OR('TSA Input'!J3857=\"Yes\",'TSA Input'!J3857=\"Contingent\"),'TSA Input'!G3857,\"\"))","v":""},{"$f":"IF('TSA Input'!J3857=\"\",\"\",IF(OR('TSA Input'!J3857=\"Yes\",'TSA Input'!J3857=\"Contingent\"),'TSA Input'!F3857,\"\"))","v":""},"","Required","Required"]
["",null,{"$f":"IF('TSA Input'!J3858=\"\",\"\",IF(OR('TSA Input'!J3858=\"Yes\",'TSA Input'!J3858=\"Contingent\"),'TSA Input'!B3858,\"Ineligible\"))","v":""},{"$f":"IF('TSA Input'!J3858=\"\",\"\",IF(OR('TSA Input'!J3858=\"Yes\",'TSA Input'!J3858=\"Contingent\"),'TSA Input'!I3858,\"\"))","v":""},{"$f":"IF('TSA Input'!J3858=\"\",\"\",IF(OR('TSA Input'!J3858=\"Yes\",'TSA Input'!J3858=\"Contingent\"),'TSA Input'!C3858,\"\"))","v":""},{"$f":"IF('TSA Input'!J3858=\"\",\"\",IF(OR('TSA Input'!J3858=\"Yes\",'TSA Input'!J3858=\"Contingent\"),'TSA Input'!D3858,\"\"))","v":""},{"$f":"IF('TSA Input'!J3858=\"\",\"\",IF(OR('TSA Input'!J3858=\"Yes\",'TSA Input'!J3858=\"Contingent\"),'TSA Input'!G3858,\"\"))","v":""},{"$f":"IF('TSA Input'!J3858=\"\",\"\",IF(OR('TSA Input'!J3858=\"Yes\",'TSA Input'!J3858=\"Contingent\"),'TSA Input'!F3858,\"\"))","v":""},"",{"$f":"IF('TSA Input'!J3858=\"\",\"\",IF(OR('TSA Input'!J3858=\"Yes\",'TSA Input'!J3858=\"Contingent\"),'TSA Input'!D3858,\"\"))","v":""},{"$f":"IF('TSA Input'!J3858=\"\",\"\",IF(OR('TSA Input'!J3858=\"Yes\",'TSA Input'!J3858=\"Contingent\"),'TSA Input'!G3858,\"\"))","v":""},{"$f":"IF('TSA Input'!J3858=\"\",\"\",IF(OR('TSA Input'!J3858=\"Yes\",'TSA Input'!J3858=\"Contingent\"),'TSA Input'!F3858,\"\"))","v":""},"","Required","Required"]
["",null,{"$f":"IF('TSA Input'!J3859=\"\",\"\",IF(OR('TSA Input'!J3859=\"Yes\",'TSA Input'!J3859=\"Contingent\"),'TSA Input'!B3859,\"Ineligible\"))","v":""},{"$f":"IF('TSA Input'!J3859=\"\",\"\",IF(OR('TSA Input'!J3859=\"Yes\",'TSA Input'!J3859=\"Contingent\"),'TSA Input'!I3859,\"\"))","v":""},{"$f":"IF('TSA Input'!J3859=\"\",\"\",IF(OR('TSA Input'!J3859=\"Yes\",'TSA Input'!J3859=\"Contingent\"),'TSA Input'!C3859,\"\"))","v":""},{"$f":"IF('TSA Input'!J3859=\"\",\"\",IF(OR('TSA Input'!J3859=\"Yes\",'TSA Input'!J3859=\"Contingent\"),'TSA Input'!D3859,\"\"))","v":""},{"$f":"IF('TSA Input'!J3859=\"\",\"\",IF(OR('TSA Input'!J3859=\"Yes\",'TSA Input'!J3859=\"Contingent\"),'TSA Input'!G3859,\"\"))","v":""},{"$f":"IF('TSA Input'!J3859=\"\",\"\",IF(OR('TSA Input'!J3859=\"Yes\",'TSA Input'!J3859=\"Contingent\"),'TSA Input'!F3859,\"\"))","v":""},"",{"$f":"IF('TSA Input'!J3859=\"\",\"\",IF(OR('TSA Input'!J3859=\"Yes\",'TSA Input'!J3859=\"Contingent\"),'TSA Input'!D3859,\"\"))","v":""},{"$f":"IF('TSA Input'!J3859=\"\",\"\",IF(OR('TSA Input'!J3859=\"Yes\",'TSA Input'!J3859=\"Contingent\"),'TSA Input'!G3859,\"\"))","v":""},{"$f":"IF('TSA Input'!J3859=\"\",\"\",IF(OR('TSA Input'!J3859=\"Yes\",'TSA Input'!J3859=\"Contingent\"),'TSA Input'!F3859,\"\"))","v":""},"","Required","Required"]
["",null,{"$f":"IF('TSA Input'!J3860=\"\",\"\",IF(OR('TSA Input'!J3860=\"Yes\",'TSA Input'!J3860=\"Contingent\"),'TSA Input'!B3860,\"Ineligible\"))","v":""},{"$f":"IF('TSA Input'!J3860=\"\",\"\",IF(OR('TSA Input'!J3860=\"Yes\",'TSA Input'!J3860=\"Contingent\"),'TSA Input'!I3860,\"\"))","v":""},{"$f":"IF('TSA Input'!J3860=\"\",\"\",IF(OR('TSA Input'!J3860=\"Yes\",'TSA Input'!J3860=\"Contingent\"),'TSA Input'!C3860,\"\"))","v":""},{"$f":"IF('TSA Input'!J3860=\"\",\"\",IF(OR('TSA Input'!J3860=\"Yes\",'TSA Input'!J3860=\"Contingent\"),'TSA Input'!D3860,\"\"))","v":""},{"$f":"IF('TSA Input'!J3860=\"\",\"\",IF(OR('TSA Input'!J3860=\"Yes\",'TSA Input'!J3860=\"Contingent\"),'TSA Input'!G3860,\"\"))","v":""},{"$f":"IF('TSA Input'!J3860=\"\",\"\",IF(OR('TSA Input'!J3860=\"Yes\",'TSA Input'!J3860=\"Contingent\"),'TSA Input'!F3860,\"\"))","v":""},"",{"$f":"IF('TSA Input'!J3860=\"\",\"\",IF(OR('TSA Input'!J3860=\"Yes\",'TSA Input'!J3860=\"Contingent\"),'TSA Input'!D3860,\"\"))","v":""},{"$f":"IF('TSA Input'!J3860=\"\",\"\",IF(OR('TSA Input'!J3860=\"Yes\",'TSA Input'!J3860=\"Contingent\"),'TSA Input'!G3860,\"\"))","v":""},{"$f":"IF('TSA Input'!J3860=\"\",\"\",IF(OR('TSA Input'!J3860=\"Yes\",'TSA Input'!J3860=\"Contingent\"),'TSA Input'!F3860,\"\"))","v":""},"","Required","Required"]
["",null,{"$f":"IF('TSA Input'!J3861=\"\",\"\",IF(OR('TSA Input'!J3861=\"Yes\",'TSA Input'!J3861=\"Contingent\"),'TSA Input'!B3861,\"Ineligible\"))","v":""},{"$f":"IF('TSA Input'!J3861=\"\",\"\",IF(OR('TSA Input'!J3861=\"Yes\",'TSA Input'!J3861=\"Contingent\"),'TSA Input'!I3861,\"\"))","v":""},{"$f":"IF('TSA Input'!J3861=\"\",\"\",IF(OR('TSA Input'!J3861=\"Yes\",'TSA Input'!J3861=\"Contingent\"),'TSA Input'!C3861,\"\"))","v":""},{"$f":"IF('TSA Input'!J3861=\"\",\"\",IF(OR('TSA Input'!J3861=\"Yes\",'TSA Input'!J3861=\"Contingent\"),'TSA Input'!D3861,\"\"))","v":""},{"$f":"IF('TSA Input'!J3861=\"\",\"\",IF(OR('TSA Input'!J3861=\"Yes\",'TSA Input'!J3861=\"Contingent\"),'TSA Input'!G3861,\"\"))","v":""},{"$f":"IF('TSA Input'!J3861=\"\",\"\",IF(OR('TSA Input'!J3861=\"Yes\",'TSA Input'!J3861=\"Contingent\"),'TSA Input'!F3861,\"\"))","v":""},"",{"$f":"IF('TSA Input'!J3861=\"\",\"\",IF(OR('TSA Input'!J3861=\"Yes\",'TSA Input'!J3861=\"Contingent\"),'TSA Input'!D3861,\"\"))","v":""},{"$f":"IF('TSA Input'!J3861=\"\",\"\",IF(OR('TSA Input'!J3861=\"Yes\",'TSA Input'!J3861=\"Contingent\"),'TSA Input'!G3861,\"\"))","v":""},{"$f":"IF('TSA Input'!J3861=\"\",\"\",IF(OR('TSA Input'!J3861=\"Yes\",'TSA Input'!J3861=\"Contingent\"),'TSA Input'!F3861,\"\"))","v":""},"","Required","Required"]
["",null,{"$f":"IF('TSA Input'!J3862=\"\",\"\",IF(OR('TSA Input'!J3862=\"Yes\",'TSA Input'!J3862=\"Contingent\"),'TSA Input'!B3862,\"Ineligible\"))","v":""},{"$f":"IF('TSA Input'!J3862=\"\",\"\",IF(OR('TSA Input'!J3862=\"Yes\",'TSA Input'!J3862=\"Contingent\"),'TSA Input'!I3862,\"\"))","v":""},{"$f":"IF('TSA Input'!J3862=\"\",\"\",IF(OR('TSA Input'!J3862=\"Yes\",'TSA Input'!J3862=\"Contingent\"),'TSA Input'!C3862,\"\"))","v":""},{"$f":"IF('TSA Input'!J3862=\"\",\"\",IF(OR('TSA Input'!J3862=\"Yes\",'TSA Input'!J3862=\"Contingent\"),'TSA Input'!D3862,\"\"))","v":""},{"$f":"IF('TSA Input'!J3862=\"\",\"\",IF(OR('TSA Input'!J3862=\"Yes\",'TSA Input'!J3862=\"Contingent\"),'TSA Input'!G3862,\"\"))","v":""},{"$f":"IF('TSA Input'!J3862=\"\",\"\",IF(OR('TSA Input'!J3862=\"Yes\",'TSA Input'!J3862=\"Contingent\"),'TSA Input'!F3862,\"\"))","v":""},"",{"$f":"IF('TSA Input'!J3862=\"\",\"\",IF(OR('TSA Input'!J3862=\"Yes\",'TSA Input'!J3862=\"Contingent\"),'TSA Input'!D3862,\"\"))","v":""},{"$f":"IF('TSA Input'!J3862=\"\",\"\",IF(OR('TSA Input'!J3862=\"Yes\",'TSA Input'!J3862=\"Contingent\"),'TSA Input'!G3862,\"\"))","v":""},{"$f":"IF('TSA Input'!J3862=\"\",\"\",IF(OR('TSA Input'!J3862=\"Yes\",'TSA Input'!J3862=\"Contingent\"),'TSA Input'!F3862,\"\"))","v":""},"","Required","Required"]
["",null,{"$f":"IF('TSA Input'!J3863=\"\",\"\",IF(OR('TSA Input'!J3863=\"Yes\",'TSA Input'!J3863=\"Contingent\"),'TSA Input'!B3863,\"Ineligible\"))","v":""},{"$f":"IF('TSA Input'!J3863=\"\",\"\",IF(OR('TSA Input'!J3863=\"Yes\",'TSA Input'!J3863=\"Contingent\"),'TSA Input'!I3863,\"\"))","v":""},{"$f":"IF('TSA Input'!J3863=\"\",\"\",IF(OR('TSA Input'!J3863=\"Yes\",'TSA Input'!J3863=\"Contingent\"),'TSA Input'!C3863,\"\"))","v":""},{"$f":"IF('TSA Input'!J3863=\"\",\"\",IF(OR('TSA Input'!J3863=\"Yes\",'TSA Input'!J3863=\"Contingent\"),'TSA Input'!D3863,\"\"))","v":""},{"$f":"IF('TSA Input'!J3863=\"\",\"\",IF(OR('TSA Input'!J3863=\"Yes\",'TSA Input'!J3863=\"Contingent\"),'TSA Input'!G3863,\"\"))","v":""},{"$f":"IF('TSA Input'!J3863=\"\",\"\",IF(OR('TSA Input'!J3863=\"Yes\",'TSA Input'!J3863=\"Contingent\"),'TSA Input'!F3863,\"\"))","v":""},"",{"$f":"IF('TSA Input'!J3863=\"\",\"\",IF(OR('TSA Input'!J3863=\"Yes\",'TSA Input'!J3863=\"Contingent\"),'TSA Input'!D3863,\"\"))","v":""},{"$f":"IF('TSA Input'!J3863=\"\",\"\",IF(OR('TSA Input'!J3863=\"Yes\",'TSA Input'!J3863=\"Contingent\"),'TSA Input'!G3863,\"\"))","v":""},{"$f":"IF('TSA Input'!J3863=\"\",\"\",IF(OR('TSA Input'!J3863=\"Yes\",'TSA Input'!J3863=\"Contingent\"),'TSA Input'!F3863,\"\"))","v":""},"","Required","Required"]
["",null,{"$f":"IF('TSA Input'!J3864=\"\",\"\",IF(OR('TSA Input'!J3864=\"Yes\",'TSA Input'!J3864=\"Contingent\"),'TSA Input'!B3864,\"Ineligible\"))","v":""},{"$f":"IF('TSA Input'!J3864=\"\",\"\",IF(OR('TSA Input'!J3864=\"Yes\",'TSA Input'!J3864=\"Contingent\"),'TSA Input'!I3864,\"\"))","v":""},{"$f":"IF('TSA Input'!J3864=\"\",\"\",IF(OR('TSA Input'!J3864=\"Yes\",'TSA Input'!J3864=\"Contingent\"),'TSA Input'!C3864,\"\"))","v":""},{"$f":"IF('TSA Input'!J3864=\"\",\"\",IF(OR('TSA Input'!J3864=\"Yes\",'TSA Input'!J3864=\"Contingent\"),'TSA Input'!D3864,\"\"))","v":""},{"$f":"IF('TSA Input'!J3864=\"\",\"\",IF(OR('TSA Input'!J3864=\"Yes\",'TSA Input'!J3864=\"Contingent\"),'TSA Input'!G3864,\"\"))","v":""},{"$f":"IF('TSA Input'!J3864=\"\",\"\",IF(OR('TSA Input'!J3864=\"Yes\",'TSA Input'!J3864=\"Contingent\"),'TSA Input'!F3864,\"\"))","v":""},"",{"$f":"IF('TSA Input'!J3864=\"\",\"\",IF(OR('TSA Input'!J3864=\"Yes\",'TSA Input'!J3864=\"Contingent\"),'TSA Input'!D3864,\"\"))","v":""},{"$f":"IF('TSA Input'!J3864=\"\",\"\",IF(OR('TSA Input'!J3864=\"Yes\",'TSA Input'!J3864=\"Contingent\"),'TSA Input'!G3864,\"\"))","v":""},{"$f":"IF('TSA Input'!J3864=\"\",\"\",IF(OR('TSA Input'!J3864=\"Yes\",'TSA Input'!J3864=\"Contingent\"),'TSA Input'!F3864,\"\"))","v":""},"","Required","Required"]
["",null,{"$f":"IF('TSA Input'!J3865=\"\",\"\",IF(OR('TSA Input'!J3865=\"Yes\",'TSA Input'!J3865=\"Contingent\"),'TSA Input'!B3865,\"Ineligible\"))","v":""},{"$f":"IF('TSA Input'!J3865=\"\",\"\",IF(OR('TSA Input'!J3865=\"Yes\",'TSA Input'!J3865=\"Contingent\"),'TSA Input'!I3865,\"\"))","v":""},{"$f":"IF('TSA Input'!J3865=\"\",\"\",IF(OR('TSA Input'!J3865=\"Yes\",'TSA Input'!J3865=\"Contingent\"),'TSA Input'!C3865,\"\"))","v":""},{"$f":"IF('TSA Input'!J3865=\"\",\"\",IF(OR('TSA Input'!J3865=\"Yes\",'TSA Input'!J3865=\"Contingent\"),'TSA Input'!D3865,\"\"))","v":""},{"$f":"IF('TSA Input'!J3865=\"\",\"\",IF(OR('TSA Input'!J3865=\"Yes\",'TSA Input'!J3865=\"Contingent\"),'TSA Input'!G3865,\"\"))","v":""},{"$f":"IF('TSA Input'!J3865=\"\",\"\",IF(OR('TSA Input'!J3865=\"Yes\",'TSA Input'!J3865=\"Contingent\"),'TSA Input'!F3865,\"\"))","v":""},"",{"$f":"IF('TSA Input'!J3865=\"\",\"\",IF(OR('TSA Input'!J3865=\"Yes\",'TSA Input'!J3865=\"Contingent\"),'TSA Input'!D3865,\"\"))","v":""},{"$f":"IF('TSA Input'!J3865=\"\",\"\",IF(OR('TSA Input'!J3865=\"Yes\",'TSA Input'!J3865=\"Contingent\"),'TSA Input'!G3865,\"\"))","v":""},{"$f":"IF('TSA Input'!J3865=\"\",\"\",IF(OR('TSA Input'!J3865=\"Yes\",'TSA Input'!J3865=\"Contingent\"),'TSA Input'!F3865,\"\"))","v":""},"","Required","Required"]
["",null,{"$f":"IF('TSA Input'!J3866=\"\",\"\",IF(OR('TSA Input'!J3866=\"Yes\",'TSA Input'!J3866=\"Contingent\"),'TSA Input'!B3866,\"Ineligible\"))","v":""},{"$f":"IF('TSA Input'!J3866=\"\",\"\",IF(OR('TSA Input'!J3866=\"Yes\",'TSA Input'!J3866=\"Contingent\"),'TSA Input'!I3866,\"\"))","v":""},{"$f":"IF('TSA Input'!J3866=\"\",\"\",IF(OR('TSA Input'!J3866=\"Yes\",'TSA Input'!J3866=\"Contingent\"),'TSA Input'!C3866,\"\"))","v":""},{"$f":"IF('TSA Input'!J3866=\"\",\"\",IF(OR('TSA Input'!J3866=\"Yes\",'TSA Input'!J3866=\"Contingent\"),'TSA Input'!D3866,\"\"))","v":""},{"$f":"IF('TSA Input'!J3866=\"\",\"\",IF(OR('TSA Input'!J3866=\"Yes\",'TSA Input'!J3866=\"Contingent\"),'TSA Input'!G3866,\"\"))","v":""},{"$f":"IF('TSA Input'!J3866=\"\",\"\",IF(OR('TSA Input'!J3866=\"Yes\",'TSA Input'!J3866=\"Contingent\"),'TSA Input'!F3866,\"\"))","v":""},"",{"$f":"IF('TSA Input'!J3866=\"\",\"\",IF(OR('TSA Input'!J3866=\"Yes\",'TSA Input'!J3866=\"Contingent\"),'TSA Input'!D3866,\"\"))","v":""},{"$f":"IF('TSA Input'!J3866=\"\",\"\",IF(OR('TSA Input'!J3866=\"Yes\",'TSA Input'!J3866=\"Contingent\"),'TSA Input'!G3866,\"\"))","v":""},{"$f":"IF('TSA Input'!J3866=\"\",\"\",IF(OR('TSA Input'!J3866=\"Yes\",'TSA Input'!J3866=\"Contingent\"),'TSA Input'!F3866,\"\"))","v":""},"","Required","Required"]
["",null,{"$f":"IF('TSA Input'!J3867=\"\",\"\",IF(OR('TSA Input'!J3867=\"Yes\",'TSA Input'!J3867=\"Contingent\"),'TSA Input'!B3867,\"Ineligible\"))","v":""},{"$f":"IF('TSA Input'!J3867=\"\",\"\",IF(OR('TSA Input'!J3867=\"Yes\",'TSA Input'!J3867=\"Contingent\"),'TSA Input'!I3867,\"\"))","v":""},{"$f":"IF('TSA Input'!J3867=\"\",\"\",IF(OR('TSA Input'!J3867=\"Yes\",'TSA Input'!J3867=\"Contingent\"),'TSA Input'!C3867,\"\"))","v":""},{"$f":"IF('TSA Input'!J3867=\"\",\"\",IF(OR('TSA Input'!J3867=\"Yes\",'TSA Input'!J3867=\"Contingent\"),'TSA Input'!D3867,\"\"))","v":""},{"$f":"IF('TSA Input'!J3867=\"\",\"\",IF(OR('TSA Input'!J3867=\"Yes\",'TSA Input'!J3867=\"Contingent\"),'TSA Input'!G3867,\"\"))","v":""},{"$f":"IF('TSA Input'!J3867=\"\",\"\",IF(OR('TSA Input'!J3867=\"Yes\",'TSA Input'!J3867=\"Contingent\"),'TSA Input'!F3867,\"\"))","v":""},"",{"$f":"IF('TSA Input'!J3867=\"\",\"\",IF(OR('TSA Input'!J3867=\"Yes\",'TSA Input'!J3867=\"Contingent\"),'TSA Input'!D3867,\"\"))","v":""},{"$f":"IF('TSA Input'!J3867=\"\",\"\",IF(OR('TSA Input'!J3867=\"Yes\",'TSA Input'!J3867=\"Contingent\"),'TSA Input'!G3867,\"\"))","v":""},{"$f":"IF('TSA Input'!J3867=\"\",\"\",IF(OR('TSA Input'!J3867=\"Yes\",'TSA Input'!J3867=\"Contingent\"),'TSA Input'!F3867,\"\"))","v":""},"","Required","Required"]
["",null,{"$f":"IF('TSA Input'!J3868=\"\",\"\",IF(OR('TSA Input'!J3868=\"Yes\",'TSA Input'!J3868=\"Contingent\"),'TSA Input'!B3868,\"Ineligible\"))","v":""},{"$f":"IF('TSA Input'!J3868=\"\",\"\",IF(OR('TSA Input'!J3868=\"Yes\",'TSA Input'!J3868=\"Contingent\"),'TSA Input'!I3868,\"\"))","v":""},{"$f":"IF('TSA Input'!J3868=\"\",\"\",IF(OR('TSA Input'!J3868=\"Yes\",'TSA Input'!J3868=\"Contingent\"),'TSA Input'!C3868,\"\"))","v":""},{"$f":"IF('TSA Input'!J3868=\"\",\"\",IF(OR('TSA Input'!J3868=\"Yes\",'TSA Input'!J3868=\"Contingent\"),'TSA Input'!D3868,\"\"))","v":""},{"$f":"IF('TSA Input'!J3868=\"\",\"\",IF(OR('TSA Input'!J3868=\"Yes\",'TSA Input'!J3868=\"Contingent\"),'TSA Input'!G3868,\"\"))","v":""},{"$f":"IF('TSA Input'!J3868=\"\",\"\",IF(OR('TSA Input'!J3868=\"Yes\",'TSA Input'!J3868=\"Contingent\"),'TSA Input'!F3868,\"\"))","v":""},"",{"$f":"IF('TSA Input'!J3868=\"\",\"\",IF(OR('TSA Input'!J3868=\"Yes\",'TSA Input'!J3868=\"Contingent\"),'TSA Input'!D3868,\"\"))","v":""},{"$f":"IF('TSA Input'!J3868=\"\",\"\",IF(OR('TSA Input'!J3868=\"Yes\",'TSA Input'!J3868=\"Contingent\"),'TSA Input'!G3868,\"\"))","v":""},{"$f":"IF('TSA Input'!J3868=\"\",\"\",IF(OR('TSA Input'!J3868=\"Yes\",'TSA Input'!J3868=\"Contingent\"),'TSA Input'!F3868,\"\"))","v":""},"","Required","Required"]
["",null,{"$f":"IF('TSA Input'!J3869=\"\",\"\",IF(OR('TSA Input'!J3869=\"Yes\",'TSA Input'!J3869=\"Contingent\"),'TSA Input'!B3869,\"Ineligible\"))","v":""},{"$f":"IF('TSA Input'!J3869=\"\",\"\",IF(OR('TSA Input'!J3869=\"Yes\",'TSA Input'!J3869=\"Contingent\"),'TSA Input'!I3869,\"\"))","v":""},{"$f":"IF('TSA Input'!J3869=\"\",\"\",IF(OR('TSA Input'!J3869=\"Yes\",'TSA Input'!J3869=\"Contingent\"),'TSA Input'!C3869,\"\"))","v":""},{"$f":"IF('TSA Input'!J3869=\"\",\"\",IF(OR('TSA Input'!J3869=\"Yes\",'TSA Input'!J3869=\"Contingent\"),'TSA Input'!D3869,\"\"))","v":""},{"$f":"IF('TSA Input'!J3869=\"\",\"\",IF(OR('TSA Input'!J3869=\"Yes\",'TSA Input'!J3869=\"Contingent\"),'TSA Input'!G3869,\"\"))","v":""},{"$f":"IF('TSA Input'!J3869=\"\",\"\",IF(OR('TSA Input'!J3869=\"Yes\",'TSA Input'!J3869=\"Contingent\"),'TSA Input'!F3869,\"\"))","v":""},"",{"$f":"IF('TSA Input'!J3869=\"\",\"\",IF(OR('TSA Input'!J3869=\"Yes\",'TSA Input'!J3869=\"Contingent\"),'TSA Input'!D3869,\"\"))","v":""},{"$f":"IF('TSA Input'!J3869=\"\",\"\",IF(OR('TSA Input'!J3869=\"Yes\",'TSA Input'!J3869=\"Contingent\"),'TSA Input'!G3869,\"\"))","v":""},{"$f":"IF('TSA Input'!J3869=\"\",\"\",IF(OR('TSA Input'!J3869=\"Yes\",'TSA Input'!J3869=\"Contingent\"),'TSA Input'!F3869,\"\"))","v":""},"","Required","Required"]
["",null,{"$f":"IF('TSA Input'!J3870=\"\",\"\",IF(OR('TSA Input'!J3870=\"Yes\",'TSA Input'!J3870=\"Contingent\"),'TSA Input'!B3870,\"Ineligible\"))","v":""},{"$f":"IF('TSA Input'!J3870=\"\",\"\",IF(OR('TSA Input'!J3870=\"Yes\",'TSA Input'!J3870=\"Contingent\"),'TSA Input'!I3870,\"\"))","v":""},{"$f":"IF('TSA Input'!J3870=\"\",\"\",IF(OR('TSA Input'!J3870=\"Yes\",'TSA Input'!J3870=\"Contingent\"),'TSA Input'!C3870,\"\"))","v":""},{"$f":"IF('TSA Input'!J3870=\"\",\"\",IF(OR('TSA Input'!J3870=\"Yes\",'TSA Input'!J3870=\"Contingent\"),'TSA Input'!D3870,\"\"))","v":""},{"$f":"IF('TSA Input'!J3870=\"\",\"\",IF(OR('TSA Input'!J3870=\"Yes\",'TSA Input'!J3870=\"Contingent\"),'TSA Input'!G3870,\"\"))","v":""},{"$f":"IF('TSA Input'!J3870=\"\",\"\",IF(OR('TSA Input'!J3870=\"Yes\",'TSA Input'!J3870=\"Contingent\"),'TSA Input'!F3870,\"\"))","v":""},"",{"$f":"IF('TSA Input'!J3870=\"\",\"\",IF(OR('TSA Input'!J3870=\"Yes\",'TSA Input'!J3870=\"Contingent\"),'TSA Input'!D3870,\"\"))","v":""},{"$f":"IF('TSA Input'!J3870=\"\",\"\",IF(OR('TSA Input'!J3870=\"Yes\",'TSA Input'!J3870=\"Contingent\"),'TSA Input'!G3870,\"\"))","v":""},{"$f":"IF('TSA Input'!J3870=\"\",\"\",IF(OR('TSA Input'!J3870=\"Yes\",'TSA Input'!J3870=\"Contingent\"),'TSA Input'!F3870,\"\"))","v":""},"","Required","Required"]
["",null,{"$f":"IF('TSA Input'!J3871=\"\",\"\",IF(OR('TSA Input'!J3871=\"Yes\",'TSA Input'!J3871=\"Contingent\"),'TSA Input'!B3871,\"Ineligible\"))","v":""},{"$f":"IF('TSA Input'!J3871=\"\",\"\",IF(OR('TSA Input'!J3871=\"Yes\",'TSA Input'!J3871=\"Contingent\"),'TSA Input'!I3871,\"\"))","v":""},{"$f":"IF('TSA Input'!J3871=\"\",\"\",IF(OR('TSA Input'!J3871=\"Yes\",'TSA Input'!J3871=\"Contingent\"),'TSA Input'!C3871,\"\"))","v":""},{"$f":"IF('TSA Input'!J3871=\"\",\"\",IF(OR('TSA Input'!J3871=\"Yes\",'TSA Input'!J3871=\"Contingent\"),'TSA Input'!D3871,\"\"))","v":""},{"$f":"IF('TSA Input'!J3871=\"\",\"\",IF(OR('TSA Input'!J3871=\"Yes\",'TSA Input'!J3871=\"Contingent\"),'TSA Input'!G3871,\"\"))","v":""},{"$f":"IF('TSA Input'!J3871=\"\",\"\",IF(OR('TSA Input'!J3871=\"Yes\",'TSA Input'!J3871=\"Contingent\"),'TSA Input'!F3871,\"\"))","v":""},"",{"$f":"IF('TSA Input'!J3871=\"\",\"\",IF(OR('TSA Input'!J3871=\"Yes\",'TSA Input'!J3871=\"Contingent\"),'TSA Input'!D3871,\"\"))","v":""},{"$f":"IF('TSA Input'!J3871=\"\",\"\",IF(OR('TSA Input'!J3871=\"Yes\",'TSA Input'!J3871=\"Contingent\"),'TSA Input'!G3871,\"\"))","v":""},{"$f":"IF('TSA Input'!J3871=\"\",\"\",IF(OR('TSA Input'!J3871=\"Yes\",'TSA Input'!J3871=\"Contingent\"),'TSA Input'!F3871,\"\"))","v":""},"","Required","Required"]
["",null,{"$f":"IF('TSA Input'!J3872=\"\",\"\",IF(OR('TSA Input'!J3872=\"Yes\",'TSA Input'!J3872=\"Contingent\"),'TSA Input'!B3872,\"Ineligible\"))","v":""},{"$f":"IF('TSA Input'!J3872=\"\",\"\",IF(OR('TSA Input'!J3872=\"Yes\",'TSA Input'!J3872=\"Contingent\"),'TSA Input'!I3872,\"\"))","v":""},{"$f":"IF('TSA Input'!J3872=\"\",\"\",IF(OR('TSA Input'!J3872=\"Yes\",'TSA Input'!J3872=\"Contingent\"),'TSA Input'!C3872,\"\"))","v":""},{"$f":"IF('TSA Input'!J3872=\"\",\"\",IF(OR('TSA Input'!J3872=\"Yes\",'TSA Input'!J3872=\"Contingent\"),'TSA Input'!D3872,\"\"))","v":""},{"$f":"IF('TSA Input'!J3872=\"\",\"\",IF(OR('TSA Input'!J3872=\"Yes\",'TSA Input'!J3872=\"Contingent\"),'TSA Input'!G3872,\"\"))","v":""},{"$f":"IF('TSA Input'!J3872=\"\",\"\",IF(OR('TSA Input'!J3872=\"Yes\",'TSA Input'!J3872=\"Contingent\"),'TSA Input'!F3872,\"\"))","v":""},"",{"$f":"IF('TSA Input'!J3872=\"\",\"\",IF(OR('TSA Input'!J3872=\"Yes\",'TSA Input'!J3872=\"Contingent\"),'TSA Input'!D3872,\"\"))","v":""},{"$f":"IF('TSA Input'!J3872=\"\",\"\",IF(OR('TSA Input'!J3872=\"Yes\",'TSA Input'!J3872=\"Contingent\"),'TSA Input'!G3872,\"\"))","v":""},{"$f":"IF('TSA Input'!J3872=\"\",\"\",IF(OR('TSA Input'!J3872=\"Yes\",'TSA Input'!J3872=\"Contingent\"),'TSA Input'!F3872,\"\"))","v":""},"","Required","Required"]
["",null,{"$f":"IF('TSA Input'!J3873=\"\",\"\",IF(OR('TSA Input'!J3873=\"Yes\",'TSA Input'!J3873=\"Contingent\"),'TSA Input'!B3873,\"Ineligible\"))","v":""},{"$f":"IF('TSA Input'!J3873=\"\",\"\",IF(OR('TSA Input'!J3873=\"Yes\",'TSA Input'!J3873=\"Contingent\"),'TSA Input'!I3873,\"\"))","v":""},{"$f":"IF('TSA Input'!J3873=\"\",\"\",IF(OR('TSA Input'!J3873=\"Yes\",'TSA Input'!J3873=\"Contingent\"),'TSA Input'!C3873,\"\"))","v":""},{"$f":"IF('TSA Input'!J3873=\"\",\"\",IF(OR('TSA Input'!J3873=\"Yes\",'TSA Input'!J3873=\"Contingent\"),'TSA Input'!D3873,\"\"))","v":""},{"$f":"IF('TSA Input'!J3873=\"\",\"\",IF(OR('TSA Input'!J3873=\"Yes\",'TSA Input'!J3873=\"Contingent\"),'TSA Input'!G3873,\"\"))","v":""},{"$f":"IF('TSA Input'!J3873=\"\",\"\",IF(OR('TSA Input'!J3873=\"Yes\",'TSA Input'!J3873=\"Contingent\"),'TSA Input'!F3873,\"\"))","v":""},"",{"$f":"IF('TSA Input'!J3873=\"\",\"\",IF(OR('TSA Input'!J3873=\"Yes\",'TSA Input'!J3873=\"Contingent\"),'TSA Input'!D3873,\"\"))","v":""},{"$f":"IF('TSA Input'!J3873=\"\",\"\",IF(OR('TSA Input'!J3873=\"Yes\",'TSA Input'!J3873=\"Contingent\"),'TSA Input'!G3873,\"\"))","v":""},{"$f":"IF('TSA Input'!J3873=\"\",\"\",IF(OR('TSA Input'!J3873=\"Yes\",'TSA Input'!J3873=\"Contingent\"),'TSA Input'!F3873,\"\"))","v":""},"","Required","Required"]
["",null,{"$f":"IF('TSA Input'!J3874=\"\",\"\",IF(OR('TSA Input'!J3874=\"Yes\",'TSA Input'!J3874=\"Contingent\"),'TSA Input'!B3874,\"Ineligible\"))","v":""},{"$f":"IF('TSA Input'!J3874=\"\",\"\",IF(OR('TSA Input'!J3874=\"Yes\",'TSA Input'!J3874=\"Contingent\"),'TSA Input'!I3874,\"\"))","v":""},{"$f":"IF('TSA Input'!J3874=\"\",\"\",IF(OR('TSA Input'!J3874=\"Yes\",'TSA Input'!J3874=\"Contingent\"),'TSA Input'!C3874,\"\"))","v":""},{"$f":"IF('TSA Input'!J3874=\"\",\"\",IF(OR('TSA Input'!J3874=\"Yes\",'TSA Input'!J3874=\"Contingent\"),'TSA Input'!D3874,\"\"))","v":""},{"$f":"IF('TSA Input'!J3874=\"\",\"\",IF(OR('TSA Input'!J3874=\"Yes\",'TSA Input'!J3874=\"Contingent\"),'TSA Input'!G3874,\"\"))","v":""},{"$f":"IF('TSA Input'!J3874=\"\",\"\",IF(OR('TSA Input'!J3874=\"Yes\",'TSA Input'!J3874=\"Contingent\"),'TSA Input'!F3874,\"\"))","v":""},"",{"$f":"IF('TSA Input'!J3874=\"\",\"\",IF(OR('TSA Input'!J3874=\"Yes\",'TSA Input'!J3874=\"Contingent\"),'TSA Input'!D3874,\"\"))","v":""},{"$f":"IF('TSA Input'!J3874=\"\",\"\",IF(OR('TSA Input'!J3874=\"Yes\",'TSA Input'!J3874=\"Contingent\"),'TSA Input'!G3874,\"\"))","v":""},{"$f":"IF('TSA Input'!J3874=\"\",\"\",IF(OR('TSA Input'!J3874=\"Yes\",'TSA Input'!J3874=\"Contingent\"),'TSA Input'!F3874,\"\"))","v":""},"","Required","Required"]
["",null,{"$f":"IF('TSA Input'!J3875=\"\",\"\",IF(OR('TSA Input'!J3875=\"Yes\",'TSA Input'!J3875=\"Contingent\"),'TSA Input'!B3875,\"Ineligible\"))","v":""},{"$f":"IF('TSA Input'!J3875=\"\",\"\",IF(OR('TSA Input'!J3875=\"Yes\",'TSA Input'!J3875=\"Contingent\"),'TSA Input'!I3875,\"\"))","v":""},{"$f":"IF('TSA Input'!J3875=\"\",\"\",IF(OR('TSA Input'!J3875=\"Yes\",'TSA Input'!J3875=\"Contingent\"),'TSA Input'!C3875,\"\"))","v":""},{"$f":"IF('TSA Input'!J3875=\"\",\"\",IF(OR('TSA Input'!J3875=\"Yes\",'TSA Input'!J3875=\"Contingent\"),'TSA Input'!D3875,\"\"))","v":""},{"$f":"IF('TSA Input'!J3875=\"\",\"\",IF(OR('TSA Input'!J3875=\"Yes\",'TSA Input'!J3875=\"Contingent\"),'TSA Input'!G3875,\"\"))","v":""},{"$f":"IF('TSA Input'!J3875=\"\",\"\",IF(OR('TSA Input'!J3875=\"Yes\",'TSA Input'!J3875=\"Contingent\"),'TSA Input'!F3875,\"\"))","v":""},"",{"$f":"IF('TSA Input'!J3875=\"\",\"\",IF(OR('TSA Input'!J3875=\"Yes\",'TSA Input'!J3875=\"Contingent\"),'TSA Input'!D3875,\"\"))","v":""},{"$f":"IF('TSA Input'!J3875=\"\",\"\",IF(OR('TSA Input'!J3875=\"Yes\",'TSA Input'!J3875=\"Contingent\"),'TSA Input'!G3875,\"\"))","v":""},{"$f":"IF('TSA Input'!J3875=\"\",\"\",IF(OR('TSA Input'!J3875=\"Yes\",'TSA Input'!J3875=\"Contingent\"),'TSA Input'!F3875,\"\"))","v":""},"","Required","Required"]
["",null,{"$f":"IF('TSA Input'!J3876=\"\",\"\",IF(OR('TSA Input'!J3876=\"Yes\",'TSA Input'!J3876=\"Contingent\"),'TSA Input'!B3876,\"Ineligible\"))","v":""},{"$f":"IF('TSA Input'!J3876=\"\",\"\",IF(OR('TSA Input'!J3876=\"Yes\",'TSA Input'!J3876=\"Contingent\"),'TSA Input'!I3876,\"\"))","v":""},{"$f":"IF('TSA Input'!J3876=\"\",\"\",IF(OR('TSA Input'!J3876=\"Yes\",'TSA Input'!J3876=\"Contingent\"),'TSA Input'!C3876,\"\"))","v":""},{"$f":"IF('TSA Input'!J3876=\"\",\"\",IF(OR('TSA Input'!J3876=\"Yes\",'TSA Input'!J3876=\"Contingent\"),'TSA Input'!D3876,\"\"))","v":""},{"$f":"IF('TSA Input'!J3876=\"\",\"\",IF(OR('TSA Input'!J3876=\"Yes\",'TSA Input'!J3876=\"Contingent\"),'TSA Input'!G3876,\"\"))","v":""},{"$f":"IF('TSA Input'!J3876=\"\",\"\",IF(OR('TSA Input'!J3876=\"Yes\",'TSA Input'!J3876=\"Contingent\"),'TSA Input'!F3876,\"\"))","v":""},"",{"$f":"IF('TSA Input'!J3876=\"\",\"\",IF(OR('TSA Input'!J3876=\"Yes\",'TSA Input'!J3876=\"Contingent\"),'TSA Input'!D3876,\"\"))","v":""},{"$f":"IF('TSA Input'!J3876=\"\",\"\",IF(OR('TSA Input'!J3876=\"Yes\",'TSA Input'!J3876=\"Contingent\"),'TSA Input'!G3876,\"\"))","v":""},{"$f":"IF('TSA Input'!J3876=\"\",\"\",IF(OR('TSA Input'!J3876=\"Yes\",'TSA Input'!J3876=\"Contingent\"),'TSA Input'!F3876,\"\"))","v":""},"","Required","Required"]
["",null,{"$f":"IF('TSA Input'!J3877=\"\",\"\",IF(OR('TSA Input'!J3877=\"Yes\",'TSA Input'!J3877=\"Contingent\"),'TSA Input'!B3877,\"Ineligible\"))","v":""},{"$f":"IF('TSA Input'!J3877=\"\",\"\",IF(OR('TSA Input'!J3877=\"Yes\",'TSA Input'!J3877=\"Contingent\"),'TSA Input'!I3877,\"\"))","v":""},{"$f":"IF('TSA Input'!J3877=\"\",\"\",IF(OR('TSA Input'!J3877=\"Yes\",'TSA Input'!J3877=\"Contingent\"),'TSA Input'!C3877,\"\"))","v":""},{"$f":"IF('TSA Input'!J3877=\"\",\"\",IF(OR('TSA Input'!J3877=\"Yes\",'TSA Input'!J3877=\"Contingent\"),'TSA Input'!D3877,\"\"))","v":""},{"$f":"IF('TSA Input'!J3877=\"\",\"\",IF(OR('TSA Input'!J3877=\"Yes\",'TSA Input'!J3877=\"Contingent\"),'TSA Input'!G3877,\"\"))","v":""},{"$f":"IF('TSA Input'!J3877=\"\",\"\",IF(OR('TSA Input'!J3877=\"Yes\",'TSA Input'!J3877=\"Contingent\"),'TSA Input'!F3877,\"\"))","v":""},"",{"$f":"IF('TSA Input'!J3877=\"\",\"\",IF(OR('TSA Input'!J3877=\"Yes\",'TSA Input'!J3877=\"Contingent\"),'TSA Input'!D3877,\"\"))","v":""},{"$f":"IF('TSA Input'!J3877=\"\",\"\",IF(OR('TSA Input'!J3877=\"Yes\",'TSA Input'!J3877=\"Contingent\"),'TSA Input'!G3877,\"\"))","v":""},{"$f":"IF('TSA Input'!J3877=\"\",\"\",IF(OR('TSA Input'!J3877=\"Yes\",'TSA Input'!J3877=\"Contingent\"),'TSA Input'!F3877,\"\"))","v":""},"","Required","Required"]
["",null,{"$f":"IF('TSA Input'!J3878=\"\",\"\",IF(OR('TSA Input'!J3878=\"Yes\",'TSA Input'!J3878=\"Contingent\"),'TSA Input'!B3878,\"Ineligible\"))","v":""},{"$f":"IF('TSA Input'!J3878=\"\",\"\",IF(OR('TSA Input'!J3878=\"Yes\",'TSA Input'!J3878=\"Contingent\"),'TSA Input'!I3878,\"\"))","v":""},{"$f":"IF('TSA Input'!J3878=\"\",\"\",IF(OR('TSA Input'!J3878=\"Yes\",'TSA Input'!J3878=\"Contingent\"),'TSA Input'!C3878,\"\"))","v":""},{"$f":"IF('TSA Input'!J3878=\"\",\"\",IF(OR('TSA Input'!J3878=\"Yes\",'TSA Input'!J3878=\"Contingent\"),'TSA Input'!D3878,\"\"))","v":""},{"$f":"IF('TSA Input'!J3878=\"\",\"\",IF(OR('TSA Input'!J3878=\"Yes\",'TSA Input'!J3878=\"Contingent\"),'TSA Input'!G3878,\"\"))","v":""},{"$f":"IF('TSA Input'!J3878=\"\",\"\",IF(OR('TSA Input'!J3878=\"Yes\",'TSA Input'!J3878=\"Contingent\"),'TSA Input'!F3878,\"\"))","v":""},"",{"$f":"IF('TSA Input'!J3878=\"\",\"\",IF(OR('TSA Input'!J3878=\"Yes\",'TSA Input'!J3878=\"Contingent\"),'TSA Input'!D3878,\"\"))","v":""},{"$f":"IF('TSA Input'!J3878=\"\",\"\",IF(OR('TSA Input'!J3878=\"Yes\",'TSA Input'!J3878=\"Contingent\"),'TSA Input'!G3878,\"\"))","v":""},{"$f":"IF('TSA Input'!J3878=\"\",\"\",IF(OR('TSA Input'!J3878=\"Yes\",'TSA Input'!J3878=\"Contingent\"),'TSA Input'!F3878,\"\"))","v":""},"","Required","Required"]
["",null,{"$f":"IF('TSA Input'!J3879=\"\",\"\",IF(OR('TSA Input'!J3879=\"Yes\",'TSA Input'!J3879=\"Contingent\"),'TSA Input'!B3879,\"Ineligible\"))","v":""},{"$f":"IF('TSA Input'!J3879=\"\",\"\",IF(OR('TSA Input'!J3879=\"Yes\",'TSA Input'!J3879=\"Contingent\"),'TSA Input'!I3879,\"\"))","v":""},{"$f":"IF('TSA Input'!J3879=\"\",\"\",IF(OR('TSA Input'!J3879=\"Yes\",'TSA Input'!J3879=\"Contingent\"),'TSA Input'!C3879,\"\"))","v":""},{"$f":"IF('TSA Input'!J3879=\"\",\"\",IF(OR('TSA Input'!J3879=\"Yes\",'TSA Input'!J3879=\"Contingent\"),'TSA Input'!D3879,\"\"))","v":""},{"$f":"IF('TSA Input'!J3879=\"\",\"\",IF(OR('TSA Input'!J3879=\"Yes\",'TSA Input'!J3879=\"Contingent\"),'TSA Input'!G3879,\"\"))","v":""},{"$f":"IF('TSA Input'!J3879=\"\",\"\",IF(OR('TSA Input'!J3879=\"Yes\",'TSA Input'!J3879=\"Contingent\"),'TSA Input'!F3879,\"\"))","v":""},"",{"$f":"IF('TSA Input'!J3879=\"\",\"\",IF(OR('TSA Input'!J3879=\"Yes\",'TSA Input'!J3879=\"Contingent\"),'TSA Input'!D3879,\"\"))","v":""},{"$f":"IF('TSA Input'!J3879=\"\",\"\",IF(OR('TSA Input'!J3879=\"Yes\",'TSA Input'!J3879=\"Contingent\"),'TSA Input'!G3879,\"\"))","v":""},{"$f":"IF('TSA Input'!J3879=\"\",\"\",IF(OR('TSA Input'!J3879=\"Yes\",'TSA Input'!J3879=\"Contingent\"),'TSA Input'!F3879,\"\"))","v":""},"","Required","Required"]
["",null,{"$f":"IF('TSA Input'!J3880=\"\",\"\",IF(OR('TSA Input'!J3880=\"Yes\",'TSA Input'!J3880=\"Contingent\"),'TSA Input'!B3880,\"Ineligible\"))","v":""},{"$f":"IF('TSA Input'!J3880=\"\",\"\",IF(OR('TSA Input'!J3880=\"Yes\",'TSA Input'!J3880=\"Contingent\"),'TSA Input'!I3880,\"\"))","v":""},{"$f":"IF('TSA Input'!J3880=\"\",\"\",IF(OR('TSA Input'!J3880=\"Yes\",'TSA Input'!J3880=\"Contingent\"),'TSA Input'!C3880,\"\"))","v":""},{"$f":"IF('TSA Input'!J3880=\"\",\"\",IF(OR('TSA Input'!J3880=\"Yes\",'TSA Input'!J3880=\"Contingent\"),'TSA Input'!D3880,\"\"))","v":""},{"$f":"IF('TSA Input'!J3880=\"\",\"\",IF(OR('TSA Input'!J3880=\"Yes\",'TSA Input'!J3880=\"Contingent\"),'TSA Input'!G3880,\"\"))","v":""},{"$f":"IF('TSA Input'!J3880=\"\",\"\",IF(OR('TSA Input'!J3880=\"Yes\",'TSA Input'!J3880=\"Contingent\"),'TSA Input'!F3880,\"\"))","v":""},"",{"$f":"IF('TSA Input'!J3880=\"\",\"\",IF(OR('TSA Input'!J3880=\"Yes\",'TSA Input'!J3880=\"Contingent\"),'TSA Input'!D3880,\"\"))","v":""},{"$f":"IF('TSA Input'!J3880=\"\",\"\",IF(OR('TSA Input'!J3880=\"Yes\",'TSA Input'!J3880=\"Contingent\"),'TSA Input'!G3880,\"\"))","v":""},{"$f":"IF('TSA Input'!J3880=\"\",\"\",IF(OR('TSA Input'!J3880=\"Yes\",'TSA Input'!J3880=\"Contingent\"),'TSA Input'!F3880,\"\"))","v":""},"","Required","Required"]
["",null,{"$f":"IF('TSA Input'!J3881=\"\",\"\",IF(OR('TSA Input'!J3881=\"Yes\",'TSA Input'!J3881=\"Contingent\"),'TSA Input'!B3881,\"Ineligible\"))","v":""},{"$f":"IF('TSA Input'!J3881=\"\",\"\",IF(OR('TSA Input'!J3881=\"Yes\",'TSA Input'!J3881=\"Contingent\"),'TSA Input'!I3881,\"\"))","v":""},{"$f":"IF('TSA Input'!J3881=\"\",\"\",IF(OR('TSA Input'!J3881=\"Yes\",'TSA Input'!J3881=\"Contingent\"),'TSA Input'!C3881,\"\"))","v":""},{"$f":"IF('TSA Input'!J3881=\"\",\"\",IF(OR('TSA Input'!J3881=\"Yes\",'TSA Input'!J3881=\"Contingent\"),'TSA Input'!D3881,\"\"))","v":""},{"$f":"IF('TSA Input'!J3881=\"\",\"\",IF(OR('TSA Input'!J3881=\"Yes\",'TSA Input'!J3881=\"Contingent\"),'TSA Input'!G3881,\"\"))","v":""},{"$f":"IF('TSA Input'!J3881=\"\",\"\",IF(OR('TSA Input'!J3881=\"Yes\",'TSA Input'!J3881=\"Contingent\"),'TSA Input'!F3881,\"\"))","v":""},"",{"$f":"IF('TSA Input'!J3881=\"\",\"\",IF(OR('TSA Input'!J3881=\"Yes\",'TSA Input'!J3881=\"Contingent\"),'TSA Input'!D3881,\"\"))","v":""},{"$f":"IF('TSA Input'!J3881=\"\",\"\",IF(OR('TSA Input'!J3881=\"Yes\",'TSA Input'!J3881=\"Contingent\"),'TSA Input'!G3881,\"\"))","v":""},{"$f":"IF('TSA Input'!J3881=\"\",\"\",IF(OR('TSA Input'!J3881=\"Yes\",'TSA Input'!J3881=\"Contingent\"),'TSA Input'!F3881,\"\"))","v":""},"","Required","Required"]
["",null,{"$f":"IF('TSA Input'!J3882=\"\",\"\",IF(OR('TSA Input'!J3882=\"Yes\",'TSA Input'!J3882=\"Contingent\"),'TSA Input'!B3882,\"Ineligible\"))","v":""},{"$f":"IF('TSA Input'!J3882=\"\",\"\",IF(OR('TSA Input'!J3882=\"Yes\",'TSA Input'!J3882=\"Contingent\"),'TSA Input'!I3882,\"\"))","v":""},{"$f":"IF('TSA Input'!J3882=\"\",\"\",IF(OR('TSA Input'!J3882=\"Yes\",'TSA Input'!J3882=\"Contingent\"),'TSA Input'!C3882,\"\"))","v":""},{"$f":"IF('TSA Input'!J3882=\"\",\"\",IF(OR('TSA Input'!J3882=\"Yes\",'TSA Input'!J3882=\"Contingent\"),'TSA Input'!D3882,\"\"))","v":""},{"$f":"IF('TSA Input'!J3882=\"\",\"\",IF(OR('TSA Input'!J3882=\"Yes\",'TSA Input'!J3882=\"Contingent\"),'TSA Input'!G3882,\"\"))","v":""},{"$f":"IF('TSA Input'!J3882=\"\",\"\",IF(OR('TSA Input'!J3882=\"Yes\",'TSA Input'!J3882=\"Contingent\"),'TSA Input'!F3882,\"\"))","v":""},"",{"$f":"IF('TSA Input'!J3882=\"\",\"\",IF(OR('TSA Input'!J3882=\"Yes\",'TSA Input'!J3882=\"Contingent\"),'TSA Input'!D3882,\"\"))","v":""},{"$f":"IF('TSA Input'!J3882=\"\",\"\",IF(OR('TSA Input'!J3882=\"Yes\",'TSA Input'!J3882=\"Contingent\"),'TSA Input'!G3882,\"\"))","v":""},{"$f":"IF('TSA Input'!J3882=\"\",\"\",IF(OR('TSA Input'!J3882=\"Yes\",'TSA Input'!J3882=\"Contingent\"),'TSA Input'!F3882,\"\"))","v":""},"","Required","Required"]
["",null,{"$f":"IF('TSA Input'!J3883=\"\",\"\",IF(OR('TSA Input'!J3883=\"Yes\",'TSA Input'!J3883=\"Contingent\"),'TSA Input'!B3883,\"Ineligible\"))","v":""},{"$f":"IF('TSA Input'!J3883=\"\",\"\",IF(OR('TSA Input'!J3883=\"Yes\",'TSA Input'!J3883=\"Contingent\"),'TSA Input'!I3883,\"\"))","v":""},{"$f":"IF('TSA Input'!J3883=\"\",\"\",IF(OR('TSA Input'!J3883=\"Yes\",'TSA Input'!J3883=\"Contingent\"),'TSA Input'!C3883,\"\"))","v":""},{"$f":"IF('TSA Input'!J3883=\"\",\"\",IF(OR('TSA Input'!J3883=\"Yes\",'TSA Input'!J3883=\"Contingent\"),'TSA Input'!D3883,\"\"))","v":""},{"$f":"IF('TSA Input'!J3883=\"\",\"\",IF(OR('TSA Input'!J3883=\"Yes\",'TSA Input'!J3883=\"Contingent\"),'TSA Input'!G3883,\"\"))","v":""},{"$f":"IF('TSA Input'!J3883=\"\",\"\",IF(OR('TSA Input'!J3883=\"Yes\",'TSA Input'!J3883=\"Contingent\"),'TSA Input'!F3883,\"\"))","v":""},"",{"$f":"IF('TSA Input'!J3883=\"\",\"\",IF(OR('TSA Input'!J3883=\"Yes\",'TSA Input'!J3883=\"Contingent\"),'TSA Input'!D3883,\"\"))","v":""},{"$f":"IF('TSA Input'!J3883=\"\",\"\",IF(OR('TSA Input'!J3883=\"Yes\",'TSA Input'!J3883=\"Contingent\"),'TSA Input'!G3883,\"\"))","v":""},{"$f":"IF('TSA Input'!J3883=\"\",\"\",IF(OR('TSA Input'!J3883=\"Yes\",'TSA Input'!J3883=\"Contingent\"),'TSA Input'!F3883,\"\"))","v":""},"","Required","Required"]
["",null,{"$f":"IF('TSA Input'!J3884=\"\",\"\",IF(OR('TSA Input'!J3884=\"Yes\",'TSA Input'!J3884=\"Contingent\"),'TSA Input'!B3884,\"Ineligible\"))","v":""},{"$f":"IF('TSA Input'!J3884=\"\",\"\",IF(OR('TSA Input'!J3884=\"Yes\",'TSA Input'!J3884=\"Contingent\"),'TSA Input'!I3884,\"\"))","v":""},{"$f":"IF('TSA Input'!J3884=\"\",\"\",IF(OR('TSA Input'!J3884=\"Yes\",'TSA Input'!J3884=\"Contingent\"),'TSA Input'!C3884,\"\"))","v":""},{"$f":"IF('TSA Input'!J3884=\"\",\"\",IF(OR('TSA Input'!J3884=\"Yes\",'TSA Input'!J3884=\"Contingent\"),'TSA Input'!D3884,\"\"))","v":""},{"$f":"IF('TSA Input'!J3884=\"\",\"\",IF(OR('TSA Input'!J3884=\"Yes\",'TSA Input'!J3884=\"Contingent\"),'TSA Input'!G3884,\"\"))","v":""},{"$f":"IF('TSA Input'!J3884=\"\",\"\",IF(OR('TSA Input'!J3884=\"Yes\",'TSA Input'!J3884=\"Contingent\"),'TSA Input'!F3884,\"\"))","v":""},"",{"$f":"IF('TSA Input'!J3884=\"\",\"\",IF(OR('TSA Input'!J3884=\"Yes\",'TSA Input'!J3884=\"Contingent\"),'TSA Input'!D3884,\"\"))","v":""},{"$f":"IF('TSA Input'!J3884=\"\",\"\",IF(OR('TSA Input'!J3884=\"Yes\",'TSA Input'!J3884=\"Contingent\"),'TSA Input'!G3884,\"\"))","v":""},{"$f":"IF('TSA Input'!J3884=\"\",\"\",IF(OR('TSA Input'!J3884=\"Yes\",'TSA Input'!J3884=\"Contingent\"),'TSA Input'!F3884,\"\"))","v":""},"","Required","Required"]
["",null,{"$f":"IF('TSA Input'!J3885=\"\",\"\",IF(OR('TSA Input'!J3885=\"Yes\",'TSA Input'!J3885=\"Contingent\"),'TSA Input'!B3885,\"Ineligible\"))","v":""},{"$f":"IF('TSA Input'!J3885=\"\",\"\",IF(OR('TSA Input'!J3885=\"Yes\",'TSA Input'!J3885=\"Contingent\"),'TSA Input'!I3885,\"\"))","v":""},{"$f":"IF('TSA Input'!J3885=\"\",\"\",IF(OR('TSA Input'!J3885=\"Yes\",'TSA Input'!J3885=\"Contingent\"),'TSA Input'!C3885,\"\"))","v":""},{"$f":"IF('TSA Input'!J3885=\"\",\"\",IF(OR('TSA Input'!J3885=\"Yes\",'TSA Input'!J3885=\"Contingent\"),'TSA Input'!D3885,\"\"))","v":""},{"$f":"IF('TSA Input'!J3885=\"\",\"\",IF(OR('TSA Input'!J3885=\"Yes\",'TSA Input'!J3885=\"Contingent\"),'TSA Input'!G3885,\"\"))","v":""},{"$f":"IF('TSA Input'!J3885=\"\",\"\",IF(OR('TSA Input'!J3885=\"Yes\",'TSA Input'!J3885=\"Contingent\"),'TSA Input'!F3885,\"\"))","v":""},"",{"$f":"IF('TSA Input'!J3885=\"\",\"\",IF(OR('TSA Input'!J3885=\"Yes\",'TSA Input'!J3885=\"Contingent\"),'TSA Input'!D3885,\"\"))","v":""},{"$f":"IF('TSA Input'!J3885=\"\",\"\",IF(OR('TSA Input'!J3885=\"Yes\",'TSA Input'!J3885=\"Contingent\"),'TSA Input'!G3885,\"\"))","v":""},{"$f":"IF('TSA Input'!J3885=\"\",\"\",IF(OR('TSA Input'!J3885=\"Yes\",'TSA Input'!J3885=\"Contingent\"),'TSA Input'!F3885,\"\"))","v":""},"","Required","Required"]
["",null,{"$f":"IF('TSA Input'!J3886=\"\",\"\",IF(OR('TSA Input'!J3886=\"Yes\",'TSA Input'!J3886=\"Contingent\"),'TSA Input'!B3886,\"Ineligible\"))","v":""},{"$f":"IF('TSA Input'!J3886=\"\",\"\",IF(OR('TSA Input'!J3886=\"Yes\",'TSA Input'!J3886=\"Contingent\"),'TSA Input'!I3886,\"\"))","v":""},{"$f":"IF('TSA Input'!J3886=\"\",\"\",IF(OR('TSA Input'!J3886=\"Yes\",'TSA Input'!J3886=\"Contingent\"),'TSA Input'!C3886,\"\"))","v":""},{"$f":"IF('TSA Input'!J3886=\"\",\"\",IF(OR('TSA Input'!J3886=\"Yes\",'TSA Input'!J3886=\"Contingent\"),'TSA Input'!D3886,\"\"))","v":""},{"$f":"IF('TSA Input'!J3886=\"\",\"\",IF(OR('TSA Input'!J3886=\"Yes\",'TSA Input'!J3886=\"Contingent\"),'TSA Input'!G3886,\"\"))","v":""},{"$f":"IF('TSA Input'!J3886=\"\",\"\",IF(OR('TSA Input'!J3886=\"Yes\",'TSA Input'!J3886=\"Contingent\"),'TSA Input'!F3886,\"\"))","v":""},"",{"$f":"IF('TSA Input'!J3886=\"\",\"\",IF(OR('TSA Input'!J3886=\"Yes\",'TSA Input'!J3886=\"Contingent\"),'TSA Input'!D3886,\"\"))","v":""},{"$f":"IF('TSA Input'!J3886=\"\",\"\",IF(OR('TSA Input'!J3886=\"Yes\",'TSA Input'!J3886=\"Contingent\"),'TSA Input'!G3886,\"\"))","v":""},{"$f":"IF('TSA Input'!J3886=\"\",\"\",IF(OR('TSA Input'!J3886=\"Yes\",'TSA Input'!J3886=\"Contingent\"),'TSA Input'!F3886,\"\"))","v":""},"","Required","Required"]
["",null,{"$f":"IF('TSA Input'!J3887=\"\",\"\",IF(OR('TSA Input'!J3887=\"Yes\",'TSA Input'!J3887=\"Contingent\"),'TSA Input'!B3887,\"Ineligible\"))","v":""},{"$f":"IF('TSA Input'!J3887=\"\",\"\",IF(OR('TSA Input'!J3887=\"Yes\",'TSA Input'!J3887=\"Contingent\"),'TSA Input'!I3887,\"\"))","v":""},{"$f":"IF('TSA Input'!J3887=\"\",\"\",IF(OR('TSA Input'!J3887=\"Yes\",'TSA Input'!J3887=\"Contingent\"),'TSA Input'!C3887,\"\"))","v":""},{"$f":"IF('TSA Input'!J3887=\"\",\"\",IF(OR('TSA Input'!J3887=\"Yes\",'TSA Input'!J3887=\"Contingent\"),'TSA Input'!D3887,\"\"))","v":""},{"$f":"IF('TSA Input'!J3887=\"\",\"\",IF(OR('TSA Input'!J3887=\"Yes\",'TSA Input'!J3887=\"Contingent\"),'TSA Input'!G3887,\"\"))","v":""},{"$f":"IF('TSA Input'!J3887=\"\",\"\",IF(OR('TSA Input'!J3887=\"Yes\",'TSA Input'!J3887=\"Contingent\"),'TSA Input'!F3887,\"\"))","v":""},"",{"$f":"IF('TSA Input'!J3887=\"\",\"\",IF(OR('TSA Input'!J3887=\"Yes\",'TSA Input'!J3887=\"Contingent\"),'TSA Input'!D3887,\"\"))","v":""},{"$f":"IF('TSA Input'!J3887=\"\",\"\",IF(OR('TSA Input'!J3887=\"Yes\",'TSA Input'!J3887=\"Contingent\"),'TSA Input'!G3887,\"\"))","v":""},{"$f":"IF('TSA Input'!J3887=\"\",\"\",IF(OR('TSA Input'!J3887=\"Yes\",'TSA Input'!J3887=\"Contingent\"),'TSA Input'!F3887,\"\"))","v":""},"","Required","Required"]
["",null,{"$f":"IF('TSA Input'!J3888=\"\",\"\",IF(OR('TSA Input'!J3888=\"Yes\",'TSA Input'!J3888=\"Contingent\"),'TSA Input'!B3888,\"Ineligible\"))","v":""},{"$f":"IF('TSA Input'!J3888=\"\",\"\",IF(OR('TSA Input'!J3888=\"Yes\",'TSA Input'!J3888=\"Contingent\"),'TSA Input'!I3888,\"\"))","v":""},{"$f":"IF('TSA Input'!J3888=\"\",\"\",IF(OR('TSA Input'!J3888=\"Yes\",'TSA Input'!J3888=\"Contingent\"),'TSA Input'!C3888,\"\"))","v":""},{"$f":"IF('TSA Input'!J3888=\"\",\"\",IF(OR('TSA Input'!J3888=\"Yes\",'TSA Input'!J3888=\"Contingent\"),'TSA Input'!D3888,\"\"))","v":""},{"$f":"IF('TSA Input'!J3888=\"\",\"\",IF(OR('TSA Input'!J3888=\"Yes\",'TSA Input'!J3888=\"Contingent\"),'TSA Input'!G3888,\"\"))","v":""},{"$f":"IF('TSA Input'!J3888=\"\",\"\",IF(OR('TSA Input'!J3888=\"Yes\",'TSA Input'!J3888=\"Contingent\"),'TSA Input'!F3888,\"\"))","v":""},"",{"$f":"IF('TSA Input'!J3888=\"\",\"\",IF(OR('TSA Input'!J3888=\"Yes\",'TSA Input'!J3888=\"Contingent\"),'TSA Input'!D3888,\"\"))","v":""},{"$f":"IF('TSA Input'!J3888=\"\",\"\",IF(OR('TSA Input'!J3888=\"Yes\",'TSA Input'!J3888=\"Contingent\"),'TSA Input'!G3888,\"\"))","v":""},{"$f":"IF('TSA Input'!J3888=\"\",\"\",IF(OR('TSA Input'!J3888=\"Yes\",'TSA Input'!J3888=\"Contingent\"),'TSA Input'!F3888,\"\"))","v":""},"","Required","Required"]
["",null,{"$f":"IF('TSA Input'!J3889=\"\",\"\",IF(OR('TSA Input'!J3889=\"Yes\",'TSA Input'!J3889=\"Contingent\"),'TSA Input'!B3889,\"Ineligible\"))","v":""},{"$f":"IF('TSA Input'!J3889=\"\",\"\",IF(OR('TSA Input'!J3889=\"Yes\",'TSA Input'!J3889=\"Contingent\"),'TSA Input'!I3889,\"\"))","v":""},{"$f":"IF('TSA Input'!J3889=\"\",\"\",IF(OR('TSA Input'!J3889=\"Yes\",'TSA Input'!J3889=\"Contingent\"),'TSA Input'!C3889,\"\"))","v":""},{"$f":"IF('TSA Input'!J3889=\"\",\"\",IF(OR('TSA Input'!J3889=\"Yes\",'TSA Input'!J3889=\"Contingent\"),'TSA Input'!D3889,\"\"))","v":""},{"$f":"IF('TSA Input'!J3889=\"\",\"\",IF(OR('TSA Input'!J3889=\"Yes\",'TSA Input'!J3889=\"Contingent\"),'TSA Input'!G3889,\"\"))","v":""},{"$f":"IF('TSA Input'!J3889=\"\",\"\",IF(OR('TSA Input'!J3889=\"Yes\",'TSA Input'!J3889=\"Contingent\"),'TSA Input'!F3889,\"\"))","v":""},"",{"$f":"IF('TSA Input'!J3889=\"\",\"\",IF(OR('TSA Input'!J3889=\"Yes\",'TSA Input'!J3889=\"Contingent\"),'TSA Input'!D3889,\"\"))","v":""},{"$f":"IF('TSA Input'!J3889=\"\",\"\",IF(OR('TSA Input'!J3889=\"Yes\",'TSA Input'!J3889=\"Contingent\"),'TSA Input'!G3889,\"\"))","v":""},{"$f":"IF('TSA Input'!J3889=\"\",\"\",IF(OR('TSA Input'!J3889=\"Yes\",'TSA Input'!J3889=\"Contingent\"),'TSA Input'!F3889,\"\"))","v":""},"","Required","Required"]
["",null,{"$f":"IF('TSA Input'!J3890=\"\",\"\",IF(OR('TSA Input'!J3890=\"Yes\",'TSA Input'!J3890=\"Contingent\"),'TSA Input'!B3890,\"Ineligible\"))","v":""},{"$f":"IF('TSA Input'!J3890=\"\",\"\",IF(OR('TSA Input'!J3890=\"Yes\",'TSA Input'!J3890=\"Contingent\"),'TSA Input'!I3890,\"\"))","v":""},{"$f":"IF('TSA Input'!J3890=\"\",\"\",IF(OR('TSA Input'!J3890=\"Yes\",'TSA Input'!J3890=\"Contingent\"),'TSA Input'!C3890,\"\"))","v":""},{"$f":"IF('TSA Input'!J3890=\"\",\"\",IF(OR('TSA Input'!J3890=\"Yes\",'TSA Input'!J3890=\"Contingent\"),'TSA Input'!D3890,\"\"))","v":""},{"$f":"IF('TSA Input'!J3890=\"\",\"\",IF(OR('TSA Input'!J3890=\"Yes\",'TSA Input'!J3890=\"Contingent\"),'TSA Input'!G3890,\"\"))","v":""},{"$f":"IF('TSA Input'!J3890=\"\",\"\",IF(OR('TSA Input'!J3890=\"Yes\",'TSA Input'!J3890=\"Contingent\"),'TSA Input'!F3890,\"\"))","v":""},"",{"$f":"IF('TSA Input'!J3890=\"\",\"\",IF(OR('TSA Input'!J3890=\"Yes\",'TSA Input'!J3890=\"Contingent\"),'TSA Input'!D3890,\"\"))","v":""},{"$f":"IF('TSA Input'!J3890=\"\",\"\",IF(OR('TSA Input'!J3890=\"Yes\",'TSA Input'!J3890=\"Contingent\"),'TSA Input'!G3890,\"\"))","v":""},{"$f":"IF('TSA Input'!J3890=\"\",\"\",IF(OR('TSA Input'!J3890=\"Yes\",'TSA Input'!J3890=\"Contingent\"),'TSA Input'!F3890,\"\"))","v":""},"","Required","Required"]
["",null,{"$f":"IF('TSA Input'!J3891=\"\",\"\",IF(OR('TSA Input'!J3891=\"Yes\",'TSA Input'!J3891=\"Contingent\"),'TSA Input'!B3891,\"Ineligible\"))","v":""},{"$f":"IF('TSA Input'!J3891=\"\",\"\",IF(OR('TSA Input'!J3891=\"Yes\",'TSA Input'!J3891=\"Contingent\"),'TSA Input'!I3891,\"\"))","v":""},{"$f":"IF('TSA Input'!J3891=\"\",\"\",IF(OR('TSA Input'!J3891=\"Yes\",'TSA Input'!J3891=\"Contingent\"),'TSA Input'!C3891,\"\"))","v":""},{"$f":"IF('TSA Input'!J3891=\"\",\"\",IF(OR('TSA Input'!J3891=\"Yes\",'TSA Input'!J3891=\"Contingent\"),'TSA Input'!D3891,\"\"))","v":""},{"$f":"IF('TSA Input'!J3891=\"\",\"\",IF(OR('TSA Input'!J3891=\"Yes\",'TSA Input'!J3891=\"Contingent\"),'TSA Input'!G3891,\"\"))","v":""},{"$f":"IF('TSA Input'!J3891=\"\",\"\",IF(OR('TSA Input'!J3891=\"Yes\",'TSA Input'!J3891=\"Contingent\"),'TSA Input'!F3891,\"\"))","v":""},"",{"$f":"IF('TSA Input'!J3891=\"\",\"\",IF(OR('TSA Input'!J3891=\"Yes\",'TSA Input'!J3891=\"Contingent\"),'TSA Input'!D3891,\"\"))","v":""},{"$f":"IF('TSA Input'!J3891=\"\",\"\",IF(OR('TSA Input'!J3891=\"Yes\",'TSA Input'!J3891=\"Contingent\"),'TSA Input'!G3891,\"\"))","v":""},{"$f":"IF('TSA Input'!J3891=\"\",\"\",IF(OR('TSA Input'!J3891=\"Yes\",'TSA Input'!J3891=\"Contingent\"),'TSA Input'!F3891,\"\"))","v":""},"","Required","Required"]
["",null,{"$f":"IF('TSA Input'!J3892=\"\",\"\",IF(OR('TSA Input'!J3892=\"Yes\",'TSA Input'!J3892=\"Contingent\"),'TSA Input'!B3892,\"Ineligible\"))","v":""},{"$f":"IF('TSA Input'!J3892=\"\",\"\",IF(OR('TSA Input'!J3892=\"Yes\",'TSA Input'!J3892=\"Contingent\"),'TSA Input'!I3892,\"\"))","v":""},{"$f":"IF('TSA Input'!J3892=\"\",\"\",IF(OR('TSA Input'!J3892=\"Yes\",'TSA Input'!J3892=\"Contingent\"),'TSA Input'!C3892,\"\"))","v":""},{"$f":"IF('TSA Input'!J3892=\"\",\"\",IF(OR('TSA Input'!J3892=\"Yes\",'TSA Input'!J3892=\"Contingent\"),'TSA Input'!D3892,\"\"))","v":""},{"$f":"IF('TSA Input'!J3892=\"\",\"\",IF(OR('TSA Input'!J3892=\"Yes\",'TSA Input'!J3892=\"Contingent\"),'TSA Input'!G3892,\"\"))","v":""},{"$f":"IF('TSA Input'!J3892=\"\",\"\",IF(OR('TSA Input'!J3892=\"Yes\",'TSA Input'!J3892=\"Contingent\"),'TSA Input'!F3892,\"\"))","v":""},"",{"$f":"IF('TSA Input'!J3892=\"\",\"\",IF(OR('TSA Input'!J3892=\"Yes\",'TSA Input'!J3892=\"Contingent\"),'TSA Input'!D3892,\"\"))","v":""},{"$f":"IF('TSA Input'!J3892=\"\",\"\",IF(OR('TSA Input'!J3892=\"Yes\",'TSA Input'!J3892=\"Contingent\"),'TSA Input'!G3892,\"\"))","v":""},{"$f":"IF('TSA Input'!J3892=\"\",\"\",IF(OR('TSA Input'!J3892=\"Yes\",'TSA Input'!J3892=\"Contingent\"),'TSA Input'!F3892,\"\"))","v":""},"","Required","Required"]
["",null,{"$f":"IF('TSA Input'!J3893=\"\",\"\",IF(OR('TSA Input'!J3893=\"Yes\",'TSA Input'!J3893=\"Contingent\"),'TSA Input'!B3893,\"Ineligible\"))","v":""},{"$f":"IF('TSA Input'!J3893=\"\",\"\",IF(OR('TSA Input'!J3893=\"Yes\",'TSA Input'!J3893=\"Contingent\"),'TSA Input'!I3893,\"\"))","v":""},{"$f":"IF('TSA Input'!J3893=\"\",\"\",IF(OR('TSA Input'!J3893=\"Yes\",'TSA Input'!J3893=\"Contingent\"),'TSA Input'!C3893,\"\"))","v":""},{"$f":"IF('TSA Input'!J3893=\"\",\"\",IF(OR('TSA Input'!J3893=\"Yes\",'TSA Input'!J3893=\"Contingent\"),'TSA Input'!D3893,\"\"))","v":""},{"$f":"IF('TSA Input'!J3893=\"\",\"\",IF(OR('TSA Input'!J3893=\"Yes\",'TSA Input'!J3893=\"Contingent\"),'TSA Input'!G3893,\"\"))","v":""},{"$f":"IF('TSA Input'!J3893=\"\",\"\",IF(OR('TSA Input'!J3893=\"Yes\",'TSA Input'!J3893=\"Contingent\"),'TSA Input'!F3893,\"\"))","v":""},"",{"$f":"IF('TSA Input'!J3893=\"\",\"\",IF(OR('TSA Input'!J3893=\"Yes\",'TSA Input'!J3893=\"Contingent\"),'TSA Input'!D3893,\"\"))","v":""},{"$f":"IF('TSA Input'!J3893=\"\",\"\",IF(OR('TSA Input'!J3893=\"Yes\",'TSA Input'!J3893=\"Contingent\"),'TSA Input'!G3893,\"\"))","v":""},{"$f":"IF('TSA Input'!J3893=\"\",\"\",IF(OR('TSA Input'!J3893=\"Yes\",'TSA Input'!J3893=\"Contingent\"),'TSA Input'!F3893,\"\"))","v":""},"","Required","Required"]
["",null,{"$f":"IF('TSA Input'!J3894=\"\",\"\",IF(OR('TSA Input'!J3894=\"Yes\",'TSA Input'!J3894=\"Contingent\"),'TSA Input'!B3894,\"Ineligible\"))","v":""},{"$f":"IF('TSA Input'!J3894=\"\",\"\",IF(OR('TSA Input'!J3894=\"Yes\",'TSA Input'!J3894=\"Contingent\"),'TSA Input'!I3894,\"\"))","v":""},{"$f":"IF('TSA Input'!J3894=\"\",\"\",IF(OR('TSA Input'!J3894=\"Yes\",'TSA Input'!J3894=\"Contingent\"),'TSA Input'!C3894,\"\"))","v":""},{"$f":"IF('TSA Input'!J3894=\"\",\"\",IF(OR('TSA Input'!J3894=\"Yes\",'TSA Input'!J3894=\"Contingent\"),'TSA Input'!D3894,\"\"))","v":""},{"$f":"IF('TSA Input'!J3894=\"\",\"\",IF(OR('TSA Input'!J3894=\"Yes\",'TSA Input'!J3894=\"Contingent\"),'TSA Input'!G3894,\"\"))","v":""},{"$f":"IF('TSA Input'!J3894=\"\",\"\",IF(OR('TSA Input'!J3894=\"Yes\",'TSA Input'!J3894=\"Contingent\"),'TSA Input'!F3894,\"\"))","v":""},"",{"$f":"IF('TSA Input'!J3894=\"\",\"\",IF(OR('TSA Input'!J3894=\"Yes\",'TSA Input'!J3894=\"Contingent\"),'TSA Input'!D3894,\"\"))","v":""},{"$f":"IF('TSA Input'!J3894=\"\",\"\",IF(OR('TSA Input'!J3894=\"Yes\",'TSA Input'!J3894=\"Contingent\"),'TSA Input'!G3894,\"\"))","v":""},{"$f":"IF('TSA Input'!J3894=\"\",\"\",IF(OR('TSA Input'!J3894=\"Yes\",'TSA Input'!J3894=\"Contingent\"),'TSA Input'!F3894,\"\"))","v":""},"","Required","Required"]
["",null,{"$f":"IF('TSA Input'!J3895=\"\",\"\",IF(OR('TSA Input'!J3895=\"Yes\",'TSA Input'!J3895=\"Contingent\"),'TSA Input'!B3895,\"Ineligible\"))","v":""},{"$f":"IF('TSA Input'!J3895=\"\",\"\",IF(OR('TSA Input'!J3895=\"Yes\",'TSA Input'!J3895=\"Contingent\"),'TSA Input'!I3895,\"\"))","v":""},{"$f":"IF('TSA Input'!J3895=\"\",\"\",IF(OR('TSA Input'!J3895=\"Yes\",'TSA Input'!J3895=\"Contingent\"),'TSA Input'!C3895,\"\"))","v":""},{"$f":"IF('TSA Input'!J3895=\"\",\"\",IF(OR('TSA Input'!J3895=\"Yes\",'TSA Input'!J3895=\"Contingent\"),'TSA Input'!D3895,\"\"))","v":""},{"$f":"IF('TSA Input'!J3895=\"\",\"\",IF(OR('TSA Input'!J3895=\"Yes\",'TSA Input'!J3895=\"Contingent\"),'TSA Input'!G3895,\"\"))","v":""},{"$f":"IF('TSA Input'!J3895=\"\",\"\",IF(OR('TSA Input'!J3895=\"Yes\",'TSA Input'!J3895=\"Contingent\"),'TSA Input'!F3895,\"\"))","v":""},"",{"$f":"IF('TSA Input'!J3895=\"\",\"\",IF(OR('TSA Input'!J3895=\"Yes\",'TSA Input'!J3895=\"Contingent\"),'TSA Input'!D3895,\"\"))","v":""},{"$f":"IF('TSA Input'!J3895=\"\",\"\",IF(OR('TSA Input'!J3895=\"Yes\",'TSA Input'!J3895=\"Contingent\"),'TSA Input'!G3895,\"\"))","v":""},{"$f":"IF('TSA Input'!J3895=\"\",\"\",IF(OR('TSA Input'!J3895=\"Yes\",'TSA Input'!J3895=\"Contingent\"),'TSA Input'!F3895,\"\"))","v":""},"","Required","Required"]
["",null,{"$f":"IF('TSA Input'!J3896=\"\",\"\",IF(OR('TSA Input'!J3896=\"Yes\",'TSA Input'!J3896=\"Contingent\"),'TSA Input'!B3896,\"Ineligible\"))","v":""},{"$f":"IF('TSA Input'!J3896=\"\",\"\",IF(OR('TSA Input'!J3896=\"Yes\",'TSA Input'!J3896=\"Contingent\"),'TSA Input'!I3896,\"\"))","v":""},{"$f":"IF('TSA Input'!J3896=\"\",\"\",IF(OR('TSA Input'!J3896=\"Yes\",'TSA Input'!J3896=\"Contingent\"),'TSA Input'!C3896,\"\"))","v":""},{"$f":"IF('TSA Input'!J3896=\"\",\"\",IF(OR('TSA Input'!J3896=\"Yes\",'TSA Input'!J3896=\"Contingent\"),'TSA Input'!D3896,\"\"))","v":""},{"$f":"IF('TSA Input'!J3896=\"\",\"\",IF(OR('TSA Input'!J3896=\"Yes\",'TSA Input'!J3896=\"Contingent\"),'TSA Input'!G3896,\"\"))","v":""},{"$f":"IF('TSA Input'!J3896=\"\",\"\",IF(OR('TSA Input'!J3896=\"Yes\",'TSA Input'!J3896=\"Contingent\"),'TSA Input'!F3896,\"\"))","v":""},"",{"$f":"IF('TSA Input'!J3896=\"\",\"\",IF(OR('TSA Input'!J3896=\"Yes\",'TSA Input'!J3896=\"Contingent\"),'TSA Input'!D3896,\"\"))","v":""},{"$f":"IF('TSA Input'!J3896=\"\",\"\",IF(OR('TSA Input'!J3896=\"Yes\",'TSA Input'!J3896=\"Contingent\"),'TSA Input'!G3896,\"\"))","v":""},{"$f":"IF('TSA Input'!J3896=\"\",\"\",IF(OR('TSA Input'!J3896=\"Yes\",'TSA Input'!J3896=\"Contingent\"),'TSA Input'!F3896,\"\"))","v":""},"","Required","Required"]
["",null,{"$f":"IF('TSA Input'!J3897=\"\",\"\",IF(OR('TSA Input'!J3897=\"Yes\",'TSA Input'!J3897=\"Contingent\"),'TSA Input'!B3897,\"Ineligible\"))","v":""},{"$f":"IF('TSA Input'!J3897=\"\",\"\",IF(OR('TSA Input'!J3897=\"Yes\",'TSA Input'!J3897=\"Contingent\"),'TSA Input'!I3897,\"\"))","v":""},{"$f":"IF('TSA Input'!J3897=\"\",\"\",IF(OR('TSA Input'!J3897=\"Yes\",'TSA Input'!J3897=\"Contingent\"),'TSA Input'!C3897,\"\"))","v":""},{"$f":"IF('TSA Input'!J3897=\"\",\"\",IF(OR('TSA Input'!J3897=\"Yes\",'TSA Input'!J3897=\"Contingent\"),'TSA Input'!D3897,\"\"))","v":""},{"$f":"IF('TSA Input'!J3897=\"\",\"\",IF(OR('TSA Input'!J3897=\"Yes\",'TSA Input'!J3897=\"Contingent\"),'TSA Input'!G3897,\"\"))","v":""},{"$f":"IF('TSA Input'!J3897=\"\",\"\",IF(OR('TSA Input'!J3897=\"Yes\",'TSA Input'!J3897=\"Contingent\"),'TSA Input'!F3897,\"\"))","v":""},"",{"$f":"IF('TSA Input'!J3897=\"\",\"\",IF(OR('TSA Input'!J3897=\"Yes\",'TSA Input'!J3897=\"Contingent\"),'TSA Input'!D3897,\"\"))","v":""},{"$f":"IF('TSA Input'!J3897=\"\",\"\",IF(OR('TSA Input'!J3897=\"Yes\",'TSA Input'!J3897=\"Contingent\"),'TSA Input'!G3897,\"\"))","v":""},{"$f":"IF('TSA Input'!J3897=\"\",\"\",IF(OR('TSA Input'!J3897=\"Yes\",'TSA Input'!J3897=\"Contingent\"),'TSA Input'!F3897,\"\"))","v":""},"","Required","Required"]
["",null,{"$f":"IF('TSA Input'!J3898=\"\",\"\",IF(OR('TSA Input'!J3898=\"Yes\",'TSA Input'!J3898=\"Contingent\"),'TSA Input'!B3898,\"Ineligible\"))","v":""},{"$f":"IF('TSA Input'!J3898=\"\",\"\",IF(OR('TSA Input'!J3898=\"Yes\",'TSA Input'!J3898=\"Contingent\"),'TSA Input'!I3898,\"\"))","v":""},{"$f":"IF('TSA Input'!J3898=\"\",\"\",IF(OR('TSA Input'!J3898=\"Yes\",'TSA Input'!J3898=\"Contingent\"),'TSA Input'!C3898,\"\"))","v":""},{"$f":"IF('TSA Input'!J3898=\"\",\"\",IF(OR('TSA Input'!J3898=\"Yes\",'TSA Input'!J3898=\"Contingent\"),'TSA Input'!D3898,\"\"))","v":""},{"$f":"IF('TSA Input'!J3898=\"\",\"\",IF(OR('TSA Input'!J3898=\"Yes\",'TSA Input'!J3898=\"Contingent\"),'TSA Input'!G3898,\"\"))","v":""},{"$f":"IF('TSA Input'!J3898=\"\",\"\",IF(OR('TSA Input'!J3898=\"Yes\",'TSA Input'!J3898=\"Contingent\"),'TSA Input'!F3898,\"\"))","v":""},"",{"$f":"IF('TSA Input'!J3898=\"\",\"\",IF(OR('TSA Input'!J3898=\"Yes\",'TSA Input'!J3898=\"Contingent\"),'TSA Input'!D3898,\"\"))","v":""},{"$f":"IF('TSA Input'!J3898=\"\",\"\",IF(OR('TSA Input'!J3898=\"Yes\",'TSA Input'!J3898=\"Contingent\"),'TSA Input'!G3898,\"\"))","v":""},{"$f":"IF('TSA Input'!J3898=\"\",\"\",IF(OR('TSA Input'!J3898=\"Yes\",'TSA Input'!J3898=\"Contingent\"),'TSA Input'!F3898,\"\"))","v":""},"","Required","Required"]
["",null,{"$f":"IF('TSA Input'!J3899=\"\",\"\",IF(OR('TSA Input'!J3899=\"Yes\",'TSA Input'!J3899=\"Contingent\"),'TSA Input'!B3899,\"Ineligible\"))","v":""},{"$f":"IF('TSA Input'!J3899=\"\",\"\",IF(OR('TSA Input'!J3899=\"Yes\",'TSA Input'!J3899=\"Contingent\"),'TSA Input'!I3899,\"\"))","v":""},{"$f":"IF('TSA Input'!J3899=\"\",\"\",IF(OR('TSA Input'!J3899=\"Yes\",'TSA Input'!J3899=\"Contingent\"),'TSA Input'!C3899,\"\"))","v":""},{"$f":"IF('TSA Input'!J3899=\"\",\"\",IF(OR('TSA Input'!J3899=\"Yes\",'TSA Input'!J3899=\"Contingent\"),'TSA Input'!D3899,\"\"))","v":""},{"$f":"IF('TSA Input'!J3899=\"\",\"\",IF(OR('TSA Input'!J3899=\"Yes\",'TSA Input'!J3899=\"Contingent\"),'TSA Input'!G3899,\"\"))","v":""},{"$f":"IF('TSA Input'!J3899=\"\",\"\",IF(OR('TSA Input'!J3899=\"Yes\",'TSA Input'!J3899=\"Contingent\"),'TSA Input'!F3899,\"\"))","v":""},"",{"$f":"IF('TSA Input'!J3899=\"\",\"\",IF(OR('TSA Input'!J3899=\"Yes\",'TSA Input'!J3899=\"Contingent\"),'TSA Input'!D3899,\"\"))","v":""},{"$f":"IF('TSA Input'!J3899=\"\",\"\",IF(OR('TSA Input'!J3899=\"Yes\",'TSA Input'!J3899=\"Contingent\"),'TSA Input'!G3899,\"\"))","v":""},{"$f":"IF('TSA Input'!J3899=\"\",\"\",IF(OR('TSA Input'!J3899=\"Yes\",'TSA Input'!J3899=\"Contingent\"),'TSA Input'!F3899,\"\"))","v":""},"","Required","Required"]
["",null,{"$f":"IF('TSA Input'!J3900=\"\",\"\",IF(OR('TSA Input'!J3900=\"Yes\",'TSA Input'!J3900=\"Contingent\"),'TSA Input'!B3900,\"Ineligible\"))","v":""},{"$f":"IF('TSA Input'!J3900=\"\",\"\",IF(OR('TSA Input'!J3900=\"Yes\",'TSA Input'!J3900=\"Contingent\"),'TSA Input'!I3900,\"\"))","v":""},{"$f":"IF('TSA Input'!J3900=\"\",\"\",IF(OR('TSA Input'!J3900=\"Yes\",'TSA Input'!J3900=\"Contingent\"),'TSA Input'!C3900,\"\"))","v":""},{"$f":"IF('TSA Input'!J3900=\"\",\"\",IF(OR('TSA Input'!J3900=\"Yes\",'TSA Input'!J3900=\"Contingent\"),'TSA Input'!D3900,\"\"))","v":""},{"$f":"IF('TSA Input'!J3900=\"\",\"\",IF(OR('TSA Input'!J3900=\"Yes\",'TSA Input'!J3900=\"Contingent\"),'TSA Input'!G3900,\"\"))","v":""},{"$f":"IF('TSA Input'!J3900=\"\",\"\",IF(OR('TSA Input'!J3900=\"Yes\",'TSA Input'!J3900=\"Contingent\"),'TSA Input'!F3900,\"\"))","v":""},"",{"$f":"IF('TSA Input'!J3900=\"\",\"\",IF(OR('TSA Input'!J3900=\"Yes\",'TSA Input'!J3900=\"Contingent\"),'TSA Input'!D3900,\"\"))","v":""},{"$f":"IF('TSA Input'!J3900=\"\",\"\",IF(OR('TSA Input'!J3900=\"Yes\",'TSA Input'!J3900=\"Contingent\"),'TSA Input'!G3900,\"\"))","v":""},{"$f":"IF('TSA Input'!J3900=\"\",\"\",IF(OR('TSA Input'!J3900=\"Yes\",'TSA Input'!J3900=\"Contingent\"),'TSA Input'!F3900,\"\"))","v":""},"","Required","Required"]
["",null,{"$f":"IF('TSA Input'!J3901=\"\",\"\",IF(OR('TSA Input'!J3901=\"Yes\",'TSA Input'!J3901=\"Contingent\"),'TSA Input'!B3901,\"Ineligible\"))","v":""},{"$f":"IF('TSA Input'!J3901=\"\",\"\",IF(OR('TSA Input'!J3901=\"Yes\",'TSA Input'!J3901=\"Contingent\"),'TSA Input'!I3901,\"\"))","v":""},{"$f":"IF('TSA Input'!J3901=\"\",\"\",IF(OR('TSA Input'!J3901=\"Yes\",'TSA Input'!J3901=\"Contingent\"),'TSA Input'!C3901,\"\"))","v":""},{"$f":"IF('TSA Input'!J3901=\"\",\"\",IF(OR('TSA Input'!J3901=\"Yes\",'TSA Input'!J3901=\"Contingent\"),'TSA Input'!D3901,\"\"))","v":""},{"$f":"IF('TSA Input'!J3901=\"\",\"\",IF(OR('TSA Input'!J3901=\"Yes\",'TSA Input'!J3901=\"Contingent\"),'TSA Input'!G3901,\"\"))","v":""},{"$f":"IF('TSA Input'!J3901=\"\",\"\",IF(OR('TSA Input'!J3901=\"Yes\",'TSA Input'!J3901=\"Contingent\"),'TSA Input'!F3901,\"\"))","v":""},"",{"$f":"IF('TSA Input'!J3901=\"\",\"\",IF(OR('TSA Input'!J3901=\"Yes\",'TSA Input'!J3901=\"Contingent\"),'TSA Input'!D3901,\"\"))","v":""},{"$f":"IF('TSA Input'!J3901=\"\",\"\",IF(OR('TSA Input'!J3901=\"Yes\",'TSA Input'!J3901=\"Contingent\"),'TSA Input'!G3901,\"\"))","v":""},{"$f":"IF('TSA Input'!J3901=\"\",\"\",IF(OR('TSA Input'!J3901=\"Yes\",'TSA Input'!J3901=\"Contingent\"),'TSA Input'!F3901,\"\"))","v":""},"","Required","Required"]
["",null,{"$f":"IF('TSA Input'!J3902=\"\",\"\",IF(OR('TSA Input'!J3902=\"Yes\",'TSA Input'!J3902=\"Contingent\"),'TSA Input'!B3902,\"Ineligible\"))","v":""},{"$f":"IF('TSA Input'!J3902=\"\",\"\",IF(OR('TSA Input'!J3902=\"Yes\",'TSA Input'!J3902=\"Contingent\"),'TSA Input'!I3902,\"\"))","v":""},{"$f":"IF('TSA Input'!J3902=\"\",\"\",IF(OR('TSA Input'!J3902=\"Yes\",'TSA Input'!J3902=\"Contingent\"),'TSA Input'!C3902,\"\"))","v":""},{"$f":"IF('TSA Input'!J3902=\"\",\"\",IF(OR('TSA Input'!J3902=\"Yes\",'TSA Input'!J3902=\"Contingent\"),'TSA Input'!D3902,\"\"))","v":""},{"$f":"IF('TSA Input'!J3902=\"\",\"\",IF(OR('TSA Input'!J3902=\"Yes\",'TSA Input'!J3902=\"Contingent\"),'TSA Input'!G3902,\"\"))","v":""},{"$f":"IF('TSA Input'!J3902=\"\",\"\",IF(OR('TSA Input'!J3902=\"Yes\",'TSA Input'!J3902=\"Contingent\"),'TSA Input'!F3902,\"\"))","v":""},"",{"$f":"IF('TSA Input'!J3902=\"\",\"\",IF(OR('TSA Input'!J3902=\"Yes\",'TSA Input'!J3902=\"Contingent\"),'TSA Input'!D3902,\"\"))","v":""},{"$f":"IF('TSA Input'!J3902=\"\",\"\",IF(OR('TSA Input'!J3902=\"Yes\",'TSA Input'!J3902=\"Contingent\"),'TSA Input'!G3902,\"\"))","v":""},{"$f":"IF('TSA Input'!J3902=\"\",\"\",IF(OR('TSA Input'!J3902=\"Yes\",'TSA Input'!J3902=\"Contingent\"),'TSA Input'!F3902,\"\"))","v":""},"","Required","Required"]
["",null,{"$f":"IF('TSA Input'!J3903=\"\",\"\",IF(OR('TSA Input'!J3903=\"Yes\",'TSA Input'!J3903=\"Contingent\"),'TSA Input'!B3903,\"Ineligible\"))","v":""},{"$f":"IF('TSA Input'!J3903=\"\",\"\",IF(OR('TSA Input'!J3903=\"Yes\",'TSA Input'!J3903=\"Contingent\"),'TSA Input'!I3903,\"\"))","v":""},{"$f":"IF('TSA Input'!J3903=\"\",\"\",IF(OR('TSA Input'!J3903=\"Yes\",'TSA Input'!J3903=\"Contingent\"),'TSA Input'!C3903,\"\"))","v":""},{"$f":"IF('TSA Input'!J3903=\"\",\"\",IF(OR('TSA Input'!J3903=\"Yes\",'TSA Input'!J3903=\"Contingent\"),'TSA Input'!D3903,\"\"))","v":""},{"$f":"IF('TSA Input'!J3903=\"\",\"\",IF(OR('TSA Input'!J3903=\"Yes\",'TSA Input'!J3903=\"Contingent\"),'TSA Input'!G3903,\"\"))","v":""},{"$f":"IF('TSA Input'!J3903=\"\",\"\",IF(OR('TSA Input'!J3903=\"Yes\",'TSA Input'!J3903=\"Contingent\"),'TSA Input'!F3903,\"\"))","v":""},"",{"$f":"IF('TSA Input'!J3903=\"\",\"\",IF(OR('TSA Input'!J3903=\"Yes\",'TSA Input'!J3903=\"Contingent\"),'TSA Input'!D3903,\"\"))","v":""},{"$f":"IF('TSA Input'!J3903=\"\",\"\",IF(OR('TSA Input'!J3903=\"Yes\",'TSA Input'!J3903=\"Contingent\"),'TSA Input'!G3903,\"\"))","v":""},{"$f":"IF('TSA Input'!J3903=\"\",\"\",IF(OR('TSA Input'!J3903=\"Yes\",'TSA Input'!J3903=\"Contingent\"),'TSA Input'!F3903,\"\"))","v":""},"","Required","Required"]
["",null,{"$f":"IF('TSA Input'!J3904=\"\",\"\",IF(OR('TSA Input'!J3904=\"Yes\",'TSA Input'!J3904=\"Contingent\"),'TSA Input'!B3904,\"Ineligible\"))","v":""},{"$f":"IF('TSA Input'!J3904=\"\",\"\",IF(OR('TSA Input'!J3904=\"Yes\",'TSA Input'!J3904=\"Contingent\"),'TSA Input'!I3904,\"\"))","v":""},{"$f":"IF('TSA Input'!J3904=\"\",\"\",IF(OR('TSA Input'!J3904=\"Yes\",'TSA Input'!J3904=\"Contingent\"),'TSA Input'!C3904,\"\"))","v":""},{"$f":"IF('TSA Input'!J3904=\"\",\"\",IF(OR('TSA Input'!J3904=\"Yes\",'TSA Input'!J3904=\"Contingent\"),'TSA Input'!D3904,\"\"))","v":""},{"$f":"IF('TSA Input'!J3904=\"\",\"\",IF(OR('TSA Input'!J3904=\"Yes\",'TSA Input'!J3904=\"Contingent\"),'TSA Input'!G3904,\"\"))","v":""},{"$f":"IF('TSA Input'!J3904=\"\",\"\",IF(OR('TSA Input'!J3904=\"Yes\",'TSA Input'!J3904=\"Contingent\"),'TSA Input'!F3904,\"\"))","v":""},"",{"$f":"IF('TSA Input'!J3904=\"\",\"\",IF(OR('TSA Input'!J3904=\"Yes\",'TSA Input'!J3904=\"Contingent\"),'TSA Input'!D3904,\"\"))","v":""},{"$f":"IF('TSA Input'!J3904=\"\",\"\",IF(OR('TSA Input'!J3904=\"Yes\",'TSA Input'!J3904=\"Contingent\"),'TSA Input'!G3904,\"\"))","v":""},{"$f":"IF('TSA Input'!J3904=\"\",\"\",IF(OR('TSA Input'!J3904=\"Yes\",'TSA Input'!J3904=\"Contingent\"),'TSA Input'!F3904,\"\"))","v":""},"","Required","Required"]
["",null,{"$f":"IF('TSA Input'!J3905=\"\",\"\",IF(OR('TSA Input'!J3905=\"Yes\",'TSA Input'!J3905=\"Contingent\"),'TSA Input'!B3905,\"Ineligible\"))","v":""},{"$f":"IF('TSA Input'!J3905=\"\",\"\",IF(OR('TSA Input'!J3905=\"Yes\",'TSA Input'!J3905=\"Contingent\"),'TSA Input'!I3905,\"\"))","v":""},{"$f":"IF('TSA Input'!J3905=\"\",\"\",IF(OR('TSA Input'!J3905=\"Yes\",'TSA Input'!J3905=\"Contingent\"),'TSA Input'!C3905,\"\"))","v":""},{"$f":"IF('TSA Input'!J3905=\"\",\"\",IF(OR('TSA Input'!J3905=\"Yes\",'TSA Input'!J3905=\"Contingent\"),'TSA Input'!D3905,\"\"))","v":""},{"$f":"IF('TSA Input'!J3905=\"\",\"\",IF(OR('TSA Input'!J3905=\"Yes\",'TSA Input'!J3905=\"Contingent\"),'TSA Input'!G3905,\"\"))","v":""},{"$f":"IF('TSA Input'!J3905=\"\",\"\",IF(OR('TSA Input'!J3905=\"Yes\",'TSA Input'!J3905=\"Contingent\"),'TSA Input'!F3905,\"\"))","v":""},"",{"$f":"IF('TSA Input'!J3905=\"\",\"\",IF(OR('TSA Input'!J3905=\"Yes\",'TSA Input'!J3905=\"Contingent\"),'TSA Input'!D3905,\"\"))","v":""},{"$f":"IF('TSA Input'!J3905=\"\",\"\",IF(OR('TSA Input'!J3905=\"Yes\",'TSA Input'!J3905=\"Contingent\"),'TSA Input'!G3905,\"\"))","v":""},{"$f":"IF('TSA Input'!J3905=\"\",\"\",IF(OR('TSA Input'!J3905=\"Yes\",'TSA Input'!J3905=\"Contingent\"),'TSA Input'!F3905,\"\"))","v":""},"","Required","Required"]
["",null,{"$f":"IF('TSA Input'!J3906=\"\",\"\",IF(OR('TSA Input'!J3906=\"Yes\",'TSA Input'!J3906=\"Contingent\"),'TSA Input'!B3906,\"Ineligible\"))","v":""},{"$f":"IF('TSA Input'!J3906=\"\",\"\",IF(OR('TSA Input'!J3906=\"Yes\",'TSA Input'!J3906=\"Contingent\"),'TSA Input'!I3906,\"\"))","v":""},{"$f":"IF('TSA Input'!J3906=\"\",\"\",IF(OR('TSA Input'!J3906=\"Yes\",'TSA Input'!J3906=\"Contingent\"),'TSA Input'!C3906,\"\"))","v":""},{"$f":"IF('TSA Input'!J3906=\"\",\"\",IF(OR('TSA Input'!J3906=\"Yes\",'TSA Input'!J3906=\"Contingent\"),'TSA Input'!D3906,\"\"))","v":""},{"$f":"IF('TSA Input'!J3906=\"\",\"\",IF(OR('TSA Input'!J3906=\"Yes\",'TSA Input'!J3906=\"Contingent\"),'TSA Input'!G3906,\"\"))","v":""},{"$f":"IF('TSA Input'!J3906=\"\",\"\",IF(OR('TSA Input'!J3906=\"Yes\",'TSA Input'!J3906=\"Contingent\"),'TSA Input'!F3906,\"\"))","v":""},"",{"$f":"IF('TSA Input'!J3906=\"\",\"\",IF(OR('TSA Input'!J3906=\"Yes\",'TSA Input'!J3906=\"Contingent\"),'TSA Input'!D3906,\"\"))","v":""},{"$f":"IF('TSA Input'!J3906=\"\",\"\",IF(OR('TSA Input'!J3906=\"Yes\",'TSA Input'!J3906=\"Contingent\"),'TSA Input'!G3906,\"\"))","v":""},{"$f":"IF('TSA Input'!J3906=\"\",\"\",IF(OR('TSA Input'!J3906=\"Yes\",'TSA Input'!J3906=\"Contingent\"),'TSA Input'!F3906,\"\"))","v":""},"","Required","Required"]
["",null,{"$f":"IF('TSA Input'!J3907=\"\",\"\",IF(OR('TSA Input'!J3907=\"Yes\",'TSA Input'!J3907=\"Contingent\"),'TSA Input'!B3907,\"Ineligible\"))","v":""},{"$f":"IF('TSA Input'!J3907=\"\",\"\",IF(OR('TSA Input'!J3907=\"Yes\",'TSA Input'!J3907=\"Contingent\"),'TSA Input'!I3907,\"\"))","v":""},{"$f":"IF('TSA Input'!J3907=\"\",\"\",IF(OR('TSA Input'!J3907=\"Yes\",'TSA Input'!J3907=\"Contingent\"),'TSA Input'!C3907,\"\"))","v":""},{"$f":"IF('TSA Input'!J3907=\"\",\"\",IF(OR('TSA Input'!J3907=\"Yes\",'TSA Input'!J3907=\"Contingent\"),'TSA Input'!D3907,\"\"))","v":""},{"$f":"IF('TSA Input'!J3907=\"\",\"\",IF(OR('TSA Input'!J3907=\"Yes\",'TSA Input'!J3907=\"Contingent\"),'TSA Input'!G3907,\"\"))","v":""},{"$f":"IF('TSA Input'!J3907=\"\",\"\",IF(OR('TSA Input'!J3907=\"Yes\",'TSA Input'!J3907=\"Contingent\"),'TSA Input'!F3907,\"\"))","v":""},"",{"$f":"IF('TSA Input'!J3907=\"\",\"\",IF(OR('TSA Input'!J3907=\"Yes\",'TSA Input'!J3907=\"Contingent\"),'TSA Input'!D3907,\"\"))","v":""},{"$f":"IF('TSA Input'!J3907=\"\",\"\",IF(OR('TSA Input'!J3907=\"Yes\",'TSA Input'!J3907=\"Contingent\"),'TSA Input'!G3907,\"\"))","v":""},{"$f":"IF('TSA Input'!J3907=\"\",\"\",IF(OR('TSA Input'!J3907=\"Yes\",'TSA Input'!J3907=\"Contingent\"),'TSA Input'!F3907,\"\"))","v":""},"","Required","Required"]
["",null,{"$f":"IF('TSA Input'!J3908=\"\",\"\",IF(OR('TSA Input'!J3908=\"Yes\",'TSA Input'!J3908=\"Contingent\"),'TSA Input'!B3908,\"Ineligible\"))","v":""},{"$f":"IF('TSA Input'!J3908=\"\",\"\",IF(OR('TSA Input'!J3908=\"Yes\",'TSA Input'!J3908=\"Contingent\"),'TSA Input'!I3908,\"\"))","v":""},{"$f":"IF('TSA Input'!J3908=\"\",\"\",IF(OR('TSA Input'!J3908=\"Yes\",'TSA Input'!J3908=\"Contingent\"),'TSA Input'!C3908,\"\"))","v":""},{"$f":"IF('TSA Input'!J3908=\"\",\"\",IF(OR('TSA Input'!J3908=\"Yes\",'TSA Input'!J3908=\"Contingent\"),'TSA Input'!D3908,\"\"))","v":""},{"$f":"IF('TSA Input'!J3908=\"\",\"\",IF(OR('TSA Input'!J3908=\"Yes\",'TSA Input'!J3908=\"Contingent\"),'TSA Input'!G3908,\"\"))","v":""},{"$f":"IF('TSA Input'!J3908=\"\",\"\",IF(OR('TSA Input'!J3908=\"Yes\",'TSA Input'!J3908=\"Contingent\"),'TSA Input'!F3908,\"\"))","v":""},{"$f":"IF($C3946=\"\",\"\",SUM(F3946:H3946))","v":""},{"$f":"IF('TSA Input'!J3908=\"\",\"\",IF(OR('TSA Input'!J3908=\"Yes\",'TSA Input'!J3908=\"Contingent\"),'TSA Input'!D3908,\"\"))","v":""},{"$f":"IF('TSA Input'!J3908=\"\",\"\",IF(OR('TSA Input'!J3908=\"Yes\",'TSA Input'!J3908=\"Contingent\"),'TSA Input'!G3908,\"\"))","v":""},{"$f":"IF('TSA Input'!J3908=\"\",\"\",IF(OR('TSA Input'!J3908=\"Yes\",'TSA Input'!J3908=\"Contingent\"),'TSA Input'!F3908,\"\"))","v":""},{"$f":"IF($C3946=\"\",\"\",SUM(J3946:L3946))","v":""},"Required","Required"]
["",null,{"$f":"IF('TSA Input'!J3909=\"\",\"\",IF(OR('TSA Input'!J3909=\"Yes\",'TSA Input'!J3909=\"Contingent\"),'TSA Input'!B3909,\"Ineligible\"))","v":""},{"$f":"IF('TSA Input'!J3909=\"\",\"\",IF(OR('TSA Input'!J3909=\"Yes\",'TSA Input'!J3909=\"Contingent\"),'TSA Input'!I3909,\"\"))","v":""},{"$f":"IF('TSA Input'!J3909=\"\",\"\",IF(OR('TSA Input'!J3909=\"Yes\",'TSA Input'!J3909=\"Contingent\"),'TSA Input'!C3909,\"\"))","v":""},{"$f":"IF('TSA Input'!J3909=\"\",\"\",IF(OR('TSA Input'!J3909=\"Yes\",'TSA Input'!J3909=\"Contingent\"),'TSA Input'!D3909,\"\"))","v":""},{"$f":"IF('TSA Input'!J3909=\"\",\"\",IF(OR('TSA Input'!J3909=\"Yes\",'TSA Input'!J3909=\"Contingent\"),'TSA Input'!G3909,\"\"))","v":""},{"$f":"IF('TSA Input'!J3909=\"\",\"\",IF(OR('TSA Input'!J3909=\"Yes\",'TSA Input'!J3909=\"Contingent\"),'TSA Input'!F3909,\"\"))","v":""},"",{"$f":"IF('TSA Input'!J3909=\"\",\"\",IF(OR('TSA Input'!J3909=\"Yes\",'TSA Input'!J3909=\"Contingent\"),'TSA Input'!D3909,\"\"))","v":""},{"$f":"IF('TSA Input'!J3909=\"\",\"\",IF(OR('TSA Input'!J3909=\"Yes\",'TSA Input'!J3909=\"Contingent\"),'TSA Input'!G3909,\"\"))","v":""},{"$f":"IF('TSA Input'!J3909=\"\",\"\",IF(OR('TSA Input'!J3909=\"Yes\",'TSA Input'!J3909=\"Contingent\"),'TSA Input'!F3909,\"\"))","v":""},"","Required","Required"]
["",null,{"$f":"IF('TSA Input'!J3910=\"\",\"\",IF(OR('TSA Input'!J3910=\"Yes\",'TSA Input'!J3910=\"Contingent\"),'TSA Input'!B3910,\"Ineligible\"))","v":""},{"$f":"IF('TSA Input'!J3910=\"\",\"\",IF(OR('TSA Input'!J3910=\"Yes\",'TSA Input'!J3910=\"Contingent\"),'TSA Input'!I3910,\"\"))","v":""},{"$f":"IF('TSA Input'!J3910=\"\",\"\",IF(OR('TSA Input'!J3910=\"Yes\",'TSA Input'!J3910=\"Contingent\"),'TSA Input'!C3910,\"\"))","v":""},{"$f":"IF('TSA Input'!J3910=\"\",\"\",IF(OR('TSA Input'!J3910=\"Yes\",'TSA Input'!J3910=\"Contingent\"),'TSA Input'!D3910,\"\"))","v":""},{"$f":"IF('TSA Input'!J3910=\"\",\"\",IF(OR('TSA Input'!J3910=\"Yes\",'TSA Input'!J3910=\"Contingent\"),'TSA Input'!G3910,\"\"))","v":""},{"$f":"IF('TSA Input'!J3910=\"\",\"\",IF(OR('TSA Input'!J3910=\"Yes\",'TSA Input'!J3910=\"Contingent\"),'TSA Input'!F3910,\"\"))","v":""},"",{"$f":"IF('TSA Input'!J3910=\"\",\"\",IF(OR('TSA Input'!J3910=\"Yes\",'TSA Input'!J3910=\"Contingent\"),'TSA Input'!D3910,\"\"))","v":""},{"$f":"IF('TSA Input'!J3910=\"\",\"\",IF(OR('TSA Input'!J3910=\"Yes\",'TSA Input'!J3910=\"Contingent\"),'TSA Input'!G3910,\"\"))","v":""},{"$f":"IF('TSA Input'!J3910=\"\",\"\",IF(OR('TSA Input'!J3910=\"Yes\",'TSA Input'!J3910=\"Contingent\"),'TSA Input'!F3910,\"\"))","v":""},"","Required","Required"]
["",null,{"$f":"IF('TSA Input'!J3911=\"\",\"\",IF(OR('TSA Input'!J3911=\"Yes\",'TSA Input'!J3911=\"Contingent\"),'TSA Input'!B3911,\"Ineligible\"))","v":""},{"$f":"IF('TSA Input'!J3911=\"\",\"\",IF(OR('TSA Input'!J3911=\"Yes\",'TSA Input'!J3911=\"Contingent\"),'TSA Input'!I3911,\"\"))","v":""},{"$f":"IF('TSA Input'!J3911=\"\",\"\",IF(OR('TSA Input'!J3911=\"Yes\",'TSA Input'!J3911=\"Contingent\"),'TSA Input'!C3911,\"\"))","v":""},{"$f":"IF('TSA Input'!J3911=\"\",\"\",IF(OR('TSA Input'!J3911=\"Yes\",'TSA Input'!J3911=\"Contingent\"),'TSA Input'!D3911,\"\"))","v":""},{"$f":"IF('TSA Input'!J3911=\"\",\"\",IF(OR('TSA Input'!J3911=\"Yes\",'TSA Input'!J3911=\"Contingent\"),'TSA Input'!G3911,\"\"))","v":""},{"$f":"IF('TSA Input'!J3911=\"\",\"\",IF(OR('TSA Input'!J3911=\"Yes\",'TSA Input'!J3911=\"Contingent\"),'TSA Input'!F3911,\"\"))","v":""},"",{"$f":"IF('TSA Input'!J3911=\"\",\"\",IF(OR('TSA Input'!J3911=\"Yes\",'TSA Input'!J3911=\"Contingent\"),'TSA Input'!D3911,\"\"))","v":""},{"$f":"IF('TSA Input'!J3911=\"\",\"\",IF(OR('TSA Input'!J3911=\"Yes\",'TSA Input'!J3911=\"Contingent\"),'TSA Input'!G3911,\"\"))","v":""},{"$f":"IF('TSA Input'!J3911=\"\",\"\",IF(OR('TSA Input'!J3911=\"Yes\",'TSA Input'!J3911=\"Contingent\"),'TSA Input'!F3911,\"\"))","v":""},"","Required","Required"]
["",null,{"$f":"IF('TSA Input'!J3912=\"\",\"\",IF(OR('TSA Input'!J3912=\"Yes\",'TSA Input'!J3912=\"Contingent\"),'TSA Input'!B3912,\"Ineligible\"))","v":""},{"$f":"IF('TSA Input'!J3912=\"\",\"\",IF(OR('TSA Input'!J3912=\"Yes\",'TSA Input'!J3912=\"Contingent\"),'TSA Input'!I3912,\"\"))","v":""},{"$f":"IF('TSA Input'!J3912=\"\",\"\",IF(OR('TSA Input'!J3912=\"Yes\",'TSA Input'!J3912=\"Contingent\"),'TSA Input'!C3912,\"\"))","v":""},{"$f":"IF('TSA Input'!J3912=\"\",\"\",IF(OR('TSA Input'!J3912=\"Yes\",'TSA Input'!J3912=\"Contingent\"),'TSA Input'!D3912,\"\"))","v":""},{"$f":"IF('TSA Input'!J3912=\"\",\"\",IF(OR('TSA Input'!J3912=\"Yes\",'TSA Input'!J3912=\"Contingent\"),'TSA Input'!G3912,\"\"))","v":""},{"$f":"IF('TSA Input'!J3912=\"\",\"\",IF(OR('TSA Input'!J3912=\"Yes\",'TSA Input'!J3912=\"Contingent\"),'TSA Input'!F3912,\"\"))","v":""},"",{"$f":"IF('TSA Input'!J3912=\"\",\"\",IF(OR('TSA Input'!J3912=\"Yes\",'TSA Input'!J3912=\"Contingent\"),'TSA Input'!D3912,\"\"))","v":""},{"$f":"IF('TSA Input'!J3912=\"\",\"\",IF(OR('TSA Input'!J3912=\"Yes\",'TSA Input'!J3912=\"Contingent\"),'TSA Input'!G3912,\"\"))","v":""},{"$f":"IF('TSA Input'!J3912=\"\",\"\",IF(OR('TSA Input'!J3912=\"Yes\",'TSA Input'!J3912=\"Contingent\"),'TSA Input'!F3912,\"\"))","v":""},"","Required","Required"]
["",null,{"$f":"IF('TSA Input'!J3913=\"\",\"\",IF(OR('TSA Input'!J3913=\"Yes\",'TSA Input'!J3913=\"Contingent\"),'TSA Input'!B3913,\"Ineligible\"))","v":""},{"$f":"IF('TSA Input'!J3913=\"\",\"\",IF(OR('TSA Input'!J3913=\"Yes\",'TSA Input'!J3913=\"Contingent\"),'TSA Input'!I3913,\"\"))","v":""},{"$f":"IF('TSA Input'!J3913=\"\",\"\",IF(OR('TSA Input'!J3913=\"Yes\",'TSA Input'!J3913=\"Contingent\"),'TSA Input'!C3913,\"\"))","v":""},{"$f":"IF('TSA Input'!J3913=\"\",\"\",IF(OR('TSA Input'!J3913=\"Yes\",'TSA Input'!J3913=\"Contingent\"),'TSA Input'!D3913,\"\"))","v":""},{"$f":"IF('TSA Input'!J3913=\"\",\"\",IF(OR('TSA Input'!J3913=\"Yes\",'TSA Input'!J3913=\"Contingent\"),'TSA Input'!G3913,\"\"))","v":""},{"$f":"IF('TSA Input'!J3913=\"\",\"\",IF(OR('TSA Input'!J3913=\"Yes\",'TSA Input'!J3913=\"Contingent\"),'TSA Input'!F3913,\"\"))","v":""},"",{"$f":"IF('TSA Input'!J3913=\"\",\"\",IF(OR('TSA Input'!J3913=\"Yes\",'TSA Input'!J3913=\"Contingent\"),'TSA Input'!D3913,\"\"))","v":""},{"$f":"IF('TSA Input'!J3913=\"\",\"\",IF(OR('TSA Input'!J3913=\"Yes\",'TSA Input'!J3913=\"Contingent\"),'TSA Input'!G3913,\"\"))","v":""},{"$f":"IF('TSA Input'!J3913=\"\",\"\",IF(OR('TSA Input'!J3913=\"Yes\",'TSA Input'!J3913=\"Contingent\"),'TSA Input'!F3913,\"\"))","v":""},"","Required","Required"]
["",null,{"$f":"IF('TSA Input'!J3914=\"\",\"\",IF(OR('TSA Input'!J3914=\"Yes\",'TSA Input'!J3914=\"Contingent\"),'TSA Input'!B3914,\"Ineligible\"))","v":""},{"$f":"IF('TSA Input'!J3914=\"\",\"\",IF(OR('TSA Input'!J3914=\"Yes\",'TSA Input'!J3914=\"Contingent\"),'TSA Input'!I3914,\"\"))","v":""},{"$f":"IF('TSA Input'!J3914=\"\",\"\",IF(OR('TSA Input'!J3914=\"Yes\",'TSA Input'!J3914=\"Contingent\"),'TSA Input'!C3914,\"\"))","v":""},{"$f":"IF('TSA Input'!J3914=\"\",\"\",IF(OR('TSA Input'!J3914=\"Yes\",'TSA Input'!J3914=\"Contingent\"),'TSA Input'!D3914,\"\"))","v":""},{"$f":"IF('TSA Input'!J3914=\"\",\"\",IF(OR('TSA Input'!J3914=\"Yes\",'TSA Input'!J3914=\"Contingent\"),'TSA Input'!G3914,\"\"))","v":""},{"$f":"IF('TSA Input'!J3914=\"\",\"\",IF(OR('TSA Input'!J3914=\"Yes\",'TSA Input'!J3914=\"Contingent\"),'TSA Input'!F3914,\"\"))","v":""},"",{"$f":"IF('TSA Input'!J3914=\"\",\"\",IF(OR('TSA Input'!J3914=\"Yes\",'TSA Input'!J3914=\"Contingent\"),'TSA Input'!D3914,\"\"))","v":""},{"$f":"IF('TSA Input'!J3914=\"\",\"\",IF(OR('TSA Input'!J3914=\"Yes\",'TSA Input'!J3914=\"Contingent\"),'TSA Input'!G3914,\"\"))","v":""},{"$f":"IF('TSA Input'!J3914=\"\",\"\",IF(OR('TSA Input'!J3914=\"Yes\",'TSA Input'!J3914=\"Contingent\"),'TSA Input'!F3914,\"\"))","v":""},"","Required","Required"]
["",null,{"$f":"IF('TSA Input'!J3915=\"\",\"\",IF(OR('TSA Input'!J3915=\"Yes\",'TSA Input'!J3915=\"Contingent\"),'TSA Input'!B3915,\"Ineligible\"))","v":""},{"$f":"IF('TSA Input'!J3915=\"\",\"\",IF(OR('TSA Input'!J3915=\"Yes\",'TSA Input'!J3915=\"Contingent\"),'TSA Input'!I3915,\"\"))","v":""},{"$f":"IF('TSA Input'!J3915=\"\",\"\",IF(OR('TSA Input'!J3915=\"Yes\",'TSA Input'!J3915=\"Contingent\"),'TSA Input'!C3915,\"\"))","v":""},{"$f":"IF('TSA Input'!J3915=\"\",\"\",IF(OR('TSA Input'!J3915=\"Yes\",'TSA Input'!J3915=\"Contingent\"),'TSA Input'!D3915,\"\"))","v":""},{"$f":"IF('TSA Input'!J3915=\"\",\"\",IF(OR('TSA Input'!J3915=\"Yes\",'TSA Input'!J3915=\"Contingent\"),'TSA Input'!G3915,\"\"))","v":""},{"$f":"IF('TSA Input'!J3915=\"\",\"\",IF(OR('TSA Input'!J3915=\"Yes\",'TSA Input'!J3915=\"Contingent\"),'TSA Input'!F3915,\"\"))","v":""},"",{"$f":"IF('TSA Input'!J3915=\"\",\"\",IF(OR('TSA Input'!J3915=\"Yes\",'TSA Input'!J3915=\"Contingent\"),'TSA Input'!D3915,\"\"))","v":""},{"$f":"IF('TSA Input'!J3915=\"\",\"\",IF(OR('TSA Input'!J3915=\"Yes\",'TSA Input'!J3915=\"Contingent\"),'TSA Input'!G3915,\"\"))","v":""},{"$f":"IF('TSA Input'!J3915=\"\",\"\",IF(OR('TSA Input'!J3915=\"Yes\",'TSA Input'!J3915=\"Contingent\"),'TSA Input'!F3915,\"\"))","v":""},"","Required","Required"]
["",null,{"$f":"IF('TSA Input'!J3916=\"\",\"\",IF(OR('TSA Input'!J3916=\"Yes\",'TSA Input'!J3916=\"Contingent\"),'TSA Input'!B3916,\"Ineligible\"))","v":""},{"$f":"IF('TSA Input'!J3916=\"\",\"\",IF(OR('TSA Input'!J3916=\"Yes\",'TSA Input'!J3916=\"Contingent\"),'TSA Input'!I3916,\"\"))","v":""},{"$f":"IF('TSA Input'!J3916=\"\",\"\",IF(OR('TSA Input'!J3916=\"Yes\",'TSA Input'!J3916=\"Contingent\"),'TSA Input'!C3916,\"\"))","v":""},{"$f":"IF('TSA Input'!J3916=\"\",\"\",IF(OR('TSA Input'!J3916=\"Yes\",'TSA Input'!J3916=\"Contingent\"),'TSA Input'!D3916,\"\"))","v":""},{"$f":"IF('TSA Input'!J3916=\"\",\"\",IF(OR('TSA Input'!J3916=\"Yes\",'TSA Input'!J3916=\"Contingent\"),'TSA Input'!G3916,\"\"))","v":""},{"$f":"IF('TSA Input'!J3916=\"\",\"\",IF(OR('TSA Input'!J3916=\"Yes\",'TSA Input'!J3916=\"Contingent\"),'TSA Input'!F3916,\"\"))","v":""},"",{"$f":"IF('TSA Input'!J3916=\"\",\"\",IF(OR('TSA Input'!J3916=\"Yes\",'TSA Input'!J3916=\"Contingent\"),'TSA Input'!D3916,\"\"))","v":""},{"$f":"IF('TSA Input'!J3916=\"\",\"\",IF(OR('TSA Input'!J3916=\"Yes\",'TSA Input'!J3916=\"Contingent\"),'TSA Input'!G3916,\"\"))","v":""},{"$f":"IF('TSA Input'!J3916=\"\",\"\",IF(OR('TSA Input'!J3916=\"Yes\",'TSA Input'!J3916=\"Contingent\"),'TSA Input'!F3916,\"\"))","v":""},"","Required","Required"]
["",null,{"$f":"IF('TSA Input'!J3917=\"\",\"\",IF(OR('TSA Input'!J3917=\"Yes\",'TSA Input'!J3917=\"Contingent\"),'TSA Input'!B3917,\"Ineligible\"))","v":""},{"$f":"IF('TSA Input'!J3917=\"\",\"\",IF(OR('TSA Input'!J3917=\"Yes\",'TSA Input'!J3917=\"Contingent\"),'TSA Input'!I3917,\"\"))","v":""},{"$f":"IF('TSA Input'!J3917=\"\",\"\",IF(OR('TSA Input'!J3917=\"Yes\",'TSA Input'!J3917=\"Contingent\"),'TSA Input'!C3917,\"\"))","v":""},{"$f":"IF('TSA Input'!J3917=\"\",\"\",IF(OR('TSA Input'!J3917=\"Yes\",'TSA Input'!J3917=\"Contingent\"),'TSA Input'!D3917,\"\"))","v":""},{"$f":"IF('TSA Input'!J3917=\"\",\"\",IF(OR('TSA Input'!J3917=\"Yes\",'TSA Input'!J3917=\"Contingent\"),'TSA Input'!G3917,\"\"))","v":""},{"$f":"IF('TSA Input'!J3917=\"\",\"\",IF(OR('TSA Input'!J3917=\"Yes\",'TSA Input'!J3917=\"Contingent\"),'TSA Input'!F3917,\"\"))","v":""},"",{"$f":"IF('TSA Input'!J3917=\"\",\"\",IF(OR('TSA Input'!J3917=\"Yes\",'TSA Input'!J3917=\"Contingent\"),'TSA Input'!D3917,\"\"))","v":""},{"$f":"IF('TSA Input'!J3917=\"\",\"\",IF(OR('TSA Input'!J3917=\"Yes\",'TSA Input'!J3917=\"Contingent\"),'TSA Input'!G3917,\"\"))","v":""},{"$f":"IF('TSA Input'!J3917=\"\",\"\",IF(OR('TSA Input'!J3917=\"Yes\",'TSA Input'!J3917=\"Contingent\"),'TSA Input'!F3917,\"\"))","v":""},"","Required","Required"]
["",null,{"$f":"IF('TSA Input'!J3918=\"\",\"\",IF(OR('TSA Input'!J3918=\"Yes\",'TSA Input'!J3918=\"Contingent\"),'TSA Input'!B3918,\"Ineligible\"))","v":""},{"$f":"IF('TSA Input'!J3918=\"\",\"\",IF(OR('TSA Input'!J3918=\"Yes\",'TSA Input'!J3918=\"Contingent\"),'TSA Input'!I3918,\"\"))","v":""},{"$f":"IF('TSA Input'!J3918=\"\",\"\",IF(OR('TSA Input'!J3918=\"Yes\",'TSA Input'!J3918=\"Contingent\"),'TSA Input'!C3918,\"\"))","v":""},{"$f":"IF('TSA Input'!J3918=\"\",\"\",IF(OR('TSA Input'!J3918=\"Yes\",'TSA Input'!J3918=\"Contingent\"),'TSA Input'!D3918,\"\"))","v":""},{"$f":"IF('TSA Input'!J3918=\"\",\"\",IF(OR('TSA Input'!J3918=\"Yes\",'TSA Input'!J3918=\"Contingent\"),'TSA Input'!G3918,\"\"))","v":""},{"$f":"IF('TSA Input'!J3918=\"\",\"\",IF(OR('TSA Input'!J3918=\"Yes\",'TSA Input'!J3918=\"Contingent\"),'TSA Input'!F3918,\"\"))","v":""},"",{"$f":"IF('TSA Input'!J3918=\"\",\"\",IF(OR('TSA Input'!J3918=\"Yes\",'TSA Input'!J3918=\"Contingent\"),'TSA Input'!D3918,\"\"))","v":""},{"$f":"IF('TSA Input'!J3918=\"\",\"\",IF(OR('TSA Input'!J3918=\"Yes\",'TSA Input'!J3918=\"Contingent\"),'TSA Input'!G3918,\"\"))","v":""},{"$f":"IF('TSA Input'!J3918=\"\",\"\",IF(OR('TSA Input'!J3918=\"Yes\",'TSA Input'!J3918=\"Contingent\"),'TSA Input'!F3918,\"\"))","v":""},"","Required","Required"]
["",null,{"$f":"IF('TSA Input'!J3919=\"\",\"\",IF(OR('TSA Input'!J3919=\"Yes\",'TSA Input'!J3919=\"Contingent\"),'TSA Input'!B3919,\"Ineligible\"))","v":""},{"$f":"IF('TSA Input'!J3919=\"\",\"\",IF(OR('TSA Input'!J3919=\"Yes\",'TSA Input'!J3919=\"Contingent\"),'TSA Input'!I3919,\"\"))","v":""},{"$f":"IF('TSA Input'!J3919=\"\",\"\",IF(OR('TSA Input'!J3919=\"Yes\",'TSA Input'!J3919=\"Contingent\"),'TSA Input'!C3919,\"\"))","v":""},{"$f":"IF('TSA Input'!J3919=\"\",\"\",IF(OR('TSA Input'!J3919=\"Yes\",'TSA Input'!J3919=\"Contingent\"),'TSA Input'!D3919,\"\"))","v":""},{"$f":"IF('TSA Input'!J3919=\"\",\"\",IF(OR('TSA Input'!J3919=\"Yes\",'TSA Input'!J3919=\"Contingent\"),'TSA Input'!G3919,\"\"))","v":""},{"$f":"IF('TSA Input'!J3919=\"\",\"\",IF(OR('TSA Input'!J3919=\"Yes\",'TSA Input'!J3919=\"Contingent\"),'TSA Input'!F3919,\"\"))","v":""},"",{"$f":"IF('TSA Input'!J3919=\"\",\"\",IF(OR('TSA Input'!J3919=\"Yes\",'TSA Input'!J3919=\"Contingent\"),'TSA Input'!D3919,\"\"))","v":""},{"$f":"IF('TSA Input'!J3919=\"\",\"\",IF(OR('TSA Input'!J3919=\"Yes\",'TSA Input'!J3919=\"Contingent\"),'TSA Input'!G3919,\"\"))","v":""},{"$f":"IF('TSA Input'!J3919=\"\",\"\",IF(OR('TSA Input'!J3919=\"Yes\",'TSA Input'!J3919=\"Contingent\"),'TSA Input'!F3919,\"\"))","v":""},"","Required","Required"]
["",null,{"$f":"IF('TSA Input'!J3920=\"\",\"\",IF(OR('TSA Input'!J3920=\"Yes\",'TSA Input'!J3920=\"Contingent\"),'TSA Input'!B3920,\"Ineligible\"))","v":""},{"$f":"IF('TSA Input'!J3920=\"\",\"\",IF(OR('TSA Input'!J3920=\"Yes\",'TSA Input'!J3920=\"Contingent\"),'TSA Input'!I3920,\"\"))","v":""},{"$f":"IF('TSA Input'!J3920=\"\",\"\",IF(OR('TSA Input'!J3920=\"Yes\",'TSA Input'!J3920=\"Contingent\"),'TSA Input'!C3920,\"\"))","v":""},{"$f":"IF('TSA Input'!J3920=\"\",\"\",IF(OR('TSA Input'!J3920=\"Yes\",'TSA Input'!J3920=\"Contingent\"),'TSA Input'!D3920,\"\"))","v":""},{"$f":"IF('TSA Input'!J3920=\"\",\"\",IF(OR('TSA Input'!J3920=\"Yes\",'TSA Input'!J3920=\"Contingent\"),'TSA Input'!G3920,\"\"))","v":""},{"$f":"IF('TSA Input'!J3920=\"\",\"\",IF(OR('TSA Input'!J3920=\"Yes\",'TSA Input'!J3920=\"Contingent\"),'TSA Input'!F3920,\"\"))","v":""},"",{"$f":"IF('TSA Input'!J3920=\"\",\"\",IF(OR('TSA Input'!J3920=\"Yes\",'TSA Input'!J3920=\"Contingent\"),'TSA Input'!D3920,\"\"))","v":""},{"$f":"IF('TSA Input'!J3920=\"\",\"\",IF(OR('TSA Input'!J3920=\"Yes\",'TSA Input'!J3920=\"Contingent\"),'TSA Input'!G3920,\"\"))","v":""},{"$f":"IF('TSA Input'!J3920=\"\",\"\",IF(OR('TSA Input'!J3920=\"Yes\",'TSA Input'!J3920=\"Contingent\"),'TSA Input'!F3920,\"\"))","v":""},"","Required","Required"]
["",null,{"$f":"IF('TSA Input'!J3921=\"\",\"\",IF(OR('TSA Input'!J3921=\"Yes\",'TSA Input'!J3921=\"Contingent\"),'TSA Input'!B3921,\"Ineligible\"))","v":""},{"$f":"IF('TSA Input'!J3921=\"\",\"\",IF(OR('TSA Input'!J3921=\"Yes\",'TSA Input'!J3921=\"Contingent\"),'TSA Input'!I3921,\"\"))","v":""},{"$f":"IF('TSA Input'!J3921=\"\",\"\",IF(OR('TSA Input'!J3921=\"Yes\",'TSA Input'!J3921=\"Contingent\"),'TSA Input'!C3921,\"\"))","v":""},{"$f":"IF('TSA Input'!J3921=\"\",\"\",IF(OR('TSA Input'!J3921=\"Yes\",'TSA Input'!J3921=\"Contingent\"),'TSA Input'!D3921,\"\"))","v":""},{"$f":"IF('TSA Input'!J3921=\"\",\"\",IF(OR('TSA Input'!J3921=\"Yes\",'TSA Input'!J3921=\"Contingent\"),'TSA Input'!G3921,\"\"))","v":""},{"$f":"IF('TSA Input'!J3921=\"\",\"\",IF(OR('TSA Input'!J3921=\"Yes\",'TSA Input'!J3921=\"Contingent\"),'TSA Input'!F3921,\"\"))","v":""},"",{"$f":"IF('TSA Input'!J3921=\"\",\"\",IF(OR('TSA Input'!J3921=\"Yes\",'TSA Input'!J3921=\"Contingent\"),'TSA Input'!D3921,\"\"))","v":""},{"$f":"IF('TSA Input'!J3921=\"\",\"\",IF(OR('TSA Input'!J3921=\"Yes\",'TSA Input'!J3921=\"Contingent\"),'TSA Input'!G3921,\"\"))","v":""},{"$f":"IF('TSA Input'!J3921=\"\",\"\",IF(OR('TSA Input'!J3921=\"Yes\",'TSA Input'!J3921=\"Contingent\"),'TSA Input'!F3921,\"\"))","v":""},"","Required","Required"]
["",null,{"$f":"IF('TSA Input'!J3922=\"\",\"\",IF(OR('TSA Input'!J3922=\"Yes\",'TSA Input'!J3922=\"Contingent\"),'TSA Input'!B3922,\"Ineligible\"))","v":""},{"$f":"IF('TSA Input'!J3922=\"\",\"\",IF(OR('TSA Input'!J3922=\"Yes\",'TSA Input'!J3922=\"Contingent\"),'TSA Input'!I3922,\"\"))","v":""},{"$f":"IF('TSA Input'!J3922=\"\",\"\",IF(OR('TSA Input'!J3922=\"Yes\",'TSA Input'!J3922=\"Contingent\"),'TSA Input'!C3922,\"\"))","v":""},{"$f":"IF('TSA Input'!J3922=\"\",\"\",IF(OR('TSA Input'!J3922=\"Yes\",'TSA Input'!J3922=\"Contingent\"),'TSA Input'!D3922,\"\"))","v":""},{"$f":"IF('TSA Input'!J3922=\"\",\"\",IF(OR('TSA Input'!J3922=\"Yes\",'TSA Input'!J3922=\"Contingent\"),'TSA Input'!G3922,\"\"))","v":""},{"$f":"IF('TSA Input'!J3922=\"\",\"\",IF(OR('TSA Input'!J3922=\"Yes\",'TSA Input'!J3922=\"Contingent\"),'TSA Input'!F3922,\"\"))","v":""},"",{"$f":"IF('TSA Input'!J3922=\"\",\"\",IF(OR('TSA Input'!J3922=\"Yes\",'TSA Input'!J3922=\"Contingent\"),'TSA Input'!D3922,\"\"))","v":""},{"$f":"IF('TSA Input'!J3922=\"\",\"\",IF(OR('TSA Input'!J3922=\"Yes\",'TSA Input'!J3922=\"Contingent\"),'TSA Input'!G3922,\"\"))","v":""},{"$f":"IF('TSA Input'!J3922=\"\",\"\",IF(OR('TSA Input'!J3922=\"Yes\",'TSA Input'!J3922=\"Contingent\"),'TSA Input'!F3922,\"\"))","v":""},"","Required","Required"]
["",null,{"$f":"IF('TSA Input'!J3923=\"\",\"\",IF(OR('TSA Input'!J3923=\"Yes\",'TSA Input'!J3923=\"Contingent\"),'TSA Input'!B3923,\"Ineligible\"))","v":""},{"$f":"IF('TSA Input'!J3923=\"\",\"\",IF(OR('TSA Input'!J3923=\"Yes\",'TSA Input'!J3923=\"Contingent\"),'TSA Input'!I3923,\"\"))","v":""},{"$f":"IF('TSA Input'!J3923=\"\",\"\",IF(OR('TSA Input'!J3923=\"Yes\",'TSA Input'!J3923=\"Contingent\"),'TSA Input'!C3923,\"\"))","v":""},{"$f":"IF('TSA Input'!J3923=\"\",\"\",IF(OR('TSA Input'!J3923=\"Yes\",'TSA Input'!J3923=\"Contingent\"),'TSA Input'!D3923,\"\"))","v":""},{"$f":"IF('TSA Input'!J3923=\"\",\"\",IF(OR('TSA Input'!J3923=\"Yes\",'TSA Input'!J3923=\"Contingent\"),'TSA Input'!G3923,\"\"))","v":""},{"$f":"IF('TSA Input'!J3923=\"\",\"\",IF(OR('TSA Input'!J3923=\"Yes\",'TSA Input'!J3923=\"Contingent\"),'TSA Input'!F3923,\"\"))","v":""},"",{"$f":"IF('TSA Input'!J3923=\"\",\"\",IF(OR('TSA Input'!J3923=\"Yes\",'TSA Input'!J3923=\"Contingent\"),'TSA Input'!D3923,\"\"))","v":""},{"$f":"IF('TSA Input'!J3923=\"\",\"\",IF(OR('TSA Input'!J3923=\"Yes\",'TSA Input'!J3923=\"Contingent\"),'TSA Input'!G3923,\"\"))","v":""},{"$f":"IF('TSA Input'!J3923=\"\",\"\",IF(OR('TSA Input'!J3923=\"Yes\",'TSA Input'!J3923=\"Contingent\"),'TSA Input'!F3923,\"\"))","v":""},"","Required","Required"]
["",null,{"$f":"IF('TSA Input'!J3924=\"\",\"\",IF(OR('TSA Input'!J3924=\"Yes\",'TSA Input'!J3924=\"Contingent\"),'TSA Input'!B3924,\"Ineligible\"))","v":""},{"$f":"IF('TSA Input'!J3924=\"\",\"\",IF(OR('TSA Input'!J3924=\"Yes\",'TSA Input'!J3924=\"Contingent\"),'TSA Input'!I3924,\"\"))","v":""},{"$f":"IF('TSA Input'!J3924=\"\",\"\",IF(OR('TSA Input'!J3924=\"Yes\",'TSA Input'!J3924=\"Contingent\"),'TSA Input'!C3924,\"\"))","v":""},{"$f":"IF('TSA Input'!J3924=\"\",\"\",IF(OR('TSA Input'!J3924=\"Yes\",'TSA Input'!J3924=\"Contingent\"),'TSA Input'!D3924,\"\"))","v":""},{"$f":"IF('TSA Input'!J3924=\"\",\"\",IF(OR('TSA Input'!J3924=\"Yes\",'TSA Input'!J3924=\"Contingent\"),'TSA Input'!G3924,\"\"))","v":""},{"$f":"IF('TSA Input'!J3924=\"\",\"\",IF(OR('TSA Input'!J3924=\"Yes\",'TSA Input'!J3924=\"Contingent\"),'TSA Input'!F3924,\"\"))","v":""},"",{"$f":"IF('TSA Input'!J3924=\"\",\"\",IF(OR('TSA Input'!J3924=\"Yes\",'TSA Input'!J3924=\"Contingent\"),'TSA Input'!D3924,\"\"))","v":""},{"$f":"IF('TSA Input'!J3924=\"\",\"\",IF(OR('TSA Input'!J3924=\"Yes\",'TSA Input'!J3924=\"Contingent\"),'TSA Input'!G3924,\"\"))","v":""},{"$f":"IF('TSA Input'!J3924=\"\",\"\",IF(OR('TSA Input'!J3924=\"Yes\",'TSA Input'!J3924=\"Contingent\"),'TSA Input'!F3924,\"\"))","v":""},"","Required","Required"]
["",null,{"$f":"IF('TSA Input'!J3925=\"\",\"\",IF(OR('TSA Input'!J3925=\"Yes\",'TSA Input'!J3925=\"Contingent\"),'TSA Input'!B3925,\"Ineligible\"))","v":""},{"$f":"IF('TSA Input'!J3925=\"\",\"\",IF(OR('TSA Input'!J3925=\"Yes\",'TSA Input'!J3925=\"Contingent\"),'TSA Input'!I3925,\"\"))","v":""},{"$f":"IF('TSA Input'!J3925=\"\",\"\",IF(OR('TSA Input'!J3925=\"Yes\",'TSA Input'!J3925=\"Contingent\"),'TSA Input'!C3925,\"\"))","v":""},{"$f":"IF('TSA Input'!J3925=\"\",\"\",IF(OR('TSA Input'!J3925=\"Yes\",'TSA Input'!J3925=\"Contingent\"),'TSA Input'!D3925,\"\"))","v":""},{"$f":"IF('TSA Input'!J3925=\"\",\"\",IF(OR('TSA Input'!J3925=\"Yes\",'TSA Input'!J3925=\"Contingent\"),'TSA Input'!G3925,\"\"))","v":""},{"$f":"IF('TSA Input'!J3925=\"\",\"\",IF(OR('TSA Input'!J3925=\"Yes\",'TSA Input'!J3925=\"Contingent\"),'TSA Input'!F3925,\"\"))","v":""},"",{"$f":"IF('TSA Input'!J3925=\"\",\"\",IF(OR('TSA Input'!J3925=\"Yes\",'TSA Input'!J3925=\"Contingent\"),'TSA Input'!D3925,\"\"))","v":""},{"$f":"IF('TSA Input'!J3925=\"\",\"\",IF(OR('TSA Input'!J3925=\"Yes\",'TSA Input'!J3925=\"Contingent\"),'TSA Input'!G3925,\"\"))","v":""},{"$f":"IF('TSA Input'!J3925=\"\",\"\",IF(OR('TSA Input'!J3925=\"Yes\",'TSA Input'!J3925=\"Contingent\"),'TSA Input'!F3925,\"\"))","v":""},"","Required","Required"]
["",null,{"$f":"IF('TSA Input'!J3926=\"\",\"\",IF(OR('TSA Input'!J3926=\"Yes\",'TSA Input'!J3926=\"Contingent\"),'TSA Input'!B3926,\"Ineligible\"))","v":""},{"$f":"IF('TSA Input'!J3926=\"\",\"\",IF(OR('TSA Input'!J3926=\"Yes\",'TSA Input'!J3926=\"Contingent\"),'TSA Input'!I3926,\"\"))","v":""},{"$f":"IF('TSA Input'!J3926=\"\",\"\",IF(OR('TSA Input'!J3926=\"Yes\",'TSA Input'!J3926=\"Contingent\"),'TSA Input'!C3926,\"\"))","v":""},{"$f":"IF('TSA Input'!J3926=\"\",\"\",IF(OR('TSA Input'!J3926=\"Yes\",'TSA Input'!J3926=\"Contingent\"),'TSA Input'!D3926,\"\"))","v":""},{"$f":"IF('TSA Input'!J3926=\"\",\"\",IF(OR('TSA Input'!J3926=\"Yes\",'TSA Input'!J3926=\"Contingent\"),'TSA Input'!G3926,\"\"))","v":""},{"$f":"IF('TSA Input'!J3926=\"\",\"\",IF(OR('TSA Input'!J3926=\"Yes\",'TSA Input'!J3926=\"Contingent\"),'TSA Input'!F3926,\"\"))","v":""},"",{"$f":"IF('TSA Input'!J3926=\"\",\"\",IF(OR('TSA Input'!J3926=\"Yes\",'TSA Input'!J3926=\"Contingent\"),'TSA Input'!D3926,\"\"))","v":""},{"$f":"IF('TSA Input'!J3926=\"\",\"\",IF(OR('TSA Input'!J3926=\"Yes\",'TSA Input'!J3926=\"Contingent\"),'TSA Input'!G3926,\"\"))","v":""},{"$f":"IF('TSA Input'!J3926=\"\",\"\",IF(OR('TSA Input'!J3926=\"Yes\",'TSA Input'!J3926=\"Contingent\"),'TSA Input'!F3926,\"\"))","v":""},"","Required","Required"]
["",null,{"$f":"IF('TSA Input'!J3927=\"\",\"\",IF(OR('TSA Input'!J3927=\"Yes\",'TSA Input'!J3927=\"Contingent\"),'TSA Input'!B3927,\"Ineligible\"))","v":""},{"$f":"IF('TSA Input'!J3927=\"\",\"\",IF(OR('TSA Input'!J3927=\"Yes\",'TSA Input'!J3927=\"Contingent\"),'TSA Input'!I3927,\"\"))","v":""},{"$f":"IF('TSA Input'!J3927=\"\",\"\",IF(OR('TSA Input'!J3927=\"Yes\",'TSA Input'!J3927=\"Contingent\"),'TSA Input'!C3927,\"\"))","v":""},{"$f":"IF('TSA Input'!J3927=\"\",\"\",IF(OR('TSA Input'!J3927=\"Yes\",'TSA Input'!J3927=\"Contingent\"),'TSA Input'!D3927,\"\"))","v":""},{"$f":"IF('TSA Input'!J3927=\"\",\"\",IF(OR('TSA Input'!J3927=\"Yes\",'TSA Input'!J3927=\"Contingent\"),'TSA Input'!G3927,\"\"))","v":""},{"$f":"IF('TSA Input'!J3927=\"\",\"\",IF(OR('TSA Input'!J3927=\"Yes\",'TSA Input'!J3927=\"Contingent\"),'TSA Input'!F3927,\"\"))","v":""},"",{"$f":"IF('TSA Input'!J3927=\"\",\"\",IF(OR('TSA Input'!J3927=\"Yes\",'TSA Input'!J3927=\"Contingent\"),'TSA Input'!D3927,\"\"))","v":""},{"$f":"IF('TSA Input'!J3927=\"\",\"\",IF(OR('TSA Input'!J3927=\"Yes\",'TSA Input'!J3927=\"Contingent\"),'TSA Input'!G3927,\"\"))","v":""},{"$f":"IF('TSA Input'!J3927=\"\",\"\",IF(OR('TSA Input'!J3927=\"Yes\",'TSA Input'!J3927=\"Contingent\"),'TSA Input'!F3927,\"\"))","v":""},"","Required","Required"]
["",null,{"$f":"IF('TSA Input'!J3928=\"\",\"\",IF(OR('TSA Input'!J3928=\"Yes\",'TSA Input'!J3928=\"Contingent\"),'TSA Input'!B3928,\"Ineligible\"))","v":""},{"$f":"IF('TSA Input'!J3928=\"\",\"\",IF(OR('TSA Input'!J3928=\"Yes\",'TSA Input'!J3928=\"Contingent\"),'TSA Input'!I3928,\"\"))","v":""},{"$f":"IF('TSA Input'!J3928=\"\",\"\",IF(OR('TSA Input'!J3928=\"Yes\",'TSA Input'!J3928=\"Contingent\"),'TSA Input'!C3928,\"\"))","v":""},{"$f":"IF('TSA Input'!J3928=\"\",\"\",IF(OR('TSA Input'!J3928=\"Yes\",'TSA Input'!J3928=\"Contingent\"),'TSA Input'!D3928,\"\"))","v":""},{"$f":"IF('TSA Input'!J3928=\"\",\"\",IF(OR('TSA Input'!J3928=\"Yes\",'TSA Input'!J3928=\"Contingent\"),'TSA Input'!G3928,\"\"))","v":""},{"$f":"IF('TSA Input'!J3928=\"\",\"\",IF(OR('TSA Input'!J3928=\"Yes\",'TSA Input'!J3928=\"Contingent\"),'TSA Input'!F3928,\"\"))","v":""},"",{"$f":"IF('TSA Input'!J3928=\"\",\"\",IF(OR('TSA Input'!J3928=\"Yes\",'TSA Input'!J3928=\"Contingent\"),'TSA Input'!D3928,\"\"))","v":""},{"$f":"IF('TSA Input'!J3928=\"\",\"\",IF(OR('TSA Input'!J3928=\"Yes\",'TSA Input'!J3928=\"Contingent\"),'TSA Input'!G3928,\"\"))","v":""},{"$f":"IF('TSA Input'!J3928=\"\",\"\",IF(OR('TSA Input'!J3928=\"Yes\",'TSA Input'!J3928=\"Contingent\"),'TSA Input'!F3928,\"\"))","v":""},"","Required","Required"]
["",null,{"$f":"IF('TSA Input'!J3929=\"\",\"\",IF(OR('TSA Input'!J3929=\"Yes\",'TSA Input'!J3929=\"Contingent\"),'TSA Input'!B3929,\"Ineligible\"))","v":""},{"$f":"IF('TSA Input'!J3929=\"\",\"\",IF(OR('TSA Input'!J3929=\"Yes\",'TSA Input'!J3929=\"Contingent\"),'TSA Input'!I3929,\"\"))","v":""},{"$f":"IF('TSA Input'!J3929=\"\",\"\",IF(OR('TSA Input'!J3929=\"Yes\",'TSA Input'!J3929=\"Contingent\"),'TSA Input'!C3929,\"\"))","v":""},{"$f":"IF('TSA Input'!J3929=\"\",\"\",IF(OR('TSA Input'!J3929=\"Yes\",'TSA Input'!J3929=\"Contingent\"),'TSA Input'!D3929,\"\"))","v":""},{"$f":"IF('TSA Input'!J3929=\"\",\"\",IF(OR('TSA Input'!J3929=\"Yes\",'TSA Input'!J3929=\"Contingent\"),'TSA Input'!G3929,\"\"))","v":""},{"$f":"IF('TSA Input'!J3929=\"\",\"\",IF(OR('TSA Input'!J3929=\"Yes\",'TSA Input'!J3929=\"Contingent\"),'TSA Input'!F3929,\"\"))","v":""},"",{"$f":"IF('TSA Input'!J3929=\"\",\"\",IF(OR('TSA Input'!J3929=\"Yes\",'TSA Input'!J3929=\"Contingent\"),'TSA Input'!D3929,\"\"))","v":""},{"$f":"IF('TSA Input'!J3929=\"\",\"\",IF(OR('TSA Input'!J3929=\"Yes\",'TSA Input'!J3929=\"Contingent\"),'TSA Input'!G3929,\"\"))","v":""},{"$f":"IF('TSA Input'!J3929=\"\",\"\",IF(OR('TSA Input'!J3929=\"Yes\",'TSA Input'!J3929=\"Contingent\"),'TSA Input'!F3929,\"\"))","v":""},"","Required","Required"]
["",null,{"$f":"IF('TSA Input'!J3930=\"\",\"\",IF(OR('TSA Input'!J3930=\"Yes\",'TSA Input'!J3930=\"Contingent\"),'TSA Input'!B3930,\"Ineligible\"))","v":""},{"$f":"IF('TSA Input'!J3930=\"\",\"\",IF(OR('TSA Input'!J3930=\"Yes\",'TSA Input'!J3930=\"Contingent\"),'TSA Input'!I3930,\"\"))","v":""},{"$f":"IF('TSA Input'!J3930=\"\",\"\",IF(OR('TSA Input'!J3930=\"Yes\",'TSA Input'!J3930=\"Contingent\"),'TSA Input'!C3930,\"\"))","v":""},{"$f":"IF('TSA Input'!J3930=\"\",\"\",IF(OR('TSA Input'!J3930=\"Yes\",'TSA Input'!J3930=\"Contingent\"),'TSA Input'!D3930,\"\"))","v":""},{"$f":"IF('TSA Input'!J3930=\"\",\"\",IF(OR('TSA Input'!J3930=\"Yes\",'TSA Input'!J3930=\"Contingent\"),'TSA Input'!G3930,\"\"))","v":""},{"$f":"IF('TSA Input'!J3930=\"\",\"\",IF(OR('TSA Input'!J3930=\"Yes\",'TSA Input'!J3930=\"Contingent\"),'TSA Input'!F3930,\"\"))","v":""},"",{"$f":"IF('TSA Input'!J3930=\"\",\"\",IF(OR('TSA Input'!J3930=\"Yes\",'TSA Input'!J3930=\"Contingent\"),'TSA Input'!D3930,\"\"))","v":""},{"$f":"IF('TSA Input'!J3930=\"\",\"\",IF(OR('TSA Input'!J3930=\"Yes\",'TSA Input'!J3930=\"Contingent\"),'TSA Input'!G3930,\"\"))","v":""},{"$f":"IF('TSA Input'!J3930=\"\",\"\",IF(OR('TSA Input'!J3930=\"Yes\",'TSA Input'!J3930=\"Contingent\"),'TSA Input'!F3930,\"\"))","v":""},"","Required","Required"]
["",null,{"$f":"IF('TSA Input'!J3931=\"\",\"\",IF(OR('TSA Input'!J3931=\"Yes\",'TSA Input'!J3931=\"Contingent\"),'TSA Input'!B3931,\"Ineligible\"))","v":""},{"$f":"IF('TSA Input'!J3931=\"\",\"\",IF(OR('TSA Input'!J3931=\"Yes\",'TSA Input'!J3931=\"Contingent\"),'TSA Input'!I3931,\"\"))","v":""},{"$f":"IF('TSA Input'!J3931=\"\",\"\",IF(OR('TSA Input'!J3931=\"Yes\",'TSA Input'!J3931=\"Contingent\"),'TSA Input'!C3931,\"\"))","v":""},{"$f":"IF('TSA Input'!J3931=\"\",\"\",IF(OR('TSA Input'!J3931=\"Yes\",'TSA Input'!J3931=\"Contingent\"),'TSA Input'!D3931,\"\"))","v":""},{"$f":"IF('TSA Input'!J3931=\"\",\"\",IF(OR('TSA Input'!J3931=\"Yes\",'TSA Input'!J3931=\"Contingent\"),'TSA Input'!G3931,\"\"))","v":""},{"$f":"IF('TSA Input'!J3931=\"\",\"\",IF(OR('TSA Input'!J3931=\"Yes\",'TSA Input'!J3931=\"Contingent\"),'TSA Input'!F3931,\"\"))","v":""},"",{"$f":"IF('TSA Input'!J3931=\"\",\"\",IF(OR('TSA Input'!J3931=\"Yes\",'TSA Input'!J3931=\"Contingent\"),'TSA Input'!D3931,\"\"))","v":""},{"$f":"IF('TSA Input'!J3931=\"\",\"\",IF(OR('TSA Input'!J3931=\"Yes\",'TSA Input'!J3931=\"Contingent\"),'TSA Input'!G3931,\"\"))","v":""},{"$f":"IF('TSA Input'!J3931=\"\",\"\",IF(OR('TSA Input'!J3931=\"Yes\",'TSA Input'!J3931=\"Contingent\"),'TSA Input'!F3931,\"\"))","v":""},"","Required","Required"]
["",null,{"$f":"IF('TSA Input'!J3932=\"\",\"\",IF(OR('TSA Input'!J3932=\"Yes\",'TSA Input'!J3932=\"Contingent\"),'TSA Input'!B3932,\"Ineligible\"))","v":""},{"$f":"IF('TSA Input'!J3932=\"\",\"\",IF(OR('TSA Input'!J3932=\"Yes\",'TSA Input'!J3932=\"Contingent\"),'TSA Input'!I3932,\"\"))","v":""},{"$f":"IF('TSA Input'!J3932=\"\",\"\",IF(OR('TSA Input'!J3932=\"Yes\",'TSA Input'!J3932=\"Contingent\"),'TSA Input'!C3932,\"\"))","v":""},{"$f":"IF('TSA Input'!J3932=\"\",\"\",IF(OR('TSA Input'!J3932=\"Yes\",'TSA Input'!J3932=\"Contingent\"),'TSA Input'!D3932,\"\"))","v":""},{"$f":"IF('TSA Input'!J3932=\"\",\"\",IF(OR('TSA Input'!J3932=\"Yes\",'TSA Input'!J3932=\"Contingent\"),'TSA Input'!G3932,\"\"))","v":""},{"$f":"IF('TSA Input'!J3932=\"\",\"\",IF(OR('TSA Input'!J3932=\"Yes\",'TSA Input'!J3932=\"Contingent\"),'TSA Input'!F3932,\"\"))","v":""},"",{"$f":"IF('TSA Input'!J3932=\"\",\"\",IF(OR('TSA Input'!J3932=\"Yes\",'TSA Input'!J3932=\"Contingent\"),'TSA Input'!D3932,\"\"))","v":""},{"$f":"IF('TSA Input'!J3932=\"\",\"\",IF(OR('TSA Input'!J3932=\"Yes\",'TSA Input'!J3932=\"Contingent\"),'TSA Input'!G3932,\"\"))","v":""},{"$f":"IF('TSA Input'!J3932=\"\",\"\",IF(OR('TSA Input'!J3932=\"Yes\",'TSA Input'!J3932=\"Contingent\"),'TSA Input'!F3932,\"\"))","v":""},"","Required","Required"]
["",null,{"$f":"IF('TSA Input'!J3933=\"\",\"\",IF(OR('TSA Input'!J3933=\"Yes\",'TSA Input'!J3933=\"Contingent\"),'TSA Input'!B3933,\"Ineligible\"))","v":""},{"$f":"IF('TSA Input'!J3933=\"\",\"\",IF(OR('TSA Input'!J3933=\"Yes\",'TSA Input'!J3933=\"Contingent\"),'TSA Input'!I3933,\"\"))","v":""},{"$f":"IF('TSA Input'!J3933=\"\",\"\",IF(OR('TSA Input'!J3933=\"Yes\",'TSA Input'!J3933=\"Contingent\"),'TSA Input'!C3933,\"\"))","v":""},{"$f":"IF('TSA Input'!J3933=\"\",\"\",IF(OR('TSA Input'!J3933=\"Yes\",'TSA Input'!J3933=\"Contingent\"),'TSA Input'!D3933,\"\"))","v":""},{"$f":"IF('TSA Input'!J3933=\"\",\"\",IF(OR('TSA Input'!J3933=\"Yes\",'TSA Input'!J3933=\"Contingent\"),'TSA Input'!G3933,\"\"))","v":""},{"$f":"IF('TSA Input'!J3933=\"\",\"\",IF(OR('TSA Input'!J3933=\"Yes\",'TSA Input'!J3933=\"Contingent\"),'TSA Input'!F3933,\"\"))","v":""},"",{"$f":"IF('TSA Input'!J3933=\"\",\"\",IF(OR('TSA Input'!J3933=\"Yes\",'TSA Input'!J3933=\"Contingent\"),'TSA Input'!D3933,\"\"))","v":""},{"$f":"IF('TSA Input'!J3933=\"\",\"\",IF(OR('TSA Input'!J3933=\"Yes\",'TSA Input'!J3933=\"Contingent\"),'TSA Input'!G3933,\"\"))","v":""},{"$f":"IF('TSA Input'!J3933=\"\",\"\",IF(OR('TSA Input'!J3933=\"Yes\",'TSA Input'!J3933=\"Contingent\"),'TSA Input'!F3933,\"\"))","v":""},"","Required","Required"]
["",null,{"$f":"IF('TSA Input'!J3934=\"\",\"\",IF(OR('TSA Input'!J3934=\"Yes\",'TSA Input'!J3934=\"Contingent\"),'TSA Input'!B3934,\"Ineligible\"))","v":""},{"$f":"IF('TSA Input'!J3934=\"\",\"\",IF(OR('TSA Input'!J3934=\"Yes\",'TSA Input'!J3934=\"Contingent\"),'TSA Input'!I3934,\"\"))","v":""},{"$f":"IF('TSA Input'!J3934=\"\",\"\",IF(OR('TSA Input'!J3934=\"Yes\",'TSA Input'!J3934=\"Contingent\"),'TSA Input'!C3934,\"\"))","v":""},{"$f":"IF('TSA Input'!J3934=\"\",\"\",IF(OR('TSA Input'!J3934=\"Yes\",'TSA Input'!J3934=\"Contingent\"),'TSA Input'!D3934,\"\"))","v":""},{"$f":"IF('TSA Input'!J3934=\"\",\"\",IF(OR('TSA Input'!J3934=\"Yes\",'TSA Input'!J3934=\"Contingent\"),'TSA Input'!G3934,\"\"))","v":""},{"$f":"IF('TSA Input'!J3934=\"\",\"\",IF(OR('TSA Input'!J3934=\"Yes\",'TSA Input'!J3934=\"Contingent\"),'TSA Input'!F3934,\"\"))","v":""},"",{"$f":"IF('TSA Input'!J3934=\"\",\"\",IF(OR('TSA Input'!J3934=\"Yes\",'TSA Input'!J3934=\"Contingent\"),'TSA Input'!D3934,\"\"))","v":""},{"$f":"IF('TSA Input'!J3934=\"\",\"\",IF(OR('TSA Input'!J3934=\"Yes\",'TSA Input'!J3934=\"Contingent\"),'TSA Input'!G3934,\"\"))","v":""},{"$f":"IF('TSA Input'!J3934=\"\",\"\",IF(OR('TSA Input'!J3934=\"Yes\",'TSA Input'!J3934=\"Contingent\"),'TSA Input'!F3934,\"\"))","v":""},"","Required","Required"]
["",null,{"$f":"IF('TSA Input'!J3935=\"\",\"\",IF(OR('TSA Input'!J3935=\"Yes\",'TSA Input'!J3935=\"Contingent\"),'TSA Input'!B3935,\"Ineligible\"))","v":""},{"$f":"IF('TSA Input'!J3935=\"\",\"\",IF(OR('TSA Input'!J3935=\"Yes\",'TSA Input'!J3935=\"Contingent\"),'TSA Input'!I3935,\"\"))","v":""},{"$f":"IF('TSA Input'!J3935=\"\",\"\",IF(OR('TSA Input'!J3935=\"Yes\",'TSA Input'!J3935=\"Contingent\"),'TSA Input'!C3935,\"\"))","v":""},{"$f":"IF('TSA Input'!J3935=\"\",\"\",IF(OR('TSA Input'!J3935=\"Yes\",'TSA Input'!J3935=\"Contingent\"),'TSA Input'!D3935,\"\"))","v":""},{"$f":"IF('TSA Input'!J3935=\"\",\"\",IF(OR('TSA Input'!J3935=\"Yes\",'TSA Input'!J3935=\"Contingent\"),'TSA Input'!G3935,\"\"))","v":""},{"$f":"IF('TSA Input'!J3935=\"\",\"\",IF(OR('TSA Input'!J3935=\"Yes\",'TSA Input'!J3935=\"Contingent\"),'TSA Input'!F3935,\"\"))","v":""},"",{"$f":"IF('TSA Input'!J3935=\"\",\"\",IF(OR('TSA Input'!J3935=\"Yes\",'TSA Input'!J3935=\"Contingent\"),'TSA Input'!D3935,\"\"))","v":""},{"$f":"IF('TSA Input'!J3935=\"\",\"\",IF(OR('TSA Input'!J3935=\"Yes\",'TSA Input'!J3935=\"Contingent\"),'TSA Input'!G3935,\"\"))","v":""},{"$f":"IF('TSA Input'!J3935=\"\",\"\",IF(OR('TSA Input'!J3935=\"Yes\",'TSA Input'!J3935=\"Contingent\"),'TSA Input'!F3935,\"\"))","v":""},"","Required","Required"]
["",null,{"$f":"IF('TSA Input'!J3936=\"\",\"\",IF(OR('TSA Input'!J3936=\"Yes\",'TSA Input'!J3936=\"Contingent\"),'TSA Input'!B3936,\"Ineligible\"))","v":""},{"$f":"IF('TSA Input'!J3936=\"\",\"\",IF(OR('TSA Input'!J3936=\"Yes\",'TSA Input'!J3936=\"Contingent\"),'TSA Input'!I3936,\"\"))","v":""},{"$f":"IF('TSA Input'!J3936=\"\",\"\",IF(OR('TSA Input'!J3936=\"Yes\",'TSA Input'!J3936=\"Contingent\"),'TSA Input'!C3936,\"\"))","v":""},{"$f":"IF('TSA Input'!J3936=\"\",\"\",IF(OR('TSA Input'!J3936=\"Yes\",'TSA Input'!J3936=\"Contingent\"),'TSA Input'!D3936,\"\"))","v":""},{"$f":"IF('TSA Input'!J3936=\"\",\"\",IF(OR('TSA Input'!J3936=\"Yes\",'TSA Input'!J3936=\"Contingent\"),'TSA Input'!G3936,\"\"))","v":""},{"$f":"IF('TSA Input'!J3936=\"\",\"\",IF(OR('TSA Input'!J3936=\"Yes\",'TSA Input'!J3936=\"Contingent\"),'TSA Input'!F3936,\"\"))","v":""},"",{"$f":"IF('TSA Input'!J3936=\"\",\"\",IF(OR('TSA Input'!J3936=\"Yes\",'TSA Input'!J3936=\"Contingent\"),'TSA Input'!D3936,\"\"))","v":""},{"$f":"IF('TSA Input'!J3936=\"\",\"\",IF(OR('TSA Input'!J3936=\"Yes\",'TSA Input'!J3936=\"Contingent\"),'TSA Input'!G3936,\"\"))","v":""},{"$f":"IF('TSA Input'!J3936=\"\",\"\",IF(OR('TSA Input'!J3936=\"Yes\",'TSA Input'!J3936=\"Contingent\"),'TSA Input'!F3936,\"\"))","v":""},"","Required","Required"]
["",null,{"$f":"IF('TSA Input'!J3937=\"\",\"\",IF(OR('TSA Input'!J3937=\"Yes\",'TSA Input'!J3937=\"Contingent\"),'TSA Input'!B3937,\"Ineligible\"))","v":""},{"$f":"IF('TSA Input'!J3937=\"\",\"\",IF(OR('TSA Input'!J3937=\"Yes\",'TSA Input'!J3937=\"Contingent\"),'TSA Input'!I3937,\"\"))","v":""},{"$f":"IF('TSA Input'!J3937=\"\",\"\",IF(OR('TSA Input'!J3937=\"Yes\",'TSA Input'!J3937=\"Contingent\"),'TSA Input'!C3937,\"\"))","v":""},{"$f":"IF('TSA Input'!J3937=\"\",\"\",IF(OR('TSA Input'!J3937=\"Yes\",'TSA Input'!J3937=\"Contingent\"),'TSA Input'!D3937,\"\"))","v":""},{"$f":"IF('TSA Input'!J3937=\"\",\"\",IF(OR('TSA Input'!J3937=\"Yes\",'TSA Input'!J3937=\"Contingent\"),'TSA Input'!G3937,\"\"))","v":""},{"$f":"IF('TSA Input'!J3937=\"\",\"\",IF(OR('TSA Input'!J3937=\"Yes\",'TSA Input'!J3937=\"Contingent\"),'TSA Input'!F3937,\"\"))","v":""},"",{"$f":"IF('TSA Input'!J3937=\"\",\"\",IF(OR('TSA Input'!J3937=\"Yes\",'TSA Input'!J3937=\"Contingent\"),'TSA Input'!D3937,\"\"))","v":""},{"$f":"IF('TSA Input'!J3937=\"\",\"\",IF(OR('TSA Input'!J3937=\"Yes\",'TSA Input'!J3937=\"Contingent\"),'TSA Input'!G3937,\"\"))","v":""},{"$f":"IF('TSA Input'!J3937=\"\",\"\",IF(OR('TSA Input'!J3937=\"Yes\",'TSA Input'!J3937=\"Contingent\"),'TSA Input'!F3937,\"\"))","v":""},"","Required","Required"]
["",null,{"$f":"IF('TSA Input'!J3938=\"\",\"\",IF(OR('TSA Input'!J3938=\"Yes\",'TSA Input'!J3938=\"Contingent\"),'TSA Input'!B3938,\"Ineligible\"))","v":""},{"$f":"IF('TSA Input'!J3938=\"\",\"\",IF(OR('TSA Input'!J3938=\"Yes\",'TSA Input'!J3938=\"Contingent\"),'TSA Input'!I3938,\"\"))","v":""},{"$f":"IF('TSA Input'!J3938=\"\",\"\",IF(OR('TSA Input'!J3938=\"Yes\",'TSA Input'!J3938=\"Contingent\"),'TSA Input'!C3938,\"\"))","v":""},{"$f":"IF('TSA Input'!J3938=\"\",\"\",IF(OR('TSA Input'!J3938=\"Yes\",'TSA Input'!J3938=\"Contingent\"),'TSA Input'!D3938,\"\"))","v":""},{"$f":"IF('TSA Input'!J3938=\"\",\"\",IF(OR('TSA Input'!J3938=\"Yes\",'TSA Input'!J3938=\"Contingent\"),'TSA Input'!G3938,\"\"))","v":""},{"$f":"IF('TSA Input'!J3938=\"\",\"\",IF(OR('TSA Input'!J3938=\"Yes\",'TSA Input'!J3938=\"Contingent\"),'TSA Input'!F3938,\"\"))","v":""},"",{"$f":"IF('TSA Input'!J3938=\"\",\"\",IF(OR('TSA Input'!J3938=\"Yes\",'TSA Input'!J3938=\"Contingent\"),'TSA Input'!D3938,\"\"))","v":""},{"$f":"IF('TSA Input'!J3938=\"\",\"\",IF(OR('TSA Input'!J3938=\"Yes\",'TSA Input'!J3938=\"Contingent\"),'TSA Input'!G3938,\"\"))","v":""},{"$f":"IF('TSA Input'!J3938=\"\",\"\",IF(OR('TSA Input'!J3938=\"Yes\",'TSA Input'!J3938=\"Contingent\"),'TSA Input'!F3938,\"\"))","v":""},"","Required","Required"]
["",null,{"$f":"IF('TSA Input'!J3939=\"\",\"\",IF(OR('TSA Input'!J3939=\"Yes\",'TSA Input'!J3939=\"Contingent\"),'TSA Input'!B3939,\"Ineligible\"))","v":""},{"$f":"IF('TSA Input'!J3939=\"\",\"\",IF(OR('TSA Input'!J3939=\"Yes\",'TSA Input'!J3939=\"Contingent\"),'TSA Input'!I3939,\"\"))","v":""},{"$f":"IF('TSA Input'!J3939=\"\",\"\",IF(OR('TSA Input'!J3939=\"Yes\",'TSA Input'!J3939=\"Contingent\"),'TSA Input'!C3939,\"\"))","v":""},{"$f":"IF('TSA Input'!J3939=\"\",\"\",IF(OR('TSA Input'!J3939=\"Yes\",'TSA Input'!J3939=\"Contingent\"),'TSA Input'!D3939,\"\"))","v":""},{"$f":"IF('TSA Input'!J3939=\"\",\"\",IF(OR('TSA Input'!J3939=\"Yes\",'TSA Input'!J3939=\"Contingent\"),'TSA Input'!G3939,\"\"))","v":""},{"$f":"IF('TSA Input'!J3939=\"\",\"\",IF(OR('TSA Input'!J3939=\"Yes\",'TSA Input'!J3939=\"Contingent\"),'TSA Input'!F3939,\"\"))","v":""},"",{"$f":"IF('TSA Input'!J3939=\"\",\"\",IF(OR('TSA Input'!J3939=\"Yes\",'TSA Input'!J3939=\"Contingent\"),'TSA Input'!D3939,\"\"))","v":""},{"$f":"IF('TSA Input'!J3939=\"\",\"\",IF(OR('TSA Input'!J3939=\"Yes\",'TSA Input'!J3939=\"Contingent\"),'TSA Input'!G3939,\"\"))","v":""},{"$f":"IF('TSA Input'!J3939=\"\",\"\",IF(OR('TSA Input'!J3939=\"Yes\",'TSA Input'!J3939=\"Contingent\"),'TSA Input'!F3939,\"\"))","v":""},"","Required","Required"]
["",null,{"$f":"IF('TSA Input'!J3940=\"\",\"\",IF(OR('TSA Input'!J3940=\"Yes\",'TSA Input'!J3940=\"Contingent\"),'TSA Input'!B3940,\"Ineligible\"))","v":""},{"$f":"IF('TSA Input'!J3940=\"\",\"\",IF(OR('TSA Input'!J3940=\"Yes\",'TSA Input'!J3940=\"Contingent\"),'TSA Input'!I3940,\"\"))","v":""},{"$f":"IF('TSA Input'!J3940=\"\",\"\",IF(OR('TSA Input'!J3940=\"Yes\",'TSA Input'!J3940=\"Contingent\"),'TSA Input'!C3940,\"\"))","v":""},{"$f":"IF('TSA Input'!J3940=\"\",\"\",IF(OR('TSA Input'!J3940=\"Yes\",'TSA Input'!J3940=\"Contingent\"),'TSA Input'!D3940,\"\"))","v":""},{"$f":"IF('TSA Input'!J3940=\"\",\"\",IF(OR('TSA Input'!J3940=\"Yes\",'TSA Input'!J3940=\"Contingent\"),'TSA Input'!G3940,\"\"))","v":""},{"$f":"IF('TSA Input'!J3940=\"\",\"\",IF(OR('TSA Input'!J3940=\"Yes\",'TSA Input'!J3940=\"Contingent\"),'TSA Input'!F3940,\"\"))","v":""},"",{"$f":"IF('TSA Input'!J3940=\"\",\"\",IF(OR('TSA Input'!J3940=\"Yes\",'TSA Input'!J3940=\"Contingent\"),'TSA Input'!D3940,\"\"))","v":""},{"$f":"IF('TSA Input'!J3940=\"\",\"\",IF(OR('TSA Input'!J3940=\"Yes\",'TSA Input'!J3940=\"Contingent\"),'TSA Input'!G3940,\"\"))","v":""},{"$f":"IF('TSA Input'!J3940=\"\",\"\",IF(OR('TSA Input'!J3940=\"Yes\",'TSA Input'!J3940=\"Contingent\"),'TSA Input'!F3940,\"\"))","v":""},"","Required","Required"]
["",null,{"$f":"IF('TSA Input'!J3941=\"\",\"\",IF(OR('TSA Input'!J3941=\"Yes\",'TSA Input'!J3941=\"Contingent\"),'TSA Input'!B3941,\"Ineligible\"))","v":""},{"$f":"IF('TSA Input'!J3941=\"\",\"\",IF(OR('TSA Input'!J3941=\"Yes\",'TSA Input'!J3941=\"Contingent\"),'TSA Input'!I3941,\"\"))","v":""},{"$f":"IF('TSA Input'!J3941=\"\",\"\",IF(OR('TSA Input'!J3941=\"Yes\",'TSA Input'!J3941=\"Contingent\"),'TSA Input'!C3941,\"\"))","v":""},{"$f":"IF('TSA Input'!J3941=\"\",\"\",IF(OR('TSA Input'!J3941=\"Yes\",'TSA Input'!J3941=\"Contingent\"),'TSA Input'!D3941,\"\"))","v":""},{"$f":"IF('TSA Input'!J3941=\"\",\"\",IF(OR('TSA Input'!J3941=\"Yes\",'TSA Input'!J3941=\"Contingent\"),'TSA Input'!G3941,\"\"))","v":""},{"$f":"IF('TSA Input'!J3941=\"\",\"\",IF(OR('TSA Input'!J3941=\"Yes\",'TSA Input'!J3941=\"Contingent\"),'TSA Input'!F3941,\"\"))","v":""},"",{"$f":"IF('TSA Input'!J3941=\"\",\"\",IF(OR('TSA Input'!J3941=\"Yes\",'TSA Input'!J3941=\"Contingent\"),'TSA Input'!D3941,\"\"))","v":""},{"$f":"IF('TSA Input'!J3941=\"\",\"\",IF(OR('TSA Input'!J3941=\"Yes\",'TSA Input'!J3941=\"Contingent\"),'TSA Input'!G3941,\"\"))","v":""},{"$f":"IF('TSA Input'!J3941=\"\",\"\",IF(OR('TSA Input'!J3941=\"Yes\",'TSA Input'!J3941=\"Contingent\"),'TSA Input'!F3941,\"\"))","v":""},"","Required","Required"]
["",null,{"$f":"IF('TSA Input'!J3942=\"\",\"\",IF(OR('TSA Input'!J3942=\"Yes\",'TSA Input'!J3942=\"Contingent\"),'TSA Input'!B3942,\"Ineligible\"))","v":""},{"$f":"IF('TSA Input'!J3942=\"\",\"\",IF(OR('TSA Input'!J3942=\"Yes\",'TSA Input'!J3942=\"Contingent\"),'TSA Input'!I3942,\"\"))","v":""},{"$f":"IF('TSA Input'!J3942=\"\",\"\",IF(OR('TSA Input'!J3942=\"Yes\",'TSA Input'!J3942=\"Contingent\"),'TSA Input'!C3942,\"\"))","v":""},{"$f":"IF('TSA Input'!J3942=\"\",\"\",IF(OR('TSA Input'!J3942=\"Yes\",'TSA Input'!J3942=\"Contingent\"),'TSA Input'!D3942,\"\"))","v":""},{"$f":"IF('TSA Input'!J3942=\"\",\"\",IF(OR('TSA Input'!J3942=\"Yes\",'TSA Input'!J3942=\"Contingent\"),'TSA Input'!G3942,\"\"))","v":""},{"$f":"IF('TSA Input'!J3942=\"\",\"\",IF(OR('TSA Input'!J3942=\"Yes\",'TSA Input'!J3942=\"Contingent\"),'TSA Input'!F3942,\"\"))","v":""},"",{"$f":"IF('TSA Input'!J3942=\"\",\"\",IF(OR('TSA Input'!J3942=\"Yes\",'TSA Input'!J3942=\"Contingent\"),'TSA Input'!D3942,\"\"))","v":""},{"$f":"IF('TSA Input'!J3942=\"\",\"\",IF(OR('TSA Input'!J3942=\"Yes\",'TSA Input'!J3942=\"Contingent\"),'TSA Input'!G3942,\"\"))","v":""},{"$f":"IF('TSA Input'!J3942=\"\",\"\",IF(OR('TSA Input'!J3942=\"Yes\",'TSA Input'!J3942=\"Contingent\"),'TSA Input'!F3942,\"\"))","v":""},"","Required","Required"]
["",null,{"$f":"IF('TSA Input'!J3943=\"\",\"\",IF(OR('TSA Input'!J3943=\"Yes\",'TSA Input'!J3943=\"Contingent\"),'TSA Input'!B3943,\"Ineligible\"))","v":""},{"$f":"IF('TSA Input'!J3943=\"\",\"\",IF(OR('TSA Input'!J3943=\"Yes\",'TSA Input'!J3943=\"Contingent\"),'TSA Input'!I3943,\"\"))","v":""},{"$f":"IF('TSA Input'!J3943=\"\",\"\",IF(OR('TSA Input'!J3943=\"Yes\",'TSA Input'!J3943=\"Contingent\"),'TSA Input'!C3943,\"\"))","v":""},{"$f":"IF('TSA Input'!J3943=\"\",\"\",IF(OR('TSA Input'!J3943=\"Yes\",'TSA Input'!J3943=\"Contingent\"),'TSA Input'!D3943,\"\"))","v":""},{"$f":"IF('TSA Input'!J3943=\"\",\"\",IF(OR('TSA Input'!J3943=\"Yes\",'TSA Input'!J3943=\"Contingent\"),'TSA Input'!G3943,\"\"))","v":""},{"$f":"IF('TSA Input'!J3943=\"\",\"\",IF(OR('TSA Input'!J3943=\"Yes\",'TSA Input'!J3943=\"Contingent\"),'TSA Input'!F3943,\"\"))","v":""},"",{"$f":"IF('TSA Input'!J3943=\"\",\"\",IF(OR('TSA Input'!J3943=\"Yes\",'TSA Input'!J3943=\"Contingent\"),'TSA Input'!D3943,\"\"))","v":""},{"$f":"IF('TSA Input'!J3943=\"\",\"\",IF(OR('TSA Input'!J3943=\"Yes\",'TSA Input'!J3943=\"Contingent\"),'TSA Input'!G3943,\"\"))","v":""},{"$f":"IF('TSA Input'!J3943=\"\",\"\",IF(OR('TSA Input'!J3943=\"Yes\",'TSA Input'!J3943=\"Contingent\"),'TSA Input'!F3943,\"\"))","v":""},"","Required","Required"]
["",null,{"$f":"IF('TSA Input'!J3944=\"\",\"\",IF(OR('TSA Input'!J3944=\"Yes\",'TSA Input'!J3944=\"Contingent\"),'TSA Input'!B3944,\"Ineligible\"))","v":""},{"$f":"IF('TSA Input'!J3944=\"\",\"\",IF(OR('TSA Input'!J3944=\"Yes\",'TSA Input'!J3944=\"Contingent\"),'TSA Input'!I3944,\"\"))","v":""},{"$f":"IF('TSA Input'!J3944=\"\",\"\",IF(OR('TSA Input'!J3944=\"Yes\",'TSA Input'!J3944=\"Contingent\"),'TSA Input'!C3944,\"\"))","v":""},{"$f":"IF('TSA Input'!J3944=\"\",\"\",IF(OR('TSA Input'!J3944=\"Yes\",'TSA Input'!J3944=\"Contingent\"),'TSA Input'!D3944,\"\"))","v":""},{"$f":"IF('TSA Input'!J3944=\"\",\"\",IF(OR('TSA Input'!J3944=\"Yes\",'TSA Input'!J3944=\"Contingent\"),'TSA Input'!G3944,\"\"))","v":""},{"$f":"IF('TSA Input'!J3944=\"\",\"\",IF(OR('TSA Input'!J3944=\"Yes\",'TSA Input'!J3944=\"Contingent\"),'TSA Input'!F3944,\"\"))","v":""},"",{"$f":"IF('TSA Input'!J3944=\"\",\"\",IF(OR('TSA Input'!J3944=\"Yes\",'TSA Input'!J3944=\"Contingent\"),'TSA Input'!D3944,\"\"))","v":""},{"$f":"IF('TSA Input'!J3944=\"\",\"\",IF(OR('TSA Input'!J3944=\"Yes\",'TSA Input'!J3944=\"Contingent\"),'TSA Input'!G3944,\"\"))","v":""},{"$f":"IF('TSA Input'!J3944=\"\",\"\",IF(OR('TSA Input'!J3944=\"Yes\",'TSA Input'!J3944=\"Contingent\"),'TSA Input'!F3944,\"\"))","v":""},"","Required","Required"]
["",null,{"$f":"IF('TSA Input'!J3945=\"\",\"\",IF(OR('TSA Input'!J3945=\"Yes\",'TSA Input'!J3945=\"Contingent\"),'TSA Input'!B3945,\"Ineligible\"))","v":""},{"$f":"IF('TSA Input'!J3945=\"\",\"\",IF(OR('TSA Input'!J3945=\"Yes\",'TSA Input'!J3945=\"Contingent\"),'TSA Input'!I3945,\"\"))","v":""},{"$f":"IF('TSA Input'!J3945=\"\",\"\",IF(OR('TSA Input'!J3945=\"Yes\",'TSA Input'!J3945=\"Contingent\"),'TSA Input'!C3945,\"\"))","v":""},{"$f":"IF('TSA Input'!J3945=\"\",\"\",IF(OR('TSA Input'!J3945=\"Yes\",'TSA Input'!J3945=\"Contingent\"),'TSA Input'!D3945,\"\"))","v":""},{"$f":"IF('TSA Input'!J3945=\"\",\"\",IF(OR('TSA Input'!J3945=\"Yes\",'TSA Input'!J3945=\"Contingent\"),'TSA Input'!G3945,\"\"))","v":""},{"$f":"IF('TSA Input'!J3945=\"\",\"\",IF(OR('TSA Input'!J3945=\"Yes\",'TSA Input'!J3945=\"Contingent\"),'TSA Input'!F3945,\"\"))","v":""},"",{"$f":"IF('TSA Input'!J3945=\"\",\"\",IF(OR('TSA Input'!J3945=\"Yes\",'TSA Input'!J3945=\"Contingent\"),'TSA Input'!D3945,\"\"))","v":""},{"$f":"IF('TSA Input'!J3945=\"\",\"\",IF(OR('TSA Input'!J3945=\"Yes\",'TSA Input'!J3945=\"Contingent\"),'TSA Input'!G3945,\"\"))","v":""},{"$f":"IF('TSA Input'!J3945=\"\",\"\",IF(OR('TSA Input'!J3945=\"Yes\",'TSA Input'!J3945=\"Contingent\"),'TSA Input'!F3945,\"\"))","v":""},"","Required","Required"]
["",null,{"$f":"IF('TSA Input'!J3946=\"\",\"\",IF(OR('TSA Input'!J3946=\"Yes\",'TSA Input'!J3946=\"Contingent\"),'TSA Input'!B3946,\"Ineligible\"))","v":""},{"$f":"IF('TSA Input'!J3946=\"\",\"\",IF(OR('TSA Input'!J3946=\"Yes\",'TSA Input'!J3946=\"Contingent\"),'TSA Input'!I3946,\"\"))","v":""},{"$f":"IF('TSA Input'!J3946=\"\",\"\",IF(OR('TSA Input'!J3946=\"Yes\",'TSA Input'!J3946=\"Contingent\"),'TSA Input'!C3946,\"\"))","v":""},{"$f":"IF('TSA Input'!J3946=\"\",\"\",IF(OR('TSA Input'!J3946=\"Yes\",'TSA Input'!J3946=\"Contingent\"),'TSA Input'!D3946,\"\"))","v":""},{"$f":"IF('TSA Input'!J3946=\"\",\"\",IF(OR('TSA Input'!J3946=\"Yes\",'TSA Input'!J3946=\"Contingent\"),'TSA Input'!G3946,\"\"))","v":""},{"$f":"IF('TSA Input'!J3946=\"\",\"\",IF(OR('TSA Input'!J3946=\"Yes\",'TSA Input'!J3946=\"Contingent\"),'TSA Input'!F3946,\"\"))","v":""},"",{"$f":"IF('TSA Input'!J3946=\"\",\"\",IF(OR('TSA Input'!J3946=\"Yes\",'TSA Input'!J3946=\"Contingent\"),'TSA Input'!D3946,\"\"))","v":""},{"$f":"IF('TSA Input'!J3946=\"\",\"\",IF(OR('TSA Input'!J3946=\"Yes\",'TSA Input'!J3946=\"Contingent\"),'TSA Input'!G3946,\"\"))","v":""},{"$f":"IF('TSA Input'!J3946=\"\",\"\",IF(OR('TSA Input'!J3946=\"Yes\",'TSA Input'!J3946=\"Contingent\"),'TSA Input'!F3946,\"\"))","v":""},"","Required","Required"]
["",null,{"$f":"IF('TSA Input'!J3947=\"\",\"\",IF(OR('TSA Input'!J3947=\"Yes\",'TSA Input'!J3947=\"Contingent\"),'TSA Input'!B3947,\"Ineligible\"))","v":""},{"$f":"IF('TSA Input'!J3947=\"\",\"\",IF(OR('TSA Input'!J3947=\"Yes\",'TSA Input'!J3947=\"Contingent\"),'TSA Input'!I3947,\"\"))","v":""},{"$f":"IF('TSA Input'!J3947=\"\",\"\",IF(OR('TSA Input'!J3947=\"Yes\",'TSA Input'!J3947=\"Contingent\"),'TSA Input'!C3947,\"\"))","v":""},{"$f":"IF('TSA Input'!J3947=\"\",\"\",IF(OR('TSA Input'!J3947=\"Yes\",'TSA Input'!J3947=\"Contingent\"),'TSA Input'!D3947,\"\"))","v":""},{"$f":"IF('TSA Input'!J3947=\"\",\"\",IF(OR('TSA Input'!J3947=\"Yes\",'TSA Input'!J3947=\"Contingent\"),'TSA Input'!G3947,\"\"))","v":""},{"$f":"IF('TSA Input'!J3947=\"\",\"\",IF(OR('TSA Input'!J3947=\"Yes\",'TSA Input'!J3947=\"Contingent\"),'TSA Input'!F3947,\"\"))","v":""},"",{"$f":"IF('TSA Input'!J3947=\"\",\"\",IF(OR('TSA Input'!J3947=\"Yes\",'TSA Input'!J3947=\"Contingent\"),'TSA Input'!D3947,\"\"))","v":""},{"$f":"IF('TSA Input'!J3947=\"\",\"\",IF(OR('TSA Input'!J3947=\"Yes\",'TSA Input'!J3947=\"Contingent\"),'TSA Input'!G3947,\"\"))","v":""},{"$f":"IF('TSA Input'!J3947=\"\",\"\",IF(OR('TSA Input'!J3947=\"Yes\",'TSA Input'!J3947=\"Contingent\"),'TSA Input'!F3947,\"\"))","v":""},"","Required","Required"]
["",null,{"$f":"IF('TSA Input'!J3948=\"\",\"\",IF(OR('TSA Input'!J3948=\"Yes\",'TSA Input'!J3948=\"Contingent\"),'TSA Input'!B3948,\"Ineligible\"))","v":""},{"$f":"IF('TSA Input'!J3948=\"\",\"\",IF(OR('TSA Input'!J3948=\"Yes\",'TSA Input'!J3948=\"Contingent\"),'TSA Input'!I3948,\"\"))","v":""},{"$f":"IF('TSA Input'!J3948=\"\",\"\",IF(OR('TSA Input'!J3948=\"Yes\",'TSA Input'!J3948=\"Contingent\"),'TSA Input'!C3948,\"\"))","v":""},{"$f":"IF('TSA Input'!J3948=\"\",\"\",IF(OR('TSA Input'!J3948=\"Yes\",'TSA Input'!J3948=\"Contingent\"),'TSA Input'!D3948,\"\"))","v":""},{"$f":"IF('TSA Input'!J3948=\"\",\"\",IF(OR('TSA Input'!J3948=\"Yes\",'TSA Input'!J3948=\"Contingent\"),'TSA Input'!G3948,\"\"))","v":""},{"$f":"IF('TSA Input'!J3948=\"\",\"\",IF(OR('TSA Input'!J3948=\"Yes\",'TSA Input'!J3948=\"Contingent\"),'TSA Input'!F3948,\"\"))","v":""},"",{"$f":"IF('TSA Input'!J3948=\"\",\"\",IF(OR('TSA Input'!J3948=\"Yes\",'TSA Input'!J3948=\"Contingent\"),'TSA Input'!D3948,\"\"))","v":""},{"$f":"IF('TSA Input'!J3948=\"\",\"\",IF(OR('TSA Input'!J3948=\"Yes\",'TSA Input'!J3948=\"Contingent\"),'TSA Input'!G3948,\"\"))","v":""},{"$f":"IF('TSA Input'!J3948=\"\",\"\",IF(OR('TSA Input'!J3948=\"Yes\",'TSA Input'!J3948=\"Contingent\"),'TSA Input'!F3948,\"\"))","v":""},"","Required","Required"]
["",null,{"$f":"IF('TSA Input'!J3949=\"\",\"\",IF(OR('TSA Input'!J3949=\"Yes\",'TSA Input'!J3949=\"Contingent\"),'TSA Input'!B3949,\"Ineligible\"))","v":""},{"$f":"IF('TSA Input'!J3949=\"\",\"\",IF(OR('TSA Input'!J3949=\"Yes\",'TSA Input'!J3949=\"Contingent\"),'TSA Input'!I3949,\"\"))","v":""},{"$f":"IF('TSA Input'!J3949=\"\",\"\",IF(OR('TSA Input'!J3949=\"Yes\",'TSA Input'!J3949=\"Contingent\"),'TSA Input'!C3949,\"\"))","v":""},{"$f":"IF('TSA Input'!J3949=\"\",\"\",IF(OR('TSA Input'!J3949=\"Yes\",'TSA Input'!J3949=\"Contingent\"),'TSA Input'!D3949,\"\"))","v":""},{"$f":"IF('TSA Input'!J3949=\"\",\"\",IF(OR('TSA Input'!J3949=\"Yes\",'TSA Input'!J3949=\"Contingent\"),'TSA Input'!G3949,\"\"))","v":""},{"$f":"IF('TSA Input'!J3949=\"\",\"\",IF(OR('TSA Input'!J3949=\"Yes\",'TSA Input'!J3949=\"Contingent\"),'TSA Input'!F3949,\"\"))","v":""},"",{"$f":"IF('TSA Input'!J3949=\"\",\"\",IF(OR('TSA Input'!J3949=\"Yes\",'TSA Input'!J3949=\"Contingent\"),'TSA Input'!D3949,\"\"))","v":""},{"$f":"IF('TSA Input'!J3949=\"\",\"\",IF(OR('TSA Input'!J3949=\"Yes\",'TSA Input'!J3949=\"Contingent\"),'TSA Input'!G3949,\"\"))","v":""},{"$f":"IF('TSA Input'!J3949=\"\",\"\",IF(OR('TSA Input'!J3949=\"Yes\",'TSA Input'!J3949=\"Contingent\"),'TSA Input'!F3949,\"\"))","v":""},"","Required","Required"]
["",null,{"$f":"IF('TSA Input'!J3950=\"\",\"\",IF(OR('TSA Input'!J3950=\"Yes\",'TSA Input'!J3950=\"Contingent\"),'TSA Input'!B3950,\"Ineligible\"))","v":""},{"$f":"IF('TSA Input'!J3950=\"\",\"\",IF(OR('TSA Input'!J3950=\"Yes\",'TSA Input'!J3950=\"Contingent\"),'TSA Input'!I3950,\"\"))","v":""},{"$f":"IF('TSA Input'!J3950=\"\",\"\",IF(OR('TSA Input'!J3950=\"Yes\",'TSA Input'!J3950=\"Contingent\"),'TSA Input'!C3950,\"\"))","v":""},{"$f":"IF('TSA Input'!J3950=\"\",\"\",IF(OR('TSA Input'!J3950=\"Yes\",'TSA Input'!J3950=\"Contingent\"),'TSA Input'!D3950,\"\"))","v":""},{"$f":"IF('TSA Input'!J3950=\"\",\"\",IF(OR('TSA Input'!J3950=\"Yes\",'TSA Input'!J3950=\"Contingent\"),'TSA Input'!G3950,\"\"))","v":""},{"$f":"IF('TSA Input'!J3950=\"\",\"\",IF(OR('TSA Input'!J3950=\"Yes\",'TSA Input'!J3950=\"Contingent\"),'TSA Input'!F3950,\"\"))","v":""},"",{"$f":"IF('TSA Input'!J3950=\"\",\"\",IF(OR('TSA Input'!J3950=\"Yes\",'TSA Input'!J3950=\"Contingent\"),'TSA Input'!D3950,\"\"))","v":""},{"$f":"IF('TSA Input'!J3950=\"\",\"\",IF(OR('TSA Input'!J3950=\"Yes\",'TSA Input'!J3950=\"Contingent\"),'TSA Input'!G3950,\"\"))","v":""},{"$f":"IF('TSA Input'!J3950=\"\",\"\",IF(OR('TSA Input'!J3950=\"Yes\",'TSA Input'!J3950=\"Contingent\"),'TSA Input'!F3950,\"\"))","v":""},"","Required","Required"]
["",null,{"$f":"IF('TSA Input'!J3951=\"\",\"\",IF(OR('TSA Input'!J3951=\"Yes\",'TSA Input'!J3951=\"Contingent\"),'TSA Input'!B3951,\"Ineligible\"))","v":""},{"$f":"IF('TSA Input'!J3951=\"\",\"\",IF(OR('TSA Input'!J3951=\"Yes\",'TSA Input'!J3951=\"Contingent\"),'TSA Input'!I3951,\"\"))","v":""},{"$f":"IF('TSA Input'!J3951=\"\",\"\",IF(OR('TSA Input'!J3951=\"Yes\",'TSA Input'!J3951=\"Contingent\"),'TSA Input'!C3951,\"\"))","v":""},{"$f":"IF('TSA Input'!J3951=\"\",\"\",IF(OR('TSA Input'!J3951=\"Yes\",'TSA Input'!J3951=\"Contingent\"),'TSA Input'!D3951,\"\"))","v":""},{"$f":"IF('TSA Input'!J3951=\"\",\"\",IF(OR('TSA Input'!J3951=\"Yes\",'TSA Input'!J3951=\"Contingent\"),'TSA Input'!G3951,\"\"))","v":""},{"$f":"IF('TSA Input'!J3951=\"\",\"\",IF(OR('TSA Input'!J3951=\"Yes\",'TSA Input'!J3951=\"Contingent\"),'TSA Input'!F3951,\"\"))","v":""},"",{"$f":"IF('TSA Input'!J3951=\"\",\"\",IF(OR('TSA Input'!J3951=\"Yes\",'TSA Input'!J3951=\"Contingent\"),'TSA Input'!D3951,\"\"))","v":""},{"$f":"IF('TSA Input'!J3951=\"\",\"\",IF(OR('TSA Input'!J3951=\"Yes\",'TSA Input'!J3951=\"Contingent\"),'TSA Input'!G3951,\"\"))","v":""},{"$f":"IF('TSA Input'!J3951=\"\",\"\",IF(OR('TSA Input'!J3951=\"Yes\",'TSA Input'!J3951=\"Contingent\"),'TSA Input'!F3951,\"\"))","v":""},"","Required","Required"]
["",null,{"$f":"IF('TSA Input'!J3952=\"\",\"\",IF(OR('TSA Input'!J3952=\"Yes\",'TSA Input'!J3952=\"Contingent\"),'TSA Input'!B3952,\"Ineligible\"))","v":""},{"$f":"IF('TSA Input'!J3952=\"\",\"\",IF(OR('TSA Input'!J3952=\"Yes\",'TSA Input'!J3952=\"Contingent\"),'TSA Input'!I3952,\"\"))","v":""},{"$f":"IF('TSA Input'!J3952=\"\",\"\",IF(OR('TSA Input'!J3952=\"Yes\",'TSA Input'!J3952=\"Contingent\"),'TSA Input'!C3952,\"\"))","v":""},{"$f":"IF('TSA Input'!J3952=\"\",\"\",IF(OR('TSA Input'!J3952=\"Yes\",'TSA Input'!J3952=\"Contingent\"),'TSA Input'!D3952,\"\"))","v":""},{"$f":"IF('TSA Input'!J3952=\"\",\"\",IF(OR('TSA Input'!J3952=\"Yes\",'TSA Input'!J3952=\"Contingent\"),'TSA Input'!G3952,\"\"))","v":""},{"$f":"IF('TSA Input'!J3952=\"\",\"\",IF(OR('TSA Input'!J3952=\"Yes\",'TSA Input'!J3952=\"Contingent\"),'TSA Input'!F3952,\"\"))","v":""},"",{"$f":"IF('TSA Input'!J3952=\"\",\"\",IF(OR('TSA Input'!J3952=\"Yes\",'TSA Input'!J3952=\"Contingent\"),'TSA Input'!D3952,\"\"))","v":""},{"$f":"IF('TSA Input'!J3952=\"\",\"\",IF(OR('TSA Input'!J3952=\"Yes\",'TSA Input'!J3952=\"Contingent\"),'TSA Input'!G3952,\"\"))","v":""},{"$f":"IF('TSA Input'!J3952=\"\",\"\",IF(OR('TSA Input'!J3952=\"Yes\",'TSA Input'!J3952=\"Contingent\"),'TSA Input'!F3952,\"\"))","v":""},"","Required","Required"]
["",null,{"$f":"IF('TSA Input'!J3953=\"\",\"\",IF(OR('TSA Input'!J3953=\"Yes\",'TSA Input'!J3953=\"Contingent\"),'TSA Input'!B3953,\"Ineligible\"))","v":""},{"$f":"IF('TSA Input'!J3953=\"\",\"\",IF(OR('TSA Input'!J3953=\"Yes\",'TSA Input'!J3953=\"Contingent\"),'TSA Input'!I3953,\"\"))","v":""},{"$f":"IF('TSA Input'!J3953=\"\",\"\",IF(OR('TSA Input'!J3953=\"Yes\",'TSA Input'!J3953=\"Contingent\"),'TSA Input'!C3953,\"\"))","v":""},{"$f":"IF('TSA Input'!J3953=\"\",\"\",IF(OR('TSA Input'!J3953=\"Yes\",'TSA Input'!J3953=\"Contingent\"),'TSA Input'!D3953,\"\"))","v":""},{"$f":"IF('TSA Input'!J3953=\"\",\"\",IF(OR('TSA Input'!J3953=\"Yes\",'TSA Input'!J3953=\"Contingent\"),'TSA Input'!G3953,\"\"))","v":""},{"$f":"IF('TSA Input'!J3953=\"\",\"\",IF(OR('TSA Input'!J3953=\"Yes\",'TSA Input'!J3953=\"Contingent\"),'TSA Input'!F3953,\"\"))","v":""},"",{"$f":"IF('TSA Input'!J3953=\"\",\"\",IF(OR('TSA Input'!J3953=\"Yes\",'TSA Input'!J3953=\"Contingent\"),'TSA Input'!D3953,\"\"))","v":""},{"$f":"IF('TSA Input'!J3953=\"\",\"\",IF(OR('TSA Input'!J3953=\"Yes\",'TSA Input'!J3953=\"Contingent\"),'TSA Input'!G3953,\"\"))","v":""},{"$f":"IF('TSA Input'!J3953=\"\",\"\",IF(OR('TSA Input'!J3953=\"Yes\",'TSA Input'!J3953=\"Contingent\"),'TSA Input'!F3953,\"\"))","v":""},"","Required","Required"]
["",null,{"$f":"IF('TSA Input'!J3954=\"\",\"\",IF(OR('TSA Input'!J3954=\"Yes\",'TSA Input'!J3954=\"Contingent\"),'TSA Input'!B3954,\"Ineligible\"))","v":""},{"$f":"IF('TSA Input'!J3954=\"\",\"\",IF(OR('TSA Input'!J3954=\"Yes\",'TSA Input'!J3954=\"Contingent\"),'TSA Input'!I3954,\"\"))","v":""},{"$f":"IF('TSA Input'!J3954=\"\",\"\",IF(OR('TSA Input'!J3954=\"Yes\",'TSA Input'!J3954=\"Contingent\"),'TSA Input'!C3954,\"\"))","v":""},{"$f":"IF('TSA Input'!J3954=\"\",\"\",IF(OR('TSA Input'!J3954=\"Yes\",'TSA Input'!J3954=\"Contingent\"),'TSA Input'!D3954,\"\"))","v":""},{"$f":"IF('TSA Input'!J3954=\"\",\"\",IF(OR('TSA Input'!J3954=\"Yes\",'TSA Input'!J3954=\"Contingent\"),'TSA Input'!G3954,\"\"))","v":""},{"$f":"IF('TSA Input'!J3954=\"\",\"\",IF(OR('TSA Input'!J3954=\"Yes\",'TSA Input'!J3954=\"Contingent\"),'TSA Input'!F3954,\"\"))","v":""},"",{"$f":"IF('TSA Input'!J3954=\"\",\"\",IF(OR('TSA Input'!J3954=\"Yes\",'TSA Input'!J3954=\"Contingent\"),'TSA Input'!D3954,\"\"))","v":""},{"$f":"IF('TSA Input'!J3954=\"\",\"\",IF(OR('TSA Input'!J3954=\"Yes\",'TSA Input'!J3954=\"Contingent\"),'TSA Input'!G3954,\"\"))","v":""},{"$f":"IF('TSA Input'!J3954=\"\",\"\",IF(OR('TSA Input'!J3954=\"Yes\",'TSA Input'!J3954=\"Contingent\"),'TSA Input'!F3954,\"\"))","v":""},"","Required","Required"]
["",null,{"$f":"IF('TSA Input'!J3955=\"\",\"\",IF(OR('TSA Input'!J3955=\"Yes\",'TSA Input'!J3955=\"Contingent\"),'TSA Input'!B3955,\"Ineligible\"))","v":""},{"$f":"IF('TSA Input'!J3955=\"\",\"\",IF(OR('TSA Input'!J3955=\"Yes\",'TSA Input'!J3955=\"Contingent\"),'TSA Input'!I3955,\"\"))","v":""},{"$f":"IF('TSA Input'!J3955=\"\",\"\",IF(OR('TSA Input'!J3955=\"Yes\",'TSA Input'!J3955=\"Contingent\"),'TSA Input'!C3955,\"\"))","v":""},{"$f":"IF('TSA Input'!J3955=\"\",\"\",IF(OR('TSA Input'!J3955=\"Yes\",'TSA Input'!J3955=\"Contingent\"),'TSA Input'!D3955,\"\"))","v":""},{"$f":"IF('TSA Input'!J3955=\"\",\"\",IF(OR('TSA Input'!J3955=\"Yes\",'TSA Input'!J3955=\"Contingent\"),'TSA Input'!G3955,\"\"))","v":""},{"$f":"IF('TSA Input'!J3955=\"\",\"\",IF(OR('TSA Input'!J3955=\"Yes\",'TSA Input'!J3955=\"Contingent\"),'TSA Input'!F3955,\"\"))","v":""},"",{"$f":"IF('TSA Input'!J3955=\"\",\"\",IF(OR('TSA Input'!J3955=\"Yes\",'TSA Input'!J3955=\"Contingent\"),'TSA Input'!D3955,\"\"))","v":""},{"$f":"IF('TSA Input'!J3955=\"\",\"\",IF(OR('TSA Input'!J3955=\"Yes\",'TSA Input'!J3955=\"Contingent\"),'TSA Input'!G3955,\"\"))","v":""},{"$f":"IF('TSA Input'!J3955=\"\",\"\",IF(OR('TSA Input'!J3955=\"Yes\",'TSA Input'!J3955=\"Contingent\"),'TSA Input'!F3955,\"\"))","v":""},"","Required","Required"]
["",null,{"$f":"IF('TSA Input'!J3956=\"\",\"\",IF(OR('TSA Input'!J3956=\"Yes\",'TSA Input'!J3956=\"Contingent\"),'TSA Input'!B3956,\"Ineligible\"))","v":""},{"$f":"IF('TSA Input'!J3956=\"\",\"\",IF(OR('TSA Input'!J3956=\"Yes\",'TSA Input'!J3956=\"Contingent\"),'TSA Input'!I3956,\"\"))","v":""},{"$f":"IF('TSA Input'!J3956=\"\",\"\",IF(OR('TSA Input'!J3956=\"Yes\",'TSA Input'!J3956=\"Contingent\"),'TSA Input'!C3956,\"\"))","v":""},{"$f":"IF('TSA Input'!J3956=\"\",\"\",IF(OR('TSA Input'!J3956=\"Yes\",'TSA Input'!J3956=\"Contingent\"),'TSA Input'!D3956,\"\"))","v":""},{"$f":"IF('TSA Input'!J3956=\"\",\"\",IF(OR('TSA Input'!J3956=\"Yes\",'TSA Input'!J3956=\"Contingent\"),'TSA Input'!G3956,\"\"))","v":""},{"$f":"IF('TSA Input'!J3956=\"\",\"\",IF(OR('TSA Input'!J3956=\"Yes\",'TSA Input'!J3956=\"Contingent\"),'TSA Input'!F3956,\"\"))","v":""},"",{"$f":"IF('TSA Input'!J3956=\"\",\"\",IF(OR('TSA Input'!J3956=\"Yes\",'TSA Input'!J3956=\"Contingent\"),'TSA Input'!D3956,\"\"))","v":""},{"$f":"IF('TSA Input'!J3956=\"\",\"\",IF(OR('TSA Input'!J3956=\"Yes\",'TSA Input'!J3956=\"Contingent\"),'TSA Input'!G3956,\"\"))","v":""},{"$f":"IF('TSA Input'!J3956=\"\",\"\",IF(OR('TSA Input'!J3956=\"Yes\",'TSA Input'!J3956=\"Contingent\"),'TSA Input'!F3956,\"\"))","v":""},"","Required","Required"]
["",null,{"$f":"IF('TSA Input'!J3957=\"\",\"\",IF(OR('TSA Input'!J3957=\"Yes\",'TSA Input'!J3957=\"Contingent\"),'TSA Input'!B3957,\"Ineligible\"))","v":""},{"$f":"IF('TSA Input'!J3957=\"\",\"\",IF(OR('TSA Input'!J3957=\"Yes\",'TSA Input'!J3957=\"Contingent\"),'TSA Input'!I3957,\"\"))","v":""},{"$f":"IF('TSA Input'!J3957=\"\",\"\",IF(OR('TSA Input'!J3957=\"Yes\",'TSA Input'!J3957=\"Contingent\"),'TSA Input'!C3957,\"\"))","v":""},{"$f":"IF('TSA Input'!J3957=\"\",\"\",IF(OR('TSA Input'!J3957=\"Yes\",'TSA Input'!J3957=\"Contingent\"),'TSA Input'!D3957,\"\"))","v":""},{"$f":"IF('TSA Input'!J3957=\"\",\"\",IF(OR('TSA Input'!J3957=\"Yes\",'TSA Input'!J3957=\"Contingent\"),'TSA Input'!G3957,\"\"))","v":""},{"$f":"IF('TSA Input'!J3957=\"\",\"\",IF(OR('TSA Input'!J3957=\"Yes\",'TSA Input'!J3957=\"Contingent\"),'TSA Input'!F3957,\"\"))","v":""},"",{"$f":"IF('TSA Input'!J3957=\"\",\"\",IF(OR('TSA Input'!J3957=\"Yes\",'TSA Input'!J3957=\"Contingent\"),'TSA Input'!D3957,\"\"))","v":""},{"$f":"IF('TSA Input'!J3957=\"\",\"\",IF(OR('TSA Input'!J3957=\"Yes\",'TSA Input'!J3957=\"Contingent\"),'TSA Input'!G3957,\"\"))","v":""},{"$f":"IF('TSA Input'!J3957=\"\",\"\",IF(OR('TSA Input'!J3957=\"Yes\",'TSA Input'!J3957=\"Contingent\"),'TSA Input'!F3957,\"\"))","v":""},"","Required","Required"]
["",null,{"$f":"IF('TSA Input'!J3958=\"\",\"\",IF(OR('TSA Input'!J3958=\"Yes\",'TSA Input'!J3958=\"Contingent\"),'TSA Input'!B3958,\"Ineligible\"))","v":""},{"$f":"IF('TSA Input'!J3958=\"\",\"\",IF(OR('TSA Input'!J3958=\"Yes\",'TSA Input'!J3958=\"Contingent\"),'TSA Input'!I3958,\"\"))","v":""},{"$f":"IF('TSA Input'!J3958=\"\",\"\",IF(OR('TSA Input'!J3958=\"Yes\",'TSA Input'!J3958=\"Contingent\"),'TSA Input'!C3958,\"\"))","v":""},{"$f":"IF('TSA Input'!J3958=\"\",\"\",IF(OR('TSA Input'!J3958=\"Yes\",'TSA Input'!J3958=\"Contingent\"),'TSA Input'!D3958,\"\"))","v":""},{"$f":"IF('TSA Input'!J3958=\"\",\"\",IF(OR('TSA Input'!J3958=\"Yes\",'TSA Input'!J3958=\"Contingent\"),'TSA Input'!G3958,\"\"))","v":""},{"$f":"IF('TSA Input'!J3958=\"\",\"\",IF(OR('TSA Input'!J3958=\"Yes\",'TSA Input'!J3958=\"Contingent\"),'TSA Input'!F3958,\"\"))","v":""},"",{"$f":"IF('TSA Input'!J3958=\"\",\"\",IF(OR('TSA Input'!J3958=\"Yes\",'TSA Input'!J3958=\"Contingent\"),'TSA Input'!D3958,\"\"))","v":""},{"$f":"IF('TSA Input'!J3958=\"\",\"\",IF(OR('TSA Input'!J3958=\"Yes\",'TSA Input'!J3958=\"Contingent\"),'TSA Input'!G3958,\"\"))","v":""},{"$f":"IF('TSA Input'!J3958=\"\",\"\",IF(OR('TSA Input'!J3958=\"Yes\",'TSA Input'!J3958=\"Contingent\"),'TSA Input'!F3958,\"\"))","v":""},"","Required","Required"]
["",null,{"$f":"IF('TSA Input'!J3959=\"\",\"\",IF(OR('TSA Input'!J3959=\"Yes\",'TSA Input'!J3959=\"Contingent\"),'TSA Input'!B3959,\"Ineligible\"))","v":""},{"$f":"IF('TSA Input'!J3959=\"\",\"\",IF(OR('TSA Input'!J3959=\"Yes\",'TSA Input'!J3959=\"Contingent\"),'TSA Input'!I3959,\"\"))","v":""},{"$f":"IF('TSA Input'!J3959=\"\",\"\",IF(OR('TSA Input'!J3959=\"Yes\",'TSA Input'!J3959=\"Contingent\"),'TSA Input'!C3959,\"\"))","v":""},{"$f":"IF('TSA Input'!J3959=\"\",\"\",IF(OR('TSA Input'!J3959=\"Yes\",'TSA Input'!J3959=\"Contingent\"),'TSA Input'!D3959,\"\"))","v":""},{"$f":"IF('TSA Input'!J3959=\"\",\"\",IF(OR('TSA Input'!J3959=\"Yes\",'TSA Input'!J3959=\"Contingent\"),'TSA Input'!G3959,\"\"))","v":""},{"$f":"IF('TSA Input'!J3959=\"\",\"\",IF(OR('TSA Input'!J3959=\"Yes\",'TSA Input'!J3959=\"Contingent\"),'TSA Input'!F3959,\"\"))","v":""},"",{"$f":"IF('TSA Input'!J3959=\"\",\"\",IF(OR('TSA Input'!J3959=\"Yes\",'TSA Input'!J3959=\"Contingent\"),'TSA Input'!D3959,\"\"))","v":""},{"$f":"IF('TSA Input'!J3959=\"\",\"\",IF(OR('TSA Input'!J3959=\"Yes\",'TSA Input'!J3959=\"Contingent\"),'TSA Input'!G3959,\"\"))","v":""},{"$f":"IF('TSA Input'!J3959=\"\",\"\",IF(OR('TSA Input'!J3959=\"Yes\",'TSA Input'!J3959=\"Contingent\"),'TSA Input'!F3959,\"\"))","v":""},"","Required","Required"]
["",null,{"$f":"IF('TSA Input'!J3960=\"\",\"\",IF(OR('TSA Input'!J3960=\"Yes\",'TSA Input'!J3960=\"Contingent\"),'TSA Input'!B3960,\"Ineligible\"))","v":""},{"$f":"IF('TSA Input'!J3960=\"\",\"\",IF(OR('TSA Input'!J3960=\"Yes\",'TSA Input'!J3960=\"Contingent\"),'TSA Input'!I3960,\"\"))","v":""},{"$f":"IF('TSA Input'!J3960=\"\",\"\",IF(OR('TSA Input'!J3960=\"Yes\",'TSA Input'!J3960=\"Contingent\"),'TSA Input'!C3960,\"\"))","v":""},{"$f":"IF('TSA Input'!J3960=\"\",\"\",IF(OR('TSA Input'!J3960=\"Yes\",'TSA Input'!J3960=\"Contingent\"),'TSA Input'!D3960,\"\"))","v":""},{"$f":"IF('TSA Input'!J3960=\"\",\"\",IF(OR('TSA Input'!J3960=\"Yes\",'TSA Input'!J3960=\"Contingent\"),'TSA Input'!G3960,\"\"))","v":""},{"$f":"IF('TSA Input'!J3960=\"\",\"\",IF(OR('TSA Input'!J3960=\"Yes\",'TSA Input'!J3960=\"Contingent\"),'TSA Input'!F3960,\"\"))","v":""},"",{"$f":"IF('TSA Input'!J3960=\"\",\"\",IF(OR('TSA Input'!J3960=\"Yes\",'TSA Input'!J3960=\"Contingent\"),'TSA Input'!D3960,\"\"))","v":""},{"$f":"IF('TSA Input'!J3960=\"\",\"\",IF(OR('TSA Input'!J3960=\"Yes\",'TSA Input'!J3960=\"Contingent\"),'TSA Input'!G3960,\"\"))","v":""},{"$f":"IF('TSA Input'!J3960=\"\",\"\",IF(OR('TSA Input'!J3960=\"Yes\",'TSA Input'!J3960=\"Contingent\"),'TSA Input'!F3960,\"\"))","v":""},"","Required","Required"]
["",null,{"$f":"IF('TSA Input'!J3961=\"\",\"\",IF(OR('TSA Input'!J3961=\"Yes\",'TSA Input'!J3961=\"Contingent\"),'TSA Input'!B3961,\"Ineligible\"))","v":""},{"$f":"IF('TSA Input'!J3961=\"\",\"\",IF(OR('TSA Input'!J3961=\"Yes\",'TSA Input'!J3961=\"Contingent\"),'TSA Input'!I3961,\"\"))","v":""},{"$f":"IF('TSA Input'!J3961=\"\",\"\",IF(OR('TSA Input'!J3961=\"Yes\",'TSA Input'!J3961=\"Contingent\"),'TSA Input'!C3961,\"\"))","v":""},{"$f":"IF('TSA Input'!J3961=\"\",\"\",IF(OR('TSA Input'!J3961=\"Yes\",'TSA Input'!J3961=\"Contingent\"),'TSA Input'!D3961,\"\"))","v":""},{"$f":"IF('TSA Input'!J3961=\"\",\"\",IF(OR('TSA Input'!J3961=\"Yes\",'TSA Input'!J3961=\"Contingent\"),'TSA Input'!G3961,\"\"))","v":""},{"$f":"IF('TSA Input'!J3961=\"\",\"\",IF(OR('TSA Input'!J3961=\"Yes\",'TSA Input'!J3961=\"Contingent\"),'TSA Input'!F3961,\"\"))","v":""},"",{"$f":"IF('TSA Input'!J3961=\"\",\"\",IF(OR('TSA Input'!J3961=\"Yes\",'TSA Input'!J3961=\"Contingent\"),'TSA Input'!D3961,\"\"))","v":""},{"$f":"IF('TSA Input'!J3961=\"\",\"\",IF(OR('TSA Input'!J3961=\"Yes\",'TSA Input'!J3961=\"Contingent\"),'TSA Input'!G3961,\"\"))","v":""},{"$f":"IF('TSA Input'!J3961=\"\",\"\",IF(OR('TSA Input'!J3961=\"Yes\",'TSA Input'!J3961=\"Contingent\"),'TSA Input'!F3961,\"\"))","v":""},"","Required","Required"]
["",null,{"$f":"IF('TSA Input'!J3962=\"\",\"\",IF(OR('TSA Input'!J3962=\"Yes\",'TSA Input'!J3962=\"Contingent\"),'TSA Input'!B3962,\"Ineligible\"))","v":""},{"$f":"IF('TSA Input'!J3962=\"\",\"\",IF(OR('TSA Input'!J3962=\"Yes\",'TSA Input'!J3962=\"Contingent\"),'TSA Input'!I3962,\"\"))","v":""},{"$f":"IF('TSA Input'!J3962=\"\",\"\",IF(OR('TSA Input'!J3962=\"Yes\",'TSA Input'!J3962=\"Contingent\"),'TSA Input'!C3962,\"\"))","v":""},{"$f":"IF('TSA Input'!J3962=\"\",\"\",IF(OR('TSA Input'!J3962=\"Yes\",'TSA Input'!J3962=\"Contingent\"),'TSA Input'!D3962,\"\"))","v":""},{"$f":"IF('TSA Input'!J3962=\"\",\"\",IF(OR('TSA Input'!J3962=\"Yes\",'TSA Input'!J3962=\"Contingent\"),'TSA Input'!G3962,\"\"))","v":""},{"$f":"IF('TSA Input'!J3962=\"\",\"\",IF(OR('TSA Input'!J3962=\"Yes\",'TSA Input'!J3962=\"Contingent\"),'TSA Input'!F3962,\"\"))","v":""},"",{"$f":"IF('TSA Input'!J3962=\"\",\"\",IF(OR('TSA Input'!J3962=\"Yes\",'TSA Input'!J3962=\"Contingent\"),'TSA Input'!D3962,\"\"))","v":""},{"$f":"IF('TSA Input'!J3962=\"\",\"\",IF(OR('TSA Input'!J3962=\"Yes\",'TSA Input'!J3962=\"Contingent\"),'TSA Input'!G3962,\"\"))","v":""},{"$f":"IF('TSA Input'!J3962=\"\",\"\",IF(OR('TSA Input'!J3962=\"Yes\",'TSA Input'!J3962=\"Contingent\"),'TSA Input'!F3962,\"\"))","v":""},"","Required","Required"]
["",null,{"$f":"IF('TSA Input'!J3963=\"\",\"\",IF(OR('TSA Input'!J3963=\"Yes\",'TSA Input'!J3963=\"Contingent\"),'TSA Input'!B3963,\"Ineligible\"))","v":""},{"$f":"IF('TSA Input'!J3963=\"\",\"\",IF(OR('TSA Input'!J3963=\"Yes\",'TSA Input'!J3963=\"Contingent\"),'TSA Input'!I3963,\"\"))","v":""},{"$f":"IF('TSA Input'!J3963=\"\",\"\",IF(OR('TSA Input'!J3963=\"Yes\",'TSA Input'!J3963=\"Contingent\"),'TSA Input'!C3963,\"\"))","v":""},{"$f":"IF('TSA Input'!J3963=\"\",\"\",IF(OR('TSA Input'!J3963=\"Yes\",'TSA Input'!J3963=\"Contingent\"),'TSA Input'!D3963,\"\"))","v":""},{"$f":"IF('TSA Input'!J3963=\"\",\"\",IF(OR('TSA Input'!J3963=\"Yes\",'TSA Input'!J3963=\"Contingent\"),'TSA Input'!G3963,\"\"))","v":""},{"$f":"IF('TSA Input'!J3963=\"\",\"\",IF(OR('TSA Input'!J3963=\"Yes\",'TSA Input'!J3963=\"Contingent\"),'TSA Input'!F3963,\"\"))","v":""},"",{"$f":"IF('TSA Input'!J3963=\"\",\"\",IF(OR('TSA Input'!J3963=\"Yes\",'TSA Input'!J3963=\"Contingent\"),'TSA Input'!D3963,\"\"))","v":""},{"$f":"IF('TSA Input'!J3963=\"\",\"\",IF(OR('TSA Input'!J3963=\"Yes\",'TSA Input'!J3963=\"Contingent\"),'TSA Input'!G3963,\"\"))","v":""},{"$f":"IF('TSA Input'!J3963=\"\",\"\",IF(OR('TSA Input'!J3963=\"Yes\",'TSA Input'!J3963=\"Contingent\"),'TSA Input'!F3963,\"\"))","v":""},"","Required","Required"]
["",null,{"$f":"IF('TSA Input'!J3964=\"\",\"\",IF(OR('TSA Input'!J3964=\"Yes\",'TSA Input'!J3964=\"Contingent\"),'TSA Input'!B3964,\"Ineligible\"))","v":""},{"$f":"IF('TSA Input'!J3964=\"\",\"\",IF(OR('TSA Input'!J3964=\"Yes\",'TSA Input'!J3964=\"Contingent\"),'TSA Input'!I3964,\"\"))","v":""},{"$f":"IF('TSA Input'!J3964=\"\",\"\",IF(OR('TSA Input'!J3964=\"Yes\",'TSA Input'!J3964=\"Contingent\"),'TSA Input'!C3964,\"\"))","v":""},{"$f":"IF('TSA Input'!J3964=\"\",\"\",IF(OR('TSA Input'!J3964=\"Yes\",'TSA Input'!J3964=\"Contingent\"),'TSA Input'!D3964,\"\"))","v":""},{"$f":"IF('TSA Input'!J3964=\"\",\"\",IF(OR('TSA Input'!J3964=\"Yes\",'TSA Input'!J3964=\"Contingent\"),'TSA Input'!G3964,\"\"))","v":""},{"$f":"IF('TSA Input'!J3964=\"\",\"\",IF(OR('TSA Input'!J3964=\"Yes\",'TSA Input'!J3964=\"Contingent\"),'TSA Input'!F3964,\"\"))","v":""},"",{"$f":"IF('TSA Input'!J3964=\"\",\"\",IF(OR('TSA Input'!J3964=\"Yes\",'TSA Input'!J3964=\"Contingent\"),'TSA Input'!D3964,\"\"))","v":""},{"$f":"IF('TSA Input'!J3964=\"\",\"\",IF(OR('TSA Input'!J3964=\"Yes\",'TSA Input'!J3964=\"Contingent\"),'TSA Input'!G3964,\"\"))","v":""},{"$f":"IF('TSA Input'!J3964=\"\",\"\",IF(OR('TSA Input'!J3964=\"Yes\",'TSA Input'!J3964=\"Contingent\"),'TSA Input'!F3964,\"\"))","v":""},"","Required","Required"]
["",null,{"$f":"IF('TSA Input'!J3965=\"\",\"\",IF(OR('TSA Input'!J3965=\"Yes\",'TSA Input'!J3965=\"Contingent\"),'TSA Input'!B3965,\"Ineligible\"))","v":""},{"$f":"IF('TSA Input'!J3965=\"\",\"\",IF(OR('TSA Input'!J3965=\"Yes\",'TSA Input'!J3965=\"Contingent\"),'TSA Input'!I3965,\"\"))","v":""},{"$f":"IF('TSA Input'!J3965=\"\",\"\",IF(OR('TSA Input'!J3965=\"Yes\",'TSA Input'!J3965=\"Contingent\"),'TSA Input'!C3965,\"\"))","v":""},{"$f":"IF('TSA Input'!J3965=\"\",\"\",IF(OR('TSA Input'!J3965=\"Yes\",'TSA Input'!J3965=\"Contingent\"),'TSA Input'!D3965,\"\"))","v":""},{"$f":"IF('TSA Input'!J3965=\"\",\"\",IF(OR('TSA Input'!J3965=\"Yes\",'TSA Input'!J3965=\"Contingent\"),'TSA Input'!G3965,\"\"))","v":""},{"$f":"IF('TSA Input'!J3965=\"\",\"\",IF(OR('TSA Input'!J3965=\"Yes\",'TSA Input'!J3965=\"Contingent\"),'TSA Input'!F3965,\"\"))","v":""},"",{"$f":"IF('TSA Input'!J3965=\"\",\"\",IF(OR('TSA Input'!J3965=\"Yes\",'TSA Input'!J3965=\"Contingent\"),'TSA Input'!D3965,\"\"))","v":""},{"$f":"IF('TSA Input'!J3965=\"\",\"\",IF(OR('TSA Input'!J3965=\"Yes\",'TSA Input'!J3965=\"Contingent\"),'TSA Input'!G3965,\"\"))","v":""},{"$f":"IF('TSA Input'!J3965=\"\",\"\",IF(OR('TSA Input'!J3965=\"Yes\",'TSA Input'!J3965=\"Contingent\"),'TSA Input'!F3965,\"\"))","v":""},"","Required","Required"]
["",null,{"$f":"IF('TSA Input'!J3966=\"\",\"\",IF(OR('TSA Input'!J3966=\"Yes\",'TSA Input'!J3966=\"Contingent\"),'TSA Input'!B3966,\"Ineligible\"))","v":""},{"$f":"IF('TSA Input'!J3966=\"\",\"\",IF(OR('TSA Input'!J3966=\"Yes\",'TSA Input'!J3966=\"Contingent\"),'TSA Input'!I3966,\"\"))","v":""},{"$f":"IF('TSA Input'!J3966=\"\",\"\",IF(OR('TSA Input'!J3966=\"Yes\",'TSA Input'!J3966=\"Contingent\"),'TSA Input'!C3966,\"\"))","v":""},{"$f":"IF('TSA Input'!J3966=\"\",\"\",IF(OR('TSA Input'!J3966=\"Yes\",'TSA Input'!J3966=\"Contingent\"),'TSA Input'!D3966,\"\"))","v":""},{"$f":"IF('TSA Input'!J3966=\"\",\"\",IF(OR('TSA Input'!J3966=\"Yes\",'TSA Input'!J3966=\"Contingent\"),'TSA Input'!G3966,\"\"))","v":""},{"$f":"IF('TSA Input'!J3966=\"\",\"\",IF(OR('TSA Input'!J3966=\"Yes\",'TSA Input'!J3966=\"Contingent\"),'TSA Input'!F3966,\"\"))","v":""},"",{"$f":"IF('TSA Input'!J3966=\"\",\"\",IF(OR('TSA Input'!J3966=\"Yes\",'TSA Input'!J3966=\"Contingent\"),'TSA Input'!D3966,\"\"))","v":""},{"$f":"IF('TSA Input'!J3966=\"\",\"\",IF(OR('TSA Input'!J3966=\"Yes\",'TSA Input'!J3966=\"Contingent\"),'TSA Input'!G3966,\"\"))","v":""},{"$f":"IF('TSA Input'!J3966=\"\",\"\",IF(OR('TSA Input'!J3966=\"Yes\",'TSA Input'!J3966=\"Contingent\"),'TSA Input'!F3966,\"\"))","v":""},"","Required","Required"]
["",null,{"$f":"IF('TSA Input'!J3967=\"\",\"\",IF(OR('TSA Input'!J3967=\"Yes\",'TSA Input'!J3967=\"Contingent\"),'TSA Input'!B3967,\"Ineligible\"))","v":""},{"$f":"IF('TSA Input'!J3967=\"\",\"\",IF(OR('TSA Input'!J3967=\"Yes\",'TSA Input'!J3967=\"Contingent\"),'TSA Input'!I3967,\"\"))","v":""},{"$f":"IF('TSA Input'!J3967=\"\",\"\",IF(OR('TSA Input'!J3967=\"Yes\",'TSA Input'!J3967=\"Contingent\"),'TSA Input'!C3967,\"\"))","v":""},{"$f":"IF('TSA Input'!J3967=\"\",\"\",IF(OR('TSA Input'!J3967=\"Yes\",'TSA Input'!J3967=\"Contingent\"),'TSA Input'!D3967,\"\"))","v":""},{"$f":"IF('TSA Input'!J3967=\"\",\"\",IF(OR('TSA Input'!J3967=\"Yes\",'TSA Input'!J3967=\"Contingent\"),'TSA Input'!G3967,\"\"))","v":""},{"$f":"IF('TSA Input'!J3967=\"\",\"\",IF(OR('TSA Input'!J3967=\"Yes\",'TSA Input'!J3967=\"Contingent\"),'TSA Input'!F3967,\"\"))","v":""},"",{"$f":"IF('TSA Input'!J3967=\"\",\"\",IF(OR('TSA Input'!J3967=\"Yes\",'TSA Input'!J3967=\"Contingent\"),'TSA Input'!D3967,\"\"))","v":""},{"$f":"IF('TSA Input'!J3967=\"\",\"\",IF(OR('TSA Input'!J3967=\"Yes\",'TSA Input'!J3967=\"Contingent\"),'TSA Input'!G3967,\"\"))","v":""},{"$f":"IF('TSA Input'!J3967=\"\",\"\",IF(OR('TSA Input'!J3967=\"Yes\",'TSA Input'!J3967=\"Contingent\"),'TSA Input'!F3967,\"\"))","v":""},"","Required","Required"]
["",null,{"$f":"IF('TSA Input'!J3968=\"\",\"\",IF(OR('TSA Input'!J3968=\"Yes\",'TSA Input'!J3968=\"Contingent\"),'TSA Input'!B3968,\"Ineligible\"))","v":""},{"$f":"IF('TSA Input'!J3968=\"\",\"\",IF(OR('TSA Input'!J3968=\"Yes\",'TSA Input'!J3968=\"Contingent\"),'TSA Input'!I3968,\"\"))","v":""},{"$f":"IF('TSA Input'!J3968=\"\",\"\",IF(OR('TSA Input'!J3968=\"Yes\",'TSA Input'!J3968=\"Contingent\"),'TSA Input'!C3968,\"\"))","v":""},{"$f":"IF('TSA Input'!J3968=\"\",\"\",IF(OR('TSA Input'!J3968=\"Yes\",'TSA Input'!J3968=\"Contingent\"),'TSA Input'!D3968,\"\"))","v":""},{"$f":"IF('TSA Input'!J3968=\"\",\"\",IF(OR('TSA Input'!J3968=\"Yes\",'TSA Input'!J3968=\"Contingent\"),'TSA Input'!G3968,\"\"))","v":""},{"$f":"IF('TSA Input'!J3968=\"\",\"\",IF(OR('TSA Input'!J3968=\"Yes\",'TSA Input'!J3968=\"Contingent\"),'TSA Input'!F3968,\"\"))","v":""},"",{"$f":"IF('TSA Input'!J3968=\"\",\"\",IF(OR('TSA Input'!J3968=\"Yes\",'TSA Input'!J3968=\"Contingent\"),'TSA Input'!D3968,\"\"))","v":""},{"$f":"IF('TSA Input'!J3968=\"\",\"\",IF(OR('TSA Input'!J3968=\"Yes\",'TSA Input'!J3968=\"Contingent\"),'TSA Input'!G3968,\"\"))","v":""},{"$f":"IF('TSA Input'!J3968=\"\",\"\",IF(OR('TSA Input'!J3968=\"Yes\",'TSA Input'!J3968=\"Contingent\"),'TSA Input'!F3968,\"\"))","v":""},"","Required","Required"]
["",null,{"$f":"IF('TSA Input'!J3969=\"\",\"\",IF(OR('TSA Input'!J3969=\"Yes\",'TSA Input'!J3969=\"Contingent\"),'TSA Input'!B3969,\"Ineligible\"))","v":""},{"$f":"IF('TSA Input'!J3969=\"\",\"\",IF(OR('TSA Input'!J3969=\"Yes\",'TSA Input'!J3969=\"Contingent\"),'TSA Input'!I3969,\"\"))","v":""},{"$f":"IF('TSA Input'!J3969=\"\",\"\",IF(OR('TSA Input'!J3969=\"Yes\",'TSA Input'!J3969=\"Contingent\"),'TSA Input'!C3969,\"\"))","v":""},{"$f":"IF('TSA Input'!J3969=\"\",\"\",IF(OR('TSA Input'!J3969=\"Yes\",'TSA Input'!J3969=\"Contingent\"),'TSA Input'!D3969,\"\"))","v":""},{"$f":"IF('TSA Input'!J3969=\"\",\"\",IF(OR('TSA Input'!J3969=\"Yes\",'TSA Input'!J3969=\"Contingent\"),'TSA Input'!G3969,\"\"))","v":""},{"$f":"IF('TSA Input'!J3969=\"\",\"\",IF(OR('TSA Input'!J3969=\"Yes\",'TSA Input'!J3969=\"Contingent\"),'TSA Input'!F3969,\"\"))","v":""},"",{"$f":"IF('TSA Input'!J3969=\"\",\"\",IF(OR('TSA Input'!J3969=\"Yes\",'TSA Input'!J3969=\"Contingent\"),'TSA Input'!D3969,\"\"))","v":""},{"$f":"IF('TSA Input'!J3969=\"\",\"\",IF(OR('TSA Input'!J3969=\"Yes\",'TSA Input'!J3969=\"Contingent\"),'TSA Input'!G3969,\"\"))","v":""},{"$f":"IF('TSA Input'!J3969=\"\",\"\",IF(OR('TSA Input'!J3969=\"Yes\",'TSA Input'!J3969=\"Contingent\"),'TSA Input'!F3969,\"\"))","v":""},"","Required","Required"]
["",null,{"$f":"IF('TSA Input'!J3970=\"\",\"\",IF(OR('TSA Input'!J3970=\"Yes\",'TSA Input'!J3970=\"Contingent\"),'TSA Input'!B3970,\"Ineligible\"))","v":""},{"$f":"IF('TSA Input'!J3970=\"\",\"\",IF(OR('TSA Input'!J3970=\"Yes\",'TSA Input'!J3970=\"Contingent\"),'TSA Input'!I3970,\"\"))","v":""},{"$f":"IF('TSA Input'!J3970=\"\",\"\",IF(OR('TSA Input'!J3970=\"Yes\",'TSA Input'!J3970=\"Contingent\"),'TSA Input'!C3970,\"\"))","v":""},{"$f":"IF('TSA Input'!J3970=\"\",\"\",IF(OR('TSA Input'!J3970=\"Yes\",'TSA Input'!J3970=\"Contingent\"),'TSA Input'!D3970,\"\"))","v":""},{"$f":"IF('TSA Input'!J3970=\"\",\"\",IF(OR('TSA Input'!J3970=\"Yes\",'TSA Input'!J3970=\"Contingent\"),'TSA Input'!G3970,\"\"))","v":""},{"$f":"IF('TSA Input'!J3970=\"\",\"\",IF(OR('TSA Input'!J3970=\"Yes\",'TSA Input'!J3970=\"Contingent\"),'TSA Input'!F3970,\"\"))","v":""},"",{"$f":"IF('TSA Input'!J3970=\"\",\"\",IF(OR('TSA Input'!J3970=\"Yes\",'TSA Input'!J3970=\"Contingent\"),'TSA Input'!D3970,\"\"))","v":""},{"$f":"IF('TSA Input'!J3970=\"\",\"\",IF(OR('TSA Input'!J3970=\"Yes\",'TSA Input'!J3970=\"Contingent\"),'TSA Input'!G3970,\"\"))","v":""},{"$f":"IF('TSA Input'!J3970=\"\",\"\",IF(OR('TSA Input'!J3970=\"Yes\",'TSA Input'!J3970=\"Contingent\"),'TSA Input'!F3970,\"\"))","v":""},"","Required","Required"]
["",null,{"$f":"IF('TSA Input'!J3971=\"\",\"\",IF(OR('TSA Input'!J3971=\"Yes\",'TSA Input'!J3971=\"Contingent\"),'TSA Input'!B3971,\"Ineligible\"))","v":""},{"$f":"IF('TSA Input'!J3971=\"\",\"\",IF(OR('TSA Input'!J3971=\"Yes\",'TSA Input'!J3971=\"Contingent\"),'TSA Input'!I3971,\"\"))","v":""},{"$f":"IF('TSA Input'!J3971=\"\",\"\",IF(OR('TSA Input'!J3971=\"Yes\",'TSA Input'!J3971=\"Contingent\"),'TSA Input'!C3971,\"\"))","v":""},{"$f":"IF('TSA Input'!J3971=\"\",\"\",IF(OR('TSA Input'!J3971=\"Yes\",'TSA Input'!J3971=\"Contingent\"),'TSA Input'!D3971,\"\"))","v":""},{"$f":"IF('TSA Input'!J3971=\"\",\"\",IF(OR('TSA Input'!J3971=\"Yes\",'TSA Input'!J3971=\"Contingent\"),'TSA Input'!G3971,\"\"))","v":""},{"$f":"IF('TSA Input'!J3971=\"\",\"\",IF(OR('TSA Input'!J3971=\"Yes\",'TSA Input'!J3971=\"Contingent\"),'TSA Input'!F3971,\"\"))","v":""},"",{"$f":"IF('TSA Input'!J3971=\"\",\"\",IF(OR('TSA Input'!J3971=\"Yes\",'TSA Input'!J3971=\"Contingent\"),'TSA Input'!D3971,\"\"))","v":""},{"$f":"IF('TSA Input'!J3971=\"\",\"\",IF(OR('TSA Input'!J3971=\"Yes\",'TSA Input'!J3971=\"Contingent\"),'TSA Input'!G3971,\"\"))","v":""},{"$f":"IF('TSA Input'!J3971=\"\",\"\",IF(OR('TSA Input'!J3971=\"Yes\",'TSA Input'!J3971=\"Contingent\"),'TSA Input'!F3971,\"\"))","v":""},"","Required","Required"]
["",null,{"$f":"IF('TSA Input'!J3972=\"\",\"\",IF(OR('TSA Input'!J3972=\"Yes\",'TSA Input'!J3972=\"Contingent\"),'TSA Input'!B3972,\"Ineligible\"))","v":""},{"$f":"IF('TSA Input'!J3972=\"\",\"\",IF(OR('TSA Input'!J3972=\"Yes\",'TSA Input'!J3972=\"Contingent\"),'TSA Input'!I3972,\"\"))","v":""},{"$f":"IF('TSA Input'!J3972=\"\",\"\",IF(OR('TSA Input'!J3972=\"Yes\",'TSA Input'!J3972=\"Contingent\"),'TSA Input'!C3972,\"\"))","v":""},{"$f":"IF('TSA Input'!J3972=\"\",\"\",IF(OR('TSA Input'!J3972=\"Yes\",'TSA Input'!J3972=\"Contingent\"),'TSA Input'!D3972,\"\"))","v":""},{"$f":"IF('TSA Input'!J3972=\"\",\"\",IF(OR('TSA Input'!J3972=\"Yes\",'TSA Input'!J3972=\"Contingent\"),'TSA Input'!G3972,\"\"))","v":""},{"$f":"IF('TSA Input'!J3972=\"\",\"\",IF(OR('TSA Input'!J3972=\"Yes\",'TSA Input'!J3972=\"Contingent\"),'TSA Input'!F3972,\"\"))","v":""},{"$f":"IF($C4010=\"\",\"\",SUM(F4010:H4010))","v":""},{"$f":"IF('TSA Input'!J3972=\"\",\"\",IF(OR('TSA Input'!J3972=\"Yes\",'TSA Input'!J3972=\"Contingent\"),'TSA Input'!D3972,\"\"))","v":""},{"$f":"IF('TSA Input'!J3972=\"\",\"\",IF(OR('TSA Input'!J3972=\"Yes\",'TSA Input'!J3972=\"Contingent\"),'TSA Input'!G3972,\"\"))","v":""},{"$f":"IF('TSA Input'!J3972=\"\",\"\",IF(OR('TSA Input'!J3972=\"Yes\",'TSA Input'!J3972=\"Contingent\"),'TSA Input'!F3972,\"\"))","v":""},{"$f":"IF($C4010=\"\",\"\",SUM(J4010:L4010))","v":""},"Required","Required"]
["",null,{"$f":"IF('TSA Input'!J3973=\"\",\"\",IF(OR('TSA Input'!J3973=\"Yes\",'TSA Input'!J3973=\"Contingent\"),'TSA Input'!B3973,\"Ineligible\"))","v":""},{"$f":"IF('TSA Input'!J3973=\"\",\"\",IF(OR('TSA Input'!J3973=\"Yes\",'TSA Input'!J3973=\"Contingent\"),'TSA Input'!I3973,\"\"))","v":""},{"$f":"IF('TSA Input'!J3973=\"\",\"\",IF(OR('TSA Input'!J3973=\"Yes\",'TSA Input'!J3973=\"Contingent\"),'TSA Input'!C3973,\"\"))","v":""},{"$f":"IF('TSA Input'!J3973=\"\",\"\",IF(OR('TSA Input'!J3973=\"Yes\",'TSA Input'!J3973=\"Contingent\"),'TSA Input'!D3973,\"\"))","v":""},{"$f":"IF('TSA Input'!J3973=\"\",\"\",IF(OR('TSA Input'!J3973=\"Yes\",'TSA Input'!J3973=\"Contingent\"),'TSA Input'!G3973,\"\"))","v":""},{"$f":"IF('TSA Input'!J3973=\"\",\"\",IF(OR('TSA Input'!J3973=\"Yes\",'TSA Input'!J3973=\"Contingent\"),'TSA Input'!F3973,\"\"))","v":""},"",{"$f":"IF('TSA Input'!J3973=\"\",\"\",IF(OR('TSA Input'!J3973=\"Yes\",'TSA Input'!J3973=\"Contingent\"),'TSA Input'!D3973,\"\"))","v":""},{"$f":"IF('TSA Input'!J3973=\"\",\"\",IF(OR('TSA Input'!J3973=\"Yes\",'TSA Input'!J3973=\"Contingent\"),'TSA Input'!G3973,\"\"))","v":""},{"$f":"IF('TSA Input'!J3973=\"\",\"\",IF(OR('TSA Input'!J3973=\"Yes\",'TSA Input'!J3973=\"Contingent\"),'TSA Input'!F3973,\"\"))","v":""},"","Required","Required"]
["",null,{"$f":"IF('TSA Input'!J3974=\"\",\"\",IF(OR('TSA Input'!J3974=\"Yes\",'TSA Input'!J3974=\"Contingent\"),'TSA Input'!B3974,\"Ineligible\"))","v":""},{"$f":"IF('TSA Input'!J3974=\"\",\"\",IF(OR('TSA Input'!J3974=\"Yes\",'TSA Input'!J3974=\"Contingent\"),'TSA Input'!I3974,\"\"))","v":""},{"$f":"IF('TSA Input'!J3974=\"\",\"\",IF(OR('TSA Input'!J3974=\"Yes\",'TSA Input'!J3974=\"Contingent\"),'TSA Input'!C3974,\"\"))","v":""},{"$f":"IF('TSA Input'!J3974=\"\",\"\",IF(OR('TSA Input'!J3974=\"Yes\",'TSA Input'!J3974=\"Contingent\"),'TSA Input'!D3974,\"\"))","v":""},{"$f":"IF('TSA Input'!J3974=\"\",\"\",IF(OR('TSA Input'!J3974=\"Yes\",'TSA Input'!J3974=\"Contingent\"),'TSA Input'!G3974,\"\"))","v":""},{"$f":"IF('TSA Input'!J3974=\"\",\"\",IF(OR('TSA Input'!J3974=\"Yes\",'TSA Input'!J3974=\"Contingent\"),'TSA Input'!F3974,\"\"))","v":""},"",{"$f":"IF('TSA Input'!J3974=\"\",\"\",IF(OR('TSA Input'!J3974=\"Yes\",'TSA Input'!J3974=\"Contingent\"),'TSA Input'!D3974,\"\"))","v":""},{"$f":"IF('TSA Input'!J3974=\"\",\"\",IF(OR('TSA Input'!J3974=\"Yes\",'TSA Input'!J3974=\"Contingent\"),'TSA Input'!G3974,\"\"))","v":""},{"$f":"IF('TSA Input'!J3974=\"\",\"\",IF(OR('TSA Input'!J3974=\"Yes\",'TSA Input'!J3974=\"Contingent\"),'TSA Input'!F3974,\"\"))","v":""},"","Required","Required"]
["",null,{"$f":"IF('TSA Input'!J3975=\"\",\"\",IF(OR('TSA Input'!J3975=\"Yes\",'TSA Input'!J3975=\"Contingent\"),'TSA Input'!B3975,\"Ineligible\"))","v":""},{"$f":"IF('TSA Input'!J3975=\"\",\"\",IF(OR('TSA Input'!J3975=\"Yes\",'TSA Input'!J3975=\"Contingent\"),'TSA Input'!I3975,\"\"))","v":""},{"$f":"IF('TSA Input'!J3975=\"\",\"\",IF(OR('TSA Input'!J3975=\"Yes\",'TSA Input'!J3975=\"Contingent\"),'TSA Input'!C3975,\"\"))","v":""},{"$f":"IF('TSA Input'!J3975=\"\",\"\",IF(OR('TSA Input'!J3975=\"Yes\",'TSA Input'!J3975=\"Contingent\"),'TSA Input'!D3975,\"\"))","v":""},{"$f":"IF('TSA Input'!J3975=\"\",\"\",IF(OR('TSA Input'!J3975=\"Yes\",'TSA Input'!J3975=\"Contingent\"),'TSA Input'!G3975,\"\"))","v":""},{"$f":"IF('TSA Input'!J3975=\"\",\"\",IF(OR('TSA Input'!J3975=\"Yes\",'TSA Input'!J3975=\"Contingent\"),'TSA Input'!F3975,\"\"))","v":""},"",{"$f":"IF('TSA Input'!J3975=\"\",\"\",IF(OR('TSA Input'!J3975=\"Yes\",'TSA Input'!J3975=\"Contingent\"),'TSA Input'!D3975,\"\"))","v":""},{"$f":"IF('TSA Input'!J3975=\"\",\"\",IF(OR('TSA Input'!J3975=\"Yes\",'TSA Input'!J3975=\"Contingent\"),'TSA Input'!G3975,\"\"))","v":""},{"$f":"IF('TSA Input'!J3975=\"\",\"\",IF(OR('TSA Input'!J3975=\"Yes\",'TSA Input'!J3975=\"Contingent\"),'TSA Input'!F3975,\"\"))","v":""},"","Required","Required"]
["",null,{"$f":"IF('TSA Input'!J3976=\"\",\"\",IF(OR('TSA Input'!J3976=\"Yes\",'TSA Input'!J3976=\"Contingent\"),'TSA Input'!B3976,\"Ineligible\"))","v":""},{"$f":"IF('TSA Input'!J3976=\"\",\"\",IF(OR('TSA Input'!J3976=\"Yes\",'TSA Input'!J3976=\"Contingent\"),'TSA Input'!I3976,\"\"))","v":""},{"$f":"IF('TSA Input'!J3976=\"\",\"\",IF(OR('TSA Input'!J3976=\"Yes\",'TSA Input'!J3976=\"Contingent\"),'TSA Input'!C3976,\"\"))","v":""},{"$f":"IF('TSA Input'!J3976=\"\",\"\",IF(OR('TSA Input'!J3976=\"Yes\",'TSA Input'!J3976=\"Contingent\"),'TSA Input'!D3976,\"\"))","v":""},{"$f":"IF('TSA Input'!J3976=\"\",\"\",IF(OR('TSA Input'!J3976=\"Yes\",'TSA Input'!J3976=\"Contingent\"),'TSA Input'!G3976,\"\"))","v":""},{"$f":"IF('TSA Input'!J3976=\"\",\"\",IF(OR('TSA Input'!J3976=\"Yes\",'TSA Input'!J3976=\"Contingent\"),'TSA Input'!F3976,\"\"))","v":""},"",{"$f":"IF('TSA Input'!J3976=\"\",\"\",IF(OR('TSA Input'!J3976=\"Yes\",'TSA Input'!J3976=\"Contingent\"),'TSA Input'!D3976,\"\"))","v":""},{"$f":"IF('TSA Input'!J3976=\"\",\"\",IF(OR('TSA Input'!J3976=\"Yes\",'TSA Input'!J3976=\"Contingent\"),'TSA Input'!G3976,\"\"))","v":""},{"$f":"IF('TSA Input'!J3976=\"\",\"\",IF(OR('TSA Input'!J3976=\"Yes\",'TSA Input'!J3976=\"Contingent\"),'TSA Input'!F3976,\"\"))","v":""},"","Required","Required"]
["",null,{"$f":"IF('TSA Input'!J3977=\"\",\"\",IF(OR('TSA Input'!J3977=\"Yes\",'TSA Input'!J3977=\"Contingent\"),'TSA Input'!B3977,\"Ineligible\"))","v":""},{"$f":"IF('TSA Input'!J3977=\"\",\"\",IF(OR('TSA Input'!J3977=\"Yes\",'TSA Input'!J3977=\"Contingent\"),'TSA Input'!I3977,\"\"))","v":""},{"$f":"IF('TSA Input'!J3977=\"\",\"\",IF(OR('TSA Input'!J3977=\"Yes\",'TSA Input'!J3977=\"Contingent\"),'TSA Input'!C3977,\"\"))","v":""},{"$f":"IF('TSA Input'!J3977=\"\",\"\",IF(OR('TSA Input'!J3977=\"Yes\",'TSA Input'!J3977=\"Contingent\"),'TSA Input'!D3977,\"\"))","v":""},{"$f":"IF('TSA Input'!J3977=\"\",\"\",IF(OR('TSA Input'!J3977=\"Yes\",'TSA Input'!J3977=\"Contingent\"),'TSA Input'!G3977,\"\"))","v":""},{"$f":"IF('TSA Input'!J3977=\"\",\"\",IF(OR('TSA Input'!J3977=\"Yes\",'TSA Input'!J3977=\"Contingent\"),'TSA Input'!F3977,\"\"))","v":""},"",{"$f":"IF('TSA Input'!J3977=\"\",\"\",IF(OR('TSA Input'!J3977=\"Yes\",'TSA Input'!J3977=\"Contingent\"),'TSA Input'!D3977,\"\"))","v":""},{"$f":"IF('TSA Input'!J3977=\"\",\"\",IF(OR('TSA Input'!J3977=\"Yes\",'TSA Input'!J3977=\"Contingent\"),'TSA Input'!G3977,\"\"))","v":""},{"$f":"IF('TSA Input'!J3977=\"\",\"\",IF(OR('TSA Input'!J3977=\"Yes\",'TSA Input'!J3977=\"Contingent\"),'TSA Input'!F3977,\"\"))","v":""},"","Required","Required"]
["",null,{"$f":"IF('TSA Input'!J3978=\"\",\"\",IF(OR('TSA Input'!J3978=\"Yes\",'TSA Input'!J3978=\"Contingent\"),'TSA Input'!B3978,\"Ineligible\"))","v":""},{"$f":"IF('TSA Input'!J3978=\"\",\"\",IF(OR('TSA Input'!J3978=\"Yes\",'TSA Input'!J3978=\"Contingent\"),'TSA Input'!I3978,\"\"))","v":""},{"$f":"IF('TSA Input'!J3978=\"\",\"\",IF(OR('TSA Input'!J3978=\"Yes\",'TSA Input'!J3978=\"Contingent\"),'TSA Input'!C3978,\"\"))","v":""},{"$f":"IF('TSA Input'!J3978=\"\",\"\",IF(OR('TSA Input'!J3978=\"Yes\",'TSA Input'!J3978=\"Contingent\"),'TSA Input'!D3978,\"\"))","v":""},{"$f":"IF('TSA Input'!J3978=\"\",\"\",IF(OR('TSA Input'!J3978=\"Yes\",'TSA Input'!J3978=\"Contingent\"),'TSA Input'!G3978,\"\"))","v":""},{"$f":"IF('TSA Input'!J3978=\"\",\"\",IF(OR('TSA Input'!J3978=\"Yes\",'TSA Input'!J3978=\"Contingent\"),'TSA Input'!F3978,\"\"))","v":""},"",{"$f":"IF('TSA Input'!J3978=\"\",\"\",IF(OR('TSA Input'!J3978=\"Yes\",'TSA Input'!J3978=\"Contingent\"),'TSA Input'!D3978,\"\"))","v":""},{"$f":"IF('TSA Input'!J3978=\"\",\"\",IF(OR('TSA Input'!J3978=\"Yes\",'TSA Input'!J3978=\"Contingent\"),'TSA Input'!G3978,\"\"))","v":""},{"$f":"IF('TSA Input'!J3978=\"\",\"\",IF(OR('TSA Input'!J3978=\"Yes\",'TSA Input'!J3978=\"Contingent\"),'TSA Input'!F3978,\"\"))","v":""},"","Required","Required"]
["",null,{"$f":"IF('TSA Input'!J3979=\"\",\"\",IF(OR('TSA Input'!J3979=\"Yes\",'TSA Input'!J3979=\"Contingent\"),'TSA Input'!B3979,\"Ineligible\"))","v":""},{"$f":"IF('TSA Input'!J3979=\"\",\"\",IF(OR('TSA Input'!J3979=\"Yes\",'TSA Input'!J3979=\"Contingent\"),'TSA Input'!I3979,\"\"))","v":""},{"$f":"IF('TSA Input'!J3979=\"\",\"\",IF(OR('TSA Input'!J3979=\"Yes\",'TSA Input'!J3979=\"Contingent\"),'TSA Input'!C3979,\"\"))","v":""},{"$f":"IF('TSA Input'!J3979=\"\",\"\",IF(OR('TSA Input'!J3979=\"Yes\",'TSA Input'!J3979=\"Contingent\"),'TSA Input'!D3979,\"\"))","v":""},{"$f":"IF('TSA Input'!J3979=\"\",\"\",IF(OR('TSA Input'!J3979=\"Yes\",'TSA Input'!J3979=\"Contingent\"),'TSA Input'!G3979,\"\"))","v":""},{"$f":"IF('TSA Input'!J3979=\"\",\"\",IF(OR('TSA Input'!J3979=\"Yes\",'TSA Input'!J3979=\"Contingent\"),'TSA Input'!F3979,\"\"))","v":""},"",{"$f":"IF('TSA Input'!J3979=\"\",\"\",IF(OR('TSA Input'!J3979=\"Yes\",'TSA Input'!J3979=\"Contingent\"),'TSA Input'!D3979,\"\"))","v":""},{"$f":"IF('TSA Input'!J3979=\"\",\"\",IF(OR('TSA Input'!J3979=\"Yes\",'TSA Input'!J3979=\"Contingent\"),'TSA Input'!G3979,\"\"))","v":""},{"$f":"IF('TSA Input'!J3979=\"\",\"\",IF(OR('TSA Input'!J3979=\"Yes\",'TSA Input'!J3979=\"Contingent\"),'TSA Input'!F3979,\"\"))","v":""},"","Required","Required"]
["",null,{"$f":"IF('TSA Input'!J3980=\"\",\"\",IF(OR('TSA Input'!J3980=\"Yes\",'TSA Input'!J3980=\"Contingent\"),'TSA Input'!B3980,\"Ineligible\"))","v":""},{"$f":"IF('TSA Input'!J3980=\"\",\"\",IF(OR('TSA Input'!J3980=\"Yes\",'TSA Input'!J3980=\"Contingent\"),'TSA Input'!I3980,\"\"))","v":""},{"$f":"IF('TSA Input'!J3980=\"\",\"\",IF(OR('TSA Input'!J3980=\"Yes\",'TSA Input'!J3980=\"Contingent\"),'TSA Input'!C3980,\"\"))","v":""},{"$f":"IF('TSA Input'!J3980=\"\",\"\",IF(OR('TSA Input'!J3980=\"Yes\",'TSA Input'!J3980=\"Contingent\"),'TSA Input'!D3980,\"\"))","v":""},{"$f":"IF('TSA Input'!J3980=\"\",\"\",IF(OR('TSA Input'!J3980=\"Yes\",'TSA Input'!J3980=\"Contingent\"),'TSA Input'!G3980,\"\"))","v":""},{"$f":"IF('TSA Input'!J3980=\"\",\"\",IF(OR('TSA Input'!J3980=\"Yes\",'TSA Input'!J3980=\"Contingent\"),'TSA Input'!F3980,\"\"))","v":""},"",{"$f":"IF('TSA Input'!J3980=\"\",\"\",IF(OR('TSA Input'!J3980=\"Yes\",'TSA Input'!J3980=\"Contingent\"),'TSA Input'!D3980,\"\"))","v":""},{"$f":"IF('TSA Input'!J3980=\"\",\"\",IF(OR('TSA Input'!J3980=\"Yes\",'TSA Input'!J3980=\"Contingent\"),'TSA Input'!G3980,\"\"))","v":""},{"$f":"IF('TSA Input'!J3980=\"\",\"\",IF(OR('TSA Input'!J3980=\"Yes\",'TSA Input'!J3980=\"Contingent\"),'TSA Input'!F3980,\"\"))","v":""},"","Required","Required"]
["",null,{"$f":"IF('TSA Input'!J3981=\"\",\"\",IF(OR('TSA Input'!J3981=\"Yes\",'TSA Input'!J3981=\"Contingent\"),'TSA Input'!B3981,\"Ineligible\"))","v":""},{"$f":"IF('TSA Input'!J3981=\"\",\"\",IF(OR('TSA Input'!J3981=\"Yes\",'TSA Input'!J3981=\"Contingent\"),'TSA Input'!I3981,\"\"))","v":""},{"$f":"IF('TSA Input'!J3981=\"\",\"\",IF(OR('TSA Input'!J3981=\"Yes\",'TSA Input'!J3981=\"Contingent\"),'TSA Input'!C3981,\"\"))","v":""},{"$f":"IF('TSA Input'!J3981=\"\",\"\",IF(OR('TSA Input'!J3981=\"Yes\",'TSA Input'!J3981=\"Contingent\"),'TSA Input'!D3981,\"\"))","v":""},{"$f":"IF('TSA Input'!J3981=\"\",\"\",IF(OR('TSA Input'!J3981=\"Yes\",'TSA Input'!J3981=\"Contingent\"),'TSA Input'!G3981,\"\"))","v":""},{"$f":"IF('TSA Input'!J3981=\"\",\"\",IF(OR('TSA Input'!J3981=\"Yes\",'TSA Input'!J3981=\"Contingent\"),'TSA Input'!F3981,\"\"))","v":""},"",{"$f":"IF('TSA Input'!J3981=\"\",\"\",IF(OR('TSA Input'!J3981=\"Yes\",'TSA Input'!J3981=\"Contingent\"),'TSA Input'!D3981,\"\"))","v":""},{"$f":"IF('TSA Input'!J3981=\"\",\"\",IF(OR('TSA Input'!J3981=\"Yes\",'TSA Input'!J3981=\"Contingent\"),'TSA Input'!G3981,\"\"))","v":""},{"$f":"IF('TSA Input'!J3981=\"\",\"\",IF(OR('TSA Input'!J3981=\"Yes\",'TSA Input'!J3981=\"Contingent\"),'TSA Input'!F3981,\"\"))","v":""},"","Required","Required"]
["",null,{"$f":"IF('TSA Input'!J3982=\"\",\"\",IF(OR('TSA Input'!J3982=\"Yes\",'TSA Input'!J3982=\"Contingent\"),'TSA Input'!B3982,\"Ineligible\"))","v":""},{"$f":"IF('TSA Input'!J3982=\"\",\"\",IF(OR('TSA Input'!J3982=\"Yes\",'TSA Input'!J3982=\"Contingent\"),'TSA Input'!I3982,\"\"))","v":""},{"$f":"IF('TSA Input'!J3982=\"\",\"\",IF(OR('TSA Input'!J3982=\"Yes\",'TSA Input'!J3982=\"Contingent\"),'TSA Input'!C3982,\"\"))","v":""},{"$f":"IF('TSA Input'!J3982=\"\",\"\",IF(OR('TSA Input'!J3982=\"Yes\",'TSA Input'!J3982=\"Contingent\"),'TSA Input'!D3982,\"\"))","v":""},{"$f":"IF('TSA Input'!J3982=\"\",\"\",IF(OR('TSA Input'!J3982=\"Yes\",'TSA Input'!J3982=\"Contingent\"),'TSA Input'!G3982,\"\"))","v":""},{"$f":"IF('TSA Input'!J3982=\"\",\"\",IF(OR('TSA Input'!J3982=\"Yes\",'TSA Input'!J3982=\"Contingent\"),'TSA Input'!F3982,\"\"))","v":""},"",{"$f":"IF('TSA Input'!J3982=\"\",\"\",IF(OR('TSA Input'!J3982=\"Yes\",'TSA Input'!J3982=\"Contingent\"),'TSA Input'!D3982,\"\"))","v":""},{"$f":"IF('TSA Input'!J3982=\"\",\"\",IF(OR('TSA Input'!J3982=\"Yes\",'TSA Input'!J3982=\"Contingent\"),'TSA Input'!G3982,\"\"))","v":""},{"$f":"IF('TSA Input'!J3982=\"\",\"\",IF(OR('TSA Input'!J3982=\"Yes\",'TSA Input'!J3982=\"Contingent\"),'TSA Input'!F3982,\"\"))","v":""},"","Required","Required"]
["",null,{"$f":"IF('TSA Input'!J3983=\"\",\"\",IF(OR('TSA Input'!J3983=\"Yes\",'TSA Input'!J3983=\"Contingent\"),'TSA Input'!B3983,\"Ineligible\"))","v":""},{"$f":"IF('TSA Input'!J3983=\"\",\"\",IF(OR('TSA Input'!J3983=\"Yes\",'TSA Input'!J3983=\"Contingent\"),'TSA Input'!I3983,\"\"))","v":""},{"$f":"IF('TSA Input'!J3983=\"\",\"\",IF(OR('TSA Input'!J3983=\"Yes\",'TSA Input'!J3983=\"Contingent\"),'TSA Input'!C3983,\"\"))","v":""},{"$f":"IF('TSA Input'!J3983=\"\",\"\",IF(OR('TSA Input'!J3983=\"Yes\",'TSA Input'!J3983=\"Contingent\"),'TSA Input'!D3983,\"\"))","v":""},{"$f":"IF('TSA Input'!J3983=\"\",\"\",IF(OR('TSA Input'!J3983=\"Yes\",'TSA Input'!J3983=\"Contingent\"),'TSA Input'!G3983,\"\"))","v":""},{"$f":"IF('TSA Input'!J3983=\"\",\"\",IF(OR('TSA Input'!J3983=\"Yes\",'TSA Input'!J3983=\"Contingent\"),'TSA Input'!F3983,\"\"))","v":""},"",{"$f":"IF('TSA Input'!J3983=\"\",\"\",IF(OR('TSA Input'!J3983=\"Yes\",'TSA Input'!J3983=\"Contingent\"),'TSA Input'!D3983,\"\"))","v":""},{"$f":"IF('TSA Input'!J3983=\"\",\"\",IF(OR('TSA Input'!J3983=\"Yes\",'TSA Input'!J3983=\"Contingent\"),'TSA Input'!G3983,\"\"))","v":""},{"$f":"IF('TSA Input'!J3983=\"\",\"\",IF(OR('TSA Input'!J3983=\"Yes\",'TSA Input'!J3983=\"Contingent\"),'TSA Input'!F3983,\"\"))","v":""},"","Required","Required"]
["",null,{"$f":"IF('TSA Input'!J3984=\"\",\"\",IF(OR('TSA Input'!J3984=\"Yes\",'TSA Input'!J3984=\"Contingent\"),'TSA Input'!B3984,\"Ineligible\"))","v":""},{"$f":"IF('TSA Input'!J3984=\"\",\"\",IF(OR('TSA Input'!J3984=\"Yes\",'TSA Input'!J3984=\"Contingent\"),'TSA Input'!I3984,\"\"))","v":""},{"$f":"IF('TSA Input'!J3984=\"\",\"\",IF(OR('TSA Input'!J3984=\"Yes\",'TSA Input'!J3984=\"Contingent\"),'TSA Input'!C3984,\"\"))","v":""},{"$f":"IF('TSA Input'!J3984=\"\",\"\",IF(OR('TSA Input'!J3984=\"Yes\",'TSA Input'!J3984=\"Contingent\"),'TSA Input'!D3984,\"\"))","v":""},{"$f":"IF('TSA Input'!J3984=\"\",\"\",IF(OR('TSA Input'!J3984=\"Yes\",'TSA Input'!J3984=\"Contingent\"),'TSA Input'!G3984,\"\"))","v":""},{"$f":"IF('TSA Input'!J3984=\"\",\"\",IF(OR('TSA Input'!J3984=\"Yes\",'TSA Input'!J3984=\"Contingent\"),'TSA Input'!F3984,\"\"))","v":""},"",{"$f":"IF('TSA Input'!J3984=\"\",\"\",IF(OR('TSA Input'!J3984=\"Yes\",'TSA Input'!J3984=\"Contingent\"),'TSA Input'!D3984,\"\"))","v":""},{"$f":"IF('TSA Input'!J3984=\"\",\"\",IF(OR('TSA Input'!J3984=\"Yes\",'TSA Input'!J3984=\"Contingent\"),'TSA Input'!G3984,\"\"))","v":""},{"$f":"IF('TSA Input'!J3984=\"\",\"\",IF(OR('TSA Input'!J3984=\"Yes\",'TSA Input'!J3984=\"Contingent\"),'TSA Input'!F3984,\"\"))","v":""},"","Required","Required"]
["",null,{"$f":"IF('TSA Input'!J3985=\"\",\"\",IF(OR('TSA Input'!J3985=\"Yes\",'TSA Input'!J3985=\"Contingent\"),'TSA Input'!B3985,\"Ineligible\"))","v":""},{"$f":"IF('TSA Input'!J3985=\"\",\"\",IF(OR('TSA Input'!J3985=\"Yes\",'TSA Input'!J3985=\"Contingent\"),'TSA Input'!I3985,\"\"))","v":""},{"$f":"IF('TSA Input'!J3985=\"\",\"\",IF(OR('TSA Input'!J3985=\"Yes\",'TSA Input'!J3985=\"Contingent\"),'TSA Input'!C3985,\"\"))","v":""},{"$f":"IF('TSA Input'!J3985=\"\",\"\",IF(OR('TSA Input'!J3985=\"Yes\",'TSA Input'!J3985=\"Contingent\"),'TSA Input'!D3985,\"\"))","v":""},{"$f":"IF('TSA Input'!J3985=\"\",\"\",IF(OR('TSA Input'!J3985=\"Yes\",'TSA Input'!J3985=\"Contingent\"),'TSA Input'!G3985,\"\"))","v":""},{"$f":"IF('TSA Input'!J3985=\"\",\"\",IF(OR('TSA Input'!J3985=\"Yes\",'TSA Input'!J3985=\"Contingent\"),'TSA Input'!F3985,\"\"))","v":""},"",{"$f":"IF('TSA Input'!J3985=\"\",\"\",IF(OR('TSA Input'!J3985=\"Yes\",'TSA Input'!J3985=\"Contingent\"),'TSA Input'!D3985,\"\"))","v":""},{"$f":"IF('TSA Input'!J3985=\"\",\"\",IF(OR('TSA Input'!J3985=\"Yes\",'TSA Input'!J3985=\"Contingent\"),'TSA Input'!G3985,\"\"))","v":""},{"$f":"IF('TSA Input'!J3985=\"\",\"\",IF(OR('TSA Input'!J3985=\"Yes\",'TSA Input'!J3985=\"Contingent\"),'TSA Input'!F3985,\"\"))","v":""},"","Required","Required"]
["",null,{"$f":"IF('TSA Input'!J3986=\"\",\"\",IF(OR('TSA Input'!J3986=\"Yes\",'TSA Input'!J3986=\"Contingent\"),'TSA Input'!B3986,\"Ineligible\"))","v":""},{"$f":"IF('TSA Input'!J3986=\"\",\"\",IF(OR('TSA Input'!J3986=\"Yes\",'TSA Input'!J3986=\"Contingent\"),'TSA Input'!I3986,\"\"))","v":""},{"$f":"IF('TSA Input'!J3986=\"\",\"\",IF(OR('TSA Input'!J3986=\"Yes\",'TSA Input'!J3986=\"Contingent\"),'TSA Input'!C3986,\"\"))","v":""},{"$f":"IF('TSA Input'!J3986=\"\",\"\",IF(OR('TSA Input'!J3986=\"Yes\",'TSA Input'!J3986=\"Contingent\"),'TSA Input'!D3986,\"\"))","v":""},{"$f":"IF('TSA Input'!J3986=\"\",\"\",IF(OR('TSA Input'!J3986=\"Yes\",'TSA Input'!J3986=\"Contingent\"),'TSA Input'!G3986,\"\"))","v":""},{"$f":"IF('TSA Input'!J3986=\"\",\"\",IF(OR('TSA Input'!J3986=\"Yes\",'TSA Input'!J3986=\"Contingent\"),'TSA Input'!F3986,\"\"))","v":""},"",{"$f":"IF('TSA Input'!J3986=\"\",\"\",IF(OR('TSA Input'!J3986=\"Yes\",'TSA Input'!J3986=\"Contingent\"),'TSA Input'!D3986,\"\"))","v":""},{"$f":"IF('TSA Input'!J3986=\"\",\"\",IF(OR('TSA Input'!J3986=\"Yes\",'TSA Input'!J3986=\"Contingent\"),'TSA Input'!G3986,\"\"))","v":""},{"$f":"IF('TSA Input'!J3986=\"\",\"\",IF(OR('TSA Input'!J3986=\"Yes\",'TSA Input'!J3986=\"Contingent\"),'TSA Input'!F3986,\"\"))","v":""},"","Required","Required"]
["",null,{"$f":"IF('TSA Input'!J3987=\"\",\"\",IF(OR('TSA Input'!J3987=\"Yes\",'TSA Input'!J3987=\"Contingent\"),'TSA Input'!B3987,\"Ineligible\"))","v":""},{"$f":"IF('TSA Input'!J3987=\"\",\"\",IF(OR('TSA Input'!J3987=\"Yes\",'TSA Input'!J3987=\"Contingent\"),'TSA Input'!I3987,\"\"))","v":""},{"$f":"IF('TSA Input'!J3987=\"\",\"\",IF(OR('TSA Input'!J3987=\"Yes\",'TSA Input'!J3987=\"Contingent\"),'TSA Input'!C3987,\"\"))","v":""},{"$f":"IF('TSA Input'!J3987=\"\",\"\",IF(OR('TSA Input'!J3987=\"Yes\",'TSA Input'!J3987=\"Contingent\"),'TSA Input'!D3987,\"\"))","v":""},{"$f":"IF('TSA Input'!J3987=\"\",\"\",IF(OR('TSA Input'!J3987=\"Yes\",'TSA Input'!J3987=\"Contingent\"),'TSA Input'!G3987,\"\"))","v":""},{"$f":"IF('TSA Input'!J3987=\"\",\"\",IF(OR('TSA Input'!J3987=\"Yes\",'TSA Input'!J3987=\"Contingent\"),'TSA Input'!F3987,\"\"))","v":""},"",{"$f":"IF('TSA Input'!J3987=\"\",\"\",IF(OR('TSA Input'!J3987=\"Yes\",'TSA Input'!J3987=\"Contingent\"),'TSA Input'!D3987,\"\"))","v":""},{"$f":"IF('TSA Input'!J3987=\"\",\"\",IF(OR('TSA Input'!J3987=\"Yes\",'TSA Input'!J3987=\"Contingent\"),'TSA Input'!G3987,\"\"))","v":""},{"$f":"IF('TSA Input'!J3987=\"\",\"\",IF(OR('TSA Input'!J3987=\"Yes\",'TSA Input'!J3987=\"Contingent\"),'TSA Input'!F3987,\"\"))","v":""},"","Required","Required"]
["",null,{"$f":"IF('TSA Input'!J3988=\"\",\"\",IF(OR('TSA Input'!J3988=\"Yes\",'TSA Input'!J3988=\"Contingent\"),'TSA Input'!B3988,\"Ineligible\"))","v":""},{"$f":"IF('TSA Input'!J3988=\"\",\"\",IF(OR('TSA Input'!J3988=\"Yes\",'TSA Input'!J3988=\"Contingent\"),'TSA Input'!I3988,\"\"))","v":""},{"$f":"IF('TSA Input'!J3988=\"\",\"\",IF(OR('TSA Input'!J3988=\"Yes\",'TSA Input'!J3988=\"Contingent\"),'TSA Input'!C3988,\"\"))","v":""},{"$f":"IF('TSA Input'!J3988=\"\",\"\",IF(OR('TSA Input'!J3988=\"Yes\",'TSA Input'!J3988=\"Contingent\"),'TSA Input'!D3988,\"\"))","v":""},{"$f":"IF('TSA Input'!J3988=\"\",\"\",IF(OR('TSA Input'!J3988=\"Yes\",'TSA Input'!J3988=\"Contingent\"),'TSA Input'!G3988,\"\"))","v":""},{"$f":"IF('TSA Input'!J3988=\"\",\"\",IF(OR('TSA Input'!J3988=\"Yes\",'TSA Input'!J3988=\"Contingent\"),'TSA Input'!F3988,\"\"))","v":""},"",{"$f":"IF('TSA Input'!J3988=\"\",\"\",IF(OR('TSA Input'!J3988=\"Yes\",'TSA Input'!J3988=\"Contingent\"),'TSA Input'!D3988,\"\"))","v":""},{"$f":"IF('TSA Input'!J3988=\"\",\"\",IF(OR('TSA Input'!J3988=\"Yes\",'TSA Input'!J3988=\"Contingent\"),'TSA Input'!G3988,\"\"))","v":""},{"$f":"IF('TSA Input'!J3988=\"\",\"\",IF(OR('TSA Input'!J3988=\"Yes\",'TSA Input'!J3988=\"Contingent\"),'TSA Input'!F3988,\"\"))","v":""},"","Required","Required"]
["",null,{"$f":"IF('TSA Input'!J3989=\"\",\"\",IF(OR('TSA Input'!J3989=\"Yes\",'TSA Input'!J3989=\"Contingent\"),'TSA Input'!B3989,\"Ineligible\"))","v":""},{"$f":"IF('TSA Input'!J3989=\"\",\"\",IF(OR('TSA Input'!J3989=\"Yes\",'TSA Input'!J3989=\"Contingent\"),'TSA Input'!I3989,\"\"))","v":""},{"$f":"IF('TSA Input'!J3989=\"\",\"\",IF(OR('TSA Input'!J3989=\"Yes\",'TSA Input'!J3989=\"Contingent\"),'TSA Input'!C3989,\"\"))","v":""},{"$f":"IF('TSA Input'!J3989=\"\",\"\",IF(OR('TSA Input'!J3989=\"Yes\",'TSA Input'!J3989=\"Contingent\"),'TSA Input'!D3989,\"\"))","v":""},{"$f":"IF('TSA Input'!J3989=\"\",\"\",IF(OR('TSA Input'!J3989=\"Yes\",'TSA Input'!J3989=\"Contingent\"),'TSA Input'!G3989,\"\"))","v":""},{"$f":"IF('TSA Input'!J3989=\"\",\"\",IF(OR('TSA Input'!J3989=\"Yes\",'TSA Input'!J3989=\"Contingent\"),'TSA Input'!F3989,\"\"))","v":""},"",{"$f":"IF('TSA Input'!J3989=\"\",\"\",IF(OR('TSA Input'!J3989=\"Yes\",'TSA Input'!J3989=\"Contingent\"),'TSA Input'!D3989,\"\"))","v":""},{"$f":"IF('TSA Input'!J3989=\"\",\"\",IF(OR('TSA Input'!J3989=\"Yes\",'TSA Input'!J3989=\"Contingent\"),'TSA Input'!G3989,\"\"))","v":""},{"$f":"IF('TSA Input'!J3989=\"\",\"\",IF(OR('TSA Input'!J3989=\"Yes\",'TSA Input'!J3989=\"Contingent\"),'TSA Input'!F3989,\"\"))","v":""},"","Required","Required"]
["",null,{"$f":"IF('TSA Input'!J3990=\"\",\"\",IF(OR('TSA Input'!J3990=\"Yes\",'TSA Input'!J3990=\"Contingent\"),'TSA Input'!B3990,\"Ineligible\"))","v":""},{"$f":"IF('TSA Input'!J3990=\"\",\"\",IF(OR('TSA Input'!J3990=\"Yes\",'TSA Input'!J3990=\"Contingent\"),'TSA Input'!I3990,\"\"))","v":""},{"$f":"IF('TSA Input'!J3990=\"\",\"\",IF(OR('TSA Input'!J3990=\"Yes\",'TSA Input'!J3990=\"Contingent\"),'TSA Input'!C3990,\"\"))","v":""},{"$f":"IF('TSA Input'!J3990=\"\",\"\",IF(OR('TSA Input'!J3990=\"Yes\",'TSA Input'!J3990=\"Contingent\"),'TSA Input'!D3990,\"\"))","v":""},{"$f":"IF('TSA Input'!J3990=\"\",\"\",IF(OR('TSA Input'!J3990=\"Yes\",'TSA Input'!J3990=\"Contingent\"),'TSA Input'!G3990,\"\"))","v":""},{"$f":"IF('TSA Input'!J3990=\"\",\"\",IF(OR('TSA Input'!J3990=\"Yes\",'TSA Input'!J3990=\"Contingent\"),'TSA Input'!F3990,\"\"))","v":""},"",{"$f":"IF('TSA Input'!J3990=\"\",\"\",IF(OR('TSA Input'!J3990=\"Yes\",'TSA Input'!J3990=\"Contingent\"),'TSA Input'!D3990,\"\"))","v":""},{"$f":"IF('TSA Input'!J3990=\"\",\"\",IF(OR('TSA Input'!J3990=\"Yes\",'TSA Input'!J3990=\"Contingent\"),'TSA Input'!G3990,\"\"))","v":""},{"$f":"IF('TSA Input'!J3990=\"\",\"\",IF(OR('TSA Input'!J3990=\"Yes\",'TSA Input'!J3990=\"Contingent\"),'TSA Input'!F3990,\"\"))","v":""},"","Required","Required"]
["",null,{"$f":"IF('TSA Input'!J3991=\"\",\"\",IF(OR('TSA Input'!J3991=\"Yes\",'TSA Input'!J3991=\"Contingent\"),'TSA Input'!B3991,\"Ineligible\"))","v":""},{"$f":"IF('TSA Input'!J3991=\"\",\"\",IF(OR('TSA Input'!J3991=\"Yes\",'TSA Input'!J3991=\"Contingent\"),'TSA Input'!I3991,\"\"))","v":""},{"$f":"IF('TSA Input'!J3991=\"\",\"\",IF(OR('TSA Input'!J3991=\"Yes\",'TSA Input'!J3991=\"Contingent\"),'TSA Input'!C3991,\"\"))","v":""},{"$f":"IF('TSA Input'!J3991=\"\",\"\",IF(OR('TSA Input'!J3991=\"Yes\",'TSA Input'!J3991=\"Contingent\"),'TSA Input'!D3991,\"\"))","v":""},{"$f":"IF('TSA Input'!J3991=\"\",\"\",IF(OR('TSA Input'!J3991=\"Yes\",'TSA Input'!J3991=\"Contingent\"),'TSA Input'!G3991,\"\"))","v":""},{"$f":"IF('TSA Input'!J3991=\"\",\"\",IF(OR('TSA Input'!J3991=\"Yes\",'TSA Input'!J3991=\"Contingent\"),'TSA Input'!F3991,\"\"))","v":""},"",{"$f":"IF('TSA Input'!J3991=\"\",\"\",IF(OR('TSA Input'!J3991=\"Yes\",'TSA Input'!J3991=\"Contingent\"),'TSA Input'!D3991,\"\"))","v":""},{"$f":"IF('TSA Input'!J3991=\"\",\"\",IF(OR('TSA Input'!J3991=\"Yes\",'TSA Input'!J3991=\"Contingent\"),'TSA Input'!G3991,\"\"))","v":""},{"$f":"IF('TSA Input'!J3991=\"\",\"\",IF(OR('TSA Input'!J3991=\"Yes\",'TSA Input'!J3991=\"Contingent\"),'TSA Input'!F3991,\"\"))","v":""},"","Required","Required"]
["",null,{"$f":"IF('TSA Input'!J3992=\"\",\"\",IF(OR('TSA Input'!J3992=\"Yes\",'TSA Input'!J3992=\"Contingent\"),'TSA Input'!B3992,\"Ineligible\"))","v":""},{"$f":"IF('TSA Input'!J3992=\"\",\"\",IF(OR('TSA Input'!J3992=\"Yes\",'TSA Input'!J3992=\"Contingent\"),'TSA Input'!I3992,\"\"))","v":""},{"$f":"IF('TSA Input'!J3992=\"\",\"\",IF(OR('TSA Input'!J3992=\"Yes\",'TSA Input'!J3992=\"Contingent\"),'TSA Input'!C3992,\"\"))","v":""},{"$f":"IF('TSA Input'!J3992=\"\",\"\",IF(OR('TSA Input'!J3992=\"Yes\",'TSA Input'!J3992=\"Contingent\"),'TSA Input'!D3992,\"\"))","v":""},{"$f":"IF('TSA Input'!J3992=\"\",\"\",IF(OR('TSA Input'!J3992=\"Yes\",'TSA Input'!J3992=\"Contingent\"),'TSA Input'!G3992,\"\"))","v":""},{"$f":"IF('TSA Input'!J3992=\"\",\"\",IF(OR('TSA Input'!J3992=\"Yes\",'TSA Input'!J3992=\"Contingent\"),'TSA Input'!F3992,\"\"))","v":""},"",{"$f":"IF('TSA Input'!J3992=\"\",\"\",IF(OR('TSA Input'!J3992=\"Yes\",'TSA Input'!J3992=\"Contingent\"),'TSA Input'!D3992,\"\"))","v":""},{"$f":"IF('TSA Input'!J3992=\"\",\"\",IF(OR('TSA Input'!J3992=\"Yes\",'TSA Input'!J3992=\"Contingent\"),'TSA Input'!G3992,\"\"))","v":""},{"$f":"IF('TSA Input'!J3992=\"\",\"\",IF(OR('TSA Input'!J3992=\"Yes\",'TSA Input'!J3992=\"Contingent\"),'TSA Input'!F3992,\"\"))","v":""},"","Required","Required"]
["",null,{"$f":"IF('TSA Input'!J3993=\"\",\"\",IF(OR('TSA Input'!J3993=\"Yes\",'TSA Input'!J3993=\"Contingent\"),'TSA Input'!B3993,\"Ineligible\"))","v":""},{"$f":"IF('TSA Input'!J3993=\"\",\"\",IF(OR('TSA Input'!J3993=\"Yes\",'TSA Input'!J3993=\"Contingent\"),'TSA Input'!I3993,\"\"))","v":""},{"$f":"IF('TSA Input'!J3993=\"\",\"\",IF(OR('TSA Input'!J3993=\"Yes\",'TSA Input'!J3993=\"Contingent\"),'TSA Input'!C3993,\"\"))","v":""},{"$f":"IF('TSA Input'!J3993=\"\",\"\",IF(OR('TSA Input'!J3993=\"Yes\",'TSA Input'!J3993=\"Contingent\"),'TSA Input'!D3993,\"\"))","v":""},{"$f":"IF('TSA Input'!J3993=\"\",\"\",IF(OR('TSA Input'!J3993=\"Yes\",'TSA Input'!J3993=\"Contingent\"),'TSA Input'!G3993,\"\"))","v":""},{"$f":"IF('TSA Input'!J3993=\"\",\"\",IF(OR('TSA Input'!J3993=\"Yes\",'TSA Input'!J3993=\"Contingent\"),'TSA Input'!F3993,\"\"))","v":""},"",{"$f":"IF('TSA Input'!J3993=\"\",\"\",IF(OR('TSA Input'!J3993=\"Yes\",'TSA Input'!J3993=\"Contingent\"),'TSA Input'!D3993,\"\"))","v":""},{"$f":"IF('TSA Input'!J3993=\"\",\"\",IF(OR('TSA Input'!J3993=\"Yes\",'TSA Input'!J3993=\"Contingent\"),'TSA Input'!G3993,\"\"))","v":""},{"$f":"IF('TSA Input'!J3993=\"\",\"\",IF(OR('TSA Input'!J3993=\"Yes\",'TSA Input'!J3993=\"Contingent\"),'TSA Input'!F3993,\"\"))","v":""},"","Required","Required"]
["",null,{"$f":"IF('TSA Input'!J3994=\"\",\"\",IF(OR('TSA Input'!J3994=\"Yes\",'TSA Input'!J3994=\"Contingent\"),'TSA Input'!B3994,\"Ineligible\"))","v":""},{"$f":"IF('TSA Input'!J3994=\"\",\"\",IF(OR('TSA Input'!J3994=\"Yes\",'TSA Input'!J3994=\"Contingent\"),'TSA Input'!I3994,\"\"))","v":""},{"$f":"IF('TSA Input'!J3994=\"\",\"\",IF(OR('TSA Input'!J3994=\"Yes\",'TSA Input'!J3994=\"Contingent\"),'TSA Input'!C3994,\"\"))","v":""},{"$f":"IF('TSA Input'!J3994=\"\",\"\",IF(OR('TSA Input'!J3994=\"Yes\",'TSA Input'!J3994=\"Contingent\"),'TSA Input'!D3994,\"\"))","v":""},{"$f":"IF('TSA Input'!J3994=\"\",\"\",IF(OR('TSA Input'!J3994=\"Yes\",'TSA Input'!J3994=\"Contingent\"),'TSA Input'!G3994,\"\"))","v":""},{"$f":"IF('TSA Input'!J3994=\"\",\"\",IF(OR('TSA Input'!J3994=\"Yes\",'TSA Input'!J3994=\"Contingent\"),'TSA Input'!F3994,\"\"))","v":""},"",{"$f":"IF('TSA Input'!J3994=\"\",\"\",IF(OR('TSA Input'!J3994=\"Yes\",'TSA Input'!J3994=\"Contingent\"),'TSA Input'!D3994,\"\"))","v":""},{"$f":"IF('TSA Input'!J3994=\"\",\"\",IF(OR('TSA Input'!J3994=\"Yes\",'TSA Input'!J3994=\"Contingent\"),'TSA Input'!G3994,\"\"))","v":""},{"$f":"IF('TSA Input'!J3994=\"\",\"\",IF(OR('TSA Input'!J3994=\"Yes\",'TSA Input'!J3994=\"Contingent\"),'TSA Input'!F3994,\"\"))","v":""},"","Required","Required"]
["",null,{"$f":"IF('TSA Input'!J3995=\"\",\"\",IF(OR('TSA Input'!J3995=\"Yes\",'TSA Input'!J3995=\"Contingent\"),'TSA Input'!B3995,\"Ineligible\"))","v":""},{"$f":"IF('TSA Input'!J3995=\"\",\"\",IF(OR('TSA Input'!J3995=\"Yes\",'TSA Input'!J3995=\"Contingent\"),'TSA Input'!I3995,\"\"))","v":""},{"$f":"IF('TSA Input'!J3995=\"\",\"\",IF(OR('TSA Input'!J3995=\"Yes\",'TSA Input'!J3995=\"Contingent\"),'TSA Input'!C3995,\"\"))","v":""},{"$f":"IF('TSA Input'!J3995=\"\",\"\",IF(OR('TSA Input'!J3995=\"Yes\",'TSA Input'!J3995=\"Contingent\"),'TSA Input'!D3995,\"\"))","v":""},{"$f":"IF('TSA Input'!J3995=\"\",\"\",IF(OR('TSA Input'!J3995=\"Yes\",'TSA Input'!J3995=\"Contingent\"),'TSA Input'!G3995,\"\"))","v":""},{"$f":"IF('TSA Input'!J3995=\"\",\"\",IF(OR('TSA Input'!J3995=\"Yes\",'TSA Input'!J3995=\"Contingent\"),'TSA Input'!F3995,\"\"))","v":""},"",{"$f":"IF('TSA Input'!J3995=\"\",\"\",IF(OR('TSA Input'!J3995=\"Yes\",'TSA Input'!J3995=\"Contingent\"),'TSA Input'!D3995,\"\"))","v":""},{"$f":"IF('TSA Input'!J3995=\"\",\"\",IF(OR('TSA Input'!J3995=\"Yes\",'TSA Input'!J3995=\"Contingent\"),'TSA Input'!G3995,\"\"))","v":""},{"$f":"IF('TSA Input'!J3995=\"\",\"\",IF(OR('TSA Input'!J3995=\"Yes\",'TSA Input'!J3995=\"Contingent\"),'TSA Input'!F3995,\"\"))","v":""},"","Required","Required"]
["",null,{"$f":"IF('TSA Input'!J3996=\"\",\"\",IF(OR('TSA Input'!J3996=\"Yes\",'TSA Input'!J3996=\"Contingent\"),'TSA Input'!B3996,\"Ineligible\"))","v":""},{"$f":"IF('TSA Input'!J3996=\"\",\"\",IF(OR('TSA Input'!J3996=\"Yes\",'TSA Input'!J3996=\"Contingent\"),'TSA Input'!I3996,\"\"))","v":""},{"$f":"IF('TSA Input'!J3996=\"\",\"\",IF(OR('TSA Input'!J3996=\"Yes\",'TSA Input'!J3996=\"Contingent\"),'TSA Input'!C3996,\"\"))","v":""},{"$f":"IF('TSA Input'!J3996=\"\",\"\",IF(OR('TSA Input'!J3996=\"Yes\",'TSA Input'!J3996=\"Contingent\"),'TSA Input'!D3996,\"\"))","v":""},{"$f":"IF('TSA Input'!J3996=\"\",\"\",IF(OR('TSA Input'!J3996=\"Yes\",'TSA Input'!J3996=\"Contingent\"),'TSA Input'!G3996,\"\"))","v":""},{"$f":"IF('TSA Input'!J3996=\"\",\"\",IF(OR('TSA Input'!J3996=\"Yes\",'TSA Input'!J3996=\"Contingent\"),'TSA Input'!F3996,\"\"))","v":""},"",{"$f":"IF('TSA Input'!J3996=\"\",\"\",IF(OR('TSA Input'!J3996=\"Yes\",'TSA Input'!J3996=\"Contingent\"),'TSA Input'!D3996,\"\"))","v":""},{"$f":"IF('TSA Input'!J3996=\"\",\"\",IF(OR('TSA Input'!J3996=\"Yes\",'TSA Input'!J3996=\"Contingent\"),'TSA Input'!G3996,\"\"))","v":""},{"$f":"IF('TSA Input'!J3996=\"\",\"\",IF(OR('TSA Input'!J3996=\"Yes\",'TSA Input'!J3996=\"Contingent\"),'TSA Input'!F3996,\"\"))","v":""},"","Required","Required"]
["",null,{"$f":"IF('TSA Input'!J3997=\"\",\"\",IF(OR('TSA Input'!J3997=\"Yes\",'TSA Input'!J3997=\"Contingent\"),'TSA Input'!B3997,\"Ineligible\"))","v":""},{"$f":"IF('TSA Input'!J3997=\"\",\"\",IF(OR('TSA Input'!J3997=\"Yes\",'TSA Input'!J3997=\"Contingent\"),'TSA Input'!I3997,\"\"))","v":""},{"$f":"IF('TSA Input'!J3997=\"\",\"\",IF(OR('TSA Input'!J3997=\"Yes\",'TSA Input'!J3997=\"Contingent\"),'TSA Input'!C3997,\"\"))","v":""},{"$f":"IF('TSA Input'!J3997=\"\",\"\",IF(OR('TSA Input'!J3997=\"Yes\",'TSA Input'!J3997=\"Contingent\"),'TSA Input'!D3997,\"\"))","v":""},{"$f":"IF('TSA Input'!J3997=\"\",\"\",IF(OR('TSA Input'!J3997=\"Yes\",'TSA Input'!J3997=\"Contingent\"),'TSA Input'!G3997,\"\"))","v":""},{"$f":"IF('TSA Input'!J3997=\"\",\"\",IF(OR('TSA Input'!J3997=\"Yes\",'TSA Input'!J3997=\"Contingent\"),'TSA Input'!F3997,\"\"))","v":""},"",{"$f":"IF('TSA Input'!J3997=\"\",\"\",IF(OR('TSA Input'!J3997=\"Yes\",'TSA Input'!J3997=\"Contingent\"),'TSA Input'!D3997,\"\"))","v":""},{"$f":"IF('TSA Input'!J3997=\"\",\"\",IF(OR('TSA Input'!J3997=\"Yes\",'TSA Input'!J3997=\"Contingent\"),'TSA Input'!G3997,\"\"))","v":""},{"$f":"IF('TSA Input'!J3997=\"\",\"\",IF(OR('TSA Input'!J3997=\"Yes\",'TSA Input'!J3997=\"Contingent\"),'TSA Input'!F3997,\"\"))","v":""},"","Required","Required"]
["",null,{"$f":"IF('TSA Input'!J3998=\"\",\"\",IF(OR('TSA Input'!J3998=\"Yes\",'TSA Input'!J3998=\"Contingent\"),'TSA Input'!B3998,\"Ineligible\"))","v":""},{"$f":"IF('TSA Input'!J3998=\"\",\"\",IF(OR('TSA Input'!J3998=\"Yes\",'TSA Input'!J3998=\"Contingent\"),'TSA Input'!I3998,\"\"))","v":""},{"$f":"IF('TSA Input'!J3998=\"\",\"\",IF(OR('TSA Input'!J3998=\"Yes\",'TSA Input'!J3998=\"Contingent\"),'TSA Input'!C3998,\"\"))","v":""},{"$f":"IF('TSA Input'!J3998=\"\",\"\",IF(OR('TSA Input'!J3998=\"Yes\",'TSA Input'!J3998=\"Contingent\"),'TSA Input'!D3998,\"\"))","v":""},{"$f":"IF('TSA Input'!J3998=\"\",\"\",IF(OR('TSA Input'!J3998=\"Yes\",'TSA Input'!J3998=\"Contingent\"),'TSA Input'!G3998,\"\"))","v":""},{"$f":"IF('TSA Input'!J3998=\"\",\"\",IF(OR('TSA Input'!J3998=\"Yes\",'TSA Input'!J3998=\"Contingent\"),'TSA Input'!F3998,\"\"))","v":""},"",{"$f":"IF('TSA Input'!J3998=\"\",\"\",IF(OR('TSA Input'!J3998=\"Yes\",'TSA Input'!J3998=\"Contingent\"),'TSA Input'!D3998,\"\"))","v":""},{"$f":"IF('TSA Input'!J3998=\"\",\"\",IF(OR('TSA Input'!J3998=\"Yes\",'TSA Input'!J3998=\"Contingent\"),'TSA Input'!G3998,\"\"))","v":""},{"$f":"IF('TSA Input'!J3998=\"\",\"\",IF(OR('TSA Input'!J3998=\"Yes\",'TSA Input'!J3998=\"Contingent\"),'TSA Input'!F3998,\"\"))","v":""},"","Required","Required"]
["",null,{"$f":"IF('TSA Input'!J3999=\"\",\"\",IF(OR('TSA Input'!J3999=\"Yes\",'TSA Input'!J3999=\"Contingent\"),'TSA Input'!B3999,\"Ineligible\"))","v":""},{"$f":"IF('TSA Input'!J3999=\"\",\"\",IF(OR('TSA Input'!J3999=\"Yes\",'TSA Input'!J3999=\"Contingent\"),'TSA Input'!I3999,\"\"))","v":""},{"$f":"IF('TSA Input'!J3999=\"\",\"\",IF(OR('TSA Input'!J3999=\"Yes\",'TSA Input'!J3999=\"Contingent\"),'TSA Input'!C3999,\"\"))","v":""},{"$f":"IF('TSA Input'!J3999=\"\",\"\",IF(OR('TSA Input'!J3999=\"Yes\",'TSA Input'!J3999=\"Contingent\"),'TSA Input'!D3999,\"\"))","v":""},{"$f":"IF('TSA Input'!J3999=\"\",\"\",IF(OR('TSA Input'!J3999=\"Yes\",'TSA Input'!J3999=\"Contingent\"),'TSA Input'!G3999,\"\"))","v":""},{"$f":"IF('TSA Input'!J3999=\"\",\"\",IF(OR('TSA Input'!J3999=\"Yes\",'TSA Input'!J3999=\"Contingent\"),'TSA Input'!F3999,\"\"))","v":""},"",{"$f":"IF('TSA Input'!J3999=\"\",\"\",IF(OR('TSA Input'!J3999=\"Yes\",'TSA Input'!J3999=\"Contingent\"),'TSA Input'!D3999,\"\"))","v":""},{"$f":"IF('TSA Input'!J3999=\"\",\"\",IF(OR('TSA Input'!J3999=\"Yes\",'TSA Input'!J3999=\"Contingent\"),'TSA Input'!G3999,\"\"))","v":""},{"$f":"IF('TSA Input'!J3999=\"\",\"\",IF(OR('TSA Input'!J3999=\"Yes\",'TSA Input'!J3999=\"Contingent\"),'TSA Input'!F3999,\"\"))","v":""},"","Required","Required"]
["",null,{"$f":"IF('TSA Input'!J4000=\"\",\"\",IF(OR('TSA Input'!J4000=\"Yes\",'TSA Input'!J4000=\"Contingent\"),'TSA Input'!B4000,\"Ineligible\"))","v":""},{"$f":"IF('TSA Input'!J4000=\"\",\"\",IF(OR('TSA Input'!J4000=\"Yes\",'TSA Input'!J4000=\"Contingent\"),'TSA Input'!I4000,\"\"))","v":""},{"$f":"IF('TSA Input'!J4000=\"\",\"\",IF(OR('TSA Input'!J4000=\"Yes\",'TSA Input'!J4000=\"Contingent\"),'TSA Input'!C4000,\"\"))","v":""},{"$f":"IF('TSA Input'!J4000=\"\",\"\",IF(OR('TSA Input'!J4000=\"Yes\",'TSA Input'!J4000=\"Contingent\"),'TSA Input'!D4000,\"\"))","v":""},{"$f":"IF('TSA Input'!J4000=\"\",\"\",IF(OR('TSA Input'!J4000=\"Yes\",'TSA Input'!J4000=\"Contingent\"),'TSA Input'!G4000,\"\"))","v":""},{"$f":"IF('TSA Input'!J4000=\"\",\"\",IF(OR('TSA Input'!J4000=\"Yes\",'TSA Input'!J4000=\"Contingent\"),'TSA Input'!F4000,\"\"))","v":""},"",{"$f":"IF('TSA Input'!J4000=\"\",\"\",IF(OR('TSA Input'!J4000=\"Yes\",'TSA Input'!J4000=\"Contingent\"),'TSA Input'!D4000,\"\"))","v":""},{"$f":"IF('TSA Input'!J4000=\"\",\"\",IF(OR('TSA Input'!J4000=\"Yes\",'TSA Input'!J4000=\"Contingent\"),'TSA Input'!G4000,\"\"))","v":""},{"$f":"IF('TSA Input'!J4000=\"\",\"\",IF(OR('TSA Input'!J4000=\"Yes\",'TSA Input'!J4000=\"Contingent\"),'TSA Input'!F4000,\"\"))","v":""},"","Required","Required"]
["",null,{"$f":"IF('TSA Input'!J4001=\"\",\"\",IF(OR('TSA Input'!J4001=\"Yes\",'TSA Input'!J4001=\"Contingent\"),'TSA Input'!B4001,\"Ineligible\"))","v":""},{"$f":"IF('TSA Input'!J4001=\"\",\"\",IF(OR('TSA Input'!J4001=\"Yes\",'TSA Input'!J4001=\"Contingent\"),'TSA Input'!I4001,\"\"))","v":""},{"$f":"IF('TSA Input'!J4001=\"\",\"\",IF(OR('TSA Input'!J4001=\"Yes\",'TSA Input'!J4001=\"Contingent\"),'TSA Input'!C4001,\"\"))","v":""},{"$f":"IF('TSA Input'!J4001=\"\",\"\",IF(OR('TSA Input'!J4001=\"Yes\",'TSA Input'!J4001=\"Contingent\"),'TSA Input'!D4001,\"\"))","v":""},{"$f":"IF('TSA Input'!J4001=\"\",\"\",IF(OR('TSA Input'!J4001=\"Yes\",'TSA Input'!J4001=\"Contingent\"),'TSA Input'!G4001,\"\"))","v":""},{"$f":"IF('TSA Input'!J4001=\"\",\"\",IF(OR('TSA Input'!J4001=\"Yes\",'TSA Input'!J4001=\"Contingent\"),'TSA Input'!F4001,\"\"))","v":""},"",{"$f":"IF('TSA Input'!J4001=\"\",\"\",IF(OR('TSA Input'!J4001=\"Yes\",'TSA Input'!J4001=\"Contingent\"),'TSA Input'!D4001,\"\"))","v":""},{"$f":"IF('TSA Input'!J4001=\"\",\"\",IF(OR('TSA Input'!J4001=\"Yes\",'TSA Input'!J4001=\"Contingent\"),'TSA Input'!G4001,\"\"))","v":""},{"$f":"IF('TSA Input'!J4001=\"\",\"\",IF(OR('TSA Input'!J4001=\"Yes\",'TSA Input'!J4001=\"Contingent\"),'TSA Input'!F4001,\"\"))","v":""},"","Required","Required"]
["",null,{"$f":"IF('TSA Input'!J4002=\"\",\"\",IF(OR('TSA Input'!J4002=\"Yes\",'TSA Input'!J4002=\"Contingent\"),'TSA Input'!B4002,\"Ineligible\"))","v":""},{"$f":"IF('TSA Input'!J4002=\"\",\"\",IF(OR('TSA Input'!J4002=\"Yes\",'TSA Input'!J4002=\"Contingent\"),'TSA Input'!I4002,\"\"))","v":""},{"$f":"IF('TSA Input'!J4002=\"\",\"\",IF(OR('TSA Input'!J4002=\"Yes\",'TSA Input'!J4002=\"Contingent\"),'TSA Input'!C4002,\"\"))","v":""},{"$f":"IF('TSA Input'!J4002=\"\",\"\",IF(OR('TSA Input'!J4002=\"Yes\",'TSA Input'!J4002=\"Contingent\"),'TSA Input'!D4002,\"\"))","v":""},{"$f":"IF('TSA Input'!J4002=\"\",\"\",IF(OR('TSA Input'!J4002=\"Yes\",'TSA Input'!J4002=\"Contingent\"),'TSA Input'!G4002,\"\"))","v":""},{"$f":"IF('TSA Input'!J4002=\"\",\"\",IF(OR('TSA Input'!J4002=\"Yes\",'TSA Input'!J4002=\"Contingent\"),'TSA Input'!F4002,\"\"))","v":""},"",{"$f":"IF('TSA Input'!J4002=\"\",\"\",IF(OR('TSA Input'!J4002=\"Yes\",'TSA Input'!J4002=\"Contingent\"),'TSA Input'!D4002,\"\"))","v":""},{"$f":"IF('TSA Input'!J4002=\"\",\"\",IF(OR('TSA Input'!J4002=\"Yes\",'TSA Input'!J4002=\"Contingent\"),'TSA Input'!G4002,\"\"))","v":""},{"$f":"IF('TSA Input'!J4002=\"\",\"\",IF(OR('TSA Input'!J4002=\"Yes\",'TSA Input'!J4002=\"Contingent\"),'TSA Input'!F4002,\"\"))","v":""},"","Required","Required"]
["",null,{"$f":"IF('TSA Input'!J4003=\"\",\"\",IF(OR('TSA Input'!J4003=\"Yes\",'TSA Input'!J4003=\"Contingent\"),'TSA Input'!B4003,\"Ineligible\"))","v":""},{"$f":"IF('TSA Input'!J4003=\"\",\"\",IF(OR('TSA Input'!J4003=\"Yes\",'TSA Input'!J4003=\"Contingent\"),'TSA Input'!I4003,\"\"))","v":""},{"$f":"IF('TSA Input'!J4003=\"\",\"\",IF(OR('TSA Input'!J4003=\"Yes\",'TSA Input'!J4003=\"Contingent\"),'TSA Input'!C4003,\"\"))","v":""},{"$f":"IF('TSA Input'!J4003=\"\",\"\",IF(OR('TSA Input'!J4003=\"Yes\",'TSA Input'!J4003=\"Contingent\"),'TSA Input'!D4003,\"\"))","v":""},{"$f":"IF('TSA Input'!J4003=\"\",\"\",IF(OR('TSA Input'!J4003=\"Yes\",'TSA Input'!J4003=\"Contingent\"),'TSA Input'!G4003,\"\"))","v":""},{"$f":"IF('TSA Input'!J4003=\"\",\"\",IF(OR('TSA Input'!J4003=\"Yes\",'TSA Input'!J4003=\"Contingent\"),'TSA Input'!F4003,\"\"))","v":""},"",{"$f":"IF('TSA Input'!J4003=\"\",\"\",IF(OR('TSA Input'!J4003=\"Yes\",'TSA Input'!J4003=\"Contingent\"),'TSA Input'!D4003,\"\"))","v":""},{"$f":"IF('TSA Input'!J4003=\"\",\"\",IF(OR('TSA Input'!J4003=\"Yes\",'TSA Input'!J4003=\"Contingent\"),'TSA Input'!G4003,\"\"))","v":""},{"$f":"IF('TSA Input'!J4003=\"\",\"\",IF(OR('TSA Input'!J4003=\"Yes\",'TSA Input'!J4003=\"Contingent\"),'TSA Input'!F4003,\"\"))","v":""},"","Required","Required"]
["",null,{"$f":"IF('TSA Input'!J4004=\"\",\"\",IF(OR('TSA Input'!J4004=\"Yes\",'TSA Input'!J4004=\"Contingent\"),'TSA Input'!B4004,\"Ineligible\"))","v":""},{"$f":"IF('TSA Input'!J4004=\"\",\"\",IF(OR('TSA Input'!J4004=\"Yes\",'TSA Input'!J4004=\"Contingent\"),'TSA Input'!I4004,\"\"))","v":""},{"$f":"IF('TSA Input'!J4004=\"\",\"\",IF(OR('TSA Input'!J4004=\"Yes\",'TSA Input'!J4004=\"Contingent\"),'TSA Input'!C4004,\"\"))","v":""},{"$f":"IF('TSA Input'!J4004=\"\",\"\",IF(OR('TSA Input'!J4004=\"Yes\",'TSA Input'!J4004=\"Contingent\"),'TSA Input'!D4004,\"\"))","v":""},{"$f":"IF('TSA Input'!J4004=\"\",\"\",IF(OR('TSA Input'!J4004=\"Yes\",'TSA Input'!J4004=\"Contingent\"),'TSA Input'!G4004,\"\"))","v":""},{"$f":"IF('TSA Input'!J4004=\"\",\"\",IF(OR('TSA Input'!J4004=\"Yes\",'TSA Input'!J4004=\"Contingent\"),'TSA Input'!F4004,\"\"))","v":""},"",{"$f":"IF('TSA Input'!J4004=\"\",\"\",IF(OR('TSA Input'!J4004=\"Yes\",'TSA Input'!J4004=\"Contingent\"),'TSA Input'!D4004,\"\"))","v":""},{"$f":"IF('TSA Input'!J4004=\"\",\"\",IF(OR('TSA Input'!J4004=\"Yes\",'TSA Input'!J4004=\"Contingent\"),'TSA Input'!G4004,\"\"))","v":""},{"$f":"IF('TSA Input'!J4004=\"\",\"\",IF(OR('TSA Input'!J4004=\"Yes\",'TSA Input'!J4004=\"Contingent\"),'TSA Input'!F4004,\"\"))","v":""},"","Required","Required"]
["",null,{"$f":"IF('TSA Input'!J4005=\"\",\"\",IF(OR('TSA Input'!J4005=\"Yes\",'TSA Input'!J4005=\"Contingent\"),'TSA Input'!B4005,\"Ineligible\"))","v":""},{"$f":"IF('TSA Input'!J4005=\"\",\"\",IF(OR('TSA Input'!J4005=\"Yes\",'TSA Input'!J4005=\"Contingent\"),'TSA Input'!I4005,\"\"))","v":""},{"$f":"IF('TSA Input'!J4005=\"\",\"\",IF(OR('TSA Input'!J4005=\"Yes\",'TSA Input'!J4005=\"Contingent\"),'TSA Input'!C4005,\"\"))","v":""},{"$f":"IF('TSA Input'!J4005=\"\",\"\",IF(OR('TSA Input'!J4005=\"Yes\",'TSA Input'!J4005=\"Contingent\"),'TSA Input'!D4005,\"\"))","v":""},{"$f":"IF('TSA Input'!J4005=\"\",\"\",IF(OR('TSA Input'!J4005=\"Yes\",'TSA Input'!J4005=\"Contingent\"),'TSA Input'!G4005,\"\"))","v":""},{"$f":"IF('TSA Input'!J4005=\"\",\"\",IF(OR('TSA Input'!J4005=\"Yes\",'TSA Input'!J4005=\"Contingent\"),'TSA Input'!F4005,\"\"))","v":""},"",{"$f":"IF('TSA Input'!J4005=\"\",\"\",IF(OR('TSA Input'!J4005=\"Yes\",'TSA Input'!J4005=\"Contingent\"),'TSA Input'!D4005,\"\"))","v":""},{"$f":"IF('TSA Input'!J4005=\"\",\"\",IF(OR('TSA Input'!J4005=\"Yes\",'TSA Input'!J4005=\"Contingent\"),'TSA Input'!G4005,\"\"))","v":""},{"$f":"IF('TSA Input'!J4005=\"\",\"\",IF(OR('TSA Input'!J4005=\"Yes\",'TSA Input'!J4005=\"Contingent\"),'TSA Input'!F4005,\"\"))","v":""},"","Required","Required"]
["",null,{"$f":"IF('TSA Input'!J4006=\"\",\"\",IF(OR('TSA Input'!J4006=\"Yes\",'TSA Input'!J4006=\"Contingent\"),'TSA Input'!B4006,\"Ineligible\"))","v":""},{"$f":"IF('TSA Input'!J4006=\"\",\"\",IF(OR('TSA Input'!J4006=\"Yes\",'TSA Input'!J4006=\"Contingent\"),'TSA Input'!I4006,\"\"))","v":""},{"$f":"IF('TSA Input'!J4006=\"\",\"\",IF(OR('TSA Input'!J4006=\"Yes\",'TSA Input'!J4006=\"Contingent\"),'TSA Input'!C4006,\"\"))","v":""},{"$f":"IF('TSA Input'!J4006=\"\",\"\",IF(OR('TSA Input'!J4006=\"Yes\",'TSA Input'!J4006=\"Contingent\"),'TSA Input'!D4006,\"\"))","v":""},{"$f":"IF('TSA Input'!J4006=\"\",\"\",IF(OR('TSA Input'!J4006=\"Yes\",'TSA Input'!J4006=\"Contingent\"),'TSA Input'!G4006,\"\"))","v":""},{"$f":"IF('TSA Input'!J4006=\"\",\"\",IF(OR('TSA Input'!J4006=\"Yes\",'TSA Input'!J4006=\"Contingent\"),'TSA Input'!F4006,\"\"))","v":""},"",{"$f":"IF('TSA Input'!J4006=\"\",\"\",IF(OR('TSA Input'!J4006=\"Yes\",'TSA Input'!J4006=\"Contingent\"),'TSA Input'!D4006,\"\"))","v":""},{"$f":"IF('TSA Input'!J4006=\"\",\"\",IF(OR('TSA Input'!J4006=\"Yes\",'TSA Input'!J4006=\"Contingent\"),'TSA Input'!G4006,\"\"))","v":""},{"$f":"IF('TSA Input'!J4006=\"\",\"\",IF(OR('TSA Input'!J4006=\"Yes\",'TSA Input'!J4006=\"Contingent\"),'TSA Input'!F4006,\"\"))","v":""},"","Required","Required"]
["",null,{"$f":"IF('TSA Input'!J4007=\"\",\"\",IF(OR('TSA Input'!J4007=\"Yes\",'TSA Input'!J4007=\"Contingent\"),'TSA Input'!B4007,\"Ineligible\"))","v":""},{"$f":"IF('TSA Input'!J4007=\"\",\"\",IF(OR('TSA Input'!J4007=\"Yes\",'TSA Input'!J4007=\"Contingent\"),'TSA Input'!I4007,\"\"))","v":""},{"$f":"IF('TSA Input'!J4007=\"\",\"\",IF(OR('TSA Input'!J4007=\"Yes\",'TSA Input'!J4007=\"Contingent\"),'TSA Input'!C4007,\"\"))","v":""},{"$f":"IF('TSA Input'!J4007=\"\",\"\",IF(OR('TSA Input'!J4007=\"Yes\",'TSA Input'!J4007=\"Contingent\"),'TSA Input'!D4007,\"\"))","v":""},{"$f":"IF('TSA Input'!J4007=\"\",\"\",IF(OR('TSA Input'!J4007=\"Yes\",'TSA Input'!J4007=\"Contingent\"),'TSA Input'!G4007,\"\"))","v":""},{"$f":"IF('TSA Input'!J4007=\"\",\"\",IF(OR('TSA Input'!J4007=\"Yes\",'TSA Input'!J4007=\"Contingent\"),'TSA Input'!F4007,\"\"))","v":""},"",{"$f":"IF('TSA Input'!J4007=\"\",\"\",IF(OR('TSA Input'!J4007=\"Yes\",'TSA Input'!J4007=\"Contingent\"),'TSA Input'!D4007,\"\"))","v":""},{"$f":"IF('TSA Input'!J4007=\"\",\"\",IF(OR('TSA Input'!J4007=\"Yes\",'TSA Input'!J4007=\"Contingent\"),'TSA Input'!G4007,\"\"))","v":""},{"$f":"IF('TSA Input'!J4007=\"\",\"\",IF(OR('TSA Input'!J4007=\"Yes\",'TSA Input'!J4007=\"Contingent\"),'TSA Input'!F4007,\"\"))","v":""},"","Required","Required"]
["",null,{"$f":"IF('TSA Input'!J4008=\"\",\"\",IF(OR('TSA Input'!J4008=\"Yes\",'TSA Input'!J4008=\"Contingent\"),'TSA Input'!B4008,\"Ineligible\"))","v":""},{"$f":"IF('TSA Input'!J4008=\"\",\"\",IF(OR('TSA Input'!J4008=\"Yes\",'TSA Input'!J4008=\"Contingent\"),'TSA Input'!I4008,\"\"))","v":""},{"$f":"IF('TSA Input'!J4008=\"\",\"\",IF(OR('TSA Input'!J4008=\"Yes\",'TSA Input'!J4008=\"Contingent\"),'TSA Input'!C4008,\"\"))","v":""},{"$f":"IF('TSA Input'!J4008=\"\",\"\",IF(OR('TSA Input'!J4008=\"Yes\",'TSA Input'!J4008=\"Contingent\"),'TSA Input'!D4008,\"\"))","v":""},{"$f":"IF('TSA Input'!J4008=\"\",\"\",IF(OR('TSA Input'!J4008=\"Yes\",'TSA Input'!J4008=\"Contingent\"),'TSA Input'!G4008,\"\"))","v":""},{"$f":"IF('TSA Input'!J4008=\"\",\"\",IF(OR('TSA Input'!J4008=\"Yes\",'TSA Input'!J4008=\"Contingent\"),'TSA Input'!F4008,\"\"))","v":""},"",{"$f":"IF('TSA Input'!J4008=\"\",\"\",IF(OR('TSA Input'!J4008=\"Yes\",'TSA Input'!J4008=\"Contingent\"),'TSA Input'!D4008,\"\"))","v":""},{"$f":"IF('TSA Input'!J4008=\"\",\"\",IF(OR('TSA Input'!J4008=\"Yes\",'TSA Input'!J4008=\"Contingent\"),'TSA Input'!G4008,\"\"))","v":""},{"$f":"IF('TSA Input'!J4008=\"\",\"\",IF(OR('TSA Input'!J4008=\"Yes\",'TSA Input'!J4008=\"Contingent\"),'TSA Input'!F4008,\"\"))","v":""},"","Required","Required"]
["",null,{"$f":"IF('TSA Input'!J4009=\"\",\"\",IF(OR('TSA Input'!J4009=\"Yes\",'TSA Input'!J4009=\"Contingent\"),'TSA Input'!B4009,\"Ineligible\"))","v":""},{"$f":"IF('TSA Input'!J4009=\"\",\"\",IF(OR('TSA Input'!J4009=\"Yes\",'TSA Input'!J4009=\"Contingent\"),'TSA Input'!I4009,\"\"))","v":""},{"$f":"IF('TSA Input'!J4009=\"\",\"\",IF(OR('TSA Input'!J4009=\"Yes\",'TSA Input'!J4009=\"Contingent\"),'TSA Input'!C4009,\"\"))","v":""},{"$f":"IF('TSA Input'!J4009=\"\",\"\",IF(OR('TSA Input'!J4009=\"Yes\",'TSA Input'!J4009=\"Contingent\"),'TSA Input'!D4009,\"\"))","v":""},{"$f":"IF('TSA Input'!J4009=\"\",\"\",IF(OR('TSA Input'!J4009=\"Yes\",'TSA Input'!J4009=\"Contingent\"),'TSA Input'!G4009,\"\"))","v":""},{"$f":"IF('TSA Input'!J4009=\"\",\"\",IF(OR('TSA Input'!J4009=\"Yes\",'TSA Input'!J4009=\"Contingent\"),'TSA Input'!F4009,\"\"))","v":""},"",{"$f":"IF('TSA Input'!J4009=\"\",\"\",IF(OR('TSA Input'!J4009=\"Yes\",'TSA Input'!J4009=\"Contingent\"),'TSA Input'!D4009,\"\"))","v":""},{"$f":"IF('TSA Input'!J4009=\"\",\"\",IF(OR('TSA Input'!J4009=\"Yes\",'TSA Input'!J4009=\"Contingent\"),'TSA Input'!G4009,\"\"))","v":""},{"$f":"IF('TSA Input'!J4009=\"\",\"\",IF(OR('TSA Input'!J4009=\"Yes\",'TSA Input'!J4009=\"Contingent\"),'TSA Input'!F4009,\"\"))","v":""},"","Required","Required"]
["",null,{"$f":"IF('TSA Input'!J4010=\"\",\"\",IF(OR('TSA Input'!J4010=\"Yes\",'TSA Input'!J4010=\"Contingent\"),'TSA Input'!B4010,\"Ineligible\"))","v":""},{"$f":"IF('TSA Input'!J4010=\"\",\"\",IF(OR('TSA Input'!J4010=\"Yes\",'TSA Input'!J4010=\"Contingent\"),'TSA Input'!I4010,\"\"))","v":""},{"$f":"IF('TSA Input'!J4010=\"\",\"\",IF(OR('TSA Input'!J4010=\"Yes\",'TSA Input'!J4010=\"Contingent\"),'TSA Input'!C4010,\"\"))","v":""},{"$f":"IF('TSA Input'!J4010=\"\",\"\",IF(OR('TSA Input'!J4010=\"Yes\",'TSA Input'!J4010=\"Contingent\"),'TSA Input'!D4010,\"\"))","v":""},{"$f":"IF('TSA Input'!J4010=\"\",\"\",IF(OR('TSA Input'!J4010=\"Yes\",'TSA Input'!J4010=\"Contingent\"),'TSA Input'!G4010,\"\"))","v":""},{"$f":"IF('TSA Input'!J4010=\"\",\"\",IF(OR('TSA Input'!J4010=\"Yes\",'TSA Input'!J4010=\"Contingent\"),'TSA Input'!F4010,\"\"))","v":""},"",{"$f":"IF('TSA Input'!J4010=\"\",\"\",IF(OR('TSA Input'!J4010=\"Yes\",'TSA Input'!J4010=\"Contingent\"),'TSA Input'!D4010,\"\"))","v":""},{"$f":"IF('TSA Input'!J4010=\"\",\"\",IF(OR('TSA Input'!J4010=\"Yes\",'TSA Input'!J4010=\"Contingent\"),'TSA Input'!G4010,\"\"))","v":""},{"$f":"IF('TSA Input'!J4010=\"\",\"\",IF(OR('TSA Input'!J4010=\"Yes\",'TSA Input'!J4010=\"Contingent\"),'TSA Input'!F4010,\"\"))","v":""},"","Required","Required"]
["",null,{"$f":"IF('TSA Input'!J4011=\"\",\"\",IF(OR('TSA Input'!J4011=\"Yes\",'TSA Input'!J4011=\"Contingent\"),'TSA Input'!B4011,\"Ineligible\"))","v":""},{"$f":"IF('TSA Input'!J4011=\"\",\"\",IF(OR('TSA Input'!J4011=\"Yes\",'TSA Input'!J4011=\"Contingent\"),'TSA Input'!I4011,\"\"))","v":""},{"$f":"IF('TSA Input'!J4011=\"\",\"\",IF(OR('TSA Input'!J4011=\"Yes\",'TSA Input'!J4011=\"Contingent\"),'TSA Input'!C4011,\"\"))","v":""},{"$f":"IF('TSA Input'!J4011=\"\",\"\",IF(OR('TSA Input'!J4011=\"Yes\",'TSA Input'!J4011=\"Contingent\"),'TSA Input'!D4011,\"\"))","v":""},{"$f":"IF('TSA Input'!J4011=\"\",\"\",IF(OR('TSA Input'!J4011=\"Yes\",'TSA Input'!J4011=\"Contingent\"),'TSA Input'!G4011,\"\"))","v":""},{"$f":"IF('TSA Input'!J4011=\"\",\"\",IF(OR('TSA Input'!J4011=\"Yes\",'TSA Input'!J4011=\"Contingent\"),'TSA Input'!F4011,\"\"))","v":""},"",{"$f":"IF('TSA Input'!J4011=\"\",\"\",IF(OR('TSA Input'!J4011=\"Yes\",'TSA Input'!J4011=\"Contingent\"),'TSA Input'!D4011,\"\"))","v":""},{"$f":"IF('TSA Input'!J4011=\"\",\"\",IF(OR('TSA Input'!J4011=\"Yes\",'TSA Input'!J4011=\"Contingent\"),'TSA Input'!G4011,\"\"))","v":""},{"$f":"IF('TSA Input'!J4011=\"\",\"\",IF(OR('TSA Input'!J4011=\"Yes\",'TSA Input'!J4011=\"Contingent\"),'TSA Input'!F4011,\"\"))","v":""},"","Required","Required"]
["",null,{"$f":"IF('TSA Input'!J4012=\"\",\"\",IF(OR('TSA Input'!J4012=\"Yes\",'TSA Input'!J4012=\"Contingent\"),'TSA Input'!B4012,\"Ineligible\"))","v":""},{"$f":"IF('TSA Input'!J4012=\"\",\"\",IF(OR('TSA Input'!J4012=\"Yes\",'TSA Input'!J4012=\"Contingent\"),'TSA Input'!I4012,\"\"))","v":""},{"$f":"IF('TSA Input'!J4012=\"\",\"\",IF(OR('TSA Input'!J4012=\"Yes\",'TSA Input'!J4012=\"Contingent\"),'TSA Input'!C4012,\"\"))","v":""},{"$f":"IF('TSA Input'!J4012=\"\",\"\",IF(OR('TSA Input'!J4012=\"Yes\",'TSA Input'!J4012=\"Contingent\"),'TSA Input'!D4012,\"\"))","v":""},{"$f":"IF('TSA Input'!J4012=\"\",\"\",IF(OR('TSA Input'!J4012=\"Yes\",'TSA Input'!J4012=\"Contingent\"),'TSA Input'!G4012,\"\"))","v":""},{"$f":"IF('TSA Input'!J4012=\"\",\"\",IF(OR('TSA Input'!J4012=\"Yes\",'TSA Input'!J4012=\"Contingent\"),'TSA Input'!F4012,\"\"))","v":""},"",{"$f":"IF('TSA Input'!J4012=\"\",\"\",IF(OR('TSA Input'!J4012=\"Yes\",'TSA Input'!J4012=\"Contingent\"),'TSA Input'!D4012,\"\"))","v":""},{"$f":"IF('TSA Input'!J4012=\"\",\"\",IF(OR('TSA Input'!J4012=\"Yes\",'TSA Input'!J4012=\"Contingent\"),'TSA Input'!G4012,\"\"))","v":""},{"$f":"IF('TSA Input'!J4012=\"\",\"\",IF(OR('TSA Input'!J4012=\"Yes\",'TSA Input'!J4012=\"Contingent\"),'TSA Input'!F4012,\"\"))","v":""},"","Required","Required"]
["",null,{"$f":"IF('TSA Input'!J4013=\"\",\"\",IF(OR('TSA Input'!J4013=\"Yes\",'TSA Input'!J4013=\"Contingent\"),'TSA Input'!B4013,\"Ineligible\"))","v":""},{"$f":"IF('TSA Input'!J4013=\"\",\"\",IF(OR('TSA Input'!J4013=\"Yes\",'TSA Input'!J4013=\"Contingent\"),'TSA Input'!I4013,\"\"))","v":""},{"$f":"IF('TSA Input'!J4013=\"\",\"\",IF(OR('TSA Input'!J4013=\"Yes\",'TSA Input'!J4013=\"Contingent\"),'TSA Input'!C4013,\"\"))","v":""},{"$f":"IF('TSA Input'!J4013=\"\",\"\",IF(OR('TSA Input'!J4013=\"Yes\",'TSA Input'!J4013=\"Contingent\"),'TSA Input'!D4013,\"\"))","v":""},{"$f":"IF('TSA Input'!J4013=\"\",\"\",IF(OR('TSA Input'!J4013=\"Yes\",'TSA Input'!J4013=\"Contingent\"),'TSA Input'!G4013,\"\"))","v":""},{"$f":"IF('TSA Input'!J4013=\"\",\"\",IF(OR('TSA Input'!J4013=\"Yes\",'TSA Input'!J4013=\"Contingent\"),'TSA Input'!F4013,\"\"))","v":""},"",{"$f":"IF('TSA Input'!J4013=\"\",\"\",IF(OR('TSA Input'!J4013=\"Yes\",'TSA Input'!J4013=\"Contingent\"),'TSA Input'!D4013,\"\"))","v":""},{"$f":"IF('TSA Input'!J4013=\"\",\"\",IF(OR('TSA Input'!J4013=\"Yes\",'TSA Input'!J4013=\"Contingent\"),'TSA Input'!G4013,\"\"))","v":""},{"$f":"IF('TSA Input'!J4013=\"\",\"\",IF(OR('TSA Input'!J4013=\"Yes\",'TSA Input'!J4013=\"Contingent\"),'TSA Input'!F4013,\"\"))","v":""},"","Required","Required"]
["",null,{"$f":"IF('TSA Input'!J4014=\"\",\"\",IF(OR('TSA Input'!J4014=\"Yes\",'TSA Input'!J4014=\"Contingent\"),'TSA Input'!B4014,\"Ineligible\"))","v":""},{"$f":"IF('TSA Input'!J4014=\"\",\"\",IF(OR('TSA Input'!J4014=\"Yes\",'TSA Input'!J4014=\"Contingent\"),'TSA Input'!I4014,\"\"))","v":""},{"$f":"IF('TSA Input'!J4014=\"\",\"\",IF(OR('TSA Input'!J4014=\"Yes\",'TSA Input'!J4014=\"Contingent\"),'TSA Input'!C4014,\"\"))","v":""},{"$f":"IF('TSA Input'!J4014=\"\",\"\",IF(OR('TSA Input'!J4014=\"Yes\",'TSA Input'!J4014=\"Contingent\"),'TSA Input'!D4014,\"\"))","v":""},{"$f":"IF('TSA Input'!J4014=\"\",\"\",IF(OR('TSA Input'!J4014=\"Yes\",'TSA Input'!J4014=\"Contingent\"),'TSA Input'!G4014,\"\"))","v":""},{"$f":"IF('TSA Input'!J4014=\"\",\"\",IF(OR('TSA Input'!J4014=\"Yes\",'TSA Input'!J4014=\"Contingent\"),'TSA Input'!F4014,\"\"))","v":""},"",{"$f":"IF('TSA Input'!J4014=\"\",\"\",IF(OR('TSA Input'!J4014=\"Yes\",'TSA Input'!J4014=\"Contingent\"),'TSA Input'!D4014,\"\"))","v":""},{"$f":"IF('TSA Input'!J4014=\"\",\"\",IF(OR('TSA Input'!J4014=\"Yes\",'TSA Input'!J4014=\"Contingent\"),'TSA Input'!G4014,\"\"))","v":""},{"$f":"IF('TSA Input'!J4014=\"\",\"\",IF(OR('TSA Input'!J4014=\"Yes\",'TSA Input'!J4014=\"Contingent\"),'TSA Input'!F4014,\"\"))","v":""},"","Required","Required"]
["",null,{"$f":"IF('TSA Input'!J4015=\"\",\"\",IF(OR('TSA Input'!J4015=\"Yes\",'TSA Input'!J4015=\"Contingent\"),'TSA Input'!B4015,\"Ineligible\"))","v":""},{"$f":"IF('TSA Input'!J4015=\"\",\"\",IF(OR('TSA Input'!J4015=\"Yes\",'TSA Input'!J4015=\"Contingent\"),'TSA Input'!I4015,\"\"))","v":""},{"$f":"IF('TSA Input'!J4015=\"\",\"\",IF(OR('TSA Input'!J4015=\"Yes\",'TSA Input'!J4015=\"Contingent\"),'TSA Input'!C4015,\"\"))","v":""},{"$f":"IF('TSA Input'!J4015=\"\",\"\",IF(OR('TSA Input'!J4015=\"Yes\",'TSA Input'!J4015=\"Contingent\"),'TSA Input'!D4015,\"\"))","v":""},{"$f":"IF('TSA Input'!J4015=\"\",\"\",IF(OR('TSA Input'!J4015=\"Yes\",'TSA Input'!J4015=\"Contingent\"),'TSA Input'!G4015,\"\"))","v":""},{"$f":"IF('TSA Input'!J4015=\"\",\"\",IF(OR('TSA Input'!J4015=\"Yes\",'TSA Input'!J4015=\"Contingent\"),'TSA Input'!F4015,\"\"))","v":""},"",{"$f":"IF('TSA Input'!J4015=\"\",\"\",IF(OR('TSA Input'!J4015=\"Yes\",'TSA Input'!J4015=\"Contingent\"),'TSA Input'!D4015,\"\"))","v":""},{"$f":"IF('TSA Input'!J4015=\"\",\"\",IF(OR('TSA Input'!J4015=\"Yes\",'TSA Input'!J4015=\"Contingent\"),'TSA Input'!G4015,\"\"))","v":""},{"$f":"IF('TSA Input'!J4015=\"\",\"\",IF(OR('TSA Input'!J4015=\"Yes\",'TSA Input'!J4015=\"Contingent\"),'TSA Input'!F4015,\"\"))","v":""},"","Required","Required"]
["",null,{"$f":"IF('TSA Input'!J4016=\"\",\"\",IF(OR('TSA Input'!J4016=\"Yes\",'TSA Input'!J4016=\"Contingent\"),'TSA Input'!B4016,\"Ineligible\"))","v":""},{"$f":"IF('TSA Input'!J4016=\"\",\"\",IF(OR('TSA Input'!J4016=\"Yes\",'TSA Input'!J4016=\"Contingent\"),'TSA Input'!I4016,\"\"))","v":""},{"$f":"IF('TSA Input'!J4016=\"\",\"\",IF(OR('TSA Input'!J4016=\"Yes\",'TSA Input'!J4016=\"Contingent\"),'TSA Input'!C4016,\"\"))","v":""},{"$f":"IF('TSA Input'!J4016=\"\",\"\",IF(OR('TSA Input'!J4016=\"Yes\",'TSA Input'!J4016=\"Contingent\"),'TSA Input'!D4016,\"\"))","v":""},{"$f":"IF('TSA Input'!J4016=\"\",\"\",IF(OR('TSA Input'!J4016=\"Yes\",'TSA Input'!J4016=\"Contingent\"),'TSA Input'!G4016,\"\"))","v":""},{"$f":"IF('TSA Input'!J4016=\"\",\"\",IF(OR('TSA Input'!J4016=\"Yes\",'TSA Input'!J4016=\"Contingent\"),'TSA Input'!F4016,\"\"))","v":""},"",{"$f":"IF('TSA Input'!J4016=\"\",\"\",IF(OR('TSA Input'!J4016=\"Yes\",'TSA Input'!J4016=\"Contingent\"),'TSA Input'!D4016,\"\"))","v":""},{"$f":"IF('TSA Input'!J4016=\"\",\"\",IF(OR('TSA Input'!J4016=\"Yes\",'TSA Input'!J4016=\"Contingent\"),'TSA Input'!G4016,\"\"))","v":""},{"$f":"IF('TSA Input'!J4016=\"\",\"\",IF(OR('TSA Input'!J4016=\"Yes\",'TSA Input'!J4016=\"Contingent\"),'TSA Input'!F4016,\"\"))","v":""},"","Required","Required"]
["",null,{"$f":"IF('TSA Input'!J4017=\"\",\"\",IF(OR('TSA Input'!J4017=\"Yes\",'TSA Input'!J4017=\"Contingent\"),'TSA Input'!B4017,\"Ineligible\"))","v":""},{"$f":"IF('TSA Input'!J4017=\"\",\"\",IF(OR('TSA Input'!J4017=\"Yes\",'TSA Input'!J4017=\"Contingent\"),'TSA Input'!I4017,\"\"))","v":""},{"$f":"IF('TSA Input'!J4017=\"\",\"\",IF(OR('TSA Input'!J4017=\"Yes\",'TSA Input'!J4017=\"Contingent\"),'TSA Input'!C4017,\"\"))","v":""},{"$f":"IF('TSA Input'!J4017=\"\",\"\",IF(OR('TSA Input'!J4017=\"Yes\",'TSA Input'!J4017=\"Contingent\"),'TSA Input'!D4017,\"\"))","v":""},{"$f":"IF('TSA Input'!J4017=\"\",\"\",IF(OR('TSA Input'!J4017=\"Yes\",'TSA Input'!J4017=\"Contingent\"),'TSA Input'!G4017,\"\"))","v":""},{"$f":"IF('TSA Input'!J4017=\"\",\"\",IF(OR('TSA Input'!J4017=\"Yes\",'TSA Input'!J4017=\"Contingent\"),'TSA Input'!F4017,\"\"))","v":""},"",{"$f":"IF('TSA Input'!J4017=\"\",\"\",IF(OR('TSA Input'!J4017=\"Yes\",'TSA Input'!J4017=\"Contingent\"),'TSA Input'!D4017,\"\"))","v":""},{"$f":"IF('TSA Input'!J4017=\"\",\"\",IF(OR('TSA Input'!J4017=\"Yes\",'TSA Input'!J4017=\"Contingent\"),'TSA Input'!G4017,\"\"))","v":""},{"$f":"IF('TSA Input'!J4017=\"\",\"\",IF(OR('TSA Input'!J4017=\"Yes\",'TSA Input'!J4017=\"Contingent\"),'TSA Input'!F4017,\"\"))","v":""},"","Required","Required"]
["",null,{"$f":"IF('TSA Input'!J4018=\"\",\"\",IF(OR('TSA Input'!J4018=\"Yes\",'TSA Input'!J4018=\"Contingent\"),'TSA Input'!B4018,\"Ineligible\"))","v":""},{"$f":"IF('TSA Input'!J4018=\"\",\"\",IF(OR('TSA Input'!J4018=\"Yes\",'TSA Input'!J4018=\"Contingent\"),'TSA Input'!I4018,\"\"))","v":""},{"$f":"IF('TSA Input'!J4018=\"\",\"\",IF(OR('TSA Input'!J4018=\"Yes\",'TSA Input'!J4018=\"Contingent\"),'TSA Input'!C4018,\"\"))","v":""},{"$f":"IF('TSA Input'!J4018=\"\",\"\",IF(OR('TSA Input'!J4018=\"Yes\",'TSA Input'!J4018=\"Contingent\"),'TSA Input'!D4018,\"\"))","v":""},{"$f":"IF('TSA Input'!J4018=\"\",\"\",IF(OR('TSA Input'!J4018=\"Yes\",'TSA Input'!J4018=\"Contingent\"),'TSA Input'!G4018,\"\"))","v":""},{"$f":"IF('TSA Input'!J4018=\"\",\"\",IF(OR('TSA Input'!J4018=\"Yes\",'TSA Input'!J4018=\"Contingent\"),'TSA Input'!F4018,\"\"))","v":""},"",{"$f":"IF('TSA Input'!J4018=\"\",\"\",IF(OR('TSA Input'!J4018=\"Yes\",'TSA Input'!J4018=\"Contingent\"),'TSA Input'!D4018,\"\"))","v":""},{"$f":"IF('TSA Input'!J4018=\"\",\"\",IF(OR('TSA Input'!J4018=\"Yes\",'TSA Input'!J4018=\"Contingent\"),'TSA Input'!G4018,\"\"))","v":""},{"$f":"IF('TSA Input'!J4018=\"\",\"\",IF(OR('TSA Input'!J4018=\"Yes\",'TSA Input'!J4018=\"Contingent\"),'TSA Input'!F4018,\"\"))","v":""},"","Required","Required"]
["",null,{"$f":"IF('TSA Input'!J4019=\"\",\"\",IF(OR('TSA Input'!J4019=\"Yes\",'TSA Input'!J4019=\"Contingent\"),'TSA Input'!B4019,\"Ineligible\"))","v":""},{"$f":"IF('TSA Input'!J4019=\"\",\"\",IF(OR('TSA Input'!J4019=\"Yes\",'TSA Input'!J4019=\"Contingent\"),'TSA Input'!I4019,\"\"))","v":""},{"$f":"IF('TSA Input'!J4019=\"\",\"\",IF(OR('TSA Input'!J4019=\"Yes\",'TSA Input'!J4019=\"Contingent\"),'TSA Input'!C4019,\"\"))","v":""},{"$f":"IF('TSA Input'!J4019=\"\",\"\",IF(OR('TSA Input'!J4019=\"Yes\",'TSA Input'!J4019=\"Contingent\"),'TSA Input'!D4019,\"\"))","v":""},{"$f":"IF('TSA Input'!J4019=\"\",\"\",IF(OR('TSA Input'!J4019=\"Yes\",'TSA Input'!J4019=\"Contingent\"),'TSA Input'!G4019,\"\"))","v":""},{"$f":"IF('TSA Input'!J4019=\"\",\"\",IF(OR('TSA Input'!J4019=\"Yes\",'TSA Input'!J4019=\"Contingent\"),'TSA Input'!F4019,\"\"))","v":""},"",{"$f":"IF('TSA Input'!J4019=\"\",\"\",IF(OR('TSA Input'!J4019=\"Yes\",'TSA Input'!J4019=\"Contingent\"),'TSA Input'!D4019,\"\"))","v":""},{"$f":"IF('TSA Input'!J4019=\"\",\"\",IF(OR('TSA Input'!J4019=\"Yes\",'TSA Input'!J4019=\"Contingent\"),'TSA Input'!G4019,\"\"))","v":""},{"$f":"IF('TSA Input'!J4019=\"\",\"\",IF(OR('TSA Input'!J4019=\"Yes\",'TSA Input'!J4019=\"Contingent\"),'TSA Input'!F4019,\"\"))","v":""},"","Required","Required"]
["",null,{"$f":"IF('TSA Input'!J4020=\"\",\"\",IF(OR('TSA Input'!J4020=\"Yes\",'TSA Input'!J4020=\"Contingent\"),'TSA Input'!B4020,\"Ineligible\"))","v":""},{"$f":"IF('TSA Input'!J4020=\"\",\"\",IF(OR('TSA Input'!J4020=\"Yes\",'TSA Input'!J4020=\"Contingent\"),'TSA Input'!I4020,\"\"))","v":""},{"$f":"IF('TSA Input'!J4020=\"\",\"\",IF(OR('TSA Input'!J4020=\"Yes\",'TSA Input'!J4020=\"Contingent\"),'TSA Input'!C4020,\"\"))","v":""},{"$f":"IF('TSA Input'!J4020=\"\",\"\",IF(OR('TSA Input'!J4020=\"Yes\",'TSA Input'!J4020=\"Contingent\"),'TSA Input'!D4020,\"\"))","v":""},{"$f":"IF('TSA Input'!J4020=\"\",\"\",IF(OR('TSA Input'!J4020=\"Yes\",'TSA Input'!J4020=\"Contingent\"),'TSA Input'!G4020,\"\"))","v":""},{"$f":"IF('TSA Input'!J4020=\"\",\"\",IF(OR('TSA Input'!J4020=\"Yes\",'TSA Input'!J4020=\"Contingent\"),'TSA Input'!F4020,\"\"))","v":""},"",{"$f":"IF('TSA Input'!J4020=\"\",\"\",IF(OR('TSA Input'!J4020=\"Yes\",'TSA Input'!J4020=\"Contingent\"),'TSA Input'!D4020,\"\"))","v":""},{"$f":"IF('TSA Input'!J4020=\"\",\"\",IF(OR('TSA Input'!J4020=\"Yes\",'TSA Input'!J4020=\"Contingent\"),'TSA Input'!G4020,\"\"))","v":""},{"$f":"IF('TSA Input'!J4020=\"\",\"\",IF(OR('TSA Input'!J4020=\"Yes\",'TSA Input'!J4020=\"Contingent\"),'TSA Input'!F4020,\"\"))","v":""},"","Required","Required"]
["",null,{"$f":"IF('TSA Input'!J4021=\"\",\"\",IF(OR('TSA Input'!J4021=\"Yes\",'TSA Input'!J4021=\"Contingent\"),'TSA Input'!B4021,\"Ineligible\"))","v":""},{"$f":"IF('TSA Input'!J4021=\"\",\"\",IF(OR('TSA Input'!J4021=\"Yes\",'TSA Input'!J4021=\"Contingent\"),'TSA Input'!I4021,\"\"))","v":""},{"$f":"IF('TSA Input'!J4021=\"\",\"\",IF(OR('TSA Input'!J4021=\"Yes\",'TSA Input'!J4021=\"Contingent\"),'TSA Input'!C4021,\"\"))","v":""},{"$f":"IF('TSA Input'!J4021=\"\",\"\",IF(OR('TSA Input'!J4021=\"Yes\",'TSA Input'!J4021=\"Contingent\"),'TSA Input'!D4021,\"\"))","v":""},{"$f":"IF('TSA Input'!J4021=\"\",\"\",IF(OR('TSA Input'!J4021=\"Yes\",'TSA Input'!J4021=\"Contingent\"),'TSA Input'!G4021,\"\"))","v":""},{"$f":"IF('TSA Input'!J4021=\"\",\"\",IF(OR('TSA Input'!J4021=\"Yes\",'TSA Input'!J4021=\"Contingent\"),'TSA Input'!F4021,\"\"))","v":""},"",{"$f":"IF('TSA Input'!J4021=\"\",\"\",IF(OR('TSA Input'!J4021=\"Yes\",'TSA Input'!J4021=\"Contingent\"),'TSA Input'!D4021,\"\"))","v":""},{"$f":"IF('TSA Input'!J4021=\"\",\"\",IF(OR('TSA Input'!J4021=\"Yes\",'TSA Input'!J4021=\"Contingent\"),'TSA Input'!G4021,\"\"))","v":""},{"$f":"IF('TSA Input'!J4021=\"\",\"\",IF(OR('TSA Input'!J4021=\"Yes\",'TSA Input'!J4021=\"Contingent\"),'TSA Input'!F4021,\"\"))","v":""},"","Required","Required"]
["",null,{"$f":"IF('TSA Input'!J4022=\"\",\"\",IF(OR('TSA Input'!J4022=\"Yes\",'TSA Input'!J4022=\"Contingent\"),'TSA Input'!B4022,\"Ineligible\"))","v":""},{"$f":"IF('TSA Input'!J4022=\"\",\"\",IF(OR('TSA Input'!J4022=\"Yes\",'TSA Input'!J4022=\"Contingent\"),'TSA Input'!I4022,\"\"))","v":""},{"$f":"IF('TSA Input'!J4022=\"\",\"\",IF(OR('TSA Input'!J4022=\"Yes\",'TSA Input'!J4022=\"Contingent\"),'TSA Input'!C4022,\"\"))","v":""},{"$f":"IF('TSA Input'!J4022=\"\",\"\",IF(OR('TSA Input'!J4022=\"Yes\",'TSA Input'!J4022=\"Contingent\"),'TSA Input'!D4022,\"\"))","v":""},{"$f":"IF('TSA Input'!J4022=\"\",\"\",IF(OR('TSA Input'!J4022=\"Yes\",'TSA Input'!J4022=\"Contingent\"),'TSA Input'!G4022,\"\"))","v":""},{"$f":"IF('TSA Input'!J4022=\"\",\"\",IF(OR('TSA Input'!J4022=\"Yes\",'TSA Input'!J4022=\"Contingent\"),'TSA Input'!F4022,\"\"))","v":""},"",{"$f":"IF('TSA Input'!J4022=\"\",\"\",IF(OR('TSA Input'!J4022=\"Yes\",'TSA Input'!J4022=\"Contingent\"),'TSA Input'!D4022,\"\"))","v":""},{"$f":"IF('TSA Input'!J4022=\"\",\"\",IF(OR('TSA Input'!J4022=\"Yes\",'TSA Input'!J4022=\"Contingent\"),'TSA Input'!G4022,\"\"))","v":""},{"$f":"IF('TSA Input'!J4022=\"\",\"\",IF(OR('TSA Input'!J4022=\"Yes\",'TSA Input'!J4022=\"Contingent\"),'TSA Input'!F4022,\"\"))","v":""},"","Required","Required"]
["",null,{"$f":"IF('TSA Input'!J4023=\"\",\"\",IF(OR('TSA Input'!J4023=\"Yes\",'TSA Input'!J4023=\"Contingent\"),'TSA Input'!B4023,\"Ineligible\"))","v":""},{"$f":"IF('TSA Input'!J4023=\"\",\"\",IF(OR('TSA Input'!J4023=\"Yes\",'TSA Input'!J4023=\"Contingent\"),'TSA Input'!I4023,\"\"))","v":""},{"$f":"IF('TSA Input'!J4023=\"\",\"\",IF(OR('TSA Input'!J4023=\"Yes\",'TSA Input'!J4023=\"Contingent\"),'TSA Input'!C4023,\"\"))","v":""},{"$f":"IF('TSA Input'!J4023=\"\",\"\",IF(OR('TSA Input'!J4023=\"Yes\",'TSA Input'!J4023=\"Contingent\"),'TSA Input'!D4023,\"\"))","v":""},{"$f":"IF('TSA Input'!J4023=\"\",\"\",IF(OR('TSA Input'!J4023=\"Yes\",'TSA Input'!J4023=\"Contingent\"),'TSA Input'!G4023,\"\"))","v":""},{"$f":"IF('TSA Input'!J4023=\"\",\"\",IF(OR('TSA Input'!J4023=\"Yes\",'TSA Input'!J4023=\"Contingent\"),'TSA Input'!F4023,\"\"))","v":""},"",{"$f":"IF('TSA Input'!J4023=\"\",\"\",IF(OR('TSA Input'!J4023=\"Yes\",'TSA Input'!J4023=\"Contingent\"),'TSA Input'!D4023,\"\"))","v":""},{"$f":"IF('TSA Input'!J4023=\"\",\"\",IF(OR('TSA Input'!J4023=\"Yes\",'TSA Input'!J4023=\"Contingent\"),'TSA Input'!G4023,\"\"))","v":""},{"$f":"IF('TSA Input'!J4023=\"\",\"\",IF(OR('TSA Input'!J4023=\"Yes\",'TSA Input'!J4023=\"Contingent\"),'TSA Input'!F4023,\"\"))","v":""},"","Required","Required"]
["",null,{"$f":"IF('TSA Input'!J4024=\"\",\"\",IF(OR('TSA Input'!J4024=\"Yes\",'TSA Input'!J4024=\"Contingent\"),'TSA Input'!B4024,\"Ineligible\"))","v":""},{"$f":"IF('TSA Input'!J4024=\"\",\"\",IF(OR('TSA Input'!J4024=\"Yes\",'TSA Input'!J4024=\"Contingent\"),'TSA Input'!I4024,\"\"))","v":""},{"$f":"IF('TSA Input'!J4024=\"\",\"\",IF(OR('TSA Input'!J4024=\"Yes\",'TSA Input'!J4024=\"Contingent\"),'TSA Input'!C4024,\"\"))","v":""},{"$f":"IF('TSA Input'!J4024=\"\",\"\",IF(OR('TSA Input'!J4024=\"Yes\",'TSA Input'!J4024=\"Contingent\"),'TSA Input'!D4024,\"\"))","v":""},{"$f":"IF('TSA Input'!J4024=\"\",\"\",IF(OR('TSA Input'!J4024=\"Yes\",'TSA Input'!J4024=\"Contingent\"),'TSA Input'!G4024,\"\"))","v":""},{"$f":"IF('TSA Input'!J4024=\"\",\"\",IF(OR('TSA Input'!J4024=\"Yes\",'TSA Input'!J4024=\"Contingent\"),'TSA Input'!F4024,\"\"))","v":""},"",{"$f":"IF('TSA Input'!J4024=\"\",\"\",IF(OR('TSA Input'!J4024=\"Yes\",'TSA Input'!J4024=\"Contingent\"),'TSA Input'!D4024,\"\"))","v":""},{"$f":"IF('TSA Input'!J4024=\"\",\"\",IF(OR('TSA Input'!J4024=\"Yes\",'TSA Input'!J4024=\"Contingent\"),'TSA Input'!G4024,\"\"))","v":""},{"$f":"IF('TSA Input'!J4024=\"\",\"\",IF(OR('TSA Input'!J4024=\"Yes\",'TSA Input'!J4024=\"Contingent\"),'TSA Input'!F4024,\"\"))","v":""},"","Required","Required"]
["",null,{"$f":"IF('TSA Input'!J4025=\"\",\"\",IF(OR('TSA Input'!J4025=\"Yes\",'TSA Input'!J4025=\"Contingent\"),'TSA Input'!B4025,\"Ineligible\"))","v":""},{"$f":"IF('TSA Input'!J4025=\"\",\"\",IF(OR('TSA Input'!J4025=\"Yes\",'TSA Input'!J4025=\"Contingent\"),'TSA Input'!I4025,\"\"))","v":""},{"$f":"IF('TSA Input'!J4025=\"\",\"\",IF(OR('TSA Input'!J4025=\"Yes\",'TSA Input'!J4025=\"Contingent\"),'TSA Input'!C4025,\"\"))","v":""},{"$f":"IF('TSA Input'!J4025=\"\",\"\",IF(OR('TSA Input'!J4025=\"Yes\",'TSA Input'!J4025=\"Contingent\"),'TSA Input'!D4025,\"\"))","v":""},{"$f":"IF('TSA Input'!J4025=\"\",\"\",IF(OR('TSA Input'!J4025=\"Yes\",'TSA Input'!J4025=\"Contingent\"),'TSA Input'!G4025,\"\"))","v":""},{"$f":"IF('TSA Input'!J4025=\"\",\"\",IF(OR('TSA Input'!J4025=\"Yes\",'TSA Input'!J4025=\"Contingent\"),'TSA Input'!F4025,\"\"))","v":""},"",{"$f":"IF('TSA Input'!J4025=\"\",\"\",IF(OR('TSA Input'!J4025=\"Yes\",'TSA Input'!J4025=\"Contingent\"),'TSA Input'!D4025,\"\"))","v":""},{"$f":"IF('TSA Input'!J4025=\"\",\"\",IF(OR('TSA Input'!J4025=\"Yes\",'TSA Input'!J4025=\"Contingent\"),'TSA Input'!G4025,\"\"))","v":""},{"$f":"IF('TSA Input'!J4025=\"\",\"\",IF(OR('TSA Input'!J4025=\"Yes\",'TSA Input'!J4025=\"Contingent\"),'TSA Input'!F4025,\"\"))","v":""},"","Required","Required"]
["",null,{"$f":"IF('TSA Input'!J4026=\"\",\"\",IF(OR('TSA Input'!J4026=\"Yes\",'TSA Input'!J4026=\"Contingent\"),'TSA Input'!B4026,\"Ineligible\"))","v":""},{"$f":"IF('TSA Input'!J4026=\"\",\"\",IF(OR('TSA Input'!J4026=\"Yes\",'TSA Input'!J4026=\"Contingent\"),'TSA Input'!I4026,\"\"))","v":""},{"$f":"IF('TSA Input'!J4026=\"\",\"\",IF(OR('TSA Input'!J4026=\"Yes\",'TSA Input'!J4026=\"Contingent\"),'TSA Input'!C4026,\"\"))","v":""},{"$f":"IF('TSA Input'!J4026=\"\",\"\",IF(OR('TSA Input'!J4026=\"Yes\",'TSA Input'!J4026=\"Contingent\"),'TSA Input'!D4026,\"\"))","v":""},{"$f":"IF('TSA Input'!J4026=\"\",\"\",IF(OR('TSA Input'!J4026=\"Yes\",'TSA Input'!J4026=\"Contingent\"),'TSA Input'!G4026,\"\"))","v":""},{"$f":"IF('TSA Input'!J4026=\"\",\"\",IF(OR('TSA Input'!J4026=\"Yes\",'TSA Input'!J4026=\"Contingent\"),'TSA Input'!F4026,\"\"))","v":""},"",{"$f":"IF('TSA Input'!J4026=\"\",\"\",IF(OR('TSA Input'!J4026=\"Yes\",'TSA Input'!J4026=\"Contingent\"),'TSA Input'!D4026,\"\"))","v":""},{"$f":"IF('TSA Input'!J4026=\"\",\"\",IF(OR('TSA Input'!J4026=\"Yes\",'TSA Input'!J4026=\"Contingent\"),'TSA Input'!G4026,\"\"))","v":""},{"$f":"IF('TSA Input'!J4026=\"\",\"\",IF(OR('TSA Input'!J4026=\"Yes\",'TSA Input'!J4026=\"Contingent\"),'TSA Input'!F4026,\"\"))","v":""},"","Required","Required"]
["",null,{"$f":"IF('TSA Input'!J4027=\"\",\"\",IF(OR('TSA Input'!J4027=\"Yes\",'TSA Input'!J4027=\"Contingent\"),'TSA Input'!B4027,\"Ineligible\"))","v":""},{"$f":"IF('TSA Input'!J4027=\"\",\"\",IF(OR('TSA Input'!J4027=\"Yes\",'TSA Input'!J4027=\"Contingent\"),'TSA Input'!I4027,\"\"))","v":""},{"$f":"IF('TSA Input'!J4027=\"\",\"\",IF(OR('TSA Input'!J4027=\"Yes\",'TSA Input'!J4027=\"Contingent\"),'TSA Input'!C4027,\"\"))","v":""},{"$f":"IF('TSA Input'!J4027=\"\",\"\",IF(OR('TSA Input'!J4027=\"Yes\",'TSA Input'!J4027=\"Contingent\"),'TSA Input'!D4027,\"\"))","v":""},{"$f":"IF('TSA Input'!J4027=\"\",\"\",IF(OR('TSA Input'!J4027=\"Yes\",'TSA Input'!J4027=\"Contingent\"),'TSA Input'!G4027,\"\"))","v":""},{"$f":"IF('TSA Input'!J4027=\"\",\"\",IF(OR('TSA Input'!J4027=\"Yes\",'TSA Input'!J4027=\"Contingent\"),'TSA Input'!F4027,\"\"))","v":""},"",{"$f":"IF('TSA Input'!J4027=\"\",\"\",IF(OR('TSA Input'!J4027=\"Yes\",'TSA Input'!J4027=\"Contingent\"),'TSA Input'!D4027,\"\"))","v":""},{"$f":"IF('TSA Input'!J4027=\"\",\"\",IF(OR('TSA Input'!J4027=\"Yes\",'TSA Input'!J4027=\"Contingent\"),'TSA Input'!G4027,\"\"))","v":""},{"$f":"IF('TSA Input'!J4027=\"\",\"\",IF(OR('TSA Input'!J4027=\"Yes\",'TSA Input'!J4027=\"Contingent\"),'TSA Input'!F4027,\"\"))","v":""},"","Required","Required"]
["",null,{"$f":"IF('TSA Input'!J4028=\"\",\"\",IF(OR('TSA Input'!J4028=\"Yes\",'TSA Input'!J4028=\"Contingent\"),'TSA Input'!B4028,\"Ineligible\"))","v":""},{"$f":"IF('TSA Input'!J4028=\"\",\"\",IF(OR('TSA Input'!J4028=\"Yes\",'TSA Input'!J4028=\"Contingent\"),'TSA Input'!I4028,\"\"))","v":""},{"$f":"IF('TSA Input'!J4028=\"\",\"\",IF(OR('TSA Input'!J4028=\"Yes\",'TSA Input'!J4028=\"Contingent\"),'TSA Input'!C4028,\"\"))","v":""},{"$f":"IF('TSA Input'!J4028=\"\",\"\",IF(OR('TSA Input'!J4028=\"Yes\",'TSA Input'!J4028=\"Contingent\"),'TSA Input'!D4028,\"\"))","v":""},{"$f":"IF('TSA Input'!J4028=\"\",\"\",IF(OR('TSA Input'!J4028=\"Yes\",'TSA Input'!J4028=\"Contingent\"),'TSA Input'!G4028,\"\"))","v":""},{"$f":"IF('TSA Input'!J4028=\"\",\"\",IF(OR('TSA Input'!J4028=\"Yes\",'TSA Input'!J4028=\"Contingent\"),'TSA Input'!F4028,\"\"))","v":""},"",{"$f":"IF('TSA Input'!J4028=\"\",\"\",IF(OR('TSA Input'!J4028=\"Yes\",'TSA Input'!J4028=\"Contingent\"),'TSA Input'!D4028,\"\"))","v":""},{"$f":"IF('TSA Input'!J4028=\"\",\"\",IF(OR('TSA Input'!J4028=\"Yes\",'TSA Input'!J4028=\"Contingent\"),'TSA Input'!G4028,\"\"))","v":""},{"$f":"IF('TSA Input'!J4028=\"\",\"\",IF(OR('TSA Input'!J4028=\"Yes\",'TSA Input'!J4028=\"Contingent\"),'TSA Input'!F4028,\"\"))","v":""},"","Required","Required"]
["",null,{"$f":"IF('TSA Input'!J4029=\"\",\"\",IF(OR('TSA Input'!J4029=\"Yes\",'TSA Input'!J4029=\"Contingent\"),'TSA Input'!B4029,\"Ineligible\"))","v":""},{"$f":"IF('TSA Input'!J4029=\"\",\"\",IF(OR('TSA Input'!J4029=\"Yes\",'TSA Input'!J4029=\"Contingent\"),'TSA Input'!I4029,\"\"))","v":""},{"$f":"IF('TSA Input'!J4029=\"\",\"\",IF(OR('TSA Input'!J4029=\"Yes\",'TSA Input'!J4029=\"Contingent\"),'TSA Input'!C4029,\"\"))","v":""},{"$f":"IF('TSA Input'!J4029=\"\",\"\",IF(OR('TSA Input'!J4029=\"Yes\",'TSA Input'!J4029=\"Contingent\"),'TSA Input'!D4029,\"\"))","v":""},{"$f":"IF('TSA Input'!J4029=\"\",\"\",IF(OR('TSA Input'!J4029=\"Yes\",'TSA Input'!J4029=\"Contingent\"),'TSA Input'!G4029,\"\"))","v":""},{"$f":"IF('TSA Input'!J4029=\"\",\"\",IF(OR('TSA Input'!J4029=\"Yes\",'TSA Input'!J4029=\"Contingent\"),'TSA Input'!F4029,\"\"))","v":""},"",{"$f":"IF('TSA Input'!J4029=\"\",\"\",IF(OR('TSA Input'!J4029=\"Yes\",'TSA Input'!J4029=\"Contingent\"),'TSA Input'!D4029,\"\"))","v":""},{"$f":"IF('TSA Input'!J4029=\"\",\"\",IF(OR('TSA Input'!J4029=\"Yes\",'TSA Input'!J4029=\"Contingent\"),'TSA Input'!G4029,\"\"))","v":""},{"$f":"IF('TSA Input'!J4029=\"\",\"\",IF(OR('TSA Input'!J4029=\"Yes\",'TSA Input'!J4029=\"Contingent\"),'TSA Input'!F4029,\"\"))","v":""},"","Required","Required"]
["",null,{"$f":"IF('TSA Input'!J4030=\"\",\"\",IF(OR('TSA Input'!J4030=\"Yes\",'TSA Input'!J4030=\"Contingent\"),'TSA Input'!B4030,\"Ineligible\"))","v":""},{"$f":"IF('TSA Input'!J4030=\"\",\"\",IF(OR('TSA Input'!J4030=\"Yes\",'TSA Input'!J4030=\"Contingent\"),'TSA Input'!I4030,\"\"))","v":""},{"$f":"IF('TSA Input'!J4030=\"\",\"\",IF(OR('TSA Input'!J4030=\"Yes\",'TSA Input'!J4030=\"Contingent\"),'TSA Input'!C4030,\"\"))","v":""},{"$f":"IF('TSA Input'!J4030=\"\",\"\",IF(OR('TSA Input'!J4030=\"Yes\",'TSA Input'!J4030=\"Contingent\"),'TSA Input'!D4030,\"\"))","v":""},{"$f":"IF('TSA Input'!J4030=\"\",\"\",IF(OR('TSA Input'!J4030=\"Yes\",'TSA Input'!J4030=\"Contingent\"),'TSA Input'!G4030,\"\"))","v":""},{"$f":"IF('TSA Input'!J4030=\"\",\"\",IF(OR('TSA Input'!J4030=\"Yes\",'TSA Input'!J4030=\"Contingent\"),'TSA Input'!F4030,\"\"))","v":""},"",{"$f":"IF('TSA Input'!J4030=\"\",\"\",IF(OR('TSA Input'!J4030=\"Yes\",'TSA Input'!J4030=\"Contingent\"),'TSA Input'!D4030,\"\"))","v":""},{"$f":"IF('TSA Input'!J4030=\"\",\"\",IF(OR('TSA Input'!J4030=\"Yes\",'TSA Input'!J4030=\"Contingent\"),'TSA Input'!G4030,\"\"))","v":""},{"$f":"IF('TSA Input'!J4030=\"\",\"\",IF(OR('TSA Input'!J4030=\"Yes\",'TSA Input'!J4030=\"Contingent\"),'TSA Input'!F4030,\"\"))","v":""},"","Required","Required"]
["",null,{"$f":"IF('TSA Input'!J4031=\"\",\"\",IF(OR('TSA Input'!J4031=\"Yes\",'TSA Input'!J4031=\"Contingent\"),'TSA Input'!B4031,\"Ineligible\"))","v":""},{"$f":"IF('TSA Input'!J4031=\"\",\"\",IF(OR('TSA Input'!J4031=\"Yes\",'TSA Input'!J4031=\"Contingent\"),'TSA Input'!I4031,\"\"))","v":""},{"$f":"IF('TSA Input'!J4031=\"\",\"\",IF(OR('TSA Input'!J4031=\"Yes\",'TSA Input'!J4031=\"Contingent\"),'TSA Input'!C4031,\"\"))","v":""},{"$f":"IF('TSA Input'!J4031=\"\",\"\",IF(OR('TSA Input'!J4031=\"Yes\",'TSA Input'!J4031=\"Contingent\"),'TSA Input'!D4031,\"\"))","v":""},{"$f":"IF('TSA Input'!J4031=\"\",\"\",IF(OR('TSA Input'!J4031=\"Yes\",'TSA Input'!J4031=\"Contingent\"),'TSA Input'!G4031,\"\"))","v":""},{"$f":"IF('TSA Input'!J4031=\"\",\"\",IF(OR('TSA Input'!J4031=\"Yes\",'TSA Input'!J4031=\"Contingent\"),'TSA Input'!F4031,\"\"))","v":""},"",{"$f":"IF('TSA Input'!J4031=\"\",\"\",IF(OR('TSA Input'!J4031=\"Yes\",'TSA Input'!J4031=\"Contingent\"),'TSA Input'!D4031,\"\"))","v":""},{"$f":"IF('TSA Input'!J4031=\"\",\"\",IF(OR('TSA Input'!J4031=\"Yes\",'TSA Input'!J4031=\"Contingent\"),'TSA Input'!G4031,\"\"))","v":""},{"$f":"IF('TSA Input'!J4031=\"\",\"\",IF(OR('TSA Input'!J4031=\"Yes\",'TSA Input'!J4031=\"Contingent\"),'TSA Input'!F4031,\"\"))","v":""},"","Required","Required"]
["",null,{"$f":"IF('TSA Input'!J4032=\"\",\"\",IF(OR('TSA Input'!J4032=\"Yes\",'TSA Input'!J4032=\"Contingent\"),'TSA Input'!B4032,\"Ineligible\"))","v":""},{"$f":"IF('TSA Input'!J4032=\"\",\"\",IF(OR('TSA Input'!J4032=\"Yes\",'TSA Input'!J4032=\"Contingent\"),'TSA Input'!I4032,\"\"))","v":""},{"$f":"IF('TSA Input'!J4032=\"\",\"\",IF(OR('TSA Input'!J4032=\"Yes\",'TSA Input'!J4032=\"Contingent\"),'TSA Input'!C4032,\"\"))","v":""},{"$f":"IF('TSA Input'!J4032=\"\",\"\",IF(OR('TSA Input'!J4032=\"Yes\",'TSA Input'!J4032=\"Contingent\"),'TSA Input'!D4032,\"\"))","v":""},{"$f":"IF('TSA Input'!J4032=\"\",\"\",IF(OR('TSA Input'!J4032=\"Yes\",'TSA Input'!J4032=\"Contingent\"),'TSA Input'!G4032,\"\"))","v":""},{"$f":"IF('TSA Input'!J4032=\"\",\"\",IF(OR('TSA Input'!J4032=\"Yes\",'TSA Input'!J4032=\"Contingent\"),'TSA Input'!F4032,\"\"))","v":""},"",{"$f":"IF('TSA Input'!J4032=\"\",\"\",IF(OR('TSA Input'!J4032=\"Yes\",'TSA Input'!J4032=\"Contingent\"),'TSA Input'!D4032,\"\"))","v":""},{"$f":"IF('TSA Input'!J4032=\"\",\"\",IF(OR('TSA Input'!J4032=\"Yes\",'TSA Input'!J4032=\"Contingent\"),'TSA Input'!G4032,\"\"))","v":""},{"$f":"IF('TSA Input'!J4032=\"\",\"\",IF(OR('TSA Input'!J4032=\"Yes\",'TSA Input'!J4032=\"Contingent\"),'TSA Input'!F4032,\"\"))","v":""},"","Required","Required"]
["",null,{"$f":"IF('TSA Input'!J4033=\"\",\"\",IF(OR('TSA Input'!J4033=\"Yes\",'TSA Input'!J4033=\"Contingent\"),'TSA Input'!B4033,\"Ineligible\"))","v":""},{"$f":"IF('TSA Input'!J4033=\"\",\"\",IF(OR('TSA Input'!J4033=\"Yes\",'TSA Input'!J4033=\"Contingent\"),'TSA Input'!I4033,\"\"))","v":""},{"$f":"IF('TSA Input'!J4033=\"\",\"\",IF(OR('TSA Input'!J4033=\"Yes\",'TSA Input'!J4033=\"Contingent\"),'TSA Input'!C4033,\"\"))","v":""},{"$f":"IF('TSA Input'!J4033=\"\",\"\",IF(OR('TSA Input'!J4033=\"Yes\",'TSA Input'!J4033=\"Contingent\"),'TSA Input'!D4033,\"\"))","v":""},{"$f":"IF('TSA Input'!J4033=\"\",\"\",IF(OR('TSA Input'!J4033=\"Yes\",'TSA Input'!J4033=\"Contingent\"),'TSA Input'!G4033,\"\"))","v":""},{"$f":"IF('TSA Input'!J4033=\"\",\"\",IF(OR('TSA Input'!J4033=\"Yes\",'TSA Input'!J4033=\"Contingent\"),'TSA Input'!F4033,\"\"))","v":""},"",{"$f":"IF('TSA Input'!J4033=\"\",\"\",IF(OR('TSA Input'!J4033=\"Yes\",'TSA Input'!J4033=\"Contingent\"),'TSA Input'!D4033,\"\"))","v":""},{"$f":"IF('TSA Input'!J4033=\"\",\"\",IF(OR('TSA Input'!J4033=\"Yes\",'TSA Input'!J4033=\"Contingent\"),'TSA Input'!G4033,\"\"))","v":""},{"$f":"IF('TSA Input'!J4033=\"\",\"\",IF(OR('TSA Input'!J4033=\"Yes\",'TSA Input'!J4033=\"Contingent\"),'TSA Input'!F4033,\"\"))","v":""},"","Required","Required"]
["",null,{"$f":"IF('TSA Input'!J4034=\"\",\"\",IF(OR('TSA Input'!J4034=\"Yes\",'TSA Input'!J4034=\"Contingent\"),'TSA Input'!B4034,\"Ineligible\"))","v":""},{"$f":"IF('TSA Input'!J4034=\"\",\"\",IF(OR('TSA Input'!J4034=\"Yes\",'TSA Input'!J4034=\"Contingent\"),'TSA Input'!I4034,\"\"))","v":""},{"$f":"IF('TSA Input'!J4034=\"\",\"\",IF(OR('TSA Input'!J4034=\"Yes\",'TSA Input'!J4034=\"Contingent\"),'TSA Input'!C4034,\"\"))","v":""},{"$f":"IF('TSA Input'!J4034=\"\",\"\",IF(OR('TSA Input'!J4034=\"Yes\",'TSA Input'!J4034=\"Contingent\"),'TSA Input'!D4034,\"\"))","v":""},{"$f":"IF('TSA Input'!J4034=\"\",\"\",IF(OR('TSA Input'!J4034=\"Yes\",'TSA Input'!J4034=\"Contingent\"),'TSA Input'!G4034,\"\"))","v":""},{"$f":"IF('TSA Input'!J4034=\"\",\"\",IF(OR('TSA Input'!J4034=\"Yes\",'TSA Input'!J4034=\"Contingent\"),'TSA Input'!F4034,\"\"))","v":""},"",{"$f":"IF('TSA Input'!J4034=\"\",\"\",IF(OR('TSA Input'!J4034=\"Yes\",'TSA Input'!J4034=\"Contingent\"),'TSA Input'!D4034,\"\"))","v":""},{"$f":"IF('TSA Input'!J4034=\"\",\"\",IF(OR('TSA Input'!J4034=\"Yes\",'TSA Input'!J4034=\"Contingent\"),'TSA Input'!G4034,\"\"))","v":""},{"$f":"IF('TSA Input'!J4034=\"\",\"\",IF(OR('TSA Input'!J4034=\"Yes\",'TSA Input'!J4034=\"Contingent\"),'TSA Input'!F4034,\"\"))","v":""},"","Required","Required"]
["",null,{"$f":"IF('TSA Input'!J4035=\"\",\"\",IF(OR('TSA Input'!J4035=\"Yes\",'TSA Input'!J4035=\"Contingent\"),'TSA Input'!B4035,\"Ineligible\"))","v":""},{"$f":"IF('TSA Input'!J4035=\"\",\"\",IF(OR('TSA Input'!J4035=\"Yes\",'TSA Input'!J4035=\"Contingent\"),'TSA Input'!I4035,\"\"))","v":""},{"$f":"IF('TSA Input'!J4035=\"\",\"\",IF(OR('TSA Input'!J4035=\"Yes\",'TSA Input'!J4035=\"Contingent\"),'TSA Input'!C4035,\"\"))","v":""},{"$f":"IF('TSA Input'!J4035=\"\",\"\",IF(OR('TSA Input'!J4035=\"Yes\",'TSA Input'!J4035=\"Contingent\"),'TSA Input'!D4035,\"\"))","v":""},{"$f":"IF('TSA Input'!J4035=\"\",\"\",IF(OR('TSA Input'!J4035=\"Yes\",'TSA Input'!J4035=\"Contingent\"),'TSA Input'!G4035,\"\"))","v":""},{"$f":"IF('TSA Input'!J4035=\"\",\"\",IF(OR('TSA Input'!J4035=\"Yes\",'TSA Input'!J4035=\"Contingent\"),'TSA Input'!F4035,\"\"))","v":""},"",{"$f":"IF('TSA Input'!J4035=\"\",\"\",IF(OR('TSA Input'!J4035=\"Yes\",'TSA Input'!J4035=\"Contingent\"),'TSA Input'!D4035,\"\"))","v":""},{"$f":"IF('TSA Input'!J4035=\"\",\"\",IF(OR('TSA Input'!J4035=\"Yes\",'TSA Input'!J4035=\"Contingent\"),'TSA Input'!G4035,\"\"))","v":""},{"$f":"IF('TSA Input'!J4035=\"\",\"\",IF(OR('TSA Input'!J4035=\"Yes\",'TSA Input'!J4035=\"Contingent\"),'TSA Input'!F4035,\"\"))","v":""},"","Required","Required"]
["",null,{"$f":"IF('TSA Input'!J4036=\"\",\"\",IF(OR('TSA Input'!J4036=\"Yes\",'TSA Input'!J4036=\"Contingent\"),'TSA Input'!B4036,\"Ineligible\"))","v":""},{"$f":"IF('TSA Input'!J4036=\"\",\"\",IF(OR('TSA Input'!J4036=\"Yes\",'TSA Input'!J4036=\"Contingent\"),'TSA Input'!I4036,\"\"))","v":""},{"$f":"IF('TSA Input'!J4036=\"\",\"\",IF(OR('TSA Input'!J4036=\"Yes\",'TSA Input'!J4036=\"Contingent\"),'TSA Input'!C4036,\"\"))","v":""},{"$f":"IF('TSA Input'!J4036=\"\",\"\",IF(OR('TSA Input'!J4036=\"Yes\",'TSA Input'!J4036=\"Contingent\"),'TSA Input'!D4036,\"\"))","v":""},{"$f":"IF('TSA Input'!J4036=\"\",\"\",IF(OR('TSA Input'!J4036=\"Yes\",'TSA Input'!J4036=\"Contingent\"),'TSA Input'!G4036,\"\"))","v":""},{"$f":"IF('TSA Input'!J4036=\"\",\"\",IF(OR('TSA Input'!J4036=\"Yes\",'TSA Input'!J4036=\"Contingent\"),'TSA Input'!F4036,\"\"))","v":""},{"$f":"IF($C4074=\"\",\"\",SUM(F4074:H4074))","v":""},{"$f":"IF('TSA Input'!J4036=\"\",\"\",IF(OR('TSA Input'!J4036=\"Yes\",'TSA Input'!J4036=\"Contingent\"),'TSA Input'!D4036,\"\"))","v":""},{"$f":"IF('TSA Input'!J4036=\"\",\"\",IF(OR('TSA Input'!J4036=\"Yes\",'TSA Input'!J4036=\"Contingent\"),'TSA Input'!G4036,\"\"))","v":""},{"$f":"IF('TSA Input'!J4036=\"\",\"\",IF(OR('TSA Input'!J4036=\"Yes\",'TSA Input'!J4036=\"Contingent\"),'TSA Input'!F4036,\"\"))","v":""},{"$f":"IF($C4074=\"\",\"\",SUM(J4074:L4074))","v":""},"Required","Required"]
["",null,{"$f":"IF('TSA Input'!J4037=\"\",\"\",IF(OR('TSA Input'!J4037=\"Yes\",'TSA Input'!J4037=\"Contingent\"),'TSA Input'!B4037,\"Ineligible\"))","v":""},{"$f":"IF('TSA Input'!J4037=\"\",\"\",IF(OR('TSA Input'!J4037=\"Yes\",'TSA Input'!J4037=\"Contingent\"),'TSA Input'!I4037,\"\"))","v":""},{"$f":"IF('TSA Input'!J4037=\"\",\"\",IF(OR('TSA Input'!J4037=\"Yes\",'TSA Input'!J4037=\"Contingent\"),'TSA Input'!C4037,\"\"))","v":""},{"$f":"IF('TSA Input'!J4037=\"\",\"\",IF(OR('TSA Input'!J4037=\"Yes\",'TSA Input'!J4037=\"Contingent\"),'TSA Input'!D4037,\"\"))","v":""},{"$f":"IF('TSA Input'!J4037=\"\",\"\",IF(OR('TSA Input'!J4037=\"Yes\",'TSA Input'!J4037=\"Contingent\"),'TSA Input'!G4037,\"\"))","v":""},{"$f":"IF('TSA Input'!J4037=\"\",\"\",IF(OR('TSA Input'!J4037=\"Yes\",'TSA Input'!J4037=\"Contingent\"),'TSA Input'!F4037,\"\"))","v":""},"",{"$f":"IF('TSA Input'!J4037=\"\",\"\",IF(OR('TSA Input'!J4037=\"Yes\",'TSA Input'!J4037=\"Contingent\"),'TSA Input'!D4037,\"\"))","v":""},{"$f":"IF('TSA Input'!J4037=\"\",\"\",IF(OR('TSA Input'!J4037=\"Yes\",'TSA Input'!J4037=\"Contingent\"),'TSA Input'!G4037,\"\"))","v":""},{"$f":"IF('TSA Input'!J4037=\"\",\"\",IF(OR('TSA Input'!J4037=\"Yes\",'TSA Input'!J4037=\"Contingent\"),'TSA Input'!F4037,\"\"))","v":""},"","Required","Required"]
["",null,{"$f":"IF('TSA Input'!J4038=\"\",\"\",IF(OR('TSA Input'!J4038=\"Yes\",'TSA Input'!J4038=\"Contingent\"),'TSA Input'!B4038,\"Ineligible\"))","v":""},{"$f":"IF('TSA Input'!J4038=\"\",\"\",IF(OR('TSA Input'!J4038=\"Yes\",'TSA Input'!J4038=\"Contingent\"),'TSA Input'!I4038,\"\"))","v":""},{"$f":"IF('TSA Input'!J4038=\"\",\"\",IF(OR('TSA Input'!J4038=\"Yes\",'TSA Input'!J4038=\"Contingent\"),'TSA Input'!C4038,\"\"))","v":""},{"$f":"IF('TSA Input'!J4038=\"\",\"\",IF(OR('TSA Input'!J4038=\"Yes\",'TSA Input'!J4038=\"Contingent\"),'TSA Input'!D4038,\"\"))","v":""},{"$f":"IF('TSA Input'!J4038=\"\",\"\",IF(OR('TSA Input'!J4038=\"Yes\",'TSA Input'!J4038=\"Contingent\"),'TSA Input'!G4038,\"\"))","v":""},{"$f":"IF('TSA Input'!J4038=\"\",\"\",IF(OR('TSA Input'!J4038=\"Yes\",'TSA Input'!J4038=\"Contingent\"),'TSA Input'!F4038,\"\"))","v":""},"",{"$f":"IF('TSA Input'!J4038=\"\",\"\",IF(OR('TSA Input'!J4038=\"Yes\",'TSA Input'!J4038=\"Contingent\"),'TSA Input'!D4038,\"\"))","v":""},{"$f":"IF('TSA Input'!J4038=\"\",\"\",IF(OR('TSA Input'!J4038=\"Yes\",'TSA Input'!J4038=\"Contingent\"),'TSA Input'!G4038,\"\"))","v":""},{"$f":"IF('TSA Input'!J4038=\"\",\"\",IF(OR('TSA Input'!J4038=\"Yes\",'TSA Input'!J4038=\"Contingent\"),'TSA Input'!F4038,\"\"))","v":""},"","Required","Required"]
["",null,{"$f":"IF('TSA Input'!J4039=\"\",\"\",IF(OR('TSA Input'!J4039=\"Yes\",'TSA Input'!J4039=\"Contingent\"),'TSA Input'!B4039,\"Ineligible\"))","v":""},{"$f":"IF('TSA Input'!J4039=\"\",\"\",IF(OR('TSA Input'!J4039=\"Yes\",'TSA Input'!J4039=\"Contingent\"),'TSA Input'!I4039,\"\"))","v":""},{"$f":"IF('TSA Input'!J4039=\"\",\"\",IF(OR('TSA Input'!J4039=\"Yes\",'TSA Input'!J4039=\"Contingent\"),'TSA Input'!C4039,\"\"))","v":""},{"$f":"IF('TSA Input'!J4039=\"\",\"\",IF(OR('TSA Input'!J4039=\"Yes\",'TSA Input'!J4039=\"Contingent\"),'TSA Input'!D4039,\"\"))","v":""},{"$f":"IF('TSA Input'!J4039=\"\",\"\",IF(OR('TSA Input'!J4039=\"Yes\",'TSA Input'!J4039=\"Contingent\"),'TSA Input'!G4039,\"\"))","v":""},{"$f":"IF('TSA Input'!J4039=\"\",\"\",IF(OR('TSA Input'!J4039=\"Yes\",'TSA Input'!J4039=\"Contingent\"),'TSA Input'!F4039,\"\"))","v":""},"",{"$f":"IF('TSA Input'!J4039=\"\",\"\",IF(OR('TSA Input'!J4039=\"Yes\",'TSA Input'!J4039=\"Contingent\"),'TSA Input'!D4039,\"\"))","v":""},{"$f":"IF('TSA Input'!J4039=\"\",\"\",IF(OR('TSA Input'!J4039=\"Yes\",'TSA Input'!J4039=\"Contingent\"),'TSA Input'!G4039,\"\"))","v":""},{"$f":"IF('TSA Input'!J4039=\"\",\"\",IF(OR('TSA Input'!J4039=\"Yes\",'TSA Input'!J4039=\"Contingent\"),'TSA Input'!F4039,\"\"))","v":""},"","Required","Required"]
["",null,{"$f":"IF('TSA Input'!J4040=\"\",\"\",IF(OR('TSA Input'!J4040=\"Yes\",'TSA Input'!J4040=\"Contingent\"),'TSA Input'!B4040,\"Ineligible\"))","v":""},{"$f":"IF('TSA Input'!J4040=\"\",\"\",IF(OR('TSA Input'!J4040=\"Yes\",'TSA Input'!J4040=\"Contingent\"),'TSA Input'!I4040,\"\"))","v":""},{"$f":"IF('TSA Input'!J4040=\"\",\"\",IF(OR('TSA Input'!J4040=\"Yes\",'TSA Input'!J4040=\"Contingent\"),'TSA Input'!C4040,\"\"))","v":""},{"$f":"IF('TSA Input'!J4040=\"\",\"\",IF(OR('TSA Input'!J4040=\"Yes\",'TSA Input'!J4040=\"Contingent\"),'TSA Input'!D4040,\"\"))","v":""},{"$f":"IF('TSA Input'!J4040=\"\",\"\",IF(OR('TSA Input'!J4040=\"Yes\",'TSA Input'!J4040=\"Contingent\"),'TSA Input'!G4040,\"\"))","v":""},{"$f":"IF('TSA Input'!J4040=\"\",\"\",IF(OR('TSA Input'!J4040=\"Yes\",'TSA Input'!J4040=\"Contingent\"),'TSA Input'!F4040,\"\"))","v":""},"",{"$f":"IF('TSA Input'!J4040=\"\",\"\",IF(OR('TSA Input'!J4040=\"Yes\",'TSA Input'!J4040=\"Contingent\"),'TSA Input'!D4040,\"\"))","v":""},{"$f":"IF('TSA Input'!J4040=\"\",\"\",IF(OR('TSA Input'!J4040=\"Yes\",'TSA Input'!J4040=\"Contingent\"),'TSA Input'!G4040,\"\"))","v":""},{"$f":"IF('TSA Input'!J4040=\"\",\"\",IF(OR('TSA Input'!J4040=\"Yes\",'TSA Input'!J4040=\"Contingent\"),'TSA Input'!F4040,\"\"))","v":""},"","Required","Required"]
["",null,{"$f":"IF('TSA Input'!J4041=\"\",\"\",IF(OR('TSA Input'!J4041=\"Yes\",'TSA Input'!J4041=\"Contingent\"),'TSA Input'!B4041,\"Ineligible\"))","v":""},{"$f":"IF('TSA Input'!J4041=\"\",\"\",IF(OR('TSA Input'!J4041=\"Yes\",'TSA Input'!J4041=\"Contingent\"),'TSA Input'!I4041,\"\"))","v":""},{"$f":"IF('TSA Input'!J4041=\"\",\"\",IF(OR('TSA Input'!J4041=\"Yes\",'TSA Input'!J4041=\"Contingent\"),'TSA Input'!C4041,\"\"))","v":""},{"$f":"IF('TSA Input'!J4041=\"\",\"\",IF(OR('TSA Input'!J4041=\"Yes\",'TSA Input'!J4041=\"Contingent\"),'TSA Input'!D4041,\"\"))","v":""},{"$f":"IF('TSA Input'!J4041=\"\",\"\",IF(OR('TSA Input'!J4041=\"Yes\",'TSA Input'!J4041=\"Contingent\"),'TSA Input'!G4041,\"\"))","v":""},{"$f":"IF('TSA Input'!J4041=\"\",\"\",IF(OR('TSA Input'!J4041=\"Yes\",'TSA Input'!J4041=\"Contingent\"),'TSA Input'!F4041,\"\"))","v":""},"",{"$f":"IF('TSA Input'!J4041=\"\",\"\",IF(OR('TSA Input'!J4041=\"Yes\",'TSA Input'!J4041=\"Contingent\"),'TSA Input'!D4041,\"\"))","v":""},{"$f":"IF('TSA Input'!J4041=\"\",\"\",IF(OR('TSA Input'!J4041=\"Yes\",'TSA Input'!J4041=\"Contingent\"),'TSA Input'!G4041,\"\"))","v":""},{"$f":"IF('TSA Input'!J4041=\"\",\"\",IF(OR('TSA Input'!J4041=\"Yes\",'TSA Input'!J4041=\"Contingent\"),'TSA Input'!F4041,\"\"))","v":""},"","Required","Required"]
["",null,{"$f":"IF('TSA Input'!J4042=\"\",\"\",IF(OR('TSA Input'!J4042=\"Yes\",'TSA Input'!J4042=\"Contingent\"),'TSA Input'!B4042,\"Ineligible\"))","v":""},{"$f":"IF('TSA Input'!J4042=\"\",\"\",IF(OR('TSA Input'!J4042=\"Yes\",'TSA Input'!J4042=\"Contingent\"),'TSA Input'!I4042,\"\"))","v":""},{"$f":"IF('TSA Input'!J4042=\"\",\"\",IF(OR('TSA Input'!J4042=\"Yes\",'TSA Input'!J4042=\"Contingent\"),'TSA Input'!C4042,\"\"))","v":""},{"$f":"IF('TSA Input'!J4042=\"\",\"\",IF(OR('TSA Input'!J4042=\"Yes\",'TSA Input'!J4042=\"Contingent\"),'TSA Input'!D4042,\"\"))","v":""},{"$f":"IF('TSA Input'!J4042=\"\",\"\",IF(OR('TSA Input'!J4042=\"Yes\",'TSA Input'!J4042=\"Contingent\"),'TSA Input'!G4042,\"\"))","v":""},{"$f":"IF('TSA Input'!J4042=\"\",\"\",IF(OR('TSA Input'!J4042=\"Yes\",'TSA Input'!J4042=\"Contingent\"),'TSA Input'!F4042,\"\"))","v":""},"",{"$f":"IF('TSA Input'!J4042=\"\",\"\",IF(OR('TSA Input'!J4042=\"Yes\",'TSA Input'!J4042=\"Contingent\"),'TSA Input'!D4042,\"\"))","v":""},{"$f":"IF('TSA Input'!J4042=\"\",\"\",IF(OR('TSA Input'!J4042=\"Yes\",'TSA Input'!J4042=\"Contingent\"),'TSA Input'!G4042,\"\"))","v":""},{"$f":"IF('TSA Input'!J4042=\"\",\"\",IF(OR('TSA Input'!J4042=\"Yes\",'TSA Input'!J4042=\"Contingent\"),'TSA Input'!F4042,\"\"))","v":""},"","Required","Required"]
["",null,{"$f":"IF('TSA Input'!J4043=\"\",\"\",IF(OR('TSA Input'!J4043=\"Yes\",'TSA Input'!J4043=\"Contingent\"),'TSA Input'!B4043,\"Ineligible\"))","v":""},{"$f":"IF('TSA Input'!J4043=\"\",\"\",IF(OR('TSA Input'!J4043=\"Yes\",'TSA Input'!J4043=\"Contingent\"),'TSA Input'!I4043,\"\"))","v":""},{"$f":"IF('TSA Input'!J4043=\"\",\"\",IF(OR('TSA Input'!J4043=\"Yes\",'TSA Input'!J4043=\"Contingent\"),'TSA Input'!C4043,\"\"))","v":""},{"$f":"IF('TSA Input'!J4043=\"\",\"\",IF(OR('TSA Input'!J4043=\"Yes\",'TSA Input'!J4043=\"Contingent\"),'TSA Input'!D4043,\"\"))","v":""},{"$f":"IF('TSA Input'!J4043=\"\",\"\",IF(OR('TSA Input'!J4043=\"Yes\",'TSA Input'!J4043=\"Contingent\"),'TSA Input'!G4043,\"\"))","v":""},{"$f":"IF('TSA Input'!J4043=\"\",\"\",IF(OR('TSA Input'!J4043=\"Yes\",'TSA Input'!J4043=\"Contingent\"),'TSA Input'!F4043,\"\"))","v":""},"",{"$f":"IF('TSA Input'!J4043=\"\",\"\",IF(OR('TSA Input'!J4043=\"Yes\",'TSA Input'!J4043=\"Contingent\"),'TSA Input'!D4043,\"\"))","v":""},{"$f":"IF('TSA Input'!J4043=\"\",\"\",IF(OR('TSA Input'!J4043=\"Yes\",'TSA Input'!J4043=\"Contingent\"),'TSA Input'!G4043,\"\"))","v":""},{"$f":"IF('TSA Input'!J4043=\"\",\"\",IF(OR('TSA Input'!J4043=\"Yes\",'TSA Input'!J4043=\"Contingent\"),'TSA Input'!F4043,\"\"))","v":""},"","Required","Required"]
["",null,{"$f":"IF('TSA Input'!J4044=\"\",\"\",IF(OR('TSA Input'!J4044=\"Yes\",'TSA Input'!J4044=\"Contingent\"),'TSA Input'!B4044,\"Ineligible\"))","v":""},{"$f":"IF('TSA Input'!J4044=\"\",\"\",IF(OR('TSA Input'!J4044=\"Yes\",'TSA Input'!J4044=\"Contingent\"),'TSA Input'!I4044,\"\"))","v":""},{"$f":"IF('TSA Input'!J4044=\"\",\"\",IF(OR('TSA Input'!J4044=\"Yes\",'TSA Input'!J4044=\"Contingent\"),'TSA Input'!C4044,\"\"))","v":""},{"$f":"IF('TSA Input'!J4044=\"\",\"\",IF(OR('TSA Input'!J4044=\"Yes\",'TSA Input'!J4044=\"Contingent\"),'TSA Input'!D4044,\"\"))","v":""},{"$f":"IF('TSA Input'!J4044=\"\",\"\",IF(OR('TSA Input'!J4044=\"Yes\",'TSA Input'!J4044=\"Contingent\"),'TSA Input'!G4044,\"\"))","v":""},{"$f":"IF('TSA Input'!J4044=\"\",\"\",IF(OR('TSA Input'!J4044=\"Yes\",'TSA Input'!J4044=\"Contingent\"),'TSA Input'!F4044,\"\"))","v":""},"",{"$f":"IF('TSA Input'!J4044=\"\",\"\",IF(OR('TSA Input'!J4044=\"Yes\",'TSA Input'!J4044=\"Contingent\"),'TSA Input'!D4044,\"\"))","v":""},{"$f":"IF('TSA Input'!J4044=\"\",\"\",IF(OR('TSA Input'!J4044=\"Yes\",'TSA Input'!J4044=\"Contingent\"),'TSA Input'!G4044,\"\"))","v":""},{"$f":"IF('TSA Input'!J4044=\"\",\"\",IF(OR('TSA Input'!J4044=\"Yes\",'TSA Input'!J4044=\"Contingent\"),'TSA Input'!F4044,\"\"))","v":""},"","Required","Required"]
["",null,{"$f":"IF('TSA Input'!J4045=\"\",\"\",IF(OR('TSA Input'!J4045=\"Yes\",'TSA Input'!J4045=\"Contingent\"),'TSA Input'!B4045,\"Ineligible\"))","v":""},{"$f":"IF('TSA Input'!J4045=\"\",\"\",IF(OR('TSA Input'!J4045=\"Yes\",'TSA Input'!J4045=\"Contingent\"),'TSA Input'!I4045,\"\"))","v":""},{"$f":"IF('TSA Input'!J4045=\"\",\"\",IF(OR('TSA Input'!J4045=\"Yes\",'TSA Input'!J4045=\"Contingent\"),'TSA Input'!C4045,\"\"))","v":""},{"$f":"IF('TSA Input'!J4045=\"\",\"\",IF(OR('TSA Input'!J4045=\"Yes\",'TSA Input'!J4045=\"Contingent\"),'TSA Input'!D4045,\"\"))","v":""},{"$f":"IF('TSA Input'!J4045=\"\",\"\",IF(OR('TSA Input'!J4045=\"Yes\",'TSA Input'!J4045=\"Contingent\"),'TSA Input'!G4045,\"\"))","v":""},{"$f":"IF('TSA Input'!J4045=\"\",\"\",IF(OR('TSA Input'!J4045=\"Yes\",'TSA Input'!J4045=\"Contingent\"),'TSA Input'!F4045,\"\"))","v":""},"",{"$f":"IF('TSA Input'!J4045=\"\",\"\",IF(OR('TSA Input'!J4045=\"Yes\",'TSA Input'!J4045=\"Contingent\"),'TSA Input'!D4045,\"\"))","v":""},{"$f":"IF('TSA Input'!J4045=\"\",\"\",IF(OR('TSA Input'!J4045=\"Yes\",'TSA Input'!J4045=\"Contingent\"),'TSA Input'!G4045,\"\"))","v":""},{"$f":"IF('TSA Input'!J4045=\"\",\"\",IF(OR('TSA Input'!J4045=\"Yes\",'TSA Input'!J4045=\"Contingent\"),'TSA Input'!F4045,\"\"))","v":""},"","Required","Required"]
["",null,{"$f":"IF('TSA Input'!J4046=\"\",\"\",IF(OR('TSA Input'!J4046=\"Yes\",'TSA Input'!J4046=\"Contingent\"),'TSA Input'!B4046,\"Ineligible\"))","v":""},{"$f":"IF('TSA Input'!J4046=\"\",\"\",IF(OR('TSA Input'!J4046=\"Yes\",'TSA Input'!J4046=\"Contingent\"),'TSA Input'!I4046,\"\"))","v":""},{"$f":"IF('TSA Input'!J4046=\"\",\"\",IF(OR('TSA Input'!J4046=\"Yes\",'TSA Input'!J4046=\"Contingent\"),'TSA Input'!C4046,\"\"))","v":""},{"$f":"IF('TSA Input'!J4046=\"\",\"\",IF(OR('TSA Input'!J4046=\"Yes\",'TSA Input'!J4046=\"Contingent\"),'TSA Input'!D4046,\"\"))","v":""},{"$f":"IF('TSA Input'!J4046=\"\",\"\",IF(OR('TSA Input'!J4046=\"Yes\",'TSA Input'!J4046=\"Contingent\"),'TSA Input'!G4046,\"\"))","v":""},{"$f":"IF('TSA Input'!J4046=\"\",\"\",IF(OR('TSA Input'!J4046=\"Yes\",'TSA Input'!J4046=\"Contingent\"),'TSA Input'!F4046,\"\"))","v":""},"",{"$f":"IF('TSA Input'!J4046=\"\",\"\",IF(OR('TSA Input'!J4046=\"Yes\",'TSA Input'!J4046=\"Contingent\"),'TSA Input'!D4046,\"\"))","v":""},{"$f":"IF('TSA Input'!J4046=\"\",\"\",IF(OR('TSA Input'!J4046=\"Yes\",'TSA Input'!J4046=\"Contingent\"),'TSA Input'!G4046,\"\"))","v":""},{"$f":"IF('TSA Input'!J4046=\"\",\"\",IF(OR('TSA Input'!J4046=\"Yes\",'TSA Input'!J4046=\"Contingent\"),'TSA Input'!F4046,\"\"))","v":""},"","Required","Required"]
["",null,{"$f":"IF('TSA Input'!J4047=\"\",\"\",IF(OR('TSA Input'!J4047=\"Yes\",'TSA Input'!J4047=\"Contingent\"),'TSA Input'!B4047,\"Ineligible\"))","v":""},{"$f":"IF('TSA Input'!J4047=\"\",\"\",IF(OR('TSA Input'!J4047=\"Yes\",'TSA Input'!J4047=\"Contingent\"),'TSA Input'!I4047,\"\"))","v":""},{"$f":"IF('TSA Input'!J4047=\"\",\"\",IF(OR('TSA Input'!J4047=\"Yes\",'TSA Input'!J4047=\"Contingent\"),'TSA Input'!C4047,\"\"))","v":""},{"$f":"IF('TSA Input'!J4047=\"\",\"\",IF(OR('TSA Input'!J4047=\"Yes\",'TSA Input'!J4047=\"Contingent\"),'TSA Input'!D4047,\"\"))","v":""},{"$f":"IF('TSA Input'!J4047=\"\",\"\",IF(OR('TSA Input'!J4047=\"Yes\",'TSA Input'!J4047=\"Contingent\"),'TSA Input'!G4047,\"\"))","v":""},{"$f":"IF('TSA Input'!J4047=\"\",\"\",IF(OR('TSA Input'!J4047=\"Yes\",'TSA Input'!J4047=\"Contingent\"),'TSA Input'!F4047,\"\"))","v":""},"",{"$f":"IF('TSA Input'!J4047=\"\",\"\",IF(OR('TSA Input'!J4047=\"Yes\",'TSA Input'!J4047=\"Contingent\"),'TSA Input'!D4047,\"\"))","v":""},{"$f":"IF('TSA Input'!J4047=\"\",\"\",IF(OR('TSA Input'!J4047=\"Yes\",'TSA Input'!J4047=\"Contingent\"),'TSA Input'!G4047,\"\"))","v":""},{"$f":"IF('TSA Input'!J4047=\"\",\"\",IF(OR('TSA Input'!J4047=\"Yes\",'TSA Input'!J4047=\"Contingent\"),'TSA Input'!F4047,\"\"))","v":""},"","Required","Required"]
["",null,{"$f":"IF('TSA Input'!J4048=\"\",\"\",IF(OR('TSA Input'!J4048=\"Yes\",'TSA Input'!J4048=\"Contingent\"),'TSA Input'!B4048,\"Ineligible\"))","v":""},{"$f":"IF('TSA Input'!J4048=\"\",\"\",IF(OR('TSA Input'!J4048=\"Yes\",'TSA Input'!J4048=\"Contingent\"),'TSA Input'!I4048,\"\"))","v":""},{"$f":"IF('TSA Input'!J4048=\"\",\"\",IF(OR('TSA Input'!J4048=\"Yes\",'TSA Input'!J4048=\"Contingent\"),'TSA Input'!C4048,\"\"))","v":""},{"$f":"IF('TSA Input'!J4048=\"\",\"\",IF(OR('TSA Input'!J4048=\"Yes\",'TSA Input'!J4048=\"Contingent\"),'TSA Input'!D4048,\"\"))","v":""},{"$f":"IF('TSA Input'!J4048=\"\",\"\",IF(OR('TSA Input'!J4048=\"Yes\",'TSA Input'!J4048=\"Contingent\"),'TSA Input'!G4048,\"\"))","v":""},{"$f":"IF('TSA Input'!J4048=\"\",\"\",IF(OR('TSA Input'!J4048=\"Yes\",'TSA Input'!J4048=\"Contingent\"),'TSA Input'!F4048,\"\"))","v":""},"",{"$f":"IF('TSA Input'!J4048=\"\",\"\",IF(OR('TSA Input'!J4048=\"Yes\",'TSA Input'!J4048=\"Contingent\"),'TSA Input'!D4048,\"\"))","v":""},{"$f":"IF('TSA Input'!J4048=\"\",\"\",IF(OR('TSA Input'!J4048=\"Yes\",'TSA Input'!J4048=\"Contingent\"),'TSA Input'!G4048,\"\"))","v":""},{"$f":"IF('TSA Input'!J4048=\"\",\"\",IF(OR('TSA Input'!J4048=\"Yes\",'TSA Input'!J4048=\"Contingent\"),'TSA Input'!F4048,\"\"))","v":""},"","Required","Required"]
["",null,{"$f":"IF('TSA Input'!J4049=\"\",\"\",IF(OR('TSA Input'!J4049=\"Yes\",'TSA Input'!J4049=\"Contingent\"),'TSA Input'!B4049,\"Ineligible\"))","v":""},{"$f":"IF('TSA Input'!J4049=\"\",\"\",IF(OR('TSA Input'!J4049=\"Yes\",'TSA Input'!J4049=\"Contingent\"),'TSA Input'!I4049,\"\"))","v":""},{"$f":"IF('TSA Input'!J4049=\"\",\"\",IF(OR('TSA Input'!J4049=\"Yes\",'TSA Input'!J4049=\"Contingent\"),'TSA Input'!C4049,\"\"))","v":""},{"$f":"IF('TSA Input'!J4049=\"\",\"\",IF(OR('TSA Input'!J4049=\"Yes\",'TSA Input'!J4049=\"Contingent\"),'TSA Input'!D4049,\"\"))","v":""},{"$f":"IF('TSA Input'!J4049=\"\",\"\",IF(OR('TSA Input'!J4049=\"Yes\",'TSA Input'!J4049=\"Contingent\"),'TSA Input'!G4049,\"\"))","v":""},{"$f":"IF('TSA Input'!J4049=\"\",\"\",IF(OR('TSA Input'!J4049=\"Yes\",'TSA Input'!J4049=\"Contingent\"),'TSA Input'!F4049,\"\"))","v":""},"",{"$f":"IF('TSA Input'!J4049=\"\",\"\",IF(OR('TSA Input'!J4049=\"Yes\",'TSA Input'!J4049=\"Contingent\"),'TSA Input'!D4049,\"\"))","v":""},{"$f":"IF('TSA Input'!J4049=\"\",\"\",IF(OR('TSA Input'!J4049=\"Yes\",'TSA Input'!J4049=\"Contingent\"),'TSA Input'!G4049,\"\"))","v":""},{"$f":"IF('TSA Input'!J4049=\"\",\"\",IF(OR('TSA Input'!J4049=\"Yes\",'TSA Input'!J4049=\"Contingent\"),'TSA Input'!F4049,\"\"))","v":""},"","Required","Required"]
["",null,{"$f":"IF('TSA Input'!J4050=\"\",\"\",IF(OR('TSA Input'!J4050=\"Yes\",'TSA Input'!J4050=\"Contingent\"),'TSA Input'!B4050,\"Ineligible\"))","v":""},{"$f":"IF('TSA Input'!J4050=\"\",\"\",IF(OR('TSA Input'!J4050=\"Yes\",'TSA Input'!J4050=\"Contingent\"),'TSA Input'!I4050,\"\"))","v":""},{"$f":"IF('TSA Input'!J4050=\"\",\"\",IF(OR('TSA Input'!J4050=\"Yes\",'TSA Input'!J4050=\"Contingent\"),'TSA Input'!C4050,\"\"))","v":""},{"$f":"IF('TSA Input'!J4050=\"\",\"\",IF(OR('TSA Input'!J4050=\"Yes\",'TSA Input'!J4050=\"Contingent\"),'TSA Input'!D4050,\"\"))","v":""},{"$f":"IF('TSA Input'!J4050=\"\",\"\",IF(OR('TSA Input'!J4050=\"Yes\",'TSA Input'!J4050=\"Contingent\"),'TSA Input'!G4050,\"\"))","v":""},{"$f":"IF('TSA Input'!J4050=\"\",\"\",IF(OR('TSA Input'!J4050=\"Yes\",'TSA Input'!J4050=\"Contingent\"),'TSA Input'!F4050,\"\"))","v":""},"",{"$f":"IF('TSA Input'!J4050=\"\",\"\",IF(OR('TSA Input'!J4050=\"Yes\",'TSA Input'!J4050=\"Contingent\"),'TSA Input'!D4050,\"\"))","v":""},{"$f":"IF('TSA Input'!J4050=\"\",\"\",IF(OR('TSA Input'!J4050=\"Yes\",'TSA Input'!J4050=\"Contingent\"),'TSA Input'!G4050,\"\"))","v":""},{"$f":"IF('TSA Input'!J4050=\"\",\"\",IF(OR('TSA Input'!J4050=\"Yes\",'TSA Input'!J4050=\"Contingent\"),'TSA Input'!F4050,\"\"))","v":""},"","Required","Required"]
["",null,{"$f":"IF('TSA Input'!J4051=\"\",\"\",IF(OR('TSA Input'!J4051=\"Yes\",'TSA Input'!J4051=\"Contingent\"),'TSA Input'!B4051,\"Ineligible\"))","v":""},{"$f":"IF('TSA Input'!J4051=\"\",\"\",IF(OR('TSA Input'!J4051=\"Yes\",'TSA Input'!J4051=\"Contingent\"),'TSA Input'!I4051,\"\"))","v":""},{"$f":"IF('TSA Input'!J4051=\"\",\"\",IF(OR('TSA Input'!J4051=\"Yes\",'TSA Input'!J4051=\"Contingent\"),'TSA Input'!C4051,\"\"))","v":""},{"$f":"IF('TSA Input'!J4051=\"\",\"\",IF(OR('TSA Input'!J4051=\"Yes\",'TSA Input'!J4051=\"Contingent\"),'TSA Input'!D4051,\"\"))","v":""},{"$f":"IF('TSA Input'!J4051=\"\",\"\",IF(OR('TSA Input'!J4051=\"Yes\",'TSA Input'!J4051=\"Contingent\"),'TSA Input'!G4051,\"\"))","v":""},{"$f":"IF('TSA Input'!J4051=\"\",\"\",IF(OR('TSA Input'!J4051=\"Yes\",'TSA Input'!J4051=\"Contingent\"),'TSA Input'!F4051,\"\"))","v":""},"",{"$f":"IF('TSA Input'!J4051=\"\",\"\",IF(OR('TSA Input'!J4051=\"Yes\",'TSA Input'!J4051=\"Contingent\"),'TSA Input'!D4051,\"\"))","v":""},{"$f":"IF('TSA Input'!J4051=\"\",\"\",IF(OR('TSA Input'!J4051=\"Yes\",'TSA Input'!J4051=\"Contingent\"),'TSA Input'!G4051,\"\"))","v":""},{"$f":"IF('TSA Input'!J4051=\"\",\"\",IF(OR('TSA Input'!J4051=\"Yes\",'TSA Input'!J4051=\"Contingent\"),'TSA Input'!F4051,\"\"))","v":""},"","Required","Required"]
["",null,{"$f":"IF('TSA Input'!J4052=\"\",\"\",IF(OR('TSA Input'!J4052=\"Yes\",'TSA Input'!J4052=\"Contingent\"),'TSA Input'!B4052,\"Ineligible\"))","v":""},{"$f":"IF('TSA Input'!J4052=\"\",\"\",IF(OR('TSA Input'!J4052=\"Yes\",'TSA Input'!J4052=\"Contingent\"),'TSA Input'!I4052,\"\"))","v":""},{"$f":"IF('TSA Input'!J4052=\"\",\"\",IF(OR('TSA Input'!J4052=\"Yes\",'TSA Input'!J4052=\"Contingent\"),'TSA Input'!C4052,\"\"))","v":""},{"$f":"IF('TSA Input'!J4052=\"\",\"\",IF(OR('TSA Input'!J4052=\"Yes\",'TSA Input'!J4052=\"Contingent\"),'TSA Input'!D4052,\"\"))","v":""},{"$f":"IF('TSA Input'!J4052=\"\",\"\",IF(OR('TSA Input'!J4052=\"Yes\",'TSA Input'!J4052=\"Contingent\"),'TSA Input'!G4052,\"\"))","v":""},{"$f":"IF('TSA Input'!J4052=\"\",\"\",IF(OR('TSA Input'!J4052=\"Yes\",'TSA Input'!J4052=\"Contingent\"),'TSA Input'!F4052,\"\"))","v":""},"",{"$f":"IF('TSA Input'!J4052=\"\",\"\",IF(OR('TSA Input'!J4052=\"Yes\",'TSA Input'!J4052=\"Contingent\"),'TSA Input'!D4052,\"\"))","v":""},{"$f":"IF('TSA Input'!J4052=\"\",\"\",IF(OR('TSA Input'!J4052=\"Yes\",'TSA Input'!J4052=\"Contingent\"),'TSA Input'!G4052,\"\"))","v":""},{"$f":"IF('TSA Input'!J4052=\"\",\"\",IF(OR('TSA Input'!J4052=\"Yes\",'TSA Input'!J4052=\"Contingent\"),'TSA Input'!F4052,\"\"))","v":""},"","Required","Required"]
["",null,{"$f":"IF('TSA Input'!J4053=\"\",\"\",IF(OR('TSA Input'!J4053=\"Yes\",'TSA Input'!J4053=\"Contingent\"),'TSA Input'!B4053,\"Ineligible\"))","v":""},{"$f":"IF('TSA Input'!J4053=\"\",\"\",IF(OR('TSA Input'!J4053=\"Yes\",'TSA Input'!J4053=\"Contingent\"),'TSA Input'!I4053,\"\"))","v":""},{"$f":"IF('TSA Input'!J4053=\"\",\"\",IF(OR('TSA Input'!J4053=\"Yes\",'TSA Input'!J4053=\"Contingent\"),'TSA Input'!C4053,\"\"))","v":""},{"$f":"IF('TSA Input'!J4053=\"\",\"\",IF(OR('TSA Input'!J4053=\"Yes\",'TSA Input'!J4053=\"Contingent\"),'TSA Input'!D4053,\"\"))","v":""},{"$f":"IF('TSA Input'!J4053=\"\",\"\",IF(OR('TSA Input'!J4053=\"Yes\",'TSA Input'!J4053=\"Contingent\"),'TSA Input'!G4053,\"\"))","v":""},{"$f":"IF('TSA Input'!J4053=\"\",\"\",IF(OR('TSA Input'!J4053=\"Yes\",'TSA Input'!J4053=\"Contingent\"),'TSA Input'!F4053,\"\"))","v":""},"",{"$f":"IF('TSA Input'!J4053=\"\",\"\",IF(OR('TSA Input'!J4053=\"Yes\",'TSA Input'!J4053=\"Contingent\"),'TSA Input'!D4053,\"\"))","v":""},{"$f":"IF('TSA Input'!J4053=\"\",\"\",IF(OR('TSA Input'!J4053=\"Yes\",'TSA Input'!J4053=\"Contingent\"),'TSA Input'!G4053,\"\"))","v":""},{"$f":"IF('TSA Input'!J4053=\"\",\"\",IF(OR('TSA Input'!J4053=\"Yes\",'TSA Input'!J4053=\"Contingent\"),'TSA Input'!F4053,\"\"))","v":""},"","Required","Required"]
["",null,{"$f":"IF('TSA Input'!J4054=\"\",\"\",IF(OR('TSA Input'!J4054=\"Yes\",'TSA Input'!J4054=\"Contingent\"),'TSA Input'!B4054,\"Ineligible\"))","v":""},{"$f":"IF('TSA Input'!J4054=\"\",\"\",IF(OR('TSA Input'!J4054=\"Yes\",'TSA Input'!J4054=\"Contingent\"),'TSA Input'!I4054,\"\"))","v":""},{"$f":"IF('TSA Input'!J4054=\"\",\"\",IF(OR('TSA Input'!J4054=\"Yes\",'TSA Input'!J4054=\"Contingent\"),'TSA Input'!C4054,\"\"))","v":""},{"$f":"IF('TSA Input'!J4054=\"\",\"\",IF(OR('TSA Input'!J4054=\"Yes\",'TSA Input'!J4054=\"Contingent\"),'TSA Input'!D4054,\"\"))","v":""},{"$f":"IF('TSA Input'!J4054=\"\",\"\",IF(OR('TSA Input'!J4054=\"Yes\",'TSA Input'!J4054=\"Contingent\"),'TSA Input'!G4054,\"\"))","v":""},{"$f":"IF('TSA Input'!J4054=\"\",\"\",IF(OR('TSA Input'!J4054=\"Yes\",'TSA Input'!J4054=\"Contingent\"),'TSA Input'!F4054,\"\"))","v":""},"",{"$f":"IF('TSA Input'!J4054=\"\",\"\",IF(OR('TSA Input'!J4054=\"Yes\",'TSA Input'!J4054=\"Contingent\"),'TSA Input'!D4054,\"\"))","v":""},{"$f":"IF('TSA Input'!J4054=\"\",\"\",IF(OR('TSA Input'!J4054=\"Yes\",'TSA Input'!J4054=\"Contingent\"),'TSA Input'!G4054,\"\"))","v":""},{"$f":"IF('TSA Input'!J4054=\"\",\"\",IF(OR('TSA Input'!J4054=\"Yes\",'TSA Input'!J4054=\"Contingent\"),'TSA Input'!F4054,\"\"))","v":""},"","Required","Required"]
["",null,{"$f":"IF('TSA Input'!J4055=\"\",\"\",IF(OR('TSA Input'!J4055=\"Yes\",'TSA Input'!J4055=\"Contingent\"),'TSA Input'!B4055,\"Ineligible\"))","v":""},{"$f":"IF('TSA Input'!J4055=\"\",\"\",IF(OR('TSA Input'!J4055=\"Yes\",'TSA Input'!J4055=\"Contingent\"),'TSA Input'!I4055,\"\"))","v":""},{"$f":"IF('TSA Input'!J4055=\"\",\"\",IF(OR('TSA Input'!J4055=\"Yes\",'TSA Input'!J4055=\"Contingent\"),'TSA Input'!C4055,\"\"))","v":""},{"$f":"IF('TSA Input'!J4055=\"\",\"\",IF(OR('TSA Input'!J4055=\"Yes\",'TSA Input'!J4055=\"Contingent\"),'TSA Input'!D4055,\"\"))","v":""},{"$f":"IF('TSA Input'!J4055=\"\",\"\",IF(OR('TSA Input'!J4055=\"Yes\",'TSA Input'!J4055=\"Contingent\"),'TSA Input'!G4055,\"\"))","v":""},{"$f":"IF('TSA Input'!J4055=\"\",\"\",IF(OR('TSA Input'!J4055=\"Yes\",'TSA Input'!J4055=\"Contingent\"),'TSA Input'!F4055,\"\"))","v":""},"",{"$f":"IF('TSA Input'!J4055=\"\",\"\",IF(OR('TSA Input'!J4055=\"Yes\",'TSA Input'!J4055=\"Contingent\"),'TSA Input'!D4055,\"\"))","v":""},{"$f":"IF('TSA Input'!J4055=\"\",\"\",IF(OR('TSA Input'!J4055=\"Yes\",'TSA Input'!J4055=\"Contingent\"),'TSA Input'!G4055,\"\"))","v":""},{"$f":"IF('TSA Input'!J4055=\"\",\"\",IF(OR('TSA Input'!J4055=\"Yes\",'TSA Input'!J4055=\"Contingent\"),'TSA Input'!F4055,\"\"))","v":""},"","Required","Required"]
["",null,{"$f":"IF('TSA Input'!J4056=\"\",\"\",IF(OR('TSA Input'!J4056=\"Yes\",'TSA Input'!J4056=\"Contingent\"),'TSA Input'!B4056,\"Ineligible\"))","v":""},{"$f":"IF('TSA Input'!J4056=\"\",\"\",IF(OR('TSA Input'!J4056=\"Yes\",'TSA Input'!J4056=\"Contingent\"),'TSA Input'!I4056,\"\"))","v":""},{"$f":"IF('TSA Input'!J4056=\"\",\"\",IF(OR('TSA Input'!J4056=\"Yes\",'TSA Input'!J4056=\"Contingent\"),'TSA Input'!C4056,\"\"))","v":""},{"$f":"IF('TSA Input'!J4056=\"\",\"\",IF(OR('TSA Input'!J4056=\"Yes\",'TSA Input'!J4056=\"Contingent\"),'TSA Input'!D4056,\"\"))","v":""},{"$f":"IF('TSA Input'!J4056=\"\",\"\",IF(OR('TSA Input'!J4056=\"Yes\",'TSA Input'!J4056=\"Contingent\"),'TSA Input'!G4056,\"\"))","v":""},{"$f":"IF('TSA Input'!J4056=\"\",\"\",IF(OR('TSA Input'!J4056=\"Yes\",'TSA Input'!J4056=\"Contingent\"),'TSA Input'!F4056,\"\"))","v":""},"",{"$f":"IF('TSA Input'!J4056=\"\",\"\",IF(OR('TSA Input'!J4056=\"Yes\",'TSA Input'!J4056=\"Contingent\"),'TSA Input'!D4056,\"\"))","v":""},{"$f":"IF('TSA Input'!J4056=\"\",\"\",IF(OR('TSA Input'!J4056=\"Yes\",'TSA Input'!J4056=\"Contingent\"),'TSA Input'!G4056,\"\"))","v":""},{"$f":"IF('TSA Input'!J4056=\"\",\"\",IF(OR('TSA Input'!J4056=\"Yes\",'TSA Input'!J4056=\"Contingent\"),'TSA Input'!F4056,\"\"))","v":""},"","Required","Required"]
["",null,{"$f":"IF('TSA Input'!J4057=\"\",\"\",IF(OR('TSA Input'!J4057=\"Yes\",'TSA Input'!J4057=\"Contingent\"),'TSA Input'!B4057,\"Ineligible\"))","v":""},{"$f":"IF('TSA Input'!J4057=\"\",\"\",IF(OR('TSA Input'!J4057=\"Yes\",'TSA Input'!J4057=\"Contingent\"),'TSA Input'!I4057,\"\"))","v":""},{"$f":"IF('TSA Input'!J4057=\"\",\"\",IF(OR('TSA Input'!J4057=\"Yes\",'TSA Input'!J4057=\"Contingent\"),'TSA Input'!C4057,\"\"))","v":""},{"$f":"IF('TSA Input'!J4057=\"\",\"\",IF(OR('TSA Input'!J4057=\"Yes\",'TSA Input'!J4057=\"Contingent\"),'TSA Input'!D4057,\"\"))","v":""},{"$f":"IF('TSA Input'!J4057=\"\",\"\",IF(OR('TSA Input'!J4057=\"Yes\",'TSA Input'!J4057=\"Contingent\"),'TSA Input'!G4057,\"\"))","v":""},{"$f":"IF('TSA Input'!J4057=\"\",\"\",IF(OR('TSA Input'!J4057=\"Yes\",'TSA Input'!J4057=\"Contingent\"),'TSA Input'!F4057,\"\"))","v":""},"",{"$f":"IF('TSA Input'!J4057=\"\",\"\",IF(OR('TSA Input'!J4057=\"Yes\",'TSA Input'!J4057=\"Contingent\"),'TSA Input'!D4057,\"\"))","v":""},{"$f":"IF('TSA Input'!J4057=\"\",\"\",IF(OR('TSA Input'!J4057=\"Yes\",'TSA Input'!J4057=\"Contingent\"),'TSA Input'!G4057,\"\"))","v":""},{"$f":"IF('TSA Input'!J4057=\"\",\"\",IF(OR('TSA Input'!J4057=\"Yes\",'TSA Input'!J4057=\"Contingent\"),'TSA Input'!F4057,\"\"))","v":""},"","Required","Required"]
["",null,{"$f":"IF('TSA Input'!J4058=\"\",\"\",IF(OR('TSA Input'!J4058=\"Yes\",'TSA Input'!J4058=\"Contingent\"),'TSA Input'!B4058,\"Ineligible\"))","v":""},{"$f":"IF('TSA Input'!J4058=\"\",\"\",IF(OR('TSA Input'!J4058=\"Yes\",'TSA Input'!J4058=\"Contingent\"),'TSA Input'!I4058,\"\"))","v":""},{"$f":"IF('TSA Input'!J4058=\"\",\"\",IF(OR('TSA Input'!J4058=\"Yes\",'TSA Input'!J4058=\"Contingent\"),'TSA Input'!C4058,\"\"))","v":""},{"$f":"IF('TSA Input'!J4058=\"\",\"\",IF(OR('TSA Input'!J4058=\"Yes\",'TSA Input'!J4058=\"Contingent\"),'TSA Input'!D4058,\"\"))","v":""},{"$f":"IF('TSA Input'!J4058=\"\",\"\",IF(OR('TSA Input'!J4058=\"Yes\",'TSA Input'!J4058=\"Contingent\"),'TSA Input'!G4058,\"\"))","v":""},{"$f":"IF('TSA Input'!J4058=\"\",\"\",IF(OR('TSA Input'!J4058=\"Yes\",'TSA Input'!J4058=\"Contingent\"),'TSA Input'!F4058,\"\"))","v":""},"",{"$f":"IF('TSA Input'!J4058=\"\",\"\",IF(OR('TSA Input'!J4058=\"Yes\",'TSA Input'!J4058=\"Contingent\"),'TSA Input'!D4058,\"\"))","v":""},{"$f":"IF('TSA Input'!J4058=\"\",\"\",IF(OR('TSA Input'!J4058=\"Yes\",'TSA Input'!J4058=\"Contingent\"),'TSA Input'!G4058,\"\"))","v":""},{"$f":"IF('TSA Input'!J4058=\"\",\"\",IF(OR('TSA Input'!J4058=\"Yes\",'TSA Input'!J4058=\"Contingent\"),'TSA Input'!F4058,\"\"))","v":""},"","Required","Required"]
["",null,{"$f":"IF('TSA Input'!J4059=\"\",\"\",IF(OR('TSA Input'!J4059=\"Yes\",'TSA Input'!J4059=\"Contingent\"),'TSA Input'!B4059,\"Ineligible\"))","v":""},{"$f":"IF('TSA Input'!J4059=\"\",\"\",IF(OR('TSA Input'!J4059=\"Yes\",'TSA Input'!J4059=\"Contingent\"),'TSA Input'!I4059,\"\"))","v":""},{"$f":"IF('TSA Input'!J4059=\"\",\"\",IF(OR('TSA Input'!J4059=\"Yes\",'TSA Input'!J4059=\"Contingent\"),'TSA Input'!C4059,\"\"))","v":""},{"$f":"IF('TSA Input'!J4059=\"\",\"\",IF(OR('TSA Input'!J4059=\"Yes\",'TSA Input'!J4059=\"Contingent\"),'TSA Input'!D4059,\"\"))","v":""},{"$f":"IF('TSA Input'!J4059=\"\",\"\",IF(OR('TSA Input'!J4059=\"Yes\",'TSA Input'!J4059=\"Contingent\"),'TSA Input'!G4059,\"\"))","v":""},{"$f":"IF('TSA Input'!J4059=\"\",\"\",IF(OR('TSA Input'!J4059=\"Yes\",'TSA Input'!J4059=\"Contingent\"),'TSA Input'!F4059,\"\"))","v":""},"",{"$f":"IF('TSA Input'!J4059=\"\",\"\",IF(OR('TSA Input'!J4059=\"Yes\",'TSA Input'!J4059=\"Contingent\"),'TSA Input'!D4059,\"\"))","v":""},{"$f":"IF('TSA Input'!J4059=\"\",\"\",IF(OR('TSA Input'!J4059=\"Yes\",'TSA Input'!J4059=\"Contingent\"),'TSA Input'!G4059,\"\"))","v":""},{"$f":"IF('TSA Input'!J4059=\"\",\"\",IF(OR('TSA Input'!J4059=\"Yes\",'TSA Input'!J4059=\"Contingent\"),'TSA Input'!F4059,\"\"))","v":""},"","Required","Required"]
["",null,{"$f":"IF('TSA Input'!J4060=\"\",\"\",IF(OR('TSA Input'!J4060=\"Yes\",'TSA Input'!J4060=\"Contingent\"),'TSA Input'!B4060,\"Ineligible\"))","v":""},{"$f":"IF('TSA Input'!J4060=\"\",\"\",IF(OR('TSA Input'!J4060=\"Yes\",'TSA Input'!J4060=\"Contingent\"),'TSA Input'!I4060,\"\"))","v":""},{"$f":"IF('TSA Input'!J4060=\"\",\"\",IF(OR('TSA Input'!J4060=\"Yes\",'TSA Input'!J4060=\"Contingent\"),'TSA Input'!C4060,\"\"))","v":""},{"$f":"IF('TSA Input'!J4060=\"\",\"\",IF(OR('TSA Input'!J4060=\"Yes\",'TSA Input'!J4060=\"Contingent\"),'TSA Input'!D4060,\"\"))","v":""},{"$f":"IF('TSA Input'!J4060=\"\",\"\",IF(OR('TSA Input'!J4060=\"Yes\",'TSA Input'!J4060=\"Contingent\"),'TSA Input'!G4060,\"\"))","v":""},{"$f":"IF('TSA Input'!J4060=\"\",\"\",IF(OR('TSA Input'!J4060=\"Yes\",'TSA Input'!J4060=\"Contingent\"),'TSA Input'!F4060,\"\"))","v":""},"",{"$f":"IF('TSA Input'!J4060=\"\",\"\",IF(OR('TSA Input'!J4060=\"Yes\",'TSA Input'!J4060=\"Contingent\"),'TSA Input'!D4060,\"\"))","v":""},{"$f":"IF('TSA Input'!J4060=\"\",\"\",IF(OR('TSA Input'!J4060=\"Yes\",'TSA Input'!J4060=\"Contingent\"),'TSA Input'!G4060,\"\"))","v":""},{"$f":"IF('TSA Input'!J4060=\"\",\"\",IF(OR('TSA Input'!J4060=\"Yes\",'TSA Input'!J4060=\"Contingent\"),'TSA Input'!F4060,\"\"))","v":""},"","Required","Required"]
["",null,{"$f":"IF('TSA Input'!J4061=\"\",\"\",IF(OR('TSA Input'!J4061=\"Yes\",'TSA Input'!J4061=\"Contingent\"),'TSA Input'!B4061,\"Ineligible\"))","v":""},{"$f":"IF('TSA Input'!J4061=\"\",\"\",IF(OR('TSA Input'!J4061=\"Yes\",'TSA Input'!J4061=\"Contingent\"),'TSA Input'!I4061,\"\"))","v":""},{"$f":"IF('TSA Input'!J4061=\"\",\"\",IF(OR('TSA Input'!J4061=\"Yes\",'TSA Input'!J4061=\"Contingent\"),'TSA Input'!C4061,\"\"))","v":""},{"$f":"IF('TSA Input'!J4061=\"\",\"\",IF(OR('TSA Input'!J4061=\"Yes\",'TSA Input'!J4061=\"Contingent\"),'TSA Input'!D4061,\"\"))","v":""},{"$f":"IF('TSA Input'!J4061=\"\",\"\",IF(OR('TSA Input'!J4061=\"Yes\",'TSA Input'!J4061=\"Contingent\"),'TSA Input'!G4061,\"\"))","v":""},{"$f":"IF('TSA Input'!J4061=\"\",\"\",IF(OR('TSA Input'!J4061=\"Yes\",'TSA Input'!J4061=\"Contingent\"),'TSA Input'!F4061,\"\"))","v":""},"",{"$f":"IF('TSA Input'!J4061=\"\",\"\",IF(OR('TSA Input'!J4061=\"Yes\",'TSA Input'!J4061=\"Contingent\"),'TSA Input'!D4061,\"\"))","v":""},{"$f":"IF('TSA Input'!J4061=\"\",\"\",IF(OR('TSA Input'!J4061=\"Yes\",'TSA Input'!J4061=\"Contingent\"),'TSA Input'!G4061,\"\"))","v":""},{"$f":"IF('TSA Input'!J4061=\"\",\"\",IF(OR('TSA Input'!J4061=\"Yes\",'TSA Input'!J4061=\"Contingent\"),'TSA Input'!F4061,\"\"))","v":""},"","Required","Required"]
["",null,{"$f":"IF('TSA Input'!J4062=\"\",\"\",IF(OR('TSA Input'!J4062=\"Yes\",'TSA Input'!J4062=\"Contingent\"),'TSA Input'!B4062,\"Ineligible\"))","v":""},{"$f":"IF('TSA Input'!J4062=\"\",\"\",IF(OR('TSA Input'!J4062=\"Yes\",'TSA Input'!J4062=\"Contingent\"),'TSA Input'!I4062,\"\"))","v":""},{"$f":"IF('TSA Input'!J4062=\"\",\"\",IF(OR('TSA Input'!J4062=\"Yes\",'TSA Input'!J4062=\"Contingent\"),'TSA Input'!C4062,\"\"))","v":""},{"$f":"IF('TSA Input'!J4062=\"\",\"\",IF(OR('TSA Input'!J4062=\"Yes\",'TSA Input'!J4062=\"Contingent\"),'TSA Input'!D4062,\"\"))","v":""},{"$f":"IF('TSA Input'!J4062=\"\",\"\",IF(OR('TSA Input'!J4062=\"Yes\",'TSA Input'!J4062=\"Contingent\"),'TSA Input'!G4062,\"\"))","v":""},{"$f":"IF('TSA Input'!J4062=\"\",\"\",IF(OR('TSA Input'!J4062=\"Yes\",'TSA Input'!J4062=\"Contingent\"),'TSA Input'!F4062,\"\"))","v":""},"",{"$f":"IF('TSA Input'!J4062=\"\",\"\",IF(OR('TSA Input'!J4062=\"Yes\",'TSA Input'!J4062=\"Contingent\"),'TSA Input'!D4062,\"\"))","v":""},{"$f":"IF('TSA Input'!J4062=\"\",\"\",IF(OR('TSA Input'!J4062=\"Yes\",'TSA Input'!J4062=\"Contingent\"),'TSA Input'!G4062,\"\"))","v":""},{"$f":"IF('TSA Input'!J4062=\"\",\"\",IF(OR('TSA Input'!J4062=\"Yes\",'TSA Input'!J4062=\"Contingent\"),'TSA Input'!F4062,\"\"))","v":""},"","Required","Required"]
["",null,{"$f":"IF('TSA Input'!J4063=\"\",\"\",IF(OR('TSA Input'!J4063=\"Yes\",'TSA Input'!J4063=\"Contingent\"),'TSA Input'!B4063,\"Ineligible\"))","v":""},{"$f":"IF('TSA Input'!J4063=\"\",\"\",IF(OR('TSA Input'!J4063=\"Yes\",'TSA Input'!J4063=\"Contingent\"),'TSA Input'!I4063,\"\"))","v":""},{"$f":"IF('TSA Input'!J4063=\"\",\"\",IF(OR('TSA Input'!J4063=\"Yes\",'TSA Input'!J4063=\"Contingent\"),'TSA Input'!C4063,\"\"))","v":""},{"$f":"IF('TSA Input'!J4063=\"\",\"\",IF(OR('TSA Input'!J4063=\"Yes\",'TSA Input'!J4063=\"Contingent\"),'TSA Input'!D4063,\"\"))","v":""},{"$f":"IF('TSA Input'!J4063=\"\",\"\",IF(OR('TSA Input'!J4063=\"Yes\",'TSA Input'!J4063=\"Contingent\"),'TSA Input'!G4063,\"\"))","v":""},{"$f":"IF('TSA Input'!J4063=\"\",\"\",IF(OR('TSA Input'!J4063=\"Yes\",'TSA Input'!J4063=\"Contingent\"),'TSA Input'!F4063,\"\"))","v":""},"",{"$f":"IF('TSA Input'!J4063=\"\",\"\",IF(OR('TSA Input'!J4063=\"Yes\",'TSA Input'!J4063=\"Contingent\"),'TSA Input'!D4063,\"\"))","v":""},{"$f":"IF('TSA Input'!J4063=\"\",\"\",IF(OR('TSA Input'!J4063=\"Yes\",'TSA Input'!J4063=\"Contingent\"),'TSA Input'!G4063,\"\"))","v":""},{"$f":"IF('TSA Input'!J4063=\"\",\"\",IF(OR('TSA Input'!J4063=\"Yes\",'TSA Input'!J4063=\"Contingent\"),'TSA Input'!F4063,\"\"))","v":""},"","Required","Required"]
["",null,{"$f":"IF('TSA Input'!J4064=\"\",\"\",IF(OR('TSA Input'!J4064=\"Yes\",'TSA Input'!J4064=\"Contingent\"),'TSA Input'!B4064,\"Ineligible\"))","v":""},{"$f":"IF('TSA Input'!J4064=\"\",\"\",IF(OR('TSA Input'!J4064=\"Yes\",'TSA Input'!J4064=\"Contingent\"),'TSA Input'!I4064,\"\"))","v":""},{"$f":"IF('TSA Input'!J4064=\"\",\"\",IF(OR('TSA Input'!J4064=\"Yes\",'TSA Input'!J4064=\"Contingent\"),'TSA Input'!C4064,\"\"))","v":""},{"$f":"IF('TSA Input'!J4064=\"\",\"\",IF(OR('TSA Input'!J4064=\"Yes\",'TSA Input'!J4064=\"Contingent\"),'TSA Input'!D4064,\"\"))","v":""},{"$f":"IF('TSA Input'!J4064=\"\",\"\",IF(OR('TSA Input'!J4064=\"Yes\",'TSA Input'!J4064=\"Contingent\"),'TSA Input'!G4064,\"\"))","v":""},{"$f":"IF('TSA Input'!J4064=\"\",\"\",IF(OR('TSA Input'!J4064=\"Yes\",'TSA Input'!J4064=\"Contingent\"),'TSA Input'!F4064,\"\"))","v":""},"",{"$f":"IF('TSA Input'!J4064=\"\",\"\",IF(OR('TSA Input'!J4064=\"Yes\",'TSA Input'!J4064=\"Contingent\"),'TSA Input'!D4064,\"\"))","v":""},{"$f":"IF('TSA Input'!J4064=\"\",\"\",IF(OR('TSA Input'!J4064=\"Yes\",'TSA Input'!J4064=\"Contingent\"),'TSA Input'!G4064,\"\"))","v":""},{"$f":"IF('TSA Input'!J4064=\"\",\"\",IF(OR('TSA Input'!J4064=\"Yes\",'TSA Input'!J4064=\"Contingent\"),'TSA Input'!F4064,\"\"))","v":""},"","Required","Required"]
["",null,{"$f":"IF('TSA Input'!J4065=\"\",\"\",IF(OR('TSA Input'!J4065=\"Yes\",'TSA Input'!J4065=\"Contingent\"),'TSA Input'!B4065,\"Ineligible\"))","v":""},{"$f":"IF('TSA Input'!J4065=\"\",\"\",IF(OR('TSA Input'!J4065=\"Yes\",'TSA Input'!J4065=\"Contingent\"),'TSA Input'!I4065,\"\"))","v":""},{"$f":"IF('TSA Input'!J4065=\"\",\"\",IF(OR('TSA Input'!J4065=\"Yes\",'TSA Input'!J4065=\"Contingent\"),'TSA Input'!C4065,\"\"))","v":""},{"$f":"IF('TSA Input'!J4065=\"\",\"\",IF(OR('TSA Input'!J4065=\"Yes\",'TSA Input'!J4065=\"Contingent\"),'TSA Input'!D4065,\"\"))","v":""},{"$f":"IF('TSA Input'!J4065=\"\",\"\",IF(OR('TSA Input'!J4065=\"Yes\",'TSA Input'!J4065=\"Contingent\"),'TSA Input'!G4065,\"\"))","v":""},{"$f":"IF('TSA Input'!J4065=\"\",\"\",IF(OR('TSA Input'!J4065=\"Yes\",'TSA Input'!J4065=\"Contingent\"),'TSA Input'!F4065,\"\"))","v":""},"",{"$f":"IF('TSA Input'!J4065=\"\",\"\",IF(OR('TSA Input'!J4065=\"Yes\",'TSA Input'!J4065=\"Contingent\"),'TSA Input'!D4065,\"\"))","v":""},{"$f":"IF('TSA Input'!J4065=\"\",\"\",IF(OR('TSA Input'!J4065=\"Yes\",'TSA Input'!J4065=\"Contingent\"),'TSA Input'!G4065,\"\"))","v":""},{"$f":"IF('TSA Input'!J4065=\"\",\"\",IF(OR('TSA Input'!J4065=\"Yes\",'TSA Input'!J4065=\"Contingent\"),'TSA Input'!F4065,\"\"))","v":""},"","Required","Required"]
["",null,{"$f":"IF('TSA Input'!J4066=\"\",\"\",IF(OR('TSA Input'!J4066=\"Yes\",'TSA Input'!J4066=\"Contingent\"),'TSA Input'!B4066,\"Ineligible\"))","v":""},{"$f":"IF('TSA Input'!J4066=\"\",\"\",IF(OR('TSA Input'!J4066=\"Yes\",'TSA Input'!J4066=\"Contingent\"),'TSA Input'!I4066,\"\"))","v":""},{"$f":"IF('TSA Input'!J4066=\"\",\"\",IF(OR('TSA Input'!J4066=\"Yes\",'TSA Input'!J4066=\"Contingent\"),'TSA Input'!C4066,\"\"))","v":""},{"$f":"IF('TSA Input'!J4066=\"\",\"\",IF(OR('TSA Input'!J4066=\"Yes\",'TSA Input'!J4066=\"Contingent\"),'TSA Input'!D4066,\"\"))","v":""},{"$f":"IF('TSA Input'!J4066=\"\",\"\",IF(OR('TSA Input'!J4066=\"Yes\",'TSA Input'!J4066=\"Contingent\"),'TSA Input'!G4066,\"\"))","v":""},{"$f":"IF('TSA Input'!J4066=\"\",\"\",IF(OR('TSA Input'!J4066=\"Yes\",'TSA Input'!J4066=\"Contingent\"),'TSA Input'!F4066,\"\"))","v":""},"",{"$f":"IF('TSA Input'!J4066=\"\",\"\",IF(OR('TSA Input'!J4066=\"Yes\",'TSA Input'!J4066=\"Contingent\"),'TSA Input'!D4066,\"\"))","v":""},{"$f":"IF('TSA Input'!J4066=\"\",\"\",IF(OR('TSA Input'!J4066=\"Yes\",'TSA Input'!J4066=\"Contingent\"),'TSA Input'!G4066,\"\"))","v":""},{"$f":"IF('TSA Input'!J4066=\"\",\"\",IF(OR('TSA Input'!J4066=\"Yes\",'TSA Input'!J4066=\"Contingent\"),'TSA Input'!F4066,\"\"))","v":""},"","Required","Required"]
["",null,{"$f":"IF('TSA Input'!J4067=\"\",\"\",IF(OR('TSA Input'!J4067=\"Yes\",'TSA Input'!J4067=\"Contingent\"),'TSA Input'!B4067,\"Ineligible\"))","v":""},{"$f":"IF('TSA Input'!J4067=\"\",\"\",IF(OR('TSA Input'!J4067=\"Yes\",'TSA Input'!J4067=\"Contingent\"),'TSA Input'!I4067,\"\"))","v":""},{"$f":"IF('TSA Input'!J4067=\"\",\"\",IF(OR('TSA Input'!J4067=\"Yes\",'TSA Input'!J4067=\"Contingent\"),'TSA Input'!C4067,\"\"))","v":""},{"$f":"IF('TSA Input'!J4067=\"\",\"\",IF(OR('TSA Input'!J4067=\"Yes\",'TSA Input'!J4067=\"Contingent\"),'TSA Input'!D4067,\"\"))","v":""},{"$f":"IF('TSA Input'!J4067=\"\",\"\",IF(OR('TSA Input'!J4067=\"Yes\",'TSA Input'!J4067=\"Contingent\"),'TSA Input'!G4067,\"\"))","v":""},{"$f":"IF('TSA Input'!J4067=\"\",\"\",IF(OR('TSA Input'!J4067=\"Yes\",'TSA Input'!J4067=\"Contingent\"),'TSA Input'!F4067,\"\"))","v":""},"",{"$f":"IF('TSA Input'!J4067=\"\",\"\",IF(OR('TSA Input'!J4067=\"Yes\",'TSA Input'!J4067=\"Contingent\"),'TSA Input'!D4067,\"\"))","v":""},{"$f":"IF('TSA Input'!J4067=\"\",\"\",IF(OR('TSA Input'!J4067=\"Yes\",'TSA Input'!J4067=\"Contingent\"),'TSA Input'!G4067,\"\"))","v":""},{"$f":"IF('TSA Input'!J4067=\"\",\"\",IF(OR('TSA Input'!J4067=\"Yes\",'TSA Input'!J4067=\"Contingent\"),'TSA Input'!F4067,\"\"))","v":""},"","Required","Required"]
["",null,{"$f":"IF('TSA Input'!J4068=\"\",\"\",IF(OR('TSA Input'!J4068=\"Yes\",'TSA Input'!J4068=\"Contingent\"),'TSA Input'!B4068,\"Ineligible\"))","v":""},{"$f":"IF('TSA Input'!J4068=\"\",\"\",IF(OR('TSA Input'!J4068=\"Yes\",'TSA Input'!J4068=\"Contingent\"),'TSA Input'!I4068,\"\"))","v":""},{"$f":"IF('TSA Input'!J4068=\"\",\"\",IF(OR('TSA Input'!J4068=\"Yes\",'TSA Input'!J4068=\"Contingent\"),'TSA Input'!C4068,\"\"))","v":""},{"$f":"IF('TSA Input'!J4068=\"\",\"\",IF(OR('TSA Input'!J4068=\"Yes\",'TSA Input'!J4068=\"Contingent\"),'TSA Input'!D4068,\"\"))","v":""},{"$f":"IF('TSA Input'!J4068=\"\",\"\",IF(OR('TSA Input'!J4068=\"Yes\",'TSA Input'!J4068=\"Contingent\"),'TSA Input'!G4068,\"\"))","v":""},{"$f":"IF('TSA Input'!J4068=\"\",\"\",IF(OR('TSA Input'!J4068=\"Yes\",'TSA Input'!J4068=\"Contingent\"),'TSA Input'!F4068,\"\"))","v":""},"",{"$f":"IF('TSA Input'!J4068=\"\",\"\",IF(OR('TSA Input'!J4068=\"Yes\",'TSA Input'!J4068=\"Contingent\"),'TSA Input'!D4068,\"\"))","v":""},{"$f":"IF('TSA Input'!J4068=\"\",\"\",IF(OR('TSA Input'!J4068=\"Yes\",'TSA Input'!J4068=\"Contingent\"),'TSA Input'!G4068,\"\"))","v":""},{"$f":"IF('TSA Input'!J4068=\"\",\"\",IF(OR('TSA Input'!J4068=\"Yes\",'TSA Input'!J4068=\"Contingent\"),'TSA Input'!F4068,\"\"))","v":""},"","Required","Required"]
["",null,{"$f":"IF('TSA Input'!J4069=\"\",\"\",IF(OR('TSA Input'!J4069=\"Yes\",'TSA Input'!J4069=\"Contingent\"),'TSA Input'!B4069,\"Ineligible\"))","v":""},{"$f":"IF('TSA Input'!J4069=\"\",\"\",IF(OR('TSA Input'!J4069=\"Yes\",'TSA Input'!J4069=\"Contingent\"),'TSA Input'!I4069,\"\"))","v":""},{"$f":"IF('TSA Input'!J4069=\"\",\"\",IF(OR('TSA Input'!J4069=\"Yes\",'TSA Input'!J4069=\"Contingent\"),'TSA Input'!C4069,\"\"))","v":""},{"$f":"IF('TSA Input'!J4069=\"\",\"\",IF(OR('TSA Input'!J4069=\"Yes\",'TSA Input'!J4069=\"Contingent\"),'TSA Input'!D4069,\"\"))","v":""},{"$f":"IF('TSA Input'!J4069=\"\",\"\",IF(OR('TSA Input'!J4069=\"Yes\",'TSA Input'!J4069=\"Contingent\"),'TSA Input'!G4069,\"\"))","v":""},{"$f":"IF('TSA Input'!J4069=\"\",\"\",IF(OR('TSA Input'!J4069=\"Yes\",'TSA Input'!J4069=\"Contingent\"),'TSA Input'!F4069,\"\"))","v":""},"",{"$f":"IF('TSA Input'!J4069=\"\",\"\",IF(OR('TSA Input'!J4069=\"Yes\",'TSA Input'!J4069=\"Contingent\"),'TSA Input'!D4069,\"\"))","v":""},{"$f":"IF('TSA Input'!J4069=\"\",\"\",IF(OR('TSA Input'!J4069=\"Yes\",'TSA Input'!J4069=\"Contingent\"),'TSA Input'!G4069,\"\"))","v":""},{"$f":"IF('TSA Input'!J4069=\"\",\"\",IF(OR('TSA Input'!J4069=\"Yes\",'TSA Input'!J4069=\"Contingent\"),'TSA Input'!F4069,\"\"))","v":""},"","Required","Required"]
["",null,{"$f":"IF('TSA Input'!J4070=\"\",\"\",IF(OR('TSA Input'!J4070=\"Yes\",'TSA Input'!J4070=\"Contingent\"),'TSA Input'!B4070,\"Ineligible\"))","v":""},{"$f":"IF('TSA Input'!J4070=\"\",\"\",IF(OR('TSA Input'!J4070=\"Yes\",'TSA Input'!J4070=\"Contingent\"),'TSA Input'!I4070,\"\"))","v":""},{"$f":"IF('TSA Input'!J4070=\"\",\"\",IF(OR('TSA Input'!J4070=\"Yes\",'TSA Input'!J4070=\"Contingent\"),'TSA Input'!C4070,\"\"))","v":""},{"$f":"IF('TSA Input'!J4070=\"\",\"\",IF(OR('TSA Input'!J4070=\"Yes\",'TSA Input'!J4070=\"Contingent\"),'TSA Input'!D4070,\"\"))","v":""},{"$f":"IF('TSA Input'!J4070=\"\",\"\",IF(OR('TSA Input'!J4070=\"Yes\",'TSA Input'!J4070=\"Contingent\"),'TSA Input'!G4070,\"\"))","v":""},{"$f":"IF('TSA Input'!J4070=\"\",\"\",IF(OR('TSA Input'!J4070=\"Yes\",'TSA Input'!J4070=\"Contingent\"),'TSA Input'!F4070,\"\"))","v":""},"",{"$f":"IF('TSA Input'!J4070=\"\",\"\",IF(OR('TSA Input'!J4070=\"Yes\",'TSA Input'!J4070=\"Contingent\"),'TSA Input'!D4070,\"\"))","v":""},{"$f":"IF('TSA Input'!J4070=\"\",\"\",IF(OR('TSA Input'!J4070=\"Yes\",'TSA Input'!J4070=\"Contingent\"),'TSA Input'!G4070,\"\"))","v":""},{"$f":"IF('TSA Input'!J4070=\"\",\"\",IF(OR('TSA Input'!J4070=\"Yes\",'TSA Input'!J4070=\"Contingent\"),'TSA Input'!F4070,\"\"))","v":""},"","Required","Required"]
["",null,{"$f":"IF('TSA Input'!J4071=\"\",\"\",IF(OR('TSA Input'!J4071=\"Yes\",'TSA Input'!J4071=\"Contingent\"),'TSA Input'!B4071,\"Ineligible\"))","v":""},{"$f":"IF('TSA Input'!J4071=\"\",\"\",IF(OR('TSA Input'!J4071=\"Yes\",'TSA Input'!J4071=\"Contingent\"),'TSA Input'!I4071,\"\"))","v":""},{"$f":"IF('TSA Input'!J4071=\"\",\"\",IF(OR('TSA Input'!J4071=\"Yes\",'TSA Input'!J4071=\"Contingent\"),'TSA Input'!C4071,\"\"))","v":""},{"$f":"IF('TSA Input'!J4071=\"\",\"\",IF(OR('TSA Input'!J4071=\"Yes\",'TSA Input'!J4071=\"Contingent\"),'TSA Input'!D4071,\"\"))","v":""},{"$f":"IF('TSA Input'!J4071=\"\",\"\",IF(OR('TSA Input'!J4071=\"Yes\",'TSA Input'!J4071=\"Contingent\"),'TSA Input'!G4071,\"\"))","v":""},{"$f":"IF('TSA Input'!J4071=\"\",\"\",IF(OR('TSA Input'!J4071=\"Yes\",'TSA Input'!J4071=\"Contingent\"),'TSA Input'!F4071,\"\"))","v":""},"",{"$f":"IF('TSA Input'!J4071=\"\",\"\",IF(OR('TSA Input'!J4071=\"Yes\",'TSA Input'!J4071=\"Contingent\"),'TSA Input'!D4071,\"\"))","v":""},{"$f":"IF('TSA Input'!J4071=\"\",\"\",IF(OR('TSA Input'!J4071=\"Yes\",'TSA Input'!J4071=\"Contingent\"),'TSA Input'!G4071,\"\"))","v":""},{"$f":"IF('TSA Input'!J4071=\"\",\"\",IF(OR('TSA Input'!J4071=\"Yes\",'TSA Input'!J4071=\"Contingent\"),'TSA Input'!F4071,\"\"))","v":""},"","Required","Required"]
["",null,{"$f":"IF('TSA Input'!J4072=\"\",\"\",IF(OR('TSA Input'!J4072=\"Yes\",'TSA Input'!J4072=\"Contingent\"),'TSA Input'!B4072,\"Ineligible\"))","v":""},{"$f":"IF('TSA Input'!J4072=\"\",\"\",IF(OR('TSA Input'!J4072=\"Yes\",'TSA Input'!J4072=\"Contingent\"),'TSA Input'!I4072,\"\"))","v":""},{"$f":"IF('TSA Input'!J4072=\"\",\"\",IF(OR('TSA Input'!J4072=\"Yes\",'TSA Input'!J4072=\"Contingent\"),'TSA Input'!C4072,\"\"))","v":""},{"$f":"IF('TSA Input'!J4072=\"\",\"\",IF(OR('TSA Input'!J4072=\"Yes\",'TSA Input'!J4072=\"Contingent\"),'TSA Input'!D4072,\"\"))","v":""},{"$f":"IF('TSA Input'!J4072=\"\",\"\",IF(OR('TSA Input'!J4072=\"Yes\",'TSA Input'!J4072=\"Contingent\"),'TSA Input'!G4072,\"\"))","v":""},{"$f":"IF('TSA Input'!J4072=\"\",\"\",IF(OR('TSA Input'!J4072=\"Yes\",'TSA Input'!J4072=\"Contingent\"),'TSA Input'!F4072,\"\"))","v":""},"",{"$f":"IF('TSA Input'!J4072=\"\",\"\",IF(OR('TSA Input'!J4072=\"Yes\",'TSA Input'!J4072=\"Contingent\"),'TSA Input'!D4072,\"\"))","v":""},{"$f":"IF('TSA Input'!J4072=\"\",\"\",IF(OR('TSA Input'!J4072=\"Yes\",'TSA Input'!J4072=\"Contingent\"),'TSA Input'!G4072,\"\"))","v":""},{"$f":"IF('TSA Input'!J4072=\"\",\"\",IF(OR('TSA Input'!J4072=\"Yes\",'TSA Input'!J4072=\"Contingent\"),'TSA Input'!F4072,\"\"))","v":""},"","Required","Required"]
["",null,{"$f":"IF('TSA Input'!J4073=\"\",\"\",IF(OR('TSA Input'!J4073=\"Yes\",'TSA Input'!J4073=\"Contingent\"),'TSA Input'!B4073,\"Ineligible\"))","v":""},{"$f":"IF('TSA Input'!J4073=\"\",\"\",IF(OR('TSA Input'!J4073=\"Yes\",'TSA Input'!J4073=\"Contingent\"),'TSA Input'!I4073,\"\"))","v":""},{"$f":"IF('TSA Input'!J4073=\"\",\"\",IF(OR('TSA Input'!J4073=\"Yes\",'TSA Input'!J4073=\"Contingent\"),'TSA Input'!C4073,\"\"))","v":""},{"$f":"IF('TSA Input'!J4073=\"\",\"\",IF(OR('TSA Input'!J4073=\"Yes\",'TSA Input'!J4073=\"Contingent\"),'TSA Input'!D4073,\"\"))","v":""},{"$f":"IF('TSA Input'!J4073=\"\",\"\",IF(OR('TSA Input'!J4073=\"Yes\",'TSA Input'!J4073=\"Contingent\"),'TSA Input'!G4073,\"\"))","v":""},{"$f":"IF('TSA Input'!J4073=\"\",\"\",IF(OR('TSA Input'!J4073=\"Yes\",'TSA Input'!J4073=\"Contingent\"),'TSA Input'!F4073,\"\"))","v":""},"",{"$f":"IF('TSA Input'!J4073=\"\",\"\",IF(OR('TSA Input'!J4073=\"Yes\",'TSA Input'!J4073=\"Contingent\"),'TSA Input'!D4073,\"\"))","v":""},{"$f":"IF('TSA Input'!J4073=\"\",\"\",IF(OR('TSA Input'!J4073=\"Yes\",'TSA Input'!J4073=\"Contingent\"),'TSA Input'!G4073,\"\"))","v":""},{"$f":"IF('TSA Input'!J4073=\"\",\"\",IF(OR('TSA Input'!J4073=\"Yes\",'TSA Input'!J4073=\"Contingent\"),'TSA Input'!F4073,\"\"))","v":""},"","Required","Required"]
["",null,{"$f":"IF('TSA Input'!J4074=\"\",\"\",IF(OR('TSA Input'!J4074=\"Yes\",'TSA Input'!J4074=\"Contingent\"),'TSA Input'!B4074,\"Ineligible\"))","v":""},{"$f":"IF('TSA Input'!J4074=\"\",\"\",IF(OR('TSA Input'!J4074=\"Yes\",'TSA Input'!J4074=\"Contingent\"),'TSA Input'!I4074,\"\"))","v":""},{"$f":"IF('TSA Input'!J4074=\"\",\"\",IF(OR('TSA Input'!J4074=\"Yes\",'TSA Input'!J4074=\"Contingent\"),'TSA Input'!C4074,\"\"))","v":""},{"$f":"IF('TSA Input'!J4074=\"\",\"\",IF(OR('TSA Input'!J4074=\"Yes\",'TSA Input'!J4074=\"Contingent\"),'TSA Input'!D4074,\"\"))","v":""},{"$f":"IF('TSA Input'!J4074=\"\",\"\",IF(OR('TSA Input'!J4074=\"Yes\",'TSA Input'!J4074=\"Contingent\"),'TSA Input'!G4074,\"\"))","v":""},{"$f":"IF('TSA Input'!J4074=\"\",\"\",IF(OR('TSA Input'!J4074=\"Yes\",'TSA Input'!J4074=\"Contingent\"),'TSA Input'!F4074,\"\"))","v":""},"",{"$f":"IF('TSA Input'!J4074=\"\",\"\",IF(OR('TSA Input'!J4074=\"Yes\",'TSA Input'!J4074=\"Contingent\"),'TSA Input'!D4074,\"\"))","v":""},{"$f":"IF('TSA Input'!J4074=\"\",\"\",IF(OR('TSA Input'!J4074=\"Yes\",'TSA Input'!J4074=\"Contingent\"),'TSA Input'!G4074,\"\"))","v":""},{"$f":"IF('TSA Input'!J4074=\"\",\"\",IF(OR('TSA Input'!J4074=\"Yes\",'TSA Input'!J4074=\"Contingent\"),'TSA Input'!F4074,\"\"))","v":""},"","Required","Required"]
["",null,{"$f":"IF('TSA Input'!J4075=\"\",\"\",IF(OR('TSA Input'!J4075=\"Yes\",'TSA Input'!J4075=\"Contingent\"),'TSA Input'!B4075,\"Ineligible\"))","v":""},{"$f":"IF('TSA Input'!J4075=\"\",\"\",IF(OR('TSA Input'!J4075=\"Yes\",'TSA Input'!J4075=\"Contingent\"),'TSA Input'!I4075,\"\"))","v":""},{"$f":"IF('TSA Input'!J4075=\"\",\"\",IF(OR('TSA Input'!J4075=\"Yes\",'TSA Input'!J4075=\"Contingent\"),'TSA Input'!C4075,\"\"))","v":""},{"$f":"IF('TSA Input'!J4075=\"\",\"\",IF(OR('TSA Input'!J4075=\"Yes\",'TSA Input'!J4075=\"Contingent\"),'TSA Input'!D4075,\"\"))","v":""},{"$f":"IF('TSA Input'!J4075=\"\",\"\",IF(OR('TSA Input'!J4075=\"Yes\",'TSA Input'!J4075=\"Contingent\"),'TSA Input'!G4075,\"\"))","v":""},{"$f":"IF('TSA Input'!J4075=\"\",\"\",IF(OR('TSA Input'!J4075=\"Yes\",'TSA Input'!J4075=\"Contingent\"),'TSA Input'!F4075,\"\"))","v":""},"",{"$f":"IF('TSA Input'!J4075=\"\",\"\",IF(OR('TSA Input'!J4075=\"Yes\",'TSA Input'!J4075=\"Contingent\"),'TSA Input'!D4075,\"\"))","v":""},{"$f":"IF('TSA Input'!J4075=\"\",\"\",IF(OR('TSA Input'!J4075=\"Yes\",'TSA Input'!J4075=\"Contingent\"),'TSA Input'!G4075,\"\"))","v":""},{"$f":"IF('TSA Input'!J4075=\"\",\"\",IF(OR('TSA Input'!J4075=\"Yes\",'TSA Input'!J4075=\"Contingent\"),'TSA Input'!F4075,\"\"))","v":""},"","Required","Required"]
["",null,{"$f":"IF('TSA Input'!J4076=\"\",\"\",IF(OR('TSA Input'!J4076=\"Yes\",'TSA Input'!J4076=\"Contingent\"),'TSA Input'!B4076,\"Ineligible\"))","v":""},{"$f":"IF('TSA Input'!J4076=\"\",\"\",IF(OR('TSA Input'!J4076=\"Yes\",'TSA Input'!J4076=\"Contingent\"),'TSA Input'!I4076,\"\"))","v":""},{"$f":"IF('TSA Input'!J4076=\"\",\"\",IF(OR('TSA Input'!J4076=\"Yes\",'TSA Input'!J4076=\"Contingent\"),'TSA Input'!C4076,\"\"))","v":""},{"$f":"IF('TSA Input'!J4076=\"\",\"\",IF(OR('TSA Input'!J4076=\"Yes\",'TSA Input'!J4076=\"Contingent\"),'TSA Input'!D4076,\"\"))","v":""},{"$f":"IF('TSA Input'!J4076=\"\",\"\",IF(OR('TSA Input'!J4076=\"Yes\",'TSA Input'!J4076=\"Contingent\"),'TSA Input'!G4076,\"\"))","v":""},{"$f":"IF('TSA Input'!J4076=\"\",\"\",IF(OR('TSA Input'!J4076=\"Yes\",'TSA Input'!J4076=\"Contingent\"),'TSA Input'!F4076,\"\"))","v":""},"",{"$f":"IF('TSA Input'!J4076=\"\",\"\",IF(OR('TSA Input'!J4076=\"Yes\",'TSA Input'!J4076=\"Contingent\"),'TSA Input'!D4076,\"\"))","v":""},{"$f":"IF('TSA Input'!J4076=\"\",\"\",IF(OR('TSA Input'!J4076=\"Yes\",'TSA Input'!J4076=\"Contingent\"),'TSA Input'!G4076,\"\"))","v":""},{"$f":"IF('TSA Input'!J4076=\"\",\"\",IF(OR('TSA Input'!J4076=\"Yes\",'TSA Input'!J4076=\"Contingent\"),'TSA Input'!F4076,\"\"))","v":""},"","Required","Required"]
["",null,{"$f":"IF('TSA Input'!J4077=\"\",\"\",IF(OR('TSA Input'!J4077=\"Yes\",'TSA Input'!J4077=\"Contingent\"),'TSA Input'!B4077,\"Ineligible\"))","v":""},{"$f":"IF('TSA Input'!J4077=\"\",\"\",IF(OR('TSA Input'!J4077=\"Yes\",'TSA Input'!J4077=\"Contingent\"),'TSA Input'!I4077,\"\"))","v":""},{"$f":"IF('TSA Input'!J4077=\"\",\"\",IF(OR('TSA Input'!J4077=\"Yes\",'TSA Input'!J4077=\"Contingent\"),'TSA Input'!C4077,\"\"))","v":""},{"$f":"IF('TSA Input'!J4077=\"\",\"\",IF(OR('TSA Input'!J4077=\"Yes\",'TSA Input'!J4077=\"Contingent\"),'TSA Input'!D4077,\"\"))","v":""},{"$f":"IF('TSA Input'!J4077=\"\",\"\",IF(OR('TSA Input'!J4077=\"Yes\",'TSA Input'!J4077=\"Contingent\"),'TSA Input'!G4077,\"\"))","v":""},{"$f":"IF('TSA Input'!J4077=\"\",\"\",IF(OR('TSA Input'!J4077=\"Yes\",'TSA Input'!J4077=\"Contingent\"),'TSA Input'!F4077,\"\"))","v":""},"",{"$f":"IF('TSA Input'!J4077=\"\",\"\",IF(OR('TSA Input'!J4077=\"Yes\",'TSA Input'!J4077=\"Contingent\"),'TSA Input'!D4077,\"\"))","v":""},{"$f":"IF('TSA Input'!J4077=\"\",\"\",IF(OR('TSA Input'!J4077=\"Yes\",'TSA Input'!J4077=\"Contingent\"),'TSA Input'!G4077,\"\"))","v":""},{"$f":"IF('TSA Input'!J4077=\"\",\"\",IF(OR('TSA Input'!J4077=\"Yes\",'TSA Input'!J4077=\"Contingent\"),'TSA Input'!F4077,\"\"))","v":""},"","Required","Required"]
["",null,{"$f":"IF('TSA Input'!J4078=\"\",\"\",IF(OR('TSA Input'!J4078=\"Yes\",'TSA Input'!J4078=\"Contingent\"),'TSA Input'!B4078,\"Ineligible\"))","v":""},{"$f":"IF('TSA Input'!J4078=\"\",\"\",IF(OR('TSA Input'!J4078=\"Yes\",'TSA Input'!J4078=\"Contingent\"),'TSA Input'!I4078,\"\"))","v":""},{"$f":"IF('TSA Input'!J4078=\"\",\"\",IF(OR('TSA Input'!J4078=\"Yes\",'TSA Input'!J4078=\"Contingent\"),'TSA Input'!C4078,\"\"))","v":""},{"$f":"IF('TSA Input'!J4078=\"\",\"\",IF(OR('TSA Input'!J4078=\"Yes\",'TSA Input'!J4078=\"Contingent\"),'TSA Input'!D4078,\"\"))","v":""},{"$f":"IF('TSA Input'!J4078=\"\",\"\",IF(OR('TSA Input'!J4078=\"Yes\",'TSA Input'!J4078=\"Contingent\"),'TSA Input'!G4078,\"\"))","v":""},{"$f":"IF('TSA Input'!J4078=\"\",\"\",IF(OR('TSA Input'!J4078=\"Yes\",'TSA Input'!J4078=\"Contingent\"),'TSA Input'!F4078,\"\"))","v":""},"",{"$f":"IF('TSA Input'!J4078=\"\",\"\",IF(OR('TSA Input'!J4078=\"Yes\",'TSA Input'!J4078=\"Contingent\"),'TSA Input'!D4078,\"\"))","v":""},{"$f":"IF('TSA Input'!J4078=\"\",\"\",IF(OR('TSA Input'!J4078=\"Yes\",'TSA Input'!J4078=\"Contingent\"),'TSA Input'!G4078,\"\"))","v":""},{"$f":"IF('TSA Input'!J4078=\"\",\"\",IF(OR('TSA Input'!J4078=\"Yes\",'TSA Input'!J4078=\"Contingent\"),'TSA Input'!F4078,\"\"))","v":""},"","Required","Required"]
["",null,{"$f":"IF('TSA Input'!J4079=\"\",\"\",IF(OR('TSA Input'!J4079=\"Yes\",'TSA Input'!J4079=\"Contingent\"),'TSA Input'!B4079,\"Ineligible\"))","v":""},{"$f":"IF('TSA Input'!J4079=\"\",\"\",IF(OR('TSA Input'!J4079=\"Yes\",'TSA Input'!J4079=\"Contingent\"),'TSA Input'!I4079,\"\"))","v":""},{"$f":"IF('TSA Input'!J4079=\"\",\"\",IF(OR('TSA Input'!J4079=\"Yes\",'TSA Input'!J4079=\"Contingent\"),'TSA Input'!C4079,\"\"))","v":""},{"$f":"IF('TSA Input'!J4079=\"\",\"\",IF(OR('TSA Input'!J4079=\"Yes\",'TSA Input'!J4079=\"Contingent\"),'TSA Input'!D4079,\"\"))","v":""},{"$f":"IF('TSA Input'!J4079=\"\",\"\",IF(OR('TSA Input'!J4079=\"Yes\",'TSA Input'!J4079=\"Contingent\"),'TSA Input'!G4079,\"\"))","v":""},{"$f":"IF('TSA Input'!J4079=\"\",\"\",IF(OR('TSA Input'!J4079=\"Yes\",'TSA Input'!J4079=\"Contingent\"),'TSA Input'!F4079,\"\"))","v":""},"",{"$f":"IF('TSA Input'!J4079=\"\",\"\",IF(OR('TSA Input'!J4079=\"Yes\",'TSA Input'!J4079=\"Contingent\"),'TSA Input'!D4079,\"\"))","v":""},{"$f":"IF('TSA Input'!J4079=\"\",\"\",IF(OR('TSA Input'!J4079=\"Yes\",'TSA Input'!J4079=\"Contingent\"),'TSA Input'!G4079,\"\"))","v":""},{"$f":"IF('TSA Input'!J4079=\"\",\"\",IF(OR('TSA Input'!J4079=\"Yes\",'TSA Input'!J4079=\"Contingent\"),'TSA Input'!F4079,\"\"))","v":""},"","Required","Required"]
["",null,{"$f":"IF('TSA Input'!J4080=\"\",\"\",IF(OR('TSA Input'!J4080=\"Yes\",'TSA Input'!J4080=\"Contingent\"),'TSA Input'!B4080,\"Ineligible\"))","v":""},{"$f":"IF('TSA Input'!J4080=\"\",\"\",IF(OR('TSA Input'!J4080=\"Yes\",'TSA Input'!J4080=\"Contingent\"),'TSA Input'!I4080,\"\"))","v":""},{"$f":"IF('TSA Input'!J4080=\"\",\"\",IF(OR('TSA Input'!J4080=\"Yes\",'TSA Input'!J4080=\"Contingent\"),'TSA Input'!C4080,\"\"))","v":""},{"$f":"IF('TSA Input'!J4080=\"\",\"\",IF(OR('TSA Input'!J4080=\"Yes\",'TSA Input'!J4080=\"Contingent\"),'TSA Input'!D4080,\"\"))","v":""},{"$f":"IF('TSA Input'!J4080=\"\",\"\",IF(OR('TSA Input'!J4080=\"Yes\",'TSA Input'!J4080=\"Contingent\"),'TSA Input'!G4080,\"\"))","v":""},{"$f":"IF('TSA Input'!J4080=\"\",\"\",IF(OR('TSA Input'!J4080=\"Yes\",'TSA Input'!J4080=\"Contingent\"),'TSA Input'!F4080,\"\"))","v":""},"",{"$f":"IF('TSA Input'!J4080=\"\",\"\",IF(OR('TSA Input'!J4080=\"Yes\",'TSA Input'!J4080=\"Contingent\"),'TSA Input'!D4080,\"\"))","v":""},{"$f":"IF('TSA Input'!J4080=\"\",\"\",IF(OR('TSA Input'!J4080=\"Yes\",'TSA Input'!J4080=\"Contingent\"),'TSA Input'!G4080,\"\"))","v":""},{"$f":"IF('TSA Input'!J4080=\"\",\"\",IF(OR('TSA Input'!J4080=\"Yes\",'TSA Input'!J4080=\"Contingent\"),'TSA Input'!F4080,\"\"))","v":""},"","Required","Required"]
["",null,{"$f":"IF('TSA Input'!J4081=\"\",\"\",IF(OR('TSA Input'!J4081=\"Yes\",'TSA Input'!J4081=\"Contingent\"),'TSA Input'!B4081,\"Ineligible\"))","v":""},{"$f":"IF('TSA Input'!J4081=\"\",\"\",IF(OR('TSA Input'!J4081=\"Yes\",'TSA Input'!J4081=\"Contingent\"),'TSA Input'!I4081,\"\"))","v":""},{"$f":"IF('TSA Input'!J4081=\"\",\"\",IF(OR('TSA Input'!J4081=\"Yes\",'TSA Input'!J4081=\"Contingent\"),'TSA Input'!C4081,\"\"))","v":""},{"$f":"IF('TSA Input'!J4081=\"\",\"\",IF(OR('TSA Input'!J4081=\"Yes\",'TSA Input'!J4081=\"Contingent\"),'TSA Input'!D4081,\"\"))","v":""},{"$f":"IF('TSA Input'!J4081=\"\",\"\",IF(OR('TSA Input'!J4081=\"Yes\",'TSA Input'!J4081=\"Contingent\"),'TSA Input'!G4081,\"\"))","v":""},{"$f":"IF('TSA Input'!J4081=\"\",\"\",IF(OR('TSA Input'!J4081=\"Yes\",'TSA Input'!J4081=\"Contingent\"),'TSA Input'!F4081,\"\"))","v":""},"",{"$f":"IF('TSA Input'!J4081=\"\",\"\",IF(OR('TSA Input'!J4081=\"Yes\",'TSA Input'!J4081=\"Contingent\"),'TSA Input'!D4081,\"\"))","v":""},{"$f":"IF('TSA Input'!J4081=\"\",\"\",IF(OR('TSA Input'!J4081=\"Yes\",'TSA Input'!J4081=\"Contingent\"),'TSA Input'!G4081,\"\"))","v":""},{"$f":"IF('TSA Input'!J4081=\"\",\"\",IF(OR('TSA Input'!J4081=\"Yes\",'TSA Input'!J4081=\"Contingent\"),'TSA Input'!F4081,\"\"))","v":""},"","Required","Required"]
["",null,{"$f":"IF('TSA Input'!J4082=\"\",\"\",IF(OR('TSA Input'!J4082=\"Yes\",'TSA Input'!J4082=\"Contingent\"),'TSA Input'!B4082,\"Ineligible\"))","v":""},{"$f":"IF('TSA Input'!J4082=\"\",\"\",IF(OR('TSA Input'!J4082=\"Yes\",'TSA Input'!J4082=\"Contingent\"),'TSA Input'!I4082,\"\"))","v":""},{"$f":"IF('TSA Input'!J4082=\"\",\"\",IF(OR('TSA Input'!J4082=\"Yes\",'TSA Input'!J4082=\"Contingent\"),'TSA Input'!C4082,\"\"))","v":""},{"$f":"IF('TSA Input'!J4082=\"\",\"\",IF(OR('TSA Input'!J4082=\"Yes\",'TSA Input'!J4082=\"Contingent\"),'TSA Input'!D4082,\"\"))","v":""},{"$f":"IF('TSA Input'!J4082=\"\",\"\",IF(OR('TSA Input'!J4082=\"Yes\",'TSA Input'!J4082=\"Contingent\"),'TSA Input'!G4082,\"\"))","v":""},{"$f":"IF('TSA Input'!J4082=\"\",\"\",IF(OR('TSA Input'!J4082=\"Yes\",'TSA Input'!J4082=\"Contingent\"),'TSA Input'!F4082,\"\"))","v":""},"",{"$f":"IF('TSA Input'!J4082=\"\",\"\",IF(OR('TSA Input'!J4082=\"Yes\",'TSA Input'!J4082=\"Contingent\"),'TSA Input'!D4082,\"\"))","v":""},{"$f":"IF('TSA Input'!J4082=\"\",\"\",IF(OR('TSA Input'!J4082=\"Yes\",'TSA Input'!J4082=\"Contingent\"),'TSA Input'!G4082,\"\"))","v":""},{"$f":"IF('TSA Input'!J4082=\"\",\"\",IF(OR('TSA Input'!J4082=\"Yes\",'TSA Input'!J4082=\"Contingent\"),'TSA Input'!F4082,\"\"))","v":""},"","Required","Required"]
["",null,{"$f":"IF('TSA Input'!J4083=\"\",\"\",IF(OR('TSA Input'!J4083=\"Yes\",'TSA Input'!J4083=\"Contingent\"),'TSA Input'!B4083,\"Ineligible\"))","v":""},{"$f":"IF('TSA Input'!J4083=\"\",\"\",IF(OR('TSA Input'!J4083=\"Yes\",'TSA Input'!J4083=\"Contingent\"),'TSA Input'!I4083,\"\"))","v":""},{"$f":"IF('TSA Input'!J4083=\"\",\"\",IF(OR('TSA Input'!J4083=\"Yes\",'TSA Input'!J4083=\"Contingent\"),'TSA Input'!C4083,\"\"))","v":""},{"$f":"IF('TSA Input'!J4083=\"\",\"\",IF(OR('TSA Input'!J4083=\"Yes\",'TSA Input'!J4083=\"Contingent\"),'TSA Input'!D4083,\"\"))","v":""},{"$f":"IF('TSA Input'!J4083=\"\",\"\",IF(OR('TSA Input'!J4083=\"Yes\",'TSA Input'!J4083=\"Contingent\"),'TSA Input'!G4083,\"\"))","v":""},{"$f":"IF('TSA Input'!J4083=\"\",\"\",IF(OR('TSA Input'!J4083=\"Yes\",'TSA Input'!J4083=\"Contingent\"),'TSA Input'!F4083,\"\"))","v":""},"",{"$f":"IF('TSA Input'!J4083=\"\",\"\",IF(OR('TSA Input'!J4083=\"Yes\",'TSA Input'!J4083=\"Contingent\"),'TSA Input'!D4083,\"\"))","v":""},{"$f":"IF('TSA Input'!J4083=\"\",\"\",IF(OR('TSA Input'!J4083=\"Yes\",'TSA Input'!J4083=\"Contingent\"),'TSA Input'!G4083,\"\"))","v":""},{"$f":"IF('TSA Input'!J4083=\"\",\"\",IF(OR('TSA Input'!J4083=\"Yes\",'TSA Input'!J4083=\"Contingent\"),'TSA Input'!F4083,\"\"))","v":""},"","Required","Required"]
["",null,{"$f":"IF('TSA Input'!J4084=\"\",\"\",IF(OR('TSA Input'!J4084=\"Yes\",'TSA Input'!J4084=\"Contingent\"),'TSA Input'!B4084,\"Ineligible\"))","v":""},{"$f":"IF('TSA Input'!J4084=\"\",\"\",IF(OR('TSA Input'!J4084=\"Yes\",'TSA Input'!J4084=\"Contingent\"),'TSA Input'!I4084,\"\"))","v":""},{"$f":"IF('TSA Input'!J4084=\"\",\"\",IF(OR('TSA Input'!J4084=\"Yes\",'TSA Input'!J4084=\"Contingent\"),'TSA Input'!C4084,\"\"))","v":""},{"$f":"IF('TSA Input'!J4084=\"\",\"\",IF(OR('TSA Input'!J4084=\"Yes\",'TSA Input'!J4084=\"Contingent\"),'TSA Input'!D4084,\"\"))","v":""},{"$f":"IF('TSA Input'!J4084=\"\",\"\",IF(OR('TSA Input'!J4084=\"Yes\",'TSA Input'!J4084=\"Contingent\"),'TSA Input'!G4084,\"\"))","v":""},{"$f":"IF('TSA Input'!J4084=\"\",\"\",IF(OR('TSA Input'!J4084=\"Yes\",'TSA Input'!J4084=\"Contingent\"),'TSA Input'!F4084,\"\"))","v":""},"",{"$f":"IF('TSA Input'!J4084=\"\",\"\",IF(OR('TSA Input'!J4084=\"Yes\",'TSA Input'!J4084=\"Contingent\"),'TSA Input'!D4084,\"\"))","v":""},{"$f":"IF('TSA Input'!J4084=\"\",\"\",IF(OR('TSA Input'!J4084=\"Yes\",'TSA Input'!J4084=\"Contingent\"),'TSA Input'!G4084,\"\"))","v":""},{"$f":"IF('TSA Input'!J4084=\"\",\"\",IF(OR('TSA Input'!J4084=\"Yes\",'TSA Input'!J4084=\"Contingent\"),'TSA Input'!F4084,\"\"))","v":""},"","Required","Required"]
["",null,{"$f":"IF('TSA Input'!J4085=\"\",\"\",IF(OR('TSA Input'!J4085=\"Yes\",'TSA Input'!J4085=\"Contingent\"),'TSA Input'!B4085,\"Ineligible\"))","v":""},{"$f":"IF('TSA Input'!J4085=\"\",\"\",IF(OR('TSA Input'!J4085=\"Yes\",'TSA Input'!J4085=\"Contingent\"),'TSA Input'!I4085,\"\"))","v":""},{"$f":"IF('TSA Input'!J4085=\"\",\"\",IF(OR('TSA Input'!J4085=\"Yes\",'TSA Input'!J4085=\"Contingent\"),'TSA Input'!C4085,\"\"))","v":""},{"$f":"IF('TSA Input'!J4085=\"\",\"\",IF(OR('TSA Input'!J4085=\"Yes\",'TSA Input'!J4085=\"Contingent\"),'TSA Input'!D4085,\"\"))","v":""},{"$f":"IF('TSA Input'!J4085=\"\",\"\",IF(OR('TSA Input'!J4085=\"Yes\",'TSA Input'!J4085=\"Contingent\"),'TSA Input'!G4085,\"\"))","v":""},{"$f":"IF('TSA Input'!J4085=\"\",\"\",IF(OR('TSA Input'!J4085=\"Yes\",'TSA Input'!J4085=\"Contingent\"),'TSA Input'!F4085,\"\"))","v":""},"",{"$f":"IF('TSA Input'!J4085=\"\",\"\",IF(OR('TSA Input'!J4085=\"Yes\",'TSA Input'!J4085=\"Contingent\"),'TSA Input'!D4085,\"\"))","v":""},{"$f":"IF('TSA Input'!J4085=\"\",\"\",IF(OR('TSA Input'!J4085=\"Yes\",'TSA Input'!J4085=\"Contingent\"),'TSA Input'!G4085,\"\"))","v":""},{"$f":"IF('TSA Input'!J4085=\"\",\"\",IF(OR('TSA Input'!J4085=\"Yes\",'TSA Input'!J4085=\"Contingent\"),'TSA Input'!F4085,\"\"))","v":""},"","Required","Required"]
["",null,{"$f":"IF('TSA Input'!J4086=\"\",\"\",IF(OR('TSA Input'!J4086=\"Yes\",'TSA Input'!J4086=\"Contingent\"),'TSA Input'!B4086,\"Ineligible\"))","v":""},{"$f":"IF('TSA Input'!J4086=\"\",\"\",IF(OR('TSA Input'!J4086=\"Yes\",'TSA Input'!J4086=\"Contingent\"),'TSA Input'!I4086,\"\"))","v":""},{"$f":"IF('TSA Input'!J4086=\"\",\"\",IF(OR('TSA Input'!J4086=\"Yes\",'TSA Input'!J4086=\"Contingent\"),'TSA Input'!C4086,\"\"))","v":""},{"$f":"IF('TSA Input'!J4086=\"\",\"\",IF(OR('TSA Input'!J4086=\"Yes\",'TSA Input'!J4086=\"Contingent\"),'TSA Input'!D4086,\"\"))","v":""},{"$f":"IF('TSA Input'!J4086=\"\",\"\",IF(OR('TSA Input'!J4086=\"Yes\",'TSA Input'!J4086=\"Contingent\"),'TSA Input'!G4086,\"\"))","v":""},{"$f":"IF('TSA Input'!J4086=\"\",\"\",IF(OR('TSA Input'!J4086=\"Yes\",'TSA Input'!J4086=\"Contingent\"),'TSA Input'!F4086,\"\"))","v":""},"",{"$f":"IF('TSA Input'!J4086=\"\",\"\",IF(OR('TSA Input'!J4086=\"Yes\",'TSA Input'!J4086=\"Contingent\"),'TSA Input'!D4086,\"\"))","v":""},{"$f":"IF('TSA Input'!J4086=\"\",\"\",IF(OR('TSA Input'!J4086=\"Yes\",'TSA Input'!J4086=\"Contingent\"),'TSA Input'!G4086,\"\"))","v":""},{"$f":"IF('TSA Input'!J4086=\"\",\"\",IF(OR('TSA Input'!J4086=\"Yes\",'TSA Input'!J4086=\"Contingent\"),'TSA Input'!F4086,\"\"))","v":""},"","Required","Required"]
["",null,{"$f":"IF('TSA Input'!J4087=\"\",\"\",IF(OR('TSA Input'!J4087=\"Yes\",'TSA Input'!J4087=\"Contingent\"),'TSA Input'!B4087,\"Ineligible\"))","v":""},{"$f":"IF('TSA Input'!J4087=\"\",\"\",IF(OR('TSA Input'!J4087=\"Yes\",'TSA Input'!J4087=\"Contingent\"),'TSA Input'!I4087,\"\"))","v":""},{"$f":"IF('TSA Input'!J4087=\"\",\"\",IF(OR('TSA Input'!J4087=\"Yes\",'TSA Input'!J4087=\"Contingent\"),'TSA Input'!C4087,\"\"))","v":""},{"$f":"IF('TSA Input'!J4087=\"\",\"\",IF(OR('TSA Input'!J4087=\"Yes\",'TSA Input'!J4087=\"Contingent\"),'TSA Input'!D4087,\"\"))","v":""},{"$f":"IF('TSA Input'!J4087=\"\",\"\",IF(OR('TSA Input'!J4087=\"Yes\",'TSA Input'!J4087=\"Contingent\"),'TSA Input'!G4087,\"\"))","v":""},{"$f":"IF('TSA Input'!J4087=\"\",\"\",IF(OR('TSA Input'!J4087=\"Yes\",'TSA Input'!J4087=\"Contingent\"),'TSA Input'!F4087,\"\"))","v":""},"",{"$f":"IF('TSA Input'!J4087=\"\",\"\",IF(OR('TSA Input'!J4087=\"Yes\",'TSA Input'!J4087=\"Contingent\"),'TSA Input'!D4087,\"\"))","v":""},{"$f":"IF('TSA Input'!J4087=\"\",\"\",IF(OR('TSA Input'!J4087=\"Yes\",'TSA Input'!J4087=\"Contingent\"),'TSA Input'!G4087,\"\"))","v":""},{"$f":"IF('TSA Input'!J4087=\"\",\"\",IF(OR('TSA Input'!J4087=\"Yes\",'TSA Input'!J4087=\"Contingent\"),'TSA Input'!F4087,\"\"))","v":""},"","Required","Required"]
["",null,{"$f":"IF('TSA Input'!J4088=\"\",\"\",IF(OR('TSA Input'!J4088=\"Yes\",'TSA Input'!J4088=\"Contingent\"),'TSA Input'!B4088,\"Ineligible\"))","v":""},{"$f":"IF('TSA Input'!J4088=\"\",\"\",IF(OR('TSA Input'!J4088=\"Yes\",'TSA Input'!J4088=\"Contingent\"),'TSA Input'!I4088,\"\"))","v":""},{"$f":"IF('TSA Input'!J4088=\"\",\"\",IF(OR('TSA Input'!J4088=\"Yes\",'TSA Input'!J4088=\"Contingent\"),'TSA Input'!C4088,\"\"))","v":""},{"$f":"IF('TSA Input'!J4088=\"\",\"\",IF(OR('TSA Input'!J4088=\"Yes\",'TSA Input'!J4088=\"Contingent\"),'TSA Input'!D4088,\"\"))","v":""},{"$f":"IF('TSA Input'!J4088=\"\",\"\",IF(OR('TSA Input'!J4088=\"Yes\",'TSA Input'!J4088=\"Contingent\"),'TSA Input'!G4088,\"\"))","v":""},{"$f":"IF('TSA Input'!J4088=\"\",\"\",IF(OR('TSA Input'!J4088=\"Yes\",'TSA Input'!J4088=\"Contingent\"),'TSA Input'!F4088,\"\"))","v":""},"",{"$f":"IF('TSA Input'!J4088=\"\",\"\",IF(OR('TSA Input'!J4088=\"Yes\",'TSA Input'!J4088=\"Contingent\"),'TSA Input'!D4088,\"\"))","v":""},{"$f":"IF('TSA Input'!J4088=\"\",\"\",IF(OR('TSA Input'!J4088=\"Yes\",'TSA Input'!J4088=\"Contingent\"),'TSA Input'!G4088,\"\"))","v":""},{"$f":"IF('TSA Input'!J4088=\"\",\"\",IF(OR('TSA Input'!J4088=\"Yes\",'TSA Input'!J4088=\"Contingent\"),'TSA Input'!F4088,\"\"))","v":""},"","Required","Required"]
["",null,{"$f":"IF('TSA Input'!J4089=\"\",\"\",IF(OR('TSA Input'!J4089=\"Yes\",'TSA Input'!J4089=\"Contingent\"),'TSA Input'!B4089,\"Ineligible\"))","v":""},{"$f":"IF('TSA Input'!J4089=\"\",\"\",IF(OR('TSA Input'!J4089=\"Yes\",'TSA Input'!J4089=\"Contingent\"),'TSA Input'!I4089,\"\"))","v":""},{"$f":"IF('TSA Input'!J4089=\"\",\"\",IF(OR('TSA Input'!J4089=\"Yes\",'TSA Input'!J4089=\"Contingent\"),'TSA Input'!C4089,\"\"))","v":""},{"$f":"IF('TSA Input'!J4089=\"\",\"\",IF(OR('TSA Input'!J4089=\"Yes\",'TSA Input'!J4089=\"Contingent\"),'TSA Input'!D4089,\"\"))","v":""},{"$f":"IF('TSA Input'!J4089=\"\",\"\",IF(OR('TSA Input'!J4089=\"Yes\",'TSA Input'!J4089=\"Contingent\"),'TSA Input'!G4089,\"\"))","v":""},{"$f":"IF('TSA Input'!J4089=\"\",\"\",IF(OR('TSA Input'!J4089=\"Yes\",'TSA Input'!J4089=\"Contingent\"),'TSA Input'!F4089,\"\"))","v":""},"",{"$f":"IF('TSA Input'!J4089=\"\",\"\",IF(OR('TSA Input'!J4089=\"Yes\",'TSA Input'!J4089=\"Contingent\"),'TSA Input'!D4089,\"\"))","v":""},{"$f":"IF('TSA Input'!J4089=\"\",\"\",IF(OR('TSA Input'!J4089=\"Yes\",'TSA Input'!J4089=\"Contingent\"),'TSA Input'!G4089,\"\"))","v":""},{"$f":"IF('TSA Input'!J4089=\"\",\"\",IF(OR('TSA Input'!J4089=\"Yes\",'TSA Input'!J4089=\"Contingent\"),'TSA Input'!F4089,\"\"))","v":""},"","Required","Required"]
["",null,{"$f":"IF('TSA Input'!J4090=\"\",\"\",IF(OR('TSA Input'!J4090=\"Yes\",'TSA Input'!J4090=\"Contingent\"),'TSA Input'!B4090,\"Ineligible\"))","v":""},{"$f":"IF('TSA Input'!J4090=\"\",\"\",IF(OR('TSA Input'!J4090=\"Yes\",'TSA Input'!J4090=\"Contingent\"),'TSA Input'!I4090,\"\"))","v":""},{"$f":"IF('TSA Input'!J4090=\"\",\"\",IF(OR('TSA Input'!J4090=\"Yes\",'TSA Input'!J4090=\"Contingent\"),'TSA Input'!C4090,\"\"))","v":""},{"$f":"IF('TSA Input'!J4090=\"\",\"\",IF(OR('TSA Input'!J4090=\"Yes\",'TSA Input'!J4090=\"Contingent\"),'TSA Input'!D4090,\"\"))","v":""},{"$f":"IF('TSA Input'!J4090=\"\",\"\",IF(OR('TSA Input'!J4090=\"Yes\",'TSA Input'!J4090=\"Contingent\"),'TSA Input'!G4090,\"\"))","v":""},{"$f":"IF('TSA Input'!J4090=\"\",\"\",IF(OR('TSA Input'!J4090=\"Yes\",'TSA Input'!J4090=\"Contingent\"),'TSA Input'!F4090,\"\"))","v":""},"",{"$f":"IF('TSA Input'!J4090=\"\",\"\",IF(OR('TSA Input'!J4090=\"Yes\",'TSA Input'!J4090=\"Contingent\"),'TSA Input'!D4090,\"\"))","v":""},{"$f":"IF('TSA Input'!J4090=\"\",\"\",IF(OR('TSA Input'!J4090=\"Yes\",'TSA Input'!J4090=\"Contingent\"),'TSA Input'!G4090,\"\"))","v":""},{"$f":"IF('TSA Input'!J4090=\"\",\"\",IF(OR('TSA Input'!J4090=\"Yes\",'TSA Input'!J4090=\"Contingent\"),'TSA Input'!F4090,\"\"))","v":""},"","Required","Required"]
["",null,{"$f":"IF('TSA Input'!J4091=\"\",\"\",IF(OR('TSA Input'!J4091=\"Yes\",'TSA Input'!J4091=\"Contingent\"),'TSA Input'!B4091,\"Ineligible\"))","v":""},{"$f":"IF('TSA Input'!J4091=\"\",\"\",IF(OR('TSA Input'!J4091=\"Yes\",'TSA Input'!J4091=\"Contingent\"),'TSA Input'!I4091,\"\"))","v":""},{"$f":"IF('TSA Input'!J4091=\"\",\"\",IF(OR('TSA Input'!J4091=\"Yes\",'TSA Input'!J4091=\"Contingent\"),'TSA Input'!C4091,\"\"))","v":""},{"$f":"IF('TSA Input'!J4091=\"\",\"\",IF(OR('TSA Input'!J4091=\"Yes\",'TSA Input'!J4091=\"Contingent\"),'TSA Input'!D4091,\"\"))","v":""},{"$f":"IF('TSA Input'!J4091=\"\",\"\",IF(OR('TSA Input'!J4091=\"Yes\",'TSA Input'!J4091=\"Contingent\"),'TSA Input'!G4091,\"\"))","v":""},{"$f":"IF('TSA Input'!J4091=\"\",\"\",IF(OR('TSA Input'!J4091=\"Yes\",'TSA Input'!J4091=\"Contingent\"),'TSA Input'!F4091,\"\"))","v":""},"",{"$f":"IF('TSA Input'!J4091=\"\",\"\",IF(OR('TSA Input'!J4091=\"Yes\",'TSA Input'!J4091=\"Contingent\"),'TSA Input'!D4091,\"\"))","v":""},{"$f":"IF('TSA Input'!J4091=\"\",\"\",IF(OR('TSA Input'!J4091=\"Yes\",'TSA Input'!J4091=\"Contingent\"),'TSA Input'!G4091,\"\"))","v":""},{"$f":"IF('TSA Input'!J4091=\"\",\"\",IF(OR('TSA Input'!J4091=\"Yes\",'TSA Input'!J4091=\"Contingent\"),'TSA Input'!F4091,\"\"))","v":""},"","Required","Required"]
["",null,{"$f":"IF('TSA Input'!J4092=\"\",\"\",IF(OR('TSA Input'!J4092=\"Yes\",'TSA Input'!J4092=\"Contingent\"),'TSA Input'!B4092,\"Ineligible\"))","v":""},{"$f":"IF('TSA Input'!J4092=\"\",\"\",IF(OR('TSA Input'!J4092=\"Yes\",'TSA Input'!J4092=\"Contingent\"),'TSA Input'!I4092,\"\"))","v":""},{"$f":"IF('TSA Input'!J4092=\"\",\"\",IF(OR('TSA Input'!J4092=\"Yes\",'TSA Input'!J4092=\"Contingent\"),'TSA Input'!C4092,\"\"))","v":""},{"$f":"IF('TSA Input'!J4092=\"\",\"\",IF(OR('TSA Input'!J4092=\"Yes\",'TSA Input'!J4092=\"Contingent\"),'TSA Input'!D4092,\"\"))","v":""},{"$f":"IF('TSA Input'!J4092=\"\",\"\",IF(OR('TSA Input'!J4092=\"Yes\",'TSA Input'!J4092=\"Contingent\"),'TSA Input'!G4092,\"\"))","v":""},{"$f":"IF('TSA Input'!J4092=\"\",\"\",IF(OR('TSA Input'!J4092=\"Yes\",'TSA Input'!J4092=\"Contingent\"),'TSA Input'!F4092,\"\"))","v":""},"",{"$f":"IF('TSA Input'!J4092=\"\",\"\",IF(OR('TSA Input'!J4092=\"Yes\",'TSA Input'!J4092=\"Contingent\"),'TSA Input'!D4092,\"\"))","v":""},{"$f":"IF('TSA Input'!J4092=\"\",\"\",IF(OR('TSA Input'!J4092=\"Yes\",'TSA Input'!J4092=\"Contingent\"),'TSA Input'!G4092,\"\"))","v":""},{"$f":"IF('TSA Input'!J4092=\"\",\"\",IF(OR('TSA Input'!J4092=\"Yes\",'TSA Input'!J4092=\"Contingent\"),'TSA Input'!F4092,\"\"))","v":""},"","Required","Required"]
["",null,{"$f":"IF('TSA Input'!J4093=\"\",\"\",IF(OR('TSA Input'!J4093=\"Yes\",'TSA Input'!J4093=\"Contingent\"),'TSA Input'!B4093,\"Ineligible\"))","v":""},{"$f":"IF('TSA Input'!J4093=\"\",\"\",IF(OR('TSA Input'!J4093=\"Yes\",'TSA Input'!J4093=\"Contingent\"),'TSA Input'!I4093,\"\"))","v":""},{"$f":"IF('TSA Input'!J4093=\"\",\"\",IF(OR('TSA Input'!J4093=\"Yes\",'TSA Input'!J4093=\"Contingent\"),'TSA Input'!C4093,\"\"))","v":""},{"$f":"IF('TSA Input'!J4093=\"\",\"\",IF(OR('TSA Input'!J4093=\"Yes\",'TSA Input'!J4093=\"Contingent\"),'TSA Input'!D4093,\"\"))","v":""},{"$f":"IF('TSA Input'!J4093=\"\",\"\",IF(OR('TSA Input'!J4093=\"Yes\",'TSA Input'!J4093=\"Contingent\"),'TSA Input'!G4093,\"\"))","v":""},{"$f":"IF('TSA Input'!J4093=\"\",\"\",IF(OR('TSA Input'!J4093=\"Yes\",'TSA Input'!J4093=\"Contingent\"),'TSA Input'!F4093,\"\"))","v":""},"",{"$f":"IF('TSA Input'!J4093=\"\",\"\",IF(OR('TSA Input'!J4093=\"Yes\",'TSA Input'!J4093=\"Contingent\"),'TSA Input'!D4093,\"\"))","v":""},{"$f":"IF('TSA Input'!J4093=\"\",\"\",IF(OR('TSA Input'!J4093=\"Yes\",'TSA Input'!J4093=\"Contingent\"),'TSA Input'!G4093,\"\"))","v":""},{"$f":"IF('TSA Input'!J4093=\"\",\"\",IF(OR('TSA Input'!J4093=\"Yes\",'TSA Input'!J4093=\"Contingent\"),'TSA Input'!F4093,\"\"))","v":""},"","Required","Required"]
["",null,{"$f":"IF('TSA Input'!J4094=\"\",\"\",IF(OR('TSA Input'!J4094=\"Yes\",'TSA Input'!J4094=\"Contingent\"),'TSA Input'!B4094,\"Ineligible\"))","v":""},{"$f":"IF('TSA Input'!J4094=\"\",\"\",IF(OR('TSA Input'!J4094=\"Yes\",'TSA Input'!J4094=\"Contingent\"),'TSA Input'!I4094,\"\"))","v":""},{"$f":"IF('TSA Input'!J4094=\"\",\"\",IF(OR('TSA Input'!J4094=\"Yes\",'TSA Input'!J4094=\"Contingent\"),'TSA Input'!C4094,\"\"))","v":""},{"$f":"IF('TSA Input'!J4094=\"\",\"\",IF(OR('TSA Input'!J4094=\"Yes\",'TSA Input'!J4094=\"Contingent\"),'TSA Input'!D4094,\"\"))","v":""},{"$f":"IF('TSA Input'!J4094=\"\",\"\",IF(OR('TSA Input'!J4094=\"Yes\",'TSA Input'!J4094=\"Contingent\"),'TSA Input'!G4094,\"\"))","v":""},{"$f":"IF('TSA Input'!J4094=\"\",\"\",IF(OR('TSA Input'!J4094=\"Yes\",'TSA Input'!J4094=\"Contingent\"),'TSA Input'!F4094,\"\"))","v":""},"",{"$f":"IF('TSA Input'!J4094=\"\",\"\",IF(OR('TSA Input'!J4094=\"Yes\",'TSA Input'!J4094=\"Contingent\"),'TSA Input'!D4094,\"\"))","v":""},{"$f":"IF('TSA Input'!J4094=\"\",\"\",IF(OR('TSA Input'!J4094=\"Yes\",'TSA Input'!J4094=\"Contingent\"),'TSA Input'!G4094,\"\"))","v":""},{"$f":"IF('TSA Input'!J4094=\"\",\"\",IF(OR('TSA Input'!J4094=\"Yes\",'TSA Input'!J4094=\"Contingent\"),'TSA Input'!F4094,\"\"))","v":""},"","Required","Required"]
["",null,{"$f":"IF('TSA Input'!J4095=\"\",\"\",IF(OR('TSA Input'!J4095=\"Yes\",'TSA Input'!J4095=\"Contingent\"),'TSA Input'!B4095,\"Ineligible\"))","v":""},{"$f":"IF('TSA Input'!J4095=\"\",\"\",IF(OR('TSA Input'!J4095=\"Yes\",'TSA Input'!J4095=\"Contingent\"),'TSA Input'!I4095,\"\"))","v":""},{"$f":"IF('TSA Input'!J4095=\"\",\"\",IF(OR('TSA Input'!J4095=\"Yes\",'TSA Input'!J4095=\"Contingent\"),'TSA Input'!C4095,\"\"))","v":""},{"$f":"IF('TSA Input'!J4095=\"\",\"\",IF(OR('TSA Input'!J4095=\"Yes\",'TSA Input'!J4095=\"Contingent\"),'TSA Input'!D4095,\"\"))","v":""},{"$f":"IF('TSA Input'!J4095=\"\",\"\",IF(OR('TSA Input'!J4095=\"Yes\",'TSA Input'!J4095=\"Contingent\"),'TSA Input'!G4095,\"\"))","v":""},{"$f":"IF('TSA Input'!J4095=\"\",\"\",IF(OR('TSA Input'!J4095=\"Yes\",'TSA Input'!J4095=\"Contingent\"),'TSA Input'!F4095,\"\"))","v":""},"",{"$f":"IF('TSA Input'!J4095=\"\",\"\",IF(OR('TSA Input'!J4095=\"Yes\",'TSA Input'!J4095=\"Contingent\"),'TSA Input'!D4095,\"\"))","v":""},{"$f":"IF('TSA Input'!J4095=\"\",\"\",IF(OR('TSA Input'!J4095=\"Yes\",'TSA Input'!J4095=\"Contingent\"),'TSA Input'!G4095,\"\"))","v":""},{"$f":"IF('TSA Input'!J4095=\"\",\"\",IF(OR('TSA Input'!J4095=\"Yes\",'TSA Input'!J4095=\"Contingent\"),'TSA Input'!F4095,\"\"))","v":""},"","Required","Required"]
["",null,{"$f":"IF('TSA Input'!J4096=\"\",\"\",IF(OR('TSA Input'!J4096=\"Yes\",'TSA Input'!J4096=\"Contingent\"),'TSA Input'!B4096,\"Ineligible\"))","v":""},{"$f":"IF('TSA Input'!J4096=\"\",\"\",IF(OR('TSA Input'!J4096=\"Yes\",'TSA Input'!J4096=\"Contingent\"),'TSA Input'!I4096,\"\"))","v":""},{"$f":"IF('TSA Input'!J4096=\"\",\"\",IF(OR('TSA Input'!J4096=\"Yes\",'TSA Input'!J4096=\"Contingent\"),'TSA Input'!C4096,\"\"))","v":""},{"$f":"IF('TSA Input'!J4096=\"\",\"\",IF(OR('TSA Input'!J4096=\"Yes\",'TSA Input'!J4096=\"Contingent\"),'TSA Input'!D4096,\"\"))","v":""},{"$f":"IF('TSA Input'!J4096=\"\",\"\",IF(OR('TSA Input'!J4096=\"Yes\",'TSA Input'!J4096=\"Contingent\"),'TSA Input'!G4096,\"\"))","v":""},{"$f":"IF('TSA Input'!J4096=\"\",\"\",IF(OR('TSA Input'!J4096=\"Yes\",'TSA Input'!J4096=\"Contingent\"),'TSA Input'!F4096,\"\"))","v":""},"",{"$f":"IF('TSA Input'!J4096=\"\",\"\",IF(OR('TSA Input'!J4096=\"Yes\",'TSA Input'!J4096=\"Contingent\"),'TSA Input'!D4096,\"\"))","v":""},{"$f":"IF('TSA Input'!J4096=\"\",\"\",IF(OR('TSA Input'!J4096=\"Yes\",'TSA Input'!J4096=\"Contingent\"),'TSA Input'!G4096,\"\"))","v":""},{"$f":"IF('TSA Input'!J4096=\"\",\"\",IF(OR('TSA Input'!J4096=\"Yes\",'TSA Input'!J4096=\"Contingent\"),'TSA Input'!F4096,\"\"))","v":""},"","Required","Required"]
["",null,{"$f":"IF('TSA Input'!J4097=\"\",\"\",IF(OR('TSA Input'!J4097=\"Yes\",'TSA Input'!J4097=\"Contingent\"),'TSA Input'!B4097,\"Ineligible\"))","v":""},{"$f":"IF('TSA Input'!J4097=\"\",\"\",IF(OR('TSA Input'!J4097=\"Yes\",'TSA Input'!J4097=\"Contingent\"),'TSA Input'!I4097,\"\"))","v":""},{"$f":"IF('TSA Input'!J4097=\"\",\"\",IF(OR('TSA Input'!J4097=\"Yes\",'TSA Input'!J4097=\"Contingent\"),'TSA Input'!C4097,\"\"))","v":""},{"$f":"IF('TSA Input'!J4097=\"\",\"\",IF(OR('TSA Input'!J4097=\"Yes\",'TSA Input'!J4097=\"Contingent\"),'TSA Input'!D4097,\"\"))","v":""},{"$f":"IF('TSA Input'!J4097=\"\",\"\",IF(OR('TSA Input'!J4097=\"Yes\",'TSA Input'!J4097=\"Contingent\"),'TSA Input'!G4097,\"\"))","v":""},{"$f":"IF('TSA Input'!J4097=\"\",\"\",IF(OR('TSA Input'!J4097=\"Yes\",'TSA Input'!J4097=\"Contingent\"),'TSA Input'!F4097,\"\"))","v":""},"",{"$f":"IF('TSA Input'!J4097=\"\",\"\",IF(OR('TSA Input'!J4097=\"Yes\",'TSA Input'!J4097=\"Contingent\"),'TSA Input'!D4097,\"\"))","v":""},{"$f":"IF('TSA Input'!J4097=\"\",\"\",IF(OR('TSA Input'!J4097=\"Yes\",'TSA Input'!J4097=\"Contingent\"),'TSA Input'!G4097,\"\"))","v":""},{"$f":"IF('TSA Input'!J4097=\"\",\"\",IF(OR('TSA Input'!J4097=\"Yes\",'TSA Input'!J4097=\"Contingent\"),'TSA Input'!F4097,\"\"))","v":""},"","Required","Required"]
["",null,{"$f":"IF('TSA Input'!J4098=\"\",\"\",IF(OR('TSA Input'!J4098=\"Yes\",'TSA Input'!J4098=\"Contingent\"),'TSA Input'!B4098,\"Ineligible\"))","v":""},{"$f":"IF('TSA Input'!J4098=\"\",\"\",IF(OR('TSA Input'!J4098=\"Yes\",'TSA Input'!J4098=\"Contingent\"),'TSA Input'!I4098,\"\"))","v":""},{"$f":"IF('TSA Input'!J4098=\"\",\"\",IF(OR('TSA Input'!J4098=\"Yes\",'TSA Input'!J4098=\"Contingent\"),'TSA Input'!C4098,\"\"))","v":""},{"$f":"IF('TSA Input'!J4098=\"\",\"\",IF(OR('TSA Input'!J4098=\"Yes\",'TSA Input'!J4098=\"Contingent\"),'TSA Input'!D4098,\"\"))","v":""},{"$f":"IF('TSA Input'!J4098=\"\",\"\",IF(OR('TSA Input'!J4098=\"Yes\",'TSA Input'!J4098=\"Contingent\"),'TSA Input'!G4098,\"\"))","v":""},{"$f":"IF('TSA Input'!J4098=\"\",\"\",IF(OR('TSA Input'!J4098=\"Yes\",'TSA Input'!J4098=\"Contingent\"),'TSA Input'!F4098,\"\"))","v":""},"",{"$f":"IF('TSA Input'!J4098=\"\",\"\",IF(OR('TSA Input'!J4098=\"Yes\",'TSA Input'!J4098=\"Contingent\"),'TSA Input'!D4098,\"\"))","v":""},{"$f":"IF('TSA Input'!J4098=\"\",\"\",IF(OR('TSA Input'!J4098=\"Yes\",'TSA Input'!J4098=\"Contingent\"),'TSA Input'!G4098,\"\"))","v":""},{"$f":"IF('TSA Input'!J4098=\"\",\"\",IF(OR('TSA Input'!J4098=\"Yes\",'TSA Input'!J4098=\"Contingent\"),'TSA Input'!F4098,\"\"))","v":""},"","Required","Required"]
["",null,{"$f":"IF('TSA Input'!J4099=\"\",\"\",IF(OR('TSA Input'!J4099=\"Yes\",'TSA Input'!J4099=\"Contingent\"),'TSA Input'!B4099,\"Ineligible\"))","v":""},{"$f":"IF('TSA Input'!J4099=\"\",\"\",IF(OR('TSA Input'!J4099=\"Yes\",'TSA Input'!J4099=\"Contingent\"),'TSA Input'!I4099,\"\"))","v":""},{"$f":"IF('TSA Input'!J4099=\"\",\"\",IF(OR('TSA Input'!J4099=\"Yes\",'TSA Input'!J4099=\"Contingent\"),'TSA Input'!C4099,\"\"))","v":""},{"$f":"IF('TSA Input'!J4099=\"\",\"\",IF(OR('TSA Input'!J4099=\"Yes\",'TSA Input'!J4099=\"Contingent\"),'TSA Input'!D4099,\"\"))","v":""},{"$f":"IF('TSA Input'!J4099=\"\",\"\",IF(OR('TSA Input'!J4099=\"Yes\",'TSA Input'!J4099=\"Contingent\"),'TSA Input'!G4099,\"\"))","v":""},{"$f":"IF('TSA Input'!J4099=\"\",\"\",IF(OR('TSA Input'!J4099=\"Yes\",'TSA Input'!J4099=\"Contingent\"),'TSA Input'!F4099,\"\"))","v":""},"",{"$f":"IF('TSA Input'!J4099=\"\",\"\",IF(OR('TSA Input'!J4099=\"Yes\",'TSA Input'!J4099=\"Contingent\"),'TSA Input'!D4099,\"\"))","v":""},{"$f":"IF('TSA Input'!J4099=\"\",\"\",IF(OR('TSA Input'!J4099=\"Yes\",'TSA Input'!J4099=\"Contingent\"),'TSA Input'!G4099,\"\"))","v":""},{"$f":"IF('TSA Input'!J4099=\"\",\"\",IF(OR('TSA Input'!J4099=\"Yes\",'TSA Input'!J4099=\"Contingent\"),'TSA Input'!F4099,\"\"))","v":""},"","Required","Required"]
["",null,{"$f":"IF('TSA Input'!J4100=\"\",\"\",IF(OR('TSA Input'!J4100=\"Yes\",'TSA Input'!J4100=\"Contingent\"),'TSA Input'!B4100,\"Ineligible\"))","v":""},{"$f":"IF('TSA Input'!J4100=\"\",\"\",IF(OR('TSA Input'!J4100=\"Yes\",'TSA Input'!J4100=\"Contingent\"),'TSA Input'!I4100,\"\"))","v":""},{"$f":"IF('TSA Input'!J4100=\"\",\"\",IF(OR('TSA Input'!J4100=\"Yes\",'TSA Input'!J4100=\"Contingent\"),'TSA Input'!C4100,\"\"))","v":""},{"$f":"IF('TSA Input'!J4100=\"\",\"\",IF(OR('TSA Input'!J4100=\"Yes\",'TSA Input'!J4100=\"Contingent\"),'TSA Input'!D4100,\"\"))","v":""},{"$f":"IF('TSA Input'!J4100=\"\",\"\",IF(OR('TSA Input'!J4100=\"Yes\",'TSA Input'!J4100=\"Contingent\"),'TSA Input'!G4100,\"\"))","v":""},{"$f":"IF('TSA Input'!J4100=\"\",\"\",IF(OR('TSA Input'!J4100=\"Yes\",'TSA Input'!J4100=\"Contingent\"),'TSA Input'!F4100,\"\"))","v":""},{"$f":"IF($C4138=\"\",\"\",SUM(F4138:H4138))","v":""},{"$f":"IF('TSA Input'!J4100=\"\",\"\",IF(OR('TSA Input'!J4100=\"Yes\",'TSA Input'!J4100=\"Contingent\"),'TSA Input'!D4100,\"\"))","v":""},{"$f":"IF('TSA Input'!J4100=\"\",\"\",IF(OR('TSA Input'!J4100=\"Yes\",'TSA Input'!J4100=\"Contingent\"),'TSA Input'!G4100,\"\"))","v":""},{"$f":"IF('TSA Input'!J4100=\"\",\"\",IF(OR('TSA Input'!J4100=\"Yes\",'TSA Input'!J4100=\"Contingent\"),'TSA Input'!F4100,\"\"))","v":""},{"$f":"IF($C4138=\"\",\"\",SUM(J4138:L4138))","v":""},"Required","Required"]
["",null,{"$f":"IF('TSA Input'!J4101=\"\",\"\",IF(OR('TSA Input'!J4101=\"Yes\",'TSA Input'!J4101=\"Contingent\"),'TSA Input'!B4101,\"Ineligible\"))","v":""},{"$f":"IF('TSA Input'!J4101=\"\",\"\",IF(OR('TSA Input'!J4101=\"Yes\",'TSA Input'!J4101=\"Contingent\"),'TSA Input'!I4101,\"\"))","v":""},{"$f":"IF('TSA Input'!J4101=\"\",\"\",IF(OR('TSA Input'!J4101=\"Yes\",'TSA Input'!J4101=\"Contingent\"),'TSA Input'!C4101,\"\"))","v":""},{"$f":"IF('TSA Input'!J4101=\"\",\"\",IF(OR('TSA Input'!J4101=\"Yes\",'TSA Input'!J4101=\"Contingent\"),'TSA Input'!D4101,\"\"))","v":""},{"$f":"IF('TSA Input'!J4101=\"\",\"\",IF(OR('TSA Input'!J4101=\"Yes\",'TSA Input'!J4101=\"Contingent\"),'TSA Input'!G4101,\"\"))","v":""},{"$f":"IF('TSA Input'!J4101=\"\",\"\",IF(OR('TSA Input'!J4101=\"Yes\",'TSA Input'!J4101=\"Contingent\"),'TSA Input'!F4101,\"\"))","v":""},"",{"$f":"IF('TSA Input'!J4101=\"\",\"\",IF(OR('TSA Input'!J4101=\"Yes\",'TSA Input'!J4101=\"Contingent\"),'TSA Input'!D4101,\"\"))","v":""},{"$f":"IF('TSA Input'!J4101=\"\",\"\",IF(OR('TSA Input'!J4101=\"Yes\",'TSA Input'!J4101=\"Contingent\"),'TSA Input'!G4101,\"\"))","v":""},{"$f":"IF('TSA Input'!J4101=\"\",\"\",IF(OR('TSA Input'!J4101=\"Yes\",'TSA Input'!J4101=\"Contingent\"),'TSA Input'!F4101,\"\"))","v":""},"","Required","Required"]
["",null,{"$f":"IF('TSA Input'!J4102=\"\",\"\",IF(OR('TSA Input'!J4102=\"Yes\",'TSA Input'!J4102=\"Contingent\"),'TSA Input'!B4102,\"Ineligible\"))","v":""},{"$f":"IF('TSA Input'!J4102=\"\",\"\",IF(OR('TSA Input'!J4102=\"Yes\",'TSA Input'!J4102=\"Contingent\"),'TSA Input'!I4102,\"\"))","v":""},{"$f":"IF('TSA Input'!J4102=\"\",\"\",IF(OR('TSA Input'!J4102=\"Yes\",'TSA Input'!J4102=\"Contingent\"),'TSA Input'!C4102,\"\"))","v":""},{"$f":"IF('TSA Input'!J4102=\"\",\"\",IF(OR('TSA Input'!J4102=\"Yes\",'TSA Input'!J4102=\"Contingent\"),'TSA Input'!D4102,\"\"))","v":""},{"$f":"IF('TSA Input'!J4102=\"\",\"\",IF(OR('TSA Input'!J4102=\"Yes\",'TSA Input'!J4102=\"Contingent\"),'TSA Input'!G4102,\"\"))","v":""},{"$f":"IF('TSA Input'!J4102=\"\",\"\",IF(OR('TSA Input'!J4102=\"Yes\",'TSA Input'!J4102=\"Contingent\"),'TSA Input'!F4102,\"\"))","v":""},"",{"$f":"IF('TSA Input'!J4102=\"\",\"\",IF(OR('TSA Input'!J4102=\"Yes\",'TSA Input'!J4102=\"Contingent\"),'TSA Input'!D4102,\"\"))","v":""},{"$f":"IF('TSA Input'!J4102=\"\",\"\",IF(OR('TSA Input'!J4102=\"Yes\",'TSA Input'!J4102=\"Contingent\"),'TSA Input'!G4102,\"\"))","v":""},{"$f":"IF('TSA Input'!J4102=\"\",\"\",IF(OR('TSA Input'!J4102=\"Yes\",'TSA Input'!J4102=\"Contingent\"),'TSA Input'!F4102,\"\"))","v":""},"","Required","Required"]
["",null,{"$f":"IF('TSA Input'!J4103=\"\",\"\",IF(OR('TSA Input'!J4103=\"Yes\",'TSA Input'!J4103=\"Contingent\"),'TSA Input'!B4103,\"Ineligible\"))","v":""},{"$f":"IF('TSA Input'!J4103=\"\",\"\",IF(OR('TSA Input'!J4103=\"Yes\",'TSA Input'!J4103=\"Contingent\"),'TSA Input'!I4103,\"\"))","v":""},{"$f":"IF('TSA Input'!J4103=\"\",\"\",IF(OR('TSA Input'!J4103=\"Yes\",'TSA Input'!J4103=\"Contingent\"),'TSA Input'!C4103,\"\"))","v":""},{"$f":"IF('TSA Input'!J4103=\"\",\"\",IF(OR('TSA Input'!J4103=\"Yes\",'TSA Input'!J4103=\"Contingent\"),'TSA Input'!D4103,\"\"))","v":""},{"$f":"IF('TSA Input'!J4103=\"\",\"\",IF(OR('TSA Input'!J4103=\"Yes\",'TSA Input'!J4103=\"Contingent\"),'TSA Input'!G4103,\"\"))","v":""},{"$f":"IF('TSA Input'!J4103=\"\",\"\",IF(OR('TSA Input'!J4103=\"Yes\",'TSA Input'!J4103=\"Contingent\"),'TSA Input'!F4103,\"\"))","v":""},"",{"$f":"IF('TSA Input'!J4103=\"\",\"\",IF(OR('TSA Input'!J4103=\"Yes\",'TSA Input'!J4103=\"Contingent\"),'TSA Input'!D4103,\"\"))","v":""},{"$f":"IF('TSA Input'!J4103=\"\",\"\",IF(OR('TSA Input'!J4103=\"Yes\",'TSA Input'!J4103=\"Contingent\"),'TSA Input'!G4103,\"\"))","v":""},{"$f":"IF('TSA Input'!J4103=\"\",\"\",IF(OR('TSA Input'!J4103=\"Yes\",'TSA Input'!J4103=\"Contingent\"),'TSA Input'!F4103,\"\"))","v":""},"","Required","Required"]
["",null,{"$f":"IF('TSA Input'!J4104=\"\",\"\",IF(OR('TSA Input'!J4104=\"Yes\",'TSA Input'!J4104=\"Contingent\"),'TSA Input'!B4104,\"Ineligible\"))","v":""},{"$f":"IF('TSA Input'!J4104=\"\",\"\",IF(OR('TSA Input'!J4104=\"Yes\",'TSA Input'!J4104=\"Contingent\"),'TSA Input'!I4104,\"\"))","v":""},{"$f":"IF('TSA Input'!J4104=\"\",\"\",IF(OR('TSA Input'!J4104=\"Yes\",'TSA Input'!J4104=\"Contingent\"),'TSA Input'!C4104,\"\"))","v":""},{"$f":"IF('TSA Input'!J4104=\"\",\"\",IF(OR('TSA Input'!J4104=\"Yes\",'TSA Input'!J4104=\"Contingent\"),'TSA Input'!D4104,\"\"))","v":""},{"$f":"IF('TSA Input'!J4104=\"\",\"\",IF(OR('TSA Input'!J4104=\"Yes\",'TSA Input'!J4104=\"Contingent\"),'TSA Input'!G4104,\"\"))","v":""},{"$f":"IF('TSA Input'!J4104=\"\",\"\",IF(OR('TSA Input'!J4104=\"Yes\",'TSA Input'!J4104=\"Contingent\"),'TSA Input'!F4104,\"\"))","v":""},"",{"$f":"IF('TSA Input'!J4104=\"\",\"\",IF(OR('TSA Input'!J4104=\"Yes\",'TSA Input'!J4104=\"Contingent\"),'TSA Input'!D4104,\"\"))","v":""},{"$f":"IF('TSA Input'!J4104=\"\",\"\",IF(OR('TSA Input'!J4104=\"Yes\",'TSA Input'!J4104=\"Contingent\"),'TSA Input'!G4104,\"\"))","v":""},{"$f":"IF('TSA Input'!J4104=\"\",\"\",IF(OR('TSA Input'!J4104=\"Yes\",'TSA Input'!J4104=\"Contingent\"),'TSA Input'!F4104,\"\"))","v":""},"","Required","Required"]
["",null,{"$f":"IF('TSA Input'!J4105=\"\",\"\",IF(OR('TSA Input'!J4105=\"Yes\",'TSA Input'!J4105=\"Contingent\"),'TSA Input'!B4105,\"Ineligible\"))","v":""},{"$f":"IF('TSA Input'!J4105=\"\",\"\",IF(OR('TSA Input'!J4105=\"Yes\",'TSA Input'!J4105=\"Contingent\"),'TSA Input'!I4105,\"\"))","v":""},{"$f":"IF('TSA Input'!J4105=\"\",\"\",IF(OR('TSA Input'!J4105=\"Yes\",'TSA Input'!J4105=\"Contingent\"),'TSA Input'!C4105,\"\"))","v":""},{"$f":"IF('TSA Input'!J4105=\"\",\"\",IF(OR('TSA Input'!J4105=\"Yes\",'TSA Input'!J4105=\"Contingent\"),'TSA Input'!D4105,\"\"))","v":""},{"$f":"IF('TSA Input'!J4105=\"\",\"\",IF(OR('TSA Input'!J4105=\"Yes\",'TSA Input'!J4105=\"Contingent\"),'TSA Input'!G4105,\"\"))","v":""},{"$f":"IF('TSA Input'!J4105=\"\",\"\",IF(OR('TSA Input'!J4105=\"Yes\",'TSA Input'!J4105=\"Contingent\"),'TSA Input'!F4105,\"\"))","v":""},"",{"$f":"IF('TSA Input'!J4105=\"\",\"\",IF(OR('TSA Input'!J4105=\"Yes\",'TSA Input'!J4105=\"Contingent\"),'TSA Input'!D4105,\"\"))","v":""},{"$f":"IF('TSA Input'!J4105=\"\",\"\",IF(OR('TSA Input'!J4105=\"Yes\",'TSA Input'!J4105=\"Contingent\"),'TSA Input'!G4105,\"\"))","v":""},{"$f":"IF('TSA Input'!J4105=\"\",\"\",IF(OR('TSA Input'!J4105=\"Yes\",'TSA Input'!J4105=\"Contingent\"),'TSA Input'!F4105,\"\"))","v":""},"","Required","Required"]
["",null,{"$f":"IF('TSA Input'!J4106=\"\",\"\",IF(OR('TSA Input'!J4106=\"Yes\",'TSA Input'!J4106=\"Contingent\"),'TSA Input'!B4106,\"Ineligible\"))","v":""},{"$f":"IF('TSA Input'!J4106=\"\",\"\",IF(OR('TSA Input'!J4106=\"Yes\",'TSA Input'!J4106=\"Contingent\"),'TSA Input'!I4106,\"\"))","v":""},{"$f":"IF('TSA Input'!J4106=\"\",\"\",IF(OR('TSA Input'!J4106=\"Yes\",'TSA Input'!J4106=\"Contingent\"),'TSA Input'!C4106,\"\"))","v":""},{"$f":"IF('TSA Input'!J4106=\"\",\"\",IF(OR('TSA Input'!J4106=\"Yes\",'TSA Input'!J4106=\"Contingent\"),'TSA Input'!D4106,\"\"))","v":""},{"$f":"IF('TSA Input'!J4106=\"\",\"\",IF(OR('TSA Input'!J4106=\"Yes\",'TSA Input'!J4106=\"Contingent\"),'TSA Input'!G4106,\"\"))","v":""},{"$f":"IF('TSA Input'!J4106=\"\",\"\",IF(OR('TSA Input'!J4106=\"Yes\",'TSA Input'!J4106=\"Contingent\"),'TSA Input'!F4106,\"\"))","v":""},"",{"$f":"IF('TSA Input'!J4106=\"\",\"\",IF(OR('TSA Input'!J4106=\"Yes\",'TSA Input'!J4106=\"Contingent\"),'TSA Input'!D4106,\"\"))","v":""},{"$f":"IF('TSA Input'!J4106=\"\",\"\",IF(OR('TSA Input'!J4106=\"Yes\",'TSA Input'!J4106=\"Contingent\"),'TSA Input'!G4106,\"\"))","v":""},{"$f":"IF('TSA Input'!J4106=\"\",\"\",IF(OR('TSA Input'!J4106=\"Yes\",'TSA Input'!J4106=\"Contingent\"),'TSA Input'!F4106,\"\"))","v":""},"","Required","Required"]
["",null,{"$f":"IF('TSA Input'!J4107=\"\",\"\",IF(OR('TSA Input'!J4107=\"Yes\",'TSA Input'!J4107=\"Contingent\"),'TSA Input'!B4107,\"Ineligible\"))","v":""},{"$f":"IF('TSA Input'!J4107=\"\",\"\",IF(OR('TSA Input'!J4107=\"Yes\",'TSA Input'!J4107=\"Contingent\"),'TSA Input'!I4107,\"\"))","v":""},{"$f":"IF('TSA Input'!J4107=\"\",\"\",IF(OR('TSA Input'!J4107=\"Yes\",'TSA Input'!J4107=\"Contingent\"),'TSA Input'!C4107,\"\"))","v":""},{"$f":"IF('TSA Input'!J4107=\"\",\"\",IF(OR('TSA Input'!J4107=\"Yes\",'TSA Input'!J4107=\"Contingent\"),'TSA Input'!D4107,\"\"))","v":""},{"$f":"IF('TSA Input'!J4107=\"\",\"\",IF(OR('TSA Input'!J4107=\"Yes\",'TSA Input'!J4107=\"Contingent\"),'TSA Input'!G4107,\"\"))","v":""},{"$f":"IF('TSA Input'!J4107=\"\",\"\",IF(OR('TSA Input'!J4107=\"Yes\",'TSA Input'!J4107=\"Contingent\"),'TSA Input'!F4107,\"\"))","v":""},"",{"$f":"IF('TSA Input'!J4107=\"\",\"\",IF(OR('TSA Input'!J4107=\"Yes\",'TSA Input'!J4107=\"Contingent\"),'TSA Input'!D4107,\"\"))","v":""},{"$f":"IF('TSA Input'!J4107=\"\",\"\",IF(OR('TSA Input'!J4107=\"Yes\",'TSA Input'!J4107=\"Contingent\"),'TSA Input'!G4107,\"\"))","v":""},{"$f":"IF('TSA Input'!J4107=\"\",\"\",IF(OR('TSA Input'!J4107=\"Yes\",'TSA Input'!J4107=\"Contingent\"),'TSA Input'!F4107,\"\"))","v":""},"","Required","Required"]
["",null,{"$f":"IF('TSA Input'!J4108=\"\",\"\",IF(OR('TSA Input'!J4108=\"Yes\",'TSA Input'!J4108=\"Contingent\"),'TSA Input'!B4108,\"Ineligible\"))","v":""},{"$f":"IF('TSA Input'!J4108=\"\",\"\",IF(OR('TSA Input'!J4108=\"Yes\",'TSA Input'!J4108=\"Contingent\"),'TSA Input'!I4108,\"\"))","v":""},{"$f":"IF('TSA Input'!J4108=\"\",\"\",IF(OR('TSA Input'!J4108=\"Yes\",'TSA Input'!J4108=\"Contingent\"),'TSA Input'!C4108,\"\"))","v":""},{"$f":"IF('TSA Input'!J4108=\"\",\"\",IF(OR('TSA Input'!J4108=\"Yes\",'TSA Input'!J4108=\"Contingent\"),'TSA Input'!D4108,\"\"))","v":""},{"$f":"IF('TSA Input'!J4108=\"\",\"\",IF(OR('TSA Input'!J4108=\"Yes\",'TSA Input'!J4108=\"Contingent\"),'TSA Input'!G4108,\"\"))","v":""},{"$f":"IF('TSA Input'!J4108=\"\",\"\",IF(OR('TSA Input'!J4108=\"Yes\",'TSA Input'!J4108=\"Contingent\"),'TSA Input'!F4108,\"\"))","v":""},"",{"$f":"IF('TSA Input'!J4108=\"\",\"\",IF(OR('TSA Input'!J4108=\"Yes\",'TSA Input'!J4108=\"Contingent\"),'TSA Input'!D4108,\"\"))","v":""},{"$f":"IF('TSA Input'!J4108=\"\",\"\",IF(OR('TSA Input'!J4108=\"Yes\",'TSA Input'!J4108=\"Contingent\"),'TSA Input'!G4108,\"\"))","v":""},{"$f":"IF('TSA Input'!J4108=\"\",\"\",IF(OR('TSA Input'!J4108=\"Yes\",'TSA Input'!J4108=\"Contingent\"),'TSA Input'!F4108,\"\"))","v":""},"","Required","Required"]
["",null,{"$f":"IF('TSA Input'!J4109=\"\",\"\",IF(OR('TSA Input'!J4109=\"Yes\",'TSA Input'!J4109=\"Contingent\"),'TSA Input'!B4109,\"Ineligible\"))","v":""},{"$f":"IF('TSA Input'!J4109=\"\",\"\",IF(OR('TSA Input'!J4109=\"Yes\",'TSA Input'!J4109=\"Contingent\"),'TSA Input'!I4109,\"\"))","v":""},{"$f":"IF('TSA Input'!J4109=\"\",\"\",IF(OR('TSA Input'!J4109=\"Yes\",'TSA Input'!J4109=\"Contingent\"),'TSA Input'!C4109,\"\"))","v":""},{"$f":"IF('TSA Input'!J4109=\"\",\"\",IF(OR('TSA Input'!J4109=\"Yes\",'TSA Input'!J4109=\"Contingent\"),'TSA Input'!D4109,\"\"))","v":""},{"$f":"IF('TSA Input'!J4109=\"\",\"\",IF(OR('TSA Input'!J4109=\"Yes\",'TSA Input'!J4109=\"Contingent\"),'TSA Input'!G4109,\"\"))","v":""},{"$f":"IF('TSA Input'!J4109=\"\",\"\",IF(OR('TSA Input'!J4109=\"Yes\",'TSA Input'!J4109=\"Contingent\"),'TSA Input'!F4109,\"\"))","v":""},"",{"$f":"IF('TSA Input'!J4109=\"\",\"\",IF(OR('TSA Input'!J4109=\"Yes\",'TSA Input'!J4109=\"Contingent\"),'TSA Input'!D4109,\"\"))","v":""},{"$f":"IF('TSA Input'!J4109=\"\",\"\",IF(OR('TSA Input'!J4109=\"Yes\",'TSA Input'!J4109=\"Contingent\"),'TSA Input'!G4109,\"\"))","v":""},{"$f":"IF('TSA Input'!J4109=\"\",\"\",IF(OR('TSA Input'!J4109=\"Yes\",'TSA Input'!J4109=\"Contingent\"),'TSA Input'!F4109,\"\"))","v":""},"","Required","Required"]
["",null,{"$f":"IF('TSA Input'!J4110=\"\",\"\",IF(OR('TSA Input'!J4110=\"Yes\",'TSA Input'!J4110=\"Contingent\"),'TSA Input'!B4110,\"Ineligible\"))","v":""},{"$f":"IF('TSA Input'!J4110=\"\",\"\",IF(OR('TSA Input'!J4110=\"Yes\",'TSA Input'!J4110=\"Contingent\"),'TSA Input'!I4110,\"\"))","v":""},{"$f":"IF('TSA Input'!J4110=\"\",\"\",IF(OR('TSA Input'!J4110=\"Yes\",'TSA Input'!J4110=\"Contingent\"),'TSA Input'!C4110,\"\"))","v":""},{"$f":"IF('TSA Input'!J4110=\"\",\"\",IF(OR('TSA Input'!J4110=\"Yes\",'TSA Input'!J4110=\"Contingent\"),'TSA Input'!D4110,\"\"))","v":""},{"$f":"IF('TSA Input'!J4110=\"\",\"\",IF(OR('TSA Input'!J4110=\"Yes\",'TSA Input'!J4110=\"Contingent\"),'TSA Input'!G4110,\"\"))","v":""},{"$f":"IF('TSA Input'!J4110=\"\",\"\",IF(OR('TSA Input'!J4110=\"Yes\",'TSA Input'!J4110=\"Contingent\"),'TSA Input'!F4110,\"\"))","v":""},"",{"$f":"IF('TSA Input'!J4110=\"\",\"\",IF(OR('TSA Input'!J4110=\"Yes\",'TSA Input'!J4110=\"Contingent\"),'TSA Input'!D4110,\"\"))","v":""},{"$f":"IF('TSA Input'!J4110=\"\",\"\",IF(OR('TSA Input'!J4110=\"Yes\",'TSA Input'!J4110=\"Contingent\"),'TSA Input'!G4110,\"\"))","v":""},{"$f":"IF('TSA Input'!J4110=\"\",\"\",IF(OR('TSA Input'!J4110=\"Yes\",'TSA Input'!J4110=\"Contingent\"),'TSA Input'!F4110,\"\"))","v":""},"","Required","Required"]
["",null,{"$f":"IF('TSA Input'!J4111=\"\",\"\",IF(OR('TSA Input'!J4111=\"Yes\",'TSA Input'!J4111=\"Contingent\"),'TSA Input'!B4111,\"Ineligible\"))","v":""},{"$f":"IF('TSA Input'!J4111=\"\",\"\",IF(OR('TSA Input'!J4111=\"Yes\",'TSA Input'!J4111=\"Contingent\"),'TSA Input'!I4111,\"\"))","v":""},{"$f":"IF('TSA Input'!J4111=\"\",\"\",IF(OR('TSA Input'!J4111=\"Yes\",'TSA Input'!J4111=\"Contingent\"),'TSA Input'!C4111,\"\"))","v":""},{"$f":"IF('TSA Input'!J4111=\"\",\"\",IF(OR('TSA Input'!J4111=\"Yes\",'TSA Input'!J4111=\"Contingent\"),'TSA Input'!D4111,\"\"))","v":""},{"$f":"IF('TSA Input'!J4111=\"\",\"\",IF(OR('TSA Input'!J4111=\"Yes\",'TSA Input'!J4111=\"Contingent\"),'TSA Input'!G4111,\"\"))","v":""},{"$f":"IF('TSA Input'!J4111=\"\",\"\",IF(OR('TSA Input'!J4111=\"Yes\",'TSA Input'!J4111=\"Contingent\"),'TSA Input'!F4111,\"\"))","v":""},"",{"$f":"IF('TSA Input'!J4111=\"\",\"\",IF(OR('TSA Input'!J4111=\"Yes\",'TSA Input'!J4111=\"Contingent\"),'TSA Input'!D4111,\"\"))","v":""},{"$f":"IF('TSA Input'!J4111=\"\",\"\",IF(OR('TSA Input'!J4111=\"Yes\",'TSA Input'!J4111=\"Contingent\"),'TSA Input'!G4111,\"\"))","v":""},{"$f":"IF('TSA Input'!J4111=\"\",\"\",IF(OR('TSA Input'!J4111=\"Yes\",'TSA Input'!J4111=\"Contingent\"),'TSA Input'!F4111,\"\"))","v":""},"","Required","Required"]
["",null,{"$f":"IF('TSA Input'!J4112=\"\",\"\",IF(OR('TSA Input'!J4112=\"Yes\",'TSA Input'!J4112=\"Contingent\"),'TSA Input'!B4112,\"Ineligible\"))","v":""},{"$f":"IF('TSA Input'!J4112=\"\",\"\",IF(OR('TSA Input'!J4112=\"Yes\",'TSA Input'!J4112=\"Contingent\"),'TSA Input'!I4112,\"\"))","v":""},{"$f":"IF('TSA Input'!J4112=\"\",\"\",IF(OR('TSA Input'!J4112=\"Yes\",'TSA Input'!J4112=\"Contingent\"),'TSA Input'!C4112,\"\"))","v":""},{"$f":"IF('TSA Input'!J4112=\"\",\"\",IF(OR('TSA Input'!J4112=\"Yes\",'TSA Input'!J4112=\"Contingent\"),'TSA Input'!D4112,\"\"))","v":""},{"$f":"IF('TSA Input'!J4112=\"\",\"\",IF(OR('TSA Input'!J4112=\"Yes\",'TSA Input'!J4112=\"Contingent\"),'TSA Input'!G4112,\"\"))","v":""},{"$f":"IF('TSA Input'!J4112=\"\",\"\",IF(OR('TSA Input'!J4112=\"Yes\",'TSA Input'!J4112=\"Contingent\"),'TSA Input'!F4112,\"\"))","v":""},"",{"$f":"IF('TSA Input'!J4112=\"\",\"\",IF(OR('TSA Input'!J4112=\"Yes\",'TSA Input'!J4112=\"Contingent\"),'TSA Input'!D4112,\"\"))","v":""},{"$f":"IF('TSA Input'!J4112=\"\",\"\",IF(OR('TSA Input'!J4112=\"Yes\",'TSA Input'!J4112=\"Contingent\"),'TSA Input'!G4112,\"\"))","v":""},{"$f":"IF('TSA Input'!J4112=\"\",\"\",IF(OR('TSA Input'!J4112=\"Yes\",'TSA Input'!J4112=\"Contingent\"),'TSA Input'!F4112,\"\"))","v":""},"","Required","Required"]
["",null,{"$f":"IF('TSA Input'!J4113=\"\",\"\",IF(OR('TSA Input'!J4113=\"Yes\",'TSA Input'!J4113=\"Contingent\"),'TSA Input'!B4113,\"Ineligible\"))","v":""},{"$f":"IF('TSA Input'!J4113=\"\",\"\",IF(OR('TSA Input'!J4113=\"Yes\",'TSA Input'!J4113=\"Contingent\"),'TSA Input'!I4113,\"\"))","v":""},{"$f":"IF('TSA Input'!J4113=\"\",\"\",IF(OR('TSA Input'!J4113=\"Yes\",'TSA Input'!J4113=\"Contingent\"),'TSA Input'!C4113,\"\"))","v":""},{"$f":"IF('TSA Input'!J4113=\"\",\"\",IF(OR('TSA Input'!J4113=\"Yes\",'TSA Input'!J4113=\"Contingent\"),'TSA Input'!D4113,\"\"))","v":""},{"$f":"IF('TSA Input'!J4113=\"\",\"\",IF(OR('TSA Input'!J4113=\"Yes\",'TSA Input'!J4113=\"Contingent\"),'TSA Input'!G4113,\"\"))","v":""},{"$f":"IF('TSA Input'!J4113=\"\",\"\",IF(OR('TSA Input'!J4113=\"Yes\",'TSA Input'!J4113=\"Contingent\"),'TSA Input'!F4113,\"\"))","v":""},"",{"$f":"IF('TSA Input'!J4113=\"\",\"\",IF(OR('TSA Input'!J4113=\"Yes\",'TSA Input'!J4113=\"Contingent\"),'TSA Input'!D4113,\"\"))","v":""},{"$f":"IF('TSA Input'!J4113=\"\",\"\",IF(OR('TSA Input'!J4113=\"Yes\",'TSA Input'!J4113=\"Contingent\"),'TSA Input'!G4113,\"\"))","v":""},{"$f":"IF('TSA Input'!J4113=\"\",\"\",IF(OR('TSA Input'!J4113=\"Yes\",'TSA Input'!J4113=\"Contingent\"),'TSA Input'!F4113,\"\"))","v":""},"","Required","Required"]
["",null,{"$f":"IF('TSA Input'!J4114=\"\",\"\",IF(OR('TSA Input'!J4114=\"Yes\",'TSA Input'!J4114=\"Contingent\"),'TSA Input'!B4114,\"Ineligible\"))","v":""},{"$f":"IF('TSA Input'!J4114=\"\",\"\",IF(OR('TSA Input'!J4114=\"Yes\",'TSA Input'!J4114=\"Contingent\"),'TSA Input'!I4114,\"\"))","v":""},{"$f":"IF('TSA Input'!J4114=\"\",\"\",IF(OR('TSA Input'!J4114=\"Yes\",'TSA Input'!J4114=\"Contingent\"),'TSA Input'!C4114,\"\"))","v":""},{"$f":"IF('TSA Input'!J4114=\"\",\"\",IF(OR('TSA Input'!J4114=\"Yes\",'TSA Input'!J4114=\"Contingent\"),'TSA Input'!D4114,\"\"))","v":""},{"$f":"IF('TSA Input'!J4114=\"\",\"\",IF(OR('TSA Input'!J4114=\"Yes\",'TSA Input'!J4114=\"Contingent\"),'TSA Input'!G4114,\"\"))","v":""},{"$f":"IF('TSA Input'!J4114=\"\",\"\",IF(OR('TSA Input'!J4114=\"Yes\",'TSA Input'!J4114=\"Contingent\"),'TSA Input'!F4114,\"\"))","v":""},"",{"$f":"IF('TSA Input'!J4114=\"\",\"\",IF(OR('TSA Input'!J4114=\"Yes\",'TSA Input'!J4114=\"Contingent\"),'TSA Input'!D4114,\"\"))","v":""},{"$f":"IF('TSA Input'!J4114=\"\",\"\",IF(OR('TSA Input'!J4114=\"Yes\",'TSA Input'!J4114=\"Contingent\"),'TSA Input'!G4114,\"\"))","v":""},{"$f":"IF('TSA Input'!J4114=\"\",\"\",IF(OR('TSA Input'!J4114=\"Yes\",'TSA Input'!J4114=\"Contingent\"),'TSA Input'!F4114,\"\"))","v":""},"","Required","Required"]
["",null,{"$f":"IF('TSA Input'!J4115=\"\",\"\",IF(OR('TSA Input'!J4115=\"Yes\",'TSA Input'!J4115=\"Contingent\"),'TSA Input'!B4115,\"Ineligible\"))","v":""},{"$f":"IF('TSA Input'!J4115=\"\",\"\",IF(OR('TSA Input'!J4115=\"Yes\",'TSA Input'!J4115=\"Contingent\"),'TSA Input'!I4115,\"\"))","v":""},{"$f":"IF('TSA Input'!J4115=\"\",\"\",IF(OR('TSA Input'!J4115=\"Yes\",'TSA Input'!J4115=\"Contingent\"),'TSA Input'!C4115,\"\"))","v":""},{"$f":"IF('TSA Input'!J4115=\"\",\"\",IF(OR('TSA Input'!J4115=\"Yes\",'TSA Input'!J4115=\"Contingent\"),'TSA Input'!D4115,\"\"))","v":""},{"$f":"IF('TSA Input'!J4115=\"\",\"\",IF(OR('TSA Input'!J4115=\"Yes\",'TSA Input'!J4115=\"Contingent\"),'TSA Input'!G4115,\"\"))","v":""},{"$f":"IF('TSA Input'!J4115=\"\",\"\",IF(OR('TSA Input'!J4115=\"Yes\",'TSA Input'!J4115=\"Contingent\"),'TSA Input'!F4115,\"\"))","v":""},"",{"$f":"IF('TSA Input'!J4115=\"\",\"\",IF(OR('TSA Input'!J4115=\"Yes\",'TSA Input'!J4115=\"Contingent\"),'TSA Input'!D4115,\"\"))","v":""},{"$f":"IF('TSA Input'!J4115=\"\",\"\",IF(OR('TSA Input'!J4115=\"Yes\",'TSA Input'!J4115=\"Contingent\"),'TSA Input'!G4115,\"\"))","v":""},{"$f":"IF('TSA Input'!J4115=\"\",\"\",IF(OR('TSA Input'!J4115=\"Yes\",'TSA Input'!J4115=\"Contingent\"),'TSA Input'!F4115,\"\"))","v":""},"","Required","Required"]
["",null,{"$f":"IF('TSA Input'!J4116=\"\",\"\",IF(OR('TSA Input'!J4116=\"Yes\",'TSA Input'!J4116=\"Contingent\"),'TSA Input'!B4116,\"Ineligible\"))","v":""},{"$f":"IF('TSA Input'!J4116=\"\",\"\",IF(OR('TSA Input'!J4116=\"Yes\",'TSA Input'!J4116=\"Contingent\"),'TSA Input'!I4116,\"\"))","v":""},{"$f":"IF('TSA Input'!J4116=\"\",\"\",IF(OR('TSA Input'!J4116=\"Yes\",'TSA Input'!J4116=\"Contingent\"),'TSA Input'!C4116,\"\"))","v":""},{"$f":"IF('TSA Input'!J4116=\"\",\"\",IF(OR('TSA Input'!J4116=\"Yes\",'TSA Input'!J4116=\"Contingent\"),'TSA Input'!D4116,\"\"))","v":""},{"$f":"IF('TSA Input'!J4116=\"\",\"\",IF(OR('TSA Input'!J4116=\"Yes\",'TSA Input'!J4116=\"Contingent\"),'TSA Input'!G4116,\"\"))","v":""},{"$f":"IF('TSA Input'!J4116=\"\",\"\",IF(OR('TSA Input'!J4116=\"Yes\",'TSA Input'!J4116=\"Contingent\"),'TSA Input'!F4116,\"\"))","v":""},"",{"$f":"IF('TSA Input'!J4116=\"\",\"\",IF(OR('TSA Input'!J4116=\"Yes\",'TSA Input'!J4116=\"Contingent\"),'TSA Input'!D4116,\"\"))","v":""},{"$f":"IF('TSA Input'!J4116=\"\",\"\",IF(OR('TSA Input'!J4116=\"Yes\",'TSA Input'!J4116=\"Contingent\"),'TSA Input'!G4116,\"\"))","v":""},{"$f":"IF('TSA Input'!J4116=\"\",\"\",IF(OR('TSA Input'!J4116=\"Yes\",'TSA Input'!J4116=\"Contingent\"),'TSA Input'!F4116,\"\"))","v":""},"","Required","Required"]
["",null,{"$f":"IF('TSA Input'!J4117=\"\",\"\",IF(OR('TSA Input'!J4117=\"Yes\",'TSA Input'!J4117=\"Contingent\"),'TSA Input'!B4117,\"Ineligible\"))","v":""},{"$f":"IF('TSA Input'!J4117=\"\",\"\",IF(OR('TSA Input'!J4117=\"Yes\",'TSA Input'!J4117=\"Contingent\"),'TSA Input'!I4117,\"\"))","v":""},{"$f":"IF('TSA Input'!J4117=\"\",\"\",IF(OR('TSA Input'!J4117=\"Yes\",'TSA Input'!J4117=\"Contingent\"),'TSA Input'!C4117,\"\"))","v":""},{"$f":"IF('TSA Input'!J4117=\"\",\"\",IF(OR('TSA Input'!J4117=\"Yes\",'TSA Input'!J4117=\"Contingent\"),'TSA Input'!D4117,\"\"))","v":""},{"$f":"IF('TSA Input'!J4117=\"\",\"\",IF(OR('TSA Input'!J4117=\"Yes\",'TSA Input'!J4117=\"Contingent\"),'TSA Input'!G4117,\"\"))","v":""},{"$f":"IF('TSA Input'!J4117=\"\",\"\",IF(OR('TSA Input'!J4117=\"Yes\",'TSA Input'!J4117=\"Contingent\"),'TSA Input'!F4117,\"\"))","v":""},"",{"$f":"IF('TSA Input'!J4117=\"\",\"\",IF(OR('TSA Input'!J4117=\"Yes\",'TSA Input'!J4117=\"Contingent\"),'TSA Input'!D4117,\"\"))","v":""},{"$f":"IF('TSA Input'!J4117=\"\",\"\",IF(OR('TSA Input'!J4117=\"Yes\",'TSA Input'!J4117=\"Contingent\"),'TSA Input'!G4117,\"\"))","v":""},{"$f":"IF('TSA Input'!J4117=\"\",\"\",IF(OR('TSA Input'!J4117=\"Yes\",'TSA Input'!J4117=\"Contingent\"),'TSA Input'!F4117,\"\"))","v":""},"","Required","Required"]
["",null,{"$f":"IF('TSA Input'!J4118=\"\",\"\",IF(OR('TSA Input'!J4118=\"Yes\",'TSA Input'!J4118=\"Contingent\"),'TSA Input'!B4118,\"Ineligible\"))","v":""},{"$f":"IF('TSA Input'!J4118=\"\",\"\",IF(OR('TSA Input'!J4118=\"Yes\",'TSA Input'!J4118=\"Contingent\"),'TSA Input'!I4118,\"\"))","v":""},{"$f":"IF('TSA Input'!J4118=\"\",\"\",IF(OR('TSA Input'!J4118=\"Yes\",'TSA Input'!J4118=\"Contingent\"),'TSA Input'!C4118,\"\"))","v":""},{"$f":"IF('TSA Input'!J4118=\"\",\"\",IF(OR('TSA Input'!J4118=\"Yes\",'TSA Input'!J4118=\"Contingent\"),'TSA Input'!D4118,\"\"))","v":""},{"$f":"IF('TSA Input'!J4118=\"\",\"\",IF(OR('TSA Input'!J4118=\"Yes\",'TSA Input'!J4118=\"Contingent\"),'TSA Input'!G4118,\"\"))","v":""},{"$f":"IF('TSA Input'!J4118=\"\",\"\",IF(OR('TSA Input'!J4118=\"Yes\",'TSA Input'!J4118=\"Contingent\"),'TSA Input'!F4118,\"\"))","v":""},"",{"$f":"IF('TSA Input'!J4118=\"\",\"\",IF(OR('TSA Input'!J4118=\"Yes\",'TSA Input'!J4118=\"Contingent\"),'TSA Input'!D4118,\"\"))","v":""},{"$f":"IF('TSA Input'!J4118=\"\",\"\",IF(OR('TSA Input'!J4118=\"Yes\",'TSA Input'!J4118=\"Contingent\"),'TSA Input'!G4118,\"\"))","v":""},{"$f":"IF('TSA Input'!J4118=\"\",\"\",IF(OR('TSA Input'!J4118=\"Yes\",'TSA Input'!J4118=\"Contingent\"),'TSA Input'!F4118,\"\"))","v":""},"","Required","Required"]
["",null,{"$f":"IF('TSA Input'!J4119=\"\",\"\",IF(OR('TSA Input'!J4119=\"Yes\",'TSA Input'!J4119=\"Contingent\"),'TSA Input'!B4119,\"Ineligible\"))","v":""},{"$f":"IF('TSA Input'!J4119=\"\",\"\",IF(OR('TSA Input'!J4119=\"Yes\",'TSA Input'!J4119=\"Contingent\"),'TSA Input'!I4119,\"\"))","v":""},{"$f":"IF('TSA Input'!J4119=\"\",\"\",IF(OR('TSA Input'!J4119=\"Yes\",'TSA Input'!J4119=\"Contingent\"),'TSA Input'!C4119,\"\"))","v":""},{"$f":"IF('TSA Input'!J4119=\"\",\"\",IF(OR('TSA Input'!J4119=\"Yes\",'TSA Input'!J4119=\"Contingent\"),'TSA Input'!D4119,\"\"))","v":""},{"$f":"IF('TSA Input'!J4119=\"\",\"\",IF(OR('TSA Input'!J4119=\"Yes\",'TSA Input'!J4119=\"Contingent\"),'TSA Input'!G4119,\"\"))","v":""},{"$f":"IF('TSA Input'!J4119=\"\",\"\",IF(OR('TSA Input'!J4119=\"Yes\",'TSA Input'!J4119=\"Contingent\"),'TSA Input'!F4119,\"\"))","v":""},"",{"$f":"IF('TSA Input'!J4119=\"\",\"\",IF(OR('TSA Input'!J4119=\"Yes\",'TSA Input'!J4119=\"Contingent\"),'TSA Input'!D4119,\"\"))","v":""},{"$f":"IF('TSA Input'!J4119=\"\",\"\",IF(OR('TSA Input'!J4119=\"Yes\",'TSA Input'!J4119=\"Contingent\"),'TSA Input'!G4119,\"\"))","v":""},{"$f":"IF('TSA Input'!J4119=\"\",\"\",IF(OR('TSA Input'!J4119=\"Yes\",'TSA Input'!J4119=\"Contingent\"),'TSA Input'!F4119,\"\"))","v":""},"","Required","Required"]
["",null,{"$f":"IF('TSA Input'!J4120=\"\",\"\",IF(OR('TSA Input'!J4120=\"Yes\",'TSA Input'!J4120=\"Contingent\"),'TSA Input'!B4120,\"Ineligible\"))","v":""},{"$f":"IF('TSA Input'!J4120=\"\",\"\",IF(OR('TSA Input'!J4120=\"Yes\",'TSA Input'!J4120=\"Contingent\"),'TSA Input'!I4120,\"\"))","v":""},{"$f":"IF('TSA Input'!J4120=\"\",\"\",IF(OR('TSA Input'!J4120=\"Yes\",'TSA Input'!J4120=\"Contingent\"),'TSA Input'!C4120,\"\"))","v":""},{"$f":"IF('TSA Input'!J4120=\"\",\"\",IF(OR('TSA Input'!J4120=\"Yes\",'TSA Input'!J4120=\"Contingent\"),'TSA Input'!D4120,\"\"))","v":""},{"$f":"IF('TSA Input'!J4120=\"\",\"\",IF(OR('TSA Input'!J4120=\"Yes\",'TSA Input'!J4120=\"Contingent\"),'TSA Input'!G4120,\"\"))","v":""},{"$f":"IF('TSA Input'!J4120=\"\",\"\",IF(OR('TSA Input'!J4120=\"Yes\",'TSA Input'!J4120=\"Contingent\"),'TSA Input'!F4120,\"\"))","v":""},"",{"$f":"IF('TSA Input'!J4120=\"\",\"\",IF(OR('TSA Input'!J4120=\"Yes\",'TSA Input'!J4120=\"Contingent\"),'TSA Input'!D4120,\"\"))","v":""},{"$f":"IF('TSA Input'!J4120=\"\",\"\",IF(OR('TSA Input'!J4120=\"Yes\",'TSA Input'!J4120=\"Contingent\"),'TSA Input'!G4120,\"\"))","v":""},{"$f":"IF('TSA Input'!J4120=\"\",\"\",IF(OR('TSA Input'!J4120=\"Yes\",'TSA Input'!J4120=\"Contingent\"),'TSA Input'!F4120,\"\"))","v":""},"","Required","Required"]
["",null,{"$f":"IF('TSA Input'!J4121=\"\",\"\",IF(OR('TSA Input'!J4121=\"Yes\",'TSA Input'!J4121=\"Contingent\"),'TSA Input'!B4121,\"Ineligible\"))","v":""},{"$f":"IF('TSA Input'!J4121=\"\",\"\",IF(OR('TSA Input'!J4121=\"Yes\",'TSA Input'!J4121=\"Contingent\"),'TSA Input'!I4121,\"\"))","v":""},{"$f":"IF('TSA Input'!J4121=\"\",\"\",IF(OR('TSA Input'!J4121=\"Yes\",'TSA Input'!J4121=\"Contingent\"),'TSA Input'!C4121,\"\"))","v":""},{"$f":"IF('TSA Input'!J4121=\"\",\"\",IF(OR('TSA Input'!J4121=\"Yes\",'TSA Input'!J4121=\"Contingent\"),'TSA Input'!D4121,\"\"))","v":""},{"$f":"IF('TSA Input'!J4121=\"\",\"\",IF(OR('TSA Input'!J4121=\"Yes\",'TSA Input'!J4121=\"Contingent\"),'TSA Input'!G4121,\"\"))","v":""},{"$f":"IF('TSA Input'!J4121=\"\",\"\",IF(OR('TSA Input'!J4121=\"Yes\",'TSA Input'!J4121=\"Contingent\"),'TSA Input'!F4121,\"\"))","v":""},"",{"$f":"IF('TSA Input'!J4121=\"\",\"\",IF(OR('TSA Input'!J4121=\"Yes\",'TSA Input'!J4121=\"Contingent\"),'TSA Input'!D4121,\"\"))","v":""},{"$f":"IF('TSA Input'!J4121=\"\",\"\",IF(OR('TSA Input'!J4121=\"Yes\",'TSA Input'!J4121=\"Contingent\"),'TSA Input'!G4121,\"\"))","v":""},{"$f":"IF('TSA Input'!J4121=\"\",\"\",IF(OR('TSA Input'!J4121=\"Yes\",'TSA Input'!J4121=\"Contingent\"),'TSA Input'!F4121,\"\"))","v":""},"","Required","Required"]
["",null,{"$f":"IF('TSA Input'!J4122=\"\",\"\",IF(OR('TSA Input'!J4122=\"Yes\",'TSA Input'!J4122=\"Contingent\"),'TSA Input'!B4122,\"Ineligible\"))","v":""},{"$f":"IF('TSA Input'!J4122=\"\",\"\",IF(OR('TSA Input'!J4122=\"Yes\",'TSA Input'!J4122=\"Contingent\"),'TSA Input'!I4122,\"\"))","v":""},{"$f":"IF('TSA Input'!J4122=\"\",\"\",IF(OR('TSA Input'!J4122=\"Yes\",'TSA Input'!J4122=\"Contingent\"),'TSA Input'!C4122,\"\"))","v":""},{"$f":"IF('TSA Input'!J4122=\"\",\"\",IF(OR('TSA Input'!J4122=\"Yes\",'TSA Input'!J4122=\"Contingent\"),'TSA Input'!D4122,\"\"))","v":""},{"$f":"IF('TSA Input'!J4122=\"\",\"\",IF(OR('TSA Input'!J4122=\"Yes\",'TSA Input'!J4122=\"Contingent\"),'TSA Input'!G4122,\"\"))","v":""},{"$f":"IF('TSA Input'!J4122=\"\",\"\",IF(OR('TSA Input'!J4122=\"Yes\",'TSA Input'!J4122=\"Contingent\"),'TSA Input'!F4122,\"\"))","v":""},"",{"$f":"IF('TSA Input'!J4122=\"\",\"\",IF(OR('TSA Input'!J4122=\"Yes\",'TSA Input'!J4122=\"Contingent\"),'TSA Input'!D4122,\"\"))","v":""},{"$f":"IF('TSA Input'!J4122=\"\",\"\",IF(OR('TSA Input'!J4122=\"Yes\",'TSA Input'!J4122=\"Contingent\"),'TSA Input'!G4122,\"\"))","v":""},{"$f":"IF('TSA Input'!J4122=\"\",\"\",IF(OR('TSA Input'!J4122=\"Yes\",'TSA Input'!J4122=\"Contingent\"),'TSA Input'!F4122,\"\"))","v":""},"","Required","Required"]
["",null,{"$f":"IF('TSA Input'!J4123=\"\",\"\",IF(OR('TSA Input'!J4123=\"Yes\",'TSA Input'!J4123=\"Contingent\"),'TSA Input'!B4123,\"Ineligible\"))","v":""},{"$f":"IF('TSA Input'!J4123=\"\",\"\",IF(OR('TSA Input'!J4123=\"Yes\",'TSA Input'!J4123=\"Contingent\"),'TSA Input'!I4123,\"\"))","v":""},{"$f":"IF('TSA Input'!J4123=\"\",\"\",IF(OR('TSA Input'!J4123=\"Yes\",'TSA Input'!J4123=\"Contingent\"),'TSA Input'!C4123,\"\"))","v":""},{"$f":"IF('TSA Input'!J4123=\"\",\"\",IF(OR('TSA Input'!J4123=\"Yes\",'TSA Input'!J4123=\"Contingent\"),'TSA Input'!D4123,\"\"))","v":""},{"$f":"IF('TSA Input'!J4123=\"\",\"\",IF(OR('TSA Input'!J4123=\"Yes\",'TSA Input'!J4123=\"Contingent\"),'TSA Input'!G4123,\"\"))","v":""},{"$f":"IF('TSA Input'!J4123=\"\",\"\",IF(OR('TSA Input'!J4123=\"Yes\",'TSA Input'!J4123=\"Contingent\"),'TSA Input'!F4123,\"\"))","v":""},"",{"$f":"IF('TSA Input'!J4123=\"\",\"\",IF(OR('TSA Input'!J4123=\"Yes\",'TSA Input'!J4123=\"Contingent\"),'TSA Input'!D4123,\"\"))","v":""},{"$f":"IF('TSA Input'!J4123=\"\",\"\",IF(OR('TSA Input'!J4123=\"Yes\",'TSA Input'!J4123=\"Contingent\"),'TSA Input'!G4123,\"\"))","v":""},{"$f":"IF('TSA Input'!J4123=\"\",\"\",IF(OR('TSA Input'!J4123=\"Yes\",'TSA Input'!J4123=\"Contingent\"),'TSA Input'!F4123,\"\"))","v":""},"","Required","Required"]
["",null,{"$f":"IF('TSA Input'!J4124=\"\",\"\",IF(OR('TSA Input'!J4124=\"Yes\",'TSA Input'!J4124=\"Contingent\"),'TSA Input'!B4124,\"Ineligible\"))","v":""},{"$f":"IF('TSA Input'!J4124=\"\",\"\",IF(OR('TSA Input'!J4124=\"Yes\",'TSA Input'!J4124=\"Contingent\"),'TSA Input'!I4124,\"\"))","v":""},{"$f":"IF('TSA Input'!J4124=\"\",\"\",IF(OR('TSA Input'!J4124=\"Yes\",'TSA Input'!J4124=\"Contingent\"),'TSA Input'!C4124,\"\"))","v":""},{"$f":"IF('TSA Input'!J4124=\"\",\"\",IF(OR('TSA Input'!J4124=\"Yes\",'TSA Input'!J4124=\"Contingent\"),'TSA Input'!D4124,\"\"))","v":""},{"$f":"IF('TSA Input'!J4124=\"\",\"\",IF(OR('TSA Input'!J4124=\"Yes\",'TSA Input'!J4124=\"Contingent\"),'TSA Input'!G4124,\"\"))","v":""},{"$f":"IF('TSA Input'!J4124=\"\",\"\",IF(OR('TSA Input'!J4124=\"Yes\",'TSA Input'!J4124=\"Contingent\"),'TSA Input'!F4124,\"\"))","v":""},"",{"$f":"IF('TSA Input'!J4124=\"\",\"\",IF(OR('TSA Input'!J4124=\"Yes\",'TSA Input'!J4124=\"Contingent\"),'TSA Input'!D4124,\"\"))","v":""},{"$f":"IF('TSA Input'!J4124=\"\",\"\",IF(OR('TSA Input'!J4124=\"Yes\",'TSA Input'!J4124=\"Contingent\"),'TSA Input'!G4124,\"\"))","v":""},{"$f":"IF('TSA Input'!J4124=\"\",\"\",IF(OR('TSA Input'!J4124=\"Yes\",'TSA Input'!J4124=\"Contingent\"),'TSA Input'!F4124,\"\"))","v":""},"","Required","Required"]
["",null,{"$f":"IF('TSA Input'!J4125=\"\",\"\",IF(OR('TSA Input'!J4125=\"Yes\",'TSA Input'!J4125=\"Contingent\"),'TSA Input'!B4125,\"Ineligible\"))","v":""},{"$f":"IF('TSA Input'!J4125=\"\",\"\",IF(OR('TSA Input'!J4125=\"Yes\",'TSA Input'!J4125=\"Contingent\"),'TSA Input'!I4125,\"\"))","v":""},{"$f":"IF('TSA Input'!J4125=\"\",\"\",IF(OR('TSA Input'!J4125=\"Yes\",'TSA Input'!J4125=\"Contingent\"),'TSA Input'!C4125,\"\"))","v":""},{"$f":"IF('TSA Input'!J4125=\"\",\"\",IF(OR('TSA Input'!J4125=\"Yes\",'TSA Input'!J4125=\"Contingent\"),'TSA Input'!D4125,\"\"))","v":""},{"$f":"IF('TSA Input'!J4125=\"\",\"\",IF(OR('TSA Input'!J4125=\"Yes\",'TSA Input'!J4125=\"Contingent\"),'TSA Input'!G4125,\"\"))","v":""},{"$f":"IF('TSA Input'!J4125=\"\",\"\",IF(OR('TSA Input'!J4125=\"Yes\",'TSA Input'!J4125=\"Contingent\"),'TSA Input'!F4125,\"\"))","v":""},"",{"$f":"IF('TSA Input'!J4125=\"\",\"\",IF(OR('TSA Input'!J4125=\"Yes\",'TSA Input'!J4125=\"Contingent\"),'TSA Input'!D4125,\"\"))","v":""},{"$f":"IF('TSA Input'!J4125=\"\",\"\",IF(OR('TSA Input'!J4125=\"Yes\",'TSA Input'!J4125=\"Contingent\"),'TSA Input'!G4125,\"\"))","v":""},{"$f":"IF('TSA Input'!J4125=\"\",\"\",IF(OR('TSA Input'!J4125=\"Yes\",'TSA Input'!J4125=\"Contingent\"),'TSA Input'!F4125,\"\"))","v":""},"","Required","Required"]
["",null,{"$f":"IF('TSA Input'!J4126=\"\",\"\",IF(OR('TSA Input'!J4126=\"Yes\",'TSA Input'!J4126=\"Contingent\"),'TSA Input'!B4126,\"Ineligible\"))","v":""},{"$f":"IF('TSA Input'!J4126=\"\",\"\",IF(OR('TSA Input'!J4126=\"Yes\",'TSA Input'!J4126=\"Contingent\"),'TSA Input'!I4126,\"\"))","v":""},{"$f":"IF('TSA Input'!J4126=\"\",\"\",IF(OR('TSA Input'!J4126=\"Yes\",'TSA Input'!J4126=\"Contingent\"),'TSA Input'!C4126,\"\"))","v":""},{"$f":"IF('TSA Input'!J4126=\"\",\"\",IF(OR('TSA Input'!J4126=\"Yes\",'TSA Input'!J4126=\"Contingent\"),'TSA Input'!D4126,\"\"))","v":""},{"$f":"IF('TSA Input'!J4126=\"\",\"\",IF(OR('TSA Input'!J4126=\"Yes\",'TSA Input'!J4126=\"Contingent\"),'TSA Input'!G4126,\"\"))","v":""},{"$f":"IF('TSA Input'!J4126=\"\",\"\",IF(OR('TSA Input'!J4126=\"Yes\",'TSA Input'!J4126=\"Contingent\"),'TSA Input'!F4126,\"\"))","v":""},"",{"$f":"IF('TSA Input'!J4126=\"\",\"\",IF(OR('TSA Input'!J4126=\"Yes\",'TSA Input'!J4126=\"Contingent\"),'TSA Input'!D4126,\"\"))","v":""},{"$f":"IF('TSA Input'!J4126=\"\",\"\",IF(OR('TSA Input'!J4126=\"Yes\",'TSA Input'!J4126=\"Contingent\"),'TSA Input'!G4126,\"\"))","v":""},{"$f":"IF('TSA Input'!J4126=\"\",\"\",IF(OR('TSA Input'!J4126=\"Yes\",'TSA Input'!J4126=\"Contingent\"),'TSA Input'!F4126,\"\"))","v":""},"","Required","Required"]
["",null,{"$f":"IF('TSA Input'!J4127=\"\",\"\",IF(OR('TSA Input'!J4127=\"Yes\",'TSA Input'!J4127=\"Contingent\"),'TSA Input'!B4127,\"Ineligible\"))","v":""},{"$f":"IF('TSA Input'!J4127=\"\",\"\",IF(OR('TSA Input'!J4127=\"Yes\",'TSA Input'!J4127=\"Contingent\"),'TSA Input'!I4127,\"\"))","v":""},{"$f":"IF('TSA Input'!J4127=\"\",\"\",IF(OR('TSA Input'!J4127=\"Yes\",'TSA Input'!J4127=\"Contingent\"),'TSA Input'!C4127,\"\"))","v":""},{"$f":"IF('TSA Input'!J4127=\"\",\"\",IF(OR('TSA Input'!J4127=\"Yes\",'TSA Input'!J4127=\"Contingent\"),'TSA Input'!D4127,\"\"))","v":""},{"$f":"IF('TSA Input'!J4127=\"\",\"\",IF(OR('TSA Input'!J4127=\"Yes\",'TSA Input'!J4127=\"Contingent\"),'TSA Input'!G4127,\"\"))","v":""},{"$f":"IF('TSA Input'!J4127=\"\",\"\",IF(OR('TSA Input'!J4127=\"Yes\",'TSA Input'!J4127=\"Contingent\"),'TSA Input'!F4127,\"\"))","v":""},"",{"$f":"IF('TSA Input'!J4127=\"\",\"\",IF(OR('TSA Input'!J4127=\"Yes\",'TSA Input'!J4127=\"Contingent\"),'TSA Input'!D4127,\"\"))","v":""},{"$f":"IF('TSA Input'!J4127=\"\",\"\",IF(OR('TSA Input'!J4127=\"Yes\",'TSA Input'!J4127=\"Contingent\"),'TSA Input'!G4127,\"\"))","v":""},{"$f":"IF('TSA Input'!J4127=\"\",\"\",IF(OR('TSA Input'!J4127=\"Yes\",'TSA Input'!J4127=\"Contingent\"),'TSA Input'!F4127,\"\"))","v":""},"","Required","Required"]
["",null,{"$f":"IF('TSA Input'!J4128=\"\",\"\",IF(OR('TSA Input'!J4128=\"Yes\",'TSA Input'!J4128=\"Contingent\"),'TSA Input'!B4128,\"Ineligible\"))","v":""},{"$f":"IF('TSA Input'!J4128=\"\",\"\",IF(OR('TSA Input'!J4128=\"Yes\",'TSA Input'!J4128=\"Contingent\"),'TSA Input'!I4128,\"\"))","v":""},{"$f":"IF('TSA Input'!J4128=\"\",\"\",IF(OR('TSA Input'!J4128=\"Yes\",'TSA Input'!J4128=\"Contingent\"),'TSA Input'!C4128,\"\"))","v":""},{"$f":"IF('TSA Input'!J4128=\"\",\"\",IF(OR('TSA Input'!J4128=\"Yes\",'TSA Input'!J4128=\"Contingent\"),'TSA Input'!D4128,\"\"))","v":""},{"$f":"IF('TSA Input'!J4128=\"\",\"\",IF(OR('TSA Input'!J4128=\"Yes\",'TSA Input'!J4128=\"Contingent\"),'TSA Input'!G4128,\"\"))","v":""},{"$f":"IF('TSA Input'!J4128=\"\",\"\",IF(OR('TSA Input'!J4128=\"Yes\",'TSA Input'!J4128=\"Contingent\"),'TSA Input'!F4128,\"\"))","v":""},"",{"$f":"IF('TSA Input'!J4128=\"\",\"\",IF(OR('TSA Input'!J4128=\"Yes\",'TSA Input'!J4128=\"Contingent\"),'TSA Input'!D4128,\"\"))","v":""},{"$f":"IF('TSA Input'!J4128=\"\",\"\",IF(OR('TSA Input'!J4128=\"Yes\",'TSA Input'!J4128=\"Contingent\"),'TSA Input'!G4128,\"\"))","v":""},{"$f":"IF('TSA Input'!J4128=\"\",\"\",IF(OR('TSA Input'!J4128=\"Yes\",'TSA Input'!J4128=\"Contingent\"),'TSA Input'!F4128,\"\"))","v":""},"","Required","Required"]
["",null,{"$f":"IF('TSA Input'!J4129=\"\",\"\",IF(OR('TSA Input'!J4129=\"Yes\",'TSA Input'!J4129=\"Contingent\"),'TSA Input'!B4129,\"Ineligible\"))","v":""},{"$f":"IF('TSA Input'!J4129=\"\",\"\",IF(OR('TSA Input'!J4129=\"Yes\",'TSA Input'!J4129=\"Contingent\"),'TSA Input'!I4129,\"\"))","v":""},{"$f":"IF('TSA Input'!J4129=\"\",\"\",IF(OR('TSA Input'!J4129=\"Yes\",'TSA Input'!J4129=\"Contingent\"),'TSA Input'!C4129,\"\"))","v":""},{"$f":"IF('TSA Input'!J4129=\"\",\"\",IF(OR('TSA Input'!J4129=\"Yes\",'TSA Input'!J4129=\"Contingent\"),'TSA Input'!D4129,\"\"))","v":""},{"$f":"IF('TSA Input'!J4129=\"\",\"\",IF(OR('TSA Input'!J4129=\"Yes\",'TSA Input'!J4129=\"Contingent\"),'TSA Input'!G4129,\"\"))","v":""},{"$f":"IF('TSA Input'!J4129=\"\",\"\",IF(OR('TSA Input'!J4129=\"Yes\",'TSA Input'!J4129=\"Contingent\"),'TSA Input'!F4129,\"\"))","v":""},"",{"$f":"IF('TSA Input'!J4129=\"\",\"\",IF(OR('TSA Input'!J4129=\"Yes\",'TSA Input'!J4129=\"Contingent\"),'TSA Input'!D4129,\"\"))","v":""},{"$f":"IF('TSA Input'!J4129=\"\",\"\",IF(OR('TSA Input'!J4129=\"Yes\",'TSA Input'!J4129=\"Contingent\"),'TSA Input'!G4129,\"\"))","v":""},{"$f":"IF('TSA Input'!J4129=\"\",\"\",IF(OR('TSA Input'!J4129=\"Yes\",'TSA Input'!J4129=\"Contingent\"),'TSA Input'!F4129,\"\"))","v":""},"","Required","Required"]
["",null,{"$f":"IF('TSA Input'!J4130=\"\",\"\",IF(OR('TSA Input'!J4130=\"Yes\",'TSA Input'!J4130=\"Contingent\"),'TSA Input'!B4130,\"Ineligible\"))","v":""},{"$f":"IF('TSA Input'!J4130=\"\",\"\",IF(OR('TSA Input'!J4130=\"Yes\",'TSA Input'!J4130=\"Contingent\"),'TSA Input'!I4130,\"\"))","v":""},{"$f":"IF('TSA Input'!J4130=\"\",\"\",IF(OR('TSA Input'!J4130=\"Yes\",'TSA Input'!J4130=\"Contingent\"),'TSA Input'!C4130,\"\"))","v":""},{"$f":"IF('TSA Input'!J4130=\"\",\"\",IF(OR('TSA Input'!J4130=\"Yes\",'TSA Input'!J4130=\"Contingent\"),'TSA Input'!D4130,\"\"))","v":""},{"$f":"IF('TSA Input'!J4130=\"\",\"\",IF(OR('TSA Input'!J4130=\"Yes\",'TSA Input'!J4130=\"Contingent\"),'TSA Input'!G4130,\"\"))","v":""},{"$f":"IF('TSA Input'!J4130=\"\",\"\",IF(OR('TSA Input'!J4130=\"Yes\",'TSA Input'!J4130=\"Contingent\"),'TSA Input'!F4130,\"\"))","v":""},"",{"$f":"IF('TSA Input'!J4130=\"\",\"\",IF(OR('TSA Input'!J4130=\"Yes\",'TSA Input'!J4130=\"Contingent\"),'TSA Input'!D4130,\"\"))","v":""},{"$f":"IF('TSA Input'!J4130=\"\",\"\",IF(OR('TSA Input'!J4130=\"Yes\",'TSA Input'!J4130=\"Contingent\"),'TSA Input'!G4130,\"\"))","v":""},{"$f":"IF('TSA Input'!J4130=\"\",\"\",IF(OR('TSA Input'!J4130=\"Yes\",'TSA Input'!J4130=\"Contingent\"),'TSA Input'!F4130,\"\"))","v":""},"","Required","Required"]
["",null,{"$f":"IF('TSA Input'!J4131=\"\",\"\",IF(OR('TSA Input'!J4131=\"Yes\",'TSA Input'!J4131=\"Contingent\"),'TSA Input'!B4131,\"Ineligible\"))","v":""},{"$f":"IF('TSA Input'!J4131=\"\",\"\",IF(OR('TSA Input'!J4131=\"Yes\",'TSA Input'!J4131=\"Contingent\"),'TSA Input'!I4131,\"\"))","v":""},{"$f":"IF('TSA Input'!J4131=\"\",\"\",IF(OR('TSA Input'!J4131=\"Yes\",'TSA Input'!J4131=\"Contingent\"),'TSA Input'!C4131,\"\"))","v":""},{"$f":"IF('TSA Input'!J4131=\"\",\"\",IF(OR('TSA Input'!J4131=\"Yes\",'TSA Input'!J4131=\"Contingent\"),'TSA Input'!D4131,\"\"))","v":""},{"$f":"IF('TSA Input'!J4131=\"\",\"\",IF(OR('TSA Input'!J4131=\"Yes\",'TSA Input'!J4131=\"Contingent\"),'TSA Input'!G4131,\"\"))","v":""},{"$f":"IF('TSA Input'!J4131=\"\",\"\",IF(OR('TSA Input'!J4131=\"Yes\",'TSA Input'!J4131=\"Contingent\"),'TSA Input'!F4131,\"\"))","v":""},"",{"$f":"IF('TSA Input'!J4131=\"\",\"\",IF(OR('TSA Input'!J4131=\"Yes\",'TSA Input'!J4131=\"Contingent\"),'TSA Input'!D4131,\"\"))","v":""},{"$f":"IF('TSA Input'!J4131=\"\",\"\",IF(OR('TSA Input'!J4131=\"Yes\",'TSA Input'!J4131=\"Contingent\"),'TSA Input'!G4131,\"\"))","v":""},{"$f":"IF('TSA Input'!J4131=\"\",\"\",IF(OR('TSA Input'!J4131=\"Yes\",'TSA Input'!J4131=\"Contingent\"),'TSA Input'!F4131,\"\"))","v":""},"","Required","Required"]
["",null,{"$f":"IF('TSA Input'!J4132=\"\",\"\",IF(OR('TSA Input'!J4132=\"Yes\",'TSA Input'!J4132=\"Contingent\"),'TSA Input'!B4132,\"Ineligible\"))","v":""},{"$f":"IF('TSA Input'!J4132=\"\",\"\",IF(OR('TSA Input'!J4132=\"Yes\",'TSA Input'!J4132=\"Contingent\"),'TSA Input'!I4132,\"\"))","v":""},{"$f":"IF('TSA Input'!J4132=\"\",\"\",IF(OR('TSA Input'!J4132=\"Yes\",'TSA Input'!J4132=\"Contingent\"),'TSA Input'!C4132,\"\"))","v":""},{"$f":"IF('TSA Input'!J4132=\"\",\"\",IF(OR('TSA Input'!J4132=\"Yes\",'TSA Input'!J4132=\"Contingent\"),'TSA Input'!D4132,\"\"))","v":""},{"$f":"IF('TSA Input'!J4132=\"\",\"\",IF(OR('TSA Input'!J4132=\"Yes\",'TSA Input'!J4132=\"Contingent\"),'TSA Input'!G4132,\"\"))","v":""},{"$f":"IF('TSA Input'!J4132=\"\",\"\",IF(OR('TSA Input'!J4132=\"Yes\",'TSA Input'!J4132=\"Contingent\"),'TSA Input'!F4132,\"\"))","v":""},"",{"$f":"IF('TSA Input'!J4132=\"\",\"\",IF(OR('TSA Input'!J4132=\"Yes\",'TSA Input'!J4132=\"Contingent\"),'TSA Input'!D4132,\"\"))","v":""},{"$f":"IF('TSA Input'!J4132=\"\",\"\",IF(OR('TSA Input'!J4132=\"Yes\",'TSA Input'!J4132=\"Contingent\"),'TSA Input'!G4132,\"\"))","v":""},{"$f":"IF('TSA Input'!J4132=\"\",\"\",IF(OR('TSA Input'!J4132=\"Yes\",'TSA Input'!J4132=\"Contingent\"),'TSA Input'!F4132,\"\"))","v":""},"","Required","Required"]
["",null,{"$f":"IF('TSA Input'!J4133=\"\",\"\",IF(OR('TSA Input'!J4133=\"Yes\",'TSA Input'!J4133=\"Contingent\"),'TSA Input'!B4133,\"Ineligible\"))","v":""},{"$f":"IF('TSA Input'!J4133=\"\",\"\",IF(OR('TSA Input'!J4133=\"Yes\",'TSA Input'!J4133=\"Contingent\"),'TSA Input'!I4133,\"\"))","v":""},{"$f":"IF('TSA Input'!J4133=\"\",\"\",IF(OR('TSA Input'!J4133=\"Yes\",'TSA Input'!J4133=\"Contingent\"),'TSA Input'!C4133,\"\"))","v":""},{"$f":"IF('TSA Input'!J4133=\"\",\"\",IF(OR('TSA Input'!J4133=\"Yes\",'TSA Input'!J4133=\"Contingent\"),'TSA Input'!D4133,\"\"))","v":""},{"$f":"IF('TSA Input'!J4133=\"\",\"\",IF(OR('TSA Input'!J4133=\"Yes\",'TSA Input'!J4133=\"Contingent\"),'TSA Input'!G4133,\"\"))","v":""},{"$f":"IF('TSA Input'!J4133=\"\",\"\",IF(OR('TSA Input'!J4133=\"Yes\",'TSA Input'!J4133=\"Contingent\"),'TSA Input'!F4133,\"\"))","v":""},"",{"$f":"IF('TSA Input'!J4133=\"\",\"\",IF(OR('TSA Input'!J4133=\"Yes\",'TSA Input'!J4133=\"Contingent\"),'TSA Input'!D4133,\"\"))","v":""},{"$f":"IF('TSA Input'!J4133=\"\",\"\",IF(OR('TSA Input'!J4133=\"Yes\",'TSA Input'!J4133=\"Contingent\"),'TSA Input'!G4133,\"\"))","v":""},{"$f":"IF('TSA Input'!J4133=\"\",\"\",IF(OR('TSA Input'!J4133=\"Yes\",'TSA Input'!J4133=\"Contingent\"),'TSA Input'!F4133,\"\"))","v":""},"","Required","Required"]
["",null,{"$f":"IF('TSA Input'!J4134=\"\",\"\",IF(OR('TSA Input'!J4134=\"Yes\",'TSA Input'!J4134=\"Contingent\"),'TSA Input'!B4134,\"Ineligible\"))","v":""},{"$f":"IF('TSA Input'!J4134=\"\",\"\",IF(OR('TSA Input'!J4134=\"Yes\",'TSA Input'!J4134=\"Contingent\"),'TSA Input'!I4134,\"\"))","v":""},{"$f":"IF('TSA Input'!J4134=\"\",\"\",IF(OR('TSA Input'!J4134=\"Yes\",'TSA Input'!J4134=\"Contingent\"),'TSA Input'!C4134,\"\"))","v":""},{"$f":"IF('TSA Input'!J4134=\"\",\"\",IF(OR('TSA Input'!J4134=\"Yes\",'TSA Input'!J4134=\"Contingent\"),'TSA Input'!D4134,\"\"))","v":""},{"$f":"IF('TSA Input'!J4134=\"\",\"\",IF(OR('TSA Input'!J4134=\"Yes\",'TSA Input'!J4134=\"Contingent\"),'TSA Input'!G4134,\"\"))","v":""},{"$f":"IF('TSA Input'!J4134=\"\",\"\",IF(OR('TSA Input'!J4134=\"Yes\",'TSA Input'!J4134=\"Contingent\"),'TSA Input'!F4134,\"\"))","v":""},"",{"$f":"IF('TSA Input'!J4134=\"\",\"\",IF(OR('TSA Input'!J4134=\"Yes\",'TSA Input'!J4134=\"Contingent\"),'TSA Input'!D4134,\"\"))","v":""},{"$f":"IF('TSA Input'!J4134=\"\",\"\",IF(OR('TSA Input'!J4134=\"Yes\",'TSA Input'!J4134=\"Contingent\"),'TSA Input'!G4134,\"\"))","v":""},{"$f":"IF('TSA Input'!J4134=\"\",\"\",IF(OR('TSA Input'!J4134=\"Yes\",'TSA Input'!J4134=\"Contingent\"),'TSA Input'!F4134,\"\"))","v":""},"","Required","Required"]
["",null,{"$f":"IF('TSA Input'!J4135=\"\",\"\",IF(OR('TSA Input'!J4135=\"Yes\",'TSA Input'!J4135=\"Contingent\"),'TSA Input'!B4135,\"Ineligible\"))","v":""},{"$f":"IF('TSA Input'!J4135=\"\",\"\",IF(OR('TSA Input'!J4135=\"Yes\",'TSA Input'!J4135=\"Contingent\"),'TSA Input'!I4135,\"\"))","v":""},{"$f":"IF('TSA Input'!J4135=\"\",\"\",IF(OR('TSA Input'!J4135=\"Yes\",'TSA Input'!J4135=\"Contingent\"),'TSA Input'!C4135,\"\"))","v":""},{"$f":"IF('TSA Input'!J4135=\"\",\"\",IF(OR('TSA Input'!J4135=\"Yes\",'TSA Input'!J4135=\"Contingent\"),'TSA Input'!D4135,\"\"))","v":""},{"$f":"IF('TSA Input'!J4135=\"\",\"\",IF(OR('TSA Input'!J4135=\"Yes\",'TSA Input'!J4135=\"Contingent\"),'TSA Input'!G4135,\"\"))","v":""},{"$f":"IF('TSA Input'!J4135=\"\",\"\",IF(OR('TSA Input'!J4135=\"Yes\",'TSA Input'!J4135=\"Contingent\"),'TSA Input'!F4135,\"\"))","v":""},"",{"$f":"IF('TSA Input'!J4135=\"\",\"\",IF(OR('TSA Input'!J4135=\"Yes\",'TSA Input'!J4135=\"Contingent\"),'TSA Input'!D4135,\"\"))","v":""},{"$f":"IF('TSA Input'!J4135=\"\",\"\",IF(OR('TSA Input'!J4135=\"Yes\",'TSA Input'!J4135=\"Contingent\"),'TSA Input'!G4135,\"\"))","v":""},{"$f":"IF('TSA Input'!J4135=\"\",\"\",IF(OR('TSA Input'!J4135=\"Yes\",'TSA Input'!J4135=\"Contingent\"),'TSA Input'!F4135,\"\"))","v":""},"","Required","Required"]
["",null,{"$f":"IF('TSA Input'!J4136=\"\",\"\",IF(OR('TSA Input'!J4136=\"Yes\",'TSA Input'!J4136=\"Contingent\"),'TSA Input'!B4136,\"Ineligible\"))","v":""},{"$f":"IF('TSA Input'!J4136=\"\",\"\",IF(OR('TSA Input'!J4136=\"Yes\",'TSA Input'!J4136=\"Contingent\"),'TSA Input'!I4136,\"\"))","v":""},{"$f":"IF('TSA Input'!J4136=\"\",\"\",IF(OR('TSA Input'!J4136=\"Yes\",'TSA Input'!J4136=\"Contingent\"),'TSA Input'!C4136,\"\"))","v":""},{"$f":"IF('TSA Input'!J4136=\"\",\"\",IF(OR('TSA Input'!J4136=\"Yes\",'TSA Input'!J4136=\"Contingent\"),'TSA Input'!D4136,\"\"))","v":""},{"$f":"IF('TSA Input'!J4136=\"\",\"\",IF(OR('TSA Input'!J4136=\"Yes\",'TSA Input'!J4136=\"Contingent\"),'TSA Input'!G4136,\"\"))","v":""},{"$f":"IF('TSA Input'!J4136=\"\",\"\",IF(OR('TSA Input'!J4136=\"Yes\",'TSA Input'!J4136=\"Contingent\"),'TSA Input'!F4136,\"\"))","v":""},"",{"$f":"IF('TSA Input'!J4136=\"\",\"\",IF(OR('TSA Input'!J4136=\"Yes\",'TSA Input'!J4136=\"Contingent\"),'TSA Input'!D4136,\"\"))","v":""},{"$f":"IF('TSA Input'!J4136=\"\",\"\",IF(OR('TSA Input'!J4136=\"Yes\",'TSA Input'!J4136=\"Contingent\"),'TSA Input'!G4136,\"\"))","v":""},{"$f":"IF('TSA Input'!J4136=\"\",\"\",IF(OR('TSA Input'!J4136=\"Yes\",'TSA Input'!J4136=\"Contingent\"),'TSA Input'!F4136,\"\"))","v":""},"","Required","Required"]
["",null,{"$f":"IF('TSA Input'!J4137=\"\",\"\",IF(OR('TSA Input'!J4137=\"Yes\",'TSA Input'!J4137=\"Contingent\"),'TSA Input'!B4137,\"Ineligible\"))","v":""},{"$f":"IF('TSA Input'!J4137=\"\",\"\",IF(OR('TSA Input'!J4137=\"Yes\",'TSA Input'!J4137=\"Contingent\"),'TSA Input'!I4137,\"\"))","v":""},{"$f":"IF('TSA Input'!J4137=\"\",\"\",IF(OR('TSA Input'!J4137=\"Yes\",'TSA Input'!J4137=\"Contingent\"),'TSA Input'!C4137,\"\"))","v":""},{"$f":"IF('TSA Input'!J4137=\"\",\"\",IF(OR('TSA Input'!J4137=\"Yes\",'TSA Input'!J4137=\"Contingent\"),'TSA Input'!D4137,\"\"))","v":""},{"$f":"IF('TSA Input'!J4137=\"\",\"\",IF(OR('TSA Input'!J4137=\"Yes\",'TSA Input'!J4137=\"Contingent\"),'TSA Input'!G4137,\"\"))","v":""},{"$f":"IF('TSA Input'!J4137=\"\",\"\",IF(OR('TSA Input'!J4137=\"Yes\",'TSA Input'!J4137=\"Contingent\"),'TSA Input'!F4137,\"\"))","v":""},"",{"$f":"IF('TSA Input'!J4137=\"\",\"\",IF(OR('TSA Input'!J4137=\"Yes\",'TSA Input'!J4137=\"Contingent\"),'TSA Input'!D4137,\"\"))","v":""},{"$f":"IF('TSA Input'!J4137=\"\",\"\",IF(OR('TSA Input'!J4137=\"Yes\",'TSA Input'!J4137=\"Contingent\"),'TSA Input'!G4137,\"\"))","v":""},{"$f":"IF('TSA Input'!J4137=\"\",\"\",IF(OR('TSA Input'!J4137=\"Yes\",'TSA Input'!J4137=\"Contingent\"),'TSA Input'!F4137,\"\"))","v":""},"","Required","Required"]
["",null,{"$f":"IF('TSA Input'!J4138=\"\",\"\",IF(OR('TSA Input'!J4138=\"Yes\",'TSA Input'!J4138=\"Contingent\"),'TSA Input'!B4138,\"Ineligible\"))","v":""},{"$f":"IF('TSA Input'!J4138=\"\",\"\",IF(OR('TSA Input'!J4138=\"Yes\",'TSA Input'!J4138=\"Contingent\"),'TSA Input'!I4138,\"\"))","v":""},{"$f":"IF('TSA Input'!J4138=\"\",\"\",IF(OR('TSA Input'!J4138=\"Yes\",'TSA Input'!J4138=\"Contingent\"),'TSA Input'!C4138,\"\"))","v":""},{"$f":"IF('TSA Input'!J4138=\"\",\"\",IF(OR('TSA Input'!J4138=\"Yes\",'TSA Input'!J4138=\"Contingent\"),'TSA Input'!D4138,\"\"))","v":""},{"$f":"IF('TSA Input'!J4138=\"\",\"\",IF(OR('TSA Input'!J4138=\"Yes\",'TSA Input'!J4138=\"Contingent\"),'TSA Input'!G4138,\"\"))","v":""},{"$f":"IF('TSA Input'!J4138=\"\",\"\",IF(OR('TSA Input'!J4138=\"Yes\",'TSA Input'!J4138=\"Contingent\"),'TSA Input'!F4138,\"\"))","v":""},"",{"$f":"IF('TSA Input'!J4138=\"\",\"\",IF(OR('TSA Input'!J4138=\"Yes\",'TSA Input'!J4138=\"Contingent\"),'TSA Input'!D4138,\"\"))","v":""},{"$f":"IF('TSA Input'!J4138=\"\",\"\",IF(OR('TSA Input'!J4138=\"Yes\",'TSA Input'!J4138=\"Contingent\"),'TSA Input'!G4138,\"\"))","v":""},{"$f":"IF('TSA Input'!J4138=\"\",\"\",IF(OR('TSA Input'!J4138=\"Yes\",'TSA Input'!J4138=\"Contingent\"),'TSA Input'!F4138,\"\"))","v":""},"","Required","Required"]
["",null,{"$f":"IF('TSA Input'!J4139=\"\",\"\",IF(OR('TSA Input'!J4139=\"Yes\",'TSA Input'!J4139=\"Contingent\"),'TSA Input'!B4139,\"Ineligible\"))","v":""},{"$f":"IF('TSA Input'!J4139=\"\",\"\",IF(OR('TSA Input'!J4139=\"Yes\",'TSA Input'!J4139=\"Contingent\"),'TSA Input'!I4139,\"\"))","v":""},{"$f":"IF('TSA Input'!J4139=\"\",\"\",IF(OR('TSA Input'!J4139=\"Yes\",'TSA Input'!J4139=\"Contingent\"),'TSA Input'!C4139,\"\"))","v":""},{"$f":"IF('TSA Input'!J4139=\"\",\"\",IF(OR('TSA Input'!J4139=\"Yes\",'TSA Input'!J4139=\"Contingent\"),'TSA Input'!D4139,\"\"))","v":""},{"$f":"IF('TSA Input'!J4139=\"\",\"\",IF(OR('TSA Input'!J4139=\"Yes\",'TSA Input'!J4139=\"Contingent\"),'TSA Input'!G4139,\"\"))","v":""},{"$f":"IF('TSA Input'!J4139=\"\",\"\",IF(OR('TSA Input'!J4139=\"Yes\",'TSA Input'!J4139=\"Contingent\"),'TSA Input'!F4139,\"\"))","v":""},"",{"$f":"IF('TSA Input'!J4139=\"\",\"\",IF(OR('TSA Input'!J4139=\"Yes\",'TSA Input'!J4139=\"Contingent\"),'TSA Input'!D4139,\"\"))","v":""},{"$f":"IF('TSA Input'!J4139=\"\",\"\",IF(OR('TSA Input'!J4139=\"Yes\",'TSA Input'!J4139=\"Contingent\"),'TSA Input'!G4139,\"\"))","v":""},{"$f":"IF('TSA Input'!J4139=\"\",\"\",IF(OR('TSA Input'!J4139=\"Yes\",'TSA Input'!J4139=\"Contingent\"),'TSA Input'!F4139,\"\"))","v":""},"","Required","Required"]
["",null,{"$f":"IF('TSA Input'!J4140=\"\",\"\",IF(OR('TSA Input'!J4140=\"Yes\",'TSA Input'!J4140=\"Contingent\"),'TSA Input'!B4140,\"Ineligible\"))","v":""},{"$f":"IF('TSA Input'!J4140=\"\",\"\",IF(OR('TSA Input'!J4140=\"Yes\",'TSA Input'!J4140=\"Contingent\"),'TSA Input'!I4140,\"\"))","v":""},{"$f":"IF('TSA Input'!J4140=\"\",\"\",IF(OR('TSA Input'!J4140=\"Yes\",'TSA Input'!J4140=\"Contingent\"),'TSA Input'!C4140,\"\"))","v":""},{"$f":"IF('TSA Input'!J4140=\"\",\"\",IF(OR('TSA Input'!J4140=\"Yes\",'TSA Input'!J4140=\"Contingent\"),'TSA Input'!D4140,\"\"))","v":""},{"$f":"IF('TSA Input'!J4140=\"\",\"\",IF(OR('TSA Input'!J4140=\"Yes\",'TSA Input'!J4140=\"Contingent\"),'TSA Input'!G4140,\"\"))","v":""},{"$f":"IF('TSA Input'!J4140=\"\",\"\",IF(OR('TSA Input'!J4140=\"Yes\",'TSA Input'!J4140=\"Contingent\"),'TSA Input'!F4140,\"\"))","v":""},"",{"$f":"IF('TSA Input'!J4140=\"\",\"\",IF(OR('TSA Input'!J4140=\"Yes\",'TSA Input'!J4140=\"Contingent\"),'TSA Input'!D4140,\"\"))","v":""},{"$f":"IF('TSA Input'!J4140=\"\",\"\",IF(OR('TSA Input'!J4140=\"Yes\",'TSA Input'!J4140=\"Contingent\"),'TSA Input'!G4140,\"\"))","v":""},{"$f":"IF('TSA Input'!J4140=\"\",\"\",IF(OR('TSA Input'!J4140=\"Yes\",'TSA Input'!J4140=\"Contingent\"),'TSA Input'!F4140,\"\"))","v":""},"","Required","Required"]
["",null,{"$f":"IF('TSA Input'!J4141=\"\",\"\",IF(OR('TSA Input'!J4141=\"Yes\",'TSA Input'!J4141=\"Contingent\"),'TSA Input'!B4141,\"Ineligible\"))","v":""},{"$f":"IF('TSA Input'!J4141=\"\",\"\",IF(OR('TSA Input'!J4141=\"Yes\",'TSA Input'!J4141=\"Contingent\"),'TSA Input'!I4141,\"\"))","v":""},{"$f":"IF('TSA Input'!J4141=\"\",\"\",IF(OR('TSA Input'!J4141=\"Yes\",'TSA Input'!J4141=\"Contingent\"),'TSA Input'!C4141,\"\"))","v":""},{"$f":"IF('TSA Input'!J4141=\"\",\"\",IF(OR('TSA Input'!J4141=\"Yes\",'TSA Input'!J4141=\"Contingent\"),'TSA Input'!D4141,\"\"))","v":""},{"$f":"IF('TSA Input'!J4141=\"\",\"\",IF(OR('TSA Input'!J4141=\"Yes\",'TSA Input'!J4141=\"Contingent\"),'TSA Input'!G4141,\"\"))","v":""},{"$f":"IF('TSA Input'!J4141=\"\",\"\",IF(OR('TSA Input'!J4141=\"Yes\",'TSA Input'!J4141=\"Contingent\"),'TSA Input'!F4141,\"\"))","v":""},"",{"$f":"IF('TSA Input'!J4141=\"\",\"\",IF(OR('TSA Input'!J4141=\"Yes\",'TSA Input'!J4141=\"Contingent\"),'TSA Input'!D4141,\"\"))","v":""},{"$f":"IF('TSA Input'!J4141=\"\",\"\",IF(OR('TSA Input'!J4141=\"Yes\",'TSA Input'!J4141=\"Contingent\"),'TSA Input'!G4141,\"\"))","v":""},{"$f":"IF('TSA Input'!J4141=\"\",\"\",IF(OR('TSA Input'!J4141=\"Yes\",'TSA Input'!J4141=\"Contingent\"),'TSA Input'!F4141,\"\"))","v":""},"","Required","Required"]
["",null,{"$f":"IF('TSA Input'!J4142=\"\",\"\",IF(OR('TSA Input'!J4142=\"Yes\",'TSA Input'!J4142=\"Contingent\"),'TSA Input'!B4142,\"Ineligible\"))","v":""},{"$f":"IF('TSA Input'!J4142=\"\",\"\",IF(OR('TSA Input'!J4142=\"Yes\",'TSA Input'!J4142=\"Contingent\"),'TSA Input'!I4142,\"\"))","v":""},{"$f":"IF('TSA Input'!J4142=\"\",\"\",IF(OR('TSA Input'!J4142=\"Yes\",'TSA Input'!J4142=\"Contingent\"),'TSA Input'!C4142,\"\"))","v":""},{"$f":"IF('TSA Input'!J4142=\"\",\"\",IF(OR('TSA Input'!J4142=\"Yes\",'TSA Input'!J4142=\"Contingent\"),'TSA Input'!D4142,\"\"))","v":""},{"$f":"IF('TSA Input'!J4142=\"\",\"\",IF(OR('TSA Input'!J4142=\"Yes\",'TSA Input'!J4142=\"Contingent\"),'TSA Input'!G4142,\"\"))","v":""},{"$f":"IF('TSA Input'!J4142=\"\",\"\",IF(OR('TSA Input'!J4142=\"Yes\",'TSA Input'!J4142=\"Contingent\"),'TSA Input'!F4142,\"\"))","v":""},"",{"$f":"IF('TSA Input'!J4142=\"\",\"\",IF(OR('TSA Input'!J4142=\"Yes\",'TSA Input'!J4142=\"Contingent\"),'TSA Input'!D4142,\"\"))","v":""},{"$f":"IF('TSA Input'!J4142=\"\",\"\",IF(OR('TSA Input'!J4142=\"Yes\",'TSA Input'!J4142=\"Contingent\"),'TSA Input'!G4142,\"\"))","v":""},{"$f":"IF('TSA Input'!J4142=\"\",\"\",IF(OR('TSA Input'!J4142=\"Yes\",'TSA Input'!J4142=\"Contingent\"),'TSA Input'!F4142,\"\"))","v":""},"","Required","Required"]
["",null,{"$f":"IF('TSA Input'!J4143=\"\",\"\",IF(OR('TSA Input'!J4143=\"Yes\",'TSA Input'!J4143=\"Contingent\"),'TSA Input'!B4143,\"Ineligible\"))","v":""},{"$f":"IF('TSA Input'!J4143=\"\",\"\",IF(OR('TSA Input'!J4143=\"Yes\",'TSA Input'!J4143=\"Contingent\"),'TSA Input'!I4143,\"\"))","v":""},{"$f":"IF('TSA Input'!J4143=\"\",\"\",IF(OR('TSA Input'!J4143=\"Yes\",'TSA Input'!J4143=\"Contingent\"),'TSA Input'!C4143,\"\"))","v":""},{"$f":"IF('TSA Input'!J4143=\"\",\"\",IF(OR('TSA Input'!J4143=\"Yes\",'TSA Input'!J4143=\"Contingent\"),'TSA Input'!D4143,\"\"))","v":""},{"$f":"IF('TSA Input'!J4143=\"\",\"\",IF(OR('TSA Input'!J4143=\"Yes\",'TSA Input'!J4143=\"Contingent\"),'TSA Input'!G4143,\"\"))","v":""},{"$f":"IF('TSA Input'!J4143=\"\",\"\",IF(OR('TSA Input'!J4143=\"Yes\",'TSA Input'!J4143=\"Contingent\"),'TSA Input'!F4143,\"\"))","v":""},"",{"$f":"IF('TSA Input'!J4143=\"\",\"\",IF(OR('TSA Input'!J4143=\"Yes\",'TSA Input'!J4143=\"Contingent\"),'TSA Input'!D4143,\"\"))","v":""},{"$f":"IF('TSA Input'!J4143=\"\",\"\",IF(OR('TSA Input'!J4143=\"Yes\",'TSA Input'!J4143=\"Contingent\"),'TSA Input'!G4143,\"\"))","v":""},{"$f":"IF('TSA Input'!J4143=\"\",\"\",IF(OR('TSA Input'!J4143=\"Yes\",'TSA Input'!J4143=\"Contingent\"),'TSA Input'!F4143,\"\"))","v":""},"","Required","Required"]
["",null,{"$f":"IF('TSA Input'!J4144=\"\",\"\",IF(OR('TSA Input'!J4144=\"Yes\",'TSA Input'!J4144=\"Contingent\"),'TSA Input'!B4144,\"Ineligible\"))","v":""},{"$f":"IF('TSA Input'!J4144=\"\",\"\",IF(OR('TSA Input'!J4144=\"Yes\",'TSA Input'!J4144=\"Contingent\"),'TSA Input'!I4144,\"\"))","v":""},{"$f":"IF('TSA Input'!J4144=\"\",\"\",IF(OR('TSA Input'!J4144=\"Yes\",'TSA Input'!J4144=\"Contingent\"),'TSA Input'!C4144,\"\"))","v":""},{"$f":"IF('TSA Input'!J4144=\"\",\"\",IF(OR('TSA Input'!J4144=\"Yes\",'TSA Input'!J4144=\"Contingent\"),'TSA Input'!D4144,\"\"))","v":""},{"$f":"IF('TSA Input'!J4144=\"\",\"\",IF(OR('TSA Input'!J4144=\"Yes\",'TSA Input'!J4144=\"Contingent\"),'TSA Input'!G4144,\"\"))","v":""},{"$f":"IF('TSA Input'!J4144=\"\",\"\",IF(OR('TSA Input'!J4144=\"Yes\",'TSA Input'!J4144=\"Contingent\"),'TSA Input'!F4144,\"\"))","v":""},"",{"$f":"IF('TSA Input'!J4144=\"\",\"\",IF(OR('TSA Input'!J4144=\"Yes\",'TSA Input'!J4144=\"Contingent\"),'TSA Input'!D4144,\"\"))","v":""},{"$f":"IF('TSA Input'!J4144=\"\",\"\",IF(OR('TSA Input'!J4144=\"Yes\",'TSA Input'!J4144=\"Contingent\"),'TSA Input'!G4144,\"\"))","v":""},{"$f":"IF('TSA Input'!J4144=\"\",\"\",IF(OR('TSA Input'!J4144=\"Yes\",'TSA Input'!J4144=\"Contingent\"),'TSA Input'!F4144,\"\"))","v":""},"","Required","Required"]
["",null,{"$f":"IF('TSA Input'!J4145=\"\",\"\",IF(OR('TSA Input'!J4145=\"Yes\",'TSA Input'!J4145=\"Contingent\"),'TSA Input'!B4145,\"Ineligible\"))","v":""},{"$f":"IF('TSA Input'!J4145=\"\",\"\",IF(OR('TSA Input'!J4145=\"Yes\",'TSA Input'!J4145=\"Contingent\"),'TSA Input'!I4145,\"\"))","v":""},{"$f":"IF('TSA Input'!J4145=\"\",\"\",IF(OR('TSA Input'!J4145=\"Yes\",'TSA Input'!J4145=\"Contingent\"),'TSA Input'!C4145,\"\"))","v":""},{"$f":"IF('TSA Input'!J4145=\"\",\"\",IF(OR('TSA Input'!J4145=\"Yes\",'TSA Input'!J4145=\"Contingent\"),'TSA Input'!D4145,\"\"))","v":""},{"$f":"IF('TSA Input'!J4145=\"\",\"\",IF(OR('TSA Input'!J4145=\"Yes\",'TSA Input'!J4145=\"Contingent\"),'TSA Input'!G4145,\"\"))","v":""},{"$f":"IF('TSA Input'!J4145=\"\",\"\",IF(OR('TSA Input'!J4145=\"Yes\",'TSA Input'!J4145=\"Contingent\"),'TSA Input'!F4145,\"\"))","v":""},"",{"$f":"IF('TSA Input'!J4145=\"\",\"\",IF(OR('TSA Input'!J4145=\"Yes\",'TSA Input'!J4145=\"Contingent\"),'TSA Input'!D4145,\"\"))","v":""},{"$f":"IF('TSA Input'!J4145=\"\",\"\",IF(OR('TSA Input'!J4145=\"Yes\",'TSA Input'!J4145=\"Contingent\"),'TSA Input'!G4145,\"\"))","v":""},{"$f":"IF('TSA Input'!J4145=\"\",\"\",IF(OR('TSA Input'!J4145=\"Yes\",'TSA Input'!J4145=\"Contingent\"),'TSA Input'!F4145,\"\"))","v":""},"","Required","Required"]
["",null,{"$f":"IF('TSA Input'!J4146=\"\",\"\",IF(OR('TSA Input'!J4146=\"Yes\",'TSA Input'!J4146=\"Contingent\"),'TSA Input'!B4146,\"Ineligible\"))","v":""},{"$f":"IF('TSA Input'!J4146=\"\",\"\",IF(OR('TSA Input'!J4146=\"Yes\",'TSA Input'!J4146=\"Contingent\"),'TSA Input'!I4146,\"\"))","v":""},{"$f":"IF('TSA Input'!J4146=\"\",\"\",IF(OR('TSA Input'!J4146=\"Yes\",'TSA Input'!J4146=\"Contingent\"),'TSA Input'!C4146,\"\"))","v":""},{"$f":"IF('TSA Input'!J4146=\"\",\"\",IF(OR('TSA Input'!J4146=\"Yes\",'TSA Input'!J4146=\"Contingent\"),'TSA Input'!D4146,\"\"))","v":""},{"$f":"IF('TSA Input'!J4146=\"\",\"\",IF(OR('TSA Input'!J4146=\"Yes\",'TSA Input'!J4146=\"Contingent\"),'TSA Input'!G4146,\"\"))","v":""},{"$f":"IF('TSA Input'!J4146=\"\",\"\",IF(OR('TSA Input'!J4146=\"Yes\",'TSA Input'!J4146=\"Contingent\"),'TSA Input'!F4146,\"\"))","v":""},"",{"$f":"IF('TSA Input'!J4146=\"\",\"\",IF(OR('TSA Input'!J4146=\"Yes\",'TSA Input'!J4146=\"Contingent\"),'TSA Input'!D4146,\"\"))","v":""},{"$f":"IF('TSA Input'!J4146=\"\",\"\",IF(OR('TSA Input'!J4146=\"Yes\",'TSA Input'!J4146=\"Contingent\"),'TSA Input'!G4146,\"\"))","v":""},{"$f":"IF('TSA Input'!J4146=\"\",\"\",IF(OR('TSA Input'!J4146=\"Yes\",'TSA Input'!J4146=\"Contingent\"),'TSA Input'!F4146,\"\"))","v":""},"","Required","Required"]
["",null,{"$f":"IF('TSA Input'!J4147=\"\",\"\",IF(OR('TSA Input'!J4147=\"Yes\",'TSA Input'!J4147=\"Contingent\"),'TSA Input'!B4147,\"Ineligible\"))","v":""},{"$f":"IF('TSA Input'!J4147=\"\",\"\",IF(OR('TSA Input'!J4147=\"Yes\",'TSA Input'!J4147=\"Contingent\"),'TSA Input'!I4147,\"\"))","v":""},{"$f":"IF('TSA Input'!J4147=\"\",\"\",IF(OR('TSA Input'!J4147=\"Yes\",'TSA Input'!J4147=\"Contingent\"),'TSA Input'!C4147,\"\"))","v":""},{"$f":"IF('TSA Input'!J4147=\"\",\"\",IF(OR('TSA Input'!J4147=\"Yes\",'TSA Input'!J4147=\"Contingent\"),'TSA Input'!D4147,\"\"))","v":""},{"$f":"IF('TSA Input'!J4147=\"\",\"\",IF(OR('TSA Input'!J4147=\"Yes\",'TSA Input'!J4147=\"Contingent\"),'TSA Input'!G4147,\"\"))","v":""},{"$f":"IF('TSA Input'!J4147=\"\",\"\",IF(OR('TSA Input'!J4147=\"Yes\",'TSA Input'!J4147=\"Contingent\"),'TSA Input'!F4147,\"\"))","v":""},"",{"$f":"IF('TSA Input'!J4147=\"\",\"\",IF(OR('TSA Input'!J4147=\"Yes\",'TSA Input'!J4147=\"Contingent\"),'TSA Input'!D4147,\"\"))","v":""},{"$f":"IF('TSA Input'!J4147=\"\",\"\",IF(OR('TSA Input'!J4147=\"Yes\",'TSA Input'!J4147=\"Contingent\"),'TSA Input'!G4147,\"\"))","v":""},{"$f":"IF('TSA Input'!J4147=\"\",\"\",IF(OR('TSA Input'!J4147=\"Yes\",'TSA Input'!J4147=\"Contingent\"),'TSA Input'!F4147,\"\"))","v":""},"","Required","Required"]
["",null,{"$f":"IF('TSA Input'!J4148=\"\",\"\",IF(OR('TSA Input'!J4148=\"Yes\",'TSA Input'!J4148=\"Contingent\"),'TSA Input'!B4148,\"Ineligible\"))","v":""},{"$f":"IF('TSA Input'!J4148=\"\",\"\",IF(OR('TSA Input'!J4148=\"Yes\",'TSA Input'!J4148=\"Contingent\"),'TSA Input'!I4148,\"\"))","v":""},{"$f":"IF('TSA Input'!J4148=\"\",\"\",IF(OR('TSA Input'!J4148=\"Yes\",'TSA Input'!J4148=\"Contingent\"),'TSA Input'!C4148,\"\"))","v":""},{"$f":"IF('TSA Input'!J4148=\"\",\"\",IF(OR('TSA Input'!J4148=\"Yes\",'TSA Input'!J4148=\"Contingent\"),'TSA Input'!D4148,\"\"))","v":""},{"$f":"IF('TSA Input'!J4148=\"\",\"\",IF(OR('TSA Input'!J4148=\"Yes\",'TSA Input'!J4148=\"Contingent\"),'TSA Input'!G4148,\"\"))","v":""},{"$f":"IF('TSA Input'!J4148=\"\",\"\",IF(OR('TSA Input'!J4148=\"Yes\",'TSA Input'!J4148=\"Contingent\"),'TSA Input'!F4148,\"\"))","v":""},"",{"$f":"IF('TSA Input'!J4148=\"\",\"\",IF(OR('TSA Input'!J4148=\"Yes\",'TSA Input'!J4148=\"Contingent\"),'TSA Input'!D4148,\"\"))","v":""},{"$f":"IF('TSA Input'!J4148=\"\",\"\",IF(OR('TSA Input'!J4148=\"Yes\",'TSA Input'!J4148=\"Contingent\"),'TSA Input'!G4148,\"\"))","v":""},{"$f":"IF('TSA Input'!J4148=\"\",\"\",IF(OR('TSA Input'!J4148=\"Yes\",'TSA Input'!J4148=\"Contingent\"),'TSA Input'!F4148,\"\"))","v":""},"","Required","Required"]
["",null,{"$f":"IF('TSA Input'!J4149=\"\",\"\",IF(OR('TSA Input'!J4149=\"Yes\",'TSA Input'!J4149=\"Contingent\"),'TSA Input'!B4149,\"Ineligible\"))","v":""},{"$f":"IF('TSA Input'!J4149=\"\",\"\",IF(OR('TSA Input'!J4149=\"Yes\",'TSA Input'!J4149=\"Contingent\"),'TSA Input'!I4149,\"\"))","v":""},{"$f":"IF('TSA Input'!J4149=\"\",\"\",IF(OR('TSA Input'!J4149=\"Yes\",'TSA Input'!J4149=\"Contingent\"),'TSA Input'!C4149,\"\"))","v":""},{"$f":"IF('TSA Input'!J4149=\"\",\"\",IF(OR('TSA Input'!J4149=\"Yes\",'TSA Input'!J4149=\"Contingent\"),'TSA Input'!D4149,\"\"))","v":""},{"$f":"IF('TSA Input'!J4149=\"\",\"\",IF(OR('TSA Input'!J4149=\"Yes\",'TSA Input'!J4149=\"Contingent\"),'TSA Input'!G4149,\"\"))","v":""},{"$f":"IF('TSA Input'!J4149=\"\",\"\",IF(OR('TSA Input'!J4149=\"Yes\",'TSA Input'!J4149=\"Contingent\"),'TSA Input'!F4149,\"\"))","v":""},"",{"$f":"IF('TSA Input'!J4149=\"\",\"\",IF(OR('TSA Input'!J4149=\"Yes\",'TSA Input'!J4149=\"Contingent\"),'TSA Input'!D4149,\"\"))","v":""},{"$f":"IF('TSA Input'!J4149=\"\",\"\",IF(OR('TSA Input'!J4149=\"Yes\",'TSA Input'!J4149=\"Contingent\"),'TSA Input'!G4149,\"\"))","v":""},{"$f":"IF('TSA Input'!J4149=\"\",\"\",IF(OR('TSA Input'!J4149=\"Yes\",'TSA Input'!J4149=\"Contingent\"),'TSA Input'!F4149,\"\"))","v":""},"","Required","Required"]
["",null,{"$f":"IF('TSA Input'!J4150=\"\",\"\",IF(OR('TSA Input'!J4150=\"Yes\",'TSA Input'!J4150=\"Contingent\"),'TSA Input'!B4150,\"Ineligible\"))","v":""},{"$f":"IF('TSA Input'!J4150=\"\",\"\",IF(OR('TSA Input'!J4150=\"Yes\",'TSA Input'!J4150=\"Contingent\"),'TSA Input'!I4150,\"\"))","v":""},{"$f":"IF('TSA Input'!J4150=\"\",\"\",IF(OR('TSA Input'!J4150=\"Yes\",'TSA Input'!J4150=\"Contingent\"),'TSA Input'!C4150,\"\"))","v":""},{"$f":"IF('TSA Input'!J4150=\"\",\"\",IF(OR('TSA Input'!J4150=\"Yes\",'TSA Input'!J4150=\"Contingent\"),'TSA Input'!D4150,\"\"))","v":""},{"$f":"IF('TSA Input'!J4150=\"\",\"\",IF(OR('TSA Input'!J4150=\"Yes\",'TSA Input'!J4150=\"Contingent\"),'TSA Input'!G4150,\"\"))","v":""},{"$f":"IF('TSA Input'!J4150=\"\",\"\",IF(OR('TSA Input'!J4150=\"Yes\",'TSA Input'!J4150=\"Contingent\"),'TSA Input'!F4150,\"\"))","v":""},"",{"$f":"IF('TSA Input'!J4150=\"\",\"\",IF(OR('TSA Input'!J4150=\"Yes\",'TSA Input'!J4150=\"Contingent\"),'TSA Input'!D4150,\"\"))","v":""},{"$f":"IF('TSA Input'!J4150=\"\",\"\",IF(OR('TSA Input'!J4150=\"Yes\",'TSA Input'!J4150=\"Contingent\"),'TSA Input'!G4150,\"\"))","v":""},{"$f":"IF('TSA Input'!J4150=\"\",\"\",IF(OR('TSA Input'!J4150=\"Yes\",'TSA Input'!J4150=\"Contingent\"),'TSA Input'!F4150,\"\"))","v":""},"","Required","Required"]
["",null,{"$f":"IF('TSA Input'!J4151=\"\",\"\",IF(OR('TSA Input'!J4151=\"Yes\",'TSA Input'!J4151=\"Contingent\"),'TSA Input'!B4151,\"Ineligible\"))","v":""},{"$f":"IF('TSA Input'!J4151=\"\",\"\",IF(OR('TSA Input'!J4151=\"Yes\",'TSA Input'!J4151=\"Contingent\"),'TSA Input'!I4151,\"\"))","v":""},{"$f":"IF('TSA Input'!J4151=\"\",\"\",IF(OR('TSA Input'!J4151=\"Yes\",'TSA Input'!J4151=\"Contingent\"),'TSA Input'!C4151,\"\"))","v":""},{"$f":"IF('TSA Input'!J4151=\"\",\"\",IF(OR('TSA Input'!J4151=\"Yes\",'TSA Input'!J4151=\"Contingent\"),'TSA Input'!D4151,\"\"))","v":""},{"$f":"IF('TSA Input'!J4151=\"\",\"\",IF(OR('TSA Input'!J4151=\"Yes\",'TSA Input'!J4151=\"Contingent\"),'TSA Input'!G4151,\"\"))","v":""},{"$f":"IF('TSA Input'!J4151=\"\",\"\",IF(OR('TSA Input'!J4151=\"Yes\",'TSA Input'!J4151=\"Contingent\"),'TSA Input'!F4151,\"\"))","v":""},"",{"$f":"IF('TSA Input'!J4151=\"\",\"\",IF(OR('TSA Input'!J4151=\"Yes\",'TSA Input'!J4151=\"Contingent\"),'TSA Input'!D4151,\"\"))","v":""},{"$f":"IF('TSA Input'!J4151=\"\",\"\",IF(OR('TSA Input'!J4151=\"Yes\",'TSA Input'!J4151=\"Contingent\"),'TSA Input'!G4151,\"\"))","v":""},{"$f":"IF('TSA Input'!J4151=\"\",\"\",IF(OR('TSA Input'!J4151=\"Yes\",'TSA Input'!J4151=\"Contingent\"),'TSA Input'!F4151,\"\"))","v":""},"","Required","Required"]
["",null,{"$f":"IF('TSA Input'!J4152=\"\",\"\",IF(OR('TSA Input'!J4152=\"Yes\",'TSA Input'!J4152=\"Contingent\"),'TSA Input'!B4152,\"Ineligible\"))","v":""},{"$f":"IF('TSA Input'!J4152=\"\",\"\",IF(OR('TSA Input'!J4152=\"Yes\",'TSA Input'!J4152=\"Contingent\"),'TSA Input'!I4152,\"\"))","v":""},{"$f":"IF('TSA Input'!J4152=\"\",\"\",IF(OR('TSA Input'!J4152=\"Yes\",'TSA Input'!J4152=\"Contingent\"),'TSA Input'!C4152,\"\"))","v":""},{"$f":"IF('TSA Input'!J4152=\"\",\"\",IF(OR('TSA Input'!J4152=\"Yes\",'TSA Input'!J4152=\"Contingent\"),'TSA Input'!D4152,\"\"))","v":""},{"$f":"IF('TSA Input'!J4152=\"\",\"\",IF(OR('TSA Input'!J4152=\"Yes\",'TSA Input'!J4152=\"Contingent\"),'TSA Input'!G4152,\"\"))","v":""},{"$f":"IF('TSA Input'!J4152=\"\",\"\",IF(OR('TSA Input'!J4152=\"Yes\",'TSA Input'!J4152=\"Contingent\"),'TSA Input'!F4152,\"\"))","v":""},"",{"$f":"IF('TSA Input'!J4152=\"\",\"\",IF(OR('TSA Input'!J4152=\"Yes\",'TSA Input'!J4152=\"Contingent\"),'TSA Input'!D4152,\"\"))","v":""},{"$f":"IF('TSA Input'!J4152=\"\",\"\",IF(OR('TSA Input'!J4152=\"Yes\",'TSA Input'!J4152=\"Contingent\"),'TSA Input'!G4152,\"\"))","v":""},{"$f":"IF('TSA Input'!J4152=\"\",\"\",IF(OR('TSA Input'!J4152=\"Yes\",'TSA Input'!J4152=\"Contingent\"),'TSA Input'!F4152,\"\"))","v":""},"","Required","Required"]
["",null,{"$f":"IF('TSA Input'!J4153=\"\",\"\",IF(OR('TSA Input'!J4153=\"Yes\",'TSA Input'!J4153=\"Contingent\"),'TSA Input'!B4153,\"Ineligible\"))","v":""},{"$f":"IF('TSA Input'!J4153=\"\",\"\",IF(OR('TSA Input'!J4153=\"Yes\",'TSA Input'!J4153=\"Contingent\"),'TSA Input'!I4153,\"\"))","v":""},{"$f":"IF('TSA Input'!J4153=\"\",\"\",IF(OR('TSA Input'!J4153=\"Yes\",'TSA Input'!J4153=\"Contingent\"),'TSA Input'!C4153,\"\"))","v":""},{"$f":"IF('TSA Input'!J4153=\"\",\"\",IF(OR('TSA Input'!J4153=\"Yes\",'TSA Input'!J4153=\"Contingent\"),'TSA Input'!D4153,\"\"))","v":""},{"$f":"IF('TSA Input'!J4153=\"\",\"\",IF(OR('TSA Input'!J4153=\"Yes\",'TSA Input'!J4153=\"Contingent\"),'TSA Input'!G4153,\"\"))","v":""},{"$f":"IF('TSA Input'!J4153=\"\",\"\",IF(OR('TSA Input'!J4153=\"Yes\",'TSA Input'!J4153=\"Contingent\"),'TSA Input'!F4153,\"\"))","v":""},"",{"$f":"IF('TSA Input'!J4153=\"\",\"\",IF(OR('TSA Input'!J4153=\"Yes\",'TSA Input'!J4153=\"Contingent\"),'TSA Input'!D4153,\"\"))","v":""},{"$f":"IF('TSA Input'!J4153=\"\",\"\",IF(OR('TSA Input'!J4153=\"Yes\",'TSA Input'!J4153=\"Contingent\"),'TSA Input'!G4153,\"\"))","v":""},{"$f":"IF('TSA Input'!J4153=\"\",\"\",IF(OR('TSA Input'!J4153=\"Yes\",'TSA Input'!J4153=\"Contingent\"),'TSA Input'!F4153,\"\"))","v":""},"","Required","Required"]
["",null,{"$f":"IF('TSA Input'!J4154=\"\",\"\",IF(OR('TSA Input'!J4154=\"Yes\",'TSA Input'!J4154=\"Contingent\"),'TSA Input'!B4154,\"Ineligible\"))","v":""},{"$f":"IF('TSA Input'!J4154=\"\",\"\",IF(OR('TSA Input'!J4154=\"Yes\",'TSA Input'!J4154=\"Contingent\"),'TSA Input'!I4154,\"\"))","v":""},{"$f":"IF('TSA Input'!J4154=\"\",\"\",IF(OR('TSA Input'!J4154=\"Yes\",'TSA Input'!J4154=\"Contingent\"),'TSA Input'!C4154,\"\"))","v":""},{"$f":"IF('TSA Input'!J4154=\"\",\"\",IF(OR('TSA Input'!J4154=\"Yes\",'TSA Input'!J4154=\"Contingent\"),'TSA Input'!D4154,\"\"))","v":""},{"$f":"IF('TSA Input'!J4154=\"\",\"\",IF(OR('TSA Input'!J4154=\"Yes\",'TSA Input'!J4154=\"Contingent\"),'TSA Input'!G4154,\"\"))","v":""},{"$f":"IF('TSA Input'!J4154=\"\",\"\",IF(OR('TSA Input'!J4154=\"Yes\",'TSA Input'!J4154=\"Contingent\"),'TSA Input'!F4154,\"\"))","v":""},"",{"$f":"IF('TSA Input'!J4154=\"\",\"\",IF(OR('TSA Input'!J4154=\"Yes\",'TSA Input'!J4154=\"Contingent\"),'TSA Input'!D4154,\"\"))","v":""},{"$f":"IF('TSA Input'!J4154=\"\",\"\",IF(OR('TSA Input'!J4154=\"Yes\",'TSA Input'!J4154=\"Contingent\"),'TSA Input'!G4154,\"\"))","v":""},{"$f":"IF('TSA Input'!J4154=\"\",\"\",IF(OR('TSA Input'!J4154=\"Yes\",'TSA Input'!J4154=\"Contingent\"),'TSA Input'!F4154,\"\"))","v":""},"","Required","Required"]
["",null,{"$f":"IF('TSA Input'!J4155=\"\",\"\",IF(OR('TSA Input'!J4155=\"Yes\",'TSA Input'!J4155=\"Contingent\"),'TSA Input'!B4155,\"Ineligible\"))","v":""},{"$f":"IF('TSA Input'!J4155=\"\",\"\",IF(OR('TSA Input'!J4155=\"Yes\",'TSA Input'!J4155=\"Contingent\"),'TSA Input'!I4155,\"\"))","v":""},{"$f":"IF('TSA Input'!J4155=\"\",\"\",IF(OR('TSA Input'!J4155=\"Yes\",'TSA Input'!J4155=\"Contingent\"),'TSA Input'!C4155,\"\"))","v":""},{"$f":"IF('TSA Input'!J4155=\"\",\"\",IF(OR('TSA Input'!J4155=\"Yes\",'TSA Input'!J4155=\"Contingent\"),'TSA Input'!D4155,\"\"))","v":""},{"$f":"IF('TSA Input'!J4155=\"\",\"\",IF(OR('TSA Input'!J4155=\"Yes\",'TSA Input'!J4155=\"Contingent\"),'TSA Input'!G4155,\"\"))","v":""},{"$f":"IF('TSA Input'!J4155=\"\",\"\",IF(OR('TSA Input'!J4155=\"Yes\",'TSA Input'!J4155=\"Contingent\"),'TSA Input'!F4155,\"\"))","v":""},"",{"$f":"IF('TSA Input'!J4155=\"\",\"\",IF(OR('TSA Input'!J4155=\"Yes\",'TSA Input'!J4155=\"Contingent\"),'TSA Input'!D4155,\"\"))","v":""},{"$f":"IF('TSA Input'!J4155=\"\",\"\",IF(OR('TSA Input'!J4155=\"Yes\",'TSA Input'!J4155=\"Contingent\"),'TSA Input'!G4155,\"\"))","v":""},{"$f":"IF('TSA Input'!J4155=\"\",\"\",IF(OR('TSA Input'!J4155=\"Yes\",'TSA Input'!J4155=\"Contingent\"),'TSA Input'!F4155,\"\"))","v":""},"","Required","Required"]
["",null,{"$f":"IF('TSA Input'!J4156=\"\",\"\",IF(OR('TSA Input'!J4156=\"Yes\",'TSA Input'!J4156=\"Contingent\"),'TSA Input'!B4156,\"Ineligible\"))","v":""},{"$f":"IF('TSA Input'!J4156=\"\",\"\",IF(OR('TSA Input'!J4156=\"Yes\",'TSA Input'!J4156=\"Contingent\"),'TSA Input'!I4156,\"\"))","v":""},{"$f":"IF('TSA Input'!J4156=\"\",\"\",IF(OR('TSA Input'!J4156=\"Yes\",'TSA Input'!J4156=\"Contingent\"),'TSA Input'!C4156,\"\"))","v":""},{"$f":"IF('TSA Input'!J4156=\"\",\"\",IF(OR('TSA Input'!J4156=\"Yes\",'TSA Input'!J4156=\"Contingent\"),'TSA Input'!D4156,\"\"))","v":""},{"$f":"IF('TSA Input'!J4156=\"\",\"\",IF(OR('TSA Input'!J4156=\"Yes\",'TSA Input'!J4156=\"Contingent\"),'TSA Input'!G4156,\"\"))","v":""},{"$f":"IF('TSA Input'!J4156=\"\",\"\",IF(OR('TSA Input'!J4156=\"Yes\",'TSA Input'!J4156=\"Contingent\"),'TSA Input'!F4156,\"\"))","v":""},"",{"$f":"IF('TSA Input'!J4156=\"\",\"\",IF(OR('TSA Input'!J4156=\"Yes\",'TSA Input'!J4156=\"Contingent\"),'TSA Input'!D4156,\"\"))","v":""},{"$f":"IF('TSA Input'!J4156=\"\",\"\",IF(OR('TSA Input'!J4156=\"Yes\",'TSA Input'!J4156=\"Contingent\"),'TSA Input'!G4156,\"\"))","v":""},{"$f":"IF('TSA Input'!J4156=\"\",\"\",IF(OR('TSA Input'!J4156=\"Yes\",'TSA Input'!J4156=\"Contingent\"),'TSA Input'!F4156,\"\"))","v":""},"","Required","Required"]
["",null,{"$f":"IF('TSA Input'!J4157=\"\",\"\",IF(OR('TSA Input'!J4157=\"Yes\",'TSA Input'!J4157=\"Contingent\"),'TSA Input'!B4157,\"Ineligible\"))","v":""},{"$f":"IF('TSA Input'!J4157=\"\",\"\",IF(OR('TSA Input'!J4157=\"Yes\",'TSA Input'!J4157=\"Contingent\"),'TSA Input'!I4157,\"\"))","v":""},{"$f":"IF('TSA Input'!J4157=\"\",\"\",IF(OR('TSA Input'!J4157=\"Yes\",'TSA Input'!J4157=\"Contingent\"),'TSA Input'!C4157,\"\"))","v":""},{"$f":"IF('TSA Input'!J4157=\"\",\"\",IF(OR('TSA Input'!J4157=\"Yes\",'TSA Input'!J4157=\"Contingent\"),'TSA Input'!D4157,\"\"))","v":""},{"$f":"IF('TSA Input'!J4157=\"\",\"\",IF(OR('TSA Input'!J4157=\"Yes\",'TSA Input'!J4157=\"Contingent\"),'TSA Input'!G4157,\"\"))","v":""},{"$f":"IF('TSA Input'!J4157=\"\",\"\",IF(OR('TSA Input'!J4157=\"Yes\",'TSA Input'!J4157=\"Contingent\"),'TSA Input'!F4157,\"\"))","v":""},"",{"$f":"IF('TSA Input'!J4157=\"\",\"\",IF(OR('TSA Input'!J4157=\"Yes\",'TSA Input'!J4157=\"Contingent\"),'TSA Input'!D4157,\"\"))","v":""},{"$f":"IF('TSA Input'!J4157=\"\",\"\",IF(OR('TSA Input'!J4157=\"Yes\",'TSA Input'!J4157=\"Contingent\"),'TSA Input'!G4157,\"\"))","v":""},{"$f":"IF('TSA Input'!J4157=\"\",\"\",IF(OR('TSA Input'!J4157=\"Yes\",'TSA Input'!J4157=\"Contingent\"),'TSA Input'!F4157,\"\"))","v":""},"","Required","Required"]
["",null,{"$f":"IF('TSA Input'!J4158=\"\",\"\",IF(OR('TSA Input'!J4158=\"Yes\",'TSA Input'!J4158=\"Contingent\"),'TSA Input'!B4158,\"Ineligible\"))","v":""},{"$f":"IF('TSA Input'!J4158=\"\",\"\",IF(OR('TSA Input'!J4158=\"Yes\",'TSA Input'!J4158=\"Contingent\"),'TSA Input'!I4158,\"\"))","v":""},{"$f":"IF('TSA Input'!J4158=\"\",\"\",IF(OR('TSA Input'!J4158=\"Yes\",'TSA Input'!J4158=\"Contingent\"),'TSA Input'!C4158,\"\"))","v":""},{"$f":"IF('TSA Input'!J4158=\"\",\"\",IF(OR('TSA Input'!J4158=\"Yes\",'TSA Input'!J4158=\"Contingent\"),'TSA Input'!D4158,\"\"))","v":""},{"$f":"IF('TSA Input'!J4158=\"\",\"\",IF(OR('TSA Input'!J4158=\"Yes\",'TSA Input'!J4158=\"Contingent\"),'TSA Input'!G4158,\"\"))","v":""},{"$f":"IF('TSA Input'!J4158=\"\",\"\",IF(OR('TSA Input'!J4158=\"Yes\",'TSA Input'!J4158=\"Contingent\"),'TSA Input'!F4158,\"\"))","v":""},"",{"$f":"IF('TSA Input'!J4158=\"\",\"\",IF(OR('TSA Input'!J4158=\"Yes\",'TSA Input'!J4158=\"Contingent\"),'TSA Input'!D4158,\"\"))","v":""},{"$f":"IF('TSA Input'!J4158=\"\",\"\",IF(OR('TSA Input'!J4158=\"Yes\",'TSA Input'!J4158=\"Contingent\"),'TSA Input'!G4158,\"\"))","v":""},{"$f":"IF('TSA Input'!J4158=\"\",\"\",IF(OR('TSA Input'!J4158=\"Yes\",'TSA Input'!J4158=\"Contingent\"),'TSA Input'!F4158,\"\"))","v":""},"","Required","Required"]
["",null,{"$f":"IF('TSA Input'!J4159=\"\",\"\",IF(OR('TSA Input'!J4159=\"Yes\",'TSA Input'!J4159=\"Contingent\"),'TSA Input'!B4159,\"Ineligible\"))","v":""},{"$f":"IF('TSA Input'!J4159=\"\",\"\",IF(OR('TSA Input'!J4159=\"Yes\",'TSA Input'!J4159=\"Contingent\"),'TSA Input'!I4159,\"\"))","v":""},{"$f":"IF('TSA Input'!J4159=\"\",\"\",IF(OR('TSA Input'!J4159=\"Yes\",'TSA Input'!J4159=\"Contingent\"),'TSA Input'!C4159,\"\"))","v":""},{"$f":"IF('TSA Input'!J4159=\"\",\"\",IF(OR('TSA Input'!J4159=\"Yes\",'TSA Input'!J4159=\"Contingent\"),'TSA Input'!D4159,\"\"))","v":""},{"$f":"IF('TSA Input'!J4159=\"\",\"\",IF(OR('TSA Input'!J4159=\"Yes\",'TSA Input'!J4159=\"Contingent\"),'TSA Input'!G4159,\"\"))","v":""},{"$f":"IF('TSA Input'!J4159=\"\",\"\",IF(OR('TSA Input'!J4159=\"Yes\",'TSA Input'!J4159=\"Contingent\"),'TSA Input'!F4159,\"\"))","v":""},"",{"$f":"IF('TSA Input'!J4159=\"\",\"\",IF(OR('TSA Input'!J4159=\"Yes\",'TSA Input'!J4159=\"Contingent\"),'TSA Input'!D4159,\"\"))","v":""},{"$f":"IF('TSA Input'!J4159=\"\",\"\",IF(OR('TSA Input'!J4159=\"Yes\",'TSA Input'!J4159=\"Contingent\"),'TSA Input'!G4159,\"\"))","v":""},{"$f":"IF('TSA Input'!J4159=\"\",\"\",IF(OR('TSA Input'!J4159=\"Yes\",'TSA Input'!J4159=\"Contingent\"),'TSA Input'!F4159,\"\"))","v":""},"","Required","Required"]
["",null,{"$f":"IF('TSA Input'!J4160=\"\",\"\",IF(OR('TSA Input'!J4160=\"Yes\",'TSA Input'!J4160=\"Contingent\"),'TSA Input'!B4160,\"Ineligible\"))","v":""},{"$f":"IF('TSA Input'!J4160=\"\",\"\",IF(OR('TSA Input'!J4160=\"Yes\",'TSA Input'!J4160=\"Contingent\"),'TSA Input'!I4160,\"\"))","v":""},{"$f":"IF('TSA Input'!J4160=\"\",\"\",IF(OR('TSA Input'!J4160=\"Yes\",'TSA Input'!J4160=\"Contingent\"),'TSA Input'!C4160,\"\"))","v":""},{"$f":"IF('TSA Input'!J4160=\"\",\"\",IF(OR('TSA Input'!J4160=\"Yes\",'TSA Input'!J4160=\"Contingent\"),'TSA Input'!D4160,\"\"))","v":""},{"$f":"IF('TSA Input'!J4160=\"\",\"\",IF(OR('TSA Input'!J4160=\"Yes\",'TSA Input'!J4160=\"Contingent\"),'TSA Input'!G4160,\"\"))","v":""},{"$f":"IF('TSA Input'!J4160=\"\",\"\",IF(OR('TSA Input'!J4160=\"Yes\",'TSA Input'!J4160=\"Contingent\"),'TSA Input'!F4160,\"\"))","v":""},"",{"$f":"IF('TSA Input'!J4160=\"\",\"\",IF(OR('TSA Input'!J4160=\"Yes\",'TSA Input'!J4160=\"Contingent\"),'TSA Input'!D4160,\"\"))","v":""},{"$f":"IF('TSA Input'!J4160=\"\",\"\",IF(OR('TSA Input'!J4160=\"Yes\",'TSA Input'!J4160=\"Contingent\"),'TSA Input'!G4160,\"\"))","v":""},{"$f":"IF('TSA Input'!J4160=\"\",\"\",IF(OR('TSA Input'!J4160=\"Yes\",'TSA Input'!J4160=\"Contingent\"),'TSA Input'!F4160,\"\"))","v":""},"","Required","Required"]
["",null,{"$f":"IF('TSA Input'!J4161=\"\",\"\",IF(OR('TSA Input'!J4161=\"Yes\",'TSA Input'!J4161=\"Contingent\"),'TSA Input'!B4161,\"Ineligible\"))","v":""},{"$f":"IF('TSA Input'!J4161=\"\",\"\",IF(OR('TSA Input'!J4161=\"Yes\",'TSA Input'!J4161=\"Contingent\"),'TSA Input'!I4161,\"\"))","v":""},{"$f":"IF('TSA Input'!J4161=\"\",\"\",IF(OR('TSA Input'!J4161=\"Yes\",'TSA Input'!J4161=\"Contingent\"),'TSA Input'!C4161,\"\"))","v":""},{"$f":"IF('TSA Input'!J4161=\"\",\"\",IF(OR('TSA Input'!J4161=\"Yes\",'TSA Input'!J4161=\"Contingent\"),'TSA Input'!D4161,\"\"))","v":""},{"$f":"IF('TSA Input'!J4161=\"\",\"\",IF(OR('TSA Input'!J4161=\"Yes\",'TSA Input'!J4161=\"Contingent\"),'TSA Input'!G4161,\"\"))","v":""},{"$f":"IF('TSA Input'!J4161=\"\",\"\",IF(OR('TSA Input'!J4161=\"Yes\",'TSA Input'!J4161=\"Contingent\"),'TSA Input'!F4161,\"\"))","v":""},"",{"$f":"IF('TSA Input'!J4161=\"\",\"\",IF(OR('TSA Input'!J4161=\"Yes\",'TSA Input'!J4161=\"Contingent\"),'TSA Input'!D4161,\"\"))","v":""},{"$f":"IF('TSA Input'!J4161=\"\",\"\",IF(OR('TSA Input'!J4161=\"Yes\",'TSA Input'!J4161=\"Contingent\"),'TSA Input'!G4161,\"\"))","v":""},{"$f":"IF('TSA Input'!J4161=\"\",\"\",IF(OR('TSA Input'!J4161=\"Yes\",'TSA Input'!J4161=\"Contingent\"),'TSA Input'!F4161,\"\"))","v":""},"","Required","Required"]
["",null,{"$f":"IF('TSA Input'!J4162=\"\",\"\",IF(OR('TSA Input'!J4162=\"Yes\",'TSA Input'!J4162=\"Contingent\"),'TSA Input'!B4162,\"Ineligible\"))","v":""},{"$f":"IF('TSA Input'!J4162=\"\",\"\",IF(OR('TSA Input'!J4162=\"Yes\",'TSA Input'!J4162=\"Contingent\"),'TSA Input'!I4162,\"\"))","v":""},{"$f":"IF('TSA Input'!J4162=\"\",\"\",IF(OR('TSA Input'!J4162=\"Yes\",'TSA Input'!J4162=\"Contingent\"),'TSA Input'!C4162,\"\"))","v":""},{"$f":"IF('TSA Input'!J4162=\"\",\"\",IF(OR('TSA Input'!J4162=\"Yes\",'TSA Input'!J4162=\"Contingent\"),'TSA Input'!D4162,\"\"))","v":""},{"$f":"IF('TSA Input'!J4162=\"\",\"\",IF(OR('TSA Input'!J4162=\"Yes\",'TSA Input'!J4162=\"Contingent\"),'TSA Input'!G4162,\"\"))","v":""},{"$f":"IF('TSA Input'!J4162=\"\",\"\",IF(OR('TSA Input'!J4162=\"Yes\",'TSA Input'!J4162=\"Contingent\"),'TSA Input'!F4162,\"\"))","v":""},"",{"$f":"IF('TSA Input'!J4162=\"\",\"\",IF(OR('TSA Input'!J4162=\"Yes\",'TSA Input'!J4162=\"Contingent\"),'TSA Input'!D4162,\"\"))","v":""},{"$f":"IF('TSA Input'!J4162=\"\",\"\",IF(OR('TSA Input'!J4162=\"Yes\",'TSA Input'!J4162=\"Contingent\"),'TSA Input'!G4162,\"\"))","v":""},{"$f":"IF('TSA Input'!J4162=\"\",\"\",IF(OR('TSA Input'!J4162=\"Yes\",'TSA Input'!J4162=\"Contingent\"),'TSA Input'!F4162,\"\"))","v":""},"","Required","Required"]
["",null,{"$f":"IF('TSA Input'!J4163=\"\",\"\",IF(OR('TSA Input'!J4163=\"Yes\",'TSA Input'!J4163=\"Contingent\"),'TSA Input'!B4163,\"Ineligible\"))","v":""},{"$f":"IF('TSA Input'!J4163=\"\",\"\",IF(OR('TSA Input'!J4163=\"Yes\",'TSA Input'!J4163=\"Contingent\"),'TSA Input'!I4163,\"\"))","v":""},{"$f":"IF('TSA Input'!J4163=\"\",\"\",IF(OR('TSA Input'!J4163=\"Yes\",'TSA Input'!J4163=\"Contingent\"),'TSA Input'!C4163,\"\"))","v":""},{"$f":"IF('TSA Input'!J4163=\"\",\"\",IF(OR('TSA Input'!J4163=\"Yes\",'TSA Input'!J4163=\"Contingent\"),'TSA Input'!D4163,\"\"))","v":""},{"$f":"IF('TSA Input'!J4163=\"\",\"\",IF(OR('TSA Input'!J4163=\"Yes\",'TSA Input'!J4163=\"Contingent\"),'TSA Input'!G4163,\"\"))","v":""},{"$f":"IF('TSA Input'!J4163=\"\",\"\",IF(OR('TSA Input'!J4163=\"Yes\",'TSA Input'!J4163=\"Contingent\"),'TSA Input'!F4163,\"\"))","v":""},"",{"$f":"IF('TSA Input'!J4163=\"\",\"\",IF(OR('TSA Input'!J4163=\"Yes\",'TSA Input'!J4163=\"Contingent\"),'TSA Input'!D4163,\"\"))","v":""},{"$f":"IF('TSA Input'!J4163=\"\",\"\",IF(OR('TSA Input'!J4163=\"Yes\",'TSA Input'!J4163=\"Contingent\"),'TSA Input'!G4163,\"\"))","v":""},{"$f":"IF('TSA Input'!J4163=\"\",\"\",IF(OR('TSA Input'!J4163=\"Yes\",'TSA Input'!J4163=\"Contingent\"),'TSA Input'!F4163,\"\"))","v":""},"","Required","Required"]
["",null,{"$f":"IF('TSA Input'!J4164=\"\",\"\",IF(OR('TSA Input'!J4164=\"Yes\",'TSA Input'!J4164=\"Contingent\"),'TSA Input'!B4164,\"Ineligible\"))","v":""},{"$f":"IF('TSA Input'!J4164=\"\",\"\",IF(OR('TSA Input'!J4164=\"Yes\",'TSA Input'!J4164=\"Contingent\"),'TSA Input'!I4164,\"\"))","v":""},{"$f":"IF('TSA Input'!J4164=\"\",\"\",IF(OR('TSA Input'!J4164=\"Yes\",'TSA Input'!J4164=\"Contingent\"),'TSA Input'!C4164,\"\"))","v":""},{"$f":"IF('TSA Input'!J4164=\"\",\"\",IF(OR('TSA Input'!J4164=\"Yes\",'TSA Input'!J4164=\"Contingent\"),'TSA Input'!D4164,\"\"))","v":""},{"$f":"IF('TSA Input'!J4164=\"\",\"\",IF(OR('TSA Input'!J4164=\"Yes\",'TSA Input'!J4164=\"Contingent\"),'TSA Input'!G4164,\"\"))","v":""},{"$f":"IF('TSA Input'!J4164=\"\",\"\",IF(OR('TSA Input'!J4164=\"Yes\",'TSA Input'!J4164=\"Contingent\"),'TSA Input'!F4164,\"\"))","v":""},{"$f":"IF($C4202=\"\",\"\",SUM(F4202:H4202))","v":""},{"$f":"IF('TSA Input'!J4164=\"\",\"\",IF(OR('TSA Input'!J4164=\"Yes\",'TSA Input'!J4164=\"Contingent\"),'TSA Input'!D4164,\"\"))","v":""},{"$f":"IF('TSA Input'!J4164=\"\",\"\",IF(OR('TSA Input'!J4164=\"Yes\",'TSA Input'!J4164=\"Contingent\"),'TSA Input'!G4164,\"\"))","v":""},{"$f":"IF('TSA Input'!J4164=\"\",\"\",IF(OR('TSA Input'!J4164=\"Yes\",'TSA Input'!J4164=\"Contingent\"),'TSA Input'!F4164,\"\"))","v":""},{"$f":"IF($C4202=\"\",\"\",SUM(J4202:L4202))","v":""},"Required","Required"]
["",null,{"$f":"IF('TSA Input'!J4165=\"\",\"\",IF(OR('TSA Input'!J4165=\"Yes\",'TSA Input'!J4165=\"Contingent\"),'TSA Input'!B4165,\"Ineligible\"))","v":""},{"$f":"IF('TSA Input'!J4165=\"\",\"\",IF(OR('TSA Input'!J4165=\"Yes\",'TSA Input'!J4165=\"Contingent\"),'TSA Input'!I4165,\"\"))","v":""},{"$f":"IF('TSA Input'!J4165=\"\",\"\",IF(OR('TSA Input'!J4165=\"Yes\",'TSA Input'!J4165=\"Contingent\"),'TSA Input'!C4165,\"\"))","v":""},{"$f":"IF('TSA Input'!J4165=\"\",\"\",IF(OR('TSA Input'!J4165=\"Yes\",'TSA Input'!J4165=\"Contingent\"),'TSA Input'!D4165,\"\"))","v":""},{"$f":"IF('TSA Input'!J4165=\"\",\"\",IF(OR('TSA Input'!J4165=\"Yes\",'TSA Input'!J4165=\"Contingent\"),'TSA Input'!G4165,\"\"))","v":""},{"$f":"IF('TSA Input'!J4165=\"\",\"\",IF(OR('TSA Input'!J4165=\"Yes\",'TSA Input'!J4165=\"Contingent\"),'TSA Input'!F4165,\"\"))","v":""},"",{"$f":"IF('TSA Input'!J4165=\"\",\"\",IF(OR('TSA Input'!J4165=\"Yes\",'TSA Input'!J4165=\"Contingent\"),'TSA Input'!D4165,\"\"))","v":""},{"$f":"IF('TSA Input'!J4165=\"\",\"\",IF(OR('TSA Input'!J4165=\"Yes\",'TSA Input'!J4165=\"Contingent\"),'TSA Input'!G4165,\"\"))","v":""},{"$f":"IF('TSA Input'!J4165=\"\",\"\",IF(OR('TSA Input'!J4165=\"Yes\",'TSA Input'!J4165=\"Contingent\"),'TSA Input'!F4165,\"\"))","v":""},"","Required","Required"]
["",null,{"$f":"IF('TSA Input'!J4166=\"\",\"\",IF(OR('TSA Input'!J4166=\"Yes\",'TSA Input'!J4166=\"Contingent\"),'TSA Input'!B4166,\"Ineligible\"))","v":""},{"$f":"IF('TSA Input'!J4166=\"\",\"\",IF(OR('TSA Input'!J4166=\"Yes\",'TSA Input'!J4166=\"Contingent\"),'TSA Input'!I4166,\"\"))","v":""},{"$f":"IF('TSA Input'!J4166=\"\",\"\",IF(OR('TSA Input'!J4166=\"Yes\",'TSA Input'!J4166=\"Contingent\"),'TSA Input'!C4166,\"\"))","v":""},{"$f":"IF('TSA Input'!J4166=\"\",\"\",IF(OR('TSA Input'!J4166=\"Yes\",'TSA Input'!J4166=\"Contingent\"),'TSA Input'!D4166,\"\"))","v":""},{"$f":"IF('TSA Input'!J4166=\"\",\"\",IF(OR('TSA Input'!J4166=\"Yes\",'TSA Input'!J4166=\"Contingent\"),'TSA Input'!G4166,\"\"))","v":""},{"$f":"IF('TSA Input'!J4166=\"\",\"\",IF(OR('TSA Input'!J4166=\"Yes\",'TSA Input'!J4166=\"Contingent\"),'TSA Input'!F4166,\"\"))","v":""},"",{"$f":"IF('TSA Input'!J4166=\"\",\"\",IF(OR('TSA Input'!J4166=\"Yes\",'TSA Input'!J4166=\"Contingent\"),'TSA Input'!D4166,\"\"))","v":""},{"$f":"IF('TSA Input'!J4166=\"\",\"\",IF(OR('TSA Input'!J4166=\"Yes\",'TSA Input'!J4166=\"Contingent\"),'TSA Input'!G4166,\"\"))","v":""},{"$f":"IF('TSA Input'!J4166=\"\",\"\",IF(OR('TSA Input'!J4166=\"Yes\",'TSA Input'!J4166=\"Contingent\"),'TSA Input'!F4166,\"\"))","v":""},"","Required","Required"]
["",null,{"$f":"IF('TSA Input'!J4167=\"\",\"\",IF(OR('TSA Input'!J4167=\"Yes\",'TSA Input'!J4167=\"Contingent\"),'TSA Input'!B4167,\"Ineligible\"))","v":""},{"$f":"IF('TSA Input'!J4167=\"\",\"\",IF(OR('TSA Input'!J4167=\"Yes\",'TSA Input'!J4167=\"Contingent\"),'TSA Input'!I4167,\"\"))","v":""},{"$f":"IF('TSA Input'!J4167=\"\",\"\",IF(OR('TSA Input'!J4167=\"Yes\",'TSA Input'!J4167=\"Contingent\"),'TSA Input'!C4167,\"\"))","v":""},{"$f":"IF('TSA Input'!J4167=\"\",\"\",IF(OR('TSA Input'!J4167=\"Yes\",'TSA Input'!J4167=\"Contingent\"),'TSA Input'!D4167,\"\"))","v":""},{"$f":"IF('TSA Input'!J4167=\"\",\"\",IF(OR('TSA Input'!J4167=\"Yes\",'TSA Input'!J4167=\"Contingent\"),'TSA Input'!G4167,\"\"))","v":""},{"$f":"IF('TSA Input'!J4167=\"\",\"\",IF(OR('TSA Input'!J4167=\"Yes\",'TSA Input'!J4167=\"Contingent\"),'TSA Input'!F4167,\"\"))","v":""},"",{"$f":"IF('TSA Input'!J4167=\"\",\"\",IF(OR('TSA Input'!J4167=\"Yes\",'TSA Input'!J4167=\"Contingent\"),'TSA Input'!D4167,\"\"))","v":""},{"$f":"IF('TSA Input'!J4167=\"\",\"\",IF(OR('TSA Input'!J4167=\"Yes\",'TSA Input'!J4167=\"Contingent\"),'TSA Input'!G4167,\"\"))","v":""},{"$f":"IF('TSA Input'!J4167=\"\",\"\",IF(OR('TSA Input'!J4167=\"Yes\",'TSA Input'!J4167=\"Contingent\"),'TSA Input'!F4167,\"\"))","v":""},"","Required","Required"]
["",null,{"$f":"IF('TSA Input'!J4168=\"\",\"\",IF(OR('TSA Input'!J4168=\"Yes\",'TSA Input'!J4168=\"Contingent\"),'TSA Input'!B4168,\"Ineligible\"))","v":""},{"$f":"IF('TSA Input'!J4168=\"\",\"\",IF(OR('TSA Input'!J4168=\"Yes\",'TSA Input'!J4168=\"Contingent\"),'TSA Input'!I4168,\"\"))","v":""},{"$f":"IF('TSA Input'!J4168=\"\",\"\",IF(OR('TSA Input'!J4168=\"Yes\",'TSA Input'!J4168=\"Contingent\"),'TSA Input'!C4168,\"\"))","v":""},{"$f":"IF('TSA Input'!J4168=\"\",\"\",IF(OR('TSA Input'!J4168=\"Yes\",'TSA Input'!J4168=\"Contingent\"),'TSA Input'!D4168,\"\"))","v":""},{"$f":"IF('TSA Input'!J4168=\"\",\"\",IF(OR('TSA Input'!J4168=\"Yes\",'TSA Input'!J4168=\"Contingent\"),'TSA Input'!G4168,\"\"))","v":""},{"$f":"IF('TSA Input'!J4168=\"\",\"\",IF(OR('TSA Input'!J4168=\"Yes\",'TSA Input'!J4168=\"Contingent\"),'TSA Input'!F4168,\"\"))","v":""},"",{"$f":"IF('TSA Input'!J4168=\"\",\"\",IF(OR('TSA Input'!J4168=\"Yes\",'TSA Input'!J4168=\"Contingent\"),'TSA Input'!D4168,\"\"))","v":""},{"$f":"IF('TSA Input'!J4168=\"\",\"\",IF(OR('TSA Input'!J4168=\"Yes\",'TSA Input'!J4168=\"Contingent\"),'TSA Input'!G4168,\"\"))","v":""},{"$f":"IF('TSA Input'!J4168=\"\",\"\",IF(OR('TSA Input'!J4168=\"Yes\",'TSA Input'!J4168=\"Contingent\"),'TSA Input'!F4168,\"\"))","v":""},"","Required","Required"]
["",null,{"$f":"IF('TSA Input'!J4169=\"\",\"\",IF(OR('TSA Input'!J4169=\"Yes\",'TSA Input'!J4169=\"Contingent\"),'TSA Input'!B4169,\"Ineligible\"))","v":""},{"$f":"IF('TSA Input'!J4169=\"\",\"\",IF(OR('TSA Input'!J4169=\"Yes\",'TSA Input'!J4169=\"Contingent\"),'TSA Input'!I4169,\"\"))","v":""},{"$f":"IF('TSA Input'!J4169=\"\",\"\",IF(OR('TSA Input'!J4169=\"Yes\",'TSA Input'!J4169=\"Contingent\"),'TSA Input'!C4169,\"\"))","v":""},{"$f":"IF('TSA Input'!J4169=\"\",\"\",IF(OR('TSA Input'!J4169=\"Yes\",'TSA Input'!J4169=\"Contingent\"),'TSA Input'!D4169,\"\"))","v":""},{"$f":"IF('TSA Input'!J4169=\"\",\"\",IF(OR('TSA Input'!J4169=\"Yes\",'TSA Input'!J4169=\"Contingent\"),'TSA Input'!G4169,\"\"))","v":""},{"$f":"IF('TSA Input'!J4169=\"\",\"\",IF(OR('TSA Input'!J4169=\"Yes\",'TSA Input'!J4169=\"Contingent\"),'TSA Input'!F4169,\"\"))","v":""},"",{"$f":"IF('TSA Input'!J4169=\"\",\"\",IF(OR('TSA Input'!J4169=\"Yes\",'TSA Input'!J4169=\"Contingent\"),'TSA Input'!D4169,\"\"))","v":""},{"$f":"IF('TSA Input'!J4169=\"\",\"\",IF(OR('TSA Input'!J4169=\"Yes\",'TSA Input'!J4169=\"Contingent\"),'TSA Input'!G4169,\"\"))","v":""},{"$f":"IF('TSA Input'!J4169=\"\",\"\",IF(OR('TSA Input'!J4169=\"Yes\",'TSA Input'!J4169=\"Contingent\"),'TSA Input'!F4169,\"\"))","v":""},"","Required","Required"]
["",null,{"$f":"IF('TSA Input'!J4170=\"\",\"\",IF(OR('TSA Input'!J4170=\"Yes\",'TSA Input'!J4170=\"Contingent\"),'TSA Input'!B4170,\"Ineligible\"))","v":""},{"$f":"IF('TSA Input'!J4170=\"\",\"\",IF(OR('TSA Input'!J4170=\"Yes\",'TSA Input'!J4170=\"Contingent\"),'TSA Input'!I4170,\"\"))","v":""},{"$f":"IF('TSA Input'!J4170=\"\",\"\",IF(OR('TSA Input'!J4170=\"Yes\",'TSA Input'!J4170=\"Contingent\"),'TSA Input'!C4170,\"\"))","v":""},{"$f":"IF('TSA Input'!J4170=\"\",\"\",IF(OR('TSA Input'!J4170=\"Yes\",'TSA Input'!J4170=\"Contingent\"),'TSA Input'!D4170,\"\"))","v":""},{"$f":"IF('TSA Input'!J4170=\"\",\"\",IF(OR('TSA Input'!J4170=\"Yes\",'TSA Input'!J4170=\"Contingent\"),'TSA Input'!G4170,\"\"))","v":""},{"$f":"IF('TSA Input'!J4170=\"\",\"\",IF(OR('TSA Input'!J4170=\"Yes\",'TSA Input'!J4170=\"Contingent\"),'TSA Input'!F4170,\"\"))","v":""},"",{"$f":"IF('TSA Input'!J4170=\"\",\"\",IF(OR('TSA Input'!J4170=\"Yes\",'TSA Input'!J4170=\"Contingent\"),'TSA Input'!D4170,\"\"))","v":""},{"$f":"IF('TSA Input'!J4170=\"\",\"\",IF(OR('TSA Input'!J4170=\"Yes\",'TSA Input'!J4170=\"Contingent\"),'TSA Input'!G4170,\"\"))","v":""},{"$f":"IF('TSA Input'!J4170=\"\",\"\",IF(OR('TSA Input'!J4170=\"Yes\",'TSA Input'!J4170=\"Contingent\"),'TSA Input'!F4170,\"\"))","v":""},"","Required","Required"]
["",null,{"$f":"IF('TSA Input'!J4171=\"\",\"\",IF(OR('TSA Input'!J4171=\"Yes\",'TSA Input'!J4171=\"Contingent\"),'TSA Input'!B4171,\"Ineligible\"))","v":""},{"$f":"IF('TSA Input'!J4171=\"\",\"\",IF(OR('TSA Input'!J4171=\"Yes\",'TSA Input'!J4171=\"Contingent\"),'TSA Input'!I4171,\"\"))","v":""},{"$f":"IF('TSA Input'!J4171=\"\",\"\",IF(OR('TSA Input'!J4171=\"Yes\",'TSA Input'!J4171=\"Contingent\"),'TSA Input'!C4171,\"\"))","v":""},{"$f":"IF('TSA Input'!J4171=\"\",\"\",IF(OR('TSA Input'!J4171=\"Yes\",'TSA Input'!J4171=\"Contingent\"),'TSA Input'!D4171,\"\"))","v":""},{"$f":"IF('TSA Input'!J4171=\"\",\"\",IF(OR('TSA Input'!J4171=\"Yes\",'TSA Input'!J4171=\"Contingent\"),'TSA Input'!G4171,\"\"))","v":""},{"$f":"IF('TSA Input'!J4171=\"\",\"\",IF(OR('TSA Input'!J4171=\"Yes\",'TSA Input'!J4171=\"Contingent\"),'TSA Input'!F4171,\"\"))","v":""},"",{"$f":"IF('TSA Input'!J4171=\"\",\"\",IF(OR('TSA Input'!J4171=\"Yes\",'TSA Input'!J4171=\"Contingent\"),'TSA Input'!D4171,\"\"))","v":""},{"$f":"IF('TSA Input'!J4171=\"\",\"\",IF(OR('TSA Input'!J4171=\"Yes\",'TSA Input'!J4171=\"Contingent\"),'TSA Input'!G4171,\"\"))","v":""},{"$f":"IF('TSA Input'!J4171=\"\",\"\",IF(OR('TSA Input'!J4171=\"Yes\",'TSA Input'!J4171=\"Contingent\"),'TSA Input'!F4171,\"\"))","v":""},"","Required","Required"]
["",null,{"$f":"IF('TSA Input'!J4172=\"\",\"\",IF(OR('TSA Input'!J4172=\"Yes\",'TSA Input'!J4172=\"Contingent\"),'TSA Input'!B4172,\"Ineligible\"))","v":""},{"$f":"IF('TSA Input'!J4172=\"\",\"\",IF(OR('TSA Input'!J4172=\"Yes\",'TSA Input'!J4172=\"Contingent\"),'TSA Input'!I4172,\"\"))","v":""},{"$f":"IF('TSA Input'!J4172=\"\",\"\",IF(OR('TSA Input'!J4172=\"Yes\",'TSA Input'!J4172=\"Contingent\"),'TSA Input'!C4172,\"\"))","v":""},{"$f":"IF('TSA Input'!J4172=\"\",\"\",IF(OR('TSA Input'!J4172=\"Yes\",'TSA Input'!J4172=\"Contingent\"),'TSA Input'!D4172,\"\"))","v":""},{"$f":"IF('TSA Input'!J4172=\"\",\"\",IF(OR('TSA Input'!J4172=\"Yes\",'TSA Input'!J4172=\"Contingent\"),'TSA Input'!G4172,\"\"))","v":""},{"$f":"IF('TSA Input'!J4172=\"\",\"\",IF(OR('TSA Input'!J4172=\"Yes\",'TSA Input'!J4172=\"Contingent\"),'TSA Input'!F4172,\"\"))","v":""},"",{"$f":"IF('TSA Input'!J4172=\"\",\"\",IF(OR('TSA Input'!J4172=\"Yes\",'TSA Input'!J4172=\"Contingent\"),'TSA Input'!D4172,\"\"))","v":""},{"$f":"IF('TSA Input'!J4172=\"\",\"\",IF(OR('TSA Input'!J4172=\"Yes\",'TSA Input'!J4172=\"Contingent\"),'TSA Input'!G4172,\"\"))","v":""},{"$f":"IF('TSA Input'!J4172=\"\",\"\",IF(OR('TSA Input'!J4172=\"Yes\",'TSA Input'!J4172=\"Contingent\"),'TSA Input'!F4172,\"\"))","v":""},"","Required","Required"]
["",null,{"$f":"IF('TSA Input'!J4173=\"\",\"\",IF(OR('TSA Input'!J4173=\"Yes\",'TSA Input'!J4173=\"Contingent\"),'TSA Input'!B4173,\"Ineligible\"))","v":""},{"$f":"IF('TSA Input'!J4173=\"\",\"\",IF(OR('TSA Input'!J4173=\"Yes\",'TSA Input'!J4173=\"Contingent\"),'TSA Input'!I4173,\"\"))","v":""},{"$f":"IF('TSA Input'!J4173=\"\",\"\",IF(OR('TSA Input'!J4173=\"Yes\",'TSA Input'!J4173=\"Contingent\"),'TSA Input'!C4173,\"\"))","v":""},{"$f":"IF('TSA Input'!J4173=\"\",\"\",IF(OR('TSA Input'!J4173=\"Yes\",'TSA Input'!J4173=\"Contingent\"),'TSA Input'!D4173,\"\"))","v":""},{"$f":"IF('TSA Input'!J4173=\"\",\"\",IF(OR('TSA Input'!J4173=\"Yes\",'TSA Input'!J4173=\"Contingent\"),'TSA Input'!G4173,\"\"))","v":""},{"$f":"IF('TSA Input'!J4173=\"\",\"\",IF(OR('TSA Input'!J4173=\"Yes\",'TSA Input'!J4173=\"Contingent\"),'TSA Input'!F4173,\"\"))","v":""},"",{"$f":"IF('TSA Input'!J4173=\"\",\"\",IF(OR('TSA Input'!J4173=\"Yes\",'TSA Input'!J4173=\"Contingent\"),'TSA Input'!D4173,\"\"))","v":""},{"$f":"IF('TSA Input'!J4173=\"\",\"\",IF(OR('TSA Input'!J4173=\"Yes\",'TSA Input'!J4173=\"Contingent\"),'TSA Input'!G4173,\"\"))","v":""},{"$f":"IF('TSA Input'!J4173=\"\",\"\",IF(OR('TSA Input'!J4173=\"Yes\",'TSA Input'!J4173=\"Contingent\"),'TSA Input'!F4173,\"\"))","v":""},"","Required","Required"]
["",null,{"$f":"IF('TSA Input'!J4174=\"\",\"\",IF(OR('TSA Input'!J4174=\"Yes\",'TSA Input'!J4174=\"Contingent\"),'TSA Input'!B4174,\"Ineligible\"))","v":""},{"$f":"IF('TSA Input'!J4174=\"\",\"\",IF(OR('TSA Input'!J4174=\"Yes\",'TSA Input'!J4174=\"Contingent\"),'TSA Input'!I4174,\"\"))","v":""},{"$f":"IF('TSA Input'!J4174=\"\",\"\",IF(OR('TSA Input'!J4174=\"Yes\",'TSA Input'!J4174=\"Contingent\"),'TSA Input'!C4174,\"\"))","v":""},{"$f":"IF('TSA Input'!J4174=\"\",\"\",IF(OR('TSA Input'!J4174=\"Yes\",'TSA Input'!J4174=\"Contingent\"),'TSA Input'!D4174,\"\"))","v":""},{"$f":"IF('TSA Input'!J4174=\"\",\"\",IF(OR('TSA Input'!J4174=\"Yes\",'TSA Input'!J4174=\"Contingent\"),'TSA Input'!G4174,\"\"))","v":""},{"$f":"IF('TSA Input'!J4174=\"\",\"\",IF(OR('TSA Input'!J4174=\"Yes\",'TSA Input'!J4174=\"Contingent\"),'TSA Input'!F4174,\"\"))","v":""},"",{"$f":"IF('TSA Input'!J4174=\"\",\"\",IF(OR('TSA Input'!J4174=\"Yes\",'TSA Input'!J4174=\"Contingent\"),'TSA Input'!D4174,\"\"))","v":""},{"$f":"IF('TSA Input'!J4174=\"\",\"\",IF(OR('TSA Input'!J4174=\"Yes\",'TSA Input'!J4174=\"Contingent\"),'TSA Input'!G4174,\"\"))","v":""},{"$f":"IF('TSA Input'!J4174=\"\",\"\",IF(OR('TSA Input'!J4174=\"Yes\",'TSA Input'!J4174=\"Contingent\"),'TSA Input'!F4174,\"\"))","v":""},"","Required","Required"]
["",null,{"$f":"IF('TSA Input'!J4175=\"\",\"\",IF(OR('TSA Input'!J4175=\"Yes\",'TSA Input'!J4175=\"Contingent\"),'TSA Input'!B4175,\"Ineligible\"))","v":""},{"$f":"IF('TSA Input'!J4175=\"\",\"\",IF(OR('TSA Input'!J4175=\"Yes\",'TSA Input'!J4175=\"Contingent\"),'TSA Input'!I4175,\"\"))","v":""},{"$f":"IF('TSA Input'!J4175=\"\",\"\",IF(OR('TSA Input'!J4175=\"Yes\",'TSA Input'!J4175=\"Contingent\"),'TSA Input'!C4175,\"\"))","v":""},{"$f":"IF('TSA Input'!J4175=\"\",\"\",IF(OR('TSA Input'!J4175=\"Yes\",'TSA Input'!J4175=\"Contingent\"),'TSA Input'!D4175,\"\"))","v":""},{"$f":"IF('TSA Input'!J4175=\"\",\"\",IF(OR('TSA Input'!J4175=\"Yes\",'TSA Input'!J4175=\"Contingent\"),'TSA Input'!G4175,\"\"))","v":""},{"$f":"IF('TSA Input'!J4175=\"\",\"\",IF(OR('TSA Input'!J4175=\"Yes\",'TSA Input'!J4175=\"Contingent\"),'TSA Input'!F4175,\"\"))","v":""},"",{"$f":"IF('TSA Input'!J4175=\"\",\"\",IF(OR('TSA Input'!J4175=\"Yes\",'TSA Input'!J4175=\"Contingent\"),'TSA Input'!D4175,\"\"))","v":""},{"$f":"IF('TSA Input'!J4175=\"\",\"\",IF(OR('TSA Input'!J4175=\"Yes\",'TSA Input'!J4175=\"Contingent\"),'TSA Input'!G4175,\"\"))","v":""},{"$f":"IF('TSA Input'!J4175=\"\",\"\",IF(OR('TSA Input'!J4175=\"Yes\",'TSA Input'!J4175=\"Contingent\"),'TSA Input'!F4175,\"\"))","v":""},"","Required","Required"]
["",null,{"$f":"IF('TSA Input'!J4176=\"\",\"\",IF(OR('TSA Input'!J4176=\"Yes\",'TSA Input'!J4176=\"Contingent\"),'TSA Input'!B4176,\"Ineligible\"))","v":""},{"$f":"IF('TSA Input'!J4176=\"\",\"\",IF(OR('TSA Input'!J4176=\"Yes\",'TSA Input'!J4176=\"Contingent\"),'TSA Input'!I4176,\"\"))","v":""},{"$f":"IF('TSA Input'!J4176=\"\",\"\",IF(OR('TSA Input'!J4176=\"Yes\",'TSA Input'!J4176=\"Contingent\"),'TSA Input'!C4176,\"\"))","v":""},{"$f":"IF('TSA Input'!J4176=\"\",\"\",IF(OR('TSA Input'!J4176=\"Yes\",'TSA Input'!J4176=\"Contingent\"),'TSA Input'!D4176,\"\"))","v":""},{"$f":"IF('TSA Input'!J4176=\"\",\"\",IF(OR('TSA Input'!J4176=\"Yes\",'TSA Input'!J4176=\"Contingent\"),'TSA Input'!G4176,\"\"))","v":""},{"$f":"IF('TSA Input'!J4176=\"\",\"\",IF(OR('TSA Input'!J4176=\"Yes\",'TSA Input'!J4176=\"Contingent\"),'TSA Input'!F4176,\"\"))","v":""},"",{"$f":"IF('TSA Input'!J4176=\"\",\"\",IF(OR('TSA Input'!J4176=\"Yes\",'TSA Input'!J4176=\"Contingent\"),'TSA Input'!D4176,\"\"))","v":""},{"$f":"IF('TSA Input'!J4176=\"\",\"\",IF(OR('TSA Input'!J4176=\"Yes\",'TSA Input'!J4176=\"Contingent\"),'TSA Input'!G4176,\"\"))","v":""},{"$f":"IF('TSA Input'!J4176=\"\",\"\",IF(OR('TSA Input'!J4176=\"Yes\",'TSA Input'!J4176=\"Contingent\"),'TSA Input'!F4176,\"\"))","v":""},"","Required","Required"]
["",null,{"$f":"IF('TSA Input'!J4177=\"\",\"\",IF(OR('TSA Input'!J4177=\"Yes\",'TSA Input'!J4177=\"Contingent\"),'TSA Input'!B4177,\"Ineligible\"))","v":""},{"$f":"IF('TSA Input'!J4177=\"\",\"\",IF(OR('TSA Input'!J4177=\"Yes\",'TSA Input'!J4177=\"Contingent\"),'TSA Input'!I4177,\"\"))","v":""},{"$f":"IF('TSA Input'!J4177=\"\",\"\",IF(OR('TSA Input'!J4177=\"Yes\",'TSA Input'!J4177=\"Contingent\"),'TSA Input'!C4177,\"\"))","v":""},{"$f":"IF('TSA Input'!J4177=\"\",\"\",IF(OR('TSA Input'!J4177=\"Yes\",'TSA Input'!J4177=\"Contingent\"),'TSA Input'!D4177,\"\"))","v":""},{"$f":"IF('TSA Input'!J4177=\"\",\"\",IF(OR('TSA Input'!J4177=\"Yes\",'TSA Input'!J4177=\"Contingent\"),'TSA Input'!G4177,\"\"))","v":""},{"$f":"IF('TSA Input'!J4177=\"\",\"\",IF(OR('TSA Input'!J4177=\"Yes\",'TSA Input'!J4177=\"Contingent\"),'TSA Input'!F4177,\"\"))","v":""},"",{"$f":"IF('TSA Input'!J4177=\"\",\"\",IF(OR('TSA Input'!J4177=\"Yes\",'TSA Input'!J4177=\"Contingent\"),'TSA Input'!D4177,\"\"))","v":""},{"$f":"IF('TSA Input'!J4177=\"\",\"\",IF(OR('TSA Input'!J4177=\"Yes\",'TSA Input'!J4177=\"Contingent\"),'TSA Input'!G4177,\"\"))","v":""},{"$f":"IF('TSA Input'!J4177=\"\",\"\",IF(OR('TSA Input'!J4177=\"Yes\",'TSA Input'!J4177=\"Contingent\"),'TSA Input'!F4177,\"\"))","v":""},"","Required","Required"]
["",null,{"$f":"IF('TSA Input'!J4178=\"\",\"\",IF(OR('TSA Input'!J4178=\"Yes\",'TSA Input'!J4178=\"Contingent\"),'TSA Input'!B4178,\"Ineligible\"))","v":""},{"$f":"IF('TSA Input'!J4178=\"\",\"\",IF(OR('TSA Input'!J4178=\"Yes\",'TSA Input'!J4178=\"Contingent\"),'TSA Input'!I4178,\"\"))","v":""},{"$f":"IF('TSA Input'!J4178=\"\",\"\",IF(OR('TSA Input'!J4178=\"Yes\",'TSA Input'!J4178=\"Contingent\"),'TSA Input'!C4178,\"\"))","v":""},{"$f":"IF('TSA Input'!J4178=\"\",\"\",IF(OR('TSA Input'!J4178=\"Yes\",'TSA Input'!J4178=\"Contingent\"),'TSA Input'!D4178,\"\"))","v":""},{"$f":"IF('TSA Input'!J4178=\"\",\"\",IF(OR('TSA Input'!J4178=\"Yes\",'TSA Input'!J4178=\"Contingent\"),'TSA Input'!G4178,\"\"))","v":""},{"$f":"IF('TSA Input'!J4178=\"\",\"\",IF(OR('TSA Input'!J4178=\"Yes\",'TSA Input'!J4178=\"Contingent\"),'TSA Input'!F4178,\"\"))","v":""},"",{"$f":"IF('TSA Input'!J4178=\"\",\"\",IF(OR('TSA Input'!J4178=\"Yes\",'TSA Input'!J4178=\"Contingent\"),'TSA Input'!D4178,\"\"))","v":""},{"$f":"IF('TSA Input'!J4178=\"\",\"\",IF(OR('TSA Input'!J4178=\"Yes\",'TSA Input'!J4178=\"Contingent\"),'TSA Input'!G4178,\"\"))","v":""},{"$f":"IF('TSA Input'!J4178=\"\",\"\",IF(OR('TSA Input'!J4178=\"Yes\",'TSA Input'!J4178=\"Contingent\"),'TSA Input'!F4178,\"\"))","v":""},"","Required","Required"]
["",null,{"$f":"IF('TSA Input'!J4179=\"\",\"\",IF(OR('TSA Input'!J4179=\"Yes\",'TSA Input'!J4179=\"Contingent\"),'TSA Input'!B4179,\"Ineligible\"))","v":""},{"$f":"IF('TSA Input'!J4179=\"\",\"\",IF(OR('TSA Input'!J4179=\"Yes\",'TSA Input'!J4179=\"Contingent\"),'TSA Input'!I4179,\"\"))","v":""},{"$f":"IF('TSA Input'!J4179=\"\",\"\",IF(OR('TSA Input'!J4179=\"Yes\",'TSA Input'!J4179=\"Contingent\"),'TSA Input'!C4179,\"\"))","v":""},{"$f":"IF('TSA Input'!J4179=\"\",\"\",IF(OR('TSA Input'!J4179=\"Yes\",'TSA Input'!J4179=\"Contingent\"),'TSA Input'!D4179,\"\"))","v":""},{"$f":"IF('TSA Input'!J4179=\"\",\"\",IF(OR('TSA Input'!J4179=\"Yes\",'TSA Input'!J4179=\"Contingent\"),'TSA Input'!G4179,\"\"))","v":""},{"$f":"IF('TSA Input'!J4179=\"\",\"\",IF(OR('TSA Input'!J4179=\"Yes\",'TSA Input'!J4179=\"Contingent\"),'TSA Input'!F4179,\"\"))","v":""},"",{"$f":"IF('TSA Input'!J4179=\"\",\"\",IF(OR('TSA Input'!J4179=\"Yes\",'TSA Input'!J4179=\"Contingent\"),'TSA Input'!D4179,\"\"))","v":""},{"$f":"IF('TSA Input'!J4179=\"\",\"\",IF(OR('TSA Input'!J4179=\"Yes\",'TSA Input'!J4179=\"Contingent\"),'TSA Input'!G4179,\"\"))","v":""},{"$f":"IF('TSA Input'!J4179=\"\",\"\",IF(OR('TSA Input'!J4179=\"Yes\",'TSA Input'!J4179=\"Contingent\"),'TSA Input'!F4179,\"\"))","v":""},"","Required","Required"]
["",null,{"$f":"IF('TSA Input'!J4180=\"\",\"\",IF(OR('TSA Input'!J4180=\"Yes\",'TSA Input'!J4180=\"Contingent\"),'TSA Input'!B4180,\"Ineligible\"))","v":""},{"$f":"IF('TSA Input'!J4180=\"\",\"\",IF(OR('TSA Input'!J4180=\"Yes\",'TSA Input'!J4180=\"Contingent\"),'TSA Input'!I4180,\"\"))","v":""},{"$f":"IF('TSA Input'!J4180=\"\",\"\",IF(OR('TSA Input'!J4180=\"Yes\",'TSA Input'!J4180=\"Contingent\"),'TSA Input'!C4180,\"\"))","v":""},{"$f":"IF('TSA Input'!J4180=\"\",\"\",IF(OR('TSA Input'!J4180=\"Yes\",'TSA Input'!J4180=\"Contingent\"),'TSA Input'!D4180,\"\"))","v":""},{"$f":"IF('TSA Input'!J4180=\"\",\"\",IF(OR('TSA Input'!J4180=\"Yes\",'TSA Input'!J4180=\"Contingent\"),'TSA Input'!G4180,\"\"))","v":""},{"$f":"IF('TSA Input'!J4180=\"\",\"\",IF(OR('TSA Input'!J4180=\"Yes\",'TSA Input'!J4180=\"Contingent\"),'TSA Input'!F4180,\"\"))","v":""},"",{"$f":"IF('TSA Input'!J4180=\"\",\"\",IF(OR('TSA Input'!J4180=\"Yes\",'TSA Input'!J4180=\"Contingent\"),'TSA Input'!D4180,\"\"))","v":""},{"$f":"IF('TSA Input'!J4180=\"\",\"\",IF(OR('TSA Input'!J4180=\"Yes\",'TSA Input'!J4180=\"Contingent\"),'TSA Input'!G4180,\"\"))","v":""},{"$f":"IF('TSA Input'!J4180=\"\",\"\",IF(OR('TSA Input'!J4180=\"Yes\",'TSA Input'!J4180=\"Contingent\"),'TSA Input'!F4180,\"\"))","v":""},"","Required","Required"]
["",null,{"$f":"IF('TSA Input'!J4181=\"\",\"\",IF(OR('TSA Input'!J4181=\"Yes\",'TSA Input'!J4181=\"Contingent\"),'TSA Input'!B4181,\"Ineligible\"))","v":""},{"$f":"IF('TSA Input'!J4181=\"\",\"\",IF(OR('TSA Input'!J4181=\"Yes\",'TSA Input'!J4181=\"Contingent\"),'TSA Input'!I4181,\"\"))","v":""},{"$f":"IF('TSA Input'!J4181=\"\",\"\",IF(OR('TSA Input'!J4181=\"Yes\",'TSA Input'!J4181=\"Contingent\"),'TSA Input'!C4181,\"\"))","v":""},{"$f":"IF('TSA Input'!J4181=\"\",\"\",IF(OR('TSA Input'!J4181=\"Yes\",'TSA Input'!J4181=\"Contingent\"),'TSA Input'!D4181,\"\"))","v":""},{"$f":"IF('TSA Input'!J4181=\"\",\"\",IF(OR('TSA Input'!J4181=\"Yes\",'TSA Input'!J4181=\"Contingent\"),'TSA Input'!G4181,\"\"))","v":""},{"$f":"IF('TSA Input'!J4181=\"\",\"\",IF(OR('TSA Input'!J4181=\"Yes\",'TSA Input'!J4181=\"Contingent\"),'TSA Input'!F4181,\"\"))","v":""},"",{"$f":"IF('TSA Input'!J4181=\"\",\"\",IF(OR('TSA Input'!J4181=\"Yes\",'TSA Input'!J4181=\"Contingent\"),'TSA Input'!D4181,\"\"))","v":""},{"$f":"IF('TSA Input'!J4181=\"\",\"\",IF(OR('TSA Input'!J4181=\"Yes\",'TSA Input'!J4181=\"Contingent\"),'TSA Input'!G4181,\"\"))","v":""},{"$f":"IF('TSA Input'!J4181=\"\",\"\",IF(OR('TSA Input'!J4181=\"Yes\",'TSA Input'!J4181=\"Contingent\"),'TSA Input'!F4181,\"\"))","v":""},"","Required","Required"]
["",null,{"$f":"IF('TSA Input'!J4182=\"\",\"\",IF(OR('TSA Input'!J4182=\"Yes\",'TSA Input'!J4182=\"Contingent\"),'TSA Input'!B4182,\"Ineligible\"))","v":""},{"$f":"IF('TSA Input'!J4182=\"\",\"\",IF(OR('TSA Input'!J4182=\"Yes\",'TSA Input'!J4182=\"Contingent\"),'TSA Input'!I4182,\"\"))","v":""},{"$f":"IF('TSA Input'!J4182=\"\",\"\",IF(OR('TSA Input'!J4182=\"Yes\",'TSA Input'!J4182=\"Contingent\"),'TSA Input'!C4182,\"\"))","v":""},{"$f":"IF('TSA Input'!J4182=\"\",\"\",IF(OR('TSA Input'!J4182=\"Yes\",'TSA Input'!J4182=\"Contingent\"),'TSA Input'!D4182,\"\"))","v":""},{"$f":"IF('TSA Input'!J4182=\"\",\"\",IF(OR('TSA Input'!J4182=\"Yes\",'TSA Input'!J4182=\"Contingent\"),'TSA Input'!G4182,\"\"))","v":""},{"$f":"IF('TSA Input'!J4182=\"\",\"\",IF(OR('TSA Input'!J4182=\"Yes\",'TSA Input'!J4182=\"Contingent\"),'TSA Input'!F4182,\"\"))","v":""},"",{"$f":"IF('TSA Input'!J4182=\"\",\"\",IF(OR('TSA Input'!J4182=\"Yes\",'TSA Input'!J4182=\"Contingent\"),'TSA Input'!D4182,\"\"))","v":""},{"$f":"IF('TSA Input'!J4182=\"\",\"\",IF(OR('TSA Input'!J4182=\"Yes\",'TSA Input'!J4182=\"Contingent\"),'TSA Input'!G4182,\"\"))","v":""},{"$f":"IF('TSA Input'!J4182=\"\",\"\",IF(OR('TSA Input'!J4182=\"Yes\",'TSA Input'!J4182=\"Contingent\"),'TSA Input'!F4182,\"\"))","v":""},"","Required","Required"]
["",null,{"$f":"IF('TSA Input'!J4183=\"\",\"\",IF(OR('TSA Input'!J4183=\"Yes\",'TSA Input'!J4183=\"Contingent\"),'TSA Input'!B4183,\"Ineligible\"))","v":""},{"$f":"IF('TSA Input'!J4183=\"\",\"\",IF(OR('TSA Input'!J4183=\"Yes\",'TSA Input'!J4183=\"Contingent\"),'TSA Input'!I4183,\"\"))","v":""},{"$f":"IF('TSA Input'!J4183=\"\",\"\",IF(OR('TSA Input'!J4183=\"Yes\",'TSA Input'!J4183=\"Contingent\"),'TSA Input'!C4183,\"\"))","v":""},{"$f":"IF('TSA Input'!J4183=\"\",\"\",IF(OR('TSA Input'!J4183=\"Yes\",'TSA Input'!J4183=\"Contingent\"),'TSA Input'!D4183,\"\"))","v":""},{"$f":"IF('TSA Input'!J4183=\"\",\"\",IF(OR('TSA Input'!J4183=\"Yes\",'TSA Input'!J4183=\"Contingent\"),'TSA Input'!G4183,\"\"))","v":""},{"$f":"IF('TSA Input'!J4183=\"\",\"\",IF(OR('TSA Input'!J4183=\"Yes\",'TSA Input'!J4183=\"Contingent\"),'TSA Input'!F4183,\"\"))","v":""},"",{"$f":"IF('TSA Input'!J4183=\"\",\"\",IF(OR('TSA Input'!J4183=\"Yes\",'TSA Input'!J4183=\"Contingent\"),'TSA Input'!D4183,\"\"))","v":""},{"$f":"IF('TSA Input'!J4183=\"\",\"\",IF(OR('TSA Input'!J4183=\"Yes\",'TSA Input'!J4183=\"Contingent\"),'TSA Input'!G4183,\"\"))","v":""},{"$f":"IF('TSA Input'!J4183=\"\",\"\",IF(OR('TSA Input'!J4183=\"Yes\",'TSA Input'!J4183=\"Contingent\"),'TSA Input'!F4183,\"\"))","v":""},"","Required","Required"]
["",null,{"$f":"IF('TSA Input'!J4184=\"\",\"\",IF(OR('TSA Input'!J4184=\"Yes\",'TSA Input'!J4184=\"Contingent\"),'TSA Input'!B4184,\"Ineligible\"))","v":""},{"$f":"IF('TSA Input'!J4184=\"\",\"\",IF(OR('TSA Input'!J4184=\"Yes\",'TSA Input'!J4184=\"Contingent\"),'TSA Input'!I4184,\"\"))","v":""},{"$f":"IF('TSA Input'!J4184=\"\",\"\",IF(OR('TSA Input'!J4184=\"Yes\",'TSA Input'!J4184=\"Contingent\"),'TSA Input'!C4184,\"\"))","v":""},{"$f":"IF('TSA Input'!J4184=\"\",\"\",IF(OR('TSA Input'!J4184=\"Yes\",'TSA Input'!J4184=\"Contingent\"),'TSA Input'!D4184,\"\"))","v":""},{"$f":"IF('TSA Input'!J4184=\"\",\"\",IF(OR('TSA Input'!J4184=\"Yes\",'TSA Input'!J4184=\"Contingent\"),'TSA Input'!G4184,\"\"))","v":""},{"$f":"IF('TSA Input'!J4184=\"\",\"\",IF(OR('TSA Input'!J4184=\"Yes\",'TSA Input'!J4184=\"Contingent\"),'TSA Input'!F4184,\"\"))","v":""},"",{"$f":"IF('TSA Input'!J4184=\"\",\"\",IF(OR('TSA Input'!J4184=\"Yes\",'TSA Input'!J4184=\"Contingent\"),'TSA Input'!D4184,\"\"))","v":""},{"$f":"IF('TSA Input'!J4184=\"\",\"\",IF(OR('TSA Input'!J4184=\"Yes\",'TSA Input'!J4184=\"Contingent\"),'TSA Input'!G4184,\"\"))","v":""},{"$f":"IF('TSA Input'!J4184=\"\",\"\",IF(OR('TSA Input'!J4184=\"Yes\",'TSA Input'!J4184=\"Contingent\"),'TSA Input'!F4184,\"\"))","v":""},"","Required","Required"]
["",null,{"$f":"IF('TSA Input'!J4185=\"\",\"\",IF(OR('TSA Input'!J4185=\"Yes\",'TSA Input'!J4185=\"Contingent\"),'TSA Input'!B4185,\"Ineligible\"))","v":""},{"$f":"IF('TSA Input'!J4185=\"\",\"\",IF(OR('TSA Input'!J4185=\"Yes\",'TSA Input'!J4185=\"Contingent\"),'TSA Input'!I4185,\"\"))","v":""},{"$f":"IF('TSA Input'!J4185=\"\",\"\",IF(OR('TSA Input'!J4185=\"Yes\",'TSA Input'!J4185=\"Contingent\"),'TSA Input'!C4185,\"\"))","v":""},{"$f":"IF('TSA Input'!J4185=\"\",\"\",IF(OR('TSA Input'!J4185=\"Yes\",'TSA Input'!J4185=\"Contingent\"),'TSA Input'!D4185,\"\"))","v":""},{"$f":"IF('TSA Input'!J4185=\"\",\"\",IF(OR('TSA Input'!J4185=\"Yes\",'TSA Input'!J4185=\"Contingent\"),'TSA Input'!G4185,\"\"))","v":""},{"$f":"IF('TSA Input'!J4185=\"\",\"\",IF(OR('TSA Input'!J4185=\"Yes\",'TSA Input'!J4185=\"Contingent\"),'TSA Input'!F4185,\"\"))","v":""},"",{"$f":"IF('TSA Input'!J4185=\"\",\"\",IF(OR('TSA Input'!J4185=\"Yes\",'TSA Input'!J4185=\"Contingent\"),'TSA Input'!D4185,\"\"))","v":""},{"$f":"IF('TSA Input'!J4185=\"\",\"\",IF(OR('TSA Input'!J4185=\"Yes\",'TSA Input'!J4185=\"Contingent\"),'TSA Input'!G4185,\"\"))","v":""},{"$f":"IF('TSA Input'!J4185=\"\",\"\",IF(OR('TSA Input'!J4185=\"Yes\",'TSA Input'!J4185=\"Contingent\"),'TSA Input'!F4185,\"\"))","v":""},"","Required","Required"]
["",null,{"$f":"IF('TSA Input'!J4186=\"\",\"\",IF(OR('TSA Input'!J4186=\"Yes\",'TSA Input'!J4186=\"Contingent\"),'TSA Input'!B4186,\"Ineligible\"))","v":""},{"$f":"IF('TSA Input'!J4186=\"\",\"\",IF(OR('TSA Input'!J4186=\"Yes\",'TSA Input'!J4186=\"Contingent\"),'TSA Input'!I4186,\"\"))","v":""},{"$f":"IF('TSA Input'!J4186=\"\",\"\",IF(OR('TSA Input'!J4186=\"Yes\",'TSA Input'!J4186=\"Contingent\"),'TSA Input'!C4186,\"\"))","v":""},{"$f":"IF('TSA Input'!J4186=\"\",\"\",IF(OR('TSA Input'!J4186=\"Yes\",'TSA Input'!J4186=\"Contingent\"),'TSA Input'!D4186,\"\"))","v":""},{"$f":"IF('TSA Input'!J4186=\"\",\"\",IF(OR('TSA Input'!J4186=\"Yes\",'TSA Input'!J4186=\"Contingent\"),'TSA Input'!G4186,\"\"))","v":""},{"$f":"IF('TSA Input'!J4186=\"\",\"\",IF(OR('TSA Input'!J4186=\"Yes\",'TSA Input'!J4186=\"Contingent\"),'TSA Input'!F4186,\"\"))","v":""},"",{"$f":"IF('TSA Input'!J4186=\"\",\"\",IF(OR('TSA Input'!J4186=\"Yes\",'TSA Input'!J4186=\"Contingent\"),'TSA Input'!D4186,\"\"))","v":""},{"$f":"IF('TSA Input'!J4186=\"\",\"\",IF(OR('TSA Input'!J4186=\"Yes\",'TSA Input'!J4186=\"Contingent\"),'TSA Input'!G4186,\"\"))","v":""},{"$f":"IF('TSA Input'!J4186=\"\",\"\",IF(OR('TSA Input'!J4186=\"Yes\",'TSA Input'!J4186=\"Contingent\"),'TSA Input'!F4186,\"\"))","v":""},"","Required","Required"]
["",null,{"$f":"IF('TSA Input'!J4187=\"\",\"\",IF(OR('TSA Input'!J4187=\"Yes\",'TSA Input'!J4187=\"Contingent\"),'TSA Input'!B4187,\"Ineligible\"))","v":""},{"$f":"IF('TSA Input'!J4187=\"\",\"\",IF(OR('TSA Input'!J4187=\"Yes\",'TSA Input'!J4187=\"Contingent\"),'TSA Input'!I4187,\"\"))","v":""},{"$f":"IF('TSA Input'!J4187=\"\",\"\",IF(OR('TSA Input'!J4187=\"Yes\",'TSA Input'!J4187=\"Contingent\"),'TSA Input'!C4187,\"\"))","v":""},{"$f":"IF('TSA Input'!J4187=\"\",\"\",IF(OR('TSA Input'!J4187=\"Yes\",'TSA Input'!J4187=\"Contingent\"),'TSA Input'!D4187,\"\"))","v":""},{"$f":"IF('TSA Input'!J4187=\"\",\"\",IF(OR('TSA Input'!J4187=\"Yes\",'TSA Input'!J4187=\"Contingent\"),'TSA Input'!G4187,\"\"))","v":""},{"$f":"IF('TSA Input'!J4187=\"\",\"\",IF(OR('TSA Input'!J4187=\"Yes\",'TSA Input'!J4187=\"Contingent\"),'TSA Input'!F4187,\"\"))","v":""},"",{"$f":"IF('TSA Input'!J4187=\"\",\"\",IF(OR('TSA Input'!J4187=\"Yes\",'TSA Input'!J4187=\"Contingent\"),'TSA Input'!D4187,\"\"))","v":""},{"$f":"IF('TSA Input'!J4187=\"\",\"\",IF(OR('TSA Input'!J4187=\"Yes\",'TSA Input'!J4187=\"Contingent\"),'TSA Input'!G4187,\"\"))","v":""},{"$f":"IF('TSA Input'!J4187=\"\",\"\",IF(OR('TSA Input'!J4187=\"Yes\",'TSA Input'!J4187=\"Contingent\"),'TSA Input'!F4187,\"\"))","v":""},"","Required","Required"]
["",null,{"$f":"IF('TSA Input'!J4188=\"\",\"\",IF(OR('TSA Input'!J4188=\"Yes\",'TSA Input'!J4188=\"Contingent\"),'TSA Input'!B4188,\"Ineligible\"))","v":""},{"$f":"IF('TSA Input'!J4188=\"\",\"\",IF(OR('TSA Input'!J4188=\"Yes\",'TSA Input'!J4188=\"Contingent\"),'TSA Input'!I4188,\"\"))","v":""},{"$f":"IF('TSA Input'!J4188=\"\",\"\",IF(OR('TSA Input'!J4188=\"Yes\",'TSA Input'!J4188=\"Contingent\"),'TSA Input'!C4188,\"\"))","v":""},{"$f":"IF('TSA Input'!J4188=\"\",\"\",IF(OR('TSA Input'!J4188=\"Yes\",'TSA Input'!J4188=\"Contingent\"),'TSA Input'!D4188,\"\"))","v":""},{"$f":"IF('TSA Input'!J4188=\"\",\"\",IF(OR('TSA Input'!J4188=\"Yes\",'TSA Input'!J4188=\"Contingent\"),'TSA Input'!G4188,\"\"))","v":""},{"$f":"IF('TSA Input'!J4188=\"\",\"\",IF(OR('TSA Input'!J4188=\"Yes\",'TSA Input'!J4188=\"Contingent\"),'TSA Input'!F4188,\"\"))","v":""},"",{"$f":"IF('TSA Input'!J4188=\"\",\"\",IF(OR('TSA Input'!J4188=\"Yes\",'TSA Input'!J4188=\"Contingent\"),'TSA Input'!D4188,\"\"))","v":""},{"$f":"IF('TSA Input'!J4188=\"\",\"\",IF(OR('TSA Input'!J4188=\"Yes\",'TSA Input'!J4188=\"Contingent\"),'TSA Input'!G4188,\"\"))","v":""},{"$f":"IF('TSA Input'!J4188=\"\",\"\",IF(OR('TSA Input'!J4188=\"Yes\",'TSA Input'!J4188=\"Contingent\"),'TSA Input'!F4188,\"\"))","v":""},"","Required","Required"]
["",null,{"$f":"IF('TSA Input'!J4189=\"\",\"\",IF(OR('TSA Input'!J4189=\"Yes\",'TSA Input'!J4189=\"Contingent\"),'TSA Input'!B4189,\"Ineligible\"))","v":""},{"$f":"IF('TSA Input'!J4189=\"\",\"\",IF(OR('TSA Input'!J4189=\"Yes\",'TSA Input'!J4189=\"Contingent\"),'TSA Input'!I4189,\"\"))","v":""},{"$f":"IF('TSA Input'!J4189=\"\",\"\",IF(OR('TSA Input'!J4189=\"Yes\",'TSA Input'!J4189=\"Contingent\"),'TSA Input'!C4189,\"\"))","v":""},{"$f":"IF('TSA Input'!J4189=\"\",\"\",IF(OR('TSA Input'!J4189=\"Yes\",'TSA Input'!J4189=\"Contingent\"),'TSA Input'!D4189,\"\"))","v":""},{"$f":"IF('TSA Input'!J4189=\"\",\"\",IF(OR('TSA Input'!J4189=\"Yes\",'TSA Input'!J4189=\"Contingent\"),'TSA Input'!G4189,\"\"))","v":""},{"$f":"IF('TSA Input'!J4189=\"\",\"\",IF(OR('TSA Input'!J4189=\"Yes\",'TSA Input'!J4189=\"Contingent\"),'TSA Input'!F4189,\"\"))","v":""},"",{"$f":"IF('TSA Input'!J4189=\"\",\"\",IF(OR('TSA Input'!J4189=\"Yes\",'TSA Input'!J4189=\"Contingent\"),'TSA Input'!D4189,\"\"))","v":""},{"$f":"IF('TSA Input'!J4189=\"\",\"\",IF(OR('TSA Input'!J4189=\"Yes\",'TSA Input'!J4189=\"Contingent\"),'TSA Input'!G4189,\"\"))","v":""},{"$f":"IF('TSA Input'!J4189=\"\",\"\",IF(OR('TSA Input'!J4189=\"Yes\",'TSA Input'!J4189=\"Contingent\"),'TSA Input'!F4189,\"\"))","v":""},"","Required","Required"]
["",null,{"$f":"IF('TSA Input'!J4190=\"\",\"\",IF(OR('TSA Input'!J4190=\"Yes\",'TSA Input'!J4190=\"Contingent\"),'TSA Input'!B4190,\"Ineligible\"))","v":""},{"$f":"IF('TSA Input'!J4190=\"\",\"\",IF(OR('TSA Input'!J4190=\"Yes\",'TSA Input'!J4190=\"Contingent\"),'TSA Input'!I4190,\"\"))","v":""},{"$f":"IF('TSA Input'!J4190=\"\",\"\",IF(OR('TSA Input'!J4190=\"Yes\",'TSA Input'!J4190=\"Contingent\"),'TSA Input'!C4190,\"\"))","v":""},{"$f":"IF('TSA Input'!J4190=\"\",\"\",IF(OR('TSA Input'!J4190=\"Yes\",'TSA Input'!J4190=\"Contingent\"),'TSA Input'!D4190,\"\"))","v":""},{"$f":"IF('TSA Input'!J4190=\"\",\"\",IF(OR('TSA Input'!J4190=\"Yes\",'TSA Input'!J4190=\"Contingent\"),'TSA Input'!G4190,\"\"))","v":""},{"$f":"IF('TSA Input'!J4190=\"\",\"\",IF(OR('TSA Input'!J4190=\"Yes\",'TSA Input'!J4190=\"Contingent\"),'TSA Input'!F4190,\"\"))","v":""},"",{"$f":"IF('TSA Input'!J4190=\"\",\"\",IF(OR('TSA Input'!J4190=\"Yes\",'TSA Input'!J4190=\"Contingent\"),'TSA Input'!D4190,\"\"))","v":""},{"$f":"IF('TSA Input'!J4190=\"\",\"\",IF(OR('TSA Input'!J4190=\"Yes\",'TSA Input'!J4190=\"Contingent\"),'TSA Input'!G4190,\"\"))","v":""},{"$f":"IF('TSA Input'!J4190=\"\",\"\",IF(OR('TSA Input'!J4190=\"Yes\",'TSA Input'!J4190=\"Contingent\"),'TSA Input'!F4190,\"\"))","v":""},"","Required","Required"]
["",null,{"$f":"IF('TSA Input'!J4191=\"\",\"\",IF(OR('TSA Input'!J4191=\"Yes\",'TSA Input'!J4191=\"Contingent\"),'TSA Input'!B4191,\"Ineligible\"))","v":""},{"$f":"IF('TSA Input'!J4191=\"\",\"\",IF(OR('TSA Input'!J4191=\"Yes\",'TSA Input'!J4191=\"Contingent\"),'TSA Input'!I4191,\"\"))","v":""},{"$f":"IF('TSA Input'!J4191=\"\",\"\",IF(OR('TSA Input'!J4191=\"Yes\",'TSA Input'!J4191=\"Contingent\"),'TSA Input'!C4191,\"\"))","v":""},{"$f":"IF('TSA Input'!J4191=\"\",\"\",IF(OR('TSA Input'!J4191=\"Yes\",'TSA Input'!J4191=\"Contingent\"),'TSA Input'!D4191,\"\"))","v":""},{"$f":"IF('TSA Input'!J4191=\"\",\"\",IF(OR('TSA Input'!J4191=\"Yes\",'TSA Input'!J4191=\"Contingent\"),'TSA Input'!G4191,\"\"))","v":""},{"$f":"IF('TSA Input'!J4191=\"\",\"\",IF(OR('TSA Input'!J4191=\"Yes\",'TSA Input'!J4191=\"Contingent\"),'TSA Input'!F4191,\"\"))","v":""},"",{"$f":"IF('TSA Input'!J4191=\"\",\"\",IF(OR('TSA Input'!J4191=\"Yes\",'TSA Input'!J4191=\"Contingent\"),'TSA Input'!D4191,\"\"))","v":""},{"$f":"IF('TSA Input'!J4191=\"\",\"\",IF(OR('TSA Input'!J4191=\"Yes\",'TSA Input'!J4191=\"Contingent\"),'TSA Input'!G4191,\"\"))","v":""},{"$f":"IF('TSA Input'!J4191=\"\",\"\",IF(OR('TSA Input'!J4191=\"Yes\",'TSA Input'!J4191=\"Contingent\"),'TSA Input'!F4191,\"\"))","v":""},"","Required","Required"]
["",null,{"$f":"IF('TSA Input'!J4192=\"\",\"\",IF(OR('TSA Input'!J4192=\"Yes\",'TSA Input'!J4192=\"Contingent\"),'TSA Input'!B4192,\"Ineligible\"))","v":""},{"$f":"IF('TSA Input'!J4192=\"\",\"\",IF(OR('TSA Input'!J4192=\"Yes\",'TSA Input'!J4192=\"Contingent\"),'TSA Input'!I4192,\"\"))","v":""},{"$f":"IF('TSA Input'!J4192=\"\",\"\",IF(OR('TSA Input'!J4192=\"Yes\",'TSA Input'!J4192=\"Contingent\"),'TSA Input'!C4192,\"\"))","v":""},{"$f":"IF('TSA Input'!J4192=\"\",\"\",IF(OR('TSA Input'!J4192=\"Yes\",'TSA Input'!J4192=\"Contingent\"),'TSA Input'!D4192,\"\"))","v":""},{"$f":"IF('TSA Input'!J4192=\"\",\"\",IF(OR('TSA Input'!J4192=\"Yes\",'TSA Input'!J4192=\"Contingent\"),'TSA Input'!G4192,\"\"))","v":""},{"$f":"IF('TSA Input'!J4192=\"\",\"\",IF(OR('TSA Input'!J4192=\"Yes\",'TSA Input'!J4192=\"Contingent\"),'TSA Input'!F4192,\"\"))","v":""},"",{"$f":"IF('TSA Input'!J4192=\"\",\"\",IF(OR('TSA Input'!J4192=\"Yes\",'TSA Input'!J4192=\"Contingent\"),'TSA Input'!D4192,\"\"))","v":""},{"$f":"IF('TSA Input'!J4192=\"\",\"\",IF(OR('TSA Input'!J4192=\"Yes\",'TSA Input'!J4192=\"Contingent\"),'TSA Input'!G4192,\"\"))","v":""},{"$f":"IF('TSA Input'!J4192=\"\",\"\",IF(OR('TSA Input'!J4192=\"Yes\",'TSA Input'!J4192=\"Contingent\"),'TSA Input'!F4192,\"\"))","v":""},"","Required","Required"]
["",null,{"$f":"IF('TSA Input'!J4193=\"\",\"\",IF(OR('TSA Input'!J4193=\"Yes\",'TSA Input'!J4193=\"Contingent\"),'TSA Input'!B4193,\"Ineligible\"))","v":""},{"$f":"IF('TSA Input'!J4193=\"\",\"\",IF(OR('TSA Input'!J4193=\"Yes\",'TSA Input'!J4193=\"Contingent\"),'TSA Input'!I4193,\"\"))","v":""},{"$f":"IF('TSA Input'!J4193=\"\",\"\",IF(OR('TSA Input'!J4193=\"Yes\",'TSA Input'!J4193=\"Contingent\"),'TSA Input'!C4193,\"\"))","v":""},{"$f":"IF('TSA Input'!J4193=\"\",\"\",IF(OR('TSA Input'!J4193=\"Yes\",'TSA Input'!J4193=\"Contingent\"),'TSA Input'!D4193,\"\"))","v":""},{"$f":"IF('TSA Input'!J4193=\"\",\"\",IF(OR('TSA Input'!J4193=\"Yes\",'TSA Input'!J4193=\"Contingent\"),'TSA Input'!G4193,\"\"))","v":""},{"$f":"IF('TSA Input'!J4193=\"\",\"\",IF(OR('TSA Input'!J4193=\"Yes\",'TSA Input'!J4193=\"Contingent\"),'TSA Input'!F4193,\"\"))","v":""},"",{"$f":"IF('TSA Input'!J4193=\"\",\"\",IF(OR('TSA Input'!J4193=\"Yes\",'TSA Input'!J4193=\"Contingent\"),'TSA Input'!D4193,\"\"))","v":""},{"$f":"IF('TSA Input'!J4193=\"\",\"\",IF(OR('TSA Input'!J4193=\"Yes\",'TSA Input'!J4193=\"Contingent\"),'TSA Input'!G4193,\"\"))","v":""},{"$f":"IF('TSA Input'!J4193=\"\",\"\",IF(OR('TSA Input'!J4193=\"Yes\",'TSA Input'!J4193=\"Contingent\"),'TSA Input'!F4193,\"\"))","v":""},"","Required","Required"]
["",null,{"$f":"IF('TSA Input'!J4194=\"\",\"\",IF(OR('TSA Input'!J4194=\"Yes\",'TSA Input'!J4194=\"Contingent\"),'TSA Input'!B4194,\"Ineligible\"))","v":""},{"$f":"IF('TSA Input'!J4194=\"\",\"\",IF(OR('TSA Input'!J4194=\"Yes\",'TSA Input'!J4194=\"Contingent\"),'TSA Input'!I4194,\"\"))","v":""},{"$f":"IF('TSA Input'!J4194=\"\",\"\",IF(OR('TSA Input'!J4194=\"Yes\",'TSA Input'!J4194=\"Contingent\"),'TSA Input'!C4194,\"\"))","v":""},{"$f":"IF('TSA Input'!J4194=\"\",\"\",IF(OR('TSA Input'!J4194=\"Yes\",'TSA Input'!J4194=\"Contingent\"),'TSA Input'!D4194,\"\"))","v":""},{"$f":"IF('TSA Input'!J4194=\"\",\"\",IF(OR('TSA Input'!J4194=\"Yes\",'TSA Input'!J4194=\"Contingent\"),'TSA Input'!G4194,\"\"))","v":""},{"$f":"IF('TSA Input'!J4194=\"\",\"\",IF(OR('TSA Input'!J4194=\"Yes\",'TSA Input'!J4194=\"Contingent\"),'TSA Input'!F4194,\"\"))","v":""},"",{"$f":"IF('TSA Input'!J4194=\"\",\"\",IF(OR('TSA Input'!J4194=\"Yes\",'TSA Input'!J4194=\"Contingent\"),'TSA Input'!D4194,\"\"))","v":""},{"$f":"IF('TSA Input'!J4194=\"\",\"\",IF(OR('TSA Input'!J4194=\"Yes\",'TSA Input'!J4194=\"Contingent\"),'TSA Input'!G4194,\"\"))","v":""},{"$f":"IF('TSA Input'!J4194=\"\",\"\",IF(OR('TSA Input'!J4194=\"Yes\",'TSA Input'!J4194=\"Contingent\"),'TSA Input'!F4194,\"\"))","v":""},"","Required","Required"]
["",null,{"$f":"IF('TSA Input'!J4195=\"\",\"\",IF(OR('TSA Input'!J4195=\"Yes\",'TSA Input'!J4195=\"Contingent\"),'TSA Input'!B4195,\"Ineligible\"))","v":""},{"$f":"IF('TSA Input'!J4195=\"\",\"\",IF(OR('TSA Input'!J4195=\"Yes\",'TSA Input'!J4195=\"Contingent\"),'TSA Input'!I4195,\"\"))","v":""},{"$f":"IF('TSA Input'!J4195=\"\",\"\",IF(OR('TSA Input'!J4195=\"Yes\",'TSA Input'!J4195=\"Contingent\"),'TSA Input'!C4195,\"\"))","v":""},{"$f":"IF('TSA Input'!J4195=\"\",\"\",IF(OR('TSA Input'!J4195=\"Yes\",'TSA Input'!J4195=\"Contingent\"),'TSA Input'!D4195,\"\"))","v":""},{"$f":"IF('TSA Input'!J4195=\"\",\"\",IF(OR('TSA Input'!J4195=\"Yes\",'TSA Input'!J4195=\"Contingent\"),'TSA Input'!G4195,\"\"))","v":""},{"$f":"IF('TSA Input'!J4195=\"\",\"\",IF(OR('TSA Input'!J4195=\"Yes\",'TSA Input'!J4195=\"Contingent\"),'TSA Input'!F4195,\"\"))","v":""},"",{"$f":"IF('TSA Input'!J4195=\"\",\"\",IF(OR('TSA Input'!J4195=\"Yes\",'TSA Input'!J4195=\"Contingent\"),'TSA Input'!D4195,\"\"))","v":""},{"$f":"IF('TSA Input'!J4195=\"\",\"\",IF(OR('TSA Input'!J4195=\"Yes\",'TSA Input'!J4195=\"Contingent\"),'TSA Input'!G4195,\"\"))","v":""},{"$f":"IF('TSA Input'!J4195=\"\",\"\",IF(OR('TSA Input'!J4195=\"Yes\",'TSA Input'!J4195=\"Contingent\"),'TSA Input'!F4195,\"\"))","v":""},"","Required","Required"]
["",null,{"$f":"IF('TSA Input'!J4196=\"\",\"\",IF(OR('TSA Input'!J4196=\"Yes\",'TSA Input'!J4196=\"Contingent\"),'TSA Input'!B4196,\"Ineligible\"))","v":""},{"$f":"IF('TSA Input'!J4196=\"\",\"\",IF(OR('TSA Input'!J4196=\"Yes\",'TSA Input'!J4196=\"Contingent\"),'TSA Input'!I4196,\"\"))","v":""},{"$f":"IF('TSA Input'!J4196=\"\",\"\",IF(OR('TSA Input'!J4196=\"Yes\",'TSA Input'!J4196=\"Contingent\"),'TSA Input'!C4196,\"\"))","v":""},{"$f":"IF('TSA Input'!J4196=\"\",\"\",IF(OR('TSA Input'!J4196=\"Yes\",'TSA Input'!J4196=\"Contingent\"),'TSA Input'!D4196,\"\"))","v":""},{"$f":"IF('TSA Input'!J4196=\"\",\"\",IF(OR('TSA Input'!J4196=\"Yes\",'TSA Input'!J4196=\"Contingent\"),'TSA Input'!G4196,\"\"))","v":""},{"$f":"IF('TSA Input'!J4196=\"\",\"\",IF(OR('TSA Input'!J4196=\"Yes\",'TSA Input'!J4196=\"Contingent\"),'TSA Input'!F4196,\"\"))","v":""},"",{"$f":"IF('TSA Input'!J4196=\"\",\"\",IF(OR('TSA Input'!J4196=\"Yes\",'TSA Input'!J4196=\"Contingent\"),'TSA Input'!D4196,\"\"))","v":""},{"$f":"IF('TSA Input'!J4196=\"\",\"\",IF(OR('TSA Input'!J4196=\"Yes\",'TSA Input'!J4196=\"Contingent\"),'TSA Input'!G4196,\"\"))","v":""},{"$f":"IF('TSA Input'!J4196=\"\",\"\",IF(OR('TSA Input'!J4196=\"Yes\",'TSA Input'!J4196=\"Contingent\"),'TSA Input'!F4196,\"\"))","v":""},"","Required","Required"]
["",null,{"$f":"IF('TSA Input'!J4197=\"\",\"\",IF(OR('TSA Input'!J4197=\"Yes\",'TSA Input'!J4197=\"Contingent\"),'TSA Input'!B4197,\"Ineligible\"))","v":""},{"$f":"IF('TSA Input'!J4197=\"\",\"\",IF(OR('TSA Input'!J4197=\"Yes\",'TSA Input'!J4197=\"Contingent\"),'TSA Input'!I4197,\"\"))","v":""},{"$f":"IF('TSA Input'!J4197=\"\",\"\",IF(OR('TSA Input'!J4197=\"Yes\",'TSA Input'!J4197=\"Contingent\"),'TSA Input'!C4197,\"\"))","v":""},{"$f":"IF('TSA Input'!J4197=\"\",\"\",IF(OR('TSA Input'!J4197=\"Yes\",'TSA Input'!J4197=\"Contingent\"),'TSA Input'!D4197,\"\"))","v":""},{"$f":"IF('TSA Input'!J4197=\"\",\"\",IF(OR('TSA Input'!J4197=\"Yes\",'TSA Input'!J4197=\"Contingent\"),'TSA Input'!G4197,\"\"))","v":""},{"$f":"IF('TSA Input'!J4197=\"\",\"\",IF(OR('TSA Input'!J4197=\"Yes\",'TSA Input'!J4197=\"Contingent\"),'TSA Input'!F4197,\"\"))","v":""},"",{"$f":"IF('TSA Input'!J4197=\"\",\"\",IF(OR('TSA Input'!J4197=\"Yes\",'TSA Input'!J4197=\"Contingent\"),'TSA Input'!D4197,\"\"))","v":""},{"$f":"IF('TSA Input'!J4197=\"\",\"\",IF(OR('TSA Input'!J4197=\"Yes\",'TSA Input'!J4197=\"Contingent\"),'TSA Input'!G4197,\"\"))","v":""},{"$f":"IF('TSA Input'!J4197=\"\",\"\",IF(OR('TSA Input'!J4197=\"Yes\",'TSA Input'!J4197=\"Contingent\"),'TSA Input'!F4197,\"\"))","v":""},"","Required","Required"]
["",null,{"$f":"IF('TSA Input'!J4198=\"\",\"\",IF(OR('TSA Input'!J4198=\"Yes\",'TSA Input'!J4198=\"Contingent\"),'TSA Input'!B4198,\"Ineligible\"))","v":""},{"$f":"IF('TSA Input'!J4198=\"\",\"\",IF(OR('TSA Input'!J4198=\"Yes\",'TSA Input'!J4198=\"Contingent\"),'TSA Input'!I4198,\"\"))","v":""},{"$f":"IF('TSA Input'!J4198=\"\",\"\",IF(OR('TSA Input'!J4198=\"Yes\",'TSA Input'!J4198=\"Contingent\"),'TSA Input'!C4198,\"\"))","v":""},{"$f":"IF('TSA Input'!J4198=\"\",\"\",IF(OR('TSA Input'!J4198=\"Yes\",'TSA Input'!J4198=\"Contingent\"),'TSA Input'!D4198,\"\"))","v":""},{"$f":"IF('TSA Input'!J4198=\"\",\"\",IF(OR('TSA Input'!J4198=\"Yes\",'TSA Input'!J4198=\"Contingent\"),'TSA Input'!G4198,\"\"))","v":""},{"$f":"IF('TSA Input'!J4198=\"\",\"\",IF(OR('TSA Input'!J4198=\"Yes\",'TSA Input'!J4198=\"Contingent\"),'TSA Input'!F4198,\"\"))","v":""},"",{"$f":"IF('TSA Input'!J4198=\"\",\"\",IF(OR('TSA Input'!J4198=\"Yes\",'TSA Input'!J4198=\"Contingent\"),'TSA Input'!D4198,\"\"))","v":""},{"$f":"IF('TSA Input'!J4198=\"\",\"\",IF(OR('TSA Input'!J4198=\"Yes\",'TSA Input'!J4198=\"Contingent\"),'TSA Input'!G4198,\"\"))","v":""},{"$f":"IF('TSA Input'!J4198=\"\",\"\",IF(OR('TSA Input'!J4198=\"Yes\",'TSA Input'!J4198=\"Contingent\"),'TSA Input'!F4198,\"\"))","v":""},"","Required","Required"]
["",null,{"$f":"IF('TSA Input'!J4199=\"\",\"\",IF(OR('TSA Input'!J4199=\"Yes\",'TSA Input'!J4199=\"Contingent\"),'TSA Input'!B4199,\"Ineligible\"))","v":""},{"$f":"IF('TSA Input'!J4199=\"\",\"\",IF(OR('TSA Input'!J4199=\"Yes\",'TSA Input'!J4199=\"Contingent\"),'TSA Input'!I4199,\"\"))","v":""},{"$f":"IF('TSA Input'!J4199=\"\",\"\",IF(OR('TSA Input'!J4199=\"Yes\",'TSA Input'!J4199=\"Contingent\"),'TSA Input'!C4199,\"\"))","v":""},{"$f":"IF('TSA Input'!J4199=\"\",\"\",IF(OR('TSA Input'!J4199=\"Yes\",'TSA Input'!J4199=\"Contingent\"),'TSA Input'!D4199,\"\"))","v":""},{"$f":"IF('TSA Input'!J4199=\"\",\"\",IF(OR('TSA Input'!J4199=\"Yes\",'TSA Input'!J4199=\"Contingent\"),'TSA Input'!G4199,\"\"))","v":""},{"$f":"IF('TSA Input'!J4199=\"\",\"\",IF(OR('TSA Input'!J4199=\"Yes\",'TSA Input'!J4199=\"Contingent\"),'TSA Input'!F4199,\"\"))","v":""},"",{"$f":"IF('TSA Input'!J4199=\"\",\"\",IF(OR('TSA Input'!J4199=\"Yes\",'TSA Input'!J4199=\"Contingent\"),'TSA Input'!D4199,\"\"))","v":""},{"$f":"IF('TSA Input'!J4199=\"\",\"\",IF(OR('TSA Input'!J4199=\"Yes\",'TSA Input'!J4199=\"Contingent\"),'TSA Input'!G4199,\"\"))","v":""},{"$f":"IF('TSA Input'!J4199=\"\",\"\",IF(OR('TSA Input'!J4199=\"Yes\",'TSA Input'!J4199=\"Contingent\"),'TSA Input'!F4199,\"\"))","v":""},"","Required","Required"]
["",null,{"$f":"IF('TSA Input'!J4200=\"\",\"\",IF(OR('TSA Input'!J4200=\"Yes\",'TSA Input'!J4200=\"Contingent\"),'TSA Input'!B4200,\"Ineligible\"))","v":""},{"$f":"IF('TSA Input'!J4200=\"\",\"\",IF(OR('TSA Input'!J4200=\"Yes\",'TSA Input'!J4200=\"Contingent\"),'TSA Input'!I4200,\"\"))","v":""},{"$f":"IF('TSA Input'!J4200=\"\",\"\",IF(OR('TSA Input'!J4200=\"Yes\",'TSA Input'!J4200=\"Contingent\"),'TSA Input'!C4200,\"\"))","v":""},{"$f":"IF('TSA Input'!J4200=\"\",\"\",IF(OR('TSA Input'!J4200=\"Yes\",'TSA Input'!J4200=\"Contingent\"),'TSA Input'!D4200,\"\"))","v":""},{"$f":"IF('TSA Input'!J4200=\"\",\"\",IF(OR('TSA Input'!J4200=\"Yes\",'TSA Input'!J4200=\"Contingent\"),'TSA Input'!G4200,\"\"))","v":""},{"$f":"IF('TSA Input'!J4200=\"\",\"\",IF(OR('TSA Input'!J4200=\"Yes\",'TSA Input'!J4200=\"Contingent\"),'TSA Input'!F4200,\"\"))","v":""},"",{"$f":"IF('TSA Input'!J4200=\"\",\"\",IF(OR('TSA Input'!J4200=\"Yes\",'TSA Input'!J4200=\"Contingent\"),'TSA Input'!D4200,\"\"))","v":""},{"$f":"IF('TSA Input'!J4200=\"\",\"\",IF(OR('TSA Input'!J4200=\"Yes\",'TSA Input'!J4200=\"Contingent\"),'TSA Input'!G4200,\"\"))","v":""},{"$f":"IF('TSA Input'!J4200=\"\",\"\",IF(OR('TSA Input'!J4200=\"Yes\",'TSA Input'!J4200=\"Contingent\"),'TSA Input'!F4200,\"\"))","v":""},"","Required","Required"]
["",null,{"$f":"IF('TSA Input'!J4201=\"\",\"\",IF(OR('TSA Input'!J4201=\"Yes\",'TSA Input'!J4201=\"Contingent\"),'TSA Input'!B4201,\"Ineligible\"))","v":""},{"$f":"IF('TSA Input'!J4201=\"\",\"\",IF(OR('TSA Input'!J4201=\"Yes\",'TSA Input'!J4201=\"Contingent\"),'TSA Input'!I4201,\"\"))","v":""},{"$f":"IF('TSA Input'!J4201=\"\",\"\",IF(OR('TSA Input'!J4201=\"Yes\",'TSA Input'!J4201=\"Contingent\"),'TSA Input'!C4201,\"\"))","v":""},{"$f":"IF('TSA Input'!J4201=\"\",\"\",IF(OR('TSA Input'!J4201=\"Yes\",'TSA Input'!J4201=\"Contingent\"),'TSA Input'!D4201,\"\"))","v":""},{"$f":"IF('TSA Input'!J4201=\"\",\"\",IF(OR('TSA Input'!J4201=\"Yes\",'TSA Input'!J4201=\"Contingent\"),'TSA Input'!G4201,\"\"))","v":""},{"$f":"IF('TSA Input'!J4201=\"\",\"\",IF(OR('TSA Input'!J4201=\"Yes\",'TSA Input'!J4201=\"Contingent\"),'TSA Input'!F4201,\"\"))","v":""},"",{"$f":"IF('TSA Input'!J4201=\"\",\"\",IF(OR('TSA Input'!J4201=\"Yes\",'TSA Input'!J4201=\"Contingent\"),'TSA Input'!D4201,\"\"))","v":""},{"$f":"IF('TSA Input'!J4201=\"\",\"\",IF(OR('TSA Input'!J4201=\"Yes\",'TSA Input'!J4201=\"Contingent\"),'TSA Input'!G4201,\"\"))","v":""},{"$f":"IF('TSA Input'!J4201=\"\",\"\",IF(OR('TSA Input'!J4201=\"Yes\",'TSA Input'!J4201=\"Contingent\"),'TSA Input'!F4201,\"\"))","v":""},"","Required","Required"]
["",null,{"$f":"IF('TSA Input'!J4202=\"\",\"\",IF(OR('TSA Input'!J4202=\"Yes\",'TSA Input'!J4202=\"Contingent\"),'TSA Input'!B4202,\"Ineligible\"))","v":""},{"$f":"IF('TSA Input'!J4202=\"\",\"\",IF(OR('TSA Input'!J4202=\"Yes\",'TSA Input'!J4202=\"Contingent\"),'TSA Input'!I4202,\"\"))","v":""},{"$f":"IF('TSA Input'!J4202=\"\",\"\",IF(OR('TSA Input'!J4202=\"Yes\",'TSA Input'!J4202=\"Contingent\"),'TSA Input'!C4202,\"\"))","v":""},{"$f":"IF('TSA Input'!J4202=\"\",\"\",IF(OR('TSA Input'!J4202=\"Yes\",'TSA Input'!J4202=\"Contingent\"),'TSA Input'!D4202,\"\"))","v":""},{"$f":"IF('TSA Input'!J4202=\"\",\"\",IF(OR('TSA Input'!J4202=\"Yes\",'TSA Input'!J4202=\"Contingent\"),'TSA Input'!G4202,\"\"))","v":""},{"$f":"IF('TSA Input'!J4202=\"\",\"\",IF(OR('TSA Input'!J4202=\"Yes\",'TSA Input'!J4202=\"Contingent\"),'TSA Input'!F4202,\"\"))","v":""},"",{"$f":"IF('TSA Input'!J4202=\"\",\"\",IF(OR('TSA Input'!J4202=\"Yes\",'TSA Input'!J4202=\"Contingent\"),'TSA Input'!D4202,\"\"))","v":""},{"$f":"IF('TSA Input'!J4202=\"\",\"\",IF(OR('TSA Input'!J4202=\"Yes\",'TSA Input'!J4202=\"Contingent\"),'TSA Input'!G4202,\"\"))","v":""},{"$f":"IF('TSA Input'!J4202=\"\",\"\",IF(OR('TSA Input'!J4202=\"Yes\",'TSA Input'!J4202=\"Contingent\"),'TSA Input'!F4202,\"\"))","v":""},"","Required","Required"]
["",null,{"$f":"IF('TSA Input'!J4203=\"\",\"\",IF(OR('TSA Input'!J4203=\"Yes\",'TSA Input'!J4203=\"Contingent\"),'TSA Input'!B4203,\"Ineligible\"))","v":""},{"$f":"IF('TSA Input'!J4203=\"\",\"\",IF(OR('TSA Input'!J4203=\"Yes\",'TSA Input'!J4203=\"Contingent\"),'TSA Input'!I4203,\"\"))","v":""},{"$f":"IF('TSA Input'!J4203=\"\",\"\",IF(OR('TSA Input'!J4203=\"Yes\",'TSA Input'!J4203=\"Contingent\"),'TSA Input'!C4203,\"\"))","v":""},{"$f":"IF('TSA Input'!J4203=\"\",\"\",IF(OR('TSA Input'!J4203=\"Yes\",'TSA Input'!J4203=\"Contingent\"),'TSA Input'!D4203,\"\"))","v":""},{"$f":"IF('TSA Input'!J4203=\"\",\"\",IF(OR('TSA Input'!J4203=\"Yes\",'TSA Input'!J4203=\"Contingent\"),'TSA Input'!G4203,\"\"))","v":""},{"$f":"IF('TSA Input'!J4203=\"\",\"\",IF(OR('TSA Input'!J4203=\"Yes\",'TSA Input'!J4203=\"Contingent\"),'TSA Input'!F4203,\"\"))","v":""},"",{"$f":"IF('TSA Input'!J4203=\"\",\"\",IF(OR('TSA Input'!J4203=\"Yes\",'TSA Input'!J4203=\"Contingent\"),'TSA Input'!D4203,\"\"))","v":""},{"$f":"IF('TSA Input'!J4203=\"\",\"\",IF(OR('TSA Input'!J4203=\"Yes\",'TSA Input'!J4203=\"Contingent\"),'TSA Input'!G4203,\"\"))","v":""},{"$f":"IF('TSA Input'!J4203=\"\",\"\",IF(OR('TSA Input'!J4203=\"Yes\",'TSA Input'!J4203=\"Contingent\"),'TSA Input'!F4203,\"\"))","v":""},"","Required","Required"]
["",null,{"$f":"IF('TSA Input'!J4204=\"\",\"\",IF(OR('TSA Input'!J4204=\"Yes\",'TSA Input'!J4204=\"Contingent\"),'TSA Input'!B4204,\"Ineligible\"))","v":""},{"$f":"IF('TSA Input'!J4204=\"\",\"\",IF(OR('TSA Input'!J4204=\"Yes\",'TSA Input'!J4204=\"Contingent\"),'TSA Input'!I4204,\"\"))","v":""},{"$f":"IF('TSA Input'!J4204=\"\",\"\",IF(OR('TSA Input'!J4204=\"Yes\",'TSA Input'!J4204=\"Contingent\"),'TSA Input'!C4204,\"\"))","v":""},{"$f":"IF('TSA Input'!J4204=\"\",\"\",IF(OR('TSA Input'!J4204=\"Yes\",'TSA Input'!J4204=\"Contingent\"),'TSA Input'!D4204,\"\"))","v":""},{"$f":"IF('TSA Input'!J4204=\"\",\"\",IF(OR('TSA Input'!J4204=\"Yes\",'TSA Input'!J4204=\"Contingent\"),'TSA Input'!G4204,\"\"))","v":""},{"$f":"IF('TSA Input'!J4204=\"\",\"\",IF(OR('TSA Input'!J4204=\"Yes\",'TSA Input'!J4204=\"Contingent\"),'TSA Input'!F4204,\"\"))","v":""},"",{"$f":"IF('TSA Input'!J4204=\"\",\"\",IF(OR('TSA Input'!J4204=\"Yes\",'TSA Input'!J4204=\"Contingent\"),'TSA Input'!D4204,\"\"))","v":""},{"$f":"IF('TSA Input'!J4204=\"\",\"\",IF(OR('TSA Input'!J4204=\"Yes\",'TSA Input'!J4204=\"Contingent\"),'TSA Input'!G4204,\"\"))","v":""},{"$f":"IF('TSA Input'!J4204=\"\",\"\",IF(OR('TSA Input'!J4204=\"Yes\",'TSA Input'!J4204=\"Contingent\"),'TSA Input'!F4204,\"\"))","v":""},"","Required","Required"]
["",null,{"$f":"IF('TSA Input'!J4205=\"\",\"\",IF(OR('TSA Input'!J4205=\"Yes\",'TSA Input'!J4205=\"Contingent\"),'TSA Input'!B4205,\"Ineligible\"))","v":""},{"$f":"IF('TSA Input'!J4205=\"\",\"\",IF(OR('TSA Input'!J4205=\"Yes\",'TSA Input'!J4205=\"Contingent\"),'TSA Input'!I4205,\"\"))","v":""},{"$f":"IF('TSA Input'!J4205=\"\",\"\",IF(OR('TSA Input'!J4205=\"Yes\",'TSA Input'!J4205=\"Contingent\"),'TSA Input'!C4205,\"\"))","v":""},{"$f":"IF('TSA Input'!J4205=\"\",\"\",IF(OR('TSA Input'!J4205=\"Yes\",'TSA Input'!J4205=\"Contingent\"),'TSA Input'!D4205,\"\"))","v":""},{"$f":"IF('TSA Input'!J4205=\"\",\"\",IF(OR('TSA Input'!J4205=\"Yes\",'TSA Input'!J4205=\"Contingent\"),'TSA Input'!G4205,\"\"))","v":""},{"$f":"IF('TSA Input'!J4205=\"\",\"\",IF(OR('TSA Input'!J4205=\"Yes\",'TSA Input'!J4205=\"Contingent\"),'TSA Input'!F4205,\"\"))","v":""},"",{"$f":"IF('TSA Input'!J4205=\"\",\"\",IF(OR('TSA Input'!J4205=\"Yes\",'TSA Input'!J4205=\"Contingent\"),'TSA Input'!D4205,\"\"))","v":""},{"$f":"IF('TSA Input'!J4205=\"\",\"\",IF(OR('TSA Input'!J4205=\"Yes\",'TSA Input'!J4205=\"Contingent\"),'TSA Input'!G4205,\"\"))","v":""},{"$f":"IF('TSA Input'!J4205=\"\",\"\",IF(OR('TSA Input'!J4205=\"Yes\",'TSA Input'!J4205=\"Contingent\"),'TSA Input'!F4205,\"\"))","v":""},"","Required","Required"]
["",null,{"$f":"IF('TSA Input'!J4206=\"\",\"\",IF(OR('TSA Input'!J4206=\"Yes\",'TSA Input'!J4206=\"Contingent\"),'TSA Input'!B4206,\"Ineligible\"))","v":""},{"$f":"IF('TSA Input'!J4206=\"\",\"\",IF(OR('TSA Input'!J4206=\"Yes\",'TSA Input'!J4206=\"Contingent\"),'TSA Input'!I4206,\"\"))","v":""},{"$f":"IF('TSA Input'!J4206=\"\",\"\",IF(OR('TSA Input'!J4206=\"Yes\",'TSA Input'!J4206=\"Contingent\"),'TSA Input'!C4206,\"\"))","v":""},{"$f":"IF('TSA Input'!J4206=\"\",\"\",IF(OR('TSA Input'!J4206=\"Yes\",'TSA Input'!J4206=\"Contingent\"),'TSA Input'!D4206,\"\"))","v":""},{"$f":"IF('TSA Input'!J4206=\"\",\"\",IF(OR('TSA Input'!J4206=\"Yes\",'TSA Input'!J4206=\"Contingent\"),'TSA Input'!G4206,\"\"))","v":""},{"$f":"IF('TSA Input'!J4206=\"\",\"\",IF(OR('TSA Input'!J4206=\"Yes\",'TSA Input'!J4206=\"Contingent\"),'TSA Input'!F4206,\"\"))","v":""},"",{"$f":"IF('TSA Input'!J4206=\"\",\"\",IF(OR('TSA Input'!J4206=\"Yes\",'TSA Input'!J4206=\"Contingent\"),'TSA Input'!D4206,\"\"))","v":""},{"$f":"IF('TSA Input'!J4206=\"\",\"\",IF(OR('TSA Input'!J4206=\"Yes\",'TSA Input'!J4206=\"Contingent\"),'TSA Input'!G4206,\"\"))","v":""},{"$f":"IF('TSA Input'!J4206=\"\",\"\",IF(OR('TSA Input'!J4206=\"Yes\",'TSA Input'!J4206=\"Contingent\"),'TSA Input'!F4206,\"\"))","v":""},"","Required","Required"]
["",null,{"$f":"IF('TSA Input'!J4207=\"\",\"\",IF(OR('TSA Input'!J4207=\"Yes\",'TSA Input'!J4207=\"Contingent\"),'TSA Input'!B4207,\"Ineligible\"))","v":""},{"$f":"IF('TSA Input'!J4207=\"\",\"\",IF(OR('TSA Input'!J4207=\"Yes\",'TSA Input'!J4207=\"Contingent\"),'TSA Input'!I4207,\"\"))","v":""},{"$f":"IF('TSA Input'!J4207=\"\",\"\",IF(OR('TSA Input'!J4207=\"Yes\",'TSA Input'!J4207=\"Contingent\"),'TSA Input'!C4207,\"\"))","v":""},{"$f":"IF('TSA Input'!J4207=\"\",\"\",IF(OR('TSA Input'!J4207=\"Yes\",'TSA Input'!J4207=\"Contingent\"),'TSA Input'!D4207,\"\"))","v":""},{"$f":"IF('TSA Input'!J4207=\"\",\"\",IF(OR('TSA Input'!J4207=\"Yes\",'TSA Input'!J4207=\"Contingent\"),'TSA Input'!G4207,\"\"))","v":""},{"$f":"IF('TSA Input'!J4207=\"\",\"\",IF(OR('TSA Input'!J4207=\"Yes\",'TSA Input'!J4207=\"Contingent\"),'TSA Input'!F4207,\"\"))","v":""},"",{"$f":"IF('TSA Input'!J4207=\"\",\"\",IF(OR('TSA Input'!J4207=\"Yes\",'TSA Input'!J4207=\"Contingent\"),'TSA Input'!D4207,\"\"))","v":""},{"$f":"IF('TSA Input'!J4207=\"\",\"\",IF(OR('TSA Input'!J4207=\"Yes\",'TSA Input'!J4207=\"Contingent\"),'TSA Input'!G4207,\"\"))","v":""},{"$f":"IF('TSA Input'!J4207=\"\",\"\",IF(OR('TSA Input'!J4207=\"Yes\",'TSA Input'!J4207=\"Contingent\"),'TSA Input'!F4207,\"\"))","v":""},"","Required","Required"]
["",null,{"$f":"IF('TSA Input'!J4208=\"\",\"\",IF(OR('TSA Input'!J4208=\"Yes\",'TSA Input'!J4208=\"Contingent\"),'TSA Input'!B4208,\"Ineligible\"))","v":""},{"$f":"IF('TSA Input'!J4208=\"\",\"\",IF(OR('TSA Input'!J4208=\"Yes\",'TSA Input'!J4208=\"Contingent\"),'TSA Input'!I4208,\"\"))","v":""},{"$f":"IF('TSA Input'!J4208=\"\",\"\",IF(OR('TSA Input'!J4208=\"Yes\",'TSA Input'!J4208=\"Contingent\"),'TSA Input'!C4208,\"\"))","v":""},{"$f":"IF('TSA Input'!J4208=\"\",\"\",IF(OR('TSA Input'!J4208=\"Yes\",'TSA Input'!J4208=\"Contingent\"),'TSA Input'!D4208,\"\"))","v":""},{"$f":"IF('TSA Input'!J4208=\"\",\"\",IF(OR('TSA Input'!J4208=\"Yes\",'TSA Input'!J4208=\"Contingent\"),'TSA Input'!G4208,\"\"))","v":""},{"$f":"IF('TSA Input'!J4208=\"\",\"\",IF(OR('TSA Input'!J4208=\"Yes\",'TSA Input'!J4208=\"Contingent\"),'TSA Input'!F4208,\"\"))","v":""},"",{"$f":"IF('TSA Input'!J4208=\"\",\"\",IF(OR('TSA Input'!J4208=\"Yes\",'TSA Input'!J4208=\"Contingent\"),'TSA Input'!D4208,\"\"))","v":""},{"$f":"IF('TSA Input'!J4208=\"\",\"\",IF(OR('TSA Input'!J4208=\"Yes\",'TSA Input'!J4208=\"Contingent\"),'TSA Input'!G4208,\"\"))","v":""},{"$f":"IF('TSA Input'!J4208=\"\",\"\",IF(OR('TSA Input'!J4208=\"Yes\",'TSA Input'!J4208=\"Contingent\"),'TSA Input'!F4208,\"\"))","v":""},"","Required","Required"]
["",null,{"$f":"IF('TSA Input'!J4209=\"\",\"\",IF(OR('TSA Input'!J4209=\"Yes\",'TSA Input'!J4209=\"Contingent\"),'TSA Input'!B4209,\"Ineligible\"))","v":""},{"$f":"IF('TSA Input'!J4209=\"\",\"\",IF(OR('TSA Input'!J4209=\"Yes\",'TSA Input'!J4209=\"Contingent\"),'TSA Input'!I4209,\"\"))","v":""},{"$f":"IF('TSA Input'!J4209=\"\",\"\",IF(OR('TSA Input'!J4209=\"Yes\",'TSA Input'!J4209=\"Contingent\"),'TSA Input'!C4209,\"\"))","v":""},{"$f":"IF('TSA Input'!J4209=\"\",\"\",IF(OR('TSA Input'!J4209=\"Yes\",'TSA Input'!J4209=\"Contingent\"),'TSA Input'!D4209,\"\"))","v":""},{"$f":"IF('TSA Input'!J4209=\"\",\"\",IF(OR('TSA Input'!J4209=\"Yes\",'TSA Input'!J4209=\"Contingent\"),'TSA Input'!G4209,\"\"))","v":""},{"$f":"IF('TSA Input'!J4209=\"\",\"\",IF(OR('TSA Input'!J4209=\"Yes\",'TSA Input'!J4209=\"Contingent\"),'TSA Input'!F4209,\"\"))","v":""},"",{"$f":"IF('TSA Input'!J4209=\"\",\"\",IF(OR('TSA Input'!J4209=\"Yes\",'TSA Input'!J4209=\"Contingent\"),'TSA Input'!D4209,\"\"))","v":""},{"$f":"IF('TSA Input'!J4209=\"\",\"\",IF(OR('TSA Input'!J4209=\"Yes\",'TSA Input'!J4209=\"Contingent\"),'TSA Input'!G4209,\"\"))","v":""},{"$f":"IF('TSA Input'!J4209=\"\",\"\",IF(OR('TSA Input'!J4209=\"Yes\",'TSA Input'!J4209=\"Contingent\"),'TSA Input'!F4209,\"\"))","v":""},"","Required","Required"]
["",null,{"$f":"IF('TSA Input'!J4210=\"\",\"\",IF(OR('TSA Input'!J4210=\"Yes\",'TSA Input'!J4210=\"Contingent\"),'TSA Input'!B4210,\"Ineligible\"))","v":""},{"$f":"IF('TSA Input'!J4210=\"\",\"\",IF(OR('TSA Input'!J4210=\"Yes\",'TSA Input'!J4210=\"Contingent\"),'TSA Input'!I4210,\"\"))","v":""},{"$f":"IF('TSA Input'!J4210=\"\",\"\",IF(OR('TSA Input'!J4210=\"Yes\",'TSA Input'!J4210=\"Contingent\"),'TSA Input'!C4210,\"\"))","v":""},{"$f":"IF('TSA Input'!J4210=\"\",\"\",IF(OR('TSA Input'!J4210=\"Yes\",'TSA Input'!J4210=\"Contingent\"),'TSA Input'!D4210,\"\"))","v":""},{"$f":"IF('TSA Input'!J4210=\"\",\"\",IF(OR('TSA Input'!J4210=\"Yes\",'TSA Input'!J4210=\"Contingent\"),'TSA Input'!G4210,\"\"))","v":""},{"$f":"IF('TSA Input'!J4210=\"\",\"\",IF(OR('TSA Input'!J4210=\"Yes\",'TSA Input'!J4210=\"Contingent\"),'TSA Input'!F4210,\"\"))","v":""},"",{"$f":"IF('TSA Input'!J4210=\"\",\"\",IF(OR('TSA Input'!J4210=\"Yes\",'TSA Input'!J4210=\"Contingent\"),'TSA Input'!D4210,\"\"))","v":""},{"$f":"IF('TSA Input'!J4210=\"\",\"\",IF(OR('TSA Input'!J4210=\"Yes\",'TSA Input'!J4210=\"Contingent\"),'TSA Input'!G4210,\"\"))","v":""},{"$f":"IF('TSA Input'!J4210=\"\",\"\",IF(OR('TSA Input'!J4210=\"Yes\",'TSA Input'!J4210=\"Contingent\"),'TSA Input'!F4210,\"\"))","v":""},"","Required","Required"]
["",null,{"$f":"IF('TSA Input'!J4211=\"\",\"\",IF(OR('TSA Input'!J4211=\"Yes\",'TSA Input'!J4211=\"Contingent\"),'TSA Input'!B4211,\"Ineligible\"))","v":""},{"$f":"IF('TSA Input'!J4211=\"\",\"\",IF(OR('TSA Input'!J4211=\"Yes\",'TSA Input'!J4211=\"Contingent\"),'TSA Input'!I4211,\"\"))","v":""},{"$f":"IF('TSA Input'!J4211=\"\",\"\",IF(OR('TSA Input'!J4211=\"Yes\",'TSA Input'!J4211=\"Contingent\"),'TSA Input'!C4211,\"\"))","v":""},{"$f":"IF('TSA Input'!J4211=\"\",\"\",IF(OR('TSA Input'!J4211=\"Yes\",'TSA Input'!J4211=\"Contingent\"),'TSA Input'!D4211,\"\"))","v":""},{"$f":"IF('TSA Input'!J4211=\"\",\"\",IF(OR('TSA Input'!J4211=\"Yes\",'TSA Input'!J4211=\"Contingent\"),'TSA Input'!G4211,\"\"))","v":""},{"$f":"IF('TSA Input'!J4211=\"\",\"\",IF(OR('TSA Input'!J4211=\"Yes\",'TSA Input'!J4211=\"Contingent\"),'TSA Input'!F4211,\"\"))","v":""},"",{"$f":"IF('TSA Input'!J4211=\"\",\"\",IF(OR('TSA Input'!J4211=\"Yes\",'TSA Input'!J4211=\"Contingent\"),'TSA Input'!D4211,\"\"))","v":""},{"$f":"IF('TSA Input'!J4211=\"\",\"\",IF(OR('TSA Input'!J4211=\"Yes\",'TSA Input'!J4211=\"Contingent\"),'TSA Input'!G4211,\"\"))","v":""},{"$f":"IF('TSA Input'!J4211=\"\",\"\",IF(OR('TSA Input'!J4211=\"Yes\",'TSA Input'!J4211=\"Contingent\"),'TSA Input'!F4211,\"\"))","v":""},"","Required","Required"]
["",null,{"$f":"IF('TSA Input'!J4212=\"\",\"\",IF(OR('TSA Input'!J4212=\"Yes\",'TSA Input'!J4212=\"Contingent\"),'TSA Input'!B4212,\"Ineligible\"))","v":""},{"$f":"IF('TSA Input'!J4212=\"\",\"\",IF(OR('TSA Input'!J4212=\"Yes\",'TSA Input'!J4212=\"Contingent\"),'TSA Input'!I4212,\"\"))","v":""},{"$f":"IF('TSA Input'!J4212=\"\",\"\",IF(OR('TSA Input'!J4212=\"Yes\",'TSA Input'!J4212=\"Contingent\"),'TSA Input'!C4212,\"\"))","v":""},{"$f":"IF('TSA Input'!J4212=\"\",\"\",IF(OR('TSA Input'!J4212=\"Yes\",'TSA Input'!J4212=\"Contingent\"),'TSA Input'!D4212,\"\"))","v":""},{"$f":"IF('TSA Input'!J4212=\"\",\"\",IF(OR('TSA Input'!J4212=\"Yes\",'TSA Input'!J4212=\"Contingent\"),'TSA Input'!G4212,\"\"))","v":""},{"$f":"IF('TSA Input'!J4212=\"\",\"\",IF(OR('TSA Input'!J4212=\"Yes\",'TSA Input'!J4212=\"Contingent\"),'TSA Input'!F4212,\"\"))","v":""},"",{"$f":"IF('TSA Input'!J4212=\"\",\"\",IF(OR('TSA Input'!J4212=\"Yes\",'TSA Input'!J4212=\"Contingent\"),'TSA Input'!D4212,\"\"))","v":""},{"$f":"IF('TSA Input'!J4212=\"\",\"\",IF(OR('TSA Input'!J4212=\"Yes\",'TSA Input'!J4212=\"Contingent\"),'TSA Input'!G4212,\"\"))","v":""},{"$f":"IF('TSA Input'!J4212=\"\",\"\",IF(OR('TSA Input'!J4212=\"Yes\",'TSA Input'!J4212=\"Contingent\"),'TSA Input'!F4212,\"\"))","v":""},"","Required","Required"]
["",null,{"$f":"IF('TSA Input'!J4213=\"\",\"\",IF(OR('TSA Input'!J4213=\"Yes\",'TSA Input'!J4213=\"Contingent\"),'TSA Input'!B4213,\"Ineligible\"))","v":""},{"$f":"IF('TSA Input'!J4213=\"\",\"\",IF(OR('TSA Input'!J4213=\"Yes\",'TSA Input'!J4213=\"Contingent\"),'TSA Input'!I4213,\"\"))","v":""},{"$f":"IF('TSA Input'!J4213=\"\",\"\",IF(OR('TSA Input'!J4213=\"Yes\",'TSA Input'!J4213=\"Contingent\"),'TSA Input'!C4213,\"\"))","v":""},{"$f":"IF('TSA Input'!J4213=\"\",\"\",IF(OR('TSA Input'!J4213=\"Yes\",'TSA Input'!J4213=\"Contingent\"),'TSA Input'!D4213,\"\"))","v":""},{"$f":"IF('TSA Input'!J4213=\"\",\"\",IF(OR('TSA Input'!J4213=\"Yes\",'TSA Input'!J4213=\"Contingent\"),'TSA Input'!G4213,\"\"))","v":""},{"$f":"IF('TSA Input'!J4213=\"\",\"\",IF(OR('TSA Input'!J4213=\"Yes\",'TSA Input'!J4213=\"Contingent\"),'TSA Input'!F4213,\"\"))","v":""},"",{"$f":"IF('TSA Input'!J4213=\"\",\"\",IF(OR('TSA Input'!J4213=\"Yes\",'TSA Input'!J4213=\"Contingent\"),'TSA Input'!D4213,\"\"))","v":""},{"$f":"IF('TSA Input'!J4213=\"\",\"\",IF(OR('TSA Input'!J4213=\"Yes\",'TSA Input'!J4213=\"Contingent\"),'TSA Input'!G4213,\"\"))","v":""},{"$f":"IF('TSA Input'!J4213=\"\",\"\",IF(OR('TSA Input'!J4213=\"Yes\",'TSA Input'!J4213=\"Contingent\"),'TSA Input'!F4213,\"\"))","v":""},"","Required","Required"]
["",null,{"$f":"IF('TSA Input'!J4214=\"\",\"\",IF(OR('TSA Input'!J4214=\"Yes\",'TSA Input'!J4214=\"Contingent\"),'TSA Input'!B4214,\"Ineligible\"))","v":""},{"$f":"IF('TSA Input'!J4214=\"\",\"\",IF(OR('TSA Input'!J4214=\"Yes\",'TSA Input'!J4214=\"Contingent\"),'TSA Input'!I4214,\"\"))","v":""},{"$f":"IF('TSA Input'!J4214=\"\",\"\",IF(OR('TSA Input'!J4214=\"Yes\",'TSA Input'!J4214=\"Contingent\"),'TSA Input'!C4214,\"\"))","v":""},{"$f":"IF('TSA Input'!J4214=\"\",\"\",IF(OR('TSA Input'!J4214=\"Yes\",'TSA Input'!J4214=\"Contingent\"),'TSA Input'!D4214,\"\"))","v":""},{"$f":"IF('TSA Input'!J4214=\"\",\"\",IF(OR('TSA Input'!J4214=\"Yes\",'TSA Input'!J4214=\"Contingent\"),'TSA Input'!G4214,\"\"))","v":""},{"$f":"IF('TSA Input'!J4214=\"\",\"\",IF(OR('TSA Input'!J4214=\"Yes\",'TSA Input'!J4214=\"Contingent\"),'TSA Input'!F4214,\"\"))","v":""},"",{"$f":"IF('TSA Input'!J4214=\"\",\"\",IF(OR('TSA Input'!J4214=\"Yes\",'TSA Input'!J4214=\"Contingent\"),'TSA Input'!D4214,\"\"))","v":""},{"$f":"IF('TSA Input'!J4214=\"\",\"\",IF(OR('TSA Input'!J4214=\"Yes\",'TSA Input'!J4214=\"Contingent\"),'TSA Input'!G4214,\"\"))","v":""},{"$f":"IF('TSA Input'!J4214=\"\",\"\",IF(OR('TSA Input'!J4214=\"Yes\",'TSA Input'!J4214=\"Contingent\"),'TSA Input'!F4214,\"\"))","v":""},"","Required","Required"]
["",null,{"$f":"IF('TSA Input'!J4215=\"\",\"\",IF(OR('TSA Input'!J4215=\"Yes\",'TSA Input'!J4215=\"Contingent\"),'TSA Input'!B4215,\"Ineligible\"))","v":""},{"$f":"IF('TSA Input'!J4215=\"\",\"\",IF(OR('TSA Input'!J4215=\"Yes\",'TSA Input'!J4215=\"Contingent\"),'TSA Input'!I4215,\"\"))","v":""},{"$f":"IF('TSA Input'!J4215=\"\",\"\",IF(OR('TSA Input'!J4215=\"Yes\",'TSA Input'!J4215=\"Contingent\"),'TSA Input'!C4215,\"\"))","v":""},{"$f":"IF('TSA Input'!J4215=\"\",\"\",IF(OR('TSA Input'!J4215=\"Yes\",'TSA Input'!J4215=\"Contingent\"),'TSA Input'!D4215,\"\"))","v":""},{"$f":"IF('TSA Input'!J4215=\"\",\"\",IF(OR('TSA Input'!J4215=\"Yes\",'TSA Input'!J4215=\"Contingent\"),'TSA Input'!G4215,\"\"))","v":""},{"$f":"IF('TSA Input'!J4215=\"\",\"\",IF(OR('TSA Input'!J4215=\"Yes\",'TSA Input'!J4215=\"Contingent\"),'TSA Input'!F4215,\"\"))","v":""},"",{"$f":"IF('TSA Input'!J4215=\"\",\"\",IF(OR('TSA Input'!J4215=\"Yes\",'TSA Input'!J4215=\"Contingent\"),'TSA Input'!D4215,\"\"))","v":""},{"$f":"IF('TSA Input'!J4215=\"\",\"\",IF(OR('TSA Input'!J4215=\"Yes\",'TSA Input'!J4215=\"Contingent\"),'TSA Input'!G4215,\"\"))","v":""},{"$f":"IF('TSA Input'!J4215=\"\",\"\",IF(OR('TSA Input'!J4215=\"Yes\",'TSA Input'!J4215=\"Contingent\"),'TSA Input'!F4215,\"\"))","v":""},"","Required","Required"]
["",null,{"$f":"IF('TSA Input'!J4216=\"\",\"\",IF(OR('TSA Input'!J4216=\"Yes\",'TSA Input'!J4216=\"Contingent\"),'TSA Input'!B4216,\"Ineligible\"))","v":""},{"$f":"IF('TSA Input'!J4216=\"\",\"\",IF(OR('TSA Input'!J4216=\"Yes\",'TSA Input'!J4216=\"Contingent\"),'TSA Input'!I4216,\"\"))","v":""},{"$f":"IF('TSA Input'!J4216=\"\",\"\",IF(OR('TSA Input'!J4216=\"Yes\",'TSA Input'!J4216=\"Contingent\"),'TSA Input'!C4216,\"\"))","v":""},{"$f":"IF('TSA Input'!J4216=\"\",\"\",IF(OR('TSA Input'!J4216=\"Yes\",'TSA Input'!J4216=\"Contingent\"),'TSA Input'!D4216,\"\"))","v":""},{"$f":"IF('TSA Input'!J4216=\"\",\"\",IF(OR('TSA Input'!J4216=\"Yes\",'TSA Input'!J4216=\"Contingent\"),'TSA Input'!G4216,\"\"))","v":""},{"$f":"IF('TSA Input'!J4216=\"\",\"\",IF(OR('TSA Input'!J4216=\"Yes\",'TSA Input'!J4216=\"Contingent\"),'TSA Input'!F4216,\"\"))","v":""},"",{"$f":"IF('TSA Input'!J4216=\"\",\"\",IF(OR('TSA Input'!J4216=\"Yes\",'TSA Input'!J4216=\"Contingent\"),'TSA Input'!D4216,\"\"))","v":""},{"$f":"IF('TSA Input'!J4216=\"\",\"\",IF(OR('TSA Input'!J4216=\"Yes\",'TSA Input'!J4216=\"Contingent\"),'TSA Input'!G4216,\"\"))","v":""},{"$f":"IF('TSA Input'!J4216=\"\",\"\",IF(OR('TSA Input'!J4216=\"Yes\",'TSA Input'!J4216=\"Contingent\"),'TSA Input'!F4216,\"\"))","v":""},"","Required","Required"]
["",null,{"$f":"IF('TSA Input'!J4217=\"\",\"\",IF(OR('TSA Input'!J4217=\"Yes\",'TSA Input'!J4217=\"Contingent\"),'TSA Input'!B4217,\"Ineligible\"))","v":""},{"$f":"IF('TSA Input'!J4217=\"\",\"\",IF(OR('TSA Input'!J4217=\"Yes\",'TSA Input'!J4217=\"Contingent\"),'TSA Input'!I4217,\"\"))","v":""},{"$f":"IF('TSA Input'!J4217=\"\",\"\",IF(OR('TSA Input'!J4217=\"Yes\",'TSA Input'!J4217=\"Contingent\"),'TSA Input'!C4217,\"\"))","v":""},{"$f":"IF('TSA Input'!J4217=\"\",\"\",IF(OR('TSA Input'!J4217=\"Yes\",'TSA Input'!J4217=\"Contingent\"),'TSA Input'!D4217,\"\"))","v":""},{"$f":"IF('TSA Input'!J4217=\"\",\"\",IF(OR('TSA Input'!J4217=\"Yes\",'TSA Input'!J4217=\"Contingent\"),'TSA Input'!G4217,\"\"))","v":""},{"$f":"IF('TSA Input'!J4217=\"\",\"\",IF(OR('TSA Input'!J4217=\"Yes\",'TSA Input'!J4217=\"Contingent\"),'TSA Input'!F4217,\"\"))","v":""},"",{"$f":"IF('TSA Input'!J4217=\"\",\"\",IF(OR('TSA Input'!J4217=\"Yes\",'TSA Input'!J4217=\"Contingent\"),'TSA Input'!D4217,\"\"))","v":""},{"$f":"IF('TSA Input'!J4217=\"\",\"\",IF(OR('TSA Input'!J4217=\"Yes\",'TSA Input'!J4217=\"Contingent\"),'TSA Input'!G4217,\"\"))","v":""},{"$f":"IF('TSA Input'!J4217=\"\",\"\",IF(OR('TSA Input'!J4217=\"Yes\",'TSA Input'!J4217=\"Contingent\"),'TSA Input'!F4217,\"\"))","v":""},"","Required","Required"]
["",null,{"$f":"IF('TSA Input'!J4218=\"\",\"\",IF(OR('TSA Input'!J4218=\"Yes\",'TSA Input'!J4218=\"Contingent\"),'TSA Input'!B4218,\"Ineligible\"))","v":""},{"$f":"IF('TSA Input'!J4218=\"\",\"\",IF(OR('TSA Input'!J4218=\"Yes\",'TSA Input'!J4218=\"Contingent\"),'TSA Input'!I4218,\"\"))","v":""},{"$f":"IF('TSA Input'!J4218=\"\",\"\",IF(OR('TSA Input'!J4218=\"Yes\",'TSA Input'!J4218=\"Contingent\"),'TSA Input'!C4218,\"\"))","v":""},{"$f":"IF('TSA Input'!J4218=\"\",\"\",IF(OR('TSA Input'!J4218=\"Yes\",'TSA Input'!J4218=\"Contingent\"),'TSA Input'!D4218,\"\"))","v":""},{"$f":"IF('TSA Input'!J4218=\"\",\"\",IF(OR('TSA Input'!J4218=\"Yes\",'TSA Input'!J4218=\"Contingent\"),'TSA Input'!G4218,\"\"))","v":""},{"$f":"IF('TSA Input'!J4218=\"\",\"\",IF(OR('TSA Input'!J4218=\"Yes\",'TSA Input'!J4218=\"Contingent\"),'TSA Input'!F4218,\"\"))","v":""},"",{"$f":"IF('TSA Input'!J4218=\"\",\"\",IF(OR('TSA Input'!J4218=\"Yes\",'TSA Input'!J4218=\"Contingent\"),'TSA Input'!D4218,\"\"))","v":""},{"$f":"IF('TSA Input'!J4218=\"\",\"\",IF(OR('TSA Input'!J4218=\"Yes\",'TSA Input'!J4218=\"Contingent\"),'TSA Input'!G4218,\"\"))","v":""},{"$f":"IF('TSA Input'!J4218=\"\",\"\",IF(OR('TSA Input'!J4218=\"Yes\",'TSA Input'!J4218=\"Contingent\"),'TSA Input'!F4218,\"\"))","v":""},"","Required","Required"]
["",null,{"$f":"IF('TSA Input'!J4219=\"\",\"\",IF(OR('TSA Input'!J4219=\"Yes\",'TSA Input'!J4219=\"Contingent\"),'TSA Input'!B4219,\"Ineligible\"))","v":""},{"$f":"IF('TSA Input'!J4219=\"\",\"\",IF(OR('TSA Input'!J4219=\"Yes\",'TSA Input'!J4219=\"Contingent\"),'TSA Input'!I4219,\"\"))","v":""},{"$f":"IF('TSA Input'!J4219=\"\",\"\",IF(OR('TSA Input'!J4219=\"Yes\",'TSA Input'!J4219=\"Contingent\"),'TSA Input'!C4219,\"\"))","v":""},{"$f":"IF('TSA Input'!J4219=\"\",\"\",IF(OR('TSA Input'!J4219=\"Yes\",'TSA Input'!J4219=\"Contingent\"),'TSA Input'!D4219,\"\"))","v":""},{"$f":"IF('TSA Input'!J4219=\"\",\"\",IF(OR('TSA Input'!J4219=\"Yes\",'TSA Input'!J4219=\"Contingent\"),'TSA Input'!G4219,\"\"))","v":""},{"$f":"IF('TSA Input'!J4219=\"\",\"\",IF(OR('TSA Input'!J4219=\"Yes\",'TSA Input'!J4219=\"Contingent\"),'TSA Input'!F4219,\"\"))","v":""},"",{"$f":"IF('TSA Input'!J4219=\"\",\"\",IF(OR('TSA Input'!J4219=\"Yes\",'TSA Input'!J4219=\"Contingent\"),'TSA Input'!D4219,\"\"))","v":""},{"$f":"IF('TSA Input'!J4219=\"\",\"\",IF(OR('TSA Input'!J4219=\"Yes\",'TSA Input'!J4219=\"Contingent\"),'TSA Input'!G4219,\"\"))","v":""},{"$f":"IF('TSA Input'!J4219=\"\",\"\",IF(OR('TSA Input'!J4219=\"Yes\",'TSA Input'!J4219=\"Contingent\"),'TSA Input'!F4219,\"\"))","v":""},"","Required","Required"]
["",null,{"$f":"IF('TSA Input'!J4220=\"\",\"\",IF(OR('TSA Input'!J4220=\"Yes\",'TSA Input'!J4220=\"Contingent\"),'TSA Input'!B4220,\"Ineligible\"))","v":""},{"$f":"IF('TSA Input'!J4220=\"\",\"\",IF(OR('TSA Input'!J4220=\"Yes\",'TSA Input'!J4220=\"Contingent\"),'TSA Input'!I4220,\"\"))","v":""},{"$f":"IF('TSA Input'!J4220=\"\",\"\",IF(OR('TSA Input'!J4220=\"Yes\",'TSA Input'!J4220=\"Contingent\"),'TSA Input'!C4220,\"\"))","v":""},{"$f":"IF('TSA Input'!J4220=\"\",\"\",IF(OR('TSA Input'!J4220=\"Yes\",'TSA Input'!J4220=\"Contingent\"),'TSA Input'!D4220,\"\"))","v":""},{"$f":"IF('TSA Input'!J4220=\"\",\"\",IF(OR('TSA Input'!J4220=\"Yes\",'TSA Input'!J4220=\"Contingent\"),'TSA Input'!G4220,\"\"))","v":""},{"$f":"IF('TSA Input'!J4220=\"\",\"\",IF(OR('TSA Input'!J4220=\"Yes\",'TSA Input'!J4220=\"Contingent\"),'TSA Input'!F4220,\"\"))","v":""},"",{"$f":"IF('TSA Input'!J4220=\"\",\"\",IF(OR('TSA Input'!J4220=\"Yes\",'TSA Input'!J4220=\"Contingent\"),'TSA Input'!D4220,\"\"))","v":""},{"$f":"IF('TSA Input'!J4220=\"\",\"\",IF(OR('TSA Input'!J4220=\"Yes\",'TSA Input'!J4220=\"Contingent\"),'TSA Input'!G4220,\"\"))","v":""},{"$f":"IF('TSA Input'!J4220=\"\",\"\",IF(OR('TSA Input'!J4220=\"Yes\",'TSA Input'!J4220=\"Contingent\"),'TSA Input'!F4220,\"\"))","v":""},"","Required","Required"]
["",null,{"$f":"IF('TSA Input'!J4221=\"\",\"\",IF(OR('TSA Input'!J4221=\"Yes\",'TSA Input'!J4221=\"Contingent\"),'TSA Input'!B4221,\"Ineligible\"))","v":""},{"$f":"IF('TSA Input'!J4221=\"\",\"\",IF(OR('TSA Input'!J4221=\"Yes\",'TSA Input'!J4221=\"Contingent\"),'TSA Input'!I4221,\"\"))","v":""},{"$f":"IF('TSA Input'!J4221=\"\",\"\",IF(OR('TSA Input'!J4221=\"Yes\",'TSA Input'!J4221=\"Contingent\"),'TSA Input'!C4221,\"\"))","v":""},{"$f":"IF('TSA Input'!J4221=\"\",\"\",IF(OR('TSA Input'!J4221=\"Yes\",'TSA Input'!J4221=\"Contingent\"),'TSA Input'!D4221,\"\"))","v":""},{"$f":"IF('TSA Input'!J4221=\"\",\"\",IF(OR('TSA Input'!J4221=\"Yes\",'TSA Input'!J4221=\"Contingent\"),'TSA Input'!G4221,\"\"))","v":""},{"$f":"IF('TSA Input'!J4221=\"\",\"\",IF(OR('TSA Input'!J4221=\"Yes\",'TSA Input'!J4221=\"Contingent\"),'TSA Input'!F4221,\"\"))","v":""},"",{"$f":"IF('TSA Input'!J4221=\"\",\"\",IF(OR('TSA Input'!J4221=\"Yes\",'TSA Input'!J4221=\"Contingent\"),'TSA Input'!D4221,\"\"))","v":""},{"$f":"IF('TSA Input'!J4221=\"\",\"\",IF(OR('TSA Input'!J4221=\"Yes\",'TSA Input'!J4221=\"Contingent\"),'TSA Input'!G4221,\"\"))","v":""},{"$f":"IF('TSA Input'!J4221=\"\",\"\",IF(OR('TSA Input'!J4221=\"Yes\",'TSA Input'!J4221=\"Contingent\"),'TSA Input'!F4221,\"\"))","v":""},"","Required","Required"]
["",null,{"$f":"IF('TSA Input'!J4222=\"\",\"\",IF(OR('TSA Input'!J4222=\"Yes\",'TSA Input'!J4222=\"Contingent\"),'TSA Input'!B4222,\"Ineligible\"))","v":""},{"$f":"IF('TSA Input'!J4222=\"\",\"\",IF(OR('TSA Input'!J4222=\"Yes\",'TSA Input'!J4222=\"Contingent\"),'TSA Input'!I4222,\"\"))","v":""},{"$f":"IF('TSA Input'!J4222=\"\",\"\",IF(OR('TSA Input'!J4222=\"Yes\",'TSA Input'!J4222=\"Contingent\"),'TSA Input'!C4222,\"\"))","v":""},{"$f":"IF('TSA Input'!J4222=\"\",\"\",IF(OR('TSA Input'!J4222=\"Yes\",'TSA Input'!J4222=\"Contingent\"),'TSA Input'!D4222,\"\"))","v":""},{"$f":"IF('TSA Input'!J4222=\"\",\"\",IF(OR('TSA Input'!J4222=\"Yes\",'TSA Input'!J4222=\"Contingent\"),'TSA Input'!G4222,\"\"))","v":""},{"$f":"IF('TSA Input'!J4222=\"\",\"\",IF(OR('TSA Input'!J4222=\"Yes\",'TSA Input'!J4222=\"Contingent\"),'TSA Input'!F4222,\"\"))","v":""},"",{"$f":"IF('TSA Input'!J4222=\"\",\"\",IF(OR('TSA Input'!J4222=\"Yes\",'TSA Input'!J4222=\"Contingent\"),'TSA Input'!D4222,\"\"))","v":""},{"$f":"IF('TSA Input'!J4222=\"\",\"\",IF(OR('TSA Input'!J4222=\"Yes\",'TSA Input'!J4222=\"Contingent\"),'TSA Input'!G4222,\"\"))","v":""},{"$f":"IF('TSA Input'!J4222=\"\",\"\",IF(OR('TSA Input'!J4222=\"Yes\",'TSA Input'!J4222=\"Contingent\"),'TSA Input'!F4222,\"\"))","v":""},"","Required","Required"]
["",null,{"$f":"IF('TSA Input'!J4223=\"\",\"\",IF(OR('TSA Input'!J4223=\"Yes\",'TSA Input'!J4223=\"Contingent\"),'TSA Input'!B4223,\"Ineligible\"))","v":""},{"$f":"IF('TSA Input'!J4223=\"\",\"\",IF(OR('TSA Input'!J4223=\"Yes\",'TSA Input'!J4223=\"Contingent\"),'TSA Input'!I4223,\"\"))","v":""},{"$f":"IF('TSA Input'!J4223=\"\",\"\",IF(OR('TSA Input'!J4223=\"Yes\",'TSA Input'!J4223=\"Contingent\"),'TSA Input'!C4223,\"\"))","v":""},{"$f":"IF('TSA Input'!J4223=\"\",\"\",IF(OR('TSA Input'!J4223=\"Yes\",'TSA Input'!J4223=\"Contingent\"),'TSA Input'!D4223,\"\"))","v":""},{"$f":"IF('TSA Input'!J4223=\"\",\"\",IF(OR('TSA Input'!J4223=\"Yes\",'TSA Input'!J4223=\"Contingent\"),'TSA Input'!G4223,\"\"))","v":""},{"$f":"IF('TSA Input'!J4223=\"\",\"\",IF(OR('TSA Input'!J4223=\"Yes\",'TSA Input'!J4223=\"Contingent\"),'TSA Input'!F4223,\"\"))","v":""},"",{"$f":"IF('TSA Input'!J4223=\"\",\"\",IF(OR('TSA Input'!J4223=\"Yes\",'TSA Input'!J4223=\"Contingent\"),'TSA Input'!D4223,\"\"))","v":""},{"$f":"IF('TSA Input'!J4223=\"\",\"\",IF(OR('TSA Input'!J4223=\"Yes\",'TSA Input'!J4223=\"Contingent\"),'TSA Input'!G4223,\"\"))","v":""},{"$f":"IF('TSA Input'!J4223=\"\",\"\",IF(OR('TSA Input'!J4223=\"Yes\",'TSA Input'!J4223=\"Contingent\"),'TSA Input'!F4223,\"\"))","v":""},"","Required","Required"]
["",null,{"$f":"IF('TSA Input'!J4224=\"\",\"\",IF(OR('TSA Input'!J4224=\"Yes\",'TSA Input'!J4224=\"Contingent\"),'TSA Input'!B4224,\"Ineligible\"))","v":""},{"$f":"IF('TSA Input'!J4224=\"\",\"\",IF(OR('TSA Input'!J4224=\"Yes\",'TSA Input'!J4224=\"Contingent\"),'TSA Input'!I4224,\"\"))","v":""},{"$f":"IF('TSA Input'!J4224=\"\",\"\",IF(OR('TSA Input'!J4224=\"Yes\",'TSA Input'!J4224=\"Contingent\"),'TSA Input'!C4224,\"\"))","v":""},{"$f":"IF('TSA Input'!J4224=\"\",\"\",IF(OR('TSA Input'!J4224=\"Yes\",'TSA Input'!J4224=\"Contingent\"),'TSA Input'!D4224,\"\"))","v":""},{"$f":"IF('TSA Input'!J4224=\"\",\"\",IF(OR('TSA Input'!J4224=\"Yes\",'TSA Input'!J4224=\"Contingent\"),'TSA Input'!G4224,\"\"))","v":""},{"$f":"IF('TSA Input'!J4224=\"\",\"\",IF(OR('TSA Input'!J4224=\"Yes\",'TSA Input'!J4224=\"Contingent\"),'TSA Input'!F4224,\"\"))","v":""},"",{"$f":"IF('TSA Input'!J4224=\"\",\"\",IF(OR('TSA Input'!J4224=\"Yes\",'TSA Input'!J4224=\"Contingent\"),'TSA Input'!D4224,\"\"))","v":""},{"$f":"IF('TSA Input'!J4224=\"\",\"\",IF(OR('TSA Input'!J4224=\"Yes\",'TSA Input'!J4224=\"Contingent\"),'TSA Input'!G4224,\"\"))","v":""},{"$f":"IF('TSA Input'!J4224=\"\",\"\",IF(OR('TSA Input'!J4224=\"Yes\",'TSA Input'!J4224=\"Contingent\"),'TSA Input'!F4224,\"\"))","v":""},"","Required","Required"]
["",null,{"$f":"IF('TSA Input'!J4225=\"\",\"\",IF(OR('TSA Input'!J4225=\"Yes\",'TSA Input'!J4225=\"Contingent\"),'TSA Input'!B4225,\"Ineligible\"))","v":""},{"$f":"IF('TSA Input'!J4225=\"\",\"\",IF(OR('TSA Input'!J4225=\"Yes\",'TSA Input'!J4225=\"Contingent\"),'TSA Input'!I4225,\"\"))","v":""},{"$f":"IF('TSA Input'!J4225=\"\",\"\",IF(OR('TSA Input'!J4225=\"Yes\",'TSA Input'!J4225=\"Contingent\"),'TSA Input'!C4225,\"\"))","v":""},{"$f":"IF('TSA Input'!J4225=\"\",\"\",IF(OR('TSA Input'!J4225=\"Yes\",'TSA Input'!J4225=\"Contingent\"),'TSA Input'!D4225,\"\"))","v":""},{"$f":"IF('TSA Input'!J4225=\"\",\"\",IF(OR('TSA Input'!J4225=\"Yes\",'TSA Input'!J4225=\"Contingent\"),'TSA Input'!G4225,\"\"))","v":""},{"$f":"IF('TSA Input'!J4225=\"\",\"\",IF(OR('TSA Input'!J4225=\"Yes\",'TSA Input'!J4225=\"Contingent\"),'TSA Input'!F4225,\"\"))","v":""},"",{"$f":"IF('TSA Input'!J4225=\"\",\"\",IF(OR('TSA Input'!J4225=\"Yes\",'TSA Input'!J4225=\"Contingent\"),'TSA Input'!D4225,\"\"))","v":""},{"$f":"IF('TSA Input'!J4225=\"\",\"\",IF(OR('TSA Input'!J4225=\"Yes\",'TSA Input'!J4225=\"Contingent\"),'TSA Input'!G4225,\"\"))","v":""},{"$f":"IF('TSA Input'!J4225=\"\",\"\",IF(OR('TSA Input'!J4225=\"Yes\",'TSA Input'!J4225=\"Contingent\"),'TSA Input'!F4225,\"\"))","v":""},"","Required","Required"]
["",null,{"$f":"IF('TSA Input'!J4226=\"\",\"\",IF(OR('TSA Input'!J4226=\"Yes\",'TSA Input'!J4226=\"Contingent\"),'TSA Input'!B4226,\"Ineligible\"))","v":""},{"$f":"IF('TSA Input'!J4226=\"\",\"\",IF(OR('TSA Input'!J4226=\"Yes\",'TSA Input'!J4226=\"Contingent\"),'TSA Input'!I4226,\"\"))","v":""},{"$f":"IF('TSA Input'!J4226=\"\",\"\",IF(OR('TSA Input'!J4226=\"Yes\",'TSA Input'!J4226=\"Contingent\"),'TSA Input'!C4226,\"\"))","v":""},{"$f":"IF('TSA Input'!J4226=\"\",\"\",IF(OR('TSA Input'!J4226=\"Yes\",'TSA Input'!J4226=\"Contingent\"),'TSA Input'!D4226,\"\"))","v":""},{"$f":"IF('TSA Input'!J4226=\"\",\"\",IF(OR('TSA Input'!J4226=\"Yes\",'TSA Input'!J4226=\"Contingent\"),'TSA Input'!G4226,\"\"))","v":""},{"$f":"IF('TSA Input'!J4226=\"\",\"\",IF(OR('TSA Input'!J4226=\"Yes\",'TSA Input'!J4226=\"Contingent\"),'TSA Input'!F4226,\"\"))","v":""},"",{"$f":"IF('TSA Input'!J4226=\"\",\"\",IF(OR('TSA Input'!J4226=\"Yes\",'TSA Input'!J4226=\"Contingent\"),'TSA Input'!D4226,\"\"))","v":""},{"$f":"IF('TSA Input'!J4226=\"\",\"\",IF(OR('TSA Input'!J4226=\"Yes\",'TSA Input'!J4226=\"Contingent\"),'TSA Input'!G4226,\"\"))","v":""},{"$f":"IF('TSA Input'!J4226=\"\",\"\",IF(OR('TSA Input'!J4226=\"Yes\",'TSA Input'!J4226=\"Contingent\"),'TSA Input'!F4226,\"\"))","v":""},"","Required","Required"]
["",null,{"$f":"IF('TSA Input'!J4227=\"\",\"\",IF(OR('TSA Input'!J4227=\"Yes\",'TSA Input'!J4227=\"Contingent\"),'TSA Input'!B4227,\"Ineligible\"))","v":""},{"$f":"IF('TSA Input'!J4227=\"\",\"\",IF(OR('TSA Input'!J4227=\"Yes\",'TSA Input'!J4227=\"Contingent\"),'TSA Input'!I4227,\"\"))","v":""},{"$f":"IF('TSA Input'!J4227=\"\",\"\",IF(OR('TSA Input'!J4227=\"Yes\",'TSA Input'!J4227=\"Contingent\"),'TSA Input'!C4227,\"\"))","v":""},{"$f":"IF('TSA Input'!J4227=\"\",\"\",IF(OR('TSA Input'!J4227=\"Yes\",'TSA Input'!J4227=\"Contingent\"),'TSA Input'!D4227,\"\"))","v":""},{"$f":"IF('TSA Input'!J4227=\"\",\"\",IF(OR('TSA Input'!J4227=\"Yes\",'TSA Input'!J4227=\"Contingent\"),'TSA Input'!G4227,\"\"))","v":""},{"$f":"IF('TSA Input'!J4227=\"\",\"\",IF(OR('TSA Input'!J4227=\"Yes\",'TSA Input'!J4227=\"Contingent\"),'TSA Input'!F4227,\"\"))","v":""},"",{"$f":"IF('TSA Input'!J4227=\"\",\"\",IF(OR('TSA Input'!J4227=\"Yes\",'TSA Input'!J4227=\"Contingent\"),'TSA Input'!D4227,\"\"))","v":""},{"$f":"IF('TSA Input'!J4227=\"\",\"\",IF(OR('TSA Input'!J4227=\"Yes\",'TSA Input'!J4227=\"Contingent\"),'TSA Input'!G4227,\"\"))","v":""},{"$f":"IF('TSA Input'!J4227=\"\",\"\",IF(OR('TSA Input'!J4227=\"Yes\",'TSA Input'!J4227=\"Contingent\"),'TSA Input'!F4227,\"\"))","v":""},"","Required","Required"]
["",null,{"$f":"IF('TSA Input'!J4228=\"\",\"\",IF(OR('TSA Input'!J4228=\"Yes\",'TSA Input'!J4228=\"Contingent\"),'TSA Input'!B4228,\"Ineligible\"))","v":""},{"$f":"IF('TSA Input'!J4228=\"\",\"\",IF(OR('TSA Input'!J4228=\"Yes\",'TSA Input'!J4228=\"Contingent\"),'TSA Input'!I4228,\"\"))","v":""},{"$f":"IF('TSA Input'!J4228=\"\",\"\",IF(OR('TSA Input'!J4228=\"Yes\",'TSA Input'!J4228=\"Contingent\"),'TSA Input'!C4228,\"\"))","v":""},{"$f":"IF('TSA Input'!J4228=\"\",\"\",IF(OR('TSA Input'!J4228=\"Yes\",'TSA Input'!J4228=\"Contingent\"),'TSA Input'!D4228,\"\"))","v":""},{"$f":"IF('TSA Input'!J4228=\"\",\"\",IF(OR('TSA Input'!J4228=\"Yes\",'TSA Input'!J4228=\"Contingent\"),'TSA Input'!G4228,\"\"))","v":""},{"$f":"IF('TSA Input'!J4228=\"\",\"\",IF(OR('TSA Input'!J4228=\"Yes\",'TSA Input'!J4228=\"Contingent\"),'TSA Input'!F4228,\"\"))","v":""},{"$f":"IF($C4266=\"\",\"\",SUM(F4266:H4266))","v":""},{"$f":"IF('TSA Input'!J4228=\"\",\"\",IF(OR('TSA Input'!J4228=\"Yes\",'TSA Input'!J4228=\"Contingent\"),'TSA Input'!D4228,\"\"))","v":""},{"$f":"IF('TSA Input'!J4228=\"\",\"\",IF(OR('TSA Input'!J4228=\"Yes\",'TSA Input'!J4228=\"Contingent\"),'TSA Input'!G4228,\"\"))","v":""},{"$f":"IF('TSA Input'!J4228=\"\",\"\",IF(OR('TSA Input'!J4228=\"Yes\",'TSA Input'!J4228=\"Contingent\"),'TSA Input'!F4228,\"\"))","v":""},{"$f":"IF($C4266=\"\",\"\",SUM(J4266:L4266))","v":""},"Required","Required"]
["",null,{"$f":"IF('TSA Input'!J4229=\"\",\"\",IF(OR('TSA Input'!J4229=\"Yes\",'TSA Input'!J4229=\"Contingent\"),'TSA Input'!B4229,\"Ineligible\"))","v":""},{"$f":"IF('TSA Input'!J4229=\"\",\"\",IF(OR('TSA Input'!J4229=\"Yes\",'TSA Input'!J4229=\"Contingent\"),'TSA Input'!I4229,\"\"))","v":""},{"$f":"IF('TSA Input'!J4229=\"\",\"\",IF(OR('TSA Input'!J4229=\"Yes\",'TSA Input'!J4229=\"Contingent\"),'TSA Input'!C4229,\"\"))","v":""},{"$f":"IF('TSA Input'!J4229=\"\",\"\",IF(OR('TSA Input'!J4229=\"Yes\",'TSA Input'!J4229=\"Contingent\"),'TSA Input'!D4229,\"\"))","v":""},{"$f":"IF('TSA Input'!J4229=\"\",\"\",IF(OR('TSA Input'!J4229=\"Yes\",'TSA Input'!J4229=\"Contingent\"),'TSA Input'!G4229,\"\"))","v":""},{"$f":"IF('TSA Input'!J4229=\"\",\"\",IF(OR('TSA Input'!J4229=\"Yes\",'TSA Input'!J4229=\"Contingent\"),'TSA Input'!F4229,\"\"))","v":""},"",{"$f":"IF('TSA Input'!J4229=\"\",\"\",IF(OR('TSA Input'!J4229=\"Yes\",'TSA Input'!J4229=\"Contingent\"),'TSA Input'!D4229,\"\"))","v":""},{"$f":"IF('TSA Input'!J4229=\"\",\"\",IF(OR('TSA Input'!J4229=\"Yes\",'TSA Input'!J4229=\"Contingent\"),'TSA Input'!G4229,\"\"))","v":""},{"$f":"IF('TSA Input'!J4229=\"\",\"\",IF(OR('TSA Input'!J4229=\"Yes\",'TSA Input'!J4229=\"Contingent\"),'TSA Input'!F4229,\"\"))","v":""},"","Required","Required"]
["",null,{"$f":"IF('TSA Input'!J4230=\"\",\"\",IF(OR('TSA Input'!J4230=\"Yes\",'TSA Input'!J4230=\"Contingent\"),'TSA Input'!B4230,\"Ineligible\"))","v":""},{"$f":"IF('TSA Input'!J4230=\"\",\"\",IF(OR('TSA Input'!J4230=\"Yes\",'TSA Input'!J4230=\"Contingent\"),'TSA Input'!I4230,\"\"))","v":""},{"$f":"IF('TSA Input'!J4230=\"\",\"\",IF(OR('TSA Input'!J4230=\"Yes\",'TSA Input'!J4230=\"Contingent\"),'TSA Input'!C4230,\"\"))","v":""},{"$f":"IF('TSA Input'!J4230=\"\",\"\",IF(OR('TSA Input'!J4230=\"Yes\",'TSA Input'!J4230=\"Contingent\"),'TSA Input'!D4230,\"\"))","v":""},{"$f":"IF('TSA Input'!J4230=\"\",\"\",IF(OR('TSA Input'!J4230=\"Yes\",'TSA Input'!J4230=\"Contingent\"),'TSA Input'!G4230,\"\"))","v":""},{"$f":"IF('TSA Input'!J4230=\"\",\"\",IF(OR('TSA Input'!J4230=\"Yes\",'TSA Input'!J4230=\"Contingent\"),'TSA Input'!F4230,\"\"))","v":""},"",{"$f":"IF('TSA Input'!J4230=\"\",\"\",IF(OR('TSA Input'!J4230=\"Yes\",'TSA Input'!J4230=\"Contingent\"),'TSA Input'!D4230,\"\"))","v":""},{"$f":"IF('TSA Input'!J4230=\"\",\"\",IF(OR('TSA Input'!J4230=\"Yes\",'TSA Input'!J4230=\"Contingent\"),'TSA Input'!G4230,\"\"))","v":""},{"$f":"IF('TSA Input'!J4230=\"\",\"\",IF(OR('TSA Input'!J4230=\"Yes\",'TSA Input'!J4230=\"Contingent\"),'TSA Input'!F4230,\"\"))","v":""},"","Required","Required"]
["",null,{"$f":"IF('TSA Input'!J4231=\"\",\"\",IF(OR('TSA Input'!J4231=\"Yes\",'TSA Input'!J4231=\"Contingent\"),'TSA Input'!B4231,\"Ineligible\"))","v":""},{"$f":"IF('TSA Input'!J4231=\"\",\"\",IF(OR('TSA Input'!J4231=\"Yes\",'TSA Input'!J4231=\"Contingent\"),'TSA Input'!I4231,\"\"))","v":""},{"$f":"IF('TSA Input'!J4231=\"\",\"\",IF(OR('TSA Input'!J4231=\"Yes\",'TSA Input'!J4231=\"Contingent\"),'TSA Input'!C4231,\"\"))","v":""},{"$f":"IF('TSA Input'!J4231=\"\",\"\",IF(OR('TSA Input'!J4231=\"Yes\",'TSA Input'!J4231=\"Contingent\"),'TSA Input'!D4231,\"\"))","v":""},{"$f":"IF('TSA Input'!J4231=\"\",\"\",IF(OR('TSA Input'!J4231=\"Yes\",'TSA Input'!J4231=\"Contingent\"),'TSA Input'!G4231,\"\"))","v":""},{"$f":"IF('TSA Input'!J4231=\"\",\"\",IF(OR('TSA Input'!J4231=\"Yes\",'TSA Input'!J4231=\"Contingent\"),'TSA Input'!F4231,\"\"))","v":""},"",{"$f":"IF('TSA Input'!J4231=\"\",\"\",IF(OR('TSA Input'!J4231=\"Yes\",'TSA Input'!J4231=\"Contingent\"),'TSA Input'!D4231,\"\"))","v":""},{"$f":"IF('TSA Input'!J4231=\"\",\"\",IF(OR('TSA Input'!J4231=\"Yes\",'TSA Input'!J4231=\"Contingent\"),'TSA Input'!G4231,\"\"))","v":""},{"$f":"IF('TSA Input'!J4231=\"\",\"\",IF(OR('TSA Input'!J4231=\"Yes\",'TSA Input'!J4231=\"Contingent\"),'TSA Input'!F4231,\"\"))","v":""},"","Required","Required"]
["",null,{"$f":"IF('TSA Input'!J4232=\"\",\"\",IF(OR('TSA Input'!J4232=\"Yes\",'TSA Input'!J4232=\"Contingent\"),'TSA Input'!B4232,\"Ineligible\"))","v":""},{"$f":"IF('TSA Input'!J4232=\"\",\"\",IF(OR('TSA Input'!J4232=\"Yes\",'TSA Input'!J4232=\"Contingent\"),'TSA Input'!I4232,\"\"))","v":""},{"$f":"IF('TSA Input'!J4232=\"\",\"\",IF(OR('TSA Input'!J4232=\"Yes\",'TSA Input'!J4232=\"Contingent\"),'TSA Input'!C4232,\"\"))","v":""},{"$f":"IF('TSA Input'!J4232=\"\",\"\",IF(OR('TSA Input'!J4232=\"Yes\",'TSA Input'!J4232=\"Contingent\"),'TSA Input'!D4232,\"\"))","v":""},{"$f":"IF('TSA Input'!J4232=\"\",\"\",IF(OR('TSA Input'!J4232=\"Yes\",'TSA Input'!J4232=\"Contingent\"),'TSA Input'!G4232,\"\"))","v":""},{"$f":"IF('TSA Input'!J4232=\"\",\"\",IF(OR('TSA Input'!J4232=\"Yes\",'TSA Input'!J4232=\"Contingent\"),'TSA Input'!F4232,\"\"))","v":""},"",{"$f":"IF('TSA Input'!J4232=\"\",\"\",IF(OR('TSA Input'!J4232=\"Yes\",'TSA Input'!J4232=\"Contingent\"),'TSA Input'!D4232,\"\"))","v":""},{"$f":"IF('TSA Input'!J4232=\"\",\"\",IF(OR('TSA Input'!J4232=\"Yes\",'TSA Input'!J4232=\"Contingent\"),'TSA Input'!G4232,\"\"))","v":""},{"$f":"IF('TSA Input'!J4232=\"\",\"\",IF(OR('TSA Input'!J4232=\"Yes\",'TSA Input'!J4232=\"Contingent\"),'TSA Input'!F4232,\"\"))","v":""},"","Required","Required"]
["",null,{"$f":"IF('TSA Input'!J4233=\"\",\"\",IF(OR('TSA Input'!J4233=\"Yes\",'TSA Input'!J4233=\"Contingent\"),'TSA Input'!B4233,\"Ineligible\"))","v":""},{"$f":"IF('TSA Input'!J4233=\"\",\"\",IF(OR('TSA Input'!J4233=\"Yes\",'TSA Input'!J4233=\"Contingent\"),'TSA Input'!I4233,\"\"))","v":""},{"$f":"IF('TSA Input'!J4233=\"\",\"\",IF(OR('TSA Input'!J4233=\"Yes\",'TSA Input'!J4233=\"Contingent\"),'TSA Input'!C4233,\"\"))","v":""},{"$f":"IF('TSA Input'!J4233=\"\",\"\",IF(OR('TSA Input'!J4233=\"Yes\",'TSA Input'!J4233=\"Contingent\"),'TSA Input'!D4233,\"\"))","v":""},{"$f":"IF('TSA Input'!J4233=\"\",\"\",IF(OR('TSA Input'!J4233=\"Yes\",'TSA Input'!J4233=\"Contingent\"),'TSA Input'!G4233,\"\"))","v":""},{"$f":"IF('TSA Input'!J4233=\"\",\"\",IF(OR('TSA Input'!J4233=\"Yes\",'TSA Input'!J4233=\"Contingent\"),'TSA Input'!F4233,\"\"))","v":""},"",{"$f":"IF('TSA Input'!J4233=\"\",\"\",IF(OR('TSA Input'!J4233=\"Yes\",'TSA Input'!J4233=\"Contingent\"),'TSA Input'!D4233,\"\"))","v":""},{"$f":"IF('TSA Input'!J4233=\"\",\"\",IF(OR('TSA Input'!J4233=\"Yes\",'TSA Input'!J4233=\"Contingent\"),'TSA Input'!G4233,\"\"))","v":""},{"$f":"IF('TSA Input'!J4233=\"\",\"\",IF(OR('TSA Input'!J4233=\"Yes\",'TSA Input'!J4233=\"Contingent\"),'TSA Input'!F4233,\"\"))","v":""},"","Required","Required"]
["",null,{"$f":"IF('TSA Input'!J4234=\"\",\"\",IF(OR('TSA Input'!J4234=\"Yes\",'TSA Input'!J4234=\"Contingent\"),'TSA Input'!B4234,\"Ineligible\"))","v":""},{"$f":"IF('TSA Input'!J4234=\"\",\"\",IF(OR('TSA Input'!J4234=\"Yes\",'TSA Input'!J4234=\"Contingent\"),'TSA Input'!I4234,\"\"))","v":""},{"$f":"IF('TSA Input'!J4234=\"\",\"\",IF(OR('TSA Input'!J4234=\"Yes\",'TSA Input'!J4234=\"Contingent\"),'TSA Input'!C4234,\"\"))","v":""},{"$f":"IF('TSA Input'!J4234=\"\",\"\",IF(OR('TSA Input'!J4234=\"Yes\",'TSA Input'!J4234=\"Contingent\"),'TSA Input'!D4234,\"\"))","v":""},{"$f":"IF('TSA Input'!J4234=\"\",\"\",IF(OR('TSA Input'!J4234=\"Yes\",'TSA Input'!J4234=\"Contingent\"),'TSA Input'!G4234,\"\"))","v":""},{"$f":"IF('TSA Input'!J4234=\"\",\"\",IF(OR('TSA Input'!J4234=\"Yes\",'TSA Input'!J4234=\"Contingent\"),'TSA Input'!F4234,\"\"))","v":""},"",{"$f":"IF('TSA Input'!J4234=\"\",\"\",IF(OR('TSA Input'!J4234=\"Yes\",'TSA Input'!J4234=\"Contingent\"),'TSA Input'!D4234,\"\"))","v":""},{"$f":"IF('TSA Input'!J4234=\"\",\"\",IF(OR('TSA Input'!J4234=\"Yes\",'TSA Input'!J4234=\"Contingent\"),'TSA Input'!G4234,\"\"))","v":""},{"$f":"IF('TSA Input'!J4234=\"\",\"\",IF(OR('TSA Input'!J4234=\"Yes\",'TSA Input'!J4234=\"Contingent\"),'TSA Input'!F4234,\"\"))","v":""},"","Required","Required"]
["",null,{"$f":"IF('TSA Input'!J4235=\"\",\"\",IF(OR('TSA Input'!J4235=\"Yes\",'TSA Input'!J4235=\"Contingent\"),'TSA Input'!B4235,\"Ineligible\"))","v":""},{"$f":"IF('TSA Input'!J4235=\"\",\"\",IF(OR('TSA Input'!J4235=\"Yes\",'TSA Input'!J4235=\"Contingent\"),'TSA Input'!I4235,\"\"))","v":""},{"$f":"IF('TSA Input'!J4235=\"\",\"\",IF(OR('TSA Input'!J4235=\"Yes\",'TSA Input'!J4235=\"Contingent\"),'TSA Input'!C4235,\"\"))","v":""},{"$f":"IF('TSA Input'!J4235=\"\",\"\",IF(OR('TSA Input'!J4235=\"Yes\",'TSA Input'!J4235=\"Contingent\"),'TSA Input'!D4235,\"\"))","v":""},{"$f":"IF('TSA Input'!J4235=\"\",\"\",IF(OR('TSA Input'!J4235=\"Yes\",'TSA Input'!J4235=\"Contingent\"),'TSA Input'!G4235,\"\"))","v":""},{"$f":"IF('TSA Input'!J4235=\"\",\"\",IF(OR('TSA Input'!J4235=\"Yes\",'TSA Input'!J4235=\"Contingent\"),'TSA Input'!F4235,\"\"))","v":""},"",{"$f":"IF('TSA Input'!J4235=\"\",\"\",IF(OR('TSA Input'!J4235=\"Yes\",'TSA Input'!J4235=\"Contingent\"),'TSA Input'!D4235,\"\"))","v":""},{"$f":"IF('TSA Input'!J4235=\"\",\"\",IF(OR('TSA Input'!J4235=\"Yes\",'TSA Input'!J4235=\"Contingent\"),'TSA Input'!G4235,\"\"))","v":""},{"$f":"IF('TSA Input'!J4235=\"\",\"\",IF(OR('TSA Input'!J4235=\"Yes\",'TSA Input'!J4235=\"Contingent\"),'TSA Input'!F4235,\"\"))","v":""},"","Required","Required"]
["",null,{"$f":"IF('TSA Input'!J4236=\"\",\"\",IF(OR('TSA Input'!J4236=\"Yes\",'TSA Input'!J4236=\"Contingent\"),'TSA Input'!B4236,\"Ineligible\"))","v":""},{"$f":"IF('TSA Input'!J4236=\"\",\"\",IF(OR('TSA Input'!J4236=\"Yes\",'TSA Input'!J4236=\"Contingent\"),'TSA Input'!I4236,\"\"))","v":""},{"$f":"IF('TSA Input'!J4236=\"\",\"\",IF(OR('TSA Input'!J4236=\"Yes\",'TSA Input'!J4236=\"Contingent\"),'TSA Input'!C4236,\"\"))","v":""},{"$f":"IF('TSA Input'!J4236=\"\",\"\",IF(OR('TSA Input'!J4236=\"Yes\",'TSA Input'!J4236=\"Contingent\"),'TSA Input'!D4236,\"\"))","v":""},{"$f":"IF('TSA Input'!J4236=\"\",\"\",IF(OR('TSA Input'!J4236=\"Yes\",'TSA Input'!J4236=\"Contingent\"),'TSA Input'!G4236,\"\"))","v":""},{"$f":"IF('TSA Input'!J4236=\"\",\"\",IF(OR('TSA Input'!J4236=\"Yes\",'TSA Input'!J4236=\"Contingent\"),'TSA Input'!F4236,\"\"))","v":""},"",{"$f":"IF('TSA Input'!J4236=\"\",\"\",IF(OR('TSA Input'!J4236=\"Yes\",'TSA Input'!J4236=\"Contingent\"),'TSA Input'!D4236,\"\"))","v":""},{"$f":"IF('TSA Input'!J4236=\"\",\"\",IF(OR('TSA Input'!J4236=\"Yes\",'TSA Input'!J4236=\"Contingent\"),'TSA Input'!G4236,\"\"))","v":""},{"$f":"IF('TSA Input'!J4236=\"\",\"\",IF(OR('TSA Input'!J4236=\"Yes\",'TSA Input'!J4236=\"Contingent\"),'TSA Input'!F4236,\"\"))","v":""},"","Required","Required"]
["",null,{"$f":"IF('TSA Input'!J4237=\"\",\"\",IF(OR('TSA Input'!J4237=\"Yes\",'TSA Input'!J4237=\"Contingent\"),'TSA Input'!B4237,\"Ineligible\"))","v":""},{"$f":"IF('TSA Input'!J4237=\"\",\"\",IF(OR('TSA Input'!J4237=\"Yes\",'TSA Input'!J4237=\"Contingent\"),'TSA Input'!I4237,\"\"))","v":""},{"$f":"IF('TSA Input'!J4237=\"\",\"\",IF(OR('TSA Input'!J4237=\"Yes\",'TSA Input'!J4237=\"Contingent\"),'TSA Input'!C4237,\"\"))","v":""},{"$f":"IF('TSA Input'!J4237=\"\",\"\",IF(OR('TSA Input'!J4237=\"Yes\",'TSA Input'!J4237=\"Contingent\"),'TSA Input'!D4237,\"\"))","v":""},{"$f":"IF('TSA Input'!J4237=\"\",\"\",IF(OR('TSA Input'!J4237=\"Yes\",'TSA Input'!J4237=\"Contingent\"),'TSA Input'!G4237,\"\"))","v":""},{"$f":"IF('TSA Input'!J4237=\"\",\"\",IF(OR('TSA Input'!J4237=\"Yes\",'TSA Input'!J4237=\"Contingent\"),'TSA Input'!F4237,\"\"))","v":""},"",{"$f":"IF('TSA Input'!J4237=\"\",\"\",IF(OR('TSA Input'!J4237=\"Yes\",'TSA Input'!J4237=\"Contingent\"),'TSA Input'!D4237,\"\"))","v":""},{"$f":"IF('TSA Input'!J4237=\"\",\"\",IF(OR('TSA Input'!J4237=\"Yes\",'TSA Input'!J4237=\"Contingent\"),'TSA Input'!G4237,\"\"))","v":""},{"$f":"IF('TSA Input'!J4237=\"\",\"\",IF(OR('TSA Input'!J4237=\"Yes\",'TSA Input'!J4237=\"Contingent\"),'TSA Input'!F4237,\"\"))","v":""},"","Required","Required"]
["",null,{"$f":"IF('TSA Input'!J4238=\"\",\"\",IF(OR('TSA Input'!J4238=\"Yes\",'TSA Input'!J4238=\"Contingent\"),'TSA Input'!B4238,\"Ineligible\"))","v":""},{"$f":"IF('TSA Input'!J4238=\"\",\"\",IF(OR('TSA Input'!J4238=\"Yes\",'TSA Input'!J4238=\"Contingent\"),'TSA Input'!I4238,\"\"))","v":""},{"$f":"IF('TSA Input'!J4238=\"\",\"\",IF(OR('TSA Input'!J4238=\"Yes\",'TSA Input'!J4238=\"Contingent\"),'TSA Input'!C4238,\"\"))","v":""},{"$f":"IF('TSA Input'!J4238=\"\",\"\",IF(OR('TSA Input'!J4238=\"Yes\",'TSA Input'!J4238=\"Contingent\"),'TSA Input'!D4238,\"\"))","v":""},{"$f":"IF('TSA Input'!J4238=\"\",\"\",IF(OR('TSA Input'!J4238=\"Yes\",'TSA Input'!J4238=\"Contingent\"),'TSA Input'!G4238,\"\"))","v":""},{"$f":"IF('TSA Input'!J4238=\"\",\"\",IF(OR('TSA Input'!J4238=\"Yes\",'TSA Input'!J4238=\"Contingent\"),'TSA Input'!F4238,\"\"))","v":""},"",{"$f":"IF('TSA Input'!J4238=\"\",\"\",IF(OR('TSA Input'!J4238=\"Yes\",'TSA Input'!J4238=\"Contingent\"),'TSA Input'!D4238,\"\"))","v":""},{"$f":"IF('TSA Input'!J4238=\"\",\"\",IF(OR('TSA Input'!J4238=\"Yes\",'TSA Input'!J4238=\"Contingent\"),'TSA Input'!G4238,\"\"))","v":""},{"$f":"IF('TSA Input'!J4238=\"\",\"\",IF(OR('TSA Input'!J4238=\"Yes\",'TSA Input'!J4238=\"Contingent\"),'TSA Input'!F4238,\"\"))","v":""},"","Required","Required"]
["",null,{"$f":"IF('TSA Input'!J4239=\"\",\"\",IF(OR('TSA Input'!J4239=\"Yes\",'TSA Input'!J4239=\"Contingent\"),'TSA Input'!B4239,\"Ineligible\"))","v":""},{"$f":"IF('TSA Input'!J4239=\"\",\"\",IF(OR('TSA Input'!J4239=\"Yes\",'TSA Input'!J4239=\"Contingent\"),'TSA Input'!I4239,\"\"))","v":""},{"$f":"IF('TSA Input'!J4239=\"\",\"\",IF(OR('TSA Input'!J4239=\"Yes\",'TSA Input'!J4239=\"Contingent\"),'TSA Input'!C4239,\"\"))","v":""},{"$f":"IF('TSA Input'!J4239=\"\",\"\",IF(OR('TSA Input'!J4239=\"Yes\",'TSA Input'!J4239=\"Contingent\"),'TSA Input'!D4239,\"\"))","v":""},{"$f":"IF('TSA Input'!J4239=\"\",\"\",IF(OR('TSA Input'!J4239=\"Yes\",'TSA Input'!J4239=\"Contingent\"),'TSA Input'!G4239,\"\"))","v":""},{"$f":"IF('TSA Input'!J4239=\"\",\"\",IF(OR('TSA Input'!J4239=\"Yes\",'TSA Input'!J4239=\"Contingent\"),'TSA Input'!F4239,\"\"))","v":""},"",{"$f":"IF('TSA Input'!J4239=\"\",\"\",IF(OR('TSA Input'!J4239=\"Yes\",'TSA Input'!J4239=\"Contingent\"),'TSA Input'!D4239,\"\"))","v":""},{"$f":"IF('TSA Input'!J4239=\"\",\"\",IF(OR('TSA Input'!J4239=\"Yes\",'TSA Input'!J4239=\"Contingent\"),'TSA Input'!G4239,\"\"))","v":""},{"$f":"IF('TSA Input'!J4239=\"\",\"\",IF(OR('TSA Input'!J4239=\"Yes\",'TSA Input'!J4239=\"Contingent\"),'TSA Input'!F4239,\"\"))","v":""},"","Required","Required"]
["",null,{"$f":"IF('TSA Input'!J4240=\"\",\"\",IF(OR('TSA Input'!J4240=\"Yes\",'TSA Input'!J4240=\"Contingent\"),'TSA Input'!B4240,\"Ineligible\"))","v":""},{"$f":"IF('TSA Input'!J4240=\"\",\"\",IF(OR('TSA Input'!J4240=\"Yes\",'TSA Input'!J4240=\"Contingent\"),'TSA Input'!I4240,\"\"))","v":""},{"$f":"IF('TSA Input'!J4240=\"\",\"\",IF(OR('TSA Input'!J4240=\"Yes\",'TSA Input'!J4240=\"Contingent\"),'TSA Input'!C4240,\"\"))","v":""},{"$f":"IF('TSA Input'!J4240=\"\",\"\",IF(OR('TSA Input'!J4240=\"Yes\",'TSA Input'!J4240=\"Contingent\"),'TSA Input'!D4240,\"\"))","v":""},{"$f":"IF('TSA Input'!J4240=\"\",\"\",IF(OR('TSA Input'!J4240=\"Yes\",'TSA Input'!J4240=\"Contingent\"),'TSA Input'!G4240,\"\"))","v":""},{"$f":"IF('TSA Input'!J4240=\"\",\"\",IF(OR('TSA Input'!J4240=\"Yes\",'TSA Input'!J4240=\"Contingent\"),'TSA Input'!F4240,\"\"))","v":""},"",{"$f":"IF('TSA Input'!J4240=\"\",\"\",IF(OR('TSA Input'!J4240=\"Yes\",'TSA Input'!J4240=\"Contingent\"),'TSA Input'!D4240,\"\"))","v":""},{"$f":"IF('TSA Input'!J4240=\"\",\"\",IF(OR('TSA Input'!J4240=\"Yes\",'TSA Input'!J4240=\"Contingent\"),'TSA Input'!G4240,\"\"))","v":""},{"$f":"IF('TSA Input'!J4240=\"\",\"\",IF(OR('TSA Input'!J4240=\"Yes\",'TSA Input'!J4240=\"Contingent\"),'TSA Input'!F4240,\"\"))","v":""},"","Required","Required"]
["",null,{"$f":"IF('TSA Input'!J4241=\"\",\"\",IF(OR('TSA Input'!J4241=\"Yes\",'TSA Input'!J4241=\"Contingent\"),'TSA Input'!B4241,\"Ineligible\"))","v":""},{"$f":"IF('TSA Input'!J4241=\"\",\"\",IF(OR('TSA Input'!J4241=\"Yes\",'TSA Input'!J4241=\"Contingent\"),'TSA Input'!I4241,\"\"))","v":""},{"$f":"IF('TSA Input'!J4241=\"\",\"\",IF(OR('TSA Input'!J4241=\"Yes\",'TSA Input'!J4241=\"Contingent\"),'TSA Input'!C4241,\"\"))","v":""},{"$f":"IF('TSA Input'!J4241=\"\",\"\",IF(OR('TSA Input'!J4241=\"Yes\",'TSA Input'!J4241=\"Contingent\"),'TSA Input'!D4241,\"\"))","v":""},{"$f":"IF('TSA Input'!J4241=\"\",\"\",IF(OR('TSA Input'!J4241=\"Yes\",'TSA Input'!J4241=\"Contingent\"),'TSA Input'!G4241,\"\"))","v":""},{"$f":"IF('TSA Input'!J4241=\"\",\"\",IF(OR('TSA Input'!J4241=\"Yes\",'TSA Input'!J4241=\"Contingent\"),'TSA Input'!F4241,\"\"))","v":""},"",{"$f":"IF('TSA Input'!J4241=\"\",\"\",IF(OR('TSA Input'!J4241=\"Yes\",'TSA Input'!J4241=\"Contingent\"),'TSA Input'!D4241,\"\"))","v":""},{"$f":"IF('TSA Input'!J4241=\"\",\"\",IF(OR('TSA Input'!J4241=\"Yes\",'TSA Input'!J4241=\"Contingent\"),'TSA Input'!G4241,\"\"))","v":""},{"$f":"IF('TSA Input'!J4241=\"\",\"\",IF(OR('TSA Input'!J4241=\"Yes\",'TSA Input'!J4241=\"Contingent\"),'TSA Input'!F4241,\"\"))","v":""},"","Required","Required"]
["",null,{"$f":"IF('TSA Input'!J4242=\"\",\"\",IF(OR('TSA Input'!J4242=\"Yes\",'TSA Input'!J4242=\"Contingent\"),'TSA Input'!B4242,\"Ineligible\"))","v":""},{"$f":"IF('TSA Input'!J4242=\"\",\"\",IF(OR('TSA Input'!J4242=\"Yes\",'TSA Input'!J4242=\"Contingent\"),'TSA Input'!I4242,\"\"))","v":""},{"$f":"IF('TSA Input'!J4242=\"\",\"\",IF(OR('TSA Input'!J4242=\"Yes\",'TSA Input'!J4242=\"Contingent\"),'TSA Input'!C4242,\"\"))","v":""},{"$f":"IF('TSA Input'!J4242=\"\",\"\",IF(OR('TSA Input'!J4242=\"Yes\",'TSA Input'!J4242=\"Contingent\"),'TSA Input'!D4242,\"\"))","v":""},{"$f":"IF('TSA Input'!J4242=\"\",\"\",IF(OR('TSA Input'!J4242=\"Yes\",'TSA Input'!J4242=\"Contingent\"),'TSA Input'!G4242,\"\"))","v":""},{"$f":"IF('TSA Input'!J4242=\"\",\"\",IF(OR('TSA Input'!J4242=\"Yes\",'TSA Input'!J4242=\"Contingent\"),'TSA Input'!F4242,\"\"))","v":""},"",{"$f":"IF('TSA Input'!J4242=\"\",\"\",IF(OR('TSA Input'!J4242=\"Yes\",'TSA Input'!J4242=\"Contingent\"),'TSA Input'!D4242,\"\"))","v":""},{"$f":"IF('TSA Input'!J4242=\"\",\"\",IF(OR('TSA Input'!J4242=\"Yes\",'TSA Input'!J4242=\"Contingent\"),'TSA Input'!G4242,\"\"))","v":""},{"$f":"IF('TSA Input'!J4242=\"\",\"\",IF(OR('TSA Input'!J4242=\"Yes\",'TSA Input'!J4242=\"Contingent\"),'TSA Input'!F4242,\"\"))","v":""},"","Required","Required"]
["",null,{"$f":"IF('TSA Input'!J4243=\"\",\"\",IF(OR('TSA Input'!J4243=\"Yes\",'TSA Input'!J4243=\"Contingent\"),'TSA Input'!B4243,\"Ineligible\"))","v":""},{"$f":"IF('TSA Input'!J4243=\"\",\"\",IF(OR('TSA Input'!J4243=\"Yes\",'TSA Input'!J4243=\"Contingent\"),'TSA Input'!I4243,\"\"))","v":""},{"$f":"IF('TSA Input'!J4243=\"\",\"\",IF(OR('TSA Input'!J4243=\"Yes\",'TSA Input'!J4243=\"Contingent\"),'TSA Input'!C4243,\"\"))","v":""},{"$f":"IF('TSA Input'!J4243=\"\",\"\",IF(OR('TSA Input'!J4243=\"Yes\",'TSA Input'!J4243=\"Contingent\"),'TSA Input'!D4243,\"\"))","v":""},{"$f":"IF('TSA Input'!J4243=\"\",\"\",IF(OR('TSA Input'!J4243=\"Yes\",'TSA Input'!J4243=\"Contingent\"),'TSA Input'!G4243,\"\"))","v":""},{"$f":"IF('TSA Input'!J4243=\"\",\"\",IF(OR('TSA Input'!J4243=\"Yes\",'TSA Input'!J4243=\"Contingent\"),'TSA Input'!F4243,\"\"))","v":""},"",{"$f":"IF('TSA Input'!J4243=\"\",\"\",IF(OR('TSA Input'!J4243=\"Yes\",'TSA Input'!J4243=\"Contingent\"),'TSA Input'!D4243,\"\"))","v":""},{"$f":"IF('TSA Input'!J4243=\"\",\"\",IF(OR('TSA Input'!J4243=\"Yes\",'TSA Input'!J4243=\"Contingent\"),'TSA Input'!G4243,\"\"))","v":""},{"$f":"IF('TSA Input'!J4243=\"\",\"\",IF(OR('TSA Input'!J4243=\"Yes\",'TSA Input'!J4243=\"Contingent\"),'TSA Input'!F4243,\"\"))","v":""},"","Required","Required"]
["",null,{"$f":"IF('TSA Input'!J4244=\"\",\"\",IF(OR('TSA Input'!J4244=\"Yes\",'TSA Input'!J4244=\"Contingent\"),'TSA Input'!B4244,\"Ineligible\"))","v":""},{"$f":"IF('TSA Input'!J4244=\"\",\"\",IF(OR('TSA Input'!J4244=\"Yes\",'TSA Input'!J4244=\"Contingent\"),'TSA Input'!I4244,\"\"))","v":""},{"$f":"IF('TSA Input'!J4244=\"\",\"\",IF(OR('TSA Input'!J4244=\"Yes\",'TSA Input'!J4244=\"Contingent\"),'TSA Input'!C4244,\"\"))","v":""},{"$f":"IF('TSA Input'!J4244=\"\",\"\",IF(OR('TSA Input'!J4244=\"Yes\",'TSA Input'!J4244=\"Contingent\"),'TSA Input'!D4244,\"\"))","v":""},{"$f":"IF('TSA Input'!J4244=\"\",\"\",IF(OR('TSA Input'!J4244=\"Yes\",'TSA Input'!J4244=\"Contingent\"),'TSA Input'!G4244,\"\"))","v":""},{"$f":"IF('TSA Input'!J4244=\"\",\"\",IF(OR('TSA Input'!J4244=\"Yes\",'TSA Input'!J4244=\"Contingent\"),'TSA Input'!F4244,\"\"))","v":""},"",{"$f":"IF('TSA Input'!J4244=\"\",\"\",IF(OR('TSA Input'!J4244=\"Yes\",'TSA Input'!J4244=\"Contingent\"),'TSA Input'!D4244,\"\"))","v":""},{"$f":"IF('TSA Input'!J4244=\"\",\"\",IF(OR('TSA Input'!J4244=\"Yes\",'TSA Input'!J4244=\"Contingent\"),'TSA Input'!G4244,\"\"))","v":""},{"$f":"IF('TSA Input'!J4244=\"\",\"\",IF(OR('TSA Input'!J4244=\"Yes\",'TSA Input'!J4244=\"Contingent\"),'TSA Input'!F4244,\"\"))","v":""},"","Required","Required"]
["",null,{"$f":"IF('TSA Input'!J4245=\"\",\"\",IF(OR('TSA Input'!J4245=\"Yes\",'TSA Input'!J4245=\"Contingent\"),'TSA Input'!B4245,\"Ineligible\"))","v":""},{"$f":"IF('TSA Input'!J4245=\"\",\"\",IF(OR('TSA Input'!J4245=\"Yes\",'TSA Input'!J4245=\"Contingent\"),'TSA Input'!I4245,\"\"))","v":""},{"$f":"IF('TSA Input'!J4245=\"\",\"\",IF(OR('TSA Input'!J4245=\"Yes\",'TSA Input'!J4245=\"Contingent\"),'TSA Input'!C4245,\"\"))","v":""},{"$f":"IF('TSA Input'!J4245=\"\",\"\",IF(OR('TSA Input'!J4245=\"Yes\",'TSA Input'!J4245=\"Contingent\"),'TSA Input'!D4245,\"\"))","v":""},{"$f":"IF('TSA Input'!J4245=\"\",\"\",IF(OR('TSA Input'!J4245=\"Yes\",'TSA Input'!J4245=\"Contingent\"),'TSA Input'!G4245,\"\"))","v":""},{"$f":"IF('TSA Input'!J4245=\"\",\"\",IF(OR('TSA Input'!J4245=\"Yes\",'TSA Input'!J4245=\"Contingent\"),'TSA Input'!F4245,\"\"))","v":""},"",{"$f":"IF('TSA Input'!J4245=\"\",\"\",IF(OR('TSA Input'!J4245=\"Yes\",'TSA Input'!J4245=\"Contingent\"),'TSA Input'!D4245,\"\"))","v":""},{"$f":"IF('TSA Input'!J4245=\"\",\"\",IF(OR('TSA Input'!J4245=\"Yes\",'TSA Input'!J4245=\"Contingent\"),'TSA Input'!G4245,\"\"))","v":""},{"$f":"IF('TSA Input'!J4245=\"\",\"\",IF(OR('TSA Input'!J4245=\"Yes\",'TSA Input'!J4245=\"Contingent\"),'TSA Input'!F4245,\"\"))","v":""},"","Required","Required"]
["",null,{"$f":"IF('TSA Input'!J4246=\"\",\"\",IF(OR('TSA Input'!J4246=\"Yes\",'TSA Input'!J4246=\"Contingent\"),'TSA Input'!B4246,\"Ineligible\"))","v":""},{"$f":"IF('TSA Input'!J4246=\"\",\"\",IF(OR('TSA Input'!J4246=\"Yes\",'TSA Input'!J4246=\"Contingent\"),'TSA Input'!I4246,\"\"))","v":""},{"$f":"IF('TSA Input'!J4246=\"\",\"\",IF(OR('TSA Input'!J4246=\"Yes\",'TSA Input'!J4246=\"Contingent\"),'TSA Input'!C4246,\"\"))","v":""},{"$f":"IF('TSA Input'!J4246=\"\",\"\",IF(OR('TSA Input'!J4246=\"Yes\",'TSA Input'!J4246=\"Contingent\"),'TSA Input'!D4246,\"\"))","v":""},{"$f":"IF('TSA Input'!J4246=\"\",\"\",IF(OR('TSA Input'!J4246=\"Yes\",'TSA Input'!J4246=\"Contingent\"),'TSA Input'!G4246,\"\"))","v":""},{"$f":"IF('TSA Input'!J4246=\"\",\"\",IF(OR('TSA Input'!J4246=\"Yes\",'TSA Input'!J4246=\"Contingent\"),'TSA Input'!F4246,\"\"))","v":""},"",{"$f":"IF('TSA Input'!J4246=\"\",\"\",IF(OR('TSA Input'!J4246=\"Yes\",'TSA Input'!J4246=\"Contingent\"),'TSA Input'!D4246,\"\"))","v":""},{"$f":"IF('TSA Input'!J4246=\"\",\"\",IF(OR('TSA Input'!J4246=\"Yes\",'TSA Input'!J4246=\"Contingent\"),'TSA Input'!G4246,\"\"))","v":""},{"$f":"IF('TSA Input'!J4246=\"\",\"\",IF(OR('TSA Input'!J4246=\"Yes\",'TSA Input'!J4246=\"Contingent\"),'TSA Input'!F4246,\"\"))","v":""},"","Required","Required"]
["",null,{"$f":"IF('TSA Input'!J4247=\"\",\"\",IF(OR('TSA Input'!J4247=\"Yes\",'TSA Input'!J4247=\"Contingent\"),'TSA Input'!B4247,\"Ineligible\"))","v":""},{"$f":"IF('TSA Input'!J4247=\"\",\"\",IF(OR('TSA Input'!J4247=\"Yes\",'TSA Input'!J4247=\"Contingent\"),'TSA Input'!I4247,\"\"))","v":""},{"$f":"IF('TSA Input'!J4247=\"\",\"\",IF(OR('TSA Input'!J4247=\"Yes\",'TSA Input'!J4247=\"Contingent\"),'TSA Input'!C4247,\"\"))","v":""},{"$f":"IF('TSA Input'!J4247=\"\",\"\",IF(OR('TSA Input'!J4247=\"Yes\",'TSA Input'!J4247=\"Contingent\"),'TSA Input'!D4247,\"\"))","v":""},{"$f":"IF('TSA Input'!J4247=\"\",\"\",IF(OR('TSA Input'!J4247=\"Yes\",'TSA Input'!J4247=\"Contingent\"),'TSA Input'!G4247,\"\"))","v":""},{"$f":"IF('TSA Input'!J4247=\"\",\"\",IF(OR('TSA Input'!J4247=\"Yes\",'TSA Input'!J4247=\"Contingent\"),'TSA Input'!F4247,\"\"))","v":""},"",{"$f":"IF('TSA Input'!J4247=\"\",\"\",IF(OR('TSA Input'!J4247=\"Yes\",'TSA Input'!J4247=\"Contingent\"),'TSA Input'!D4247,\"\"))","v":""},{"$f":"IF('TSA Input'!J4247=\"\",\"\",IF(OR('TSA Input'!J4247=\"Yes\",'TSA Input'!J4247=\"Contingent\"),'TSA Input'!G4247,\"\"))","v":""},{"$f":"IF('TSA Input'!J4247=\"\",\"\",IF(OR('TSA Input'!J4247=\"Yes\",'TSA Input'!J4247=\"Contingent\"),'TSA Input'!F4247,\"\"))","v":""},"","Required","Required"]
["",null,{"$f":"IF('TSA Input'!J4248=\"\",\"\",IF(OR('TSA Input'!J4248=\"Yes\",'TSA Input'!J4248=\"Contingent\"),'TSA Input'!B4248,\"Ineligible\"))","v":""},{"$f":"IF('TSA Input'!J4248=\"\",\"\",IF(OR('TSA Input'!J4248=\"Yes\",'TSA Input'!J4248=\"Contingent\"),'TSA Input'!I4248,\"\"))","v":""},{"$f":"IF('TSA Input'!J4248=\"\",\"\",IF(OR('TSA Input'!J4248=\"Yes\",'TSA Input'!J4248=\"Contingent\"),'TSA Input'!C4248,\"\"))","v":""},{"$f":"IF('TSA Input'!J4248=\"\",\"\",IF(OR('TSA Input'!J4248=\"Yes\",'TSA Input'!J4248=\"Contingent\"),'TSA Input'!D4248,\"\"))","v":""},{"$f":"IF('TSA Input'!J4248=\"\",\"\",IF(OR('TSA Input'!J4248=\"Yes\",'TSA Input'!J4248=\"Contingent\"),'TSA Input'!G4248,\"\"))","v":""},{"$f":"IF('TSA Input'!J4248=\"\",\"\",IF(OR('TSA Input'!J4248=\"Yes\",'TSA Input'!J4248=\"Contingent\"),'TSA Input'!F4248,\"\"))","v":""},"",{"$f":"IF('TSA Input'!J4248=\"\",\"\",IF(OR('TSA Input'!J4248=\"Yes\",'TSA Input'!J4248=\"Contingent\"),'TSA Input'!D4248,\"\"))","v":""},{"$f":"IF('TSA Input'!J4248=\"\",\"\",IF(OR('TSA Input'!J4248=\"Yes\",'TSA Input'!J4248=\"Contingent\"),'TSA Input'!G4248,\"\"))","v":""},{"$f":"IF('TSA Input'!J4248=\"\",\"\",IF(OR('TSA Input'!J4248=\"Yes\",'TSA Input'!J4248=\"Contingent\"),'TSA Input'!F4248,\"\"))","v":""},"","Required","Required"]
["",null,{"$f":"IF('TSA Input'!J4249=\"\",\"\",IF(OR('TSA Input'!J4249=\"Yes\",'TSA Input'!J4249=\"Contingent\"),'TSA Input'!B4249,\"Ineligible\"))","v":""},{"$f":"IF('TSA Input'!J4249=\"\",\"\",IF(OR('TSA Input'!J4249=\"Yes\",'TSA Input'!J4249=\"Contingent\"),'TSA Input'!I4249,\"\"))","v":""},{"$f":"IF('TSA Input'!J4249=\"\",\"\",IF(OR('TSA Input'!J4249=\"Yes\",'TSA Input'!J4249=\"Contingent\"),'TSA Input'!C4249,\"\"))","v":""},{"$f":"IF('TSA Input'!J4249=\"\",\"\",IF(OR('TSA Input'!J4249=\"Yes\",'TSA Input'!J4249=\"Contingent\"),'TSA Input'!D4249,\"\"))","v":""},{"$f":"IF('TSA Input'!J4249=\"\",\"\",IF(OR('TSA Input'!J4249=\"Yes\",'TSA Input'!J4249=\"Contingent\"),'TSA Input'!G4249,\"\"))","v":""},{"$f":"IF('TSA Input'!J4249=\"\",\"\",IF(OR('TSA Input'!J4249=\"Yes\",'TSA Input'!J4249=\"Contingent\"),'TSA Input'!F4249,\"\"))","v":""},"",{"$f":"IF('TSA Input'!J4249=\"\",\"\",IF(OR('TSA Input'!J4249=\"Yes\",'TSA Input'!J4249=\"Contingent\"),'TSA Input'!D4249,\"\"))","v":""},{"$f":"IF('TSA Input'!J4249=\"\",\"\",IF(OR('TSA Input'!J4249=\"Yes\",'TSA Input'!J4249=\"Contingent\"),'TSA Input'!G4249,\"\"))","v":""},{"$f":"IF('TSA Input'!J4249=\"\",\"\",IF(OR('TSA Input'!J4249=\"Yes\",'TSA Input'!J4249=\"Contingent\"),'TSA Input'!F4249,\"\"))","v":""},"","Required","Required"]
["",null,{"$f":"IF('TSA Input'!J4250=\"\",\"\",IF(OR('TSA Input'!J4250=\"Yes\",'TSA Input'!J4250=\"Contingent\"),'TSA Input'!B4250,\"Ineligible\"))","v":""},{"$f":"IF('TSA Input'!J4250=\"\",\"\",IF(OR('TSA Input'!J4250=\"Yes\",'TSA Input'!J4250=\"Contingent\"),'TSA Input'!I4250,\"\"))","v":""},{"$f":"IF('TSA Input'!J4250=\"\",\"\",IF(OR('TSA Input'!J4250=\"Yes\",'TSA Input'!J4250=\"Contingent\"),'TSA Input'!C4250,\"\"))","v":""},{"$f":"IF('TSA Input'!J4250=\"\",\"\",IF(OR('TSA Input'!J4250=\"Yes\",'TSA Input'!J4250=\"Contingent\"),'TSA Input'!D4250,\"\"))","v":""},{"$f":"IF('TSA Input'!J4250=\"\",\"\",IF(OR('TSA Input'!J4250=\"Yes\",'TSA Input'!J4250=\"Contingent\"),'TSA Input'!G4250,\"\"))","v":""},{"$f":"IF('TSA Input'!J4250=\"\",\"\",IF(OR('TSA Input'!J4250=\"Yes\",'TSA Input'!J4250=\"Contingent\"),'TSA Input'!F4250,\"\"))","v":""},"",{"$f":"IF('TSA Input'!J4250=\"\",\"\",IF(OR('TSA Input'!J4250=\"Yes\",'TSA Input'!J4250=\"Contingent\"),'TSA Input'!D4250,\"\"))","v":""},{"$f":"IF('TSA Input'!J4250=\"\",\"\",IF(OR('TSA Input'!J4250=\"Yes\",'TSA Input'!J4250=\"Contingent\"),'TSA Input'!G4250,\"\"))","v":""},{"$f":"IF('TSA Input'!J4250=\"\",\"\",IF(OR('TSA Input'!J4250=\"Yes\",'TSA Input'!J4250=\"Contingent\"),'TSA Input'!F4250,\"\"))","v":""},"","Required","Required"]
["",null,{"$f":"IF('TSA Input'!J4251=\"\",\"\",IF(OR('TSA Input'!J4251=\"Yes\",'TSA Input'!J4251=\"Contingent\"),'TSA Input'!B4251,\"Ineligible\"))","v":""},{"$f":"IF('TSA Input'!J4251=\"\",\"\",IF(OR('TSA Input'!J4251=\"Yes\",'TSA Input'!J4251=\"Contingent\"),'TSA Input'!I4251,\"\"))","v":""},{"$f":"IF('TSA Input'!J4251=\"\",\"\",IF(OR('TSA Input'!J4251=\"Yes\",'TSA Input'!J4251=\"Contingent\"),'TSA Input'!C4251,\"\"))","v":""},{"$f":"IF('TSA Input'!J4251=\"\",\"\",IF(OR('TSA Input'!J4251=\"Yes\",'TSA Input'!J4251=\"Contingent\"),'TSA Input'!D4251,\"\"))","v":""},{"$f":"IF('TSA Input'!J4251=\"\",\"\",IF(OR('TSA Input'!J4251=\"Yes\",'TSA Input'!J4251=\"Contingent\"),'TSA Input'!G4251,\"\"))","v":""},{"$f":"IF('TSA Input'!J4251=\"\",\"\",IF(OR('TSA Input'!J4251=\"Yes\",'TSA Input'!J4251=\"Contingent\"),'TSA Input'!F4251,\"\"))","v":""},"",{"$f":"IF('TSA Input'!J4251=\"\",\"\",IF(OR('TSA Input'!J4251=\"Yes\",'TSA Input'!J4251=\"Contingent\"),'TSA Input'!D4251,\"\"))","v":""},{"$f":"IF('TSA Input'!J4251=\"\",\"\",IF(OR('TSA Input'!J4251=\"Yes\",'TSA Input'!J4251=\"Contingent\"),'TSA Input'!G4251,\"\"))","v":""},{"$f":"IF('TSA Input'!J4251=\"\",\"\",IF(OR('TSA Input'!J4251=\"Yes\",'TSA Input'!J4251=\"Contingent\"),'TSA Input'!F4251,\"\"))","v":""},"","Required","Required"]
["",null,{"$f":"IF('TSA Input'!J4252=\"\",\"\",IF(OR('TSA Input'!J4252=\"Yes\",'TSA Input'!J4252=\"Contingent\"),'TSA Input'!B4252,\"Ineligible\"))","v":""},{"$f":"IF('TSA Input'!J4252=\"\",\"\",IF(OR('TSA Input'!J4252=\"Yes\",'TSA Input'!J4252=\"Contingent\"),'TSA Input'!I4252,\"\"))","v":""},{"$f":"IF('TSA Input'!J4252=\"\",\"\",IF(OR('TSA Input'!J4252=\"Yes\",'TSA Input'!J4252=\"Contingent\"),'TSA Input'!C4252,\"\"))","v":""},{"$f":"IF('TSA Input'!J4252=\"\",\"\",IF(OR('TSA Input'!J4252=\"Yes\",'TSA Input'!J4252=\"Contingent\"),'TSA Input'!D4252,\"\"))","v":""},{"$f":"IF('TSA Input'!J4252=\"\",\"\",IF(OR('TSA Input'!J4252=\"Yes\",'TSA Input'!J4252=\"Contingent\"),'TSA Input'!G4252,\"\"))","v":""},{"$f":"IF('TSA Input'!J4252=\"\",\"\",IF(OR('TSA Input'!J4252=\"Yes\",'TSA Input'!J4252=\"Contingent\"),'TSA Input'!F4252,\"\"))","v":""},"",{"$f":"IF('TSA Input'!J4252=\"\",\"\",IF(OR('TSA Input'!J4252=\"Yes\",'TSA Input'!J4252=\"Contingent\"),'TSA Input'!D4252,\"\"))","v":""},{"$f":"IF('TSA Input'!J4252=\"\",\"\",IF(OR('TSA Input'!J4252=\"Yes\",'TSA Input'!J4252=\"Contingent\"),'TSA Input'!G4252,\"\"))","v":""},{"$f":"IF('TSA Input'!J4252=\"\",\"\",IF(OR('TSA Input'!J4252=\"Yes\",'TSA Input'!J4252=\"Contingent\"),'TSA Input'!F4252,\"\"))","v":""},"","Required","Required"]
["",null,{"$f":"IF('TSA Input'!J4253=\"\",\"\",IF(OR('TSA Input'!J4253=\"Yes\",'TSA Input'!J4253=\"Contingent\"),'TSA Input'!B4253,\"Ineligible\"))","v":""},{"$f":"IF('TSA Input'!J4253=\"\",\"\",IF(OR('TSA Input'!J4253=\"Yes\",'TSA Input'!J4253=\"Contingent\"),'TSA Input'!I4253,\"\"))","v":""},{"$f":"IF('TSA Input'!J4253=\"\",\"\",IF(OR('TSA Input'!J4253=\"Yes\",'TSA Input'!J4253=\"Contingent\"),'TSA Input'!C4253,\"\"))","v":""},{"$f":"IF('TSA Input'!J4253=\"\",\"\",IF(OR('TSA Input'!J4253=\"Yes\",'TSA Input'!J4253=\"Contingent\"),'TSA Input'!D4253,\"\"))","v":""},{"$f":"IF('TSA Input'!J4253=\"\",\"\",IF(OR('TSA Input'!J4253=\"Yes\",'TSA Input'!J4253=\"Contingent\"),'TSA Input'!G4253,\"\"))","v":""},{"$f":"IF('TSA Input'!J4253=\"\",\"\",IF(OR('TSA Input'!J4253=\"Yes\",'TSA Input'!J4253=\"Contingent\"),'TSA Input'!F4253,\"\"))","v":""},"",{"$f":"IF('TSA Input'!J4253=\"\",\"\",IF(OR('TSA Input'!J4253=\"Yes\",'TSA Input'!J4253=\"Contingent\"),'TSA Input'!D4253,\"\"))","v":""},{"$f":"IF('TSA Input'!J4253=\"\",\"\",IF(OR('TSA Input'!J4253=\"Yes\",'TSA Input'!J4253=\"Contingent\"),'TSA Input'!G4253,\"\"))","v":""},{"$f":"IF('TSA Input'!J4253=\"\",\"\",IF(OR('TSA Input'!J4253=\"Yes\",'TSA Input'!J4253=\"Contingent\"),'TSA Input'!F4253,\"\"))","v":""},"","Required","Required"]
["",null,{"$f":"IF('TSA Input'!J4254=\"\",\"\",IF(OR('TSA Input'!J4254=\"Yes\",'TSA Input'!J4254=\"Contingent\"),'TSA Input'!B4254,\"Ineligible\"))","v":""},{"$f":"IF('TSA Input'!J4254=\"\",\"\",IF(OR('TSA Input'!J4254=\"Yes\",'TSA Input'!J4254=\"Contingent\"),'TSA Input'!I4254,\"\"))","v":""},{"$f":"IF('TSA Input'!J4254=\"\",\"\",IF(OR('TSA Input'!J4254=\"Yes\",'TSA Input'!J4254=\"Contingent\"),'TSA Input'!C4254,\"\"))","v":""},{"$f":"IF('TSA Input'!J4254=\"\",\"\",IF(OR('TSA Input'!J4254=\"Yes\",'TSA Input'!J4254=\"Contingent\"),'TSA Input'!D4254,\"\"))","v":""},{"$f":"IF('TSA Input'!J4254=\"\",\"\",IF(OR('TSA Input'!J4254=\"Yes\",'TSA Input'!J4254=\"Contingent\"),'TSA Input'!G4254,\"\"))","v":""},{"$f":"IF('TSA Input'!J4254=\"\",\"\",IF(OR('TSA Input'!J4254=\"Yes\",'TSA Input'!J4254=\"Contingent\"),'TSA Input'!F4254,\"\"))","v":""},"",{"$f":"IF('TSA Input'!J4254=\"\",\"\",IF(OR('TSA Input'!J4254=\"Yes\",'TSA Input'!J4254=\"Contingent\"),'TSA Input'!D4254,\"\"))","v":""},{"$f":"IF('TSA Input'!J4254=\"\",\"\",IF(OR('TSA Input'!J4254=\"Yes\",'TSA Input'!J4254=\"Contingent\"),'TSA Input'!G4254,\"\"))","v":""},{"$f":"IF('TSA Input'!J4254=\"\",\"\",IF(OR('TSA Input'!J4254=\"Yes\",'TSA Input'!J4254=\"Contingent\"),'TSA Input'!F4254,\"\"))","v":""},"","Required","Required"]
["",null,{"$f":"IF('TSA Input'!J4255=\"\",\"\",IF(OR('TSA Input'!J4255=\"Yes\",'TSA Input'!J4255=\"Contingent\"),'TSA Input'!B4255,\"Ineligible\"))","v":""},{"$f":"IF('TSA Input'!J4255=\"\",\"\",IF(OR('TSA Input'!J4255=\"Yes\",'TSA Input'!J4255=\"Contingent\"),'TSA Input'!I4255,\"\"))","v":""},{"$f":"IF('TSA Input'!J4255=\"\",\"\",IF(OR('TSA Input'!J4255=\"Yes\",'TSA Input'!J4255=\"Contingent\"),'TSA Input'!C4255,\"\"))","v":""},{"$f":"IF('TSA Input'!J4255=\"\",\"\",IF(OR('TSA Input'!J4255=\"Yes\",'TSA Input'!J4255=\"Contingent\"),'TSA Input'!D4255,\"\"))","v":""},{"$f":"IF('TSA Input'!J4255=\"\",\"\",IF(OR('TSA Input'!J4255=\"Yes\",'TSA Input'!J4255=\"Contingent\"),'TSA Input'!G4255,\"\"))","v":""},{"$f":"IF('TSA Input'!J4255=\"\",\"\",IF(OR('TSA Input'!J4255=\"Yes\",'TSA Input'!J4255=\"Contingent\"),'TSA Input'!F4255,\"\"))","v":""},"",{"$f":"IF('TSA Input'!J4255=\"\",\"\",IF(OR('TSA Input'!J4255=\"Yes\",'TSA Input'!J4255=\"Contingent\"),'TSA Input'!D4255,\"\"))","v":""},{"$f":"IF('TSA Input'!J4255=\"\",\"\",IF(OR('TSA Input'!J4255=\"Yes\",'TSA Input'!J4255=\"Contingent\"),'TSA Input'!G4255,\"\"))","v":""},{"$f":"IF('TSA Input'!J4255=\"\",\"\",IF(OR('TSA Input'!J4255=\"Yes\",'TSA Input'!J4255=\"Contingent\"),'TSA Input'!F4255,\"\"))","v":""},"","Required","Required"]
["",null,{"$f":"IF('TSA Input'!J4256=\"\",\"\",IF(OR('TSA Input'!J4256=\"Yes\",'TSA Input'!J4256=\"Contingent\"),'TSA Input'!B4256,\"Ineligible\"))","v":""},{"$f":"IF('TSA Input'!J4256=\"\",\"\",IF(OR('TSA Input'!J4256=\"Yes\",'TSA Input'!J4256=\"Contingent\"),'TSA Input'!I4256,\"\"))","v":""},{"$f":"IF('TSA Input'!J4256=\"\",\"\",IF(OR('TSA Input'!J4256=\"Yes\",'TSA Input'!J4256=\"Contingent\"),'TSA Input'!C4256,\"\"))","v":""},{"$f":"IF('TSA Input'!J4256=\"\",\"\",IF(OR('TSA Input'!J4256=\"Yes\",'TSA Input'!J4256=\"Contingent\"),'TSA Input'!D4256,\"\"))","v":""},{"$f":"IF('TSA Input'!J4256=\"\",\"\",IF(OR('TSA Input'!J4256=\"Yes\",'TSA Input'!J4256=\"Contingent\"),'TSA Input'!G4256,\"\"))","v":""},{"$f":"IF('TSA Input'!J4256=\"\",\"\",IF(OR('TSA Input'!J4256=\"Yes\",'TSA Input'!J4256=\"Contingent\"),'TSA Input'!F4256,\"\"))","v":""},"",{"$f":"IF('TSA Input'!J4256=\"\",\"\",IF(OR('TSA Input'!J4256=\"Yes\",'TSA Input'!J4256=\"Contingent\"),'TSA Input'!D4256,\"\"))","v":""},{"$f":"IF('TSA Input'!J4256=\"\",\"\",IF(OR('TSA Input'!J4256=\"Yes\",'TSA Input'!J4256=\"Contingent\"),'TSA Input'!G4256,\"\"))","v":""},{"$f":"IF('TSA Input'!J4256=\"\",\"\",IF(OR('TSA Input'!J4256=\"Yes\",'TSA Input'!J4256=\"Contingent\"),'TSA Input'!F4256,\"\"))","v":""},"","Required","Required"]
["",null,{"$f":"IF('TSA Input'!J4257=\"\",\"\",IF(OR('TSA Input'!J4257=\"Yes\",'TSA Input'!J4257=\"Contingent\"),'TSA Input'!B4257,\"Ineligible\"))","v":""},{"$f":"IF('TSA Input'!J4257=\"\",\"\",IF(OR('TSA Input'!J4257=\"Yes\",'TSA Input'!J4257=\"Contingent\"),'TSA Input'!I4257,\"\"))","v":""},{"$f":"IF('TSA Input'!J4257=\"\",\"\",IF(OR('TSA Input'!J4257=\"Yes\",'TSA Input'!J4257=\"Contingent\"),'TSA Input'!C4257,\"\"))","v":""},{"$f":"IF('TSA Input'!J4257=\"\",\"\",IF(OR('TSA Input'!J4257=\"Yes\",'TSA Input'!J4257=\"Contingent\"),'TSA Input'!D4257,\"\"))","v":""},{"$f":"IF('TSA Input'!J4257=\"\",\"\",IF(OR('TSA Input'!J4257=\"Yes\",'TSA Input'!J4257=\"Contingent\"),'TSA Input'!G4257,\"\"))","v":""},{"$f":"IF('TSA Input'!J4257=\"\",\"\",IF(OR('TSA Input'!J4257=\"Yes\",'TSA Input'!J4257=\"Contingent\"),'TSA Input'!F4257,\"\"))","v":""},"",{"$f":"IF('TSA Input'!J4257=\"\",\"\",IF(OR('TSA Input'!J4257=\"Yes\",'TSA Input'!J4257=\"Contingent\"),'TSA Input'!D4257,\"\"))","v":""},{"$f":"IF('TSA Input'!J4257=\"\",\"\",IF(OR('TSA Input'!J4257=\"Yes\",'TSA Input'!J4257=\"Contingent\"),'TSA Input'!G4257,\"\"))","v":""},{"$f":"IF('TSA Input'!J4257=\"\",\"\",IF(OR('TSA Input'!J4257=\"Yes\",'TSA Input'!J4257=\"Contingent\"),'TSA Input'!F4257,\"\"))","v":""},"","Required","Required"]
["",null,{"$f":"IF('TSA Input'!J4258=\"\",\"\",IF(OR('TSA Input'!J4258=\"Yes\",'TSA Input'!J4258=\"Contingent\"),'TSA Input'!B4258,\"Ineligible\"))","v":""},{"$f":"IF('TSA Input'!J4258=\"\",\"\",IF(OR('TSA Input'!J4258=\"Yes\",'TSA Input'!J4258=\"Contingent\"),'TSA Input'!I4258,\"\"))","v":""},{"$f":"IF('TSA Input'!J4258=\"\",\"\",IF(OR('TSA Input'!J4258=\"Yes\",'TSA Input'!J4258=\"Contingent\"),'TSA Input'!C4258,\"\"))","v":""},{"$f":"IF('TSA Input'!J4258=\"\",\"\",IF(OR('TSA Input'!J4258=\"Yes\",'TSA Input'!J4258=\"Contingent\"),'TSA Input'!D4258,\"\"))","v":""},{"$f":"IF('TSA Input'!J4258=\"\",\"\",IF(OR('TSA Input'!J4258=\"Yes\",'TSA Input'!J4258=\"Contingent\"),'TSA Input'!G4258,\"\"))","v":""},{"$f":"IF('TSA Input'!J4258=\"\",\"\",IF(OR('TSA Input'!J4258=\"Yes\",'TSA Input'!J4258=\"Contingent\"),'TSA Input'!F4258,\"\"))","v":""},"",{"$f":"IF('TSA Input'!J4258=\"\",\"\",IF(OR('TSA Input'!J4258=\"Yes\",'TSA Input'!J4258=\"Contingent\"),'TSA Input'!D4258,\"\"))","v":""},{"$f":"IF('TSA Input'!J4258=\"\",\"\",IF(OR('TSA Input'!J4258=\"Yes\",'TSA Input'!J4258=\"Contingent\"),'TSA Input'!G4258,\"\"))","v":""},{"$f":"IF('TSA Input'!J4258=\"\",\"\",IF(OR('TSA Input'!J4258=\"Yes\",'TSA Input'!J4258=\"Contingent\"),'TSA Input'!F4258,\"\"))","v":""},"","Required","Required"]
["",null,{"$f":"IF('TSA Input'!J4259=\"\",\"\",IF(OR('TSA Input'!J4259=\"Yes\",'TSA Input'!J4259=\"Contingent\"),'TSA Input'!B4259,\"Ineligible\"))","v":""},{"$f":"IF('TSA Input'!J4259=\"\",\"\",IF(OR('TSA Input'!J4259=\"Yes\",'TSA Input'!J4259=\"Contingent\"),'TSA Input'!I4259,\"\"))","v":""},{"$f":"IF('TSA Input'!J4259=\"\",\"\",IF(OR('TSA Input'!J4259=\"Yes\",'TSA Input'!J4259=\"Contingent\"),'TSA Input'!C4259,\"\"))","v":""},{"$f":"IF('TSA Input'!J4259=\"\",\"\",IF(OR('TSA Input'!J4259=\"Yes\",'TSA Input'!J4259=\"Contingent\"),'TSA Input'!D4259,\"\"))","v":""},{"$f":"IF('TSA Input'!J4259=\"\",\"\",IF(OR('TSA Input'!J4259=\"Yes\",'TSA Input'!J4259=\"Contingent\"),'TSA Input'!G4259,\"\"))","v":""},{"$f":"IF('TSA Input'!J4259=\"\",\"\",IF(OR('TSA Input'!J4259=\"Yes\",'TSA Input'!J4259=\"Contingent\"),'TSA Input'!F4259,\"\"))","v":""},"",{"$f":"IF('TSA Input'!J4259=\"\",\"\",IF(OR('TSA Input'!J4259=\"Yes\",'TSA Input'!J4259=\"Contingent\"),'TSA Input'!D4259,\"\"))","v":""},{"$f":"IF('TSA Input'!J4259=\"\",\"\",IF(OR('TSA Input'!J4259=\"Yes\",'TSA Input'!J4259=\"Contingent\"),'TSA Input'!G4259,\"\"))","v":""},{"$f":"IF('TSA Input'!J4259=\"\",\"\",IF(OR('TSA Input'!J4259=\"Yes\",'TSA Input'!J4259=\"Contingent\"),'TSA Input'!F4259,\"\"))","v":""},"","Required","Required"]
["",null,{"$f":"IF('TSA Input'!J4260=\"\",\"\",IF(OR('TSA Input'!J4260=\"Yes\",'TSA Input'!J4260=\"Contingent\"),'TSA Input'!B4260,\"Ineligible\"))","v":""},{"$f":"IF('TSA Input'!J4260=\"\",\"\",IF(OR('TSA Input'!J4260=\"Yes\",'TSA Input'!J4260=\"Contingent\"),'TSA Input'!I4260,\"\"))","v":""},{"$f":"IF('TSA Input'!J4260=\"\",\"\",IF(OR('TSA Input'!J4260=\"Yes\",'TSA Input'!J4260=\"Contingent\"),'TSA Input'!C4260,\"\"))","v":""},{"$f":"IF('TSA Input'!J4260=\"\",\"\",IF(OR('TSA Input'!J4260=\"Yes\",'TSA Input'!J4260=\"Contingent\"),'TSA Input'!D4260,\"\"))","v":""},{"$f":"IF('TSA Input'!J4260=\"\",\"\",IF(OR('TSA Input'!J4260=\"Yes\",'TSA Input'!J4260=\"Contingent\"),'TSA Input'!G4260,\"\"))","v":""},{"$f":"IF('TSA Input'!J4260=\"\",\"\",IF(OR('TSA Input'!J4260=\"Yes\",'TSA Input'!J4260=\"Contingent\"),'TSA Input'!F4260,\"\"))","v":""},"",{"$f":"IF('TSA Input'!J4260=\"\",\"\",IF(OR('TSA Input'!J4260=\"Yes\",'TSA Input'!J4260=\"Contingent\"),'TSA Input'!D4260,\"\"))","v":""},{"$f":"IF('TSA Input'!J4260=\"\",\"\",IF(OR('TSA Input'!J4260=\"Yes\",'TSA Input'!J4260=\"Contingent\"),'TSA Input'!G4260,\"\"))","v":""},{"$f":"IF('TSA Input'!J4260=\"\",\"\",IF(OR('TSA Input'!J4260=\"Yes\",'TSA Input'!J4260=\"Contingent\"),'TSA Input'!F4260,\"\"))","v":""},"","Required","Required"]
["",null,{"$f":"IF('TSA Input'!J4261=\"\",\"\",IF(OR('TSA Input'!J4261=\"Yes\",'TSA Input'!J4261=\"Contingent\"),'TSA Input'!B4261,\"Ineligible\"))","v":""},{"$f":"IF('TSA Input'!J4261=\"\",\"\",IF(OR('TSA Input'!J4261=\"Yes\",'TSA Input'!J4261=\"Contingent\"),'TSA Input'!I4261,\"\"))","v":""},{"$f":"IF('TSA Input'!J4261=\"\",\"\",IF(OR('TSA Input'!J4261=\"Yes\",'TSA Input'!J4261=\"Contingent\"),'TSA Input'!C4261,\"\"))","v":""},{"$f":"IF('TSA Input'!J4261=\"\",\"\",IF(OR('TSA Input'!J4261=\"Yes\",'TSA Input'!J4261=\"Contingent\"),'TSA Input'!D4261,\"\"))","v":""},{"$f":"IF('TSA Input'!J4261=\"\",\"\",IF(OR('TSA Input'!J4261=\"Yes\",'TSA Input'!J4261=\"Contingent\"),'TSA Input'!G4261,\"\"))","v":""},{"$f":"IF('TSA Input'!J4261=\"\",\"\",IF(OR('TSA Input'!J4261=\"Yes\",'TSA Input'!J4261=\"Contingent\"),'TSA Input'!F4261,\"\"))","v":""},"",{"$f":"IF('TSA Input'!J4261=\"\",\"\",IF(OR('TSA Input'!J4261=\"Yes\",'TSA Input'!J4261=\"Contingent\"),'TSA Input'!D4261,\"\"))","v":""},{"$f":"IF('TSA Input'!J4261=\"\",\"\",IF(OR('TSA Input'!J4261=\"Yes\",'TSA Input'!J4261=\"Contingent\"),'TSA Input'!G4261,\"\"))","v":""},{"$f":"IF('TSA Input'!J4261=\"\",\"\",IF(OR('TSA Input'!J4261=\"Yes\",'TSA Input'!J4261=\"Contingent\"),'TSA Input'!F4261,\"\"))","v":""},"","Required","Required"]
["",null,{"$f":"IF('TSA Input'!J4262=\"\",\"\",IF(OR('TSA Input'!J4262=\"Yes\",'TSA Input'!J4262=\"Contingent\"),'TSA Input'!B4262,\"Ineligible\"))","v":""},{"$f":"IF('TSA Input'!J4262=\"\",\"\",IF(OR('TSA Input'!J4262=\"Yes\",'TSA Input'!J4262=\"Contingent\"),'TSA Input'!I4262,\"\"))","v":""},{"$f":"IF('TSA Input'!J4262=\"\",\"\",IF(OR('TSA Input'!J4262=\"Yes\",'TSA Input'!J4262=\"Contingent\"),'TSA Input'!C4262,\"\"))","v":""},{"$f":"IF('TSA Input'!J4262=\"\",\"\",IF(OR('TSA Input'!J4262=\"Yes\",'TSA Input'!J4262=\"Contingent\"),'TSA Input'!D4262,\"\"))","v":""},{"$f":"IF('TSA Input'!J4262=\"\",\"\",IF(OR('TSA Input'!J4262=\"Yes\",'TSA Input'!J4262=\"Contingent\"),'TSA Input'!G4262,\"\"))","v":""},{"$f":"IF('TSA Input'!J4262=\"\",\"\",IF(OR('TSA Input'!J4262=\"Yes\",'TSA Input'!J4262=\"Contingent\"),'TSA Input'!F4262,\"\"))","v":""},"",{"$f":"IF('TSA Input'!J4262=\"\",\"\",IF(OR('TSA Input'!J4262=\"Yes\",'TSA Input'!J4262=\"Contingent\"),'TSA Input'!D4262,\"\"))","v":""},{"$f":"IF('TSA Input'!J4262=\"\",\"\",IF(OR('TSA Input'!J4262=\"Yes\",'TSA Input'!J4262=\"Contingent\"),'TSA Input'!G4262,\"\"))","v":""},{"$f":"IF('TSA Input'!J4262=\"\",\"\",IF(OR('TSA Input'!J4262=\"Yes\",'TSA Input'!J4262=\"Contingent\"),'TSA Input'!F4262,\"\"))","v":""},"","Required","Required"]
["",null,{"$f":"IF('TSA Input'!J4263=\"\",\"\",IF(OR('TSA Input'!J4263=\"Yes\",'TSA Input'!J4263=\"Contingent\"),'TSA Input'!B4263,\"Ineligible\"))","v":""},{"$f":"IF('TSA Input'!J4263=\"\",\"\",IF(OR('TSA Input'!J4263=\"Yes\",'TSA Input'!J4263=\"Contingent\"),'TSA Input'!I4263,\"\"))","v":""},{"$f":"IF('TSA Input'!J4263=\"\",\"\",IF(OR('TSA Input'!J4263=\"Yes\",'TSA Input'!J4263=\"Contingent\"),'TSA Input'!C4263,\"\"))","v":""},{"$f":"IF('TSA Input'!J4263=\"\",\"\",IF(OR('TSA Input'!J4263=\"Yes\",'TSA Input'!J4263=\"Contingent\"),'TSA Input'!D4263,\"\"))","v":""},{"$f":"IF('TSA Input'!J4263=\"\",\"\",IF(OR('TSA Input'!J4263=\"Yes\",'TSA Input'!J4263=\"Contingent\"),'TSA Input'!G4263,\"\"))","v":""},{"$f":"IF('TSA Input'!J4263=\"\",\"\",IF(OR('TSA Input'!J4263=\"Yes\",'TSA Input'!J4263=\"Contingent\"),'TSA Input'!F4263,\"\"))","v":""},"",{"$f":"IF('TSA Input'!J4263=\"\",\"\",IF(OR('TSA Input'!J4263=\"Yes\",'TSA Input'!J4263=\"Contingent\"),'TSA Input'!D4263,\"\"))","v":""},{"$f":"IF('TSA Input'!J4263=\"\",\"\",IF(OR('TSA Input'!J4263=\"Yes\",'TSA Input'!J4263=\"Contingent\"),'TSA Input'!G4263,\"\"))","v":""},{"$f":"IF('TSA Input'!J4263=\"\",\"\",IF(OR('TSA Input'!J4263=\"Yes\",'TSA Input'!J4263=\"Contingent\"),'TSA Input'!F4263,\"\"))","v":""},"","Required","Required"]
["",null,{"$f":"IF('TSA Input'!J4264=\"\",\"\",IF(OR('TSA Input'!J4264=\"Yes\",'TSA Input'!J4264=\"Contingent\"),'TSA Input'!B4264,\"Ineligible\"))","v":""},{"$f":"IF('TSA Input'!J4264=\"\",\"\",IF(OR('TSA Input'!J4264=\"Yes\",'TSA Input'!J4264=\"Contingent\"),'TSA Input'!I4264,\"\"))","v":""},{"$f":"IF('TSA Input'!J4264=\"\",\"\",IF(OR('TSA Input'!J4264=\"Yes\",'TSA Input'!J4264=\"Contingent\"),'TSA Input'!C4264,\"\"))","v":""},{"$f":"IF('TSA Input'!J4264=\"\",\"\",IF(OR('TSA Input'!J4264=\"Yes\",'TSA Input'!J4264=\"Contingent\"),'TSA Input'!D4264,\"\"))","v":""},{"$f":"IF('TSA Input'!J4264=\"\",\"\",IF(OR('TSA Input'!J4264=\"Yes\",'TSA Input'!J4264=\"Contingent\"),'TSA Input'!G4264,\"\"))","v":""},{"$f":"IF('TSA Input'!J4264=\"\",\"\",IF(OR('TSA Input'!J4264=\"Yes\",'TSA Input'!J4264=\"Contingent\"),'TSA Input'!F4264,\"\"))","v":""},"",{"$f":"IF('TSA Input'!J4264=\"\",\"\",IF(OR('TSA Input'!J4264=\"Yes\",'TSA Input'!J4264=\"Contingent\"),'TSA Input'!D4264,\"\"))","v":""},{"$f":"IF('TSA Input'!J4264=\"\",\"\",IF(OR('TSA Input'!J4264=\"Yes\",'TSA Input'!J4264=\"Contingent\"),'TSA Input'!G4264,\"\"))","v":""},{"$f":"IF('TSA Input'!J4264=\"\",\"\",IF(OR('TSA Input'!J4264=\"Yes\",'TSA Input'!J4264=\"Contingent\"),'TSA Input'!F4264,\"\"))","v":""},"","Required","Required"]
["",null,{"$f":"IF('TSA Input'!J4265=\"\",\"\",IF(OR('TSA Input'!J4265=\"Yes\",'TSA Input'!J4265=\"Contingent\"),'TSA Input'!B4265,\"Ineligible\"))","v":""},{"$f":"IF('TSA Input'!J4265=\"\",\"\",IF(OR('TSA Input'!J4265=\"Yes\",'TSA Input'!J4265=\"Contingent\"),'TSA Input'!I4265,\"\"))","v":""},{"$f":"IF('TSA Input'!J4265=\"\",\"\",IF(OR('TSA Input'!J4265=\"Yes\",'TSA Input'!J4265=\"Contingent\"),'TSA Input'!C4265,\"\"))","v":""},{"$f":"IF('TSA Input'!J4265=\"\",\"\",IF(OR('TSA Input'!J4265=\"Yes\",'TSA Input'!J4265=\"Contingent\"),'TSA Input'!D4265,\"\"))","v":""},{"$f":"IF('TSA Input'!J4265=\"\",\"\",IF(OR('TSA Input'!J4265=\"Yes\",'TSA Input'!J4265=\"Contingent\"),'TSA Input'!G4265,\"\"))","v":""},{"$f":"IF('TSA Input'!J4265=\"\",\"\",IF(OR('TSA Input'!J4265=\"Yes\",'TSA Input'!J4265=\"Contingent\"),'TSA Input'!F4265,\"\"))","v":""},"",{"$f":"IF('TSA Input'!J4265=\"\",\"\",IF(OR('TSA Input'!J4265=\"Yes\",'TSA Input'!J4265=\"Contingent\"),'TSA Input'!D4265,\"\"))","v":""},{"$f":"IF('TSA Input'!J4265=\"\",\"\",IF(OR('TSA Input'!J4265=\"Yes\",'TSA Input'!J4265=\"Contingent\"),'TSA Input'!G4265,\"\"))","v":""},{"$f":"IF('TSA Input'!J4265=\"\",\"\",IF(OR('TSA Input'!J4265=\"Yes\",'TSA Input'!J4265=\"Contingent\"),'TSA Input'!F4265,\"\"))","v":""},"","Required","Required"]
["",null,{"$f":"IF('TSA Input'!J4266=\"\",\"\",IF(OR('TSA Input'!J4266=\"Yes\",'TSA Input'!J4266=\"Contingent\"),'TSA Input'!B4266,\"Ineligible\"))","v":""},{"$f":"IF('TSA Input'!J4266=\"\",\"\",IF(OR('TSA Input'!J4266=\"Yes\",'TSA Input'!J4266=\"Contingent\"),'TSA Input'!I4266,\"\"))","v":""},{"$f":"IF('TSA Input'!J4266=\"\",\"\",IF(OR('TSA Input'!J4266=\"Yes\",'TSA Input'!J4266=\"Contingent\"),'TSA Input'!C4266,\"\"))","v":""},{"$f":"IF('TSA Input'!J4266=\"\",\"\",IF(OR('TSA Input'!J4266=\"Yes\",'TSA Input'!J4266=\"Contingent\"),'TSA Input'!D4266,\"\"))","v":""},{"$f":"IF('TSA Input'!J4266=\"\",\"\",IF(OR('TSA Input'!J4266=\"Yes\",'TSA Input'!J4266=\"Contingent\"),'TSA Input'!G4266,\"\"))","v":""},{"$f":"IF('TSA Input'!J4266=\"\",\"\",IF(OR('TSA Input'!J4266=\"Yes\",'TSA Input'!J4266=\"Contingent\"),'TSA Input'!F4266,\"\"))","v":""},"",{"$f":"IF('TSA Input'!J4266=\"\",\"\",IF(OR('TSA Input'!J4266=\"Yes\",'TSA Input'!J4266=\"Contingent\"),'TSA Input'!D4266,\"\"))","v":""},{"$f":"IF('TSA Input'!J4266=\"\",\"\",IF(OR('TSA Input'!J4266=\"Yes\",'TSA Input'!J4266=\"Contingent\"),'TSA Input'!G4266,\"\"))","v":""},{"$f":"IF('TSA Input'!J4266=\"\",\"\",IF(OR('TSA Input'!J4266=\"Yes\",'TSA Input'!J4266=\"Contingent\"),'TSA Input'!F4266,\"\"))","v":""},"","Required","Required"]
["",null,{"$f":"IF('TSA Input'!J4267=\"\",\"\",IF(OR('TSA Input'!J4267=\"Yes\",'TSA Input'!J4267=\"Contingent\"),'TSA Input'!B4267,\"Ineligible\"))","v":""},{"$f":"IF('TSA Input'!J4267=\"\",\"\",IF(OR('TSA Input'!J4267=\"Yes\",'TSA Input'!J4267=\"Contingent\"),'TSA Input'!I4267,\"\"))","v":""},{"$f":"IF('TSA Input'!J4267=\"\",\"\",IF(OR('TSA Input'!J4267=\"Yes\",'TSA Input'!J4267=\"Contingent\"),'TSA Input'!C4267,\"\"))","v":""},{"$f":"IF('TSA Input'!J4267=\"\",\"\",IF(OR('TSA Input'!J4267=\"Yes\",'TSA Input'!J4267=\"Contingent\"),'TSA Input'!D4267,\"\"))","v":""},{"$f":"IF('TSA Input'!J4267=\"\",\"\",IF(OR('TSA Input'!J4267=\"Yes\",'TSA Input'!J4267=\"Contingent\"),'TSA Input'!G4267,\"\"))","v":""},{"$f":"IF('TSA Input'!J4267=\"\",\"\",IF(OR('TSA Input'!J4267=\"Yes\",'TSA Input'!J4267=\"Contingent\"),'TSA Input'!F4267,\"\"))","v":""},"",{"$f":"IF('TSA Input'!J4267=\"\",\"\",IF(OR('TSA Input'!J4267=\"Yes\",'TSA Input'!J4267=\"Contingent\"),'TSA Input'!D4267,\"\"))","v":""},{"$f":"IF('TSA Input'!J4267=\"\",\"\",IF(OR('TSA Input'!J4267=\"Yes\",'TSA Input'!J4267=\"Contingent\"),'TSA Input'!G4267,\"\"))","v":""},{"$f":"IF('TSA Input'!J4267=\"\",\"\",IF(OR('TSA Input'!J4267=\"Yes\",'TSA Input'!J4267=\"Contingent\"),'TSA Input'!F4267,\"\"))","v":""},"","Required","Required"]
["",null,{"$f":"IF('TSA Input'!J4268=\"\",\"\",IF(OR('TSA Input'!J4268=\"Yes\",'TSA Input'!J4268=\"Contingent\"),'TSA Input'!B4268,\"Ineligible\"))","v":""},{"$f":"IF('TSA Input'!J4268=\"\",\"\",IF(OR('TSA Input'!J4268=\"Yes\",'TSA Input'!J4268=\"Contingent\"),'TSA Input'!I4268,\"\"))","v":""},{"$f":"IF('TSA Input'!J4268=\"\",\"\",IF(OR('TSA Input'!J4268=\"Yes\",'TSA Input'!J4268=\"Contingent\"),'TSA Input'!C4268,\"\"))","v":""},{"$f":"IF('TSA Input'!J4268=\"\",\"\",IF(OR('TSA Input'!J4268=\"Yes\",'TSA Input'!J4268=\"Contingent\"),'TSA Input'!D4268,\"\"))","v":""},{"$f":"IF('TSA Input'!J4268=\"\",\"\",IF(OR('TSA Input'!J4268=\"Yes\",'TSA Input'!J4268=\"Contingent\"),'TSA Input'!G4268,\"\"))","v":""},{"$f":"IF('TSA Input'!J4268=\"\",\"\",IF(OR('TSA Input'!J4268=\"Yes\",'TSA Input'!J4268=\"Contingent\"),'TSA Input'!F4268,\"\"))","v":""},"",{"$f":"IF('TSA Input'!J4268=\"\",\"\",IF(OR('TSA Input'!J4268=\"Yes\",'TSA Input'!J4268=\"Contingent\"),'TSA Input'!D4268,\"\"))","v":""},{"$f":"IF('TSA Input'!J4268=\"\",\"\",IF(OR('TSA Input'!J4268=\"Yes\",'TSA Input'!J4268=\"Contingent\"),'TSA Input'!G4268,\"\"))","v":""},{"$f":"IF('TSA Input'!J4268=\"\",\"\",IF(OR('TSA Input'!J4268=\"Yes\",'TSA Input'!J4268=\"Contingent\"),'TSA Input'!F4268,\"\"))","v":""},"","Required","Required"]
["",null,{"$f":"IF('TSA Input'!J4269=\"\",\"\",IF(OR('TSA Input'!J4269=\"Yes\",'TSA Input'!J4269=\"Contingent\"),'TSA Input'!B4269,\"Ineligible\"))","v":""},{"$f":"IF('TSA Input'!J4269=\"\",\"\",IF(OR('TSA Input'!J4269=\"Yes\",'TSA Input'!J4269=\"Contingent\"),'TSA Input'!I4269,\"\"))","v":""},{"$f":"IF('TSA Input'!J4269=\"\",\"\",IF(OR('TSA Input'!J4269=\"Yes\",'TSA Input'!J4269=\"Contingent\"),'TSA Input'!C4269,\"\"))","v":""},{"$f":"IF('TSA Input'!J4269=\"\",\"\",IF(OR('TSA Input'!J4269=\"Yes\",'TSA Input'!J4269=\"Contingent\"),'TSA Input'!D4269,\"\"))","v":""},{"$f":"IF('TSA Input'!J4269=\"\",\"\",IF(OR('TSA Input'!J4269=\"Yes\",'TSA Input'!J4269=\"Contingent\"),'TSA Input'!G4269,\"\"))","v":""},{"$f":"IF('TSA Input'!J4269=\"\",\"\",IF(OR('TSA Input'!J4269=\"Yes\",'TSA Input'!J4269=\"Contingent\"),'TSA Input'!F4269,\"\"))","v":""},"",{"$f":"IF('TSA Input'!J4269=\"\",\"\",IF(OR('TSA Input'!J4269=\"Yes\",'TSA Input'!J4269=\"Contingent\"),'TSA Input'!D4269,\"\"))","v":""},{"$f":"IF('TSA Input'!J4269=\"\",\"\",IF(OR('TSA Input'!J4269=\"Yes\",'TSA Input'!J4269=\"Contingent\"),'TSA Input'!G4269,\"\"))","v":""},{"$f":"IF('TSA Input'!J4269=\"\",\"\",IF(OR('TSA Input'!J4269=\"Yes\",'TSA Input'!J4269=\"Contingent\"),'TSA Input'!F4269,\"\"))","v":""},"","Required","Required"]
["",null,{"$f":"IF('TSA Input'!J4270=\"\",\"\",IF(OR('TSA Input'!J4270=\"Yes\",'TSA Input'!J4270=\"Contingent\"),'TSA Input'!B4270,\"Ineligible\"))","v":""},{"$f":"IF('TSA Input'!J4270=\"\",\"\",IF(OR('TSA Input'!J4270=\"Yes\",'TSA Input'!J4270=\"Contingent\"),'TSA Input'!I4270,\"\"))","v":""},{"$f":"IF('TSA Input'!J4270=\"\",\"\",IF(OR('TSA Input'!J4270=\"Yes\",'TSA Input'!J4270=\"Contingent\"),'TSA Input'!C4270,\"\"))","v":""},{"$f":"IF('TSA Input'!J4270=\"\",\"\",IF(OR('TSA Input'!J4270=\"Yes\",'TSA Input'!J4270=\"Contingent\"),'TSA Input'!D4270,\"\"))","v":""},{"$f":"IF('TSA Input'!J4270=\"\",\"\",IF(OR('TSA Input'!J4270=\"Yes\",'TSA Input'!J4270=\"Contingent\"),'TSA Input'!G4270,\"\"))","v":""},{"$f":"IF('TSA Input'!J4270=\"\",\"\",IF(OR('TSA Input'!J4270=\"Yes\",'TSA Input'!J4270=\"Contingent\"),'TSA Input'!F4270,\"\"))","v":""},"",{"$f":"IF('TSA Input'!J4270=\"\",\"\",IF(OR('TSA Input'!J4270=\"Yes\",'TSA Input'!J4270=\"Contingent\"),'TSA Input'!D4270,\"\"))","v":""},{"$f":"IF('TSA Input'!J4270=\"\",\"\",IF(OR('TSA Input'!J4270=\"Yes\",'TSA Input'!J4270=\"Contingent\"),'TSA Input'!G4270,\"\"))","v":""},{"$f":"IF('TSA Input'!J4270=\"\",\"\",IF(OR('TSA Input'!J4270=\"Yes\",'TSA Input'!J4270=\"Contingent\"),'TSA Input'!F4270,\"\"))","v":""},"","Required","Required"]
["",null,{"$f":"IF('TSA Input'!J4271=\"\",\"\",IF(OR('TSA Input'!J4271=\"Yes\",'TSA Input'!J4271=\"Contingent\"),'TSA Input'!B4271,\"Ineligible\"))","v":""},{"$f":"IF('TSA Input'!J4271=\"\",\"\",IF(OR('TSA Input'!J4271=\"Yes\",'TSA Input'!J4271=\"Contingent\"),'TSA Input'!I4271,\"\"))","v":""},{"$f":"IF('TSA Input'!J4271=\"\",\"\",IF(OR('TSA Input'!J4271=\"Yes\",'TSA Input'!J4271=\"Contingent\"),'TSA Input'!C4271,\"\"))","v":""},{"$f":"IF('TSA Input'!J4271=\"\",\"\",IF(OR('TSA Input'!J4271=\"Yes\",'TSA Input'!J4271=\"Contingent\"),'TSA Input'!D4271,\"\"))","v":""},{"$f":"IF('TSA Input'!J4271=\"\",\"\",IF(OR('TSA Input'!J4271=\"Yes\",'TSA Input'!J4271=\"Contingent\"),'TSA Input'!G4271,\"\"))","v":""},{"$f":"IF('TSA Input'!J4271=\"\",\"\",IF(OR('TSA Input'!J4271=\"Yes\",'TSA Input'!J4271=\"Contingent\"),'TSA Input'!F4271,\"\"))","v":""},"",{"$f":"IF('TSA Input'!J4271=\"\",\"\",IF(OR('TSA Input'!J4271=\"Yes\",'TSA Input'!J4271=\"Contingent\"),'TSA Input'!D4271,\"\"))","v":""},{"$f":"IF('TSA Input'!J4271=\"\",\"\",IF(OR('TSA Input'!J4271=\"Yes\",'TSA Input'!J4271=\"Contingent\"),'TSA Input'!G4271,\"\"))","v":""},{"$f":"IF('TSA Input'!J4271=\"\",\"\",IF(OR('TSA Input'!J4271=\"Yes\",'TSA Input'!J4271=\"Contingent\"),'TSA Input'!F4271,\"\"))","v":""},"","Required","Required"]
["",null,{"$f":"IF('TSA Input'!J4272=\"\",\"\",IF(OR('TSA Input'!J4272=\"Yes\",'TSA Input'!J4272=\"Contingent\"),'TSA Input'!B4272,\"Ineligible\"))","v":""},{"$f":"IF('TSA Input'!J4272=\"\",\"\",IF(OR('TSA Input'!J4272=\"Yes\",'TSA Input'!J4272=\"Contingent\"),'TSA Input'!I4272,\"\"))","v":""},{"$f":"IF('TSA Input'!J4272=\"\",\"\",IF(OR('TSA Input'!J4272=\"Yes\",'TSA Input'!J4272=\"Contingent\"),'TSA Input'!C4272,\"\"))","v":""},{"$f":"IF('TSA Input'!J4272=\"\",\"\",IF(OR('TSA Input'!J4272=\"Yes\",'TSA Input'!J4272=\"Contingent\"),'TSA Input'!D4272,\"\"))","v":""},{"$f":"IF('TSA Input'!J4272=\"\",\"\",IF(OR('TSA Input'!J4272=\"Yes\",'TSA Input'!J4272=\"Contingent\"),'TSA Input'!G4272,\"\"))","v":""},{"$f":"IF('TSA Input'!J4272=\"\",\"\",IF(OR('TSA Input'!J4272=\"Yes\",'TSA Input'!J4272=\"Contingent\"),'TSA Input'!F4272,\"\"))","v":""},"",{"$f":"IF('TSA Input'!J4272=\"\",\"\",IF(OR('TSA Input'!J4272=\"Yes\",'TSA Input'!J4272=\"Contingent\"),'TSA Input'!D4272,\"\"))","v":""},{"$f":"IF('TSA Input'!J4272=\"\",\"\",IF(OR('TSA Input'!J4272=\"Yes\",'TSA Input'!J4272=\"Contingent\"),'TSA Input'!G4272,\"\"))","v":""},{"$f":"IF('TSA Input'!J4272=\"\",\"\",IF(OR('TSA Input'!J4272=\"Yes\",'TSA Input'!J4272=\"Contingent\"),'TSA Input'!F4272,\"\"))","v":""},"","Required","Required"]
["",null,{"$f":"IF('TSA Input'!J4273=\"\",\"\",IF(OR('TSA Input'!J4273=\"Yes\",'TSA Input'!J4273=\"Contingent\"),'TSA Input'!B4273,\"Ineligible\"))","v":""},{"$f":"IF('TSA Input'!J4273=\"\",\"\",IF(OR('TSA Input'!J4273=\"Yes\",'TSA Input'!J4273=\"Contingent\"),'TSA Input'!I4273,\"\"))","v":""},{"$f":"IF('TSA Input'!J4273=\"\",\"\",IF(OR('TSA Input'!J4273=\"Yes\",'TSA Input'!J4273=\"Contingent\"),'TSA Input'!C4273,\"\"))","v":""},{"$f":"IF('TSA Input'!J4273=\"\",\"\",IF(OR('TSA Input'!J4273=\"Yes\",'TSA Input'!J4273=\"Contingent\"),'TSA Input'!D4273,\"\"))","v":""},{"$f":"IF('TSA Input'!J4273=\"\",\"\",IF(OR('TSA Input'!J4273=\"Yes\",'TSA Input'!J4273=\"Contingent\"),'TSA Input'!G4273,\"\"))","v":""},{"$f":"IF('TSA Input'!J4273=\"\",\"\",IF(OR('TSA Input'!J4273=\"Yes\",'TSA Input'!J4273=\"Contingent\"),'TSA Input'!F4273,\"\"))","v":""},"",{"$f":"IF('TSA Input'!J4273=\"\",\"\",IF(OR('TSA Input'!J4273=\"Yes\",'TSA Input'!J4273=\"Contingent\"),'TSA Input'!D4273,\"\"))","v":""},{"$f":"IF('TSA Input'!J4273=\"\",\"\",IF(OR('TSA Input'!J4273=\"Yes\",'TSA Input'!J4273=\"Contingent\"),'TSA Input'!G4273,\"\"))","v":""},{"$f":"IF('TSA Input'!J4273=\"\",\"\",IF(OR('TSA Input'!J4273=\"Yes\",'TSA Input'!J4273=\"Contingent\"),'TSA Input'!F4273,\"\"))","v":""},"","Required","Required"]
["",null,{"$f":"IF('TSA Input'!J4274=\"\",\"\",IF(OR('TSA Input'!J4274=\"Yes\",'TSA Input'!J4274=\"Contingent\"),'TSA Input'!B4274,\"Ineligible\"))","v":""},{"$f":"IF('TSA Input'!J4274=\"\",\"\",IF(OR('TSA Input'!J4274=\"Yes\",'TSA Input'!J4274=\"Contingent\"),'TSA Input'!I4274,\"\"))","v":""},{"$f":"IF('TSA Input'!J4274=\"\",\"\",IF(OR('TSA Input'!J4274=\"Yes\",'TSA Input'!J4274=\"Contingent\"),'TSA Input'!C4274,\"\"))","v":""},{"$f":"IF('TSA Input'!J4274=\"\",\"\",IF(OR('TSA Input'!J4274=\"Yes\",'TSA Input'!J4274=\"Contingent\"),'TSA Input'!D4274,\"\"))","v":""},{"$f":"IF('TSA Input'!J4274=\"\",\"\",IF(OR('TSA Input'!J4274=\"Yes\",'TSA Input'!J4274=\"Contingent\"),'TSA Input'!G4274,\"\"))","v":""},{"$f":"IF('TSA Input'!J4274=\"\",\"\",IF(OR('TSA Input'!J4274=\"Yes\",'TSA Input'!J4274=\"Contingent\"),'TSA Input'!F4274,\"\"))","v":""},"",{"$f":"IF('TSA Input'!J4274=\"\",\"\",IF(OR('TSA Input'!J4274=\"Yes\",'TSA Input'!J4274=\"Contingent\"),'TSA Input'!D4274,\"\"))","v":""},{"$f":"IF('TSA Input'!J4274=\"\",\"\",IF(OR('TSA Input'!J4274=\"Yes\",'TSA Input'!J4274=\"Contingent\"),'TSA Input'!G4274,\"\"))","v":""},{"$f":"IF('TSA Input'!J4274=\"\",\"\",IF(OR('TSA Input'!J4274=\"Yes\",'TSA Input'!J4274=\"Contingent\"),'TSA Input'!F4274,\"\"))","v":""},"","Required","Required"]
["",null,{"$f":"IF('TSA Input'!J4275=\"\",\"\",IF(OR('TSA Input'!J4275=\"Yes\",'TSA Input'!J4275=\"Contingent\"),'TSA Input'!B4275,\"Ineligible\"))","v":""},{"$f":"IF('TSA Input'!J4275=\"\",\"\",IF(OR('TSA Input'!J4275=\"Yes\",'TSA Input'!J4275=\"Contingent\"),'TSA Input'!I4275,\"\"))","v":""},{"$f":"IF('TSA Input'!J4275=\"\",\"\",IF(OR('TSA Input'!J4275=\"Yes\",'TSA Input'!J4275=\"Contingent\"),'TSA Input'!C4275,\"\"))","v":""},{"$f":"IF('TSA Input'!J4275=\"\",\"\",IF(OR('TSA Input'!J4275=\"Yes\",'TSA Input'!J4275=\"Contingent\"),'TSA Input'!D4275,\"\"))","v":""},{"$f":"IF('TSA Input'!J4275=\"\",\"\",IF(OR('TSA Input'!J4275=\"Yes\",'TSA Input'!J4275=\"Contingent\"),'TSA Input'!G4275,\"\"))","v":""},{"$f":"IF('TSA Input'!J4275=\"\",\"\",IF(OR('TSA Input'!J4275=\"Yes\",'TSA Input'!J4275=\"Contingent\"),'TSA Input'!F4275,\"\"))","v":""},"",{"$f":"IF('TSA Input'!J4275=\"\",\"\",IF(OR('TSA Input'!J4275=\"Yes\",'TSA Input'!J4275=\"Contingent\"),'TSA Input'!D4275,\"\"))","v":""},{"$f":"IF('TSA Input'!J4275=\"\",\"\",IF(OR('TSA Input'!J4275=\"Yes\",'TSA Input'!J4275=\"Contingent\"),'TSA Input'!G4275,\"\"))","v":""},{"$f":"IF('TSA Input'!J4275=\"\",\"\",IF(OR('TSA Input'!J4275=\"Yes\",'TSA Input'!J4275=\"Contingent\"),'TSA Input'!F4275,\"\"))","v":""},"","Required","Required"]
["",null,{"$f":"IF('TSA Input'!J4276=\"\",\"\",IF(OR('TSA Input'!J4276=\"Yes\",'TSA Input'!J4276=\"Contingent\"),'TSA Input'!B4276,\"Ineligible\"))","v":""},{"$f":"IF('TSA Input'!J4276=\"\",\"\",IF(OR('TSA Input'!J4276=\"Yes\",'TSA Input'!J4276=\"Contingent\"),'TSA Input'!I4276,\"\"))","v":""},{"$f":"IF('TSA Input'!J4276=\"\",\"\",IF(OR('TSA Input'!J4276=\"Yes\",'TSA Input'!J4276=\"Contingent\"),'TSA Input'!C4276,\"\"))","v":""},{"$f":"IF('TSA Input'!J4276=\"\",\"\",IF(OR('TSA Input'!J4276=\"Yes\",'TSA Input'!J4276=\"Contingent\"),'TSA Input'!D4276,\"\"))","v":""},{"$f":"IF('TSA Input'!J4276=\"\",\"\",IF(OR('TSA Input'!J4276=\"Yes\",'TSA Input'!J4276=\"Contingent\"),'TSA Input'!G4276,\"\"))","v":""},{"$f":"IF('TSA Input'!J4276=\"\",\"\",IF(OR('TSA Input'!J4276=\"Yes\",'TSA Input'!J4276=\"Contingent\"),'TSA Input'!F4276,\"\"))","v":""},"",{"$f":"IF('TSA Input'!J4276=\"\",\"\",IF(OR('TSA Input'!J4276=\"Yes\",'TSA Input'!J4276=\"Contingent\"),'TSA Input'!D4276,\"\"))","v":""},{"$f":"IF('TSA Input'!J4276=\"\",\"\",IF(OR('TSA Input'!J4276=\"Yes\",'TSA Input'!J4276=\"Contingent\"),'TSA Input'!G4276,\"\"))","v":""},{"$f":"IF('TSA Input'!J4276=\"\",\"\",IF(OR('TSA Input'!J4276=\"Yes\",'TSA Input'!J4276=\"Contingent\"),'TSA Input'!F4276,\"\"))","v":""},"","Required","Required"]
["",null,{"$f":"IF('TSA Input'!J4277=\"\",\"\",IF(OR('TSA Input'!J4277=\"Yes\",'TSA Input'!J4277=\"Contingent\"),'TSA Input'!B4277,\"Ineligible\"))","v":""},{"$f":"IF('TSA Input'!J4277=\"\",\"\",IF(OR('TSA Input'!J4277=\"Yes\",'TSA Input'!J4277=\"Contingent\"),'TSA Input'!I4277,\"\"))","v":""},{"$f":"IF('TSA Input'!J4277=\"\",\"\",IF(OR('TSA Input'!J4277=\"Yes\",'TSA Input'!J4277=\"Contingent\"),'TSA Input'!C4277,\"\"))","v":""},{"$f":"IF('TSA Input'!J4277=\"\",\"\",IF(OR('TSA Input'!J4277=\"Yes\",'TSA Input'!J4277=\"Contingent\"),'TSA Input'!D4277,\"\"))","v":""},{"$f":"IF('TSA Input'!J4277=\"\",\"\",IF(OR('TSA Input'!J4277=\"Yes\",'TSA Input'!J4277=\"Contingent\"),'TSA Input'!G4277,\"\"))","v":""},{"$f":"IF('TSA Input'!J4277=\"\",\"\",IF(OR('TSA Input'!J4277=\"Yes\",'TSA Input'!J4277=\"Contingent\"),'TSA Input'!F4277,\"\"))","v":""},"",{"$f":"IF('TSA Input'!J4277=\"\",\"\",IF(OR('TSA Input'!J4277=\"Yes\",'TSA Input'!J4277=\"Contingent\"),'TSA Input'!D4277,\"\"))","v":""},{"$f":"IF('TSA Input'!J4277=\"\",\"\",IF(OR('TSA Input'!J4277=\"Yes\",'TSA Input'!J4277=\"Contingent\"),'TSA Input'!G4277,\"\"))","v":""},{"$f":"IF('TSA Input'!J4277=\"\",\"\",IF(OR('TSA Input'!J4277=\"Yes\",'TSA Input'!J4277=\"Contingent\"),'TSA Input'!F4277,\"\"))","v":""},"","Required","Required"]
["",null,{"$f":"IF('TSA Input'!J4278=\"\",\"\",IF(OR('TSA Input'!J4278=\"Yes\",'TSA Input'!J4278=\"Contingent\"),'TSA Input'!B4278,\"Ineligible\"))","v":""},{"$f":"IF('TSA Input'!J4278=\"\",\"\",IF(OR('TSA Input'!J4278=\"Yes\",'TSA Input'!J4278=\"Contingent\"),'TSA Input'!I4278,\"\"))","v":""},{"$f":"IF('TSA Input'!J4278=\"\",\"\",IF(OR('TSA Input'!J4278=\"Yes\",'TSA Input'!J4278=\"Contingent\"),'TSA Input'!C4278,\"\"))","v":""},{"$f":"IF('TSA Input'!J4278=\"\",\"\",IF(OR('TSA Input'!J4278=\"Yes\",'TSA Input'!J4278=\"Contingent\"),'TSA Input'!D4278,\"\"))","v":""},{"$f":"IF('TSA Input'!J4278=\"\",\"\",IF(OR('TSA Input'!J4278=\"Yes\",'TSA Input'!J4278=\"Contingent\"),'TSA Input'!G4278,\"\"))","v":""},{"$f":"IF('TSA Input'!J4278=\"\",\"\",IF(OR('TSA Input'!J4278=\"Yes\",'TSA Input'!J4278=\"Contingent\"),'TSA Input'!F4278,\"\"))","v":""},"",{"$f":"IF('TSA Input'!J4278=\"\",\"\",IF(OR('TSA Input'!J4278=\"Yes\",'TSA Input'!J4278=\"Contingent\"),'TSA Input'!D4278,\"\"))","v":""},{"$f":"IF('TSA Input'!J4278=\"\",\"\",IF(OR('TSA Input'!J4278=\"Yes\",'TSA Input'!J4278=\"Contingent\"),'TSA Input'!G4278,\"\"))","v":""},{"$f":"IF('TSA Input'!J4278=\"\",\"\",IF(OR('TSA Input'!J4278=\"Yes\",'TSA Input'!J4278=\"Contingent\"),'TSA Input'!F4278,\"\"))","v":""},"","Required","Required"]
["",null,{"$f":"IF('TSA Input'!J4279=\"\",\"\",IF(OR('TSA Input'!J4279=\"Yes\",'TSA Input'!J4279=\"Contingent\"),'TSA Input'!B4279,\"Ineligible\"))","v":""},{"$f":"IF('TSA Input'!J4279=\"\",\"\",IF(OR('TSA Input'!J4279=\"Yes\",'TSA Input'!J4279=\"Contingent\"),'TSA Input'!I4279,\"\"))","v":""},{"$f":"IF('TSA Input'!J4279=\"\",\"\",IF(OR('TSA Input'!J4279=\"Yes\",'TSA Input'!J4279=\"Contingent\"),'TSA Input'!C4279,\"\"))","v":""},{"$f":"IF('TSA Input'!J4279=\"\",\"\",IF(OR('TSA Input'!J4279=\"Yes\",'TSA Input'!J4279=\"Contingent\"),'TSA Input'!D4279,\"\"))","v":""},{"$f":"IF('TSA Input'!J4279=\"\",\"\",IF(OR('TSA Input'!J4279=\"Yes\",'TSA Input'!J4279=\"Contingent\"),'TSA Input'!G4279,\"\"))","v":""},{"$f":"IF('TSA Input'!J4279=\"\",\"\",IF(OR('TSA Input'!J4279=\"Yes\",'TSA Input'!J4279=\"Contingent\"),'TSA Input'!F4279,\"\"))","v":""},"",{"$f":"IF('TSA Input'!J4279=\"\",\"\",IF(OR('TSA Input'!J4279=\"Yes\",'TSA Input'!J4279=\"Contingent\"),'TSA Input'!D4279,\"\"))","v":""},{"$f":"IF('TSA Input'!J4279=\"\",\"\",IF(OR('TSA Input'!J4279=\"Yes\",'TSA Input'!J4279=\"Contingent\"),'TSA Input'!G4279,\"\"))","v":""},{"$f":"IF('TSA Input'!J4279=\"\",\"\",IF(OR('TSA Input'!J4279=\"Yes\",'TSA Input'!J4279=\"Contingent\"),'TSA Input'!F4279,\"\"))","v":""},"","Required","Required"]
["",null,{"$f":"IF('TSA Input'!J4280=\"\",\"\",IF(OR('TSA Input'!J4280=\"Yes\",'TSA Input'!J4280=\"Contingent\"),'TSA Input'!B4280,\"Ineligible\"))","v":""},{"$f":"IF('TSA Input'!J4280=\"\",\"\",IF(OR('TSA Input'!J4280=\"Yes\",'TSA Input'!J4280=\"Contingent\"),'TSA Input'!I4280,\"\"))","v":""},{"$f":"IF('TSA Input'!J4280=\"\",\"\",IF(OR('TSA Input'!J4280=\"Yes\",'TSA Input'!J4280=\"Contingent\"),'TSA Input'!C4280,\"\"))","v":""},{"$f":"IF('TSA Input'!J4280=\"\",\"\",IF(OR('TSA Input'!J4280=\"Yes\",'TSA Input'!J4280=\"Contingent\"),'TSA Input'!D4280,\"\"))","v":""},{"$f":"IF('TSA Input'!J4280=\"\",\"\",IF(OR('TSA Input'!J4280=\"Yes\",'TSA Input'!J4280=\"Contingent\"),'TSA Input'!G4280,\"\"))","v":""},{"$f":"IF('TSA Input'!J4280=\"\",\"\",IF(OR('TSA Input'!J4280=\"Yes\",'TSA Input'!J4280=\"Contingent\"),'TSA Input'!F4280,\"\"))","v":""},"",{"$f":"IF('TSA Input'!J4280=\"\",\"\",IF(OR('TSA Input'!J4280=\"Yes\",'TSA Input'!J4280=\"Contingent\"),'TSA Input'!D4280,\"\"))","v":""},{"$f":"IF('TSA Input'!J4280=\"\",\"\",IF(OR('TSA Input'!J4280=\"Yes\",'TSA Input'!J4280=\"Contingent\"),'TSA Input'!G4280,\"\"))","v":""},{"$f":"IF('TSA Input'!J4280=\"\",\"\",IF(OR('TSA Input'!J4280=\"Yes\",'TSA Input'!J4280=\"Contingent\"),'TSA Input'!F4280,\"\"))","v":""},"","Required","Required"]
["",null,{"$f":"IF('TSA Input'!J4281=\"\",\"\",IF(OR('TSA Input'!J4281=\"Yes\",'TSA Input'!J4281=\"Contingent\"),'TSA Input'!B4281,\"Ineligible\"))","v":""},{"$f":"IF('TSA Input'!J4281=\"\",\"\",IF(OR('TSA Input'!J4281=\"Yes\",'TSA Input'!J4281=\"Contingent\"),'TSA Input'!I4281,\"\"))","v":""},{"$f":"IF('TSA Input'!J4281=\"\",\"\",IF(OR('TSA Input'!J4281=\"Yes\",'TSA Input'!J4281=\"Contingent\"),'TSA Input'!C4281,\"\"))","v":""},{"$f":"IF('TSA Input'!J4281=\"\",\"\",IF(OR('TSA Input'!J4281=\"Yes\",'TSA Input'!J4281=\"Contingent\"),'TSA Input'!D4281,\"\"))","v":""},{"$f":"IF('TSA Input'!J4281=\"\",\"\",IF(OR('TSA Input'!J4281=\"Yes\",'TSA Input'!J4281=\"Contingent\"),'TSA Input'!G4281,\"\"))","v":""},{"$f":"IF('TSA Input'!J4281=\"\",\"\",IF(OR('TSA Input'!J4281=\"Yes\",'TSA Input'!J4281=\"Contingent\"),'TSA Input'!F4281,\"\"))","v":""},"",{"$f":"IF('TSA Input'!J4281=\"\",\"\",IF(OR('TSA Input'!J4281=\"Yes\",'TSA Input'!J4281=\"Contingent\"),'TSA Input'!D4281,\"\"))","v":""},{"$f":"IF('TSA Input'!J4281=\"\",\"\",IF(OR('TSA Input'!J4281=\"Yes\",'TSA Input'!J4281=\"Contingent\"),'TSA Input'!G4281,\"\"))","v":""},{"$f":"IF('TSA Input'!J4281=\"\",\"\",IF(OR('TSA Input'!J4281=\"Yes\",'TSA Input'!J4281=\"Contingent\"),'TSA Input'!F4281,\"\"))","v":""},"","Required","Required"]
["",null,{"$f":"IF('TSA Input'!J4282=\"\",\"\",IF(OR('TSA Input'!J4282=\"Yes\",'TSA Input'!J4282=\"Contingent\"),'TSA Input'!B4282,\"Ineligible\"))","v":""},{"$f":"IF('TSA Input'!J4282=\"\",\"\",IF(OR('TSA Input'!J4282=\"Yes\",'TSA Input'!J4282=\"Contingent\"),'TSA Input'!I4282,\"\"))","v":""},{"$f":"IF('TSA Input'!J4282=\"\",\"\",IF(OR('TSA Input'!J4282=\"Yes\",'TSA Input'!J4282=\"Contingent\"),'TSA Input'!C4282,\"\"))","v":""},{"$f":"IF('TSA Input'!J4282=\"\",\"\",IF(OR('TSA Input'!J4282=\"Yes\",'TSA Input'!J4282=\"Contingent\"),'TSA Input'!D4282,\"\"))","v":""},{"$f":"IF('TSA Input'!J4282=\"\",\"\",IF(OR('TSA Input'!J4282=\"Yes\",'TSA Input'!J4282=\"Contingent\"),'TSA Input'!G4282,\"\"))","v":""},{"$f":"IF('TSA Input'!J4282=\"\",\"\",IF(OR('TSA Input'!J4282=\"Yes\",'TSA Input'!J4282=\"Contingent\"),'TSA Input'!F4282,\"\"))","v":""},"",{"$f":"IF('TSA Input'!J4282=\"\",\"\",IF(OR('TSA Input'!J4282=\"Yes\",'TSA Input'!J4282=\"Contingent\"),'TSA Input'!D4282,\"\"))","v":""},{"$f":"IF('TSA Input'!J4282=\"\",\"\",IF(OR('TSA Input'!J4282=\"Yes\",'TSA Input'!J4282=\"Contingent\"),'TSA Input'!G4282,\"\"))","v":""},{"$f":"IF('TSA Input'!J4282=\"\",\"\",IF(OR('TSA Input'!J4282=\"Yes\",'TSA Input'!J4282=\"Contingent\"),'TSA Input'!F4282,\"\"))","v":""},"","Required","Required"]
["",null,{"$f":"IF('TSA Input'!J4283=\"\",\"\",IF(OR('TSA Input'!J4283=\"Yes\",'TSA Input'!J4283=\"Contingent\"),'TSA Input'!B4283,\"Ineligible\"))","v":""},{"$f":"IF('TSA Input'!J4283=\"\",\"\",IF(OR('TSA Input'!J4283=\"Yes\",'TSA Input'!J4283=\"Contingent\"),'TSA Input'!I4283,\"\"))","v":""},{"$f":"IF('TSA Input'!J4283=\"\",\"\",IF(OR('TSA Input'!J4283=\"Yes\",'TSA Input'!J4283=\"Contingent\"),'TSA Input'!C4283,\"\"))","v":""},{"$f":"IF('TSA Input'!J4283=\"\",\"\",IF(OR('TSA Input'!J4283=\"Yes\",'TSA Input'!J4283=\"Contingent\"),'TSA Input'!D4283,\"\"))","v":""},{"$f":"IF('TSA Input'!J4283=\"\",\"\",IF(OR('TSA Input'!J4283=\"Yes\",'TSA Input'!J4283=\"Contingent\"),'TSA Input'!G4283,\"\"))","v":""},{"$f":"IF('TSA Input'!J4283=\"\",\"\",IF(OR('TSA Input'!J4283=\"Yes\",'TSA Input'!J4283=\"Contingent\"),'TSA Input'!F4283,\"\"))","v":""},"",{"$f":"IF('TSA Input'!J4283=\"\",\"\",IF(OR('TSA Input'!J4283=\"Yes\",'TSA Input'!J4283=\"Contingent\"),'TSA Input'!D4283,\"\"))","v":""},{"$f":"IF('TSA Input'!J4283=\"\",\"\",IF(OR('TSA Input'!J4283=\"Yes\",'TSA Input'!J4283=\"Contingent\"),'TSA Input'!G4283,\"\"))","v":""},{"$f":"IF('TSA Input'!J4283=\"\",\"\",IF(OR('TSA Input'!J4283=\"Yes\",'TSA Input'!J4283=\"Contingent\"),'TSA Input'!F4283,\"\"))","v":""},"","Required","Required"]
["",null,{"$f":"IF('TSA Input'!J4284=\"\",\"\",IF(OR('TSA Input'!J4284=\"Yes\",'TSA Input'!J4284=\"Contingent\"),'TSA Input'!B4284,\"Ineligible\"))","v":""},{"$f":"IF('TSA Input'!J4284=\"\",\"\",IF(OR('TSA Input'!J4284=\"Yes\",'TSA Input'!J4284=\"Contingent\"),'TSA Input'!I4284,\"\"))","v":""},{"$f":"IF('TSA Input'!J4284=\"\",\"\",IF(OR('TSA Input'!J4284=\"Yes\",'TSA Input'!J4284=\"Contingent\"),'TSA Input'!C4284,\"\"))","v":""},{"$f":"IF('TSA Input'!J4284=\"\",\"\",IF(OR('TSA Input'!J4284=\"Yes\",'TSA Input'!J4284=\"Contingent\"),'TSA Input'!D4284,\"\"))","v":""},{"$f":"IF('TSA Input'!J4284=\"\",\"\",IF(OR('TSA Input'!J4284=\"Yes\",'TSA Input'!J4284=\"Contingent\"),'TSA Input'!G4284,\"\"))","v":""},{"$f":"IF('TSA Input'!J4284=\"\",\"\",IF(OR('TSA Input'!J4284=\"Yes\",'TSA Input'!J4284=\"Contingent\"),'TSA Input'!F4284,\"\"))","v":""},"",{"$f":"IF('TSA Input'!J4284=\"\",\"\",IF(OR('TSA Input'!J4284=\"Yes\",'TSA Input'!J4284=\"Contingent\"),'TSA Input'!D4284,\"\"))","v":""},{"$f":"IF('TSA Input'!J4284=\"\",\"\",IF(OR('TSA Input'!J4284=\"Yes\",'TSA Input'!J4284=\"Contingent\"),'TSA Input'!G4284,\"\"))","v":""},{"$f":"IF('TSA Input'!J4284=\"\",\"\",IF(OR('TSA Input'!J4284=\"Yes\",'TSA Input'!J4284=\"Contingent\"),'TSA Input'!F4284,\"\"))","v":""},"","Required","Required"]
["",null,{"$f":"IF('TSA Input'!J4285=\"\",\"\",IF(OR('TSA Input'!J4285=\"Yes\",'TSA Input'!J4285=\"Contingent\"),'TSA Input'!B4285,\"Ineligible\"))","v":""},{"$f":"IF('TSA Input'!J4285=\"\",\"\",IF(OR('TSA Input'!J4285=\"Yes\",'TSA Input'!J4285=\"Contingent\"),'TSA Input'!I4285,\"\"))","v":""},{"$f":"IF('TSA Input'!J4285=\"\",\"\",IF(OR('TSA Input'!J4285=\"Yes\",'TSA Input'!J4285=\"Contingent\"),'TSA Input'!C4285,\"\"))","v":""},{"$f":"IF('TSA Input'!J4285=\"\",\"\",IF(OR('TSA Input'!J4285=\"Yes\",'TSA Input'!J4285=\"Contingent\"),'TSA Input'!D4285,\"\"))","v":""},{"$f":"IF('TSA Input'!J4285=\"\",\"\",IF(OR('TSA Input'!J4285=\"Yes\",'TSA Input'!J4285=\"Contingent\"),'TSA Input'!G4285,\"\"))","v":""},{"$f":"IF('TSA Input'!J4285=\"\",\"\",IF(OR('TSA Input'!J4285=\"Yes\",'TSA Input'!J4285=\"Contingent\"),'TSA Input'!F4285,\"\"))","v":""},"",{"$f":"IF('TSA Input'!J4285=\"\",\"\",IF(OR('TSA Input'!J4285=\"Yes\",'TSA Input'!J4285=\"Contingent\"),'TSA Input'!D4285,\"\"))","v":""},{"$f":"IF('TSA Input'!J4285=\"\",\"\",IF(OR('TSA Input'!J4285=\"Yes\",'TSA Input'!J4285=\"Contingent\"),'TSA Input'!G4285,\"\"))","v":""},{"$f":"IF('TSA Input'!J4285=\"\",\"\",IF(OR('TSA Input'!J4285=\"Yes\",'TSA Input'!J4285=\"Contingent\"),'TSA Input'!F4285,\"\"))","v":""},"","Required","Required"]
["",null,{"$f":"IF('TSA Input'!J4286=\"\",\"\",IF(OR('TSA Input'!J4286=\"Yes\",'TSA Input'!J4286=\"Contingent\"),'TSA Input'!B4286,\"Ineligible\"))","v":""},{"$f":"IF('TSA Input'!J4286=\"\",\"\",IF(OR('TSA Input'!J4286=\"Yes\",'TSA Input'!J4286=\"Contingent\"),'TSA Input'!I4286,\"\"))","v":""},{"$f":"IF('TSA Input'!J4286=\"\",\"\",IF(OR('TSA Input'!J4286=\"Yes\",'TSA Input'!J4286=\"Contingent\"),'TSA Input'!C4286,\"\"))","v":""},{"$f":"IF('TSA Input'!J4286=\"\",\"\",IF(OR('TSA Input'!J4286=\"Yes\",'TSA Input'!J4286=\"Contingent\"),'TSA Input'!D4286,\"\"))","v":""},{"$f":"IF('TSA Input'!J4286=\"\",\"\",IF(OR('TSA Input'!J4286=\"Yes\",'TSA Input'!J4286=\"Contingent\"),'TSA Input'!G4286,\"\"))","v":""},{"$f":"IF('TSA Input'!J4286=\"\",\"\",IF(OR('TSA Input'!J4286=\"Yes\",'TSA Input'!J4286=\"Contingent\"),'TSA Input'!F4286,\"\"))","v":""},"",{"$f":"IF('TSA Input'!J4286=\"\",\"\",IF(OR('TSA Input'!J4286=\"Yes\",'TSA Input'!J4286=\"Contingent\"),'TSA Input'!D4286,\"\"))","v":""},{"$f":"IF('TSA Input'!J4286=\"\",\"\",IF(OR('TSA Input'!J4286=\"Yes\",'TSA Input'!J4286=\"Contingent\"),'TSA Input'!G4286,\"\"))","v":""},{"$f":"IF('TSA Input'!J4286=\"\",\"\",IF(OR('TSA Input'!J4286=\"Yes\",'TSA Input'!J4286=\"Contingent\"),'TSA Input'!F4286,\"\"))","v":""},"","Required","Required"]
["",null,{"$f":"IF('TSA Input'!J4287=\"\",\"\",IF(OR('TSA Input'!J4287=\"Yes\",'TSA Input'!J4287=\"Contingent\"),'TSA Input'!B4287,\"Ineligible\"))","v":""},{"$f":"IF('TSA Input'!J4287=\"\",\"\",IF(OR('TSA Input'!J4287=\"Yes\",'TSA Input'!J4287=\"Contingent\"),'TSA Input'!I4287,\"\"))","v":""},{"$f":"IF('TSA Input'!J4287=\"\",\"\",IF(OR('TSA Input'!J4287=\"Yes\",'TSA Input'!J4287=\"Contingent\"),'TSA Input'!C4287,\"\"))","v":""},{"$f":"IF('TSA Input'!J4287=\"\",\"\",IF(OR('TSA Input'!J4287=\"Yes\",'TSA Input'!J4287=\"Contingent\"),'TSA Input'!D4287,\"\"))","v":""},{"$f":"IF('TSA Input'!J4287=\"\",\"\",IF(OR('TSA Input'!J4287=\"Yes\",'TSA Input'!J4287=\"Contingent\"),'TSA Input'!G4287,\"\"))","v":""},{"$f":"IF('TSA Input'!J4287=\"\",\"\",IF(OR('TSA Input'!J4287=\"Yes\",'TSA Input'!J4287=\"Contingent\"),'TSA Input'!F4287,\"\"))","v":""},"",{"$f":"IF('TSA Input'!J4287=\"\",\"\",IF(OR('TSA Input'!J4287=\"Yes\",'TSA Input'!J4287=\"Contingent\"),'TSA Input'!D4287,\"\"))","v":""},{"$f":"IF('TSA Input'!J4287=\"\",\"\",IF(OR('TSA Input'!J4287=\"Yes\",'TSA Input'!J4287=\"Contingent\"),'TSA Input'!G4287,\"\"))","v":""},{"$f":"IF('TSA Input'!J4287=\"\",\"\",IF(OR('TSA Input'!J4287=\"Yes\",'TSA Input'!J4287=\"Contingent\"),'TSA Input'!F4287,\"\"))","v":""},"","Required","Required"]
["",null,{"$f":"IF('TSA Input'!J4288=\"\",\"\",IF(OR('TSA Input'!J4288=\"Yes\",'TSA Input'!J4288=\"Contingent\"),'TSA Input'!B4288,\"Ineligible\"))","v":""},{"$f":"IF('TSA Input'!J4288=\"\",\"\",IF(OR('TSA Input'!J4288=\"Yes\",'TSA Input'!J4288=\"Contingent\"),'TSA Input'!I4288,\"\"))","v":""},{"$f":"IF('TSA Input'!J4288=\"\",\"\",IF(OR('TSA Input'!J4288=\"Yes\",'TSA Input'!J4288=\"Contingent\"),'TSA Input'!C4288,\"\"))","v":""},{"$f":"IF('TSA Input'!J4288=\"\",\"\",IF(OR('TSA Input'!J4288=\"Yes\",'TSA Input'!J4288=\"Contingent\"),'TSA Input'!D4288,\"\"))","v":""},{"$f":"IF('TSA Input'!J4288=\"\",\"\",IF(OR('TSA Input'!J4288=\"Yes\",'TSA Input'!J4288=\"Contingent\"),'TSA Input'!G4288,\"\"))","v":""},{"$f":"IF('TSA Input'!J4288=\"\",\"\",IF(OR('TSA Input'!J4288=\"Yes\",'TSA Input'!J4288=\"Contingent\"),'TSA Input'!F4288,\"\"))","v":""},"",{"$f":"IF('TSA Input'!J4288=\"\",\"\",IF(OR('TSA Input'!J4288=\"Yes\",'TSA Input'!J4288=\"Contingent\"),'TSA Input'!D4288,\"\"))","v":""},{"$f":"IF('TSA Input'!J4288=\"\",\"\",IF(OR('TSA Input'!J4288=\"Yes\",'TSA Input'!J4288=\"Contingent\"),'TSA Input'!G4288,\"\"))","v":""},{"$f":"IF('TSA Input'!J4288=\"\",\"\",IF(OR('TSA Input'!J4288=\"Yes\",'TSA Input'!J4288=\"Contingent\"),'TSA Input'!F4288,\"\"))","v":""},"","Required","Required"]
["",null,{"$f":"IF('TSA Input'!J4289=\"\",\"\",IF(OR('TSA Input'!J4289=\"Yes\",'TSA Input'!J4289=\"Contingent\"),'TSA Input'!B4289,\"Ineligible\"))","v":""},{"$f":"IF('TSA Input'!J4289=\"\",\"\",IF(OR('TSA Input'!J4289=\"Yes\",'TSA Input'!J4289=\"Contingent\"),'TSA Input'!I4289,\"\"))","v":""},{"$f":"IF('TSA Input'!J4289=\"\",\"\",IF(OR('TSA Input'!J4289=\"Yes\",'TSA Input'!J4289=\"Contingent\"),'TSA Input'!C4289,\"\"))","v":""},{"$f":"IF('TSA Input'!J4289=\"\",\"\",IF(OR('TSA Input'!J4289=\"Yes\",'TSA Input'!J4289=\"Contingent\"),'TSA Input'!D4289,\"\"))","v":""},{"$f":"IF('TSA Input'!J4289=\"\",\"\",IF(OR('TSA Input'!J4289=\"Yes\",'TSA Input'!J4289=\"Contingent\"),'TSA Input'!G4289,\"\"))","v":""},{"$f":"IF('TSA Input'!J4289=\"\",\"\",IF(OR('TSA Input'!J4289=\"Yes\",'TSA Input'!J4289=\"Contingent\"),'TSA Input'!F4289,\"\"))","v":""},"",{"$f":"IF('TSA Input'!J4289=\"\",\"\",IF(OR('TSA Input'!J4289=\"Yes\",'TSA Input'!J4289=\"Contingent\"),'TSA Input'!D4289,\"\"))","v":""},{"$f":"IF('TSA Input'!J4289=\"\",\"\",IF(OR('TSA Input'!J4289=\"Yes\",'TSA Input'!J4289=\"Contingent\"),'TSA Input'!G4289,\"\"))","v":""},{"$f":"IF('TSA Input'!J4289=\"\",\"\",IF(OR('TSA Input'!J4289=\"Yes\",'TSA Input'!J4289=\"Contingent\"),'TSA Input'!F4289,\"\"))","v":""},"","Required","Required"]
["",null,{"$f":"IF('TSA Input'!J4290=\"\",\"\",IF(OR('TSA Input'!J4290=\"Yes\",'TSA Input'!J4290=\"Contingent\"),'TSA Input'!B4290,\"Ineligible\"))","v":""},{"$f":"IF('TSA Input'!J4290=\"\",\"\",IF(OR('TSA Input'!J4290=\"Yes\",'TSA Input'!J4290=\"Contingent\"),'TSA Input'!I4290,\"\"))","v":""},{"$f":"IF('TSA Input'!J4290=\"\",\"\",IF(OR('TSA Input'!J4290=\"Yes\",'TSA Input'!J4290=\"Contingent\"),'TSA Input'!C4290,\"\"))","v":""},{"$f":"IF('TSA Input'!J4290=\"\",\"\",IF(OR('TSA Input'!J4290=\"Yes\",'TSA Input'!J4290=\"Contingent\"),'TSA Input'!D4290,\"\"))","v":""},{"$f":"IF('TSA Input'!J4290=\"\",\"\",IF(OR('TSA Input'!J4290=\"Yes\",'TSA Input'!J4290=\"Contingent\"),'TSA Input'!G4290,\"\"))","v":""},{"$f":"IF('TSA Input'!J4290=\"\",\"\",IF(OR('TSA Input'!J4290=\"Yes\",'TSA Input'!J4290=\"Contingent\"),'TSA Input'!F4290,\"\"))","v":""},"",{"$f":"IF('TSA Input'!J4290=\"\",\"\",IF(OR('TSA Input'!J4290=\"Yes\",'TSA Input'!J4290=\"Contingent\"),'TSA Input'!D4290,\"\"))","v":""},{"$f":"IF('TSA Input'!J4290=\"\",\"\",IF(OR('TSA Input'!J4290=\"Yes\",'TSA Input'!J4290=\"Contingent\"),'TSA Input'!G4290,\"\"))","v":""},{"$f":"IF('TSA Input'!J4290=\"\",\"\",IF(OR('TSA Input'!J4290=\"Yes\",'TSA Input'!J4290=\"Contingent\"),'TSA Input'!F4290,\"\"))","v":""},"","Required","Required"]
["",null,{"$f":"IF('TSA Input'!J4291=\"\",\"\",IF(OR('TSA Input'!J4291=\"Yes\",'TSA Input'!J4291=\"Contingent\"),'TSA Input'!B4291,\"Ineligible\"))","v":""},{"$f":"IF('TSA Input'!J4291=\"\",\"\",IF(OR('TSA Input'!J4291=\"Yes\",'TSA Input'!J4291=\"Contingent\"),'TSA Input'!I4291,\"\"))","v":""},{"$f":"IF('TSA Input'!J4291=\"\",\"\",IF(OR('TSA Input'!J4291=\"Yes\",'TSA Input'!J4291=\"Contingent\"),'TSA Input'!C4291,\"\"))","v":""},{"$f":"IF('TSA Input'!J4291=\"\",\"\",IF(OR('TSA Input'!J4291=\"Yes\",'TSA Input'!J4291=\"Contingent\"),'TSA Input'!D4291,\"\"))","v":""},{"$f":"IF('TSA Input'!J4291=\"\",\"\",IF(OR('TSA Input'!J4291=\"Yes\",'TSA Input'!J4291=\"Contingent\"),'TSA Input'!G4291,\"\"))","v":""},{"$f":"IF('TSA Input'!J4291=\"\",\"\",IF(OR('TSA Input'!J4291=\"Yes\",'TSA Input'!J4291=\"Contingent\"),'TSA Input'!F4291,\"\"))","v":""},"",{"$f":"IF('TSA Input'!J4291=\"\",\"\",IF(OR('TSA Input'!J4291=\"Yes\",'TSA Input'!J4291=\"Contingent\"),'TSA Input'!D4291,\"\"))","v":""},{"$f":"IF('TSA Input'!J4291=\"\",\"\",IF(OR('TSA Input'!J4291=\"Yes\",'TSA Input'!J4291=\"Contingent\"),'TSA Input'!G4291,\"\"))","v":""},{"$f":"IF('TSA Input'!J4291=\"\",\"\",IF(OR('TSA Input'!J4291=\"Yes\",'TSA Input'!J4291=\"Contingent\"),'TSA Input'!F4291,\"\"))","v":""},"","Required","Required"]
["",null,{"$f":"IF('TSA Input'!J4292=\"\",\"\",IF(OR('TSA Input'!J4292=\"Yes\",'TSA Input'!J4292=\"Contingent\"),'TSA Input'!B4292,\"Ineligible\"))","v":""},{"$f":"IF('TSA Input'!J4292=\"\",\"\",IF(OR('TSA Input'!J4292=\"Yes\",'TSA Input'!J4292=\"Contingent\"),'TSA Input'!I4292,\"\"))","v":""},{"$f":"IF('TSA Input'!J4292=\"\",\"\",IF(OR('TSA Input'!J4292=\"Yes\",'TSA Input'!J4292=\"Contingent\"),'TSA Input'!C4292,\"\"))","v":""},{"$f":"IF('TSA Input'!J4292=\"\",\"\",IF(OR('TSA Input'!J4292=\"Yes\",'TSA Input'!J4292=\"Contingent\"),'TSA Input'!D4292,\"\"))","v":""},{"$f":"IF('TSA Input'!J4292=\"\",\"\",IF(OR('TSA Input'!J4292=\"Yes\",'TSA Input'!J4292=\"Contingent\"),'TSA Input'!G4292,\"\"))","v":""},{"$f":"IF('TSA Input'!J4292=\"\",\"\",IF(OR('TSA Input'!J4292=\"Yes\",'TSA Input'!J4292=\"Contingent\"),'TSA Input'!F4292,\"\"))","v":""},{"$f":"IF($C4330=\"\",\"\",SUM(F4330:H4330))","v":""},{"$f":"IF('TSA Input'!J4292=\"\",\"\",IF(OR('TSA Input'!J4292=\"Yes\",'TSA Input'!J4292=\"Contingent\"),'TSA Input'!D4292,\"\"))","v":""},{"$f":"IF('TSA Input'!J4292=\"\",\"\",IF(OR('TSA Input'!J4292=\"Yes\",'TSA Input'!J4292=\"Contingent\"),'TSA Input'!G4292,\"\"))","v":""},{"$f":"IF('TSA Input'!J4292=\"\",\"\",IF(OR('TSA Input'!J4292=\"Yes\",'TSA Input'!J4292=\"Contingent\"),'TSA Input'!F4292,\"\"))","v":""},{"$f":"IF($C4330=\"\",\"\",SUM(J4330:L4330))","v":""},"Required","Required"]
["",null,{"$f":"IF('TSA Input'!J4293=\"\",\"\",IF(OR('TSA Input'!J4293=\"Yes\",'TSA Input'!J4293=\"Contingent\"),'TSA Input'!B4293,\"Ineligible\"))","v":""},{"$f":"IF('TSA Input'!J4293=\"\",\"\",IF(OR('TSA Input'!J4293=\"Yes\",'TSA Input'!J4293=\"Contingent\"),'TSA Input'!I4293,\"\"))","v":""},{"$f":"IF('TSA Input'!J4293=\"\",\"\",IF(OR('TSA Input'!J4293=\"Yes\",'TSA Input'!J4293=\"Contingent\"),'TSA Input'!C4293,\"\"))","v":""},{"$f":"IF('TSA Input'!J4293=\"\",\"\",IF(OR('TSA Input'!J4293=\"Yes\",'TSA Input'!J4293=\"Contingent\"),'TSA Input'!D4293,\"\"))","v":""},{"$f":"IF('TSA Input'!J4293=\"\",\"\",IF(OR('TSA Input'!J4293=\"Yes\",'TSA Input'!J4293=\"Contingent\"),'TSA Input'!G4293,\"\"))","v":""},{"$f":"IF('TSA Input'!J4293=\"\",\"\",IF(OR('TSA Input'!J4293=\"Yes\",'TSA Input'!J4293=\"Contingent\"),'TSA Input'!F4293,\"\"))","v":""},"",{"$f":"IF('TSA Input'!J4293=\"\",\"\",IF(OR('TSA Input'!J4293=\"Yes\",'TSA Input'!J4293=\"Contingent\"),'TSA Input'!D4293,\"\"))","v":""},{"$f":"IF('TSA Input'!J4293=\"\",\"\",IF(OR('TSA Input'!J4293=\"Yes\",'TSA Input'!J4293=\"Contingent\"),'TSA Input'!G4293,\"\"))","v":""},{"$f":"IF('TSA Input'!J4293=\"\",\"\",IF(OR('TSA Input'!J4293=\"Yes\",'TSA Input'!J4293=\"Contingent\"),'TSA Input'!F4293,\"\"))","v":""},"","Required","Required"]
["",null,{"$f":"IF('TSA Input'!J4294=\"\",\"\",IF(OR('TSA Input'!J4294=\"Yes\",'TSA Input'!J4294=\"Contingent\"),'TSA Input'!B4294,\"Ineligible\"))","v":""},{"$f":"IF('TSA Input'!J4294=\"\",\"\",IF(OR('TSA Input'!J4294=\"Yes\",'TSA Input'!J4294=\"Contingent\"),'TSA Input'!I4294,\"\"))","v":""},{"$f":"IF('TSA Input'!J4294=\"\",\"\",IF(OR('TSA Input'!J4294=\"Yes\",'TSA Input'!J4294=\"Contingent\"),'TSA Input'!C4294,\"\"))","v":""},{"$f":"IF('TSA Input'!J4294=\"\",\"\",IF(OR('TSA Input'!J4294=\"Yes\",'TSA Input'!J4294=\"Contingent\"),'TSA Input'!D4294,\"\"))","v":""},{"$f":"IF('TSA Input'!J4294=\"\",\"\",IF(OR('TSA Input'!J4294=\"Yes\",'TSA Input'!J4294=\"Contingent\"),'TSA Input'!G4294,\"\"))","v":""},{"$f":"IF('TSA Input'!J4294=\"\",\"\",IF(OR('TSA Input'!J4294=\"Yes\",'TSA Input'!J4294=\"Contingent\"),'TSA Input'!F4294,\"\"))","v":""},"",{"$f":"IF('TSA Input'!J4294=\"\",\"\",IF(OR('TSA Input'!J4294=\"Yes\",'TSA Input'!J4294=\"Contingent\"),'TSA Input'!D4294,\"\"))","v":""},{"$f":"IF('TSA Input'!J4294=\"\",\"\",IF(OR('TSA Input'!J4294=\"Yes\",'TSA Input'!J4294=\"Contingent\"),'TSA Input'!G4294,\"\"))","v":""},{"$f":"IF('TSA Input'!J4294=\"\",\"\",IF(OR('TSA Input'!J4294=\"Yes\",'TSA Input'!J4294=\"Contingent\"),'TSA Input'!F4294,\"\"))","v":""},"","Required","Required"]
["",null,{"$f":"IF('TSA Input'!J4295=\"\",\"\",IF(OR('TSA Input'!J4295=\"Yes\",'TSA Input'!J4295=\"Contingent\"),'TSA Input'!B4295,\"Ineligible\"))","v":""},{"$f":"IF('TSA Input'!J4295=\"\",\"\",IF(OR('TSA Input'!J4295=\"Yes\",'TSA Input'!J4295=\"Contingent\"),'TSA Input'!I4295,\"\"))","v":""},{"$f":"IF('TSA Input'!J4295=\"\",\"\",IF(OR('TSA Input'!J4295=\"Yes\",'TSA Input'!J4295=\"Contingent\"),'TSA Input'!C4295,\"\"))","v":""},{"$f":"IF('TSA Input'!J4295=\"\",\"\",IF(OR('TSA Input'!J4295=\"Yes\",'TSA Input'!J4295=\"Contingent\"),'TSA Input'!D4295,\"\"))","v":""},{"$f":"IF('TSA Input'!J4295=\"\",\"\",IF(OR('TSA Input'!J4295=\"Yes\",'TSA Input'!J4295=\"Contingent\"),'TSA Input'!G4295,\"\"))","v":""},{"$f":"IF('TSA Input'!J4295=\"\",\"\",IF(OR('TSA Input'!J4295=\"Yes\",'TSA Input'!J4295=\"Contingent\"),'TSA Input'!F4295,\"\"))","v":""},"",{"$f":"IF('TSA Input'!J4295=\"\",\"\",IF(OR('TSA Input'!J4295=\"Yes\",'TSA Input'!J4295=\"Contingent\"),'TSA Input'!D4295,\"\"))","v":""},{"$f":"IF('TSA Input'!J4295=\"\",\"\",IF(OR('TSA Input'!J4295=\"Yes\",'TSA Input'!J4295=\"Contingent\"),'TSA Input'!G4295,\"\"))","v":""},{"$f":"IF('TSA Input'!J4295=\"\",\"\",IF(OR('TSA Input'!J4295=\"Yes\",'TSA Input'!J4295=\"Contingent\"),'TSA Input'!F4295,\"\"))","v":""},"","Required","Required"]
["",null,{"$f":"IF('TSA Input'!J4296=\"\",\"\",IF(OR('TSA Input'!J4296=\"Yes\",'TSA Input'!J4296=\"Contingent\"),'TSA Input'!B4296,\"Ineligible\"))","v":""},{"$f":"IF('TSA Input'!J4296=\"\",\"\",IF(OR('TSA Input'!J4296=\"Yes\",'TSA Input'!J4296=\"Contingent\"),'TSA Input'!I4296,\"\"))","v":""},{"$f":"IF('TSA Input'!J4296=\"\",\"\",IF(OR('TSA Input'!J4296=\"Yes\",'TSA Input'!J4296=\"Contingent\"),'TSA Input'!C4296,\"\"))","v":""},{"$f":"IF('TSA Input'!J4296=\"\",\"\",IF(OR('TSA Input'!J4296=\"Yes\",'TSA Input'!J4296=\"Contingent\"),'TSA Input'!D4296,\"\"))","v":""},{"$f":"IF('TSA Input'!J4296=\"\",\"\",IF(OR('TSA Input'!J4296=\"Yes\",'TSA Input'!J4296=\"Contingent\"),'TSA Input'!G4296,\"\"))","v":""},{"$f":"IF('TSA Input'!J4296=\"\",\"\",IF(OR('TSA Input'!J4296=\"Yes\",'TSA Input'!J4296=\"Contingent\"),'TSA Input'!F4296,\"\"))","v":""},"",{"$f":"IF('TSA Input'!J4296=\"\",\"\",IF(OR('TSA Input'!J4296=\"Yes\",'TSA Input'!J4296=\"Contingent\"),'TSA Input'!D4296,\"\"))","v":""},{"$f":"IF('TSA Input'!J4296=\"\",\"\",IF(OR('TSA Input'!J4296=\"Yes\",'TSA Input'!J4296=\"Contingent\"),'TSA Input'!G4296,\"\"))","v":""},{"$f":"IF('TSA Input'!J4296=\"\",\"\",IF(OR('TSA Input'!J4296=\"Yes\",'TSA Input'!J4296=\"Contingent\"),'TSA Input'!F4296,\"\"))","v":""},"","Required","Required"]
["",null,{"$f":"IF('TSA Input'!J4297=\"\",\"\",IF(OR('TSA Input'!J4297=\"Yes\",'TSA Input'!J4297=\"Contingent\"),'TSA Input'!B4297,\"Ineligible\"))","v":""},{"$f":"IF('TSA Input'!J4297=\"\",\"\",IF(OR('TSA Input'!J4297=\"Yes\",'TSA Input'!J4297=\"Contingent\"),'TSA Input'!I4297,\"\"))","v":""},{"$f":"IF('TSA Input'!J4297=\"\",\"\",IF(OR('TSA Input'!J4297=\"Yes\",'TSA Input'!J4297=\"Contingent\"),'TSA Input'!C4297,\"\"))","v":""},{"$f":"IF('TSA Input'!J4297=\"\",\"\",IF(OR('TSA Input'!J4297=\"Yes\",'TSA Input'!J4297=\"Contingent\"),'TSA Input'!D4297,\"\"))","v":""},{"$f":"IF('TSA Input'!J4297=\"\",\"\",IF(OR('TSA Input'!J4297=\"Yes\",'TSA Input'!J4297=\"Contingent\"),'TSA Input'!G4297,\"\"))","v":""},{"$f":"IF('TSA Input'!J4297=\"\",\"\",IF(OR('TSA Input'!J4297=\"Yes\",'TSA Input'!J4297=\"Contingent\"),'TSA Input'!F4297,\"\"))","v":""},"",{"$f":"IF('TSA Input'!J4297=\"\",\"\",IF(OR('TSA Input'!J4297=\"Yes\",'TSA Input'!J4297=\"Contingent\"),'TSA Input'!D4297,\"\"))","v":""},{"$f":"IF('TSA Input'!J4297=\"\",\"\",IF(OR('TSA Input'!J4297=\"Yes\",'TSA Input'!J4297=\"Contingent\"),'TSA Input'!G4297,\"\"))","v":""},{"$f":"IF('TSA Input'!J4297=\"\",\"\",IF(OR('TSA Input'!J4297=\"Yes\",'TSA Input'!J4297=\"Contingent\"),'TSA Input'!F4297,\"\"))","v":""},"","Required","Required"]
["",null,{"$f":"IF('TSA Input'!J4298=\"\",\"\",IF(OR('TSA Input'!J4298=\"Yes\",'TSA Input'!J4298=\"Contingent\"),'TSA Input'!B4298,\"Ineligible\"))","v":""},{"$f":"IF('TSA Input'!J4298=\"\",\"\",IF(OR('TSA Input'!J4298=\"Yes\",'TSA Input'!J4298=\"Contingent\"),'TSA Input'!I4298,\"\"))","v":""},{"$f":"IF('TSA Input'!J4298=\"\",\"\",IF(OR('TSA Input'!J4298=\"Yes\",'TSA Input'!J4298=\"Contingent\"),'TSA Input'!C4298,\"\"))","v":""},{"$f":"IF('TSA Input'!J4298=\"\",\"\",IF(OR('TSA Input'!J4298=\"Yes\",'TSA Input'!J4298=\"Contingent\"),'TSA Input'!D4298,\"\"))","v":""},{"$f":"IF('TSA Input'!J4298=\"\",\"\",IF(OR('TSA Input'!J4298=\"Yes\",'TSA Input'!J4298=\"Contingent\"),'TSA Input'!G4298,\"\"))","v":""},{"$f":"IF('TSA Input'!J4298=\"\",\"\",IF(OR('TSA Input'!J4298=\"Yes\",'TSA Input'!J4298=\"Contingent\"),'TSA Input'!F4298,\"\"))","v":""},"",{"$f":"IF('TSA Input'!J4298=\"\",\"\",IF(OR('TSA Input'!J4298=\"Yes\",'TSA Input'!J4298=\"Contingent\"),'TSA Input'!D4298,\"\"))","v":""},{"$f":"IF('TSA Input'!J4298=\"\",\"\",IF(OR('TSA Input'!J4298=\"Yes\",'TSA Input'!J4298=\"Contingent\"),'TSA Input'!G4298,\"\"))","v":""},{"$f":"IF('TSA Input'!J4298=\"\",\"\",IF(OR('TSA Input'!J4298=\"Yes\",'TSA Input'!J4298=\"Contingent\"),'TSA Input'!F4298,\"\"))","v":""},"","Required","Required"]
["",null,{"$f":"IF('TSA Input'!J4299=\"\",\"\",IF(OR('TSA Input'!J4299=\"Yes\",'TSA Input'!J4299=\"Contingent\"),'TSA Input'!B4299,\"Ineligible\"))","v":""},{"$f":"IF('TSA Input'!J4299=\"\",\"\",IF(OR('TSA Input'!J4299=\"Yes\",'TSA Input'!J4299=\"Contingent\"),'TSA Input'!I4299,\"\"))","v":""},{"$f":"IF('TSA Input'!J4299=\"\",\"\",IF(OR('TSA Input'!J4299=\"Yes\",'TSA Input'!J4299=\"Contingent\"),'TSA Input'!C4299,\"\"))","v":""},{"$f":"IF('TSA Input'!J4299=\"\",\"\",IF(OR('TSA Input'!J4299=\"Yes\",'TSA Input'!J4299=\"Contingent\"),'TSA Input'!D4299,\"\"))","v":""},{"$f":"IF('TSA Input'!J4299=\"\",\"\",IF(OR('TSA Input'!J4299=\"Yes\",'TSA Input'!J4299=\"Contingent\"),'TSA Input'!G4299,\"\"))","v":""},{"$f":"IF('TSA Input'!J4299=\"\",\"\",IF(OR('TSA Input'!J4299=\"Yes\",'TSA Input'!J4299=\"Contingent\"),'TSA Input'!F4299,\"\"))","v":""},"",{"$f":"IF('TSA Input'!J4299=\"\",\"\",IF(OR('TSA Input'!J4299=\"Yes\",'TSA Input'!J4299=\"Contingent\"),'TSA Input'!D4299,\"\"))","v":""},{"$f":"IF('TSA Input'!J4299=\"\",\"\",IF(OR('TSA Input'!J4299=\"Yes\",'TSA Input'!J4299=\"Contingent\"),'TSA Input'!G4299,\"\"))","v":""},{"$f":"IF('TSA Input'!J4299=\"\",\"\",IF(OR('TSA Input'!J4299=\"Yes\",'TSA Input'!J4299=\"Contingent\"),'TSA Input'!F4299,\"\"))","v":""},"","Required","Required"]
["",null,{"$f":"IF('TSA Input'!J4300=\"\",\"\",IF(OR('TSA Input'!J4300=\"Yes\",'TSA Input'!J4300=\"Contingent\"),'TSA Input'!B4300,\"Ineligible\"))","v":""},{"$f":"IF('TSA Input'!J4300=\"\",\"\",IF(OR('TSA Input'!J4300=\"Yes\",'TSA Input'!J4300=\"Contingent\"),'TSA Input'!I4300,\"\"))","v":""},{"$f":"IF('TSA Input'!J4300=\"\",\"\",IF(OR('TSA Input'!J4300=\"Yes\",'TSA Input'!J4300=\"Contingent\"),'TSA Input'!C4300,\"\"))","v":""},{"$f":"IF('TSA Input'!J4300=\"\",\"\",IF(OR('TSA Input'!J4300=\"Yes\",'TSA Input'!J4300=\"Contingent\"),'TSA Input'!D4300,\"\"))","v":""},{"$f":"IF('TSA Input'!J4300=\"\",\"\",IF(OR('TSA Input'!J4300=\"Yes\",'TSA Input'!J4300=\"Contingent\"),'TSA Input'!G4300,\"\"))","v":""},{"$f":"IF('TSA Input'!J4300=\"\",\"\",IF(OR('TSA Input'!J4300=\"Yes\",'TSA Input'!J4300=\"Contingent\"),'TSA Input'!F4300,\"\"))","v":""},"",{"$f":"IF('TSA Input'!J4300=\"\",\"\",IF(OR('TSA Input'!J4300=\"Yes\",'TSA Input'!J4300=\"Contingent\"),'TSA Input'!D4300,\"\"))","v":""},{"$f":"IF('TSA Input'!J4300=\"\",\"\",IF(OR('TSA Input'!J4300=\"Yes\",'TSA Input'!J4300=\"Contingent\"),'TSA Input'!G4300,\"\"))","v":""},{"$f":"IF('TSA Input'!J4300=\"\",\"\",IF(OR('TSA Input'!J4300=\"Yes\",'TSA Input'!J4300=\"Contingent\"),'TSA Input'!F4300,\"\"))","v":""},"","Required","Required"]
["",null,{"$f":"IF('TSA Input'!J4301=\"\",\"\",IF(OR('TSA Input'!J4301=\"Yes\",'TSA Input'!J4301=\"Contingent\"),'TSA Input'!B4301,\"Ineligible\"))","v":""},{"$f":"IF('TSA Input'!J4301=\"\",\"\",IF(OR('TSA Input'!J4301=\"Yes\",'TSA Input'!J4301=\"Contingent\"),'TSA Input'!I4301,\"\"))","v":""},{"$f":"IF('TSA Input'!J4301=\"\",\"\",IF(OR('TSA Input'!J4301=\"Yes\",'TSA Input'!J4301=\"Contingent\"),'TSA Input'!C4301,\"\"))","v":""},{"$f":"IF('TSA Input'!J4301=\"\",\"\",IF(OR('TSA Input'!J4301=\"Yes\",'TSA Input'!J4301=\"Contingent\"),'TSA Input'!D4301,\"\"))","v":""},{"$f":"IF('TSA Input'!J4301=\"\",\"\",IF(OR('TSA Input'!J4301=\"Yes\",'TSA Input'!J4301=\"Contingent\"),'TSA Input'!G4301,\"\"))","v":""},{"$f":"IF('TSA Input'!J4301=\"\",\"\",IF(OR('TSA Input'!J4301=\"Yes\",'TSA Input'!J4301=\"Contingent\"),'TSA Input'!F4301,\"\"))","v":""},"",{"$f":"IF('TSA Input'!J4301=\"\",\"\",IF(OR('TSA Input'!J4301=\"Yes\",'TSA Input'!J4301=\"Contingent\"),'TSA Input'!D4301,\"\"))","v":""},{"$f":"IF('TSA Input'!J4301=\"\",\"\",IF(OR('TSA Input'!J4301=\"Yes\",'TSA Input'!J4301=\"Contingent\"),'TSA Input'!G4301,\"\"))","v":""},{"$f":"IF('TSA Input'!J4301=\"\",\"\",IF(OR('TSA Input'!J4301=\"Yes\",'TSA Input'!J4301=\"Contingent\"),'TSA Input'!F4301,\"\"))","v":""},"","Required","Required"]
["",null,{"$f":"IF('TSA Input'!J4302=\"\",\"\",IF(OR('TSA Input'!J4302=\"Yes\",'TSA Input'!J4302=\"Contingent\"),'TSA Input'!B4302,\"Ineligible\"))","v":""},{"$f":"IF('TSA Input'!J4302=\"\",\"\",IF(OR('TSA Input'!J4302=\"Yes\",'TSA Input'!J4302=\"Contingent\"),'TSA Input'!I4302,\"\"))","v":""},{"$f":"IF('TSA Input'!J4302=\"\",\"\",IF(OR('TSA Input'!J4302=\"Yes\",'TSA Input'!J4302=\"Contingent\"),'TSA Input'!C4302,\"\"))","v":""},{"$f":"IF('TSA Input'!J4302=\"\",\"\",IF(OR('TSA Input'!J4302=\"Yes\",'TSA Input'!J4302=\"Contingent\"),'TSA Input'!D4302,\"\"))","v":""},{"$f":"IF('TSA Input'!J4302=\"\",\"\",IF(OR('TSA Input'!J4302=\"Yes\",'TSA Input'!J4302=\"Contingent\"),'TSA Input'!G4302,\"\"))","v":""},{"$f":"IF('TSA Input'!J4302=\"\",\"\",IF(OR('TSA Input'!J4302=\"Yes\",'TSA Input'!J4302=\"Contingent\"),'TSA Input'!F4302,\"\"))","v":""},"",{"$f":"IF('TSA Input'!J4302=\"\",\"\",IF(OR('TSA Input'!J4302=\"Yes\",'TSA Input'!J4302=\"Contingent\"),'TSA Input'!D4302,\"\"))","v":""},{"$f":"IF('TSA Input'!J4302=\"\",\"\",IF(OR('TSA Input'!J4302=\"Yes\",'TSA Input'!J4302=\"Contingent\"),'TSA Input'!G4302,\"\"))","v":""},{"$f":"IF('TSA Input'!J4302=\"\",\"\",IF(OR('TSA Input'!J4302=\"Yes\",'TSA Input'!J4302=\"Contingent\"),'TSA Input'!F4302,\"\"))","v":""},"","Required","Required"]
["",null,{"$f":"IF('TSA Input'!J4303=\"\",\"\",IF(OR('TSA Input'!J4303=\"Yes\",'TSA Input'!J4303=\"Contingent\"),'TSA Input'!B4303,\"Ineligible\"))","v":""},{"$f":"IF('TSA Input'!J4303=\"\",\"\",IF(OR('TSA Input'!J4303=\"Yes\",'TSA Input'!J4303=\"Contingent\"),'TSA Input'!I4303,\"\"))","v":""},{"$f":"IF('TSA Input'!J4303=\"\",\"\",IF(OR('TSA Input'!J4303=\"Yes\",'TSA Input'!J4303=\"Contingent\"),'TSA Input'!C4303,\"\"))","v":""},{"$f":"IF('TSA Input'!J4303=\"\",\"\",IF(OR('TSA Input'!J4303=\"Yes\",'TSA Input'!J4303=\"Contingent\"),'TSA Input'!D4303,\"\"))","v":""},{"$f":"IF('TSA Input'!J4303=\"\",\"\",IF(OR('TSA Input'!J4303=\"Yes\",'TSA Input'!J4303=\"Contingent\"),'TSA Input'!G4303,\"\"))","v":""},{"$f":"IF('TSA Input'!J4303=\"\",\"\",IF(OR('TSA Input'!J4303=\"Yes\",'TSA Input'!J4303=\"Contingent\"),'TSA Input'!F4303,\"\"))","v":""},"",{"$f":"IF('TSA Input'!J4303=\"\",\"\",IF(OR('TSA Input'!J4303=\"Yes\",'TSA Input'!J4303=\"Contingent\"),'TSA Input'!D4303,\"\"))","v":""},{"$f":"IF('TSA Input'!J4303=\"\",\"\",IF(OR('TSA Input'!J4303=\"Yes\",'TSA Input'!J4303=\"Contingent\"),'TSA Input'!G4303,\"\"))","v":""},{"$f":"IF('TSA Input'!J4303=\"\",\"\",IF(OR('TSA Input'!J4303=\"Yes\",'TSA Input'!J4303=\"Contingent\"),'TSA Input'!F4303,\"\"))","v":""},"","Required","Required"]
["",null,{"$f":"IF('TSA Input'!J4304=\"\",\"\",IF(OR('TSA Input'!J4304=\"Yes\",'TSA Input'!J4304=\"Contingent\"),'TSA Input'!B4304,\"Ineligible\"))","v":""},{"$f":"IF('TSA Input'!J4304=\"\",\"\",IF(OR('TSA Input'!J4304=\"Yes\",'TSA Input'!J4304=\"Contingent\"),'TSA Input'!I4304,\"\"))","v":""},{"$f":"IF('TSA Input'!J4304=\"\",\"\",IF(OR('TSA Input'!J4304=\"Yes\",'TSA Input'!J4304=\"Contingent\"),'TSA Input'!C4304,\"\"))","v":""},{"$f":"IF('TSA Input'!J4304=\"\",\"\",IF(OR('TSA Input'!J4304=\"Yes\",'TSA Input'!J4304=\"Contingent\"),'TSA Input'!D4304,\"\"))","v":""},{"$f":"IF('TSA Input'!J4304=\"\",\"\",IF(OR('TSA Input'!J4304=\"Yes\",'TSA Input'!J4304=\"Contingent\"),'TSA Input'!G4304,\"\"))","v":""},{"$f":"IF('TSA Input'!J4304=\"\",\"\",IF(OR('TSA Input'!J4304=\"Yes\",'TSA Input'!J4304=\"Contingent\"),'TSA Input'!F4304,\"\"))","v":""},"",{"$f":"IF('TSA Input'!J4304=\"\",\"\",IF(OR('TSA Input'!J4304=\"Yes\",'TSA Input'!J4304=\"Contingent\"),'TSA Input'!D4304,\"\"))","v":""},{"$f":"IF('TSA Input'!J4304=\"\",\"\",IF(OR('TSA Input'!J4304=\"Yes\",'TSA Input'!J4304=\"Contingent\"),'TSA Input'!G4304,\"\"))","v":""},{"$f":"IF('TSA Input'!J4304=\"\",\"\",IF(OR('TSA Input'!J4304=\"Yes\",'TSA Input'!J4304=\"Contingent\"),'TSA Input'!F4304,\"\"))","v":""},"","Required","Required"]
["",null,{"$f":"IF('TSA Input'!J4305=\"\",\"\",IF(OR('TSA Input'!J4305=\"Yes\",'TSA Input'!J4305=\"Contingent\"),'TSA Input'!B4305,\"Ineligible\"))","v":""},{"$f":"IF('TSA Input'!J4305=\"\",\"\",IF(OR('TSA Input'!J4305=\"Yes\",'TSA Input'!J4305=\"Contingent\"),'TSA Input'!I4305,\"\"))","v":""},{"$f":"IF('TSA Input'!J4305=\"\",\"\",IF(OR('TSA Input'!J4305=\"Yes\",'TSA Input'!J4305=\"Contingent\"),'TSA Input'!C4305,\"\"))","v":""},{"$f":"IF('TSA Input'!J4305=\"\",\"\",IF(OR('TSA Input'!J4305=\"Yes\",'TSA Input'!J4305=\"Contingent\"),'TSA Input'!D4305,\"\"))","v":""},{"$f":"IF('TSA Input'!J4305=\"\",\"\",IF(OR('TSA Input'!J4305=\"Yes\",'TSA Input'!J4305=\"Contingent\"),'TSA Input'!G4305,\"\"))","v":""},{"$f":"IF('TSA Input'!J4305=\"\",\"\",IF(OR('TSA Input'!J4305=\"Yes\",'TSA Input'!J4305=\"Contingent\"),'TSA Input'!F4305,\"\"))","v":""},"",{"$f":"IF('TSA Input'!J4305=\"\",\"\",IF(OR('TSA Input'!J4305=\"Yes\",'TSA Input'!J4305=\"Contingent\"),'TSA Input'!D4305,\"\"))","v":""},{"$f":"IF('TSA Input'!J4305=\"\",\"\",IF(OR('TSA Input'!J4305=\"Yes\",'TSA Input'!J4305=\"Contingent\"),'TSA Input'!G4305,\"\"))","v":""},{"$f":"IF('TSA Input'!J4305=\"\",\"\",IF(OR('TSA Input'!J4305=\"Yes\",'TSA Input'!J4305=\"Contingent\"),'TSA Input'!F4305,\"\"))","v":""},"","Required","Required"]
["",null,{"$f":"IF('TSA Input'!J4306=\"\",\"\",IF(OR('TSA Input'!J4306=\"Yes\",'TSA Input'!J4306=\"Contingent\"),'TSA Input'!B4306,\"Ineligible\"))","v":""},{"$f":"IF('TSA Input'!J4306=\"\",\"\",IF(OR('TSA Input'!J4306=\"Yes\",'TSA Input'!J4306=\"Contingent\"),'TSA Input'!I4306,\"\"))","v":""},{"$f":"IF('TSA Input'!J4306=\"\",\"\",IF(OR('TSA Input'!J4306=\"Yes\",'TSA Input'!J4306=\"Contingent\"),'TSA Input'!C4306,\"\"))","v":""},{"$f":"IF('TSA Input'!J4306=\"\",\"\",IF(OR('TSA Input'!J4306=\"Yes\",'TSA Input'!J4306=\"Contingent\"),'TSA Input'!D4306,\"\"))","v":""},{"$f":"IF('TSA Input'!J4306=\"\",\"\",IF(OR('TSA Input'!J4306=\"Yes\",'TSA Input'!J4306=\"Contingent\"),'TSA Input'!G4306,\"\"))","v":""},{"$f":"IF('TSA Input'!J4306=\"\",\"\",IF(OR('TSA Input'!J4306=\"Yes\",'TSA Input'!J4306=\"Contingent\"),'TSA Input'!F4306,\"\"))","v":""},"",{"$f":"IF('TSA Input'!J4306=\"\",\"\",IF(OR('TSA Input'!J4306=\"Yes\",'TSA Input'!J4306=\"Contingent\"),'TSA Input'!D4306,\"\"))","v":""},{"$f":"IF('TSA Input'!J4306=\"\",\"\",IF(OR('TSA Input'!J4306=\"Yes\",'TSA Input'!J4306=\"Contingent\"),'TSA Input'!G4306,\"\"))","v":""},{"$f":"IF('TSA Input'!J4306=\"\",\"\",IF(OR('TSA Input'!J4306=\"Yes\",'TSA Input'!J4306=\"Contingent\"),'TSA Input'!F4306,\"\"))","v":""},"","Required","Required"]
["",null,{"$f":"IF('TSA Input'!J4307=\"\",\"\",IF(OR('TSA Input'!J4307=\"Yes\",'TSA Input'!J4307=\"Contingent\"),'TSA Input'!B4307,\"Ineligible\"))","v":""},{"$f":"IF('TSA Input'!J4307=\"\",\"\",IF(OR('TSA Input'!J4307=\"Yes\",'TSA Input'!J4307=\"Contingent\"),'TSA Input'!I4307,\"\"))","v":""},{"$f":"IF('TSA Input'!J4307=\"\",\"\",IF(OR('TSA Input'!J4307=\"Yes\",'TSA Input'!J4307=\"Contingent\"),'TSA Input'!C4307,\"\"))","v":""},{"$f":"IF('TSA Input'!J4307=\"\",\"\",IF(OR('TSA Input'!J4307=\"Yes\",'TSA Input'!J4307=\"Contingent\"),'TSA Input'!D4307,\"\"))","v":""},{"$f":"IF('TSA Input'!J4307=\"\",\"\",IF(OR('TSA Input'!J4307=\"Yes\",'TSA Input'!J4307=\"Contingent\"),'TSA Input'!G4307,\"\"))","v":""},{"$f":"IF('TSA Input'!J4307=\"\",\"\",IF(OR('TSA Input'!J4307=\"Yes\",'TSA Input'!J4307=\"Contingent\"),'TSA Input'!F4307,\"\"))","v":""},"",{"$f":"IF('TSA Input'!J4307=\"\",\"\",IF(OR('TSA Input'!J4307=\"Yes\",'TSA Input'!J4307=\"Contingent\"),'TSA Input'!D4307,\"\"))","v":""},{"$f":"IF('TSA Input'!J4307=\"\",\"\",IF(OR('TSA Input'!J4307=\"Yes\",'TSA Input'!J4307=\"Contingent\"),'TSA Input'!G4307,\"\"))","v":""},{"$f":"IF('TSA Input'!J4307=\"\",\"\",IF(OR('TSA Input'!J4307=\"Yes\",'TSA Input'!J4307=\"Contingent\"),'TSA Input'!F4307,\"\"))","v":""},"","Required","Required"]
["",null,{"$f":"IF('TSA Input'!J4308=\"\",\"\",IF(OR('TSA Input'!J4308=\"Yes\",'TSA Input'!J4308=\"Contingent\"),'TSA Input'!B4308,\"Ineligible\"))","v":""},{"$f":"IF('TSA Input'!J4308=\"\",\"\",IF(OR('TSA Input'!J4308=\"Yes\",'TSA Input'!J4308=\"Contingent\"),'TSA Input'!I4308,\"\"))","v":""},{"$f":"IF('TSA Input'!J4308=\"\",\"\",IF(OR('TSA Input'!J4308=\"Yes\",'TSA Input'!J4308=\"Contingent\"),'TSA Input'!C4308,\"\"))","v":""},{"$f":"IF('TSA Input'!J4308=\"\",\"\",IF(OR('TSA Input'!J4308=\"Yes\",'TSA Input'!J4308=\"Contingent\"),'TSA Input'!D4308,\"\"))","v":""},{"$f":"IF('TSA Input'!J4308=\"\",\"\",IF(OR('TSA Input'!J4308=\"Yes\",'TSA Input'!J4308=\"Contingent\"),'TSA Input'!G4308,\"\"))","v":""},{"$f":"IF('TSA Input'!J4308=\"\",\"\",IF(OR('TSA Input'!J4308=\"Yes\",'TSA Input'!J4308=\"Contingent\"),'TSA Input'!F4308,\"\"))","v":""},"",{"$f":"IF('TSA Input'!J4308=\"\",\"\",IF(OR('TSA Input'!J4308=\"Yes\",'TSA Input'!J4308=\"Contingent\"),'TSA Input'!D4308,\"\"))","v":""},{"$f":"IF('TSA Input'!J4308=\"\",\"\",IF(OR('TSA Input'!J4308=\"Yes\",'TSA Input'!J4308=\"Contingent\"),'TSA Input'!G4308,\"\"))","v":""},{"$f":"IF('TSA Input'!J4308=\"\",\"\",IF(OR('TSA Input'!J4308=\"Yes\",'TSA Input'!J4308=\"Contingent\"),'TSA Input'!F4308,\"\"))","v":""},"","Required","Required"]
["",null,{"$f":"IF('TSA Input'!J4309=\"\",\"\",IF(OR('TSA Input'!J4309=\"Yes\",'TSA Input'!J4309=\"Contingent\"),'TSA Input'!B4309,\"Ineligible\"))","v":""},{"$f":"IF('TSA Input'!J4309=\"\",\"\",IF(OR('TSA Input'!J4309=\"Yes\",'TSA Input'!J4309=\"Contingent\"),'TSA Input'!I4309,\"\"))","v":""},{"$f":"IF('TSA Input'!J4309=\"\",\"\",IF(OR('TSA Input'!J4309=\"Yes\",'TSA Input'!J4309=\"Contingent\"),'TSA Input'!C4309,\"\"))","v":""},{"$f":"IF('TSA Input'!J4309=\"\",\"\",IF(OR('TSA Input'!J4309=\"Yes\",'TSA Input'!J4309=\"Contingent\"),'TSA Input'!D4309,\"\"))","v":""},{"$f":"IF('TSA Input'!J4309=\"\",\"\",IF(OR('TSA Input'!J4309=\"Yes\",'TSA Input'!J4309=\"Contingent\"),'TSA Input'!G4309,\"\"))","v":""},{"$f":"IF('TSA Input'!J4309=\"\",\"\",IF(OR('TSA Input'!J4309=\"Yes\",'TSA Input'!J4309=\"Contingent\"),'TSA Input'!F4309,\"\"))","v":""},"",{"$f":"IF('TSA Input'!J4309=\"\",\"\",IF(OR('TSA Input'!J4309=\"Yes\",'TSA Input'!J4309=\"Contingent\"),'TSA Input'!D4309,\"\"))","v":""},{"$f":"IF('TSA Input'!J4309=\"\",\"\",IF(OR('TSA Input'!J4309=\"Yes\",'TSA Input'!J4309=\"Contingent\"),'TSA Input'!G4309,\"\"))","v":""},{"$f":"IF('TSA Input'!J4309=\"\",\"\",IF(OR('TSA Input'!J4309=\"Yes\",'TSA Input'!J4309=\"Contingent\"),'TSA Input'!F4309,\"\"))","v":""},"","Required","Required"]
["",null,{"$f":"IF('TSA Input'!J4310=\"\",\"\",IF(OR('TSA Input'!J4310=\"Yes\",'TSA Input'!J4310=\"Contingent\"),'TSA Input'!B4310,\"Ineligible\"))","v":""},{"$f":"IF('TSA Input'!J4310=\"\",\"\",IF(OR('TSA Input'!J4310=\"Yes\",'TSA Input'!J4310=\"Contingent\"),'TSA Input'!I4310,\"\"))","v":""},{"$f":"IF('TSA Input'!J4310=\"\",\"\",IF(OR('TSA Input'!J4310=\"Yes\",'TSA Input'!J4310=\"Contingent\"),'TSA Input'!C4310,\"\"))","v":""},{"$f":"IF('TSA Input'!J4310=\"\",\"\",IF(OR('TSA Input'!J4310=\"Yes\",'TSA Input'!J4310=\"Contingent\"),'TSA Input'!D4310,\"\"))","v":""},{"$f":"IF('TSA Input'!J4310=\"\",\"\",IF(OR('TSA Input'!J4310=\"Yes\",'TSA Input'!J4310=\"Contingent\"),'TSA Input'!G4310,\"\"))","v":""},{"$f":"IF('TSA Input'!J4310=\"\",\"\",IF(OR('TSA Input'!J4310=\"Yes\",'TSA Input'!J4310=\"Contingent\"),'TSA Input'!F4310,\"\"))","v":""},"",{"$f":"IF('TSA Input'!J4310=\"\",\"\",IF(OR('TSA Input'!J4310=\"Yes\",'TSA Input'!J4310=\"Contingent\"),'TSA Input'!D4310,\"\"))","v":""},{"$f":"IF('TSA Input'!J4310=\"\",\"\",IF(OR('TSA Input'!J4310=\"Yes\",'TSA Input'!J4310=\"Contingent\"),'TSA Input'!G4310,\"\"))","v":""},{"$f":"IF('TSA Input'!J4310=\"\",\"\",IF(OR('TSA Input'!J4310=\"Yes\",'TSA Input'!J4310=\"Contingent\"),'TSA Input'!F4310,\"\"))","v":""},"","Required","Required"]
["",null,{"$f":"IF('TSA Input'!J4311=\"\",\"\",IF(OR('TSA Input'!J4311=\"Yes\",'TSA Input'!J4311=\"Contingent\"),'TSA Input'!B4311,\"Ineligible\"))","v":""},{"$f":"IF('TSA Input'!J4311=\"\",\"\",IF(OR('TSA Input'!J4311=\"Yes\",'TSA Input'!J4311=\"Contingent\"),'TSA Input'!I4311,\"\"))","v":""},{"$f":"IF('TSA Input'!J4311=\"\",\"\",IF(OR('TSA Input'!J4311=\"Yes\",'TSA Input'!J4311=\"Contingent\"),'TSA Input'!C4311,\"\"))","v":""},{"$f":"IF('TSA Input'!J4311=\"\",\"\",IF(OR('TSA Input'!J4311=\"Yes\",'TSA Input'!J4311=\"Contingent\"),'TSA Input'!D4311,\"\"))","v":""},{"$f":"IF('TSA Input'!J4311=\"\",\"\",IF(OR('TSA Input'!J4311=\"Yes\",'TSA Input'!J4311=\"Contingent\"),'TSA Input'!G4311,\"\"))","v":""},{"$f":"IF('TSA Input'!J4311=\"\",\"\",IF(OR('TSA Input'!J4311=\"Yes\",'TSA Input'!J4311=\"Contingent\"),'TSA Input'!F4311,\"\"))","v":""},"",{"$f":"IF('TSA Input'!J4311=\"\",\"\",IF(OR('TSA Input'!J4311=\"Yes\",'TSA Input'!J4311=\"Contingent\"),'TSA Input'!D4311,\"\"))","v":""},{"$f":"IF('TSA Input'!J4311=\"\",\"\",IF(OR('TSA Input'!J4311=\"Yes\",'TSA Input'!J4311=\"Contingent\"),'TSA Input'!G4311,\"\"))","v":""},{"$f":"IF('TSA Input'!J4311=\"\",\"\",IF(OR('TSA Input'!J4311=\"Yes\",'TSA Input'!J4311=\"Contingent\"),'TSA Input'!F4311,\"\"))","v":""},"","Required","Required"]
["",null,{"$f":"IF('TSA Input'!J4312=\"\",\"\",IF(OR('TSA Input'!J4312=\"Yes\",'TSA Input'!J4312=\"Contingent\"),'TSA Input'!B4312,\"Ineligible\"))","v":""},{"$f":"IF('TSA Input'!J4312=\"\",\"\",IF(OR('TSA Input'!J4312=\"Yes\",'TSA Input'!J4312=\"Contingent\"),'TSA Input'!I4312,\"\"))","v":""},{"$f":"IF('TSA Input'!J4312=\"\",\"\",IF(OR('TSA Input'!J4312=\"Yes\",'TSA Input'!J4312=\"Contingent\"),'TSA Input'!C4312,\"\"))","v":""},{"$f":"IF('TSA Input'!J4312=\"\",\"\",IF(OR('TSA Input'!J4312=\"Yes\",'TSA Input'!J4312=\"Contingent\"),'TSA Input'!D4312,\"\"))","v":""},{"$f":"IF('TSA Input'!J4312=\"\",\"\",IF(OR('TSA Input'!J4312=\"Yes\",'TSA Input'!J4312=\"Contingent\"),'TSA Input'!G4312,\"\"))","v":""},{"$f":"IF('TSA Input'!J4312=\"\",\"\",IF(OR('TSA Input'!J4312=\"Yes\",'TSA Input'!J4312=\"Contingent\"),'TSA Input'!F4312,\"\"))","v":""},"",{"$f":"IF('TSA Input'!J4312=\"\",\"\",IF(OR('TSA Input'!J4312=\"Yes\",'TSA Input'!J4312=\"Contingent\"),'TSA Input'!D4312,\"\"))","v":""},{"$f":"IF('TSA Input'!J4312=\"\",\"\",IF(OR('TSA Input'!J4312=\"Yes\",'TSA Input'!J4312=\"Contingent\"),'TSA Input'!G4312,\"\"))","v":""},{"$f":"IF('TSA Input'!J4312=\"\",\"\",IF(OR('TSA Input'!J4312=\"Yes\",'TSA Input'!J4312=\"Contingent\"),'TSA Input'!F4312,\"\"))","v":""},"","Required","Required"]
["",null,{"$f":"IF('TSA Input'!J4313=\"\",\"\",IF(OR('TSA Input'!J4313=\"Yes\",'TSA Input'!J4313=\"Contingent\"),'TSA Input'!B4313,\"Ineligible\"))","v":""},{"$f":"IF('TSA Input'!J4313=\"\",\"\",IF(OR('TSA Input'!J4313=\"Yes\",'TSA Input'!J4313=\"Contingent\"),'TSA Input'!I4313,\"\"))","v":""},{"$f":"IF('TSA Input'!J4313=\"\",\"\",IF(OR('TSA Input'!J4313=\"Yes\",'TSA Input'!J4313=\"Contingent\"),'TSA Input'!C4313,\"\"))","v":""},{"$f":"IF('TSA Input'!J4313=\"\",\"\",IF(OR('TSA Input'!J4313=\"Yes\",'TSA Input'!J4313=\"Contingent\"),'TSA Input'!D4313,\"\"))","v":""},{"$f":"IF('TSA Input'!J4313=\"\",\"\",IF(OR('TSA Input'!J4313=\"Yes\",'TSA Input'!J4313=\"Contingent\"),'TSA Input'!G4313,\"\"))","v":""},{"$f":"IF('TSA Input'!J4313=\"\",\"\",IF(OR('TSA Input'!J4313=\"Yes\",'TSA Input'!J4313=\"Contingent\"),'TSA Input'!F4313,\"\"))","v":""},"",{"$f":"IF('TSA Input'!J4313=\"\",\"\",IF(OR('TSA Input'!J4313=\"Yes\",'TSA Input'!J4313=\"Contingent\"),'TSA Input'!D4313,\"\"))","v":""},{"$f":"IF('TSA Input'!J4313=\"\",\"\",IF(OR('TSA Input'!J4313=\"Yes\",'TSA Input'!J4313=\"Contingent\"),'TSA Input'!G4313,\"\"))","v":""},{"$f":"IF('TSA Input'!J4313=\"\",\"\",IF(OR('TSA Input'!J4313=\"Yes\",'TSA Input'!J4313=\"Contingent\"),'TSA Input'!F4313,\"\"))","v":""},"","Required","Required"]
["",null,{"$f":"IF('TSA Input'!J4314=\"\",\"\",IF(OR('TSA Input'!J4314=\"Yes\",'TSA Input'!J4314=\"Contingent\"),'TSA Input'!B4314,\"Ineligible\"))","v":""},{"$f":"IF('TSA Input'!J4314=\"\",\"\",IF(OR('TSA Input'!J4314=\"Yes\",'TSA Input'!J4314=\"Contingent\"),'TSA Input'!I4314,\"\"))","v":""},{"$f":"IF('TSA Input'!J4314=\"\",\"\",IF(OR('TSA Input'!J4314=\"Yes\",'TSA Input'!J4314=\"Contingent\"),'TSA Input'!C4314,\"\"))","v":""},{"$f":"IF('TSA Input'!J4314=\"\",\"\",IF(OR('TSA Input'!J4314=\"Yes\",'TSA Input'!J4314=\"Contingent\"),'TSA Input'!D4314,\"\"))","v":""},{"$f":"IF('TSA Input'!J4314=\"\",\"\",IF(OR('TSA Input'!J4314=\"Yes\",'TSA Input'!J4314=\"Contingent\"),'TSA Input'!G4314,\"\"))","v":""},{"$f":"IF('TSA Input'!J4314=\"\",\"\",IF(OR('TSA Input'!J4314=\"Yes\",'TSA Input'!J4314=\"Contingent\"),'TSA Input'!F4314,\"\"))","v":""},"",{"$f":"IF('TSA Input'!J4314=\"\",\"\",IF(OR('TSA Input'!J4314=\"Yes\",'TSA Input'!J4314=\"Contingent\"),'TSA Input'!D4314,\"\"))","v":""},{"$f":"IF('TSA Input'!J4314=\"\",\"\",IF(OR('TSA Input'!J4314=\"Yes\",'TSA Input'!J4314=\"Contingent\"),'TSA Input'!G4314,\"\"))","v":""},{"$f":"IF('TSA Input'!J4314=\"\",\"\",IF(OR('TSA Input'!J4314=\"Yes\",'TSA Input'!J4314=\"Contingent\"),'TSA Input'!F4314,\"\"))","v":""},"","Required","Required"]
["",null,{"$f":"IF('TSA Input'!J4315=\"\",\"\",IF(OR('TSA Input'!J4315=\"Yes\",'TSA Input'!J4315=\"Contingent\"),'TSA Input'!B4315,\"Ineligible\"))","v":""},{"$f":"IF('TSA Input'!J4315=\"\",\"\",IF(OR('TSA Input'!J4315=\"Yes\",'TSA Input'!J4315=\"Contingent\"),'TSA Input'!I4315,\"\"))","v":""},{"$f":"IF('TSA Input'!J4315=\"\",\"\",IF(OR('TSA Input'!J4315=\"Yes\",'TSA Input'!J4315=\"Contingent\"),'TSA Input'!C4315,\"\"))","v":""},{"$f":"IF('TSA Input'!J4315=\"\",\"\",IF(OR('TSA Input'!J4315=\"Yes\",'TSA Input'!J4315=\"Contingent\"),'TSA Input'!D4315,\"\"))","v":""},{"$f":"IF('TSA Input'!J4315=\"\",\"\",IF(OR('TSA Input'!J4315=\"Yes\",'TSA Input'!J4315=\"Contingent\"),'TSA Input'!G4315,\"\"))","v":""},{"$f":"IF('TSA Input'!J4315=\"\",\"\",IF(OR('TSA Input'!J4315=\"Yes\",'TSA Input'!J4315=\"Contingent\"),'TSA Input'!F4315,\"\"))","v":""},"",{"$f":"IF('TSA Input'!J4315=\"\",\"\",IF(OR('TSA Input'!J4315=\"Yes\",'TSA Input'!J4315=\"Contingent\"),'TSA Input'!D4315,\"\"))","v":""},{"$f":"IF('TSA Input'!J4315=\"\",\"\",IF(OR('TSA Input'!J4315=\"Yes\",'TSA Input'!J4315=\"Contingent\"),'TSA Input'!G4315,\"\"))","v":""},{"$f":"IF('TSA Input'!J4315=\"\",\"\",IF(OR('TSA Input'!J4315=\"Yes\",'TSA Input'!J4315=\"Contingent\"),'TSA Input'!F4315,\"\"))","v":""},"","Required","Required"]
["",null,{"$f":"IF('TSA Input'!J4316=\"\",\"\",IF(OR('TSA Input'!J4316=\"Yes\",'TSA Input'!J4316=\"Contingent\"),'TSA Input'!B4316,\"Ineligible\"))","v":""},{"$f":"IF('TSA Input'!J4316=\"\",\"\",IF(OR('TSA Input'!J4316=\"Yes\",'TSA Input'!J4316=\"Contingent\"),'TSA Input'!I4316,\"\"))","v":""},{"$f":"IF('TSA Input'!J4316=\"\",\"\",IF(OR('TSA Input'!J4316=\"Yes\",'TSA Input'!J4316=\"Contingent\"),'TSA Input'!C4316,\"\"))","v":""},{"$f":"IF('TSA Input'!J4316=\"\",\"\",IF(OR('TSA Input'!J4316=\"Yes\",'TSA Input'!J4316=\"Contingent\"),'TSA Input'!D4316,\"\"))","v":""},{"$f":"IF('TSA Input'!J4316=\"\",\"\",IF(OR('TSA Input'!J4316=\"Yes\",'TSA Input'!J4316=\"Contingent\"),'TSA Input'!G4316,\"\"))","v":""},{"$f":"IF('TSA Input'!J4316=\"\",\"\",IF(OR('TSA Input'!J4316=\"Yes\",'TSA Input'!J4316=\"Contingent\"),'TSA Input'!F4316,\"\"))","v":""},"",{"$f":"IF('TSA Input'!J4316=\"\",\"\",IF(OR('TSA Input'!J4316=\"Yes\",'TSA Input'!J4316=\"Contingent\"),'TSA Input'!D4316,\"\"))","v":""},{"$f":"IF('TSA Input'!J4316=\"\",\"\",IF(OR('TSA Input'!J4316=\"Yes\",'TSA Input'!J4316=\"Contingent\"),'TSA Input'!G4316,\"\"))","v":""},{"$f":"IF('TSA Input'!J4316=\"\",\"\",IF(OR('TSA Input'!J4316=\"Yes\",'TSA Input'!J4316=\"Contingent\"),'TSA Input'!F4316,\"\"))","v":""},"","Required","Required"]
["",null,{"$f":"IF('TSA Input'!J4317=\"\",\"\",IF(OR('TSA Input'!J4317=\"Yes\",'TSA Input'!J4317=\"Contingent\"),'TSA Input'!B4317,\"Ineligible\"))","v":""},{"$f":"IF('TSA Input'!J4317=\"\",\"\",IF(OR('TSA Input'!J4317=\"Yes\",'TSA Input'!J4317=\"Contingent\"),'TSA Input'!I4317,\"\"))","v":""},{"$f":"IF('TSA Input'!J4317=\"\",\"\",IF(OR('TSA Input'!J4317=\"Yes\",'TSA Input'!J4317=\"Contingent\"),'TSA Input'!C4317,\"\"))","v":""},{"$f":"IF('TSA Input'!J4317=\"\",\"\",IF(OR('TSA Input'!J4317=\"Yes\",'TSA Input'!J4317=\"Contingent\"),'TSA Input'!D4317,\"\"))","v":""},{"$f":"IF('TSA Input'!J4317=\"\",\"\",IF(OR('TSA Input'!J4317=\"Yes\",'TSA Input'!J4317=\"Contingent\"),'TSA Input'!G4317,\"\"))","v":""},{"$f":"IF('TSA Input'!J4317=\"\",\"\",IF(OR('TSA Input'!J4317=\"Yes\",'TSA Input'!J4317=\"Contingent\"),'TSA Input'!F4317,\"\"))","v":""},"",{"$f":"IF('TSA Input'!J4317=\"\",\"\",IF(OR('TSA Input'!J4317=\"Yes\",'TSA Input'!J4317=\"Contingent\"),'TSA Input'!D4317,\"\"))","v":""},{"$f":"IF('TSA Input'!J4317=\"\",\"\",IF(OR('TSA Input'!J4317=\"Yes\",'TSA Input'!J4317=\"Contingent\"),'TSA Input'!G4317,\"\"))","v":""},{"$f":"IF('TSA Input'!J4317=\"\",\"\",IF(OR('TSA Input'!J4317=\"Yes\",'TSA Input'!J4317=\"Contingent\"),'TSA Input'!F4317,\"\"))","v":""},"","Required","Required"]
["",null,{"$f":"IF('TSA Input'!J4318=\"\",\"\",IF(OR('TSA Input'!J4318=\"Yes\",'TSA Input'!J4318=\"Contingent\"),'TSA Input'!B4318,\"Ineligible\"))","v":""},{"$f":"IF('TSA Input'!J4318=\"\",\"\",IF(OR('TSA Input'!J4318=\"Yes\",'TSA Input'!J4318=\"Contingent\"),'TSA Input'!I4318,\"\"))","v":""},{"$f":"IF('TSA Input'!J4318=\"\",\"\",IF(OR('TSA Input'!J4318=\"Yes\",'TSA Input'!J4318=\"Contingent\"),'TSA Input'!C4318,\"\"))","v":""},{"$f":"IF('TSA Input'!J4318=\"\",\"\",IF(OR('TSA Input'!J4318=\"Yes\",'TSA Input'!J4318=\"Contingent\"),'TSA Input'!D4318,\"\"))","v":""},{"$f":"IF('TSA Input'!J4318=\"\",\"\",IF(OR('TSA Input'!J4318=\"Yes\",'TSA Input'!J4318=\"Contingent\"),'TSA Input'!G4318,\"\"))","v":""},{"$f":"IF('TSA Input'!J4318=\"\",\"\",IF(OR('TSA Input'!J4318=\"Yes\",'TSA Input'!J4318=\"Contingent\"),'TSA Input'!F4318,\"\"))","v":""},"",{"$f":"IF('TSA Input'!J4318=\"\",\"\",IF(OR('TSA Input'!J4318=\"Yes\",'TSA Input'!J4318=\"Contingent\"),'TSA Input'!D4318,\"\"))","v":""},{"$f":"IF('TSA Input'!J4318=\"\",\"\",IF(OR('TSA Input'!J4318=\"Yes\",'TSA Input'!J4318=\"Contingent\"),'TSA Input'!G4318,\"\"))","v":""},{"$f":"IF('TSA Input'!J4318=\"\",\"\",IF(OR('TSA Input'!J4318=\"Yes\",'TSA Input'!J4318=\"Contingent\"),'TSA Input'!F4318,\"\"))","v":""},"","Required","Required"]
["",null,{"$f":"IF('TSA Input'!J4319=\"\",\"\",IF(OR('TSA Input'!J4319=\"Yes\",'TSA Input'!J4319=\"Contingent\"),'TSA Input'!B4319,\"Ineligible\"))","v":""},{"$f":"IF('TSA Input'!J4319=\"\",\"\",IF(OR('TSA Input'!J4319=\"Yes\",'TSA Input'!J4319=\"Contingent\"),'TSA Input'!I4319,\"\"))","v":""},{"$f":"IF('TSA Input'!J4319=\"\",\"\",IF(OR('TSA Input'!J4319=\"Yes\",'TSA Input'!J4319=\"Contingent\"),'TSA Input'!C4319,\"\"))","v":""},{"$f":"IF('TSA Input'!J4319=\"\",\"\",IF(OR('TSA Input'!J4319=\"Yes\",'TSA Input'!J4319=\"Contingent\"),'TSA Input'!D4319,\"\"))","v":""},{"$f":"IF('TSA Input'!J4319=\"\",\"\",IF(OR('TSA Input'!J4319=\"Yes\",'TSA Input'!J4319=\"Contingent\"),'TSA Input'!G4319,\"\"))","v":""},{"$f":"IF('TSA Input'!J4319=\"\",\"\",IF(OR('TSA Input'!J4319=\"Yes\",'TSA Input'!J4319=\"Contingent\"),'TSA Input'!F4319,\"\"))","v":""},"",{"$f":"IF('TSA Input'!J4319=\"\",\"\",IF(OR('TSA Input'!J4319=\"Yes\",'TSA Input'!J4319=\"Contingent\"),'TSA Input'!D4319,\"\"))","v":""},{"$f":"IF('TSA Input'!J4319=\"\",\"\",IF(OR('TSA Input'!J4319=\"Yes\",'TSA Input'!J4319=\"Contingent\"),'TSA Input'!G4319,\"\"))","v":""},{"$f":"IF('TSA Input'!J4319=\"\",\"\",IF(OR('TSA Input'!J4319=\"Yes\",'TSA Input'!J4319=\"Contingent\"),'TSA Input'!F4319,\"\"))","v":""},"","Required","Required"]
["",null,{"$f":"IF('TSA Input'!J4320=\"\",\"\",IF(OR('TSA Input'!J4320=\"Yes\",'TSA Input'!J4320=\"Contingent\"),'TSA Input'!B4320,\"Ineligible\"))","v":""},{"$f":"IF('TSA Input'!J4320=\"\",\"\",IF(OR('TSA Input'!J4320=\"Yes\",'TSA Input'!J4320=\"Contingent\"),'TSA Input'!I4320,\"\"))","v":""},{"$f":"IF('TSA Input'!J4320=\"\",\"\",IF(OR('TSA Input'!J4320=\"Yes\",'TSA Input'!J4320=\"Contingent\"),'TSA Input'!C4320,\"\"))","v":""},{"$f":"IF('TSA Input'!J4320=\"\",\"\",IF(OR('TSA Input'!J4320=\"Yes\",'TSA Input'!J4320=\"Contingent\"),'TSA Input'!D4320,\"\"))","v":""},{"$f":"IF('TSA Input'!J4320=\"\",\"\",IF(OR('TSA Input'!J4320=\"Yes\",'TSA Input'!J4320=\"Contingent\"),'TSA Input'!G4320,\"\"))","v":""},{"$f":"IF('TSA Input'!J4320=\"\",\"\",IF(OR('TSA Input'!J4320=\"Yes\",'TSA Input'!J4320=\"Contingent\"),'TSA Input'!F4320,\"\"))","v":""},"",{"$f":"IF('TSA Input'!J4320=\"\",\"\",IF(OR('TSA Input'!J4320=\"Yes\",'TSA Input'!J4320=\"Contingent\"),'TSA Input'!D4320,\"\"))","v":""},{"$f":"IF('TSA Input'!J4320=\"\",\"\",IF(OR('TSA Input'!J4320=\"Yes\",'TSA Input'!J4320=\"Contingent\"),'TSA Input'!G4320,\"\"))","v":""},{"$f":"IF('TSA Input'!J4320=\"\",\"\",IF(OR('TSA Input'!J4320=\"Yes\",'TSA Input'!J4320=\"Contingent\"),'TSA Input'!F4320,\"\"))","v":""},"","Required","Required"]
["",null,{"$f":"IF('TSA Input'!J4321=\"\",\"\",IF(OR('TSA Input'!J4321=\"Yes\",'TSA Input'!J4321=\"Contingent\"),'TSA Input'!B4321,\"Ineligible\"))","v":""},{"$f":"IF('TSA Input'!J4321=\"\",\"\",IF(OR('TSA Input'!J4321=\"Yes\",'TSA Input'!J4321=\"Contingent\"),'TSA Input'!I4321,\"\"))","v":""},{"$f":"IF('TSA Input'!J4321=\"\",\"\",IF(OR('TSA Input'!J4321=\"Yes\",'TSA Input'!J4321=\"Contingent\"),'TSA Input'!C4321,\"\"))","v":""},{"$f":"IF('TSA Input'!J4321=\"\",\"\",IF(OR('TSA Input'!J4321=\"Yes\",'TSA Input'!J4321=\"Contingent\"),'TSA Input'!D4321,\"\"))","v":""},{"$f":"IF('TSA Input'!J4321=\"\",\"\",IF(OR('TSA Input'!J4321=\"Yes\",'TSA Input'!J4321=\"Contingent\"),'TSA Input'!G4321,\"\"))","v":""},{"$f":"IF('TSA Input'!J4321=\"\",\"\",IF(OR('TSA Input'!J4321=\"Yes\",'TSA Input'!J4321=\"Contingent\"),'TSA Input'!F4321,\"\"))","v":""},"",{"$f":"IF('TSA Input'!J4321=\"\",\"\",IF(OR('TSA Input'!J4321=\"Yes\",'TSA Input'!J4321=\"Contingent\"),'TSA Input'!D4321,\"\"))","v":""},{"$f":"IF('TSA Input'!J4321=\"\",\"\",IF(OR('TSA Input'!J4321=\"Yes\",'TSA Input'!J4321=\"Contingent\"),'TSA Input'!G4321,\"\"))","v":""},{"$f":"IF('TSA Input'!J4321=\"\",\"\",IF(OR('TSA Input'!J4321=\"Yes\",'TSA Input'!J4321=\"Contingent\"),'TSA Input'!F4321,\"\"))","v":""},"","Required","Required"]
["",null,{"$f":"IF('TSA Input'!J4322=\"\",\"\",IF(OR('TSA Input'!J4322=\"Yes\",'TSA Input'!J4322=\"Contingent\"),'TSA Input'!B4322,\"Ineligible\"))","v":""},{"$f":"IF('TSA Input'!J4322=\"\",\"\",IF(OR('TSA Input'!J4322=\"Yes\",'TSA Input'!J4322=\"Contingent\"),'TSA Input'!I4322,\"\"))","v":""},{"$f":"IF('TSA Input'!J4322=\"\",\"\",IF(OR('TSA Input'!J4322=\"Yes\",'TSA Input'!J4322=\"Contingent\"),'TSA Input'!C4322,\"\"))","v":""},{"$f":"IF('TSA Input'!J4322=\"\",\"\",IF(OR('TSA Input'!J4322=\"Yes\",'TSA Input'!J4322=\"Contingent\"),'TSA Input'!D4322,\"\"))","v":""},{"$f":"IF('TSA Input'!J4322=\"\",\"\",IF(OR('TSA Input'!J4322=\"Yes\",'TSA Input'!J4322=\"Contingent\"),'TSA Input'!G4322,\"\"))","v":""},{"$f":"IF('TSA Input'!J4322=\"\",\"\",IF(OR('TSA Input'!J4322=\"Yes\",'TSA Input'!J4322=\"Contingent\"),'TSA Input'!F4322,\"\"))","v":""},"",{"$f":"IF('TSA Input'!J4322=\"\",\"\",IF(OR('TSA Input'!J4322=\"Yes\",'TSA Input'!J4322=\"Contingent\"),'TSA Input'!D4322,\"\"))","v":""},{"$f":"IF('TSA Input'!J4322=\"\",\"\",IF(OR('TSA Input'!J4322=\"Yes\",'TSA Input'!J4322=\"Contingent\"),'TSA Input'!G4322,\"\"))","v":""},{"$f":"IF('TSA Input'!J4322=\"\",\"\",IF(OR('TSA Input'!J4322=\"Yes\",'TSA Input'!J4322=\"Contingent\"),'TSA Input'!F4322,\"\"))","v":""},"","Required","Required"]
["",null,{"$f":"IF('TSA Input'!J4323=\"\",\"\",IF(OR('TSA Input'!J4323=\"Yes\",'TSA Input'!J4323=\"Contingent\"),'TSA Input'!B4323,\"Ineligible\"))","v":""},{"$f":"IF('TSA Input'!J4323=\"\",\"\",IF(OR('TSA Input'!J4323=\"Yes\",'TSA Input'!J4323=\"Contingent\"),'TSA Input'!I4323,\"\"))","v":""},{"$f":"IF('TSA Input'!J4323=\"\",\"\",IF(OR('TSA Input'!J4323=\"Yes\",'TSA Input'!J4323=\"Contingent\"),'TSA Input'!C4323,\"\"))","v":""},{"$f":"IF('TSA Input'!J4323=\"\",\"\",IF(OR('TSA Input'!J4323=\"Yes\",'TSA Input'!J4323=\"Contingent\"),'TSA Input'!D4323,\"\"))","v":""},{"$f":"IF('TSA Input'!J4323=\"\",\"\",IF(OR('TSA Input'!J4323=\"Yes\",'TSA Input'!J4323=\"Contingent\"),'TSA Input'!G4323,\"\"))","v":""},{"$f":"IF('TSA Input'!J4323=\"\",\"\",IF(OR('TSA Input'!J4323=\"Yes\",'TSA Input'!J4323=\"Contingent\"),'TSA Input'!F4323,\"\"))","v":""},"",{"$f":"IF('TSA Input'!J4323=\"\",\"\",IF(OR('TSA Input'!J4323=\"Yes\",'TSA Input'!J4323=\"Contingent\"),'TSA Input'!D4323,\"\"))","v":""},{"$f":"IF('TSA Input'!J4323=\"\",\"\",IF(OR('TSA Input'!J4323=\"Yes\",'TSA Input'!J4323=\"Contingent\"),'TSA Input'!G4323,\"\"))","v":""},{"$f":"IF('TSA Input'!J4323=\"\",\"\",IF(OR('TSA Input'!J4323=\"Yes\",'TSA Input'!J4323=\"Contingent\"),'TSA Input'!F4323,\"\"))","v":""},"","Required","Required"]
["",null,{"$f":"IF('TSA Input'!J4324=\"\",\"\",IF(OR('TSA Input'!J4324=\"Yes\",'TSA Input'!J4324=\"Contingent\"),'TSA Input'!B4324,\"Ineligible\"))","v":""},{"$f":"IF('TSA Input'!J4324=\"\",\"\",IF(OR('TSA Input'!J4324=\"Yes\",'TSA Input'!J4324=\"Contingent\"),'TSA Input'!I4324,\"\"))","v":""},{"$f":"IF('TSA Input'!J4324=\"\",\"\",IF(OR('TSA Input'!J4324=\"Yes\",'TSA Input'!J4324=\"Contingent\"),'TSA Input'!C4324,\"\"))","v":""},{"$f":"IF('TSA Input'!J4324=\"\",\"\",IF(OR('TSA Input'!J4324=\"Yes\",'TSA Input'!J4324=\"Contingent\"),'TSA Input'!D4324,\"\"))","v":""},{"$f":"IF('TSA Input'!J4324=\"\",\"\",IF(OR('TSA Input'!J4324=\"Yes\",'TSA Input'!J4324=\"Contingent\"),'TSA Input'!G4324,\"\"))","v":""},{"$f":"IF('TSA Input'!J4324=\"\",\"\",IF(OR('TSA Input'!J4324=\"Yes\",'TSA Input'!J4324=\"Contingent\"),'TSA Input'!F4324,\"\"))","v":""},"",{"$f":"IF('TSA Input'!J4324=\"\",\"\",IF(OR('TSA Input'!J4324=\"Yes\",'TSA Input'!J4324=\"Contingent\"),'TSA Input'!D4324,\"\"))","v":""},{"$f":"IF('TSA Input'!J4324=\"\",\"\",IF(OR('TSA Input'!J4324=\"Yes\",'TSA Input'!J4324=\"Contingent\"),'TSA Input'!G4324,\"\"))","v":""},{"$f":"IF('TSA Input'!J4324=\"\",\"\",IF(OR('TSA Input'!J4324=\"Yes\",'TSA Input'!J4324=\"Contingent\"),'TSA Input'!F4324,\"\"))","v":""},"","Required","Required"]
["",null,{"$f":"IF('TSA Input'!J4325=\"\",\"\",IF(OR('TSA Input'!J4325=\"Yes\",'TSA Input'!J4325=\"Contingent\"),'TSA Input'!B4325,\"Ineligible\"))","v":""},{"$f":"IF('TSA Input'!J4325=\"\",\"\",IF(OR('TSA Input'!J4325=\"Yes\",'TSA Input'!J4325=\"Contingent\"),'TSA Input'!I4325,\"\"))","v":""},{"$f":"IF('TSA Input'!J4325=\"\",\"\",IF(OR('TSA Input'!J4325=\"Yes\",'TSA Input'!J4325=\"Contingent\"),'TSA Input'!C4325,\"\"))","v":""},{"$f":"IF('TSA Input'!J4325=\"\",\"\",IF(OR('TSA Input'!J4325=\"Yes\",'TSA Input'!J4325=\"Contingent\"),'TSA Input'!D4325,\"\"))","v":""},{"$f":"IF('TSA Input'!J4325=\"\",\"\",IF(OR('TSA Input'!J4325=\"Yes\",'TSA Input'!J4325=\"Contingent\"),'TSA Input'!G4325,\"\"))","v":""},{"$f":"IF('TSA Input'!J4325=\"\",\"\",IF(OR('TSA Input'!J4325=\"Yes\",'TSA Input'!J4325=\"Contingent\"),'TSA Input'!F4325,\"\"))","v":""},"",{"$f":"IF('TSA Input'!J4325=\"\",\"\",IF(OR('TSA Input'!J4325=\"Yes\",'TSA Input'!J4325=\"Contingent\"),'TSA Input'!D4325,\"\"))","v":""},{"$f":"IF('TSA Input'!J4325=\"\",\"\",IF(OR('TSA Input'!J4325=\"Yes\",'TSA Input'!J4325=\"Contingent\"),'TSA Input'!G4325,\"\"))","v":""},{"$f":"IF('TSA Input'!J4325=\"\",\"\",IF(OR('TSA Input'!J4325=\"Yes\",'TSA Input'!J4325=\"Contingent\"),'TSA Input'!F4325,\"\"))","v":""},"","Required","Required"]
["",null,{"$f":"IF('TSA Input'!J4326=\"\",\"\",IF(OR('TSA Input'!J4326=\"Yes\",'TSA Input'!J4326=\"Contingent\"),'TSA Input'!B4326,\"Ineligible\"))","v":""},{"$f":"IF('TSA Input'!J4326=\"\",\"\",IF(OR('TSA Input'!J4326=\"Yes\",'TSA Input'!J4326=\"Contingent\"),'TSA Input'!I4326,\"\"))","v":""},{"$f":"IF('TSA Input'!J4326=\"\",\"\",IF(OR('TSA Input'!J4326=\"Yes\",'TSA Input'!J4326=\"Contingent\"),'TSA Input'!C4326,\"\"))","v":""},{"$f":"IF('TSA Input'!J4326=\"\",\"\",IF(OR('TSA Input'!J4326=\"Yes\",'TSA Input'!J4326=\"Contingent\"),'TSA Input'!D4326,\"\"))","v":""},{"$f":"IF('TSA Input'!J4326=\"\",\"\",IF(OR('TSA Input'!J4326=\"Yes\",'TSA Input'!J4326=\"Contingent\"),'TSA Input'!G4326,\"\"))","v":""},{"$f":"IF('TSA Input'!J4326=\"\",\"\",IF(OR('TSA Input'!J4326=\"Yes\",'TSA Input'!J4326=\"Contingent\"),'TSA Input'!F4326,\"\"))","v":""},"",{"$f":"IF('TSA Input'!J4326=\"\",\"\",IF(OR('TSA Input'!J4326=\"Yes\",'TSA Input'!J4326=\"Contingent\"),'TSA Input'!D4326,\"\"))","v":""},{"$f":"IF('TSA Input'!J4326=\"\",\"\",IF(OR('TSA Input'!J4326=\"Yes\",'TSA Input'!J4326=\"Contingent\"),'TSA Input'!G4326,\"\"))","v":""},{"$f":"IF('TSA Input'!J4326=\"\",\"\",IF(OR('TSA Input'!J4326=\"Yes\",'TSA Input'!J4326=\"Contingent\"),'TSA Input'!F4326,\"\"))","v":""},"","Required","Required"]
["",null,{"$f":"IF('TSA Input'!J4327=\"\",\"\",IF(OR('TSA Input'!J4327=\"Yes\",'TSA Input'!J4327=\"Contingent\"),'TSA Input'!B4327,\"Ineligible\"))","v":""},{"$f":"IF('TSA Input'!J4327=\"\",\"\",IF(OR('TSA Input'!J4327=\"Yes\",'TSA Input'!J4327=\"Contingent\"),'TSA Input'!I4327,\"\"))","v":""},{"$f":"IF('TSA Input'!J4327=\"\",\"\",IF(OR('TSA Input'!J4327=\"Yes\",'TSA Input'!J4327=\"Contingent\"),'TSA Input'!C4327,\"\"))","v":""},{"$f":"IF('TSA Input'!J4327=\"\",\"\",IF(OR('TSA Input'!J4327=\"Yes\",'TSA Input'!J4327=\"Contingent\"),'TSA Input'!D4327,\"\"))","v":""},{"$f":"IF('TSA Input'!J4327=\"\",\"\",IF(OR('TSA Input'!J4327=\"Yes\",'TSA Input'!J4327=\"Contingent\"),'TSA Input'!G4327,\"\"))","v":""},{"$f":"IF('TSA Input'!J4327=\"\",\"\",IF(OR('TSA Input'!J4327=\"Yes\",'TSA Input'!J4327=\"Contingent\"),'TSA Input'!F4327,\"\"))","v":""},"",{"$f":"IF('TSA Input'!J4327=\"\",\"\",IF(OR('TSA Input'!J4327=\"Yes\",'TSA Input'!J4327=\"Contingent\"),'TSA Input'!D4327,\"\"))","v":""},{"$f":"IF('TSA Input'!J4327=\"\",\"\",IF(OR('TSA Input'!J4327=\"Yes\",'TSA Input'!J4327=\"Contingent\"),'TSA Input'!G4327,\"\"))","v":""},{"$f":"IF('TSA Input'!J4327=\"\",\"\",IF(OR('TSA Input'!J4327=\"Yes\",'TSA Input'!J4327=\"Contingent\"),'TSA Input'!F4327,\"\"))","v":""},"","Required","Required"]
["",null,{"$f":"IF('TSA Input'!J4328=\"\",\"\",IF(OR('TSA Input'!J4328=\"Yes\",'TSA Input'!J4328=\"Contingent\"),'TSA Input'!B4328,\"Ineligible\"))","v":""},{"$f":"IF('TSA Input'!J4328=\"\",\"\",IF(OR('TSA Input'!J4328=\"Yes\",'TSA Input'!J4328=\"Contingent\"),'TSA Input'!I4328,\"\"))","v":""},{"$f":"IF('TSA Input'!J4328=\"\",\"\",IF(OR('TSA Input'!J4328=\"Yes\",'TSA Input'!J4328=\"Contingent\"),'TSA Input'!C4328,\"\"))","v":""},{"$f":"IF('TSA Input'!J4328=\"\",\"\",IF(OR('TSA Input'!J4328=\"Yes\",'TSA Input'!J4328=\"Contingent\"),'TSA Input'!D4328,\"\"))","v":""},{"$f":"IF('TSA Input'!J4328=\"\",\"\",IF(OR('TSA Input'!J4328=\"Yes\",'TSA Input'!J4328=\"Contingent\"),'TSA Input'!G4328,\"\"))","v":""},{"$f":"IF('TSA Input'!J4328=\"\",\"\",IF(OR('TSA Input'!J4328=\"Yes\",'TSA Input'!J4328=\"Contingent\"),'TSA Input'!F4328,\"\"))","v":""},"",{"$f":"IF('TSA Input'!J4328=\"\",\"\",IF(OR('TSA Input'!J4328=\"Yes\",'TSA Input'!J4328=\"Contingent\"),'TSA Input'!D4328,\"\"))","v":""},{"$f":"IF('TSA Input'!J4328=\"\",\"\",IF(OR('TSA Input'!J4328=\"Yes\",'TSA Input'!J4328=\"Contingent\"),'TSA Input'!G4328,\"\"))","v":""},{"$f":"IF('TSA Input'!J4328=\"\",\"\",IF(OR('TSA Input'!J4328=\"Yes\",'TSA Input'!J4328=\"Contingent\"),'TSA Input'!F4328,\"\"))","v":""},"","Required","Required"]
["",null,{"$f":"IF('TSA Input'!J4329=\"\",\"\",IF(OR('TSA Input'!J4329=\"Yes\",'TSA Input'!J4329=\"Contingent\"),'TSA Input'!B4329,\"Ineligible\"))","v":""},{"$f":"IF('TSA Input'!J4329=\"\",\"\",IF(OR('TSA Input'!J4329=\"Yes\",'TSA Input'!J4329=\"Contingent\"),'TSA Input'!I4329,\"\"))","v":""},{"$f":"IF('TSA Input'!J4329=\"\",\"\",IF(OR('TSA Input'!J4329=\"Yes\",'TSA Input'!J4329=\"Contingent\"),'TSA Input'!C4329,\"\"))","v":""},{"$f":"IF('TSA Input'!J4329=\"\",\"\",IF(OR('TSA Input'!J4329=\"Yes\",'TSA Input'!J4329=\"Contingent\"),'TSA Input'!D4329,\"\"))","v":""},{"$f":"IF('TSA Input'!J4329=\"\",\"\",IF(OR('TSA Input'!J4329=\"Yes\",'TSA Input'!J4329=\"Contingent\"),'TSA Input'!G4329,\"\"))","v":""},{"$f":"IF('TSA Input'!J4329=\"\",\"\",IF(OR('TSA Input'!J4329=\"Yes\",'TSA Input'!J4329=\"Contingent\"),'TSA Input'!F4329,\"\"))","v":""},"",{"$f":"IF('TSA Input'!J4329=\"\",\"\",IF(OR('TSA Input'!J4329=\"Yes\",'TSA Input'!J4329=\"Contingent\"),'TSA Input'!D4329,\"\"))","v":""},{"$f":"IF('TSA Input'!J4329=\"\",\"\",IF(OR('TSA Input'!J4329=\"Yes\",'TSA Input'!J4329=\"Contingent\"),'TSA Input'!G4329,\"\"))","v":""},{"$f":"IF('TSA Input'!J4329=\"\",\"\",IF(OR('TSA Input'!J4329=\"Yes\",'TSA Input'!J4329=\"Contingent\"),'TSA Input'!F4329,\"\"))","v":""},"","Required","Required"]
["",null,{"$f":"IF('TSA Input'!J4330=\"\",\"\",IF(OR('TSA Input'!J4330=\"Yes\",'TSA Input'!J4330=\"Contingent\"),'TSA Input'!B4330,\"Ineligible\"))","v":""},{"$f":"IF('TSA Input'!J4330=\"\",\"\",IF(OR('TSA Input'!J4330=\"Yes\",'TSA Input'!J4330=\"Contingent\"),'TSA Input'!I4330,\"\"))","v":""},{"$f":"IF('TSA Input'!J4330=\"\",\"\",IF(OR('TSA Input'!J4330=\"Yes\",'TSA Input'!J4330=\"Contingent\"),'TSA Input'!C4330,\"\"))","v":""},{"$f":"IF('TSA Input'!J4330=\"\",\"\",IF(OR('TSA Input'!J4330=\"Yes\",'TSA Input'!J4330=\"Contingent\"),'TSA Input'!D4330,\"\"))","v":""},{"$f":"IF('TSA Input'!J4330=\"\",\"\",IF(OR('TSA Input'!J4330=\"Yes\",'TSA Input'!J4330=\"Contingent\"),'TSA Input'!G4330,\"\"))","v":""},{"$f":"IF('TSA Input'!J4330=\"\",\"\",IF(OR('TSA Input'!J4330=\"Yes\",'TSA Input'!J4330=\"Contingent\"),'TSA Input'!F4330,\"\"))","v":""},"",{"$f":"IF('TSA Input'!J4330=\"\",\"\",IF(OR('TSA Input'!J4330=\"Yes\",'TSA Input'!J4330=\"Contingent\"),'TSA Input'!D4330,\"\"))","v":""},{"$f":"IF('TSA Input'!J4330=\"\",\"\",IF(OR('TSA Input'!J4330=\"Yes\",'TSA Input'!J4330=\"Contingent\"),'TSA Input'!G4330,\"\"))","v":""},{"$f":"IF('TSA Input'!J4330=\"\",\"\",IF(OR('TSA Input'!J4330=\"Yes\",'TSA Input'!J4330=\"Contingent\"),'TSA Input'!F4330,\"\"))","v":""},"","Required","Required"]
["",null,{"$f":"IF('TSA Input'!J4331=\"\",\"\",IF(OR('TSA Input'!J4331=\"Yes\",'TSA Input'!J4331=\"Contingent\"),'TSA Input'!B4331,\"Ineligible\"))","v":""},{"$f":"IF('TSA Input'!J4331=\"\",\"\",IF(OR('TSA Input'!J4331=\"Yes\",'TSA Input'!J4331=\"Contingent\"),'TSA Input'!I4331,\"\"))","v":""},{"$f":"IF('TSA Input'!J4331=\"\",\"\",IF(OR('TSA Input'!J4331=\"Yes\",'TSA Input'!J4331=\"Contingent\"),'TSA Input'!C4331,\"\"))","v":""},{"$f":"IF('TSA Input'!J4331=\"\",\"\",IF(OR('TSA Input'!J4331=\"Yes\",'TSA Input'!J4331=\"Contingent\"),'TSA Input'!D4331,\"\"))","v":""},{"$f":"IF('TSA Input'!J4331=\"\",\"\",IF(OR('TSA Input'!J4331=\"Yes\",'TSA Input'!J4331=\"Contingent\"),'TSA Input'!G4331,\"\"))","v":""},{"$f":"IF('TSA Input'!J4331=\"\",\"\",IF(OR('TSA Input'!J4331=\"Yes\",'TSA Input'!J4331=\"Contingent\"),'TSA Input'!F4331,\"\"))","v":""},"",{"$f":"IF('TSA Input'!J4331=\"\",\"\",IF(OR('TSA Input'!J4331=\"Yes\",'TSA Input'!J4331=\"Contingent\"),'TSA Input'!D4331,\"\"))","v":""},{"$f":"IF('TSA Input'!J4331=\"\",\"\",IF(OR('TSA Input'!J4331=\"Yes\",'TSA Input'!J4331=\"Contingent\"),'TSA Input'!G4331,\"\"))","v":""},{"$f":"IF('TSA Input'!J4331=\"\",\"\",IF(OR('TSA Input'!J4331=\"Yes\",'TSA Input'!J4331=\"Contingent\"),'TSA Input'!F4331,\"\"))","v":""},"","Required","Required"]
["",null,{"$f":"IF('TSA Input'!J4332=\"\",\"\",IF(OR('TSA Input'!J4332=\"Yes\",'TSA Input'!J4332=\"Contingent\"),'TSA Input'!B4332,\"Ineligible\"))","v":""},{"$f":"IF('TSA Input'!J4332=\"\",\"\",IF(OR('TSA Input'!J4332=\"Yes\",'TSA Input'!J4332=\"Contingent\"),'TSA Input'!I4332,\"\"))","v":""},{"$f":"IF('TSA Input'!J4332=\"\",\"\",IF(OR('TSA Input'!J4332=\"Yes\",'TSA Input'!J4332=\"Contingent\"),'TSA Input'!C4332,\"\"))","v":""},{"$f":"IF('TSA Input'!J4332=\"\",\"\",IF(OR('TSA Input'!J4332=\"Yes\",'TSA Input'!J4332=\"Contingent\"),'TSA Input'!D4332,\"\"))","v":""},{"$f":"IF('TSA Input'!J4332=\"\",\"\",IF(OR('TSA Input'!J4332=\"Yes\",'TSA Input'!J4332=\"Contingent\"),'TSA Input'!G4332,\"\"))","v":""},{"$f":"IF('TSA Input'!J4332=\"\",\"\",IF(OR('TSA Input'!J4332=\"Yes\",'TSA Input'!J4332=\"Contingent\"),'TSA Input'!F4332,\"\"))","v":""},"",{"$f":"IF('TSA Input'!J4332=\"\",\"\",IF(OR('TSA Input'!J4332=\"Yes\",'TSA Input'!J4332=\"Contingent\"),'TSA Input'!D4332,\"\"))","v":""},{"$f":"IF('TSA Input'!J4332=\"\",\"\",IF(OR('TSA Input'!J4332=\"Yes\",'TSA Input'!J4332=\"Contingent\"),'TSA Input'!G4332,\"\"))","v":""},{"$f":"IF('TSA Input'!J4332=\"\",\"\",IF(OR('TSA Input'!J4332=\"Yes\",'TSA Input'!J4332=\"Contingent\"),'TSA Input'!F4332,\"\"))","v":""},"","Required","Required"]
["",null,{"$f":"IF('TSA Input'!J4333=\"\",\"\",IF(OR('TSA Input'!J4333=\"Yes\",'TSA Input'!J4333=\"Contingent\"),'TSA Input'!B4333,\"Ineligible\"))","v":""},{"$f":"IF('TSA Input'!J4333=\"\",\"\",IF(OR('TSA Input'!J4333=\"Yes\",'TSA Input'!J4333=\"Contingent\"),'TSA Input'!I4333,\"\"))","v":""},{"$f":"IF('TSA Input'!J4333=\"\",\"\",IF(OR('TSA Input'!J4333=\"Yes\",'TSA Input'!J4333=\"Contingent\"),'TSA Input'!C4333,\"\"))","v":""},{"$f":"IF('TSA Input'!J4333=\"\",\"\",IF(OR('TSA Input'!J4333=\"Yes\",'TSA Input'!J4333=\"Contingent\"),'TSA Input'!D4333,\"\"))","v":""},{"$f":"IF('TSA Input'!J4333=\"\",\"\",IF(OR('TSA Input'!J4333=\"Yes\",'TSA Input'!J4333=\"Contingent\"),'TSA Input'!G4333,\"\"))","v":""},{"$f":"IF('TSA Input'!J4333=\"\",\"\",IF(OR('TSA Input'!J4333=\"Yes\",'TSA Input'!J4333=\"Contingent\"),'TSA Input'!F4333,\"\"))","v":""},"",{"$f":"IF('TSA Input'!J4333=\"\",\"\",IF(OR('TSA Input'!J4333=\"Yes\",'TSA Input'!J4333=\"Contingent\"),'TSA Input'!D4333,\"\"))","v":""},{"$f":"IF('TSA Input'!J4333=\"\",\"\",IF(OR('TSA Input'!J4333=\"Yes\",'TSA Input'!J4333=\"Contingent\"),'TSA Input'!G4333,\"\"))","v":""},{"$f":"IF('TSA Input'!J4333=\"\",\"\",IF(OR('TSA Input'!J4333=\"Yes\",'TSA Input'!J4333=\"Contingent\"),'TSA Input'!F4333,\"\"))","v":""},"","Required","Required"]
["",null,{"$f":"IF('TSA Input'!J4334=\"\",\"\",IF(OR('TSA Input'!J4334=\"Yes\",'TSA Input'!J4334=\"Contingent\"),'TSA Input'!B4334,\"Ineligible\"))","v":""},{"$f":"IF('TSA Input'!J4334=\"\",\"\",IF(OR('TSA Input'!J4334=\"Yes\",'TSA Input'!J4334=\"Contingent\"),'TSA Input'!I4334,\"\"))","v":""},{"$f":"IF('TSA Input'!J4334=\"\",\"\",IF(OR('TSA Input'!J4334=\"Yes\",'TSA Input'!J4334=\"Contingent\"),'TSA Input'!C4334,\"\"))","v":""},{"$f":"IF('TSA Input'!J4334=\"\",\"\",IF(OR('TSA Input'!J4334=\"Yes\",'TSA Input'!J4334=\"Contingent\"),'TSA Input'!D4334,\"\"))","v":""},{"$f":"IF('TSA Input'!J4334=\"\",\"\",IF(OR('TSA Input'!J4334=\"Yes\",'TSA Input'!J4334=\"Contingent\"),'TSA Input'!G4334,\"\"))","v":""},{"$f":"IF('TSA Input'!J4334=\"\",\"\",IF(OR('TSA Input'!J4334=\"Yes\",'TSA Input'!J4334=\"Contingent\"),'TSA Input'!F4334,\"\"))","v":""},"",{"$f":"IF('TSA Input'!J4334=\"\",\"\",IF(OR('TSA Input'!J4334=\"Yes\",'TSA Input'!J4334=\"Contingent\"),'TSA Input'!D4334,\"\"))","v":""},{"$f":"IF('TSA Input'!J4334=\"\",\"\",IF(OR('TSA Input'!J4334=\"Yes\",'TSA Input'!J4334=\"Contingent\"),'TSA Input'!G4334,\"\"))","v":""},{"$f":"IF('TSA Input'!J4334=\"\",\"\",IF(OR('TSA Input'!J4334=\"Yes\",'TSA Input'!J4334=\"Contingent\"),'TSA Input'!F4334,\"\"))","v":""},"","Required","Required"]
["",null,{"$f":"IF('TSA Input'!J4335=\"\",\"\",IF(OR('TSA Input'!J4335=\"Yes\",'TSA Input'!J4335=\"Contingent\"),'TSA Input'!B4335,\"Ineligible\"))","v":""},{"$f":"IF('TSA Input'!J4335=\"\",\"\",IF(OR('TSA Input'!J4335=\"Yes\",'TSA Input'!J4335=\"Contingent\"),'TSA Input'!I4335,\"\"))","v":""},{"$f":"IF('TSA Input'!J4335=\"\",\"\",IF(OR('TSA Input'!J4335=\"Yes\",'TSA Input'!J4335=\"Contingent\"),'TSA Input'!C4335,\"\"))","v":""},{"$f":"IF('TSA Input'!J4335=\"\",\"\",IF(OR('TSA Input'!J4335=\"Yes\",'TSA Input'!J4335=\"Contingent\"),'TSA Input'!D4335,\"\"))","v":""},{"$f":"IF('TSA Input'!J4335=\"\",\"\",IF(OR('TSA Input'!J4335=\"Yes\",'TSA Input'!J4335=\"Contingent\"),'TSA Input'!G4335,\"\"))","v":""},{"$f":"IF('TSA Input'!J4335=\"\",\"\",IF(OR('TSA Input'!J4335=\"Yes\",'TSA Input'!J4335=\"Contingent\"),'TSA Input'!F4335,\"\"))","v":""},"",{"$f":"IF('TSA Input'!J4335=\"\",\"\",IF(OR('TSA Input'!J4335=\"Yes\",'TSA Input'!J4335=\"Contingent\"),'TSA Input'!D4335,\"\"))","v":""},{"$f":"IF('TSA Input'!J4335=\"\",\"\",IF(OR('TSA Input'!J4335=\"Yes\",'TSA Input'!J4335=\"Contingent\"),'TSA Input'!G4335,\"\"))","v":""},{"$f":"IF('TSA Input'!J4335=\"\",\"\",IF(OR('TSA Input'!J4335=\"Yes\",'TSA Input'!J4335=\"Contingent\"),'TSA Input'!F4335,\"\"))","v":""},"","Required","Required"]
["",null,{"$f":"IF('TSA Input'!J4336=\"\",\"\",IF(OR('TSA Input'!J4336=\"Yes\",'TSA Input'!J4336=\"Contingent\"),'TSA Input'!B4336,\"Ineligible\"))","v":""},{"$f":"IF('TSA Input'!J4336=\"\",\"\",IF(OR('TSA Input'!J4336=\"Yes\",'TSA Input'!J4336=\"Contingent\"),'TSA Input'!I4336,\"\"))","v":""},{"$f":"IF('TSA Input'!J4336=\"\",\"\",IF(OR('TSA Input'!J4336=\"Yes\",'TSA Input'!J4336=\"Contingent\"),'TSA Input'!C4336,\"\"))","v":""},{"$f":"IF('TSA Input'!J4336=\"\",\"\",IF(OR('TSA Input'!J4336=\"Yes\",'TSA Input'!J4336=\"Contingent\"),'TSA Input'!D4336,\"\"))","v":""},{"$f":"IF('TSA Input'!J4336=\"\",\"\",IF(OR('TSA Input'!J4336=\"Yes\",'TSA Input'!J4336=\"Contingent\"),'TSA Input'!G4336,\"\"))","v":""},{"$f":"IF('TSA Input'!J4336=\"\",\"\",IF(OR('TSA Input'!J4336=\"Yes\",'TSA Input'!J4336=\"Contingent\"),'TSA Input'!F4336,\"\"))","v":""},"",{"$f":"IF('TSA Input'!J4336=\"\",\"\",IF(OR('TSA Input'!J4336=\"Yes\",'TSA Input'!J4336=\"Contingent\"),'TSA Input'!D4336,\"\"))","v":""},{"$f":"IF('TSA Input'!J4336=\"\",\"\",IF(OR('TSA Input'!J4336=\"Yes\",'TSA Input'!J4336=\"Contingent\"),'TSA Input'!G4336,\"\"))","v":""},{"$f":"IF('TSA Input'!J4336=\"\",\"\",IF(OR('TSA Input'!J4336=\"Yes\",'TSA Input'!J4336=\"Contingent\"),'TSA Input'!F4336,\"\"))","v":""},"","Required","Required"]
["",null,{"$f":"IF('TSA Input'!J4337=\"\",\"\",IF(OR('TSA Input'!J4337=\"Yes\",'TSA Input'!J4337=\"Contingent\"),'TSA Input'!B4337,\"Ineligible\"))","v":""},{"$f":"IF('TSA Input'!J4337=\"\",\"\",IF(OR('TSA Input'!J4337=\"Yes\",'TSA Input'!J4337=\"Contingent\"),'TSA Input'!I4337,\"\"))","v":""},{"$f":"IF('TSA Input'!J4337=\"\",\"\",IF(OR('TSA Input'!J4337=\"Yes\",'TSA Input'!J4337=\"Contingent\"),'TSA Input'!C4337,\"\"))","v":""},{"$f":"IF('TSA Input'!J4337=\"\",\"\",IF(OR('TSA Input'!J4337=\"Yes\",'TSA Input'!J4337=\"Contingent\"),'TSA Input'!D4337,\"\"))","v":""},{"$f":"IF('TSA Input'!J4337=\"\",\"\",IF(OR('TSA Input'!J4337=\"Yes\",'TSA Input'!J4337=\"Contingent\"),'TSA Input'!G4337,\"\"))","v":""},{"$f":"IF('TSA Input'!J4337=\"\",\"\",IF(OR('TSA Input'!J4337=\"Yes\",'TSA Input'!J4337=\"Contingent\"),'TSA Input'!F4337,\"\"))","v":""},"",{"$f":"IF('TSA Input'!J4337=\"\",\"\",IF(OR('TSA Input'!J4337=\"Yes\",'TSA Input'!J4337=\"Contingent\"),'TSA Input'!D4337,\"\"))","v":""},{"$f":"IF('TSA Input'!J4337=\"\",\"\",IF(OR('TSA Input'!J4337=\"Yes\",'TSA Input'!J4337=\"Contingent\"),'TSA Input'!G4337,\"\"))","v":""},{"$f":"IF('TSA Input'!J4337=\"\",\"\",IF(OR('TSA Input'!J4337=\"Yes\",'TSA Input'!J4337=\"Contingent\"),'TSA Input'!F4337,\"\"))","v":""},"","Required","Required"]
["",null,{"$f":"IF('TSA Input'!J4338=\"\",\"\",IF(OR('TSA Input'!J4338=\"Yes\",'TSA Input'!J4338=\"Contingent\"),'TSA Input'!B4338,\"Ineligible\"))","v":""},{"$f":"IF('TSA Input'!J4338=\"\",\"\",IF(OR('TSA Input'!J4338=\"Yes\",'TSA Input'!J4338=\"Contingent\"),'TSA Input'!I4338,\"\"))","v":""},{"$f":"IF('TSA Input'!J4338=\"\",\"\",IF(OR('TSA Input'!J4338=\"Yes\",'TSA Input'!J4338=\"Contingent\"),'TSA Input'!C4338,\"\"))","v":""},{"$f":"IF('TSA Input'!J4338=\"\",\"\",IF(OR('TSA Input'!J4338=\"Yes\",'TSA Input'!J4338=\"Contingent\"),'TSA Input'!D4338,\"\"))","v":""},{"$f":"IF('TSA Input'!J4338=\"\",\"\",IF(OR('TSA Input'!J4338=\"Yes\",'TSA Input'!J4338=\"Contingent\"),'TSA Input'!G4338,\"\"))","v":""},{"$f":"IF('TSA Input'!J4338=\"\",\"\",IF(OR('TSA Input'!J4338=\"Yes\",'TSA Input'!J4338=\"Contingent\"),'TSA Input'!F4338,\"\"))","v":""},"",{"$f":"IF('TSA Input'!J4338=\"\",\"\",IF(OR('TSA Input'!J4338=\"Yes\",'TSA Input'!J4338=\"Contingent\"),'TSA Input'!D4338,\"\"))","v":""},{"$f":"IF('TSA Input'!J4338=\"\",\"\",IF(OR('TSA Input'!J4338=\"Yes\",'TSA Input'!J4338=\"Contingent\"),'TSA Input'!G4338,\"\"))","v":""},{"$f":"IF('TSA Input'!J4338=\"\",\"\",IF(OR('TSA Input'!J4338=\"Yes\",'TSA Input'!J4338=\"Contingent\"),'TSA Input'!F4338,\"\"))","v":""},"","Required","Required"]
["",null,{"$f":"IF('TSA Input'!J4339=\"\",\"\",IF(OR('TSA Input'!J4339=\"Yes\",'TSA Input'!J4339=\"Contingent\"),'TSA Input'!B4339,\"Ineligible\"))","v":""},{"$f":"IF('TSA Input'!J4339=\"\",\"\",IF(OR('TSA Input'!J4339=\"Yes\",'TSA Input'!J4339=\"Contingent\"),'TSA Input'!I4339,\"\"))","v":""},{"$f":"IF('TSA Input'!J4339=\"\",\"\",IF(OR('TSA Input'!J4339=\"Yes\",'TSA Input'!J4339=\"Contingent\"),'TSA Input'!C4339,\"\"))","v":""},{"$f":"IF('TSA Input'!J4339=\"\",\"\",IF(OR('TSA Input'!J4339=\"Yes\",'TSA Input'!J4339=\"Contingent\"),'TSA Input'!D4339,\"\"))","v":""},{"$f":"IF('TSA Input'!J4339=\"\",\"\",IF(OR('TSA Input'!J4339=\"Yes\",'TSA Input'!J4339=\"Contingent\"),'TSA Input'!G4339,\"\"))","v":""},{"$f":"IF('TSA Input'!J4339=\"\",\"\",IF(OR('TSA Input'!J4339=\"Yes\",'TSA Input'!J4339=\"Contingent\"),'TSA Input'!F4339,\"\"))","v":""},"",{"$f":"IF('TSA Input'!J4339=\"\",\"\",IF(OR('TSA Input'!J4339=\"Yes\",'TSA Input'!J4339=\"Contingent\"),'TSA Input'!D4339,\"\"))","v":""},{"$f":"IF('TSA Input'!J4339=\"\",\"\",IF(OR('TSA Input'!J4339=\"Yes\",'TSA Input'!J4339=\"Contingent\"),'TSA Input'!G4339,\"\"))","v":""},{"$f":"IF('TSA Input'!J4339=\"\",\"\",IF(OR('TSA Input'!J4339=\"Yes\",'TSA Input'!J4339=\"Contingent\"),'TSA Input'!F4339,\"\"))","v":""},"","Required","Required"]
["",null,{"$f":"IF('TSA Input'!J4340=\"\",\"\",IF(OR('TSA Input'!J4340=\"Yes\",'TSA Input'!J4340=\"Contingent\"),'TSA Input'!B4340,\"Ineligible\"))","v":""},{"$f":"IF('TSA Input'!J4340=\"\",\"\",IF(OR('TSA Input'!J4340=\"Yes\",'TSA Input'!J4340=\"Contingent\"),'TSA Input'!I4340,\"\"))","v":""},{"$f":"IF('TSA Input'!J4340=\"\",\"\",IF(OR('TSA Input'!J4340=\"Yes\",'TSA Input'!J4340=\"Contingent\"),'TSA Input'!C4340,\"\"))","v":""},{"$f":"IF('TSA Input'!J4340=\"\",\"\",IF(OR('TSA Input'!J4340=\"Yes\",'TSA Input'!J4340=\"Contingent\"),'TSA Input'!D4340,\"\"))","v":""},{"$f":"IF('TSA Input'!J4340=\"\",\"\",IF(OR('TSA Input'!J4340=\"Yes\",'TSA Input'!J4340=\"Contingent\"),'TSA Input'!G4340,\"\"))","v":""},{"$f":"IF('TSA Input'!J4340=\"\",\"\",IF(OR('TSA Input'!J4340=\"Yes\",'TSA Input'!J4340=\"Contingent\"),'TSA Input'!F4340,\"\"))","v":""},"",{"$f":"IF('TSA Input'!J4340=\"\",\"\",IF(OR('TSA Input'!J4340=\"Yes\",'TSA Input'!J4340=\"Contingent\"),'TSA Input'!D4340,\"\"))","v":""},{"$f":"IF('TSA Input'!J4340=\"\",\"\",IF(OR('TSA Input'!J4340=\"Yes\",'TSA Input'!J4340=\"Contingent\"),'TSA Input'!G4340,\"\"))","v":""},{"$f":"IF('TSA Input'!J4340=\"\",\"\",IF(OR('TSA Input'!J4340=\"Yes\",'TSA Input'!J4340=\"Contingent\"),'TSA Input'!F4340,\"\"))","v":""},"","Required","Required"]
["",null,{"$f":"IF('TSA Input'!J4341=\"\",\"\",IF(OR('TSA Input'!J4341=\"Yes\",'TSA Input'!J4341=\"Contingent\"),'TSA Input'!B4341,\"Ineligible\"))","v":""},{"$f":"IF('TSA Input'!J4341=\"\",\"\",IF(OR('TSA Input'!J4341=\"Yes\",'TSA Input'!J4341=\"Contingent\"),'TSA Input'!I4341,\"\"))","v":""},{"$f":"IF('TSA Input'!J4341=\"\",\"\",IF(OR('TSA Input'!J4341=\"Yes\",'TSA Input'!J4341=\"Contingent\"),'TSA Input'!C4341,\"\"))","v":""},{"$f":"IF('TSA Input'!J4341=\"\",\"\",IF(OR('TSA Input'!J4341=\"Yes\",'TSA Input'!J4341=\"Contingent\"),'TSA Input'!D4341,\"\"))","v":""},{"$f":"IF('TSA Input'!J4341=\"\",\"\",IF(OR('TSA Input'!J4341=\"Yes\",'TSA Input'!J4341=\"Contingent\"),'TSA Input'!G4341,\"\"))","v":""},{"$f":"IF('TSA Input'!J4341=\"\",\"\",IF(OR('TSA Input'!J4341=\"Yes\",'TSA Input'!J4341=\"Contingent\"),'TSA Input'!F4341,\"\"))","v":""},"",{"$f":"IF('TSA Input'!J4341=\"\",\"\",IF(OR('TSA Input'!J4341=\"Yes\",'TSA Input'!J4341=\"Contingent\"),'TSA Input'!D4341,\"\"))","v":""},{"$f":"IF('TSA Input'!J4341=\"\",\"\",IF(OR('TSA Input'!J4341=\"Yes\",'TSA Input'!J4341=\"Contingent\"),'TSA Input'!G4341,\"\"))","v":""},{"$f":"IF('TSA Input'!J4341=\"\",\"\",IF(OR('TSA Input'!J4341=\"Yes\",'TSA Input'!J4341=\"Contingent\"),'TSA Input'!F4341,\"\"))","v":""},"","Required","Required"]
["",null,{"$f":"IF('TSA Input'!J4342=\"\",\"\",IF(OR('TSA Input'!J4342=\"Yes\",'TSA Input'!J4342=\"Contingent\"),'TSA Input'!B4342,\"Ineligible\"))","v":""},{"$f":"IF('TSA Input'!J4342=\"\",\"\",IF(OR('TSA Input'!J4342=\"Yes\",'TSA Input'!J4342=\"Contingent\"),'TSA Input'!I4342,\"\"))","v":""},{"$f":"IF('TSA Input'!J4342=\"\",\"\",IF(OR('TSA Input'!J4342=\"Yes\",'TSA Input'!J4342=\"Contingent\"),'TSA Input'!C4342,\"\"))","v":""},{"$f":"IF('TSA Input'!J4342=\"\",\"\",IF(OR('TSA Input'!J4342=\"Yes\",'TSA Input'!J4342=\"Contingent\"),'TSA Input'!D4342,\"\"))","v":""},{"$f":"IF('TSA Input'!J4342=\"\",\"\",IF(OR('TSA Input'!J4342=\"Yes\",'TSA Input'!J4342=\"Contingent\"),'TSA Input'!G4342,\"\"))","v":""},{"$f":"IF('TSA Input'!J4342=\"\",\"\",IF(OR('TSA Input'!J4342=\"Yes\",'TSA Input'!J4342=\"Contingent\"),'TSA Input'!F4342,\"\"))","v":""},"",{"$f":"IF('TSA Input'!J4342=\"\",\"\",IF(OR('TSA Input'!J4342=\"Yes\",'TSA Input'!J4342=\"Contingent\"),'TSA Input'!D4342,\"\"))","v":""},{"$f":"IF('TSA Input'!J4342=\"\",\"\",IF(OR('TSA Input'!J4342=\"Yes\",'TSA Input'!J4342=\"Contingent\"),'TSA Input'!G4342,\"\"))","v":""},{"$f":"IF('TSA Input'!J4342=\"\",\"\",IF(OR('TSA Input'!J4342=\"Yes\",'TSA Input'!J4342=\"Contingent\"),'TSA Input'!F4342,\"\"))","v":""},"","Required","Required"]
["",null,{"$f":"IF('TSA Input'!J4343=\"\",\"\",IF(OR('TSA Input'!J4343=\"Yes\",'TSA Input'!J4343=\"Contingent\"),'TSA Input'!B4343,\"Ineligible\"))","v":""},{"$f":"IF('TSA Input'!J4343=\"\",\"\",IF(OR('TSA Input'!J4343=\"Yes\",'TSA Input'!J4343=\"Contingent\"),'TSA Input'!I4343,\"\"))","v":""},{"$f":"IF('TSA Input'!J4343=\"\",\"\",IF(OR('TSA Input'!J4343=\"Yes\",'TSA Input'!J4343=\"Contingent\"),'TSA Input'!C4343,\"\"))","v":""},{"$f":"IF('TSA Input'!J4343=\"\",\"\",IF(OR('TSA Input'!J4343=\"Yes\",'TSA Input'!J4343=\"Contingent\"),'TSA Input'!D4343,\"\"))","v":""},{"$f":"IF('TSA Input'!J4343=\"\",\"\",IF(OR('TSA Input'!J4343=\"Yes\",'TSA Input'!J4343=\"Contingent\"),'TSA Input'!G4343,\"\"))","v":""},{"$f":"IF('TSA Input'!J4343=\"\",\"\",IF(OR('TSA Input'!J4343=\"Yes\",'TSA Input'!J4343=\"Contingent\"),'TSA Input'!F4343,\"\"))","v":""},"",{"$f":"IF('TSA Input'!J4343=\"\",\"\",IF(OR('TSA Input'!J4343=\"Yes\",'TSA Input'!J4343=\"Contingent\"),'TSA Input'!D4343,\"\"))","v":""},{"$f":"IF('TSA Input'!J4343=\"\",\"\",IF(OR('TSA Input'!J4343=\"Yes\",'TSA Input'!J4343=\"Contingent\"),'TSA Input'!G4343,\"\"))","v":""},{"$f":"IF('TSA Input'!J4343=\"\",\"\",IF(OR('TSA Input'!J4343=\"Yes\",'TSA Input'!J4343=\"Contingent\"),'TSA Input'!F4343,\"\"))","v":""},"","Required","Required"]
["",null,{"$f":"IF('TSA Input'!J4344=\"\",\"\",IF(OR('TSA Input'!J4344=\"Yes\",'TSA Input'!J4344=\"Contingent\"),'TSA Input'!B4344,\"Ineligible\"))","v":""},{"$f":"IF('TSA Input'!J4344=\"\",\"\",IF(OR('TSA Input'!J4344=\"Yes\",'TSA Input'!J4344=\"Contingent\"),'TSA Input'!I4344,\"\"))","v":""},{"$f":"IF('TSA Input'!J4344=\"\",\"\",IF(OR('TSA Input'!J4344=\"Yes\",'TSA Input'!J4344=\"Contingent\"),'TSA Input'!C4344,\"\"))","v":""},{"$f":"IF('TSA Input'!J4344=\"\",\"\",IF(OR('TSA Input'!J4344=\"Yes\",'TSA Input'!J4344=\"Contingent\"),'TSA Input'!D4344,\"\"))","v":""},{"$f":"IF('TSA Input'!J4344=\"\",\"\",IF(OR('TSA Input'!J4344=\"Yes\",'TSA Input'!J4344=\"Contingent\"),'TSA Input'!G4344,\"\"))","v":""},{"$f":"IF('TSA Input'!J4344=\"\",\"\",IF(OR('TSA Input'!J4344=\"Yes\",'TSA Input'!J4344=\"Contingent\"),'TSA Input'!F4344,\"\"))","v":""},"",{"$f":"IF('TSA Input'!J4344=\"\",\"\",IF(OR('TSA Input'!J4344=\"Yes\",'TSA Input'!J4344=\"Contingent\"),'TSA Input'!D4344,\"\"))","v":""},{"$f":"IF('TSA Input'!J4344=\"\",\"\",IF(OR('TSA Input'!J4344=\"Yes\",'TSA Input'!J4344=\"Contingent\"),'TSA Input'!G4344,\"\"))","v":""},{"$f":"IF('TSA Input'!J4344=\"\",\"\",IF(OR('TSA Input'!J4344=\"Yes\",'TSA Input'!J4344=\"Contingent\"),'TSA Input'!F4344,\"\"))","v":""},"","Required","Required"]
["",null,{"$f":"IF('TSA Input'!J4345=\"\",\"\",IF(OR('TSA Input'!J4345=\"Yes\",'TSA Input'!J4345=\"Contingent\"),'TSA Input'!B4345,\"Ineligible\"))","v":""},{"$f":"IF('TSA Input'!J4345=\"\",\"\",IF(OR('TSA Input'!J4345=\"Yes\",'TSA Input'!J4345=\"Contingent\"),'TSA Input'!I4345,\"\"))","v":""},{"$f":"IF('TSA Input'!J4345=\"\",\"\",IF(OR('TSA Input'!J4345=\"Yes\",'TSA Input'!J4345=\"Contingent\"),'TSA Input'!C4345,\"\"))","v":""},{"$f":"IF('TSA Input'!J4345=\"\",\"\",IF(OR('TSA Input'!J4345=\"Yes\",'TSA Input'!J4345=\"Contingent\"),'TSA Input'!D4345,\"\"))","v":""},{"$f":"IF('TSA Input'!J4345=\"\",\"\",IF(OR('TSA Input'!J4345=\"Yes\",'TSA Input'!J4345=\"Contingent\"),'TSA Input'!G4345,\"\"))","v":""},{"$f":"IF('TSA Input'!J4345=\"\",\"\",IF(OR('TSA Input'!J4345=\"Yes\",'TSA Input'!J4345=\"Contingent\"),'TSA Input'!F4345,\"\"))","v":""},"",{"$f":"IF('TSA Input'!J4345=\"\",\"\",IF(OR('TSA Input'!J4345=\"Yes\",'TSA Input'!J4345=\"Contingent\"),'TSA Input'!D4345,\"\"))","v":""},{"$f":"IF('TSA Input'!J4345=\"\",\"\",IF(OR('TSA Input'!J4345=\"Yes\",'TSA Input'!J4345=\"Contingent\"),'TSA Input'!G4345,\"\"))","v":""},{"$f":"IF('TSA Input'!J4345=\"\",\"\",IF(OR('TSA Input'!J4345=\"Yes\",'TSA Input'!J4345=\"Contingent\"),'TSA Input'!F4345,\"\"))","v":""},"","Required","Required"]
["",null,{"$f":"IF('TSA Input'!J4346=\"\",\"\",IF(OR('TSA Input'!J4346=\"Yes\",'TSA Input'!J4346=\"Contingent\"),'TSA Input'!B4346,\"Ineligible\"))","v":""},{"$f":"IF('TSA Input'!J4346=\"\",\"\",IF(OR('TSA Input'!J4346=\"Yes\",'TSA Input'!J4346=\"Contingent\"),'TSA Input'!I4346,\"\"))","v":""},{"$f":"IF('TSA Input'!J4346=\"\",\"\",IF(OR('TSA Input'!J4346=\"Yes\",'TSA Input'!J4346=\"Contingent\"),'TSA Input'!C4346,\"\"))","v":""},{"$f":"IF('TSA Input'!J4346=\"\",\"\",IF(OR('TSA Input'!J4346=\"Yes\",'TSA Input'!J4346=\"Contingent\"),'TSA Input'!D4346,\"\"))","v":""},{"$f":"IF('TSA Input'!J4346=\"\",\"\",IF(OR('TSA Input'!J4346=\"Yes\",'TSA Input'!J4346=\"Contingent\"),'TSA Input'!G4346,\"\"))","v":""},{"$f":"IF('TSA Input'!J4346=\"\",\"\",IF(OR('TSA Input'!J4346=\"Yes\",'TSA Input'!J4346=\"Contingent\"),'TSA Input'!F4346,\"\"))","v":""},"",{"$f":"IF('TSA Input'!J4346=\"\",\"\",IF(OR('TSA Input'!J4346=\"Yes\",'TSA Input'!J4346=\"Contingent\"),'TSA Input'!D4346,\"\"))","v":""},{"$f":"IF('TSA Input'!J4346=\"\",\"\",IF(OR('TSA Input'!J4346=\"Yes\",'TSA Input'!J4346=\"Contingent\"),'TSA Input'!G4346,\"\"))","v":""},{"$f":"IF('TSA Input'!J4346=\"\",\"\",IF(OR('TSA Input'!J4346=\"Yes\",'TSA Input'!J4346=\"Contingent\"),'TSA Input'!F4346,\"\"))","v":""},"","Required","Required"]
["",null,{"$f":"IF('TSA Input'!J4347=\"\",\"\",IF(OR('TSA Input'!J4347=\"Yes\",'TSA Input'!J4347=\"Contingent\"),'TSA Input'!B4347,\"Ineligible\"))","v":""},{"$f":"IF('TSA Input'!J4347=\"\",\"\",IF(OR('TSA Input'!J4347=\"Yes\",'TSA Input'!J4347=\"Contingent\"),'TSA Input'!I4347,\"\"))","v":""},{"$f":"IF('TSA Input'!J4347=\"\",\"\",IF(OR('TSA Input'!J4347=\"Yes\",'TSA Input'!J4347=\"Contingent\"),'TSA Input'!C4347,\"\"))","v":""},{"$f":"IF('TSA Input'!J4347=\"\",\"\",IF(OR('TSA Input'!J4347=\"Yes\",'TSA Input'!J4347=\"Contingent\"),'TSA Input'!D4347,\"\"))","v":""},{"$f":"IF('TSA Input'!J4347=\"\",\"\",IF(OR('TSA Input'!J4347=\"Yes\",'TSA Input'!J4347=\"Contingent\"),'TSA Input'!G4347,\"\"))","v":""},{"$f":"IF('TSA Input'!J4347=\"\",\"\",IF(OR('TSA Input'!J4347=\"Yes\",'TSA Input'!J4347=\"Contingent\"),'TSA Input'!F4347,\"\"))","v":""},"",{"$f":"IF('TSA Input'!J4347=\"\",\"\",IF(OR('TSA Input'!J4347=\"Yes\",'TSA Input'!J4347=\"Contingent\"),'TSA Input'!D4347,\"\"))","v":""},{"$f":"IF('TSA Input'!J4347=\"\",\"\",IF(OR('TSA Input'!J4347=\"Yes\",'TSA Input'!J4347=\"Contingent\"),'TSA Input'!G4347,\"\"))","v":""},{"$f":"IF('TSA Input'!J4347=\"\",\"\",IF(OR('TSA Input'!J4347=\"Yes\",'TSA Input'!J4347=\"Contingent\"),'TSA Input'!F4347,\"\"))","v":""},"","Required","Required"]
["",null,{"$f":"IF('TSA Input'!J4348=\"\",\"\",IF(OR('TSA Input'!J4348=\"Yes\",'TSA Input'!J4348=\"Contingent\"),'TSA Input'!B4348,\"Ineligible\"))","v":""},{"$f":"IF('TSA Input'!J4348=\"\",\"\",IF(OR('TSA Input'!J4348=\"Yes\",'TSA Input'!J4348=\"Contingent\"),'TSA Input'!I4348,\"\"))","v":""},{"$f":"IF('TSA Input'!J4348=\"\",\"\",IF(OR('TSA Input'!J4348=\"Yes\",'TSA Input'!J4348=\"Contingent\"),'TSA Input'!C4348,\"\"))","v":""},{"$f":"IF('TSA Input'!J4348=\"\",\"\",IF(OR('TSA Input'!J4348=\"Yes\",'TSA Input'!J4348=\"Contingent\"),'TSA Input'!D4348,\"\"))","v":""},{"$f":"IF('TSA Input'!J4348=\"\",\"\",IF(OR('TSA Input'!J4348=\"Yes\",'TSA Input'!J4348=\"Contingent\"),'TSA Input'!G4348,\"\"))","v":""},{"$f":"IF('TSA Input'!J4348=\"\",\"\",IF(OR('TSA Input'!J4348=\"Yes\",'TSA Input'!J4348=\"Contingent\"),'TSA Input'!F4348,\"\"))","v":""},"",{"$f":"IF('TSA Input'!J4348=\"\",\"\",IF(OR('TSA Input'!J4348=\"Yes\",'TSA Input'!J4348=\"Contingent\"),'TSA Input'!D4348,\"\"))","v":""},{"$f":"IF('TSA Input'!J4348=\"\",\"\",IF(OR('TSA Input'!J4348=\"Yes\",'TSA Input'!J4348=\"Contingent\"),'TSA Input'!G4348,\"\"))","v":""},{"$f":"IF('TSA Input'!J4348=\"\",\"\",IF(OR('TSA Input'!J4348=\"Yes\",'TSA Input'!J4348=\"Contingent\"),'TSA Input'!F4348,\"\"))","v":""},"","Required","Required"]
["",null,{"$f":"IF('TSA Input'!J4349=\"\",\"\",IF(OR('TSA Input'!J4349=\"Yes\",'TSA Input'!J4349=\"Contingent\"),'TSA Input'!B4349,\"Ineligible\"))","v":""},{"$f":"IF('TSA Input'!J4349=\"\",\"\",IF(OR('TSA Input'!J4349=\"Yes\",'TSA Input'!J4349=\"Contingent\"),'TSA Input'!I4349,\"\"))","v":""},{"$f":"IF('TSA Input'!J4349=\"\",\"\",IF(OR('TSA Input'!J4349=\"Yes\",'TSA Input'!J4349=\"Contingent\"),'TSA Input'!C4349,\"\"))","v":""},{"$f":"IF('TSA Input'!J4349=\"\",\"\",IF(OR('TSA Input'!J4349=\"Yes\",'TSA Input'!J4349=\"Contingent\"),'TSA Input'!D4349,\"\"))","v":""},{"$f":"IF('TSA Input'!J4349=\"\",\"\",IF(OR('TSA Input'!J4349=\"Yes\",'TSA Input'!J4349=\"Contingent\"),'TSA Input'!G4349,\"\"))","v":""},{"$f":"IF('TSA Input'!J4349=\"\",\"\",IF(OR('TSA Input'!J4349=\"Yes\",'TSA Input'!J4349=\"Contingent\"),'TSA Input'!F4349,\"\"))","v":""},"",{"$f":"IF('TSA Input'!J4349=\"\",\"\",IF(OR('TSA Input'!J4349=\"Yes\",'TSA Input'!J4349=\"Contingent\"),'TSA Input'!D4349,\"\"))","v":""},{"$f":"IF('TSA Input'!J4349=\"\",\"\",IF(OR('TSA Input'!J4349=\"Yes\",'TSA Input'!J4349=\"Contingent\"),'TSA Input'!G4349,\"\"))","v":""},{"$f":"IF('TSA Input'!J4349=\"\",\"\",IF(OR('TSA Input'!J4349=\"Yes\",'TSA Input'!J4349=\"Contingent\"),'TSA Input'!F4349,\"\"))","v":""},"","Required","Required"]
["",null,{"$f":"IF('TSA Input'!J4350=\"\",\"\",IF(OR('TSA Input'!J4350=\"Yes\",'TSA Input'!J4350=\"Contingent\"),'TSA Input'!B4350,\"Ineligible\"))","v":""},{"$f":"IF('TSA Input'!J4350=\"\",\"\",IF(OR('TSA Input'!J4350=\"Yes\",'TSA Input'!J4350=\"Contingent\"),'TSA Input'!I4350,\"\"))","v":""},{"$f":"IF('TSA Input'!J4350=\"\",\"\",IF(OR('TSA Input'!J4350=\"Yes\",'TSA Input'!J4350=\"Contingent\"),'TSA Input'!C4350,\"\"))","v":""},{"$f":"IF('TSA Input'!J4350=\"\",\"\",IF(OR('TSA Input'!J4350=\"Yes\",'TSA Input'!J4350=\"Contingent\"),'TSA Input'!D4350,\"\"))","v":""},{"$f":"IF('TSA Input'!J4350=\"\",\"\",IF(OR('TSA Input'!J4350=\"Yes\",'TSA Input'!J4350=\"Contingent\"),'TSA Input'!G4350,\"\"))","v":""},{"$f":"IF('TSA Input'!J4350=\"\",\"\",IF(OR('TSA Input'!J4350=\"Yes\",'TSA Input'!J4350=\"Contingent\"),'TSA Input'!F4350,\"\"))","v":""},"",{"$f":"IF('TSA Input'!J4350=\"\",\"\",IF(OR('TSA Input'!J4350=\"Yes\",'TSA Input'!J4350=\"Contingent\"),'TSA Input'!D4350,\"\"))","v":""},{"$f":"IF('TSA Input'!J4350=\"\",\"\",IF(OR('TSA Input'!J4350=\"Yes\",'TSA Input'!J4350=\"Contingent\"),'TSA Input'!G4350,\"\"))","v":""},{"$f":"IF('TSA Input'!J4350=\"\",\"\",IF(OR('TSA Input'!J4350=\"Yes\",'TSA Input'!J4350=\"Contingent\"),'TSA Input'!F4350,\"\"))","v":""},"","Required","Required"]
["",null,{"$f":"IF('TSA Input'!J4351=\"\",\"\",IF(OR('TSA Input'!J4351=\"Yes\",'TSA Input'!J4351=\"Contingent\"),'TSA Input'!B4351,\"Ineligible\"))","v":""},{"$f":"IF('TSA Input'!J4351=\"\",\"\",IF(OR('TSA Input'!J4351=\"Yes\",'TSA Input'!J4351=\"Contingent\"),'TSA Input'!I4351,\"\"))","v":""},{"$f":"IF('TSA Input'!J4351=\"\",\"\",IF(OR('TSA Input'!J4351=\"Yes\",'TSA Input'!J4351=\"Contingent\"),'TSA Input'!C4351,\"\"))","v":""},{"$f":"IF('TSA Input'!J4351=\"\",\"\",IF(OR('TSA Input'!J4351=\"Yes\",'TSA Input'!J4351=\"Contingent\"),'TSA Input'!D4351,\"\"))","v":""},{"$f":"IF('TSA Input'!J4351=\"\",\"\",IF(OR('TSA Input'!J4351=\"Yes\",'TSA Input'!J4351=\"Contingent\"),'TSA Input'!G4351,\"\"))","v":""},{"$f":"IF('TSA Input'!J4351=\"\",\"\",IF(OR('TSA Input'!J4351=\"Yes\",'TSA Input'!J4351=\"Contingent\"),'TSA Input'!F4351,\"\"))","v":""},"",{"$f":"IF('TSA Input'!J4351=\"\",\"\",IF(OR('TSA Input'!J4351=\"Yes\",'TSA Input'!J4351=\"Contingent\"),'TSA Input'!D4351,\"\"))","v":""},{"$f":"IF('TSA Input'!J4351=\"\",\"\",IF(OR('TSA Input'!J4351=\"Yes\",'TSA Input'!J4351=\"Contingent\"),'TSA Input'!G4351,\"\"))","v":""},{"$f":"IF('TSA Input'!J4351=\"\",\"\",IF(OR('TSA Input'!J4351=\"Yes\",'TSA Input'!J4351=\"Contingent\"),'TSA Input'!F4351,\"\"))","v":""},"","Required","Required"]
["",null,{"$f":"IF('TSA Input'!J4352=\"\",\"\",IF(OR('TSA Input'!J4352=\"Yes\",'TSA Input'!J4352=\"Contingent\"),'TSA Input'!B4352,\"Ineligible\"))","v":""},{"$f":"IF('TSA Input'!J4352=\"\",\"\",IF(OR('TSA Input'!J4352=\"Yes\",'TSA Input'!J4352=\"Contingent\"),'TSA Input'!I4352,\"\"))","v":""},{"$f":"IF('TSA Input'!J4352=\"\",\"\",IF(OR('TSA Input'!J4352=\"Yes\",'TSA Input'!J4352=\"Contingent\"),'TSA Input'!C4352,\"\"))","v":""},{"$f":"IF('TSA Input'!J4352=\"\",\"\",IF(OR('TSA Input'!J4352=\"Yes\",'TSA Input'!J4352=\"Contingent\"),'TSA Input'!D4352,\"\"))","v":""},{"$f":"IF('TSA Input'!J4352=\"\",\"\",IF(OR('TSA Input'!J4352=\"Yes\",'TSA Input'!J4352=\"Contingent\"),'TSA Input'!G4352,\"\"))","v":""},{"$f":"IF('TSA Input'!J4352=\"\",\"\",IF(OR('TSA Input'!J4352=\"Yes\",'TSA Input'!J4352=\"Contingent\"),'TSA Input'!F4352,\"\"))","v":""},"",{"$f":"IF('TSA Input'!J4352=\"\",\"\",IF(OR('TSA Input'!J4352=\"Yes\",'TSA Input'!J4352=\"Contingent\"),'TSA Input'!D4352,\"\"))","v":""},{"$f":"IF('TSA Input'!J4352=\"\",\"\",IF(OR('TSA Input'!J4352=\"Yes\",'TSA Input'!J4352=\"Contingent\"),'TSA Input'!G4352,\"\"))","v":""},{"$f":"IF('TSA Input'!J4352=\"\",\"\",IF(OR('TSA Input'!J4352=\"Yes\",'TSA Input'!J4352=\"Contingent\"),'TSA Input'!F4352,\"\"))","v":""},"","Required","Required"]
["",null,{"$f":"IF('TSA Input'!J4353=\"\",\"\",IF(OR('TSA Input'!J4353=\"Yes\",'TSA Input'!J4353=\"Contingent\"),'TSA Input'!B4353,\"Ineligible\"))","v":""},{"$f":"IF('TSA Input'!J4353=\"\",\"\",IF(OR('TSA Input'!J4353=\"Yes\",'TSA Input'!J4353=\"Contingent\"),'TSA Input'!I4353,\"\"))","v":""},{"$f":"IF('TSA Input'!J4353=\"\",\"\",IF(OR('TSA Input'!J4353=\"Yes\",'TSA Input'!J4353=\"Contingent\"),'TSA Input'!C4353,\"\"))","v":""},{"$f":"IF('TSA Input'!J4353=\"\",\"\",IF(OR('TSA Input'!J4353=\"Yes\",'TSA Input'!J4353=\"Contingent\"),'TSA Input'!D4353,\"\"))","v":""},{"$f":"IF('TSA Input'!J4353=\"\",\"\",IF(OR('TSA Input'!J4353=\"Yes\",'TSA Input'!J4353=\"Contingent\"),'TSA Input'!G4353,\"\"))","v":""},{"$f":"IF('TSA Input'!J4353=\"\",\"\",IF(OR('TSA Input'!J4353=\"Yes\",'TSA Input'!J4353=\"Contingent\"),'TSA Input'!F4353,\"\"))","v":""},"",{"$f":"IF('TSA Input'!J4353=\"\",\"\",IF(OR('TSA Input'!J4353=\"Yes\",'TSA Input'!J4353=\"Contingent\"),'TSA Input'!D4353,\"\"))","v":""},{"$f":"IF('TSA Input'!J4353=\"\",\"\",IF(OR('TSA Input'!J4353=\"Yes\",'TSA Input'!J4353=\"Contingent\"),'TSA Input'!G4353,\"\"))","v":""},{"$f":"IF('TSA Input'!J4353=\"\",\"\",IF(OR('TSA Input'!J4353=\"Yes\",'TSA Input'!J4353=\"Contingent\"),'TSA Input'!F4353,\"\"))","v":""},"","Required","Required"]
["",null,{"$f":"IF('TSA Input'!J4354=\"\",\"\",IF(OR('TSA Input'!J4354=\"Yes\",'TSA Input'!J4354=\"Contingent\"),'TSA Input'!B4354,\"Ineligible\"))","v":""},{"$f":"IF('TSA Input'!J4354=\"\",\"\",IF(OR('TSA Input'!J4354=\"Yes\",'TSA Input'!J4354=\"Contingent\"),'TSA Input'!I4354,\"\"))","v":""},{"$f":"IF('TSA Input'!J4354=\"\",\"\",IF(OR('TSA Input'!J4354=\"Yes\",'TSA Input'!J4354=\"Contingent\"),'TSA Input'!C4354,\"\"))","v":""},{"$f":"IF('TSA Input'!J4354=\"\",\"\",IF(OR('TSA Input'!J4354=\"Yes\",'TSA Input'!J4354=\"Contingent\"),'TSA Input'!D4354,\"\"))","v":""},{"$f":"IF('TSA Input'!J4354=\"\",\"\",IF(OR('TSA Input'!J4354=\"Yes\",'TSA Input'!J4354=\"Contingent\"),'TSA Input'!G4354,\"\"))","v":""},{"$f":"IF('TSA Input'!J4354=\"\",\"\",IF(OR('TSA Input'!J4354=\"Yes\",'TSA Input'!J4354=\"Contingent\"),'TSA Input'!F4354,\"\"))","v":""},"",{"$f":"IF('TSA Input'!J4354=\"\",\"\",IF(OR('TSA Input'!J4354=\"Yes\",'TSA Input'!J4354=\"Contingent\"),'TSA Input'!D4354,\"\"))","v":""},{"$f":"IF('TSA Input'!J4354=\"\",\"\",IF(OR('TSA Input'!J4354=\"Yes\",'TSA Input'!J4354=\"Contingent\"),'TSA Input'!G4354,\"\"))","v":""},{"$f":"IF('TSA Input'!J4354=\"\",\"\",IF(OR('TSA Input'!J4354=\"Yes\",'TSA Input'!J4354=\"Contingent\"),'TSA Input'!F4354,\"\"))","v":""},"","Required","Required"]
["",null,{"$f":"IF('TSA Input'!J4355=\"\",\"\",IF(OR('TSA Input'!J4355=\"Yes\",'TSA Input'!J4355=\"Contingent\"),'TSA Input'!B4355,\"Ineligible\"))","v":""},{"$f":"IF('TSA Input'!J4355=\"\",\"\",IF(OR('TSA Input'!J4355=\"Yes\",'TSA Input'!J4355=\"Contingent\"),'TSA Input'!I4355,\"\"))","v":""},{"$f":"IF('TSA Input'!J4355=\"\",\"\",IF(OR('TSA Input'!J4355=\"Yes\",'TSA Input'!J4355=\"Contingent\"),'TSA Input'!C4355,\"\"))","v":""},{"$f":"IF('TSA Input'!J4355=\"\",\"\",IF(OR('TSA Input'!J4355=\"Yes\",'TSA Input'!J4355=\"Contingent\"),'TSA Input'!D4355,\"\"))","v":""},{"$f":"IF('TSA Input'!J4355=\"\",\"\",IF(OR('TSA Input'!J4355=\"Yes\",'TSA Input'!J4355=\"Contingent\"),'TSA Input'!G4355,\"\"))","v":""},{"$f":"IF('TSA Input'!J4355=\"\",\"\",IF(OR('TSA Input'!J4355=\"Yes\",'TSA Input'!J4355=\"Contingent\"),'TSA Input'!F4355,\"\"))","v":""},"",{"$f":"IF('TSA Input'!J4355=\"\",\"\",IF(OR('TSA Input'!J4355=\"Yes\",'TSA Input'!J4355=\"Contingent\"),'TSA Input'!D4355,\"\"))","v":""},{"$f":"IF('TSA Input'!J4355=\"\",\"\",IF(OR('TSA Input'!J4355=\"Yes\",'TSA Input'!J4355=\"Contingent\"),'TSA Input'!G4355,\"\"))","v":""},{"$f":"IF('TSA Input'!J4355=\"\",\"\",IF(OR('TSA Input'!J4355=\"Yes\",'TSA Input'!J4355=\"Contingent\"),'TSA Input'!F4355,\"\"))","v":""},"","Required","Required"]
["",null,{"$f":"IF('TSA Input'!J4356=\"\",\"\",IF(OR('TSA Input'!J4356=\"Yes\",'TSA Input'!J4356=\"Contingent\"),'TSA Input'!B4356,\"Ineligible\"))","v":""},{"$f":"IF('TSA Input'!J4356=\"\",\"\",IF(OR('TSA Input'!J4356=\"Yes\",'TSA Input'!J4356=\"Contingent\"),'TSA Input'!I4356,\"\"))","v":""},{"$f":"IF('TSA Input'!J4356=\"\",\"\",IF(OR('TSA Input'!J4356=\"Yes\",'TSA Input'!J4356=\"Contingent\"),'TSA Input'!C4356,\"\"))","v":""},{"$f":"IF('TSA Input'!J4356=\"\",\"\",IF(OR('TSA Input'!J4356=\"Yes\",'TSA Input'!J4356=\"Contingent\"),'TSA Input'!D4356,\"\"))","v":""},{"$f":"IF('TSA Input'!J4356=\"\",\"\",IF(OR('TSA Input'!J4356=\"Yes\",'TSA Input'!J4356=\"Contingent\"),'TSA Input'!G4356,\"\"))","v":""},{"$f":"IF('TSA Input'!J4356=\"\",\"\",IF(OR('TSA Input'!J4356=\"Yes\",'TSA Input'!J4356=\"Contingent\"),'TSA Input'!F4356,\"\"))","v":""},{"$f":"IF($C4394=\"\",\"\",SUM(F4394:H4394))","v":""},{"$f":"IF('TSA Input'!J4356=\"\",\"\",IF(OR('TSA Input'!J4356=\"Yes\",'TSA Input'!J4356=\"Contingent\"),'TSA Input'!D4356,\"\"))","v":""},{"$f":"IF('TSA Input'!J4356=\"\",\"\",IF(OR('TSA Input'!J4356=\"Yes\",'TSA Input'!J4356=\"Contingent\"),'TSA Input'!G4356,\"\"))","v":""},{"$f":"IF('TSA Input'!J4356=\"\",\"\",IF(OR('TSA Input'!J4356=\"Yes\",'TSA Input'!J4356=\"Contingent\"),'TSA Input'!F4356,\"\"))","v":""},{"$f":"IF($C4394=\"\",\"\",SUM(J4394:L4394))","v":""},"Required","Required"]
["",null,{"$f":"IF('TSA Input'!J4357=\"\",\"\",IF(OR('TSA Input'!J4357=\"Yes\",'TSA Input'!J4357=\"Contingent\"),'TSA Input'!B4357,\"Ineligible\"))","v":""},{"$f":"IF('TSA Input'!J4357=\"\",\"\",IF(OR('TSA Input'!J4357=\"Yes\",'TSA Input'!J4357=\"Contingent\"),'TSA Input'!I4357,\"\"))","v":""},{"$f":"IF('TSA Input'!J4357=\"\",\"\",IF(OR('TSA Input'!J4357=\"Yes\",'TSA Input'!J4357=\"Contingent\"),'TSA Input'!C4357,\"\"))","v":""},{"$f":"IF('TSA Input'!J4357=\"\",\"\",IF(OR('TSA Input'!J4357=\"Yes\",'TSA Input'!J4357=\"Contingent\"),'TSA Input'!D4357,\"\"))","v":""},{"$f":"IF('TSA Input'!J4357=\"\",\"\",IF(OR('TSA Input'!J4357=\"Yes\",'TSA Input'!J4357=\"Contingent\"),'TSA Input'!G4357,\"\"))","v":""},{"$f":"IF('TSA Input'!J4357=\"\",\"\",IF(OR('TSA Input'!J4357=\"Yes\",'TSA Input'!J4357=\"Contingent\"),'TSA Input'!F4357,\"\"))","v":""},"",{"$f":"IF('TSA Input'!J4357=\"\",\"\",IF(OR('TSA Input'!J4357=\"Yes\",'TSA Input'!J4357=\"Contingent\"),'TSA Input'!D4357,\"\"))","v":""},{"$f":"IF('TSA Input'!J4357=\"\",\"\",IF(OR('TSA Input'!J4357=\"Yes\",'TSA Input'!J4357=\"Contingent\"),'TSA Input'!G4357,\"\"))","v":""},{"$f":"IF('TSA Input'!J4357=\"\",\"\",IF(OR('TSA Input'!J4357=\"Yes\",'TSA Input'!J4357=\"Contingent\"),'TSA Input'!F4357,\"\"))","v":""},"","Required","Required"]
["",null,{"$f":"IF('TSA Input'!J4358=\"\",\"\",IF(OR('TSA Input'!J4358=\"Yes\",'TSA Input'!J4358=\"Contingent\"),'TSA Input'!B4358,\"Ineligible\"))","v":""},{"$f":"IF('TSA Input'!J4358=\"\",\"\",IF(OR('TSA Input'!J4358=\"Yes\",'TSA Input'!J4358=\"Contingent\"),'TSA Input'!I4358,\"\"))","v":""},{"$f":"IF('TSA Input'!J4358=\"\",\"\",IF(OR('TSA Input'!J4358=\"Yes\",'TSA Input'!J4358=\"Contingent\"),'TSA Input'!C4358,\"\"))","v":""},{"$f":"IF('TSA Input'!J4358=\"\",\"\",IF(OR('TSA Input'!J4358=\"Yes\",'TSA Input'!J4358=\"Contingent\"),'TSA Input'!D4358,\"\"))","v":""},{"$f":"IF('TSA Input'!J4358=\"\",\"\",IF(OR('TSA Input'!J4358=\"Yes\",'TSA Input'!J4358=\"Contingent\"),'TSA Input'!G4358,\"\"))","v":""},{"$f":"IF('TSA Input'!J4358=\"\",\"\",IF(OR('TSA Input'!J4358=\"Yes\",'TSA Input'!J4358=\"Contingent\"),'TSA Input'!F4358,\"\"))","v":""},"",{"$f":"IF('TSA Input'!J4358=\"\",\"\",IF(OR('TSA Input'!J4358=\"Yes\",'TSA Input'!J4358=\"Contingent\"),'TSA Input'!D4358,\"\"))","v":""},{"$f":"IF('TSA Input'!J4358=\"\",\"\",IF(OR('TSA Input'!J4358=\"Yes\",'TSA Input'!J4358=\"Contingent\"),'TSA Input'!G4358,\"\"))","v":""},{"$f":"IF('TSA Input'!J4358=\"\",\"\",IF(OR('TSA Input'!J4358=\"Yes\",'TSA Input'!J4358=\"Contingent\"),'TSA Input'!F4358,\"\"))","v":""},"","Required","Required"]
["",null,{"$f":"IF('TSA Input'!J4359=\"\",\"\",IF(OR('TSA Input'!J4359=\"Yes\",'TSA Input'!J4359=\"Contingent\"),'TSA Input'!B4359,\"Ineligible\"))","v":""},{"$f":"IF('TSA Input'!J4359=\"\",\"\",IF(OR('TSA Input'!J4359=\"Yes\",'TSA Input'!J4359=\"Contingent\"),'TSA Input'!I4359,\"\"))","v":""},{"$f":"IF('TSA Input'!J4359=\"\",\"\",IF(OR('TSA Input'!J4359=\"Yes\",'TSA Input'!J4359=\"Contingent\"),'TSA Input'!C4359,\"\"))","v":""},{"$f":"IF('TSA Input'!J4359=\"\",\"\",IF(OR('TSA Input'!J4359=\"Yes\",'TSA Input'!J4359=\"Contingent\"),'TSA Input'!D4359,\"\"))","v":""},{"$f":"IF('TSA Input'!J4359=\"\",\"\",IF(OR('TSA Input'!J4359=\"Yes\",'TSA Input'!J4359=\"Contingent\"),'TSA Input'!G4359,\"\"))","v":""},{"$f":"IF('TSA Input'!J4359=\"\",\"\",IF(OR('TSA Input'!J4359=\"Yes\",'TSA Input'!J4359=\"Contingent\"),'TSA Input'!F4359,\"\"))","v":""},"",{"$f":"IF('TSA Input'!J4359=\"\",\"\",IF(OR('TSA Input'!J4359=\"Yes\",'TSA Input'!J4359=\"Contingent\"),'TSA Input'!D4359,\"\"))","v":""},{"$f":"IF('TSA Input'!J4359=\"\",\"\",IF(OR('TSA Input'!J4359=\"Yes\",'TSA Input'!J4359=\"Contingent\"),'TSA Input'!G4359,\"\"))","v":""},{"$f":"IF('TSA Input'!J4359=\"\",\"\",IF(OR('TSA Input'!J4359=\"Yes\",'TSA Input'!J4359=\"Contingent\"),'TSA Input'!F4359,\"\"))","v":""},"","Required","Required"]
["",null,{"$f":"IF('TSA Input'!J4360=\"\",\"\",IF(OR('TSA Input'!J4360=\"Yes\",'TSA Input'!J4360=\"Contingent\"),'TSA Input'!B4360,\"Ineligible\"))","v":""},{"$f":"IF('TSA Input'!J4360=\"\",\"\",IF(OR('TSA Input'!J4360=\"Yes\",'TSA Input'!J4360=\"Contingent\"),'TSA Input'!I4360,\"\"))","v":""},{"$f":"IF('TSA Input'!J4360=\"\",\"\",IF(OR('TSA Input'!J4360=\"Yes\",'TSA Input'!J4360=\"Contingent\"),'TSA Input'!C4360,\"\"))","v":""},{"$f":"IF('TSA Input'!J4360=\"\",\"\",IF(OR('TSA Input'!J4360=\"Yes\",'TSA Input'!J4360=\"Contingent\"),'TSA Input'!D4360,\"\"))","v":""},{"$f":"IF('TSA Input'!J4360=\"\",\"\",IF(OR('TSA Input'!J4360=\"Yes\",'TSA Input'!J4360=\"Contingent\"),'TSA Input'!G4360,\"\"))","v":""},{"$f":"IF('TSA Input'!J4360=\"\",\"\",IF(OR('TSA Input'!J4360=\"Yes\",'TSA Input'!J4360=\"Contingent\"),'TSA Input'!F4360,\"\"))","v":""},"",{"$f":"IF('TSA Input'!J4360=\"\",\"\",IF(OR('TSA Input'!J4360=\"Yes\",'TSA Input'!J4360=\"Contingent\"),'TSA Input'!D4360,\"\"))","v":""},{"$f":"IF('TSA Input'!J4360=\"\",\"\",IF(OR('TSA Input'!J4360=\"Yes\",'TSA Input'!J4360=\"Contingent\"),'TSA Input'!G4360,\"\"))","v":""},{"$f":"IF('TSA Input'!J4360=\"\",\"\",IF(OR('TSA Input'!J4360=\"Yes\",'TSA Input'!J4360=\"Contingent\"),'TSA Input'!F4360,\"\"))","v":""},"","Required","Required"]
["",null,{"$f":"IF('TSA Input'!J4361=\"\",\"\",IF(OR('TSA Input'!J4361=\"Yes\",'TSA Input'!J4361=\"Contingent\"),'TSA Input'!B4361,\"Ineligible\"))","v":""},{"$f":"IF('TSA Input'!J4361=\"\",\"\",IF(OR('TSA Input'!J4361=\"Yes\",'TSA Input'!J4361=\"Contingent\"),'TSA Input'!I4361,\"\"))","v":""},{"$f":"IF('TSA Input'!J4361=\"\",\"\",IF(OR('TSA Input'!J4361=\"Yes\",'TSA Input'!J4361=\"Contingent\"),'TSA Input'!C4361,\"\"))","v":""},{"$f":"IF('TSA Input'!J4361=\"\",\"\",IF(OR('TSA Input'!J4361=\"Yes\",'TSA Input'!J4361=\"Contingent\"),'TSA Input'!D4361,\"\"))","v":""},{"$f":"IF('TSA Input'!J4361=\"\",\"\",IF(OR('TSA Input'!J4361=\"Yes\",'TSA Input'!J4361=\"Contingent\"),'TSA Input'!G4361,\"\"))","v":""},{"$f":"IF('TSA Input'!J4361=\"\",\"\",IF(OR('TSA Input'!J4361=\"Yes\",'TSA Input'!J4361=\"Contingent\"),'TSA Input'!F4361,\"\"))","v":""},"",{"$f":"IF('TSA Input'!J4361=\"\",\"\",IF(OR('TSA Input'!J4361=\"Yes\",'TSA Input'!J4361=\"Contingent\"),'TSA Input'!D4361,\"\"))","v":""},{"$f":"IF('TSA Input'!J4361=\"\",\"\",IF(OR('TSA Input'!J4361=\"Yes\",'TSA Input'!J4361=\"Contingent\"),'TSA Input'!G4361,\"\"))","v":""},{"$f":"IF('TSA Input'!J4361=\"\",\"\",IF(OR('TSA Input'!J4361=\"Yes\",'TSA Input'!J4361=\"Contingent\"),'TSA Input'!F4361,\"\"))","v":""},"","Required","Required"]
["",null,{"$f":"IF('TSA Input'!J4362=\"\",\"\",IF(OR('TSA Input'!J4362=\"Yes\",'TSA Input'!J4362=\"Contingent\"),'TSA Input'!B4362,\"Ineligible\"))","v":""},{"$f":"IF('TSA Input'!J4362=\"\",\"\",IF(OR('TSA Input'!J4362=\"Yes\",'TSA Input'!J4362=\"Contingent\"),'TSA Input'!I4362,\"\"))","v":""},{"$f":"IF('TSA Input'!J4362=\"\",\"\",IF(OR('TSA Input'!J4362=\"Yes\",'TSA Input'!J4362=\"Contingent\"),'TSA Input'!C4362,\"\"))","v":""},{"$f":"IF('TSA Input'!J4362=\"\",\"\",IF(OR('TSA Input'!J4362=\"Yes\",'TSA Input'!J4362=\"Contingent\"),'TSA Input'!D4362,\"\"))","v":""},{"$f":"IF('TSA Input'!J4362=\"\",\"\",IF(OR('TSA Input'!J4362=\"Yes\",'TSA Input'!J4362=\"Contingent\"),'TSA Input'!G4362,\"\"))","v":""},{"$f":"IF('TSA Input'!J4362=\"\",\"\",IF(OR('TSA Input'!J4362=\"Yes\",'TSA Input'!J4362=\"Contingent\"),'TSA Input'!F4362,\"\"))","v":""},"",{"$f":"IF('TSA Input'!J4362=\"\",\"\",IF(OR('TSA Input'!J4362=\"Yes\",'TSA Input'!J4362=\"Contingent\"),'TSA Input'!D4362,\"\"))","v":""},{"$f":"IF('TSA Input'!J4362=\"\",\"\",IF(OR('TSA Input'!J4362=\"Yes\",'TSA Input'!J4362=\"Contingent\"),'TSA Input'!G4362,\"\"))","v":""},{"$f":"IF('TSA Input'!J4362=\"\",\"\",IF(OR('TSA Input'!J4362=\"Yes\",'TSA Input'!J4362=\"Contingent\"),'TSA Input'!F4362,\"\"))","v":""},"","Required","Required"]
["",null,{"$f":"IF('TSA Input'!J4363=\"\",\"\",IF(OR('TSA Input'!J4363=\"Yes\",'TSA Input'!J4363=\"Contingent\"),'TSA Input'!B4363,\"Ineligible\"))","v":""},{"$f":"IF('TSA Input'!J4363=\"\",\"\",IF(OR('TSA Input'!J4363=\"Yes\",'TSA Input'!J4363=\"Contingent\"),'TSA Input'!I4363,\"\"))","v":""},{"$f":"IF('TSA Input'!J4363=\"\",\"\",IF(OR('TSA Input'!J4363=\"Yes\",'TSA Input'!J4363=\"Contingent\"),'TSA Input'!C4363,\"\"))","v":""},{"$f":"IF('TSA Input'!J4363=\"\",\"\",IF(OR('TSA Input'!J4363=\"Yes\",'TSA Input'!J4363=\"Contingent\"),'TSA Input'!D4363,\"\"))","v":""},{"$f":"IF('TSA Input'!J4363=\"\",\"\",IF(OR('TSA Input'!J4363=\"Yes\",'TSA Input'!J4363=\"Contingent\"),'TSA Input'!G4363,\"\"))","v":""},{"$f":"IF('TSA Input'!J4363=\"\",\"\",IF(OR('TSA Input'!J4363=\"Yes\",'TSA Input'!J4363=\"Contingent\"),'TSA Input'!F4363,\"\"))","v":""},"",{"$f":"IF('TSA Input'!J4363=\"\",\"\",IF(OR('TSA Input'!J4363=\"Yes\",'TSA Input'!J4363=\"Contingent\"),'TSA Input'!D4363,\"\"))","v":""},{"$f":"IF('TSA Input'!J4363=\"\",\"\",IF(OR('TSA Input'!J4363=\"Yes\",'TSA Input'!J4363=\"Contingent\"),'TSA Input'!G4363,\"\"))","v":""},{"$f":"IF('TSA Input'!J4363=\"\",\"\",IF(OR('TSA Input'!J4363=\"Yes\",'TSA Input'!J4363=\"Contingent\"),'TSA Input'!F4363,\"\"))","v":""},"","Required","Required"]
["",null,{"$f":"IF('TSA Input'!J4364=\"\",\"\",IF(OR('TSA Input'!J4364=\"Yes\",'TSA Input'!J4364=\"Contingent\"),'TSA Input'!B4364,\"Ineligible\"))","v":""},{"$f":"IF('TSA Input'!J4364=\"\",\"\",IF(OR('TSA Input'!J4364=\"Yes\",'TSA Input'!J4364=\"Contingent\"),'TSA Input'!I4364,\"\"))","v":""},{"$f":"IF('TSA Input'!J4364=\"\",\"\",IF(OR('TSA Input'!J4364=\"Yes\",'TSA Input'!J4364=\"Contingent\"),'TSA Input'!C4364,\"\"))","v":""},{"$f":"IF('TSA Input'!J4364=\"\",\"\",IF(OR('TSA Input'!J4364=\"Yes\",'TSA Input'!J4364=\"Contingent\"),'TSA Input'!D4364,\"\"))","v":""},{"$f":"IF('TSA Input'!J4364=\"\",\"\",IF(OR('TSA Input'!J4364=\"Yes\",'TSA Input'!J4364=\"Contingent\"),'TSA Input'!G4364,\"\"))","v":""},{"$f":"IF('TSA Input'!J4364=\"\",\"\",IF(OR('TSA Input'!J4364=\"Yes\",'TSA Input'!J4364=\"Contingent\"),'TSA Input'!F4364,\"\"))","v":""},"",{"$f":"IF('TSA Input'!J4364=\"\",\"\",IF(OR('TSA Input'!J4364=\"Yes\",'TSA Input'!J4364=\"Contingent\"),'TSA Input'!D4364,\"\"))","v":""},{"$f":"IF('TSA Input'!J4364=\"\",\"\",IF(OR('TSA Input'!J4364=\"Yes\",'TSA Input'!J4364=\"Contingent\"),'TSA Input'!G4364,\"\"))","v":""},{"$f":"IF('TSA Input'!J4364=\"\",\"\",IF(OR('TSA Input'!J4364=\"Yes\",'TSA Input'!J4364=\"Contingent\"),'TSA Input'!F4364,\"\"))","v":""},"","Required","Required"]
["",null,{"$f":"IF('TSA Input'!J4365=\"\",\"\",IF(OR('TSA Input'!J4365=\"Yes\",'TSA Input'!J4365=\"Contingent\"),'TSA Input'!B4365,\"Ineligible\"))","v":""},{"$f":"IF('TSA Input'!J4365=\"\",\"\",IF(OR('TSA Input'!J4365=\"Yes\",'TSA Input'!J4365=\"Contingent\"),'TSA Input'!I4365,\"\"))","v":""},{"$f":"IF('TSA Input'!J4365=\"\",\"\",IF(OR('TSA Input'!J4365=\"Yes\",'TSA Input'!J4365=\"Contingent\"),'TSA Input'!C4365,\"\"))","v":""},{"$f":"IF('TSA Input'!J4365=\"\",\"\",IF(OR('TSA Input'!J4365=\"Yes\",'TSA Input'!J4365=\"Contingent\"),'TSA Input'!D4365,\"\"))","v":""},{"$f":"IF('TSA Input'!J4365=\"\",\"\",IF(OR('TSA Input'!J4365=\"Yes\",'TSA Input'!J4365=\"Contingent\"),'TSA Input'!G4365,\"\"))","v":""},{"$f":"IF('TSA Input'!J4365=\"\",\"\",IF(OR('TSA Input'!J4365=\"Yes\",'TSA Input'!J4365=\"Contingent\"),'TSA Input'!F4365,\"\"))","v":""},"",{"$f":"IF('TSA Input'!J4365=\"\",\"\",IF(OR('TSA Input'!J4365=\"Yes\",'TSA Input'!J4365=\"Contingent\"),'TSA Input'!D4365,\"\"))","v":""},{"$f":"IF('TSA Input'!J4365=\"\",\"\",IF(OR('TSA Input'!J4365=\"Yes\",'TSA Input'!J4365=\"Contingent\"),'TSA Input'!G4365,\"\"))","v":""},{"$f":"IF('TSA Input'!J4365=\"\",\"\",IF(OR('TSA Input'!J4365=\"Yes\",'TSA Input'!J4365=\"Contingent\"),'TSA Input'!F4365,\"\"))","v":""},"","Required","Required"]
["",null,{"$f":"IF('TSA Input'!J4366=\"\",\"\",IF(OR('TSA Input'!J4366=\"Yes\",'TSA Input'!J4366=\"Contingent\"),'TSA Input'!B4366,\"Ineligible\"))","v":""},{"$f":"IF('TSA Input'!J4366=\"\",\"\",IF(OR('TSA Input'!J4366=\"Yes\",'TSA Input'!J4366=\"Contingent\"),'TSA Input'!I4366,\"\"))","v":""},{"$f":"IF('TSA Input'!J4366=\"\",\"\",IF(OR('TSA Input'!J4366=\"Yes\",'TSA Input'!J4366=\"Contingent\"),'TSA Input'!C4366,\"\"))","v":""},{"$f":"IF('TSA Input'!J4366=\"\",\"\",IF(OR('TSA Input'!J4366=\"Yes\",'TSA Input'!J4366=\"Contingent\"),'TSA Input'!D4366,\"\"))","v":""},{"$f":"IF('TSA Input'!J4366=\"\",\"\",IF(OR('TSA Input'!J4366=\"Yes\",'TSA Input'!J4366=\"Contingent\"),'TSA Input'!G4366,\"\"))","v":""},{"$f":"IF('TSA Input'!J4366=\"\",\"\",IF(OR('TSA Input'!J4366=\"Yes\",'TSA Input'!J4366=\"Contingent\"),'TSA Input'!F4366,\"\"))","v":""},"",{"$f":"IF('TSA Input'!J4366=\"\",\"\",IF(OR('TSA Input'!J4366=\"Yes\",'TSA Input'!J4366=\"Contingent\"),'TSA Input'!D4366,\"\"))","v":""},{"$f":"IF('TSA Input'!J4366=\"\",\"\",IF(OR('TSA Input'!J4366=\"Yes\",'TSA Input'!J4366=\"Contingent\"),'TSA Input'!G4366,\"\"))","v":""},{"$f":"IF('TSA Input'!J4366=\"\",\"\",IF(OR('TSA Input'!J4366=\"Yes\",'TSA Input'!J4366=\"Contingent\"),'TSA Input'!F4366,\"\"))","v":""},"","Required","Required"]
["",null,{"$f":"IF('TSA Input'!J4367=\"\",\"\",IF(OR('TSA Input'!J4367=\"Yes\",'TSA Input'!J4367=\"Contingent\"),'TSA Input'!B4367,\"Ineligible\"))","v":""},{"$f":"IF('TSA Input'!J4367=\"\",\"\",IF(OR('TSA Input'!J4367=\"Yes\",'TSA Input'!J4367=\"Contingent\"),'TSA Input'!I4367,\"\"))","v":""},{"$f":"IF('TSA Input'!J4367=\"\",\"\",IF(OR('TSA Input'!J4367=\"Yes\",'TSA Input'!J4367=\"Contingent\"),'TSA Input'!C4367,\"\"))","v":""},{"$f":"IF('TSA Input'!J4367=\"\",\"\",IF(OR('TSA Input'!J4367=\"Yes\",'TSA Input'!J4367=\"Contingent\"),'TSA Input'!D4367,\"\"))","v":""},{"$f":"IF('TSA Input'!J4367=\"\",\"\",IF(OR('TSA Input'!J4367=\"Yes\",'TSA Input'!J4367=\"Contingent\"),'TSA Input'!G4367,\"\"))","v":""},{"$f":"IF('TSA Input'!J4367=\"\",\"\",IF(OR('TSA Input'!J4367=\"Yes\",'TSA Input'!J4367=\"Contingent\"),'TSA Input'!F4367,\"\"))","v":""},"",{"$f":"IF('TSA Input'!J4367=\"\",\"\",IF(OR('TSA Input'!J4367=\"Yes\",'TSA Input'!J4367=\"Contingent\"),'TSA Input'!D4367,\"\"))","v":""},{"$f":"IF('TSA Input'!J4367=\"\",\"\",IF(OR('TSA Input'!J4367=\"Yes\",'TSA Input'!J4367=\"Contingent\"),'TSA Input'!G4367,\"\"))","v":""},{"$f":"IF('TSA Input'!J4367=\"\",\"\",IF(OR('TSA Input'!J4367=\"Yes\",'TSA Input'!J4367=\"Contingent\"),'TSA Input'!F4367,\"\"))","v":""},"","Required","Required"]
["",null,{"$f":"IF('TSA Input'!J4368=\"\",\"\",IF(OR('TSA Input'!J4368=\"Yes\",'TSA Input'!J4368=\"Contingent\"),'TSA Input'!B4368,\"Ineligible\"))","v":""},{"$f":"IF('TSA Input'!J4368=\"\",\"\",IF(OR('TSA Input'!J4368=\"Yes\",'TSA Input'!J4368=\"Contingent\"),'TSA Input'!I4368,\"\"))","v":""},{"$f":"IF('TSA Input'!J4368=\"\",\"\",IF(OR('TSA Input'!J4368=\"Yes\",'TSA Input'!J4368=\"Contingent\"),'TSA Input'!C4368,\"\"))","v":""},{"$f":"IF('TSA Input'!J4368=\"\",\"\",IF(OR('TSA Input'!J4368=\"Yes\",'TSA Input'!J4368=\"Contingent\"),'TSA Input'!D4368,\"\"))","v":""},{"$f":"IF('TSA Input'!J4368=\"\",\"\",IF(OR('TSA Input'!J4368=\"Yes\",'TSA Input'!J4368=\"Contingent\"),'TSA Input'!G4368,\"\"))","v":""},{"$f":"IF('TSA Input'!J4368=\"\",\"\",IF(OR('TSA Input'!J4368=\"Yes\",'TSA Input'!J4368=\"Contingent\"),'TSA Input'!F4368,\"\"))","v":""},"",{"$f":"IF('TSA Input'!J4368=\"\",\"\",IF(OR('TSA Input'!J4368=\"Yes\",'TSA Input'!J4368=\"Contingent\"),'TSA Input'!D4368,\"\"))","v":""},{"$f":"IF('TSA Input'!J4368=\"\",\"\",IF(OR('TSA Input'!J4368=\"Yes\",'TSA Input'!J4368=\"Contingent\"),'TSA Input'!G4368,\"\"))","v":""},{"$f":"IF('TSA Input'!J4368=\"\",\"\",IF(OR('TSA Input'!J4368=\"Yes\",'TSA Input'!J4368=\"Contingent\"),'TSA Input'!F4368,\"\"))","v":""},"","Required","Required"]
["",null,{"$f":"IF('TSA Input'!J4369=\"\",\"\",IF(OR('TSA Input'!J4369=\"Yes\",'TSA Input'!J4369=\"Contingent\"),'TSA Input'!B4369,\"Ineligible\"))","v":""},{"$f":"IF('TSA Input'!J4369=\"\",\"\",IF(OR('TSA Input'!J4369=\"Yes\",'TSA Input'!J4369=\"Contingent\"),'TSA Input'!I4369,\"\"))","v":""},{"$f":"IF('TSA Input'!J4369=\"\",\"\",IF(OR('TSA Input'!J4369=\"Yes\",'TSA Input'!J4369=\"Contingent\"),'TSA Input'!C4369,\"\"))","v":""},{"$f":"IF('TSA Input'!J4369=\"\",\"\",IF(OR('TSA Input'!J4369=\"Yes\",'TSA Input'!J4369=\"Contingent\"),'TSA Input'!D4369,\"\"))","v":""},{"$f":"IF('TSA Input'!J4369=\"\",\"\",IF(OR('TSA Input'!J4369=\"Yes\",'TSA Input'!J4369=\"Contingent\"),'TSA Input'!G4369,\"\"))","v":""},{"$f":"IF('TSA Input'!J4369=\"\",\"\",IF(OR('TSA Input'!J4369=\"Yes\",'TSA Input'!J4369=\"Contingent\"),'TSA Input'!F4369,\"\"))","v":""},"",{"$f":"IF('TSA Input'!J4369=\"\",\"\",IF(OR('TSA Input'!J4369=\"Yes\",'TSA Input'!J4369=\"Contingent\"),'TSA Input'!D4369,\"\"))","v":""},{"$f":"IF('TSA Input'!J4369=\"\",\"\",IF(OR('TSA Input'!J4369=\"Yes\",'TSA Input'!J4369=\"Contingent\"),'TSA Input'!G4369,\"\"))","v":""},{"$f":"IF('TSA Input'!J4369=\"\",\"\",IF(OR('TSA Input'!J4369=\"Yes\",'TSA Input'!J4369=\"Contingent\"),'TSA Input'!F4369,\"\"))","v":""},"","Required","Required"]
["",null,{"$f":"IF('TSA Input'!J4370=\"\",\"\",IF(OR('TSA Input'!J4370=\"Yes\",'TSA Input'!J4370=\"Contingent\"),'TSA Input'!B4370,\"Ineligible\"))","v":""},{"$f":"IF('TSA Input'!J4370=\"\",\"\",IF(OR('TSA Input'!J4370=\"Yes\",'TSA Input'!J4370=\"Contingent\"),'TSA Input'!I4370,\"\"))","v":""},{"$f":"IF('TSA Input'!J4370=\"\",\"\",IF(OR('TSA Input'!J4370=\"Yes\",'TSA Input'!J4370=\"Contingent\"),'TSA Input'!C4370,\"\"))","v":""},{"$f":"IF('TSA Input'!J4370=\"\",\"\",IF(OR('TSA Input'!J4370=\"Yes\",'TSA Input'!J4370=\"Contingent\"),'TSA Input'!D4370,\"\"))","v":""},{"$f":"IF('TSA Input'!J4370=\"\",\"\",IF(OR('TSA Input'!J4370=\"Yes\",'TSA Input'!J4370=\"Contingent\"),'TSA Input'!G4370,\"\"))","v":""},{"$f":"IF('TSA Input'!J4370=\"\",\"\",IF(OR('TSA Input'!J4370=\"Yes\",'TSA Input'!J4370=\"Contingent\"),'TSA Input'!F4370,\"\"))","v":""},"",{"$f":"IF('TSA Input'!J4370=\"\",\"\",IF(OR('TSA Input'!J4370=\"Yes\",'TSA Input'!J4370=\"Contingent\"),'TSA Input'!D4370,\"\"))","v":""},{"$f":"IF('TSA Input'!J4370=\"\",\"\",IF(OR('TSA Input'!J4370=\"Yes\",'TSA Input'!J4370=\"Contingent\"),'TSA Input'!G4370,\"\"))","v":""},{"$f":"IF('TSA Input'!J4370=\"\",\"\",IF(OR('TSA Input'!J4370=\"Yes\",'TSA Input'!J4370=\"Contingent\"),'TSA Input'!F4370,\"\"))","v":""},"","Required","Required"]
["",null,{"$f":"IF('TSA Input'!J4371=\"\",\"\",IF(OR('TSA Input'!J4371=\"Yes\",'TSA Input'!J4371=\"Contingent\"),'TSA Input'!B4371,\"Ineligible\"))","v":""},{"$f":"IF('TSA Input'!J4371=\"\",\"\",IF(OR('TSA Input'!J4371=\"Yes\",'TSA Input'!J4371=\"Contingent\"),'TSA Input'!I4371,\"\"))","v":""},{"$f":"IF('TSA Input'!J4371=\"\",\"\",IF(OR('TSA Input'!J4371=\"Yes\",'TSA Input'!J4371=\"Contingent\"),'TSA Input'!C4371,\"\"))","v":""},{"$f":"IF('TSA Input'!J4371=\"\",\"\",IF(OR('TSA Input'!J4371=\"Yes\",'TSA Input'!J4371=\"Contingent\"),'TSA Input'!D4371,\"\"))","v":""},{"$f":"IF('TSA Input'!J4371=\"\",\"\",IF(OR('TSA Input'!J4371=\"Yes\",'TSA Input'!J4371=\"Contingent\"),'TSA Input'!G4371,\"\"))","v":""},{"$f":"IF('TSA Input'!J4371=\"\",\"\",IF(OR('TSA Input'!J4371=\"Yes\",'TSA Input'!J4371=\"Contingent\"),'TSA Input'!F4371,\"\"))","v":""},"",{"$f":"IF('TSA Input'!J4371=\"\",\"\",IF(OR('TSA Input'!J4371=\"Yes\",'TSA Input'!J4371=\"Contingent\"),'TSA Input'!D4371,\"\"))","v":""},{"$f":"IF('TSA Input'!J4371=\"\",\"\",IF(OR('TSA Input'!J4371=\"Yes\",'TSA Input'!J4371=\"Contingent\"),'TSA Input'!G4371,\"\"))","v":""},{"$f":"IF('TSA Input'!J4371=\"\",\"\",IF(OR('TSA Input'!J4371=\"Yes\",'TSA Input'!J4371=\"Contingent\"),'TSA Input'!F4371,\"\"))","v":""},"","Required","Required"]
["",null,{"$f":"IF('TSA Input'!J4372=\"\",\"\",IF(OR('TSA Input'!J4372=\"Yes\",'TSA Input'!J4372=\"Contingent\"),'TSA Input'!B4372,\"Ineligible\"))","v":""},{"$f":"IF('TSA Input'!J4372=\"\",\"\",IF(OR('TSA Input'!J4372=\"Yes\",'TSA Input'!J4372=\"Contingent\"),'TSA Input'!I4372,\"\"))","v":""},{"$f":"IF('TSA Input'!J4372=\"\",\"\",IF(OR('TSA Input'!J4372=\"Yes\",'TSA Input'!J4372=\"Contingent\"),'TSA Input'!C4372,\"\"))","v":""},{"$f":"IF('TSA Input'!J4372=\"\",\"\",IF(OR('TSA Input'!J4372=\"Yes\",'TSA Input'!J4372=\"Contingent\"),'TSA Input'!D4372,\"\"))","v":""},{"$f":"IF('TSA Input'!J4372=\"\",\"\",IF(OR('TSA Input'!J4372=\"Yes\",'TSA Input'!J4372=\"Contingent\"),'TSA Input'!G4372,\"\"))","v":""},{"$f":"IF('TSA Input'!J4372=\"\",\"\",IF(OR('TSA Input'!J4372=\"Yes\",'TSA Input'!J4372=\"Contingent\"),'TSA Input'!F4372,\"\"))","v":""},"",{"$f":"IF('TSA Input'!J4372=\"\",\"\",IF(OR('TSA Input'!J4372=\"Yes\",'TSA Input'!J4372=\"Contingent\"),'TSA Input'!D4372,\"\"))","v":""},{"$f":"IF('TSA Input'!J4372=\"\",\"\",IF(OR('TSA Input'!J4372=\"Yes\",'TSA Input'!J4372=\"Contingent\"),'TSA Input'!G4372,\"\"))","v":""},{"$f":"IF('TSA Input'!J4372=\"\",\"\",IF(OR('TSA Input'!J4372=\"Yes\",'TSA Input'!J4372=\"Contingent\"),'TSA Input'!F4372,\"\"))","v":""},"","Required","Required"]
["",null,{"$f":"IF('TSA Input'!J4373=\"\",\"\",IF(OR('TSA Input'!J4373=\"Yes\",'TSA Input'!J4373=\"Contingent\"),'TSA Input'!B4373,\"Ineligible\"))","v":""},{"$f":"IF('TSA Input'!J4373=\"\",\"\",IF(OR('TSA Input'!J4373=\"Yes\",'TSA Input'!J4373=\"Contingent\"),'TSA Input'!I4373,\"\"))","v":""},{"$f":"IF('TSA Input'!J4373=\"\",\"\",IF(OR('TSA Input'!J4373=\"Yes\",'TSA Input'!J4373=\"Contingent\"),'TSA Input'!C4373,\"\"))","v":""},{"$f":"IF('TSA Input'!J4373=\"\",\"\",IF(OR('TSA Input'!J4373=\"Yes\",'TSA Input'!J4373=\"Contingent\"),'TSA Input'!D4373,\"\"))","v":""},{"$f":"IF('TSA Input'!J4373=\"\",\"\",IF(OR('TSA Input'!J4373=\"Yes\",'TSA Input'!J4373=\"Contingent\"),'TSA Input'!G4373,\"\"))","v":""},{"$f":"IF('TSA Input'!J4373=\"\",\"\",IF(OR('TSA Input'!J4373=\"Yes\",'TSA Input'!J4373=\"Contingent\"),'TSA Input'!F4373,\"\"))","v":""},"",{"$f":"IF('TSA Input'!J4373=\"\",\"\",IF(OR('TSA Input'!J4373=\"Yes\",'TSA Input'!J4373=\"Contingent\"),'TSA Input'!D4373,\"\"))","v":""},{"$f":"IF('TSA Input'!J4373=\"\",\"\",IF(OR('TSA Input'!J4373=\"Yes\",'TSA Input'!J4373=\"Contingent\"),'TSA Input'!G4373,\"\"))","v":""},{"$f":"IF('TSA Input'!J4373=\"\",\"\",IF(OR('TSA Input'!J4373=\"Yes\",'TSA Input'!J4373=\"Contingent\"),'TSA Input'!F4373,\"\"))","v":""},"","Required","Required"]
["",null,{"$f":"IF('TSA Input'!J4374=\"\",\"\",IF(OR('TSA Input'!J4374=\"Yes\",'TSA Input'!J4374=\"Contingent\"),'TSA Input'!B4374,\"Ineligible\"))","v":""},{"$f":"IF('TSA Input'!J4374=\"\",\"\",IF(OR('TSA Input'!J4374=\"Yes\",'TSA Input'!J4374=\"Contingent\"),'TSA Input'!I4374,\"\"))","v":""},{"$f":"IF('TSA Input'!J4374=\"\",\"\",IF(OR('TSA Input'!J4374=\"Yes\",'TSA Input'!J4374=\"Contingent\"),'TSA Input'!C4374,\"\"))","v":""},{"$f":"IF('TSA Input'!J4374=\"\",\"\",IF(OR('TSA Input'!J4374=\"Yes\",'TSA Input'!J4374=\"Contingent\"),'TSA Input'!D4374,\"\"))","v":""},{"$f":"IF('TSA Input'!J4374=\"\",\"\",IF(OR('TSA Input'!J4374=\"Yes\",'TSA Input'!J4374=\"Contingent\"),'TSA Input'!G4374,\"\"))","v":""},{"$f":"IF('TSA Input'!J4374=\"\",\"\",IF(OR('TSA Input'!J4374=\"Yes\",'TSA Input'!J4374=\"Contingent\"),'TSA Input'!F4374,\"\"))","v":""},"",{"$f":"IF('TSA Input'!J4374=\"\",\"\",IF(OR('TSA Input'!J4374=\"Yes\",'TSA Input'!J4374=\"Contingent\"),'TSA Input'!D4374,\"\"))","v":""},{"$f":"IF('TSA Input'!J4374=\"\",\"\",IF(OR('TSA Input'!J4374=\"Yes\",'TSA Input'!J4374=\"Contingent\"),'TSA Input'!G4374,\"\"))","v":""},{"$f":"IF('TSA Input'!J4374=\"\",\"\",IF(OR('TSA Input'!J4374=\"Yes\",'TSA Input'!J4374=\"Contingent\"),'TSA Input'!F4374,\"\"))","v":""},"","Required","Required"]
["",null,{"$f":"IF('TSA Input'!J4375=\"\",\"\",IF(OR('TSA Input'!J4375=\"Yes\",'TSA Input'!J4375=\"Contingent\"),'TSA Input'!B4375,\"Ineligible\"))","v":""},{"$f":"IF('TSA Input'!J4375=\"\",\"\",IF(OR('TSA Input'!J4375=\"Yes\",'TSA Input'!J4375=\"Contingent\"),'TSA Input'!I4375,\"\"))","v":""},{"$f":"IF('TSA Input'!J4375=\"\",\"\",IF(OR('TSA Input'!J4375=\"Yes\",'TSA Input'!J4375=\"Contingent\"),'TSA Input'!C4375,\"\"))","v":""},{"$f":"IF('TSA Input'!J4375=\"\",\"\",IF(OR('TSA Input'!J4375=\"Yes\",'TSA Input'!J4375=\"Contingent\"),'TSA Input'!D4375,\"\"))","v":""},{"$f":"IF('TSA Input'!J4375=\"\",\"\",IF(OR('TSA Input'!J4375=\"Yes\",'TSA Input'!J4375=\"Contingent\"),'TSA Input'!G4375,\"\"))","v":""},{"$f":"IF('TSA Input'!J4375=\"\",\"\",IF(OR('TSA Input'!J4375=\"Yes\",'TSA Input'!J4375=\"Contingent\"),'TSA Input'!F4375,\"\"))","v":""},"",{"$f":"IF('TSA Input'!J4375=\"\",\"\",IF(OR('TSA Input'!J4375=\"Yes\",'TSA Input'!J4375=\"Contingent\"),'TSA Input'!D4375,\"\"))","v":""},{"$f":"IF('TSA Input'!J4375=\"\",\"\",IF(OR('TSA Input'!J4375=\"Yes\",'TSA Input'!J4375=\"Contingent\"),'TSA Input'!G4375,\"\"))","v":""},{"$f":"IF('TSA Input'!J4375=\"\",\"\",IF(OR('TSA Input'!J4375=\"Yes\",'TSA Input'!J4375=\"Contingent\"),'TSA Input'!F4375,\"\"))","v":""},"","Required","Required"]
["",null,{"$f":"IF('TSA Input'!J4376=\"\",\"\",IF(OR('TSA Input'!J4376=\"Yes\",'TSA Input'!J4376=\"Contingent\"),'TSA Input'!B4376,\"Ineligible\"))","v":""},{"$f":"IF('TSA Input'!J4376=\"\",\"\",IF(OR('TSA Input'!J4376=\"Yes\",'TSA Input'!J4376=\"Contingent\"),'TSA Input'!I4376,\"\"))","v":""},{"$f":"IF('TSA Input'!J4376=\"\",\"\",IF(OR('TSA Input'!J4376=\"Yes\",'TSA Input'!J4376=\"Contingent\"),'TSA Input'!C4376,\"\"))","v":""},{"$f":"IF('TSA Input'!J4376=\"\",\"\",IF(OR('TSA Input'!J4376=\"Yes\",'TSA Input'!J4376=\"Contingent\"),'TSA Input'!D4376,\"\"))","v":""},{"$f":"IF('TSA Input'!J4376=\"\",\"\",IF(OR('TSA Input'!J4376=\"Yes\",'TSA Input'!J4376=\"Contingent\"),'TSA Input'!G4376,\"\"))","v":""},{"$f":"IF('TSA Input'!J4376=\"\",\"\",IF(OR('TSA Input'!J4376=\"Yes\",'TSA Input'!J4376=\"Contingent\"),'TSA Input'!F4376,\"\"))","v":""},"",{"$f":"IF('TSA Input'!J4376=\"\",\"\",IF(OR('TSA Input'!J4376=\"Yes\",'TSA Input'!J4376=\"Contingent\"),'TSA Input'!D4376,\"\"))","v":""},{"$f":"IF('TSA Input'!J4376=\"\",\"\",IF(OR('TSA Input'!J4376=\"Yes\",'TSA Input'!J4376=\"Contingent\"),'TSA Input'!G4376,\"\"))","v":""},{"$f":"IF('TSA Input'!J4376=\"\",\"\",IF(OR('TSA Input'!J4376=\"Yes\",'TSA Input'!J4376=\"Contingent\"),'TSA Input'!F4376,\"\"))","v":""},"","Required","Required"]
["",null,{"$f":"IF('TSA Input'!J4377=\"\",\"\",IF(OR('TSA Input'!J4377=\"Yes\",'TSA Input'!J4377=\"Contingent\"),'TSA Input'!B4377,\"Ineligible\"))","v":""},{"$f":"IF('TSA Input'!J4377=\"\",\"\",IF(OR('TSA Input'!J4377=\"Yes\",'TSA Input'!J4377=\"Contingent\"),'TSA Input'!I4377,\"\"))","v":""},{"$f":"IF('TSA Input'!J4377=\"\",\"\",IF(OR('TSA Input'!J4377=\"Yes\",'TSA Input'!J4377=\"Contingent\"),'TSA Input'!C4377,\"\"))","v":""},{"$f":"IF('TSA Input'!J4377=\"\",\"\",IF(OR('TSA Input'!J4377=\"Yes\",'TSA Input'!J4377=\"Contingent\"),'TSA Input'!D4377,\"\"))","v":""},{"$f":"IF('TSA Input'!J4377=\"\",\"\",IF(OR('TSA Input'!J4377=\"Yes\",'TSA Input'!J4377=\"Contingent\"),'TSA Input'!G4377,\"\"))","v":""},{"$f":"IF('TSA Input'!J4377=\"\",\"\",IF(OR('TSA Input'!J4377=\"Yes\",'TSA Input'!J4377=\"Contingent\"),'TSA Input'!F4377,\"\"))","v":""},"",{"$f":"IF('TSA Input'!J4377=\"\",\"\",IF(OR('TSA Input'!J4377=\"Yes\",'TSA Input'!J4377=\"Contingent\"),'TSA Input'!D4377,\"\"))","v":""},{"$f":"IF('TSA Input'!J4377=\"\",\"\",IF(OR('TSA Input'!J4377=\"Yes\",'TSA Input'!J4377=\"Contingent\"),'TSA Input'!G4377,\"\"))","v":""},{"$f":"IF('TSA Input'!J4377=\"\",\"\",IF(OR('TSA Input'!J4377=\"Yes\",'TSA Input'!J4377=\"Contingent\"),'TSA Input'!F4377,\"\"))","v":""},"","Required","Required"]
["",null,{"$f":"IF('TSA Input'!J4378=\"\",\"\",IF(OR('TSA Input'!J4378=\"Yes\",'TSA Input'!J4378=\"Contingent\"),'TSA Input'!B4378,\"Ineligible\"))","v":""},{"$f":"IF('TSA Input'!J4378=\"\",\"\",IF(OR('TSA Input'!J4378=\"Yes\",'TSA Input'!J4378=\"Contingent\"),'TSA Input'!I4378,\"\"))","v":""},{"$f":"IF('TSA Input'!J4378=\"\",\"\",IF(OR('TSA Input'!J4378=\"Yes\",'TSA Input'!J4378=\"Contingent\"),'TSA Input'!C4378,\"\"))","v":""},{"$f":"IF('TSA Input'!J4378=\"\",\"\",IF(OR('TSA Input'!J4378=\"Yes\",'TSA Input'!J4378=\"Contingent\"),'TSA Input'!D4378,\"\"))","v":""},{"$f":"IF('TSA Input'!J4378=\"\",\"\",IF(OR('TSA Input'!J4378=\"Yes\",'TSA Input'!J4378=\"Contingent\"),'TSA Input'!G4378,\"\"))","v":""},{"$f":"IF('TSA Input'!J4378=\"\",\"\",IF(OR('TSA Input'!J4378=\"Yes\",'TSA Input'!J4378=\"Contingent\"),'TSA Input'!F4378,\"\"))","v":""},"",{"$f":"IF('TSA Input'!J4378=\"\",\"\",IF(OR('TSA Input'!J4378=\"Yes\",'TSA Input'!J4378=\"Contingent\"),'TSA Input'!D4378,\"\"))","v":""},{"$f":"IF('TSA Input'!J4378=\"\",\"\",IF(OR('TSA Input'!J4378=\"Yes\",'TSA Input'!J4378=\"Contingent\"),'TSA Input'!G4378,\"\"))","v":""},{"$f":"IF('TSA Input'!J4378=\"\",\"\",IF(OR('TSA Input'!J4378=\"Yes\",'TSA Input'!J4378=\"Contingent\"),'TSA Input'!F4378,\"\"))","v":""},"","Required","Required"]
["",null,{"$f":"IF('TSA Input'!J4379=\"\",\"\",IF(OR('TSA Input'!J4379=\"Yes\",'TSA Input'!J4379=\"Contingent\"),'TSA Input'!B4379,\"Ineligible\"))","v":""},{"$f":"IF('TSA Input'!J4379=\"\",\"\",IF(OR('TSA Input'!J4379=\"Yes\",'TSA Input'!J4379=\"Contingent\"),'TSA Input'!I4379,\"\"))","v":""},{"$f":"IF('TSA Input'!J4379=\"\",\"\",IF(OR('TSA Input'!J4379=\"Yes\",'TSA Input'!J4379=\"Contingent\"),'TSA Input'!C4379,\"\"))","v":""},{"$f":"IF('TSA Input'!J4379=\"\",\"\",IF(OR('TSA Input'!J4379=\"Yes\",'TSA Input'!J4379=\"Contingent\"),'TSA Input'!D4379,\"\"))","v":""},{"$f":"IF('TSA Input'!J4379=\"\",\"\",IF(OR('TSA Input'!J4379=\"Yes\",'TSA Input'!J4379=\"Contingent\"),'TSA Input'!G4379,\"\"))","v":""},{"$f":"IF('TSA Input'!J4379=\"\",\"\",IF(OR('TSA Input'!J4379=\"Yes\",'TSA Input'!J4379=\"Contingent\"),'TSA Input'!F4379,\"\"))","v":""},"",{"$f":"IF('TSA Input'!J4379=\"\",\"\",IF(OR('TSA Input'!J4379=\"Yes\",'TSA Input'!J4379=\"Contingent\"),'TSA Input'!D4379,\"\"))","v":""},{"$f":"IF('TSA Input'!J4379=\"\",\"\",IF(OR('TSA Input'!J4379=\"Yes\",'TSA Input'!J4379=\"Contingent\"),'TSA Input'!G4379,\"\"))","v":""},{"$f":"IF('TSA Input'!J4379=\"\",\"\",IF(OR('TSA Input'!J4379=\"Yes\",'TSA Input'!J4379=\"Contingent\"),'TSA Input'!F4379,\"\"))","v":""},"","Required","Required"]
["",null,{"$f":"IF('TSA Input'!J4380=\"\",\"\",IF(OR('TSA Input'!J4380=\"Yes\",'TSA Input'!J4380=\"Contingent\"),'TSA Input'!B4380,\"Ineligible\"))","v":""},{"$f":"IF('TSA Input'!J4380=\"\",\"\",IF(OR('TSA Input'!J4380=\"Yes\",'TSA Input'!J4380=\"Contingent\"),'TSA Input'!I4380,\"\"))","v":""},{"$f":"IF('TSA Input'!J4380=\"\",\"\",IF(OR('TSA Input'!J4380=\"Yes\",'TSA Input'!J4380=\"Contingent\"),'TSA Input'!C4380,\"\"))","v":""},{"$f":"IF('TSA Input'!J4380=\"\",\"\",IF(OR('TSA Input'!J4380=\"Yes\",'TSA Input'!J4380=\"Contingent\"),'TSA Input'!D4380,\"\"))","v":""},{"$f":"IF('TSA Input'!J4380=\"\",\"\",IF(OR('TSA Input'!J4380=\"Yes\",'TSA Input'!J4380=\"Contingent\"),'TSA Input'!G4380,\"\"))","v":""},{"$f":"IF('TSA Input'!J4380=\"\",\"\",IF(OR('TSA Input'!J4380=\"Yes\",'TSA Input'!J4380=\"Contingent\"),'TSA Input'!F4380,\"\"))","v":""},"",{"$f":"IF('TSA Input'!J4380=\"\",\"\",IF(OR('TSA Input'!J4380=\"Yes\",'TSA Input'!J4380=\"Contingent\"),'TSA Input'!D4380,\"\"))","v":""},{"$f":"IF('TSA Input'!J4380=\"\",\"\",IF(OR('TSA Input'!J4380=\"Yes\",'TSA Input'!J4380=\"Contingent\"),'TSA Input'!G4380,\"\"))","v":""},{"$f":"IF('TSA Input'!J4380=\"\",\"\",IF(OR('TSA Input'!J4380=\"Yes\",'TSA Input'!J4380=\"Contingent\"),'TSA Input'!F4380,\"\"))","v":""},"","Required","Required"]
["",null,{"$f":"IF('TSA Input'!J4381=\"\",\"\",IF(OR('TSA Input'!J4381=\"Yes\",'TSA Input'!J4381=\"Contingent\"),'TSA Input'!B4381,\"Ineligible\"))","v":""},{"$f":"IF('TSA Input'!J4381=\"\",\"\",IF(OR('TSA Input'!J4381=\"Yes\",'TSA Input'!J4381=\"Contingent\"),'TSA Input'!I4381,\"\"))","v":""},{"$f":"IF('TSA Input'!J4381=\"\",\"\",IF(OR('TSA Input'!J4381=\"Yes\",'TSA Input'!J4381=\"Contingent\"),'TSA Input'!C4381,\"\"))","v":""},{"$f":"IF('TSA Input'!J4381=\"\",\"\",IF(OR('TSA Input'!J4381=\"Yes\",'TSA Input'!J4381=\"Contingent\"),'TSA Input'!D4381,\"\"))","v":""},{"$f":"IF('TSA Input'!J4381=\"\",\"\",IF(OR('TSA Input'!J4381=\"Yes\",'TSA Input'!J4381=\"Contingent\"),'TSA Input'!G4381,\"\"))","v":""},{"$f":"IF('TSA Input'!J4381=\"\",\"\",IF(OR('TSA Input'!J4381=\"Yes\",'TSA Input'!J4381=\"Contingent\"),'TSA Input'!F4381,\"\"))","v":""},"",{"$f":"IF('TSA Input'!J4381=\"\",\"\",IF(OR('TSA Input'!J4381=\"Yes\",'TSA Input'!J4381=\"Contingent\"),'TSA Input'!D4381,\"\"))","v":""},{"$f":"IF('TSA Input'!J4381=\"\",\"\",IF(OR('TSA Input'!J4381=\"Yes\",'TSA Input'!J4381=\"Contingent\"),'TSA Input'!G4381,\"\"))","v":""},{"$f":"IF('TSA Input'!J4381=\"\",\"\",IF(OR('TSA Input'!J4381=\"Yes\",'TSA Input'!J4381=\"Contingent\"),'TSA Input'!F4381,\"\"))","v":""},"","Required","Required"]
["",null,{"$f":"IF('TSA Input'!J4382=\"\",\"\",IF(OR('TSA Input'!J4382=\"Yes\",'TSA Input'!J4382=\"Contingent\"),'TSA Input'!B4382,\"Ineligible\"))","v":""},{"$f":"IF('TSA Input'!J4382=\"\",\"\",IF(OR('TSA Input'!J4382=\"Yes\",'TSA Input'!J4382=\"Contingent\"),'TSA Input'!I4382,\"\"))","v":""},{"$f":"IF('TSA Input'!J4382=\"\",\"\",IF(OR('TSA Input'!J4382=\"Yes\",'TSA Input'!J4382=\"Contingent\"),'TSA Input'!C4382,\"\"))","v":""},{"$f":"IF('TSA Input'!J4382=\"\",\"\",IF(OR('TSA Input'!J4382=\"Yes\",'TSA Input'!J4382=\"Contingent\"),'TSA Input'!D4382,\"\"))","v":""},{"$f":"IF('TSA Input'!J4382=\"\",\"\",IF(OR('TSA Input'!J4382=\"Yes\",'TSA Input'!J4382=\"Contingent\"),'TSA Input'!G4382,\"\"))","v":""},{"$f":"IF('TSA Input'!J4382=\"\",\"\",IF(OR('TSA Input'!J4382=\"Yes\",'TSA Input'!J4382=\"Contingent\"),'TSA Input'!F4382,\"\"))","v":""},"",{"$f":"IF('TSA Input'!J4382=\"\",\"\",IF(OR('TSA Input'!J4382=\"Yes\",'TSA Input'!J4382=\"Contingent\"),'TSA Input'!D4382,\"\"))","v":""},{"$f":"IF('TSA Input'!J4382=\"\",\"\",IF(OR('TSA Input'!J4382=\"Yes\",'TSA Input'!J4382=\"Contingent\"),'TSA Input'!G4382,\"\"))","v":""},{"$f":"IF('TSA Input'!J4382=\"\",\"\",IF(OR('TSA Input'!J4382=\"Yes\",'TSA Input'!J4382=\"Contingent\"),'TSA Input'!F4382,\"\"))","v":""},"","Required","Required"]
["",null,{"$f":"IF('TSA Input'!J4383=\"\",\"\",IF(OR('TSA Input'!J4383=\"Yes\",'TSA Input'!J4383=\"Contingent\"),'TSA Input'!B4383,\"Ineligible\"))","v":""},{"$f":"IF('TSA Input'!J4383=\"\",\"\",IF(OR('TSA Input'!J4383=\"Yes\",'TSA Input'!J4383=\"Contingent\"),'TSA Input'!I4383,\"\"))","v":""},{"$f":"IF('TSA Input'!J4383=\"\",\"\",IF(OR('TSA Input'!J4383=\"Yes\",'TSA Input'!J4383=\"Contingent\"),'TSA Input'!C4383,\"\"))","v":""},{"$f":"IF('TSA Input'!J4383=\"\",\"\",IF(OR('TSA Input'!J4383=\"Yes\",'TSA Input'!J4383=\"Contingent\"),'TSA Input'!D4383,\"\"))","v":""},{"$f":"IF('TSA Input'!J4383=\"\",\"\",IF(OR('TSA Input'!J4383=\"Yes\",'TSA Input'!J4383=\"Contingent\"),'TSA Input'!G4383,\"\"))","v":""},{"$f":"IF('TSA Input'!J4383=\"\",\"\",IF(OR('TSA Input'!J4383=\"Yes\",'TSA Input'!J4383=\"Contingent\"),'TSA Input'!F4383,\"\"))","v":""},"",{"$f":"IF('TSA Input'!J4383=\"\",\"\",IF(OR('TSA Input'!J4383=\"Yes\",'TSA Input'!J4383=\"Contingent\"),'TSA Input'!D4383,\"\"))","v":""},{"$f":"IF('TSA Input'!J4383=\"\",\"\",IF(OR('TSA Input'!J4383=\"Yes\",'TSA Input'!J4383=\"Contingent\"),'TSA Input'!G4383,\"\"))","v":""},{"$f":"IF('TSA Input'!J4383=\"\",\"\",IF(OR('TSA Input'!J4383=\"Yes\",'TSA Input'!J4383=\"Contingent\"),'TSA Input'!F4383,\"\"))","v":""},"","Required","Required"]
["",null,{"$f":"IF('TSA Input'!J4384=\"\",\"\",IF(OR('TSA Input'!J4384=\"Yes\",'TSA Input'!J4384=\"Contingent\"),'TSA Input'!B4384,\"Ineligible\"))","v":""},{"$f":"IF('TSA Input'!J4384=\"\",\"\",IF(OR('TSA Input'!J4384=\"Yes\",'TSA Input'!J4384=\"Contingent\"),'TSA Input'!I4384,\"\"))","v":""},{"$f":"IF('TSA Input'!J4384=\"\",\"\",IF(OR('TSA Input'!J4384=\"Yes\",'TSA Input'!J4384=\"Contingent\"),'TSA Input'!C4384,\"\"))","v":""},{"$f":"IF('TSA Input'!J4384=\"\",\"\",IF(OR('TSA Input'!J4384=\"Yes\",'TSA Input'!J4384=\"Contingent\"),'TSA Input'!D4384,\"\"))","v":""},{"$f":"IF('TSA Input'!J4384=\"\",\"\",IF(OR('TSA Input'!J4384=\"Yes\",'TSA Input'!J4384=\"Contingent\"),'TSA Input'!G4384,\"\"))","v":""},{"$f":"IF('TSA Input'!J4384=\"\",\"\",IF(OR('TSA Input'!J4384=\"Yes\",'TSA Input'!J4384=\"Contingent\"),'TSA Input'!F4384,\"\"))","v":""},"",{"$f":"IF('TSA Input'!J4384=\"\",\"\",IF(OR('TSA Input'!J4384=\"Yes\",'TSA Input'!J4384=\"Contingent\"),'TSA Input'!D4384,\"\"))","v":""},{"$f":"IF('TSA Input'!J4384=\"\",\"\",IF(OR('TSA Input'!J4384=\"Yes\",'TSA Input'!J4384=\"Contingent\"),'TSA Input'!G4384,\"\"))","v":""},{"$f":"IF('TSA Input'!J4384=\"\",\"\",IF(OR('TSA Input'!J4384=\"Yes\",'TSA Input'!J4384=\"Contingent\"),'TSA Input'!F4384,\"\"))","v":""},"","Required","Required"]
["",null,{"$f":"IF('TSA Input'!J4385=\"\",\"\",IF(OR('TSA Input'!J4385=\"Yes\",'TSA Input'!J4385=\"Contingent\"),'TSA Input'!B4385,\"Ineligible\"))","v":""},{"$f":"IF('TSA Input'!J4385=\"\",\"\",IF(OR('TSA Input'!J4385=\"Yes\",'TSA Input'!J4385=\"Contingent\"),'TSA Input'!I4385,\"\"))","v":""},{"$f":"IF('TSA Input'!J4385=\"\",\"\",IF(OR('TSA Input'!J4385=\"Yes\",'TSA Input'!J4385=\"Contingent\"),'TSA Input'!C4385,\"\"))","v":""},{"$f":"IF('TSA Input'!J4385=\"\",\"\",IF(OR('TSA Input'!J4385=\"Yes\",'TSA Input'!J4385=\"Contingent\"),'TSA Input'!D4385,\"\"))","v":""},{"$f":"IF('TSA Input'!J4385=\"\",\"\",IF(OR('TSA Input'!J4385=\"Yes\",'TSA Input'!J4385=\"Contingent\"),'TSA Input'!G4385,\"\"))","v":""},{"$f":"IF('TSA Input'!J4385=\"\",\"\",IF(OR('TSA Input'!J4385=\"Yes\",'TSA Input'!J4385=\"Contingent\"),'TSA Input'!F4385,\"\"))","v":""},"",{"$f":"IF('TSA Input'!J4385=\"\",\"\",IF(OR('TSA Input'!J4385=\"Yes\",'TSA Input'!J4385=\"Contingent\"),'TSA Input'!D4385,\"\"))","v":""},{"$f":"IF('TSA Input'!J4385=\"\",\"\",IF(OR('TSA Input'!J4385=\"Yes\",'TSA Input'!J4385=\"Contingent\"),'TSA Input'!G4385,\"\"))","v":""},{"$f":"IF('TSA Input'!J4385=\"\",\"\",IF(OR('TSA Input'!J4385=\"Yes\",'TSA Input'!J4385=\"Contingent\"),'TSA Input'!F4385,\"\"))","v":""},"","Required","Required"]
["",null,{"$f":"IF('TSA Input'!J4386=\"\",\"\",IF(OR('TSA Input'!J4386=\"Yes\",'TSA Input'!J4386=\"Contingent\"),'TSA Input'!B4386,\"Ineligible\"))","v":""},{"$f":"IF('TSA Input'!J4386=\"\",\"\",IF(OR('TSA Input'!J4386=\"Yes\",'TSA Input'!J4386=\"Contingent\"),'TSA Input'!I4386,\"\"))","v":""},{"$f":"IF('TSA Input'!J4386=\"\",\"\",IF(OR('TSA Input'!J4386=\"Yes\",'TSA Input'!J4386=\"Contingent\"),'TSA Input'!C4386,\"\"))","v":""},{"$f":"IF('TSA Input'!J4386=\"\",\"\",IF(OR('TSA Input'!J4386=\"Yes\",'TSA Input'!J4386=\"Contingent\"),'TSA Input'!D4386,\"\"))","v":""},{"$f":"IF('TSA Input'!J4386=\"\",\"\",IF(OR('TSA Input'!J4386=\"Yes\",'TSA Input'!J4386=\"Contingent\"),'TSA Input'!G4386,\"\"))","v":""},{"$f":"IF('TSA Input'!J4386=\"\",\"\",IF(OR('TSA Input'!J4386=\"Yes\",'TSA Input'!J4386=\"Contingent\"),'TSA Input'!F4386,\"\"))","v":""},"",{"$f":"IF('TSA Input'!J4386=\"\",\"\",IF(OR('TSA Input'!J4386=\"Yes\",'TSA Input'!J4386=\"Contingent\"),'TSA Input'!D4386,\"\"))","v":""},{"$f":"IF('TSA Input'!J4386=\"\",\"\",IF(OR('TSA Input'!J4386=\"Yes\",'TSA Input'!J4386=\"Contingent\"),'TSA Input'!G4386,\"\"))","v":""},{"$f":"IF('TSA Input'!J4386=\"\",\"\",IF(OR('TSA Input'!J4386=\"Yes\",'TSA Input'!J4386=\"Contingent\"),'TSA Input'!F4386,\"\"))","v":""},"","Required","Required"]
["",null,{"$f":"IF('TSA Input'!J4387=\"\",\"\",IF(OR('TSA Input'!J4387=\"Yes\",'TSA Input'!J4387=\"Contingent\"),'TSA Input'!B4387,\"Ineligible\"))","v":""},{"$f":"IF('TSA Input'!J4387=\"\",\"\",IF(OR('TSA Input'!J4387=\"Yes\",'TSA Input'!J4387=\"Contingent\"),'TSA Input'!I4387,\"\"))","v":""},{"$f":"IF('TSA Input'!J4387=\"\",\"\",IF(OR('TSA Input'!J4387=\"Yes\",'TSA Input'!J4387=\"Contingent\"),'TSA Input'!C4387,\"\"))","v":""},{"$f":"IF('TSA Input'!J4387=\"\",\"\",IF(OR('TSA Input'!J4387=\"Yes\",'TSA Input'!J4387=\"Contingent\"),'TSA Input'!D4387,\"\"))","v":""},{"$f":"IF('TSA Input'!J4387=\"\",\"\",IF(OR('TSA Input'!J4387=\"Yes\",'TSA Input'!J4387=\"Contingent\"),'TSA Input'!G4387,\"\"))","v":""},{"$f":"IF('TSA Input'!J4387=\"\",\"\",IF(OR('TSA Input'!J4387=\"Yes\",'TSA Input'!J4387=\"Contingent\"),'TSA Input'!F4387,\"\"))","v":""},"",{"$f":"IF('TSA Input'!J4387=\"\",\"\",IF(OR('TSA Input'!J4387=\"Yes\",'TSA Input'!J4387=\"Contingent\"),'TSA Input'!D4387,\"\"))","v":""},{"$f":"IF('TSA Input'!J4387=\"\",\"\",IF(OR('TSA Input'!J4387=\"Yes\",'TSA Input'!J4387=\"Contingent\"),'TSA Input'!G4387,\"\"))","v":""},{"$f":"IF('TSA Input'!J4387=\"\",\"\",IF(OR('TSA Input'!J4387=\"Yes\",'TSA Input'!J4387=\"Contingent\"),'TSA Input'!F4387,\"\"))","v":""},"","Required","Required"]
["",null,{"$f":"IF('TSA Input'!J4388=\"\",\"\",IF(OR('TSA Input'!J4388=\"Yes\",'TSA Input'!J4388=\"Contingent\"),'TSA Input'!B4388,\"Ineligible\"))","v":""},{"$f":"IF('TSA Input'!J4388=\"\",\"\",IF(OR('TSA Input'!J4388=\"Yes\",'TSA Input'!J4388=\"Contingent\"),'TSA Input'!I4388,\"\"))","v":""},{"$f":"IF('TSA Input'!J4388=\"\",\"\",IF(OR('TSA Input'!J4388=\"Yes\",'TSA Input'!J4388=\"Contingent\"),'TSA Input'!C4388,\"\"))","v":""},{"$f":"IF('TSA Input'!J4388=\"\",\"\",IF(OR('TSA Input'!J4388=\"Yes\",'TSA Input'!J4388=\"Contingent\"),'TSA Input'!D4388,\"\"))","v":""},{"$f":"IF('TSA Input'!J4388=\"\",\"\",IF(OR('TSA Input'!J4388=\"Yes\",'TSA Input'!J4388=\"Contingent\"),'TSA Input'!G4388,\"\"))","v":""},{"$f":"IF('TSA Input'!J4388=\"\",\"\",IF(OR('TSA Input'!J4388=\"Yes\",'TSA Input'!J4388=\"Contingent\"),'TSA Input'!F4388,\"\"))","v":""},"",{"$f":"IF('TSA Input'!J4388=\"\",\"\",IF(OR('TSA Input'!J4388=\"Yes\",'TSA Input'!J4388=\"Contingent\"),'TSA Input'!D4388,\"\"))","v":""},{"$f":"IF('TSA Input'!J4388=\"\",\"\",IF(OR('TSA Input'!J4388=\"Yes\",'TSA Input'!J4388=\"Contingent\"),'TSA Input'!G4388,\"\"))","v":""},{"$f":"IF('TSA Input'!J4388=\"\",\"\",IF(OR('TSA Input'!J4388=\"Yes\",'TSA Input'!J4388=\"Contingent\"),'TSA Input'!F4388,\"\"))","v":""},"","Required","Required"]
["",null,{"$f":"IF('TSA Input'!J4389=\"\",\"\",IF(OR('TSA Input'!J4389=\"Yes\",'TSA Input'!J4389=\"Contingent\"),'TSA Input'!B4389,\"Ineligible\"))","v":""},{"$f":"IF('TSA Input'!J4389=\"\",\"\",IF(OR('TSA Input'!J4389=\"Yes\",'TSA Input'!J4389=\"Contingent\"),'TSA Input'!I4389,\"\"))","v":""},{"$f":"IF('TSA Input'!J4389=\"\",\"\",IF(OR('TSA Input'!J4389=\"Yes\",'TSA Input'!J4389=\"Contingent\"),'TSA Input'!C4389,\"\"))","v":""},{"$f":"IF('TSA Input'!J4389=\"\",\"\",IF(OR('TSA Input'!J4389=\"Yes\",'TSA Input'!J4389=\"Contingent\"),'TSA Input'!D4389,\"\"))","v":""},{"$f":"IF('TSA Input'!J4389=\"\",\"\",IF(OR('TSA Input'!J4389=\"Yes\",'TSA Input'!J4389=\"Contingent\"),'TSA Input'!G4389,\"\"))","v":""},{"$f":"IF('TSA Input'!J4389=\"\",\"\",IF(OR('TSA Input'!J4389=\"Yes\",'TSA Input'!J4389=\"Contingent\"),'TSA Input'!F4389,\"\"))","v":""},"",{"$f":"IF('TSA Input'!J4389=\"\",\"\",IF(OR('TSA Input'!J4389=\"Yes\",'TSA Input'!J4389=\"Contingent\"),'TSA Input'!D4389,\"\"))","v":""},{"$f":"IF('TSA Input'!J4389=\"\",\"\",IF(OR('TSA Input'!J4389=\"Yes\",'TSA Input'!J4389=\"Contingent\"),'TSA Input'!G4389,\"\"))","v":""},{"$f":"IF('TSA Input'!J4389=\"\",\"\",IF(OR('TSA Input'!J4389=\"Yes\",'TSA Input'!J4389=\"Contingent\"),'TSA Input'!F4389,\"\"))","v":""},"","Required","Required"]
["",null,{"$f":"IF('TSA Input'!J4390=\"\",\"\",IF(OR('TSA Input'!J4390=\"Yes\",'TSA Input'!J4390=\"Contingent\"),'TSA Input'!B4390,\"Ineligible\"))","v":""},{"$f":"IF('TSA Input'!J4390=\"\",\"\",IF(OR('TSA Input'!J4390=\"Yes\",'TSA Input'!J4390=\"Contingent\"),'TSA Input'!I4390,\"\"))","v":""},{"$f":"IF('TSA Input'!J4390=\"\",\"\",IF(OR('TSA Input'!J4390=\"Yes\",'TSA Input'!J4390=\"Contingent\"),'TSA Input'!C4390,\"\"))","v":""},{"$f":"IF('TSA Input'!J4390=\"\",\"\",IF(OR('TSA Input'!J4390=\"Yes\",'TSA Input'!J4390=\"Contingent\"),'TSA Input'!D4390,\"\"))","v":""},{"$f":"IF('TSA Input'!J4390=\"\",\"\",IF(OR('TSA Input'!J4390=\"Yes\",'TSA Input'!J4390=\"Contingent\"),'TSA Input'!G4390,\"\"))","v":""},{"$f":"IF('TSA Input'!J4390=\"\",\"\",IF(OR('TSA Input'!J4390=\"Yes\",'TSA Input'!J4390=\"Contingent\"),'TSA Input'!F4390,\"\"))","v":""},"",{"$f":"IF('TSA Input'!J4390=\"\",\"\",IF(OR('TSA Input'!J4390=\"Yes\",'TSA Input'!J4390=\"Contingent\"),'TSA Input'!D4390,\"\"))","v":""},{"$f":"IF('TSA Input'!J4390=\"\",\"\",IF(OR('TSA Input'!J4390=\"Yes\",'TSA Input'!J4390=\"Contingent\"),'TSA Input'!G4390,\"\"))","v":""},{"$f":"IF('TSA Input'!J4390=\"\",\"\",IF(OR('TSA Input'!J4390=\"Yes\",'TSA Input'!J4390=\"Contingent\"),'TSA Input'!F4390,\"\"))","v":""},"","Required","Required"]
["",null,{"$f":"IF('TSA Input'!J4391=\"\",\"\",IF(OR('TSA Input'!J4391=\"Yes\",'TSA Input'!J4391=\"Contingent\"),'TSA Input'!B4391,\"Ineligible\"))","v":""},{"$f":"IF('TSA Input'!J4391=\"\",\"\",IF(OR('TSA Input'!J4391=\"Yes\",'TSA Input'!J4391=\"Contingent\"),'TSA Input'!I4391,\"\"))","v":""},{"$f":"IF('TSA Input'!J4391=\"\",\"\",IF(OR('TSA Input'!J4391=\"Yes\",'TSA Input'!J4391=\"Contingent\"),'TSA Input'!C4391,\"\"))","v":""},{"$f":"IF('TSA Input'!J4391=\"\",\"\",IF(OR('TSA Input'!J4391=\"Yes\",'TSA Input'!J4391=\"Contingent\"),'TSA Input'!D4391,\"\"))","v":""},{"$f":"IF('TSA Input'!J4391=\"\",\"\",IF(OR('TSA Input'!J4391=\"Yes\",'TSA Input'!J4391=\"Contingent\"),'TSA Input'!G4391,\"\"))","v":""},{"$f":"IF('TSA Input'!J4391=\"\",\"\",IF(OR('TSA Input'!J4391=\"Yes\",'TSA Input'!J4391=\"Contingent\"),'TSA Input'!F4391,\"\"))","v":""},"",{"$f":"IF('TSA Input'!J4391=\"\",\"\",IF(OR('TSA Input'!J4391=\"Yes\",'TSA Input'!J4391=\"Contingent\"),'TSA Input'!D4391,\"\"))","v":""},{"$f":"IF('TSA Input'!J4391=\"\",\"\",IF(OR('TSA Input'!J4391=\"Yes\",'TSA Input'!J4391=\"Contingent\"),'TSA Input'!G4391,\"\"))","v":""},{"$f":"IF('TSA Input'!J4391=\"\",\"\",IF(OR('TSA Input'!J4391=\"Yes\",'TSA Input'!J4391=\"Contingent\"),'TSA Input'!F4391,\"\"))","v":""},"","Required","Required"]
["",null,{"$f":"IF('TSA Input'!J4392=\"\",\"\",IF(OR('TSA Input'!J4392=\"Yes\",'TSA Input'!J4392=\"Contingent\"),'TSA Input'!B4392,\"Ineligible\"))","v":""},{"$f":"IF('TSA Input'!J4392=\"\",\"\",IF(OR('TSA Input'!J4392=\"Yes\",'TSA Input'!J4392=\"Contingent\"),'TSA Input'!I4392,\"\"))","v":""},{"$f":"IF('TSA Input'!J4392=\"\",\"\",IF(OR('TSA Input'!J4392=\"Yes\",'TSA Input'!J4392=\"Contingent\"),'TSA Input'!C4392,\"\"))","v":""},{"$f":"IF('TSA Input'!J4392=\"\",\"\",IF(OR('TSA Input'!J4392=\"Yes\",'TSA Input'!J4392=\"Contingent\"),'TSA Input'!D4392,\"\"))","v":""},{"$f":"IF('TSA Input'!J4392=\"\",\"\",IF(OR('TSA Input'!J4392=\"Yes\",'TSA Input'!J4392=\"Contingent\"),'TSA Input'!G4392,\"\"))","v":""},{"$f":"IF('TSA Input'!J4392=\"\",\"\",IF(OR('TSA Input'!J4392=\"Yes\",'TSA Input'!J4392=\"Contingent\"),'TSA Input'!F4392,\"\"))","v":""},"",{"$f":"IF('TSA Input'!J4392=\"\",\"\",IF(OR('TSA Input'!J4392=\"Yes\",'TSA Input'!J4392=\"Contingent\"),'TSA Input'!D4392,\"\"))","v":""},{"$f":"IF('TSA Input'!J4392=\"\",\"\",IF(OR('TSA Input'!J4392=\"Yes\",'TSA Input'!J4392=\"Contingent\"),'TSA Input'!G4392,\"\"))","v":""},{"$f":"IF('TSA Input'!J4392=\"\",\"\",IF(OR('TSA Input'!J4392=\"Yes\",'TSA Input'!J4392=\"Contingent\"),'TSA Input'!F4392,\"\"))","v":""},"","Required","Required"]
["",null,{"$f":"IF('TSA Input'!J4393=\"\",\"\",IF(OR('TSA Input'!J4393=\"Yes\",'TSA Input'!J4393=\"Contingent\"),'TSA Input'!B4393,\"Ineligible\"))","v":""},{"$f":"IF('TSA Input'!J4393=\"\",\"\",IF(OR('TSA Input'!J4393=\"Yes\",'TSA Input'!J4393=\"Contingent\"),'TSA Input'!I4393,\"\"))","v":""},{"$f":"IF('TSA Input'!J4393=\"\",\"\",IF(OR('TSA Input'!J4393=\"Yes\",'TSA Input'!J4393=\"Contingent\"),'TSA Input'!C4393,\"\"))","v":""},{"$f":"IF('TSA Input'!J4393=\"\",\"\",IF(OR('TSA Input'!J4393=\"Yes\",'TSA Input'!J4393=\"Contingent\"),'TSA Input'!D4393,\"\"))","v":""},{"$f":"IF('TSA Input'!J4393=\"\",\"\",IF(OR('TSA Input'!J4393=\"Yes\",'TSA Input'!J4393=\"Contingent\"),'TSA Input'!G4393,\"\"))","v":""},{"$f":"IF('TSA Input'!J4393=\"\",\"\",IF(OR('TSA Input'!J4393=\"Yes\",'TSA Input'!J4393=\"Contingent\"),'TSA Input'!F4393,\"\"))","v":""},"",{"$f":"IF('TSA Input'!J4393=\"\",\"\",IF(OR('TSA Input'!J4393=\"Yes\",'TSA Input'!J4393=\"Contingent\"),'TSA Input'!D4393,\"\"))","v":""},{"$f":"IF('TSA Input'!J4393=\"\",\"\",IF(OR('TSA Input'!J4393=\"Yes\",'TSA Input'!J4393=\"Contingent\"),'TSA Input'!G4393,\"\"))","v":""},{"$f":"IF('TSA Input'!J4393=\"\",\"\",IF(OR('TSA Input'!J4393=\"Yes\",'TSA Input'!J4393=\"Contingent\"),'TSA Input'!F4393,\"\"))","v":""},"","Required","Required"]
["",null,{"$f":"IF('TSA Input'!J4394=\"\",\"\",IF(OR('TSA Input'!J4394=\"Yes\",'TSA Input'!J4394=\"Contingent\"),'TSA Input'!B4394,\"Ineligible\"))","v":""},{"$f":"IF('TSA Input'!J4394=\"\",\"\",IF(OR('TSA Input'!J4394=\"Yes\",'TSA Input'!J4394=\"Contingent\"),'TSA Input'!I4394,\"\"))","v":""},{"$f":"IF('TSA Input'!J4394=\"\",\"\",IF(OR('TSA Input'!J4394=\"Yes\",'TSA Input'!J4394=\"Contingent\"),'TSA Input'!C4394,\"\"))","v":""},{"$f":"IF('TSA Input'!J4394=\"\",\"\",IF(OR('TSA Input'!J4394=\"Yes\",'TSA Input'!J4394=\"Contingent\"),'TSA Input'!D4394,\"\"))","v":""},{"$f":"IF('TSA Input'!J4394=\"\",\"\",IF(OR('TSA Input'!J4394=\"Yes\",'TSA Input'!J4394=\"Contingent\"),'TSA Input'!G4394,\"\"))","v":""},{"$f":"IF('TSA Input'!J4394=\"\",\"\",IF(OR('TSA Input'!J4394=\"Yes\",'TSA Input'!J4394=\"Contingent\"),'TSA Input'!F4394,\"\"))","v":""},"",{"$f":"IF('TSA Input'!J4394=\"\",\"\",IF(OR('TSA Input'!J4394=\"Yes\",'TSA Input'!J4394=\"Contingent\"),'TSA Input'!D4394,\"\"))","v":""},{"$f":"IF('TSA Input'!J4394=\"\",\"\",IF(OR('TSA Input'!J4394=\"Yes\",'TSA Input'!J4394=\"Contingent\"),'TSA Input'!G4394,\"\"))","v":""},{"$f":"IF('TSA Input'!J4394=\"\",\"\",IF(OR('TSA Input'!J4394=\"Yes\",'TSA Input'!J4394=\"Contingent\"),'TSA Input'!F4394,\"\"))","v":""},"","Required","Required"]
["",null,{"$f":"IF('TSA Input'!J4395=\"\",\"\",IF(OR('TSA Input'!J4395=\"Yes\",'TSA Input'!J4395=\"Contingent\"),'TSA Input'!B4395,\"Ineligible\"))","v":""},{"$f":"IF('TSA Input'!J4395=\"\",\"\",IF(OR('TSA Input'!J4395=\"Yes\",'TSA Input'!J4395=\"Contingent\"),'TSA Input'!I4395,\"\"))","v":""},{"$f":"IF('TSA Input'!J4395=\"\",\"\",IF(OR('TSA Input'!J4395=\"Yes\",'TSA Input'!J4395=\"Contingent\"),'TSA Input'!C4395,\"\"))","v":""},{"$f":"IF('TSA Input'!J4395=\"\",\"\",IF(OR('TSA Input'!J4395=\"Yes\",'TSA Input'!J4395=\"Contingent\"),'TSA Input'!D4395,\"\"))","v":""},{"$f":"IF('TSA Input'!J4395=\"\",\"\",IF(OR('TSA Input'!J4395=\"Yes\",'TSA Input'!J4395=\"Contingent\"),'TSA Input'!G4395,\"\"))","v":""},{"$f":"IF('TSA Input'!J4395=\"\",\"\",IF(OR('TSA Input'!J4395=\"Yes\",'TSA Input'!J4395=\"Contingent\"),'TSA Input'!F4395,\"\"))","v":""},"",{"$f":"IF('TSA Input'!J4395=\"\",\"\",IF(OR('TSA Input'!J4395=\"Yes\",'TSA Input'!J4395=\"Contingent\"),'TSA Input'!D4395,\"\"))","v":""},{"$f":"IF('TSA Input'!J4395=\"\",\"\",IF(OR('TSA Input'!J4395=\"Yes\",'TSA Input'!J4395=\"Contingent\"),'TSA Input'!G4395,\"\"))","v":""},{"$f":"IF('TSA Input'!J4395=\"\",\"\",IF(OR('TSA Input'!J4395=\"Yes\",'TSA Input'!J4395=\"Contingent\"),'TSA Input'!F4395,\"\"))","v":""},"","Required","Required"]
["",null,{"$f":"IF('TSA Input'!J4396=\"\",\"\",IF(OR('TSA Input'!J4396=\"Yes\",'TSA Input'!J4396=\"Contingent\"),'TSA Input'!B4396,\"Ineligible\"))","v":""},{"$f":"IF('TSA Input'!J4396=\"\",\"\",IF(OR('TSA Input'!J4396=\"Yes\",'TSA Input'!J4396=\"Contingent\"),'TSA Input'!I4396,\"\"))","v":""},{"$f":"IF('TSA Input'!J4396=\"\",\"\",IF(OR('TSA Input'!J4396=\"Yes\",'TSA Input'!J4396=\"Contingent\"),'TSA Input'!C4396,\"\"))","v":""},{"$f":"IF('TSA Input'!J4396=\"\",\"\",IF(OR('TSA Input'!J4396=\"Yes\",'TSA Input'!J4396=\"Contingent\"),'TSA Input'!D4396,\"\"))","v":""},{"$f":"IF('TSA Input'!J4396=\"\",\"\",IF(OR('TSA Input'!J4396=\"Yes\",'TSA Input'!J4396=\"Contingent\"),'TSA Input'!G4396,\"\"))","v":""},{"$f":"IF('TSA Input'!J4396=\"\",\"\",IF(OR('TSA Input'!J4396=\"Yes\",'TSA Input'!J4396=\"Contingent\"),'TSA Input'!F4396,\"\"))","v":""},"",{"$f":"IF('TSA Input'!J4396=\"\",\"\",IF(OR('TSA Input'!J4396=\"Yes\",'TSA Input'!J4396=\"Contingent\"),'TSA Input'!D4396,\"\"))","v":""},{"$f":"IF('TSA Input'!J4396=\"\",\"\",IF(OR('TSA Input'!J4396=\"Yes\",'TSA Input'!J4396=\"Contingent\"),'TSA Input'!G4396,\"\"))","v":""},{"$f":"IF('TSA Input'!J4396=\"\",\"\",IF(OR('TSA Input'!J4396=\"Yes\",'TSA Input'!J4396=\"Contingent\"),'TSA Input'!F4396,\"\"))","v":""},"","Required","Required"]
["",null,{"$f":"IF('TSA Input'!J4397=\"\",\"\",IF(OR('TSA Input'!J4397=\"Yes\",'TSA Input'!J4397=\"Contingent\"),'TSA Input'!B4397,\"Ineligible\"))","v":""},{"$f":"IF('TSA Input'!J4397=\"\",\"\",IF(OR('TSA Input'!J4397=\"Yes\",'TSA Input'!J4397=\"Contingent\"),'TSA Input'!I4397,\"\"))","v":""},{"$f":"IF('TSA Input'!J4397=\"\",\"\",IF(OR('TSA Input'!J4397=\"Yes\",'TSA Input'!J4397=\"Contingent\"),'TSA Input'!C4397,\"\"))","v":""},{"$f":"IF('TSA Input'!J4397=\"\",\"\",IF(OR('TSA Input'!J4397=\"Yes\",'TSA Input'!J4397=\"Contingent\"),'TSA Input'!D4397,\"\"))","v":""},{"$f":"IF('TSA Input'!J4397=\"\",\"\",IF(OR('TSA Input'!J4397=\"Yes\",'TSA Input'!J4397=\"Contingent\"),'TSA Input'!G4397,\"\"))","v":""},{"$f":"IF('TSA Input'!J4397=\"\",\"\",IF(OR('TSA Input'!J4397=\"Yes\",'TSA Input'!J4397=\"Contingent\"),'TSA Input'!F4397,\"\"))","v":""},"",{"$f":"IF('TSA Input'!J4397=\"\",\"\",IF(OR('TSA Input'!J4397=\"Yes\",'TSA Input'!J4397=\"Contingent\"),'TSA Input'!D4397,\"\"))","v":""},{"$f":"IF('TSA Input'!J4397=\"\",\"\",IF(OR('TSA Input'!J4397=\"Yes\",'TSA Input'!J4397=\"Contingent\"),'TSA Input'!G4397,\"\"))","v":""},{"$f":"IF('TSA Input'!J4397=\"\",\"\",IF(OR('TSA Input'!J4397=\"Yes\",'TSA Input'!J4397=\"Contingent\"),'TSA Input'!F4397,\"\"))","v":""},"","Required","Required"]
["",null,{"$f":"IF('TSA Input'!J4398=\"\",\"\",IF(OR('TSA Input'!J4398=\"Yes\",'TSA Input'!J4398=\"Contingent\"),'TSA Input'!B4398,\"Ineligible\"))","v":""},{"$f":"IF('TSA Input'!J4398=\"\",\"\",IF(OR('TSA Input'!J4398=\"Yes\",'TSA Input'!J4398=\"Contingent\"),'TSA Input'!I4398,\"\"))","v":""},{"$f":"IF('TSA Input'!J4398=\"\",\"\",IF(OR('TSA Input'!J4398=\"Yes\",'TSA Input'!J4398=\"Contingent\"),'TSA Input'!C4398,\"\"))","v":""},{"$f":"IF('TSA Input'!J4398=\"\",\"\",IF(OR('TSA Input'!J4398=\"Yes\",'TSA Input'!J4398=\"Contingent\"),'TSA Input'!D4398,\"\"))","v":""},{"$f":"IF('TSA Input'!J4398=\"\",\"\",IF(OR('TSA Input'!J4398=\"Yes\",'TSA Input'!J4398=\"Contingent\"),'TSA Input'!G4398,\"\"))","v":""},{"$f":"IF('TSA Input'!J4398=\"\",\"\",IF(OR('TSA Input'!J4398=\"Yes\",'TSA Input'!J4398=\"Contingent\"),'TSA Input'!F4398,\"\"))","v":""},"",{"$f":"IF('TSA Input'!J4398=\"\",\"\",IF(OR('TSA Input'!J4398=\"Yes\",'TSA Input'!J4398=\"Contingent\"),'TSA Input'!D4398,\"\"))","v":""},{"$f":"IF('TSA Input'!J4398=\"\",\"\",IF(OR('TSA Input'!J4398=\"Yes\",'TSA Input'!J4398=\"Contingent\"),'TSA Input'!G4398,\"\"))","v":""},{"$f":"IF('TSA Input'!J4398=\"\",\"\",IF(OR('TSA Input'!J4398=\"Yes\",'TSA Input'!J4398=\"Contingent\"),'TSA Input'!F4398,\"\"))","v":""},"","Required","Required"]
["",null,{"$f":"IF('TSA Input'!J4399=\"\",\"\",IF(OR('TSA Input'!J4399=\"Yes\",'TSA Input'!J4399=\"Contingent\"),'TSA Input'!B4399,\"Ineligible\"))","v":""},{"$f":"IF('TSA Input'!J4399=\"\",\"\",IF(OR('TSA Input'!J4399=\"Yes\",'TSA Input'!J4399=\"Contingent\"),'TSA Input'!I4399,\"\"))","v":""},{"$f":"IF('TSA Input'!J4399=\"\",\"\",IF(OR('TSA Input'!J4399=\"Yes\",'TSA Input'!J4399=\"Contingent\"),'TSA Input'!C4399,\"\"))","v":""},{"$f":"IF('TSA Input'!J4399=\"\",\"\",IF(OR('TSA Input'!J4399=\"Yes\",'TSA Input'!J4399=\"Contingent\"),'TSA Input'!D4399,\"\"))","v":""},{"$f":"IF('TSA Input'!J4399=\"\",\"\",IF(OR('TSA Input'!J4399=\"Yes\",'TSA Input'!J4399=\"Contingent\"),'TSA Input'!G4399,\"\"))","v":""},{"$f":"IF('TSA Input'!J4399=\"\",\"\",IF(OR('TSA Input'!J4399=\"Yes\",'TSA Input'!J4399=\"Contingent\"),'TSA Input'!F4399,\"\"))","v":""},"",{"$f":"IF('TSA Input'!J4399=\"\",\"\",IF(OR('TSA Input'!J4399=\"Yes\",'TSA Input'!J4399=\"Contingent\"),'TSA Input'!D4399,\"\"))","v":""},{"$f":"IF('TSA Input'!J4399=\"\",\"\",IF(OR('TSA Input'!J4399=\"Yes\",'TSA Input'!J4399=\"Contingent\"),'TSA Input'!G4399,\"\"))","v":""},{"$f":"IF('TSA Input'!J4399=\"\",\"\",IF(OR('TSA Input'!J4399=\"Yes\",'TSA Input'!J4399=\"Contingent\"),'TSA Input'!F4399,\"\"))","v":""},"","Required","Required"]
["",null,{"$f":"IF('TSA Input'!J4400=\"\",\"\",IF(OR('TSA Input'!J4400=\"Yes\",'TSA Input'!J4400=\"Contingent\"),'TSA Input'!B4400,\"Ineligible\"))","v":""},{"$f":"IF('TSA Input'!J4400=\"\",\"\",IF(OR('TSA Input'!J4400=\"Yes\",'TSA Input'!J4400=\"Contingent\"),'TSA Input'!I4400,\"\"))","v":""},{"$f":"IF('TSA Input'!J4400=\"\",\"\",IF(OR('TSA Input'!J4400=\"Yes\",'TSA Input'!J4400=\"Contingent\"),'TSA Input'!C4400,\"\"))","v":""},{"$f":"IF('TSA Input'!J4400=\"\",\"\",IF(OR('TSA Input'!J4400=\"Yes\",'TSA Input'!J4400=\"Contingent\"),'TSA Input'!D4400,\"\"))","v":""},{"$f":"IF('TSA Input'!J4400=\"\",\"\",IF(OR('TSA Input'!J4400=\"Yes\",'TSA Input'!J4400=\"Contingent\"),'TSA Input'!G4400,\"\"))","v":""},{"$f":"IF('TSA Input'!J4400=\"\",\"\",IF(OR('TSA Input'!J4400=\"Yes\",'TSA Input'!J4400=\"Contingent\"),'TSA Input'!F4400,\"\"))","v":""},"",{"$f":"IF('TSA Input'!J4400=\"\",\"\",IF(OR('TSA Input'!J4400=\"Yes\",'TSA Input'!J4400=\"Contingent\"),'TSA Input'!D4400,\"\"))","v":""},{"$f":"IF('TSA Input'!J4400=\"\",\"\",IF(OR('TSA Input'!J4400=\"Yes\",'TSA Input'!J4400=\"Contingent\"),'TSA Input'!G4400,\"\"))","v":""},{"$f":"IF('TSA Input'!J4400=\"\",\"\",IF(OR('TSA Input'!J4400=\"Yes\",'TSA Input'!J4400=\"Contingent\"),'TSA Input'!F4400,\"\"))","v":""},"","Required","Required"]
["",null,{"$f":"IF('TSA Input'!J4401=\"\",\"\",IF(OR('TSA Input'!J4401=\"Yes\",'TSA Input'!J4401=\"Contingent\"),'TSA Input'!B4401,\"Ineligible\"))","v":""},{"$f":"IF('TSA Input'!J4401=\"\",\"\",IF(OR('TSA Input'!J4401=\"Yes\",'TSA Input'!J4401=\"Contingent\"),'TSA Input'!I4401,\"\"))","v":""},{"$f":"IF('TSA Input'!J4401=\"\",\"\",IF(OR('TSA Input'!J4401=\"Yes\",'TSA Input'!J4401=\"Contingent\"),'TSA Input'!C4401,\"\"))","v":""},{"$f":"IF('TSA Input'!J4401=\"\",\"\",IF(OR('TSA Input'!J4401=\"Yes\",'TSA Input'!J4401=\"Contingent\"),'TSA Input'!D4401,\"\"))","v":""},{"$f":"IF('TSA Input'!J4401=\"\",\"\",IF(OR('TSA Input'!J4401=\"Yes\",'TSA Input'!J4401=\"Contingent\"),'TSA Input'!G4401,\"\"))","v":""},{"$f":"IF('TSA Input'!J4401=\"\",\"\",IF(OR('TSA Input'!J4401=\"Yes\",'TSA Input'!J4401=\"Contingent\"),'TSA Input'!F4401,\"\"))","v":""},"",{"$f":"IF('TSA Input'!J4401=\"\",\"\",IF(OR('TSA Input'!J4401=\"Yes\",'TSA Input'!J4401=\"Contingent\"),'TSA Input'!D4401,\"\"))","v":""},{"$f":"IF('TSA Input'!J4401=\"\",\"\",IF(OR('TSA Input'!J4401=\"Yes\",'TSA Input'!J4401=\"Contingent\"),'TSA Input'!G4401,\"\"))","v":""},{"$f":"IF('TSA Input'!J4401=\"\",\"\",IF(OR('TSA Input'!J4401=\"Yes\",'TSA Input'!J4401=\"Contingent\"),'TSA Input'!F4401,\"\"))","v":""},"","Required","Required"]
["",null,{"$f":"IF('TSA Input'!J4402=\"\",\"\",IF(OR('TSA Input'!J4402=\"Yes\",'TSA Input'!J4402=\"Contingent\"),'TSA Input'!B4402,\"Ineligible\"))","v":""},{"$f":"IF('TSA Input'!J4402=\"\",\"\",IF(OR('TSA Input'!J4402=\"Yes\",'TSA Input'!J4402=\"Contingent\"),'TSA Input'!I4402,\"\"))","v":""},{"$f":"IF('TSA Input'!J4402=\"\",\"\",IF(OR('TSA Input'!J4402=\"Yes\",'TSA Input'!J4402=\"Contingent\"),'TSA Input'!C4402,\"\"))","v":""},{"$f":"IF('TSA Input'!J4402=\"\",\"\",IF(OR('TSA Input'!J4402=\"Yes\",'TSA Input'!J4402=\"Contingent\"),'TSA Input'!D4402,\"\"))","v":""},{"$f":"IF('TSA Input'!J4402=\"\",\"\",IF(OR('TSA Input'!J4402=\"Yes\",'TSA Input'!J4402=\"Contingent\"),'TSA Input'!G4402,\"\"))","v":""},{"$f":"IF('TSA Input'!J4402=\"\",\"\",IF(OR('TSA Input'!J4402=\"Yes\",'TSA Input'!J4402=\"Contingent\"),'TSA Input'!F4402,\"\"))","v":""},"",{"$f":"IF('TSA Input'!J4402=\"\",\"\",IF(OR('TSA Input'!J4402=\"Yes\",'TSA Input'!J4402=\"Contingent\"),'TSA Input'!D4402,\"\"))","v":""},{"$f":"IF('TSA Input'!J4402=\"\",\"\",IF(OR('TSA Input'!J4402=\"Yes\",'TSA Input'!J4402=\"Contingent\"),'TSA Input'!G4402,\"\"))","v":""},{"$f":"IF('TSA Input'!J4402=\"\",\"\",IF(OR('TSA Input'!J4402=\"Yes\",'TSA Input'!J4402=\"Contingent\"),'TSA Input'!F4402,\"\"))","v":""},"","Required","Required"]
["",null,{"$f":"IF('TSA Input'!J4403=\"\",\"\",IF(OR('TSA Input'!J4403=\"Yes\",'TSA Input'!J4403=\"Contingent\"),'TSA Input'!B4403,\"Ineligible\"))","v":""},{"$f":"IF('TSA Input'!J4403=\"\",\"\",IF(OR('TSA Input'!J4403=\"Yes\",'TSA Input'!J4403=\"Contingent\"),'TSA Input'!I4403,\"\"))","v":""},{"$f":"IF('TSA Input'!J4403=\"\",\"\",IF(OR('TSA Input'!J4403=\"Yes\",'TSA Input'!J4403=\"Contingent\"),'TSA Input'!C4403,\"\"))","v":""},{"$f":"IF('TSA Input'!J4403=\"\",\"\",IF(OR('TSA Input'!J4403=\"Yes\",'TSA Input'!J4403=\"Contingent\"),'TSA Input'!D4403,\"\"))","v":""},{"$f":"IF('TSA Input'!J4403=\"\",\"\",IF(OR('TSA Input'!J4403=\"Yes\",'TSA Input'!J4403=\"Contingent\"),'TSA Input'!G4403,\"\"))","v":""},{"$f":"IF('TSA Input'!J4403=\"\",\"\",IF(OR('TSA Input'!J4403=\"Yes\",'TSA Input'!J4403=\"Contingent\"),'TSA Input'!F4403,\"\"))","v":""},"",{"$f":"IF('TSA Input'!J4403=\"\",\"\",IF(OR('TSA Input'!J4403=\"Yes\",'TSA Input'!J4403=\"Contingent\"),'TSA Input'!D4403,\"\"))","v":""},{"$f":"IF('TSA Input'!J4403=\"\",\"\",IF(OR('TSA Input'!J4403=\"Yes\",'TSA Input'!J4403=\"Contingent\"),'TSA Input'!G4403,\"\"))","v":""},{"$f":"IF('TSA Input'!J4403=\"\",\"\",IF(OR('TSA Input'!J4403=\"Yes\",'TSA Input'!J4403=\"Contingent\"),'TSA Input'!F4403,\"\"))","v":""},"","Required","Required"]
["",null,{"$f":"IF('TSA Input'!J4404=\"\",\"\",IF(OR('TSA Input'!J4404=\"Yes\",'TSA Input'!J4404=\"Contingent\"),'TSA Input'!B4404,\"Ineligible\"))","v":""},{"$f":"IF('TSA Input'!J4404=\"\",\"\",IF(OR('TSA Input'!J4404=\"Yes\",'TSA Input'!J4404=\"Contingent\"),'TSA Input'!I4404,\"\"))","v":""},{"$f":"IF('TSA Input'!J4404=\"\",\"\",IF(OR('TSA Input'!J4404=\"Yes\",'TSA Input'!J4404=\"Contingent\"),'TSA Input'!C4404,\"\"))","v":""},{"$f":"IF('TSA Input'!J4404=\"\",\"\",IF(OR('TSA Input'!J4404=\"Yes\",'TSA Input'!J4404=\"Contingent\"),'TSA Input'!D4404,\"\"))","v":""},{"$f":"IF('TSA Input'!J4404=\"\",\"\",IF(OR('TSA Input'!J4404=\"Yes\",'TSA Input'!J4404=\"Contingent\"),'TSA Input'!G4404,\"\"))","v":""},{"$f":"IF('TSA Input'!J4404=\"\",\"\",IF(OR('TSA Input'!J4404=\"Yes\",'TSA Input'!J4404=\"Contingent\"),'TSA Input'!F4404,\"\"))","v":""},"",{"$f":"IF('TSA Input'!J4404=\"\",\"\",IF(OR('TSA Input'!J4404=\"Yes\",'TSA Input'!J4404=\"Contingent\"),'TSA Input'!D4404,\"\"))","v":""},{"$f":"IF('TSA Input'!J4404=\"\",\"\",IF(OR('TSA Input'!J4404=\"Yes\",'TSA Input'!J4404=\"Contingent\"),'TSA Input'!G4404,\"\"))","v":""},{"$f":"IF('TSA Input'!J4404=\"\",\"\",IF(OR('TSA Input'!J4404=\"Yes\",'TSA Input'!J4404=\"Contingent\"),'TSA Input'!F4404,\"\"))","v":""},"","Required","Required"]
["",null,{"$f":"IF('TSA Input'!J4405=\"\",\"\",IF(OR('TSA Input'!J4405=\"Yes\",'TSA Input'!J4405=\"Contingent\"),'TSA Input'!B4405,\"Ineligible\"))","v":""},{"$f":"IF('TSA Input'!J4405=\"\",\"\",IF(OR('TSA Input'!J4405=\"Yes\",'TSA Input'!J4405=\"Contingent\"),'TSA Input'!I4405,\"\"))","v":""},{"$f":"IF('TSA Input'!J4405=\"\",\"\",IF(OR('TSA Input'!J4405=\"Yes\",'TSA Input'!J4405=\"Contingent\"),'TSA Input'!C4405,\"\"))","v":""},{"$f":"IF('TSA Input'!J4405=\"\",\"\",IF(OR('TSA Input'!J4405=\"Yes\",'TSA Input'!J4405=\"Contingent\"),'TSA Input'!D4405,\"\"))","v":""},{"$f":"IF('TSA Input'!J4405=\"\",\"\",IF(OR('TSA Input'!J4405=\"Yes\",'TSA Input'!J4405=\"Contingent\"),'TSA Input'!G4405,\"\"))","v":""},{"$f":"IF('TSA Input'!J4405=\"\",\"\",IF(OR('TSA Input'!J4405=\"Yes\",'TSA Input'!J4405=\"Contingent\"),'TSA Input'!F4405,\"\"))","v":""},"",{"$f":"IF('TSA Input'!J4405=\"\",\"\",IF(OR('TSA Input'!J4405=\"Yes\",'TSA Input'!J4405=\"Contingent\"),'TSA Input'!D4405,\"\"))","v":""},{"$f":"IF('TSA Input'!J4405=\"\",\"\",IF(OR('TSA Input'!J4405=\"Yes\",'TSA Input'!J4405=\"Contingent\"),'TSA Input'!G4405,\"\"))","v":""},{"$f":"IF('TSA Input'!J4405=\"\",\"\",IF(OR('TSA Input'!J4405=\"Yes\",'TSA Input'!J4405=\"Contingent\"),'TSA Input'!F4405,\"\"))","v":""},"","Required","Required"]
["",null,{"$f":"IF('TSA Input'!J4406=\"\",\"\",IF(OR('TSA Input'!J4406=\"Yes\",'TSA Input'!J4406=\"Contingent\"),'TSA Input'!B4406,\"Ineligible\"))","v":""},{"$f":"IF('TSA Input'!J4406=\"\",\"\",IF(OR('TSA Input'!J4406=\"Yes\",'TSA Input'!J4406=\"Contingent\"),'TSA Input'!I4406,\"\"))","v":""},{"$f":"IF('TSA Input'!J4406=\"\",\"\",IF(OR('TSA Input'!J4406=\"Yes\",'TSA Input'!J4406=\"Contingent\"),'TSA Input'!C4406,\"\"))","v":""},{"$f":"IF('TSA Input'!J4406=\"\",\"\",IF(OR('TSA Input'!J4406=\"Yes\",'TSA Input'!J4406=\"Contingent\"),'TSA Input'!D4406,\"\"))","v":""},{"$f":"IF('TSA Input'!J4406=\"\",\"\",IF(OR('TSA Input'!J4406=\"Yes\",'TSA Input'!J4406=\"Contingent\"),'TSA Input'!G4406,\"\"))","v":""},{"$f":"IF('TSA Input'!J4406=\"\",\"\",IF(OR('TSA Input'!J4406=\"Yes\",'TSA Input'!J4406=\"Contingent\"),'TSA Input'!F4406,\"\"))","v":""},"",{"$f":"IF('TSA Input'!J4406=\"\",\"\",IF(OR('TSA Input'!J4406=\"Yes\",'TSA Input'!J4406=\"Contingent\"),'TSA Input'!D4406,\"\"))","v":""},{"$f":"IF('TSA Input'!J4406=\"\",\"\",IF(OR('TSA Input'!J4406=\"Yes\",'TSA Input'!J4406=\"Contingent\"),'TSA Input'!G4406,\"\"))","v":""},{"$f":"IF('TSA Input'!J4406=\"\",\"\",IF(OR('TSA Input'!J4406=\"Yes\",'TSA Input'!J4406=\"Contingent\"),'TSA Input'!F4406,\"\"))","v":""},"","Required","Required"]
["",null,{"$f":"IF('TSA Input'!J4407=\"\",\"\",IF(OR('TSA Input'!J4407=\"Yes\",'TSA Input'!J4407=\"Contingent\"),'TSA Input'!B4407,\"Ineligible\"))","v":""},{"$f":"IF('TSA Input'!J4407=\"\",\"\",IF(OR('TSA Input'!J4407=\"Yes\",'TSA Input'!J4407=\"Contingent\"),'TSA Input'!I4407,\"\"))","v":""},{"$f":"IF('TSA Input'!J4407=\"\",\"\",IF(OR('TSA Input'!J4407=\"Yes\",'TSA Input'!J4407=\"Contingent\"),'TSA Input'!C4407,\"\"))","v":""},{"$f":"IF('TSA Input'!J4407=\"\",\"\",IF(OR('TSA Input'!J4407=\"Yes\",'TSA Input'!J4407=\"Contingent\"),'TSA Input'!D4407,\"\"))","v":""},{"$f":"IF('TSA Input'!J4407=\"\",\"\",IF(OR('TSA Input'!J4407=\"Yes\",'TSA Input'!J4407=\"Contingent\"),'TSA Input'!G4407,\"\"))","v":""},{"$f":"IF('TSA Input'!J4407=\"\",\"\",IF(OR('TSA Input'!J4407=\"Yes\",'TSA Input'!J4407=\"Contingent\"),'TSA Input'!F4407,\"\"))","v":""},"",{"$f":"IF('TSA Input'!J4407=\"\",\"\",IF(OR('TSA Input'!J4407=\"Yes\",'TSA Input'!J4407=\"Contingent\"),'TSA Input'!D4407,\"\"))","v":""},{"$f":"IF('TSA Input'!J4407=\"\",\"\",IF(OR('TSA Input'!J4407=\"Yes\",'TSA Input'!J4407=\"Contingent\"),'TSA Input'!G4407,\"\"))","v":""},{"$f":"IF('TSA Input'!J4407=\"\",\"\",IF(OR('TSA Input'!J4407=\"Yes\",'TSA Input'!J4407=\"Contingent\"),'TSA Input'!F4407,\"\"))","v":""},"","Required","Required"]
["",null,{"$f":"IF('TSA Input'!J4408=\"\",\"\",IF(OR('TSA Input'!J4408=\"Yes\",'TSA Input'!J4408=\"Contingent\"),'TSA Input'!B4408,\"Ineligible\"))","v":""},{"$f":"IF('TSA Input'!J4408=\"\",\"\",IF(OR('TSA Input'!J4408=\"Yes\",'TSA Input'!J4408=\"Contingent\"),'TSA Input'!I4408,\"\"))","v":""},{"$f":"IF('TSA Input'!J4408=\"\",\"\",IF(OR('TSA Input'!J4408=\"Yes\",'TSA Input'!J4408=\"Contingent\"),'TSA Input'!C4408,\"\"))","v":""},{"$f":"IF('TSA Input'!J4408=\"\",\"\",IF(OR('TSA Input'!J4408=\"Yes\",'TSA Input'!J4408=\"Contingent\"),'TSA Input'!D4408,\"\"))","v":""},{"$f":"IF('TSA Input'!J4408=\"\",\"\",IF(OR('TSA Input'!J4408=\"Yes\",'TSA Input'!J4408=\"Contingent\"),'TSA Input'!G4408,\"\"))","v":""},{"$f":"IF('TSA Input'!J4408=\"\",\"\",IF(OR('TSA Input'!J4408=\"Yes\",'TSA Input'!J4408=\"Contingent\"),'TSA Input'!F4408,\"\"))","v":""},"",{"$f":"IF('TSA Input'!J4408=\"\",\"\",IF(OR('TSA Input'!J4408=\"Yes\",'TSA Input'!J4408=\"Contingent\"),'TSA Input'!D4408,\"\"))","v":""},{"$f":"IF('TSA Input'!J4408=\"\",\"\",IF(OR('TSA Input'!J4408=\"Yes\",'TSA Input'!J4408=\"Contingent\"),'TSA Input'!G4408,\"\"))","v":""},{"$f":"IF('TSA Input'!J4408=\"\",\"\",IF(OR('TSA Input'!J4408=\"Yes\",'TSA Input'!J4408=\"Contingent\"),'TSA Input'!F4408,\"\"))","v":""},"","Required","Required"]
["",null,{"$f":"IF('TSA Input'!J4409=\"\",\"\",IF(OR('TSA Input'!J4409=\"Yes\",'TSA Input'!J4409=\"Contingent\"),'TSA Input'!B4409,\"Ineligible\"))","v":""},{"$f":"IF('TSA Input'!J4409=\"\",\"\",IF(OR('TSA Input'!J4409=\"Yes\",'TSA Input'!J4409=\"Contingent\"),'TSA Input'!I4409,\"\"))","v":""},{"$f":"IF('TSA Input'!J4409=\"\",\"\",IF(OR('TSA Input'!J4409=\"Yes\",'TSA Input'!J4409=\"Contingent\"),'TSA Input'!C4409,\"\"))","v":""},{"$f":"IF('TSA Input'!J4409=\"\",\"\",IF(OR('TSA Input'!J4409=\"Yes\",'TSA Input'!J4409=\"Contingent\"),'TSA Input'!D4409,\"\"))","v":""},{"$f":"IF('TSA Input'!J4409=\"\",\"\",IF(OR('TSA Input'!J4409=\"Yes\",'TSA Input'!J4409=\"Contingent\"),'TSA Input'!G4409,\"\"))","v":""},{"$f":"IF('TSA Input'!J4409=\"\",\"\",IF(OR('TSA Input'!J4409=\"Yes\",'TSA Input'!J4409=\"Contingent\"),'TSA Input'!F4409,\"\"))","v":""},"",{"$f":"IF('TSA Input'!J4409=\"\",\"\",IF(OR('TSA Input'!J4409=\"Yes\",'TSA Input'!J4409=\"Contingent\"),'TSA Input'!D4409,\"\"))","v":""},{"$f":"IF('TSA Input'!J4409=\"\",\"\",IF(OR('TSA Input'!J4409=\"Yes\",'TSA Input'!J4409=\"Contingent\"),'TSA Input'!G4409,\"\"))","v":""},{"$f":"IF('TSA Input'!J4409=\"\",\"\",IF(OR('TSA Input'!J4409=\"Yes\",'TSA Input'!J4409=\"Contingent\"),'TSA Input'!F4409,\"\"))","v":""},"","Required","Required"]
["",null,{"$f":"IF('TSA Input'!J4410=\"\",\"\",IF(OR('TSA Input'!J4410=\"Yes\",'TSA Input'!J4410=\"Contingent\"),'TSA Input'!B4410,\"Ineligible\"))","v":""},{"$f":"IF('TSA Input'!J4410=\"\",\"\",IF(OR('TSA Input'!J4410=\"Yes\",'TSA Input'!J4410=\"Contingent\"),'TSA Input'!I4410,\"\"))","v":""},{"$f":"IF('TSA Input'!J4410=\"\",\"\",IF(OR('TSA Input'!J4410=\"Yes\",'TSA Input'!J4410=\"Contingent\"),'TSA Input'!C4410,\"\"))","v":""},{"$f":"IF('TSA Input'!J4410=\"\",\"\",IF(OR('TSA Input'!J4410=\"Yes\",'TSA Input'!J4410=\"Contingent\"),'TSA Input'!D4410,\"\"))","v":""},{"$f":"IF('TSA Input'!J4410=\"\",\"\",IF(OR('TSA Input'!J4410=\"Yes\",'TSA Input'!J4410=\"Contingent\"),'TSA Input'!G4410,\"\"))","v":""},{"$f":"IF('TSA Input'!J4410=\"\",\"\",IF(OR('TSA Input'!J4410=\"Yes\",'TSA Input'!J4410=\"Contingent\"),'TSA Input'!F4410,\"\"))","v":""},"",{"$f":"IF('TSA Input'!J4410=\"\",\"\",IF(OR('TSA Input'!J4410=\"Yes\",'TSA Input'!J4410=\"Contingent\"),'TSA Input'!D4410,\"\"))","v":""},{"$f":"IF('TSA Input'!J4410=\"\",\"\",IF(OR('TSA Input'!J4410=\"Yes\",'TSA Input'!J4410=\"Contingent\"),'TSA Input'!G4410,\"\"))","v":""},{"$f":"IF('TSA Input'!J4410=\"\",\"\",IF(OR('TSA Input'!J4410=\"Yes\",'TSA Input'!J4410=\"Contingent\"),'TSA Input'!F4410,\"\"))","v":""},"","Required","Required"]
["",null,{"$f":"IF('TSA Input'!J4411=\"\",\"\",IF(OR('TSA Input'!J4411=\"Yes\",'TSA Input'!J4411=\"Contingent\"),'TSA Input'!B4411,\"Ineligible\"))","v":""},{"$f":"IF('TSA Input'!J4411=\"\",\"\",IF(OR('TSA Input'!J4411=\"Yes\",'TSA Input'!J4411=\"Contingent\"),'TSA Input'!I4411,\"\"))","v":""},{"$f":"IF('TSA Input'!J4411=\"\",\"\",IF(OR('TSA Input'!J4411=\"Yes\",'TSA Input'!J4411=\"Contingent\"),'TSA Input'!C4411,\"\"))","v":""},{"$f":"IF('TSA Input'!J4411=\"\",\"\",IF(OR('TSA Input'!J4411=\"Yes\",'TSA Input'!J4411=\"Contingent\"),'TSA Input'!D4411,\"\"))","v":""},{"$f":"IF('TSA Input'!J4411=\"\",\"\",IF(OR('TSA Input'!J4411=\"Yes\",'TSA Input'!J4411=\"Contingent\"),'TSA Input'!G4411,\"\"))","v":""},{"$f":"IF('TSA Input'!J4411=\"\",\"\",IF(OR('TSA Input'!J4411=\"Yes\",'TSA Input'!J4411=\"Contingent\"),'TSA Input'!F4411,\"\"))","v":""},"",{"$f":"IF('TSA Input'!J4411=\"\",\"\",IF(OR('TSA Input'!J4411=\"Yes\",'TSA Input'!J4411=\"Contingent\"),'TSA Input'!D4411,\"\"))","v":""},{"$f":"IF('TSA Input'!J4411=\"\",\"\",IF(OR('TSA Input'!J4411=\"Yes\",'TSA Input'!J4411=\"Contingent\"),'TSA Input'!G4411,\"\"))","v":""},{"$f":"IF('TSA Input'!J4411=\"\",\"\",IF(OR('TSA Input'!J4411=\"Yes\",'TSA Input'!J4411=\"Contingent\"),'TSA Input'!F4411,\"\"))","v":""},"","Required","Required"]
["",null,{"$f":"IF('TSA Input'!J4412=\"\",\"\",IF(OR('TSA Input'!J4412=\"Yes\",'TSA Input'!J4412=\"Contingent\"),'TSA Input'!B4412,\"Ineligible\"))","v":""},{"$f":"IF('TSA Input'!J4412=\"\",\"\",IF(OR('TSA Input'!J4412=\"Yes\",'TSA Input'!J4412=\"Contingent\"),'TSA Input'!I4412,\"\"))","v":""},{"$f":"IF('TSA Input'!J4412=\"\",\"\",IF(OR('TSA Input'!J4412=\"Yes\",'TSA Input'!J4412=\"Contingent\"),'TSA Input'!C4412,\"\"))","v":""},{"$f":"IF('TSA Input'!J4412=\"\",\"\",IF(OR('TSA Input'!J4412=\"Yes\",'TSA Input'!J4412=\"Contingent\"),'TSA Input'!D4412,\"\"))","v":""},{"$f":"IF('TSA Input'!J4412=\"\",\"\",IF(OR('TSA Input'!J4412=\"Yes\",'TSA Input'!J4412=\"Contingent\"),'TSA Input'!G4412,\"\"))","v":""},{"$f":"IF('TSA Input'!J4412=\"\",\"\",IF(OR('TSA Input'!J4412=\"Yes\",'TSA Input'!J4412=\"Contingent\"),'TSA Input'!F4412,\"\"))","v":""},"",{"$f":"IF('TSA Input'!J4412=\"\",\"\",IF(OR('TSA Input'!J4412=\"Yes\",'TSA Input'!J4412=\"Contingent\"),'TSA Input'!D4412,\"\"))","v":""},{"$f":"IF('TSA Input'!J4412=\"\",\"\",IF(OR('TSA Input'!J4412=\"Yes\",'TSA Input'!J4412=\"Contingent\"),'TSA Input'!G4412,\"\"))","v":""},{"$f":"IF('TSA Input'!J4412=\"\",\"\",IF(OR('TSA Input'!J4412=\"Yes\",'TSA Input'!J4412=\"Contingent\"),'TSA Input'!F4412,\"\"))","v":""},"","Required","Required"]
["",null,{"$f":"IF('TSA Input'!J4413=\"\",\"\",IF(OR('TSA Input'!J4413=\"Yes\",'TSA Input'!J4413=\"Contingent\"),'TSA Input'!B4413,\"Ineligible\"))","v":""},{"$f":"IF('TSA Input'!J4413=\"\",\"\",IF(OR('TSA Input'!J4413=\"Yes\",'TSA Input'!J4413=\"Contingent\"),'TSA Input'!I4413,\"\"))","v":""},{"$f":"IF('TSA Input'!J4413=\"\",\"\",IF(OR('TSA Input'!J4413=\"Yes\",'TSA Input'!J4413=\"Contingent\"),'TSA Input'!C4413,\"\"))","v":""},{"$f":"IF('TSA Input'!J4413=\"\",\"\",IF(OR('TSA Input'!J4413=\"Yes\",'TSA Input'!J4413=\"Contingent\"),'TSA Input'!D4413,\"\"))","v":""},{"$f":"IF('TSA Input'!J4413=\"\",\"\",IF(OR('TSA Input'!J4413=\"Yes\",'TSA Input'!J4413=\"Contingent\"),'TSA Input'!G4413,\"\"))","v":""},{"$f":"IF('TSA Input'!J4413=\"\",\"\",IF(OR('TSA Input'!J4413=\"Yes\",'TSA Input'!J4413=\"Contingent\"),'TSA Input'!F4413,\"\"))","v":""},"",{"$f":"IF('TSA Input'!J4413=\"\",\"\",IF(OR('TSA Input'!J4413=\"Yes\",'TSA Input'!J4413=\"Contingent\"),'TSA Input'!D4413,\"\"))","v":""},{"$f":"IF('TSA Input'!J4413=\"\",\"\",IF(OR('TSA Input'!J4413=\"Yes\",'TSA Input'!J4413=\"Contingent\"),'TSA Input'!G4413,\"\"))","v":""},{"$f":"IF('TSA Input'!J4413=\"\",\"\",IF(OR('TSA Input'!J4413=\"Yes\",'TSA Input'!J4413=\"Contingent\"),'TSA Input'!F4413,\"\"))","v":""},"","Required","Required"]
["",null,{"$f":"IF('TSA Input'!J4414=\"\",\"\",IF(OR('TSA Input'!J4414=\"Yes\",'TSA Input'!J4414=\"Contingent\"),'TSA Input'!B4414,\"Ineligible\"))","v":""},{"$f":"IF('TSA Input'!J4414=\"\",\"\",IF(OR('TSA Input'!J4414=\"Yes\",'TSA Input'!J4414=\"Contingent\"),'TSA Input'!I4414,\"\"))","v":""},{"$f":"IF('TSA Input'!J4414=\"\",\"\",IF(OR('TSA Input'!J4414=\"Yes\",'TSA Input'!J4414=\"Contingent\"),'TSA Input'!C4414,\"\"))","v":""},{"$f":"IF('TSA Input'!J4414=\"\",\"\",IF(OR('TSA Input'!J4414=\"Yes\",'TSA Input'!J4414=\"Contingent\"),'TSA Input'!D4414,\"\"))","v":""},{"$f":"IF('TSA Input'!J4414=\"\",\"\",IF(OR('TSA Input'!J4414=\"Yes\",'TSA Input'!J4414=\"Contingent\"),'TSA Input'!G4414,\"\"))","v":""},{"$f":"IF('TSA Input'!J4414=\"\",\"\",IF(OR('TSA Input'!J4414=\"Yes\",'TSA Input'!J4414=\"Contingent\"),'TSA Input'!F4414,\"\"))","v":""},"",{"$f":"IF('TSA Input'!J4414=\"\",\"\",IF(OR('TSA Input'!J4414=\"Yes\",'TSA Input'!J4414=\"Contingent\"),'TSA Input'!D4414,\"\"))","v":""},{"$f":"IF('TSA Input'!J4414=\"\",\"\",IF(OR('TSA Input'!J4414=\"Yes\",'TSA Input'!J4414=\"Contingent\"),'TSA Input'!G4414,\"\"))","v":""},{"$f":"IF('TSA Input'!J4414=\"\",\"\",IF(OR('TSA Input'!J4414=\"Yes\",'TSA Input'!J4414=\"Contingent\"),'TSA Input'!F4414,\"\"))","v":""},"","Required","Required"]
["",null,{"$f":"IF('TSA Input'!J4415=\"\",\"\",IF(OR('TSA Input'!J4415=\"Yes\",'TSA Input'!J4415=\"Contingent\"),'TSA Input'!B4415,\"Ineligible\"))","v":""},{"$f":"IF('TSA Input'!J4415=\"\",\"\",IF(OR('TSA Input'!J4415=\"Yes\",'TSA Input'!J4415=\"Contingent\"),'TSA Input'!I4415,\"\"))","v":""},{"$f":"IF('TSA Input'!J4415=\"\",\"\",IF(OR('TSA Input'!J4415=\"Yes\",'TSA Input'!J4415=\"Contingent\"),'TSA Input'!C4415,\"\"))","v":""},{"$f":"IF('TSA Input'!J4415=\"\",\"\",IF(OR('TSA Input'!J4415=\"Yes\",'TSA Input'!J4415=\"Contingent\"),'TSA Input'!D4415,\"\"))","v":""},{"$f":"IF('TSA Input'!J4415=\"\",\"\",IF(OR('TSA Input'!J4415=\"Yes\",'TSA Input'!J4415=\"Contingent\"),'TSA Input'!G4415,\"\"))","v":""},{"$f":"IF('TSA Input'!J4415=\"\",\"\",IF(OR('TSA Input'!J4415=\"Yes\",'TSA Input'!J4415=\"Contingent\"),'TSA Input'!F4415,\"\"))","v":""},"",{"$f":"IF('TSA Input'!J4415=\"\",\"\",IF(OR('TSA Input'!J4415=\"Yes\",'TSA Input'!J4415=\"Contingent\"),'TSA Input'!D4415,\"\"))","v":""},{"$f":"IF('TSA Input'!J4415=\"\",\"\",IF(OR('TSA Input'!J4415=\"Yes\",'TSA Input'!J4415=\"Contingent\"),'TSA Input'!G4415,\"\"))","v":""},{"$f":"IF('TSA Input'!J4415=\"\",\"\",IF(OR('TSA Input'!J4415=\"Yes\",'TSA Input'!J4415=\"Contingent\"),'TSA Input'!F4415,\"\"))","v":""},"","Required","Required"]
["",null,{"$f":"IF('TSA Input'!J4416=\"\",\"\",IF(OR('TSA Input'!J4416=\"Yes\",'TSA Input'!J4416=\"Contingent\"),'TSA Input'!B4416,\"Ineligible\"))","v":""},{"$f":"IF('TSA Input'!J4416=\"\",\"\",IF(OR('TSA Input'!J4416=\"Yes\",'TSA Input'!J4416=\"Contingent\"),'TSA Input'!I4416,\"\"))","v":""},{"$f":"IF('TSA Input'!J4416=\"\",\"\",IF(OR('TSA Input'!J4416=\"Yes\",'TSA Input'!J4416=\"Contingent\"),'TSA Input'!C4416,\"\"))","v":""},{"$f":"IF('TSA Input'!J4416=\"\",\"\",IF(OR('TSA Input'!J4416=\"Yes\",'TSA Input'!J4416=\"Contingent\"),'TSA Input'!D4416,\"\"))","v":""},{"$f":"IF('TSA Input'!J4416=\"\",\"\",IF(OR('TSA Input'!J4416=\"Yes\",'TSA Input'!J4416=\"Contingent\"),'TSA Input'!G4416,\"\"))","v":""},{"$f":"IF('TSA Input'!J4416=\"\",\"\",IF(OR('TSA Input'!J4416=\"Yes\",'TSA Input'!J4416=\"Contingent\"),'TSA Input'!F4416,\"\"))","v":""},"",{"$f":"IF('TSA Input'!J4416=\"\",\"\",IF(OR('TSA Input'!J4416=\"Yes\",'TSA Input'!J4416=\"Contingent\"),'TSA Input'!D4416,\"\"))","v":""},{"$f":"IF('TSA Input'!J4416=\"\",\"\",IF(OR('TSA Input'!J4416=\"Yes\",'TSA Input'!J4416=\"Contingent\"),'TSA Input'!G4416,\"\"))","v":""},{"$f":"IF('TSA Input'!J4416=\"\",\"\",IF(OR('TSA Input'!J4416=\"Yes\",'TSA Input'!J4416=\"Contingent\"),'TSA Input'!F4416,\"\"))","v":""},"","Required","Required"]
["",null,{"$f":"IF('TSA Input'!J4417=\"\",\"\",IF(OR('TSA Input'!J4417=\"Yes\",'TSA Input'!J4417=\"Contingent\"),'TSA Input'!B4417,\"Ineligible\"))","v":""},{"$f":"IF('TSA Input'!J4417=\"\",\"\",IF(OR('TSA Input'!J4417=\"Yes\",'TSA Input'!J4417=\"Contingent\"),'TSA Input'!I4417,\"\"))","v":""},{"$f":"IF('TSA Input'!J4417=\"\",\"\",IF(OR('TSA Input'!J4417=\"Yes\",'TSA Input'!J4417=\"Contingent\"),'TSA Input'!C4417,\"\"))","v":""},{"$f":"IF('TSA Input'!J4417=\"\",\"\",IF(OR('TSA Input'!J4417=\"Yes\",'TSA Input'!J4417=\"Contingent\"),'TSA Input'!D4417,\"\"))","v":""},{"$f":"IF('TSA Input'!J4417=\"\",\"\",IF(OR('TSA Input'!J4417=\"Yes\",'TSA Input'!J4417=\"Contingent\"),'TSA Input'!G4417,\"\"))","v":""},{"$f":"IF('TSA Input'!J4417=\"\",\"\",IF(OR('TSA Input'!J4417=\"Yes\",'TSA Input'!J4417=\"Contingent\"),'TSA Input'!F4417,\"\"))","v":""},"",{"$f":"IF('TSA Input'!J4417=\"\",\"\",IF(OR('TSA Input'!J4417=\"Yes\",'TSA Input'!J4417=\"Contingent\"),'TSA Input'!D4417,\"\"))","v":""},{"$f":"IF('TSA Input'!J4417=\"\",\"\",IF(OR('TSA Input'!J4417=\"Yes\",'TSA Input'!J4417=\"Contingent\"),'TSA Input'!G4417,\"\"))","v":""},{"$f":"IF('TSA Input'!J4417=\"\",\"\",IF(OR('TSA Input'!J4417=\"Yes\",'TSA Input'!J4417=\"Contingent\"),'TSA Input'!F4417,\"\"))","v":""},"","Required","Required"]
["",null,{"$f":"IF('TSA Input'!J4418=\"\",\"\",IF(OR('TSA Input'!J4418=\"Yes\",'TSA Input'!J4418=\"Contingent\"),'TSA Input'!B4418,\"Ineligible\"))","v":""},{"$f":"IF('TSA Input'!J4418=\"\",\"\",IF(OR('TSA Input'!J4418=\"Yes\",'TSA Input'!J4418=\"Contingent\"),'TSA Input'!I4418,\"\"))","v":""},{"$f":"IF('TSA Input'!J4418=\"\",\"\",IF(OR('TSA Input'!J4418=\"Yes\",'TSA Input'!J4418=\"Contingent\"),'TSA Input'!C4418,\"\"))","v":""},{"$f":"IF('TSA Input'!J4418=\"\",\"\",IF(OR('TSA Input'!J4418=\"Yes\",'TSA Input'!J4418=\"Contingent\"),'TSA Input'!D4418,\"\"))","v":""},{"$f":"IF('TSA Input'!J4418=\"\",\"\",IF(OR('TSA Input'!J4418=\"Yes\",'TSA Input'!J4418=\"Contingent\"),'TSA Input'!G4418,\"\"))","v":""},{"$f":"IF('TSA Input'!J4418=\"\",\"\",IF(OR('TSA Input'!J4418=\"Yes\",'TSA Input'!J4418=\"Contingent\"),'TSA Input'!F4418,\"\"))","v":""},"",{"$f":"IF('TSA Input'!J4418=\"\",\"\",IF(OR('TSA Input'!J4418=\"Yes\",'TSA Input'!J4418=\"Contingent\"),'TSA Input'!D4418,\"\"))","v":""},{"$f":"IF('TSA Input'!J4418=\"\",\"\",IF(OR('TSA Input'!J4418=\"Yes\",'TSA Input'!J4418=\"Contingent\"),'TSA Input'!G4418,\"\"))","v":""},{"$f":"IF('TSA Input'!J4418=\"\",\"\",IF(OR('TSA Input'!J4418=\"Yes\",'TSA Input'!J4418=\"Contingent\"),'TSA Input'!F4418,\"\"))","v":""},"","Required","Required"]
["",null,{"$f":"IF('TSA Input'!J4419=\"\",\"\",IF(OR('TSA Input'!J4419=\"Yes\",'TSA Input'!J4419=\"Contingent\"),'TSA Input'!B4419,\"Ineligible\"))","v":""},{"$f":"IF('TSA Input'!J4419=\"\",\"\",IF(OR('TSA Input'!J4419=\"Yes\",'TSA Input'!J4419=\"Contingent\"),'TSA Input'!I4419,\"\"))","v":""},{"$f":"IF('TSA Input'!J4419=\"\",\"\",IF(OR('TSA Input'!J4419=\"Yes\",'TSA Input'!J4419=\"Contingent\"),'TSA Input'!C4419,\"\"))","v":""},{"$f":"IF('TSA Input'!J4419=\"\",\"\",IF(OR('TSA Input'!J4419=\"Yes\",'TSA Input'!J4419=\"Contingent\"),'TSA Input'!D4419,\"\"))","v":""},{"$f":"IF('TSA Input'!J4419=\"\",\"\",IF(OR('TSA Input'!J4419=\"Yes\",'TSA Input'!J4419=\"Contingent\"),'TSA Input'!G4419,\"\"))","v":""},{"$f":"IF('TSA Input'!J4419=\"\",\"\",IF(OR('TSA Input'!J4419=\"Yes\",'TSA Input'!J4419=\"Contingent\"),'TSA Input'!F4419,\"\"))","v":""},"",{"$f":"IF('TSA Input'!J4419=\"\",\"\",IF(OR('TSA Input'!J4419=\"Yes\",'TSA Input'!J4419=\"Contingent\"),'TSA Input'!D4419,\"\"))","v":""},{"$f":"IF('TSA Input'!J4419=\"\",\"\",IF(OR('TSA Input'!J4419=\"Yes\",'TSA Input'!J4419=\"Contingent\"),'TSA Input'!G4419,\"\"))","v":""},{"$f":"IF('TSA Input'!J4419=\"\",\"\",IF(OR('TSA Input'!J4419=\"Yes\",'TSA Input'!J4419=\"Contingent\"),'TSA Input'!F4419,\"\"))","v":""},"","Required","Required"]
["",null,{"$f":"IF('TSA Input'!J4420=\"\",\"\",IF(OR('TSA Input'!J4420=\"Yes\",'TSA Input'!J4420=\"Contingent\"),'TSA Input'!B4420,\"Ineligible\"))","v":""},{"$f":"IF('TSA Input'!J4420=\"\",\"\",IF(OR('TSA Input'!J4420=\"Yes\",'TSA Input'!J4420=\"Contingent\"),'TSA Input'!I4420,\"\"))","v":""},{"$f":"IF('TSA Input'!J4420=\"\",\"\",IF(OR('TSA Input'!J4420=\"Yes\",'TSA Input'!J4420=\"Contingent\"),'TSA Input'!C4420,\"\"))","v":""},{"$f":"IF('TSA Input'!J4420=\"\",\"\",IF(OR('TSA Input'!J4420=\"Yes\",'TSA Input'!J4420=\"Contingent\"),'TSA Input'!D4420,\"\"))","v":""},{"$f":"IF('TSA Input'!J4420=\"\",\"\",IF(OR('TSA Input'!J4420=\"Yes\",'TSA Input'!J4420=\"Contingent\"),'TSA Input'!G4420,\"\"))","v":""},{"$f":"IF('TSA Input'!J4420=\"\",\"\",IF(OR('TSA Input'!J4420=\"Yes\",'TSA Input'!J4420=\"Contingent\"),'TSA Input'!F4420,\"\"))","v":""},{"$f":"IF($C4458=\"\",\"\",SUM(F4458:H4458))","v":""},{"$f":"IF('TSA Input'!J4420=\"\",\"\",IF(OR('TSA Input'!J4420=\"Yes\",'TSA Input'!J4420=\"Contingent\"),'TSA Input'!D4420,\"\"))","v":""},{"$f":"IF('TSA Input'!J4420=\"\",\"\",IF(OR('TSA Input'!J4420=\"Yes\",'TSA Input'!J4420=\"Contingent\"),'TSA Input'!G4420,\"\"))","v":""},{"$f":"IF('TSA Input'!J4420=\"\",\"\",IF(OR('TSA Input'!J4420=\"Yes\",'TSA Input'!J4420=\"Contingent\"),'TSA Input'!F4420,\"\"))","v":""},{"$f":"IF($C4458=\"\",\"\",SUM(J4458:L4458))","v":""},"Required","Required"]
["",null,{"$f":"IF('TSA Input'!J4421=\"\",\"\",IF(OR('TSA Input'!J4421=\"Yes\",'TSA Input'!J4421=\"Contingent\"),'TSA Input'!B4421,\"Ineligible\"))","v":""},{"$f":"IF('TSA Input'!J4421=\"\",\"\",IF(OR('TSA Input'!J4421=\"Yes\",'TSA Input'!J4421=\"Contingent\"),'TSA Input'!I4421,\"\"))","v":""},{"$f":"IF('TSA Input'!J4421=\"\",\"\",IF(OR('TSA Input'!J4421=\"Yes\",'TSA Input'!J4421=\"Contingent\"),'TSA Input'!C4421,\"\"))","v":""},{"$f":"IF('TSA Input'!J4421=\"\",\"\",IF(OR('TSA Input'!J4421=\"Yes\",'TSA Input'!J4421=\"Contingent\"),'TSA Input'!D4421,\"\"))","v":""},{"$f":"IF('TSA Input'!J4421=\"\",\"\",IF(OR('TSA Input'!J4421=\"Yes\",'TSA Input'!J4421=\"Contingent\"),'TSA Input'!G4421,\"\"))","v":""},{"$f":"IF('TSA Input'!J4421=\"\",\"\",IF(OR('TSA Input'!J4421=\"Yes\",'TSA Input'!J4421=\"Contingent\"),'TSA Input'!F4421,\"\"))","v":""},"",{"$f":"IF('TSA Input'!J4421=\"\",\"\",IF(OR('TSA Input'!J4421=\"Yes\",'TSA Input'!J4421=\"Contingent\"),'TSA Input'!D4421,\"\"))","v":""},{"$f":"IF('TSA Input'!J4421=\"\",\"\",IF(OR('TSA Input'!J4421=\"Yes\",'TSA Input'!J4421=\"Contingent\"),'TSA Input'!G4421,\"\"))","v":""},{"$f":"IF('TSA Input'!J4421=\"\",\"\",IF(OR('TSA Input'!J4421=\"Yes\",'TSA Input'!J4421=\"Contingent\"),'TSA Input'!F4421,\"\"))","v":""},"","Required","Required"]
["",null,{"$f":"IF('TSA Input'!J4422=\"\",\"\",IF(OR('TSA Input'!J4422=\"Yes\",'TSA Input'!J4422=\"Contingent\"),'TSA Input'!B4422,\"Ineligible\"))","v":""},{"$f":"IF('TSA Input'!J4422=\"\",\"\",IF(OR('TSA Input'!J4422=\"Yes\",'TSA Input'!J4422=\"Contingent\"),'TSA Input'!I4422,\"\"))","v":""},{"$f":"IF('TSA Input'!J4422=\"\",\"\",IF(OR('TSA Input'!J4422=\"Yes\",'TSA Input'!J4422=\"Contingent\"),'TSA Input'!C4422,\"\"))","v":""},{"$f":"IF('TSA Input'!J4422=\"\",\"\",IF(OR('TSA Input'!J4422=\"Yes\",'TSA Input'!J4422=\"Contingent\"),'TSA Input'!D4422,\"\"))","v":""},{"$f":"IF('TSA Input'!J4422=\"\",\"\",IF(OR('TSA Input'!J4422=\"Yes\",'TSA Input'!J4422=\"Contingent\"),'TSA Input'!G4422,\"\"))","v":""},{"$f":"IF('TSA Input'!J4422=\"\",\"\",IF(OR('TSA Input'!J4422=\"Yes\",'TSA Input'!J4422=\"Contingent\"),'TSA Input'!F4422,\"\"))","v":""},"",{"$f":"IF('TSA Input'!J4422=\"\",\"\",IF(OR('TSA Input'!J4422=\"Yes\",'TSA Input'!J4422=\"Contingent\"),'TSA Input'!D4422,\"\"))","v":""},{"$f":"IF('TSA Input'!J4422=\"\",\"\",IF(OR('TSA Input'!J4422=\"Yes\",'TSA Input'!J4422=\"Contingent\"),'TSA Input'!G4422,\"\"))","v":""},{"$f":"IF('TSA Input'!J4422=\"\",\"\",IF(OR('TSA Input'!J4422=\"Yes\",'TSA Input'!J4422=\"Contingent\"),'TSA Input'!F4422,\"\"))","v":""},"","Required","Required"]
["",null,{"$f":"IF('TSA Input'!J4423=\"\",\"\",IF(OR('TSA Input'!J4423=\"Yes\",'TSA Input'!J4423=\"Contingent\"),'TSA Input'!B4423,\"Ineligible\"))","v":""},{"$f":"IF('TSA Input'!J4423=\"\",\"\",IF(OR('TSA Input'!J4423=\"Yes\",'TSA Input'!J4423=\"Contingent\"),'TSA Input'!I4423,\"\"))","v":""},{"$f":"IF('TSA Input'!J4423=\"\",\"\",IF(OR('TSA Input'!J4423=\"Yes\",'TSA Input'!J4423=\"Contingent\"),'TSA Input'!C4423,\"\"))","v":""},{"$f":"IF('TSA Input'!J4423=\"\",\"\",IF(OR('TSA Input'!J4423=\"Yes\",'TSA Input'!J4423=\"Contingent\"),'TSA Input'!D4423,\"\"))","v":""},{"$f":"IF('TSA Input'!J4423=\"\",\"\",IF(OR('TSA Input'!J4423=\"Yes\",'TSA Input'!J4423=\"Contingent\"),'TSA Input'!G4423,\"\"))","v":""},{"$f":"IF('TSA Input'!J4423=\"\",\"\",IF(OR('TSA Input'!J4423=\"Yes\",'TSA Input'!J4423=\"Contingent\"),'TSA Input'!F4423,\"\"))","v":""},"",{"$f":"IF('TSA Input'!J4423=\"\",\"\",IF(OR('TSA Input'!J4423=\"Yes\",'TSA Input'!J4423=\"Contingent\"),'TSA Input'!D4423,\"\"))","v":""},{"$f":"IF('TSA Input'!J4423=\"\",\"\",IF(OR('TSA Input'!J4423=\"Yes\",'TSA Input'!J4423=\"Contingent\"),'TSA Input'!G4423,\"\"))","v":""},{"$f":"IF('TSA Input'!J4423=\"\",\"\",IF(OR('TSA Input'!J4423=\"Yes\",'TSA Input'!J4423=\"Contingent\"),'TSA Input'!F4423,\"\"))","v":""},"","Required","Required"]
["",null,{"$f":"IF('TSA Input'!J4424=\"\",\"\",IF(OR('TSA Input'!J4424=\"Yes\",'TSA Input'!J4424=\"Contingent\"),'TSA Input'!B4424,\"Ineligible\"))","v":""},{"$f":"IF('TSA Input'!J4424=\"\",\"\",IF(OR('TSA Input'!J4424=\"Yes\",'TSA Input'!J4424=\"Contingent\"),'TSA Input'!I4424,\"\"))","v":""},{"$f":"IF('TSA Input'!J4424=\"\",\"\",IF(OR('TSA Input'!J4424=\"Yes\",'TSA Input'!J4424=\"Contingent\"),'TSA Input'!C4424,\"\"))","v":""},{"$f":"IF('TSA Input'!J4424=\"\",\"\",IF(OR('TSA Input'!J4424=\"Yes\",'TSA Input'!J4424=\"Contingent\"),'TSA Input'!D4424,\"\"))","v":""},{"$f":"IF('TSA Input'!J4424=\"\",\"\",IF(OR('TSA Input'!J4424=\"Yes\",'TSA Input'!J4424=\"Contingent\"),'TSA Input'!G4424,\"\"))","v":""},{"$f":"IF('TSA Input'!J4424=\"\",\"\",IF(OR('TSA Input'!J4424=\"Yes\",'TSA Input'!J4424=\"Contingent\"),'TSA Input'!F4424,\"\"))","v":""},"",{"$f":"IF('TSA Input'!J4424=\"\",\"\",IF(OR('TSA Input'!J4424=\"Yes\",'TSA Input'!J4424=\"Contingent\"),'TSA Input'!D4424,\"\"))","v":""},{"$f":"IF('TSA Input'!J4424=\"\",\"\",IF(OR('TSA Input'!J4424=\"Yes\",'TSA Input'!J4424=\"Contingent\"),'TSA Input'!G4424,\"\"))","v":""},{"$f":"IF('TSA Input'!J4424=\"\",\"\",IF(OR('TSA Input'!J4424=\"Yes\",'TSA Input'!J4424=\"Contingent\"),'TSA Input'!F4424,\"\"))","v":""},"","Required","Required"]
["",null,{"$f":"IF('TSA Input'!J4425=\"\",\"\",IF(OR('TSA Input'!J4425=\"Yes\",'TSA Input'!J4425=\"Contingent\"),'TSA Input'!B4425,\"Ineligible\"))","v":""},{"$f":"IF('TSA Input'!J4425=\"\",\"\",IF(OR('TSA Input'!J4425=\"Yes\",'TSA Input'!J4425=\"Contingent\"),'TSA Input'!I4425,\"\"))","v":""},{"$f":"IF('TSA Input'!J4425=\"\",\"\",IF(OR('TSA Input'!J4425=\"Yes\",'TSA Input'!J4425=\"Contingent\"),'TSA Input'!C4425,\"\"))","v":""},{"$f":"IF('TSA Input'!J4425=\"\",\"\",IF(OR('TSA Input'!J4425=\"Yes\",'TSA Input'!J4425=\"Contingent\"),'TSA Input'!D4425,\"\"))","v":""},{"$f":"IF('TSA Input'!J4425=\"\",\"\",IF(OR('TSA Input'!J4425=\"Yes\",'TSA Input'!J4425=\"Contingent\"),'TSA Input'!G4425,\"\"))","v":""},{"$f":"IF('TSA Input'!J4425=\"\",\"\",IF(OR('TSA Input'!J4425=\"Yes\",'TSA Input'!J4425=\"Contingent\"),'TSA Input'!F4425,\"\"))","v":""},"",{"$f":"IF('TSA Input'!J4425=\"\",\"\",IF(OR('TSA Input'!J4425=\"Yes\",'TSA Input'!J4425=\"Contingent\"),'TSA Input'!D4425,\"\"))","v":""},{"$f":"IF('TSA Input'!J4425=\"\",\"\",IF(OR('TSA Input'!J4425=\"Yes\",'TSA Input'!J4425=\"Contingent\"),'TSA Input'!G4425,\"\"))","v":""},{"$f":"IF('TSA Input'!J4425=\"\",\"\",IF(OR('TSA Input'!J4425=\"Yes\",'TSA Input'!J4425=\"Contingent\"),'TSA Input'!F4425,\"\"))","v":""},"","Required","Required"]
["",null,{"$f":"IF('TSA Input'!J4426=\"\",\"\",IF(OR('TSA Input'!J4426=\"Yes\",'TSA Input'!J4426=\"Contingent\"),'TSA Input'!B4426,\"Ineligible\"))","v":""},{"$f":"IF('TSA Input'!J4426=\"\",\"\",IF(OR('TSA Input'!J4426=\"Yes\",'TSA Input'!J4426=\"Contingent\"),'TSA Input'!I4426,\"\"))","v":""},{"$f":"IF('TSA Input'!J4426=\"\",\"\",IF(OR('TSA Input'!J4426=\"Yes\",'TSA Input'!J4426=\"Contingent\"),'TSA Input'!C4426,\"\"))","v":""},{"$f":"IF('TSA Input'!J4426=\"\",\"\",IF(OR('TSA Input'!J4426=\"Yes\",'TSA Input'!J4426=\"Contingent\"),'TSA Input'!D4426,\"\"))","v":""},{"$f":"IF('TSA Input'!J4426=\"\",\"\",IF(OR('TSA Input'!J4426=\"Yes\",'TSA Input'!J4426=\"Contingent\"),'TSA Input'!G4426,\"\"))","v":""},{"$f":"IF('TSA Input'!J4426=\"\",\"\",IF(OR('TSA Input'!J4426=\"Yes\",'TSA Input'!J4426=\"Contingent\"),'TSA Input'!F4426,\"\"))","v":""},"",{"$f":"IF('TSA Input'!J4426=\"\",\"\",IF(OR('TSA Input'!J4426=\"Yes\",'TSA Input'!J4426=\"Contingent\"),'TSA Input'!D4426,\"\"))","v":""},{"$f":"IF('TSA Input'!J4426=\"\",\"\",IF(OR('TSA Input'!J4426=\"Yes\",'TSA Input'!J4426=\"Contingent\"),'TSA Input'!G4426,\"\"))","v":""},{"$f":"IF('TSA Input'!J4426=\"\",\"\",IF(OR('TSA Input'!J4426=\"Yes\",'TSA Input'!J4426=\"Contingent\"),'TSA Input'!F4426,\"\"))","v":""},"","Required","Required"]
["",null,{"$f":"IF('TSA Input'!J4427=\"\",\"\",IF(OR('TSA Input'!J4427=\"Yes\",'TSA Input'!J4427=\"Contingent\"),'TSA Input'!B4427,\"Ineligible\"))","v":""},{"$f":"IF('TSA Input'!J4427=\"\",\"\",IF(OR('TSA Input'!J4427=\"Yes\",'TSA Input'!J4427=\"Contingent\"),'TSA Input'!I4427,\"\"))","v":""},{"$f":"IF('TSA Input'!J4427=\"\",\"\",IF(OR('TSA Input'!J4427=\"Yes\",'TSA Input'!J4427=\"Contingent\"),'TSA Input'!C4427,\"\"))","v":""},{"$f":"IF('TSA Input'!J4427=\"\",\"\",IF(OR('TSA Input'!J4427=\"Yes\",'TSA Input'!J4427=\"Contingent\"),'TSA Input'!D4427,\"\"))","v":""},{"$f":"IF('TSA Input'!J4427=\"\",\"\",IF(OR('TSA Input'!J4427=\"Yes\",'TSA Input'!J4427=\"Contingent\"),'TSA Input'!G4427,\"\"))","v":""},{"$f":"IF('TSA Input'!J4427=\"\",\"\",IF(OR('TSA Input'!J4427=\"Yes\",'TSA Input'!J4427=\"Contingent\"),'TSA Input'!F4427,\"\"))","v":""},"",{"$f":"IF('TSA Input'!J4427=\"\",\"\",IF(OR('TSA Input'!J4427=\"Yes\",'TSA Input'!J4427=\"Contingent\"),'TSA Input'!D4427,\"\"))","v":""},{"$f":"IF('TSA Input'!J4427=\"\",\"\",IF(OR('TSA Input'!J4427=\"Yes\",'TSA Input'!J4427=\"Contingent\"),'TSA Input'!G4427,\"\"))","v":""},{"$f":"IF('TSA Input'!J4427=\"\",\"\",IF(OR('TSA Input'!J4427=\"Yes\",'TSA Input'!J4427=\"Contingent\"),'TSA Input'!F4427,\"\"))","v":""},"","Required","Required"]
["",null,{"$f":"IF('TSA Input'!J4428=\"\",\"\",IF(OR('TSA Input'!J4428=\"Yes\",'TSA Input'!J4428=\"Contingent\"),'TSA Input'!B4428,\"Ineligible\"))","v":""},{"$f":"IF('TSA Input'!J4428=\"\",\"\",IF(OR('TSA Input'!J4428=\"Yes\",'TSA Input'!J4428=\"Contingent\"),'TSA Input'!I4428,\"\"))","v":""},{"$f":"IF('TSA Input'!J4428=\"\",\"\",IF(OR('TSA Input'!J4428=\"Yes\",'TSA Input'!J4428=\"Contingent\"),'TSA Input'!C4428,\"\"))","v":""},{"$f":"IF('TSA Input'!J4428=\"\",\"\",IF(OR('TSA Input'!J4428=\"Yes\",'TSA Input'!J4428=\"Contingent\"),'TSA Input'!D4428,\"\"))","v":""},{"$f":"IF('TSA Input'!J4428=\"\",\"\",IF(OR('TSA Input'!J4428=\"Yes\",'TSA Input'!J4428=\"Contingent\"),'TSA Input'!G4428,\"\"))","v":""},{"$f":"IF('TSA Input'!J4428=\"\",\"\",IF(OR('TSA Input'!J4428=\"Yes\",'TSA Input'!J4428=\"Contingent\"),'TSA Input'!F4428,\"\"))","v":""},"",{"$f":"IF('TSA Input'!J4428=\"\",\"\",IF(OR('TSA Input'!J4428=\"Yes\",'TSA Input'!J4428=\"Contingent\"),'TSA Input'!D4428,\"\"))","v":""},{"$f":"IF('TSA Input'!J4428=\"\",\"\",IF(OR('TSA Input'!J4428=\"Yes\",'TSA Input'!J4428=\"Contingent\"),'TSA Input'!G4428,\"\"))","v":""},{"$f":"IF('TSA Input'!J4428=\"\",\"\",IF(OR('TSA Input'!J4428=\"Yes\",'TSA Input'!J4428=\"Contingent\"),'TSA Input'!F4428,\"\"))","v":""},"","Required","Required"]
["",null,{"$f":"IF('TSA Input'!J4429=\"\",\"\",IF(OR('TSA Input'!J4429=\"Yes\",'TSA Input'!J4429=\"Contingent\"),'TSA Input'!B4429,\"Ineligible\"))","v":""},{"$f":"IF('TSA Input'!J4429=\"\",\"\",IF(OR('TSA Input'!J4429=\"Yes\",'TSA Input'!J4429=\"Contingent\"),'TSA Input'!I4429,\"\"))","v":""},{"$f":"IF('TSA Input'!J4429=\"\",\"\",IF(OR('TSA Input'!J4429=\"Yes\",'TSA Input'!J4429=\"Contingent\"),'TSA Input'!C4429,\"\"))","v":""},{"$f":"IF('TSA Input'!J4429=\"\",\"\",IF(OR('TSA Input'!J4429=\"Yes\",'TSA Input'!J4429=\"Contingent\"),'TSA Input'!D4429,\"\"))","v":""},{"$f":"IF('TSA Input'!J4429=\"\",\"\",IF(OR('TSA Input'!J4429=\"Yes\",'TSA Input'!J4429=\"Contingent\"),'TSA Input'!G4429,\"\"))","v":""},{"$f":"IF('TSA Input'!J4429=\"\",\"\",IF(OR('TSA Input'!J4429=\"Yes\",'TSA Input'!J4429=\"Contingent\"),'TSA Input'!F4429,\"\"))","v":""},"",{"$f":"IF('TSA Input'!J4429=\"\",\"\",IF(OR('TSA Input'!J4429=\"Yes\",'TSA Input'!J4429=\"Contingent\"),'TSA Input'!D4429,\"\"))","v":""},{"$f":"IF('TSA Input'!J4429=\"\",\"\",IF(OR('TSA Input'!J4429=\"Yes\",'TSA Input'!J4429=\"Contingent\"),'TSA Input'!G4429,\"\"))","v":""},{"$f":"IF('TSA Input'!J4429=\"\",\"\",IF(OR('TSA Input'!J4429=\"Yes\",'TSA Input'!J4429=\"Contingent\"),'TSA Input'!F4429,\"\"))","v":""},"","Required","Required"]
["",null,{"$f":"IF('TSA Input'!J4430=\"\",\"\",IF(OR('TSA Input'!J4430=\"Yes\",'TSA Input'!J4430=\"Contingent\"),'TSA Input'!B4430,\"Ineligible\"))","v":""},{"$f":"IF('TSA Input'!J4430=\"\",\"\",IF(OR('TSA Input'!J4430=\"Yes\",'TSA Input'!J4430=\"Contingent\"),'TSA Input'!I4430,\"\"))","v":""},{"$f":"IF('TSA Input'!J4430=\"\",\"\",IF(OR('TSA Input'!J4430=\"Yes\",'TSA Input'!J4430=\"Contingent\"),'TSA Input'!C4430,\"\"))","v":""},{"$f":"IF('TSA Input'!J4430=\"\",\"\",IF(OR('TSA Input'!J4430=\"Yes\",'TSA Input'!J4430=\"Contingent\"),'TSA Input'!D4430,\"\"))","v":""},{"$f":"IF('TSA Input'!J4430=\"\",\"\",IF(OR('TSA Input'!J4430=\"Yes\",'TSA Input'!J4430=\"Contingent\"),'TSA Input'!G4430,\"\"))","v":""},{"$f":"IF('TSA Input'!J4430=\"\",\"\",IF(OR('TSA Input'!J4430=\"Yes\",'TSA Input'!J4430=\"Contingent\"),'TSA Input'!F4430,\"\"))","v":""},"",{"$f":"IF('TSA Input'!J4430=\"\",\"\",IF(OR('TSA Input'!J4430=\"Yes\",'TSA Input'!J4430=\"Contingent\"),'TSA Input'!D4430,\"\"))","v":""},{"$f":"IF('TSA Input'!J4430=\"\",\"\",IF(OR('TSA Input'!J4430=\"Yes\",'TSA Input'!J4430=\"Contingent\"),'TSA Input'!G4430,\"\"))","v":""},{"$f":"IF('TSA Input'!J4430=\"\",\"\",IF(OR('TSA Input'!J4430=\"Yes\",'TSA Input'!J4430=\"Contingent\"),'TSA Input'!F4430,\"\"))","v":""},"","Required","Required"]
["",null,{"$f":"IF('TSA Input'!J4431=\"\",\"\",IF(OR('TSA Input'!J4431=\"Yes\",'TSA Input'!J4431=\"Contingent\"),'TSA Input'!B4431,\"Ineligible\"))","v":""},{"$f":"IF('TSA Input'!J4431=\"\",\"\",IF(OR('TSA Input'!J4431=\"Yes\",'TSA Input'!J4431=\"Contingent\"),'TSA Input'!I4431,\"\"))","v":""},{"$f":"IF('TSA Input'!J4431=\"\",\"\",IF(OR('TSA Input'!J4431=\"Yes\",'TSA Input'!J4431=\"Contingent\"),'TSA Input'!C4431,\"\"))","v":""},{"$f":"IF('TSA Input'!J4431=\"\",\"\",IF(OR('TSA Input'!J4431=\"Yes\",'TSA Input'!J4431=\"Contingent\"),'TSA Input'!D4431,\"\"))","v":""},{"$f":"IF('TSA Input'!J4431=\"\",\"\",IF(OR('TSA Input'!J4431=\"Yes\",'TSA Input'!J4431=\"Contingent\"),'TSA Input'!G4431,\"\"))","v":""},{"$f":"IF('TSA Input'!J4431=\"\",\"\",IF(OR('TSA Input'!J4431=\"Yes\",'TSA Input'!J4431=\"Contingent\"),'TSA Input'!F4431,\"\"))","v":""},"",{"$f":"IF('TSA Input'!J4431=\"\",\"\",IF(OR('TSA Input'!J4431=\"Yes\",'TSA Input'!J4431=\"Contingent\"),'TSA Input'!D4431,\"\"))","v":""},{"$f":"IF('TSA Input'!J4431=\"\",\"\",IF(OR('TSA Input'!J4431=\"Yes\",'TSA Input'!J4431=\"Contingent\"),'TSA Input'!G4431,\"\"))","v":""},{"$f":"IF('TSA Input'!J4431=\"\",\"\",IF(OR('TSA Input'!J4431=\"Yes\",'TSA Input'!J4431=\"Contingent\"),'TSA Input'!F4431,\"\"))","v":""},"","Required","Required"]
["",null,{"$f":"IF('TSA Input'!J4432=\"\",\"\",IF(OR('TSA Input'!J4432=\"Yes\",'TSA Input'!J4432=\"Contingent\"),'TSA Input'!B4432,\"Ineligible\"))","v":""},{"$f":"IF('TSA Input'!J4432=\"\",\"\",IF(OR('TSA Input'!J4432=\"Yes\",'TSA Input'!J4432=\"Contingent\"),'TSA Input'!I4432,\"\"))","v":""},{"$f":"IF('TSA Input'!J4432=\"\",\"\",IF(OR('TSA Input'!J4432=\"Yes\",'TSA Input'!J4432=\"Contingent\"),'TSA Input'!C4432,\"\"))","v":""},{"$f":"IF('TSA Input'!J4432=\"\",\"\",IF(OR('TSA Input'!J4432=\"Yes\",'TSA Input'!J4432=\"Contingent\"),'TSA Input'!D4432,\"\"))","v":""},{"$f":"IF('TSA Input'!J4432=\"\",\"\",IF(OR('TSA Input'!J4432=\"Yes\",'TSA Input'!J4432=\"Contingent\"),'TSA Input'!G4432,\"\"))","v":""},{"$f":"IF('TSA Input'!J4432=\"\",\"\",IF(OR('TSA Input'!J4432=\"Yes\",'TSA Input'!J4432=\"Contingent\"),'TSA Input'!F4432,\"\"))","v":""},"",{"$f":"IF('TSA Input'!J4432=\"\",\"\",IF(OR('TSA Input'!J4432=\"Yes\",'TSA Input'!J4432=\"Contingent\"),'TSA Input'!D4432,\"\"))","v":""},{"$f":"IF('TSA Input'!J4432=\"\",\"\",IF(OR('TSA Input'!J4432=\"Yes\",'TSA Input'!J4432=\"Contingent\"),'TSA Input'!G4432,\"\"))","v":""},{"$f":"IF('TSA Input'!J4432=\"\",\"\",IF(OR('TSA Input'!J4432=\"Yes\",'TSA Input'!J4432=\"Contingent\"),'TSA Input'!F4432,\"\"))","v":""},"","Required","Required"]
["",null,{"$f":"IF('TSA Input'!J4433=\"\",\"\",IF(OR('TSA Input'!J4433=\"Yes\",'TSA Input'!J4433=\"Contingent\"),'TSA Input'!B4433,\"Ineligible\"))","v":""},{"$f":"IF('TSA Input'!J4433=\"\",\"\",IF(OR('TSA Input'!J4433=\"Yes\",'TSA Input'!J4433=\"Contingent\"),'TSA Input'!I4433,\"\"))","v":""},{"$f":"IF('TSA Input'!J4433=\"\",\"\",IF(OR('TSA Input'!J4433=\"Yes\",'TSA Input'!J4433=\"Contingent\"),'TSA Input'!C4433,\"\"))","v":""},{"$f":"IF('TSA Input'!J4433=\"\",\"\",IF(OR('TSA Input'!J4433=\"Yes\",'TSA Input'!J4433=\"Contingent\"),'TSA Input'!D4433,\"\"))","v":""},{"$f":"IF('TSA Input'!J4433=\"\",\"\",IF(OR('TSA Input'!J4433=\"Yes\",'TSA Input'!J4433=\"Contingent\"),'TSA Input'!G4433,\"\"))","v":""},{"$f":"IF('TSA Input'!J4433=\"\",\"\",IF(OR('TSA Input'!J4433=\"Yes\",'TSA Input'!J4433=\"Contingent\"),'TSA Input'!F4433,\"\"))","v":""},"",{"$f":"IF('TSA Input'!J4433=\"\",\"\",IF(OR('TSA Input'!J4433=\"Yes\",'TSA Input'!J4433=\"Contingent\"),'TSA Input'!D4433,\"\"))","v":""},{"$f":"IF('TSA Input'!J4433=\"\",\"\",IF(OR('TSA Input'!J4433=\"Yes\",'TSA Input'!J4433=\"Contingent\"),'TSA Input'!G4433,\"\"))","v":""},{"$f":"IF('TSA Input'!J4433=\"\",\"\",IF(OR('TSA Input'!J4433=\"Yes\",'TSA Input'!J4433=\"Contingent\"),'TSA Input'!F4433,\"\"))","v":""},"","Required","Required"]
["",null,{"$f":"IF('TSA Input'!J4434=\"\",\"\",IF(OR('TSA Input'!J4434=\"Yes\",'TSA Input'!J4434=\"Contingent\"),'TSA Input'!B4434,\"Ineligible\"))","v":""},{"$f":"IF('TSA Input'!J4434=\"\",\"\",IF(OR('TSA Input'!J4434=\"Yes\",'TSA Input'!J4434=\"Contingent\"),'TSA Input'!I4434,\"\"))","v":""},{"$f":"IF('TSA Input'!J4434=\"\",\"\",IF(OR('TSA Input'!J4434=\"Yes\",'TSA Input'!J4434=\"Contingent\"),'TSA Input'!C4434,\"\"))","v":""},{"$f":"IF('TSA Input'!J4434=\"\",\"\",IF(OR('TSA Input'!J4434=\"Yes\",'TSA Input'!J4434=\"Contingent\"),'TSA Input'!D4434,\"\"))","v":""},{"$f":"IF('TSA Input'!J4434=\"\",\"\",IF(OR('TSA Input'!J4434=\"Yes\",'TSA Input'!J4434=\"Contingent\"),'TSA Input'!G4434,\"\"))","v":""},{"$f":"IF('TSA Input'!J4434=\"\",\"\",IF(OR('TSA Input'!J4434=\"Yes\",'TSA Input'!J4434=\"Contingent\"),'TSA Input'!F4434,\"\"))","v":""},"",{"$f":"IF('TSA Input'!J4434=\"\",\"\",IF(OR('TSA Input'!J4434=\"Yes\",'TSA Input'!J4434=\"Contingent\"),'TSA Input'!D4434,\"\"))","v":""},{"$f":"IF('TSA Input'!J4434=\"\",\"\",IF(OR('TSA Input'!J4434=\"Yes\",'TSA Input'!J4434=\"Contingent\"),'TSA Input'!G4434,\"\"))","v":""},{"$f":"IF('TSA Input'!J4434=\"\",\"\",IF(OR('TSA Input'!J4434=\"Yes\",'TSA Input'!J4434=\"Contingent\"),'TSA Input'!F4434,\"\"))","v":""},"","Required","Required"]
["",null,{"$f":"IF('TSA Input'!J4435=\"\",\"\",IF(OR('TSA Input'!J4435=\"Yes\",'TSA Input'!J4435=\"Contingent\"),'TSA Input'!B4435,\"Ineligible\"))","v":""},{"$f":"IF('TSA Input'!J4435=\"\",\"\",IF(OR('TSA Input'!J4435=\"Yes\",'TSA Input'!J4435=\"Contingent\"),'TSA Input'!I4435,\"\"))","v":""},{"$f":"IF('TSA Input'!J4435=\"\",\"\",IF(OR('TSA Input'!J4435=\"Yes\",'TSA Input'!J4435=\"Contingent\"),'TSA Input'!C4435,\"\"))","v":""},{"$f":"IF('TSA Input'!J4435=\"\",\"\",IF(OR('TSA Input'!J4435=\"Yes\",'TSA Input'!J4435=\"Contingent\"),'TSA Input'!D4435,\"\"))","v":""},{"$f":"IF('TSA Input'!J4435=\"\",\"\",IF(OR('TSA Input'!J4435=\"Yes\",'TSA Input'!J4435=\"Contingent\"),'TSA Input'!G4435,\"\"))","v":""},{"$f":"IF('TSA Input'!J4435=\"\",\"\",IF(OR('TSA Input'!J4435=\"Yes\",'TSA Input'!J4435=\"Contingent\"),'TSA Input'!F4435,\"\"))","v":""},"",{"$f":"IF('TSA Input'!J4435=\"\",\"\",IF(OR('TSA Input'!J4435=\"Yes\",'TSA Input'!J4435=\"Contingent\"),'TSA Input'!D4435,\"\"))","v":""},{"$f":"IF('TSA Input'!J4435=\"\",\"\",IF(OR('TSA Input'!J4435=\"Yes\",'TSA Input'!J4435=\"Contingent\"),'TSA Input'!G4435,\"\"))","v":""},{"$f":"IF('TSA Input'!J4435=\"\",\"\",IF(OR('TSA Input'!J4435=\"Yes\",'TSA Input'!J4435=\"Contingent\"),'TSA Input'!F4435,\"\"))","v":""},"","Required","Required"]
["",null,{"$f":"IF('TSA Input'!J4436=\"\",\"\",IF(OR('TSA Input'!J4436=\"Yes\",'TSA Input'!J4436=\"Contingent\"),'TSA Input'!B4436,\"Ineligible\"))","v":""},{"$f":"IF('TSA Input'!J4436=\"\",\"\",IF(OR('TSA Input'!J4436=\"Yes\",'TSA Input'!J4436=\"Contingent\"),'TSA Input'!I4436,\"\"))","v":""},{"$f":"IF('TSA Input'!J4436=\"\",\"\",IF(OR('TSA Input'!J4436=\"Yes\",'TSA Input'!J4436=\"Contingent\"),'TSA Input'!C4436,\"\"))","v":""},{"$f":"IF('TSA Input'!J4436=\"\",\"\",IF(OR('TSA Input'!J4436=\"Yes\",'TSA Input'!J4436=\"Contingent\"),'TSA Input'!D4436,\"\"))","v":""},{"$f":"IF('TSA Input'!J4436=\"\",\"\",IF(OR('TSA Input'!J4436=\"Yes\",'TSA Input'!J4436=\"Contingent\"),'TSA Input'!G4436,\"\"))","v":""},{"$f":"IF('TSA Input'!J4436=\"\",\"\",IF(OR('TSA Input'!J4436=\"Yes\",'TSA Input'!J4436=\"Contingent\"),'TSA Input'!F4436,\"\"))","v":""},"",{"$f":"IF('TSA Input'!J4436=\"\",\"\",IF(OR('TSA Input'!J4436=\"Yes\",'TSA Input'!J4436=\"Contingent\"),'TSA Input'!D4436,\"\"))","v":""},{"$f":"IF('TSA Input'!J4436=\"\",\"\",IF(OR('TSA Input'!J4436=\"Yes\",'TSA Input'!J4436=\"Contingent\"),'TSA Input'!G4436,\"\"))","v":""},{"$f":"IF('TSA Input'!J4436=\"\",\"\",IF(OR('TSA Input'!J4436=\"Yes\",'TSA Input'!J4436=\"Contingent\"),'TSA Input'!F4436,\"\"))","v":""},"","Required","Required"]
["",null,{"$f":"IF('TSA Input'!J4437=\"\",\"\",IF(OR('TSA Input'!J4437=\"Yes\",'TSA Input'!J4437=\"Contingent\"),'TSA Input'!B4437,\"Ineligible\"))","v":""},{"$f":"IF('TSA Input'!J4437=\"\",\"\",IF(OR('TSA Input'!J4437=\"Yes\",'TSA Input'!J4437=\"Contingent\"),'TSA Input'!I4437,\"\"))","v":""},{"$f":"IF('TSA Input'!J4437=\"\",\"\",IF(OR('TSA Input'!J4437=\"Yes\",'TSA Input'!J4437=\"Contingent\"),'TSA Input'!C4437,\"\"))","v":""},{"$f":"IF('TSA Input'!J4437=\"\",\"\",IF(OR('TSA Input'!J4437=\"Yes\",'TSA Input'!J4437=\"Contingent\"),'TSA Input'!D4437,\"\"))","v":""},{"$f":"IF('TSA Input'!J4437=\"\",\"\",IF(OR('TSA Input'!J4437=\"Yes\",'TSA Input'!J4437=\"Contingent\"),'TSA Input'!G4437,\"\"))","v":""},{"$f":"IF('TSA Input'!J4437=\"\",\"\",IF(OR('TSA Input'!J4437=\"Yes\",'TSA Input'!J4437=\"Contingent\"),'TSA Input'!F4437,\"\"))","v":""},"",{"$f":"IF('TSA Input'!J4437=\"\",\"\",IF(OR('TSA Input'!J4437=\"Yes\",'TSA Input'!J4437=\"Contingent\"),'TSA Input'!D4437,\"\"))","v":""},{"$f":"IF('TSA Input'!J4437=\"\",\"\",IF(OR('TSA Input'!J4437=\"Yes\",'TSA Input'!J4437=\"Contingent\"),'TSA Input'!G4437,\"\"))","v":""},{"$f":"IF('TSA Input'!J4437=\"\",\"\",IF(OR('TSA Input'!J4437=\"Yes\",'TSA Input'!J4437=\"Contingent\"),'TSA Input'!F4437,\"\"))","v":""},"","Required","Required"]
["",null,{"$f":"IF('TSA Input'!J4438=\"\",\"\",IF(OR('TSA Input'!J4438=\"Yes\",'TSA Input'!J4438=\"Contingent\"),'TSA Input'!B4438,\"Ineligible\"))","v":""},{"$f":"IF('TSA Input'!J4438=\"\",\"\",IF(OR('TSA Input'!J4438=\"Yes\",'TSA Input'!J4438=\"Contingent\"),'TSA Input'!I4438,\"\"))","v":""},{"$f":"IF('TSA Input'!J4438=\"\",\"\",IF(OR('TSA Input'!J4438=\"Yes\",'TSA Input'!J4438=\"Contingent\"),'TSA Input'!C4438,\"\"))","v":""},{"$f":"IF('TSA Input'!J4438=\"\",\"\",IF(OR('TSA Input'!J4438=\"Yes\",'TSA Input'!J4438=\"Contingent\"),'TSA Input'!D4438,\"\"))","v":""},{"$f":"IF('TSA Input'!J4438=\"\",\"\",IF(OR('TSA Input'!J4438=\"Yes\",'TSA Input'!J4438=\"Contingent\"),'TSA Input'!G4438,\"\"))","v":""},{"$f":"IF('TSA Input'!J4438=\"\",\"\",IF(OR('TSA Input'!J4438=\"Yes\",'TSA Input'!J4438=\"Contingent\"),'TSA Input'!F4438,\"\"))","v":""},"",{"$f":"IF('TSA Input'!J4438=\"\",\"\",IF(OR('TSA Input'!J4438=\"Yes\",'TSA Input'!J4438=\"Contingent\"),'TSA Input'!D4438,\"\"))","v":""},{"$f":"IF('TSA Input'!J4438=\"\",\"\",IF(OR('TSA Input'!J4438=\"Yes\",'TSA Input'!J4438=\"Contingent\"),'TSA Input'!G4438,\"\"))","v":""},{"$f":"IF('TSA Input'!J4438=\"\",\"\",IF(OR('TSA Input'!J4438=\"Yes\",'TSA Input'!J4438=\"Contingent\"),'TSA Input'!F4438,\"\"))","v":""},"","Required","Required"]
["",null,{"$f":"IF('TSA Input'!J4439=\"\",\"\",IF(OR('TSA Input'!J4439=\"Yes\",'TSA Input'!J4439=\"Contingent\"),'TSA Input'!B4439,\"Ineligible\"))","v":""},{"$f":"IF('TSA Input'!J4439=\"\",\"\",IF(OR('TSA Input'!J4439=\"Yes\",'TSA Input'!J4439=\"Contingent\"),'TSA Input'!I4439,\"\"))","v":""},{"$f":"IF('TSA Input'!J4439=\"\",\"\",IF(OR('TSA Input'!J4439=\"Yes\",'TSA Input'!J4439=\"Contingent\"),'TSA Input'!C4439,\"\"))","v":""},{"$f":"IF('TSA Input'!J4439=\"\",\"\",IF(OR('TSA Input'!J4439=\"Yes\",'TSA Input'!J4439=\"Contingent\"),'TSA Input'!D4439,\"\"))","v":""},{"$f":"IF('TSA Input'!J4439=\"\",\"\",IF(OR('TSA Input'!J4439=\"Yes\",'TSA Input'!J4439=\"Contingent\"),'TSA Input'!G4439,\"\"))","v":""},{"$f":"IF('TSA Input'!J4439=\"\",\"\",IF(OR('TSA Input'!J4439=\"Yes\",'TSA Input'!J4439=\"Contingent\"),'TSA Input'!F4439,\"\"))","v":""},"",{"$f":"IF('TSA Input'!J4439=\"\",\"\",IF(OR('TSA Input'!J4439=\"Yes\",'TSA Input'!J4439=\"Contingent\"),'TSA Input'!D4439,\"\"))","v":""},{"$f":"IF('TSA Input'!J4439=\"\",\"\",IF(OR('TSA Input'!J4439=\"Yes\",'TSA Input'!J4439=\"Contingent\"),'TSA Input'!G4439,\"\"))","v":""},{"$f":"IF('TSA Input'!J4439=\"\",\"\",IF(OR('TSA Input'!J4439=\"Yes\",'TSA Input'!J4439=\"Contingent\"),'TSA Input'!F4439,\"\"))","v":""},"","Required","Required"]
["",null,{"$f":"IF('TSA Input'!J4440=\"\",\"\",IF(OR('TSA Input'!J4440=\"Yes\",'TSA Input'!J4440=\"Contingent\"),'TSA Input'!B4440,\"Ineligible\"))","v":""},{"$f":"IF('TSA Input'!J4440=\"\",\"\",IF(OR('TSA Input'!J4440=\"Yes\",'TSA Input'!J4440=\"Contingent\"),'TSA Input'!I4440,\"\"))","v":""},{"$f":"IF('TSA Input'!J4440=\"\",\"\",IF(OR('TSA Input'!J4440=\"Yes\",'TSA Input'!J4440=\"Contingent\"),'TSA Input'!C4440,\"\"))","v":""},{"$f":"IF('TSA Input'!J4440=\"\",\"\",IF(OR('TSA Input'!J4440=\"Yes\",'TSA Input'!J4440=\"Contingent\"),'TSA Input'!D4440,\"\"))","v":""},{"$f":"IF('TSA Input'!J4440=\"\",\"\",IF(OR('TSA Input'!J4440=\"Yes\",'TSA Input'!J4440=\"Contingent\"),'TSA Input'!G4440,\"\"))","v":""},{"$f":"IF('TSA Input'!J4440=\"\",\"\",IF(OR('TSA Input'!J4440=\"Yes\",'TSA Input'!J4440=\"Contingent\"),'TSA Input'!F4440,\"\"))","v":""},"",{"$f":"IF('TSA Input'!J4440=\"\",\"\",IF(OR('TSA Input'!J4440=\"Yes\",'TSA Input'!J4440=\"Contingent\"),'TSA Input'!D4440,\"\"))","v":""},{"$f":"IF('TSA Input'!J4440=\"\",\"\",IF(OR('TSA Input'!J4440=\"Yes\",'TSA Input'!J4440=\"Contingent\"),'TSA Input'!G4440,\"\"))","v":""},{"$f":"IF('TSA Input'!J4440=\"\",\"\",IF(OR('TSA Input'!J4440=\"Yes\",'TSA Input'!J4440=\"Contingent\"),'TSA Input'!F4440,\"\"))","v":""},"","Required","Required"]
["",null,{"$f":"IF('TSA Input'!J4441=\"\",\"\",IF(OR('TSA Input'!J4441=\"Yes\",'TSA Input'!J4441=\"Contingent\"),'TSA Input'!B4441,\"Ineligible\"))","v":""},{"$f":"IF('TSA Input'!J4441=\"\",\"\",IF(OR('TSA Input'!J4441=\"Yes\",'TSA Input'!J4441=\"Contingent\"),'TSA Input'!I4441,\"\"))","v":""},{"$f":"IF('TSA Input'!J4441=\"\",\"\",IF(OR('TSA Input'!J4441=\"Yes\",'TSA Input'!J4441=\"Contingent\"),'TSA Input'!C4441,\"\"))","v":""},{"$f":"IF('TSA Input'!J4441=\"\",\"\",IF(OR('TSA Input'!J4441=\"Yes\",'TSA Input'!J4441=\"Contingent\"),'TSA Input'!D4441,\"\"))","v":""},{"$f":"IF('TSA Input'!J4441=\"\",\"\",IF(OR('TSA Input'!J4441=\"Yes\",'TSA Input'!J4441=\"Contingent\"),'TSA Input'!G4441,\"\"))","v":""},{"$f":"IF('TSA Input'!J4441=\"\",\"\",IF(OR('TSA Input'!J4441=\"Yes\",'TSA Input'!J4441=\"Contingent\"),'TSA Input'!F4441,\"\"))","v":""},"",{"$f":"IF('TSA Input'!J4441=\"\",\"\",IF(OR('TSA Input'!J4441=\"Yes\",'TSA Input'!J4441=\"Contingent\"),'TSA Input'!D4441,\"\"))","v":""},{"$f":"IF('TSA Input'!J4441=\"\",\"\",IF(OR('TSA Input'!J4441=\"Yes\",'TSA Input'!J4441=\"Contingent\"),'TSA Input'!G4441,\"\"))","v":""},{"$f":"IF('TSA Input'!J4441=\"\",\"\",IF(OR('TSA Input'!J4441=\"Yes\",'TSA Input'!J4441=\"Contingent\"),'TSA Input'!F4441,\"\"))","v":""},"","Required","Required"]
["",null,{"$f":"IF('TSA Input'!J4442=\"\",\"\",IF(OR('TSA Input'!J4442=\"Yes\",'TSA Input'!J4442=\"Contingent\"),'TSA Input'!B4442,\"Ineligible\"))","v":""},{"$f":"IF('TSA Input'!J4442=\"\",\"\",IF(OR('TSA Input'!J4442=\"Yes\",'TSA Input'!J4442=\"Contingent\"),'TSA Input'!I4442,\"\"))","v":""},{"$f":"IF('TSA Input'!J4442=\"\",\"\",IF(OR('TSA Input'!J4442=\"Yes\",'TSA Input'!J4442=\"Contingent\"),'TSA Input'!C4442,\"\"))","v":""},{"$f":"IF('TSA Input'!J4442=\"\",\"\",IF(OR('TSA Input'!J4442=\"Yes\",'TSA Input'!J4442=\"Contingent\"),'TSA Input'!D4442,\"\"))","v":""},{"$f":"IF('TSA Input'!J4442=\"\",\"\",IF(OR('TSA Input'!J4442=\"Yes\",'TSA Input'!J4442=\"Contingent\"),'TSA Input'!G4442,\"\"))","v":""},{"$f":"IF('TSA Input'!J4442=\"\",\"\",IF(OR('TSA Input'!J4442=\"Yes\",'TSA Input'!J4442=\"Contingent\"),'TSA Input'!F4442,\"\"))","v":""},"",{"$f":"IF('TSA Input'!J4442=\"\",\"\",IF(OR('TSA Input'!J4442=\"Yes\",'TSA Input'!J4442=\"Contingent\"),'TSA Input'!D4442,\"\"))","v":""},{"$f":"IF('TSA Input'!J4442=\"\",\"\",IF(OR('TSA Input'!J4442=\"Yes\",'TSA Input'!J4442=\"Contingent\"),'TSA Input'!G4442,\"\"))","v":""},{"$f":"IF('TSA Input'!J4442=\"\",\"\",IF(OR('TSA Input'!J4442=\"Yes\",'TSA Input'!J4442=\"Contingent\"),'TSA Input'!F4442,\"\"))","v":""},"","Required","Required"]
["",null,{"$f":"IF('TSA Input'!J4443=\"\",\"\",IF(OR('TSA Input'!J4443=\"Yes\",'TSA Input'!J4443=\"Contingent\"),'TSA Input'!B4443,\"Ineligible\"))","v":""},{"$f":"IF('TSA Input'!J4443=\"\",\"\",IF(OR('TSA Input'!J4443=\"Yes\",'TSA Input'!J4443=\"Contingent\"),'TSA Input'!I4443,\"\"))","v":""},{"$f":"IF('TSA Input'!J4443=\"\",\"\",IF(OR('TSA Input'!J4443=\"Yes\",'TSA Input'!J4443=\"Contingent\"),'TSA Input'!C4443,\"\"))","v":""},{"$f":"IF('TSA Input'!J4443=\"\",\"\",IF(OR('TSA Input'!J4443=\"Yes\",'TSA Input'!J4443=\"Contingent\"),'TSA Input'!D4443,\"\"))","v":""},{"$f":"IF('TSA Input'!J4443=\"\",\"\",IF(OR('TSA Input'!J4443=\"Yes\",'TSA Input'!J4443=\"Contingent\"),'TSA Input'!G4443,\"\"))","v":""},{"$f":"IF('TSA Input'!J4443=\"\",\"\",IF(OR('TSA Input'!J4443=\"Yes\",'TSA Input'!J4443=\"Contingent\"),'TSA Input'!F4443,\"\"))","v":""},"",{"$f":"IF('TSA Input'!J4443=\"\",\"\",IF(OR('TSA Input'!J4443=\"Yes\",'TSA Input'!J4443=\"Contingent\"),'TSA Input'!D4443,\"\"))","v":""},{"$f":"IF('TSA Input'!J4443=\"\",\"\",IF(OR('TSA Input'!J4443=\"Yes\",'TSA Input'!J4443=\"Contingent\"),'TSA Input'!G4443,\"\"))","v":""},{"$f":"IF('TSA Input'!J4443=\"\",\"\",IF(OR('TSA Input'!J4443=\"Yes\",'TSA Input'!J4443=\"Contingent\"),'TSA Input'!F4443,\"\"))","v":""},"","Required","Required"]
["",null,{"$f":"IF('TSA Input'!J4444=\"\",\"\",IF(OR('TSA Input'!J4444=\"Yes\",'TSA Input'!J4444=\"Contingent\"),'TSA Input'!B4444,\"Ineligible\"))","v":""},{"$f":"IF('TSA Input'!J4444=\"\",\"\",IF(OR('TSA Input'!J4444=\"Yes\",'TSA Input'!J4444=\"Contingent\"),'TSA Input'!I4444,\"\"))","v":""},{"$f":"IF('TSA Input'!J4444=\"\",\"\",IF(OR('TSA Input'!J4444=\"Yes\",'TSA Input'!J4444=\"Contingent\"),'TSA Input'!C4444,\"\"))","v":""},{"$f":"IF('TSA Input'!J4444=\"\",\"\",IF(OR('TSA Input'!J4444=\"Yes\",'TSA Input'!J4444=\"Contingent\"),'TSA Input'!D4444,\"\"))","v":""},{"$f":"IF('TSA Input'!J4444=\"\",\"\",IF(OR('TSA Input'!J4444=\"Yes\",'TSA Input'!J4444=\"Contingent\"),'TSA Input'!G4444,\"\"))","v":""},{"$f":"IF('TSA Input'!J4444=\"\",\"\",IF(OR('TSA Input'!J4444=\"Yes\",'TSA Input'!J4444=\"Contingent\"),'TSA Input'!F4444,\"\"))","v":""},"",{"$f":"IF('TSA Input'!J4444=\"\",\"\",IF(OR('TSA Input'!J4444=\"Yes\",'TSA Input'!J4444=\"Contingent\"),'TSA Input'!D4444,\"\"))","v":""},{"$f":"IF('TSA Input'!J4444=\"\",\"\",IF(OR('TSA Input'!J4444=\"Yes\",'TSA Input'!J4444=\"Contingent\"),'TSA Input'!G4444,\"\"))","v":""},{"$f":"IF('TSA Input'!J4444=\"\",\"\",IF(OR('TSA Input'!J4444=\"Yes\",'TSA Input'!J4444=\"Contingent\"),'TSA Input'!F4444,\"\"))","v":""},"","Required","Required"]
["",null,{"$f":"IF('TSA Input'!J4445=\"\",\"\",IF(OR('TSA Input'!J4445=\"Yes\",'TSA Input'!J4445=\"Contingent\"),'TSA Input'!B4445,\"Ineligible\"))","v":""},{"$f":"IF('TSA Input'!J4445=\"\",\"\",IF(OR('TSA Input'!J4445=\"Yes\",'TSA Input'!J4445=\"Contingent\"),'TSA Input'!I4445,\"\"))","v":""},{"$f":"IF('TSA Input'!J4445=\"\",\"\",IF(OR('TSA Input'!J4445=\"Yes\",'TSA Input'!J4445=\"Contingent\"),'TSA Input'!C4445,\"\"))","v":""},{"$f":"IF('TSA Input'!J4445=\"\",\"\",IF(OR('TSA Input'!J4445=\"Yes\",'TSA Input'!J4445=\"Contingent\"),'TSA Input'!D4445,\"\"))","v":""},{"$f":"IF('TSA Input'!J4445=\"\",\"\",IF(OR('TSA Input'!J4445=\"Yes\",'TSA Input'!J4445=\"Contingent\"),'TSA Input'!G4445,\"\"))","v":""},{"$f":"IF('TSA Input'!J4445=\"\",\"\",IF(OR('TSA Input'!J4445=\"Yes\",'TSA Input'!J4445=\"Contingent\"),'TSA Input'!F4445,\"\"))","v":""},"",{"$f":"IF('TSA Input'!J4445=\"\",\"\",IF(OR('TSA Input'!J4445=\"Yes\",'TSA Input'!J4445=\"Contingent\"),'TSA Input'!D4445,\"\"))","v":""},{"$f":"IF('TSA Input'!J4445=\"\",\"\",IF(OR('TSA Input'!J4445=\"Yes\",'TSA Input'!J4445=\"Contingent\"),'TSA Input'!G4445,\"\"))","v":""},{"$f":"IF('TSA Input'!J4445=\"\",\"\",IF(OR('TSA Input'!J4445=\"Yes\",'TSA Input'!J4445=\"Contingent\"),'TSA Input'!F4445,\"\"))","v":""},"","Required","Required"]
["",null,{"$f":"IF('TSA Input'!J4446=\"\",\"\",IF(OR('TSA Input'!J4446=\"Yes\",'TSA Input'!J4446=\"Contingent\"),'TSA Input'!B4446,\"Ineligible\"))","v":""},{"$f":"IF('TSA Input'!J4446=\"\",\"\",IF(OR('TSA Input'!J4446=\"Yes\",'TSA Input'!J4446=\"Contingent\"),'TSA Input'!I4446,\"\"))","v":""},{"$f":"IF('TSA Input'!J4446=\"\",\"\",IF(OR('TSA Input'!J4446=\"Yes\",'TSA Input'!J4446=\"Contingent\"),'TSA Input'!C4446,\"\"))","v":""},{"$f":"IF('TSA Input'!J4446=\"\",\"\",IF(OR('TSA Input'!J4446=\"Yes\",'TSA Input'!J4446=\"Contingent\"),'TSA Input'!D4446,\"\"))","v":""},{"$f":"IF('TSA Input'!J4446=\"\",\"\",IF(OR('TSA Input'!J4446=\"Yes\",'TSA Input'!J4446=\"Contingent\"),'TSA Input'!G4446,\"\"))","v":""},{"$f":"IF('TSA Input'!J4446=\"\",\"\",IF(OR('TSA Input'!J4446=\"Yes\",'TSA Input'!J4446=\"Contingent\"),'TSA Input'!F4446,\"\"))","v":""},"",{"$f":"IF('TSA Input'!J4446=\"\",\"\",IF(OR('TSA Input'!J4446=\"Yes\",'TSA Input'!J4446=\"Contingent\"),'TSA Input'!D4446,\"\"))","v":""},{"$f":"IF('TSA Input'!J4446=\"\",\"\",IF(OR('TSA Input'!J4446=\"Yes\",'TSA Input'!J4446=\"Contingent\"),'TSA Input'!G4446,\"\"))","v":""},{"$f":"IF('TSA Input'!J4446=\"\",\"\",IF(OR('TSA Input'!J4446=\"Yes\",'TSA Input'!J4446=\"Contingent\"),'TSA Input'!F4446,\"\"))","v":""},"","Required","Required"]
["",null,{"$f":"IF('TSA Input'!J4447=\"\",\"\",IF(OR('TSA Input'!J4447=\"Yes\",'TSA Input'!J4447=\"Contingent\"),'TSA Input'!B4447,\"Ineligible\"))","v":""},{"$f":"IF('TSA Input'!J4447=\"\",\"\",IF(OR('TSA Input'!J4447=\"Yes\",'TSA Input'!J4447=\"Contingent\"),'TSA Input'!I4447,\"\"))","v":""},{"$f":"IF('TSA Input'!J4447=\"\",\"\",IF(OR('TSA Input'!J4447=\"Yes\",'TSA Input'!J4447=\"Contingent\"),'TSA Input'!C4447,\"\"))","v":""},{"$f":"IF('TSA Input'!J4447=\"\",\"\",IF(OR('TSA Input'!J4447=\"Yes\",'TSA Input'!J4447=\"Contingent\"),'TSA Input'!D4447,\"\"))","v":""},{"$f":"IF('TSA Input'!J4447=\"\",\"\",IF(OR('TSA Input'!J4447=\"Yes\",'TSA Input'!J4447=\"Contingent\"),'TSA Input'!G4447,\"\"))","v":""},{"$f":"IF('TSA Input'!J4447=\"\",\"\",IF(OR('TSA Input'!J4447=\"Yes\",'TSA Input'!J4447=\"Contingent\"),'TSA Input'!F4447,\"\"))","v":""},"",{"$f":"IF('TSA Input'!J4447=\"\",\"\",IF(OR('TSA Input'!J4447=\"Yes\",'TSA Input'!J4447=\"Contingent\"),'TSA Input'!D4447,\"\"))","v":""},{"$f":"IF('TSA Input'!J4447=\"\",\"\",IF(OR('TSA Input'!J4447=\"Yes\",'TSA Input'!J4447=\"Contingent\"),'TSA Input'!G4447,\"\"))","v":""},{"$f":"IF('TSA Input'!J4447=\"\",\"\",IF(OR('TSA Input'!J4447=\"Yes\",'TSA Input'!J4447=\"Contingent\"),'TSA Input'!F4447,\"\"))","v":""},"","Required","Required"]
["",null,{"$f":"IF('TSA Input'!J4448=\"\",\"\",IF(OR('TSA Input'!J4448=\"Yes\",'TSA Input'!J4448=\"Contingent\"),'TSA Input'!B4448,\"Ineligible\"))","v":""},{"$f":"IF('TSA Input'!J4448=\"\",\"\",IF(OR('TSA Input'!J4448=\"Yes\",'TSA Input'!J4448=\"Contingent\"),'TSA Input'!I4448,\"\"))","v":""},{"$f":"IF('TSA Input'!J4448=\"\",\"\",IF(OR('TSA Input'!J4448=\"Yes\",'TSA Input'!J4448=\"Contingent\"),'TSA Input'!C4448,\"\"))","v":""},{"$f":"IF('TSA Input'!J4448=\"\",\"\",IF(OR('TSA Input'!J4448=\"Yes\",'TSA Input'!J4448=\"Contingent\"),'TSA Input'!D4448,\"\"))","v":""},{"$f":"IF('TSA Input'!J4448=\"\",\"\",IF(OR('TSA Input'!J4448=\"Yes\",'TSA Input'!J4448=\"Contingent\"),'TSA Input'!G4448,\"\"))","v":""},{"$f":"IF('TSA Input'!J4448=\"\",\"\",IF(OR('TSA Input'!J4448=\"Yes\",'TSA Input'!J4448=\"Contingent\"),'TSA Input'!F4448,\"\"))","v":""},"",{"$f":"IF('TSA Input'!J4448=\"\",\"\",IF(OR('TSA Input'!J4448=\"Yes\",'TSA Input'!J4448=\"Contingent\"),'TSA Input'!D4448,\"\"))","v":""},{"$f":"IF('TSA Input'!J4448=\"\",\"\",IF(OR('TSA Input'!J4448=\"Yes\",'TSA Input'!J4448=\"Contingent\"),'TSA Input'!G4448,\"\"))","v":""},{"$f":"IF('TSA Input'!J4448=\"\",\"\",IF(OR('TSA Input'!J4448=\"Yes\",'TSA Input'!J4448=\"Contingent\"),'TSA Input'!F4448,\"\"))","v":""},"","Required","Required"]
["",null,{"$f":"IF('TSA Input'!J4449=\"\",\"\",IF(OR('TSA Input'!J4449=\"Yes\",'TSA Input'!J4449=\"Contingent\"),'TSA Input'!B4449,\"Ineligible\"))","v":""},{"$f":"IF('TSA Input'!J4449=\"\",\"\",IF(OR('TSA Input'!J4449=\"Yes\",'TSA Input'!J4449=\"Contingent\"),'TSA Input'!I4449,\"\"))","v":""},{"$f":"IF('TSA Input'!J4449=\"\",\"\",IF(OR('TSA Input'!J4449=\"Yes\",'TSA Input'!J4449=\"Contingent\"),'TSA Input'!C4449,\"\"))","v":""},{"$f":"IF('TSA Input'!J4449=\"\",\"\",IF(OR('TSA Input'!J4449=\"Yes\",'TSA Input'!J4449=\"Contingent\"),'TSA Input'!D4449,\"\"))","v":""},{"$f":"IF('TSA Input'!J4449=\"\",\"\",IF(OR('TSA Input'!J4449=\"Yes\",'TSA Input'!J4449=\"Contingent\"),'TSA Input'!G4449,\"\"))","v":""},{"$f":"IF('TSA Input'!J4449=\"\",\"\",IF(OR('TSA Input'!J4449=\"Yes\",'TSA Input'!J4449=\"Contingent\"),'TSA Input'!F4449,\"\"))","v":""},"",{"$f":"IF('TSA Input'!J4449=\"\",\"\",IF(OR('TSA Input'!J4449=\"Yes\",'TSA Input'!J4449=\"Contingent\"),'TSA Input'!D4449,\"\"))","v":""},{"$f":"IF('TSA Input'!J4449=\"\",\"\",IF(OR('TSA Input'!J4449=\"Yes\",'TSA Input'!J4449=\"Contingent\"),'TSA Input'!G4449,\"\"))","v":""},{"$f":"IF('TSA Input'!J4449=\"\",\"\",IF(OR('TSA Input'!J4449=\"Yes\",'TSA Input'!J4449=\"Contingent\"),'TSA Input'!F4449,\"\"))","v":""},"","Required","Required"]
["",null,{"$f":"IF('TSA Input'!J4450=\"\",\"\",IF(OR('TSA Input'!J4450=\"Yes\",'TSA Input'!J4450=\"Contingent\"),'TSA Input'!B4450,\"Ineligible\"))","v":""},{"$f":"IF('TSA Input'!J4450=\"\",\"\",IF(OR('TSA Input'!J4450=\"Yes\",'TSA Input'!J4450=\"Contingent\"),'TSA Input'!I4450,\"\"))","v":""},{"$f":"IF('TSA Input'!J4450=\"\",\"\",IF(OR('TSA Input'!J4450=\"Yes\",'TSA Input'!J4450=\"Contingent\"),'TSA Input'!C4450,\"\"))","v":""},{"$f":"IF('TSA Input'!J4450=\"\",\"\",IF(OR('TSA Input'!J4450=\"Yes\",'TSA Input'!J4450=\"Contingent\"),'TSA Input'!D4450,\"\"))","v":""},{"$f":"IF('TSA Input'!J4450=\"\",\"\",IF(OR('TSA Input'!J4450=\"Yes\",'TSA Input'!J4450=\"Contingent\"),'TSA Input'!G4450,\"\"))","v":""},{"$f":"IF('TSA Input'!J4450=\"\",\"\",IF(OR('TSA Input'!J4450=\"Yes\",'TSA Input'!J4450=\"Contingent\"),'TSA Input'!F4450,\"\"))","v":""},"",{"$f":"IF('TSA Input'!J4450=\"\",\"\",IF(OR('TSA Input'!J4450=\"Yes\",'TSA Input'!J4450=\"Contingent\"),'TSA Input'!D4450,\"\"))","v":""},{"$f":"IF('TSA Input'!J4450=\"\",\"\",IF(OR('TSA Input'!J4450=\"Yes\",'TSA Input'!J4450=\"Contingent\"),'TSA Input'!G4450,\"\"))","v":""},{"$f":"IF('TSA Input'!J4450=\"\",\"\",IF(OR('TSA Input'!J4450=\"Yes\",'TSA Input'!J4450=\"Contingent\"),'TSA Input'!F4450,\"\"))","v":""},"","Required","Required"]
["",null,{"$f":"IF('TSA Input'!J4451=\"\",\"\",IF(OR('TSA Input'!J4451=\"Yes\",'TSA Input'!J4451=\"Contingent\"),'TSA Input'!B4451,\"Ineligible\"))","v":""},{"$f":"IF('TSA Input'!J4451=\"\",\"\",IF(OR('TSA Input'!J4451=\"Yes\",'TSA Input'!J4451=\"Contingent\"),'TSA Input'!I4451,\"\"))","v":""},{"$f":"IF('TSA Input'!J4451=\"\",\"\",IF(OR('TSA Input'!J4451=\"Yes\",'TSA Input'!J4451=\"Contingent\"),'TSA Input'!C4451,\"\"))","v":""},{"$f":"IF('TSA Input'!J4451=\"\",\"\",IF(OR('TSA Input'!J4451=\"Yes\",'TSA Input'!J4451=\"Contingent\"),'TSA Input'!D4451,\"\"))","v":""},{"$f":"IF('TSA Input'!J4451=\"\",\"\",IF(OR('TSA Input'!J4451=\"Yes\",'TSA Input'!J4451=\"Contingent\"),'TSA Input'!G4451,\"\"))","v":""},{"$f":"IF('TSA Input'!J4451=\"\",\"\",IF(OR('TSA Input'!J4451=\"Yes\",'TSA Input'!J4451=\"Contingent\"),'TSA Input'!F4451,\"\"))","v":""},"",{"$f":"IF('TSA Input'!J4451=\"\",\"\",IF(OR('TSA Input'!J4451=\"Yes\",'TSA Input'!J4451=\"Contingent\"),'TSA Input'!D4451,\"\"))","v":""},{"$f":"IF('TSA Input'!J4451=\"\",\"\",IF(OR('TSA Input'!J4451=\"Yes\",'TSA Input'!J4451=\"Contingent\"),'TSA Input'!G4451,\"\"))","v":""},{"$f":"IF('TSA Input'!J4451=\"\",\"\",IF(OR('TSA Input'!J4451=\"Yes\",'TSA Input'!J4451=\"Contingent\"),'TSA Input'!F4451,\"\"))","v":""},"","Required","Required"]
["",null,{"$f":"IF('TSA Input'!J4452=\"\",\"\",IF(OR('TSA Input'!J4452=\"Yes\",'TSA Input'!J4452=\"Contingent\"),'TSA Input'!B4452,\"Ineligible\"))","v":""},{"$f":"IF('TSA Input'!J4452=\"\",\"\",IF(OR('TSA Input'!J4452=\"Yes\",'TSA Input'!J4452=\"Contingent\"),'TSA Input'!I4452,\"\"))","v":""},{"$f":"IF('TSA Input'!J4452=\"\",\"\",IF(OR('TSA Input'!J4452=\"Yes\",'TSA Input'!J4452=\"Contingent\"),'TSA Input'!C4452,\"\"))","v":""},{"$f":"IF('TSA Input'!J4452=\"\",\"\",IF(OR('TSA Input'!J4452=\"Yes\",'TSA Input'!J4452=\"Contingent\"),'TSA Input'!D4452,\"\"))","v":""},{"$f":"IF('TSA Input'!J4452=\"\",\"\",IF(OR('TSA Input'!J4452=\"Yes\",'TSA Input'!J4452=\"Contingent\"),'TSA Input'!G4452,\"\"))","v":""},{"$f":"IF('TSA Input'!J4452=\"\",\"\",IF(OR('TSA Input'!J4452=\"Yes\",'TSA Input'!J4452=\"Contingent\"),'TSA Input'!F4452,\"\"))","v":""},"",{"$f":"IF('TSA Input'!J4452=\"\",\"\",IF(OR('TSA Input'!J4452=\"Yes\",'TSA Input'!J4452=\"Contingent\"),'TSA Input'!D4452,\"\"))","v":""},{"$f":"IF('TSA Input'!J4452=\"\",\"\",IF(OR('TSA Input'!J4452=\"Yes\",'TSA Input'!J4452=\"Contingent\"),'TSA Input'!G4452,\"\"))","v":""},{"$f":"IF('TSA Input'!J4452=\"\",\"\",IF(OR('TSA Input'!J4452=\"Yes\",'TSA Input'!J4452=\"Contingent\"),'TSA Input'!F4452,\"\"))","v":""},"","Required","Required"]
["",null,{"$f":"IF('TSA Input'!J4453=\"\",\"\",IF(OR('TSA Input'!J4453=\"Yes\",'TSA Input'!J4453=\"Contingent\"),'TSA Input'!B4453,\"Ineligible\"))","v":""},{"$f":"IF('TSA Input'!J4453=\"\",\"\",IF(OR('TSA Input'!J4453=\"Yes\",'TSA Input'!J4453=\"Contingent\"),'TSA Input'!I4453,\"\"))","v":""},{"$f":"IF('TSA Input'!J4453=\"\",\"\",IF(OR('TSA Input'!J4453=\"Yes\",'TSA Input'!J4453=\"Contingent\"),'TSA Input'!C4453,\"\"))","v":""},{"$f":"IF('TSA Input'!J4453=\"\",\"\",IF(OR('TSA Input'!J4453=\"Yes\",'TSA Input'!J4453=\"Contingent\"),'TSA Input'!D4453,\"\"))","v":""},{"$f":"IF('TSA Input'!J4453=\"\",\"\",IF(OR('TSA Input'!J4453=\"Yes\",'TSA Input'!J4453=\"Contingent\"),'TSA Input'!G4453,\"\"))","v":""},{"$f":"IF('TSA Input'!J4453=\"\",\"\",IF(OR('TSA Input'!J4453=\"Yes\",'TSA Input'!J4453=\"Contingent\"),'TSA Input'!F4453,\"\"))","v":""},"",{"$f":"IF('TSA Input'!J4453=\"\",\"\",IF(OR('TSA Input'!J4453=\"Yes\",'TSA Input'!J4453=\"Contingent\"),'TSA Input'!D4453,\"\"))","v":""},{"$f":"IF('TSA Input'!J4453=\"\",\"\",IF(OR('TSA Input'!J4453=\"Yes\",'TSA Input'!J4453=\"Contingent\"),'TSA Input'!G4453,\"\"))","v":""},{"$f":"IF('TSA Input'!J4453=\"\",\"\",IF(OR('TSA Input'!J4453=\"Yes\",'TSA Input'!J4453=\"Contingent\"),'TSA Input'!F4453,\"\"))","v":""},"","Required","Required"]
["",null,{"$f":"IF('TSA Input'!J4454=\"\",\"\",IF(OR('TSA Input'!J4454=\"Yes\",'TSA Input'!J4454=\"Contingent\"),'TSA Input'!B4454,\"Ineligible\"))","v":""},{"$f":"IF('TSA Input'!J4454=\"\",\"\",IF(OR('TSA Input'!J4454=\"Yes\",'TSA Input'!J4454=\"Contingent\"),'TSA Input'!I4454,\"\"))","v":""},{"$f":"IF('TSA Input'!J4454=\"\",\"\",IF(OR('TSA Input'!J4454=\"Yes\",'TSA Input'!J4454=\"Contingent\"),'TSA Input'!C4454,\"\"))","v":""},{"$f":"IF('TSA Input'!J4454=\"\",\"\",IF(OR('TSA Input'!J4454=\"Yes\",'TSA Input'!J4454=\"Contingent\"),'TSA Input'!D4454,\"\"))","v":""},{"$f":"IF('TSA Input'!J4454=\"\",\"\",IF(OR('TSA Input'!J4454=\"Yes\",'TSA Input'!J4454=\"Contingent\"),'TSA Input'!G4454,\"\"))","v":""},{"$f":"IF('TSA Input'!J4454=\"\",\"\",IF(OR('TSA Input'!J4454=\"Yes\",'TSA Input'!J4454=\"Contingent\"),'TSA Input'!F4454,\"\"))","v":""},"",{"$f":"IF('TSA Input'!J4454=\"\",\"\",IF(OR('TSA Input'!J4454=\"Yes\",'TSA Input'!J4454=\"Contingent\"),'TSA Input'!D4454,\"\"))","v":""},{"$f":"IF('TSA Input'!J4454=\"\",\"\",IF(OR('TSA Input'!J4454=\"Yes\",'TSA Input'!J4454=\"Contingent\"),'TSA Input'!G4454,\"\"))","v":""},{"$f":"IF('TSA Input'!J4454=\"\",\"\",IF(OR('TSA Input'!J4454=\"Yes\",'TSA Input'!J4454=\"Contingent\"),'TSA Input'!F4454,\"\"))","v":""},"","Required","Required"]
["",null,{"$f":"IF('TSA Input'!J4455=\"\",\"\",IF(OR('TSA Input'!J4455=\"Yes\",'TSA Input'!J4455=\"Contingent\"),'TSA Input'!B4455,\"Ineligible\"))","v":""},{"$f":"IF('TSA Input'!J4455=\"\",\"\",IF(OR('TSA Input'!J4455=\"Yes\",'TSA Input'!J4455=\"Contingent\"),'TSA Input'!I4455,\"\"))","v":""},{"$f":"IF('TSA Input'!J4455=\"\",\"\",IF(OR('TSA Input'!J4455=\"Yes\",'TSA Input'!J4455=\"Contingent\"),'TSA Input'!C4455,\"\"))","v":""},{"$f":"IF('TSA Input'!J4455=\"\",\"\",IF(OR('TSA Input'!J4455=\"Yes\",'TSA Input'!J4455=\"Contingent\"),'TSA Input'!D4455,\"\"))","v":""},{"$f":"IF('TSA Input'!J4455=\"\",\"\",IF(OR('TSA Input'!J4455=\"Yes\",'TSA Input'!J4455=\"Contingent\"),'TSA Input'!G4455,\"\"))","v":""},{"$f":"IF('TSA Input'!J4455=\"\",\"\",IF(OR('TSA Input'!J4455=\"Yes\",'TSA Input'!J4455=\"Contingent\"),'TSA Input'!F4455,\"\"))","v":""},"",{"$f":"IF('TSA Input'!J4455=\"\",\"\",IF(OR('TSA Input'!J4455=\"Yes\",'TSA Input'!J4455=\"Contingent\"),'TSA Input'!D4455,\"\"))","v":""},{"$f":"IF('TSA Input'!J4455=\"\",\"\",IF(OR('TSA Input'!J4455=\"Yes\",'TSA Input'!J4455=\"Contingent\"),'TSA Input'!G4455,\"\"))","v":""},{"$f":"IF('TSA Input'!J4455=\"\",\"\",IF(OR('TSA Input'!J4455=\"Yes\",'TSA Input'!J4455=\"Contingent\"),'TSA Input'!F4455,\"\"))","v":""},"","Required","Required"]
["",null,{"$f":"IF('TSA Input'!J4456=\"\",\"\",IF(OR('TSA Input'!J4456=\"Yes\",'TSA Input'!J4456=\"Contingent\"),'TSA Input'!B4456,\"Ineligible\"))","v":""},{"$f":"IF('TSA Input'!J4456=\"\",\"\",IF(OR('TSA Input'!J4456=\"Yes\",'TSA Input'!J4456=\"Contingent\"),'TSA Input'!I4456,\"\"))","v":""},{"$f":"IF('TSA Input'!J4456=\"\",\"\",IF(OR('TSA Input'!J4456=\"Yes\",'TSA Input'!J4456=\"Contingent\"),'TSA Input'!C4456,\"\"))","v":""},{"$f":"IF('TSA Input'!J4456=\"\",\"\",IF(OR('TSA Input'!J4456=\"Yes\",'TSA Input'!J4456=\"Contingent\"),'TSA Input'!D4456,\"\"))","v":""},{"$f":"IF('TSA Input'!J4456=\"\",\"\",IF(OR('TSA Input'!J4456=\"Yes\",'TSA Input'!J4456=\"Contingent\"),'TSA Input'!G4456,\"\"))","v":""},{"$f":"IF('TSA Input'!J4456=\"\",\"\",IF(OR('TSA Input'!J4456=\"Yes\",'TSA Input'!J4456=\"Contingent\"),'TSA Input'!F4456,\"\"))","v":""},"",{"$f":"IF('TSA Input'!J4456=\"\",\"\",IF(OR('TSA Input'!J4456=\"Yes\",'TSA Input'!J4456=\"Contingent\"),'TSA Input'!D4456,\"\"))","v":""},{"$f":"IF('TSA Input'!J4456=\"\",\"\",IF(OR('TSA Input'!J4456=\"Yes\",'TSA Input'!J4456=\"Contingent\"),'TSA Input'!G4456,\"\"))","v":""},{"$f":"IF('TSA Input'!J4456=\"\",\"\",IF(OR('TSA Input'!J4456=\"Yes\",'TSA Input'!J4456=\"Contingent\"),'TSA Input'!F4456,\"\"))","v":""},"","Required","Required"]
["",null,{"$f":"IF('TSA Input'!J4457=\"\",\"\",IF(OR('TSA Input'!J4457=\"Yes\",'TSA Input'!J4457=\"Contingent\"),'TSA Input'!B4457,\"Ineligible\"))","v":""},{"$f":"IF('TSA Input'!J4457=\"\",\"\",IF(OR('TSA Input'!J4457=\"Yes\",'TSA Input'!J4457=\"Contingent\"),'TSA Input'!I4457,\"\"))","v":""},{"$f":"IF('TSA Input'!J4457=\"\",\"\",IF(OR('TSA Input'!J4457=\"Yes\",'TSA Input'!J4457=\"Contingent\"),'TSA Input'!C4457,\"\"))","v":""},{"$f":"IF('TSA Input'!J4457=\"\",\"\",IF(OR('TSA Input'!J4457=\"Yes\",'TSA Input'!J4457=\"Contingent\"),'TSA Input'!D4457,\"\"))","v":""},{"$f":"IF('TSA Input'!J4457=\"\",\"\",IF(OR('TSA Input'!J4457=\"Yes\",'TSA Input'!J4457=\"Contingent\"),'TSA Input'!G4457,\"\"))","v":""},{"$f":"IF('TSA Input'!J4457=\"\",\"\",IF(OR('TSA Input'!J4457=\"Yes\",'TSA Input'!J4457=\"Contingent\"),'TSA Input'!F4457,\"\"))","v":""},"",{"$f":"IF('TSA Input'!J4457=\"\",\"\",IF(OR('TSA Input'!J4457=\"Yes\",'TSA Input'!J4457=\"Contingent\"),'TSA Input'!D4457,\"\"))","v":""},{"$f":"IF('TSA Input'!J4457=\"\",\"\",IF(OR('TSA Input'!J4457=\"Yes\",'TSA Input'!J4457=\"Contingent\"),'TSA Input'!G4457,\"\"))","v":""},{"$f":"IF('TSA Input'!J4457=\"\",\"\",IF(OR('TSA Input'!J4457=\"Yes\",'TSA Input'!J4457=\"Contingent\"),'TSA Input'!F4457,\"\"))","v":""},"","Required","Required"]
["",null,{"$f":"IF('TSA Input'!J4458=\"\",\"\",IF(OR('TSA Input'!J4458=\"Yes\",'TSA Input'!J4458=\"Contingent\"),'TSA Input'!B4458,\"Ineligible\"))","v":""},{"$f":"IF('TSA Input'!J4458=\"\",\"\",IF(OR('TSA Input'!J4458=\"Yes\",'TSA Input'!J4458=\"Contingent\"),'TSA Input'!I4458,\"\"))","v":""},{"$f":"IF('TSA Input'!J4458=\"\",\"\",IF(OR('TSA Input'!J4458=\"Yes\",'TSA Input'!J4458=\"Contingent\"),'TSA Input'!C4458,\"\"))","v":""},{"$f":"IF('TSA Input'!J4458=\"\",\"\",IF(OR('TSA Input'!J4458=\"Yes\",'TSA Input'!J4458=\"Contingent\"),'TSA Input'!D4458,\"\"))","v":""},{"$f":"IF('TSA Input'!J4458=\"\",\"\",IF(OR('TSA Input'!J4458=\"Yes\",'TSA Input'!J4458=\"Contingent\"),'TSA Input'!G4458,\"\"))","v":""},{"$f":"IF('TSA Input'!J4458=\"\",\"\",IF(OR('TSA Input'!J4458=\"Yes\",'TSA Input'!J4458=\"Contingent\"),'TSA Input'!F4458,\"\"))","v":""},"",{"$f":"IF('TSA Input'!J4458=\"\",\"\",IF(OR('TSA Input'!J4458=\"Yes\",'TSA Input'!J4458=\"Contingent\"),'TSA Input'!D4458,\"\"))","v":""},{"$f":"IF('TSA Input'!J4458=\"\",\"\",IF(OR('TSA Input'!J4458=\"Yes\",'TSA Input'!J4458=\"Contingent\"),'TSA Input'!G4458,\"\"))","v":""},{"$f":"IF('TSA Input'!J4458=\"\",\"\",IF(OR('TSA Input'!J4458=\"Yes\",'TSA Input'!J4458=\"Contingent\"),'TSA Input'!F4458,\"\"))","v":""},"","Required","Required"]
["",null,{"$f":"IF('TSA Input'!J4459=\"\",\"\",IF(OR('TSA Input'!J4459=\"Yes\",'TSA Input'!J4459=\"Contingent\"),'TSA Input'!B4459,\"Ineligible\"))","v":""},{"$f":"IF('TSA Input'!J4459=\"\",\"\",IF(OR('TSA Input'!J4459=\"Yes\",'TSA Input'!J4459=\"Contingent\"),'TSA Input'!I4459,\"\"))","v":""},{"$f":"IF('TSA Input'!J4459=\"\",\"\",IF(OR('TSA Input'!J4459=\"Yes\",'TSA Input'!J4459=\"Contingent\"),'TSA Input'!C4459,\"\"))","v":""},{"$f":"IF('TSA Input'!J4459=\"\",\"\",IF(OR('TSA Input'!J4459=\"Yes\",'TSA Input'!J4459=\"Contingent\"),'TSA Input'!D4459,\"\"))","v":""},{"$f":"IF('TSA Input'!J4459=\"\",\"\",IF(OR('TSA Input'!J4459=\"Yes\",'TSA Input'!J4459=\"Contingent\"),'TSA Input'!G4459,\"\"))","v":""},{"$f":"IF('TSA Input'!J4459=\"\",\"\",IF(OR('TSA Input'!J4459=\"Yes\",'TSA Input'!J4459=\"Contingent\"),'TSA Input'!F4459,\"\"))","v":""},"",{"$f":"IF('TSA Input'!J4459=\"\",\"\",IF(OR('TSA Input'!J4459=\"Yes\",'TSA Input'!J4459=\"Contingent\"),'TSA Input'!D4459,\"\"))","v":""},{"$f":"IF('TSA Input'!J4459=\"\",\"\",IF(OR('TSA Input'!J4459=\"Yes\",'TSA Input'!J4459=\"Contingent\"),'TSA Input'!G4459,\"\"))","v":""},{"$f":"IF('TSA Input'!J4459=\"\",\"\",IF(OR('TSA Input'!J4459=\"Yes\",'TSA Input'!J4459=\"Contingent\"),'TSA Input'!F4459,\"\"))","v":""},"","Required","Required"]
["",null,{"$f":"IF('TSA Input'!J4460=\"\",\"\",IF(OR('TSA Input'!J4460=\"Yes\",'TSA Input'!J4460=\"Contingent\"),'TSA Input'!B4460,\"Ineligible\"))","v":""},{"$f":"IF('TSA Input'!J4460=\"\",\"\",IF(OR('TSA Input'!J4460=\"Yes\",'TSA Input'!J4460=\"Contingent\"),'TSA Input'!I4460,\"\"))","v":""},{"$f":"IF('TSA Input'!J4460=\"\",\"\",IF(OR('TSA Input'!J4460=\"Yes\",'TSA Input'!J4460=\"Contingent\"),'TSA Input'!C4460,\"\"))","v":""},{"$f":"IF('TSA Input'!J4460=\"\",\"\",IF(OR('TSA Input'!J4460=\"Yes\",'TSA Input'!J4460=\"Contingent\"),'TSA Input'!D4460,\"\"))","v":""},{"$f":"IF('TSA Input'!J4460=\"\",\"\",IF(OR('TSA Input'!J4460=\"Yes\",'TSA Input'!J4460=\"Contingent\"),'TSA Input'!G4460,\"\"))","v":""},{"$f":"IF('TSA Input'!J4460=\"\",\"\",IF(OR('TSA Input'!J4460=\"Yes\",'TSA Input'!J4460=\"Contingent\"),'TSA Input'!F4460,\"\"))","v":""},"",{"$f":"IF('TSA Input'!J4460=\"\",\"\",IF(OR('TSA Input'!J4460=\"Yes\",'TSA Input'!J4460=\"Contingent\"),'TSA Input'!D4460,\"\"))","v":""},{"$f":"IF('TSA Input'!J4460=\"\",\"\",IF(OR('TSA Input'!J4460=\"Yes\",'TSA Input'!J4460=\"Contingent\"),'TSA Input'!G4460,\"\"))","v":""},{"$f":"IF('TSA Input'!J4460=\"\",\"\",IF(OR('TSA Input'!J4460=\"Yes\",'TSA Input'!J4460=\"Contingent\"),'TSA Input'!F4460,\"\"))","v":""},"","Required","Required"]
["",null,{"$f":"IF('TSA Input'!J4461=\"\",\"\",IF(OR('TSA Input'!J4461=\"Yes\",'TSA Input'!J4461=\"Contingent\"),'TSA Input'!B4461,\"Ineligible\"))","v":""},{"$f":"IF('TSA Input'!J4461=\"\",\"\",IF(OR('TSA Input'!J4461=\"Yes\",'TSA Input'!J4461=\"Contingent\"),'TSA Input'!I4461,\"\"))","v":""},{"$f":"IF('TSA Input'!J4461=\"\",\"\",IF(OR('TSA Input'!J4461=\"Yes\",'TSA Input'!J4461=\"Contingent\"),'TSA Input'!C4461,\"\"))","v":""},{"$f":"IF('TSA Input'!J4461=\"\",\"\",IF(OR('TSA Input'!J4461=\"Yes\",'TSA Input'!J4461=\"Contingent\"),'TSA Input'!D4461,\"\"))","v":""},{"$f":"IF('TSA Input'!J4461=\"\",\"\",IF(OR('TSA Input'!J4461=\"Yes\",'TSA Input'!J4461=\"Contingent\"),'TSA Input'!G4461,\"\"))","v":""},{"$f":"IF('TSA Input'!J4461=\"\",\"\",IF(OR('TSA Input'!J4461=\"Yes\",'TSA Input'!J4461=\"Contingent\"),'TSA Input'!F4461,\"\"))","v":""},"",{"$f":"IF('TSA Input'!J4461=\"\",\"\",IF(OR('TSA Input'!J4461=\"Yes\",'TSA Input'!J4461=\"Contingent\"),'TSA Input'!D4461,\"\"))","v":""},{"$f":"IF('TSA Input'!J4461=\"\",\"\",IF(OR('TSA Input'!J4461=\"Yes\",'TSA Input'!J4461=\"Contingent\"),'TSA Input'!G4461,\"\"))","v":""},{"$f":"IF('TSA Input'!J4461=\"\",\"\",IF(OR('TSA Input'!J4461=\"Yes\",'TSA Input'!J4461=\"Contingent\"),'TSA Input'!F4461,\"\"))","v":""},"","Required","Required"]
["",null,{"$f":"IF('TSA Input'!J4462=\"\",\"\",IF(OR('TSA Input'!J4462=\"Yes\",'TSA Input'!J4462=\"Contingent\"),'TSA Input'!B4462,\"Ineligible\"))","v":""},{"$f":"IF('TSA Input'!J4462=\"\",\"\",IF(OR('TSA Input'!J4462=\"Yes\",'TSA Input'!J4462=\"Contingent\"),'TSA Input'!I4462,\"\"))","v":""},{"$f":"IF('TSA Input'!J4462=\"\",\"\",IF(OR('TSA Input'!J4462=\"Yes\",'TSA Input'!J4462=\"Contingent\"),'TSA Input'!C4462,\"\"))","v":""},{"$f":"IF('TSA Input'!J4462=\"\",\"\",IF(OR('TSA Input'!J4462=\"Yes\",'TSA Input'!J4462=\"Contingent\"),'TSA Input'!D4462,\"\"))","v":""},{"$f":"IF('TSA Input'!J4462=\"\",\"\",IF(OR('TSA Input'!J4462=\"Yes\",'TSA Input'!J4462=\"Contingent\"),'TSA Input'!G4462,\"\"))","v":""},{"$f":"IF('TSA Input'!J4462=\"\",\"\",IF(OR('TSA Input'!J4462=\"Yes\",'TSA Input'!J4462=\"Contingent\"),'TSA Input'!F4462,\"\"))","v":""},"",{"$f":"IF('TSA Input'!J4462=\"\",\"\",IF(OR('TSA Input'!J4462=\"Yes\",'TSA Input'!J4462=\"Contingent\"),'TSA Input'!D4462,\"\"))","v":""},{"$f":"IF('TSA Input'!J4462=\"\",\"\",IF(OR('TSA Input'!J4462=\"Yes\",'TSA Input'!J4462=\"Contingent\"),'TSA Input'!G4462,\"\"))","v":""},{"$f":"IF('TSA Input'!J4462=\"\",\"\",IF(OR('TSA Input'!J4462=\"Yes\",'TSA Input'!J4462=\"Contingent\"),'TSA Input'!F4462,\"\"))","v":""},"","Required","Required"]
["",null,{"$f":"IF('TSA Input'!J4463=\"\",\"\",IF(OR('TSA Input'!J4463=\"Yes\",'TSA Input'!J4463=\"Contingent\"),'TSA Input'!B4463,\"Ineligible\"))","v":""},{"$f":"IF('TSA Input'!J4463=\"\",\"\",IF(OR('TSA Input'!J4463=\"Yes\",'TSA Input'!J4463=\"Contingent\"),'TSA Input'!I4463,\"\"))","v":""},{"$f":"IF('TSA Input'!J4463=\"\",\"\",IF(OR('TSA Input'!J4463=\"Yes\",'TSA Input'!J4463=\"Contingent\"),'TSA Input'!C4463,\"\"))","v":""},{"$f":"IF('TSA Input'!J4463=\"\",\"\",IF(OR('TSA Input'!J4463=\"Yes\",'TSA Input'!J4463=\"Contingent\"),'TSA Input'!D4463,\"\"))","v":""},{"$f":"IF('TSA Input'!J4463=\"\",\"\",IF(OR('TSA Input'!J4463=\"Yes\",'TSA Input'!J4463=\"Contingent\"),'TSA Input'!G4463,\"\"))","v":""},{"$f":"IF('TSA Input'!J4463=\"\",\"\",IF(OR('TSA Input'!J4463=\"Yes\",'TSA Input'!J4463=\"Contingent\"),'TSA Input'!F4463,\"\"))","v":""},"",{"$f":"IF('TSA Input'!J4463=\"\",\"\",IF(OR('TSA Input'!J4463=\"Yes\",'TSA Input'!J4463=\"Contingent\"),'TSA Input'!D4463,\"\"))","v":""},{"$f":"IF('TSA Input'!J4463=\"\",\"\",IF(OR('TSA Input'!J4463=\"Yes\",'TSA Input'!J4463=\"Contingent\"),'TSA Input'!G4463,\"\"))","v":""},{"$f":"IF('TSA Input'!J4463=\"\",\"\",IF(OR('TSA Input'!J4463=\"Yes\",'TSA Input'!J4463=\"Contingent\"),'TSA Input'!F4463,\"\"))","v":""},"","Required","Required"]
["",null,{"$f":"IF('TSA Input'!J4464=\"\",\"\",IF(OR('TSA Input'!J4464=\"Yes\",'TSA Input'!J4464=\"Contingent\"),'TSA Input'!B4464,\"Ineligible\"))","v":""},{"$f":"IF('TSA Input'!J4464=\"\",\"\",IF(OR('TSA Input'!J4464=\"Yes\",'TSA Input'!J4464=\"Contingent\"),'TSA Input'!I4464,\"\"))","v":""},{"$f":"IF('TSA Input'!J4464=\"\",\"\",IF(OR('TSA Input'!J4464=\"Yes\",'TSA Input'!J4464=\"Contingent\"),'TSA Input'!C4464,\"\"))","v":""},{"$f":"IF('TSA Input'!J4464=\"\",\"\",IF(OR('TSA Input'!J4464=\"Yes\",'TSA Input'!J4464=\"Contingent\"),'TSA Input'!D4464,\"\"))","v":""},{"$f":"IF('TSA Input'!J4464=\"\",\"\",IF(OR('TSA Input'!J4464=\"Yes\",'TSA Input'!J4464=\"Contingent\"),'TSA Input'!G4464,\"\"))","v":""},{"$f":"IF('TSA Input'!J4464=\"\",\"\",IF(OR('TSA Input'!J4464=\"Yes\",'TSA Input'!J4464=\"Contingent\"),'TSA Input'!F4464,\"\"))","v":""},"",{"$f":"IF('TSA Input'!J4464=\"\",\"\",IF(OR('TSA Input'!J4464=\"Yes\",'TSA Input'!J4464=\"Contingent\"),'TSA Input'!D4464,\"\"))","v":""},{"$f":"IF('TSA Input'!J4464=\"\",\"\",IF(OR('TSA Input'!J4464=\"Yes\",'TSA Input'!J4464=\"Contingent\"),'TSA Input'!G4464,\"\"))","v":""},{"$f":"IF('TSA Input'!J4464=\"\",\"\",IF(OR('TSA Input'!J4464=\"Yes\",'TSA Input'!J4464=\"Contingent\"),'TSA Input'!F4464,\"\"))","v":""},"","Required","Required"]
["",null,{"$f":"IF('TSA Input'!J4465=\"\",\"\",IF(OR('TSA Input'!J4465=\"Yes\",'TSA Input'!J4465=\"Contingent\"),'TSA Input'!B4465,\"Ineligible\"))","v":""},{"$f":"IF('TSA Input'!J4465=\"\",\"\",IF(OR('TSA Input'!J4465=\"Yes\",'TSA Input'!J4465=\"Contingent\"),'TSA Input'!I4465,\"\"))","v":""},{"$f":"IF('TSA Input'!J4465=\"\",\"\",IF(OR('TSA Input'!J4465=\"Yes\",'TSA Input'!J4465=\"Contingent\"),'TSA Input'!C4465,\"\"))","v":""},{"$f":"IF('TSA Input'!J4465=\"\",\"\",IF(OR('TSA Input'!J4465=\"Yes\",'TSA Input'!J4465=\"Contingent\"),'TSA Input'!D4465,\"\"))","v":""},{"$f":"IF('TSA Input'!J4465=\"\",\"\",IF(OR('TSA Input'!J4465=\"Yes\",'TSA Input'!J4465=\"Contingent\"),'TSA Input'!G4465,\"\"))","v":""},{"$f":"IF('TSA Input'!J4465=\"\",\"\",IF(OR('TSA Input'!J4465=\"Yes\",'TSA Input'!J4465=\"Contingent\"),'TSA Input'!F4465,\"\"))","v":""},"",{"$f":"IF('TSA Input'!J4465=\"\",\"\",IF(OR('TSA Input'!J4465=\"Yes\",'TSA Input'!J4465=\"Contingent\"),'TSA Input'!D4465,\"\"))","v":""},{"$f":"IF('TSA Input'!J4465=\"\",\"\",IF(OR('TSA Input'!J4465=\"Yes\",'TSA Input'!J4465=\"Contingent\"),'TSA Input'!G4465,\"\"))","v":""},{"$f":"IF('TSA Input'!J4465=\"\",\"\",IF(OR('TSA Input'!J4465=\"Yes\",'TSA Input'!J4465=\"Contingent\"),'TSA Input'!F4465,\"\"))","v":""},"","Required","Required"]
["",null,{"$f":"IF('TSA Input'!J4466=\"\",\"\",IF(OR('TSA Input'!J4466=\"Yes\",'TSA Input'!J4466=\"Contingent\"),'TSA Input'!B4466,\"Ineligible\"))","v":""},{"$f":"IF('TSA Input'!J4466=\"\",\"\",IF(OR('TSA Input'!J4466=\"Yes\",'TSA Input'!J4466=\"Contingent\"),'TSA Input'!I4466,\"\"))","v":""},{"$f":"IF('TSA Input'!J4466=\"\",\"\",IF(OR('TSA Input'!J4466=\"Yes\",'TSA Input'!J4466=\"Contingent\"),'TSA Input'!C4466,\"\"))","v":""},{"$f":"IF('TSA Input'!J4466=\"\",\"\",IF(OR('TSA Input'!J4466=\"Yes\",'TSA Input'!J4466=\"Contingent\"),'TSA Input'!D4466,\"\"))","v":""},{"$f":"IF('TSA Input'!J4466=\"\",\"\",IF(OR('TSA Input'!J4466=\"Yes\",'TSA Input'!J4466=\"Contingent\"),'TSA Input'!G4466,\"\"))","v":""},{"$f":"IF('TSA Input'!J4466=\"\",\"\",IF(OR('TSA Input'!J4466=\"Yes\",'TSA Input'!J4466=\"Contingent\"),'TSA Input'!F4466,\"\"))","v":""},"",{"$f":"IF('TSA Input'!J4466=\"\",\"\",IF(OR('TSA Input'!J4466=\"Yes\",'TSA Input'!J4466=\"Contingent\"),'TSA Input'!D4466,\"\"))","v":""},{"$f":"IF('TSA Input'!J4466=\"\",\"\",IF(OR('TSA Input'!J4466=\"Yes\",'TSA Input'!J4466=\"Contingent\"),'TSA Input'!G4466,\"\"))","v":""},{"$f":"IF('TSA Input'!J4466=\"\",\"\",IF(OR('TSA Input'!J4466=\"Yes\",'TSA Input'!J4466=\"Contingent\"),'TSA Input'!F4466,\"\"))","v":""},"","Required","Required"]
["",null,{"$f":"IF('TSA Input'!J4467=\"\",\"\",IF(OR('TSA Input'!J4467=\"Yes\",'TSA Input'!J4467=\"Contingent\"),'TSA Input'!B4467,\"Ineligible\"))","v":""},{"$f":"IF('TSA Input'!J4467=\"\",\"\",IF(OR('TSA Input'!J4467=\"Yes\",'TSA Input'!J4467=\"Contingent\"),'TSA Input'!I4467,\"\"))","v":""},{"$f":"IF('TSA Input'!J4467=\"\",\"\",IF(OR('TSA Input'!J4467=\"Yes\",'TSA Input'!J4467=\"Contingent\"),'TSA Input'!C4467,\"\"))","v":""},{"$f":"IF('TSA Input'!J4467=\"\",\"\",IF(OR('TSA Input'!J4467=\"Yes\",'TSA Input'!J4467=\"Contingent\"),'TSA Input'!D4467,\"\"))","v":""},{"$f":"IF('TSA Input'!J4467=\"\",\"\",IF(OR('TSA Input'!J4467=\"Yes\",'TSA Input'!J4467=\"Contingent\"),'TSA Input'!G4467,\"\"))","v":""},{"$f":"IF('TSA Input'!J4467=\"\",\"\",IF(OR('TSA Input'!J4467=\"Yes\",'TSA Input'!J4467=\"Contingent\"),'TSA Input'!F4467,\"\"))","v":""},"",{"$f":"IF('TSA Input'!J4467=\"\",\"\",IF(OR('TSA Input'!J4467=\"Yes\",'TSA Input'!J4467=\"Contingent\"),'TSA Input'!D4467,\"\"))","v":""},{"$f":"IF('TSA Input'!J4467=\"\",\"\",IF(OR('TSA Input'!J4467=\"Yes\",'TSA Input'!J4467=\"Contingent\"),'TSA Input'!G4467,\"\"))","v":""},{"$f":"IF('TSA Input'!J4467=\"\",\"\",IF(OR('TSA Input'!J4467=\"Yes\",'TSA Input'!J4467=\"Contingent\"),'TSA Input'!F4467,\"\"))","v":""},"","Required","Required"]
["",null,{"$f":"IF('TSA Input'!J4468=\"\",\"\",IF(OR('TSA Input'!J4468=\"Yes\",'TSA Input'!J4468=\"Contingent\"),'TSA Input'!B4468,\"Ineligible\"))","v":""},{"$f":"IF('TSA Input'!J4468=\"\",\"\",IF(OR('TSA Input'!J4468=\"Yes\",'TSA Input'!J4468=\"Contingent\"),'TSA Input'!I4468,\"\"))","v":""},{"$f":"IF('TSA Input'!J4468=\"\",\"\",IF(OR('TSA Input'!J4468=\"Yes\",'TSA Input'!J4468=\"Contingent\"),'TSA Input'!C4468,\"\"))","v":""},{"$f":"IF('TSA Input'!J4468=\"\",\"\",IF(OR('TSA Input'!J4468=\"Yes\",'TSA Input'!J4468=\"Contingent\"),'TSA Input'!D4468,\"\"))","v":""},{"$f":"IF('TSA Input'!J4468=\"\",\"\",IF(OR('TSA Input'!J4468=\"Yes\",'TSA Input'!J4468=\"Contingent\"),'TSA Input'!G4468,\"\"))","v":""},{"$f":"IF('TSA Input'!J4468=\"\",\"\",IF(OR('TSA Input'!J4468=\"Yes\",'TSA Input'!J4468=\"Contingent\"),'TSA Input'!F4468,\"\"))","v":""},"",{"$f":"IF('TSA Input'!J4468=\"\",\"\",IF(OR('TSA Input'!J4468=\"Yes\",'TSA Input'!J4468=\"Contingent\"),'TSA Input'!D4468,\"\"))","v":""},{"$f":"IF('TSA Input'!J4468=\"\",\"\",IF(OR('TSA Input'!J4468=\"Yes\",'TSA Input'!J4468=\"Contingent\"),'TSA Input'!G4468,\"\"))","v":""},{"$f":"IF('TSA Input'!J4468=\"\",\"\",IF(OR('TSA Input'!J4468=\"Yes\",'TSA Input'!J4468=\"Contingent\"),'TSA Input'!F4468,\"\"))","v":""},"","Required","Required"]
["",null,{"$f":"IF('TSA Input'!J4469=\"\",\"\",IF(OR('TSA Input'!J4469=\"Yes\",'TSA Input'!J4469=\"Contingent\"),'TSA Input'!B4469,\"Ineligible\"))","v":""},{"$f":"IF('TSA Input'!J4469=\"\",\"\",IF(OR('TSA Input'!J4469=\"Yes\",'TSA Input'!J4469=\"Contingent\"),'TSA Input'!I4469,\"\"))","v":""},{"$f":"IF('TSA Input'!J4469=\"\",\"\",IF(OR('TSA Input'!J4469=\"Yes\",'TSA Input'!J4469=\"Contingent\"),'TSA Input'!C4469,\"\"))","v":""},{"$f":"IF('TSA Input'!J4469=\"\",\"\",IF(OR('TSA Input'!J4469=\"Yes\",'TSA Input'!J4469=\"Contingent\"),'TSA Input'!D4469,\"\"))","v":""},{"$f":"IF('TSA Input'!J4469=\"\",\"\",IF(OR('TSA Input'!J4469=\"Yes\",'TSA Input'!J4469=\"Contingent\"),'TSA Input'!G4469,\"\"))","v":""},{"$f":"IF('TSA Input'!J4469=\"\",\"\",IF(OR('TSA Input'!J4469=\"Yes\",'TSA Input'!J4469=\"Contingent\"),'TSA Input'!F4469,\"\"))","v":""},"",{"$f":"IF('TSA Input'!J4469=\"\",\"\",IF(OR('TSA Input'!J4469=\"Yes\",'TSA Input'!J4469=\"Contingent\"),'TSA Input'!D4469,\"\"))","v":""},{"$f":"IF('TSA Input'!J4469=\"\",\"\",IF(OR('TSA Input'!J4469=\"Yes\",'TSA Input'!J4469=\"Contingent\"),'TSA Input'!G4469,\"\"))","v":""},{"$f":"IF('TSA Input'!J4469=\"\",\"\",IF(OR('TSA Input'!J4469=\"Yes\",'TSA Input'!J4469=\"Contingent\"),'TSA Input'!F4469,\"\"))","v":""},"","Required","Required"]
["",null,{"$f":"IF('TSA Input'!J4470=\"\",\"\",IF(OR('TSA Input'!J4470=\"Yes\",'TSA Input'!J4470=\"Contingent\"),'TSA Input'!B4470,\"Ineligible\"))","v":""},{"$f":"IF('TSA Input'!J4470=\"\",\"\",IF(OR('TSA Input'!J4470=\"Yes\",'TSA Input'!J4470=\"Contingent\"),'TSA Input'!I4470,\"\"))","v":""},{"$f":"IF('TSA Input'!J4470=\"\",\"\",IF(OR('TSA Input'!J4470=\"Yes\",'TSA Input'!J4470=\"Contingent\"),'TSA Input'!C4470,\"\"))","v":""},{"$f":"IF('TSA Input'!J4470=\"\",\"\",IF(OR('TSA Input'!J4470=\"Yes\",'TSA Input'!J4470=\"Contingent\"),'TSA Input'!D4470,\"\"))","v":""},{"$f":"IF('TSA Input'!J4470=\"\",\"\",IF(OR('TSA Input'!J4470=\"Yes\",'TSA Input'!J4470=\"Contingent\"),'TSA Input'!G4470,\"\"))","v":""},{"$f":"IF('TSA Input'!J4470=\"\",\"\",IF(OR('TSA Input'!J4470=\"Yes\",'TSA Input'!J4470=\"Contingent\"),'TSA Input'!F4470,\"\"))","v":""},"",{"$f":"IF('TSA Input'!J4470=\"\",\"\",IF(OR('TSA Input'!J4470=\"Yes\",'TSA Input'!J4470=\"Contingent\"),'TSA Input'!D4470,\"\"))","v":""},{"$f":"IF('TSA Input'!J4470=\"\",\"\",IF(OR('TSA Input'!J4470=\"Yes\",'TSA Input'!J4470=\"Contingent\"),'TSA Input'!G4470,\"\"))","v":""},{"$f":"IF('TSA Input'!J4470=\"\",\"\",IF(OR('TSA Input'!J4470=\"Yes\",'TSA Input'!J4470=\"Contingent\"),'TSA Input'!F4470,\"\"))","v":""},"","Required","Required"]
["",null,{"$f":"IF('TSA Input'!J4471=\"\",\"\",IF(OR('TSA Input'!J4471=\"Yes\",'TSA Input'!J4471=\"Contingent\"),'TSA Input'!B4471,\"Ineligible\"))","v":""},{"$f":"IF('TSA Input'!J4471=\"\",\"\",IF(OR('TSA Input'!J4471=\"Yes\",'TSA Input'!J4471=\"Contingent\"),'TSA Input'!I4471,\"\"))","v":""},{"$f":"IF('TSA Input'!J4471=\"\",\"\",IF(OR('TSA Input'!J4471=\"Yes\",'TSA Input'!J4471=\"Contingent\"),'TSA Input'!C4471,\"\"))","v":""},{"$f":"IF('TSA Input'!J4471=\"\",\"\",IF(OR('TSA Input'!J4471=\"Yes\",'TSA Input'!J4471=\"Contingent\"),'TSA Input'!D4471,\"\"))","v":""},{"$f":"IF('TSA Input'!J4471=\"\",\"\",IF(OR('TSA Input'!J4471=\"Yes\",'TSA Input'!J4471=\"Contingent\"),'TSA Input'!G4471,\"\"))","v":""},{"$f":"IF('TSA Input'!J4471=\"\",\"\",IF(OR('TSA Input'!J4471=\"Yes\",'TSA Input'!J4471=\"Contingent\"),'TSA Input'!F4471,\"\"))","v":""},"",{"$f":"IF('TSA Input'!J4471=\"\",\"\",IF(OR('TSA Input'!J4471=\"Yes\",'TSA Input'!J4471=\"Contingent\"),'TSA Input'!D4471,\"\"))","v":""},{"$f":"IF('TSA Input'!J4471=\"\",\"\",IF(OR('TSA Input'!J4471=\"Yes\",'TSA Input'!J4471=\"Contingent\"),'TSA Input'!G4471,\"\"))","v":""},{"$f":"IF('TSA Input'!J4471=\"\",\"\",IF(OR('TSA Input'!J4471=\"Yes\",'TSA Input'!J4471=\"Contingent\"),'TSA Input'!F4471,\"\"))","v":""},"","Required","Required"]
["",null,{"$f":"IF('TSA Input'!J4472=\"\",\"\",IF(OR('TSA Input'!J4472=\"Yes\",'TSA Input'!J4472=\"Contingent\"),'TSA Input'!B4472,\"Ineligible\"))","v":""},{"$f":"IF('TSA Input'!J4472=\"\",\"\",IF(OR('TSA Input'!J4472=\"Yes\",'TSA Input'!J4472=\"Contingent\"),'TSA Input'!I4472,\"\"))","v":""},{"$f":"IF('TSA Input'!J4472=\"\",\"\",IF(OR('TSA Input'!J4472=\"Yes\",'TSA Input'!J4472=\"Contingent\"),'TSA Input'!C4472,\"\"))","v":""},{"$f":"IF('TSA Input'!J4472=\"\",\"\",IF(OR('TSA Input'!J4472=\"Yes\",'TSA Input'!J4472=\"Contingent\"),'TSA Input'!D4472,\"\"))","v":""},{"$f":"IF('TSA Input'!J4472=\"\",\"\",IF(OR('TSA Input'!J4472=\"Yes\",'TSA Input'!J4472=\"Contingent\"),'TSA Input'!G4472,\"\"))","v":""},{"$f":"IF('TSA Input'!J4472=\"\",\"\",IF(OR('TSA Input'!J4472=\"Yes\",'TSA Input'!J4472=\"Contingent\"),'TSA Input'!F4472,\"\"))","v":""},"",{"$f":"IF('TSA Input'!J4472=\"\",\"\",IF(OR('TSA Input'!J4472=\"Yes\",'TSA Input'!J4472=\"Contingent\"),'TSA Input'!D4472,\"\"))","v":""},{"$f":"IF('TSA Input'!J4472=\"\",\"\",IF(OR('TSA Input'!J4472=\"Yes\",'TSA Input'!J4472=\"Contingent\"),'TSA Input'!G4472,\"\"))","v":""},{"$f":"IF('TSA Input'!J4472=\"\",\"\",IF(OR('TSA Input'!J4472=\"Yes\",'TSA Input'!J4472=\"Contingent\"),'TSA Input'!F4472,\"\"))","v":""},"","Required","Required"]
["",null,{"$f":"IF('TSA Input'!J4473=\"\",\"\",IF(OR('TSA Input'!J4473=\"Yes\",'TSA Input'!J4473=\"Contingent\"),'TSA Input'!B4473,\"Ineligible\"))","v":""},{"$f":"IF('TSA Input'!J4473=\"\",\"\",IF(OR('TSA Input'!J4473=\"Yes\",'TSA Input'!J4473=\"Contingent\"),'TSA Input'!I4473,\"\"))","v":""},{"$f":"IF('TSA Input'!J4473=\"\",\"\",IF(OR('TSA Input'!J4473=\"Yes\",'TSA Input'!J4473=\"Contingent\"),'TSA Input'!C4473,\"\"))","v":""},{"$f":"IF('TSA Input'!J4473=\"\",\"\",IF(OR('TSA Input'!J4473=\"Yes\",'TSA Input'!J4473=\"Contingent\"),'TSA Input'!D4473,\"\"))","v":""},{"$f":"IF('TSA Input'!J4473=\"\",\"\",IF(OR('TSA Input'!J4473=\"Yes\",'TSA Input'!J4473=\"Contingent\"),'TSA Input'!G4473,\"\"))","v":""},{"$f":"IF('TSA Input'!J4473=\"\",\"\",IF(OR('TSA Input'!J4473=\"Yes\",'TSA Input'!J4473=\"Contingent\"),'TSA Input'!F4473,\"\"))","v":""},"",{"$f":"IF('TSA Input'!J4473=\"\",\"\",IF(OR('TSA Input'!J4473=\"Yes\",'TSA Input'!J4473=\"Contingent\"),'TSA Input'!D4473,\"\"))","v":""},{"$f":"IF('TSA Input'!J4473=\"\",\"\",IF(OR('TSA Input'!J4473=\"Yes\",'TSA Input'!J4473=\"Contingent\"),'TSA Input'!G4473,\"\"))","v":""},{"$f":"IF('TSA Input'!J4473=\"\",\"\",IF(OR('TSA Input'!J4473=\"Yes\",'TSA Input'!J4473=\"Contingent\"),'TSA Input'!F4473,\"\"))","v":""},"","Required","Required"]
["",null,{"$f":"IF('TSA Input'!J4474=\"\",\"\",IF(OR('TSA Input'!J4474=\"Yes\",'TSA Input'!J4474=\"Contingent\"),'TSA Input'!B4474,\"Ineligible\"))","v":""},{"$f":"IF('TSA Input'!J4474=\"\",\"\",IF(OR('TSA Input'!J4474=\"Yes\",'TSA Input'!J4474=\"Contingent\"),'TSA Input'!I4474,\"\"))","v":""},{"$f":"IF('TSA Input'!J4474=\"\",\"\",IF(OR('TSA Input'!J4474=\"Yes\",'TSA Input'!J4474=\"Contingent\"),'TSA Input'!C4474,\"\"))","v":""},{"$f":"IF('TSA Input'!J4474=\"\",\"\",IF(OR('TSA Input'!J4474=\"Yes\",'TSA Input'!J4474=\"Contingent\"),'TSA Input'!D4474,\"\"))","v":""},{"$f":"IF('TSA Input'!J4474=\"\",\"\",IF(OR('TSA Input'!J4474=\"Yes\",'TSA Input'!J4474=\"Contingent\"),'TSA Input'!G4474,\"\"))","v":""},{"$f":"IF('TSA Input'!J4474=\"\",\"\",IF(OR('TSA Input'!J4474=\"Yes\",'TSA Input'!J4474=\"Contingent\"),'TSA Input'!F4474,\"\"))","v":""},"",{"$f":"IF('TSA Input'!J4474=\"\",\"\",IF(OR('TSA Input'!J4474=\"Yes\",'TSA Input'!J4474=\"Contingent\"),'TSA Input'!D4474,\"\"))","v":""},{"$f":"IF('TSA Input'!J4474=\"\",\"\",IF(OR('TSA Input'!J4474=\"Yes\",'TSA Input'!J4474=\"Contingent\"),'TSA Input'!G4474,\"\"))","v":""},{"$f":"IF('TSA Input'!J4474=\"\",\"\",IF(OR('TSA Input'!J4474=\"Yes\",'TSA Input'!J4474=\"Contingent\"),'TSA Input'!F4474,\"\"))","v":""},"","Required","Required"]
["",null,{"$f":"IF('TSA Input'!J4475=\"\",\"\",IF(OR('TSA Input'!J4475=\"Yes\",'TSA Input'!J4475=\"Contingent\"),'TSA Input'!B4475,\"Ineligible\"))","v":""},{"$f":"IF('TSA Input'!J4475=\"\",\"\",IF(OR('TSA Input'!J4475=\"Yes\",'TSA Input'!J4475=\"Contingent\"),'TSA Input'!I4475,\"\"))","v":""},{"$f":"IF('TSA Input'!J4475=\"\",\"\",IF(OR('TSA Input'!J4475=\"Yes\",'TSA Input'!J4475=\"Contingent\"),'TSA Input'!C4475,\"\"))","v":""},{"$f":"IF('TSA Input'!J4475=\"\",\"\",IF(OR('TSA Input'!J4475=\"Yes\",'TSA Input'!J4475=\"Contingent\"),'TSA Input'!D4475,\"\"))","v":""},{"$f":"IF('TSA Input'!J4475=\"\",\"\",IF(OR('TSA Input'!J4475=\"Yes\",'TSA Input'!J4475=\"Contingent\"),'TSA Input'!G4475,\"\"))","v":""},{"$f":"IF('TSA Input'!J4475=\"\",\"\",IF(OR('TSA Input'!J4475=\"Yes\",'TSA Input'!J4475=\"Contingent\"),'TSA Input'!F4475,\"\"))","v":""},"",{"$f":"IF('TSA Input'!J4475=\"\",\"\",IF(OR('TSA Input'!J4475=\"Yes\",'TSA Input'!J4475=\"Contingent\"),'TSA Input'!D4475,\"\"))","v":""},{"$f":"IF('TSA Input'!J4475=\"\",\"\",IF(OR('TSA Input'!J4475=\"Yes\",'TSA Input'!J4475=\"Contingent\"),'TSA Input'!G4475,\"\"))","v":""},{"$f":"IF('TSA Input'!J4475=\"\",\"\",IF(OR('TSA Input'!J4475=\"Yes\",'TSA Input'!J4475=\"Contingent\"),'TSA Input'!F4475,\"\"))","v":""},"","Required","Required"]
["",null,{"$f":"IF('TSA Input'!J4476=\"\",\"\",IF(OR('TSA Input'!J4476=\"Yes\",'TSA Input'!J4476=\"Contingent\"),'TSA Input'!B4476,\"Ineligible\"))","v":""},{"$f":"IF('TSA Input'!J4476=\"\",\"\",IF(OR('TSA Input'!J4476=\"Yes\",'TSA Input'!J4476=\"Contingent\"),'TSA Input'!I4476,\"\"))","v":""},{"$f":"IF('TSA Input'!J4476=\"\",\"\",IF(OR('TSA Input'!J4476=\"Yes\",'TSA Input'!J4476=\"Contingent\"),'TSA Input'!C4476,\"\"))","v":""},{"$f":"IF('TSA Input'!J4476=\"\",\"\",IF(OR('TSA Input'!J4476=\"Yes\",'TSA Input'!J4476=\"Contingent\"),'TSA Input'!D4476,\"\"))","v":""},{"$f":"IF('TSA Input'!J4476=\"\",\"\",IF(OR('TSA Input'!J4476=\"Yes\",'TSA Input'!J4476=\"Contingent\"),'TSA Input'!G4476,\"\"))","v":""},{"$f":"IF('TSA Input'!J4476=\"\",\"\",IF(OR('TSA Input'!J4476=\"Yes\",'TSA Input'!J4476=\"Contingent\"),'TSA Input'!F4476,\"\"))","v":""},"",{"$f":"IF('TSA Input'!J4476=\"\",\"\",IF(OR('TSA Input'!J4476=\"Yes\",'TSA Input'!J4476=\"Contingent\"),'TSA Input'!D4476,\"\"))","v":""},{"$f":"IF('TSA Input'!J4476=\"\",\"\",IF(OR('TSA Input'!J4476=\"Yes\",'TSA Input'!J4476=\"Contingent\"),'TSA Input'!G4476,\"\"))","v":""},{"$f":"IF('TSA Input'!J4476=\"\",\"\",IF(OR('TSA Input'!J4476=\"Yes\",'TSA Input'!J4476=\"Contingent\"),'TSA Input'!F4476,\"\"))","v":""},"","Required","Required"]
["",null,{"$f":"IF('TSA Input'!J4477=\"\",\"\",IF(OR('TSA Input'!J4477=\"Yes\",'TSA Input'!J4477=\"Contingent\"),'TSA Input'!B4477,\"Ineligible\"))","v":""},{"$f":"IF('TSA Input'!J4477=\"\",\"\",IF(OR('TSA Input'!J4477=\"Yes\",'TSA Input'!J4477=\"Contingent\"),'TSA Input'!I4477,\"\"))","v":""},{"$f":"IF('TSA Input'!J4477=\"\",\"\",IF(OR('TSA Input'!J4477=\"Yes\",'TSA Input'!J4477=\"Contingent\"),'TSA Input'!C4477,\"\"))","v":""},{"$f":"IF('TSA Input'!J4477=\"\",\"\",IF(OR('TSA Input'!J4477=\"Yes\",'TSA Input'!J4477=\"Contingent\"),'TSA Input'!D4477,\"\"))","v":""},{"$f":"IF('TSA Input'!J4477=\"\",\"\",IF(OR('TSA Input'!J4477=\"Yes\",'TSA Input'!J4477=\"Contingent\"),'TSA Input'!G4477,\"\"))","v":""},{"$f":"IF('TSA Input'!J4477=\"\",\"\",IF(OR('TSA Input'!J4477=\"Yes\",'TSA Input'!J4477=\"Contingent\"),'TSA Input'!F4477,\"\"))","v":""},"",{"$f":"IF('TSA Input'!J4477=\"\",\"\",IF(OR('TSA Input'!J4477=\"Yes\",'TSA Input'!J4477=\"Contingent\"),'TSA Input'!D4477,\"\"))","v":""},{"$f":"IF('TSA Input'!J4477=\"\",\"\",IF(OR('TSA Input'!J4477=\"Yes\",'TSA Input'!J4477=\"Contingent\"),'TSA Input'!G4477,\"\"))","v":""},{"$f":"IF('TSA Input'!J4477=\"\",\"\",IF(OR('TSA Input'!J4477=\"Yes\",'TSA Input'!J4477=\"Contingent\"),'TSA Input'!F4477,\"\"))","v":""},"","Required","Required"]
["",null,{"$f":"IF('TSA Input'!J4478=\"\",\"\",IF(OR('TSA Input'!J4478=\"Yes\",'TSA Input'!J4478=\"Contingent\"),'TSA Input'!B4478,\"Ineligible\"))","v":""},{"$f":"IF('TSA Input'!J4478=\"\",\"\",IF(OR('TSA Input'!J4478=\"Yes\",'TSA Input'!J4478=\"Contingent\"),'TSA Input'!I4478,\"\"))","v":""},{"$f":"IF('TSA Input'!J4478=\"\",\"\",IF(OR('TSA Input'!J4478=\"Yes\",'TSA Input'!J4478=\"Contingent\"),'TSA Input'!C4478,\"\"))","v":""},{"$f":"IF('TSA Input'!J4478=\"\",\"\",IF(OR('TSA Input'!J4478=\"Yes\",'TSA Input'!J4478=\"Contingent\"),'TSA Input'!D4478,\"\"))","v":""},{"$f":"IF('TSA Input'!J4478=\"\",\"\",IF(OR('TSA Input'!J4478=\"Yes\",'TSA Input'!J4478=\"Contingent\"),'TSA Input'!G4478,\"\"))","v":""},{"$f":"IF('TSA Input'!J4478=\"\",\"\",IF(OR('TSA Input'!J4478=\"Yes\",'TSA Input'!J4478=\"Contingent\"),'TSA Input'!F4478,\"\"))","v":""},"",{"$f":"IF('TSA Input'!J4478=\"\",\"\",IF(OR('TSA Input'!J4478=\"Yes\",'TSA Input'!J4478=\"Contingent\"),'TSA Input'!D4478,\"\"))","v":""},{"$f":"IF('TSA Input'!J4478=\"\",\"\",IF(OR('TSA Input'!J4478=\"Yes\",'TSA Input'!J4478=\"Contingent\"),'TSA Input'!G4478,\"\"))","v":""},{"$f":"IF('TSA Input'!J4478=\"\",\"\",IF(OR('TSA Input'!J4478=\"Yes\",'TSA Input'!J4478=\"Contingent\"),'TSA Input'!F4478,\"\"))","v":""},"","Required","Required"]
["",null,{"$f":"IF('TSA Input'!J4479=\"\",\"\",IF(OR('TSA Input'!J4479=\"Yes\",'TSA Input'!J4479=\"Contingent\"),'TSA Input'!B4479,\"Ineligible\"))","v":""},{"$f":"IF('TSA Input'!J4479=\"\",\"\",IF(OR('TSA Input'!J4479=\"Yes\",'TSA Input'!J4479=\"Contingent\"),'TSA Input'!I4479,\"\"))","v":""},{"$f":"IF('TSA Input'!J4479=\"\",\"\",IF(OR('TSA Input'!J4479=\"Yes\",'TSA Input'!J4479=\"Contingent\"),'TSA Input'!C4479,\"\"))","v":""},{"$f":"IF('TSA Input'!J4479=\"\",\"\",IF(OR('TSA Input'!J4479=\"Yes\",'TSA Input'!J4479=\"Contingent\"),'TSA Input'!D4479,\"\"))","v":""},{"$f":"IF('TSA Input'!J4479=\"\",\"\",IF(OR('TSA Input'!J4479=\"Yes\",'TSA Input'!J4479=\"Contingent\"),'TSA Input'!G4479,\"\"))","v":""},{"$f":"IF('TSA Input'!J4479=\"\",\"\",IF(OR('TSA Input'!J4479=\"Yes\",'TSA Input'!J4479=\"Contingent\"),'TSA Input'!F4479,\"\"))","v":""},"",{"$f":"IF('TSA Input'!J4479=\"\",\"\",IF(OR('TSA Input'!J4479=\"Yes\",'TSA Input'!J4479=\"Contingent\"),'TSA Input'!D4479,\"\"))","v":""},{"$f":"IF('TSA Input'!J4479=\"\",\"\",IF(OR('TSA Input'!J4479=\"Yes\",'TSA Input'!J4479=\"Contingent\"),'TSA Input'!G4479,\"\"))","v":""},{"$f":"IF('TSA Input'!J4479=\"\",\"\",IF(OR('TSA Input'!J4479=\"Yes\",'TSA Input'!J4479=\"Contingent\"),'TSA Input'!F4479,\"\"))","v":""},"","Required","Required"]
["",null,{"$f":"IF('TSA Input'!J4480=\"\",\"\",IF(OR('TSA Input'!J4480=\"Yes\",'TSA Input'!J4480=\"Contingent\"),'TSA Input'!B4480,\"Ineligible\"))","v":""},{"$f":"IF('TSA Input'!J4480=\"\",\"\",IF(OR('TSA Input'!J4480=\"Yes\",'TSA Input'!J4480=\"Contingent\"),'TSA Input'!I4480,\"\"))","v":""},{"$f":"IF('TSA Input'!J4480=\"\",\"\",IF(OR('TSA Input'!J4480=\"Yes\",'TSA Input'!J4480=\"Contingent\"),'TSA Input'!C4480,\"\"))","v":""},{"$f":"IF('TSA Input'!J4480=\"\",\"\",IF(OR('TSA Input'!J4480=\"Yes\",'TSA Input'!J4480=\"Contingent\"),'TSA Input'!D4480,\"\"))","v":""},{"$f":"IF('TSA Input'!J4480=\"\",\"\",IF(OR('TSA Input'!J4480=\"Yes\",'TSA Input'!J4480=\"Contingent\"),'TSA Input'!G4480,\"\"))","v":""},{"$f":"IF('TSA Input'!J4480=\"\",\"\",IF(OR('TSA Input'!J4480=\"Yes\",'TSA Input'!J4480=\"Contingent\"),'TSA Input'!F4480,\"\"))","v":""},"",{"$f":"IF('TSA Input'!J4480=\"\",\"\",IF(OR('TSA Input'!J4480=\"Yes\",'TSA Input'!J4480=\"Contingent\"),'TSA Input'!D4480,\"\"))","v":""},{"$f":"IF('TSA Input'!J4480=\"\",\"\",IF(OR('TSA Input'!J4480=\"Yes\",'TSA Input'!J4480=\"Contingent\"),'TSA Input'!G4480,\"\"))","v":""},{"$f":"IF('TSA Input'!J4480=\"\",\"\",IF(OR('TSA Input'!J4480=\"Yes\",'TSA Input'!J4480=\"Contingent\"),'TSA Input'!F4480,\"\"))","v":""},"","Required","Required"]
["",null,{"$f":"IF('TSA Input'!J4481=\"\",\"\",IF(OR('TSA Input'!J4481=\"Yes\",'TSA Input'!J4481=\"Contingent\"),'TSA Input'!B4481,\"Ineligible\"))","v":""},{"$f":"IF('TSA Input'!J4481=\"\",\"\",IF(OR('TSA Input'!J4481=\"Yes\",'TSA Input'!J4481=\"Contingent\"),'TSA Input'!I4481,\"\"))","v":""},{"$f":"IF('TSA Input'!J4481=\"\",\"\",IF(OR('TSA Input'!J4481=\"Yes\",'TSA Input'!J4481=\"Contingent\"),'TSA Input'!C4481,\"\"))","v":""},{"$f":"IF('TSA Input'!J4481=\"\",\"\",IF(OR('TSA Input'!J4481=\"Yes\",'TSA Input'!J4481=\"Contingent\"),'TSA Input'!D4481,\"\"))","v":""},{"$f":"IF('TSA Input'!J4481=\"\",\"\",IF(OR('TSA Input'!J4481=\"Yes\",'TSA Input'!J4481=\"Contingent\"),'TSA Input'!G4481,\"\"))","v":""},{"$f":"IF('TSA Input'!J4481=\"\",\"\",IF(OR('TSA Input'!J4481=\"Yes\",'TSA Input'!J4481=\"Contingent\"),'TSA Input'!F4481,\"\"))","v":""},"",{"$f":"IF('TSA Input'!J4481=\"\",\"\",IF(OR('TSA Input'!J4481=\"Yes\",'TSA Input'!J4481=\"Contingent\"),'TSA Input'!D4481,\"\"))","v":""},{"$f":"IF('TSA Input'!J4481=\"\",\"\",IF(OR('TSA Input'!J4481=\"Yes\",'TSA Input'!J4481=\"Contingent\"),'TSA Input'!G4481,\"\"))","v":""},{"$f":"IF('TSA Input'!J4481=\"\",\"\",IF(OR('TSA Input'!J4481=\"Yes\",'TSA Input'!J4481=\"Contingent\"),'TSA Input'!F4481,\"\"))","v":""},"","Required","Required"]
["",null,{"$f":"IF('TSA Input'!J4482=\"\",\"\",IF(OR('TSA Input'!J4482=\"Yes\",'TSA Input'!J4482=\"Contingent\"),'TSA Input'!B4482,\"Ineligible\"))","v":""},{"$f":"IF('TSA Input'!J4482=\"\",\"\",IF(OR('TSA Input'!J4482=\"Yes\",'TSA Input'!J4482=\"Contingent\"),'TSA Input'!I4482,\"\"))","v":""},{"$f":"IF('TSA Input'!J4482=\"\",\"\",IF(OR('TSA Input'!J4482=\"Yes\",'TSA Input'!J4482=\"Contingent\"),'TSA Input'!C4482,\"\"))","v":""},{"$f":"IF('TSA Input'!J4482=\"\",\"\",IF(OR('TSA Input'!J4482=\"Yes\",'TSA Input'!J4482=\"Contingent\"),'TSA Input'!D4482,\"\"))","v":""},{"$f":"IF('TSA Input'!J4482=\"\",\"\",IF(OR('TSA Input'!J4482=\"Yes\",'TSA Input'!J4482=\"Contingent\"),'TSA Input'!G4482,\"\"))","v":""},{"$f":"IF('TSA Input'!J4482=\"\",\"\",IF(OR('TSA Input'!J4482=\"Yes\",'TSA Input'!J4482=\"Contingent\"),'TSA Input'!F4482,\"\"))","v":""},"",{"$f":"IF('TSA Input'!J4482=\"\",\"\",IF(OR('TSA Input'!J4482=\"Yes\",'TSA Input'!J4482=\"Contingent\"),'TSA Input'!D4482,\"\"))","v":""},{"$f":"IF('TSA Input'!J4482=\"\",\"\",IF(OR('TSA Input'!J4482=\"Yes\",'TSA Input'!J4482=\"Contingent\"),'TSA Input'!G4482,\"\"))","v":""},{"$f":"IF('TSA Input'!J4482=\"\",\"\",IF(OR('TSA Input'!J4482=\"Yes\",'TSA Input'!J4482=\"Contingent\"),'TSA Input'!F4482,\"\"))","v":""},"","Required","Required"]
["",null,{"$f":"IF('TSA Input'!J4483=\"\",\"\",IF(OR('TSA Input'!J4483=\"Yes\",'TSA Input'!J4483=\"Contingent\"),'TSA Input'!B4483,\"Ineligible\"))","v":""},{"$f":"IF('TSA Input'!J4483=\"\",\"\",IF(OR('TSA Input'!J4483=\"Yes\",'TSA Input'!J4483=\"Contingent\"),'TSA Input'!I4483,\"\"))","v":""},{"$f":"IF('TSA Input'!J4483=\"\",\"\",IF(OR('TSA Input'!J4483=\"Yes\",'TSA Input'!J4483=\"Contingent\"),'TSA Input'!C4483,\"\"))","v":""},{"$f":"IF('TSA Input'!J4483=\"\",\"\",IF(OR('TSA Input'!J4483=\"Yes\",'TSA Input'!J4483=\"Contingent\"),'TSA Input'!D4483,\"\"))","v":""},{"$f":"IF('TSA Input'!J4483=\"\",\"\",IF(OR('TSA Input'!J4483=\"Yes\",'TSA Input'!J4483=\"Contingent\"),'TSA Input'!G4483,\"\"))","v":""},{"$f":"IF('TSA Input'!J4483=\"\",\"\",IF(OR('TSA Input'!J4483=\"Yes\",'TSA Input'!J4483=\"Contingent\"),'TSA Input'!F4483,\"\"))","v":""},"",{"$f":"IF('TSA Input'!J4483=\"\",\"\",IF(OR('TSA Input'!J4483=\"Yes\",'TSA Input'!J4483=\"Contingent\"),'TSA Input'!D4483,\"\"))","v":""},{"$f":"IF('TSA Input'!J4483=\"\",\"\",IF(OR('TSA Input'!J4483=\"Yes\",'TSA Input'!J4483=\"Contingent\"),'TSA Input'!G4483,\"\"))","v":""},{"$f":"IF('TSA Input'!J4483=\"\",\"\",IF(OR('TSA Input'!J4483=\"Yes\",'TSA Input'!J4483=\"Contingent\"),'TSA Input'!F4483,\"\"))","v":""},"","Required","Required"]
["",null,{"$f":"IF('TSA Input'!J4484=\"\",\"\",IF(OR('TSA Input'!J4484=\"Yes\",'TSA Input'!J4484=\"Contingent\"),'TSA Input'!B4484,\"Ineligible\"))","v":""},{"$f":"IF('TSA Input'!J4484=\"\",\"\",IF(OR('TSA Input'!J4484=\"Yes\",'TSA Input'!J4484=\"Contingent\"),'TSA Input'!I4484,\"\"))","v":""},{"$f":"IF('TSA Input'!J4484=\"\",\"\",IF(OR('TSA Input'!J4484=\"Yes\",'TSA Input'!J4484=\"Contingent\"),'TSA Input'!C4484,\"\"))","v":""},{"$f":"IF('TSA Input'!J4484=\"\",\"\",IF(OR('TSA Input'!J4484=\"Yes\",'TSA Input'!J4484=\"Contingent\"),'TSA Input'!D4484,\"\"))","v":""},{"$f":"IF('TSA Input'!J4484=\"\",\"\",IF(OR('TSA Input'!J4484=\"Yes\",'TSA Input'!J4484=\"Contingent\"),'TSA Input'!G4484,\"\"))","v":""},{"$f":"IF('TSA Input'!J4484=\"\",\"\",IF(OR('TSA Input'!J4484=\"Yes\",'TSA Input'!J4484=\"Contingent\"),'TSA Input'!F4484,\"\"))","v":""},{"$f":"IF($C4522=\"\",\"\",SUM(F4522:H4522))","v":""},{"$f":"IF('TSA Input'!J4484=\"\",\"\",IF(OR('TSA Input'!J4484=\"Yes\",'TSA Input'!J4484=\"Contingent\"),'TSA Input'!D4484,\"\"))","v":""},{"$f":"IF('TSA Input'!J4484=\"\",\"\",IF(OR('TSA Input'!J4484=\"Yes\",'TSA Input'!J4484=\"Contingent\"),'TSA Input'!G4484,\"\"))","v":""},{"$f":"IF('TSA Input'!J4484=\"\",\"\",IF(OR('TSA Input'!J4484=\"Yes\",'TSA Input'!J4484=\"Contingent\"),'TSA Input'!F4484,\"\"))","v":""},{"$f":"IF($C4522=\"\",\"\",SUM(J4522:L4522))","v":""},"Required","Required"]
["",null,{"$f":"IF('TSA Input'!J4485=\"\",\"\",IF(OR('TSA Input'!J4485=\"Yes\",'TSA Input'!J4485=\"Contingent\"),'TSA Input'!B4485,\"Ineligible\"))","v":""},{"$f":"IF('TSA Input'!J4485=\"\",\"\",IF(OR('TSA Input'!J4485=\"Yes\",'TSA Input'!J4485=\"Contingent\"),'TSA Input'!I4485,\"\"))","v":""},{"$f":"IF('TSA Input'!J4485=\"\",\"\",IF(OR('TSA Input'!J4485=\"Yes\",'TSA Input'!J4485=\"Contingent\"),'TSA Input'!C4485,\"\"))","v":""},{"$f":"IF('TSA Input'!J4485=\"\",\"\",IF(OR('TSA Input'!J4485=\"Yes\",'TSA Input'!J4485=\"Contingent\"),'TSA Input'!D4485,\"\"))","v":""},{"$f":"IF('TSA Input'!J4485=\"\",\"\",IF(OR('TSA Input'!J4485=\"Yes\",'TSA Input'!J4485=\"Contingent\"),'TSA Input'!G4485,\"\"))","v":""},{"$f":"IF('TSA Input'!J4485=\"\",\"\",IF(OR('TSA Input'!J4485=\"Yes\",'TSA Input'!J4485=\"Contingent\"),'TSA Input'!F4485,\"\"))","v":""},"",{"$f":"IF('TSA Input'!J4485=\"\",\"\",IF(OR('TSA Input'!J4485=\"Yes\",'TSA Input'!J4485=\"Contingent\"),'TSA Input'!D4485,\"\"))","v":""},{"$f":"IF('TSA Input'!J4485=\"\",\"\",IF(OR('TSA Input'!J4485=\"Yes\",'TSA Input'!J4485=\"Contingent\"),'TSA Input'!G4485,\"\"))","v":""},{"$f":"IF('TSA Input'!J4485=\"\",\"\",IF(OR('TSA Input'!J4485=\"Yes\",'TSA Input'!J4485=\"Contingent\"),'TSA Input'!F4485,\"\"))","v":""},"","Required","Required"]
["",null,{"$f":"IF('TSA Input'!J4486=\"\",\"\",IF(OR('TSA Input'!J4486=\"Yes\",'TSA Input'!J4486=\"Contingent\"),'TSA Input'!B4486,\"Ineligible\"))","v":""},{"$f":"IF('TSA Input'!J4486=\"\",\"\",IF(OR('TSA Input'!J4486=\"Yes\",'TSA Input'!J4486=\"Contingent\"),'TSA Input'!I4486,\"\"))","v":""},{"$f":"IF('TSA Input'!J4486=\"\",\"\",IF(OR('TSA Input'!J4486=\"Yes\",'TSA Input'!J4486=\"Contingent\"),'TSA Input'!C4486,\"\"))","v":""},{"$f":"IF('TSA Input'!J4486=\"\",\"\",IF(OR('TSA Input'!J4486=\"Yes\",'TSA Input'!J4486=\"Contingent\"),'TSA Input'!D4486,\"\"))","v":""},{"$f":"IF('TSA Input'!J4486=\"\",\"\",IF(OR('TSA Input'!J4486=\"Yes\",'TSA Input'!J4486=\"Contingent\"),'TSA Input'!G4486,\"\"))","v":""},{"$f":"IF('TSA Input'!J4486=\"\",\"\",IF(OR('TSA Input'!J4486=\"Yes\",'TSA Input'!J4486=\"Contingent\"),'TSA Input'!F4486,\"\"))","v":""},"",{"$f":"IF('TSA Input'!J4486=\"\",\"\",IF(OR('TSA Input'!J4486=\"Yes\",'TSA Input'!J4486=\"Contingent\"),'TSA Input'!D4486,\"\"))","v":""},{"$f":"IF('TSA Input'!J4486=\"\",\"\",IF(OR('TSA Input'!J4486=\"Yes\",'TSA Input'!J4486=\"Contingent\"),'TSA Input'!G4486,\"\"))","v":""},{"$f":"IF('TSA Input'!J4486=\"\",\"\",IF(OR('TSA Input'!J4486=\"Yes\",'TSA Input'!J4486=\"Contingent\"),'TSA Input'!F4486,\"\"))","v":""},"","Required","Required"]
["",null,{"$f":"IF('TSA Input'!J4487=\"\",\"\",IF(OR('TSA Input'!J4487=\"Yes\",'TSA Input'!J4487=\"Contingent\"),'TSA Input'!B4487,\"Ineligible\"))","v":""},{"$f":"IF('TSA Input'!J4487=\"\",\"\",IF(OR('TSA Input'!J4487=\"Yes\",'TSA Input'!J4487=\"Contingent\"),'TSA Input'!I4487,\"\"))","v":""},{"$f":"IF('TSA Input'!J4487=\"\",\"\",IF(OR('TSA Input'!J4487=\"Yes\",'TSA Input'!J4487=\"Contingent\"),'TSA Input'!C4487,\"\"))","v":""},{"$f":"IF('TSA Input'!J4487=\"\",\"\",IF(OR('TSA Input'!J4487=\"Yes\",'TSA Input'!J4487=\"Contingent\"),'TSA Input'!D4487,\"\"))","v":""},{"$f":"IF('TSA Input'!J4487=\"\",\"\",IF(OR('TSA Input'!J4487=\"Yes\",'TSA Input'!J4487=\"Contingent\"),'TSA Input'!G4487,\"\"))","v":""},{"$f":"IF('TSA Input'!J4487=\"\",\"\",IF(OR('TSA Input'!J4487=\"Yes\",'TSA Input'!J4487=\"Contingent\"),'TSA Input'!F4487,\"\"))","v":""},"",{"$f":"IF('TSA Input'!J4487=\"\",\"\",IF(OR('TSA Input'!J4487=\"Yes\",'TSA Input'!J4487=\"Contingent\"),'TSA Input'!D4487,\"\"))","v":""},{"$f":"IF('TSA Input'!J4487=\"\",\"\",IF(OR('TSA Input'!J4487=\"Yes\",'TSA Input'!J4487=\"Contingent\"),'TSA Input'!G4487,\"\"))","v":""},{"$f":"IF('TSA Input'!J4487=\"\",\"\",IF(OR('TSA Input'!J4487=\"Yes\",'TSA Input'!J4487=\"Contingent\"),'TSA Input'!F4487,\"\"))","v":""},"","Required","Required"]
["",null,{"$f":"IF('TSA Input'!J4488=\"\",\"\",IF(OR('TSA Input'!J4488=\"Yes\",'TSA Input'!J4488=\"Contingent\"),'TSA Input'!B4488,\"Ineligible\"))","v":""},{"$f":"IF('TSA Input'!J4488=\"\",\"\",IF(OR('TSA Input'!J4488=\"Yes\",'TSA Input'!J4488=\"Contingent\"),'TSA Input'!I4488,\"\"))","v":""},{"$f":"IF('TSA Input'!J4488=\"\",\"\",IF(OR('TSA Input'!J4488=\"Yes\",'TSA Input'!J4488=\"Contingent\"),'TSA Input'!C4488,\"\"))","v":""},{"$f":"IF('TSA Input'!J4488=\"\",\"\",IF(OR('TSA Input'!J4488=\"Yes\",'TSA Input'!J4488=\"Contingent\"),'TSA Input'!D4488,\"\"))","v":""},{"$f":"IF('TSA Input'!J4488=\"\",\"\",IF(OR('TSA Input'!J4488=\"Yes\",'TSA Input'!J4488=\"Contingent\"),'TSA Input'!G4488,\"\"))","v":""},{"$f":"IF('TSA Input'!J4488=\"\",\"\",IF(OR('TSA Input'!J4488=\"Yes\",'TSA Input'!J4488=\"Contingent\"),'TSA Input'!F4488,\"\"))","v":""},"",{"$f":"IF('TSA Input'!J4488=\"\",\"\",IF(OR('TSA Input'!J4488=\"Yes\",'TSA Input'!J4488=\"Contingent\"),'TSA Input'!D4488,\"\"))","v":""},{"$f":"IF('TSA Input'!J4488=\"\",\"\",IF(OR('TSA Input'!J4488=\"Yes\",'TSA Input'!J4488=\"Contingent\"),'TSA Input'!G4488,\"\"))","v":""},{"$f":"IF('TSA Input'!J4488=\"\",\"\",IF(OR('TSA Input'!J4488=\"Yes\",'TSA Input'!J4488=\"Contingent\"),'TSA Input'!F4488,\"\"))","v":""},"","Required","Required"]
["",null,{"$f":"IF('TSA Input'!J4489=\"\",\"\",IF(OR('TSA Input'!J4489=\"Yes\",'TSA Input'!J4489=\"Contingent\"),'TSA Input'!B4489,\"Ineligible\"))","v":""},{"$f":"IF('TSA Input'!J4489=\"\",\"\",IF(OR('TSA Input'!J4489=\"Yes\",'TSA Input'!J4489=\"Contingent\"),'TSA Input'!I4489,\"\"))","v":""},{"$f":"IF('TSA Input'!J4489=\"\",\"\",IF(OR('TSA Input'!J4489=\"Yes\",'TSA Input'!J4489=\"Contingent\"),'TSA Input'!C4489,\"\"))","v":""},{"$f":"IF('TSA Input'!J4489=\"\",\"\",IF(OR('TSA Input'!J4489=\"Yes\",'TSA Input'!J4489=\"Contingent\"),'TSA Input'!D4489,\"\"))","v":""},{"$f":"IF('TSA Input'!J4489=\"\",\"\",IF(OR('TSA Input'!J4489=\"Yes\",'TSA Input'!J4489=\"Contingent\"),'TSA Input'!G4489,\"\"))","v":""},{"$f":"IF('TSA Input'!J4489=\"\",\"\",IF(OR('TSA Input'!J4489=\"Yes\",'TSA Input'!J4489=\"Contingent\"),'TSA Input'!F4489,\"\"))","v":""},"",{"$f":"IF('TSA Input'!J4489=\"\",\"\",IF(OR('TSA Input'!J4489=\"Yes\",'TSA Input'!J4489=\"Contingent\"),'TSA Input'!D4489,\"\"))","v":""},{"$f":"IF('TSA Input'!J4489=\"\",\"\",IF(OR('TSA Input'!J4489=\"Yes\",'TSA Input'!J4489=\"Contingent\"),'TSA Input'!G4489,\"\"))","v":""},{"$f":"IF('TSA Input'!J4489=\"\",\"\",IF(OR('TSA Input'!J4489=\"Yes\",'TSA Input'!J4489=\"Contingent\"),'TSA Input'!F4489,\"\"))","v":""},"","Required","Required"]
["",null,{"$f":"IF('TSA Input'!J4490=\"\",\"\",IF(OR('TSA Input'!J4490=\"Yes\",'TSA Input'!J4490=\"Contingent\"),'TSA Input'!B4490,\"Ineligible\"))","v":""},{"$f":"IF('TSA Input'!J4490=\"\",\"\",IF(OR('TSA Input'!J4490=\"Yes\",'TSA Input'!J4490=\"Contingent\"),'TSA Input'!I4490,\"\"))","v":""},{"$f":"IF('TSA Input'!J4490=\"\",\"\",IF(OR('TSA Input'!J4490=\"Yes\",'TSA Input'!J4490=\"Contingent\"),'TSA Input'!C4490,\"\"))","v":""},{"$f":"IF('TSA Input'!J4490=\"\",\"\",IF(OR('TSA Input'!J4490=\"Yes\",'TSA Input'!J4490=\"Contingent\"),'TSA Input'!D4490,\"\"))","v":""},{"$f":"IF('TSA Input'!J4490=\"\",\"\",IF(OR('TSA Input'!J4490=\"Yes\",'TSA Input'!J4490=\"Contingent\"),'TSA Input'!G4490,\"\"))","v":""},{"$f":"IF('TSA Input'!J4490=\"\",\"\",IF(OR('TSA Input'!J4490=\"Yes\",'TSA Input'!J4490=\"Contingent\"),'TSA Input'!F4490,\"\"))","v":""},"",{"$f":"IF('TSA Input'!J4490=\"\",\"\",IF(OR('TSA Input'!J4490=\"Yes\",'TSA Input'!J4490=\"Contingent\"),'TSA Input'!D4490,\"\"))","v":""},{"$f":"IF('TSA Input'!J4490=\"\",\"\",IF(OR('TSA Input'!J4490=\"Yes\",'TSA Input'!J4490=\"Contingent\"),'TSA Input'!G4490,\"\"))","v":""},{"$f":"IF('TSA Input'!J4490=\"\",\"\",IF(OR('TSA Input'!J4490=\"Yes\",'TSA Input'!J4490=\"Contingent\"),'TSA Input'!F4490,\"\"))","v":""},"","Required","Required"]
["",null,{"$f":"IF('TSA Input'!J4491=\"\",\"\",IF(OR('TSA Input'!J4491=\"Yes\",'TSA Input'!J4491=\"Contingent\"),'TSA Input'!B4491,\"Ineligible\"))","v":""},{"$f":"IF('TSA Input'!J4491=\"\",\"\",IF(OR('TSA Input'!J4491=\"Yes\",'TSA Input'!J4491=\"Contingent\"),'TSA Input'!I4491,\"\"))","v":""},{"$f":"IF('TSA Input'!J4491=\"\",\"\",IF(OR('TSA Input'!J4491=\"Yes\",'TSA Input'!J4491=\"Contingent\"),'TSA Input'!C4491,\"\"))","v":""},{"$f":"IF('TSA Input'!J4491=\"\",\"\",IF(OR('TSA Input'!J4491=\"Yes\",'TSA Input'!J4491=\"Contingent\"),'TSA Input'!D4491,\"\"))","v":""},{"$f":"IF('TSA Input'!J4491=\"\",\"\",IF(OR('TSA Input'!J4491=\"Yes\",'TSA Input'!J4491=\"Contingent\"),'TSA Input'!G4491,\"\"))","v":""},{"$f":"IF('TSA Input'!J4491=\"\",\"\",IF(OR('TSA Input'!J4491=\"Yes\",'TSA Input'!J4491=\"Contingent\"),'TSA Input'!F4491,\"\"))","v":""},"",{"$f":"IF('TSA Input'!J4491=\"\",\"\",IF(OR('TSA Input'!J4491=\"Yes\",'TSA Input'!J4491=\"Contingent\"),'TSA Input'!D4491,\"\"))","v":""},{"$f":"IF('TSA Input'!J4491=\"\",\"\",IF(OR('TSA Input'!J4491=\"Yes\",'TSA Input'!J4491=\"Contingent\"),'TSA Input'!G4491,\"\"))","v":""},{"$f":"IF('TSA Input'!J4491=\"\",\"\",IF(OR('TSA Input'!J4491=\"Yes\",'TSA Input'!J4491=\"Contingent\"),'TSA Input'!F4491,\"\"))","v":""},"","Required","Required"]
["",null,{"$f":"IF('TSA Input'!J4492=\"\",\"\",IF(OR('TSA Input'!J4492=\"Yes\",'TSA Input'!J4492=\"Contingent\"),'TSA Input'!B4492,\"Ineligible\"))","v":""},{"$f":"IF('TSA Input'!J4492=\"\",\"\",IF(OR('TSA Input'!J4492=\"Yes\",'TSA Input'!J4492=\"Contingent\"),'TSA Input'!I4492,\"\"))","v":""},{"$f":"IF('TSA Input'!J4492=\"\",\"\",IF(OR('TSA Input'!J4492=\"Yes\",'TSA Input'!J4492=\"Contingent\"),'TSA Input'!C4492,\"\"))","v":""},{"$f":"IF('TSA Input'!J4492=\"\",\"\",IF(OR('TSA Input'!J4492=\"Yes\",'TSA Input'!J4492=\"Contingent\"),'TSA Input'!D4492,\"\"))","v":""},{"$f":"IF('TSA Input'!J4492=\"\",\"\",IF(OR('TSA Input'!J4492=\"Yes\",'TSA Input'!J4492=\"Contingent\"),'TSA Input'!G4492,\"\"))","v":""},{"$f":"IF('TSA Input'!J4492=\"\",\"\",IF(OR('TSA Input'!J4492=\"Yes\",'TSA Input'!J4492=\"Contingent\"),'TSA Input'!F4492,\"\"))","v":""},"",{"$f":"IF('TSA Input'!J4492=\"\",\"\",IF(OR('TSA Input'!J4492=\"Yes\",'TSA Input'!J4492=\"Contingent\"),'TSA Input'!D4492,\"\"))","v":""},{"$f":"IF('TSA Input'!J4492=\"\",\"\",IF(OR('TSA Input'!J4492=\"Yes\",'TSA Input'!J4492=\"Contingent\"),'TSA Input'!G4492,\"\"))","v":""},{"$f":"IF('TSA Input'!J4492=\"\",\"\",IF(OR('TSA Input'!J4492=\"Yes\",'TSA Input'!J4492=\"Contingent\"),'TSA Input'!F4492,\"\"))","v":""},"","Required","Required"]
["",null,{"$f":"IF('TSA Input'!J4493=\"\",\"\",IF(OR('TSA Input'!J4493=\"Yes\",'TSA Input'!J4493=\"Contingent\"),'TSA Input'!B4493,\"Ineligible\"))","v":""},{"$f":"IF('TSA Input'!J4493=\"\",\"\",IF(OR('TSA Input'!J4493=\"Yes\",'TSA Input'!J4493=\"Contingent\"),'TSA Input'!I4493,\"\"))","v":""},{"$f":"IF('TSA Input'!J4493=\"\",\"\",IF(OR('TSA Input'!J4493=\"Yes\",'TSA Input'!J4493=\"Contingent\"),'TSA Input'!C4493,\"\"))","v":""},{"$f":"IF('TSA Input'!J4493=\"\",\"\",IF(OR('TSA Input'!J4493=\"Yes\",'TSA Input'!J4493=\"Contingent\"),'TSA Input'!D4493,\"\"))","v":""},{"$f":"IF('TSA Input'!J4493=\"\",\"\",IF(OR('TSA Input'!J4493=\"Yes\",'TSA Input'!J4493=\"Contingent\"),'TSA Input'!G4493,\"\"))","v":""},{"$f":"IF('TSA Input'!J4493=\"\",\"\",IF(OR('TSA Input'!J4493=\"Yes\",'TSA Input'!J4493=\"Contingent\"),'TSA Input'!F4493,\"\"))","v":""},"",{"$f":"IF('TSA Input'!J4493=\"\",\"\",IF(OR('TSA Input'!J4493=\"Yes\",'TSA Input'!J4493=\"Contingent\"),'TSA Input'!D4493,\"\"))","v":""},{"$f":"IF('TSA Input'!J4493=\"\",\"\",IF(OR('TSA Input'!J4493=\"Yes\",'TSA Input'!J4493=\"Contingent\"),'TSA Input'!G4493,\"\"))","v":""},{"$f":"IF('TSA Input'!J4493=\"\",\"\",IF(OR('TSA Input'!J4493=\"Yes\",'TSA Input'!J4493=\"Contingent\"),'TSA Input'!F4493,\"\"))","v":""},"","Required","Required"]
["",null,{"$f":"IF('TSA Input'!J4494=\"\",\"\",IF(OR('TSA Input'!J4494=\"Yes\",'TSA Input'!J4494=\"Contingent\"),'TSA Input'!B4494,\"Ineligible\"))","v":""},{"$f":"IF('TSA Input'!J4494=\"\",\"\",IF(OR('TSA Input'!J4494=\"Yes\",'TSA Input'!J4494=\"Contingent\"),'TSA Input'!I4494,\"\"))","v":""},{"$f":"IF('TSA Input'!J4494=\"\",\"\",IF(OR('TSA Input'!J4494=\"Yes\",'TSA Input'!J4494=\"Contingent\"),'TSA Input'!C4494,\"\"))","v":""},{"$f":"IF('TSA Input'!J4494=\"\",\"\",IF(OR('TSA Input'!J4494=\"Yes\",'TSA Input'!J4494=\"Contingent\"),'TSA Input'!D4494,\"\"))","v":""},{"$f":"IF('TSA Input'!J4494=\"\",\"\",IF(OR('TSA Input'!J4494=\"Yes\",'TSA Input'!J4494=\"Contingent\"),'TSA Input'!G4494,\"\"))","v":""},{"$f":"IF('TSA Input'!J4494=\"\",\"\",IF(OR('TSA Input'!J4494=\"Yes\",'TSA Input'!J4494=\"Contingent\"),'TSA Input'!F4494,\"\"))","v":""},"",{"$f":"IF('TSA Input'!J4494=\"\",\"\",IF(OR('TSA Input'!J4494=\"Yes\",'TSA Input'!J4494=\"Contingent\"),'TSA Input'!D4494,\"\"))","v":""},{"$f":"IF('TSA Input'!J4494=\"\",\"\",IF(OR('TSA Input'!J4494=\"Yes\",'TSA Input'!J4494=\"Contingent\"),'TSA Input'!G4494,\"\"))","v":""},{"$f":"IF('TSA Input'!J4494=\"\",\"\",IF(OR('TSA Input'!J4494=\"Yes\",'TSA Input'!J4494=\"Contingent\"),'TSA Input'!F4494,\"\"))","v":""},"","Required","Required"]
["",null,{"$f":"IF('TSA Input'!J4495=\"\",\"\",IF(OR('TSA Input'!J4495=\"Yes\",'TSA Input'!J4495=\"Contingent\"),'TSA Input'!B4495,\"Ineligible\"))","v":""},{"$f":"IF('TSA Input'!J4495=\"\",\"\",IF(OR('TSA Input'!J4495=\"Yes\",'TSA Input'!J4495=\"Contingent\"),'TSA Input'!I4495,\"\"))","v":""},{"$f":"IF('TSA Input'!J4495=\"\",\"\",IF(OR('TSA Input'!J4495=\"Yes\",'TSA Input'!J4495=\"Contingent\"),'TSA Input'!C4495,\"\"))","v":""},{"$f":"IF('TSA Input'!J4495=\"\",\"\",IF(OR('TSA Input'!J4495=\"Yes\",'TSA Input'!J4495=\"Contingent\"),'TSA Input'!D4495,\"\"))","v":""},{"$f":"IF('TSA Input'!J4495=\"\",\"\",IF(OR('TSA Input'!J4495=\"Yes\",'TSA Input'!J4495=\"Contingent\"),'TSA Input'!G4495,\"\"))","v":""},{"$f":"IF('TSA Input'!J4495=\"\",\"\",IF(OR('TSA Input'!J4495=\"Yes\",'TSA Input'!J4495=\"Contingent\"),'TSA Input'!F4495,\"\"))","v":""},"",{"$f":"IF('TSA Input'!J4495=\"\",\"\",IF(OR('TSA Input'!J4495=\"Yes\",'TSA Input'!J4495=\"Contingent\"),'TSA Input'!D4495,\"\"))","v":""},{"$f":"IF('TSA Input'!J4495=\"\",\"\",IF(OR('TSA Input'!J4495=\"Yes\",'TSA Input'!J4495=\"Contingent\"),'TSA Input'!G4495,\"\"))","v":""},{"$f":"IF('TSA Input'!J4495=\"\",\"\",IF(OR('TSA Input'!J4495=\"Yes\",'TSA Input'!J4495=\"Contingent\"),'TSA Input'!F4495,\"\"))","v":""},"","Required","Required"]
["",null,{"$f":"IF('TSA Input'!J4496=\"\",\"\",IF(OR('TSA Input'!J4496=\"Yes\",'TSA Input'!J4496=\"Contingent\"),'TSA Input'!B4496,\"Ineligible\"))","v":""},{"$f":"IF('TSA Input'!J4496=\"\",\"\",IF(OR('TSA Input'!J4496=\"Yes\",'TSA Input'!J4496=\"Contingent\"),'TSA Input'!I4496,\"\"))","v":""},{"$f":"IF('TSA Input'!J4496=\"\",\"\",IF(OR('TSA Input'!J4496=\"Yes\",'TSA Input'!J4496=\"Contingent\"),'TSA Input'!C4496,\"\"))","v":""},{"$f":"IF('TSA Input'!J4496=\"\",\"\",IF(OR('TSA Input'!J4496=\"Yes\",'TSA Input'!J4496=\"Contingent\"),'TSA Input'!D4496,\"\"))","v":""},{"$f":"IF('TSA Input'!J4496=\"\",\"\",IF(OR('TSA Input'!J4496=\"Yes\",'TSA Input'!J4496=\"Contingent\"),'TSA Input'!G4496,\"\"))","v":""},{"$f":"IF('TSA Input'!J4496=\"\",\"\",IF(OR('TSA Input'!J4496=\"Yes\",'TSA Input'!J4496=\"Contingent\"),'TSA Input'!F4496,\"\"))","v":""},"",{"$f":"IF('TSA Input'!J4496=\"\",\"\",IF(OR('TSA Input'!J4496=\"Yes\",'TSA Input'!J4496=\"Contingent\"),'TSA Input'!D4496,\"\"))","v":""},{"$f":"IF('TSA Input'!J4496=\"\",\"\",IF(OR('TSA Input'!J4496=\"Yes\",'TSA Input'!J4496=\"Contingent\"),'TSA Input'!G4496,\"\"))","v":""},{"$f":"IF('TSA Input'!J4496=\"\",\"\",IF(OR('TSA Input'!J4496=\"Yes\",'TSA Input'!J4496=\"Contingent\"),'TSA Input'!F4496,\"\"))","v":""},"","Required","Required"]
["",null,{"$f":"IF('TSA Input'!J4497=\"\",\"\",IF(OR('TSA Input'!J4497=\"Yes\",'TSA Input'!J4497=\"Contingent\"),'TSA Input'!B4497,\"Ineligible\"))","v":""},{"$f":"IF('TSA Input'!J4497=\"\",\"\",IF(OR('TSA Input'!J4497=\"Yes\",'TSA Input'!J4497=\"Contingent\"),'TSA Input'!I4497,\"\"))","v":""},{"$f":"IF('TSA Input'!J4497=\"\",\"\",IF(OR('TSA Input'!J4497=\"Yes\",'TSA Input'!J4497=\"Contingent\"),'TSA Input'!C4497,\"\"))","v":""},{"$f":"IF('TSA Input'!J4497=\"\",\"\",IF(OR('TSA Input'!J4497=\"Yes\",'TSA Input'!J4497=\"Contingent\"),'TSA Input'!D4497,\"\"))","v":""},{"$f":"IF('TSA Input'!J4497=\"\",\"\",IF(OR('TSA Input'!J4497=\"Yes\",'TSA Input'!J4497=\"Contingent\"),'TSA Input'!G4497,\"\"))","v":""},{"$f":"IF('TSA Input'!J4497=\"\",\"\",IF(OR('TSA Input'!J4497=\"Yes\",'TSA Input'!J4497=\"Contingent\"),'TSA Input'!F4497,\"\"))","v":""},"",{"$f":"IF('TSA Input'!J4497=\"\",\"\",IF(OR('TSA Input'!J4497=\"Yes\",'TSA Input'!J4497=\"Contingent\"),'TSA Input'!D4497,\"\"))","v":""},{"$f":"IF('TSA Input'!J4497=\"\",\"\",IF(OR('TSA Input'!J4497=\"Yes\",'TSA Input'!J4497=\"Contingent\"),'TSA Input'!G4497,\"\"))","v":""},{"$f":"IF('TSA Input'!J4497=\"\",\"\",IF(OR('TSA Input'!J4497=\"Yes\",'TSA Input'!J4497=\"Contingent\"),'TSA Input'!F4497,\"\"))","v":""},"","Required","Required"]
["",null,{"$f":"IF('TSA Input'!J4498=\"\",\"\",IF(OR('TSA Input'!J4498=\"Yes\",'TSA Input'!J4498=\"Contingent\"),'TSA Input'!B4498,\"Ineligible\"))","v":""},{"$f":"IF('TSA Input'!J4498=\"\",\"\",IF(OR('TSA Input'!J4498=\"Yes\",'TSA Input'!J4498=\"Contingent\"),'TSA Input'!I4498,\"\"))","v":""},{"$f":"IF('TSA Input'!J4498=\"\",\"\",IF(OR('TSA Input'!J4498=\"Yes\",'TSA Input'!J4498=\"Contingent\"),'TSA Input'!C4498,\"\"))","v":""},{"$f":"IF('TSA Input'!J4498=\"\",\"\",IF(OR('TSA Input'!J4498=\"Yes\",'TSA Input'!J4498=\"Contingent\"),'TSA Input'!D4498,\"\"))","v":""},{"$f":"IF('TSA Input'!J4498=\"\",\"\",IF(OR('TSA Input'!J4498=\"Yes\",'TSA Input'!J4498=\"Contingent\"),'TSA Input'!G4498,\"\"))","v":""},{"$f":"IF('TSA Input'!J4498=\"\",\"\",IF(OR('TSA Input'!J4498=\"Yes\",'TSA Input'!J4498=\"Contingent\"),'TSA Input'!F4498,\"\"))","v":""},"",{"$f":"IF('TSA Input'!J4498=\"\",\"\",IF(OR('TSA Input'!J4498=\"Yes\",'TSA Input'!J4498=\"Contingent\"),'TSA Input'!D4498,\"\"))","v":""},{"$f":"IF('TSA Input'!J4498=\"\",\"\",IF(OR('TSA Input'!J4498=\"Yes\",'TSA Input'!J4498=\"Contingent\"),'TSA Input'!G4498,\"\"))","v":""},{"$f":"IF('TSA Input'!J4498=\"\",\"\",IF(OR('TSA Input'!J4498=\"Yes\",'TSA Input'!J4498=\"Contingent\"),'TSA Input'!F4498,\"\"))","v":""},"","Required","Required"]
["",null,{"$f":"IF('TSA Input'!J4499=\"\",\"\",IF(OR('TSA Input'!J4499=\"Yes\",'TSA Input'!J4499=\"Contingent\"),'TSA Input'!B4499,\"Ineligible\"))","v":""},{"$f":"IF('TSA Input'!J4499=\"\",\"\",IF(OR('TSA Input'!J4499=\"Yes\",'TSA Input'!J4499=\"Contingent\"),'TSA Input'!I4499,\"\"))","v":""},{"$f":"IF('TSA Input'!J4499=\"\",\"\",IF(OR('TSA Input'!J4499=\"Yes\",'TSA Input'!J4499=\"Contingent\"),'TSA Input'!C4499,\"\"))","v":""},{"$f":"IF('TSA Input'!J4499=\"\",\"\",IF(OR('TSA Input'!J4499=\"Yes\",'TSA Input'!J4499=\"Contingent\"),'TSA Input'!D4499,\"\"))","v":""},{"$f":"IF('TSA Input'!J4499=\"\",\"\",IF(OR('TSA Input'!J4499=\"Yes\",'TSA Input'!J4499=\"Contingent\"),'TSA Input'!G4499,\"\"))","v":""},{"$f":"IF('TSA Input'!J4499=\"\",\"\",IF(OR('TSA Input'!J4499=\"Yes\",'TSA Input'!J4499=\"Contingent\"),'TSA Input'!F4499,\"\"))","v":""},"",{"$f":"IF('TSA Input'!J4499=\"\",\"\",IF(OR('TSA Input'!J4499=\"Yes\",'TSA Input'!J4499=\"Contingent\"),'TSA Input'!D4499,\"\"))","v":""},{"$f":"IF('TSA Input'!J4499=\"\",\"\",IF(OR('TSA Input'!J4499=\"Yes\",'TSA Input'!J4499=\"Contingent\"),'TSA Input'!G4499,\"\"))","v":""},{"$f":"IF('TSA Input'!J4499=\"\",\"\",IF(OR('TSA Input'!J4499=\"Yes\",'TSA Input'!J4499=\"Contingent\"),'TSA Input'!F4499,\"\"))","v":""},"","Required","Required"]
["",null,{"$f":"IF('TSA Input'!J4500=\"\",\"\",IF(OR('TSA Input'!J4500=\"Yes\",'TSA Input'!J4500=\"Contingent\"),'TSA Input'!B4500,\"Ineligible\"))","v":""},{"$f":"IF('TSA Input'!J4500=\"\",\"\",IF(OR('TSA Input'!J4500=\"Yes\",'TSA Input'!J4500=\"Contingent\"),'TSA Input'!I4500,\"\"))","v":""},{"$f":"IF('TSA Input'!J4500=\"\",\"\",IF(OR('TSA Input'!J4500=\"Yes\",'TSA Input'!J4500=\"Contingent\"),'TSA Input'!C4500,\"\"))","v":""},{"$f":"IF('TSA Input'!J4500=\"\",\"\",IF(OR('TSA Input'!J4500=\"Yes\",'TSA Input'!J4500=\"Contingent\"),'TSA Input'!D4500,\"\"))","v":""},{"$f":"IF('TSA Input'!J4500=\"\",\"\",IF(OR('TSA Input'!J4500=\"Yes\",'TSA Input'!J4500=\"Contingent\"),'TSA Input'!G4500,\"\"))","v":""},{"$f":"IF('TSA Input'!J4500=\"\",\"\",IF(OR('TSA Input'!J4500=\"Yes\",'TSA Input'!J4500=\"Contingent\"),'TSA Input'!F4500,\"\"))","v":""},"",{"$f":"IF('TSA Input'!J4500=\"\",\"\",IF(OR('TSA Input'!J4500=\"Yes\",'TSA Input'!J4500=\"Contingent\"),'TSA Input'!D4500,\"\"))","v":""},{"$f":"IF('TSA Input'!J4500=\"\",\"\",IF(OR('TSA Input'!J4500=\"Yes\",'TSA Input'!J4500=\"Contingent\"),'TSA Input'!G4500,\"\"))","v":""},{"$f":"IF('TSA Input'!J4500=\"\",\"\",IF(OR('TSA Input'!J4500=\"Yes\",'TSA Input'!J4500=\"Contingent\"),'TSA Input'!F4500,\"\"))","v":""},"","Required","Required"]
["",null,{"$f":"IF('TSA Input'!J4501=\"\",\"\",IF(OR('TSA Input'!J4501=\"Yes\",'TSA Input'!J4501=\"Contingent\"),'TSA Input'!B4501,\"Ineligible\"))","v":""},{"$f":"IF('TSA Input'!J4501=\"\",\"\",IF(OR('TSA Input'!J4501=\"Yes\",'TSA Input'!J4501=\"Contingent\"),'TSA Input'!I4501,\"\"))","v":""},{"$f":"IF('TSA Input'!J4501=\"\",\"\",IF(OR('TSA Input'!J4501=\"Yes\",'TSA Input'!J4501=\"Contingent\"),'TSA Input'!C4501,\"\"))","v":""},{"$f":"IF('TSA Input'!J4501=\"\",\"\",IF(OR('TSA Input'!J4501=\"Yes\",'TSA Input'!J4501=\"Contingent\"),'TSA Input'!D4501,\"\"))","v":""},{"$f":"IF('TSA Input'!J4501=\"\",\"\",IF(OR('TSA Input'!J4501=\"Yes\",'TSA Input'!J4501=\"Contingent\"),'TSA Input'!G4501,\"\"))","v":""},{"$f":"IF('TSA Input'!J4501=\"\",\"\",IF(OR('TSA Input'!J4501=\"Yes\",'TSA Input'!J4501=\"Contingent\"),'TSA Input'!F4501,\"\"))","v":""},"",{"$f":"IF('TSA Input'!J4501=\"\",\"\",IF(OR('TSA Input'!J4501=\"Yes\",'TSA Input'!J4501=\"Contingent\"),'TSA Input'!D4501,\"\"))","v":""},{"$f":"IF('TSA Input'!J4501=\"\",\"\",IF(OR('TSA Input'!J4501=\"Yes\",'TSA Input'!J4501=\"Contingent\"),'TSA Input'!G4501,\"\"))","v":""},{"$f":"IF('TSA Input'!J4501=\"\",\"\",IF(OR('TSA Input'!J4501=\"Yes\",'TSA Input'!J4501=\"Contingent\"),'TSA Input'!F4501,\"\"))","v":""},"","Required","Required"]
["",null,{"$f":"IF('TSA Input'!J4502=\"\",\"\",IF(OR('TSA Input'!J4502=\"Yes\",'TSA Input'!J4502=\"Contingent\"),'TSA Input'!B4502,\"Ineligible\"))","v":""},{"$f":"IF('TSA Input'!J4502=\"\",\"\",IF(OR('TSA Input'!J4502=\"Yes\",'TSA Input'!J4502=\"Contingent\"),'TSA Input'!I4502,\"\"))","v":""},{"$f":"IF('TSA Input'!J4502=\"\",\"\",IF(OR('TSA Input'!J4502=\"Yes\",'TSA Input'!J4502=\"Contingent\"),'TSA Input'!C4502,\"\"))","v":""},{"$f":"IF('TSA Input'!J4502=\"\",\"\",IF(OR('TSA Input'!J4502=\"Yes\",'TSA Input'!J4502=\"Contingent\"),'TSA Input'!D4502,\"\"))","v":""},{"$f":"IF('TSA Input'!J4502=\"\",\"\",IF(OR('TSA Input'!J4502=\"Yes\",'TSA Input'!J4502=\"Contingent\"),'TSA Input'!G4502,\"\"))","v":""},{"$f":"IF('TSA Input'!J4502=\"\",\"\",IF(OR('TSA Input'!J4502=\"Yes\",'TSA Input'!J4502=\"Contingent\"),'TSA Input'!F4502,\"\"))","v":""},"",{"$f":"IF('TSA Input'!J4502=\"\",\"\",IF(OR('TSA Input'!J4502=\"Yes\",'TSA Input'!J4502=\"Contingent\"),'TSA Input'!D4502,\"\"))","v":""},{"$f":"IF('TSA Input'!J4502=\"\",\"\",IF(OR('TSA Input'!J4502=\"Yes\",'TSA Input'!J4502=\"Contingent\"),'TSA Input'!G4502,\"\"))","v":""},{"$f":"IF('TSA Input'!J4502=\"\",\"\",IF(OR('TSA Input'!J4502=\"Yes\",'TSA Input'!J4502=\"Contingent\"),'TSA Input'!F4502,\"\"))","v":""},"","Required","Required"]
["",null,{"$f":"IF('TSA Input'!J4503=\"\",\"\",IF(OR('TSA Input'!J4503=\"Yes\",'TSA Input'!J4503=\"Contingent\"),'TSA Input'!B4503,\"Ineligible\"))","v":""},{"$f":"IF('TSA Input'!J4503=\"\",\"\",IF(OR('TSA Input'!J4503=\"Yes\",'TSA Input'!J4503=\"Contingent\"),'TSA Input'!I4503,\"\"))","v":""},{"$f":"IF('TSA Input'!J4503=\"\",\"\",IF(OR('TSA Input'!J4503=\"Yes\",'TSA Input'!J4503=\"Contingent\"),'TSA Input'!C4503,\"\"))","v":""},{"$f":"IF('TSA Input'!J4503=\"\",\"\",IF(OR('TSA Input'!J4503=\"Yes\",'TSA Input'!J4503=\"Contingent\"),'TSA Input'!D4503,\"\"))","v":""},{"$f":"IF('TSA Input'!J4503=\"\",\"\",IF(OR('TSA Input'!J4503=\"Yes\",'TSA Input'!J4503=\"Contingent\"),'TSA Input'!G4503,\"\"))","v":""},{"$f":"IF('TSA Input'!J4503=\"\",\"\",IF(OR('TSA Input'!J4503=\"Yes\",'TSA Input'!J4503=\"Contingent\"),'TSA Input'!F4503,\"\"))","v":""},"",{"$f":"IF('TSA Input'!J4503=\"\",\"\",IF(OR('TSA Input'!J4503=\"Yes\",'TSA Input'!J4503=\"Contingent\"),'TSA Input'!D4503,\"\"))","v":""},{"$f":"IF('TSA Input'!J4503=\"\",\"\",IF(OR('TSA Input'!J4503=\"Yes\",'TSA Input'!J4503=\"Contingent\"),'TSA Input'!G4503,\"\"))","v":""},{"$f":"IF('TSA Input'!J4503=\"\",\"\",IF(OR('TSA Input'!J4503=\"Yes\",'TSA Input'!J4503=\"Contingent\"),'TSA Input'!F4503,\"\"))","v":""},"","Required","Required"]
["",null,{"$f":"IF('TSA Input'!J4504=\"\",\"\",IF(OR('TSA Input'!J4504=\"Yes\",'TSA Input'!J4504=\"Contingent\"),'TSA Input'!B4504,\"Ineligible\"))","v":""},{"$f":"IF('TSA Input'!J4504=\"\",\"\",IF(OR('TSA Input'!J4504=\"Yes\",'TSA Input'!J4504=\"Contingent\"),'TSA Input'!I4504,\"\"))","v":""},{"$f":"IF('TSA Input'!J4504=\"\",\"\",IF(OR('TSA Input'!J4504=\"Yes\",'TSA Input'!J4504=\"Contingent\"),'TSA Input'!C4504,\"\"))","v":""},{"$f":"IF('TSA Input'!J4504=\"\",\"\",IF(OR('TSA Input'!J4504=\"Yes\",'TSA Input'!J4504=\"Contingent\"),'TSA Input'!D4504,\"\"))","v":""},{"$f":"IF('TSA Input'!J4504=\"\",\"\",IF(OR('TSA Input'!J4504=\"Yes\",'TSA Input'!J4504=\"Contingent\"),'TSA Input'!G4504,\"\"))","v":""},{"$f":"IF('TSA Input'!J4504=\"\",\"\",IF(OR('TSA Input'!J4504=\"Yes\",'TSA Input'!J4504=\"Contingent\"),'TSA Input'!F4504,\"\"))","v":""},"",{"$f":"IF('TSA Input'!J4504=\"\",\"\",IF(OR('TSA Input'!J4504=\"Yes\",'TSA Input'!J4504=\"Contingent\"),'TSA Input'!D4504,\"\"))","v":""},{"$f":"IF('TSA Input'!J4504=\"\",\"\",IF(OR('TSA Input'!J4504=\"Yes\",'TSA Input'!J4504=\"Contingent\"),'TSA Input'!G4504,\"\"))","v":""},{"$f":"IF('TSA Input'!J4504=\"\",\"\",IF(OR('TSA Input'!J4504=\"Yes\",'TSA Input'!J4504=\"Contingent\"),'TSA Input'!F4504,\"\"))","v":""},"","Required","Required"]
["",null,{"$f":"IF('TSA Input'!J4505=\"\",\"\",IF(OR('TSA Input'!J4505=\"Yes\",'TSA Input'!J4505=\"Contingent\"),'TSA Input'!B4505,\"Ineligible\"))","v":""},{"$f":"IF('TSA Input'!J4505=\"\",\"\",IF(OR('TSA Input'!J4505=\"Yes\",'TSA Input'!J4505=\"Contingent\"),'TSA Input'!I4505,\"\"))","v":""},{"$f":"IF('TSA Input'!J4505=\"\",\"\",IF(OR('TSA Input'!J4505=\"Yes\",'TSA Input'!J4505=\"Contingent\"),'TSA Input'!C4505,\"\"))","v":""},{"$f":"IF('TSA Input'!J4505=\"\",\"\",IF(OR('TSA Input'!J4505=\"Yes\",'TSA Input'!J4505=\"Contingent\"),'TSA Input'!D4505,\"\"))","v":""},{"$f":"IF('TSA Input'!J4505=\"\",\"\",IF(OR('TSA Input'!J4505=\"Yes\",'TSA Input'!J4505=\"Contingent\"),'TSA Input'!G4505,\"\"))","v":""},{"$f":"IF('TSA Input'!J4505=\"\",\"\",IF(OR('TSA Input'!J4505=\"Yes\",'TSA Input'!J4505=\"Contingent\"),'TSA Input'!F4505,\"\"))","v":""},"",{"$f":"IF('TSA Input'!J4505=\"\",\"\",IF(OR('TSA Input'!J4505=\"Yes\",'TSA Input'!J4505=\"Contingent\"),'TSA Input'!D4505,\"\"))","v":""},{"$f":"IF('TSA Input'!J4505=\"\",\"\",IF(OR('TSA Input'!J4505=\"Yes\",'TSA Input'!J4505=\"Contingent\"),'TSA Input'!G4505,\"\"))","v":""},{"$f":"IF('TSA Input'!J4505=\"\",\"\",IF(OR('TSA Input'!J4505=\"Yes\",'TSA Input'!J4505=\"Contingent\"),'TSA Input'!F4505,\"\"))","v":""},"","Required","Required"]
["",null,{"$f":"IF('TSA Input'!J4506=\"\",\"\",IF(OR('TSA Input'!J4506=\"Yes\",'TSA Input'!J4506=\"Contingent\"),'TSA Input'!B4506,\"Ineligible\"))","v":""},{"$f":"IF('TSA Input'!J4506=\"\",\"\",IF(OR('TSA Input'!J4506=\"Yes\",'TSA Input'!J4506=\"Contingent\"),'TSA Input'!I4506,\"\"))","v":""},{"$f":"IF('TSA Input'!J4506=\"\",\"\",IF(OR('TSA Input'!J4506=\"Yes\",'TSA Input'!J4506=\"Contingent\"),'TSA Input'!C4506,\"\"))","v":""},{"$f":"IF('TSA Input'!J4506=\"\",\"\",IF(OR('TSA Input'!J4506=\"Yes\",'TSA Input'!J4506=\"Contingent\"),'TSA Input'!D4506,\"\"))","v":""},{"$f":"IF('TSA Input'!J4506=\"\",\"\",IF(OR('TSA Input'!J4506=\"Yes\",'TSA Input'!J4506=\"Contingent\"),'TSA Input'!G4506,\"\"))","v":""},{"$f":"IF('TSA Input'!J4506=\"\",\"\",IF(OR('TSA Input'!J4506=\"Yes\",'TSA Input'!J4506=\"Contingent\"),'TSA Input'!F4506,\"\"))","v":""},"",{"$f":"IF('TSA Input'!J4506=\"\",\"\",IF(OR('TSA Input'!J4506=\"Yes\",'TSA Input'!J4506=\"Contingent\"),'TSA Input'!D4506,\"\"))","v":""},{"$f":"IF('TSA Input'!J4506=\"\",\"\",IF(OR('TSA Input'!J4506=\"Yes\",'TSA Input'!J4506=\"Contingent\"),'TSA Input'!G4506,\"\"))","v":""},{"$f":"IF('TSA Input'!J4506=\"\",\"\",IF(OR('TSA Input'!J4506=\"Yes\",'TSA Input'!J4506=\"Contingent\"),'TSA Input'!F4506,\"\"))","v":""},"","Required","Required"]
["",null,{"$f":"IF('TSA Input'!J4507=\"\",\"\",IF(OR('TSA Input'!J4507=\"Yes\",'TSA Input'!J4507=\"Contingent\"),'TSA Input'!B4507,\"Ineligible\"))","v":""},{"$f":"IF('TSA Input'!J4507=\"\",\"\",IF(OR('TSA Input'!J4507=\"Yes\",'TSA Input'!J4507=\"Contingent\"),'TSA Input'!I4507,\"\"))","v":""},{"$f":"IF('TSA Input'!J4507=\"\",\"\",IF(OR('TSA Input'!J4507=\"Yes\",'TSA Input'!J4507=\"Contingent\"),'TSA Input'!C4507,\"\"))","v":""},{"$f":"IF('TSA Input'!J4507=\"\",\"\",IF(OR('TSA Input'!J4507=\"Yes\",'TSA Input'!J4507=\"Contingent\"),'TSA Input'!D4507,\"\"))","v":""},{"$f":"IF('TSA Input'!J4507=\"\",\"\",IF(OR('TSA Input'!J4507=\"Yes\",'TSA Input'!J4507=\"Contingent\"),'TSA Input'!G4507,\"\"))","v":""},{"$f":"IF('TSA Input'!J4507=\"\",\"\",IF(OR('TSA Input'!J4507=\"Yes\",'TSA Input'!J4507=\"Contingent\"),'TSA Input'!F4507,\"\"))","v":""},"",{"$f":"IF('TSA Input'!J4507=\"\",\"\",IF(OR('TSA Input'!J4507=\"Yes\",'TSA Input'!J4507=\"Contingent\"),'TSA Input'!D4507,\"\"))","v":""},{"$f":"IF('TSA Input'!J4507=\"\",\"\",IF(OR('TSA Input'!J4507=\"Yes\",'TSA Input'!J4507=\"Contingent\"),'TSA Input'!G4507,\"\"))","v":""},{"$f":"IF('TSA Input'!J4507=\"\",\"\",IF(OR('TSA Input'!J4507=\"Yes\",'TSA Input'!J4507=\"Contingent\"),'TSA Input'!F4507,\"\"))","v":""},"","Required","Required"]
["",null,{"$f":"IF('TSA Input'!J4508=\"\",\"\",IF(OR('TSA Input'!J4508=\"Yes\",'TSA Input'!J4508=\"Contingent\"),'TSA Input'!B4508,\"Ineligible\"))","v":""},{"$f":"IF('TSA Input'!J4508=\"\",\"\",IF(OR('TSA Input'!J4508=\"Yes\",'TSA Input'!J4508=\"Contingent\"),'TSA Input'!I4508,\"\"))","v":""},{"$f":"IF('TSA Input'!J4508=\"\",\"\",IF(OR('TSA Input'!J4508=\"Yes\",'TSA Input'!J4508=\"Contingent\"),'TSA Input'!C4508,\"\"))","v":""},{"$f":"IF('TSA Input'!J4508=\"\",\"\",IF(OR('TSA Input'!J4508=\"Yes\",'TSA Input'!J4508=\"Contingent\"),'TSA Input'!D4508,\"\"))","v":""},{"$f":"IF('TSA Input'!J4508=\"\",\"\",IF(OR('TSA Input'!J4508=\"Yes\",'TSA Input'!J4508=\"Contingent\"),'TSA Input'!G4508,\"\"))","v":""},{"$f":"IF('TSA Input'!J4508=\"\",\"\",IF(OR('TSA Input'!J4508=\"Yes\",'TSA Input'!J4508=\"Contingent\"),'TSA Input'!F4508,\"\"))","v":""},"",{"$f":"IF('TSA Input'!J4508=\"\",\"\",IF(OR('TSA Input'!J4508=\"Yes\",'TSA Input'!J4508=\"Contingent\"),'TSA Input'!D4508,\"\"))","v":""},{"$f":"IF('TSA Input'!J4508=\"\",\"\",IF(OR('TSA Input'!J4508=\"Yes\",'TSA Input'!J4508=\"Contingent\"),'TSA Input'!G4508,\"\"))","v":""},{"$f":"IF('TSA Input'!J4508=\"\",\"\",IF(OR('TSA Input'!J4508=\"Yes\",'TSA Input'!J4508=\"Contingent\"),'TSA Input'!F4508,\"\"))","v":""},"","Required","Required"]
["",null,{"$f":"IF('TSA Input'!J4509=\"\",\"\",IF(OR('TSA Input'!J4509=\"Yes\",'TSA Input'!J4509=\"Contingent\"),'TSA Input'!B4509,\"Ineligible\"))","v":""},{"$f":"IF('TSA Input'!J4509=\"\",\"\",IF(OR('TSA Input'!J4509=\"Yes\",'TSA Input'!J4509=\"Contingent\"),'TSA Input'!I4509,\"\"))","v":""},{"$f":"IF('TSA Input'!J4509=\"\",\"\",IF(OR('TSA Input'!J4509=\"Yes\",'TSA Input'!J4509=\"Contingent\"),'TSA Input'!C4509,\"\"))","v":""},{"$f":"IF('TSA Input'!J4509=\"\",\"\",IF(OR('TSA Input'!J4509=\"Yes\",'TSA Input'!J4509=\"Contingent\"),'TSA Input'!D4509,\"\"))","v":""},{"$f":"IF('TSA Input'!J4509=\"\",\"\",IF(OR('TSA Input'!J4509=\"Yes\",'TSA Input'!J4509=\"Contingent\"),'TSA Input'!G4509,\"\"))","v":""},{"$f":"IF('TSA Input'!J4509=\"\",\"\",IF(OR('TSA Input'!J4509=\"Yes\",'TSA Input'!J4509=\"Contingent\"),'TSA Input'!F4509,\"\"))","v":""},"",{"$f":"IF('TSA Input'!J4509=\"\",\"\",IF(OR('TSA Input'!J4509=\"Yes\",'TSA Input'!J4509=\"Contingent\"),'TSA Input'!D4509,\"\"))","v":""},{"$f":"IF('TSA Input'!J4509=\"\",\"\",IF(OR('TSA Input'!J4509=\"Yes\",'TSA Input'!J4509=\"Contingent\"),'TSA Input'!G4509,\"\"))","v":""},{"$f":"IF('TSA Input'!J4509=\"\",\"\",IF(OR('TSA Input'!J4509=\"Yes\",'TSA Input'!J4509=\"Contingent\"),'TSA Input'!F4509,\"\"))","v":""},"","Required","Required"]
["",null,{"$f":"IF('TSA Input'!J4510=\"\",\"\",IF(OR('TSA Input'!J4510=\"Yes\",'TSA Input'!J4510=\"Contingent\"),'TSA Input'!B4510,\"Ineligible\"))","v":""},{"$f":"IF('TSA Input'!J4510=\"\",\"\",IF(OR('TSA Input'!J4510=\"Yes\",'TSA Input'!J4510=\"Contingent\"),'TSA Input'!I4510,\"\"))","v":""},{"$f":"IF('TSA Input'!J4510=\"\",\"\",IF(OR('TSA Input'!J4510=\"Yes\",'TSA Input'!J4510=\"Contingent\"),'TSA Input'!C4510,\"\"))","v":""},{"$f":"IF('TSA Input'!J4510=\"\",\"\",IF(OR('TSA Input'!J4510=\"Yes\",'TSA Input'!J4510=\"Contingent\"),'TSA Input'!D4510,\"\"))","v":""},{"$f":"IF('TSA Input'!J4510=\"\",\"\",IF(OR('TSA Input'!J4510=\"Yes\",'TSA Input'!J4510=\"Contingent\"),'TSA Input'!G4510,\"\"))","v":""},{"$f":"IF('TSA Input'!J4510=\"\",\"\",IF(OR('TSA Input'!J4510=\"Yes\",'TSA Input'!J4510=\"Contingent\"),'TSA Input'!F4510,\"\"))","v":""},"",{"$f":"IF('TSA Input'!J4510=\"\",\"\",IF(OR('TSA Input'!J4510=\"Yes\",'TSA Input'!J4510=\"Contingent\"),'TSA Input'!D4510,\"\"))","v":""},{"$f":"IF('TSA Input'!J4510=\"\",\"\",IF(OR('TSA Input'!J4510=\"Yes\",'TSA Input'!J4510=\"Contingent\"),'TSA Input'!G4510,\"\"))","v":""},{"$f":"IF('TSA Input'!J4510=\"\",\"\",IF(OR('TSA Input'!J4510=\"Yes\",'TSA Input'!J4510=\"Contingent\"),'TSA Input'!F4510,\"\"))","v":""},"","Required","Required"]
["",null,{"$f":"IF('TSA Input'!J4511=\"\",\"\",IF(OR('TSA Input'!J4511=\"Yes\",'TSA Input'!J4511=\"Contingent\"),'TSA Input'!B4511,\"Ineligible\"))","v":""},{"$f":"IF('TSA Input'!J4511=\"\",\"\",IF(OR('TSA Input'!J4511=\"Yes\",'TSA Input'!J4511=\"Contingent\"),'TSA Input'!I4511,\"\"))","v":""},{"$f":"IF('TSA Input'!J4511=\"\",\"\",IF(OR('TSA Input'!J4511=\"Yes\",'TSA Input'!J4511=\"Contingent\"),'TSA Input'!C4511,\"\"))","v":""},{"$f":"IF('TSA Input'!J4511=\"\",\"\",IF(OR('TSA Input'!J4511=\"Yes\",'TSA Input'!J4511=\"Contingent\"),'TSA Input'!D4511,\"\"))","v":""},{"$f":"IF('TSA Input'!J4511=\"\",\"\",IF(OR('TSA Input'!J4511=\"Yes\",'TSA Input'!J4511=\"Contingent\"),'TSA Input'!G4511,\"\"))","v":""},{"$f":"IF('TSA Input'!J4511=\"\",\"\",IF(OR('TSA Input'!J4511=\"Yes\",'TSA Input'!J4511=\"Contingent\"),'TSA Input'!F4511,\"\"))","v":""},"",{"$f":"IF('TSA Input'!J4511=\"\",\"\",IF(OR('TSA Input'!J4511=\"Yes\",'TSA Input'!J4511=\"Contingent\"),'TSA Input'!D4511,\"\"))","v":""},{"$f":"IF('TSA Input'!J4511=\"\",\"\",IF(OR('TSA Input'!J4511=\"Yes\",'TSA Input'!J4511=\"Contingent\"),'TSA Input'!G4511,\"\"))","v":""},{"$f":"IF('TSA Input'!J4511=\"\",\"\",IF(OR('TSA Input'!J4511=\"Yes\",'TSA Input'!J4511=\"Contingent\"),'TSA Input'!F4511,\"\"))","v":""},"","Required","Required"]
["",null,{"$f":"IF('TSA Input'!J4512=\"\",\"\",IF(OR('TSA Input'!J4512=\"Yes\",'TSA Input'!J4512=\"Contingent\"),'TSA Input'!B4512,\"Ineligible\"))","v":""},{"$f":"IF('TSA Input'!J4512=\"\",\"\",IF(OR('TSA Input'!J4512=\"Yes\",'TSA Input'!J4512=\"Contingent\"),'TSA Input'!I4512,\"\"))","v":""},{"$f":"IF('TSA Input'!J4512=\"\",\"\",IF(OR('TSA Input'!J4512=\"Yes\",'TSA Input'!J4512=\"Contingent\"),'TSA Input'!C4512,\"\"))","v":""},{"$f":"IF('TSA Input'!J4512=\"\",\"\",IF(OR('TSA Input'!J4512=\"Yes\",'TSA Input'!J4512=\"Contingent\"),'TSA Input'!D4512,\"\"))","v":""},{"$f":"IF('TSA Input'!J4512=\"\",\"\",IF(OR('TSA Input'!J4512=\"Yes\",'TSA Input'!J4512=\"Contingent\"),'TSA Input'!G4512,\"\"))","v":""},{"$f":"IF('TSA Input'!J4512=\"\",\"\",IF(OR('TSA Input'!J4512=\"Yes\",'TSA Input'!J4512=\"Contingent\"),'TSA Input'!F4512,\"\"))","v":""},"",{"$f":"IF('TSA Input'!J4512=\"\",\"\",IF(OR('TSA Input'!J4512=\"Yes\",'TSA Input'!J4512=\"Contingent\"),'TSA Input'!D4512,\"\"))","v":""},{"$f":"IF('TSA Input'!J4512=\"\",\"\",IF(OR('TSA Input'!J4512=\"Yes\",'TSA Input'!J4512=\"Contingent\"),'TSA Input'!G4512,\"\"))","v":""},{"$f":"IF('TSA Input'!J4512=\"\",\"\",IF(OR('TSA Input'!J4512=\"Yes\",'TSA Input'!J4512=\"Contingent\"),'TSA Input'!F4512,\"\"))","v":""},"","Required","Required"]
["",null,{"$f":"IF('TSA Input'!J4513=\"\",\"\",IF(OR('TSA Input'!J4513=\"Yes\",'TSA Input'!J4513=\"Contingent\"),'TSA Input'!B4513,\"Ineligible\"))","v":""},{"$f":"IF('TSA Input'!J4513=\"\",\"\",IF(OR('TSA Input'!J4513=\"Yes\",'TSA Input'!J4513=\"Contingent\"),'TSA Input'!I4513,\"\"))","v":""},{"$f":"IF('TSA Input'!J4513=\"\",\"\",IF(OR('TSA Input'!J4513=\"Yes\",'TSA Input'!J4513=\"Contingent\"),'TSA Input'!C4513,\"\"))","v":""},{"$f":"IF('TSA Input'!J4513=\"\",\"\",IF(OR('TSA Input'!J4513=\"Yes\",'TSA Input'!J4513=\"Contingent\"),'TSA Input'!D4513,\"\"))","v":""},{"$f":"IF('TSA Input'!J4513=\"\",\"\",IF(OR('TSA Input'!J4513=\"Yes\",'TSA Input'!J4513=\"Contingent\"),'TSA Input'!G4513,\"\"))","v":""},{"$f":"IF('TSA Input'!J4513=\"\",\"\",IF(OR('TSA Input'!J4513=\"Yes\",'TSA Input'!J4513=\"Contingent\"),'TSA Input'!F4513,\"\"))","v":""},"",{"$f":"IF('TSA Input'!J4513=\"\",\"\",IF(OR('TSA Input'!J4513=\"Yes\",'TSA Input'!J4513=\"Contingent\"),'TSA Input'!D4513,\"\"))","v":""},{"$f":"IF('TSA Input'!J4513=\"\",\"\",IF(OR('TSA Input'!J4513=\"Yes\",'TSA Input'!J4513=\"Contingent\"),'TSA Input'!G4513,\"\"))","v":""},{"$f":"IF('TSA Input'!J4513=\"\",\"\",IF(OR('TSA Input'!J4513=\"Yes\",'TSA Input'!J4513=\"Contingent\"),'TSA Input'!F4513,\"\"))","v":""},"","Required","Required"]
["",null,{"$f":"IF('TSA Input'!J4514=\"\",\"\",IF(OR('TSA Input'!J4514=\"Yes\",'TSA Input'!J4514=\"Contingent\"),'TSA Input'!B4514,\"Ineligible\"))","v":""},{"$f":"IF('TSA Input'!J4514=\"\",\"\",IF(OR('TSA Input'!J4514=\"Yes\",'TSA Input'!J4514=\"Contingent\"),'TSA Input'!I4514,\"\"))","v":""},{"$f":"IF('TSA Input'!J4514=\"\",\"\",IF(OR('TSA Input'!J4514=\"Yes\",'TSA Input'!J4514=\"Contingent\"),'TSA Input'!C4514,\"\"))","v":""},{"$f":"IF('TSA Input'!J4514=\"\",\"\",IF(OR('TSA Input'!J4514=\"Yes\",'TSA Input'!J4514=\"Contingent\"),'TSA Input'!D4514,\"\"))","v":""},{"$f":"IF('TSA Input'!J4514=\"\",\"\",IF(OR('TSA Input'!J4514=\"Yes\",'TSA Input'!J4514=\"Contingent\"),'TSA Input'!G4514,\"\"))","v":""},{"$f":"IF('TSA Input'!J4514=\"\",\"\",IF(OR('TSA Input'!J4514=\"Yes\",'TSA Input'!J4514=\"Contingent\"),'TSA Input'!F4514,\"\"))","v":""},"",{"$f":"IF('TSA Input'!J4514=\"\",\"\",IF(OR('TSA Input'!J4514=\"Yes\",'TSA Input'!J4514=\"Contingent\"),'TSA Input'!D4514,\"\"))","v":""},{"$f":"IF('TSA Input'!J4514=\"\",\"\",IF(OR('TSA Input'!J4514=\"Yes\",'TSA Input'!J4514=\"Contingent\"),'TSA Input'!G4514,\"\"))","v":""},{"$f":"IF('TSA Input'!J4514=\"\",\"\",IF(OR('TSA Input'!J4514=\"Yes\",'TSA Input'!J4514=\"Contingent\"),'TSA Input'!F4514,\"\"))","v":""},"","Required","Required"]
["",null,{"$f":"IF('TSA Input'!J4515=\"\",\"\",IF(OR('TSA Input'!J4515=\"Yes\",'TSA Input'!J4515=\"Contingent\"),'TSA Input'!B4515,\"Ineligible\"))","v":""},{"$f":"IF('TSA Input'!J4515=\"\",\"\",IF(OR('TSA Input'!J4515=\"Yes\",'TSA Input'!J4515=\"Contingent\"),'TSA Input'!I4515,\"\"))","v":""},{"$f":"IF('TSA Input'!J4515=\"\",\"\",IF(OR('TSA Input'!J4515=\"Yes\",'TSA Input'!J4515=\"Contingent\"),'TSA Input'!C4515,\"\"))","v":""},{"$f":"IF('TSA Input'!J4515=\"\",\"\",IF(OR('TSA Input'!J4515=\"Yes\",'TSA Input'!J4515=\"Contingent\"),'TSA Input'!D4515,\"\"))","v":""},{"$f":"IF('TSA Input'!J4515=\"\",\"\",IF(OR('TSA Input'!J4515=\"Yes\",'TSA Input'!J4515=\"Contingent\"),'TSA Input'!G4515,\"\"))","v":""},{"$f":"IF('TSA Input'!J4515=\"\",\"\",IF(OR('TSA Input'!J4515=\"Yes\",'TSA Input'!J4515=\"Contingent\"),'TSA Input'!F4515,\"\"))","v":""},"",{"$f":"IF('TSA Input'!J4515=\"\",\"\",IF(OR('TSA Input'!J4515=\"Yes\",'TSA Input'!J4515=\"Contingent\"),'TSA Input'!D4515,\"\"))","v":""},{"$f":"IF('TSA Input'!J4515=\"\",\"\",IF(OR('TSA Input'!J4515=\"Yes\",'TSA Input'!J4515=\"Contingent\"),'TSA Input'!G4515,\"\"))","v":""},{"$f":"IF('TSA Input'!J4515=\"\",\"\",IF(OR('TSA Input'!J4515=\"Yes\",'TSA Input'!J4515=\"Contingent\"),'TSA Input'!F4515,\"\"))","v":""},"","Required","Required"]
["",null,{"$f":"IF('TSA Input'!J4516=\"\",\"\",IF(OR('TSA Input'!J4516=\"Yes\",'TSA Input'!J4516=\"Contingent\"),'TSA Input'!B4516,\"Ineligible\"))","v":""},{"$f":"IF('TSA Input'!J4516=\"\",\"\",IF(OR('TSA Input'!J4516=\"Yes\",'TSA Input'!J4516=\"Contingent\"),'TSA Input'!I4516,\"\"))","v":""},{"$f":"IF('TSA Input'!J4516=\"\",\"\",IF(OR('TSA Input'!J4516=\"Yes\",'TSA Input'!J4516=\"Contingent\"),'TSA Input'!C4516,\"\"))","v":""},{"$f":"IF('TSA Input'!J4516=\"\",\"\",IF(OR('TSA Input'!J4516=\"Yes\",'TSA Input'!J4516=\"Contingent\"),'TSA Input'!D4516,\"\"))","v":""},{"$f":"IF('TSA Input'!J4516=\"\",\"\",IF(OR('TSA Input'!J4516=\"Yes\",'TSA Input'!J4516=\"Contingent\"),'TSA Input'!G4516,\"\"))","v":""},{"$f":"IF('TSA Input'!J4516=\"\",\"\",IF(OR('TSA Input'!J4516=\"Yes\",'TSA Input'!J4516=\"Contingent\"),'TSA Input'!F4516,\"\"))","v":""},"",{"$f":"IF('TSA Input'!J4516=\"\",\"\",IF(OR('TSA Input'!J4516=\"Yes\",'TSA Input'!J4516=\"Contingent\"),'TSA Input'!D4516,\"\"))","v":""},{"$f":"IF('TSA Input'!J4516=\"\",\"\",IF(OR('TSA Input'!J4516=\"Yes\",'TSA Input'!J4516=\"Contingent\"),'TSA Input'!G4516,\"\"))","v":""},{"$f":"IF('TSA Input'!J4516=\"\",\"\",IF(OR('TSA Input'!J4516=\"Yes\",'TSA Input'!J4516=\"Contingent\"),'TSA Input'!F4516,\"\"))","v":""},"","Required","Required"]
["",null,{"$f":"IF('TSA Input'!J4517=\"\",\"\",IF(OR('TSA Input'!J4517=\"Yes\",'TSA Input'!J4517=\"Contingent\"),'TSA Input'!B4517,\"Ineligible\"))","v":""},{"$f":"IF('TSA Input'!J4517=\"\",\"\",IF(OR('TSA Input'!J4517=\"Yes\",'TSA Input'!J4517=\"Contingent\"),'TSA Input'!I4517,\"\"))","v":""},{"$f":"IF('TSA Input'!J4517=\"\",\"\",IF(OR('TSA Input'!J4517=\"Yes\",'TSA Input'!J4517=\"Contingent\"),'TSA Input'!C4517,\"\"))","v":""},{"$f":"IF('TSA Input'!J4517=\"\",\"\",IF(OR('TSA Input'!J4517=\"Yes\",'TSA Input'!J4517=\"Contingent\"),'TSA Input'!D4517,\"\"))","v":""},{"$f":"IF('TSA Input'!J4517=\"\",\"\",IF(OR('TSA Input'!J4517=\"Yes\",'TSA Input'!J4517=\"Contingent\"),'TSA Input'!G4517,\"\"))","v":""},{"$f":"IF('TSA Input'!J4517=\"\",\"\",IF(OR('TSA Input'!J4517=\"Yes\",'TSA Input'!J4517=\"Contingent\"),'TSA Input'!F4517,\"\"))","v":""},"",{"$f":"IF('TSA Input'!J4517=\"\",\"\",IF(OR('TSA Input'!J4517=\"Yes\",'TSA Input'!J4517=\"Contingent\"),'TSA Input'!D4517,\"\"))","v":""},{"$f":"IF('TSA Input'!J4517=\"\",\"\",IF(OR('TSA Input'!J4517=\"Yes\",'TSA Input'!J4517=\"Contingent\"),'TSA Input'!G4517,\"\"))","v":""},{"$f":"IF('TSA Input'!J4517=\"\",\"\",IF(OR('TSA Input'!J4517=\"Yes\",'TSA Input'!J4517=\"Contingent\"),'TSA Input'!F4517,\"\"))","v":""},"","Required","Required"]
["",null,{"$f":"IF('TSA Input'!J4518=\"\",\"\",IF(OR('TSA Input'!J4518=\"Yes\",'TSA Input'!J4518=\"Contingent\"),'TSA Input'!B4518,\"Ineligible\"))","v":""},{"$f":"IF('TSA Input'!J4518=\"\",\"\",IF(OR('TSA Input'!J4518=\"Yes\",'TSA Input'!J4518=\"Contingent\"),'TSA Input'!I4518,\"\"))","v":""},{"$f":"IF('TSA Input'!J4518=\"\",\"\",IF(OR('TSA Input'!J4518=\"Yes\",'TSA Input'!J4518=\"Contingent\"),'TSA Input'!C4518,\"\"))","v":""},{"$f":"IF('TSA Input'!J4518=\"\",\"\",IF(OR('TSA Input'!J4518=\"Yes\",'TSA Input'!J4518=\"Contingent\"),'TSA Input'!D4518,\"\"))","v":""},{"$f":"IF('TSA Input'!J4518=\"\",\"\",IF(OR('TSA Input'!J4518=\"Yes\",'TSA Input'!J4518=\"Contingent\"),'TSA Input'!G4518,\"\"))","v":""},{"$f":"IF('TSA Input'!J4518=\"\",\"\",IF(OR('TSA Input'!J4518=\"Yes\",'TSA Input'!J4518=\"Contingent\"),'TSA Input'!F4518,\"\"))","v":""},"",{"$f":"IF('TSA Input'!J4518=\"\",\"\",IF(OR('TSA Input'!J4518=\"Yes\",'TSA Input'!J4518=\"Contingent\"),'TSA Input'!D4518,\"\"))","v":""},{"$f":"IF('TSA Input'!J4518=\"\",\"\",IF(OR('TSA Input'!J4518=\"Yes\",'TSA Input'!J4518=\"Contingent\"),'TSA Input'!G4518,\"\"))","v":""},{"$f":"IF('TSA Input'!J4518=\"\",\"\",IF(OR('TSA Input'!J4518=\"Yes\",'TSA Input'!J4518=\"Contingent\"),'TSA Input'!F4518,\"\"))","v":""},"","Required","Required"]
["",null,{"$f":"IF('TSA Input'!J4519=\"\",\"\",IF(OR('TSA Input'!J4519=\"Yes\",'TSA Input'!J4519=\"Contingent\"),'TSA Input'!B4519,\"Ineligible\"))","v":""},{"$f":"IF('TSA Input'!J4519=\"\",\"\",IF(OR('TSA Input'!J4519=\"Yes\",'TSA Input'!J4519=\"Contingent\"),'TSA Input'!I4519,\"\"))","v":""},{"$f":"IF('TSA Input'!J4519=\"\",\"\",IF(OR('TSA Input'!J4519=\"Yes\",'TSA Input'!J4519=\"Contingent\"),'TSA Input'!C4519,\"\"))","v":""},{"$f":"IF('TSA Input'!J4519=\"\",\"\",IF(OR('TSA Input'!J4519=\"Yes\",'TSA Input'!J4519=\"Contingent\"),'TSA Input'!D4519,\"\"))","v":""},{"$f":"IF('TSA Input'!J4519=\"\",\"\",IF(OR('TSA Input'!J4519=\"Yes\",'TSA Input'!J4519=\"Contingent\"),'TSA Input'!G4519,\"\"))","v":""},{"$f":"IF('TSA Input'!J4519=\"\",\"\",IF(OR('TSA Input'!J4519=\"Yes\",'TSA Input'!J4519=\"Contingent\"),'TSA Input'!F4519,\"\"))","v":""},"",{"$f":"IF('TSA Input'!J4519=\"\",\"\",IF(OR('TSA Input'!J4519=\"Yes\",'TSA Input'!J4519=\"Contingent\"),'TSA Input'!D4519,\"\"))","v":""},{"$f":"IF('TSA Input'!J4519=\"\",\"\",IF(OR('TSA Input'!J4519=\"Yes\",'TSA Input'!J4519=\"Contingent\"),'TSA Input'!G4519,\"\"))","v":""},{"$f":"IF('TSA Input'!J4519=\"\",\"\",IF(OR('TSA Input'!J4519=\"Yes\",'TSA Input'!J4519=\"Contingent\"),'TSA Input'!F4519,\"\"))","v":""},"","Required","Required"]
["",null,{"$f":"IF('TSA Input'!J4520=\"\",\"\",IF(OR('TSA Input'!J4520=\"Yes\",'TSA Input'!J4520=\"Contingent\"),'TSA Input'!B4520,\"Ineligible\"))","v":""},{"$f":"IF('TSA Input'!J4520=\"\",\"\",IF(OR('TSA Input'!J4520=\"Yes\",'TSA Input'!J4520=\"Contingent\"),'TSA Input'!I4520,\"\"))","v":""},{"$f":"IF('TSA Input'!J4520=\"\",\"\",IF(OR('TSA Input'!J4520=\"Yes\",'TSA Input'!J4520=\"Contingent\"),'TSA Input'!C4520,\"\"))","v":""},{"$f":"IF('TSA Input'!J4520=\"\",\"\",IF(OR('TSA Input'!J4520=\"Yes\",'TSA Input'!J4520=\"Contingent\"),'TSA Input'!D4520,\"\"))","v":""},{"$f":"IF('TSA Input'!J4520=\"\",\"\",IF(OR('TSA Input'!J4520=\"Yes\",'TSA Input'!J4520=\"Contingent\"),'TSA Input'!G4520,\"\"))","v":""},{"$f":"IF('TSA Input'!J4520=\"\",\"\",IF(OR('TSA Input'!J4520=\"Yes\",'TSA Input'!J4520=\"Contingent\"),'TSA Input'!F4520,\"\"))","v":""},"",{"$f":"IF('TSA Input'!J4520=\"\",\"\",IF(OR('TSA Input'!J4520=\"Yes\",'TSA Input'!J4520=\"Contingent\"),'TSA Input'!D4520,\"\"))","v":""},{"$f":"IF('TSA Input'!J4520=\"\",\"\",IF(OR('TSA Input'!J4520=\"Yes\",'TSA Input'!J4520=\"Contingent\"),'TSA Input'!G4520,\"\"))","v":""},{"$f":"IF('TSA Input'!J4520=\"\",\"\",IF(OR('TSA Input'!J4520=\"Yes\",'TSA Input'!J4520=\"Contingent\"),'TSA Input'!F4520,\"\"))","v":""},"","Required","Required"]
["",null,{"$f":"IF('TSA Input'!J4521=\"\",\"\",IF(OR('TSA Input'!J4521=\"Yes\",'TSA Input'!J4521=\"Contingent\"),'TSA Input'!B4521,\"Ineligible\"))","v":""},{"$f":"IF('TSA Input'!J4521=\"\",\"\",IF(OR('TSA Input'!J4521=\"Yes\",'TSA Input'!J4521=\"Contingent\"),'TSA Input'!I4521,\"\"))","v":""},{"$f":"IF('TSA Input'!J4521=\"\",\"\",IF(OR('TSA Input'!J4521=\"Yes\",'TSA Input'!J4521=\"Contingent\"),'TSA Input'!C4521,\"\"))","v":""},{"$f":"IF('TSA Input'!J4521=\"\",\"\",IF(OR('TSA Input'!J4521=\"Yes\",'TSA Input'!J4521=\"Contingent\"),'TSA Input'!D4521,\"\"))","v":""},{"$f":"IF('TSA Input'!J4521=\"\",\"\",IF(OR('TSA Input'!J4521=\"Yes\",'TSA Input'!J4521=\"Contingent\"),'TSA Input'!G4521,\"\"))","v":""},{"$f":"IF('TSA Input'!J4521=\"\",\"\",IF(OR('TSA Input'!J4521=\"Yes\",'TSA Input'!J4521=\"Contingent\"),'TSA Input'!F4521,\"\"))","v":""},"",{"$f":"IF('TSA Input'!J4521=\"\",\"\",IF(OR('TSA Input'!J4521=\"Yes\",'TSA Input'!J4521=\"Contingent\"),'TSA Input'!D4521,\"\"))","v":""},{"$f":"IF('TSA Input'!J4521=\"\",\"\",IF(OR('TSA Input'!J4521=\"Yes\",'TSA Input'!J4521=\"Contingent\"),'TSA Input'!G4521,\"\"))","v":""},{"$f":"IF('TSA Input'!J4521=\"\",\"\",IF(OR('TSA Input'!J4521=\"Yes\",'TSA Input'!J4521=\"Contingent\"),'TSA Input'!F4521,\"\"))","v":""},"","Required","Required"]
["",null,{"$f":"IF('TSA Input'!J4522=\"\",\"\",IF(OR('TSA Input'!J4522=\"Yes\",'TSA Input'!J4522=\"Contingent\"),'TSA Input'!B4522,\"Ineligible\"))","v":""},{"$f":"IF('TSA Input'!J4522=\"\",\"\",IF(OR('TSA Input'!J4522=\"Yes\",'TSA Input'!J4522=\"Contingent\"),'TSA Input'!I4522,\"\"))","v":""},{"$f":"IF('TSA Input'!J4522=\"\",\"\",IF(OR('TSA Input'!J4522=\"Yes\",'TSA Input'!J4522=\"Contingent\"),'TSA Input'!C4522,\"\"))","v":""},{"$f":"IF('TSA Input'!J4522=\"\",\"\",IF(OR('TSA Input'!J4522=\"Yes\",'TSA Input'!J4522=\"Contingent\"),'TSA Input'!D4522,\"\"))","v":""},{"$f":"IF('TSA Input'!J4522=\"\",\"\",IF(OR('TSA Input'!J4522=\"Yes\",'TSA Input'!J4522=\"Contingent\"),'TSA Input'!G4522,\"\"))","v":""},{"$f":"IF('TSA Input'!J4522=\"\",\"\",IF(OR('TSA Input'!J4522=\"Yes\",'TSA Input'!J4522=\"Contingent\"),'TSA Input'!F4522,\"\"))","v":""},"",{"$f":"IF('TSA Input'!J4522=\"\",\"\",IF(OR('TSA Input'!J4522=\"Yes\",'TSA Input'!J4522=\"Contingent\"),'TSA Input'!D4522,\"\"))","v":""},{"$f":"IF('TSA Input'!J4522=\"\",\"\",IF(OR('TSA Input'!J4522=\"Yes\",'TSA Input'!J4522=\"Contingent\"),'TSA Input'!G4522,\"\"))","v":""},{"$f":"IF('TSA Input'!J4522=\"\",\"\",IF(OR('TSA Input'!J4522=\"Yes\",'TSA Input'!J4522=\"Contingent\"),'TSA Input'!F4522,\"\"))","v":""},"","Required","Required"]
["",null,{"$f":"IF('TSA Input'!J4523=\"\",\"\",IF(OR('TSA Input'!J4523=\"Yes\",'TSA Input'!J4523=\"Contingent\"),'TSA Input'!B4523,\"Ineligible\"))","v":""},{"$f":"IF('TSA Input'!J4523=\"\",\"\",IF(OR('TSA Input'!J4523=\"Yes\",'TSA Input'!J4523=\"Contingent\"),'TSA Input'!I4523,\"\"))","v":""},{"$f":"IF('TSA Input'!J4523=\"\",\"\",IF(OR('TSA Input'!J4523=\"Yes\",'TSA Input'!J4523=\"Contingent\"),'TSA Input'!C4523,\"\"))","v":""},{"$f":"IF('TSA Input'!J4523=\"\",\"\",IF(OR('TSA Input'!J4523=\"Yes\",'TSA Input'!J4523=\"Contingent\"),'TSA Input'!D4523,\"\"))","v":""},{"$f":"IF('TSA Input'!J4523=\"\",\"\",IF(OR('TSA Input'!J4523=\"Yes\",'TSA Input'!J4523=\"Contingent\"),'TSA Input'!G4523,\"\"))","v":""},{"$f":"IF('TSA Input'!J4523=\"\",\"\",IF(OR('TSA Input'!J4523=\"Yes\",'TSA Input'!J4523=\"Contingent\"),'TSA Input'!F4523,\"\"))","v":""},"",{"$f":"IF('TSA Input'!J4523=\"\",\"\",IF(OR('TSA Input'!J4523=\"Yes\",'TSA Input'!J4523=\"Contingent\"),'TSA Input'!D4523,\"\"))","v":""},{"$f":"IF('TSA Input'!J4523=\"\",\"\",IF(OR('TSA Input'!J4523=\"Yes\",'TSA Input'!J4523=\"Contingent\"),'TSA Input'!G4523,\"\"))","v":""},{"$f":"IF('TSA Input'!J4523=\"\",\"\",IF(OR('TSA Input'!J4523=\"Yes\",'TSA Input'!J4523=\"Contingent\"),'TSA Input'!F4523,\"\"))","v":""},"","Required","Required"]
["",null,{"$f":"IF('TSA Input'!J4524=\"\",\"\",IF(OR('TSA Input'!J4524=\"Yes\",'TSA Input'!J4524=\"Contingent\"),'TSA Input'!B4524,\"Ineligible\"))","v":""},{"$f":"IF('TSA Input'!J4524=\"\",\"\",IF(OR('TSA Input'!J4524=\"Yes\",'TSA Input'!J4524=\"Contingent\"),'TSA Input'!I4524,\"\"))","v":""},{"$f":"IF('TSA Input'!J4524=\"\",\"\",IF(OR('TSA Input'!J4524=\"Yes\",'TSA Input'!J4524=\"Contingent\"),'TSA Input'!C4524,\"\"))","v":""},{"$f":"IF('TSA Input'!J4524=\"\",\"\",IF(OR('TSA Input'!J4524=\"Yes\",'TSA Input'!J4524=\"Contingent\"),'TSA Input'!D4524,\"\"))","v":""},{"$f":"IF('TSA Input'!J4524=\"\",\"\",IF(OR('TSA Input'!J4524=\"Yes\",'TSA Input'!J4524=\"Contingent\"),'TSA Input'!G4524,\"\"))","v":""},{"$f":"IF('TSA Input'!J4524=\"\",\"\",IF(OR('TSA Input'!J4524=\"Yes\",'TSA Input'!J4524=\"Contingent\"),'TSA Input'!F4524,\"\"))","v":""},"",{"$f":"IF('TSA Input'!J4524=\"\",\"\",IF(OR('TSA Input'!J4524=\"Yes\",'TSA Input'!J4524=\"Contingent\"),'TSA Input'!D4524,\"\"))","v":""},{"$f":"IF('TSA Input'!J4524=\"\",\"\",IF(OR('TSA Input'!J4524=\"Yes\",'TSA Input'!J4524=\"Contingent\"),'TSA Input'!G4524,\"\"))","v":""},{"$f":"IF('TSA Input'!J4524=\"\",\"\",IF(OR('TSA Input'!J4524=\"Yes\",'TSA Input'!J4524=\"Contingent\"),'TSA Input'!F4524,\"\"))","v":""},"","Required","Required"]
["",null,{"$f":"IF('TSA Input'!J4525=\"\",\"\",IF(OR('TSA Input'!J4525=\"Yes\",'TSA Input'!J4525=\"Contingent\"),'TSA Input'!B4525,\"Ineligible\"))","v":""},{"$f":"IF('TSA Input'!J4525=\"\",\"\",IF(OR('TSA Input'!J4525=\"Yes\",'TSA Input'!J4525=\"Contingent\"),'TSA Input'!I4525,\"\"))","v":""},{"$f":"IF('TSA Input'!J4525=\"\",\"\",IF(OR('TSA Input'!J4525=\"Yes\",'TSA Input'!J4525=\"Contingent\"),'TSA Input'!C4525,\"\"))","v":""},{"$f":"IF('TSA Input'!J4525=\"\",\"\",IF(OR('TSA Input'!J4525=\"Yes\",'TSA Input'!J4525=\"Contingent\"),'TSA Input'!D4525,\"\"))","v":""},{"$f":"IF('TSA Input'!J4525=\"\",\"\",IF(OR('TSA Input'!J4525=\"Yes\",'TSA Input'!J4525=\"Contingent\"),'TSA Input'!G4525,\"\"))","v":""},{"$f":"IF('TSA Input'!J4525=\"\",\"\",IF(OR('TSA Input'!J4525=\"Yes\",'TSA Input'!J4525=\"Contingent\"),'TSA Input'!F4525,\"\"))","v":""},"",{"$f":"IF('TSA Input'!J4525=\"\",\"\",IF(OR('TSA Input'!J4525=\"Yes\",'TSA Input'!J4525=\"Contingent\"),'TSA Input'!D4525,\"\"))","v":""},{"$f":"IF('TSA Input'!J4525=\"\",\"\",IF(OR('TSA Input'!J4525=\"Yes\",'TSA Input'!J4525=\"Contingent\"),'TSA Input'!G4525,\"\"))","v":""},{"$f":"IF('TSA Input'!J4525=\"\",\"\",IF(OR('TSA Input'!J4525=\"Yes\",'TSA Input'!J4525=\"Contingent\"),'TSA Input'!F4525,\"\"))","v":""},"","Required","Required"]
["",null,{"$f":"IF('TSA Input'!J4526=\"\",\"\",IF(OR('TSA Input'!J4526=\"Yes\",'TSA Input'!J4526=\"Contingent\"),'TSA Input'!B4526,\"Ineligible\"))","v":""},{"$f":"IF('TSA Input'!J4526=\"\",\"\",IF(OR('TSA Input'!J4526=\"Yes\",'TSA Input'!J4526=\"Contingent\"),'TSA Input'!I4526,\"\"))","v":""},{"$f":"IF('TSA Input'!J4526=\"\",\"\",IF(OR('TSA Input'!J4526=\"Yes\",'TSA Input'!J4526=\"Contingent\"),'TSA Input'!C4526,\"\"))","v":""},{"$f":"IF('TSA Input'!J4526=\"\",\"\",IF(OR('TSA Input'!J4526=\"Yes\",'TSA Input'!J4526=\"Contingent\"),'TSA Input'!D4526,\"\"))","v":""},{"$f":"IF('TSA Input'!J4526=\"\",\"\",IF(OR('TSA Input'!J4526=\"Yes\",'TSA Input'!J4526=\"Contingent\"),'TSA Input'!G4526,\"\"))","v":""},{"$f":"IF('TSA Input'!J4526=\"\",\"\",IF(OR('TSA Input'!J4526=\"Yes\",'TSA Input'!J4526=\"Contingent\"),'TSA Input'!F4526,\"\"))","v":""},"",{"$f":"IF('TSA Input'!J4526=\"\",\"\",IF(OR('TSA Input'!J4526=\"Yes\",'TSA Input'!J4526=\"Contingent\"),'TSA Input'!D4526,\"\"))","v":""},{"$f":"IF('TSA Input'!J4526=\"\",\"\",IF(OR('TSA Input'!J4526=\"Yes\",'TSA Input'!J4526=\"Contingent\"),'TSA Input'!G4526,\"\"))","v":""},{"$f":"IF('TSA Input'!J4526=\"\",\"\",IF(OR('TSA Input'!J4526=\"Yes\",'TSA Input'!J4526=\"Contingent\"),'TSA Input'!F4526,\"\"))","v":""},"","Required","Required"]
["",null,{"$f":"IF('TSA Input'!J4527=\"\",\"\",IF(OR('TSA Input'!J4527=\"Yes\",'TSA Input'!J4527=\"Contingent\"),'TSA Input'!B4527,\"Ineligible\"))","v":""},{"$f":"IF('TSA Input'!J4527=\"\",\"\",IF(OR('TSA Input'!J4527=\"Yes\",'TSA Input'!J4527=\"Contingent\"),'TSA Input'!I4527,\"\"))","v":""},{"$f":"IF('TSA Input'!J4527=\"\",\"\",IF(OR('TSA Input'!J4527=\"Yes\",'TSA Input'!J4527=\"Contingent\"),'TSA Input'!C4527,\"\"))","v":""},{"$f":"IF('TSA Input'!J4527=\"\",\"\",IF(OR('TSA Input'!J4527=\"Yes\",'TSA Input'!J4527=\"Contingent\"),'TSA Input'!D4527,\"\"))","v":""},{"$f":"IF('TSA Input'!J4527=\"\",\"\",IF(OR('TSA Input'!J4527=\"Yes\",'TSA Input'!J4527=\"Contingent\"),'TSA Input'!G4527,\"\"))","v":""},{"$f":"IF('TSA Input'!J4527=\"\",\"\",IF(OR('TSA Input'!J4527=\"Yes\",'TSA Input'!J4527=\"Contingent\"),'TSA Input'!F4527,\"\"))","v":""},"",{"$f":"IF('TSA Input'!J4527=\"\",\"\",IF(OR('TSA Input'!J4527=\"Yes\",'TSA Input'!J4527=\"Contingent\"),'TSA Input'!D4527,\"\"))","v":""},{"$f":"IF('TSA Input'!J4527=\"\",\"\",IF(OR('TSA Input'!J4527=\"Yes\",'TSA Input'!J4527=\"Contingent\"),'TSA Input'!G4527,\"\"))","v":""},{"$f":"IF('TSA Input'!J4527=\"\",\"\",IF(OR('TSA Input'!J4527=\"Yes\",'TSA Input'!J4527=\"Contingent\"),'TSA Input'!F4527,\"\"))","v":""},"","Required","Required"]
["",null,{"$f":"IF('TSA Input'!J4528=\"\",\"\",IF(OR('TSA Input'!J4528=\"Yes\",'TSA Input'!J4528=\"Contingent\"),'TSA Input'!B4528,\"Ineligible\"))","v":""},{"$f":"IF('TSA Input'!J4528=\"\",\"\",IF(OR('TSA Input'!J4528=\"Yes\",'TSA Input'!J4528=\"Contingent\"),'TSA Input'!I4528,\"\"))","v":""},{"$f":"IF('TSA Input'!J4528=\"\",\"\",IF(OR('TSA Input'!J4528=\"Yes\",'TSA Input'!J4528=\"Contingent\"),'TSA Input'!C4528,\"\"))","v":""},{"$f":"IF('TSA Input'!J4528=\"\",\"\",IF(OR('TSA Input'!J4528=\"Yes\",'TSA Input'!J4528=\"Contingent\"),'TSA Input'!D4528,\"\"))","v":""},{"$f":"IF('TSA Input'!J4528=\"\",\"\",IF(OR('TSA Input'!J4528=\"Yes\",'TSA Input'!J4528=\"Contingent\"),'TSA Input'!G4528,\"\"))","v":""},{"$f":"IF('TSA Input'!J4528=\"\",\"\",IF(OR('TSA Input'!J4528=\"Yes\",'TSA Input'!J4528=\"Contingent\"),'TSA Input'!F4528,\"\"))","v":""},"",{"$f":"IF('TSA Input'!J4528=\"\",\"\",IF(OR('TSA Input'!J4528=\"Yes\",'TSA Input'!J4528=\"Contingent\"),'TSA Input'!D4528,\"\"))","v":""},{"$f":"IF('TSA Input'!J4528=\"\",\"\",IF(OR('TSA Input'!J4528=\"Yes\",'TSA Input'!J4528=\"Contingent\"),'TSA Input'!G4528,\"\"))","v":""},{"$f":"IF('TSA Input'!J4528=\"\",\"\",IF(OR('TSA Input'!J4528=\"Yes\",'TSA Input'!J4528=\"Contingent\"),'TSA Input'!F4528,\"\"))","v":""},"","Required","Required"]
["",null,{"$f":"IF('TSA Input'!J4529=\"\",\"\",IF(OR('TSA Input'!J4529=\"Yes\",'TSA Input'!J4529=\"Contingent\"),'TSA Input'!B4529,\"Ineligible\"))","v":""},{"$f":"IF('TSA Input'!J4529=\"\",\"\",IF(OR('TSA Input'!J4529=\"Yes\",'TSA Input'!J4529=\"Contingent\"),'TSA Input'!I4529,\"\"))","v":""},{"$f":"IF('TSA Input'!J4529=\"\",\"\",IF(OR('TSA Input'!J4529=\"Yes\",'TSA Input'!J4529=\"Contingent\"),'TSA Input'!C4529,\"\"))","v":""},{"$f":"IF('TSA Input'!J4529=\"\",\"\",IF(OR('TSA Input'!J4529=\"Yes\",'TSA Input'!J4529=\"Contingent\"),'TSA Input'!D4529,\"\"))","v":""},{"$f":"IF('TSA Input'!J4529=\"\",\"\",IF(OR('TSA Input'!J4529=\"Yes\",'TSA Input'!J4529=\"Contingent\"),'TSA Input'!G4529,\"\"))","v":""},{"$f":"IF('TSA Input'!J4529=\"\",\"\",IF(OR('TSA Input'!J4529=\"Yes\",'TSA Input'!J4529=\"Contingent\"),'TSA Input'!F4529,\"\"))","v":""},"",{"$f":"IF('TSA Input'!J4529=\"\",\"\",IF(OR('TSA Input'!J4529=\"Yes\",'TSA Input'!J4529=\"Contingent\"),'TSA Input'!D4529,\"\"))","v":""},{"$f":"IF('TSA Input'!J4529=\"\",\"\",IF(OR('TSA Input'!J4529=\"Yes\",'TSA Input'!J4529=\"Contingent\"),'TSA Input'!G4529,\"\"))","v":""},{"$f":"IF('TSA Input'!J4529=\"\",\"\",IF(OR('TSA Input'!J4529=\"Yes\",'TSA Input'!J4529=\"Contingent\"),'TSA Input'!F4529,\"\"))","v":""},"","Required","Required"]
["",null,{"$f":"IF('TSA Input'!J4530=\"\",\"\",IF(OR('TSA Input'!J4530=\"Yes\",'TSA Input'!J4530=\"Contingent\"),'TSA Input'!B4530,\"Ineligible\"))","v":""},{"$f":"IF('TSA Input'!J4530=\"\",\"\",IF(OR('TSA Input'!J4530=\"Yes\",'TSA Input'!J4530=\"Contingent\"),'TSA Input'!I4530,\"\"))","v":""},{"$f":"IF('TSA Input'!J4530=\"\",\"\",IF(OR('TSA Input'!J4530=\"Yes\",'TSA Input'!J4530=\"Contingent\"),'TSA Input'!C4530,\"\"))","v":""},{"$f":"IF('TSA Input'!J4530=\"\",\"\",IF(OR('TSA Input'!J4530=\"Yes\",'TSA Input'!J4530=\"Contingent\"),'TSA Input'!D4530,\"\"))","v":""},{"$f":"IF('TSA Input'!J4530=\"\",\"\",IF(OR('TSA Input'!J4530=\"Yes\",'TSA Input'!J4530=\"Contingent\"),'TSA Input'!G4530,\"\"))","v":""},{"$f":"IF('TSA Input'!J4530=\"\",\"\",IF(OR('TSA Input'!J4530=\"Yes\",'TSA Input'!J4530=\"Contingent\"),'TSA Input'!F4530,\"\"))","v":""},"",{"$f":"IF('TSA Input'!J4530=\"\",\"\",IF(OR('TSA Input'!J4530=\"Yes\",'TSA Input'!J4530=\"Contingent\"),'TSA Input'!D4530,\"\"))","v":""},{"$f":"IF('TSA Input'!J4530=\"\",\"\",IF(OR('TSA Input'!J4530=\"Yes\",'TSA Input'!J4530=\"Contingent\"),'TSA Input'!G4530,\"\"))","v":""},{"$f":"IF('TSA Input'!J4530=\"\",\"\",IF(OR('TSA Input'!J4530=\"Yes\",'TSA Input'!J4530=\"Contingent\"),'TSA Input'!F4530,\"\"))","v":""},"","Required","Required"]
["",null,{"$f":"IF('TSA Input'!J4531=\"\",\"\",IF(OR('TSA Input'!J4531=\"Yes\",'TSA Input'!J4531=\"Contingent\"),'TSA Input'!B4531,\"Ineligible\"))","v":""},{"$f":"IF('TSA Input'!J4531=\"\",\"\",IF(OR('TSA Input'!J4531=\"Yes\",'TSA Input'!J4531=\"Contingent\"),'TSA Input'!I4531,\"\"))","v":""},{"$f":"IF('TSA Input'!J4531=\"\",\"\",IF(OR('TSA Input'!J4531=\"Yes\",'TSA Input'!J4531=\"Contingent\"),'TSA Input'!C4531,\"\"))","v":""},{"$f":"IF('TSA Input'!J4531=\"\",\"\",IF(OR('TSA Input'!J4531=\"Yes\",'TSA Input'!J4531=\"Contingent\"),'TSA Input'!D4531,\"\"))","v":""},{"$f":"IF('TSA Input'!J4531=\"\",\"\",IF(OR('TSA Input'!J4531=\"Yes\",'TSA Input'!J4531=\"Contingent\"),'TSA Input'!G4531,\"\"))","v":""},{"$f":"IF('TSA Input'!J4531=\"\",\"\",IF(OR('TSA Input'!J4531=\"Yes\",'TSA Input'!J4531=\"Contingent\"),'TSA Input'!F4531,\"\"))","v":""},"",{"$f":"IF('TSA Input'!J4531=\"\",\"\",IF(OR('TSA Input'!J4531=\"Yes\",'TSA Input'!J4531=\"Contingent\"),'TSA Input'!D4531,\"\"))","v":""},{"$f":"IF('TSA Input'!J4531=\"\",\"\",IF(OR('TSA Input'!J4531=\"Yes\",'TSA Input'!J4531=\"Contingent\"),'TSA Input'!G4531,\"\"))","v":""},{"$f":"IF('TSA Input'!J4531=\"\",\"\",IF(OR('TSA Input'!J4531=\"Yes\",'TSA Input'!J4531=\"Contingent\"),'TSA Input'!F4531,\"\"))","v":""},"","Required","Required"]
["",null,{"$f":"IF('TSA Input'!J4532=\"\",\"\",IF(OR('TSA Input'!J4532=\"Yes\",'TSA Input'!J4532=\"Contingent\"),'TSA Input'!B4532,\"Ineligible\"))","v":""},{"$f":"IF('TSA Input'!J4532=\"\",\"\",IF(OR('TSA Input'!J4532=\"Yes\",'TSA Input'!J4532=\"Contingent\"),'TSA Input'!I4532,\"\"))","v":""},{"$f":"IF('TSA Input'!J4532=\"\",\"\",IF(OR('TSA Input'!J4532=\"Yes\",'TSA Input'!J4532=\"Contingent\"),'TSA Input'!C4532,\"\"))","v":""},{"$f":"IF('TSA Input'!J4532=\"\",\"\",IF(OR('TSA Input'!J4532=\"Yes\",'TSA Input'!J4532=\"Contingent\"),'TSA Input'!D4532,\"\"))","v":""},{"$f":"IF('TSA Input'!J4532=\"\",\"\",IF(OR('TSA Input'!J4532=\"Yes\",'TSA Input'!J4532=\"Contingent\"),'TSA Input'!G4532,\"\"))","v":""},{"$f":"IF('TSA Input'!J4532=\"\",\"\",IF(OR('TSA Input'!J4532=\"Yes\",'TSA Input'!J4532=\"Contingent\"),'TSA Input'!F4532,\"\"))","v":""},"",{"$f":"IF('TSA Input'!J4532=\"\",\"\",IF(OR('TSA Input'!J4532=\"Yes\",'TSA Input'!J4532=\"Contingent\"),'TSA Input'!D4532,\"\"))","v":""},{"$f":"IF('TSA Input'!J4532=\"\",\"\",IF(OR('TSA Input'!J4532=\"Yes\",'TSA Input'!J4532=\"Contingent\"),'TSA Input'!G4532,\"\"))","v":""},{"$f":"IF('TSA Input'!J4532=\"\",\"\",IF(OR('TSA Input'!J4532=\"Yes\",'TSA Input'!J4532=\"Contingent\"),'TSA Input'!F4532,\"\"))","v":""},"","Required","Required"]
["",null,{"$f":"IF('TSA Input'!J4533=\"\",\"\",IF(OR('TSA Input'!J4533=\"Yes\",'TSA Input'!J4533=\"Contingent\"),'TSA Input'!B4533,\"Ineligible\"))","v":""},{"$f":"IF('TSA Input'!J4533=\"\",\"\",IF(OR('TSA Input'!J4533=\"Yes\",'TSA Input'!J4533=\"Contingent\"),'TSA Input'!I4533,\"\"))","v":""},{"$f":"IF('TSA Input'!J4533=\"\",\"\",IF(OR('TSA Input'!J4533=\"Yes\",'TSA Input'!J4533=\"Contingent\"),'TSA Input'!C4533,\"\"))","v":""},{"$f":"IF('TSA Input'!J4533=\"\",\"\",IF(OR('TSA Input'!J4533=\"Yes\",'TSA Input'!J4533=\"Contingent\"),'TSA Input'!D4533,\"\"))","v":""},{"$f":"IF('TSA Input'!J4533=\"\",\"\",IF(OR('TSA Input'!J4533=\"Yes\",'TSA Input'!J4533=\"Contingent\"),'TSA Input'!G4533,\"\"))","v":""},{"$f":"IF('TSA Input'!J4533=\"\",\"\",IF(OR('TSA Input'!J4533=\"Yes\",'TSA Input'!J4533=\"Contingent\"),'TSA Input'!F4533,\"\"))","v":""},"",{"$f":"IF('TSA Input'!J4533=\"\",\"\",IF(OR('TSA Input'!J4533=\"Yes\",'TSA Input'!J4533=\"Contingent\"),'TSA Input'!D4533,\"\"))","v":""},{"$f":"IF('TSA Input'!J4533=\"\",\"\",IF(OR('TSA Input'!J4533=\"Yes\",'TSA Input'!J4533=\"Contingent\"),'TSA Input'!G4533,\"\"))","v":""},{"$f":"IF('TSA Input'!J4533=\"\",\"\",IF(OR('TSA Input'!J4533=\"Yes\",'TSA Input'!J4533=\"Contingent\"),'TSA Input'!F4533,\"\"))","v":""},"","Required","Required"]
["",null,{"$f":"IF('TSA Input'!J4534=\"\",\"\",IF(OR('TSA Input'!J4534=\"Yes\",'TSA Input'!J4534=\"Contingent\"),'TSA Input'!B4534,\"Ineligible\"))","v":""},{"$f":"IF('TSA Input'!J4534=\"\",\"\",IF(OR('TSA Input'!J4534=\"Yes\",'TSA Input'!J4534=\"Contingent\"),'TSA Input'!I4534,\"\"))","v":""},{"$f":"IF('TSA Input'!J4534=\"\",\"\",IF(OR('TSA Input'!J4534=\"Yes\",'TSA Input'!J4534=\"Contingent\"),'TSA Input'!C4534,\"\"))","v":""},{"$f":"IF('TSA Input'!J4534=\"\",\"\",IF(OR('TSA Input'!J4534=\"Yes\",'TSA Input'!J4534=\"Contingent\"),'TSA Input'!D4534,\"\"))","v":""},{"$f":"IF('TSA Input'!J4534=\"\",\"\",IF(OR('TSA Input'!J4534=\"Yes\",'TSA Input'!J4534=\"Contingent\"),'TSA Input'!G4534,\"\"))","v":""},{"$f":"IF('TSA Input'!J4534=\"\",\"\",IF(OR('TSA Input'!J4534=\"Yes\",'TSA Input'!J4534=\"Contingent\"),'TSA Input'!F4534,\"\"))","v":""},"",{"$f":"IF('TSA Input'!J4534=\"\",\"\",IF(OR('TSA Input'!J4534=\"Yes\",'TSA Input'!J4534=\"Contingent\"),'TSA Input'!D4534,\"\"))","v":""},{"$f":"IF('TSA Input'!J4534=\"\",\"\",IF(OR('TSA Input'!J4534=\"Yes\",'TSA Input'!J4534=\"Contingent\"),'TSA Input'!G4534,\"\"))","v":""},{"$f":"IF('TSA Input'!J4534=\"\",\"\",IF(OR('TSA Input'!J4534=\"Yes\",'TSA Input'!J4534=\"Contingent\"),'TSA Input'!F4534,\"\"))","v":""},"","Required","Required"]
["",null,{"$f":"IF('TSA Input'!J4535=\"\",\"\",IF(OR('TSA Input'!J4535=\"Yes\",'TSA Input'!J4535=\"Contingent\"),'TSA Input'!B4535,\"Ineligible\"))","v":""},{"$f":"IF('TSA Input'!J4535=\"\",\"\",IF(OR('TSA Input'!J4535=\"Yes\",'TSA Input'!J4535=\"Contingent\"),'TSA Input'!I4535,\"\"))","v":""},{"$f":"IF('TSA Input'!J4535=\"\",\"\",IF(OR('TSA Input'!J4535=\"Yes\",'TSA Input'!J4535=\"Contingent\"),'TSA Input'!C4535,\"\"))","v":""},{"$f":"IF('TSA Input'!J4535=\"\",\"\",IF(OR('TSA Input'!J4535=\"Yes\",'TSA Input'!J4535=\"Contingent\"),'TSA Input'!D4535,\"\"))","v":""},{"$f":"IF('TSA Input'!J4535=\"\",\"\",IF(OR('TSA Input'!J4535=\"Yes\",'TSA Input'!J4535=\"Contingent\"),'TSA Input'!G4535,\"\"))","v":""},{"$f":"IF('TSA Input'!J4535=\"\",\"\",IF(OR('TSA Input'!J4535=\"Yes\",'TSA Input'!J4535=\"Contingent\"),'TSA Input'!F4535,\"\"))","v":""},"",{"$f":"IF('TSA Input'!J4535=\"\",\"\",IF(OR('TSA Input'!J4535=\"Yes\",'TSA Input'!J4535=\"Contingent\"),'TSA Input'!D4535,\"\"))","v":""},{"$f":"IF('TSA Input'!J4535=\"\",\"\",IF(OR('TSA Input'!J4535=\"Yes\",'TSA Input'!J4535=\"Contingent\"),'TSA Input'!G4535,\"\"))","v":""},{"$f":"IF('TSA Input'!J4535=\"\",\"\",IF(OR('TSA Input'!J4535=\"Yes\",'TSA Input'!J4535=\"Contingent\"),'TSA Input'!F4535,\"\"))","v":""},"","Required","Required"]
["",null,{"$f":"IF('TSA Input'!J4536=\"\",\"\",IF(OR('TSA Input'!J4536=\"Yes\",'TSA Input'!J4536=\"Contingent\"),'TSA Input'!B4536,\"Ineligible\"))","v":""},{"$f":"IF('TSA Input'!J4536=\"\",\"\",IF(OR('TSA Input'!J4536=\"Yes\",'TSA Input'!J4536=\"Contingent\"),'TSA Input'!I4536,\"\"))","v":""},{"$f":"IF('TSA Input'!J4536=\"\",\"\",IF(OR('TSA Input'!J4536=\"Yes\",'TSA Input'!J4536=\"Contingent\"),'TSA Input'!C4536,\"\"))","v":""},{"$f":"IF('TSA Input'!J4536=\"\",\"\",IF(OR('TSA Input'!J4536=\"Yes\",'TSA Input'!J4536=\"Contingent\"),'TSA Input'!D4536,\"\"))","v":""},{"$f":"IF('TSA Input'!J4536=\"\",\"\",IF(OR('TSA Input'!J4536=\"Yes\",'TSA Input'!J4536=\"Contingent\"),'TSA Input'!G4536,\"\"))","v":""},{"$f":"IF('TSA Input'!J4536=\"\",\"\",IF(OR('TSA Input'!J4536=\"Yes\",'TSA Input'!J4536=\"Contingent\"),'TSA Input'!F4536,\"\"))","v":""},"",{"$f":"IF('TSA Input'!J4536=\"\",\"\",IF(OR('TSA Input'!J4536=\"Yes\",'TSA Input'!J4536=\"Contingent\"),'TSA Input'!D4536,\"\"))","v":""},{"$f":"IF('TSA Input'!J4536=\"\",\"\",IF(OR('TSA Input'!J4536=\"Yes\",'TSA Input'!J4536=\"Contingent\"),'TSA Input'!G4536,\"\"))","v":""},{"$f":"IF('TSA Input'!J4536=\"\",\"\",IF(OR('TSA Input'!J4536=\"Yes\",'TSA Input'!J4536=\"Contingent\"),'TSA Input'!F4536,\"\"))","v":""},"","Required","Required"]
["",null,{"$f":"IF('TSA Input'!J4537=\"\",\"\",IF(OR('TSA Input'!J4537=\"Yes\",'TSA Input'!J4537=\"Contingent\"),'TSA Input'!B4537,\"Ineligible\"))","v":""},{"$f":"IF('TSA Input'!J4537=\"\",\"\",IF(OR('TSA Input'!J4537=\"Yes\",'TSA Input'!J4537=\"Contingent\"),'TSA Input'!I4537,\"\"))","v":""},{"$f":"IF('TSA Input'!J4537=\"\",\"\",IF(OR('TSA Input'!J4537=\"Yes\",'TSA Input'!J4537=\"Contingent\"),'TSA Input'!C4537,\"\"))","v":""},{"$f":"IF('TSA Input'!J4537=\"\",\"\",IF(OR('TSA Input'!J4537=\"Yes\",'TSA Input'!J4537=\"Contingent\"),'TSA Input'!D4537,\"\"))","v":""},{"$f":"IF('TSA Input'!J4537=\"\",\"\",IF(OR('TSA Input'!J4537=\"Yes\",'TSA Input'!J4537=\"Contingent\"),'TSA Input'!G4537,\"\"))","v":""},{"$f":"IF('TSA Input'!J4537=\"\",\"\",IF(OR('TSA Input'!J4537=\"Yes\",'TSA Input'!J4537=\"Contingent\"),'TSA Input'!F4537,\"\"))","v":""},"",{"$f":"IF('TSA Input'!J4537=\"\",\"\",IF(OR('TSA Input'!J4537=\"Yes\",'TSA Input'!J4537=\"Contingent\"),'TSA Input'!D4537,\"\"))","v":""},{"$f":"IF('TSA Input'!J4537=\"\",\"\",IF(OR('TSA Input'!J4537=\"Yes\",'TSA Input'!J4537=\"Contingent\"),'TSA Input'!G4537,\"\"))","v":""},{"$f":"IF('TSA Input'!J4537=\"\",\"\",IF(OR('TSA Input'!J4537=\"Yes\",'TSA Input'!J4537=\"Contingent\"),'TSA Input'!F4537,\"\"))","v":""},"","Required","Required"]
["",null,{"$f":"IF('TSA Input'!J4538=\"\",\"\",IF(OR('TSA Input'!J4538=\"Yes\",'TSA Input'!J4538=\"Contingent\"),'TSA Input'!B4538,\"Ineligible\"))","v":""},{"$f":"IF('TSA Input'!J4538=\"\",\"\",IF(OR('TSA Input'!J4538=\"Yes\",'TSA Input'!J4538=\"Contingent\"),'TSA Input'!I4538,\"\"))","v":""},{"$f":"IF('TSA Input'!J4538=\"\",\"\",IF(OR('TSA Input'!J4538=\"Yes\",'TSA Input'!J4538=\"Contingent\"),'TSA Input'!C4538,\"\"))","v":""},{"$f":"IF('TSA Input'!J4538=\"\",\"\",IF(OR('TSA Input'!J4538=\"Yes\",'TSA Input'!J4538=\"Contingent\"),'TSA Input'!D4538,\"\"))","v":""},{"$f":"IF('TSA Input'!J4538=\"\",\"\",IF(OR('TSA Input'!J4538=\"Yes\",'TSA Input'!J4538=\"Contingent\"),'TSA Input'!G4538,\"\"))","v":""},{"$f":"IF('TSA Input'!J4538=\"\",\"\",IF(OR('TSA Input'!J4538=\"Yes\",'TSA Input'!J4538=\"Contingent\"),'TSA Input'!F4538,\"\"))","v":""},"",{"$f":"IF('TSA Input'!J4538=\"\",\"\",IF(OR('TSA Input'!J4538=\"Yes\",'TSA Input'!J4538=\"Contingent\"),'TSA Input'!D4538,\"\"))","v":""},{"$f":"IF('TSA Input'!J4538=\"\",\"\",IF(OR('TSA Input'!J4538=\"Yes\",'TSA Input'!J4538=\"Contingent\"),'TSA Input'!G4538,\"\"))","v":""},{"$f":"IF('TSA Input'!J4538=\"\",\"\",IF(OR('TSA Input'!J4538=\"Yes\",'TSA Input'!J4538=\"Contingent\"),'TSA Input'!F4538,\"\"))","v":""},"","Required","Required"]
["",null,{"$f":"IF('TSA Input'!J4539=\"\",\"\",IF(OR('TSA Input'!J4539=\"Yes\",'TSA Input'!J4539=\"Contingent\"),'TSA Input'!B4539,\"Ineligible\"))","v":""},{"$f":"IF('TSA Input'!J4539=\"\",\"\",IF(OR('TSA Input'!J4539=\"Yes\",'TSA Input'!J4539=\"Contingent\"),'TSA Input'!I4539,\"\"))","v":""},{"$f":"IF('TSA Input'!J4539=\"\",\"\",IF(OR('TSA Input'!J4539=\"Yes\",'TSA Input'!J4539=\"Contingent\"),'TSA Input'!C4539,\"\"))","v":""},{"$f":"IF('TSA Input'!J4539=\"\",\"\",IF(OR('TSA Input'!J4539=\"Yes\",'TSA Input'!J4539=\"Contingent\"),'TSA Input'!D4539,\"\"))","v":""},{"$f":"IF('TSA Input'!J4539=\"\",\"\",IF(OR('TSA Input'!J4539=\"Yes\",'TSA Input'!J4539=\"Contingent\"),'TSA Input'!G4539,\"\"))","v":""},{"$f":"IF('TSA Input'!J4539=\"\",\"\",IF(OR('TSA Input'!J4539=\"Yes\",'TSA Input'!J4539=\"Contingent\"),'TSA Input'!F4539,\"\"))","v":""},"",{"$f":"IF('TSA Input'!J4539=\"\",\"\",IF(OR('TSA Input'!J4539=\"Yes\",'TSA Input'!J4539=\"Contingent\"),'TSA Input'!D4539,\"\"))","v":""},{"$f":"IF('TSA Input'!J4539=\"\",\"\",IF(OR('TSA Input'!J4539=\"Yes\",'TSA Input'!J4539=\"Contingent\"),'TSA Input'!G4539,\"\"))","v":""},{"$f":"IF('TSA Input'!J4539=\"\",\"\",IF(OR('TSA Input'!J4539=\"Yes\",'TSA Input'!J4539=\"Contingent\"),'TSA Input'!F4539,\"\"))","v":""},"","Required","Required"]
["",null,{"$f":"IF('TSA Input'!J4540=\"\",\"\",IF(OR('TSA Input'!J4540=\"Yes\",'TSA Input'!J4540=\"Contingent\"),'TSA Input'!B4540,\"Ineligible\"))","v":""},{"$f":"IF('TSA Input'!J4540=\"\",\"\",IF(OR('TSA Input'!J4540=\"Yes\",'TSA Input'!J4540=\"Contingent\"),'TSA Input'!I4540,\"\"))","v":""},{"$f":"IF('TSA Input'!J4540=\"\",\"\",IF(OR('TSA Input'!J4540=\"Yes\",'TSA Input'!J4540=\"Contingent\"),'TSA Input'!C4540,\"\"))","v":""},{"$f":"IF('TSA Input'!J4540=\"\",\"\",IF(OR('TSA Input'!J4540=\"Yes\",'TSA Input'!J4540=\"Contingent\"),'TSA Input'!D4540,\"\"))","v":""},{"$f":"IF('TSA Input'!J4540=\"\",\"\",IF(OR('TSA Input'!J4540=\"Yes\",'TSA Input'!J4540=\"Contingent\"),'TSA Input'!G4540,\"\"))","v":""},{"$f":"IF('TSA Input'!J4540=\"\",\"\",IF(OR('TSA Input'!J4540=\"Yes\",'TSA Input'!J4540=\"Contingent\"),'TSA Input'!F4540,\"\"))","v":""},"",{"$f":"IF('TSA Input'!J4540=\"\",\"\",IF(OR('TSA Input'!J4540=\"Yes\",'TSA Input'!J4540=\"Contingent\"),'TSA Input'!D4540,\"\"))","v":""},{"$f":"IF('TSA Input'!J4540=\"\",\"\",IF(OR('TSA Input'!J4540=\"Yes\",'TSA Input'!J4540=\"Contingent\"),'TSA Input'!G4540,\"\"))","v":""},{"$f":"IF('TSA Input'!J4540=\"\",\"\",IF(OR('TSA Input'!J4540=\"Yes\",'TSA Input'!J4540=\"Contingent\"),'TSA Input'!F4540,\"\"))","v":""},"","Required","Required"]
["",null,{"$f":"IF('TSA Input'!J4541=\"\",\"\",IF(OR('TSA Input'!J4541=\"Yes\",'TSA Input'!J4541=\"Contingent\"),'TSA Input'!B4541,\"Ineligible\"))","v":""},{"$f":"IF('TSA Input'!J4541=\"\",\"\",IF(OR('TSA Input'!J4541=\"Yes\",'TSA Input'!J4541=\"Contingent\"),'TSA Input'!I4541,\"\"))","v":""},{"$f":"IF('TSA Input'!J4541=\"\",\"\",IF(OR('TSA Input'!J4541=\"Yes\",'TSA Input'!J4541=\"Contingent\"),'TSA Input'!C4541,\"\"))","v":""},{"$f":"IF('TSA Input'!J4541=\"\",\"\",IF(OR('TSA Input'!J4541=\"Yes\",'TSA Input'!J4541=\"Contingent\"),'TSA Input'!D4541,\"\"))","v":""},{"$f":"IF('TSA Input'!J4541=\"\",\"\",IF(OR('TSA Input'!J4541=\"Yes\",'TSA Input'!J4541=\"Contingent\"),'TSA Input'!G4541,\"\"))","v":""},{"$f":"IF('TSA Input'!J4541=\"\",\"\",IF(OR('TSA Input'!J4541=\"Yes\",'TSA Input'!J4541=\"Contingent\"),'TSA Input'!F4541,\"\"))","v":""},"",{"$f":"IF('TSA Input'!J4541=\"\",\"\",IF(OR('TSA Input'!J4541=\"Yes\",'TSA Input'!J4541=\"Contingent\"),'TSA Input'!D4541,\"\"))","v":""},{"$f":"IF('TSA Input'!J4541=\"\",\"\",IF(OR('TSA Input'!J4541=\"Yes\",'TSA Input'!J4541=\"Contingent\"),'TSA Input'!G4541,\"\"))","v":""},{"$f":"IF('TSA Input'!J4541=\"\",\"\",IF(OR('TSA Input'!J4541=\"Yes\",'TSA Input'!J4541=\"Contingent\"),'TSA Input'!F4541,\"\"))","v":""},"","Required","Required"]
["",null,{"$f":"IF('TSA Input'!J4542=\"\",\"\",IF(OR('TSA Input'!J4542=\"Yes\",'TSA Input'!J4542=\"Contingent\"),'TSA Input'!B4542,\"Ineligible\"))","v":""},{"$f":"IF('TSA Input'!J4542=\"\",\"\",IF(OR('TSA Input'!J4542=\"Yes\",'TSA Input'!J4542=\"Contingent\"),'TSA Input'!I4542,\"\"))","v":""},{"$f":"IF('TSA Input'!J4542=\"\",\"\",IF(OR('TSA Input'!J4542=\"Yes\",'TSA Input'!J4542=\"Contingent\"),'TSA Input'!C4542,\"\"))","v":""},{"$f":"IF('TSA Input'!J4542=\"\",\"\",IF(OR('TSA Input'!J4542=\"Yes\",'TSA Input'!J4542=\"Contingent\"),'TSA Input'!D4542,\"\"))","v":""},{"$f":"IF('TSA Input'!J4542=\"\",\"\",IF(OR('TSA Input'!J4542=\"Yes\",'TSA Input'!J4542=\"Contingent\"),'TSA Input'!G4542,\"\"))","v":""},{"$f":"IF('TSA Input'!J4542=\"\",\"\",IF(OR('TSA Input'!J4542=\"Yes\",'TSA Input'!J4542=\"Contingent\"),'TSA Input'!F4542,\"\"))","v":""},"",{"$f":"IF('TSA Input'!J4542=\"\",\"\",IF(OR('TSA Input'!J4542=\"Yes\",'TSA Input'!J4542=\"Contingent\"),'TSA Input'!D4542,\"\"))","v":""},{"$f":"IF('TSA Input'!J4542=\"\",\"\",IF(OR('TSA Input'!J4542=\"Yes\",'TSA Input'!J4542=\"Contingent\"),'TSA Input'!G4542,\"\"))","v":""},{"$f":"IF('TSA Input'!J4542=\"\",\"\",IF(OR('TSA Input'!J4542=\"Yes\",'TSA Input'!J4542=\"Contingent\"),'TSA Input'!F4542,\"\"))","v":""},"","Required","Required"]
["",null,{"$f":"IF('TSA Input'!J4543=\"\",\"\",IF(OR('TSA Input'!J4543=\"Yes\",'TSA Input'!J4543=\"Contingent\"),'TSA Input'!B4543,\"Ineligible\"))","v":""},{"$f":"IF('TSA Input'!J4543=\"\",\"\",IF(OR('TSA Input'!J4543=\"Yes\",'TSA Input'!J4543=\"Contingent\"),'TSA Input'!I4543,\"\"))","v":""},{"$f":"IF('TSA Input'!J4543=\"\",\"\",IF(OR('TSA Input'!J4543=\"Yes\",'TSA Input'!J4543=\"Contingent\"),'TSA Input'!C4543,\"\"))","v":""},{"$f":"IF('TSA Input'!J4543=\"\",\"\",IF(OR('TSA Input'!J4543=\"Yes\",'TSA Input'!J4543=\"Contingent\"),'TSA Input'!D4543,\"\"))","v":""},{"$f":"IF('TSA Input'!J4543=\"\",\"\",IF(OR('TSA Input'!J4543=\"Yes\",'TSA Input'!J4543=\"Contingent\"),'TSA Input'!G4543,\"\"))","v":""},{"$f":"IF('TSA Input'!J4543=\"\",\"\",IF(OR('TSA Input'!J4543=\"Yes\",'TSA Input'!J4543=\"Contingent\"),'TSA Input'!F4543,\"\"))","v":""},"",{"$f":"IF('TSA Input'!J4543=\"\",\"\",IF(OR('TSA Input'!J4543=\"Yes\",'TSA Input'!J4543=\"Contingent\"),'TSA Input'!D4543,\"\"))","v":""},{"$f":"IF('TSA Input'!J4543=\"\",\"\",IF(OR('TSA Input'!J4543=\"Yes\",'TSA Input'!J4543=\"Contingent\"),'TSA Input'!G4543,\"\"))","v":""},{"$f":"IF('TSA Input'!J4543=\"\",\"\",IF(OR('TSA Input'!J4543=\"Yes\",'TSA Input'!J4543=\"Contingent\"),'TSA Input'!F4543,\"\"))","v":""},"","Required","Required"]
["",null,{"$f":"IF('TSA Input'!J4544=\"\",\"\",IF(OR('TSA Input'!J4544=\"Yes\",'TSA Input'!J4544=\"Contingent\"),'TSA Input'!B4544,\"Ineligible\"))","v":""},{"$f":"IF('TSA Input'!J4544=\"\",\"\",IF(OR('TSA Input'!J4544=\"Yes\",'TSA Input'!J4544=\"Contingent\"),'TSA Input'!I4544,\"\"))","v":""},{"$f":"IF('TSA Input'!J4544=\"\",\"\",IF(OR('TSA Input'!J4544=\"Yes\",'TSA Input'!J4544=\"Contingent\"),'TSA Input'!C4544,\"\"))","v":""},{"$f":"IF('TSA Input'!J4544=\"\",\"\",IF(OR('TSA Input'!J4544=\"Yes\",'TSA Input'!J4544=\"Contingent\"),'TSA Input'!D4544,\"\"))","v":""},{"$f":"IF('TSA Input'!J4544=\"\",\"\",IF(OR('TSA Input'!J4544=\"Yes\",'TSA Input'!J4544=\"Contingent\"),'TSA Input'!G4544,\"\"))","v":""},{"$f":"IF('TSA Input'!J4544=\"\",\"\",IF(OR('TSA Input'!J4544=\"Yes\",'TSA Input'!J4544=\"Contingent\"),'TSA Input'!F4544,\"\"))","v":""},"",{"$f":"IF('TSA Input'!J4544=\"\",\"\",IF(OR('TSA Input'!J4544=\"Yes\",'TSA Input'!J4544=\"Contingent\"),'TSA Input'!D4544,\"\"))","v":""},{"$f":"IF('TSA Input'!J4544=\"\",\"\",IF(OR('TSA Input'!J4544=\"Yes\",'TSA Input'!J4544=\"Contingent\"),'TSA Input'!G4544,\"\"))","v":""},{"$f":"IF('TSA Input'!J4544=\"\",\"\",IF(OR('TSA Input'!J4544=\"Yes\",'TSA Input'!J4544=\"Contingent\"),'TSA Input'!F4544,\"\"))","v":""},"","Required","Required"]
["",null,{"$f":"IF('TSA Input'!J4545=\"\",\"\",IF(OR('TSA Input'!J4545=\"Yes\",'TSA Input'!J4545=\"Contingent\"),'TSA Input'!B4545,\"Ineligible\"))","v":""},{"$f":"IF('TSA Input'!J4545=\"\",\"\",IF(OR('TSA Input'!J4545=\"Yes\",'TSA Input'!J4545=\"Contingent\"),'TSA Input'!I4545,\"\"))","v":""},{"$f":"IF('TSA Input'!J4545=\"\",\"\",IF(OR('TSA Input'!J4545=\"Yes\",'TSA Input'!J4545=\"Contingent\"),'TSA Input'!C4545,\"\"))","v":""},{"$f":"IF('TSA Input'!J4545=\"\",\"\",IF(OR('TSA Input'!J4545=\"Yes\",'TSA Input'!J4545=\"Contingent\"),'TSA Input'!D4545,\"\"))","v":""},{"$f":"IF('TSA Input'!J4545=\"\",\"\",IF(OR('TSA Input'!J4545=\"Yes\",'TSA Input'!J4545=\"Contingent\"),'TSA Input'!G4545,\"\"))","v":""},{"$f":"IF('TSA Input'!J4545=\"\",\"\",IF(OR('TSA Input'!J4545=\"Yes\",'TSA Input'!J4545=\"Contingent\"),'TSA Input'!F4545,\"\"))","v":""},"",{"$f":"IF('TSA Input'!J4545=\"\",\"\",IF(OR('TSA Input'!J4545=\"Yes\",'TSA Input'!J4545=\"Contingent\"),'TSA Input'!D4545,\"\"))","v":""},{"$f":"IF('TSA Input'!J4545=\"\",\"\",IF(OR('TSA Input'!J4545=\"Yes\",'TSA Input'!J4545=\"Contingent\"),'TSA Input'!G4545,\"\"))","v":""},{"$f":"IF('TSA Input'!J4545=\"\",\"\",IF(OR('TSA Input'!J4545=\"Yes\",'TSA Input'!J4545=\"Contingent\"),'TSA Input'!F4545,\"\"))","v":""},"","Required","Required"]
["",null,{"$f":"IF('TSA Input'!J4546=\"\",\"\",IF(OR('TSA Input'!J4546=\"Yes\",'TSA Input'!J4546=\"Contingent\"),'TSA Input'!B4546,\"Ineligible\"))","v":""},{"$f":"IF('TSA Input'!J4546=\"\",\"\",IF(OR('TSA Input'!J4546=\"Yes\",'TSA Input'!J4546=\"Contingent\"),'TSA Input'!I4546,\"\"))","v":""},{"$f":"IF('TSA Input'!J4546=\"\",\"\",IF(OR('TSA Input'!J4546=\"Yes\",'TSA Input'!J4546=\"Contingent\"),'TSA Input'!C4546,\"\"))","v":""},{"$f":"IF('TSA Input'!J4546=\"\",\"\",IF(OR('TSA Input'!J4546=\"Yes\",'TSA Input'!J4546=\"Contingent\"),'TSA Input'!D4546,\"\"))","v":""},{"$f":"IF('TSA Input'!J4546=\"\",\"\",IF(OR('TSA Input'!J4546=\"Yes\",'TSA Input'!J4546=\"Contingent\"),'TSA Input'!G4546,\"\"))","v":""},{"$f":"IF('TSA Input'!J4546=\"\",\"\",IF(OR('TSA Input'!J4546=\"Yes\",'TSA Input'!J4546=\"Contingent\"),'TSA Input'!F4546,\"\"))","v":""},"",{"$f":"IF('TSA Input'!J4546=\"\",\"\",IF(OR('TSA Input'!J4546=\"Yes\",'TSA Input'!J4546=\"Contingent\"),'TSA Input'!D4546,\"\"))","v":""},{"$f":"IF('TSA Input'!J4546=\"\",\"\",IF(OR('TSA Input'!J4546=\"Yes\",'TSA Input'!J4546=\"Contingent\"),'TSA Input'!G4546,\"\"))","v":""},{"$f":"IF('TSA Input'!J4546=\"\",\"\",IF(OR('TSA Input'!J4546=\"Yes\",'TSA Input'!J4546=\"Contingent\"),'TSA Input'!F4546,\"\"))","v":""},"","Required","Required"]
["",null,{"$f":"IF('TSA Input'!J4547=\"\",\"\",IF(OR('TSA Input'!J4547=\"Yes\",'TSA Input'!J4547=\"Contingent\"),'TSA Input'!B4547,\"Ineligible\"))","v":""},{"$f":"IF('TSA Input'!J4547=\"\",\"\",IF(OR('TSA Input'!J4547=\"Yes\",'TSA Input'!J4547=\"Contingent\"),'TSA Input'!I4547,\"\"))","v":""},{"$f":"IF('TSA Input'!J4547=\"\",\"\",IF(OR('TSA Input'!J4547=\"Yes\",'TSA Input'!J4547=\"Contingent\"),'TSA Input'!C4547,\"\"))","v":""},{"$f":"IF('TSA Input'!J4547=\"\",\"\",IF(OR('TSA Input'!J4547=\"Yes\",'TSA Input'!J4547=\"Contingent\"),'TSA Input'!D4547,\"\"))","v":""},{"$f":"IF('TSA Input'!J4547=\"\",\"\",IF(OR('TSA Input'!J4547=\"Yes\",'TSA Input'!J4547=\"Contingent\"),'TSA Input'!G4547,\"\"))","v":""},{"$f":"IF('TSA Input'!J4547=\"\",\"\",IF(OR('TSA Input'!J4547=\"Yes\",'TSA Input'!J4547=\"Contingent\"),'TSA Input'!F4547,\"\"))","v":""},"",{"$f":"IF('TSA Input'!J4547=\"\",\"\",IF(OR('TSA Input'!J4547=\"Yes\",'TSA Input'!J4547=\"Contingent\"),'TSA Input'!D4547,\"\"))","v":""},{"$f":"IF('TSA Input'!J4547=\"\",\"\",IF(OR('TSA Input'!J4547=\"Yes\",'TSA Input'!J4547=\"Contingent\"),'TSA Input'!G4547,\"\"))","v":""},{"$f":"IF('TSA Input'!J4547=\"\",\"\",IF(OR('TSA Input'!J4547=\"Yes\",'TSA Input'!J4547=\"Contingent\"),'TSA Input'!F4547,\"\"))","v":""},"","Required","Required"]
["",null,{"$f":"IF('TSA Input'!J4548=\"\",\"\",IF(OR('TSA Input'!J4548=\"Yes\",'TSA Input'!J4548=\"Contingent\"),'TSA Input'!B4548,\"Ineligible\"))","v":""},{"$f":"IF('TSA Input'!J4548=\"\",\"\",IF(OR('TSA Input'!J4548=\"Yes\",'TSA Input'!J4548=\"Contingent\"),'TSA Input'!I4548,\"\"))","v":""},{"$f":"IF('TSA Input'!J4548=\"\",\"\",IF(OR('TSA Input'!J4548=\"Yes\",'TSA Input'!J4548=\"Contingent\"),'TSA Input'!C4548,\"\"))","v":""},{"$f":"IF('TSA Input'!J4548=\"\",\"\",IF(OR('TSA Input'!J4548=\"Yes\",'TSA Input'!J4548=\"Contingent\"),'TSA Input'!D4548,\"\"))","v":""},{"$f":"IF('TSA Input'!J4548=\"\",\"\",IF(OR('TSA Input'!J4548=\"Yes\",'TSA Input'!J4548=\"Contingent\"),'TSA Input'!G4548,\"\"))","v":""},{"$f":"IF('TSA Input'!J4548=\"\",\"\",IF(OR('TSA Input'!J4548=\"Yes\",'TSA Input'!J4548=\"Contingent\"),'TSA Input'!F4548,\"\"))","v":""},{"$f":"IF($C4586=\"\",\"\",SUM(F4586:H4586))","v":""},{"$f":"IF('TSA Input'!J4548=\"\",\"\",IF(OR('TSA Input'!J4548=\"Yes\",'TSA Input'!J4548=\"Contingent\"),'TSA Input'!D4548,\"\"))","v":""},{"$f":"IF('TSA Input'!J4548=\"\",\"\",IF(OR('TSA Input'!J4548=\"Yes\",'TSA Input'!J4548=\"Contingent\"),'TSA Input'!G4548,\"\"))","v":""},{"$f":"IF('TSA Input'!J4548=\"\",\"\",IF(OR('TSA Input'!J4548=\"Yes\",'TSA Input'!J4548=\"Contingent\"),'TSA Input'!F4548,\"\"))","v":""},{"$f":"IF($C4586=\"\",\"\",SUM(J4586:L4586))","v":""},"Required","Required"]
["",null,{"$f":"IF('TSA Input'!J4549=\"\",\"\",IF(OR('TSA Input'!J4549=\"Yes\",'TSA Input'!J4549=\"Contingent\"),'TSA Input'!B4549,\"Ineligible\"))","v":""},{"$f":"IF('TSA Input'!J4549=\"\",\"\",IF(OR('TSA Input'!J4549=\"Yes\",'TSA Input'!J4549=\"Contingent\"),'TSA Input'!I4549,\"\"))","v":""},{"$f":"IF('TSA Input'!J4549=\"\",\"\",IF(OR('TSA Input'!J4549=\"Yes\",'TSA Input'!J4549=\"Contingent\"),'TSA Input'!C4549,\"\"))","v":""},{"$f":"IF('TSA Input'!J4549=\"\",\"\",IF(OR('TSA Input'!J4549=\"Yes\",'TSA Input'!J4549=\"Contingent\"),'TSA Input'!D4549,\"\"))","v":""},{"$f":"IF('TSA Input'!J4549=\"\",\"\",IF(OR('TSA Input'!J4549=\"Yes\",'TSA Input'!J4549=\"Contingent\"),'TSA Input'!G4549,\"\"))","v":""},{"$f":"IF('TSA Input'!J4549=\"\",\"\",IF(OR('TSA Input'!J4549=\"Yes\",'TSA Input'!J4549=\"Contingent\"),'TSA Input'!F4549,\"\"))","v":""},"",{"$f":"IF('TSA Input'!J4549=\"\",\"\",IF(OR('TSA Input'!J4549=\"Yes\",'TSA Input'!J4549=\"Contingent\"),'TSA Input'!D4549,\"\"))","v":""},{"$f":"IF('TSA Input'!J4549=\"\",\"\",IF(OR('TSA Input'!J4549=\"Yes\",'TSA Input'!J4549=\"Contingent\"),'TSA Input'!G4549,\"\"))","v":""},{"$f":"IF('TSA Input'!J4549=\"\",\"\",IF(OR('TSA Input'!J4549=\"Yes\",'TSA Input'!J4549=\"Contingent\"),'TSA Input'!F4549,\"\"))","v":""},"","Required","Required"]
["",null,{"$f":"IF('TSA Input'!J4550=\"\",\"\",IF(OR('TSA Input'!J4550=\"Yes\",'TSA Input'!J4550=\"Contingent\"),'TSA Input'!B4550,\"Ineligible\"))","v":""},{"$f":"IF('TSA Input'!J4550=\"\",\"\",IF(OR('TSA Input'!J4550=\"Yes\",'TSA Input'!J4550=\"Contingent\"),'TSA Input'!I4550,\"\"))","v":""},{"$f":"IF('TSA Input'!J4550=\"\",\"\",IF(OR('TSA Input'!J4550=\"Yes\",'TSA Input'!J4550=\"Contingent\"),'TSA Input'!C4550,\"\"))","v":""},{"$f":"IF('TSA Input'!J4550=\"\",\"\",IF(OR('TSA Input'!J4550=\"Yes\",'TSA Input'!J4550=\"Contingent\"),'TSA Input'!D4550,\"\"))","v":""},{"$f":"IF('TSA Input'!J4550=\"\",\"\",IF(OR('TSA Input'!J4550=\"Yes\",'TSA Input'!J4550=\"Contingent\"),'TSA Input'!G4550,\"\"))","v":""},{"$f":"IF('TSA Input'!J4550=\"\",\"\",IF(OR('TSA Input'!J4550=\"Yes\",'TSA Input'!J4550=\"Contingent\"),'TSA Input'!F4550,\"\"))","v":""},"",{"$f":"IF('TSA Input'!J4550=\"\",\"\",IF(OR('TSA Input'!J4550=\"Yes\",'TSA Input'!J4550=\"Contingent\"),'TSA Input'!D4550,\"\"))","v":""},{"$f":"IF('TSA Input'!J4550=\"\",\"\",IF(OR('TSA Input'!J4550=\"Yes\",'TSA Input'!J4550=\"Contingent\"),'TSA Input'!G4550,\"\"))","v":""},{"$f":"IF('TSA Input'!J4550=\"\",\"\",IF(OR('TSA Input'!J4550=\"Yes\",'TSA Input'!J4550=\"Contingent\"),'TSA Input'!F4550,\"\"))","v":""},"","Required","Required"]
["",null,{"$f":"IF('TSA Input'!J4551=\"\",\"\",IF(OR('TSA Input'!J4551=\"Yes\",'TSA Input'!J4551=\"Contingent\"),'TSA Input'!B4551,\"Ineligible\"))","v":""},{"$f":"IF('TSA Input'!J4551=\"\",\"\",IF(OR('TSA Input'!J4551=\"Yes\",'TSA Input'!J4551=\"Contingent\"),'TSA Input'!I4551,\"\"))","v":""},{"$f":"IF('TSA Input'!J4551=\"\",\"\",IF(OR('TSA Input'!J4551=\"Yes\",'TSA Input'!J4551=\"Contingent\"),'TSA Input'!C4551,\"\"))","v":""},{"$f":"IF('TSA Input'!J4551=\"\",\"\",IF(OR('TSA Input'!J4551=\"Yes\",'TSA Input'!J4551=\"Contingent\"),'TSA Input'!D4551,\"\"))","v":""},{"$f":"IF('TSA Input'!J4551=\"\",\"\",IF(OR('TSA Input'!J4551=\"Yes\",'TSA Input'!J4551=\"Contingent\"),'TSA Input'!G4551,\"\"))","v":""},{"$f":"IF('TSA Input'!J4551=\"\",\"\",IF(OR('TSA Input'!J4551=\"Yes\",'TSA Input'!J4551=\"Contingent\"),'TSA Input'!F4551,\"\"))","v":""},"",{"$f":"IF('TSA Input'!J4551=\"\",\"\",IF(OR('TSA Input'!J4551=\"Yes\",'TSA Input'!J4551=\"Contingent\"),'TSA Input'!D4551,\"\"))","v":""},{"$f":"IF('TSA Input'!J4551=\"\",\"\",IF(OR('TSA Input'!J4551=\"Yes\",'TSA Input'!J4551=\"Contingent\"),'TSA Input'!G4551,\"\"))","v":""},{"$f":"IF('TSA Input'!J4551=\"\",\"\",IF(OR('TSA Input'!J4551=\"Yes\",'TSA Input'!J4551=\"Contingent\"),'TSA Input'!F4551,\"\"))","v":""},"","Required","Required"]
["",null,{"$f":"IF('TSA Input'!J4552=\"\",\"\",IF(OR('TSA Input'!J4552=\"Yes\",'TSA Input'!J4552=\"Contingent\"),'TSA Input'!B4552,\"Ineligible\"))","v":""},{"$f":"IF('TSA Input'!J4552=\"\",\"\",IF(OR('TSA Input'!J4552=\"Yes\",'TSA Input'!J4552=\"Contingent\"),'TSA Input'!I4552,\"\"))","v":""},{"$f":"IF('TSA Input'!J4552=\"\",\"\",IF(OR('TSA Input'!J4552=\"Yes\",'TSA Input'!J4552=\"Contingent\"),'TSA Input'!C4552,\"\"))","v":""},{"$f":"IF('TSA Input'!J4552=\"\",\"\",IF(OR('TSA Input'!J4552=\"Yes\",'TSA Input'!J4552=\"Contingent\"),'TSA Input'!D4552,\"\"))","v":""},{"$f":"IF('TSA Input'!J4552=\"\",\"\",IF(OR('TSA Input'!J4552=\"Yes\",'TSA Input'!J4552=\"Contingent\"),'TSA Input'!G4552,\"\"))","v":""},{"$f":"IF('TSA Input'!J4552=\"\",\"\",IF(OR('TSA Input'!J4552=\"Yes\",'TSA Input'!J4552=\"Contingent\"),'TSA Input'!F4552,\"\"))","v":""},"",{"$f":"IF('TSA Input'!J4552=\"\",\"\",IF(OR('TSA Input'!J4552=\"Yes\",'TSA Input'!J4552=\"Contingent\"),'TSA Input'!D4552,\"\"))","v":""},{"$f":"IF('TSA Input'!J4552=\"\",\"\",IF(OR('TSA Input'!J4552=\"Yes\",'TSA Input'!J4552=\"Contingent\"),'TSA Input'!G4552,\"\"))","v":""},{"$f":"IF('TSA Input'!J4552=\"\",\"\",IF(OR('TSA Input'!J4552=\"Yes\",'TSA Input'!J4552=\"Contingent\"),'TSA Input'!F4552,\"\"))","v":""},"","Required","Required"]
["",null,{"$f":"IF('TSA Input'!J4553=\"\",\"\",IF(OR('TSA Input'!J4553=\"Yes\",'TSA Input'!J4553=\"Contingent\"),'TSA Input'!B4553,\"Ineligible\"))","v":""},{"$f":"IF('TSA Input'!J4553=\"\",\"\",IF(OR('TSA Input'!J4553=\"Yes\",'TSA Input'!J4553=\"Contingent\"),'TSA Input'!I4553,\"\"))","v":""},{"$f":"IF('TSA Input'!J4553=\"\",\"\",IF(OR('TSA Input'!J4553=\"Yes\",'TSA Input'!J4553=\"Contingent\"),'TSA Input'!C4553,\"\"))","v":""},{"$f":"IF('TSA Input'!J4553=\"\",\"\",IF(OR('TSA Input'!J4553=\"Yes\",'TSA Input'!J4553=\"Contingent\"),'TSA Input'!D4553,\"\"))","v":""},{"$f":"IF('TSA Input'!J4553=\"\",\"\",IF(OR('TSA Input'!J4553=\"Yes\",'TSA Input'!J4553=\"Contingent\"),'TSA Input'!G4553,\"\"))","v":""},{"$f":"IF('TSA Input'!J4553=\"\",\"\",IF(OR('TSA Input'!J4553=\"Yes\",'TSA Input'!J4553=\"Contingent\"),'TSA Input'!F4553,\"\"))","v":""},"",{"$f":"IF('TSA Input'!J4553=\"\",\"\",IF(OR('TSA Input'!J4553=\"Yes\",'TSA Input'!J4553=\"Contingent\"),'TSA Input'!D4553,\"\"))","v":""},{"$f":"IF('TSA Input'!J4553=\"\",\"\",IF(OR('TSA Input'!J4553=\"Yes\",'TSA Input'!J4553=\"Contingent\"),'TSA Input'!G4553,\"\"))","v":""},{"$f":"IF('TSA Input'!J4553=\"\",\"\",IF(OR('TSA Input'!J4553=\"Yes\",'TSA Input'!J4553=\"Contingent\"),'TSA Input'!F4553,\"\"))","v":""},"","Required","Required"]
["",null,{"$f":"IF('TSA Input'!J4554=\"\",\"\",IF(OR('TSA Input'!J4554=\"Yes\",'TSA Input'!J4554=\"Contingent\"),'TSA Input'!B4554,\"Ineligible\"))","v":""},{"$f":"IF('TSA Input'!J4554=\"\",\"\",IF(OR('TSA Input'!J4554=\"Yes\",'TSA Input'!J4554=\"Contingent\"),'TSA Input'!I4554,\"\"))","v":""},{"$f":"IF('TSA Input'!J4554=\"\",\"\",IF(OR('TSA Input'!J4554=\"Yes\",'TSA Input'!J4554=\"Contingent\"),'TSA Input'!C4554,\"\"))","v":""},{"$f":"IF('TSA Input'!J4554=\"\",\"\",IF(OR('TSA Input'!J4554=\"Yes\",'TSA Input'!J4554=\"Contingent\"),'TSA Input'!D4554,\"\"))","v":""},{"$f":"IF('TSA Input'!J4554=\"\",\"\",IF(OR('TSA Input'!J4554=\"Yes\",'TSA Input'!J4554=\"Contingent\"),'TSA Input'!G4554,\"\"))","v":""},{"$f":"IF('TSA Input'!J4554=\"\",\"\",IF(OR('TSA Input'!J4554=\"Yes\",'TSA Input'!J4554=\"Contingent\"),'TSA Input'!F4554,\"\"))","v":""},"",{"$f":"IF('TSA Input'!J4554=\"\",\"\",IF(OR('TSA Input'!J4554=\"Yes\",'TSA Input'!J4554=\"Contingent\"),'TSA Input'!D4554,\"\"))","v":""},{"$f":"IF('TSA Input'!J4554=\"\",\"\",IF(OR('TSA Input'!J4554=\"Yes\",'TSA Input'!J4554=\"Contingent\"),'TSA Input'!G4554,\"\"))","v":""},{"$f":"IF('TSA Input'!J4554=\"\",\"\",IF(OR('TSA Input'!J4554=\"Yes\",'TSA Input'!J4554=\"Contingent\"),'TSA Input'!F4554,\"\"))","v":""},"","Required","Required"]
["",null,{"$f":"IF('TSA Input'!J4555=\"\",\"\",IF(OR('TSA Input'!J4555=\"Yes\",'TSA Input'!J4555=\"Contingent\"),'TSA Input'!B4555,\"Ineligible\"))","v":""},{"$f":"IF('TSA Input'!J4555=\"\",\"\",IF(OR('TSA Input'!J4555=\"Yes\",'TSA Input'!J4555=\"Contingent\"),'TSA Input'!I4555,\"\"))","v":""},{"$f":"IF('TSA Input'!J4555=\"\",\"\",IF(OR('TSA Input'!J4555=\"Yes\",'TSA Input'!J4555=\"Contingent\"),'TSA Input'!C4555,\"\"))","v":""},{"$f":"IF('TSA Input'!J4555=\"\",\"\",IF(OR('TSA Input'!J4555=\"Yes\",'TSA Input'!J4555=\"Contingent\"),'TSA Input'!D4555,\"\"))","v":""},{"$f":"IF('TSA Input'!J4555=\"\",\"\",IF(OR('TSA Input'!J4555=\"Yes\",'TSA Input'!J4555=\"Contingent\"),'TSA Input'!G4555,\"\"))","v":""},{"$f":"IF('TSA Input'!J4555=\"\",\"\",IF(OR('TSA Input'!J4555=\"Yes\",'TSA Input'!J4555=\"Contingent\"),'TSA Input'!F4555,\"\"))","v":""},"",{"$f":"IF('TSA Input'!J4555=\"\",\"\",IF(OR('TSA Input'!J4555=\"Yes\",'TSA Input'!J4555=\"Contingent\"),'TSA Input'!D4555,\"\"))","v":""},{"$f":"IF('TSA Input'!J4555=\"\",\"\",IF(OR('TSA Input'!J4555=\"Yes\",'TSA Input'!J4555=\"Contingent\"),'TSA Input'!G4555,\"\"))","v":""},{"$f":"IF('TSA Input'!J4555=\"\",\"\",IF(OR('TSA Input'!J4555=\"Yes\",'TSA Input'!J4555=\"Contingent\"),'TSA Input'!F4555,\"\"))","v":""},"","Required","Required"]
["",null,{"$f":"IF('TSA Input'!J4556=\"\",\"\",IF(OR('TSA Input'!J4556=\"Yes\",'TSA Input'!J4556=\"Contingent\"),'TSA Input'!B4556,\"Ineligible\"))","v":""},{"$f":"IF('TSA Input'!J4556=\"\",\"\",IF(OR('TSA Input'!J4556=\"Yes\",'TSA Input'!J4556=\"Contingent\"),'TSA Input'!I4556,\"\"))","v":""},{"$f":"IF('TSA Input'!J4556=\"\",\"\",IF(OR('TSA Input'!J4556=\"Yes\",'TSA Input'!J4556=\"Contingent\"),'TSA Input'!C4556,\"\"))","v":""},{"$f":"IF('TSA Input'!J4556=\"\",\"\",IF(OR('TSA Input'!J4556=\"Yes\",'TSA Input'!J4556=\"Contingent\"),'TSA Input'!D4556,\"\"))","v":""},{"$f":"IF('TSA Input'!J4556=\"\",\"\",IF(OR('TSA Input'!J4556=\"Yes\",'TSA Input'!J4556=\"Contingent\"),'TSA Input'!G4556,\"\"))","v":""},{"$f":"IF('TSA Input'!J4556=\"\",\"\",IF(OR('TSA Input'!J4556=\"Yes\",'TSA Input'!J4556=\"Contingent\"),'TSA Input'!F4556,\"\"))","v":""},"",{"$f":"IF('TSA Input'!J4556=\"\",\"\",IF(OR('TSA Input'!J4556=\"Yes\",'TSA Input'!J4556=\"Contingent\"),'TSA Input'!D4556,\"\"))","v":""},{"$f":"IF('TSA Input'!J4556=\"\",\"\",IF(OR('TSA Input'!J4556=\"Yes\",'TSA Input'!J4556=\"Contingent\"),'TSA Input'!G4556,\"\"))","v":""},{"$f":"IF('TSA Input'!J4556=\"\",\"\",IF(OR('TSA Input'!J4556=\"Yes\",'TSA Input'!J4556=\"Contingent\"),'TSA Input'!F4556,\"\"))","v":""},"","Required","Required"]
["",null,{"$f":"IF('TSA Input'!J4557=\"\",\"\",IF(OR('TSA Input'!J4557=\"Yes\",'TSA Input'!J4557=\"Contingent\"),'TSA Input'!B4557,\"Ineligible\"))","v":""},{"$f":"IF('TSA Input'!J4557=\"\",\"\",IF(OR('TSA Input'!J4557=\"Yes\",'TSA Input'!J4557=\"Contingent\"),'TSA Input'!I4557,\"\"))","v":""},{"$f":"IF('TSA Input'!J4557=\"\",\"\",IF(OR('TSA Input'!J4557=\"Yes\",'TSA Input'!J4557=\"Contingent\"),'TSA Input'!C4557,\"\"))","v":""},{"$f":"IF('TSA Input'!J4557=\"\",\"\",IF(OR('TSA Input'!J4557=\"Yes\",'TSA Input'!J4557=\"Contingent\"),'TSA Input'!D4557,\"\"))","v":""},{"$f":"IF('TSA Input'!J4557=\"\",\"\",IF(OR('TSA Input'!J4557=\"Yes\",'TSA Input'!J4557=\"Contingent\"),'TSA Input'!G4557,\"\"))","v":""},{"$f":"IF('TSA Input'!J4557=\"\",\"\",IF(OR('TSA Input'!J4557=\"Yes\",'TSA Input'!J4557=\"Contingent\"),'TSA Input'!F4557,\"\"))","v":""},"",{"$f":"IF('TSA Input'!J4557=\"\",\"\",IF(OR('TSA Input'!J4557=\"Yes\",'TSA Input'!J4557=\"Contingent\"),'TSA Input'!D4557,\"\"))","v":""},{"$f":"IF('TSA Input'!J4557=\"\",\"\",IF(OR('TSA Input'!J4557=\"Yes\",'TSA Input'!J4557=\"Contingent\"),'TSA Input'!G4557,\"\"))","v":""},{"$f":"IF('TSA Input'!J4557=\"\",\"\",IF(OR('TSA Input'!J4557=\"Yes\",'TSA Input'!J4557=\"Contingent\"),'TSA Input'!F4557,\"\"))","v":""},"","Required","Required"]
["",null,{"$f":"IF('TSA Input'!J4558=\"\",\"\",IF(OR('TSA Input'!J4558=\"Yes\",'TSA Input'!J4558=\"Contingent\"),'TSA Input'!B4558,\"Ineligible\"))","v":""},{"$f":"IF('TSA Input'!J4558=\"\",\"\",IF(OR('TSA Input'!J4558=\"Yes\",'TSA Input'!J4558=\"Contingent\"),'TSA Input'!I4558,\"\"))","v":""},{"$f":"IF('TSA Input'!J4558=\"\",\"\",IF(OR('TSA Input'!J4558=\"Yes\",'TSA Input'!J4558=\"Contingent\"),'TSA Input'!C4558,\"\"))","v":""},{"$f":"IF('TSA Input'!J4558=\"\",\"\",IF(OR('TSA Input'!J4558=\"Yes\",'TSA Input'!J4558=\"Contingent\"),'TSA Input'!D4558,\"\"))","v":""},{"$f":"IF('TSA Input'!J4558=\"\",\"\",IF(OR('TSA Input'!J4558=\"Yes\",'TSA Input'!J4558=\"Contingent\"),'TSA Input'!G4558,\"\"))","v":""},{"$f":"IF('TSA Input'!J4558=\"\",\"\",IF(OR('TSA Input'!J4558=\"Yes\",'TSA Input'!J4558=\"Contingent\"),'TSA Input'!F4558,\"\"))","v":""},"",{"$f":"IF('TSA Input'!J4558=\"\",\"\",IF(OR('TSA Input'!J4558=\"Yes\",'TSA Input'!J4558=\"Contingent\"),'TSA Input'!D4558,\"\"))","v":""},{"$f":"IF('TSA Input'!J4558=\"\",\"\",IF(OR('TSA Input'!J4558=\"Yes\",'TSA Input'!J4558=\"Contingent\"),'TSA Input'!G4558,\"\"))","v":""},{"$f":"IF('TSA Input'!J4558=\"\",\"\",IF(OR('TSA Input'!J4558=\"Yes\",'TSA Input'!J4558=\"Contingent\"),'TSA Input'!F4558,\"\"))","v":""},"","Required","Required"]
["",null,{"$f":"IF('TSA Input'!J4559=\"\",\"\",IF(OR('TSA Input'!J4559=\"Yes\",'TSA Input'!J4559=\"Contingent\"),'TSA Input'!B4559,\"Ineligible\"))","v":""},{"$f":"IF('TSA Input'!J4559=\"\",\"\",IF(OR('TSA Input'!J4559=\"Yes\",'TSA Input'!J4559=\"Contingent\"),'TSA Input'!I4559,\"\"))","v":""},{"$f":"IF('TSA Input'!J4559=\"\",\"\",IF(OR('TSA Input'!J4559=\"Yes\",'TSA Input'!J4559=\"Contingent\"),'TSA Input'!C4559,\"\"))","v":""},{"$f":"IF('TSA Input'!J4559=\"\",\"\",IF(OR('TSA Input'!J4559=\"Yes\",'TSA Input'!J4559=\"Contingent\"),'TSA Input'!D4559,\"\"))","v":""},{"$f":"IF('TSA Input'!J4559=\"\",\"\",IF(OR('TSA Input'!J4559=\"Yes\",'TSA Input'!J4559=\"Contingent\"),'TSA Input'!G4559,\"\"))","v":""},{"$f":"IF('TSA Input'!J4559=\"\",\"\",IF(OR('TSA Input'!J4559=\"Yes\",'TSA Input'!J4559=\"Contingent\"),'TSA Input'!F4559,\"\"))","v":""},"",{"$f":"IF('TSA Input'!J4559=\"\",\"\",IF(OR('TSA Input'!J4559=\"Yes\",'TSA Input'!J4559=\"Contingent\"),'TSA Input'!D4559,\"\"))","v":""},{"$f":"IF('TSA Input'!J4559=\"\",\"\",IF(OR('TSA Input'!J4559=\"Yes\",'TSA Input'!J4559=\"Contingent\"),'TSA Input'!G4559,\"\"))","v":""},{"$f":"IF('TSA Input'!J4559=\"\",\"\",IF(OR('TSA Input'!J4559=\"Yes\",'TSA Input'!J4559=\"Contingent\"),'TSA Input'!F4559,\"\"))","v":""},"","Required","Required"]
["",null,{"$f":"IF('TSA Input'!J4560=\"\",\"\",IF(OR('TSA Input'!J4560=\"Yes\",'TSA Input'!J4560=\"Contingent\"),'TSA Input'!B4560,\"Ineligible\"))","v":""},{"$f":"IF('TSA Input'!J4560=\"\",\"\",IF(OR('TSA Input'!J4560=\"Yes\",'TSA Input'!J4560=\"Contingent\"),'TSA Input'!I4560,\"\"))","v":""},{"$f":"IF('TSA Input'!J4560=\"\",\"\",IF(OR('TSA Input'!J4560=\"Yes\",'TSA Input'!J4560=\"Contingent\"),'TSA Input'!C4560,\"\"))","v":""},{"$f":"IF('TSA Input'!J4560=\"\",\"\",IF(OR('TSA Input'!J4560=\"Yes\",'TSA Input'!J4560=\"Contingent\"),'TSA Input'!D4560,\"\"))","v":""},{"$f":"IF('TSA Input'!J4560=\"\",\"\",IF(OR('TSA Input'!J4560=\"Yes\",'TSA Input'!J4560=\"Contingent\"),'TSA Input'!G4560,\"\"))","v":""},{"$f":"IF('TSA Input'!J4560=\"\",\"\",IF(OR('TSA Input'!J4560=\"Yes\",'TSA Input'!J4560=\"Contingent\"),'TSA Input'!F4560,\"\"))","v":""},"",{"$f":"IF('TSA Input'!J4560=\"\",\"\",IF(OR('TSA Input'!J4560=\"Yes\",'TSA Input'!J4560=\"Contingent\"),'TSA Input'!D4560,\"\"))","v":""},{"$f":"IF('TSA Input'!J4560=\"\",\"\",IF(OR('TSA Input'!J4560=\"Yes\",'TSA Input'!J4560=\"Contingent\"),'TSA Input'!G4560,\"\"))","v":""},{"$f":"IF('TSA Input'!J4560=\"\",\"\",IF(OR('TSA Input'!J4560=\"Yes\",'TSA Input'!J4560=\"Contingent\"),'TSA Input'!F4560,\"\"))","v":""},"","Required","Required"]
["",null,{"$f":"IF('TSA Input'!J4561=\"\",\"\",IF(OR('TSA Input'!J4561=\"Yes\",'TSA Input'!J4561=\"Contingent\"),'TSA Input'!B4561,\"Ineligible\"))","v":""},{"$f":"IF('TSA Input'!J4561=\"\",\"\",IF(OR('TSA Input'!J4561=\"Yes\",'TSA Input'!J4561=\"Contingent\"),'TSA Input'!I4561,\"\"))","v":""},{"$f":"IF('TSA Input'!J4561=\"\",\"\",IF(OR('TSA Input'!J4561=\"Yes\",'TSA Input'!J4561=\"Contingent\"),'TSA Input'!C4561,\"\"))","v":""},{"$f":"IF('TSA Input'!J4561=\"\",\"\",IF(OR('TSA Input'!J4561=\"Yes\",'TSA Input'!J4561=\"Contingent\"),'TSA Input'!D4561,\"\"))","v":""},{"$f":"IF('TSA Input'!J4561=\"\",\"\",IF(OR('TSA Input'!J4561=\"Yes\",'TSA Input'!J4561=\"Contingent\"),'TSA Input'!G4561,\"\"))","v":""},{"$f":"IF('TSA Input'!J4561=\"\",\"\",IF(OR('TSA Input'!J4561=\"Yes\",'TSA Input'!J4561=\"Contingent\"),'TSA Input'!F4561,\"\"))","v":""},"",{"$f":"IF('TSA Input'!J4561=\"\",\"\",IF(OR('TSA Input'!J4561=\"Yes\",'TSA Input'!J4561=\"Contingent\"),'TSA Input'!D4561,\"\"))","v":""},{"$f":"IF('TSA Input'!J4561=\"\",\"\",IF(OR('TSA Input'!J4561=\"Yes\",'TSA Input'!J4561=\"Contingent\"),'TSA Input'!G4561,\"\"))","v":""},{"$f":"IF('TSA Input'!J4561=\"\",\"\",IF(OR('TSA Input'!J4561=\"Yes\",'TSA Input'!J4561=\"Contingent\"),'TSA Input'!F4561,\"\"))","v":""},"","Required","Required"]
["",null,{"$f":"IF('TSA Input'!J4562=\"\",\"\",IF(OR('TSA Input'!J4562=\"Yes\",'TSA Input'!J4562=\"Contingent\"),'TSA Input'!B4562,\"Ineligible\"))","v":""},{"$f":"IF('TSA Input'!J4562=\"\",\"\",IF(OR('TSA Input'!J4562=\"Yes\",'TSA Input'!J4562=\"Contingent\"),'TSA Input'!I4562,\"\"))","v":""},{"$f":"IF('TSA Input'!J4562=\"\",\"\",IF(OR('TSA Input'!J4562=\"Yes\",'TSA Input'!J4562=\"Contingent\"),'TSA Input'!C4562,\"\"))","v":""},{"$f":"IF('TSA Input'!J4562=\"\",\"\",IF(OR('TSA Input'!J4562=\"Yes\",'TSA Input'!J4562=\"Contingent\"),'TSA Input'!D4562,\"\"))","v":""},{"$f":"IF('TSA Input'!J4562=\"\",\"\",IF(OR('TSA Input'!J4562=\"Yes\",'TSA Input'!J4562=\"Contingent\"),'TSA Input'!G4562,\"\"))","v":""},{"$f":"IF('TSA Input'!J4562=\"\",\"\",IF(OR('TSA Input'!J4562=\"Yes\",'TSA Input'!J4562=\"Contingent\"),'TSA Input'!F4562,\"\"))","v":""},"",{"$f":"IF('TSA Input'!J4562=\"\",\"\",IF(OR('TSA Input'!J4562=\"Yes\",'TSA Input'!J4562=\"Contingent\"),'TSA Input'!D4562,\"\"))","v":""},{"$f":"IF('TSA Input'!J4562=\"\",\"\",IF(OR('TSA Input'!J4562=\"Yes\",'TSA Input'!J4562=\"Contingent\"),'TSA Input'!G4562,\"\"))","v":""},{"$f":"IF('TSA Input'!J4562=\"\",\"\",IF(OR('TSA Input'!J4562=\"Yes\",'TSA Input'!J4562=\"Contingent\"),'TSA Input'!F4562,\"\"))","v":""},"","Required","Required"]
["",null,{"$f":"IF('TSA Input'!J4563=\"\",\"\",IF(OR('TSA Input'!J4563=\"Yes\",'TSA Input'!J4563=\"Contingent\"),'TSA Input'!B4563,\"Ineligible\"))","v":""},{"$f":"IF('TSA Input'!J4563=\"\",\"\",IF(OR('TSA Input'!J4563=\"Yes\",'TSA Input'!J4563=\"Contingent\"),'TSA Input'!I4563,\"\"))","v":""},{"$f":"IF('TSA Input'!J4563=\"\",\"\",IF(OR('TSA Input'!J4563=\"Yes\",'TSA Input'!J4563=\"Contingent\"),'TSA Input'!C4563,\"\"))","v":""},{"$f":"IF('TSA Input'!J4563=\"\",\"\",IF(OR('TSA Input'!J4563=\"Yes\",'TSA Input'!J4563=\"Contingent\"),'TSA Input'!D4563,\"\"))","v":""},{"$f":"IF('TSA Input'!J4563=\"\",\"\",IF(OR('TSA Input'!J4563=\"Yes\",'TSA Input'!J4563=\"Contingent\"),'TSA Input'!G4563,\"\"))","v":""},{"$f":"IF('TSA Input'!J4563=\"\",\"\",IF(OR('TSA Input'!J4563=\"Yes\",'TSA Input'!J4563=\"Contingent\"),'TSA Input'!F4563,\"\"))","v":""},"",{"$f":"IF('TSA Input'!J4563=\"\",\"\",IF(OR('TSA Input'!J4563=\"Yes\",'TSA Input'!J4563=\"Contingent\"),'TSA Input'!D4563,\"\"))","v":""},{"$f":"IF('TSA Input'!J4563=\"\",\"\",IF(OR('TSA Input'!J4563=\"Yes\",'TSA Input'!J4563=\"Contingent\"),'TSA Input'!G4563,\"\"))","v":""},{"$f":"IF('TSA Input'!J4563=\"\",\"\",IF(OR('TSA Input'!J4563=\"Yes\",'TSA Input'!J4563=\"Contingent\"),'TSA Input'!F4563,\"\"))","v":""},"","Required","Required"]
["",null,{"$f":"IF('TSA Input'!J4564=\"\",\"\",IF(OR('TSA Input'!J4564=\"Yes\",'TSA Input'!J4564=\"Contingent\"),'TSA Input'!B4564,\"Ineligible\"))","v":""},{"$f":"IF('TSA Input'!J4564=\"\",\"\",IF(OR('TSA Input'!J4564=\"Yes\",'TSA Input'!J4564=\"Contingent\"),'TSA Input'!I4564,\"\"))","v":""},{"$f":"IF('TSA Input'!J4564=\"\",\"\",IF(OR('TSA Input'!J4564=\"Yes\",'TSA Input'!J4564=\"Contingent\"),'TSA Input'!C4564,\"\"))","v":""},{"$f":"IF('TSA Input'!J4564=\"\",\"\",IF(OR('TSA Input'!J4564=\"Yes\",'TSA Input'!J4564=\"Contingent\"),'TSA Input'!D4564,\"\"))","v":""},{"$f":"IF('TSA Input'!J4564=\"\",\"\",IF(OR('TSA Input'!J4564=\"Yes\",'TSA Input'!J4564=\"Contingent\"),'TSA Input'!G4564,\"\"))","v":""},{"$f":"IF('TSA Input'!J4564=\"\",\"\",IF(OR('TSA Input'!J4564=\"Yes\",'TSA Input'!J4564=\"Contingent\"),'TSA Input'!F4564,\"\"))","v":""},"",{"$f":"IF('TSA Input'!J4564=\"\",\"\",IF(OR('TSA Input'!J4564=\"Yes\",'TSA Input'!J4564=\"Contingent\"),'TSA Input'!D4564,\"\"))","v":""},{"$f":"IF('TSA Input'!J4564=\"\",\"\",IF(OR('TSA Input'!J4564=\"Yes\",'TSA Input'!J4564=\"Contingent\"),'TSA Input'!G4564,\"\"))","v":""},{"$f":"IF('TSA Input'!J4564=\"\",\"\",IF(OR('TSA Input'!J4564=\"Yes\",'TSA Input'!J4564=\"Contingent\"),'TSA Input'!F4564,\"\"))","v":""},"","Required","Required"]
["",null,{"$f":"IF('TSA Input'!J4565=\"\",\"\",IF(OR('TSA Input'!J4565=\"Yes\",'TSA Input'!J4565=\"Contingent\"),'TSA Input'!B4565,\"Ineligible\"))","v":""},{"$f":"IF('TSA Input'!J4565=\"\",\"\",IF(OR('TSA Input'!J4565=\"Yes\",'TSA Input'!J4565=\"Contingent\"),'TSA Input'!I4565,\"\"))","v":""},{"$f":"IF('TSA Input'!J4565=\"\",\"\",IF(OR('TSA Input'!J4565=\"Yes\",'TSA Input'!J4565=\"Contingent\"),'TSA Input'!C4565,\"\"))","v":""},{"$f":"IF('TSA Input'!J4565=\"\",\"\",IF(OR('TSA Input'!J4565=\"Yes\",'TSA Input'!J4565=\"Contingent\"),'TSA Input'!D4565,\"\"))","v":""},{"$f":"IF('TSA Input'!J4565=\"\",\"\",IF(OR('TSA Input'!J4565=\"Yes\",'TSA Input'!J4565=\"Contingent\"),'TSA Input'!G4565,\"\"))","v":""},{"$f":"IF('TSA Input'!J4565=\"\",\"\",IF(OR('TSA Input'!J4565=\"Yes\",'TSA Input'!J4565=\"Contingent\"),'TSA Input'!F4565,\"\"))","v":""},"",{"$f":"IF('TSA Input'!J4565=\"\",\"\",IF(OR('TSA Input'!J4565=\"Yes\",'TSA Input'!J4565=\"Contingent\"),'TSA Input'!D4565,\"\"))","v":""},{"$f":"IF('TSA Input'!J4565=\"\",\"\",IF(OR('TSA Input'!J4565=\"Yes\",'TSA Input'!J4565=\"Contingent\"),'TSA Input'!G4565,\"\"))","v":""},{"$f":"IF('TSA Input'!J4565=\"\",\"\",IF(OR('TSA Input'!J4565=\"Yes\",'TSA Input'!J4565=\"Contingent\"),'TSA Input'!F4565,\"\"))","v":""},"","Required","Required"]
["",null,{"$f":"IF('TSA Input'!J4566=\"\",\"\",IF(OR('TSA Input'!J4566=\"Yes\",'TSA Input'!J4566=\"Contingent\"),'TSA Input'!B4566,\"Ineligible\"))","v":""},{"$f":"IF('TSA Input'!J4566=\"\",\"\",IF(OR('TSA Input'!J4566=\"Yes\",'TSA Input'!J4566=\"Contingent\"),'TSA Input'!I4566,\"\"))","v":""},{"$f":"IF('TSA Input'!J4566=\"\",\"\",IF(OR('TSA Input'!J4566=\"Yes\",'TSA Input'!J4566=\"Contingent\"),'TSA Input'!C4566,\"\"))","v":""},{"$f":"IF('TSA Input'!J4566=\"\",\"\",IF(OR('TSA Input'!J4566=\"Yes\",'TSA Input'!J4566=\"Contingent\"),'TSA Input'!D4566,\"\"))","v":""},{"$f":"IF('TSA Input'!J4566=\"\",\"\",IF(OR('TSA Input'!J4566=\"Yes\",'TSA Input'!J4566=\"Contingent\"),'TSA Input'!G4566,\"\"))","v":""},{"$f":"IF('TSA Input'!J4566=\"\",\"\",IF(OR('TSA Input'!J4566=\"Yes\",'TSA Input'!J4566=\"Contingent\"),'TSA Input'!F4566,\"\"))","v":""},"",{"$f":"IF('TSA Input'!J4566=\"\",\"\",IF(OR('TSA Input'!J4566=\"Yes\",'TSA Input'!J4566=\"Contingent\"),'TSA Input'!D4566,\"\"))","v":""},{"$f":"IF('TSA Input'!J4566=\"\",\"\",IF(OR('TSA Input'!J4566=\"Yes\",'TSA Input'!J4566=\"Contingent\"),'TSA Input'!G4566,\"\"))","v":""},{"$f":"IF('TSA Input'!J4566=\"\",\"\",IF(OR('TSA Input'!J4566=\"Yes\",'TSA Input'!J4566=\"Contingent\"),'TSA Input'!F4566,\"\"))","v":""},"","Required","Required"]
["",null,{"$f":"IF('TSA Input'!J4567=\"\",\"\",IF(OR('TSA Input'!J4567=\"Yes\",'TSA Input'!J4567=\"Contingent\"),'TSA Input'!B4567,\"Ineligible\"))","v":""},{"$f":"IF('TSA Input'!J4567=\"\",\"\",IF(OR('TSA Input'!J4567=\"Yes\",'TSA Input'!J4567=\"Contingent\"),'TSA Input'!I4567,\"\"))","v":""},{"$f":"IF('TSA Input'!J4567=\"\",\"\",IF(OR('TSA Input'!J4567=\"Yes\",'TSA Input'!J4567=\"Contingent\"),'TSA Input'!C4567,\"\"))","v":""},{"$f":"IF('TSA Input'!J4567=\"\",\"\",IF(OR('TSA Input'!J4567=\"Yes\",'TSA Input'!J4567=\"Contingent\"),'TSA Input'!D4567,\"\"))","v":""},{"$f":"IF('TSA Input'!J4567=\"\",\"\",IF(OR('TSA Input'!J4567=\"Yes\",'TSA Input'!J4567=\"Contingent\"),'TSA Input'!G4567,\"\"))","v":""},{"$f":"IF('TSA Input'!J4567=\"\",\"\",IF(OR('TSA Input'!J4567=\"Yes\",'TSA Input'!J4567=\"Contingent\"),'TSA Input'!F4567,\"\"))","v":""},"",{"$f":"IF('TSA Input'!J4567=\"\",\"\",IF(OR('TSA Input'!J4567=\"Yes\",'TSA Input'!J4567=\"Contingent\"),'TSA Input'!D4567,\"\"))","v":""},{"$f":"IF('TSA Input'!J4567=\"\",\"\",IF(OR('TSA Input'!J4567=\"Yes\",'TSA Input'!J4567=\"Contingent\"),'TSA Input'!G4567,\"\"))","v":""},{"$f":"IF('TSA Input'!J4567=\"\",\"\",IF(OR('TSA Input'!J4567=\"Yes\",'TSA Input'!J4567=\"Contingent\"),'TSA Input'!F4567,\"\"))","v":""},"","Required","Required"]
["",null,{"$f":"IF('TSA Input'!J4568=\"\",\"\",IF(OR('TSA Input'!J4568=\"Yes\",'TSA Input'!J4568=\"Contingent\"),'TSA Input'!B4568,\"Ineligible\"))","v":""},{"$f":"IF('TSA Input'!J4568=\"\",\"\",IF(OR('TSA Input'!J4568=\"Yes\",'TSA Input'!J4568=\"Contingent\"),'TSA Input'!I4568,\"\"))","v":""},{"$f":"IF('TSA Input'!J4568=\"\",\"\",IF(OR('TSA Input'!J4568=\"Yes\",'TSA Input'!J4568=\"Contingent\"),'TSA Input'!C4568,\"\"))","v":""},{"$f":"IF('TSA Input'!J4568=\"\",\"\",IF(OR('TSA Input'!J4568=\"Yes\",'TSA Input'!J4568=\"Contingent\"),'TSA Input'!D4568,\"\"))","v":""},{"$f":"IF('TSA Input'!J4568=\"\",\"\",IF(OR('TSA Input'!J4568=\"Yes\",'TSA Input'!J4568=\"Contingent\"),'TSA Input'!G4568,\"\"))","v":""},{"$f":"IF('TSA Input'!J4568=\"\",\"\",IF(OR('TSA Input'!J4568=\"Yes\",'TSA Input'!J4568=\"Contingent\"),'TSA Input'!F4568,\"\"))","v":""},"",{"$f":"IF('TSA Input'!J4568=\"\",\"\",IF(OR('TSA Input'!J4568=\"Yes\",'TSA Input'!J4568=\"Contingent\"),'TSA Input'!D4568,\"\"))","v":""},{"$f":"IF('TSA Input'!J4568=\"\",\"\",IF(OR('TSA Input'!J4568=\"Yes\",'TSA Input'!J4568=\"Contingent\"),'TSA Input'!G4568,\"\"))","v":""},{"$f":"IF('TSA Input'!J4568=\"\",\"\",IF(OR('TSA Input'!J4568=\"Yes\",'TSA Input'!J4568=\"Contingent\"),'TSA Input'!F4568,\"\"))","v":""},"","Required","Required"]
["",null,{"$f":"IF('TSA Input'!J4569=\"\",\"\",IF(OR('TSA Input'!J4569=\"Yes\",'TSA Input'!J4569=\"Contingent\"),'TSA Input'!B4569,\"Ineligible\"))","v":""},{"$f":"IF('TSA Input'!J4569=\"\",\"\",IF(OR('TSA Input'!J4569=\"Yes\",'TSA Input'!J4569=\"Contingent\"),'TSA Input'!I4569,\"\"))","v":""},{"$f":"IF('TSA Input'!J4569=\"\",\"\",IF(OR('TSA Input'!J4569=\"Yes\",'TSA Input'!J4569=\"Contingent\"),'TSA Input'!C4569,\"\"))","v":""},{"$f":"IF('TSA Input'!J4569=\"\",\"\",IF(OR('TSA Input'!J4569=\"Yes\",'TSA Input'!J4569=\"Contingent\"),'TSA Input'!D4569,\"\"))","v":""},{"$f":"IF('TSA Input'!J4569=\"\",\"\",IF(OR('TSA Input'!J4569=\"Yes\",'TSA Input'!J4569=\"Contingent\"),'TSA Input'!G4569,\"\"))","v":""},{"$f":"IF('TSA Input'!J4569=\"\",\"\",IF(OR('TSA Input'!J4569=\"Yes\",'TSA Input'!J4569=\"Contingent\"),'TSA Input'!F4569,\"\"))","v":""},"",{"$f":"IF('TSA Input'!J4569=\"\",\"\",IF(OR('TSA Input'!J4569=\"Yes\",'TSA Input'!J4569=\"Contingent\"),'TSA Input'!D4569,\"\"))","v":""},{"$f":"IF('TSA Input'!J4569=\"\",\"\",IF(OR('TSA Input'!J4569=\"Yes\",'TSA Input'!J4569=\"Contingent\"),'TSA Input'!G4569,\"\"))","v":""},{"$f":"IF('TSA Input'!J4569=\"\",\"\",IF(OR('TSA Input'!J4569=\"Yes\",'TSA Input'!J4569=\"Contingent\"),'TSA Input'!F4569,\"\"))","v":""},"","Required","Required"]
["",null,{"$f":"IF('TSA Input'!J4570=\"\",\"\",IF(OR('TSA Input'!J4570=\"Yes\",'TSA Input'!J4570=\"Contingent\"),'TSA Input'!B4570,\"Ineligible\"))","v":""},{"$f":"IF('TSA Input'!J4570=\"\",\"\",IF(OR('TSA Input'!J4570=\"Yes\",'TSA Input'!J4570=\"Contingent\"),'TSA Input'!I4570,\"\"))","v":""},{"$f":"IF('TSA Input'!J4570=\"\",\"\",IF(OR('TSA Input'!J4570=\"Yes\",'TSA Input'!J4570=\"Contingent\"),'TSA Input'!C4570,\"\"))","v":""},{"$f":"IF('TSA Input'!J4570=\"\",\"\",IF(OR('TSA Input'!J4570=\"Yes\",'TSA Input'!J4570=\"Contingent\"),'TSA Input'!D4570,\"\"))","v":""},{"$f":"IF('TSA Input'!J4570=\"\",\"\",IF(OR('TSA Input'!J4570=\"Yes\",'TSA Input'!J4570=\"Contingent\"),'TSA Input'!G4570,\"\"))","v":""},{"$f":"IF('TSA Input'!J4570=\"\",\"\",IF(OR('TSA Input'!J4570=\"Yes\",'TSA Input'!J4570=\"Contingent\"),'TSA Input'!F4570,\"\"))","v":""},"",{"$f":"IF('TSA Input'!J4570=\"\",\"\",IF(OR('TSA Input'!J4570=\"Yes\",'TSA Input'!J4570=\"Contingent\"),'TSA Input'!D4570,\"\"))","v":""},{"$f":"IF('TSA Input'!J4570=\"\",\"\",IF(OR('TSA Input'!J4570=\"Yes\",'TSA Input'!J4570=\"Contingent\"),'TSA Input'!G4570,\"\"))","v":""},{"$f":"IF('TSA Input'!J4570=\"\",\"\",IF(OR('TSA Input'!J4570=\"Yes\",'TSA Input'!J4570=\"Contingent\"),'TSA Input'!F4570,\"\"))","v":""},"","Required","Required"]
["",null,{"$f":"IF('TSA Input'!J4571=\"\",\"\",IF(OR('TSA Input'!J4571=\"Yes\",'TSA Input'!J4571=\"Contingent\"),'TSA Input'!B4571,\"Ineligible\"))","v":""},{"$f":"IF('TSA Input'!J4571=\"\",\"\",IF(OR('TSA Input'!J4571=\"Yes\",'TSA Input'!J4571=\"Contingent\"),'TSA Input'!I4571,\"\"))","v":""},{"$f":"IF('TSA Input'!J4571=\"\",\"\",IF(OR('TSA Input'!J4571=\"Yes\",'TSA Input'!J4571=\"Contingent\"),'TSA Input'!C4571,\"\"))","v":""},{"$f":"IF('TSA Input'!J4571=\"\",\"\",IF(OR('TSA Input'!J4571=\"Yes\",'TSA Input'!J4571=\"Contingent\"),'TSA Input'!D4571,\"\"))","v":""},{"$f":"IF('TSA Input'!J4571=\"\",\"\",IF(OR('TSA Input'!J4571=\"Yes\",'TSA Input'!J4571=\"Contingent\"),'TSA Input'!G4571,\"\"))","v":""},{"$f":"IF('TSA Input'!J4571=\"\",\"\",IF(OR('TSA Input'!J4571=\"Yes\",'TSA Input'!J4571=\"Contingent\"),'TSA Input'!F4571,\"\"))","v":""},"",{"$f":"IF('TSA Input'!J4571=\"\",\"\",IF(OR('TSA Input'!J4571=\"Yes\",'TSA Input'!J4571=\"Contingent\"),'TSA Input'!D4571,\"\"))","v":""},{"$f":"IF('TSA Input'!J4571=\"\",\"\",IF(OR('TSA Input'!J4571=\"Yes\",'TSA Input'!J4571=\"Contingent\"),'TSA Input'!G4571,\"\"))","v":""},{"$f":"IF('TSA Input'!J4571=\"\",\"\",IF(OR('TSA Input'!J4571=\"Yes\",'TSA Input'!J4571=\"Contingent\"),'TSA Input'!F4571,\"\"))","v":""},"","Required","Required"]
["",null,{"$f":"IF('TSA Input'!J4572=\"\",\"\",IF(OR('TSA Input'!J4572=\"Yes\",'TSA Input'!J4572=\"Contingent\"),'TSA Input'!B4572,\"Ineligible\"))","v":""},{"$f":"IF('TSA Input'!J4572=\"\",\"\",IF(OR('TSA Input'!J4572=\"Yes\",'TSA Input'!J4572=\"Contingent\"),'TSA Input'!I4572,\"\"))","v":""},{"$f":"IF('TSA Input'!J4572=\"\",\"\",IF(OR('TSA Input'!J4572=\"Yes\",'TSA Input'!J4572=\"Contingent\"),'TSA Input'!C4572,\"\"))","v":""},{"$f":"IF('TSA Input'!J4572=\"\",\"\",IF(OR('TSA Input'!J4572=\"Yes\",'TSA Input'!J4572=\"Contingent\"),'TSA Input'!D4572,\"\"))","v":""},{"$f":"IF('TSA Input'!J4572=\"\",\"\",IF(OR('TSA Input'!J4572=\"Yes\",'TSA Input'!J4572=\"Contingent\"),'TSA Input'!G4572,\"\"))","v":""},{"$f":"IF('TSA Input'!J4572=\"\",\"\",IF(OR('TSA Input'!J4572=\"Yes\",'TSA Input'!J4572=\"Contingent\"),'TSA Input'!F4572,\"\"))","v":""},"",{"$f":"IF('TSA Input'!J4572=\"\",\"\",IF(OR('TSA Input'!J4572=\"Yes\",'TSA Input'!J4572=\"Contingent\"),'TSA Input'!D4572,\"\"))","v":""},{"$f":"IF('TSA Input'!J4572=\"\",\"\",IF(OR('TSA Input'!J4572=\"Yes\",'TSA Input'!J4572=\"Contingent\"),'TSA Input'!G4572,\"\"))","v":""},{"$f":"IF('TSA Input'!J4572=\"\",\"\",IF(OR('TSA Input'!J4572=\"Yes\",'TSA Input'!J4572=\"Contingent\"),'TSA Input'!F4572,\"\"))","v":""},"","Required","Required"]
["",null,{"$f":"IF('TSA Input'!J4573=\"\",\"\",IF(OR('TSA Input'!J4573=\"Yes\",'TSA Input'!J4573=\"Contingent\"),'TSA Input'!B4573,\"Ineligible\"))","v":""},{"$f":"IF('TSA Input'!J4573=\"\",\"\",IF(OR('TSA Input'!J4573=\"Yes\",'TSA Input'!J4573=\"Contingent\"),'TSA Input'!I4573,\"\"))","v":""},{"$f":"IF('TSA Input'!J4573=\"\",\"\",IF(OR('TSA Input'!J4573=\"Yes\",'TSA Input'!J4573=\"Contingent\"),'TSA Input'!C4573,\"\"))","v":""},{"$f":"IF('TSA Input'!J4573=\"\",\"\",IF(OR('TSA Input'!J4573=\"Yes\",'TSA Input'!J4573=\"Contingent\"),'TSA Input'!D4573,\"\"))","v":""},{"$f":"IF('TSA Input'!J4573=\"\",\"\",IF(OR('TSA Input'!J4573=\"Yes\",'TSA Input'!J4573=\"Contingent\"),'TSA Input'!G4573,\"\"))","v":""},{"$f":"IF('TSA Input'!J4573=\"\",\"\",IF(OR('TSA Input'!J4573=\"Yes\",'TSA Input'!J4573=\"Contingent\"),'TSA Input'!F4573,\"\"))","v":""},"",{"$f":"IF('TSA Input'!J4573=\"\",\"\",IF(OR('TSA Input'!J4573=\"Yes\",'TSA Input'!J4573=\"Contingent\"),'TSA Input'!D4573,\"\"))","v":""},{"$f":"IF('TSA Input'!J4573=\"\",\"\",IF(OR('TSA Input'!J4573=\"Yes\",'TSA Input'!J4573=\"Contingent\"),'TSA Input'!G4573,\"\"))","v":""},{"$f":"IF('TSA Input'!J4573=\"\",\"\",IF(OR('TSA Input'!J4573=\"Yes\",'TSA Input'!J4573=\"Contingent\"),'TSA Input'!F4573,\"\"))","v":""},"","Required","Required"]
["",null,{"$f":"IF('TSA Input'!J4574=\"\",\"\",IF(OR('TSA Input'!J4574=\"Yes\",'TSA Input'!J4574=\"Contingent\"),'TSA Input'!B4574,\"Ineligible\"))","v":""},{"$f":"IF('TSA Input'!J4574=\"\",\"\",IF(OR('TSA Input'!J4574=\"Yes\",'TSA Input'!J4574=\"Contingent\"),'TSA Input'!I4574,\"\"))","v":""},{"$f":"IF('TSA Input'!J4574=\"\",\"\",IF(OR('TSA Input'!J4574=\"Yes\",'TSA Input'!J4574=\"Contingent\"),'TSA Input'!C4574,\"\"))","v":""},{"$f":"IF('TSA Input'!J4574=\"\",\"\",IF(OR('TSA Input'!J4574=\"Yes\",'TSA Input'!J4574=\"Contingent\"),'TSA Input'!D4574,\"\"))","v":""},{"$f":"IF('TSA Input'!J4574=\"\",\"\",IF(OR('TSA Input'!J4574=\"Yes\",'TSA Input'!J4574=\"Contingent\"),'TSA Input'!G4574,\"\"))","v":""},{"$f":"IF('TSA Input'!J4574=\"\",\"\",IF(OR('TSA Input'!J4574=\"Yes\",'TSA Input'!J4574=\"Contingent\"),'TSA Input'!F4574,\"\"))","v":""},"",{"$f":"IF('TSA Input'!J4574=\"\",\"\",IF(OR('TSA Input'!J4574=\"Yes\",'TSA Input'!J4574=\"Contingent\"),'TSA Input'!D4574,\"\"))","v":""},{"$f":"IF('TSA Input'!J4574=\"\",\"\",IF(OR('TSA Input'!J4574=\"Yes\",'TSA Input'!J4574=\"Contingent\"),'TSA Input'!G4574,\"\"))","v":""},{"$f":"IF('TSA Input'!J4574=\"\",\"\",IF(OR('TSA Input'!J4574=\"Yes\",'TSA Input'!J4574=\"Contingent\"),'TSA Input'!F4574,\"\"))","v":""},"","Required","Required"]
["",null,{"$f":"IF('TSA Input'!J4575=\"\",\"\",IF(OR('TSA Input'!J4575=\"Yes\",'TSA Input'!J4575=\"Contingent\"),'TSA Input'!B4575,\"Ineligible\"))","v":""},{"$f":"IF('TSA Input'!J4575=\"\",\"\",IF(OR('TSA Input'!J4575=\"Yes\",'TSA Input'!J4575=\"Contingent\"),'TSA Input'!I4575,\"\"))","v":""},{"$f":"IF('TSA Input'!J4575=\"\",\"\",IF(OR('TSA Input'!J4575=\"Yes\",'TSA Input'!J4575=\"Contingent\"),'TSA Input'!C4575,\"\"))","v":""},{"$f":"IF('TSA Input'!J4575=\"\",\"\",IF(OR('TSA Input'!J4575=\"Yes\",'TSA Input'!J4575=\"Contingent\"),'TSA Input'!D4575,\"\"))","v":""},{"$f":"IF('TSA Input'!J4575=\"\",\"\",IF(OR('TSA Input'!J4575=\"Yes\",'TSA Input'!J4575=\"Contingent\"),'TSA Input'!G4575,\"\"))","v":""},{"$f":"IF('TSA Input'!J4575=\"\",\"\",IF(OR('TSA Input'!J4575=\"Yes\",'TSA Input'!J4575=\"Contingent\"),'TSA Input'!F4575,\"\"))","v":""},"",{"$f":"IF('TSA Input'!J4575=\"\",\"\",IF(OR('TSA Input'!J4575=\"Yes\",'TSA Input'!J4575=\"Contingent\"),'TSA Input'!D4575,\"\"))","v":""},{"$f":"IF('TSA Input'!J4575=\"\",\"\",IF(OR('TSA Input'!J4575=\"Yes\",'TSA Input'!J4575=\"Contingent\"),'TSA Input'!G4575,\"\"))","v":""},{"$f":"IF('TSA Input'!J4575=\"\",\"\",IF(OR('TSA Input'!J4575=\"Yes\",'TSA Input'!J4575=\"Contingent\"),'TSA Input'!F4575,\"\"))","v":""},"","Required","Required"]
["",null,{"$f":"IF('TSA Input'!J4576=\"\",\"\",IF(OR('TSA Input'!J4576=\"Yes\",'TSA Input'!J4576=\"Contingent\"),'TSA Input'!B4576,\"Ineligible\"))","v":""},{"$f":"IF('TSA Input'!J4576=\"\",\"\",IF(OR('TSA Input'!J4576=\"Yes\",'TSA Input'!J4576=\"Contingent\"),'TSA Input'!I4576,\"\"))","v":""},{"$f":"IF('TSA Input'!J4576=\"\",\"\",IF(OR('TSA Input'!J4576=\"Yes\",'TSA Input'!J4576=\"Contingent\"),'TSA Input'!C4576,\"\"))","v":""},{"$f":"IF('TSA Input'!J4576=\"\",\"\",IF(OR('TSA Input'!J4576=\"Yes\",'TSA Input'!J4576=\"Contingent\"),'TSA Input'!D4576,\"\"))","v":""},{"$f":"IF('TSA Input'!J4576=\"\",\"\",IF(OR('TSA Input'!J4576=\"Yes\",'TSA Input'!J4576=\"Contingent\"),'TSA Input'!G4576,\"\"))","v":""},{"$f":"IF('TSA Input'!J4576=\"\",\"\",IF(OR('TSA Input'!J4576=\"Yes\",'TSA Input'!J4576=\"Contingent\"),'TSA Input'!F4576,\"\"))","v":""},"",{"$f":"IF('TSA Input'!J4576=\"\",\"\",IF(OR('TSA Input'!J4576=\"Yes\",'TSA Input'!J4576=\"Contingent\"),'TSA Input'!D4576,\"\"))","v":""},{"$f":"IF('TSA Input'!J4576=\"\",\"\",IF(OR('TSA Input'!J4576=\"Yes\",'TSA Input'!J4576=\"Contingent\"),'TSA Input'!G4576,\"\"))","v":""},{"$f":"IF('TSA Input'!J4576=\"\",\"\",IF(OR('TSA Input'!J4576=\"Yes\",'TSA Input'!J4576=\"Contingent\"),'TSA Input'!F4576,\"\"))","v":""},"","Required","Required"]
["",null,{"$f":"IF('TSA Input'!J4577=\"\",\"\",IF(OR('TSA Input'!J4577=\"Yes\",'TSA Input'!J4577=\"Contingent\"),'TSA Input'!B4577,\"Ineligible\"))","v":""},{"$f":"IF('TSA Input'!J4577=\"\",\"\",IF(OR('TSA Input'!J4577=\"Yes\",'TSA Input'!J4577=\"Contingent\"),'TSA Input'!I4577,\"\"))","v":""},{"$f":"IF('TSA Input'!J4577=\"\",\"\",IF(OR('TSA Input'!J4577=\"Yes\",'TSA Input'!J4577=\"Contingent\"),'TSA Input'!C4577,\"\"))","v":""},{"$f":"IF('TSA Input'!J4577=\"\",\"\",IF(OR('TSA Input'!J4577=\"Yes\",'TSA Input'!J4577=\"Contingent\"),'TSA Input'!D4577,\"\"))","v":""},{"$f":"IF('TSA Input'!J4577=\"\",\"\",IF(OR('TSA Input'!J4577=\"Yes\",'TSA Input'!J4577=\"Contingent\"),'TSA Input'!G4577,\"\"))","v":""},{"$f":"IF('TSA Input'!J4577=\"\",\"\",IF(OR('TSA Input'!J4577=\"Yes\",'TSA Input'!J4577=\"Contingent\"),'TSA Input'!F4577,\"\"))","v":""},"",{"$f":"IF('TSA Input'!J4577=\"\",\"\",IF(OR('TSA Input'!J4577=\"Yes\",'TSA Input'!J4577=\"Contingent\"),'TSA Input'!D4577,\"\"))","v":""},{"$f":"IF('TSA Input'!J4577=\"\",\"\",IF(OR('TSA Input'!J4577=\"Yes\",'TSA Input'!J4577=\"Contingent\"),'TSA Input'!G4577,\"\"))","v":""},{"$f":"IF('TSA Input'!J4577=\"\",\"\",IF(OR('TSA Input'!J4577=\"Yes\",'TSA Input'!J4577=\"Contingent\"),'TSA Input'!F4577,\"\"))","v":""},"","Required","Required"]
["",null,{"$f":"IF('TSA Input'!J4578=\"\",\"\",IF(OR('TSA Input'!J4578=\"Yes\",'TSA Input'!J4578=\"Contingent\"),'TSA Input'!B4578,\"Ineligible\"))","v":""},{"$f":"IF('TSA Input'!J4578=\"\",\"\",IF(OR('TSA Input'!J4578=\"Yes\",'TSA Input'!J4578=\"Contingent\"),'TSA Input'!I4578,\"\"))","v":""},{"$f":"IF('TSA Input'!J4578=\"\",\"\",IF(OR('TSA Input'!J4578=\"Yes\",'TSA Input'!J4578=\"Contingent\"),'TSA Input'!C4578,\"\"))","v":""},{"$f":"IF('TSA Input'!J4578=\"\",\"\",IF(OR('TSA Input'!J4578=\"Yes\",'TSA Input'!J4578=\"Contingent\"),'TSA Input'!D4578,\"\"))","v":""},{"$f":"IF('TSA Input'!J4578=\"\",\"\",IF(OR('TSA Input'!J4578=\"Yes\",'TSA Input'!J4578=\"Contingent\"),'TSA Input'!G4578,\"\"))","v":""},{"$f":"IF('TSA Input'!J4578=\"\",\"\",IF(OR('TSA Input'!J4578=\"Yes\",'TSA Input'!J4578=\"Contingent\"),'TSA Input'!F4578,\"\"))","v":""},"",{"$f":"IF('TSA Input'!J4578=\"\",\"\",IF(OR('TSA Input'!J4578=\"Yes\",'TSA Input'!J4578=\"Contingent\"),'TSA Input'!D4578,\"\"))","v":""},{"$f":"IF('TSA Input'!J4578=\"\",\"\",IF(OR('TSA Input'!J4578=\"Yes\",'TSA Input'!J4578=\"Contingent\"),'TSA Input'!G4578,\"\"))","v":""},{"$f":"IF('TSA Input'!J4578=\"\",\"\",IF(OR('TSA Input'!J4578=\"Yes\",'TSA Input'!J4578=\"Contingent\"),'TSA Input'!F4578,\"\"))","v":""},"","Required","Required"]
["",null,{"$f":"IF('TSA Input'!J4579=\"\",\"\",IF(OR('TSA Input'!J4579=\"Yes\",'TSA Input'!J4579=\"Contingent\"),'TSA Input'!B4579,\"Ineligible\"))","v":""},{"$f":"IF('TSA Input'!J4579=\"\",\"\",IF(OR('TSA Input'!J4579=\"Yes\",'TSA Input'!J4579=\"Contingent\"),'TSA Input'!I4579,\"\"))","v":""},{"$f":"IF('TSA Input'!J4579=\"\",\"\",IF(OR('TSA Input'!J4579=\"Yes\",'TSA Input'!J4579=\"Contingent\"),'TSA Input'!C4579,\"\"))","v":""},{"$f":"IF('TSA Input'!J4579=\"\",\"\",IF(OR('TSA Input'!J4579=\"Yes\",'TSA Input'!J4579=\"Contingent\"),'TSA Input'!D4579,\"\"))","v":""},{"$f":"IF('TSA Input'!J4579=\"\",\"\",IF(OR('TSA Input'!J4579=\"Yes\",'TSA Input'!J4579=\"Contingent\"),'TSA Input'!G4579,\"\"))","v":""},{"$f":"IF('TSA Input'!J4579=\"\",\"\",IF(OR('TSA Input'!J4579=\"Yes\",'TSA Input'!J4579=\"Contingent\"),'TSA Input'!F4579,\"\"))","v":""},"",{"$f":"IF('TSA Input'!J4579=\"\",\"\",IF(OR('TSA Input'!J4579=\"Yes\",'TSA Input'!J4579=\"Contingent\"),'TSA Input'!D4579,\"\"))","v":""},{"$f":"IF('TSA Input'!J4579=\"\",\"\",IF(OR('TSA Input'!J4579=\"Yes\",'TSA Input'!J4579=\"Contingent\"),'TSA Input'!G4579,\"\"))","v":""},{"$f":"IF('TSA Input'!J4579=\"\",\"\",IF(OR('TSA Input'!J4579=\"Yes\",'TSA Input'!J4579=\"Contingent\"),'TSA Input'!F4579,\"\"))","v":""},"","Required","Required"]
["",null,{"$f":"IF('TSA Input'!J4580=\"\",\"\",IF(OR('TSA Input'!J4580=\"Yes\",'TSA Input'!J4580=\"Contingent\"),'TSA Input'!B4580,\"Ineligible\"))","v":""},{"$f":"IF('TSA Input'!J4580=\"\",\"\",IF(OR('TSA Input'!J4580=\"Yes\",'TSA Input'!J4580=\"Contingent\"),'TSA Input'!I4580,\"\"))","v":""},{"$f":"IF('TSA Input'!J4580=\"\",\"\",IF(OR('TSA Input'!J4580=\"Yes\",'TSA Input'!J4580=\"Contingent\"),'TSA Input'!C4580,\"\"))","v":""},{"$f":"IF('TSA Input'!J4580=\"\",\"\",IF(OR('TSA Input'!J4580=\"Yes\",'TSA Input'!J4580=\"Contingent\"),'TSA Input'!D4580,\"\"))","v":""},{"$f":"IF('TSA Input'!J4580=\"\",\"\",IF(OR('TSA Input'!J4580=\"Yes\",'TSA Input'!J4580=\"Contingent\"),'TSA Input'!G4580,\"\"))","v":""},{"$f":"IF('TSA Input'!J4580=\"\",\"\",IF(OR('TSA Input'!J4580=\"Yes\",'TSA Input'!J4580=\"Contingent\"),'TSA Input'!F4580,\"\"))","v":""},"",{"$f":"IF('TSA Input'!J4580=\"\",\"\",IF(OR('TSA Input'!J4580=\"Yes\",'TSA Input'!J4580=\"Contingent\"),'TSA Input'!D4580,\"\"))","v":""},{"$f":"IF('TSA Input'!J4580=\"\",\"\",IF(OR('TSA Input'!J4580=\"Yes\",'TSA Input'!J4580=\"Contingent\"),'TSA Input'!G4580,\"\"))","v":""},{"$f":"IF('TSA Input'!J4580=\"\",\"\",IF(OR('TSA Input'!J4580=\"Yes\",'TSA Input'!J4580=\"Contingent\"),'TSA Input'!F4580,\"\"))","v":""},"","Required","Required"]
["",null,{"$f":"IF('TSA Input'!J4581=\"\",\"\",IF(OR('TSA Input'!J4581=\"Yes\",'TSA Input'!J4581=\"Contingent\"),'TSA Input'!B4581,\"Ineligible\"))","v":""},{"$f":"IF('TSA Input'!J4581=\"\",\"\",IF(OR('TSA Input'!J4581=\"Yes\",'TSA Input'!J4581=\"Contingent\"),'TSA Input'!I4581,\"\"))","v":""},{"$f":"IF('TSA Input'!J4581=\"\",\"\",IF(OR('TSA Input'!J4581=\"Yes\",'TSA Input'!J4581=\"Contingent\"),'TSA Input'!C4581,\"\"))","v":""},{"$f":"IF('TSA Input'!J4581=\"\",\"\",IF(OR('TSA Input'!J4581=\"Yes\",'TSA Input'!J4581=\"Contingent\"),'TSA Input'!D4581,\"\"))","v":""},{"$f":"IF('TSA Input'!J4581=\"\",\"\",IF(OR('TSA Input'!J4581=\"Yes\",'TSA Input'!J4581=\"Contingent\"),'TSA Input'!G4581,\"\"))","v":""},{"$f":"IF('TSA Input'!J4581=\"\",\"\",IF(OR('TSA Input'!J4581=\"Yes\",'TSA Input'!J4581=\"Contingent\"),'TSA Input'!F4581,\"\"))","v":""},"",{"$f":"IF('TSA Input'!J4581=\"\",\"\",IF(OR('TSA Input'!J4581=\"Yes\",'TSA Input'!J4581=\"Contingent\"),'TSA Input'!D4581,\"\"))","v":""},{"$f":"IF('TSA Input'!J4581=\"\",\"\",IF(OR('TSA Input'!J4581=\"Yes\",'TSA Input'!J4581=\"Contingent\"),'TSA Input'!G4581,\"\"))","v":""},{"$f":"IF('TSA Input'!J4581=\"\",\"\",IF(OR('TSA Input'!J4581=\"Yes\",'TSA Input'!J4581=\"Contingent\"),'TSA Input'!F4581,\"\"))","v":""},"","Required","Required"]
["",null,{"$f":"IF('TSA Input'!J4582=\"\",\"\",IF(OR('TSA Input'!J4582=\"Yes\",'TSA Input'!J4582=\"Contingent\"),'TSA Input'!B4582,\"Ineligible\"))","v":""},{"$f":"IF('TSA Input'!J4582=\"\",\"\",IF(OR('TSA Input'!J4582=\"Yes\",'TSA Input'!J4582=\"Contingent\"),'TSA Input'!I4582,\"\"))","v":""},{"$f":"IF('TSA Input'!J4582=\"\",\"\",IF(OR('TSA Input'!J4582=\"Yes\",'TSA Input'!J4582=\"Contingent\"),'TSA Input'!C4582,\"\"))","v":""},{"$f":"IF('TSA Input'!J4582=\"\",\"\",IF(OR('TSA Input'!J4582=\"Yes\",'TSA Input'!J4582=\"Contingent\"),'TSA Input'!D4582,\"\"))","v":""},{"$f":"IF('TSA Input'!J4582=\"\",\"\",IF(OR('TSA Input'!J4582=\"Yes\",'TSA Input'!J4582=\"Contingent\"),'TSA Input'!G4582,\"\"))","v":""},{"$f":"IF('TSA Input'!J4582=\"\",\"\",IF(OR('TSA Input'!J4582=\"Yes\",'TSA Input'!J4582=\"Contingent\"),'TSA Input'!F4582,\"\"))","v":""},"",{"$f":"IF('TSA Input'!J4582=\"\",\"\",IF(OR('TSA Input'!J4582=\"Yes\",'TSA Input'!J4582=\"Contingent\"),'TSA Input'!D4582,\"\"))","v":""},{"$f":"IF('TSA Input'!J4582=\"\",\"\",IF(OR('TSA Input'!J4582=\"Yes\",'TSA Input'!J4582=\"Contingent\"),'TSA Input'!G4582,\"\"))","v":""},{"$f":"IF('TSA Input'!J4582=\"\",\"\",IF(OR('TSA Input'!J4582=\"Yes\",'TSA Input'!J4582=\"Contingent\"),'TSA Input'!F4582,\"\"))","v":""},"","Required","Required"]
["",null,{"$f":"IF('TSA Input'!J4583=\"\",\"\",IF(OR('TSA Input'!J4583=\"Yes\",'TSA Input'!J4583=\"Contingent\"),'TSA Input'!B4583,\"Ineligible\"))","v":""},{"$f":"IF('TSA Input'!J4583=\"\",\"\",IF(OR('TSA Input'!J4583=\"Yes\",'TSA Input'!J4583=\"Contingent\"),'TSA Input'!I4583,\"\"))","v":""},{"$f":"IF('TSA Input'!J4583=\"\",\"\",IF(OR('TSA Input'!J4583=\"Yes\",'TSA Input'!J4583=\"Contingent\"),'TSA Input'!C4583,\"\"))","v":""},{"$f":"IF('TSA Input'!J4583=\"\",\"\",IF(OR('TSA Input'!J4583=\"Yes\",'TSA Input'!J4583=\"Contingent\"),'TSA Input'!D4583,\"\"))","v":""},{"$f":"IF('TSA Input'!J4583=\"\",\"\",IF(OR('TSA Input'!J4583=\"Yes\",'TSA Input'!J4583=\"Contingent\"),'TSA Input'!G4583,\"\"))","v":""},{"$f":"IF('TSA Input'!J4583=\"\",\"\",IF(OR('TSA Input'!J4583=\"Yes\",'TSA Input'!J4583=\"Contingent\"),'TSA Input'!F4583,\"\"))","v":""},"",{"$f":"IF('TSA Input'!J4583=\"\",\"\",IF(OR('TSA Input'!J4583=\"Yes\",'TSA Input'!J4583=\"Contingent\"),'TSA Input'!D4583,\"\"))","v":""},{"$f":"IF('TSA Input'!J4583=\"\",\"\",IF(OR('TSA Input'!J4583=\"Yes\",'TSA Input'!J4583=\"Contingent\"),'TSA Input'!G4583,\"\"))","v":""},{"$f":"IF('TSA Input'!J4583=\"\",\"\",IF(OR('TSA Input'!J4583=\"Yes\",'TSA Input'!J4583=\"Contingent\"),'TSA Input'!F4583,\"\"))","v":""},"","Required","Required"]
["",null,{"$f":"IF('TSA Input'!J4584=\"\",\"\",IF(OR('TSA Input'!J4584=\"Yes\",'TSA Input'!J4584=\"Contingent\"),'TSA Input'!B4584,\"Ineligible\"))","v":""},{"$f":"IF('TSA Input'!J4584=\"\",\"\",IF(OR('TSA Input'!J4584=\"Yes\",'TSA Input'!J4584=\"Contingent\"),'TSA Input'!I4584,\"\"))","v":""},{"$f":"IF('TSA Input'!J4584=\"\",\"\",IF(OR('TSA Input'!J4584=\"Yes\",'TSA Input'!J4584=\"Contingent\"),'TSA Input'!C4584,\"\"))","v":""},{"$f":"IF('TSA Input'!J4584=\"\",\"\",IF(OR('TSA Input'!J4584=\"Yes\",'TSA Input'!J4584=\"Contingent\"),'TSA Input'!D4584,\"\"))","v":""},{"$f":"IF('TSA Input'!J4584=\"\",\"\",IF(OR('TSA Input'!J4584=\"Yes\",'TSA Input'!J4584=\"Contingent\"),'TSA Input'!G4584,\"\"))","v":""},{"$f":"IF('TSA Input'!J4584=\"\",\"\",IF(OR('TSA Input'!J4584=\"Yes\",'TSA Input'!J4584=\"Contingent\"),'TSA Input'!F4584,\"\"))","v":""},"",{"$f":"IF('TSA Input'!J4584=\"\",\"\",IF(OR('TSA Input'!J4584=\"Yes\",'TSA Input'!J4584=\"Contingent\"),'TSA Input'!D4584,\"\"))","v":""},{"$f":"IF('TSA Input'!J4584=\"\",\"\",IF(OR('TSA Input'!J4584=\"Yes\",'TSA Input'!J4584=\"Contingent\"),'TSA Input'!G4584,\"\"))","v":""},{"$f":"IF('TSA Input'!J4584=\"\",\"\",IF(OR('TSA Input'!J4584=\"Yes\",'TSA Input'!J4584=\"Contingent\"),'TSA Input'!F4584,\"\"))","v":""},"","Required","Required"]
["",null,{"$f":"IF('TSA Input'!J4585=\"\",\"\",IF(OR('TSA Input'!J4585=\"Yes\",'TSA Input'!J4585=\"Contingent\"),'TSA Input'!B4585,\"Ineligible\"))","v":""},{"$f":"IF('TSA Input'!J4585=\"\",\"\",IF(OR('TSA Input'!J4585=\"Yes\",'TSA Input'!J4585=\"Contingent\"),'TSA Input'!I4585,\"\"))","v":""},{"$f":"IF('TSA Input'!J4585=\"\",\"\",IF(OR('TSA Input'!J4585=\"Yes\",'TSA Input'!J4585=\"Contingent\"),'TSA Input'!C4585,\"\"))","v":""},{"$f":"IF('TSA Input'!J4585=\"\",\"\",IF(OR('TSA Input'!J4585=\"Yes\",'TSA Input'!J4585=\"Contingent\"),'TSA Input'!D4585,\"\"))","v":""},{"$f":"IF('TSA Input'!J4585=\"\",\"\",IF(OR('TSA Input'!J4585=\"Yes\",'TSA Input'!J4585=\"Contingent\"),'TSA Input'!G4585,\"\"))","v":""},{"$f":"IF('TSA Input'!J4585=\"\",\"\",IF(OR('TSA Input'!J4585=\"Yes\",'TSA Input'!J4585=\"Contingent\"),'TSA Input'!F4585,\"\"))","v":""},"",{"$f":"IF('TSA Input'!J4585=\"\",\"\",IF(OR('TSA Input'!J4585=\"Yes\",'TSA Input'!J4585=\"Contingent\"),'TSA Input'!D4585,\"\"))","v":""},{"$f":"IF('TSA Input'!J4585=\"\",\"\",IF(OR('TSA Input'!J4585=\"Yes\",'TSA Input'!J4585=\"Contingent\"),'TSA Input'!G4585,\"\"))","v":""},{"$f":"IF('TSA Input'!J4585=\"\",\"\",IF(OR('TSA Input'!J4585=\"Yes\",'TSA Input'!J4585=\"Contingent\"),'TSA Input'!F4585,\"\"))","v":""},"","Required","Required"]
["",null,{"$f":"IF('TSA Input'!J4586=\"\",\"\",IF(OR('TSA Input'!J4586=\"Yes\",'TSA Input'!J4586=\"Contingent\"),'TSA Input'!B4586,\"Ineligible\"))","v":""},{"$f":"IF('TSA Input'!J4586=\"\",\"\",IF(OR('TSA Input'!J4586=\"Yes\",'TSA Input'!J4586=\"Contingent\"),'TSA Input'!I4586,\"\"))","v":""},{"$f":"IF('TSA Input'!J4586=\"\",\"\",IF(OR('TSA Input'!J4586=\"Yes\",'TSA Input'!J4586=\"Contingent\"),'TSA Input'!C4586,\"\"))","v":""},{"$f":"IF('TSA Input'!J4586=\"\",\"\",IF(OR('TSA Input'!J4586=\"Yes\",'TSA Input'!J4586=\"Contingent\"),'TSA Input'!D4586,\"\"))","v":""},{"$f":"IF('TSA Input'!J4586=\"\",\"\",IF(OR('TSA Input'!J4586=\"Yes\",'TSA Input'!J4586=\"Contingent\"),'TSA Input'!G4586,\"\"))","v":""},{"$f":"IF('TSA Input'!J4586=\"\",\"\",IF(OR('TSA Input'!J4586=\"Yes\",'TSA Input'!J4586=\"Contingent\"),'TSA Input'!F4586,\"\"))","v":""},"",{"$f":"IF('TSA Input'!J4586=\"\",\"\",IF(OR('TSA Input'!J4586=\"Yes\",'TSA Input'!J4586=\"Contingent\"),'TSA Input'!D4586,\"\"))","v":""},{"$f":"IF('TSA Input'!J4586=\"\",\"\",IF(OR('TSA Input'!J4586=\"Yes\",'TSA Input'!J4586=\"Contingent\"),'TSA Input'!G4586,\"\"))","v":""},{"$f":"IF('TSA Input'!J4586=\"\",\"\",IF(OR('TSA Input'!J4586=\"Yes\",'TSA Input'!J4586=\"Contingent\"),'TSA Input'!F4586,\"\"))","v":""},"","Required","Required"]
["",null,{"$f":"IF('TSA Input'!J4587=\"\",\"\",IF(OR('TSA Input'!J4587=\"Yes\",'TSA Input'!J4587=\"Contingent\"),'TSA Input'!B4587,\"Ineligible\"))","v":""},{"$f":"IF('TSA Input'!J4587=\"\",\"\",IF(OR('TSA Input'!J4587=\"Yes\",'TSA Input'!J4587=\"Contingent\"),'TSA Input'!I4587,\"\"))","v":""},{"$f":"IF('TSA Input'!J4587=\"\",\"\",IF(OR('TSA Input'!J4587=\"Yes\",'TSA Input'!J4587=\"Contingent\"),'TSA Input'!C4587,\"\"))","v":""},{"$f":"IF('TSA Input'!J4587=\"\",\"\",IF(OR('TSA Input'!J4587=\"Yes\",'TSA Input'!J4587=\"Contingent\"),'TSA Input'!D4587,\"\"))","v":""},{"$f":"IF('TSA Input'!J4587=\"\",\"\",IF(OR('TSA Input'!J4587=\"Yes\",'TSA Input'!J4587=\"Contingent\"),'TSA Input'!G4587,\"\"))","v":""},{"$f":"IF('TSA Input'!J4587=\"\",\"\",IF(OR('TSA Input'!J4587=\"Yes\",'TSA Input'!J4587=\"Contingent\"),'TSA Input'!F4587,\"\"))","v":""},"",{"$f":"IF('TSA Input'!J4587=\"\",\"\",IF(OR('TSA Input'!J4587=\"Yes\",'TSA Input'!J4587=\"Contingent\"),'TSA Input'!D4587,\"\"))","v":""},{"$f":"IF('TSA Input'!J4587=\"\",\"\",IF(OR('TSA Input'!J4587=\"Yes\",'TSA Input'!J4587=\"Contingent\"),'TSA Input'!G4587,\"\"))","v":""},{"$f":"IF('TSA Input'!J4587=\"\",\"\",IF(OR('TSA Input'!J4587=\"Yes\",'TSA Input'!J4587=\"Contingent\"),'TSA Input'!F4587,\"\"))","v":""},"","Required","Required"]
["",null,{"$f":"IF('TSA Input'!J4588=\"\",\"\",IF(OR('TSA Input'!J4588=\"Yes\",'TSA Input'!J4588=\"Contingent\"),'TSA Input'!B4588,\"Ineligible\"))","v":""},{"$f":"IF('TSA Input'!J4588=\"\",\"\",IF(OR('TSA Input'!J4588=\"Yes\",'TSA Input'!J4588=\"Contingent\"),'TSA Input'!I4588,\"\"))","v":""},{"$f":"IF('TSA Input'!J4588=\"\",\"\",IF(OR('TSA Input'!J4588=\"Yes\",'TSA Input'!J4588=\"Contingent\"),'TSA Input'!C4588,\"\"))","v":""},{"$f":"IF('TSA Input'!J4588=\"\",\"\",IF(OR('TSA Input'!J4588=\"Yes\",'TSA Input'!J4588=\"Contingent\"),'TSA Input'!D4588,\"\"))","v":""},{"$f":"IF('TSA Input'!J4588=\"\",\"\",IF(OR('TSA Input'!J4588=\"Yes\",'TSA Input'!J4588=\"Contingent\"),'TSA Input'!G4588,\"\"))","v":""},{"$f":"IF('TSA Input'!J4588=\"\",\"\",IF(OR('TSA Input'!J4588=\"Yes\",'TSA Input'!J4588=\"Contingent\"),'TSA Input'!F4588,\"\"))","v":""},"",{"$f":"IF('TSA Input'!J4588=\"\",\"\",IF(OR('TSA Input'!J4588=\"Yes\",'TSA Input'!J4588=\"Contingent\"),'TSA Input'!D4588,\"\"))","v":""},{"$f":"IF('TSA Input'!J4588=\"\",\"\",IF(OR('TSA Input'!J4588=\"Yes\",'TSA Input'!J4588=\"Contingent\"),'TSA Input'!G4588,\"\"))","v":""},{"$f":"IF('TSA Input'!J4588=\"\",\"\",IF(OR('TSA Input'!J4588=\"Yes\",'TSA Input'!J4588=\"Contingent\"),'TSA Input'!F4588,\"\"))","v":""},"","Required","Required"]
["",null,{"$f":"IF('TSA Input'!J4589=\"\",\"\",IF(OR('TSA Input'!J4589=\"Yes\",'TSA Input'!J4589=\"Contingent\"),'TSA Input'!B4589,\"Ineligible\"))","v":""},{"$f":"IF('TSA Input'!J4589=\"\",\"\",IF(OR('TSA Input'!J4589=\"Yes\",'TSA Input'!J4589=\"Contingent\"),'TSA Input'!I4589,\"\"))","v":""},{"$f":"IF('TSA Input'!J4589=\"\",\"\",IF(OR('TSA Input'!J4589=\"Yes\",'TSA Input'!J4589=\"Contingent\"),'TSA Input'!C4589,\"\"))","v":""},{"$f":"IF('TSA Input'!J4589=\"\",\"\",IF(OR('TSA Input'!J4589=\"Yes\",'TSA Input'!J4589=\"Contingent\"),'TSA Input'!D4589,\"\"))","v":""},{"$f":"IF('TSA Input'!J4589=\"\",\"\",IF(OR('TSA Input'!J4589=\"Yes\",'TSA Input'!J4589=\"Contingent\"),'TSA Input'!G4589,\"\"))","v":""},{"$f":"IF('TSA Input'!J4589=\"\",\"\",IF(OR('TSA Input'!J4589=\"Yes\",'TSA Input'!J4589=\"Contingent\"),'TSA Input'!F4589,\"\"))","v":""},"",{"$f":"IF('TSA Input'!J4589=\"\",\"\",IF(OR('TSA Input'!J4589=\"Yes\",'TSA Input'!J4589=\"Contingent\"),'TSA Input'!D4589,\"\"))","v":""},{"$f":"IF('TSA Input'!J4589=\"\",\"\",IF(OR('TSA Input'!J4589=\"Yes\",'TSA Input'!J4589=\"Contingent\"),'TSA Input'!G4589,\"\"))","v":""},{"$f":"IF('TSA Input'!J4589=\"\",\"\",IF(OR('TSA Input'!J4589=\"Yes\",'TSA Input'!J4589=\"Contingent\"),'TSA Input'!F4589,\"\"))","v":""},"","Required","Required"]
["",null,{"$f":"IF('TSA Input'!J4590=\"\",\"\",IF(OR('TSA Input'!J4590=\"Yes\",'TSA Input'!J4590=\"Contingent\"),'TSA Input'!B4590,\"Ineligible\"))","v":""},{"$f":"IF('TSA Input'!J4590=\"\",\"\",IF(OR('TSA Input'!J4590=\"Yes\",'TSA Input'!J4590=\"Contingent\"),'TSA Input'!I4590,\"\"))","v":""},{"$f":"IF('TSA Input'!J4590=\"\",\"\",IF(OR('TSA Input'!J4590=\"Yes\",'TSA Input'!J4590=\"Contingent\"),'TSA Input'!C4590,\"\"))","v":""},{"$f":"IF('TSA Input'!J4590=\"\",\"\",IF(OR('TSA Input'!J4590=\"Yes\",'TSA Input'!J4590=\"Contingent\"),'TSA Input'!D4590,\"\"))","v":""},{"$f":"IF('TSA Input'!J4590=\"\",\"\",IF(OR('TSA Input'!J4590=\"Yes\",'TSA Input'!J4590=\"Contingent\"),'TSA Input'!G4590,\"\"))","v":""},{"$f":"IF('TSA Input'!J4590=\"\",\"\",IF(OR('TSA Input'!J4590=\"Yes\",'TSA Input'!J4590=\"Contingent\"),'TSA Input'!F4590,\"\"))","v":""},"",{"$f":"IF('TSA Input'!J4590=\"\",\"\",IF(OR('TSA Input'!J4590=\"Yes\",'TSA Input'!J4590=\"Contingent\"),'TSA Input'!D4590,\"\"))","v":""},{"$f":"IF('TSA Input'!J4590=\"\",\"\",IF(OR('TSA Input'!J4590=\"Yes\",'TSA Input'!J4590=\"Contingent\"),'TSA Input'!G4590,\"\"))","v":""},{"$f":"IF('TSA Input'!J4590=\"\",\"\",IF(OR('TSA Input'!J4590=\"Yes\",'TSA Input'!J4590=\"Contingent\"),'TSA Input'!F4590,\"\"))","v":""},"","Required","Required"]
["",null,{"$f":"IF('TSA Input'!J4591=\"\",\"\",IF(OR('TSA Input'!J4591=\"Yes\",'TSA Input'!J4591=\"Contingent\"),'TSA Input'!B4591,\"Ineligible\"))","v":""},{"$f":"IF('TSA Input'!J4591=\"\",\"\",IF(OR('TSA Input'!J4591=\"Yes\",'TSA Input'!J4591=\"Contingent\"),'TSA Input'!I4591,\"\"))","v":""},{"$f":"IF('TSA Input'!J4591=\"\",\"\",IF(OR('TSA Input'!J4591=\"Yes\",'TSA Input'!J4591=\"Contingent\"),'TSA Input'!C4591,\"\"))","v":""},{"$f":"IF('TSA Input'!J4591=\"\",\"\",IF(OR('TSA Input'!J4591=\"Yes\",'TSA Input'!J4591=\"Contingent\"),'TSA Input'!D4591,\"\"))","v":""},{"$f":"IF('TSA Input'!J4591=\"\",\"\",IF(OR('TSA Input'!J4591=\"Yes\",'TSA Input'!J4591=\"Contingent\"),'TSA Input'!G4591,\"\"))","v":""},{"$f":"IF('TSA Input'!J4591=\"\",\"\",IF(OR('TSA Input'!J4591=\"Yes\",'TSA Input'!J4591=\"Contingent\"),'TSA Input'!F4591,\"\"))","v":""},"",{"$f":"IF('TSA Input'!J4591=\"\",\"\",IF(OR('TSA Input'!J4591=\"Yes\",'TSA Input'!J4591=\"Contingent\"),'TSA Input'!D4591,\"\"))","v":""},{"$f":"IF('TSA Input'!J4591=\"\",\"\",IF(OR('TSA Input'!J4591=\"Yes\",'TSA Input'!J4591=\"Contingent\"),'TSA Input'!G4591,\"\"))","v":""},{"$f":"IF('TSA Input'!J4591=\"\",\"\",IF(OR('TSA Input'!J4591=\"Yes\",'TSA Input'!J4591=\"Contingent\"),'TSA Input'!F4591,\"\"))","v":""},"","Required","Required"]
["",null,{"$f":"IF('TSA Input'!J4592=\"\",\"\",IF(OR('TSA Input'!J4592=\"Yes\",'TSA Input'!J4592=\"Contingent\"),'TSA Input'!B4592,\"Ineligible\"))","v":""},{"$f":"IF('TSA Input'!J4592=\"\",\"\",IF(OR('TSA Input'!J4592=\"Yes\",'TSA Input'!J4592=\"Contingent\"),'TSA Input'!I4592,\"\"))","v":""},{"$f":"IF('TSA Input'!J4592=\"\",\"\",IF(OR('TSA Input'!J4592=\"Yes\",'TSA Input'!J4592=\"Contingent\"),'TSA Input'!C4592,\"\"))","v":""},{"$f":"IF('TSA Input'!J4592=\"\",\"\",IF(OR('TSA Input'!J4592=\"Yes\",'TSA Input'!J4592=\"Contingent\"),'TSA Input'!D4592,\"\"))","v":""},{"$f":"IF('TSA Input'!J4592=\"\",\"\",IF(OR('TSA Input'!J4592=\"Yes\",'TSA Input'!J4592=\"Contingent\"),'TSA Input'!G4592,\"\"))","v":""},{"$f":"IF('TSA Input'!J4592=\"\",\"\",IF(OR('TSA Input'!J4592=\"Yes\",'TSA Input'!J4592=\"Contingent\"),'TSA Input'!F4592,\"\"))","v":""},"",{"$f":"IF('TSA Input'!J4592=\"\",\"\",IF(OR('TSA Input'!J4592=\"Yes\",'TSA Input'!J4592=\"Contingent\"),'TSA Input'!D4592,\"\"))","v":""},{"$f":"IF('TSA Input'!J4592=\"\",\"\",IF(OR('TSA Input'!J4592=\"Yes\",'TSA Input'!J4592=\"Contingent\"),'TSA Input'!G4592,\"\"))","v":""},{"$f":"IF('TSA Input'!J4592=\"\",\"\",IF(OR('TSA Input'!J4592=\"Yes\",'TSA Input'!J4592=\"Contingent\"),'TSA Input'!F4592,\"\"))","v":""},"","Required","Required"]
["",null,{"$f":"IF('TSA Input'!J4593=\"\",\"\",IF(OR('TSA Input'!J4593=\"Yes\",'TSA Input'!J4593=\"Contingent\"),'TSA Input'!B4593,\"Ineligible\"))","v":""},{"$f":"IF('TSA Input'!J4593=\"\",\"\",IF(OR('TSA Input'!J4593=\"Yes\",'TSA Input'!J4593=\"Contingent\"),'TSA Input'!I4593,\"\"))","v":""},{"$f":"IF('TSA Input'!J4593=\"\",\"\",IF(OR('TSA Input'!J4593=\"Yes\",'TSA Input'!J4593=\"Contingent\"),'TSA Input'!C4593,\"\"))","v":""},{"$f":"IF('TSA Input'!J4593=\"\",\"\",IF(OR('TSA Input'!J4593=\"Yes\",'TSA Input'!J4593=\"Contingent\"),'TSA Input'!D4593,\"\"))","v":""},{"$f":"IF('TSA Input'!J4593=\"\",\"\",IF(OR('TSA Input'!J4593=\"Yes\",'TSA Input'!J4593=\"Contingent\"),'TSA Input'!G4593,\"\"))","v":""},{"$f":"IF('TSA Input'!J4593=\"\",\"\",IF(OR('TSA Input'!J4593=\"Yes\",'TSA Input'!J4593=\"Contingent\"),'TSA Input'!F4593,\"\"))","v":""},"",{"$f":"IF('TSA Input'!J4593=\"\",\"\",IF(OR('TSA Input'!J4593=\"Yes\",'TSA Input'!J4593=\"Contingent\"),'TSA Input'!D4593,\"\"))","v":""},{"$f":"IF('TSA Input'!J4593=\"\",\"\",IF(OR('TSA Input'!J4593=\"Yes\",'TSA Input'!J4593=\"Contingent\"),'TSA Input'!G4593,\"\"))","v":""},{"$f":"IF('TSA Input'!J4593=\"\",\"\",IF(OR('TSA Input'!J4593=\"Yes\",'TSA Input'!J4593=\"Contingent\"),'TSA Input'!F4593,\"\"))","v":""},"","Required","Required"]
["",null,{"$f":"IF('TSA Input'!J4594=\"\",\"\",IF(OR('TSA Input'!J4594=\"Yes\",'TSA Input'!J4594=\"Contingent\"),'TSA Input'!B4594,\"Ineligible\"))","v":""},{"$f":"IF('TSA Input'!J4594=\"\",\"\",IF(OR('TSA Input'!J4594=\"Yes\",'TSA Input'!J4594=\"Contingent\"),'TSA Input'!I4594,\"\"))","v":""},{"$f":"IF('TSA Input'!J4594=\"\",\"\",IF(OR('TSA Input'!J4594=\"Yes\",'TSA Input'!J4594=\"Contingent\"),'TSA Input'!C4594,\"\"))","v":""},{"$f":"IF('TSA Input'!J4594=\"\",\"\",IF(OR('TSA Input'!J4594=\"Yes\",'TSA Input'!J4594=\"Contingent\"),'TSA Input'!D4594,\"\"))","v":""},{"$f":"IF('TSA Input'!J4594=\"\",\"\",IF(OR('TSA Input'!J4594=\"Yes\",'TSA Input'!J4594=\"Contingent\"),'TSA Input'!G4594,\"\"))","v":""},{"$f":"IF('TSA Input'!J4594=\"\",\"\",IF(OR('TSA Input'!J4594=\"Yes\",'TSA Input'!J4594=\"Contingent\"),'TSA Input'!F4594,\"\"))","v":""},"",{"$f":"IF('TSA Input'!J4594=\"\",\"\",IF(OR('TSA Input'!J4594=\"Yes\",'TSA Input'!J4594=\"Contingent\"),'TSA Input'!D4594,\"\"))","v":""},{"$f":"IF('TSA Input'!J4594=\"\",\"\",IF(OR('TSA Input'!J4594=\"Yes\",'TSA Input'!J4594=\"Contingent\"),'TSA Input'!G4594,\"\"))","v":""},{"$f":"IF('TSA Input'!J4594=\"\",\"\",IF(OR('TSA Input'!J4594=\"Yes\",'TSA Input'!J4594=\"Contingent\"),'TSA Input'!F4594,\"\"))","v":""},"","Required","Required"]
["",null,{"$f":"IF('TSA Input'!J4595=\"\",\"\",IF(OR('TSA Input'!J4595=\"Yes\",'TSA Input'!J4595=\"Contingent\"),'TSA Input'!B4595,\"Ineligible\"))","v":""},{"$f":"IF('TSA Input'!J4595=\"\",\"\",IF(OR('TSA Input'!J4595=\"Yes\",'TSA Input'!J4595=\"Contingent\"),'TSA Input'!I4595,\"\"))","v":""},{"$f":"IF('TSA Input'!J4595=\"\",\"\",IF(OR('TSA Input'!J4595=\"Yes\",'TSA Input'!J4595=\"Contingent\"),'TSA Input'!C4595,\"\"))","v":""},{"$f":"IF('TSA Input'!J4595=\"\",\"\",IF(OR('TSA Input'!J4595=\"Yes\",'TSA Input'!J4595=\"Contingent\"),'TSA Input'!D4595,\"\"))","v":""},{"$f":"IF('TSA Input'!J4595=\"\",\"\",IF(OR('TSA Input'!J4595=\"Yes\",'TSA Input'!J4595=\"Contingent\"),'TSA Input'!G4595,\"\"))","v":""},{"$f":"IF('TSA Input'!J4595=\"\",\"\",IF(OR('TSA Input'!J4595=\"Yes\",'TSA Input'!J4595=\"Contingent\"),'TSA Input'!F4595,\"\"))","v":""},"",{"$f":"IF('TSA Input'!J4595=\"\",\"\",IF(OR('TSA Input'!J4595=\"Yes\",'TSA Input'!J4595=\"Contingent\"),'TSA Input'!D4595,\"\"))","v":""},{"$f":"IF('TSA Input'!J4595=\"\",\"\",IF(OR('TSA Input'!J4595=\"Yes\",'TSA Input'!J4595=\"Contingent\"),'TSA Input'!G4595,\"\"))","v":""},{"$f":"IF('TSA Input'!J4595=\"\",\"\",IF(OR('TSA Input'!J4595=\"Yes\",'TSA Input'!J4595=\"Contingent\"),'TSA Input'!F4595,\"\"))","v":""},"","Required","Required"]
["",null,{"$f":"IF('TSA Input'!J4596=\"\",\"\",IF(OR('TSA Input'!J4596=\"Yes\",'TSA Input'!J4596=\"Contingent\"),'TSA Input'!B4596,\"Ineligible\"))","v":""},{"$f":"IF('TSA Input'!J4596=\"\",\"\",IF(OR('TSA Input'!J4596=\"Yes\",'TSA Input'!J4596=\"Contingent\"),'TSA Input'!I4596,\"\"))","v":""},{"$f":"IF('TSA Input'!J4596=\"\",\"\",IF(OR('TSA Input'!J4596=\"Yes\",'TSA Input'!J4596=\"Contingent\"),'TSA Input'!C4596,\"\"))","v":""},{"$f":"IF('TSA Input'!J4596=\"\",\"\",IF(OR('TSA Input'!J4596=\"Yes\",'TSA Input'!J4596=\"Contingent\"),'TSA Input'!D4596,\"\"))","v":""},{"$f":"IF('TSA Input'!J4596=\"\",\"\",IF(OR('TSA Input'!J4596=\"Yes\",'TSA Input'!J4596=\"Contingent\"),'TSA Input'!G4596,\"\"))","v":""},{"$f":"IF('TSA Input'!J4596=\"\",\"\",IF(OR('TSA Input'!J4596=\"Yes\",'TSA Input'!J4596=\"Contingent\"),'TSA Input'!F4596,\"\"))","v":""},"",{"$f":"IF('TSA Input'!J4596=\"\",\"\",IF(OR('TSA Input'!J4596=\"Yes\",'TSA Input'!J4596=\"Contingent\"),'TSA Input'!D4596,\"\"))","v":""},{"$f":"IF('TSA Input'!J4596=\"\",\"\",IF(OR('TSA Input'!J4596=\"Yes\",'TSA Input'!J4596=\"Contingent\"),'TSA Input'!G4596,\"\"))","v":""},{"$f":"IF('TSA Input'!J4596=\"\",\"\",IF(OR('TSA Input'!J4596=\"Yes\",'TSA Input'!J4596=\"Contingent\"),'TSA Input'!F4596,\"\"))","v":""},"","Required","Required"]
["",null,{"$f":"IF('TSA Input'!J4597=\"\",\"\",IF(OR('TSA Input'!J4597=\"Yes\",'TSA Input'!J4597=\"Contingent\"),'TSA Input'!B4597,\"Ineligible\"))","v":""},{"$f":"IF('TSA Input'!J4597=\"\",\"\",IF(OR('TSA Input'!J4597=\"Yes\",'TSA Input'!J4597=\"Contingent\"),'TSA Input'!I4597,\"\"))","v":""},{"$f":"IF('TSA Input'!J4597=\"\",\"\",IF(OR('TSA Input'!J4597=\"Yes\",'TSA Input'!J4597=\"Contingent\"),'TSA Input'!C4597,\"\"))","v":""},{"$f":"IF('TSA Input'!J4597=\"\",\"\",IF(OR('TSA Input'!J4597=\"Yes\",'TSA Input'!J4597=\"Contingent\"),'TSA Input'!D4597,\"\"))","v":""},{"$f":"IF('TSA Input'!J4597=\"\",\"\",IF(OR('TSA Input'!J4597=\"Yes\",'TSA Input'!J4597=\"Contingent\"),'TSA Input'!G4597,\"\"))","v":""},{"$f":"IF('TSA Input'!J4597=\"\",\"\",IF(OR('TSA Input'!J4597=\"Yes\",'TSA Input'!J4597=\"Contingent\"),'TSA Input'!F4597,\"\"))","v":""},"",{"$f":"IF('TSA Input'!J4597=\"\",\"\",IF(OR('TSA Input'!J4597=\"Yes\",'TSA Input'!J4597=\"Contingent\"),'TSA Input'!D4597,\"\"))","v":""},{"$f":"IF('TSA Input'!J4597=\"\",\"\",IF(OR('TSA Input'!J4597=\"Yes\",'TSA Input'!J4597=\"Contingent\"),'TSA Input'!G4597,\"\"))","v":""},{"$f":"IF('TSA Input'!J4597=\"\",\"\",IF(OR('TSA Input'!J4597=\"Yes\",'TSA Input'!J4597=\"Contingent\"),'TSA Input'!F4597,\"\"))","v":""},"","Required","Required"]
["",null,{"$f":"IF('TSA Input'!J4598=\"\",\"\",IF(OR('TSA Input'!J4598=\"Yes\",'TSA Input'!J4598=\"Contingent\"),'TSA Input'!B4598,\"Ineligible\"))","v":""},{"$f":"IF('TSA Input'!J4598=\"\",\"\",IF(OR('TSA Input'!J4598=\"Yes\",'TSA Input'!J4598=\"Contingent\"),'TSA Input'!I4598,\"\"))","v":""},{"$f":"IF('TSA Input'!J4598=\"\",\"\",IF(OR('TSA Input'!J4598=\"Yes\",'TSA Input'!J4598=\"Contingent\"),'TSA Input'!C4598,\"\"))","v":""},{"$f":"IF('TSA Input'!J4598=\"\",\"\",IF(OR('TSA Input'!J4598=\"Yes\",'TSA Input'!J4598=\"Contingent\"),'TSA Input'!D4598,\"\"))","v":""},{"$f":"IF('TSA Input'!J4598=\"\",\"\",IF(OR('TSA Input'!J4598=\"Yes\",'TSA Input'!J4598=\"Contingent\"),'TSA Input'!G4598,\"\"))","v":""},{"$f":"IF('TSA Input'!J4598=\"\",\"\",IF(OR('TSA Input'!J4598=\"Yes\",'TSA Input'!J4598=\"Contingent\"),'TSA Input'!F4598,\"\"))","v":""},"",{"$f":"IF('TSA Input'!J4598=\"\",\"\",IF(OR('TSA Input'!J4598=\"Yes\",'TSA Input'!J4598=\"Contingent\"),'TSA Input'!D4598,\"\"))","v":""},{"$f":"IF('TSA Input'!J4598=\"\",\"\",IF(OR('TSA Input'!J4598=\"Yes\",'TSA Input'!J4598=\"Contingent\"),'TSA Input'!G4598,\"\"))","v":""},{"$f":"IF('TSA Input'!J4598=\"\",\"\",IF(OR('TSA Input'!J4598=\"Yes\",'TSA Input'!J4598=\"Contingent\"),'TSA Input'!F4598,\"\"))","v":""},"","Required","Required"]
["",null,{"$f":"IF('TSA Input'!J4599=\"\",\"\",IF(OR('TSA Input'!J4599=\"Yes\",'TSA Input'!J4599=\"Contingent\"),'TSA Input'!B4599,\"Ineligible\"))","v":""},{"$f":"IF('TSA Input'!J4599=\"\",\"\",IF(OR('TSA Input'!J4599=\"Yes\",'TSA Input'!J4599=\"Contingent\"),'TSA Input'!I4599,\"\"))","v":""},{"$f":"IF('TSA Input'!J4599=\"\",\"\",IF(OR('TSA Input'!J4599=\"Yes\",'TSA Input'!J4599=\"Contingent\"),'TSA Input'!C4599,\"\"))","v":""},{"$f":"IF('TSA Input'!J4599=\"\",\"\",IF(OR('TSA Input'!J4599=\"Yes\",'TSA Input'!J4599=\"Contingent\"),'TSA Input'!D4599,\"\"))","v":""},{"$f":"IF('TSA Input'!J4599=\"\",\"\",IF(OR('TSA Input'!J4599=\"Yes\",'TSA Input'!J4599=\"Contingent\"),'TSA Input'!G4599,\"\"))","v":""},{"$f":"IF('TSA Input'!J4599=\"\",\"\",IF(OR('TSA Input'!J4599=\"Yes\",'TSA Input'!J4599=\"Contingent\"),'TSA Input'!F4599,\"\"))","v":""},"",{"$f":"IF('TSA Input'!J4599=\"\",\"\",IF(OR('TSA Input'!J4599=\"Yes\",'TSA Input'!J4599=\"Contingent\"),'TSA Input'!D4599,\"\"))","v":""},{"$f":"IF('TSA Input'!J4599=\"\",\"\",IF(OR('TSA Input'!J4599=\"Yes\",'TSA Input'!J4599=\"Contingent\"),'TSA Input'!G4599,\"\"))","v":""},{"$f":"IF('TSA Input'!J4599=\"\",\"\",IF(OR('TSA Input'!J4599=\"Yes\",'TSA Input'!J4599=\"Contingent\"),'TSA Input'!F4599,\"\"))","v":""},"","Required","Required"]
["",null,{"$f":"IF('TSA Input'!J4600=\"\",\"\",IF(OR('TSA Input'!J4600=\"Yes\",'TSA Input'!J4600=\"Contingent\"),'TSA Input'!B4600,\"Ineligible\"))","v":""},{"$f":"IF('TSA Input'!J4600=\"\",\"\",IF(OR('TSA Input'!J4600=\"Yes\",'TSA Input'!J4600=\"Contingent\"),'TSA Input'!I4600,\"\"))","v":""},{"$f":"IF('TSA Input'!J4600=\"\",\"\",IF(OR('TSA Input'!J4600=\"Yes\",'TSA Input'!J4600=\"Contingent\"),'TSA Input'!C4600,\"\"))","v":""},{"$f":"IF('TSA Input'!J4600=\"\",\"\",IF(OR('TSA Input'!J4600=\"Yes\",'TSA Input'!J4600=\"Contingent\"),'TSA Input'!D4600,\"\"))","v":""},{"$f":"IF('TSA Input'!J4600=\"\",\"\",IF(OR('TSA Input'!J4600=\"Yes\",'TSA Input'!J4600=\"Contingent\"),'TSA Input'!G4600,\"\"))","v":""},{"$f":"IF('TSA Input'!J4600=\"\",\"\",IF(OR('TSA Input'!J4600=\"Yes\",'TSA Input'!J4600=\"Contingent\"),'TSA Input'!F4600,\"\"))","v":""},"",{"$f":"IF('TSA Input'!J4600=\"\",\"\",IF(OR('TSA Input'!J4600=\"Yes\",'TSA Input'!J4600=\"Contingent\"),'TSA Input'!D4600,\"\"))","v":""},{"$f":"IF('TSA Input'!J4600=\"\",\"\",IF(OR('TSA Input'!J4600=\"Yes\",'TSA Input'!J4600=\"Contingent\"),'TSA Input'!G4600,\"\"))","v":""},{"$f":"IF('TSA Input'!J4600=\"\",\"\",IF(OR('TSA Input'!J4600=\"Yes\",'TSA Input'!J4600=\"Contingent\"),'TSA Input'!F4600,\"\"))","v":""},"","Required","Required"]
["",null,{"$f":"IF('TSA Input'!J4601=\"\",\"\",IF(OR('TSA Input'!J4601=\"Yes\",'TSA Input'!J4601=\"Contingent\"),'TSA Input'!B4601,\"Ineligible\"))","v":""},{"$f":"IF('TSA Input'!J4601=\"\",\"\",IF(OR('TSA Input'!J4601=\"Yes\",'TSA Input'!J4601=\"Contingent\"),'TSA Input'!I4601,\"\"))","v":""},{"$f":"IF('TSA Input'!J4601=\"\",\"\",IF(OR('TSA Input'!J4601=\"Yes\",'TSA Input'!J4601=\"Contingent\"),'TSA Input'!C4601,\"\"))","v":""},{"$f":"IF('TSA Input'!J4601=\"\",\"\",IF(OR('TSA Input'!J4601=\"Yes\",'TSA Input'!J4601=\"Contingent\"),'TSA Input'!D4601,\"\"))","v":""},{"$f":"IF('TSA Input'!J4601=\"\",\"\",IF(OR('TSA Input'!J4601=\"Yes\",'TSA Input'!J4601=\"Contingent\"),'TSA Input'!G4601,\"\"))","v":""},{"$f":"IF('TSA Input'!J4601=\"\",\"\",IF(OR('TSA Input'!J4601=\"Yes\",'TSA Input'!J4601=\"Contingent\"),'TSA Input'!F4601,\"\"))","v":""},"",{"$f":"IF('TSA Input'!J4601=\"\",\"\",IF(OR('TSA Input'!J4601=\"Yes\",'TSA Input'!J4601=\"Contingent\"),'TSA Input'!D4601,\"\"))","v":""},{"$f":"IF('TSA Input'!J4601=\"\",\"\",IF(OR('TSA Input'!J4601=\"Yes\",'TSA Input'!J4601=\"Contingent\"),'TSA Input'!G4601,\"\"))","v":""},{"$f":"IF('TSA Input'!J4601=\"\",\"\",IF(OR('TSA Input'!J4601=\"Yes\",'TSA Input'!J4601=\"Contingent\"),'TSA Input'!F4601,\"\"))","v":""},"","Required","Required"]
["",null,{"$f":"IF('TSA Input'!J4602=\"\",\"\",IF(OR('TSA Input'!J4602=\"Yes\",'TSA Input'!J4602=\"Contingent\"),'TSA Input'!B4602,\"Ineligible\"))","v":""},{"$f":"IF('TSA Input'!J4602=\"\",\"\",IF(OR('TSA Input'!J4602=\"Yes\",'TSA Input'!J4602=\"Contingent\"),'TSA Input'!I4602,\"\"))","v":""},{"$f":"IF('TSA Input'!J4602=\"\",\"\",IF(OR('TSA Input'!J4602=\"Yes\",'TSA Input'!J4602=\"Contingent\"),'TSA Input'!C4602,\"\"))","v":""},{"$f":"IF('TSA Input'!J4602=\"\",\"\",IF(OR('TSA Input'!J4602=\"Yes\",'TSA Input'!J4602=\"Contingent\"),'TSA Input'!D4602,\"\"))","v":""},{"$f":"IF('TSA Input'!J4602=\"\",\"\",IF(OR('TSA Input'!J4602=\"Yes\",'TSA Input'!J4602=\"Contingent\"),'TSA Input'!G4602,\"\"))","v":""},{"$f":"IF('TSA Input'!J4602=\"\",\"\",IF(OR('TSA Input'!J4602=\"Yes\",'TSA Input'!J4602=\"Contingent\"),'TSA Input'!F4602,\"\"))","v":""},"",{"$f":"IF('TSA Input'!J4602=\"\",\"\",IF(OR('TSA Input'!J4602=\"Yes\",'TSA Input'!J4602=\"Contingent\"),'TSA Input'!D4602,\"\"))","v":""},{"$f":"IF('TSA Input'!J4602=\"\",\"\",IF(OR('TSA Input'!J4602=\"Yes\",'TSA Input'!J4602=\"Contingent\"),'TSA Input'!G4602,\"\"))","v":""},{"$f":"IF('TSA Input'!J4602=\"\",\"\",IF(OR('TSA Input'!J4602=\"Yes\",'TSA Input'!J4602=\"Contingent\"),'TSA Input'!F4602,\"\"))","v":""},"","Required","Required"]
["",null,{"$f":"IF('TSA Input'!J4603=\"\",\"\",IF(OR('TSA Input'!J4603=\"Yes\",'TSA Input'!J4603=\"Contingent\"),'TSA Input'!B4603,\"Ineligible\"))","v":""},{"$f":"IF('TSA Input'!J4603=\"\",\"\",IF(OR('TSA Input'!J4603=\"Yes\",'TSA Input'!J4603=\"Contingent\"),'TSA Input'!I4603,\"\"))","v":""},{"$f":"IF('TSA Input'!J4603=\"\",\"\",IF(OR('TSA Input'!J4603=\"Yes\",'TSA Input'!J4603=\"Contingent\"),'TSA Input'!C4603,\"\"))","v":""},{"$f":"IF('TSA Input'!J4603=\"\",\"\",IF(OR('TSA Input'!J4603=\"Yes\",'TSA Input'!J4603=\"Contingent\"),'TSA Input'!D4603,\"\"))","v":""},{"$f":"IF('TSA Input'!J4603=\"\",\"\",IF(OR('TSA Input'!J4603=\"Yes\",'TSA Input'!J4603=\"Contingent\"),'TSA Input'!G4603,\"\"))","v":""},{"$f":"IF('TSA Input'!J4603=\"\",\"\",IF(OR('TSA Input'!J4603=\"Yes\",'TSA Input'!J4603=\"Contingent\"),'TSA Input'!F4603,\"\"))","v":""},"",{"$f":"IF('TSA Input'!J4603=\"\",\"\",IF(OR('TSA Input'!J4603=\"Yes\",'TSA Input'!J4603=\"Contingent\"),'TSA Input'!D4603,\"\"))","v":""},{"$f":"IF('TSA Input'!J4603=\"\",\"\",IF(OR('TSA Input'!J4603=\"Yes\",'TSA Input'!J4603=\"Contingent\"),'TSA Input'!G4603,\"\"))","v":""},{"$f":"IF('TSA Input'!J4603=\"\",\"\",IF(OR('TSA Input'!J4603=\"Yes\",'TSA Input'!J4603=\"Contingent\"),'TSA Input'!F4603,\"\"))","v":""},"","Required","Required"]
["",null,{"$f":"IF('TSA Input'!J4604=\"\",\"\",IF(OR('TSA Input'!J4604=\"Yes\",'TSA Input'!J4604=\"Contingent\"),'TSA Input'!B4604,\"Ineligible\"))","v":""},{"$f":"IF('TSA Input'!J4604=\"\",\"\",IF(OR('TSA Input'!J4604=\"Yes\",'TSA Input'!J4604=\"Contingent\"),'TSA Input'!I4604,\"\"))","v":""},{"$f":"IF('TSA Input'!J4604=\"\",\"\",IF(OR('TSA Input'!J4604=\"Yes\",'TSA Input'!J4604=\"Contingent\"),'TSA Input'!C4604,\"\"))","v":""},{"$f":"IF('TSA Input'!J4604=\"\",\"\",IF(OR('TSA Input'!J4604=\"Yes\",'TSA Input'!J4604=\"Contingent\"),'TSA Input'!D4604,\"\"))","v":""},{"$f":"IF('TSA Input'!J4604=\"\",\"\",IF(OR('TSA Input'!J4604=\"Yes\",'TSA Input'!J4604=\"Contingent\"),'TSA Input'!G4604,\"\"))","v":""},{"$f":"IF('TSA Input'!J4604=\"\",\"\",IF(OR('TSA Input'!J4604=\"Yes\",'TSA Input'!J4604=\"Contingent\"),'TSA Input'!F4604,\"\"))","v":""},"",{"$f":"IF('TSA Input'!J4604=\"\",\"\",IF(OR('TSA Input'!J4604=\"Yes\",'TSA Input'!J4604=\"Contingent\"),'TSA Input'!D4604,\"\"))","v":""},{"$f":"IF('TSA Input'!J4604=\"\",\"\",IF(OR('TSA Input'!J4604=\"Yes\",'TSA Input'!J4604=\"Contingent\"),'TSA Input'!G4604,\"\"))","v":""},{"$f":"IF('TSA Input'!J4604=\"\",\"\",IF(OR('TSA Input'!J4604=\"Yes\",'TSA Input'!J4604=\"Contingent\"),'TSA Input'!F4604,\"\"))","v":""},"","Required","Required"]
["",null,{"$f":"IF('TSA Input'!J4605=\"\",\"\",IF(OR('TSA Input'!J4605=\"Yes\",'TSA Input'!J4605=\"Contingent\"),'TSA Input'!B4605,\"Ineligible\"))","v":""},{"$f":"IF('TSA Input'!J4605=\"\",\"\",IF(OR('TSA Input'!J4605=\"Yes\",'TSA Input'!J4605=\"Contingent\"),'TSA Input'!I4605,\"\"))","v":""},{"$f":"IF('TSA Input'!J4605=\"\",\"\",IF(OR('TSA Input'!J4605=\"Yes\",'TSA Input'!J4605=\"Contingent\"),'TSA Input'!C4605,\"\"))","v":""},{"$f":"IF('TSA Input'!J4605=\"\",\"\",IF(OR('TSA Input'!J4605=\"Yes\",'TSA Input'!J4605=\"Contingent\"),'TSA Input'!D4605,\"\"))","v":""},{"$f":"IF('TSA Input'!J4605=\"\",\"\",IF(OR('TSA Input'!J4605=\"Yes\",'TSA Input'!J4605=\"Contingent\"),'TSA Input'!G4605,\"\"))","v":""},{"$f":"IF('TSA Input'!J4605=\"\",\"\",IF(OR('TSA Input'!J4605=\"Yes\",'TSA Input'!J4605=\"Contingent\"),'TSA Input'!F4605,\"\"))","v":""},"",{"$f":"IF('TSA Input'!J4605=\"\",\"\",IF(OR('TSA Input'!J4605=\"Yes\",'TSA Input'!J4605=\"Contingent\"),'TSA Input'!D4605,\"\"))","v":""},{"$f":"IF('TSA Input'!J4605=\"\",\"\",IF(OR('TSA Input'!J4605=\"Yes\",'TSA Input'!J4605=\"Contingent\"),'TSA Input'!G4605,\"\"))","v":""},{"$f":"IF('TSA Input'!J4605=\"\",\"\",IF(OR('TSA Input'!J4605=\"Yes\",'TSA Input'!J4605=\"Contingent\"),'TSA Input'!F4605,\"\"))","v":""},"","Required","Required"]
["",null,{"$f":"IF('TSA Input'!J4606=\"\",\"\",IF(OR('TSA Input'!J4606=\"Yes\",'TSA Input'!J4606=\"Contingent\"),'TSA Input'!B4606,\"Ineligible\"))","v":""},{"$f":"IF('TSA Input'!J4606=\"\",\"\",IF(OR('TSA Input'!J4606=\"Yes\",'TSA Input'!J4606=\"Contingent\"),'TSA Input'!I4606,\"\"))","v":""},{"$f":"IF('TSA Input'!J4606=\"\",\"\",IF(OR('TSA Input'!J4606=\"Yes\",'TSA Input'!J4606=\"Contingent\"),'TSA Input'!C4606,\"\"))","v":""},{"$f":"IF('TSA Input'!J4606=\"\",\"\",IF(OR('TSA Input'!J4606=\"Yes\",'TSA Input'!J4606=\"Contingent\"),'TSA Input'!D4606,\"\"))","v":""},{"$f":"IF('TSA Input'!J4606=\"\",\"\",IF(OR('TSA Input'!J4606=\"Yes\",'TSA Input'!J4606=\"Contingent\"),'TSA Input'!G4606,\"\"))","v":""},{"$f":"IF('TSA Input'!J4606=\"\",\"\",IF(OR('TSA Input'!J4606=\"Yes\",'TSA Input'!J4606=\"Contingent\"),'TSA Input'!F4606,\"\"))","v":""},"",{"$f":"IF('TSA Input'!J4606=\"\",\"\",IF(OR('TSA Input'!J4606=\"Yes\",'TSA Input'!J4606=\"Contingent\"),'TSA Input'!D4606,\"\"))","v":""},{"$f":"IF('TSA Input'!J4606=\"\",\"\",IF(OR('TSA Input'!J4606=\"Yes\",'TSA Input'!J4606=\"Contingent\"),'TSA Input'!G4606,\"\"))","v":""},{"$f":"IF('TSA Input'!J4606=\"\",\"\",IF(OR('TSA Input'!J4606=\"Yes\",'TSA Input'!J4606=\"Contingent\"),'TSA Input'!F4606,\"\"))","v":""},"","Required","Required"]
["",null,{"$f":"IF('TSA Input'!J4607=\"\",\"\",IF(OR('TSA Input'!J4607=\"Yes\",'TSA Input'!J4607=\"Contingent\"),'TSA Input'!B4607,\"Ineligible\"))","v":""},{"$f":"IF('TSA Input'!J4607=\"\",\"\",IF(OR('TSA Input'!J4607=\"Yes\",'TSA Input'!J4607=\"Contingent\"),'TSA Input'!I4607,\"\"))","v":""},{"$f":"IF('TSA Input'!J4607=\"\",\"\",IF(OR('TSA Input'!J4607=\"Yes\",'TSA Input'!J4607=\"Contingent\"),'TSA Input'!C4607,\"\"))","v":""},{"$f":"IF('TSA Input'!J4607=\"\",\"\",IF(OR('TSA Input'!J4607=\"Yes\",'TSA Input'!J4607=\"Contingent\"),'TSA Input'!D4607,\"\"))","v":""},{"$f":"IF('TSA Input'!J4607=\"\",\"\",IF(OR('TSA Input'!J4607=\"Yes\",'TSA Input'!J4607=\"Contingent\"),'TSA Input'!G4607,\"\"))","v":""},{"$f":"IF('TSA Input'!J4607=\"\",\"\",IF(OR('TSA Input'!J4607=\"Yes\",'TSA Input'!J4607=\"Contingent\"),'TSA Input'!F4607,\"\"))","v":""},"",{"$f":"IF('TSA Input'!J4607=\"\",\"\",IF(OR('TSA Input'!J4607=\"Yes\",'TSA Input'!J4607=\"Contingent\"),'TSA Input'!D4607,\"\"))","v":""},{"$f":"IF('TSA Input'!J4607=\"\",\"\",IF(OR('TSA Input'!J4607=\"Yes\",'TSA Input'!J4607=\"Contingent\"),'TSA Input'!G4607,\"\"))","v":""},{"$f":"IF('TSA Input'!J4607=\"\",\"\",IF(OR('TSA Input'!J4607=\"Yes\",'TSA Input'!J4607=\"Contingent\"),'TSA Input'!F4607,\"\"))","v":""},"","Required","Required"]
["",null,{"$f":"IF('TSA Input'!J4608=\"\",\"\",IF(OR('TSA Input'!J4608=\"Yes\",'TSA Input'!J4608=\"Contingent\"),'TSA Input'!B4608,\"Ineligible\"))","v":""},{"$f":"IF('TSA Input'!J4608=\"\",\"\",IF(OR('TSA Input'!J4608=\"Yes\",'TSA Input'!J4608=\"Contingent\"),'TSA Input'!I4608,\"\"))","v":""},{"$f":"IF('TSA Input'!J4608=\"\",\"\",IF(OR('TSA Input'!J4608=\"Yes\",'TSA Input'!J4608=\"Contingent\"),'TSA Input'!C4608,\"\"))","v":""},{"$f":"IF('TSA Input'!J4608=\"\",\"\",IF(OR('TSA Input'!J4608=\"Yes\",'TSA Input'!J4608=\"Contingent\"),'TSA Input'!D4608,\"\"))","v":""},{"$f":"IF('TSA Input'!J4608=\"\",\"\",IF(OR('TSA Input'!J4608=\"Yes\",'TSA Input'!J4608=\"Contingent\"),'TSA Input'!G4608,\"\"))","v":""},{"$f":"IF('TSA Input'!J4608=\"\",\"\",IF(OR('TSA Input'!J4608=\"Yes\",'TSA Input'!J4608=\"Contingent\"),'TSA Input'!F4608,\"\"))","v":""},"",{"$f":"IF('TSA Input'!J4608=\"\",\"\",IF(OR('TSA Input'!J4608=\"Yes\",'TSA Input'!J4608=\"Contingent\"),'TSA Input'!D4608,\"\"))","v":""},{"$f":"IF('TSA Input'!J4608=\"\",\"\",IF(OR('TSA Input'!J4608=\"Yes\",'TSA Input'!J4608=\"Contingent\"),'TSA Input'!G4608,\"\"))","v":""},{"$f":"IF('TSA Input'!J4608=\"\",\"\",IF(OR('TSA Input'!J4608=\"Yes\",'TSA Input'!J4608=\"Contingent\"),'TSA Input'!F4608,\"\"))","v":""},"","Required","Required"]
["",null,{"$f":"IF('TSA Input'!J4609=\"\",\"\",IF(OR('TSA Input'!J4609=\"Yes\",'TSA Input'!J4609=\"Contingent\"),'TSA Input'!B4609,\"Ineligible\"))","v":""},{"$f":"IF('TSA Input'!J4609=\"\",\"\",IF(OR('TSA Input'!J4609=\"Yes\",'TSA Input'!J4609=\"Contingent\"),'TSA Input'!I4609,\"\"))","v":""},{"$f":"IF('TSA Input'!J4609=\"\",\"\",IF(OR('TSA Input'!J4609=\"Yes\",'TSA Input'!J4609=\"Contingent\"),'TSA Input'!C4609,\"\"))","v":""},{"$f":"IF('TSA Input'!J4609=\"\",\"\",IF(OR('TSA Input'!J4609=\"Yes\",'TSA Input'!J4609=\"Contingent\"),'TSA Input'!D4609,\"\"))","v":""},{"$f":"IF('TSA Input'!J4609=\"\",\"\",IF(OR('TSA Input'!J4609=\"Yes\",'TSA Input'!J4609=\"Contingent\"),'TSA Input'!G4609,\"\"))","v":""},{"$f":"IF('TSA Input'!J4609=\"\",\"\",IF(OR('TSA Input'!J4609=\"Yes\",'TSA Input'!J4609=\"Contingent\"),'TSA Input'!F4609,\"\"))","v":""},"",{"$f":"IF('TSA Input'!J4609=\"\",\"\",IF(OR('TSA Input'!J4609=\"Yes\",'TSA Input'!J4609=\"Contingent\"),'TSA Input'!D4609,\"\"))","v":""},{"$f":"IF('TSA Input'!J4609=\"\",\"\",IF(OR('TSA Input'!J4609=\"Yes\",'TSA Input'!J4609=\"Contingent\"),'TSA Input'!G4609,\"\"))","v":""},{"$f":"IF('TSA Input'!J4609=\"\",\"\",IF(OR('TSA Input'!J4609=\"Yes\",'TSA Input'!J4609=\"Contingent\"),'TSA Input'!F4609,\"\"))","v":""},"","Required","Required"]
["",null,{"$f":"IF('TSA Input'!J4610=\"\",\"\",IF(OR('TSA Input'!J4610=\"Yes\",'TSA Input'!J4610=\"Contingent\"),'TSA Input'!B4610,\"Ineligible\"))","v":""},{"$f":"IF('TSA Input'!J4610=\"\",\"\",IF(OR('TSA Input'!J4610=\"Yes\",'TSA Input'!J4610=\"Contingent\"),'TSA Input'!I4610,\"\"))","v":""},{"$f":"IF('TSA Input'!J4610=\"\",\"\",IF(OR('TSA Input'!J4610=\"Yes\",'TSA Input'!J4610=\"Contingent\"),'TSA Input'!C4610,\"\"))","v":""},{"$f":"IF('TSA Input'!J4610=\"\",\"\",IF(OR('TSA Input'!J4610=\"Yes\",'TSA Input'!J4610=\"Contingent\"),'TSA Input'!D4610,\"\"))","v":""},{"$f":"IF('TSA Input'!J4610=\"\",\"\",IF(OR('TSA Input'!J4610=\"Yes\",'TSA Input'!J4610=\"Contingent\"),'TSA Input'!G4610,\"\"))","v":""},{"$f":"IF('TSA Input'!J4610=\"\",\"\",IF(OR('TSA Input'!J4610=\"Yes\",'TSA Input'!J4610=\"Contingent\"),'TSA Input'!F4610,\"\"))","v":""},"",{"$f":"IF('TSA Input'!J4610=\"\",\"\",IF(OR('TSA Input'!J4610=\"Yes\",'TSA Input'!J4610=\"Contingent\"),'TSA Input'!D4610,\"\"))","v":""},{"$f":"IF('TSA Input'!J4610=\"\",\"\",IF(OR('TSA Input'!J4610=\"Yes\",'TSA Input'!J4610=\"Contingent\"),'TSA Input'!G4610,\"\"))","v":""},{"$f":"IF('TSA Input'!J4610=\"\",\"\",IF(OR('TSA Input'!J4610=\"Yes\",'TSA Input'!J4610=\"Contingent\"),'TSA Input'!F4610,\"\"))","v":""},"","Required","Required"]
["",null,{"$f":"IF('TSA Input'!J4611=\"\",\"\",IF(OR('TSA Input'!J4611=\"Yes\",'TSA Input'!J4611=\"Contingent\"),'TSA Input'!B4611,\"Ineligible\"))","v":""},{"$f":"IF('TSA Input'!J4611=\"\",\"\",IF(OR('TSA Input'!J4611=\"Yes\",'TSA Input'!J4611=\"Contingent\"),'TSA Input'!I4611,\"\"))","v":""},{"$f":"IF('TSA Input'!J4611=\"\",\"\",IF(OR('TSA Input'!J4611=\"Yes\",'TSA Input'!J4611=\"Contingent\"),'TSA Input'!C4611,\"\"))","v":""},{"$f":"IF('TSA Input'!J4611=\"\",\"\",IF(OR('TSA Input'!J4611=\"Yes\",'TSA Input'!J4611=\"Contingent\"),'TSA Input'!D4611,\"\"))","v":""},{"$f":"IF('TSA Input'!J4611=\"\",\"\",IF(OR('TSA Input'!J4611=\"Yes\",'TSA Input'!J4611=\"Contingent\"),'TSA Input'!G4611,\"\"))","v":""},{"$f":"IF('TSA Input'!J4611=\"\",\"\",IF(OR('TSA Input'!J4611=\"Yes\",'TSA Input'!J4611=\"Contingent\"),'TSA Input'!F4611,\"\"))","v":""},"",{"$f":"IF('TSA Input'!J4611=\"\",\"\",IF(OR('TSA Input'!J4611=\"Yes\",'TSA Input'!J4611=\"Contingent\"),'TSA Input'!D4611,\"\"))","v":""},{"$f":"IF('TSA Input'!J4611=\"\",\"\",IF(OR('TSA Input'!J4611=\"Yes\",'TSA Input'!J4611=\"Contingent\"),'TSA Input'!G4611,\"\"))","v":""},{"$f":"IF('TSA Input'!J4611=\"\",\"\",IF(OR('TSA Input'!J4611=\"Yes\",'TSA Input'!J4611=\"Contingent\"),'TSA Input'!F4611,\"\"))","v":""},"","Required","Required"]
["",null,{"$f":"IF('TSA Input'!J4612=\"\",\"\",IF(OR('TSA Input'!J4612=\"Yes\",'TSA Input'!J4612=\"Contingent\"),'TSA Input'!B4612,\"Ineligible\"))","v":""},{"$f":"IF('TSA Input'!J4612=\"\",\"\",IF(OR('TSA Input'!J4612=\"Yes\",'TSA Input'!J4612=\"Contingent\"),'TSA Input'!I4612,\"\"))","v":""},{"$f":"IF('TSA Input'!J4612=\"\",\"\",IF(OR('TSA Input'!J4612=\"Yes\",'TSA Input'!J4612=\"Contingent\"),'TSA Input'!C4612,\"\"))","v":""},{"$f":"IF('TSA Input'!J4612=\"\",\"\",IF(OR('TSA Input'!J4612=\"Yes\",'TSA Input'!J4612=\"Contingent\"),'TSA Input'!D4612,\"\"))","v":""},{"$f":"IF('TSA Input'!J4612=\"\",\"\",IF(OR('TSA Input'!J4612=\"Yes\",'TSA Input'!J4612=\"Contingent\"),'TSA Input'!G4612,\"\"))","v":""},{"$f":"IF('TSA Input'!J4612=\"\",\"\",IF(OR('TSA Input'!J4612=\"Yes\",'TSA Input'!J4612=\"Contingent\"),'TSA Input'!F4612,\"\"))","v":""},{"$f":"IF($C4650=\"\",\"\",SUM(F4650:H4650))","v":""},{"$f":"IF('TSA Input'!J4612=\"\",\"\",IF(OR('TSA Input'!J4612=\"Yes\",'TSA Input'!J4612=\"Contingent\"),'TSA Input'!D4612,\"\"))","v":""},{"$f":"IF('TSA Input'!J4612=\"\",\"\",IF(OR('TSA Input'!J4612=\"Yes\",'TSA Input'!J4612=\"Contingent\"),'TSA Input'!G4612,\"\"))","v":""},{"$f":"IF('TSA Input'!J4612=\"\",\"\",IF(OR('TSA Input'!J4612=\"Yes\",'TSA Input'!J4612=\"Contingent\"),'TSA Input'!F4612,\"\"))","v":""},{"$f":"IF($C4650=\"\",\"\",SUM(J4650:L4650))","v":""},"Required","Required"]
["",null,{"$f":"IF('TSA Input'!J4613=\"\",\"\",IF(OR('TSA Input'!J4613=\"Yes\",'TSA Input'!J4613=\"Contingent\"),'TSA Input'!B4613,\"Ineligible\"))","v":""},{"$f":"IF('TSA Input'!J4613=\"\",\"\",IF(OR('TSA Input'!J4613=\"Yes\",'TSA Input'!J4613=\"Contingent\"),'TSA Input'!I4613,\"\"))","v":""},{"$f":"IF('TSA Input'!J4613=\"\",\"\",IF(OR('TSA Input'!J4613=\"Yes\",'TSA Input'!J4613=\"Contingent\"),'TSA Input'!C4613,\"\"))","v":""},{"$f":"IF('TSA Input'!J4613=\"\",\"\",IF(OR('TSA Input'!J4613=\"Yes\",'TSA Input'!J4613=\"Contingent\"),'TSA Input'!D4613,\"\"))","v":""},{"$f":"IF('TSA Input'!J4613=\"\",\"\",IF(OR('TSA Input'!J4613=\"Yes\",'TSA Input'!J4613=\"Contingent\"),'TSA Input'!G4613,\"\"))","v":""},{"$f":"IF('TSA Input'!J4613=\"\",\"\",IF(OR('TSA Input'!J4613=\"Yes\",'TSA Input'!J4613=\"Contingent\"),'TSA Input'!F4613,\"\"))","v":""},"",{"$f":"IF('TSA Input'!J4613=\"\",\"\",IF(OR('TSA Input'!J4613=\"Yes\",'TSA Input'!J4613=\"Contingent\"),'TSA Input'!D4613,\"\"))","v":""},{"$f":"IF('TSA Input'!J4613=\"\",\"\",IF(OR('TSA Input'!J4613=\"Yes\",'TSA Input'!J4613=\"Contingent\"),'TSA Input'!G4613,\"\"))","v":""},{"$f":"IF('TSA Input'!J4613=\"\",\"\",IF(OR('TSA Input'!J4613=\"Yes\",'TSA Input'!J4613=\"Contingent\"),'TSA Input'!F4613,\"\"))","v":""},"","Required","Required"]
["",null,{"$f":"IF('TSA Input'!J4614=\"\",\"\",IF(OR('TSA Input'!J4614=\"Yes\",'TSA Input'!J4614=\"Contingent\"),'TSA Input'!B4614,\"Ineligible\"))","v":""},{"$f":"IF('TSA Input'!J4614=\"\",\"\",IF(OR('TSA Input'!J4614=\"Yes\",'TSA Input'!J4614=\"Contingent\"),'TSA Input'!I4614,\"\"))","v":""},{"$f":"IF('TSA Input'!J4614=\"\",\"\",IF(OR('TSA Input'!J4614=\"Yes\",'TSA Input'!J4614=\"Contingent\"),'TSA Input'!C4614,\"\"))","v":""},{"$f":"IF('TSA Input'!J4614=\"\",\"\",IF(OR('TSA Input'!J4614=\"Yes\",'TSA Input'!J4614=\"Contingent\"),'TSA Input'!D4614,\"\"))","v":""},{"$f":"IF('TSA Input'!J4614=\"\",\"\",IF(OR('TSA Input'!J4614=\"Yes\",'TSA Input'!J4614=\"Contingent\"),'TSA Input'!G4614,\"\"))","v":""},{"$f":"IF('TSA Input'!J4614=\"\",\"\",IF(OR('TSA Input'!J4614=\"Yes\",'TSA Input'!J4614=\"Contingent\"),'TSA Input'!F4614,\"\"))","v":""},"",{"$f":"IF('TSA Input'!J4614=\"\",\"\",IF(OR('TSA Input'!J4614=\"Yes\",'TSA Input'!J4614=\"Contingent\"),'TSA Input'!D4614,\"\"))","v":""},{"$f":"IF('TSA Input'!J4614=\"\",\"\",IF(OR('TSA Input'!J4614=\"Yes\",'TSA Input'!J4614=\"Contingent\"),'TSA Input'!G4614,\"\"))","v":""},{"$f":"IF('TSA Input'!J4614=\"\",\"\",IF(OR('TSA Input'!J4614=\"Yes\",'TSA Input'!J4614=\"Contingent\"),'TSA Input'!F4614,\"\"))","v":""},"","Required","Required"]
["",null,{"$f":"IF('TSA Input'!J4615=\"\",\"\",IF(OR('TSA Input'!J4615=\"Yes\",'TSA Input'!J4615=\"Contingent\"),'TSA Input'!B4615,\"Ineligible\"))","v":""},{"$f":"IF('TSA Input'!J4615=\"\",\"\",IF(OR('TSA Input'!J4615=\"Yes\",'TSA Input'!J4615=\"Contingent\"),'TSA Input'!I4615,\"\"))","v":""},{"$f":"IF('TSA Input'!J4615=\"\",\"\",IF(OR('TSA Input'!J4615=\"Yes\",'TSA Input'!J4615=\"Contingent\"),'TSA Input'!C4615,\"\"))","v":""},{"$f":"IF('TSA Input'!J4615=\"\",\"\",IF(OR('TSA Input'!J4615=\"Yes\",'TSA Input'!J4615=\"Contingent\"),'TSA Input'!D4615,\"\"))","v":""},{"$f":"IF('TSA Input'!J4615=\"\",\"\",IF(OR('TSA Input'!J4615=\"Yes\",'TSA Input'!J4615=\"Contingent\"),'TSA Input'!G4615,\"\"))","v":""},{"$f":"IF('TSA Input'!J4615=\"\",\"\",IF(OR('TSA Input'!J4615=\"Yes\",'TSA Input'!J4615=\"Contingent\"),'TSA Input'!F4615,\"\"))","v":""},"",{"$f":"IF('TSA Input'!J4615=\"\",\"\",IF(OR('TSA Input'!J4615=\"Yes\",'TSA Input'!J4615=\"Contingent\"),'TSA Input'!D4615,\"\"))","v":""},{"$f":"IF('TSA Input'!J4615=\"\",\"\",IF(OR('TSA Input'!J4615=\"Yes\",'TSA Input'!J4615=\"Contingent\"),'TSA Input'!G4615,\"\"))","v":""},{"$f":"IF('TSA Input'!J4615=\"\",\"\",IF(OR('TSA Input'!J4615=\"Yes\",'TSA Input'!J4615=\"Contingent\"),'TSA Input'!F4615,\"\"))","v":""},"","Required","Required"]
["",null,{"$f":"IF('TSA Input'!J4616=\"\",\"\",IF(OR('TSA Input'!J4616=\"Yes\",'TSA Input'!J4616=\"Contingent\"),'TSA Input'!B4616,\"Ineligible\"))","v":""},{"$f":"IF('TSA Input'!J4616=\"\",\"\",IF(OR('TSA Input'!J4616=\"Yes\",'TSA Input'!J4616=\"Contingent\"),'TSA Input'!I4616,\"\"))","v":""},{"$f":"IF('TSA Input'!J4616=\"\",\"\",IF(OR('TSA Input'!J4616=\"Yes\",'TSA Input'!J4616=\"Contingent\"),'TSA Input'!C4616,\"\"))","v":""},{"$f":"IF('TSA Input'!J4616=\"\",\"\",IF(OR('TSA Input'!J4616=\"Yes\",'TSA Input'!J4616=\"Contingent\"),'TSA Input'!D4616,\"\"))","v":""},{"$f":"IF('TSA Input'!J4616=\"\",\"\",IF(OR('TSA Input'!J4616=\"Yes\",'TSA Input'!J4616=\"Contingent\"),'TSA Input'!G4616,\"\"))","v":""},{"$f":"IF('TSA Input'!J4616=\"\",\"\",IF(OR('TSA Input'!J4616=\"Yes\",'TSA Input'!J4616=\"Contingent\"),'TSA Input'!F4616,\"\"))","v":""},"",{"$f":"IF('TSA Input'!J4616=\"\",\"\",IF(OR('TSA Input'!J4616=\"Yes\",'TSA Input'!J4616=\"Contingent\"),'TSA Input'!D4616,\"\"))","v":""},{"$f":"IF('TSA Input'!J4616=\"\",\"\",IF(OR('TSA Input'!J4616=\"Yes\",'TSA Input'!J4616=\"Contingent\"),'TSA Input'!G4616,\"\"))","v":""},{"$f":"IF('TSA Input'!J4616=\"\",\"\",IF(OR('TSA Input'!J4616=\"Yes\",'TSA Input'!J4616=\"Contingent\"),'TSA Input'!F4616,\"\"))","v":""},"","Required","Required"]
["",null,{"$f":"IF('TSA Input'!J4617=\"\",\"\",IF(OR('TSA Input'!J4617=\"Yes\",'TSA Input'!J4617=\"Contingent\"),'TSA Input'!B4617,\"Ineligible\"))","v":""},{"$f":"IF('TSA Input'!J4617=\"\",\"\",IF(OR('TSA Input'!J4617=\"Yes\",'TSA Input'!J4617=\"Contingent\"),'TSA Input'!I4617,\"\"))","v":""},{"$f":"IF('TSA Input'!J4617=\"\",\"\",IF(OR('TSA Input'!J4617=\"Yes\",'TSA Input'!J4617=\"Contingent\"),'TSA Input'!C4617,\"\"))","v":""},{"$f":"IF('TSA Input'!J4617=\"\",\"\",IF(OR('TSA Input'!J4617=\"Yes\",'TSA Input'!J4617=\"Contingent\"),'TSA Input'!D4617,\"\"))","v":""},{"$f":"IF('TSA Input'!J4617=\"\",\"\",IF(OR('TSA Input'!J4617=\"Yes\",'TSA Input'!J4617=\"Contingent\"),'TSA Input'!G4617,\"\"))","v":""},{"$f":"IF('TSA Input'!J4617=\"\",\"\",IF(OR('TSA Input'!J4617=\"Yes\",'TSA Input'!J4617=\"Contingent\"),'TSA Input'!F4617,\"\"))","v":""},"",{"$f":"IF('TSA Input'!J4617=\"\",\"\",IF(OR('TSA Input'!J4617=\"Yes\",'TSA Input'!J4617=\"Contingent\"),'TSA Input'!D4617,\"\"))","v":""},{"$f":"IF('TSA Input'!J4617=\"\",\"\",IF(OR('TSA Input'!J4617=\"Yes\",'TSA Input'!J4617=\"Contingent\"),'TSA Input'!G4617,\"\"))","v":""},{"$f":"IF('TSA Input'!J4617=\"\",\"\",IF(OR('TSA Input'!J4617=\"Yes\",'TSA Input'!J4617=\"Contingent\"),'TSA Input'!F4617,\"\"))","v":""},"","Required","Required"]
["",null,{"$f":"IF('TSA Input'!J4618=\"\",\"\",IF(OR('TSA Input'!J4618=\"Yes\",'TSA Input'!J4618=\"Contingent\"),'TSA Input'!B4618,\"Ineligible\"))","v":""},{"$f":"IF('TSA Input'!J4618=\"\",\"\",IF(OR('TSA Input'!J4618=\"Yes\",'TSA Input'!J4618=\"Contingent\"),'TSA Input'!I4618,\"\"))","v":""},{"$f":"IF('TSA Input'!J4618=\"\",\"\",IF(OR('TSA Input'!J4618=\"Yes\",'TSA Input'!J4618=\"Contingent\"),'TSA Input'!C4618,\"\"))","v":""},{"$f":"IF('TSA Input'!J4618=\"\",\"\",IF(OR('TSA Input'!J4618=\"Yes\",'TSA Input'!J4618=\"Contingent\"),'TSA Input'!D4618,\"\"))","v":""},{"$f":"IF('TSA Input'!J4618=\"\",\"\",IF(OR('TSA Input'!J4618=\"Yes\",'TSA Input'!J4618=\"Contingent\"),'TSA Input'!G4618,\"\"))","v":""},{"$f":"IF('TSA Input'!J4618=\"\",\"\",IF(OR('TSA Input'!J4618=\"Yes\",'TSA Input'!J4618=\"Contingent\"),'TSA Input'!F4618,\"\"))","v":""},"",{"$f":"IF('TSA Input'!J4618=\"\",\"\",IF(OR('TSA Input'!J4618=\"Yes\",'TSA Input'!J4618=\"Contingent\"),'TSA Input'!D4618,\"\"))","v":""},{"$f":"IF('TSA Input'!J4618=\"\",\"\",IF(OR('TSA Input'!J4618=\"Yes\",'TSA Input'!J4618=\"Contingent\"),'TSA Input'!G4618,\"\"))","v":""},{"$f":"IF('TSA Input'!J4618=\"\",\"\",IF(OR('TSA Input'!J4618=\"Yes\",'TSA Input'!J4618=\"Contingent\"),'TSA Input'!F4618,\"\"))","v":""},"","Required","Required"]
["",null,{"$f":"IF('TSA Input'!J4619=\"\",\"\",IF(OR('TSA Input'!J4619=\"Yes\",'TSA Input'!J4619=\"Contingent\"),'TSA Input'!B4619,\"Ineligible\"))","v":""},{"$f":"IF('TSA Input'!J4619=\"\",\"\",IF(OR('TSA Input'!J4619=\"Yes\",'TSA Input'!J4619=\"Contingent\"),'TSA Input'!I4619,\"\"))","v":""},{"$f":"IF('TSA Input'!J4619=\"\",\"\",IF(OR('TSA Input'!J4619=\"Yes\",'TSA Input'!J4619=\"Contingent\"),'TSA Input'!C4619,\"\"))","v":""},{"$f":"IF('TSA Input'!J4619=\"\",\"\",IF(OR('TSA Input'!J4619=\"Yes\",'TSA Input'!J4619=\"Contingent\"),'TSA Input'!D4619,\"\"))","v":""},{"$f":"IF('TSA Input'!J4619=\"\",\"\",IF(OR('TSA Input'!J4619=\"Yes\",'TSA Input'!J4619=\"Contingent\"),'TSA Input'!G4619,\"\"))","v":""},{"$f":"IF('TSA Input'!J4619=\"\",\"\",IF(OR('TSA Input'!J4619=\"Yes\",'TSA Input'!J4619=\"Contingent\"),'TSA Input'!F4619,\"\"))","v":""},"",{"$f":"IF('TSA Input'!J4619=\"\",\"\",IF(OR('TSA Input'!J4619=\"Yes\",'TSA Input'!J4619=\"Contingent\"),'TSA Input'!D4619,\"\"))","v":""},{"$f":"IF('TSA Input'!J4619=\"\",\"\",IF(OR('TSA Input'!J4619=\"Yes\",'TSA Input'!J4619=\"Contingent\"),'TSA Input'!G4619,\"\"))","v":""},{"$f":"IF('TSA Input'!J4619=\"\",\"\",IF(OR('TSA Input'!J4619=\"Yes\",'TSA Input'!J4619=\"Contingent\"),'TSA Input'!F4619,\"\"))","v":""},"","Required","Required"]
["",null,{"$f":"IF('TSA Input'!J4620=\"\",\"\",IF(OR('TSA Input'!J4620=\"Yes\",'TSA Input'!J4620=\"Contingent\"),'TSA Input'!B4620,\"Ineligible\"))","v":""},{"$f":"IF('TSA Input'!J4620=\"\",\"\",IF(OR('TSA Input'!J4620=\"Yes\",'TSA Input'!J4620=\"Contingent\"),'TSA Input'!I4620,\"\"))","v":""},{"$f":"IF('TSA Input'!J4620=\"\",\"\",IF(OR('TSA Input'!J4620=\"Yes\",'TSA Input'!J4620=\"Contingent\"),'TSA Input'!C4620,\"\"))","v":""},{"$f":"IF('TSA Input'!J4620=\"\",\"\",IF(OR('TSA Input'!J4620=\"Yes\",'TSA Input'!J4620=\"Contingent\"),'TSA Input'!D4620,\"\"))","v":""},{"$f":"IF('TSA Input'!J4620=\"\",\"\",IF(OR('TSA Input'!J4620=\"Yes\",'TSA Input'!J4620=\"Contingent\"),'TSA Input'!G4620,\"\"))","v":""},{"$f":"IF('TSA Input'!J4620=\"\",\"\",IF(OR('TSA Input'!J4620=\"Yes\",'TSA Input'!J4620=\"Contingent\"),'TSA Input'!F4620,\"\"))","v":""},"",{"$f":"IF('TSA Input'!J4620=\"\",\"\",IF(OR('TSA Input'!J4620=\"Yes\",'TSA Input'!J4620=\"Contingent\"),'TSA Input'!D4620,\"\"))","v":""},{"$f":"IF('TSA Input'!J4620=\"\",\"\",IF(OR('TSA Input'!J4620=\"Yes\",'TSA Input'!J4620=\"Contingent\"),'TSA Input'!G4620,\"\"))","v":""},{"$f":"IF('TSA Input'!J4620=\"\",\"\",IF(OR('TSA Input'!J4620=\"Yes\",'TSA Input'!J4620=\"Contingent\"),'TSA Input'!F4620,\"\"))","v":""},"","Required","Required"]
["",null,{"$f":"IF('TSA Input'!J4621=\"\",\"\",IF(OR('TSA Input'!J4621=\"Yes\",'TSA Input'!J4621=\"Contingent\"),'TSA Input'!B4621,\"Ineligible\"))","v":""},{"$f":"IF('TSA Input'!J4621=\"\",\"\",IF(OR('TSA Input'!J4621=\"Yes\",'TSA Input'!J4621=\"Contingent\"),'TSA Input'!I4621,\"\"))","v":""},{"$f":"IF('TSA Input'!J4621=\"\",\"\",IF(OR('TSA Input'!J4621=\"Yes\",'TSA Input'!J4621=\"Contingent\"),'TSA Input'!C4621,\"\"))","v":""},{"$f":"IF('TSA Input'!J4621=\"\",\"\",IF(OR('TSA Input'!J4621=\"Yes\",'TSA Input'!J4621=\"Contingent\"),'TSA Input'!D4621,\"\"))","v":""},{"$f":"IF('TSA Input'!J4621=\"\",\"\",IF(OR('TSA Input'!J4621=\"Yes\",'TSA Input'!J4621=\"Contingent\"),'TSA Input'!G4621,\"\"))","v":""},{"$f":"IF('TSA Input'!J4621=\"\",\"\",IF(OR('TSA Input'!J4621=\"Yes\",'TSA Input'!J4621=\"Contingent\"),'TSA Input'!F4621,\"\"))","v":""},"",{"$f":"IF('TSA Input'!J4621=\"\",\"\",IF(OR('TSA Input'!J4621=\"Yes\",'TSA Input'!J4621=\"Contingent\"),'TSA Input'!D4621,\"\"))","v":""},{"$f":"IF('TSA Input'!J4621=\"\",\"\",IF(OR('TSA Input'!J4621=\"Yes\",'TSA Input'!J4621=\"Contingent\"),'TSA Input'!G4621,\"\"))","v":""},{"$f":"IF('TSA Input'!J4621=\"\",\"\",IF(OR('TSA Input'!J4621=\"Yes\",'TSA Input'!J4621=\"Contingent\"),'TSA Input'!F4621,\"\"))","v":""},"","Required","Required"]
["",null,{"$f":"IF('TSA Input'!J4622=\"\",\"\",IF(OR('TSA Input'!J4622=\"Yes\",'TSA Input'!J4622=\"Contingent\"),'TSA Input'!B4622,\"Ineligible\"))","v":""},{"$f":"IF('TSA Input'!J4622=\"\",\"\",IF(OR('TSA Input'!J4622=\"Yes\",'TSA Input'!J4622=\"Contingent\"),'TSA Input'!I4622,\"\"))","v":""},{"$f":"IF('TSA Input'!J4622=\"\",\"\",IF(OR('TSA Input'!J4622=\"Yes\",'TSA Input'!J4622=\"Contingent\"),'TSA Input'!C4622,\"\"))","v":""},{"$f":"IF('TSA Input'!J4622=\"\",\"\",IF(OR('TSA Input'!J4622=\"Yes\",'TSA Input'!J4622=\"Contingent\"),'TSA Input'!D4622,\"\"))","v":""},{"$f":"IF('TSA Input'!J4622=\"\",\"\",IF(OR('TSA Input'!J4622=\"Yes\",'TSA Input'!J4622=\"Contingent\"),'TSA Input'!G4622,\"\"))","v":""},{"$f":"IF('TSA Input'!J4622=\"\",\"\",IF(OR('TSA Input'!J4622=\"Yes\",'TSA Input'!J4622=\"Contingent\"),'TSA Input'!F4622,\"\"))","v":""},"",{"$f":"IF('TSA Input'!J4622=\"\",\"\",IF(OR('TSA Input'!J4622=\"Yes\",'TSA Input'!J4622=\"Contingent\"),'TSA Input'!D4622,\"\"))","v":""},{"$f":"IF('TSA Input'!J4622=\"\",\"\",IF(OR('TSA Input'!J4622=\"Yes\",'TSA Input'!J4622=\"Contingent\"),'TSA Input'!G4622,\"\"))","v":""},{"$f":"IF('TSA Input'!J4622=\"\",\"\",IF(OR('TSA Input'!J4622=\"Yes\",'TSA Input'!J4622=\"Contingent\"),'TSA Input'!F4622,\"\"))","v":""},"","Required","Required"]
["",null,{"$f":"IF('TSA Input'!J4623=\"\",\"\",IF(OR('TSA Input'!J4623=\"Yes\",'TSA Input'!J4623=\"Contingent\"),'TSA Input'!B4623,\"Ineligible\"))","v":""},{"$f":"IF('TSA Input'!J4623=\"\",\"\",IF(OR('TSA Input'!J4623=\"Yes\",'TSA Input'!J4623=\"Contingent\"),'TSA Input'!I4623,\"\"))","v":""},{"$f":"IF('TSA Input'!J4623=\"\",\"\",IF(OR('TSA Input'!J4623=\"Yes\",'TSA Input'!J4623=\"Contingent\"),'TSA Input'!C4623,\"\"))","v":""},{"$f":"IF('TSA Input'!J4623=\"\",\"\",IF(OR('TSA Input'!J4623=\"Yes\",'TSA Input'!J4623=\"Contingent\"),'TSA Input'!D4623,\"\"))","v":""},{"$f":"IF('TSA Input'!J4623=\"\",\"\",IF(OR('TSA Input'!J4623=\"Yes\",'TSA Input'!J4623=\"Contingent\"),'TSA Input'!G4623,\"\"))","v":""},{"$f":"IF('TSA Input'!J4623=\"\",\"\",IF(OR('TSA Input'!J4623=\"Yes\",'TSA Input'!J4623=\"Contingent\"),'TSA Input'!F4623,\"\"))","v":""},"",{"$f":"IF('TSA Input'!J4623=\"\",\"\",IF(OR('TSA Input'!J4623=\"Yes\",'TSA Input'!J4623=\"Contingent\"),'TSA Input'!D4623,\"\"))","v":""},{"$f":"IF('TSA Input'!J4623=\"\",\"\",IF(OR('TSA Input'!J4623=\"Yes\",'TSA Input'!J4623=\"Contingent\"),'TSA Input'!G4623,\"\"))","v":""},{"$f":"IF('TSA Input'!J4623=\"\",\"\",IF(OR('TSA Input'!J4623=\"Yes\",'TSA Input'!J4623=\"Contingent\"),'TSA Input'!F4623,\"\"))","v":""},"","Required","Required"]
["",null,{"$f":"IF('TSA Input'!J4624=\"\",\"\",IF(OR('TSA Input'!J4624=\"Yes\",'TSA Input'!J4624=\"Contingent\"),'TSA Input'!B4624,\"Ineligible\"))","v":""},{"$f":"IF('TSA Input'!J4624=\"\",\"\",IF(OR('TSA Input'!J4624=\"Yes\",'TSA Input'!J4624=\"Contingent\"),'TSA Input'!I4624,\"\"))","v":""},{"$f":"IF('TSA Input'!J4624=\"\",\"\",IF(OR('TSA Input'!J4624=\"Yes\",'TSA Input'!J4624=\"Contingent\"),'TSA Input'!C4624,\"\"))","v":""},{"$f":"IF('TSA Input'!J4624=\"\",\"\",IF(OR('TSA Input'!J4624=\"Yes\",'TSA Input'!J4624=\"Contingent\"),'TSA Input'!D4624,\"\"))","v":""},{"$f":"IF('TSA Input'!J4624=\"\",\"\",IF(OR('TSA Input'!J4624=\"Yes\",'TSA Input'!J4624=\"Contingent\"),'TSA Input'!G4624,\"\"))","v":""},{"$f":"IF('TSA Input'!J4624=\"\",\"\",IF(OR('TSA Input'!J4624=\"Yes\",'TSA Input'!J4624=\"Contingent\"),'TSA Input'!F4624,\"\"))","v":""},"",{"$f":"IF('TSA Input'!J4624=\"\",\"\",IF(OR('TSA Input'!J4624=\"Yes\",'TSA Input'!J4624=\"Contingent\"),'TSA Input'!D4624,\"\"))","v":""},{"$f":"IF('TSA Input'!J4624=\"\",\"\",IF(OR('TSA Input'!J4624=\"Yes\",'TSA Input'!J4624=\"Contingent\"),'TSA Input'!G4624,\"\"))","v":""},{"$f":"IF('TSA Input'!J4624=\"\",\"\",IF(OR('TSA Input'!J4624=\"Yes\",'TSA Input'!J4624=\"Contingent\"),'TSA Input'!F4624,\"\"))","v":""},"","Required","Required"]
["",null,{"$f":"IF('TSA Input'!J4625=\"\",\"\",IF(OR('TSA Input'!J4625=\"Yes\",'TSA Input'!J4625=\"Contingent\"),'TSA Input'!B4625,\"Ineligible\"))","v":""},{"$f":"IF('TSA Input'!J4625=\"\",\"\",IF(OR('TSA Input'!J4625=\"Yes\",'TSA Input'!J4625=\"Contingent\"),'TSA Input'!I4625,\"\"))","v":""},{"$f":"IF('TSA Input'!J4625=\"\",\"\",IF(OR('TSA Input'!J4625=\"Yes\",'TSA Input'!J4625=\"Contingent\"),'TSA Input'!C4625,\"\"))","v":""},{"$f":"IF('TSA Input'!J4625=\"\",\"\",IF(OR('TSA Input'!J4625=\"Yes\",'TSA Input'!J4625=\"Contingent\"),'TSA Input'!D4625,\"\"))","v":""},{"$f":"IF('TSA Input'!J4625=\"\",\"\",IF(OR('TSA Input'!J4625=\"Yes\",'TSA Input'!J4625=\"Contingent\"),'TSA Input'!G4625,\"\"))","v":""},{"$f":"IF('TSA Input'!J4625=\"\",\"\",IF(OR('TSA Input'!J4625=\"Yes\",'TSA Input'!J4625=\"Contingent\"),'TSA Input'!F4625,\"\"))","v":""},"",{"$f":"IF('TSA Input'!J4625=\"\",\"\",IF(OR('TSA Input'!J4625=\"Yes\",'TSA Input'!J4625=\"Contingent\"),'TSA Input'!D4625,\"\"))","v":""},{"$f":"IF('TSA Input'!J4625=\"\",\"\",IF(OR('TSA Input'!J4625=\"Yes\",'TSA Input'!J4625=\"Contingent\"),'TSA Input'!G4625,\"\"))","v":""},{"$f":"IF('TSA Input'!J4625=\"\",\"\",IF(OR('TSA Input'!J4625=\"Yes\",'TSA Input'!J4625=\"Contingent\"),'TSA Input'!F4625,\"\"))","v":""},"","Required","Required"]
["",null,{"$f":"IF('TSA Input'!J4626=\"\",\"\",IF(OR('TSA Input'!J4626=\"Yes\",'TSA Input'!J4626=\"Contingent\"),'TSA Input'!B4626,\"Ineligible\"))","v":""},{"$f":"IF('TSA Input'!J4626=\"\",\"\",IF(OR('TSA Input'!J4626=\"Yes\",'TSA Input'!J4626=\"Contingent\"),'TSA Input'!I4626,\"\"))","v":""},{"$f":"IF('TSA Input'!J4626=\"\",\"\",IF(OR('TSA Input'!J4626=\"Yes\",'TSA Input'!J4626=\"Contingent\"),'TSA Input'!C4626,\"\"))","v":""},{"$f":"IF('TSA Input'!J4626=\"\",\"\",IF(OR('TSA Input'!J4626=\"Yes\",'TSA Input'!J4626=\"Contingent\"),'TSA Input'!D4626,\"\"))","v":""},{"$f":"IF('TSA Input'!J4626=\"\",\"\",IF(OR('TSA Input'!J4626=\"Yes\",'TSA Input'!J4626=\"Contingent\"),'TSA Input'!G4626,\"\"))","v":""},{"$f":"IF('TSA Input'!J4626=\"\",\"\",IF(OR('TSA Input'!J4626=\"Yes\",'TSA Input'!J4626=\"Contingent\"),'TSA Input'!F4626,\"\"))","v":""},"",{"$f":"IF('TSA Input'!J4626=\"\",\"\",IF(OR('TSA Input'!J4626=\"Yes\",'TSA Input'!J4626=\"Contingent\"),'TSA Input'!D4626,\"\"))","v":""},{"$f":"IF('TSA Input'!J4626=\"\",\"\",IF(OR('TSA Input'!J4626=\"Yes\",'TSA Input'!J4626=\"Contingent\"),'TSA Input'!G4626,\"\"))","v":""},{"$f":"IF('TSA Input'!J4626=\"\",\"\",IF(OR('TSA Input'!J4626=\"Yes\",'TSA Input'!J4626=\"Contingent\"),'TSA Input'!F4626,\"\"))","v":""},"","Required","Required"]
["",null,{"$f":"IF('TSA Input'!J4627=\"\",\"\",IF(OR('TSA Input'!J4627=\"Yes\",'TSA Input'!J4627=\"Contingent\"),'TSA Input'!B4627,\"Ineligible\"))","v":""},{"$f":"IF('TSA Input'!J4627=\"\",\"\",IF(OR('TSA Input'!J4627=\"Yes\",'TSA Input'!J4627=\"Contingent\"),'TSA Input'!I4627,\"\"))","v":""},{"$f":"IF('TSA Input'!J4627=\"\",\"\",IF(OR('TSA Input'!J4627=\"Yes\",'TSA Input'!J4627=\"Contingent\"),'TSA Input'!C4627,\"\"))","v":""},{"$f":"IF('TSA Input'!J4627=\"\",\"\",IF(OR('TSA Input'!J4627=\"Yes\",'TSA Input'!J4627=\"Contingent\"),'TSA Input'!D4627,\"\"))","v":""},{"$f":"IF('TSA Input'!J4627=\"\",\"\",IF(OR('TSA Input'!J4627=\"Yes\",'TSA Input'!J4627=\"Contingent\"),'TSA Input'!G4627,\"\"))","v":""},{"$f":"IF('TSA Input'!J4627=\"\",\"\",IF(OR('TSA Input'!J4627=\"Yes\",'TSA Input'!J4627=\"Contingent\"),'TSA Input'!F4627,\"\"))","v":""},"",{"$f":"IF('TSA Input'!J4627=\"\",\"\",IF(OR('TSA Input'!J4627=\"Yes\",'TSA Input'!J4627=\"Contingent\"),'TSA Input'!D4627,\"\"))","v":""},{"$f":"IF('TSA Input'!J4627=\"\",\"\",IF(OR('TSA Input'!J4627=\"Yes\",'TSA Input'!J4627=\"Contingent\"),'TSA Input'!G4627,\"\"))","v":""},{"$f":"IF('TSA Input'!J4627=\"\",\"\",IF(OR('TSA Input'!J4627=\"Yes\",'TSA Input'!J4627=\"Contingent\"),'TSA Input'!F4627,\"\"))","v":""},"","Required","Required"]
["",null,{"$f":"IF('TSA Input'!J4628=\"\",\"\",IF(OR('TSA Input'!J4628=\"Yes\",'TSA Input'!J4628=\"Contingent\"),'TSA Input'!B4628,\"Ineligible\"))","v":""},{"$f":"IF('TSA Input'!J4628=\"\",\"\",IF(OR('TSA Input'!J4628=\"Yes\",'TSA Input'!J4628=\"Contingent\"),'TSA Input'!I4628,\"\"))","v":""},{"$f":"IF('TSA Input'!J4628=\"\",\"\",IF(OR('TSA Input'!J4628=\"Yes\",'TSA Input'!J4628=\"Contingent\"),'TSA Input'!C4628,\"\"))","v":""},{"$f":"IF('TSA Input'!J4628=\"\",\"\",IF(OR('TSA Input'!J4628=\"Yes\",'TSA Input'!J4628=\"Contingent\"),'TSA Input'!D4628,\"\"))","v":""},{"$f":"IF('TSA Input'!J4628=\"\",\"\",IF(OR('TSA Input'!J4628=\"Yes\",'TSA Input'!J4628=\"Contingent\"),'TSA Input'!G4628,\"\"))","v":""},{"$f":"IF('TSA Input'!J4628=\"\",\"\",IF(OR('TSA Input'!J4628=\"Yes\",'TSA Input'!J4628=\"Contingent\"),'TSA Input'!F4628,\"\"))","v":""},"",{"$f":"IF('TSA Input'!J4628=\"\",\"\",IF(OR('TSA Input'!J4628=\"Yes\",'TSA Input'!J4628=\"Contingent\"),'TSA Input'!D4628,\"\"))","v":""},{"$f":"IF('TSA Input'!J4628=\"\",\"\",IF(OR('TSA Input'!J4628=\"Yes\",'TSA Input'!J4628=\"Contingent\"),'TSA Input'!G4628,\"\"))","v":""},{"$f":"IF('TSA Input'!J4628=\"\",\"\",IF(OR('TSA Input'!J4628=\"Yes\",'TSA Input'!J4628=\"Contingent\"),'TSA Input'!F4628,\"\"))","v":""},"","Required","Required"]
["",null,{"$f":"IF('TSA Input'!J4629=\"\",\"\",IF(OR('TSA Input'!J4629=\"Yes\",'TSA Input'!J4629=\"Contingent\"),'TSA Input'!B4629,\"Ineligible\"))","v":""},{"$f":"IF('TSA Input'!J4629=\"\",\"\",IF(OR('TSA Input'!J4629=\"Yes\",'TSA Input'!J4629=\"Contingent\"),'TSA Input'!I4629,\"\"))","v":""},{"$f":"IF('TSA Input'!J4629=\"\",\"\",IF(OR('TSA Input'!J4629=\"Yes\",'TSA Input'!J4629=\"Contingent\"),'TSA Input'!C4629,\"\"))","v":""},{"$f":"IF('TSA Input'!J4629=\"\",\"\",IF(OR('TSA Input'!J4629=\"Yes\",'TSA Input'!J4629=\"Contingent\"),'TSA Input'!D4629,\"\"))","v":""},{"$f":"IF('TSA Input'!J4629=\"\",\"\",IF(OR('TSA Input'!J4629=\"Yes\",'TSA Input'!J4629=\"Contingent\"),'TSA Input'!G4629,\"\"))","v":""},{"$f":"IF('TSA Input'!J4629=\"\",\"\",IF(OR('TSA Input'!J4629=\"Yes\",'TSA Input'!J4629=\"Contingent\"),'TSA Input'!F4629,\"\"))","v":""},"",{"$f":"IF('TSA Input'!J4629=\"\",\"\",IF(OR('TSA Input'!J4629=\"Yes\",'TSA Input'!J4629=\"Contingent\"),'TSA Input'!D4629,\"\"))","v":""},{"$f":"IF('TSA Input'!J4629=\"\",\"\",IF(OR('TSA Input'!J4629=\"Yes\",'TSA Input'!J4629=\"Contingent\"),'TSA Input'!G4629,\"\"))","v":""},{"$f":"IF('TSA Input'!J4629=\"\",\"\",IF(OR('TSA Input'!J4629=\"Yes\",'TSA Input'!J4629=\"Contingent\"),'TSA Input'!F4629,\"\"))","v":""},"","Required","Required"]
["",null,{"$f":"IF('TSA Input'!J4630=\"\",\"\",IF(OR('TSA Input'!J4630=\"Yes\",'TSA Input'!J4630=\"Contingent\"),'TSA Input'!B4630,\"Ineligible\"))","v":""},{"$f":"IF('TSA Input'!J4630=\"\",\"\",IF(OR('TSA Input'!J4630=\"Yes\",'TSA Input'!J4630=\"Contingent\"),'TSA Input'!I4630,\"\"))","v":""},{"$f":"IF('TSA Input'!J4630=\"\",\"\",IF(OR('TSA Input'!J4630=\"Yes\",'TSA Input'!J4630=\"Contingent\"),'TSA Input'!C4630,\"\"))","v":""},{"$f":"IF('TSA Input'!J4630=\"\",\"\",IF(OR('TSA Input'!J4630=\"Yes\",'TSA Input'!J4630=\"Contingent\"),'TSA Input'!D4630,\"\"))","v":""},{"$f":"IF('TSA Input'!J4630=\"\",\"\",IF(OR('TSA Input'!J4630=\"Yes\",'TSA Input'!J4630=\"Contingent\"),'TSA Input'!G4630,\"\"))","v":""},{"$f":"IF('TSA Input'!J4630=\"\",\"\",IF(OR('TSA Input'!J4630=\"Yes\",'TSA Input'!J4630=\"Contingent\"),'TSA Input'!F4630,\"\"))","v":""},"",{"$f":"IF('TSA Input'!J4630=\"\",\"\",IF(OR('TSA Input'!J4630=\"Yes\",'TSA Input'!J4630=\"Contingent\"),'TSA Input'!D4630,\"\"))","v":""},{"$f":"IF('TSA Input'!J4630=\"\",\"\",IF(OR('TSA Input'!J4630=\"Yes\",'TSA Input'!J4630=\"Contingent\"),'TSA Input'!G4630,\"\"))","v":""},{"$f":"IF('TSA Input'!J4630=\"\",\"\",IF(OR('TSA Input'!J4630=\"Yes\",'TSA Input'!J4630=\"Contingent\"),'TSA Input'!F4630,\"\"))","v":""},"","Required","Required"]
["",null,{"$f":"IF('TSA Input'!J4631=\"\",\"\",IF(OR('TSA Input'!J4631=\"Yes\",'TSA Input'!J4631=\"Contingent\"),'TSA Input'!B4631,\"Ineligible\"))","v":""},{"$f":"IF('TSA Input'!J4631=\"\",\"\",IF(OR('TSA Input'!J4631=\"Yes\",'TSA Input'!J4631=\"Contingent\"),'TSA Input'!I4631,\"\"))","v":""},{"$f":"IF('TSA Input'!J4631=\"\",\"\",IF(OR('TSA Input'!J4631=\"Yes\",'TSA Input'!J4631=\"Contingent\"),'TSA Input'!C4631,\"\"))","v":""},{"$f":"IF('TSA Input'!J4631=\"\",\"\",IF(OR('TSA Input'!J4631=\"Yes\",'TSA Input'!J4631=\"Contingent\"),'TSA Input'!D4631,\"\"))","v":""},{"$f":"IF('TSA Input'!J4631=\"\",\"\",IF(OR('TSA Input'!J4631=\"Yes\",'TSA Input'!J4631=\"Contingent\"),'TSA Input'!G4631,\"\"))","v":""},{"$f":"IF('TSA Input'!J4631=\"\",\"\",IF(OR('TSA Input'!J4631=\"Yes\",'TSA Input'!J4631=\"Contingent\"),'TSA Input'!F4631,\"\"))","v":""},"",{"$f":"IF('TSA Input'!J4631=\"\",\"\",IF(OR('TSA Input'!J4631=\"Yes\",'TSA Input'!J4631=\"Contingent\"),'TSA Input'!D4631,\"\"))","v":""},{"$f":"IF('TSA Input'!J4631=\"\",\"\",IF(OR('TSA Input'!J4631=\"Yes\",'TSA Input'!J4631=\"Contingent\"),'TSA Input'!G4631,\"\"))","v":""},{"$f":"IF('TSA Input'!J4631=\"\",\"\",IF(OR('TSA Input'!J4631=\"Yes\",'TSA Input'!J4631=\"Contingent\"),'TSA Input'!F4631,\"\"))","v":""},"","Required","Required"]
["",null,{"$f":"IF('TSA Input'!J4632=\"\",\"\",IF(OR('TSA Input'!J4632=\"Yes\",'TSA Input'!J4632=\"Contingent\"),'TSA Input'!B4632,\"Ineligible\"))","v":""},{"$f":"IF('TSA Input'!J4632=\"\",\"\",IF(OR('TSA Input'!J4632=\"Yes\",'TSA Input'!J4632=\"Contingent\"),'TSA Input'!I4632,\"\"))","v":""},{"$f":"IF('TSA Input'!J4632=\"\",\"\",IF(OR('TSA Input'!J4632=\"Yes\",'TSA Input'!J4632=\"Contingent\"),'TSA Input'!C4632,\"\"))","v":""},{"$f":"IF('TSA Input'!J4632=\"\",\"\",IF(OR('TSA Input'!J4632=\"Yes\",'TSA Input'!J4632=\"Contingent\"),'TSA Input'!D4632,\"\"))","v":""},{"$f":"IF('TSA Input'!J4632=\"\",\"\",IF(OR('TSA Input'!J4632=\"Yes\",'TSA Input'!J4632=\"Contingent\"),'TSA Input'!G4632,\"\"))","v":""},{"$f":"IF('TSA Input'!J4632=\"\",\"\",IF(OR('TSA Input'!J4632=\"Yes\",'TSA Input'!J4632=\"Contingent\"),'TSA Input'!F4632,\"\"))","v":""},"",{"$f":"IF('TSA Input'!J4632=\"\",\"\",IF(OR('TSA Input'!J4632=\"Yes\",'TSA Input'!J4632=\"Contingent\"),'TSA Input'!D4632,\"\"))","v":""},{"$f":"IF('TSA Input'!J4632=\"\",\"\",IF(OR('TSA Input'!J4632=\"Yes\",'TSA Input'!J4632=\"Contingent\"),'TSA Input'!G4632,\"\"))","v":""},{"$f":"IF('TSA Input'!J4632=\"\",\"\",IF(OR('TSA Input'!J4632=\"Yes\",'TSA Input'!J4632=\"Contingent\"),'TSA Input'!F4632,\"\"))","v":""},"","Required","Required"]
["",null,{"$f":"IF('TSA Input'!J4633=\"\",\"\",IF(OR('TSA Input'!J4633=\"Yes\",'TSA Input'!J4633=\"Contingent\"),'TSA Input'!B4633,\"Ineligible\"))","v":""},{"$f":"IF('TSA Input'!J4633=\"\",\"\",IF(OR('TSA Input'!J4633=\"Yes\",'TSA Input'!J4633=\"Contingent\"),'TSA Input'!I4633,\"\"))","v":""},{"$f":"IF('TSA Input'!J4633=\"\",\"\",IF(OR('TSA Input'!J4633=\"Yes\",'TSA Input'!J4633=\"Contingent\"),'TSA Input'!C4633,\"\"))","v":""},{"$f":"IF('TSA Input'!J4633=\"\",\"\",IF(OR('TSA Input'!J4633=\"Yes\",'TSA Input'!J4633=\"Contingent\"),'TSA Input'!D4633,\"\"))","v":""},{"$f":"IF('TSA Input'!J4633=\"\",\"\",IF(OR('TSA Input'!J4633=\"Yes\",'TSA Input'!J4633=\"Contingent\"),'TSA Input'!G4633,\"\"))","v":""},{"$f":"IF('TSA Input'!J4633=\"\",\"\",IF(OR('TSA Input'!J4633=\"Yes\",'TSA Input'!J4633=\"Contingent\"),'TSA Input'!F4633,\"\"))","v":""},"",{"$f":"IF('TSA Input'!J4633=\"\",\"\",IF(OR('TSA Input'!J4633=\"Yes\",'TSA Input'!J4633=\"Contingent\"),'TSA Input'!D4633,\"\"))","v":""},{"$f":"IF('TSA Input'!J4633=\"\",\"\",IF(OR('TSA Input'!J4633=\"Yes\",'TSA Input'!J4633=\"Contingent\"),'TSA Input'!G4633,\"\"))","v":""},{"$f":"IF('TSA Input'!J4633=\"\",\"\",IF(OR('TSA Input'!J4633=\"Yes\",'TSA Input'!J4633=\"Contingent\"),'TSA Input'!F4633,\"\"))","v":""},"","Required","Required"]
["",null,{"$f":"IF('TSA Input'!J4634=\"\",\"\",IF(OR('TSA Input'!J4634=\"Yes\",'TSA Input'!J4634=\"Contingent\"),'TSA Input'!B4634,\"Ineligible\"))","v":""},{"$f":"IF('TSA Input'!J4634=\"\",\"\",IF(OR('TSA Input'!J4634=\"Yes\",'TSA Input'!J4634=\"Contingent\"),'TSA Input'!I4634,\"\"))","v":""},{"$f":"IF('TSA Input'!J4634=\"\",\"\",IF(OR('TSA Input'!J4634=\"Yes\",'TSA Input'!J4634=\"Contingent\"),'TSA Input'!C4634,\"\"))","v":""},{"$f":"IF('TSA Input'!J4634=\"\",\"\",IF(OR('TSA Input'!J4634=\"Yes\",'TSA Input'!J4634=\"Contingent\"),'TSA Input'!D4634,\"\"))","v":""},{"$f":"IF('TSA Input'!J4634=\"\",\"\",IF(OR('TSA Input'!J4634=\"Yes\",'TSA Input'!J4634=\"Contingent\"),'TSA Input'!G4634,\"\"))","v":""},{"$f":"IF('TSA Input'!J4634=\"\",\"\",IF(OR('TSA Input'!J4634=\"Yes\",'TSA Input'!J4634=\"Contingent\"),'TSA Input'!F4634,\"\"))","v":""},"",{"$f":"IF('TSA Input'!J4634=\"\",\"\",IF(OR('TSA Input'!J4634=\"Yes\",'TSA Input'!J4634=\"Contingent\"),'TSA Input'!D4634,\"\"))","v":""},{"$f":"IF('TSA Input'!J4634=\"\",\"\",IF(OR('TSA Input'!J4634=\"Yes\",'TSA Input'!J4634=\"Contingent\"),'TSA Input'!G4634,\"\"))","v":""},{"$f":"IF('TSA Input'!J4634=\"\",\"\",IF(OR('TSA Input'!J4634=\"Yes\",'TSA Input'!J4634=\"Contingent\"),'TSA Input'!F4634,\"\"))","v":""},"","Required","Required"]
["",null,{"$f":"IF('TSA Input'!J4635=\"\",\"\",IF(OR('TSA Input'!J4635=\"Yes\",'TSA Input'!J4635=\"Contingent\"),'TSA Input'!B4635,\"Ineligible\"))","v":""},{"$f":"IF('TSA Input'!J4635=\"\",\"\",IF(OR('TSA Input'!J4635=\"Yes\",'TSA Input'!J4635=\"Contingent\"),'TSA Input'!I4635,\"\"))","v":""},{"$f":"IF('TSA Input'!J4635=\"\",\"\",IF(OR('TSA Input'!J4635=\"Yes\",'TSA Input'!J4635=\"Contingent\"),'TSA Input'!C4635,\"\"))","v":""},{"$f":"IF('TSA Input'!J4635=\"\",\"\",IF(OR('TSA Input'!J4635=\"Yes\",'TSA Input'!J4635=\"Contingent\"),'TSA Input'!D4635,\"\"))","v":""},{"$f":"IF('TSA Input'!J4635=\"\",\"\",IF(OR('TSA Input'!J4635=\"Yes\",'TSA Input'!J4635=\"Contingent\"),'TSA Input'!G4635,\"\"))","v":""},{"$f":"IF('TSA Input'!J4635=\"\",\"\",IF(OR('TSA Input'!J4635=\"Yes\",'TSA Input'!J4635=\"Contingent\"),'TSA Input'!F4635,\"\"))","v":""},"",{"$f":"IF('TSA Input'!J4635=\"\",\"\",IF(OR('TSA Input'!J4635=\"Yes\",'TSA Input'!J4635=\"Contingent\"),'TSA Input'!D4635,\"\"))","v":""},{"$f":"IF('TSA Input'!J4635=\"\",\"\",IF(OR('TSA Input'!J4635=\"Yes\",'TSA Input'!J4635=\"Contingent\"),'TSA Input'!G4635,\"\"))","v":""},{"$f":"IF('TSA Input'!J4635=\"\",\"\",IF(OR('TSA Input'!J4635=\"Yes\",'TSA Input'!J4635=\"Contingent\"),'TSA Input'!F4635,\"\"))","v":""},"","Required","Required"]
["",null,{"$f":"IF('TSA Input'!J4636=\"\",\"\",IF(OR('TSA Input'!J4636=\"Yes\",'TSA Input'!J4636=\"Contingent\"),'TSA Input'!B4636,\"Ineligible\"))","v":""},{"$f":"IF('TSA Input'!J4636=\"\",\"\",IF(OR('TSA Input'!J4636=\"Yes\",'TSA Input'!J4636=\"Contingent\"),'TSA Input'!I4636,\"\"))","v":""},{"$f":"IF('TSA Input'!J4636=\"\",\"\",IF(OR('TSA Input'!J4636=\"Yes\",'TSA Input'!J4636=\"Contingent\"),'TSA Input'!C4636,\"\"))","v":""},{"$f":"IF('TSA Input'!J4636=\"\",\"\",IF(OR('TSA Input'!J4636=\"Yes\",'TSA Input'!J4636=\"Contingent\"),'TSA Input'!D4636,\"\"))","v":""},{"$f":"IF('TSA Input'!J4636=\"\",\"\",IF(OR('TSA Input'!J4636=\"Yes\",'TSA Input'!J4636=\"Contingent\"),'TSA Input'!G4636,\"\"))","v":""},{"$f":"IF('TSA Input'!J4636=\"\",\"\",IF(OR('TSA Input'!J4636=\"Yes\",'TSA Input'!J4636=\"Contingent\"),'TSA Input'!F4636,\"\"))","v":""},"",{"$f":"IF('TSA Input'!J4636=\"\",\"\",IF(OR('TSA Input'!J4636=\"Yes\",'TSA Input'!J4636=\"Contingent\"),'TSA Input'!D4636,\"\"))","v":""},{"$f":"IF('TSA Input'!J4636=\"\",\"\",IF(OR('TSA Input'!J4636=\"Yes\",'TSA Input'!J4636=\"Contingent\"),'TSA Input'!G4636,\"\"))","v":""},{"$f":"IF('TSA Input'!J4636=\"\",\"\",IF(OR('TSA Input'!J4636=\"Yes\",'TSA Input'!J4636=\"Contingent\"),'TSA Input'!F4636,\"\"))","v":""},"","Required","Required"]
["",null,{"$f":"IF('TSA Input'!J4637=\"\",\"\",IF(OR('TSA Input'!J4637=\"Yes\",'TSA Input'!J4637=\"Contingent\"),'TSA Input'!B4637,\"Ineligible\"))","v":""},{"$f":"IF('TSA Input'!J4637=\"\",\"\",IF(OR('TSA Input'!J4637=\"Yes\",'TSA Input'!J4637=\"Contingent\"),'TSA Input'!I4637,\"\"))","v":""},{"$f":"IF('TSA Input'!J4637=\"\",\"\",IF(OR('TSA Input'!J4637=\"Yes\",'TSA Input'!J4637=\"Contingent\"),'TSA Input'!C4637,\"\"))","v":""},{"$f":"IF('TSA Input'!J4637=\"\",\"\",IF(OR('TSA Input'!J4637=\"Yes\",'TSA Input'!J4637=\"Contingent\"),'TSA Input'!D4637,\"\"))","v":""},{"$f":"IF('TSA Input'!J4637=\"\",\"\",IF(OR('TSA Input'!J4637=\"Yes\",'TSA Input'!J4637=\"Contingent\"),'TSA Input'!G4637,\"\"))","v":""},{"$f":"IF('TSA Input'!J4637=\"\",\"\",IF(OR('TSA Input'!J4637=\"Yes\",'TSA Input'!J4637=\"Contingent\"),'TSA Input'!F4637,\"\"))","v":""},"",{"$f":"IF('TSA Input'!J4637=\"\",\"\",IF(OR('TSA Input'!J4637=\"Yes\",'TSA Input'!J4637=\"Contingent\"),'TSA Input'!D4637,\"\"))","v":""},{"$f":"IF('TSA Input'!J4637=\"\",\"\",IF(OR('TSA Input'!J4637=\"Yes\",'TSA Input'!J4637=\"Contingent\"),'TSA Input'!G4637,\"\"))","v":""},{"$f":"IF('TSA Input'!J4637=\"\",\"\",IF(OR('TSA Input'!J4637=\"Yes\",'TSA Input'!J4637=\"Contingent\"),'TSA Input'!F4637,\"\"))","v":""},"","Required","Required"]
["",null,{"$f":"IF('TSA Input'!J4638=\"\",\"\",IF(OR('TSA Input'!J4638=\"Yes\",'TSA Input'!J4638=\"Contingent\"),'TSA Input'!B4638,\"Ineligible\"))","v":""},{"$f":"IF('TSA Input'!J4638=\"\",\"\",IF(OR('TSA Input'!J4638=\"Yes\",'TSA Input'!J4638=\"Contingent\"),'TSA Input'!I4638,\"\"))","v":""},{"$f":"IF('TSA Input'!J4638=\"\",\"\",IF(OR('TSA Input'!J4638=\"Yes\",'TSA Input'!J4638=\"Contingent\"),'TSA Input'!C4638,\"\"))","v":""},{"$f":"IF('TSA Input'!J4638=\"\",\"\",IF(OR('TSA Input'!J4638=\"Yes\",'TSA Input'!J4638=\"Contingent\"),'TSA Input'!D4638,\"\"))","v":""},{"$f":"IF('TSA Input'!J4638=\"\",\"\",IF(OR('TSA Input'!J4638=\"Yes\",'TSA Input'!J4638=\"Contingent\"),'TSA Input'!G4638,\"\"))","v":""},{"$f":"IF('TSA Input'!J4638=\"\",\"\",IF(OR('TSA Input'!J4638=\"Yes\",'TSA Input'!J4638=\"Contingent\"),'TSA Input'!F4638,\"\"))","v":""},"",{"$f":"IF('TSA Input'!J4638=\"\",\"\",IF(OR('TSA Input'!J4638=\"Yes\",'TSA Input'!J4638=\"Contingent\"),'TSA Input'!D4638,\"\"))","v":""},{"$f":"IF('TSA Input'!J4638=\"\",\"\",IF(OR('TSA Input'!J4638=\"Yes\",'TSA Input'!J4638=\"Contingent\"),'TSA Input'!G4638,\"\"))","v":""},{"$f":"IF('TSA Input'!J4638=\"\",\"\",IF(OR('TSA Input'!J4638=\"Yes\",'TSA Input'!J4638=\"Contingent\"),'TSA Input'!F4638,\"\"))","v":""},"","Required","Required"]
["",null,{"$f":"IF('TSA Input'!J4639=\"\",\"\",IF(OR('TSA Input'!J4639=\"Yes\",'TSA Input'!J4639=\"Contingent\"),'TSA Input'!B4639,\"Ineligible\"))","v":""},{"$f":"IF('TSA Input'!J4639=\"\",\"\",IF(OR('TSA Input'!J4639=\"Yes\",'TSA Input'!J4639=\"Contingent\"),'TSA Input'!I4639,\"\"))","v":""},{"$f":"IF('TSA Input'!J4639=\"\",\"\",IF(OR('TSA Input'!J4639=\"Yes\",'TSA Input'!J4639=\"Contingent\"),'TSA Input'!C4639,\"\"))","v":""},{"$f":"IF('TSA Input'!J4639=\"\",\"\",IF(OR('TSA Input'!J4639=\"Yes\",'TSA Input'!J4639=\"Contingent\"),'TSA Input'!D4639,\"\"))","v":""},{"$f":"IF('TSA Input'!J4639=\"\",\"\",IF(OR('TSA Input'!J4639=\"Yes\",'TSA Input'!J4639=\"Contingent\"),'TSA Input'!G4639,\"\"))","v":""},{"$f":"IF('TSA Input'!J4639=\"\",\"\",IF(OR('TSA Input'!J4639=\"Yes\",'TSA Input'!J4639=\"Contingent\"),'TSA Input'!F4639,\"\"))","v":""},"",{"$f":"IF('TSA Input'!J4639=\"\",\"\",IF(OR('TSA Input'!J4639=\"Yes\",'TSA Input'!J4639=\"Contingent\"),'TSA Input'!D4639,\"\"))","v":""},{"$f":"IF('TSA Input'!J4639=\"\",\"\",IF(OR('TSA Input'!J4639=\"Yes\",'TSA Input'!J4639=\"Contingent\"),'TSA Input'!G4639,\"\"))","v":""},{"$f":"IF('TSA Input'!J4639=\"\",\"\",IF(OR('TSA Input'!J4639=\"Yes\",'TSA Input'!J4639=\"Contingent\"),'TSA Input'!F4639,\"\"))","v":""},"","Required","Required"]
["",null,{"$f":"IF('TSA Input'!J4640=\"\",\"\",IF(OR('TSA Input'!J4640=\"Yes\",'TSA Input'!J4640=\"Contingent\"),'TSA Input'!B4640,\"Ineligible\"))","v":""},{"$f":"IF('TSA Input'!J4640=\"\",\"\",IF(OR('TSA Input'!J4640=\"Yes\",'TSA Input'!J4640=\"Contingent\"),'TSA Input'!I4640,\"\"))","v":""},{"$f":"IF('TSA Input'!J4640=\"\",\"\",IF(OR('TSA Input'!J4640=\"Yes\",'TSA Input'!J4640=\"Contingent\"),'TSA Input'!C4640,\"\"))","v":""},{"$f":"IF('TSA Input'!J4640=\"\",\"\",IF(OR('TSA Input'!J4640=\"Yes\",'TSA Input'!J4640=\"Contingent\"),'TSA Input'!D4640,\"\"))","v":""},{"$f":"IF('TSA Input'!J4640=\"\",\"\",IF(OR('TSA Input'!J4640=\"Yes\",'TSA Input'!J4640=\"Contingent\"),'TSA Input'!G4640,\"\"))","v":""},{"$f":"IF('TSA Input'!J4640=\"\",\"\",IF(OR('TSA Input'!J4640=\"Yes\",'TSA Input'!J4640=\"Contingent\"),'TSA Input'!F4640,\"\"))","v":""},"",{"$f":"IF('TSA Input'!J4640=\"\",\"\",IF(OR('TSA Input'!J4640=\"Yes\",'TSA Input'!J4640=\"Contingent\"),'TSA Input'!D4640,\"\"))","v":""},{"$f":"IF('TSA Input'!J4640=\"\",\"\",IF(OR('TSA Input'!J4640=\"Yes\",'TSA Input'!J4640=\"Contingent\"),'TSA Input'!G4640,\"\"))","v":""},{"$f":"IF('TSA Input'!J4640=\"\",\"\",IF(OR('TSA Input'!J4640=\"Yes\",'TSA Input'!J4640=\"Contingent\"),'TSA Input'!F4640,\"\"))","v":""},"","Required","Required"]
["",null,{"$f":"IF('TSA Input'!J4641=\"\",\"\",IF(OR('TSA Input'!J4641=\"Yes\",'TSA Input'!J4641=\"Contingent\"),'TSA Input'!B4641,\"Ineligible\"))","v":""},{"$f":"IF('TSA Input'!J4641=\"\",\"\",IF(OR('TSA Input'!J4641=\"Yes\",'TSA Input'!J4641=\"Contingent\"),'TSA Input'!I4641,\"\"))","v":""},{"$f":"IF('TSA Input'!J4641=\"\",\"\",IF(OR('TSA Input'!J4641=\"Yes\",'TSA Input'!J4641=\"Contingent\"),'TSA Input'!C4641,\"\"))","v":""},{"$f":"IF('TSA Input'!J4641=\"\",\"\",IF(OR('TSA Input'!J4641=\"Yes\",'TSA Input'!J4641=\"Contingent\"),'TSA Input'!D4641,\"\"))","v":""},{"$f":"IF('TSA Input'!J4641=\"\",\"\",IF(OR('TSA Input'!J4641=\"Yes\",'TSA Input'!J4641=\"Contingent\"),'TSA Input'!G4641,\"\"))","v":""},{"$f":"IF('TSA Input'!J4641=\"\",\"\",IF(OR('TSA Input'!J4641=\"Yes\",'TSA Input'!J4641=\"Contingent\"),'TSA Input'!F4641,\"\"))","v":""},"",{"$f":"IF('TSA Input'!J4641=\"\",\"\",IF(OR('TSA Input'!J4641=\"Yes\",'TSA Input'!J4641=\"Contingent\"),'TSA Input'!D4641,\"\"))","v":""},{"$f":"IF('TSA Input'!J4641=\"\",\"\",IF(OR('TSA Input'!J4641=\"Yes\",'TSA Input'!J4641=\"Contingent\"),'TSA Input'!G4641,\"\"))","v":""},{"$f":"IF('TSA Input'!J4641=\"\",\"\",IF(OR('TSA Input'!J4641=\"Yes\",'TSA Input'!J4641=\"Contingent\"),'TSA Input'!F4641,\"\"))","v":""},"","Required","Required"]
["",null,{"$f":"IF('TSA Input'!J4642=\"\",\"\",IF(OR('TSA Input'!J4642=\"Yes\",'TSA Input'!J4642=\"Contingent\"),'TSA Input'!B4642,\"Ineligible\"))","v":""},{"$f":"IF('TSA Input'!J4642=\"\",\"\",IF(OR('TSA Input'!J4642=\"Yes\",'TSA Input'!J4642=\"Contingent\"),'TSA Input'!I4642,\"\"))","v":""},{"$f":"IF('TSA Input'!J4642=\"\",\"\",IF(OR('TSA Input'!J4642=\"Yes\",'TSA Input'!J4642=\"Contingent\"),'TSA Input'!C4642,\"\"))","v":""},{"$f":"IF('TSA Input'!J4642=\"\",\"\",IF(OR('TSA Input'!J4642=\"Yes\",'TSA Input'!J4642=\"Contingent\"),'TSA Input'!D4642,\"\"))","v":""},{"$f":"IF('TSA Input'!J4642=\"\",\"\",IF(OR('TSA Input'!J4642=\"Yes\",'TSA Input'!J4642=\"Contingent\"),'TSA Input'!G4642,\"\"))","v":""},{"$f":"IF('TSA Input'!J4642=\"\",\"\",IF(OR('TSA Input'!J4642=\"Yes\",'TSA Input'!J4642=\"Contingent\"),'TSA Input'!F4642,\"\"))","v":""},"",{"$f":"IF('TSA Input'!J4642=\"\",\"\",IF(OR('TSA Input'!J4642=\"Yes\",'TSA Input'!J4642=\"Contingent\"),'TSA Input'!D4642,\"\"))","v":""},{"$f":"IF('TSA Input'!J4642=\"\",\"\",IF(OR('TSA Input'!J4642=\"Yes\",'TSA Input'!J4642=\"Contingent\"),'TSA Input'!G4642,\"\"))","v":""},{"$f":"IF('TSA Input'!J4642=\"\",\"\",IF(OR('TSA Input'!J4642=\"Yes\",'TSA Input'!J4642=\"Contingent\"),'TSA Input'!F4642,\"\"))","v":""},"","Required","Required"]
["",null,{"$f":"IF('TSA Input'!J4643=\"\",\"\",IF(OR('TSA Input'!J4643=\"Yes\",'TSA Input'!J4643=\"Contingent\"),'TSA Input'!B4643,\"Ineligible\"))","v":""},{"$f":"IF('TSA Input'!J4643=\"\",\"\",IF(OR('TSA Input'!J4643=\"Yes\",'TSA Input'!J4643=\"Contingent\"),'TSA Input'!I4643,\"\"))","v":""},{"$f":"IF('TSA Input'!J4643=\"\",\"\",IF(OR('TSA Input'!J4643=\"Yes\",'TSA Input'!J4643=\"Contingent\"),'TSA Input'!C4643,\"\"))","v":""},{"$f":"IF('TSA Input'!J4643=\"\",\"\",IF(OR('TSA Input'!J4643=\"Yes\",'TSA Input'!J4643=\"Contingent\"),'TSA Input'!D4643,\"\"))","v":""},{"$f":"IF('TSA Input'!J4643=\"\",\"\",IF(OR('TSA Input'!J4643=\"Yes\",'TSA Input'!J4643=\"Contingent\"),'TSA Input'!G4643,\"\"))","v":""},{"$f":"IF('TSA Input'!J4643=\"\",\"\",IF(OR('TSA Input'!J4643=\"Yes\",'TSA Input'!J4643=\"Contingent\"),'TSA Input'!F4643,\"\"))","v":""},"",{"$f":"IF('TSA Input'!J4643=\"\",\"\",IF(OR('TSA Input'!J4643=\"Yes\",'TSA Input'!J4643=\"Contingent\"),'TSA Input'!D4643,\"\"))","v":""},{"$f":"IF('TSA Input'!J4643=\"\",\"\",IF(OR('TSA Input'!J4643=\"Yes\",'TSA Input'!J4643=\"Contingent\"),'TSA Input'!G4643,\"\"))","v":""},{"$f":"IF('TSA Input'!J4643=\"\",\"\",IF(OR('TSA Input'!J4643=\"Yes\",'TSA Input'!J4643=\"Contingent\"),'TSA Input'!F4643,\"\"))","v":""},"","Required","Required"]
["",null,{"$f":"IF('TSA Input'!J4644=\"\",\"\",IF(OR('TSA Input'!J4644=\"Yes\",'TSA Input'!J4644=\"Contingent\"),'TSA Input'!B4644,\"Ineligible\"))","v":""},{"$f":"IF('TSA Input'!J4644=\"\",\"\",IF(OR('TSA Input'!J4644=\"Yes\",'TSA Input'!J4644=\"Contingent\"),'TSA Input'!I4644,\"\"))","v":""},{"$f":"IF('TSA Input'!J4644=\"\",\"\",IF(OR('TSA Input'!J4644=\"Yes\",'TSA Input'!J4644=\"Contingent\"),'TSA Input'!C4644,\"\"))","v":""},{"$f":"IF('TSA Input'!J4644=\"\",\"\",IF(OR('TSA Input'!J4644=\"Yes\",'TSA Input'!J4644=\"Contingent\"),'TSA Input'!D4644,\"\"))","v":""},{"$f":"IF('TSA Input'!J4644=\"\",\"\",IF(OR('TSA Input'!J4644=\"Yes\",'TSA Input'!J4644=\"Contingent\"),'TSA Input'!G4644,\"\"))","v":""},{"$f":"IF('TSA Input'!J4644=\"\",\"\",IF(OR('TSA Input'!J4644=\"Yes\",'TSA Input'!J4644=\"Contingent\"),'TSA Input'!F4644,\"\"))","v":""},"",{"$f":"IF('TSA Input'!J4644=\"\",\"\",IF(OR('TSA Input'!J4644=\"Yes\",'TSA Input'!J4644=\"Contingent\"),'TSA Input'!D4644,\"\"))","v":""},{"$f":"IF('TSA Input'!J4644=\"\",\"\",IF(OR('TSA Input'!J4644=\"Yes\",'TSA Input'!J4644=\"Contingent\"),'TSA Input'!G4644,\"\"))","v":""},{"$f":"IF('TSA Input'!J4644=\"\",\"\",IF(OR('TSA Input'!J4644=\"Yes\",'TSA Input'!J4644=\"Contingent\"),'TSA Input'!F4644,\"\"))","v":""},"","Required","Required"]
["",null,{"$f":"IF('TSA Input'!J4645=\"\",\"\",IF(OR('TSA Input'!J4645=\"Yes\",'TSA Input'!J4645=\"Contingent\"),'TSA Input'!B4645,\"Ineligible\"))","v":""},{"$f":"IF('TSA Input'!J4645=\"\",\"\",IF(OR('TSA Input'!J4645=\"Yes\",'TSA Input'!J4645=\"Contingent\"),'TSA Input'!I4645,\"\"))","v":""},{"$f":"IF('TSA Input'!J4645=\"\",\"\",IF(OR('TSA Input'!J4645=\"Yes\",'TSA Input'!J4645=\"Contingent\"),'TSA Input'!C4645,\"\"))","v":""},{"$f":"IF('TSA Input'!J4645=\"\",\"\",IF(OR('TSA Input'!J4645=\"Yes\",'TSA Input'!J4645=\"Contingent\"),'TSA Input'!D4645,\"\"))","v":""},{"$f":"IF('TSA Input'!J4645=\"\",\"\",IF(OR('TSA Input'!J4645=\"Yes\",'TSA Input'!J4645=\"Contingent\"),'TSA Input'!G4645,\"\"))","v":""},{"$f":"IF('TSA Input'!J4645=\"\",\"\",IF(OR('TSA Input'!J4645=\"Yes\",'TSA Input'!J4645=\"Contingent\"),'TSA Input'!F4645,\"\"))","v":""},"",{"$f":"IF('TSA Input'!J4645=\"\",\"\",IF(OR('TSA Input'!J4645=\"Yes\",'TSA Input'!J4645=\"Contingent\"),'TSA Input'!D4645,\"\"))","v":""},{"$f":"IF('TSA Input'!J4645=\"\",\"\",IF(OR('TSA Input'!J4645=\"Yes\",'TSA Input'!J4645=\"Contingent\"),'TSA Input'!G4645,\"\"))","v":""},{"$f":"IF('TSA Input'!J4645=\"\",\"\",IF(OR('TSA Input'!J4645=\"Yes\",'TSA Input'!J4645=\"Contingent\"),'TSA Input'!F4645,\"\"))","v":""},"","Required","Required"]
["",null,{"$f":"IF('TSA Input'!J4646=\"\",\"\",IF(OR('TSA Input'!J4646=\"Yes\",'TSA Input'!J4646=\"Contingent\"),'TSA Input'!B4646,\"Ineligible\"))","v":""},{"$f":"IF('TSA Input'!J4646=\"\",\"\",IF(OR('TSA Input'!J4646=\"Yes\",'TSA Input'!J4646=\"Contingent\"),'TSA Input'!I4646,\"\"))","v":""},{"$f":"IF('TSA Input'!J4646=\"\",\"\",IF(OR('TSA Input'!J4646=\"Yes\",'TSA Input'!J4646=\"Contingent\"),'TSA Input'!C4646,\"\"))","v":""},{"$f":"IF('TSA Input'!J4646=\"\",\"\",IF(OR('TSA Input'!J4646=\"Yes\",'TSA Input'!J4646=\"Contingent\"),'TSA Input'!D4646,\"\"))","v":""},{"$f":"IF('TSA Input'!J4646=\"\",\"\",IF(OR('TSA Input'!J4646=\"Yes\",'TSA Input'!J4646=\"Contingent\"),'TSA Input'!G4646,\"\"))","v":""},{"$f":"IF('TSA Input'!J4646=\"\",\"\",IF(OR('TSA Input'!J4646=\"Yes\",'TSA Input'!J4646=\"Contingent\"),'TSA Input'!F4646,\"\"))","v":""},"",{"$f":"IF('TSA Input'!J4646=\"\",\"\",IF(OR('TSA Input'!J4646=\"Yes\",'TSA Input'!J4646=\"Contingent\"),'TSA Input'!D4646,\"\"))","v":""},{"$f":"IF('TSA Input'!J4646=\"\",\"\",IF(OR('TSA Input'!J4646=\"Yes\",'TSA Input'!J4646=\"Contingent\"),'TSA Input'!G4646,\"\"))","v":""},{"$f":"IF('TSA Input'!J4646=\"\",\"\",IF(OR('TSA Input'!J4646=\"Yes\",'TSA Input'!J4646=\"Contingent\"),'TSA Input'!F4646,\"\"))","v":""},"","Required","Required"]
["",null,{"$f":"IF('TSA Input'!J4647=\"\",\"\",IF(OR('TSA Input'!J4647=\"Yes\",'TSA Input'!J4647=\"Contingent\"),'TSA Input'!B4647,\"Ineligible\"))","v":""},{"$f":"IF('TSA Input'!J4647=\"\",\"\",IF(OR('TSA Input'!J4647=\"Yes\",'TSA Input'!J4647=\"Contingent\"),'TSA Input'!I4647,\"\"))","v":""},{"$f":"IF('TSA Input'!J4647=\"\",\"\",IF(OR('TSA Input'!J4647=\"Yes\",'TSA Input'!J4647=\"Contingent\"),'TSA Input'!C4647,\"\"))","v":""},{"$f":"IF('TSA Input'!J4647=\"\",\"\",IF(OR('TSA Input'!J4647=\"Yes\",'TSA Input'!J4647=\"Contingent\"),'TSA Input'!D4647,\"\"))","v":""},{"$f":"IF('TSA Input'!J4647=\"\",\"\",IF(OR('TSA Input'!J4647=\"Yes\",'TSA Input'!J4647=\"Contingent\"),'TSA Input'!G4647,\"\"))","v":""},{"$f":"IF('TSA Input'!J4647=\"\",\"\",IF(OR('TSA Input'!J4647=\"Yes\",'TSA Input'!J4647=\"Contingent\"),'TSA Input'!F4647,\"\"))","v":""},"",{"$f":"IF('TSA Input'!J4647=\"\",\"\",IF(OR('TSA Input'!J4647=\"Yes\",'TSA Input'!J4647=\"Contingent\"),'TSA Input'!D4647,\"\"))","v":""},{"$f":"IF('TSA Input'!J4647=\"\",\"\",IF(OR('TSA Input'!J4647=\"Yes\",'TSA Input'!J4647=\"Contingent\"),'TSA Input'!G4647,\"\"))","v":""},{"$f":"IF('TSA Input'!J4647=\"\",\"\",IF(OR('TSA Input'!J4647=\"Yes\",'TSA Input'!J4647=\"Contingent\"),'TSA Input'!F4647,\"\"))","v":""},"","Required","Required"]
["",null,{"$f":"IF('TSA Input'!J4648=\"\",\"\",IF(OR('TSA Input'!J4648=\"Yes\",'TSA Input'!J4648=\"Contingent\"),'TSA Input'!B4648,\"Ineligible\"))","v":""},{"$f":"IF('TSA Input'!J4648=\"\",\"\",IF(OR('TSA Input'!J4648=\"Yes\",'TSA Input'!J4648=\"Contingent\"),'TSA Input'!I4648,\"\"))","v":""},{"$f":"IF('TSA Input'!J4648=\"\",\"\",IF(OR('TSA Input'!J4648=\"Yes\",'TSA Input'!J4648=\"Contingent\"),'TSA Input'!C4648,\"\"))","v":""},{"$f":"IF('TSA Input'!J4648=\"\",\"\",IF(OR('TSA Input'!J4648=\"Yes\",'TSA Input'!J4648=\"Contingent\"),'TSA Input'!D4648,\"\"))","v":""},{"$f":"IF('TSA Input'!J4648=\"\",\"\",IF(OR('TSA Input'!J4648=\"Yes\",'TSA Input'!J4648=\"Contingent\"),'TSA Input'!G4648,\"\"))","v":""},{"$f":"IF('TSA Input'!J4648=\"\",\"\",IF(OR('TSA Input'!J4648=\"Yes\",'TSA Input'!J4648=\"Contingent\"),'TSA Input'!F4648,\"\"))","v":""},"",{"$f":"IF('TSA Input'!J4648=\"\",\"\",IF(OR('TSA Input'!J4648=\"Yes\",'TSA Input'!J4648=\"Contingent\"),'TSA Input'!D4648,\"\"))","v":""},{"$f":"IF('TSA Input'!J4648=\"\",\"\",IF(OR('TSA Input'!J4648=\"Yes\",'TSA Input'!J4648=\"Contingent\"),'TSA Input'!G4648,\"\"))","v":""},{"$f":"IF('TSA Input'!J4648=\"\",\"\",IF(OR('TSA Input'!J4648=\"Yes\",'TSA Input'!J4648=\"Contingent\"),'TSA Input'!F4648,\"\"))","v":""},"","Required","Required"]
["",null,{"$f":"IF('TSA Input'!J4649=\"\",\"\",IF(OR('TSA Input'!J4649=\"Yes\",'TSA Input'!J4649=\"Contingent\"),'TSA Input'!B4649,\"Ineligible\"))","v":""},{"$f":"IF('TSA Input'!J4649=\"\",\"\",IF(OR('TSA Input'!J4649=\"Yes\",'TSA Input'!J4649=\"Contingent\"),'TSA Input'!I4649,\"\"))","v":""},{"$f":"IF('TSA Input'!J4649=\"\",\"\",IF(OR('TSA Input'!J4649=\"Yes\",'TSA Input'!J4649=\"Contingent\"),'TSA Input'!C4649,\"\"))","v":""},{"$f":"IF('TSA Input'!J4649=\"\",\"\",IF(OR('TSA Input'!J4649=\"Yes\",'TSA Input'!J4649=\"Contingent\"),'TSA Input'!D4649,\"\"))","v":""},{"$f":"IF('TSA Input'!J4649=\"\",\"\",IF(OR('TSA Input'!J4649=\"Yes\",'TSA Input'!J4649=\"Contingent\"),'TSA Input'!G4649,\"\"))","v":""},{"$f":"IF('TSA Input'!J4649=\"\",\"\",IF(OR('TSA Input'!J4649=\"Yes\",'TSA Input'!J4649=\"Contingent\"),'TSA Input'!F4649,\"\"))","v":""},"",{"$f":"IF('TSA Input'!J4649=\"\",\"\",IF(OR('TSA Input'!J4649=\"Yes\",'TSA Input'!J4649=\"Contingent\"),'TSA Input'!D4649,\"\"))","v":""},{"$f":"IF('TSA Input'!J4649=\"\",\"\",IF(OR('TSA Input'!J4649=\"Yes\",'TSA Input'!J4649=\"Contingent\"),'TSA Input'!G4649,\"\"))","v":""},{"$f":"IF('TSA Input'!J4649=\"\",\"\",IF(OR('TSA Input'!J4649=\"Yes\",'TSA Input'!J4649=\"Contingent\"),'TSA Input'!F4649,\"\"))","v":""},"","Required","Required"]
["",null,{"$f":"IF('TSA Input'!J4650=\"\",\"\",IF(OR('TSA Input'!J4650=\"Yes\",'TSA Input'!J4650=\"Contingent\"),'TSA Input'!B4650,\"Ineligible\"))","v":""},{"$f":"IF('TSA Input'!J4650=\"\",\"\",IF(OR('TSA Input'!J4650=\"Yes\",'TSA Input'!J4650=\"Contingent\"),'TSA Input'!I4650,\"\"))","v":""},{"$f":"IF('TSA Input'!J4650=\"\",\"\",IF(OR('TSA Input'!J4650=\"Yes\",'TSA Input'!J4650=\"Contingent\"),'TSA Input'!C4650,\"\"))","v":""},{"$f":"IF('TSA Input'!J4650=\"\",\"\",IF(OR('TSA Input'!J4650=\"Yes\",'TSA Input'!J4650=\"Contingent\"),'TSA Input'!D4650,\"\"))","v":""},{"$f":"IF('TSA Input'!J4650=\"\",\"\",IF(OR('TSA Input'!J4650=\"Yes\",'TSA Input'!J4650=\"Contingent\"),'TSA Input'!G4650,\"\"))","v":""},{"$f":"IF('TSA Input'!J4650=\"\",\"\",IF(OR('TSA Input'!J4650=\"Yes\",'TSA Input'!J4650=\"Contingent\"),'TSA Input'!F4650,\"\"))","v":""},"",{"$f":"IF('TSA Input'!J4650=\"\",\"\",IF(OR('TSA Input'!J4650=\"Yes\",'TSA Input'!J4650=\"Contingent\"),'TSA Input'!D4650,\"\"))","v":""},{"$f":"IF('TSA Input'!J4650=\"\",\"\",IF(OR('TSA Input'!J4650=\"Yes\",'TSA Input'!J4650=\"Contingent\"),'TSA Input'!G4650,\"\"))","v":""},{"$f":"IF('TSA Input'!J4650=\"\",\"\",IF(OR('TSA Input'!J4650=\"Yes\",'TSA Input'!J4650=\"Contingent\"),'TSA Input'!F4650,\"\"))","v":""},"","Required","Required"]
["",null,{"$f":"IF('TSA Input'!J4651=\"\",\"\",IF(OR('TSA Input'!J4651=\"Yes\",'TSA Input'!J4651=\"Contingent\"),'TSA Input'!B4651,\"Ineligible\"))","v":""},{"$f":"IF('TSA Input'!J4651=\"\",\"\",IF(OR('TSA Input'!J4651=\"Yes\",'TSA Input'!J4651=\"Contingent\"),'TSA Input'!I4651,\"\"))","v":""},{"$f":"IF('TSA Input'!J4651=\"\",\"\",IF(OR('TSA Input'!J4651=\"Yes\",'TSA Input'!J4651=\"Contingent\"),'TSA Input'!C4651,\"\"))","v":""},{"$f":"IF('TSA Input'!J4651=\"\",\"\",IF(OR('TSA Input'!J4651=\"Yes\",'TSA Input'!J4651=\"Contingent\"),'TSA Input'!D4651,\"\"))","v":""},{"$f":"IF('TSA Input'!J4651=\"\",\"\",IF(OR('TSA Input'!J4651=\"Yes\",'TSA Input'!J4651=\"Contingent\"),'TSA Input'!G4651,\"\"))","v":""},{"$f":"IF('TSA Input'!J4651=\"\",\"\",IF(OR('TSA Input'!J4651=\"Yes\",'TSA Input'!J4651=\"Contingent\"),'TSA Input'!F4651,\"\"))","v":""},"",{"$f":"IF('TSA Input'!J4651=\"\",\"\",IF(OR('TSA Input'!J4651=\"Yes\",'TSA Input'!J4651=\"Contingent\"),'TSA Input'!D4651,\"\"))","v":""},{"$f":"IF('TSA Input'!J4651=\"\",\"\",IF(OR('TSA Input'!J4651=\"Yes\",'TSA Input'!J4651=\"Contingent\"),'TSA Input'!G4651,\"\"))","v":""},{"$f":"IF('TSA Input'!J4651=\"\",\"\",IF(OR('TSA Input'!J4651=\"Yes\",'TSA Input'!J4651=\"Contingent\"),'TSA Input'!F4651,\"\"))","v":""},"","Required","Required"]
["",null,{"$f":"IF('TSA Input'!J4652=\"\",\"\",IF(OR('TSA Input'!J4652=\"Yes\",'TSA Input'!J4652=\"Contingent\"),'TSA Input'!B4652,\"Ineligible\"))","v":""},{"$f":"IF('TSA Input'!J4652=\"\",\"\",IF(OR('TSA Input'!J4652=\"Yes\",'TSA Input'!J4652=\"Contingent\"),'TSA Input'!I4652,\"\"))","v":""},{"$f":"IF('TSA Input'!J4652=\"\",\"\",IF(OR('TSA Input'!J4652=\"Yes\",'TSA Input'!J4652=\"Contingent\"),'TSA Input'!C4652,\"\"))","v":""},{"$f":"IF('TSA Input'!J4652=\"\",\"\",IF(OR('TSA Input'!J4652=\"Yes\",'TSA Input'!J4652=\"Contingent\"),'TSA Input'!D4652,\"\"))","v":""},{"$f":"IF('TSA Input'!J4652=\"\",\"\",IF(OR('TSA Input'!J4652=\"Yes\",'TSA Input'!J4652=\"Contingent\"),'TSA Input'!G4652,\"\"))","v":""},{"$f":"IF('TSA Input'!J4652=\"\",\"\",IF(OR('TSA Input'!J4652=\"Yes\",'TSA Input'!J4652=\"Contingent\"),'TSA Input'!F4652,\"\"))","v":""},"",{"$f":"IF('TSA Input'!J4652=\"\",\"\",IF(OR('TSA Input'!J4652=\"Yes\",'TSA Input'!J4652=\"Contingent\"),'TSA Input'!D4652,\"\"))","v":""},{"$f":"IF('TSA Input'!J4652=\"\",\"\",IF(OR('TSA Input'!J4652=\"Yes\",'TSA Input'!J4652=\"Contingent\"),'TSA Input'!G4652,\"\"))","v":""},{"$f":"IF('TSA Input'!J4652=\"\",\"\",IF(OR('TSA Input'!J4652=\"Yes\",'TSA Input'!J4652=\"Contingent\"),'TSA Input'!F4652,\"\"))","v":""},"","Required","Required"]
["",null,{"$f":"IF('TSA Input'!J4653=\"\",\"\",IF(OR('TSA Input'!J4653=\"Yes\",'TSA Input'!J4653=\"Contingent\"),'TSA Input'!B4653,\"Ineligible\"))","v":""},{"$f":"IF('TSA Input'!J4653=\"\",\"\",IF(OR('TSA Input'!J4653=\"Yes\",'TSA Input'!J4653=\"Contingent\"),'TSA Input'!I4653,\"\"))","v":""},{"$f":"IF('TSA Input'!J4653=\"\",\"\",IF(OR('TSA Input'!J4653=\"Yes\",'TSA Input'!J4653=\"Contingent\"),'TSA Input'!C4653,\"\"))","v":""},{"$f":"IF('TSA Input'!J4653=\"\",\"\",IF(OR('TSA Input'!J4653=\"Yes\",'TSA Input'!J4653=\"Contingent\"),'TSA Input'!D4653,\"\"))","v":""},{"$f":"IF('TSA Input'!J4653=\"\",\"\",IF(OR('TSA Input'!J4653=\"Yes\",'TSA Input'!J4653=\"Contingent\"),'TSA Input'!G4653,\"\"))","v":""},{"$f":"IF('TSA Input'!J4653=\"\",\"\",IF(OR('TSA Input'!J4653=\"Yes\",'TSA Input'!J4653=\"Contingent\"),'TSA Input'!F4653,\"\"))","v":""},"",{"$f":"IF('TSA Input'!J4653=\"\",\"\",IF(OR('TSA Input'!J4653=\"Yes\",'TSA Input'!J4653=\"Contingent\"),'TSA Input'!D4653,\"\"))","v":""},{"$f":"IF('TSA Input'!J4653=\"\",\"\",IF(OR('TSA Input'!J4653=\"Yes\",'TSA Input'!J4653=\"Contingent\"),'TSA Input'!G4653,\"\"))","v":""},{"$f":"IF('TSA Input'!J4653=\"\",\"\",IF(OR('TSA Input'!J4653=\"Yes\",'TSA Input'!J4653=\"Contingent\"),'TSA Input'!F4653,\"\"))","v":""},"","Required","Required"]
["",null,{"$f":"IF('TSA Input'!J4654=\"\",\"\",IF(OR('TSA Input'!J4654=\"Yes\",'TSA Input'!J4654=\"Contingent\"),'TSA Input'!B4654,\"Ineligible\"))","v":""},{"$f":"IF('TSA Input'!J4654=\"\",\"\",IF(OR('TSA Input'!J4654=\"Yes\",'TSA Input'!J4654=\"Contingent\"),'TSA Input'!I4654,\"\"))","v":""},{"$f":"IF('TSA Input'!J4654=\"\",\"\",IF(OR('TSA Input'!J4654=\"Yes\",'TSA Input'!J4654=\"Contingent\"),'TSA Input'!C4654,\"\"))","v":""},{"$f":"IF('TSA Input'!J4654=\"\",\"\",IF(OR('TSA Input'!J4654=\"Yes\",'TSA Input'!J4654=\"Contingent\"),'TSA Input'!D4654,\"\"))","v":""},{"$f":"IF('TSA Input'!J4654=\"\",\"\",IF(OR('TSA Input'!J4654=\"Yes\",'TSA Input'!J4654=\"Contingent\"),'TSA Input'!G4654,\"\"))","v":""},{"$f":"IF('TSA Input'!J4654=\"\",\"\",IF(OR('TSA Input'!J4654=\"Yes\",'TSA Input'!J4654=\"Contingent\"),'TSA Input'!F4654,\"\"))","v":""},"",{"$f":"IF('TSA Input'!J4654=\"\",\"\",IF(OR('TSA Input'!J4654=\"Yes\",'TSA Input'!J4654=\"Contingent\"),'TSA Input'!D4654,\"\"))","v":""},{"$f":"IF('TSA Input'!J4654=\"\",\"\",IF(OR('TSA Input'!J4654=\"Yes\",'TSA Input'!J4654=\"Contingent\"),'TSA Input'!G4654,\"\"))","v":""},{"$f":"IF('TSA Input'!J4654=\"\",\"\",IF(OR('TSA Input'!J4654=\"Yes\",'TSA Input'!J4654=\"Contingent\"),'TSA Input'!F4654,\"\"))","v":""},"","Required","Required"]
["",null,{"$f":"IF('TSA Input'!J4655=\"\",\"\",IF(OR('TSA Input'!J4655=\"Yes\",'TSA Input'!J4655=\"Contingent\"),'TSA Input'!B4655,\"Ineligible\"))","v":""},{"$f":"IF('TSA Input'!J4655=\"\",\"\",IF(OR('TSA Input'!J4655=\"Yes\",'TSA Input'!J4655=\"Contingent\"),'TSA Input'!I4655,\"\"))","v":""},{"$f":"IF('TSA Input'!J4655=\"\",\"\",IF(OR('TSA Input'!J4655=\"Yes\",'TSA Input'!J4655=\"Contingent\"),'TSA Input'!C4655,\"\"))","v":""},{"$f":"IF('TSA Input'!J4655=\"\",\"\",IF(OR('TSA Input'!J4655=\"Yes\",'TSA Input'!J4655=\"Contingent\"),'TSA Input'!D4655,\"\"))","v":""},{"$f":"IF('TSA Input'!J4655=\"\",\"\",IF(OR('TSA Input'!J4655=\"Yes\",'TSA Input'!J4655=\"Contingent\"),'TSA Input'!G4655,\"\"))","v":""},{"$f":"IF('TSA Input'!J4655=\"\",\"\",IF(OR('TSA Input'!J4655=\"Yes\",'TSA Input'!J4655=\"Contingent\"),'TSA Input'!F4655,\"\"))","v":""},"",{"$f":"IF('TSA Input'!J4655=\"\",\"\",IF(OR('TSA Input'!J4655=\"Yes\",'TSA Input'!J4655=\"Contingent\"),'TSA Input'!D4655,\"\"))","v":""},{"$f":"IF('TSA Input'!J4655=\"\",\"\",IF(OR('TSA Input'!J4655=\"Yes\",'TSA Input'!J4655=\"Contingent\"),'TSA Input'!G4655,\"\"))","v":""},{"$f":"IF('TSA Input'!J4655=\"\",\"\",IF(OR('TSA Input'!J4655=\"Yes\",'TSA Input'!J4655=\"Contingent\"),'TSA Input'!F4655,\"\"))","v":""},"","Required","Required"]
["",null,{"$f":"IF('TSA Input'!J4656=\"\",\"\",IF(OR('TSA Input'!J4656=\"Yes\",'TSA Input'!J4656=\"Contingent\"),'TSA Input'!B4656,\"Ineligible\"))","v":""},{"$f":"IF('TSA Input'!J4656=\"\",\"\",IF(OR('TSA Input'!J4656=\"Yes\",'TSA Input'!J4656=\"Contingent\"),'TSA Input'!I4656,\"\"))","v":""},{"$f":"IF('TSA Input'!J4656=\"\",\"\",IF(OR('TSA Input'!J4656=\"Yes\",'TSA Input'!J4656=\"Contingent\"),'TSA Input'!C4656,\"\"))","v":""},{"$f":"IF('TSA Input'!J4656=\"\",\"\",IF(OR('TSA Input'!J4656=\"Yes\",'TSA Input'!J4656=\"Contingent\"),'TSA Input'!D4656,\"\"))","v":""},{"$f":"IF('TSA Input'!J4656=\"\",\"\",IF(OR('TSA Input'!J4656=\"Yes\",'TSA Input'!J4656=\"Contingent\"),'TSA Input'!G4656,\"\"))","v":""},{"$f":"IF('TSA Input'!J4656=\"\",\"\",IF(OR('TSA Input'!J4656=\"Yes\",'TSA Input'!J4656=\"Contingent\"),'TSA Input'!F4656,\"\"))","v":""},"",{"$f":"IF('TSA Input'!J4656=\"\",\"\",IF(OR('TSA Input'!J4656=\"Yes\",'TSA Input'!J4656=\"Contingent\"),'TSA Input'!D4656,\"\"))","v":""},{"$f":"IF('TSA Input'!J4656=\"\",\"\",IF(OR('TSA Input'!J4656=\"Yes\",'TSA Input'!J4656=\"Contingent\"),'TSA Input'!G4656,\"\"))","v":""},{"$f":"IF('TSA Input'!J4656=\"\",\"\",IF(OR('TSA Input'!J4656=\"Yes\",'TSA Input'!J4656=\"Contingent\"),'TSA Input'!F4656,\"\"))","v":""},"","Required","Required"]
["",null,{"$f":"IF('TSA Input'!J4657=\"\",\"\",IF(OR('TSA Input'!J4657=\"Yes\",'TSA Input'!J4657=\"Contingent\"),'TSA Input'!B4657,\"Ineligible\"))","v":""},{"$f":"IF('TSA Input'!J4657=\"\",\"\",IF(OR('TSA Input'!J4657=\"Yes\",'TSA Input'!J4657=\"Contingent\"),'TSA Input'!I4657,\"\"))","v":""},{"$f":"IF('TSA Input'!J4657=\"\",\"\",IF(OR('TSA Input'!J4657=\"Yes\",'TSA Input'!J4657=\"Contingent\"),'TSA Input'!C4657,\"\"))","v":""},{"$f":"IF('TSA Input'!J4657=\"\",\"\",IF(OR('TSA Input'!J4657=\"Yes\",'TSA Input'!J4657=\"Contingent\"),'TSA Input'!D4657,\"\"))","v":""},{"$f":"IF('TSA Input'!J4657=\"\",\"\",IF(OR('TSA Input'!J4657=\"Yes\",'TSA Input'!J4657=\"Contingent\"),'TSA Input'!G4657,\"\"))","v":""},{"$f":"IF('TSA Input'!J4657=\"\",\"\",IF(OR('TSA Input'!J4657=\"Yes\",'TSA Input'!J4657=\"Contingent\"),'TSA Input'!F4657,\"\"))","v":""},"",{"$f":"IF('TSA Input'!J4657=\"\",\"\",IF(OR('TSA Input'!J4657=\"Yes\",'TSA Input'!J4657=\"Contingent\"),'TSA Input'!D4657,\"\"))","v":""},{"$f":"IF('TSA Input'!J4657=\"\",\"\",IF(OR('TSA Input'!J4657=\"Yes\",'TSA Input'!J4657=\"Contingent\"),'TSA Input'!G4657,\"\"))","v":""},{"$f":"IF('TSA Input'!J4657=\"\",\"\",IF(OR('TSA Input'!J4657=\"Yes\",'TSA Input'!J4657=\"Contingent\"),'TSA Input'!F4657,\"\"))","v":""},"","Required","Required"]
["",null,{"$f":"IF('TSA Input'!J4658=\"\",\"\",IF(OR('TSA Input'!J4658=\"Yes\",'TSA Input'!J4658=\"Contingent\"),'TSA Input'!B4658,\"Ineligible\"))","v":""},{"$f":"IF('TSA Input'!J4658=\"\",\"\",IF(OR('TSA Input'!J4658=\"Yes\",'TSA Input'!J4658=\"Contingent\"),'TSA Input'!I4658,\"\"))","v":""},{"$f":"IF('TSA Input'!J4658=\"\",\"\",IF(OR('TSA Input'!J4658=\"Yes\",'TSA Input'!J4658=\"Contingent\"),'TSA Input'!C4658,\"\"))","v":""},{"$f":"IF('TSA Input'!J4658=\"\",\"\",IF(OR('TSA Input'!J4658=\"Yes\",'TSA Input'!J4658=\"Contingent\"),'TSA Input'!D4658,\"\"))","v":""},{"$f":"IF('TSA Input'!J4658=\"\",\"\",IF(OR('TSA Input'!J4658=\"Yes\",'TSA Input'!J4658=\"Contingent\"),'TSA Input'!G4658,\"\"))","v":""},{"$f":"IF('TSA Input'!J4658=\"\",\"\",IF(OR('TSA Input'!J4658=\"Yes\",'TSA Input'!J4658=\"Contingent\"),'TSA Input'!F4658,\"\"))","v":""},"",{"$f":"IF('TSA Input'!J4658=\"\",\"\",IF(OR('TSA Input'!J4658=\"Yes\",'TSA Input'!J4658=\"Contingent\"),'TSA Input'!D4658,\"\"))","v":""},{"$f":"IF('TSA Input'!J4658=\"\",\"\",IF(OR('TSA Input'!J4658=\"Yes\",'TSA Input'!J4658=\"Contingent\"),'TSA Input'!G4658,\"\"))","v":""},{"$f":"IF('TSA Input'!J4658=\"\",\"\",IF(OR('TSA Input'!J4658=\"Yes\",'TSA Input'!J4658=\"Contingent\"),'TSA Input'!F4658,\"\"))","v":""},"","Required","Required"]
["",null,{"$f":"IF('TSA Input'!J4659=\"\",\"\",IF(OR('TSA Input'!J4659=\"Yes\",'TSA Input'!J4659=\"Contingent\"),'TSA Input'!B4659,\"Ineligible\"))","v":""},{"$f":"IF('TSA Input'!J4659=\"\",\"\",IF(OR('TSA Input'!J4659=\"Yes\",'TSA Input'!J4659=\"Contingent\"),'TSA Input'!I4659,\"\"))","v":""},{"$f":"IF('TSA Input'!J4659=\"\",\"\",IF(OR('TSA Input'!J4659=\"Yes\",'TSA Input'!J4659=\"Contingent\"),'TSA Input'!C4659,\"\"))","v":""},{"$f":"IF('TSA Input'!J4659=\"\",\"\",IF(OR('TSA Input'!J4659=\"Yes\",'TSA Input'!J4659=\"Contingent\"),'TSA Input'!D4659,\"\"))","v":""},{"$f":"IF('TSA Input'!J4659=\"\",\"\",IF(OR('TSA Input'!J4659=\"Yes\",'TSA Input'!J4659=\"Contingent\"),'TSA Input'!G4659,\"\"))","v":""},{"$f":"IF('TSA Input'!J4659=\"\",\"\",IF(OR('TSA Input'!J4659=\"Yes\",'TSA Input'!J4659=\"Contingent\"),'TSA Input'!F4659,\"\"))","v":""},"",{"$f":"IF('TSA Input'!J4659=\"\",\"\",IF(OR('TSA Input'!J4659=\"Yes\",'TSA Input'!J4659=\"Contingent\"),'TSA Input'!D4659,\"\"))","v":""},{"$f":"IF('TSA Input'!J4659=\"\",\"\",IF(OR('TSA Input'!J4659=\"Yes\",'TSA Input'!J4659=\"Contingent\"),'TSA Input'!G4659,\"\"))","v":""},{"$f":"IF('TSA Input'!J4659=\"\",\"\",IF(OR('TSA Input'!J4659=\"Yes\",'TSA Input'!J4659=\"Contingent\"),'TSA Input'!F4659,\"\"))","v":""},"","Required","Required"]
["",null,{"$f":"IF('TSA Input'!J4660=\"\",\"\",IF(OR('TSA Input'!J4660=\"Yes\",'TSA Input'!J4660=\"Contingent\"),'TSA Input'!B4660,\"Ineligible\"))","v":""},{"$f":"IF('TSA Input'!J4660=\"\",\"\",IF(OR('TSA Input'!J4660=\"Yes\",'TSA Input'!J4660=\"Contingent\"),'TSA Input'!I4660,\"\"))","v":""},{"$f":"IF('TSA Input'!J4660=\"\",\"\",IF(OR('TSA Input'!J4660=\"Yes\",'TSA Input'!J4660=\"Contingent\"),'TSA Input'!C4660,\"\"))","v":""},{"$f":"IF('TSA Input'!J4660=\"\",\"\",IF(OR('TSA Input'!J4660=\"Yes\",'TSA Input'!J4660=\"Contingent\"),'TSA Input'!D4660,\"\"))","v":""},{"$f":"IF('TSA Input'!J4660=\"\",\"\",IF(OR('TSA Input'!J4660=\"Yes\",'TSA Input'!J4660=\"Contingent\"),'TSA Input'!G4660,\"\"))","v":""},{"$f":"IF('TSA Input'!J4660=\"\",\"\",IF(OR('TSA Input'!J4660=\"Yes\",'TSA Input'!J4660=\"Contingent\"),'TSA Input'!F4660,\"\"))","v":""},"",{"$f":"IF('TSA Input'!J4660=\"\",\"\",IF(OR('TSA Input'!J4660=\"Yes\",'TSA Input'!J4660=\"Contingent\"),'TSA Input'!D4660,\"\"))","v":""},{"$f":"IF('TSA Input'!J4660=\"\",\"\",IF(OR('TSA Input'!J4660=\"Yes\",'TSA Input'!J4660=\"Contingent\"),'TSA Input'!G4660,\"\"))","v":""},{"$f":"IF('TSA Input'!J4660=\"\",\"\",IF(OR('TSA Input'!J4660=\"Yes\",'TSA Input'!J4660=\"Contingent\"),'TSA Input'!F4660,\"\"))","v":""},"","Required","Required"]
["",null,{"$f":"IF('TSA Input'!J4661=\"\",\"\",IF(OR('TSA Input'!J4661=\"Yes\",'TSA Input'!J4661=\"Contingent\"),'TSA Input'!B4661,\"Ineligible\"))","v":""},{"$f":"IF('TSA Input'!J4661=\"\",\"\",IF(OR('TSA Input'!J4661=\"Yes\",'TSA Input'!J4661=\"Contingent\"),'TSA Input'!I4661,\"\"))","v":""},{"$f":"IF('TSA Input'!J4661=\"\",\"\",IF(OR('TSA Input'!J4661=\"Yes\",'TSA Input'!J4661=\"Contingent\"),'TSA Input'!C4661,\"\"))","v":""},{"$f":"IF('TSA Input'!J4661=\"\",\"\",IF(OR('TSA Input'!J4661=\"Yes\",'TSA Input'!J4661=\"Contingent\"),'TSA Input'!D4661,\"\"))","v":""},{"$f":"IF('TSA Input'!J4661=\"\",\"\",IF(OR('TSA Input'!J4661=\"Yes\",'TSA Input'!J4661=\"Contingent\"),'TSA Input'!G4661,\"\"))","v":""},{"$f":"IF('TSA Input'!J4661=\"\",\"\",IF(OR('TSA Input'!J4661=\"Yes\",'TSA Input'!J4661=\"Contingent\"),'TSA Input'!F4661,\"\"))","v":""},"",{"$f":"IF('TSA Input'!J4661=\"\",\"\",IF(OR('TSA Input'!J4661=\"Yes\",'TSA Input'!J4661=\"Contingent\"),'TSA Input'!D4661,\"\"))","v":""},{"$f":"IF('TSA Input'!J4661=\"\",\"\",IF(OR('TSA Input'!J4661=\"Yes\",'TSA Input'!J4661=\"Contingent\"),'TSA Input'!G4661,\"\"))","v":""},{"$f":"IF('TSA Input'!J4661=\"\",\"\",IF(OR('TSA Input'!J4661=\"Yes\",'TSA Input'!J4661=\"Contingent\"),'TSA Input'!F4661,\"\"))","v":""},"","Required","Required"]
["",null,{"$f":"IF('TSA Input'!J4662=\"\",\"\",IF(OR('TSA Input'!J4662=\"Yes\",'TSA Input'!J4662=\"Contingent\"),'TSA Input'!B4662,\"Ineligible\"))","v":""},{"$f":"IF('TSA Input'!J4662=\"\",\"\",IF(OR('TSA Input'!J4662=\"Yes\",'TSA Input'!J4662=\"Contingent\"),'TSA Input'!I4662,\"\"))","v":""},{"$f":"IF('TSA Input'!J4662=\"\",\"\",IF(OR('TSA Input'!J4662=\"Yes\",'TSA Input'!J4662=\"Contingent\"),'TSA Input'!C4662,\"\"))","v":""},{"$f":"IF('TSA Input'!J4662=\"\",\"\",IF(OR('TSA Input'!J4662=\"Yes\",'TSA Input'!J4662=\"Contingent\"),'TSA Input'!D4662,\"\"))","v":""},{"$f":"IF('TSA Input'!J4662=\"\",\"\",IF(OR('TSA Input'!J4662=\"Yes\",'TSA Input'!J4662=\"Contingent\"),'TSA Input'!G4662,\"\"))","v":""},{"$f":"IF('TSA Input'!J4662=\"\",\"\",IF(OR('TSA Input'!J4662=\"Yes\",'TSA Input'!J4662=\"Contingent\"),'TSA Input'!F4662,\"\"))","v":""},"",{"$f":"IF('TSA Input'!J4662=\"\",\"\",IF(OR('TSA Input'!J4662=\"Yes\",'TSA Input'!J4662=\"Contingent\"),'TSA Input'!D4662,\"\"))","v":""},{"$f":"IF('TSA Input'!J4662=\"\",\"\",IF(OR('TSA Input'!J4662=\"Yes\",'TSA Input'!J4662=\"Contingent\"),'TSA Input'!G4662,\"\"))","v":""},{"$f":"IF('TSA Input'!J4662=\"\",\"\",IF(OR('TSA Input'!J4662=\"Yes\",'TSA Input'!J4662=\"Contingent\"),'TSA Input'!F4662,\"\"))","v":""},"","Required","Required"]
["",null,{"$f":"IF('TSA Input'!J4663=\"\",\"\",IF(OR('TSA Input'!J4663=\"Yes\",'TSA Input'!J4663=\"Contingent\"),'TSA Input'!B4663,\"Ineligible\"))","v":""},{"$f":"IF('TSA Input'!J4663=\"\",\"\",IF(OR('TSA Input'!J4663=\"Yes\",'TSA Input'!J4663=\"Contingent\"),'TSA Input'!I4663,\"\"))","v":""},{"$f":"IF('TSA Input'!J4663=\"\",\"\",IF(OR('TSA Input'!J4663=\"Yes\",'TSA Input'!J4663=\"Contingent\"),'TSA Input'!C4663,\"\"))","v":""},{"$f":"IF('TSA Input'!J4663=\"\",\"\",IF(OR('TSA Input'!J4663=\"Yes\",'TSA Input'!J4663=\"Contingent\"),'TSA Input'!D4663,\"\"))","v":""},{"$f":"IF('TSA Input'!J4663=\"\",\"\",IF(OR('TSA Input'!J4663=\"Yes\",'TSA Input'!J4663=\"Contingent\"),'TSA Input'!G4663,\"\"))","v":""},{"$f":"IF('TSA Input'!J4663=\"\",\"\",IF(OR('TSA Input'!J4663=\"Yes\",'TSA Input'!J4663=\"Contingent\"),'TSA Input'!F4663,\"\"))","v":""},"",{"$f":"IF('TSA Input'!J4663=\"\",\"\",IF(OR('TSA Input'!J4663=\"Yes\",'TSA Input'!J4663=\"Contingent\"),'TSA Input'!D4663,\"\"))","v":""},{"$f":"IF('TSA Input'!J4663=\"\",\"\",IF(OR('TSA Input'!J4663=\"Yes\",'TSA Input'!J4663=\"Contingent\"),'TSA Input'!G4663,\"\"))","v":""},{"$f":"IF('TSA Input'!J4663=\"\",\"\",IF(OR('TSA Input'!J4663=\"Yes\",'TSA Input'!J4663=\"Contingent\"),'TSA Input'!F4663,\"\"))","v":""},"","Required","Required"]
["",null,{"$f":"IF('TSA Input'!J4664=\"\",\"\",IF(OR('TSA Input'!J4664=\"Yes\",'TSA Input'!J4664=\"Contingent\"),'TSA Input'!B4664,\"Ineligible\"))","v":""},{"$f":"IF('TSA Input'!J4664=\"\",\"\",IF(OR('TSA Input'!J4664=\"Yes\",'TSA Input'!J4664=\"Contingent\"),'TSA Input'!I4664,\"\"))","v":""},{"$f":"IF('TSA Input'!J4664=\"\",\"\",IF(OR('TSA Input'!J4664=\"Yes\",'TSA Input'!J4664=\"Contingent\"),'TSA Input'!C4664,\"\"))","v":""},{"$f":"IF('TSA Input'!J4664=\"\",\"\",IF(OR('TSA Input'!J4664=\"Yes\",'TSA Input'!J4664=\"Contingent\"),'TSA Input'!D4664,\"\"))","v":""},{"$f":"IF('TSA Input'!J4664=\"\",\"\",IF(OR('TSA Input'!J4664=\"Yes\",'TSA Input'!J4664=\"Contingent\"),'TSA Input'!G4664,\"\"))","v":""},{"$f":"IF('TSA Input'!J4664=\"\",\"\",IF(OR('TSA Input'!J4664=\"Yes\",'TSA Input'!J4664=\"Contingent\"),'TSA Input'!F4664,\"\"))","v":""},"",{"$f":"IF('TSA Input'!J4664=\"\",\"\",IF(OR('TSA Input'!J4664=\"Yes\",'TSA Input'!J4664=\"Contingent\"),'TSA Input'!D4664,\"\"))","v":""},{"$f":"IF('TSA Input'!J4664=\"\",\"\",IF(OR('TSA Input'!J4664=\"Yes\",'TSA Input'!J4664=\"Contingent\"),'TSA Input'!G4664,\"\"))","v":""},{"$f":"IF('TSA Input'!J4664=\"\",\"\",IF(OR('TSA Input'!J4664=\"Yes\",'TSA Input'!J4664=\"Contingent\"),'TSA Input'!F4664,\"\"))","v":""},"","Required","Required"]
["",null,{"$f":"IF('TSA Input'!J4665=\"\",\"\",IF(OR('TSA Input'!J4665=\"Yes\",'TSA Input'!J4665=\"Contingent\"),'TSA Input'!B4665,\"Ineligible\"))","v":""},{"$f":"IF('TSA Input'!J4665=\"\",\"\",IF(OR('TSA Input'!J4665=\"Yes\",'TSA Input'!J4665=\"Contingent\"),'TSA Input'!I4665,\"\"))","v":""},{"$f":"IF('TSA Input'!J4665=\"\",\"\",IF(OR('TSA Input'!J4665=\"Yes\",'TSA Input'!J4665=\"Contingent\"),'TSA Input'!C4665,\"\"))","v":""},{"$f":"IF('TSA Input'!J4665=\"\",\"\",IF(OR('TSA Input'!J4665=\"Yes\",'TSA Input'!J4665=\"Contingent\"),'TSA Input'!D4665,\"\"))","v":""},{"$f":"IF('TSA Input'!J4665=\"\",\"\",IF(OR('TSA Input'!J4665=\"Yes\",'TSA Input'!J4665=\"Contingent\"),'TSA Input'!G4665,\"\"))","v":""},{"$f":"IF('TSA Input'!J4665=\"\",\"\",IF(OR('TSA Input'!J4665=\"Yes\",'TSA Input'!J4665=\"Contingent\"),'TSA Input'!F4665,\"\"))","v":""},"",{"$f":"IF('TSA Input'!J4665=\"\",\"\",IF(OR('TSA Input'!J4665=\"Yes\",'TSA Input'!J4665=\"Contingent\"),'TSA Input'!D4665,\"\"))","v":""},{"$f":"IF('TSA Input'!J4665=\"\",\"\",IF(OR('TSA Input'!J4665=\"Yes\",'TSA Input'!J4665=\"Contingent\"),'TSA Input'!G4665,\"\"))","v":""},{"$f":"IF('TSA Input'!J4665=\"\",\"\",IF(OR('TSA Input'!J4665=\"Yes\",'TSA Input'!J4665=\"Contingent\"),'TSA Input'!F4665,\"\"))","v":""},"","Required","Required"]
["",null,{"$f":"IF('TSA Input'!J4666=\"\",\"\",IF(OR('TSA Input'!J4666=\"Yes\",'TSA Input'!J4666=\"Contingent\"),'TSA Input'!B4666,\"Ineligible\"))","v":""},{"$f":"IF('TSA Input'!J4666=\"\",\"\",IF(OR('TSA Input'!J4666=\"Yes\",'TSA Input'!J4666=\"Contingent\"),'TSA Input'!I4666,\"\"))","v":""},{"$f":"IF('TSA Input'!J4666=\"\",\"\",IF(OR('TSA Input'!J4666=\"Yes\",'TSA Input'!J4666=\"Contingent\"),'TSA Input'!C4666,\"\"))","v":""},{"$f":"IF('TSA Input'!J4666=\"\",\"\",IF(OR('TSA Input'!J4666=\"Yes\",'TSA Input'!J4666=\"Contingent\"),'TSA Input'!D4666,\"\"))","v":""},{"$f":"IF('TSA Input'!J4666=\"\",\"\",IF(OR('TSA Input'!J4666=\"Yes\",'TSA Input'!J4666=\"Contingent\"),'TSA Input'!G4666,\"\"))","v":""},{"$f":"IF('TSA Input'!J4666=\"\",\"\",IF(OR('TSA Input'!J4666=\"Yes\",'TSA Input'!J4666=\"Contingent\"),'TSA Input'!F4666,\"\"))","v":""},"",{"$f":"IF('TSA Input'!J4666=\"\",\"\",IF(OR('TSA Input'!J4666=\"Yes\",'TSA Input'!J4666=\"Contingent\"),'TSA Input'!D4666,\"\"))","v":""},{"$f":"IF('TSA Input'!J4666=\"\",\"\",IF(OR('TSA Input'!J4666=\"Yes\",'TSA Input'!J4666=\"Contingent\"),'TSA Input'!G4666,\"\"))","v":""},{"$f":"IF('TSA Input'!J4666=\"\",\"\",IF(OR('TSA Input'!J4666=\"Yes\",'TSA Input'!J4666=\"Contingent\"),'TSA Input'!F4666,\"\"))","v":""},"","Required","Required"]
["",null,{"$f":"IF('TSA Input'!J4667=\"\",\"\",IF(OR('TSA Input'!J4667=\"Yes\",'TSA Input'!J4667=\"Contingent\"),'TSA Input'!B4667,\"Ineligible\"))","v":""},{"$f":"IF('TSA Input'!J4667=\"\",\"\",IF(OR('TSA Input'!J4667=\"Yes\",'TSA Input'!J4667=\"Contingent\"),'TSA Input'!I4667,\"\"))","v":""},{"$f":"IF('TSA Input'!J4667=\"\",\"\",IF(OR('TSA Input'!J4667=\"Yes\",'TSA Input'!J4667=\"Contingent\"),'TSA Input'!C4667,\"\"))","v":""},{"$f":"IF('TSA Input'!J4667=\"\",\"\",IF(OR('TSA Input'!J4667=\"Yes\",'TSA Input'!J4667=\"Contingent\"),'TSA Input'!D4667,\"\"))","v":""},{"$f":"IF('TSA Input'!J4667=\"\",\"\",IF(OR('TSA Input'!J4667=\"Yes\",'TSA Input'!J4667=\"Contingent\"),'TSA Input'!G4667,\"\"))","v":""},{"$f":"IF('TSA Input'!J4667=\"\",\"\",IF(OR('TSA Input'!J4667=\"Yes\",'TSA Input'!J4667=\"Contingent\"),'TSA Input'!F4667,\"\"))","v":""},"",{"$f":"IF('TSA Input'!J4667=\"\",\"\",IF(OR('TSA Input'!J4667=\"Yes\",'TSA Input'!J4667=\"Contingent\"),'TSA Input'!D4667,\"\"))","v":""},{"$f":"IF('TSA Input'!J4667=\"\",\"\",IF(OR('TSA Input'!J4667=\"Yes\",'TSA Input'!J4667=\"Contingent\"),'TSA Input'!G4667,\"\"))","v":""},{"$f":"IF('TSA Input'!J4667=\"\",\"\",IF(OR('TSA Input'!J4667=\"Yes\",'TSA Input'!J4667=\"Contingent\"),'TSA Input'!F4667,\"\"))","v":""},"","Required","Required"]
["",null,{"$f":"IF('TSA Input'!J4668=\"\",\"\",IF(OR('TSA Input'!J4668=\"Yes\",'TSA Input'!J4668=\"Contingent\"),'TSA Input'!B4668,\"Ineligible\"))","v":""},{"$f":"IF('TSA Input'!J4668=\"\",\"\",IF(OR('TSA Input'!J4668=\"Yes\",'TSA Input'!J4668=\"Contingent\"),'TSA Input'!I4668,\"\"))","v":""},{"$f":"IF('TSA Input'!J4668=\"\",\"\",IF(OR('TSA Input'!J4668=\"Yes\",'TSA Input'!J4668=\"Contingent\"),'TSA Input'!C4668,\"\"))","v":""},{"$f":"IF('TSA Input'!J4668=\"\",\"\",IF(OR('TSA Input'!J4668=\"Yes\",'TSA Input'!J4668=\"Contingent\"),'TSA Input'!D4668,\"\"))","v":""},{"$f":"IF('TSA Input'!J4668=\"\",\"\",IF(OR('TSA Input'!J4668=\"Yes\",'TSA Input'!J4668=\"Contingent\"),'TSA Input'!G4668,\"\"))","v":""},{"$f":"IF('TSA Input'!J4668=\"\",\"\",IF(OR('TSA Input'!J4668=\"Yes\",'TSA Input'!J4668=\"Contingent\"),'TSA Input'!F4668,\"\"))","v":""},"",{"$f":"IF('TSA Input'!J4668=\"\",\"\",IF(OR('TSA Input'!J4668=\"Yes\",'TSA Input'!J4668=\"Contingent\"),'TSA Input'!D4668,\"\"))","v":""},{"$f":"IF('TSA Input'!J4668=\"\",\"\",IF(OR('TSA Input'!J4668=\"Yes\",'TSA Input'!J4668=\"Contingent\"),'TSA Input'!G4668,\"\"))","v":""},{"$f":"IF('TSA Input'!J4668=\"\",\"\",IF(OR('TSA Input'!J4668=\"Yes\",'TSA Input'!J4668=\"Contingent\"),'TSA Input'!F4668,\"\"))","v":""},"","Required","Required"]
["",null,{"$f":"IF('TSA Input'!J4669=\"\",\"\",IF(OR('TSA Input'!J4669=\"Yes\",'TSA Input'!J4669=\"Contingent\"),'TSA Input'!B4669,\"Ineligible\"))","v":""},{"$f":"IF('TSA Input'!J4669=\"\",\"\",IF(OR('TSA Input'!J4669=\"Yes\",'TSA Input'!J4669=\"Contingent\"),'TSA Input'!I4669,\"\"))","v":""},{"$f":"IF('TSA Input'!J4669=\"\",\"\",IF(OR('TSA Input'!J4669=\"Yes\",'TSA Input'!J4669=\"Contingent\"),'TSA Input'!C4669,\"\"))","v":""},{"$f":"IF('TSA Input'!J4669=\"\",\"\",IF(OR('TSA Input'!J4669=\"Yes\",'TSA Input'!J4669=\"Contingent\"),'TSA Input'!D4669,\"\"))","v":""},{"$f":"IF('TSA Input'!J4669=\"\",\"\",IF(OR('TSA Input'!J4669=\"Yes\",'TSA Input'!J4669=\"Contingent\"),'TSA Input'!G4669,\"\"))","v":""},{"$f":"IF('TSA Input'!J4669=\"\",\"\",IF(OR('TSA Input'!J4669=\"Yes\",'TSA Input'!J4669=\"Contingent\"),'TSA Input'!F4669,\"\"))","v":""},"",{"$f":"IF('TSA Input'!J4669=\"\",\"\",IF(OR('TSA Input'!J4669=\"Yes\",'TSA Input'!J4669=\"Contingent\"),'TSA Input'!D4669,\"\"))","v":""},{"$f":"IF('TSA Input'!J4669=\"\",\"\",IF(OR('TSA Input'!J4669=\"Yes\",'TSA Input'!J4669=\"Contingent\"),'TSA Input'!G4669,\"\"))","v":""},{"$f":"IF('TSA Input'!J4669=\"\",\"\",IF(OR('TSA Input'!J4669=\"Yes\",'TSA Input'!J4669=\"Contingent\"),'TSA Input'!F4669,\"\"))","v":""},"","Required","Required"]
["",null,{"$f":"IF('TSA Input'!J4670=\"\",\"\",IF(OR('TSA Input'!J4670=\"Yes\",'TSA Input'!J4670=\"Contingent\"),'TSA Input'!B4670,\"Ineligible\"))","v":""},{"$f":"IF('TSA Input'!J4670=\"\",\"\",IF(OR('TSA Input'!J4670=\"Yes\",'TSA Input'!J4670=\"Contingent\"),'TSA Input'!I4670,\"\"))","v":""},{"$f":"IF('TSA Input'!J4670=\"\",\"\",IF(OR('TSA Input'!J4670=\"Yes\",'TSA Input'!J4670=\"Contingent\"),'TSA Input'!C4670,\"\"))","v":""},{"$f":"IF('TSA Input'!J4670=\"\",\"\",IF(OR('TSA Input'!J4670=\"Yes\",'TSA Input'!J4670=\"Contingent\"),'TSA Input'!D4670,\"\"))","v":""},{"$f":"IF('TSA Input'!J4670=\"\",\"\",IF(OR('TSA Input'!J4670=\"Yes\",'TSA Input'!J4670=\"Contingent\"),'TSA Input'!G4670,\"\"))","v":""},{"$f":"IF('TSA Input'!J4670=\"\",\"\",IF(OR('TSA Input'!J4670=\"Yes\",'TSA Input'!J4670=\"Contingent\"),'TSA Input'!F4670,\"\"))","v":""},"",{"$f":"IF('TSA Input'!J4670=\"\",\"\",IF(OR('TSA Input'!J4670=\"Yes\",'TSA Input'!J4670=\"Contingent\"),'TSA Input'!D4670,\"\"))","v":""},{"$f":"IF('TSA Input'!J4670=\"\",\"\",IF(OR('TSA Input'!J4670=\"Yes\",'TSA Input'!J4670=\"Contingent\"),'TSA Input'!G4670,\"\"))","v":""},{"$f":"IF('TSA Input'!J4670=\"\",\"\",IF(OR('TSA Input'!J4670=\"Yes\",'TSA Input'!J4670=\"Contingent\"),'TSA Input'!F4670,\"\"))","v":""},"","Required","Required"]
["",null,{"$f":"IF('TSA Input'!J4671=\"\",\"\",IF(OR('TSA Input'!J4671=\"Yes\",'TSA Input'!J4671=\"Contingent\"),'TSA Input'!B4671,\"Ineligible\"))","v":""},{"$f":"IF('TSA Input'!J4671=\"\",\"\",IF(OR('TSA Input'!J4671=\"Yes\",'TSA Input'!J4671=\"Contingent\"),'TSA Input'!I4671,\"\"))","v":""},{"$f":"IF('TSA Input'!J4671=\"\",\"\",IF(OR('TSA Input'!J4671=\"Yes\",'TSA Input'!J4671=\"Contingent\"),'TSA Input'!C4671,\"\"))","v":""},{"$f":"IF('TSA Input'!J4671=\"\",\"\",IF(OR('TSA Input'!J4671=\"Yes\",'TSA Input'!J4671=\"Contingent\"),'TSA Input'!D4671,\"\"))","v":""},{"$f":"IF('TSA Input'!J4671=\"\",\"\",IF(OR('TSA Input'!J4671=\"Yes\",'TSA Input'!J4671=\"Contingent\"),'TSA Input'!G4671,\"\"))","v":""},{"$f":"IF('TSA Input'!J4671=\"\",\"\",IF(OR('TSA Input'!J4671=\"Yes\",'TSA Input'!J4671=\"Contingent\"),'TSA Input'!F4671,\"\"))","v":""},"",{"$f":"IF('TSA Input'!J4671=\"\",\"\",IF(OR('TSA Input'!J4671=\"Yes\",'TSA Input'!J4671=\"Contingent\"),'TSA Input'!D4671,\"\"))","v":""},{"$f":"IF('TSA Input'!J4671=\"\",\"\",IF(OR('TSA Input'!J4671=\"Yes\",'TSA Input'!J4671=\"Contingent\"),'TSA Input'!G4671,\"\"))","v":""},{"$f":"IF('TSA Input'!J4671=\"\",\"\",IF(OR('TSA Input'!J4671=\"Yes\",'TSA Input'!J4671=\"Contingent\"),'TSA Input'!F4671,\"\"))","v":""},"","Required","Required"]
["",null,{"$f":"IF('TSA Input'!J4672=\"\",\"\",IF(OR('TSA Input'!J4672=\"Yes\",'TSA Input'!J4672=\"Contingent\"),'TSA Input'!B4672,\"Ineligible\"))","v":""},{"$f":"IF('TSA Input'!J4672=\"\",\"\",IF(OR('TSA Input'!J4672=\"Yes\",'TSA Input'!J4672=\"Contingent\"),'TSA Input'!I4672,\"\"))","v":""},{"$f":"IF('TSA Input'!J4672=\"\",\"\",IF(OR('TSA Input'!J4672=\"Yes\",'TSA Input'!J4672=\"Contingent\"),'TSA Input'!C4672,\"\"))","v":""},{"$f":"IF('TSA Input'!J4672=\"\",\"\",IF(OR('TSA Input'!J4672=\"Yes\",'TSA Input'!J4672=\"Contingent\"),'TSA Input'!D4672,\"\"))","v":""},{"$f":"IF('TSA Input'!J4672=\"\",\"\",IF(OR('TSA Input'!J4672=\"Yes\",'TSA Input'!J4672=\"Contingent\"),'TSA Input'!G4672,\"\"))","v":""},{"$f":"IF('TSA Input'!J4672=\"\",\"\",IF(OR('TSA Input'!J4672=\"Yes\",'TSA Input'!J4672=\"Contingent\"),'TSA Input'!F4672,\"\"))","v":""},"",{"$f":"IF('TSA Input'!J4672=\"\",\"\",IF(OR('TSA Input'!J4672=\"Yes\",'TSA Input'!J4672=\"Contingent\"),'TSA Input'!D4672,\"\"))","v":""},{"$f":"IF('TSA Input'!J4672=\"\",\"\",IF(OR('TSA Input'!J4672=\"Yes\",'TSA Input'!J4672=\"Contingent\"),'TSA Input'!G4672,\"\"))","v":""},{"$f":"IF('TSA Input'!J4672=\"\",\"\",IF(OR('TSA Input'!J4672=\"Yes\",'TSA Input'!J4672=\"Contingent\"),'TSA Input'!F4672,\"\"))","v":""},"","Required","Required"]
["",null,{"$f":"IF('TSA Input'!J4673=\"\",\"\",IF(OR('TSA Input'!J4673=\"Yes\",'TSA Input'!J4673=\"Contingent\"),'TSA Input'!B4673,\"Ineligible\"))","v":""},{"$f":"IF('TSA Input'!J4673=\"\",\"\",IF(OR('TSA Input'!J4673=\"Yes\",'TSA Input'!J4673=\"Contingent\"),'TSA Input'!I4673,\"\"))","v":""},{"$f":"IF('TSA Input'!J4673=\"\",\"\",IF(OR('TSA Input'!J4673=\"Yes\",'TSA Input'!J4673=\"Contingent\"),'TSA Input'!C4673,\"\"))","v":""},{"$f":"IF('TSA Input'!J4673=\"\",\"\",IF(OR('TSA Input'!J4673=\"Yes\",'TSA Input'!J4673=\"Contingent\"),'TSA Input'!D4673,\"\"))","v":""},{"$f":"IF('TSA Input'!J4673=\"\",\"\",IF(OR('TSA Input'!J4673=\"Yes\",'TSA Input'!J4673=\"Contingent\"),'TSA Input'!G4673,\"\"))","v":""},{"$f":"IF('TSA Input'!J4673=\"\",\"\",IF(OR('TSA Input'!J4673=\"Yes\",'TSA Input'!J4673=\"Contingent\"),'TSA Input'!F4673,\"\"))","v":""},"",{"$f":"IF('TSA Input'!J4673=\"\",\"\",IF(OR('TSA Input'!J4673=\"Yes\",'TSA Input'!J4673=\"Contingent\"),'TSA Input'!D4673,\"\"))","v":""},{"$f":"IF('TSA Input'!J4673=\"\",\"\",IF(OR('TSA Input'!J4673=\"Yes\",'TSA Input'!J4673=\"Contingent\"),'TSA Input'!G4673,\"\"))","v":""},{"$f":"IF('TSA Input'!J4673=\"\",\"\",IF(OR('TSA Input'!J4673=\"Yes\",'TSA Input'!J4673=\"Contingent\"),'TSA Input'!F4673,\"\"))","v":""},"","Required","Required"]
["",null,{"$f":"IF('TSA Input'!J4674=\"\",\"\",IF(OR('TSA Input'!J4674=\"Yes\",'TSA Input'!J4674=\"Contingent\"),'TSA Input'!B4674,\"Ineligible\"))","v":""},{"$f":"IF('TSA Input'!J4674=\"\",\"\",IF(OR('TSA Input'!J4674=\"Yes\",'TSA Input'!J4674=\"Contingent\"),'TSA Input'!I4674,\"\"))","v":""},{"$f":"IF('TSA Input'!J4674=\"\",\"\",IF(OR('TSA Input'!J4674=\"Yes\",'TSA Input'!J4674=\"Contingent\"),'TSA Input'!C4674,\"\"))","v":""},{"$f":"IF('TSA Input'!J4674=\"\",\"\",IF(OR('TSA Input'!J4674=\"Yes\",'TSA Input'!J4674=\"Contingent\"),'TSA Input'!D4674,\"\"))","v":""},{"$f":"IF('TSA Input'!J4674=\"\",\"\",IF(OR('TSA Input'!J4674=\"Yes\",'TSA Input'!J4674=\"Contingent\"),'TSA Input'!G4674,\"\"))","v":""},{"$f":"IF('TSA Input'!J4674=\"\",\"\",IF(OR('TSA Input'!J4674=\"Yes\",'TSA Input'!J4674=\"Contingent\"),'TSA Input'!F4674,\"\"))","v":""},"",{"$f":"IF('TSA Input'!J4674=\"\",\"\",IF(OR('TSA Input'!J4674=\"Yes\",'TSA Input'!J4674=\"Contingent\"),'TSA Input'!D4674,\"\"))","v":""},{"$f":"IF('TSA Input'!J4674=\"\",\"\",IF(OR('TSA Input'!J4674=\"Yes\",'TSA Input'!J4674=\"Contingent\"),'TSA Input'!G4674,\"\"))","v":""},{"$f":"IF('TSA Input'!J4674=\"\",\"\",IF(OR('TSA Input'!J4674=\"Yes\",'TSA Input'!J4674=\"Contingent\"),'TSA Input'!F4674,\"\"))","v":""},"","Required","Required"]
["",null,{"$f":"IF('TSA Input'!J4675=\"\",\"\",IF(OR('TSA Input'!J4675=\"Yes\",'TSA Input'!J4675=\"Contingent\"),'TSA Input'!B4675,\"Ineligible\"))","v":""},{"$f":"IF('TSA Input'!J4675=\"\",\"\",IF(OR('TSA Input'!J4675=\"Yes\",'TSA Input'!J4675=\"Contingent\"),'TSA Input'!I4675,\"\"))","v":""},{"$f":"IF('TSA Input'!J4675=\"\",\"\",IF(OR('TSA Input'!J4675=\"Yes\",'TSA Input'!J4675=\"Contingent\"),'TSA Input'!C4675,\"\"))","v":""},{"$f":"IF('TSA Input'!J4675=\"\",\"\",IF(OR('TSA Input'!J4675=\"Yes\",'TSA Input'!J4675=\"Contingent\"),'TSA Input'!D4675,\"\"))","v":""},{"$f":"IF('TSA Input'!J4675=\"\",\"\",IF(OR('TSA Input'!J4675=\"Yes\",'TSA Input'!J4675=\"Contingent\"),'TSA Input'!G4675,\"\"))","v":""},{"$f":"IF('TSA Input'!J4675=\"\",\"\",IF(OR('TSA Input'!J4675=\"Yes\",'TSA Input'!J4675=\"Contingent\"),'TSA Input'!F4675,\"\"))","v":""},"",{"$f":"IF('TSA Input'!J4675=\"\",\"\",IF(OR('TSA Input'!J4675=\"Yes\",'TSA Input'!J4675=\"Contingent\"),'TSA Input'!D4675,\"\"))","v":""},{"$f":"IF('TSA Input'!J4675=\"\",\"\",IF(OR('TSA Input'!J4675=\"Yes\",'TSA Input'!J4675=\"Contingent\"),'TSA Input'!G4675,\"\"))","v":""},{"$f":"IF('TSA Input'!J4675=\"\",\"\",IF(OR('TSA Input'!J4675=\"Yes\",'TSA Input'!J4675=\"Contingent\"),'TSA Input'!F4675,\"\"))","v":""},"","Required","Required"]
["",null,{"$f":"IF('TSA Input'!J4676=\"\",\"\",IF(OR('TSA Input'!J4676=\"Yes\",'TSA Input'!J4676=\"Contingent\"),'TSA Input'!B4676,\"Ineligible\"))","v":""},{"$f":"IF('TSA Input'!J4676=\"\",\"\",IF(OR('TSA Input'!J4676=\"Yes\",'TSA Input'!J4676=\"Contingent\"),'TSA Input'!I4676,\"\"))","v":""},{"$f":"IF('TSA Input'!J4676=\"\",\"\",IF(OR('TSA Input'!J4676=\"Yes\",'TSA Input'!J4676=\"Contingent\"),'TSA Input'!C4676,\"\"))","v":""},{"$f":"IF('TSA Input'!J4676=\"\",\"\",IF(OR('TSA Input'!J4676=\"Yes\",'TSA Input'!J4676=\"Contingent\"),'TSA Input'!D4676,\"\"))","v":""},{"$f":"IF('TSA Input'!J4676=\"\",\"\",IF(OR('TSA Input'!J4676=\"Yes\",'TSA Input'!J4676=\"Contingent\"),'TSA Input'!G4676,\"\"))","v":""},{"$f":"IF('TSA Input'!J4676=\"\",\"\",IF(OR('TSA Input'!J4676=\"Yes\",'TSA Input'!J4676=\"Contingent\"),'TSA Input'!F4676,\"\"))","v":""},{"$f":"IF($C4714=\"\",\"\",SUM(F4714:H4714))","v":""},{"$f":"IF('TSA Input'!J4676=\"\",\"\",IF(OR('TSA Input'!J4676=\"Yes\",'TSA Input'!J4676=\"Contingent\"),'TSA Input'!D4676,\"\"))","v":""},{"$f":"IF('TSA Input'!J4676=\"\",\"\",IF(OR('TSA Input'!J4676=\"Yes\",'TSA Input'!J4676=\"Contingent\"),'TSA Input'!G4676,\"\"))","v":""},{"$f":"IF('TSA Input'!J4676=\"\",\"\",IF(OR('TSA Input'!J4676=\"Yes\",'TSA Input'!J4676=\"Contingent\"),'TSA Input'!F4676,\"\"))","v":""},{"$f":"IF($C4714=\"\",\"\",SUM(J4714:L4714))","v":""},"Required","Required"]
["",null,{"$f":"IF('TSA Input'!J4677=\"\",\"\",IF(OR('TSA Input'!J4677=\"Yes\",'TSA Input'!J4677=\"Contingent\"),'TSA Input'!B4677,\"Ineligible\"))","v":""},{"$f":"IF('TSA Input'!J4677=\"\",\"\",IF(OR('TSA Input'!J4677=\"Yes\",'TSA Input'!J4677=\"Contingent\"),'TSA Input'!I4677,\"\"))","v":""},{"$f":"IF('TSA Input'!J4677=\"\",\"\",IF(OR('TSA Input'!J4677=\"Yes\",'TSA Input'!J4677=\"Contingent\"),'TSA Input'!C4677,\"\"))","v":""},{"$f":"IF('TSA Input'!J4677=\"\",\"\",IF(OR('TSA Input'!J4677=\"Yes\",'TSA Input'!J4677=\"Contingent\"),'TSA Input'!D4677,\"\"))","v":""},{"$f":"IF('TSA Input'!J4677=\"\",\"\",IF(OR('TSA Input'!J4677=\"Yes\",'TSA Input'!J4677=\"Contingent\"),'TSA Input'!G4677,\"\"))","v":""},{"$f":"IF('TSA Input'!J4677=\"\",\"\",IF(OR('TSA Input'!J4677=\"Yes\",'TSA Input'!J4677=\"Contingent\"),'TSA Input'!F4677,\"\"))","v":""},"",{"$f":"IF('TSA Input'!J4677=\"\",\"\",IF(OR('TSA Input'!J4677=\"Yes\",'TSA Input'!J4677=\"Contingent\"),'TSA Input'!D4677,\"\"))","v":""},{"$f":"IF('TSA Input'!J4677=\"\",\"\",IF(OR('TSA Input'!J4677=\"Yes\",'TSA Input'!J4677=\"Contingent\"),'TSA Input'!G4677,\"\"))","v":""},{"$f":"IF('TSA Input'!J4677=\"\",\"\",IF(OR('TSA Input'!J4677=\"Yes\",'TSA Input'!J4677=\"Contingent\"),'TSA Input'!F4677,\"\"))","v":""},"","Required","Required"]
["",null,{"$f":"IF('TSA Input'!J4678=\"\",\"\",IF(OR('TSA Input'!J4678=\"Yes\",'TSA Input'!J4678=\"Contingent\"),'TSA Input'!B4678,\"Ineligible\"))","v":""},{"$f":"IF('TSA Input'!J4678=\"\",\"\",IF(OR('TSA Input'!J4678=\"Yes\",'TSA Input'!J4678=\"Contingent\"),'TSA Input'!I4678,\"\"))","v":""},{"$f":"IF('TSA Input'!J4678=\"\",\"\",IF(OR('TSA Input'!J4678=\"Yes\",'TSA Input'!J4678=\"Contingent\"),'TSA Input'!C4678,\"\"))","v":""},{"$f":"IF('TSA Input'!J4678=\"\",\"\",IF(OR('TSA Input'!J4678=\"Yes\",'TSA Input'!J4678=\"Contingent\"),'TSA Input'!D4678,\"\"))","v":""},{"$f":"IF('TSA Input'!J4678=\"\",\"\",IF(OR('TSA Input'!J4678=\"Yes\",'TSA Input'!J4678=\"Contingent\"),'TSA Input'!G4678,\"\"))","v":""},{"$f":"IF('TSA Input'!J4678=\"\",\"\",IF(OR('TSA Input'!J4678=\"Yes\",'TSA Input'!J4678=\"Contingent\"),'TSA Input'!F4678,\"\"))","v":""},"",{"$f":"IF('TSA Input'!J4678=\"\",\"\",IF(OR('TSA Input'!J4678=\"Yes\",'TSA Input'!J4678=\"Contingent\"),'TSA Input'!D4678,\"\"))","v":""},{"$f":"IF('TSA Input'!J4678=\"\",\"\",IF(OR('TSA Input'!J4678=\"Yes\",'TSA Input'!J4678=\"Contingent\"),'TSA Input'!G4678,\"\"))","v":""},{"$f":"IF('TSA Input'!J4678=\"\",\"\",IF(OR('TSA Input'!J4678=\"Yes\",'TSA Input'!J4678=\"Contingent\"),'TSA Input'!F4678,\"\"))","v":""},"","Required","Required"]
["",null,{"$f":"IF('TSA Input'!J4679=\"\",\"\",IF(OR('TSA Input'!J4679=\"Yes\",'TSA Input'!J4679=\"Contingent\"),'TSA Input'!B4679,\"Ineligible\"))","v":""},{"$f":"IF('TSA Input'!J4679=\"\",\"\",IF(OR('TSA Input'!J4679=\"Yes\",'TSA Input'!J4679=\"Contingent\"),'TSA Input'!I4679,\"\"))","v":""},{"$f":"IF('TSA Input'!J4679=\"\",\"\",IF(OR('TSA Input'!J4679=\"Yes\",'TSA Input'!J4679=\"Contingent\"),'TSA Input'!C4679,\"\"))","v":""},{"$f":"IF('TSA Input'!J4679=\"\",\"\",IF(OR('TSA Input'!J4679=\"Yes\",'TSA Input'!J4679=\"Contingent\"),'TSA Input'!D4679,\"\"))","v":""},{"$f":"IF('TSA Input'!J4679=\"\",\"\",IF(OR('TSA Input'!J4679=\"Yes\",'TSA Input'!J4679=\"Contingent\"),'TSA Input'!G4679,\"\"))","v":""},{"$f":"IF('TSA Input'!J4679=\"\",\"\",IF(OR('TSA Input'!J4679=\"Yes\",'TSA Input'!J4679=\"Contingent\"),'TSA Input'!F4679,\"\"))","v":""},"",{"$f":"IF('TSA Input'!J4679=\"\",\"\",IF(OR('TSA Input'!J4679=\"Yes\",'TSA Input'!J4679=\"Contingent\"),'TSA Input'!D4679,\"\"))","v":""},{"$f":"IF('TSA Input'!J4679=\"\",\"\",IF(OR('TSA Input'!J4679=\"Yes\",'TSA Input'!J4679=\"Contingent\"),'TSA Input'!G4679,\"\"))","v":""},{"$f":"IF('TSA Input'!J4679=\"\",\"\",IF(OR('TSA Input'!J4679=\"Yes\",'TSA Input'!J4679=\"Contingent\"),'TSA Input'!F4679,\"\"))","v":""},"","Required","Required"]
["",null,{"$f":"IF('TSA Input'!J4680=\"\",\"\",IF(OR('TSA Input'!J4680=\"Yes\",'TSA Input'!J4680=\"Contingent\"),'TSA Input'!B4680,\"Ineligible\"))","v":""},{"$f":"IF('TSA Input'!J4680=\"\",\"\",IF(OR('TSA Input'!J4680=\"Yes\",'TSA Input'!J4680=\"Contingent\"),'TSA Input'!I4680,\"\"))","v":""},{"$f":"IF('TSA Input'!J4680=\"\",\"\",IF(OR('TSA Input'!J4680=\"Yes\",'TSA Input'!J4680=\"Contingent\"),'TSA Input'!C4680,\"\"))","v":""},{"$f":"IF('TSA Input'!J4680=\"\",\"\",IF(OR('TSA Input'!J4680=\"Yes\",'TSA Input'!J4680=\"Contingent\"),'TSA Input'!D4680,\"\"))","v":""},{"$f":"IF('TSA Input'!J4680=\"\",\"\",IF(OR('TSA Input'!J4680=\"Yes\",'TSA Input'!J4680=\"Contingent\"),'TSA Input'!G4680,\"\"))","v":""},{"$f":"IF('TSA Input'!J4680=\"\",\"\",IF(OR('TSA Input'!J4680=\"Yes\",'TSA Input'!J4680=\"Contingent\"),'TSA Input'!F4680,\"\"))","v":""},"",{"$f":"IF('TSA Input'!J4680=\"\",\"\",IF(OR('TSA Input'!J4680=\"Yes\",'TSA Input'!J4680=\"Contingent\"),'TSA Input'!D4680,\"\"))","v":""},{"$f":"IF('TSA Input'!J4680=\"\",\"\",IF(OR('TSA Input'!J4680=\"Yes\",'TSA Input'!J4680=\"Contingent\"),'TSA Input'!G4680,\"\"))","v":""},{"$f":"IF('TSA Input'!J4680=\"\",\"\",IF(OR('TSA Input'!J4680=\"Yes\",'TSA Input'!J4680=\"Contingent\"),'TSA Input'!F4680,\"\"))","v":""},"","Required","Required"]
["",null,{"$f":"IF('TSA Input'!J4681=\"\",\"\",IF(OR('TSA Input'!J4681=\"Yes\",'TSA Input'!J4681=\"Contingent\"),'TSA Input'!B4681,\"Ineligible\"))","v":""},{"$f":"IF('TSA Input'!J4681=\"\",\"\",IF(OR('TSA Input'!J4681=\"Yes\",'TSA Input'!J4681=\"Contingent\"),'TSA Input'!I4681,\"\"))","v":""},{"$f":"IF('TSA Input'!J4681=\"\",\"\",IF(OR('TSA Input'!J4681=\"Yes\",'TSA Input'!J4681=\"Contingent\"),'TSA Input'!C4681,\"\"))","v":""},{"$f":"IF('TSA Input'!J4681=\"\",\"\",IF(OR('TSA Input'!J4681=\"Yes\",'TSA Input'!J4681=\"Contingent\"),'TSA Input'!D4681,\"\"))","v":""},{"$f":"IF('TSA Input'!J4681=\"\",\"\",IF(OR('TSA Input'!J4681=\"Yes\",'TSA Input'!J4681=\"Contingent\"),'TSA Input'!G4681,\"\"))","v":""},{"$f":"IF('TSA Input'!J4681=\"\",\"\",IF(OR('TSA Input'!J4681=\"Yes\",'TSA Input'!J4681=\"Contingent\"),'TSA Input'!F4681,\"\"))","v":""},"",{"$f":"IF('TSA Input'!J4681=\"\",\"\",IF(OR('TSA Input'!J4681=\"Yes\",'TSA Input'!J4681=\"Contingent\"),'TSA Input'!D4681,\"\"))","v":""},{"$f":"IF('TSA Input'!J4681=\"\",\"\",IF(OR('TSA Input'!J4681=\"Yes\",'TSA Input'!J4681=\"Contingent\"),'TSA Input'!G4681,\"\"))","v":""},{"$f":"IF('TSA Input'!J4681=\"\",\"\",IF(OR('TSA Input'!J4681=\"Yes\",'TSA Input'!J4681=\"Contingent\"),'TSA Input'!F4681,\"\"))","v":""},"","Required","Required"]
["",null,{"$f":"IF('TSA Input'!J4682=\"\",\"\",IF(OR('TSA Input'!J4682=\"Yes\",'TSA Input'!J4682=\"Contingent\"),'TSA Input'!B4682,\"Ineligible\"))","v":""},{"$f":"IF('TSA Input'!J4682=\"\",\"\",IF(OR('TSA Input'!J4682=\"Yes\",'TSA Input'!J4682=\"Contingent\"),'TSA Input'!I4682,\"\"))","v":""},{"$f":"IF('TSA Input'!J4682=\"\",\"\",IF(OR('TSA Input'!J4682=\"Yes\",'TSA Input'!J4682=\"Contingent\"),'TSA Input'!C4682,\"\"))","v":""},{"$f":"IF('TSA Input'!J4682=\"\",\"\",IF(OR('TSA Input'!J4682=\"Yes\",'TSA Input'!J4682=\"Contingent\"),'TSA Input'!D4682,\"\"))","v":""},{"$f":"IF('TSA Input'!J4682=\"\",\"\",IF(OR('TSA Input'!J4682=\"Yes\",'TSA Input'!J4682=\"Contingent\"),'TSA Input'!G4682,\"\"))","v":""},{"$f":"IF('TSA Input'!J4682=\"\",\"\",IF(OR('TSA Input'!J4682=\"Yes\",'TSA Input'!J4682=\"Contingent\"),'TSA Input'!F4682,\"\"))","v":""},"",{"$f":"IF('TSA Input'!J4682=\"\",\"\",IF(OR('TSA Input'!J4682=\"Yes\",'TSA Input'!J4682=\"Contingent\"),'TSA Input'!D4682,\"\"))","v":""},{"$f":"IF('TSA Input'!J4682=\"\",\"\",IF(OR('TSA Input'!J4682=\"Yes\",'TSA Input'!J4682=\"Contingent\"),'TSA Input'!G4682,\"\"))","v":""},{"$f":"IF('TSA Input'!J4682=\"\",\"\",IF(OR('TSA Input'!J4682=\"Yes\",'TSA Input'!J4682=\"Contingent\"),'TSA Input'!F4682,\"\"))","v":""},"","Required","Required"]
["",null,{"$f":"IF('TSA Input'!J4683=\"\",\"\",IF(OR('TSA Input'!J4683=\"Yes\",'TSA Input'!J4683=\"Contingent\"),'TSA Input'!B4683,\"Ineligible\"))","v":""},{"$f":"IF('TSA Input'!J4683=\"\",\"\",IF(OR('TSA Input'!J4683=\"Yes\",'TSA Input'!J4683=\"Contingent\"),'TSA Input'!I4683,\"\"))","v":""},{"$f":"IF('TSA Input'!J4683=\"\",\"\",IF(OR('TSA Input'!J4683=\"Yes\",'TSA Input'!J4683=\"Contingent\"),'TSA Input'!C4683,\"\"))","v":""},{"$f":"IF('TSA Input'!J4683=\"\",\"\",IF(OR('TSA Input'!J4683=\"Yes\",'TSA Input'!J4683=\"Contingent\"),'TSA Input'!D4683,\"\"))","v":""},{"$f":"IF('TSA Input'!J4683=\"\",\"\",IF(OR('TSA Input'!J4683=\"Yes\",'TSA Input'!J4683=\"Contingent\"),'TSA Input'!G4683,\"\"))","v":""},{"$f":"IF('TSA Input'!J4683=\"\",\"\",IF(OR('TSA Input'!J4683=\"Yes\",'TSA Input'!J4683=\"Contingent\"),'TSA Input'!F4683,\"\"))","v":""},"",{"$f":"IF('TSA Input'!J4683=\"\",\"\",IF(OR('TSA Input'!J4683=\"Yes\",'TSA Input'!J4683=\"Contingent\"),'TSA Input'!D4683,\"\"))","v":""},{"$f":"IF('TSA Input'!J4683=\"\",\"\",IF(OR('TSA Input'!J4683=\"Yes\",'TSA Input'!J4683=\"Contingent\"),'TSA Input'!G4683,\"\"))","v":""},{"$f":"IF('TSA Input'!J4683=\"\",\"\",IF(OR('TSA Input'!J4683=\"Yes\",'TSA Input'!J4683=\"Contingent\"),'TSA Input'!F4683,\"\"))","v":""},"","Required","Required"]
["",null,{"$f":"IF('TSA Input'!J4684=\"\",\"\",IF(OR('TSA Input'!J4684=\"Yes\",'TSA Input'!J4684=\"Contingent\"),'TSA Input'!B4684,\"Ineligible\"))","v":""},{"$f":"IF('TSA Input'!J4684=\"\",\"\",IF(OR('TSA Input'!J4684=\"Yes\",'TSA Input'!J4684=\"Contingent\"),'TSA Input'!I4684,\"\"))","v":""},{"$f":"IF('TSA Input'!J4684=\"\",\"\",IF(OR('TSA Input'!J4684=\"Yes\",'TSA Input'!J4684=\"Contingent\"),'TSA Input'!C4684,\"\"))","v":""},{"$f":"IF('TSA Input'!J4684=\"\",\"\",IF(OR('TSA Input'!J4684=\"Yes\",'TSA Input'!J4684=\"Contingent\"),'TSA Input'!D4684,\"\"))","v":""},{"$f":"IF('TSA Input'!J4684=\"\",\"\",IF(OR('TSA Input'!J4684=\"Yes\",'TSA Input'!J4684=\"Contingent\"),'TSA Input'!G4684,\"\"))","v":""},{"$f":"IF('TSA Input'!J4684=\"\",\"\",IF(OR('TSA Input'!J4684=\"Yes\",'TSA Input'!J4684=\"Contingent\"),'TSA Input'!F4684,\"\"))","v":""},"",{"$f":"IF('TSA Input'!J4684=\"\",\"\",IF(OR('TSA Input'!J4684=\"Yes\",'TSA Input'!J4684=\"Contingent\"),'TSA Input'!D4684,\"\"))","v":""},{"$f":"IF('TSA Input'!J4684=\"\",\"\",IF(OR('TSA Input'!J4684=\"Yes\",'TSA Input'!J4684=\"Contingent\"),'TSA Input'!G4684,\"\"))","v":""},{"$f":"IF('TSA Input'!J4684=\"\",\"\",IF(OR('TSA Input'!J4684=\"Yes\",'TSA Input'!J4684=\"Contingent\"),'TSA Input'!F4684,\"\"))","v":""},"","Required","Required"]
["",null,{"$f":"IF('TSA Input'!J4685=\"\",\"\",IF(OR('TSA Input'!J4685=\"Yes\",'TSA Input'!J4685=\"Contingent\"),'TSA Input'!B4685,\"Ineligible\"))","v":""},{"$f":"IF('TSA Input'!J4685=\"\",\"\",IF(OR('TSA Input'!J4685=\"Yes\",'TSA Input'!J4685=\"Contingent\"),'TSA Input'!I4685,\"\"))","v":""},{"$f":"IF('TSA Input'!J4685=\"\",\"\",IF(OR('TSA Input'!J4685=\"Yes\",'TSA Input'!J4685=\"Contingent\"),'TSA Input'!C4685,\"\"))","v":""},{"$f":"IF('TSA Input'!J4685=\"\",\"\",IF(OR('TSA Input'!J4685=\"Yes\",'TSA Input'!J4685=\"Contingent\"),'TSA Input'!D4685,\"\"))","v":""},{"$f":"IF('TSA Input'!J4685=\"\",\"\",IF(OR('TSA Input'!J4685=\"Yes\",'TSA Input'!J4685=\"Contingent\"),'TSA Input'!G4685,\"\"))","v":""},{"$f":"IF('TSA Input'!J4685=\"\",\"\",IF(OR('TSA Input'!J4685=\"Yes\",'TSA Input'!J4685=\"Contingent\"),'TSA Input'!F4685,\"\"))","v":""},"",{"$f":"IF('TSA Input'!J4685=\"\",\"\",IF(OR('TSA Input'!J4685=\"Yes\",'TSA Input'!J4685=\"Contingent\"),'TSA Input'!D4685,\"\"))","v":""},{"$f":"IF('TSA Input'!J4685=\"\",\"\",IF(OR('TSA Input'!J4685=\"Yes\",'TSA Input'!J4685=\"Contingent\"),'TSA Input'!G4685,\"\"))","v":""},{"$f":"IF('TSA Input'!J4685=\"\",\"\",IF(OR('TSA Input'!J4685=\"Yes\",'TSA Input'!J4685=\"Contingent\"),'TSA Input'!F4685,\"\"))","v":""},"","Required","Required"]
["",null,{"$f":"IF('TSA Input'!J4686=\"\",\"\",IF(OR('TSA Input'!J4686=\"Yes\",'TSA Input'!J4686=\"Contingent\"),'TSA Input'!B4686,\"Ineligible\"))","v":""},{"$f":"IF('TSA Input'!J4686=\"\",\"\",IF(OR('TSA Input'!J4686=\"Yes\",'TSA Input'!J4686=\"Contingent\"),'TSA Input'!I4686,\"\"))","v":""},{"$f":"IF('TSA Input'!J4686=\"\",\"\",IF(OR('TSA Input'!J4686=\"Yes\",'TSA Input'!J4686=\"Contingent\"),'TSA Input'!C4686,\"\"))","v":""},{"$f":"IF('TSA Input'!J4686=\"\",\"\",IF(OR('TSA Input'!J4686=\"Yes\",'TSA Input'!J4686=\"Contingent\"),'TSA Input'!D4686,\"\"))","v":""},{"$f":"IF('TSA Input'!J4686=\"\",\"\",IF(OR('TSA Input'!J4686=\"Yes\",'TSA Input'!J4686=\"Contingent\"),'TSA Input'!G4686,\"\"))","v":""},{"$f":"IF('TSA Input'!J4686=\"\",\"\",IF(OR('TSA Input'!J4686=\"Yes\",'TSA Input'!J4686=\"Contingent\"),'TSA Input'!F4686,\"\"))","v":""},"",{"$f":"IF('TSA Input'!J4686=\"\",\"\",IF(OR('TSA Input'!J4686=\"Yes\",'TSA Input'!J4686=\"Contingent\"),'TSA Input'!D4686,\"\"))","v":""},{"$f":"IF('TSA Input'!J4686=\"\",\"\",IF(OR('TSA Input'!J4686=\"Yes\",'TSA Input'!J4686=\"Contingent\"),'TSA Input'!G4686,\"\"))","v":""},{"$f":"IF('TSA Input'!J4686=\"\",\"\",IF(OR('TSA Input'!J4686=\"Yes\",'TSA Input'!J4686=\"Contingent\"),'TSA Input'!F4686,\"\"))","v":""},"","Required","Required"]
["",null,{"$f":"IF('TSA Input'!J4687=\"\",\"\",IF(OR('TSA Input'!J4687=\"Yes\",'TSA Input'!J4687=\"Contingent\"),'TSA Input'!B4687,\"Ineligible\"))","v":""},{"$f":"IF('TSA Input'!J4687=\"\",\"\",IF(OR('TSA Input'!J4687=\"Yes\",'TSA Input'!J4687=\"Contingent\"),'TSA Input'!I4687,\"\"))","v":""},{"$f":"IF('TSA Input'!J4687=\"\",\"\",IF(OR('TSA Input'!J4687=\"Yes\",'TSA Input'!J4687=\"Contingent\"),'TSA Input'!C4687,\"\"))","v":""},{"$f":"IF('TSA Input'!J4687=\"\",\"\",IF(OR('TSA Input'!J4687=\"Yes\",'TSA Input'!J4687=\"Contingent\"),'TSA Input'!D4687,\"\"))","v":""},{"$f":"IF('TSA Input'!J4687=\"\",\"\",IF(OR('TSA Input'!J4687=\"Yes\",'TSA Input'!J4687=\"Contingent\"),'TSA Input'!G4687,\"\"))","v":""},{"$f":"IF('TSA Input'!J4687=\"\",\"\",IF(OR('TSA Input'!J4687=\"Yes\",'TSA Input'!J4687=\"Contingent\"),'TSA Input'!F4687,\"\"))","v":""},"",{"$f":"IF('TSA Input'!J4687=\"\",\"\",IF(OR('TSA Input'!J4687=\"Yes\",'TSA Input'!J4687=\"Contingent\"),'TSA Input'!D4687,\"\"))","v":""},{"$f":"IF('TSA Input'!J4687=\"\",\"\",IF(OR('TSA Input'!J4687=\"Yes\",'TSA Input'!J4687=\"Contingent\"),'TSA Input'!G4687,\"\"))","v":""},{"$f":"IF('TSA Input'!J4687=\"\",\"\",IF(OR('TSA Input'!J4687=\"Yes\",'TSA Input'!J4687=\"Contingent\"),'TSA Input'!F4687,\"\"))","v":""},"","Required","Required"]
["",null,{"$f":"IF('TSA Input'!J4688=\"\",\"\",IF(OR('TSA Input'!J4688=\"Yes\",'TSA Input'!J4688=\"Contingent\"),'TSA Input'!B4688,\"Ineligible\"))","v":""},{"$f":"IF('TSA Input'!J4688=\"\",\"\",IF(OR('TSA Input'!J4688=\"Yes\",'TSA Input'!J4688=\"Contingent\"),'TSA Input'!I4688,\"\"))","v":""},{"$f":"IF('TSA Input'!J4688=\"\",\"\",IF(OR('TSA Input'!J4688=\"Yes\",'TSA Input'!J4688=\"Contingent\"),'TSA Input'!C4688,\"\"))","v":""},{"$f":"IF('TSA Input'!J4688=\"\",\"\",IF(OR('TSA Input'!J4688=\"Yes\",'TSA Input'!J4688=\"Contingent\"),'TSA Input'!D4688,\"\"))","v":""},{"$f":"IF('TSA Input'!J4688=\"\",\"\",IF(OR('TSA Input'!J4688=\"Yes\",'TSA Input'!J4688=\"Contingent\"),'TSA Input'!G4688,\"\"))","v":""},{"$f":"IF('TSA Input'!J4688=\"\",\"\",IF(OR('TSA Input'!J4688=\"Yes\",'TSA Input'!J4688=\"Contingent\"),'TSA Input'!F4688,\"\"))","v":""},"",{"$f":"IF('TSA Input'!J4688=\"\",\"\",IF(OR('TSA Input'!J4688=\"Yes\",'TSA Input'!J4688=\"Contingent\"),'TSA Input'!D4688,\"\"))","v":""},{"$f":"IF('TSA Input'!J4688=\"\",\"\",IF(OR('TSA Input'!J4688=\"Yes\",'TSA Input'!J4688=\"Contingent\"),'TSA Input'!G4688,\"\"))","v":""},{"$f":"IF('TSA Input'!J4688=\"\",\"\",IF(OR('TSA Input'!J4688=\"Yes\",'TSA Input'!J4688=\"Contingent\"),'TSA Input'!F4688,\"\"))","v":""},"","Required","Required"]
["",null,{"$f":"IF('TSA Input'!J4689=\"\",\"\",IF(OR('TSA Input'!J4689=\"Yes\",'TSA Input'!J4689=\"Contingent\"),'TSA Input'!B4689,\"Ineligible\"))","v":""},{"$f":"IF('TSA Input'!J4689=\"\",\"\",IF(OR('TSA Input'!J4689=\"Yes\",'TSA Input'!J4689=\"Contingent\"),'TSA Input'!I4689,\"\"))","v":""},{"$f":"IF('TSA Input'!J4689=\"\",\"\",IF(OR('TSA Input'!J4689=\"Yes\",'TSA Input'!J4689=\"Contingent\"),'TSA Input'!C4689,\"\"))","v":""},{"$f":"IF('TSA Input'!J4689=\"\",\"\",IF(OR('TSA Input'!J4689=\"Yes\",'TSA Input'!J4689=\"Contingent\"),'TSA Input'!D4689,\"\"))","v":""},{"$f":"IF('TSA Input'!J4689=\"\",\"\",IF(OR('TSA Input'!J4689=\"Yes\",'TSA Input'!J4689=\"Contingent\"),'TSA Input'!G4689,\"\"))","v":""},{"$f":"IF('TSA Input'!J4689=\"\",\"\",IF(OR('TSA Input'!J4689=\"Yes\",'TSA Input'!J4689=\"Contingent\"),'TSA Input'!F4689,\"\"))","v":""},"",{"$f":"IF('TSA Input'!J4689=\"\",\"\",IF(OR('TSA Input'!J4689=\"Yes\",'TSA Input'!J4689=\"Contingent\"),'TSA Input'!D4689,\"\"))","v":""},{"$f":"IF('TSA Input'!J4689=\"\",\"\",IF(OR('TSA Input'!J4689=\"Yes\",'TSA Input'!J4689=\"Contingent\"),'TSA Input'!G4689,\"\"))","v":""},{"$f":"IF('TSA Input'!J4689=\"\",\"\",IF(OR('TSA Input'!J4689=\"Yes\",'TSA Input'!J4689=\"Contingent\"),'TSA Input'!F4689,\"\"))","v":""},"","Required","Required"]
["",null,{"$f":"IF('TSA Input'!J4690=\"\",\"\",IF(OR('TSA Input'!J4690=\"Yes\",'TSA Input'!J4690=\"Contingent\"),'TSA Input'!B4690,\"Ineligible\"))","v":""},{"$f":"IF('TSA Input'!J4690=\"\",\"\",IF(OR('TSA Input'!J4690=\"Yes\",'TSA Input'!J4690=\"Contingent\"),'TSA Input'!I4690,\"\"))","v":""},{"$f":"IF('TSA Input'!J4690=\"\",\"\",IF(OR('TSA Input'!J4690=\"Yes\",'TSA Input'!J4690=\"Contingent\"),'TSA Input'!C4690,\"\"))","v":""},{"$f":"IF('TSA Input'!J4690=\"\",\"\",IF(OR('TSA Input'!J4690=\"Yes\",'TSA Input'!J4690=\"Contingent\"),'TSA Input'!D4690,\"\"))","v":""},{"$f":"IF('TSA Input'!J4690=\"\",\"\",IF(OR('TSA Input'!J4690=\"Yes\",'TSA Input'!J4690=\"Contingent\"),'TSA Input'!G4690,\"\"))","v":""},{"$f":"IF('TSA Input'!J4690=\"\",\"\",IF(OR('TSA Input'!J4690=\"Yes\",'TSA Input'!J4690=\"Contingent\"),'TSA Input'!F4690,\"\"))","v":""},"",{"$f":"IF('TSA Input'!J4690=\"\",\"\",IF(OR('TSA Input'!J4690=\"Yes\",'TSA Input'!J4690=\"Contingent\"),'TSA Input'!D4690,\"\"))","v":""},{"$f":"IF('TSA Input'!J4690=\"\",\"\",IF(OR('TSA Input'!J4690=\"Yes\",'TSA Input'!J4690=\"Contingent\"),'TSA Input'!G4690,\"\"))","v":""},{"$f":"IF('TSA Input'!J4690=\"\",\"\",IF(OR('TSA Input'!J4690=\"Yes\",'TSA Input'!J4690=\"Contingent\"),'TSA Input'!F4690,\"\"))","v":""},"","Required","Required"]
["",null,{"$f":"IF('TSA Input'!J4691=\"\",\"\",IF(OR('TSA Input'!J4691=\"Yes\",'TSA Input'!J4691=\"Contingent\"),'TSA Input'!B4691,\"Ineligible\"))","v":""},{"$f":"IF('TSA Input'!J4691=\"\",\"\",IF(OR('TSA Input'!J4691=\"Yes\",'TSA Input'!J4691=\"Contingent\"),'TSA Input'!I4691,\"\"))","v":""},{"$f":"IF('TSA Input'!J4691=\"\",\"\",IF(OR('TSA Input'!J4691=\"Yes\",'TSA Input'!J4691=\"Contingent\"),'TSA Input'!C4691,\"\"))","v":""},{"$f":"IF('TSA Input'!J4691=\"\",\"\",IF(OR('TSA Input'!J4691=\"Yes\",'TSA Input'!J4691=\"Contingent\"),'TSA Input'!D4691,\"\"))","v":""},{"$f":"IF('TSA Input'!J4691=\"\",\"\",IF(OR('TSA Input'!J4691=\"Yes\",'TSA Input'!J4691=\"Contingent\"),'TSA Input'!G4691,\"\"))","v":""},{"$f":"IF('TSA Input'!J4691=\"\",\"\",IF(OR('TSA Input'!J4691=\"Yes\",'TSA Input'!J4691=\"Contingent\"),'TSA Input'!F4691,\"\"))","v":""},"",{"$f":"IF('TSA Input'!J4691=\"\",\"\",IF(OR('TSA Input'!J4691=\"Yes\",'TSA Input'!J4691=\"Contingent\"),'TSA Input'!D4691,\"\"))","v":""},{"$f":"IF('TSA Input'!J4691=\"\",\"\",IF(OR('TSA Input'!J4691=\"Yes\",'TSA Input'!J4691=\"Contingent\"),'TSA Input'!G4691,\"\"))","v":""},{"$f":"IF('TSA Input'!J4691=\"\",\"\",IF(OR('TSA Input'!J4691=\"Yes\",'TSA Input'!J4691=\"Contingent\"),'TSA Input'!F4691,\"\"))","v":""},"","Required","Required"]
["",null,{"$f":"IF('TSA Input'!J4692=\"\",\"\",IF(OR('TSA Input'!J4692=\"Yes\",'TSA Input'!J4692=\"Contingent\"),'TSA Input'!B4692,\"Ineligible\"))","v":""},{"$f":"IF('TSA Input'!J4692=\"\",\"\",IF(OR('TSA Input'!J4692=\"Yes\",'TSA Input'!J4692=\"Contingent\"),'TSA Input'!I4692,\"\"))","v":""},{"$f":"IF('TSA Input'!J4692=\"\",\"\",IF(OR('TSA Input'!J4692=\"Yes\",'TSA Input'!J4692=\"Contingent\"),'TSA Input'!C4692,\"\"))","v":""},{"$f":"IF('TSA Input'!J4692=\"\",\"\",IF(OR('TSA Input'!J4692=\"Yes\",'TSA Input'!J4692=\"Contingent\"),'TSA Input'!D4692,\"\"))","v":""},{"$f":"IF('TSA Input'!J4692=\"\",\"\",IF(OR('TSA Input'!J4692=\"Yes\",'TSA Input'!J4692=\"Contingent\"),'TSA Input'!G4692,\"\"))","v":""},{"$f":"IF('TSA Input'!J4692=\"\",\"\",IF(OR('TSA Input'!J4692=\"Yes\",'TSA Input'!J4692=\"Contingent\"),'TSA Input'!F4692,\"\"))","v":""},"",{"$f":"IF('TSA Input'!J4692=\"\",\"\",IF(OR('TSA Input'!J4692=\"Yes\",'TSA Input'!J4692=\"Contingent\"),'TSA Input'!D4692,\"\"))","v":""},{"$f":"IF('TSA Input'!J4692=\"\",\"\",IF(OR('TSA Input'!J4692=\"Yes\",'TSA Input'!J4692=\"Contingent\"),'TSA Input'!G4692,\"\"))","v":""},{"$f":"IF('TSA Input'!J4692=\"\",\"\",IF(OR('TSA Input'!J4692=\"Yes\",'TSA Input'!J4692=\"Contingent\"),'TSA Input'!F4692,\"\"))","v":""},"","Required","Required"]
["",null,{"$f":"IF('TSA Input'!J4693=\"\",\"\",IF(OR('TSA Input'!J4693=\"Yes\",'TSA Input'!J4693=\"Contingent\"),'TSA Input'!B4693,\"Ineligible\"))","v":""},{"$f":"IF('TSA Input'!J4693=\"\",\"\",IF(OR('TSA Input'!J4693=\"Yes\",'TSA Input'!J4693=\"Contingent\"),'TSA Input'!I4693,\"\"))","v":""},{"$f":"IF('TSA Input'!J4693=\"\",\"\",IF(OR('TSA Input'!J4693=\"Yes\",'TSA Input'!J4693=\"Contingent\"),'TSA Input'!C4693,\"\"))","v":""},{"$f":"IF('TSA Input'!J4693=\"\",\"\",IF(OR('TSA Input'!J4693=\"Yes\",'TSA Input'!J4693=\"Contingent\"),'TSA Input'!D4693,\"\"))","v":""},{"$f":"IF('TSA Input'!J4693=\"\",\"\",IF(OR('TSA Input'!J4693=\"Yes\",'TSA Input'!J4693=\"Contingent\"),'TSA Input'!G4693,\"\"))","v":""},{"$f":"IF('TSA Input'!J4693=\"\",\"\",IF(OR('TSA Input'!J4693=\"Yes\",'TSA Input'!J4693=\"Contingent\"),'TSA Input'!F4693,\"\"))","v":""},"",{"$f":"IF('TSA Input'!J4693=\"\",\"\",IF(OR('TSA Input'!J4693=\"Yes\",'TSA Input'!J4693=\"Contingent\"),'TSA Input'!D4693,\"\"))","v":""},{"$f":"IF('TSA Input'!J4693=\"\",\"\",IF(OR('TSA Input'!J4693=\"Yes\",'TSA Input'!J4693=\"Contingent\"),'TSA Input'!G4693,\"\"))","v":""},{"$f":"IF('TSA Input'!J4693=\"\",\"\",IF(OR('TSA Input'!J4693=\"Yes\",'TSA Input'!J4693=\"Contingent\"),'TSA Input'!F4693,\"\"))","v":""},"","Required","Required"]
["",null,{"$f":"IF('TSA Input'!J4694=\"\",\"\",IF(OR('TSA Input'!J4694=\"Yes\",'TSA Input'!J4694=\"Contingent\"),'TSA Input'!B4694,\"Ineligible\"))","v":""},{"$f":"IF('TSA Input'!J4694=\"\",\"\",IF(OR('TSA Input'!J4694=\"Yes\",'TSA Input'!J4694=\"Contingent\"),'TSA Input'!I4694,\"\"))","v":""},{"$f":"IF('TSA Input'!J4694=\"\",\"\",IF(OR('TSA Input'!J4694=\"Yes\",'TSA Input'!J4694=\"Contingent\"),'TSA Input'!C4694,\"\"))","v":""},{"$f":"IF('TSA Input'!J4694=\"\",\"\",IF(OR('TSA Input'!J4694=\"Yes\",'TSA Input'!J4694=\"Contingent\"),'TSA Input'!D4694,\"\"))","v":""},{"$f":"IF('TSA Input'!J4694=\"\",\"\",IF(OR('TSA Input'!J4694=\"Yes\",'TSA Input'!J4694=\"Contingent\"),'TSA Input'!G4694,\"\"))","v":""},{"$f":"IF('TSA Input'!J4694=\"\",\"\",IF(OR('TSA Input'!J4694=\"Yes\",'TSA Input'!J4694=\"Contingent\"),'TSA Input'!F4694,\"\"))","v":""},"",{"$f":"IF('TSA Input'!J4694=\"\",\"\",IF(OR('TSA Input'!J4694=\"Yes\",'TSA Input'!J4694=\"Contingent\"),'TSA Input'!D4694,\"\"))","v":""},{"$f":"IF('TSA Input'!J4694=\"\",\"\",IF(OR('TSA Input'!J4694=\"Yes\",'TSA Input'!J4694=\"Contingent\"),'TSA Input'!G4694,\"\"))","v":""},{"$f":"IF('TSA Input'!J4694=\"\",\"\",IF(OR('TSA Input'!J4694=\"Yes\",'TSA Input'!J4694=\"Contingent\"),'TSA Input'!F4694,\"\"))","v":""},"","Required","Required"]
["",null,{"$f":"IF('TSA Input'!J4695=\"\",\"\",IF(OR('TSA Input'!J4695=\"Yes\",'TSA Input'!J4695=\"Contingent\"),'TSA Input'!B4695,\"Ineligible\"))","v":""},{"$f":"IF('TSA Input'!J4695=\"\",\"\",IF(OR('TSA Input'!J4695=\"Yes\",'TSA Input'!J4695=\"Contingent\"),'TSA Input'!I4695,\"\"))","v":""},{"$f":"IF('TSA Input'!J4695=\"\",\"\",IF(OR('TSA Input'!J4695=\"Yes\",'TSA Input'!J4695=\"Contingent\"),'TSA Input'!C4695,\"\"))","v":""},{"$f":"IF('TSA Input'!J4695=\"\",\"\",IF(OR('TSA Input'!J4695=\"Yes\",'TSA Input'!J4695=\"Contingent\"),'TSA Input'!D4695,\"\"))","v":""},{"$f":"IF('TSA Input'!J4695=\"\",\"\",IF(OR('TSA Input'!J4695=\"Yes\",'TSA Input'!J4695=\"Contingent\"),'TSA Input'!G4695,\"\"))","v":""},{"$f":"IF('TSA Input'!J4695=\"\",\"\",IF(OR('TSA Input'!J4695=\"Yes\",'TSA Input'!J4695=\"Contingent\"),'TSA Input'!F4695,\"\"))","v":""},"",{"$f":"IF('TSA Input'!J4695=\"\",\"\",IF(OR('TSA Input'!J4695=\"Yes\",'TSA Input'!J4695=\"Contingent\"),'TSA Input'!D4695,\"\"))","v":""},{"$f":"IF('TSA Input'!J4695=\"\",\"\",IF(OR('TSA Input'!J4695=\"Yes\",'TSA Input'!J4695=\"Contingent\"),'TSA Input'!G4695,\"\"))","v":""},{"$f":"IF('TSA Input'!J4695=\"\",\"\",IF(OR('TSA Input'!J4695=\"Yes\",'TSA Input'!J4695=\"Contingent\"),'TSA Input'!F4695,\"\"))","v":""},"","Required","Required"]
["",null,{"$f":"IF('TSA Input'!J4696=\"\",\"\",IF(OR('TSA Input'!J4696=\"Yes\",'TSA Input'!J4696=\"Contingent\"),'TSA Input'!B4696,\"Ineligible\"))","v":""},{"$f":"IF('TSA Input'!J4696=\"\",\"\",IF(OR('TSA Input'!J4696=\"Yes\",'TSA Input'!J4696=\"Contingent\"),'TSA Input'!I4696,\"\"))","v":""},{"$f":"IF('TSA Input'!J4696=\"\",\"\",IF(OR('TSA Input'!J4696=\"Yes\",'TSA Input'!J4696=\"Contingent\"),'TSA Input'!C4696,\"\"))","v":""},{"$f":"IF('TSA Input'!J4696=\"\",\"\",IF(OR('TSA Input'!J4696=\"Yes\",'TSA Input'!J4696=\"Contingent\"),'TSA Input'!D4696,\"\"))","v":""},{"$f":"IF('TSA Input'!J4696=\"\",\"\",IF(OR('TSA Input'!J4696=\"Yes\",'TSA Input'!J4696=\"Contingent\"),'TSA Input'!G4696,\"\"))","v":""},{"$f":"IF('TSA Input'!J4696=\"\",\"\",IF(OR('TSA Input'!J4696=\"Yes\",'TSA Input'!J4696=\"Contingent\"),'TSA Input'!F4696,\"\"))","v":""},"",{"$f":"IF('TSA Input'!J4696=\"\",\"\",IF(OR('TSA Input'!J4696=\"Yes\",'TSA Input'!J4696=\"Contingent\"),'TSA Input'!D4696,\"\"))","v":""},{"$f":"IF('TSA Input'!J4696=\"\",\"\",IF(OR('TSA Input'!J4696=\"Yes\",'TSA Input'!J4696=\"Contingent\"),'TSA Input'!G4696,\"\"))","v":""},{"$f":"IF('TSA Input'!J4696=\"\",\"\",IF(OR('TSA Input'!J4696=\"Yes\",'TSA Input'!J4696=\"Contingent\"),'TSA Input'!F4696,\"\"))","v":""},"","Required","Required"]
["",null,{"$f":"IF('TSA Input'!J4697=\"\",\"\",IF(OR('TSA Input'!J4697=\"Yes\",'TSA Input'!J4697=\"Contingent\"),'TSA Input'!B4697,\"Ineligible\"))","v":""},{"$f":"IF('TSA Input'!J4697=\"\",\"\",IF(OR('TSA Input'!J4697=\"Yes\",'TSA Input'!J4697=\"Contingent\"),'TSA Input'!I4697,\"\"))","v":""},{"$f":"IF('TSA Input'!J4697=\"\",\"\",IF(OR('TSA Input'!J4697=\"Yes\",'TSA Input'!J4697=\"Contingent\"),'TSA Input'!C4697,\"\"))","v":""},{"$f":"IF('TSA Input'!J4697=\"\",\"\",IF(OR('TSA Input'!J4697=\"Yes\",'TSA Input'!J4697=\"Contingent\"),'TSA Input'!D4697,\"\"))","v":""},{"$f":"IF('TSA Input'!J4697=\"\",\"\",IF(OR('TSA Input'!J4697=\"Yes\",'TSA Input'!J4697=\"Contingent\"),'TSA Input'!G4697,\"\"))","v":""},{"$f":"IF('TSA Input'!J4697=\"\",\"\",IF(OR('TSA Input'!J4697=\"Yes\",'TSA Input'!J4697=\"Contingent\"),'TSA Input'!F4697,\"\"))","v":""},"",{"$f":"IF('TSA Input'!J4697=\"\",\"\",IF(OR('TSA Input'!J4697=\"Yes\",'TSA Input'!J4697=\"Contingent\"),'TSA Input'!D4697,\"\"))","v":""},{"$f":"IF('TSA Input'!J4697=\"\",\"\",IF(OR('TSA Input'!J4697=\"Yes\",'TSA Input'!J4697=\"Contingent\"),'TSA Input'!G4697,\"\"))","v":""},{"$f":"IF('TSA Input'!J4697=\"\",\"\",IF(OR('TSA Input'!J4697=\"Yes\",'TSA Input'!J4697=\"Contingent\"),'TSA Input'!F4697,\"\"))","v":""},"","Required","Required"]
["",null,{"$f":"IF('TSA Input'!J4698=\"\",\"\",IF(OR('TSA Input'!J4698=\"Yes\",'TSA Input'!J4698=\"Contingent\"),'TSA Input'!B4698,\"Ineligible\"))","v":""},{"$f":"IF('TSA Input'!J4698=\"\",\"\",IF(OR('TSA Input'!J4698=\"Yes\",'TSA Input'!J4698=\"Contingent\"),'TSA Input'!I4698,\"\"))","v":""},{"$f":"IF('TSA Input'!J4698=\"\",\"\",IF(OR('TSA Input'!J4698=\"Yes\",'TSA Input'!J4698=\"Contingent\"),'TSA Input'!C4698,\"\"))","v":""},{"$f":"IF('TSA Input'!J4698=\"\",\"\",IF(OR('TSA Input'!J4698=\"Yes\",'TSA Input'!J4698=\"Contingent\"),'TSA Input'!D4698,\"\"))","v":""},{"$f":"IF('TSA Input'!J4698=\"\",\"\",IF(OR('TSA Input'!J4698=\"Yes\",'TSA Input'!J4698=\"Contingent\"),'TSA Input'!G4698,\"\"))","v":""},{"$f":"IF('TSA Input'!J4698=\"\",\"\",IF(OR('TSA Input'!J4698=\"Yes\",'TSA Input'!J4698=\"Contingent\"),'TSA Input'!F4698,\"\"))","v":""},"",{"$f":"IF('TSA Input'!J4698=\"\",\"\",IF(OR('TSA Input'!J4698=\"Yes\",'TSA Input'!J4698=\"Contingent\"),'TSA Input'!D4698,\"\"))","v":""},{"$f":"IF('TSA Input'!J4698=\"\",\"\",IF(OR('TSA Input'!J4698=\"Yes\",'TSA Input'!J4698=\"Contingent\"),'TSA Input'!G4698,\"\"))","v":""},{"$f":"IF('TSA Input'!J4698=\"\",\"\",IF(OR('TSA Input'!J4698=\"Yes\",'TSA Input'!J4698=\"Contingent\"),'TSA Input'!F4698,\"\"))","v":""},"","Required","Required"]
["",null,{"$f":"IF('TSA Input'!J4699=\"\",\"\",IF(OR('TSA Input'!J4699=\"Yes\",'TSA Input'!J4699=\"Contingent\"),'TSA Input'!B4699,\"Ineligible\"))","v":""},{"$f":"IF('TSA Input'!J4699=\"\",\"\",IF(OR('TSA Input'!J4699=\"Yes\",'TSA Input'!J4699=\"Contingent\"),'TSA Input'!I4699,\"\"))","v":""},{"$f":"IF('TSA Input'!J4699=\"\",\"\",IF(OR('TSA Input'!J4699=\"Yes\",'TSA Input'!J4699=\"Contingent\"),'TSA Input'!C4699,\"\"))","v":""},{"$f":"IF('TSA Input'!J4699=\"\",\"\",IF(OR('TSA Input'!J4699=\"Yes\",'TSA Input'!J4699=\"Contingent\"),'TSA Input'!D4699,\"\"))","v":""},{"$f":"IF('TSA Input'!J4699=\"\",\"\",IF(OR('TSA Input'!J4699=\"Yes\",'TSA Input'!J4699=\"Contingent\"),'TSA Input'!G4699,\"\"))","v":""},{"$f":"IF('TSA Input'!J4699=\"\",\"\",IF(OR('TSA Input'!J4699=\"Yes\",'TSA Input'!J4699=\"Contingent\"),'TSA Input'!F4699,\"\"))","v":""},"",{"$f":"IF('TSA Input'!J4699=\"\",\"\",IF(OR('TSA Input'!J4699=\"Yes\",'TSA Input'!J4699=\"Contingent\"),'TSA Input'!D4699,\"\"))","v":""},{"$f":"IF('TSA Input'!J4699=\"\",\"\",IF(OR('TSA Input'!J4699=\"Yes\",'TSA Input'!J4699=\"Contingent\"),'TSA Input'!G4699,\"\"))","v":""},{"$f":"IF('TSA Input'!J4699=\"\",\"\",IF(OR('TSA Input'!J4699=\"Yes\",'TSA Input'!J4699=\"Contingent\"),'TSA Input'!F4699,\"\"))","v":""},"","Required","Required"]
["",null,{"$f":"IF('TSA Input'!J4700=\"\",\"\",IF(OR('TSA Input'!J4700=\"Yes\",'TSA Input'!J4700=\"Contingent\"),'TSA Input'!B4700,\"Ineligible\"))","v":""},{"$f":"IF('TSA Input'!J4700=\"\",\"\",IF(OR('TSA Input'!J4700=\"Yes\",'TSA Input'!J4700=\"Contingent\"),'TSA Input'!I4700,\"\"))","v":""},{"$f":"IF('TSA Input'!J4700=\"\",\"\",IF(OR('TSA Input'!J4700=\"Yes\",'TSA Input'!J4700=\"Contingent\"),'TSA Input'!C4700,\"\"))","v":""},{"$f":"IF('TSA Input'!J4700=\"\",\"\",IF(OR('TSA Input'!J4700=\"Yes\",'TSA Input'!J4700=\"Contingent\"),'TSA Input'!D4700,\"\"))","v":""},{"$f":"IF('TSA Input'!J4700=\"\",\"\",IF(OR('TSA Input'!J4700=\"Yes\",'TSA Input'!J4700=\"Contingent\"),'TSA Input'!G4700,\"\"))","v":""},{"$f":"IF('TSA Input'!J4700=\"\",\"\",IF(OR('TSA Input'!J4700=\"Yes\",'TSA Input'!J4700=\"Contingent\"),'TSA Input'!F4700,\"\"))","v":""},"",{"$f":"IF('TSA Input'!J4700=\"\",\"\",IF(OR('TSA Input'!J4700=\"Yes\",'TSA Input'!J4700=\"Contingent\"),'TSA Input'!D4700,\"\"))","v":""},{"$f":"IF('TSA Input'!J4700=\"\",\"\",IF(OR('TSA Input'!J4700=\"Yes\",'TSA Input'!J4700=\"Contingent\"),'TSA Input'!G4700,\"\"))","v":""},{"$f":"IF('TSA Input'!J4700=\"\",\"\",IF(OR('TSA Input'!J4700=\"Yes\",'TSA Input'!J4700=\"Contingent\"),'TSA Input'!F4700,\"\"))","v":""},"","Required","Required"]
["",null,{"$f":"IF('TSA Input'!J4701=\"\",\"\",IF(OR('TSA Input'!J4701=\"Yes\",'TSA Input'!J4701=\"Contingent\"),'TSA Input'!B4701,\"Ineligible\"))","v":""},{"$f":"IF('TSA Input'!J4701=\"\",\"\",IF(OR('TSA Input'!J4701=\"Yes\",'TSA Input'!J4701=\"Contingent\"),'TSA Input'!I4701,\"\"))","v":""},{"$f":"IF('TSA Input'!J4701=\"\",\"\",IF(OR('TSA Input'!J4701=\"Yes\",'TSA Input'!J4701=\"Contingent\"),'TSA Input'!C4701,\"\"))","v":""},{"$f":"IF('TSA Input'!J4701=\"\",\"\",IF(OR('TSA Input'!J4701=\"Yes\",'TSA Input'!J4701=\"Contingent\"),'TSA Input'!D4701,\"\"))","v":""},{"$f":"IF('TSA Input'!J4701=\"\",\"\",IF(OR('TSA Input'!J4701=\"Yes\",'TSA Input'!J4701=\"Contingent\"),'TSA Input'!G4701,\"\"))","v":""},{"$f":"IF('TSA Input'!J4701=\"\",\"\",IF(OR('TSA Input'!J4701=\"Yes\",'TSA Input'!J4701=\"Contingent\"),'TSA Input'!F4701,\"\"))","v":""},"",{"$f":"IF('TSA Input'!J4701=\"\",\"\",IF(OR('TSA Input'!J4701=\"Yes\",'TSA Input'!J4701=\"Contingent\"),'TSA Input'!D4701,\"\"))","v":""},{"$f":"IF('TSA Input'!J4701=\"\",\"\",IF(OR('TSA Input'!J4701=\"Yes\",'TSA Input'!J4701=\"Contingent\"),'TSA Input'!G4701,\"\"))","v":""},{"$f":"IF('TSA Input'!J4701=\"\",\"\",IF(OR('TSA Input'!J4701=\"Yes\",'TSA Input'!J4701=\"Contingent\"),'TSA Input'!F4701,\"\"))","v":""},"","Required","Required"]
["",null,{"$f":"IF('TSA Input'!J4702=\"\",\"\",IF(OR('TSA Input'!J4702=\"Yes\",'TSA Input'!J4702=\"Contingent\"),'TSA Input'!B4702,\"Ineligible\"))","v":""},{"$f":"IF('TSA Input'!J4702=\"\",\"\",IF(OR('TSA Input'!J4702=\"Yes\",'TSA Input'!J4702=\"Contingent\"),'TSA Input'!I4702,\"\"))","v":""},{"$f":"IF('TSA Input'!J4702=\"\",\"\",IF(OR('TSA Input'!J4702=\"Yes\",'TSA Input'!J4702=\"Contingent\"),'TSA Input'!C4702,\"\"))","v":""},{"$f":"IF('TSA Input'!J4702=\"\",\"\",IF(OR('TSA Input'!J4702=\"Yes\",'TSA Input'!J4702=\"Contingent\"),'TSA Input'!D4702,\"\"))","v":""},{"$f":"IF('TSA Input'!J4702=\"\",\"\",IF(OR('TSA Input'!J4702=\"Yes\",'TSA Input'!J4702=\"Contingent\"),'TSA Input'!G4702,\"\"))","v":""},{"$f":"IF('TSA Input'!J4702=\"\",\"\",IF(OR('TSA Input'!J4702=\"Yes\",'TSA Input'!J4702=\"Contingent\"),'TSA Input'!F4702,\"\"))","v":""},"",{"$f":"IF('TSA Input'!J4702=\"\",\"\",IF(OR('TSA Input'!J4702=\"Yes\",'TSA Input'!J4702=\"Contingent\"),'TSA Input'!D4702,\"\"))","v":""},{"$f":"IF('TSA Input'!J4702=\"\",\"\",IF(OR('TSA Input'!J4702=\"Yes\",'TSA Input'!J4702=\"Contingent\"),'TSA Input'!G4702,\"\"))","v":""},{"$f":"IF('TSA Input'!J4702=\"\",\"\",IF(OR('TSA Input'!J4702=\"Yes\",'TSA Input'!J4702=\"Contingent\"),'TSA Input'!F4702,\"\"))","v":""},"","Required","Required"]
["",null,{"$f":"IF('TSA Input'!J4703=\"\",\"\",IF(OR('TSA Input'!J4703=\"Yes\",'TSA Input'!J4703=\"Contingent\"),'TSA Input'!B4703,\"Ineligible\"))","v":""},{"$f":"IF('TSA Input'!J4703=\"\",\"\",IF(OR('TSA Input'!J4703=\"Yes\",'TSA Input'!J4703=\"Contingent\"),'TSA Input'!I4703,\"\"))","v":""},{"$f":"IF('TSA Input'!J4703=\"\",\"\",IF(OR('TSA Input'!J4703=\"Yes\",'TSA Input'!J4703=\"Contingent\"),'TSA Input'!C4703,\"\"))","v":""},{"$f":"IF('TSA Input'!J4703=\"\",\"\",IF(OR('TSA Input'!J4703=\"Yes\",'TSA Input'!J4703=\"Contingent\"),'TSA Input'!D4703,\"\"))","v":""},{"$f":"IF('TSA Input'!J4703=\"\",\"\",IF(OR('TSA Input'!J4703=\"Yes\",'TSA Input'!J4703=\"Contingent\"),'TSA Input'!G4703,\"\"))","v":""},{"$f":"IF('TSA Input'!J4703=\"\",\"\",IF(OR('TSA Input'!J4703=\"Yes\",'TSA Input'!J4703=\"Contingent\"),'TSA Input'!F4703,\"\"))","v":""},"",{"$f":"IF('TSA Input'!J4703=\"\",\"\",IF(OR('TSA Input'!J4703=\"Yes\",'TSA Input'!J4703=\"Contingent\"),'TSA Input'!D4703,\"\"))","v":""},{"$f":"IF('TSA Input'!J4703=\"\",\"\",IF(OR('TSA Input'!J4703=\"Yes\",'TSA Input'!J4703=\"Contingent\"),'TSA Input'!G4703,\"\"))","v":""},{"$f":"IF('TSA Input'!J4703=\"\",\"\",IF(OR('TSA Input'!J4703=\"Yes\",'TSA Input'!J4703=\"Contingent\"),'TSA Input'!F4703,\"\"))","v":""},"","Required","Required"]
["",null,{"$f":"IF('TSA Input'!J4704=\"\",\"\",IF(OR('TSA Input'!J4704=\"Yes\",'TSA Input'!J4704=\"Contingent\"),'TSA Input'!B4704,\"Ineligible\"))","v":""},{"$f":"IF('TSA Input'!J4704=\"\",\"\",IF(OR('TSA Input'!J4704=\"Yes\",'TSA Input'!J4704=\"Contingent\"),'TSA Input'!I4704,\"\"))","v":""},{"$f":"IF('TSA Input'!J4704=\"\",\"\",IF(OR('TSA Input'!J4704=\"Yes\",'TSA Input'!J4704=\"Contingent\"),'TSA Input'!C4704,\"\"))","v":""},{"$f":"IF('TSA Input'!J4704=\"\",\"\",IF(OR('TSA Input'!J4704=\"Yes\",'TSA Input'!J4704=\"Contingent\"),'TSA Input'!D4704,\"\"))","v":""},{"$f":"IF('TSA Input'!J4704=\"\",\"\",IF(OR('TSA Input'!J4704=\"Yes\",'TSA Input'!J4704=\"Contingent\"),'TSA Input'!G4704,\"\"))","v":""},{"$f":"IF('TSA Input'!J4704=\"\",\"\",IF(OR('TSA Input'!J4704=\"Yes\",'TSA Input'!J4704=\"Contingent\"),'TSA Input'!F4704,\"\"))","v":""},"",{"$f":"IF('TSA Input'!J4704=\"\",\"\",IF(OR('TSA Input'!J4704=\"Yes\",'TSA Input'!J4704=\"Contingent\"),'TSA Input'!D4704,\"\"))","v":""},{"$f":"IF('TSA Input'!J4704=\"\",\"\",IF(OR('TSA Input'!J4704=\"Yes\",'TSA Input'!J4704=\"Contingent\"),'TSA Input'!G4704,\"\"))","v":""},{"$f":"IF('TSA Input'!J4704=\"\",\"\",IF(OR('TSA Input'!J4704=\"Yes\",'TSA Input'!J4704=\"Contingent\"),'TSA Input'!F4704,\"\"))","v":""},"","Required","Required"]
["",null,{"$f":"IF('TSA Input'!J4705=\"\",\"\",IF(OR('TSA Input'!J4705=\"Yes\",'TSA Input'!J4705=\"Contingent\"),'TSA Input'!B4705,\"Ineligible\"))","v":""},{"$f":"IF('TSA Input'!J4705=\"\",\"\",IF(OR('TSA Input'!J4705=\"Yes\",'TSA Input'!J4705=\"Contingent\"),'TSA Input'!I4705,\"\"))","v":""},{"$f":"IF('TSA Input'!J4705=\"\",\"\",IF(OR('TSA Input'!J4705=\"Yes\",'TSA Input'!J4705=\"Contingent\"),'TSA Input'!C4705,\"\"))","v":""},{"$f":"IF('TSA Input'!J4705=\"\",\"\",IF(OR('TSA Input'!J4705=\"Yes\",'TSA Input'!J4705=\"Contingent\"),'TSA Input'!D4705,\"\"))","v":""},{"$f":"IF('TSA Input'!J4705=\"\",\"\",IF(OR('TSA Input'!J4705=\"Yes\",'TSA Input'!J4705=\"Contingent\"),'TSA Input'!G4705,\"\"))","v":""},{"$f":"IF('TSA Input'!J4705=\"\",\"\",IF(OR('TSA Input'!J4705=\"Yes\",'TSA Input'!J4705=\"Contingent\"),'TSA Input'!F4705,\"\"))","v":""},"",{"$f":"IF('TSA Input'!J4705=\"\",\"\",IF(OR('TSA Input'!J4705=\"Yes\",'TSA Input'!J4705=\"Contingent\"),'TSA Input'!D4705,\"\"))","v":""},{"$f":"IF('TSA Input'!J4705=\"\",\"\",IF(OR('TSA Input'!J4705=\"Yes\",'TSA Input'!J4705=\"Contingent\"),'TSA Input'!G4705,\"\"))","v":""},{"$f":"IF('TSA Input'!J4705=\"\",\"\",IF(OR('TSA Input'!J4705=\"Yes\",'TSA Input'!J4705=\"Contingent\"),'TSA Input'!F4705,\"\"))","v":""},"","Required","Required"]
["",null,{"$f":"IF('TSA Input'!J4706=\"\",\"\",IF(OR('TSA Input'!J4706=\"Yes\",'TSA Input'!J4706=\"Contingent\"),'TSA Input'!B4706,\"Ineligible\"))","v":""},{"$f":"IF('TSA Input'!J4706=\"\",\"\",IF(OR('TSA Input'!J4706=\"Yes\",'TSA Input'!J4706=\"Contingent\"),'TSA Input'!I4706,\"\"))","v":""},{"$f":"IF('TSA Input'!J4706=\"\",\"\",IF(OR('TSA Input'!J4706=\"Yes\",'TSA Input'!J4706=\"Contingent\"),'TSA Input'!C4706,\"\"))","v":""},{"$f":"IF('TSA Input'!J4706=\"\",\"\",IF(OR('TSA Input'!J4706=\"Yes\",'TSA Input'!J4706=\"Contingent\"),'TSA Input'!D4706,\"\"))","v":""},{"$f":"IF('TSA Input'!J4706=\"\",\"\",IF(OR('TSA Input'!J4706=\"Yes\",'TSA Input'!J4706=\"Contingent\"),'TSA Input'!G4706,\"\"))","v":""},{"$f":"IF('TSA Input'!J4706=\"\",\"\",IF(OR('TSA Input'!J4706=\"Yes\",'TSA Input'!J4706=\"Contingent\"),'TSA Input'!F4706,\"\"))","v":""},"",{"$f":"IF('TSA Input'!J4706=\"\",\"\",IF(OR('TSA Input'!J4706=\"Yes\",'TSA Input'!J4706=\"Contingent\"),'TSA Input'!D4706,\"\"))","v":""},{"$f":"IF('TSA Input'!J4706=\"\",\"\",IF(OR('TSA Input'!J4706=\"Yes\",'TSA Input'!J4706=\"Contingent\"),'TSA Input'!G4706,\"\"))","v":""},{"$f":"IF('TSA Input'!J4706=\"\",\"\",IF(OR('TSA Input'!J4706=\"Yes\",'TSA Input'!J4706=\"Contingent\"),'TSA Input'!F4706,\"\"))","v":""},"","Required","Required"]
["",null,{"$f":"IF('TSA Input'!J4707=\"\",\"\",IF(OR('TSA Input'!J4707=\"Yes\",'TSA Input'!J4707=\"Contingent\"),'TSA Input'!B4707,\"Ineligible\"))","v":""},{"$f":"IF('TSA Input'!J4707=\"\",\"\",IF(OR('TSA Input'!J4707=\"Yes\",'TSA Input'!J4707=\"Contingent\"),'TSA Input'!I4707,\"\"))","v":""},{"$f":"IF('TSA Input'!J4707=\"\",\"\",IF(OR('TSA Input'!J4707=\"Yes\",'TSA Input'!J4707=\"Contingent\"),'TSA Input'!C4707,\"\"))","v":""},{"$f":"IF('TSA Input'!J4707=\"\",\"\",IF(OR('TSA Input'!J4707=\"Yes\",'TSA Input'!J4707=\"Contingent\"),'TSA Input'!D4707,\"\"))","v":""},{"$f":"IF('TSA Input'!J4707=\"\",\"\",IF(OR('TSA Input'!J4707=\"Yes\",'TSA Input'!J4707=\"Contingent\"),'TSA Input'!G4707,\"\"))","v":""},{"$f":"IF('TSA Input'!J4707=\"\",\"\",IF(OR('TSA Input'!J4707=\"Yes\",'TSA Input'!J4707=\"Contingent\"),'TSA Input'!F4707,\"\"))","v":""},"",{"$f":"IF('TSA Input'!J4707=\"\",\"\",IF(OR('TSA Input'!J4707=\"Yes\",'TSA Input'!J4707=\"Contingent\"),'TSA Input'!D4707,\"\"))","v":""},{"$f":"IF('TSA Input'!J4707=\"\",\"\",IF(OR('TSA Input'!J4707=\"Yes\",'TSA Input'!J4707=\"Contingent\"),'TSA Input'!G4707,\"\"))","v":""},{"$f":"IF('TSA Input'!J4707=\"\",\"\",IF(OR('TSA Input'!J4707=\"Yes\",'TSA Input'!J4707=\"Contingent\"),'TSA Input'!F4707,\"\"))","v":""},"","Required","Required"]
["",null,{"$f":"IF('TSA Input'!J4708=\"\",\"\",IF(OR('TSA Input'!J4708=\"Yes\",'TSA Input'!J4708=\"Contingent\"),'TSA Input'!B4708,\"Ineligible\"))","v":""},{"$f":"IF('TSA Input'!J4708=\"\",\"\",IF(OR('TSA Input'!J4708=\"Yes\",'TSA Input'!J4708=\"Contingent\"),'TSA Input'!I4708,\"\"))","v":""},{"$f":"IF('TSA Input'!J4708=\"\",\"\",IF(OR('TSA Input'!J4708=\"Yes\",'TSA Input'!J4708=\"Contingent\"),'TSA Input'!C4708,\"\"))","v":""},{"$f":"IF('TSA Input'!J4708=\"\",\"\",IF(OR('TSA Input'!J4708=\"Yes\",'TSA Input'!J4708=\"Contingent\"),'TSA Input'!D4708,\"\"))","v":""},{"$f":"IF('TSA Input'!J4708=\"\",\"\",IF(OR('TSA Input'!J4708=\"Yes\",'TSA Input'!J4708=\"Contingent\"),'TSA Input'!G4708,\"\"))","v":""},{"$f":"IF('TSA Input'!J4708=\"\",\"\",IF(OR('TSA Input'!J4708=\"Yes\",'TSA Input'!J4708=\"Contingent\"),'TSA Input'!F4708,\"\"))","v":""},"",{"$f":"IF('TSA Input'!J4708=\"\",\"\",IF(OR('TSA Input'!J4708=\"Yes\",'TSA Input'!J4708=\"Contingent\"),'TSA Input'!D4708,\"\"))","v":""},{"$f":"IF('TSA Input'!J4708=\"\",\"\",IF(OR('TSA Input'!J4708=\"Yes\",'TSA Input'!J4708=\"Contingent\"),'TSA Input'!G4708,\"\"))","v":""},{"$f":"IF('TSA Input'!J4708=\"\",\"\",IF(OR('TSA Input'!J4708=\"Yes\",'TSA Input'!J4708=\"Contingent\"),'TSA Input'!F4708,\"\"))","v":""},"","Required","Required"]
["",null,{"$f":"IF('TSA Input'!J4709=\"\",\"\",IF(OR('TSA Input'!J4709=\"Yes\",'TSA Input'!J4709=\"Contingent\"),'TSA Input'!B4709,\"Ineligible\"))","v":""},{"$f":"IF('TSA Input'!J4709=\"\",\"\",IF(OR('TSA Input'!J4709=\"Yes\",'TSA Input'!J4709=\"Contingent\"),'TSA Input'!I4709,\"\"))","v":""},{"$f":"IF('TSA Input'!J4709=\"\",\"\",IF(OR('TSA Input'!J4709=\"Yes\",'TSA Input'!J4709=\"Contingent\"),'TSA Input'!C4709,\"\"))","v":""},{"$f":"IF('TSA Input'!J4709=\"\",\"\",IF(OR('TSA Input'!J4709=\"Yes\",'TSA Input'!J4709=\"Contingent\"),'TSA Input'!D4709,\"\"))","v":""},{"$f":"IF('TSA Input'!J4709=\"\",\"\",IF(OR('TSA Input'!J4709=\"Yes\",'TSA Input'!J4709=\"Contingent\"),'TSA Input'!G4709,\"\"))","v":""},{"$f":"IF('TSA Input'!J4709=\"\",\"\",IF(OR('TSA Input'!J4709=\"Yes\",'TSA Input'!J4709=\"Contingent\"),'TSA Input'!F4709,\"\"))","v":""},"",{"$f":"IF('TSA Input'!J4709=\"\",\"\",IF(OR('TSA Input'!J4709=\"Yes\",'TSA Input'!J4709=\"Contingent\"),'TSA Input'!D4709,\"\"))","v":""},{"$f":"IF('TSA Input'!J4709=\"\",\"\",IF(OR('TSA Input'!J4709=\"Yes\",'TSA Input'!J4709=\"Contingent\"),'TSA Input'!G4709,\"\"))","v":""},{"$f":"IF('TSA Input'!J4709=\"\",\"\",IF(OR('TSA Input'!J4709=\"Yes\",'TSA Input'!J4709=\"Contingent\"),'TSA Input'!F4709,\"\"))","v":""},"","Required","Required"]
["",null,{"$f":"IF('TSA Input'!J4710=\"\",\"\",IF(OR('TSA Input'!J4710=\"Yes\",'TSA Input'!J4710=\"Contingent\"),'TSA Input'!B4710,\"Ineligible\"))","v":""},{"$f":"IF('TSA Input'!J4710=\"\",\"\",IF(OR('TSA Input'!J4710=\"Yes\",'TSA Input'!J4710=\"Contingent\"),'TSA Input'!I4710,\"\"))","v":""},{"$f":"IF('TSA Input'!J4710=\"\",\"\",IF(OR('TSA Input'!J4710=\"Yes\",'TSA Input'!J4710=\"Contingent\"),'TSA Input'!C4710,\"\"))","v":""},{"$f":"IF('TSA Input'!J4710=\"\",\"\",IF(OR('TSA Input'!J4710=\"Yes\",'TSA Input'!J4710=\"Contingent\"),'TSA Input'!D4710,\"\"))","v":""},{"$f":"IF('TSA Input'!J4710=\"\",\"\",IF(OR('TSA Input'!J4710=\"Yes\",'TSA Input'!J4710=\"Contingent\"),'TSA Input'!G4710,\"\"))","v":""},{"$f":"IF('TSA Input'!J4710=\"\",\"\",IF(OR('TSA Input'!J4710=\"Yes\",'TSA Input'!J4710=\"Contingent\"),'TSA Input'!F4710,\"\"))","v":""},"",{"$f":"IF('TSA Input'!J4710=\"\",\"\",IF(OR('TSA Input'!J4710=\"Yes\",'TSA Input'!J4710=\"Contingent\"),'TSA Input'!D4710,\"\"))","v":""},{"$f":"IF('TSA Input'!J4710=\"\",\"\",IF(OR('TSA Input'!J4710=\"Yes\",'TSA Input'!J4710=\"Contingent\"),'TSA Input'!G4710,\"\"))","v":""},{"$f":"IF('TSA Input'!J4710=\"\",\"\",IF(OR('TSA Input'!J4710=\"Yes\",'TSA Input'!J4710=\"Contingent\"),'TSA Input'!F4710,\"\"))","v":""},"","Required","Required"]
["",null,{"$f":"IF('TSA Input'!J4711=\"\",\"\",IF(OR('TSA Input'!J4711=\"Yes\",'TSA Input'!J4711=\"Contingent\"),'TSA Input'!B4711,\"Ineligible\"))","v":""},{"$f":"IF('TSA Input'!J4711=\"\",\"\",IF(OR('TSA Input'!J4711=\"Yes\",'TSA Input'!J4711=\"Contingent\"),'TSA Input'!I4711,\"\"))","v":""},{"$f":"IF('TSA Input'!J4711=\"\",\"\",IF(OR('TSA Input'!J4711=\"Yes\",'TSA Input'!J4711=\"Contingent\"),'TSA Input'!C4711,\"\"))","v":""},{"$f":"IF('TSA Input'!J4711=\"\",\"\",IF(OR('TSA Input'!J4711=\"Yes\",'TSA Input'!J4711=\"Contingent\"),'TSA Input'!D4711,\"\"))","v":""},{"$f":"IF('TSA Input'!J4711=\"\",\"\",IF(OR('TSA Input'!J4711=\"Yes\",'TSA Input'!J4711=\"Contingent\"),'TSA Input'!G4711,\"\"))","v":""},{"$f":"IF('TSA Input'!J4711=\"\",\"\",IF(OR('TSA Input'!J4711=\"Yes\",'TSA Input'!J4711=\"Contingent\"),'TSA Input'!F4711,\"\"))","v":""},"",{"$f":"IF('TSA Input'!J4711=\"\",\"\",IF(OR('TSA Input'!J4711=\"Yes\",'TSA Input'!J4711=\"Contingent\"),'TSA Input'!D4711,\"\"))","v":""},{"$f":"IF('TSA Input'!J4711=\"\",\"\",IF(OR('TSA Input'!J4711=\"Yes\",'TSA Input'!J4711=\"Contingent\"),'TSA Input'!G4711,\"\"))","v":""},{"$f":"IF('TSA Input'!J4711=\"\",\"\",IF(OR('TSA Input'!J4711=\"Yes\",'TSA Input'!J4711=\"Contingent\"),'TSA Input'!F4711,\"\"))","v":""},"","Required","Required"]
["",null,{"$f":"IF('TSA Input'!J4712=\"\",\"\",IF(OR('TSA Input'!J4712=\"Yes\",'TSA Input'!J4712=\"Contingent\"),'TSA Input'!B4712,\"Ineligible\"))","v":""},{"$f":"IF('TSA Input'!J4712=\"\",\"\",IF(OR('TSA Input'!J4712=\"Yes\",'TSA Input'!J4712=\"Contingent\"),'TSA Input'!I4712,\"\"))","v":""},{"$f":"IF('TSA Input'!J4712=\"\",\"\",IF(OR('TSA Input'!J4712=\"Yes\",'TSA Input'!J4712=\"Contingent\"),'TSA Input'!C4712,\"\"))","v":""},{"$f":"IF('TSA Input'!J4712=\"\",\"\",IF(OR('TSA Input'!J4712=\"Yes\",'TSA Input'!J4712=\"Contingent\"),'TSA Input'!D4712,\"\"))","v":""},{"$f":"IF('TSA Input'!J4712=\"\",\"\",IF(OR('TSA Input'!J4712=\"Yes\",'TSA Input'!J4712=\"Contingent\"),'TSA Input'!G4712,\"\"))","v":""},{"$f":"IF('TSA Input'!J4712=\"\",\"\",IF(OR('TSA Input'!J4712=\"Yes\",'TSA Input'!J4712=\"Contingent\"),'TSA Input'!F4712,\"\"))","v":""},"",{"$f":"IF('TSA Input'!J4712=\"\",\"\",IF(OR('TSA Input'!J4712=\"Yes\",'TSA Input'!J4712=\"Contingent\"),'TSA Input'!D4712,\"\"))","v":""},{"$f":"IF('TSA Input'!J4712=\"\",\"\",IF(OR('TSA Input'!J4712=\"Yes\",'TSA Input'!J4712=\"Contingent\"),'TSA Input'!G4712,\"\"))","v":""},{"$f":"IF('TSA Input'!J4712=\"\",\"\",IF(OR('TSA Input'!J4712=\"Yes\",'TSA Input'!J4712=\"Contingent\"),'TSA Input'!F4712,\"\"))","v":""},"","Required","Required"]
["",null,{"$f":"IF('TSA Input'!J4713=\"\",\"\",IF(OR('TSA Input'!J4713=\"Yes\",'TSA Input'!J4713=\"Contingent\"),'TSA Input'!B4713,\"Ineligible\"))","v":""},{"$f":"IF('TSA Input'!J4713=\"\",\"\",IF(OR('TSA Input'!J4713=\"Yes\",'TSA Input'!J4713=\"Contingent\"),'TSA Input'!I4713,\"\"))","v":""},{"$f":"IF('TSA Input'!J4713=\"\",\"\",IF(OR('TSA Input'!J4713=\"Yes\",'TSA Input'!J4713=\"Contingent\"),'TSA Input'!C4713,\"\"))","v":""},{"$f":"IF('TSA Input'!J4713=\"\",\"\",IF(OR('TSA Input'!J4713=\"Yes\",'TSA Input'!J4713=\"Contingent\"),'TSA Input'!D4713,\"\"))","v":""},{"$f":"IF('TSA Input'!J4713=\"\",\"\",IF(OR('TSA Input'!J4713=\"Yes\",'TSA Input'!J4713=\"Contingent\"),'TSA Input'!G4713,\"\"))","v":""},{"$f":"IF('TSA Input'!J4713=\"\",\"\",IF(OR('TSA Input'!J4713=\"Yes\",'TSA Input'!J4713=\"Contingent\"),'TSA Input'!F4713,\"\"))","v":""},"",{"$f":"IF('TSA Input'!J4713=\"\",\"\",IF(OR('TSA Input'!J4713=\"Yes\",'TSA Input'!J4713=\"Contingent\"),'TSA Input'!D4713,\"\"))","v":""},{"$f":"IF('TSA Input'!J4713=\"\",\"\",IF(OR('TSA Input'!J4713=\"Yes\",'TSA Input'!J4713=\"Contingent\"),'TSA Input'!G4713,\"\"))","v":""},{"$f":"IF('TSA Input'!J4713=\"\",\"\",IF(OR('TSA Input'!J4713=\"Yes\",'TSA Input'!J4713=\"Contingent\"),'TSA Input'!F4713,\"\"))","v":""},"","Required","Required"]
["",null,{"$f":"IF('TSA Input'!J4714=\"\",\"\",IF(OR('TSA Input'!J4714=\"Yes\",'TSA Input'!J4714=\"Contingent\"),'TSA Input'!B4714,\"Ineligible\"))","v":""},{"$f":"IF('TSA Input'!J4714=\"\",\"\",IF(OR('TSA Input'!J4714=\"Yes\",'TSA Input'!J4714=\"Contingent\"),'TSA Input'!I4714,\"\"))","v":""},{"$f":"IF('TSA Input'!J4714=\"\",\"\",IF(OR('TSA Input'!J4714=\"Yes\",'TSA Input'!J4714=\"Contingent\"),'TSA Input'!C4714,\"\"))","v":""},{"$f":"IF('TSA Input'!J4714=\"\",\"\",IF(OR('TSA Input'!J4714=\"Yes\",'TSA Input'!J4714=\"Contingent\"),'TSA Input'!D4714,\"\"))","v":""},{"$f":"IF('TSA Input'!J4714=\"\",\"\",IF(OR('TSA Input'!J4714=\"Yes\",'TSA Input'!J4714=\"Contingent\"),'TSA Input'!G4714,\"\"))","v":""},{"$f":"IF('TSA Input'!J4714=\"\",\"\",IF(OR('TSA Input'!J4714=\"Yes\",'TSA Input'!J4714=\"Contingent\"),'TSA Input'!F4714,\"\"))","v":""},"",{"$f":"IF('TSA Input'!J4714=\"\",\"\",IF(OR('TSA Input'!J4714=\"Yes\",'TSA Input'!J4714=\"Contingent\"),'TSA Input'!D4714,\"\"))","v":""},{"$f":"IF('TSA Input'!J4714=\"\",\"\",IF(OR('TSA Input'!J4714=\"Yes\",'TSA Input'!J4714=\"Contingent\"),'TSA Input'!G4714,\"\"))","v":""},{"$f":"IF('TSA Input'!J4714=\"\",\"\",IF(OR('TSA Input'!J4714=\"Yes\",'TSA Input'!J4714=\"Contingent\"),'TSA Input'!F4714,\"\"))","v":""},"","Required","Required"]
["",null,{"$f":"IF('TSA Input'!J4715=\"\",\"\",IF(OR('TSA Input'!J4715=\"Yes\",'TSA Input'!J4715=\"Contingent\"),'TSA Input'!B4715,\"Ineligible\"))","v":""},{"$f":"IF('TSA Input'!J4715=\"\",\"\",IF(OR('TSA Input'!J4715=\"Yes\",'TSA Input'!J4715=\"Contingent\"),'TSA Input'!I4715,\"\"))","v":""},{"$f":"IF('TSA Input'!J4715=\"\",\"\",IF(OR('TSA Input'!J4715=\"Yes\",'TSA Input'!J4715=\"Contingent\"),'TSA Input'!C4715,\"\"))","v":""},{"$f":"IF('TSA Input'!J4715=\"\",\"\",IF(OR('TSA Input'!J4715=\"Yes\",'TSA Input'!J4715=\"Contingent\"),'TSA Input'!D4715,\"\"))","v":""},{"$f":"IF('TSA Input'!J4715=\"\",\"\",IF(OR('TSA Input'!J4715=\"Yes\",'TSA Input'!J4715=\"Contingent\"),'TSA Input'!G4715,\"\"))","v":""},{"$f":"IF('TSA Input'!J4715=\"\",\"\",IF(OR('TSA Input'!J4715=\"Yes\",'TSA Input'!J4715=\"Contingent\"),'TSA Input'!F4715,\"\"))","v":""},"",{"$f":"IF('TSA Input'!J4715=\"\",\"\",IF(OR('TSA Input'!J4715=\"Yes\",'TSA Input'!J4715=\"Contingent\"),'TSA Input'!D4715,\"\"))","v":""},{"$f":"IF('TSA Input'!J4715=\"\",\"\",IF(OR('TSA Input'!J4715=\"Yes\",'TSA Input'!J4715=\"Contingent\"),'TSA Input'!G4715,\"\"))","v":""},{"$f":"IF('TSA Input'!J4715=\"\",\"\",IF(OR('TSA Input'!J4715=\"Yes\",'TSA Input'!J4715=\"Contingent\"),'TSA Input'!F4715,\"\"))","v":""},"","Required","Required"]
["",null,{"$f":"IF('TSA Input'!J4716=\"\",\"\",IF(OR('TSA Input'!J4716=\"Yes\",'TSA Input'!J4716=\"Contingent\"),'TSA Input'!B4716,\"Ineligible\"))","v":""},{"$f":"IF('TSA Input'!J4716=\"\",\"\",IF(OR('TSA Input'!J4716=\"Yes\",'TSA Input'!J4716=\"Contingent\"),'TSA Input'!I4716,\"\"))","v":""},{"$f":"IF('TSA Input'!J4716=\"\",\"\",IF(OR('TSA Input'!J4716=\"Yes\",'TSA Input'!J4716=\"Contingent\"),'TSA Input'!C4716,\"\"))","v":""},{"$f":"IF('TSA Input'!J4716=\"\",\"\",IF(OR('TSA Input'!J4716=\"Yes\",'TSA Input'!J4716=\"Contingent\"),'TSA Input'!D4716,\"\"))","v":""},{"$f":"IF('TSA Input'!J4716=\"\",\"\",IF(OR('TSA Input'!J4716=\"Yes\",'TSA Input'!J4716=\"Contingent\"),'TSA Input'!G4716,\"\"))","v":""},{"$f":"IF('TSA Input'!J4716=\"\",\"\",IF(OR('TSA Input'!J4716=\"Yes\",'TSA Input'!J4716=\"Contingent\"),'TSA Input'!F4716,\"\"))","v":""},"",{"$f":"IF('TSA Input'!J4716=\"\",\"\",IF(OR('TSA Input'!J4716=\"Yes\",'TSA Input'!J4716=\"Contingent\"),'TSA Input'!D4716,\"\"))","v":""},{"$f":"IF('TSA Input'!J4716=\"\",\"\",IF(OR('TSA Input'!J4716=\"Yes\",'TSA Input'!J4716=\"Contingent\"),'TSA Input'!G4716,\"\"))","v":""},{"$f":"IF('TSA Input'!J4716=\"\",\"\",IF(OR('TSA Input'!J4716=\"Yes\",'TSA Input'!J4716=\"Contingent\"),'TSA Input'!F4716,\"\"))","v":""},"","Required","Required"]
["",null,{"$f":"IF('TSA Input'!J4717=\"\",\"\",IF(OR('TSA Input'!J4717=\"Yes\",'TSA Input'!J4717=\"Contingent\"),'TSA Input'!B4717,\"Ineligible\"))","v":""},{"$f":"IF('TSA Input'!J4717=\"\",\"\",IF(OR('TSA Input'!J4717=\"Yes\",'TSA Input'!J4717=\"Contingent\"),'TSA Input'!I4717,\"\"))","v":""},{"$f":"IF('TSA Input'!J4717=\"\",\"\",IF(OR('TSA Input'!J4717=\"Yes\",'TSA Input'!J4717=\"Contingent\"),'TSA Input'!C4717,\"\"))","v":""},{"$f":"IF('TSA Input'!J4717=\"\",\"\",IF(OR('TSA Input'!J4717=\"Yes\",'TSA Input'!J4717=\"Contingent\"),'TSA Input'!D4717,\"\"))","v":""},{"$f":"IF('TSA Input'!J4717=\"\",\"\",IF(OR('TSA Input'!J4717=\"Yes\",'TSA Input'!J4717=\"Contingent\"),'TSA Input'!G4717,\"\"))","v":""},{"$f":"IF('TSA Input'!J4717=\"\",\"\",IF(OR('TSA Input'!J4717=\"Yes\",'TSA Input'!J4717=\"Contingent\"),'TSA Input'!F4717,\"\"))","v":""},"",{"$f":"IF('TSA Input'!J4717=\"\",\"\",IF(OR('TSA Input'!J4717=\"Yes\",'TSA Input'!J4717=\"Contingent\"),'TSA Input'!D4717,\"\"))","v":""},{"$f":"IF('TSA Input'!J4717=\"\",\"\",IF(OR('TSA Input'!J4717=\"Yes\",'TSA Input'!J4717=\"Contingent\"),'TSA Input'!G4717,\"\"))","v":""},{"$f":"IF('TSA Input'!J4717=\"\",\"\",IF(OR('TSA Input'!J4717=\"Yes\",'TSA Input'!J4717=\"Contingent\"),'TSA Input'!F4717,\"\"))","v":""},"","Required","Required"]
["",null,{"$f":"IF('TSA Input'!J4718=\"\",\"\",IF(OR('TSA Input'!J4718=\"Yes\",'TSA Input'!J4718=\"Contingent\"),'TSA Input'!B4718,\"Ineligible\"))","v":""},{"$f":"IF('TSA Input'!J4718=\"\",\"\",IF(OR('TSA Input'!J4718=\"Yes\",'TSA Input'!J4718=\"Contingent\"),'TSA Input'!I4718,\"\"))","v":""},{"$f":"IF('TSA Input'!J4718=\"\",\"\",IF(OR('TSA Input'!J4718=\"Yes\",'TSA Input'!J4718=\"Contingent\"),'TSA Input'!C4718,\"\"))","v":""},{"$f":"IF('TSA Input'!J4718=\"\",\"\",IF(OR('TSA Input'!J4718=\"Yes\",'TSA Input'!J4718=\"Contingent\"),'TSA Input'!D4718,\"\"))","v":""},{"$f":"IF('TSA Input'!J4718=\"\",\"\",IF(OR('TSA Input'!J4718=\"Yes\",'TSA Input'!J4718=\"Contingent\"),'TSA Input'!G4718,\"\"))","v":""},{"$f":"IF('TSA Input'!J4718=\"\",\"\",IF(OR('TSA Input'!J4718=\"Yes\",'TSA Input'!J4718=\"Contingent\"),'TSA Input'!F4718,\"\"))","v":""},"",{"$f":"IF('TSA Input'!J4718=\"\",\"\",IF(OR('TSA Input'!J4718=\"Yes\",'TSA Input'!J4718=\"Contingent\"),'TSA Input'!D4718,\"\"))","v":""},{"$f":"IF('TSA Input'!J4718=\"\",\"\",IF(OR('TSA Input'!J4718=\"Yes\",'TSA Input'!J4718=\"Contingent\"),'TSA Input'!G4718,\"\"))","v":""},{"$f":"IF('TSA Input'!J4718=\"\",\"\",IF(OR('TSA Input'!J4718=\"Yes\",'TSA Input'!J4718=\"Contingent\"),'TSA Input'!F4718,\"\"))","v":""},"","Required","Required"]
["",null,{"$f":"IF('TSA Input'!J4719=\"\",\"\",IF(OR('TSA Input'!J4719=\"Yes\",'TSA Input'!J4719=\"Contingent\"),'TSA Input'!B4719,\"Ineligible\"))","v":""},{"$f":"IF('TSA Input'!J4719=\"\",\"\",IF(OR('TSA Input'!J4719=\"Yes\",'TSA Input'!J4719=\"Contingent\"),'TSA Input'!I4719,\"\"))","v":""},{"$f":"IF('TSA Input'!J4719=\"\",\"\",IF(OR('TSA Input'!J4719=\"Yes\",'TSA Input'!J4719=\"Contingent\"),'TSA Input'!C4719,\"\"))","v":""},{"$f":"IF('TSA Input'!J4719=\"\",\"\",IF(OR('TSA Input'!J4719=\"Yes\",'TSA Input'!J4719=\"Contingent\"),'TSA Input'!D4719,\"\"))","v":""},{"$f":"IF('TSA Input'!J4719=\"\",\"\",IF(OR('TSA Input'!J4719=\"Yes\",'TSA Input'!J4719=\"Contingent\"),'TSA Input'!G4719,\"\"))","v":""},{"$f":"IF('TSA Input'!J4719=\"\",\"\",IF(OR('TSA Input'!J4719=\"Yes\",'TSA Input'!J4719=\"Contingent\"),'TSA Input'!F4719,\"\"))","v":""},"",{"$f":"IF('TSA Input'!J4719=\"\",\"\",IF(OR('TSA Input'!J4719=\"Yes\",'TSA Input'!J4719=\"Contingent\"),'TSA Input'!D4719,\"\"))","v":""},{"$f":"IF('TSA Input'!J4719=\"\",\"\",IF(OR('TSA Input'!J4719=\"Yes\",'TSA Input'!J4719=\"Contingent\"),'TSA Input'!G4719,\"\"))","v":""},{"$f":"IF('TSA Input'!J4719=\"\",\"\",IF(OR('TSA Input'!J4719=\"Yes\",'TSA Input'!J4719=\"Contingent\"),'TSA Input'!F4719,\"\"))","v":""},"","Required","Required"]
["",null,{"$f":"IF('TSA Input'!J4720=\"\",\"\",IF(OR('TSA Input'!J4720=\"Yes\",'TSA Input'!J4720=\"Contingent\"),'TSA Input'!B4720,\"Ineligible\"))","v":""},{"$f":"IF('TSA Input'!J4720=\"\",\"\",IF(OR('TSA Input'!J4720=\"Yes\",'TSA Input'!J4720=\"Contingent\"),'TSA Input'!I4720,\"\"))","v":""},{"$f":"IF('TSA Input'!J4720=\"\",\"\",IF(OR('TSA Input'!J4720=\"Yes\",'TSA Input'!J4720=\"Contingent\"),'TSA Input'!C4720,\"\"))","v":""},{"$f":"IF('TSA Input'!J4720=\"\",\"\",IF(OR('TSA Input'!J4720=\"Yes\",'TSA Input'!J4720=\"Contingent\"),'TSA Input'!D4720,\"\"))","v":""},{"$f":"IF('TSA Input'!J4720=\"\",\"\",IF(OR('TSA Input'!J4720=\"Yes\",'TSA Input'!J4720=\"Contingent\"),'TSA Input'!G4720,\"\"))","v":""},{"$f":"IF('TSA Input'!J4720=\"\",\"\",IF(OR('TSA Input'!J4720=\"Yes\",'TSA Input'!J4720=\"Contingent\"),'TSA Input'!F4720,\"\"))","v":""},"",{"$f":"IF('TSA Input'!J4720=\"\",\"\",IF(OR('TSA Input'!J4720=\"Yes\",'TSA Input'!J4720=\"Contingent\"),'TSA Input'!D4720,\"\"))","v":""},{"$f":"IF('TSA Input'!J4720=\"\",\"\",IF(OR('TSA Input'!J4720=\"Yes\",'TSA Input'!J4720=\"Contingent\"),'TSA Input'!G4720,\"\"))","v":""},{"$f":"IF('TSA Input'!J4720=\"\",\"\",IF(OR('TSA Input'!J4720=\"Yes\",'TSA Input'!J4720=\"Contingent\"),'TSA Input'!F4720,\"\"))","v":""},"","Required","Required"]
["",null,{"$f":"IF('TSA Input'!J4721=\"\",\"\",IF(OR('TSA Input'!J4721=\"Yes\",'TSA Input'!J4721=\"Contingent\"),'TSA Input'!B4721,\"Ineligible\"))","v":""},{"$f":"IF('TSA Input'!J4721=\"\",\"\",IF(OR('TSA Input'!J4721=\"Yes\",'TSA Input'!J4721=\"Contingent\"),'TSA Input'!I4721,\"\"))","v":""},{"$f":"IF('TSA Input'!J4721=\"\",\"\",IF(OR('TSA Input'!J4721=\"Yes\",'TSA Input'!J4721=\"Contingent\"),'TSA Input'!C4721,\"\"))","v":""},{"$f":"IF('TSA Input'!J4721=\"\",\"\",IF(OR('TSA Input'!J4721=\"Yes\",'TSA Input'!J4721=\"Contingent\"),'TSA Input'!D4721,\"\"))","v":""},{"$f":"IF('TSA Input'!J4721=\"\",\"\",IF(OR('TSA Input'!J4721=\"Yes\",'TSA Input'!J4721=\"Contingent\"),'TSA Input'!G4721,\"\"))","v":""},{"$f":"IF('TSA Input'!J4721=\"\",\"\",IF(OR('TSA Input'!J4721=\"Yes\",'TSA Input'!J4721=\"Contingent\"),'TSA Input'!F4721,\"\"))","v":""},"",{"$f":"IF('TSA Input'!J4721=\"\",\"\",IF(OR('TSA Input'!J4721=\"Yes\",'TSA Input'!J4721=\"Contingent\"),'TSA Input'!D4721,\"\"))","v":""},{"$f":"IF('TSA Input'!J4721=\"\",\"\",IF(OR('TSA Input'!J4721=\"Yes\",'TSA Input'!J4721=\"Contingent\"),'TSA Input'!G4721,\"\"))","v":""},{"$f":"IF('TSA Input'!J4721=\"\",\"\",IF(OR('TSA Input'!J4721=\"Yes\",'TSA Input'!J4721=\"Contingent\"),'TSA Input'!F4721,\"\"))","v":""},"","Required","Required"]
["",null,{"$f":"IF('TSA Input'!J4722=\"\",\"\",IF(OR('TSA Input'!J4722=\"Yes\",'TSA Input'!J4722=\"Contingent\"),'TSA Input'!B4722,\"Ineligible\"))","v":""},{"$f":"IF('TSA Input'!J4722=\"\",\"\",IF(OR('TSA Input'!J4722=\"Yes\",'TSA Input'!J4722=\"Contingent\"),'TSA Input'!I4722,\"\"))","v":""},{"$f":"IF('TSA Input'!J4722=\"\",\"\",IF(OR('TSA Input'!J4722=\"Yes\",'TSA Input'!J4722=\"Contingent\"),'TSA Input'!C4722,\"\"))","v":""},{"$f":"IF('TSA Input'!J4722=\"\",\"\",IF(OR('TSA Input'!J4722=\"Yes\",'TSA Input'!J4722=\"Contingent\"),'TSA Input'!D4722,\"\"))","v":""},{"$f":"IF('TSA Input'!J4722=\"\",\"\",IF(OR('TSA Input'!J4722=\"Yes\",'TSA Input'!J4722=\"Contingent\"),'TSA Input'!G4722,\"\"))","v":""},{"$f":"IF('TSA Input'!J4722=\"\",\"\",IF(OR('TSA Input'!J4722=\"Yes\",'TSA Input'!J4722=\"Contingent\"),'TSA Input'!F4722,\"\"))","v":""},"",{"$f":"IF('TSA Input'!J4722=\"\",\"\",IF(OR('TSA Input'!J4722=\"Yes\",'TSA Input'!J4722=\"Contingent\"),'TSA Input'!D4722,\"\"))","v":""},{"$f":"IF('TSA Input'!J4722=\"\",\"\",IF(OR('TSA Input'!J4722=\"Yes\",'TSA Input'!J4722=\"Contingent\"),'TSA Input'!G4722,\"\"))","v":""},{"$f":"IF('TSA Input'!J4722=\"\",\"\",IF(OR('TSA Input'!J4722=\"Yes\",'TSA Input'!J4722=\"Contingent\"),'TSA Input'!F4722,\"\"))","v":""},"","Required","Required"]
["",null,{"$f":"IF('TSA Input'!J4723=\"\",\"\",IF(OR('TSA Input'!J4723=\"Yes\",'TSA Input'!J4723=\"Contingent\"),'TSA Input'!B4723,\"Ineligible\"))","v":""},{"$f":"IF('TSA Input'!J4723=\"\",\"\",IF(OR('TSA Input'!J4723=\"Yes\",'TSA Input'!J4723=\"Contingent\"),'TSA Input'!I4723,\"\"))","v":""},{"$f":"IF('TSA Input'!J4723=\"\",\"\",IF(OR('TSA Input'!J4723=\"Yes\",'TSA Input'!J4723=\"Contingent\"),'TSA Input'!C4723,\"\"))","v":""},{"$f":"IF('TSA Input'!J4723=\"\",\"\",IF(OR('TSA Input'!J4723=\"Yes\",'TSA Input'!J4723=\"Contingent\"),'TSA Input'!D4723,\"\"))","v":""},{"$f":"IF('TSA Input'!J4723=\"\",\"\",IF(OR('TSA Input'!J4723=\"Yes\",'TSA Input'!J4723=\"Contingent\"),'TSA Input'!G4723,\"\"))","v":""},{"$f":"IF('TSA Input'!J4723=\"\",\"\",IF(OR('TSA Input'!J4723=\"Yes\",'TSA Input'!J4723=\"Contingent\"),'TSA Input'!F4723,\"\"))","v":""},"",{"$f":"IF('TSA Input'!J4723=\"\",\"\",IF(OR('TSA Input'!J4723=\"Yes\",'TSA Input'!J4723=\"Contingent\"),'TSA Input'!D4723,\"\"))","v":""},{"$f":"IF('TSA Input'!J4723=\"\",\"\",IF(OR('TSA Input'!J4723=\"Yes\",'TSA Input'!J4723=\"Contingent\"),'TSA Input'!G4723,\"\"))","v":""},{"$f":"IF('TSA Input'!J4723=\"\",\"\",IF(OR('TSA Input'!J4723=\"Yes\",'TSA Input'!J4723=\"Contingent\"),'TSA Input'!F4723,\"\"))","v":""},"","Required","Required"]
["",null,{"$f":"IF('TSA Input'!J4724=\"\",\"\",IF(OR('TSA Input'!J4724=\"Yes\",'TSA Input'!J4724=\"Contingent\"),'TSA Input'!B4724,\"Ineligible\"))","v":""},{"$f":"IF('TSA Input'!J4724=\"\",\"\",IF(OR('TSA Input'!J4724=\"Yes\",'TSA Input'!J4724=\"Contingent\"),'TSA Input'!I4724,\"\"))","v":""},{"$f":"IF('TSA Input'!J4724=\"\",\"\",IF(OR('TSA Input'!J4724=\"Yes\",'TSA Input'!J4724=\"Contingent\"),'TSA Input'!C4724,\"\"))","v":""},{"$f":"IF('TSA Input'!J4724=\"\",\"\",IF(OR('TSA Input'!J4724=\"Yes\",'TSA Input'!J4724=\"Contingent\"),'TSA Input'!D4724,\"\"))","v":""},{"$f":"IF('TSA Input'!J4724=\"\",\"\",IF(OR('TSA Input'!J4724=\"Yes\",'TSA Input'!J4724=\"Contingent\"),'TSA Input'!G4724,\"\"))","v":""},{"$f":"IF('TSA Input'!J4724=\"\",\"\",IF(OR('TSA Input'!J4724=\"Yes\",'TSA Input'!J4724=\"Contingent\"),'TSA Input'!F4724,\"\"))","v":""},"",{"$f":"IF('TSA Input'!J4724=\"\",\"\",IF(OR('TSA Input'!J4724=\"Yes\",'TSA Input'!J4724=\"Contingent\"),'TSA Input'!D4724,\"\"))","v":""},{"$f":"IF('TSA Input'!J4724=\"\",\"\",IF(OR('TSA Input'!J4724=\"Yes\",'TSA Input'!J4724=\"Contingent\"),'TSA Input'!G4724,\"\"))","v":""},{"$f":"IF('TSA Input'!J4724=\"\",\"\",IF(OR('TSA Input'!J4724=\"Yes\",'TSA Input'!J4724=\"Contingent\"),'TSA Input'!F4724,\"\"))","v":""},"","Required","Required"]
["",null,{"$f":"IF('TSA Input'!J4725=\"\",\"\",IF(OR('TSA Input'!J4725=\"Yes\",'TSA Input'!J4725=\"Contingent\"),'TSA Input'!B4725,\"Ineligible\"))","v":""},{"$f":"IF('TSA Input'!J4725=\"\",\"\",IF(OR('TSA Input'!J4725=\"Yes\",'TSA Input'!J4725=\"Contingent\"),'TSA Input'!I4725,\"\"))","v":""},{"$f":"IF('TSA Input'!J4725=\"\",\"\",IF(OR('TSA Input'!J4725=\"Yes\",'TSA Input'!J4725=\"Contingent\"),'TSA Input'!C4725,\"\"))","v":""},{"$f":"IF('TSA Input'!J4725=\"\",\"\",IF(OR('TSA Input'!J4725=\"Yes\",'TSA Input'!J4725=\"Contingent\"),'TSA Input'!D4725,\"\"))","v":""},{"$f":"IF('TSA Input'!J4725=\"\",\"\",IF(OR('TSA Input'!J4725=\"Yes\",'TSA Input'!J4725=\"Contingent\"),'TSA Input'!G4725,\"\"))","v":""},{"$f":"IF('TSA Input'!J4725=\"\",\"\",IF(OR('TSA Input'!J4725=\"Yes\",'TSA Input'!J4725=\"Contingent\"),'TSA Input'!F4725,\"\"))","v":""},"",{"$f":"IF('TSA Input'!J4725=\"\",\"\",IF(OR('TSA Input'!J4725=\"Yes\",'TSA Input'!J4725=\"Contingent\"),'TSA Input'!D4725,\"\"))","v":""},{"$f":"IF('TSA Input'!J4725=\"\",\"\",IF(OR('TSA Input'!J4725=\"Yes\",'TSA Input'!J4725=\"Contingent\"),'TSA Input'!G4725,\"\"))","v":""},{"$f":"IF('TSA Input'!J4725=\"\",\"\",IF(OR('TSA Input'!J4725=\"Yes\",'TSA Input'!J4725=\"Contingent\"),'TSA Input'!F4725,\"\"))","v":""},"","Required","Required"]
["",null,{"$f":"IF('TSA Input'!J4726=\"\",\"\",IF(OR('TSA Input'!J4726=\"Yes\",'TSA Input'!J4726=\"Contingent\"),'TSA Input'!B4726,\"Ineligible\"))","v":""},{"$f":"IF('TSA Input'!J4726=\"\",\"\",IF(OR('TSA Input'!J4726=\"Yes\",'TSA Input'!J4726=\"Contingent\"),'TSA Input'!I4726,\"\"))","v":""},{"$f":"IF('TSA Input'!J4726=\"\",\"\",IF(OR('TSA Input'!J4726=\"Yes\",'TSA Input'!J4726=\"Contingent\"),'TSA Input'!C4726,\"\"))","v":""},{"$f":"IF('TSA Input'!J4726=\"\",\"\",IF(OR('TSA Input'!J4726=\"Yes\",'TSA Input'!J4726=\"Contingent\"),'TSA Input'!D4726,\"\"))","v":""},{"$f":"IF('TSA Input'!J4726=\"\",\"\",IF(OR('TSA Input'!J4726=\"Yes\",'TSA Input'!J4726=\"Contingent\"),'TSA Input'!G4726,\"\"))","v":""},{"$f":"IF('TSA Input'!J4726=\"\",\"\",IF(OR('TSA Input'!J4726=\"Yes\",'TSA Input'!J4726=\"Contingent\"),'TSA Input'!F4726,\"\"))","v":""},"",{"$f":"IF('TSA Input'!J4726=\"\",\"\",IF(OR('TSA Input'!J4726=\"Yes\",'TSA Input'!J4726=\"Contingent\"),'TSA Input'!D4726,\"\"))","v":""},{"$f":"IF('TSA Input'!J4726=\"\",\"\",IF(OR('TSA Input'!J4726=\"Yes\",'TSA Input'!J4726=\"Contingent\"),'TSA Input'!G4726,\"\"))","v":""},{"$f":"IF('TSA Input'!J4726=\"\",\"\",IF(OR('TSA Input'!J4726=\"Yes\",'TSA Input'!J4726=\"Contingent\"),'TSA Input'!F4726,\"\"))","v":""},"","Required","Required"]
["",null,{"$f":"IF('TSA Input'!J4727=\"\",\"\",IF(OR('TSA Input'!J4727=\"Yes\",'TSA Input'!J4727=\"Contingent\"),'TSA Input'!B4727,\"Ineligible\"))","v":""},{"$f":"IF('TSA Input'!J4727=\"\",\"\",IF(OR('TSA Input'!J4727=\"Yes\",'TSA Input'!J4727=\"Contingent\"),'TSA Input'!I4727,\"\"))","v":""},{"$f":"IF('TSA Input'!J4727=\"\",\"\",IF(OR('TSA Input'!J4727=\"Yes\",'TSA Input'!J4727=\"Contingent\"),'TSA Input'!C4727,\"\"))","v":""},{"$f":"IF('TSA Input'!J4727=\"\",\"\",IF(OR('TSA Input'!J4727=\"Yes\",'TSA Input'!J4727=\"Contingent\"),'TSA Input'!D4727,\"\"))","v":""},{"$f":"IF('TSA Input'!J4727=\"\",\"\",IF(OR('TSA Input'!J4727=\"Yes\",'TSA Input'!J4727=\"Contingent\"),'TSA Input'!G4727,\"\"))","v":""},{"$f":"IF('TSA Input'!J4727=\"\",\"\",IF(OR('TSA Input'!J4727=\"Yes\",'TSA Input'!J4727=\"Contingent\"),'TSA Input'!F4727,\"\"))","v":""},"",{"$f":"IF('TSA Input'!J4727=\"\",\"\",IF(OR('TSA Input'!J4727=\"Yes\",'TSA Input'!J4727=\"Contingent\"),'TSA Input'!D4727,\"\"))","v":""},{"$f":"IF('TSA Input'!J4727=\"\",\"\",IF(OR('TSA Input'!J4727=\"Yes\",'TSA Input'!J4727=\"Contingent\"),'TSA Input'!G4727,\"\"))","v":""},{"$f":"IF('TSA Input'!J4727=\"\",\"\",IF(OR('TSA Input'!J4727=\"Yes\",'TSA Input'!J4727=\"Contingent\"),'TSA Input'!F4727,\"\"))","v":""},"","Required","Required"]
["",null,{"$f":"IF('TSA Input'!J4728=\"\",\"\",IF(OR('TSA Input'!J4728=\"Yes\",'TSA Input'!J4728=\"Contingent\"),'TSA Input'!B4728,\"Ineligible\"))","v":""},{"$f":"IF('TSA Input'!J4728=\"\",\"\",IF(OR('TSA Input'!J4728=\"Yes\",'TSA Input'!J4728=\"Contingent\"),'TSA Input'!I4728,\"\"))","v":""},{"$f":"IF('TSA Input'!J4728=\"\",\"\",IF(OR('TSA Input'!J4728=\"Yes\",'TSA Input'!J4728=\"Contingent\"),'TSA Input'!C4728,\"\"))","v":""},{"$f":"IF('TSA Input'!J4728=\"\",\"\",IF(OR('TSA Input'!J4728=\"Yes\",'TSA Input'!J4728=\"Contingent\"),'TSA Input'!D4728,\"\"))","v":""},{"$f":"IF('TSA Input'!J4728=\"\",\"\",IF(OR('TSA Input'!J4728=\"Yes\",'TSA Input'!J4728=\"Contingent\"),'TSA Input'!G4728,\"\"))","v":""},{"$f":"IF('TSA Input'!J4728=\"\",\"\",IF(OR('TSA Input'!J4728=\"Yes\",'TSA Input'!J4728=\"Contingent\"),'TSA Input'!F4728,\"\"))","v":""},"",{"$f":"IF('TSA Input'!J4728=\"\",\"\",IF(OR('TSA Input'!J4728=\"Yes\",'TSA Input'!J4728=\"Contingent\"),'TSA Input'!D4728,\"\"))","v":""},{"$f":"IF('TSA Input'!J4728=\"\",\"\",IF(OR('TSA Input'!J4728=\"Yes\",'TSA Input'!J4728=\"Contingent\"),'TSA Input'!G4728,\"\"))","v":""},{"$f":"IF('TSA Input'!J4728=\"\",\"\",IF(OR('TSA Input'!J4728=\"Yes\",'TSA Input'!J4728=\"Contingent\"),'TSA Input'!F4728,\"\"))","v":""},"","Required","Required"]
["",null,{"$f":"IF('TSA Input'!J4729=\"\",\"\",IF(OR('TSA Input'!J4729=\"Yes\",'TSA Input'!J4729=\"Contingent\"),'TSA Input'!B4729,\"Ineligible\"))","v":""},{"$f":"IF('TSA Input'!J4729=\"\",\"\",IF(OR('TSA Input'!J4729=\"Yes\",'TSA Input'!J4729=\"Contingent\"),'TSA Input'!I4729,\"\"))","v":""},{"$f":"IF('TSA Input'!J4729=\"\",\"\",IF(OR('TSA Input'!J4729=\"Yes\",'TSA Input'!J4729=\"Contingent\"),'TSA Input'!C4729,\"\"))","v":""},{"$f":"IF('TSA Input'!J4729=\"\",\"\",IF(OR('TSA Input'!J4729=\"Yes\",'TSA Input'!J4729=\"Contingent\"),'TSA Input'!D4729,\"\"))","v":""},{"$f":"IF('TSA Input'!J4729=\"\",\"\",IF(OR('TSA Input'!J4729=\"Yes\",'TSA Input'!J4729=\"Contingent\"),'TSA Input'!G4729,\"\"))","v":""},{"$f":"IF('TSA Input'!J4729=\"\",\"\",IF(OR('TSA Input'!J4729=\"Yes\",'TSA Input'!J4729=\"Contingent\"),'TSA Input'!F4729,\"\"))","v":""},"",{"$f":"IF('TSA Input'!J4729=\"\",\"\",IF(OR('TSA Input'!J4729=\"Yes\",'TSA Input'!J4729=\"Contingent\"),'TSA Input'!D4729,\"\"))","v":""},{"$f":"IF('TSA Input'!J4729=\"\",\"\",IF(OR('TSA Input'!J4729=\"Yes\",'TSA Input'!J4729=\"Contingent\"),'TSA Input'!G4729,\"\"))","v":""},{"$f":"IF('TSA Input'!J4729=\"\",\"\",IF(OR('TSA Input'!J4729=\"Yes\",'TSA Input'!J4729=\"Contingent\"),'TSA Input'!F4729,\"\"))","v":""},"","Required","Required"]
["",null,{"$f":"IF('TSA Input'!J4730=\"\",\"\",IF(OR('TSA Input'!J4730=\"Yes\",'TSA Input'!J4730=\"Contingent\"),'TSA Input'!B4730,\"Ineligible\"))","v":""},{"$f":"IF('TSA Input'!J4730=\"\",\"\",IF(OR('TSA Input'!J4730=\"Yes\",'TSA Input'!J4730=\"Contingent\"),'TSA Input'!I4730,\"\"))","v":""},{"$f":"IF('TSA Input'!J4730=\"\",\"\",IF(OR('TSA Input'!J4730=\"Yes\",'TSA Input'!J4730=\"Contingent\"),'TSA Input'!C4730,\"\"))","v":""},{"$f":"IF('TSA Input'!J4730=\"\",\"\",IF(OR('TSA Input'!J4730=\"Yes\",'TSA Input'!J4730=\"Contingent\"),'TSA Input'!D4730,\"\"))","v":""},{"$f":"IF('TSA Input'!J4730=\"\",\"\",IF(OR('TSA Input'!J4730=\"Yes\",'TSA Input'!J4730=\"Contingent\"),'TSA Input'!G4730,\"\"))","v":""},{"$f":"IF('TSA Input'!J4730=\"\",\"\",IF(OR('TSA Input'!J4730=\"Yes\",'TSA Input'!J4730=\"Contingent\"),'TSA Input'!F4730,\"\"))","v":""},"",{"$f":"IF('TSA Input'!J4730=\"\",\"\",IF(OR('TSA Input'!J4730=\"Yes\",'TSA Input'!J4730=\"Contingent\"),'TSA Input'!D4730,\"\"))","v":""},{"$f":"IF('TSA Input'!J4730=\"\",\"\",IF(OR('TSA Input'!J4730=\"Yes\",'TSA Input'!J4730=\"Contingent\"),'TSA Input'!G4730,\"\"))","v":""},{"$f":"IF('TSA Input'!J4730=\"\",\"\",IF(OR('TSA Input'!J4730=\"Yes\",'TSA Input'!J4730=\"Contingent\"),'TSA Input'!F4730,\"\"))","v":""},"","Required","Required"]
["",null,{"$f":"IF('TSA Input'!J4731=\"\",\"\",IF(OR('TSA Input'!J4731=\"Yes\",'TSA Input'!J4731=\"Contingent\"),'TSA Input'!B4731,\"Ineligible\"))","v":""},{"$f":"IF('TSA Input'!J4731=\"\",\"\",IF(OR('TSA Input'!J4731=\"Yes\",'TSA Input'!J4731=\"Contingent\"),'TSA Input'!I4731,\"\"))","v":""},{"$f":"IF('TSA Input'!J4731=\"\",\"\",IF(OR('TSA Input'!J4731=\"Yes\",'TSA Input'!J4731=\"Contingent\"),'TSA Input'!C4731,\"\"))","v":""},{"$f":"IF('TSA Input'!J4731=\"\",\"\",IF(OR('TSA Input'!J4731=\"Yes\",'TSA Input'!J4731=\"Contingent\"),'TSA Input'!D4731,\"\"))","v":""},{"$f":"IF('TSA Input'!J4731=\"\",\"\",IF(OR('TSA Input'!J4731=\"Yes\",'TSA Input'!J4731=\"Contingent\"),'TSA Input'!G4731,\"\"))","v":""},{"$f":"IF('TSA Input'!J4731=\"\",\"\",IF(OR('TSA Input'!J4731=\"Yes\",'TSA Input'!J4731=\"Contingent\"),'TSA Input'!F4731,\"\"))","v":""},"",{"$f":"IF('TSA Input'!J4731=\"\",\"\",IF(OR('TSA Input'!J4731=\"Yes\",'TSA Input'!J4731=\"Contingent\"),'TSA Input'!D4731,\"\"))","v":""},{"$f":"IF('TSA Input'!J4731=\"\",\"\",IF(OR('TSA Input'!J4731=\"Yes\",'TSA Input'!J4731=\"Contingent\"),'TSA Input'!G4731,\"\"))","v":""},{"$f":"IF('TSA Input'!J4731=\"\",\"\",IF(OR('TSA Input'!J4731=\"Yes\",'TSA Input'!J4731=\"Contingent\"),'TSA Input'!F4731,\"\"))","v":""},"","Required","Required"]
["",null,{"$f":"IF('TSA Input'!J4732=\"\",\"\",IF(OR('TSA Input'!J4732=\"Yes\",'TSA Input'!J4732=\"Contingent\"),'TSA Input'!B4732,\"Ineligible\"))","v":""},{"$f":"IF('TSA Input'!J4732=\"\",\"\",IF(OR('TSA Input'!J4732=\"Yes\",'TSA Input'!J4732=\"Contingent\"),'TSA Input'!I4732,\"\"))","v":""},{"$f":"IF('TSA Input'!J4732=\"\",\"\",IF(OR('TSA Input'!J4732=\"Yes\",'TSA Input'!J4732=\"Contingent\"),'TSA Input'!C4732,\"\"))","v":""},{"$f":"IF('TSA Input'!J4732=\"\",\"\",IF(OR('TSA Input'!J4732=\"Yes\",'TSA Input'!J4732=\"Contingent\"),'TSA Input'!D4732,\"\"))","v":""},{"$f":"IF('TSA Input'!J4732=\"\",\"\",IF(OR('TSA Input'!J4732=\"Yes\",'TSA Input'!J4732=\"Contingent\"),'TSA Input'!G4732,\"\"))","v":""},{"$f":"IF('TSA Input'!J4732=\"\",\"\",IF(OR('TSA Input'!J4732=\"Yes\",'TSA Input'!J4732=\"Contingent\"),'TSA Input'!F4732,\"\"))","v":""},"",{"$f":"IF('TSA Input'!J4732=\"\",\"\",IF(OR('TSA Input'!J4732=\"Yes\",'TSA Input'!J4732=\"Contingent\"),'TSA Input'!D4732,\"\"))","v":""},{"$f":"IF('TSA Input'!J4732=\"\",\"\",IF(OR('TSA Input'!J4732=\"Yes\",'TSA Input'!J4732=\"Contingent\"),'TSA Input'!G4732,\"\"))","v":""},{"$f":"IF('TSA Input'!J4732=\"\",\"\",IF(OR('TSA Input'!J4732=\"Yes\",'TSA Input'!J4732=\"Contingent\"),'TSA Input'!F4732,\"\"))","v":""},"","Required","Required"]
["",null,{"$f":"IF('TSA Input'!J4733=\"\",\"\",IF(OR('TSA Input'!J4733=\"Yes\",'TSA Input'!J4733=\"Contingent\"),'TSA Input'!B4733,\"Ineligible\"))","v":""},{"$f":"IF('TSA Input'!J4733=\"\",\"\",IF(OR('TSA Input'!J4733=\"Yes\",'TSA Input'!J4733=\"Contingent\"),'TSA Input'!I4733,\"\"))","v":""},{"$f":"IF('TSA Input'!J4733=\"\",\"\",IF(OR('TSA Input'!J4733=\"Yes\",'TSA Input'!J4733=\"Contingent\"),'TSA Input'!C4733,\"\"))","v":""},{"$f":"IF('TSA Input'!J4733=\"\",\"\",IF(OR('TSA Input'!J4733=\"Yes\",'TSA Input'!J4733=\"Contingent\"),'TSA Input'!D4733,\"\"))","v":""},{"$f":"IF('TSA Input'!J4733=\"\",\"\",IF(OR('TSA Input'!J4733=\"Yes\",'TSA Input'!J4733=\"Contingent\"),'TSA Input'!G4733,\"\"))","v":""},{"$f":"IF('TSA Input'!J4733=\"\",\"\",IF(OR('TSA Input'!J4733=\"Yes\",'TSA Input'!J4733=\"Contingent\"),'TSA Input'!F4733,\"\"))","v":""},"",{"$f":"IF('TSA Input'!J4733=\"\",\"\",IF(OR('TSA Input'!J4733=\"Yes\",'TSA Input'!J4733=\"Contingent\"),'TSA Input'!D4733,\"\"))","v":""},{"$f":"IF('TSA Input'!J4733=\"\",\"\",IF(OR('TSA Input'!J4733=\"Yes\",'TSA Input'!J4733=\"Contingent\"),'TSA Input'!G4733,\"\"))","v":""},{"$f":"IF('TSA Input'!J4733=\"\",\"\",IF(OR('TSA Input'!J4733=\"Yes\",'TSA Input'!J4733=\"Contingent\"),'TSA Input'!F4733,\"\"))","v":""},"","Required","Required"]
["",null,{"$f":"IF('TSA Input'!J4734=\"\",\"\",IF(OR('TSA Input'!J4734=\"Yes\",'TSA Input'!J4734=\"Contingent\"),'TSA Input'!B4734,\"Ineligible\"))","v":""},{"$f":"IF('TSA Input'!J4734=\"\",\"\",IF(OR('TSA Input'!J4734=\"Yes\",'TSA Input'!J4734=\"Contingent\"),'TSA Input'!I4734,\"\"))","v":""},{"$f":"IF('TSA Input'!J4734=\"\",\"\",IF(OR('TSA Input'!J4734=\"Yes\",'TSA Input'!J4734=\"Contingent\"),'TSA Input'!C4734,\"\"))","v":""},{"$f":"IF('TSA Input'!J4734=\"\",\"\",IF(OR('TSA Input'!J4734=\"Yes\",'TSA Input'!J4734=\"Contingent\"),'TSA Input'!D4734,\"\"))","v":""},{"$f":"IF('TSA Input'!J4734=\"\",\"\",IF(OR('TSA Input'!J4734=\"Yes\",'TSA Input'!J4734=\"Contingent\"),'TSA Input'!G4734,\"\"))","v":""},{"$f":"IF('TSA Input'!J4734=\"\",\"\",IF(OR('TSA Input'!J4734=\"Yes\",'TSA Input'!J4734=\"Contingent\"),'TSA Input'!F4734,\"\"))","v":""},"",{"$f":"IF('TSA Input'!J4734=\"\",\"\",IF(OR('TSA Input'!J4734=\"Yes\",'TSA Input'!J4734=\"Contingent\"),'TSA Input'!D4734,\"\"))","v":""},{"$f":"IF('TSA Input'!J4734=\"\",\"\",IF(OR('TSA Input'!J4734=\"Yes\",'TSA Input'!J4734=\"Contingent\"),'TSA Input'!G4734,\"\"))","v":""},{"$f":"IF('TSA Input'!J4734=\"\",\"\",IF(OR('TSA Input'!J4734=\"Yes\",'TSA Input'!J4734=\"Contingent\"),'TSA Input'!F4734,\"\"))","v":""},"","Required","Required"]
["",null,{"$f":"IF('TSA Input'!J4735=\"\",\"\",IF(OR('TSA Input'!J4735=\"Yes\",'TSA Input'!J4735=\"Contingent\"),'TSA Input'!B4735,\"Ineligible\"))","v":""},{"$f":"IF('TSA Input'!J4735=\"\",\"\",IF(OR('TSA Input'!J4735=\"Yes\",'TSA Input'!J4735=\"Contingent\"),'TSA Input'!I4735,\"\"))","v":""},{"$f":"IF('TSA Input'!J4735=\"\",\"\",IF(OR('TSA Input'!J4735=\"Yes\",'TSA Input'!J4735=\"Contingent\"),'TSA Input'!C4735,\"\"))","v":""},{"$f":"IF('TSA Input'!J4735=\"\",\"\",IF(OR('TSA Input'!J4735=\"Yes\",'TSA Input'!J4735=\"Contingent\"),'TSA Input'!D4735,\"\"))","v":""},{"$f":"IF('TSA Input'!J4735=\"\",\"\",IF(OR('TSA Input'!J4735=\"Yes\",'TSA Input'!J4735=\"Contingent\"),'TSA Input'!G4735,\"\"))","v":""},{"$f":"IF('TSA Input'!J4735=\"\",\"\",IF(OR('TSA Input'!J4735=\"Yes\",'TSA Input'!J4735=\"Contingent\"),'TSA Input'!F4735,\"\"))","v":""},"",{"$f":"IF('TSA Input'!J4735=\"\",\"\",IF(OR('TSA Input'!J4735=\"Yes\",'TSA Input'!J4735=\"Contingent\"),'TSA Input'!D4735,\"\"))","v":""},{"$f":"IF('TSA Input'!J4735=\"\",\"\",IF(OR('TSA Input'!J4735=\"Yes\",'TSA Input'!J4735=\"Contingent\"),'TSA Input'!G4735,\"\"))","v":""},{"$f":"IF('TSA Input'!J4735=\"\",\"\",IF(OR('TSA Input'!J4735=\"Yes\",'TSA Input'!J4735=\"Contingent\"),'TSA Input'!F4735,\"\"))","v":""},"","Required","Required"]
["",null,{"$f":"IF('TSA Input'!J4736=\"\",\"\",IF(OR('TSA Input'!J4736=\"Yes\",'TSA Input'!J4736=\"Contingent\"),'TSA Input'!B4736,\"Ineligible\"))","v":""},{"$f":"IF('TSA Input'!J4736=\"\",\"\",IF(OR('TSA Input'!J4736=\"Yes\",'TSA Input'!J4736=\"Contingent\"),'TSA Input'!I4736,\"\"))","v":""},{"$f":"IF('TSA Input'!J4736=\"\",\"\",IF(OR('TSA Input'!J4736=\"Yes\",'TSA Input'!J4736=\"Contingent\"),'TSA Input'!C4736,\"\"))","v":""},{"$f":"IF('TSA Input'!J4736=\"\",\"\",IF(OR('TSA Input'!J4736=\"Yes\",'TSA Input'!J4736=\"Contingent\"),'TSA Input'!D4736,\"\"))","v":""},{"$f":"IF('TSA Input'!J4736=\"\",\"\",IF(OR('TSA Input'!J4736=\"Yes\",'TSA Input'!J4736=\"Contingent\"),'TSA Input'!G4736,\"\"))","v":""},{"$f":"IF('TSA Input'!J4736=\"\",\"\",IF(OR('TSA Input'!J4736=\"Yes\",'TSA Input'!J4736=\"Contingent\"),'TSA Input'!F4736,\"\"))","v":""},"",{"$f":"IF('TSA Input'!J4736=\"\",\"\",IF(OR('TSA Input'!J4736=\"Yes\",'TSA Input'!J4736=\"Contingent\"),'TSA Input'!D4736,\"\"))","v":""},{"$f":"IF('TSA Input'!J4736=\"\",\"\",IF(OR('TSA Input'!J4736=\"Yes\",'TSA Input'!J4736=\"Contingent\"),'TSA Input'!G4736,\"\"))","v":""},{"$f":"IF('TSA Input'!J4736=\"\",\"\",IF(OR('TSA Input'!J4736=\"Yes\",'TSA Input'!J4736=\"Contingent\"),'TSA Input'!F4736,\"\"))","v":""},"","Required","Required"]
["",null,{"$f":"IF('TSA Input'!J4737=\"\",\"\",IF(OR('TSA Input'!J4737=\"Yes\",'TSA Input'!J4737=\"Contingent\"),'TSA Input'!B4737,\"Ineligible\"))","v":""},{"$f":"IF('TSA Input'!J4737=\"\",\"\",IF(OR('TSA Input'!J4737=\"Yes\",'TSA Input'!J4737=\"Contingent\"),'TSA Input'!I4737,\"\"))","v":""},{"$f":"IF('TSA Input'!J4737=\"\",\"\",IF(OR('TSA Input'!J4737=\"Yes\",'TSA Input'!J4737=\"Contingent\"),'TSA Input'!C4737,\"\"))","v":""},{"$f":"IF('TSA Input'!J4737=\"\",\"\",IF(OR('TSA Input'!J4737=\"Yes\",'TSA Input'!J4737=\"Contingent\"),'TSA Input'!D4737,\"\"))","v":""},{"$f":"IF('TSA Input'!J4737=\"\",\"\",IF(OR('TSA Input'!J4737=\"Yes\",'TSA Input'!J4737=\"Contingent\"),'TSA Input'!G4737,\"\"))","v":""},{"$f":"IF('TSA Input'!J4737=\"\",\"\",IF(OR('TSA Input'!J4737=\"Yes\",'TSA Input'!J4737=\"Contingent\"),'TSA Input'!F4737,\"\"))","v":""},"",{"$f":"IF('TSA Input'!J4737=\"\",\"\",IF(OR('TSA Input'!J4737=\"Yes\",'TSA Input'!J4737=\"Contingent\"),'TSA Input'!D4737,\"\"))","v":""},{"$f":"IF('TSA Input'!J4737=\"\",\"\",IF(OR('TSA Input'!J4737=\"Yes\",'TSA Input'!J4737=\"Contingent\"),'TSA Input'!G4737,\"\"))","v":""},{"$f":"IF('TSA Input'!J4737=\"\",\"\",IF(OR('TSA Input'!J4737=\"Yes\",'TSA Input'!J4737=\"Contingent\"),'TSA Input'!F4737,\"\"))","v":""},"","Required","Required"]
["",null,{"$f":"IF('TSA Input'!J4738=\"\",\"\",IF(OR('TSA Input'!J4738=\"Yes\",'TSA Input'!J4738=\"Contingent\"),'TSA Input'!B4738,\"Ineligible\"))","v":""},{"$f":"IF('TSA Input'!J4738=\"\",\"\",IF(OR('TSA Input'!J4738=\"Yes\",'TSA Input'!J4738=\"Contingent\"),'TSA Input'!I4738,\"\"))","v":""},{"$f":"IF('TSA Input'!J4738=\"\",\"\",IF(OR('TSA Input'!J4738=\"Yes\",'TSA Input'!J4738=\"Contingent\"),'TSA Input'!C4738,\"\"))","v":""},{"$f":"IF('TSA Input'!J4738=\"\",\"\",IF(OR('TSA Input'!J4738=\"Yes\",'TSA Input'!J4738=\"Contingent\"),'TSA Input'!D4738,\"\"))","v":""},{"$f":"IF('TSA Input'!J4738=\"\",\"\",IF(OR('TSA Input'!J4738=\"Yes\",'TSA Input'!J4738=\"Contingent\"),'TSA Input'!G4738,\"\"))","v":""},{"$f":"IF('TSA Input'!J4738=\"\",\"\",IF(OR('TSA Input'!J4738=\"Yes\",'TSA Input'!J4738=\"Contingent\"),'TSA Input'!F4738,\"\"))","v":""},"",{"$f":"IF('TSA Input'!J4738=\"\",\"\",IF(OR('TSA Input'!J4738=\"Yes\",'TSA Input'!J4738=\"Contingent\"),'TSA Input'!D4738,\"\"))","v":""},{"$f":"IF('TSA Input'!J4738=\"\",\"\",IF(OR('TSA Input'!J4738=\"Yes\",'TSA Input'!J4738=\"Contingent\"),'TSA Input'!G4738,\"\"))","v":""},{"$f":"IF('TSA Input'!J4738=\"\",\"\",IF(OR('TSA Input'!J4738=\"Yes\",'TSA Input'!J4738=\"Contingent\"),'TSA Input'!F4738,\"\"))","v":""},"","Required","Required"]
["",null,{"$f":"IF('TSA Input'!J4739=\"\",\"\",IF(OR('TSA Input'!J4739=\"Yes\",'TSA Input'!J4739=\"Contingent\"),'TSA Input'!B4739,\"Ineligible\"))","v":""},{"$f":"IF('TSA Input'!J4739=\"\",\"\",IF(OR('TSA Input'!J4739=\"Yes\",'TSA Input'!J4739=\"Contingent\"),'TSA Input'!I4739,\"\"))","v":""},{"$f":"IF('TSA Input'!J4739=\"\",\"\",IF(OR('TSA Input'!J4739=\"Yes\",'TSA Input'!J4739=\"Contingent\"),'TSA Input'!C4739,\"\"))","v":""},{"$f":"IF('TSA Input'!J4739=\"\",\"\",IF(OR('TSA Input'!J4739=\"Yes\",'TSA Input'!J4739=\"Contingent\"),'TSA Input'!D4739,\"\"))","v":""},{"$f":"IF('TSA Input'!J4739=\"\",\"\",IF(OR('TSA Input'!J4739=\"Yes\",'TSA Input'!J4739=\"Contingent\"),'TSA Input'!G4739,\"\"))","v":""},{"$f":"IF('TSA Input'!J4739=\"\",\"\",IF(OR('TSA Input'!J4739=\"Yes\",'TSA Input'!J4739=\"Contingent\"),'TSA Input'!F4739,\"\"))","v":""},"",{"$f":"IF('TSA Input'!J4739=\"\",\"\",IF(OR('TSA Input'!J4739=\"Yes\",'TSA Input'!J4739=\"Contingent\"),'TSA Input'!D4739,\"\"))","v":""},{"$f":"IF('TSA Input'!J4739=\"\",\"\",IF(OR('TSA Input'!J4739=\"Yes\",'TSA Input'!J4739=\"Contingent\"),'TSA Input'!G4739,\"\"))","v":""},{"$f":"IF('TSA Input'!J4739=\"\",\"\",IF(OR('TSA Input'!J4739=\"Yes\",'TSA Input'!J4739=\"Contingent\"),'TSA Input'!F4739,\"\"))","v":""},"","Required","Required"]
["",null,{"$f":"IF('TSA Input'!J4740=\"\",\"\",IF(OR('TSA Input'!J4740=\"Yes\",'TSA Input'!J4740=\"Contingent\"),'TSA Input'!B4740,\"Ineligible\"))","v":""},{"$f":"IF('TSA Input'!J4740=\"\",\"\",IF(OR('TSA Input'!J4740=\"Yes\",'TSA Input'!J4740=\"Contingent\"),'TSA Input'!I4740,\"\"))","v":""},{"$f":"IF('TSA Input'!J4740=\"\",\"\",IF(OR('TSA Input'!J4740=\"Yes\",'TSA Input'!J4740=\"Contingent\"),'TSA Input'!C4740,\"\"))","v":""},{"$f":"IF('TSA Input'!J4740=\"\",\"\",IF(OR('TSA Input'!J4740=\"Yes\",'TSA Input'!J4740=\"Contingent\"),'TSA Input'!D4740,\"\"))","v":""},{"$f":"IF('TSA Input'!J4740=\"\",\"\",IF(OR('TSA Input'!J4740=\"Yes\",'TSA Input'!J4740=\"Contingent\"),'TSA Input'!G4740,\"\"))","v":""},{"$f":"IF('TSA Input'!J4740=\"\",\"\",IF(OR('TSA Input'!J4740=\"Yes\",'TSA Input'!J4740=\"Contingent\"),'TSA Input'!F4740,\"\"))","v":""},{"$f":"IF($C4778=\"\",\"\",SUM(F4778:H4778))","v":""},{"$f":"IF('TSA Input'!J4740=\"\",\"\",IF(OR('TSA Input'!J4740=\"Yes\",'TSA Input'!J4740=\"Contingent\"),'TSA Input'!D4740,\"\"))","v":""},{"$f":"IF('TSA Input'!J4740=\"\",\"\",IF(OR('TSA Input'!J4740=\"Yes\",'TSA Input'!J4740=\"Contingent\"),'TSA Input'!G4740,\"\"))","v":""},{"$f":"IF('TSA Input'!J4740=\"\",\"\",IF(OR('TSA Input'!J4740=\"Yes\",'TSA Input'!J4740=\"Contingent\"),'TSA Input'!F4740,\"\"))","v":""},{"$f":"IF($C4778=\"\",\"\",SUM(J4778:L4778))","v":""},"Required","Required"]
["",null,{"$f":"IF('TSA Input'!J4741=\"\",\"\",IF(OR('TSA Input'!J4741=\"Yes\",'TSA Input'!J4741=\"Contingent\"),'TSA Input'!B4741,\"Ineligible\"))","v":""},{"$f":"IF('TSA Input'!J4741=\"\",\"\",IF(OR('TSA Input'!J4741=\"Yes\",'TSA Input'!J4741=\"Contingent\"),'TSA Input'!I4741,\"\"))","v":""},{"$f":"IF('TSA Input'!J4741=\"\",\"\",IF(OR('TSA Input'!J4741=\"Yes\",'TSA Input'!J4741=\"Contingent\"),'TSA Input'!C4741,\"\"))","v":""},{"$f":"IF('TSA Input'!J4741=\"\",\"\",IF(OR('TSA Input'!J4741=\"Yes\",'TSA Input'!J4741=\"Contingent\"),'TSA Input'!D4741,\"\"))","v":""},{"$f":"IF('TSA Input'!J4741=\"\",\"\",IF(OR('TSA Input'!J4741=\"Yes\",'TSA Input'!J4741=\"Contingent\"),'TSA Input'!G4741,\"\"))","v":""},{"$f":"IF('TSA Input'!J4741=\"\",\"\",IF(OR('TSA Input'!J4741=\"Yes\",'TSA Input'!J4741=\"Contingent\"),'TSA Input'!F4741,\"\"))","v":""},"",{"$f":"IF('TSA Input'!J4741=\"\",\"\",IF(OR('TSA Input'!J4741=\"Yes\",'TSA Input'!J4741=\"Contingent\"),'TSA Input'!D4741,\"\"))","v":""},{"$f":"IF('TSA Input'!J4741=\"\",\"\",IF(OR('TSA Input'!J4741=\"Yes\",'TSA Input'!J4741=\"Contingent\"),'TSA Input'!G4741,\"\"))","v":""},{"$f":"IF('TSA Input'!J4741=\"\",\"\",IF(OR('TSA Input'!J4741=\"Yes\",'TSA Input'!J4741=\"Contingent\"),'TSA Input'!F4741,\"\"))","v":""},"","Required","Required"]
["",null,{"$f":"IF('TSA Input'!J4742=\"\",\"\",IF(OR('TSA Input'!J4742=\"Yes\",'TSA Input'!J4742=\"Contingent\"),'TSA Input'!B4742,\"Ineligible\"))","v":""},{"$f":"IF('TSA Input'!J4742=\"\",\"\",IF(OR('TSA Input'!J4742=\"Yes\",'TSA Input'!J4742=\"Contingent\"),'TSA Input'!I4742,\"\"))","v":""},{"$f":"IF('TSA Input'!J4742=\"\",\"\",IF(OR('TSA Input'!J4742=\"Yes\",'TSA Input'!J4742=\"Contingent\"),'TSA Input'!C4742,\"\"))","v":""},{"$f":"IF('TSA Input'!J4742=\"\",\"\",IF(OR('TSA Input'!J4742=\"Yes\",'TSA Input'!J4742=\"Contingent\"),'TSA Input'!D4742,\"\"))","v":""},{"$f":"IF('TSA Input'!J4742=\"\",\"\",IF(OR('TSA Input'!J4742=\"Yes\",'TSA Input'!J4742=\"Contingent\"),'TSA Input'!G4742,\"\"))","v":""},{"$f":"IF('TSA Input'!J4742=\"\",\"\",IF(OR('TSA Input'!J4742=\"Yes\",'TSA Input'!J4742=\"Contingent\"),'TSA Input'!F4742,\"\"))","v":""},"",{"$f":"IF('TSA Input'!J4742=\"\",\"\",IF(OR('TSA Input'!J4742=\"Yes\",'TSA Input'!J4742=\"Contingent\"),'TSA Input'!D4742,\"\"))","v":""},{"$f":"IF('TSA Input'!J4742=\"\",\"\",IF(OR('TSA Input'!J4742=\"Yes\",'TSA Input'!J4742=\"Contingent\"),'TSA Input'!G4742,\"\"))","v":""},{"$f":"IF('TSA Input'!J4742=\"\",\"\",IF(OR('TSA Input'!J4742=\"Yes\",'TSA Input'!J4742=\"Contingent\"),'TSA Input'!F4742,\"\"))","v":""},"","Required","Required"]
["",null,{"$f":"IF('TSA Input'!J4743=\"\",\"\",IF(OR('TSA Input'!J4743=\"Yes\",'TSA Input'!J4743=\"Contingent\"),'TSA Input'!B4743,\"Ineligible\"))","v":""},{"$f":"IF('TSA Input'!J4743=\"\",\"\",IF(OR('TSA Input'!J4743=\"Yes\",'TSA Input'!J4743=\"Contingent\"),'TSA Input'!I4743,\"\"))","v":""},{"$f":"IF('TSA Input'!J4743=\"\",\"\",IF(OR('TSA Input'!J4743=\"Yes\",'TSA Input'!J4743=\"Contingent\"),'TSA Input'!C4743,\"\"))","v":""},{"$f":"IF('TSA Input'!J4743=\"\",\"\",IF(OR('TSA Input'!J4743=\"Yes\",'TSA Input'!J4743=\"Contingent\"),'TSA Input'!D4743,\"\"))","v":""},{"$f":"IF('TSA Input'!J4743=\"\",\"\",IF(OR('TSA Input'!J4743=\"Yes\",'TSA Input'!J4743=\"Contingent\"),'TSA Input'!G4743,\"\"))","v":""},{"$f":"IF('TSA Input'!J4743=\"\",\"\",IF(OR('TSA Input'!J4743=\"Yes\",'TSA Input'!J4743=\"Contingent\"),'TSA Input'!F4743,\"\"))","v":""},"",{"$f":"IF('TSA Input'!J4743=\"\",\"\",IF(OR('TSA Input'!J4743=\"Yes\",'TSA Input'!J4743=\"Contingent\"),'TSA Input'!D4743,\"\"))","v":""},{"$f":"IF('TSA Input'!J4743=\"\",\"\",IF(OR('TSA Input'!J4743=\"Yes\",'TSA Input'!J4743=\"Contingent\"),'TSA Input'!G4743,\"\"))","v":""},{"$f":"IF('TSA Input'!J4743=\"\",\"\",IF(OR('TSA Input'!J4743=\"Yes\",'TSA Input'!J4743=\"Contingent\"),'TSA Input'!F4743,\"\"))","v":""},"","Required","Required"]
["",null,{"$f":"IF('TSA Input'!J4744=\"\",\"\",IF(OR('TSA Input'!J4744=\"Yes\",'TSA Input'!J4744=\"Contingent\"),'TSA Input'!B4744,\"Ineligible\"))","v":""},{"$f":"IF('TSA Input'!J4744=\"\",\"\",IF(OR('TSA Input'!J4744=\"Yes\",'TSA Input'!J4744=\"Contingent\"),'TSA Input'!I4744,\"\"))","v":""},{"$f":"IF('TSA Input'!J4744=\"\",\"\",IF(OR('TSA Input'!J4744=\"Yes\",'TSA Input'!J4744=\"Contingent\"),'TSA Input'!C4744,\"\"))","v":""},{"$f":"IF('TSA Input'!J4744=\"\",\"\",IF(OR('TSA Input'!J4744=\"Yes\",'TSA Input'!J4744=\"Contingent\"),'TSA Input'!D4744,\"\"))","v":""},{"$f":"IF('TSA Input'!J4744=\"\",\"\",IF(OR('TSA Input'!J4744=\"Yes\",'TSA Input'!J4744=\"Contingent\"),'TSA Input'!G4744,\"\"))","v":""},{"$f":"IF('TSA Input'!J4744=\"\",\"\",IF(OR('TSA Input'!J4744=\"Yes\",'TSA Input'!J4744=\"Contingent\"),'TSA Input'!F4744,\"\"))","v":""},"",{"$f":"IF('TSA Input'!J4744=\"\",\"\",IF(OR('TSA Input'!J4744=\"Yes\",'TSA Input'!J4744=\"Contingent\"),'TSA Input'!D4744,\"\"))","v":""},{"$f":"IF('TSA Input'!J4744=\"\",\"\",IF(OR('TSA Input'!J4744=\"Yes\",'TSA Input'!J4744=\"Contingent\"),'TSA Input'!G4744,\"\"))","v":""},{"$f":"IF('TSA Input'!J4744=\"\",\"\",IF(OR('TSA Input'!J4744=\"Yes\",'TSA Input'!J4744=\"Contingent\"),'TSA Input'!F4744,\"\"))","v":""},"","Required","Required"]
["",null,{"$f":"IF('TSA Input'!J4745=\"\",\"\",IF(OR('TSA Input'!J4745=\"Yes\",'TSA Input'!J4745=\"Contingent\"),'TSA Input'!B4745,\"Ineligible\"))","v":""},{"$f":"IF('TSA Input'!J4745=\"\",\"\",IF(OR('TSA Input'!J4745=\"Yes\",'TSA Input'!J4745=\"Contingent\"),'TSA Input'!I4745,\"\"))","v":""},{"$f":"IF('TSA Input'!J4745=\"\",\"\",IF(OR('TSA Input'!J4745=\"Yes\",'TSA Input'!J4745=\"Contingent\"),'TSA Input'!C4745,\"\"))","v":""},{"$f":"IF('TSA Input'!J4745=\"\",\"\",IF(OR('TSA Input'!J4745=\"Yes\",'TSA Input'!J4745=\"Contingent\"),'TSA Input'!D4745,\"\"))","v":""},{"$f":"IF('TSA Input'!J4745=\"\",\"\",IF(OR('TSA Input'!J4745=\"Yes\",'TSA Input'!J4745=\"Contingent\"),'TSA Input'!G4745,\"\"))","v":""},{"$f":"IF('TSA Input'!J4745=\"\",\"\",IF(OR('TSA Input'!J4745=\"Yes\",'TSA Input'!J4745=\"Contingent\"),'TSA Input'!F4745,\"\"))","v":""},"",{"$f":"IF('TSA Input'!J4745=\"\",\"\",IF(OR('TSA Input'!J4745=\"Yes\",'TSA Input'!J4745=\"Contingent\"),'TSA Input'!D4745,\"\"))","v":""},{"$f":"IF('TSA Input'!J4745=\"\",\"\",IF(OR('TSA Input'!J4745=\"Yes\",'TSA Input'!J4745=\"Contingent\"),'TSA Input'!G4745,\"\"))","v":""},{"$f":"IF('TSA Input'!J4745=\"\",\"\",IF(OR('TSA Input'!J4745=\"Yes\",'TSA Input'!J4745=\"Contingent\"),'TSA Input'!F4745,\"\"))","v":""},"","Required","Required"]
["",null,{"$f":"IF('TSA Input'!J4746=\"\",\"\",IF(OR('TSA Input'!J4746=\"Yes\",'TSA Input'!J4746=\"Contingent\"),'TSA Input'!B4746,\"Ineligible\"))","v":""},{"$f":"IF('TSA Input'!J4746=\"\",\"\",IF(OR('TSA Input'!J4746=\"Yes\",'TSA Input'!J4746=\"Contingent\"),'TSA Input'!I4746,\"\"))","v":""},{"$f":"IF('TSA Input'!J4746=\"\",\"\",IF(OR('TSA Input'!J4746=\"Yes\",'TSA Input'!J4746=\"Contingent\"),'TSA Input'!C4746,\"\"))","v":""},{"$f":"IF('TSA Input'!J4746=\"\",\"\",IF(OR('TSA Input'!J4746=\"Yes\",'TSA Input'!J4746=\"Contingent\"),'TSA Input'!D4746,\"\"))","v":""},{"$f":"IF('TSA Input'!J4746=\"\",\"\",IF(OR('TSA Input'!J4746=\"Yes\",'TSA Input'!J4746=\"Contingent\"),'TSA Input'!G4746,\"\"))","v":""},{"$f":"IF('TSA Input'!J4746=\"\",\"\",IF(OR('TSA Input'!J4746=\"Yes\",'TSA Input'!J4746=\"Contingent\"),'TSA Input'!F4746,\"\"))","v":""},"",{"$f":"IF('TSA Input'!J4746=\"\",\"\",IF(OR('TSA Input'!J4746=\"Yes\",'TSA Input'!J4746=\"Contingent\"),'TSA Input'!D4746,\"\"))","v":""},{"$f":"IF('TSA Input'!J4746=\"\",\"\",IF(OR('TSA Input'!J4746=\"Yes\",'TSA Input'!J4746=\"Contingent\"),'TSA Input'!G4746,\"\"))","v":""},{"$f":"IF('TSA Input'!J4746=\"\",\"\",IF(OR('TSA Input'!J4746=\"Yes\",'TSA Input'!J4746=\"Contingent\"),'TSA Input'!F4746,\"\"))","v":""},"","Required","Required"]
["",null,{"$f":"IF('TSA Input'!J4747=\"\",\"\",IF(OR('TSA Input'!J4747=\"Yes\",'TSA Input'!J4747=\"Contingent\"),'TSA Input'!B4747,\"Ineligible\"))","v":""},{"$f":"IF('TSA Input'!J4747=\"\",\"\",IF(OR('TSA Input'!J4747=\"Yes\",'TSA Input'!J4747=\"Contingent\"),'TSA Input'!I4747,\"\"))","v":""},{"$f":"IF('TSA Input'!J4747=\"\",\"\",IF(OR('TSA Input'!J4747=\"Yes\",'TSA Input'!J4747=\"Contingent\"),'TSA Input'!C4747,\"\"))","v":""},{"$f":"IF('TSA Input'!J4747=\"\",\"\",IF(OR('TSA Input'!J4747=\"Yes\",'TSA Input'!J4747=\"Contingent\"),'TSA Input'!D4747,\"\"))","v":""},{"$f":"IF('TSA Input'!J4747=\"\",\"\",IF(OR('TSA Input'!J4747=\"Yes\",'TSA Input'!J4747=\"Contingent\"),'TSA Input'!G4747,\"\"))","v":""},{"$f":"IF('TSA Input'!J4747=\"\",\"\",IF(OR('TSA Input'!J4747=\"Yes\",'TSA Input'!J4747=\"Contingent\"),'TSA Input'!F4747,\"\"))","v":""},"",{"$f":"IF('TSA Input'!J4747=\"\",\"\",IF(OR('TSA Input'!J4747=\"Yes\",'TSA Input'!J4747=\"Contingent\"),'TSA Input'!D4747,\"\"))","v":""},{"$f":"IF('TSA Input'!J4747=\"\",\"\",IF(OR('TSA Input'!J4747=\"Yes\",'TSA Input'!J4747=\"Contingent\"),'TSA Input'!G4747,\"\"))","v":""},{"$f":"IF('TSA Input'!J4747=\"\",\"\",IF(OR('TSA Input'!J4747=\"Yes\",'TSA Input'!J4747=\"Contingent\"),'TSA Input'!F4747,\"\"))","v":""},"","Required","Required"]
["",null,{"$f":"IF('TSA Input'!J4748=\"\",\"\",IF(OR('TSA Input'!J4748=\"Yes\",'TSA Input'!J4748=\"Contingent\"),'TSA Input'!B4748,\"Ineligible\"))","v":""},{"$f":"IF('TSA Input'!J4748=\"\",\"\",IF(OR('TSA Input'!J4748=\"Yes\",'TSA Input'!J4748=\"Contingent\"),'TSA Input'!I4748,\"\"))","v":""},{"$f":"IF('TSA Input'!J4748=\"\",\"\",IF(OR('TSA Input'!J4748=\"Yes\",'TSA Input'!J4748=\"Contingent\"),'TSA Input'!C4748,\"\"))","v":""},{"$f":"IF('TSA Input'!J4748=\"\",\"\",IF(OR('TSA Input'!J4748=\"Yes\",'TSA Input'!J4748=\"Contingent\"),'TSA Input'!D4748,\"\"))","v":""},{"$f":"IF('TSA Input'!J4748=\"\",\"\",IF(OR('TSA Input'!J4748=\"Yes\",'TSA Input'!J4748=\"Contingent\"),'TSA Input'!G4748,\"\"))","v":""},{"$f":"IF('TSA Input'!J4748=\"\",\"\",IF(OR('TSA Input'!J4748=\"Yes\",'TSA Input'!J4748=\"Contingent\"),'TSA Input'!F4748,\"\"))","v":""},"",{"$f":"IF('TSA Input'!J4748=\"\",\"\",IF(OR('TSA Input'!J4748=\"Yes\",'TSA Input'!J4748=\"Contingent\"),'TSA Input'!D4748,\"\"))","v":""},{"$f":"IF('TSA Input'!J4748=\"\",\"\",IF(OR('TSA Input'!J4748=\"Yes\",'TSA Input'!J4748=\"Contingent\"),'TSA Input'!G4748,\"\"))","v":""},{"$f":"IF('TSA Input'!J4748=\"\",\"\",IF(OR('TSA Input'!J4748=\"Yes\",'TSA Input'!J4748=\"Contingent\"),'TSA Input'!F4748,\"\"))","v":""},"","Required","Required"]
["",null,{"$f":"IF('TSA Input'!J4749=\"\",\"\",IF(OR('TSA Input'!J4749=\"Yes\",'TSA Input'!J4749=\"Contingent\"),'TSA Input'!B4749,\"Ineligible\"))","v":""},{"$f":"IF('TSA Input'!J4749=\"\",\"\",IF(OR('TSA Input'!J4749=\"Yes\",'TSA Input'!J4749=\"Contingent\"),'TSA Input'!I4749,\"\"))","v":""},{"$f":"IF('TSA Input'!J4749=\"\",\"\",IF(OR('TSA Input'!J4749=\"Yes\",'TSA Input'!J4749=\"Contingent\"),'TSA Input'!C4749,\"\"))","v":""},{"$f":"IF('TSA Input'!J4749=\"\",\"\",IF(OR('TSA Input'!J4749=\"Yes\",'TSA Input'!J4749=\"Contingent\"),'TSA Input'!D4749,\"\"))","v":""},{"$f":"IF('TSA Input'!J4749=\"\",\"\",IF(OR('TSA Input'!J4749=\"Yes\",'TSA Input'!J4749=\"Contingent\"),'TSA Input'!G4749,\"\"))","v":""},{"$f":"IF('TSA Input'!J4749=\"\",\"\",IF(OR('TSA Input'!J4749=\"Yes\",'TSA Input'!J4749=\"Contingent\"),'TSA Input'!F4749,\"\"))","v":""},"",{"$f":"IF('TSA Input'!J4749=\"\",\"\",IF(OR('TSA Input'!J4749=\"Yes\",'TSA Input'!J4749=\"Contingent\"),'TSA Input'!D4749,\"\"))","v":""},{"$f":"IF('TSA Input'!J4749=\"\",\"\",IF(OR('TSA Input'!J4749=\"Yes\",'TSA Input'!J4749=\"Contingent\"),'TSA Input'!G4749,\"\"))","v":""},{"$f":"IF('TSA Input'!J4749=\"\",\"\",IF(OR('TSA Input'!J4749=\"Yes\",'TSA Input'!J4749=\"Contingent\"),'TSA Input'!F4749,\"\"))","v":""},"","Required","Required"]
["",null,{"$f":"IF('TSA Input'!J4750=\"\",\"\",IF(OR('TSA Input'!J4750=\"Yes\",'TSA Input'!J4750=\"Contingent\"),'TSA Input'!B4750,\"Ineligible\"))","v":""},{"$f":"IF('TSA Input'!J4750=\"\",\"\",IF(OR('TSA Input'!J4750=\"Yes\",'TSA Input'!J4750=\"Contingent\"),'TSA Input'!I4750,\"\"))","v":""},{"$f":"IF('TSA Input'!J4750=\"\",\"\",IF(OR('TSA Input'!J4750=\"Yes\",'TSA Input'!J4750=\"Contingent\"),'TSA Input'!C4750,\"\"))","v":""},{"$f":"IF('TSA Input'!J4750=\"\",\"\",IF(OR('TSA Input'!J4750=\"Yes\",'TSA Input'!J4750=\"Contingent\"),'TSA Input'!D4750,\"\"))","v":""},{"$f":"IF('TSA Input'!J4750=\"\",\"\",IF(OR('TSA Input'!J4750=\"Yes\",'TSA Input'!J4750=\"Contingent\"),'TSA Input'!G4750,\"\"))","v":""},{"$f":"IF('TSA Input'!J4750=\"\",\"\",IF(OR('TSA Input'!J4750=\"Yes\",'TSA Input'!J4750=\"Contingent\"),'TSA Input'!F4750,\"\"))","v":""},"",{"$f":"IF('TSA Input'!J4750=\"\",\"\",IF(OR('TSA Input'!J4750=\"Yes\",'TSA Input'!J4750=\"Contingent\"),'TSA Input'!D4750,\"\"))","v":""},{"$f":"IF('TSA Input'!J4750=\"\",\"\",IF(OR('TSA Input'!J4750=\"Yes\",'TSA Input'!J4750=\"Contingent\"),'TSA Input'!G4750,\"\"))","v":""},{"$f":"IF('TSA Input'!J4750=\"\",\"\",IF(OR('TSA Input'!J4750=\"Yes\",'TSA Input'!J4750=\"Contingent\"),'TSA Input'!F4750,\"\"))","v":""},"","Required","Required"]
["",null,{"$f":"IF('TSA Input'!J4751=\"\",\"\",IF(OR('TSA Input'!J4751=\"Yes\",'TSA Input'!J4751=\"Contingent\"),'TSA Input'!B4751,\"Ineligible\"))","v":""},{"$f":"IF('TSA Input'!J4751=\"\",\"\",IF(OR('TSA Input'!J4751=\"Yes\",'TSA Input'!J4751=\"Contingent\"),'TSA Input'!I4751,\"\"))","v":""},{"$f":"IF('TSA Input'!J4751=\"\",\"\",IF(OR('TSA Input'!J4751=\"Yes\",'TSA Input'!J4751=\"Contingent\"),'TSA Input'!C4751,\"\"))","v":""},{"$f":"IF('TSA Input'!J4751=\"\",\"\",IF(OR('TSA Input'!J4751=\"Yes\",'TSA Input'!J4751=\"Contingent\"),'TSA Input'!D4751,\"\"))","v":""},{"$f":"IF('TSA Input'!J4751=\"\",\"\",IF(OR('TSA Input'!J4751=\"Yes\",'TSA Input'!J4751=\"Contingent\"),'TSA Input'!G4751,\"\"))","v":""},{"$f":"IF('TSA Input'!J4751=\"\",\"\",IF(OR('TSA Input'!J4751=\"Yes\",'TSA Input'!J4751=\"Contingent\"),'TSA Input'!F4751,\"\"))","v":""},"",{"$f":"IF('TSA Input'!J4751=\"\",\"\",IF(OR('TSA Input'!J4751=\"Yes\",'TSA Input'!J4751=\"Contingent\"),'TSA Input'!D4751,\"\"))","v":""},{"$f":"IF('TSA Input'!J4751=\"\",\"\",IF(OR('TSA Input'!J4751=\"Yes\",'TSA Input'!J4751=\"Contingent\"),'TSA Input'!G4751,\"\"))","v":""},{"$f":"IF('TSA Input'!J4751=\"\",\"\",IF(OR('TSA Input'!J4751=\"Yes\",'TSA Input'!J4751=\"Contingent\"),'TSA Input'!F4751,\"\"))","v":""},"","Required","Required"]
["",null,{"$f":"IF('TSA Input'!J4752=\"\",\"\",IF(OR('TSA Input'!J4752=\"Yes\",'TSA Input'!J4752=\"Contingent\"),'TSA Input'!B4752,\"Ineligible\"))","v":""},{"$f":"IF('TSA Input'!J4752=\"\",\"\",IF(OR('TSA Input'!J4752=\"Yes\",'TSA Input'!J4752=\"Contingent\"),'TSA Input'!I4752,\"\"))","v":""},{"$f":"IF('TSA Input'!J4752=\"\",\"\",IF(OR('TSA Input'!J4752=\"Yes\",'TSA Input'!J4752=\"Contingent\"),'TSA Input'!C4752,\"\"))","v":""},{"$f":"IF('TSA Input'!J4752=\"\",\"\",IF(OR('TSA Input'!J4752=\"Yes\",'TSA Input'!J4752=\"Contingent\"),'TSA Input'!D4752,\"\"))","v":""},{"$f":"IF('TSA Input'!J4752=\"\",\"\",IF(OR('TSA Input'!J4752=\"Yes\",'TSA Input'!J4752=\"Contingent\"),'TSA Input'!G4752,\"\"))","v":""},{"$f":"IF('TSA Input'!J4752=\"\",\"\",IF(OR('TSA Input'!J4752=\"Yes\",'TSA Input'!J4752=\"Contingent\"),'TSA Input'!F4752,\"\"))","v":""},"",{"$f":"IF('TSA Input'!J4752=\"\",\"\",IF(OR('TSA Input'!J4752=\"Yes\",'TSA Input'!J4752=\"Contingent\"),'TSA Input'!D4752,\"\"))","v":""},{"$f":"IF('TSA Input'!J4752=\"\",\"\",IF(OR('TSA Input'!J4752=\"Yes\",'TSA Input'!J4752=\"Contingent\"),'TSA Input'!G4752,\"\"))","v":""},{"$f":"IF('TSA Input'!J4752=\"\",\"\",IF(OR('TSA Input'!J4752=\"Yes\",'TSA Input'!J4752=\"Contingent\"),'TSA Input'!F4752,\"\"))","v":""},"","Required","Required"]
["",null,{"$f":"IF('TSA Input'!J4753=\"\",\"\",IF(OR('TSA Input'!J4753=\"Yes\",'TSA Input'!J4753=\"Contingent\"),'TSA Input'!B4753,\"Ineligible\"))","v":""},{"$f":"IF('TSA Input'!J4753=\"\",\"\",IF(OR('TSA Input'!J4753=\"Yes\",'TSA Input'!J4753=\"Contingent\"),'TSA Input'!I4753,\"\"))","v":""},{"$f":"IF('TSA Input'!J4753=\"\",\"\",IF(OR('TSA Input'!J4753=\"Yes\",'TSA Input'!J4753=\"Contingent\"),'TSA Input'!C4753,\"\"))","v":""},{"$f":"IF('TSA Input'!J4753=\"\",\"\",IF(OR('TSA Input'!J4753=\"Yes\",'TSA Input'!J4753=\"Contingent\"),'TSA Input'!D4753,\"\"))","v":""},{"$f":"IF('TSA Input'!J4753=\"\",\"\",IF(OR('TSA Input'!J4753=\"Yes\",'TSA Input'!J4753=\"Contingent\"),'TSA Input'!G4753,\"\"))","v":""},{"$f":"IF('TSA Input'!J4753=\"\",\"\",IF(OR('TSA Input'!J4753=\"Yes\",'TSA Input'!J4753=\"Contingent\"),'TSA Input'!F4753,\"\"))","v":""},"",{"$f":"IF('TSA Input'!J4753=\"\",\"\",IF(OR('TSA Input'!J4753=\"Yes\",'TSA Input'!J4753=\"Contingent\"),'TSA Input'!D4753,\"\"))","v":""},{"$f":"IF('TSA Input'!J4753=\"\",\"\",IF(OR('TSA Input'!J4753=\"Yes\",'TSA Input'!J4753=\"Contingent\"),'TSA Input'!G4753,\"\"))","v":""},{"$f":"IF('TSA Input'!J4753=\"\",\"\",IF(OR('TSA Input'!J4753=\"Yes\",'TSA Input'!J4753=\"Contingent\"),'TSA Input'!F4753,\"\"))","v":""},"","Required","Required"]
["",null,{"$f":"IF('TSA Input'!J4754=\"\",\"\",IF(OR('TSA Input'!J4754=\"Yes\",'TSA Input'!J4754=\"Contingent\"),'TSA Input'!B4754,\"Ineligible\"))","v":""},{"$f":"IF('TSA Input'!J4754=\"\",\"\",IF(OR('TSA Input'!J4754=\"Yes\",'TSA Input'!J4754=\"Contingent\"),'TSA Input'!I4754,\"\"))","v":""},{"$f":"IF('TSA Input'!J4754=\"\",\"\",IF(OR('TSA Input'!J4754=\"Yes\",'TSA Input'!J4754=\"Contingent\"),'TSA Input'!C4754,\"\"))","v":""},{"$f":"IF('TSA Input'!J4754=\"\",\"\",IF(OR('TSA Input'!J4754=\"Yes\",'TSA Input'!J4754=\"Contingent\"),'TSA Input'!D4754,\"\"))","v":""},{"$f":"IF('TSA Input'!J4754=\"\",\"\",IF(OR('TSA Input'!J4754=\"Yes\",'TSA Input'!J4754=\"Contingent\"),'TSA Input'!G4754,\"\"))","v":""},{"$f":"IF('TSA Input'!J4754=\"\",\"\",IF(OR('TSA Input'!J4754=\"Yes\",'TSA Input'!J4754=\"Contingent\"),'TSA Input'!F4754,\"\"))","v":""},"",{"$f":"IF('TSA Input'!J4754=\"\",\"\",IF(OR('TSA Input'!J4754=\"Yes\",'TSA Input'!J4754=\"Contingent\"),'TSA Input'!D4754,\"\"))","v":""},{"$f":"IF('TSA Input'!J4754=\"\",\"\",IF(OR('TSA Input'!J4754=\"Yes\",'TSA Input'!J4754=\"Contingent\"),'TSA Input'!G4754,\"\"))","v":""},{"$f":"IF('TSA Input'!J4754=\"\",\"\",IF(OR('TSA Input'!J4754=\"Yes\",'TSA Input'!J4754=\"Contingent\"),'TSA Input'!F4754,\"\"))","v":""},"","Required","Required"]
["",null,{"$f":"IF('TSA Input'!J4755=\"\",\"\",IF(OR('TSA Input'!J4755=\"Yes\",'TSA Input'!J4755=\"Contingent\"),'TSA Input'!B4755,\"Ineligible\"))","v":""},{"$f":"IF('TSA Input'!J4755=\"\",\"\",IF(OR('TSA Input'!J4755=\"Yes\",'TSA Input'!J4755=\"Contingent\"),'TSA Input'!I4755,\"\"))","v":""},{"$f":"IF('TSA Input'!J4755=\"\",\"\",IF(OR('TSA Input'!J4755=\"Yes\",'TSA Input'!J4755=\"Contingent\"),'TSA Input'!C4755,\"\"))","v":""},{"$f":"IF('TSA Input'!J4755=\"\",\"\",IF(OR('TSA Input'!J4755=\"Yes\",'TSA Input'!J4755=\"Contingent\"),'TSA Input'!D4755,\"\"))","v":""},{"$f":"IF('TSA Input'!J4755=\"\",\"\",IF(OR('TSA Input'!J4755=\"Yes\",'TSA Input'!J4755=\"Contingent\"),'TSA Input'!G4755,\"\"))","v":""},{"$f":"IF('TSA Input'!J4755=\"\",\"\",IF(OR('TSA Input'!J4755=\"Yes\",'TSA Input'!J4755=\"Contingent\"),'TSA Input'!F4755,\"\"))","v":""},"",{"$f":"IF('TSA Input'!J4755=\"\",\"\",IF(OR('TSA Input'!J4755=\"Yes\",'TSA Input'!J4755=\"Contingent\"),'TSA Input'!D4755,\"\"))","v":""},{"$f":"IF('TSA Input'!J4755=\"\",\"\",IF(OR('TSA Input'!J4755=\"Yes\",'TSA Input'!J4755=\"Contingent\"),'TSA Input'!G4755,\"\"))","v":""},{"$f":"IF('TSA Input'!J4755=\"\",\"\",IF(OR('TSA Input'!J4755=\"Yes\",'TSA Input'!J4755=\"Contingent\"),'TSA Input'!F4755,\"\"))","v":""},"","Required","Required"]
["",null,{"$f":"IF('TSA Input'!J4756=\"\",\"\",IF(OR('TSA Input'!J4756=\"Yes\",'TSA Input'!J4756=\"Contingent\"),'TSA Input'!B4756,\"Ineligible\"))","v":""},{"$f":"IF('TSA Input'!J4756=\"\",\"\",IF(OR('TSA Input'!J4756=\"Yes\",'TSA Input'!J4756=\"Contingent\"),'TSA Input'!I4756,\"\"))","v":""},{"$f":"IF('TSA Input'!J4756=\"\",\"\",IF(OR('TSA Input'!J4756=\"Yes\",'TSA Input'!J4756=\"Contingent\"),'TSA Input'!C4756,\"\"))","v":""},{"$f":"IF('TSA Input'!J4756=\"\",\"\",IF(OR('TSA Input'!J4756=\"Yes\",'TSA Input'!J4756=\"Contingent\"),'TSA Input'!D4756,\"\"))","v":""},{"$f":"IF('TSA Input'!J4756=\"\",\"\",IF(OR('TSA Input'!J4756=\"Yes\",'TSA Input'!J4756=\"Contingent\"),'TSA Input'!G4756,\"\"))","v":""},{"$f":"IF('TSA Input'!J4756=\"\",\"\",IF(OR('TSA Input'!J4756=\"Yes\",'TSA Input'!J4756=\"Contingent\"),'TSA Input'!F4756,\"\"))","v":""},"",{"$f":"IF('TSA Input'!J4756=\"\",\"\",IF(OR('TSA Input'!J4756=\"Yes\",'TSA Input'!J4756=\"Contingent\"),'TSA Input'!D4756,\"\"))","v":""},{"$f":"IF('TSA Input'!J4756=\"\",\"\",IF(OR('TSA Input'!J4756=\"Yes\",'TSA Input'!J4756=\"Contingent\"),'TSA Input'!G4756,\"\"))","v":""},{"$f":"IF('TSA Input'!J4756=\"\",\"\",IF(OR('TSA Input'!J4756=\"Yes\",'TSA Input'!J4756=\"Contingent\"),'TSA Input'!F4756,\"\"))","v":""},"","Required","Required"]
["",null,{"$f":"IF('TSA Input'!J4757=\"\",\"\",IF(OR('TSA Input'!J4757=\"Yes\",'TSA Input'!J4757=\"Contingent\"),'TSA Input'!B4757,\"Ineligible\"))","v":""},{"$f":"IF('TSA Input'!J4757=\"\",\"\",IF(OR('TSA Input'!J4757=\"Yes\",'TSA Input'!J4757=\"Contingent\"),'TSA Input'!I4757,\"\"))","v":""},{"$f":"IF('TSA Input'!J4757=\"\",\"\",IF(OR('TSA Input'!J4757=\"Yes\",'TSA Input'!J4757=\"Contingent\"),'TSA Input'!C4757,\"\"))","v":""},{"$f":"IF('TSA Input'!J4757=\"\",\"\",IF(OR('TSA Input'!J4757=\"Yes\",'TSA Input'!J4757=\"Contingent\"),'TSA Input'!D4757,\"\"))","v":""},{"$f":"IF('TSA Input'!J4757=\"\",\"\",IF(OR('TSA Input'!J4757=\"Yes\",'TSA Input'!J4757=\"Contingent\"),'TSA Input'!G4757,\"\"))","v":""},{"$f":"IF('TSA Input'!J4757=\"\",\"\",IF(OR('TSA Input'!J4757=\"Yes\",'TSA Input'!J4757=\"Contingent\"),'TSA Input'!F4757,\"\"))","v":""},"",{"$f":"IF('TSA Input'!J4757=\"\",\"\",IF(OR('TSA Input'!J4757=\"Yes\",'TSA Input'!J4757=\"Contingent\"),'TSA Input'!D4757,\"\"))","v":""},{"$f":"IF('TSA Input'!J4757=\"\",\"\",IF(OR('TSA Input'!J4757=\"Yes\",'TSA Input'!J4757=\"Contingent\"),'TSA Input'!G4757,\"\"))","v":""},{"$f":"IF('TSA Input'!J4757=\"\",\"\",IF(OR('TSA Input'!J4757=\"Yes\",'TSA Input'!J4757=\"Contingent\"),'TSA Input'!F4757,\"\"))","v":""},"","Required","Required"]
["",null,{"$f":"IF('TSA Input'!J4758=\"\",\"\",IF(OR('TSA Input'!J4758=\"Yes\",'TSA Input'!J4758=\"Contingent\"),'TSA Input'!B4758,\"Ineligible\"))","v":""},{"$f":"IF('TSA Input'!J4758=\"\",\"\",IF(OR('TSA Input'!J4758=\"Yes\",'TSA Input'!J4758=\"Contingent\"),'TSA Input'!I4758,\"\"))","v":""},{"$f":"IF('TSA Input'!J4758=\"\",\"\",IF(OR('TSA Input'!J4758=\"Yes\",'TSA Input'!J4758=\"Contingent\"),'TSA Input'!C4758,\"\"))","v":""},{"$f":"IF('TSA Input'!J4758=\"\",\"\",IF(OR('TSA Input'!J4758=\"Yes\",'TSA Input'!J4758=\"Contingent\"),'TSA Input'!D4758,\"\"))","v":""},{"$f":"IF('TSA Input'!J4758=\"\",\"\",IF(OR('TSA Input'!J4758=\"Yes\",'TSA Input'!J4758=\"Contingent\"),'TSA Input'!G4758,\"\"))","v":""},{"$f":"IF('TSA Input'!J4758=\"\",\"\",IF(OR('TSA Input'!J4758=\"Yes\",'TSA Input'!J4758=\"Contingent\"),'TSA Input'!F4758,\"\"))","v":""},"",{"$f":"IF('TSA Input'!J4758=\"\",\"\",IF(OR('TSA Input'!J4758=\"Yes\",'TSA Input'!J4758=\"Contingent\"),'TSA Input'!D4758,\"\"))","v":""},{"$f":"IF('TSA Input'!J4758=\"\",\"\",IF(OR('TSA Input'!J4758=\"Yes\",'TSA Input'!J4758=\"Contingent\"),'TSA Input'!G4758,\"\"))","v":""},{"$f":"IF('TSA Input'!J4758=\"\",\"\",IF(OR('TSA Input'!J4758=\"Yes\",'TSA Input'!J4758=\"Contingent\"),'TSA Input'!F4758,\"\"))","v":""},"","Required","Required"]
["",null,{"$f":"IF('TSA Input'!J4759=\"\",\"\",IF(OR('TSA Input'!J4759=\"Yes\",'TSA Input'!J4759=\"Contingent\"),'TSA Input'!B4759,\"Ineligible\"))","v":""},{"$f":"IF('TSA Input'!J4759=\"\",\"\",IF(OR('TSA Input'!J4759=\"Yes\",'TSA Input'!J4759=\"Contingent\"),'TSA Input'!I4759,\"\"))","v":""},{"$f":"IF('TSA Input'!J4759=\"\",\"\",IF(OR('TSA Input'!J4759=\"Yes\",'TSA Input'!J4759=\"Contingent\"),'TSA Input'!C4759,\"\"))","v":""},{"$f":"IF('TSA Input'!J4759=\"\",\"\",IF(OR('TSA Input'!J4759=\"Yes\",'TSA Input'!J4759=\"Contingent\"),'TSA Input'!D4759,\"\"))","v":""},{"$f":"IF('TSA Input'!J4759=\"\",\"\",IF(OR('TSA Input'!J4759=\"Yes\",'TSA Input'!J4759=\"Contingent\"),'TSA Input'!G4759,\"\"))","v":""},{"$f":"IF('TSA Input'!J4759=\"\",\"\",IF(OR('TSA Input'!J4759=\"Yes\",'TSA Input'!J4759=\"Contingent\"),'TSA Input'!F4759,\"\"))","v":""},"",{"$f":"IF('TSA Input'!J4759=\"\",\"\",IF(OR('TSA Input'!J4759=\"Yes\",'TSA Input'!J4759=\"Contingent\"),'TSA Input'!D4759,\"\"))","v":""},{"$f":"IF('TSA Input'!J4759=\"\",\"\",IF(OR('TSA Input'!J4759=\"Yes\",'TSA Input'!J4759=\"Contingent\"),'TSA Input'!G4759,\"\"))","v":""},{"$f":"IF('TSA Input'!J4759=\"\",\"\",IF(OR('TSA Input'!J4759=\"Yes\",'TSA Input'!J4759=\"Contingent\"),'TSA Input'!F4759,\"\"))","v":""},"","Required","Required"]
["",null,{"$f":"IF('TSA Input'!J4760=\"\",\"\",IF(OR('TSA Input'!J4760=\"Yes\",'TSA Input'!J4760=\"Contingent\"),'TSA Input'!B4760,\"Ineligible\"))","v":""},{"$f":"IF('TSA Input'!J4760=\"\",\"\",IF(OR('TSA Input'!J4760=\"Yes\",'TSA Input'!J4760=\"Contingent\"),'TSA Input'!I4760,\"\"))","v":""},{"$f":"IF('TSA Input'!J4760=\"\",\"\",IF(OR('TSA Input'!J4760=\"Yes\",'TSA Input'!J4760=\"Contingent\"),'TSA Input'!C4760,\"\"))","v":""},{"$f":"IF('TSA Input'!J4760=\"\",\"\",IF(OR('TSA Input'!J4760=\"Yes\",'TSA Input'!J4760=\"Contingent\"),'TSA Input'!D4760,\"\"))","v":""},{"$f":"IF('TSA Input'!J4760=\"\",\"\",IF(OR('TSA Input'!J4760=\"Yes\",'TSA Input'!J4760=\"Contingent\"),'TSA Input'!G4760,\"\"))","v":""},{"$f":"IF('TSA Input'!J4760=\"\",\"\",IF(OR('TSA Input'!J4760=\"Yes\",'TSA Input'!J4760=\"Contingent\"),'TSA Input'!F4760,\"\"))","v":""},"",{"$f":"IF('TSA Input'!J4760=\"\",\"\",IF(OR('TSA Input'!J4760=\"Yes\",'TSA Input'!J4760=\"Contingent\"),'TSA Input'!D4760,\"\"))","v":""},{"$f":"IF('TSA Input'!J4760=\"\",\"\",IF(OR('TSA Input'!J4760=\"Yes\",'TSA Input'!J4760=\"Contingent\"),'TSA Input'!G4760,\"\"))","v":""},{"$f":"IF('TSA Input'!J4760=\"\",\"\",IF(OR('TSA Input'!J4760=\"Yes\",'TSA Input'!J4760=\"Contingent\"),'TSA Input'!F4760,\"\"))","v":""},"","Required","Required"]
["",null,{"$f":"IF('TSA Input'!J4761=\"\",\"\",IF(OR('TSA Input'!J4761=\"Yes\",'TSA Input'!J4761=\"Contingent\"),'TSA Input'!B4761,\"Ineligible\"))","v":""},{"$f":"IF('TSA Input'!J4761=\"\",\"\",IF(OR('TSA Input'!J4761=\"Yes\",'TSA Input'!J4761=\"Contingent\"),'TSA Input'!I4761,\"\"))","v":""},{"$f":"IF('TSA Input'!J4761=\"\",\"\",IF(OR('TSA Input'!J4761=\"Yes\",'TSA Input'!J4761=\"Contingent\"),'TSA Input'!C4761,\"\"))","v":""},{"$f":"IF('TSA Input'!J4761=\"\",\"\",IF(OR('TSA Input'!J4761=\"Yes\",'TSA Input'!J4761=\"Contingent\"),'TSA Input'!D4761,\"\"))","v":""},{"$f":"IF('TSA Input'!J4761=\"\",\"\",IF(OR('TSA Input'!J4761=\"Yes\",'TSA Input'!J4761=\"Contingent\"),'TSA Input'!G4761,\"\"))","v":""},{"$f":"IF('TSA Input'!J4761=\"\",\"\",IF(OR('TSA Input'!J4761=\"Yes\",'TSA Input'!J4761=\"Contingent\"),'TSA Input'!F4761,\"\"))","v":""},"",{"$f":"IF('TSA Input'!J4761=\"\",\"\",IF(OR('TSA Input'!J4761=\"Yes\",'TSA Input'!J4761=\"Contingent\"),'TSA Input'!D4761,\"\"))","v":""},{"$f":"IF('TSA Input'!J4761=\"\",\"\",IF(OR('TSA Input'!J4761=\"Yes\",'TSA Input'!J4761=\"Contingent\"),'TSA Input'!G4761,\"\"))","v":""},{"$f":"IF('TSA Input'!J4761=\"\",\"\",IF(OR('TSA Input'!J4761=\"Yes\",'TSA Input'!J4761=\"Contingent\"),'TSA Input'!F4761,\"\"))","v":""},"","Required","Required"]
["",null,{"$f":"IF('TSA Input'!J4762=\"\",\"\",IF(OR('TSA Input'!J4762=\"Yes\",'TSA Input'!J4762=\"Contingent\"),'TSA Input'!B4762,\"Ineligible\"))","v":""},{"$f":"IF('TSA Input'!J4762=\"\",\"\",IF(OR('TSA Input'!J4762=\"Yes\",'TSA Input'!J4762=\"Contingent\"),'TSA Input'!I4762,\"\"))","v":""},{"$f":"IF('TSA Input'!J4762=\"\",\"\",IF(OR('TSA Input'!J4762=\"Yes\",'TSA Input'!J4762=\"Contingent\"),'TSA Input'!C4762,\"\"))","v":""},{"$f":"IF('TSA Input'!J4762=\"\",\"\",IF(OR('TSA Input'!J4762=\"Yes\",'TSA Input'!J4762=\"Contingent\"),'TSA Input'!D4762,\"\"))","v":""},{"$f":"IF('TSA Input'!J4762=\"\",\"\",IF(OR('TSA Input'!J4762=\"Yes\",'TSA Input'!J4762=\"Contingent\"),'TSA Input'!G4762,\"\"))","v":""},{"$f":"IF('TSA Input'!J4762=\"\",\"\",IF(OR('TSA Input'!J4762=\"Yes\",'TSA Input'!J4762=\"Contingent\"),'TSA Input'!F4762,\"\"))","v":""},"",{"$f":"IF('TSA Input'!J4762=\"\",\"\",IF(OR('TSA Input'!J4762=\"Yes\",'TSA Input'!J4762=\"Contingent\"),'TSA Input'!D4762,\"\"))","v":""},{"$f":"IF('TSA Input'!J4762=\"\",\"\",IF(OR('TSA Input'!J4762=\"Yes\",'TSA Input'!J4762=\"Contingent\"),'TSA Input'!G4762,\"\"))","v":""},{"$f":"IF('TSA Input'!J4762=\"\",\"\",IF(OR('TSA Input'!J4762=\"Yes\",'TSA Input'!J4762=\"Contingent\"),'TSA Input'!F4762,\"\"))","v":""},"","Required","Required"]
["",null,{"$f":"IF('TSA Input'!J4763=\"\",\"\",IF(OR('TSA Input'!J4763=\"Yes\",'TSA Input'!J4763=\"Contingent\"),'TSA Input'!B4763,\"Ineligible\"))","v":""},{"$f":"IF('TSA Input'!J4763=\"\",\"\",IF(OR('TSA Input'!J4763=\"Yes\",'TSA Input'!J4763=\"Contingent\"),'TSA Input'!I4763,\"\"))","v":""},{"$f":"IF('TSA Input'!J4763=\"\",\"\",IF(OR('TSA Input'!J4763=\"Yes\",'TSA Input'!J4763=\"Contingent\"),'TSA Input'!C4763,\"\"))","v":""},{"$f":"IF('TSA Input'!J4763=\"\",\"\",IF(OR('TSA Input'!J4763=\"Yes\",'TSA Input'!J4763=\"Contingent\"),'TSA Input'!D4763,\"\"))","v":""},{"$f":"IF('TSA Input'!J4763=\"\",\"\",IF(OR('TSA Input'!J4763=\"Yes\",'TSA Input'!J4763=\"Contingent\"),'TSA Input'!G4763,\"\"))","v":""},{"$f":"IF('TSA Input'!J4763=\"\",\"\",IF(OR('TSA Input'!J4763=\"Yes\",'TSA Input'!J4763=\"Contingent\"),'TSA Input'!F4763,\"\"))","v":""},"",{"$f":"IF('TSA Input'!J4763=\"\",\"\",IF(OR('TSA Input'!J4763=\"Yes\",'TSA Input'!J4763=\"Contingent\"),'TSA Input'!D4763,\"\"))","v":""},{"$f":"IF('TSA Input'!J4763=\"\",\"\",IF(OR('TSA Input'!J4763=\"Yes\",'TSA Input'!J4763=\"Contingent\"),'TSA Input'!G4763,\"\"))","v":""},{"$f":"IF('TSA Input'!J4763=\"\",\"\",IF(OR('TSA Input'!J4763=\"Yes\",'TSA Input'!J4763=\"Contingent\"),'TSA Input'!F4763,\"\"))","v":""},"","Required","Required"]
["",null,{"$f":"IF('TSA Input'!J4764=\"\",\"\",IF(OR('TSA Input'!J4764=\"Yes\",'TSA Input'!J4764=\"Contingent\"),'TSA Input'!B4764,\"Ineligible\"))","v":""},{"$f":"IF('TSA Input'!J4764=\"\",\"\",IF(OR('TSA Input'!J4764=\"Yes\",'TSA Input'!J4764=\"Contingent\"),'TSA Input'!I4764,\"\"))","v":""},{"$f":"IF('TSA Input'!J4764=\"\",\"\",IF(OR('TSA Input'!J4764=\"Yes\",'TSA Input'!J4764=\"Contingent\"),'TSA Input'!C4764,\"\"))","v":""},{"$f":"IF('TSA Input'!J4764=\"\",\"\",IF(OR('TSA Input'!J4764=\"Yes\",'TSA Input'!J4764=\"Contingent\"),'TSA Input'!D4764,\"\"))","v":""},{"$f":"IF('TSA Input'!J4764=\"\",\"\",IF(OR('TSA Input'!J4764=\"Yes\",'TSA Input'!J4764=\"Contingent\"),'TSA Input'!G4764,\"\"))","v":""},{"$f":"IF('TSA Input'!J4764=\"\",\"\",IF(OR('TSA Input'!J4764=\"Yes\",'TSA Input'!J4764=\"Contingent\"),'TSA Input'!F4764,\"\"))","v":""},"",{"$f":"IF('TSA Input'!J4764=\"\",\"\",IF(OR('TSA Input'!J4764=\"Yes\",'TSA Input'!J4764=\"Contingent\"),'TSA Input'!D4764,\"\"))","v":""},{"$f":"IF('TSA Input'!J4764=\"\",\"\",IF(OR('TSA Input'!J4764=\"Yes\",'TSA Input'!J4764=\"Contingent\"),'TSA Input'!G4764,\"\"))","v":""},{"$f":"IF('TSA Input'!J4764=\"\",\"\",IF(OR('TSA Input'!J4764=\"Yes\",'TSA Input'!J4764=\"Contingent\"),'TSA Input'!F4764,\"\"))","v":""},"","Required","Required"]
["",null,{"$f":"IF('TSA Input'!J4765=\"\",\"\",IF(OR('TSA Input'!J4765=\"Yes\",'TSA Input'!J4765=\"Contingent\"),'TSA Input'!B4765,\"Ineligible\"))","v":""},{"$f":"IF('TSA Input'!J4765=\"\",\"\",IF(OR('TSA Input'!J4765=\"Yes\",'TSA Input'!J4765=\"Contingent\"),'TSA Input'!I4765,\"\"))","v":""},{"$f":"IF('TSA Input'!J4765=\"\",\"\",IF(OR('TSA Input'!J4765=\"Yes\",'TSA Input'!J4765=\"Contingent\"),'TSA Input'!C4765,\"\"))","v":""},{"$f":"IF('TSA Input'!J4765=\"\",\"\",IF(OR('TSA Input'!J4765=\"Yes\",'TSA Input'!J4765=\"Contingent\"),'TSA Input'!D4765,\"\"))","v":""},{"$f":"IF('TSA Input'!J4765=\"\",\"\",IF(OR('TSA Input'!J4765=\"Yes\",'TSA Input'!J4765=\"Contingent\"),'TSA Input'!G4765,\"\"))","v":""},{"$f":"IF('TSA Input'!J4765=\"\",\"\",IF(OR('TSA Input'!J4765=\"Yes\",'TSA Input'!J4765=\"Contingent\"),'TSA Input'!F4765,\"\"))","v":""},"",{"$f":"IF('TSA Input'!J4765=\"\",\"\",IF(OR('TSA Input'!J4765=\"Yes\",'TSA Input'!J4765=\"Contingent\"),'TSA Input'!D4765,\"\"))","v":""},{"$f":"IF('TSA Input'!J4765=\"\",\"\",IF(OR('TSA Input'!J4765=\"Yes\",'TSA Input'!J4765=\"Contingent\"),'TSA Input'!G4765,\"\"))","v":""},{"$f":"IF('TSA Input'!J4765=\"\",\"\",IF(OR('TSA Input'!J4765=\"Yes\",'TSA Input'!J4765=\"Contingent\"),'TSA Input'!F4765,\"\"))","v":""},"","Required","Required"]
["",null,{"$f":"IF('TSA Input'!J4766=\"\",\"\",IF(OR('TSA Input'!J4766=\"Yes\",'TSA Input'!J4766=\"Contingent\"),'TSA Input'!B4766,\"Ineligible\"))","v":""},{"$f":"IF('TSA Input'!J4766=\"\",\"\",IF(OR('TSA Input'!J4766=\"Yes\",'TSA Input'!J4766=\"Contingent\"),'TSA Input'!I4766,\"\"))","v":""},{"$f":"IF('TSA Input'!J4766=\"\",\"\",IF(OR('TSA Input'!J4766=\"Yes\",'TSA Input'!J4766=\"Contingent\"),'TSA Input'!C4766,\"\"))","v":""},{"$f":"IF('TSA Input'!J4766=\"\",\"\",IF(OR('TSA Input'!J4766=\"Yes\",'TSA Input'!J4766=\"Contingent\"),'TSA Input'!D4766,\"\"))","v":""},{"$f":"IF('TSA Input'!J4766=\"\",\"\",IF(OR('TSA Input'!J4766=\"Yes\",'TSA Input'!J4766=\"Contingent\"),'TSA Input'!G4766,\"\"))","v":""},{"$f":"IF('TSA Input'!J4766=\"\",\"\",IF(OR('TSA Input'!J4766=\"Yes\",'TSA Input'!J4766=\"Contingent\"),'TSA Input'!F4766,\"\"))","v":""},"",{"$f":"IF('TSA Input'!J4766=\"\",\"\",IF(OR('TSA Input'!J4766=\"Yes\",'TSA Input'!J4766=\"Contingent\"),'TSA Input'!D4766,\"\"))","v":""},{"$f":"IF('TSA Input'!J4766=\"\",\"\",IF(OR('TSA Input'!J4766=\"Yes\",'TSA Input'!J4766=\"Contingent\"),'TSA Input'!G4766,\"\"))","v":""},{"$f":"IF('TSA Input'!J4766=\"\",\"\",IF(OR('TSA Input'!J4766=\"Yes\",'TSA Input'!J4766=\"Contingent\"),'TSA Input'!F4766,\"\"))","v":""},"","Required","Required"]
["",null,{"$f":"IF('TSA Input'!J4767=\"\",\"\",IF(OR('TSA Input'!J4767=\"Yes\",'TSA Input'!J4767=\"Contingent\"),'TSA Input'!B4767,\"Ineligible\"))","v":""},{"$f":"IF('TSA Input'!J4767=\"\",\"\",IF(OR('TSA Input'!J4767=\"Yes\",'TSA Input'!J4767=\"Contingent\"),'TSA Input'!I4767,\"\"))","v":""},{"$f":"IF('TSA Input'!J4767=\"\",\"\",IF(OR('TSA Input'!J4767=\"Yes\",'TSA Input'!J4767=\"Contingent\"),'TSA Input'!C4767,\"\"))","v":""},{"$f":"IF('TSA Input'!J4767=\"\",\"\",IF(OR('TSA Input'!J4767=\"Yes\",'TSA Input'!J4767=\"Contingent\"),'TSA Input'!D4767,\"\"))","v":""},{"$f":"IF('TSA Input'!J4767=\"\",\"\",IF(OR('TSA Input'!J4767=\"Yes\",'TSA Input'!J4767=\"Contingent\"),'TSA Input'!G4767,\"\"))","v":""},{"$f":"IF('TSA Input'!J4767=\"\",\"\",IF(OR('TSA Input'!J4767=\"Yes\",'TSA Input'!J4767=\"Contingent\"),'TSA Input'!F4767,\"\"))","v":""},"",{"$f":"IF('TSA Input'!J4767=\"\",\"\",IF(OR('TSA Input'!J4767=\"Yes\",'TSA Input'!J4767=\"Contingent\"),'TSA Input'!D4767,\"\"))","v":""},{"$f":"IF('TSA Input'!J4767=\"\",\"\",IF(OR('TSA Input'!J4767=\"Yes\",'TSA Input'!J4767=\"Contingent\"),'TSA Input'!G4767,\"\"))","v":""},{"$f":"IF('TSA Input'!J4767=\"\",\"\",IF(OR('TSA Input'!J4767=\"Yes\",'TSA Input'!J4767=\"Contingent\"),'TSA Input'!F4767,\"\"))","v":""},"","Required","Required"]
["",null,{"$f":"IF('TSA Input'!J4768=\"\",\"\",IF(OR('TSA Input'!J4768=\"Yes\",'TSA Input'!J4768=\"Contingent\"),'TSA Input'!B4768,\"Ineligible\"))","v":""},{"$f":"IF('TSA Input'!J4768=\"\",\"\",IF(OR('TSA Input'!J4768=\"Yes\",'TSA Input'!J4768=\"Contingent\"),'TSA Input'!I4768,\"\"))","v":""},{"$f":"IF('TSA Input'!J4768=\"\",\"\",IF(OR('TSA Input'!J4768=\"Yes\",'TSA Input'!J4768=\"Contingent\"),'TSA Input'!C4768,\"\"))","v":""},{"$f":"IF('TSA Input'!J4768=\"\",\"\",IF(OR('TSA Input'!J4768=\"Yes\",'TSA Input'!J4768=\"Contingent\"),'TSA Input'!D4768,\"\"))","v":""},{"$f":"IF('TSA Input'!J4768=\"\",\"\",IF(OR('TSA Input'!J4768=\"Yes\",'TSA Input'!J4768=\"Contingent\"),'TSA Input'!G4768,\"\"))","v":""},{"$f":"IF('TSA Input'!J4768=\"\",\"\",IF(OR('TSA Input'!J4768=\"Yes\",'TSA Input'!J4768=\"Contingent\"),'TSA Input'!F4768,\"\"))","v":""},"",{"$f":"IF('TSA Input'!J4768=\"\",\"\",IF(OR('TSA Input'!J4768=\"Yes\",'TSA Input'!J4768=\"Contingent\"),'TSA Input'!D4768,\"\"))","v":""},{"$f":"IF('TSA Input'!J4768=\"\",\"\",IF(OR('TSA Input'!J4768=\"Yes\",'TSA Input'!J4768=\"Contingent\"),'TSA Input'!G4768,\"\"))","v":""},{"$f":"IF('TSA Input'!J4768=\"\",\"\",IF(OR('TSA Input'!J4768=\"Yes\",'TSA Input'!J4768=\"Contingent\"),'TSA Input'!F4768,\"\"))","v":""},"","Required","Required"]
["",null,{"$f":"IF('TSA Input'!J4769=\"\",\"\",IF(OR('TSA Input'!J4769=\"Yes\",'TSA Input'!J4769=\"Contingent\"),'TSA Input'!B4769,\"Ineligible\"))","v":""},{"$f":"IF('TSA Input'!J4769=\"\",\"\",IF(OR('TSA Input'!J4769=\"Yes\",'TSA Input'!J4769=\"Contingent\"),'TSA Input'!I4769,\"\"))","v":""},{"$f":"IF('TSA Input'!J4769=\"\",\"\",IF(OR('TSA Input'!J4769=\"Yes\",'TSA Input'!J4769=\"Contingent\"),'TSA Input'!C4769,\"\"))","v":""},{"$f":"IF('TSA Input'!J4769=\"\",\"\",IF(OR('TSA Input'!J4769=\"Yes\",'TSA Input'!J4769=\"Contingent\"),'TSA Input'!D4769,\"\"))","v":""},{"$f":"IF('TSA Input'!J4769=\"\",\"\",IF(OR('TSA Input'!J4769=\"Yes\",'TSA Input'!J4769=\"Contingent\"),'TSA Input'!G4769,\"\"))","v":""},{"$f":"IF('TSA Input'!J4769=\"\",\"\",IF(OR('TSA Input'!J4769=\"Yes\",'TSA Input'!J4769=\"Contingent\"),'TSA Input'!F4769,\"\"))","v":""},"",{"$f":"IF('TSA Input'!J4769=\"\",\"\",IF(OR('TSA Input'!J4769=\"Yes\",'TSA Input'!J4769=\"Contingent\"),'TSA Input'!D4769,\"\"))","v":""},{"$f":"IF('TSA Input'!J4769=\"\",\"\",IF(OR('TSA Input'!J4769=\"Yes\",'TSA Input'!J4769=\"Contingent\"),'TSA Input'!G4769,\"\"))","v":""},{"$f":"IF('TSA Input'!J4769=\"\",\"\",IF(OR('TSA Input'!J4769=\"Yes\",'TSA Input'!J4769=\"Contingent\"),'TSA Input'!F4769,\"\"))","v":""},"","Required","Required"]
["",null,{"$f":"IF('TSA Input'!J4770=\"\",\"\",IF(OR('TSA Input'!J4770=\"Yes\",'TSA Input'!J4770=\"Contingent\"),'TSA Input'!B4770,\"Ineligible\"))","v":""},{"$f":"IF('TSA Input'!J4770=\"\",\"\",IF(OR('TSA Input'!J4770=\"Yes\",'TSA Input'!J4770=\"Contingent\"),'TSA Input'!I4770,\"\"))","v":""},{"$f":"IF('TSA Input'!J4770=\"\",\"\",IF(OR('TSA Input'!J4770=\"Yes\",'TSA Input'!J4770=\"Contingent\"),'TSA Input'!C4770,\"\"))","v":""},{"$f":"IF('TSA Input'!J4770=\"\",\"\",IF(OR('TSA Input'!J4770=\"Yes\",'TSA Input'!J4770=\"Contingent\"),'TSA Input'!D4770,\"\"))","v":""},{"$f":"IF('TSA Input'!J4770=\"\",\"\",IF(OR('TSA Input'!J4770=\"Yes\",'TSA Input'!J4770=\"Contingent\"),'TSA Input'!G4770,\"\"))","v":""},{"$f":"IF('TSA Input'!J4770=\"\",\"\",IF(OR('TSA Input'!J4770=\"Yes\",'TSA Input'!J4770=\"Contingent\"),'TSA Input'!F4770,\"\"))","v":""},"",{"$f":"IF('TSA Input'!J4770=\"\",\"\",IF(OR('TSA Input'!J4770=\"Yes\",'TSA Input'!J4770=\"Contingent\"),'TSA Input'!D4770,\"\"))","v":""},{"$f":"IF('TSA Input'!J4770=\"\",\"\",IF(OR('TSA Input'!J4770=\"Yes\",'TSA Input'!J4770=\"Contingent\"),'TSA Input'!G4770,\"\"))","v":""},{"$f":"IF('TSA Input'!J4770=\"\",\"\",IF(OR('TSA Input'!J4770=\"Yes\",'TSA Input'!J4770=\"Contingent\"),'TSA Input'!F4770,\"\"))","v":""},"","Required","Required"]
["",null,{"$f":"IF('TSA Input'!J4771=\"\",\"\",IF(OR('TSA Input'!J4771=\"Yes\",'TSA Input'!J4771=\"Contingent\"),'TSA Input'!B4771,\"Ineligible\"))","v":""},{"$f":"IF('TSA Input'!J4771=\"\",\"\",IF(OR('TSA Input'!J4771=\"Yes\",'TSA Input'!J4771=\"Contingent\"),'TSA Input'!I4771,\"\"))","v":""},{"$f":"IF('TSA Input'!J4771=\"\",\"\",IF(OR('TSA Input'!J4771=\"Yes\",'TSA Input'!J4771=\"Contingent\"),'TSA Input'!C4771,\"\"))","v":""},{"$f":"IF('TSA Input'!J4771=\"\",\"\",IF(OR('TSA Input'!J4771=\"Yes\",'TSA Input'!J4771=\"Contingent\"),'TSA Input'!D4771,\"\"))","v":""},{"$f":"IF('TSA Input'!J4771=\"\",\"\",IF(OR('TSA Input'!J4771=\"Yes\",'TSA Input'!J4771=\"Contingent\"),'TSA Input'!G4771,\"\"))","v":""},{"$f":"IF('TSA Input'!J4771=\"\",\"\",IF(OR('TSA Input'!J4771=\"Yes\",'TSA Input'!J4771=\"Contingent\"),'TSA Input'!F4771,\"\"))","v":""},"",{"$f":"IF('TSA Input'!J4771=\"\",\"\",IF(OR('TSA Input'!J4771=\"Yes\",'TSA Input'!J4771=\"Contingent\"),'TSA Input'!D4771,\"\"))","v":""},{"$f":"IF('TSA Input'!J4771=\"\",\"\",IF(OR('TSA Input'!J4771=\"Yes\",'TSA Input'!J4771=\"Contingent\"),'TSA Input'!G4771,\"\"))","v":""},{"$f":"IF('TSA Input'!J4771=\"\",\"\",IF(OR('TSA Input'!J4771=\"Yes\",'TSA Input'!J4771=\"Contingent\"),'TSA Input'!F4771,\"\"))","v":""},"","Required","Required"]
["",null,{"$f":"IF('TSA Input'!J4772=\"\",\"\",IF(OR('TSA Input'!J4772=\"Yes\",'TSA Input'!J4772=\"Contingent\"),'TSA Input'!B4772,\"Ineligible\"))","v":""},{"$f":"IF('TSA Input'!J4772=\"\",\"\",IF(OR('TSA Input'!J4772=\"Yes\",'TSA Input'!J4772=\"Contingent\"),'TSA Input'!I4772,\"\"))","v":""},{"$f":"IF('TSA Input'!J4772=\"\",\"\",IF(OR('TSA Input'!J4772=\"Yes\",'TSA Input'!J4772=\"Contingent\"),'TSA Input'!C4772,\"\"))","v":""},{"$f":"IF('TSA Input'!J4772=\"\",\"\",IF(OR('TSA Input'!J4772=\"Yes\",'TSA Input'!J4772=\"Contingent\"),'TSA Input'!D4772,\"\"))","v":""},{"$f":"IF('TSA Input'!J4772=\"\",\"\",IF(OR('TSA Input'!J4772=\"Yes\",'TSA Input'!J4772=\"Contingent\"),'TSA Input'!G4772,\"\"))","v":""},{"$f":"IF('TSA Input'!J4772=\"\",\"\",IF(OR('TSA Input'!J4772=\"Yes\",'TSA Input'!J4772=\"Contingent\"),'TSA Input'!F4772,\"\"))","v":""},"",{"$f":"IF('TSA Input'!J4772=\"\",\"\",IF(OR('TSA Input'!J4772=\"Yes\",'TSA Input'!J4772=\"Contingent\"),'TSA Input'!D4772,\"\"))","v":""},{"$f":"IF('TSA Input'!J4772=\"\",\"\",IF(OR('TSA Input'!J4772=\"Yes\",'TSA Input'!J4772=\"Contingent\"),'TSA Input'!G4772,\"\"))","v":""},{"$f":"IF('TSA Input'!J4772=\"\",\"\",IF(OR('TSA Input'!J4772=\"Yes\",'TSA Input'!J4772=\"Contingent\"),'TSA Input'!F4772,\"\"))","v":""},"","Required","Required"]
["",null,{"$f":"IF('TSA Input'!J4773=\"\",\"\",IF(OR('TSA Input'!J4773=\"Yes\",'TSA Input'!J4773=\"Contingent\"),'TSA Input'!B4773,\"Ineligible\"))","v":""},{"$f":"IF('TSA Input'!J4773=\"\",\"\",IF(OR('TSA Input'!J4773=\"Yes\",'TSA Input'!J4773=\"Contingent\"),'TSA Input'!I4773,\"\"))","v":""},{"$f":"IF('TSA Input'!J4773=\"\",\"\",IF(OR('TSA Input'!J4773=\"Yes\",'TSA Input'!J4773=\"Contingent\"),'TSA Input'!C4773,\"\"))","v":""},{"$f":"IF('TSA Input'!J4773=\"\",\"\",IF(OR('TSA Input'!J4773=\"Yes\",'TSA Input'!J4773=\"Contingent\"),'TSA Input'!D4773,\"\"))","v":""},{"$f":"IF('TSA Input'!J4773=\"\",\"\",IF(OR('TSA Input'!J4773=\"Yes\",'TSA Input'!J4773=\"Contingent\"),'TSA Input'!G4773,\"\"))","v":""},{"$f":"IF('TSA Input'!J4773=\"\",\"\",IF(OR('TSA Input'!J4773=\"Yes\",'TSA Input'!J4773=\"Contingent\"),'TSA Input'!F4773,\"\"))","v":""},"",{"$f":"IF('TSA Input'!J4773=\"\",\"\",IF(OR('TSA Input'!J4773=\"Yes\",'TSA Input'!J4773=\"Contingent\"),'TSA Input'!D4773,\"\"))","v":""},{"$f":"IF('TSA Input'!J4773=\"\",\"\",IF(OR('TSA Input'!J4773=\"Yes\",'TSA Input'!J4773=\"Contingent\"),'TSA Input'!G4773,\"\"))","v":""},{"$f":"IF('TSA Input'!J4773=\"\",\"\",IF(OR('TSA Input'!J4773=\"Yes\",'TSA Input'!J4773=\"Contingent\"),'TSA Input'!F4773,\"\"))","v":""},"","Required","Required"]
["",null,{"$f":"IF('TSA Input'!J4774=\"\",\"\",IF(OR('TSA Input'!J4774=\"Yes\",'TSA Input'!J4774=\"Contingent\"),'TSA Input'!B4774,\"Ineligible\"))","v":""},{"$f":"IF('TSA Input'!J4774=\"\",\"\",IF(OR('TSA Input'!J4774=\"Yes\",'TSA Input'!J4774=\"Contingent\"),'TSA Input'!I4774,\"\"))","v":""},{"$f":"IF('TSA Input'!J4774=\"\",\"\",IF(OR('TSA Input'!J4774=\"Yes\",'TSA Input'!J4774=\"Contingent\"),'TSA Input'!C4774,\"\"))","v":""},{"$f":"IF('TSA Input'!J4774=\"\",\"\",IF(OR('TSA Input'!J4774=\"Yes\",'TSA Input'!J4774=\"Contingent\"),'TSA Input'!D4774,\"\"))","v":""},{"$f":"IF('TSA Input'!J4774=\"\",\"\",IF(OR('TSA Input'!J4774=\"Yes\",'TSA Input'!J4774=\"Contingent\"),'TSA Input'!G4774,\"\"))","v":""},{"$f":"IF('TSA Input'!J4774=\"\",\"\",IF(OR('TSA Input'!J4774=\"Yes\",'TSA Input'!J4774=\"Contingent\"),'TSA Input'!F4774,\"\"))","v":""},"",{"$f":"IF('TSA Input'!J4774=\"\",\"\",IF(OR('TSA Input'!J4774=\"Yes\",'TSA Input'!J4774=\"Contingent\"),'TSA Input'!D4774,\"\"))","v":""},{"$f":"IF('TSA Input'!J4774=\"\",\"\",IF(OR('TSA Input'!J4774=\"Yes\",'TSA Input'!J4774=\"Contingent\"),'TSA Input'!G4774,\"\"))","v":""},{"$f":"IF('TSA Input'!J4774=\"\",\"\",IF(OR('TSA Input'!J4774=\"Yes\",'TSA Input'!J4774=\"Contingent\"),'TSA Input'!F4774,\"\"))","v":""},"","Required","Required"]
["",null,{"$f":"IF('TSA Input'!J4775=\"\",\"\",IF(OR('TSA Input'!J4775=\"Yes\",'TSA Input'!J4775=\"Contingent\"),'TSA Input'!B4775,\"Ineligible\"))","v":""},{"$f":"IF('TSA Input'!J4775=\"\",\"\",IF(OR('TSA Input'!J4775=\"Yes\",'TSA Input'!J4775=\"Contingent\"),'TSA Input'!I4775,\"\"))","v":""},{"$f":"IF('TSA Input'!J4775=\"\",\"\",IF(OR('TSA Input'!J4775=\"Yes\",'TSA Input'!J4775=\"Contingent\"),'TSA Input'!C4775,\"\"))","v":""},{"$f":"IF('TSA Input'!J4775=\"\",\"\",IF(OR('TSA Input'!J4775=\"Yes\",'TSA Input'!J4775=\"Contingent\"),'TSA Input'!D4775,\"\"))","v":""},{"$f":"IF('TSA Input'!J4775=\"\",\"\",IF(OR('TSA Input'!J4775=\"Yes\",'TSA Input'!J4775=\"Contingent\"),'TSA Input'!G4775,\"\"))","v":""},{"$f":"IF('TSA Input'!J4775=\"\",\"\",IF(OR('TSA Input'!J4775=\"Yes\",'TSA Input'!J4775=\"Contingent\"),'TSA Input'!F4775,\"\"))","v":""},"",{"$f":"IF('TSA Input'!J4775=\"\",\"\",IF(OR('TSA Input'!J4775=\"Yes\",'TSA Input'!J4775=\"Contingent\"),'TSA Input'!D4775,\"\"))","v":""},{"$f":"IF('TSA Input'!J4775=\"\",\"\",IF(OR('TSA Input'!J4775=\"Yes\",'TSA Input'!J4775=\"Contingent\"),'TSA Input'!G4775,\"\"))","v":""},{"$f":"IF('TSA Input'!J4775=\"\",\"\",IF(OR('TSA Input'!J4775=\"Yes\",'TSA Input'!J4775=\"Contingent\"),'TSA Input'!F4775,\"\"))","v":""},"","Required","Required"]
["",null,{"$f":"IF('TSA Input'!J4776=\"\",\"\",IF(OR('TSA Input'!J4776=\"Yes\",'TSA Input'!J4776=\"Contingent\"),'TSA Input'!B4776,\"Ineligible\"))","v":""},{"$f":"IF('TSA Input'!J4776=\"\",\"\",IF(OR('TSA Input'!J4776=\"Yes\",'TSA Input'!J4776=\"Contingent\"),'TSA Input'!I4776,\"\"))","v":""},{"$f":"IF('TSA Input'!J4776=\"\",\"\",IF(OR('TSA Input'!J4776=\"Yes\",'TSA Input'!J4776=\"Contingent\"),'TSA Input'!C4776,\"\"))","v":""},{"$f":"IF('TSA Input'!J4776=\"\",\"\",IF(OR('TSA Input'!J4776=\"Yes\",'TSA Input'!J4776=\"Contingent\"),'TSA Input'!D4776,\"\"))","v":""},{"$f":"IF('TSA Input'!J4776=\"\",\"\",IF(OR('TSA Input'!J4776=\"Yes\",'TSA Input'!J4776=\"Contingent\"),'TSA Input'!G4776,\"\"))","v":""},{"$f":"IF('TSA Input'!J4776=\"\",\"\",IF(OR('TSA Input'!J4776=\"Yes\",'TSA Input'!J4776=\"Contingent\"),'TSA Input'!F4776,\"\"))","v":""},"",{"$f":"IF('TSA Input'!J4776=\"\",\"\",IF(OR('TSA Input'!J4776=\"Yes\",'TSA Input'!J4776=\"Contingent\"),'TSA Input'!D4776,\"\"))","v":""},{"$f":"IF('TSA Input'!J4776=\"\",\"\",IF(OR('TSA Input'!J4776=\"Yes\",'TSA Input'!J4776=\"Contingent\"),'TSA Input'!G4776,\"\"))","v":""},{"$f":"IF('TSA Input'!J4776=\"\",\"\",IF(OR('TSA Input'!J4776=\"Yes\",'TSA Input'!J4776=\"Contingent\"),'TSA Input'!F4776,\"\"))","v":""},"","Required","Required"]
["",null,{"$f":"IF('TSA Input'!J4777=\"\",\"\",IF(OR('TSA Input'!J4777=\"Yes\",'TSA Input'!J4777=\"Contingent\"),'TSA Input'!B4777,\"Ineligible\"))","v":""},{"$f":"IF('TSA Input'!J4777=\"\",\"\",IF(OR('TSA Input'!J4777=\"Yes\",'TSA Input'!J4777=\"Contingent\"),'TSA Input'!I4777,\"\"))","v":""},{"$f":"IF('TSA Input'!J4777=\"\",\"\",IF(OR('TSA Input'!J4777=\"Yes\",'TSA Input'!J4777=\"Contingent\"),'TSA Input'!C4777,\"\"))","v":""},{"$f":"IF('TSA Input'!J4777=\"\",\"\",IF(OR('TSA Input'!J4777=\"Yes\",'TSA Input'!J4777=\"Contingent\"),'TSA Input'!D4777,\"\"))","v":""},{"$f":"IF('TSA Input'!J4777=\"\",\"\",IF(OR('TSA Input'!J4777=\"Yes\",'TSA Input'!J4777=\"Contingent\"),'TSA Input'!G4777,\"\"))","v":""},{"$f":"IF('TSA Input'!J4777=\"\",\"\",IF(OR('TSA Input'!J4777=\"Yes\",'TSA Input'!J4777=\"Contingent\"),'TSA Input'!F4777,\"\"))","v":""},"",{"$f":"IF('TSA Input'!J4777=\"\",\"\",IF(OR('TSA Input'!J4777=\"Yes\",'TSA Input'!J4777=\"Contingent\"),'TSA Input'!D4777,\"\"))","v":""},{"$f":"IF('TSA Input'!J4777=\"\",\"\",IF(OR('TSA Input'!J4777=\"Yes\",'TSA Input'!J4777=\"Contingent\"),'TSA Input'!G4777,\"\"))","v":""},{"$f":"IF('TSA Input'!J4777=\"\",\"\",IF(OR('TSA Input'!J4777=\"Yes\",'TSA Input'!J4777=\"Contingent\"),'TSA Input'!F4777,\"\"))","v":""},"","Required","Required"]
["",null,{"$f":"IF('TSA Input'!J4778=\"\",\"\",IF(OR('TSA Input'!J4778=\"Yes\",'TSA Input'!J4778=\"Contingent\"),'TSA Input'!B4778,\"Ineligible\"))","v":""},{"$f":"IF('TSA Input'!J4778=\"\",\"\",IF(OR('TSA Input'!J4778=\"Yes\",'TSA Input'!J4778=\"Contingent\"),'TSA Input'!I4778,\"\"))","v":""},{"$f":"IF('TSA Input'!J4778=\"\",\"\",IF(OR('TSA Input'!J4778=\"Yes\",'TSA Input'!J4778=\"Contingent\"),'TSA Input'!C4778,\"\"))","v":""},{"$f":"IF('TSA Input'!J4778=\"\",\"\",IF(OR('TSA Input'!J4778=\"Yes\",'TSA Input'!J4778=\"Contingent\"),'TSA Input'!D4778,\"\"))","v":""},{"$f":"IF('TSA Input'!J4778=\"\",\"\",IF(OR('TSA Input'!J4778=\"Yes\",'TSA Input'!J4778=\"Contingent\"),'TSA Input'!G4778,\"\"))","v":""},{"$f":"IF('TSA Input'!J4778=\"\",\"\",IF(OR('TSA Input'!J4778=\"Yes\",'TSA Input'!J4778=\"Contingent\"),'TSA Input'!F4778,\"\"))","v":""},"",{"$f":"IF('TSA Input'!J4778=\"\",\"\",IF(OR('TSA Input'!J4778=\"Yes\",'TSA Input'!J4778=\"Contingent\"),'TSA Input'!D4778,\"\"))","v":""},{"$f":"IF('TSA Input'!J4778=\"\",\"\",IF(OR('TSA Input'!J4778=\"Yes\",'TSA Input'!J4778=\"Contingent\"),'TSA Input'!G4778,\"\"))","v":""},{"$f":"IF('TSA Input'!J4778=\"\",\"\",IF(OR('TSA Input'!J4778=\"Yes\",'TSA Input'!J4778=\"Contingent\"),'TSA Input'!F4778,\"\"))","v":""},"","Required","Required"]
["",null,{"$f":"IF('TSA Input'!J4779=\"\",\"\",IF(OR('TSA Input'!J4779=\"Yes\",'TSA Input'!J4779=\"Contingent\"),'TSA Input'!B4779,\"Ineligible\"))","v":""},{"$f":"IF('TSA Input'!J4779=\"\",\"\",IF(OR('TSA Input'!J4779=\"Yes\",'TSA Input'!J4779=\"Contingent\"),'TSA Input'!I4779,\"\"))","v":""},{"$f":"IF('TSA Input'!J4779=\"\",\"\",IF(OR('TSA Input'!J4779=\"Yes\",'TSA Input'!J4779=\"Contingent\"),'TSA Input'!C4779,\"\"))","v":""},{"$f":"IF('TSA Input'!J4779=\"\",\"\",IF(OR('TSA Input'!J4779=\"Yes\",'TSA Input'!J4779=\"Contingent\"),'TSA Input'!D4779,\"\"))","v":""},{"$f":"IF('TSA Input'!J4779=\"\",\"\",IF(OR('TSA Input'!J4779=\"Yes\",'TSA Input'!J4779=\"Contingent\"),'TSA Input'!G4779,\"\"))","v":""},{"$f":"IF('TSA Input'!J4779=\"\",\"\",IF(OR('TSA Input'!J4779=\"Yes\",'TSA Input'!J4779=\"Contingent\"),'TSA Input'!F4779,\"\"))","v":""},"",{"$f":"IF('TSA Input'!J4779=\"\",\"\",IF(OR('TSA Input'!J4779=\"Yes\",'TSA Input'!J4779=\"Contingent\"),'TSA Input'!D4779,\"\"))","v":""},{"$f":"IF('TSA Input'!J4779=\"\",\"\",IF(OR('TSA Input'!J4779=\"Yes\",'TSA Input'!J4779=\"Contingent\"),'TSA Input'!G4779,\"\"))","v":""},{"$f":"IF('TSA Input'!J4779=\"\",\"\",IF(OR('TSA Input'!J4779=\"Yes\",'TSA Input'!J4779=\"Contingent\"),'TSA Input'!F4779,\"\"))","v":""},"","Required","Required"]
["",null,{"$f":"IF('TSA Input'!J4780=\"\",\"\",IF(OR('TSA Input'!J4780=\"Yes\",'TSA Input'!J4780=\"Contingent\"),'TSA Input'!B4780,\"Ineligible\"))","v":""},{"$f":"IF('TSA Input'!J4780=\"\",\"\",IF(OR('TSA Input'!J4780=\"Yes\",'TSA Input'!J4780=\"Contingent\"),'TSA Input'!I4780,\"\"))","v":""},{"$f":"IF('TSA Input'!J4780=\"\",\"\",IF(OR('TSA Input'!J4780=\"Yes\",'TSA Input'!J4780=\"Contingent\"),'TSA Input'!C4780,\"\"))","v":""},{"$f":"IF('TSA Input'!J4780=\"\",\"\",IF(OR('TSA Input'!J4780=\"Yes\",'TSA Input'!J4780=\"Contingent\"),'TSA Input'!D4780,\"\"))","v":""},{"$f":"IF('TSA Input'!J4780=\"\",\"\",IF(OR('TSA Input'!J4780=\"Yes\",'TSA Input'!J4780=\"Contingent\"),'TSA Input'!G4780,\"\"))","v":""},{"$f":"IF('TSA Input'!J4780=\"\",\"\",IF(OR('TSA Input'!J4780=\"Yes\",'TSA Input'!J4780=\"Contingent\"),'TSA Input'!F4780,\"\"))","v":""},"",{"$f":"IF('TSA Input'!J4780=\"\",\"\",IF(OR('TSA Input'!J4780=\"Yes\",'TSA Input'!J4780=\"Contingent\"),'TSA Input'!D4780,\"\"))","v":""},{"$f":"IF('TSA Input'!J4780=\"\",\"\",IF(OR('TSA Input'!J4780=\"Yes\",'TSA Input'!J4780=\"Contingent\"),'TSA Input'!G4780,\"\"))","v":""},{"$f":"IF('TSA Input'!J4780=\"\",\"\",IF(OR('TSA Input'!J4780=\"Yes\",'TSA Input'!J4780=\"Contingent\"),'TSA Input'!F4780,\"\"))","v":""},"","Required","Required"]
["",null,{"$f":"IF('TSA Input'!J4781=\"\",\"\",IF(OR('TSA Input'!J4781=\"Yes\",'TSA Input'!J4781=\"Contingent\"),'TSA Input'!B4781,\"Ineligible\"))","v":""},{"$f":"IF('TSA Input'!J4781=\"\",\"\",IF(OR('TSA Input'!J4781=\"Yes\",'TSA Input'!J4781=\"Contingent\"),'TSA Input'!I4781,\"\"))","v":""},{"$f":"IF('TSA Input'!J4781=\"\",\"\",IF(OR('TSA Input'!J4781=\"Yes\",'TSA Input'!J4781=\"Contingent\"),'TSA Input'!C4781,\"\"))","v":""},{"$f":"IF('TSA Input'!J4781=\"\",\"\",IF(OR('TSA Input'!J4781=\"Yes\",'TSA Input'!J4781=\"Contingent\"),'TSA Input'!D4781,\"\"))","v":""},{"$f":"IF('TSA Input'!J4781=\"\",\"\",IF(OR('TSA Input'!J4781=\"Yes\",'TSA Input'!J4781=\"Contingent\"),'TSA Input'!G4781,\"\"))","v":""},{"$f":"IF('TSA Input'!J4781=\"\",\"\",IF(OR('TSA Input'!J4781=\"Yes\",'TSA Input'!J4781=\"Contingent\"),'TSA Input'!F4781,\"\"))","v":""},"",{"$f":"IF('TSA Input'!J4781=\"\",\"\",IF(OR('TSA Input'!J4781=\"Yes\",'TSA Input'!J4781=\"Contingent\"),'TSA Input'!D4781,\"\"))","v":""},{"$f":"IF('TSA Input'!J4781=\"\",\"\",IF(OR('TSA Input'!J4781=\"Yes\",'TSA Input'!J4781=\"Contingent\"),'TSA Input'!G4781,\"\"))","v":""},{"$f":"IF('TSA Input'!J4781=\"\",\"\",IF(OR('TSA Input'!J4781=\"Yes\",'TSA Input'!J4781=\"Contingent\"),'TSA Input'!F4781,\"\"))","v":""},"","Required","Required"]
["",null,{"$f":"IF('TSA Input'!J4782=\"\",\"\",IF(OR('TSA Input'!J4782=\"Yes\",'TSA Input'!J4782=\"Contingent\"),'TSA Input'!B4782,\"Ineligible\"))","v":""},{"$f":"IF('TSA Input'!J4782=\"\",\"\",IF(OR('TSA Input'!J4782=\"Yes\",'TSA Input'!J4782=\"Contingent\"),'TSA Input'!I4782,\"\"))","v":""},{"$f":"IF('TSA Input'!J4782=\"\",\"\",IF(OR('TSA Input'!J4782=\"Yes\",'TSA Input'!J4782=\"Contingent\"),'TSA Input'!C4782,\"\"))","v":""},{"$f":"IF('TSA Input'!J4782=\"\",\"\",IF(OR('TSA Input'!J4782=\"Yes\",'TSA Input'!J4782=\"Contingent\"),'TSA Input'!D4782,\"\"))","v":""},{"$f":"IF('TSA Input'!J4782=\"\",\"\",IF(OR('TSA Input'!J4782=\"Yes\",'TSA Input'!J4782=\"Contingent\"),'TSA Input'!G4782,\"\"))","v":""},{"$f":"IF('TSA Input'!J4782=\"\",\"\",IF(OR('TSA Input'!J4782=\"Yes\",'TSA Input'!J4782=\"Contingent\"),'TSA Input'!F4782,\"\"))","v":""},"",{"$f":"IF('TSA Input'!J4782=\"\",\"\",IF(OR('TSA Input'!J4782=\"Yes\",'TSA Input'!J4782=\"Contingent\"),'TSA Input'!D4782,\"\"))","v":""},{"$f":"IF('TSA Input'!J4782=\"\",\"\",IF(OR('TSA Input'!J4782=\"Yes\",'TSA Input'!J4782=\"Contingent\"),'TSA Input'!G4782,\"\"))","v":""},{"$f":"IF('TSA Input'!J4782=\"\",\"\",IF(OR('TSA Input'!J4782=\"Yes\",'TSA Input'!J4782=\"Contingent\"),'TSA Input'!F4782,\"\"))","v":""},"","Required","Required"]
["",null,{"$f":"IF('TSA Input'!J4783=\"\",\"\",IF(OR('TSA Input'!J4783=\"Yes\",'TSA Input'!J4783=\"Contingent\"),'TSA Input'!B4783,\"Ineligible\"))","v":""},{"$f":"IF('TSA Input'!J4783=\"\",\"\",IF(OR('TSA Input'!J4783=\"Yes\",'TSA Input'!J4783=\"Contingent\"),'TSA Input'!I4783,\"\"))","v":""},{"$f":"IF('TSA Input'!J4783=\"\",\"\",IF(OR('TSA Input'!J4783=\"Yes\",'TSA Input'!J4783=\"Contingent\"),'TSA Input'!C4783,\"\"))","v":""},{"$f":"IF('TSA Input'!J4783=\"\",\"\",IF(OR('TSA Input'!J4783=\"Yes\",'TSA Input'!J4783=\"Contingent\"),'TSA Input'!D4783,\"\"))","v":""},{"$f":"IF('TSA Input'!J4783=\"\",\"\",IF(OR('TSA Input'!J4783=\"Yes\",'TSA Input'!J4783=\"Contingent\"),'TSA Input'!G4783,\"\"))","v":""},{"$f":"IF('TSA Input'!J4783=\"\",\"\",IF(OR('TSA Input'!J4783=\"Yes\",'TSA Input'!J4783=\"Contingent\"),'TSA Input'!F4783,\"\"))","v":""},"",{"$f":"IF('TSA Input'!J4783=\"\",\"\",IF(OR('TSA Input'!J4783=\"Yes\",'TSA Input'!J4783=\"Contingent\"),'TSA Input'!D4783,\"\"))","v":""},{"$f":"IF('TSA Input'!J4783=\"\",\"\",IF(OR('TSA Input'!J4783=\"Yes\",'TSA Input'!J4783=\"Contingent\"),'TSA Input'!G4783,\"\"))","v":""},{"$f":"IF('TSA Input'!J4783=\"\",\"\",IF(OR('TSA Input'!J4783=\"Yes\",'TSA Input'!J4783=\"Contingent\"),'TSA Input'!F4783,\"\"))","v":""},"","Required","Required"]
["",null,{"$f":"IF('TSA Input'!J4784=\"\",\"\",IF(OR('TSA Input'!J4784=\"Yes\",'TSA Input'!J4784=\"Contingent\"),'TSA Input'!B4784,\"Ineligible\"))","v":""},{"$f":"IF('TSA Input'!J4784=\"\",\"\",IF(OR('TSA Input'!J4784=\"Yes\",'TSA Input'!J4784=\"Contingent\"),'TSA Input'!I4784,\"\"))","v":""},{"$f":"IF('TSA Input'!J4784=\"\",\"\",IF(OR('TSA Input'!J4784=\"Yes\",'TSA Input'!J4784=\"Contingent\"),'TSA Input'!C4784,\"\"))","v":""},{"$f":"IF('TSA Input'!J4784=\"\",\"\",IF(OR('TSA Input'!J4784=\"Yes\",'TSA Input'!J4784=\"Contingent\"),'TSA Input'!D4784,\"\"))","v":""},{"$f":"IF('TSA Input'!J4784=\"\",\"\",IF(OR('TSA Input'!J4784=\"Yes\",'TSA Input'!J4784=\"Contingent\"),'TSA Input'!G4784,\"\"))","v":""},{"$f":"IF('TSA Input'!J4784=\"\",\"\",IF(OR('TSA Input'!J4784=\"Yes\",'TSA Input'!J4784=\"Contingent\"),'TSA Input'!F4784,\"\"))","v":""},"",{"$f":"IF('TSA Input'!J4784=\"\",\"\",IF(OR('TSA Input'!J4784=\"Yes\",'TSA Input'!J4784=\"Contingent\"),'TSA Input'!D4784,\"\"))","v":""},{"$f":"IF('TSA Input'!J4784=\"\",\"\",IF(OR('TSA Input'!J4784=\"Yes\",'TSA Input'!J4784=\"Contingent\"),'TSA Input'!G4784,\"\"))","v":""},{"$f":"IF('TSA Input'!J4784=\"\",\"\",IF(OR('TSA Input'!J4784=\"Yes\",'TSA Input'!J4784=\"Contingent\"),'TSA Input'!F4784,\"\"))","v":""},"","Required","Required"]
["",null,{"$f":"IF('TSA Input'!J4785=\"\",\"\",IF(OR('TSA Input'!J4785=\"Yes\",'TSA Input'!J4785=\"Contingent\"),'TSA Input'!B4785,\"Ineligible\"))","v":""},{"$f":"IF('TSA Input'!J4785=\"\",\"\",IF(OR('TSA Input'!J4785=\"Yes\",'TSA Input'!J4785=\"Contingent\"),'TSA Input'!I4785,\"\"))","v":""},{"$f":"IF('TSA Input'!J4785=\"\",\"\",IF(OR('TSA Input'!J4785=\"Yes\",'TSA Input'!J4785=\"Contingent\"),'TSA Input'!C4785,\"\"))","v":""},{"$f":"IF('TSA Input'!J4785=\"\",\"\",IF(OR('TSA Input'!J4785=\"Yes\",'TSA Input'!J4785=\"Contingent\"),'TSA Input'!D4785,\"\"))","v":""},{"$f":"IF('TSA Input'!J4785=\"\",\"\",IF(OR('TSA Input'!J4785=\"Yes\",'TSA Input'!J4785=\"Contingent\"),'TSA Input'!G4785,\"\"))","v":""},{"$f":"IF('TSA Input'!J4785=\"\",\"\",IF(OR('TSA Input'!J4785=\"Yes\",'TSA Input'!J4785=\"Contingent\"),'TSA Input'!F4785,\"\"))","v":""},"",{"$f":"IF('TSA Input'!J4785=\"\",\"\",IF(OR('TSA Input'!J4785=\"Yes\",'TSA Input'!J4785=\"Contingent\"),'TSA Input'!D4785,\"\"))","v":""},{"$f":"IF('TSA Input'!J4785=\"\",\"\",IF(OR('TSA Input'!J4785=\"Yes\",'TSA Input'!J4785=\"Contingent\"),'TSA Input'!G4785,\"\"))","v":""},{"$f":"IF('TSA Input'!J4785=\"\",\"\",IF(OR('TSA Input'!J4785=\"Yes\",'TSA Input'!J4785=\"Contingent\"),'TSA Input'!F4785,\"\"))","v":""},"","Required","Required"]
["",null,{"$f":"IF('TSA Input'!J4786=\"\",\"\",IF(OR('TSA Input'!J4786=\"Yes\",'TSA Input'!J4786=\"Contingent\"),'TSA Input'!B4786,\"Ineligible\"))","v":""},{"$f":"IF('TSA Input'!J4786=\"\",\"\",IF(OR('TSA Input'!J4786=\"Yes\",'TSA Input'!J4786=\"Contingent\"),'TSA Input'!I4786,\"\"))","v":""},{"$f":"IF('TSA Input'!J4786=\"\",\"\",IF(OR('TSA Input'!J4786=\"Yes\",'TSA Input'!J4786=\"Contingent\"),'TSA Input'!C4786,\"\"))","v":""},{"$f":"IF('TSA Input'!J4786=\"\",\"\",IF(OR('TSA Input'!J4786=\"Yes\",'TSA Input'!J4786=\"Contingent\"),'TSA Input'!D4786,\"\"))","v":""},{"$f":"IF('TSA Input'!J4786=\"\",\"\",IF(OR('TSA Input'!J4786=\"Yes\",'TSA Input'!J4786=\"Contingent\"),'TSA Input'!G4786,\"\"))","v":""},{"$f":"IF('TSA Input'!J4786=\"\",\"\",IF(OR('TSA Input'!J4786=\"Yes\",'TSA Input'!J4786=\"Contingent\"),'TSA Input'!F4786,\"\"))","v":""},"",{"$f":"IF('TSA Input'!J4786=\"\",\"\",IF(OR('TSA Input'!J4786=\"Yes\",'TSA Input'!J4786=\"Contingent\"),'TSA Input'!D4786,\"\"))","v":""},{"$f":"IF('TSA Input'!J4786=\"\",\"\",IF(OR('TSA Input'!J4786=\"Yes\",'TSA Input'!J4786=\"Contingent\"),'TSA Input'!G4786,\"\"))","v":""},{"$f":"IF('TSA Input'!J4786=\"\",\"\",IF(OR('TSA Input'!J4786=\"Yes\",'TSA Input'!J4786=\"Contingent\"),'TSA Input'!F4786,\"\"))","v":""},"","Required","Required"]
["",null,{"$f":"IF('TSA Input'!J4787=\"\",\"\",IF(OR('TSA Input'!J4787=\"Yes\",'TSA Input'!J4787=\"Contingent\"),'TSA Input'!B4787,\"Ineligible\"))","v":""},{"$f":"IF('TSA Input'!J4787=\"\",\"\",IF(OR('TSA Input'!J4787=\"Yes\",'TSA Input'!J4787=\"Contingent\"),'TSA Input'!I4787,\"\"))","v":""},{"$f":"IF('TSA Input'!J4787=\"\",\"\",IF(OR('TSA Input'!J4787=\"Yes\",'TSA Input'!J4787=\"Contingent\"),'TSA Input'!C4787,\"\"))","v":""},{"$f":"IF('TSA Input'!J4787=\"\",\"\",IF(OR('TSA Input'!J4787=\"Yes\",'TSA Input'!J4787=\"Contingent\"),'TSA Input'!D4787,\"\"))","v":""},{"$f":"IF('TSA Input'!J4787=\"\",\"\",IF(OR('TSA Input'!J4787=\"Yes\",'TSA Input'!J4787=\"Contingent\"),'TSA Input'!G4787,\"\"))","v":""},{"$f":"IF('TSA Input'!J4787=\"\",\"\",IF(OR('TSA Input'!J4787=\"Yes\",'TSA Input'!J4787=\"Contingent\"),'TSA Input'!F4787,\"\"))","v":""},"",{"$f":"IF('TSA Input'!J4787=\"\",\"\",IF(OR('TSA Input'!J4787=\"Yes\",'TSA Input'!J4787=\"Contingent\"),'TSA Input'!D4787,\"\"))","v":""},{"$f":"IF('TSA Input'!J4787=\"\",\"\",IF(OR('TSA Input'!J4787=\"Yes\",'TSA Input'!J4787=\"Contingent\"),'TSA Input'!G4787,\"\"))","v":""},{"$f":"IF('TSA Input'!J4787=\"\",\"\",IF(OR('TSA Input'!J4787=\"Yes\",'TSA Input'!J4787=\"Contingent\"),'TSA Input'!F4787,\"\"))","v":""},"","Required","Required"]
["",null,{"$f":"IF('TSA Input'!J4788=\"\",\"\",IF(OR('TSA Input'!J4788=\"Yes\",'TSA Input'!J4788=\"Contingent\"),'TSA Input'!B4788,\"Ineligible\"))","v":""},{"$f":"IF('TSA Input'!J4788=\"\",\"\",IF(OR('TSA Input'!J4788=\"Yes\",'TSA Input'!J4788=\"Contingent\"),'TSA Input'!I4788,\"\"))","v":""},{"$f":"IF('TSA Input'!J4788=\"\",\"\",IF(OR('TSA Input'!J4788=\"Yes\",'TSA Input'!J4788=\"Contingent\"),'TSA Input'!C4788,\"\"))","v":""},{"$f":"IF('TSA Input'!J4788=\"\",\"\",IF(OR('TSA Input'!J4788=\"Yes\",'TSA Input'!J4788=\"Contingent\"),'TSA Input'!D4788,\"\"))","v":""},{"$f":"IF('TSA Input'!J4788=\"\",\"\",IF(OR('TSA Input'!J4788=\"Yes\",'TSA Input'!J4788=\"Contingent\"),'TSA Input'!G4788,\"\"))","v":""},{"$f":"IF('TSA Input'!J4788=\"\",\"\",IF(OR('TSA Input'!J4788=\"Yes\",'TSA Input'!J4788=\"Contingent\"),'TSA Input'!F4788,\"\"))","v":""},"",{"$f":"IF('TSA Input'!J4788=\"\",\"\",IF(OR('TSA Input'!J4788=\"Yes\",'TSA Input'!J4788=\"Contingent\"),'TSA Input'!D4788,\"\"))","v":""},{"$f":"IF('TSA Input'!J4788=\"\",\"\",IF(OR('TSA Input'!J4788=\"Yes\",'TSA Input'!J4788=\"Contingent\"),'TSA Input'!G4788,\"\"))","v":""},{"$f":"IF('TSA Input'!J4788=\"\",\"\",IF(OR('TSA Input'!J4788=\"Yes\",'TSA Input'!J4788=\"Contingent\"),'TSA Input'!F4788,\"\"))","v":""},"","Required","Required"]
["",null,{"$f":"IF('TSA Input'!J4789=\"\",\"\",IF(OR('TSA Input'!J4789=\"Yes\",'TSA Input'!J4789=\"Contingent\"),'TSA Input'!B4789,\"Ineligible\"))","v":""},{"$f":"IF('TSA Input'!J4789=\"\",\"\",IF(OR('TSA Input'!J4789=\"Yes\",'TSA Input'!J4789=\"Contingent\"),'TSA Input'!I4789,\"\"))","v":""},{"$f":"IF('TSA Input'!J4789=\"\",\"\",IF(OR('TSA Input'!J4789=\"Yes\",'TSA Input'!J4789=\"Contingent\"),'TSA Input'!C4789,\"\"))","v":""},{"$f":"IF('TSA Input'!J4789=\"\",\"\",IF(OR('TSA Input'!J4789=\"Yes\",'TSA Input'!J4789=\"Contingent\"),'TSA Input'!D4789,\"\"))","v":""},{"$f":"IF('TSA Input'!J4789=\"\",\"\",IF(OR('TSA Input'!J4789=\"Yes\",'TSA Input'!J4789=\"Contingent\"),'TSA Input'!G4789,\"\"))","v":""},{"$f":"IF('TSA Input'!J4789=\"\",\"\",IF(OR('TSA Input'!J4789=\"Yes\",'TSA Input'!J4789=\"Contingent\"),'TSA Input'!F4789,\"\"))","v":""},"",{"$f":"IF('TSA Input'!J4789=\"\",\"\",IF(OR('TSA Input'!J4789=\"Yes\",'TSA Input'!J4789=\"Contingent\"),'TSA Input'!D4789,\"\"))","v":""},{"$f":"IF('TSA Input'!J4789=\"\",\"\",IF(OR('TSA Input'!J4789=\"Yes\",'TSA Input'!J4789=\"Contingent\"),'TSA Input'!G4789,\"\"))","v":""},{"$f":"IF('TSA Input'!J4789=\"\",\"\",IF(OR('TSA Input'!J4789=\"Yes\",'TSA Input'!J4789=\"Contingent\"),'TSA Input'!F4789,\"\"))","v":""},"","Required","Required"]
["",null,{"$f":"IF('TSA Input'!J4790=\"\",\"\",IF(OR('TSA Input'!J4790=\"Yes\",'TSA Input'!J4790=\"Contingent\"),'TSA Input'!B4790,\"Ineligible\"))","v":""},{"$f":"IF('TSA Input'!J4790=\"\",\"\",IF(OR('TSA Input'!J4790=\"Yes\",'TSA Input'!J4790=\"Contingent\"),'TSA Input'!I4790,\"\"))","v":""},{"$f":"IF('TSA Input'!J4790=\"\",\"\",IF(OR('TSA Input'!J4790=\"Yes\",'TSA Input'!J4790=\"Contingent\"),'TSA Input'!C4790,\"\"))","v":""},{"$f":"IF('TSA Input'!J4790=\"\",\"\",IF(OR('TSA Input'!J4790=\"Yes\",'TSA Input'!J4790=\"Contingent\"),'TSA Input'!D4790,\"\"))","v":""},{"$f":"IF('TSA Input'!J4790=\"\",\"\",IF(OR('TSA Input'!J4790=\"Yes\",'TSA Input'!J4790=\"Contingent\"),'TSA Input'!G4790,\"\"))","v":""},{"$f":"IF('TSA Input'!J4790=\"\",\"\",IF(OR('TSA Input'!J4790=\"Yes\",'TSA Input'!J4790=\"Contingent\"),'TSA Input'!F4790,\"\"))","v":""},"",{"$f":"IF('TSA Input'!J4790=\"\",\"\",IF(OR('TSA Input'!J4790=\"Yes\",'TSA Input'!J4790=\"Contingent\"),'TSA Input'!D4790,\"\"))","v":""},{"$f":"IF('TSA Input'!J4790=\"\",\"\",IF(OR('TSA Input'!J4790=\"Yes\",'TSA Input'!J4790=\"Contingent\"),'TSA Input'!G4790,\"\"))","v":""},{"$f":"IF('TSA Input'!J4790=\"\",\"\",IF(OR('TSA Input'!J4790=\"Yes\",'TSA Input'!J4790=\"Contingent\"),'TSA Input'!F4790,\"\"))","v":""},"","Required","Required"]
["",null,{"$f":"IF('TSA Input'!J4791=\"\",\"\",IF(OR('TSA Input'!J4791=\"Yes\",'TSA Input'!J4791=\"Contingent\"),'TSA Input'!B4791,\"Ineligible\"))","v":""},{"$f":"IF('TSA Input'!J4791=\"\",\"\",IF(OR('TSA Input'!J4791=\"Yes\",'TSA Input'!J4791=\"Contingent\"),'TSA Input'!I4791,\"\"))","v":""},{"$f":"IF('TSA Input'!J4791=\"\",\"\",IF(OR('TSA Input'!J4791=\"Yes\",'TSA Input'!J4791=\"Contingent\"),'TSA Input'!C4791,\"\"))","v":""},{"$f":"IF('TSA Input'!J4791=\"\",\"\",IF(OR('TSA Input'!J4791=\"Yes\",'TSA Input'!J4791=\"Contingent\"),'TSA Input'!D4791,\"\"))","v":""},{"$f":"IF('TSA Input'!J4791=\"\",\"\",IF(OR('TSA Input'!J4791=\"Yes\",'TSA Input'!J4791=\"Contingent\"),'TSA Input'!G4791,\"\"))","v":""},{"$f":"IF('TSA Input'!J4791=\"\",\"\",IF(OR('TSA Input'!J4791=\"Yes\",'TSA Input'!J4791=\"Contingent\"),'TSA Input'!F4791,\"\"))","v":""},"",{"$f":"IF('TSA Input'!J4791=\"\",\"\",IF(OR('TSA Input'!J4791=\"Yes\",'TSA Input'!J4791=\"Contingent\"),'TSA Input'!D4791,\"\"))","v":""},{"$f":"IF('TSA Input'!J4791=\"\",\"\",IF(OR('TSA Input'!J4791=\"Yes\",'TSA Input'!J4791=\"Contingent\"),'TSA Input'!G4791,\"\"))","v":""},{"$f":"IF('TSA Input'!J4791=\"\",\"\",IF(OR('TSA Input'!J4791=\"Yes\",'TSA Input'!J4791=\"Contingent\"),'TSA Input'!F4791,\"\"))","v":""},"","Required","Required"]
["",null,{"$f":"IF('TSA Input'!J4792=\"\",\"\",IF(OR('TSA Input'!J4792=\"Yes\",'TSA Input'!J4792=\"Contingent\"),'TSA Input'!B4792,\"Ineligible\"))","v":""},{"$f":"IF('TSA Input'!J4792=\"\",\"\",IF(OR('TSA Input'!J4792=\"Yes\",'TSA Input'!J4792=\"Contingent\"),'TSA Input'!I4792,\"\"))","v":""},{"$f":"IF('TSA Input'!J4792=\"\",\"\",IF(OR('TSA Input'!J4792=\"Yes\",'TSA Input'!J4792=\"Contingent\"),'TSA Input'!C4792,\"\"))","v":""},{"$f":"IF('TSA Input'!J4792=\"\",\"\",IF(OR('TSA Input'!J4792=\"Yes\",'TSA Input'!J4792=\"Contingent\"),'TSA Input'!D4792,\"\"))","v":""},{"$f":"IF('TSA Input'!J4792=\"\",\"\",IF(OR('TSA Input'!J4792=\"Yes\",'TSA Input'!J4792=\"Contingent\"),'TSA Input'!G4792,\"\"))","v":""},{"$f":"IF('TSA Input'!J4792=\"\",\"\",IF(OR('TSA Input'!J4792=\"Yes\",'TSA Input'!J4792=\"Contingent\"),'TSA Input'!F4792,\"\"))","v":""},"",{"$f":"IF('TSA Input'!J4792=\"\",\"\",IF(OR('TSA Input'!J4792=\"Yes\",'TSA Input'!J4792=\"Contingent\"),'TSA Input'!D4792,\"\"))","v":""},{"$f":"IF('TSA Input'!J4792=\"\",\"\",IF(OR('TSA Input'!J4792=\"Yes\",'TSA Input'!J4792=\"Contingent\"),'TSA Input'!G4792,\"\"))","v":""},{"$f":"IF('TSA Input'!J4792=\"\",\"\",IF(OR('TSA Input'!J4792=\"Yes\",'TSA Input'!J4792=\"Contingent\"),'TSA Input'!F4792,\"\"))","v":""},"","Required","Required"]
["",null,{"$f":"IF('TSA Input'!J4793=\"\",\"\",IF(OR('TSA Input'!J4793=\"Yes\",'TSA Input'!J4793=\"Contingent\"),'TSA Input'!B4793,\"Ineligible\"))","v":""},{"$f":"IF('TSA Input'!J4793=\"\",\"\",IF(OR('TSA Input'!J4793=\"Yes\",'TSA Input'!J4793=\"Contingent\"),'TSA Input'!I4793,\"\"))","v":""},{"$f":"IF('TSA Input'!J4793=\"\",\"\",IF(OR('TSA Input'!J4793=\"Yes\",'TSA Input'!J4793=\"Contingent\"),'TSA Input'!C4793,\"\"))","v":""},{"$f":"IF('TSA Input'!J4793=\"\",\"\",IF(OR('TSA Input'!J4793=\"Yes\",'TSA Input'!J4793=\"Contingent\"),'TSA Input'!D4793,\"\"))","v":""},{"$f":"IF('TSA Input'!J4793=\"\",\"\",IF(OR('TSA Input'!J4793=\"Yes\",'TSA Input'!J4793=\"Contingent\"),'TSA Input'!G4793,\"\"))","v":""},{"$f":"IF('TSA Input'!J4793=\"\",\"\",IF(OR('TSA Input'!J4793=\"Yes\",'TSA Input'!J4793=\"Contingent\"),'TSA Input'!F4793,\"\"))","v":""},"",{"$f":"IF('TSA Input'!J4793=\"\",\"\",IF(OR('TSA Input'!J4793=\"Yes\",'TSA Input'!J4793=\"Contingent\"),'TSA Input'!D4793,\"\"))","v":""},{"$f":"IF('TSA Input'!J4793=\"\",\"\",IF(OR('TSA Input'!J4793=\"Yes\",'TSA Input'!J4793=\"Contingent\"),'TSA Input'!G4793,\"\"))","v":""},{"$f":"IF('TSA Input'!J4793=\"\",\"\",IF(OR('TSA Input'!J4793=\"Yes\",'TSA Input'!J4793=\"Contingent\"),'TSA Input'!F4793,\"\"))","v":""},"","Required","Required"]
["",null,{"$f":"IF('TSA Input'!J4794=\"\",\"\",IF(OR('TSA Input'!J4794=\"Yes\",'TSA Input'!J4794=\"Contingent\"),'TSA Input'!B4794,\"Ineligible\"))","v":""},{"$f":"IF('TSA Input'!J4794=\"\",\"\",IF(OR('TSA Input'!J4794=\"Yes\",'TSA Input'!J4794=\"Contingent\"),'TSA Input'!I4794,\"\"))","v":""},{"$f":"IF('TSA Input'!J4794=\"\",\"\",IF(OR('TSA Input'!J4794=\"Yes\",'TSA Input'!J4794=\"Contingent\"),'TSA Input'!C4794,\"\"))","v":""},{"$f":"IF('TSA Input'!J4794=\"\",\"\",IF(OR('TSA Input'!J4794=\"Yes\",'TSA Input'!J4794=\"Contingent\"),'TSA Input'!D4794,\"\"))","v":""},{"$f":"IF('TSA Input'!J4794=\"\",\"\",IF(OR('TSA Input'!J4794=\"Yes\",'TSA Input'!J4794=\"Contingent\"),'TSA Input'!G4794,\"\"))","v":""},{"$f":"IF('TSA Input'!J4794=\"\",\"\",IF(OR('TSA Input'!J4794=\"Yes\",'TSA Input'!J4794=\"Contingent\"),'TSA Input'!F4794,\"\"))","v":""},"",{"$f":"IF('TSA Input'!J4794=\"\",\"\",IF(OR('TSA Input'!J4794=\"Yes\",'TSA Input'!J4794=\"Contingent\"),'TSA Input'!D4794,\"\"))","v":""},{"$f":"IF('TSA Input'!J4794=\"\",\"\",IF(OR('TSA Input'!J4794=\"Yes\",'TSA Input'!J4794=\"Contingent\"),'TSA Input'!G4794,\"\"))","v":""},{"$f":"IF('TSA Input'!J4794=\"\",\"\",IF(OR('TSA Input'!J4794=\"Yes\",'TSA Input'!J4794=\"Contingent\"),'TSA Input'!F4794,\"\"))","v":""},"","Required","Required"]
["",null,{"$f":"IF('TSA Input'!J4795=\"\",\"\",IF(OR('TSA Input'!J4795=\"Yes\",'TSA Input'!J4795=\"Contingent\"),'TSA Input'!B4795,\"Ineligible\"))","v":""},{"$f":"IF('TSA Input'!J4795=\"\",\"\",IF(OR('TSA Input'!J4795=\"Yes\",'TSA Input'!J4795=\"Contingent\"),'TSA Input'!I4795,\"\"))","v":""},{"$f":"IF('TSA Input'!J4795=\"\",\"\",IF(OR('TSA Input'!J4795=\"Yes\",'TSA Input'!J4795=\"Contingent\"),'TSA Input'!C4795,\"\"))","v":""},{"$f":"IF('TSA Input'!J4795=\"\",\"\",IF(OR('TSA Input'!J4795=\"Yes\",'TSA Input'!J4795=\"Contingent\"),'TSA Input'!D4795,\"\"))","v":""},{"$f":"IF('TSA Input'!J4795=\"\",\"\",IF(OR('TSA Input'!J4795=\"Yes\",'TSA Input'!J4795=\"Contingent\"),'TSA Input'!G4795,\"\"))","v":""},{"$f":"IF('TSA Input'!J4795=\"\",\"\",IF(OR('TSA Input'!J4795=\"Yes\",'TSA Input'!J4795=\"Contingent\"),'TSA Input'!F4795,\"\"))","v":""},"",{"$f":"IF('TSA Input'!J4795=\"\",\"\",IF(OR('TSA Input'!J4795=\"Yes\",'TSA Input'!J4795=\"Contingent\"),'TSA Input'!D4795,\"\"))","v":""},{"$f":"IF('TSA Input'!J4795=\"\",\"\",IF(OR('TSA Input'!J4795=\"Yes\",'TSA Input'!J4795=\"Contingent\"),'TSA Input'!G4795,\"\"))","v":""},{"$f":"IF('TSA Input'!J4795=\"\",\"\",IF(OR('TSA Input'!J4795=\"Yes\",'TSA Input'!J4795=\"Contingent\"),'TSA Input'!F4795,\"\"))","v":""},"","Required","Required"]
["",null,{"$f":"IF('TSA Input'!J4796=\"\",\"\",IF(OR('TSA Input'!J4796=\"Yes\",'TSA Input'!J4796=\"Contingent\"),'TSA Input'!B4796,\"Ineligible\"))","v":""},{"$f":"IF('TSA Input'!J4796=\"\",\"\",IF(OR('TSA Input'!J4796=\"Yes\",'TSA Input'!J4796=\"Contingent\"),'TSA Input'!I4796,\"\"))","v":""},{"$f":"IF('TSA Input'!J4796=\"\",\"\",IF(OR('TSA Input'!J4796=\"Yes\",'TSA Input'!J4796=\"Contingent\"),'TSA Input'!C4796,\"\"))","v":""},{"$f":"IF('TSA Input'!J4796=\"\",\"\",IF(OR('TSA Input'!J4796=\"Yes\",'TSA Input'!J4796=\"Contingent\"),'TSA Input'!D4796,\"\"))","v":""},{"$f":"IF('TSA Input'!J4796=\"\",\"\",IF(OR('TSA Input'!J4796=\"Yes\",'TSA Input'!J4796=\"Contingent\"),'TSA Input'!G4796,\"\"))","v":""},{"$f":"IF('TSA Input'!J4796=\"\",\"\",IF(OR('TSA Input'!J4796=\"Yes\",'TSA Input'!J4796=\"Contingent\"),'TSA Input'!F4796,\"\"))","v":""},"",{"$f":"IF('TSA Input'!J4796=\"\",\"\",IF(OR('TSA Input'!J4796=\"Yes\",'TSA Input'!J4796=\"Contingent\"),'TSA Input'!D4796,\"\"))","v":""},{"$f":"IF('TSA Input'!J4796=\"\",\"\",IF(OR('TSA Input'!J4796=\"Yes\",'TSA Input'!J4796=\"Contingent\"),'TSA Input'!G4796,\"\"))","v":""},{"$f":"IF('TSA Input'!J4796=\"\",\"\",IF(OR('TSA Input'!J4796=\"Yes\",'TSA Input'!J4796=\"Contingent\"),'TSA Input'!F4796,\"\"))","v":""},"","Required","Required"]
["",null,{"$f":"IF('TSA Input'!J4797=\"\",\"\",IF(OR('TSA Input'!J4797=\"Yes\",'TSA Input'!J4797=\"Contingent\"),'TSA Input'!B4797,\"Ineligible\"))","v":""},{"$f":"IF('TSA Input'!J4797=\"\",\"\",IF(OR('TSA Input'!J4797=\"Yes\",'TSA Input'!J4797=\"Contingent\"),'TSA Input'!I4797,\"\"))","v":""},{"$f":"IF('TSA Input'!J4797=\"\",\"\",IF(OR('TSA Input'!J4797=\"Yes\",'TSA Input'!J4797=\"Contingent\"),'TSA Input'!C4797,\"\"))","v":""},{"$f":"IF('TSA Input'!J4797=\"\",\"\",IF(OR('TSA Input'!J4797=\"Yes\",'TSA Input'!J4797=\"Contingent\"),'TSA Input'!D4797,\"\"))","v":""},{"$f":"IF('TSA Input'!J4797=\"\",\"\",IF(OR('TSA Input'!J4797=\"Yes\",'TSA Input'!J4797=\"Contingent\"),'TSA Input'!G4797,\"\"))","v":""},{"$f":"IF('TSA Input'!J4797=\"\",\"\",IF(OR('TSA Input'!J4797=\"Yes\",'TSA Input'!J4797=\"Contingent\"),'TSA Input'!F4797,\"\"))","v":""},"",{"$f":"IF('TSA Input'!J4797=\"\",\"\",IF(OR('TSA Input'!J4797=\"Yes\",'TSA Input'!J4797=\"Contingent\"),'TSA Input'!D4797,\"\"))","v":""},{"$f":"IF('TSA Input'!J4797=\"\",\"\",IF(OR('TSA Input'!J4797=\"Yes\",'TSA Input'!J4797=\"Contingent\"),'TSA Input'!G4797,\"\"))","v":""},{"$f":"IF('TSA Input'!J4797=\"\",\"\",IF(OR('TSA Input'!J4797=\"Yes\",'TSA Input'!J4797=\"Contingent\"),'TSA Input'!F4797,\"\"))","v":""},"","Required","Required"]
["",null,{"$f":"IF('TSA Input'!J4798=\"\",\"\",IF(OR('TSA Input'!J4798=\"Yes\",'TSA Input'!J4798=\"Contingent\"),'TSA Input'!B4798,\"Ineligible\"))","v":""},{"$f":"IF('TSA Input'!J4798=\"\",\"\",IF(OR('TSA Input'!J4798=\"Yes\",'TSA Input'!J4798=\"Contingent\"),'TSA Input'!I4798,\"\"))","v":""},{"$f":"IF('TSA Input'!J4798=\"\",\"\",IF(OR('TSA Input'!J4798=\"Yes\",'TSA Input'!J4798=\"Contingent\"),'TSA Input'!C4798,\"\"))","v":""},{"$f":"IF('TSA Input'!J4798=\"\",\"\",IF(OR('TSA Input'!J4798=\"Yes\",'TSA Input'!J4798=\"Contingent\"),'TSA Input'!D4798,\"\"))","v":""},{"$f":"IF('TSA Input'!J4798=\"\",\"\",IF(OR('TSA Input'!J4798=\"Yes\",'TSA Input'!J4798=\"Contingent\"),'TSA Input'!G4798,\"\"))","v":""},{"$f":"IF('TSA Input'!J4798=\"\",\"\",IF(OR('TSA Input'!J4798=\"Yes\",'TSA Input'!J4798=\"Contingent\"),'TSA Input'!F4798,\"\"))","v":""},"",{"$f":"IF('TSA Input'!J4798=\"\",\"\",IF(OR('TSA Input'!J4798=\"Yes\",'TSA Input'!J4798=\"Contingent\"),'TSA Input'!D4798,\"\"))","v":""},{"$f":"IF('TSA Input'!J4798=\"\",\"\",IF(OR('TSA Input'!J4798=\"Yes\",'TSA Input'!J4798=\"Contingent\"),'TSA Input'!G4798,\"\"))","v":""},{"$f":"IF('TSA Input'!J4798=\"\",\"\",IF(OR('TSA Input'!J4798=\"Yes\",'TSA Input'!J4798=\"Contingent\"),'TSA Input'!F4798,\"\"))","v":""},"","Required","Required"]
["",null,{"$f":"IF('TSA Input'!J4799=\"\",\"\",IF(OR('TSA Input'!J4799=\"Yes\",'TSA Input'!J4799=\"Contingent\"),'TSA Input'!B4799,\"Ineligible\"))","v":""},{"$f":"IF('TSA Input'!J4799=\"\",\"\",IF(OR('TSA Input'!J4799=\"Yes\",'TSA Input'!J4799=\"Contingent\"),'TSA Input'!I4799,\"\"))","v":""},{"$f":"IF('TSA Input'!J4799=\"\",\"\",IF(OR('TSA Input'!J4799=\"Yes\",'TSA Input'!J4799=\"Contingent\"),'TSA Input'!C4799,\"\"))","v":""},{"$f":"IF('TSA Input'!J4799=\"\",\"\",IF(OR('TSA Input'!J4799=\"Yes\",'TSA Input'!J4799=\"Contingent\"),'TSA Input'!D4799,\"\"))","v":""},{"$f":"IF('TSA Input'!J4799=\"\",\"\",IF(OR('TSA Input'!J4799=\"Yes\",'TSA Input'!J4799=\"Contingent\"),'TSA Input'!G4799,\"\"))","v":""},{"$f":"IF('TSA Input'!J4799=\"\",\"\",IF(OR('TSA Input'!J4799=\"Yes\",'TSA Input'!J4799=\"Contingent\"),'TSA Input'!F4799,\"\"))","v":""},"",{"$f":"IF('TSA Input'!J4799=\"\",\"\",IF(OR('TSA Input'!J4799=\"Yes\",'TSA Input'!J4799=\"Contingent\"),'TSA Input'!D4799,\"\"))","v":""},{"$f":"IF('TSA Input'!J4799=\"\",\"\",IF(OR('TSA Input'!J4799=\"Yes\",'TSA Input'!J4799=\"Contingent\"),'TSA Input'!G4799,\"\"))","v":""},{"$f":"IF('TSA Input'!J4799=\"\",\"\",IF(OR('TSA Input'!J4799=\"Yes\",'TSA Input'!J4799=\"Contingent\"),'TSA Input'!F4799,\"\"))","v":""},"","Required","Required"]
["",null,{"$f":"IF('TSA Input'!J4800=\"\",\"\",IF(OR('TSA Input'!J4800=\"Yes\",'TSA Input'!J4800=\"Contingent\"),'TSA Input'!B4800,\"Ineligible\"))","v":""},{"$f":"IF('TSA Input'!J4800=\"\",\"\",IF(OR('TSA Input'!J4800=\"Yes\",'TSA Input'!J4800=\"Contingent\"),'TSA Input'!I4800,\"\"))","v":""},{"$f":"IF('TSA Input'!J4800=\"\",\"\",IF(OR('TSA Input'!J4800=\"Yes\",'TSA Input'!J4800=\"Contingent\"),'TSA Input'!C4800,\"\"))","v":""},{"$f":"IF('TSA Input'!J4800=\"\",\"\",IF(OR('TSA Input'!J4800=\"Yes\",'TSA Input'!J4800=\"Contingent\"),'TSA Input'!D4800,\"\"))","v":""},{"$f":"IF('TSA Input'!J4800=\"\",\"\",IF(OR('TSA Input'!J4800=\"Yes\",'TSA Input'!J4800=\"Contingent\"),'TSA Input'!G4800,\"\"))","v":""},{"$f":"IF('TSA Input'!J4800=\"\",\"\",IF(OR('TSA Input'!J4800=\"Yes\",'TSA Input'!J4800=\"Contingent\"),'TSA Input'!F4800,\"\"))","v":""},"",{"$f":"IF('TSA Input'!J4800=\"\",\"\",IF(OR('TSA Input'!J4800=\"Yes\",'TSA Input'!J4800=\"Contingent\"),'TSA Input'!D4800,\"\"))","v":""},{"$f":"IF('TSA Input'!J4800=\"\",\"\",IF(OR('TSA Input'!J4800=\"Yes\",'TSA Input'!J4800=\"Contingent\"),'TSA Input'!G4800,\"\"))","v":""},{"$f":"IF('TSA Input'!J4800=\"\",\"\",IF(OR('TSA Input'!J4800=\"Yes\",'TSA Input'!J4800=\"Contingent\"),'TSA Input'!F4800,\"\"))","v":""},"","Required","Required"]
["",null,{"$f":"IF('TSA Input'!J4801=\"\",\"\",IF(OR('TSA Input'!J4801=\"Yes\",'TSA Input'!J4801=\"Contingent\"),'TSA Input'!B4801,\"Ineligible\"))","v":""},{"$f":"IF('TSA Input'!J4801=\"\",\"\",IF(OR('TSA Input'!J4801=\"Yes\",'TSA Input'!J4801=\"Contingent\"),'TSA Input'!I4801,\"\"))","v":""},{"$f":"IF('TSA Input'!J4801=\"\",\"\",IF(OR('TSA Input'!J4801=\"Yes\",'TSA Input'!J4801=\"Contingent\"),'TSA Input'!C4801,\"\"))","v":""},{"$f":"IF('TSA Input'!J4801=\"\",\"\",IF(OR('TSA Input'!J4801=\"Yes\",'TSA Input'!J4801=\"Contingent\"),'TSA Input'!D4801,\"\"))","v":""},{"$f":"IF('TSA Input'!J4801=\"\",\"\",IF(OR('TSA Input'!J4801=\"Yes\",'TSA Input'!J4801=\"Contingent\"),'TSA Input'!G4801,\"\"))","v":""},{"$f":"IF('TSA Input'!J4801=\"\",\"\",IF(OR('TSA Input'!J4801=\"Yes\",'TSA Input'!J4801=\"Contingent\"),'TSA Input'!F4801,\"\"))","v":""},"",{"$f":"IF('TSA Input'!J4801=\"\",\"\",IF(OR('TSA Input'!J4801=\"Yes\",'TSA Input'!J4801=\"Contingent\"),'TSA Input'!D4801,\"\"))","v":""},{"$f":"IF('TSA Input'!J4801=\"\",\"\",IF(OR('TSA Input'!J4801=\"Yes\",'TSA Input'!J4801=\"Contingent\"),'TSA Input'!G4801,\"\"))","v":""},{"$f":"IF('TSA Input'!J4801=\"\",\"\",IF(OR('TSA Input'!J4801=\"Yes\",'TSA Input'!J4801=\"Contingent\"),'TSA Input'!F4801,\"\"))","v":""},"","Required","Required"]
["",null,{"$f":"IF('TSA Input'!J4802=\"\",\"\",IF(OR('TSA Input'!J4802=\"Yes\",'TSA Input'!J4802=\"Contingent\"),'TSA Input'!B4802,\"Ineligible\"))","v":""},{"$f":"IF('TSA Input'!J4802=\"\",\"\",IF(OR('TSA Input'!J4802=\"Yes\",'TSA Input'!J4802=\"Contingent\"),'TSA Input'!I4802,\"\"))","v":""},{"$f":"IF('TSA Input'!J4802=\"\",\"\",IF(OR('TSA Input'!J4802=\"Yes\",'TSA Input'!J4802=\"Contingent\"),'TSA Input'!C4802,\"\"))","v":""},{"$f":"IF('TSA Input'!J4802=\"\",\"\",IF(OR('TSA Input'!J4802=\"Yes\",'TSA Input'!J4802=\"Contingent\"),'TSA Input'!D4802,\"\"))","v":""},{"$f":"IF('TSA Input'!J4802=\"\",\"\",IF(OR('TSA Input'!J4802=\"Yes\",'TSA Input'!J4802=\"Contingent\"),'TSA Input'!G4802,\"\"))","v":""},{"$f":"IF('TSA Input'!J4802=\"\",\"\",IF(OR('TSA Input'!J4802=\"Yes\",'TSA Input'!J4802=\"Contingent\"),'TSA Input'!F4802,\"\"))","v":""},"",{"$f":"IF('TSA Input'!J4802=\"\",\"\",IF(OR('TSA Input'!J4802=\"Yes\",'TSA Input'!J4802=\"Contingent\"),'TSA Input'!D4802,\"\"))","v":""},{"$f":"IF('TSA Input'!J4802=\"\",\"\",IF(OR('TSA Input'!J4802=\"Yes\",'TSA Input'!J4802=\"Contingent\"),'TSA Input'!G4802,\"\"))","v":""},{"$f":"IF('TSA Input'!J4802=\"\",\"\",IF(OR('TSA Input'!J4802=\"Yes\",'TSA Input'!J4802=\"Contingent\"),'TSA Input'!F4802,\"\"))","v":""},"","Required","Required"]
["",null,{"$f":"IF('TSA Input'!J4803=\"\",\"\",IF(OR('TSA Input'!J4803=\"Yes\",'TSA Input'!J4803=\"Contingent\"),'TSA Input'!B4803,\"Ineligible\"))","v":""},{"$f":"IF('TSA Input'!J4803=\"\",\"\",IF(OR('TSA Input'!J4803=\"Yes\",'TSA Input'!J4803=\"Contingent\"),'TSA Input'!I4803,\"\"))","v":""},{"$f":"IF('TSA Input'!J4803=\"\",\"\",IF(OR('TSA Input'!J4803=\"Yes\",'TSA Input'!J4803=\"Contingent\"),'TSA Input'!C4803,\"\"))","v":""},{"$f":"IF('TSA Input'!J4803=\"\",\"\",IF(OR('TSA Input'!J4803=\"Yes\",'TSA Input'!J4803=\"Contingent\"),'TSA Input'!D4803,\"\"))","v":""},{"$f":"IF('TSA Input'!J4803=\"\",\"\",IF(OR('TSA Input'!J4803=\"Yes\",'TSA Input'!J4803=\"Contingent\"),'TSA Input'!G4803,\"\"))","v":""},{"$f":"IF('TSA Input'!J4803=\"\",\"\",IF(OR('TSA Input'!J4803=\"Yes\",'TSA Input'!J4803=\"Contingent\"),'TSA Input'!F4803,\"\"))","v":""},"",{"$f":"IF('TSA Input'!J4803=\"\",\"\",IF(OR('TSA Input'!J4803=\"Yes\",'TSA Input'!J4803=\"Contingent\"),'TSA Input'!D4803,\"\"))","v":""},{"$f":"IF('TSA Input'!J4803=\"\",\"\",IF(OR('TSA Input'!J4803=\"Yes\",'TSA Input'!J4803=\"Contingent\"),'TSA Input'!G4803,\"\"))","v":""},{"$f":"IF('TSA Input'!J4803=\"\",\"\",IF(OR('TSA Input'!J4803=\"Yes\",'TSA Input'!J4803=\"Contingent\"),'TSA Input'!F4803,\"\"))","v":""},"","Required","Required"]
["",null,{"$f":"IF('TSA Input'!J4804=\"\",\"\",IF(OR('TSA Input'!J4804=\"Yes\",'TSA Input'!J4804=\"Contingent\"),'TSA Input'!B4804,\"Ineligible\"))","v":""},{"$f":"IF('TSA Input'!J4804=\"\",\"\",IF(OR('TSA Input'!J4804=\"Yes\",'TSA Input'!J4804=\"Contingent\"),'TSA Input'!I4804,\"\"))","v":""},{"$f":"IF('TSA Input'!J4804=\"\",\"\",IF(OR('TSA Input'!J4804=\"Yes\",'TSA Input'!J4804=\"Contingent\"),'TSA Input'!C4804,\"\"))","v":""},{"$f":"IF('TSA Input'!J4804=\"\",\"\",IF(OR('TSA Input'!J4804=\"Yes\",'TSA Input'!J4804=\"Contingent\"),'TSA Input'!D4804,\"\"))","v":""},{"$f":"IF('TSA Input'!J4804=\"\",\"\",IF(OR('TSA Input'!J4804=\"Yes\",'TSA Input'!J4804=\"Contingent\"),'TSA Input'!G4804,\"\"))","v":""},{"$f":"IF('TSA Input'!J4804=\"\",\"\",IF(OR('TSA Input'!J4804=\"Yes\",'TSA Input'!J4804=\"Contingent\"),'TSA Input'!F4804,\"\"))","v":""},{"$f":"IF($C4842=\"\",\"\",SUM(F4842:H4842))","v":""},{"$f":"IF('TSA Input'!J4804=\"\",\"\",IF(OR('TSA Input'!J4804=\"Yes\",'TSA Input'!J4804=\"Contingent\"),'TSA Input'!D4804,\"\"))","v":""},{"$f":"IF('TSA Input'!J4804=\"\",\"\",IF(OR('TSA Input'!J4804=\"Yes\",'TSA Input'!J4804=\"Contingent\"),'TSA Input'!G4804,\"\"))","v":""},{"$f":"IF('TSA Input'!J4804=\"\",\"\",IF(OR('TSA Input'!J4804=\"Yes\",'TSA Input'!J4804=\"Contingent\"),'TSA Input'!F4804,\"\"))","v":""},{"$f":"IF($C4842=\"\",\"\",SUM(J4842:L4842))","v":""},"Required","Required"]
["",null,{"$f":"IF('TSA Input'!J4805=\"\",\"\",IF(OR('TSA Input'!J4805=\"Yes\",'TSA Input'!J4805=\"Contingent\"),'TSA Input'!B4805,\"Ineligible\"))","v":""},{"$f":"IF('TSA Input'!J4805=\"\",\"\",IF(OR('TSA Input'!J4805=\"Yes\",'TSA Input'!J4805=\"Contingent\"),'TSA Input'!I4805,\"\"))","v":""},{"$f":"IF('TSA Input'!J4805=\"\",\"\",IF(OR('TSA Input'!J4805=\"Yes\",'TSA Input'!J4805=\"Contingent\"),'TSA Input'!C4805,\"\"))","v":""},{"$f":"IF('TSA Input'!J4805=\"\",\"\",IF(OR('TSA Input'!J4805=\"Yes\",'TSA Input'!J4805=\"Contingent\"),'TSA Input'!D4805,\"\"))","v":""},{"$f":"IF('TSA Input'!J4805=\"\",\"\",IF(OR('TSA Input'!J4805=\"Yes\",'TSA Input'!J4805=\"Contingent\"),'TSA Input'!G4805,\"\"))","v":""},{"$f":"IF('TSA Input'!J4805=\"\",\"\",IF(OR('TSA Input'!J4805=\"Yes\",'TSA Input'!J4805=\"Contingent\"),'TSA Input'!F4805,\"\"))","v":""},"",{"$f":"IF('TSA Input'!J4805=\"\",\"\",IF(OR('TSA Input'!J4805=\"Yes\",'TSA Input'!J4805=\"Contingent\"),'TSA Input'!D4805,\"\"))","v":""},{"$f":"IF('TSA Input'!J4805=\"\",\"\",IF(OR('TSA Input'!J4805=\"Yes\",'TSA Input'!J4805=\"Contingent\"),'TSA Input'!G4805,\"\"))","v":""},{"$f":"IF('TSA Input'!J4805=\"\",\"\",IF(OR('TSA Input'!J4805=\"Yes\",'TSA Input'!J4805=\"Contingent\"),'TSA Input'!F4805,\"\"))","v":""},"","Required","Required"]
["",null,{"$f":"IF('TSA Input'!J4806=\"\",\"\",IF(OR('TSA Input'!J4806=\"Yes\",'TSA Input'!J4806=\"Contingent\"),'TSA Input'!B4806,\"Ineligible\"))","v":""},{"$f":"IF('TSA Input'!J4806=\"\",\"\",IF(OR('TSA Input'!J4806=\"Yes\",'TSA Input'!J4806=\"Contingent\"),'TSA Input'!I4806,\"\"))","v":""},{"$f":"IF('TSA Input'!J4806=\"\",\"\",IF(OR('TSA Input'!J4806=\"Yes\",'TSA Input'!J4806=\"Contingent\"),'TSA Input'!C4806,\"\"))","v":""},{"$f":"IF('TSA Input'!J4806=\"\",\"\",IF(OR('TSA Input'!J4806=\"Yes\",'TSA Input'!J4806=\"Contingent\"),'TSA Input'!D4806,\"\"))","v":""},{"$f":"IF('TSA Input'!J4806=\"\",\"\",IF(OR('TSA Input'!J4806=\"Yes\",'TSA Input'!J4806=\"Contingent\"),'TSA Input'!G4806,\"\"))","v":""},{"$f":"IF('TSA Input'!J4806=\"\",\"\",IF(OR('TSA Input'!J4806=\"Yes\",'TSA Input'!J4806=\"Contingent\"),'TSA Input'!F4806,\"\"))","v":""},"",{"$f":"IF('TSA Input'!J4806=\"\",\"\",IF(OR('TSA Input'!J4806=\"Yes\",'TSA Input'!J4806=\"Contingent\"),'TSA Input'!D4806,\"\"))","v":""},{"$f":"IF('TSA Input'!J4806=\"\",\"\",IF(OR('TSA Input'!J4806=\"Yes\",'TSA Input'!J4806=\"Contingent\"),'TSA Input'!G4806,\"\"))","v":""},{"$f":"IF('TSA Input'!J4806=\"\",\"\",IF(OR('TSA Input'!J4806=\"Yes\",'TSA Input'!J4806=\"Contingent\"),'TSA Input'!F4806,\"\"))","v":""},"","Required","Required"]
["",null,{"$f":"IF('TSA Input'!J4807=\"\",\"\",IF(OR('TSA Input'!J4807=\"Yes\",'TSA Input'!J4807=\"Contingent\"),'TSA Input'!B4807,\"Ineligible\"))","v":""},{"$f":"IF('TSA Input'!J4807=\"\",\"\",IF(OR('TSA Input'!J4807=\"Yes\",'TSA Input'!J4807=\"Contingent\"),'TSA Input'!I4807,\"\"))","v":""},{"$f":"IF('TSA Input'!J4807=\"\",\"\",IF(OR('TSA Input'!J4807=\"Yes\",'TSA Input'!J4807=\"Contingent\"),'TSA Input'!C4807,\"\"))","v":""},{"$f":"IF('TSA Input'!J4807=\"\",\"\",IF(OR('TSA Input'!J4807=\"Yes\",'TSA Input'!J4807=\"Contingent\"),'TSA Input'!D4807,\"\"))","v":""},{"$f":"IF('TSA Input'!J4807=\"\",\"\",IF(OR('TSA Input'!J4807=\"Yes\",'TSA Input'!J4807=\"Contingent\"),'TSA Input'!G4807,\"\"))","v":""},{"$f":"IF('TSA Input'!J4807=\"\",\"\",IF(OR('TSA Input'!J4807=\"Yes\",'TSA Input'!J4807=\"Contingent\"),'TSA Input'!F4807,\"\"))","v":""},"",{"$f":"IF('TSA Input'!J4807=\"\",\"\",IF(OR('TSA Input'!J4807=\"Yes\",'TSA Input'!J4807=\"Contingent\"),'TSA Input'!D4807,\"\"))","v":""},{"$f":"IF('TSA Input'!J4807=\"\",\"\",IF(OR('TSA Input'!J4807=\"Yes\",'TSA Input'!J4807=\"Contingent\"),'TSA Input'!G4807,\"\"))","v":""},{"$f":"IF('TSA Input'!J4807=\"\",\"\",IF(OR('TSA Input'!J4807=\"Yes\",'TSA Input'!J4807=\"Contingent\"),'TSA Input'!F4807,\"\"))","v":""},"","Required","Required"]
["",null,{"$f":"IF('TSA Input'!J4808=\"\",\"\",IF(OR('TSA Input'!J4808=\"Yes\",'TSA Input'!J4808=\"Contingent\"),'TSA Input'!B4808,\"Ineligible\"))","v":""},{"$f":"IF('TSA Input'!J4808=\"\",\"\",IF(OR('TSA Input'!J4808=\"Yes\",'TSA Input'!J4808=\"Contingent\"),'TSA Input'!I4808,\"\"))","v":""},{"$f":"IF('TSA Input'!J4808=\"\",\"\",IF(OR('TSA Input'!J4808=\"Yes\",'TSA Input'!J4808=\"Contingent\"),'TSA Input'!C4808,\"\"))","v":""},{"$f":"IF('TSA Input'!J4808=\"\",\"\",IF(OR('TSA Input'!J4808=\"Yes\",'TSA Input'!J4808=\"Contingent\"),'TSA Input'!D4808,\"\"))","v":""},{"$f":"IF('TSA Input'!J4808=\"\",\"\",IF(OR('TSA Input'!J4808=\"Yes\",'TSA Input'!J4808=\"Contingent\"),'TSA Input'!G4808,\"\"))","v":""},{"$f":"IF('TSA Input'!J4808=\"\",\"\",IF(OR('TSA Input'!J4808=\"Yes\",'TSA Input'!J4808=\"Contingent\"),'TSA Input'!F4808,\"\"))","v":""},"",{"$f":"IF('TSA Input'!J4808=\"\",\"\",IF(OR('TSA Input'!J4808=\"Yes\",'TSA Input'!J4808=\"Contingent\"),'TSA Input'!D4808,\"\"))","v":""},{"$f":"IF('TSA Input'!J4808=\"\",\"\",IF(OR('TSA Input'!J4808=\"Yes\",'TSA Input'!J4808=\"Contingent\"),'TSA Input'!G4808,\"\"))","v":""},{"$f":"IF('TSA Input'!J4808=\"\",\"\",IF(OR('TSA Input'!J4808=\"Yes\",'TSA Input'!J4808=\"Contingent\"),'TSA Input'!F4808,\"\"))","v":""},"","Required","Required"]
["",null,{"$f":"IF('TSA Input'!J4809=\"\",\"\",IF(OR('TSA Input'!J4809=\"Yes\",'TSA Input'!J4809=\"Contingent\"),'TSA Input'!B4809,\"Ineligible\"))","v":""},{"$f":"IF('TSA Input'!J4809=\"\",\"\",IF(OR('TSA Input'!J4809=\"Yes\",'TSA Input'!J4809=\"Contingent\"),'TSA Input'!I4809,\"\"))","v":""},{"$f":"IF('TSA Input'!J4809=\"\",\"\",IF(OR('TSA Input'!J4809=\"Yes\",'TSA Input'!J4809=\"Contingent\"),'TSA Input'!C4809,\"\"))","v":""},{"$f":"IF('TSA Input'!J4809=\"\",\"\",IF(OR('TSA Input'!J4809=\"Yes\",'TSA Input'!J4809=\"Contingent\"),'TSA Input'!D4809,\"\"))","v":""},{"$f":"IF('TSA Input'!J4809=\"\",\"\",IF(OR('TSA Input'!J4809=\"Yes\",'TSA Input'!J4809=\"Contingent\"),'TSA Input'!G4809,\"\"))","v":""},{"$f":"IF('TSA Input'!J4809=\"\",\"\",IF(OR('TSA Input'!J4809=\"Yes\",'TSA Input'!J4809=\"Contingent\"),'TSA Input'!F4809,\"\"))","v":""},"",{"$f":"IF('TSA Input'!J4809=\"\",\"\",IF(OR('TSA Input'!J4809=\"Yes\",'TSA Input'!J4809=\"Contingent\"),'TSA Input'!D4809,\"\"))","v":""},{"$f":"IF('TSA Input'!J4809=\"\",\"\",IF(OR('TSA Input'!J4809=\"Yes\",'TSA Input'!J4809=\"Contingent\"),'TSA Input'!G4809,\"\"))","v":""},{"$f":"IF('TSA Input'!J4809=\"\",\"\",IF(OR('TSA Input'!J4809=\"Yes\",'TSA Input'!J4809=\"Contingent\"),'TSA Input'!F4809,\"\"))","v":""},"","Required","Required"]
["",null,{"$f":"IF('TSA Input'!J4810=\"\",\"\",IF(OR('TSA Input'!J4810=\"Yes\",'TSA Input'!J4810=\"Contingent\"),'TSA Input'!B4810,\"Ineligible\"))","v":""},{"$f":"IF('TSA Input'!J4810=\"\",\"\",IF(OR('TSA Input'!J4810=\"Yes\",'TSA Input'!J4810=\"Contingent\"),'TSA Input'!I4810,\"\"))","v":""},{"$f":"IF('TSA Input'!J4810=\"\",\"\",IF(OR('TSA Input'!J4810=\"Yes\",'TSA Input'!J4810=\"Contingent\"),'TSA Input'!C4810,\"\"))","v":""},{"$f":"IF('TSA Input'!J4810=\"\",\"\",IF(OR('TSA Input'!J4810=\"Yes\",'TSA Input'!J4810=\"Contingent\"),'TSA Input'!D4810,\"\"))","v":""},{"$f":"IF('TSA Input'!J4810=\"\",\"\",IF(OR('TSA Input'!J4810=\"Yes\",'TSA Input'!J4810=\"Contingent\"),'TSA Input'!G4810,\"\"))","v":""},{"$f":"IF('TSA Input'!J4810=\"\",\"\",IF(OR('TSA Input'!J4810=\"Yes\",'TSA Input'!J4810=\"Contingent\"),'TSA Input'!F4810,\"\"))","v":""},"",{"$f":"IF('TSA Input'!J4810=\"\",\"\",IF(OR('TSA Input'!J4810=\"Yes\",'TSA Input'!J4810=\"Contingent\"),'TSA Input'!D4810,\"\"))","v":""},{"$f":"IF('TSA Input'!J4810=\"\",\"\",IF(OR('TSA Input'!J4810=\"Yes\",'TSA Input'!J4810=\"Contingent\"),'TSA Input'!G4810,\"\"))","v":""},{"$f":"IF('TSA Input'!J4810=\"\",\"\",IF(OR('TSA Input'!J4810=\"Yes\",'TSA Input'!J4810=\"Contingent\"),'TSA Input'!F4810,\"\"))","v":""},"","Required","Required"]
["",null,{"$f":"IF('TSA Input'!J4811=\"\",\"\",IF(OR('TSA Input'!J4811=\"Yes\",'TSA Input'!J4811=\"Contingent\"),'TSA Input'!B4811,\"Ineligible\"))","v":""},{"$f":"IF('TSA Input'!J4811=\"\",\"\",IF(OR('TSA Input'!J4811=\"Yes\",'TSA Input'!J4811=\"Contingent\"),'TSA Input'!I4811,\"\"))","v":""},{"$f":"IF('TSA Input'!J4811=\"\",\"\",IF(OR('TSA Input'!J4811=\"Yes\",'TSA Input'!J4811=\"Contingent\"),'TSA Input'!C4811,\"\"))","v":""},{"$f":"IF('TSA Input'!J4811=\"\",\"\",IF(OR('TSA Input'!J4811=\"Yes\",'TSA Input'!J4811=\"Contingent\"),'TSA Input'!D4811,\"\"))","v":""},{"$f":"IF('TSA Input'!J4811=\"\",\"\",IF(OR('TSA Input'!J4811=\"Yes\",'TSA Input'!J4811=\"Contingent\"),'TSA Input'!G4811,\"\"))","v":""},{"$f":"IF('TSA Input'!J4811=\"\",\"\",IF(OR('TSA Input'!J4811=\"Yes\",'TSA Input'!J4811=\"Contingent\"),'TSA Input'!F4811,\"\"))","v":""},"",{"$f":"IF('TSA Input'!J4811=\"\",\"\",IF(OR('TSA Input'!J4811=\"Yes\",'TSA Input'!J4811=\"Contingent\"),'TSA Input'!D4811,\"\"))","v":""},{"$f":"IF('TSA Input'!J4811=\"\",\"\",IF(OR('TSA Input'!J4811=\"Yes\",'TSA Input'!J4811=\"Contingent\"),'TSA Input'!G4811,\"\"))","v":""},{"$f":"IF('TSA Input'!J4811=\"\",\"\",IF(OR('TSA Input'!J4811=\"Yes\",'TSA Input'!J4811=\"Contingent\"),'TSA Input'!F4811,\"\"))","v":""},"","Required","Required"]
["",null,{"$f":"IF('TSA Input'!J4812=\"\",\"\",IF(OR('TSA Input'!J4812=\"Yes\",'TSA Input'!J4812=\"Contingent\"),'TSA Input'!B4812,\"Ineligible\"))","v":""},{"$f":"IF('TSA Input'!J4812=\"\",\"\",IF(OR('TSA Input'!J4812=\"Yes\",'TSA Input'!J4812=\"Contingent\"),'TSA Input'!I4812,\"\"))","v":""},{"$f":"IF('TSA Input'!J4812=\"\",\"\",IF(OR('TSA Input'!J4812=\"Yes\",'TSA Input'!J4812=\"Contingent\"),'TSA Input'!C4812,\"\"))","v":""},{"$f":"IF('TSA Input'!J4812=\"\",\"\",IF(OR('TSA Input'!J4812=\"Yes\",'TSA Input'!J4812=\"Contingent\"),'TSA Input'!D4812,\"\"))","v":""},{"$f":"IF('TSA Input'!J4812=\"\",\"\",IF(OR('TSA Input'!J4812=\"Yes\",'TSA Input'!J4812=\"Contingent\"),'TSA Input'!G4812,\"\"))","v":""},{"$f":"IF('TSA Input'!J4812=\"\",\"\",IF(OR('TSA Input'!J4812=\"Yes\",'TSA Input'!J4812=\"Contingent\"),'TSA Input'!F4812,\"\"))","v":""},"",{"$f":"IF('TSA Input'!J4812=\"\",\"\",IF(OR('TSA Input'!J4812=\"Yes\",'TSA Input'!J4812=\"Contingent\"),'TSA Input'!D4812,\"\"))","v":""},{"$f":"IF('TSA Input'!J4812=\"\",\"\",IF(OR('TSA Input'!J4812=\"Yes\",'TSA Input'!J4812=\"Contingent\"),'TSA Input'!G4812,\"\"))","v":""},{"$f":"IF('TSA Input'!J4812=\"\",\"\",IF(OR('TSA Input'!J4812=\"Yes\",'TSA Input'!J4812=\"Contingent\"),'TSA Input'!F4812,\"\"))","v":""},"","Required","Required"]
["",null,{"$f":"IF('TSA Input'!J4813=\"\",\"\",IF(OR('TSA Input'!J4813=\"Yes\",'TSA Input'!J4813=\"Contingent\"),'TSA Input'!B4813,\"Ineligible\"))","v":""},{"$f":"IF('TSA Input'!J4813=\"\",\"\",IF(OR('TSA Input'!J4813=\"Yes\",'TSA Input'!J4813=\"Contingent\"),'TSA Input'!I4813,\"\"))","v":""},{"$f":"IF('TSA Input'!J4813=\"\",\"\",IF(OR('TSA Input'!J4813=\"Yes\",'TSA Input'!J4813=\"Contingent\"),'TSA Input'!C4813,\"\"))","v":""},{"$f":"IF('TSA Input'!J4813=\"\",\"\",IF(OR('TSA Input'!J4813=\"Yes\",'TSA Input'!J4813=\"Contingent\"),'TSA Input'!D4813,\"\"))","v":""},{"$f":"IF('TSA Input'!J4813=\"\",\"\",IF(OR('TSA Input'!J4813=\"Yes\",'TSA Input'!J4813=\"Contingent\"),'TSA Input'!G4813,\"\"))","v":""},{"$f":"IF('TSA Input'!J4813=\"\",\"\",IF(OR('TSA Input'!J4813=\"Yes\",'TSA Input'!J4813=\"Contingent\"),'TSA Input'!F4813,\"\"))","v":""},"",{"$f":"IF('TSA Input'!J4813=\"\",\"\",IF(OR('TSA Input'!J4813=\"Yes\",'TSA Input'!J4813=\"Contingent\"),'TSA Input'!D4813,\"\"))","v":""},{"$f":"IF('TSA Input'!J4813=\"\",\"\",IF(OR('TSA Input'!J4813=\"Yes\",'TSA Input'!J4813=\"Contingent\"),'TSA Input'!G4813,\"\"))","v":""},{"$f":"IF('TSA Input'!J4813=\"\",\"\",IF(OR('TSA Input'!J4813=\"Yes\",'TSA Input'!J4813=\"Contingent\"),'TSA Input'!F4813,\"\"))","v":""},"","Required","Required"]
["",null,{"$f":"IF('TSA Input'!J4814=\"\",\"\",IF(OR('TSA Input'!J4814=\"Yes\",'TSA Input'!J4814=\"Contingent\"),'TSA Input'!B4814,\"Ineligible\"))","v":""},{"$f":"IF('TSA Input'!J4814=\"\",\"\",IF(OR('TSA Input'!J4814=\"Yes\",'TSA Input'!J4814=\"Contingent\"),'TSA Input'!I4814,\"\"))","v":""},{"$f":"IF('TSA Input'!J4814=\"\",\"\",IF(OR('TSA Input'!J4814=\"Yes\",'TSA Input'!J4814=\"Contingent\"),'TSA Input'!C4814,\"\"))","v":""},{"$f":"IF('TSA Input'!J4814=\"\",\"\",IF(OR('TSA Input'!J4814=\"Yes\",'TSA Input'!J4814=\"Contingent\"),'TSA Input'!D4814,\"\"))","v":""},{"$f":"IF('TSA Input'!J4814=\"\",\"\",IF(OR('TSA Input'!J4814=\"Yes\",'TSA Input'!J4814=\"Contingent\"),'TSA Input'!G4814,\"\"))","v":""},{"$f":"IF('TSA Input'!J4814=\"\",\"\",IF(OR('TSA Input'!J4814=\"Yes\",'TSA Input'!J4814=\"Contingent\"),'TSA Input'!F4814,\"\"))","v":""},"",{"$f":"IF('TSA Input'!J4814=\"\",\"\",IF(OR('TSA Input'!J4814=\"Yes\",'TSA Input'!J4814=\"Contingent\"),'TSA Input'!D4814,\"\"))","v":""},{"$f":"IF('TSA Input'!J4814=\"\",\"\",IF(OR('TSA Input'!J4814=\"Yes\",'TSA Input'!J4814=\"Contingent\"),'TSA Input'!G4814,\"\"))","v":""},{"$f":"IF('TSA Input'!J4814=\"\",\"\",IF(OR('TSA Input'!J4814=\"Yes\",'TSA Input'!J4814=\"Contingent\"),'TSA Input'!F4814,\"\"))","v":""},"","Required","Required"]
["",null,{"$f":"IF('TSA Input'!J4815=\"\",\"\",IF(OR('TSA Input'!J4815=\"Yes\",'TSA Input'!J4815=\"Contingent\"),'TSA Input'!B4815,\"Ineligible\"))","v":""},{"$f":"IF('TSA Input'!J4815=\"\",\"\",IF(OR('TSA Input'!J4815=\"Yes\",'TSA Input'!J4815=\"Contingent\"),'TSA Input'!I4815,\"\"))","v":""},{"$f":"IF('TSA Input'!J4815=\"\",\"\",IF(OR('TSA Input'!J4815=\"Yes\",'TSA Input'!J4815=\"Contingent\"),'TSA Input'!C4815,\"\"))","v":""},{"$f":"IF('TSA Input'!J4815=\"\",\"\",IF(OR('TSA Input'!J4815=\"Yes\",'TSA Input'!J4815=\"Contingent\"),'TSA Input'!D4815,\"\"))","v":""},{"$f":"IF('TSA Input'!J4815=\"\",\"\",IF(OR('TSA Input'!J4815=\"Yes\",'TSA Input'!J4815=\"Contingent\"),'TSA Input'!G4815,\"\"))","v":""},{"$f":"IF('TSA Input'!J4815=\"\",\"\",IF(OR('TSA Input'!J4815=\"Yes\",'TSA Input'!J4815=\"Contingent\"),'TSA Input'!F4815,\"\"))","v":""},"",{"$f":"IF('TSA Input'!J4815=\"\",\"\",IF(OR('TSA Input'!J4815=\"Yes\",'TSA Input'!J4815=\"Contingent\"),'TSA Input'!D4815,\"\"))","v":""},{"$f":"IF('TSA Input'!J4815=\"\",\"\",IF(OR('TSA Input'!J4815=\"Yes\",'TSA Input'!J4815=\"Contingent\"),'TSA Input'!G4815,\"\"))","v":""},{"$f":"IF('TSA Input'!J4815=\"\",\"\",IF(OR('TSA Input'!J4815=\"Yes\",'TSA Input'!J4815=\"Contingent\"),'TSA Input'!F4815,\"\"))","v":""},"","Required","Required"]
["",null,{"$f":"IF('TSA Input'!J4816=\"\",\"\",IF(OR('TSA Input'!J4816=\"Yes\",'TSA Input'!J4816=\"Contingent\"),'TSA Input'!B4816,\"Ineligible\"))","v":""},{"$f":"IF('TSA Input'!J4816=\"\",\"\",IF(OR('TSA Input'!J4816=\"Yes\",'TSA Input'!J4816=\"Contingent\"),'TSA Input'!I4816,\"\"))","v":""},{"$f":"IF('TSA Input'!J4816=\"\",\"\",IF(OR('TSA Input'!J4816=\"Yes\",'TSA Input'!J4816=\"Contingent\"),'TSA Input'!C4816,\"\"))","v":""},{"$f":"IF('TSA Input'!J4816=\"\",\"\",IF(OR('TSA Input'!J4816=\"Yes\",'TSA Input'!J4816=\"Contingent\"),'TSA Input'!D4816,\"\"))","v":""},{"$f":"IF('TSA Input'!J4816=\"\",\"\",IF(OR('TSA Input'!J4816=\"Yes\",'TSA Input'!J4816=\"Contingent\"),'TSA Input'!G4816,\"\"))","v":""},{"$f":"IF('TSA Input'!J4816=\"\",\"\",IF(OR('TSA Input'!J4816=\"Yes\",'TSA Input'!J4816=\"Contingent\"),'TSA Input'!F4816,\"\"))","v":""},"",{"$f":"IF('TSA Input'!J4816=\"\",\"\",IF(OR('TSA Input'!J4816=\"Yes\",'TSA Input'!J4816=\"Contingent\"),'TSA Input'!D4816,\"\"))","v":""},{"$f":"IF('TSA Input'!J4816=\"\",\"\",IF(OR('TSA Input'!J4816=\"Yes\",'TSA Input'!J4816=\"Contingent\"),'TSA Input'!G4816,\"\"))","v":""},{"$f":"IF('TSA Input'!J4816=\"\",\"\",IF(OR('TSA Input'!J4816=\"Yes\",'TSA Input'!J4816=\"Contingent\"),'TSA Input'!F4816,\"\"))","v":""},"","Required","Required"]
["",null,{"$f":"IF('TSA Input'!J4817=\"\",\"\",IF(OR('TSA Input'!J4817=\"Yes\",'TSA Input'!J4817=\"Contingent\"),'TSA Input'!B4817,\"Ineligible\"))","v":""},{"$f":"IF('TSA Input'!J4817=\"\",\"\",IF(OR('TSA Input'!J4817=\"Yes\",'TSA Input'!J4817=\"Contingent\"),'TSA Input'!I4817,\"\"))","v":""},{"$f":"IF('TSA Input'!J4817=\"\",\"\",IF(OR('TSA Input'!J4817=\"Yes\",'TSA Input'!J4817=\"Contingent\"),'TSA Input'!C4817,\"\"))","v":""},{"$f":"IF('TSA Input'!J4817=\"\",\"\",IF(OR('TSA Input'!J4817=\"Yes\",'TSA Input'!J4817=\"Contingent\"),'TSA Input'!D4817,\"\"))","v":""},{"$f":"IF('TSA Input'!J4817=\"\",\"\",IF(OR('TSA Input'!J4817=\"Yes\",'TSA Input'!J4817=\"Contingent\"),'TSA Input'!G4817,\"\"))","v":""},{"$f":"IF('TSA Input'!J4817=\"\",\"\",IF(OR('TSA Input'!J4817=\"Yes\",'TSA Input'!J4817=\"Contingent\"),'TSA Input'!F4817,\"\"))","v":""},"",{"$f":"IF('TSA Input'!J4817=\"\",\"\",IF(OR('TSA Input'!J4817=\"Yes\",'TSA Input'!J4817=\"Contingent\"),'TSA Input'!D4817,\"\"))","v":""},{"$f":"IF('TSA Input'!J4817=\"\",\"\",IF(OR('TSA Input'!J4817=\"Yes\",'TSA Input'!J4817=\"Contingent\"),'TSA Input'!G4817,\"\"))","v":""},{"$f":"IF('TSA Input'!J4817=\"\",\"\",IF(OR('TSA Input'!J4817=\"Yes\",'TSA Input'!J4817=\"Contingent\"),'TSA Input'!F4817,\"\"))","v":""},"","Required","Required"]
["",null,{"$f":"IF('TSA Input'!J4818=\"\",\"\",IF(OR('TSA Input'!J4818=\"Yes\",'TSA Input'!J4818=\"Contingent\"),'TSA Input'!B4818,\"Ineligible\"))","v":""},{"$f":"IF('TSA Input'!J4818=\"\",\"\",IF(OR('TSA Input'!J4818=\"Yes\",'TSA Input'!J4818=\"Contingent\"),'TSA Input'!I4818,\"\"))","v":""},{"$f":"IF('TSA Input'!J4818=\"\",\"\",IF(OR('TSA Input'!J4818=\"Yes\",'TSA Input'!J4818=\"Contingent\"),'TSA Input'!C4818,\"\"))","v":""},{"$f":"IF('TSA Input'!J4818=\"\",\"\",IF(OR('TSA Input'!J4818=\"Yes\",'TSA Input'!J4818=\"Contingent\"),'TSA Input'!D4818,\"\"))","v":""},{"$f":"IF('TSA Input'!J4818=\"\",\"\",IF(OR('TSA Input'!J4818=\"Yes\",'TSA Input'!J4818=\"Contingent\"),'TSA Input'!G4818,\"\"))","v":""},{"$f":"IF('TSA Input'!J4818=\"\",\"\",IF(OR('TSA Input'!J4818=\"Yes\",'TSA Input'!J4818=\"Contingent\"),'TSA Input'!F4818,\"\"))","v":""},"",{"$f":"IF('TSA Input'!J4818=\"\",\"\",IF(OR('TSA Input'!J4818=\"Yes\",'TSA Input'!J4818=\"Contingent\"),'TSA Input'!D4818,\"\"))","v":""},{"$f":"IF('TSA Input'!J4818=\"\",\"\",IF(OR('TSA Input'!J4818=\"Yes\",'TSA Input'!J4818=\"Contingent\"),'TSA Input'!G4818,\"\"))","v":""},{"$f":"IF('TSA Input'!J4818=\"\",\"\",IF(OR('TSA Input'!J4818=\"Yes\",'TSA Input'!J4818=\"Contingent\"),'TSA Input'!F4818,\"\"))","v":""},"","Required","Required"]
["",null,{"$f":"IF('TSA Input'!J4819=\"\",\"\",IF(OR('TSA Input'!J4819=\"Yes\",'TSA Input'!J4819=\"Contingent\"),'TSA Input'!B4819,\"Ineligible\"))","v":""},{"$f":"IF('TSA Input'!J4819=\"\",\"\",IF(OR('TSA Input'!J4819=\"Yes\",'TSA Input'!J4819=\"Contingent\"),'TSA Input'!I4819,\"\"))","v":""},{"$f":"IF('TSA Input'!J4819=\"\",\"\",IF(OR('TSA Input'!J4819=\"Yes\",'TSA Input'!J4819=\"Contingent\"),'TSA Input'!C4819,\"\"))","v":""},{"$f":"IF('TSA Input'!J4819=\"\",\"\",IF(OR('TSA Input'!J4819=\"Yes\",'TSA Input'!J4819=\"Contingent\"),'TSA Input'!D4819,\"\"))","v":""},{"$f":"IF('TSA Input'!J4819=\"\",\"\",IF(OR('TSA Input'!J4819=\"Yes\",'TSA Input'!J4819=\"Contingent\"),'TSA Input'!G4819,\"\"))","v":""},{"$f":"IF('TSA Input'!J4819=\"\",\"\",IF(OR('TSA Input'!J4819=\"Yes\",'TSA Input'!J4819=\"Contingent\"),'TSA Input'!F4819,\"\"))","v":""},"",{"$f":"IF('TSA Input'!J4819=\"\",\"\",IF(OR('TSA Input'!J4819=\"Yes\",'TSA Input'!J4819=\"Contingent\"),'TSA Input'!D4819,\"\"))","v":""},{"$f":"IF('TSA Input'!J4819=\"\",\"\",IF(OR('TSA Input'!J4819=\"Yes\",'TSA Input'!J4819=\"Contingent\"),'TSA Input'!G4819,\"\"))","v":""},{"$f":"IF('TSA Input'!J4819=\"\",\"\",IF(OR('TSA Input'!J4819=\"Yes\",'TSA Input'!J4819=\"Contingent\"),'TSA Input'!F4819,\"\"))","v":""},"","Required","Required"]
["",null,{"$f":"IF('TSA Input'!J4820=\"\",\"\",IF(OR('TSA Input'!J4820=\"Yes\",'TSA Input'!J4820=\"Contingent\"),'TSA Input'!B4820,\"Ineligible\"))","v":""},{"$f":"IF('TSA Input'!J4820=\"\",\"\",IF(OR('TSA Input'!J4820=\"Yes\",'TSA Input'!J4820=\"Contingent\"),'TSA Input'!I4820,\"\"))","v":""},{"$f":"IF('TSA Input'!J4820=\"\",\"\",IF(OR('TSA Input'!J4820=\"Yes\",'TSA Input'!J4820=\"Contingent\"),'TSA Input'!C4820,\"\"))","v":""},{"$f":"IF('TSA Input'!J4820=\"\",\"\",IF(OR('TSA Input'!J4820=\"Yes\",'TSA Input'!J4820=\"Contingent\"),'TSA Input'!D4820,\"\"))","v":""},{"$f":"IF('TSA Input'!J4820=\"\",\"\",IF(OR('TSA Input'!J4820=\"Yes\",'TSA Input'!J4820=\"Contingent\"),'TSA Input'!G4820,\"\"))","v":""},{"$f":"IF('TSA Input'!J4820=\"\",\"\",IF(OR('TSA Input'!J4820=\"Yes\",'TSA Input'!J4820=\"Contingent\"),'TSA Input'!F4820,\"\"))","v":""},"",{"$f":"IF('TSA Input'!J4820=\"\",\"\",IF(OR('TSA Input'!J4820=\"Yes\",'TSA Input'!J4820=\"Contingent\"),'TSA Input'!D4820,\"\"))","v":""},{"$f":"IF('TSA Input'!J4820=\"\",\"\",IF(OR('TSA Input'!J4820=\"Yes\",'TSA Input'!J4820=\"Contingent\"),'TSA Input'!G4820,\"\"))","v":""},{"$f":"IF('TSA Input'!J4820=\"\",\"\",IF(OR('TSA Input'!J4820=\"Yes\",'TSA Input'!J4820=\"Contingent\"),'TSA Input'!F4820,\"\"))","v":""},"","Required","Required"]
["",null,{"$f":"IF('TSA Input'!J4821=\"\",\"\",IF(OR('TSA Input'!J4821=\"Yes\",'TSA Input'!J4821=\"Contingent\"),'TSA Input'!B4821,\"Ineligible\"))","v":""},{"$f":"IF('TSA Input'!J4821=\"\",\"\",IF(OR('TSA Input'!J4821=\"Yes\",'TSA Input'!J4821=\"Contingent\"),'TSA Input'!I4821,\"\"))","v":""},{"$f":"IF('TSA Input'!J4821=\"\",\"\",IF(OR('TSA Input'!J4821=\"Yes\",'TSA Input'!J4821=\"Contingent\"),'TSA Input'!C4821,\"\"))","v":""},{"$f":"IF('TSA Input'!J4821=\"\",\"\",IF(OR('TSA Input'!J4821=\"Yes\",'TSA Input'!J4821=\"Contingent\"),'TSA Input'!D4821,\"\"))","v":""},{"$f":"IF('TSA Input'!J4821=\"\",\"\",IF(OR('TSA Input'!J4821=\"Yes\",'TSA Input'!J4821=\"Contingent\"),'TSA Input'!G4821,\"\"))","v":""},{"$f":"IF('TSA Input'!J4821=\"\",\"\",IF(OR('TSA Input'!J4821=\"Yes\",'TSA Input'!J4821=\"Contingent\"),'TSA Input'!F4821,\"\"))","v":""},"",{"$f":"IF('TSA Input'!J4821=\"\",\"\",IF(OR('TSA Input'!J4821=\"Yes\",'TSA Input'!J4821=\"Contingent\"),'TSA Input'!D4821,\"\"))","v":""},{"$f":"IF('TSA Input'!J4821=\"\",\"\",IF(OR('TSA Input'!J4821=\"Yes\",'TSA Input'!J4821=\"Contingent\"),'TSA Input'!G4821,\"\"))","v":""},{"$f":"IF('TSA Input'!J4821=\"\",\"\",IF(OR('TSA Input'!J4821=\"Yes\",'TSA Input'!J4821=\"Contingent\"),'TSA Input'!F4821,\"\"))","v":""},"","Required","Required"]
["",null,{"$f":"IF('TSA Input'!J4822=\"\",\"\",IF(OR('TSA Input'!J4822=\"Yes\",'TSA Input'!J4822=\"Contingent\"),'TSA Input'!B4822,\"Ineligible\"))","v":""},{"$f":"IF('TSA Input'!J4822=\"\",\"\",IF(OR('TSA Input'!J4822=\"Yes\",'TSA Input'!J4822=\"Contingent\"),'TSA Input'!I4822,\"\"))","v":""},{"$f":"IF('TSA Input'!J4822=\"\",\"\",IF(OR('TSA Input'!J4822=\"Yes\",'TSA Input'!J4822=\"Contingent\"),'TSA Input'!C4822,\"\"))","v":""},{"$f":"IF('TSA Input'!J4822=\"\",\"\",IF(OR('TSA Input'!J4822=\"Yes\",'TSA Input'!J4822=\"Contingent\"),'TSA Input'!D4822,\"\"))","v":""},{"$f":"IF('TSA Input'!J4822=\"\",\"\",IF(OR('TSA Input'!J4822=\"Yes\",'TSA Input'!J4822=\"Contingent\"),'TSA Input'!G4822,\"\"))","v":""},{"$f":"IF('TSA Input'!J4822=\"\",\"\",IF(OR('TSA Input'!J4822=\"Yes\",'TSA Input'!J4822=\"Contingent\"),'TSA Input'!F4822,\"\"))","v":""},"",{"$f":"IF('TSA Input'!J4822=\"\",\"\",IF(OR('TSA Input'!J4822=\"Yes\",'TSA Input'!J4822=\"Contingent\"),'TSA Input'!D4822,\"\"))","v":""},{"$f":"IF('TSA Input'!J4822=\"\",\"\",IF(OR('TSA Input'!J4822=\"Yes\",'TSA Input'!J4822=\"Contingent\"),'TSA Input'!G4822,\"\"))","v":""},{"$f":"IF('TSA Input'!J4822=\"\",\"\",IF(OR('TSA Input'!J4822=\"Yes\",'TSA Input'!J4822=\"Contingent\"),'TSA Input'!F4822,\"\"))","v":""},"","Required","Required"]
["",null,{"$f":"IF('TSA Input'!J4823=\"\",\"\",IF(OR('TSA Input'!J4823=\"Yes\",'TSA Input'!J4823=\"Contingent\"),'TSA Input'!B4823,\"Ineligible\"))","v":""},{"$f":"IF('TSA Input'!J4823=\"\",\"\",IF(OR('TSA Input'!J4823=\"Yes\",'TSA Input'!J4823=\"Contingent\"),'TSA Input'!I4823,\"\"))","v":""},{"$f":"IF('TSA Input'!J4823=\"\",\"\",IF(OR('TSA Input'!J4823=\"Yes\",'TSA Input'!J4823=\"Contingent\"),'TSA Input'!C4823,\"\"))","v":""},{"$f":"IF('TSA Input'!J4823=\"\",\"\",IF(OR('TSA Input'!J4823=\"Yes\",'TSA Input'!J4823=\"Contingent\"),'TSA Input'!D4823,\"\"))","v":""},{"$f":"IF('TSA Input'!J4823=\"\",\"\",IF(OR('TSA Input'!J4823=\"Yes\",'TSA Input'!J4823=\"Contingent\"),'TSA Input'!G4823,\"\"))","v":""},{"$f":"IF('TSA Input'!J4823=\"\",\"\",IF(OR('TSA Input'!J4823=\"Yes\",'TSA Input'!J4823=\"Contingent\"),'TSA Input'!F4823,\"\"))","v":""},"",{"$f":"IF('TSA Input'!J4823=\"\",\"\",IF(OR('TSA Input'!J4823=\"Yes\",'TSA Input'!J4823=\"Contingent\"),'TSA Input'!D4823,\"\"))","v":""},{"$f":"IF('TSA Input'!J4823=\"\",\"\",IF(OR('TSA Input'!J4823=\"Yes\",'TSA Input'!J4823=\"Contingent\"),'TSA Input'!G4823,\"\"))","v":""},{"$f":"IF('TSA Input'!J4823=\"\",\"\",IF(OR('TSA Input'!J4823=\"Yes\",'TSA Input'!J4823=\"Contingent\"),'TSA Input'!F4823,\"\"))","v":""},"","Required","Required"]
["",null,{"$f":"IF('TSA Input'!J4824=\"\",\"\",IF(OR('TSA Input'!J4824=\"Yes\",'TSA Input'!J4824=\"Contingent\"),'TSA Input'!B4824,\"Ineligible\"))","v":""},{"$f":"IF('TSA Input'!J4824=\"\",\"\",IF(OR('TSA Input'!J4824=\"Yes\",'TSA Input'!J4824=\"Contingent\"),'TSA Input'!I4824,\"\"))","v":""},{"$f":"IF('TSA Input'!J4824=\"\",\"\",IF(OR('TSA Input'!J4824=\"Yes\",'TSA Input'!J4824=\"Contingent\"),'TSA Input'!C4824,\"\"))","v":""},{"$f":"IF('TSA Input'!J4824=\"\",\"\",IF(OR('TSA Input'!J4824=\"Yes\",'TSA Input'!J4824=\"Contingent\"),'TSA Input'!D4824,\"\"))","v":""},{"$f":"IF('TSA Input'!J4824=\"\",\"\",IF(OR('TSA Input'!J4824=\"Yes\",'TSA Input'!J4824=\"Contingent\"),'TSA Input'!G4824,\"\"))","v":""},{"$f":"IF('TSA Input'!J4824=\"\",\"\",IF(OR('TSA Input'!J4824=\"Yes\",'TSA Input'!J4824=\"Contingent\"),'TSA Input'!F4824,\"\"))","v":""},"",{"$f":"IF('TSA Input'!J4824=\"\",\"\",IF(OR('TSA Input'!J4824=\"Yes\",'TSA Input'!J4824=\"Contingent\"),'TSA Input'!D4824,\"\"))","v":""},{"$f":"IF('TSA Input'!J4824=\"\",\"\",IF(OR('TSA Input'!J4824=\"Yes\",'TSA Input'!J4824=\"Contingent\"),'TSA Input'!G4824,\"\"))","v":""},{"$f":"IF('TSA Input'!J4824=\"\",\"\",IF(OR('TSA Input'!J4824=\"Yes\",'TSA Input'!J4824=\"Contingent\"),'TSA Input'!F4824,\"\"))","v":""},"","Required","Required"]
["",null,{"$f":"IF('TSA Input'!J4825=\"\",\"\",IF(OR('TSA Input'!J4825=\"Yes\",'TSA Input'!J4825=\"Contingent\"),'TSA Input'!B4825,\"Ineligible\"))","v":""},{"$f":"IF('TSA Input'!J4825=\"\",\"\",IF(OR('TSA Input'!J4825=\"Yes\",'TSA Input'!J4825=\"Contingent\"),'TSA Input'!I4825,\"\"))","v":""},{"$f":"IF('TSA Input'!J4825=\"\",\"\",IF(OR('TSA Input'!J4825=\"Yes\",'TSA Input'!J4825=\"Contingent\"),'TSA Input'!C4825,\"\"))","v":""},{"$f":"IF('TSA Input'!J4825=\"\",\"\",IF(OR('TSA Input'!J4825=\"Yes\",'TSA Input'!J4825=\"Contingent\"),'TSA Input'!D4825,\"\"))","v":""},{"$f":"IF('TSA Input'!J4825=\"\",\"\",IF(OR('TSA Input'!J4825=\"Yes\",'TSA Input'!J4825=\"Contingent\"),'TSA Input'!G4825,\"\"))","v":""},{"$f":"IF('TSA Input'!J4825=\"\",\"\",IF(OR('TSA Input'!J4825=\"Yes\",'TSA Input'!J4825=\"Contingent\"),'TSA Input'!F4825,\"\"))","v":""},"",{"$f":"IF('TSA Input'!J4825=\"\",\"\",IF(OR('TSA Input'!J4825=\"Yes\",'TSA Input'!J4825=\"Contingent\"),'TSA Input'!D4825,\"\"))","v":""},{"$f":"IF('TSA Input'!J4825=\"\",\"\",IF(OR('TSA Input'!J4825=\"Yes\",'TSA Input'!J4825=\"Contingent\"),'TSA Input'!G4825,\"\"))","v":""},{"$f":"IF('TSA Input'!J4825=\"\",\"\",IF(OR('TSA Input'!J4825=\"Yes\",'TSA Input'!J4825=\"Contingent\"),'TSA Input'!F4825,\"\"))","v":""},"","Required","Required"]
["",null,{"$f":"IF('TSA Input'!J4826=\"\",\"\",IF(OR('TSA Input'!J4826=\"Yes\",'TSA Input'!J4826=\"Contingent\"),'TSA Input'!B4826,\"Ineligible\"))","v":""},{"$f":"IF('TSA Input'!J4826=\"\",\"\",IF(OR('TSA Input'!J4826=\"Yes\",'TSA Input'!J4826=\"Contingent\"),'TSA Input'!I4826,\"\"))","v":""},{"$f":"IF('TSA Input'!J4826=\"\",\"\",IF(OR('TSA Input'!J4826=\"Yes\",'TSA Input'!J4826=\"Contingent\"),'TSA Input'!C4826,\"\"))","v":""},{"$f":"IF('TSA Input'!J4826=\"\",\"\",IF(OR('TSA Input'!J4826=\"Yes\",'TSA Input'!J4826=\"Contingent\"),'TSA Input'!D4826,\"\"))","v":""},{"$f":"IF('TSA Input'!J4826=\"\",\"\",IF(OR('TSA Input'!J4826=\"Yes\",'TSA Input'!J4826=\"Contingent\"),'TSA Input'!G4826,\"\"))","v":""},{"$f":"IF('TSA Input'!J4826=\"\",\"\",IF(OR('TSA Input'!J4826=\"Yes\",'TSA Input'!J4826=\"Contingent\"),'TSA Input'!F4826,\"\"))","v":""},"",{"$f":"IF('TSA Input'!J4826=\"\",\"\",IF(OR('TSA Input'!J4826=\"Yes\",'TSA Input'!J4826=\"Contingent\"),'TSA Input'!D4826,\"\"))","v":""},{"$f":"IF('TSA Input'!J4826=\"\",\"\",IF(OR('TSA Input'!J4826=\"Yes\",'TSA Input'!J4826=\"Contingent\"),'TSA Input'!G4826,\"\"))","v":""},{"$f":"IF('TSA Input'!J4826=\"\",\"\",IF(OR('TSA Input'!J4826=\"Yes\",'TSA Input'!J4826=\"Contingent\"),'TSA Input'!F4826,\"\"))","v":""},"","Required","Required"]
["",null,{"$f":"IF('TSA Input'!J4827=\"\",\"\",IF(OR('TSA Input'!J4827=\"Yes\",'TSA Input'!J4827=\"Contingent\"),'TSA Input'!B4827,\"Ineligible\"))","v":""},{"$f":"IF('TSA Input'!J4827=\"\",\"\",IF(OR('TSA Input'!J4827=\"Yes\",'TSA Input'!J4827=\"Contingent\"),'TSA Input'!I4827,\"\"))","v":""},{"$f":"IF('TSA Input'!J4827=\"\",\"\",IF(OR('TSA Input'!J4827=\"Yes\",'TSA Input'!J4827=\"Contingent\"),'TSA Input'!C4827,\"\"))","v":""},{"$f":"IF('TSA Input'!J4827=\"\",\"\",IF(OR('TSA Input'!J4827=\"Yes\",'TSA Input'!J4827=\"Contingent\"),'TSA Input'!D4827,\"\"))","v":""},{"$f":"IF('TSA Input'!J4827=\"\",\"\",IF(OR('TSA Input'!J4827=\"Yes\",'TSA Input'!J4827=\"Contingent\"),'TSA Input'!G4827,\"\"))","v":""},{"$f":"IF('TSA Input'!J4827=\"\",\"\",IF(OR('TSA Input'!J4827=\"Yes\",'TSA Input'!J4827=\"Contingent\"),'TSA Input'!F4827,\"\"))","v":""},"",{"$f":"IF('TSA Input'!J4827=\"\",\"\",IF(OR('TSA Input'!J4827=\"Yes\",'TSA Input'!J4827=\"Contingent\"),'TSA Input'!D4827,\"\"))","v":""},{"$f":"IF('TSA Input'!J4827=\"\",\"\",IF(OR('TSA Input'!J4827=\"Yes\",'TSA Input'!J4827=\"Contingent\"),'TSA Input'!G4827,\"\"))","v":""},{"$f":"IF('TSA Input'!J4827=\"\",\"\",IF(OR('TSA Input'!J4827=\"Yes\",'TSA Input'!J4827=\"Contingent\"),'TSA Input'!F4827,\"\"))","v":""},"","Required","Required"]
["",null,{"$f":"IF('TSA Input'!J4828=\"\",\"\",IF(OR('TSA Input'!J4828=\"Yes\",'TSA Input'!J4828=\"Contingent\"),'TSA Input'!B4828,\"Ineligible\"))","v":""},{"$f":"IF('TSA Input'!J4828=\"\",\"\",IF(OR('TSA Input'!J4828=\"Yes\",'TSA Input'!J4828=\"Contingent\"),'TSA Input'!I4828,\"\"))","v":""},{"$f":"IF('TSA Input'!J4828=\"\",\"\",IF(OR('TSA Input'!J4828=\"Yes\",'TSA Input'!J4828=\"Contingent\"),'TSA Input'!C4828,\"\"))","v":""},{"$f":"IF('TSA Input'!J4828=\"\",\"\",IF(OR('TSA Input'!J4828=\"Yes\",'TSA Input'!J4828=\"Contingent\"),'TSA Input'!D4828,\"\"))","v":""},{"$f":"IF('TSA Input'!J4828=\"\",\"\",IF(OR('TSA Input'!J4828=\"Yes\",'TSA Input'!J4828=\"Contingent\"),'TSA Input'!G4828,\"\"))","v":""},{"$f":"IF('TSA Input'!J4828=\"\",\"\",IF(OR('TSA Input'!J4828=\"Yes\",'TSA Input'!J4828=\"Contingent\"),'TSA Input'!F4828,\"\"))","v":""},"",{"$f":"IF('TSA Input'!J4828=\"\",\"\",IF(OR('TSA Input'!J4828=\"Yes\",'TSA Input'!J4828=\"Contingent\"),'TSA Input'!D4828,\"\"))","v":""},{"$f":"IF('TSA Input'!J4828=\"\",\"\",IF(OR('TSA Input'!J4828=\"Yes\",'TSA Input'!J4828=\"Contingent\"),'TSA Input'!G4828,\"\"))","v":""},{"$f":"IF('TSA Input'!J4828=\"\",\"\",IF(OR('TSA Input'!J4828=\"Yes\",'TSA Input'!J4828=\"Contingent\"),'TSA Input'!F4828,\"\"))","v":""},"","Required","Required"]
["",null,{"$f":"IF('TSA Input'!J4829=\"\",\"\",IF(OR('TSA Input'!J4829=\"Yes\",'TSA Input'!J4829=\"Contingent\"),'TSA Input'!B4829,\"Ineligible\"))","v":""},{"$f":"IF('TSA Input'!J4829=\"\",\"\",IF(OR('TSA Input'!J4829=\"Yes\",'TSA Input'!J4829=\"Contingent\"),'TSA Input'!I4829,\"\"))","v":""},{"$f":"IF('TSA Input'!J4829=\"\",\"\",IF(OR('TSA Input'!J4829=\"Yes\",'TSA Input'!J4829=\"Contingent\"),'TSA Input'!C4829,\"\"))","v":""},{"$f":"IF('TSA Input'!J4829=\"\",\"\",IF(OR('TSA Input'!J4829=\"Yes\",'TSA Input'!J4829=\"Contingent\"),'TSA Input'!D4829,\"\"))","v":""},{"$f":"IF('TSA Input'!J4829=\"\",\"\",IF(OR('TSA Input'!J4829=\"Yes\",'TSA Input'!J4829=\"Contingent\"),'TSA Input'!G4829,\"\"))","v":""},{"$f":"IF('TSA Input'!J4829=\"\",\"\",IF(OR('TSA Input'!J4829=\"Yes\",'TSA Input'!J4829=\"Contingent\"),'TSA Input'!F4829,\"\"))","v":""},"",{"$f":"IF('TSA Input'!J4829=\"\",\"\",IF(OR('TSA Input'!J4829=\"Yes\",'TSA Input'!J4829=\"Contingent\"),'TSA Input'!D4829,\"\"))","v":""},{"$f":"IF('TSA Input'!J4829=\"\",\"\",IF(OR('TSA Input'!J4829=\"Yes\",'TSA Input'!J4829=\"Contingent\"),'TSA Input'!G4829,\"\"))","v":""},{"$f":"IF('TSA Input'!J4829=\"\",\"\",IF(OR('TSA Input'!J4829=\"Yes\",'TSA Input'!J4829=\"Contingent\"),'TSA Input'!F4829,\"\"))","v":""},"","Required","Required"]
["",null,{"$f":"IF('TSA Input'!J4830=\"\",\"\",IF(OR('TSA Input'!J4830=\"Yes\",'TSA Input'!J4830=\"Contingent\"),'TSA Input'!B4830,\"Ineligible\"))","v":""},{"$f":"IF('TSA Input'!J4830=\"\",\"\",IF(OR('TSA Input'!J4830=\"Yes\",'TSA Input'!J4830=\"Contingent\"),'TSA Input'!I4830,\"\"))","v":""},{"$f":"IF('TSA Input'!J4830=\"\",\"\",IF(OR('TSA Input'!J4830=\"Yes\",'TSA Input'!J4830=\"Contingent\"),'TSA Input'!C4830,\"\"))","v":""},{"$f":"IF('TSA Input'!J4830=\"\",\"\",IF(OR('TSA Input'!J4830=\"Yes\",'TSA Input'!J4830=\"Contingent\"),'TSA Input'!D4830,\"\"))","v":""},{"$f":"IF('TSA Input'!J4830=\"\",\"\",IF(OR('TSA Input'!J4830=\"Yes\",'TSA Input'!J4830=\"Contingent\"),'TSA Input'!G4830,\"\"))","v":""},{"$f":"IF('TSA Input'!J4830=\"\",\"\",IF(OR('TSA Input'!J4830=\"Yes\",'TSA Input'!J4830=\"Contingent\"),'TSA Input'!F4830,\"\"))","v":""},"",{"$f":"IF('TSA Input'!J4830=\"\",\"\",IF(OR('TSA Input'!J4830=\"Yes\",'TSA Input'!J4830=\"Contingent\"),'TSA Input'!D4830,\"\"))","v":""},{"$f":"IF('TSA Input'!J4830=\"\",\"\",IF(OR('TSA Input'!J4830=\"Yes\",'TSA Input'!J4830=\"Contingent\"),'TSA Input'!G4830,\"\"))","v":""},{"$f":"IF('TSA Input'!J4830=\"\",\"\",IF(OR('TSA Input'!J4830=\"Yes\",'TSA Input'!J4830=\"Contingent\"),'TSA Input'!F4830,\"\"))","v":""},"","Required","Required"]
["",null,{"$f":"IF('TSA Input'!J4831=\"\",\"\",IF(OR('TSA Input'!J4831=\"Yes\",'TSA Input'!J4831=\"Contingent\"),'TSA Input'!B4831,\"Ineligible\"))","v":""},{"$f":"IF('TSA Input'!J4831=\"\",\"\",IF(OR('TSA Input'!J4831=\"Yes\",'TSA Input'!J4831=\"Contingent\"),'TSA Input'!I4831,\"\"))","v":""},{"$f":"IF('TSA Input'!J4831=\"\",\"\",IF(OR('TSA Input'!J4831=\"Yes\",'TSA Input'!J4831=\"Contingent\"),'TSA Input'!C4831,\"\"))","v":""},{"$f":"IF('TSA Input'!J4831=\"\",\"\",IF(OR('TSA Input'!J4831=\"Yes\",'TSA Input'!J4831=\"Contingent\"),'TSA Input'!D4831,\"\"))","v":""},{"$f":"IF('TSA Input'!J4831=\"\",\"\",IF(OR('TSA Input'!J4831=\"Yes\",'TSA Input'!J4831=\"Contingent\"),'TSA Input'!G4831,\"\"))","v":""},{"$f":"IF('TSA Input'!J4831=\"\",\"\",IF(OR('TSA Input'!J4831=\"Yes\",'TSA Input'!J4831=\"Contingent\"),'TSA Input'!F4831,\"\"))","v":""},"",{"$f":"IF('TSA Input'!J4831=\"\",\"\",IF(OR('TSA Input'!J4831=\"Yes\",'TSA Input'!J4831=\"Contingent\"),'TSA Input'!D4831,\"\"))","v":""},{"$f":"IF('TSA Input'!J4831=\"\",\"\",IF(OR('TSA Input'!J4831=\"Yes\",'TSA Input'!J4831=\"Contingent\"),'TSA Input'!G4831,\"\"))","v":""},{"$f":"IF('TSA Input'!J4831=\"\",\"\",IF(OR('TSA Input'!J4831=\"Yes\",'TSA Input'!J4831=\"Contingent\"),'TSA Input'!F4831,\"\"))","v":""},"","Required","Required"]
["",null,{"$f":"IF('TSA Input'!J4832=\"\",\"\",IF(OR('TSA Input'!J4832=\"Yes\",'TSA Input'!J4832=\"Contingent\"),'TSA Input'!B4832,\"Ineligible\"))","v":""},{"$f":"IF('TSA Input'!J4832=\"\",\"\",IF(OR('TSA Input'!J4832=\"Yes\",'TSA Input'!J4832=\"Contingent\"),'TSA Input'!I4832,\"\"))","v":""},{"$f":"IF('TSA Input'!J4832=\"\",\"\",IF(OR('TSA Input'!J4832=\"Yes\",'TSA Input'!J4832=\"Contingent\"),'TSA Input'!C4832,\"\"))","v":""},{"$f":"IF('TSA Input'!J4832=\"\",\"\",IF(OR('TSA Input'!J4832=\"Yes\",'TSA Input'!J4832=\"Contingent\"),'TSA Input'!D4832,\"\"))","v":""},{"$f":"IF('TSA Input'!J4832=\"\",\"\",IF(OR('TSA Input'!J4832=\"Yes\",'TSA Input'!J4832=\"Contingent\"),'TSA Input'!G4832,\"\"))","v":""},{"$f":"IF('TSA Input'!J4832=\"\",\"\",IF(OR('TSA Input'!J4832=\"Yes\",'TSA Input'!J4832=\"Contingent\"),'TSA Input'!F4832,\"\"))","v":""},"",{"$f":"IF('TSA Input'!J4832=\"\",\"\",IF(OR('TSA Input'!J4832=\"Yes\",'TSA Input'!J4832=\"Contingent\"),'TSA Input'!D4832,\"\"))","v":""},{"$f":"IF('TSA Input'!J4832=\"\",\"\",IF(OR('TSA Input'!J4832=\"Yes\",'TSA Input'!J4832=\"Contingent\"),'TSA Input'!G4832,\"\"))","v":""},{"$f":"IF('TSA Input'!J4832=\"\",\"\",IF(OR('TSA Input'!J4832=\"Yes\",'TSA Input'!J4832=\"Contingent\"),'TSA Input'!F4832,\"\"))","v":""},"","Required","Required"]
["",null,{"$f":"IF('TSA Input'!J4833=\"\",\"\",IF(OR('TSA Input'!J4833=\"Yes\",'TSA Input'!J4833=\"Contingent\"),'TSA Input'!B4833,\"Ineligible\"))","v":""},{"$f":"IF('TSA Input'!J4833=\"\",\"\",IF(OR('TSA Input'!J4833=\"Yes\",'TSA Input'!J4833=\"Contingent\"),'TSA Input'!I4833,\"\"))","v":""},{"$f":"IF('TSA Input'!J4833=\"\",\"\",IF(OR('TSA Input'!J4833=\"Yes\",'TSA Input'!J4833=\"Contingent\"),'TSA Input'!C4833,\"\"))","v":""},{"$f":"IF('TSA Input'!J4833=\"\",\"\",IF(OR('TSA Input'!J4833=\"Yes\",'TSA Input'!J4833=\"Contingent\"),'TSA Input'!D4833,\"\"))","v":""},{"$f":"IF('TSA Input'!J4833=\"\",\"\",IF(OR('TSA Input'!J4833=\"Yes\",'TSA Input'!J4833=\"Contingent\"),'TSA Input'!G4833,\"\"))","v":""},{"$f":"IF('TSA Input'!J4833=\"\",\"\",IF(OR('TSA Input'!J4833=\"Yes\",'TSA Input'!J4833=\"Contingent\"),'TSA Input'!F4833,\"\"))","v":""},"",{"$f":"IF('TSA Input'!J4833=\"\",\"\",IF(OR('TSA Input'!J4833=\"Yes\",'TSA Input'!J4833=\"Contingent\"),'TSA Input'!D4833,\"\"))","v":""},{"$f":"IF('TSA Input'!J4833=\"\",\"\",IF(OR('TSA Input'!J4833=\"Yes\",'TSA Input'!J4833=\"Contingent\"),'TSA Input'!G4833,\"\"))","v":""},{"$f":"IF('TSA Input'!J4833=\"\",\"\",IF(OR('TSA Input'!J4833=\"Yes\",'TSA Input'!J4833=\"Contingent\"),'TSA Input'!F4833,\"\"))","v":""},"","Required","Required"]
["",null,{"$f":"IF('TSA Input'!J4834=\"\",\"\",IF(OR('TSA Input'!J4834=\"Yes\",'TSA Input'!J4834=\"Contingent\"),'TSA Input'!B4834,\"Ineligible\"))","v":""},{"$f":"IF('TSA Input'!J4834=\"\",\"\",IF(OR('TSA Input'!J4834=\"Yes\",'TSA Input'!J4834=\"Contingent\"),'TSA Input'!I4834,\"\"))","v":""},{"$f":"IF('TSA Input'!J4834=\"\",\"\",IF(OR('TSA Input'!J4834=\"Yes\",'TSA Input'!J4834=\"Contingent\"),'TSA Input'!C4834,\"\"))","v":""},{"$f":"IF('TSA Input'!J4834=\"\",\"\",IF(OR('TSA Input'!J4834=\"Yes\",'TSA Input'!J4834=\"Contingent\"),'TSA Input'!D4834,\"\"))","v":""},{"$f":"IF('TSA Input'!J4834=\"\",\"\",IF(OR('TSA Input'!J4834=\"Yes\",'TSA Input'!J4834=\"Contingent\"),'TSA Input'!G4834,\"\"))","v":""},{"$f":"IF('TSA Input'!J4834=\"\",\"\",IF(OR('TSA Input'!J4834=\"Yes\",'TSA Input'!J4834=\"Contingent\"),'TSA Input'!F4834,\"\"))","v":""},"",{"$f":"IF('TSA Input'!J4834=\"\",\"\",IF(OR('TSA Input'!J4834=\"Yes\",'TSA Input'!J4834=\"Contingent\"),'TSA Input'!D4834,\"\"))","v":""},{"$f":"IF('TSA Input'!J4834=\"\",\"\",IF(OR('TSA Input'!J4834=\"Yes\",'TSA Input'!J4834=\"Contingent\"),'TSA Input'!G4834,\"\"))","v":""},{"$f":"IF('TSA Input'!J4834=\"\",\"\",IF(OR('TSA Input'!J4834=\"Yes\",'TSA Input'!J4834=\"Contingent\"),'TSA Input'!F4834,\"\"))","v":""},"","Required","Required"]
["",null,{"$f":"IF('TSA Input'!J4835=\"\",\"\",IF(OR('TSA Input'!J4835=\"Yes\",'TSA Input'!J4835=\"Contingent\"),'TSA Input'!B4835,\"Ineligible\"))","v":""},{"$f":"IF('TSA Input'!J4835=\"\",\"\",IF(OR('TSA Input'!J4835=\"Yes\",'TSA Input'!J4835=\"Contingent\"),'TSA Input'!I4835,\"\"))","v":""},{"$f":"IF('TSA Input'!J4835=\"\",\"\",IF(OR('TSA Input'!J4835=\"Yes\",'TSA Input'!J4835=\"Contingent\"),'TSA Input'!C4835,\"\"))","v":""},{"$f":"IF('TSA Input'!J4835=\"\",\"\",IF(OR('TSA Input'!J4835=\"Yes\",'TSA Input'!J4835=\"Contingent\"),'TSA Input'!D4835,\"\"))","v":""},{"$f":"IF('TSA Input'!J4835=\"\",\"\",IF(OR('TSA Input'!J4835=\"Yes\",'TSA Input'!J4835=\"Contingent\"),'TSA Input'!G4835,\"\"))","v":""},{"$f":"IF('TSA Input'!J4835=\"\",\"\",IF(OR('TSA Input'!J4835=\"Yes\",'TSA Input'!J4835=\"Contingent\"),'TSA Input'!F4835,\"\"))","v":""},"",{"$f":"IF('TSA Input'!J4835=\"\",\"\",IF(OR('TSA Input'!J4835=\"Yes\",'TSA Input'!J4835=\"Contingent\"),'TSA Input'!D4835,\"\"))","v":""},{"$f":"IF('TSA Input'!J4835=\"\",\"\",IF(OR('TSA Input'!J4835=\"Yes\",'TSA Input'!J4835=\"Contingent\"),'TSA Input'!G4835,\"\"))","v":""},{"$f":"IF('TSA Input'!J4835=\"\",\"\",IF(OR('TSA Input'!J4835=\"Yes\",'TSA Input'!J4835=\"Contingent\"),'TSA Input'!F4835,\"\"))","v":""},"","Required","Required"]
["",null,{"$f":"IF('TSA Input'!J4836=\"\",\"\",IF(OR('TSA Input'!J4836=\"Yes\",'TSA Input'!J4836=\"Contingent\"),'TSA Input'!B4836,\"Ineligible\"))","v":""},{"$f":"IF('TSA Input'!J4836=\"\",\"\",IF(OR('TSA Input'!J4836=\"Yes\",'TSA Input'!J4836=\"Contingent\"),'TSA Input'!I4836,\"\"))","v":""},{"$f":"IF('TSA Input'!J4836=\"\",\"\",IF(OR('TSA Input'!J4836=\"Yes\",'TSA Input'!J4836=\"Contingent\"),'TSA Input'!C4836,\"\"))","v":""},{"$f":"IF('TSA Input'!J4836=\"\",\"\",IF(OR('TSA Input'!J4836=\"Yes\",'TSA Input'!J4836=\"Contingent\"),'TSA Input'!D4836,\"\"))","v":""},{"$f":"IF('TSA Input'!J4836=\"\",\"\",IF(OR('TSA Input'!J4836=\"Yes\",'TSA Input'!J4836=\"Contingent\"),'TSA Input'!G4836,\"\"))","v":""},{"$f":"IF('TSA Input'!J4836=\"\",\"\",IF(OR('TSA Input'!J4836=\"Yes\",'TSA Input'!J4836=\"Contingent\"),'TSA Input'!F4836,\"\"))","v":""},"",{"$f":"IF('TSA Input'!J4836=\"\",\"\",IF(OR('TSA Input'!J4836=\"Yes\",'TSA Input'!J4836=\"Contingent\"),'TSA Input'!D4836,\"\"))","v":""},{"$f":"IF('TSA Input'!J4836=\"\",\"\",IF(OR('TSA Input'!J4836=\"Yes\",'TSA Input'!J4836=\"Contingent\"),'TSA Input'!G4836,\"\"))","v":""},{"$f":"IF('TSA Input'!J4836=\"\",\"\",IF(OR('TSA Input'!J4836=\"Yes\",'TSA Input'!J4836=\"Contingent\"),'TSA Input'!F4836,\"\"))","v":""},"","Required","Required"]
["",null,{"$f":"IF('TSA Input'!J4837=\"\",\"\",IF(OR('TSA Input'!J4837=\"Yes\",'TSA Input'!J4837=\"Contingent\"),'TSA Input'!B4837,\"Ineligible\"))","v":""},{"$f":"IF('TSA Input'!J4837=\"\",\"\",IF(OR('TSA Input'!J4837=\"Yes\",'TSA Input'!J4837=\"Contingent\"),'TSA Input'!I4837,\"\"))","v":""},{"$f":"IF('TSA Input'!J4837=\"\",\"\",IF(OR('TSA Input'!J4837=\"Yes\",'TSA Input'!J4837=\"Contingent\"),'TSA Input'!C4837,\"\"))","v":""},{"$f":"IF('TSA Input'!J4837=\"\",\"\",IF(OR('TSA Input'!J4837=\"Yes\",'TSA Input'!J4837=\"Contingent\"),'TSA Input'!D4837,\"\"))","v":""},{"$f":"IF('TSA Input'!J4837=\"\",\"\",IF(OR('TSA Input'!J4837=\"Yes\",'TSA Input'!J4837=\"Contingent\"),'TSA Input'!G4837,\"\"))","v":""},{"$f":"IF('TSA Input'!J4837=\"\",\"\",IF(OR('TSA Input'!J4837=\"Yes\",'TSA Input'!J4837=\"Contingent\"),'TSA Input'!F4837,\"\"))","v":""},"",{"$f":"IF('TSA Input'!J4837=\"\",\"\",IF(OR('TSA Input'!J4837=\"Yes\",'TSA Input'!J4837=\"Contingent\"),'TSA Input'!D4837,\"\"))","v":""},{"$f":"IF('TSA Input'!J4837=\"\",\"\",IF(OR('TSA Input'!J4837=\"Yes\",'TSA Input'!J4837=\"Contingent\"),'TSA Input'!G4837,\"\"))","v":""},{"$f":"IF('TSA Input'!J4837=\"\",\"\",IF(OR('TSA Input'!J4837=\"Yes\",'TSA Input'!J4837=\"Contingent\"),'TSA Input'!F4837,\"\"))","v":""},"","Required","Required"]
["",null,{"$f":"IF('TSA Input'!J4838=\"\",\"\",IF(OR('TSA Input'!J4838=\"Yes\",'TSA Input'!J4838=\"Contingent\"),'TSA Input'!B4838,\"Ineligible\"))","v":""},{"$f":"IF('TSA Input'!J4838=\"\",\"\",IF(OR('TSA Input'!J4838=\"Yes\",'TSA Input'!J4838=\"Contingent\"),'TSA Input'!I4838,\"\"))","v":""},{"$f":"IF('TSA Input'!J4838=\"\",\"\",IF(OR('TSA Input'!J4838=\"Yes\",'TSA Input'!J4838=\"Contingent\"),'TSA Input'!C4838,\"\"))","v":""},{"$f":"IF('TSA Input'!J4838=\"\",\"\",IF(OR('TSA Input'!J4838=\"Yes\",'TSA Input'!J4838=\"Contingent\"),'TSA Input'!D4838,\"\"))","v":""},{"$f":"IF('TSA Input'!J4838=\"\",\"\",IF(OR('TSA Input'!J4838=\"Yes\",'TSA Input'!J4838=\"Contingent\"),'TSA Input'!G4838,\"\"))","v":""},{"$f":"IF('TSA Input'!J4838=\"\",\"\",IF(OR('TSA Input'!J4838=\"Yes\",'TSA Input'!J4838=\"Contingent\"),'TSA Input'!F4838,\"\"))","v":""},"",{"$f":"IF('TSA Input'!J4838=\"\",\"\",IF(OR('TSA Input'!J4838=\"Yes\",'TSA Input'!J4838=\"Contingent\"),'TSA Input'!D4838,\"\"))","v":""},{"$f":"IF('TSA Input'!J4838=\"\",\"\",IF(OR('TSA Input'!J4838=\"Yes\",'TSA Input'!J4838=\"Contingent\"),'TSA Input'!G4838,\"\"))","v":""},{"$f":"IF('TSA Input'!J4838=\"\",\"\",IF(OR('TSA Input'!J4838=\"Yes\",'TSA Input'!J4838=\"Contingent\"),'TSA Input'!F4838,\"\"))","v":""},"","Required","Required"]
["",null,{"$f":"IF('TSA Input'!J4839=\"\",\"\",IF(OR('TSA Input'!J4839=\"Yes\",'TSA Input'!J4839=\"Contingent\"),'TSA Input'!B4839,\"Ineligible\"))","v":""},{"$f":"IF('TSA Input'!J4839=\"\",\"\",IF(OR('TSA Input'!J4839=\"Yes\",'TSA Input'!J4839=\"Contingent\"),'TSA Input'!I4839,\"\"))","v":""},{"$f":"IF('TSA Input'!J4839=\"\",\"\",IF(OR('TSA Input'!J4839=\"Yes\",'TSA Input'!J4839=\"Contingent\"),'TSA Input'!C4839,\"\"))","v":""},{"$f":"IF('TSA Input'!J4839=\"\",\"\",IF(OR('TSA Input'!J4839=\"Yes\",'TSA Input'!J4839=\"Contingent\"),'TSA Input'!D4839,\"\"))","v":""},{"$f":"IF('TSA Input'!J4839=\"\",\"\",IF(OR('TSA Input'!J4839=\"Yes\",'TSA Input'!J4839=\"Contingent\"),'TSA Input'!G4839,\"\"))","v":""},{"$f":"IF('TSA Input'!J4839=\"\",\"\",IF(OR('TSA Input'!J4839=\"Yes\",'TSA Input'!J4839=\"Contingent\"),'TSA Input'!F4839,\"\"))","v":""},"",{"$f":"IF('TSA Input'!J4839=\"\",\"\",IF(OR('TSA Input'!J4839=\"Yes\",'TSA Input'!J4839=\"Contingent\"),'TSA Input'!D4839,\"\"))","v":""},{"$f":"IF('TSA Input'!J4839=\"\",\"\",IF(OR('TSA Input'!J4839=\"Yes\",'TSA Input'!J4839=\"Contingent\"),'TSA Input'!G4839,\"\"))","v":""},{"$f":"IF('TSA Input'!J4839=\"\",\"\",IF(OR('TSA Input'!J4839=\"Yes\",'TSA Input'!J4839=\"Contingent\"),'TSA Input'!F4839,\"\"))","v":""},"","Required","Required"]
["",null,{"$f":"IF('TSA Input'!J4840=\"\",\"\",IF(OR('TSA Input'!J4840=\"Yes\",'TSA Input'!J4840=\"Contingent\"),'TSA Input'!B4840,\"Ineligible\"))","v":""},{"$f":"IF('TSA Input'!J4840=\"\",\"\",IF(OR('TSA Input'!J4840=\"Yes\",'TSA Input'!J4840=\"Contingent\"),'TSA Input'!I4840,\"\"))","v":""},{"$f":"IF('TSA Input'!J4840=\"\",\"\",IF(OR('TSA Input'!J4840=\"Yes\",'TSA Input'!J4840=\"Contingent\"),'TSA Input'!C4840,\"\"))","v":""},{"$f":"IF('TSA Input'!J4840=\"\",\"\",IF(OR('TSA Input'!J4840=\"Yes\",'TSA Input'!J4840=\"Contingent\"),'TSA Input'!D4840,\"\"))","v":""},{"$f":"IF('TSA Input'!J4840=\"\",\"\",IF(OR('TSA Input'!J4840=\"Yes\",'TSA Input'!J4840=\"Contingent\"),'TSA Input'!G4840,\"\"))","v":""},{"$f":"IF('TSA Input'!J4840=\"\",\"\",IF(OR('TSA Input'!J4840=\"Yes\",'TSA Input'!J4840=\"Contingent\"),'TSA Input'!F4840,\"\"))","v":""},"",{"$f":"IF('TSA Input'!J4840=\"\",\"\",IF(OR('TSA Input'!J4840=\"Yes\",'TSA Input'!J4840=\"Contingent\"),'TSA Input'!D4840,\"\"))","v":""},{"$f":"IF('TSA Input'!J4840=\"\",\"\",IF(OR('TSA Input'!J4840=\"Yes\",'TSA Input'!J4840=\"Contingent\"),'TSA Input'!G4840,\"\"))","v":""},{"$f":"IF('TSA Input'!J4840=\"\",\"\",IF(OR('TSA Input'!J4840=\"Yes\",'TSA Input'!J4840=\"Contingent\"),'TSA Input'!F4840,\"\"))","v":""},"","Required","Required"]
["",null,{"$f":"IF('TSA Input'!J4841=\"\",\"\",IF(OR('TSA Input'!J4841=\"Yes\",'TSA Input'!J4841=\"Contingent\"),'TSA Input'!B4841,\"Ineligible\"))","v":""},{"$f":"IF('TSA Input'!J4841=\"\",\"\",IF(OR('TSA Input'!J4841=\"Yes\",'TSA Input'!J4841=\"Contingent\"),'TSA Input'!I4841,\"\"))","v":""},{"$f":"IF('TSA Input'!J4841=\"\",\"\",IF(OR('TSA Input'!J4841=\"Yes\",'TSA Input'!J4841=\"Contingent\"),'TSA Input'!C4841,\"\"))","v":""},{"$f":"IF('TSA Input'!J4841=\"\",\"\",IF(OR('TSA Input'!J4841=\"Yes\",'TSA Input'!J4841=\"Contingent\"),'TSA Input'!D4841,\"\"))","v":""},{"$f":"IF('TSA Input'!J4841=\"\",\"\",IF(OR('TSA Input'!J4841=\"Yes\",'TSA Input'!J4841=\"Contingent\"),'TSA Input'!G4841,\"\"))","v":""},{"$f":"IF('TSA Input'!J4841=\"\",\"\",IF(OR('TSA Input'!J4841=\"Yes\",'TSA Input'!J4841=\"Contingent\"),'TSA Input'!F4841,\"\"))","v":""},"",{"$f":"IF('TSA Input'!J4841=\"\",\"\",IF(OR('TSA Input'!J4841=\"Yes\",'TSA Input'!J4841=\"Contingent\"),'TSA Input'!D4841,\"\"))","v":""},{"$f":"IF('TSA Input'!J4841=\"\",\"\",IF(OR('TSA Input'!J4841=\"Yes\",'TSA Input'!J4841=\"Contingent\"),'TSA Input'!G4841,\"\"))","v":""},{"$f":"IF('TSA Input'!J4841=\"\",\"\",IF(OR('TSA Input'!J4841=\"Yes\",'TSA Input'!J4841=\"Contingent\"),'TSA Input'!F4841,\"\"))","v":""},"","Required","Required"]
["",null,{"$f":"IF('TSA Input'!J4842=\"\",\"\",IF(OR('TSA Input'!J4842=\"Yes\",'TSA Input'!J4842=\"Contingent\"),'TSA Input'!B4842,\"Ineligible\"))","v":""},{"$f":"IF('TSA Input'!J4842=\"\",\"\",IF(OR('TSA Input'!J4842=\"Yes\",'TSA Input'!J4842=\"Contingent\"),'TSA Input'!I4842,\"\"))","v":""},{"$f":"IF('TSA Input'!J4842=\"\",\"\",IF(OR('TSA Input'!J4842=\"Yes\",'TSA Input'!J4842=\"Contingent\"),'TSA Input'!C4842,\"\"))","v":""},{"$f":"IF('TSA Input'!J4842=\"\",\"\",IF(OR('TSA Input'!J4842=\"Yes\",'TSA Input'!J4842=\"Contingent\"),'TSA Input'!D4842,\"\"))","v":""},{"$f":"IF('TSA Input'!J4842=\"\",\"\",IF(OR('TSA Input'!J4842=\"Yes\",'TSA Input'!J4842=\"Contingent\"),'TSA Input'!G4842,\"\"))","v":""},{"$f":"IF('TSA Input'!J4842=\"\",\"\",IF(OR('TSA Input'!J4842=\"Yes\",'TSA Input'!J4842=\"Contingent\"),'TSA Input'!F4842,\"\"))","v":""},"",{"$f":"IF('TSA Input'!J4842=\"\",\"\",IF(OR('TSA Input'!J4842=\"Yes\",'TSA Input'!J4842=\"Contingent\"),'TSA Input'!D4842,\"\"))","v":""},{"$f":"IF('TSA Input'!J4842=\"\",\"\",IF(OR('TSA Input'!J4842=\"Yes\",'TSA Input'!J4842=\"Contingent\"),'TSA Input'!G4842,\"\"))","v":""},{"$f":"IF('TSA Input'!J4842=\"\",\"\",IF(OR('TSA Input'!J4842=\"Yes\",'TSA Input'!J4842=\"Contingent\"),'TSA Input'!F4842,\"\"))","v":""},"","Required","Required"]
["",null,{"$f":"IF('TSA Input'!J4843=\"\",\"\",IF(OR('TSA Input'!J4843=\"Yes\",'TSA Input'!J4843=\"Contingent\"),'TSA Input'!B4843,\"Ineligible\"))","v":""},{"$f":"IF('TSA Input'!J4843=\"\",\"\",IF(OR('TSA Input'!J4843=\"Yes\",'TSA Input'!J4843=\"Contingent\"),'TSA Input'!I4843,\"\"))","v":""},{"$f":"IF('TSA Input'!J4843=\"\",\"\",IF(OR('TSA Input'!J4843=\"Yes\",'TSA Input'!J4843=\"Contingent\"),'TSA Input'!C4843,\"\"))","v":""},{"$f":"IF('TSA Input'!J4843=\"\",\"\",IF(OR('TSA Input'!J4843=\"Yes\",'TSA Input'!J4843=\"Contingent\"),'TSA Input'!D4843,\"\"))","v":""},{"$f":"IF('TSA Input'!J4843=\"\",\"\",IF(OR('TSA Input'!J4843=\"Yes\",'TSA Input'!J4843=\"Contingent\"),'TSA Input'!G4843,\"\"))","v":""},{"$f":"IF('TSA Input'!J4843=\"\",\"\",IF(OR('TSA Input'!J4843=\"Yes\",'TSA Input'!J4843=\"Contingent\"),'TSA Input'!F4843,\"\"))","v":""},"",{"$f":"IF('TSA Input'!J4843=\"\",\"\",IF(OR('TSA Input'!J4843=\"Yes\",'TSA Input'!J4843=\"Contingent\"),'TSA Input'!D4843,\"\"))","v":""},{"$f":"IF('TSA Input'!J4843=\"\",\"\",IF(OR('TSA Input'!J4843=\"Yes\",'TSA Input'!J4843=\"Contingent\"),'TSA Input'!G4843,\"\"))","v":""},{"$f":"IF('TSA Input'!J4843=\"\",\"\",IF(OR('TSA Input'!J4843=\"Yes\",'TSA Input'!J4843=\"Contingent\"),'TSA Input'!F4843,\"\"))","v":""},"","Required","Required"]
["",null,{"$f":"IF('TSA Input'!J4844=\"\",\"\",IF(OR('TSA Input'!J4844=\"Yes\",'TSA Input'!J4844=\"Contingent\"),'TSA Input'!B4844,\"Ineligible\"))","v":""},{"$f":"IF('TSA Input'!J4844=\"\",\"\",IF(OR('TSA Input'!J4844=\"Yes\",'TSA Input'!J4844=\"Contingent\"),'TSA Input'!I4844,\"\"))","v":""},{"$f":"IF('TSA Input'!J4844=\"\",\"\",IF(OR('TSA Input'!J4844=\"Yes\",'TSA Input'!J4844=\"Contingent\"),'TSA Input'!C4844,\"\"))","v":""},{"$f":"IF('TSA Input'!J4844=\"\",\"\",IF(OR('TSA Input'!J4844=\"Yes\",'TSA Input'!J4844=\"Contingent\"),'TSA Input'!D4844,\"\"))","v":""},{"$f":"IF('TSA Input'!J4844=\"\",\"\",IF(OR('TSA Input'!J4844=\"Yes\",'TSA Input'!J4844=\"Contingent\"),'TSA Input'!G4844,\"\"))","v":""},{"$f":"IF('TSA Input'!J4844=\"\",\"\",IF(OR('TSA Input'!J4844=\"Yes\",'TSA Input'!J4844=\"Contingent\"),'TSA Input'!F4844,\"\"))","v":""},"",{"$f":"IF('TSA Input'!J4844=\"\",\"\",IF(OR('TSA Input'!J4844=\"Yes\",'TSA Input'!J4844=\"Contingent\"),'TSA Input'!D4844,\"\"))","v":""},{"$f":"IF('TSA Input'!J4844=\"\",\"\",IF(OR('TSA Input'!J4844=\"Yes\",'TSA Input'!J4844=\"Contingent\"),'TSA Input'!G4844,\"\"))","v":""},{"$f":"IF('TSA Input'!J4844=\"\",\"\",IF(OR('TSA Input'!J4844=\"Yes\",'TSA Input'!J4844=\"Contingent\"),'TSA Input'!F4844,\"\"))","v":""},"","Required","Required"]
["",null,{"$f":"IF('TSA Input'!J4845=\"\",\"\",IF(OR('TSA Input'!J4845=\"Yes\",'TSA Input'!J4845=\"Contingent\"),'TSA Input'!B4845,\"Ineligible\"))","v":""},{"$f":"IF('TSA Input'!J4845=\"\",\"\",IF(OR('TSA Input'!J4845=\"Yes\",'TSA Input'!J4845=\"Contingent\"),'TSA Input'!I4845,\"\"))","v":""},{"$f":"IF('TSA Input'!J4845=\"\",\"\",IF(OR('TSA Input'!J4845=\"Yes\",'TSA Input'!J4845=\"Contingent\"),'TSA Input'!C4845,\"\"))","v":""},{"$f":"IF('TSA Input'!J4845=\"\",\"\",IF(OR('TSA Input'!J4845=\"Yes\",'TSA Input'!J4845=\"Contingent\"),'TSA Input'!D4845,\"\"))","v":""},{"$f":"IF('TSA Input'!J4845=\"\",\"\",IF(OR('TSA Input'!J4845=\"Yes\",'TSA Input'!J4845=\"Contingent\"),'TSA Input'!G4845,\"\"))","v":""},{"$f":"IF('TSA Input'!J4845=\"\",\"\",IF(OR('TSA Input'!J4845=\"Yes\",'TSA Input'!J4845=\"Contingent\"),'TSA Input'!F4845,\"\"))","v":""},"",{"$f":"IF('TSA Input'!J4845=\"\",\"\",IF(OR('TSA Input'!J4845=\"Yes\",'TSA Input'!J4845=\"Contingent\"),'TSA Input'!D4845,\"\"))","v":""},{"$f":"IF('TSA Input'!J4845=\"\",\"\",IF(OR('TSA Input'!J4845=\"Yes\",'TSA Input'!J4845=\"Contingent\"),'TSA Input'!G4845,\"\"))","v":""},{"$f":"IF('TSA Input'!J4845=\"\",\"\",IF(OR('TSA Input'!J4845=\"Yes\",'TSA Input'!J4845=\"Contingent\"),'TSA Input'!F4845,\"\"))","v":""},"","Required","Required"]
["",null,{"$f":"IF('TSA Input'!J4846=\"\",\"\",IF(OR('TSA Input'!J4846=\"Yes\",'TSA Input'!J4846=\"Contingent\"),'TSA Input'!B4846,\"Ineligible\"))","v":""},{"$f":"IF('TSA Input'!J4846=\"\",\"\",IF(OR('TSA Input'!J4846=\"Yes\",'TSA Input'!J4846=\"Contingent\"),'TSA Input'!I4846,\"\"))","v":""},{"$f":"IF('TSA Input'!J4846=\"\",\"\",IF(OR('TSA Input'!J4846=\"Yes\",'TSA Input'!J4846=\"Contingent\"),'TSA Input'!C4846,\"\"))","v":""},{"$f":"IF('TSA Input'!J4846=\"\",\"\",IF(OR('TSA Input'!J4846=\"Yes\",'TSA Input'!J4846=\"Contingent\"),'TSA Input'!D4846,\"\"))","v":""},{"$f":"IF('TSA Input'!J4846=\"\",\"\",IF(OR('TSA Input'!J4846=\"Yes\",'TSA Input'!J4846=\"Contingent\"),'TSA Input'!G4846,\"\"))","v":""},{"$f":"IF('TSA Input'!J4846=\"\",\"\",IF(OR('TSA Input'!J4846=\"Yes\",'TSA Input'!J4846=\"Contingent\"),'TSA Input'!F4846,\"\"))","v":""},"",{"$f":"IF('TSA Input'!J4846=\"\",\"\",IF(OR('TSA Input'!J4846=\"Yes\",'TSA Input'!J4846=\"Contingent\"),'TSA Input'!D4846,\"\"))","v":""},{"$f":"IF('TSA Input'!J4846=\"\",\"\",IF(OR('TSA Input'!J4846=\"Yes\",'TSA Input'!J4846=\"Contingent\"),'TSA Input'!G4846,\"\"))","v":""},{"$f":"IF('TSA Input'!J4846=\"\",\"\",IF(OR('TSA Input'!J4846=\"Yes\",'TSA Input'!J4846=\"Contingent\"),'TSA Input'!F4846,\"\"))","v":""},"","Required","Required"]
["",null,{"$f":"IF('TSA Input'!J4847=\"\",\"\",IF(OR('TSA Input'!J4847=\"Yes\",'TSA Input'!J4847=\"Contingent\"),'TSA Input'!B4847,\"Ineligible\"))","v":""},{"$f":"IF('TSA Input'!J4847=\"\",\"\",IF(OR('TSA Input'!J4847=\"Yes\",'TSA Input'!J4847=\"Contingent\"),'TSA Input'!I4847,\"\"))","v":""},{"$f":"IF('TSA Input'!J4847=\"\",\"\",IF(OR('TSA Input'!J4847=\"Yes\",'TSA Input'!J4847=\"Contingent\"),'TSA Input'!C4847,\"\"))","v":""},{"$f":"IF('TSA Input'!J4847=\"\",\"\",IF(OR('TSA Input'!J4847=\"Yes\",'TSA Input'!J4847=\"Contingent\"),'TSA Input'!D4847,\"\"))","v":""},{"$f":"IF('TSA Input'!J4847=\"\",\"\",IF(OR('TSA Input'!J4847=\"Yes\",'TSA Input'!J4847=\"Contingent\"),'TSA Input'!G4847,\"\"))","v":""},{"$f":"IF('TSA Input'!J4847=\"\",\"\",IF(OR('TSA Input'!J4847=\"Yes\",'TSA Input'!J4847=\"Contingent\"),'TSA Input'!F4847,\"\"))","v":""},"",{"$f":"IF('TSA Input'!J4847=\"\",\"\",IF(OR('TSA Input'!J4847=\"Yes\",'TSA Input'!J4847=\"Contingent\"),'TSA Input'!D4847,\"\"))","v":""},{"$f":"IF('TSA Input'!J4847=\"\",\"\",IF(OR('TSA Input'!J4847=\"Yes\",'TSA Input'!J4847=\"Contingent\"),'TSA Input'!G4847,\"\"))","v":""},{"$f":"IF('TSA Input'!J4847=\"\",\"\",IF(OR('TSA Input'!J4847=\"Yes\",'TSA Input'!J4847=\"Contingent\"),'TSA Input'!F4847,\"\"))","v":""},"","Required","Required"]
["",null,{"$f":"IF('TSA Input'!J4848=\"\",\"\",IF(OR('TSA Input'!J4848=\"Yes\",'TSA Input'!J4848=\"Contingent\"),'TSA Input'!B4848,\"Ineligible\"))","v":""},{"$f":"IF('TSA Input'!J4848=\"\",\"\",IF(OR('TSA Input'!J4848=\"Yes\",'TSA Input'!J4848=\"Contingent\"),'TSA Input'!I4848,\"\"))","v":""},{"$f":"IF('TSA Input'!J4848=\"\",\"\",IF(OR('TSA Input'!J4848=\"Yes\",'TSA Input'!J4848=\"Contingent\"),'TSA Input'!C4848,\"\"))","v":""},{"$f":"IF('TSA Input'!J4848=\"\",\"\",IF(OR('TSA Input'!J4848=\"Yes\",'TSA Input'!J4848=\"Contingent\"),'TSA Input'!D4848,\"\"))","v":""},{"$f":"IF('TSA Input'!J4848=\"\",\"\",IF(OR('TSA Input'!J4848=\"Yes\",'TSA Input'!J4848=\"Contingent\"),'TSA Input'!G4848,\"\"))","v":""},{"$f":"IF('TSA Input'!J4848=\"\",\"\",IF(OR('TSA Input'!J4848=\"Yes\",'TSA Input'!J4848=\"Contingent\"),'TSA Input'!F4848,\"\"))","v":""},"",{"$f":"IF('TSA Input'!J4848=\"\",\"\",IF(OR('TSA Input'!J4848=\"Yes\",'TSA Input'!J4848=\"Contingent\"),'TSA Input'!D4848,\"\"))","v":""},{"$f":"IF('TSA Input'!J4848=\"\",\"\",IF(OR('TSA Input'!J4848=\"Yes\",'TSA Input'!J4848=\"Contingent\"),'TSA Input'!G4848,\"\"))","v":""},{"$f":"IF('TSA Input'!J4848=\"\",\"\",IF(OR('TSA Input'!J4848=\"Yes\",'TSA Input'!J4848=\"Contingent\"),'TSA Input'!F4848,\"\"))","v":""},"","Required","Required"]
["",null,{"$f":"IF('TSA Input'!J4849=\"\",\"\",IF(OR('TSA Input'!J4849=\"Yes\",'TSA Input'!J4849=\"Contingent\"),'TSA Input'!B4849,\"Ineligible\"))","v":""},{"$f":"IF('TSA Input'!J4849=\"\",\"\",IF(OR('TSA Input'!J4849=\"Yes\",'TSA Input'!J4849=\"Contingent\"),'TSA Input'!I4849,\"\"))","v":""},{"$f":"IF('TSA Input'!J4849=\"\",\"\",IF(OR('TSA Input'!J4849=\"Yes\",'TSA Input'!J4849=\"Contingent\"),'TSA Input'!C4849,\"\"))","v":""},{"$f":"IF('TSA Input'!J4849=\"\",\"\",IF(OR('TSA Input'!J4849=\"Yes\",'TSA Input'!J4849=\"Contingent\"),'TSA Input'!D4849,\"\"))","v":""},{"$f":"IF('TSA Input'!J4849=\"\",\"\",IF(OR('TSA Input'!J4849=\"Yes\",'TSA Input'!J4849=\"Contingent\"),'TSA Input'!G4849,\"\"))","v":""},{"$f":"IF('TSA Input'!J4849=\"\",\"\",IF(OR('TSA Input'!J4849=\"Yes\",'TSA Input'!J4849=\"Contingent\"),'TSA Input'!F4849,\"\"))","v":""},"",{"$f":"IF('TSA Input'!J4849=\"\",\"\",IF(OR('TSA Input'!J4849=\"Yes\",'TSA Input'!J4849=\"Contingent\"),'TSA Input'!D4849,\"\"))","v":""},{"$f":"IF('TSA Input'!J4849=\"\",\"\",IF(OR('TSA Input'!J4849=\"Yes\",'TSA Input'!J4849=\"Contingent\"),'TSA Input'!G4849,\"\"))","v":""},{"$f":"IF('TSA Input'!J4849=\"\",\"\",IF(OR('TSA Input'!J4849=\"Yes\",'TSA Input'!J4849=\"Contingent\"),'TSA Input'!F4849,\"\"))","v":""},"","Required","Required"]
["",null,{"$f":"IF('TSA Input'!J4850=\"\",\"\",IF(OR('TSA Input'!J4850=\"Yes\",'TSA Input'!J4850=\"Contingent\"),'TSA Input'!B4850,\"Ineligible\"))","v":""},{"$f":"IF('TSA Input'!J4850=\"\",\"\",IF(OR('TSA Input'!J4850=\"Yes\",'TSA Input'!J4850=\"Contingent\"),'TSA Input'!I4850,\"\"))","v":""},{"$f":"IF('TSA Input'!J4850=\"\",\"\",IF(OR('TSA Input'!J4850=\"Yes\",'TSA Input'!J4850=\"Contingent\"),'TSA Input'!C4850,\"\"))","v":""},{"$f":"IF('TSA Input'!J4850=\"\",\"\",IF(OR('TSA Input'!J4850=\"Yes\",'TSA Input'!J4850=\"Contingent\"),'TSA Input'!D4850,\"\"))","v":""},{"$f":"IF('TSA Input'!J4850=\"\",\"\",IF(OR('TSA Input'!J4850=\"Yes\",'TSA Input'!J4850=\"Contingent\"),'TSA Input'!G4850,\"\"))","v":""},{"$f":"IF('TSA Input'!J4850=\"\",\"\",IF(OR('TSA Input'!J4850=\"Yes\",'TSA Input'!J4850=\"Contingent\"),'TSA Input'!F4850,\"\"))","v":""},"",{"$f":"IF('TSA Input'!J4850=\"\",\"\",IF(OR('TSA Input'!J4850=\"Yes\",'TSA Input'!J4850=\"Contingent\"),'TSA Input'!D4850,\"\"))","v":""},{"$f":"IF('TSA Input'!J4850=\"\",\"\",IF(OR('TSA Input'!J4850=\"Yes\",'TSA Input'!J4850=\"Contingent\"),'TSA Input'!G4850,\"\"))","v":""},{"$f":"IF('TSA Input'!J4850=\"\",\"\",IF(OR('TSA Input'!J4850=\"Yes\",'TSA Input'!J4850=\"Contingent\"),'TSA Input'!F4850,\"\"))","v":""},"","Required","Required"]
["",null,{"$f":"IF('TSA Input'!J4851=\"\",\"\",IF(OR('TSA Input'!J4851=\"Yes\",'TSA Input'!J4851=\"Contingent\"),'TSA Input'!B4851,\"Ineligible\"))","v":""},{"$f":"IF('TSA Input'!J4851=\"\",\"\",IF(OR('TSA Input'!J4851=\"Yes\",'TSA Input'!J4851=\"Contingent\"),'TSA Input'!I4851,\"\"))","v":""},{"$f":"IF('TSA Input'!J4851=\"\",\"\",IF(OR('TSA Input'!J4851=\"Yes\",'TSA Input'!J4851=\"Contingent\"),'TSA Input'!C4851,\"\"))","v":""},{"$f":"IF('TSA Input'!J4851=\"\",\"\",IF(OR('TSA Input'!J4851=\"Yes\",'TSA Input'!J4851=\"Contingent\"),'TSA Input'!D4851,\"\"))","v":""},{"$f":"IF('TSA Input'!J4851=\"\",\"\",IF(OR('TSA Input'!J4851=\"Yes\",'TSA Input'!J4851=\"Contingent\"),'TSA Input'!G4851,\"\"))","v":""},{"$f":"IF('TSA Input'!J4851=\"\",\"\",IF(OR('TSA Input'!J4851=\"Yes\",'TSA Input'!J4851=\"Contingent\"),'TSA Input'!F4851,\"\"))","v":""},"",{"$f":"IF('TSA Input'!J4851=\"\",\"\",IF(OR('TSA Input'!J4851=\"Yes\",'TSA Input'!J4851=\"Contingent\"),'TSA Input'!D4851,\"\"))","v":""},{"$f":"IF('TSA Input'!J4851=\"\",\"\",IF(OR('TSA Input'!J4851=\"Yes\",'TSA Input'!J4851=\"Contingent\"),'TSA Input'!G4851,\"\"))","v":""},{"$f":"IF('TSA Input'!J4851=\"\",\"\",IF(OR('TSA Input'!J4851=\"Yes\",'TSA Input'!J4851=\"Contingent\"),'TSA Input'!F4851,\"\"))","v":""},"","Required","Required"]
["",null,{"$f":"IF('TSA Input'!J4852=\"\",\"\",IF(OR('TSA Input'!J4852=\"Yes\",'TSA Input'!J4852=\"Contingent\"),'TSA Input'!B4852,\"Ineligible\"))","v":""},{"$f":"IF('TSA Input'!J4852=\"\",\"\",IF(OR('TSA Input'!J4852=\"Yes\",'TSA Input'!J4852=\"Contingent\"),'TSA Input'!I4852,\"\"))","v":""},{"$f":"IF('TSA Input'!J4852=\"\",\"\",IF(OR('TSA Input'!J4852=\"Yes\",'TSA Input'!J4852=\"Contingent\"),'TSA Input'!C4852,\"\"))","v":""},{"$f":"IF('TSA Input'!J4852=\"\",\"\",IF(OR('TSA Input'!J4852=\"Yes\",'TSA Input'!J4852=\"Contingent\"),'TSA Input'!D4852,\"\"))","v":""},{"$f":"IF('TSA Input'!J4852=\"\",\"\",IF(OR('TSA Input'!J4852=\"Yes\",'TSA Input'!J4852=\"Contingent\"),'TSA Input'!G4852,\"\"))","v":""},{"$f":"IF('TSA Input'!J4852=\"\",\"\",IF(OR('TSA Input'!J4852=\"Yes\",'TSA Input'!J4852=\"Contingent\"),'TSA Input'!F4852,\"\"))","v":""},"",{"$f":"IF('TSA Input'!J4852=\"\",\"\",IF(OR('TSA Input'!J4852=\"Yes\",'TSA Input'!J4852=\"Contingent\"),'TSA Input'!D4852,\"\"))","v":""},{"$f":"IF('TSA Input'!J4852=\"\",\"\",IF(OR('TSA Input'!J4852=\"Yes\",'TSA Input'!J4852=\"Contingent\"),'TSA Input'!G4852,\"\"))","v":""},{"$f":"IF('TSA Input'!J4852=\"\",\"\",IF(OR('TSA Input'!J4852=\"Yes\",'TSA Input'!J4852=\"Contingent\"),'TSA Input'!F4852,\"\"))","v":""},"","Required","Required"]
["",null,{"$f":"IF('TSA Input'!J4853=\"\",\"\",IF(OR('TSA Input'!J4853=\"Yes\",'TSA Input'!J4853=\"Contingent\"),'TSA Input'!B4853,\"Ineligible\"))","v":""},{"$f":"IF('TSA Input'!J4853=\"\",\"\",IF(OR('TSA Input'!J4853=\"Yes\",'TSA Input'!J4853=\"Contingent\"),'TSA Input'!I4853,\"\"))","v":""},{"$f":"IF('TSA Input'!J4853=\"\",\"\",IF(OR('TSA Input'!J4853=\"Yes\",'TSA Input'!J4853=\"Contingent\"),'TSA Input'!C4853,\"\"))","v":""},{"$f":"IF('TSA Input'!J4853=\"\",\"\",IF(OR('TSA Input'!J4853=\"Yes\",'TSA Input'!J4853=\"Contingent\"),'TSA Input'!D4853,\"\"))","v":""},{"$f":"IF('TSA Input'!J4853=\"\",\"\",IF(OR('TSA Input'!J4853=\"Yes\",'TSA Input'!J4853=\"Contingent\"),'TSA Input'!G4853,\"\"))","v":""},{"$f":"IF('TSA Input'!J4853=\"\",\"\",IF(OR('TSA Input'!J4853=\"Yes\",'TSA Input'!J4853=\"Contingent\"),'TSA Input'!F4853,\"\"))","v":""},"",{"$f":"IF('TSA Input'!J4853=\"\",\"\",IF(OR('TSA Input'!J4853=\"Yes\",'TSA Input'!J4853=\"Contingent\"),'TSA Input'!D4853,\"\"))","v":""},{"$f":"IF('TSA Input'!J4853=\"\",\"\",IF(OR('TSA Input'!J4853=\"Yes\",'TSA Input'!J4853=\"Contingent\"),'TSA Input'!G4853,\"\"))","v":""},{"$f":"IF('TSA Input'!J4853=\"\",\"\",IF(OR('TSA Input'!J4853=\"Yes\",'TSA Input'!J4853=\"Contingent\"),'TSA Input'!F4853,\"\"))","v":""},"","Required","Required"]
["",null,{"$f":"IF('TSA Input'!J4854=\"\",\"\",IF(OR('TSA Input'!J4854=\"Yes\",'TSA Input'!J4854=\"Contingent\"),'TSA Input'!B4854,\"Ineligible\"))","v":""},{"$f":"IF('TSA Input'!J4854=\"\",\"\",IF(OR('TSA Input'!J4854=\"Yes\",'TSA Input'!J4854=\"Contingent\"),'TSA Input'!I4854,\"\"))","v":""},{"$f":"IF('TSA Input'!J4854=\"\",\"\",IF(OR('TSA Input'!J4854=\"Yes\",'TSA Input'!J4854=\"Contingent\"),'TSA Input'!C4854,\"\"))","v":""},{"$f":"IF('TSA Input'!J4854=\"\",\"\",IF(OR('TSA Input'!J4854=\"Yes\",'TSA Input'!J4854=\"Contingent\"),'TSA Input'!D4854,\"\"))","v":""},{"$f":"IF('TSA Input'!J4854=\"\",\"\",IF(OR('TSA Input'!J4854=\"Yes\",'TSA Input'!J4854=\"Contingent\"),'TSA Input'!G4854,\"\"))","v":""},{"$f":"IF('TSA Input'!J4854=\"\",\"\",IF(OR('TSA Input'!J4854=\"Yes\",'TSA Input'!J4854=\"Contingent\"),'TSA Input'!F4854,\"\"))","v":""},"",{"$f":"IF('TSA Input'!J4854=\"\",\"\",IF(OR('TSA Input'!J4854=\"Yes\",'TSA Input'!J4854=\"Contingent\"),'TSA Input'!D4854,\"\"))","v":""},{"$f":"IF('TSA Input'!J4854=\"\",\"\",IF(OR('TSA Input'!J4854=\"Yes\",'TSA Input'!J4854=\"Contingent\"),'TSA Input'!G4854,\"\"))","v":""},{"$f":"IF('TSA Input'!J4854=\"\",\"\",IF(OR('TSA Input'!J4854=\"Yes\",'TSA Input'!J4854=\"Contingent\"),'TSA Input'!F4854,\"\"))","v":""},"","Required","Required"]
["",null,{"$f":"IF('TSA Input'!J4855=\"\",\"\",IF(OR('TSA Input'!J4855=\"Yes\",'TSA Input'!J4855=\"Contingent\"),'TSA Input'!B4855,\"Ineligible\"))","v":""},{"$f":"IF('TSA Input'!J4855=\"\",\"\",IF(OR('TSA Input'!J4855=\"Yes\",'TSA Input'!J4855=\"Contingent\"),'TSA Input'!I4855,\"\"))","v":""},{"$f":"IF('TSA Input'!J4855=\"\",\"\",IF(OR('TSA Input'!J4855=\"Yes\",'TSA Input'!J4855=\"Contingent\"),'TSA Input'!C4855,\"\"))","v":""},{"$f":"IF('TSA Input'!J4855=\"\",\"\",IF(OR('TSA Input'!J4855=\"Yes\",'TSA Input'!J4855=\"Contingent\"),'TSA Input'!D4855,\"\"))","v":""},{"$f":"IF('TSA Input'!J4855=\"\",\"\",IF(OR('TSA Input'!J4855=\"Yes\",'TSA Input'!J4855=\"Contingent\"),'TSA Input'!G4855,\"\"))","v":""},{"$f":"IF('TSA Input'!J4855=\"\",\"\",IF(OR('TSA Input'!J4855=\"Yes\",'TSA Input'!J4855=\"Contingent\"),'TSA Input'!F4855,\"\"))","v":""},"",{"$f":"IF('TSA Input'!J4855=\"\",\"\",IF(OR('TSA Input'!J4855=\"Yes\",'TSA Input'!J4855=\"Contingent\"),'TSA Input'!D4855,\"\"))","v":""},{"$f":"IF('TSA Input'!J4855=\"\",\"\",IF(OR('TSA Input'!J4855=\"Yes\",'TSA Input'!J4855=\"Contingent\"),'TSA Input'!G4855,\"\"))","v":""},{"$f":"IF('TSA Input'!J4855=\"\",\"\",IF(OR('TSA Input'!J4855=\"Yes\",'TSA Input'!J4855=\"Contingent\"),'TSA Input'!F4855,\"\"))","v":""},"","Required","Required"]
["",null,{"$f":"IF('TSA Input'!J4856=\"\",\"\",IF(OR('TSA Input'!J4856=\"Yes\",'TSA Input'!J4856=\"Contingent\"),'TSA Input'!B4856,\"Ineligible\"))","v":""},{"$f":"IF('TSA Input'!J4856=\"\",\"\",IF(OR('TSA Input'!J4856=\"Yes\",'TSA Input'!J4856=\"Contingent\"),'TSA Input'!I4856,\"\"))","v":""},{"$f":"IF('TSA Input'!J4856=\"\",\"\",IF(OR('TSA Input'!J4856=\"Yes\",'TSA Input'!J4856=\"Contingent\"),'TSA Input'!C4856,\"\"))","v":""},{"$f":"IF('TSA Input'!J4856=\"\",\"\",IF(OR('TSA Input'!J4856=\"Yes\",'TSA Input'!J4856=\"Contingent\"),'TSA Input'!D4856,\"\"))","v":""},{"$f":"IF('TSA Input'!J4856=\"\",\"\",IF(OR('TSA Input'!J4856=\"Yes\",'TSA Input'!J4856=\"Contingent\"),'TSA Input'!G4856,\"\"))","v":""},{"$f":"IF('TSA Input'!J4856=\"\",\"\",IF(OR('TSA Input'!J4856=\"Yes\",'TSA Input'!J4856=\"Contingent\"),'TSA Input'!F4856,\"\"))","v":""},"",{"$f":"IF('TSA Input'!J4856=\"\",\"\",IF(OR('TSA Input'!J4856=\"Yes\",'TSA Input'!J4856=\"Contingent\"),'TSA Input'!D4856,\"\"))","v":""},{"$f":"IF('TSA Input'!J4856=\"\",\"\",IF(OR('TSA Input'!J4856=\"Yes\",'TSA Input'!J4856=\"Contingent\"),'TSA Input'!G4856,\"\"))","v":""},{"$f":"IF('TSA Input'!J4856=\"\",\"\",IF(OR('TSA Input'!J4856=\"Yes\",'TSA Input'!J4856=\"Contingent\"),'TSA Input'!F4856,\"\"))","v":""},"","Required","Required"]
["",null,{"$f":"IF('TSA Input'!J4857=\"\",\"\",IF(OR('TSA Input'!J4857=\"Yes\",'TSA Input'!J4857=\"Contingent\"),'TSA Input'!B4857,\"Ineligible\"))","v":""},{"$f":"IF('TSA Input'!J4857=\"\",\"\",IF(OR('TSA Input'!J4857=\"Yes\",'TSA Input'!J4857=\"Contingent\"),'TSA Input'!I4857,\"\"))","v":""},{"$f":"IF('TSA Input'!J4857=\"\",\"\",IF(OR('TSA Input'!J4857=\"Yes\",'TSA Input'!J4857=\"Contingent\"),'TSA Input'!C4857,\"\"))","v":""},{"$f":"IF('TSA Input'!J4857=\"\",\"\",IF(OR('TSA Input'!J4857=\"Yes\",'TSA Input'!J4857=\"Contingent\"),'TSA Input'!D4857,\"\"))","v":""},{"$f":"IF('TSA Input'!J4857=\"\",\"\",IF(OR('TSA Input'!J4857=\"Yes\",'TSA Input'!J4857=\"Contingent\"),'TSA Input'!G4857,\"\"))","v":""},{"$f":"IF('TSA Input'!J4857=\"\",\"\",IF(OR('TSA Input'!J4857=\"Yes\",'TSA Input'!J4857=\"Contingent\"),'TSA Input'!F4857,\"\"))","v":""},"",{"$f":"IF('TSA Input'!J4857=\"\",\"\",IF(OR('TSA Input'!J4857=\"Yes\",'TSA Input'!J4857=\"Contingent\"),'TSA Input'!D4857,\"\"))","v":""},{"$f":"IF('TSA Input'!J4857=\"\",\"\",IF(OR('TSA Input'!J4857=\"Yes\",'TSA Input'!J4857=\"Contingent\"),'TSA Input'!G4857,\"\"))","v":""},{"$f":"IF('TSA Input'!J4857=\"\",\"\",IF(OR('TSA Input'!J4857=\"Yes\",'TSA Input'!J4857=\"Contingent\"),'TSA Input'!F4857,\"\"))","v":""},"","Required","Required"]
["",null,{"$f":"IF('TSA Input'!J4858=\"\",\"\",IF(OR('TSA Input'!J4858=\"Yes\",'TSA Input'!J4858=\"Contingent\"),'TSA Input'!B4858,\"Ineligible\"))","v":""},{"$f":"IF('TSA Input'!J4858=\"\",\"\",IF(OR('TSA Input'!J4858=\"Yes\",'TSA Input'!J4858=\"Contingent\"),'TSA Input'!I4858,\"\"))","v":""},{"$f":"IF('TSA Input'!J4858=\"\",\"\",IF(OR('TSA Input'!J4858=\"Yes\",'TSA Input'!J4858=\"Contingent\"),'TSA Input'!C4858,\"\"))","v":""},{"$f":"IF('TSA Input'!J4858=\"\",\"\",IF(OR('TSA Input'!J4858=\"Yes\",'TSA Input'!J4858=\"Contingent\"),'TSA Input'!D4858,\"\"))","v":""},{"$f":"IF('TSA Input'!J4858=\"\",\"\",IF(OR('TSA Input'!J4858=\"Yes\",'TSA Input'!J4858=\"Contingent\"),'TSA Input'!G4858,\"\"))","v":""},{"$f":"IF('TSA Input'!J4858=\"\",\"\",IF(OR('TSA Input'!J4858=\"Yes\",'TSA Input'!J4858=\"Contingent\"),'TSA Input'!F4858,\"\"))","v":""},"",{"$f":"IF('TSA Input'!J4858=\"\",\"\",IF(OR('TSA Input'!J4858=\"Yes\",'TSA Input'!J4858=\"Contingent\"),'TSA Input'!D4858,\"\"))","v":""},{"$f":"IF('TSA Input'!J4858=\"\",\"\",IF(OR('TSA Input'!J4858=\"Yes\",'TSA Input'!J4858=\"Contingent\"),'TSA Input'!G4858,\"\"))","v":""},{"$f":"IF('TSA Input'!J4858=\"\",\"\",IF(OR('TSA Input'!J4858=\"Yes\",'TSA Input'!J4858=\"Contingent\"),'TSA Input'!F4858,\"\"))","v":""},"","Required","Required"]
["",null,{"$f":"IF('TSA Input'!J4859=\"\",\"\",IF(OR('TSA Input'!J4859=\"Yes\",'TSA Input'!J4859=\"Contingent\"),'TSA Input'!B4859,\"Ineligible\"))","v":""},{"$f":"IF('TSA Input'!J4859=\"\",\"\",IF(OR('TSA Input'!J4859=\"Yes\",'TSA Input'!J4859=\"Contingent\"),'TSA Input'!I4859,\"\"))","v":""},{"$f":"IF('TSA Input'!J4859=\"\",\"\",IF(OR('TSA Input'!J4859=\"Yes\",'TSA Input'!J4859=\"Contingent\"),'TSA Input'!C4859,\"\"))","v":""},{"$f":"IF('TSA Input'!J4859=\"\",\"\",IF(OR('TSA Input'!J4859=\"Yes\",'TSA Input'!J4859=\"Contingent\"),'TSA Input'!D4859,\"\"))","v":""},{"$f":"IF('TSA Input'!J4859=\"\",\"\",IF(OR('TSA Input'!J4859=\"Yes\",'TSA Input'!J4859=\"Contingent\"),'TSA Input'!G4859,\"\"))","v":""},{"$f":"IF('TSA Input'!J4859=\"\",\"\",IF(OR('TSA Input'!J4859=\"Yes\",'TSA Input'!J4859=\"Contingent\"),'TSA Input'!F4859,\"\"))","v":""},"",{"$f":"IF('TSA Input'!J4859=\"\",\"\",IF(OR('TSA Input'!J4859=\"Yes\",'TSA Input'!J4859=\"Contingent\"),'TSA Input'!D4859,\"\"))","v":""},{"$f":"IF('TSA Input'!J4859=\"\",\"\",IF(OR('TSA Input'!J4859=\"Yes\",'TSA Input'!J4859=\"Contingent\"),'TSA Input'!G4859,\"\"))","v":""},{"$f":"IF('TSA Input'!J4859=\"\",\"\",IF(OR('TSA Input'!J4859=\"Yes\",'TSA Input'!J4859=\"Contingent\"),'TSA Input'!F4859,\"\"))","v":""},"","Required","Required"]
["",null,{"$f":"IF('TSA Input'!J4860=\"\",\"\",IF(OR('TSA Input'!J4860=\"Yes\",'TSA Input'!J4860=\"Contingent\"),'TSA Input'!B4860,\"Ineligible\"))","v":""},{"$f":"IF('TSA Input'!J4860=\"\",\"\",IF(OR('TSA Input'!J4860=\"Yes\",'TSA Input'!J4860=\"Contingent\"),'TSA Input'!I4860,\"\"))","v":""},{"$f":"IF('TSA Input'!J4860=\"\",\"\",IF(OR('TSA Input'!J4860=\"Yes\",'TSA Input'!J4860=\"Contingent\"),'TSA Input'!C4860,\"\"))","v":""},{"$f":"IF('TSA Input'!J4860=\"\",\"\",IF(OR('TSA Input'!J4860=\"Yes\",'TSA Input'!J4860=\"Contingent\"),'TSA Input'!D4860,\"\"))","v":""},{"$f":"IF('TSA Input'!J4860=\"\",\"\",IF(OR('TSA Input'!J4860=\"Yes\",'TSA Input'!J4860=\"Contingent\"),'TSA Input'!G4860,\"\"))","v":""},{"$f":"IF('TSA Input'!J4860=\"\",\"\",IF(OR('TSA Input'!J4860=\"Yes\",'TSA Input'!J4860=\"Contingent\"),'TSA Input'!F4860,\"\"))","v":""},"",{"$f":"IF('TSA Input'!J4860=\"\",\"\",IF(OR('TSA Input'!J4860=\"Yes\",'TSA Input'!J4860=\"Contingent\"),'TSA Input'!D4860,\"\"))","v":""},{"$f":"IF('TSA Input'!J4860=\"\",\"\",IF(OR('TSA Input'!J4860=\"Yes\",'TSA Input'!J4860=\"Contingent\"),'TSA Input'!G4860,\"\"))","v":""},{"$f":"IF('TSA Input'!J4860=\"\",\"\",IF(OR('TSA Input'!J4860=\"Yes\",'TSA Input'!J4860=\"Contingent\"),'TSA Input'!F4860,\"\"))","v":""},"","Required","Required"]
["",null,{"$f":"IF('TSA Input'!J4861=\"\",\"\",IF(OR('TSA Input'!J4861=\"Yes\",'TSA Input'!J4861=\"Contingent\"),'TSA Input'!B4861,\"Ineligible\"))","v":""},{"$f":"IF('TSA Input'!J4861=\"\",\"\",IF(OR('TSA Input'!J4861=\"Yes\",'TSA Input'!J4861=\"Contingent\"),'TSA Input'!I4861,\"\"))","v":""},{"$f":"IF('TSA Input'!J4861=\"\",\"\",IF(OR('TSA Input'!J4861=\"Yes\",'TSA Input'!J4861=\"Contingent\"),'TSA Input'!C4861,\"\"))","v":""},{"$f":"IF('TSA Input'!J4861=\"\",\"\",IF(OR('TSA Input'!J4861=\"Yes\",'TSA Input'!J4861=\"Contingent\"),'TSA Input'!D4861,\"\"))","v":""},{"$f":"IF('TSA Input'!J4861=\"\",\"\",IF(OR('TSA Input'!J4861=\"Yes\",'TSA Input'!J4861=\"Contingent\"),'TSA Input'!G4861,\"\"))","v":""},{"$f":"IF('TSA Input'!J4861=\"\",\"\",IF(OR('TSA Input'!J4861=\"Yes\",'TSA Input'!J4861=\"Contingent\"),'TSA Input'!F4861,\"\"))","v":""},"",{"$f":"IF('TSA Input'!J4861=\"\",\"\",IF(OR('TSA Input'!J4861=\"Yes\",'TSA Input'!J4861=\"Contingent\"),'TSA Input'!D4861,\"\"))","v":""},{"$f":"IF('TSA Input'!J4861=\"\",\"\",IF(OR('TSA Input'!J4861=\"Yes\",'TSA Input'!J4861=\"Contingent\"),'TSA Input'!G4861,\"\"))","v":""},{"$f":"IF('TSA Input'!J4861=\"\",\"\",IF(OR('TSA Input'!J4861=\"Yes\",'TSA Input'!J4861=\"Contingent\"),'TSA Input'!F4861,\"\"))","v":""},"","Required","Required"]
["",null,{"$f":"IF('TSA Input'!J4862=\"\",\"\",IF(OR('TSA Input'!J4862=\"Yes\",'TSA Input'!J4862=\"Contingent\"),'TSA Input'!B4862,\"Ineligible\"))","v":""},{"$f":"IF('TSA Input'!J4862=\"\",\"\",IF(OR('TSA Input'!J4862=\"Yes\",'TSA Input'!J4862=\"Contingent\"),'TSA Input'!I4862,\"\"))","v":""},{"$f":"IF('TSA Input'!J4862=\"\",\"\",IF(OR('TSA Input'!J4862=\"Yes\",'TSA Input'!J4862=\"Contingent\"),'TSA Input'!C4862,\"\"))","v":""},{"$f":"IF('TSA Input'!J4862=\"\",\"\",IF(OR('TSA Input'!J4862=\"Yes\",'TSA Input'!J4862=\"Contingent\"),'TSA Input'!D4862,\"\"))","v":""},{"$f":"IF('TSA Input'!J4862=\"\",\"\",IF(OR('TSA Input'!J4862=\"Yes\",'TSA Input'!J4862=\"Contingent\"),'TSA Input'!G4862,\"\"))","v":""},{"$f":"IF('TSA Input'!J4862=\"\",\"\",IF(OR('TSA Input'!J4862=\"Yes\",'TSA Input'!J4862=\"Contingent\"),'TSA Input'!F4862,\"\"))","v":""},"",{"$f":"IF('TSA Input'!J4862=\"\",\"\",IF(OR('TSA Input'!J4862=\"Yes\",'TSA Input'!J4862=\"Contingent\"),'TSA Input'!D4862,\"\"))","v":""},{"$f":"IF('TSA Input'!J4862=\"\",\"\",IF(OR('TSA Input'!J4862=\"Yes\",'TSA Input'!J4862=\"Contingent\"),'TSA Input'!G4862,\"\"))","v":""},{"$f":"IF('TSA Input'!J4862=\"\",\"\",IF(OR('TSA Input'!J4862=\"Yes\",'TSA Input'!J4862=\"Contingent\"),'TSA Input'!F4862,\"\"))","v":""},"","Required","Required"]
["",null,{"$f":"IF('TSA Input'!J4863=\"\",\"\",IF(OR('TSA Input'!J4863=\"Yes\",'TSA Input'!J4863=\"Contingent\"),'TSA Input'!B4863,\"Ineligible\"))","v":""},{"$f":"IF('TSA Input'!J4863=\"\",\"\",IF(OR('TSA Input'!J4863=\"Yes\",'TSA Input'!J4863=\"Contingent\"),'TSA Input'!I4863,\"\"))","v":""},{"$f":"IF('TSA Input'!J4863=\"\",\"\",IF(OR('TSA Input'!J4863=\"Yes\",'TSA Input'!J4863=\"Contingent\"),'TSA Input'!C4863,\"\"))","v":""},{"$f":"IF('TSA Input'!J4863=\"\",\"\",IF(OR('TSA Input'!J4863=\"Yes\",'TSA Input'!J4863=\"Contingent\"),'TSA Input'!D4863,\"\"))","v":""},{"$f":"IF('TSA Input'!J4863=\"\",\"\",IF(OR('TSA Input'!J4863=\"Yes\",'TSA Input'!J4863=\"Contingent\"),'TSA Input'!G4863,\"\"))","v":""},{"$f":"IF('TSA Input'!J4863=\"\",\"\",IF(OR('TSA Input'!J4863=\"Yes\",'TSA Input'!J4863=\"Contingent\"),'TSA Input'!F4863,\"\"))","v":""},"",{"$f":"IF('TSA Input'!J4863=\"\",\"\",IF(OR('TSA Input'!J4863=\"Yes\",'TSA Input'!J4863=\"Contingent\"),'TSA Input'!D4863,\"\"))","v":""},{"$f":"IF('TSA Input'!J4863=\"\",\"\",IF(OR('TSA Input'!J4863=\"Yes\",'TSA Input'!J4863=\"Contingent\"),'TSA Input'!G4863,\"\"))","v":""},{"$f":"IF('TSA Input'!J4863=\"\",\"\",IF(OR('TSA Input'!J4863=\"Yes\",'TSA Input'!J4863=\"Contingent\"),'TSA Input'!F4863,\"\"))","v":""},"","Required","Required"]
["",null,{"$f":"IF('TSA Input'!J4864=\"\",\"\",IF(OR('TSA Input'!J4864=\"Yes\",'TSA Input'!J4864=\"Contingent\"),'TSA Input'!B4864,\"Ineligible\"))","v":""},{"$f":"IF('TSA Input'!J4864=\"\",\"\",IF(OR('TSA Input'!J4864=\"Yes\",'TSA Input'!J4864=\"Contingent\"),'TSA Input'!I4864,\"\"))","v":""},{"$f":"IF('TSA Input'!J4864=\"\",\"\",IF(OR('TSA Input'!J4864=\"Yes\",'TSA Input'!J4864=\"Contingent\"),'TSA Input'!C4864,\"\"))","v":""},{"$f":"IF('TSA Input'!J4864=\"\",\"\",IF(OR('TSA Input'!J4864=\"Yes\",'TSA Input'!J4864=\"Contingent\"),'TSA Input'!D4864,\"\"))","v":""},{"$f":"IF('TSA Input'!J4864=\"\",\"\",IF(OR('TSA Input'!J4864=\"Yes\",'TSA Input'!J4864=\"Contingent\"),'TSA Input'!G4864,\"\"))","v":""},{"$f":"IF('TSA Input'!J4864=\"\",\"\",IF(OR('TSA Input'!J4864=\"Yes\",'TSA Input'!J4864=\"Contingent\"),'TSA Input'!F4864,\"\"))","v":""},"",{"$f":"IF('TSA Input'!J4864=\"\",\"\",IF(OR('TSA Input'!J4864=\"Yes\",'TSA Input'!J4864=\"Contingent\"),'TSA Input'!D4864,\"\"))","v":""},{"$f":"IF('TSA Input'!J4864=\"\",\"\",IF(OR('TSA Input'!J4864=\"Yes\",'TSA Input'!J4864=\"Contingent\"),'TSA Input'!G4864,\"\"))","v":""},{"$f":"IF('TSA Input'!J4864=\"\",\"\",IF(OR('TSA Input'!J4864=\"Yes\",'TSA Input'!J4864=\"Contingent\"),'TSA Input'!F4864,\"\"))","v":""},"","Required","Required"]
["",null,{"$f":"IF('TSA Input'!J4865=\"\",\"\",IF(OR('TSA Input'!J4865=\"Yes\",'TSA Input'!J4865=\"Contingent\"),'TSA Input'!B4865,\"Ineligible\"))","v":""},{"$f":"IF('TSA Input'!J4865=\"\",\"\",IF(OR('TSA Input'!J4865=\"Yes\",'TSA Input'!J4865=\"Contingent\"),'TSA Input'!I4865,\"\"))","v":""},{"$f":"IF('TSA Input'!J4865=\"\",\"\",IF(OR('TSA Input'!J4865=\"Yes\",'TSA Input'!J4865=\"Contingent\"),'TSA Input'!C4865,\"\"))","v":""},{"$f":"IF('TSA Input'!J4865=\"\",\"\",IF(OR('TSA Input'!J4865=\"Yes\",'TSA Input'!J4865=\"Contingent\"),'TSA Input'!D4865,\"\"))","v":""},{"$f":"IF('TSA Input'!J4865=\"\",\"\",IF(OR('TSA Input'!J4865=\"Yes\",'TSA Input'!J4865=\"Contingent\"),'TSA Input'!G4865,\"\"))","v":""},{"$f":"IF('TSA Input'!J4865=\"\",\"\",IF(OR('TSA Input'!J4865=\"Yes\",'TSA Input'!J4865=\"Contingent\"),'TSA Input'!F4865,\"\"))","v":""},"",{"$f":"IF('TSA Input'!J4865=\"\",\"\",IF(OR('TSA Input'!J4865=\"Yes\",'TSA Input'!J4865=\"Contingent\"),'TSA Input'!D4865,\"\"))","v":""},{"$f":"IF('TSA Input'!J4865=\"\",\"\",IF(OR('TSA Input'!J4865=\"Yes\",'TSA Input'!J4865=\"Contingent\"),'TSA Input'!G4865,\"\"))","v":""},{"$f":"IF('TSA Input'!J4865=\"\",\"\",IF(OR('TSA Input'!J4865=\"Yes\",'TSA Input'!J4865=\"Contingent\"),'TSA Input'!F4865,\"\"))","v":""},"","Required","Required"]
["",null,{"$f":"IF('TSA Input'!J4866=\"\",\"\",IF(OR('TSA Input'!J4866=\"Yes\",'TSA Input'!J4866=\"Contingent\"),'TSA Input'!B4866,\"Ineligible\"))","v":""},{"$f":"IF('TSA Input'!J4866=\"\",\"\",IF(OR('TSA Input'!J4866=\"Yes\",'TSA Input'!J4866=\"Contingent\"),'TSA Input'!I4866,\"\"))","v":""},{"$f":"IF('TSA Input'!J4866=\"\",\"\",IF(OR('TSA Input'!J4866=\"Yes\",'TSA Input'!J4866=\"Contingent\"),'TSA Input'!C4866,\"\"))","v":""},{"$f":"IF('TSA Input'!J4866=\"\",\"\",IF(OR('TSA Input'!J4866=\"Yes\",'TSA Input'!J4866=\"Contingent\"),'TSA Input'!D4866,\"\"))","v":""},{"$f":"IF('TSA Input'!J4866=\"\",\"\",IF(OR('TSA Input'!J4866=\"Yes\",'TSA Input'!J4866=\"Contingent\"),'TSA Input'!G4866,\"\"))","v":""},{"$f":"IF('TSA Input'!J4866=\"\",\"\",IF(OR('TSA Input'!J4866=\"Yes\",'TSA Input'!J4866=\"Contingent\"),'TSA Input'!F4866,\"\"))","v":""},"",{"$f":"IF('TSA Input'!J4866=\"\",\"\",IF(OR('TSA Input'!J4866=\"Yes\",'TSA Input'!J4866=\"Contingent\"),'TSA Input'!D4866,\"\"))","v":""},{"$f":"IF('TSA Input'!J4866=\"\",\"\",IF(OR('TSA Input'!J4866=\"Yes\",'TSA Input'!J4866=\"Contingent\"),'TSA Input'!G4866,\"\"))","v":""},{"$f":"IF('TSA Input'!J4866=\"\",\"\",IF(OR('TSA Input'!J4866=\"Yes\",'TSA Input'!J4866=\"Contingent\"),'TSA Input'!F4866,\"\"))","v":""},"","Required","Required"]
["",null,{"$f":"IF('TSA Input'!J4867=\"\",\"\",IF(OR('TSA Input'!J4867=\"Yes\",'TSA Input'!J4867=\"Contingent\"),'TSA Input'!B4867,\"Ineligible\"))","v":""},{"$f":"IF('TSA Input'!J4867=\"\",\"\",IF(OR('TSA Input'!J4867=\"Yes\",'TSA Input'!J4867=\"Contingent\"),'TSA Input'!I4867,\"\"))","v":""},{"$f":"IF('TSA Input'!J4867=\"\",\"\",IF(OR('TSA Input'!J4867=\"Yes\",'TSA Input'!J4867=\"Contingent\"),'TSA Input'!C4867,\"\"))","v":""},{"$f":"IF('TSA Input'!J4867=\"\",\"\",IF(OR('TSA Input'!J4867=\"Yes\",'TSA Input'!J4867=\"Contingent\"),'TSA Input'!D4867,\"\"))","v":""},{"$f":"IF('TSA Input'!J4867=\"\",\"\",IF(OR('TSA Input'!J4867=\"Yes\",'TSA Input'!J4867=\"Contingent\"),'TSA Input'!G4867,\"\"))","v":""},{"$f":"IF('TSA Input'!J4867=\"\",\"\",IF(OR('TSA Input'!J4867=\"Yes\",'TSA Input'!J4867=\"Contingent\"),'TSA Input'!F4867,\"\"))","v":""},"",{"$f":"IF('TSA Input'!J4867=\"\",\"\",IF(OR('TSA Input'!J4867=\"Yes\",'TSA Input'!J4867=\"Contingent\"),'TSA Input'!D4867,\"\"))","v":""},{"$f":"IF('TSA Input'!J4867=\"\",\"\",IF(OR('TSA Input'!J4867=\"Yes\",'TSA Input'!J4867=\"Contingent\"),'TSA Input'!G4867,\"\"))","v":""},{"$f":"IF('TSA Input'!J4867=\"\",\"\",IF(OR('TSA Input'!J4867=\"Yes\",'TSA Input'!J4867=\"Contingent\"),'TSA Input'!F4867,\"\"))","v":""},"","Required","Required"]
["",null,{"$f":"IF('TSA Input'!J4868=\"\",\"\",IF(OR('TSA Input'!J4868=\"Yes\",'TSA Input'!J4868=\"Contingent\"),'TSA Input'!B4868,\"Ineligible\"))","v":""},{"$f":"IF('TSA Input'!J4868=\"\",\"\",IF(OR('TSA Input'!J4868=\"Yes\",'TSA Input'!J4868=\"Contingent\"),'TSA Input'!I4868,\"\"))","v":""},{"$f":"IF('TSA Input'!J4868=\"\",\"\",IF(OR('TSA Input'!J4868=\"Yes\",'TSA Input'!J4868=\"Contingent\"),'TSA Input'!C4868,\"\"))","v":""},{"$f":"IF('TSA Input'!J4868=\"\",\"\",IF(OR('TSA Input'!J4868=\"Yes\",'TSA Input'!J4868=\"Contingent\"),'TSA Input'!D4868,\"\"))","v":""},{"$f":"IF('TSA Input'!J4868=\"\",\"\",IF(OR('TSA Input'!J4868=\"Yes\",'TSA Input'!J4868=\"Contingent\"),'TSA Input'!G4868,\"\"))","v":""},{"$f":"IF('TSA Input'!J4868=\"\",\"\",IF(OR('TSA Input'!J4868=\"Yes\",'TSA Input'!J4868=\"Contingent\"),'TSA Input'!F4868,\"\"))","v":""},{"$f":"IF($C4906=\"\",\"\",SUM(F4906:H4906))","v":""},{"$f":"IF('TSA Input'!J4868=\"\",\"\",IF(OR('TSA Input'!J4868=\"Yes\",'TSA Input'!J4868=\"Contingent\"),'TSA Input'!D4868,\"\"))","v":""},{"$f":"IF('TSA Input'!J4868=\"\",\"\",IF(OR('TSA Input'!J4868=\"Yes\",'TSA Input'!J4868=\"Contingent\"),'TSA Input'!G4868,\"\"))","v":""},{"$f":"IF('TSA Input'!J4868=\"\",\"\",IF(OR('TSA Input'!J4868=\"Yes\",'TSA Input'!J4868=\"Contingent\"),'TSA Input'!F4868,\"\"))","v":""},{"$f":"IF($C4906=\"\",\"\",SUM(J4906:L4906))","v":""},"Required","Required"]
["",null,{"$f":"IF('TSA Input'!J4869=\"\",\"\",IF(OR('TSA Input'!J4869=\"Yes\",'TSA Input'!J4869=\"Contingent\"),'TSA Input'!B4869,\"Ineligible\"))","v":""},{"$f":"IF('TSA Input'!J4869=\"\",\"\",IF(OR('TSA Input'!J4869=\"Yes\",'TSA Input'!J4869=\"Contingent\"),'TSA Input'!I4869,\"\"))","v":""},{"$f":"IF('TSA Input'!J4869=\"\",\"\",IF(OR('TSA Input'!J4869=\"Yes\",'TSA Input'!J4869=\"Contingent\"),'TSA Input'!C4869,\"\"))","v":""},{"$f":"IF('TSA Input'!J4869=\"\",\"\",IF(OR('TSA Input'!J4869=\"Yes\",'TSA Input'!J4869=\"Contingent\"),'TSA Input'!D4869,\"\"))","v":""},{"$f":"IF('TSA Input'!J4869=\"\",\"\",IF(OR('TSA Input'!J4869=\"Yes\",'TSA Input'!J4869=\"Contingent\"),'TSA Input'!G4869,\"\"))","v":""},{"$f":"IF('TSA Input'!J4869=\"\",\"\",IF(OR('TSA Input'!J4869=\"Yes\",'TSA Input'!J4869=\"Contingent\"),'TSA Input'!F4869,\"\"))","v":""},"",{"$f":"IF('TSA Input'!J4869=\"\",\"\",IF(OR('TSA Input'!J4869=\"Yes\",'TSA Input'!J4869=\"Contingent\"),'TSA Input'!D4869,\"\"))","v":""},{"$f":"IF('TSA Input'!J4869=\"\",\"\",IF(OR('TSA Input'!J4869=\"Yes\",'TSA Input'!J4869=\"Contingent\"),'TSA Input'!G4869,\"\"))","v":""},{"$f":"IF('TSA Input'!J4869=\"\",\"\",IF(OR('TSA Input'!J4869=\"Yes\",'TSA Input'!J4869=\"Contingent\"),'TSA Input'!F4869,\"\"))","v":""},"","Required","Required"]
["",null,{"$f":"IF('TSA Input'!J4870=\"\",\"\",IF(OR('TSA Input'!J4870=\"Yes\",'TSA Input'!J4870=\"Contingent\"),'TSA Input'!B4870,\"Ineligible\"))","v":""},{"$f":"IF('TSA Input'!J4870=\"\",\"\",IF(OR('TSA Input'!J4870=\"Yes\",'TSA Input'!J4870=\"Contingent\"),'TSA Input'!I4870,\"\"))","v":""},{"$f":"IF('TSA Input'!J4870=\"\",\"\",IF(OR('TSA Input'!J4870=\"Yes\",'TSA Input'!J4870=\"Contingent\"),'TSA Input'!C4870,\"\"))","v":""},{"$f":"IF('TSA Input'!J4870=\"\",\"\",IF(OR('TSA Input'!J4870=\"Yes\",'TSA Input'!J4870=\"Contingent\"),'TSA Input'!D4870,\"\"))","v":""},{"$f":"IF('TSA Input'!J4870=\"\",\"\",IF(OR('TSA Input'!J4870=\"Yes\",'TSA Input'!J4870=\"Contingent\"),'TSA Input'!G4870,\"\"))","v":""},{"$f":"IF('TSA Input'!J4870=\"\",\"\",IF(OR('TSA Input'!J4870=\"Yes\",'TSA Input'!J4870=\"Contingent\"),'TSA Input'!F4870,\"\"))","v":""},"",{"$f":"IF('TSA Input'!J4870=\"\",\"\",IF(OR('TSA Input'!J4870=\"Yes\",'TSA Input'!J4870=\"Contingent\"),'TSA Input'!D4870,\"\"))","v":""},{"$f":"IF('TSA Input'!J4870=\"\",\"\",IF(OR('TSA Input'!J4870=\"Yes\",'TSA Input'!J4870=\"Contingent\"),'TSA Input'!G4870,\"\"))","v":""},{"$f":"IF('TSA Input'!J4870=\"\",\"\",IF(OR('TSA Input'!J4870=\"Yes\",'TSA Input'!J4870=\"Contingent\"),'TSA Input'!F4870,\"\"))","v":""},"","Required","Required"]
["",null,{"$f":"IF('TSA Input'!J4871=\"\",\"\",IF(OR('TSA Input'!J4871=\"Yes\",'TSA Input'!J4871=\"Contingent\"),'TSA Input'!B4871,\"Ineligible\"))","v":""},{"$f":"IF('TSA Input'!J4871=\"\",\"\",IF(OR('TSA Input'!J4871=\"Yes\",'TSA Input'!J4871=\"Contingent\"),'TSA Input'!I4871,\"\"))","v":""},{"$f":"IF('TSA Input'!J4871=\"\",\"\",IF(OR('TSA Input'!J4871=\"Yes\",'TSA Input'!J4871=\"Contingent\"),'TSA Input'!C4871,\"\"))","v":""},{"$f":"IF('TSA Input'!J4871=\"\",\"\",IF(OR('TSA Input'!J4871=\"Yes\",'TSA Input'!J4871=\"Contingent\"),'TSA Input'!D4871,\"\"))","v":""},{"$f":"IF('TSA Input'!J4871=\"\",\"\",IF(OR('TSA Input'!J4871=\"Yes\",'TSA Input'!J4871=\"Contingent\"),'TSA Input'!G4871,\"\"))","v":""},{"$f":"IF('TSA Input'!J4871=\"\",\"\",IF(OR('TSA Input'!J4871=\"Yes\",'TSA Input'!J4871=\"Contingent\"),'TSA Input'!F4871,\"\"))","v":""},"",{"$f":"IF('TSA Input'!J4871=\"\",\"\",IF(OR('TSA Input'!J4871=\"Yes\",'TSA Input'!J4871=\"Contingent\"),'TSA Input'!D4871,\"\"))","v":""},{"$f":"IF('TSA Input'!J4871=\"\",\"\",IF(OR('TSA Input'!J4871=\"Yes\",'TSA Input'!J4871=\"Contingent\"),'TSA Input'!G4871,\"\"))","v":""},{"$f":"IF('TSA Input'!J4871=\"\",\"\",IF(OR('TSA Input'!J4871=\"Yes\",'TSA Input'!J4871=\"Contingent\"),'TSA Input'!F4871,\"\"))","v":""},"","Required","Required"]
["",null,{"$f":"IF('TSA Input'!J4872=\"\",\"\",IF(OR('TSA Input'!J4872=\"Yes\",'TSA Input'!J4872=\"Contingent\"),'TSA Input'!B4872,\"Ineligible\"))","v":""},{"$f":"IF('TSA Input'!J4872=\"\",\"\",IF(OR('TSA Input'!J4872=\"Yes\",'TSA Input'!J4872=\"Contingent\"),'TSA Input'!I4872,\"\"))","v":""},{"$f":"IF('TSA Input'!J4872=\"\",\"\",IF(OR('TSA Input'!J4872=\"Yes\",'TSA Input'!J4872=\"Contingent\"),'TSA Input'!C4872,\"\"))","v":""},{"$f":"IF('TSA Input'!J4872=\"\",\"\",IF(OR('TSA Input'!J4872=\"Yes\",'TSA Input'!J4872=\"Contingent\"),'TSA Input'!D4872,\"\"))","v":""},{"$f":"IF('TSA Input'!J4872=\"\",\"\",IF(OR('TSA Input'!J4872=\"Yes\",'TSA Input'!J4872=\"Contingent\"),'TSA Input'!G4872,\"\"))","v":""},{"$f":"IF('TSA Input'!J4872=\"\",\"\",IF(OR('TSA Input'!J4872=\"Yes\",'TSA Input'!J4872=\"Contingent\"),'TSA Input'!F4872,\"\"))","v":""},"",{"$f":"IF('TSA Input'!J4872=\"\",\"\",IF(OR('TSA Input'!J4872=\"Yes\",'TSA Input'!J4872=\"Contingent\"),'TSA Input'!D4872,\"\"))","v":""},{"$f":"IF('TSA Input'!J4872=\"\",\"\",IF(OR('TSA Input'!J4872=\"Yes\",'TSA Input'!J4872=\"Contingent\"),'TSA Input'!G4872,\"\"))","v":""},{"$f":"IF('TSA Input'!J4872=\"\",\"\",IF(OR('TSA Input'!J4872=\"Yes\",'TSA Input'!J4872=\"Contingent\"),'TSA Input'!F4872,\"\"))","v":""},"","Required","Required"]
["",null,{"$f":"IF('TSA Input'!J4873=\"\",\"\",IF(OR('TSA Input'!J4873=\"Yes\",'TSA Input'!J4873=\"Contingent\"),'TSA Input'!B4873,\"Ineligible\"))","v":""},{"$f":"IF('TSA Input'!J4873=\"\",\"\",IF(OR('TSA Input'!J4873=\"Yes\",'TSA Input'!J4873=\"Contingent\"),'TSA Input'!I4873,\"\"))","v":""},{"$f":"IF('TSA Input'!J4873=\"\",\"\",IF(OR('TSA Input'!J4873=\"Yes\",'TSA Input'!J4873=\"Contingent\"),'TSA Input'!C4873,\"\"))","v":""},{"$f":"IF('TSA Input'!J4873=\"\",\"\",IF(OR('TSA Input'!J4873=\"Yes\",'TSA Input'!J4873=\"Contingent\"),'TSA Input'!D4873,\"\"))","v":""},{"$f":"IF('TSA Input'!J4873=\"\",\"\",IF(OR('TSA Input'!J4873=\"Yes\",'TSA Input'!J4873=\"Contingent\"),'TSA Input'!G4873,\"\"))","v":""},{"$f":"IF('TSA Input'!J4873=\"\",\"\",IF(OR('TSA Input'!J4873=\"Yes\",'TSA Input'!J4873=\"Contingent\"),'TSA Input'!F4873,\"\"))","v":""},"",{"$f":"IF('TSA Input'!J4873=\"\",\"\",IF(OR('TSA Input'!J4873=\"Yes\",'TSA Input'!J4873=\"Contingent\"),'TSA Input'!D4873,\"\"))","v":""},{"$f":"IF('TSA Input'!J4873=\"\",\"\",IF(OR('TSA Input'!J4873=\"Yes\",'TSA Input'!J4873=\"Contingent\"),'TSA Input'!G4873,\"\"))","v":""},{"$f":"IF('TSA Input'!J4873=\"\",\"\",IF(OR('TSA Input'!J4873=\"Yes\",'TSA Input'!J4873=\"Contingent\"),'TSA Input'!F4873,\"\"))","v":""},"","Required","Required"]
["",null,{"$f":"IF('TSA Input'!J4874=\"\",\"\",IF(OR('TSA Input'!J4874=\"Yes\",'TSA Input'!J4874=\"Contingent\"),'TSA Input'!B4874,\"Ineligible\"))","v":""},{"$f":"IF('TSA Input'!J4874=\"\",\"\",IF(OR('TSA Input'!J4874=\"Yes\",'TSA Input'!J4874=\"Contingent\"),'TSA Input'!I4874,\"\"))","v":""},{"$f":"IF('TSA Input'!J4874=\"\",\"\",IF(OR('TSA Input'!J4874=\"Yes\",'TSA Input'!J4874=\"Contingent\"),'TSA Input'!C4874,\"\"))","v":""},{"$f":"IF('TSA Input'!J4874=\"\",\"\",IF(OR('TSA Input'!J4874=\"Yes\",'TSA Input'!J4874=\"Contingent\"),'TSA Input'!D4874,\"\"))","v":""},{"$f":"IF('TSA Input'!J4874=\"\",\"\",IF(OR('TSA Input'!J4874=\"Yes\",'TSA Input'!J4874=\"Contingent\"),'TSA Input'!G4874,\"\"))","v":""},{"$f":"IF('TSA Input'!J4874=\"\",\"\",IF(OR('TSA Input'!J4874=\"Yes\",'TSA Input'!J4874=\"Contingent\"),'TSA Input'!F4874,\"\"))","v":""},"",{"$f":"IF('TSA Input'!J4874=\"\",\"\",IF(OR('TSA Input'!J4874=\"Yes\",'TSA Input'!J4874=\"Contingent\"),'TSA Input'!D4874,\"\"))","v":""},{"$f":"IF('TSA Input'!J4874=\"\",\"\",IF(OR('TSA Input'!J4874=\"Yes\",'TSA Input'!J4874=\"Contingent\"),'TSA Input'!G4874,\"\"))","v":""},{"$f":"IF('TSA Input'!J4874=\"\",\"\",IF(OR('TSA Input'!J4874=\"Yes\",'TSA Input'!J4874=\"Contingent\"),'TSA Input'!F4874,\"\"))","v":""},"","Required","Required"]
["",null,{"$f":"IF('TSA Input'!J4875=\"\",\"\",IF(OR('TSA Input'!J4875=\"Yes\",'TSA Input'!J4875=\"Contingent\"),'TSA Input'!B4875,\"Ineligible\"))","v":""},{"$f":"IF('TSA Input'!J4875=\"\",\"\",IF(OR('TSA Input'!J4875=\"Yes\",'TSA Input'!J4875=\"Contingent\"),'TSA Input'!I4875,\"\"))","v":""},{"$f":"IF('TSA Input'!J4875=\"\",\"\",IF(OR('TSA Input'!J4875=\"Yes\",'TSA Input'!J4875=\"Contingent\"),'TSA Input'!C4875,\"\"))","v":""},{"$f":"IF('TSA Input'!J4875=\"\",\"\",IF(OR('TSA Input'!J4875=\"Yes\",'TSA Input'!J4875=\"Contingent\"),'TSA Input'!D4875,\"\"))","v":""},{"$f":"IF('TSA Input'!J4875=\"\",\"\",IF(OR('TSA Input'!J4875=\"Yes\",'TSA Input'!J4875=\"Contingent\"),'TSA Input'!G4875,\"\"))","v":""},{"$f":"IF('TSA Input'!J4875=\"\",\"\",IF(OR('TSA Input'!J4875=\"Yes\",'TSA Input'!J4875=\"Contingent\"),'TSA Input'!F4875,\"\"))","v":""},"",{"$f":"IF('TSA Input'!J4875=\"\",\"\",IF(OR('TSA Input'!J4875=\"Yes\",'TSA Input'!J4875=\"Contingent\"),'TSA Input'!D4875,\"\"))","v":""},{"$f":"IF('TSA Input'!J4875=\"\",\"\",IF(OR('TSA Input'!J4875=\"Yes\",'TSA Input'!J4875=\"Contingent\"),'TSA Input'!G4875,\"\"))","v":""},{"$f":"IF('TSA Input'!J4875=\"\",\"\",IF(OR('TSA Input'!J4875=\"Yes\",'TSA Input'!J4875=\"Contingent\"),'TSA Input'!F4875,\"\"))","v":""},"","Required","Required"]
["",null,{"$f":"IF('TSA Input'!J4876=\"\",\"\",IF(OR('TSA Input'!J4876=\"Yes\",'TSA Input'!J4876=\"Contingent\"),'TSA Input'!B4876,\"Ineligible\"))","v":""},{"$f":"IF('TSA Input'!J4876=\"\",\"\",IF(OR('TSA Input'!J4876=\"Yes\",'TSA Input'!J4876=\"Contingent\"),'TSA Input'!I4876,\"\"))","v":""},{"$f":"IF('TSA Input'!J4876=\"\",\"\",IF(OR('TSA Input'!J4876=\"Yes\",'TSA Input'!J4876=\"Contingent\"),'TSA Input'!C4876,\"\"))","v":""},{"$f":"IF('TSA Input'!J4876=\"\",\"\",IF(OR('TSA Input'!J4876=\"Yes\",'TSA Input'!J4876=\"Contingent\"),'TSA Input'!D4876,\"\"))","v":""},{"$f":"IF('TSA Input'!J4876=\"\",\"\",IF(OR('TSA Input'!J4876=\"Yes\",'TSA Input'!J4876=\"Contingent\"),'TSA Input'!G4876,\"\"))","v":""},{"$f":"IF('TSA Input'!J4876=\"\",\"\",IF(OR('TSA Input'!J4876=\"Yes\",'TSA Input'!J4876=\"Contingent\"),'TSA Input'!F4876,\"\"))","v":""},"",{"$f":"IF('TSA Input'!J4876=\"\",\"\",IF(OR('TSA Input'!J4876=\"Yes\",'TSA Input'!J4876=\"Contingent\"),'TSA Input'!D4876,\"\"))","v":""},{"$f":"IF('TSA Input'!J4876=\"\",\"\",IF(OR('TSA Input'!J4876=\"Yes\",'TSA Input'!J4876=\"Contingent\"),'TSA Input'!G4876,\"\"))","v":""},{"$f":"IF('TSA Input'!J4876=\"\",\"\",IF(OR('TSA Input'!J4876=\"Yes\",'TSA Input'!J4876=\"Contingent\"),'TSA Input'!F4876,\"\"))","v":""},"","Required","Required"]
["",null,{"$f":"IF('TSA Input'!J4877=\"\",\"\",IF(OR('TSA Input'!J4877=\"Yes\",'TSA Input'!J4877=\"Contingent\"),'TSA Input'!B4877,\"Ineligible\"))","v":""},{"$f":"IF('TSA Input'!J4877=\"\",\"\",IF(OR('TSA Input'!J4877=\"Yes\",'TSA Input'!J4877=\"Contingent\"),'TSA Input'!I4877,\"\"))","v":""},{"$f":"IF('TSA Input'!J4877=\"\",\"\",IF(OR('TSA Input'!J4877=\"Yes\",'TSA Input'!J4877=\"Contingent\"),'TSA Input'!C4877,\"\"))","v":""},{"$f":"IF('TSA Input'!J4877=\"\",\"\",IF(OR('TSA Input'!J4877=\"Yes\",'TSA Input'!J4877=\"Contingent\"),'TSA Input'!D4877,\"\"))","v":""},{"$f":"IF('TSA Input'!J4877=\"\",\"\",IF(OR('TSA Input'!J4877=\"Yes\",'TSA Input'!J4877=\"Contingent\"),'TSA Input'!G4877,\"\"))","v":""},{"$f":"IF('TSA Input'!J4877=\"\",\"\",IF(OR('TSA Input'!J4877=\"Yes\",'TSA Input'!J4877=\"Contingent\"),'TSA Input'!F4877,\"\"))","v":""},"",{"$f":"IF('TSA Input'!J4877=\"\",\"\",IF(OR('TSA Input'!J4877=\"Yes\",'TSA Input'!J4877=\"Contingent\"),'TSA Input'!D4877,\"\"))","v":""},{"$f":"IF('TSA Input'!J4877=\"\",\"\",IF(OR('TSA Input'!J4877=\"Yes\",'TSA Input'!J4877=\"Contingent\"),'TSA Input'!G4877,\"\"))","v":""},{"$f":"IF('TSA Input'!J4877=\"\",\"\",IF(OR('TSA Input'!J4877=\"Yes\",'TSA Input'!J4877=\"Contingent\"),'TSA Input'!F4877,\"\"))","v":""},"","Required","Required"]
["",null,{"$f":"IF('TSA Input'!J4878=\"\",\"\",IF(OR('TSA Input'!J4878=\"Yes\",'TSA Input'!J4878=\"Contingent\"),'TSA Input'!B4878,\"Ineligible\"))","v":""},{"$f":"IF('TSA Input'!J4878=\"\",\"\",IF(OR('TSA Input'!J4878=\"Yes\",'TSA Input'!J4878=\"Contingent\"),'TSA Input'!I4878,\"\"))","v":""},{"$f":"IF('TSA Input'!J4878=\"\",\"\",IF(OR('TSA Input'!J4878=\"Yes\",'TSA Input'!J4878=\"Contingent\"),'TSA Input'!C4878,\"\"))","v":""},{"$f":"IF('TSA Input'!J4878=\"\",\"\",IF(OR('TSA Input'!J4878=\"Yes\",'TSA Input'!J4878=\"Contingent\"),'TSA Input'!D4878,\"\"))","v":""},{"$f":"IF('TSA Input'!J4878=\"\",\"\",IF(OR('TSA Input'!J4878=\"Yes\",'TSA Input'!J4878=\"Contingent\"),'TSA Input'!G4878,\"\"))","v":""},{"$f":"IF('TSA Input'!J4878=\"\",\"\",IF(OR('TSA Input'!J4878=\"Yes\",'TSA Input'!J4878=\"Contingent\"),'TSA Input'!F4878,\"\"))","v":""},"",{"$f":"IF('TSA Input'!J4878=\"\",\"\",IF(OR('TSA Input'!J4878=\"Yes\",'TSA Input'!J4878=\"Contingent\"),'TSA Input'!D4878,\"\"))","v":""},{"$f":"IF('TSA Input'!J4878=\"\",\"\",IF(OR('TSA Input'!J4878=\"Yes\",'TSA Input'!J4878=\"Contingent\"),'TSA Input'!G4878,\"\"))","v":""},{"$f":"IF('TSA Input'!J4878=\"\",\"\",IF(OR('TSA Input'!J4878=\"Yes\",'TSA Input'!J4878=\"Contingent\"),'TSA Input'!F4878,\"\"))","v":""},"","Required","Required"]
["",null,{"$f":"IF('TSA Input'!J4879=\"\",\"\",IF(OR('TSA Input'!J4879=\"Yes\",'TSA Input'!J4879=\"Contingent\"),'TSA Input'!B4879,\"Ineligible\"))","v":""},{"$f":"IF('TSA Input'!J4879=\"\",\"\",IF(OR('TSA Input'!J4879=\"Yes\",'TSA Input'!J4879=\"Contingent\"),'TSA Input'!I4879,\"\"))","v":""},{"$f":"IF('TSA Input'!J4879=\"\",\"\",IF(OR('TSA Input'!J4879=\"Yes\",'TSA Input'!J4879=\"Contingent\"),'TSA Input'!C4879,\"\"))","v":""},{"$f":"IF('TSA Input'!J4879=\"\",\"\",IF(OR('TSA Input'!J4879=\"Yes\",'TSA Input'!J4879=\"Contingent\"),'TSA Input'!D4879,\"\"))","v":""},{"$f":"IF('TSA Input'!J4879=\"\",\"\",IF(OR('TSA Input'!J4879=\"Yes\",'TSA Input'!J4879=\"Contingent\"),'TSA Input'!G4879,\"\"))","v":""},{"$f":"IF('TSA Input'!J4879=\"\",\"\",IF(OR('TSA Input'!J4879=\"Yes\",'TSA Input'!J4879=\"Contingent\"),'TSA Input'!F4879,\"\"))","v":""},"",{"$f":"IF('TSA Input'!J4879=\"\",\"\",IF(OR('TSA Input'!J4879=\"Yes\",'TSA Input'!J4879=\"Contingent\"),'TSA Input'!D4879,\"\"))","v":""},{"$f":"IF('TSA Input'!J4879=\"\",\"\",IF(OR('TSA Input'!J4879=\"Yes\",'TSA Input'!J4879=\"Contingent\"),'TSA Input'!G4879,\"\"))","v":""},{"$f":"IF('TSA Input'!J4879=\"\",\"\",IF(OR('TSA Input'!J4879=\"Yes\",'TSA Input'!J4879=\"Contingent\"),'TSA Input'!F4879,\"\"))","v":""},"","Required","Required"]
["",null,{"$f":"IF('TSA Input'!J4880=\"\",\"\",IF(OR('TSA Input'!J4880=\"Yes\",'TSA Input'!J4880=\"Contingent\"),'TSA Input'!B4880,\"Ineligible\"))","v":""},{"$f":"IF('TSA Input'!J4880=\"\",\"\",IF(OR('TSA Input'!J4880=\"Yes\",'TSA Input'!J4880=\"Contingent\"),'TSA Input'!I4880,\"\"))","v":""},{"$f":"IF('TSA Input'!J4880=\"\",\"\",IF(OR('TSA Input'!J4880=\"Yes\",'TSA Input'!J4880=\"Contingent\"),'TSA Input'!C4880,\"\"))","v":""},{"$f":"IF('TSA Input'!J4880=\"\",\"\",IF(OR('TSA Input'!J4880=\"Yes\",'TSA Input'!J4880=\"Contingent\"),'TSA Input'!D4880,\"\"))","v":""},{"$f":"IF('TSA Input'!J4880=\"\",\"\",IF(OR('TSA Input'!J4880=\"Yes\",'TSA Input'!J4880=\"Contingent\"),'TSA Input'!G4880,\"\"))","v":""},{"$f":"IF('TSA Input'!J4880=\"\",\"\",IF(OR('TSA Input'!J4880=\"Yes\",'TSA Input'!J4880=\"Contingent\"),'TSA Input'!F4880,\"\"))","v":""},"",{"$f":"IF('TSA Input'!J4880=\"\",\"\",IF(OR('TSA Input'!J4880=\"Yes\",'TSA Input'!J4880=\"Contingent\"),'TSA Input'!D4880,\"\"))","v":""},{"$f":"IF('TSA Input'!J4880=\"\",\"\",IF(OR('TSA Input'!J4880=\"Yes\",'TSA Input'!J4880=\"Contingent\"),'TSA Input'!G4880,\"\"))","v":""},{"$f":"IF('TSA Input'!J4880=\"\",\"\",IF(OR('TSA Input'!J4880=\"Yes\",'TSA Input'!J4880=\"Contingent\"),'TSA Input'!F4880,\"\"))","v":""},"","Required","Required"]
["",null,{"$f":"IF('TSA Input'!J4881=\"\",\"\",IF(OR('TSA Input'!J4881=\"Yes\",'TSA Input'!J4881=\"Contingent\"),'TSA Input'!B4881,\"Ineligible\"))","v":""},{"$f":"IF('TSA Input'!J4881=\"\",\"\",IF(OR('TSA Input'!J4881=\"Yes\",'TSA Input'!J4881=\"Contingent\"),'TSA Input'!I4881,\"\"))","v":""},{"$f":"IF('TSA Input'!J4881=\"\",\"\",IF(OR('TSA Input'!J4881=\"Yes\",'TSA Input'!J4881=\"Contingent\"),'TSA Input'!C4881,\"\"))","v":""},{"$f":"IF('TSA Input'!J4881=\"\",\"\",IF(OR('TSA Input'!J4881=\"Yes\",'TSA Input'!J4881=\"Contingent\"),'TSA Input'!D4881,\"\"))","v":""},{"$f":"IF('TSA Input'!J4881=\"\",\"\",IF(OR('TSA Input'!J4881=\"Yes\",'TSA Input'!J4881=\"Contingent\"),'TSA Input'!G4881,\"\"))","v":""},{"$f":"IF('TSA Input'!J4881=\"\",\"\",IF(OR('TSA Input'!J4881=\"Yes\",'TSA Input'!J4881=\"Contingent\"),'TSA Input'!F4881,\"\"))","v":""},"",{"$f":"IF('TSA Input'!J4881=\"\",\"\",IF(OR('TSA Input'!J4881=\"Yes\",'TSA Input'!J4881=\"Contingent\"),'TSA Input'!D4881,\"\"))","v":""},{"$f":"IF('TSA Input'!J4881=\"\",\"\",IF(OR('TSA Input'!J4881=\"Yes\",'TSA Input'!J4881=\"Contingent\"),'TSA Input'!G4881,\"\"))","v":""},{"$f":"IF('TSA Input'!J4881=\"\",\"\",IF(OR('TSA Input'!J4881=\"Yes\",'TSA Input'!J4881=\"Contingent\"),'TSA Input'!F4881,\"\"))","v":""},"","Required","Required"]
["",null,{"$f":"IF('TSA Input'!J4882=\"\",\"\",IF(OR('TSA Input'!J4882=\"Yes\",'TSA Input'!J4882=\"Contingent\"),'TSA Input'!B4882,\"Ineligible\"))","v":""},{"$f":"IF('TSA Input'!J4882=\"\",\"\",IF(OR('TSA Input'!J4882=\"Yes\",'TSA Input'!J4882=\"Contingent\"),'TSA Input'!I4882,\"\"))","v":""},{"$f":"IF('TSA Input'!J4882=\"\",\"\",IF(OR('TSA Input'!J4882=\"Yes\",'TSA Input'!J4882=\"Contingent\"),'TSA Input'!C4882,\"\"))","v":""},{"$f":"IF('TSA Input'!J4882=\"\",\"\",IF(OR('TSA Input'!J4882=\"Yes\",'TSA Input'!J4882=\"Contingent\"),'TSA Input'!D4882,\"\"))","v":""},{"$f":"IF('TSA Input'!J4882=\"\",\"\",IF(OR('TSA Input'!J4882=\"Yes\",'TSA Input'!J4882=\"Contingent\"),'TSA Input'!G4882,\"\"))","v":""},{"$f":"IF('TSA Input'!J4882=\"\",\"\",IF(OR('TSA Input'!J4882=\"Yes\",'TSA Input'!J4882=\"Contingent\"),'TSA Input'!F4882,\"\"))","v":""},"",{"$f":"IF('TSA Input'!J4882=\"\",\"\",IF(OR('TSA Input'!J4882=\"Yes\",'TSA Input'!J4882=\"Contingent\"),'TSA Input'!D4882,\"\"))","v":""},{"$f":"IF('TSA Input'!J4882=\"\",\"\",IF(OR('TSA Input'!J4882=\"Yes\",'TSA Input'!J4882=\"Contingent\"),'TSA Input'!G4882,\"\"))","v":""},{"$f":"IF('TSA Input'!J4882=\"\",\"\",IF(OR('TSA Input'!J4882=\"Yes\",'TSA Input'!J4882=\"Contingent\"),'TSA Input'!F4882,\"\"))","v":""},"","Required","Required"]
["",null,{"$f":"IF('TSA Input'!J4883=\"\",\"\",IF(OR('TSA Input'!J4883=\"Yes\",'TSA Input'!J4883=\"Contingent\"),'TSA Input'!B4883,\"Ineligible\"))","v":""},{"$f":"IF('TSA Input'!J4883=\"\",\"\",IF(OR('TSA Input'!J4883=\"Yes\",'TSA Input'!J4883=\"Contingent\"),'TSA Input'!I4883,\"\"))","v":""},{"$f":"IF('TSA Input'!J4883=\"\",\"\",IF(OR('TSA Input'!J4883=\"Yes\",'TSA Input'!J4883=\"Contingent\"),'TSA Input'!C4883,\"\"))","v":""},{"$f":"IF('TSA Input'!J4883=\"\",\"\",IF(OR('TSA Input'!J4883=\"Yes\",'TSA Input'!J4883=\"Contingent\"),'TSA Input'!D4883,\"\"))","v":""},{"$f":"IF('TSA Input'!J4883=\"\",\"\",IF(OR('TSA Input'!J4883=\"Yes\",'TSA Input'!J4883=\"Contingent\"),'TSA Input'!G4883,\"\"))","v":""},{"$f":"IF('TSA Input'!J4883=\"\",\"\",IF(OR('TSA Input'!J4883=\"Yes\",'TSA Input'!J4883=\"Contingent\"),'TSA Input'!F4883,\"\"))","v":""},"",{"$f":"IF('TSA Input'!J4883=\"\",\"\",IF(OR('TSA Input'!J4883=\"Yes\",'TSA Input'!J4883=\"Contingent\"),'TSA Input'!D4883,\"\"))","v":""},{"$f":"IF('TSA Input'!J4883=\"\",\"\",IF(OR('TSA Input'!J4883=\"Yes\",'TSA Input'!J4883=\"Contingent\"),'TSA Input'!G4883,\"\"))","v":""},{"$f":"IF('TSA Input'!J4883=\"\",\"\",IF(OR('TSA Input'!J4883=\"Yes\",'TSA Input'!J4883=\"Contingent\"),'TSA Input'!F4883,\"\"))","v":""},"","Required","Required"]
["",null,{"$f":"IF('TSA Input'!J4884=\"\",\"\",IF(OR('TSA Input'!J4884=\"Yes\",'TSA Input'!J4884=\"Contingent\"),'TSA Input'!B4884,\"Ineligible\"))","v":""},{"$f":"IF('TSA Input'!J4884=\"\",\"\",IF(OR('TSA Input'!J4884=\"Yes\",'TSA Input'!J4884=\"Contingent\"),'TSA Input'!I4884,\"\"))","v":""},{"$f":"IF('TSA Input'!J4884=\"\",\"\",IF(OR('TSA Input'!J4884=\"Yes\",'TSA Input'!J4884=\"Contingent\"),'TSA Input'!C4884,\"\"))","v":""},{"$f":"IF('TSA Input'!J4884=\"\",\"\",IF(OR('TSA Input'!J4884=\"Yes\",'TSA Input'!J4884=\"Contingent\"),'TSA Input'!D4884,\"\"))","v":""},{"$f":"IF('TSA Input'!J4884=\"\",\"\",IF(OR('TSA Input'!J4884=\"Yes\",'TSA Input'!J4884=\"Contingent\"),'TSA Input'!G4884,\"\"))","v":""},{"$f":"IF('TSA Input'!J4884=\"\",\"\",IF(OR('TSA Input'!J4884=\"Yes\",'TSA Input'!J4884=\"Contingent\"),'TSA Input'!F4884,\"\"))","v":""},"",{"$f":"IF('TSA Input'!J4884=\"\",\"\",IF(OR('TSA Input'!J4884=\"Yes\",'TSA Input'!J4884=\"Contingent\"),'TSA Input'!D4884,\"\"))","v":""},{"$f":"IF('TSA Input'!J4884=\"\",\"\",IF(OR('TSA Input'!J4884=\"Yes\",'TSA Input'!J4884=\"Contingent\"),'TSA Input'!G4884,\"\"))","v":""},{"$f":"IF('TSA Input'!J4884=\"\",\"\",IF(OR('TSA Input'!J4884=\"Yes\",'TSA Input'!J4884=\"Contingent\"),'TSA Input'!F4884,\"\"))","v":""},"","Required","Required"]
["",null,{"$f":"IF('TSA Input'!J4885=\"\",\"\",IF(OR('TSA Input'!J4885=\"Yes\",'TSA Input'!J4885=\"Contingent\"),'TSA Input'!B4885,\"Ineligible\"))","v":""},{"$f":"IF('TSA Input'!J4885=\"\",\"\",IF(OR('TSA Input'!J4885=\"Yes\",'TSA Input'!J4885=\"Contingent\"),'TSA Input'!I4885,\"\"))","v":""},{"$f":"IF('TSA Input'!J4885=\"\",\"\",IF(OR('TSA Input'!J4885=\"Yes\",'TSA Input'!J4885=\"Contingent\"),'TSA Input'!C4885,\"\"))","v":""},{"$f":"IF('TSA Input'!J4885=\"\",\"\",IF(OR('TSA Input'!J4885=\"Yes\",'TSA Input'!J4885=\"Contingent\"),'TSA Input'!D4885,\"\"))","v":""},{"$f":"IF('TSA Input'!J4885=\"\",\"\",IF(OR('TSA Input'!J4885=\"Yes\",'TSA Input'!J4885=\"Contingent\"),'TSA Input'!G4885,\"\"))","v":""},{"$f":"IF('TSA Input'!J4885=\"\",\"\",IF(OR('TSA Input'!J4885=\"Yes\",'TSA Input'!J4885=\"Contingent\"),'TSA Input'!F4885,\"\"))","v":""},"",{"$f":"IF('TSA Input'!J4885=\"\",\"\",IF(OR('TSA Input'!J4885=\"Yes\",'TSA Input'!J4885=\"Contingent\"),'TSA Input'!D4885,\"\"))","v":""},{"$f":"IF('TSA Input'!J4885=\"\",\"\",IF(OR('TSA Input'!J4885=\"Yes\",'TSA Input'!J4885=\"Contingent\"),'TSA Input'!G4885,\"\"))","v":""},{"$f":"IF('TSA Input'!J4885=\"\",\"\",IF(OR('TSA Input'!J4885=\"Yes\",'TSA Input'!J4885=\"Contingent\"),'TSA Input'!F4885,\"\"))","v":""},"","Required","Required"]
["",null,{"$f":"IF('TSA Input'!J4886=\"\",\"\",IF(OR('TSA Input'!J4886=\"Yes\",'TSA Input'!J4886=\"Contingent\"),'TSA Input'!B4886,\"Ineligible\"))","v":""},{"$f":"IF('TSA Input'!J4886=\"\",\"\",IF(OR('TSA Input'!J4886=\"Yes\",'TSA Input'!J4886=\"Contingent\"),'TSA Input'!I4886,\"\"))","v":""},{"$f":"IF('TSA Input'!J4886=\"\",\"\",IF(OR('TSA Input'!J4886=\"Yes\",'TSA Input'!J4886=\"Contingent\"),'TSA Input'!C4886,\"\"))","v":""},{"$f":"IF('TSA Input'!J4886=\"\",\"\",IF(OR('TSA Input'!J4886=\"Yes\",'TSA Input'!J4886=\"Contingent\"),'TSA Input'!D4886,\"\"))","v":""},{"$f":"IF('TSA Input'!J4886=\"\",\"\",IF(OR('TSA Input'!J4886=\"Yes\",'TSA Input'!J4886=\"Contingent\"),'TSA Input'!G4886,\"\"))","v":""},{"$f":"IF('TSA Input'!J4886=\"\",\"\",IF(OR('TSA Input'!J4886=\"Yes\",'TSA Input'!J4886=\"Contingent\"),'TSA Input'!F4886,\"\"))","v":""},"",{"$f":"IF('TSA Input'!J4886=\"\",\"\",IF(OR('TSA Input'!J4886=\"Yes\",'TSA Input'!J4886=\"Contingent\"),'TSA Input'!D4886,\"\"))","v":""},{"$f":"IF('TSA Input'!J4886=\"\",\"\",IF(OR('TSA Input'!J4886=\"Yes\",'TSA Input'!J4886=\"Contingent\"),'TSA Input'!G4886,\"\"))","v":""},{"$f":"IF('TSA Input'!J4886=\"\",\"\",IF(OR('TSA Input'!J4886=\"Yes\",'TSA Input'!J4886=\"Contingent\"),'TSA Input'!F4886,\"\"))","v":""},"","Required","Required"]
["",null,{"$f":"IF('TSA Input'!J4887=\"\",\"\",IF(OR('TSA Input'!J4887=\"Yes\",'TSA Input'!J4887=\"Contingent\"),'TSA Input'!B4887,\"Ineligible\"))","v":""},{"$f":"IF('TSA Input'!J4887=\"\",\"\",IF(OR('TSA Input'!J4887=\"Yes\",'TSA Input'!J4887=\"Contingent\"),'TSA Input'!I4887,\"\"))","v":""},{"$f":"IF('TSA Input'!J4887=\"\",\"\",IF(OR('TSA Input'!J4887=\"Yes\",'TSA Input'!J4887=\"Contingent\"),'TSA Input'!C4887,\"\"))","v":""},{"$f":"IF('TSA Input'!J4887=\"\",\"\",IF(OR('TSA Input'!J4887=\"Yes\",'TSA Input'!J4887=\"Contingent\"),'TSA Input'!D4887,\"\"))","v":""},{"$f":"IF('TSA Input'!J4887=\"\",\"\",IF(OR('TSA Input'!J4887=\"Yes\",'TSA Input'!J4887=\"Contingent\"),'TSA Input'!G4887,\"\"))","v":""},{"$f":"IF('TSA Input'!J4887=\"\",\"\",IF(OR('TSA Input'!J4887=\"Yes\",'TSA Input'!J4887=\"Contingent\"),'TSA Input'!F4887,\"\"))","v":""},"",{"$f":"IF('TSA Input'!J4887=\"\",\"\",IF(OR('TSA Input'!J4887=\"Yes\",'TSA Input'!J4887=\"Contingent\"),'TSA Input'!D4887,\"\"))","v":""},{"$f":"IF('TSA Input'!J4887=\"\",\"\",IF(OR('TSA Input'!J4887=\"Yes\",'TSA Input'!J4887=\"Contingent\"),'TSA Input'!G4887,\"\"))","v":""},{"$f":"IF('TSA Input'!J4887=\"\",\"\",IF(OR('TSA Input'!J4887=\"Yes\",'TSA Input'!J4887=\"Contingent\"),'TSA Input'!F4887,\"\"))","v":""},"","Required","Required"]
["",null,{"$f":"IF('TSA Input'!J4888=\"\",\"\",IF(OR('TSA Input'!J4888=\"Yes\",'TSA Input'!J4888=\"Contingent\"),'TSA Input'!B4888,\"Ineligible\"))","v":""},{"$f":"IF('TSA Input'!J4888=\"\",\"\",IF(OR('TSA Input'!J4888=\"Yes\",'TSA Input'!J4888=\"Contingent\"),'TSA Input'!I4888,\"\"))","v":""},{"$f":"IF('TSA Input'!J4888=\"\",\"\",IF(OR('TSA Input'!J4888=\"Yes\",'TSA Input'!J4888=\"Contingent\"),'TSA Input'!C4888,\"\"))","v":""},{"$f":"IF('TSA Input'!J4888=\"\",\"\",IF(OR('TSA Input'!J4888=\"Yes\",'TSA Input'!J4888=\"Contingent\"),'TSA Input'!D4888,\"\"))","v":""},{"$f":"IF('TSA Input'!J4888=\"\",\"\",IF(OR('TSA Input'!J4888=\"Yes\",'TSA Input'!J4888=\"Contingent\"),'TSA Input'!G4888,\"\"))","v":""},{"$f":"IF('TSA Input'!J4888=\"\",\"\",IF(OR('TSA Input'!J4888=\"Yes\",'TSA Input'!J4888=\"Contingent\"),'TSA Input'!F4888,\"\"))","v":""},"",{"$f":"IF('TSA Input'!J4888=\"\",\"\",IF(OR('TSA Input'!J4888=\"Yes\",'TSA Input'!J4888=\"Contingent\"),'TSA Input'!D4888,\"\"))","v":""},{"$f":"IF('TSA Input'!J4888=\"\",\"\",IF(OR('TSA Input'!J4888=\"Yes\",'TSA Input'!J4888=\"Contingent\"),'TSA Input'!G4888,\"\"))","v":""},{"$f":"IF('TSA Input'!J4888=\"\",\"\",IF(OR('TSA Input'!J4888=\"Yes\",'TSA Input'!J4888=\"Contingent\"),'TSA Input'!F4888,\"\"))","v":""},"","Required","Required"]
["",null,{"$f":"IF('TSA Input'!J4889=\"\",\"\",IF(OR('TSA Input'!J4889=\"Yes\",'TSA Input'!J4889=\"Contingent\"),'TSA Input'!B4889,\"Ineligible\"))","v":""},{"$f":"IF('TSA Input'!J4889=\"\",\"\",IF(OR('TSA Input'!J4889=\"Yes\",'TSA Input'!J4889=\"Contingent\"),'TSA Input'!I4889,\"\"))","v":""},{"$f":"IF('TSA Input'!J4889=\"\",\"\",IF(OR('TSA Input'!J4889=\"Yes\",'TSA Input'!J4889=\"Contingent\"),'TSA Input'!C4889,\"\"))","v":""},{"$f":"IF('TSA Input'!J4889=\"\",\"\",IF(OR('TSA Input'!J4889=\"Yes\",'TSA Input'!J4889=\"Contingent\"),'TSA Input'!D4889,\"\"))","v":""},{"$f":"IF('TSA Input'!J4889=\"\",\"\",IF(OR('TSA Input'!J4889=\"Yes\",'TSA Input'!J4889=\"Contingent\"),'TSA Input'!G4889,\"\"))","v":""},{"$f":"IF('TSA Input'!J4889=\"\",\"\",IF(OR('TSA Input'!J4889=\"Yes\",'TSA Input'!J4889=\"Contingent\"),'TSA Input'!F4889,\"\"))","v":""},"",{"$f":"IF('TSA Input'!J4889=\"\",\"\",IF(OR('TSA Input'!J4889=\"Yes\",'TSA Input'!J4889=\"Contingent\"),'TSA Input'!D4889,\"\"))","v":""},{"$f":"IF('TSA Input'!J4889=\"\",\"\",IF(OR('TSA Input'!J4889=\"Yes\",'TSA Input'!J4889=\"Contingent\"),'TSA Input'!G4889,\"\"))","v":""},{"$f":"IF('TSA Input'!J4889=\"\",\"\",IF(OR('TSA Input'!J4889=\"Yes\",'TSA Input'!J4889=\"Contingent\"),'TSA Input'!F4889,\"\"))","v":""},"","Required","Required"]
["",null,{"$f":"IF('TSA Input'!J4890=\"\",\"\",IF(OR('TSA Input'!J4890=\"Yes\",'TSA Input'!J4890=\"Contingent\"),'TSA Input'!B4890,\"Ineligible\"))","v":""},{"$f":"IF('TSA Input'!J4890=\"\",\"\",IF(OR('TSA Input'!J4890=\"Yes\",'TSA Input'!J4890=\"Contingent\"),'TSA Input'!I4890,\"\"))","v":""},{"$f":"IF('TSA Input'!J4890=\"\",\"\",IF(OR('TSA Input'!J4890=\"Yes\",'TSA Input'!J4890=\"Contingent\"),'TSA Input'!C4890,\"\"))","v":""},{"$f":"IF('TSA Input'!J4890=\"\",\"\",IF(OR('TSA Input'!J4890=\"Yes\",'TSA Input'!J4890=\"Contingent\"),'TSA Input'!D4890,\"\"))","v":""},{"$f":"IF('TSA Input'!J4890=\"\",\"\",IF(OR('TSA Input'!J4890=\"Yes\",'TSA Input'!J4890=\"Contingent\"),'TSA Input'!G4890,\"\"))","v":""},{"$f":"IF('TSA Input'!J4890=\"\",\"\",IF(OR('TSA Input'!J4890=\"Yes\",'TSA Input'!J4890=\"Contingent\"),'TSA Input'!F4890,\"\"))","v":""},"",{"$f":"IF('TSA Input'!J4890=\"\",\"\",IF(OR('TSA Input'!J4890=\"Yes\",'TSA Input'!J4890=\"Contingent\"),'TSA Input'!D4890,\"\"))","v":""},{"$f":"IF('TSA Input'!J4890=\"\",\"\",IF(OR('TSA Input'!J4890=\"Yes\",'TSA Input'!J4890=\"Contingent\"),'TSA Input'!G4890,\"\"))","v":""},{"$f":"IF('TSA Input'!J4890=\"\",\"\",IF(OR('TSA Input'!J4890=\"Yes\",'TSA Input'!J4890=\"Contingent\"),'TSA Input'!F4890,\"\"))","v":""},"","Required","Required"]
["",null,{"$f":"IF('TSA Input'!J4891=\"\",\"\",IF(OR('TSA Input'!J4891=\"Yes\",'TSA Input'!J4891=\"Contingent\"),'TSA Input'!B4891,\"Ineligible\"))","v":""},{"$f":"IF('TSA Input'!J4891=\"\",\"\",IF(OR('TSA Input'!J4891=\"Yes\",'TSA Input'!J4891=\"Contingent\"),'TSA Input'!I4891,\"\"))","v":""},{"$f":"IF('TSA Input'!J4891=\"\",\"\",IF(OR('TSA Input'!J4891=\"Yes\",'TSA Input'!J4891=\"Contingent\"),'TSA Input'!C4891,\"\"))","v":""},{"$f":"IF('TSA Input'!J4891=\"\",\"\",IF(OR('TSA Input'!J4891=\"Yes\",'TSA Input'!J4891=\"Contingent\"),'TSA Input'!D4891,\"\"))","v":""},{"$f":"IF('TSA Input'!J4891=\"\",\"\",IF(OR('TSA Input'!J4891=\"Yes\",'TSA Input'!J4891=\"Contingent\"),'TSA Input'!G4891,\"\"))","v":""},{"$f":"IF('TSA Input'!J4891=\"\",\"\",IF(OR('TSA Input'!J4891=\"Yes\",'TSA Input'!J4891=\"Contingent\"),'TSA Input'!F4891,\"\"))","v":""},"",{"$f":"IF('TSA Input'!J4891=\"\",\"\",IF(OR('TSA Input'!J4891=\"Yes\",'TSA Input'!J4891=\"Contingent\"),'TSA Input'!D4891,\"\"))","v":""},{"$f":"IF('TSA Input'!J4891=\"\",\"\",IF(OR('TSA Input'!J4891=\"Yes\",'TSA Input'!J4891=\"Contingent\"),'TSA Input'!G4891,\"\"))","v":""},{"$f":"IF('TSA Input'!J4891=\"\",\"\",IF(OR('TSA Input'!J4891=\"Yes\",'TSA Input'!J4891=\"Contingent\"),'TSA Input'!F4891,\"\"))","v":""},"","Required","Required"]
["",null,{"$f":"IF('TSA Input'!J4892=\"\",\"\",IF(OR('TSA Input'!J4892=\"Yes\",'TSA Input'!J4892=\"Contingent\"),'TSA Input'!B4892,\"Ineligible\"))","v":""},{"$f":"IF('TSA Input'!J4892=\"\",\"\",IF(OR('TSA Input'!J4892=\"Yes\",'TSA Input'!J4892=\"Contingent\"),'TSA Input'!I4892,\"\"))","v":""},{"$f":"IF('TSA Input'!J4892=\"\",\"\",IF(OR('TSA Input'!J4892=\"Yes\",'TSA Input'!J4892=\"Contingent\"),'TSA Input'!C4892,\"\"))","v":""},{"$f":"IF('TSA Input'!J4892=\"\",\"\",IF(OR('TSA Input'!J4892=\"Yes\",'TSA Input'!J4892=\"Contingent\"),'TSA Input'!D4892,\"\"))","v":""},{"$f":"IF('TSA Input'!J4892=\"\",\"\",IF(OR('TSA Input'!J4892=\"Yes\",'TSA Input'!J4892=\"Contingent\"),'TSA Input'!G4892,\"\"))","v":""},{"$f":"IF('TSA Input'!J4892=\"\",\"\",IF(OR('TSA Input'!J4892=\"Yes\",'TSA Input'!J4892=\"Contingent\"),'TSA Input'!F4892,\"\"))","v":""},"",{"$f":"IF('TSA Input'!J4892=\"\",\"\",IF(OR('TSA Input'!J4892=\"Yes\",'TSA Input'!J4892=\"Contingent\"),'TSA Input'!D4892,\"\"))","v":""},{"$f":"IF('TSA Input'!J4892=\"\",\"\",IF(OR('TSA Input'!J4892=\"Yes\",'TSA Input'!J4892=\"Contingent\"),'TSA Input'!G4892,\"\"))","v":""},{"$f":"IF('TSA Input'!J4892=\"\",\"\",IF(OR('TSA Input'!J4892=\"Yes\",'TSA Input'!J4892=\"Contingent\"),'TSA Input'!F4892,\"\"))","v":""},"","Required","Required"]
["",null,{"$f":"IF('TSA Input'!J4893=\"\",\"\",IF(OR('TSA Input'!J4893=\"Yes\",'TSA Input'!J4893=\"Contingent\"),'TSA Input'!B4893,\"Ineligible\"))","v":""},{"$f":"IF('TSA Input'!J4893=\"\",\"\",IF(OR('TSA Input'!J4893=\"Yes\",'TSA Input'!J4893=\"Contingent\"),'TSA Input'!I4893,\"\"))","v":""},{"$f":"IF('TSA Input'!J4893=\"\",\"\",IF(OR('TSA Input'!J4893=\"Yes\",'TSA Input'!J4893=\"Contingent\"),'TSA Input'!C4893,\"\"))","v":""},{"$f":"IF('TSA Input'!J4893=\"\",\"\",IF(OR('TSA Input'!J4893=\"Yes\",'TSA Input'!J4893=\"Contingent\"),'TSA Input'!D4893,\"\"))","v":""},{"$f":"IF('TSA Input'!J4893=\"\",\"\",IF(OR('TSA Input'!J4893=\"Yes\",'TSA Input'!J4893=\"Contingent\"),'TSA Input'!G4893,\"\"))","v":""},{"$f":"IF('TSA Input'!J4893=\"\",\"\",IF(OR('TSA Input'!J4893=\"Yes\",'TSA Input'!J4893=\"Contingent\"),'TSA Input'!F4893,\"\"))","v":""},"",{"$f":"IF('TSA Input'!J4893=\"\",\"\",IF(OR('TSA Input'!J4893=\"Yes\",'TSA Input'!J4893=\"Contingent\"),'TSA Input'!D4893,\"\"))","v":""},{"$f":"IF('TSA Input'!J4893=\"\",\"\",IF(OR('TSA Input'!J4893=\"Yes\",'TSA Input'!J4893=\"Contingent\"),'TSA Input'!G4893,\"\"))","v":""},{"$f":"IF('TSA Input'!J4893=\"\",\"\",IF(OR('TSA Input'!J4893=\"Yes\",'TSA Input'!J4893=\"Contingent\"),'TSA Input'!F4893,\"\"))","v":""},"","Required","Required"]
["",null,{"$f":"IF('TSA Input'!J4894=\"\",\"\",IF(OR('TSA Input'!J4894=\"Yes\",'TSA Input'!J4894=\"Contingent\"),'TSA Input'!B4894,\"Ineligible\"))","v":""},{"$f":"IF('TSA Input'!J4894=\"\",\"\",IF(OR('TSA Input'!J4894=\"Yes\",'TSA Input'!J4894=\"Contingent\"),'TSA Input'!I4894,\"\"))","v":""},{"$f":"IF('TSA Input'!J4894=\"\",\"\",IF(OR('TSA Input'!J4894=\"Yes\",'TSA Input'!J4894=\"Contingent\"),'TSA Input'!C4894,\"\"))","v":""},{"$f":"IF('TSA Input'!J4894=\"\",\"\",IF(OR('TSA Input'!J4894=\"Yes\",'TSA Input'!J4894=\"Contingent\"),'TSA Input'!D4894,\"\"))","v":""},{"$f":"IF('TSA Input'!J4894=\"\",\"\",IF(OR('TSA Input'!J4894=\"Yes\",'TSA Input'!J4894=\"Contingent\"),'TSA Input'!G4894,\"\"))","v":""},{"$f":"IF('TSA Input'!J4894=\"\",\"\",IF(OR('TSA Input'!J4894=\"Yes\",'TSA Input'!J4894=\"Contingent\"),'TSA Input'!F4894,\"\"))","v":""},"",{"$f":"IF('TSA Input'!J4894=\"\",\"\",IF(OR('TSA Input'!J4894=\"Yes\",'TSA Input'!J4894=\"Contingent\"),'TSA Input'!D4894,\"\"))","v":""},{"$f":"IF('TSA Input'!J4894=\"\",\"\",IF(OR('TSA Input'!J4894=\"Yes\",'TSA Input'!J4894=\"Contingent\"),'TSA Input'!G4894,\"\"))","v":""},{"$f":"IF('TSA Input'!J4894=\"\",\"\",IF(OR('TSA Input'!J4894=\"Yes\",'TSA Input'!J4894=\"Contingent\"),'TSA Input'!F4894,\"\"))","v":""},"","Required","Required"]
["",null,{"$f":"IF('TSA Input'!J4895=\"\",\"\",IF(OR('TSA Input'!J4895=\"Yes\",'TSA Input'!J4895=\"Contingent\"),'TSA Input'!B4895,\"Ineligible\"))","v":""},{"$f":"IF('TSA Input'!J4895=\"\",\"\",IF(OR('TSA Input'!J4895=\"Yes\",'TSA Input'!J4895=\"Contingent\"),'TSA Input'!I4895,\"\"))","v":""},{"$f":"IF('TSA Input'!J4895=\"\",\"\",IF(OR('TSA Input'!J4895=\"Yes\",'TSA Input'!J4895=\"Contingent\"),'TSA Input'!C4895,\"\"))","v":""},{"$f":"IF('TSA Input'!J4895=\"\",\"\",IF(OR('TSA Input'!J4895=\"Yes\",'TSA Input'!J4895=\"Contingent\"),'TSA Input'!D4895,\"\"))","v":""},{"$f":"IF('TSA Input'!J4895=\"\",\"\",IF(OR('TSA Input'!J4895=\"Yes\",'TSA Input'!J4895=\"Contingent\"),'TSA Input'!G4895,\"\"))","v":""},{"$f":"IF('TSA Input'!J4895=\"\",\"\",IF(OR('TSA Input'!J4895=\"Yes\",'TSA Input'!J4895=\"Contingent\"),'TSA Input'!F4895,\"\"))","v":""},"",{"$f":"IF('TSA Input'!J4895=\"\",\"\",IF(OR('TSA Input'!J4895=\"Yes\",'TSA Input'!J4895=\"Contingent\"),'TSA Input'!D4895,\"\"))","v":""},{"$f":"IF('TSA Input'!J4895=\"\",\"\",IF(OR('TSA Input'!J4895=\"Yes\",'TSA Input'!J4895=\"Contingent\"),'TSA Input'!G4895,\"\"))","v":""},{"$f":"IF('TSA Input'!J4895=\"\",\"\",IF(OR('TSA Input'!J4895=\"Yes\",'TSA Input'!J4895=\"Contingent\"),'TSA Input'!F4895,\"\"))","v":""},"","Required","Required"]
["",null,{"$f":"IF('TSA Input'!J4896=\"\",\"\",IF(OR('TSA Input'!J4896=\"Yes\",'TSA Input'!J4896=\"Contingent\"),'TSA Input'!B4896,\"Ineligible\"))","v":""},{"$f":"IF('TSA Input'!J4896=\"\",\"\",IF(OR('TSA Input'!J4896=\"Yes\",'TSA Input'!J4896=\"Contingent\"),'TSA Input'!I4896,\"\"))","v":""},{"$f":"IF('TSA Input'!J4896=\"\",\"\",IF(OR('TSA Input'!J4896=\"Yes\",'TSA Input'!J4896=\"Contingent\"),'TSA Input'!C4896,\"\"))","v":""},{"$f":"IF('TSA Input'!J4896=\"\",\"\",IF(OR('TSA Input'!J4896=\"Yes\",'TSA Input'!J4896=\"Contingent\"),'TSA Input'!D4896,\"\"))","v":""},{"$f":"IF('TSA Input'!J4896=\"\",\"\",IF(OR('TSA Input'!J4896=\"Yes\",'TSA Input'!J4896=\"Contingent\"),'TSA Input'!G4896,\"\"))","v":""},{"$f":"IF('TSA Input'!J4896=\"\",\"\",IF(OR('TSA Input'!J4896=\"Yes\",'TSA Input'!J4896=\"Contingent\"),'TSA Input'!F4896,\"\"))","v":""},"",{"$f":"IF('TSA Input'!J4896=\"\",\"\",IF(OR('TSA Input'!J4896=\"Yes\",'TSA Input'!J4896=\"Contingent\"),'TSA Input'!D4896,\"\"))","v":""},{"$f":"IF('TSA Input'!J4896=\"\",\"\",IF(OR('TSA Input'!J4896=\"Yes\",'TSA Input'!J4896=\"Contingent\"),'TSA Input'!G4896,\"\"))","v":""},{"$f":"IF('TSA Input'!J4896=\"\",\"\",IF(OR('TSA Input'!J4896=\"Yes\",'TSA Input'!J4896=\"Contingent\"),'TSA Input'!F4896,\"\"))","v":""},"","Required","Required"]
["",null,{"$f":"IF('TSA Input'!J4897=\"\",\"\",IF(OR('TSA Input'!J4897=\"Yes\",'TSA Input'!J4897=\"Contingent\"),'TSA Input'!B4897,\"Ineligible\"))","v":""},{"$f":"IF('TSA Input'!J4897=\"\",\"\",IF(OR('TSA Input'!J4897=\"Yes\",'TSA Input'!J4897=\"Contingent\"),'TSA Input'!I4897,\"\"))","v":""},{"$f":"IF('TSA Input'!J4897=\"\",\"\",IF(OR('TSA Input'!J4897=\"Yes\",'TSA Input'!J4897=\"Contingent\"),'TSA Input'!C4897,\"\"))","v":""},{"$f":"IF('TSA Input'!J4897=\"\",\"\",IF(OR('TSA Input'!J4897=\"Yes\",'TSA Input'!J4897=\"Contingent\"),'TSA Input'!D4897,\"\"))","v":""},{"$f":"IF('TSA Input'!J4897=\"\",\"\",IF(OR('TSA Input'!J4897=\"Yes\",'TSA Input'!J4897=\"Contingent\"),'TSA Input'!G4897,\"\"))","v":""},{"$f":"IF('TSA Input'!J4897=\"\",\"\",IF(OR('TSA Input'!J4897=\"Yes\",'TSA Input'!J4897=\"Contingent\"),'TSA Input'!F4897,\"\"))","v":""},"",{"$f":"IF('TSA Input'!J4897=\"\",\"\",IF(OR('TSA Input'!J4897=\"Yes\",'TSA Input'!J4897=\"Contingent\"),'TSA Input'!D4897,\"\"))","v":""},{"$f":"IF('TSA Input'!J4897=\"\",\"\",IF(OR('TSA Input'!J4897=\"Yes\",'TSA Input'!J4897=\"Contingent\"),'TSA Input'!G4897,\"\"))","v":""},{"$f":"IF('TSA Input'!J4897=\"\",\"\",IF(OR('TSA Input'!J4897=\"Yes\",'TSA Input'!J4897=\"Contingent\"),'TSA Input'!F4897,\"\"))","v":""},"","Required","Required"]
["",null,{"$f":"IF('TSA Input'!J4898=\"\",\"\",IF(OR('TSA Input'!J4898=\"Yes\",'TSA Input'!J4898=\"Contingent\"),'TSA Input'!B4898,\"Ineligible\"))","v":""},{"$f":"IF('TSA Input'!J4898=\"\",\"\",IF(OR('TSA Input'!J4898=\"Yes\",'TSA Input'!J4898=\"Contingent\"),'TSA Input'!I4898,\"\"))","v":""},{"$f":"IF('TSA Input'!J4898=\"\",\"\",IF(OR('TSA Input'!J4898=\"Yes\",'TSA Input'!J4898=\"Contingent\"),'TSA Input'!C4898,\"\"))","v":""},{"$f":"IF('TSA Input'!J4898=\"\",\"\",IF(OR('TSA Input'!J4898=\"Yes\",'TSA Input'!J4898=\"Contingent\"),'TSA Input'!D4898,\"\"))","v":""},{"$f":"IF('TSA Input'!J4898=\"\",\"\",IF(OR('TSA Input'!J4898=\"Yes\",'TSA Input'!J4898=\"Contingent\"),'TSA Input'!G4898,\"\"))","v":""},{"$f":"IF('TSA Input'!J4898=\"\",\"\",IF(OR('TSA Input'!J4898=\"Yes\",'TSA Input'!J4898=\"Contingent\"),'TSA Input'!F4898,\"\"))","v":""},"",{"$f":"IF('TSA Input'!J4898=\"\",\"\",IF(OR('TSA Input'!J4898=\"Yes\",'TSA Input'!J4898=\"Contingent\"),'TSA Input'!D4898,\"\"))","v":""},{"$f":"IF('TSA Input'!J4898=\"\",\"\",IF(OR('TSA Input'!J4898=\"Yes\",'TSA Input'!J4898=\"Contingent\"),'TSA Input'!G4898,\"\"))","v":""},{"$f":"IF('TSA Input'!J4898=\"\",\"\",IF(OR('TSA Input'!J4898=\"Yes\",'TSA Input'!J4898=\"Contingent\"),'TSA Input'!F4898,\"\"))","v":""},"","Required","Required"]
["",null,{"$f":"IF('TSA Input'!J4899=\"\",\"\",IF(OR('TSA Input'!J4899=\"Yes\",'TSA Input'!J4899=\"Contingent\"),'TSA Input'!B4899,\"Ineligible\"))","v":""},{"$f":"IF('TSA Input'!J4899=\"\",\"\",IF(OR('TSA Input'!J4899=\"Yes\",'TSA Input'!J4899=\"Contingent\"),'TSA Input'!I4899,\"\"))","v":""},{"$f":"IF('TSA Input'!J4899=\"\",\"\",IF(OR('TSA Input'!J4899=\"Yes\",'TSA Input'!J4899=\"Contingent\"),'TSA Input'!C4899,\"\"))","v":""},{"$f":"IF('TSA Input'!J4899=\"\",\"\",IF(OR('TSA Input'!J4899=\"Yes\",'TSA Input'!J4899=\"Contingent\"),'TSA Input'!D4899,\"\"))","v":""},{"$f":"IF('TSA Input'!J4899=\"\",\"\",IF(OR('TSA Input'!J4899=\"Yes\",'TSA Input'!J4899=\"Contingent\"),'TSA Input'!G4899,\"\"))","v":""},{"$f":"IF('TSA Input'!J4899=\"\",\"\",IF(OR('TSA Input'!J4899=\"Yes\",'TSA Input'!J4899=\"Contingent\"),'TSA Input'!F4899,\"\"))","v":""},"",{"$f":"IF('TSA Input'!J4899=\"\",\"\",IF(OR('TSA Input'!J4899=\"Yes\",'TSA Input'!J4899=\"Contingent\"),'TSA Input'!D4899,\"\"))","v":""},{"$f":"IF('TSA Input'!J4899=\"\",\"\",IF(OR('TSA Input'!J4899=\"Yes\",'TSA Input'!J4899=\"Contingent\"),'TSA Input'!G4899,\"\"))","v":""},{"$f":"IF('TSA Input'!J4899=\"\",\"\",IF(OR('TSA Input'!J4899=\"Yes\",'TSA Input'!J4899=\"Contingent\"),'TSA Input'!F4899,\"\"))","v":""},"","Required","Required"]
["",null,{"$f":"IF('TSA Input'!J4900=\"\",\"\",IF(OR('TSA Input'!J4900=\"Yes\",'TSA Input'!J4900=\"Contingent\"),'TSA Input'!B4900,\"Ineligible\"))","v":""},{"$f":"IF('TSA Input'!J4900=\"\",\"\",IF(OR('TSA Input'!J4900=\"Yes\",'TSA Input'!J4900=\"Contingent\"),'TSA Input'!I4900,\"\"))","v":""},{"$f":"IF('TSA Input'!J4900=\"\",\"\",IF(OR('TSA Input'!J4900=\"Yes\",'TSA Input'!J4900=\"Contingent\"),'TSA Input'!C4900,\"\"))","v":""},{"$f":"IF('TSA Input'!J4900=\"\",\"\",IF(OR('TSA Input'!J4900=\"Yes\",'TSA Input'!J4900=\"Contingent\"),'TSA Input'!D4900,\"\"))","v":""},{"$f":"IF('TSA Input'!J4900=\"\",\"\",IF(OR('TSA Input'!J4900=\"Yes\",'TSA Input'!J4900=\"Contingent\"),'TSA Input'!G4900,\"\"))","v":""},{"$f":"IF('TSA Input'!J4900=\"\",\"\",IF(OR('TSA Input'!J4900=\"Yes\",'TSA Input'!J4900=\"Contingent\"),'TSA Input'!F4900,\"\"))","v":""},"",{"$f":"IF('TSA Input'!J4900=\"\",\"\",IF(OR('TSA Input'!J4900=\"Yes\",'TSA Input'!J4900=\"Contingent\"),'TSA Input'!D4900,\"\"))","v":""},{"$f":"IF('TSA Input'!J4900=\"\",\"\",IF(OR('TSA Input'!J4900=\"Yes\",'TSA Input'!J4900=\"Contingent\"),'TSA Input'!G4900,\"\"))","v":""},{"$f":"IF('TSA Input'!J4900=\"\",\"\",IF(OR('TSA Input'!J4900=\"Yes\",'TSA Input'!J4900=\"Contingent\"),'TSA Input'!F4900,\"\"))","v":""},"","Required","Required"]
["",null,{"$f":"IF('TSA Input'!J4901=\"\",\"\",IF(OR('TSA Input'!J4901=\"Yes\",'TSA Input'!J4901=\"Contingent\"),'TSA Input'!B4901,\"Ineligible\"))","v":""},{"$f":"IF('TSA Input'!J4901=\"\",\"\",IF(OR('TSA Input'!J4901=\"Yes\",'TSA Input'!J4901=\"Contingent\"),'TSA Input'!I4901,\"\"))","v":""},{"$f":"IF('TSA Input'!J4901=\"\",\"\",IF(OR('TSA Input'!J4901=\"Yes\",'TSA Input'!J4901=\"Contingent\"),'TSA Input'!C4901,\"\"))","v":""},{"$f":"IF('TSA Input'!J4901=\"\",\"\",IF(OR('TSA Input'!J4901=\"Yes\",'TSA Input'!J4901=\"Contingent\"),'TSA Input'!D4901,\"\"))","v":""},{"$f":"IF('TSA Input'!J4901=\"\",\"\",IF(OR('TSA Input'!J4901=\"Yes\",'TSA Input'!J4901=\"Contingent\"),'TSA Input'!G4901,\"\"))","v":""},{"$f":"IF('TSA Input'!J4901=\"\",\"\",IF(OR('TSA Input'!J4901=\"Yes\",'TSA Input'!J4901=\"Contingent\"),'TSA Input'!F4901,\"\"))","v":""},"",{"$f":"IF('TSA Input'!J4901=\"\",\"\",IF(OR('TSA Input'!J4901=\"Yes\",'TSA Input'!J4901=\"Contingent\"),'TSA Input'!D4901,\"\"))","v":""},{"$f":"IF('TSA Input'!J4901=\"\",\"\",IF(OR('TSA Input'!J4901=\"Yes\",'TSA Input'!J4901=\"Contingent\"),'TSA Input'!G4901,\"\"))","v":""},{"$f":"IF('TSA Input'!J4901=\"\",\"\",IF(OR('TSA Input'!J4901=\"Yes\",'TSA Input'!J4901=\"Contingent\"),'TSA Input'!F4901,\"\"))","v":""},"","Required","Required"]
["",null,{"$f":"IF('TSA Input'!J4902=\"\",\"\",IF(OR('TSA Input'!J4902=\"Yes\",'TSA Input'!J4902=\"Contingent\"),'TSA Input'!B4902,\"Ineligible\"))","v":""},{"$f":"IF('TSA Input'!J4902=\"\",\"\",IF(OR('TSA Input'!J4902=\"Yes\",'TSA Input'!J4902=\"Contingent\"),'TSA Input'!I4902,\"\"))","v":""},{"$f":"IF('TSA Input'!J4902=\"\",\"\",IF(OR('TSA Input'!J4902=\"Yes\",'TSA Input'!J4902=\"Contingent\"),'TSA Input'!C4902,\"\"))","v":""},{"$f":"IF('TSA Input'!J4902=\"\",\"\",IF(OR('TSA Input'!J4902=\"Yes\",'TSA Input'!J4902=\"Contingent\"),'TSA Input'!D4902,\"\"))","v":""},{"$f":"IF('TSA Input'!J4902=\"\",\"\",IF(OR('TSA Input'!J4902=\"Yes\",'TSA Input'!J4902=\"Contingent\"),'TSA Input'!G4902,\"\"))","v":""},{"$f":"IF('TSA Input'!J4902=\"\",\"\",IF(OR('TSA Input'!J4902=\"Yes\",'TSA Input'!J4902=\"Contingent\"),'TSA Input'!F4902,\"\"))","v":""},"",{"$f":"IF('TSA Input'!J4902=\"\",\"\",IF(OR('TSA Input'!J4902=\"Yes\",'TSA Input'!J4902=\"Contingent\"),'TSA Input'!D4902,\"\"))","v":""},{"$f":"IF('TSA Input'!J4902=\"\",\"\",IF(OR('TSA Input'!J4902=\"Yes\",'TSA Input'!J4902=\"Contingent\"),'TSA Input'!G4902,\"\"))","v":""},{"$f":"IF('TSA Input'!J4902=\"\",\"\",IF(OR('TSA Input'!J4902=\"Yes\",'TSA Input'!J4902=\"Contingent\"),'TSA Input'!F4902,\"\"))","v":""},"","Required","Required"]
["",null,{"$f":"IF('TSA Input'!J4903=\"\",\"\",IF(OR('TSA Input'!J4903=\"Yes\",'TSA Input'!J4903=\"Contingent\"),'TSA Input'!B4903,\"Ineligible\"))","v":""},{"$f":"IF('TSA Input'!J4903=\"\",\"\",IF(OR('TSA Input'!J4903=\"Yes\",'TSA Input'!J4903=\"Contingent\"),'TSA Input'!I4903,\"\"))","v":""},{"$f":"IF('TSA Input'!J4903=\"\",\"\",IF(OR('TSA Input'!J4903=\"Yes\",'TSA Input'!J4903=\"Contingent\"),'TSA Input'!C4903,\"\"))","v":""},{"$f":"IF('TSA Input'!J4903=\"\",\"\",IF(OR('TSA Input'!J4903=\"Yes\",'TSA Input'!J4903=\"Contingent\"),'TSA Input'!D4903,\"\"))","v":""},{"$f":"IF('TSA Input'!J4903=\"\",\"\",IF(OR('TSA Input'!J4903=\"Yes\",'TSA Input'!J4903=\"Contingent\"),'TSA Input'!G4903,\"\"))","v":""},{"$f":"IF('TSA Input'!J4903=\"\",\"\",IF(OR('TSA Input'!J4903=\"Yes\",'TSA Input'!J4903=\"Contingent\"),'TSA Input'!F4903,\"\"))","v":""},"",{"$f":"IF('TSA Input'!J4903=\"\",\"\",IF(OR('TSA Input'!J4903=\"Yes\",'TSA Input'!J4903=\"Contingent\"),'TSA Input'!D4903,\"\"))","v":""},{"$f":"IF('TSA Input'!J4903=\"\",\"\",IF(OR('TSA Input'!J4903=\"Yes\",'TSA Input'!J4903=\"Contingent\"),'TSA Input'!G4903,\"\"))","v":""},{"$f":"IF('TSA Input'!J4903=\"\",\"\",IF(OR('TSA Input'!J4903=\"Yes\",'TSA Input'!J4903=\"Contingent\"),'TSA Input'!F4903,\"\"))","v":""},"","Required","Required"]
["",null,{"$f":"IF('TSA Input'!J4904=\"\",\"\",IF(OR('TSA Input'!J4904=\"Yes\",'TSA Input'!J4904=\"Contingent\"),'TSA Input'!B4904,\"Ineligible\"))","v":""},{"$f":"IF('TSA Input'!J4904=\"\",\"\",IF(OR('TSA Input'!J4904=\"Yes\",'TSA Input'!J4904=\"Contingent\"),'TSA Input'!I4904,\"\"))","v":""},{"$f":"IF('TSA Input'!J4904=\"\",\"\",IF(OR('TSA Input'!J4904=\"Yes\",'TSA Input'!J4904=\"Contingent\"),'TSA Input'!C4904,\"\"))","v":""},{"$f":"IF('TSA Input'!J4904=\"\",\"\",IF(OR('TSA Input'!J4904=\"Yes\",'TSA Input'!J4904=\"Contingent\"),'TSA Input'!D4904,\"\"))","v":""},{"$f":"IF('TSA Input'!J4904=\"\",\"\",IF(OR('TSA Input'!J4904=\"Yes\",'TSA Input'!J4904=\"Contingent\"),'TSA Input'!G4904,\"\"))","v":""},{"$f":"IF('TSA Input'!J4904=\"\",\"\",IF(OR('TSA Input'!J4904=\"Yes\",'TSA Input'!J4904=\"Contingent\"),'TSA Input'!F4904,\"\"))","v":""},"",{"$f":"IF('TSA Input'!J4904=\"\",\"\",IF(OR('TSA Input'!J4904=\"Yes\",'TSA Input'!J4904=\"Contingent\"),'TSA Input'!D4904,\"\"))","v":""},{"$f":"IF('TSA Input'!J4904=\"\",\"\",IF(OR('TSA Input'!J4904=\"Yes\",'TSA Input'!J4904=\"Contingent\"),'TSA Input'!G4904,\"\"))","v":""},{"$f":"IF('TSA Input'!J4904=\"\",\"\",IF(OR('TSA Input'!J4904=\"Yes\",'TSA Input'!J4904=\"Contingent\"),'TSA Input'!F4904,\"\"))","v":""},"","Required","Required"]
["",null,{"$f":"IF('TSA Input'!J4905=\"\",\"\",IF(OR('TSA Input'!J4905=\"Yes\",'TSA Input'!J4905=\"Contingent\"),'TSA Input'!B4905,\"Ineligible\"))","v":""},{"$f":"IF('TSA Input'!J4905=\"\",\"\",IF(OR('TSA Input'!J4905=\"Yes\",'TSA Input'!J4905=\"Contingent\"),'TSA Input'!I4905,\"\"))","v":""},{"$f":"IF('TSA Input'!J4905=\"\",\"\",IF(OR('TSA Input'!J4905=\"Yes\",'TSA Input'!J4905=\"Contingent\"),'TSA Input'!C4905,\"\"))","v":""},{"$f":"IF('TSA Input'!J4905=\"\",\"\",IF(OR('TSA Input'!J4905=\"Yes\",'TSA Input'!J4905=\"Contingent\"),'TSA Input'!D4905,\"\"))","v":""},{"$f":"IF('TSA Input'!J4905=\"\",\"\",IF(OR('TSA Input'!J4905=\"Yes\",'TSA Input'!J4905=\"Contingent\"),'TSA Input'!G4905,\"\"))","v":""},{"$f":"IF('TSA Input'!J4905=\"\",\"\",IF(OR('TSA Input'!J4905=\"Yes\",'TSA Input'!J4905=\"Contingent\"),'TSA Input'!F4905,\"\"))","v":""},"",{"$f":"IF('TSA Input'!J4905=\"\",\"\",IF(OR('TSA Input'!J4905=\"Yes\",'TSA Input'!J4905=\"Contingent\"),'TSA Input'!D4905,\"\"))","v":""},{"$f":"IF('TSA Input'!J4905=\"\",\"\",IF(OR('TSA Input'!J4905=\"Yes\",'TSA Input'!J4905=\"Contingent\"),'TSA Input'!G4905,\"\"))","v":""},{"$f":"IF('TSA Input'!J4905=\"\",\"\",IF(OR('TSA Input'!J4905=\"Yes\",'TSA Input'!J4905=\"Contingent\"),'TSA Input'!F4905,\"\"))","v":""},"","Required","Required"]
["",null,{"$f":"IF('TSA Input'!J4906=\"\",\"\",IF(OR('TSA Input'!J4906=\"Yes\",'TSA Input'!J4906=\"Contingent\"),'TSA Input'!B4906,\"Ineligible\"))","v":""},{"$f":"IF('TSA Input'!J4906=\"\",\"\",IF(OR('TSA Input'!J4906=\"Yes\",'TSA Input'!J4906=\"Contingent\"),'TSA Input'!I4906,\"\"))","v":""},{"$f":"IF('TSA Input'!J4906=\"\",\"\",IF(OR('TSA Input'!J4906=\"Yes\",'TSA Input'!J4906=\"Contingent\"),'TSA Input'!C4906,\"\"))","v":""},{"$f":"IF('TSA Input'!J4906=\"\",\"\",IF(OR('TSA Input'!J4906=\"Yes\",'TSA Input'!J4906=\"Contingent\"),'TSA Input'!D4906,\"\"))","v":""},{"$f":"IF('TSA Input'!J4906=\"\",\"\",IF(OR('TSA Input'!J4906=\"Yes\",'TSA Input'!J4906=\"Contingent\"),'TSA Input'!G4906,\"\"))","v":""},{"$f":"IF('TSA Input'!J4906=\"\",\"\",IF(OR('TSA Input'!J4906=\"Yes\",'TSA Input'!J4906=\"Contingent\"),'TSA Input'!F4906,\"\"))","v":""},"",{"$f":"IF('TSA Input'!J4906=\"\",\"\",IF(OR('TSA Input'!J4906=\"Yes\",'TSA Input'!J4906=\"Contingent\"),'TSA Input'!D4906,\"\"))","v":""},{"$f":"IF('TSA Input'!J4906=\"\",\"\",IF(OR('TSA Input'!J4906=\"Yes\",'TSA Input'!J4906=\"Contingent\"),'TSA Input'!G4906,\"\"))","v":""},{"$f":"IF('TSA Input'!J4906=\"\",\"\",IF(OR('TSA Input'!J4906=\"Yes\",'TSA Input'!J4906=\"Contingent\"),'TSA Input'!F4906,\"\"))","v":""},"","Required","Required"]
["",null,{"$f":"IF('TSA Input'!J4907=\"\",\"\",IF(OR('TSA Input'!J4907=\"Yes\",'TSA Input'!J4907=\"Contingent\"),'TSA Input'!B4907,\"Ineligible\"))","v":""},{"$f":"IF('TSA Input'!J4907=\"\",\"\",IF(OR('TSA Input'!J4907=\"Yes\",'TSA Input'!J4907=\"Contingent\"),'TSA Input'!I4907,\"\"))","v":""},{"$f":"IF('TSA Input'!J4907=\"\",\"\",IF(OR('TSA Input'!J4907=\"Yes\",'TSA Input'!J4907=\"Contingent\"),'TSA Input'!C4907,\"\"))","v":""},{"$f":"IF('TSA Input'!J4907=\"\",\"\",IF(OR('TSA Input'!J4907=\"Yes\",'TSA Input'!J4907=\"Contingent\"),'TSA Input'!D4907,\"\"))","v":""},{"$f":"IF('TSA Input'!J4907=\"\",\"\",IF(OR('TSA Input'!J4907=\"Yes\",'TSA Input'!J4907=\"Contingent\"),'TSA Input'!G4907,\"\"))","v":""},{"$f":"IF('TSA Input'!J4907=\"\",\"\",IF(OR('TSA Input'!J4907=\"Yes\",'TSA Input'!J4907=\"Contingent\"),'TSA Input'!F4907,\"\"))","v":""},"",{"$f":"IF('TSA Input'!J4907=\"\",\"\",IF(OR('TSA Input'!J4907=\"Yes\",'TSA Input'!J4907=\"Contingent\"),'TSA Input'!D4907,\"\"))","v":""},{"$f":"IF('TSA Input'!J4907=\"\",\"\",IF(OR('TSA Input'!J4907=\"Yes\",'TSA Input'!J4907=\"Contingent\"),'TSA Input'!G4907,\"\"))","v":""},{"$f":"IF('TSA Input'!J4907=\"\",\"\",IF(OR('TSA Input'!J4907=\"Yes\",'TSA Input'!J4907=\"Contingent\"),'TSA Input'!F4907,\"\"))","v":""},"","Required","Required"]
["",null,{"$f":"IF('TSA Input'!J4908=\"\",\"\",IF(OR('TSA Input'!J4908=\"Yes\",'TSA Input'!J4908=\"Contingent\"),'TSA Input'!B4908,\"Ineligible\"))","v":""},{"$f":"IF('TSA Input'!J4908=\"\",\"\",IF(OR('TSA Input'!J4908=\"Yes\",'TSA Input'!J4908=\"Contingent\"),'TSA Input'!I4908,\"\"))","v":""},{"$f":"IF('TSA Input'!J4908=\"\",\"\",IF(OR('TSA Input'!J4908=\"Yes\",'TSA Input'!J4908=\"Contingent\"),'TSA Input'!C4908,\"\"))","v":""},{"$f":"IF('TSA Input'!J4908=\"\",\"\",IF(OR('TSA Input'!J4908=\"Yes\",'TSA Input'!J4908=\"Contingent\"),'TSA Input'!D4908,\"\"))","v":""},{"$f":"IF('TSA Input'!J4908=\"\",\"\",IF(OR('TSA Input'!J4908=\"Yes\",'TSA Input'!J4908=\"Contingent\"),'TSA Input'!G4908,\"\"))","v":""},{"$f":"IF('TSA Input'!J4908=\"\",\"\",IF(OR('TSA Input'!J4908=\"Yes\",'TSA Input'!J4908=\"Contingent\"),'TSA Input'!F4908,\"\"))","v":""},"",{"$f":"IF('TSA Input'!J4908=\"\",\"\",IF(OR('TSA Input'!J4908=\"Yes\",'TSA Input'!J4908=\"Contingent\"),'TSA Input'!D4908,\"\"))","v":""},{"$f":"IF('TSA Input'!J4908=\"\",\"\",IF(OR('TSA Input'!J4908=\"Yes\",'TSA Input'!J4908=\"Contingent\"),'TSA Input'!G4908,\"\"))","v":""},{"$f":"IF('TSA Input'!J4908=\"\",\"\",IF(OR('TSA Input'!J4908=\"Yes\",'TSA Input'!J4908=\"Contingent\"),'TSA Input'!F4908,\"\"))","v":""},"","Required","Required"]
["",null,{"$f":"IF('TSA Input'!J4909=\"\",\"\",IF(OR('TSA Input'!J4909=\"Yes\",'TSA Input'!J4909=\"Contingent\"),'TSA Input'!B4909,\"Ineligible\"))","v":""},{"$f":"IF('TSA Input'!J4909=\"\",\"\",IF(OR('TSA Input'!J4909=\"Yes\",'TSA Input'!J4909=\"Contingent\"),'TSA Input'!I4909,\"\"))","v":""},{"$f":"IF('TSA Input'!J4909=\"\",\"\",IF(OR('TSA Input'!J4909=\"Yes\",'TSA Input'!J4909=\"Contingent\"),'TSA Input'!C4909,\"\"))","v":""},{"$f":"IF('TSA Input'!J4909=\"\",\"\",IF(OR('TSA Input'!J4909=\"Yes\",'TSA Input'!J4909=\"Contingent\"),'TSA Input'!D4909,\"\"))","v":""},{"$f":"IF('TSA Input'!J4909=\"\",\"\",IF(OR('TSA Input'!J4909=\"Yes\",'TSA Input'!J4909=\"Contingent\"),'TSA Input'!G4909,\"\"))","v":""},{"$f":"IF('TSA Input'!J4909=\"\",\"\",IF(OR('TSA Input'!J4909=\"Yes\",'TSA Input'!J4909=\"Contingent\"),'TSA Input'!F4909,\"\"))","v":""},"",{"$f":"IF('TSA Input'!J4909=\"\",\"\",IF(OR('TSA Input'!J4909=\"Yes\",'TSA Input'!J4909=\"Contingent\"),'TSA Input'!D4909,\"\"))","v":""},{"$f":"IF('TSA Input'!J4909=\"\",\"\",IF(OR('TSA Input'!J4909=\"Yes\",'TSA Input'!J4909=\"Contingent\"),'TSA Input'!G4909,\"\"))","v":""},{"$f":"IF('TSA Input'!J4909=\"\",\"\",IF(OR('TSA Input'!J4909=\"Yes\",'TSA Input'!J4909=\"Contingent\"),'TSA Input'!F4909,\"\"))","v":""},"","Required","Required"]
["",null,{"$f":"IF('TSA Input'!J4910=\"\",\"\",IF(OR('TSA Input'!J4910=\"Yes\",'TSA Input'!J4910=\"Contingent\"),'TSA Input'!B4910,\"Ineligible\"))","v":""},{"$f":"IF('TSA Input'!J4910=\"\",\"\",IF(OR('TSA Input'!J4910=\"Yes\",'TSA Input'!J4910=\"Contingent\"),'TSA Input'!I4910,\"\"))","v":""},{"$f":"IF('TSA Input'!J4910=\"\",\"\",IF(OR('TSA Input'!J4910=\"Yes\",'TSA Input'!J4910=\"Contingent\"),'TSA Input'!C4910,\"\"))","v":""},{"$f":"IF('TSA Input'!J4910=\"\",\"\",IF(OR('TSA Input'!J4910=\"Yes\",'TSA Input'!J4910=\"Contingent\"),'TSA Input'!D4910,\"\"))","v":""},{"$f":"IF('TSA Input'!J4910=\"\",\"\",IF(OR('TSA Input'!J4910=\"Yes\",'TSA Input'!J4910=\"Contingent\"),'TSA Input'!G4910,\"\"))","v":""},{"$f":"IF('TSA Input'!J4910=\"\",\"\",IF(OR('TSA Input'!J4910=\"Yes\",'TSA Input'!J4910=\"Contingent\"),'TSA Input'!F4910,\"\"))","v":""},"",{"$f":"IF('TSA Input'!J4910=\"\",\"\",IF(OR('TSA Input'!J4910=\"Yes\",'TSA Input'!J4910=\"Contingent\"),'TSA Input'!D4910,\"\"))","v":""},{"$f":"IF('TSA Input'!J4910=\"\",\"\",IF(OR('TSA Input'!J4910=\"Yes\",'TSA Input'!J4910=\"Contingent\"),'TSA Input'!G4910,\"\"))","v":""},{"$f":"IF('TSA Input'!J4910=\"\",\"\",IF(OR('TSA Input'!J4910=\"Yes\",'TSA Input'!J4910=\"Contingent\"),'TSA Input'!F4910,\"\"))","v":""},"","Required","Required"]
["",null,{"$f":"IF('TSA Input'!J4911=\"\",\"\",IF(OR('TSA Input'!J4911=\"Yes\",'TSA Input'!J4911=\"Contingent\"),'TSA Input'!B4911,\"Ineligible\"))","v":""},{"$f":"IF('TSA Input'!J4911=\"\",\"\",IF(OR('TSA Input'!J4911=\"Yes\",'TSA Input'!J4911=\"Contingent\"),'TSA Input'!I4911,\"\"))","v":""},{"$f":"IF('TSA Input'!J4911=\"\",\"\",IF(OR('TSA Input'!J4911=\"Yes\",'TSA Input'!J4911=\"Contingent\"),'TSA Input'!C4911,\"\"))","v":""},{"$f":"IF('TSA Input'!J4911=\"\",\"\",IF(OR('TSA Input'!J4911=\"Yes\",'TSA Input'!J4911=\"Contingent\"),'TSA Input'!D4911,\"\"))","v":""},{"$f":"IF('TSA Input'!J4911=\"\",\"\",IF(OR('TSA Input'!J4911=\"Yes\",'TSA Input'!J4911=\"Contingent\"),'TSA Input'!G4911,\"\"))","v":""},{"$f":"IF('TSA Input'!J4911=\"\",\"\",IF(OR('TSA Input'!J4911=\"Yes\",'TSA Input'!J4911=\"Contingent\"),'TSA Input'!F4911,\"\"))","v":""},"",{"$f":"IF('TSA Input'!J4911=\"\",\"\",IF(OR('TSA Input'!J4911=\"Yes\",'TSA Input'!J4911=\"Contingent\"),'TSA Input'!D4911,\"\"))","v":""},{"$f":"IF('TSA Input'!J4911=\"\",\"\",IF(OR('TSA Input'!J4911=\"Yes\",'TSA Input'!J4911=\"Contingent\"),'TSA Input'!G4911,\"\"))","v":""},{"$f":"IF('TSA Input'!J4911=\"\",\"\",IF(OR('TSA Input'!J4911=\"Yes\",'TSA Input'!J4911=\"Contingent\"),'TSA Input'!F4911,\"\"))","v":""},"","Required","Required"]
["",null,{"$f":"IF('TSA Input'!J4912=\"\",\"\",IF(OR('TSA Input'!J4912=\"Yes\",'TSA Input'!J4912=\"Contingent\"),'TSA Input'!B4912,\"Ineligible\"))","v":""},{"$f":"IF('TSA Input'!J4912=\"\",\"\",IF(OR('TSA Input'!J4912=\"Yes\",'TSA Input'!J4912=\"Contingent\"),'TSA Input'!I4912,\"\"))","v":""},{"$f":"IF('TSA Input'!J4912=\"\",\"\",IF(OR('TSA Input'!J4912=\"Yes\",'TSA Input'!J4912=\"Contingent\"),'TSA Input'!C4912,\"\"))","v":""},{"$f":"IF('TSA Input'!J4912=\"\",\"\",IF(OR('TSA Input'!J4912=\"Yes\",'TSA Input'!J4912=\"Contingent\"),'TSA Input'!D4912,\"\"))","v":""},{"$f":"IF('TSA Input'!J4912=\"\",\"\",IF(OR('TSA Input'!J4912=\"Yes\",'TSA Input'!J4912=\"Contingent\"),'TSA Input'!G4912,\"\"))","v":""},{"$f":"IF('TSA Input'!J4912=\"\",\"\",IF(OR('TSA Input'!J4912=\"Yes\",'TSA Input'!J4912=\"Contingent\"),'TSA Input'!F4912,\"\"))","v":""},"",{"$f":"IF('TSA Input'!J4912=\"\",\"\",IF(OR('TSA Input'!J4912=\"Yes\",'TSA Input'!J4912=\"Contingent\"),'TSA Input'!D4912,\"\"))","v":""},{"$f":"IF('TSA Input'!J4912=\"\",\"\",IF(OR('TSA Input'!J4912=\"Yes\",'TSA Input'!J4912=\"Contingent\"),'TSA Input'!G4912,\"\"))","v":""},{"$f":"IF('TSA Input'!J4912=\"\",\"\",IF(OR('TSA Input'!J4912=\"Yes\",'TSA Input'!J4912=\"Contingent\"),'TSA Input'!F4912,\"\"))","v":""},"","Required","Required"]
["",null,{"$f":"IF('TSA Input'!J4913=\"\",\"\",IF(OR('TSA Input'!J4913=\"Yes\",'TSA Input'!J4913=\"Contingent\"),'TSA Input'!B4913,\"Ineligible\"))","v":""},{"$f":"IF('TSA Input'!J4913=\"\",\"\",IF(OR('TSA Input'!J4913=\"Yes\",'TSA Input'!J4913=\"Contingent\"),'TSA Input'!I4913,\"\"))","v":""},{"$f":"IF('TSA Input'!J4913=\"\",\"\",IF(OR('TSA Input'!J4913=\"Yes\",'TSA Input'!J4913=\"Contingent\"),'TSA Input'!C4913,\"\"))","v":""},{"$f":"IF('TSA Input'!J4913=\"\",\"\",IF(OR('TSA Input'!J4913=\"Yes\",'TSA Input'!J4913=\"Contingent\"),'TSA Input'!D4913,\"\"))","v":""},{"$f":"IF('TSA Input'!J4913=\"\",\"\",IF(OR('TSA Input'!J4913=\"Yes\",'TSA Input'!J4913=\"Contingent\"),'TSA Input'!G4913,\"\"))","v":""},{"$f":"IF('TSA Input'!J4913=\"\",\"\",IF(OR('TSA Input'!J4913=\"Yes\",'TSA Input'!J4913=\"Contingent\"),'TSA Input'!F4913,\"\"))","v":""},"",{"$f":"IF('TSA Input'!J4913=\"\",\"\",IF(OR('TSA Input'!J4913=\"Yes\",'TSA Input'!J4913=\"Contingent\"),'TSA Input'!D4913,\"\"))","v":""},{"$f":"IF('TSA Input'!J4913=\"\",\"\",IF(OR('TSA Input'!J4913=\"Yes\",'TSA Input'!J4913=\"Contingent\"),'TSA Input'!G4913,\"\"))","v":""},{"$f":"IF('TSA Input'!J4913=\"\",\"\",IF(OR('TSA Input'!J4913=\"Yes\",'TSA Input'!J4913=\"Contingent\"),'TSA Input'!F4913,\"\"))","v":""},"","Required","Required"]
["",null,{"$f":"IF('TSA Input'!J4914=\"\",\"\",IF(OR('TSA Input'!J4914=\"Yes\",'TSA Input'!J4914=\"Contingent\"),'TSA Input'!B4914,\"Ineligible\"))","v":""},{"$f":"IF('TSA Input'!J4914=\"\",\"\",IF(OR('TSA Input'!J4914=\"Yes\",'TSA Input'!J4914=\"Contingent\"),'TSA Input'!I4914,\"\"))","v":""},{"$f":"IF('TSA Input'!J4914=\"\",\"\",IF(OR('TSA Input'!J4914=\"Yes\",'TSA Input'!J4914=\"Contingent\"),'TSA Input'!C4914,\"\"))","v":""},{"$f":"IF('TSA Input'!J4914=\"\",\"\",IF(OR('TSA Input'!J4914=\"Yes\",'TSA Input'!J4914=\"Contingent\"),'TSA Input'!D4914,\"\"))","v":""},{"$f":"IF('TSA Input'!J4914=\"\",\"\",IF(OR('TSA Input'!J4914=\"Yes\",'TSA Input'!J4914=\"Contingent\"),'TSA Input'!G4914,\"\"))","v":""},{"$f":"IF('TSA Input'!J4914=\"\",\"\",IF(OR('TSA Input'!J4914=\"Yes\",'TSA Input'!J4914=\"Contingent\"),'TSA Input'!F4914,\"\"))","v":""},"",{"$f":"IF('TSA Input'!J4914=\"\",\"\",IF(OR('TSA Input'!J4914=\"Yes\",'TSA Input'!J4914=\"Contingent\"),'TSA Input'!D4914,\"\"))","v":""},{"$f":"IF('TSA Input'!J4914=\"\",\"\",IF(OR('TSA Input'!J4914=\"Yes\",'TSA Input'!J4914=\"Contingent\"),'TSA Input'!G4914,\"\"))","v":""},{"$f":"IF('TSA Input'!J4914=\"\",\"\",IF(OR('TSA Input'!J4914=\"Yes\",'TSA Input'!J4914=\"Contingent\"),'TSA Input'!F4914,\"\"))","v":""},"","Required","Required"]
["",null,{"$f":"IF('TSA Input'!J4915=\"\",\"\",IF(OR('TSA Input'!J4915=\"Yes\",'TSA Input'!J4915=\"Contingent\"),'TSA Input'!B4915,\"Ineligible\"))","v":""},{"$f":"IF('TSA Input'!J4915=\"\",\"\",IF(OR('TSA Input'!J4915=\"Yes\",'TSA Input'!J4915=\"Contingent\"),'TSA Input'!I4915,\"\"))","v":""},{"$f":"IF('TSA Input'!J4915=\"\",\"\",IF(OR('TSA Input'!J4915=\"Yes\",'TSA Input'!J4915=\"Contingent\"),'TSA Input'!C4915,\"\"))","v":""},{"$f":"IF('TSA Input'!J4915=\"\",\"\",IF(OR('TSA Input'!J4915=\"Yes\",'TSA Input'!J4915=\"Contingent\"),'TSA Input'!D4915,\"\"))","v":""},{"$f":"IF('TSA Input'!J4915=\"\",\"\",IF(OR('TSA Input'!J4915=\"Yes\",'TSA Input'!J4915=\"Contingent\"),'TSA Input'!G4915,\"\"))","v":""},{"$f":"IF('TSA Input'!J4915=\"\",\"\",IF(OR('TSA Input'!J4915=\"Yes\",'TSA Input'!J4915=\"Contingent\"),'TSA Input'!F4915,\"\"))","v":""},"",{"$f":"IF('TSA Input'!J4915=\"\",\"\",IF(OR('TSA Input'!J4915=\"Yes\",'TSA Input'!J4915=\"Contingent\"),'TSA Input'!D4915,\"\"))","v":""},{"$f":"IF('TSA Input'!J4915=\"\",\"\",IF(OR('TSA Input'!J4915=\"Yes\",'TSA Input'!J4915=\"Contingent\"),'TSA Input'!G4915,\"\"))","v":""},{"$f":"IF('TSA Input'!J4915=\"\",\"\",IF(OR('TSA Input'!J4915=\"Yes\",'TSA Input'!J4915=\"Contingent\"),'TSA Input'!F4915,\"\"))","v":""},"","Required","Required"]
["",null,{"$f":"IF('TSA Input'!J4916=\"\",\"\",IF(OR('TSA Input'!J4916=\"Yes\",'TSA Input'!J4916=\"Contingent\"),'TSA Input'!B4916,\"Ineligible\"))","v":""},{"$f":"IF('TSA Input'!J4916=\"\",\"\",IF(OR('TSA Input'!J4916=\"Yes\",'TSA Input'!J4916=\"Contingent\"),'TSA Input'!I4916,\"\"))","v":""},{"$f":"IF('TSA Input'!J4916=\"\",\"\",IF(OR('TSA Input'!J4916=\"Yes\",'TSA Input'!J4916=\"Contingent\"),'TSA Input'!C4916,\"\"))","v":""},{"$f":"IF('TSA Input'!J4916=\"\",\"\",IF(OR('TSA Input'!J4916=\"Yes\",'TSA Input'!J4916=\"Contingent\"),'TSA Input'!D4916,\"\"))","v":""},{"$f":"IF('TSA Input'!J4916=\"\",\"\",IF(OR('TSA Input'!J4916=\"Yes\",'TSA Input'!J4916=\"Contingent\"),'TSA Input'!G4916,\"\"))","v":""},{"$f":"IF('TSA Input'!J4916=\"\",\"\",IF(OR('TSA Input'!J4916=\"Yes\",'TSA Input'!J4916=\"Contingent\"),'TSA Input'!F4916,\"\"))","v":""},"",{"$f":"IF('TSA Input'!J4916=\"\",\"\",IF(OR('TSA Input'!J4916=\"Yes\",'TSA Input'!J4916=\"Contingent\"),'TSA Input'!D4916,\"\"))","v":""},{"$f":"IF('TSA Input'!J4916=\"\",\"\",IF(OR('TSA Input'!J4916=\"Yes\",'TSA Input'!J4916=\"Contingent\"),'TSA Input'!G4916,\"\"))","v":""},{"$f":"IF('TSA Input'!J4916=\"\",\"\",IF(OR('TSA Input'!J4916=\"Yes\",'TSA Input'!J4916=\"Contingent\"),'TSA Input'!F4916,\"\"))","v":""},"","Required","Required"]
["",null,{"$f":"IF('TSA Input'!J4917=\"\",\"\",IF(OR('TSA Input'!J4917=\"Yes\",'TSA Input'!J4917=\"Contingent\"),'TSA Input'!B4917,\"Ineligible\"))","v":""},{"$f":"IF('TSA Input'!J4917=\"\",\"\",IF(OR('TSA Input'!J4917=\"Yes\",'TSA Input'!J4917=\"Contingent\"),'TSA Input'!I4917,\"\"))","v":""},{"$f":"IF('TSA Input'!J4917=\"\",\"\",IF(OR('TSA Input'!J4917=\"Yes\",'TSA Input'!J4917=\"Contingent\"),'TSA Input'!C4917,\"\"))","v":""},{"$f":"IF('TSA Input'!J4917=\"\",\"\",IF(OR('TSA Input'!J4917=\"Yes\",'TSA Input'!J4917=\"Contingent\"),'TSA Input'!D4917,\"\"))","v":""},{"$f":"IF('TSA Input'!J4917=\"\",\"\",IF(OR('TSA Input'!J4917=\"Yes\",'TSA Input'!J4917=\"Contingent\"),'TSA Input'!G4917,\"\"))","v":""},{"$f":"IF('TSA Input'!J4917=\"\",\"\",IF(OR('TSA Input'!J4917=\"Yes\",'TSA Input'!J4917=\"Contingent\"),'TSA Input'!F4917,\"\"))","v":""},"",{"$f":"IF('TSA Input'!J4917=\"\",\"\",IF(OR('TSA Input'!J4917=\"Yes\",'TSA Input'!J4917=\"Contingent\"),'TSA Input'!D4917,\"\"))","v":""},{"$f":"IF('TSA Input'!J4917=\"\",\"\",IF(OR('TSA Input'!J4917=\"Yes\",'TSA Input'!J4917=\"Contingent\"),'TSA Input'!G4917,\"\"))","v":""},{"$f":"IF('TSA Input'!J4917=\"\",\"\",IF(OR('TSA Input'!J4917=\"Yes\",'TSA Input'!J4917=\"Contingent\"),'TSA Input'!F4917,\"\"))","v":""},"","Required","Required"]
["",null,{"$f":"IF('TSA Input'!J4918=\"\",\"\",IF(OR('TSA Input'!J4918=\"Yes\",'TSA Input'!J4918=\"Contingent\"),'TSA Input'!B4918,\"Ineligible\"))","v":""},{"$f":"IF('TSA Input'!J4918=\"\",\"\",IF(OR('TSA Input'!J4918=\"Yes\",'TSA Input'!J4918=\"Contingent\"),'TSA Input'!I4918,\"\"))","v":""},{"$f":"IF('TSA Input'!J4918=\"\",\"\",IF(OR('TSA Input'!J4918=\"Yes\",'TSA Input'!J4918=\"Contingent\"),'TSA Input'!C4918,\"\"))","v":""},{"$f":"IF('TSA Input'!J4918=\"\",\"\",IF(OR('TSA Input'!J4918=\"Yes\",'TSA Input'!J4918=\"Contingent\"),'TSA Input'!D4918,\"\"))","v":""},{"$f":"IF('TSA Input'!J4918=\"\",\"\",IF(OR('TSA Input'!J4918=\"Yes\",'TSA Input'!J4918=\"Contingent\"),'TSA Input'!G4918,\"\"))","v":""},{"$f":"IF('TSA Input'!J4918=\"\",\"\",IF(OR('TSA Input'!J4918=\"Yes\",'TSA Input'!J4918=\"Contingent\"),'TSA Input'!F4918,\"\"))","v":""},"",{"$f":"IF('TSA Input'!J4918=\"\",\"\",IF(OR('TSA Input'!J4918=\"Yes\",'TSA Input'!J4918=\"Contingent\"),'TSA Input'!D4918,\"\"))","v":""},{"$f":"IF('TSA Input'!J4918=\"\",\"\",IF(OR('TSA Input'!J4918=\"Yes\",'TSA Input'!J4918=\"Contingent\"),'TSA Input'!G4918,\"\"))","v":""},{"$f":"IF('TSA Input'!J4918=\"\",\"\",IF(OR('TSA Input'!J4918=\"Yes\",'TSA Input'!J4918=\"Contingent\"),'TSA Input'!F4918,\"\"))","v":""},"","Required","Required"]
["",null,{"$f":"IF('TSA Input'!J4919=\"\",\"\",IF(OR('TSA Input'!J4919=\"Yes\",'TSA Input'!J4919=\"Contingent\"),'TSA Input'!B4919,\"Ineligible\"))","v":""},{"$f":"IF('TSA Input'!J4919=\"\",\"\",IF(OR('TSA Input'!J4919=\"Yes\",'TSA Input'!J4919=\"Contingent\"),'TSA Input'!I4919,\"\"))","v":""},{"$f":"IF('TSA Input'!J4919=\"\",\"\",IF(OR('TSA Input'!J4919=\"Yes\",'TSA Input'!J4919=\"Contingent\"),'TSA Input'!C4919,\"\"))","v":""},{"$f":"IF('TSA Input'!J4919=\"\",\"\",IF(OR('TSA Input'!J4919=\"Yes\",'TSA Input'!J4919=\"Contingent\"),'TSA Input'!D4919,\"\"))","v":""},{"$f":"IF('TSA Input'!J4919=\"\",\"\",IF(OR('TSA Input'!J4919=\"Yes\",'TSA Input'!J4919=\"Contingent\"),'TSA Input'!G4919,\"\"))","v":""},{"$f":"IF('TSA Input'!J4919=\"\",\"\",IF(OR('TSA Input'!J4919=\"Yes\",'TSA Input'!J4919=\"Contingent\"),'TSA Input'!F4919,\"\"))","v":""},"",{"$f":"IF('TSA Input'!J4919=\"\",\"\",IF(OR('TSA Input'!J4919=\"Yes\",'TSA Input'!J4919=\"Contingent\"),'TSA Input'!D4919,\"\"))","v":""},{"$f":"IF('TSA Input'!J4919=\"\",\"\",IF(OR('TSA Input'!J4919=\"Yes\",'TSA Input'!J4919=\"Contingent\"),'TSA Input'!G4919,\"\"))","v":""},{"$f":"IF('TSA Input'!J4919=\"\",\"\",IF(OR('TSA Input'!J4919=\"Yes\",'TSA Input'!J4919=\"Contingent\"),'TSA Input'!F4919,\"\"))","v":""},"","Required","Required"]
["",null,{"$f":"IF('TSA Input'!J4920=\"\",\"\",IF(OR('TSA Input'!J4920=\"Yes\",'TSA Input'!J4920=\"Contingent\"),'TSA Input'!B4920,\"Ineligible\"))","v":""},{"$f":"IF('TSA Input'!J4920=\"\",\"\",IF(OR('TSA Input'!J4920=\"Yes\",'TSA Input'!J4920=\"Contingent\"),'TSA Input'!I4920,\"\"))","v":""},{"$f":"IF('TSA Input'!J4920=\"\",\"\",IF(OR('TSA Input'!J4920=\"Yes\",'TSA Input'!J4920=\"Contingent\"),'TSA Input'!C4920,\"\"))","v":""},{"$f":"IF('TSA Input'!J4920=\"\",\"\",IF(OR('TSA Input'!J4920=\"Yes\",'TSA Input'!J4920=\"Contingent\"),'TSA Input'!D4920,\"\"))","v":""},{"$f":"IF('TSA Input'!J4920=\"\",\"\",IF(OR('TSA Input'!J4920=\"Yes\",'TSA Input'!J4920=\"Contingent\"),'TSA Input'!G4920,\"\"))","v":""},{"$f":"IF('TSA Input'!J4920=\"\",\"\",IF(OR('TSA Input'!J4920=\"Yes\",'TSA Input'!J4920=\"Contingent\"),'TSA Input'!F4920,\"\"))","v":""},"",{"$f":"IF('TSA Input'!J4920=\"\",\"\",IF(OR('TSA Input'!J4920=\"Yes\",'TSA Input'!J4920=\"Contingent\"),'TSA Input'!D4920,\"\"))","v":""},{"$f":"IF('TSA Input'!J4920=\"\",\"\",IF(OR('TSA Input'!J4920=\"Yes\",'TSA Input'!J4920=\"Contingent\"),'TSA Input'!G4920,\"\"))","v":""},{"$f":"IF('TSA Input'!J4920=\"\",\"\",IF(OR('TSA Input'!J4920=\"Yes\",'TSA Input'!J4920=\"Contingent\"),'TSA Input'!F4920,\"\"))","v":""},"","Required","Required"]
["",null,{"$f":"IF('TSA Input'!J4921=\"\",\"\",IF(OR('TSA Input'!J4921=\"Yes\",'TSA Input'!J4921=\"Contingent\"),'TSA Input'!B4921,\"Ineligible\"))","v":""},{"$f":"IF('TSA Input'!J4921=\"\",\"\",IF(OR('TSA Input'!J4921=\"Yes\",'TSA Input'!J4921=\"Contingent\"),'TSA Input'!I4921,\"\"))","v":""},{"$f":"IF('TSA Input'!J4921=\"\",\"\",IF(OR('TSA Input'!J4921=\"Yes\",'TSA Input'!J4921=\"Contingent\"),'TSA Input'!C4921,\"\"))","v":""},{"$f":"IF('TSA Input'!J4921=\"\",\"\",IF(OR('TSA Input'!J4921=\"Yes\",'TSA Input'!J4921=\"Contingent\"),'TSA Input'!D4921,\"\"))","v":""},{"$f":"IF('TSA Input'!J4921=\"\",\"\",IF(OR('TSA Input'!J4921=\"Yes\",'TSA Input'!J4921=\"Contingent\"),'TSA Input'!G4921,\"\"))","v":""},{"$f":"IF('TSA Input'!J4921=\"\",\"\",IF(OR('TSA Input'!J4921=\"Yes\",'TSA Input'!J4921=\"Contingent\"),'TSA Input'!F4921,\"\"))","v":""},"",{"$f":"IF('TSA Input'!J4921=\"\",\"\",IF(OR('TSA Input'!J4921=\"Yes\",'TSA Input'!J4921=\"Contingent\"),'TSA Input'!D4921,\"\"))","v":""},{"$f":"IF('TSA Input'!J4921=\"\",\"\",IF(OR('TSA Input'!J4921=\"Yes\",'TSA Input'!J4921=\"Contingent\"),'TSA Input'!G4921,\"\"))","v":""},{"$f":"IF('TSA Input'!J4921=\"\",\"\",IF(OR('TSA Input'!J4921=\"Yes\",'TSA Input'!J4921=\"Contingent\"),'TSA Input'!F4921,\"\"))","v":""},"","Required","Required"]
["",null,{"$f":"IF('TSA Input'!J4922=\"\",\"\",IF(OR('TSA Input'!J4922=\"Yes\",'TSA Input'!J4922=\"Contingent\"),'TSA Input'!B4922,\"Ineligible\"))","v":""},{"$f":"IF('TSA Input'!J4922=\"\",\"\",IF(OR('TSA Input'!J4922=\"Yes\",'TSA Input'!J4922=\"Contingent\"),'TSA Input'!I4922,\"\"))","v":""},{"$f":"IF('TSA Input'!J4922=\"\",\"\",IF(OR('TSA Input'!J4922=\"Yes\",'TSA Input'!J4922=\"Contingent\"),'TSA Input'!C4922,\"\"))","v":""},{"$f":"IF('TSA Input'!J4922=\"\",\"\",IF(OR('TSA Input'!J4922=\"Yes\",'TSA Input'!J4922=\"Contingent\"),'TSA Input'!D4922,\"\"))","v":""},{"$f":"IF('TSA Input'!J4922=\"\",\"\",IF(OR('TSA Input'!J4922=\"Yes\",'TSA Input'!J4922=\"Contingent\"),'TSA Input'!G4922,\"\"))","v":""},{"$f":"IF('TSA Input'!J4922=\"\",\"\",IF(OR('TSA Input'!J4922=\"Yes\",'TSA Input'!J4922=\"Contingent\"),'TSA Input'!F4922,\"\"))","v":""},"",{"$f":"IF('TSA Input'!J4922=\"\",\"\",IF(OR('TSA Input'!J4922=\"Yes\",'TSA Input'!J4922=\"Contingent\"),'TSA Input'!D4922,\"\"))","v":""},{"$f":"IF('TSA Input'!J4922=\"\",\"\",IF(OR('TSA Input'!J4922=\"Yes\",'TSA Input'!J4922=\"Contingent\"),'TSA Input'!G4922,\"\"))","v":""},{"$f":"IF('TSA Input'!J4922=\"\",\"\",IF(OR('TSA Input'!J4922=\"Yes\",'TSA Input'!J4922=\"Contingent\"),'TSA Input'!F4922,\"\"))","v":""},"","Required","Required"]
["",null,{"$f":"IF('TSA Input'!J4923=\"\",\"\",IF(OR('TSA Input'!J4923=\"Yes\",'TSA Input'!J4923=\"Contingent\"),'TSA Input'!B4923,\"Ineligible\"))","v":""},{"$f":"IF('TSA Input'!J4923=\"\",\"\",IF(OR('TSA Input'!J4923=\"Yes\",'TSA Input'!J4923=\"Contingent\"),'TSA Input'!I4923,\"\"))","v":""},{"$f":"IF('TSA Input'!J4923=\"\",\"\",IF(OR('TSA Input'!J4923=\"Yes\",'TSA Input'!J4923=\"Contingent\"),'TSA Input'!C4923,\"\"))","v":""},{"$f":"IF('TSA Input'!J4923=\"\",\"\",IF(OR('TSA Input'!J4923=\"Yes\",'TSA Input'!J4923=\"Contingent\"),'TSA Input'!D4923,\"\"))","v":""},{"$f":"IF('TSA Input'!J4923=\"\",\"\",IF(OR('TSA Input'!J4923=\"Yes\",'TSA Input'!J4923=\"Contingent\"),'TSA Input'!G4923,\"\"))","v":""},{"$f":"IF('TSA Input'!J4923=\"\",\"\",IF(OR('TSA Input'!J4923=\"Yes\",'TSA Input'!J4923=\"Contingent\"),'TSA Input'!F4923,\"\"))","v":""},"",{"$f":"IF('TSA Input'!J4923=\"\",\"\",IF(OR('TSA Input'!J4923=\"Yes\",'TSA Input'!J4923=\"Contingent\"),'TSA Input'!D4923,\"\"))","v":""},{"$f":"IF('TSA Input'!J4923=\"\",\"\",IF(OR('TSA Input'!J4923=\"Yes\",'TSA Input'!J4923=\"Contingent\"),'TSA Input'!G4923,\"\"))","v":""},{"$f":"IF('TSA Input'!J4923=\"\",\"\",IF(OR('TSA Input'!J4923=\"Yes\",'TSA Input'!J4923=\"Contingent\"),'TSA Input'!F4923,\"\"))","v":""},"","Required","Required"]
["",null,{"$f":"IF('TSA Input'!J4924=\"\",\"\",IF(OR('TSA Input'!J4924=\"Yes\",'TSA Input'!J4924=\"Contingent\"),'TSA Input'!B4924,\"Ineligible\"))","v":""},{"$f":"IF('TSA Input'!J4924=\"\",\"\",IF(OR('TSA Input'!J4924=\"Yes\",'TSA Input'!J4924=\"Contingent\"),'TSA Input'!I4924,\"\"))","v":""},{"$f":"IF('TSA Input'!J4924=\"\",\"\",IF(OR('TSA Input'!J4924=\"Yes\",'TSA Input'!J4924=\"Contingent\"),'TSA Input'!C4924,\"\"))","v":""},{"$f":"IF('TSA Input'!J4924=\"\",\"\",IF(OR('TSA Input'!J4924=\"Yes\",'TSA Input'!J4924=\"Contingent\"),'TSA Input'!D4924,\"\"))","v":""},{"$f":"IF('TSA Input'!J4924=\"\",\"\",IF(OR('TSA Input'!J4924=\"Yes\",'TSA Input'!J4924=\"Contingent\"),'TSA Input'!G4924,\"\"))","v":""},{"$f":"IF('TSA Input'!J4924=\"\",\"\",IF(OR('TSA Input'!J4924=\"Yes\",'TSA Input'!J4924=\"Contingent\"),'TSA Input'!F4924,\"\"))","v":""},"",{"$f":"IF('TSA Input'!J4924=\"\",\"\",IF(OR('TSA Input'!J4924=\"Yes\",'TSA Input'!J4924=\"Contingent\"),'TSA Input'!D4924,\"\"))","v":""},{"$f":"IF('TSA Input'!J4924=\"\",\"\",IF(OR('TSA Input'!J4924=\"Yes\",'TSA Input'!J4924=\"Contingent\"),'TSA Input'!G4924,\"\"))","v":""},{"$f":"IF('TSA Input'!J4924=\"\",\"\",IF(OR('TSA Input'!J4924=\"Yes\",'TSA Input'!J4924=\"Contingent\"),'TSA Input'!F4924,\"\"))","v":""},"","Required","Required"]
["",null,{"$f":"IF('TSA Input'!J4925=\"\",\"\",IF(OR('TSA Input'!J4925=\"Yes\",'TSA Input'!J4925=\"Contingent\"),'TSA Input'!B4925,\"Ineligible\"))","v":""},{"$f":"IF('TSA Input'!J4925=\"\",\"\",IF(OR('TSA Input'!J4925=\"Yes\",'TSA Input'!J4925=\"Contingent\"),'TSA Input'!I4925,\"\"))","v":""},{"$f":"IF('TSA Input'!J4925=\"\",\"\",IF(OR('TSA Input'!J4925=\"Yes\",'TSA Input'!J4925=\"Contingent\"),'TSA Input'!C4925,\"\"))","v":""},{"$f":"IF('TSA Input'!J4925=\"\",\"\",IF(OR('TSA Input'!J4925=\"Yes\",'TSA Input'!J4925=\"Contingent\"),'TSA Input'!D4925,\"\"))","v":""},{"$f":"IF('TSA Input'!J4925=\"\",\"\",IF(OR('TSA Input'!J4925=\"Yes\",'TSA Input'!J4925=\"Contingent\"),'TSA Input'!G4925,\"\"))","v":""},{"$f":"IF('TSA Input'!J4925=\"\",\"\",IF(OR('TSA Input'!J4925=\"Yes\",'TSA Input'!J4925=\"Contingent\"),'TSA Input'!F4925,\"\"))","v":""},"",{"$f":"IF('TSA Input'!J4925=\"\",\"\",IF(OR('TSA Input'!J4925=\"Yes\",'TSA Input'!J4925=\"Contingent\"),'TSA Input'!D4925,\"\"))","v":""},{"$f":"IF('TSA Input'!J4925=\"\",\"\",IF(OR('TSA Input'!J4925=\"Yes\",'TSA Input'!J4925=\"Contingent\"),'TSA Input'!G4925,\"\"))","v":""},{"$f":"IF('TSA Input'!J4925=\"\",\"\",IF(OR('TSA Input'!J4925=\"Yes\",'TSA Input'!J4925=\"Contingent\"),'TSA Input'!F4925,\"\"))","v":""},"","Required","Required"]
["",null,{"$f":"IF('TSA Input'!J4926=\"\",\"\",IF(OR('TSA Input'!J4926=\"Yes\",'TSA Input'!J4926=\"Contingent\"),'TSA Input'!B4926,\"Ineligible\"))","v":""},{"$f":"IF('TSA Input'!J4926=\"\",\"\",IF(OR('TSA Input'!J4926=\"Yes\",'TSA Input'!J4926=\"Contingent\"),'TSA Input'!I4926,\"\"))","v":""},{"$f":"IF('TSA Input'!J4926=\"\",\"\",IF(OR('TSA Input'!J4926=\"Yes\",'TSA Input'!J4926=\"Contingent\"),'TSA Input'!C4926,\"\"))","v":""},{"$f":"IF('TSA Input'!J4926=\"\",\"\",IF(OR('TSA Input'!J4926=\"Yes\",'TSA Input'!J4926=\"Contingent\"),'TSA Input'!D4926,\"\"))","v":""},{"$f":"IF('TSA Input'!J4926=\"\",\"\",IF(OR('TSA Input'!J4926=\"Yes\",'TSA Input'!J4926=\"Contingent\"),'TSA Input'!G4926,\"\"))","v":""},{"$f":"IF('TSA Input'!J4926=\"\",\"\",IF(OR('TSA Input'!J4926=\"Yes\",'TSA Input'!J4926=\"Contingent\"),'TSA Input'!F4926,\"\"))","v":""},"",{"$f":"IF('TSA Input'!J4926=\"\",\"\",IF(OR('TSA Input'!J4926=\"Yes\",'TSA Input'!J4926=\"Contingent\"),'TSA Input'!D4926,\"\"))","v":""},{"$f":"IF('TSA Input'!J4926=\"\",\"\",IF(OR('TSA Input'!J4926=\"Yes\",'TSA Input'!J4926=\"Contingent\"),'TSA Input'!G4926,\"\"))","v":""},{"$f":"IF('TSA Input'!J4926=\"\",\"\",IF(OR('TSA Input'!J4926=\"Yes\",'TSA Input'!J4926=\"Contingent\"),'TSA Input'!F4926,\"\"))","v":""},"","Required","Required"]
["",null,{"$f":"IF('TSA Input'!J4927=\"\",\"\",IF(OR('TSA Input'!J4927=\"Yes\",'TSA Input'!J4927=\"Contingent\"),'TSA Input'!B4927,\"Ineligible\"))","v":""},{"$f":"IF('TSA Input'!J4927=\"\",\"\",IF(OR('TSA Input'!J4927=\"Yes\",'TSA Input'!J4927=\"Contingent\"),'TSA Input'!I4927,\"\"))","v":""},{"$f":"IF('TSA Input'!J4927=\"\",\"\",IF(OR('TSA Input'!J4927=\"Yes\",'TSA Input'!J4927=\"Contingent\"),'TSA Input'!C4927,\"\"))","v":""},{"$f":"IF('TSA Input'!J4927=\"\",\"\",IF(OR('TSA Input'!J4927=\"Yes\",'TSA Input'!J4927=\"Contingent\"),'TSA Input'!D4927,\"\"))","v":""},{"$f":"IF('TSA Input'!J4927=\"\",\"\",IF(OR('TSA Input'!J4927=\"Yes\",'TSA Input'!J4927=\"Contingent\"),'TSA Input'!G4927,\"\"))","v":""},{"$f":"IF('TSA Input'!J4927=\"\",\"\",IF(OR('TSA Input'!J4927=\"Yes\",'TSA Input'!J4927=\"Contingent\"),'TSA Input'!F4927,\"\"))","v":""},"",{"$f":"IF('TSA Input'!J4927=\"\",\"\",IF(OR('TSA Input'!J4927=\"Yes\",'TSA Input'!J4927=\"Contingent\"),'TSA Input'!D4927,\"\"))","v":""},{"$f":"IF('TSA Input'!J4927=\"\",\"\",IF(OR('TSA Input'!J4927=\"Yes\",'TSA Input'!J4927=\"Contingent\"),'TSA Input'!G4927,\"\"))","v":""},{"$f":"IF('TSA Input'!J4927=\"\",\"\",IF(OR('TSA Input'!J4927=\"Yes\",'TSA Input'!J4927=\"Contingent\"),'TSA Input'!F4927,\"\"))","v":""},"","Required","Required"]
["",null,{"$f":"IF('TSA Input'!J4928=\"\",\"\",IF(OR('TSA Input'!J4928=\"Yes\",'TSA Input'!J4928=\"Contingent\"),'TSA Input'!B4928,\"Ineligible\"))","v":""},{"$f":"IF('TSA Input'!J4928=\"\",\"\",IF(OR('TSA Input'!J4928=\"Yes\",'TSA Input'!J4928=\"Contingent\"),'TSA Input'!I4928,\"\"))","v":""},{"$f":"IF('TSA Input'!J4928=\"\",\"\",IF(OR('TSA Input'!J4928=\"Yes\",'TSA Input'!J4928=\"Contingent\"),'TSA Input'!C4928,\"\"))","v":""},{"$f":"IF('TSA Input'!J4928=\"\",\"\",IF(OR('TSA Input'!J4928=\"Yes\",'TSA Input'!J4928=\"Contingent\"),'TSA Input'!D4928,\"\"))","v":""},{"$f":"IF('TSA Input'!J4928=\"\",\"\",IF(OR('TSA Input'!J4928=\"Yes\",'TSA Input'!J4928=\"Contingent\"),'TSA Input'!G4928,\"\"))","v":""},{"$f":"IF('TSA Input'!J4928=\"\",\"\",IF(OR('TSA Input'!J4928=\"Yes\",'TSA Input'!J4928=\"Contingent\"),'TSA Input'!F4928,\"\"))","v":""},"",{"$f":"IF('TSA Input'!J4928=\"\",\"\",IF(OR('TSA Input'!J4928=\"Yes\",'TSA Input'!J4928=\"Contingent\"),'TSA Input'!D4928,\"\"))","v":""},{"$f":"IF('TSA Input'!J4928=\"\",\"\",IF(OR('TSA Input'!J4928=\"Yes\",'TSA Input'!J4928=\"Contingent\"),'TSA Input'!G4928,\"\"))","v":""},{"$f":"IF('TSA Input'!J4928=\"\",\"\",IF(OR('TSA Input'!J4928=\"Yes\",'TSA Input'!J4928=\"Contingent\"),'TSA Input'!F4928,\"\"))","v":""},"","Required","Required"]
["",null,{"$f":"IF('TSA Input'!J4929=\"\",\"\",IF(OR('TSA Input'!J4929=\"Yes\",'TSA Input'!J4929=\"Contingent\"),'TSA Input'!B4929,\"Ineligible\"))","v":""},{"$f":"IF('TSA Input'!J4929=\"\",\"\",IF(OR('TSA Input'!J4929=\"Yes\",'TSA Input'!J4929=\"Contingent\"),'TSA Input'!I4929,\"\"))","v":""},{"$f":"IF('TSA Input'!J4929=\"\",\"\",IF(OR('TSA Input'!J4929=\"Yes\",'TSA Input'!J4929=\"Contingent\"),'TSA Input'!C4929,\"\"))","v":""},{"$f":"IF('TSA Input'!J4929=\"\",\"\",IF(OR('TSA Input'!J4929=\"Yes\",'TSA Input'!J4929=\"Contingent\"),'TSA Input'!D4929,\"\"))","v":""},{"$f":"IF('TSA Input'!J4929=\"\",\"\",IF(OR('TSA Input'!J4929=\"Yes\",'TSA Input'!J4929=\"Contingent\"),'TSA Input'!G4929,\"\"))","v":""},{"$f":"IF('TSA Input'!J4929=\"\",\"\",IF(OR('TSA Input'!J4929=\"Yes\",'TSA Input'!J4929=\"Contingent\"),'TSA Input'!F4929,\"\"))","v":""},"",{"$f":"IF('TSA Input'!J4929=\"\",\"\",IF(OR('TSA Input'!J4929=\"Yes\",'TSA Input'!J4929=\"Contingent\"),'TSA Input'!D4929,\"\"))","v":""},{"$f":"IF('TSA Input'!J4929=\"\",\"\",IF(OR('TSA Input'!J4929=\"Yes\",'TSA Input'!J4929=\"Contingent\"),'TSA Input'!G4929,\"\"))","v":""},{"$f":"IF('TSA Input'!J4929=\"\",\"\",IF(OR('TSA Input'!J4929=\"Yes\",'TSA Input'!J4929=\"Contingent\"),'TSA Input'!F4929,\"\"))","v":""},"","Required","Required"]
["",null,{"$f":"IF('TSA Input'!J4930=\"\",\"\",IF(OR('TSA Input'!J4930=\"Yes\",'TSA Input'!J4930=\"Contingent\"),'TSA Input'!B4930,\"Ineligible\"))","v":""},{"$f":"IF('TSA Input'!J4930=\"\",\"\",IF(OR('TSA Input'!J4930=\"Yes\",'TSA Input'!J4930=\"Contingent\"),'TSA Input'!I4930,\"\"))","v":""},{"$f":"IF('TSA Input'!J4930=\"\",\"\",IF(OR('TSA Input'!J4930=\"Yes\",'TSA Input'!J4930=\"Contingent\"),'TSA Input'!C4930,\"\"))","v":""},{"$f":"IF('TSA Input'!J4930=\"\",\"\",IF(OR('TSA Input'!J4930=\"Yes\",'TSA Input'!J4930=\"Contingent\"),'TSA Input'!D4930,\"\"))","v":""},{"$f":"IF('TSA Input'!J4930=\"\",\"\",IF(OR('TSA Input'!J4930=\"Yes\",'TSA Input'!J4930=\"Contingent\"),'TSA Input'!G4930,\"\"))","v":""},{"$f":"IF('TSA Input'!J4930=\"\",\"\",IF(OR('TSA Input'!J4930=\"Yes\",'TSA Input'!J4930=\"Contingent\"),'TSA Input'!F4930,\"\"))","v":""},"",{"$f":"IF('TSA Input'!J4930=\"\",\"\",IF(OR('TSA Input'!J4930=\"Yes\",'TSA Input'!J4930=\"Contingent\"),'TSA Input'!D4930,\"\"))","v":""},{"$f":"IF('TSA Input'!J4930=\"\",\"\",IF(OR('TSA Input'!J4930=\"Yes\",'TSA Input'!J4930=\"Contingent\"),'TSA Input'!G4930,\"\"))","v":""},{"$f":"IF('TSA Input'!J4930=\"\",\"\",IF(OR('TSA Input'!J4930=\"Yes\",'TSA Input'!J4930=\"Contingent\"),'TSA Input'!F4930,\"\"))","v":""},"","Required","Required"]
["",null,{"$f":"IF('TSA Input'!J4931=\"\",\"\",IF(OR('TSA Input'!J4931=\"Yes\",'TSA Input'!J4931=\"Contingent\"),'TSA Input'!B4931,\"Ineligible\"))","v":""},{"$f":"IF('TSA Input'!J4931=\"\",\"\",IF(OR('TSA Input'!J4931=\"Yes\",'TSA Input'!J4931=\"Contingent\"),'TSA Input'!I4931,\"\"))","v":""},{"$f":"IF('TSA Input'!J4931=\"\",\"\",IF(OR('TSA Input'!J4931=\"Yes\",'TSA Input'!J4931=\"Contingent\"),'TSA Input'!C4931,\"\"))","v":""},{"$f":"IF('TSA Input'!J4931=\"\",\"\",IF(OR('TSA Input'!J4931=\"Yes\",'TSA Input'!J4931=\"Contingent\"),'TSA Input'!D4931,\"\"))","v":""},{"$f":"IF('TSA Input'!J4931=\"\",\"\",IF(OR('TSA Input'!J4931=\"Yes\",'TSA Input'!J4931=\"Contingent\"),'TSA Input'!G4931,\"\"))","v":""},{"$f":"IF('TSA Input'!J4931=\"\",\"\",IF(OR('TSA Input'!J4931=\"Yes\",'TSA Input'!J4931=\"Contingent\"),'TSA Input'!F4931,\"\"))","v":""},"",{"$f":"IF('TSA Input'!J4931=\"\",\"\",IF(OR('TSA Input'!J4931=\"Yes\",'TSA Input'!J4931=\"Contingent\"),'TSA Input'!D4931,\"\"))","v":""},{"$f":"IF('TSA Input'!J4931=\"\",\"\",IF(OR('TSA Input'!J4931=\"Yes\",'TSA Input'!J4931=\"Contingent\"),'TSA Input'!G4931,\"\"))","v":""},{"$f":"IF('TSA Input'!J4931=\"\",\"\",IF(OR('TSA Input'!J4931=\"Yes\",'TSA Input'!J4931=\"Contingent\"),'TSA Input'!F4931,\"\"))","v":""},"","Required","Required"]
["",null,{"$f":"IF('TSA Input'!J4932=\"\",\"\",IF(OR('TSA Input'!J4932=\"Yes\",'TSA Input'!J4932=\"Contingent\"),'TSA Input'!B4932,\"Ineligible\"))","v":""},{"$f":"IF('TSA Input'!J4932=\"\",\"\",IF(OR('TSA Input'!J4932=\"Yes\",'TSA Input'!J4932=\"Contingent\"),'TSA Input'!I4932,\"\"))","v":""},{"$f":"IF('TSA Input'!J4932=\"\",\"\",IF(OR('TSA Input'!J4932=\"Yes\",'TSA Input'!J4932=\"Contingent\"),'TSA Input'!C4932,\"\"))","v":""},{"$f":"IF('TSA Input'!J4932=\"\",\"\",IF(OR('TSA Input'!J4932=\"Yes\",'TSA Input'!J4932=\"Contingent\"),'TSA Input'!D4932,\"\"))","v":""},{"$f":"IF('TSA Input'!J4932=\"\",\"\",IF(OR('TSA Input'!J4932=\"Yes\",'TSA Input'!J4932=\"Contingent\"),'TSA Input'!G4932,\"\"))","v":""},{"$f":"IF('TSA Input'!J4932=\"\",\"\",IF(OR('TSA Input'!J4932=\"Yes\",'TSA Input'!J4932=\"Contingent\"),'TSA Input'!F4932,\"\"))","v":""},{"$f":"IF($C4970=\"\",\"\",SUM(F4970:H4970))","v":""},{"$f":"IF('TSA Input'!J4932=\"\",\"\",IF(OR('TSA Input'!J4932=\"Yes\",'TSA Input'!J4932=\"Contingent\"),'TSA Input'!D4932,\"\"))","v":""},{"$f":"IF('TSA Input'!J4932=\"\",\"\",IF(OR('TSA Input'!J4932=\"Yes\",'TSA Input'!J4932=\"Contingent\"),'TSA Input'!G4932,\"\"))","v":""},{"$f":"IF('TSA Input'!J4932=\"\",\"\",IF(OR('TSA Input'!J4932=\"Yes\",'TSA Input'!J4932=\"Contingent\"),'TSA Input'!F4932,\"\"))","v":""},{"$f":"IF($C4970=\"\",\"\",SUM(J4970:L4970))","v":""},"Required","Required"]
["",null,{"$f":"IF('TSA Input'!J4933=\"\",\"\",IF(OR('TSA Input'!J4933=\"Yes\",'TSA Input'!J4933=\"Contingent\"),'TSA Input'!B4933,\"Ineligible\"))","v":""},{"$f":"IF('TSA Input'!J4933=\"\",\"\",IF(OR('TSA Input'!J4933=\"Yes\",'TSA Input'!J4933=\"Contingent\"),'TSA Input'!I4933,\"\"))","v":""},{"$f":"IF('TSA Input'!J4933=\"\",\"\",IF(OR('TSA Input'!J4933=\"Yes\",'TSA Input'!J4933=\"Contingent\"),'TSA Input'!C4933,\"\"))","v":""},{"$f":"IF('TSA Input'!J4933=\"\",\"\",IF(OR('TSA Input'!J4933=\"Yes\",'TSA Input'!J4933=\"Contingent\"),'TSA Input'!D4933,\"\"))","v":""},{"$f":"IF('TSA Input'!J4933=\"\",\"\",IF(OR('TSA Input'!J4933=\"Yes\",'TSA Input'!J4933=\"Contingent\"),'TSA Input'!G4933,\"\"))","v":""},{"$f":"IF('TSA Input'!J4933=\"\",\"\",IF(OR('TSA Input'!J4933=\"Yes\",'TSA Input'!J4933=\"Contingent\"),'TSA Input'!F4933,\"\"))","v":""},"",{"$f":"IF('TSA Input'!J4933=\"\",\"\",IF(OR('TSA Input'!J4933=\"Yes\",'TSA Input'!J4933=\"Contingent\"),'TSA Input'!D4933,\"\"))","v":""},{"$f":"IF('TSA Input'!J4933=\"\",\"\",IF(OR('TSA Input'!J4933=\"Yes\",'TSA Input'!J4933=\"Contingent\"),'TSA Input'!G4933,\"\"))","v":""},{"$f":"IF('TSA Input'!J4933=\"\",\"\",IF(OR('TSA Input'!J4933=\"Yes\",'TSA Input'!J4933=\"Contingent\"),'TSA Input'!F4933,\"\"))","v":""},"","Required","Required"]
["",null,{"$f":"IF('TSA Input'!J4934=\"\",\"\",IF(OR('TSA Input'!J4934=\"Yes\",'TSA Input'!J4934=\"Contingent\"),'TSA Input'!B4934,\"Ineligible\"))","v":""},{"$f":"IF('TSA Input'!J4934=\"\",\"\",IF(OR('TSA Input'!J4934=\"Yes\",'TSA Input'!J4934=\"Contingent\"),'TSA Input'!I4934,\"\"))","v":""},{"$f":"IF('TSA Input'!J4934=\"\",\"\",IF(OR('TSA Input'!J4934=\"Yes\",'TSA Input'!J4934=\"Contingent\"),'TSA Input'!C4934,\"\"))","v":""},{"$f":"IF('TSA Input'!J4934=\"\",\"\",IF(OR('TSA Input'!J4934=\"Yes\",'TSA Input'!J4934=\"Contingent\"),'TSA Input'!D4934,\"\"))","v":""},{"$f":"IF('TSA Input'!J4934=\"\",\"\",IF(OR('TSA Input'!J4934=\"Yes\",'TSA Input'!J4934=\"Contingent\"),'TSA Input'!G4934,\"\"))","v":""},{"$f":"IF('TSA Input'!J4934=\"\",\"\",IF(OR('TSA Input'!J4934=\"Yes\",'TSA Input'!J4934=\"Contingent\"),'TSA Input'!F4934,\"\"))","v":""},"",{"$f":"IF('TSA Input'!J4934=\"\",\"\",IF(OR('TSA Input'!J4934=\"Yes\",'TSA Input'!J4934=\"Contingent\"),'TSA Input'!D4934,\"\"))","v":""},{"$f":"IF('TSA Input'!J4934=\"\",\"\",IF(OR('TSA Input'!J4934=\"Yes\",'TSA Input'!J4934=\"Contingent\"),'TSA Input'!G4934,\"\"))","v":""},{"$f":"IF('TSA Input'!J4934=\"\",\"\",IF(OR('TSA Input'!J4934=\"Yes\",'TSA Input'!J4934=\"Contingent\"),'TSA Input'!F4934,\"\"))","v":""},"","Required","Required"]
["",null,{"$f":"IF('TSA Input'!J4935=\"\",\"\",IF(OR('TSA Input'!J4935=\"Yes\",'TSA Input'!J4935=\"Contingent\"),'TSA Input'!B4935,\"Ineligible\"))","v":""},{"$f":"IF('TSA Input'!J4935=\"\",\"\",IF(OR('TSA Input'!J4935=\"Yes\",'TSA Input'!J4935=\"Contingent\"),'TSA Input'!I4935,\"\"))","v":""},{"$f":"IF('TSA Input'!J4935=\"\",\"\",IF(OR('TSA Input'!J4935=\"Yes\",'TSA Input'!J4935=\"Contingent\"),'TSA Input'!C4935,\"\"))","v":""},{"$f":"IF('TSA Input'!J4935=\"\",\"\",IF(OR('TSA Input'!J4935=\"Yes\",'TSA Input'!J4935=\"Contingent\"),'TSA Input'!D4935,\"\"))","v":""},{"$f":"IF('TSA Input'!J4935=\"\",\"\",IF(OR('TSA Input'!J4935=\"Yes\",'TSA Input'!J4935=\"Contingent\"),'TSA Input'!G4935,\"\"))","v":""},{"$f":"IF('TSA Input'!J4935=\"\",\"\",IF(OR('TSA Input'!J4935=\"Yes\",'TSA Input'!J4935=\"Contingent\"),'TSA Input'!F4935,\"\"))","v":""},"",{"$f":"IF('TSA Input'!J4935=\"\",\"\",IF(OR('TSA Input'!J4935=\"Yes\",'TSA Input'!J4935=\"Contingent\"),'TSA Input'!D4935,\"\"))","v":""},{"$f":"IF('TSA Input'!J4935=\"\",\"\",IF(OR('TSA Input'!J4935=\"Yes\",'TSA Input'!J4935=\"Contingent\"),'TSA Input'!G4935,\"\"))","v":""},{"$f":"IF('TSA Input'!J4935=\"\",\"\",IF(OR('TSA Input'!J4935=\"Yes\",'TSA Input'!J4935=\"Contingent\"),'TSA Input'!F4935,\"\"))","v":""},"","Required","Required"]
["",null,{"$f":"IF('TSA Input'!J4936=\"\",\"\",IF(OR('TSA Input'!J4936=\"Yes\",'TSA Input'!J4936=\"Contingent\"),'TSA Input'!B4936,\"Ineligible\"))","v":""},{"$f":"IF('TSA Input'!J4936=\"\",\"\",IF(OR('TSA Input'!J4936=\"Yes\",'TSA Input'!J4936=\"Contingent\"),'TSA Input'!I4936,\"\"))","v":""},{"$f":"IF('TSA Input'!J4936=\"\",\"\",IF(OR('TSA Input'!J4936=\"Yes\",'TSA Input'!J4936=\"Contingent\"),'TSA Input'!C4936,\"\"))","v":""},{"$f":"IF('TSA Input'!J4936=\"\",\"\",IF(OR('TSA Input'!J4936=\"Yes\",'TSA Input'!J4936=\"Contingent\"),'TSA Input'!D4936,\"\"))","v":""},{"$f":"IF('TSA Input'!J4936=\"\",\"\",IF(OR('TSA Input'!J4936=\"Yes\",'TSA Input'!J4936=\"Contingent\"),'TSA Input'!G4936,\"\"))","v":""},{"$f":"IF('TSA Input'!J4936=\"\",\"\",IF(OR('TSA Input'!J4936=\"Yes\",'TSA Input'!J4936=\"Contingent\"),'TSA Input'!F4936,\"\"))","v":""},"",{"$f":"IF('TSA Input'!J4936=\"\",\"\",IF(OR('TSA Input'!J4936=\"Yes\",'TSA Input'!J4936=\"Contingent\"),'TSA Input'!D4936,\"\"))","v":""},{"$f":"IF('TSA Input'!J4936=\"\",\"\",IF(OR('TSA Input'!J4936=\"Yes\",'TSA Input'!J4936=\"Contingent\"),'TSA Input'!G4936,\"\"))","v":""},{"$f":"IF('TSA Input'!J4936=\"\",\"\",IF(OR('TSA Input'!J4936=\"Yes\",'TSA Input'!J4936=\"Contingent\"),'TSA Input'!F4936,\"\"))","v":""},"","Required","Required"]
["",null,{"$f":"IF('TSA Input'!J4937=\"\",\"\",IF(OR('TSA Input'!J4937=\"Yes\",'TSA Input'!J4937=\"Contingent\"),'TSA Input'!B4937,\"Ineligible\"))","v":""},{"$f":"IF('TSA Input'!J4937=\"\",\"\",IF(OR('TSA Input'!J4937=\"Yes\",'TSA Input'!J4937=\"Contingent\"),'TSA Input'!I4937,\"\"))","v":""},{"$f":"IF('TSA Input'!J4937=\"\",\"\",IF(OR('TSA Input'!J4937=\"Yes\",'TSA Input'!J4937=\"Contingent\"),'TSA Input'!C4937,\"\"))","v":""},{"$f":"IF('TSA Input'!J4937=\"\",\"\",IF(OR('TSA Input'!J4937=\"Yes\",'TSA Input'!J4937=\"Contingent\"),'TSA Input'!D4937,\"\"))","v":""},{"$f":"IF('TSA Input'!J4937=\"\",\"\",IF(OR('TSA Input'!J4937=\"Yes\",'TSA Input'!J4937=\"Contingent\"),'TSA Input'!G4937,\"\"))","v":""},{"$f":"IF('TSA Input'!J4937=\"\",\"\",IF(OR('TSA Input'!J4937=\"Yes\",'TSA Input'!J4937=\"Contingent\"),'TSA Input'!F4937,\"\"))","v":""},"",{"$f":"IF('TSA Input'!J4937=\"\",\"\",IF(OR('TSA Input'!J4937=\"Yes\",'TSA Input'!J4937=\"Contingent\"),'TSA Input'!D4937,\"\"))","v":""},{"$f":"IF('TSA Input'!J4937=\"\",\"\",IF(OR('TSA Input'!J4937=\"Yes\",'TSA Input'!J4937=\"Contingent\"),'TSA Input'!G4937,\"\"))","v":""},{"$f":"IF('TSA Input'!J4937=\"\",\"\",IF(OR('TSA Input'!J4937=\"Yes\",'TSA Input'!J4937=\"Contingent\"),'TSA Input'!F4937,\"\"))","v":""},"","Required","Required"]
["",null,{"$f":"IF('TSA Input'!J4938=\"\",\"\",IF(OR('TSA Input'!J4938=\"Yes\",'TSA Input'!J4938=\"Contingent\"),'TSA Input'!B4938,\"Ineligible\"))","v":""},{"$f":"IF('TSA Input'!J4938=\"\",\"\",IF(OR('TSA Input'!J4938=\"Yes\",'TSA Input'!J4938=\"Contingent\"),'TSA Input'!I4938,\"\"))","v":""},{"$f":"IF('TSA Input'!J4938=\"\",\"\",IF(OR('TSA Input'!J4938=\"Yes\",'TSA Input'!J4938=\"Contingent\"),'TSA Input'!C4938,\"\"))","v":""},{"$f":"IF('TSA Input'!J4938=\"\",\"\",IF(OR('TSA Input'!J4938=\"Yes\",'TSA Input'!J4938=\"Contingent\"),'TSA Input'!D4938,\"\"))","v":""},{"$f":"IF('TSA Input'!J4938=\"\",\"\",IF(OR('TSA Input'!J4938=\"Yes\",'TSA Input'!J4938=\"Contingent\"),'TSA Input'!G4938,\"\"))","v":""},{"$f":"IF('TSA Input'!J4938=\"\",\"\",IF(OR('TSA Input'!J4938=\"Yes\",'TSA Input'!J4938=\"Contingent\"),'TSA Input'!F4938,\"\"))","v":""},"",{"$f":"IF('TSA Input'!J4938=\"\",\"\",IF(OR('TSA Input'!J4938=\"Yes\",'TSA Input'!J4938=\"Contingent\"),'TSA Input'!D4938,\"\"))","v":""},{"$f":"IF('TSA Input'!J4938=\"\",\"\",IF(OR('TSA Input'!J4938=\"Yes\",'TSA Input'!J4938=\"Contingent\"),'TSA Input'!G4938,\"\"))","v":""},{"$f":"IF('TSA Input'!J4938=\"\",\"\",IF(OR('TSA Input'!J4938=\"Yes\",'TSA Input'!J4938=\"Contingent\"),'TSA Input'!F4938,\"\"))","v":""},"","Required","Required"]
["",null,{"$f":"IF('TSA Input'!J4939=\"\",\"\",IF(OR('TSA Input'!J4939=\"Yes\",'TSA Input'!J4939=\"Contingent\"),'TSA Input'!B4939,\"Ineligible\"))","v":""},{"$f":"IF('TSA Input'!J4939=\"\",\"\",IF(OR('TSA Input'!J4939=\"Yes\",'TSA Input'!J4939=\"Contingent\"),'TSA Input'!I4939,\"\"))","v":""},{"$f":"IF('TSA Input'!J4939=\"\",\"\",IF(OR('TSA Input'!J4939=\"Yes\",'TSA Input'!J4939=\"Contingent\"),'TSA Input'!C4939,\"\"))","v":""},{"$f":"IF('TSA Input'!J4939=\"\",\"\",IF(OR('TSA Input'!J4939=\"Yes\",'TSA Input'!J4939=\"Contingent\"),'TSA Input'!D4939,\"\"))","v":""},{"$f":"IF('TSA Input'!J4939=\"\",\"\",IF(OR('TSA Input'!J4939=\"Yes\",'TSA Input'!J4939=\"Contingent\"),'TSA Input'!G4939,\"\"))","v":""},{"$f":"IF('TSA Input'!J4939=\"\",\"\",IF(OR('TSA Input'!J4939=\"Yes\",'TSA Input'!J4939=\"Contingent\"),'TSA Input'!F4939,\"\"))","v":""},"",{"$f":"IF('TSA Input'!J4939=\"\",\"\",IF(OR('TSA Input'!J4939=\"Yes\",'TSA Input'!J4939=\"Contingent\"),'TSA Input'!D4939,\"\"))","v":""},{"$f":"IF('TSA Input'!J4939=\"\",\"\",IF(OR('TSA Input'!J4939=\"Yes\",'TSA Input'!J4939=\"Contingent\"),'TSA Input'!G4939,\"\"))","v":""},{"$f":"IF('TSA Input'!J4939=\"\",\"\",IF(OR('TSA Input'!J4939=\"Yes\",'TSA Input'!J4939=\"Contingent\"),'TSA Input'!F4939,\"\"))","v":""},"","Required","Required"]
["",null,{"$f":"IF('TSA Input'!J4940=\"\",\"\",IF(OR('TSA Input'!J4940=\"Yes\",'TSA Input'!J4940=\"Contingent\"),'TSA Input'!B4940,\"Ineligible\"))","v":""},{"$f":"IF('TSA Input'!J4940=\"\",\"\",IF(OR('TSA Input'!J4940=\"Yes\",'TSA Input'!J4940=\"Contingent\"),'TSA Input'!I4940,\"\"))","v":""},{"$f":"IF('TSA Input'!J4940=\"\",\"\",IF(OR('TSA Input'!J4940=\"Yes\",'TSA Input'!J4940=\"Contingent\"),'TSA Input'!C4940,\"\"))","v":""},{"$f":"IF('TSA Input'!J4940=\"\",\"\",IF(OR('TSA Input'!J4940=\"Yes\",'TSA Input'!J4940=\"Contingent\"),'TSA Input'!D4940,\"\"))","v":""},{"$f":"IF('TSA Input'!J4940=\"\",\"\",IF(OR('TSA Input'!J4940=\"Yes\",'TSA Input'!J4940=\"Contingent\"),'TSA Input'!G4940,\"\"))","v":""},{"$f":"IF('TSA Input'!J4940=\"\",\"\",IF(OR('TSA Input'!J4940=\"Yes\",'TSA Input'!J4940=\"Contingent\"),'TSA Input'!F4940,\"\"))","v":""},"",{"$f":"IF('TSA Input'!J4940=\"\",\"\",IF(OR('TSA Input'!J4940=\"Yes\",'TSA Input'!J4940=\"Contingent\"),'TSA Input'!D4940,\"\"))","v":""},{"$f":"IF('TSA Input'!J4940=\"\",\"\",IF(OR('TSA Input'!J4940=\"Yes\",'TSA Input'!J4940=\"Contingent\"),'TSA Input'!G4940,\"\"))","v":""},{"$f":"IF('TSA Input'!J4940=\"\",\"\",IF(OR('TSA Input'!J4940=\"Yes\",'TSA Input'!J4940=\"Contingent\"),'TSA Input'!F4940,\"\"))","v":""},"","Required","Required"]
["",null,{"$f":"IF('TSA Input'!J4941=\"\",\"\",IF(OR('TSA Input'!J4941=\"Yes\",'TSA Input'!J4941=\"Contingent\"),'TSA Input'!B4941,\"Ineligible\"))","v":""},{"$f":"IF('TSA Input'!J4941=\"\",\"\",IF(OR('TSA Input'!J4941=\"Yes\",'TSA Input'!J4941=\"Contingent\"),'TSA Input'!I4941,\"\"))","v":""},{"$f":"IF('TSA Input'!J4941=\"\",\"\",IF(OR('TSA Input'!J4941=\"Yes\",'TSA Input'!J4941=\"Contingent\"),'TSA Input'!C4941,\"\"))","v":""},{"$f":"IF('TSA Input'!J4941=\"\",\"\",IF(OR('TSA Input'!J4941=\"Yes\",'TSA Input'!J4941=\"Contingent\"),'TSA Input'!D4941,\"\"))","v":""},{"$f":"IF('TSA Input'!J4941=\"\",\"\",IF(OR('TSA Input'!J4941=\"Yes\",'TSA Input'!J4941=\"Contingent\"),'TSA Input'!G4941,\"\"))","v":""},{"$f":"IF('TSA Input'!J4941=\"\",\"\",IF(OR('TSA Input'!J4941=\"Yes\",'TSA Input'!J4941=\"Contingent\"),'TSA Input'!F4941,\"\"))","v":""},"",{"$f":"IF('TSA Input'!J4941=\"\",\"\",IF(OR('TSA Input'!J4941=\"Yes\",'TSA Input'!J4941=\"Contingent\"),'TSA Input'!D4941,\"\"))","v":""},{"$f":"IF('TSA Input'!J4941=\"\",\"\",IF(OR('TSA Input'!J4941=\"Yes\",'TSA Input'!J4941=\"Contingent\"),'TSA Input'!G4941,\"\"))","v":""},{"$f":"IF('TSA Input'!J4941=\"\",\"\",IF(OR('TSA Input'!J4941=\"Yes\",'TSA Input'!J4941=\"Contingent\"),'TSA Input'!F4941,\"\"))","v":""},"","Required","Required"]
["",null,{"$f":"IF('TSA Input'!J4942=\"\",\"\",IF(OR('TSA Input'!J4942=\"Yes\",'TSA Input'!J4942=\"Contingent\"),'TSA Input'!B4942,\"Ineligible\"))","v":""},{"$f":"IF('TSA Input'!J4942=\"\",\"\",IF(OR('TSA Input'!J4942=\"Yes\",'TSA Input'!J4942=\"Contingent\"),'TSA Input'!I4942,\"\"))","v":""},{"$f":"IF('TSA Input'!J4942=\"\",\"\",IF(OR('TSA Input'!J4942=\"Yes\",'TSA Input'!J4942=\"Contingent\"),'TSA Input'!C4942,\"\"))","v":""},{"$f":"IF('TSA Input'!J4942=\"\",\"\",IF(OR('TSA Input'!J4942=\"Yes\",'TSA Input'!J4942=\"Contingent\"),'TSA Input'!D4942,\"\"))","v":""},{"$f":"IF('TSA Input'!J4942=\"\",\"\",IF(OR('TSA Input'!J4942=\"Yes\",'TSA Input'!J4942=\"Contingent\"),'TSA Input'!G4942,\"\"))","v":""},{"$f":"IF('TSA Input'!J4942=\"\",\"\",IF(OR('TSA Input'!J4942=\"Yes\",'TSA Input'!J4942=\"Contingent\"),'TSA Input'!F4942,\"\"))","v":""},"",{"$f":"IF('TSA Input'!J4942=\"\",\"\",IF(OR('TSA Input'!J4942=\"Yes\",'TSA Input'!J4942=\"Contingent\"),'TSA Input'!D4942,\"\"))","v":""},{"$f":"IF('TSA Input'!J4942=\"\",\"\",IF(OR('TSA Input'!J4942=\"Yes\",'TSA Input'!J4942=\"Contingent\"),'TSA Input'!G4942,\"\"))","v":""},{"$f":"IF('TSA Input'!J4942=\"\",\"\",IF(OR('TSA Input'!J4942=\"Yes\",'TSA Input'!J4942=\"Contingent\"),'TSA Input'!F4942,\"\"))","v":""},"","Required","Required"]
["",null,{"$f":"IF('TSA Input'!J4943=\"\",\"\",IF(OR('TSA Input'!J4943=\"Yes\",'TSA Input'!J4943=\"Contingent\"),'TSA Input'!B4943,\"Ineligible\"))","v":""},{"$f":"IF('TSA Input'!J4943=\"\",\"\",IF(OR('TSA Input'!J4943=\"Yes\",'TSA Input'!J4943=\"Contingent\"),'TSA Input'!I4943,\"\"))","v":""},{"$f":"IF('TSA Input'!J4943=\"\",\"\",IF(OR('TSA Input'!J4943=\"Yes\",'TSA Input'!J4943=\"Contingent\"),'TSA Input'!C4943,\"\"))","v":""},{"$f":"IF('TSA Input'!J4943=\"\",\"\",IF(OR('TSA Input'!J4943=\"Yes\",'TSA Input'!J4943=\"Contingent\"),'TSA Input'!D4943,\"\"))","v":""},{"$f":"IF('TSA Input'!J4943=\"\",\"\",IF(OR('TSA Input'!J4943=\"Yes\",'TSA Input'!J4943=\"Contingent\"),'TSA Input'!G4943,\"\"))","v":""},{"$f":"IF('TSA Input'!J4943=\"\",\"\",IF(OR('TSA Input'!J4943=\"Yes\",'TSA Input'!J4943=\"Contingent\"),'TSA Input'!F4943,\"\"))","v":""},"",{"$f":"IF('TSA Input'!J4943=\"\",\"\",IF(OR('TSA Input'!J4943=\"Yes\",'TSA Input'!J4943=\"Contingent\"),'TSA Input'!D4943,\"\"))","v":""},{"$f":"IF('TSA Input'!J4943=\"\",\"\",IF(OR('TSA Input'!J4943=\"Yes\",'TSA Input'!J4943=\"Contingent\"),'TSA Input'!G4943,\"\"))","v":""},{"$f":"IF('TSA Input'!J4943=\"\",\"\",IF(OR('TSA Input'!J4943=\"Yes\",'TSA Input'!J4943=\"Contingent\"),'TSA Input'!F4943,\"\"))","v":""},"","Required","Required"]
["",null,{"$f":"IF('TSA Input'!J4944=\"\",\"\",IF(OR('TSA Input'!J4944=\"Yes\",'TSA Input'!J4944=\"Contingent\"),'TSA Input'!B4944,\"Ineligible\"))","v":""},{"$f":"IF('TSA Input'!J4944=\"\",\"\",IF(OR('TSA Input'!J4944=\"Yes\",'TSA Input'!J4944=\"Contingent\"),'TSA Input'!I4944,\"\"))","v":""},{"$f":"IF('TSA Input'!J4944=\"\",\"\",IF(OR('TSA Input'!J4944=\"Yes\",'TSA Input'!J4944=\"Contingent\"),'TSA Input'!C4944,\"\"))","v":""},{"$f":"IF('TSA Input'!J4944=\"\",\"\",IF(OR('TSA Input'!J4944=\"Yes\",'TSA Input'!J4944=\"Contingent\"),'TSA Input'!D4944,\"\"))","v":""},{"$f":"IF('TSA Input'!J4944=\"\",\"\",IF(OR('TSA Input'!J4944=\"Yes\",'TSA Input'!J4944=\"Contingent\"),'TSA Input'!G4944,\"\"))","v":""},{"$f":"IF('TSA Input'!J4944=\"\",\"\",IF(OR('TSA Input'!J4944=\"Yes\",'TSA Input'!J4944=\"Contingent\"),'TSA Input'!F4944,\"\"))","v":""},"",{"$f":"IF('TSA Input'!J4944=\"\",\"\",IF(OR('TSA Input'!J4944=\"Yes\",'TSA Input'!J4944=\"Contingent\"),'TSA Input'!D4944,\"\"))","v":""},{"$f":"IF('TSA Input'!J4944=\"\",\"\",IF(OR('TSA Input'!J4944=\"Yes\",'TSA Input'!J4944=\"Contingent\"),'TSA Input'!G4944,\"\"))","v":""},{"$f":"IF('TSA Input'!J4944=\"\",\"\",IF(OR('TSA Input'!J4944=\"Yes\",'TSA Input'!J4944=\"Contingent\"),'TSA Input'!F4944,\"\"))","v":""},"","Required","Required"]
["",null,{"$f":"IF('TSA Input'!J4945=\"\",\"\",IF(OR('TSA Input'!J4945=\"Yes\",'TSA Input'!J4945=\"Contingent\"),'TSA Input'!B4945,\"Ineligible\"))","v":""},{"$f":"IF('TSA Input'!J4945=\"\",\"\",IF(OR('TSA Input'!J4945=\"Yes\",'TSA Input'!J4945=\"Contingent\"),'TSA Input'!I4945,\"\"))","v":""},{"$f":"IF('TSA Input'!J4945=\"\",\"\",IF(OR('TSA Input'!J4945=\"Yes\",'TSA Input'!J4945=\"Contingent\"),'TSA Input'!C4945,\"\"))","v":""},{"$f":"IF('TSA Input'!J4945=\"\",\"\",IF(OR('TSA Input'!J4945=\"Yes\",'TSA Input'!J4945=\"Contingent\"),'TSA Input'!D4945,\"\"))","v":""},{"$f":"IF('TSA Input'!J4945=\"\",\"\",IF(OR('TSA Input'!J4945=\"Yes\",'TSA Input'!J4945=\"Contingent\"),'TSA Input'!G4945,\"\"))","v":""},{"$f":"IF('TSA Input'!J4945=\"\",\"\",IF(OR('TSA Input'!J4945=\"Yes\",'TSA Input'!J4945=\"Contingent\"),'TSA Input'!F4945,\"\"))","v":""},"",{"$f":"IF('TSA Input'!J4945=\"\",\"\",IF(OR('TSA Input'!J4945=\"Yes\",'TSA Input'!J4945=\"Contingent\"),'TSA Input'!D4945,\"\"))","v":""},{"$f":"IF('TSA Input'!J4945=\"\",\"\",IF(OR('TSA Input'!J4945=\"Yes\",'TSA Input'!J4945=\"Contingent\"),'TSA Input'!G4945,\"\"))","v":""},{"$f":"IF('TSA Input'!J4945=\"\",\"\",IF(OR('TSA Input'!J4945=\"Yes\",'TSA Input'!J4945=\"Contingent\"),'TSA Input'!F4945,\"\"))","v":""},"","Required","Required"]
["",null,{"$f":"IF('TSA Input'!J4946=\"\",\"\",IF(OR('TSA Input'!J4946=\"Yes\",'TSA Input'!J4946=\"Contingent\"),'TSA Input'!B4946,\"Ineligible\"))","v":""},{"$f":"IF('TSA Input'!J4946=\"\",\"\",IF(OR('TSA Input'!J4946=\"Yes\",'TSA Input'!J4946=\"Contingent\"),'TSA Input'!I4946,\"\"))","v":""},{"$f":"IF('TSA Input'!J4946=\"\",\"\",IF(OR('TSA Input'!J4946=\"Yes\",'TSA Input'!J4946=\"Contingent\"),'TSA Input'!C4946,\"\"))","v":""},{"$f":"IF('TSA Input'!J4946=\"\",\"\",IF(OR('TSA Input'!J4946=\"Yes\",'TSA Input'!J4946=\"Contingent\"),'TSA Input'!D4946,\"\"))","v":""},{"$f":"IF('TSA Input'!J4946=\"\",\"\",IF(OR('TSA Input'!J4946=\"Yes\",'TSA Input'!J4946=\"Contingent\"),'TSA Input'!G4946,\"\"))","v":""},{"$f":"IF('TSA Input'!J4946=\"\",\"\",IF(OR('TSA Input'!J4946=\"Yes\",'TSA Input'!J4946=\"Contingent\"),'TSA Input'!F4946,\"\"))","v":""},"",{"$f":"IF('TSA Input'!J4946=\"\",\"\",IF(OR('TSA Input'!J4946=\"Yes\",'TSA Input'!J4946=\"Contingent\"),'TSA Input'!D4946,\"\"))","v":""},{"$f":"IF('TSA Input'!J4946=\"\",\"\",IF(OR('TSA Input'!J4946=\"Yes\",'TSA Input'!J4946=\"Contingent\"),'TSA Input'!G4946,\"\"))","v":""},{"$f":"IF('TSA Input'!J4946=\"\",\"\",IF(OR('TSA Input'!J4946=\"Yes\",'TSA Input'!J4946=\"Contingent\"),'TSA Input'!F4946,\"\"))","v":""},"","Required","Required"]
["",null,{"$f":"IF('TSA Input'!J4947=\"\",\"\",IF(OR('TSA Input'!J4947=\"Yes\",'TSA Input'!J4947=\"Contingent\"),'TSA Input'!B4947,\"Ineligible\"))","v":""},{"$f":"IF('TSA Input'!J4947=\"\",\"\",IF(OR('TSA Input'!J4947=\"Yes\",'TSA Input'!J4947=\"Contingent\"),'TSA Input'!I4947,\"\"))","v":""},{"$f":"IF('TSA Input'!J4947=\"\",\"\",IF(OR('TSA Input'!J4947=\"Yes\",'TSA Input'!J4947=\"Contingent\"),'TSA Input'!C4947,\"\"))","v":""},{"$f":"IF('TSA Input'!J4947=\"\",\"\",IF(OR('TSA Input'!J4947=\"Yes\",'TSA Input'!J4947=\"Contingent\"),'TSA Input'!D4947,\"\"))","v":""},{"$f":"IF('TSA Input'!J4947=\"\",\"\",IF(OR('TSA Input'!J4947=\"Yes\",'TSA Input'!J4947=\"Contingent\"),'TSA Input'!G4947,\"\"))","v":""},{"$f":"IF('TSA Input'!J4947=\"\",\"\",IF(OR('TSA Input'!J4947=\"Yes\",'TSA Input'!J4947=\"Contingent\"),'TSA Input'!F4947,\"\"))","v":""},"",{"$f":"IF('TSA Input'!J4947=\"\",\"\",IF(OR('TSA Input'!J4947=\"Yes\",'TSA Input'!J4947=\"Contingent\"),'TSA Input'!D4947,\"\"))","v":""},{"$f":"IF('TSA Input'!J4947=\"\",\"\",IF(OR('TSA Input'!J4947=\"Yes\",'TSA Input'!J4947=\"Contingent\"),'TSA Input'!G4947,\"\"))","v":""},{"$f":"IF('TSA Input'!J4947=\"\",\"\",IF(OR('TSA Input'!J4947=\"Yes\",'TSA Input'!J4947=\"Contingent\"),'TSA Input'!F4947,\"\"))","v":""},"","Required","Required"]
["",null,{"$f":"IF('TSA Input'!J4948=\"\",\"\",IF(OR('TSA Input'!J4948=\"Yes\",'TSA Input'!J4948=\"Contingent\"),'TSA Input'!B4948,\"Ineligible\"))","v":""},{"$f":"IF('TSA Input'!J4948=\"\",\"\",IF(OR('TSA Input'!J4948=\"Yes\",'TSA Input'!J4948=\"Contingent\"),'TSA Input'!I4948,\"\"))","v":""},{"$f":"IF('TSA Input'!J4948=\"\",\"\",IF(OR('TSA Input'!J4948=\"Yes\",'TSA Input'!J4948=\"Contingent\"),'TSA Input'!C4948,\"\"))","v":""},{"$f":"IF('TSA Input'!J4948=\"\",\"\",IF(OR('TSA Input'!J4948=\"Yes\",'TSA Input'!J4948=\"Contingent\"),'TSA Input'!D4948,\"\"))","v":""},{"$f":"IF('TSA Input'!J4948=\"\",\"\",IF(OR('TSA Input'!J4948=\"Yes\",'TSA Input'!J4948=\"Contingent\"),'TSA Input'!G4948,\"\"))","v":""},{"$f":"IF('TSA Input'!J4948=\"\",\"\",IF(OR('TSA Input'!J4948=\"Yes\",'TSA Input'!J4948=\"Contingent\"),'TSA Input'!F4948,\"\"))","v":""},"",{"$f":"IF('TSA Input'!J4948=\"\",\"\",IF(OR('TSA Input'!J4948=\"Yes\",'TSA Input'!J4948=\"Contingent\"),'TSA Input'!D4948,\"\"))","v":""},{"$f":"IF('TSA Input'!J4948=\"\",\"\",IF(OR('TSA Input'!J4948=\"Yes\",'TSA Input'!J4948=\"Contingent\"),'TSA Input'!G4948,\"\"))","v":""},{"$f":"IF('TSA Input'!J4948=\"\",\"\",IF(OR('TSA Input'!J4948=\"Yes\",'TSA Input'!J4948=\"Contingent\"),'TSA Input'!F4948,\"\"))","v":""},"","Required","Required"]
["",null,{"$f":"IF('TSA Input'!J4949=\"\",\"\",IF(OR('TSA Input'!J4949=\"Yes\",'TSA Input'!J4949=\"Contingent\"),'TSA Input'!B4949,\"Ineligible\"))","v":""},{"$f":"IF('TSA Input'!J4949=\"\",\"\",IF(OR('TSA Input'!J4949=\"Yes\",'TSA Input'!J4949=\"Contingent\"),'TSA Input'!I4949,\"\"))","v":""},{"$f":"IF('TSA Input'!J4949=\"\",\"\",IF(OR('TSA Input'!J4949=\"Yes\",'TSA Input'!J4949=\"Contingent\"),'TSA Input'!C4949,\"\"))","v":""},{"$f":"IF('TSA Input'!J4949=\"\",\"\",IF(OR('TSA Input'!J4949=\"Yes\",'TSA Input'!J4949=\"Contingent\"),'TSA Input'!D4949,\"\"))","v":""},{"$f":"IF('TSA Input'!J4949=\"\",\"\",IF(OR('TSA Input'!J4949=\"Yes\",'TSA Input'!J4949=\"Contingent\"),'TSA Input'!G4949,\"\"))","v":""},{"$f":"IF('TSA Input'!J4949=\"\",\"\",IF(OR('TSA Input'!J4949=\"Yes\",'TSA Input'!J4949=\"Contingent\"),'TSA Input'!F4949,\"\"))","v":""},"",{"$f":"IF('TSA Input'!J4949=\"\",\"\",IF(OR('TSA Input'!J4949=\"Yes\",'TSA Input'!J4949=\"Contingent\"),'TSA Input'!D4949,\"\"))","v":""},{"$f":"IF('TSA Input'!J4949=\"\",\"\",IF(OR('TSA Input'!J4949=\"Yes\",'TSA Input'!J4949=\"Contingent\"),'TSA Input'!G4949,\"\"))","v":""},{"$f":"IF('TSA Input'!J4949=\"\",\"\",IF(OR('TSA Input'!J4949=\"Yes\",'TSA Input'!J4949=\"Contingent\"),'TSA Input'!F4949,\"\"))","v":""},"","Required","Required"]
["",null,{"$f":"IF('TSA Input'!J4950=\"\",\"\",IF(OR('TSA Input'!J4950=\"Yes\",'TSA Input'!J4950=\"Contingent\"),'TSA Input'!B4950,\"Ineligible\"))","v":""},{"$f":"IF('TSA Input'!J4950=\"\",\"\",IF(OR('TSA Input'!J4950=\"Yes\",'TSA Input'!J4950=\"Contingent\"),'TSA Input'!I4950,\"\"))","v":""},{"$f":"IF('TSA Input'!J4950=\"\",\"\",IF(OR('TSA Input'!J4950=\"Yes\",'TSA Input'!J4950=\"Contingent\"),'TSA Input'!C4950,\"\"))","v":""},{"$f":"IF('TSA Input'!J4950=\"\",\"\",IF(OR('TSA Input'!J4950=\"Yes\",'TSA Input'!J4950=\"Contingent\"),'TSA Input'!D4950,\"\"))","v":""},{"$f":"IF('TSA Input'!J4950=\"\",\"\",IF(OR('TSA Input'!J4950=\"Yes\",'TSA Input'!J4950=\"Contingent\"),'TSA Input'!G4950,\"\"))","v":""},{"$f":"IF('TSA Input'!J4950=\"\",\"\",IF(OR('TSA Input'!J4950=\"Yes\",'TSA Input'!J4950=\"Contingent\"),'TSA Input'!F4950,\"\"))","v":""},"",{"$f":"IF('TSA Input'!J4950=\"\",\"\",IF(OR('TSA Input'!J4950=\"Yes\",'TSA Input'!J4950=\"Contingent\"),'TSA Input'!D4950,\"\"))","v":""},{"$f":"IF('TSA Input'!J4950=\"\",\"\",IF(OR('TSA Input'!J4950=\"Yes\",'TSA Input'!J4950=\"Contingent\"),'TSA Input'!G4950,\"\"))","v":""},{"$f":"IF('TSA Input'!J4950=\"\",\"\",IF(OR('TSA Input'!J4950=\"Yes\",'TSA Input'!J4950=\"Contingent\"),'TSA Input'!F4950,\"\"))","v":""},"","Required","Required"]
["",null,{"$f":"IF('TSA Input'!J4951=\"\",\"\",IF(OR('TSA Input'!J4951=\"Yes\",'TSA Input'!J4951=\"Contingent\"),'TSA Input'!B4951,\"Ineligible\"))","v":""},{"$f":"IF('TSA Input'!J4951=\"\",\"\",IF(OR('TSA Input'!J4951=\"Yes\",'TSA Input'!J4951=\"Contingent\"),'TSA Input'!I4951,\"\"))","v":""},{"$f":"IF('TSA Input'!J4951=\"\",\"\",IF(OR('TSA Input'!J4951=\"Yes\",'TSA Input'!J4951=\"Contingent\"),'TSA Input'!C4951,\"\"))","v":""},{"$f":"IF('TSA Input'!J4951=\"\",\"\",IF(OR('TSA Input'!J4951=\"Yes\",'TSA Input'!J4951=\"Contingent\"),'TSA Input'!D4951,\"\"))","v":""},{"$f":"IF('TSA Input'!J4951=\"\",\"\",IF(OR('TSA Input'!J4951=\"Yes\",'TSA Input'!J4951=\"Contingent\"),'TSA Input'!G4951,\"\"))","v":""},{"$f":"IF('TSA Input'!J4951=\"\",\"\",IF(OR('TSA Input'!J4951=\"Yes\",'TSA Input'!J4951=\"Contingent\"),'TSA Input'!F4951,\"\"))","v":""},"",{"$f":"IF('TSA Input'!J4951=\"\",\"\",IF(OR('TSA Input'!J4951=\"Yes\",'TSA Input'!J4951=\"Contingent\"),'TSA Input'!D4951,\"\"))","v":""},{"$f":"IF('TSA Input'!J4951=\"\",\"\",IF(OR('TSA Input'!J4951=\"Yes\",'TSA Input'!J4951=\"Contingent\"),'TSA Input'!G4951,\"\"))","v":""},{"$f":"IF('TSA Input'!J4951=\"\",\"\",IF(OR('TSA Input'!J4951=\"Yes\",'TSA Input'!J4951=\"Contingent\"),'TSA Input'!F4951,\"\"))","v":""},"","Required","Required"]
["",null,{"$f":"IF('TSA Input'!J4952=\"\",\"\",IF(OR('TSA Input'!J4952=\"Yes\",'TSA Input'!J4952=\"Contingent\"),'TSA Input'!B4952,\"Ineligible\"))","v":""},{"$f":"IF('TSA Input'!J4952=\"\",\"\",IF(OR('TSA Input'!J4952=\"Yes\",'TSA Input'!J4952=\"Contingent\"),'TSA Input'!I4952,\"\"))","v":""},{"$f":"IF('TSA Input'!J4952=\"\",\"\",IF(OR('TSA Input'!J4952=\"Yes\",'TSA Input'!J4952=\"Contingent\"),'TSA Input'!C4952,\"\"))","v":""},{"$f":"IF('TSA Input'!J4952=\"\",\"\",IF(OR('TSA Input'!J4952=\"Yes\",'TSA Input'!J4952=\"Contingent\"),'TSA Input'!D4952,\"\"))","v":""},{"$f":"IF('TSA Input'!J4952=\"\",\"\",IF(OR('TSA Input'!J4952=\"Yes\",'TSA Input'!J4952=\"Contingent\"),'TSA Input'!G4952,\"\"))","v":""},{"$f":"IF('TSA Input'!J4952=\"\",\"\",IF(OR('TSA Input'!J4952=\"Yes\",'TSA Input'!J4952=\"Contingent\"),'TSA Input'!F4952,\"\"))","v":""},"",{"$f":"IF('TSA Input'!J4952=\"\",\"\",IF(OR('TSA Input'!J4952=\"Yes\",'TSA Input'!J4952=\"Contingent\"),'TSA Input'!D4952,\"\"))","v":""},{"$f":"IF('TSA Input'!J4952=\"\",\"\",IF(OR('TSA Input'!J4952=\"Yes\",'TSA Input'!J4952=\"Contingent\"),'TSA Input'!G4952,\"\"))","v":""},{"$f":"IF('TSA Input'!J4952=\"\",\"\",IF(OR('TSA Input'!J4952=\"Yes\",'TSA Input'!J4952=\"Contingent\"),'TSA Input'!F4952,\"\"))","v":""},"","Required","Required"]
["",null,{"$f":"IF('TSA Input'!J4953=\"\",\"\",IF(OR('TSA Input'!J4953=\"Yes\",'TSA Input'!J4953=\"Contingent\"),'TSA Input'!B4953,\"Ineligible\"))","v":""},{"$f":"IF('TSA Input'!J4953=\"\",\"\",IF(OR('TSA Input'!J4953=\"Yes\",'TSA Input'!J4953=\"Contingent\"),'TSA Input'!I4953,\"\"))","v":""},{"$f":"IF('TSA Input'!J4953=\"\",\"\",IF(OR('TSA Input'!J4953=\"Yes\",'TSA Input'!J4953=\"Contingent\"),'TSA Input'!C4953,\"\"))","v":""},{"$f":"IF('TSA Input'!J4953=\"\",\"\",IF(OR('TSA Input'!J4953=\"Yes\",'TSA Input'!J4953=\"Contingent\"),'TSA Input'!D4953,\"\"))","v":""},{"$f":"IF('TSA Input'!J4953=\"\",\"\",IF(OR('TSA Input'!J4953=\"Yes\",'TSA Input'!J4953=\"Contingent\"),'TSA Input'!G4953,\"\"))","v":""},{"$f":"IF('TSA Input'!J4953=\"\",\"\",IF(OR('TSA Input'!J4953=\"Yes\",'TSA Input'!J4953=\"Contingent\"),'TSA Input'!F4953,\"\"))","v":""},"",{"$f":"IF('TSA Input'!J4953=\"\",\"\",IF(OR('TSA Input'!J4953=\"Yes\",'TSA Input'!J4953=\"Contingent\"),'TSA Input'!D4953,\"\"))","v":""},{"$f":"IF('TSA Input'!J4953=\"\",\"\",IF(OR('TSA Input'!J4953=\"Yes\",'TSA Input'!J4953=\"Contingent\"),'TSA Input'!G4953,\"\"))","v":""},{"$f":"IF('TSA Input'!J4953=\"\",\"\",IF(OR('TSA Input'!J4953=\"Yes\",'TSA Input'!J4953=\"Contingent\"),'TSA Input'!F4953,\"\"))","v":""},"","Required","Required"]
["",null,{"$f":"IF('TSA Input'!J4954=\"\",\"\",IF(OR('TSA Input'!J4954=\"Yes\",'TSA Input'!J4954=\"Contingent\"),'TSA Input'!B4954,\"Ineligible\"))","v":""},{"$f":"IF('TSA Input'!J4954=\"\",\"\",IF(OR('TSA Input'!J4954=\"Yes\",'TSA Input'!J4954=\"Contingent\"),'TSA Input'!I4954,\"\"))","v":""},{"$f":"IF('TSA Input'!J4954=\"\",\"\",IF(OR('TSA Input'!J4954=\"Yes\",'TSA Input'!J4954=\"Contingent\"),'TSA Input'!C4954,\"\"))","v":""},{"$f":"IF('TSA Input'!J4954=\"\",\"\",IF(OR('TSA Input'!J4954=\"Yes\",'TSA Input'!J4954=\"Contingent\"),'TSA Input'!D4954,\"\"))","v":""},{"$f":"IF('TSA Input'!J4954=\"\",\"\",IF(OR('TSA Input'!J4954=\"Yes\",'TSA Input'!J4954=\"Contingent\"),'TSA Input'!G4954,\"\"))","v":""},{"$f":"IF('TSA Input'!J4954=\"\",\"\",IF(OR('TSA Input'!J4954=\"Yes\",'TSA Input'!J4954=\"Contingent\"),'TSA Input'!F4954,\"\"))","v":""},"",{"$f":"IF('TSA Input'!J4954=\"\",\"\",IF(OR('TSA Input'!J4954=\"Yes\",'TSA Input'!J4954=\"Contingent\"),'TSA Input'!D4954,\"\"))","v":""},{"$f":"IF('TSA Input'!J4954=\"\",\"\",IF(OR('TSA Input'!J4954=\"Yes\",'TSA Input'!J4954=\"Contingent\"),'TSA Input'!G4954,\"\"))","v":""},{"$f":"IF('TSA Input'!J4954=\"\",\"\",IF(OR('TSA Input'!J4954=\"Yes\",'TSA Input'!J4954=\"Contingent\"),'TSA Input'!F4954,\"\"))","v":""},"","Required","Required"]
["",null,{"$f":"IF('TSA Input'!J4955=\"\",\"\",IF(OR('TSA Input'!J4955=\"Yes\",'TSA Input'!J4955=\"Contingent\"),'TSA Input'!B4955,\"Ineligible\"))","v":""},{"$f":"IF('TSA Input'!J4955=\"\",\"\",IF(OR('TSA Input'!J4955=\"Yes\",'TSA Input'!J4955=\"Contingent\"),'TSA Input'!I4955,\"\"))","v":""},{"$f":"IF('TSA Input'!J4955=\"\",\"\",IF(OR('TSA Input'!J4955=\"Yes\",'TSA Input'!J4955=\"Contingent\"),'TSA Input'!C4955,\"\"))","v":""},{"$f":"IF('TSA Input'!J4955=\"\",\"\",IF(OR('TSA Input'!J4955=\"Yes\",'TSA Input'!J4955=\"Contingent\"),'TSA Input'!D4955,\"\"))","v":""},{"$f":"IF('TSA Input'!J4955=\"\",\"\",IF(OR('TSA Input'!J4955=\"Yes\",'TSA Input'!J4955=\"Contingent\"),'TSA Input'!G4955,\"\"))","v":""},{"$f":"IF('TSA Input'!J4955=\"\",\"\",IF(OR('TSA Input'!J4955=\"Yes\",'TSA Input'!J4955=\"Contingent\"),'TSA Input'!F4955,\"\"))","v":""},"",{"$f":"IF('TSA Input'!J4955=\"\",\"\",IF(OR('TSA Input'!J4955=\"Yes\",'TSA Input'!J4955=\"Contingent\"),'TSA Input'!D4955,\"\"))","v":""},{"$f":"IF('TSA Input'!J4955=\"\",\"\",IF(OR('TSA Input'!J4955=\"Yes\",'TSA Input'!J4955=\"Contingent\"),'TSA Input'!G4955,\"\"))","v":""},{"$f":"IF('TSA Input'!J4955=\"\",\"\",IF(OR('TSA Input'!J4955=\"Yes\",'TSA Input'!J4955=\"Contingent\"),'TSA Input'!F4955,\"\"))","v":""},"","Required","Required"]
["",null,{"$f":"IF('TSA Input'!J4956=\"\",\"\",IF(OR('TSA Input'!J4956=\"Yes\",'TSA Input'!J4956=\"Contingent\"),'TSA Input'!B4956,\"Ineligible\"))","v":""},{"$f":"IF('TSA Input'!J4956=\"\",\"\",IF(OR('TSA Input'!J4956=\"Yes\",'TSA Input'!J4956=\"Contingent\"),'TSA Input'!I4956,\"\"))","v":""},{"$f":"IF('TSA Input'!J4956=\"\",\"\",IF(OR('TSA Input'!J4956=\"Yes\",'TSA Input'!J4956=\"Contingent\"),'TSA Input'!C4956,\"\"))","v":""},{"$f":"IF('TSA Input'!J4956=\"\",\"\",IF(OR('TSA Input'!J4956=\"Yes\",'TSA Input'!J4956=\"Contingent\"),'TSA Input'!D4956,\"\"))","v":""},{"$f":"IF('TSA Input'!J4956=\"\",\"\",IF(OR('TSA Input'!J4956=\"Yes\",'TSA Input'!J4956=\"Contingent\"),'TSA Input'!G4956,\"\"))","v":""},{"$f":"IF('TSA Input'!J4956=\"\",\"\",IF(OR('TSA Input'!J4956=\"Yes\",'TSA Input'!J4956=\"Contingent\"),'TSA Input'!F4956,\"\"))","v":""},"",{"$f":"IF('TSA Input'!J4956=\"\",\"\",IF(OR('TSA Input'!J4956=\"Yes\",'TSA Input'!J4956=\"Contingent\"),'TSA Input'!D4956,\"\"))","v":""},{"$f":"IF('TSA Input'!J4956=\"\",\"\",IF(OR('TSA Input'!J4956=\"Yes\",'TSA Input'!J4956=\"Contingent\"),'TSA Input'!G4956,\"\"))","v":""},{"$f":"IF('TSA Input'!J4956=\"\",\"\",IF(OR('TSA Input'!J4956=\"Yes\",'TSA Input'!J4956=\"Contingent\"),'TSA Input'!F4956,\"\"))","v":""},"","Required","Required"]
["",null,{"$f":"IF('TSA Input'!J4957=\"\",\"\",IF(OR('TSA Input'!J4957=\"Yes\",'TSA Input'!J4957=\"Contingent\"),'TSA Input'!B4957,\"Ineligible\"))","v":""},{"$f":"IF('TSA Input'!J4957=\"\",\"\",IF(OR('TSA Input'!J4957=\"Yes\",'TSA Input'!J4957=\"Contingent\"),'TSA Input'!I4957,\"\"))","v":""},{"$f":"IF('TSA Input'!J4957=\"\",\"\",IF(OR('TSA Input'!J4957=\"Yes\",'TSA Input'!J4957=\"Contingent\"),'TSA Input'!C4957,\"\"))","v":""},{"$f":"IF('TSA Input'!J4957=\"\",\"\",IF(OR('TSA Input'!J4957=\"Yes\",'TSA Input'!J4957=\"Contingent\"),'TSA Input'!D4957,\"\"))","v":""},{"$f":"IF('TSA Input'!J4957=\"\",\"\",IF(OR('TSA Input'!J4957=\"Yes\",'TSA Input'!J4957=\"Contingent\"),'TSA Input'!G4957,\"\"))","v":""},{"$f":"IF('TSA Input'!J4957=\"\",\"\",IF(OR('TSA Input'!J4957=\"Yes\",'TSA Input'!J4957=\"Contingent\"),'TSA Input'!F4957,\"\"))","v":""},"",{"$f":"IF('TSA Input'!J4957=\"\",\"\",IF(OR('TSA Input'!J4957=\"Yes\",'TSA Input'!J4957=\"Contingent\"),'TSA Input'!D4957,\"\"))","v":""},{"$f":"IF('TSA Input'!J4957=\"\",\"\",IF(OR('TSA Input'!J4957=\"Yes\",'TSA Input'!J4957=\"Contingent\"),'TSA Input'!G4957,\"\"))","v":""},{"$f":"IF('TSA Input'!J4957=\"\",\"\",IF(OR('TSA Input'!J4957=\"Yes\",'TSA Input'!J4957=\"Contingent\"),'TSA Input'!F4957,\"\"))","v":""},"","Required","Required"]
["",null,{"$f":"IF('TSA Input'!J4958=\"\",\"\",IF(OR('TSA Input'!J4958=\"Yes\",'TSA Input'!J4958=\"Contingent\"),'TSA Input'!B4958,\"Ineligible\"))","v":""},{"$f":"IF('TSA Input'!J4958=\"\",\"\",IF(OR('TSA Input'!J4958=\"Yes\",'TSA Input'!J4958=\"Contingent\"),'TSA Input'!I4958,\"\"))","v":""},{"$f":"IF('TSA Input'!J4958=\"\",\"\",IF(OR('TSA Input'!J4958=\"Yes\",'TSA Input'!J4958=\"Contingent\"),'TSA Input'!C4958,\"\"))","v":""},{"$f":"IF('TSA Input'!J4958=\"\",\"\",IF(OR('TSA Input'!J4958=\"Yes\",'TSA Input'!J4958=\"Contingent\"),'TSA Input'!D4958,\"\"))","v":""},{"$f":"IF('TSA Input'!J4958=\"\",\"\",IF(OR('TSA Input'!J4958=\"Yes\",'TSA Input'!J4958=\"Contingent\"),'TSA Input'!G4958,\"\"))","v":""},{"$f":"IF('TSA Input'!J4958=\"\",\"\",IF(OR('TSA Input'!J4958=\"Yes\",'TSA Input'!J4958=\"Contingent\"),'TSA Input'!F4958,\"\"))","v":""},"",{"$f":"IF('TSA Input'!J4958=\"\",\"\",IF(OR('TSA Input'!J4958=\"Yes\",'TSA Input'!J4958=\"Contingent\"),'TSA Input'!D4958,\"\"))","v":""},{"$f":"IF('TSA Input'!J4958=\"\",\"\",IF(OR('TSA Input'!J4958=\"Yes\",'TSA Input'!J4958=\"Contingent\"),'TSA Input'!G4958,\"\"))","v":""},{"$f":"IF('TSA Input'!J4958=\"\",\"\",IF(OR('TSA Input'!J4958=\"Yes\",'TSA Input'!J4958=\"Contingent\"),'TSA Input'!F4958,\"\"))","v":""},"","Required","Required"]
["",null,{"$f":"IF('TSA Input'!J4959=\"\",\"\",IF(OR('TSA Input'!J4959=\"Yes\",'TSA Input'!J4959=\"Contingent\"),'TSA Input'!B4959,\"Ineligible\"))","v":""},{"$f":"IF('TSA Input'!J4959=\"\",\"\",IF(OR('TSA Input'!J4959=\"Yes\",'TSA Input'!J4959=\"Contingent\"),'TSA Input'!I4959,\"\"))","v":""},{"$f":"IF('TSA Input'!J4959=\"\",\"\",IF(OR('TSA Input'!J4959=\"Yes\",'TSA Input'!J4959=\"Contingent\"),'TSA Input'!C4959,\"\"))","v":""},{"$f":"IF('TSA Input'!J4959=\"\",\"\",IF(OR('TSA Input'!J4959=\"Yes\",'TSA Input'!J4959=\"Contingent\"),'TSA Input'!D4959,\"\"))","v":""},{"$f":"IF('TSA Input'!J4959=\"\",\"\",IF(OR('TSA Input'!J4959=\"Yes\",'TSA Input'!J4959=\"Contingent\"),'TSA Input'!G4959,\"\"))","v":""},{"$f":"IF('TSA Input'!J4959=\"\",\"\",IF(OR('TSA Input'!J4959=\"Yes\",'TSA Input'!J4959=\"Contingent\"),'TSA Input'!F4959,\"\"))","v":""},"",{"$f":"IF('TSA Input'!J4959=\"\",\"\",IF(OR('TSA Input'!J4959=\"Yes\",'TSA Input'!J4959=\"Contingent\"),'TSA Input'!D4959,\"\"))","v":""},{"$f":"IF('TSA Input'!J4959=\"\",\"\",IF(OR('TSA Input'!J4959=\"Yes\",'TSA Input'!J4959=\"Contingent\"),'TSA Input'!G4959,\"\"))","v":""},{"$f":"IF('TSA Input'!J4959=\"\",\"\",IF(OR('TSA Input'!J4959=\"Yes\",'TSA Input'!J4959=\"Contingent\"),'TSA Input'!F4959,\"\"))","v":""},"","Required","Required"]
["",null,{"$f":"IF('TSA Input'!J4960=\"\",\"\",IF(OR('TSA Input'!J4960=\"Yes\",'TSA Input'!J4960=\"Contingent\"),'TSA Input'!B4960,\"Ineligible\"))","v":""},{"$f":"IF('TSA Input'!J4960=\"\",\"\",IF(OR('TSA Input'!J4960=\"Yes\",'TSA Input'!J4960=\"Contingent\"),'TSA Input'!I4960,\"\"))","v":""},{"$f":"IF('TSA Input'!J4960=\"\",\"\",IF(OR('TSA Input'!J4960=\"Yes\",'TSA Input'!J4960=\"Contingent\"),'TSA Input'!C4960,\"\"))","v":""},{"$f":"IF('TSA Input'!J4960=\"\",\"\",IF(OR('TSA Input'!J4960=\"Yes\",'TSA Input'!J4960=\"Contingent\"),'TSA Input'!D4960,\"\"))","v":""},{"$f":"IF('TSA Input'!J4960=\"\",\"\",IF(OR('TSA Input'!J4960=\"Yes\",'TSA Input'!J4960=\"Contingent\"),'TSA Input'!G4960,\"\"))","v":""},{"$f":"IF('TSA Input'!J4960=\"\",\"\",IF(OR('TSA Input'!J4960=\"Yes\",'TSA Input'!J4960=\"Contingent\"),'TSA Input'!F4960,\"\"))","v":""},"",{"$f":"IF('TSA Input'!J4960=\"\",\"\",IF(OR('TSA Input'!J4960=\"Yes\",'TSA Input'!J4960=\"Contingent\"),'TSA Input'!D4960,\"\"))","v":""},{"$f":"IF('TSA Input'!J4960=\"\",\"\",IF(OR('TSA Input'!J4960=\"Yes\",'TSA Input'!J4960=\"Contingent\"),'TSA Input'!G4960,\"\"))","v":""},{"$f":"IF('TSA Input'!J4960=\"\",\"\",IF(OR('TSA Input'!J4960=\"Yes\",'TSA Input'!J4960=\"Contingent\"),'TSA Input'!F4960,\"\"))","v":""},"","Required","Required"]
["",null,{"$f":"IF('TSA Input'!J4961=\"\",\"\",IF(OR('TSA Input'!J4961=\"Yes\",'TSA Input'!J4961=\"Contingent\"),'TSA Input'!B4961,\"Ineligible\"))","v":""},{"$f":"IF('TSA Input'!J4961=\"\",\"\",IF(OR('TSA Input'!J4961=\"Yes\",'TSA Input'!J4961=\"Contingent\"),'TSA Input'!I4961,\"\"))","v":""},{"$f":"IF('TSA Input'!J4961=\"\",\"\",IF(OR('TSA Input'!J4961=\"Yes\",'TSA Input'!J4961=\"Contingent\"),'TSA Input'!C4961,\"\"))","v":""},{"$f":"IF('TSA Input'!J4961=\"\",\"\",IF(OR('TSA Input'!J4961=\"Yes\",'TSA Input'!J4961=\"Contingent\"),'TSA Input'!D4961,\"\"))","v":""},{"$f":"IF('TSA Input'!J4961=\"\",\"\",IF(OR('TSA Input'!J4961=\"Yes\",'TSA Input'!J4961=\"Contingent\"),'TSA Input'!G4961,\"\"))","v":""},{"$f":"IF('TSA Input'!J4961=\"\",\"\",IF(OR('TSA Input'!J4961=\"Yes\",'TSA Input'!J4961=\"Contingent\"),'TSA Input'!F4961,\"\"))","v":""},"",{"$f":"IF('TSA Input'!J4961=\"\",\"\",IF(OR('TSA Input'!J4961=\"Yes\",'TSA Input'!J4961=\"Contingent\"),'TSA Input'!D4961,\"\"))","v":""},{"$f":"IF('TSA Input'!J4961=\"\",\"\",IF(OR('TSA Input'!J4961=\"Yes\",'TSA Input'!J4961=\"Contingent\"),'TSA Input'!G4961,\"\"))","v":""},{"$f":"IF('TSA Input'!J4961=\"\",\"\",IF(OR('TSA Input'!J4961=\"Yes\",'TSA Input'!J4961=\"Contingent\"),'TSA Input'!F4961,\"\"))","v":""},"","Required","Required"]
["",null,{"$f":"IF('TSA Input'!J4962=\"\",\"\",IF(OR('TSA Input'!J4962=\"Yes\",'TSA Input'!J4962=\"Contingent\"),'TSA Input'!B4962,\"Ineligible\"))","v":""},{"$f":"IF('TSA Input'!J4962=\"\",\"\",IF(OR('TSA Input'!J4962=\"Yes\",'TSA Input'!J4962=\"Contingent\"),'TSA Input'!I4962,\"\"))","v":""},{"$f":"IF('TSA Input'!J4962=\"\",\"\",IF(OR('TSA Input'!J4962=\"Yes\",'TSA Input'!J4962=\"Contingent\"),'TSA Input'!C4962,\"\"))","v":""},{"$f":"IF('TSA Input'!J4962=\"\",\"\",IF(OR('TSA Input'!J4962=\"Yes\",'TSA Input'!J4962=\"Contingent\"),'TSA Input'!D4962,\"\"))","v":""},{"$f":"IF('TSA Input'!J4962=\"\",\"\",IF(OR('TSA Input'!J4962=\"Yes\",'TSA Input'!J4962=\"Contingent\"),'TSA Input'!G4962,\"\"))","v":""},{"$f":"IF('TSA Input'!J4962=\"\",\"\",IF(OR('TSA Input'!J4962=\"Yes\",'TSA Input'!J4962=\"Contingent\"),'TSA Input'!F4962,\"\"))","v":""},"",{"$f":"IF('TSA Input'!J4962=\"\",\"\",IF(OR('TSA Input'!J4962=\"Yes\",'TSA Input'!J4962=\"Contingent\"),'TSA Input'!D4962,\"\"))","v":""},{"$f":"IF('TSA Input'!J4962=\"\",\"\",IF(OR('TSA Input'!J4962=\"Yes\",'TSA Input'!J4962=\"Contingent\"),'TSA Input'!G4962,\"\"))","v":""},{"$f":"IF('TSA Input'!J4962=\"\",\"\",IF(OR('TSA Input'!J4962=\"Yes\",'TSA Input'!J4962=\"Contingent\"),'TSA Input'!F4962,\"\"))","v":""},"","Required","Required"]
["",null,{"$f":"IF('TSA Input'!J4963=\"\",\"\",IF(OR('TSA Input'!J4963=\"Yes\",'TSA Input'!J4963=\"Contingent\"),'TSA Input'!B4963,\"Ineligible\"))","v":""},{"$f":"IF('TSA Input'!J4963=\"\",\"\",IF(OR('TSA Input'!J4963=\"Yes\",'TSA Input'!J4963=\"Contingent\"),'TSA Input'!I4963,\"\"))","v":""},{"$f":"IF('TSA Input'!J4963=\"\",\"\",IF(OR('TSA Input'!J4963=\"Yes\",'TSA Input'!J4963=\"Contingent\"),'TSA Input'!C4963,\"\"))","v":""},{"$f":"IF('TSA Input'!J4963=\"\",\"\",IF(OR('TSA Input'!J4963=\"Yes\",'TSA Input'!J4963=\"Contingent\"),'TSA Input'!D4963,\"\"))","v":""},{"$f":"IF('TSA Input'!J4963=\"\",\"\",IF(OR('TSA Input'!J4963=\"Yes\",'TSA Input'!J4963=\"Contingent\"),'TSA Input'!G4963,\"\"))","v":""},{"$f":"IF('TSA Input'!J4963=\"\",\"\",IF(OR('TSA Input'!J4963=\"Yes\",'TSA Input'!J4963=\"Contingent\"),'TSA Input'!F4963,\"\"))","v":""},"",{"$f":"IF('TSA Input'!J4963=\"\",\"\",IF(OR('TSA Input'!J4963=\"Yes\",'TSA Input'!J4963=\"Contingent\"),'TSA Input'!D4963,\"\"))","v":""},{"$f":"IF('TSA Input'!J4963=\"\",\"\",IF(OR('TSA Input'!J4963=\"Yes\",'TSA Input'!J4963=\"Contingent\"),'TSA Input'!G4963,\"\"))","v":""},{"$f":"IF('TSA Input'!J4963=\"\",\"\",IF(OR('TSA Input'!J4963=\"Yes\",'TSA Input'!J4963=\"Contingent\"),'TSA Input'!F4963,\"\"))","v":""},"","Required","Required"]
["",null,{"$f":"IF('TSA Input'!J4964=\"\",\"\",IF(OR('TSA Input'!J4964=\"Yes\",'TSA Input'!J4964=\"Contingent\"),'TSA Input'!B4964,\"Ineligible\"))","v":""},{"$f":"IF('TSA Input'!J4964=\"\",\"\",IF(OR('TSA Input'!J4964=\"Yes\",'TSA Input'!J4964=\"Contingent\"),'TSA Input'!I4964,\"\"))","v":""},{"$f":"IF('TSA Input'!J4964=\"\",\"\",IF(OR('TSA Input'!J4964=\"Yes\",'TSA Input'!J4964=\"Contingent\"),'TSA Input'!C4964,\"\"))","v":""},{"$f":"IF('TSA Input'!J4964=\"\",\"\",IF(OR('TSA Input'!J4964=\"Yes\",'TSA Input'!J4964=\"Contingent\"),'TSA Input'!D4964,\"\"))","v":""},{"$f":"IF('TSA Input'!J4964=\"\",\"\",IF(OR('TSA Input'!J4964=\"Yes\",'TSA Input'!J4964=\"Contingent\"),'TSA Input'!G4964,\"\"))","v":""},{"$f":"IF('TSA Input'!J4964=\"\",\"\",IF(OR('TSA Input'!J4964=\"Yes\",'TSA Input'!J4964=\"Contingent\"),'TSA Input'!F4964,\"\"))","v":""},"",{"$f":"IF('TSA Input'!J4964=\"\",\"\",IF(OR('TSA Input'!J4964=\"Yes\",'TSA Input'!J4964=\"Contingent\"),'TSA Input'!D4964,\"\"))","v":""},{"$f":"IF('TSA Input'!J4964=\"\",\"\",IF(OR('TSA Input'!J4964=\"Yes\",'TSA Input'!J4964=\"Contingent\"),'TSA Input'!G4964,\"\"))","v":""},{"$f":"IF('TSA Input'!J4964=\"\",\"\",IF(OR('TSA Input'!J4964=\"Yes\",'TSA Input'!J4964=\"Contingent\"),'TSA Input'!F4964,\"\"))","v":""},"","Required","Required"]
["",null,{"$f":"IF('TSA Input'!J4965=\"\",\"\",IF(OR('TSA Input'!J4965=\"Yes\",'TSA Input'!J4965=\"Contingent\"),'TSA Input'!B4965,\"Ineligible\"))","v":""},{"$f":"IF('TSA Input'!J4965=\"\",\"\",IF(OR('TSA Input'!J4965=\"Yes\",'TSA Input'!J4965=\"Contingent\"),'TSA Input'!I4965,\"\"))","v":""},{"$f":"IF('TSA Input'!J4965=\"\",\"\",IF(OR('TSA Input'!J4965=\"Yes\",'TSA Input'!J4965=\"Contingent\"),'TSA Input'!C4965,\"\"))","v":""},{"$f":"IF('TSA Input'!J4965=\"\",\"\",IF(OR('TSA Input'!J4965=\"Yes\",'TSA Input'!J4965=\"Contingent\"),'TSA Input'!D4965,\"\"))","v":""},{"$f":"IF('TSA Input'!J4965=\"\",\"\",IF(OR('TSA Input'!J4965=\"Yes\",'TSA Input'!J4965=\"Contingent\"),'TSA Input'!G4965,\"\"))","v":""},{"$f":"IF('TSA Input'!J4965=\"\",\"\",IF(OR('TSA Input'!J4965=\"Yes\",'TSA Input'!J4965=\"Contingent\"),'TSA Input'!F4965,\"\"))","v":""},"",{"$f":"IF('TSA Input'!J4965=\"\",\"\",IF(OR('TSA Input'!J4965=\"Yes\",'TSA Input'!J4965=\"Contingent\"),'TSA Input'!D4965,\"\"))","v":""},{"$f":"IF('TSA Input'!J4965=\"\",\"\",IF(OR('TSA Input'!J4965=\"Yes\",'TSA Input'!J4965=\"Contingent\"),'TSA Input'!G4965,\"\"))","v":""},{"$f":"IF('TSA Input'!J4965=\"\",\"\",IF(OR('TSA Input'!J4965=\"Yes\",'TSA Input'!J4965=\"Contingent\"),'TSA Input'!F4965,\"\"))","v":""},"","Required","Required"]
["",null,{"$f":"IF('TSA Input'!J4966=\"\",\"\",IF(OR('TSA Input'!J4966=\"Yes\",'TSA Input'!J4966=\"Contingent\"),'TSA Input'!B4966,\"Ineligible\"))","v":""},{"$f":"IF('TSA Input'!J4966=\"\",\"\",IF(OR('TSA Input'!J4966=\"Yes\",'TSA Input'!J4966=\"Contingent\"),'TSA Input'!I4966,\"\"))","v":""},{"$f":"IF('TSA Input'!J4966=\"\",\"\",IF(OR('TSA Input'!J4966=\"Yes\",'TSA Input'!J4966=\"Contingent\"),'TSA Input'!C4966,\"\"))","v":""},{"$f":"IF('TSA Input'!J4966=\"\",\"\",IF(OR('TSA Input'!J4966=\"Yes\",'TSA Input'!J4966=\"Contingent\"),'TSA Input'!D4966,\"\"))","v":""},{"$f":"IF('TSA Input'!J4966=\"\",\"\",IF(OR('TSA Input'!J4966=\"Yes\",'TSA Input'!J4966=\"Contingent\"),'TSA Input'!G4966,\"\"))","v":""},{"$f":"IF('TSA Input'!J4966=\"\",\"\",IF(OR('TSA Input'!J4966=\"Yes\",'TSA Input'!J4966=\"Contingent\"),'TSA Input'!F4966,\"\"))","v":""},"",{"$f":"IF('TSA Input'!J4966=\"\",\"\",IF(OR('TSA Input'!J4966=\"Yes\",'TSA Input'!J4966=\"Contingent\"),'TSA Input'!D4966,\"\"))","v":""},{"$f":"IF('TSA Input'!J4966=\"\",\"\",IF(OR('TSA Input'!J4966=\"Yes\",'TSA Input'!J4966=\"Contingent\"),'TSA Input'!G4966,\"\"))","v":""},{"$f":"IF('TSA Input'!J4966=\"\",\"\",IF(OR('TSA Input'!J4966=\"Yes\",'TSA Input'!J4966=\"Contingent\"),'TSA Input'!F4966,\"\"))","v":""},"","Required","Required"]
["",null,{"$f":"IF('TSA Input'!J4967=\"\",\"\",IF(OR('TSA Input'!J4967=\"Yes\",'TSA Input'!J4967=\"Contingent\"),'TSA Input'!B4967,\"Ineligible\"))","v":""},{"$f":"IF('TSA Input'!J4967=\"\",\"\",IF(OR('TSA Input'!J4967=\"Yes\",'TSA Input'!J4967=\"Contingent\"),'TSA Input'!I4967,\"\"))","v":""},{"$f":"IF('TSA Input'!J4967=\"\",\"\",IF(OR('TSA Input'!J4967=\"Yes\",'TSA Input'!J4967=\"Contingent\"),'TSA Input'!C4967,\"\"))","v":""},{"$f":"IF('TSA Input'!J4967=\"\",\"\",IF(OR('TSA Input'!J4967=\"Yes\",'TSA Input'!J4967=\"Contingent\"),'TSA Input'!D4967,\"\"))","v":""},{"$f":"IF('TSA Input'!J4967=\"\",\"\",IF(OR('TSA Input'!J4967=\"Yes\",'TSA Input'!J4967=\"Contingent\"),'TSA Input'!G4967,\"\"))","v":""},{"$f":"IF('TSA Input'!J4967=\"\",\"\",IF(OR('TSA Input'!J4967=\"Yes\",'TSA Input'!J4967=\"Contingent\"),'TSA Input'!F4967,\"\"))","v":""},"",{"$f":"IF('TSA Input'!J4967=\"\",\"\",IF(OR('TSA Input'!J4967=\"Yes\",'TSA Input'!J4967=\"Contingent\"),'TSA Input'!D4967,\"\"))","v":""},{"$f":"IF('TSA Input'!J4967=\"\",\"\",IF(OR('TSA Input'!J4967=\"Yes\",'TSA Input'!J4967=\"Contingent\"),'TSA Input'!G4967,\"\"))","v":""},{"$f":"IF('TSA Input'!J4967=\"\",\"\",IF(OR('TSA Input'!J4967=\"Yes\",'TSA Input'!J4967=\"Contingent\"),'TSA Input'!F4967,\"\"))","v":""},"","Required","Required"]
["",null,{"$f":"IF('TSA Input'!J4968=\"\",\"\",IF(OR('TSA Input'!J4968=\"Yes\",'TSA Input'!J4968=\"Contingent\"),'TSA Input'!B4968,\"Ineligible\"))","v":""},{"$f":"IF('TSA Input'!J4968=\"\",\"\",IF(OR('TSA Input'!J4968=\"Yes\",'TSA Input'!J4968=\"Contingent\"),'TSA Input'!I4968,\"\"))","v":""},{"$f":"IF('TSA Input'!J4968=\"\",\"\",IF(OR('TSA Input'!J4968=\"Yes\",'TSA Input'!J4968=\"Contingent\"),'TSA Input'!C4968,\"\"))","v":""},{"$f":"IF('TSA Input'!J4968=\"\",\"\",IF(OR('TSA Input'!J4968=\"Yes\",'TSA Input'!J4968=\"Contingent\"),'TSA Input'!D4968,\"\"))","v":""},{"$f":"IF('TSA Input'!J4968=\"\",\"\",IF(OR('TSA Input'!J4968=\"Yes\",'TSA Input'!J4968=\"Contingent\"),'TSA Input'!G4968,\"\"))","v":""},{"$f":"IF('TSA Input'!J4968=\"\",\"\",IF(OR('TSA Input'!J4968=\"Yes\",'TSA Input'!J4968=\"Contingent\"),'TSA Input'!F4968,\"\"))","v":""},"",{"$f":"IF('TSA Input'!J4968=\"\",\"\",IF(OR('TSA Input'!J4968=\"Yes\",'TSA Input'!J4968=\"Contingent\"),'TSA Input'!D4968,\"\"))","v":""},{"$f":"IF('TSA Input'!J4968=\"\",\"\",IF(OR('TSA Input'!J4968=\"Yes\",'TSA Input'!J4968=\"Contingent\"),'TSA Input'!G4968,\"\"))","v":""},{"$f":"IF('TSA Input'!J4968=\"\",\"\",IF(OR('TSA Input'!J4968=\"Yes\",'TSA Input'!J4968=\"Contingent\"),'TSA Input'!F4968,\"\"))","v":""},"","Required","Required"]
["",null,{"$f":"IF('TSA Input'!J4969=\"\",\"\",IF(OR('TSA Input'!J4969=\"Yes\",'TSA Input'!J4969=\"Contingent\"),'TSA Input'!B4969,\"Ineligible\"))","v":""},{"$f":"IF('TSA Input'!J4969=\"\",\"\",IF(OR('TSA Input'!J4969=\"Yes\",'TSA Input'!J4969=\"Contingent\"),'TSA Input'!I4969,\"\"))","v":""},{"$f":"IF('TSA Input'!J4969=\"\",\"\",IF(OR('TSA Input'!J4969=\"Yes\",'TSA Input'!J4969=\"Contingent\"),'TSA Input'!C4969,\"\"))","v":""},{"$f":"IF('TSA Input'!J4969=\"\",\"\",IF(OR('TSA Input'!J4969=\"Yes\",'TSA Input'!J4969=\"Contingent\"),'TSA Input'!D4969,\"\"))","v":""},{"$f":"IF('TSA Input'!J4969=\"\",\"\",IF(OR('TSA Input'!J4969=\"Yes\",'TSA Input'!J4969=\"Contingent\"),'TSA Input'!G4969,\"\"))","v":""},{"$f":"IF('TSA Input'!J4969=\"\",\"\",IF(OR('TSA Input'!J4969=\"Yes\",'TSA Input'!J4969=\"Contingent\"),'TSA Input'!F4969,\"\"))","v":""},"",{"$f":"IF('TSA Input'!J4969=\"\",\"\",IF(OR('TSA Input'!J4969=\"Yes\",'TSA Input'!J4969=\"Contingent\"),'TSA Input'!D4969,\"\"))","v":""},{"$f":"IF('TSA Input'!J4969=\"\",\"\",IF(OR('TSA Input'!J4969=\"Yes\",'TSA Input'!J4969=\"Contingent\"),'TSA Input'!G4969,\"\"))","v":""},{"$f":"IF('TSA Input'!J4969=\"\",\"\",IF(OR('TSA Input'!J4969=\"Yes\",'TSA Input'!J4969=\"Contingent\"),'TSA Input'!F4969,\"\"))","v":""},"","Required","Required"]
["",null,{"$f":"IF('TSA Input'!J4970=\"\",\"\",IF(OR('TSA Input'!J4970=\"Yes\",'TSA Input'!J4970=\"Contingent\"),'TSA Input'!B4970,\"Ineligible\"))","v":""},{"$f":"IF('TSA Input'!J4970=\"\",\"\",IF(OR('TSA Input'!J4970=\"Yes\",'TSA Input'!J4970=\"Contingent\"),'TSA Input'!I4970,\"\"))","v":""},{"$f":"IF('TSA Input'!J4970=\"\",\"\",IF(OR('TSA Input'!J4970=\"Yes\",'TSA Input'!J4970=\"Contingent\"),'TSA Input'!C4970,\"\"))","v":""},{"$f":"IF('TSA Input'!J4970=\"\",\"\",IF(OR('TSA Input'!J4970=\"Yes\",'TSA Input'!J4970=\"Contingent\"),'TSA Input'!D4970,\"\"))","v":""},{"$f":"IF('TSA Input'!J4970=\"\",\"\",IF(OR('TSA Input'!J4970=\"Yes\",'TSA Input'!J4970=\"Contingent\"),'TSA Input'!G4970,\"\"))","v":""},{"$f":"IF('TSA Input'!J4970=\"\",\"\",IF(OR('TSA Input'!J4970=\"Yes\",'TSA Input'!J4970=\"Contingent\"),'TSA Input'!F4970,\"\"))","v":""},"",{"$f":"IF('TSA Input'!J4970=\"\",\"\",IF(OR('TSA Input'!J4970=\"Yes\",'TSA Input'!J4970=\"Contingent\"),'TSA Input'!D4970,\"\"))","v":""},{"$f":"IF('TSA Input'!J4970=\"\",\"\",IF(OR('TSA Input'!J4970=\"Yes\",'TSA Input'!J4970=\"Contingent\"),'TSA Input'!G4970,\"\"))","v":""},{"$f":"IF('TSA Input'!J4970=\"\",\"\",IF(OR('TSA Input'!J4970=\"Yes\",'TSA Input'!J4970=\"Contingent\"),'TSA Input'!F4970,\"\"))","v":""},"","Required","Required"]
["",null,{"$f":"IF('TSA Input'!J4971=\"\",\"\",IF(OR('TSA Input'!J4971=\"Yes\",'TSA Input'!J4971=\"Contingent\"),'TSA Input'!B4971,\"Ineligible\"))","v":""},{"$f":"IF('TSA Input'!J4971=\"\",\"\",IF(OR('TSA Input'!J4971=\"Yes\",'TSA Input'!J4971=\"Contingent\"),'TSA Input'!I4971,\"\"))","v":""},{"$f":"IF('TSA Input'!J4971=\"\",\"\",IF(OR('TSA Input'!J4971=\"Yes\",'TSA Input'!J4971=\"Contingent\"),'TSA Input'!C4971,\"\"))","v":""},{"$f":"IF('TSA Input'!J4971=\"\",\"\",IF(OR('TSA Input'!J4971=\"Yes\",'TSA Input'!J4971=\"Contingent\"),'TSA Input'!D4971,\"\"))","v":""},{"$f":"IF('TSA Input'!J4971=\"\",\"\",IF(OR('TSA Input'!J4971=\"Yes\",'TSA Input'!J4971=\"Contingent\"),'TSA Input'!G4971,\"\"))","v":""},{"$f":"IF('TSA Input'!J4971=\"\",\"\",IF(OR('TSA Input'!J4971=\"Yes\",'TSA Input'!J4971=\"Contingent\"),'TSA Input'!F4971,\"\"))","v":""},"",{"$f":"IF('TSA Input'!J4971=\"\",\"\",IF(OR('TSA Input'!J4971=\"Yes\",'TSA Input'!J4971=\"Contingent\"),'TSA Input'!D4971,\"\"))","v":""},{"$f":"IF('TSA Input'!J4971=\"\",\"\",IF(OR('TSA Input'!J4971=\"Yes\",'TSA Input'!J4971=\"Contingent\"),'TSA Input'!G4971,\"\"))","v":""},{"$f":"IF('TSA Input'!J4971=\"\",\"\",IF(OR('TSA Input'!J4971=\"Yes\",'TSA Input'!J4971=\"Contingent\"),'TSA Input'!F4971,\"\"))","v":""},"","Required","Required"]
["",null,{"$f":"IF('TSA Input'!J4972=\"\",\"\",IF(OR('TSA Input'!J4972=\"Yes\",'TSA Input'!J4972=\"Contingent\"),'TSA Input'!B4972,\"Ineligible\"))","v":""},{"$f":"IF('TSA Input'!J4972=\"\",\"\",IF(OR('TSA Input'!J4972=\"Yes\",'TSA Input'!J4972=\"Contingent\"),'TSA Input'!I4972,\"\"))","v":""},{"$f":"IF('TSA Input'!J4972=\"\",\"\",IF(OR('TSA Input'!J4972=\"Yes\",'TSA Input'!J4972=\"Contingent\"),'TSA Input'!C4972,\"\"))","v":""},{"$f":"IF('TSA Input'!J4972=\"\",\"\",IF(OR('TSA Input'!J4972=\"Yes\",'TSA Input'!J4972=\"Contingent\"),'TSA Input'!D4972,\"\"))","v":""},{"$f":"IF('TSA Input'!J4972=\"\",\"\",IF(OR('TSA Input'!J4972=\"Yes\",'TSA Input'!J4972=\"Contingent\"),'TSA Input'!G4972,\"\"))","v":""},{"$f":"IF('TSA Input'!J4972=\"\",\"\",IF(OR('TSA Input'!J4972=\"Yes\",'TSA Input'!J4972=\"Contingent\"),'TSA Input'!F4972,\"\"))","v":""},"",{"$f":"IF('TSA Input'!J4972=\"\",\"\",IF(OR('TSA Input'!J4972=\"Yes\",'TSA Input'!J4972=\"Contingent\"),'TSA Input'!D4972,\"\"))","v":""},{"$f":"IF('TSA Input'!J4972=\"\",\"\",IF(OR('TSA Input'!J4972=\"Yes\",'TSA Input'!J4972=\"Contingent\"),'TSA Input'!G4972,\"\"))","v":""},{"$f":"IF('TSA Input'!J4972=\"\",\"\",IF(OR('TSA Input'!J4972=\"Yes\",'TSA Input'!J4972=\"Contingent\"),'TSA Input'!F4972,\"\"))","v":""},"","Required","Required"]
["",null,{"$f":"IF('TSA Input'!J4973=\"\",\"\",IF(OR('TSA Input'!J4973=\"Yes\",'TSA Input'!J4973=\"Contingent\"),'TSA Input'!B4973,\"Ineligible\"))","v":""},{"$f":"IF('TSA Input'!J4973=\"\",\"\",IF(OR('TSA Input'!J4973=\"Yes\",'TSA Input'!J4973=\"Contingent\"),'TSA Input'!I4973,\"\"))","v":""},{"$f":"IF('TSA Input'!J4973=\"\",\"\",IF(OR('TSA Input'!J4973=\"Yes\",'TSA Input'!J4973=\"Contingent\"),'TSA Input'!C4973,\"\"))","v":""},{"$f":"IF('TSA Input'!J4973=\"\",\"\",IF(OR('TSA Input'!J4973=\"Yes\",'TSA Input'!J4973=\"Contingent\"),'TSA Input'!D4973,\"\"))","v":""},{"$f":"IF('TSA Input'!J4973=\"\",\"\",IF(OR('TSA Input'!J4973=\"Yes\",'TSA Input'!J4973=\"Contingent\"),'TSA Input'!G4973,\"\"))","v":""},{"$f":"IF('TSA Input'!J4973=\"\",\"\",IF(OR('TSA Input'!J4973=\"Yes\",'TSA Input'!J4973=\"Contingent\"),'TSA Input'!F4973,\"\"))","v":""},"",{"$f":"IF('TSA Input'!J4973=\"\",\"\",IF(OR('TSA Input'!J4973=\"Yes\",'TSA Input'!J4973=\"Contingent\"),'TSA Input'!D4973,\"\"))","v":""},{"$f":"IF('TSA Input'!J4973=\"\",\"\",IF(OR('TSA Input'!J4973=\"Yes\",'TSA Input'!J4973=\"Contingent\"),'TSA Input'!G4973,\"\"))","v":""},{"$f":"IF('TSA Input'!J4973=\"\",\"\",IF(OR('TSA Input'!J4973=\"Yes\",'TSA Input'!J4973=\"Contingent\"),'TSA Input'!F4973,\"\"))","v":""},"","Required","Required"]
["",null,{"$f":"IF('TSA Input'!J4974=\"\",\"\",IF(OR('TSA Input'!J4974=\"Yes\",'TSA Input'!J4974=\"Contingent\"),'TSA Input'!B4974,\"Ineligible\"))","v":""},{"$f":"IF('TSA Input'!J4974=\"\",\"\",IF(OR('TSA Input'!J4974=\"Yes\",'TSA Input'!J4974=\"Contingent\"),'TSA Input'!I4974,\"\"))","v":""},{"$f":"IF('TSA Input'!J4974=\"\",\"\",IF(OR('TSA Input'!J4974=\"Yes\",'TSA Input'!J4974=\"Contingent\"),'TSA Input'!C4974,\"\"))","v":""},{"$f":"IF('TSA Input'!J4974=\"\",\"\",IF(OR('TSA Input'!J4974=\"Yes\",'TSA Input'!J4974=\"Contingent\"),'TSA Input'!D4974,\"\"))","v":""},{"$f":"IF('TSA Input'!J4974=\"\",\"\",IF(OR('TSA Input'!J4974=\"Yes\",'TSA Input'!J4974=\"Contingent\"),'TSA Input'!G4974,\"\"))","v":""},{"$f":"IF('TSA Input'!J4974=\"\",\"\",IF(OR('TSA Input'!J4974=\"Yes\",'TSA Input'!J4974=\"Contingent\"),'TSA Input'!F4974,\"\"))","v":""},"",{"$f":"IF('TSA Input'!J4974=\"\",\"\",IF(OR('TSA Input'!J4974=\"Yes\",'TSA Input'!J4974=\"Contingent\"),'TSA Input'!D4974,\"\"))","v":""},{"$f":"IF('TSA Input'!J4974=\"\",\"\",IF(OR('TSA Input'!J4974=\"Yes\",'TSA Input'!J4974=\"Contingent\"),'TSA Input'!G4974,\"\"))","v":""},{"$f":"IF('TSA Input'!J4974=\"\",\"\",IF(OR('TSA Input'!J4974=\"Yes\",'TSA Input'!J4974=\"Contingent\"),'TSA Input'!F4974,\"\"))","v":""},"","Required","Required"]
["",null,{"$f":"IF('TSA Input'!J4975=\"\",\"\",IF(OR('TSA Input'!J4975=\"Yes\",'TSA Input'!J4975=\"Contingent\"),'TSA Input'!B4975,\"Ineligible\"))","v":""},{"$f":"IF('TSA Input'!J4975=\"\",\"\",IF(OR('TSA Input'!J4975=\"Yes\",'TSA Input'!J4975=\"Contingent\"),'TSA Input'!I4975,\"\"))","v":""},{"$f":"IF('TSA Input'!J4975=\"\",\"\",IF(OR('TSA Input'!J4975=\"Yes\",'TSA Input'!J4975=\"Contingent\"),'TSA Input'!C4975,\"\"))","v":""},{"$f":"IF('TSA Input'!J4975=\"\",\"\",IF(OR('TSA Input'!J4975=\"Yes\",'TSA Input'!J4975=\"Contingent\"),'TSA Input'!D4975,\"\"))","v":""},{"$f":"IF('TSA Input'!J4975=\"\",\"\",IF(OR('TSA Input'!J4975=\"Yes\",'TSA Input'!J4975=\"Contingent\"),'TSA Input'!G4975,\"\"))","v":""},{"$f":"IF('TSA Input'!J4975=\"\",\"\",IF(OR('TSA Input'!J4975=\"Yes\",'TSA Input'!J4975=\"Contingent\"),'TSA Input'!F4975,\"\"))","v":""},"",{"$f":"IF('TSA Input'!J4975=\"\",\"\",IF(OR('TSA Input'!J4975=\"Yes\",'TSA Input'!J4975=\"Contingent\"),'TSA Input'!D4975,\"\"))","v":""},{"$f":"IF('TSA Input'!J4975=\"\",\"\",IF(OR('TSA Input'!J4975=\"Yes\",'TSA Input'!J4975=\"Contingent\"),'TSA Input'!G4975,\"\"))","v":""},{"$f":"IF('TSA Input'!J4975=\"\",\"\",IF(OR('TSA Input'!J4975=\"Yes\",'TSA Input'!J4975=\"Contingent\"),'TSA Input'!F4975,\"\"))","v":""},"","Required","Required"]
["",null,{"$f":"IF('TSA Input'!J4976=\"\",\"\",IF(OR('TSA Input'!J4976=\"Yes\",'TSA Input'!J4976=\"Contingent\"),'TSA Input'!B4976,\"Ineligible\"))","v":""},{"$f":"IF('TSA Input'!J4976=\"\",\"\",IF(OR('TSA Input'!J4976=\"Yes\",'TSA Input'!J4976=\"Contingent\"),'TSA Input'!I4976,\"\"))","v":""},{"$f":"IF('TSA Input'!J4976=\"\",\"\",IF(OR('TSA Input'!J4976=\"Yes\",'TSA Input'!J4976=\"Contingent\"),'TSA Input'!C4976,\"\"))","v":""},{"$f":"IF('TSA Input'!J4976=\"\",\"\",IF(OR('TSA Input'!J4976=\"Yes\",'TSA Input'!J4976=\"Contingent\"),'TSA Input'!D4976,\"\"))","v":""},{"$f":"IF('TSA Input'!J4976=\"\",\"\",IF(OR('TSA Input'!J4976=\"Yes\",'TSA Input'!J4976=\"Contingent\"),'TSA Input'!G4976,\"\"))","v":""},{"$f":"IF('TSA Input'!J4976=\"\",\"\",IF(OR('TSA Input'!J4976=\"Yes\",'TSA Input'!J4976=\"Contingent\"),'TSA Input'!F4976,\"\"))","v":""},"",{"$f":"IF('TSA Input'!J4976=\"\",\"\",IF(OR('TSA Input'!J4976=\"Yes\",'TSA Input'!J4976=\"Contingent\"),'TSA Input'!D4976,\"\"))","v":""},{"$f":"IF('TSA Input'!J4976=\"\",\"\",IF(OR('TSA Input'!J4976=\"Yes\",'TSA Input'!J4976=\"Contingent\"),'TSA Input'!G4976,\"\"))","v":""},{"$f":"IF('TSA Input'!J4976=\"\",\"\",IF(OR('TSA Input'!J4976=\"Yes\",'TSA Input'!J4976=\"Contingent\"),'TSA Input'!F4976,\"\"))","v":""},"","Required","Required"]
["",null,{"$f":"IF('TSA Input'!J4977=\"\",\"\",IF(OR('TSA Input'!J4977=\"Yes\",'TSA Input'!J4977=\"Contingent\"),'TSA Input'!B4977,\"Ineligible\"))","v":""},{"$f":"IF('TSA Input'!J4977=\"\",\"\",IF(OR('TSA Input'!J4977=\"Yes\",'TSA Input'!J4977=\"Contingent\"),'TSA Input'!I4977,\"\"))","v":""},{"$f":"IF('TSA Input'!J4977=\"\",\"\",IF(OR('TSA Input'!J4977=\"Yes\",'TSA Input'!J4977=\"Contingent\"),'TSA Input'!C4977,\"\"))","v":""},{"$f":"IF('TSA Input'!J4977=\"\",\"\",IF(OR('TSA Input'!J4977=\"Yes\",'TSA Input'!J4977=\"Contingent\"),'TSA Input'!D4977,\"\"))","v":""},{"$f":"IF('TSA Input'!J4977=\"\",\"\",IF(OR('TSA Input'!J4977=\"Yes\",'TSA Input'!J4977=\"Contingent\"),'TSA Input'!G4977,\"\"))","v":""},{"$f":"IF('TSA Input'!J4977=\"\",\"\",IF(OR('TSA Input'!J4977=\"Yes\",'TSA Input'!J4977=\"Contingent\"),'TSA Input'!F4977,\"\"))","v":""},"",{"$f":"IF('TSA Input'!J4977=\"\",\"\",IF(OR('TSA Input'!J4977=\"Yes\",'TSA Input'!J4977=\"Contingent\"),'TSA Input'!D4977,\"\"))","v":""},{"$f":"IF('TSA Input'!J4977=\"\",\"\",IF(OR('TSA Input'!J4977=\"Yes\",'TSA Input'!J4977=\"Contingent\"),'TSA Input'!G4977,\"\"))","v":""},{"$f":"IF('TSA Input'!J4977=\"\",\"\",IF(OR('TSA Input'!J4977=\"Yes\",'TSA Input'!J4977=\"Contingent\"),'TSA Input'!F4977,\"\"))","v":""},"","Required","Required"]
["",null,{"$f":"IF('TSA Input'!J4978=\"\",\"\",IF(OR('TSA Input'!J4978=\"Yes\",'TSA Input'!J4978=\"Contingent\"),'TSA Input'!B4978,\"Ineligible\"))","v":""},{"$f":"IF('TSA Input'!J4978=\"\",\"\",IF(OR('TSA Input'!J4978=\"Yes\",'TSA Input'!J4978=\"Contingent\"),'TSA Input'!I4978,\"\"))","v":""},{"$f":"IF('TSA Input'!J4978=\"\",\"\",IF(OR('TSA Input'!J4978=\"Yes\",'TSA Input'!J4978=\"Contingent\"),'TSA Input'!C4978,\"\"))","v":""},{"$f":"IF('TSA Input'!J4978=\"\",\"\",IF(OR('TSA Input'!J4978=\"Yes\",'TSA Input'!J4978=\"Contingent\"),'TSA Input'!D4978,\"\"))","v":""},{"$f":"IF('TSA Input'!J4978=\"\",\"\",IF(OR('TSA Input'!J4978=\"Yes\",'TSA Input'!J4978=\"Contingent\"),'TSA Input'!G4978,\"\"))","v":""},{"$f":"IF('TSA Input'!J4978=\"\",\"\",IF(OR('TSA Input'!J4978=\"Yes\",'TSA Input'!J4978=\"Contingent\"),'TSA Input'!F4978,\"\"))","v":""},"",{"$f":"IF('TSA Input'!J4978=\"\",\"\",IF(OR('TSA Input'!J4978=\"Yes\",'TSA Input'!J4978=\"Contingent\"),'TSA Input'!D4978,\"\"))","v":""},{"$f":"IF('TSA Input'!J4978=\"\",\"\",IF(OR('TSA Input'!J4978=\"Yes\",'TSA Input'!J4978=\"Contingent\"),'TSA Input'!G4978,\"\"))","v":""},{"$f":"IF('TSA Input'!J4978=\"\",\"\",IF(OR('TSA Input'!J4978=\"Yes\",'TSA Input'!J4978=\"Contingent\"),'TSA Input'!F4978,\"\"))","v":""},"","Required","Required"]
["",null,{"$f":"IF('TSA Input'!J4979=\"\",\"\",IF(OR('TSA Input'!J4979=\"Yes\",'TSA Input'!J4979=\"Contingent\"),'TSA Input'!B4979,\"Ineligible\"))","v":""},{"$f":"IF('TSA Input'!J4979=\"\",\"\",IF(OR('TSA Input'!J4979=\"Yes\",'TSA Input'!J4979=\"Contingent\"),'TSA Input'!I4979,\"\"))","v":""},{"$f":"IF('TSA Input'!J4979=\"\",\"\",IF(OR('TSA Input'!J4979=\"Yes\",'TSA Input'!J4979=\"Contingent\"),'TSA Input'!C4979,\"\"))","v":""},{"$f":"IF('TSA Input'!J4979=\"\",\"\",IF(OR('TSA Input'!J4979=\"Yes\",'TSA Input'!J4979=\"Contingent\"),'TSA Input'!D4979,\"\"))","v":""},{"$f":"IF('TSA Input'!J4979=\"\",\"\",IF(OR('TSA Input'!J4979=\"Yes\",'TSA Input'!J4979=\"Contingent\"),'TSA Input'!G4979,\"\"))","v":""},{"$f":"IF('TSA Input'!J4979=\"\",\"\",IF(OR('TSA Input'!J4979=\"Yes\",'TSA Input'!J4979=\"Contingent\"),'TSA Input'!F4979,\"\"))","v":""},"",{"$f":"IF('TSA Input'!J4979=\"\",\"\",IF(OR('TSA Input'!J4979=\"Yes\",'TSA Input'!J4979=\"Contingent\"),'TSA Input'!D4979,\"\"))","v":""},{"$f":"IF('TSA Input'!J4979=\"\",\"\",IF(OR('TSA Input'!J4979=\"Yes\",'TSA Input'!J4979=\"Contingent\"),'TSA Input'!G4979,\"\"))","v":""},{"$f":"IF('TSA Input'!J4979=\"\",\"\",IF(OR('TSA Input'!J4979=\"Yes\",'TSA Input'!J4979=\"Contingent\"),'TSA Input'!F4979,\"\"))","v":""},"","Required","Required"]
["",null,{"$f":"IF('TSA Input'!J4980=\"\",\"\",IF(OR('TSA Input'!J4980=\"Yes\",'TSA Input'!J4980=\"Contingent\"),'TSA Input'!B4980,\"Ineligible\"))","v":""},{"$f":"IF('TSA Input'!J4980=\"\",\"\",IF(OR('TSA Input'!J4980=\"Yes\",'TSA Input'!J4980=\"Contingent\"),'TSA Input'!I4980,\"\"))","v":""},{"$f":"IF('TSA Input'!J4980=\"\",\"\",IF(OR('TSA Input'!J4980=\"Yes\",'TSA Input'!J4980=\"Contingent\"),'TSA Input'!C4980,\"\"))","v":""},{"$f":"IF('TSA Input'!J4980=\"\",\"\",IF(OR('TSA Input'!J4980=\"Yes\",'TSA Input'!J4980=\"Contingent\"),'TSA Input'!D4980,\"\"))","v":""},{"$f":"IF('TSA Input'!J4980=\"\",\"\",IF(OR('TSA Input'!J4980=\"Yes\",'TSA Input'!J4980=\"Contingent\"),'TSA Input'!G4980,\"\"))","v":""},{"$f":"IF('TSA Input'!J4980=\"\",\"\",IF(OR('TSA Input'!J4980=\"Yes\",'TSA Input'!J4980=\"Contingent\"),'TSA Input'!F4980,\"\"))","v":""},"",{"$f":"IF('TSA Input'!J4980=\"\",\"\",IF(OR('TSA Input'!J4980=\"Yes\",'TSA Input'!J4980=\"Contingent\"),'TSA Input'!D4980,\"\"))","v":""},{"$f":"IF('TSA Input'!J4980=\"\",\"\",IF(OR('TSA Input'!J4980=\"Yes\",'TSA Input'!J4980=\"Contingent\"),'TSA Input'!G4980,\"\"))","v":""},{"$f":"IF('TSA Input'!J4980=\"\",\"\",IF(OR('TSA Input'!J4980=\"Yes\",'TSA Input'!J4980=\"Contingent\"),'TSA Input'!F4980,\"\"))","v":""},"","Required","Required"]
["",null,{"$f":"IF('TSA Input'!J4981=\"\",\"\",IF(OR('TSA Input'!J4981=\"Yes\",'TSA Input'!J4981=\"Contingent\"),'TSA Input'!B4981,\"Ineligible\"))","v":""},{"$f":"IF('TSA Input'!J4981=\"\",\"\",IF(OR('TSA Input'!J4981=\"Yes\",'TSA Input'!J4981=\"Contingent\"),'TSA Input'!I4981,\"\"))","v":""},{"$f":"IF('TSA Input'!J4981=\"\",\"\",IF(OR('TSA Input'!J4981=\"Yes\",'TSA Input'!J4981=\"Contingent\"),'TSA Input'!C4981,\"\"))","v":""},{"$f":"IF('TSA Input'!J4981=\"\",\"\",IF(OR('TSA Input'!J4981=\"Yes\",'TSA Input'!J4981=\"Contingent\"),'TSA Input'!D4981,\"\"))","v":""},{"$f":"IF('TSA Input'!J4981=\"\",\"\",IF(OR('TSA Input'!J4981=\"Yes\",'TSA Input'!J4981=\"Contingent\"),'TSA Input'!G4981,\"\"))","v":""},{"$f":"IF('TSA Input'!J4981=\"\",\"\",IF(OR('TSA Input'!J4981=\"Yes\",'TSA Input'!J4981=\"Contingent\"),'TSA Input'!F4981,\"\"))","v":""},"",{"$f":"IF('TSA Input'!J4981=\"\",\"\",IF(OR('TSA Input'!J4981=\"Yes\",'TSA Input'!J4981=\"Contingent\"),'TSA Input'!D4981,\"\"))","v":""},{"$f":"IF('TSA Input'!J4981=\"\",\"\",IF(OR('TSA Input'!J4981=\"Yes\",'TSA Input'!J4981=\"Contingent\"),'TSA Input'!G4981,\"\"))","v":""},{"$f":"IF('TSA Input'!J4981=\"\",\"\",IF(OR('TSA Input'!J4981=\"Yes\",'TSA Input'!J4981=\"Contingent\"),'TSA Input'!F4981,\"\"))","v":""},"","Required","Required"]
["",null,{"$f":"IF('TSA Input'!J4982=\"\",\"\",IF(OR('TSA Input'!J4982=\"Yes\",'TSA Input'!J4982=\"Contingent\"),'TSA Input'!B4982,\"Ineligible\"))","v":""},{"$f":"IF('TSA Input'!J4982=\"\",\"\",IF(OR('TSA Input'!J4982=\"Yes\",'TSA Input'!J4982=\"Contingent\"),'TSA Input'!I4982,\"\"))","v":""},{"$f":"IF('TSA Input'!J4982=\"\",\"\",IF(OR('TSA Input'!J4982=\"Yes\",'TSA Input'!J4982=\"Contingent\"),'TSA Input'!C4982,\"\"))","v":""},{"$f":"IF('TSA Input'!J4982=\"\",\"\",IF(OR('TSA Input'!J4982=\"Yes\",'TSA Input'!J4982=\"Contingent\"),'TSA Input'!D4982,\"\"))","v":""},{"$f":"IF('TSA Input'!J4982=\"\",\"\",IF(OR('TSA Input'!J4982=\"Yes\",'TSA Input'!J4982=\"Contingent\"),'TSA Input'!G4982,\"\"))","v":""},{"$f":"IF('TSA Input'!J4982=\"\",\"\",IF(OR('TSA Input'!J4982=\"Yes\",'TSA Input'!J4982=\"Contingent\"),'TSA Input'!F4982,\"\"))","v":""},"",{"$f":"IF('TSA Input'!J4982=\"\",\"\",IF(OR('TSA Input'!J4982=\"Yes\",'TSA Input'!J4982=\"Contingent\"),'TSA Input'!D4982,\"\"))","v":""},{"$f":"IF('TSA Input'!J4982=\"\",\"\",IF(OR('TSA Input'!J4982=\"Yes\",'TSA Input'!J4982=\"Contingent\"),'TSA Input'!G4982,\"\"))","v":""},{"$f":"IF('TSA Input'!J4982=\"\",\"\",IF(OR('TSA Input'!J4982=\"Yes\",'TSA Input'!J4982=\"Contingent\"),'TSA Input'!F4982,\"\"))","v":""},"","Required","Required"]
["",null,{"$f":"IF('TSA Input'!J4983=\"\",\"\",IF(OR('TSA Input'!J4983=\"Yes\",'TSA Input'!J4983=\"Contingent\"),'TSA Input'!B4983,\"Ineligible\"))","v":""},{"$f":"IF('TSA Input'!J4983=\"\",\"\",IF(OR('TSA Input'!J4983=\"Yes\",'TSA Input'!J4983=\"Contingent\"),'TSA Input'!I4983,\"\"))","v":""},{"$f":"IF('TSA Input'!J4983=\"\",\"\",IF(OR('TSA Input'!J4983=\"Yes\",'TSA Input'!J4983=\"Contingent\"),'TSA Input'!C4983,\"\"))","v":""},{"$f":"IF('TSA Input'!J4983=\"\",\"\",IF(OR('TSA Input'!J4983=\"Yes\",'TSA Input'!J4983=\"Contingent\"),'TSA Input'!D4983,\"\"))","v":""},{"$f":"IF('TSA Input'!J4983=\"\",\"\",IF(OR('TSA Input'!J4983=\"Yes\",'TSA Input'!J4983=\"Contingent\"),'TSA Input'!G4983,\"\"))","v":""},{"$f":"IF('TSA Input'!J4983=\"\",\"\",IF(OR('TSA Input'!J4983=\"Yes\",'TSA Input'!J4983=\"Contingent\"),'TSA Input'!F4983,\"\"))","v":""},"",{"$f":"IF('TSA Input'!J4983=\"\",\"\",IF(OR('TSA Input'!J4983=\"Yes\",'TSA Input'!J4983=\"Contingent\"),'TSA Input'!D4983,\"\"))","v":""},{"$f":"IF('TSA Input'!J4983=\"\",\"\",IF(OR('TSA Input'!J4983=\"Yes\",'TSA Input'!J4983=\"Contingent\"),'TSA Input'!G4983,\"\"))","v":""},{"$f":"IF('TSA Input'!J4983=\"\",\"\",IF(OR('TSA Input'!J4983=\"Yes\",'TSA Input'!J4983=\"Contingent\"),'TSA Input'!F4983,\"\"))","v":""},"","Required","Required"]
["",null,{"$f":"IF('TSA Input'!J4984=\"\",\"\",IF(OR('TSA Input'!J4984=\"Yes\",'TSA Input'!J4984=\"Contingent\"),'TSA Input'!B4984,\"Ineligible\"))","v":""},{"$f":"IF('TSA Input'!J4984=\"\",\"\",IF(OR('TSA Input'!J4984=\"Yes\",'TSA Input'!J4984=\"Contingent\"),'TSA Input'!I4984,\"\"))","v":""},{"$f":"IF('TSA Input'!J4984=\"\",\"\",IF(OR('TSA Input'!J4984=\"Yes\",'TSA Input'!J4984=\"Contingent\"),'TSA Input'!C4984,\"\"))","v":""},{"$f":"IF('TSA Input'!J4984=\"\",\"\",IF(OR('TSA Input'!J4984=\"Yes\",'TSA Input'!J4984=\"Contingent\"),'TSA Input'!D4984,\"\"))","v":""},{"$f":"IF('TSA Input'!J4984=\"\",\"\",IF(OR('TSA Input'!J4984=\"Yes\",'TSA Input'!J4984=\"Contingent\"),'TSA Input'!G4984,\"\"))","v":""},{"$f":"IF('TSA Input'!J4984=\"\",\"\",IF(OR('TSA Input'!J4984=\"Yes\",'TSA Input'!J4984=\"Contingent\"),'TSA Input'!F4984,\"\"))","v":""},"",{"$f":"IF('TSA Input'!J4984=\"\",\"\",IF(OR('TSA Input'!J4984=\"Yes\",'TSA Input'!J4984=\"Contingent\"),'TSA Input'!D4984,\"\"))","v":""},{"$f":"IF('TSA Input'!J4984=\"\",\"\",IF(OR('TSA Input'!J4984=\"Yes\",'TSA Input'!J4984=\"Contingent\"),'TSA Input'!G4984,\"\"))","v":""},{"$f":"IF('TSA Input'!J4984=\"\",\"\",IF(OR('TSA Input'!J4984=\"Yes\",'TSA Input'!J4984=\"Contingent\"),'TSA Input'!F4984,\"\"))","v":""},"","Required","Required"]
["",null,{"$f":"IF('TSA Input'!J4985=\"\",\"\",IF(OR('TSA Input'!J4985=\"Yes\",'TSA Input'!J4985=\"Contingent\"),'TSA Input'!B4985,\"Ineligible\"))","v":""},{"$f":"IF('TSA Input'!J4985=\"\",\"\",IF(OR('TSA Input'!J4985=\"Yes\",'TSA Input'!J4985=\"Contingent\"),'TSA Input'!I4985,\"\"))","v":""},{"$f":"IF('TSA Input'!J4985=\"\",\"\",IF(OR('TSA Input'!J4985=\"Yes\",'TSA Input'!J4985=\"Contingent\"),'TSA Input'!C4985,\"\"))","v":""},{"$f":"IF('TSA Input'!J4985=\"\",\"\",IF(OR('TSA Input'!J4985=\"Yes\",'TSA Input'!J4985=\"Contingent\"),'TSA Input'!D4985,\"\"))","v":""},{"$f":"IF('TSA Input'!J4985=\"\",\"\",IF(OR('TSA Input'!J4985=\"Yes\",'TSA Input'!J4985=\"Contingent\"),'TSA Input'!G4985,\"\"))","v":""},{"$f":"IF('TSA Input'!J4985=\"\",\"\",IF(OR('TSA Input'!J4985=\"Yes\",'TSA Input'!J4985=\"Contingent\"),'TSA Input'!F4985,\"\"))","v":""},"",{"$f":"IF('TSA Input'!J4985=\"\",\"\",IF(OR('TSA Input'!J4985=\"Yes\",'TSA Input'!J4985=\"Contingent\"),'TSA Input'!D4985,\"\"))","v":""},{"$f":"IF('TSA Input'!J4985=\"\",\"\",IF(OR('TSA Input'!J4985=\"Yes\",'TSA Input'!J4985=\"Contingent\"),'TSA Input'!G4985,\"\"))","v":""},{"$f":"IF('TSA Input'!J4985=\"\",\"\",IF(OR('TSA Input'!J4985=\"Yes\",'TSA Input'!J4985=\"Contingent\"),'TSA Input'!F4985,\"\"))","v":""},"","Required","Required"]
["No",null,"End","End","End","End","End","End","End","End","End","End","End","End","End"]
[1,null,"END OF DATA"]
[]
[]
[null,"Hoover State Office Building, Level B, 1305 E. Walnut, Des Moines, Iowa 50319",null,null,null,null,null,null,null,null,null,null,null,null,null,"515.281.5503"]
[null,"CIO@IOWA.GOV"]
[]
[null,"*Applicants must fill out and submit this form in order to comply with/supply the information/inputs requested by the Office pursuant to Section 3.1 (Quantitative Factors) of NOFA/RFP #001.  Please contact the Office’s designated representative providing administrative support for the Application process, which can assist you in populating this form. See Section 1.8.2 of the NOFA regarding administrative support related to this Application."]
[]
[null,{"$f":"Version","v":"Version 02.19.03"}]
[]
[]
[null,"Hoover State Office Building, Level B, 1305 E. Walnut, Des Moines, Iowa 50319",null,null,null,null,null,null,null,null,"515.281.5503",null,null,null,null,"CIO@IOWA.GOV"]

{"sheet":"Exhibit C","index":3,"n_rows":94,"n_cols":19,"rows_kept":94,"cut":false,"hidden":false,"merged":[[51,2,51,17],[54,2,54,17],[56,2,56,17],[40,2,40,17],[41,0,41,17],[44,2,44,17],[45,0,45,17],[48,2,48,17],[59,2,59,17],[60,3,60,17],[61,3,61,17],[62,3,62,17],[63,3,63,17],[30,2,30,3],[36,1,36,17],[37,1,37,17],[38,1,38,17],[33,3,34,17],[19,2,19,17],[20,2,20,3],[26,2,26,17],[27,2,27,3],[29,2,29,17],[22,3,22,17],[23,0,23,17],[95,0,95,2],[9,0,9,17],[8,0,8,18],[3,0,3,18],[6,1,6,17],[10,0,10,17],[32,2,32,17],[14,1,14,17],[16,2,16,17],[17,2,17,3],[12,1,12,17],[13,1,13,17],[71,0,71,17],[74,1,74,17],[75,1,75,17],[79,0,79,17],[65,2,65,4],[90,0,90,2],[76,1,76,17],[86,2,86,17],[70,2,70,17],[78,2,78,17],[82,2,82,17],[83,0,83,17],[66,2,66,17],[67,0,67,17],[87,0,87,17]]}
[]
[]
[null,null,null,null,null,null,null,null,null,null,null,null,null,null,null,null,null,null,"S T A T E   O F   I O W A"]
[]
["KIM REYNOLDS, GOVERNOR",null,null,null,null,null,null,null,null,null,null,null,null,null,null,null,null,null,"ANNETTE DUNN"]
["ADAM GREGG, LT. GOVERNOR",null,null,null,null,null,null,null,null,null,null,null,null,null,null,null,null,null,"CHIEF INFORMATION OFFICER"]
[null,"Exhibit C — Qualitative Attributes Form"]
[{"$f":"\"Applicant Name:  \"&ApplicantName","v":"Applicant Name:  Required"},null,null,null,null,null,null,null,null,null,null,null,null,null,null,null,null,null,{"$f":"\"Application #:  \"&ApplicationNbr","v":"Application #:  Created By OCIO"}]
[]
["Applicant must fill out and submit this form in order to comply with/supply the information/inputs requested by the Office pursuant to Section 3.2 (Qualitative Factors) of NOFA/RFP #002."]
["Note: If you need additional space to answer any of the above questions, please upload supplemental materials to the appropriate section of the Iowa Grants System."]
[]
["1.","Budget Composition. (see NOFA #002 Section 3.2.1)"]
[null,"This factor takes into consideration whether any local or federal funds will support the Project, the Applicant’s overall commitment to the Project, and whether any other external funding sources will support the Project. Generally speaking, Projects that are supported by local, federal, or other external funding sources, or Applicants that, themselves, are making an investment greater than eighty-five percent (85%) as it relates to the Project and thereby the community will receive higher scores."]
[null,"Please answer or supply the Office with the following to assist it in scoring this factor:"]
[]
[null,"1.1.","Local Support. Please state the total dollar ($) amount of your Total Project Costs as defined in NOFA Section 1.5.2 that will be supplied by local government (e.g., city, county). Do not include State or Federal funds in this dollar ($) amount. Please make sure these figures align with the figures you have supplied on Exhibits D and D.1 (the Broadband Grants Budget Plan and Outside TSA Infrastructure process, respectively). OCIO will calculate your score, in part, by considering the percentage of your Total Project Cost comprised of funds supplied by local government."]
[null,null,0]
[]
[null,"1.2.","Federal Support. Please state the total dollar ($) amount of your Total Project Costs as defined in NOFA Section 1.5.2 that will be supplied by federal funds (e.g., a USDA reconnect grant funds). Please make sure these figures align with the figures you have supplied on Exhibits D and D.1 (the Broadband Grants Budget Plan and Outside TSA Infrastructure process, respectively). OCIO will calculate your score, in part, by considering the percentage of your Total Project Cost comprised of funds supplied by the federal government."]
[null,null,0]
[]
[null,null,"1.2.1.","Please further describe the specific funding sources/programs forming the basis of any federal support claimed above, such as USDA reconnect grant funds."]
[]
[{"$f":"\"(Maximum 1200 Characters  / Actual = \"&LEN(A24)&\")\"","v":"(Maximum 1200 Characters  / Actual = 0)"}]
[]
[null,"1.3.","Applicant Support. Please state the total dollar ($) amount of your Total Project Costs as defined in NOFA Section 1.5.2 that will be supplied by you, the Applicant (i.e., your direct contribution excluding any Local Support, State funds, if awarded, Federal Support, or Other External Support). This factor takes into consideration the Applicant’s overall commitment to the Project. Please make sure these figures align with the figures you have supplied on Exhibits D and D.1 (the Broadband Grants Budget Plan and Outside TSA Infrastructure process, respectively). OCIO will calculate your score, in part, by considering the percentage of your Total Project Cost comprised of funds supplied directly by you, the Applicant."]
[null,null,0]
[]
[null,"1.4.","Other External Support. Please state the total dollar ($) amount of your Total Project Costs as defined in NOFA Section 1.5.2 that will be supplied by sources other than local government, state grant funds, if awarded, federal funds, or you (the Applicant) directly, such as donations from a private third party or non-profit organization. A loan, equity stake, or other similar financing arrangement does not qualify as an external funding source. Please make sure these figures align with the figures you have supplied on Exhibits D and D.1 (the Broadband Grants Budget Plan and Outside TSA Infrastructure process, respectively). OCIO will calculate your score, in part, by considering the percentage of your Total Project Cost comprised of funds supplied by other external sources."]
[null,null,0]
[]
[null,"1.5.","Percentage of State Support Requested. Generally speaking, Applicants that request less than fifteen (15%) percent of their estimated Total Project Cost (the maximum reimbursable amount under the Program, Iowa Code § 8B.11(5)) will receive higher scores."]
[null,null,{"$f":"IFERROR(('Exhibit D'!I30+'Exhibit D.1'!J52)/(TotalEstCost+SUM('Exhibit D.1'!H37:H51)),0)","v":0},"This field is calculated and auto populated based on Exhibit C Sections 1.1 - 1.4 and Applicant’s entry in Exhibits D and D.1 (the Broadband Grants Budget Plan and Outside TSA Infrastructure process, respectively)."]
[]
[]
["2.","Relative Need for New Broadband and Existing Broadband Service Speeds. (See NOFA #002 Section 3.2.2)"]
[null,"In addition to other factors described herein which take similar considerations into account, this factor takes into consideration the relative need for Broadband Infrastructure in the Project area and existing Broadband service speeds by considering, by way of example only: 1) how geographically proximate the Project area is to other infrastructure that provides access to 25/3 Broadband; 2) any buildout that has occurred since the As of Date (the effective date of the data underlying the Broadband Availability Map); 3) any related barriers to expansion/extension; 4) how the Project will positively affect any anchor institutions in the area (e.g., key businesses, schools, universities, libraries, hospitals); and 5) any community support for the Project, including but not limited to as evidenced by testimonials or letters of support. In assessing this factor, the Office may take into consideration: factual information received through the Validation Process pursuant to and in accordance with Iowa Code section 8B.11(3), Iowa Administrative Code rule 129—22.5(1)(b), and Section 1.7.7.1.2 (Validation Process) of this NOFA, or the issuance or Award of prior incentives administered by the Office. Generally speaking, Applications proposing the installation of Broadband Infrastructure in Targeted Service Areas further away from other geographic areas that already have access to 25/3 Broadband, that positively affect more anchor institutions, and receive more community support will receive higher scores."]
[null,"Please answer or supply the Office with the following to assist it in scoring this factor:"]
[]
[null,"2.1.","As part of evaluating this factor, the Office will review the geographic proximity of your Project to other infrastructure that is currently known to provide access to 25/3 Broadband based on the Broadband Availability Map. To aid the Office in contextualizing the import of this analysis, please describe any known barriers (e.g., geographic, market-driven, regulatory) that may inhibit the expansion or extension of pre-existing Broadband networks to your proposed Project area in a cost-effective manner."]
[]
[{"$f":"\"(Maximum 1200 Characters  / Actual = \"&LEN(A42)&\")\"","v":"(Maximum 1200 Characters  / Actual = 0)"}]
[]
[null,"2.2.","How will the Project positively affect any anchor institutions in the area, if at all?"]
[]
[{"$f":"\"(Maximum 1200 Characters  / Actual = \"&LEN(A46)&\")\"","v":"(Maximum 1200 Characters  / Actual = 0)"}]
[]
[null,"2.3.","Have you previously claimed a property tax exemption pursuant to Iowa Code section 427.1(40) for any Broadband Infrastructure to be or already installed in Targeted Service Areas forming the basis of your Project?"]
[]
[]
[null,"2.4.","Have you previously been Awarded grant funds pursuant to Iowa Code section 8B.11 for any proposed Broadband Infrastructure to be or already installed in Targeted Service Areas forming the basis of your Project?"]
[]
[]
[null,"2.5.","Have you installed any Broadband Infrastructure since the As of Date (i.e., June 30, 2018, the effective date of the data underlying the Broadband Availability Map) that would facilitate 25/3 Broadband in any of the Targeted Service Areas forming the Basis of your Project?"]
[]
[null,null,"If “Yes,” please identify the total number of Targeted Service Areas forming the basis of your Project in which you have installed Broadband Infrastructure that would facilitate 25/3 Broadband since the As of Date."]
[null,null,null,0,"Targeted Service Areas"]
[]
[null,"2.6.","Please supply evidence of local community support for the Project. Examples of such evidence include, but are not limited to:"]
[null,null,"2.6.1.","Survey results taken among members of the community supporting the Project."]
[null,null,"2.6.2.","Testimonials or letters from members of the community supporting the Project."]
[null,null,"2.6.3.","Minutes of meetings of city or county board, commissions, or councils supporting the Project."]
[null,null,"2.6.4.","Newspaper articles supporting the Project."]
[null,null,"These materials should be supplied through the Community Support upload field fields in the Central Forms NOFA #002 form in Iowa Grants."]
[null,null,"Iowa Grants Website"]
[null,"2.7.","Please describe any current Broadband adoption initiatives sponsored by you within the Project area or surrounding community(ies):"]
[]
[{"$f":"\"(Maximum 1200 Characters  / Actual = \"&LEN(A68)&\")\"","v":"(Maximum 1200 Characters  / Actual = 0)"}]
[]
[null,"2.8.","Please describe any future Broadband adoption initiatives to be sponsored by you within the Project area or surrounding community(ies):"]
[]
[{"$f":"\"(Maximum 1200 Characters  / Actual = \"&LEN(A72)&\")\"","v":"(Maximum 1200 Characters  / Actual = 0)"}]
[]
["3.","Economic Impact."]
[null,"This factor takes into consideration the economic impact the Project will have on the surrounding community(ies), including but not limited to jobs impact. Applications with a greater impact on jobs or that will reach the agricultural community will receive higher scores. "]
[null,"Please answer or supply the Office with the following to assist it in scoring this factor:"]
[]
[null,"3.1.","Describe how your Project will generate new jobs in the Project area and the surrounding community(ies). Specific job-creation estimates and the specific methodology deployed to determine numbers may be provided, but are not required."]
[]
[{"$f":"\"(Maximum 1200 Characters  / Actual = \"&LEN(A80)&\")\"","v":"(Maximum 1200 Characters  / Actual = 0)"}]
[]
[null,"3.2.","Describe how your Project will impact the retention of existing jobs in the Project area and the surrounding community(ies). Specific job-retention numbers and the specific methodology deployed to determine numbers may be provided, but are not required."]
[]
[{"$f":"\"(Maximum 1200 Characters  / Actual = \"&LEN(A84)&\")\"","v":"(Maximum 1200 Characters  / Actual = 0)"}]
[]
[null,"3.3.","Describe how your Project will positively impact businesses (including agricultural operations) in the Project area and the surrounding community(ies)."]
[]
[{"$f":"\"(Maximum 1200 Characters  / Actual = \"&LEN(A88)&\")\"","v":"(Maximum 1200 Characters  / Actual = 0)"}]
[]
[{"$f":"Version","v":"Version 02.19.03"}]
[]
[]
["Hoover State Office Building, Level B, 1305 E. Walnut, Des Moines, Iowa 50319",null,null,null,null,null,null,null,null,null,null,"515.281.5503",null,null,null,null,null,null,"CIO@IOWA.GOV"]

{"sheet":"Exhibit D","index":4,"n_rows":42,"n_cols":12,"rows_kept":42,"cut":false,"hidden":false,"merged":[[33,0,33,11],[30,1,30,10],[13,3,13,4],[29,3,29,4],[10,1,11,4],[8,0,8,11],[3,0,3,11],[6,1,6,10],[11,6,12,8],[11,9,11,10],[12,9,12,10],[36,0,36,11],[40,0,40,11],[38,0,38,1],[35,0,35,11],[34,0,34,11]]}
[]
[]
[null,null,null,null,null,null,null,null,null,null,null,"S T A T E   O F   I O W A"]
[]
["KIM REYNOLDS, GOVERNOR",null,null,null,null,null,null,null,null,null,null,"ANNETTE DUNN"]
["ADAM GREGG, LT. GOVERNOR",null,null,null,null,null,null,null,null,null,null,"CHIEF INFORMATION OFFICER"]
[null,"Exhibit D — Broadband Grants Program Budget Plan"]
[{"$f":"\"Applicant Name:  \"&ApplicantName","v":"Applicant Name:  Required"},null,null,null,null,null,null,null,null,null,null,{"$f":"\"Application #:  \"&ApplicationNbr","v":"Application #:  Created By OCIO"}]
[]
[]
[null,"Enter data for all columns with a light gray heading and associated white cells.  The dark shaded fields are calculated fields based on associated entry."]
[null,null,null,null,null,null,"Estimated: Provide Upon Grant Application",null,null,"Actuals: Provide Upon Project Completion"]
[null,null,null,null,null,null,null,null,null,"(Do NOT fill out as part of Application process)"]
[null,"Category\n(A)","Description\n(B)","Per Unit\n(C)",null,"Quantity\n(D)","Total Estimated Cost $\n(E)","Requested Grant Support % (up to 15%)\n(F)","Grant Request (Est Cost * Request %)\n(G)","Actual Cost $\n(H)","Grant Award (Min of Estimated or Actual Cost * Request %)\n(I)"]
[null,"Conduit    ",null,5,"  per foot",5,0,0,{"$f":"ROUND(G15*H15,2)","v":0},0,{"$f":"ROUND(MIN(G15,J15)*H15,2)","v":0}]
[null,"Fiber/Copper",null,0,"  per foot",0,0,0,0,0,0]
[null,"OSP Engineering",null,0,"  per foot",0,0,0,0,0,0]
[null,"Design Engineering",null,0,"  per hour / fixed",0,0,0,0,0,0]
[null,"Construction Mgmt.",null,0,"  per hour / fixed",0,0,0,0,0,0]
[null,"Tower",null,0,"  per tower",0,0,0,0,0,0]
[null,"Antenna",null,0,"  per antenna",0,0,0,0,0,0]
[null,"Boring",null,0,"  per foot",0,0,0,0,0,0]
[null,"Trenching",null,0,"  per foot",0,0,0,0,0,0]
[null,"Knifing",null,0,"  per foot",0,0,0,0,0,0]
[null,"Switching Equipment",null,0,"  per unit",0,0,0,0,0,0]
[null,"Routing Equipment",null,0,"  per unit",0,0,0,0,0,0]
[null,"Optical Equipment",null,0,"  per unit",0,0,0,0,0,0]
[null,"Customer Premise Equipment",null,0,"  per unit",0,0,0,{"$f":"ROUND(G28*H28,2)","v":0},0,{"$f":"ROUND(MIN(G28,J28)*H28,2)","v":0}]
[null,"Other",null,0,"  per unit",0,0,0,0,0,0]
[null,"Totals","N/A","N/A",null,"N/A",{"$f":"SUM(G15:G29)","v":0},"N/A",{"$f":"SUM(I15:I29)","v":0},{"$f":"SUM(J15:J29)","v":0},{"$f":"SUM(K15:K29)","v":0}]
[null,"END OF DATA"]
[]
[]
["*An Applicant may only subsequently seek reimbursement for fifteen percent (15%) of its estimated Total Project Costs or actual Total Project Costs, whichever is less. "]
["**In addition to supplying the Office with a revised Exhibit D, the Office may request additional records as deemed necessary by the Office to verify such claimed expenditures. Such records may include original invoices, original itemized receipts, copies of checks, check registers, or bank statements indicating credit card invoices were paid, or similar documentation. Grantees must keep proof of the incurrence and payment of any and all claimed expenditures."]
["***Grantees may only seek and obtain reimbursement for Allowable Expenditures. The Office may deny a request for reimbursement for any expenditures that do not constitute Allowable Expenditures, and Grantee shall not otherwise be entitled to reimbursement for any such expenditures. See Section 1.2.2 of the NOFA for a comprehensive definition of Allowable Expenditures. "]
["****Applicants may not include Allowable Expenditures incurred outside Targeted Service Area(s) in this Budget Plan. Applicants wanting to include Allowable Expenditures that are incurred outside of  Targeted Service Area(s) within their Total Project Costs must do so on and complete the Outside Targeted Service Area Infrastructure Worksheet, labeled as Exhibit D.1. "]
[]
[{"$f":"Version","v":"Version 02.19.03"}]
[]
[]
["Hoover State Office Building, Level B, 1305 E. Walnut, Des Moines, Iowa 50319",null,null,null,null,null,"515.281.5503",null,null,null,null,"CIO@IOWA.GOV"]

{"sheet":"Exh D (2)","index":5,"n_rows":39,"n_cols":11,"rows_kept":39,"cut":false,"hidden":true,"merged":[[3,0,3,10],[6,1,6,9],[8,0,8,10],[11,5,12,7],[11,8,11,9],[12,8,12,9],[38,0,38,10],[35,0,35,10],[36,0,36,10],[37,0,37,10],[29,1,29,9]]}
[]
[]
[null,null,null,null,null,null,null,null,null,null,"S T A T E   O F   I O W A"]
[]
["KIM REYNOLDS, GOVERNOR",null,null,null,null,null,null,null,null,null,"Robert von Wolffradt"]
["ADAM GREGG, LT. GOVERNOR",null,null,null,null,null,null,null,null,null,"Chief Information Officer"]
[null,"Exhibit D—Budget Plan"]
[{"$f":"\"Applicant Name:  \"&ApplicantName","v":"Applicant Name:  Required"},null,null,null,null,null,null,null,null,null,{"$f":"\"Application #:  \"&ApplicationNbr","v":"Application #:  Created By OCIO"}]
[]
[]
[]
[null,null,null,null,null,"Estimated: Provide Upon Grant Application",null,null,"Actuals: Provide Upon Project Completion"]
[null,null,null,null,null,null,null,null,"(Do NOT fill out as part of Application process)"]
[null,"Category","Description","Unit","Quantity","Est. Cost $**","Requested Grant Support % (up to 15%)","Grant Request (Est Cost * Request %)","Actual Cost $","Grant Award (Min of Estimated or Actual Cost * Request %)"]
[null,"Conduit    ","(Type)","$/foot for material",null,0,0,{"$f":"ROUND(F15*G15,2)","v":0},0,{"$f":"ROUND(MIN(F15,I15)*G15,2)","v":0}]
[null,"Fiber/Copper","(Type)","$/foot for material",null,0,0,0,0,0]
[null,"OSP Engineering","(E.g., permits/plans)","$/foot",null,0,0,0,0,0]
[null,"Design Engineering","(E.g., design plans)","Hours or fixed fee",null,0,0,0,0,0]
[null,"Construction Mgmt.","(E.g., field resources)","Hours or fixed fee",null,0,0,0,0,0]
[null,"Tower","(E.g., Permit/specs.)","Installed cost per tower",null,0,0,0,0,0]
[null,"Antenna","(Specs.)","Installed cost per antenna",null,0,0,0,0,0]
[null,"Boring","(Contractor)","$/foot",null,0,0,0,0,0]
[null,"Trenching","(Contractor)","$/foot",null,0,0,0,0,0]
[null,"Knifing","(Contractor)","$/foot",null,0,0,0,0,0]
[null,"Switching Equipment","(Mfg./model /s#)","per unit",null,0,0,0,0,0]
[null,"Routing Equipment","(Mfg./model /s#)","per unit",null,0,0,0,0,0]
[null,"Optical Equipment","(Mfg./model /s#)","per unit",null,0,0,0,0,0]
[null,"Customer Premise Equipment","(Mfg./model /s#)","per unit",null,0,0,0,0,0]
[null,"Totals","N/A","N/A","N/A",{"$f":"SUM(F15:F28)","v":0},"N/A",{"$f":"SUM(H15:H28)","v":0},0,0]
[null,"END OF DATA"]
[]
[]
["Hoover State Office Building, Level B, 1305 E. Walnut, Des Moines, Iowa 50319",null,null,null,null,null,null,null,null,null,"515.281.5503"]
["CIO@IOWA.GOV"]
[]
["*An Applicant must estimate its total Project costs in the form of Allowable Expenditures within the categories set forth in the table above. An Applicant may not include in its estimate of total Project costs or subsequently seek reimbursement for expenditures other than those within the categories above."]
["**An Applicant may only subsequently seek reimbursement for its total estimated Project costs or total actual Project costs, whichever is less."]
["***Except as otherwise and solely to the extent permitted by Iowa Administrative Code rule 129—22.4(5) and further described in NOFA Section 1.5, Allowable Expenditures may not include expenditures incurred for or related to Broadband Infrastructure to be installed outside of Targeted Service Areas. See the Exception Request Form, Exhibit D.1,  for information on how to apply, in limited circumstances, for permission to include such expenditures in your Project costs."]
["****In addition to supplying the Office with a revised Exhibit D, the Office may request additional records as deemed necessary by the Office to verify such claimed expenditures. Such records may include original invoices, original itemized receipts, copies of checks, check registers, or bank statements indicating credit card invoices were paid, or similar documentation. Grantees must keep proof of the incurrence and payment of any and all claimed expenditures."]

{"sheet":"Exhibit D.1","index":6,"n_rows":63,"n_cols":13,"rows_kept":63,"cut":false,"hidden":false,"merged":[[59,0,59,1],[6,1,6,11],[8,0,8,12],[3,0,3,12],[9,1,9,9],[19,1,19,9],[18,1,18,9],[14,1,14,9],[11,1,11,9],[15,1,15,9],[54,1,54,11],[52,1,52,11],[33,6,34,9],[33,10,33,11],[34,10,34,11],[32,1,33,4],[57,1,57,12],[30,1,30,11],[23,1,23,9],[27,1,27,9],[22,1,22,9],[22,10,22,11],[26,1,26,9],[35,3,35,4],[51,3,51,4],[55,1,55,11],[56,1,56,11]]}
[]
[]
[null,null,null,null,null,null,null,null,null,null,null,null,"S T A T E   O F   I O W A"]
[]
["KIM REYNOLDS, GOVERNOR",null,null,null,null,null,null,null,null,null,null,null,"ANNETTE DUNN"]
["ADAM GREGG, LT. GOVERNOR",null,null,null,null,null,null,null,null,null,null,null,"CHIEF INFORMATION OFFICER"]
[null,"Exhibit D.1 — Outside Targeted Service Areas Infrastructure Worksheet"]
[{"$f":"\"Applicant Name:  \"&ApplicantName","v":"Applicant Name:  Required"},null,null,null,null,null,null,null,null,null,null,null,{"$f":"\"Application #:  \"&ApplicationNbr","v":"Application #:  Created By OCIO"}]
[]
[null,"Generally, Applicants must identify their Projects in terms of the Targeted Service Areas in which their Projects will Facilitate 25/3 Broadband service. Relatedly, as a default rule, the Office considers Broadband Infrastructure physically installed within a Targeted Service Area(s) to Facilitate 25/3 Broadband therein by virtue of the geographic proximity of such Broadband Infrastructure to the Targeted Service Area(s) itself. Thus, Applicants may generally only include costs/expenditures incurred within a Targeted Service Area forming the basis of a Project within the Project’s Total Project Costs and corresponding Allowable Expenditures. However, Applicants may include costs/expenditures that are incurred outside of  Targeted Service Area(s) within their Total Project Costs and corresponding Allowable Expenditures, provided that Applicant provides the information and demonstrates the prerequisites identified in Section 1.5.2.3 (Outside TSA Infrastructure Process) of the NOFA. This Outside TSA Infrastructure process is not limited to census blocks that are directly adjacent to Targeted Service Areas forming the basis of an Application. Applicants should use the following fields/inputs to supply the required information/justification:"]
[]
[null,"1.    Are you requesting permission to include expenditures incurred outside of Targeted Service Areas forming the basis of your Project within your total estimated Project Cost/allowable Expenditures? "]
[]
[]
[null,"2.    Explain how such outside-Targeted-Service-Area Broadband Infrastructure Facilitates 25/3 Broadband within the Targeted Service Area(s) forming the basis of the Project."]
[]
[null,{"$f":"\"(Maximum 1200 Characters  / Actual = \"&LEN(B16)&\")\"","v":"(Maximum 1200 Characters  / Actual = 0)"}]
[]
[null,"3.    How are any claimed costs/expenditures for such outside-Targeted-Service-Area Broadband Infrastructure necessary to effectively complete the Project? "]
[]
[null,{"$f":"\"(Maximum 1200 Characters  / Actual = \"&LEN(B20)&\")\"","v":"(Maximum 1200 Characters  / Actual = 0)"}]
[]
[null,"4.    Why is it that any claimed costs/expenditures for such outside-Targeted-Service-Area Broadband Infrastructure cannot be excluded from the Application?"]
[]
[null,{"$f":"\"(Maximum 1200 Characters  / Actual = \"&LEN(B24)&\")\"","v":"(Maximum 1200 Characters  / Actual = 0)"}]
[]
[null,"5.    What specific methods/formulas will you utilize in allocating the costs of and for such outside Targeted-Service-Areas Broadband Infrastructure in proportion to such Broadband Infrastructure’s actual facilitation of 25/3 Broadband to the Targeted Service Area(s) forming the basis of the Project?"]
[]
[null,{"$f":"\"(Maximum 1200 Characters  / Actual = \"&LEN(B28)&\")\"","v":"(Maximum 1200 Characters  / Actual = 0)"}]
[]
[null,"6.    Please identify all Allowable Expenditures within the categories set forth in the table below for such outside-Targeted-Service-Area Broadband Infrastructure you wish to include within your Total Project Costs:"]
[]
[null,"Enter data for all columns with a light gray heading and associated white cells.  The dark shaded fields are calculated fields based on associated entry."]
[null,null,null,null,null,null,"Estimated: Provide Upon Grant Application",null,null,null,"Actuals: Provide Upon Project Completion"]
[null,null,null,null,null,null,null,null,null,null,"(Do NOT fill out as part of Application process)"]
[null,"Category\n(A)","Description\n(B)","Cost Per Unit\n(C)",null,"Quantity\n(D)","Est. $ Cost Located Outside TSA\n(E)","Proportional Allocation $ Cost Located Outside TSA\n(F)","(Up to) 15% of Proportional Allocation $ Cost Located Outside TSA\n(G)","Grant Request (Allocation $ Cost * Request %)\n(H)","Actual Proportional Allocation $ Cost Located Outside TSA\n(I)","Grant Award (Minimum Estimated and Actual Allocation $ Request * Request %)\n(J)"]
[null,"Conduit    ",null,0,"  per foot",0,0,0,0,{"$f":"ROUND(H37*I37,2)","v":0},0,{"$f":"ROUND(MIN(H37,K37)*I37,2)","v":0}]
[null,"Fiber/Copper",null,0,"  per foot",0,0,0,0,0,0,0]
[null,"OSP Engineering",null,0,"  per foot",0,0,0,0,0,0,0]
[null,"Design Engineering",null,0,"  per hour / fixed",0,0,0,0,0,0,0]
[null,"Construction Mgmt.",null,0,"  per hour / fixed",0,0,0,0,0,0,0]
[null,"Tower",null,0,"  per tower",0,0,0,0,0,0,0]
[null,"Antenna",null,0,"  per antenna",0,0,0,0,0,0,0]
[null,"Boring",null,0,"  per foot",0,0,0,0,0,0,0]
[null,"Trenching",null,0,"  per foot",0,0,0,0,0,0,0]
[null,"Knifing",null,0,"  per foot",0,0,0,0,0,0,0]
[null,"Switching Equipment",null,0,"  per unit",0,0,0,0,0,0,0]
[null,"Routing Equipment",null,0,"  per unit",0,0,0,0,0,0,0]
[null,"Optical Equipment",null,0,"  per unit",0,0,0,0,0,0,0]
[null,"Customer Premise Equipment",null,0,"  per unit",0,0,0,0,{"$f":"ROUND(H50*I50,2)","v":0},0,{"$f":"ROUND(MIN(H50,K50)*I50,2)","v":0}]
[null,"Other",null,0,"  per unit",0,0,0,0,0,0,0]
[null,"Totals","N/A","N/A",null,"N/A",{"$f":"SUM(G37:G51)","v":0},{"$f":"\"*  \"&TEXT(SUM(H37:H51),\"$#,###,###.00\")","v":"*  $.00"},"N/A",{"$f":"SUM(J37:J51)","v":0},0,0]
[null,"END OF DATA"]
[]
[null,"*The Office reserves the right, in its sole discretion, to exclude claimed costs/expenditures for outside-Targeted-Service-Area Broadband Infrastructure, including in scoring a Project or in determining in what amount to Award grant funds, where an Applicant fails, in the Office’s determination, to satisfy the above-outlined tests. In the event the Office excludes any claimed outside-Targeted-Service-Areas costs/expenditures, the Office may, in its sole discretion, notify the Applicant in advance and permit the Applicant to withdraw or amend its Application."]
[null,"**Grantees may only seek and obtain reimbursement for Allowable Expenditures. The Office may deny a request for reimbursement for any expenditures that do not constitute Allowable Expenditures, and Grantee shall not otherwise be entitled to reimbursement for any such expenditures. See Section 1.2.2 of the NOFA for a comprehensive definition of Allowable Expenditures. "]
[null,"***In addition to supplying the Office with a revised Exhibit D.1, the Office may request additional records as deemed necessary by the Office to verify such claimed expenditures. Such records may include original invoices, original itemized receipts, copies of checks, check registers, or bank statements indicating credit card invoices were paid, or similar documentation. Grantees must keep proof of the incurrence and payment of any and all claimed expenditures."]
[null,"****Applicants may not include Allowable Expenditures incurred within Targeted Service Area(s) in this Outside Targeted Service Area Infastructure Worksheet. Applicants should include those costs/expenditures in the Budget Plan, labeled as Exhibit D. "]
[]
[{"$f":"Version","v":"Version 02.19.03"}]
[]
[]
["Hoover State Office Building, Level B, 1305 E. Walnut, Des Moines, Iowa 50319",null,null,null,null,null,"515.281.5503",null,null,null,null,null,"CIO@IOWA.GOV"]

{"sheet":"Exh D.1 (2)","index":7,"n_rows":50,"n_cols":12,"rows_kept":50,"cut":false,"hidden":true,"merged":[[15,1,15,8],[14,1,14,8],[3,0,3,11],[6,1,6,10],[8,0,8,11],[9,1,9,8],[11,1,11,8],[26,9,26,10],[43,1,43,10],[45,1,45,10],[18,1,18,8],[25,9,25,10],[23,1,23,10],[25,5,26,8],[19,1,19,8]]}
[]
[]
[null,null,null,null,null,null,null,null,null,null,null,"S T A T E   O F   I O W A"]
[]
["KIM REYNOLDS, GOVERNOR",null,null,null,null,null,null,null,null,null,null,"Robert von Wolffradt"]
["ADAM GREGG, LT. GOVERNOR",null,null,null,null,null,null,null,null,null,null,"Chief Information Officer"]
[null,"Exhibit D.1 — Limited exception for Broadband Infrastructure Installed Outside of Targeted Service Areas"]
[{"$f":"\"Applicant Name:  \"&ApplicantName","v":"Applicant Name:  Required"},null,null,null,null,null,null,null,null,null,null,{"$f":"\"Application #:  \"&ApplicationNbr","v":"Application #:  Created By OCIO"}]
[]
[null,"Iowa Administrative Code rule 129—22.4(5) generally limits the use of grant funds to and for Broadband Infrastructure installed within Targeted Service Areas. Notwithstanding, the Office may, on a limited basis and in the office’s sole discretion, grant permission to Applicants for the utilization of grant funds for Broadband Infrastructure installed outside of Targeted Service Areas that facilitates or is essential to and inextricably intertwined with facilitating Broadband Infrastructure within Targeted Service Areas forming the basis of a Project. Accordingly, unless an Applicant has applied for and received permission from the Office, an Applicant should not include within their estimated Project cost(s)/Allowable Expenditures on the Budget Plan Exhibit D expenditures incurred for or related to Broadband Infrastructure to be installed out outside of Targeted Service Areas. Applicants may use this form Exhibit D.1 to apply for such exception. The Office is not responsible if delays in processing applications for this exception that result in an Applicant’s failure to meet the Application deadline; thus, Applicants should generally assume applications for this exception will be denied. No requests for the this exception will be considered unless received at least fourteen (14) days prior to Application deadline."]
[]
[null,"1.    Are you requesting permission to include expenditures incurred outside of Targeted Service Areas forming the basis of your Project within your total estimated Project Cost/allowable Expenditures? "]
[null,"Required"]
[]
[null,"2.    Why is reimbursement for such Broadband Infrastructure facilitates and/or is essential to or  inextricably intertwined with facilitating 25/3 Broadband in Targeted Service Area(s) forming the basis of your Project such that the related costs/expenditures cannot otherwise be excluded from your Application?"]
[null,"xxxxxxxxxxxxxxxxxxxxxxxxxxxxxxxxxxxxxxxxxxxxxxxxxxxxxxxxxxxxxxxxxxxxxxxxxxxxxxxxxxxxxxxxxxxxxxxxxxxxxxxxxxxxxxxxxxxxxxxxxxxxxxxxxxxxxxxxxxxxxxxxxxxxxxxxxxxxxxxxxxxxxxxxxxxxxxxxxxxxxxxxxxxxxxxxxxxxxxxxxxxxxxxxxxxxxxxxxxxxxxxxxxxxxxxxxxxxxxxxxxxxxxxxxxxxxxxxxxxxxxxxxxxxxxxxxxxxxxxxxxxxxxxxxxxxxxxxxxxxxxxxxxxxxxxxxxxxxxxxxxxxxxxxxxxxxxxxxxxxxxxxxxxxxxxxxxxxxxxxxxxxxxxxxxxxxxxxxxxxxxxxxxxxxxxxxxxxxxxxxxxxxxxxxxxxxxxxxxxxxxxxxxxxxxxxxxxxxxxxxxxxxxxxxxxxxxxxxxxxxxxxxxxxxxxxxxxxxxxxxxxxxxxxxxxxxxxxxxxxxxxxxxxxxxxxxxxxxxxxxxxxxxxxxxxxxxxxxxxxxxxxxxxxxxxxxxxxxxxxxxxxxxxxxxxxxxxxxxxxxxxxxxxxxxxxxxxxxxxxxxxxxxxxxxxxxxxxxxxxxxxxxxxxxxxxxxxxxxxxxxxxxxxxxxxxxxxxxxxxxxxxxxxxxxxxxxxxxxxxxxxxxxxxxxxxxxxxxxxxxxxxxxxxxxxxxxxxxxxxxxxxxxxxxxxxxxxxxxxxxxxxxxxxxxxxxxxxxxxxxxxxxxxxxxxxxxxxxxxxxxxxxxxxxxxxxxxxxxxxxxxxxxxxxxxxxxxxxxxxxxxxxxxxxxxxxxxxxxxxxxxxxxxxxxxxxxxxxxxxxxxxxxxxxxxxxxxxxxxxxxxxxxxxxxxxxxxxxxxxxxxxxxxxxxxxxxxxxxxxxxxxxxxxxxxxxxxxxxxxxxxxxxxxxxxxxxxxxxxxxxxxxxxxxxxxxxxxxxxxxxxxxxxxxxxxxxxxxxxxxxxxxxxxxxxxxxxxxxxxxxxxxxxxxxxxxxxxxxxxxxxxxxxxxxxxxxxxxxxxxxxxxxxxxxxxxxxxxxxxxxxxxxxxxxxxxxxxxxxxxxxxxxxxxxxxxxxxxxxxxxxxxxxxxxxxxxxxxxxxxxxxxxxxxxxxxxxxxxxxxxxxxxxxxxxxxxxxxxxxxxxxxxxxxxxxxxxxxxxxx111111111111111111111111111111111111111122222222222222222222222233333"]
[null,{"$f":"\"(Maximum 1200 Characters  / Actual = \"&LEN(B16)&\")\"","v":"(Maximum 1200 Characters  / Actual = 1270)"}]
[]
[null,"3.    Please identify and describe the specific methods/formulas you will utilize in proportionally allocating the costs of and for such Broadband Infrastructure installed outside of Targeted Service areas to Targeted Service Area(s) forming the basis of your Project to which Broadband service is facilitated by such Infrastructure."]
[null,"xxxxxxxxxxxxxxxxxxxxxxxxxxxxxxxxxxxxxxxxxxxxxxxxxxxxxxxxxxxxxxxxxxxxxxxxxxxxxxxxxxxxxxxxxxxxxxxxxxxxxxxxxxxxxxxxxxxxxxxxxxxxxxxxxxxxxxxxxxxxxxxxxxxxxxxxxxxxxxxxxxxxxxxxxxxxxxxxxxxxxxxxxxxxxxxxxxxxxxxxxxxxxxxxxxxxxxxxxxxxxxxxxxxxxxxxxxxxxxxxxxxxxxxxxxxxxxxxxxxxxxxxxxxxxxxxxxxxxxxxxxxxxxxxxxxxxxxxxxxxxxxxxxxxxxxxxxxxxxxxxxxxxxxxxxxxxxxxxxxxxxxxxxxxxxxxxxxxxxxxxxxxxxxxxxxxxxxxxxxxxxxxxxxxxxxxxxxxxxxxxxxxxxxxxxxxxxxxxxxxxxxxxxxxxxxxxxxxxxxxxxxxxxxxxxxxxxxxxxxxxxxxxxxxxxxxxxxxxxxxxxxxxxxxxxxxxxxxxxxxxxxxxxxxxxxxxxxxxxxxxxxxxxxxxxxxxxxxxxxxxxxxxxxxxxxxxxxxxxxxxxxxxxxxxxxxxxxxxxxxxxxxxxxxxxxxxxxxxxxxxxxxxxxxxxxxxxxxxxxxxxxxxxxxxxxxxxxxxxxxxxxxxxxxxxxxxxxxxxxxxxxxxxxxxxxxxxxxxxxxxxxxxxxxxxxxxxxxxxxxxxxxxxxxxxxxxxxxxxxxxxxxxxxxxxxxxxxxxxxxxxxxxxxxxxxxxxxxxxxxxxxxxxxxxxxxxxxxxxxxxxxxxxxxxxxxxxxxxxxxxxxxxxxxxxxxxxxxxxxxxxxxxxxxxxxxxxxxxxxxxxxxxxxxxxxxxxxxxxxxxxxxxxxxxxxxxxxxxxxxxxxxxxxxxxxxxxxxxxxxxxxxxxxxxxxxxxxxxxxxxxxxxxxxxxxxxxxxxxxxxxxxxxxxxxxxxxxxxxxxxxxxxxxxxxxxxxxxxxxxxxxxxxxxxxxxxxxxxxxxxxxxxxxxxxxxxxxxxxxxxxxxxxxxxxxxxxxxxxxxxxxxxxxxxxxxxxxxxxxxxxxxxxxxxxxxxxxxxxxxxxxxxxxxxxxxxxxxxxxxxxxxxxxxxxxxxxxxxxxxxxxxxxxxxxxxxxxxxxxxxxxxxxxxxxxxxxxxxxxxxxxxxxxxxxxxxxxxxxxxxxxxxxxxxxxxxxxxxxx"]
[null,{"$f":"\"(Maximum 1200 Characters  / Actual = \"&LEN(B20)&\")\"","v":"(Maximum 1200 Characters  / Actual = 1199)"}]
[]
[]
[null,"4.    Please identify all Allowable Expenditures within the categories set forth in the table above for the Broadband Infrastructure which you seek an exception:"]
[]
[null,null,null,null,null,"Estimated: Provide Upon Grant Application",null,null,null,"Actuals: Provide Upon Project Completion"]
[null,null,null,null,null,null,null,null,null,"(Do NOT fill out as part of Application process)"]
[null,"Category","Description","Unit","Quantity","Est. $ Cost Located Outside TSA","Proportional Allocation $ Cost Located Outside TSA Requested For Support","Requested Grant Support % (up to 15%)","Grant Request (Proportional Allocation $ Cost * Request %)","Actual Proportional Allocation $ Cost Located Outside TSA  Requested For Support","Grant Award (Minimum Estimated and Actual Proportional Allocation $ Request * Request %)"]
[null,"Conduit    ","(Type)","$/foot for material",null,0,0,0,{"$f":"ROUND(G29*H29,2)","v":0},0,{"$f":"ROUND(MIN(G29,J29)*H29,2)","v":0}]
[null,"Fiber/Copper","(Type)","$/foot for material",null,0,0,0,0,0,0]
[null,"OSP Engineering","(E.g., permits/plans)","$/foot",null,0,0,0,0,0,0]
[null,"Design Engineering","(E.g., design plans)","Hours or fixed fee",null,0,0,0,0,0,0]
[null,"Construction Mgmt.","(E.g., field resources)","Hours or fixed fee",null,0,0,0,0,0,0]
[null,"Tower","(E.g., Permit/specs.)","Installed cost per tower",null,0,0,0,0,0,0]
[null,"Antenna","(Specs.)","Installed cost per antenna",null,0,0,0,0,0,0]
[null,"Boring","(Contractor)","$/foot",null,0,0,0,0,0,0]
[null,"Trenching","(Contractor)","$/foot",null,0,0,0,0,0,0]
[null,"Knifing","(Contractor)","$/foot",null,0,0,0,0,0,0]
[null,"Switching Equipment","(Mfg./model /s#)","per unit",null,0,0,0,0,0,0]
[null,"Routing Equipment","(Mfg./model /s#)","per unit",null,0,0,0,0,0,0]
[null,"Optical Equipment","(Mfg./model /s#)","per unit",null,0,0,0,0,0,0]
[null,"Customer Premise Equipment","(Mfg./model /s#)","per unit",null,0,0,0,0,0,0]
[null,"Totals","N/A","N/A","N/A",{"$f":"SUM(F29:F42)","v":0},{"$f":"\"*  \"&TEXT(SUM(G29:G42),\"$#,###,###.00\")","v":"*  $.00"},null,{"$f":"SUM(I29:I42)","v":0},0,0]
[null,"END OF DATA"]
[]
[null,"*If this request for Exception is approved by the Office, then any proportionally allocated expenditures for Broadband Infrastructure located outside of a Targeted Service Area(s) forming the basis of an Application will be included in total project cost calculations for purposes of scoring the Application (e.g., the amounts included in Exhibit D + the amounts included in this Exhibit D.1). If this request for Exception is NOT approved, then any proportionally allocated expenditures for Broadband Infrastructure located outside of a Targeted Service Area(s) forming the basis of an Application will NOT be included in any total project cost calculations for purposes of scoring the Application (e.g., the amounts included in Exhibit D only)."]
[]
[]
["Hoover State Office Building, Level B, 1305 E. Walnut, Des Moines, Iowa 50319",null,null,null,null,null,null,null,null,null,null,"515.281.5503"]
["CIO@IOWA.GOV"]

{"sheet":"Summary","index":8,"n_rows":13,"n_cols":35,"rows_kept":13,"cut":false,"hidden":true,"merged":[[5,10,5,15],[4,0,4,3]]}
[]
[]
[]
[]
["Application Scorecard Summary"]
[null,null,null,null,null,null,null,null,null,null,"Delivery Platform"]
["Applicant Name:","Application #:","Total Units","Total Units To Be Served:","% of Baseline to be Served:","Total Square Miles","Units Served Per Square Mile:","Total Estimated Costs","Total Estimated Costs / Total Units Served","Proportional Allocated Cost Outside TSA (D.1)","FTTH","DSL","Cable Modem","Wireless Spectrum","Fixed Wireless","Other","Infrastructure Type","Performance Credits\n(Yes)","Performance Credits\n(No)","Data Caps (Yes)","Data Caps (No)","Symmetry (Yes)","Symmetry (No)","Local Support\n(C-1.1)","Federal Support\n(C-1.2)","Applicant Support\n(C-1.3)","Other External Support\n(C-1.4)","Yes\n(C-2.3)","No\n(C-2.3)","Yes\n(C-2.4)","No\n(C-2.4)","Yes\n(C-2.5)","No\n(C-2.5)","Yes\n(D.1-1)","No\n(D.1-1)"]
[{"$f":"ApplicantName","v":"Required"},{"$f":"ApplicationNbr","v":"Created By OCIO"},{"$f":"Total_HSBs","v":0},{"$f":"Total_HSBs_Served","v":0},{"$f":"IF(Total_HSBs=0,0,ROUND(Total_HSBs_Served/Total_HSBs,2))","v":0},{"$f":"ROUND(Tot_Sq_Miles,5)","v":0},{"$f":"ROUND(Total_HSBs_Served/Tot_Sq_Miles,1)","v":{"$error":"#DIV/0!"}},{"$f":"TotalEstCost","v":0},{"$f":"IF(TotalEstCost=0,0,ROUND(TotalEstCost/Total_HSBs_Served,2))","v":0},{"$f":"Prop_Cost_Outside_TSA","v":"*  $.00"},false,false,false,false,false,{"$f":"Other","v":0},{"$f":"Infrastructure_Type","v":"Required"},false,false,false,false,false,false,false,false,false,false,false,false,false,false,false,false,false,false]
[]
[]
[]
[]
[null,null,null,null,null,null,null,null,{"$f":"\"FTTH: \"&FTTH&\"      DSL: \"&DSL&\"      Cable Modem: \"&Cable_Modem&\"      Wireless Specturm: \"&Wireless_Spectrum&\"      Fixed Wireless: \"&Fixed_Wireless&\"    Other: \"&Other","v":"FTTH: Yes      DSL:       Cable Modem:       Wireless Specturm:       Fixed Wireless:     Other: "}]

{"sheet":"Standards","index":9,"n_rows":10,"n_cols":2,"rows_kept":10,"cut":false,"hidden":true,"merged":[]}
["PlanDown","PlanUp"]
["Required","Required"]
["<= 25","<= 3"]
["25 - 34.99","3 - 4.99"]
["35 - 49.99","5 - 7.49"]
["50 - 99.99","7.5 - 9.99"]
["100 - 249.99","10 - 24.99"]
["250 - 499.99","25 - 49.99"]
["500 - 1000","50 - 99.99"]
[">=1000",">= 100"]